{"text_format":"3","workbook":"xlsx","n_sheets":49,"sheets":["Plan Selection","General Instructions","Index","Changes","Jurat","MMA Rev-Exp Instructions","MMA Rev-Exp Summary","MMA Rev-Exp Region 1","MMA Rev-Exp Region 2","MMA Rev-Exp Region 3","MMA Rev-Exp Region 4","MMA Rev-Exp Region 5","MMA Rev-Exp Region 6","MMA Rev-Exp Region 7","MMA Rev-Exp Region 8","MMA Rev-Exp Region 9","MMA Rev-Exp Region 10","MMA Rev-Exp Region 11","MMA Subcap Summary","MMA Exp Benefits","MMA Related-Party Summary","MMA Phys Comp","LTC Rev-Exp Instructions","LTC Rev-Exp Summary","LTC Rev-Exp Region 1","LTC Rev-Exp Region 2","LTC Rev-Exp Region 3","LTC Rev-Exp Region 4","LTC Rev-Exp Region 5","LTC Rev-Exp Region 6","LTC Rev-Exp Region 7","LTC Rev-Exp Region 8","LTC Rev-Exp Region 9","LTC Rev-Exp Region 10","LTC Rev-Exp Region 11","LTC Subcap Summary","LTC Exp Benefits","LTC Related-Party Summary","ASR Instructions","ASR Exhibit","ASR Admin Max","Notes","Drop-down Lists","MMA Data","MMA Ratio","MMA PMPM","LTC Data","LTC Ratio","LTC PMPM"],"not_rendered":{"images":2,"macros":1,"defined_names":31},"read":"whole","date_system":"1900"}

{"sheet":"Plan Selection","index":0,"n_rows":4,"n_cols":1,"rows_kept":4}
["ASR FINANCIAL REPORT - PLAN SELECTION"]
[]
["Instructions:  Using the buttons below, please select the reporting managed care plan to display the schedules (Excel tabs) applicable only to that managed care plan.  "]
["                         Pressing the \"Hide All\" button will hide all tabs, after which a managed care plan can be re-selected."]

{"sheet":"General Instructions","index":1,"n_rows":96,"n_cols":4,"rows_kept":96,"merged":[[7,0,11,14],[14,0,17,14],[24,1,25,14],[27,1,28,14],[30,1,33,14],[35,1,37,14],[53,1,54,14],[57,1,59,14],[62,1,64,14],[66,2,67,14],[68,2,68,14],[69,2,69,14],[72,2,74,14],[75,2,75,14],[76,2,76,14],[77,2,78,14]]}
["SMMC ASR FINANCIAL REPORTS - GENERAL INSTRUCTIONS"]
[]
["Certification"]
["Each Unaudited Quarterly and Annual ASR Financial Report submitted to the Agency shall be accompanied by a certification/attestation in the format listed in "]
["Chapter 2 of the SMMC Report Guide."]
[]
["Quarterly ASR Financial Report"]
["With the exception of the Q1 ASR Financial Report, unaudited Quarterly ASR Financial Reports are due to the Agency on the 15th of the second month following the end of the reporting quarter, with claims paid through the end of the reporting period.  The Q1 ASR Financial Report is due by June 1.  Each subsequent quarter's report shall include restated versions of previously submitted quarters, paid through the end of the current reporting period.  The ASR Exhibit shall lag one quarter and be prepared using restated financial data.  The Quarterly ASR Financial Report shall be submitted with the certification of the CEO or CFO attesting to its accuracy, as discussed in Chapter 2, General Reporting Requirements."]
[]
[]
[]
[]
[]
["Annual ASR Financial Report"]
["Annual unaudited ASR Financial Reports are due to the Agency by May 1 following the end of the reporting calendar year, allowing for three months of runout.  The first Annual ASR Financial Report is due July 1, 2015 for the calendar year 2014 reporting period, with claims paid through March 31.  The following shall be submitted as part of the Annual unaudited ASR Financial Report (refer to the Report Guide for further information):"]
[]
[]
[]
["o   One set of the completed Annual ASR Financial Report with all applicable schedules completed."]
["o   Actuarial certification of incurred claims"]
["o   Claim lag template"]
["o   Certification by the CEO or CFO, as discussed in Chapter 2, General Reporting Requirements."]
[]
["Instructions"]
["1.","The Managed Care Plan shall prepare the MMA and LTC Quarterly and Annual ASR Financial Reports, and applicable schedules, using generally accepted accounting principles (GAAP)."]
[]
[]
["2.","The Managed Care Plan shall submit reports that are specific to the operations of the Managed Care Plan rather than to a parent or umbrella organization."]
[]
[]
["3.","For the Quarterly ASR Financial Reports, report revenues and expenses earned or incurred during the reporting period.  An estimated liability shall be reported for expenses Incurred but Not Paid (IBNP).  For the Annual ASR Financial Report, report revenue and expenses earned or incurred during the reporting period allowing for the 90 calendar day runout period.  An estimated liability shall be reported for IBNP."]
[]
[]
[]
[]
["4.","The Managed Care Plan shall complete the MMA and LTC Quarterly ASR Financial Reports using the Excel file supplied by the Agency for unaudited quarterly reports and the MMA and LTC Annual ASR Financial Report using the Excel file supplied by the Agency for examined annual reports.  The following reports/schedules shall be completed and submitted for each region that the Managed Care Plan has a contract:"]
[]
[]
[]
[null,"a.","Quarterly ASR Financial Report (unaudited)"]
[null,null,"i.","Revenue and Expense Schedule in summary and for each region, each quarter year-to-date"]
[null,null,"ii.","Subcapitation schedule in summary and for each region, each quarter year-to-date"]
[null,null,"iii.","Related-Party Schedule in summary and for each region, each quarter year-to-date"]
[null,null,"iv.","Achieved Savings Rebate Exhibit, all quarters year-to-date"]
[]
[null,"b.","Annual ASR Financial Report (unaudited)"]
[null,null,"i.","Annual Revenue and Expense Schedule in summary and for each region"]
[null,null,"ii.","Annual Subcapitation Summary Schedule"]
[null,null,"iii.","Annual Related-Party Schedule Summary Schedule"]
[null,null,"iv.","Annual Achieved Savings Rebate Exhibit"]
[null,null,"v.","Claim Lag Template"]
[null,null,"vi.","Underwriting and Investment (U&I) Exhibit, Part 2B (for plans not submitting the annual NAIC Health Statement)"]
[]
["5.","Refer to the Instructions tabs for the MMA and LTC Revenue and Expense Schedules and the ASR Exhibit for more detailed instructions listing the type of revenue or expense to be reported on each line of the reports.  "]
[]
[]
["6.","MMA and LTC Subcapitation Schedules"]
[null,"For each type of service that the Managed Care Plan subcapitates with another entity to provide, the five vendors with the highest total paid shall be listed individually, with all others combined for that type of service.  "]
[]
[]
[]
["7.","MMA and LTC Related-Party Schedules"]
[null,"For each type of service that the Managed Care Plan elects to have a related-party provide, the related-party’s name, the nature of affiliation, service type, and a description of the payment methodology used to compensate the related-party shall be provided on the Related-Party Schedule in the applicable section, as well as the amount paid to each entity.  Related-parties can include, but are not limited to:"]
[]
[]
[]
[null,"a.","Any person or entity who directly or indirectly manages, controls, or oversees the operation of the Managed Care Plan, regardless of whether such person or entity is a partner, shareholder, owner, officer, director, agent, or employee of the entity."]
[]
[null,"b.","Any person or entity who has a financial relationship with the Managed Care Plan as defined by 42 CFR 438.320(1)."]
[null,"c.","An individual or entity who meets the definition of an affiliate as defined in 48 CFR 19.101."]
[]
["The following instructions shall be used when completing the Related-Party Schedule:"]
[null,"o   ","Report related-party transactions by type of service, including Fee-for-Service, Subcapitated services, administrative expenses, and other expenses.  Refer to the instruction tab for the MMA and LTC Revenue and Expense Schedules for additional information concerning the types of administrative expenses and other expenses."]
[]
[]
[null,"o   ","Vendor Name:  List the name of the entity with which the Managed Care Plan has the related-party affiliation."]
[null,"o   ","Affiliation:  Describe the nature of the relationship/affiliation with the related-party."]
[null,"o   ","Payment Methodology:  Select the methodology used to compensate the related-party for the services provided from the drop down list.  If Other is selected, please describe in the Notes section.     "]
[]
[]
["8.","MMA Enhanced Physician Compensation Schedule"]
[null,"The purpose of this schedule is to report the incremental costs associated with the health plan's compliance with Section 409.967, F.S., regarding"]
[" ","enhanced physician compensation.  The costs reported should be the incremental costs to increase compensation for the applicable provider types"]
[null,"to the Medicare for applicable services, based on the health plan's Agency-approved proposal.  The following instructions shall be used when "]
[null,"completing this schedule:"]
[null,"o   ","Member Months:  Report only member months associated with the enhanced physician compensation payments."]
[null,"o   ","Payment Methodology"]
[null,null,"FFS:  Expenses incurred for enhanced physician compensation through Fee-For-Service (FFS) payments to qualified providers."]
[null,null,"Subcapitation:  Expenses incurred for enhanced physician compensation through subcapitated payments to qualified providers."]
[null,null,"Retroactive Payment:  Expenses incurred for enhanced physician compensation through periodic, lump sum retroactive payments."]
[null,null,"Other:  Expenses incurred for enhanced physician compensation utilizing a payment methodology other than FFS, subcapitation, or retroactive"]
[null,null,"payments."]
[]
["9.","MMA & LTC Expanded Benefits Schedule"]
[null,"The purpose of this schedule is to report expenses incurred for each expanded benefit provided to Medicaid recipients.  The Expanded Benefits schedule"]
[null,"should agree with amounts reported for Expanded Benefits on the Rev-Exp schedules."]

{"sheet":"Index","index":2,"n_rows":46,"n_cols":3,"rows_kept":46}
["ASR FINANCIAL REPORT - INDEX"]
[]
[]
["Section","Tab Name","Description"]
["General","Plan Selection","Displays the applicable MMA, LTC, and ASR Schedules for the reporting managed care plan based on the plan selected."]
["General","General Instructions","Provides general instructions for the completion of the ASR Financial Report.  Additional instructions can be found on the schedule-specific instructions."]
["General","Index","Listing of all tabs contained within the ASR Financial Report"]
["General","Changes","Listing of changes made to the ASR Financial Report"]
["General","Jurat","Jurat Page"]
["MMA","MMA Rev-Exp Instructions","Detailed instructions for completion of the MMA Rev-Exp Schedules."]
["MMA","MMA Rev-Exp - Summary","Summary of MMA data reported on the MMA Rev-Exp Regional Schedules."]
["MMA","MMA Rev-Exp - Region 1","MMA Revenue and Expense information for Region 1."]
["MMA","MMA Rev-Exp - Region 2","MMA Revenue and Expense information for Region 2."]
["MMA","MMA Rev-Exp - Region 3","MMA Revenue and Expense information for Region 3."]
["MMA","MMA Rev-Exp - Region 4","MMA Revenue and Expense information for Region 4."]
["MMA","MMA Rev-Exp - Region 5","MMA Revenue and Expense information for Region 5."]
["MMA","MMA Rev-Exp - Region 6","MMA Revenue and Expense information for Region 6."]
["MMA","MMA Rev-Exp - Region 7","MMA Revenue and Expense information for Region 7."]
["MMA","MMA Rev-Exp - Region 8","MMA Revenue and Expense information for Region 8."]
["MMA","MMA Rev-Exp - Region 9","MMA Revenue and Expense information for Region 9."]
["MMA","MMA Rev-Exp - Region 10","MMA Revenue and Expense information for Region 10."]
["MMA","MMA Rev-Exp - Region 11","MMA Revenue and Expense information for Region 11."]
["MMA","MMA Subcap - Summary","Summary of Subcapitated MMA data."]
["MMA","MMA Exp Benefits","Summary of MMA Expanded Benefits."]
["MMA","MMA Related-Party - Summary","Summary of MMA data reported on the MMA Related-Party Regional Schedules."]
["MMA","MMA Phys Comp","Reporting of incremental expenses associated with the enhanced physician compensation proposals approved by the Agency."]
["LTC","LTC Rev-Exp Instructions","Detailed instructions for completion of the LTC Rev-Exp Schedules."]
["LTC","LTC Rev-Exp - Summary","Summary of LTC data reported on the LTC Rev-Exp Regional Schedules."]
["LTC","LTC Rev-Exp - Region 1","LTC Revenue and Expense information for Region 1."]
["LTC","LTC Rev-Exp - Region 2","LTC Revenue and Expense information for Region 2."]
["LTC","LTC Rev-Exp - Region 3","LTC Revenue and Expense information for Region 3."]
["LTC","LTC Rev-Exp - Region 4","LTC Revenue and Expense information for Region 4."]
["LTC","LTC Rev-Exp - Region 5","LTC Revenue and Expense information for Region 5."]
["LTC","LTC Rev-Exp - Region 6","LTC Revenue and Expense information for Region 6."]
["LTC","LTC Rev-Exp - Region 7","LTC Revenue and Expense information for Region 7."]
["LTC","LTC Rev-Exp - Region 8","LTC Revenue and Expense information for Region 8."]
["LTC","LTC Rev-Exp - Region 9","LTC Revenue and Expense information for Region 9."]
["LTC","LTC Rev-Exp - Region 10","LTC Revenue and Expense information for Region 10."]
["LTC","LTC Rev-Exp - Region 11","LTC Revenue and Expense information for Region 11."]
["LTC","LTC Subcap - Summary","Summary of LTC subcapitated data."]
["LTC","LTC Exp Benefits","Summary of LTC Expanded Benefits."]
["LTC","LTC Related-Party - Summary","Summary of LTC data reported on the LTC Related-Party Regional Schedules."]
["ASR ","ASR Exhibit Instructions","Detailed instructions for completing the ASR Exhibit"]
["ASR ","ASR Exhibit","Schedule for calculating the Achieved Savings Rebate and Medical Loss Ratio."]
["ASR ","ASR Admin Max","Schedule for calculating the Actuarially-Sound Administrative Maximum used in the determining the Achieved Savings Rebate."]
["Notes","Notes","Notes section."]

{"sheet":"Changes","index":3,"n_rows":110,"n_cols":5,"rows_kept":110}
["ASR FINANCIAL REPORT - CHANGE LOG"]
[]
["Current Version:",null,"ASR Financial Report, 040117"]
["Previous Version:",null,"ASR Financial Report, 100116"]
[]
[null,"Changes effective with the current version"]
[]
["Section","Change No.","Report Version","Schedule/Excel Tab","Change"]
["All",1,"102014","All","The structure of the Report has been locked.  Tabs cannot be added, deleted, or renamed."]
["General",1,"102014","General Instructions","Included a statement requiring a certification to be submitted along with the ASR Financial Report."]
["General",{"$f":"1+B10","v":2},"102014","General Instructions","Added clarification to the Subcapitation schedules to report Member Months subcapitated."]
["General",{"$f":"1+B11","v":3},"102014","Jurat","No changes."]
["General ",{"$f":"B12+1","v":4},"102014","Changes","Updated for current version changes."]
["General",6,"121614","Plan Selection","Based on the plan selected, the applicable MMA, LTC, and ASR schedules will be displayed.  Schedules not applicable to the selected plan will not be displayed."]
["General",7,"121614","Index","Included an index of tabs contained within the ASR Financial Report."]
["General",8,"031715","General Instructions","Revised the annual ASR Reporting requirement to reflect an examination engagement limited to specific schedules."]
["General",9,"062315","General Instructions","Revised the reporting instructions for the subcapitation summary schedule."]
["General",10,"122115","General Instructions","Revised the Annual ASR Reporting requirement to submission of an unaudited annual ASR report by May 1 and extended Q1 to June 1."]
["General",11,"100116","General Instructions","Added instructions for the Enhanced Physician Compensation Schedule."]
["General",12,"040117","General Instructions","Added instructions for the MMA & LTC Expanded Benefits Schedule"]
["MMA",1,"102014","MMA Rev-Exp Instructions","Revised instructions for the reporting of Section 9010 HIPF on line 13.3."]
["MMA",{"$f":"B21+1","v":2},"102014","MMA Rev-Exp Instructions","Added instructions for the lines added on the MMA Rev-Exp Summary and Regional tabs, noted below."]
["MMA",3,"102014","MMA Rev-Exp Summary","Added a Settlements line in each medical service category.  Instructions added to the Instructions tab."]
["MMA",4,"102014","MMA Rev-Exp Summary","Added a Hepatitis C Prescription Drug line in Pharmacy (line 8.2).  Instructions added to the instructions tab."]
["MMA",5,"102014","MMA Rev-Exp Summary","Added Total Settlements (line 11.4).  Instructions added to the instructions tab."]
["MMA",6,"102014","MMA Rev-Exp Summary","Formulas have been added to populate the Summary schedule from information entered on the Regional schedules.  Cells with formulas have been locked."]
["MMA",7,"102014","MMA Rev-Exp Summary","Formulas added to populate Health Plan, Reporting Period, and Paid Through for all remaining MMA schedules based on what is entered on the Summary."]
["MMA",8,"102014","MMA Rev-Exp Regional","Regional Tabs added for all 11 regions."]
["MMA",9,"102014","MMA Rev-Exp Regional","Added the same lines noted above in Change Nos. 8-10."]
["MMA",10,"102014","MMA Rev-Exp Regional","Formulas added for totals.  Cells with formulas have been locked."]
["MMA",11,"102014","MMA Subcap Summary/Regional","Summary and Regional schedules added for all 11 regions."]
["MMA",12,"102014","MMA Subcap Summary/Regional","Formulas added for totals.  However, cells have not been locked so that additional Vendors can be added, if needed."]
[null,13,"102014","MMA Subcap Summary/Regional","Expanded Benefits section added."]
["MMA",14,"102014","MMA Related-Party Summary/Regional","Summary and Regional schedules added for all 11 regions."]
["MMA",15,"102014","MMA Related-Party Summary/Regional","Formulas added for totals.  However, cells have not been locked so that additional Vendors can be added, if needed."]
["MMA",{"$f":"B35+1","v":16},"102014","MMA Related-Party Summary/Regional","Expanded Benefits section added."]
["MMA",17,"121614","MMA Subcap Summary","Formulas have been added to populate the Summary schedule from information entered on the Regional schedules.  The Subcap and Regional schedules remain unlocked so that plans can add additional lines to accommodate more subcap providers, if needed.  Plans are responsible for ensuring formulas are correct when new rows are added."]
["MMA",18,"121614","MMA Related-Party Summary","Formulas have been added to populate the Summary schedule from information entered on the Regional schedules.  The Subcap and Regional schedules remain unlocked so that plans can add additional lines to accommodate more subcap providers, if needed.  Plans are responsible for ensuring formulas are correct when new rows are added."]
["MMA",19,"062315","MMA Subcap Summary/Regional","Revised the MMA Subcap Summary schedule and removed the MMA Subcap Regional schedules."]
["MMA",20,"062315","MMA Related-Party Summary/Regional","Revised the MMA Related-Party Summary schedule and removed the MMA Related-Party Regional schedules."]
["MMA",21,"062315","MMA Rev-Exp Instructions","Revised IBNP definition to exclude margin and LAE."]
["MMA",22,"122115","MMA Rev-Exp Instructions","Clarified instructions to report revenue earned and expenses incurred during the period."]
["MMA",23,"052016","MMA Rev-Exp Summary/Regional","Added Prior Calendar Year Adjustments column for the reporting of prior calendar year adjustments."]
["MMA",24,"052516","MMA Rev-Exp Summary/Regional","Corrected formulas."]
["MMA",25,"100116","MMA Rev-Exp Instructions","Clarified IBNP instructions to include the Prior Calendar Year adjustment column."]
["MMA",26,"100116","MMA Rev-Exp Summary/Regional; Instructions","Revised the reporting of administrative expenses (lines 12.1-12.6) to require administrative expenses to be reported separately for direct health plan expenses and corporate allocations."]
["MMA",27,"100116","MMA Phys Comp","Added the Enhanced Physician Compensation schedule to report incremental costs associated with this program."]
["MMA",28,"040117","MMA Rev-Exp Summary/Regional; Physician Comp, Exp Benefits","The TANF and SSI No Medicaid rate groups have been split into SMI and Non-SMI for the following additions:  TANF Non-SMI, TANF SMI, SSI Medicaid Only Non-SMI, SSI Medicaid Only SMI.  Also, SSI No Medicare has been retitled to SSI Medicaid Only for consistency."]
["MMA",{"$f":"B48+1","v":29},"040117","MMA Rev-Exp Summary/Regional","Added Line 1.4.1 - Maternity Kick Payments.  Removed Line 1.4 PCP Fee Increase payments."]
["MMA",{"$f":"B49+1","v":30},"040117","MMA Rev-Exp Summary/Regional","Added Line 2.7.1 - Transplant Services to the Hospital Services section for the reporting of Transplant Services expenses."]
["MMA",31,"040117","MMA Rev-Exp Summary/Regional","Maternity Services has been added to capture expenses for services associated with maternity kick payments.  This replaces the Transplant Services section on previous reports and the numbering has changed to 4.1.1, 4.2.1, 4.3.1, and 4.4.1.  Transplant Services has moved to line 2.7.1, as noted above."]
["MMA",32,"040117","MMA Rev-Exp Summary/Regional","The \"Settlements\" line within each service section has been revised to also include expenses for alternative payment arrangements, as noted by the addition of \"AP.\""]
["MMA",33,"040117","MMA Rev-Exp Summary/Regional","Line 11.6.1 - Premium Deficiency Reserve has been added an replaces line 11.6 - Incentive Payments.  Incentive payments (and other alternative payment arrangements are to be reported on the appropriate Settlements/AP line."]
["MMA",34,"040117","MMA Rev-Exp Summary/Regional","The Net Investment section has been deleted.  This is no longer required."]
["MMA",{"$f":"B54+1","v":35},"040119","MMA Subcap Summary","This schedule has been revised to no longer require subcap amounts to be split by rate group.  "]
["MMA",36,"040117","MMA Related-Party Summary","The structure of this schedule has been revised to report related-party transactions by service type (and Admin).  A drop down list has been added to Payment Methodology."]
["MMA",37,"0401717","MMA Exp Benefits","Added the MMA Exp Benefits schedule to report expanded benefits by the type of benefit provided and for each rate group."]
["MMA",38,"0401717","MMA Rev-Exp Instructions","Revised the instructions tab for the above changes as well as clarifying the Prior Year Adjustment column.  Clarified that all maternity claims should be reported in the Maternity Services section instead of inpatient or professional, as applicable.  Also further clarified that revenue reported on Line 1.6 - Other Revenue shall be further disclosed on the Notes tab.  The Notes tab has been revised to include a schedule to report the components of Line 1.6."]
["LTC",1,"102014","LTC Rev-Exp Instructions","Revised instructions for the reporting of the Nursing Home Rate Reconciliation on line 1.2."]
["LTC",2,"102014","LTC Rev-Exp Summary","Added Non-HCBS, HCBS, and MEDP/SIXT columns for reporting Expenses."]
["LTC",3,"102014","LTC Rev-Exp Summary","Formulas have been added to populate the Summary schedule from information entered on the Regional schedules.  Cells with formulas have been locked."]
["LTC",4,"102014","LTC Rev-Exp Summary","Formulas added to populate Health Plan, Reporting Period, and Paid Through for all remaining MMA schedules based on what is entered on the Summary."]
["LTC",5,"102014","LTC Rev-Exp Regional","Added Non-HCBS, HCBS, and MEDP/SIXT columns for reporting Expenses."]
["LTC",6,"102014","LTC Rev-Exp Regional","Regional Tabs added for all 11 regions."]
["LTC",7,"102014","LTC Rev-Exp Regional","Formulas added for totals.  Cells with formulas have been locked."]
["LTC",8,"102014","LTC Subcap Summary/Regional","Added Non-HCBS, HCBS, and MEDP/SIXT columns for reporting subcapitation expenses."]
["LTC",9,"102014","LTC Subcap Summary/Regional","Summary and Regional schedules added for all 11 regions."]
["LTC",10,"102014","LTC Subcap Summary/Regional","Formulas added for totals.  However, cells have not been locked so that additional Vendors can be added, if needed."]
["LTC",11,"102014","LTC Subcap Summary/Regional","Expanded Benefits section added."]
["LTC",12,"102014","LTC Related-Party Summary/Regional","Summary and Regional schedules added for all 11 regions."]
["LTC",13,"102014","LTC Related-Party Summary/Regional","Formulas added for totals.  However, cells have not been locked so that additional Vendors can be added, if needed."]
["LTC",14,"102014","LTC Related-Party Summary/Regional","Expanded Benefits section added."]
["LTC",15,"121614","LTC Rev-Exp Instructions","LTC Service Categories have been revised, including revised definitions for each listed LTC service category."]
["LTC",16,"121614","LTC Rev-Exp Summary/Regional","LTC Service Categories have been revised, as well as the definitions for each service category."]
["LTC",17,"121614","LTC Subcap Summary","Formulas have been added to populate the Summary schedule from information entered on the Regional schedules.  The Subcap and Regional schedules remain unlocked so that plans can add additional lines to accommodate more subcap providers, if needed.  Plans are responsible for ensuring formulas are correct when new rows are added."]
[]
["LTC",18,"121614","LTC Related-Party Summary","Formulas have been added to populate the Summary schedule from information entered on the Regional schedules.  The Subcap and Regional schedules remain unlocked so that plans can add additional lines to accommodate more subcap providers, if needed.  Plans are responsible for ensuring formulas are correct when new rows are added."]
["LTC",19,"031715","LTC Rev-Exp Instructions","Clarified Administrative expense instructions to report case management as an LTC service expense."]
["LTC",20,"062315","LTC Subcap Summary/Regional","Revised the LTC Subcap Summary schedule and removed the LTC Subcap Regional schedules."]
["LTC",21,"062315","LTC Related-Party Summary/Regional","Revised the LTC Related-Party Summary schedule and removed the LTC Related-Party Regional schedules."]
["LTC",22,"062315","LTC Rev-Exp Instructions","Revised IBNP definition to exclude margin and LAE."]
["LTC",23,"122115","LTC Rev-Exp Instructions","Clarified instructions to report revenue earned and expenses incurred during the period."]
["LTC",24,"122115","LTC Rev-Exp Summary/Regional","Revised the reporting of Nursing Facility and Hospice (lines 2.1 through 2.10) to include the reporting of Nursing Facility days and costs for both Medicaid and crossover.  Also includes the reporting of hospice days."]
["LTC",25,"122115","LTC Rev-Exp Summary/Regional","Case management lines  added to LTC services (2.16 and 2.17)."]
["LTC",26,"122115","LTC Rev-Exp Summary/Regional","Revised the reporting of administrative expenses to allocate across populations.  The allocation methodology should be disclosed on the Notes schedule."]
["LTC",27,"122115","LTC Rev-Exp Instructions","Revised instructions to address the additions noted in 24 through 26, above."]
["LTC",28,"052016","LTC Rev-Exp Summary/Regional","Added Prior Calendar Year Adjustments column for the reporting of prior calendar year adjustments."]
["LTC",29,"052516","LTC Rev-Exp Summary/Regional","Corrected formulas."]
["LTC",30,"100116","LTC Rev-Exp Instructions","Clarified IBNP instructions to include the Prior Calendar Year adjustment column."]
["LTC",31,"040117","LTC Rev-Exp Summary/Regional","The \"Settlements\" line within each service section has been revised to also include expenses for alternative payment arrangements, as noted by the addition of \"AP.\""]
["LTC",32,"040117","LTC Rev-Exp Summary/Regional","Line 11.4.1 - Premium Deficiency Reserve has been added an replaces line 4.6 - Incentive Payments.  Incentive payments (and other alternative payment arrangements are to be reported on the appropriate Settlements/AP line."]
["LTC",null,"040117","LTC Rev-Exp Summary/Regional","The Net Investment section has been deleted.  This is no longer required."]
["LTC",33,"040117","LTC Subcap Summary/Regional","This schedule has been revised to no longer require subcap expenses to be split by rate group.  "]
["LTC",34,"040117","LTC Exp Benefits","Added the LTC Exp Benefits schedule to report expanded benefits by the type of benefit provided and for each rate group."]
["LTC",35,"100116","LTC Rev-Exp Instructions","Revised the instructions tab for the above changes as well as clarifying the Prior Year Adjustment column.  Also further clarified that revenue reported on Line 1.4 - Other Revenue shall be further disclosed on the Notes tab.  The Notes tab has been revised to include a schedule to report the components of Line 1.4."]
["ASR",1,"102014","ASR Instructions","Requires the 10/1 - 12/31 ASR Exhibit to be submitted with the 3/31 ASR Report."]
["ASR",2,"102014","ASR Exhibit","Calendar-year quarters have been added."]
["ASR",3,"102014","ASR Exhibit","Formulas added for totals and calculations.  Cells with formulas have been locked."]
["ASR",4,"102014","ASR Exhibit","Removed Pharmaceutical Rebates (line 2.3 on previous version)."]
["ASR",5,"121614","ASR Admin Max","This schedule has been added for the calculation of the Actuarially-Sound Administrative Maximum needed for the Achieved Savings Rebate."]
["ASR ",6,"121614","ASR Instructions","Instructions for the Actuarially-Sound Administrative Maximum revised to reference the ASR Admin Max schedule."]
["ASR ",7,"121614","ASR Instructions","Clarified instructions related to administrative expenditures to include Improving Health Care Quality Expenses Incurred."]
["ASR ",8,"031715","ASR Exhibit","Added formula in cells P18 and Q18 for Line 2.2 Change in IBNP Reserve for Calendar Year Total."]
["ASR ",9,"122115","ASR Instructions"," Revised instructions to no longer require the restated prior calendar year to be submitted on the Q1 ASR Exhibit.  Extended due date of Q1 report to June 1."]
["ASR",10,"052516","ASR Exhibit","Added Prior Calendar Year Adjustments column for the reporting of prior calendar year adjustments."]
["ASR",11,"100116","ASR Exhibit","Revised the reporting of adjustments to revenue to more clearly indicate that the ASR calculation is \"pre-tax.\"  Income taxes deducted for Federal MLR reporting shall be added back on line 1.7."]
["ASR",12,"100116","ASR Exhibit Instructions","Clarified instructions for Federal and State deductions from premium revenue to better align with Section 409.967(3), Florida Statutes and the SMMC contract."]
["ASR",13,"100116","ASR Admin Max","Revised instructions for Line 1.0 Plan Enrollment.  Total national enrollment should be used to determine the appropriate MMA admin max."]
["ASR",14,"040117","ASR Exhibit","Line 2.4.1 has been added for Premium Deficiency Reserve (and other reserve contributions) as a component of Benefit expense.  Previously, reserve account contributions was located in Administrative Expense.  Amounts on this line are to be reported as a negative and are excluded from the ASR calculation, per 409.967(3), Florida Statutes.  "]
["ASR ",15,"040117","ASR Exhibit Instructions","Instructions have been revised for the above change."]

{"sheet":"Jurat","index":4,"n_rows":40,"n_cols":8,"rows_kept":40,"merged":[[0,2,0,5],[0,6,0,7],[1,2,1,6],[2,2,2,5],[3,2,3,6],[3,7,3,8],[4,2,4,5],[5,2,5,6],[7,2,7,4],[10,2,10,4],[11,2,11,6],[12,2,12,6],[13,2,13,5],[15,1,15,2],[15,4,15,7],[16,1,16,2],[16,4,16,7],[17,1,17,2],[17,4,17,7],[18,1,18,2],[18,4,18,7],[19,1,19,2],[19,4,19,7],[20,1,20,2],[20,4,20,7],[21,1,21,2],[21,4,21,7],[22,1,22,2],[22,4,22,7],[23,1,23,2],[23,4,23,7],[24,1,24,2],[24,4,24,7],[27,2,27,6],[32,3,32,4]]}
["SMMC MMA",null,"HEALTH PLAN NAME",{"$nulls":3},"Calendar Year:"]
[null,"Yes"]
[null,"No","ADDRESS"]
["SMMC LTC",{"$nulls":6},"(street, city, zip)"]
[null,"Yes","PARENT COMPANY NAME"]
[null,"No"]
[]
[null,"CONTACT PERSON:"]
[null,"TELEPHONE:"]
[null,"FAX:"]
[null,"E-MAIL ADDRESS:"]
[null,null,"PRESIDENT, C.E.O."]
[]
[null,null,"OFFICERS AND DIRECTORS"]
[null,"Name:",null,null,"Title:"]
["1."]
["2."]
["3."]
["4."]
["5."]
["6."]
["7."]
["8."]
["9."]
["10."]
[]
[]
[null,null,"Company Filing Status:      (1) For-Profit     (2) Not-For-Profit"]
[]
[]
[]
[{"$nulls":3},"FOR THE QUARTER ENDING"]
[]
[]
[null,"-----------------------------------------------------------------------------"]
[null,"CEO/PRESIDENT'S SIGNATURE "]
[]
[null,"AUTHORITY GRANTED BY :"]
[null,"AGENCY FOR HEALTH CARE ADMINISTRATION  "]
[null," "]

{"sheet":"MMA Rev-Exp Instructions","index":5,"n_rows":118,"n_cols":4,"rows_kept":118,"hidden":true,"merged":[[19,0,19,2],[20,0,21,2],[20,3,21,3],[22,0,28,0],[29,0,30,2],[29,3,30,3],[31,0,39,0],[40,0,47,0],[48,0,51,0],[52,0,56,0],[57,0,61,0],[62,0,66,0],[67,0,74,0],[75,0,82,0],[83,0,87,0],[88,0,98,0],[99,0,99,2],[100,0,106,0],[107,0,113,0]]}
["MANAGED MEDICAL ASSISTANCE REVENUE AND EXPENSE SCHEDULE - INSTRUCTIONS"]
["QUARTERLY AND ANNUAL"]
[]
["Coverage:","Reported for MMA experience, by region and by eligibility group. Summary report aggregates all contracted regions."]
["Reporting Period:","Quarter YTD; each quarterly submission introduces a new quarter and updates prior quarters."]
["June 1","Q1 Revenue & Expense Schedule includes only January - March (paid through March)."]
["August 15","Q2 Revenue & Expense Schedule includes restated January - March, first look at April - June (all paid through June). "]
["November 15","Q3 Revenue & Expense Schedule includes restated January - March and April - June, first look at July - September (all paid through September)."]
["February 15","Q4 Revenue & Expense Schedule includes restated quarters 1 - 3, first look at October - December (all paid through December)."]
["May 1","Annual Revenue & Expense Schedule includes restated quarters 1-4 of prior calendar year, all paid through March."]
[]
["Health Plan:","Name or D/B/A of the reporting managed care plan."]
["Reporting Period:","Based upon the reporting periods identified above."]
["Paid Through:","Based on the paid through timeframes identified above."]
["Region:","Applicable only for Regional reports."]
[]
["Note 1:  The Prior Year Adjustment column shall be used to report all prior period activity, including changes in estimates."]
["Note 2:  Please exclude Medical School Pass-through Payments from the ASR Report."]
[]
["MEMBER MONTHS",null,null,"Number of members enrolled in each month.  Year-to-Date is the sum of the member months over the individual months of the period."]
["REVENUES"]
[]
["Revenues",1.1,"Capitation","Monthly premium payments earned on behalf of Medicaid recipients "]
[null,1.2,"Transplant Kick Payments","Amounts earned by plans for transplant services"]
[null,"1.3","Hepatitis C Kick Payments","Amounts earned by plans for Hepatitis C services"]
[null,"1.4.1","Maternity Kick Payments","Amounts earned by plans for Maternity services"]
[null,"1.5","ACA § 9010 related payments","Amounts earned by plans for the Health Insurance Providers Fee and associated tax gross-ups"]
[null,"1.6","Other Revenue","Plan-related revenue earned from other sources not listed in lines 1.1 through 1.4. -- does not include investment gains.  Report details of this income, including the type and amount, in the notes section of this report."]
[null,"1.7","Total Revenue","Sum of lines 1.1 through 1.6 (Direct business, not increased for reinsurance assumed and not reduced by reinsurance ceded)"]
["BENEFIT EXPENSES"]
[]
["Hospital Services",2.1,"Inpatient FFS","Expenses incurred for Inpatient facility charges billed on a UB-04 claim form, also known as the CMS-1450 form, including Statewide Inpatient Psychiatric Program services.  Expenses for maternity services should be reported in the Maternity Services section."]
[null,2.2,"Ending IBNP for Inpatient Hospital Services","Estimated amount for Inpatient Hospital Services incurred but not paid (IBNP).   Amounts should be \"Best Estimate\" and should not include margin or LAE.  The Prior Calendar Year column should include a reversal of the prior year's IBNP as claims experience develops."]
[null,2.3,"Outpatient FFS: ER","Expenses incurred for Outpatient facility charges for the Emergency Department billed on a UB-04 claim form, also known as the CMS-1450 form."]
[null,2.4,"Outpatient FFS: Other than ER ","Expenses incurred for Outpatient facility charges for other than the Emergency Department billed on a UB-04 claim form.  Includes ASC claims."]
[null,2.5,"Ending IBNP for Outpatient Hospital Services","Estimated amount for Outpatient Hospital Services incurred but not paid (IBNP).  Amounts should be \"Best Estimate\" and should not include margin or LAE.  The Prior Calendar Year column should include a reversal of the prior year's IBNP as claims experience develops."]
[null,"2.6","Subcapitated Hospital Services","Expenses incurred for Subcapitated payments to providers for Inpatient, Outpatient:  ER, and Outpatient:  Other than ER services."]
[null,"2.7","Hospital Service Settlements/AP","Expenses incurred for hospital services associated with provider, recipient, legal, and/or TPL settlements not included on lines 2.1 through 2.6.  Also includes alternative payment arrangements."]
[null,"2.7.1","Transplant Services","Expenses incurred for services covered by the global case rate payments for transplant services."]
[null,"2.8","Total Hospital Services","Sum of lines 2.1 through 2.7.1"]
["Professional Services",3.1,"Primary Care FFS","Expenses incurred for health plan staff or contracted professional practicing as a general or family practitioner, internist, pediatrician, obstetrician, gynecologist, advanced registered nurse practitioner, physician assistant, or other specialty approved by the Agency, who furnishes primary care and patient management services to an enrollee.  PCP Fee Increase payments shall be reported on line 3.4, below."]
[null,3.2,"Specialty Care FFS","Expenses incurred for health plan staff or contracted health professionals other than those identified in line 3.1 - Primary Care FFS."]
[null,3.3,"Other Professional FFS","Expenses incurred for services performed in a Rural Health Clinic, Federally Qualified Health Center, or County Health Department."]
[null,"3.4","§ 1202 PCP Payments to providers","Expenses incurred for Primary Care Physician increase payments issued to providers, through both FFS and subcapitation."]
[null,"3.5","Subcapitated Professional Services","Expenses incurred for subcapitated payments to providers for primary care, specialty care, and other professional services."]
[null,"3.6","Ending IBNP for Professional Services","Estimated amount for Professional Services incurred but not paid (IBNP).  Amounts should be \"Best Estimate\" and should not include margin or LAE.  The Prior Calendar Year column should include a reversal of the prior year's IBNP as claims experience develops."]
[null,"3.7","Professional Service Settlements","Expenses incurred for professional services associated with provider, recipient, legal, and/or TPL settlements not included on lines 3.1 through 3.6.  Also includes alternative payment arrangements."]
[null,"3.8","Total Physician Services","Sum of lines 3.1 through 3.7."]
["Maternity Services","4.1.1","Maternity Services","Expenses incurred for the bucket of maternity services associated with the maternity kick payment.  Include all maternity claims including inpatient and professional.  Do not report on the Inpatient or Professional Services lines."]
[null,"4.2.1","Ending IBNP for Maternity Services","Estimated amount for Maternity Services incurred but not paid (IBNP).  Amounts should be \"Best Estimate\" and should not include margin or LAE.  The Prior Calendar Year column should include a reversal of the prior year's IBNP as claims experience develops."]
[null,"4.3.1","Maternity Settlements/AP","Expenses incurred for Maternity services associated with provider, recipient, legal, and/or TPL settlements not included on lines 4.1.1 through 4.2.1.  Includes alternative payment methodologies."]
[null,"4.4.1","Total Maternity Services","Sum of lines 4.1.1 through 4.3.1"]
["Mental Health",5.1,"Mental Health & Substance Abuse FFS","Expenses incurred for services listed in the Community Behavioral Health Services and Mental Health Targeted Case Management Coverage and Limitation Handbooks.  "]
[null,5.2,"Mental Health & Substance Abuse Subcapitation","Expenses incurred for subcapitated payments to providers for Community Behavioral Health and Targeted Case Management services."]
[null,5.3,"Ending IBNP for Mental Health & Substance Abuse","Estimated amount for MH & SA Services incurred but not paid (IBNP) as of the end of the period.  Amounts should be \"Best Estimate\" and should not include margin or LAE."]
[null,"5.4","Mental Health Service Settlements","Expenses incurred for mental health services associated with provider, recipient, legal, and/or TPL settlements not included on lines 5.1 through 5.3.  Also includes alternative payment arrangements."]
[null,"5.5","Total Mental Health & Substance Abuse Services","Sum of lines 5.1 through 5.4."]
["Dental",6.1,"Dental FFS","Expenses incurred for services billed using ADA code of HCPCS Level II code beginning with \"D.\"  Include applicable dental services provided by FQHCs and RHCs."]
[null,6.2,"Dental Subcapitation","Expenses incurred for subcapitated payments to providers for dental services."]
[null,6.3,"Ending IBNP for Dental Services","Estimated amount for Dental Services incurred but not paid (IBNP).  Amounts should be \"Best Estimate\" and should not include margin or LAE.  The Prior Calendar Year column should include a reversal of the prior year's IBNP as claims experience develops."]
[null,"6.4","Dental Service Settlements","Expenses incurred for dental services associated with provider, recipient, legal, and/or TPL settlements not included on lines 6.1 through 6.3.  Also includes alternative payment arrangements."]
[null,"6.5","Total Dental Services","Sum of lines 6.1 through 6.4."]
["Transportation",7.1,"Transportation FFS","Expenses incurred for both emergency and non-emergency transportation services."]
[null,7.2,"Transportation Subcapitation","Expenses incurred for subcapitated payments to providers for transportation services."]
[null,7.3,"Ending IBNP for Transportation","Estimated amount for Transportation Services incurred but not paid (IBNP).  Amounts should be \"Best Estimate\" and should not include margin or LAE.  The Prior Calendar Year column should include a reversal of the prior year's IBNP as claims experience develops."]
[null,"7.4","Transportation Service Settlements","Expenses incurred for transportation services expense associated with provider, recipient, legal, and/or TPL settlements not included on lines 7.1 through 7.3.  Also includes alternative payment arrangements."]
[null,"7.5","Total Transportation Services","Sum of lines 7.1 through 7.4."]
["Pharmacy",8.1,"Prescription Drugs FFS","Expenses incurred for prescription drugs billed using NDC codes for drugs not administered in a physician's office or a facility setting, excluding amounts on line 8.2."]
[null,"8.2","Hepatitis C Prescription Drug FFS","Expenses incurred for prescription drugs billed for the treatment of Hepatitis C and not administered in a physician's office or a facility setting."]
[null,"8.3","Ending IBNP for Prescription Drugs","Estimated amount for Prescription Drugs incurred but not paid (IBNP).  Amounts should be \"Best Estimate\" and should not include margin or LAE.  The Prior Calendar Year column should include a reversal of the prior year's IBNP as claims experience develops."]
[null,"8.4","Prescription Drug Rebates ","Amount of prescription drug rebates received by the plan.  Reported as a negative amount."]
[null,"8.5","Ending accrual for Rebates receivable","Estimated amount for prescription drug rebates receivable but not collected.  Reported as a negative amount."]
[null,"8.6","Prescription Drugs Subcapitation","Expenses incurred for subcapitated payments to providers for prescription drug services."]
[null,"8.7","Prescription Drug Service Settlements","Expenses incurred for prescription drug services associated with provider, recipient, legal, and/or TPL settlements not included on lines 8.1 through 8.6.  Also includes alternative payment arrangements."]
[null,"8.8","Total Prescription Drugs","Sum of lines 8.1 through 8.7."]
["Other Services",9.1,"Home Health, Private Duty Nursing, Personal Care FFS","Expenses incurred to licensed home health agencies for services other than medical supplies, appliances, and durable medical equipment.  This includes the home health benefit available under the Medicaid State plan."]
[null,"9.2","Hospice FFS","Expenses incurred for hospice services. "]
[null,"9.3","DME FFS","Expenses incurred for licensed home health agencies and other providers for medical supplies, appliances, and durable medical equipment.  This service also includes repair of items as well as replacement parts."]
[null,"9.4","Other State Plan Services FFS","Amounts paid for other Medicaid State Plan services not listed in lines 2.1 through 9.3."]
[null,"9.5","Other Services Subcapitation","Expenses incurred for subcapitated payments to providers for home health, DME, and other Medicaid State Plan services."]
[null,"9.6","Ending IBNP for Other Services","Estimated amount for Other Services incurred but not paid (IBNP).  Amounts should be \"Best Estimate\" and should not include margin or LAE.  The Prior Calendar Year column should include a reversal of the prior year's IBNP as claims experience develops."]
[null,"9.7","Other Service Settlements","Expenses incurred for other services associated with provider, recipient, legal, and/or TPL settlements not included on lines 9.1 through 9.6.  Also includes alternative payment arrangements."]
[null,"9.8","Total Other Services","Sum of lines 9.1 through 9.7."]
["Expanded Benefits","10.1","Expanded Benefits FFS","Expenses incurred for services that may be offered by the health plan in excess of the amount, duration, and scope of services listed in the Medicaid Health Plan Contract, Attachment II, Sections V & VI."]
[null,"10.2","Expanded benefits Subcapitation","Expenses incurred for subcapitated payments to providers for Expanded Benefits services."]
[null,"10.3","Ending IBNP for Expanded Benefits","Estimated amount for Expanded Benefits services incurred but not paid (IBNP).  Amounts should be \"Best Estimate\" and should not include margin or LAE.  The Prior Calendar Year column should include a reversal of the prior year's IBNP as claims experience develops."]
[null,"10.4","Expanded Benefits Settlements","Expenses incurred for expanded benefits services associated with provider, recipient, legal, and/or TPL settlements not included on lines 10.1 through 10.3.  Also includes alternative payment arrangements."]
[null,"10.5","Total Expanded Benefits","Sum of lines 10.1 through 10.4."]
["Totals Before and After Reinsurance","11.1","Total Services Paid Directly FFS","Sum of lines 2.1, 2.3 through 2.4, 3.1 through 3.4, 4.1, 5.1, 6.1, 7.1, 8.1 through 8.2, 8.4 through 8.5, 9.1 through 9.4, 10.1."]
[null,"11.2","Total Services Paid Directly -- IBNP","Sum of lines 2.2, 2.5, 3.6, 4.2, 5.3, 6.3, 7.3, 8.3, 9.6, 10.3."]
[null,"11.3","Total Services Paid through Subcapitation","Sum of lines 2.6, 3.5, 5.2, 6.2, 7.2, 8.6, 9.5, 10.2."]
[null,"11.4","Total Services Paid by Settlements","Sum of lines 2.7, 3.7, 4.3, 5.4, 6.4, 7.4, 8.7, 9.7, 10.4."]
[null,"11.5","TPL & Fraud/Abuse Recoveries","Recoveries due to Third-Party Liability, Fraud & Abuse, and other overpayment recovery efforts not included in lines 11.1 through 11.3.  Reported as a negative amount."]
[null,"11.6.1","Premium Deficiency Reserve","Provision for Premium Deficiency Reserve."]
[null,"11.7","Subtotal Benefit Expense before Reinsurance","Sum of lines 11.1 through 11.6"]
[null,"11.8","Reinsurance Premiums","Amounts incurred by plans to authorized companies assuming risk."]
[null,"11.9","Reinsurance Recoveries","Amounts recovered and changes in accrued amounts recoverable from reinsurers on paid losses and on losses included in IBNP.  Reported as a negative amount."]
[null,"11.10","Net cost of Reinsurance","Sum of Line 11.8 and line 11.9"]
[null,"11.11","Grand Total Medical Benefit Expense Net of Reinsurance","Sum of line 11.7 plus line 11.10"]
["Administrative Expenses, Government-Mandated Assessments, Taxes, and Fees "]
["Administrative Expenses","12.1","Salaries & Benefits","Direct salary, benefit, and payroll tax expenses.  Reported separately for direct health plan expenses and corporate allocations."]
[null,"12.2","Administrative Services","Non-salary/benefit-related expenses for accounting, actuarial, risk management, legal, investment services, underwriting, etc.  Includes payments to parent company or other contracted entities.  Reported separately for direct health plan expenses and corporate allocations."]
[null,"12.3","Information Systems","Claims processing, pharmacy benefits management, and other information systems expenses.  Includes payments to parent company or contracted entities.  Reported separately for direct health plan expenses and corporate allocations."]
[null,"12.4","Marketing Expenses","Market research, marketing campaigns/advertising, public relations.  Reported separately for direct health plan expenses and corporate allocations."]
[null,"12.5","General  Administration","Direct & Allocated overhead, rent, utilities, supplies, insurance, and other operating expenses not specifically identified in lines 12.1 through 12.4.  Reported separately for direct health plan expenses and corporate allocations."]
[null,"12.6","Compliance/Regulatory","Expenses associated with fines, penalties, liquidated damages, or other compliance matters as identified/levied by governmental or other regulatory entities.  Reported separately for direct health plan expenses and corporate allocations."]
[null,"12.7","Total Administrative Expenses ","Sum of lines 12.1 through 12.6"]
["Government-Mandated Assessments, Taxes, and Fees Other Than Income Taxes","13.1","State Premium tax","Amounts paid or payable on premium revenue in 1.7"]
[null,"13.2","Department of Insurance Assessments","Amounts paid or payable related to premium revenue in 1.7"]
[null,"13.3","Section 9010 Health Insurance Providers Fee","Amounts payable for the HIPF calculated from amounts of premium revenue filed on Form 8963."]
[null,"13.4","Other 1","Additional assessments, taxes, and fees not reported on lines 13.1 through 13.3, as needed.  Additional information to be provided in the Notes section."]
[null,"13.5","Other 2","Additional assessments, taxes, and fees not reported on lines 13.1 through 13.3, as needed.  Additional information to be provided in the Notes section."]
[null,"13.6","Other 3","Additional assessments, taxes, and fees not reported on lines 13.1 through 13.3, as needed.  Additional information to be provided in the Notes section."]
[null,"13.7","Total ","Sum of lines 13.1 through 13.6"]
[null,"14.0","Grand Total Expenses","Sum of lines 11.11 and 12.7 and 13.7"]
[null,"15.0","Underwriting Gain / (Loss)  --- AKA Pre-tax Earnings from Operations","Line 1.7 minus 14"]
[null,"16.0","Income Tax Expense","Domestic federal, state, and local taxes based on income from operations.  Exclude income tax expense reported on lines 18.6 and 18.8."]
[null,"17.0","Net Underwriting Gain (Loss) from Operations","Line 15 minus 16"]

{"sheet":"MMA Rev-Exp Summary","index":6,"n_rows":107,"n_cols":59,"rows_kept":107,"hidden":true,"merged":[[6,3,6,13],[6,14,6,24],[6,25,6,35],[6,36,6,46],[6,48,6,58],[9,0,9,2],[10,0,16,0],[17,0,18,2],[17,3,17,13],[17,14,17,24],[17,25,17,35],[17,36,17,46],[17,48,17,58],[19,0,27,0],[28,0,35,0],[36,0,39,0],[40,0,44,0],[45,0,49,0],[50,0,54,0],[55,0,62,0],[63,0,70,0],[71,0,75,0],[76,0,86,0],[87,0,88,2],[87,3,87,13],[87,14,87,24],[87,25,87,35],[87,36,87,46],[87,48,87,58],[89,0,95,0],[96,0,102,0]]}
["MANAGED MEDICAL ASSISTANCE -- REVENUE AND EXPENSE SCHEDULE - SUMMARY"]
[]
["Health Plan:"]
["Reporting Period:"]
["Paid Through:"]
["Summary"]
[{"$nulls":3},"JANUARY - MARCH (Q1)",{"$nulls":10},"APRIL - JUNE (Q2)",{"$nulls":10},"JULY - SEPTEMBER (Q3)",{"$nulls":10},"OCTOBER - DECEMBER (Q4)",{"$nulls":11},"TOTAL (TO DATE)"]
[{"$nulls":3},"Total","TANF Non-SMI","TANF SMI","SSI Medicaid Only Non-SMI","SSI Medicaid Only SMI","Dual Eligible","Child Welfare","HIV/AIDS Dual Eligible","HIV/AIDS Medicaid Only","LTC Dual Eligible","LTC Medicaid Only","Total","TANF Non-SMI","TANF SMI","SSI Medicaid Only Non-SMI","SSI Medicaid Only SMI","Dual Eligible","Child Welfare","HIV/AIDS Dual Eligible","HIV/AIDS Medicaid Only","LTC Dual Eligible","LTC Medicaid Only","Total","TANF Non-SMI","TANF SMI","SSI Medicaid Only Non-SMI","SSI Medicaid Only SMI","Dual Eligible","Child Welfare","HIV/AIDS Dual Eligible","HIV/AIDS Medicaid Only","LTC Dual Eligible","LTC Medicaid Only","Total","TANF Non-SMI","TANF SMI","SSI Medicaid Only Non-SMI","SSI Medicaid Only SMI","Dual Eligible","Child Welfare","HIV/AIDS Dual Eligible","HIV/AIDS Medicaid Only","LTC Dual Eligible","LTC Medicaid Only","Prior Year Adjustments","Total","TANF Non-SMI","TANF SMI","SSI Medicaid Only Non-SMI","SSI Medicaid Only SMI","Dual Eligible","Child Welfare","HIV/AIDS Dual Eligible","HIV/AIDS Medicaid Only","LTC Dual Eligible","LTC Medicaid Only"]
["MEMBER MONTHS",null,null,{"$f":"SUM(E9:N9)","v":0},{"$f":"SUM('MMA Rev-Exp Region 1:MMA Rev-Exp Region 11'!E9)","v":0},{"$f":"SUM('MMA Rev-Exp Region 1:MMA Rev-Exp Region 11'!F9)","v":0},{"$f":"SUM('MMA Rev-Exp Region 1:MMA Rev-Exp Region 11'!G9)","v":0},{"$f":"SUM('MMA Rev-Exp Region 1:MMA Rev-Exp Region 11'!H9)","v":0},{"$f":"SUM('MMA Rev-Exp Region 1:MMA Rev-Exp Region 11'!I9)","v":0},{"$f":"SUM('MMA Rev-Exp Region 1:MMA Rev-Exp Region 11'!J9)","v":0},{"$f":"SUM('MMA Rev-Exp Region 1:MMA Rev-Exp Region 11'!K9)","v":0},{"$f":"SUM('MMA Rev-Exp Region 1:MMA Rev-Exp Region 11'!L9)","v":0},{"$f":"SUM('MMA Rev-Exp Region 1:MMA Rev-Exp Region 11'!M9)","v":0},{"$f":"SUM('MMA Rev-Exp Region 1:MMA Rev-Exp Region 11'!N9)","v":0},{"$f":"SUM(P9:Y9)","v":0},{"$f":"SUM('MMA Rev-Exp Region 1:MMA Rev-Exp Region 11'!P9)","v":0},{"$f":"SUM('MMA Rev-Exp Region 1:MMA Rev-Exp Region 11'!Q9)","v":0},{"$f":"SUM('MMA Rev-Exp Region 1:MMA Rev-Exp Region 11'!R9)","v":0},{"$f":"SUM('MMA Rev-Exp Region 1:MMA Rev-Exp Region 11'!S9)","v":0},{"$f":"SUM('MMA Rev-Exp Region 1:MMA Rev-Exp Region 11'!T9)","v":0},{"$f":"SUM('MMA Rev-Exp Region 1:MMA Rev-Exp Region 11'!U9)","v":0},{"$f":"SUM('MMA Rev-Exp Region 1:MMA Rev-Exp Region 11'!V9)","v":0},{"$f":"SUM('MMA Rev-Exp Region 1:MMA Rev-Exp Region 11'!W9)","v":0},{"$f":"SUM('MMA Rev-Exp Region 1:MMA Rev-Exp Region 11'!X9)","v":0},{"$f":"SUM('MMA Rev-Exp Region 1:MMA Rev-Exp Region 11'!Y9)","v":0},{"$f":"SUM(AA9:AJ9)","v":0},{"$f":"SUM('MMA Rev-Exp Region 1:MMA Rev-Exp Region 11'!AA9)","v":0},{"$f":"SUM('MMA Rev-Exp Region 1:MMA Rev-Exp Region 11'!AB9)","v":0},{"$f":"SUM('MMA Rev-Exp Region 1:MMA Rev-Exp Region 11'!AC9)","v":0},{"$f":"SUM('MMA Rev-Exp Region 1:MMA Rev-Exp Region 11'!AD9)","v":0},{"$f":"SUM('MMA Rev-Exp Region 1:MMA Rev-Exp Region 11'!AE9)","v":0},{"$f":"SUM('MMA Rev-Exp Region 1:MMA Rev-Exp Region 11'!AF9)","v":0},{"$f":"SUM('MMA Rev-Exp Region 1:MMA Rev-Exp Region 11'!AG9)","v":0},{"$f":"SUM('MMA Rev-Exp Region 1:MMA Rev-Exp Region 11'!AH9)","v":0},{"$f":"SUM('MMA Rev-Exp Region 1:MMA Rev-Exp Region 11'!AI9)","v":0},{"$f":"SUM('MMA Rev-Exp Region 1:MMA Rev-Exp Region 11'!AJ9)","v":0},{"$f":"SUM(AL9:AU9)","v":0},{"$f":"SUM('MMA Rev-Exp Region 1:MMA Rev-Exp Region 11'!AL9)","v":0},{"$f":"SUM('MMA Rev-Exp Region 1:MMA Rev-Exp Region 11'!AM9)","v":0},{"$f":"SUM('MMA Rev-Exp Region 1:MMA Rev-Exp Region 11'!AN9)","v":0},{"$f":"SUM('MMA Rev-Exp Region 1:MMA Rev-Exp Region 11'!AO9)","v":0},{"$f":"SUM('MMA Rev-Exp Region 1:MMA Rev-Exp Region 11'!AP9)","v":0},{"$f":"SUM('MMA Rev-Exp Region 1:MMA Rev-Exp Region 11'!AQ9)","v":0},{"$f":"SUM('MMA Rev-Exp Region 1:MMA Rev-Exp Region 11'!AR9)","v":0},{"$f":"SUM('MMA Rev-Exp Region 1:MMA Rev-Exp Region 11'!AS9)","v":0},{"$f":"SUM('MMA Rev-Exp Region 1:MMA Rev-Exp Region 11'!AT9)","v":0},{"$f":"SUM('MMA Rev-Exp Region 1:MMA Rev-Exp Region 11'!AU9)","v":0},{"$f":"SUM('MMA Rev-Exp Region 1:MMA Rev-Exp Region 11'!AV9)","v":0},{"$f":"AK9+Z9+O9+D9+AV9","v":0},{"$f":"SUM('MMA Rev-Exp Region 1:MMA Rev-Exp Region 11'!AX9)","v":0},{"$f":"SUM('MMA Rev-Exp Region 1:MMA Rev-Exp Region 11'!AY9)","v":0},{"$f":"SUM('MMA Rev-Exp Region 1:MMA Rev-Exp Region 11'!AZ9)","v":0},{"$f":"SUM('MMA Rev-Exp Region 1:MMA Rev-Exp Region 11'!BA9)","v":0},{"$f":"SUM('MMA Rev-Exp Region 1:MMA Rev-Exp Region 11'!BB9)","v":0},{"$f":"SUM('MMA Rev-Exp Region 1:MMA Rev-Exp Region 11'!BC9)","v":0},{"$f":"SUM('MMA Rev-Exp Region 1:MMA Rev-Exp Region 11'!BD9)","v":0},{"$f":"SUM('MMA Rev-Exp Region 1:MMA Rev-Exp Region 11'!BE9)","v":0},{"$f":"SUM('MMA Rev-Exp Region 1:MMA Rev-Exp Region 11'!BF9)","v":0},{"$f":"SUM('MMA Rev-Exp Region 1:MMA Rev-Exp Region 11'!BG9)","v":0}]
["REVENUES"]
["Revenues",1.1,"Capitation",{"$f":"SUM(E11:N11)","v":0},{"$f":"SUM('MMA Rev-Exp Region 1:MMA Rev-Exp Region 11'!E11)","v":0},{"$f":"SUM('MMA Rev-Exp Region 1:MMA Rev-Exp Region 11'!F11)","v":0},{"$f":"SUM('MMA Rev-Exp Region 1:MMA Rev-Exp Region 11'!G11)","v":0},{"$f":"SUM('MMA Rev-Exp Region 1:MMA Rev-Exp Region 11'!H11)","v":0},{"$f":"SUM('MMA Rev-Exp Region 1:MMA Rev-Exp Region 11'!I11)","v":0},{"$f":"SUM('MMA Rev-Exp Region 1:MMA Rev-Exp Region 11'!J11)","v":0},{"$f":"SUM('MMA Rev-Exp Region 1:MMA Rev-Exp Region 11'!K11)","v":0},{"$f":"SUM('MMA Rev-Exp Region 1:MMA Rev-Exp Region 11'!L11)","v":0},{"$f":"SUM('MMA Rev-Exp Region 1:MMA Rev-Exp Region 11'!M11)","v":0},{"$f":"SUM('MMA Rev-Exp Region 1:MMA Rev-Exp Region 11'!N11)","v":0},{"$f":"SUM(P11:Y11)","v":0},{"$f":"SUM('MMA Rev-Exp Region 1:MMA Rev-Exp Region 11'!P11)","v":0},{"$f":"SUM('MMA Rev-Exp Region 1:MMA Rev-Exp Region 11'!Q11)","v":0},{"$f":"SUM('MMA Rev-Exp Region 1:MMA Rev-Exp Region 11'!R11)","v":0},{"$f":"SUM('MMA Rev-Exp Region 1:MMA Rev-Exp Region 11'!S11)","v":0},{"$f":"SUM('MMA Rev-Exp Region 1:MMA Rev-Exp Region 11'!T11)","v":0},{"$f":"SUM('MMA Rev-Exp Region 1:MMA Rev-Exp Region 11'!U11)","v":0},{"$f":"SUM('MMA Rev-Exp Region 1:MMA Rev-Exp Region 11'!V11)","v":0},{"$f":"SUM('MMA Rev-Exp Region 1:MMA Rev-Exp Region 11'!W11)","v":0},{"$f":"SUM('MMA Rev-Exp Region 1:MMA Rev-Exp Region 11'!X11)","v":0},{"$f":"SUM('MMA Rev-Exp Region 1:MMA Rev-Exp Region 11'!Y11)","v":0},{"$f":"SUM(AA11:AJ11)","v":0},{"$f":"SUM('MMA Rev-Exp Region 1:MMA Rev-Exp Region 11'!AA11)","v":0},{"$f":"SUM('MMA Rev-Exp Region 1:MMA Rev-Exp Region 11'!AB11)","v":0},{"$f":"SUM('MMA Rev-Exp Region 1:MMA Rev-Exp Region 11'!AC11)","v":0},{"$f":"SUM('MMA Rev-Exp Region 1:MMA Rev-Exp Region 11'!AD11)","v":0},{"$f":"SUM('MMA Rev-Exp Region 1:MMA Rev-Exp Region 11'!AE11)","v":0},{"$f":"SUM('MMA Rev-Exp Region 1:MMA Rev-Exp Region 11'!AF11)","v":0},{"$f":"SUM('MMA Rev-Exp Region 1:MMA Rev-Exp Region 11'!AG11)","v":0},{"$f":"SUM('MMA Rev-Exp Region 1:MMA Rev-Exp Region 11'!AH11)","v":0},{"$f":"SUM('MMA Rev-Exp Region 1:MMA Rev-Exp Region 11'!AI11)","v":0},{"$f":"SUM('MMA Rev-Exp Region 1:MMA Rev-Exp Region 11'!AJ11)","v":0},{"$f":"SUM(AL11:AU11)","v":0},{"$f":"SUM('MMA Rev-Exp Region 1:MMA Rev-Exp Region 11'!AL11)","v":0},{"$f":"SUM('MMA Rev-Exp Region 1:MMA Rev-Exp Region 11'!AM11)","v":0},{"$f":"SUM('MMA Rev-Exp Region 1:MMA Rev-Exp Region 11'!AN11)","v":0},{"$f":"SUM('MMA Rev-Exp Region 1:MMA Rev-Exp Region 11'!AO11)","v":0},{"$f":"SUM('MMA Rev-Exp Region 1:MMA Rev-Exp Region 11'!AP11)","v":0},{"$f":"SUM('MMA Rev-Exp Region 1:MMA Rev-Exp Region 11'!AQ11)","v":0},{"$f":"SUM('MMA Rev-Exp Region 1:MMA Rev-Exp Region 11'!AR11)","v":0},{"$f":"SUM('MMA Rev-Exp Region 1:MMA Rev-Exp Region 11'!AS11)","v":0},{"$f":"SUM('MMA Rev-Exp Region 1:MMA Rev-Exp Region 11'!AT11)","v":0},{"$f":"SUM('MMA Rev-Exp Region 1:MMA Rev-Exp Region 11'!AU11)","v":0},{"$f":"SUM('MMA Rev-Exp Region 1:MMA Rev-Exp Region 11'!AV11)","v":0},{"$f":"SUM(AX11:BG11)+AV11","v":0},{"$f":"SUM('MMA Rev-Exp Region 1:MMA Rev-Exp Region 11'!AX11)","v":0},{"$f":"SUM('MMA Rev-Exp Region 1:MMA Rev-Exp Region 11'!AY11)","v":0},{"$f":"SUM('MMA Rev-Exp Region 1:MMA Rev-Exp Region 11'!AZ11)","v":0},{"$f":"SUM('MMA Rev-Exp Region 1:MMA Rev-Exp Region 11'!BA11)","v":0},{"$f":"SUM('MMA Rev-Exp Region 1:MMA Rev-Exp Region 11'!BB11)","v":0},{"$f":"SUM('MMA Rev-Exp Region 1:MMA Rev-Exp Region 11'!BC11)","v":0},{"$f":"SUM('MMA Rev-Exp Region 1:MMA Rev-Exp Region 11'!BD11)","v":0},{"$f":"SUM('MMA Rev-Exp Region 1:MMA Rev-Exp Region 11'!BE11)","v":0},{"$f":"SUM('MMA Rev-Exp Region 1:MMA Rev-Exp Region 11'!BF11)","v":0},{"$f":"SUM('MMA Rev-Exp Region 1:MMA Rev-Exp Region 11'!BG11)","v":0}]
[null,1.2,"Transplant Kick Payments",0,{"$f":"SUM('MMA Rev-Exp Region 1:MMA Rev-Exp Region 11'!E12)","v":0},{"$f":"SUM('MMA Rev-Exp Region 1:MMA Rev-Exp Region 11'!F12)","v":0},{"$f":"SUM('MMA Rev-Exp Region 1:MMA Rev-Exp Region 11'!G12)","v":0},{"$f":"SUM('MMA Rev-Exp Region 1:MMA Rev-Exp Region 11'!H12)","v":0},{"$f":"SUM('MMA Rev-Exp Region 1:MMA Rev-Exp Region 11'!I12)","v":0},{"$f":"SUM('MMA Rev-Exp Region 1:MMA Rev-Exp Region 11'!J12)","v":0},{"$f":"SUM('MMA Rev-Exp Region 1:MMA Rev-Exp Region 11'!K12)","v":0},{"$f":"SUM('MMA Rev-Exp Region 1:MMA Rev-Exp Region 11'!L12)","v":0},{"$f":"SUM('MMA Rev-Exp Region 1:MMA Rev-Exp Region 11'!M12)","v":0},{"$f":"SUM('MMA Rev-Exp Region 1:MMA Rev-Exp Region 11'!N12)","v":0},0,{"$f":"SUM('MMA Rev-Exp Region 1:MMA Rev-Exp Region 11'!P12)","v":0},{"$f":"SUM('MMA Rev-Exp Region 1:MMA Rev-Exp Region 11'!Q12)","v":0},{"$f":"SUM('MMA Rev-Exp Region 1:MMA Rev-Exp Region 11'!R12)","v":0},{"$f":"SUM('MMA Rev-Exp Region 1:MMA Rev-Exp Region 11'!S12)","v":0},{"$f":"SUM('MMA Rev-Exp Region 1:MMA Rev-Exp Region 11'!T12)","v":0},{"$f":"SUM('MMA Rev-Exp Region 1:MMA Rev-Exp Region 11'!U12)","v":0},{"$f":"SUM('MMA Rev-Exp Region 1:MMA Rev-Exp Region 11'!V12)","v":0},{"$f":"SUM('MMA Rev-Exp Region 1:MMA Rev-Exp Region 11'!W12)","v":0},{"$f":"SUM('MMA Rev-Exp Region 1:MMA Rev-Exp Region 11'!X12)","v":0},{"$f":"SUM('MMA Rev-Exp Region 1:MMA Rev-Exp Region 11'!Y12)","v":0},0,{"$f":"SUM('MMA Rev-Exp Region 1:MMA Rev-Exp Region 11'!AA12)","v":0},{"$f":"SUM('MMA Rev-Exp Region 1:MMA Rev-Exp Region 11'!AB12)","v":0},{"$f":"SUM('MMA Rev-Exp Region 1:MMA Rev-Exp Region 11'!AC12)","v":0},{"$f":"SUM('MMA Rev-Exp Region 1:MMA Rev-Exp Region 11'!AD12)","v":0},{"$f":"SUM('MMA Rev-Exp Region 1:MMA Rev-Exp Region 11'!AE12)","v":0},{"$f":"SUM('MMA Rev-Exp Region 1:MMA Rev-Exp Region 11'!AF12)","v":0},{"$f":"SUM('MMA Rev-Exp Region 1:MMA Rev-Exp Region 11'!AG12)","v":0},{"$f":"SUM('MMA Rev-Exp Region 1:MMA Rev-Exp Region 11'!AH12)","v":0},{"$f":"SUM('MMA Rev-Exp Region 1:MMA Rev-Exp Region 11'!AI12)","v":0},{"$f":"SUM('MMA Rev-Exp Region 1:MMA Rev-Exp Region 11'!AJ12)","v":0},0,{"$f":"SUM('MMA Rev-Exp Region 1:MMA Rev-Exp Region 11'!AL12)","v":0},{"$f":"SUM('MMA Rev-Exp Region 1:MMA Rev-Exp Region 11'!AM12)","v":0},{"$f":"SUM('MMA Rev-Exp Region 1:MMA Rev-Exp Region 11'!AN12)","v":0},{"$f":"SUM('MMA Rev-Exp Region 1:MMA Rev-Exp Region 11'!AO12)","v":0},{"$f":"SUM('MMA Rev-Exp Region 1:MMA Rev-Exp Region 11'!AP12)","v":0},{"$f":"SUM('MMA Rev-Exp Region 1:MMA Rev-Exp Region 11'!AQ12)","v":0},{"$f":"SUM('MMA Rev-Exp Region 1:MMA Rev-Exp Region 11'!AR12)","v":0},{"$f":"SUM('MMA Rev-Exp Region 1:MMA Rev-Exp Region 11'!AS12)","v":0},{"$f":"SUM('MMA Rev-Exp Region 1:MMA Rev-Exp Region 11'!AT12)","v":0},{"$f":"SUM('MMA Rev-Exp Region 1:MMA Rev-Exp Region 11'!AU12)","v":0},{"$f":"SUM('MMA Rev-Exp Region 1:MMA Rev-Exp Region 11'!AV12)","v":0},{"$f":"SUM(AX12:BG12)+AV12","v":0},{"$f":"SUM('MMA Rev-Exp Region 1:MMA Rev-Exp Region 11'!AX12)","v":0},{"$f":"SUM('MMA Rev-Exp Region 1:MMA Rev-Exp Region 11'!AY12)","v":0},{"$f":"SUM('MMA Rev-Exp Region 1:MMA Rev-Exp Region 11'!AZ12)","v":0},{"$f":"SUM('MMA Rev-Exp Region 1:MMA Rev-Exp Region 11'!BA12)","v":0},{"$f":"SUM('MMA Rev-Exp Region 1:MMA Rev-Exp Region 11'!BB12)","v":0},{"$f":"SUM('MMA Rev-Exp Region 1:MMA Rev-Exp Region 11'!BC12)","v":0},{"$f":"SUM('MMA Rev-Exp Region 1:MMA Rev-Exp Region 11'!BD12)","v":0},{"$f":"SUM('MMA Rev-Exp Region 1:MMA Rev-Exp Region 11'!BE12)","v":0},{"$f":"SUM('MMA Rev-Exp Region 1:MMA Rev-Exp Region 11'!BF12)","v":0},{"$f":"SUM('MMA Rev-Exp Region 1:MMA Rev-Exp Region 11'!BG12)","v":0}]
[null,"1.3","Hepatitis C Kick Payments",0,{"$f":"SUM('MMA Rev-Exp Region 1:MMA Rev-Exp Region 11'!E13)","v":0},{"$f":"SUM('MMA Rev-Exp Region 1:MMA Rev-Exp Region 11'!F13)","v":0},{"$f":"SUM('MMA Rev-Exp Region 1:MMA Rev-Exp Region 11'!G13)","v":0},{"$f":"SUM('MMA Rev-Exp Region 1:MMA Rev-Exp Region 11'!H13)","v":0},{"$f":"SUM('MMA Rev-Exp Region 1:MMA Rev-Exp Region 11'!I13)","v":0},{"$f":"SUM('MMA Rev-Exp Region 1:MMA Rev-Exp Region 11'!J13)","v":0},{"$f":"SUM('MMA Rev-Exp Region 1:MMA Rev-Exp Region 11'!K13)","v":0},{"$f":"SUM('MMA Rev-Exp Region 1:MMA Rev-Exp Region 11'!L13)","v":0},{"$f":"SUM('MMA Rev-Exp Region 1:MMA Rev-Exp Region 11'!M13)","v":0},{"$f":"SUM('MMA Rev-Exp Region 1:MMA Rev-Exp Region 11'!N13)","v":0},0,{"$f":"SUM('MMA Rev-Exp Region 1:MMA Rev-Exp Region 11'!P13)","v":0},{"$f":"SUM('MMA Rev-Exp Region 1:MMA Rev-Exp Region 11'!Q13)","v":0},{"$f":"SUM('MMA Rev-Exp Region 1:MMA Rev-Exp Region 11'!R13)","v":0},{"$f":"SUM('MMA Rev-Exp Region 1:MMA Rev-Exp Region 11'!S13)","v":0},{"$f":"SUM('MMA Rev-Exp Region 1:MMA Rev-Exp Region 11'!T13)","v":0},{"$f":"SUM('MMA Rev-Exp Region 1:MMA Rev-Exp Region 11'!U13)","v":0},{"$f":"SUM('MMA Rev-Exp Region 1:MMA Rev-Exp Region 11'!V13)","v":0},{"$f":"SUM('MMA Rev-Exp Region 1:MMA Rev-Exp Region 11'!W13)","v":0},{"$f":"SUM('MMA Rev-Exp Region 1:MMA Rev-Exp Region 11'!X13)","v":0},{"$f":"SUM('MMA Rev-Exp Region 1:MMA Rev-Exp Region 11'!Y13)","v":0},0,{"$f":"SUM('MMA Rev-Exp Region 1:MMA Rev-Exp Region 11'!AA13)","v":0},{"$f":"SUM('MMA Rev-Exp Region 1:MMA Rev-Exp Region 11'!AB13)","v":0},{"$f":"SUM('MMA Rev-Exp Region 1:MMA Rev-Exp Region 11'!AC13)","v":0},{"$f":"SUM('MMA Rev-Exp Region 1:MMA Rev-Exp Region 11'!AD13)","v":0},{"$f":"SUM('MMA Rev-Exp Region 1:MMA Rev-Exp Region 11'!AE13)","v":0},{"$f":"SUM('MMA Rev-Exp Region 1:MMA Rev-Exp Region 11'!AF13)","v":0},{"$f":"SUM('MMA Rev-Exp Region 1:MMA Rev-Exp Region 11'!AG13)","v":0},{"$f":"SUM('MMA Rev-Exp Region 1:MMA Rev-Exp Region 11'!AH13)","v":0},{"$f":"SUM('MMA Rev-Exp Region 1:MMA Rev-Exp Region 11'!AI13)","v":0},{"$f":"SUM('MMA Rev-Exp Region 1:MMA Rev-Exp Region 11'!AJ13)","v":0},0,{"$f":"SUM('MMA Rev-Exp Region 1:MMA Rev-Exp Region 11'!AL13)","v":0},{"$f":"SUM('MMA Rev-Exp Region 1:MMA Rev-Exp Region 11'!AM13)","v":0},{"$f":"SUM('MMA Rev-Exp Region 1:MMA Rev-Exp Region 11'!AN13)","v":0},{"$f":"SUM('MMA Rev-Exp Region 1:MMA Rev-Exp Region 11'!AO13)","v":0},{"$f":"SUM('MMA Rev-Exp Region 1:MMA Rev-Exp Region 11'!AP13)","v":0},{"$f":"SUM('MMA Rev-Exp Region 1:MMA Rev-Exp Region 11'!AQ13)","v":0},{"$f":"SUM('MMA Rev-Exp Region 1:MMA Rev-Exp Region 11'!AR13)","v":0},{"$f":"SUM('MMA Rev-Exp Region 1:MMA Rev-Exp Region 11'!AS13)","v":0},{"$f":"SUM('MMA Rev-Exp Region 1:MMA Rev-Exp Region 11'!AT13)","v":0},{"$f":"SUM('MMA Rev-Exp Region 1:MMA Rev-Exp Region 11'!AU13)","v":0},{"$f":"SUM('MMA Rev-Exp Region 1:MMA Rev-Exp Region 11'!AV13)","v":0},0,{"$f":"SUM('MMA Rev-Exp Region 1:MMA Rev-Exp Region 11'!AX13)","v":0},{"$f":"SUM('MMA Rev-Exp Region 1:MMA Rev-Exp Region 11'!AY13)","v":0},{"$f":"SUM('MMA Rev-Exp Region 1:MMA Rev-Exp Region 11'!AZ13)","v":0},{"$f":"SUM('MMA Rev-Exp Region 1:MMA Rev-Exp Region 11'!BA13)","v":0},{"$f":"SUM('MMA Rev-Exp Region 1:MMA Rev-Exp Region 11'!BB13)","v":0},{"$f":"SUM('MMA Rev-Exp Region 1:MMA Rev-Exp Region 11'!BC13)","v":0},{"$f":"SUM('MMA Rev-Exp Region 1:MMA Rev-Exp Region 11'!BD13)","v":0},{"$f":"SUM('MMA Rev-Exp Region 1:MMA Rev-Exp Region 11'!BE13)","v":0},{"$f":"SUM('MMA Rev-Exp Region 1:MMA Rev-Exp Region 11'!BF13)","v":0},{"$f":"SUM('MMA Rev-Exp Region 1:MMA Rev-Exp Region 11'!BG13)","v":0}]
[null,"1.4.1","Maternity Kick Payments",0,{"$f":"SUM('MMA Rev-Exp Region 1:MMA Rev-Exp Region 11'!E14)","v":0},{"$f":"SUM('MMA Rev-Exp Region 1:MMA Rev-Exp Region 11'!F14)","v":0},{"$f":"SUM('MMA Rev-Exp Region 1:MMA Rev-Exp Region 11'!G14)","v":0},{"$f":"SUM('MMA Rev-Exp Region 1:MMA Rev-Exp Region 11'!H14)","v":0},{"$f":"SUM('MMA Rev-Exp Region 1:MMA Rev-Exp Region 11'!I14)","v":0},{"$f":"SUM('MMA Rev-Exp Region 1:MMA Rev-Exp Region 11'!J14)","v":0},{"$f":"SUM('MMA Rev-Exp Region 1:MMA Rev-Exp Region 11'!K14)","v":0},{"$f":"SUM('MMA Rev-Exp Region 1:MMA Rev-Exp Region 11'!L14)","v":0},{"$f":"SUM('MMA Rev-Exp Region 1:MMA Rev-Exp Region 11'!M14)","v":0},{"$f":"SUM('MMA Rev-Exp Region 1:MMA Rev-Exp Region 11'!N14)","v":0},0,{"$f":"SUM('MMA Rev-Exp Region 1:MMA Rev-Exp Region 11'!P14)","v":0},{"$f":"SUM('MMA Rev-Exp Region 1:MMA Rev-Exp Region 11'!Q14)","v":0},{"$f":"SUM('MMA Rev-Exp Region 1:MMA Rev-Exp Region 11'!R14)","v":0},{"$f":"SUM('MMA Rev-Exp Region 1:MMA Rev-Exp Region 11'!S14)","v":0},{"$f":"SUM('MMA Rev-Exp Region 1:MMA Rev-Exp Region 11'!T14)","v":0},{"$f":"SUM('MMA Rev-Exp Region 1:MMA Rev-Exp Region 11'!U14)","v":0},{"$f":"SUM('MMA Rev-Exp Region 1:MMA Rev-Exp Region 11'!V14)","v":0},{"$f":"SUM('MMA Rev-Exp Region 1:MMA Rev-Exp Region 11'!W14)","v":0},{"$f":"SUM('MMA Rev-Exp Region 1:MMA Rev-Exp Region 11'!X14)","v":0},{"$f":"SUM('MMA Rev-Exp Region 1:MMA Rev-Exp Region 11'!Y14)","v":0},0,{"$f":"SUM('MMA Rev-Exp Region 1:MMA Rev-Exp Region 11'!AA14)","v":0},{"$f":"SUM('MMA Rev-Exp Region 1:MMA Rev-Exp Region 11'!AB14)","v":0},{"$f":"SUM('MMA Rev-Exp Region 1:MMA Rev-Exp Region 11'!AC14)","v":0},{"$f":"SUM('MMA Rev-Exp Region 1:MMA Rev-Exp Region 11'!AD14)","v":0},{"$f":"SUM('MMA Rev-Exp Region 1:MMA Rev-Exp Region 11'!AE14)","v":0},{"$f":"SUM('MMA Rev-Exp Region 1:MMA Rev-Exp Region 11'!AF14)","v":0},{"$f":"SUM('MMA Rev-Exp Region 1:MMA Rev-Exp Region 11'!AG14)","v":0},{"$f":"SUM('MMA Rev-Exp Region 1:MMA Rev-Exp Region 11'!AH14)","v":0},{"$f":"SUM('MMA Rev-Exp Region 1:MMA Rev-Exp Region 11'!AI14)","v":0},{"$f":"SUM('MMA Rev-Exp Region 1:MMA Rev-Exp Region 11'!AJ14)","v":0},0,{"$f":"SUM('MMA Rev-Exp Region 1:MMA Rev-Exp Region 11'!AL14)","v":0},{"$f":"SUM('MMA Rev-Exp Region 1:MMA Rev-Exp Region 11'!AM14)","v":0},{"$f":"SUM('MMA Rev-Exp Region 1:MMA Rev-Exp Region 11'!AN14)","v":0},{"$f":"SUM('MMA Rev-Exp Region 1:MMA Rev-Exp Region 11'!AO14)","v":0},{"$f":"SUM('MMA Rev-Exp Region 1:MMA Rev-Exp Region 11'!AP14)","v":0},{"$f":"SUM('MMA Rev-Exp Region 1:MMA Rev-Exp Region 11'!AQ14)","v":0},{"$f":"SUM('MMA Rev-Exp Region 1:MMA Rev-Exp Region 11'!AR14)","v":0},{"$f":"SUM('MMA Rev-Exp Region 1:MMA Rev-Exp Region 11'!AS14)","v":0},{"$f":"SUM('MMA Rev-Exp Region 1:MMA Rev-Exp Region 11'!AT14)","v":0},{"$f":"SUM('MMA Rev-Exp Region 1:MMA Rev-Exp Region 11'!AU14)","v":0},{"$f":"SUM('MMA Rev-Exp Region 1:MMA Rev-Exp Region 11'!AV14)","v":0},0,{"$f":"SUM('MMA Rev-Exp Region 1:MMA Rev-Exp Region 11'!AX14)","v":0},{"$f":"SUM('MMA Rev-Exp Region 1:MMA Rev-Exp Region 11'!AY14)","v":0},{"$f":"SUM('MMA Rev-Exp Region 1:MMA Rev-Exp Region 11'!AZ14)","v":0},{"$f":"SUM('MMA Rev-Exp Region 1:MMA Rev-Exp Region 11'!BA14)","v":0},{"$f":"SUM('MMA Rev-Exp Region 1:MMA Rev-Exp Region 11'!BB14)","v":0},{"$f":"SUM('MMA Rev-Exp Region 1:MMA Rev-Exp Region 11'!BC14)","v":0},{"$f":"SUM('MMA Rev-Exp Region 1:MMA Rev-Exp Region 11'!BD14)","v":0},{"$f":"SUM('MMA Rev-Exp Region 1:MMA Rev-Exp Region 11'!BE14)","v":0},{"$f":"SUM('MMA Rev-Exp Region 1:MMA Rev-Exp Region 11'!BF14)","v":0},{"$f":"SUM('MMA Rev-Exp Region 1:MMA Rev-Exp Region 11'!BG14)","v":0}]
[null,"1.5","ACA § 9010 related payments",0,{"$f":"SUM('MMA Rev-Exp Region 1:MMA Rev-Exp Region 11'!E15)","v":0},{"$f":"SUM('MMA Rev-Exp Region 1:MMA Rev-Exp Region 11'!F15)","v":0},{"$f":"SUM('MMA Rev-Exp Region 1:MMA Rev-Exp Region 11'!G15)","v":0},{"$f":"SUM('MMA Rev-Exp Region 1:MMA Rev-Exp Region 11'!H15)","v":0},{"$f":"SUM('MMA Rev-Exp Region 1:MMA Rev-Exp Region 11'!I15)","v":0},{"$f":"SUM('MMA Rev-Exp Region 1:MMA Rev-Exp Region 11'!J15)","v":0},{"$f":"SUM('MMA Rev-Exp Region 1:MMA Rev-Exp Region 11'!K15)","v":0},{"$f":"SUM('MMA Rev-Exp Region 1:MMA Rev-Exp Region 11'!L15)","v":0},{"$f":"SUM('MMA Rev-Exp Region 1:MMA Rev-Exp Region 11'!M15)","v":0},{"$f":"SUM('MMA Rev-Exp Region 1:MMA Rev-Exp Region 11'!N15)","v":0},0,{"$f":"SUM('MMA Rev-Exp Region 1:MMA Rev-Exp Region 11'!P15)","v":0},{"$f":"SUM('MMA Rev-Exp Region 1:MMA Rev-Exp Region 11'!Q15)","v":0},{"$f":"SUM('MMA Rev-Exp Region 1:MMA Rev-Exp Region 11'!R15)","v":0},{"$f":"SUM('MMA Rev-Exp Region 1:MMA Rev-Exp Region 11'!S15)","v":0},{"$f":"SUM('MMA Rev-Exp Region 1:MMA Rev-Exp Region 11'!T15)","v":0},{"$f":"SUM('MMA Rev-Exp Region 1:MMA Rev-Exp Region 11'!U15)","v":0},{"$f":"SUM('MMA Rev-Exp Region 1:MMA Rev-Exp Region 11'!V15)","v":0},{"$f":"SUM('MMA Rev-Exp Region 1:MMA Rev-Exp Region 11'!W15)","v":0},{"$f":"SUM('MMA Rev-Exp Region 1:MMA Rev-Exp Region 11'!X15)","v":0},{"$f":"SUM('MMA Rev-Exp Region 1:MMA Rev-Exp Region 11'!Y15)","v":0},0,{"$f":"SUM('MMA Rev-Exp Region 1:MMA Rev-Exp Region 11'!AA15)","v":0},{"$f":"SUM('MMA Rev-Exp Region 1:MMA Rev-Exp Region 11'!AB15)","v":0},{"$f":"SUM('MMA Rev-Exp Region 1:MMA Rev-Exp Region 11'!AC15)","v":0},{"$f":"SUM('MMA Rev-Exp Region 1:MMA Rev-Exp Region 11'!AD15)","v":0},{"$f":"SUM('MMA Rev-Exp Region 1:MMA Rev-Exp Region 11'!AE15)","v":0},{"$f":"SUM('MMA Rev-Exp Region 1:MMA Rev-Exp Region 11'!AF15)","v":0},{"$f":"SUM('MMA Rev-Exp Region 1:MMA Rev-Exp Region 11'!AG15)","v":0},{"$f":"SUM('MMA Rev-Exp Region 1:MMA Rev-Exp Region 11'!AH15)","v":0},{"$f":"SUM('MMA Rev-Exp Region 1:MMA Rev-Exp Region 11'!AI15)","v":0},{"$f":"SUM('MMA Rev-Exp Region 1:MMA Rev-Exp Region 11'!AJ15)","v":0},0,{"$f":"SUM('MMA Rev-Exp Region 1:MMA Rev-Exp Region 11'!AL15)","v":0},{"$f":"SUM('MMA Rev-Exp Region 1:MMA Rev-Exp Region 11'!AM15)","v":0},{"$f":"SUM('MMA Rev-Exp Region 1:MMA Rev-Exp Region 11'!AN15)","v":0},{"$f":"SUM('MMA Rev-Exp Region 1:MMA Rev-Exp Region 11'!AO15)","v":0},{"$f":"SUM('MMA Rev-Exp Region 1:MMA Rev-Exp Region 11'!AP15)","v":0},{"$f":"SUM('MMA Rev-Exp Region 1:MMA Rev-Exp Region 11'!AQ15)","v":0},{"$f":"SUM('MMA Rev-Exp Region 1:MMA Rev-Exp Region 11'!AR15)","v":0},{"$f":"SUM('MMA Rev-Exp Region 1:MMA Rev-Exp Region 11'!AS15)","v":0},{"$f":"SUM('MMA Rev-Exp Region 1:MMA Rev-Exp Region 11'!AT15)","v":0},{"$f":"SUM('MMA Rev-Exp Region 1:MMA Rev-Exp Region 11'!AU15)","v":0},{"$f":"SUM('MMA Rev-Exp Region 1:MMA Rev-Exp Region 11'!AV15)","v":0},{"$f":"SUM(AX15:BG15)+AV15","v":0},{"$f":"SUM('MMA Rev-Exp Region 1:MMA Rev-Exp Region 11'!AX15)","v":0},{"$f":"SUM('MMA Rev-Exp Region 1:MMA Rev-Exp Region 11'!AY15)","v":0},{"$f":"SUM('MMA Rev-Exp Region 1:MMA Rev-Exp Region 11'!AZ15)","v":0},{"$f":"SUM('MMA Rev-Exp Region 1:MMA Rev-Exp Region 11'!BA15)","v":0},{"$f":"SUM('MMA Rev-Exp Region 1:MMA Rev-Exp Region 11'!BB15)","v":0},{"$f":"SUM('MMA Rev-Exp Region 1:MMA Rev-Exp Region 11'!BC15)","v":0},{"$f":"SUM('MMA Rev-Exp Region 1:MMA Rev-Exp Region 11'!BD15)","v":0},{"$f":"SUM('MMA Rev-Exp Region 1:MMA Rev-Exp Region 11'!BE15)","v":0},{"$f":"SUM('MMA Rev-Exp Region 1:MMA Rev-Exp Region 11'!BF15)","v":0},{"$f":"SUM('MMA Rev-Exp Region 1:MMA Rev-Exp Region 11'!BG15)","v":0}]
[null,"1.6","Other Revenue",0,{"$f":"SUM('MMA Rev-Exp Region 1:MMA Rev-Exp Region 11'!E16)","v":0},{"$f":"SUM('MMA Rev-Exp Region 1:MMA Rev-Exp Region 11'!F16)","v":0},{"$f":"SUM('MMA Rev-Exp Region 1:MMA Rev-Exp Region 11'!G16)","v":0},{"$f":"SUM('MMA Rev-Exp Region 1:MMA Rev-Exp Region 11'!H16)","v":0},{"$f":"SUM('MMA Rev-Exp Region 1:MMA Rev-Exp Region 11'!I16)","v":0},{"$f":"SUM('MMA Rev-Exp Region 1:MMA Rev-Exp Region 11'!J16)","v":0},{"$f":"SUM('MMA Rev-Exp Region 1:MMA Rev-Exp Region 11'!K16)","v":0},{"$f":"SUM('MMA Rev-Exp Region 1:MMA Rev-Exp Region 11'!L16)","v":0},{"$f":"SUM('MMA Rev-Exp Region 1:MMA Rev-Exp Region 11'!M16)","v":0},{"$f":"SUM('MMA Rev-Exp Region 1:MMA Rev-Exp Region 11'!N16)","v":0},0,{"$f":"SUM('MMA Rev-Exp Region 1:MMA Rev-Exp Region 11'!P16)","v":0},{"$f":"SUM('MMA Rev-Exp Region 1:MMA Rev-Exp Region 11'!Q16)","v":0},{"$f":"SUM('MMA Rev-Exp Region 1:MMA Rev-Exp Region 11'!R16)","v":0},{"$f":"SUM('MMA Rev-Exp Region 1:MMA Rev-Exp Region 11'!S16)","v":0},{"$f":"SUM('MMA Rev-Exp Region 1:MMA Rev-Exp Region 11'!T16)","v":0},{"$f":"SUM('MMA Rev-Exp Region 1:MMA Rev-Exp Region 11'!U16)","v":0},{"$f":"SUM('MMA Rev-Exp Region 1:MMA Rev-Exp Region 11'!V16)","v":0},{"$f":"SUM('MMA Rev-Exp Region 1:MMA Rev-Exp Region 11'!W16)","v":0},{"$f":"SUM('MMA Rev-Exp Region 1:MMA Rev-Exp Region 11'!X16)","v":0},{"$f":"SUM('MMA Rev-Exp Region 1:MMA Rev-Exp Region 11'!Y16)","v":0},0,{"$f":"SUM('MMA Rev-Exp Region 1:MMA Rev-Exp Region 11'!AA16)","v":0},{"$f":"SUM('MMA Rev-Exp Region 1:MMA Rev-Exp Region 11'!AB16)","v":0},{"$f":"SUM('MMA Rev-Exp Region 1:MMA Rev-Exp Region 11'!AC16)","v":0},{"$f":"SUM('MMA Rev-Exp Region 1:MMA Rev-Exp Region 11'!AD16)","v":0},{"$f":"SUM('MMA Rev-Exp Region 1:MMA Rev-Exp Region 11'!AE16)","v":0},{"$f":"SUM('MMA Rev-Exp Region 1:MMA Rev-Exp Region 11'!AF16)","v":0},{"$f":"SUM('MMA Rev-Exp Region 1:MMA Rev-Exp Region 11'!AG16)","v":0},{"$f":"SUM('MMA Rev-Exp Region 1:MMA Rev-Exp Region 11'!AH16)","v":0},{"$f":"SUM('MMA Rev-Exp Region 1:MMA Rev-Exp Region 11'!AI16)","v":0},{"$f":"SUM('MMA Rev-Exp Region 1:MMA Rev-Exp Region 11'!AJ16)","v":0},0,{"$f":"SUM('MMA Rev-Exp Region 1:MMA Rev-Exp Region 11'!AL16)","v":0},{"$f":"SUM('MMA Rev-Exp Region 1:MMA Rev-Exp Region 11'!AM16)","v":0},{"$f":"SUM('MMA Rev-Exp Region 1:MMA Rev-Exp Region 11'!AN16)","v":0},{"$f":"SUM('MMA Rev-Exp Region 1:MMA Rev-Exp Region 11'!AO16)","v":0},{"$f":"SUM('MMA Rev-Exp Region 1:MMA Rev-Exp Region 11'!AP16)","v":0},{"$f":"SUM('MMA Rev-Exp Region 1:MMA Rev-Exp Region 11'!AQ16)","v":0},{"$f":"SUM('MMA Rev-Exp Region 1:MMA Rev-Exp Region 11'!AR16)","v":0},{"$f":"SUM('MMA Rev-Exp Region 1:MMA Rev-Exp Region 11'!AS16)","v":0},{"$f":"SUM('MMA Rev-Exp Region 1:MMA Rev-Exp Region 11'!AT16)","v":0},{"$f":"SUM('MMA Rev-Exp Region 1:MMA Rev-Exp Region 11'!AU16)","v":0},{"$f":"SUM('MMA Rev-Exp Region 1:MMA Rev-Exp Region 11'!AV16)","v":0},0,{"$f":"SUM('MMA Rev-Exp Region 1:MMA Rev-Exp Region 11'!AX16)","v":0},{"$f":"SUM('MMA Rev-Exp Region 1:MMA Rev-Exp Region 11'!AY16)","v":0},{"$f":"SUM('MMA Rev-Exp Region 1:MMA Rev-Exp Region 11'!AZ16)","v":0},{"$f":"SUM('MMA Rev-Exp Region 1:MMA Rev-Exp Region 11'!BA16)","v":0},{"$f":"SUM('MMA Rev-Exp Region 1:MMA Rev-Exp Region 11'!BB16)","v":0},{"$f":"SUM('MMA Rev-Exp Region 1:MMA Rev-Exp Region 11'!BC16)","v":0},{"$f":"SUM('MMA Rev-Exp Region 1:MMA Rev-Exp Region 11'!BD16)","v":0},{"$f":"SUM('MMA Rev-Exp Region 1:MMA Rev-Exp Region 11'!BE16)","v":0},{"$f":"SUM('MMA Rev-Exp Region 1:MMA Rev-Exp Region 11'!BF16)","v":0},{"$f":"SUM('MMA Rev-Exp Region 1:MMA Rev-Exp Region 11'!BG16)","v":0}]
[null,"1.7","Total Revenue",{"$f":"SUM(D11:D16)","v":0},{"$f":"SUM(E11:E16)","v":0},{"$f":"SUM(F11:F16)","v":0},{"$f":"SUM(G11:G16)","v":0},0,{"$f":"SUM(I11:I16)","v":0},0,0,0,0,0,{"$f":"SUM(O11:O16)","v":0},{"$f":"SUM(P11:P16)","v":0},{"$f":"SUM(Q11:Q16)","v":0},{"$f":"SUM(R11:R16)","v":0},0,0,0,0,0,0,0,{"$f":"SUM(Z11:Z16)","v":0},{"$f":"SUM(AA11:AA16)","v":0},{"$f":"SUM(AB11:AB16)","v":0},{"$f":"SUM(AC11:AC16)","v":0},0,0,0,0,0,0,0,{"$f":"SUM(AK11:AK16)","v":0},{"$f":"SUM(AL11:AL16)","v":0},{"$f":"SUM(AM11:AM16)","v":0},{"$f":"SUM(AN11:AN16)","v":0},0,0,0,0,0,0,0,{"$f":"SUM(AV11:AV16)","v":0},{"$f":"SUM(AW11:AW16)","v":0},{"$f":"SUM(AX11:AX16)","v":0},{"$f":"SUM(AY11:AY16)","v":0},0,0,0,0,0,0,0,0]
["BENEFIT EXPENSES",null,null,"JANUARY - MARCH (Q1)",{"$nulls":10},"APRIL - JUNE (Q2)",{"$nulls":10},"JULY - SEPTEMBER (Q3)",{"$nulls":10},"OCTOBER - DECEMBER (Q4)",{"$nulls":11},"TOTAL (TO DATE)"]
[{"$nulls":3},"Total","TANF Non-SMI","TANF SMI","SSI Medicaid Only Non-SMI","SSI Medicaid Only SMI","Dual Eligible","Child Welfare","HIV/AIDS Dual Eligible","HIV/AIDS Medicaid Only","LTC Dual Eligible","LTC Medicaid Only","Total","TANF Non-SMI","TANF SMI","SSI Medicaid Only Non-SMI","SSI Medicaid Only SMI","Dual Eligible","Child Welfare","HIV/AIDS Dual Eligible","HIV/AIDS Medicaid Only","LTC Dual Eligible","LTC Medicaid Only","Total","TANF Non-SMI","TANF SMI","SSI Medicaid Only Non-SMI","SSI Medicaid Only SMI","Dual Eligible","Child Welfare","HIV/AIDS Dual Eligible","HIV/AIDS Medicaid Only","LTC Dual Eligible","LTC Medicaid Only","Total","TANF Non-SMI","TANF SMI","SSI Medicaid Only Non-SMI","SSI Medicaid Only SMI","Dual Eligible","Child Welfare","HIV/AIDS Dual Eligible","HIV/AIDS Medicaid Only","LTC Dual Eligible","LTC Medicaid Only","Prior Calendar Year Adjustments","Total","TANF Non-SMI","TANF SMI","SSI Medicaid Only Non-SMI","SSI Medicaid Only SMI","Dual Eligible","Child Welfare","HIV/AIDS Dual Eligible","HIV/AIDS Medicaid Only","LTC Dual Eligible","LTC Medicaid Only"]
["Hospital Services",2.1,"Inpatient FFS",{"$f":"SUM(E20:N20)","v":0},{"$f":"SUM('MMA Rev-Exp Region 1:MMA Rev-Exp Region 11'!E20)","v":0},{"$f":"SUM('MMA Rev-Exp Region 1:MMA Rev-Exp Region 11'!F20)","v":0},{"$f":"SUM('MMA Rev-Exp Region 1:MMA Rev-Exp Region 11'!G20)","v":0},{"$f":"SUM('MMA Rev-Exp Region 1:MMA Rev-Exp Region 11'!H20)","v":0},{"$f":"SUM('MMA Rev-Exp Region 1:MMA Rev-Exp Region 11'!I20)","v":0},{"$f":"SUM('MMA Rev-Exp Region 1:MMA Rev-Exp Region 11'!J20)","v":0},{"$f":"SUM('MMA Rev-Exp Region 1:MMA Rev-Exp Region 11'!K20)","v":0},{"$f":"SUM('MMA Rev-Exp Region 1:MMA Rev-Exp Region 11'!L20)","v":0},{"$f":"SUM('MMA Rev-Exp Region 1:MMA Rev-Exp Region 11'!M20)","v":0},{"$f":"SUM('MMA Rev-Exp Region 1:MMA Rev-Exp Region 11'!N20)","v":0},{"$f":"SUM(P20:Y20)","v":0},{"$f":"SUM('MMA Rev-Exp Region 1:MMA Rev-Exp Region 11'!P20)","v":0},{"$f":"SUM('MMA Rev-Exp Region 1:MMA Rev-Exp Region 11'!Q20)","v":0},{"$f":"SUM('MMA Rev-Exp Region 1:MMA Rev-Exp Region 11'!R20)","v":0},{"$f":"SUM('MMA Rev-Exp Region 1:MMA Rev-Exp Region 11'!S20)","v":0},{"$f":"SUM('MMA Rev-Exp Region 1:MMA Rev-Exp Region 11'!T20)","v":0},{"$f":"SUM('MMA Rev-Exp Region 1:MMA Rev-Exp Region 11'!U20)","v":0},{"$f":"SUM('MMA Rev-Exp Region 1:MMA Rev-Exp Region 11'!V20)","v":0},{"$f":"SUM('MMA Rev-Exp Region 1:MMA Rev-Exp Region 11'!W20)","v":0},{"$f":"SUM('MMA Rev-Exp Region 1:MMA Rev-Exp Region 11'!X20)","v":0},{"$f":"SUM('MMA Rev-Exp Region 1:MMA Rev-Exp Region 11'!Y20)","v":0},{"$f":"SUM(AA20:AJ20)","v":0},{"$f":"SUM('MMA Rev-Exp Region 1:MMA Rev-Exp Region 11'!AA20)","v":0},{"$f":"SUM('MMA Rev-Exp Region 1:MMA Rev-Exp Region 11'!AB20)","v":0},{"$f":"SUM('MMA Rev-Exp Region 1:MMA Rev-Exp Region 11'!AC20)","v":0},{"$f":"SUM('MMA Rev-Exp Region 1:MMA Rev-Exp Region 11'!AD20)","v":0},{"$f":"SUM('MMA Rev-Exp Region 1:MMA Rev-Exp Region 11'!AE20)","v":0},{"$f":"SUM('MMA Rev-Exp Region 1:MMA Rev-Exp Region 11'!AF20)","v":0},{"$f":"SUM('MMA Rev-Exp Region 1:MMA Rev-Exp Region 11'!AG20)","v":0},{"$f":"SUM('MMA Rev-Exp Region 1:MMA Rev-Exp Region 11'!AH20)","v":0},{"$f":"SUM('MMA Rev-Exp Region 1:MMA Rev-Exp Region 11'!AI20)","v":0},{"$f":"SUM('MMA Rev-Exp Region 1:MMA Rev-Exp Region 11'!AJ20)","v":0},{"$f":"SUM(AL20:AU20)","v":0},{"$f":"SUM('MMA Rev-Exp Region 1:MMA Rev-Exp Region 11'!AL20)","v":0},{"$f":"SUM('MMA Rev-Exp Region 1:MMA Rev-Exp Region 11'!AM20)","v":0},{"$f":"SUM('MMA Rev-Exp Region 1:MMA Rev-Exp Region 11'!AN20)","v":0},{"$f":"SUM('MMA Rev-Exp Region 1:MMA Rev-Exp Region 11'!AO20)","v":0},{"$f":"SUM('MMA Rev-Exp Region 1:MMA Rev-Exp Region 11'!AP20)","v":0},{"$f":"SUM('MMA Rev-Exp Region 1:MMA Rev-Exp Region 11'!AQ20)","v":0},{"$f":"SUM('MMA Rev-Exp Region 1:MMA Rev-Exp Region 11'!AR20)","v":0},{"$f":"SUM('MMA Rev-Exp Region 1:MMA Rev-Exp Region 11'!AS20)","v":0},{"$f":"SUM('MMA Rev-Exp Region 1:MMA Rev-Exp Region 11'!AT20)","v":0},{"$f":"SUM('MMA Rev-Exp Region 1:MMA Rev-Exp Region 11'!AU20)","v":0},{"$f":"SUM('MMA Rev-Exp Region 1:MMA Rev-Exp Region 11'!AV20)","v":0},{"$f":"SUM(AX20:BG20)+AV20","v":0},{"$f":"SUM('MMA Rev-Exp Region 1:MMA Rev-Exp Region 11'!AX20)","v":0},{"$f":"SUM('MMA Rev-Exp Region 1:MMA Rev-Exp Region 11'!AY20)","v":0},{"$f":"SUM('MMA Rev-Exp Region 1:MMA Rev-Exp Region 11'!AZ20)","v":0},{"$f":"SUM('MMA Rev-Exp Region 1:MMA Rev-Exp Region 11'!BA20)","v":0},{"$f":"SUM('MMA Rev-Exp Region 1:MMA Rev-Exp Region 11'!BB20)","v":0},{"$f":"SUM('MMA Rev-Exp Region 1:MMA Rev-Exp Region 11'!BC20)","v":0},{"$f":"SUM('MMA Rev-Exp Region 1:MMA Rev-Exp Region 11'!BD20)","v":0},{"$f":"SUM('MMA Rev-Exp Region 1:MMA Rev-Exp Region 11'!BE20)","v":0},{"$f":"SUM('MMA Rev-Exp Region 1:MMA Rev-Exp Region 11'!BF20)","v":0},{"$f":"SUM('MMA Rev-Exp Region 1:MMA Rev-Exp Region 11'!BG20)","v":0}]
[null,2.2,"Ending IBNP for Inpatient Hospital Services",0,{"$f":"SUM('MMA Rev-Exp Region 1:MMA Rev-Exp Region 11'!E21)","v":0},{"$f":"SUM('MMA Rev-Exp Region 1:MMA Rev-Exp Region 11'!F21)","v":0},{"$f":"SUM('MMA Rev-Exp Region 1:MMA Rev-Exp Region 11'!G21)","v":0},{"$f":"SUM('MMA Rev-Exp Region 1:MMA Rev-Exp Region 11'!H21)","v":0},{"$f":"SUM('MMA Rev-Exp Region 1:MMA Rev-Exp Region 11'!I21)","v":0},{"$f":"SUM('MMA Rev-Exp Region 1:MMA Rev-Exp Region 11'!J21)","v":0},{"$f":"SUM('MMA Rev-Exp Region 1:MMA Rev-Exp Region 11'!K21)","v":0},{"$f":"SUM('MMA Rev-Exp Region 1:MMA Rev-Exp Region 11'!L21)","v":0},{"$f":"SUM('MMA Rev-Exp Region 1:MMA Rev-Exp Region 11'!M21)","v":0},{"$f":"SUM('MMA Rev-Exp Region 1:MMA Rev-Exp Region 11'!N21)","v":0},0,{"$f":"SUM('MMA Rev-Exp Region 1:MMA Rev-Exp Region 11'!P21)","v":0},{"$f":"SUM('MMA Rev-Exp Region 1:MMA Rev-Exp Region 11'!Q21)","v":0},{"$f":"SUM('MMA Rev-Exp Region 1:MMA Rev-Exp Region 11'!R21)","v":0},{"$f":"SUM('MMA Rev-Exp Region 1:MMA Rev-Exp Region 11'!S21)","v":0},{"$f":"SUM('MMA Rev-Exp Region 1:MMA Rev-Exp Region 11'!T21)","v":0},{"$f":"SUM('MMA Rev-Exp Region 1:MMA Rev-Exp Region 11'!U21)","v":0},{"$f":"SUM('MMA Rev-Exp Region 1:MMA Rev-Exp Region 11'!V21)","v":0},{"$f":"SUM('MMA Rev-Exp Region 1:MMA Rev-Exp Region 11'!W21)","v":0},{"$f":"SUM('MMA Rev-Exp Region 1:MMA Rev-Exp Region 11'!X21)","v":0},{"$f":"SUM('MMA Rev-Exp Region 1:MMA Rev-Exp Region 11'!Y21)","v":0},0,{"$f":"SUM('MMA Rev-Exp Region 1:MMA Rev-Exp Region 11'!AA21)","v":0},{"$f":"SUM('MMA Rev-Exp Region 1:MMA Rev-Exp Region 11'!AB21)","v":0},{"$f":"SUM('MMA Rev-Exp Region 1:MMA Rev-Exp Region 11'!AC21)","v":0},{"$f":"SUM('MMA Rev-Exp Region 1:MMA Rev-Exp Region 11'!AD21)","v":0},{"$f":"SUM('MMA Rev-Exp Region 1:MMA Rev-Exp Region 11'!AE21)","v":0},{"$f":"SUM('MMA Rev-Exp Region 1:MMA Rev-Exp Region 11'!AF21)","v":0},{"$f":"SUM('MMA Rev-Exp Region 1:MMA Rev-Exp Region 11'!AG21)","v":0},{"$f":"SUM('MMA Rev-Exp Region 1:MMA Rev-Exp Region 11'!AH21)","v":0},{"$f":"SUM('MMA Rev-Exp Region 1:MMA Rev-Exp Region 11'!AI21)","v":0},{"$f":"SUM('MMA Rev-Exp Region 1:MMA Rev-Exp Region 11'!AJ21)","v":0},0,{"$f":"SUM('MMA Rev-Exp Region 1:MMA Rev-Exp Region 11'!AL21)","v":0},{"$f":"SUM('MMA Rev-Exp Region 1:MMA Rev-Exp Region 11'!AM21)","v":0},{"$f":"SUM('MMA Rev-Exp Region 1:MMA Rev-Exp Region 11'!AN21)","v":0},{"$f":"SUM('MMA Rev-Exp Region 1:MMA Rev-Exp Region 11'!AO21)","v":0},{"$f":"SUM('MMA Rev-Exp Region 1:MMA Rev-Exp Region 11'!AP21)","v":0},{"$f":"SUM('MMA Rev-Exp Region 1:MMA Rev-Exp Region 11'!AQ21)","v":0},{"$f":"SUM('MMA Rev-Exp Region 1:MMA Rev-Exp Region 11'!AR21)","v":0},{"$f":"SUM('MMA Rev-Exp Region 1:MMA Rev-Exp Region 11'!AS21)","v":0},{"$f":"SUM('MMA Rev-Exp Region 1:MMA Rev-Exp Region 11'!AT21)","v":0},{"$f":"SUM('MMA Rev-Exp Region 1:MMA Rev-Exp Region 11'!AU21)","v":0},{"$f":"SUM('MMA Rev-Exp Region 1:MMA Rev-Exp Region 11'!AV21)","v":0},{"$f":"SUM(AX21:BG21)+AV21","v":0},{"$f":"SUM('MMA Rev-Exp Region 1:MMA Rev-Exp Region 11'!AX21)","v":0},{"$f":"SUM('MMA Rev-Exp Region 1:MMA Rev-Exp Region 11'!AY21)","v":0},{"$f":"SUM('MMA Rev-Exp Region 1:MMA Rev-Exp Region 11'!AZ21)","v":0},{"$f":"SUM('MMA Rev-Exp Region 1:MMA Rev-Exp Region 11'!BA21)","v":0},{"$f":"SUM('MMA Rev-Exp Region 1:MMA Rev-Exp Region 11'!BB21)","v":0},{"$f":"SUM('MMA Rev-Exp Region 1:MMA Rev-Exp Region 11'!BC21)","v":0},{"$f":"SUM('MMA Rev-Exp Region 1:MMA Rev-Exp Region 11'!BD21)","v":0},{"$f":"SUM('MMA Rev-Exp Region 1:MMA Rev-Exp Region 11'!BE21)","v":0},{"$f":"SUM('MMA Rev-Exp Region 1:MMA Rev-Exp Region 11'!BF21)","v":0},{"$f":"SUM('MMA Rev-Exp Region 1:MMA Rev-Exp Region 11'!BG21)","v":0}]
[null,2.3,"Outpatient FFS: ER",0,{"$f":"SUM('MMA Rev-Exp Region 1:MMA Rev-Exp Region 11'!E22)","v":0},{"$f":"SUM('MMA Rev-Exp Region 1:MMA Rev-Exp Region 11'!F22)","v":0},{"$f":"SUM('MMA Rev-Exp Region 1:MMA Rev-Exp Region 11'!G22)","v":0},{"$f":"SUM('MMA Rev-Exp Region 1:MMA Rev-Exp Region 11'!H22)","v":0},{"$f":"SUM('MMA Rev-Exp Region 1:MMA Rev-Exp Region 11'!I22)","v":0},{"$f":"SUM('MMA Rev-Exp Region 1:MMA Rev-Exp Region 11'!J22)","v":0},{"$f":"SUM('MMA Rev-Exp Region 1:MMA Rev-Exp Region 11'!K22)","v":0},{"$f":"SUM('MMA Rev-Exp Region 1:MMA Rev-Exp Region 11'!L22)","v":0},{"$f":"SUM('MMA Rev-Exp Region 1:MMA Rev-Exp Region 11'!M22)","v":0},{"$f":"SUM('MMA Rev-Exp Region 1:MMA Rev-Exp Region 11'!N22)","v":0},0,{"$f":"SUM('MMA Rev-Exp Region 1:MMA Rev-Exp Region 11'!P22)","v":0},{"$f":"SUM('MMA Rev-Exp Region 1:MMA Rev-Exp Region 11'!Q22)","v":0},{"$f":"SUM('MMA Rev-Exp Region 1:MMA Rev-Exp Region 11'!R22)","v":0},{"$f":"SUM('MMA Rev-Exp Region 1:MMA Rev-Exp Region 11'!S22)","v":0},{"$f":"SUM('MMA Rev-Exp Region 1:MMA Rev-Exp Region 11'!T22)","v":0},{"$f":"SUM('MMA Rev-Exp Region 1:MMA Rev-Exp Region 11'!U22)","v":0},{"$f":"SUM('MMA Rev-Exp Region 1:MMA Rev-Exp Region 11'!V22)","v":0},{"$f":"SUM('MMA Rev-Exp Region 1:MMA Rev-Exp Region 11'!W22)","v":0},{"$f":"SUM('MMA Rev-Exp Region 1:MMA Rev-Exp Region 11'!X22)","v":0},{"$f":"SUM('MMA Rev-Exp Region 1:MMA Rev-Exp Region 11'!Y22)","v":0},0,{"$f":"SUM('MMA Rev-Exp Region 1:MMA Rev-Exp Region 11'!AA22)","v":0},{"$f":"SUM('MMA Rev-Exp Region 1:MMA Rev-Exp Region 11'!AB22)","v":0},{"$f":"SUM('MMA Rev-Exp Region 1:MMA Rev-Exp Region 11'!AC22)","v":0},{"$f":"SUM('MMA Rev-Exp Region 1:MMA Rev-Exp Region 11'!AD22)","v":0},{"$f":"SUM('MMA Rev-Exp Region 1:MMA Rev-Exp Region 11'!AE22)","v":0},{"$f":"SUM('MMA Rev-Exp Region 1:MMA Rev-Exp Region 11'!AF22)","v":0},{"$f":"SUM('MMA Rev-Exp Region 1:MMA Rev-Exp Region 11'!AG22)","v":0},{"$f":"SUM('MMA Rev-Exp Region 1:MMA Rev-Exp Region 11'!AH22)","v":0},{"$f":"SUM('MMA Rev-Exp Region 1:MMA Rev-Exp Region 11'!AI22)","v":0},{"$f":"SUM('MMA Rev-Exp Region 1:MMA Rev-Exp Region 11'!AJ22)","v":0},0,{"$f":"SUM('MMA Rev-Exp Region 1:MMA Rev-Exp Region 11'!AL22)","v":0},{"$f":"SUM('MMA Rev-Exp Region 1:MMA Rev-Exp Region 11'!AM22)","v":0},{"$f":"SUM('MMA Rev-Exp Region 1:MMA Rev-Exp Region 11'!AN22)","v":0},{"$f":"SUM('MMA Rev-Exp Region 1:MMA Rev-Exp Region 11'!AO22)","v":0},{"$f":"SUM('MMA Rev-Exp Region 1:MMA Rev-Exp Region 11'!AP22)","v":0},{"$f":"SUM('MMA Rev-Exp Region 1:MMA Rev-Exp Region 11'!AQ22)","v":0},{"$f":"SUM('MMA Rev-Exp Region 1:MMA Rev-Exp Region 11'!AR22)","v":0},{"$f":"SUM('MMA Rev-Exp Region 1:MMA Rev-Exp Region 11'!AS22)","v":0},{"$f":"SUM('MMA Rev-Exp Region 1:MMA Rev-Exp Region 11'!AT22)","v":0},{"$f":"SUM('MMA Rev-Exp Region 1:MMA Rev-Exp Region 11'!AU22)","v":0},{"$f":"SUM('MMA Rev-Exp Region 1:MMA Rev-Exp Region 11'!AV22)","v":0},0,{"$f":"SUM('MMA Rev-Exp Region 1:MMA Rev-Exp Region 11'!AX22)","v":0},{"$f":"SUM('MMA Rev-Exp Region 1:MMA Rev-Exp Region 11'!AY22)","v":0},{"$f":"SUM('MMA Rev-Exp Region 1:MMA Rev-Exp Region 11'!AZ22)","v":0},{"$f":"SUM('MMA Rev-Exp Region 1:MMA Rev-Exp Region 11'!BA22)","v":0},{"$f":"SUM('MMA Rev-Exp Region 1:MMA Rev-Exp Region 11'!BB22)","v":0},{"$f":"SUM('MMA Rev-Exp Region 1:MMA Rev-Exp Region 11'!BC22)","v":0},{"$f":"SUM('MMA Rev-Exp Region 1:MMA Rev-Exp Region 11'!BD22)","v":0},{"$f":"SUM('MMA Rev-Exp Region 1:MMA Rev-Exp Region 11'!BE22)","v":0},{"$f":"SUM('MMA Rev-Exp Region 1:MMA Rev-Exp Region 11'!BF22)","v":0},{"$f":"SUM('MMA Rev-Exp Region 1:MMA Rev-Exp Region 11'!BG22)","v":0}]
[null,2.4,"Outpatient FFS: Other than ER ",0,{"$f":"SUM('MMA Rev-Exp Region 1:MMA Rev-Exp Region 11'!E23)","v":0},{"$f":"SUM('MMA Rev-Exp Region 1:MMA Rev-Exp Region 11'!F23)","v":0},{"$f":"SUM('MMA Rev-Exp Region 1:MMA Rev-Exp Region 11'!G23)","v":0},{"$f":"SUM('MMA Rev-Exp Region 1:MMA Rev-Exp Region 11'!H23)","v":0},{"$f":"SUM('MMA Rev-Exp Region 1:MMA Rev-Exp Region 11'!I23)","v":0},{"$f":"SUM('MMA Rev-Exp Region 1:MMA Rev-Exp Region 11'!J23)","v":0},{"$f":"SUM('MMA Rev-Exp Region 1:MMA Rev-Exp Region 11'!K23)","v":0},{"$f":"SUM('MMA Rev-Exp Region 1:MMA Rev-Exp Region 11'!L23)","v":0},{"$f":"SUM('MMA Rev-Exp Region 1:MMA Rev-Exp Region 11'!M23)","v":0},{"$f":"SUM('MMA Rev-Exp Region 1:MMA Rev-Exp Region 11'!N23)","v":0},0,{"$f":"SUM('MMA Rev-Exp Region 1:MMA Rev-Exp Region 11'!P23)","v":0},{"$f":"SUM('MMA Rev-Exp Region 1:MMA Rev-Exp Region 11'!Q23)","v":0},{"$f":"SUM('MMA Rev-Exp Region 1:MMA Rev-Exp Region 11'!R23)","v":0},{"$f":"SUM('MMA Rev-Exp Region 1:MMA Rev-Exp Region 11'!S23)","v":0},{"$f":"SUM('MMA Rev-Exp Region 1:MMA Rev-Exp Region 11'!T23)","v":0},{"$f":"SUM('MMA Rev-Exp Region 1:MMA Rev-Exp Region 11'!U23)","v":0},{"$f":"SUM('MMA Rev-Exp Region 1:MMA Rev-Exp Region 11'!V23)","v":0},{"$f":"SUM('MMA Rev-Exp Region 1:MMA Rev-Exp Region 11'!W23)","v":0},{"$f":"SUM('MMA Rev-Exp Region 1:MMA Rev-Exp Region 11'!X23)","v":0},{"$f":"SUM('MMA Rev-Exp Region 1:MMA Rev-Exp Region 11'!Y23)","v":0},0,{"$f":"SUM('MMA Rev-Exp Region 1:MMA Rev-Exp Region 11'!AA23)","v":0},{"$f":"SUM('MMA Rev-Exp Region 1:MMA Rev-Exp Region 11'!AB23)","v":0},{"$f":"SUM('MMA Rev-Exp Region 1:MMA Rev-Exp Region 11'!AC23)","v":0},{"$f":"SUM('MMA Rev-Exp Region 1:MMA Rev-Exp Region 11'!AD23)","v":0},{"$f":"SUM('MMA Rev-Exp Region 1:MMA Rev-Exp Region 11'!AE23)","v":0},{"$f":"SUM('MMA Rev-Exp Region 1:MMA Rev-Exp Region 11'!AF23)","v":0},{"$f":"SUM('MMA Rev-Exp Region 1:MMA Rev-Exp Region 11'!AG23)","v":0},{"$f":"SUM('MMA Rev-Exp Region 1:MMA Rev-Exp Region 11'!AH23)","v":0},{"$f":"SUM('MMA Rev-Exp Region 1:MMA Rev-Exp Region 11'!AI23)","v":0},{"$f":"SUM('MMA Rev-Exp Region 1:MMA Rev-Exp Region 11'!AJ23)","v":0},0,{"$f":"SUM('MMA Rev-Exp Region 1:MMA Rev-Exp Region 11'!AL23)","v":0},{"$f":"SUM('MMA Rev-Exp Region 1:MMA Rev-Exp Region 11'!AM23)","v":0},{"$f":"SUM('MMA Rev-Exp Region 1:MMA Rev-Exp Region 11'!AN23)","v":0},{"$f":"SUM('MMA Rev-Exp Region 1:MMA Rev-Exp Region 11'!AO23)","v":0},{"$f":"SUM('MMA Rev-Exp Region 1:MMA Rev-Exp Region 11'!AP23)","v":0},{"$f":"SUM('MMA Rev-Exp Region 1:MMA Rev-Exp Region 11'!AQ23)","v":0},{"$f":"SUM('MMA Rev-Exp Region 1:MMA Rev-Exp Region 11'!AR23)","v":0},{"$f":"SUM('MMA Rev-Exp Region 1:MMA Rev-Exp Region 11'!AS23)","v":0},{"$f":"SUM('MMA Rev-Exp Region 1:MMA Rev-Exp Region 11'!AT23)","v":0},{"$f":"SUM('MMA Rev-Exp Region 1:MMA Rev-Exp Region 11'!AU23)","v":0},{"$f":"SUM('MMA Rev-Exp Region 1:MMA Rev-Exp Region 11'!AV23)","v":0},{"$f":"SUM(AX23:BG23)+AV23","v":0},{"$f":"SUM('MMA Rev-Exp Region 1:MMA Rev-Exp Region 11'!AX23)","v":0},{"$f":"SUM('MMA Rev-Exp Region 1:MMA Rev-Exp Region 11'!AY23)","v":0},{"$f":"SUM('MMA Rev-Exp Region 1:MMA Rev-Exp Region 11'!AZ23)","v":0},{"$f":"SUM('MMA Rev-Exp Region 1:MMA Rev-Exp Region 11'!BA23)","v":0},{"$f":"SUM('MMA Rev-Exp Region 1:MMA Rev-Exp Region 11'!BB23)","v":0},{"$f":"SUM('MMA Rev-Exp Region 1:MMA Rev-Exp Region 11'!BC23)","v":0},{"$f":"SUM('MMA Rev-Exp Region 1:MMA Rev-Exp Region 11'!BD23)","v":0},{"$f":"SUM('MMA Rev-Exp Region 1:MMA Rev-Exp Region 11'!BE23)","v":0},{"$f":"SUM('MMA Rev-Exp Region 1:MMA Rev-Exp Region 11'!BF23)","v":0},{"$f":"SUM('MMA Rev-Exp Region 1:MMA Rev-Exp Region 11'!BG23)","v":0}]
[null,2.5,"Ending IBNP for Outpatient Hospital Services",0,{"$f":"SUM('MMA Rev-Exp Region 1:MMA Rev-Exp Region 11'!E24)","v":0},{"$f":"SUM('MMA Rev-Exp Region 1:MMA Rev-Exp Region 11'!F24)","v":0},{"$f":"SUM('MMA Rev-Exp Region 1:MMA Rev-Exp Region 11'!G24)","v":0},{"$f":"SUM('MMA Rev-Exp Region 1:MMA Rev-Exp Region 11'!H24)","v":0},{"$f":"SUM('MMA Rev-Exp Region 1:MMA Rev-Exp Region 11'!I24)","v":0},{"$f":"SUM('MMA Rev-Exp Region 1:MMA Rev-Exp Region 11'!J24)","v":0},{"$f":"SUM('MMA Rev-Exp Region 1:MMA Rev-Exp Region 11'!K24)","v":0},{"$f":"SUM('MMA Rev-Exp Region 1:MMA Rev-Exp Region 11'!L24)","v":0},{"$f":"SUM('MMA Rev-Exp Region 1:MMA Rev-Exp Region 11'!M24)","v":0},{"$f":"SUM('MMA Rev-Exp Region 1:MMA Rev-Exp Region 11'!N24)","v":0},0,{"$f":"SUM('MMA Rev-Exp Region 1:MMA Rev-Exp Region 11'!P24)","v":0},{"$f":"SUM('MMA Rev-Exp Region 1:MMA Rev-Exp Region 11'!Q24)","v":0},{"$f":"SUM('MMA Rev-Exp Region 1:MMA Rev-Exp Region 11'!R24)","v":0},{"$f":"SUM('MMA Rev-Exp Region 1:MMA Rev-Exp Region 11'!S24)","v":0},{"$f":"SUM('MMA Rev-Exp Region 1:MMA Rev-Exp Region 11'!T24)","v":0},{"$f":"SUM('MMA Rev-Exp Region 1:MMA Rev-Exp Region 11'!U24)","v":0},{"$f":"SUM('MMA Rev-Exp Region 1:MMA Rev-Exp Region 11'!V24)","v":0},{"$f":"SUM('MMA Rev-Exp Region 1:MMA Rev-Exp Region 11'!W24)","v":0},{"$f":"SUM('MMA Rev-Exp Region 1:MMA Rev-Exp Region 11'!X24)","v":0},{"$f":"SUM('MMA Rev-Exp Region 1:MMA Rev-Exp Region 11'!Y24)","v":0},0,{"$f":"SUM('MMA Rev-Exp Region 1:MMA Rev-Exp Region 11'!AA24)","v":0},{"$f":"SUM('MMA Rev-Exp Region 1:MMA Rev-Exp Region 11'!AB24)","v":0},{"$f":"SUM('MMA Rev-Exp Region 1:MMA Rev-Exp Region 11'!AC24)","v":0},{"$f":"SUM('MMA Rev-Exp Region 1:MMA Rev-Exp Region 11'!AD24)","v":0},{"$f":"SUM('MMA Rev-Exp Region 1:MMA Rev-Exp Region 11'!AE24)","v":0},{"$f":"SUM('MMA Rev-Exp Region 1:MMA Rev-Exp Region 11'!AF24)","v":0},{"$f":"SUM('MMA Rev-Exp Region 1:MMA Rev-Exp Region 11'!AG24)","v":0},{"$f":"SUM('MMA Rev-Exp Region 1:MMA Rev-Exp Region 11'!AH24)","v":0},{"$f":"SUM('MMA Rev-Exp Region 1:MMA Rev-Exp Region 11'!AI24)","v":0},{"$f":"SUM('MMA Rev-Exp Region 1:MMA Rev-Exp Region 11'!AJ24)","v":0},0,{"$f":"SUM('MMA Rev-Exp Region 1:MMA Rev-Exp Region 11'!AL24)","v":0},{"$f":"SUM('MMA Rev-Exp Region 1:MMA Rev-Exp Region 11'!AM24)","v":0},{"$f":"SUM('MMA Rev-Exp Region 1:MMA Rev-Exp Region 11'!AN24)","v":0},{"$f":"SUM('MMA Rev-Exp Region 1:MMA Rev-Exp Region 11'!AO24)","v":0},{"$f":"SUM('MMA Rev-Exp Region 1:MMA Rev-Exp Region 11'!AP24)","v":0},{"$f":"SUM('MMA Rev-Exp Region 1:MMA Rev-Exp Region 11'!AQ24)","v":0},{"$f":"SUM('MMA Rev-Exp Region 1:MMA Rev-Exp Region 11'!AR24)","v":0},{"$f":"SUM('MMA Rev-Exp Region 1:MMA Rev-Exp Region 11'!AS24)","v":0},{"$f":"SUM('MMA Rev-Exp Region 1:MMA Rev-Exp Region 11'!AT24)","v":0},{"$f":"SUM('MMA Rev-Exp Region 1:MMA Rev-Exp Region 11'!AU24)","v":0},{"$f":"SUM('MMA Rev-Exp Region 1:MMA Rev-Exp Region 11'!AV24)","v":0},0,{"$f":"SUM('MMA Rev-Exp Region 1:MMA Rev-Exp Region 11'!AX24)","v":0},{"$f":"SUM('MMA Rev-Exp Region 1:MMA Rev-Exp Region 11'!AY24)","v":0},{"$f":"SUM('MMA Rev-Exp Region 1:MMA Rev-Exp Region 11'!AZ24)","v":0},{"$f":"SUM('MMA Rev-Exp Region 1:MMA Rev-Exp Region 11'!BA24)","v":0},{"$f":"SUM('MMA Rev-Exp Region 1:MMA Rev-Exp Region 11'!BB24)","v":0},{"$f":"SUM('MMA Rev-Exp Region 1:MMA Rev-Exp Region 11'!BC24)","v":0},{"$f":"SUM('MMA Rev-Exp Region 1:MMA Rev-Exp Region 11'!BD24)","v":0},{"$f":"SUM('MMA Rev-Exp Region 1:MMA Rev-Exp Region 11'!BE24)","v":0},{"$f":"SUM('MMA Rev-Exp Region 1:MMA Rev-Exp Region 11'!BF24)","v":0},{"$f":"SUM('MMA Rev-Exp Region 1:MMA Rev-Exp Region 11'!BG24)","v":0}]
[null,"2.6","Subcapitated Hospital Services",0,{"$f":"SUM('MMA Rev-Exp Region 1:MMA Rev-Exp Region 11'!E25)","v":0},{"$f":"SUM('MMA Rev-Exp Region 1:MMA Rev-Exp Region 11'!F25)","v":0},{"$f":"SUM('MMA Rev-Exp Region 1:MMA Rev-Exp Region 11'!G25)","v":0},{"$f":"SUM('MMA Rev-Exp Region 1:MMA Rev-Exp Region 11'!H25)","v":0},{"$f":"SUM('MMA Rev-Exp Region 1:MMA Rev-Exp Region 11'!I25)","v":0},{"$f":"SUM('MMA Rev-Exp Region 1:MMA Rev-Exp Region 11'!J25)","v":0},{"$f":"SUM('MMA Rev-Exp Region 1:MMA Rev-Exp Region 11'!K25)","v":0},{"$f":"SUM('MMA Rev-Exp Region 1:MMA Rev-Exp Region 11'!L25)","v":0},{"$f":"SUM('MMA Rev-Exp Region 1:MMA Rev-Exp Region 11'!M25)","v":0},{"$f":"SUM('MMA Rev-Exp Region 1:MMA Rev-Exp Region 11'!N25)","v":0},0,{"$f":"SUM('MMA Rev-Exp Region 1:MMA Rev-Exp Region 11'!P25)","v":0},{"$f":"SUM('MMA Rev-Exp Region 1:MMA Rev-Exp Region 11'!Q25)","v":0},{"$f":"SUM('MMA Rev-Exp Region 1:MMA Rev-Exp Region 11'!R25)","v":0},{"$f":"SUM('MMA Rev-Exp Region 1:MMA Rev-Exp Region 11'!S25)","v":0},{"$f":"SUM('MMA Rev-Exp Region 1:MMA Rev-Exp Region 11'!T25)","v":0},{"$f":"SUM('MMA Rev-Exp Region 1:MMA Rev-Exp Region 11'!U25)","v":0},{"$f":"SUM('MMA Rev-Exp Region 1:MMA Rev-Exp Region 11'!V25)","v":0},{"$f":"SUM('MMA Rev-Exp Region 1:MMA Rev-Exp Region 11'!W25)","v":0},{"$f":"SUM('MMA Rev-Exp Region 1:MMA Rev-Exp Region 11'!X25)","v":0},{"$f":"SUM('MMA Rev-Exp Region 1:MMA Rev-Exp Region 11'!Y25)","v":0},0,{"$f":"SUM('MMA Rev-Exp Region 1:MMA Rev-Exp Region 11'!AA25)","v":0},{"$f":"SUM('MMA Rev-Exp Region 1:MMA Rev-Exp Region 11'!AB25)","v":0},{"$f":"SUM('MMA Rev-Exp Region 1:MMA Rev-Exp Region 11'!AC25)","v":0},{"$f":"SUM('MMA Rev-Exp Region 1:MMA Rev-Exp Region 11'!AD25)","v":0},{"$f":"SUM('MMA Rev-Exp Region 1:MMA Rev-Exp Region 11'!AE25)","v":0},{"$f":"SUM('MMA Rev-Exp Region 1:MMA Rev-Exp Region 11'!AF25)","v":0},{"$f":"SUM('MMA Rev-Exp Region 1:MMA Rev-Exp Region 11'!AG25)","v":0},{"$f":"SUM('MMA Rev-Exp Region 1:MMA Rev-Exp Region 11'!AH25)","v":0},{"$f":"SUM('MMA Rev-Exp Region 1:MMA Rev-Exp Region 11'!AI25)","v":0},{"$f":"SUM('MMA Rev-Exp Region 1:MMA Rev-Exp Region 11'!AJ25)","v":0},0,{"$f":"SUM('MMA Rev-Exp Region 1:MMA Rev-Exp Region 11'!AL25)","v":0},{"$f":"SUM('MMA Rev-Exp Region 1:MMA Rev-Exp Region 11'!AM25)","v":0},{"$f":"SUM('MMA Rev-Exp Region 1:MMA Rev-Exp Region 11'!AN25)","v":0},{"$f":"SUM('MMA Rev-Exp Region 1:MMA Rev-Exp Region 11'!AO25)","v":0},{"$f":"SUM('MMA Rev-Exp Region 1:MMA Rev-Exp Region 11'!AP25)","v":0},{"$f":"SUM('MMA Rev-Exp Region 1:MMA Rev-Exp Region 11'!AQ25)","v":0},{"$f":"SUM('MMA Rev-Exp Region 1:MMA Rev-Exp Region 11'!AR25)","v":0},{"$f":"SUM('MMA Rev-Exp Region 1:MMA Rev-Exp Region 11'!AS25)","v":0},{"$f":"SUM('MMA Rev-Exp Region 1:MMA Rev-Exp Region 11'!AT25)","v":0},{"$f":"SUM('MMA Rev-Exp Region 1:MMA Rev-Exp Region 11'!AU25)","v":0},{"$f":"SUM('MMA Rev-Exp Region 1:MMA Rev-Exp Region 11'!AV25)","v":0},{"$f":"SUM(AX25:BG25)+AV25","v":0},{"$f":"SUM('MMA Rev-Exp Region 1:MMA Rev-Exp Region 11'!AX25)","v":0},{"$f":"SUM('MMA Rev-Exp Region 1:MMA Rev-Exp Region 11'!AY25)","v":0},{"$f":"SUM('MMA Rev-Exp Region 1:MMA Rev-Exp Region 11'!AZ25)","v":0},{"$f":"SUM('MMA Rev-Exp Region 1:MMA Rev-Exp Region 11'!BA25)","v":0},{"$f":"SUM('MMA Rev-Exp Region 1:MMA Rev-Exp Region 11'!BB25)","v":0},{"$f":"SUM('MMA Rev-Exp Region 1:MMA Rev-Exp Region 11'!BC25)","v":0},{"$f":"SUM('MMA Rev-Exp Region 1:MMA Rev-Exp Region 11'!BD25)","v":0},{"$f":"SUM('MMA Rev-Exp Region 1:MMA Rev-Exp Region 11'!BE25)","v":0},{"$f":"SUM('MMA Rev-Exp Region 1:MMA Rev-Exp Region 11'!BF25)","v":0},{"$f":"SUM('MMA Rev-Exp Region 1:MMA Rev-Exp Region 11'!BG25)","v":0}]
[null,"2.7","Hospital Settlements/AP",0,{"$f":"SUM('MMA Rev-Exp Region 1:MMA Rev-Exp Region 11'!E26)","v":0},{"$f":"SUM('MMA Rev-Exp Region 1:MMA Rev-Exp Region 11'!F26)","v":0},{"$f":"SUM('MMA Rev-Exp Region 1:MMA Rev-Exp Region 11'!G26)","v":0},{"$f":"SUM('MMA Rev-Exp Region 1:MMA Rev-Exp Region 11'!H26)","v":0},{"$f":"SUM('MMA Rev-Exp Region 1:MMA Rev-Exp Region 11'!I26)","v":0},{"$f":"SUM('MMA Rev-Exp Region 1:MMA Rev-Exp Region 11'!J26)","v":0},{"$f":"SUM('MMA Rev-Exp Region 1:MMA Rev-Exp Region 11'!K26)","v":0},{"$f":"SUM('MMA Rev-Exp Region 1:MMA Rev-Exp Region 11'!L26)","v":0},{"$f":"SUM('MMA Rev-Exp Region 1:MMA Rev-Exp Region 11'!M26)","v":0},{"$f":"SUM('MMA Rev-Exp Region 1:MMA Rev-Exp Region 11'!N26)","v":0},0,{"$f":"SUM('MMA Rev-Exp Region 1:MMA Rev-Exp Region 11'!P26)","v":0},{"$f":"SUM('MMA Rev-Exp Region 1:MMA Rev-Exp Region 11'!Q26)","v":0},{"$f":"SUM('MMA Rev-Exp Region 1:MMA Rev-Exp Region 11'!R26)","v":0},{"$f":"SUM('MMA Rev-Exp Region 1:MMA Rev-Exp Region 11'!S26)","v":0},{"$f":"SUM('MMA Rev-Exp Region 1:MMA Rev-Exp Region 11'!T26)","v":0},{"$f":"SUM('MMA Rev-Exp Region 1:MMA Rev-Exp Region 11'!U26)","v":0},{"$f":"SUM('MMA Rev-Exp Region 1:MMA Rev-Exp Region 11'!V26)","v":0},{"$f":"SUM('MMA Rev-Exp Region 1:MMA Rev-Exp Region 11'!W26)","v":0},{"$f":"SUM('MMA Rev-Exp Region 1:MMA Rev-Exp Region 11'!X26)","v":0},{"$f":"SUM('MMA Rev-Exp Region 1:MMA Rev-Exp Region 11'!Y26)","v":0},0,{"$f":"SUM('MMA Rev-Exp Region 1:MMA Rev-Exp Region 11'!AA26)","v":0},{"$f":"SUM('MMA Rev-Exp Region 1:MMA Rev-Exp Region 11'!AB26)","v":0},{"$f":"SUM('MMA Rev-Exp Region 1:MMA Rev-Exp Region 11'!AC26)","v":0},{"$f":"SUM('MMA Rev-Exp Region 1:MMA Rev-Exp Region 11'!AD26)","v":0},{"$f":"SUM('MMA Rev-Exp Region 1:MMA Rev-Exp Region 11'!AE26)","v":0},{"$f":"SUM('MMA Rev-Exp Region 1:MMA Rev-Exp Region 11'!AF26)","v":0},{"$f":"SUM('MMA Rev-Exp Region 1:MMA Rev-Exp Region 11'!AG26)","v":0},{"$f":"SUM('MMA Rev-Exp Region 1:MMA Rev-Exp Region 11'!AH26)","v":0},{"$f":"SUM('MMA Rev-Exp Region 1:MMA Rev-Exp Region 11'!AI26)","v":0},{"$f":"SUM('MMA Rev-Exp Region 1:MMA Rev-Exp Region 11'!AJ26)","v":0},0,{"$f":"SUM('MMA Rev-Exp Region 1:MMA Rev-Exp Region 11'!AL26)","v":0},{"$f":"SUM('MMA Rev-Exp Region 1:MMA Rev-Exp Region 11'!AM26)","v":0},{"$f":"SUM('MMA Rev-Exp Region 1:MMA Rev-Exp Region 11'!AN26)","v":0},{"$f":"SUM('MMA Rev-Exp Region 1:MMA Rev-Exp Region 11'!AO26)","v":0},{"$f":"SUM('MMA Rev-Exp Region 1:MMA Rev-Exp Region 11'!AP26)","v":0},{"$f":"SUM('MMA Rev-Exp Region 1:MMA Rev-Exp Region 11'!AQ26)","v":0},{"$f":"SUM('MMA Rev-Exp Region 1:MMA Rev-Exp Region 11'!AR26)","v":0},{"$f":"SUM('MMA Rev-Exp Region 1:MMA Rev-Exp Region 11'!AS26)","v":0},{"$f":"SUM('MMA Rev-Exp Region 1:MMA Rev-Exp Region 11'!AT26)","v":0},{"$f":"SUM('MMA Rev-Exp Region 1:MMA Rev-Exp Region 11'!AU26)","v":0},{"$f":"SUM('MMA Rev-Exp Region 1:MMA Rev-Exp Region 11'!AV26)","v":0},0,{"$f":"SUM('MMA Rev-Exp Region 1:MMA Rev-Exp Region 11'!AX26)","v":0},{"$f":"SUM('MMA Rev-Exp Region 1:MMA Rev-Exp Region 11'!AY26)","v":0},{"$f":"SUM('MMA Rev-Exp Region 1:MMA Rev-Exp Region 11'!AZ26)","v":0},{"$f":"SUM('MMA Rev-Exp Region 1:MMA Rev-Exp Region 11'!BA26)","v":0},{"$f":"SUM('MMA Rev-Exp Region 1:MMA Rev-Exp Region 11'!BB26)","v":0},{"$f":"SUM('MMA Rev-Exp Region 1:MMA Rev-Exp Region 11'!BC26)","v":0},{"$f":"SUM('MMA Rev-Exp Region 1:MMA Rev-Exp Region 11'!BD26)","v":0},{"$f":"SUM('MMA Rev-Exp Region 1:MMA Rev-Exp Region 11'!BE26)","v":0},{"$f":"SUM('MMA Rev-Exp Region 1:MMA Rev-Exp Region 11'!BF26)","v":0},{"$f":"SUM('MMA Rev-Exp Region 1:MMA Rev-Exp Region 11'!BG26)","v":0}]
[null,"2.7.1","Transplant Services",0,{"$f":"SUM('MMA Rev-Exp Region 1:MMA Rev-Exp Region 11'!E27)","v":0},{"$f":"SUM('MMA Rev-Exp Region 1:MMA Rev-Exp Region 11'!F27)","v":0},{"$f":"SUM('MMA Rev-Exp Region 1:MMA Rev-Exp Region 11'!G27)","v":0},{"$f":"SUM('MMA Rev-Exp Region 1:MMA Rev-Exp Region 11'!H27)","v":0},{"$f":"SUM('MMA Rev-Exp Region 1:MMA Rev-Exp Region 11'!I27)","v":0},{"$f":"SUM('MMA Rev-Exp Region 1:MMA Rev-Exp Region 11'!J27)","v":0},{"$f":"SUM('MMA Rev-Exp Region 1:MMA Rev-Exp Region 11'!K27)","v":0},{"$f":"SUM('MMA Rev-Exp Region 1:MMA Rev-Exp Region 11'!L27)","v":0},{"$f":"SUM('MMA Rev-Exp Region 1:MMA Rev-Exp Region 11'!M27)","v":0},{"$f":"SUM('MMA Rev-Exp Region 1:MMA Rev-Exp Region 11'!N27)","v":0},0,{"$f":"SUM('MMA Rev-Exp Region 1:MMA Rev-Exp Region 11'!P27)","v":0},{"$f":"SUM('MMA Rev-Exp Region 1:MMA Rev-Exp Region 11'!Q27)","v":0},{"$f":"SUM('MMA Rev-Exp Region 1:MMA Rev-Exp Region 11'!R27)","v":0},{"$f":"SUM('MMA Rev-Exp Region 1:MMA Rev-Exp Region 11'!S27)","v":0},{"$f":"SUM('MMA Rev-Exp Region 1:MMA Rev-Exp Region 11'!T27)","v":0},{"$f":"SUM('MMA Rev-Exp Region 1:MMA Rev-Exp Region 11'!U27)","v":0},{"$f":"SUM('MMA Rev-Exp Region 1:MMA Rev-Exp Region 11'!V27)","v":0},{"$f":"SUM('MMA Rev-Exp Region 1:MMA Rev-Exp Region 11'!W27)","v":0},{"$f":"SUM('MMA Rev-Exp Region 1:MMA Rev-Exp Region 11'!X27)","v":0},{"$f":"SUM('MMA Rev-Exp Region 1:MMA Rev-Exp Region 11'!Y27)","v":0},0,{"$f":"SUM('MMA Rev-Exp Region 1:MMA Rev-Exp Region 11'!AA27)","v":0},{"$f":"SUM('MMA Rev-Exp Region 1:MMA Rev-Exp Region 11'!AB27)","v":0},{"$f":"SUM('MMA Rev-Exp Region 1:MMA Rev-Exp Region 11'!AC27)","v":0},{"$f":"SUM('MMA Rev-Exp Region 1:MMA Rev-Exp Region 11'!AD27)","v":0},{"$f":"SUM('MMA Rev-Exp Region 1:MMA Rev-Exp Region 11'!AE27)","v":0},{"$f":"SUM('MMA Rev-Exp Region 1:MMA Rev-Exp Region 11'!AF27)","v":0},{"$f":"SUM('MMA Rev-Exp Region 1:MMA Rev-Exp Region 11'!AG27)","v":0},{"$f":"SUM('MMA Rev-Exp Region 1:MMA Rev-Exp Region 11'!AH27)","v":0},{"$f":"SUM('MMA Rev-Exp Region 1:MMA Rev-Exp Region 11'!AI27)","v":0},{"$f":"SUM('MMA Rev-Exp Region 1:MMA Rev-Exp Region 11'!AJ27)","v":0},0,{"$f":"SUM('MMA Rev-Exp Region 1:MMA Rev-Exp Region 11'!AL27)","v":0},{"$f":"SUM('MMA Rev-Exp Region 1:MMA Rev-Exp Region 11'!AM27)","v":0},{"$f":"SUM('MMA Rev-Exp Region 1:MMA Rev-Exp Region 11'!AN27)","v":0},{"$f":"SUM('MMA Rev-Exp Region 1:MMA Rev-Exp Region 11'!AO27)","v":0},{"$f":"SUM('MMA Rev-Exp Region 1:MMA Rev-Exp Region 11'!AP27)","v":0},{"$f":"SUM('MMA Rev-Exp Region 1:MMA Rev-Exp Region 11'!AQ27)","v":0},{"$f":"SUM('MMA Rev-Exp Region 1:MMA Rev-Exp Region 11'!AR27)","v":0},{"$f":"SUM('MMA Rev-Exp Region 1:MMA Rev-Exp Region 11'!AS27)","v":0},{"$f":"SUM('MMA Rev-Exp Region 1:MMA Rev-Exp Region 11'!AT27)","v":0},{"$f":"SUM('MMA Rev-Exp Region 1:MMA Rev-Exp Region 11'!AU27)","v":0},{"$f":"SUM('MMA Rev-Exp Region 1:MMA Rev-Exp Region 11'!AV27)","v":0},0,{"$f":"SUM('MMA Rev-Exp Region 1:MMA Rev-Exp Region 11'!AX27)","v":0},{"$f":"SUM('MMA Rev-Exp Region 1:MMA Rev-Exp Region 11'!AY27)","v":0},{"$f":"SUM('MMA Rev-Exp Region 1:MMA Rev-Exp Region 11'!AZ27)","v":0},{"$f":"SUM('MMA Rev-Exp Region 1:MMA Rev-Exp Region 11'!BA27)","v":0},{"$f":"SUM('MMA Rev-Exp Region 1:MMA Rev-Exp Region 11'!BB27)","v":0},{"$f":"SUM('MMA Rev-Exp Region 1:MMA Rev-Exp Region 11'!BC27)","v":0},{"$f":"SUM('MMA Rev-Exp Region 1:MMA Rev-Exp Region 11'!BD27)","v":0},{"$f":"SUM('MMA Rev-Exp Region 1:MMA Rev-Exp Region 11'!BE27)","v":0},{"$f":"SUM('MMA Rev-Exp Region 1:MMA Rev-Exp Region 11'!BF27)","v":0},{"$f":"SUM('MMA Rev-Exp Region 1:MMA Rev-Exp Region 11'!BG27)","v":0}]
[null,"2.8","Total Hospital Services",{"$f":"SUM(D20:D27)","v":0},{"$f":"SUM(E20:E27)","v":0},0,0,0,{"$f":"SUM(I20:I27)","v":0},0,0,0,0,0,{"$f":"SUM(O20:O27)","v":0},{"$f":"SUM(P20:P27)","v":0},0,0,0,0,0,0,0,0,0,{"$f":"SUM(Z20:Z27)","v":0},{"$f":"SUM(AA20:AA27)","v":0},0,0,0,0,0,0,0,0,0,{"$f":"SUM(AK20:AK27)","v":0},{"$f":"SUM(AL20:AL27)","v":0},0,0,0,0,0,0,0,0,0,{"$f":"SUM(AV20:AV27)","v":0},{"$f":"SUM(AW20:AW27)","v":0},{"$f":"SUM(AX20:AX27)","v":0},{"$f":"SUM(AY20:AY27)","v":0},0,0,0,0,0,0,0,0]
["Professional Services",3.1,"Primary Care FFS",{"$f":"SUM(E29:N29)","v":0},{"$f":"SUM('MMA Rev-Exp Region 1:MMA Rev-Exp Region 11'!E29)","v":0},{"$f":"SUM('MMA Rev-Exp Region 1:MMA Rev-Exp Region 11'!F29)","v":0},{"$f":"SUM('MMA Rev-Exp Region 1:MMA Rev-Exp Region 11'!G29)","v":0},{"$f":"SUM('MMA Rev-Exp Region 1:MMA Rev-Exp Region 11'!H29)","v":0},{"$f":"SUM('MMA Rev-Exp Region 1:MMA Rev-Exp Region 11'!I29)","v":0},{"$f":"SUM('MMA Rev-Exp Region 1:MMA Rev-Exp Region 11'!J29)","v":0},{"$f":"SUM('MMA Rev-Exp Region 1:MMA Rev-Exp Region 11'!K29)","v":0},{"$f":"SUM('MMA Rev-Exp Region 1:MMA Rev-Exp Region 11'!L29)","v":0},{"$f":"SUM('MMA Rev-Exp Region 1:MMA Rev-Exp Region 11'!M29)","v":0},{"$f":"SUM('MMA Rev-Exp Region 1:MMA Rev-Exp Region 11'!N29)","v":0},{"$f":"SUM(P29:Y29)","v":0},{"$f":"SUM('MMA Rev-Exp Region 1:MMA Rev-Exp Region 11'!P29)","v":0},{"$f":"SUM('MMA Rev-Exp Region 1:MMA Rev-Exp Region 11'!Q29)","v":0},{"$f":"SUM('MMA Rev-Exp Region 1:MMA Rev-Exp Region 11'!R29)","v":0},{"$f":"SUM('MMA Rev-Exp Region 1:MMA Rev-Exp Region 11'!S29)","v":0},{"$f":"SUM('MMA Rev-Exp Region 1:MMA Rev-Exp Region 11'!T29)","v":0},{"$f":"SUM('MMA Rev-Exp Region 1:MMA Rev-Exp Region 11'!U29)","v":0},{"$f":"SUM('MMA Rev-Exp Region 1:MMA Rev-Exp Region 11'!V29)","v":0},{"$f":"SUM('MMA Rev-Exp Region 1:MMA Rev-Exp Region 11'!W29)","v":0},{"$f":"SUM('MMA Rev-Exp Region 1:MMA Rev-Exp Region 11'!X29)","v":0},{"$f":"SUM('MMA Rev-Exp Region 1:MMA Rev-Exp Region 11'!Y29)","v":0},{"$f":"SUM(AA29:AJ29)","v":0},{"$f":"SUM('MMA Rev-Exp Region 1:MMA Rev-Exp Region 11'!AA29)","v":0},{"$f":"SUM('MMA Rev-Exp Region 1:MMA Rev-Exp Region 11'!AB29)","v":0},{"$f":"SUM('MMA Rev-Exp Region 1:MMA Rev-Exp Region 11'!AC29)","v":0},{"$f":"SUM('MMA Rev-Exp Region 1:MMA Rev-Exp Region 11'!AD29)","v":0},{"$f":"SUM('MMA Rev-Exp Region 1:MMA Rev-Exp Region 11'!AE29)","v":0},{"$f":"SUM('MMA Rev-Exp Region 1:MMA Rev-Exp Region 11'!AF29)","v":0},{"$f":"SUM('MMA Rev-Exp Region 1:MMA Rev-Exp Region 11'!AG29)","v":0},{"$f":"SUM('MMA Rev-Exp Region 1:MMA Rev-Exp Region 11'!AH29)","v":0},{"$f":"SUM('MMA Rev-Exp Region 1:MMA Rev-Exp Region 11'!AI29)","v":0},{"$f":"SUM('MMA Rev-Exp Region 1:MMA Rev-Exp Region 11'!AJ29)","v":0},{"$f":"SUM(AL29:AU29)","v":0},{"$f":"SUM('MMA Rev-Exp Region 1:MMA Rev-Exp Region 11'!AL29)","v":0},{"$f":"SUM('MMA Rev-Exp Region 1:MMA Rev-Exp Region 11'!AM29)","v":0},{"$f":"SUM('MMA Rev-Exp Region 1:MMA Rev-Exp Region 11'!AN29)","v":0},{"$f":"SUM('MMA Rev-Exp Region 1:MMA Rev-Exp Region 11'!AO29)","v":0},{"$f":"SUM('MMA Rev-Exp Region 1:MMA Rev-Exp Region 11'!AP29)","v":0},{"$f":"SUM('MMA Rev-Exp Region 1:MMA Rev-Exp Region 11'!AQ29)","v":0},{"$f":"SUM('MMA Rev-Exp Region 1:MMA Rev-Exp Region 11'!AR29)","v":0},{"$f":"SUM('MMA Rev-Exp Region 1:MMA Rev-Exp Region 11'!AS29)","v":0},{"$f":"SUM('MMA Rev-Exp Region 1:MMA Rev-Exp Region 11'!AT29)","v":0},{"$f":"SUM('MMA Rev-Exp Region 1:MMA Rev-Exp Region 11'!AU29)","v":0},{"$f":"SUM('MMA Rev-Exp Region 1:MMA Rev-Exp Region 11'!AV29)","v":0},{"$f":"SUM(AX29:BG29)+AV29","v":0},{"$f":"SUM('MMA Rev-Exp Region 1:MMA Rev-Exp Region 11'!AX29)","v":0},{"$f":"SUM('MMA Rev-Exp Region 1:MMA Rev-Exp Region 11'!AY29)","v":0},{"$f":"SUM('MMA Rev-Exp Region 1:MMA Rev-Exp Region 11'!AZ29)","v":0},{"$f":"SUM('MMA Rev-Exp Region 1:MMA Rev-Exp Region 11'!BA29)","v":0},{"$f":"SUM('MMA Rev-Exp Region 1:MMA Rev-Exp Region 11'!BB29)","v":0},{"$f":"SUM('MMA Rev-Exp Region 1:MMA Rev-Exp Region 11'!BC29)","v":0},{"$f":"SUM('MMA Rev-Exp Region 1:MMA Rev-Exp Region 11'!BD29)","v":0},{"$f":"SUM('MMA Rev-Exp Region 1:MMA Rev-Exp Region 11'!BE29)","v":0},{"$f":"SUM('MMA Rev-Exp Region 1:MMA Rev-Exp Region 11'!BF29)","v":0},{"$f":"SUM('MMA Rev-Exp Region 1:MMA Rev-Exp Region 11'!BG29)","v":0}]
[null,3.2,"Specialty Care FFS",0,{"$f":"SUM('MMA Rev-Exp Region 1:MMA Rev-Exp Region 11'!E30)","v":0},{"$f":"SUM('MMA Rev-Exp Region 1:MMA Rev-Exp Region 11'!F30)","v":0},{"$f":"SUM('MMA Rev-Exp Region 1:MMA Rev-Exp Region 11'!G30)","v":0},{"$f":"SUM('MMA Rev-Exp Region 1:MMA Rev-Exp Region 11'!H30)","v":0},{"$f":"SUM('MMA Rev-Exp Region 1:MMA Rev-Exp Region 11'!I30)","v":0},{"$f":"SUM('MMA Rev-Exp Region 1:MMA Rev-Exp Region 11'!J30)","v":0},{"$f":"SUM('MMA Rev-Exp Region 1:MMA Rev-Exp Region 11'!K30)","v":0},{"$f":"SUM('MMA Rev-Exp Region 1:MMA Rev-Exp Region 11'!L30)","v":0},{"$f":"SUM('MMA Rev-Exp Region 1:MMA Rev-Exp Region 11'!M30)","v":0},{"$f":"SUM('MMA Rev-Exp Region 1:MMA Rev-Exp Region 11'!N30)","v":0},0,{"$f":"SUM('MMA Rev-Exp Region 1:MMA Rev-Exp Region 11'!P30)","v":0},{"$f":"SUM('MMA Rev-Exp Region 1:MMA Rev-Exp Region 11'!Q30)","v":0},{"$f":"SUM('MMA Rev-Exp Region 1:MMA Rev-Exp Region 11'!R30)","v":0},{"$f":"SUM('MMA Rev-Exp Region 1:MMA Rev-Exp Region 11'!S30)","v":0},{"$f":"SUM('MMA Rev-Exp Region 1:MMA Rev-Exp Region 11'!T30)","v":0},{"$f":"SUM('MMA Rev-Exp Region 1:MMA Rev-Exp Region 11'!U30)","v":0},{"$f":"SUM('MMA Rev-Exp Region 1:MMA Rev-Exp Region 11'!V30)","v":0},{"$f":"SUM('MMA Rev-Exp Region 1:MMA Rev-Exp Region 11'!W30)","v":0},{"$f":"SUM('MMA Rev-Exp Region 1:MMA Rev-Exp Region 11'!X30)","v":0},{"$f":"SUM('MMA Rev-Exp Region 1:MMA Rev-Exp Region 11'!Y30)","v":0},0,{"$f":"SUM('MMA Rev-Exp Region 1:MMA Rev-Exp Region 11'!AA30)","v":0},{"$f":"SUM('MMA Rev-Exp Region 1:MMA Rev-Exp Region 11'!AB30)","v":0},{"$f":"SUM('MMA Rev-Exp Region 1:MMA Rev-Exp Region 11'!AC30)","v":0},{"$f":"SUM('MMA Rev-Exp Region 1:MMA Rev-Exp Region 11'!AD30)","v":0},{"$f":"SUM('MMA Rev-Exp Region 1:MMA Rev-Exp Region 11'!AE30)","v":0},{"$f":"SUM('MMA Rev-Exp Region 1:MMA Rev-Exp Region 11'!AF30)","v":0},{"$f":"SUM('MMA Rev-Exp Region 1:MMA Rev-Exp Region 11'!AG30)","v":0},{"$f":"SUM('MMA Rev-Exp Region 1:MMA Rev-Exp Region 11'!AH30)","v":0},{"$f":"SUM('MMA Rev-Exp Region 1:MMA Rev-Exp Region 11'!AI30)","v":0},{"$f":"SUM('MMA Rev-Exp Region 1:MMA Rev-Exp Region 11'!AJ30)","v":0},0,{"$f":"SUM('MMA Rev-Exp Region 1:MMA Rev-Exp Region 11'!AL30)","v":0},{"$f":"SUM('MMA Rev-Exp Region 1:MMA Rev-Exp Region 11'!AM30)","v":0},{"$f":"SUM('MMA Rev-Exp Region 1:MMA Rev-Exp Region 11'!AN30)","v":0},{"$f":"SUM('MMA Rev-Exp Region 1:MMA Rev-Exp Region 11'!AO30)","v":0},{"$f":"SUM('MMA Rev-Exp Region 1:MMA Rev-Exp Region 11'!AP30)","v":0},{"$f":"SUM('MMA Rev-Exp Region 1:MMA Rev-Exp Region 11'!AQ30)","v":0},{"$f":"SUM('MMA Rev-Exp Region 1:MMA Rev-Exp Region 11'!AR30)","v":0},{"$f":"SUM('MMA Rev-Exp Region 1:MMA Rev-Exp Region 11'!AS30)","v":0},{"$f":"SUM('MMA Rev-Exp Region 1:MMA Rev-Exp Region 11'!AT30)","v":0},{"$f":"SUM('MMA Rev-Exp Region 1:MMA Rev-Exp Region 11'!AU30)","v":0},{"$f":"SUM('MMA Rev-Exp Region 1:MMA Rev-Exp Region 11'!AV30)","v":0},{"$f":"SUM(AX30:BG30)+AV30","v":0},{"$f":"SUM('MMA Rev-Exp Region 1:MMA Rev-Exp Region 11'!AX30)","v":0},{"$f":"SUM('MMA Rev-Exp Region 1:MMA Rev-Exp Region 11'!AY30)","v":0},{"$f":"SUM('MMA Rev-Exp Region 1:MMA Rev-Exp Region 11'!AZ30)","v":0},{"$f":"SUM('MMA Rev-Exp Region 1:MMA Rev-Exp Region 11'!BA30)","v":0},{"$f":"SUM('MMA Rev-Exp Region 1:MMA Rev-Exp Region 11'!BB30)","v":0},{"$f":"SUM('MMA Rev-Exp Region 1:MMA Rev-Exp Region 11'!BC30)","v":0},{"$f":"SUM('MMA Rev-Exp Region 1:MMA Rev-Exp Region 11'!BD30)","v":0},{"$f":"SUM('MMA Rev-Exp Region 1:MMA Rev-Exp Region 11'!BE30)","v":0},{"$f":"SUM('MMA Rev-Exp Region 1:MMA Rev-Exp Region 11'!BF30)","v":0},{"$f":"SUM('MMA Rev-Exp Region 1:MMA Rev-Exp Region 11'!BG30)","v":0}]
[null,3.3,"Other Professional FFS",0,{"$f":"SUM('MMA Rev-Exp Region 1:MMA Rev-Exp Region 11'!E31)","v":0},{"$f":"SUM('MMA Rev-Exp Region 1:MMA Rev-Exp Region 11'!F31)","v":0},{"$f":"SUM('MMA Rev-Exp Region 1:MMA Rev-Exp Region 11'!G31)","v":0},{"$f":"SUM('MMA Rev-Exp Region 1:MMA Rev-Exp Region 11'!H31)","v":0},{"$f":"SUM('MMA Rev-Exp Region 1:MMA Rev-Exp Region 11'!I31)","v":0},{"$f":"SUM('MMA Rev-Exp Region 1:MMA Rev-Exp Region 11'!J31)","v":0},{"$f":"SUM('MMA Rev-Exp Region 1:MMA Rev-Exp Region 11'!K31)","v":0},{"$f":"SUM('MMA Rev-Exp Region 1:MMA Rev-Exp Region 11'!L31)","v":0},{"$f":"SUM('MMA Rev-Exp Region 1:MMA Rev-Exp Region 11'!M31)","v":0},{"$f":"SUM('MMA Rev-Exp Region 1:MMA Rev-Exp Region 11'!N31)","v":0},0,{"$f":"SUM('MMA Rev-Exp Region 1:MMA Rev-Exp Region 11'!P31)","v":0},{"$f":"SUM('MMA Rev-Exp Region 1:MMA Rev-Exp Region 11'!Q31)","v":0},{"$f":"SUM('MMA Rev-Exp Region 1:MMA Rev-Exp Region 11'!R31)","v":0},{"$f":"SUM('MMA Rev-Exp Region 1:MMA Rev-Exp Region 11'!S31)","v":0},{"$f":"SUM('MMA Rev-Exp Region 1:MMA Rev-Exp Region 11'!T31)","v":0},{"$f":"SUM('MMA Rev-Exp Region 1:MMA Rev-Exp Region 11'!U31)","v":0},{"$f":"SUM('MMA Rev-Exp Region 1:MMA Rev-Exp Region 11'!V31)","v":0},{"$f":"SUM('MMA Rev-Exp Region 1:MMA Rev-Exp Region 11'!W31)","v":0},{"$f":"SUM('MMA Rev-Exp Region 1:MMA Rev-Exp Region 11'!X31)","v":0},{"$f":"SUM('MMA Rev-Exp Region 1:MMA Rev-Exp Region 11'!Y31)","v":0},0,{"$f":"SUM('MMA Rev-Exp Region 1:MMA Rev-Exp Region 11'!AA31)","v":0},{"$f":"SUM('MMA Rev-Exp Region 1:MMA Rev-Exp Region 11'!AB31)","v":0},{"$f":"SUM('MMA Rev-Exp Region 1:MMA Rev-Exp Region 11'!AC31)","v":0},{"$f":"SUM('MMA Rev-Exp Region 1:MMA Rev-Exp Region 11'!AD31)","v":0},{"$f":"SUM('MMA Rev-Exp Region 1:MMA Rev-Exp Region 11'!AE31)","v":0},{"$f":"SUM('MMA Rev-Exp Region 1:MMA Rev-Exp Region 11'!AF31)","v":0},{"$f":"SUM('MMA Rev-Exp Region 1:MMA Rev-Exp Region 11'!AG31)","v":0},{"$f":"SUM('MMA Rev-Exp Region 1:MMA Rev-Exp Region 11'!AH31)","v":0},{"$f":"SUM('MMA Rev-Exp Region 1:MMA Rev-Exp Region 11'!AI31)","v":0},{"$f":"SUM('MMA Rev-Exp Region 1:MMA Rev-Exp Region 11'!AJ31)","v":0},0,{"$f":"SUM('MMA Rev-Exp Region 1:MMA Rev-Exp Region 11'!AL31)","v":0},{"$f":"SUM('MMA Rev-Exp Region 1:MMA Rev-Exp Region 11'!AM31)","v":0},{"$f":"SUM('MMA Rev-Exp Region 1:MMA Rev-Exp Region 11'!AN31)","v":0},{"$f":"SUM('MMA Rev-Exp Region 1:MMA Rev-Exp Region 11'!AO31)","v":0},{"$f":"SUM('MMA Rev-Exp Region 1:MMA Rev-Exp Region 11'!AP31)","v":0},{"$f":"SUM('MMA Rev-Exp Region 1:MMA Rev-Exp Region 11'!AQ31)","v":0},{"$f":"SUM('MMA Rev-Exp Region 1:MMA Rev-Exp Region 11'!AR31)","v":0},{"$f":"SUM('MMA Rev-Exp Region 1:MMA Rev-Exp Region 11'!AS31)","v":0},{"$f":"SUM('MMA Rev-Exp Region 1:MMA Rev-Exp Region 11'!AT31)","v":0},{"$f":"SUM('MMA Rev-Exp Region 1:MMA Rev-Exp Region 11'!AU31)","v":0},{"$f":"SUM('MMA Rev-Exp Region 1:MMA Rev-Exp Region 11'!AV31)","v":0},0,{"$f":"SUM('MMA Rev-Exp Region 1:MMA Rev-Exp Region 11'!AX31)","v":0},{"$f":"SUM('MMA Rev-Exp Region 1:MMA Rev-Exp Region 11'!AY31)","v":0},{"$f":"SUM('MMA Rev-Exp Region 1:MMA Rev-Exp Region 11'!AZ31)","v":0},{"$f":"SUM('MMA Rev-Exp Region 1:MMA Rev-Exp Region 11'!BA31)","v":0},{"$f":"SUM('MMA Rev-Exp Region 1:MMA Rev-Exp Region 11'!BB31)","v":0},{"$f":"SUM('MMA Rev-Exp Region 1:MMA Rev-Exp Region 11'!BC31)","v":0},{"$f":"SUM('MMA Rev-Exp Region 1:MMA Rev-Exp Region 11'!BD31)","v":0},{"$f":"SUM('MMA Rev-Exp Region 1:MMA Rev-Exp Region 11'!BE31)","v":0},{"$f":"SUM('MMA Rev-Exp Region 1:MMA Rev-Exp Region 11'!BF31)","v":0},{"$f":"SUM('MMA Rev-Exp Region 1:MMA Rev-Exp Region 11'!BG31)","v":0}]
[null,"3.4","§ 1202 PCP Payments to providers",0,{"$f":"SUM('MMA Rev-Exp Region 1:MMA Rev-Exp Region 11'!E32)","v":0},{"$f":"SUM('MMA Rev-Exp Region 1:MMA Rev-Exp Region 11'!F32)","v":0},{"$f":"SUM('MMA Rev-Exp Region 1:MMA Rev-Exp Region 11'!G32)","v":0},{"$f":"SUM('MMA Rev-Exp Region 1:MMA Rev-Exp Region 11'!H32)","v":0},{"$f":"SUM('MMA Rev-Exp Region 1:MMA Rev-Exp Region 11'!I32)","v":0},{"$f":"SUM('MMA Rev-Exp Region 1:MMA Rev-Exp Region 11'!J32)","v":0},{"$f":"SUM('MMA Rev-Exp Region 1:MMA Rev-Exp Region 11'!K32)","v":0},{"$f":"SUM('MMA Rev-Exp Region 1:MMA Rev-Exp Region 11'!L32)","v":0},{"$f":"SUM('MMA Rev-Exp Region 1:MMA Rev-Exp Region 11'!M32)","v":0},{"$f":"SUM('MMA Rev-Exp Region 1:MMA Rev-Exp Region 11'!N32)","v":0},0,{"$f":"SUM('MMA Rev-Exp Region 1:MMA Rev-Exp Region 11'!P32)","v":0},{"$f":"SUM('MMA Rev-Exp Region 1:MMA Rev-Exp Region 11'!Q32)","v":0},{"$f":"SUM('MMA Rev-Exp Region 1:MMA Rev-Exp Region 11'!R32)","v":0},{"$f":"SUM('MMA Rev-Exp Region 1:MMA Rev-Exp Region 11'!S32)","v":0},{"$f":"SUM('MMA Rev-Exp Region 1:MMA Rev-Exp Region 11'!T32)","v":0},{"$f":"SUM('MMA Rev-Exp Region 1:MMA Rev-Exp Region 11'!U32)","v":0},{"$f":"SUM('MMA Rev-Exp Region 1:MMA Rev-Exp Region 11'!V32)","v":0},{"$f":"SUM('MMA Rev-Exp Region 1:MMA Rev-Exp Region 11'!W32)","v":0},{"$f":"SUM('MMA Rev-Exp Region 1:MMA Rev-Exp Region 11'!X32)","v":0},{"$f":"SUM('MMA Rev-Exp Region 1:MMA Rev-Exp Region 11'!Y32)","v":0},0,{"$f":"SUM('MMA Rev-Exp Region 1:MMA Rev-Exp Region 11'!AA32)","v":0},{"$f":"SUM('MMA Rev-Exp Region 1:MMA Rev-Exp Region 11'!AB32)","v":0},{"$f":"SUM('MMA Rev-Exp Region 1:MMA Rev-Exp Region 11'!AC32)","v":0},{"$f":"SUM('MMA Rev-Exp Region 1:MMA Rev-Exp Region 11'!AD32)","v":0},{"$f":"SUM('MMA Rev-Exp Region 1:MMA Rev-Exp Region 11'!AE32)","v":0},{"$f":"SUM('MMA Rev-Exp Region 1:MMA Rev-Exp Region 11'!AF32)","v":0},{"$f":"SUM('MMA Rev-Exp Region 1:MMA Rev-Exp Region 11'!AG32)","v":0},{"$f":"SUM('MMA Rev-Exp Region 1:MMA Rev-Exp Region 11'!AH32)","v":0},{"$f":"SUM('MMA Rev-Exp Region 1:MMA Rev-Exp Region 11'!AI32)","v":0},{"$f":"SUM('MMA Rev-Exp Region 1:MMA Rev-Exp Region 11'!AJ32)","v":0},0,{"$f":"SUM('MMA Rev-Exp Region 1:MMA Rev-Exp Region 11'!AL32)","v":0},{"$f":"SUM('MMA Rev-Exp Region 1:MMA Rev-Exp Region 11'!AM32)","v":0},{"$f":"SUM('MMA Rev-Exp Region 1:MMA Rev-Exp Region 11'!AN32)","v":0},{"$f":"SUM('MMA Rev-Exp Region 1:MMA Rev-Exp Region 11'!AO32)","v":0},{"$f":"SUM('MMA Rev-Exp Region 1:MMA Rev-Exp Region 11'!AP32)","v":0},{"$f":"SUM('MMA Rev-Exp Region 1:MMA Rev-Exp Region 11'!AQ32)","v":0},{"$f":"SUM('MMA Rev-Exp Region 1:MMA Rev-Exp Region 11'!AR32)","v":0},{"$f":"SUM('MMA Rev-Exp Region 1:MMA Rev-Exp Region 11'!AS32)","v":0},{"$f":"SUM('MMA Rev-Exp Region 1:MMA Rev-Exp Region 11'!AT32)","v":0},{"$f":"SUM('MMA Rev-Exp Region 1:MMA Rev-Exp Region 11'!AU32)","v":0},{"$f":"SUM('MMA Rev-Exp Region 1:MMA Rev-Exp Region 11'!AV32)","v":0},0,{"$f":"SUM('MMA Rev-Exp Region 1:MMA Rev-Exp Region 11'!AX32)","v":0},{"$f":"SUM('MMA Rev-Exp Region 1:MMA Rev-Exp Region 11'!AY32)","v":0},{"$f":"SUM('MMA Rev-Exp Region 1:MMA Rev-Exp Region 11'!AZ32)","v":0},{"$f":"SUM('MMA Rev-Exp Region 1:MMA Rev-Exp Region 11'!BA32)","v":0},{"$f":"SUM('MMA Rev-Exp Region 1:MMA Rev-Exp Region 11'!BB32)","v":0},{"$f":"SUM('MMA Rev-Exp Region 1:MMA Rev-Exp Region 11'!BC32)","v":0},{"$f":"SUM('MMA Rev-Exp Region 1:MMA Rev-Exp Region 11'!BD32)","v":0},{"$f":"SUM('MMA Rev-Exp Region 1:MMA Rev-Exp Region 11'!BE32)","v":0},{"$f":"SUM('MMA Rev-Exp Region 1:MMA Rev-Exp Region 11'!BF32)","v":0},{"$f":"SUM('MMA Rev-Exp Region 1:MMA Rev-Exp Region 11'!BG32)","v":0}]
[null,"3.5","Subcapitated Professional Services",0,{"$f":"SUM('MMA Rev-Exp Region 1:MMA Rev-Exp Region 11'!E33)","v":0},{"$f":"SUM('MMA Rev-Exp Region 1:MMA Rev-Exp Region 11'!F33)","v":0},{"$f":"SUM('MMA Rev-Exp Region 1:MMA Rev-Exp Region 11'!G33)","v":0},{"$f":"SUM('MMA Rev-Exp Region 1:MMA Rev-Exp Region 11'!H33)","v":0},{"$f":"SUM('MMA Rev-Exp Region 1:MMA Rev-Exp Region 11'!I33)","v":0},{"$f":"SUM('MMA Rev-Exp Region 1:MMA Rev-Exp Region 11'!J33)","v":0},{"$f":"SUM('MMA Rev-Exp Region 1:MMA Rev-Exp Region 11'!K33)","v":0},{"$f":"SUM('MMA Rev-Exp Region 1:MMA Rev-Exp Region 11'!L33)","v":0},{"$f":"SUM('MMA Rev-Exp Region 1:MMA Rev-Exp Region 11'!M33)","v":0},{"$f":"SUM('MMA Rev-Exp Region 1:MMA Rev-Exp Region 11'!N33)","v":0},0,{"$f":"SUM('MMA Rev-Exp Region 1:MMA Rev-Exp Region 11'!P33)","v":0},{"$f":"SUM('MMA Rev-Exp Region 1:MMA Rev-Exp Region 11'!Q33)","v":0},{"$f":"SUM('MMA Rev-Exp Region 1:MMA Rev-Exp Region 11'!R33)","v":0},{"$f":"SUM('MMA Rev-Exp Region 1:MMA Rev-Exp Region 11'!S33)","v":0},{"$f":"SUM('MMA Rev-Exp Region 1:MMA Rev-Exp Region 11'!T33)","v":0},{"$f":"SUM('MMA Rev-Exp Region 1:MMA Rev-Exp Region 11'!U33)","v":0},{"$f":"SUM('MMA Rev-Exp Region 1:MMA Rev-Exp Region 11'!V33)","v":0},{"$f":"SUM('MMA Rev-Exp Region 1:MMA Rev-Exp Region 11'!W33)","v":0},{"$f":"SUM('MMA Rev-Exp Region 1:MMA Rev-Exp Region 11'!X33)","v":0},{"$f":"SUM('MMA Rev-Exp Region 1:MMA Rev-Exp Region 11'!Y33)","v":0},0,{"$f":"SUM('MMA Rev-Exp Region 1:MMA Rev-Exp Region 11'!AA33)","v":0},{"$f":"SUM('MMA Rev-Exp Region 1:MMA Rev-Exp Region 11'!AB33)","v":0},{"$f":"SUM('MMA Rev-Exp Region 1:MMA Rev-Exp Region 11'!AC33)","v":0},{"$f":"SUM('MMA Rev-Exp Region 1:MMA Rev-Exp Region 11'!AD33)","v":0},{"$f":"SUM('MMA Rev-Exp Region 1:MMA Rev-Exp Region 11'!AE33)","v":0},{"$f":"SUM('MMA Rev-Exp Region 1:MMA Rev-Exp Region 11'!AF33)","v":0},{"$f":"SUM('MMA Rev-Exp Region 1:MMA Rev-Exp Region 11'!AG33)","v":0},{"$f":"SUM('MMA Rev-Exp Region 1:MMA Rev-Exp Region 11'!AH33)","v":0},{"$f":"SUM('MMA Rev-Exp Region 1:MMA Rev-Exp Region 11'!AI33)","v":0},{"$f":"SUM('MMA Rev-Exp Region 1:MMA Rev-Exp Region 11'!AJ33)","v":0},0,{"$f":"SUM('MMA Rev-Exp Region 1:MMA Rev-Exp Region 11'!AL33)","v":0},{"$f":"SUM('MMA Rev-Exp Region 1:MMA Rev-Exp Region 11'!AM33)","v":0},{"$f":"SUM('MMA Rev-Exp Region 1:MMA Rev-Exp Region 11'!AN33)","v":0},{"$f":"SUM('MMA Rev-Exp Region 1:MMA Rev-Exp Region 11'!AO33)","v":0},{"$f":"SUM('MMA Rev-Exp Region 1:MMA Rev-Exp Region 11'!AP33)","v":0},{"$f":"SUM('MMA Rev-Exp Region 1:MMA Rev-Exp Region 11'!AQ33)","v":0},{"$f":"SUM('MMA Rev-Exp Region 1:MMA Rev-Exp Region 11'!AR33)","v":0},{"$f":"SUM('MMA Rev-Exp Region 1:MMA Rev-Exp Region 11'!AS33)","v":0},{"$f":"SUM('MMA Rev-Exp Region 1:MMA Rev-Exp Region 11'!AT33)","v":0},{"$f":"SUM('MMA Rev-Exp Region 1:MMA Rev-Exp Region 11'!AU33)","v":0},{"$f":"SUM('MMA Rev-Exp Region 1:MMA Rev-Exp Region 11'!AV33)","v":0},0,{"$f":"SUM('MMA Rev-Exp Region 1:MMA Rev-Exp Region 11'!AX33)","v":0},{"$f":"SUM('MMA Rev-Exp Region 1:MMA Rev-Exp Region 11'!AY33)","v":0},{"$f":"SUM('MMA Rev-Exp Region 1:MMA Rev-Exp Region 11'!AZ33)","v":0},{"$f":"SUM('MMA Rev-Exp Region 1:MMA Rev-Exp Region 11'!BA33)","v":0},{"$f":"SUM('MMA Rev-Exp Region 1:MMA Rev-Exp Region 11'!BB33)","v":0},{"$f":"SUM('MMA Rev-Exp Region 1:MMA Rev-Exp Region 11'!BC33)","v":0},{"$f":"SUM('MMA Rev-Exp Region 1:MMA Rev-Exp Region 11'!BD33)","v":0},{"$f":"SUM('MMA Rev-Exp Region 1:MMA Rev-Exp Region 11'!BE33)","v":0},{"$f":"SUM('MMA Rev-Exp Region 1:MMA Rev-Exp Region 11'!BF33)","v":0},{"$f":"SUM('MMA Rev-Exp Region 1:MMA Rev-Exp Region 11'!BG33)","v":0}]
[null,"3.6","Ending IBNP for Professional Services",0,{"$f":"SUM('MMA Rev-Exp Region 1:MMA Rev-Exp Region 11'!E34)","v":0},{"$f":"SUM('MMA Rev-Exp Region 1:MMA Rev-Exp Region 11'!F34)","v":0},{"$f":"SUM('MMA Rev-Exp Region 1:MMA Rev-Exp Region 11'!G34)","v":0},{"$f":"SUM('MMA Rev-Exp Region 1:MMA Rev-Exp Region 11'!H34)","v":0},{"$f":"SUM('MMA Rev-Exp Region 1:MMA Rev-Exp Region 11'!I34)","v":0},{"$f":"SUM('MMA Rev-Exp Region 1:MMA Rev-Exp Region 11'!J34)","v":0},{"$f":"SUM('MMA Rev-Exp Region 1:MMA Rev-Exp Region 11'!K34)","v":0},{"$f":"SUM('MMA Rev-Exp Region 1:MMA Rev-Exp Region 11'!L34)","v":0},{"$f":"SUM('MMA Rev-Exp Region 1:MMA Rev-Exp Region 11'!M34)","v":0},{"$f":"SUM('MMA Rev-Exp Region 1:MMA Rev-Exp Region 11'!N34)","v":0},0,{"$f":"SUM('MMA Rev-Exp Region 1:MMA Rev-Exp Region 11'!P34)","v":0},{"$f":"SUM('MMA Rev-Exp Region 1:MMA Rev-Exp Region 11'!Q34)","v":0},{"$f":"SUM('MMA Rev-Exp Region 1:MMA Rev-Exp Region 11'!R34)","v":0},{"$f":"SUM('MMA Rev-Exp Region 1:MMA Rev-Exp Region 11'!S34)","v":0},{"$f":"SUM('MMA Rev-Exp Region 1:MMA Rev-Exp Region 11'!T34)","v":0},{"$f":"SUM('MMA Rev-Exp Region 1:MMA Rev-Exp Region 11'!U34)","v":0},{"$f":"SUM('MMA Rev-Exp Region 1:MMA Rev-Exp Region 11'!V34)","v":0},{"$f":"SUM('MMA Rev-Exp Region 1:MMA Rev-Exp Region 11'!W34)","v":0},{"$f":"SUM('MMA Rev-Exp Region 1:MMA Rev-Exp Region 11'!X34)","v":0},{"$f":"SUM('MMA Rev-Exp Region 1:MMA Rev-Exp Region 11'!Y34)","v":0},0,{"$f":"SUM('MMA Rev-Exp Region 1:MMA Rev-Exp Region 11'!AA34)","v":0},{"$f":"SUM('MMA Rev-Exp Region 1:MMA Rev-Exp Region 11'!AB34)","v":0},{"$f":"SUM('MMA Rev-Exp Region 1:MMA Rev-Exp Region 11'!AC34)","v":0},{"$f":"SUM('MMA Rev-Exp Region 1:MMA Rev-Exp Region 11'!AD34)","v":0},{"$f":"SUM('MMA Rev-Exp Region 1:MMA Rev-Exp Region 11'!AE34)","v":0},{"$f":"SUM('MMA Rev-Exp Region 1:MMA Rev-Exp Region 11'!AF34)","v":0},{"$f":"SUM('MMA Rev-Exp Region 1:MMA Rev-Exp Region 11'!AG34)","v":0},{"$f":"SUM('MMA Rev-Exp Region 1:MMA Rev-Exp Region 11'!AH34)","v":0},{"$f":"SUM('MMA Rev-Exp Region 1:MMA Rev-Exp Region 11'!AI34)","v":0},{"$f":"SUM('MMA Rev-Exp Region 1:MMA Rev-Exp Region 11'!AJ34)","v":0},0,{"$f":"SUM('MMA Rev-Exp Region 1:MMA Rev-Exp Region 11'!AL34)","v":0},{"$f":"SUM('MMA Rev-Exp Region 1:MMA Rev-Exp Region 11'!AM34)","v":0},{"$f":"SUM('MMA Rev-Exp Region 1:MMA Rev-Exp Region 11'!AN34)","v":0},{"$f":"SUM('MMA Rev-Exp Region 1:MMA Rev-Exp Region 11'!AO34)","v":0},{"$f":"SUM('MMA Rev-Exp Region 1:MMA Rev-Exp Region 11'!AP34)","v":0},{"$f":"SUM('MMA Rev-Exp Region 1:MMA Rev-Exp Region 11'!AQ34)","v":0},{"$f":"SUM('MMA Rev-Exp Region 1:MMA Rev-Exp Region 11'!AR34)","v":0},{"$f":"SUM('MMA Rev-Exp Region 1:MMA Rev-Exp Region 11'!AS34)","v":0},{"$f":"SUM('MMA Rev-Exp Region 1:MMA Rev-Exp Region 11'!AT34)","v":0},{"$f":"SUM('MMA Rev-Exp Region 1:MMA Rev-Exp Region 11'!AU34)","v":0},{"$f":"SUM('MMA Rev-Exp Region 1:MMA Rev-Exp Region 11'!AV34)","v":0},0,{"$f":"SUM('MMA Rev-Exp Region 1:MMA Rev-Exp Region 11'!AX34)","v":0},{"$f":"SUM('MMA Rev-Exp Region 1:MMA Rev-Exp Region 11'!AY34)","v":0},{"$f":"SUM('MMA Rev-Exp Region 1:MMA Rev-Exp Region 11'!AZ34)","v":0},{"$f":"SUM('MMA Rev-Exp Region 1:MMA Rev-Exp Region 11'!BA34)","v":0},{"$f":"SUM('MMA Rev-Exp Region 1:MMA Rev-Exp Region 11'!BB34)","v":0},{"$f":"SUM('MMA Rev-Exp Region 1:MMA Rev-Exp Region 11'!BC34)","v":0},{"$f":"SUM('MMA Rev-Exp Region 1:MMA Rev-Exp Region 11'!BD34)","v":0},{"$f":"SUM('MMA Rev-Exp Region 1:MMA Rev-Exp Region 11'!BE34)","v":0},{"$f":"SUM('MMA Rev-Exp Region 1:MMA Rev-Exp Region 11'!BF34)","v":0},{"$f":"SUM('MMA Rev-Exp Region 1:MMA Rev-Exp Region 11'!BG34)","v":0}]
[null,"3.7","Professional Settlements/AP",0,{"$f":"SUM('MMA Rev-Exp Region 1:MMA Rev-Exp Region 11'!E35)","v":0},{"$f":"SUM('MMA Rev-Exp Region 1:MMA Rev-Exp Region 11'!F35)","v":0},{"$f":"SUM('MMA Rev-Exp Region 1:MMA Rev-Exp Region 11'!G35)","v":0},{"$f":"SUM('MMA Rev-Exp Region 1:MMA Rev-Exp Region 11'!H35)","v":0},{"$f":"SUM('MMA Rev-Exp Region 1:MMA Rev-Exp Region 11'!I35)","v":0},{"$f":"SUM('MMA Rev-Exp Region 1:MMA Rev-Exp Region 11'!J35)","v":0},{"$f":"SUM('MMA Rev-Exp Region 1:MMA Rev-Exp Region 11'!K35)","v":0},{"$f":"SUM('MMA Rev-Exp Region 1:MMA Rev-Exp Region 11'!L35)","v":0},{"$f":"SUM('MMA Rev-Exp Region 1:MMA Rev-Exp Region 11'!M35)","v":0},{"$f":"SUM('MMA Rev-Exp Region 1:MMA Rev-Exp Region 11'!N35)","v":0},0,{"$f":"SUM('MMA Rev-Exp Region 1:MMA Rev-Exp Region 11'!P35)","v":0},{"$f":"SUM('MMA Rev-Exp Region 1:MMA Rev-Exp Region 11'!Q35)","v":0},{"$f":"SUM('MMA Rev-Exp Region 1:MMA Rev-Exp Region 11'!R35)","v":0},{"$f":"SUM('MMA Rev-Exp Region 1:MMA Rev-Exp Region 11'!S35)","v":0},{"$f":"SUM('MMA Rev-Exp Region 1:MMA Rev-Exp Region 11'!T35)","v":0},{"$f":"SUM('MMA Rev-Exp Region 1:MMA Rev-Exp Region 11'!U35)","v":0},{"$f":"SUM('MMA Rev-Exp Region 1:MMA Rev-Exp Region 11'!V35)","v":0},{"$f":"SUM('MMA Rev-Exp Region 1:MMA Rev-Exp Region 11'!W35)","v":0},{"$f":"SUM('MMA Rev-Exp Region 1:MMA Rev-Exp Region 11'!X35)","v":0},{"$f":"SUM('MMA Rev-Exp Region 1:MMA Rev-Exp Region 11'!Y35)","v":0},0,{"$f":"SUM('MMA Rev-Exp Region 1:MMA Rev-Exp Region 11'!AA35)","v":0},{"$f":"SUM('MMA Rev-Exp Region 1:MMA Rev-Exp Region 11'!AB35)","v":0},{"$f":"SUM('MMA Rev-Exp Region 1:MMA Rev-Exp Region 11'!AC35)","v":0},{"$f":"SUM('MMA Rev-Exp Region 1:MMA Rev-Exp Region 11'!AD35)","v":0},{"$f":"SUM('MMA Rev-Exp Region 1:MMA Rev-Exp Region 11'!AE35)","v":0},{"$f":"SUM('MMA Rev-Exp Region 1:MMA Rev-Exp Region 11'!AF35)","v":0},{"$f":"SUM('MMA Rev-Exp Region 1:MMA Rev-Exp Region 11'!AG35)","v":0},{"$f":"SUM('MMA Rev-Exp Region 1:MMA Rev-Exp Region 11'!AH35)","v":0},{"$f":"SUM('MMA Rev-Exp Region 1:MMA Rev-Exp Region 11'!AI35)","v":0},{"$f":"SUM('MMA Rev-Exp Region 1:MMA Rev-Exp Region 11'!AJ35)","v":0},0,{"$f":"SUM('MMA Rev-Exp Region 1:MMA Rev-Exp Region 11'!AL35)","v":0},{"$f":"SUM('MMA Rev-Exp Region 1:MMA Rev-Exp Region 11'!AM35)","v":0},{"$f":"SUM('MMA Rev-Exp Region 1:MMA Rev-Exp Region 11'!AN35)","v":0},{"$f":"SUM('MMA Rev-Exp Region 1:MMA Rev-Exp Region 11'!AO35)","v":0},{"$f":"SUM('MMA Rev-Exp Region 1:MMA Rev-Exp Region 11'!AP35)","v":0},{"$f":"SUM('MMA Rev-Exp Region 1:MMA Rev-Exp Region 11'!AQ35)","v":0},{"$f":"SUM('MMA Rev-Exp Region 1:MMA Rev-Exp Region 11'!AR35)","v":0},{"$f":"SUM('MMA Rev-Exp Region 1:MMA Rev-Exp Region 11'!AS35)","v":0},{"$f":"SUM('MMA Rev-Exp Region 1:MMA Rev-Exp Region 11'!AT35)","v":0},{"$f":"SUM('MMA Rev-Exp Region 1:MMA Rev-Exp Region 11'!AU35)","v":0},{"$f":"SUM('MMA Rev-Exp Region 1:MMA Rev-Exp Region 11'!AV35)","v":0},0,{"$f":"SUM('MMA Rev-Exp Region 1:MMA Rev-Exp Region 11'!AX35)","v":0},{"$f":"SUM('MMA Rev-Exp Region 1:MMA Rev-Exp Region 11'!AY35)","v":0},{"$f":"SUM('MMA Rev-Exp Region 1:MMA Rev-Exp Region 11'!AZ35)","v":0},{"$f":"SUM('MMA Rev-Exp Region 1:MMA Rev-Exp Region 11'!BA35)","v":0},{"$f":"SUM('MMA Rev-Exp Region 1:MMA Rev-Exp Region 11'!BB35)","v":0},{"$f":"SUM('MMA Rev-Exp Region 1:MMA Rev-Exp Region 11'!BC35)","v":0},{"$f":"SUM('MMA Rev-Exp Region 1:MMA Rev-Exp Region 11'!BD35)","v":0},{"$f":"SUM('MMA Rev-Exp Region 1:MMA Rev-Exp Region 11'!BE35)","v":0},{"$f":"SUM('MMA Rev-Exp Region 1:MMA Rev-Exp Region 11'!BF35)","v":0},{"$f":"SUM('MMA Rev-Exp Region 1:MMA Rev-Exp Region 11'!BG35)","v":0}]
[null,"3.8","Total Physician Services",{"$f":"SUM(D29:D35)","v":0},{"$f":"SUM(E29:E35)","v":0},{"$f":"SUM(F29:F35)","v":0},0,0,{"$f":"SUM(I29:I35)","v":0},0,0,0,0,0,{"$f":"SUM(O29:O35)","v":0},{"$f":"SUM(P29:P35)","v":0},{"$f":"SUM(Q29:Q35)","v":0},0,0,0,0,0,0,0,0,{"$f":"SUM(Z29:Z35)","v":0},{"$f":"SUM(AA29:AA35)","v":0},{"$f":"SUM(AB29:AB35)","v":0},0,0,0,0,0,0,0,0,{"$f":"SUM(AK29:AK35)","v":0},{"$f":"SUM(AL29:AL35)","v":0},{"$f":"SUM(AM29:AM35)","v":0},0,0,0,0,0,0,0,0,{"$f":"SUM(AV29:AV35)","v":0},0,0,{"$f":"SUM(AY29:AY35)","v":0},0,0,0,0,0,0,0,0]
["Maternity Services","4.1.1","Maternity Services",{"$f":"SUM(E37:N37)","v":0},{"$f":"SUM('MMA Rev-Exp Region 1:MMA Rev-Exp Region 11'!E37)","v":0},{"$f":"SUM('MMA Rev-Exp Region 1:MMA Rev-Exp Region 11'!F37)","v":0},{"$f":"SUM('MMA Rev-Exp Region 1:MMA Rev-Exp Region 11'!G37)","v":0},{"$f":"SUM('MMA Rev-Exp Region 1:MMA Rev-Exp Region 11'!H37)","v":0},{"$f":"SUM('MMA Rev-Exp Region 1:MMA Rev-Exp Region 11'!I37)","v":0},{"$f":"SUM('MMA Rev-Exp Region 1:MMA Rev-Exp Region 11'!J37)","v":0},{"$f":"SUM('MMA Rev-Exp Region 1:MMA Rev-Exp Region 11'!K37)","v":0},{"$f":"SUM('MMA Rev-Exp Region 1:MMA Rev-Exp Region 11'!L37)","v":0},{"$f":"SUM('MMA Rev-Exp Region 1:MMA Rev-Exp Region 11'!M37)","v":0},{"$f":"SUM('MMA Rev-Exp Region 1:MMA Rev-Exp Region 11'!N37)","v":0},{"$f":"SUM(P37:Y37)","v":0},{"$f":"SUM('MMA Rev-Exp Region 1:MMA Rev-Exp Region 11'!P37)","v":0},{"$f":"SUM('MMA Rev-Exp Region 1:MMA Rev-Exp Region 11'!Q37)","v":0},{"$f":"SUM('MMA Rev-Exp Region 1:MMA Rev-Exp Region 11'!R37)","v":0},{"$f":"SUM('MMA Rev-Exp Region 1:MMA Rev-Exp Region 11'!S37)","v":0},{"$f":"SUM('MMA Rev-Exp Region 1:MMA Rev-Exp Region 11'!T37)","v":0},{"$f":"SUM('MMA Rev-Exp Region 1:MMA Rev-Exp Region 11'!U37)","v":0},{"$f":"SUM('MMA Rev-Exp Region 1:MMA Rev-Exp Region 11'!V37)","v":0},{"$f":"SUM('MMA Rev-Exp Region 1:MMA Rev-Exp Region 11'!W37)","v":0},{"$f":"SUM('MMA Rev-Exp Region 1:MMA Rev-Exp Region 11'!X37)","v":0},{"$f":"SUM('MMA Rev-Exp Region 1:MMA Rev-Exp Region 11'!Y37)","v":0},{"$f":"SUM(AA37:AJ37)","v":0},{"$f":"SUM('MMA Rev-Exp Region 1:MMA Rev-Exp Region 11'!AA37)","v":0},{"$f":"SUM('MMA Rev-Exp Region 1:MMA Rev-Exp Region 11'!AB37)","v":0},{"$f":"SUM('MMA Rev-Exp Region 1:MMA Rev-Exp Region 11'!AC37)","v":0},{"$f":"SUM('MMA Rev-Exp Region 1:MMA Rev-Exp Region 11'!AD37)","v":0},{"$f":"SUM('MMA Rev-Exp Region 1:MMA Rev-Exp Region 11'!AE37)","v":0},{"$f":"SUM('MMA Rev-Exp Region 1:MMA Rev-Exp Region 11'!AF37)","v":0},{"$f":"SUM('MMA Rev-Exp Region 1:MMA Rev-Exp Region 11'!AG37)","v":0},{"$f":"SUM('MMA Rev-Exp Region 1:MMA Rev-Exp Region 11'!AH37)","v":0},{"$f":"SUM('MMA Rev-Exp Region 1:MMA Rev-Exp Region 11'!AI37)","v":0},{"$f":"SUM('MMA Rev-Exp Region 1:MMA Rev-Exp Region 11'!AJ37)","v":0},{"$f":"SUM(AL37:AU37)","v":0},{"$f":"SUM('MMA Rev-Exp Region 1:MMA Rev-Exp Region 11'!AL37)","v":0},{"$f":"SUM('MMA Rev-Exp Region 1:MMA Rev-Exp Region 11'!AM37)","v":0},{"$f":"SUM('MMA Rev-Exp Region 1:MMA Rev-Exp Region 11'!AN37)","v":0},{"$f":"SUM('MMA Rev-Exp Region 1:MMA Rev-Exp Region 11'!AO37)","v":0},{"$f":"SUM('MMA Rev-Exp Region 1:MMA Rev-Exp Region 11'!AP37)","v":0},{"$f":"SUM('MMA Rev-Exp Region 1:MMA Rev-Exp Region 11'!AQ37)","v":0},{"$f":"SUM('MMA Rev-Exp Region 1:MMA Rev-Exp Region 11'!AR37)","v":0},{"$f":"SUM('MMA Rev-Exp Region 1:MMA Rev-Exp Region 11'!AS37)","v":0},{"$f":"SUM('MMA Rev-Exp Region 1:MMA Rev-Exp Region 11'!AT37)","v":0},{"$f":"SUM('MMA Rev-Exp Region 1:MMA Rev-Exp Region 11'!AU37)","v":0},{"$f":"SUM('MMA Rev-Exp Region 1:MMA Rev-Exp Region 11'!AV37)","v":0},{"$f":"SUM(AX37:BG37)+AV37","v":0},{"$f":"SUM('MMA Rev-Exp Region 1:MMA Rev-Exp Region 11'!AX37)","v":0},{"$f":"SUM('MMA Rev-Exp Region 1:MMA Rev-Exp Region 11'!AY37)","v":0},{"$f":"SUM('MMA Rev-Exp Region 1:MMA Rev-Exp Region 11'!AZ37)","v":0},{"$f":"SUM('MMA Rev-Exp Region 1:MMA Rev-Exp Region 11'!BA37)","v":0},{"$f":"SUM('MMA Rev-Exp Region 1:MMA Rev-Exp Region 11'!BB37)","v":0},{"$f":"SUM('MMA Rev-Exp Region 1:MMA Rev-Exp Region 11'!BC37)","v":0},{"$f":"SUM('MMA Rev-Exp Region 1:MMA Rev-Exp Region 11'!BD37)","v":0},{"$f":"SUM('MMA Rev-Exp Region 1:MMA Rev-Exp Region 11'!BE37)","v":0},{"$f":"SUM('MMA Rev-Exp Region 1:MMA Rev-Exp Region 11'!BF37)","v":0},{"$f":"SUM('MMA Rev-Exp Region 1:MMA Rev-Exp Region 11'!BG37)","v":0}]
[null,"4.2.1","Ending IBNP for Maternity Services",{"$f":"SUM(E38:N38)","v":0},{"$f":"SUM('MMA Rev-Exp Region 1:MMA Rev-Exp Region 11'!E38)","v":0},{"$f":"SUM('MMA Rev-Exp Region 1:MMA Rev-Exp Region 11'!F38)","v":0},{"$f":"SUM('MMA Rev-Exp Region 1:MMA Rev-Exp Region 11'!G38)","v":0},{"$f":"SUM('MMA Rev-Exp Region 1:MMA Rev-Exp Region 11'!H38)","v":0},{"$f":"SUM('MMA Rev-Exp Region 1:MMA Rev-Exp Region 11'!I38)","v":0},{"$f":"SUM('MMA Rev-Exp Region 1:MMA Rev-Exp Region 11'!J38)","v":0},{"$f":"SUM('MMA Rev-Exp Region 1:MMA Rev-Exp Region 11'!K38)","v":0},{"$f":"SUM('MMA Rev-Exp Region 1:MMA Rev-Exp Region 11'!L38)","v":0},{"$f":"SUM('MMA Rev-Exp Region 1:MMA Rev-Exp Region 11'!M38)","v":0},{"$f":"SUM('MMA Rev-Exp Region 1:MMA Rev-Exp Region 11'!N38)","v":0},{"$f":"SUM(P38:Y38)","v":0},{"$f":"SUM('MMA Rev-Exp Region 1:MMA Rev-Exp Region 11'!P38)","v":0},{"$f":"SUM('MMA Rev-Exp Region 1:MMA Rev-Exp Region 11'!Q38)","v":0},{"$f":"SUM('MMA Rev-Exp Region 1:MMA Rev-Exp Region 11'!R38)","v":0},{"$f":"SUM('MMA Rev-Exp Region 1:MMA Rev-Exp Region 11'!S38)","v":0},{"$f":"SUM('MMA Rev-Exp Region 1:MMA Rev-Exp Region 11'!T38)","v":0},{"$f":"SUM('MMA Rev-Exp Region 1:MMA Rev-Exp Region 11'!U38)","v":0},{"$f":"SUM('MMA Rev-Exp Region 1:MMA Rev-Exp Region 11'!V38)","v":0},{"$f":"SUM('MMA Rev-Exp Region 1:MMA Rev-Exp Region 11'!W38)","v":0},{"$f":"SUM('MMA Rev-Exp Region 1:MMA Rev-Exp Region 11'!X38)","v":0},{"$f":"SUM('MMA Rev-Exp Region 1:MMA Rev-Exp Region 11'!Y38)","v":0},{"$f":"SUM(AA38:AJ38)","v":0},{"$f":"SUM('MMA Rev-Exp Region 1:MMA Rev-Exp Region 11'!AA38)","v":0},{"$f":"SUM('MMA Rev-Exp Region 1:MMA Rev-Exp Region 11'!AB38)","v":0},{"$f":"SUM('MMA Rev-Exp Region 1:MMA Rev-Exp Region 11'!AC38)","v":0},{"$f":"SUM('MMA Rev-Exp Region 1:MMA Rev-Exp Region 11'!AD38)","v":0},{"$f":"SUM('MMA Rev-Exp Region 1:MMA Rev-Exp Region 11'!AE38)","v":0},{"$f":"SUM('MMA Rev-Exp Region 1:MMA Rev-Exp Region 11'!AF38)","v":0},{"$f":"SUM('MMA Rev-Exp Region 1:MMA Rev-Exp Region 11'!AG38)","v":0},{"$f":"SUM('MMA Rev-Exp Region 1:MMA Rev-Exp Region 11'!AH38)","v":0},{"$f":"SUM('MMA Rev-Exp Region 1:MMA Rev-Exp Region 11'!AI38)","v":0},{"$f":"SUM('MMA Rev-Exp Region 1:MMA Rev-Exp Region 11'!AJ38)","v":0},{"$f":"SUM(AL38:AU38)","v":0},{"$f":"SUM('MMA Rev-Exp Region 1:MMA Rev-Exp Region 11'!AL38)","v":0},{"$f":"SUM('MMA Rev-Exp Region 1:MMA Rev-Exp Region 11'!AM38)","v":0},{"$f":"SUM('MMA Rev-Exp Region 1:MMA Rev-Exp Region 11'!AN38)","v":0},{"$f":"SUM('MMA Rev-Exp Region 1:MMA Rev-Exp Region 11'!AO38)","v":0},{"$f":"SUM('MMA Rev-Exp Region 1:MMA Rev-Exp Region 11'!AP38)","v":0},{"$f":"SUM('MMA Rev-Exp Region 1:MMA Rev-Exp Region 11'!AQ38)","v":0},{"$f":"SUM('MMA Rev-Exp Region 1:MMA Rev-Exp Region 11'!AR38)","v":0},{"$f":"SUM('MMA Rev-Exp Region 1:MMA Rev-Exp Region 11'!AS38)","v":0},{"$f":"SUM('MMA Rev-Exp Region 1:MMA Rev-Exp Region 11'!AT38)","v":0},{"$f":"SUM('MMA Rev-Exp Region 1:MMA Rev-Exp Region 11'!AU38)","v":0},{"$f":"SUM('MMA Rev-Exp Region 1:MMA Rev-Exp Region 11'!AV38)","v":0},{"$f":"SUM(AX38:BG38)+AV38","v":0},{"$f":"SUM('MMA Rev-Exp Region 1:MMA Rev-Exp Region 11'!AX38)","v":0},{"$f":"SUM('MMA Rev-Exp Region 1:MMA Rev-Exp Region 11'!AY38)","v":0},{"$f":"SUM('MMA Rev-Exp Region 1:MMA Rev-Exp Region 11'!AZ38)","v":0},{"$f":"SUM('MMA Rev-Exp Region 1:MMA Rev-Exp Region 11'!BA38)","v":0},{"$f":"SUM('MMA Rev-Exp Region 1:MMA Rev-Exp Region 11'!BB38)","v":0},{"$f":"SUM('MMA Rev-Exp Region 1:MMA Rev-Exp Region 11'!BC38)","v":0},{"$f":"SUM('MMA Rev-Exp Region 1:MMA Rev-Exp Region 11'!BD38)","v":0},{"$f":"SUM('MMA Rev-Exp Region 1:MMA Rev-Exp Region 11'!BE38)","v":0},{"$f":"SUM('MMA Rev-Exp Region 1:MMA Rev-Exp Region 11'!BF38)","v":0},{"$f":"SUM('MMA Rev-Exp Region 1:MMA Rev-Exp Region 11'!BG38)","v":0}]
[null,"4.3.1","Maternity Settlements/AP",{"$f":"SUM(E39:N39)","v":0},{"$f":"SUM('MMA Rev-Exp Region 1:MMA Rev-Exp Region 11'!E39)","v":0},{"$f":"SUM('MMA Rev-Exp Region 1:MMA Rev-Exp Region 11'!F39)","v":0},{"$f":"SUM('MMA Rev-Exp Region 1:MMA Rev-Exp Region 11'!G39)","v":0},{"$f":"SUM('MMA Rev-Exp Region 1:MMA Rev-Exp Region 11'!H39)","v":0},{"$f":"SUM('MMA Rev-Exp Region 1:MMA Rev-Exp Region 11'!I39)","v":0},{"$f":"SUM('MMA Rev-Exp Region 1:MMA Rev-Exp Region 11'!J39)","v":0},{"$f":"SUM('MMA Rev-Exp Region 1:MMA Rev-Exp Region 11'!K39)","v":0},{"$f":"SUM('MMA Rev-Exp Region 1:MMA Rev-Exp Region 11'!L39)","v":0},{"$f":"SUM('MMA Rev-Exp Region 1:MMA Rev-Exp Region 11'!M39)","v":0},{"$f":"SUM('MMA Rev-Exp Region 1:MMA Rev-Exp Region 11'!N39)","v":0},{"$f":"SUM(P39:Y39)","v":0},{"$f":"SUM('MMA Rev-Exp Region 1:MMA Rev-Exp Region 11'!P39)","v":0},{"$f":"SUM('MMA Rev-Exp Region 1:MMA Rev-Exp Region 11'!Q39)","v":0},{"$f":"SUM('MMA Rev-Exp Region 1:MMA Rev-Exp Region 11'!R39)","v":0},{"$f":"SUM('MMA Rev-Exp Region 1:MMA Rev-Exp Region 11'!S39)","v":0},{"$f":"SUM('MMA Rev-Exp Region 1:MMA Rev-Exp Region 11'!T39)","v":0},{"$f":"SUM('MMA Rev-Exp Region 1:MMA Rev-Exp Region 11'!U39)","v":0},{"$f":"SUM('MMA Rev-Exp Region 1:MMA Rev-Exp Region 11'!V39)","v":0},{"$f":"SUM('MMA Rev-Exp Region 1:MMA Rev-Exp Region 11'!W39)","v":0},{"$f":"SUM('MMA Rev-Exp Region 1:MMA Rev-Exp Region 11'!X39)","v":0},{"$f":"SUM('MMA Rev-Exp Region 1:MMA Rev-Exp Region 11'!Y39)","v":0},{"$f":"SUM(AA39:AJ39)","v":0},{"$f":"SUM('MMA Rev-Exp Region 1:MMA Rev-Exp Region 11'!AA39)","v":0},{"$f":"SUM('MMA Rev-Exp Region 1:MMA Rev-Exp Region 11'!AB39)","v":0},{"$f":"SUM('MMA Rev-Exp Region 1:MMA Rev-Exp Region 11'!AC39)","v":0},{"$f":"SUM('MMA Rev-Exp Region 1:MMA Rev-Exp Region 11'!AD39)","v":0},{"$f":"SUM('MMA Rev-Exp Region 1:MMA Rev-Exp Region 11'!AE39)","v":0},{"$f":"SUM('MMA Rev-Exp Region 1:MMA Rev-Exp Region 11'!AF39)","v":0},{"$f":"SUM('MMA Rev-Exp Region 1:MMA Rev-Exp Region 11'!AG39)","v":0},{"$f":"SUM('MMA Rev-Exp Region 1:MMA Rev-Exp Region 11'!AH39)","v":0},{"$f":"SUM('MMA Rev-Exp Region 1:MMA Rev-Exp Region 11'!AI39)","v":0},{"$f":"SUM('MMA Rev-Exp Region 1:MMA Rev-Exp Region 11'!AJ39)","v":0},{"$f":"SUM(AL39:AU39)","v":0},{"$f":"SUM('MMA Rev-Exp Region 1:MMA Rev-Exp Region 11'!AL39)","v":0},{"$f":"SUM('MMA Rev-Exp Region 1:MMA Rev-Exp Region 11'!AM39)","v":0},{"$f":"SUM('MMA Rev-Exp Region 1:MMA Rev-Exp Region 11'!AN39)","v":0},{"$f":"SUM('MMA Rev-Exp Region 1:MMA Rev-Exp Region 11'!AO39)","v":0},{"$f":"SUM('MMA Rev-Exp Region 1:MMA Rev-Exp Region 11'!AP39)","v":0},{"$f":"SUM('MMA Rev-Exp Region 1:MMA Rev-Exp Region 11'!AQ39)","v":0},{"$f":"SUM('MMA Rev-Exp Region 1:MMA Rev-Exp Region 11'!AR39)","v":0},{"$f":"SUM('MMA Rev-Exp Region 1:MMA Rev-Exp Region 11'!AS39)","v":0},{"$f":"SUM('MMA Rev-Exp Region 1:MMA Rev-Exp Region 11'!AT39)","v":0},{"$f":"SUM('MMA Rev-Exp Region 1:MMA Rev-Exp Region 11'!AU39)","v":0},{"$f":"SUM('MMA Rev-Exp Region 1:MMA Rev-Exp Region 11'!AV39)","v":0},0,{"$f":"SUM('MMA Rev-Exp Region 1:MMA Rev-Exp Region 11'!AX39)","v":0},{"$f":"SUM('MMA Rev-Exp Region 1:MMA Rev-Exp Region 11'!AY39)","v":0},{"$f":"SUM('MMA Rev-Exp Region 1:MMA Rev-Exp Region 11'!AZ39)","v":0},{"$f":"SUM('MMA Rev-Exp Region 1:MMA Rev-Exp Region 11'!BA39)","v":0},{"$f":"SUM('MMA Rev-Exp Region 1:MMA Rev-Exp Region 11'!BB39)","v":0},{"$f":"SUM('MMA Rev-Exp Region 1:MMA Rev-Exp Region 11'!BC39)","v":0},{"$f":"SUM('MMA Rev-Exp Region 1:MMA Rev-Exp Region 11'!BD39)","v":0},{"$f":"SUM('MMA Rev-Exp Region 1:MMA Rev-Exp Region 11'!BE39)","v":0},{"$f":"SUM('MMA Rev-Exp Region 1:MMA Rev-Exp Region 11'!BF39)","v":0},{"$f":"SUM('MMA Rev-Exp Region 1:MMA Rev-Exp Region 11'!BG39)","v":0}]
[null,"4.4.1","Total Maternity Services",{"$f":"SUM(D37:D39)","v":0},{"$f":"SUM(E37:E39)","v":0},0,0,0,{"$f":"SUM(I37:I39)","v":0},0,0,0,0,0,{"$f":"SUM(O37:O39)","v":0},{"$f":"SUM(P37:P39)","v":0},0,0,0,0,0,0,0,0,0,{"$f":"SUM(Z37:Z39)","v":0},{"$f":"SUM(AA37:AA39)","v":0},0,0,0,0,0,0,0,0,0,{"$f":"SUM(AK37:AK39)","v":0},{"$f":"SUM(AL37:AL39)","v":0},0,0,0,0,0,0,0,0,0,{"$f":"SUM(AV37:AV39)","v":0},0,0,0,0,0,0,0,0,0,0,0]
["Mental Health",5.1,"Mental Health & Substance Abuse FFS",{"$f":"SUM(E41:N41)","v":0},{"$f":"SUM('MMA Rev-Exp Region 1:MMA Rev-Exp Region 11'!E41)","v":0},{"$f":"SUM('MMA Rev-Exp Region 1:MMA Rev-Exp Region 11'!F41)","v":0},{"$f":"SUM('MMA Rev-Exp Region 1:MMA Rev-Exp Region 11'!G41)","v":0},{"$f":"SUM('MMA Rev-Exp Region 1:MMA Rev-Exp Region 11'!H41)","v":0},{"$f":"SUM('MMA Rev-Exp Region 1:MMA Rev-Exp Region 11'!I41)","v":0},{"$f":"SUM('MMA Rev-Exp Region 1:MMA Rev-Exp Region 11'!J41)","v":0},{"$f":"SUM('MMA Rev-Exp Region 1:MMA Rev-Exp Region 11'!K41)","v":0},{"$f":"SUM('MMA Rev-Exp Region 1:MMA Rev-Exp Region 11'!L41)","v":0},{"$f":"SUM('MMA Rev-Exp Region 1:MMA Rev-Exp Region 11'!M41)","v":0},{"$f":"SUM('MMA Rev-Exp Region 1:MMA Rev-Exp Region 11'!N41)","v":0},{"$f":"SUM(P41:Y41)","v":0},{"$f":"SUM('MMA Rev-Exp Region 1:MMA Rev-Exp Region 11'!P41)","v":0},{"$f":"SUM('MMA Rev-Exp Region 1:MMA Rev-Exp Region 11'!Q41)","v":0},{"$f":"SUM('MMA Rev-Exp Region 1:MMA Rev-Exp Region 11'!R41)","v":0},{"$f":"SUM('MMA Rev-Exp Region 1:MMA Rev-Exp Region 11'!S41)","v":0},{"$f":"SUM('MMA Rev-Exp Region 1:MMA Rev-Exp Region 11'!T41)","v":0},{"$f":"SUM('MMA Rev-Exp Region 1:MMA Rev-Exp Region 11'!U41)","v":0},{"$f":"SUM('MMA Rev-Exp Region 1:MMA Rev-Exp Region 11'!V41)","v":0},{"$f":"SUM('MMA Rev-Exp Region 1:MMA Rev-Exp Region 11'!W41)","v":0},{"$f":"SUM('MMA Rev-Exp Region 1:MMA Rev-Exp Region 11'!X41)","v":0},{"$f":"SUM('MMA Rev-Exp Region 1:MMA Rev-Exp Region 11'!Y41)","v":0},{"$f":"SUM(AA41:AJ41)","v":0},{"$f":"SUM('MMA Rev-Exp Region 1:MMA Rev-Exp Region 11'!AA41)","v":0},{"$f":"SUM('MMA Rev-Exp Region 1:MMA Rev-Exp Region 11'!AB41)","v":0},{"$f":"SUM('MMA Rev-Exp Region 1:MMA Rev-Exp Region 11'!AC41)","v":0},{"$f":"SUM('MMA Rev-Exp Region 1:MMA Rev-Exp Region 11'!AD41)","v":0},{"$f":"SUM('MMA Rev-Exp Region 1:MMA Rev-Exp Region 11'!AE41)","v":0},{"$f":"SUM('MMA Rev-Exp Region 1:MMA Rev-Exp Region 11'!AF41)","v":0},{"$f":"SUM('MMA Rev-Exp Region 1:MMA Rev-Exp Region 11'!AG41)","v":0},{"$f":"SUM('MMA Rev-Exp Region 1:MMA Rev-Exp Region 11'!AH41)","v":0},{"$f":"SUM('MMA Rev-Exp Region 1:MMA Rev-Exp Region 11'!AI41)","v":0},{"$f":"SUM('MMA Rev-Exp Region 1:MMA Rev-Exp Region 11'!AJ41)","v":0},{"$f":"SUM(AL41:AU41)","v":0},{"$f":"SUM('MMA Rev-Exp Region 1:MMA Rev-Exp Region 11'!AL41)","v":0},{"$f":"SUM('MMA Rev-Exp Region 1:MMA Rev-Exp Region 11'!AM41)","v":0},{"$f":"SUM('MMA Rev-Exp Region 1:MMA Rev-Exp Region 11'!AN41)","v":0},{"$f":"SUM('MMA Rev-Exp Region 1:MMA Rev-Exp Region 11'!AO41)","v":0},{"$f":"SUM('MMA Rev-Exp Region 1:MMA Rev-Exp Region 11'!AP41)","v":0},{"$f":"SUM('MMA Rev-Exp Region 1:MMA Rev-Exp Region 11'!AQ41)","v":0},{"$f":"SUM('MMA Rev-Exp Region 1:MMA Rev-Exp Region 11'!AR41)","v":0},{"$f":"SUM('MMA Rev-Exp Region 1:MMA Rev-Exp Region 11'!AS41)","v":0},{"$f":"SUM('MMA Rev-Exp Region 1:MMA Rev-Exp Region 11'!AT41)","v":0},{"$f":"SUM('MMA Rev-Exp Region 1:MMA Rev-Exp Region 11'!AU41)","v":0},{"$f":"SUM('MMA Rev-Exp Region 1:MMA Rev-Exp Region 11'!AV41)","v":0},{"$f":"SUM(AX41:BG41)+AV41","v":0},{"$f":"SUM('MMA Rev-Exp Region 1:MMA Rev-Exp Region 11'!AX41)","v":0},{"$f":"SUM('MMA Rev-Exp Region 1:MMA Rev-Exp Region 11'!AY41)","v":0},{"$f":"SUM('MMA Rev-Exp Region 1:MMA Rev-Exp Region 11'!AZ41)","v":0},{"$f":"SUM('MMA Rev-Exp Region 1:MMA Rev-Exp Region 11'!BA41)","v":0},{"$f":"SUM('MMA Rev-Exp Region 1:MMA Rev-Exp Region 11'!BB41)","v":0},{"$f":"SUM('MMA Rev-Exp Region 1:MMA Rev-Exp Region 11'!BC41)","v":0},{"$f":"SUM('MMA Rev-Exp Region 1:MMA Rev-Exp Region 11'!BD41)","v":0},{"$f":"SUM('MMA Rev-Exp Region 1:MMA Rev-Exp Region 11'!BE41)","v":0},{"$f":"SUM('MMA Rev-Exp Region 1:MMA Rev-Exp Region 11'!BF41)","v":0},{"$f":"SUM('MMA Rev-Exp Region 1:MMA Rev-Exp Region 11'!BG41)","v":0}]
[null,5.2,"Mental Health & Substance Abuse Subcapitation",{"$f":"SUM(E42:N42)","v":0},{"$f":"SUM('MMA Rev-Exp Region 1:MMA Rev-Exp Region 11'!E42)","v":0},{"$f":"SUM('MMA Rev-Exp Region 1:MMA Rev-Exp Region 11'!F42)","v":0},{"$f":"SUM('MMA Rev-Exp Region 1:MMA Rev-Exp Region 11'!G42)","v":0},{"$f":"SUM('MMA Rev-Exp Region 1:MMA Rev-Exp Region 11'!H42)","v":0},{"$f":"SUM('MMA Rev-Exp Region 1:MMA Rev-Exp Region 11'!I42)","v":0},{"$f":"SUM('MMA Rev-Exp Region 1:MMA Rev-Exp Region 11'!J42)","v":0},{"$f":"SUM('MMA Rev-Exp Region 1:MMA Rev-Exp Region 11'!K42)","v":0},{"$f":"SUM('MMA Rev-Exp Region 1:MMA Rev-Exp Region 11'!L42)","v":0},{"$f":"SUM('MMA Rev-Exp Region 1:MMA Rev-Exp Region 11'!M42)","v":0},{"$f":"SUM('MMA Rev-Exp Region 1:MMA Rev-Exp Region 11'!N42)","v":0},{"$f":"SUM(P42:Y42)","v":0},{"$f":"SUM('MMA Rev-Exp Region 1:MMA Rev-Exp Region 11'!P42)","v":0},{"$f":"SUM('MMA Rev-Exp Region 1:MMA Rev-Exp Region 11'!Q42)","v":0},{"$f":"SUM('MMA Rev-Exp Region 1:MMA Rev-Exp Region 11'!R42)","v":0},{"$f":"SUM('MMA Rev-Exp Region 1:MMA Rev-Exp Region 11'!S42)","v":0},{"$f":"SUM('MMA Rev-Exp Region 1:MMA Rev-Exp Region 11'!T42)","v":0},{"$f":"SUM('MMA Rev-Exp Region 1:MMA Rev-Exp Region 11'!U42)","v":0},{"$f":"SUM('MMA Rev-Exp Region 1:MMA Rev-Exp Region 11'!V42)","v":0},{"$f":"SUM('MMA Rev-Exp Region 1:MMA Rev-Exp Region 11'!W42)","v":0},{"$f":"SUM('MMA Rev-Exp Region 1:MMA Rev-Exp Region 11'!X42)","v":0},{"$f":"SUM('MMA Rev-Exp Region 1:MMA Rev-Exp Region 11'!Y42)","v":0},{"$f":"SUM(AA42:AJ42)","v":0},{"$f":"SUM('MMA Rev-Exp Region 1:MMA Rev-Exp Region 11'!AA42)","v":0},{"$f":"SUM('MMA Rev-Exp Region 1:MMA Rev-Exp Region 11'!AB42)","v":0},{"$f":"SUM('MMA Rev-Exp Region 1:MMA Rev-Exp Region 11'!AC42)","v":0},{"$f":"SUM('MMA Rev-Exp Region 1:MMA Rev-Exp Region 11'!AD42)","v":0},{"$f":"SUM('MMA Rev-Exp Region 1:MMA Rev-Exp Region 11'!AE42)","v":0},{"$f":"SUM('MMA Rev-Exp Region 1:MMA Rev-Exp Region 11'!AF42)","v":0},{"$f":"SUM('MMA Rev-Exp Region 1:MMA Rev-Exp Region 11'!AG42)","v":0},{"$f":"SUM('MMA Rev-Exp Region 1:MMA Rev-Exp Region 11'!AH42)","v":0},{"$f":"SUM('MMA Rev-Exp Region 1:MMA Rev-Exp Region 11'!AI42)","v":0},{"$f":"SUM('MMA Rev-Exp Region 1:MMA Rev-Exp Region 11'!AJ42)","v":0},{"$f":"SUM(AL42:AU42)","v":0},{"$f":"SUM('MMA Rev-Exp Region 1:MMA Rev-Exp Region 11'!AL42)","v":0},{"$f":"SUM('MMA Rev-Exp Region 1:MMA Rev-Exp Region 11'!AM42)","v":0},{"$f":"SUM('MMA Rev-Exp Region 1:MMA Rev-Exp Region 11'!AN42)","v":0},{"$f":"SUM('MMA Rev-Exp Region 1:MMA Rev-Exp Region 11'!AO42)","v":0},{"$f":"SUM('MMA Rev-Exp Region 1:MMA Rev-Exp Region 11'!AP42)","v":0},{"$f":"SUM('MMA Rev-Exp Region 1:MMA Rev-Exp Region 11'!AQ42)","v":0},{"$f":"SUM('MMA Rev-Exp Region 1:MMA Rev-Exp Region 11'!AR42)","v":0},{"$f":"SUM('MMA Rev-Exp Region 1:MMA Rev-Exp Region 11'!AS42)","v":0},{"$f":"SUM('MMA Rev-Exp Region 1:MMA Rev-Exp Region 11'!AT42)","v":0},{"$f":"SUM('MMA Rev-Exp Region 1:MMA Rev-Exp Region 11'!AU42)","v":0},{"$f":"SUM('MMA Rev-Exp Region 1:MMA Rev-Exp Region 11'!AV42)","v":0},{"$f":"SUM(AX42:BG42)+AV42","v":0},{"$f":"SUM('MMA Rev-Exp Region 1:MMA Rev-Exp Region 11'!AX42)","v":0},{"$f":"SUM('MMA Rev-Exp Region 1:MMA Rev-Exp Region 11'!AY42)","v":0},{"$f":"SUM('MMA Rev-Exp Region 1:MMA Rev-Exp Region 11'!AZ42)","v":0},{"$f":"SUM('MMA Rev-Exp Region 1:MMA Rev-Exp Region 11'!BA42)","v":0},{"$f":"SUM('MMA Rev-Exp Region 1:MMA Rev-Exp Region 11'!BB42)","v":0},{"$f":"SUM('MMA Rev-Exp Region 1:MMA Rev-Exp Region 11'!BC42)","v":0},{"$f":"SUM('MMA Rev-Exp Region 1:MMA Rev-Exp Region 11'!BD42)","v":0},{"$f":"SUM('MMA Rev-Exp Region 1:MMA Rev-Exp Region 11'!BE42)","v":0},{"$f":"SUM('MMA Rev-Exp Region 1:MMA Rev-Exp Region 11'!BF42)","v":0},{"$f":"SUM('MMA Rev-Exp Region 1:MMA Rev-Exp Region 11'!BG42)","v":0}]
[null,5.3,"Ending IBNP for Mental Health & Substance Abuse",{"$f":"SUM(E43:N43)","v":0},{"$f":"SUM('MMA Rev-Exp Region 1:MMA Rev-Exp Region 11'!E43)","v":0},{"$f":"SUM('MMA Rev-Exp Region 1:MMA Rev-Exp Region 11'!F43)","v":0},{"$f":"SUM('MMA Rev-Exp Region 1:MMA Rev-Exp Region 11'!G43)","v":0},{"$f":"SUM('MMA Rev-Exp Region 1:MMA Rev-Exp Region 11'!H43)","v":0},{"$f":"SUM('MMA Rev-Exp Region 1:MMA Rev-Exp Region 11'!I43)","v":0},{"$f":"SUM('MMA Rev-Exp Region 1:MMA Rev-Exp Region 11'!J43)","v":0},{"$f":"SUM('MMA Rev-Exp Region 1:MMA Rev-Exp Region 11'!K43)","v":0},{"$f":"SUM('MMA Rev-Exp Region 1:MMA Rev-Exp Region 11'!L43)","v":0},{"$f":"SUM('MMA Rev-Exp Region 1:MMA Rev-Exp Region 11'!M43)","v":0},{"$f":"SUM('MMA Rev-Exp Region 1:MMA Rev-Exp Region 11'!N43)","v":0},{"$f":"SUM(P43:Y43)","v":0},{"$f":"SUM('MMA Rev-Exp Region 1:MMA Rev-Exp Region 11'!P43)","v":0},{"$f":"SUM('MMA Rev-Exp Region 1:MMA Rev-Exp Region 11'!Q43)","v":0},{"$f":"SUM('MMA Rev-Exp Region 1:MMA Rev-Exp Region 11'!R43)","v":0},{"$f":"SUM('MMA Rev-Exp Region 1:MMA Rev-Exp Region 11'!S43)","v":0},{"$f":"SUM('MMA Rev-Exp Region 1:MMA Rev-Exp Region 11'!T43)","v":0},{"$f":"SUM('MMA Rev-Exp Region 1:MMA Rev-Exp Region 11'!U43)","v":0},{"$f":"SUM('MMA Rev-Exp Region 1:MMA Rev-Exp Region 11'!V43)","v":0},{"$f":"SUM('MMA Rev-Exp Region 1:MMA Rev-Exp Region 11'!W43)","v":0},{"$f":"SUM('MMA Rev-Exp Region 1:MMA Rev-Exp Region 11'!X43)","v":0},{"$f":"SUM('MMA Rev-Exp Region 1:MMA Rev-Exp Region 11'!Y43)","v":0},{"$f":"SUM(AA43:AJ43)","v":0},{"$f":"SUM('MMA Rev-Exp Region 1:MMA Rev-Exp Region 11'!AA43)","v":0},{"$f":"SUM('MMA Rev-Exp Region 1:MMA Rev-Exp Region 11'!AB43)","v":0},{"$f":"SUM('MMA Rev-Exp Region 1:MMA Rev-Exp Region 11'!AC43)","v":0},{"$f":"SUM('MMA Rev-Exp Region 1:MMA Rev-Exp Region 11'!AD43)","v":0},{"$f":"SUM('MMA Rev-Exp Region 1:MMA Rev-Exp Region 11'!AE43)","v":0},{"$f":"SUM('MMA Rev-Exp Region 1:MMA Rev-Exp Region 11'!AF43)","v":0},{"$f":"SUM('MMA Rev-Exp Region 1:MMA Rev-Exp Region 11'!AG43)","v":0},{"$f":"SUM('MMA Rev-Exp Region 1:MMA Rev-Exp Region 11'!AH43)","v":0},{"$f":"SUM('MMA Rev-Exp Region 1:MMA Rev-Exp Region 11'!AI43)","v":0},{"$f":"SUM('MMA Rev-Exp Region 1:MMA Rev-Exp Region 11'!AJ43)","v":0},{"$f":"SUM(AL43:AU43)","v":0},{"$f":"SUM('MMA Rev-Exp Region 1:MMA Rev-Exp Region 11'!AL43)","v":0},{"$f":"SUM('MMA Rev-Exp Region 1:MMA Rev-Exp Region 11'!AM43)","v":0},{"$f":"SUM('MMA Rev-Exp Region 1:MMA Rev-Exp Region 11'!AN43)","v":0},{"$f":"SUM('MMA Rev-Exp Region 1:MMA Rev-Exp Region 11'!AO43)","v":0},{"$f":"SUM('MMA Rev-Exp Region 1:MMA Rev-Exp Region 11'!AP43)","v":0},{"$f":"SUM('MMA Rev-Exp Region 1:MMA Rev-Exp Region 11'!AQ43)","v":0},{"$f":"SUM('MMA Rev-Exp Region 1:MMA Rev-Exp Region 11'!AR43)","v":0},{"$f":"SUM('MMA Rev-Exp Region 1:MMA Rev-Exp Region 11'!AS43)","v":0},{"$f":"SUM('MMA Rev-Exp Region 1:MMA Rev-Exp Region 11'!AT43)","v":0},{"$f":"SUM('MMA Rev-Exp Region 1:MMA Rev-Exp Region 11'!AU43)","v":0},{"$f":"SUM('MMA Rev-Exp Region 1:MMA Rev-Exp Region 11'!AV43)","v":0},0,{"$f":"SUM('MMA Rev-Exp Region 1:MMA Rev-Exp Region 11'!AX43)","v":0},{"$f":"SUM('MMA Rev-Exp Region 1:MMA Rev-Exp Region 11'!AY43)","v":0},{"$f":"SUM('MMA Rev-Exp Region 1:MMA Rev-Exp Region 11'!AZ43)","v":0},{"$f":"SUM('MMA Rev-Exp Region 1:MMA Rev-Exp Region 11'!BA43)","v":0},{"$f":"SUM('MMA Rev-Exp Region 1:MMA Rev-Exp Region 11'!BB43)","v":0},{"$f":"SUM('MMA Rev-Exp Region 1:MMA Rev-Exp Region 11'!BC43)","v":0},{"$f":"SUM('MMA Rev-Exp Region 1:MMA Rev-Exp Region 11'!BD43)","v":0},{"$f":"SUM('MMA Rev-Exp Region 1:MMA Rev-Exp Region 11'!BE43)","v":0},{"$f":"SUM('MMA Rev-Exp Region 1:MMA Rev-Exp Region 11'!BF43)","v":0},{"$f":"SUM('MMA Rev-Exp Region 1:MMA Rev-Exp Region 11'!BG43)","v":0}]
[null,"5.4","Mental Health Settlements/AP",{"$f":"SUM(E44:N44)","v":0},{"$f":"SUM('MMA Rev-Exp Region 1:MMA Rev-Exp Region 11'!E44)","v":0},{"$f":"SUM('MMA Rev-Exp Region 1:MMA Rev-Exp Region 11'!F44)","v":0},{"$f":"SUM('MMA Rev-Exp Region 1:MMA Rev-Exp Region 11'!G44)","v":0},{"$f":"SUM('MMA Rev-Exp Region 1:MMA Rev-Exp Region 11'!H44)","v":0},{"$f":"SUM('MMA Rev-Exp Region 1:MMA Rev-Exp Region 11'!I44)","v":0},{"$f":"SUM('MMA Rev-Exp Region 1:MMA Rev-Exp Region 11'!J44)","v":0},{"$f":"SUM('MMA Rev-Exp Region 1:MMA Rev-Exp Region 11'!K44)","v":0},{"$f":"SUM('MMA Rev-Exp Region 1:MMA Rev-Exp Region 11'!L44)","v":0},{"$f":"SUM('MMA Rev-Exp Region 1:MMA Rev-Exp Region 11'!M44)","v":0},{"$f":"SUM('MMA Rev-Exp Region 1:MMA Rev-Exp Region 11'!N44)","v":0},{"$f":"SUM(P44:Y44)","v":0},{"$f":"SUM('MMA Rev-Exp Region 1:MMA Rev-Exp Region 11'!P44)","v":0},{"$f":"SUM('MMA Rev-Exp Region 1:MMA Rev-Exp Region 11'!Q44)","v":0},{"$f":"SUM('MMA Rev-Exp Region 1:MMA Rev-Exp Region 11'!R44)","v":0},{"$f":"SUM('MMA Rev-Exp Region 1:MMA Rev-Exp Region 11'!S44)","v":0},{"$f":"SUM('MMA Rev-Exp Region 1:MMA Rev-Exp Region 11'!T44)","v":0},{"$f":"SUM('MMA Rev-Exp Region 1:MMA Rev-Exp Region 11'!U44)","v":0},{"$f":"SUM('MMA Rev-Exp Region 1:MMA Rev-Exp Region 11'!V44)","v":0},{"$f":"SUM('MMA Rev-Exp Region 1:MMA Rev-Exp Region 11'!W44)","v":0},{"$f":"SUM('MMA Rev-Exp Region 1:MMA Rev-Exp Region 11'!X44)","v":0},{"$f":"SUM('MMA Rev-Exp Region 1:MMA Rev-Exp Region 11'!Y44)","v":0},{"$f":"SUM(AA44:AJ44)","v":0},{"$f":"SUM('MMA Rev-Exp Region 1:MMA Rev-Exp Region 11'!AA44)","v":0},{"$f":"SUM('MMA Rev-Exp Region 1:MMA Rev-Exp Region 11'!AB44)","v":0},{"$f":"SUM('MMA Rev-Exp Region 1:MMA Rev-Exp Region 11'!AC44)","v":0},{"$f":"SUM('MMA Rev-Exp Region 1:MMA Rev-Exp Region 11'!AD44)","v":0},{"$f":"SUM('MMA Rev-Exp Region 1:MMA Rev-Exp Region 11'!AE44)","v":0},{"$f":"SUM('MMA Rev-Exp Region 1:MMA Rev-Exp Region 11'!AF44)","v":0},{"$f":"SUM('MMA Rev-Exp Region 1:MMA Rev-Exp Region 11'!AG44)","v":0},{"$f":"SUM('MMA Rev-Exp Region 1:MMA Rev-Exp Region 11'!AH44)","v":0},{"$f":"SUM('MMA Rev-Exp Region 1:MMA Rev-Exp Region 11'!AI44)","v":0},{"$f":"SUM('MMA Rev-Exp Region 1:MMA Rev-Exp Region 11'!AJ44)","v":0},{"$f":"SUM(AL44:AU44)","v":0},{"$f":"SUM('MMA Rev-Exp Region 1:MMA Rev-Exp Region 11'!AL44)","v":0},{"$f":"SUM('MMA Rev-Exp Region 1:MMA Rev-Exp Region 11'!AM44)","v":0},{"$f":"SUM('MMA Rev-Exp Region 1:MMA Rev-Exp Region 11'!AN44)","v":0},{"$f":"SUM('MMA Rev-Exp Region 1:MMA Rev-Exp Region 11'!AO44)","v":0},{"$f":"SUM('MMA Rev-Exp Region 1:MMA Rev-Exp Region 11'!AP44)","v":0},{"$f":"SUM('MMA Rev-Exp Region 1:MMA Rev-Exp Region 11'!AQ44)","v":0},{"$f":"SUM('MMA Rev-Exp Region 1:MMA Rev-Exp Region 11'!AR44)","v":0},{"$f":"SUM('MMA Rev-Exp Region 1:MMA Rev-Exp Region 11'!AS44)","v":0},{"$f":"SUM('MMA Rev-Exp Region 1:MMA Rev-Exp Region 11'!AT44)","v":0},{"$f":"SUM('MMA Rev-Exp Region 1:MMA Rev-Exp Region 11'!AU44)","v":0},{"$f":"SUM('MMA Rev-Exp Region 1:MMA Rev-Exp Region 11'!AV44)","v":0},0,{"$f":"SUM('MMA Rev-Exp Region 1:MMA Rev-Exp Region 11'!AX44)","v":0},{"$f":"SUM('MMA Rev-Exp Region 1:MMA Rev-Exp Region 11'!AY44)","v":0},{"$f":"SUM('MMA Rev-Exp Region 1:MMA Rev-Exp Region 11'!AZ44)","v":0},{"$f":"SUM('MMA Rev-Exp Region 1:MMA Rev-Exp Region 11'!BA44)","v":0},{"$f":"SUM('MMA Rev-Exp Region 1:MMA Rev-Exp Region 11'!BB44)","v":0},{"$f":"SUM('MMA Rev-Exp Region 1:MMA Rev-Exp Region 11'!BC44)","v":0},{"$f":"SUM('MMA Rev-Exp Region 1:MMA Rev-Exp Region 11'!BD44)","v":0},{"$f":"SUM('MMA Rev-Exp Region 1:MMA Rev-Exp Region 11'!BE44)","v":0},{"$f":"SUM('MMA Rev-Exp Region 1:MMA Rev-Exp Region 11'!BF44)","v":0},{"$f":"SUM('MMA Rev-Exp Region 1:MMA Rev-Exp Region 11'!BG44)","v":0}]
[null,"5.5","Total Mental Health & Substance Abuse Services",{"$f":"SUM(D41:D44)","v":0},{"$f":"SUM(E41:E44)","v":0},0,0,0,{"$f":"SUM(I41:I44)","v":0},0,0,0,0,0,{"$f":"SUM(O41:O44)","v":0},{"$f":"SUM(P41:P44)","v":0},0,0,0,0,0,0,0,0,0,{"$f":"SUM(Z41:Z44)","v":0},{"$f":"SUM(AA41:AA44)","v":0},0,0,0,0,0,0,0,0,0,{"$f":"SUM(AK41:AK44)","v":0},{"$f":"SUM(AL41:AL44)","v":0},0,0,0,0,0,0,0,0,0,{"$f":"SUM(AV41:AV44)","v":0},0,0,0,0,0,0,0,0,0,0,0]
["Dental",6.1,"Dental FFS",{"$f":"SUM(E46:N46)","v":0},{"$f":"SUM('MMA Rev-Exp Region 1:MMA Rev-Exp Region 11'!E46)","v":0},{"$f":"SUM('MMA Rev-Exp Region 1:MMA Rev-Exp Region 11'!F46)","v":0},{"$f":"SUM('MMA Rev-Exp Region 1:MMA Rev-Exp Region 11'!G46)","v":0},{"$f":"SUM('MMA Rev-Exp Region 1:MMA Rev-Exp Region 11'!H46)","v":0},{"$f":"SUM('MMA Rev-Exp Region 1:MMA Rev-Exp Region 11'!I46)","v":0},{"$f":"SUM('MMA Rev-Exp Region 1:MMA Rev-Exp Region 11'!J46)","v":0},{"$f":"SUM('MMA Rev-Exp Region 1:MMA Rev-Exp Region 11'!K46)","v":0},{"$f":"SUM('MMA Rev-Exp Region 1:MMA Rev-Exp Region 11'!L46)","v":0},{"$f":"SUM('MMA Rev-Exp Region 1:MMA Rev-Exp Region 11'!M46)","v":0},{"$f":"SUM('MMA Rev-Exp Region 1:MMA Rev-Exp Region 11'!N46)","v":0},{"$f":"SUM(P46:Y46)","v":0},{"$f":"SUM('MMA Rev-Exp Region 1:MMA Rev-Exp Region 11'!P46)","v":0},{"$f":"SUM('MMA Rev-Exp Region 1:MMA Rev-Exp Region 11'!Q46)","v":0},{"$f":"SUM('MMA Rev-Exp Region 1:MMA Rev-Exp Region 11'!R46)","v":0},{"$f":"SUM('MMA Rev-Exp Region 1:MMA Rev-Exp Region 11'!S46)","v":0},{"$f":"SUM('MMA Rev-Exp Region 1:MMA Rev-Exp Region 11'!T46)","v":0},{"$f":"SUM('MMA Rev-Exp Region 1:MMA Rev-Exp Region 11'!U46)","v":0},{"$f":"SUM('MMA Rev-Exp Region 1:MMA Rev-Exp Region 11'!V46)","v":0},{"$f":"SUM('MMA Rev-Exp Region 1:MMA Rev-Exp Region 11'!W46)","v":0},{"$f":"SUM('MMA Rev-Exp Region 1:MMA Rev-Exp Region 11'!X46)","v":0},{"$f":"SUM('MMA Rev-Exp Region 1:MMA Rev-Exp Region 11'!Y46)","v":0},{"$f":"SUM(AA46:AJ46)","v":0},{"$f":"SUM('MMA Rev-Exp Region 1:MMA Rev-Exp Region 11'!AA46)","v":0},{"$f":"SUM('MMA Rev-Exp Region 1:MMA Rev-Exp Region 11'!AB46)","v":0},{"$f":"SUM('MMA Rev-Exp Region 1:MMA Rev-Exp Region 11'!AC46)","v":0},{"$f":"SUM('MMA Rev-Exp Region 1:MMA Rev-Exp Region 11'!AD46)","v":0},{"$f":"SUM('MMA Rev-Exp Region 1:MMA Rev-Exp Region 11'!AE46)","v":0},{"$f":"SUM('MMA Rev-Exp Region 1:MMA Rev-Exp Region 11'!AF46)","v":0},{"$f":"SUM('MMA Rev-Exp Region 1:MMA Rev-Exp Region 11'!AG46)","v":0},{"$f":"SUM('MMA Rev-Exp Region 1:MMA Rev-Exp Region 11'!AH46)","v":0},{"$f":"SUM('MMA Rev-Exp Region 1:MMA Rev-Exp Region 11'!AI46)","v":0},{"$f":"SUM('MMA Rev-Exp Region 1:MMA Rev-Exp Region 11'!AJ46)","v":0},{"$f":"SUM(AL46:AU46)","v":0},{"$f":"SUM('MMA Rev-Exp Region 1:MMA Rev-Exp Region 11'!AL46)","v":0},{"$f":"SUM('MMA Rev-Exp Region 1:MMA Rev-Exp Region 11'!AM46)","v":0},{"$f":"SUM('MMA Rev-Exp Region 1:MMA Rev-Exp Region 11'!AN46)","v":0},{"$f":"SUM('MMA Rev-Exp Region 1:MMA Rev-Exp Region 11'!AO46)","v":0},{"$f":"SUM('MMA Rev-Exp Region 1:MMA Rev-Exp Region 11'!AP46)","v":0},{"$f":"SUM('MMA Rev-Exp Region 1:MMA Rev-Exp Region 11'!AQ46)","v":0},{"$f":"SUM('MMA Rev-Exp Region 1:MMA Rev-Exp Region 11'!AR46)","v":0},{"$f":"SUM('MMA Rev-Exp Region 1:MMA Rev-Exp Region 11'!AS46)","v":0},{"$f":"SUM('MMA Rev-Exp Region 1:MMA Rev-Exp Region 11'!AT46)","v":0},{"$f":"SUM('MMA Rev-Exp Region 1:MMA Rev-Exp Region 11'!AU46)","v":0},{"$f":"SUM('MMA Rev-Exp Region 1:MMA Rev-Exp Region 11'!AV46)","v":0},{"$f":"SUM(AX46:BG46)+AV46","v":0},{"$f":"SUM('MMA Rev-Exp Region 1:MMA Rev-Exp Region 11'!AX46)","v":0},{"$f":"SUM('MMA Rev-Exp Region 1:MMA Rev-Exp Region 11'!AY46)","v":0},{"$f":"SUM('MMA Rev-Exp Region 1:MMA Rev-Exp Region 11'!AZ46)","v":0},{"$f":"SUM('MMA Rev-Exp Region 1:MMA Rev-Exp Region 11'!BA46)","v":0},{"$f":"SUM('MMA Rev-Exp Region 1:MMA Rev-Exp Region 11'!BB46)","v":0},{"$f":"SUM('MMA Rev-Exp Region 1:MMA Rev-Exp Region 11'!BC46)","v":0},{"$f":"SUM('MMA Rev-Exp Region 1:MMA Rev-Exp Region 11'!BD46)","v":0},{"$f":"SUM('MMA Rev-Exp Region 1:MMA Rev-Exp Region 11'!BE46)","v":0},{"$f":"SUM('MMA Rev-Exp Region 1:MMA Rev-Exp Region 11'!BF46)","v":0},{"$f":"SUM('MMA Rev-Exp Region 1:MMA Rev-Exp Region 11'!BG46)","v":0}]
[null,6.2,"Dental Subcapitation",{"$f":"SUM(E47:N47)","v":0},{"$f":"SUM('MMA Rev-Exp Region 1:MMA Rev-Exp Region 11'!E47)","v":0},{"$f":"SUM('MMA Rev-Exp Region 1:MMA Rev-Exp Region 11'!F47)","v":0},{"$f":"SUM('MMA Rev-Exp Region 1:MMA Rev-Exp Region 11'!G47)","v":0},{"$f":"SUM('MMA Rev-Exp Region 1:MMA Rev-Exp Region 11'!H47)","v":0},{"$f":"SUM('MMA Rev-Exp Region 1:MMA Rev-Exp Region 11'!I47)","v":0},{"$f":"SUM('MMA Rev-Exp Region 1:MMA Rev-Exp Region 11'!J47)","v":0},{"$f":"SUM('MMA Rev-Exp Region 1:MMA Rev-Exp Region 11'!K47)","v":0},{"$f":"SUM('MMA Rev-Exp Region 1:MMA Rev-Exp Region 11'!L47)","v":0},{"$f":"SUM('MMA Rev-Exp Region 1:MMA Rev-Exp Region 11'!M47)","v":0},{"$f":"SUM('MMA Rev-Exp Region 1:MMA Rev-Exp Region 11'!N47)","v":0},{"$f":"SUM(P47:Y47)","v":0},{"$f":"SUM('MMA Rev-Exp Region 1:MMA Rev-Exp Region 11'!P47)","v":0},{"$f":"SUM('MMA Rev-Exp Region 1:MMA Rev-Exp Region 11'!Q47)","v":0},{"$f":"SUM('MMA Rev-Exp Region 1:MMA Rev-Exp Region 11'!R47)","v":0},{"$f":"SUM('MMA Rev-Exp Region 1:MMA Rev-Exp Region 11'!S47)","v":0},{"$f":"SUM('MMA Rev-Exp Region 1:MMA Rev-Exp Region 11'!T47)","v":0},{"$f":"SUM('MMA Rev-Exp Region 1:MMA Rev-Exp Region 11'!U47)","v":0},{"$f":"SUM('MMA Rev-Exp Region 1:MMA Rev-Exp Region 11'!V47)","v":0},{"$f":"SUM('MMA Rev-Exp Region 1:MMA Rev-Exp Region 11'!W47)","v":0},{"$f":"SUM('MMA Rev-Exp Region 1:MMA Rev-Exp Region 11'!X47)","v":0},{"$f":"SUM('MMA Rev-Exp Region 1:MMA Rev-Exp Region 11'!Y47)","v":0},{"$f":"SUM(AA47:AJ47)","v":0},{"$f":"SUM('MMA Rev-Exp Region 1:MMA Rev-Exp Region 11'!AA47)","v":0},{"$f":"SUM('MMA Rev-Exp Region 1:MMA Rev-Exp Region 11'!AB47)","v":0},{"$f":"SUM('MMA Rev-Exp Region 1:MMA Rev-Exp Region 11'!AC47)","v":0},{"$f":"SUM('MMA Rev-Exp Region 1:MMA Rev-Exp Region 11'!AD47)","v":0},{"$f":"SUM('MMA Rev-Exp Region 1:MMA Rev-Exp Region 11'!AE47)","v":0},{"$f":"SUM('MMA Rev-Exp Region 1:MMA Rev-Exp Region 11'!AF47)","v":0},{"$f":"SUM('MMA Rev-Exp Region 1:MMA Rev-Exp Region 11'!AG47)","v":0},{"$f":"SUM('MMA Rev-Exp Region 1:MMA Rev-Exp Region 11'!AH47)","v":0},{"$f":"SUM('MMA Rev-Exp Region 1:MMA Rev-Exp Region 11'!AI47)","v":0},{"$f":"SUM('MMA Rev-Exp Region 1:MMA Rev-Exp Region 11'!AJ47)","v":0},{"$f":"SUM(AL47:AU47)","v":0},{"$f":"SUM('MMA Rev-Exp Region 1:MMA Rev-Exp Region 11'!AL47)","v":0},{"$f":"SUM('MMA Rev-Exp Region 1:MMA Rev-Exp Region 11'!AM47)","v":0},{"$f":"SUM('MMA Rev-Exp Region 1:MMA Rev-Exp Region 11'!AN47)","v":0},{"$f":"SUM('MMA Rev-Exp Region 1:MMA Rev-Exp Region 11'!AO47)","v":0},{"$f":"SUM('MMA Rev-Exp Region 1:MMA Rev-Exp Region 11'!AP47)","v":0},{"$f":"SUM('MMA Rev-Exp Region 1:MMA Rev-Exp Region 11'!AQ47)","v":0},{"$f":"SUM('MMA Rev-Exp Region 1:MMA Rev-Exp Region 11'!AR47)","v":0},{"$f":"SUM('MMA Rev-Exp Region 1:MMA Rev-Exp Region 11'!AS47)","v":0},{"$f":"SUM('MMA Rev-Exp Region 1:MMA Rev-Exp Region 11'!AT47)","v":0},{"$f":"SUM('MMA Rev-Exp Region 1:MMA Rev-Exp Region 11'!AU47)","v":0},{"$f":"SUM('MMA Rev-Exp Region 1:MMA Rev-Exp Region 11'!AV47)","v":0},{"$f":"SUM(AX47:BG47)+AV47","v":0},{"$f":"SUM('MMA Rev-Exp Region 1:MMA Rev-Exp Region 11'!AX47)","v":0},{"$f":"SUM('MMA Rev-Exp Region 1:MMA Rev-Exp Region 11'!AY47)","v":0},{"$f":"SUM('MMA Rev-Exp Region 1:MMA Rev-Exp Region 11'!AZ47)","v":0},{"$f":"SUM('MMA Rev-Exp Region 1:MMA Rev-Exp Region 11'!BA47)","v":0},{"$f":"SUM('MMA Rev-Exp Region 1:MMA Rev-Exp Region 11'!BB47)","v":0},{"$f":"SUM('MMA Rev-Exp Region 1:MMA Rev-Exp Region 11'!BC47)","v":0},{"$f":"SUM('MMA Rev-Exp Region 1:MMA Rev-Exp Region 11'!BD47)","v":0},{"$f":"SUM('MMA Rev-Exp Region 1:MMA Rev-Exp Region 11'!BE47)","v":0},{"$f":"SUM('MMA Rev-Exp Region 1:MMA Rev-Exp Region 11'!BF47)","v":0},{"$f":"SUM('MMA Rev-Exp Region 1:MMA Rev-Exp Region 11'!BG47)","v":0}]
[null,6.3,"Ending IBNP for Dental Services",{"$f":"SUM(E48:N48)","v":0},{"$f":"SUM('MMA Rev-Exp Region 1:MMA Rev-Exp Region 11'!E48)","v":0},{"$f":"SUM('MMA Rev-Exp Region 1:MMA Rev-Exp Region 11'!F48)","v":0},{"$f":"SUM('MMA Rev-Exp Region 1:MMA Rev-Exp Region 11'!G48)","v":0},{"$f":"SUM('MMA Rev-Exp Region 1:MMA Rev-Exp Region 11'!H48)","v":0},{"$f":"SUM('MMA Rev-Exp Region 1:MMA Rev-Exp Region 11'!I48)","v":0},{"$f":"SUM('MMA Rev-Exp Region 1:MMA Rev-Exp Region 11'!J48)","v":0},{"$f":"SUM('MMA Rev-Exp Region 1:MMA Rev-Exp Region 11'!K48)","v":0},{"$f":"SUM('MMA Rev-Exp Region 1:MMA Rev-Exp Region 11'!L48)","v":0},{"$f":"SUM('MMA Rev-Exp Region 1:MMA Rev-Exp Region 11'!M48)","v":0},{"$f":"SUM('MMA Rev-Exp Region 1:MMA Rev-Exp Region 11'!N48)","v":0},{"$f":"SUM(P48:Y48)","v":0},{"$f":"SUM('MMA Rev-Exp Region 1:MMA Rev-Exp Region 11'!P48)","v":0},{"$f":"SUM('MMA Rev-Exp Region 1:MMA Rev-Exp Region 11'!Q48)","v":0},{"$f":"SUM('MMA Rev-Exp Region 1:MMA Rev-Exp Region 11'!R48)","v":0},{"$f":"SUM('MMA Rev-Exp Region 1:MMA Rev-Exp Region 11'!S48)","v":0},{"$f":"SUM('MMA Rev-Exp Region 1:MMA Rev-Exp Region 11'!T48)","v":0},{"$f":"SUM('MMA Rev-Exp Region 1:MMA Rev-Exp Region 11'!U48)","v":0},{"$f":"SUM('MMA Rev-Exp Region 1:MMA Rev-Exp Region 11'!V48)","v":0},{"$f":"SUM('MMA Rev-Exp Region 1:MMA Rev-Exp Region 11'!W48)","v":0},{"$f":"SUM('MMA Rev-Exp Region 1:MMA Rev-Exp Region 11'!X48)","v":0},{"$f":"SUM('MMA Rev-Exp Region 1:MMA Rev-Exp Region 11'!Y48)","v":0},{"$f":"SUM(AA48:AJ48)","v":0},{"$f":"SUM('MMA Rev-Exp Region 1:MMA Rev-Exp Region 11'!AA48)","v":0},{"$f":"SUM('MMA Rev-Exp Region 1:MMA Rev-Exp Region 11'!AB48)","v":0},{"$f":"SUM('MMA Rev-Exp Region 1:MMA Rev-Exp Region 11'!AC48)","v":0},{"$f":"SUM('MMA Rev-Exp Region 1:MMA Rev-Exp Region 11'!AD48)","v":0},{"$f":"SUM('MMA Rev-Exp Region 1:MMA Rev-Exp Region 11'!AE48)","v":0},{"$f":"SUM('MMA Rev-Exp Region 1:MMA Rev-Exp Region 11'!AF48)","v":0},{"$f":"SUM('MMA Rev-Exp Region 1:MMA Rev-Exp Region 11'!AG48)","v":0},{"$f":"SUM('MMA Rev-Exp Region 1:MMA Rev-Exp Region 11'!AH48)","v":0},{"$f":"SUM('MMA Rev-Exp Region 1:MMA Rev-Exp Region 11'!AI48)","v":0},{"$f":"SUM('MMA Rev-Exp Region 1:MMA Rev-Exp Region 11'!AJ48)","v":0},{"$f":"SUM(AL48:AU48)","v":0},{"$f":"SUM('MMA Rev-Exp Region 1:MMA Rev-Exp Region 11'!AL48)","v":0},{"$f":"SUM('MMA Rev-Exp Region 1:MMA Rev-Exp Region 11'!AM48)","v":0},{"$f":"SUM('MMA Rev-Exp Region 1:MMA Rev-Exp Region 11'!AN48)","v":0},{"$f":"SUM('MMA Rev-Exp Region 1:MMA Rev-Exp Region 11'!AO48)","v":0},{"$f":"SUM('MMA Rev-Exp Region 1:MMA Rev-Exp Region 11'!AP48)","v":0},{"$f":"SUM('MMA Rev-Exp Region 1:MMA Rev-Exp Region 11'!AQ48)","v":0},{"$f":"SUM('MMA Rev-Exp Region 1:MMA Rev-Exp Region 11'!AR48)","v":0},{"$f":"SUM('MMA Rev-Exp Region 1:MMA Rev-Exp Region 11'!AS48)","v":0},{"$f":"SUM('MMA Rev-Exp Region 1:MMA Rev-Exp Region 11'!AT48)","v":0},{"$f":"SUM('MMA Rev-Exp Region 1:MMA Rev-Exp Region 11'!AU48)","v":0},{"$f":"SUM('MMA Rev-Exp Region 1:MMA Rev-Exp Region 11'!AV48)","v":0},0,{"$f":"SUM('MMA Rev-Exp Region 1:MMA Rev-Exp Region 11'!AX48)","v":0},{"$f":"SUM('MMA Rev-Exp Region 1:MMA Rev-Exp Region 11'!AY48)","v":0},{"$f":"SUM('MMA Rev-Exp Region 1:MMA Rev-Exp Region 11'!AZ48)","v":0},{"$f":"SUM('MMA Rev-Exp Region 1:MMA Rev-Exp Region 11'!BA48)","v":0},{"$f":"SUM('MMA Rev-Exp Region 1:MMA Rev-Exp Region 11'!BB48)","v":0},{"$f":"SUM('MMA Rev-Exp Region 1:MMA Rev-Exp Region 11'!BC48)","v":0},{"$f":"SUM('MMA Rev-Exp Region 1:MMA Rev-Exp Region 11'!BD48)","v":0},{"$f":"SUM('MMA Rev-Exp Region 1:MMA Rev-Exp Region 11'!BE48)","v":0},{"$f":"SUM('MMA Rev-Exp Region 1:MMA Rev-Exp Region 11'!BF48)","v":0},{"$f":"SUM('MMA Rev-Exp Region 1:MMA Rev-Exp Region 11'!BG48)","v":0}]
[null,"6.4","Dental Settlements/AP",{"$f":"SUM(E49:N49)","v":0},{"$f":"SUM('MMA Rev-Exp Region 1:MMA Rev-Exp Region 11'!E49)","v":0},{"$f":"SUM('MMA Rev-Exp Region 1:MMA Rev-Exp Region 11'!F49)","v":0},{"$f":"SUM('MMA Rev-Exp Region 1:MMA Rev-Exp Region 11'!G49)","v":0},{"$f":"SUM('MMA Rev-Exp Region 1:MMA Rev-Exp Region 11'!H49)","v":0},{"$f":"SUM('MMA Rev-Exp Region 1:MMA Rev-Exp Region 11'!I49)","v":0},{"$f":"SUM('MMA Rev-Exp Region 1:MMA Rev-Exp Region 11'!J49)","v":0},{"$f":"SUM('MMA Rev-Exp Region 1:MMA Rev-Exp Region 11'!K49)","v":0},{"$f":"SUM('MMA Rev-Exp Region 1:MMA Rev-Exp Region 11'!L49)","v":0},{"$f":"SUM('MMA Rev-Exp Region 1:MMA Rev-Exp Region 11'!M49)","v":0},{"$f":"SUM('MMA Rev-Exp Region 1:MMA Rev-Exp Region 11'!N49)","v":0},{"$f":"SUM(P49:Y49)","v":0},{"$f":"SUM('MMA Rev-Exp Region 1:MMA Rev-Exp Region 11'!P49)","v":0},{"$f":"SUM('MMA Rev-Exp Region 1:MMA Rev-Exp Region 11'!Q49)","v":0},{"$f":"SUM('MMA Rev-Exp Region 1:MMA Rev-Exp Region 11'!R49)","v":0},{"$f":"SUM('MMA Rev-Exp Region 1:MMA Rev-Exp Region 11'!S49)","v":0},{"$f":"SUM('MMA Rev-Exp Region 1:MMA Rev-Exp Region 11'!T49)","v":0},{"$f":"SUM('MMA Rev-Exp Region 1:MMA Rev-Exp Region 11'!U49)","v":0},{"$f":"SUM('MMA Rev-Exp Region 1:MMA Rev-Exp Region 11'!V49)","v":0},{"$f":"SUM('MMA Rev-Exp Region 1:MMA Rev-Exp Region 11'!W49)","v":0},{"$f":"SUM('MMA Rev-Exp Region 1:MMA Rev-Exp Region 11'!X49)","v":0},{"$f":"SUM('MMA Rev-Exp Region 1:MMA Rev-Exp Region 11'!Y49)","v":0},{"$f":"SUM(AA49:AJ49)","v":0},{"$f":"SUM('MMA Rev-Exp Region 1:MMA Rev-Exp Region 11'!AA49)","v":0},{"$f":"SUM('MMA Rev-Exp Region 1:MMA Rev-Exp Region 11'!AB49)","v":0},{"$f":"SUM('MMA Rev-Exp Region 1:MMA Rev-Exp Region 11'!AC49)","v":0},{"$f":"SUM('MMA Rev-Exp Region 1:MMA Rev-Exp Region 11'!AD49)","v":0},{"$f":"SUM('MMA Rev-Exp Region 1:MMA Rev-Exp Region 11'!AE49)","v":0},{"$f":"SUM('MMA Rev-Exp Region 1:MMA Rev-Exp Region 11'!AF49)","v":0},{"$f":"SUM('MMA Rev-Exp Region 1:MMA Rev-Exp Region 11'!AG49)","v":0},{"$f":"SUM('MMA Rev-Exp Region 1:MMA Rev-Exp Region 11'!AH49)","v":0},{"$f":"SUM('MMA Rev-Exp Region 1:MMA Rev-Exp Region 11'!AI49)","v":0},{"$f":"SUM('MMA Rev-Exp Region 1:MMA Rev-Exp Region 11'!AJ49)","v":0},{"$f":"SUM(AL49:AU49)","v":0},{"$f":"SUM('MMA Rev-Exp Region 1:MMA Rev-Exp Region 11'!AL49)","v":0},{"$f":"SUM('MMA Rev-Exp Region 1:MMA Rev-Exp Region 11'!AM49)","v":0},{"$f":"SUM('MMA Rev-Exp Region 1:MMA Rev-Exp Region 11'!AN49)","v":0},{"$f":"SUM('MMA Rev-Exp Region 1:MMA Rev-Exp Region 11'!AO49)","v":0},{"$f":"SUM('MMA Rev-Exp Region 1:MMA Rev-Exp Region 11'!AP49)","v":0},{"$f":"SUM('MMA Rev-Exp Region 1:MMA Rev-Exp Region 11'!AQ49)","v":0},{"$f":"SUM('MMA Rev-Exp Region 1:MMA Rev-Exp Region 11'!AR49)","v":0},{"$f":"SUM('MMA Rev-Exp Region 1:MMA Rev-Exp Region 11'!AS49)","v":0},{"$f":"SUM('MMA Rev-Exp Region 1:MMA Rev-Exp Region 11'!AT49)","v":0},{"$f":"SUM('MMA Rev-Exp Region 1:MMA Rev-Exp Region 11'!AU49)","v":0},{"$f":"SUM('MMA Rev-Exp Region 1:MMA Rev-Exp Region 11'!AV49)","v":0},0,{"$f":"SUM('MMA Rev-Exp Region 1:MMA Rev-Exp Region 11'!AX49)","v":0},{"$f":"SUM('MMA Rev-Exp Region 1:MMA Rev-Exp Region 11'!AY49)","v":0},{"$f":"SUM('MMA Rev-Exp Region 1:MMA Rev-Exp Region 11'!AZ49)","v":0},{"$f":"SUM('MMA Rev-Exp Region 1:MMA Rev-Exp Region 11'!BA49)","v":0},{"$f":"SUM('MMA Rev-Exp Region 1:MMA Rev-Exp Region 11'!BB49)","v":0},{"$f":"SUM('MMA Rev-Exp Region 1:MMA Rev-Exp Region 11'!BC49)","v":0},{"$f":"SUM('MMA Rev-Exp Region 1:MMA Rev-Exp Region 11'!BD49)","v":0},{"$f":"SUM('MMA Rev-Exp Region 1:MMA Rev-Exp Region 11'!BE49)","v":0},{"$f":"SUM('MMA Rev-Exp Region 1:MMA Rev-Exp Region 11'!BF49)","v":0},{"$f":"SUM('MMA Rev-Exp Region 1:MMA Rev-Exp Region 11'!BG49)","v":0}]
[null,"6.5","Total Dental Services",{"$f":"SUM(D46:D49)","v":0},{"$f":"SUM(E46:E49)","v":0},0,0,0,{"$f":"SUM(I46:I49)","v":0},0,0,0,0,0,{"$f":"SUM(O46:O49)","v":0},{"$f":"SUM(P46:P49)","v":0},0,0,0,0,0,0,0,0,0,{"$f":"SUM(Z46:Z49)","v":0},{"$f":"SUM(AA46:AA49)","v":0},0,0,0,0,0,0,0,0,0,{"$f":"SUM(AK46:AK49)","v":0},{"$f":"SUM(AL46:AL49)","v":0},0,0,0,0,0,0,0,0,0,{"$f":"SUM(AV46:AV49)","v":0},0,0,{"$f":"SUM(AY46:AY49)","v":0},0,0,0,0,0,0,0,0]
["Transportation",7.1,"Transportation FFS",{"$f":"SUM(E51:N51)","v":0},{"$f":"SUM('MMA Rev-Exp Region 1:MMA Rev-Exp Region 11'!E51)","v":0},{"$f":"SUM('MMA Rev-Exp Region 1:MMA Rev-Exp Region 11'!F51)","v":0},{"$f":"SUM('MMA Rev-Exp Region 1:MMA Rev-Exp Region 11'!G51)","v":0},{"$f":"SUM('MMA Rev-Exp Region 1:MMA Rev-Exp Region 11'!H51)","v":0},{"$f":"SUM('MMA Rev-Exp Region 1:MMA Rev-Exp Region 11'!I51)","v":0},{"$f":"SUM('MMA Rev-Exp Region 1:MMA Rev-Exp Region 11'!J51)","v":0},{"$f":"SUM('MMA Rev-Exp Region 1:MMA Rev-Exp Region 11'!K51)","v":0},{"$f":"SUM('MMA Rev-Exp Region 1:MMA Rev-Exp Region 11'!L51)","v":0},{"$f":"SUM('MMA Rev-Exp Region 1:MMA Rev-Exp Region 11'!M51)","v":0},{"$f":"SUM('MMA Rev-Exp Region 1:MMA Rev-Exp Region 11'!N51)","v":0},{"$f":"SUM(P51:Y51)","v":0},{"$f":"SUM('MMA Rev-Exp Region 1:MMA Rev-Exp Region 11'!P51)","v":0},{"$f":"SUM('MMA Rev-Exp Region 1:MMA Rev-Exp Region 11'!Q51)","v":0},{"$f":"SUM('MMA Rev-Exp Region 1:MMA Rev-Exp Region 11'!R51)","v":0},{"$f":"SUM('MMA Rev-Exp Region 1:MMA Rev-Exp Region 11'!S51)","v":0},{"$f":"SUM('MMA Rev-Exp Region 1:MMA Rev-Exp Region 11'!T51)","v":0},{"$f":"SUM('MMA Rev-Exp Region 1:MMA Rev-Exp Region 11'!U51)","v":0},{"$f":"SUM('MMA Rev-Exp Region 1:MMA Rev-Exp Region 11'!V51)","v":0},{"$f":"SUM('MMA Rev-Exp Region 1:MMA Rev-Exp Region 11'!W51)","v":0},{"$f":"SUM('MMA Rev-Exp Region 1:MMA Rev-Exp Region 11'!X51)","v":0},{"$f":"SUM('MMA Rev-Exp Region 1:MMA Rev-Exp Region 11'!Y51)","v":0},{"$f":"SUM(AA51:AJ51)","v":0},{"$f":"SUM('MMA Rev-Exp Region 1:MMA Rev-Exp Region 11'!AA51)","v":0},{"$f":"SUM('MMA Rev-Exp Region 1:MMA Rev-Exp Region 11'!AB51)","v":0},{"$f":"SUM('MMA Rev-Exp Region 1:MMA Rev-Exp Region 11'!AC51)","v":0},{"$f":"SUM('MMA Rev-Exp Region 1:MMA Rev-Exp Region 11'!AD51)","v":0},{"$f":"SUM('MMA Rev-Exp Region 1:MMA Rev-Exp Region 11'!AE51)","v":0},{"$f":"SUM('MMA Rev-Exp Region 1:MMA Rev-Exp Region 11'!AF51)","v":0},{"$f":"SUM('MMA Rev-Exp Region 1:MMA Rev-Exp Region 11'!AG51)","v":0},{"$f":"SUM('MMA Rev-Exp Region 1:MMA Rev-Exp Region 11'!AH51)","v":0},{"$f":"SUM('MMA Rev-Exp Region 1:MMA Rev-Exp Region 11'!AI51)","v":0},{"$f":"SUM('MMA Rev-Exp Region 1:MMA Rev-Exp Region 11'!AJ51)","v":0},{"$f":"SUM(AL51:AU51)","v":0},{"$f":"SUM('MMA Rev-Exp Region 1:MMA Rev-Exp Region 11'!AL51)","v":0},{"$f":"SUM('MMA Rev-Exp Region 1:MMA Rev-Exp Region 11'!AM51)","v":0},{"$f":"SUM('MMA Rev-Exp Region 1:MMA Rev-Exp Region 11'!AN51)","v":0},{"$f":"SUM('MMA Rev-Exp Region 1:MMA Rev-Exp Region 11'!AO51)","v":0},{"$f":"SUM('MMA Rev-Exp Region 1:MMA Rev-Exp Region 11'!AP51)","v":0},{"$f":"SUM('MMA Rev-Exp Region 1:MMA Rev-Exp Region 11'!AQ51)","v":0},{"$f":"SUM('MMA Rev-Exp Region 1:MMA Rev-Exp Region 11'!AR51)","v":0},{"$f":"SUM('MMA Rev-Exp Region 1:MMA Rev-Exp Region 11'!AS51)","v":0},{"$f":"SUM('MMA Rev-Exp Region 1:MMA Rev-Exp Region 11'!AT51)","v":0},{"$f":"SUM('MMA Rev-Exp Region 1:MMA Rev-Exp Region 11'!AU51)","v":0},{"$f":"SUM('MMA Rev-Exp Region 1:MMA Rev-Exp Region 11'!AV51)","v":0},{"$f":"SUM(AX51:BG51)+AV51","v":0},{"$f":"SUM('MMA Rev-Exp Region 1:MMA Rev-Exp Region 11'!AX51)","v":0},{"$f":"SUM('MMA Rev-Exp Region 1:MMA Rev-Exp Region 11'!AY51)","v":0},{"$f":"SUM('MMA Rev-Exp Region 1:MMA Rev-Exp Region 11'!AZ51)","v":0},{"$f":"SUM('MMA Rev-Exp Region 1:MMA Rev-Exp Region 11'!BA51)","v":0},{"$f":"SUM('MMA Rev-Exp Region 1:MMA Rev-Exp Region 11'!BB51)","v":0},{"$f":"SUM('MMA Rev-Exp Region 1:MMA Rev-Exp Region 11'!BC51)","v":0},{"$f":"SUM('MMA Rev-Exp Region 1:MMA Rev-Exp Region 11'!BD51)","v":0},{"$f":"SUM('MMA Rev-Exp Region 1:MMA Rev-Exp Region 11'!BE51)","v":0},{"$f":"SUM('MMA Rev-Exp Region 1:MMA Rev-Exp Region 11'!BF51)","v":0},{"$f":"SUM('MMA Rev-Exp Region 1:MMA Rev-Exp Region 11'!BG51)","v":0}]
[null,7.2,"Transportation Subcapitation",{"$f":"SUM(E52:N52)","v":0},{"$f":"SUM('MMA Rev-Exp Region 1:MMA Rev-Exp Region 11'!E52)","v":0},{"$f":"SUM('MMA Rev-Exp Region 1:MMA Rev-Exp Region 11'!F52)","v":0},{"$f":"SUM('MMA Rev-Exp Region 1:MMA Rev-Exp Region 11'!G52)","v":0},{"$f":"SUM('MMA Rev-Exp Region 1:MMA Rev-Exp Region 11'!H52)","v":0},{"$f":"SUM('MMA Rev-Exp Region 1:MMA Rev-Exp Region 11'!I52)","v":0},{"$f":"SUM('MMA Rev-Exp Region 1:MMA Rev-Exp Region 11'!J52)","v":0},{"$f":"SUM('MMA Rev-Exp Region 1:MMA Rev-Exp Region 11'!K52)","v":0},{"$f":"SUM('MMA Rev-Exp Region 1:MMA Rev-Exp Region 11'!L52)","v":0},{"$f":"SUM('MMA Rev-Exp Region 1:MMA Rev-Exp Region 11'!M52)","v":0},{"$f":"SUM('MMA Rev-Exp Region 1:MMA Rev-Exp Region 11'!N52)","v":0},{"$f":"SUM(P52:Y52)","v":0},{"$f":"SUM('MMA Rev-Exp Region 1:MMA Rev-Exp Region 11'!P52)","v":0},{"$f":"SUM('MMA Rev-Exp Region 1:MMA Rev-Exp Region 11'!Q52)","v":0},{"$f":"SUM('MMA Rev-Exp Region 1:MMA Rev-Exp Region 11'!R52)","v":0},{"$f":"SUM('MMA Rev-Exp Region 1:MMA Rev-Exp Region 11'!S52)","v":0},{"$f":"SUM('MMA Rev-Exp Region 1:MMA Rev-Exp Region 11'!T52)","v":0},{"$f":"SUM('MMA Rev-Exp Region 1:MMA Rev-Exp Region 11'!U52)","v":0},{"$f":"SUM('MMA Rev-Exp Region 1:MMA Rev-Exp Region 11'!V52)","v":0},{"$f":"SUM('MMA Rev-Exp Region 1:MMA Rev-Exp Region 11'!W52)","v":0},{"$f":"SUM('MMA Rev-Exp Region 1:MMA Rev-Exp Region 11'!X52)","v":0},{"$f":"SUM('MMA Rev-Exp Region 1:MMA Rev-Exp Region 11'!Y52)","v":0},{"$f":"SUM(AA52:AJ52)","v":0},{"$f":"SUM('MMA Rev-Exp Region 1:MMA Rev-Exp Region 11'!AA52)","v":0},{"$f":"SUM('MMA Rev-Exp Region 1:MMA Rev-Exp Region 11'!AB52)","v":0},{"$f":"SUM('MMA Rev-Exp Region 1:MMA Rev-Exp Region 11'!AC52)","v":0},{"$f":"SUM('MMA Rev-Exp Region 1:MMA Rev-Exp Region 11'!AD52)","v":0},{"$f":"SUM('MMA Rev-Exp Region 1:MMA Rev-Exp Region 11'!AE52)","v":0},{"$f":"SUM('MMA Rev-Exp Region 1:MMA Rev-Exp Region 11'!AF52)","v":0},{"$f":"SUM('MMA Rev-Exp Region 1:MMA Rev-Exp Region 11'!AG52)","v":0},{"$f":"SUM('MMA Rev-Exp Region 1:MMA Rev-Exp Region 11'!AH52)","v":0},{"$f":"SUM('MMA Rev-Exp Region 1:MMA Rev-Exp Region 11'!AI52)","v":0},{"$f":"SUM('MMA Rev-Exp Region 1:MMA Rev-Exp Region 11'!AJ52)","v":0},{"$f":"SUM(AL52:AU52)","v":0},{"$f":"SUM('MMA Rev-Exp Region 1:MMA Rev-Exp Region 11'!AL52)","v":0},{"$f":"SUM('MMA Rev-Exp Region 1:MMA Rev-Exp Region 11'!AM52)","v":0},{"$f":"SUM('MMA Rev-Exp Region 1:MMA Rev-Exp Region 11'!AN52)","v":0},{"$f":"SUM('MMA Rev-Exp Region 1:MMA Rev-Exp Region 11'!AO52)","v":0},{"$f":"SUM('MMA Rev-Exp Region 1:MMA Rev-Exp Region 11'!AP52)","v":0},{"$f":"SUM('MMA Rev-Exp Region 1:MMA Rev-Exp Region 11'!AQ52)","v":0},{"$f":"SUM('MMA Rev-Exp Region 1:MMA Rev-Exp Region 11'!AR52)","v":0},{"$f":"SUM('MMA Rev-Exp Region 1:MMA Rev-Exp Region 11'!AS52)","v":0},{"$f":"SUM('MMA Rev-Exp Region 1:MMA Rev-Exp Region 11'!AT52)","v":0},{"$f":"SUM('MMA Rev-Exp Region 1:MMA Rev-Exp Region 11'!AU52)","v":0},{"$f":"SUM('MMA Rev-Exp Region 1:MMA Rev-Exp Region 11'!AV52)","v":0},{"$f":"SUM(AX52:BG52)+AV52","v":0},{"$f":"SUM('MMA Rev-Exp Region 1:MMA Rev-Exp Region 11'!AX52)","v":0},{"$f":"SUM('MMA Rev-Exp Region 1:MMA Rev-Exp Region 11'!AY52)","v":0},{"$f":"SUM('MMA Rev-Exp Region 1:MMA Rev-Exp Region 11'!AZ52)","v":0},{"$f":"SUM('MMA Rev-Exp Region 1:MMA Rev-Exp Region 11'!BA52)","v":0},{"$f":"SUM('MMA Rev-Exp Region 1:MMA Rev-Exp Region 11'!BB52)","v":0},{"$f":"SUM('MMA Rev-Exp Region 1:MMA Rev-Exp Region 11'!BC52)","v":0},{"$f":"SUM('MMA Rev-Exp Region 1:MMA Rev-Exp Region 11'!BD52)","v":0},{"$f":"SUM('MMA Rev-Exp Region 1:MMA Rev-Exp Region 11'!BE52)","v":0},{"$f":"SUM('MMA Rev-Exp Region 1:MMA Rev-Exp Region 11'!BF52)","v":0},{"$f":"SUM('MMA Rev-Exp Region 1:MMA Rev-Exp Region 11'!BG52)","v":0}]
[null,7.3,"Ending IBNP for Transportation",{"$f":"SUM(E53:N53)","v":0},{"$f":"SUM('MMA Rev-Exp Region 1:MMA Rev-Exp Region 11'!E53)","v":0},{"$f":"SUM('MMA Rev-Exp Region 1:MMA Rev-Exp Region 11'!F53)","v":0},{"$f":"SUM('MMA Rev-Exp Region 1:MMA Rev-Exp Region 11'!G53)","v":0},{"$f":"SUM('MMA Rev-Exp Region 1:MMA Rev-Exp Region 11'!H53)","v":0},{"$f":"SUM('MMA Rev-Exp Region 1:MMA Rev-Exp Region 11'!I53)","v":0},{"$f":"SUM('MMA Rev-Exp Region 1:MMA Rev-Exp Region 11'!J53)","v":0},{"$f":"SUM('MMA Rev-Exp Region 1:MMA Rev-Exp Region 11'!K53)","v":0},{"$f":"SUM('MMA Rev-Exp Region 1:MMA Rev-Exp Region 11'!L53)","v":0},{"$f":"SUM('MMA Rev-Exp Region 1:MMA Rev-Exp Region 11'!M53)","v":0},{"$f":"SUM('MMA Rev-Exp Region 1:MMA Rev-Exp Region 11'!N53)","v":0},{"$f":"SUM(P53:Y53)","v":0},{"$f":"SUM('MMA Rev-Exp Region 1:MMA Rev-Exp Region 11'!P53)","v":0},{"$f":"SUM('MMA Rev-Exp Region 1:MMA Rev-Exp Region 11'!Q53)","v":0},{"$f":"SUM('MMA Rev-Exp Region 1:MMA Rev-Exp Region 11'!R53)","v":0},{"$f":"SUM('MMA Rev-Exp Region 1:MMA Rev-Exp Region 11'!S53)","v":0},{"$f":"SUM('MMA Rev-Exp Region 1:MMA Rev-Exp Region 11'!T53)","v":0},{"$f":"SUM('MMA Rev-Exp Region 1:MMA Rev-Exp Region 11'!U53)","v":0},{"$f":"SUM('MMA Rev-Exp Region 1:MMA Rev-Exp Region 11'!V53)","v":0},{"$f":"SUM('MMA Rev-Exp Region 1:MMA Rev-Exp Region 11'!W53)","v":0},{"$f":"SUM('MMA Rev-Exp Region 1:MMA Rev-Exp Region 11'!X53)","v":0},{"$f":"SUM('MMA Rev-Exp Region 1:MMA Rev-Exp Region 11'!Y53)","v":0},{"$f":"SUM(AA53:AJ53)","v":0},{"$f":"SUM('MMA Rev-Exp Region 1:MMA Rev-Exp Region 11'!AA53)","v":0},{"$f":"SUM('MMA Rev-Exp Region 1:MMA Rev-Exp Region 11'!AB53)","v":0},{"$f":"SUM('MMA Rev-Exp Region 1:MMA Rev-Exp Region 11'!AC53)","v":0},{"$f":"SUM('MMA Rev-Exp Region 1:MMA Rev-Exp Region 11'!AD53)","v":0},{"$f":"SUM('MMA Rev-Exp Region 1:MMA Rev-Exp Region 11'!AE53)","v":0},{"$f":"SUM('MMA Rev-Exp Region 1:MMA Rev-Exp Region 11'!AF53)","v":0},{"$f":"SUM('MMA Rev-Exp Region 1:MMA Rev-Exp Region 11'!AG53)","v":0},{"$f":"SUM('MMA Rev-Exp Region 1:MMA Rev-Exp Region 11'!AH53)","v":0},{"$f":"SUM('MMA Rev-Exp Region 1:MMA Rev-Exp Region 11'!AI53)","v":0},{"$f":"SUM('MMA Rev-Exp Region 1:MMA Rev-Exp Region 11'!AJ53)","v":0},{"$f":"SUM(AL53:AU53)","v":0},{"$f":"SUM('MMA Rev-Exp Region 1:MMA Rev-Exp Region 11'!AL53)","v":0},{"$f":"SUM('MMA Rev-Exp Region 1:MMA Rev-Exp Region 11'!AM53)","v":0},{"$f":"SUM('MMA Rev-Exp Region 1:MMA Rev-Exp Region 11'!AN53)","v":0},{"$f":"SUM('MMA Rev-Exp Region 1:MMA Rev-Exp Region 11'!AO53)","v":0},{"$f":"SUM('MMA Rev-Exp Region 1:MMA Rev-Exp Region 11'!AP53)","v":0},{"$f":"SUM('MMA Rev-Exp Region 1:MMA Rev-Exp Region 11'!AQ53)","v":0},{"$f":"SUM('MMA Rev-Exp Region 1:MMA Rev-Exp Region 11'!AR53)","v":0},{"$f":"SUM('MMA Rev-Exp Region 1:MMA Rev-Exp Region 11'!AS53)","v":0},{"$f":"SUM('MMA Rev-Exp Region 1:MMA Rev-Exp Region 11'!AT53)","v":0},{"$f":"SUM('MMA Rev-Exp Region 1:MMA Rev-Exp Region 11'!AU53)","v":0},{"$f":"SUM('MMA Rev-Exp Region 1:MMA Rev-Exp Region 11'!AV53)","v":0},0,{"$f":"SUM('MMA Rev-Exp Region 1:MMA Rev-Exp Region 11'!AX53)","v":0},{"$f":"SUM('MMA Rev-Exp Region 1:MMA Rev-Exp Region 11'!AY53)","v":0},{"$f":"SUM('MMA Rev-Exp Region 1:MMA Rev-Exp Region 11'!AZ53)","v":0},{"$f":"SUM('MMA Rev-Exp Region 1:MMA Rev-Exp Region 11'!BA53)","v":0},{"$f":"SUM('MMA Rev-Exp Region 1:MMA Rev-Exp Region 11'!BB53)","v":0},{"$f":"SUM('MMA Rev-Exp Region 1:MMA Rev-Exp Region 11'!BC53)","v":0},{"$f":"SUM('MMA Rev-Exp Region 1:MMA Rev-Exp Region 11'!BD53)","v":0},{"$f":"SUM('MMA Rev-Exp Region 1:MMA Rev-Exp Region 11'!BE53)","v":0},{"$f":"SUM('MMA Rev-Exp Region 1:MMA Rev-Exp Region 11'!BF53)","v":0},{"$f":"SUM('MMA Rev-Exp Region 1:MMA Rev-Exp Region 11'!BG53)","v":0}]
[null,"7.4","Transportation Settlements/AP",{"$f":"SUM(E54:N54)","v":0},{"$f":"SUM('MMA Rev-Exp Region 1:MMA Rev-Exp Region 11'!E54)","v":0},{"$f":"SUM('MMA Rev-Exp Region 1:MMA Rev-Exp Region 11'!F54)","v":0},{"$f":"SUM('MMA Rev-Exp Region 1:MMA Rev-Exp Region 11'!G54)","v":0},{"$f":"SUM('MMA Rev-Exp Region 1:MMA Rev-Exp Region 11'!H54)","v":0},{"$f":"SUM('MMA Rev-Exp Region 1:MMA Rev-Exp Region 11'!I54)","v":0},{"$f":"SUM('MMA Rev-Exp Region 1:MMA Rev-Exp Region 11'!J54)","v":0},{"$f":"SUM('MMA Rev-Exp Region 1:MMA Rev-Exp Region 11'!K54)","v":0},{"$f":"SUM('MMA Rev-Exp Region 1:MMA Rev-Exp Region 11'!L54)","v":0},{"$f":"SUM('MMA Rev-Exp Region 1:MMA Rev-Exp Region 11'!M54)","v":0},{"$f":"SUM('MMA Rev-Exp Region 1:MMA Rev-Exp Region 11'!N54)","v":0},{"$f":"SUM(P54:Y54)","v":0},{"$f":"SUM('MMA Rev-Exp Region 1:MMA Rev-Exp Region 11'!P54)","v":0},{"$f":"SUM('MMA Rev-Exp Region 1:MMA Rev-Exp Region 11'!Q54)","v":0},{"$f":"SUM('MMA Rev-Exp Region 1:MMA Rev-Exp Region 11'!R54)","v":0},{"$f":"SUM('MMA Rev-Exp Region 1:MMA Rev-Exp Region 11'!S54)","v":0},{"$f":"SUM('MMA Rev-Exp Region 1:MMA Rev-Exp Region 11'!T54)","v":0},{"$f":"SUM('MMA Rev-Exp Region 1:MMA Rev-Exp Region 11'!U54)","v":0},{"$f":"SUM('MMA Rev-Exp Region 1:MMA Rev-Exp Region 11'!V54)","v":0},{"$f":"SUM('MMA Rev-Exp Region 1:MMA Rev-Exp Region 11'!W54)","v":0},{"$f":"SUM('MMA Rev-Exp Region 1:MMA Rev-Exp Region 11'!X54)","v":0},{"$f":"SUM('MMA Rev-Exp Region 1:MMA Rev-Exp Region 11'!Y54)","v":0},{"$f":"SUM(AA54:AJ54)","v":0},{"$f":"SUM('MMA Rev-Exp Region 1:MMA Rev-Exp Region 11'!AA54)","v":0},{"$f":"SUM('MMA Rev-Exp Region 1:MMA Rev-Exp Region 11'!AB54)","v":0},{"$f":"SUM('MMA Rev-Exp Region 1:MMA Rev-Exp Region 11'!AC54)","v":0},{"$f":"SUM('MMA Rev-Exp Region 1:MMA Rev-Exp Region 11'!AD54)","v":0},{"$f":"SUM('MMA Rev-Exp Region 1:MMA Rev-Exp Region 11'!AE54)","v":0},{"$f":"SUM('MMA Rev-Exp Region 1:MMA Rev-Exp Region 11'!AF54)","v":0},{"$f":"SUM('MMA Rev-Exp Region 1:MMA Rev-Exp Region 11'!AG54)","v":0},{"$f":"SUM('MMA Rev-Exp Region 1:MMA Rev-Exp Region 11'!AH54)","v":0},{"$f":"SUM('MMA Rev-Exp Region 1:MMA Rev-Exp Region 11'!AI54)","v":0},{"$f":"SUM('MMA Rev-Exp Region 1:MMA Rev-Exp Region 11'!AJ54)","v":0},{"$f":"SUM(AL54:AU54)","v":0},{"$f":"SUM('MMA Rev-Exp Region 1:MMA Rev-Exp Region 11'!AL54)","v":0},{"$f":"SUM('MMA Rev-Exp Region 1:MMA Rev-Exp Region 11'!AM54)","v":0},{"$f":"SUM('MMA Rev-Exp Region 1:MMA Rev-Exp Region 11'!AN54)","v":0},{"$f":"SUM('MMA Rev-Exp Region 1:MMA Rev-Exp Region 11'!AO54)","v":0},{"$f":"SUM('MMA Rev-Exp Region 1:MMA Rev-Exp Region 11'!AP54)","v":0},{"$f":"SUM('MMA Rev-Exp Region 1:MMA Rev-Exp Region 11'!AQ54)","v":0},{"$f":"SUM('MMA Rev-Exp Region 1:MMA Rev-Exp Region 11'!AR54)","v":0},{"$f":"SUM('MMA Rev-Exp Region 1:MMA Rev-Exp Region 11'!AS54)","v":0},{"$f":"SUM('MMA Rev-Exp Region 1:MMA Rev-Exp Region 11'!AT54)","v":0},{"$f":"SUM('MMA Rev-Exp Region 1:MMA Rev-Exp Region 11'!AU54)","v":0},{"$f":"SUM('MMA Rev-Exp Region 1:MMA Rev-Exp Region 11'!AV54)","v":0},0,{"$f":"SUM('MMA Rev-Exp Region 1:MMA Rev-Exp Region 11'!AX54)","v":0},{"$f":"SUM('MMA Rev-Exp Region 1:MMA Rev-Exp Region 11'!AY54)","v":0},{"$f":"SUM('MMA Rev-Exp Region 1:MMA Rev-Exp Region 11'!AZ54)","v":0},{"$f":"SUM('MMA Rev-Exp Region 1:MMA Rev-Exp Region 11'!BA54)","v":0},{"$f":"SUM('MMA Rev-Exp Region 1:MMA Rev-Exp Region 11'!BB54)","v":0},{"$f":"SUM('MMA Rev-Exp Region 1:MMA Rev-Exp Region 11'!BC54)","v":0},{"$f":"SUM('MMA Rev-Exp Region 1:MMA Rev-Exp Region 11'!BD54)","v":0},{"$f":"SUM('MMA Rev-Exp Region 1:MMA Rev-Exp Region 11'!BE54)","v":0},{"$f":"SUM('MMA Rev-Exp Region 1:MMA Rev-Exp Region 11'!BF54)","v":0},{"$f":"SUM('MMA Rev-Exp Region 1:MMA Rev-Exp Region 11'!BG54)","v":0}]
[null,"7.5","Total Transportation Services",{"$f":"SUM(D51:D54)","v":0},{"$f":"SUM(E51:E54)","v":0},0,0,0,{"$f":"SUM(I51:I54)","v":0},0,0,0,0,0,{"$f":"SUM(O51:O54)","v":0},{"$f":"SUM(P51:P54)","v":0},0,0,0,0,0,0,0,0,0,{"$f":"SUM(Z51:Z54)","v":0},{"$f":"SUM(AA51:AA54)","v":0},0,0,0,0,0,0,0,0,0,{"$f":"SUM(AK51:AK54)","v":0},{"$f":"SUM(AL51:AL54)","v":0},0,0,0,0,0,0,0,0,0,{"$f":"SUM(AV51:AV54)","v":0},0,0,0,0,0,0,0,0,0,0,0]
["Pharmacy",8.1,"Prescription Drugs FFS",{"$f":"SUM(E56:N56)","v":0},{"$f":"SUM('MMA Rev-Exp Region 1:MMA Rev-Exp Region 11'!E56)","v":0},{"$f":"SUM('MMA Rev-Exp Region 1:MMA Rev-Exp Region 11'!F56)","v":0},{"$f":"SUM('MMA Rev-Exp Region 1:MMA Rev-Exp Region 11'!G56)","v":0},{"$f":"SUM('MMA Rev-Exp Region 1:MMA Rev-Exp Region 11'!H56)","v":0},{"$f":"SUM('MMA Rev-Exp Region 1:MMA Rev-Exp Region 11'!I56)","v":0},{"$f":"SUM('MMA Rev-Exp Region 1:MMA Rev-Exp Region 11'!J56)","v":0},{"$f":"SUM('MMA Rev-Exp Region 1:MMA Rev-Exp Region 11'!K56)","v":0},{"$f":"SUM('MMA Rev-Exp Region 1:MMA Rev-Exp Region 11'!L56)","v":0},{"$f":"SUM('MMA Rev-Exp Region 1:MMA Rev-Exp Region 11'!M56)","v":0},{"$f":"SUM('MMA Rev-Exp Region 1:MMA Rev-Exp Region 11'!N56)","v":0},{"$f":"SUM(P56:Y56)","v":0},{"$f":"SUM('MMA Rev-Exp Region 1:MMA Rev-Exp Region 11'!P56)","v":0},{"$f":"SUM('MMA Rev-Exp Region 1:MMA Rev-Exp Region 11'!Q56)","v":0},{"$f":"SUM('MMA Rev-Exp Region 1:MMA Rev-Exp Region 11'!R56)","v":0},{"$f":"SUM('MMA Rev-Exp Region 1:MMA Rev-Exp Region 11'!S56)","v":0},{"$f":"SUM('MMA Rev-Exp Region 1:MMA Rev-Exp Region 11'!T56)","v":0},{"$f":"SUM('MMA Rev-Exp Region 1:MMA Rev-Exp Region 11'!U56)","v":0},{"$f":"SUM('MMA Rev-Exp Region 1:MMA Rev-Exp Region 11'!V56)","v":0},{"$f":"SUM('MMA Rev-Exp Region 1:MMA Rev-Exp Region 11'!W56)","v":0},{"$f":"SUM('MMA Rev-Exp Region 1:MMA Rev-Exp Region 11'!X56)","v":0},{"$f":"SUM('MMA Rev-Exp Region 1:MMA Rev-Exp Region 11'!Y56)","v":0},{"$f":"SUM(AA56:AJ56)","v":0},{"$f":"SUM('MMA Rev-Exp Region 1:MMA Rev-Exp Region 11'!AA56)","v":0},{"$f":"SUM('MMA Rev-Exp Region 1:MMA Rev-Exp Region 11'!AB56)","v":0},{"$f":"SUM('MMA Rev-Exp Region 1:MMA Rev-Exp Region 11'!AC56)","v":0},{"$f":"SUM('MMA Rev-Exp Region 1:MMA Rev-Exp Region 11'!AD56)","v":0},{"$f":"SUM('MMA Rev-Exp Region 1:MMA Rev-Exp Region 11'!AE56)","v":0},{"$f":"SUM('MMA Rev-Exp Region 1:MMA Rev-Exp Region 11'!AF56)","v":0},{"$f":"SUM('MMA Rev-Exp Region 1:MMA Rev-Exp Region 11'!AG56)","v":0},{"$f":"SUM('MMA Rev-Exp Region 1:MMA Rev-Exp Region 11'!AH56)","v":0},{"$f":"SUM('MMA Rev-Exp Region 1:MMA Rev-Exp Region 11'!AI56)","v":0},{"$f":"SUM('MMA Rev-Exp Region 1:MMA Rev-Exp Region 11'!AJ56)","v":0},{"$f":"SUM(AL56:AU56)","v":0},{"$f":"SUM('MMA Rev-Exp Region 1:MMA Rev-Exp Region 11'!AL56)","v":0},{"$f":"SUM('MMA Rev-Exp Region 1:MMA Rev-Exp Region 11'!AM56)","v":0},{"$f":"SUM('MMA Rev-Exp Region 1:MMA Rev-Exp Region 11'!AN56)","v":0},{"$f":"SUM('MMA Rev-Exp Region 1:MMA Rev-Exp Region 11'!AO56)","v":0},{"$f":"SUM('MMA Rev-Exp Region 1:MMA Rev-Exp Region 11'!AP56)","v":0},{"$f":"SUM('MMA Rev-Exp Region 1:MMA Rev-Exp Region 11'!AQ56)","v":0},{"$f":"SUM('MMA Rev-Exp Region 1:MMA Rev-Exp Region 11'!AR56)","v":0},{"$f":"SUM('MMA Rev-Exp Region 1:MMA Rev-Exp Region 11'!AS56)","v":0},{"$f":"SUM('MMA Rev-Exp Region 1:MMA Rev-Exp Region 11'!AT56)","v":0},{"$f":"SUM('MMA Rev-Exp Region 1:MMA Rev-Exp Region 11'!AU56)","v":0},{"$f":"SUM('MMA Rev-Exp Region 1:MMA Rev-Exp Region 11'!AV56)","v":0},{"$f":"SUM(AX56:BG56)+AV56","v":0},{"$f":"SUM('MMA Rev-Exp Region 1:MMA Rev-Exp Region 11'!AX56)","v":0},{"$f":"SUM('MMA Rev-Exp Region 1:MMA Rev-Exp Region 11'!AY56)","v":0},{"$f":"SUM('MMA Rev-Exp Region 1:MMA Rev-Exp Region 11'!AZ56)","v":0},{"$f":"SUM('MMA Rev-Exp Region 1:MMA Rev-Exp Region 11'!BA56)","v":0},{"$f":"SUM('MMA Rev-Exp Region 1:MMA Rev-Exp Region 11'!BB56)","v":0},{"$f":"SUM('MMA Rev-Exp Region 1:MMA Rev-Exp Region 11'!BC56)","v":0},{"$f":"SUM('MMA Rev-Exp Region 1:MMA Rev-Exp Region 11'!BD56)","v":0},{"$f":"SUM('MMA Rev-Exp Region 1:MMA Rev-Exp Region 11'!BE56)","v":0},{"$f":"SUM('MMA Rev-Exp Region 1:MMA Rev-Exp Region 11'!BF56)","v":0},{"$f":"SUM('MMA Rev-Exp Region 1:MMA Rev-Exp Region 11'!BG56)","v":0}]
[null,"8.2","Hepatitis C Prescription Drug FFS",0,{"$f":"SUM('MMA Rev-Exp Region 1:MMA Rev-Exp Region 11'!E57)","v":0},{"$f":"SUM('MMA Rev-Exp Region 1:MMA Rev-Exp Region 11'!F57)","v":0},{"$f":"SUM('MMA Rev-Exp Region 1:MMA Rev-Exp Region 11'!G57)","v":0},{"$f":"SUM('MMA Rev-Exp Region 1:MMA Rev-Exp Region 11'!H57)","v":0},{"$f":"SUM('MMA Rev-Exp Region 1:MMA Rev-Exp Region 11'!I57)","v":0},{"$f":"SUM('MMA Rev-Exp Region 1:MMA Rev-Exp Region 11'!J57)","v":0},{"$f":"SUM('MMA Rev-Exp Region 1:MMA Rev-Exp Region 11'!K57)","v":0},{"$f":"SUM('MMA Rev-Exp Region 1:MMA Rev-Exp Region 11'!L57)","v":0},{"$f":"SUM('MMA Rev-Exp Region 1:MMA Rev-Exp Region 11'!M57)","v":0},{"$f":"SUM('MMA Rev-Exp Region 1:MMA Rev-Exp Region 11'!N57)","v":0},0,{"$f":"SUM('MMA Rev-Exp Region 1:MMA Rev-Exp Region 11'!P57)","v":0},{"$f":"SUM('MMA Rev-Exp Region 1:MMA Rev-Exp Region 11'!Q57)","v":0},{"$f":"SUM('MMA Rev-Exp Region 1:MMA Rev-Exp Region 11'!R57)","v":0},{"$f":"SUM('MMA Rev-Exp Region 1:MMA Rev-Exp Region 11'!S57)","v":0},{"$f":"SUM('MMA Rev-Exp Region 1:MMA Rev-Exp Region 11'!T57)","v":0},{"$f":"SUM('MMA Rev-Exp Region 1:MMA Rev-Exp Region 11'!U57)","v":0},{"$f":"SUM('MMA Rev-Exp Region 1:MMA Rev-Exp Region 11'!V57)","v":0},{"$f":"SUM('MMA Rev-Exp Region 1:MMA Rev-Exp Region 11'!W57)","v":0},{"$f":"SUM('MMA Rev-Exp Region 1:MMA Rev-Exp Region 11'!X57)","v":0},{"$f":"SUM('MMA Rev-Exp Region 1:MMA Rev-Exp Region 11'!Y57)","v":0},0,{"$f":"SUM('MMA Rev-Exp Region 1:MMA Rev-Exp Region 11'!AA57)","v":0},{"$f":"SUM('MMA Rev-Exp Region 1:MMA Rev-Exp Region 11'!AB57)","v":0},{"$f":"SUM('MMA Rev-Exp Region 1:MMA Rev-Exp Region 11'!AC57)","v":0},{"$f":"SUM('MMA Rev-Exp Region 1:MMA Rev-Exp Region 11'!AD57)","v":0},{"$f":"SUM('MMA Rev-Exp Region 1:MMA Rev-Exp Region 11'!AE57)","v":0},{"$f":"SUM('MMA Rev-Exp Region 1:MMA Rev-Exp Region 11'!AF57)","v":0},{"$f":"SUM('MMA Rev-Exp Region 1:MMA Rev-Exp Region 11'!AG57)","v":0},{"$f":"SUM('MMA Rev-Exp Region 1:MMA Rev-Exp Region 11'!AH57)","v":0},{"$f":"SUM('MMA Rev-Exp Region 1:MMA Rev-Exp Region 11'!AI57)","v":0},{"$f":"SUM('MMA Rev-Exp Region 1:MMA Rev-Exp Region 11'!AJ57)","v":0},0,{"$f":"SUM('MMA Rev-Exp Region 1:MMA Rev-Exp Region 11'!AL57)","v":0},{"$f":"SUM('MMA Rev-Exp Region 1:MMA Rev-Exp Region 11'!AM57)","v":0},{"$f":"SUM('MMA Rev-Exp Region 1:MMA Rev-Exp Region 11'!AN57)","v":0},{"$f":"SUM('MMA Rev-Exp Region 1:MMA Rev-Exp Region 11'!AO57)","v":0},{"$f":"SUM('MMA Rev-Exp Region 1:MMA Rev-Exp Region 11'!AP57)","v":0},{"$f":"SUM('MMA Rev-Exp Region 1:MMA Rev-Exp Region 11'!AQ57)","v":0},{"$f":"SUM('MMA Rev-Exp Region 1:MMA Rev-Exp Region 11'!AR57)","v":0},{"$f":"SUM('MMA Rev-Exp Region 1:MMA Rev-Exp Region 11'!AS57)","v":0},{"$f":"SUM('MMA Rev-Exp Region 1:MMA Rev-Exp Region 11'!AT57)","v":0},{"$f":"SUM('MMA Rev-Exp Region 1:MMA Rev-Exp Region 11'!AU57)","v":0},{"$f":"SUM('MMA Rev-Exp Region 1:MMA Rev-Exp Region 11'!AV57)","v":0},{"$f":"SUM(AX57:BG57)+AV57","v":0},{"$f":"SUM('MMA Rev-Exp Region 1:MMA Rev-Exp Region 11'!AX57)","v":0},{"$f":"SUM('MMA Rev-Exp Region 1:MMA Rev-Exp Region 11'!AY57)","v":0},{"$f":"SUM('MMA Rev-Exp Region 1:MMA Rev-Exp Region 11'!AZ57)","v":0},{"$f":"SUM('MMA Rev-Exp Region 1:MMA Rev-Exp Region 11'!BA57)","v":0},{"$f":"SUM('MMA Rev-Exp Region 1:MMA Rev-Exp Region 11'!BB57)","v":0},{"$f":"SUM('MMA Rev-Exp Region 1:MMA Rev-Exp Region 11'!BC57)","v":0},{"$f":"SUM('MMA Rev-Exp Region 1:MMA Rev-Exp Region 11'!BD57)","v":0},{"$f":"SUM('MMA Rev-Exp Region 1:MMA Rev-Exp Region 11'!BE57)","v":0},{"$f":"SUM('MMA Rev-Exp Region 1:MMA Rev-Exp Region 11'!BF57)","v":0},{"$f":"SUM('MMA Rev-Exp Region 1:MMA Rev-Exp Region 11'!BG57)","v":0}]
[null,"8.3","Ending IBNP for Prescription Drugs",0,{"$f":"SUM('MMA Rev-Exp Region 1:MMA Rev-Exp Region 11'!E58)","v":0},{"$f":"SUM('MMA Rev-Exp Region 1:MMA Rev-Exp Region 11'!F58)","v":0},{"$f":"SUM('MMA Rev-Exp Region 1:MMA Rev-Exp Region 11'!G58)","v":0},{"$f":"SUM('MMA Rev-Exp Region 1:MMA Rev-Exp Region 11'!H58)","v":0},{"$f":"SUM('MMA Rev-Exp Region 1:MMA Rev-Exp Region 11'!I58)","v":0},{"$f":"SUM('MMA Rev-Exp Region 1:MMA Rev-Exp Region 11'!J58)","v":0},{"$f":"SUM('MMA Rev-Exp Region 1:MMA Rev-Exp Region 11'!K58)","v":0},{"$f":"SUM('MMA Rev-Exp Region 1:MMA Rev-Exp Region 11'!L58)","v":0},{"$f":"SUM('MMA Rev-Exp Region 1:MMA Rev-Exp Region 11'!M58)","v":0},{"$f":"SUM('MMA Rev-Exp Region 1:MMA Rev-Exp Region 11'!N58)","v":0},0,{"$f":"SUM('MMA Rev-Exp Region 1:MMA Rev-Exp Region 11'!P58)","v":0},{"$f":"SUM('MMA Rev-Exp Region 1:MMA Rev-Exp Region 11'!Q58)","v":0},{"$f":"SUM('MMA Rev-Exp Region 1:MMA Rev-Exp Region 11'!R58)","v":0},{"$f":"SUM('MMA Rev-Exp Region 1:MMA Rev-Exp Region 11'!S58)","v":0},{"$f":"SUM('MMA Rev-Exp Region 1:MMA Rev-Exp Region 11'!T58)","v":0},{"$f":"SUM('MMA Rev-Exp Region 1:MMA Rev-Exp Region 11'!U58)","v":0},{"$f":"SUM('MMA Rev-Exp Region 1:MMA Rev-Exp Region 11'!V58)","v":0},{"$f":"SUM('MMA Rev-Exp Region 1:MMA Rev-Exp Region 11'!W58)","v":0},{"$f":"SUM('MMA Rev-Exp Region 1:MMA Rev-Exp Region 11'!X58)","v":0},{"$f":"SUM('MMA Rev-Exp Region 1:MMA Rev-Exp Region 11'!Y58)","v":0},0,{"$f":"SUM('MMA Rev-Exp Region 1:MMA Rev-Exp Region 11'!AA58)","v":0},{"$f":"SUM('MMA Rev-Exp Region 1:MMA Rev-Exp Region 11'!AB58)","v":0},{"$f":"SUM('MMA Rev-Exp Region 1:MMA Rev-Exp Region 11'!AC58)","v":0},{"$f":"SUM('MMA Rev-Exp Region 1:MMA Rev-Exp Region 11'!AD58)","v":0},{"$f":"SUM('MMA Rev-Exp Region 1:MMA Rev-Exp Region 11'!AE58)","v":0},{"$f":"SUM('MMA Rev-Exp Region 1:MMA Rev-Exp Region 11'!AF58)","v":0},{"$f":"SUM('MMA Rev-Exp Region 1:MMA Rev-Exp Region 11'!AG58)","v":0},{"$f":"SUM('MMA Rev-Exp Region 1:MMA Rev-Exp Region 11'!AH58)","v":0},{"$f":"SUM('MMA Rev-Exp Region 1:MMA Rev-Exp Region 11'!AI58)","v":0},{"$f":"SUM('MMA Rev-Exp Region 1:MMA Rev-Exp Region 11'!AJ58)","v":0},0,{"$f":"SUM('MMA Rev-Exp Region 1:MMA Rev-Exp Region 11'!AL58)","v":0},{"$f":"SUM('MMA Rev-Exp Region 1:MMA Rev-Exp Region 11'!AM58)","v":0},{"$f":"SUM('MMA Rev-Exp Region 1:MMA Rev-Exp Region 11'!AN58)","v":0},{"$f":"SUM('MMA Rev-Exp Region 1:MMA Rev-Exp Region 11'!AO58)","v":0},{"$f":"SUM('MMA Rev-Exp Region 1:MMA Rev-Exp Region 11'!AP58)","v":0},{"$f":"SUM('MMA Rev-Exp Region 1:MMA Rev-Exp Region 11'!AQ58)","v":0},{"$f":"SUM('MMA Rev-Exp Region 1:MMA Rev-Exp Region 11'!AR58)","v":0},{"$f":"SUM('MMA Rev-Exp Region 1:MMA Rev-Exp Region 11'!AS58)","v":0},{"$f":"SUM('MMA Rev-Exp Region 1:MMA Rev-Exp Region 11'!AT58)","v":0},{"$f":"SUM('MMA Rev-Exp Region 1:MMA Rev-Exp Region 11'!AU58)","v":0},{"$f":"SUM('MMA Rev-Exp Region 1:MMA Rev-Exp Region 11'!AV58)","v":0},0,{"$f":"SUM('MMA Rev-Exp Region 1:MMA Rev-Exp Region 11'!AX58)","v":0},{"$f":"SUM('MMA Rev-Exp Region 1:MMA Rev-Exp Region 11'!AY58)","v":0},{"$f":"SUM('MMA Rev-Exp Region 1:MMA Rev-Exp Region 11'!AZ58)","v":0},{"$f":"SUM('MMA Rev-Exp Region 1:MMA Rev-Exp Region 11'!BA58)","v":0},{"$f":"SUM('MMA Rev-Exp Region 1:MMA Rev-Exp Region 11'!BB58)","v":0},{"$f":"SUM('MMA Rev-Exp Region 1:MMA Rev-Exp Region 11'!BC58)","v":0},{"$f":"SUM('MMA Rev-Exp Region 1:MMA Rev-Exp Region 11'!BD58)","v":0},{"$f":"SUM('MMA Rev-Exp Region 1:MMA Rev-Exp Region 11'!BE58)","v":0},{"$f":"SUM('MMA Rev-Exp Region 1:MMA Rev-Exp Region 11'!BF58)","v":0},{"$f":"SUM('MMA Rev-Exp Region 1:MMA Rev-Exp Region 11'!BG58)","v":0}]
[null,"8.4","Prescription Drug Rebates ",0,{"$f":"SUM('MMA Rev-Exp Region 1:MMA Rev-Exp Region 11'!E59)","v":0},{"$f":"SUM('MMA Rev-Exp Region 1:MMA Rev-Exp Region 11'!F59)","v":0},{"$f":"SUM('MMA Rev-Exp Region 1:MMA Rev-Exp Region 11'!G59)","v":0},{"$f":"SUM('MMA Rev-Exp Region 1:MMA Rev-Exp Region 11'!H59)","v":0},{"$f":"SUM('MMA Rev-Exp Region 1:MMA Rev-Exp Region 11'!I59)","v":0},{"$f":"SUM('MMA Rev-Exp Region 1:MMA Rev-Exp Region 11'!J59)","v":0},{"$f":"SUM('MMA Rev-Exp Region 1:MMA Rev-Exp Region 11'!K59)","v":0},{"$f":"SUM('MMA Rev-Exp Region 1:MMA Rev-Exp Region 11'!L59)","v":0},{"$f":"SUM('MMA Rev-Exp Region 1:MMA Rev-Exp Region 11'!M59)","v":0},{"$f":"SUM('MMA Rev-Exp Region 1:MMA Rev-Exp Region 11'!N59)","v":0},0,{"$f":"SUM('MMA Rev-Exp Region 1:MMA Rev-Exp Region 11'!P59)","v":0},{"$f":"SUM('MMA Rev-Exp Region 1:MMA Rev-Exp Region 11'!Q59)","v":0},{"$f":"SUM('MMA Rev-Exp Region 1:MMA Rev-Exp Region 11'!R59)","v":0},{"$f":"SUM('MMA Rev-Exp Region 1:MMA Rev-Exp Region 11'!S59)","v":0},{"$f":"SUM('MMA Rev-Exp Region 1:MMA Rev-Exp Region 11'!T59)","v":0},{"$f":"SUM('MMA Rev-Exp Region 1:MMA Rev-Exp Region 11'!U59)","v":0},{"$f":"SUM('MMA Rev-Exp Region 1:MMA Rev-Exp Region 11'!V59)","v":0},{"$f":"SUM('MMA Rev-Exp Region 1:MMA Rev-Exp Region 11'!W59)","v":0},{"$f":"SUM('MMA Rev-Exp Region 1:MMA Rev-Exp Region 11'!X59)","v":0},{"$f":"SUM('MMA Rev-Exp Region 1:MMA Rev-Exp Region 11'!Y59)","v":0},0,{"$f":"SUM('MMA Rev-Exp Region 1:MMA Rev-Exp Region 11'!AA59)","v":0},{"$f":"SUM('MMA Rev-Exp Region 1:MMA Rev-Exp Region 11'!AB59)","v":0},{"$f":"SUM('MMA Rev-Exp Region 1:MMA Rev-Exp Region 11'!AC59)","v":0},{"$f":"SUM('MMA Rev-Exp Region 1:MMA Rev-Exp Region 11'!AD59)","v":0},{"$f":"SUM('MMA Rev-Exp Region 1:MMA Rev-Exp Region 11'!AE59)","v":0},{"$f":"SUM('MMA Rev-Exp Region 1:MMA Rev-Exp Region 11'!AF59)","v":0},{"$f":"SUM('MMA Rev-Exp Region 1:MMA Rev-Exp Region 11'!AG59)","v":0},{"$f":"SUM('MMA Rev-Exp Region 1:MMA Rev-Exp Region 11'!AH59)","v":0},{"$f":"SUM('MMA Rev-Exp Region 1:MMA Rev-Exp Region 11'!AI59)","v":0},{"$f":"SUM('MMA Rev-Exp Region 1:MMA Rev-Exp Region 11'!AJ59)","v":0},0,{"$f":"SUM('MMA Rev-Exp Region 1:MMA Rev-Exp Region 11'!AL59)","v":0},{"$f":"SUM('MMA Rev-Exp Region 1:MMA Rev-Exp Region 11'!AM59)","v":0},{"$f":"SUM('MMA Rev-Exp Region 1:MMA Rev-Exp Region 11'!AN59)","v":0},{"$f":"SUM('MMA Rev-Exp Region 1:MMA Rev-Exp Region 11'!AO59)","v":0},{"$f":"SUM('MMA Rev-Exp Region 1:MMA Rev-Exp Region 11'!AP59)","v":0},{"$f":"SUM('MMA Rev-Exp Region 1:MMA Rev-Exp Region 11'!AQ59)","v":0},{"$f":"SUM('MMA Rev-Exp Region 1:MMA Rev-Exp Region 11'!AR59)","v":0},{"$f":"SUM('MMA Rev-Exp Region 1:MMA Rev-Exp Region 11'!AS59)","v":0},{"$f":"SUM('MMA Rev-Exp Region 1:MMA Rev-Exp Region 11'!AT59)","v":0},{"$f":"SUM('MMA Rev-Exp Region 1:MMA Rev-Exp Region 11'!AU59)","v":0},{"$f":"SUM('MMA Rev-Exp Region 1:MMA Rev-Exp Region 11'!AV59)","v":0},0,{"$f":"SUM('MMA Rev-Exp Region 1:MMA Rev-Exp Region 11'!AX59)","v":0},{"$f":"SUM('MMA Rev-Exp Region 1:MMA Rev-Exp Region 11'!AY59)","v":0},{"$f":"SUM('MMA Rev-Exp Region 1:MMA Rev-Exp Region 11'!AZ59)","v":0},{"$f":"SUM('MMA Rev-Exp Region 1:MMA Rev-Exp Region 11'!BA59)","v":0},{"$f":"SUM('MMA Rev-Exp Region 1:MMA Rev-Exp Region 11'!BB59)","v":0},{"$f":"SUM('MMA Rev-Exp Region 1:MMA Rev-Exp Region 11'!BC59)","v":0},{"$f":"SUM('MMA Rev-Exp Region 1:MMA Rev-Exp Region 11'!BD59)","v":0},{"$f":"SUM('MMA Rev-Exp Region 1:MMA Rev-Exp Region 11'!BE59)","v":0},{"$f":"SUM('MMA Rev-Exp Region 1:MMA Rev-Exp Region 11'!BF59)","v":0},{"$f":"SUM('MMA Rev-Exp Region 1:MMA Rev-Exp Region 11'!BG59)","v":0}]
[null,"8.5","Ending accrual for Rebates receivable",0,{"$f":"SUM('MMA Rev-Exp Region 1:MMA Rev-Exp Region 11'!E60)","v":0},{"$f":"SUM('MMA Rev-Exp Region 1:MMA Rev-Exp Region 11'!F60)","v":0},{"$f":"SUM('MMA Rev-Exp Region 1:MMA Rev-Exp Region 11'!G60)","v":0},{"$f":"SUM('MMA Rev-Exp Region 1:MMA Rev-Exp Region 11'!H60)","v":0},{"$f":"SUM('MMA Rev-Exp Region 1:MMA Rev-Exp Region 11'!I60)","v":0},{"$f":"SUM('MMA Rev-Exp Region 1:MMA Rev-Exp Region 11'!J60)","v":0},{"$f":"SUM('MMA Rev-Exp Region 1:MMA Rev-Exp Region 11'!K60)","v":0},{"$f":"SUM('MMA Rev-Exp Region 1:MMA Rev-Exp Region 11'!L60)","v":0},{"$f":"SUM('MMA Rev-Exp Region 1:MMA Rev-Exp Region 11'!M60)","v":0},{"$f":"SUM('MMA Rev-Exp Region 1:MMA Rev-Exp Region 11'!N60)","v":0},0,{"$f":"SUM('MMA Rev-Exp Region 1:MMA Rev-Exp Region 11'!P60)","v":0},{"$f":"SUM('MMA Rev-Exp Region 1:MMA Rev-Exp Region 11'!Q60)","v":0},{"$f":"SUM('MMA Rev-Exp Region 1:MMA Rev-Exp Region 11'!R60)","v":0},{"$f":"SUM('MMA Rev-Exp Region 1:MMA Rev-Exp Region 11'!S60)","v":0},{"$f":"SUM('MMA Rev-Exp Region 1:MMA Rev-Exp Region 11'!T60)","v":0},{"$f":"SUM('MMA Rev-Exp Region 1:MMA Rev-Exp Region 11'!U60)","v":0},{"$f":"SUM('MMA Rev-Exp Region 1:MMA Rev-Exp Region 11'!V60)","v":0},{"$f":"SUM('MMA Rev-Exp Region 1:MMA Rev-Exp Region 11'!W60)","v":0},{"$f":"SUM('MMA Rev-Exp Region 1:MMA Rev-Exp Region 11'!X60)","v":0},{"$f":"SUM('MMA Rev-Exp Region 1:MMA Rev-Exp Region 11'!Y60)","v":0},0,{"$f":"SUM('MMA Rev-Exp Region 1:MMA Rev-Exp Region 11'!AA60)","v":0},{"$f":"SUM('MMA Rev-Exp Region 1:MMA Rev-Exp Region 11'!AB60)","v":0},{"$f":"SUM('MMA Rev-Exp Region 1:MMA Rev-Exp Region 11'!AC60)","v":0},{"$f":"SUM('MMA Rev-Exp Region 1:MMA Rev-Exp Region 11'!AD60)","v":0},{"$f":"SUM('MMA Rev-Exp Region 1:MMA Rev-Exp Region 11'!AE60)","v":0},{"$f":"SUM('MMA Rev-Exp Region 1:MMA Rev-Exp Region 11'!AF60)","v":0},{"$f":"SUM('MMA Rev-Exp Region 1:MMA Rev-Exp Region 11'!AG60)","v":0},{"$f":"SUM('MMA Rev-Exp Region 1:MMA Rev-Exp Region 11'!AH60)","v":0},{"$f":"SUM('MMA Rev-Exp Region 1:MMA Rev-Exp Region 11'!AI60)","v":0},{"$f":"SUM('MMA Rev-Exp Region 1:MMA Rev-Exp Region 11'!AJ60)","v":0},0,{"$f":"SUM('MMA Rev-Exp Region 1:MMA Rev-Exp Region 11'!AL60)","v":0},{"$f":"SUM('MMA Rev-Exp Region 1:MMA Rev-Exp Region 11'!AM60)","v":0},{"$f":"SUM('MMA Rev-Exp Region 1:MMA Rev-Exp Region 11'!AN60)","v":0},{"$f":"SUM('MMA Rev-Exp Region 1:MMA Rev-Exp Region 11'!AO60)","v":0},{"$f":"SUM('MMA Rev-Exp Region 1:MMA Rev-Exp Region 11'!AP60)","v":0},{"$f":"SUM('MMA Rev-Exp Region 1:MMA Rev-Exp Region 11'!AQ60)","v":0},{"$f":"SUM('MMA Rev-Exp Region 1:MMA Rev-Exp Region 11'!AR60)","v":0},{"$f":"SUM('MMA Rev-Exp Region 1:MMA Rev-Exp Region 11'!AS60)","v":0},{"$f":"SUM('MMA Rev-Exp Region 1:MMA Rev-Exp Region 11'!AT60)","v":0},{"$f":"SUM('MMA Rev-Exp Region 1:MMA Rev-Exp Region 11'!AU60)","v":0},{"$f":"SUM('MMA Rev-Exp Region 1:MMA Rev-Exp Region 11'!AV60)","v":0},0,{"$f":"SUM('MMA Rev-Exp Region 1:MMA Rev-Exp Region 11'!AX60)","v":0},{"$f":"SUM('MMA Rev-Exp Region 1:MMA Rev-Exp Region 11'!AY60)","v":0},{"$f":"SUM('MMA Rev-Exp Region 1:MMA Rev-Exp Region 11'!AZ60)","v":0},{"$f":"SUM('MMA Rev-Exp Region 1:MMA Rev-Exp Region 11'!BA60)","v":0},{"$f":"SUM('MMA Rev-Exp Region 1:MMA Rev-Exp Region 11'!BB60)","v":0},{"$f":"SUM('MMA Rev-Exp Region 1:MMA Rev-Exp Region 11'!BC60)","v":0},{"$f":"SUM('MMA Rev-Exp Region 1:MMA Rev-Exp Region 11'!BD60)","v":0},{"$f":"SUM('MMA Rev-Exp Region 1:MMA Rev-Exp Region 11'!BE60)","v":0},{"$f":"SUM('MMA Rev-Exp Region 1:MMA Rev-Exp Region 11'!BF60)","v":0},{"$f":"SUM('MMA Rev-Exp Region 1:MMA Rev-Exp Region 11'!BG60)","v":0}]
[null,"8.6","Prescription Drugs Subcapitation",0,{"$f":"SUM('MMA Rev-Exp Region 1:MMA Rev-Exp Region 11'!E61)","v":0},{"$f":"SUM('MMA Rev-Exp Region 1:MMA Rev-Exp Region 11'!F61)","v":0},{"$f":"SUM('MMA Rev-Exp Region 1:MMA Rev-Exp Region 11'!G61)","v":0},{"$f":"SUM('MMA Rev-Exp Region 1:MMA Rev-Exp Region 11'!H61)","v":0},{"$f":"SUM('MMA Rev-Exp Region 1:MMA Rev-Exp Region 11'!I61)","v":0},{"$f":"SUM('MMA Rev-Exp Region 1:MMA Rev-Exp Region 11'!J61)","v":0},{"$f":"SUM('MMA Rev-Exp Region 1:MMA Rev-Exp Region 11'!K61)","v":0},{"$f":"SUM('MMA Rev-Exp Region 1:MMA Rev-Exp Region 11'!L61)","v":0},{"$f":"SUM('MMA Rev-Exp Region 1:MMA Rev-Exp Region 11'!M61)","v":0},{"$f":"SUM('MMA Rev-Exp Region 1:MMA Rev-Exp Region 11'!N61)","v":0},0,{"$f":"SUM('MMA Rev-Exp Region 1:MMA Rev-Exp Region 11'!P61)","v":0},{"$f":"SUM('MMA Rev-Exp Region 1:MMA Rev-Exp Region 11'!Q61)","v":0},{"$f":"SUM('MMA Rev-Exp Region 1:MMA Rev-Exp Region 11'!R61)","v":0},{"$f":"SUM('MMA Rev-Exp Region 1:MMA Rev-Exp Region 11'!S61)","v":0},{"$f":"SUM('MMA Rev-Exp Region 1:MMA Rev-Exp Region 11'!T61)","v":0},{"$f":"SUM('MMA Rev-Exp Region 1:MMA Rev-Exp Region 11'!U61)","v":0},{"$f":"SUM('MMA Rev-Exp Region 1:MMA Rev-Exp Region 11'!V61)","v":0},{"$f":"SUM('MMA Rev-Exp Region 1:MMA Rev-Exp Region 11'!W61)","v":0},{"$f":"SUM('MMA Rev-Exp Region 1:MMA Rev-Exp Region 11'!X61)","v":0},{"$f":"SUM('MMA Rev-Exp Region 1:MMA Rev-Exp Region 11'!Y61)","v":0},0,{"$f":"SUM('MMA Rev-Exp Region 1:MMA Rev-Exp Region 11'!AA61)","v":0},{"$f":"SUM('MMA Rev-Exp Region 1:MMA Rev-Exp Region 11'!AB61)","v":0},{"$f":"SUM('MMA Rev-Exp Region 1:MMA Rev-Exp Region 11'!AC61)","v":0},{"$f":"SUM('MMA Rev-Exp Region 1:MMA Rev-Exp Region 11'!AD61)","v":0},{"$f":"SUM('MMA Rev-Exp Region 1:MMA Rev-Exp Region 11'!AE61)","v":0},{"$f":"SUM('MMA Rev-Exp Region 1:MMA Rev-Exp Region 11'!AF61)","v":0},{"$f":"SUM('MMA Rev-Exp Region 1:MMA Rev-Exp Region 11'!AG61)","v":0},{"$f":"SUM('MMA Rev-Exp Region 1:MMA Rev-Exp Region 11'!AH61)","v":0},{"$f":"SUM('MMA Rev-Exp Region 1:MMA Rev-Exp Region 11'!AI61)","v":0},{"$f":"SUM('MMA Rev-Exp Region 1:MMA Rev-Exp Region 11'!AJ61)","v":0},0,{"$f":"SUM('MMA Rev-Exp Region 1:MMA Rev-Exp Region 11'!AL61)","v":0},{"$f":"SUM('MMA Rev-Exp Region 1:MMA Rev-Exp Region 11'!AM61)","v":0},{"$f":"SUM('MMA Rev-Exp Region 1:MMA Rev-Exp Region 11'!AN61)","v":0},{"$f":"SUM('MMA Rev-Exp Region 1:MMA Rev-Exp Region 11'!AO61)","v":0},{"$f":"SUM('MMA Rev-Exp Region 1:MMA Rev-Exp Region 11'!AP61)","v":0},{"$f":"SUM('MMA Rev-Exp Region 1:MMA Rev-Exp Region 11'!AQ61)","v":0},{"$f":"SUM('MMA Rev-Exp Region 1:MMA Rev-Exp Region 11'!AR61)","v":0},{"$f":"SUM('MMA Rev-Exp Region 1:MMA Rev-Exp Region 11'!AS61)","v":0},{"$f":"SUM('MMA Rev-Exp Region 1:MMA Rev-Exp Region 11'!AT61)","v":0},{"$f":"SUM('MMA Rev-Exp Region 1:MMA Rev-Exp Region 11'!AU61)","v":0},{"$f":"SUM('MMA Rev-Exp Region 1:MMA Rev-Exp Region 11'!AV61)","v":0},0,{"$f":"SUM('MMA Rev-Exp Region 1:MMA Rev-Exp Region 11'!AX61)","v":0},{"$f":"SUM('MMA Rev-Exp Region 1:MMA Rev-Exp Region 11'!AY61)","v":0},{"$f":"SUM('MMA Rev-Exp Region 1:MMA Rev-Exp Region 11'!AZ61)","v":0},{"$f":"SUM('MMA Rev-Exp Region 1:MMA Rev-Exp Region 11'!BA61)","v":0},{"$f":"SUM('MMA Rev-Exp Region 1:MMA Rev-Exp Region 11'!BB61)","v":0},{"$f":"SUM('MMA Rev-Exp Region 1:MMA Rev-Exp Region 11'!BC61)","v":0},{"$f":"SUM('MMA Rev-Exp Region 1:MMA Rev-Exp Region 11'!BD61)","v":0},{"$f":"SUM('MMA Rev-Exp Region 1:MMA Rev-Exp Region 11'!BE61)","v":0},{"$f":"SUM('MMA Rev-Exp Region 1:MMA Rev-Exp Region 11'!BF61)","v":0},{"$f":"SUM('MMA Rev-Exp Region 1:MMA Rev-Exp Region 11'!BG61)","v":0}]
[null,"8.7","Prescription Drug Settlements/AP",0,{"$f":"SUM('MMA Rev-Exp Region 1:MMA Rev-Exp Region 11'!E62)","v":0},{"$f":"SUM('MMA Rev-Exp Region 1:MMA Rev-Exp Region 11'!F62)","v":0},{"$f":"SUM('MMA Rev-Exp Region 1:MMA Rev-Exp Region 11'!G62)","v":0},{"$f":"SUM('MMA Rev-Exp Region 1:MMA Rev-Exp Region 11'!H62)","v":0},{"$f":"SUM('MMA Rev-Exp Region 1:MMA Rev-Exp Region 11'!I62)","v":0},{"$f":"SUM('MMA Rev-Exp Region 1:MMA Rev-Exp Region 11'!J62)","v":0},{"$f":"SUM('MMA Rev-Exp Region 1:MMA Rev-Exp Region 11'!K62)","v":0},{"$f":"SUM('MMA Rev-Exp Region 1:MMA Rev-Exp Region 11'!L62)","v":0},{"$f":"SUM('MMA Rev-Exp Region 1:MMA Rev-Exp Region 11'!M62)","v":0},{"$f":"SUM('MMA Rev-Exp Region 1:MMA Rev-Exp Region 11'!N62)","v":0},0,{"$f":"SUM('MMA Rev-Exp Region 1:MMA Rev-Exp Region 11'!P62)","v":0},{"$f":"SUM('MMA Rev-Exp Region 1:MMA Rev-Exp Region 11'!Q62)","v":0},{"$f":"SUM('MMA Rev-Exp Region 1:MMA Rev-Exp Region 11'!R62)","v":0},{"$f":"SUM('MMA Rev-Exp Region 1:MMA Rev-Exp Region 11'!S62)","v":0},{"$f":"SUM('MMA Rev-Exp Region 1:MMA Rev-Exp Region 11'!T62)","v":0},{"$f":"SUM('MMA Rev-Exp Region 1:MMA Rev-Exp Region 11'!U62)","v":0},{"$f":"SUM('MMA Rev-Exp Region 1:MMA Rev-Exp Region 11'!V62)","v":0},{"$f":"SUM('MMA Rev-Exp Region 1:MMA Rev-Exp Region 11'!W62)","v":0},{"$f":"SUM('MMA Rev-Exp Region 1:MMA Rev-Exp Region 11'!X62)","v":0},{"$f":"SUM('MMA Rev-Exp Region 1:MMA Rev-Exp Region 11'!Y62)","v":0},0,{"$f":"SUM('MMA Rev-Exp Region 1:MMA Rev-Exp Region 11'!AA62)","v":0},{"$f":"SUM('MMA Rev-Exp Region 1:MMA Rev-Exp Region 11'!AB62)","v":0},{"$f":"SUM('MMA Rev-Exp Region 1:MMA Rev-Exp Region 11'!AC62)","v":0},{"$f":"SUM('MMA Rev-Exp Region 1:MMA Rev-Exp Region 11'!AD62)","v":0},{"$f":"SUM('MMA Rev-Exp Region 1:MMA Rev-Exp Region 11'!AE62)","v":0},{"$f":"SUM('MMA Rev-Exp Region 1:MMA Rev-Exp Region 11'!AF62)","v":0},{"$f":"SUM('MMA Rev-Exp Region 1:MMA Rev-Exp Region 11'!AG62)","v":0},{"$f":"SUM('MMA Rev-Exp Region 1:MMA Rev-Exp Region 11'!AH62)","v":0},{"$f":"SUM('MMA Rev-Exp Region 1:MMA Rev-Exp Region 11'!AI62)","v":0},{"$f":"SUM('MMA Rev-Exp Region 1:MMA Rev-Exp Region 11'!AJ62)","v":0},0,{"$f":"SUM('MMA Rev-Exp Region 1:MMA Rev-Exp Region 11'!AL62)","v":0},{"$f":"SUM('MMA Rev-Exp Region 1:MMA Rev-Exp Region 11'!AM62)","v":0},{"$f":"SUM('MMA Rev-Exp Region 1:MMA Rev-Exp Region 11'!AN62)","v":0},{"$f":"SUM('MMA Rev-Exp Region 1:MMA Rev-Exp Region 11'!AO62)","v":0},{"$f":"SUM('MMA Rev-Exp Region 1:MMA Rev-Exp Region 11'!AP62)","v":0},{"$f":"SUM('MMA Rev-Exp Region 1:MMA Rev-Exp Region 11'!AQ62)","v":0},{"$f":"SUM('MMA Rev-Exp Region 1:MMA Rev-Exp Region 11'!AR62)","v":0},{"$f":"SUM('MMA Rev-Exp Region 1:MMA Rev-Exp Region 11'!AS62)","v":0},{"$f":"SUM('MMA Rev-Exp Region 1:MMA Rev-Exp Region 11'!AT62)","v":0},{"$f":"SUM('MMA Rev-Exp Region 1:MMA Rev-Exp Region 11'!AU62)","v":0},{"$f":"SUM('MMA Rev-Exp Region 1:MMA Rev-Exp Region 11'!AV62)","v":0},0,{"$f":"SUM('MMA Rev-Exp Region 1:MMA Rev-Exp Region 11'!AX62)","v":0},{"$f":"SUM('MMA Rev-Exp Region 1:MMA Rev-Exp Region 11'!AY62)","v":0},{"$f":"SUM('MMA Rev-Exp Region 1:MMA Rev-Exp Region 11'!AZ62)","v":0},{"$f":"SUM('MMA Rev-Exp Region 1:MMA Rev-Exp Region 11'!BA62)","v":0},{"$f":"SUM('MMA Rev-Exp Region 1:MMA Rev-Exp Region 11'!BB62)","v":0},{"$f":"SUM('MMA Rev-Exp Region 1:MMA Rev-Exp Region 11'!BC62)","v":0},{"$f":"SUM('MMA Rev-Exp Region 1:MMA Rev-Exp Region 11'!BD62)","v":0},{"$f":"SUM('MMA Rev-Exp Region 1:MMA Rev-Exp Region 11'!BE62)","v":0},{"$f":"SUM('MMA Rev-Exp Region 1:MMA Rev-Exp Region 11'!BF62)","v":0},{"$f":"SUM('MMA Rev-Exp Region 1:MMA Rev-Exp Region 11'!BG62)","v":0}]
[null,"8.8","Total Prescription Drugs",{"$f":"SUM(D56:D62)","v":0},{"$f":"SUM(E56:E62)","v":0},0,0,0,{"$f":"SUM(I56:I62)","v":0},0,0,0,0,0,{"$f":"SUM(O56:O62)","v":0},{"$f":"SUM(P56:P62)","v":0},0,0,0,0,0,0,0,0,0,{"$f":"SUM(Z56:Z62)","v":0},{"$f":"SUM(AA56:AA62)","v":0},0,0,0,0,0,0,0,0,0,{"$f":"SUM(AK56:AK62)","v":0},{"$f":"SUM(AL56:AL62)","v":0},0,0,0,0,0,0,0,0,0,{"$f":"SUM(AV56:AV62)","v":0},0,0,{"$f":"SUM(AY56:AY62)","v":0},0,0,0,0,0,0,0,0]
["Other Services",9.1,"Home Health, Private Duty Nursing, Personal Care FFS",{"$f":"SUM(E64:N64)","v":0},{"$f":"SUM('MMA Rev-Exp Region 1:MMA Rev-Exp Region 11'!E64)","v":0},{"$f":"SUM('MMA Rev-Exp Region 1:MMA Rev-Exp Region 11'!F64)","v":0},{"$f":"SUM('MMA Rev-Exp Region 1:MMA Rev-Exp Region 11'!G64)","v":0},{"$f":"SUM('MMA Rev-Exp Region 1:MMA Rev-Exp Region 11'!H64)","v":0},{"$f":"SUM('MMA Rev-Exp Region 1:MMA Rev-Exp Region 11'!I64)","v":0},{"$f":"SUM('MMA Rev-Exp Region 1:MMA Rev-Exp Region 11'!J64)","v":0},{"$f":"SUM('MMA Rev-Exp Region 1:MMA Rev-Exp Region 11'!K64)","v":0},{"$f":"SUM('MMA Rev-Exp Region 1:MMA Rev-Exp Region 11'!L64)","v":0},null,null,{"$f":"SUM(P64:Y64)","v":0},{"$f":"SUM('MMA Rev-Exp Region 1:MMA Rev-Exp Region 11'!P64)","v":0},{"$f":"SUM('MMA Rev-Exp Region 1:MMA Rev-Exp Region 11'!Q64)","v":0},{"$f":"SUM('MMA Rev-Exp Region 1:MMA Rev-Exp Region 11'!R64)","v":0},{"$f":"SUM('MMA Rev-Exp Region 1:MMA Rev-Exp Region 11'!S64)","v":0},{"$f":"SUM('MMA Rev-Exp Region 1:MMA Rev-Exp Region 11'!T64)","v":0},{"$f":"SUM('MMA Rev-Exp Region 1:MMA Rev-Exp Region 11'!U64)","v":0},{"$f":"SUM('MMA Rev-Exp Region 1:MMA Rev-Exp Region 11'!V64)","v":0},{"$f":"SUM('MMA Rev-Exp Region 1:MMA Rev-Exp Region 11'!W64)","v":0},null,null,{"$f":"SUM(AA64:AJ64)","v":0},{"$f":"SUM('MMA Rev-Exp Region 1:MMA Rev-Exp Region 11'!AA64)","v":0},{"$f":"SUM('MMA Rev-Exp Region 1:MMA Rev-Exp Region 11'!AB64)","v":0},{"$f":"SUM('MMA Rev-Exp Region 1:MMA Rev-Exp Region 11'!AC64)","v":0},{"$f":"SUM('MMA Rev-Exp Region 1:MMA Rev-Exp Region 11'!AD64)","v":0},{"$f":"SUM('MMA Rev-Exp Region 1:MMA Rev-Exp Region 11'!AE64)","v":0},{"$f":"SUM('MMA Rev-Exp Region 1:MMA Rev-Exp Region 11'!AF64)","v":0},{"$f":"SUM('MMA Rev-Exp Region 1:MMA Rev-Exp Region 11'!AG64)","v":0},{"$f":"SUM('MMA Rev-Exp Region 1:MMA Rev-Exp Region 11'!AH64)","v":0},null,null,{"$f":"SUM(AL64:AU64)","v":0},{"$f":"SUM('MMA Rev-Exp Region 1:MMA Rev-Exp Region 11'!AL64)","v":0},{"$f":"SUM('MMA Rev-Exp Region 1:MMA Rev-Exp Region 11'!AM64)","v":0},{"$f":"SUM('MMA Rev-Exp Region 1:MMA Rev-Exp Region 11'!AN64)","v":0},{"$f":"SUM('MMA Rev-Exp Region 1:MMA Rev-Exp Region 11'!AO64)","v":0},{"$f":"SUM('MMA Rev-Exp Region 1:MMA Rev-Exp Region 11'!AP64)","v":0},{"$f":"SUM('MMA Rev-Exp Region 1:MMA Rev-Exp Region 11'!AQ64)","v":0},{"$f":"SUM('MMA Rev-Exp Region 1:MMA Rev-Exp Region 11'!AR64)","v":0},{"$f":"SUM('MMA Rev-Exp Region 1:MMA Rev-Exp Region 11'!AS64)","v":0},null,null,{"$f":"SUM('MMA Rev-Exp Region 1:MMA Rev-Exp Region 11'!AV64)","v":0},{"$f":"SUM(AX64:BE64)+AV64","v":0},{"$f":"SUM('MMA Rev-Exp Region 1:MMA Rev-Exp Region 11'!AX64)","v":0},{"$f":"SUM('MMA Rev-Exp Region 1:MMA Rev-Exp Region 11'!AY64)","v":0},{"$f":"SUM('MMA Rev-Exp Region 1:MMA Rev-Exp Region 11'!AZ64)","v":0},{"$f":"SUM('MMA Rev-Exp Region 1:MMA Rev-Exp Region 11'!BA64)","v":0},{"$f":"SUM('MMA Rev-Exp Region 1:MMA Rev-Exp Region 11'!BB64)","v":0},{"$f":"SUM('MMA Rev-Exp Region 1:MMA Rev-Exp Region 11'!BC64)","v":0},{"$f":"SUM('MMA Rev-Exp Region 1:MMA Rev-Exp Region 11'!BD64)","v":0},{"$f":"SUM('MMA Rev-Exp Region 1:MMA Rev-Exp Region 11'!BE64)","v":0}]
[null,"9.2","Hospice FFS",0,{"$f":"SUM('MMA Rev-Exp Region 1:MMA Rev-Exp Region 11'!E65)","v":0},{"$f":"SUM('MMA Rev-Exp Region 1:MMA Rev-Exp Region 11'!F65)","v":0},{"$f":"SUM('MMA Rev-Exp Region 1:MMA Rev-Exp Region 11'!G65)","v":0},{"$f":"SUM('MMA Rev-Exp Region 1:MMA Rev-Exp Region 11'!H65)","v":0},{"$f":"SUM('MMA Rev-Exp Region 1:MMA Rev-Exp Region 11'!I65)","v":0},{"$f":"SUM('MMA Rev-Exp Region 1:MMA Rev-Exp Region 11'!J65)","v":0},{"$f":"SUM('MMA Rev-Exp Region 1:MMA Rev-Exp Region 11'!K65)","v":0},{"$f":"SUM('MMA Rev-Exp Region 1:MMA Rev-Exp Region 11'!L65)","v":0},null,null,0,{"$f":"SUM('MMA Rev-Exp Region 1:MMA Rev-Exp Region 11'!P65)","v":0},{"$f":"SUM('MMA Rev-Exp Region 1:MMA Rev-Exp Region 11'!Q65)","v":0},{"$f":"SUM('MMA Rev-Exp Region 1:MMA Rev-Exp Region 11'!R65)","v":0},{"$f":"SUM('MMA Rev-Exp Region 1:MMA Rev-Exp Region 11'!S65)","v":0},{"$f":"SUM('MMA Rev-Exp Region 1:MMA Rev-Exp Region 11'!T65)","v":0},{"$f":"SUM('MMA Rev-Exp Region 1:MMA Rev-Exp Region 11'!U65)","v":0},{"$f":"SUM('MMA Rev-Exp Region 1:MMA Rev-Exp Region 11'!V65)","v":0},{"$f":"SUM('MMA Rev-Exp Region 1:MMA Rev-Exp Region 11'!W65)","v":0},null,null,0,{"$f":"SUM('MMA Rev-Exp Region 1:MMA Rev-Exp Region 11'!AA65)","v":0},{"$f":"SUM('MMA Rev-Exp Region 1:MMA Rev-Exp Region 11'!AB65)","v":0},{"$f":"SUM('MMA Rev-Exp Region 1:MMA Rev-Exp Region 11'!AC65)","v":0},{"$f":"SUM('MMA Rev-Exp Region 1:MMA Rev-Exp Region 11'!AD65)","v":0},{"$f":"SUM('MMA Rev-Exp Region 1:MMA Rev-Exp Region 11'!AE65)","v":0},{"$f":"SUM('MMA Rev-Exp Region 1:MMA Rev-Exp Region 11'!AF65)","v":0},{"$f":"SUM('MMA Rev-Exp Region 1:MMA Rev-Exp Region 11'!AG65)","v":0},{"$f":"SUM('MMA Rev-Exp Region 1:MMA Rev-Exp Region 11'!AH65)","v":0},null,null,0,{"$f":"SUM('MMA Rev-Exp Region 1:MMA Rev-Exp Region 11'!AL65)","v":0},{"$f":"SUM('MMA Rev-Exp Region 1:MMA Rev-Exp Region 11'!AM65)","v":0},{"$f":"SUM('MMA Rev-Exp Region 1:MMA Rev-Exp Region 11'!AN65)","v":0},{"$f":"SUM('MMA Rev-Exp Region 1:MMA Rev-Exp Region 11'!AO65)","v":0},{"$f":"SUM('MMA Rev-Exp Region 1:MMA Rev-Exp Region 11'!AP65)","v":0},{"$f":"SUM('MMA Rev-Exp Region 1:MMA Rev-Exp Region 11'!AQ65)","v":0},{"$f":"SUM('MMA Rev-Exp Region 1:MMA Rev-Exp Region 11'!AR65)","v":0},{"$f":"SUM('MMA Rev-Exp Region 1:MMA Rev-Exp Region 11'!AS65)","v":0},null,null,{"$f":"SUM('MMA Rev-Exp Region 1:MMA Rev-Exp Region 11'!AV65)","v":0},{"$f":"SUM(AX65:BE65)+AV65","v":0},{"$f":"SUM('MMA Rev-Exp Region 1:MMA Rev-Exp Region 11'!AX65)","v":0},{"$f":"SUM('MMA Rev-Exp Region 1:MMA Rev-Exp Region 11'!AY65)","v":0},{"$f":"SUM('MMA Rev-Exp Region 1:MMA Rev-Exp Region 11'!AZ65)","v":0},{"$f":"SUM('MMA Rev-Exp Region 1:MMA Rev-Exp Region 11'!BA65)","v":0},{"$f":"SUM('MMA Rev-Exp Region 1:MMA Rev-Exp Region 11'!BB65)","v":0},{"$f":"SUM('MMA Rev-Exp Region 1:MMA Rev-Exp Region 11'!BC65)","v":0},{"$f":"SUM('MMA Rev-Exp Region 1:MMA Rev-Exp Region 11'!BD65)","v":0},{"$f":"SUM('MMA Rev-Exp Region 1:MMA Rev-Exp Region 11'!BE65)","v":0}]
[null,"9.3","DME FFS",0,{"$f":"SUM('MMA Rev-Exp Region 1:MMA Rev-Exp Region 11'!E66)","v":0},{"$f":"SUM('MMA Rev-Exp Region 1:MMA Rev-Exp Region 11'!F66)","v":0},{"$f":"SUM('MMA Rev-Exp Region 1:MMA Rev-Exp Region 11'!G66)","v":0},{"$f":"SUM('MMA Rev-Exp Region 1:MMA Rev-Exp Region 11'!H66)","v":0},{"$f":"SUM('MMA Rev-Exp Region 1:MMA Rev-Exp Region 11'!I66)","v":0},{"$f":"SUM('MMA Rev-Exp Region 1:MMA Rev-Exp Region 11'!J66)","v":0},{"$f":"SUM('MMA Rev-Exp Region 1:MMA Rev-Exp Region 11'!K66)","v":0},{"$f":"SUM('MMA Rev-Exp Region 1:MMA Rev-Exp Region 11'!L66)","v":0},null,null,0,{"$f":"SUM('MMA Rev-Exp Region 1:MMA Rev-Exp Region 11'!P66)","v":0},{"$f":"SUM('MMA Rev-Exp Region 1:MMA Rev-Exp Region 11'!Q66)","v":0},{"$f":"SUM('MMA Rev-Exp Region 1:MMA Rev-Exp Region 11'!R66)","v":0},{"$f":"SUM('MMA Rev-Exp Region 1:MMA Rev-Exp Region 11'!S66)","v":0},{"$f":"SUM('MMA Rev-Exp Region 1:MMA Rev-Exp Region 11'!T66)","v":0},{"$f":"SUM('MMA Rev-Exp Region 1:MMA Rev-Exp Region 11'!U66)","v":0},{"$f":"SUM('MMA Rev-Exp Region 1:MMA Rev-Exp Region 11'!V66)","v":0},{"$f":"SUM('MMA Rev-Exp Region 1:MMA Rev-Exp Region 11'!W66)","v":0},null,null,0,{"$f":"SUM('MMA Rev-Exp Region 1:MMA Rev-Exp Region 11'!AA66)","v":0},{"$f":"SUM('MMA Rev-Exp Region 1:MMA Rev-Exp Region 11'!AB66)","v":0},{"$f":"SUM('MMA Rev-Exp Region 1:MMA Rev-Exp Region 11'!AC66)","v":0},{"$f":"SUM('MMA Rev-Exp Region 1:MMA Rev-Exp Region 11'!AD66)","v":0},{"$f":"SUM('MMA Rev-Exp Region 1:MMA Rev-Exp Region 11'!AE66)","v":0},{"$f":"SUM('MMA Rev-Exp Region 1:MMA Rev-Exp Region 11'!AF66)","v":0},{"$f":"SUM('MMA Rev-Exp Region 1:MMA Rev-Exp Region 11'!AG66)","v":0},{"$f":"SUM('MMA Rev-Exp Region 1:MMA Rev-Exp Region 11'!AH66)","v":0},null,null,0,{"$f":"SUM('MMA Rev-Exp Region 1:MMA Rev-Exp Region 11'!AL66)","v":0},{"$f":"SUM('MMA Rev-Exp Region 1:MMA Rev-Exp Region 11'!AM66)","v":0},{"$f":"SUM('MMA Rev-Exp Region 1:MMA Rev-Exp Region 11'!AN66)","v":0},{"$f":"SUM('MMA Rev-Exp Region 1:MMA Rev-Exp Region 11'!AO66)","v":0},{"$f":"SUM('MMA Rev-Exp Region 1:MMA Rev-Exp Region 11'!AP66)","v":0},{"$f":"SUM('MMA Rev-Exp Region 1:MMA Rev-Exp Region 11'!AQ66)","v":0},{"$f":"SUM('MMA Rev-Exp Region 1:MMA Rev-Exp Region 11'!AR66)","v":0},{"$f":"SUM('MMA Rev-Exp Region 1:MMA Rev-Exp Region 11'!AS66)","v":0},null,null,{"$f":"SUM('MMA Rev-Exp Region 1:MMA Rev-Exp Region 11'!AV66)","v":0},0,{"$f":"SUM('MMA Rev-Exp Region 1:MMA Rev-Exp Region 11'!AX66)","v":0},{"$f":"SUM('MMA Rev-Exp Region 1:MMA Rev-Exp Region 11'!AY66)","v":0},{"$f":"SUM('MMA Rev-Exp Region 1:MMA Rev-Exp Region 11'!AZ66)","v":0},{"$f":"SUM('MMA Rev-Exp Region 1:MMA Rev-Exp Region 11'!BA66)","v":0},{"$f":"SUM('MMA Rev-Exp Region 1:MMA Rev-Exp Region 11'!BB66)","v":0},{"$f":"SUM('MMA Rev-Exp Region 1:MMA Rev-Exp Region 11'!BC66)","v":0},{"$f":"SUM('MMA Rev-Exp Region 1:MMA Rev-Exp Region 11'!BD66)","v":0},{"$f":"SUM('MMA Rev-Exp Region 1:MMA Rev-Exp Region 11'!BE66)","v":0}]
[null,"9.4","Other State Plan Services FFS",0,{"$f":"SUM('MMA Rev-Exp Region 1:MMA Rev-Exp Region 11'!E67)","v":0},{"$f":"SUM('MMA Rev-Exp Region 1:MMA Rev-Exp Region 11'!F67)","v":0},{"$f":"SUM('MMA Rev-Exp Region 1:MMA Rev-Exp Region 11'!G67)","v":0},{"$f":"SUM('MMA Rev-Exp Region 1:MMA Rev-Exp Region 11'!H67)","v":0},{"$f":"SUM('MMA Rev-Exp Region 1:MMA Rev-Exp Region 11'!I67)","v":0},{"$f":"SUM('MMA Rev-Exp Region 1:MMA Rev-Exp Region 11'!J67)","v":0},{"$f":"SUM('MMA Rev-Exp Region 1:MMA Rev-Exp Region 11'!K67)","v":0},{"$f":"SUM('MMA Rev-Exp Region 1:MMA Rev-Exp Region 11'!L67)","v":0},{"$f":"SUM('MMA Rev-Exp Region 1:MMA Rev-Exp Region 11'!M67)","v":0},{"$f":"SUM('MMA Rev-Exp Region 1:MMA Rev-Exp Region 11'!N67)","v":0},0,{"$f":"SUM('MMA Rev-Exp Region 1:MMA Rev-Exp Region 11'!P67)","v":0},{"$f":"SUM('MMA Rev-Exp Region 1:MMA Rev-Exp Region 11'!Q67)","v":0},{"$f":"SUM('MMA Rev-Exp Region 1:MMA Rev-Exp Region 11'!R67)","v":0},{"$f":"SUM('MMA Rev-Exp Region 1:MMA Rev-Exp Region 11'!S67)","v":0},{"$f":"SUM('MMA Rev-Exp Region 1:MMA Rev-Exp Region 11'!T67)","v":0},{"$f":"SUM('MMA Rev-Exp Region 1:MMA Rev-Exp Region 11'!U67)","v":0},{"$f":"SUM('MMA Rev-Exp Region 1:MMA Rev-Exp Region 11'!V67)","v":0},{"$f":"SUM('MMA Rev-Exp Region 1:MMA Rev-Exp Region 11'!W67)","v":0},{"$f":"SUM('MMA Rev-Exp Region 1:MMA Rev-Exp Region 11'!X67)","v":0},{"$f":"SUM('MMA Rev-Exp Region 1:MMA Rev-Exp Region 11'!Y67)","v":0},0,{"$f":"SUM('MMA Rev-Exp Region 1:MMA Rev-Exp Region 11'!AA67)","v":0},{"$f":"SUM('MMA Rev-Exp Region 1:MMA Rev-Exp Region 11'!AB67)","v":0},{"$f":"SUM('MMA Rev-Exp Region 1:MMA Rev-Exp Region 11'!AC67)","v":0},{"$f":"SUM('MMA Rev-Exp Region 1:MMA Rev-Exp Region 11'!AD67)","v":0},{"$f":"SUM('MMA Rev-Exp Region 1:MMA Rev-Exp Region 11'!AE67)","v":0},{"$f":"SUM('MMA Rev-Exp Region 1:MMA Rev-Exp Region 11'!AF67)","v":0},{"$f":"SUM('MMA Rev-Exp Region 1:MMA Rev-Exp Region 11'!AG67)","v":0},{"$f":"SUM('MMA Rev-Exp Region 1:MMA Rev-Exp Region 11'!AH67)","v":0},{"$f":"SUM('MMA Rev-Exp Region 1:MMA Rev-Exp Region 11'!AI67)","v":0},{"$f":"SUM('MMA Rev-Exp Region 1:MMA Rev-Exp Region 11'!AJ67)","v":0},0,{"$f":"SUM('MMA Rev-Exp Region 1:MMA Rev-Exp Region 11'!AL67)","v":0},{"$f":"SUM('MMA Rev-Exp Region 1:MMA Rev-Exp Region 11'!AM67)","v":0},{"$f":"SUM('MMA Rev-Exp Region 1:MMA Rev-Exp Region 11'!AN67)","v":0},{"$f":"SUM('MMA Rev-Exp Region 1:MMA Rev-Exp Region 11'!AO67)","v":0},{"$f":"SUM('MMA Rev-Exp Region 1:MMA Rev-Exp Region 11'!AP67)","v":0},{"$f":"SUM('MMA Rev-Exp Region 1:MMA Rev-Exp Region 11'!AQ67)","v":0},{"$f":"SUM('MMA Rev-Exp Region 1:MMA Rev-Exp Region 11'!AR67)","v":0},{"$f":"SUM('MMA Rev-Exp Region 1:MMA Rev-Exp Region 11'!AS67)","v":0},{"$f":"SUM('MMA Rev-Exp Region 1:MMA Rev-Exp Region 11'!AT67)","v":0},{"$f":"SUM('MMA Rev-Exp Region 1:MMA Rev-Exp Region 11'!AU67)","v":0},{"$f":"SUM('MMA Rev-Exp Region 1:MMA Rev-Exp Region 11'!AV67)","v":0},{"$f":"SUM(AX67:BG67)+AV67","v":0},{"$f":"SUM('MMA Rev-Exp Region 1:MMA Rev-Exp Region 11'!AX67)","v":0},{"$f":"SUM('MMA Rev-Exp Region 1:MMA Rev-Exp Region 11'!AY67)","v":0},{"$f":"SUM('MMA Rev-Exp Region 1:MMA Rev-Exp Region 11'!AZ67)","v":0},{"$f":"SUM('MMA Rev-Exp Region 1:MMA Rev-Exp Region 11'!BA67)","v":0},{"$f":"SUM('MMA Rev-Exp Region 1:MMA Rev-Exp Region 11'!BB67)","v":0},{"$f":"SUM('MMA Rev-Exp Region 1:MMA Rev-Exp Region 11'!BC67)","v":0},{"$f":"SUM('MMA Rev-Exp Region 1:MMA Rev-Exp Region 11'!BD67)","v":0},{"$f":"SUM('MMA Rev-Exp Region 1:MMA Rev-Exp Region 11'!BE67)","v":0},{"$f":"SUM('MMA Rev-Exp Region 1:MMA Rev-Exp Region 11'!BF67)","v":0},{"$f":"SUM('MMA Rev-Exp Region 1:MMA Rev-Exp Region 11'!BG67)","v":0}]
[null,"9.5","Other Services Subcapitation",0,{"$f":"SUM('MMA Rev-Exp Region 1:MMA Rev-Exp Region 11'!E68)","v":0},{"$f":"SUM('MMA Rev-Exp Region 1:MMA Rev-Exp Region 11'!F68)","v":0},{"$f":"SUM('MMA Rev-Exp Region 1:MMA Rev-Exp Region 11'!G68)","v":0},{"$f":"SUM('MMA Rev-Exp Region 1:MMA Rev-Exp Region 11'!H68)","v":0},{"$f":"SUM('MMA Rev-Exp Region 1:MMA Rev-Exp Region 11'!I68)","v":0},{"$f":"SUM('MMA Rev-Exp Region 1:MMA Rev-Exp Region 11'!J68)","v":0},{"$f":"SUM('MMA Rev-Exp Region 1:MMA Rev-Exp Region 11'!K68)","v":0},{"$f":"SUM('MMA Rev-Exp Region 1:MMA Rev-Exp Region 11'!L68)","v":0},{"$f":"SUM('MMA Rev-Exp Region 1:MMA Rev-Exp Region 11'!M68)","v":0},{"$f":"SUM('MMA Rev-Exp Region 1:MMA Rev-Exp Region 11'!N68)","v":0},0,{"$f":"SUM('MMA Rev-Exp Region 1:MMA Rev-Exp Region 11'!P68)","v":0},{"$f":"SUM('MMA Rev-Exp Region 1:MMA Rev-Exp Region 11'!Q68)","v":0},{"$f":"SUM('MMA Rev-Exp Region 1:MMA Rev-Exp Region 11'!R68)","v":0},{"$f":"SUM('MMA Rev-Exp Region 1:MMA Rev-Exp Region 11'!S68)","v":0},{"$f":"SUM('MMA Rev-Exp Region 1:MMA Rev-Exp Region 11'!T68)","v":0},{"$f":"SUM('MMA Rev-Exp Region 1:MMA Rev-Exp Region 11'!U68)","v":0},{"$f":"SUM('MMA Rev-Exp Region 1:MMA Rev-Exp Region 11'!V68)","v":0},{"$f":"SUM('MMA Rev-Exp Region 1:MMA Rev-Exp Region 11'!W68)","v":0},{"$f":"SUM('MMA Rev-Exp Region 1:MMA Rev-Exp Region 11'!X68)","v":0},{"$f":"SUM('MMA Rev-Exp Region 1:MMA Rev-Exp Region 11'!Y68)","v":0},0,{"$f":"SUM('MMA Rev-Exp Region 1:MMA Rev-Exp Region 11'!AA68)","v":0},{"$f":"SUM('MMA Rev-Exp Region 1:MMA Rev-Exp Region 11'!AB68)","v":0},{"$f":"SUM('MMA Rev-Exp Region 1:MMA Rev-Exp Region 11'!AC68)","v":0},{"$f":"SUM('MMA Rev-Exp Region 1:MMA Rev-Exp Region 11'!AD68)","v":0},{"$f":"SUM('MMA Rev-Exp Region 1:MMA Rev-Exp Region 11'!AE68)","v":0},{"$f":"SUM('MMA Rev-Exp Region 1:MMA Rev-Exp Region 11'!AF68)","v":0},{"$f":"SUM('MMA Rev-Exp Region 1:MMA Rev-Exp Region 11'!AG68)","v":0},{"$f":"SUM('MMA Rev-Exp Region 1:MMA Rev-Exp Region 11'!AH68)","v":0},{"$f":"SUM('MMA Rev-Exp Region 1:MMA Rev-Exp Region 11'!AI68)","v":0},{"$f":"SUM('MMA Rev-Exp Region 1:MMA Rev-Exp Region 11'!AJ68)","v":0},0,{"$f":"SUM('MMA Rev-Exp Region 1:MMA Rev-Exp Region 11'!AL68)","v":0},{"$f":"SUM('MMA Rev-Exp Region 1:MMA Rev-Exp Region 11'!AM68)","v":0},{"$f":"SUM('MMA Rev-Exp Region 1:MMA Rev-Exp Region 11'!AN68)","v":0},{"$f":"SUM('MMA Rev-Exp Region 1:MMA Rev-Exp Region 11'!AO68)","v":0},{"$f":"SUM('MMA Rev-Exp Region 1:MMA Rev-Exp Region 11'!AP68)","v":0},{"$f":"SUM('MMA Rev-Exp Region 1:MMA Rev-Exp Region 11'!AQ68)","v":0},{"$f":"SUM('MMA Rev-Exp Region 1:MMA Rev-Exp Region 11'!AR68)","v":0},{"$f":"SUM('MMA Rev-Exp Region 1:MMA Rev-Exp Region 11'!AS68)","v":0},{"$f":"SUM('MMA Rev-Exp Region 1:MMA Rev-Exp Region 11'!AT68)","v":0},{"$f":"SUM('MMA Rev-Exp Region 1:MMA Rev-Exp Region 11'!AU68)","v":0},{"$f":"SUM('MMA Rev-Exp Region 1:MMA Rev-Exp Region 11'!AV68)","v":0},{"$f":"SUM(AX68:BG68)+AV68","v":0},{"$f":"SUM('MMA Rev-Exp Region 1:MMA Rev-Exp Region 11'!AX68)","v":0},{"$f":"SUM('MMA Rev-Exp Region 1:MMA Rev-Exp Region 11'!AY68)","v":0},{"$f":"SUM('MMA Rev-Exp Region 1:MMA Rev-Exp Region 11'!AZ68)","v":0},{"$f":"SUM('MMA Rev-Exp Region 1:MMA Rev-Exp Region 11'!BA68)","v":0},{"$f":"SUM('MMA Rev-Exp Region 1:MMA Rev-Exp Region 11'!BB68)","v":0},{"$f":"SUM('MMA Rev-Exp Region 1:MMA Rev-Exp Region 11'!BC68)","v":0},{"$f":"SUM('MMA Rev-Exp Region 1:MMA Rev-Exp Region 11'!BD68)","v":0},{"$f":"SUM('MMA Rev-Exp Region 1:MMA Rev-Exp Region 11'!BE68)","v":0},{"$f":"SUM('MMA Rev-Exp Region 1:MMA Rev-Exp Region 11'!BF68)","v":0},{"$f":"SUM('MMA Rev-Exp Region 1:MMA Rev-Exp Region 11'!BG68)","v":0}]
[null,"9.6","Ending IBNP for Other Services",0,{"$f":"SUM('MMA Rev-Exp Region 1:MMA Rev-Exp Region 11'!E69)","v":0},{"$f":"SUM('MMA Rev-Exp Region 1:MMA Rev-Exp Region 11'!F69)","v":0},{"$f":"SUM('MMA Rev-Exp Region 1:MMA Rev-Exp Region 11'!G69)","v":0},{"$f":"SUM('MMA Rev-Exp Region 1:MMA Rev-Exp Region 11'!H69)","v":0},{"$f":"SUM('MMA Rev-Exp Region 1:MMA Rev-Exp Region 11'!I69)","v":0},{"$f":"SUM('MMA Rev-Exp Region 1:MMA Rev-Exp Region 11'!J69)","v":0},{"$f":"SUM('MMA Rev-Exp Region 1:MMA Rev-Exp Region 11'!K69)","v":0},{"$f":"SUM('MMA Rev-Exp Region 1:MMA Rev-Exp Region 11'!L69)","v":0},{"$f":"SUM('MMA Rev-Exp Region 1:MMA Rev-Exp Region 11'!M69)","v":0},{"$f":"SUM('MMA Rev-Exp Region 1:MMA Rev-Exp Region 11'!N69)","v":0},0,{"$f":"SUM('MMA Rev-Exp Region 1:MMA Rev-Exp Region 11'!P69)","v":0},{"$f":"SUM('MMA Rev-Exp Region 1:MMA Rev-Exp Region 11'!Q69)","v":0},{"$f":"SUM('MMA Rev-Exp Region 1:MMA Rev-Exp Region 11'!R69)","v":0},{"$f":"SUM('MMA Rev-Exp Region 1:MMA Rev-Exp Region 11'!S69)","v":0},{"$f":"SUM('MMA Rev-Exp Region 1:MMA Rev-Exp Region 11'!T69)","v":0},{"$f":"SUM('MMA Rev-Exp Region 1:MMA Rev-Exp Region 11'!U69)","v":0},{"$f":"SUM('MMA Rev-Exp Region 1:MMA Rev-Exp Region 11'!V69)","v":0},{"$f":"SUM('MMA Rev-Exp Region 1:MMA Rev-Exp Region 11'!W69)","v":0},{"$f":"SUM('MMA Rev-Exp Region 1:MMA Rev-Exp Region 11'!X69)","v":0},{"$f":"SUM('MMA Rev-Exp Region 1:MMA Rev-Exp Region 11'!Y69)","v":0},0,{"$f":"SUM('MMA Rev-Exp Region 1:MMA Rev-Exp Region 11'!AA69)","v":0},{"$f":"SUM('MMA Rev-Exp Region 1:MMA Rev-Exp Region 11'!AB69)","v":0},{"$f":"SUM('MMA Rev-Exp Region 1:MMA Rev-Exp Region 11'!AC69)","v":0},{"$f":"SUM('MMA Rev-Exp Region 1:MMA Rev-Exp Region 11'!AD69)","v":0},{"$f":"SUM('MMA Rev-Exp Region 1:MMA Rev-Exp Region 11'!AE69)","v":0},{"$f":"SUM('MMA Rev-Exp Region 1:MMA Rev-Exp Region 11'!AF69)","v":0},{"$f":"SUM('MMA Rev-Exp Region 1:MMA Rev-Exp Region 11'!AG69)","v":0},{"$f":"SUM('MMA Rev-Exp Region 1:MMA Rev-Exp Region 11'!AH69)","v":0},{"$f":"SUM('MMA Rev-Exp Region 1:MMA Rev-Exp Region 11'!AI69)","v":0},{"$f":"SUM('MMA Rev-Exp Region 1:MMA Rev-Exp Region 11'!AJ69)","v":0},0,{"$f":"SUM('MMA Rev-Exp Region 1:MMA Rev-Exp Region 11'!AL69)","v":0},{"$f":"SUM('MMA Rev-Exp Region 1:MMA Rev-Exp Region 11'!AM69)","v":0},{"$f":"SUM('MMA Rev-Exp Region 1:MMA Rev-Exp Region 11'!AN69)","v":0},{"$f":"SUM('MMA Rev-Exp Region 1:MMA Rev-Exp Region 11'!AO69)","v":0},{"$f":"SUM('MMA Rev-Exp Region 1:MMA Rev-Exp Region 11'!AP69)","v":0},{"$f":"SUM('MMA Rev-Exp Region 1:MMA Rev-Exp Region 11'!AQ69)","v":0},{"$f":"SUM('MMA Rev-Exp Region 1:MMA Rev-Exp Region 11'!AR69)","v":0},{"$f":"SUM('MMA Rev-Exp Region 1:MMA Rev-Exp Region 11'!AS69)","v":0},{"$f":"SUM('MMA Rev-Exp Region 1:MMA Rev-Exp Region 11'!AT69)","v":0},{"$f":"SUM('MMA Rev-Exp Region 1:MMA Rev-Exp Region 11'!AU69)","v":0},{"$f":"SUM('MMA Rev-Exp Region 1:MMA Rev-Exp Region 11'!AV69)","v":0},{"$f":"SUM(AX69:BG69)+AV69","v":0},{"$f":"SUM('MMA Rev-Exp Region 1:MMA Rev-Exp Region 11'!AX69)","v":0},{"$f":"SUM('MMA Rev-Exp Region 1:MMA Rev-Exp Region 11'!AY69)","v":0},{"$f":"SUM('MMA Rev-Exp Region 1:MMA Rev-Exp Region 11'!AZ69)","v":0},{"$f":"SUM('MMA Rev-Exp Region 1:MMA Rev-Exp Region 11'!BA69)","v":0},{"$f":"SUM('MMA Rev-Exp Region 1:MMA Rev-Exp Region 11'!BB69)","v":0},{"$f":"SUM('MMA Rev-Exp Region 1:MMA Rev-Exp Region 11'!BC69)","v":0},{"$f":"SUM('MMA Rev-Exp Region 1:MMA Rev-Exp Region 11'!BD69)","v":0},{"$f":"SUM('MMA Rev-Exp Region 1:MMA Rev-Exp Region 11'!BE69)","v":0},{"$f":"SUM('MMA Rev-Exp Region 1:MMA Rev-Exp Region 11'!BF69)","v":0},{"$f":"SUM('MMA Rev-Exp Region 1:MMA Rev-Exp Region 11'!BG69)","v":0}]
[null,"9.7","Other Service Settlements/AP",0,{"$f":"SUM('MMA Rev-Exp Region 1:MMA Rev-Exp Region 11'!E70)","v":0},{"$f":"SUM('MMA Rev-Exp Region 1:MMA Rev-Exp Region 11'!F70)","v":0},{"$f":"SUM('MMA Rev-Exp Region 1:MMA Rev-Exp Region 11'!G70)","v":0},{"$f":"SUM('MMA Rev-Exp Region 1:MMA Rev-Exp Region 11'!H70)","v":0},{"$f":"SUM('MMA Rev-Exp Region 1:MMA Rev-Exp Region 11'!I70)","v":0},{"$f":"SUM('MMA Rev-Exp Region 1:MMA Rev-Exp Region 11'!J70)","v":0},{"$f":"SUM('MMA Rev-Exp Region 1:MMA Rev-Exp Region 11'!K70)","v":0},{"$f":"SUM('MMA Rev-Exp Region 1:MMA Rev-Exp Region 11'!L70)","v":0},{"$f":"SUM('MMA Rev-Exp Region 1:MMA Rev-Exp Region 11'!M70)","v":0},{"$f":"SUM('MMA Rev-Exp Region 1:MMA Rev-Exp Region 11'!N70)","v":0},0,{"$f":"SUM('MMA Rev-Exp Region 1:MMA Rev-Exp Region 11'!P70)","v":0},{"$f":"SUM('MMA Rev-Exp Region 1:MMA Rev-Exp Region 11'!Q70)","v":0},{"$f":"SUM('MMA Rev-Exp Region 1:MMA Rev-Exp Region 11'!R70)","v":0},{"$f":"SUM('MMA Rev-Exp Region 1:MMA Rev-Exp Region 11'!S70)","v":0},{"$f":"SUM('MMA Rev-Exp Region 1:MMA Rev-Exp Region 11'!T70)","v":0},{"$f":"SUM('MMA Rev-Exp Region 1:MMA Rev-Exp Region 11'!U70)","v":0},{"$f":"SUM('MMA Rev-Exp Region 1:MMA Rev-Exp Region 11'!V70)","v":0},{"$f":"SUM('MMA Rev-Exp Region 1:MMA Rev-Exp Region 11'!W70)","v":0},{"$f":"SUM('MMA Rev-Exp Region 1:MMA Rev-Exp Region 11'!X70)","v":0},{"$f":"SUM('MMA Rev-Exp Region 1:MMA Rev-Exp Region 11'!Y70)","v":0},0,{"$f":"SUM('MMA Rev-Exp Region 1:MMA Rev-Exp Region 11'!AA70)","v":0},{"$f":"SUM('MMA Rev-Exp Region 1:MMA Rev-Exp Region 11'!AB70)","v":0},{"$f":"SUM('MMA Rev-Exp Region 1:MMA Rev-Exp Region 11'!AC70)","v":0},{"$f":"SUM('MMA Rev-Exp Region 1:MMA Rev-Exp Region 11'!AD70)","v":0},{"$f":"SUM('MMA Rev-Exp Region 1:MMA Rev-Exp Region 11'!AE70)","v":0},{"$f":"SUM('MMA Rev-Exp Region 1:MMA Rev-Exp Region 11'!AF70)","v":0},{"$f":"SUM('MMA Rev-Exp Region 1:MMA Rev-Exp Region 11'!AG70)","v":0},{"$f":"SUM('MMA Rev-Exp Region 1:MMA Rev-Exp Region 11'!AH70)","v":0},{"$f":"SUM('MMA Rev-Exp Region 1:MMA Rev-Exp Region 11'!AI70)","v":0},{"$f":"SUM('MMA Rev-Exp Region 1:MMA Rev-Exp Region 11'!AJ70)","v":0},0,{"$f":"SUM('MMA Rev-Exp Region 1:MMA Rev-Exp Region 11'!AL70)","v":0},{"$f":"SUM('MMA Rev-Exp Region 1:MMA Rev-Exp Region 11'!AM70)","v":0},{"$f":"SUM('MMA Rev-Exp Region 1:MMA Rev-Exp Region 11'!AN70)","v":0},{"$f":"SUM('MMA Rev-Exp Region 1:MMA Rev-Exp Region 11'!AO70)","v":0},{"$f":"SUM('MMA Rev-Exp Region 1:MMA Rev-Exp Region 11'!AP70)","v":0},{"$f":"SUM('MMA Rev-Exp Region 1:MMA Rev-Exp Region 11'!AQ70)","v":0},{"$f":"SUM('MMA Rev-Exp Region 1:MMA Rev-Exp Region 11'!AR70)","v":0},{"$f":"SUM('MMA Rev-Exp Region 1:MMA Rev-Exp Region 11'!AS70)","v":0},{"$f":"SUM('MMA Rev-Exp Region 1:MMA Rev-Exp Region 11'!AT70)","v":0},{"$f":"SUM('MMA Rev-Exp Region 1:MMA Rev-Exp Region 11'!AU70)","v":0},{"$f":"SUM('MMA Rev-Exp Region 1:MMA Rev-Exp Region 11'!AV70)","v":0},{"$f":"SUM(AX70:BG70)+AV70","v":0},{"$f":"SUM('MMA Rev-Exp Region 1:MMA Rev-Exp Region 11'!AX70)","v":0},{"$f":"SUM('MMA Rev-Exp Region 1:MMA Rev-Exp Region 11'!AY70)","v":0},{"$f":"SUM('MMA Rev-Exp Region 1:MMA Rev-Exp Region 11'!AZ70)","v":0},{"$f":"SUM('MMA Rev-Exp Region 1:MMA Rev-Exp Region 11'!BA70)","v":0},{"$f":"SUM('MMA Rev-Exp Region 1:MMA Rev-Exp Region 11'!BB70)","v":0},{"$f":"SUM('MMA Rev-Exp Region 1:MMA Rev-Exp Region 11'!BC70)","v":0},{"$f":"SUM('MMA Rev-Exp Region 1:MMA Rev-Exp Region 11'!BD70)","v":0},{"$f":"SUM('MMA Rev-Exp Region 1:MMA Rev-Exp Region 11'!BE70)","v":0},{"$f":"SUM('MMA Rev-Exp Region 1:MMA Rev-Exp Region 11'!BF70)","v":0},{"$f":"SUM('MMA Rev-Exp Region 1:MMA Rev-Exp Region 11'!BG70)","v":0}]
[null,"9.8","Total Other Services",{"$f":"SUM(D64:D70)","v":0},{"$f":"SUM(E64:E70)","v":0},0,0,0,{"$f":"SUM(I64:I70)","v":0},0,0,0,0,0,{"$f":"SUM(O64:O70)","v":0},{"$f":"SUM(P64:P70)","v":0},0,0,0,0,0,0,0,0,0,{"$f":"SUM(Z64:Z70)","v":0},{"$f":"SUM(AA64:AA70)","v":0},0,0,0,0,0,0,0,0,0,{"$f":"SUM(AK64:AK70)","v":0},{"$f":"SUM(AL64:AL70)","v":0},0,0,0,0,0,0,0,0,0,{"$f":"SUM(AV64:AV70)","v":0},{"$f":"SUM(AW64:AW70)","v":0},{"$f":"SUM(AX64:AX70)","v":0},{"$f":"SUM(AY64:AY70)","v":0},0,0,0,0,0,0,{"$f":"SUM(BF67:BF70)","v":0},{"$f":"SUM(BG67:BG70)","v":0}]
["Expanded Benefits","10.1","Expanded Benefits FFS",{"$f":"SUM(E72:N72)","v":0},{"$f":"SUM('MMA Rev-Exp Region 1:MMA Rev-Exp Region 11'!E72)","v":0},{"$f":"SUM('MMA Rev-Exp Region 1:MMA Rev-Exp Region 11'!F72)","v":0},{"$f":"SUM('MMA Rev-Exp Region 1:MMA Rev-Exp Region 11'!G72)","v":0},{"$f":"SUM('MMA Rev-Exp Region 1:MMA Rev-Exp Region 11'!H72)","v":0},{"$f":"SUM('MMA Rev-Exp Region 1:MMA Rev-Exp Region 11'!I72)","v":0},{"$f":"SUM('MMA Rev-Exp Region 1:MMA Rev-Exp Region 11'!J72)","v":0},{"$f":"SUM('MMA Rev-Exp Region 1:MMA Rev-Exp Region 11'!K72)","v":0},{"$f":"SUM('MMA Rev-Exp Region 1:MMA Rev-Exp Region 11'!L72)","v":0},{"$f":"SUM('MMA Rev-Exp Region 1:MMA Rev-Exp Region 11'!M72)","v":0},{"$f":"SUM('MMA Rev-Exp Region 1:MMA Rev-Exp Region 11'!N72)","v":0},{"$f":"SUM(P72:Y72)","v":0},{"$f":"SUM('MMA Rev-Exp Region 1:MMA Rev-Exp Region 11'!P72)","v":0},{"$f":"SUM('MMA Rev-Exp Region 1:MMA Rev-Exp Region 11'!Q72)","v":0},{"$f":"SUM('MMA Rev-Exp Region 1:MMA Rev-Exp Region 11'!R72)","v":0},{"$f":"SUM('MMA Rev-Exp Region 1:MMA Rev-Exp Region 11'!S72)","v":0},{"$f":"SUM('MMA Rev-Exp Region 1:MMA Rev-Exp Region 11'!T72)","v":0},{"$f":"SUM('MMA Rev-Exp Region 1:MMA Rev-Exp Region 11'!U72)","v":0},{"$f":"SUM('MMA Rev-Exp Region 1:MMA Rev-Exp Region 11'!V72)","v":0},{"$f":"SUM('MMA Rev-Exp Region 1:MMA Rev-Exp Region 11'!W72)","v":0},{"$f":"SUM('MMA Rev-Exp Region 1:MMA Rev-Exp Region 11'!X72)","v":0},{"$f":"SUM('MMA Rev-Exp Region 1:MMA Rev-Exp Region 11'!Y72)","v":0},{"$f":"SUM(AA72:AJ72)","v":0},{"$f":"SUM('MMA Rev-Exp Region 1:MMA Rev-Exp Region 11'!AA72)","v":0},{"$f":"SUM('MMA Rev-Exp Region 1:MMA Rev-Exp Region 11'!AB72)","v":0},{"$f":"SUM('MMA Rev-Exp Region 1:MMA Rev-Exp Region 11'!AC72)","v":0},{"$f":"SUM('MMA Rev-Exp Region 1:MMA Rev-Exp Region 11'!AD72)","v":0},{"$f":"SUM('MMA Rev-Exp Region 1:MMA Rev-Exp Region 11'!AE72)","v":0},{"$f":"SUM('MMA Rev-Exp Region 1:MMA Rev-Exp Region 11'!AF72)","v":0},{"$f":"SUM('MMA Rev-Exp Region 1:MMA Rev-Exp Region 11'!AG72)","v":0},{"$f":"SUM('MMA Rev-Exp Region 1:MMA Rev-Exp Region 11'!AH72)","v":0},{"$f":"SUM('MMA Rev-Exp Region 1:MMA Rev-Exp Region 11'!AI72)","v":0},{"$f":"SUM('MMA Rev-Exp Region 1:MMA Rev-Exp Region 11'!AJ72)","v":0},{"$f":"SUM(AL72:AU72)","v":0},{"$f":"SUM('MMA Rev-Exp Region 1:MMA Rev-Exp Region 11'!AL72)","v":0},{"$f":"SUM('MMA Rev-Exp Region 1:MMA Rev-Exp Region 11'!AM72)","v":0},{"$f":"SUM('MMA Rev-Exp Region 1:MMA Rev-Exp Region 11'!AN72)","v":0},{"$f":"SUM('MMA Rev-Exp Region 1:MMA Rev-Exp Region 11'!AO72)","v":0},{"$f":"SUM('MMA Rev-Exp Region 1:MMA Rev-Exp Region 11'!AP72)","v":0},{"$f":"SUM('MMA Rev-Exp Region 1:MMA Rev-Exp Region 11'!AQ72)","v":0},{"$f":"SUM('MMA Rev-Exp Region 1:MMA Rev-Exp Region 11'!AR72)","v":0},{"$f":"SUM('MMA Rev-Exp Region 1:MMA Rev-Exp Region 11'!AS72)","v":0},{"$f":"SUM('MMA Rev-Exp Region 1:MMA Rev-Exp Region 11'!AT72)","v":0},{"$f":"SUM('MMA Rev-Exp Region 1:MMA Rev-Exp Region 11'!AU72)","v":0},{"$f":"SUM('MMA Rev-Exp Region 1:MMA Rev-Exp Region 11'!AV72)","v":0},{"$f":"SUM(AX72:BG72)+AV72","v":0},{"$f":"SUM('MMA Rev-Exp Region 1:MMA Rev-Exp Region 11'!AX72)","v":0},{"$f":"SUM('MMA Rev-Exp Region 1:MMA Rev-Exp Region 11'!AY72)","v":0},{"$f":"SUM('MMA Rev-Exp Region 1:MMA Rev-Exp Region 11'!AZ72)","v":0},{"$f":"SUM('MMA Rev-Exp Region 1:MMA Rev-Exp Region 11'!BA72)","v":0},{"$f":"SUM('MMA Rev-Exp Region 1:MMA Rev-Exp Region 11'!BB72)","v":0},{"$f":"SUM('MMA Rev-Exp Region 1:MMA Rev-Exp Region 11'!BC72)","v":0},{"$f":"SUM('MMA Rev-Exp Region 1:MMA Rev-Exp Region 11'!BD72)","v":0},{"$f":"SUM('MMA Rev-Exp Region 1:MMA Rev-Exp Region 11'!BE72)","v":0},{"$f":"SUM('MMA Rev-Exp Region 1:MMA Rev-Exp Region 11'!BF72)","v":0},{"$f":"SUM('MMA Rev-Exp Region 1:MMA Rev-Exp Region 11'!BG72)","v":0}]
[null,"10.2","Expanded Benefits Subcapitation",{"$f":"SUM(E73:N73)","v":0},{"$f":"SUM('MMA Rev-Exp Region 1:MMA Rev-Exp Region 11'!E73)","v":0},{"$f":"SUM('MMA Rev-Exp Region 1:MMA Rev-Exp Region 11'!F73)","v":0},{"$f":"SUM('MMA Rev-Exp Region 1:MMA Rev-Exp Region 11'!G73)","v":0},{"$f":"SUM('MMA Rev-Exp Region 1:MMA Rev-Exp Region 11'!H73)","v":0},{"$f":"SUM('MMA Rev-Exp Region 1:MMA Rev-Exp Region 11'!I73)","v":0},{"$f":"SUM('MMA Rev-Exp Region 1:MMA Rev-Exp Region 11'!J73)","v":0},{"$f":"SUM('MMA Rev-Exp Region 1:MMA Rev-Exp Region 11'!K73)","v":0},{"$f":"SUM('MMA Rev-Exp Region 1:MMA Rev-Exp Region 11'!L73)","v":0},{"$f":"SUM('MMA Rev-Exp Region 1:MMA Rev-Exp Region 11'!M73)","v":0},{"$f":"SUM('MMA Rev-Exp Region 1:MMA Rev-Exp Region 11'!N73)","v":0},{"$f":"SUM(P73:Y73)","v":0},{"$f":"SUM('MMA Rev-Exp Region 1:MMA Rev-Exp Region 11'!P73)","v":0},{"$f":"SUM('MMA Rev-Exp Region 1:MMA Rev-Exp Region 11'!Q73)","v":0},{"$f":"SUM('MMA Rev-Exp Region 1:MMA Rev-Exp Region 11'!R73)","v":0},{"$f":"SUM('MMA Rev-Exp Region 1:MMA Rev-Exp Region 11'!S73)","v":0},{"$f":"SUM('MMA Rev-Exp Region 1:MMA Rev-Exp Region 11'!T73)","v":0},{"$f":"SUM('MMA Rev-Exp Region 1:MMA Rev-Exp Region 11'!U73)","v":0},{"$f":"SUM('MMA Rev-Exp Region 1:MMA Rev-Exp Region 11'!V73)","v":0},{"$f":"SUM('MMA Rev-Exp Region 1:MMA Rev-Exp Region 11'!W73)","v":0},{"$f":"SUM('MMA Rev-Exp Region 1:MMA Rev-Exp Region 11'!X73)","v":0},{"$f":"SUM('MMA Rev-Exp Region 1:MMA Rev-Exp Region 11'!Y73)","v":0},{"$f":"SUM(AA73:AJ73)","v":0},{"$f":"SUM('MMA Rev-Exp Region 1:MMA Rev-Exp Region 11'!AA73)","v":0},{"$f":"SUM('MMA Rev-Exp Region 1:MMA Rev-Exp Region 11'!AB73)","v":0},{"$f":"SUM('MMA Rev-Exp Region 1:MMA Rev-Exp Region 11'!AC73)","v":0},{"$f":"SUM('MMA Rev-Exp Region 1:MMA Rev-Exp Region 11'!AD73)","v":0},{"$f":"SUM('MMA Rev-Exp Region 1:MMA Rev-Exp Region 11'!AE73)","v":0},{"$f":"SUM('MMA Rev-Exp Region 1:MMA Rev-Exp Region 11'!AF73)","v":0},{"$f":"SUM('MMA Rev-Exp Region 1:MMA Rev-Exp Region 11'!AG73)","v":0},{"$f":"SUM('MMA Rev-Exp Region 1:MMA Rev-Exp Region 11'!AH73)","v":0},{"$f":"SUM('MMA Rev-Exp Region 1:MMA Rev-Exp Region 11'!AI73)","v":0},{"$f":"SUM('MMA Rev-Exp Region 1:MMA Rev-Exp Region 11'!AJ73)","v":0},{"$f":"SUM(AL73:AU73)","v":0},{"$f":"SUM('MMA Rev-Exp Region 1:MMA Rev-Exp Region 11'!AL73)","v":0},{"$f":"SUM('MMA Rev-Exp Region 1:MMA Rev-Exp Region 11'!AM73)","v":0},{"$f":"SUM('MMA Rev-Exp Region 1:MMA Rev-Exp Region 11'!AN73)","v":0},{"$f":"SUM('MMA Rev-Exp Region 1:MMA Rev-Exp Region 11'!AO73)","v":0},{"$f":"SUM('MMA Rev-Exp Region 1:MMA Rev-Exp Region 11'!AP73)","v":0},{"$f":"SUM('MMA Rev-Exp Region 1:MMA Rev-Exp Region 11'!AQ73)","v":0},{"$f":"SUM('MMA Rev-Exp Region 1:MMA Rev-Exp Region 11'!AR73)","v":0},{"$f":"SUM('MMA Rev-Exp Region 1:MMA Rev-Exp Region 11'!AS73)","v":0},{"$f":"SUM('MMA Rev-Exp Region 1:MMA Rev-Exp Region 11'!AT73)","v":0},{"$f":"SUM('MMA Rev-Exp Region 1:MMA Rev-Exp Region 11'!AU73)","v":0},{"$f":"SUM('MMA Rev-Exp Region 1:MMA Rev-Exp Region 11'!AV73)","v":0},{"$f":"SUM(AX73:BG73)+AV73","v":0},{"$f":"SUM('MMA Rev-Exp Region 1:MMA Rev-Exp Region 11'!AX73)","v":0},{"$f":"SUM('MMA Rev-Exp Region 1:MMA Rev-Exp Region 11'!AY73)","v":0},{"$f":"SUM('MMA Rev-Exp Region 1:MMA Rev-Exp Region 11'!AZ73)","v":0},{"$f":"SUM('MMA Rev-Exp Region 1:MMA Rev-Exp Region 11'!BA73)","v":0},{"$f":"SUM('MMA Rev-Exp Region 1:MMA Rev-Exp Region 11'!BB73)","v":0},{"$f":"SUM('MMA Rev-Exp Region 1:MMA Rev-Exp Region 11'!BC73)","v":0},{"$f":"SUM('MMA Rev-Exp Region 1:MMA Rev-Exp Region 11'!BD73)","v":0},{"$f":"SUM('MMA Rev-Exp Region 1:MMA Rev-Exp Region 11'!BE73)","v":0},{"$f":"SUM('MMA Rev-Exp Region 1:MMA Rev-Exp Region 11'!BF73)","v":0},{"$f":"SUM('MMA Rev-Exp Region 1:MMA Rev-Exp Region 11'!BG73)","v":0}]
[null,"10.3","Ending IBNP for Expanded Benefits",{"$f":"SUM(E74:N74)","v":0},{"$f":"SUM('MMA Rev-Exp Region 1:MMA Rev-Exp Region 11'!E74)","v":0},{"$f":"SUM('MMA Rev-Exp Region 1:MMA Rev-Exp Region 11'!F74)","v":0},{"$f":"SUM('MMA Rev-Exp Region 1:MMA Rev-Exp Region 11'!G74)","v":0},{"$f":"SUM('MMA Rev-Exp Region 1:MMA Rev-Exp Region 11'!H74)","v":0},{"$f":"SUM('MMA Rev-Exp Region 1:MMA Rev-Exp Region 11'!I74)","v":0},{"$f":"SUM('MMA Rev-Exp Region 1:MMA Rev-Exp Region 11'!J74)","v":0},{"$f":"SUM('MMA Rev-Exp Region 1:MMA Rev-Exp Region 11'!K74)","v":0},{"$f":"SUM('MMA Rev-Exp Region 1:MMA Rev-Exp Region 11'!L74)","v":0},{"$f":"SUM('MMA Rev-Exp Region 1:MMA Rev-Exp Region 11'!M74)","v":0},{"$f":"SUM('MMA Rev-Exp Region 1:MMA Rev-Exp Region 11'!N74)","v":0},{"$f":"SUM(P74:Y74)","v":0},{"$f":"SUM('MMA Rev-Exp Region 1:MMA Rev-Exp Region 11'!P74)","v":0},{"$f":"SUM('MMA Rev-Exp Region 1:MMA Rev-Exp Region 11'!Q74)","v":0},{"$f":"SUM('MMA Rev-Exp Region 1:MMA Rev-Exp Region 11'!R74)","v":0},{"$f":"SUM('MMA Rev-Exp Region 1:MMA Rev-Exp Region 11'!S74)","v":0},{"$f":"SUM('MMA Rev-Exp Region 1:MMA Rev-Exp Region 11'!T74)","v":0},{"$f":"SUM('MMA Rev-Exp Region 1:MMA Rev-Exp Region 11'!U74)","v":0},{"$f":"SUM('MMA Rev-Exp Region 1:MMA Rev-Exp Region 11'!V74)","v":0},{"$f":"SUM('MMA Rev-Exp Region 1:MMA Rev-Exp Region 11'!W74)","v":0},{"$f":"SUM('MMA Rev-Exp Region 1:MMA Rev-Exp Region 11'!X74)","v":0},{"$f":"SUM('MMA Rev-Exp Region 1:MMA Rev-Exp Region 11'!Y74)","v":0},{"$f":"SUM(AA74:AJ74)","v":0},{"$f":"SUM('MMA Rev-Exp Region 1:MMA Rev-Exp Region 11'!AA74)","v":0},{"$f":"SUM('MMA Rev-Exp Region 1:MMA Rev-Exp Region 11'!AB74)","v":0},{"$f":"SUM('MMA Rev-Exp Region 1:MMA Rev-Exp Region 11'!AC74)","v":0},{"$f":"SUM('MMA Rev-Exp Region 1:MMA Rev-Exp Region 11'!AD74)","v":0},{"$f":"SUM('MMA Rev-Exp Region 1:MMA Rev-Exp Region 11'!AE74)","v":0},{"$f":"SUM('MMA Rev-Exp Region 1:MMA Rev-Exp Region 11'!AF74)","v":0},{"$f":"SUM('MMA Rev-Exp Region 1:MMA Rev-Exp Region 11'!AG74)","v":0},{"$f":"SUM('MMA Rev-Exp Region 1:MMA Rev-Exp Region 11'!AH74)","v":0},{"$f":"SUM('MMA Rev-Exp Region 1:MMA Rev-Exp Region 11'!AI74)","v":0},{"$f":"SUM('MMA Rev-Exp Region 1:MMA Rev-Exp Region 11'!AJ74)","v":0},{"$f":"SUM(AL74:AU74)","v":0},{"$f":"SUM('MMA Rev-Exp Region 1:MMA Rev-Exp Region 11'!AL74)","v":0},{"$f":"SUM('MMA Rev-Exp Region 1:MMA Rev-Exp Region 11'!AM74)","v":0},{"$f":"SUM('MMA Rev-Exp Region 1:MMA Rev-Exp Region 11'!AN74)","v":0},{"$f":"SUM('MMA Rev-Exp Region 1:MMA Rev-Exp Region 11'!AO74)","v":0},{"$f":"SUM('MMA Rev-Exp Region 1:MMA Rev-Exp Region 11'!AP74)","v":0},{"$f":"SUM('MMA Rev-Exp Region 1:MMA Rev-Exp Region 11'!AQ74)","v":0},{"$f":"SUM('MMA Rev-Exp Region 1:MMA Rev-Exp Region 11'!AR74)","v":0},{"$f":"SUM('MMA Rev-Exp Region 1:MMA Rev-Exp Region 11'!AS74)","v":0},{"$f":"SUM('MMA Rev-Exp Region 1:MMA Rev-Exp Region 11'!AT74)","v":0},{"$f":"SUM('MMA Rev-Exp Region 1:MMA Rev-Exp Region 11'!AU74)","v":0},{"$f":"SUM('MMA Rev-Exp Region 1:MMA Rev-Exp Region 11'!AV74)","v":0},0,{"$f":"SUM('MMA Rev-Exp Region 1:MMA Rev-Exp Region 11'!AX74)","v":0},{"$f":"SUM('MMA Rev-Exp Region 1:MMA Rev-Exp Region 11'!AY74)","v":0},{"$f":"SUM('MMA Rev-Exp Region 1:MMA Rev-Exp Region 11'!AZ74)","v":0},{"$f":"SUM('MMA Rev-Exp Region 1:MMA Rev-Exp Region 11'!BA74)","v":0},{"$f":"SUM('MMA Rev-Exp Region 1:MMA Rev-Exp Region 11'!BB74)","v":0},{"$f":"SUM('MMA Rev-Exp Region 1:MMA Rev-Exp Region 11'!BC74)","v":0},{"$f":"SUM('MMA Rev-Exp Region 1:MMA Rev-Exp Region 11'!BD74)","v":0},{"$f":"SUM('MMA Rev-Exp Region 1:MMA Rev-Exp Region 11'!BE74)","v":0},{"$f":"SUM('MMA Rev-Exp Region 1:MMA Rev-Exp Region 11'!BF74)","v":0},{"$f":"SUM('MMA Rev-Exp Region 1:MMA Rev-Exp Region 11'!BG74)","v":0}]
[null,"10.4","Expanded Benefits Settlements/AP",{"$f":"SUM(E75:N75)","v":0},{"$f":"SUM('MMA Rev-Exp Region 1:MMA Rev-Exp Region 11'!E75)","v":0},{"$f":"SUM('MMA Rev-Exp Region 1:MMA Rev-Exp Region 11'!F75)","v":0},{"$f":"SUM('MMA Rev-Exp Region 1:MMA Rev-Exp Region 11'!G75)","v":0},{"$f":"SUM('MMA Rev-Exp Region 1:MMA Rev-Exp Region 11'!H75)","v":0},{"$f":"SUM('MMA Rev-Exp Region 1:MMA Rev-Exp Region 11'!I75)","v":0},{"$f":"SUM('MMA Rev-Exp Region 1:MMA Rev-Exp Region 11'!J75)","v":0},{"$f":"SUM('MMA Rev-Exp Region 1:MMA Rev-Exp Region 11'!K75)","v":0},{"$f":"SUM('MMA Rev-Exp Region 1:MMA Rev-Exp Region 11'!L75)","v":0},{"$f":"SUM('MMA Rev-Exp Region 1:MMA Rev-Exp Region 11'!M75)","v":0},{"$f":"SUM('MMA Rev-Exp Region 1:MMA Rev-Exp Region 11'!N75)","v":0},{"$f":"SUM(P75:Y75)","v":0},{"$f":"SUM('MMA Rev-Exp Region 1:MMA Rev-Exp Region 11'!P75)","v":0},{"$f":"SUM('MMA Rev-Exp Region 1:MMA Rev-Exp Region 11'!Q75)","v":0},{"$f":"SUM('MMA Rev-Exp Region 1:MMA Rev-Exp Region 11'!R75)","v":0},{"$f":"SUM('MMA Rev-Exp Region 1:MMA Rev-Exp Region 11'!S75)","v":0},{"$f":"SUM('MMA Rev-Exp Region 1:MMA Rev-Exp Region 11'!T75)","v":0},{"$f":"SUM('MMA Rev-Exp Region 1:MMA Rev-Exp Region 11'!U75)","v":0},{"$f":"SUM('MMA Rev-Exp Region 1:MMA Rev-Exp Region 11'!V75)","v":0},{"$f":"SUM('MMA Rev-Exp Region 1:MMA Rev-Exp Region 11'!W75)","v":0},{"$f":"SUM('MMA Rev-Exp Region 1:MMA Rev-Exp Region 11'!X75)","v":0},{"$f":"SUM('MMA Rev-Exp Region 1:MMA Rev-Exp Region 11'!Y75)","v":0},{"$f":"SUM(AA75:AJ75)","v":0},{"$f":"SUM('MMA Rev-Exp Region 1:MMA Rev-Exp Region 11'!AA75)","v":0},{"$f":"SUM('MMA Rev-Exp Region 1:MMA Rev-Exp Region 11'!AB75)","v":0},{"$f":"SUM('MMA Rev-Exp Region 1:MMA Rev-Exp Region 11'!AC75)","v":0},{"$f":"SUM('MMA Rev-Exp Region 1:MMA Rev-Exp Region 11'!AD75)","v":0},{"$f":"SUM('MMA Rev-Exp Region 1:MMA Rev-Exp Region 11'!AE75)","v":0},{"$f":"SUM('MMA Rev-Exp Region 1:MMA Rev-Exp Region 11'!AF75)","v":0},{"$f":"SUM('MMA Rev-Exp Region 1:MMA Rev-Exp Region 11'!AG75)","v":0},{"$f":"SUM('MMA Rev-Exp Region 1:MMA Rev-Exp Region 11'!AH75)","v":0},{"$f":"SUM('MMA Rev-Exp Region 1:MMA Rev-Exp Region 11'!AI75)","v":0},{"$f":"SUM('MMA Rev-Exp Region 1:MMA Rev-Exp Region 11'!AJ75)","v":0},{"$f":"SUM(AL75:AU75)","v":0},{"$f":"SUM('MMA Rev-Exp Region 1:MMA Rev-Exp Region 11'!AL75)","v":0},{"$f":"SUM('MMA Rev-Exp Region 1:MMA Rev-Exp Region 11'!AM75)","v":0},{"$f":"SUM('MMA Rev-Exp Region 1:MMA Rev-Exp Region 11'!AN75)","v":0},{"$f":"SUM('MMA Rev-Exp Region 1:MMA Rev-Exp Region 11'!AO75)","v":0},{"$f":"SUM('MMA Rev-Exp Region 1:MMA Rev-Exp Region 11'!AP75)","v":0},{"$f":"SUM('MMA Rev-Exp Region 1:MMA Rev-Exp Region 11'!AQ75)","v":0},{"$f":"SUM('MMA Rev-Exp Region 1:MMA Rev-Exp Region 11'!AR75)","v":0},{"$f":"SUM('MMA Rev-Exp Region 1:MMA Rev-Exp Region 11'!AS75)","v":0},{"$f":"SUM('MMA Rev-Exp Region 1:MMA Rev-Exp Region 11'!AT75)","v":0},{"$f":"SUM('MMA Rev-Exp Region 1:MMA Rev-Exp Region 11'!AU75)","v":0},{"$f":"SUM('MMA Rev-Exp Region 1:MMA Rev-Exp Region 11'!AV75)","v":0},0,{"$f":"SUM('MMA Rev-Exp Region 1:MMA Rev-Exp Region 11'!AX75)","v":0},{"$f":"SUM('MMA Rev-Exp Region 1:MMA Rev-Exp Region 11'!AY75)","v":0},{"$f":"SUM('MMA Rev-Exp Region 1:MMA Rev-Exp Region 11'!AZ75)","v":0},{"$f":"SUM('MMA Rev-Exp Region 1:MMA Rev-Exp Region 11'!BA75)","v":0},{"$f":"SUM('MMA Rev-Exp Region 1:MMA Rev-Exp Region 11'!BB75)","v":0},{"$f":"SUM('MMA Rev-Exp Region 1:MMA Rev-Exp Region 11'!BC75)","v":0},{"$f":"SUM('MMA Rev-Exp Region 1:MMA Rev-Exp Region 11'!BD75)","v":0},{"$f":"SUM('MMA Rev-Exp Region 1:MMA Rev-Exp Region 11'!BE75)","v":0},{"$f":"SUM('MMA Rev-Exp Region 1:MMA Rev-Exp Region 11'!BF75)","v":0},{"$f":"SUM('MMA Rev-Exp Region 1:MMA Rev-Exp Region 11'!BG75)","v":0}]
[null,"10.5","Total Expanded Benefits",{"$f":"SUM(D72:D75)","v":0},{"$f":"SUM(E72:E75)","v":0},0,0,0,{"$f":"SUM(I72:I75)","v":0},0,0,0,0,0,{"$f":"SUM(O72:O75)","v":0},{"$f":"SUM(P72:P75)","v":0},0,0,0,0,0,0,0,0,0,{"$f":"SUM(Z72:Z75)","v":0},{"$f":"SUM(AA72:AA75)","v":0},0,0,0,0,0,0,0,0,0,{"$f":"SUM(AK72:AK75)","v":0},{"$f":"SUM(AL72:AL75)","v":0},0,0,0,0,0,0,0,0,0,{"$f":"SUM(AV72:AV75)","v":0},0,0,0,0,0,0,0,0,0,0,0]
["Totals Before and After Reinsurance","11.1","Total Services Paid Directly FFS",{"$f":"D20+SUM(D22:D23,D27)+SUM(D29:D32)+D37+D41+D46+D51+SUM(D56:D57)+SUM(D59:D60)+SUM(D64:D67)+D72","v":0},{"$f":"E20+SUM(E22:E23,E27)+SUM(E29:E32)+E37+E41+E46+E51+SUM(E56:E57)+SUM(E59:E60)+SUM(E64:E67)+E72","v":0},{"$f":"F20+SUM(F22:F23,F27)+SUM(F29:F32)+F37+F41+F46+F51+SUM(F56:F57)+SUM(F59:F60)+SUM(F64:F67)+F72","v":0},0,0,{"$f":"I20+SUM(I22:I23,I27)+SUM(I29:I32)+I37+I41+I46+I51+SUM(I56:I57)+SUM(I59:I60)+SUM(I64:I67)+I72","v":0},0,0,0,0,0,{"$f":"O20+SUM(O22:O23,O27)+SUM(O29:O32)+O37+O41+O46+O51+SUM(O56:O57)+SUM(O59:O60)+SUM(O64:O67)+O72","v":0},{"$f":"P20+SUM(P22:P23,P27)+SUM(P29:P32)+P37+P41+P46+P51+SUM(P56:P57)+SUM(P59:P60)+SUM(P64:P67)+P72","v":0},{"$f":"Q20+SUM(Q22:Q23,Q27)+SUM(Q29:Q32)+Q37+Q41+Q46+Q51+SUM(Q56:Q57)+SUM(Q59:Q60)+SUM(Q64:Q67)+Q72","v":0},0,0,0,0,0,0,0,0,{"$f":"Z20+SUM(Z22:Z23,Z27)+SUM(Z29:Z32)+Z37+Z41+Z46+Z51+SUM(Z56:Z57)+SUM(Z59:Z60)+SUM(Z64:Z67)+Z72","v":0},{"$f":"AA20+SUM(AA22:AA23,AA27)+SUM(AA29:AA32)+AA37+AA41+AA46+AA51+SUM(AA56:AA57)+SUM(AA59:AA60)+SUM(AA64:AA67)+AA72","v":0},{"$f":"AB20+SUM(AB22:AB23,AB27)+SUM(AB29:AB32)+AB37+AB41+AB46+AB51+SUM(AB56:AB57)+SUM(AB59:AB60)+SUM(AB64:AB67)+AB72","v":0},0,0,0,0,0,0,0,0,{"$f":"AK20+SUM(AK22:AK23,AK27)+SUM(AK29:AK32)+AK37+AK41+AK46+AK51+SUM(AK56:AK57)+SUM(AK59:AK60)+SUM(AK64:AK67)+AK72","v":0},{"$f":"AL20+SUM(AL22:AL23,AL27)+SUM(AL29:AL32)+AL37+AL41+AL46+AL51+SUM(AL56:AL57)+SUM(AL59:AL60)+SUM(AL64:AL67)+AL72","v":0},{"$f":"AM20+SUM(AM22:AM23,AM27)+SUM(AM29:AM32)+AM37+AM41+AM46+AM51+SUM(AM56:AM57)+SUM(AM59:AM60)+SUM(AM64:AM67)+AM72","v":0},0,0,0,0,0,0,0,0,{"$f":"AV20+SUM(AV22:AV23,AV27)+SUM(AV29:AV32)+AV37+AV41+AV46+AV51+SUM(AV56:AV57)+SUM(AV59:AV60)+SUM(AV64:AV67)+AV72","v":0},0,{"$f":"SUM('MMA Rev-Exp Region 1:MMA Rev-Exp Region 11'!AX77)","v":0},{"$f":"SUM('MMA Rev-Exp Region 1:MMA Rev-Exp Region 11'!AY77)","v":0},{"$f":"SUM('MMA Rev-Exp Region 1:MMA Rev-Exp Region 11'!AZ77)","v":0},{"$f":"SUM('MMA Rev-Exp Region 1:MMA Rev-Exp Region 11'!BA77)","v":0},{"$f":"SUM('MMA Rev-Exp Region 1:MMA Rev-Exp Region 11'!BB77)","v":0},{"$f":"SUM('MMA Rev-Exp Region 1:MMA Rev-Exp Region 11'!BC77)","v":0},{"$f":"SUM('MMA Rev-Exp Region 1:MMA Rev-Exp Region 11'!BD77)","v":0},{"$f":"SUM('MMA Rev-Exp Region 1:MMA Rev-Exp Region 11'!BE77)","v":0},{"$f":"SUM('MMA Rev-Exp Region 1:MMA Rev-Exp Region 11'!BF77)","v":0},{"$f":"SUM('MMA Rev-Exp Region 1:MMA Rev-Exp Region 11'!BG77)","v":0}]
[null,"11.2","Total Services Paid Directly -- IBNP",{"$f":"D21+D24+D34+D38+D43+D48+D53+D58+D69+D74","v":0},0,0,0,0,0,0,0,0,0,0,{"$f":"O21+O24+O34+O38+O43+O48+O53+O58+O69+O74","v":0},{"$f":"P21+P24+P34+P38+P43+P48+P53+P58+P69+P74","v":0},0,0,0,0,0,0,0,0,0,{"$f":"Z21+Z24+Z34+Z38+Z43+Z48+Z53+Z58+Z69+Z74","v":0},{"$f":"AA21+AA24+AA34+AA38+AA43+AA48+AA53+AA58+AA69+AA74","v":0},0,0,0,0,0,0,0,0,0,{"$f":"AK21+AK24+AK34+AK38+AK43+AK48+AK53+AK58+AK69+AK74","v":0},{"$f":"AL21+AL24+AL34+AL38+AL43+AL48+AL53+AL58+AL69+AL74","v":0},0,0,0,0,0,0,0,0,0,{"$f":"AV21+AV24+AV34+AV38+AV43+AV48+AV53+AV58+AV69+AV74","v":0},{"$f":"AW21+AW24+AW34+AW38+AW43+AW48+AW53+AW58+AW69+AW74","v":0},{"$f":"SUM('MMA Rev-Exp Region 1:MMA Rev-Exp Region 11'!AX78)","v":0},{"$f":"SUM('MMA Rev-Exp Region 1:MMA Rev-Exp Region 11'!AY78)","v":0},{"$f":"SUM('MMA Rev-Exp Region 1:MMA Rev-Exp Region 11'!AZ78)","v":0},{"$f":"SUM('MMA Rev-Exp Region 1:MMA Rev-Exp Region 11'!BA78)","v":0},{"$f":"SUM('MMA Rev-Exp Region 1:MMA Rev-Exp Region 11'!BB78)","v":0},{"$f":"SUM('MMA Rev-Exp Region 1:MMA Rev-Exp Region 11'!BC78)","v":0},{"$f":"SUM('MMA Rev-Exp Region 1:MMA Rev-Exp Region 11'!BD78)","v":0},{"$f":"SUM('MMA Rev-Exp Region 1:MMA Rev-Exp Region 11'!BE78)","v":0},{"$f":"SUM('MMA Rev-Exp Region 1:MMA Rev-Exp Region 11'!BF78)","v":0},{"$f":"SUM('MMA Rev-Exp Region 1:MMA Rev-Exp Region 11'!BG78)","v":0}]
[null,"11.3","Total Services Paid through Subcapitation",{"$f":"D25+D33+D42+D47+D52+D61+D68+D73","v":0},{"$f":"E25+E33+E42+E47+E52+E61+E68+E73","v":0},0,0,0,0,0,0,0,0,0,{"$f":"O25+O33+O42+O47+O52+O61+O68+O73","v":0},{"$f":"P25+P33+P42+P47+P52+P61+P68+P73","v":0},0,0,0,0,0,0,0,0,0,{"$f":"Z25+Z33+Z42+Z47+Z52+Z61+Z68+Z73","v":0},{"$f":"AA25+AA33+AA42+AA47+AA52+AA61+AA68+AA73","v":0},{"$f":"AB25+AB33+AB42+AB47+AB52+AB61+AB68+AB73","v":0},0,0,0,0,0,0,0,0,{"$f":"AK25+AK33+AK42+AK47+AK52+AK61+AK68+AK73","v":0},{"$f":"AL25+AL33+AL42+AL47+AL52+AL61+AL68+AL73","v":0},0,0,0,0,0,0,0,0,0,{"$f":"AV25+AV33+AV42+AV47+AV52+AV61+AV68+AV73","v":0},{"$f":"AW25+AW33+AW42+AW47+AW52+AW61+AW68+AW73","v":0},{"$f":"SUM('MMA Rev-Exp Region 1:MMA Rev-Exp Region 11'!AX79)","v":0},{"$f":"SUM('MMA Rev-Exp Region 1:MMA Rev-Exp Region 11'!AY79)","v":0},{"$f":"SUM('MMA Rev-Exp Region 1:MMA Rev-Exp Region 11'!AZ79)","v":0},{"$f":"SUM('MMA Rev-Exp Region 1:MMA Rev-Exp Region 11'!BA79)","v":0},{"$f":"SUM('MMA Rev-Exp Region 1:MMA Rev-Exp Region 11'!BB79)","v":0},{"$f":"SUM('MMA Rev-Exp Region 1:MMA Rev-Exp Region 11'!BC79)","v":0},{"$f":"SUM('MMA Rev-Exp Region 1:MMA Rev-Exp Region 11'!BD79)","v":0},{"$f":"SUM('MMA Rev-Exp Region 1:MMA Rev-Exp Region 11'!BE79)","v":0},{"$f":"SUM('MMA Rev-Exp Region 1:MMA Rev-Exp Region 11'!BF79)","v":0},{"$f":"SUM('MMA Rev-Exp Region 1:MMA Rev-Exp Region 11'!BG79)","v":0}]
[null,"11.4","Total Services Paid by Settlements/AP",{"$f":"D26+D35+D39+D44+D49+D54+D62+D70+D75","v":0},{"$f":"E26+E35+E39+E44+E49+E54+E62+E70+E75","v":0},0,0,0,0,0,0,0,0,0,{"$f":"O26+O35+O39+O44+O49+O54+O62+O70+O75","v":0},{"$f":"P26+P35+P39+P44+P49+P54+P62+P70+P75","v":0},0,0,0,0,0,0,0,0,0,{"$f":"Z26+Z35+Z39+Z44+Z49+Z54+Z62+Z70+Z75","v":0},0,0,0,0,0,0,0,0,0,0,{"$f":"AK26+AK35+AK39+AK44+AK49+AK54+AK62+AK70+AK75","v":0},{"$f":"AL26+AL35+AL39+AL44+AL49+AL54+AL62+AL70+AL75","v":0},0,0,0,0,0,0,0,0,0,{"$f":"AV26+AV35+AV39+AV44+AV49+AV54+AV62+AV70+AV75","v":0},{"$f":"AW26+AW35+AW39+AW44+AW49+AW54+AW62+AW70+AW75","v":0},{"$f":"SUM('MMA Rev-Exp Region 1:MMA Rev-Exp Region 11'!AX80)","v":0},{"$f":"SUM('MMA Rev-Exp Region 1:MMA Rev-Exp Region 11'!AY80)","v":0},{"$f":"SUM('MMA Rev-Exp Region 1:MMA Rev-Exp Region 11'!AZ80)","v":0},{"$f":"SUM('MMA Rev-Exp Region 1:MMA Rev-Exp Region 11'!BA80)","v":0},{"$f":"SUM('MMA Rev-Exp Region 1:MMA Rev-Exp Region 11'!BB80)","v":0},{"$f":"SUM('MMA Rev-Exp Region 1:MMA Rev-Exp Region 11'!BC80)","v":0},{"$f":"SUM('MMA Rev-Exp Region 1:MMA Rev-Exp Region 11'!BD80)","v":0},{"$f":"SUM('MMA Rev-Exp Region 1:MMA Rev-Exp Region 11'!BE80)","v":0},{"$f":"SUM('MMA Rev-Exp Region 1:MMA Rev-Exp Region 11'!BF80)","v":0},{"$f":"SUM('MMA Rev-Exp Region 1:MMA Rev-Exp Region 11'!BG80)","v":0}]
[null,"11.5","TPL & Fraud/Abuse Recoveries",{"$f":"SUM(E81:N81)","v":0},{"$f":"SUM('MMA Rev-Exp Region 1:MMA Rev-Exp Region 11'!E81)","v":0},{"$f":"SUM('MMA Rev-Exp Region 1:MMA Rev-Exp Region 11'!F81)","v":0},{"$f":"SUM('MMA Rev-Exp Region 1:MMA Rev-Exp Region 11'!G81)","v":0},{"$f":"SUM('MMA Rev-Exp Region 1:MMA Rev-Exp Region 11'!H81)","v":0},{"$f":"SUM('MMA Rev-Exp Region 1:MMA Rev-Exp Region 11'!I81)","v":0},{"$f":"SUM('MMA Rev-Exp Region 1:MMA Rev-Exp Region 11'!J81)","v":0},{"$f":"SUM('MMA Rev-Exp Region 1:MMA Rev-Exp Region 11'!K81)","v":0},{"$f":"SUM('MMA Rev-Exp Region 1:MMA Rev-Exp Region 11'!L81)","v":0},{"$f":"SUM('MMA Rev-Exp Region 1:MMA Rev-Exp Region 11'!M81)","v":0},{"$f":"SUM('MMA Rev-Exp Region 1:MMA Rev-Exp Region 11'!N81)","v":0},{"$f":"SUM(P81:Y81)","v":0},{"$f":"SUM('MMA Rev-Exp Region 1:MMA Rev-Exp Region 11'!P81)","v":0},{"$f":"SUM('MMA Rev-Exp Region 1:MMA Rev-Exp Region 11'!Q81)","v":0},{"$f":"SUM('MMA Rev-Exp Region 1:MMA Rev-Exp Region 11'!R81)","v":0},{"$f":"SUM('MMA Rev-Exp Region 1:MMA Rev-Exp Region 11'!S81)","v":0},{"$f":"SUM('MMA Rev-Exp Region 1:MMA Rev-Exp Region 11'!T81)","v":0},{"$f":"SUM('MMA Rev-Exp Region 1:MMA Rev-Exp Region 11'!U81)","v":0},{"$f":"SUM('MMA Rev-Exp Region 1:MMA Rev-Exp Region 11'!V81)","v":0},{"$f":"SUM('MMA Rev-Exp Region 1:MMA Rev-Exp Region 11'!W81)","v":0},{"$f":"SUM('MMA Rev-Exp Region 1:MMA Rev-Exp Region 11'!X81)","v":0},{"$f":"SUM('MMA Rev-Exp Region 1:MMA Rev-Exp Region 11'!Y81)","v":0},{"$f":"SUM(AA81:AJ81)","v":0},{"$f":"SUM('MMA Rev-Exp Region 1:MMA Rev-Exp Region 11'!AA81)","v":0},{"$f":"SUM('MMA Rev-Exp Region 1:MMA Rev-Exp Region 11'!AB81)","v":0},{"$f":"SUM('MMA Rev-Exp Region 1:MMA Rev-Exp Region 11'!AC81)","v":0},{"$f":"SUM('MMA Rev-Exp Region 1:MMA Rev-Exp Region 11'!AD81)","v":0},{"$f":"SUM('MMA Rev-Exp Region 1:MMA Rev-Exp Region 11'!AE81)","v":0},{"$f":"SUM('MMA Rev-Exp Region 1:MMA Rev-Exp Region 11'!AF81)","v":0},{"$f":"SUM('MMA Rev-Exp Region 1:MMA Rev-Exp Region 11'!AG81)","v":0},{"$f":"SUM('MMA Rev-Exp Region 1:MMA Rev-Exp Region 11'!AH81)","v":0},{"$f":"SUM('MMA Rev-Exp Region 1:MMA Rev-Exp Region 11'!AI81)","v":0},{"$f":"SUM('MMA Rev-Exp Region 1:MMA Rev-Exp Region 11'!AJ81)","v":0},{"$f":"SUM(AL81:AU81)","v":0},{"$f":"SUM('MMA Rev-Exp Region 1:MMA Rev-Exp Region 11'!AL81)","v":0},{"$f":"SUM('MMA Rev-Exp Region 1:MMA Rev-Exp Region 11'!AM81)","v":0},{"$f":"SUM('MMA Rev-Exp Region 1:MMA Rev-Exp Region 11'!AN81)","v":0},{"$f":"SUM('MMA Rev-Exp Region 1:MMA Rev-Exp Region 11'!AO81)","v":0},{"$f":"SUM('MMA Rev-Exp Region 1:MMA Rev-Exp Region 11'!AP81)","v":0},{"$f":"SUM('MMA Rev-Exp Region 1:MMA Rev-Exp Region 11'!AQ81)","v":0},{"$f":"SUM('MMA Rev-Exp Region 1:MMA Rev-Exp Region 11'!AR81)","v":0},{"$f":"SUM('MMA Rev-Exp Region 1:MMA Rev-Exp Region 11'!AS81)","v":0},{"$f":"SUM('MMA Rev-Exp Region 1:MMA Rev-Exp Region 11'!AT81)","v":0},{"$f":"SUM('MMA Rev-Exp Region 1:MMA Rev-Exp Region 11'!AU81)","v":0},{"$f":"SUM('MMA Rev-Exp Region 1:MMA Rev-Exp Region 11'!AV81)","v":0},{"$f":"SUM(AX81:BG81)+AV81","v":0},{"$f":"SUM('MMA Rev-Exp Region 1:MMA Rev-Exp Region 11'!AX81)","v":0},{"$f":"SUM('MMA Rev-Exp Region 1:MMA Rev-Exp Region 11'!AY81)","v":0},{"$f":"SUM('MMA Rev-Exp Region 1:MMA Rev-Exp Region 11'!AZ81)","v":0},{"$f":"SUM('MMA Rev-Exp Region 1:MMA Rev-Exp Region 11'!BA81)","v":0},{"$f":"SUM('MMA Rev-Exp Region 1:MMA Rev-Exp Region 11'!BB81)","v":0},{"$f":"SUM('MMA Rev-Exp Region 1:MMA Rev-Exp Region 11'!BC81)","v":0},{"$f":"SUM('MMA Rev-Exp Region 1:MMA Rev-Exp Region 11'!BD81)","v":0},{"$f":"SUM('MMA Rev-Exp Region 1:MMA Rev-Exp Region 11'!BE81)","v":0},{"$f":"SUM('MMA Rev-Exp Region 1:MMA Rev-Exp Region 11'!BF81)","v":0},{"$f":"SUM('MMA Rev-Exp Region 1:MMA Rev-Exp Region 11'!BG81)","v":0}]
[null,"11.6.1","Premium Deficiency Reserve",{"$f":"SUM(E82:N82)","v":0},{"$f":"SUM('MMA Rev-Exp Region 1:MMA Rev-Exp Region 11'!E82)","v":0},{"$f":"SUM('MMA Rev-Exp Region 1:MMA Rev-Exp Region 11'!F82)","v":0},{"$f":"SUM('MMA Rev-Exp Region 1:MMA Rev-Exp Region 11'!G82)","v":0},{"$f":"SUM('MMA Rev-Exp Region 1:MMA Rev-Exp Region 11'!H82)","v":0},{"$f":"SUM('MMA Rev-Exp Region 1:MMA Rev-Exp Region 11'!I82)","v":0},{"$f":"SUM('MMA Rev-Exp Region 1:MMA Rev-Exp Region 11'!J82)","v":0},{"$f":"SUM('MMA Rev-Exp Region 1:MMA Rev-Exp Region 11'!K82)","v":0},{"$f":"SUM('MMA Rev-Exp Region 1:MMA Rev-Exp Region 11'!L82)","v":0},{"$f":"SUM('MMA Rev-Exp Region 1:MMA Rev-Exp Region 11'!M82)","v":0},{"$f":"SUM('MMA Rev-Exp Region 1:MMA Rev-Exp Region 11'!N82)","v":0},{"$f":"SUM(P82:Y82)","v":0},{"$f":"SUM('MMA Rev-Exp Region 1:MMA Rev-Exp Region 11'!P82)","v":0},{"$f":"SUM('MMA Rev-Exp Region 1:MMA Rev-Exp Region 11'!Q82)","v":0},{"$f":"SUM('MMA Rev-Exp Region 1:MMA Rev-Exp Region 11'!R82)","v":0},{"$f":"SUM('MMA Rev-Exp Region 1:MMA Rev-Exp Region 11'!S82)","v":0},{"$f":"SUM('MMA Rev-Exp Region 1:MMA Rev-Exp Region 11'!T82)","v":0},{"$f":"SUM('MMA Rev-Exp Region 1:MMA Rev-Exp Region 11'!U82)","v":0},{"$f":"SUM('MMA Rev-Exp Region 1:MMA Rev-Exp Region 11'!V82)","v":0},{"$f":"SUM('MMA Rev-Exp Region 1:MMA Rev-Exp Region 11'!W82)","v":0},{"$f":"SUM('MMA Rev-Exp Region 1:MMA Rev-Exp Region 11'!X82)","v":0},{"$f":"SUM('MMA Rev-Exp Region 1:MMA Rev-Exp Region 11'!Y82)","v":0},{"$f":"SUM(AA82:AJ82)","v":0},{"$f":"SUM('MMA Rev-Exp Region 1:MMA Rev-Exp Region 11'!AA82)","v":0},{"$f":"SUM('MMA Rev-Exp Region 1:MMA Rev-Exp Region 11'!AB82)","v":0},{"$f":"SUM('MMA Rev-Exp Region 1:MMA Rev-Exp Region 11'!AC82)","v":0},{"$f":"SUM('MMA Rev-Exp Region 1:MMA Rev-Exp Region 11'!AD82)","v":0},{"$f":"SUM('MMA Rev-Exp Region 1:MMA Rev-Exp Region 11'!AE82)","v":0},{"$f":"SUM('MMA Rev-Exp Region 1:MMA Rev-Exp Region 11'!AF82)","v":0},{"$f":"SUM('MMA Rev-Exp Region 1:MMA Rev-Exp Region 11'!AG82)","v":0},{"$f":"SUM('MMA Rev-Exp Region 1:MMA Rev-Exp Region 11'!AH82)","v":0},{"$f":"SUM('MMA Rev-Exp Region 1:MMA Rev-Exp Region 11'!AI82)","v":0},{"$f":"SUM('MMA Rev-Exp Region 1:MMA Rev-Exp Region 11'!AJ82)","v":0},{"$f":"SUM(AL82:AU82)","v":0},{"$f":"SUM('MMA Rev-Exp Region 1:MMA Rev-Exp Region 11'!AL82)","v":0},{"$f":"SUM('MMA Rev-Exp Region 1:MMA Rev-Exp Region 11'!AM82)","v":0},{"$f":"SUM('MMA Rev-Exp Region 1:MMA Rev-Exp Region 11'!AN82)","v":0},{"$f":"SUM('MMA Rev-Exp Region 1:MMA Rev-Exp Region 11'!AO82)","v":0},{"$f":"SUM('MMA Rev-Exp Region 1:MMA Rev-Exp Region 11'!AP82)","v":0},{"$f":"SUM('MMA Rev-Exp Region 1:MMA Rev-Exp Region 11'!AQ82)","v":0},{"$f":"SUM('MMA Rev-Exp Region 1:MMA Rev-Exp Region 11'!AR82)","v":0},{"$f":"SUM('MMA Rev-Exp Region 1:MMA Rev-Exp Region 11'!AS82)","v":0},{"$f":"SUM('MMA Rev-Exp Region 1:MMA Rev-Exp Region 11'!AT82)","v":0},{"$f":"SUM('MMA Rev-Exp Region 1:MMA Rev-Exp Region 11'!AU82)","v":0},{"$f":"SUM('MMA Rev-Exp Region 1:MMA Rev-Exp Region 11'!AV82)","v":0},{"$f":"SUM(AX82:BG82)+AV82","v":0},{"$f":"SUM('MMA Rev-Exp Region 1:MMA Rev-Exp Region 11'!AX82)","v":0},{"$f":"SUM('MMA Rev-Exp Region 1:MMA Rev-Exp Region 11'!AY82)","v":0},{"$f":"SUM('MMA Rev-Exp Region 1:MMA Rev-Exp Region 11'!AZ82)","v":0},{"$f":"SUM('MMA Rev-Exp Region 1:MMA Rev-Exp Region 11'!BA82)","v":0},{"$f":"SUM('MMA Rev-Exp Region 1:MMA Rev-Exp Region 11'!BB82)","v":0},{"$f":"SUM('MMA Rev-Exp Region 1:MMA Rev-Exp Region 11'!BC82)","v":0},{"$f":"SUM('MMA Rev-Exp Region 1:MMA Rev-Exp Region 11'!BD82)","v":0},{"$f":"SUM('MMA Rev-Exp Region 1:MMA Rev-Exp Region 11'!BE82)","v":0},{"$f":"SUM('MMA Rev-Exp Region 1:MMA Rev-Exp Region 11'!BF82)","v":0},{"$f":"SUM('MMA Rev-Exp Region 1:MMA Rev-Exp Region 11'!BG82)","v":0}]
[null,"11.7","Subtotal Benefit Expense before Reinsurance",{"$f":"SUM(D77:D82)","v":0},{"$f":"SUM(E77:E82)","v":0},0,0,0,{"$f":"SUM(I77:I82)","v":0},0,0,0,0,0,{"$f":"SUM(O77:O82)","v":0},{"$f":"SUM(P77:P82)","v":0},0,0,0,0,0,0,0,0,0,{"$f":"SUM(Z77:Z82)","v":0},{"$f":"SUM(AA77:AA82)","v":0},0,0,0,0,0,0,0,0,0,{"$f":"SUM(AK77:AK82)","v":0},{"$f":"SUM(AL77:AL82)","v":0},0,0,0,0,0,0,0,0,0,{"$f":"SUM(AV77:AV82)","v":0},0,0,0,0,0,0,0,0,0,0,0]
[null,"11.8","Reinsurance Premiums",{"$f":"SUM(E84:N84)","v":0},{"$f":"SUM('MMA Rev-Exp Region 1:MMA Rev-Exp Region 11'!E84)","v":0},{"$f":"SUM('MMA Rev-Exp Region 1:MMA Rev-Exp Region 11'!F84)","v":0},{"$f":"SUM('MMA Rev-Exp Region 1:MMA Rev-Exp Region 11'!G84)","v":0},{"$f":"SUM('MMA Rev-Exp Region 1:MMA Rev-Exp Region 11'!H84)","v":0},{"$f":"SUM('MMA Rev-Exp Region 1:MMA Rev-Exp Region 11'!I84)","v":0},{"$f":"SUM('MMA Rev-Exp Region 1:MMA Rev-Exp Region 11'!J84)","v":0},{"$f":"SUM('MMA Rev-Exp Region 1:MMA Rev-Exp Region 11'!K84)","v":0},{"$f":"SUM('MMA Rev-Exp Region 1:MMA Rev-Exp Region 11'!L84)","v":0},{"$f":"SUM('MMA Rev-Exp Region 1:MMA Rev-Exp Region 11'!M84)","v":0},{"$f":"SUM('MMA Rev-Exp Region 1:MMA Rev-Exp Region 11'!N84)","v":0},{"$f":"SUM(P84:Y84)","v":0},{"$f":"SUM('MMA Rev-Exp Region 1:MMA Rev-Exp Region 11'!P84)","v":0},{"$f":"SUM('MMA Rev-Exp Region 1:MMA Rev-Exp Region 11'!Q84)","v":0},{"$f":"SUM('MMA Rev-Exp Region 1:MMA Rev-Exp Region 11'!R84)","v":0},{"$f":"SUM('MMA Rev-Exp Region 1:MMA Rev-Exp Region 11'!S84)","v":0},{"$f":"SUM('MMA Rev-Exp Region 1:MMA Rev-Exp Region 11'!T84)","v":0},{"$f":"SUM('MMA Rev-Exp Region 1:MMA Rev-Exp Region 11'!U84)","v":0},{"$f":"SUM('MMA Rev-Exp Region 1:MMA Rev-Exp Region 11'!V84)","v":0},{"$f":"SUM('MMA Rev-Exp Region 1:MMA Rev-Exp Region 11'!W84)","v":0},{"$f":"SUM('MMA Rev-Exp Region 1:MMA Rev-Exp Region 11'!X84)","v":0},{"$f":"SUM('MMA Rev-Exp Region 1:MMA Rev-Exp Region 11'!Y84)","v":0},{"$f":"SUM(AA84:AJ84)","v":0},{"$f":"SUM('MMA Rev-Exp Region 1:MMA Rev-Exp Region 11'!AA84)","v":0},{"$f":"SUM('MMA Rev-Exp Region 1:MMA Rev-Exp Region 11'!AB84)","v":0},{"$f":"SUM('MMA Rev-Exp Region 1:MMA Rev-Exp Region 11'!AC84)","v":0},{"$f":"SUM('MMA Rev-Exp Region 1:MMA Rev-Exp Region 11'!AD84)","v":0},{"$f":"SUM('MMA Rev-Exp Region 1:MMA Rev-Exp Region 11'!AE84)","v":0},{"$f":"SUM('MMA Rev-Exp Region 1:MMA Rev-Exp Region 11'!AF84)","v":0},{"$f":"SUM('MMA Rev-Exp Region 1:MMA Rev-Exp Region 11'!AG84)","v":0},{"$f":"SUM('MMA Rev-Exp Region 1:MMA Rev-Exp Region 11'!AH84)","v":0},{"$f":"SUM('MMA Rev-Exp Region 1:MMA Rev-Exp Region 11'!AI84)","v":0},{"$f":"SUM('MMA Rev-Exp Region 1:MMA Rev-Exp Region 11'!AJ84)","v":0},{"$f":"SUM(AL84:AU84)","v":0},{"$f":"SUM('MMA Rev-Exp Region 1:MMA Rev-Exp Region 11'!AL84)","v":0},{"$f":"SUM('MMA Rev-Exp Region 1:MMA Rev-Exp Region 11'!AM84)","v":0},{"$f":"SUM('MMA Rev-Exp Region 1:MMA Rev-Exp Region 11'!AN84)","v":0},{"$f":"SUM('MMA Rev-Exp Region 1:MMA Rev-Exp Region 11'!AO84)","v":0},{"$f":"SUM('MMA Rev-Exp Region 1:MMA Rev-Exp Region 11'!AP84)","v":0},{"$f":"SUM('MMA Rev-Exp Region 1:MMA Rev-Exp Region 11'!AQ84)","v":0},{"$f":"SUM('MMA Rev-Exp Region 1:MMA Rev-Exp Region 11'!AR84)","v":0},{"$f":"SUM('MMA Rev-Exp Region 1:MMA Rev-Exp Region 11'!AS84)","v":0},{"$f":"SUM('MMA Rev-Exp Region 1:MMA Rev-Exp Region 11'!AT84)","v":0},{"$f":"SUM('MMA Rev-Exp Region 1:MMA Rev-Exp Region 11'!AU84)","v":0},{"$f":"SUM('MMA Rev-Exp Region 1:MMA Rev-Exp Region 11'!AV84)","v":0},{"$f":"SUM(AX84:BG84)+AV84","v":0},{"$f":"SUM('MMA Rev-Exp Region 1:MMA Rev-Exp Region 11'!AX84)","v":0},{"$f":"SUM('MMA Rev-Exp Region 1:MMA Rev-Exp Region 11'!AY84)","v":0},{"$f":"SUM('MMA Rev-Exp Region 1:MMA Rev-Exp Region 11'!AZ84)","v":0},{"$f":"SUM('MMA Rev-Exp Region 1:MMA Rev-Exp Region 11'!BA84)","v":0},{"$f":"SUM('MMA Rev-Exp Region 1:MMA Rev-Exp Region 11'!BB84)","v":0},{"$f":"SUM('MMA Rev-Exp Region 1:MMA Rev-Exp Region 11'!BC84)","v":0},{"$f":"SUM('MMA Rev-Exp Region 1:MMA Rev-Exp Region 11'!BD84)","v":0},{"$f":"SUM('MMA Rev-Exp Region 1:MMA Rev-Exp Region 11'!BE84)","v":0},{"$f":"SUM('MMA Rev-Exp Region 1:MMA Rev-Exp Region 11'!BF84)","v":0},{"$f":"SUM('MMA Rev-Exp Region 1:MMA Rev-Exp Region 11'!BG84)","v":0}]
[null,"11.9","Reinsurance Recoveries",{"$f":"SUM(E85:N85)","v":0},{"$f":"SUM('MMA Rev-Exp Region 1:MMA Rev-Exp Region 11'!E85)","v":0},{"$f":"SUM('MMA Rev-Exp Region 1:MMA Rev-Exp Region 11'!F85)","v":0},{"$f":"SUM('MMA Rev-Exp Region 1:MMA Rev-Exp Region 11'!G85)","v":0},{"$f":"SUM('MMA Rev-Exp Region 1:MMA Rev-Exp Region 11'!H85)","v":0},{"$f":"SUM('MMA Rev-Exp Region 1:MMA Rev-Exp Region 11'!I85)","v":0},{"$f":"SUM('MMA Rev-Exp Region 1:MMA Rev-Exp Region 11'!J85)","v":0},{"$f":"SUM('MMA Rev-Exp Region 1:MMA Rev-Exp Region 11'!K85)","v":0},{"$f":"SUM('MMA Rev-Exp Region 1:MMA Rev-Exp Region 11'!L85)","v":0},{"$f":"SUM('MMA Rev-Exp Region 1:MMA Rev-Exp Region 11'!M85)","v":0},{"$f":"SUM('MMA Rev-Exp Region 1:MMA Rev-Exp Region 11'!N85)","v":0},{"$f":"SUM(P85:Y85)","v":0},{"$f":"SUM('MMA Rev-Exp Region 1:MMA Rev-Exp Region 11'!P85)","v":0},{"$f":"SUM('MMA Rev-Exp Region 1:MMA Rev-Exp Region 11'!Q85)","v":0},{"$f":"SUM('MMA Rev-Exp Region 1:MMA Rev-Exp Region 11'!R85)","v":0},{"$f":"SUM('MMA Rev-Exp Region 1:MMA Rev-Exp Region 11'!S85)","v":0},{"$f":"SUM('MMA Rev-Exp Region 1:MMA Rev-Exp Region 11'!T85)","v":0},{"$f":"SUM('MMA Rev-Exp Region 1:MMA Rev-Exp Region 11'!U85)","v":0},{"$f":"SUM('MMA Rev-Exp Region 1:MMA Rev-Exp Region 11'!V85)","v":0},{"$f":"SUM('MMA Rev-Exp Region 1:MMA Rev-Exp Region 11'!W85)","v":0},{"$f":"SUM('MMA Rev-Exp Region 1:MMA Rev-Exp Region 11'!X85)","v":0},{"$f":"SUM('MMA Rev-Exp Region 1:MMA Rev-Exp Region 11'!Y85)","v":0},{"$f":"SUM(AA85:AJ85)","v":0},{"$f":"SUM('MMA Rev-Exp Region 1:MMA Rev-Exp Region 11'!AA85)","v":0},{"$f":"SUM('MMA Rev-Exp Region 1:MMA Rev-Exp Region 11'!AB85)","v":0},{"$f":"SUM('MMA Rev-Exp Region 1:MMA Rev-Exp Region 11'!AC85)","v":0},{"$f":"SUM('MMA Rev-Exp Region 1:MMA Rev-Exp Region 11'!AD85)","v":0},{"$f":"SUM('MMA Rev-Exp Region 1:MMA Rev-Exp Region 11'!AE85)","v":0},{"$f":"SUM('MMA Rev-Exp Region 1:MMA Rev-Exp Region 11'!AF85)","v":0},{"$f":"SUM('MMA Rev-Exp Region 1:MMA Rev-Exp Region 11'!AG85)","v":0},{"$f":"SUM('MMA Rev-Exp Region 1:MMA Rev-Exp Region 11'!AH85)","v":0},{"$f":"SUM('MMA Rev-Exp Region 1:MMA Rev-Exp Region 11'!AI85)","v":0},{"$f":"SUM('MMA Rev-Exp Region 1:MMA Rev-Exp Region 11'!AJ85)","v":0},{"$f":"SUM(AL85:AU85)","v":0},{"$f":"SUM('MMA Rev-Exp Region 1:MMA Rev-Exp Region 11'!AL85)","v":0},{"$f":"SUM('MMA Rev-Exp Region 1:MMA Rev-Exp Region 11'!AM85)","v":0},{"$f":"SUM('MMA Rev-Exp Region 1:MMA Rev-Exp Region 11'!AN85)","v":0},{"$f":"SUM('MMA Rev-Exp Region 1:MMA Rev-Exp Region 11'!AO85)","v":0},{"$f":"SUM('MMA Rev-Exp Region 1:MMA Rev-Exp Region 11'!AP85)","v":0},{"$f":"SUM('MMA Rev-Exp Region 1:MMA Rev-Exp Region 11'!AQ85)","v":0},{"$f":"SUM('MMA Rev-Exp Region 1:MMA Rev-Exp Region 11'!AR85)","v":0},{"$f":"SUM('MMA Rev-Exp Region 1:MMA Rev-Exp Region 11'!AS85)","v":0},{"$f":"SUM('MMA Rev-Exp Region 1:MMA Rev-Exp Region 11'!AT85)","v":0},{"$f":"SUM('MMA Rev-Exp Region 1:MMA Rev-Exp Region 11'!AU85)","v":0},{"$f":"SUM('MMA Rev-Exp Region 1:MMA Rev-Exp Region 11'!AV85)","v":0},{"$f":"SUM(AX85:BG85)+AV85","v":0},{"$f":"SUM('MMA Rev-Exp Region 1:MMA Rev-Exp Region 11'!AX85)","v":0},{"$f":"SUM('MMA Rev-Exp Region 1:MMA Rev-Exp Region 11'!AY85)","v":0},{"$f":"SUM('MMA Rev-Exp Region 1:MMA Rev-Exp Region 11'!AZ85)","v":0},{"$f":"SUM('MMA Rev-Exp Region 1:MMA Rev-Exp Region 11'!BA85)","v":0},{"$f":"SUM('MMA Rev-Exp Region 1:MMA Rev-Exp Region 11'!BB85)","v":0},{"$f":"SUM('MMA Rev-Exp Region 1:MMA Rev-Exp Region 11'!BC85)","v":0},{"$f":"SUM('MMA Rev-Exp Region 1:MMA Rev-Exp Region 11'!BD85)","v":0},{"$f":"SUM('MMA Rev-Exp Region 1:MMA Rev-Exp Region 11'!BE85)","v":0},{"$f":"SUM('MMA Rev-Exp Region 1:MMA Rev-Exp Region 11'!BF85)","v":0},{"$f":"SUM('MMA Rev-Exp Region 1:MMA Rev-Exp Region 11'!BG85)","v":0}]
[null,"11.10","Net cost of Reinsurance",{"$f":"SUM(D84:D85)","v":0},{"$f":"SUM('MMA Rev-Exp Region 1:MMA Rev-Exp Region 11'!E86)","v":0},{"$f":"SUM('MMA Rev-Exp Region 1:MMA Rev-Exp Region 11'!F86)","v":0},{"$f":"SUM('MMA Rev-Exp Region 1:MMA Rev-Exp Region 11'!G86)","v":0},{"$f":"SUM('MMA Rev-Exp Region 1:MMA Rev-Exp Region 11'!H86)","v":0},{"$f":"SUM('MMA Rev-Exp Region 1:MMA Rev-Exp Region 11'!I86)","v":0},{"$f":"SUM('MMA Rev-Exp Region 1:MMA Rev-Exp Region 11'!J86)","v":0},{"$f":"SUM('MMA Rev-Exp Region 1:MMA Rev-Exp Region 11'!K86)","v":0},{"$f":"SUM('MMA Rev-Exp Region 1:MMA Rev-Exp Region 11'!L86)","v":0},{"$f":"SUM('MMA Rev-Exp Region 1:MMA Rev-Exp Region 11'!M86)","v":0},{"$f":"SUM('MMA Rev-Exp Region 1:MMA Rev-Exp Region 11'!N86)","v":0},{"$f":"SUM(O84:O85)","v":0},{"$f":"SUM('MMA Rev-Exp Region 1:MMA Rev-Exp Region 11'!P86)","v":0},{"$f":"SUM('MMA Rev-Exp Region 1:MMA Rev-Exp Region 11'!Q86)","v":0},{"$f":"SUM('MMA Rev-Exp Region 1:MMA Rev-Exp Region 11'!R86)","v":0},{"$f":"SUM('MMA Rev-Exp Region 1:MMA Rev-Exp Region 11'!S86)","v":0},{"$f":"SUM('MMA Rev-Exp Region 1:MMA Rev-Exp Region 11'!T86)","v":0},{"$f":"SUM('MMA Rev-Exp Region 1:MMA Rev-Exp Region 11'!U86)","v":0},{"$f":"SUM('MMA Rev-Exp Region 1:MMA Rev-Exp Region 11'!V86)","v":0},{"$f":"SUM('MMA Rev-Exp Region 1:MMA Rev-Exp Region 11'!W86)","v":0},{"$f":"SUM('MMA Rev-Exp Region 1:MMA Rev-Exp Region 11'!X86)","v":0},{"$f":"SUM('MMA Rev-Exp Region 1:MMA Rev-Exp Region 11'!Y86)","v":0},{"$f":"SUM(Z84:Z85)","v":0},{"$f":"SUM('MMA Rev-Exp Region 1:MMA Rev-Exp Region 11'!AA86)","v":0},{"$f":"SUM('MMA Rev-Exp Region 1:MMA Rev-Exp Region 11'!AB86)","v":0},{"$f":"SUM('MMA Rev-Exp Region 1:MMA Rev-Exp Region 11'!AC86)","v":0},{"$f":"SUM('MMA Rev-Exp Region 1:MMA Rev-Exp Region 11'!AD86)","v":0},{"$f":"SUM('MMA Rev-Exp Region 1:MMA Rev-Exp Region 11'!AE86)","v":0},{"$f":"SUM('MMA Rev-Exp Region 1:MMA Rev-Exp Region 11'!AF86)","v":0},{"$f":"SUM('MMA Rev-Exp Region 1:MMA Rev-Exp Region 11'!AG86)","v":0},{"$f":"SUM('MMA Rev-Exp Region 1:MMA Rev-Exp Region 11'!AH86)","v":0},{"$f":"SUM('MMA Rev-Exp Region 1:MMA Rev-Exp Region 11'!AI86)","v":0},{"$f":"SUM('MMA Rev-Exp Region 1:MMA Rev-Exp Region 11'!AJ86)","v":0},{"$f":"SUM(AK84:AK85)","v":0},{"$f":"SUM('MMA Rev-Exp Region 1:MMA Rev-Exp Region 11'!AL86)","v":0},{"$f":"SUM('MMA Rev-Exp Region 1:MMA Rev-Exp Region 11'!AM86)","v":0},{"$f":"SUM('MMA Rev-Exp Region 1:MMA Rev-Exp Region 11'!AN86)","v":0},{"$f":"SUM('MMA Rev-Exp Region 1:MMA Rev-Exp Region 11'!AO86)","v":0},{"$f":"SUM('MMA Rev-Exp Region 1:MMA Rev-Exp Region 11'!AP86)","v":0},{"$f":"SUM('MMA Rev-Exp Region 1:MMA Rev-Exp Region 11'!AQ86)","v":0},{"$f":"SUM('MMA Rev-Exp Region 1:MMA Rev-Exp Region 11'!AR86)","v":0},{"$f":"SUM('MMA Rev-Exp Region 1:MMA Rev-Exp Region 11'!AS86)","v":0},{"$f":"SUM('MMA Rev-Exp Region 1:MMA Rev-Exp Region 11'!AT86)","v":0},{"$f":"SUM('MMA Rev-Exp Region 1:MMA Rev-Exp Region 11'!AU86)","v":0},{"$f":"SUM('MMA Rev-Exp Region 1:MMA Rev-Exp Region 11'!AV86)","v":0},{"$f":"SUM(AW84:AW85)","v":0},{"$f":"SUM('MMA Rev-Exp Region 1:MMA Rev-Exp Region 11'!AX86)","v":0},{"$f":"SUM('MMA Rev-Exp Region 1:MMA Rev-Exp Region 11'!AY86)","v":0},{"$f":"SUM('MMA Rev-Exp Region 1:MMA Rev-Exp Region 11'!AZ86)","v":0},{"$f":"SUM('MMA Rev-Exp Region 1:MMA Rev-Exp Region 11'!BA86)","v":0},{"$f":"SUM('MMA Rev-Exp Region 1:MMA Rev-Exp Region 11'!BB86)","v":0},{"$f":"SUM('MMA Rev-Exp Region 1:MMA Rev-Exp Region 11'!BC86)","v":0},{"$f":"SUM('MMA Rev-Exp Region 1:MMA Rev-Exp Region 11'!BD86)","v":0},{"$f":"SUM('MMA Rev-Exp Region 1:MMA Rev-Exp Region 11'!BE86)","v":0},{"$f":"SUM('MMA Rev-Exp Region 1:MMA Rev-Exp Region 11'!BF86)","v":0},{"$f":"SUM('MMA Rev-Exp Region 1:MMA Rev-Exp Region 11'!BG86)","v":0}]
[null,"11.11","Grand Total Medical Benefit Expense Net of Reinsurance",{"$f":"D83+D86","v":0},{"$f":"E83+E86","v":0},0,0,0,{"$f":"I83+I86","v":0},0,0,0,0,0,{"$f":"O83+O86","v":0},{"$f":"P83+P86","v":0},0,0,0,0,0,0,0,0,0,{"$f":"Z83+Z86","v":0},{"$f":"AA83+AA86","v":0},0,0,0,0,0,0,0,0,0,{"$f":"AK83+AK86","v":0},{"$f":"AL83+AL86","v":0},0,0,0,0,0,0,0,0,0,{"$f":"AV83+AV86","v":0},0,0,0,0,0,0,0,0,0,0,0]
["Administrative Expenses, Government-Mandated Assessments, Taxes, and Fees ",null,null,"JANUARY - MARCH (Q1)",{"$nulls":10},"APRIL - JUNE (Q2)",{"$nulls":10},"JULY - SEPTEMBER (Q3)",{"$nulls":10},"OCTOBER - DECEMBER (Q4)",{"$nulls":11},"TOTAL (TO DATE)"]
[{"$nulls":3},"Total","Health Plan","Corporate",{"$nulls":8},"Total","Health Plan","Corporate",{"$nulls":8},"Total","Health Plan","Corporate",{"$nulls":8},"Total","Health Plan","Corporate",{"$nulls":8},"Prior Calendar Year Adjustments","Total","Health Plan","Corporate"]
["Administrative Expenses","12.1","Salaries & Benefits",{"$f":"SUM(E90:F90)","v":0},{"$f":"SUM('MMA Rev-Exp Region 1:MMA Rev-Exp Region 11'!E90)","v":0},{"$f":"SUM('MMA Rev-Exp Region 1:MMA Rev-Exp Region 11'!F90)","v":0},{"$nulls":8},{"$f":"SUM(P90:Q90)","v":0},{"$f":"SUM('MMA Rev-Exp Region 1:MMA Rev-Exp Region 11'!P90)","v":0},{"$f":"SUM('MMA Rev-Exp Region 1:MMA Rev-Exp Region 11'!Q90)","v":0},{"$nulls":8},{"$f":"SUM(AA90:AB90)","v":0},{"$f":"SUM('MMA Rev-Exp Region 1:MMA Rev-Exp Region 11'!AA90)","v":0},{"$f":"SUM('MMA Rev-Exp Region 1:MMA Rev-Exp Region 11'!AB90)","v":0},{"$nulls":8},{"$f":"SUM(AL90:AM90)","v":0},{"$f":"SUM('MMA Rev-Exp Region 1:MMA Rev-Exp Region 11'!AL90)","v":0},{"$f":"SUM('MMA Rev-Exp Region 1:MMA Rev-Exp Region 11'!AM90)","v":0},{"$nulls":8},{"$f":"SUM('MMA Rev-Exp Region 1:MMA Rev-Exp Region 11'!AV90)","v":0},{"$f":"SUM(AX90:AY90)+AV90","v":0},{"$f":"SUM('MMA Rev-Exp Region 1:MMA Rev-Exp Region 11'!AX90)","v":0},{"$f":"SUM('MMA Rev-Exp Region 1:MMA Rev-Exp Region 11'!AY90)","v":0}]
[null,"12.2","Administrative Services",{"$f":"SUM(E91:F91)","v":0},{"$f":"SUM('MMA Rev-Exp Region 1:MMA Rev-Exp Region 11'!E91)","v":0},{"$f":"SUM('MMA Rev-Exp Region 1:MMA Rev-Exp Region 11'!F91)","v":0},{"$nulls":8},{"$f":"SUM(P91:Q91)","v":0},{"$f":"SUM('MMA Rev-Exp Region 1:MMA Rev-Exp Region 11'!P91)","v":0},{"$f":"SUM('MMA Rev-Exp Region 1:MMA Rev-Exp Region 11'!Q91)","v":0},{"$nulls":8},{"$f":"SUM(AA91:AB91)","v":0},{"$f":"SUM('MMA Rev-Exp Region 1:MMA Rev-Exp Region 11'!AA91)","v":0},{"$f":"SUM('MMA Rev-Exp Region 1:MMA Rev-Exp Region 11'!AB91)","v":0},{"$nulls":8},{"$f":"SUM(AL91:AM91)","v":0},{"$f":"SUM('MMA Rev-Exp Region 1:MMA Rev-Exp Region 11'!AL91)","v":0},{"$f":"SUM('MMA Rev-Exp Region 1:MMA Rev-Exp Region 11'!AM91)","v":0},{"$nulls":8},{"$f":"SUM('MMA Rev-Exp Region 1:MMA Rev-Exp Region 11'!AV91)","v":0},0,{"$f":"SUM('MMA Rev-Exp Region 1:MMA Rev-Exp Region 11'!AX91)","v":0},{"$f":"SUM('MMA Rev-Exp Region 1:MMA Rev-Exp Region 11'!AY91)","v":0}]
[null,"12.3","Information Systems",0,{"$f":"SUM('MMA Rev-Exp Region 1:MMA Rev-Exp Region 11'!E92)","v":0},{"$f":"SUM('MMA Rev-Exp Region 1:MMA Rev-Exp Region 11'!F92)","v":0},{"$nulls":8},0,{"$f":"SUM('MMA Rev-Exp Region 1:MMA Rev-Exp Region 11'!P92)","v":0},{"$f":"SUM('MMA Rev-Exp Region 1:MMA Rev-Exp Region 11'!Q92)","v":0},{"$nulls":8},0,{"$f":"SUM('MMA Rev-Exp Region 1:MMA Rev-Exp Region 11'!AA92)","v":0},{"$f":"SUM('MMA Rev-Exp Region 1:MMA Rev-Exp Region 11'!AB92)","v":0},{"$nulls":8},0,{"$f":"SUM('MMA Rev-Exp Region 1:MMA Rev-Exp Region 11'!AL92)","v":0},{"$f":"SUM('MMA Rev-Exp Region 1:MMA Rev-Exp Region 11'!AM92)","v":0},{"$nulls":8},{"$f":"SUM('MMA Rev-Exp Region 1:MMA Rev-Exp Region 11'!AV92)","v":0},0,{"$f":"SUM('MMA Rev-Exp Region 1:MMA Rev-Exp Region 11'!AX92)","v":0},{"$f":"SUM('MMA Rev-Exp Region 1:MMA Rev-Exp Region 11'!AY92)","v":0}]
[null,"12.4","Marketing Expenses",0,{"$f":"SUM('MMA Rev-Exp Region 1:MMA Rev-Exp Region 11'!E93)","v":0},{"$f":"SUM('MMA Rev-Exp Region 1:MMA Rev-Exp Region 11'!F93)","v":0},{"$nulls":8},0,{"$f":"SUM('MMA Rev-Exp Region 1:MMA Rev-Exp Region 11'!P93)","v":0},{"$f":"SUM('MMA Rev-Exp Region 1:MMA Rev-Exp Region 11'!Q93)","v":0},{"$nulls":8},0,{"$f":"SUM('MMA Rev-Exp Region 1:MMA Rev-Exp Region 11'!AA93)","v":0},{"$f":"SUM('MMA Rev-Exp Region 1:MMA Rev-Exp Region 11'!AB93)","v":0},{"$nulls":8},0,{"$f":"SUM('MMA Rev-Exp Region 1:MMA Rev-Exp Region 11'!AL93)","v":0},{"$f":"SUM('MMA Rev-Exp Region 1:MMA Rev-Exp Region 11'!AM93)","v":0},{"$nulls":8},{"$f":"SUM('MMA Rev-Exp Region 1:MMA Rev-Exp Region 11'!AV93)","v":0},0,{"$f":"SUM('MMA Rev-Exp Region 1:MMA Rev-Exp Region 11'!AX93)","v":0},{"$f":"SUM('MMA Rev-Exp Region 1:MMA Rev-Exp Region 11'!AY93)","v":0}]
[null,"12.5","General  Administration",0,{"$f":"SUM('MMA Rev-Exp Region 1:MMA Rev-Exp Region 11'!E94)","v":0},{"$f":"SUM('MMA Rev-Exp Region 1:MMA Rev-Exp Region 11'!F94)","v":0},{"$nulls":8},0,{"$f":"SUM('MMA Rev-Exp Region 1:MMA Rev-Exp Region 11'!P94)","v":0},{"$f":"SUM('MMA Rev-Exp Region 1:MMA Rev-Exp Region 11'!Q94)","v":0},{"$nulls":8},0,{"$f":"SUM('MMA Rev-Exp Region 1:MMA Rev-Exp Region 11'!AA94)","v":0},{"$f":"SUM('MMA Rev-Exp Region 1:MMA Rev-Exp Region 11'!AB94)","v":0},{"$nulls":8},0,{"$f":"SUM('MMA Rev-Exp Region 1:MMA Rev-Exp Region 11'!AL94)","v":0},{"$f":"SUM('MMA Rev-Exp Region 1:MMA Rev-Exp Region 11'!AM94)","v":0},{"$nulls":8},{"$f":"SUM('MMA Rev-Exp Region 1:MMA Rev-Exp Region 11'!AV94)","v":0},0,{"$f":"SUM('MMA Rev-Exp Region 1:MMA Rev-Exp Region 11'!AX94)","v":0},{"$f":"SUM('MMA Rev-Exp Region 1:MMA Rev-Exp Region 11'!AY94)","v":0}]
[null,"12.6","Compliance/Regulatory",0,{"$f":"SUM('MMA Rev-Exp Region 1:MMA Rev-Exp Region 11'!E95)","v":0},{"$f":"SUM('MMA Rev-Exp Region 1:MMA Rev-Exp Region 11'!F95)","v":0},{"$nulls":8},{"$f":"SUM(P95:Q95)","v":0},{"$f":"SUM('MMA Rev-Exp Region 1:MMA Rev-Exp Region 11'!P95)","v":0},{"$f":"SUM('MMA Rev-Exp Region 1:MMA Rev-Exp Region 11'!Q95)","v":0},{"$nulls":8},0,{"$f":"SUM('MMA Rev-Exp Region 1:MMA Rev-Exp Region 11'!AA95)","v":0},{"$f":"SUM('MMA Rev-Exp Region 1:MMA Rev-Exp Region 11'!AB95)","v":0},{"$nulls":8},0,{"$f":"SUM('MMA Rev-Exp Region 1:MMA Rev-Exp Region 11'!AL95)","v":0},{"$f":"SUM('MMA Rev-Exp Region 1:MMA Rev-Exp Region 11'!AM95)","v":0},{"$nulls":8},{"$f":"SUM('MMA Rev-Exp Region 1:MMA Rev-Exp Region 11'!AV95)","v":0},0,{"$f":"SUM('MMA Rev-Exp Region 1:MMA Rev-Exp Region 11'!AX95)","v":0},{"$f":"SUM('MMA Rev-Exp Region 1:MMA Rev-Exp Region 11'!AY95)","v":0}]
[null,"12.7","Total Administrative Expenses ",{"$f":"SUM(D90:D95)","v":0},{"$f":"SUM(E90:E95)","v":0},0,{"$nulls":8},{"$f":"SUM(O90:O95)","v":0},{"$f":"SUM(P90:P95)","v":0},0,{"$nulls":8},{"$f":"SUM(Z90:Z95)","v":0},{"$f":"SUM(AA90:AA95)","v":0},0,{"$nulls":8},{"$f":"SUM(AK90:AK95)","v":0},{"$f":"SUM(AL90:AL95)","v":0},0,{"$nulls":8},{"$f":"SUM(AV90:AV95)","v":0},{"$f":"SUM(AW90:AW95)","v":0},{"$f":"SUM(AX90:AX95)","v":0},{"$f":"SUM(AY90:AY95)","v":0}]
["Government-Mandated Assessments, Taxes, and Fees Other Than Income Taxes","13.1","State Premium tax",{"$f":"SUM('MMA Rev-Exp Region 1:MMA Rev-Exp Region 11'!D97)","v":0},{"$nulls":10},{"$f":"SUM('MMA Rev-Exp Region 1:MMA Rev-Exp Region 11'!O97)","v":0},{"$nulls":10},{"$f":"SUM('MMA Rev-Exp Region 1:MMA Rev-Exp Region 11'!Z97)","v":0},{"$nulls":10},{"$f":"SUM('MMA Rev-Exp Region 1:MMA Rev-Exp Region 11'!AK97)","v":0},{"$nulls":10},{"$f":"SUM('MMA Rev-Exp Region 1:MMA Rev-Exp Region 11'!AV97)","v":0},{"$f":"SUM('MMA Rev-Exp Region 1:MMA Rev-Exp Region 11'!AW97)","v":0}]
[null,"13.2","Department of Insurance Assessments",{"$f":"SUM('MMA Rev-Exp Region 1:MMA Rev-Exp Region 11'!D98)","v":0},{"$nulls":10},{"$f":"SUM('MMA Rev-Exp Region 1:MMA Rev-Exp Region 11'!O98)","v":0},{"$nulls":10},{"$f":"SUM('MMA Rev-Exp Region 1:MMA Rev-Exp Region 11'!Z98)","v":0},{"$nulls":10},{"$f":"SUM('MMA Rev-Exp Region 1:MMA Rev-Exp Region 11'!AK98)","v":0},{"$nulls":10},{"$f":"SUM('MMA Rev-Exp Region 1:MMA Rev-Exp Region 11'!AV98)","v":0},{"$f":"SUM('MMA Rev-Exp Region 1:MMA Rev-Exp Region 11'!AW98)","v":0}]
[null,"13.3","Section 9010 Health Insurance Providers Fee",{"$f":"SUM('MMA Rev-Exp Region 1:MMA Rev-Exp Region 11'!D99)","v":0},{"$nulls":10},{"$f":"SUM('MMA Rev-Exp Region 1:MMA Rev-Exp Region 11'!O99)","v":0},{"$nulls":10},{"$f":"SUM('MMA Rev-Exp Region 1:MMA Rev-Exp Region 11'!Z99)","v":0},{"$nulls":10},{"$f":"SUM('MMA Rev-Exp Region 1:MMA Rev-Exp Region 11'!AK99)","v":0},{"$nulls":10},{"$f":"SUM('MMA Rev-Exp Region 1:MMA Rev-Exp Region 11'!AV99)","v":0},{"$f":"SUM('MMA Rev-Exp Region 1:MMA Rev-Exp Region 11'!AW99)","v":0}]
[null,"13.4","Other 1",{"$f":"SUM('MMA Rev-Exp Region 1:MMA Rev-Exp Region 11'!D100)","v":0},{"$nulls":10},{"$f":"SUM('MMA Rev-Exp Region 1:MMA Rev-Exp Region 11'!O100)","v":0},{"$nulls":10},{"$f":"SUM('MMA Rev-Exp Region 1:MMA Rev-Exp Region 11'!Z100)","v":0},{"$nulls":10},{"$f":"SUM('MMA Rev-Exp Region 1:MMA Rev-Exp Region 11'!AK100)","v":0},{"$nulls":10},{"$f":"SUM('MMA Rev-Exp Region 1:MMA Rev-Exp Region 11'!AV100)","v":0},{"$f":"SUM('MMA Rev-Exp Region 1:MMA Rev-Exp Region 11'!AW100)","v":0}]
[null,"13.5","Other 2",{"$f":"SUM('MMA Rev-Exp Region 1:MMA Rev-Exp Region 11'!D101)","v":0},{"$nulls":10},{"$f":"SUM('MMA Rev-Exp Region 1:MMA Rev-Exp Region 11'!O101)","v":0},{"$nulls":10},{"$f":"SUM('MMA Rev-Exp Region 1:MMA Rev-Exp Region 11'!Z101)","v":0},{"$nulls":10},{"$f":"SUM('MMA Rev-Exp Region 1:MMA Rev-Exp Region 11'!AK101)","v":0},{"$nulls":10},{"$f":"SUM('MMA Rev-Exp Region 1:MMA Rev-Exp Region 11'!AV101)","v":0},{"$f":"SUM('MMA Rev-Exp Region 1:MMA Rev-Exp Region 11'!AW101)","v":0}]
[null,"13.6","Other 3",{"$f":"SUM('MMA Rev-Exp Region 1:MMA Rev-Exp Region 11'!D102)","v":0},{"$nulls":10},{"$f":"SUM('MMA Rev-Exp Region 1:MMA Rev-Exp Region 11'!O102)","v":0},{"$nulls":10},{"$f":"SUM('MMA Rev-Exp Region 1:MMA Rev-Exp Region 11'!Z102)","v":0},{"$nulls":10},{"$f":"SUM('MMA Rev-Exp Region 1:MMA Rev-Exp Region 11'!AK102)","v":0},{"$nulls":10},{"$f":"SUM('MMA Rev-Exp Region 1:MMA Rev-Exp Region 11'!AV102)","v":0},{"$f":"SUM('MMA Rev-Exp Region 1:MMA Rev-Exp Region 11'!AW102)","v":0}]
[null,"13.7","Total ",{"$f":"SUM(D97:D102)","v":0},{"$nulls":10},{"$f":"SUM(O97:O102)","v":0},{"$nulls":10},{"$f":"SUM(Z97:Z102)","v":0},{"$nulls":10},{"$f":"SUM(AK97:AK102)","v":0},{"$nulls":10},{"$f":"SUM(AV97:AV102)","v":0},{"$f":"SUM(AW97:AW102)","v":0}]
[null,"14.0","Grand Total Expenses",{"$f":"D87+D96+D103","v":0},{"$nulls":10},{"$f":"O87+O96+O103","v":0},{"$nulls":10},{"$f":"Z87+Z96+Z103","v":0},{"$nulls":10},{"$f":"AK87+AK96+AK103","v":0},{"$nulls":10},{"$f":"AV87+AV96+AV103","v":0},{"$f":"AW87+AW96+AW103","v":0}]
[null,"15.0","Underwriting Gain / (Loss)  --- AKA Pre-tax Earnings from Operations",{"$f":"D17-D104","v":0},{"$nulls":10},{"$f":"O17-O104","v":0},{"$nulls":10},{"$f":"Z17-Z104","v":0},{"$nulls":10},{"$f":"AK17-AK104","v":0},{"$nulls":10},{"$f":"AV17-AV104","v":0},{"$f":"AW17-AW104","v":0}]
[null,"16.0","Income Tax Expense",{"$f":"SUM('MMA Rev-Exp Region 1:MMA Rev-Exp Region 11'!D106)","v":0},{"$nulls":10},{"$f":"SUM('MMA Rev-Exp Region 1:MMA Rev-Exp Region 11'!O106)","v":0},{"$nulls":10},{"$f":"SUM('MMA Rev-Exp Region 1:MMA Rev-Exp Region 11'!Z106)","v":0},{"$nulls":10},{"$f":"SUM('MMA Rev-Exp Region 1:MMA Rev-Exp Region 11'!AK106)","v":0},{"$nulls":10},{"$f":"SUM('MMA Rev-Exp Region 1:MMA Rev-Exp Region 11'!AV106)","v":0},{"$f":"SUM('MMA Rev-Exp Region 1:MMA Rev-Exp Region 11'!AW106)","v":0}]
[null,"17.0","Net Underwriting Gain (Loss)",{"$f":"D105-D106","v":0},{"$nulls":10},{"$f":"O105-O106","v":0},{"$nulls":10},{"$f":"Z105-Z106","v":0},{"$nulls":10},{"$f":"AK105-AK106","v":0},{"$nulls":10},{"$f":"AV105-AV106","v":0},{"$f":"AW105-AW106","v":0}]

{"sheet":"MMA Rev-Exp Region 1","index":7,"n_rows":107,"n_cols":59,"rows_kept":107,"hidden":true,"merged":[[6,3,6,13],[6,14,6,24],[6,25,6,35],[6,36,6,46],[6,48,6,58],[9,0,9,2],[10,0,16,0],[17,0,18,2],[17,3,17,13],[17,14,17,24],[17,25,17,35],[17,36,17,46],[17,48,17,58],[19,0,27,0],[28,0,35,0],[36,0,39,0],[40,0,44,0],[45,0,49,0],[50,0,54,0],[55,0,62,0],[63,0,70,0],[71,0,75,0],[76,0,86,0],[87,0,88,2],[87,3,87,13],[87,14,87,24],[87,25,87,35],[87,36,87,46],[87,48,87,58],[89,0,95,0],[96,0,102,0]]}
["MANAGED MEDICAL ASSISTANCE -- REVENUE AND EXPENSE SCHEDULE - REGION 1"]
[]
["Health Plan:",null,{"$f":"'MMA Rev-Exp Summary'!C3","v":0}]
["Reporting Period:",null,{"$f":"IF('MMA Rev-Exp Summary'!C4=0,\"\",'MMA Rev-Exp Summary'!C4)","v":""}]
["Paid Through:",null,{"$f":"IF('MMA Rev-Exp Summary'!C5=0,\"\",'MMA Rev-Exp Summary'!C5)","v":""}]
["Region 1"]
[{"$nulls":3},"JANUARY - MARCH (Q1)",{"$nulls":10},"APRIL - JUNE (Q2)",{"$nulls":10},"JULY - SEPTEMBER (Q3)",{"$nulls":10},"OCTOBER - DECEMBER (Q4)",{"$nulls":11},"TOTAL (TO DATE)"]
[{"$nulls":3},"Total","TANF Non-SMI","TANF SMI","SSI Medicaid Only Non-SMI","SSI Medicaid Only SMI","Dual Eligible","Child Welfare","HIV/AIDS Dual Eligible","HIV/AIDS Medicaid Only","LTC Dual Eligible","LTC Medicaid Only","Total","TANF Non-SMI","TANF SMI","SSI Medicaid Only Non-SMI","SSI Medicaid Only SMI","Dual Eligible","Child Welfare","HIV/AIDS Dual Eligible","HIV/AIDS Medicaid Only","LTC Dual Eligible","LTC Medicaid Only","Total","TANF Non-SMI","TANF SMI","SSI Medicaid Only Non-SMI","SSI Medicaid Only SMI","Dual Eligible","Child Welfare","HIV/AIDS Dual Eligible","HIV/AIDS Medicaid Only","LTC Dual Eligible","LTC Medicaid Only","Total","TANF Non-SMI","TANF SMI","SSI Medicaid Only Non-SMI","SSI Medicaid Only SMI","Dual Eligible","Child Welfare","HIV/AIDS Dual Eligible","HIV/AIDS Medicaid Only","LTC Dual Eligible","LTC Medicaid Only","Prior Year Adjustments","Total","TANF Non-SMI","TANF SMI","SSI Medicaid Only Non-SMI","SSI Medicaid Only SMI","Dual Eligible","Child Welfare","HIV/AIDS Dual Eligible","HIV/AIDS Medicaid Only","LTC Dual Eligible","LTC Medicaid Only"]
["MEMBER MONTHS",null,null,{"$f":"SUM(E9:N9)","v":0},{"$nulls":10},{"$f":"SUM(P9:Y9)","v":0},{"$nulls":10},{"$f":"SUM(AA9:AJ9)","v":0},{"$nulls":10},{"$f":"SUM(AL9:AU9)","v":0},{"$nulls":11},{"$f":"AK9+Z9+O9+D9+AV9","v":0},{"$f":"AL9+AA9+P9+E9","v":0},{"$f":"AM9+AB9+Q9+F9","v":0},0,0,0,0,0,0,0,0]
["REVENUES"]
["Revenues",1.1,"Capitation",{"$f":"SUM(E11:N11)","v":0},{"$nulls":10},{"$f":"SUM(P11:Y11)","v":0},{"$nulls":10},{"$f":"SUM(AA11:AJ11)","v":0},{"$nulls":10},{"$f":"SUM(AL11:AU11)","v":0},{"$nulls":11},{"$f":"SUM(AX11:BG11)+AV11","v":0},{"$f":"E11+P11+AA11+AL11","v":0},0,0,0,0,0,0,0,0,0]
[null,1.2,"Transplant Kick Payments",0,{"$nulls":10},0,{"$nulls":10},0,{"$nulls":10},0,{"$nulls":11},{"$f":"SUM(AX12:BG12)+AV12","v":0},0,0,{"$f":"G12+R12+AC12+AN12","v":0},0,0,0,0,0,0,0]
[null,"1.3","Hepatitis C Kick Payments",0,{"$nulls":10},0,{"$nulls":10},0,{"$nulls":10},0,{"$nulls":11},0,0,0,{"$f":"G13+R13+AC13+AN13","v":0},0,0,0,0,0,0,0]
[null,"1.4.1","Maternity Kick Payments",0,{"$nulls":10},0,{"$nulls":10},0,{"$nulls":10},0,{"$nulls":11},0,0,0,{"$f":"G14+R14+AC14+AN14","v":0},0,0,0,0,0,0,0]
[null,"1.5","ACA § 9010 related payments",0,{"$nulls":10},0,{"$nulls":10},0,{"$nulls":10},0,{"$nulls":11},0,0,0,{"$f":"G15+R15+AC15+AN15","v":0},0,0,0,0,0,0,0]
[null,"1.6","Other Revenue",0,{"$nulls":10},0,{"$nulls":10},0,{"$nulls":10},0,{"$nulls":11},0,0,0,{"$f":"G16+R16+AC16+AN16","v":0},0,0,0,0,0,0,0]
[null,"1.7","Total Revenue",{"$f":"SUM(D11:D16)","v":0},{"$f":"SUM(E11:E16)","v":0},{"$f":"SUM(F11:F16)","v":0},{"$f":"SUM(G11:G16)","v":0},0,0,0,0,0,0,0,{"$f":"SUM(O11:O16)","v":0},{"$f":"SUM(P11:P16)","v":0},{"$f":"SUM(Q11:Q16)","v":0},{"$f":"SUM(R11:R16)","v":0},0,0,0,0,0,0,0,{"$f":"SUM(Z11:Z16)","v":0},{"$f":"SUM(AA11:AA16)","v":0},{"$f":"SUM(AB11:AB16)","v":0},{"$f":"SUM(AC11:AC16)","v":0},0,0,0,0,0,0,0,{"$f":"SUM(AK11:AK16)","v":0},{"$f":"SUM(AL11:AL16)","v":0},{"$f":"SUM(AM11:AM16)","v":0},0,0,0,0,0,0,0,0,0,{"$f":"SUM(AW11:AW16)","v":0},{"$f":"SUM(AX11:AX16)","v":0},{"$f":"SUM(AY11:AY16)","v":0},0,0,0,0,0,0,0,0]
["BENEFIT EXPENSES",null,null,"JANUARY - MARCH (Q1)",{"$nulls":10},"APRIL - JUNE (Q2)",{"$nulls":10},"JULY - SEPTEMBER (Q3)",{"$nulls":10},"OCTOBER - DECEMBER (Q4)",{"$nulls":11},"TOTAL (TO DATE)"]
[{"$nulls":3},"Total","TANF Non-SMI","TANF SMI","SSI Medicaid Only Non-SMI","SSI Medicaid Only SMI","Dual Eligible","Child Welfare","HIV/AIDS Dual Eligible","HIV/AIDS Medicaid Only","LTC Dual Eligible","LTC Medicaid Only","Total","TANF Non-SMI","TANF SMI","SSI Medicaid Only Non-SMI","SSI Medicaid Only SMI","Dual Eligible","Child Welfare","HIV/AIDS Dual Eligible","HIV/AIDS Medicaid Only","LTC Dual Eligible","LTC Medicaid Only","Total","TANF Non-SMI","TANF SMI","SSI Medicaid Only Non-SMI","SSI Medicaid Only SMI","Dual Eligible","Child Welfare","HIV/AIDS Dual Eligible","HIV/AIDS Medicaid Only","LTC Dual Eligible","LTC Medicaid Only","Total","TANF Non-SMI","TANF SMI","SSI Medicaid Only Non-SMI","SSI Medicaid Only SMI","Dual Eligible","Child Welfare","HIV/AIDS Dual Eligible","HIV/AIDS Medicaid Only","LTC Dual Eligible","LTC Medicaid Only","Prior Year Adjustments","Total","TANF Non-SMI","TANF SMI","SSI Medicaid Only Non-SMI","SSI Medicaid Only SMI","Dual Eligible","Child Welfare","HIV/AIDS Dual Eligible","HIV/AIDS Medicaid Only","LTC Dual Eligible","LTC Medicaid Only"]
["Hospital Services",2.1,"Inpatient FFS",{"$f":"SUM(E20:N20)","v":0},{"$nulls":10},{"$f":"SUM(P20:Y20)","v":0},{"$nulls":10},{"$f":"SUM(AA20:AJ20)","v":0},{"$nulls":10},{"$f":"SUM(AL20:AU20)","v":0},{"$nulls":11},{"$f":"SUM(AX20:BG20)+AV20","v":0},{"$f":"E20+P20+AA20+AL20","v":0},0,0,0,0,0,0,0,0,0]
[null,2.2,"Ending IBNP for Inpatient Hospital Services",0,{"$nulls":10},0,{"$nulls":10},0,{"$nulls":10},0,{"$nulls":11},{"$f":"SUM(AX21:BG21)+AV21","v":0},0,0,0,0,0,0,0,0,0,0]
[null,2.3,"Outpatient FFS: ER",0,{"$nulls":10},0,{"$nulls":10},0,{"$nulls":10},0,{"$nulls":11},0,0,0,0,0,0,0,0,0,0,0]
[null,2.4,"Outpatient FFS: Other than ER ",0,{"$nulls":10},0,{"$nulls":10},0,{"$nulls":10},0,{"$nulls":11},0,0,0,0,0,0,0,0,0,0,0]
[null,2.5,"Ending IBNP for Outpatient Hospital Services",0,{"$nulls":10},0,{"$nulls":10},0,{"$nulls":10},0,{"$nulls":11},0,0,0,0,0,0,0,0,0,0,0]
[null,"2.6","Subcapitated Hospital Services",0,{"$nulls":10},0,{"$nulls":10},0,{"$nulls":10},0,{"$nulls":11},0,0,0,0,0,0,0,0,0,0,0]
[null,"2.7","Hospital Settlements/AP",0,{"$nulls":10},0,{"$nulls":10},0,{"$nulls":10},0,{"$nulls":11},0,0,0,0,0,0,0,0,0,0,0]
[null,"2.7.1","Transplant Services",0,{"$nulls":10},0,{"$nulls":10},0,{"$nulls":10},0,{"$nulls":11},0,0,0,0,0,0,0,0,0,0,0]
[null,"2.8","Total Hospital Services",{"$f":"SUM(D20:D27)","v":0},{"$f":"SUM(E20:E27)","v":0},0,0,0,0,0,0,0,0,0,{"$f":"SUM(O20:O27)","v":0},{"$f":"SUM(P20:P27)","v":0},0,0,0,0,0,0,0,0,0,{"$f":"SUM(Z20:Z27)","v":0},{"$f":"SUM(AA20:AA27)","v":0},0,0,0,0,0,0,0,0,0,{"$f":"SUM(AK20:AK27)","v":0},{"$f":"SUM(AL20:AL27)","v":0},0,0,0,0,0,0,0,0,0,{"$f":"SUM(AV20:AV27)","v":0},{"$f":"SUM(AW20:AW27)","v":0},{"$f":"SUM(AX20:AX27)","v":0},0,0,0,0,0,0,0,0,0]
["Professional Services",3.1,"Primary Care FFS",{"$f":"SUM(E29:N29)","v":0},{"$nulls":10},{"$f":"SUM(P29:Y29)","v":0},{"$nulls":10},{"$f":"SUM(AA29:AJ29)","v":0},{"$nulls":10},{"$f":"SUM(AL29:AU29)","v":0},{"$nulls":11},{"$f":"SUM(AX29:BG29)+AV29","v":0},{"$f":"E29+P29+AA29+AL29","v":0},0,0,0,0,0,0,0,0,0]
[null,3.2,"Specialty Care FFS",0,{"$nulls":10},0,{"$nulls":10},0,{"$nulls":10},0,{"$nulls":11},0,0,0,0,0,0,0,0,0,0,0]
[null,3.3,"Other Professional FFS",0,{"$nulls":10},0,{"$nulls":10},0,{"$nulls":10},0,{"$nulls":11},0,0,0,0,0,0,0,0,0,0,0]
[null,"3.4","§ 1202 PCP Payments to providers",0,{"$nulls":10},{"$f":"SUM(P32:Y32)","v":0},{"$nulls":10},{"$f":"SUM(AA32:AJ32)","v":0},{"$nulls":10},{"$f":"SUM(AL32:AU32)","v":0},{"$nulls":11},{"$f":"SUM(AX32:BG32)+AV32","v":0},0,0,0,0,0,0,0,0,0,0]
[null,"3.5","Subcapitated Professional Services",0,{"$nulls":10},0,{"$nulls":10},0,{"$nulls":10},0,{"$nulls":11},{"$f":"SUM(AX33:BG33)+AV33","v":0},0,0,0,0,0,0,0,0,0,0]
[null,"3.6","Ending IBNP for Professional Services",0,{"$nulls":10},0,{"$nulls":10},0,{"$nulls":10},0,{"$nulls":11},0,0,0,0,0,0,0,0,0,0,0]
[null,"3.7","Professional Settlements/AP",0,{"$nulls":10},0,{"$nulls":10},0,{"$nulls":10},0,{"$nulls":11},0,0,0,0,0,0,0,0,0,0,0]
[null,"3.8","Total Physician Services",{"$f":"SUM(D29:D35)","v":0},0,0,0,0,0,0,0,0,0,0,0,0,0,0,0,0,0,0,0,0,0,0,0,0,0,0,0,0,0,0,0,0,0,0,0,0,0,0,0,0,0,0,0,0,0,0,0,0,0,0,0,0,0,0,0]
["Maternity Services","4.1.1","Maternity Services",{"$f":"SUM(E37:N37)","v":0},{"$nulls":10},{"$f":"SUM(P37:Y37)","v":0},{"$nulls":10},{"$f":"SUM(AA37:AJ37)","v":0},{"$nulls":10},{"$f":"SUM(AL37:AU37)","v":0},{"$nulls":11},{"$f":"SUM(AX37:BG37)+AV37","v":0},{"$f":"E37+P37+AA37+AL37","v":0},{"$f":"F37+Q37+AB37+AM37","v":0},{"$f":"G37+R37+AC37+AN37","v":0},0,0,0,0,0,0,0]
[null,"4.2.1","Ending IBNP for Maternity Services",{"$f":"SUM(E38:N38)","v":0},{"$nulls":10},{"$f":"SUM(P38:Y38)","v":0},{"$nulls":10},{"$f":"SUM(AA38:AJ38)","v":0},{"$nulls":10},{"$f":"SUM(AL38:AU38)","v":0},{"$nulls":11},{"$f":"SUM(AX38:BG38)+AV38","v":0},{"$f":"E38+P38+AA38+AL38","v":0},0,{"$f":"G38+R38+AC38+AN38","v":0},0,0,0,0,0,0,0]
[null,"4.3.1","Maternity Settlements/AP",{"$f":"SUM(E39:N39)","v":0},{"$nulls":10},{"$f":"SUM(P39:Y39)","v":0},{"$nulls":10},{"$f":"SUM(AA39:AJ39)","v":0},{"$nulls":10},{"$f":"SUM(AL39:AU39)","v":0},{"$nulls":11},{"$f":"SUM(AX39:BG39)+AV39","v":0},{"$f":"E39+P39+AA39+AL39","v":0},0,{"$f":"G39+R39+AC39+AN39","v":0},0,0,0,0,0,0,0]
[null,"4.4.1","Total Maternity Services",{"$f":"SUM(D37:D39)","v":0},0,0,0,0,0,0,0,0,0,0,{"$f":"SUM(O37:O39)","v":0},0,0,0,0,0,{"$f":"SUM(U37:U39)","v":0},0,0,0,0,0,0,0,0,0,0,0,0,{"$f":"SUM(AH37:AH39)","v":0},0,0,0,0,0,0,0,0,0,0,0,0,0,0,0,{"$f":"SUM(AX37:AX39)","v":0},{"$f":"SUM(AY37:AY39)","v":0},0,0,0,0,0,0,0,0]
["Mental Health",5.1,"Mental Health & Substance Abuse FFS",{"$f":"SUM(E41:N41)","v":0},{"$nulls":10},{"$f":"SUM(P41:Y41)","v":0},{"$nulls":10},{"$f":"SUM(AA41:AJ41)","v":0},{"$nulls":10},{"$f":"SUM(AL41:AU41)","v":0},{"$nulls":11},{"$f":"SUM(AX41:BG41)+AV41","v":0},{"$f":"E41+P41+AA41+AL41","v":0},{"$f":"F41+Q41+AB41+AM41","v":0},0,0,0,0,0,0,0,0]
[null,5.2,"Mental Health & Substance Abuse Subcapitation",{"$f":"SUM(E42:N42)","v":0},{"$nulls":10},{"$f":"SUM(P42:Y42)","v":0},{"$nulls":10},{"$f":"SUM(AA42:AJ42)","v":0},{"$nulls":10},{"$f":"SUM(AL42:AU42)","v":0},{"$nulls":11},{"$f":"SUM(AX42:BG42)+AV42","v":0},{"$f":"E42+P42+AA42+AL42","v":0},0,{"$f":"G42+R42+AC42+AN42","v":0},0,0,0,0,0,0,0]
[null,5.3,"Ending IBNP for Mental Health & Substance Abuse",{"$f":"SUM(E43:N43)","v":0},{"$nulls":10},{"$f":"SUM(P43:Y43)","v":0},{"$nulls":10},{"$f":"SUM(AA43:AJ43)","v":0},{"$nulls":10},{"$f":"SUM(AL43:AU43)","v":0},{"$nulls":11},{"$f":"SUM(AX43:BG43)+AV43","v":0},{"$f":"E43+P43+AA43+AL43","v":0},0,{"$f":"G43+R43+AC43+AN43","v":0},0,0,0,0,0,0,0]
[null,"5.4","Mental Health Settlements/AP",{"$f":"SUM(E44:N44)","v":0},{"$nulls":10},{"$f":"SUM(P44:Y44)","v":0},{"$nulls":10},{"$f":"SUM(AA44:AJ44)","v":0},{"$nulls":10},{"$f":"SUM(AL44:AU44)","v":0},{"$nulls":11},{"$f":"SUM(AX44:BG44)+AV44","v":0},{"$f":"E44+P44+AA44+AL44","v":0},0,{"$f":"G44+R44+AC44+AN44","v":0},0,0,0,0,0,0,0]
[null,"5.5","Total Mental Health & Substance Abuse Services",{"$f":"SUM(D41:D44)","v":0},{"$f":"SUM(E41:E44)","v":0},0,0,0,{"$f":"SUM(I41:I44)","v":0},0,0,0,0,0,0,0,0,0,0,0,0,0,0,0,0,0,0,0,0,0,0,0,0,0,0,0,0,0,0,0,0,0,0,0,0,0,0,0,0,0,0,0,0,0,0,0,0,0,0]
["Dental",6.1,"Dental FFS",{"$f":"SUM(E46:N46)","v":0},{"$nulls":10},{"$f":"SUM(P46:Y46)","v":0},{"$nulls":10},{"$f":"SUM(AA46:AJ46)","v":0},{"$nulls":10},{"$f":"SUM(AL46:AU46)","v":0},{"$nulls":11},{"$f":"SUM(AX46:BG46)+AV46","v":0},{"$f":"E46+P46+AA46+AL46","v":0},{"$f":"F46+Q46+AB46+AM46","v":0},0,0,0,0,0,0,0,0]
[null,6.2,"Dental Subcapitation",{"$f":"SUM(E47:N47)","v":0},{"$nulls":10},{"$f":"SUM(P47:Y47)","v":0},{"$nulls":10},{"$f":"SUM(AA47:AJ47)","v":0},{"$nulls":10},{"$f":"SUM(AL47:AU47)","v":0},{"$nulls":11},{"$f":"SUM(AX47:BG47)+AV47","v":0},{"$f":"E47+P47+AA47+AL47","v":0},0,{"$f":"G47+R47+AC47+AN47","v":0},0,0,0,0,0,0,0]
[null,6.3,"Ending IBNP for Dental Services",{"$f":"SUM(E48:N48)","v":0},{"$nulls":10},{"$f":"SUM(P48:Y48)","v":0},{"$nulls":10},{"$f":"SUM(AA48:AJ48)","v":0},{"$nulls":10},{"$f":"SUM(AL48:AU48)","v":0},{"$nulls":11},{"$f":"SUM(AX48:BG48)+AV48","v":0},{"$f":"E48+P48+AA48+AL48","v":0},0,{"$f":"G48+R48+AC48+AN48","v":0},0,0,0,0,0,0,0]
[null,"6.4","Dental Settlements/AP",{"$f":"SUM(E49:N49)","v":0},{"$nulls":10},{"$f":"SUM(P49:Y49)","v":0},{"$nulls":10},{"$f":"SUM(AA49:AJ49)","v":0},{"$nulls":10},{"$f":"SUM(AL49:AU49)","v":0},{"$nulls":11},{"$f":"SUM(AX49:BG49)+AV49","v":0},{"$f":"E49+P49+AA49+AL49","v":0},0,{"$f":"G49+R49+AC49+AN49","v":0},0,0,0,0,0,0,0]
[null,"6.5","Total Dental Services",{"$f":"SUM(D46:D49)","v":0},{"$f":"SUM(E46:E49)","v":0},0,0,0,0,0,0,0,0,0,0,0,0,0,0,0,0,0,0,0,0,0,0,0,0,0,0,0,0,0,0,0,0,0,0,0,0,0,0,0,0,0,0,0,0,0,0,0,0,0,0,0,0,0,0]
["Transportation",7.1,"Transportation FFS",{"$f":"SUM(E51:N51)","v":0},{"$nulls":10},{"$f":"SUM(P51:Y51)","v":0},{"$nulls":10},{"$f":"SUM(AA51:AJ51)","v":0},{"$nulls":10},{"$f":"SUM(AL51:AU51)","v":0},{"$nulls":11},{"$f":"SUM(AX51:BG51)+AV51","v":0},{"$f":"E51+P51+AA51+AL51","v":0},{"$f":"F51+Q51+AB51+AM51","v":0},0,0,0,0,0,0,0,0]
[null,7.2,"Transportation Subcapitation",{"$f":"SUM(E52:N52)","v":0},{"$nulls":10},{"$f":"SUM(P52:Y52)","v":0},{"$nulls":10},{"$f":"SUM(AA52:AJ52)","v":0},{"$nulls":10},{"$f":"SUM(AL52:AU52)","v":0},{"$nulls":11},{"$f":"SUM(AX52:BG52)+AV52","v":0},{"$f":"E52+P52+AA52+AL52","v":0},0,{"$f":"G52+R52+AC52+AN52","v":0},0,0,0,0,0,0,0]
[null,7.3,"Ending IBNP for Transportation",{"$f":"SUM(E53:N53)","v":0},{"$nulls":10},{"$f":"SUM(P53:Y53)","v":0},{"$nulls":10},{"$f":"SUM(AA53:AJ53)","v":0},{"$nulls":10},{"$f":"SUM(AL53:AU53)","v":0},{"$nulls":11},{"$f":"SUM(AX53:BG53)+AV53","v":0},{"$f":"E53+P53+AA53+AL53","v":0},0,{"$f":"G53+R53+AC53+AN53","v":0},0,0,0,0,0,0,0]
[null,"7.4","Transportation Settlements/AP",{"$f":"SUM(E54:N54)","v":0},{"$nulls":10},{"$f":"SUM(P54:Y54)","v":0},{"$nulls":10},{"$f":"SUM(AA54:AJ54)","v":0},{"$nulls":10},{"$f":"SUM(AL54:AU54)","v":0},{"$nulls":11},{"$f":"SUM(AX54:BG54)+AV54","v":0},{"$f":"E54+P54+AA54+AL54","v":0},0,{"$f":"G54+R54+AC54+AN54","v":0},0,0,0,0,0,0,0]
[null,"7.5","Total Transportation Services",{"$f":"SUM(D51:D54)","v":0},{"$f":"SUM(E51:E54)","v":0},0,0,0,0,0,0,0,0,0,0,0,0,0,0,0,0,0,0,{"$f":"SUM(X51:X54)","v":0},0,0,0,0,0,0,0,0,0,0,0,0,0,0,0,0,0,0,0,0,0,0,0,0,0,0,0,0,0,0,0,0,0,0,0]
["Pharmacy",8.1,"Prescription Drugs FFS",{"$f":"SUM(E56:N56)","v":0},{"$nulls":10},{"$f":"SUM(P56:Y56)","v":0},{"$nulls":10},{"$f":"SUM(AA56:AJ56)","v":0},{"$nulls":10},{"$f":"SUM(AL56:AU56)","v":0},{"$nulls":11},{"$f":"SUM(AX56:BG56)+AV56","v":0},{"$f":"E56+P56+AA56+AL56","v":0},0,0,0,0,0,0,0,0,0]
[null,"8.2","Hepatitis C Prescription Drug FFS",0,{"$nulls":10},0,{"$nulls":10},0,{"$nulls":10},0,{"$nulls":11},{"$f":"SUM(AX57:BG57)+AV57","v":0},0,0,0,0,0,0,0,0,0,0]
[null,"8.3","Ending IBNP for Prescription Drugs",0,{"$nulls":10},0,{"$nulls":10},0,{"$nulls":10},0,{"$nulls":11},0,0,0,0,0,0,0,0,0,0,0]
[null,"8.4","Prescription Drug Rebates ",0,{"$nulls":10},0,{"$nulls":10},0,{"$nulls":10},0,{"$nulls":11},0,0,0,0,0,0,0,0,0,0,0]
[null,"8.5","Ending accrual for Rebates receivable",0,{"$nulls":10},0,{"$nulls":10},0,{"$nulls":10},0,{"$nulls":11},0,0,0,0,0,0,0,0,0,0,0]
[null,"8.6","Prescription Drugs Subcapitation",0,{"$nulls":10},0,{"$nulls":10},0,{"$nulls":10},0,{"$nulls":11},0,0,0,0,0,0,0,0,0,0,0]
[null,"8.7","Prescription Drug Settlements/AP",0,{"$nulls":10},0,{"$nulls":10},0,{"$nulls":10},0,{"$nulls":11},0,0,0,0,0,0,0,0,0,0,0]
[null,"8.8","Total Prescription Drugs",{"$f":"SUM(D56:D62)","v":0},{"$f":"SUM(E56:E62)","v":0},0,0,0,0,0,0,0,0,0,0,0,0,0,0,0,0,0,0,0,0,0,0,0,0,0,0,0,0,0,0,0,0,0,0,0,0,0,0,0,0,0,0,0,0,0,0,0,0,0,0,0,0,0,0]
["Other Services",9.1,"Home Health, Private Duty Nursing, Personal Care FFS",{"$f":"SUM(E64:L64)","v":0},{"$nulls":10},{"$f":"SUM(P64:W64)","v":0},{"$nulls":10},{"$f":"SUM(AA64:AH64)","v":0},{"$nulls":10},{"$f":"SUM(AL64:AS64)","v":0},{"$nulls":11},{"$f":"SUM(AX64:BE64)+AV64","v":0},{"$f":"E64+P64+AA64+AL64","v":0},0,0,0,0,0,0,0]
[null,"9.2","Hospice FFS",{"$f":"SUM(E65:L65)","v":0},{"$nulls":10},{"$f":"SUM(P65:W65)","v":0},{"$nulls":10},{"$f":"SUM(AA65:AH65)","v":0},{"$nulls":10},{"$f":"SUM(AL65:AS65)","v":0},{"$nulls":11},{"$f":"SUM(AX65:BE65)+AV65","v":0},0,0,0,0,0,0,0,0]
[null,"9.3","DME FFS",{"$f":"SUM(E66:L66)","v":0},{"$nulls":10},{"$f":"SUM(P66:W66)","v":0},{"$nulls":10},{"$f":"SUM(AA66:AH66)","v":0},{"$nulls":10},{"$f":"SUM(AL66:AS66)","v":0},{"$nulls":11},0,0,0,0,0,0,0,0,0]
[null,"9.4","Other State Plan Services FFS",{"$f":"SUM(E67:N67)","v":0},{"$nulls":10},{"$f":"SUM(P67:Y67)","v":0},{"$nulls":10},{"$f":"SUM(AA67:AJ67)","v":0},{"$nulls":10},{"$f":"SUM(AL67:AU67)","v":0},{"$nulls":11},{"$f":"SUM(AX67:BG67)+AV67","v":0},0,0,0,0,0,0,0,0,0,0]
[null,"9.5","Other Services Subcapitation",{"$f":"SUM(E68:N68)","v":0},{"$nulls":10},{"$f":"SUM(P68:Y68)","v":0},{"$nulls":10},{"$f":"SUM(AA68:AJ68)","v":0},{"$nulls":10},{"$f":"SUM(AL68:AU68)","v":0},{"$nulls":11},{"$f":"SUM(AX68:BG68)+AV68","v":0},0,0,0,0,0,0,0,0,0,0]
[null,"9.6","Ending IBNP for Other Services",{"$f":"SUM(E69:N69)","v":0},{"$nulls":10},{"$f":"SUM(P69:Y69)","v":0},{"$nulls":10},{"$f":"SUM(AA69:AJ69)","v":0},{"$nulls":10},{"$f":"SUM(AL69:AU69)","v":0},{"$nulls":11},{"$f":"SUM(AX69:BG69)+AV69","v":0},0,0,0,0,0,0,0,0,0,0]
[null,"9.7","Other Services Settlements/AP",{"$f":"SUM(E70:N70)","v":0},{"$nulls":10},{"$f":"SUM(P70:Y70)","v":0},{"$nulls":10},{"$f":"SUM(AA70:AJ70)","v":0},{"$nulls":10},{"$f":"SUM(AL70:AU70)","v":0},{"$nulls":11},{"$f":"SUM(AX70:BG70)+AV70","v":0},0,0,0,0,0,0,0,0,0,0]
[null,"9.8","Total Other Services",{"$f":"SUM(D64:D70)","v":0},{"$f":"SUM(E64:E70)","v":0},0,0,0,0,0,0,0,{"$f":"SUM(M67:M70)","v":0},{"$f":"SUM(N67:N70)","v":0},0,0,0,0,0,0,0,0,0,{"$f":"SUM(X67:X70)","v":0},{"$f":"SUM(Y67:Y70)","v":0},0,0,0,0,0,0,0,0,0,{"$f":"SUM(AI67:AI70)","v":0},{"$f":"SUM(AJ67:AJ70)","v":0},0,0,0,0,0,0,0,0,0,{"$f":"SUM(AT67:AT70)","v":0},{"$f":"SUM(AU67:AU70)","v":0},{"$f":"SUM(AV64:AV70)","v":0},0,0,0,0,0,0,0,{"$f":"SUM(BD64:BD70)","v":0},{"$f":"SUM(BE64:BE70)","v":0},{"$f":"SUM(BF67:BF70)","v":0},{"$f":"SUM(BG67:BG70)","v":0}]
["Expanded Benefits","10.1","Expanded Benefits FFS",{"$f":"SUM(E72:N72)","v":0},{"$nulls":10},{"$f":"SUM(P72:Y72)","v":0},{"$nulls":10},{"$f":"SUM(AA72:AJ72)","v":0},{"$nulls":10},{"$f":"SUM(AL72:AU72)","v":0},{"$nulls":11},{"$f":"SUM(AX72:BG72)+AV72","v":0},{"$f":"E72+P72+AA72+AL72","v":0},{"$f":"F72+Q72+AB72+AM72","v":0},0,0,0,0,0,0,0,0]
[null,"10.2","Expanded Benefits Subcapitation",{"$f":"SUM(E73:N73)","v":0},{"$nulls":10},{"$f":"SUM(P73:Y73)","v":0},{"$nulls":10},{"$f":"SUM(AA73:AJ73)","v":0},{"$nulls":10},{"$f":"SUM(AL73:AU73)","v":0},{"$nulls":11},{"$f":"SUM(AX73:BG73)+AV73","v":0},{"$f":"E73+P73+AA73+AL73","v":0},0,{"$f":"G73+R73+AC73+AN73","v":0},0,0,0,0,0,0,0]
[null,"10.3","Ending IBNP for Expanded Benefits",{"$f":"SUM(E74:N74)","v":0},{"$nulls":10},{"$f":"SUM(P74:Y74)","v":0},{"$nulls":10},{"$f":"SUM(AA74:AJ74)","v":0},{"$nulls":10},{"$f":"SUM(AL74:AU74)","v":0},{"$nulls":11},{"$f":"SUM(AX74:BG74)+AV74","v":0},{"$f":"E74+P74+AA74+AL74","v":0},0,{"$f":"G74+R74+AC74+AN74","v":0},0,0,0,0,0,0,0]
[null,"10.4","Expanded Benefits Settlements/AP",{"$f":"SUM(E75:N75)","v":0},{"$nulls":10},{"$f":"SUM(P75:Y75)","v":0},{"$nulls":10},{"$f":"SUM(AA75:AJ75)","v":0},{"$nulls":10},{"$f":"SUM(AL75:AU75)","v":0},{"$nulls":11},{"$f":"SUM(AX75:BG75)+AV75","v":0},{"$f":"E75+P75+AA75+AL75","v":0},0,{"$f":"G75+R75+AC75+AN75","v":0},0,0,0,0,0,0,0]
[null,"10.5","Total Expanded Benefits",{"$f":"SUM(D72:D75)","v":0},{"$f":"SUM(E72:E75)","v":0},0,0,0,0,0,0,0,0,0,0,0,0,0,0,0,0,0,0,{"$f":"SUM(X72:X75)","v":0},0,0,0,0,0,0,0,0,0,0,0,0,0,0,0,0,0,0,0,0,0,0,0,0,0,0,0,0,0,0,0,0,0,0,0]
["Totals Before and After Reinsurance","11.1","Total Services Paid Directly FFS",{"$f":"D20+SUM(D22:D23,D27)+SUM(D29:D32)+D37+D41+D46+D51+SUM(D56:D57)+SUM(D59:D60)+SUM(D64:D67)+D72","v":0},{"$f":"E20+SUM(E22:E23,E27)+SUM(E29:E32)+E37+E41+E46+E51+SUM(E56:E57)+SUM(E59:E60)+SUM(E64:E67)+E72","v":0},{"$f":"F20+SUM(F22:F23,F27)+SUM(F29:F32)+F37+F41+F46+F51+SUM(F56:F57)+SUM(F59:F60)+SUM(F64:F67)+F72","v":0},{"$f":"G20+SUM(G22:G23,G27)+SUM(G29:G32)+G37+G41+G46+G51+SUM(G56:G57)+SUM(G59:G60)+SUM(G64:G67)+G72","v":0},0,0,0,0,0,0,0,{"$f":"O20+SUM(O22:O23,O27)+SUM(O29:O32)+O37+O41+O46+O51+SUM(O56:O57)+SUM(O59:O60)+SUM(O64:O67)+O72","v":0},{"$f":"P20+SUM(P22:P23,P27)+SUM(P29:P32)+P37+P41+P46+P51+SUM(P56:P57)+SUM(P59:P60)+SUM(P64:P67)+P72","v":0},0,0,0,0,0,0,0,0,0,{"$f":"Z20+SUM(Z22:Z23,Z27)+SUM(Z29:Z32)+Z37+Z41+Z46+Z51+SUM(Z56:Z57)+SUM(Z59:Z60)+SUM(Z64:Z67)+Z72","v":0},{"$f":"AA20+SUM(AA22:AA23,AA27)+SUM(AA29:AA32)+AA37+AA41+AA46+AA51+SUM(AA56:AA57)+SUM(AA59:AA60)+SUM(AA64:AA67)+AA72","v":0},0,0,0,0,0,0,0,0,0,{"$f":"AK20+SUM(AK22:AK23,AK27)+SUM(AK29:AK32)+AK37+AK41+AK46+AK51+SUM(AK56:AK57)+SUM(AK59:AK60)+SUM(AK64:AK67)+AK72","v":0},{"$f":"AL20+SUM(AL22:AL23,AL27)+SUM(AL29:AL32)+AL37+AL41+AL46+AL51+SUM(AL56:AL57)+SUM(AL59:AL60)+SUM(AL64:AL67)+AL72","v":0},0,0,0,0,0,0,0,0,0,{"$f":"AV20+SUM(AV22:AV23,AV27)+SUM(AV29:AV32)+AV37+AV41+AV46+AV51+SUM(AV56:AV57)+SUM(AV59:AV60)+SUM(AV64:AV67)+AV72","v":0},{"$f":"AW20+SUM(AW22:AW23,AW27)+SUM(AW29:AW32)+AW37+AW41+AW46+AW51+SUM(AW56:AW57)+SUM(AW59:AW60)+SUM(AW64:AW67)+AW72","v":0},{"$f":"AX20+SUM(AX22:AX23,AX27)+SUM(AX29:AX32)+AX37+AX41+AX46+AX51+SUM(AX56:AX57)+SUM(AX59:AX60)+SUM(AX64:AX67)+AX72","v":0},0,0,0,0,0,0,0,0,0]
[null,"11.2","Total Services Paid Directly -- IBNP",{"$f":"D21+D24+D34+D38+D43+D48+D53+D58+D69+D74","v":0},{"$f":"E21+E24+E34+E38+E43+E48+E53+E58+E69+E74","v":0},{"$f":"F21+F24+F34+F38+F43+F48+F53+F58+F69+F74","v":0},{"$f":"G21+G24+G34+G38+G43+G48+G53+G58+G69+G74","v":0},0,0,0,0,0,0,0,{"$f":"O21+O24+O34+O38+O43+O48+O53+O58+O69+O74","v":0},{"$f":"P21+P24+P34+P38+P43+P48+P53+P58+P69+P74","v":0},0,0,0,0,0,0,0,0,0,{"$f":"Z21+Z24+Z34+Z38+Z43+Z48+Z53+Z58+Z69+Z74","v":0},{"$f":"AA21+AA24+AA34+AA38+AA43+AA48+AA53+AA58+AA69+AA74","v":0},0,0,0,0,0,0,0,0,0,{"$f":"AK21+AK24+AK34+AK38+AK43+AK48+AK53+AK58+AK69+AK74","v":0},{"$f":"AL21+AL24+AL34+AL38+AL43+AL48+AL53+AL58+AL69+AL74","v":0},0,0,0,0,0,0,0,0,0,{"$f":"AV21+AV24+AV34+AV38+AV43+AV48+AV53+AV58+AV69+AV74","v":0},{"$f":"AW21+AW24+AW34+AW38+AW43+AW48+AW53+AW58+AW69+AW74","v":0},{"$f":"AX21+AX24+AX34+AX38+AX43+AX48+AX53+AX58+AX69+AX74","v":0},0,0,0,0,0,0,0,0,0]
[null,"11.3","Total Services Paid through Subcapitation",{"$f":"D25+D33+D42+D47+D52+D61+D68+D73","v":0},{"$f":"E25+E33+E42+E47+E52+E61+E68+E73","v":0},{"$f":"F25+F33+F42+F47+F52+F61+F68+F73","v":0},{"$f":"G25+G33+G42+G47+G52+G61+G68+G73","v":0},0,0,0,0,0,0,0,{"$f":"O25+O33+O42+O47+O52+O61+O68+O73","v":0},{"$f":"P25+P33+P42+P47+P52+P61+P68+P73","v":0},0,0,0,0,0,0,0,0,0,{"$f":"Z25+Z33+Z42+Z47+Z52+Z61+Z68+Z73","v":0},{"$f":"AA25+AA33+AA42+AA47+AA52+AA61+AA68+AA73","v":0},0,0,0,0,0,0,0,0,0,{"$f":"AK25+AK33+AK42+AK47+AK52+AK61+AK68+AK73","v":0},{"$f":"AL25+AL33+AL42+AL47+AL52+AL61+AL68+AL73","v":0},0,0,0,0,0,0,0,0,0,{"$f":"AV25+AV33+AV42+AV47+AV52+AV61+AV68+AV73","v":0},{"$f":"AW25+AW33+AW42+AW47+AW52+AW61+AW68+AW73","v":0},{"$f":"AX25+AX33+AX42+AX47+AX52+AX61+AX68+AX73","v":0},0,0,0,0,0,0,0,0,0]
[null,"11.4","Total Services Paid by Settlements/AP",{"$f":"D26+D35+D39+D44+D49+D54+D62+D70+D75","v":0},{"$f":"E26+E35+E39+E44+E49+E54+E62+E70+E75","v":0},{"$f":"F26+F35+F39+F44+F49+F54+F62+F70+F75","v":0},{"$f":"G26+G35+G39+G44+G49+G54+G62+G70+G75","v":0},0,0,0,0,0,0,0,{"$f":"O26+O35+O39+O44+O49+O54+O62+O70+O75","v":0},{"$f":"P26+P35+P39+P44+P49+P54+P62+P70+P75","v":0},0,0,0,0,0,0,0,0,0,{"$f":"Z26+Z35+Z39+Z44+Z49+Z54+Z62+Z70+Z75","v":0},{"$f":"AA26+AA35+AA39+AA44+AA49+AA54+AA62+AA70+AA75","v":0},0,0,0,0,0,0,0,0,0,{"$f":"AK26+AK35+AK39+AK44+AK49+AK54+AK62+AK70+AK75","v":0},{"$f":"AL26+AL35+AL39+AL44+AL49+AL54+AL62+AL70+AL75","v":0},0,0,0,0,0,0,0,0,0,{"$f":"AV26+AV35+AV39+AV44+AV49+AV54+AV62+AV70+AV75","v":0},{"$f":"AW26+AW35+AW39+AW44+AW49+AW54+AW62+AW70+AW75","v":0},{"$f":"AX26+AX35+AX39+AX44+AX49+AX54+AX62+AX70+AX75","v":0},0,0,0,0,0,0,0,0,0]
[null,"11.5","TPL & Fraud/Abuse Recoveries",{"$f":"SUM(E81:N81)","v":0},{"$nulls":10},{"$f":"SUM(P81:Y81)","v":0},{"$nulls":10},{"$f":"SUM(AA81:AJ81)","v":0},{"$nulls":10},{"$f":"SUM(AL81:AU81)","v":0},{"$nulls":11},{"$f":"SUM(AX81:BG81)+AV81","v":0},{"$f":"E81+P81+AA81+AL81","v":0},{"$f":"F81+Q81+AB81+AM81","v":0},{"$f":"G81+R81+AC81+AN81","v":0},{"$f":"H81+S81+AD81+AO81","v":0},0,0,0,0,0,0]
[null,"11.6.1","Premium Deficiency Reserve",{"$f":"SUM(E82:N82)","v":0},{"$nulls":10},{"$f":"SUM(P82:Y82)","v":0},{"$nulls":10},{"$f":"SUM(AA82:AJ82)","v":0},{"$nulls":10},{"$f":"SUM(AL82:AU82)","v":0},{"$nulls":11},{"$f":"SUM(AX82:BG82)+AV82","v":0},{"$f":"E82+P82+AA82+AL82","v":0},0,{"$f":"G82+R82+AC82+AN82","v":0},0,0,0,0,0,0,0]
[null,"11.7","Subtotal Benefit Expense before Reinsurance",{"$f":"SUM(D77:D82)","v":0},{"$f":"SUM(E77:E82)","v":0},0,0,0,0,0,0,0,0,0,0,0,0,0,0,0,0,0,0,0,0,0,0,0,0,0,0,0,0,0,0,0,0,0,0,0,0,0,0,0,0,0,0,0,0,0,0,0,0,0,0,0,0,0,0]
[null,"11.8","Reinsurance Premiums",{"$f":"SUM(E84:N84)","v":0},{"$nulls":10},{"$f":"SUM(P84:Y84)","v":0},{"$nulls":10},{"$f":"SUM(AA84:AJ84)","v":0},{"$nulls":10},{"$f":"SUM(AL84:AU84)","v":0},{"$nulls":11},{"$f":"SUM(AX84:BG84)+AV84","v":0},{"$f":"E84+P84+AA84+AL84","v":0},{"$f":"F84+Q84+AB84+AM84","v":0},0,0,0,0,0,0,0,0]
[null,"11.9","Reinsurance Recoveries",{"$f":"SUM(E85:N85)","v":0},{"$nulls":10},{"$f":"SUM(P85:Y85)","v":0},{"$nulls":10},{"$f":"SUM(AA85:AJ85)","v":0},{"$nulls":10},{"$f":"SUM(AL85:AU85)","v":0},{"$nulls":11},{"$f":"SUM(AX85:BG85)+AV85","v":0},{"$f":"E85+P85+AA85+AL85","v":0},0,{"$f":"G85+R85+AC85+AN85","v":0},0,0,0,0,0,0,0]
[null,"11.10","Net cost of Reinsurance",{"$f":"SUM(D84:D85)","v":0},{"$f":"SUM(E84:E85)","v":0},0,0,0,0,0,0,0,0,0,{"$f":"SUM(O84:O85)","v":0},{"$f":"SUM(P84:P85)","v":0},0,0,0,0,0,0,0,0,0,{"$f":"SUM(Z84:Z85)","v":0},{"$f":"SUM(AA84:AA85)","v":0},0,0,0,0,0,0,0,0,0,{"$f":"SUM(AK84:AK85)","v":0},{"$f":"SUM(AL84:AL85)","v":0},{"$f":"SUM(AM84:AM85)","v":0},0,0,0,0,0,0,0,0,0,{"$f":"SUM(AW84:AW85)","v":0},{"$f":"SUM(AX84:AX85)","v":0},0,{"$f":"SUM(AZ84:AZ85)","v":0},0,{"$f":"SUM(BB84:BB85)","v":0},0,0,0,0,0]
[null,"11.11","Grand Total Medical Benefit Expense Net of Reinsurance",{"$f":"D83+D86","v":0},{"$f":"E83+E86","v":0},0,0,0,0,0,0,0,0,0,{"$f":"O83+O86","v":0},{"$f":"P83+P86","v":0},0,0,0,0,0,0,0,0,0,{"$f":"Z83+Z86","v":0},{"$f":"AA83+AA86","v":0},0,0,0,0,0,0,0,0,0,{"$f":"AK83+AK86","v":0},{"$f":"AL83+AL86","v":0},{"$f":"AM83+AM86","v":0},0,0,0,0,0,0,0,0,0,{"$f":"AW83+AW86","v":0},{"$f":"AX83+AX86","v":0},{"$f":"AY83+AY86","v":0},0,0,0,0,0,0,0,0]
["Administrative Expenses, Government-Mandated Assessments, Taxes, and Fees ",null,null,"JANUARY - MARCH (Q1)",{"$nulls":10},"APRIL - JUNE (Q2)",{"$nulls":10},"JULY - SEPTEMBER (Q3)",{"$nulls":10},"OCTOBER - DECEMBER (Q4)",{"$nulls":11},"TOTAL (TO DATE)"]
[{"$nulls":3},"Total","Health Plan","Corporate",{"$nulls":8},"Total","Health Plan","Corporate",{"$nulls":8},"Total","Health Plan","Corporate",{"$nulls":8},"Total","Health Plan","Corporate",{"$nulls":8},"Prior Year Adjustments","Total","Health Plan","Corporate"]
["Administrative Expenses","12.1","Salaries & Benefits",{"$f":"E90+F90","v":0},{"$nulls":10},{"$f":"P90+Q90","v":0},{"$nulls":10},{"$f":"AA90+AB90","v":0},{"$nulls":10},{"$f":"AL90+AM90","v":0},{"$nulls":11},{"$f":"AX90+AY90+AV90","v":0},{"$f":"E90+P90+AA90+AL90","v":0},{"$f":"F90+Q90+AB90+AM90","v":0}]
[null,"12.2","Administrative Services",{"$f":"E91+F91","v":0},{"$nulls":10},{"$f":"P91+Q91","v":0},{"$nulls":10},{"$f":"AA91+AB91","v":0},{"$nulls":10},{"$f":"AL91+AM91","v":0},{"$nulls":11},0,{"$f":"E91+P91+AA91+AL91","v":0},0]
[null,"12.3","Information Systems",0,{"$nulls":10},0,{"$nulls":10},0,{"$nulls":10},0,{"$nulls":11},0,0,0]
[null,"12.4","Marketing Expenses",0,{"$nulls":10},0,{"$nulls":10},0,{"$nulls":10},0,{"$nulls":11},0,0,0]
[null,"12.5","General  Administration",0,{"$nulls":10},0,{"$nulls":10},0,{"$nulls":10},0,{"$nulls":11},0,0,0]
[null,"12.6","Compliance/Regulatory",0,{"$nulls":10},0,{"$nulls":10},0,{"$nulls":10},0,{"$nulls":11},0,0,0]
[null,"12.7","Total Administrative Expenses ",{"$f":"E96+F96","v":0},{"$f":"SUM(E90:E95)","v":0},{"$f":"SUM(F90:F95)","v":0},{"$nulls":8},{"$f":"P96+Q96","v":0},{"$f":"SUM(P90:P95)","v":0},0,{"$nulls":8},{"$f":"AA96+AB96","v":0},{"$f":"SUM(AA90:AA95)","v":0},0,{"$nulls":8},{"$f":"AL96+AM96","v":0},{"$f":"SUM(AL90:AL95)","v":0},0,{"$nulls":8},{"$f":"SUM(AV90:AV95)","v":0},0,{"$f":"SUM(AX90:AX95)","v":0},{"$f":"SUM(AY90:AY95)","v":0}]
["Government-Mandated Assessments, Taxes, and Fees Other Than Income Taxes","13.1","State Premium tax",{"$nulls":45},{"$f":"D97+O97+Z97+AK97+AV97","v":0}]
[null,"13.2","Department of Insurance Assessments",{"$nulls":45},0]
[null,"13.3","Section 9010 Health Insurance Providers Fee",{"$nulls":45},0]
[null,"13.4","Other 1",{"$nulls":45},0]
[null,"13.5","Other 2",{"$nulls":45},0]
[null,"13.6","Other 3",{"$nulls":45},0]
[null,"13.7","Total ",{"$f":"SUM(D97:D102)","v":0},{"$nulls":10},{"$f":"SUM(O97:O102)","v":0},{"$nulls":10},{"$f":"SUM(Z97:Z102)","v":0},{"$nulls":10},{"$f":"SUM(AK97:AK102)","v":0},{"$nulls":10},{"$f":"SUM(AV97:AV102)","v":0},{"$f":"SUM(AW97:AW102)","v":0}]
[null,"14.0","Grand Total Expenses",{"$f":"D87+D96+D103","v":0},{"$nulls":10},{"$f":"O87+O96+O103","v":0},{"$nulls":10},{"$f":"Z87+Z96+Z103","v":0},{"$nulls":10},{"$f":"AK87+AK96+AK103","v":0},{"$nulls":10},{"$f":"AV87+AV96+AV103","v":0},{"$f":"AW87+AW96+AW103","v":0}]
[null,"15.0","Underwriting Gain / (Loss)  --- AKA Pre-tax Earnings from Operations",{"$f":"D17-D104","v":0},{"$nulls":10},{"$f":"O17-O104","v":0},{"$nulls":10},{"$f":"Z17-Z104","v":0},{"$nulls":10},{"$f":"AK17-AK104","v":0},{"$nulls":10},{"$f":"AV17-AV104","v":0},{"$f":"AW17-AW104","v":0}]
[null,"16.0","Income Tax Expense",{"$nulls":45},{"$f":"D106+O106+Z106+AK106+AV106","v":0}]
[null,"17.0","Net Underwriting Gain (Loss)",{"$f":"D105-D106","v":0},{"$nulls":10},{"$f":"O105-O106","v":0},{"$nulls":10},{"$f":"Z105-Z106","v":0},{"$nulls":10},{"$f":"AK105-AK106","v":0},{"$nulls":10},{"$f":"AV105-AV106","v":0},{"$f":"AW105-AW106","v":0}]

{"sheet":"MMA Rev-Exp Region 2","index":8,"n_rows":107,"n_cols":59,"rows_kept":107,"hidden":true,"merged":[[6,3,6,13],[6,14,6,24],[6,25,6,35],[6,36,6,46],[6,48,6,58],[9,0,9,2],[10,0,16,0],[17,0,18,2],[17,3,17,13],[17,14,17,24],[17,25,17,35],[17,36,17,46],[17,48,17,58],[19,0,27,0],[28,0,35,0],[36,0,39,0],[40,0,44,0],[45,0,49,0],[50,0,54,0],[55,0,62,0],[63,0,70,0],[71,0,75,0],[76,0,86,0],[87,0,88,2],[87,3,87,13],[87,14,87,24],[87,25,87,35],[87,36,87,46],[87,48,87,58],[89,0,95,0],[96,0,102,0]]}
["MANAGED MEDICAL ASSISTANCE -- REVENUE AND EXPENSE SCHEDULE - REGION 2"]
[]
["Health Plan:",null,{"$f":"'MMA Rev-Exp Summary'!C3","v":0}]
["Reporting Period:",null,{"$f":"IF('MMA Rev-Exp Summary'!C4=0,\"\",'MMA Rev-Exp Summary'!C4)","v":""}]
["Paid Through:",null,{"$f":"IF('MMA Rev-Exp Summary'!C5=0,\"\",'MMA Rev-Exp Summary'!C5)","v":""}]
["Region 2"]
[{"$nulls":3},"JANUARY - MARCH (Q1)",{"$nulls":10},"APRIL - JUNE (Q2)",{"$nulls":10},"JULY - SEPTEMBER (Q3)",{"$nulls":10},"OCTOBER - DECEMBER (Q4)",{"$nulls":11},"TOTAL (TO DATE)"]
[{"$nulls":3},"Total","TANF Non-SMI","TANF SMI","SSI Medicaid Only Non-SMI","SSI Medicaid Only SMI","Dual Eligible","Child Welfare","HIV/AIDS Dual Eligible","HIV/AIDS Medicaid Only","LTC Dual Eligible","LTC Medicaid Only","Total","TANF Non-SMI","TANF SMI","SSI Medicaid Only Non-SMI","SSI Medicaid Only SMI","Dual Eligible","Child Welfare","HIV/AIDS Dual Eligible","HIV/AIDS Medicaid Only","LTC Dual Eligible","LTC Medicaid Only","Total","TANF Non-SMI","TANF SMI","SSI Medicaid Only Non-SMI","SSI Medicaid Only SMI","Dual Eligible","Child Welfare","HIV/AIDS Dual Eligible","HIV/AIDS Medicaid Only","LTC Dual Eligible","LTC Medicaid Only","Total","TANF Non-SMI","TANF SMI","SSI Medicaid Only Non-SMI","SSI Medicaid Only SMI","Dual Eligible","Child Welfare","HIV/AIDS Dual Eligible","HIV/AIDS Medicaid Only","LTC Dual Eligible","LTC Medicaid Only","Prior Year Adjustments","Total","TANF Non-SMI","TANF SMI","SSI Medicaid Only Non-SMI","SSI Medicaid Only SMI","Dual Eligible","Child Welfare","HIV/AIDS Dual Eligible","HIV/AIDS Medicaid Only","LTC Dual Eligible","LTC Medicaid Only"]
["MEMBER MONTHS",null,null,{"$f":"SUM(E9:N9)","v":0},{"$nulls":10},{"$f":"SUM(P9:Y9)","v":0},{"$nulls":10},{"$f":"SUM(AA9:AJ9)","v":0},{"$nulls":10},{"$f":"SUM(AL9:AU9)","v":0},{"$nulls":11},{"$f":"AK9+Z9+O9+D9+AV9","v":0},{"$f":"AL9+AA9+P9+E9","v":0},{"$f":"AM9+AB9+Q9+F9","v":0},0,0,0,0,0,0,0,0]
["REVENUES"]
["Revenues",1.1,"Capitation",{"$f":"SUM(E11:N11)","v":0},{"$nulls":10},{"$f":"SUM(P11:Y11)","v":0},{"$nulls":10},{"$f":"SUM(AA11:AJ11)","v":0},{"$nulls":10},{"$f":"SUM(AL11:AU11)","v":0},{"$nulls":11},{"$f":"SUM(AX11:BG11)+AV11","v":0},{"$f":"E11+P11+AA11+AL11","v":0},0,0,0,0,0,0,0,0,0]
[null,1.2,"Transplant Kick Payments",0,{"$nulls":10},0,{"$nulls":10},0,{"$nulls":10},0,{"$nulls":11},{"$f":"SUM(AX12:BG12)+AV12","v":0},0,0,{"$f":"G12+R12+AC12+AN12","v":0},0,0,0,0,0,0,0]
[null,"1.3","Hepatitis C Kick Payments",0,{"$nulls":10},0,{"$nulls":10},0,{"$nulls":10},0,{"$nulls":11},0,0,0,{"$f":"G13+R13+AC13+AN13","v":0},0,0,0,0,0,0,0]
[null,"1.4.1","Maternity Kick Payments",0,{"$nulls":10},0,{"$nulls":10},0,{"$nulls":10},0,{"$nulls":11},0,0,0,{"$f":"G14+R14+AC14+AN14","v":0},0,0,0,0,0,0,0]
[null,"1.5","ACA § 9010 related payments",0,{"$nulls":10},0,{"$nulls":10},0,{"$nulls":10},0,{"$nulls":11},0,0,0,{"$f":"G15+R15+AC15+AN15","v":0},0,0,0,0,0,0,0]
[null,"1.6","Other Revenue",0,{"$nulls":10},0,{"$nulls":10},0,{"$nulls":10},0,{"$nulls":11},0,0,0,{"$f":"G16+R16+AC16+AN16","v":0},0,0,0,0,0,0,0]
[null,"1.7","Total Revenue",{"$f":"SUM(D11:D16)","v":0},{"$f":"SUM(E11:E16)","v":0},{"$f":"SUM(F11:F16)","v":0},{"$f":"SUM(G11:G16)","v":0},0,0,0,0,0,0,0,{"$f":"SUM(O11:O16)","v":0},{"$f":"SUM(P11:P16)","v":0},{"$f":"SUM(Q11:Q16)","v":0},{"$f":"SUM(R11:R16)","v":0},0,0,0,0,0,0,0,{"$f":"SUM(Z11:Z16)","v":0},{"$f":"SUM(AA11:AA16)","v":0},{"$f":"SUM(AB11:AB16)","v":0},{"$f":"SUM(AC11:AC16)","v":0},0,0,0,0,0,0,0,{"$f":"SUM(AK11:AK16)","v":0},{"$f":"SUM(AL11:AL16)","v":0},{"$f":"SUM(AM11:AM16)","v":0},0,0,0,0,0,0,0,0,0,{"$f":"SUM(AW11:AW16)","v":0},{"$f":"SUM(AX11:AX16)","v":0},{"$f":"SUM(AY11:AY16)","v":0},0,0,0,0,0,0,0,0]
["BENEFIT EXPENSES",null,null,"JANUARY - MARCH (Q1)",{"$nulls":10},"APRIL - JUNE (Q2)",{"$nulls":10},"JULY - SEPTEMBER (Q3)",{"$nulls":10},"OCTOBER - DECEMBER (Q4)",{"$nulls":11},"TOTAL (TO DATE)"]
[{"$nulls":3},"Total","TANF Non-SMI","TANF SMI","SSI Medicaid Only Non-SMI","SSI Medicaid Only SMI","Dual Eligible","Child Welfare","HIV/AIDS Dual Eligible","HIV/AIDS Medicaid Only","LTC Dual Eligible","LTC Medicaid Only","Total","TANF Non-SMI","TANF SMI","SSI Medicaid Only Non-SMI","SSI Medicaid Only SMI","Dual Eligible","Child Welfare","HIV/AIDS Dual Eligible","HIV/AIDS Medicaid Only","LTC Dual Eligible","LTC Medicaid Only","Total","TANF Non-SMI","TANF SMI","SSI Medicaid Only Non-SMI","SSI Medicaid Only SMI","Dual Eligible","Child Welfare","HIV/AIDS Dual Eligible","HIV/AIDS Medicaid Only","LTC Dual Eligible","LTC Medicaid Only","Total","TANF Non-SMI","TANF SMI","SSI Medicaid Only Non-SMI","SSI Medicaid Only SMI","Dual Eligible","Child Welfare","HIV/AIDS Dual Eligible","HIV/AIDS Medicaid Only","LTC Dual Eligible","LTC Medicaid Only","Prior Year Adjustments","Total","TANF Non-SMI","TANF SMI","SSI Medicaid Only Non-SMI","SSI Medicaid Only SMI","Dual Eligible","Child Welfare","HIV/AIDS Dual Eligible","HIV/AIDS Medicaid Only","LTC Dual Eligible","LTC Medicaid Only"]
["Hospital Services",2.1,"Inpatient FFS",{"$f":"SUM(E20:N20)","v":0},{"$nulls":10},{"$f":"SUM(P20:Y20)","v":0},{"$nulls":10},{"$f":"SUM(AA20:AJ20)","v":0},{"$nulls":10},{"$f":"SUM(AL20:AU20)","v":0},{"$nulls":11},{"$f":"SUM(AX20:BG20)+AV20","v":0},{"$f":"E20+P20+AA20+AL20","v":0},0,0,0,0,0,0,0,0,0]
[null,2.2,"Ending IBNP for Inpatient Hospital Services",0,{"$nulls":10},0,{"$nulls":10},0,{"$nulls":10},0,{"$nulls":11},{"$f":"SUM(AX21:BG21)+AV21","v":0},0,0,0,0,0,0,0,0,0,0]
[null,2.3,"Outpatient FFS: ER",0,{"$nulls":10},0,{"$nulls":10},0,{"$nulls":10},0,{"$nulls":11},0,0,0,0,0,0,0,0,0,0,0]
[null,2.4,"Outpatient FFS: Other than ER ",0,{"$nulls":10},0,{"$nulls":10},0,{"$nulls":10},0,{"$nulls":11},0,0,0,0,0,0,0,0,0,0,0]
[null,2.5,"Ending IBNP for Outpatient Hospital Services",0,{"$nulls":10},0,{"$nulls":10},0,{"$nulls":10},0,{"$nulls":11},0,0,0,0,0,0,0,0,0,0,0]
[null,"2.6","Subcapitated Hospital Services",0,{"$nulls":10},0,{"$nulls":10},0,{"$nulls":10},0,{"$nulls":11},0,0,0,0,0,0,0,0,0,0,0]
[null,"2.7","Hospital Settlements/AP",0,{"$nulls":10},0,{"$nulls":10},0,{"$nulls":10},0,{"$nulls":11},0,0,0,0,0,0,0,0,0,0,0]
[null,"2.7.1","Transplant Services",0,{"$nulls":10},0,{"$nulls":10},0,{"$nulls":10},0,{"$nulls":11},0,0,0,0,0,0,0,0,0,0,0]
[null,"2.8","Total Hospital Services",{"$f":"SUM(D20:D27)","v":0},{"$f":"SUM(E20:E27)","v":0},0,0,0,0,0,0,0,0,0,{"$f":"SUM(O20:O27)","v":0},{"$f":"SUM(P20:P27)","v":0},0,0,0,0,0,0,0,0,0,{"$f":"SUM(Z20:Z27)","v":0},{"$f":"SUM(AA20:AA27)","v":0},0,0,0,0,0,0,0,0,0,{"$f":"SUM(AK20:AK27)","v":0},{"$f":"SUM(AL20:AL27)","v":0},0,0,0,0,0,0,0,0,0,{"$f":"SUM(AV20:AV27)","v":0},{"$f":"SUM(AW20:AW27)","v":0},{"$f":"SUM(AX20:AX27)","v":0},0,0,0,0,0,0,0,0,0]
["Professional Services",3.1,"Primary Care FFS",{"$f":"SUM(E29:N29)","v":0},{"$nulls":10},{"$f":"SUM(P29:Y29)","v":0},{"$nulls":10},{"$f":"SUM(AA29:AJ29)","v":0},{"$nulls":10},{"$f":"SUM(AL29:AU29)","v":0},{"$nulls":11},{"$f":"SUM(AX29:BG29)+AV29","v":0},{"$f":"E29+P29+AA29+AL29","v":0},0,0,0,0,0,0,0,0,0]
[null,3.2,"Specialty Care FFS",0,{"$nulls":10},0,{"$nulls":10},0,{"$nulls":10},0,{"$nulls":11},0,0,0,0,0,0,0,0,0,0,0]
[null,3.3,"Other Professional FFS",0,{"$nulls":10},0,{"$nulls":10},0,{"$nulls":10},0,{"$nulls":11},0,0,0,0,0,0,0,0,0,0,0]
[null,"3.4","§ 1202 PCP Payments to providers",0,{"$nulls":10},{"$f":"SUM(P32:Y32)","v":0},{"$nulls":10},{"$f":"SUM(AA32:AJ32)","v":0},{"$nulls":10},{"$f":"SUM(AL32:AU32)","v":0},{"$nulls":11},{"$f":"SUM(AX32:BG32)+AV32","v":0},0,0,0,0,0,0,0,0,0,0]
[null,"3.5","Subcapitated Professional Services",0,{"$nulls":10},0,{"$nulls":10},0,{"$nulls":10},0,{"$nulls":11},{"$f":"SUM(AX33:BG33)+AV33","v":0},0,0,0,0,0,0,0,0,0,0]
[null,"3.6","Ending IBNP for Professional Services",0,{"$nulls":10},0,{"$nulls":10},0,{"$nulls":10},0,{"$nulls":11},0,0,0,0,0,0,0,0,0,0,0]
[null,"3.7","Professional Settlements/AP",0,{"$nulls":10},0,{"$nulls":10},0,{"$nulls":10},0,{"$nulls":11},0,0,0,0,0,0,0,0,0,0,0]
[null,"3.8","Total Physician Services",{"$f":"SUM(D29:D35)","v":0},0,0,0,0,0,0,0,0,0,0,0,0,0,0,0,0,0,0,0,0,0,0,0,0,0,0,0,0,0,0,0,0,0,0,0,0,0,0,0,0,0,0,0,0,0,0,0,0,0,0,0,0,0,0,0]
["Maternity Services","4.1.1","Maternity Services",{"$f":"SUM(E37:N37)","v":0},{"$nulls":10},{"$f":"SUM(P37:Y37)","v":0},{"$nulls":10},{"$f":"SUM(AA37:AJ37)","v":0},{"$nulls":10},{"$f":"SUM(AL37:AU37)","v":0},{"$nulls":11},{"$f":"SUM(AX37:BG37)+AV37","v":0},{"$f":"E37+P37+AA37+AL37","v":0},{"$f":"F37+Q37+AB37+AM37","v":0},{"$f":"G37+R37+AC37+AN37","v":0},0,0,0,0,0,0,0]
[null,"4.2.1","Ending IBNP for Maternity Services",{"$f":"SUM(E38:N38)","v":0},{"$nulls":10},{"$f":"SUM(P38:Y38)","v":0},{"$nulls":10},{"$f":"SUM(AA38:AJ38)","v":0},{"$nulls":10},{"$f":"SUM(AL38:AU38)","v":0},{"$nulls":11},{"$f":"SUM(AX38:BG38)+AV38","v":0},{"$f":"E38+P38+AA38+AL38","v":0},0,{"$f":"G38+R38+AC38+AN38","v":0},0,0,0,0,0,0,0]
[null,"4.3.1","Maternity Settlements/AP",{"$f":"SUM(E39:N39)","v":0},{"$nulls":10},{"$f":"SUM(P39:Y39)","v":0},{"$nulls":10},{"$f":"SUM(AA39:AJ39)","v":0},{"$nulls":10},{"$f":"SUM(AL39:AU39)","v":0},{"$nulls":11},{"$f":"SUM(AX39:BG39)+AV39","v":0},{"$f":"E39+P39+AA39+AL39","v":0},0,{"$f":"G39+R39+AC39+AN39","v":0},0,0,0,0,0,0,0]
[null,"4.4.1","Total Maternity Services",{"$f":"SUM(D37:D39)","v":0},0,0,0,0,0,0,0,0,0,0,{"$f":"SUM(O37:O39)","v":0},0,0,0,0,0,{"$f":"SUM(U37:U39)","v":0},0,0,0,0,0,0,0,0,0,0,0,0,{"$f":"SUM(AH37:AH39)","v":0},0,0,0,0,0,0,0,0,0,0,0,0,0,0,0,{"$f":"SUM(AX37:AX39)","v":0},{"$f":"SUM(AY37:AY39)","v":0},0,0,0,0,0,0,0,0]
["Mental Health",5.1,"Mental Health & Substance Abuse FFS",{"$f":"SUM(E41:N41)","v":0},{"$nulls":10},{"$f":"SUM(P41:Y41)","v":0},{"$nulls":10},{"$f":"SUM(AA41:AJ41)","v":0},{"$nulls":10},{"$f":"SUM(AL41:AU41)","v":0},{"$nulls":11},{"$f":"SUM(AX41:BG41)+AV41","v":0},{"$f":"E41+P41+AA41+AL41","v":0},{"$f":"F41+Q41+AB41+AM41","v":0},0,0,0,0,0,0,0,0]
[null,5.2,"Mental Health & Substance Abuse Subcapitation",{"$f":"SUM(E42:N42)","v":0},{"$nulls":10},{"$f":"SUM(P42:Y42)","v":0},{"$nulls":10},{"$f":"SUM(AA42:AJ42)","v":0},{"$nulls":10},{"$f":"SUM(AL42:AU42)","v":0},{"$nulls":11},{"$f":"SUM(AX42:BG42)+AV42","v":0},{"$f":"E42+P42+AA42+AL42","v":0},0,{"$f":"G42+R42+AC42+AN42","v":0},0,0,0,0,0,0,0]
[null,5.3,"Ending IBNP for Mental Health & Substance Abuse",{"$f":"SUM(E43:N43)","v":0},{"$nulls":10},{"$f":"SUM(P43:Y43)","v":0},{"$nulls":10},{"$f":"SUM(AA43:AJ43)","v":0},{"$nulls":10},{"$f":"SUM(AL43:AU43)","v":0},{"$nulls":11},{"$f":"SUM(AX43:BG43)+AV43","v":0},{"$f":"E43+P43+AA43+AL43","v":0},0,{"$f":"G43+R43+AC43+AN43","v":0},0,0,0,0,0,0,0]
[null,"5.4","Mental Health Settlements/AP",{"$f":"SUM(E44:N44)","v":0},{"$nulls":10},{"$f":"SUM(P44:Y44)","v":0},{"$nulls":10},{"$f":"SUM(AA44:AJ44)","v":0},{"$nulls":10},{"$f":"SUM(AL44:AU44)","v":0},{"$nulls":11},{"$f":"SUM(AX44:BG44)+AV44","v":0},{"$f":"E44+P44+AA44+AL44","v":0},0,{"$f":"G44+R44+AC44+AN44","v":0},0,0,0,0,0,0,0]
[null,"5.5","Total Mental Health & Substance Abuse Services",{"$f":"SUM(D41:D44)","v":0},{"$f":"SUM(E41:E44)","v":0},0,0,0,{"$f":"SUM(I41:I44)","v":0},0,0,0,0,0,0,0,0,0,0,0,0,0,0,0,0,0,0,0,0,0,0,0,0,0,0,0,0,0,0,0,0,0,0,0,0,0,0,0,0,0,0,0,0,0,0,0,0,0,0]
["Dental",6.1,"Dental FFS",{"$f":"SUM(E46:N46)","v":0},{"$nulls":10},{"$f":"SUM(P46:Y46)","v":0},{"$nulls":10},{"$f":"SUM(AA46:AJ46)","v":0},{"$nulls":10},{"$f":"SUM(AL46:AU46)","v":0},{"$nulls":11},{"$f":"SUM(AX46:BG46)+AV46","v":0},{"$f":"E46+P46+AA46+AL46","v":0},{"$f":"F46+Q46+AB46+AM46","v":0},0,0,0,0,0,0,0,0]
[null,6.2,"Dental Subcapitation",{"$f":"SUM(E47:N47)","v":0},{"$nulls":10},{"$f":"SUM(P47:Y47)","v":0},{"$nulls":10},{"$f":"SUM(AA47:AJ47)","v":0},{"$nulls":10},{"$f":"SUM(AL47:AU47)","v":0},{"$nulls":11},{"$f":"SUM(AX47:BG47)+AV47","v":0},{"$f":"E47+P47+AA47+AL47","v":0},0,{"$f":"G47+R47+AC47+AN47","v":0},0,0,0,0,0,0,0]
[null,6.3,"Ending IBNP for Dental Services",{"$f":"SUM(E48:N48)","v":0},{"$nulls":10},{"$f":"SUM(P48:Y48)","v":0},{"$nulls":10},{"$f":"SUM(AA48:AJ48)","v":0},{"$nulls":10},{"$f":"SUM(AL48:AU48)","v":0},{"$nulls":11},{"$f":"SUM(AX48:BG48)+AV48","v":0},{"$f":"E48+P48+AA48+AL48","v":0},0,{"$f":"G48+R48+AC48+AN48","v":0},0,0,0,0,0,0,0]
[null,"6.4","Dental Settlements/AP",{"$f":"SUM(E49:N49)","v":0},{"$nulls":10},{"$f":"SUM(P49:Y49)","v":0},{"$nulls":10},{"$f":"SUM(AA49:AJ49)","v":0},{"$nulls":10},{"$f":"SUM(AL49:AU49)","v":0},{"$nulls":11},{"$f":"SUM(AX49:BG49)+AV49","v":0},{"$f":"E49+P49+AA49+AL49","v":0},0,{"$f":"G49+R49+AC49+AN49","v":0},0,0,0,0,0,0,0]
[null,"6.5","Total Dental Services",{"$f":"SUM(D46:D49)","v":0},{"$f":"SUM(E46:E49)","v":0},0,0,0,0,0,0,0,0,0,0,0,0,0,0,0,0,0,0,0,0,0,0,0,0,0,0,0,0,0,0,0,0,0,0,0,0,0,0,0,0,0,0,0,0,0,0,0,0,0,0,0,0,0,0]
["Transportation",7.1,"Transportation FFS",{"$f":"SUM(E51:N51)","v":0},{"$nulls":10},{"$f":"SUM(P51:Y51)","v":0},{"$nulls":10},{"$f":"SUM(AA51:AJ51)","v":0},{"$nulls":10},{"$f":"SUM(AL51:AU51)","v":0},{"$nulls":11},{"$f":"SUM(AX51:BG51)+AV51","v":0},{"$f":"E51+P51+AA51+AL51","v":0},{"$f":"F51+Q51+AB51+AM51","v":0},0,0,0,0,0,0,0,0]
[null,7.2,"Transportation Subcapitation",{"$f":"SUM(E52:N52)","v":0},{"$nulls":10},{"$f":"SUM(P52:Y52)","v":0},{"$nulls":10},{"$f":"SUM(AA52:AJ52)","v":0},{"$nulls":10},{"$f":"SUM(AL52:AU52)","v":0},{"$nulls":11},{"$f":"SUM(AX52:BG52)+AV52","v":0},{"$f":"E52+P52+AA52+AL52","v":0},0,{"$f":"G52+R52+AC52+AN52","v":0},0,0,0,0,0,0,0]
[null,7.3,"Ending IBNP for Transportation",{"$f":"SUM(E53:N53)","v":0},{"$nulls":10},{"$f":"SUM(P53:Y53)","v":0},{"$nulls":10},{"$f":"SUM(AA53:AJ53)","v":0},{"$nulls":10},{"$f":"SUM(AL53:AU53)","v":0},{"$nulls":11},{"$f":"SUM(AX53:BG53)+AV53","v":0},{"$f":"E53+P53+AA53+AL53","v":0},0,{"$f":"G53+R53+AC53+AN53","v":0},0,0,0,0,0,0,0]
[null,"7.4","Transportation Settlements/AP",{"$f":"SUM(E54:N54)","v":0},{"$nulls":10},{"$f":"SUM(P54:Y54)","v":0},{"$nulls":10},{"$f":"SUM(AA54:AJ54)","v":0},{"$nulls":10},{"$f":"SUM(AL54:AU54)","v":0},{"$nulls":11},{"$f":"SUM(AX54:BG54)+AV54","v":0},{"$f":"E54+P54+AA54+AL54","v":0},0,{"$f":"G54+R54+AC54+AN54","v":0},0,0,0,0,0,0,0]
[null,"7.5","Total Transportation Services",{"$f":"SUM(D51:D54)","v":0},{"$f":"SUM(E51:E54)","v":0},0,0,0,0,0,0,0,0,0,0,0,0,0,0,0,0,0,0,{"$f":"SUM(X51:X54)","v":0},0,0,0,0,0,0,0,0,0,0,0,0,0,0,0,0,0,0,0,0,0,0,0,0,0,0,0,0,0,0,0,0,0,0,0]
["Pharmacy",8.1,"Prescription Drugs FFS",{"$f":"SUM(E56:N56)","v":0},{"$nulls":10},{"$f":"SUM(P56:Y56)","v":0},{"$nulls":10},{"$f":"SUM(AA56:AJ56)","v":0},{"$nulls":10},{"$f":"SUM(AL56:AU56)","v":0},{"$nulls":11},{"$f":"SUM(AX56:BG56)+AV56","v":0},{"$f":"E56+P56+AA56+AL56","v":0},0,0,0,0,0,0,0,0,0]
[null,"8.2","Hepatitis C Prescription Drug FFS",0,{"$nulls":10},0,{"$nulls":10},0,{"$nulls":10},0,{"$nulls":11},{"$f":"SUM(AX57:BG57)+AV57","v":0},0,0,0,0,0,0,0,0,0,0]
[null,"8.3","Ending IBNP for Prescription Drugs",0,{"$nulls":10},0,{"$nulls":10},0,{"$nulls":10},0,{"$nulls":11},0,0,0,0,0,0,0,0,0,0,0]
[null,"8.4","Prescription Drug Rebates ",0,{"$nulls":10},0,{"$nulls":10},0,{"$nulls":10},0,{"$nulls":11},0,0,0,0,0,0,0,0,0,0,0]
[null,"8.5","Ending accrual for Rebates receivable",0,{"$nulls":10},0,{"$nulls":10},0,{"$nulls":10},0,{"$nulls":11},0,0,0,0,0,0,0,0,0,0,0]
[null,"8.6","Prescription Drugs Subcapitation",0,{"$nulls":10},0,{"$nulls":10},0,{"$nulls":10},0,{"$nulls":11},0,0,0,0,0,0,0,0,0,0,0]
[null,"8.7","Prescription Drug Settlements/AP",0,{"$nulls":10},0,{"$nulls":10},0,{"$nulls":10},0,{"$nulls":11},0,0,0,0,0,0,0,0,0,0,0]
[null,"8.8","Total Prescription Drugs",{"$f":"SUM(D56:D62)","v":0},{"$f":"SUM(E56:E62)","v":0},0,0,0,0,0,0,0,0,0,0,0,0,0,0,0,0,0,0,0,0,0,0,0,0,0,0,0,0,0,0,0,0,0,0,0,0,0,0,0,0,0,0,0,0,0,0,0,0,0,0,0,0,0,0]
["Other Services",9.1,"Home Health, Private Duty Nursing, Personal Care FFS",{"$f":"SUM(E64:L64)","v":0},{"$nulls":10},{"$f":"SUM(P64:W64)","v":0},{"$nulls":10},{"$f":"SUM(AA64:AH64)","v":0},{"$nulls":10},{"$f":"SUM(AL64:AS64)","v":0},{"$nulls":11},{"$f":"SUM(AX64:BE64)+AV64","v":0},{"$f":"E64+P64+AA64+AL64","v":0},0,0,0,0,0,0,0]
[null,"9.2","Hospice FFS",{"$f":"SUM(E65:L65)","v":0},{"$nulls":10},{"$f":"SUM(P65:W65)","v":0},{"$nulls":10},{"$f":"SUM(AA65:AH65)","v":0},{"$nulls":10},{"$f":"SUM(AL65:AS65)","v":0},{"$nulls":11},{"$f":"SUM(AX65:BE65)+AV65","v":0},0,0,0,0,0,0,0,0]
[null,"9.3","DME FFS",{"$f":"SUM(E66:L66)","v":0},{"$nulls":10},{"$f":"SUM(P66:W66)","v":0},{"$nulls":10},{"$f":"SUM(AA66:AH66)","v":0},{"$nulls":10},{"$f":"SUM(AL66:AS66)","v":0},{"$nulls":11},0,0,0,0,0,0,0,0,0]
[null,"9.4","Other State Plan Services FFS",{"$f":"SUM(E67:N67)","v":0},{"$nulls":10},{"$f":"SUM(P67:Y67)","v":0},{"$nulls":10},{"$f":"SUM(AA67:AJ67)","v":0},{"$nulls":10},{"$f":"SUM(AL67:AU67)","v":0},{"$nulls":11},{"$f":"SUM(AX67:BG67)+AV67","v":0},0,0,0,0,0,0,0,0,0,0]
[null,"9.5","Other Services Subcapitation",{"$f":"SUM(E68:N68)","v":0},{"$nulls":10},{"$f":"SUM(P68:Y68)","v":0},{"$nulls":10},{"$f":"SUM(AA68:AJ68)","v":0},{"$nulls":10},{"$f":"SUM(AL68:AU68)","v":0},{"$nulls":11},{"$f":"SUM(AX68:BG68)+AV68","v":0},0,0,0,0,0,0,0,0,0,0]
[null,"9.6","Ending IBNP for Other Services",{"$f":"SUM(E69:N69)","v":0},{"$nulls":10},{"$f":"SUM(P69:Y69)","v":0},{"$nulls":10},{"$f":"SUM(AA69:AJ69)","v":0},{"$nulls":10},{"$f":"SUM(AL69:AU69)","v":0},{"$nulls":11},{"$f":"SUM(AX69:BG69)+AV69","v":0},0,0,0,0,0,0,0,0,0,0]
[null,"9.7","Other Services Settlements/AP",{"$f":"SUM(E70:N70)","v":0},{"$nulls":10},{"$f":"SUM(P70:Y70)","v":0},{"$nulls":10},{"$f":"SUM(AA70:AJ70)","v":0},{"$nulls":10},{"$f":"SUM(AL70:AU70)","v":0},{"$nulls":11},{"$f":"SUM(AX70:BG70)+AV70","v":0},0,0,0,0,0,0,0,0,0,0]
[null,"9.8","Total Other Services",{"$f":"SUM(D64:D70)","v":0},{"$f":"SUM(E64:E70)","v":0},0,0,0,0,0,0,0,{"$f":"SUM(M67:M70)","v":0},{"$f":"SUM(N67:N70)","v":0},0,0,0,0,0,0,0,0,0,{"$f":"SUM(X67:X70)","v":0},{"$f":"SUM(Y67:Y70)","v":0},0,0,0,0,0,0,0,0,0,{"$f":"SUM(AI67:AI70)","v":0},{"$f":"SUM(AJ67:AJ70)","v":0},0,0,0,0,0,0,0,0,0,{"$f":"SUM(AT67:AT70)","v":0},{"$f":"SUM(AU67:AU70)","v":0},{"$f":"SUM(AV64:AV70)","v":0},0,0,0,0,0,0,0,{"$f":"SUM(BD64:BD70)","v":0},{"$f":"SUM(BE64:BE70)","v":0},{"$f":"SUM(BF67:BF70)","v":0},{"$f":"SUM(BG67:BG70)","v":0}]
["Expanded Benefits","10.1","Expanded Benefits FFS",{"$f":"SUM(E72:N72)","v":0},{"$nulls":10},{"$f":"SUM(P72:Y72)","v":0},{"$nulls":10},{"$f":"SUM(AA72:AJ72)","v":0},{"$nulls":10},{"$f":"SUM(AL72:AU72)","v":0},{"$nulls":11},{"$f":"SUM(AX72:BG72)+AV72","v":0},{"$f":"E72+P72+AA72+AL72","v":0},{"$f":"F72+Q72+AB72+AM72","v":0},0,0,0,0,0,0,0,0]
[null,"10.2","Expanded Benefits Subcapitation",{"$f":"SUM(E73:N73)","v":0},{"$nulls":10},{"$f":"SUM(P73:Y73)","v":0},{"$nulls":10},{"$f":"SUM(AA73:AJ73)","v":0},{"$nulls":10},{"$f":"SUM(AL73:AU73)","v":0},{"$nulls":11},{"$f":"SUM(AX73:BG73)+AV73","v":0},{"$f":"E73+P73+AA73+AL73","v":0},0,{"$f":"G73+R73+AC73+AN73","v":0},0,0,0,0,0,0,0]
[null,"10.3","Ending IBNP for Expanded Benefits",{"$f":"SUM(E74:N74)","v":0},{"$nulls":10},{"$f":"SUM(P74:Y74)","v":0},{"$nulls":10},{"$f":"SUM(AA74:AJ74)","v":0},{"$nulls":10},{"$f":"SUM(AL74:AU74)","v":0},{"$nulls":11},{"$f":"SUM(AX74:BG74)+AV74","v":0},{"$f":"E74+P74+AA74+AL74","v":0},0,{"$f":"G74+R74+AC74+AN74","v":0},0,0,0,0,0,0,0]
[null,"10.4","Expanded Benefits Settlements/AP",{"$f":"SUM(E75:N75)","v":0},{"$nulls":10},{"$f":"SUM(P75:Y75)","v":0},{"$nulls":10},{"$f":"SUM(AA75:AJ75)","v":0},{"$nulls":10},{"$f":"SUM(AL75:AU75)","v":0},{"$nulls":11},{"$f":"SUM(AX75:BG75)+AV75","v":0},{"$f":"E75+P75+AA75+AL75","v":0},0,{"$f":"G75+R75+AC75+AN75","v":0},0,0,0,0,0,0,0]
[null,"10.5","Total Expanded Benefits",{"$f":"SUM(D72:D75)","v":0},{"$f":"SUM(E72:E75)","v":0},0,0,0,0,0,0,0,0,0,0,0,0,0,0,0,0,0,0,{"$f":"SUM(X72:X75)","v":0},0,0,0,0,0,0,0,0,0,0,0,0,0,0,0,0,0,0,0,0,0,0,0,0,0,0,0,0,0,0,0,0,0,0,0]
["Totals Before and After Reinsurance","11.1","Total Services Paid Directly FFS",{"$f":"D20+SUM(D22:D23,D27)+SUM(D29:D32)+D37+D41+D46+D51+SUM(D56:D57)+SUM(D59:D60)+SUM(D64:D67)+D72","v":0},{"$f":"E20+SUM(E22:E23,E27)+SUM(E29:E32)+E37+E41+E46+E51+SUM(E56:E57)+SUM(E59:E60)+SUM(E64:E67)+E72","v":0},{"$f":"F20+SUM(F22:F23,F27)+SUM(F29:F32)+F37+F41+F46+F51+SUM(F56:F57)+SUM(F59:F60)+SUM(F64:F67)+F72","v":0},{"$f":"G20+SUM(G22:G23,G27)+SUM(G29:G32)+G37+G41+G46+G51+SUM(G56:G57)+SUM(G59:G60)+SUM(G64:G67)+G72","v":0},0,0,0,0,0,0,0,{"$f":"O20+SUM(O22:O23,O27)+SUM(O29:O32)+O37+O41+O46+O51+SUM(O56:O57)+SUM(O59:O60)+SUM(O64:O67)+O72","v":0},{"$f":"P20+SUM(P22:P23,P27)+SUM(P29:P32)+P37+P41+P46+P51+SUM(P56:P57)+SUM(P59:P60)+SUM(P64:P67)+P72","v":0},0,0,0,0,0,0,0,0,0,{"$f":"Z20+SUM(Z22:Z23,Z27)+SUM(Z29:Z32)+Z37+Z41+Z46+Z51+SUM(Z56:Z57)+SUM(Z59:Z60)+SUM(Z64:Z67)+Z72","v":0},{"$f":"AA20+SUM(AA22:AA23,AA27)+SUM(AA29:AA32)+AA37+AA41+AA46+AA51+SUM(AA56:AA57)+SUM(AA59:AA60)+SUM(AA64:AA67)+AA72","v":0},0,0,0,0,0,0,0,0,0,{"$f":"AK20+SUM(AK22:AK23,AK27)+SUM(AK29:AK32)+AK37+AK41+AK46+AK51+SUM(AK56:AK57)+SUM(AK59:AK60)+SUM(AK64:AK67)+AK72","v":0},{"$f":"AL20+SUM(AL22:AL23,AL27)+SUM(AL29:AL32)+AL37+AL41+AL46+AL51+SUM(AL56:AL57)+SUM(AL59:AL60)+SUM(AL64:AL67)+AL72","v":0},0,0,0,0,0,0,0,0,0,{"$f":"AV20+SUM(AV22:AV23,AV27)+SUM(AV29:AV32)+AV37+AV41+AV46+AV51+SUM(AV56:AV57)+SUM(AV59:AV60)+SUM(AV64:AV67)+AV72","v":0},{"$f":"AW20+SUM(AW22:AW23,AW27)+SUM(AW29:AW32)+AW37+AW41+AW46+AW51+SUM(AW56:AW57)+SUM(AW59:AW60)+SUM(AW64:AW67)+AW72","v":0},{"$f":"AX20+SUM(AX22:AX23,AX27)+SUM(AX29:AX32)+AX37+AX41+AX46+AX51+SUM(AX56:AX57)+SUM(AX59:AX60)+SUM(AX64:AX67)+AX72","v":0},0,0,0,0,0,0,0,0,0]
[null,"11.2","Total Services Paid Directly -- IBNP",{"$f":"D21+D24+D34+D38+D43+D48+D53+D58+D69+D74","v":0},{"$f":"E21+E24+E34+E38+E43+E48+E53+E58+E69+E74","v":0},{"$f":"F21+F24+F34+F38+F43+F48+F53+F58+F69+F74","v":0},{"$f":"G21+G24+G34+G38+G43+G48+G53+G58+G69+G74","v":0},0,0,0,0,0,0,0,{"$f":"O21+O24+O34+O38+O43+O48+O53+O58+O69+O74","v":0},{"$f":"P21+P24+P34+P38+P43+P48+P53+P58+P69+P74","v":0},0,0,0,0,0,0,0,0,0,{"$f":"Z21+Z24+Z34+Z38+Z43+Z48+Z53+Z58+Z69+Z74","v":0},{"$f":"AA21+AA24+AA34+AA38+AA43+AA48+AA53+AA58+AA69+AA74","v":0},0,0,0,0,0,0,0,0,0,{"$f":"AK21+AK24+AK34+AK38+AK43+AK48+AK53+AK58+AK69+AK74","v":0},{"$f":"AL21+AL24+AL34+AL38+AL43+AL48+AL53+AL58+AL69+AL74","v":0},0,0,0,0,0,0,0,0,0,{"$f":"AV21+AV24+AV34+AV38+AV43+AV48+AV53+AV58+AV69+AV74","v":0},{"$f":"AW21+AW24+AW34+AW38+AW43+AW48+AW53+AW58+AW69+AW74","v":0},{"$f":"AX21+AX24+AX34+AX38+AX43+AX48+AX53+AX58+AX69+AX74","v":0},0,0,0,0,0,0,0,0,0]
[null,"11.3","Total Services Paid through Subcapitation",{"$f":"D25+D33+D42+D47+D52+D61+D68+D73","v":0},{"$f":"E25+E33+E42+E47+E52+E61+E68+E73","v":0},{"$f":"F25+F33+F42+F47+F52+F61+F68+F73","v":0},{"$f":"G25+G33+G42+G47+G52+G61+G68+G73","v":0},0,0,0,0,0,0,0,{"$f":"O25+O33+O42+O47+O52+O61+O68+O73","v":0},{"$f":"P25+P33+P42+P47+P52+P61+P68+P73","v":0},0,0,0,0,0,0,0,0,0,{"$f":"Z25+Z33+Z42+Z47+Z52+Z61+Z68+Z73","v":0},{"$f":"AA25+AA33+AA42+AA47+AA52+AA61+AA68+AA73","v":0},0,0,0,0,0,0,0,0,0,{"$f":"AK25+AK33+AK42+AK47+AK52+AK61+AK68+AK73","v":0},{"$f":"AL25+AL33+AL42+AL47+AL52+AL61+AL68+AL73","v":0},0,0,0,0,0,0,0,0,0,{"$f":"AV25+AV33+AV42+AV47+AV52+AV61+AV68+AV73","v":0},{"$f":"AW25+AW33+AW42+AW47+AW52+AW61+AW68+AW73","v":0},{"$f":"AX25+AX33+AX42+AX47+AX52+AX61+AX68+AX73","v":0},0,0,0,0,0,0,0,0,0]
[null,"11.4","Total Services Paid by Settlements/AP",{"$f":"D26+D35+D39+D44+D49+D54+D62+D70+D75","v":0},{"$f":"E26+E35+E39+E44+E49+E54+E62+E70+E75","v":0},{"$f":"F26+F35+F39+F44+F49+F54+F62+F70+F75","v":0},{"$f":"G26+G35+G39+G44+G49+G54+G62+G70+G75","v":0},0,0,0,0,0,0,0,{"$f":"O26+O35+O39+O44+O49+O54+O62+O70+O75","v":0},{"$f":"P26+P35+P39+P44+P49+P54+P62+P70+P75","v":0},0,0,0,0,0,0,0,0,0,{"$f":"Z26+Z35+Z39+Z44+Z49+Z54+Z62+Z70+Z75","v":0},{"$f":"AA26+AA35+AA39+AA44+AA49+AA54+AA62+AA70+AA75","v":0},0,0,0,0,0,0,0,0,0,{"$f":"AK26+AK35+AK39+AK44+AK49+AK54+AK62+AK70+AK75","v":0},{"$f":"AL26+AL35+AL39+AL44+AL49+AL54+AL62+AL70+AL75","v":0},0,0,0,0,0,0,0,0,0,0,{"$f":"AW26+AW35+AW39+AW44+AW49+AW54+AW62+AW70+AW75","v":0},{"$f":"AX26+AX35+AX39+AX44+AX49+AX54+AX62+AX70+AX75","v":0},0,0,0,0,0,0,0,0,0]
[null,"11.5","TPL & Fraud/Abuse Recoveries",{"$f":"SUM(E81:N81)","v":0},{"$nulls":10},{"$f":"SUM(P81:Y81)","v":0},{"$nulls":10},{"$f":"SUM(AA81:AJ81)","v":0},{"$nulls":10},{"$f":"SUM(AL81:AU81)","v":0},{"$nulls":11},{"$f":"SUM(AX81:BG81)+AV81","v":0},{"$f":"E81+P81+AA81+AL81","v":0},{"$f":"F81+Q81+AB81+AM81","v":0},{"$f":"G81+R81+AC81+AN81","v":0},{"$f":"H81+S81+AD81+AO81","v":0},0,0,0,0,0,0]
[null,"11.6.1","Premium Deficiency Reserve",{"$f":"SUM(E82:N82)","v":0},{"$nulls":10},{"$f":"SUM(P82:Y82)","v":0},{"$nulls":10},{"$f":"SUM(AA82:AJ82)","v":0},{"$nulls":10},{"$f":"SUM(AL82:AU82)","v":0},{"$nulls":11},{"$f":"SUM(AX82:BG82)+AV82","v":0},{"$f":"E82+P82+AA82+AL82","v":0},0,{"$f":"G82+R82+AC82+AN82","v":0},0,0,0,0,0,0,0]
[null,"11.7","Subtotal Benefit Expense before Reinsurance",{"$f":"SUM(D77:D82)","v":0},{"$f":"SUM(E77:E82)","v":0},0,0,0,0,0,0,0,0,0,0,0,0,0,0,0,0,0,0,0,0,0,0,0,0,0,0,0,0,0,0,0,0,0,0,0,0,0,0,0,0,0,0,0,0,0,0,0,0,0,0,0,0,0,0]
[null,"11.8","Reinsurance Premiums",{"$f":"SUM(E84:N84)","v":0},{"$nulls":10},{"$f":"SUM(P84:Y84)","v":0},{"$nulls":10},{"$f":"SUM(AA84:AJ84)","v":0},{"$nulls":10},{"$f":"SUM(AL84:AU84)","v":0},{"$nulls":11},{"$f":"SUM(AX84:BG84)+AV84","v":0},{"$f":"E84+P84+AA84+AL84","v":0},{"$f":"F84+Q84+AB84+AM84","v":0},0,0,0,0,0,0,0,0]
[null,"11.9","Reinsurance Recoveries",{"$f":"SUM(E85:N85)","v":0},{"$nulls":10},{"$f":"SUM(P85:Y85)","v":0},{"$nulls":10},{"$f":"SUM(AA85:AJ85)","v":0},{"$nulls":10},{"$f":"SUM(AL85:AU85)","v":0},{"$nulls":11},{"$f":"SUM(AX85:BG85)+AV85","v":0},{"$f":"E85+P85+AA85+AL85","v":0},0,{"$f":"G85+R85+AC85+AN85","v":0},0,0,0,0,0,0,0]
[null,"11.10","Net cost of Reinsurance",{"$f":"SUM(D84:D85)","v":0},{"$f":"SUM(E84:E85)","v":0},0,0,0,0,0,0,0,0,0,{"$f":"SUM(O84:O85)","v":0},{"$f":"SUM(P84:P85)","v":0},0,0,0,0,0,0,0,0,0,{"$f":"SUM(Z84:Z85)","v":0},{"$f":"SUM(AA84:AA85)","v":0},0,0,0,0,0,0,0,0,0,{"$f":"SUM(AK84:AK85)","v":0},{"$f":"SUM(AL84:AL85)","v":0},{"$f":"SUM(AM84:AM85)","v":0},0,0,0,0,0,0,0,0,0,{"$f":"SUM(AW84:AW85)","v":0},{"$f":"SUM(AX84:AX85)","v":0},0,{"$f":"SUM(AZ84:AZ85)","v":0},0,{"$f":"SUM(BB84:BB85)","v":0},0,0,0,0,0]
[null,"11.11","Grand Total Medical Benefit Expense Net of Reinsurance",{"$f":"D83+D86","v":0},{"$f":"E83+E86","v":0},0,0,0,0,0,0,0,0,0,{"$f":"O83+O86","v":0},{"$f":"P83+P86","v":0},0,0,0,0,0,0,0,0,0,{"$f":"Z83+Z86","v":0},{"$f":"AA83+AA86","v":0},0,0,0,0,0,0,0,0,0,{"$f":"AK83+AK86","v":0},{"$f":"AL83+AL86","v":0},{"$f":"AM83+AM86","v":0},0,0,0,0,0,0,0,0,0,{"$f":"AW83+AW86","v":0},{"$f":"AX83+AX86","v":0},{"$f":"AY83+AY86","v":0},0,0,0,0,0,0,0,0]
["Administrative Expenses, Government-Mandated Assessments, Taxes, and Fees ",null,null,"JANUARY - MARCH (Q1)",{"$nulls":10},"APRIL - JUNE (Q2)",{"$nulls":10},"JULY - SEPTEMBER (Q3)",{"$nulls":10},"OCTOBER - DECEMBER (Q4)",{"$nulls":11},"TOTAL (TO DATE)"]
[{"$nulls":3},"Total","Health Plan","Corporate",{"$nulls":8},"Total","Health Plan","Corporate",{"$nulls":8},"Total","Health Plan","Corporate",{"$nulls":8},"Total","Health Plan","Corporate",{"$nulls":8},"Prior Year Adjustments","Total","Health Plan","Corporate"]
["Administrative Expenses","12.1","Salaries & Benefits",{"$f":"E90+F90","v":0},{"$nulls":10},{"$f":"P90+Q90","v":0},{"$nulls":10},{"$f":"AA90+AB90","v":0},{"$nulls":10},{"$f":"AL90+AM90","v":0},{"$nulls":11},{"$f":"AX90+AY90+AV90","v":0},{"$f":"E90+P90+AA90+AL90","v":0},{"$f":"F90+Q90+AB90+AM90","v":0}]
[null,"12.2","Administrative Services",{"$f":"E91+F91","v":0},{"$nulls":10},{"$f":"P91+Q91","v":0},{"$nulls":10},{"$f":"AA91+AB91","v":0},{"$nulls":10},{"$f":"AL91+AM91","v":0},{"$nulls":11},0,{"$f":"E91+P91+AA91+AL91","v":0},0]
[null,"12.3","Information Systems",0,{"$nulls":10},0,{"$nulls":10},0,{"$nulls":10},0,{"$nulls":11},0,0,0]
[null,"12.4","Marketing Expenses",0,{"$nulls":10},0,{"$nulls":10},0,{"$nulls":10},0,{"$nulls":11},0,0,0]
[null,"12.5","General  Administration",0,{"$nulls":10},0,{"$nulls":10},0,{"$nulls":10},0,{"$nulls":11},0,0,0]
[null,"12.6","Compliance/Regulatory",0,{"$nulls":10},0,{"$nulls":10},0,{"$nulls":10},0,{"$nulls":11},0,0,0]
[null,"12.7","Total Administrative Expenses ",{"$f":"E96+F96","v":0},{"$f":"SUM(E90:E95)","v":0},{"$f":"SUM(F90:F95)","v":0},{"$nulls":8},{"$f":"P96+Q96","v":0},{"$f":"SUM(P90:P95)","v":0},0,{"$nulls":8},{"$f":"AA96+AB96","v":0},{"$f":"SUM(AA90:AA95)","v":0},0,{"$nulls":8},{"$f":"AL96+AM96","v":0},{"$f":"SUM(AL90:AL95)","v":0},0,{"$nulls":8},{"$f":"SUM(AV90:AV95)","v":0},0,{"$f":"SUM(AX90:AX95)","v":0},{"$f":"SUM(AY90:AY95)","v":0}]
["Government-Mandated Assessments, Taxes, and Fees Other Than Income Taxes","13.1","State Premium tax",{"$nulls":45},{"$f":"D97+O97+Z97+AK97+AV97","v":0}]
[null,"13.2","Department of Insurance Assessments",{"$nulls":45},0]
[null,"13.3","Section 9010 Health Insurance Providers Fee",{"$nulls":45},0]
[null,"13.4","Other 1",{"$nulls":45},0]
[null,"13.5","Other 2",{"$nulls":45},0]
[null,"13.6","Other 3",{"$nulls":45},0]
[null,"13.7","Total ",{"$f":"SUM(D97:D102)","v":0},{"$nulls":10},{"$f":"SUM(O97:O102)","v":0},{"$nulls":10},{"$f":"SUM(Z97:Z102)","v":0},{"$nulls":10},{"$f":"SUM(AK97:AK102)","v":0},{"$nulls":10},{"$f":"SUM(AV97:AV102)","v":0},{"$f":"SUM(AW97:AW102)","v":0}]
[null,"14.0","Grand Total Expenses",{"$f":"D87+D96+D103","v":0},{"$nulls":10},{"$f":"O87+O96+O103","v":0},{"$nulls":10},{"$f":"Z87+Z96+Z103","v":0},{"$nulls":10},{"$f":"AK87+AK96+AK103","v":0},{"$nulls":10},{"$f":"AV87+AV96+AV103","v":0},{"$f":"AW87+AW96+AW103","v":0}]
[null,"15.0","Underwriting Gain / (Loss)  --- AKA Pre-tax Earnings from Operations",{"$f":"D17-D104","v":0},{"$nulls":10},{"$f":"O17-O104","v":0},{"$nulls":10},{"$f":"Z17-Z104","v":0},{"$nulls":10},{"$f":"AK17-AK104","v":0},{"$nulls":10},{"$f":"AV17-AV104","v":0},{"$f":"AW17-AW104","v":0}]
[null,"16.0","Income Tax Expense",{"$nulls":45},{"$f":"D106+O106+Z106+AK106+AV106","v":0}]
[null,"17.0","Net Underwriting Gain (Loss)",{"$f":"D105-D106","v":0},{"$nulls":10},{"$f":"O105-O106","v":0},{"$nulls":10},{"$f":"Z105-Z106","v":0},{"$nulls":10},{"$f":"AK105-AK106","v":0},{"$nulls":10},{"$f":"AV105-AV106","v":0},{"$f":"AW105-AW106","v":0}]

{"sheet":"MMA Rev-Exp Region 3","index":9,"n_rows":107,"n_cols":59,"rows_kept":107,"hidden":true,"merged":[[6,3,6,13],[6,14,6,24],[6,25,6,35],[6,36,6,46],[6,48,6,58],[9,0,9,2],[10,0,16,0],[17,0,18,2],[17,3,17,13],[17,14,17,24],[17,25,17,35],[17,36,17,46],[17,48,17,58],[19,0,27,0],[28,0,35,0],[36,0,39,0],[40,0,44,0],[45,0,49,0],[50,0,54,0],[55,0,62,0],[63,0,70,0],[71,0,75,0],[76,0,86,0],[87,0,88,2],[87,3,87,13],[87,14,87,24],[87,25,87,35],[87,36,87,46],[87,48,87,58],[89,0,95,0],[96,0,102,0]]}
["MANAGED MEDICAL ASSISTANCE -- REVENUE AND EXPENSE SCHEDULE - REGION 3"]
[]
["Health Plan:",null,{"$f":"'MMA Rev-Exp Summary'!C3","v":0}]
["Reporting Period:",null,{"$f":"IF('MMA Rev-Exp Summary'!C4=0,\"\",'MMA Rev-Exp Summary'!C4)","v":""}]
["Paid Through:",null,{"$f":"IF('MMA Rev-Exp Summary'!C5=0,\"\",'MMA Rev-Exp Summary'!C5)","v":""}]
["Region 3"]
[{"$nulls":3},"JANUARY - MARCH (Q1)",{"$nulls":10},"APRIL - JUNE (Q2)",{"$nulls":10},"JULY - SEPTEMBER (Q3)",{"$nulls":10},"OCTOBER - DECEMBER (Q4)",{"$nulls":11},"TOTAL (TO DATE)"]
[{"$nulls":3},"Total","TANF Non-SMI","TANF SMI","SSI Medicaid Only Non-SMI","SSI Medicaid Only SMI","Dual Eligible","Child Welfare","HIV/AIDS Dual Eligible","HIV/AIDS Medicaid Only","LTC Dual Eligible","LTC Medicaid Only","Total","TANF Non-SMI","TANF SMI","SSI Medicaid Only Non-SMI","SSI Medicaid Only SMI","Dual Eligible","Child Welfare","HIV/AIDS Dual Eligible","HIV/AIDS Medicaid Only","LTC Dual Eligible","LTC Medicaid Only","Total","TANF Non-SMI","TANF SMI","SSI Medicaid Only Non-SMI","SSI Medicaid Only SMI","Dual Eligible","Child Welfare","HIV/AIDS Dual Eligible","HIV/AIDS Medicaid Only","LTC Dual Eligible","LTC Medicaid Only","Total","TANF Non-SMI","TANF SMI","SSI Medicaid Only Non-SMI","SSI Medicaid Only SMI","Dual Eligible","Child Welfare","HIV/AIDS Dual Eligible","HIV/AIDS Medicaid Only","LTC Dual Eligible","LTC Medicaid Only","Prior Year Adjustments","Total","TANF Non-SMI","TANF SMI","SSI Medicaid Only Non-SMI","SSI Medicaid Only SMI","Dual Eligible","Child Welfare","HIV/AIDS Dual Eligible","HIV/AIDS Medicaid Only","LTC Dual Eligible","LTC Medicaid Only"]
["MEMBER MONTHS",null,null,{"$f":"SUM(E9:N9)","v":0},{"$nulls":10},{"$f":"SUM(P9:Y9)","v":0},{"$nulls":10},{"$f":"SUM(AA9:AJ9)","v":0},{"$nulls":10},{"$f":"SUM(AL9:AU9)","v":0},{"$nulls":11},{"$f":"AK9+Z9+O9+D9+AV9","v":0},{"$f":"AL9+AA9+P9+E9","v":0},{"$f":"AM9+AB9+Q9+F9","v":0},0,0,0,0,0,0,0,0]
["REVENUES"]
["Revenues",1.1,"Capitation",{"$f":"SUM(E11:N11)","v":0},{"$nulls":10},{"$f":"SUM(P11:Y11)","v":0},{"$nulls":10},{"$f":"SUM(AA11:AJ11)","v":0},{"$nulls":10},{"$f":"SUM(AL11:AU11)","v":0},{"$nulls":11},{"$f":"SUM(AX11:BG11)+AV11","v":0},{"$f":"E11+P11+AA11+AL11","v":0},0,0,0,0,0,0,0,0,0]
[null,1.2,"Transplant Kick Payments",0,{"$nulls":10},0,{"$nulls":10},0,{"$nulls":10},0,{"$nulls":11},{"$f":"SUM(AX12:BG12)+AV12","v":0},0,0,{"$f":"G12+R12+AC12+AN12","v":0},0,0,0,0,0,0,0]
[null,"1.3","Hepatitis C Kick Payments",0,{"$nulls":10},0,{"$nulls":10},0,{"$nulls":10},0,{"$nulls":11},0,0,0,{"$f":"G13+R13+AC13+AN13","v":0},0,0,0,0,0,0,0]
[null,"1.4.1","Maternity Kick Payments",0,{"$nulls":10},0,{"$nulls":10},0,{"$nulls":10},0,{"$nulls":11},0,0,0,{"$f":"G14+R14+AC14+AN14","v":0},0,0,0,0,0,0,0]
[null,"1.5","ACA § 9010 related payments",0,{"$nulls":10},0,{"$nulls":10},0,{"$nulls":10},0,{"$nulls":11},0,0,0,{"$f":"G15+R15+AC15+AN15","v":0},0,0,0,0,0,0,0]
[null,"1.6","Other Revenue",0,{"$nulls":10},0,{"$nulls":10},0,{"$nulls":10},0,{"$nulls":11},0,0,0,{"$f":"G16+R16+AC16+AN16","v":0},0,0,0,0,0,0,0]
[null,"1.7","Total Revenue",{"$f":"SUM(D11:D16)","v":0},{"$f":"SUM(E11:E16)","v":0},{"$f":"SUM(F11:F16)","v":0},{"$f":"SUM(G11:G16)","v":0},0,0,0,0,0,0,0,{"$f":"SUM(O11:O16)","v":0},{"$f":"SUM(P11:P16)","v":0},{"$f":"SUM(Q11:Q16)","v":0},{"$f":"SUM(R11:R16)","v":0},0,0,0,0,0,0,0,{"$f":"SUM(Z11:Z16)","v":0},{"$f":"SUM(AA11:AA16)","v":0},{"$f":"SUM(AB11:AB16)","v":0},{"$f":"SUM(AC11:AC16)","v":0},0,0,0,0,0,0,0,{"$f":"SUM(AK11:AK16)","v":0},{"$f":"SUM(AL11:AL16)","v":0},{"$f":"SUM(AM11:AM16)","v":0},0,0,0,0,0,0,0,0,0,{"$f":"SUM(AW11:AW16)","v":0},{"$f":"SUM(AX11:AX16)","v":0},{"$f":"SUM(AY11:AY16)","v":0},0,0,0,0,0,0,0,0]
["BENEFIT EXPENSES",null,null,"JANUARY - MARCH (Q1)",{"$nulls":10},"APRIL - JUNE (Q2)",{"$nulls":10},"JULY - SEPTEMBER (Q3)",{"$nulls":10},"OCTOBER - DECEMBER (Q4)",{"$nulls":11},"TOTAL (TO DATE)"]
[{"$nulls":3},"Total","TANF Non-SMI","TANF SMI","SSI Medicaid Only Non-SMI","SSI Medicaid Only SMI","Dual Eligible","Child Welfare","HIV/AIDS Dual Eligible","HIV/AIDS Medicaid Only","LTC Dual Eligible","LTC Medicaid Only","Total","TANF Non-SMI","TANF SMI","SSI Medicaid Only Non-SMI","SSI Medicaid Only SMI","Dual Eligible","Child Welfare","HIV/AIDS Dual Eligible","HIV/AIDS Medicaid Only","LTC Dual Eligible","LTC Medicaid Only","Total","TANF Non-SMI","TANF SMI","SSI Medicaid Only Non-SMI","SSI Medicaid Only SMI","Dual Eligible","Child Welfare","HIV/AIDS Dual Eligible","HIV/AIDS Medicaid Only","LTC Dual Eligible","LTC Medicaid Only","Total","TANF Non-SMI","TANF SMI","SSI Medicaid Only Non-SMI","SSI Medicaid Only SMI","Dual Eligible","Child Welfare","HIV/AIDS Dual Eligible","HIV/AIDS Medicaid Only","LTC Dual Eligible","LTC Medicaid Only","Prior Year Adjustments","Total","TANF Non-SMI","TANF SMI","SSI Medicaid Only Non-SMI","SSI Medicaid Only SMI","Dual Eligible","Child Welfare","HIV/AIDS Dual Eligible","HIV/AIDS Medicaid Only","LTC Dual Eligible","LTC Medicaid Only"]
["Hospital Services",2.1,"Inpatient FFS",{"$f":"SUM(E20:N20)","v":0},{"$nulls":10},{"$f":"SUM(P20:Y20)","v":0},{"$nulls":10},{"$f":"SUM(AA20:AJ20)","v":0},{"$nulls":10},{"$f":"SUM(AL20:AU20)","v":0},{"$nulls":11},{"$f":"SUM(AX20:BG20)+AV20","v":0},{"$f":"E20+P20+AA20+AL20","v":0},0,0,0,0,0,0,0,0,0]
[null,2.2,"Ending IBNP for Inpatient Hospital Services",0,{"$nulls":10},0,{"$nulls":10},0,{"$nulls":10},0,{"$nulls":11},{"$f":"SUM(AX21:BG21)+AV21","v":0},0,0,0,0,0,0,0,0,0,0]
[null,2.3,"Outpatient FFS: ER",0,{"$nulls":10},0,{"$nulls":10},0,{"$nulls":10},0,{"$nulls":11},0,0,0,0,0,0,0,0,0,0,0]
[null,2.4,"Outpatient FFS: Other than ER ",0,{"$nulls":10},0,{"$nulls":10},0,{"$nulls":10},0,{"$nulls":11},0,0,0,0,0,0,0,0,0,0,0]
[null,2.5,"Ending IBNP for Outpatient Hospital Services",0,{"$nulls":10},0,{"$nulls":10},0,{"$nulls":10},0,{"$nulls":11},0,0,0,0,0,0,0,0,0,0,0]
[null,"2.6","Subcapitated Hospital Services",0,{"$nulls":10},0,{"$nulls":10},0,{"$nulls":10},0,{"$nulls":11},0,0,0,0,0,0,0,0,0,0,0]
[null,"2.7","Hospital Settlements/AP",0,{"$nulls":10},0,{"$nulls":10},0,{"$nulls":10},0,{"$nulls":11},0,0,0,0,0,0,0,0,0,0,0]
[null,"2.7.1","Transplant Services",0,{"$nulls":10},0,{"$nulls":10},0,{"$nulls":10},0,{"$nulls":11},0,0,0,0,0,0,0,0,0,0,0]
[null,"2.8","Total Hospital Services",{"$f":"SUM(D20:D27)","v":0},{"$f":"SUM(E20:E27)","v":0},0,0,0,0,0,0,0,0,0,{"$f":"SUM(O20:O27)","v":0},{"$f":"SUM(P20:P27)","v":0},0,0,0,0,0,0,0,0,0,{"$f":"SUM(Z20:Z27)","v":0},{"$f":"SUM(AA20:AA27)","v":0},0,0,0,0,0,0,0,0,0,{"$f":"SUM(AK20:AK27)","v":0},{"$f":"SUM(AL20:AL27)","v":0},0,0,0,0,0,0,0,0,0,{"$f":"SUM(AV20:AV27)","v":0},{"$f":"SUM(AW20:AW27)","v":0},{"$f":"SUM(AX20:AX27)","v":0},0,0,0,0,0,0,0,0,0]
["Professional Services",3.1,"Primary Care FFS",{"$f":"SUM(E29:N29)","v":0},{"$nulls":10},{"$f":"SUM(P29:Y29)","v":0},{"$nulls":10},{"$f":"SUM(AA29:AJ29)","v":0},{"$nulls":10},{"$f":"SUM(AL29:AU29)","v":0},{"$nulls":11},{"$f":"SUM(AX29:BG29)+AV29","v":0},{"$f":"E29+P29+AA29+AL29","v":0},0,0,0,0,0,0,0,0,0]
[null,3.2,"Specialty Care FFS",0,{"$nulls":10},0,{"$nulls":10},0,{"$nulls":10},0,{"$nulls":11},0,0,0,0,0,0,0,0,0,0,0]
[null,3.3,"Other Professional FFS",0,{"$nulls":10},0,{"$nulls":10},0,{"$nulls":10},0,{"$nulls":11},0,0,0,0,0,0,0,0,0,0,0]
[null,"3.4","§ 1202 PCP Payments to providers",0,{"$nulls":10},{"$f":"SUM(P32:Y32)","v":0},{"$nulls":10},{"$f":"SUM(AA32:AJ32)","v":0},{"$nulls":10},{"$f":"SUM(AL32:AU32)","v":0},{"$nulls":11},{"$f":"SUM(AX32:BG32)+AV32","v":0},0,0,0,0,0,0,0,0,0,0]
[null,"3.5","Subcapitated Professional Services",0,{"$nulls":10},0,{"$nulls":10},0,{"$nulls":10},0,{"$nulls":11},{"$f":"SUM(AX33:BG33)+AV33","v":0},0,0,0,0,0,0,0,0,0,0]
[null,"3.6","Ending IBNP for Professional Services",0,{"$nulls":10},0,{"$nulls":10},0,{"$nulls":10},0,{"$nulls":11},0,0,0,0,0,0,0,0,0,0,0]
[null,"3.7","Professional Settlements/AP",0,{"$nulls":10},0,{"$nulls":10},0,{"$nulls":10},0,{"$nulls":11},0,0,0,0,0,0,0,0,0,0,0]
[null,"3.8","Total Physician Services",{"$f":"SUM(D29:D35)","v":0},0,0,0,0,0,0,0,0,0,0,0,0,0,0,0,0,0,0,0,0,0,0,0,0,0,0,0,0,0,0,0,0,0,0,0,0,0,0,0,0,0,0,0,0,0,0,0,0,0,0,0,0,0,0,0]
["Maternity Services","4.1.1","Maternity Services",{"$f":"SUM(E37:N37)","v":0},{"$nulls":10},{"$f":"SUM(P37:Y37)","v":0},{"$nulls":10},{"$f":"SUM(AA37:AJ37)","v":0},{"$nulls":10},{"$f":"SUM(AL37:AU37)","v":0},{"$nulls":11},{"$f":"SUM(AX37:BG37)+AV37","v":0},{"$f":"E37+P37+AA37+AL37","v":0},{"$f":"F37+Q37+AB37+AM37","v":0},{"$f":"G37+R37+AC37+AN37","v":0},0,0,0,0,0,0,0]
[null,"4.2.1","Ending IBNP for Maternity Services",{"$f":"SUM(E38:N38)","v":0},{"$nulls":10},{"$f":"SUM(P38:Y38)","v":0},{"$nulls":10},{"$f":"SUM(AA38:AJ38)","v":0},{"$nulls":10},{"$f":"SUM(AL38:AU38)","v":0},{"$nulls":11},{"$f":"SUM(AX38:BG38)+AV38","v":0},{"$f":"E38+P38+AA38+AL38","v":0},0,{"$f":"G38+R38+AC38+AN38","v":0},0,0,0,0,0,0,0]
[null,"4.3.1","Maternity Settlements/AP",{"$f":"SUM(E39:N39)","v":0},{"$nulls":10},{"$f":"SUM(P39:Y39)","v":0},{"$nulls":10},{"$f":"SUM(AA39:AJ39)","v":0},{"$nulls":10},{"$f":"SUM(AL39:AU39)","v":0},{"$nulls":11},{"$f":"SUM(AX39:BG39)+AV39","v":0},{"$f":"E39+P39+AA39+AL39","v":0},0,{"$f":"G39+R39+AC39+AN39","v":0},0,0,0,0,0,0,0]
[null,"4.4.1","Total Maternity Services",{"$f":"SUM(D37:D39)","v":0},0,0,0,0,0,0,0,0,0,0,{"$f":"SUM(O37:O39)","v":0},0,0,0,0,0,{"$f":"SUM(U37:U39)","v":0},0,0,0,0,0,0,0,0,0,0,0,0,{"$f":"SUM(AH37:AH39)","v":0},0,0,0,0,0,0,0,0,0,0,0,0,0,0,0,{"$f":"SUM(AX37:AX39)","v":0},{"$f":"SUM(AY37:AY39)","v":0},0,0,0,0,0,0,0,0]
["Mental Health",5.1,"Mental Health & Substance Abuse FFS",{"$f":"SUM(E41:N41)","v":0},{"$nulls":10},{"$f":"SUM(P41:Y41)","v":0},{"$nulls":10},{"$f":"SUM(AA41:AJ41)","v":0},{"$nulls":10},{"$f":"SUM(AL41:AU41)","v":0},{"$nulls":11},{"$f":"SUM(AX41:BG41)+AV41","v":0},{"$f":"E41+P41+AA41+AL41","v":0},{"$f":"F41+Q41+AB41+AM41","v":0},0,0,0,0,0,0,0,0]
[null,5.2,"Mental Health & Substance Abuse Subcapitation",{"$f":"SUM(E42:N42)","v":0},{"$nulls":10},{"$f":"SUM(P42:Y42)","v":0},{"$nulls":10},{"$f":"SUM(AA42:AJ42)","v":0},{"$nulls":10},{"$f":"SUM(AL42:AU42)","v":0},{"$nulls":11},{"$f":"SUM(AX42:BG42)+AV42","v":0},{"$f":"E42+P42+AA42+AL42","v":0},0,{"$f":"G42+R42+AC42+AN42","v":0},0,0,0,0,0,0,0]
[null,5.3,"Ending IBNP for Mental Health & Substance Abuse",{"$f":"SUM(E43:N43)","v":0},{"$nulls":10},{"$f":"SUM(P43:Y43)","v":0},{"$nulls":10},{"$f":"SUM(AA43:AJ43)","v":0},{"$nulls":10},{"$f":"SUM(AL43:AU43)","v":0},{"$nulls":11},{"$f":"SUM(AX43:BG43)+AV43","v":0},{"$f":"E43+P43+AA43+AL43","v":0},0,{"$f":"G43+R43+AC43+AN43","v":0},0,0,0,0,0,0,0]
[null,"5.4","Mental Health Settlements/AP",{"$f":"SUM(E44:N44)","v":0},{"$nulls":10},{"$f":"SUM(P44:Y44)","v":0},{"$nulls":10},{"$f":"SUM(AA44:AJ44)","v":0},{"$nulls":10},{"$f":"SUM(AL44:AU44)","v":0},{"$nulls":11},{"$f":"SUM(AX44:BG44)+AV44","v":0},{"$f":"E44+P44+AA44+AL44","v":0},0,{"$f":"G44+R44+AC44+AN44","v":0},0,0,0,0,0,0,0]
[null,"5.5","Total Mental Health & Substance Abuse Services",{"$f":"SUM(D41:D44)","v":0},{"$f":"SUM(E41:E44)","v":0},0,0,0,{"$f":"SUM(I41:I44)","v":0},0,0,0,0,0,0,0,0,0,0,0,0,0,0,0,0,0,0,0,0,0,0,0,0,0,0,0,0,0,0,0,0,0,0,0,0,0,0,0,0,0,0,0,0,0,0,0,0,0,0]
["Dental",6.1,"Dental FFS",{"$f":"SUM(E46:N46)","v":0},{"$nulls":10},{"$f":"SUM(P46:Y46)","v":0},{"$nulls":10},{"$f":"SUM(AA46:AJ46)","v":0},{"$nulls":10},{"$f":"SUM(AL46:AU46)","v":0},{"$nulls":11},{"$f":"SUM(AX46:BG46)+AV46","v":0},{"$f":"E46+P46+AA46+AL46","v":0},{"$f":"F46+Q46+AB46+AM46","v":0},0,0,0,0,0,0,0,0]
[null,6.2,"Dental Subcapitation",{"$f":"SUM(E47:N47)","v":0},{"$nulls":10},{"$f":"SUM(P47:Y47)","v":0},{"$nulls":10},{"$f":"SUM(AA47:AJ47)","v":0},{"$nulls":10},{"$f":"SUM(AL47:AU47)","v":0},{"$nulls":11},{"$f":"SUM(AX47:BG47)+AV47","v":0},{"$f":"E47+P47+AA47+AL47","v":0},0,{"$f":"G47+R47+AC47+AN47","v":0},0,0,0,0,0,0,0]
[null,6.3,"Ending IBNP for Dental Services",{"$f":"SUM(E48:N48)","v":0},{"$nulls":10},{"$f":"SUM(P48:Y48)","v":0},{"$nulls":10},{"$f":"SUM(AA48:AJ48)","v":0},{"$nulls":10},{"$f":"SUM(AL48:AU48)","v":0},{"$nulls":11},{"$f":"SUM(AX48:BG48)+AV48","v":0},{"$f":"E48+P48+AA48+AL48","v":0},0,{"$f":"G48+R48+AC48+AN48","v":0},0,0,0,0,0,0,0]
[null,"6.4","Dental Settlements/AP",{"$f":"SUM(E49:N49)","v":0},{"$nulls":10},{"$f":"SUM(P49:Y49)","v":0},{"$nulls":10},{"$f":"SUM(AA49:AJ49)","v":0},{"$nulls":10},{"$f":"SUM(AL49:AU49)","v":0},{"$nulls":11},{"$f":"SUM(AX49:BG49)+AV49","v":0},{"$f":"E49+P49+AA49+AL49","v":0},0,{"$f":"G49+R49+AC49+AN49","v":0},0,0,0,0,0,0,0]
[null,"6.5","Total Dental Services",{"$f":"SUM(D46:D49)","v":0},{"$f":"SUM(E46:E49)","v":0},0,0,0,0,0,0,0,0,0,0,0,0,0,0,0,0,0,0,0,0,0,0,0,0,0,0,0,0,0,0,0,0,0,0,0,0,0,0,0,0,0,0,0,0,0,0,0,0,0,0,0,0,0,0]
["Transportation",7.1,"Transportation FFS",{"$f":"SUM(E51:N51)","v":0},{"$nulls":10},{"$f":"SUM(P51:Y51)","v":0},{"$nulls":10},{"$f":"SUM(AA51:AJ51)","v":0},{"$nulls":10},{"$f":"SUM(AL51:AU51)","v":0},{"$nulls":11},{"$f":"SUM(AX51:BG51)+AV51","v":0},{"$f":"E51+P51+AA51+AL51","v":0},{"$f":"F51+Q51+AB51+AM51","v":0},0,0,0,0,0,0,0,0]
[null,7.2,"Transportation Subcapitation",{"$f":"SUM(E52:N52)","v":0},{"$nulls":10},{"$f":"SUM(P52:Y52)","v":0},{"$nulls":10},{"$f":"SUM(AA52:AJ52)","v":0},{"$nulls":10},{"$f":"SUM(AL52:AU52)","v":0},{"$nulls":11},{"$f":"SUM(AX52:BG52)+AV52","v":0},{"$f":"E52+P52+AA52+AL52","v":0},0,{"$f":"G52+R52+AC52+AN52","v":0},0,0,0,0,0,0,0]
[null,7.3,"Ending IBNP for Transportation",{"$f":"SUM(E53:N53)","v":0},{"$nulls":10},{"$f":"SUM(P53:Y53)","v":0},{"$nulls":10},{"$f":"SUM(AA53:AJ53)","v":0},{"$nulls":10},{"$f":"SUM(AL53:AU53)","v":0},{"$nulls":11},{"$f":"SUM(AX53:BG53)+AV53","v":0},{"$f":"E53+P53+AA53+AL53","v":0},0,{"$f":"G53+R53+AC53+AN53","v":0},0,0,0,0,0,0,0]
[null,"7.4","Transportation Settlements/AP",{"$f":"SUM(E54:N54)","v":0},{"$nulls":10},{"$f":"SUM(P54:Y54)","v":0},{"$nulls":10},{"$f":"SUM(AA54:AJ54)","v":0},{"$nulls":10},{"$f":"SUM(AL54:AU54)","v":0},{"$nulls":11},{"$f":"SUM(AX54:BG54)+AV54","v":0},{"$f":"E54+P54+AA54+AL54","v":0},0,{"$f":"G54+R54+AC54+AN54","v":0},0,0,0,0,0,0,0]
[null,"7.5","Total Transportation Services",{"$f":"SUM(D51:D54)","v":0},{"$f":"SUM(E51:E54)","v":0},0,0,0,0,0,0,0,0,0,0,0,0,0,0,0,0,0,0,{"$f":"SUM(X51:X54)","v":0},0,0,0,0,0,0,0,0,0,0,0,0,0,0,0,0,0,0,0,0,0,0,0,0,0,0,0,0,0,0,0,0,0,0,0]
["Pharmacy",8.1,"Prescription Drugs FFS",{"$f":"SUM(E56:N56)","v":0},{"$nulls":10},{"$f":"SUM(P56:Y56)","v":0},{"$nulls":10},{"$f":"SUM(AA56:AJ56)","v":0},{"$nulls":10},{"$f":"SUM(AL56:AU56)","v":0},{"$nulls":11},{"$f":"SUM(AX56:BG56)+AV56","v":0},{"$f":"E56+P56+AA56+AL56","v":0},0,0,0,0,0,0,0,0,0]
[null,"8.2","Hepatitis C Prescription Drug FFS",0,{"$nulls":10},0,{"$nulls":10},0,{"$nulls":10},0,{"$nulls":11},{"$f":"SUM(AX57:BG57)+AV57","v":0},0,0,0,0,0,0,0,0,0,0]
[null,"8.3","Ending IBNP for Prescription Drugs",0,{"$nulls":10},0,{"$nulls":10},0,{"$nulls":10},0,{"$nulls":11},0,0,0,0,0,0,0,0,0,0,0]
[null,"8.4","Prescription Drug Rebates ",0,{"$nulls":10},0,{"$nulls":10},0,{"$nulls":10},0,{"$nulls":11},0,0,0,0,0,0,0,0,0,0,0]
[null,"8.5","Ending accrual for Rebates receivable",0,{"$nulls":10},0,{"$nulls":10},0,{"$nulls":10},0,{"$nulls":11},0,0,0,0,0,0,0,0,0,0,0]
[null,"8.6","Prescription Drugs Subcapitation",0,{"$nulls":10},0,{"$nulls":10},0,{"$nulls":10},0,{"$nulls":11},0,0,0,0,0,0,0,0,0,0,0]
[null,"8.7","Prescription Drug Settlements/AP",0,{"$nulls":10},0,{"$nulls":10},0,{"$nulls":10},0,{"$nulls":11},0,0,0,0,0,0,0,0,0,0,0]
[null,"8.8","Total Prescription Drugs",{"$f":"SUM(D56:D62)","v":0},{"$f":"SUM(E56:E62)","v":0},0,0,0,0,0,0,0,0,0,0,0,0,0,0,0,0,0,0,0,0,0,0,0,0,0,0,0,0,0,0,0,0,0,0,0,0,0,0,0,0,0,0,0,0,0,0,0,0,0,0,0,0,0,0]
["Other Services",9.1,"Home Health, Private Duty Nursing, Personal Care FFS",{"$f":"SUM(E64:L64)","v":0},{"$nulls":10},{"$f":"SUM(P64:W64)","v":0},{"$nulls":10},{"$f":"SUM(AA64:AH64)","v":0},{"$nulls":10},{"$f":"SUM(AL64:AS64)","v":0},{"$nulls":11},{"$f":"SUM(AX64:BE64)+AV64","v":0},{"$f":"E64+P64+AA64+AL64","v":0},0,0,0,0,0,0,0]
[null,"9.2","Hospice FFS",{"$f":"SUM(E65:L65)","v":0},{"$nulls":10},{"$f":"SUM(P65:W65)","v":0},{"$nulls":10},{"$f":"SUM(AA65:AH65)","v":0},{"$nulls":10},{"$f":"SUM(AL65:AS65)","v":0},{"$nulls":11},{"$f":"SUM(AX65:BE65)+AV65","v":0},0,0,0,0,0,0,0,0]
[null,"9.3","DME FFS",{"$f":"SUM(E66:L66)","v":0},{"$nulls":10},{"$f":"SUM(P66:W66)","v":0},{"$nulls":10},{"$f":"SUM(AA66:AH66)","v":0},{"$nulls":10},{"$f":"SUM(AL66:AS66)","v":0},{"$nulls":11},0,0,0,0,0,0,0,0,0]
[null,"9.4","Other State Plan Services FFS",{"$f":"SUM(E67:N67)","v":0},{"$nulls":10},{"$f":"SUM(P67:Y67)","v":0},{"$nulls":10},{"$f":"SUM(AA67:AJ67)","v":0},{"$nulls":10},{"$f":"SUM(AL67:AU67)","v":0},{"$nulls":11},{"$f":"SUM(AX67:BG67)+AV67","v":0},0,0,0,0,0,0,0,0,0,0]
[null,"9.5","Other Services Subcapitation",{"$f":"SUM(E68:N68)","v":0},{"$nulls":10},{"$f":"SUM(P68:Y68)","v":0},{"$nulls":10},{"$f":"SUM(AA68:AJ68)","v":0},{"$nulls":10},{"$f":"SUM(AL68:AU68)","v":0},{"$nulls":11},{"$f":"SUM(AX68:BG68)+AV68","v":0},0,0,0,0,0,0,0,0,0,0]
[null,"9.6","Ending IBNP for Other Services",{"$f":"SUM(E69:N69)","v":0},{"$nulls":10},{"$f":"SUM(P69:Y69)","v":0},{"$nulls":10},{"$f":"SUM(AA69:AJ69)","v":0},{"$nulls":10},{"$f":"SUM(AL69:AU69)","v":0},{"$nulls":11},{"$f":"SUM(AX69:BG69)+AV69","v":0},0,0,0,0,0,0,0,0,0,0]
[null,"9.7","Other Services Settlements/AP",{"$f":"SUM(E70:N70)","v":0},{"$nulls":10},{"$f":"SUM(P70:Y70)","v":0},{"$nulls":10},{"$f":"SUM(AA70:AJ70)","v":0},{"$nulls":10},{"$f":"SUM(AL70:AU70)","v":0},{"$nulls":11},{"$f":"SUM(AX70:BG70)+AV70","v":0},0,0,0,0,0,0,0,0,0,0]
[null,"9.8","Total Other Services",{"$f":"SUM(D64:D70)","v":0},{"$f":"SUM(E64:E70)","v":0},0,0,0,0,0,0,0,{"$f":"SUM(M67:M70)","v":0},{"$f":"SUM(N67:N70)","v":0},0,0,0,0,0,0,0,0,0,{"$f":"SUM(X67:X70)","v":0},{"$f":"SUM(Y67:Y70)","v":0},0,0,0,0,0,0,0,0,0,{"$f":"SUM(AI67:AI70)","v":0},{"$f":"SUM(AJ67:AJ70)","v":0},0,0,0,0,0,0,0,0,0,{"$f":"SUM(AT67:AT70)","v":0},{"$f":"SUM(AU67:AU70)","v":0},{"$f":"SUM(AV64:AV70)","v":0},0,0,0,0,0,0,0,{"$f":"SUM(BD64:BD70)","v":0},{"$f":"SUM(BE64:BE70)","v":0},{"$f":"SUM(BF67:BF70)","v":0},{"$f":"SUM(BG67:BG70)","v":0}]
["Expanded Benefits","10.1","Expanded Benefits FFS",{"$f":"SUM(E72:N72)","v":0},{"$nulls":10},{"$f":"SUM(P72:Y72)","v":0},{"$nulls":10},{"$f":"SUM(AA72:AJ72)","v":0},{"$nulls":10},{"$f":"SUM(AL72:AU72)","v":0},{"$nulls":11},{"$f":"SUM(AX72:BG72)+AV72","v":0},{"$f":"E72+P72+AA72+AL72","v":0},{"$f":"F72+Q72+AB72+AM72","v":0},0,0,0,0,0,0,0,0]
[null,"10.2","Expanded Benefits Subcapitation",{"$f":"SUM(E73:N73)","v":0},{"$nulls":10},{"$f":"SUM(P73:Y73)","v":0},{"$nulls":10},{"$f":"SUM(AA73:AJ73)","v":0},{"$nulls":10},{"$f":"SUM(AL73:AU73)","v":0},{"$nulls":11},{"$f":"SUM(AX73:BG73)+AV73","v":0},{"$f":"E73+P73+AA73+AL73","v":0},0,{"$f":"G73+R73+AC73+AN73","v":0},0,0,0,0,0,0,0]
[null,"10.3","Ending IBNP for Expanded Benefits",{"$f":"SUM(E74:N74)","v":0},{"$nulls":10},{"$f":"SUM(P74:Y74)","v":0},{"$nulls":10},{"$f":"SUM(AA74:AJ74)","v":0},{"$nulls":10},{"$f":"SUM(AL74:AU74)","v":0},{"$nulls":11},{"$f":"SUM(AX74:BG74)+AV74","v":0},{"$f":"E74+P74+AA74+AL74","v":0},0,{"$f":"G74+R74+AC74+AN74","v":0},0,0,0,0,0,0,0]
[null,"10.4","Expanded Benefits Settlements/AP",{"$f":"SUM(E75:N75)","v":0},{"$nulls":10},{"$f":"SUM(P75:Y75)","v":0},{"$nulls":10},{"$f":"SUM(AA75:AJ75)","v":0},{"$nulls":10},{"$f":"SUM(AL75:AU75)","v":0},{"$nulls":11},{"$f":"SUM(AX75:BG75)+AV75","v":0},{"$f":"E75+P75+AA75+AL75","v":0},0,{"$f":"G75+R75+AC75+AN75","v":0},0,0,0,0,0,0,0]
[null,"10.5","Total Expanded Benefits",{"$f":"SUM(D72:D75)","v":0},{"$f":"SUM(E72:E75)","v":0},0,0,0,0,0,0,0,0,0,0,0,0,0,0,0,0,0,0,{"$f":"SUM(X72:X75)","v":0},0,0,0,0,0,0,0,0,0,0,0,0,0,0,0,0,0,0,0,0,0,0,0,0,0,0,0,0,0,0,0,0,0,0,0]
["Totals Before and After Reinsurance","11.1","Total Services Paid Directly FFS",{"$f":"D20+SUM(D22:D23,D27)+SUM(D29:D32)+D37+D41+D46+D51+SUM(D56:D57)+SUM(D59:D60)+SUM(D64:D67)+D72","v":0},{"$f":"E20+SUM(E22:E23,E27)+SUM(E29:E32)+E37+E41+E46+E51+SUM(E56:E57)+SUM(E59:E60)+SUM(E64:E67)+E72","v":0},{"$f":"F20+SUM(F22:F23,F27)+SUM(F29:F32)+F37+F41+F46+F51+SUM(F56:F57)+SUM(F59:F60)+SUM(F64:F67)+F72","v":0},{"$f":"G20+SUM(G22:G23,G27)+SUM(G29:G32)+G37+G41+G46+G51+SUM(G56:G57)+SUM(G59:G60)+SUM(G64:G67)+G72","v":0},0,0,0,0,0,0,0,{"$f":"O20+SUM(O22:O23,O27)+SUM(O29:O32)+O37+O41+O46+O51+SUM(O56:O57)+SUM(O59:O60)+SUM(O64:O67)+O72","v":0},{"$f":"P20+SUM(P22:P23,P27)+SUM(P29:P32)+P37+P41+P46+P51+SUM(P56:P57)+SUM(P59:P60)+SUM(P64:P67)+P72","v":0},0,0,0,0,0,0,0,0,0,{"$f":"Z20+SUM(Z22:Z23,Z27)+SUM(Z29:Z32)+Z37+Z41+Z46+Z51+SUM(Z56:Z57)+SUM(Z59:Z60)+SUM(Z64:Z67)+Z72","v":0},{"$f":"AA20+SUM(AA22:AA23,AA27)+SUM(AA29:AA32)+AA37+AA41+AA46+AA51+SUM(AA56:AA57)+SUM(AA59:AA60)+SUM(AA64:AA67)+AA72","v":0},0,0,0,0,0,0,0,0,0,{"$f":"AK20+SUM(AK22:AK23,AK27)+SUM(AK29:AK32)+AK37+AK41+AK46+AK51+SUM(AK56:AK57)+SUM(AK59:AK60)+SUM(AK64:AK67)+AK72","v":0},{"$f":"AL20+SUM(AL22:AL23,AL27)+SUM(AL29:AL32)+AL37+AL41+AL46+AL51+SUM(AL56:AL57)+SUM(AL59:AL60)+SUM(AL64:AL67)+AL72","v":0},0,0,0,0,0,0,0,0,0,{"$f":"AV20+SUM(AV22:AV23,AV27)+SUM(AV29:AV32)+AV37+AV41+AV46+AV51+SUM(AV56:AV57)+SUM(AV59:AV60)+SUM(AV64:AV67)+AV72","v":0},{"$f":"AW20+SUM(AW22:AW23,AW27)+SUM(AW29:AW32)+AW37+AW41+AW46+AW51+SUM(AW56:AW57)+SUM(AW59:AW60)+SUM(AW64:AW67)+AW72","v":0},{"$f":"AX20+SUM(AX22:AX23,AX27)+SUM(AX29:AX32)+AX37+AX41+AX46+AX51+SUM(AX56:AX57)+SUM(AX59:AX60)+SUM(AX64:AX67)+AX72","v":0},0,0,0,0,0,0,0,0,0]
[null,"11.2","Total Services Paid Directly -- IBNP",{"$f":"D21+D24+D34+D38+D43+D48+D53+D58+D69+D74","v":0},{"$f":"E21+E24+E34+E38+E43+E48+E53+E58+E69+E74","v":0},{"$f":"F21+F24+F34+F38+F43+F48+F53+F58+F69+F74","v":0},{"$f":"G21+G24+G34+G38+G43+G48+G53+G58+G69+G74","v":0},0,0,0,0,0,0,0,{"$f":"O21+O24+O34+O38+O43+O48+O53+O58+O69+O74","v":0},{"$f":"P21+P24+P34+P38+P43+P48+P53+P58+P69+P74","v":0},0,0,0,0,0,0,0,0,0,{"$f":"Z21+Z24+Z34+Z38+Z43+Z48+Z53+Z58+Z69+Z74","v":0},{"$f":"AA21+AA24+AA34+AA38+AA43+AA48+AA53+AA58+AA69+AA74","v":0},0,0,0,0,0,0,0,0,0,{"$f":"AK21+AK24+AK34+AK38+AK43+AK48+AK53+AK58+AK69+AK74","v":0},{"$f":"AL21+AL24+AL34+AL38+AL43+AL48+AL53+AL58+AL69+AL74","v":0},0,0,0,0,0,0,0,0,0,{"$f":"AV21+AV24+AV34+AV38+AV43+AV48+AV53+AV58+AV69+AV74","v":0},{"$f":"AW21+AW24+AW34+AW38+AW43+AW48+AW53+AW58+AW69+AW74","v":0},{"$f":"AX21+AX24+AX34+AX38+AX43+AX48+AX53+AX58+AX69+AX74","v":0},0,0,0,0,0,0,0,0,0]
[null,"11.3","Total Services Paid through Subcapitation",{"$f":"D25+D33+D42+D47+D52+D61+D68+D73","v":0},{"$f":"E25+E33+E42+E47+E52+E61+E68+E73","v":0},{"$f":"F25+F33+F42+F47+F52+F61+F68+F73","v":0},{"$f":"G25+G33+G42+G47+G52+G61+G68+G73","v":0},0,0,0,0,0,0,0,{"$f":"O25+O33+O42+O47+O52+O61+O68+O73","v":0},{"$f":"P25+P33+P42+P47+P52+P61+P68+P73","v":0},0,0,0,0,0,0,0,0,0,{"$f":"Z25+Z33+Z42+Z47+Z52+Z61+Z68+Z73","v":0},{"$f":"AA25+AA33+AA42+AA47+AA52+AA61+AA68+AA73","v":0},0,0,0,0,0,0,0,0,0,{"$f":"AK25+AK33+AK42+AK47+AK52+AK61+AK68+AK73","v":0},{"$f":"AL25+AL33+AL42+AL47+AL52+AL61+AL68+AL73","v":0},0,0,0,0,0,0,0,0,0,{"$f":"AV25+AV33+AV42+AV47+AV52+AV61+AV68+AV73","v":0},{"$f":"AW25+AW33+AW42+AW47+AW52+AW61+AW68+AW73","v":0},{"$f":"AX25+AX33+AX42+AX47+AX52+AX61+AX68+AX73","v":0},0,0,0,0,0,0,0,0,0]
[null,"11.4","Total Services Paid by Settlements/AP",{"$f":"D26+D35+D39+D44+D49+D54+D62+D70+D75","v":0},{"$f":"E26+E35+E39+E44+E49+E54+E62+E70+E75","v":0},{"$f":"F26+F35+F39+F44+F49+F54+F62+F70+F75","v":0},{"$f":"G26+G35+G39+G44+G49+G54+G62+G70+G75","v":0},0,0,0,0,0,0,0,{"$f":"O26+O35+O39+O44+O49+O54+O62+O70+O75","v":0},{"$f":"P26+P35+P39+P44+P49+P54+P62+P70+P75","v":0},0,0,0,0,0,0,0,0,0,{"$f":"Z26+Z35+Z39+Z44+Z49+Z54+Z62+Z70+Z75","v":0},{"$f":"AA26+AA35+AA39+AA44+AA49+AA54+AA62+AA70+AA75","v":0},0,0,0,0,0,0,0,0,0,{"$f":"AK26+AK35+AK39+AK44+AK49+AK54+AK62+AK70+AK75","v":0},{"$f":"AL26+AL35+AL39+AL44+AL49+AL54+AL62+AL70+AL75","v":0},0,0,0,0,0,0,0,0,0,0,{"$f":"AW26+AW35+AW39+AW44+AW49+AW54+AW62+AW70+AW75","v":0},{"$f":"AX26+AX35+AX39+AX44+AX49+AX54+AX62+AX70+AX75","v":0},0,0,0,0,0,0,0,0,0]
[null,"11.5","TPL & Fraud/Abuse Recoveries",{"$f":"SUM(E81:N81)","v":0},{"$nulls":10},{"$f":"SUM(P81:Y81)","v":0},{"$nulls":10},{"$f":"SUM(AA81:AJ81)","v":0},{"$nulls":10},{"$f":"SUM(AL81:AU81)","v":0},{"$nulls":11},{"$f":"SUM(AX81:BG81)+AV81","v":0},{"$f":"E81+P81+AA81+AL81","v":0},{"$f":"F81+Q81+AB81+AM81","v":0},{"$f":"G81+R81+AC81+AN81","v":0},{"$f":"H81+S81+AD81+AO81","v":0},0,0,0,0,0,0]
[null,"11.6.1","Premium Deficiency Reserve",{"$f":"SUM(E82:N82)","v":0},{"$nulls":10},{"$f":"SUM(P82:Y82)","v":0},{"$nulls":10},{"$f":"SUM(AA82:AJ82)","v":0},{"$nulls":10},{"$f":"SUM(AL82:AU82)","v":0},{"$nulls":11},{"$f":"SUM(AX82:BG82)+AV82","v":0},{"$f":"E82+P82+AA82+AL82","v":0},0,{"$f":"G82+R82+AC82+AN82","v":0},0,0,0,0,0,0,0]
[null,"11.7","Subtotal Benefit Expense before Reinsurance",{"$f":"SUM(D77:D82)","v":0},{"$f":"SUM(E77:E82)","v":0},0,0,0,0,0,0,0,0,0,0,0,0,0,0,0,0,0,0,0,0,0,0,0,0,0,0,0,0,0,0,0,0,0,0,0,0,0,0,0,0,0,0,0,0,0,0,0,0,0,0,0,0,0,0]
[null,"11.8","Reinsurance Premiums",{"$f":"SUM(E84:N84)","v":0},{"$nulls":10},{"$f":"SUM(P84:Y84)","v":0},{"$nulls":10},{"$f":"SUM(AA84:AJ84)","v":0},{"$nulls":10},{"$f":"SUM(AL84:AU84)","v":0},{"$nulls":11},{"$f":"SUM(AX84:BG84)+AV84","v":0},{"$f":"E84+P84+AA84+AL84","v":0},{"$f":"F84+Q84+AB84+AM84","v":0},0,0,0,0,0,0,0,0]
[null,"11.9","Reinsurance Recoveries",{"$f":"SUM(E85:N85)","v":0},{"$nulls":10},{"$f":"SUM(P85:Y85)","v":0},{"$nulls":10},{"$f":"SUM(AA85:AJ85)","v":0},{"$nulls":10},{"$f":"SUM(AL85:AU85)","v":0},{"$nulls":11},{"$f":"SUM(AX85:BG85)+AV85","v":0},{"$f":"E85+P85+AA85+AL85","v":0},0,{"$f":"G85+R85+AC85+AN85","v":0},0,0,0,0,0,0,0]
[null,"11.10","Net cost of Reinsurance",{"$f":"SUM(D84:D85)","v":0},{"$f":"SUM(E84:E85)","v":0},0,0,0,0,0,0,0,0,0,{"$f":"SUM(O84:O85)","v":0},{"$f":"SUM(P84:P85)","v":0},0,0,0,0,0,0,0,0,0,{"$f":"SUM(Z84:Z85)","v":0},{"$f":"SUM(AA84:AA85)","v":0},0,0,0,0,0,0,0,0,0,{"$f":"SUM(AK84:AK85)","v":0},{"$f":"SUM(AL84:AL85)","v":0},{"$f":"SUM(AM84:AM85)","v":0},0,0,0,0,0,0,0,0,0,{"$f":"SUM(AW84:AW85)","v":0},{"$f":"SUM(AX84:AX85)","v":0},0,{"$f":"SUM(AZ84:AZ85)","v":0},0,{"$f":"SUM(BB84:BB85)","v":0},0,0,0,0,0]
[null,"11.11","Grand Total Medical Benefit Expense Net of Reinsurance",{"$f":"D83+D86","v":0},{"$f":"E83+E86","v":0},0,0,0,0,0,0,0,0,0,{"$f":"O83+O86","v":0},{"$f":"P83+P86","v":0},0,0,0,0,0,0,0,0,0,{"$f":"Z83+Z86","v":0},{"$f":"AA83+AA86","v":0},0,0,0,0,0,0,0,0,0,{"$f":"AK83+AK86","v":0},{"$f":"AL83+AL86","v":0},{"$f":"AM83+AM86","v":0},0,0,0,0,0,0,0,0,0,{"$f":"AW83+AW86","v":0},{"$f":"AX83+AX86","v":0},{"$f":"AY83+AY86","v":0},0,0,0,0,0,0,0,0]
["Administrative Expenses, Government-Mandated Assessments, Taxes, and Fees ",null,null,"JANUARY - MARCH (Q1)",{"$nulls":10},"APRIL - JUNE (Q2)",{"$nulls":10},"JULY - SEPTEMBER (Q3)",{"$nulls":10},"OCTOBER - DECEMBER (Q4)",{"$nulls":11},"TOTAL (TO DATE)"]
[{"$nulls":3},"Total","Health Plan","Corporate",{"$nulls":8},"Total","Health Plan","Corporate",{"$nulls":8},"Total","Health Plan","Corporate",{"$nulls":8},"Total","Health Plan","Corporate",{"$nulls":8},"Prior Year Adjustments","Total","Health Plan","Corporate"]
["Administrative Expenses","12.1","Salaries & Benefits",{"$f":"E90+F90","v":0},{"$nulls":10},{"$f":"P90+Q90","v":0},{"$nulls":10},{"$f":"AA90+AB90","v":0},{"$nulls":10},{"$f":"AL90+AM90","v":0},{"$nulls":11},{"$f":"AX90+AY90+AV90","v":0},{"$f":"E90+P90+AA90+AL90","v":0},{"$f":"F90+Q90+AB90+AM90","v":0}]
[null,"12.2","Administrative Services",{"$f":"E91+F91","v":0},{"$nulls":10},{"$f":"P91+Q91","v":0},{"$nulls":10},{"$f":"AA91+AB91","v":0},{"$nulls":10},{"$f":"AL91+AM91","v":0},{"$nulls":11},0,{"$f":"E91+P91+AA91+AL91","v":0},0]
[null,"12.3","Information Systems",0,{"$nulls":10},0,{"$nulls":10},0,{"$nulls":10},0,{"$nulls":11},0,0,0]
[null,"12.4","Marketing Expenses",0,{"$nulls":10},0,{"$nulls":10},0,{"$nulls":10},0,{"$nulls":11},0,0,0]
[null,"12.5","General  Administration",0,{"$nulls":10},0,{"$nulls":10},0,{"$nulls":10},0,{"$nulls":11},0,0,0]
[null,"12.6","Compliance/Regulatory",0,{"$nulls":10},0,{"$nulls":10},0,{"$nulls":10},0,{"$nulls":11},0,0,0]
[null,"12.7","Total Administrative Expenses ",{"$f":"E96+F96","v":0},{"$f":"SUM(E90:E95)","v":0},{"$f":"SUM(F90:F95)","v":0},{"$nulls":8},{"$f":"P96+Q96","v":0},{"$f":"SUM(P90:P95)","v":0},0,{"$nulls":8},{"$f":"AA96+AB96","v":0},{"$f":"SUM(AA90:AA95)","v":0},0,{"$nulls":8},{"$f":"AL96+AM96","v":0},{"$f":"SUM(AL90:AL95)","v":0},0,{"$nulls":8},{"$f":"SUM(AV90:AV95)","v":0},0,{"$f":"SUM(AX90:AX95)","v":0},{"$f":"SUM(AY90:AY95)","v":0}]
["Government-Mandated Assessments, Taxes, and Fees Other Than Income Taxes","13.1","State Premium tax",{"$nulls":45},{"$f":"D97+O97+Z97+AK97+AV97","v":0}]
[null,"13.2","Department of Insurance Assessments",{"$nulls":45},0]
[null,"13.3","Section 9010 Health Insurance Providers Fee",{"$nulls":45},0]
[null,"13.4","Other 1",{"$nulls":45},0]
[null,"13.5","Other 2",{"$nulls":45},0]
[null,"13.6","Other 3",{"$nulls":45},0]
[null,"13.7","Total ",{"$f":"SUM(D97:D102)","v":0},{"$nulls":10},{"$f":"SUM(O97:O102)","v":0},{"$nulls":10},{"$f":"SUM(Z97:Z102)","v":0},{"$nulls":10},{"$f":"SUM(AK97:AK102)","v":0},{"$nulls":10},{"$f":"SUM(AV97:AV102)","v":0},{"$f":"SUM(AW97:AW102)","v":0}]
[null,"14.0","Grand Total Expenses",{"$f":"D87+D96+D103","v":0},{"$nulls":10},{"$f":"O87+O96+O103","v":0},{"$nulls":10},{"$f":"Z87+Z96+Z103","v":0},{"$nulls":10},{"$f":"AK87+AK96+AK103","v":0},{"$nulls":10},{"$f":"AV87+AV96+AV103","v":0},{"$f":"AW87+AW96+AW103","v":0}]
[null,"15.0","Underwriting Gain / (Loss)  --- AKA Pre-tax Earnings from Operations",{"$f":"D17-D104","v":0},{"$nulls":10},{"$f":"O17-O104","v":0},{"$nulls":10},{"$f":"Z17-Z104","v":0},{"$nulls":10},{"$f":"AK17-AK104","v":0},{"$nulls":10},{"$f":"AV17-AV104","v":0},{"$f":"AW17-AW104","v":0}]
[null,"16.0","Income Tax Expense",{"$nulls":45},{"$f":"D106+O106+Z106+AK106+AV106","v":0}]
[null,"17.0","Net Underwriting Gain (Loss)",{"$f":"D105-D106","v":0},{"$nulls":10},{"$f":"O105-O106","v":0},{"$nulls":10},{"$f":"Z105-Z106","v":0},{"$nulls":10},{"$f":"AK105-AK106","v":0},{"$nulls":10},{"$f":"AV105-AV106","v":0},{"$f":"AW105-AW106","v":0}]

{"sheet":"MMA Rev-Exp Region 4","index":10,"n_rows":107,"n_cols":59,"rows_kept":107,"hidden":true,"merged":[[6,3,6,13],[6,14,6,24],[6,25,6,35],[6,36,6,46],[6,48,6,58],[9,0,9,2],[10,0,16,0],[17,0,18,2],[17,3,17,13],[17,14,17,24],[17,25,17,35],[17,36,17,46],[17,48,17,58],[19,0,27,0],[28,0,35,0],[36,0,39,0],[40,0,44,0],[45,0,49,0],[50,0,54,0],[55,0,62,0],[63,0,70,0],[71,0,75,0],[76,0,86,0],[87,0,88,2],[87,3,87,13],[87,14,87,24],[87,25,87,35],[87,36,87,46],[87,48,87,58],[89,0,95,0],[96,0,102,0]]}
["MANAGED MEDICAL ASSISTANCE -- REVENUE AND EXPENSE SCHEDULE - REGION 4"]
[]
["Health Plan:",null,{"$f":"'MMA Rev-Exp Summary'!C3","v":0}]
["Reporting Period:",null,{"$f":"IF('MMA Rev-Exp Summary'!C4=0,\"\",'MMA Rev-Exp Summary'!C4)","v":""}]
["Paid Through:",null,{"$f":"IF('MMA Rev-Exp Summary'!C5=0,\"\",'MMA Rev-Exp Summary'!C5)","v":""}]
["Region 4"]
[{"$nulls":3},"JANUARY - MARCH (Q1)",{"$nulls":10},"APRIL - JUNE (Q2)",{"$nulls":10},"JULY - SEPTEMBER (Q3)",{"$nulls":10},"OCTOBER - DECEMBER (Q4)",{"$nulls":11},"TOTAL (TO DATE)"]
[{"$nulls":3},"Total","TANF Non-SMI","TANF SMI","SSI Medicaid Only Non-SMI","SSI Medicaid Only SMI","Dual Eligible","Child Welfare","HIV/AIDS Dual Eligible","HIV/AIDS Medicaid Only","LTC Dual Eligible","LTC Medicaid Only","Total","TANF Non-SMI","TANF SMI","SSI Medicaid Only Non-SMI","SSI Medicaid Only SMI","Dual Eligible","Child Welfare","HIV/AIDS Dual Eligible","HIV/AIDS Medicaid Only","LTC Dual Eligible","LTC Medicaid Only","Total","TANF Non-SMI","TANF SMI","SSI Medicaid Only Non-SMI","SSI Medicaid Only SMI","Dual Eligible","Child Welfare","HIV/AIDS Dual Eligible","HIV/AIDS Medicaid Only","LTC Dual Eligible","LTC Medicaid Only","Total","TANF Non-SMI","TANF SMI","SSI Medicaid Only Non-SMI","SSI Medicaid Only SMI","Dual Eligible","Child Welfare","HIV/AIDS Dual Eligible","HIV/AIDS Medicaid Only","LTC Dual Eligible","LTC Medicaid Only","Prior Year Adjustments","Total","TANF Non-SMI","TANF SMI","SSI Medicaid Only Non-SMI","SSI Medicaid Only SMI","Dual Eligible","Child Welfare","HIV/AIDS Dual Eligible","HIV/AIDS Medicaid Only","LTC Dual Eligible","LTC Medicaid Only"]
["MEMBER MONTHS",null,null,{"$f":"SUM(E9:N9)","v":0},{"$nulls":10},{"$f":"SUM(P9:Y9)","v":0},{"$nulls":10},{"$f":"SUM(AA9:AJ9)","v":0},{"$nulls":10},{"$f":"SUM(AL9:AU9)","v":0},{"$nulls":11},{"$f":"AK9+Z9+O9+D9+AV9","v":0},{"$f":"AL9+AA9+P9+E9","v":0},{"$f":"AM9+AB9+Q9+F9","v":0},0,0,0,0,0,0,0,0]
["REVENUES"]
["Revenues",1.1,"Capitation",{"$f":"SUM(E11:N11)","v":0},{"$nulls":10},{"$f":"SUM(P11:Y11)","v":0},{"$nulls":10},{"$f":"SUM(AA11:AJ11)","v":0},{"$nulls":10},{"$f":"SUM(AL11:AU11)","v":0},{"$nulls":11},{"$f":"SUM(AX11:BG11)+AV11","v":0},{"$f":"E11+P11+AA11+AL11","v":0},0,0,0,0,0,0,0,0,0]
[null,1.2,"Transplant Kick Payments",0,{"$nulls":10},0,{"$nulls":10},0,{"$nulls":10},0,{"$nulls":11},{"$f":"SUM(AX12:BG12)+AV12","v":0},0,0,{"$f":"G12+R12+AC12+AN12","v":0},0,0,0,0,0,0,0]
[null,"1.3","Hepatitis C Kick Payments",0,{"$nulls":10},0,{"$nulls":10},0,{"$nulls":10},0,{"$nulls":11},0,0,0,{"$f":"G13+R13+AC13+AN13","v":0},0,0,0,0,0,0,0]
[null,"1.4.1","Maternity Kick Payments",0,{"$nulls":10},0,{"$nulls":10},0,{"$nulls":10},0,{"$nulls":11},0,0,0,{"$f":"G14+R14+AC14+AN14","v":0},0,0,0,0,0,0,0]
[null,"1.5","ACA § 9010 related payments",0,{"$nulls":10},0,{"$nulls":10},0,{"$nulls":10},0,{"$nulls":11},0,0,0,{"$f":"G15+R15+AC15+AN15","v":0},0,0,0,0,0,0,0]
[null,"1.6","Other Revenue",0,{"$nulls":10},0,{"$nulls":10},0,{"$nulls":10},0,{"$nulls":11},0,0,0,{"$f":"G16+R16+AC16+AN16","v":0},0,0,0,0,0,0,0]
[null,"1.7","Total Revenue",{"$f":"SUM(D11:D16)","v":0},{"$f":"SUM(E11:E16)","v":0},{"$f":"SUM(F11:F16)","v":0},{"$f":"SUM(G11:G16)","v":0},0,0,0,0,0,0,0,{"$f":"SUM(O11:O16)","v":0},{"$f":"SUM(P11:P16)","v":0},{"$f":"SUM(Q11:Q16)","v":0},{"$f":"SUM(R11:R16)","v":0},0,0,0,0,0,0,0,{"$f":"SUM(Z11:Z16)","v":0},{"$f":"SUM(AA11:AA16)","v":0},{"$f":"SUM(AB11:AB16)","v":0},{"$f":"SUM(AC11:AC16)","v":0},0,0,0,0,0,0,0,{"$f":"SUM(AK11:AK16)","v":0},{"$f":"SUM(AL11:AL16)","v":0},{"$f":"SUM(AM11:AM16)","v":0},0,0,0,0,0,0,0,0,0,{"$f":"SUM(AW11:AW16)","v":0},{"$f":"SUM(AX11:AX16)","v":0},{"$f":"SUM(AY11:AY16)","v":0},0,0,0,0,0,0,0,0]
["BENEFIT EXPENSES",null,null,"JANUARY - MARCH (Q1)",{"$nulls":10},"APRIL - JUNE (Q2)",{"$nulls":10},"JULY - SEPTEMBER (Q3)",{"$nulls":10},"OCTOBER - DECEMBER (Q4)",{"$nulls":11},"TOTAL (TO DATE)"]
[{"$nulls":3},"Total","TANF Non-SMI","TANF SMI","SSI Medicaid Only Non-SMI","SSI Medicaid Only SMI","Dual Eligible","Child Welfare","HIV/AIDS Dual Eligible","HIV/AIDS Medicaid Only","LTC Dual Eligible","LTC Medicaid Only","Total","TANF Non-SMI","TANF SMI","SSI Medicaid Only Non-SMI","SSI Medicaid Only SMI","Dual Eligible","Child Welfare","HIV/AIDS Dual Eligible","HIV/AIDS Medicaid Only","LTC Dual Eligible","LTC Medicaid Only","Total","TANF Non-SMI","TANF SMI","SSI Medicaid Only Non-SMI","SSI Medicaid Only SMI","Dual Eligible","Child Welfare","HIV/AIDS Dual Eligible","HIV/AIDS Medicaid Only","LTC Dual Eligible","LTC Medicaid Only","Total","TANF Non-SMI","TANF SMI","SSI Medicaid Only Non-SMI","SSI Medicaid Only SMI","Dual Eligible","Child Welfare","HIV/AIDS Dual Eligible","HIV/AIDS Medicaid Only","LTC Dual Eligible","LTC Medicaid Only","Prior Year Adjustments","Total","TANF Non-SMI","TANF SMI","SSI Medicaid Only Non-SMI","SSI Medicaid Only SMI","Dual Eligible","Child Welfare","HIV/AIDS Dual Eligible","HIV/AIDS Medicaid Only","LTC Dual Eligible","LTC Medicaid Only"]
["Hospital Services",2.1,"Inpatient FFS",{"$f":"SUM(E20:N20)","v":0},{"$nulls":10},{"$f":"SUM(P20:Y20)","v":0},{"$nulls":10},{"$f":"SUM(AA20:AJ20)","v":0},{"$nulls":10},{"$f":"SUM(AL20:AU20)","v":0},{"$nulls":11},{"$f":"SUM(AX20:BG20)+AV20","v":0},{"$f":"E20+P20+AA20+AL20","v":0},0,0,0,0,0,0,0,0,0]
[null,2.2,"Ending IBNP for Inpatient Hospital Services",0,{"$nulls":10},0,{"$nulls":10},0,{"$nulls":10},0,{"$nulls":11},{"$f":"SUM(AX21:BG21)+AV21","v":0},0,0,0,0,0,0,0,0,0,0]
[null,2.3,"Outpatient FFS: ER",0,{"$nulls":10},0,{"$nulls":10},0,{"$nulls":10},0,{"$nulls":11},0,0,0,0,0,0,0,0,0,0,0]
[null,2.4,"Outpatient FFS: Other than ER ",0,{"$nulls":10},0,{"$nulls":10},0,{"$nulls":10},0,{"$nulls":11},0,0,0,0,0,0,0,0,0,0,0]
[null,2.5,"Ending IBNP for Outpatient Hospital Services",0,{"$nulls":10},0,{"$nulls":10},0,{"$nulls":10},0,{"$nulls":11},0,0,0,0,0,0,0,0,0,0,0]
[null,"2.6","Subcapitated Hospital Services",0,{"$nulls":10},0,{"$nulls":10},0,{"$nulls":10},0,{"$nulls":11},0,0,0,0,0,0,0,0,0,0,0]
[null,"2.7","Hospital Settlements/AP",0,{"$nulls":10},0,{"$nulls":10},0,{"$nulls":10},0,{"$nulls":11},0,0,0,0,0,0,0,0,0,0,0]
[null,"2.7.1","Transplant Services",0,{"$nulls":10},0,{"$nulls":10},0,{"$nulls":10},0,{"$nulls":11},0,0,0,0,0,0,0,0,0,0,0]
[null,"2.8","Total Hospital Services",{"$f":"SUM(D20:D27)","v":0},{"$f":"SUM(E20:E27)","v":0},0,0,0,0,0,0,0,0,0,{"$f":"SUM(O20:O27)","v":0},{"$f":"SUM(P20:P27)","v":0},0,0,0,0,0,0,0,0,0,{"$f":"SUM(Z20:Z27)","v":0},{"$f":"SUM(AA20:AA27)","v":0},0,0,0,0,0,0,0,0,0,{"$f":"SUM(AK20:AK27)","v":0},{"$f":"SUM(AL20:AL27)","v":0},0,0,0,0,0,0,0,0,0,{"$f":"SUM(AV20:AV27)","v":0},{"$f":"SUM(AW20:AW27)","v":0},{"$f":"SUM(AX20:AX27)","v":0},0,0,0,0,0,0,0,0,0]
["Professional Services",3.1,"Primary Care FFS",{"$f":"SUM(E29:N29)","v":0},{"$nulls":10},{"$f":"SUM(P29:Y29)","v":0},{"$nulls":10},{"$f":"SUM(AA29:AJ29)","v":0},{"$nulls":10},{"$f":"SUM(AL29:AU29)","v":0},{"$nulls":11},{"$f":"SUM(AX29:BG29)+AV29","v":0},{"$f":"E29+P29+AA29+AL29","v":0},0,0,0,0,0,0,0,0,0]
[null,3.2,"Specialty Care FFS",0,{"$nulls":10},0,{"$nulls":10},0,{"$nulls":10},0,{"$nulls":11},0,0,0,0,0,0,0,0,0,0,0]
[null,3.3,"Other Professional FFS",0,{"$nulls":10},0,{"$nulls":10},0,{"$nulls":10},0,{"$nulls":11},0,0,0,0,0,0,0,0,0,0,0]
[null,"3.4","§ 1202 PCP Payments to providers",0,{"$nulls":10},{"$f":"SUM(P32:Y32)","v":0},{"$nulls":10},{"$f":"SUM(AA32:AJ32)","v":0},{"$nulls":10},{"$f":"SUM(AL32:AU32)","v":0},{"$nulls":11},{"$f":"SUM(AX32:BG32)+AV32","v":0},0,0,0,0,0,0,0,0,0,0]
[null,"3.5","Subcapitated Professional Services",0,{"$nulls":10},0,{"$nulls":10},0,{"$nulls":10},0,{"$nulls":11},{"$f":"SUM(AX33:BG33)+AV33","v":0},0,0,0,0,0,0,0,0,0,0]
[null,"3.6","Ending IBNP for Professional Services",0,{"$nulls":10},0,{"$nulls":10},0,{"$nulls":10},0,{"$nulls":11},0,0,0,0,0,0,0,0,0,0,0]
[null,"3.7","Professional Settlements/AP",0,{"$nulls":10},0,{"$nulls":10},0,{"$nulls":10},0,{"$nulls":11},0,0,0,0,0,0,0,0,0,0,0]
[null,"3.8","Total Physician Services",{"$f":"SUM(D29:D35)","v":0},0,0,0,0,0,0,0,0,0,0,0,0,0,0,0,0,0,0,0,0,0,0,0,0,0,0,0,0,0,0,0,0,0,0,0,0,0,0,0,0,0,0,0,0,0,0,0,0,0,0,0,0,0,0,0]
["Maternity Services","4.1.1","Maternity Services",{"$f":"SUM(E37:N37)","v":0},{"$nulls":10},{"$f":"SUM(P37:Y37)","v":0},{"$nulls":10},{"$f":"SUM(AA37:AJ37)","v":0},{"$nulls":10},{"$f":"SUM(AL37:AU37)","v":0},{"$nulls":11},{"$f":"SUM(AX37:BG37)+AV37","v":0},{"$f":"E37+P37+AA37+AL37","v":0},{"$f":"F37+Q37+AB37+AM37","v":0},{"$f":"G37+R37+AC37+AN37","v":0},0,0,0,0,0,0,0]
[null,"4.2.1","Ending IBNP for Maternity Services",{"$f":"SUM(E38:N38)","v":0},{"$nulls":10},{"$f":"SUM(P38:Y38)","v":0},{"$nulls":10},{"$f":"SUM(AA38:AJ38)","v":0},{"$nulls":10},{"$f":"SUM(AL38:AU38)","v":0},{"$nulls":11},{"$f":"SUM(AX38:BG38)+AV38","v":0},{"$f":"E38+P38+AA38+AL38","v":0},0,{"$f":"G38+R38+AC38+AN38","v":0},0,0,0,0,0,0,0]
[null,"4.3.1","Maternity Settlements/AP",{"$f":"SUM(E39:N39)","v":0},{"$nulls":10},{"$f":"SUM(P39:Y39)","v":0},{"$nulls":10},{"$f":"SUM(AA39:AJ39)","v":0},{"$nulls":10},{"$f":"SUM(AL39:AU39)","v":0},{"$nulls":11},{"$f":"SUM(AX39:BG39)+AV39","v":0},{"$f":"E39+P39+AA39+AL39","v":0},0,{"$f":"G39+R39+AC39+AN39","v":0},0,0,0,0,0,0,0]
[null,"4.4.1","Total Maternity Services",{"$f":"SUM(D37:D39)","v":0},0,0,0,0,0,0,0,0,0,0,{"$f":"SUM(O37:O39)","v":0},0,0,0,0,0,{"$f":"SUM(U37:U39)","v":0},0,0,0,0,0,0,0,0,0,0,0,0,{"$f":"SUM(AH37:AH39)","v":0},0,0,0,0,0,0,0,0,0,0,0,0,0,0,0,{"$f":"SUM(AX37:AX39)","v":0},{"$f":"SUM(AY37:AY39)","v":0},0,0,0,0,0,0,0,0]
["Mental Health",5.1,"Mental Health & Substance Abuse FFS",{"$f":"SUM(E41:N41)","v":0},{"$nulls":10},{"$f":"SUM(P41:Y41)","v":0},{"$nulls":10},{"$f":"SUM(AA41:AJ41)","v":0},{"$nulls":10},{"$f":"SUM(AL41:AU41)","v":0},{"$nulls":11},{"$f":"SUM(AX41:BG41)+AV41","v":0},{"$f":"E41+P41+AA41+AL41","v":0},{"$f":"F41+Q41+AB41+AM41","v":0},0,0,0,0,0,0,0,0]
[null,5.2,"Mental Health & Substance Abuse Subcapitation",{"$f":"SUM(E42:N42)","v":0},{"$nulls":10},{"$f":"SUM(P42:Y42)","v":0},{"$nulls":10},{"$f":"SUM(AA42:AJ42)","v":0},{"$nulls":10},{"$f":"SUM(AL42:AU42)","v":0},{"$nulls":11},{"$f":"SUM(AX42:BG42)+AV42","v":0},{"$f":"E42+P42+AA42+AL42","v":0},0,{"$f":"G42+R42+AC42+AN42","v":0},0,0,0,0,0,0,0]
[null,5.3,"Ending IBNP for Mental Health & Substance Abuse",{"$f":"SUM(E43:N43)","v":0},{"$nulls":10},{"$f":"SUM(P43:Y43)","v":0},{"$nulls":10},{"$f":"SUM(AA43:AJ43)","v":0},{"$nulls":10},{"$f":"SUM(AL43:AU43)","v":0},{"$nulls":11},{"$f":"SUM(AX43:BG43)+AV43","v":0},{"$f":"E43+P43+AA43+AL43","v":0},0,{"$f":"G43+R43+AC43+AN43","v":0},0,0,0,0,0,0,0]
[null,"5.4","Mental Health Settlements/AP",{"$f":"SUM(E44:N44)","v":0},{"$nulls":10},{"$f":"SUM(P44:Y44)","v":0},{"$nulls":10},{"$f":"SUM(AA44:AJ44)","v":0},{"$nulls":10},{"$f":"SUM(AL44:AU44)","v":0},{"$nulls":11},{"$f":"SUM(AX44:BG44)+AV44","v":0},{"$f":"E44+P44+AA44+AL44","v":0},0,{"$f":"G44+R44+AC44+AN44","v":0},0,0,0,0,0,0,0]
[null,"5.5","Total Mental Health & Substance Abuse Services",{"$f":"SUM(D41:D44)","v":0},{"$f":"SUM(E41:E44)","v":0},0,0,0,{"$f":"SUM(I41:I44)","v":0},0,0,0,0,0,0,0,0,0,0,0,0,0,0,0,0,0,0,0,0,0,0,0,0,0,0,0,0,0,0,0,0,0,0,0,0,0,0,0,0,0,0,0,0,0,0,0,0,0,0]
["Dental",6.1,"Dental FFS",{"$f":"SUM(E46:N46)","v":0},{"$nulls":10},{"$f":"SUM(P46:Y46)","v":0},{"$nulls":10},{"$f":"SUM(AA46:AJ46)","v":0},{"$nulls":10},{"$f":"SUM(AL46:AU46)","v":0},{"$nulls":11},{"$f":"SUM(AX46:BG46)+AV46","v":0},{"$f":"E46+P46+AA46+AL46","v":0},{"$f":"F46+Q46+AB46+AM46","v":0},0,0,0,0,0,0,0,0]
[null,6.2,"Dental Subcapitation",{"$f":"SUM(E47:N47)","v":0},{"$nulls":10},{"$f":"SUM(P47:Y47)","v":0},{"$nulls":10},{"$f":"SUM(AA47:AJ47)","v":0},{"$nulls":10},{"$f":"SUM(AL47:AU47)","v":0},{"$nulls":11},{"$f":"SUM(AX47:BG47)+AV47","v":0},{"$f":"E47+P47+AA47+AL47","v":0},0,{"$f":"G47+R47+AC47+AN47","v":0},0,0,0,0,0,0,0]
[null,6.3,"Ending IBNP for Dental Services",{"$f":"SUM(E48:N48)","v":0},{"$nulls":10},{"$f":"SUM(P48:Y48)","v":0},{"$nulls":10},{"$f":"SUM(AA48:AJ48)","v":0},{"$nulls":10},{"$f":"SUM(AL48:AU48)","v":0},{"$nulls":11},{"$f":"SUM(AX48:BG48)+AV48","v":0},{"$f":"E48+P48+AA48+AL48","v":0},0,{"$f":"G48+R48+AC48+AN48","v":0},0,0,0,0,0,0,0]
[null,"6.4","Dental Settlements/AP",{"$f":"SUM(E49:N49)","v":0},{"$nulls":10},{"$f":"SUM(P49:Y49)","v":0},{"$nulls":10},{"$f":"SUM(AA49:AJ49)","v":0},{"$nulls":10},{"$f":"SUM(AL49:AU49)","v":0},{"$nulls":11},{"$f":"SUM(AX49:BG49)+AV49","v":0},{"$f":"E49+P49+AA49+AL49","v":0},0,{"$f":"G49+R49+AC49+AN49","v":0},0,0,0,0,0,0,0]
[null,"6.5","Total Dental Services",{"$f":"SUM(D46:D49)","v":0},{"$f":"SUM(E46:E49)","v":0},0,0,0,0,0,0,0,0,0,0,0,0,0,0,0,0,0,0,0,0,0,0,0,0,0,0,0,0,0,0,0,0,0,0,0,0,0,0,0,0,0,0,0,0,0,0,0,0,0,0,0,0,0,0]
["Transportation",7.1,"Transportation FFS",{"$f":"SUM(E51:N51)","v":0},{"$nulls":10},{"$f":"SUM(P51:Y51)","v":0},{"$nulls":10},{"$f":"SUM(AA51:AJ51)","v":0},{"$nulls":10},{"$f":"SUM(AL51:AU51)","v":0},{"$nulls":11},{"$f":"SUM(AX51:BG51)+AV51","v":0},{"$f":"E51+P51+AA51+AL51","v":0},{"$f":"F51+Q51+AB51+AM51","v":0},0,0,0,0,0,0,0,0]
[null,7.2,"Transportation Subcapitation",{"$f":"SUM(E52:N52)","v":0},{"$nulls":10},{"$f":"SUM(P52:Y52)","v":0},{"$nulls":10},{"$f":"SUM(AA52:AJ52)","v":0},{"$nulls":10},{"$f":"SUM(AL52:AU52)","v":0},{"$nulls":11},{"$f":"SUM(AX52:BG52)+AV52","v":0},{"$f":"E52+P52+AA52+AL52","v":0},0,{"$f":"G52+R52+AC52+AN52","v":0},0,0,0,0,0,0,0]
[null,7.3,"Ending IBNP for Transportation",{"$f":"SUM(E53:N53)","v":0},{"$nulls":10},{"$f":"SUM(P53:Y53)","v":0},{"$nulls":10},{"$f":"SUM(AA53:AJ53)","v":0},{"$nulls":10},{"$f":"SUM(AL53:AU53)","v":0},{"$nulls":11},{"$f":"SUM(AX53:BG53)+AV53","v":0},{"$f":"E53+P53+AA53+AL53","v":0},0,{"$f":"G53+R53+AC53+AN53","v":0},0,0,0,0,0,0,0]
[null,"7.4","Transportation Settlements/AP",{"$f":"SUM(E54:N54)","v":0},{"$nulls":10},{"$f":"SUM(P54:Y54)","v":0},{"$nulls":10},{"$f":"SUM(AA54:AJ54)","v":0},{"$nulls":10},{"$f":"SUM(AL54:AU54)","v":0},{"$nulls":11},{"$f":"SUM(AX54:BG54)+AV54","v":0},{"$f":"E54+P54+AA54+AL54","v":0},0,{"$f":"G54+R54+AC54+AN54","v":0},0,0,0,0,0,0,0]
[null,"7.5","Total Transportation Services",{"$f":"SUM(D51:D54)","v":0},{"$f":"SUM(E51:E54)","v":0},0,0,0,0,0,0,0,0,0,0,0,0,0,0,0,0,0,0,{"$f":"SUM(X51:X54)","v":0},0,0,0,0,0,0,0,0,0,0,0,0,0,0,0,0,0,0,0,0,0,0,0,0,0,0,0,0,0,0,0,0,0,0,0]
["Pharmacy",8.1,"Prescription Drugs FFS",{"$f":"SUM(E56:N56)","v":0},{"$nulls":10},{"$f":"SUM(P56:Y56)","v":0},{"$nulls":10},{"$f":"SUM(AA56:AJ56)","v":0},{"$nulls":10},{"$f":"SUM(AL56:AU56)","v":0},{"$nulls":11},{"$f":"SUM(AX56:BG56)+AV56","v":0},{"$f":"E56+P56+AA56+AL56","v":0},0,0,0,0,0,0,0,0,0]
[null,"8.2","Hepatitis C Prescription Drug FFS",0,{"$nulls":10},0,{"$nulls":10},0,{"$nulls":10},0,{"$nulls":11},{"$f":"SUM(AX57:BG57)+AV57","v":0},0,0,0,0,0,0,0,0,0,0]
[null,"8.3","Ending IBNP for Prescription Drugs",0,{"$nulls":10},0,{"$nulls":10},0,{"$nulls":10},0,{"$nulls":11},0,0,0,0,0,0,0,0,0,0,0]
[null,"8.4","Prescription Drug Rebates ",0,{"$nulls":10},0,{"$nulls":10},0,{"$nulls":10},0,{"$nulls":11},0,0,0,0,0,0,0,0,0,0,0]
[null,"8.5","Ending accrual for Rebates receivable",0,{"$nulls":10},0,{"$nulls":10},0,{"$nulls":10},0,{"$nulls":11},0,0,0,0,0,0,0,0,0,0,0]
[null,"8.6","Prescription Drugs Subcapitation",0,{"$nulls":10},0,{"$nulls":10},0,{"$nulls":10},0,{"$nulls":11},0,0,0,0,0,0,0,0,0,0,0]
[null,"8.7","Prescription Drug Settlements/AP",0,{"$nulls":10},0,{"$nulls":10},0,{"$nulls":10},0,{"$nulls":11},0,0,0,0,0,0,0,0,0,0,0]
[null,"8.8","Total Prescription Drugs",{"$f":"SUM(D56:D62)","v":0},{"$f":"SUM(E56:E62)","v":0},0,0,0,0,0,0,0,0,0,0,0,0,0,0,0,0,0,0,0,0,0,0,0,0,0,0,0,0,0,0,0,0,0,0,0,0,0,0,0,0,0,0,0,0,0,0,0,0,0,0,0,0,0,0]
["Other Services",9.1,"Home Health, Private Duty Nursing, Personal Care FFS",{"$f":"SUM(E64:L64)","v":0},{"$nulls":10},{"$f":"SUM(P64:W64)","v":0},{"$nulls":10},{"$f":"SUM(AA64:AH64)","v":0},{"$nulls":10},{"$f":"SUM(AL64:AS64)","v":0},{"$nulls":11},{"$f":"SUM(AX64:BE64)+AV64","v":0},{"$f":"E64+P64+AA64+AL64","v":0},0,0,0,0,0,0,0]
[null,"9.2","Hospice FFS",{"$f":"SUM(E65:L65)","v":0},{"$nulls":10},{"$f":"SUM(P65:W65)","v":0},{"$nulls":10},{"$f":"SUM(AA65:AH65)","v":0},{"$nulls":10},{"$f":"SUM(AL65:AS65)","v":0},{"$nulls":11},{"$f":"SUM(AX65:BE65)+AV65","v":0},0,0,0,0,0,0,0,0]
[null,"9.3","DME FFS",{"$f":"SUM(E66:L66)","v":0},{"$nulls":10},{"$f":"SUM(P66:W66)","v":0},{"$nulls":10},{"$f":"SUM(AA66:AH66)","v":0},{"$nulls":10},{"$f":"SUM(AL66:AS66)","v":0},{"$nulls":11},0,0,0,0,0,0,0,0,0]
[null,"9.4","Other State Plan Services FFS",{"$f":"SUM(E67:N67)","v":0},{"$nulls":10},{"$f":"SUM(P67:Y67)","v":0},{"$nulls":10},{"$f":"SUM(AA67:AJ67)","v":0},{"$nulls":10},{"$f":"SUM(AL67:AU67)","v":0},{"$nulls":11},{"$f":"SUM(AX67:BG67)+AV67","v":0},0,0,0,0,0,0,0,0,0,0]
[null,"9.5","Other Services Subcapitation",{"$f":"SUM(E68:N68)","v":0},{"$nulls":10},{"$f":"SUM(P68:Y68)","v":0},{"$nulls":10},{"$f":"SUM(AA68:AJ68)","v":0},{"$nulls":10},{"$f":"SUM(AL68:AU68)","v":0},{"$nulls":11},{"$f":"SUM(AX68:BG68)+AV68","v":0},0,0,0,0,0,0,0,0,0,0]
[null,"9.6","Ending IBNP for Other Services",{"$f":"SUM(E69:N69)","v":0},{"$nulls":10},{"$f":"SUM(P69:Y69)","v":0},{"$nulls":10},{"$f":"SUM(AA69:AJ69)","v":0},{"$nulls":10},{"$f":"SUM(AL69:AU69)","v":0},{"$nulls":11},{"$f":"SUM(AX69:BG69)+AV69","v":0},0,0,0,0,0,0,0,0,0,0]
[null,"9.7","Other Services Settlements/AP",{"$f":"SUM(E70:N70)","v":0},{"$nulls":10},{"$f":"SUM(P70:Y70)","v":0},{"$nulls":10},{"$f":"SUM(AA70:AJ70)","v":0},{"$nulls":10},{"$f":"SUM(AL70:AU70)","v":0},{"$nulls":11},{"$f":"SUM(AX70:BG70)+AV70","v":0},0,0,0,0,0,0,0,0,0,0]
[null,"9.8","Total Other Services",{"$f":"SUM(D64:D70)","v":0},{"$f":"SUM(E64:E70)","v":0},0,0,0,0,0,0,0,{"$f":"SUM(M67:M70)","v":0},{"$f":"SUM(N67:N70)","v":0},0,0,0,0,0,0,0,0,0,{"$f":"SUM(X67:X70)","v":0},{"$f":"SUM(Y67:Y70)","v":0},0,0,0,0,0,0,0,0,0,{"$f":"SUM(AI67:AI70)","v":0},{"$f":"SUM(AJ67:AJ70)","v":0},0,0,0,0,0,0,0,0,0,{"$f":"SUM(AT67:AT70)","v":0},{"$f":"SUM(AU67:AU70)","v":0},{"$f":"SUM(AV64:AV70)","v":0},0,0,0,0,0,0,0,{"$f":"SUM(BD64:BD70)","v":0},{"$f":"SUM(BE64:BE70)","v":0},{"$f":"SUM(BF67:BF70)","v":0},{"$f":"SUM(BG67:BG70)","v":0}]
["Expanded Benefits","10.1","Expanded Benefits FFS",{"$f":"SUM(E72:N72)","v":0},{"$nulls":10},{"$f":"SUM(P72:Y72)","v":0},{"$nulls":10},{"$f":"SUM(AA72:AJ72)","v":0},{"$nulls":10},{"$f":"SUM(AL72:AU72)","v":0},{"$nulls":11},{"$f":"SUM(AX72:BG72)+AV72","v":0},{"$f":"E72+P72+AA72+AL72","v":0},{"$f":"F72+Q72+AB72+AM72","v":0},0,0,0,0,0,0,0,0]
[null,"10.2","Expanded Benefits Subcapitation",{"$f":"SUM(E73:N73)","v":0},{"$nulls":10},{"$f":"SUM(P73:Y73)","v":0},{"$nulls":10},{"$f":"SUM(AA73:AJ73)","v":0},{"$nulls":10},{"$f":"SUM(AL73:AU73)","v":0},{"$nulls":11},{"$f":"SUM(AX73:BG73)+AV73","v":0},{"$f":"E73+P73+AA73+AL73","v":0},0,{"$f":"G73+R73+AC73+AN73","v":0},0,0,0,0,0,0,0]
[null,"10.3","Ending IBNP for Expanded Benefits",{"$f":"SUM(E74:N74)","v":0},{"$nulls":10},{"$f":"SUM(P74:Y74)","v":0},{"$nulls":10},{"$f":"SUM(AA74:AJ74)","v":0},{"$nulls":10},{"$f":"SUM(AL74:AU74)","v":0},{"$nulls":11},{"$f":"SUM(AX74:BG74)+AV74","v":0},{"$f":"E74+P74+AA74+AL74","v":0},0,{"$f":"G74+R74+AC74+AN74","v":0},0,0,0,0,0,0,0]
[null,"10.4","Expanded Benefits Settlements/AP",{"$f":"SUM(E75:N75)","v":0},{"$nulls":10},{"$f":"SUM(P75:Y75)","v":0},{"$nulls":10},{"$f":"SUM(AA75:AJ75)","v":0},{"$nulls":10},{"$f":"SUM(AL75:AU75)","v":0},{"$nulls":11},{"$f":"SUM(AX75:BG75)+AV75","v":0},{"$f":"E75+P75+AA75+AL75","v":0},0,{"$f":"G75+R75+AC75+AN75","v":0},0,0,0,0,0,0,0]
[null,"10.5","Total Expanded Benefits",{"$f":"SUM(D72:D75)","v":0},{"$f":"SUM(E72:E75)","v":0},0,0,0,0,0,0,0,0,0,0,0,0,0,0,0,0,0,0,{"$f":"SUM(X72:X75)","v":0},0,0,0,0,0,0,0,0,0,0,0,0,0,0,0,0,0,0,0,0,0,0,0,0,0,0,0,0,0,0,0,0,0,0,0]
["Totals Before and After Reinsurance","11.1","Total Services Paid Directly FFS",{"$f":"D20+SUM(D22:D23,D27)+SUM(D29:D32)+D37+D41+D46+D51+SUM(D56:D57)+SUM(D59:D60)+SUM(D64:D67)+D72","v":0},{"$f":"E20+SUM(E22:E23,E27)+SUM(E29:E32)+E37+E41+E46+E51+SUM(E56:E57)+SUM(E59:E60)+SUM(E64:E67)+E72","v":0},{"$f":"F20+SUM(F22:F23,F27)+SUM(F29:F32)+F37+F41+F46+F51+SUM(F56:F57)+SUM(F59:F60)+SUM(F64:F67)+F72","v":0},{"$f":"G20+SUM(G22:G23,G27)+SUM(G29:G32)+G37+G41+G46+G51+SUM(G56:G57)+SUM(G59:G60)+SUM(G64:G67)+G72","v":0},0,0,0,0,0,0,0,{"$f":"O20+SUM(O22:O23,O27)+SUM(O29:O32)+O37+O41+O46+O51+SUM(O56:O57)+SUM(O59:O60)+SUM(O64:O67)+O72","v":0},{"$f":"P20+SUM(P22:P23,P27)+SUM(P29:P32)+P37+P41+P46+P51+SUM(P56:P57)+SUM(P59:P60)+SUM(P64:P67)+P72","v":0},0,0,0,0,0,0,0,0,0,{"$f":"Z20+SUM(Z22:Z23,Z27)+SUM(Z29:Z32)+Z37+Z41+Z46+Z51+SUM(Z56:Z57)+SUM(Z59:Z60)+SUM(Z64:Z67)+Z72","v":0},{"$f":"AA20+SUM(AA22:AA23,AA27)+SUM(AA29:AA32)+AA37+AA41+AA46+AA51+SUM(AA56:AA57)+SUM(AA59:AA60)+SUM(AA64:AA67)+AA72","v":0},0,0,0,0,0,0,0,0,0,{"$f":"AK20+SUM(AK22:AK23,AK27)+SUM(AK29:AK32)+AK37+AK41+AK46+AK51+SUM(AK56:AK57)+SUM(AK59:AK60)+SUM(AK64:AK67)+AK72","v":0},{"$f":"AL20+SUM(AL22:AL23,AL27)+SUM(AL29:AL32)+AL37+AL41+AL46+AL51+SUM(AL56:AL57)+SUM(AL59:AL60)+SUM(AL64:AL67)+AL72","v":0},0,0,0,0,0,0,0,0,0,{"$f":"AV20+SUM(AV22:AV23,AV27)+SUM(AV29:AV32)+AV37+AV41+AV46+AV51+SUM(AV56:AV57)+SUM(AV59:AV60)+SUM(AV64:AV67)+AV72","v":0},{"$f":"AW20+SUM(AW22:AW23,AW27)+SUM(AW29:AW32)+AW37+AW41+AW46+AW51+SUM(AW56:AW57)+SUM(AW59:AW60)+SUM(AW64:AW67)+AW72","v":0},{"$f":"AX20+SUM(AX22:AX23,AX27)+SUM(AX29:AX32)+AX37+AX41+AX46+AX51+SUM(AX56:AX57)+SUM(AX59:AX60)+SUM(AX64:AX67)+AX72","v":0},0,0,0,0,0,0,0,0,0]
[null,"11.2","Total Services Paid Directly -- IBNP",{"$f":"D21+D24+D34+D38+D43+D48+D53+D58+D69+D74","v":0},{"$f":"E21+E24+E34+E38+E43+E48+E53+E58+E69+E74","v":0},{"$f":"F21+F24+F34+F38+F43+F48+F53+F58+F69+F74","v":0},{"$f":"G21+G24+G34+G38+G43+G48+G53+G58+G69+G74","v":0},0,0,0,0,0,0,0,{"$f":"O21+O24+O34+O38+O43+O48+O53+O58+O69+O74","v":0},{"$f":"P21+P24+P34+P38+P43+P48+P53+P58+P69+P74","v":0},0,0,0,0,0,0,0,0,0,{"$f":"Z21+Z24+Z34+Z38+Z43+Z48+Z53+Z58+Z69+Z74","v":0},{"$f":"AA21+AA24+AA34+AA38+AA43+AA48+AA53+AA58+AA69+AA74","v":0},0,0,0,0,0,0,0,0,0,{"$f":"AK21+AK24+AK34+AK38+AK43+AK48+AK53+AK58+AK69+AK74","v":0},{"$f":"AL21+AL24+AL34+AL38+AL43+AL48+AL53+AL58+AL69+AL74","v":0},0,0,0,0,0,0,0,0,0,{"$f":"AV21+AV24+AV34+AV38+AV43+AV48+AV53+AV58+AV69+AV74","v":0},{"$f":"AW21+AW24+AW34+AW38+AW43+AW48+AW53+AW58+AW69+AW74","v":0},{"$f":"AX21+AX24+AX34+AX38+AX43+AX48+AX53+AX58+AX69+AX74","v":0},0,0,0,0,0,0,0,0,0]
[null,"11.3","Total Services Paid through Subcapitation",{"$f":"D25+D33+D42+D47+D52+D61+D68+D73","v":0},{"$f":"E25+E33+E42+E47+E52+E61+E68+E73","v":0},{"$f":"F25+F33+F42+F47+F52+F61+F68+F73","v":0},{"$f":"G25+G33+G42+G47+G52+G61+G68+G73","v":0},0,0,0,0,0,0,0,{"$f":"O25+O33+O42+O47+O52+O61+O68+O73","v":0},{"$f":"P25+P33+P42+P47+P52+P61+P68+P73","v":0},0,0,0,0,0,0,0,0,0,{"$f":"Z25+Z33+Z42+Z47+Z52+Z61+Z68+Z73","v":0},{"$f":"AA25+AA33+AA42+AA47+AA52+AA61+AA68+AA73","v":0},0,0,0,0,0,0,0,0,0,{"$f":"AK25+AK33+AK42+AK47+AK52+AK61+AK68+AK73","v":0},{"$f":"AL25+AL33+AL42+AL47+AL52+AL61+AL68+AL73","v":0},0,0,0,0,0,0,0,0,0,{"$f":"AV25+AV33+AV42+AV47+AV52+AV61+AV68+AV73","v":0},{"$f":"AW25+AW33+AW42+AW47+AW52+AW61+AW68+AW73","v":0},{"$f":"AX25+AX33+AX42+AX47+AX52+AX61+AX68+AX73","v":0},0,0,0,0,0,0,0,0,0]
[null,"11.4","Total Services Paid by Settlements/AP",{"$f":"D26+D35+D39+D44+D49+D54+D62+D70+D75","v":0},{"$f":"E26+E35+E39+E44+E49+E54+E62+E70+E75","v":0},{"$f":"F26+F35+F39+F44+F49+F54+F62+F70+F75","v":0},{"$f":"G26+G35+G39+G44+G49+G54+G62+G70+G75","v":0},0,0,0,0,0,0,0,{"$f":"O26+O35+O39+O44+O49+O54+O62+O70+O75","v":0},{"$f":"P26+P35+P39+P44+P49+P54+P62+P70+P75","v":0},0,0,0,0,0,0,0,0,0,{"$f":"Z26+Z35+Z39+Z44+Z49+Z54+Z62+Z70+Z75","v":0},{"$f":"AA26+AA35+AA39+AA44+AA49+AA54+AA62+AA70+AA75","v":0},0,0,0,0,0,0,0,0,0,{"$f":"AK26+AK35+AK39+AK44+AK49+AK54+AK62+AK70+AK75","v":0},{"$f":"AL26+AL35+AL39+AL44+AL49+AL54+AL62+AL70+AL75","v":0},0,0,0,0,0,0,0,0,0,0,{"$f":"AW26+AW35+AW39+AW44+AW49+AW54+AW62+AW70+AW75","v":0},{"$f":"AX26+AX35+AX39+AX44+AX49+AX54+AX62+AX70+AX75","v":0},0,0,0,0,0,0,0,0,0]
[null,"11.5","TPL & Fraud/Abuse Recoveries",{"$f":"SUM(E81:N81)","v":0},{"$nulls":10},{"$f":"SUM(P81:Y81)","v":0},{"$nulls":10},{"$f":"SUM(AA81:AJ81)","v":0},{"$nulls":10},{"$f":"SUM(AL81:AU81)","v":0},{"$nulls":11},{"$f":"SUM(AX81:BG81)+AV81","v":0},{"$f":"E81+P81+AA81+AL81","v":0},{"$f":"F81+Q81+AB81+AM81","v":0},{"$f":"G81+R81+AC81+AN81","v":0},{"$f":"H81+S81+AD81+AO81","v":0},0,0,0,0,0,0]
[null,"11.6.1","Premium Deficiency Reserve",{"$f":"SUM(E82:N82)","v":0},{"$nulls":10},{"$f":"SUM(P82:Y82)","v":0},{"$nulls":10},{"$f":"SUM(AA82:AJ82)","v":0},{"$nulls":10},{"$f":"SUM(AL82:AU82)","v":0},{"$nulls":11},{"$f":"SUM(AX82:BG82)+AV82","v":0},{"$f":"E82+P82+AA82+AL82","v":0},0,{"$f":"G82+R82+AC82+AN82","v":0},0,0,0,0,0,0,0]
[null,"11.7","Subtotal Benefit Expense before Reinsurance",{"$f":"SUM(D77:D82)","v":0},{"$f":"SUM(E77:E82)","v":0},0,0,0,0,0,0,0,0,0,0,0,0,0,0,0,0,0,0,0,0,0,0,0,0,0,0,0,0,0,0,0,0,0,0,0,0,0,0,0,0,0,0,0,0,0,0,0,0,0,0,0,0,0,0]
[null,"11.8","Reinsurance Premiums",{"$f":"SUM(E84:N84)","v":0},{"$nulls":10},{"$f":"SUM(P84:Y84)","v":0},{"$nulls":10},{"$f":"SUM(AA84:AJ84)","v":0},{"$nulls":10},{"$f":"SUM(AL84:AU84)","v":0},{"$nulls":11},{"$f":"SUM(AX84:BG84)+AV84","v":0},{"$f":"E84+P84+AA84+AL84","v":0},{"$f":"F84+Q84+AB84+AM84","v":0},0,0,0,0,0,0,0,0]
[null,"11.9","Reinsurance Recoveries",{"$f":"SUM(E85:N85)","v":0},{"$nulls":10},{"$f":"SUM(P85:Y85)","v":0},{"$nulls":10},{"$f":"SUM(AA85:AJ85)","v":0},{"$nulls":10},{"$f":"SUM(AL85:AU85)","v":0},{"$nulls":11},{"$f":"SUM(AX85:BG85)+AV85","v":0},{"$f":"E85+P85+AA85+AL85","v":0},0,{"$f":"G85+R85+AC85+AN85","v":0},0,0,0,0,0,0,0]
[null,"11.10","Net cost of Reinsurance",{"$f":"SUM(D84:D85)","v":0},{"$f":"SUM(E84:E85)","v":0},0,0,0,0,0,0,0,0,0,{"$f":"SUM(O84:O85)","v":0},{"$f":"SUM(P84:P85)","v":0},0,0,0,0,0,0,0,0,0,{"$f":"SUM(Z84:Z85)","v":0},{"$f":"SUM(AA84:AA85)","v":0},0,0,0,0,0,0,0,0,0,{"$f":"SUM(AK84:AK85)","v":0},{"$f":"SUM(AL84:AL85)","v":0},{"$f":"SUM(AM84:AM85)","v":0},0,0,0,0,0,0,0,0,0,{"$f":"SUM(AW84:AW85)","v":0},{"$f":"SUM(AX84:AX85)","v":0},0,{"$f":"SUM(AZ84:AZ85)","v":0},0,{"$f":"SUM(BB84:BB85)","v":0},0,0,0,0,0]
[null,"11.11","Grand Total Medical Benefit Expense Net of Reinsurance",{"$f":"D83+D86","v":0},{"$f":"E83+E86","v":0},0,0,0,0,0,0,0,0,0,{"$f":"O83+O86","v":0},{"$f":"P83+P86","v":0},0,0,0,0,0,0,0,0,0,{"$f":"Z83+Z86","v":0},{"$f":"AA83+AA86","v":0},0,0,0,0,0,0,0,0,0,{"$f":"AK83+AK86","v":0},{"$f":"AL83+AL86","v":0},{"$f":"AM83+AM86","v":0},0,0,0,0,0,0,0,0,0,{"$f":"AW83+AW86","v":0},{"$f":"AX83+AX86","v":0},{"$f":"AY83+AY86","v":0},0,0,0,0,0,0,0,0]
["Administrative Expenses, Government-Mandated Assessments, Taxes, and Fees ",null,null,"JANUARY - MARCH (Q1)",{"$nulls":10},"APRIL - JUNE (Q2)",{"$nulls":10},"JULY - SEPTEMBER (Q3)",{"$nulls":10},"OCTOBER - DECEMBER (Q4)",{"$nulls":11},"TOTAL (TO DATE)"]
[{"$nulls":3},"Total","Health Plan","Corporate",{"$nulls":8},"Total","Health Plan","Corporate",{"$nulls":8},"Total","Health Plan","Corporate",{"$nulls":8},"Total","Health Plan","Corporate",{"$nulls":8},"Prior Year Adjustments","Total","Health Plan","Corporate"]
["Administrative Expenses","12.1","Salaries & Benefits",{"$f":"E90+F90","v":0},{"$nulls":10},{"$f":"P90+Q90","v":0},{"$nulls":10},{"$f":"AA90+AB90","v":0},{"$nulls":10},{"$f":"AL90+AM90","v":0},{"$nulls":11},{"$f":"AX90+AY90+AV90","v":0},{"$f":"E90+P90+AA90+AL90","v":0},{"$f":"F90+Q90+AB90+AM90","v":0}]
[null,"12.2","Administrative Services",{"$f":"E91+F91","v":0},{"$nulls":10},{"$f":"P91+Q91","v":0},{"$nulls":10},{"$f":"AA91+AB91","v":0},{"$nulls":10},{"$f":"AL91+AM91","v":0},{"$nulls":11},0,{"$f":"E91+P91+AA91+AL91","v":0},0]
[null,"12.3","Information Systems",0,{"$nulls":10},0,{"$nulls":10},0,{"$nulls":10},0,{"$nulls":11},0,0,0]
[null,"12.4","Marketing Expenses",0,{"$nulls":10},0,{"$nulls":10},0,{"$nulls":10},0,{"$nulls":11},0,0,0]
[null,"12.5","General  Administration",0,{"$nulls":10},0,{"$nulls":10},0,{"$nulls":10},0,{"$nulls":11},0,0,0]
[null,"12.6","Compliance/Regulatory",0,{"$nulls":10},0,{"$nulls":10},0,{"$nulls":10},0,{"$nulls":11},0,0,0]
[null,"12.7","Total Administrative Expenses ",{"$f":"E96+F96","v":0},{"$f":"SUM(E90:E95)","v":0},{"$f":"SUM(F90:F95)","v":0},{"$nulls":8},{"$f":"P96+Q96","v":0},{"$f":"SUM(P90:P95)","v":0},0,{"$nulls":8},{"$f":"AA96+AB96","v":0},{"$f":"SUM(AA90:AA95)","v":0},0,{"$nulls":8},{"$f":"AL96+AM96","v":0},{"$f":"SUM(AL90:AL95)","v":0},0,{"$nulls":8},{"$f":"SUM(AV90:AV95)","v":0},0,{"$f":"SUM(AX90:AX95)","v":0},{"$f":"SUM(AY90:AY95)","v":0}]
["Government-Mandated Assessments, Taxes, and Fees Other Than Income Taxes","13.1","State Premium tax",{"$nulls":45},{"$f":"D97+O97+Z97+AK97+AV97","v":0}]
[null,"13.2","Department of Insurance Assessments",{"$nulls":45},0]
[null,"13.3","Section 9010 Health Insurance Providers Fee",{"$nulls":45},0]
[null,"13.4","Other 1",{"$nulls":45},0]
[null,"13.5","Other 2",{"$nulls":45},0]
[null,"13.6","Other 3",{"$nulls":45},0]
[null,"13.7","Total ",{"$f":"SUM(D97:D102)","v":0},{"$nulls":10},{"$f":"SUM(O97:O102)","v":0},{"$nulls":10},{"$f":"SUM(Z97:Z102)","v":0},{"$nulls":10},{"$f":"SUM(AK97:AK102)","v":0},{"$nulls":10},{"$f":"SUM(AV97:AV102)","v":0},{"$f":"SUM(AW97:AW102)","v":0}]
[null,"14.0","Grand Total Expenses",{"$f":"D87+D96+D103","v":0},{"$nulls":10},{"$f":"O87+O96+O103","v":0},{"$nulls":10},{"$f":"Z87+Z96+Z103","v":0},{"$nulls":10},{"$f":"AK87+AK96+AK103","v":0},{"$nulls":10},{"$f":"AV87+AV96+AV103","v":0},{"$f":"AW87+AW96+AW103","v":0}]
[null,"15.0","Underwriting Gain / (Loss)  --- AKA Pre-tax Earnings from Operations",{"$f":"D17-D104","v":0},{"$nulls":10},{"$f":"O17-O104","v":0},{"$nulls":10},{"$f":"Z17-Z104","v":0},{"$nulls":10},{"$f":"AK17-AK104","v":0},{"$nulls":10},{"$f":"AV17-AV104","v":0},{"$f":"AW17-AW104","v":0}]
[null,"16.0","Income Tax Expense",{"$nulls":45},{"$f":"D106+O106+Z106+AK106+AV106","v":0}]
[null,"17.0","Net Underwriting Gain (Loss)",{"$f":"D105-D106","v":0},{"$nulls":10},{"$f":"O105-O106","v":0},{"$nulls":10},{"$f":"Z105-Z106","v":0},{"$nulls":10},{"$f":"AK105-AK106","v":0},{"$nulls":10},{"$f":"AV105-AV106","v":0},{"$f":"AW105-AW106","v":0}]

{"sheet":"MMA Rev-Exp Region 5","index":11,"n_rows":107,"n_cols":59,"rows_kept":107,"hidden":true,"merged":[[6,3,6,13],[6,14,6,24],[6,25,6,35],[6,36,6,46],[6,48,6,58],[9,0,9,2],[10,0,16,0],[17,0,18,2],[17,3,17,13],[17,14,17,24],[17,25,17,35],[17,36,17,46],[17,48,17,58],[19,0,27,0],[28,0,35,0],[36,0,39,0],[40,0,44,0],[45,0,49,0],[50,0,54,0],[55,0,62,0],[63,0,70,0],[71,0,75,0],[76,0,86,0],[87,0,88,2],[87,3,87,13],[87,14,87,24],[87,25,87,35],[87,36,87,46],[87,48,87,58],[89,0,95,0],[96,0,102,0]]}
["MANAGED MEDICAL ASSISTANCE -- REVENUE AND EXPENSE SCHEDULE - REGION 5"]
[]
["Health Plan:",null,{"$f":"'MMA Rev-Exp Summary'!C3","v":0}]
["Reporting Period:",null,{"$f":"IF('MMA Rev-Exp Summary'!C4=0,\"\",'MMA Rev-Exp Summary'!C4)","v":""}]
["Paid Through:",null,{"$f":"IF('MMA Rev-Exp Summary'!C5=0,\"\",'MMA Rev-Exp Summary'!C5)","v":""}]
["Region 5"]
[{"$nulls":3},"JANUARY - MARCH (Q1)",{"$nulls":10},"APRIL - JUNE (Q2)",{"$nulls":10},"JULY - SEPTEMBER (Q3)",{"$nulls":10},"OCTOBER - DECEMBER (Q4)",{"$nulls":11},"TOTAL (TO DATE)"]
[{"$nulls":3},"Total","TANF Non-SMI","TANF SMI","SSI Medicaid Only Non-SMI","SSI Medicaid Only SMI","Dual Eligible","Child Welfare","HIV/AIDS Dual Eligible","HIV/AIDS Medicaid Only","LTC Dual Eligible","LTC Medicaid Only","Total","TANF Non-SMI","TANF SMI","SSI Medicaid Only Non-SMI","SSI Medicaid Only SMI","Dual Eligible","Child Welfare","HIV/AIDS Dual Eligible","HIV/AIDS Medicaid Only","LTC Dual Eligible","LTC Medicaid Only","Total","TANF Non-SMI","TANF SMI","SSI Medicaid Only Non-SMI","SSI Medicaid Only SMI","Dual Eligible","Child Welfare","HIV/AIDS Dual Eligible","HIV/AIDS Medicaid Only","LTC Dual Eligible","LTC Medicaid Only","Total","TANF Non-SMI","TANF SMI","SSI Medicaid Only Non-SMI","SSI Medicaid Only SMI","Dual Eligible","Child Welfare","HIV/AIDS Dual Eligible","HIV/AIDS Medicaid Only","LTC Dual Eligible","LTC Medicaid Only","Prior Year Adjustments","Total","TANF Non-SMI","TANF SMI","SSI Medicaid Only Non-SMI","SSI Medicaid Only SMI","Dual Eligible","Child Welfare","HIV/AIDS Dual Eligible","HIV/AIDS Medicaid Only","LTC Dual Eligible","LTC Medicaid Only"]
["MEMBER MONTHS",null,null,{"$f":"SUM(E9:N9)","v":0},{"$nulls":10},{"$f":"SUM(P9:Y9)","v":0},{"$nulls":10},{"$f":"SUM(AA9:AJ9)","v":0},{"$nulls":10},{"$f":"SUM(AL9:AU9)","v":0},{"$nulls":11},{"$f":"AK9+Z9+O9+D9+AV9","v":0},{"$f":"AL9+AA9+P9+E9","v":0},{"$f":"AM9+AB9+Q9+F9","v":0},0,0,0,0,0,0,0,0]
["REVENUES"]
["Revenues",1.1,"Capitation",{"$f":"SUM(E11:N11)","v":0},{"$nulls":10},{"$f":"SUM(P11:Y11)","v":0},{"$nulls":10},{"$f":"SUM(AA11:AJ11)","v":0},{"$nulls":10},{"$f":"SUM(AL11:AU11)","v":0},{"$nulls":11},{"$f":"SUM(AX11:BG11)+AV11","v":0},{"$f":"E11+P11+AA11+AL11","v":0},0,0,0,0,0,0,0,0,0]
[null,1.2,"Transplant Kick Payments",0,{"$nulls":10},0,{"$nulls":10},0,{"$nulls":10},0,{"$nulls":11},{"$f":"SUM(AX12:BG12)+AV12","v":0},0,0,{"$f":"G12+R12+AC12+AN12","v":0},0,0,0,0,0,0,0]
[null,"1.3","Hepatitis C Kick Payments",0,{"$nulls":10},0,{"$nulls":10},0,{"$nulls":10},0,{"$nulls":11},0,0,0,{"$f":"G13+R13+AC13+AN13","v":0},0,0,0,0,0,0,0]
[null,"1.4.1","Maternity Kick Payments",0,{"$nulls":10},0,{"$nulls":10},0,{"$nulls":10},0,{"$nulls":11},0,0,0,{"$f":"G14+R14+AC14+AN14","v":0},0,0,0,0,0,0,0]
[null,"1.5","ACA § 9010 related payments",0,{"$nulls":10},0,{"$nulls":10},0,{"$nulls":10},0,{"$nulls":11},0,0,0,{"$f":"G15+R15+AC15+AN15","v":0},0,0,0,0,0,0,0]
[null,"1.6","Other Revenue",0,{"$nulls":10},0,{"$nulls":10},0,{"$nulls":10},0,{"$nulls":11},0,0,0,{"$f":"G16+R16+AC16+AN16","v":0},0,0,0,0,0,0,0]
[null,"1.7","Total Revenue",{"$f":"SUM(D11:D16)","v":0},{"$f":"SUM(E11:E16)","v":0},{"$f":"SUM(F11:F16)","v":0},{"$f":"SUM(G11:G16)","v":0},0,0,0,0,0,0,0,{"$f":"SUM(O11:O16)","v":0},{"$f":"SUM(P11:P16)","v":0},{"$f":"SUM(Q11:Q16)","v":0},{"$f":"SUM(R11:R16)","v":0},0,0,0,0,0,0,0,{"$f":"SUM(Z11:Z16)","v":0},{"$f":"SUM(AA11:AA16)","v":0},{"$f":"SUM(AB11:AB16)","v":0},{"$f":"SUM(AC11:AC16)","v":0},0,0,0,0,0,0,0,{"$f":"SUM(AK11:AK16)","v":0},{"$f":"SUM(AL11:AL16)","v":0},{"$f":"SUM(AM11:AM16)","v":0},0,0,0,0,0,0,0,0,0,{"$f":"SUM(AW11:AW16)","v":0},{"$f":"SUM(AX11:AX16)","v":0},{"$f":"SUM(AY11:AY16)","v":0},0,0,0,0,0,0,0,0]
["BENEFIT EXPENSES",null,null,"JANUARY - MARCH (Q1)",{"$nulls":10},"APRIL - JUNE (Q2)",{"$nulls":10},"JULY - SEPTEMBER (Q3)",{"$nulls":10},"OCTOBER - DECEMBER (Q4)",{"$nulls":11},"TOTAL (TO DATE)"]
[{"$nulls":3},"Total","TANF Non-SMI","TANF SMI","SSI Medicaid Only Non-SMI","SSI Medicaid Only SMI","Dual Eligible","Child Welfare","HIV/AIDS Dual Eligible","HIV/AIDS Medicaid Only","LTC Dual Eligible","LTC Medicaid Only","Total","TANF Non-SMI","TANF SMI","SSI Medicaid Only Non-SMI","SSI Medicaid Only SMI","Dual Eligible","Child Welfare","HIV/AIDS Dual Eligible","HIV/AIDS Medicaid Only","LTC Dual Eligible","LTC Medicaid Only","Total","TANF Non-SMI","TANF SMI","SSI Medicaid Only Non-SMI","SSI Medicaid Only SMI","Dual Eligible","Child Welfare","HIV/AIDS Dual Eligible","HIV/AIDS Medicaid Only","LTC Dual Eligible","LTC Medicaid Only","Total","TANF Non-SMI","TANF SMI","SSI Medicaid Only Non-SMI","SSI Medicaid Only SMI","Dual Eligible","Child Welfare","HIV/AIDS Dual Eligible","HIV/AIDS Medicaid Only","LTC Dual Eligible","LTC Medicaid Only","Prior Year Adjustments","Total","TANF Non-SMI","TANF SMI","SSI Medicaid Only Non-SMI","SSI Medicaid Only SMI","Dual Eligible","Child Welfare","HIV/AIDS Dual Eligible","HIV/AIDS Medicaid Only","LTC Dual Eligible","LTC Medicaid Only"]
["Hospital Services",2.1,"Inpatient FFS",{"$f":"SUM(E20:N20)","v":0},{"$nulls":10},{"$f":"SUM(P20:Y20)","v":0},{"$nulls":10},{"$f":"SUM(AA20:AJ20)","v":0},{"$nulls":10},{"$f":"SUM(AL20:AU20)","v":0},{"$nulls":11},{"$f":"SUM(AX20:BG20)+AV20","v":0},{"$f":"E20+P20+AA20+AL20","v":0},0,0,0,0,0,0,0,0,0]
[null,2.2,"Ending IBNP for Inpatient Hospital Services",0,{"$nulls":10},0,{"$nulls":10},0,{"$nulls":10},0,{"$nulls":11},{"$f":"SUM(AX21:BG21)+AV21","v":0},0,0,0,0,0,0,0,0,0,0]
[null,2.3,"Outpatient FFS: ER",0,{"$nulls":10},0,{"$nulls":10},0,{"$nulls":10},0,{"$nulls":11},0,0,0,0,0,0,0,0,0,0,0]
[null,2.4,"Outpatient FFS: Other than ER ",0,{"$nulls":10},0,{"$nulls":10},0,{"$nulls":10},0,{"$nulls":11},0,0,0,0,0,0,0,0,0,0,0]
[null,2.5,"Ending IBNP for Outpatient Hospital Services",0,{"$nulls":10},0,{"$nulls":10},0,{"$nulls":10},0,{"$nulls":11},0,0,0,0,0,0,0,0,0,0,0]
[null,"2.6","Subcapitated Hospital Services",0,{"$nulls":10},0,{"$nulls":10},0,{"$nulls":10},0,{"$nulls":11},0,0,0,0,0,0,0,0,0,0,0]
[null,"2.7","Hospital Settlements/AP",0,{"$nulls":10},0,{"$nulls":10},0,{"$nulls":10},0,{"$nulls":11},0,0,0,0,0,0,0,0,0,0,0]
[null,"2.7.1","Transplant Services",0,{"$nulls":10},0,{"$nulls":10},0,{"$nulls":10},0,{"$nulls":11},0,0,0,0,0,0,0,0,0,0,0]
[null,"2.8","Total Hospital Services",{"$f":"SUM(D20:D27)","v":0},{"$f":"SUM(E20:E27)","v":0},0,0,0,0,0,0,0,0,0,{"$f":"SUM(O20:O27)","v":0},{"$f":"SUM(P20:P27)","v":0},0,0,0,0,0,0,0,0,0,{"$f":"SUM(Z20:Z27)","v":0},{"$f":"SUM(AA20:AA27)","v":0},0,0,0,0,0,0,0,0,0,{"$f":"SUM(AK20:AK27)","v":0},{"$f":"SUM(AL20:AL27)","v":0},0,0,0,0,0,0,0,0,0,{"$f":"SUM(AV20:AV27)","v":0},{"$f":"SUM(AW20:AW27)","v":0},{"$f":"SUM(AX20:AX27)","v":0},0,0,0,0,0,0,0,0,0]
["Professional Services",3.1,"Primary Care FFS",{"$f":"SUM(E29:N29)","v":0},{"$nulls":10},{"$f":"SUM(P29:Y29)","v":0},{"$nulls":10},{"$f":"SUM(AA29:AJ29)","v":0},{"$nulls":10},{"$f":"SUM(AL29:AU29)","v":0},{"$nulls":11},{"$f":"SUM(AX29:BG29)+AV29","v":0},{"$f":"E29+P29+AA29+AL29","v":0},0,0,0,0,0,0,0,0,0]
[null,3.2,"Specialty Care FFS",0,{"$nulls":10},0,{"$nulls":10},0,{"$nulls":10},0,{"$nulls":11},0,0,0,0,0,0,0,0,0,0,0]
[null,3.3,"Other Professional FFS",0,{"$nulls":10},0,{"$nulls":10},0,{"$nulls":10},0,{"$nulls":11},0,0,0,0,0,0,0,0,0,0,0]
[null,"3.4","§ 1202 PCP Payments to providers",0,{"$nulls":10},{"$f":"SUM(P32:Y32)","v":0},{"$nulls":10},{"$f":"SUM(AA32:AJ32)","v":0},{"$nulls":10},{"$f":"SUM(AL32:AU32)","v":0},{"$nulls":11},{"$f":"SUM(AX32:BG32)+AV32","v":0},0,0,0,0,0,0,0,0,0,0]
[null,"3.5","Subcapitated Professional Services",0,{"$nulls":10},0,{"$nulls":10},0,{"$nulls":10},0,{"$nulls":11},{"$f":"SUM(AX33:BG33)+AV33","v":0},0,0,0,0,0,0,0,0,0,0]
[null,"3.6","Ending IBNP for Professional Services",0,{"$nulls":10},0,{"$nulls":10},0,{"$nulls":10},0,{"$nulls":11},0,0,0,0,0,0,0,0,0,0,0]
[null,"3.7","Professional Settlements/AP",0,{"$nulls":10},0,{"$nulls":10},0,{"$nulls":10},0,{"$nulls":11},0,0,0,0,0,0,0,0,0,0,0]
[null,"3.8","Total Physician Services",{"$f":"SUM(D29:D35)","v":0},0,0,0,0,0,0,0,0,0,0,0,0,0,0,0,0,0,0,0,0,0,0,0,0,0,0,0,0,0,0,0,0,0,0,0,0,0,0,0,0,0,0,0,0,0,0,0,0,0,0,0,0,0,0,0]
["Maternity Services","4.1.1","Maternity Services",{"$f":"SUM(E37:N37)","v":0},{"$nulls":10},{"$f":"SUM(P37:Y37)","v":0},{"$nulls":10},{"$f":"SUM(AA37:AJ37)","v":0},{"$nulls":10},{"$f":"SUM(AL37:AU37)","v":0},{"$nulls":11},{"$f":"SUM(AX37:BG37)+AV37","v":0},{"$f":"E37+P37+AA37+AL37","v":0},{"$f":"F37+Q37+AB37+AM37","v":0},{"$f":"G37+R37+AC37+AN37","v":0},0,0,0,0,0,0,0]
[null,"4.2.1","Ending IBNP for Maternity Services",{"$f":"SUM(E38:N38)","v":0},{"$nulls":10},{"$f":"SUM(P38:Y38)","v":0},{"$nulls":10},{"$f":"SUM(AA38:AJ38)","v":0},{"$nulls":10},{"$f":"SUM(AL38:AU38)","v":0},{"$nulls":11},{"$f":"SUM(AX38:BG38)+AV38","v":0},{"$f":"E38+P38+AA38+AL38","v":0},0,{"$f":"G38+R38+AC38+AN38","v":0},0,0,0,0,0,0,0]
[null,"4.3.1","Maternity Settlements/AP",{"$f":"SUM(E39:N39)","v":0},{"$nulls":10},{"$f":"SUM(P39:Y39)","v":0},{"$nulls":10},{"$f":"SUM(AA39:AJ39)","v":0},{"$nulls":10},{"$f":"SUM(AL39:AU39)","v":0},{"$nulls":11},{"$f":"SUM(AX39:BG39)+AV39","v":0},{"$f":"E39+P39+AA39+AL39","v":0},0,{"$f":"G39+R39+AC39+AN39","v":0},0,0,0,0,0,0,0]
[null,"4.4.1","Total Maternity Services",{"$f":"SUM(D37:D39)","v":0},0,0,0,0,0,0,0,0,0,0,{"$f":"SUM(O37:O39)","v":0},0,0,0,0,0,{"$f":"SUM(U37:U39)","v":0},0,0,0,0,0,0,0,0,0,0,0,0,{"$f":"SUM(AH37:AH39)","v":0},0,0,0,0,0,0,0,0,0,0,0,0,0,0,0,{"$f":"SUM(AX37:AX39)","v":0},{"$f":"SUM(AY37:AY39)","v":0},0,0,0,0,0,0,0,0]
["Mental Health",5.1,"Mental Health & Substance Abuse FFS",{"$f":"SUM(E41:N41)","v":0},{"$nulls":10},{"$f":"SUM(P41:Y41)","v":0},{"$nulls":10},{"$f":"SUM(AA41:AJ41)","v":0},{"$nulls":10},{"$f":"SUM(AL41:AU41)","v":0},{"$nulls":11},{"$f":"SUM(AX41:BG41)+AV41","v":0},{"$f":"E41+P41+AA41+AL41","v":0},{"$f":"F41+Q41+AB41+AM41","v":0},0,0,0,0,0,0,0,0]
[null,5.2,"Mental Health & Substance Abuse Subcapitation",{"$f":"SUM(E42:N42)","v":0},{"$nulls":10},{"$f":"SUM(P42:Y42)","v":0},{"$nulls":10},{"$f":"SUM(AA42:AJ42)","v":0},{"$nulls":10},{"$f":"SUM(AL42:AU42)","v":0},{"$nulls":11},{"$f":"SUM(AX42:BG42)+AV42","v":0},{"$f":"E42+P42+AA42+AL42","v":0},0,{"$f":"G42+R42+AC42+AN42","v":0},0,0,0,0,0,0,0]
[null,5.3,"Ending IBNP for Mental Health & Substance Abuse",{"$f":"SUM(E43:N43)","v":0},{"$nulls":10},{"$f":"SUM(P43:Y43)","v":0},{"$nulls":10},{"$f":"SUM(AA43:AJ43)","v":0},{"$nulls":10},{"$f":"SUM(AL43:AU43)","v":0},{"$nulls":11},{"$f":"SUM(AX43:BG43)+AV43","v":0},{"$f":"E43+P43+AA43+AL43","v":0},0,{"$f":"G43+R43+AC43+AN43","v":0},0,0,0,0,0,0,0]
[null,"5.4","Mental Health Settlements/AP",{"$f":"SUM(E44:N44)","v":0},{"$nulls":10},{"$f":"SUM(P44:Y44)","v":0},{"$nulls":10},{"$f":"SUM(AA44:AJ44)","v":0},{"$nulls":10},{"$f":"SUM(AL44:AU44)","v":0},{"$nulls":11},{"$f":"SUM(AX44:BG44)+AV44","v":0},{"$f":"E44+P44+AA44+AL44","v":0},0,{"$f":"G44+R44+AC44+AN44","v":0},0,0,0,0,0,0,0]
[null,"5.5","Total Mental Health & Substance Abuse Services",{"$f":"SUM(D41:D44)","v":0},{"$f":"SUM(E41:E44)","v":0},0,0,0,{"$f":"SUM(I41:I44)","v":0},0,0,0,0,0,0,0,0,0,0,0,0,0,0,0,0,0,0,0,0,0,0,0,0,0,0,0,0,0,0,0,0,0,0,0,0,0,0,0,0,0,0,0,0,0,0,0,0,0,0]
["Dental",6.1,"Dental FFS",{"$f":"SUM(E46:N46)","v":0},{"$nulls":10},{"$f":"SUM(P46:Y46)","v":0},{"$nulls":10},{"$f":"SUM(AA46:AJ46)","v":0},{"$nulls":10},{"$f":"SUM(AL46:AU46)","v":0},{"$nulls":11},{"$f":"SUM(AX46:BG46)+AV46","v":0},{"$f":"E46+P46+AA46+AL46","v":0},{"$f":"F46+Q46+AB46+AM46","v":0},0,0,0,0,0,0,0,0]
[null,6.2,"Dental Subcapitation",{"$f":"SUM(E47:N47)","v":0},{"$nulls":10},{"$f":"SUM(P47:Y47)","v":0},{"$nulls":10},{"$f":"SUM(AA47:AJ47)","v":0},{"$nulls":10},{"$f":"SUM(AL47:AU47)","v":0},{"$nulls":11},{"$f":"SUM(AX47:BG47)+AV47","v":0},{"$f":"E47+P47+AA47+AL47","v":0},0,{"$f":"G47+R47+AC47+AN47","v":0},0,0,0,0,0,0,0]
[null,6.3,"Ending IBNP for Dental Services",{"$f":"SUM(E48:N48)","v":0},{"$nulls":10},{"$f":"SUM(P48:Y48)","v":0},{"$nulls":10},{"$f":"SUM(AA48:AJ48)","v":0},{"$nulls":10},{"$f":"SUM(AL48:AU48)","v":0},{"$nulls":11},{"$f":"SUM(AX48:BG48)+AV48","v":0},{"$f":"E48+P48+AA48+AL48","v":0},0,{"$f":"G48+R48+AC48+AN48","v":0},0,0,0,0,0,0,0]
[null,"6.4","Dental Settlements/AP",{"$f":"SUM(E49:N49)","v":0},{"$nulls":10},{"$f":"SUM(P49:Y49)","v":0},{"$nulls":10},{"$f":"SUM(AA49:AJ49)","v":0},{"$nulls":10},{"$f":"SUM(AL49:AU49)","v":0},{"$nulls":11},{"$f":"SUM(AX49:BG49)+AV49","v":0},{"$f":"E49+P49+AA49+AL49","v":0},0,{"$f":"G49+R49+AC49+AN49","v":0},0,0,0,0,0,0,0]
[null,"6.5","Total Dental Services",{"$f":"SUM(D46:D49)","v":0},{"$f":"SUM(E46:E49)","v":0},0,0,0,0,0,0,0,0,0,0,0,0,0,0,0,0,0,0,0,0,0,0,0,0,0,0,0,0,0,0,0,0,0,0,0,0,0,0,0,0,0,0,0,0,0,0,0,0,0,0,0,0,0,0]
["Transportation",7.1,"Transportation FFS",{"$f":"SUM(E51:N51)","v":0},{"$nulls":10},{"$f":"SUM(P51:Y51)","v":0},{"$nulls":10},{"$f":"SUM(AA51:AJ51)","v":0},{"$nulls":10},{"$f":"SUM(AL51:AU51)","v":0},{"$nulls":11},{"$f":"SUM(AX51:BG51)+AV51","v":0},{"$f":"E51+P51+AA51+AL51","v":0},{"$f":"F51+Q51+AB51+AM51","v":0},0,0,0,0,0,0,0,0]
[null,7.2,"Transportation Subcapitation",{"$f":"SUM(E52:N52)","v":0},{"$nulls":10},{"$f":"SUM(P52:Y52)","v":0},{"$nulls":10},{"$f":"SUM(AA52:AJ52)","v":0},{"$nulls":10},{"$f":"SUM(AL52:AU52)","v":0},{"$nulls":11},{"$f":"SUM(AX52:BG52)+AV52","v":0},{"$f":"E52+P52+AA52+AL52","v":0},0,{"$f":"G52+R52+AC52+AN52","v":0},0,0,0,0,0,0,0]
[null,7.3,"Ending IBNP for Transportation",{"$f":"SUM(E53:N53)","v":0},{"$nulls":10},{"$f":"SUM(P53:Y53)","v":0},{"$nulls":10},{"$f":"SUM(AA53:AJ53)","v":0},{"$nulls":10},{"$f":"SUM(AL53:AU53)","v":0},{"$nulls":11},{"$f":"SUM(AX53:BG53)+AV53","v":0},{"$f":"E53+P53+AA53+AL53","v":0},0,{"$f":"G53+R53+AC53+AN53","v":0},0,0,0,0,0,0,0]
[null,"7.4","Transportation Settlements/AP",{"$f":"SUM(E54:N54)","v":0},{"$nulls":10},{"$f":"SUM(P54:Y54)","v":0},{"$nulls":10},{"$f":"SUM(AA54:AJ54)","v":0},{"$nulls":10},{"$f":"SUM(AL54:AU54)","v":0},{"$nulls":11},{"$f":"SUM(AX54:BG54)+AV54","v":0},{"$f":"E54+P54+AA54+AL54","v":0},0,{"$f":"G54+R54+AC54+AN54","v":0},0,0,0,0,0,0,0]
[null,"7.5","Total Transportation Services",{"$f":"SUM(D51:D54)","v":0},{"$f":"SUM(E51:E54)","v":0},0,0,0,0,0,0,0,0,0,0,0,0,0,0,0,0,0,0,{"$f":"SUM(X51:X54)","v":0},0,0,0,0,0,0,0,0,0,0,0,0,0,0,0,0,0,0,0,0,0,0,0,0,0,0,0,0,0,0,0,0,0,0,0]
["Pharmacy",8.1,"Prescription Drugs FFS",{"$f":"SUM(E56:N56)","v":0},{"$nulls":10},{"$f":"SUM(P56:Y56)","v":0},{"$nulls":10},{"$f":"SUM(AA56:AJ56)","v":0},{"$nulls":10},{"$f":"SUM(AL56:AU56)","v":0},{"$nulls":11},{"$f":"SUM(AX56:BG56)+AV56","v":0},{"$f":"E56+P56+AA56+AL56","v":0},0,0,0,0,0,0,0,0,0]
[null,"8.2","Hepatitis C Prescription Drug FFS",0,{"$nulls":10},0,{"$nulls":10},0,{"$nulls":10},0,{"$nulls":11},{"$f":"SUM(AX57:BG57)+AV57","v":0},0,0,0,0,0,0,0,0,0,0]
[null,"8.3","Ending IBNP for Prescription Drugs",0,{"$nulls":10},0,{"$nulls":10},0,{"$nulls":10},0,{"$nulls":11},0,0,0,0,0,0,0,0,0,0,0]
[null,"8.4","Prescription Drug Rebates ",0,{"$nulls":10},0,{"$nulls":10},0,{"$nulls":10},0,{"$nulls":11},0,0,0,0,0,0,0,0,0,0,0]
[null,"8.5","Ending accrual for Rebates receivable",0,{"$nulls":10},0,{"$nulls":10},0,{"$nulls":10},0,{"$nulls":11},0,0,0,0,0,0,0,0,0,0,0]
[null,"8.6","Prescription Drugs Subcapitation",0,{"$nulls":10},0,{"$nulls":10},0,{"$nulls":10},0,{"$nulls":11},0,0,0,0,0,0,0,0,0,0,0]
[null,"8.7","Prescription Drug Settlements/AP",0,{"$nulls":10},0,{"$nulls":10},0,{"$nulls":10},0,{"$nulls":11},0,0,0,0,0,0,0,0,0,0,0]
[null,"8.8","Total Prescription Drugs",{"$f":"SUM(D56:D62)","v":0},{"$f":"SUM(E56:E62)","v":0},0,0,0,0,0,0,0,0,0,0,0,0,0,0,0,0,0,0,0,0,0,0,0,0,0,0,0,0,0,0,0,0,0,0,0,0,0,0,0,0,0,0,0,0,0,0,0,0,0,0,0,0,0,0]
["Other Services",9.1,"Home Health, Private Duty Nursing, Personal Care FFS",{"$f":"SUM(E64:L64)","v":0},{"$nulls":10},{"$f":"SUM(P64:W64)","v":0},{"$nulls":10},{"$f":"SUM(AA64:AH64)","v":0},{"$nulls":10},{"$f":"SUM(AL64:AS64)","v":0},{"$nulls":11},{"$f":"SUM(AX64:BE64)+AV64","v":0},{"$f":"E64+P64+AA64+AL64","v":0},0,0,0,0,0,0,0]
[null,"9.2","Hospice FFS",{"$f":"SUM(E65:L65)","v":0},{"$nulls":10},{"$f":"SUM(P65:W65)","v":0},{"$nulls":10},{"$f":"SUM(AA65:AH65)","v":0},{"$nulls":10},{"$f":"SUM(AL65:AS65)","v":0},{"$nulls":11},{"$f":"SUM(AX65:BE65)+AV65","v":0},0,0,0,0,0,0,0,0]
[null,"9.3","DME FFS",{"$f":"SUM(E66:L66)","v":0},{"$nulls":10},{"$f":"SUM(P66:W66)","v":0},{"$nulls":10},{"$f":"SUM(AA66:AH66)","v":0},{"$nulls":10},{"$f":"SUM(AL66:AS66)","v":0},{"$nulls":11},0,0,0,0,0,0,0,0,0]
[null,"9.4","Other State Plan Services FFS",{"$f":"SUM(E67:N67)","v":0},{"$nulls":10},{"$f":"SUM(P67:Y67)","v":0},{"$nulls":10},{"$f":"SUM(AA67:AJ67)","v":0},{"$nulls":10},{"$f":"SUM(AL67:AU67)","v":0},{"$nulls":11},{"$f":"SUM(AX67:BG67)+AV67","v":0},0,0,0,0,0,0,0,0,0,0]
[null,"9.5","Other Services Subcapitation",{"$f":"SUM(E68:N68)","v":0},{"$nulls":10},{"$f":"SUM(P68:Y68)","v":0},{"$nulls":10},{"$f":"SUM(AA68:AJ68)","v":0},{"$nulls":10},{"$f":"SUM(AL68:AU68)","v":0},{"$nulls":11},{"$f":"SUM(AX68:BG68)+AV68","v":0},0,0,0,0,0,0,0,0,0,0]
[null,"9.6","Ending IBNP for Other Services",{"$f":"SUM(E69:N69)","v":0},{"$nulls":10},{"$f":"SUM(P69:Y69)","v":0},{"$nulls":10},{"$f":"SUM(AA69:AJ69)","v":0},{"$nulls":10},{"$f":"SUM(AL69:AU69)","v":0},{"$nulls":11},{"$f":"SUM(AX69:BG69)+AV69","v":0},0,0,0,0,0,0,0,0,0,0]
[null,"9.7","Other Services Settlements/AP",{"$f":"SUM(E70:N70)","v":0},{"$nulls":10},{"$f":"SUM(P70:Y70)","v":0},{"$nulls":10},{"$f":"SUM(AA70:AJ70)","v":0},{"$nulls":10},{"$f":"SUM(AL70:AU70)","v":0},{"$nulls":11},{"$f":"SUM(AX70:BG70)+AV70","v":0},0,0,0,0,0,0,0,0,0,0]
[null,"9.8","Total Other Services",{"$f":"SUM(D64:D70)","v":0},{"$f":"SUM(E64:E70)","v":0},0,0,0,0,0,0,0,{"$f":"SUM(M67:M70)","v":0},{"$f":"SUM(N67:N70)","v":0},0,0,0,0,0,0,0,0,0,{"$f":"SUM(X67:X70)","v":0},{"$f":"SUM(Y67:Y70)","v":0},0,0,0,0,0,0,0,0,0,{"$f":"SUM(AI67:AI70)","v":0},{"$f":"SUM(AJ67:AJ70)","v":0},0,0,0,0,0,0,0,0,0,{"$f":"SUM(AT67:AT70)","v":0},{"$f":"SUM(AU67:AU70)","v":0},{"$f":"SUM(AV64:AV70)","v":0},0,0,0,0,0,0,0,{"$f":"SUM(BD64:BD70)","v":0},{"$f":"SUM(BE64:BE70)","v":0},{"$f":"SUM(BF67:BF70)","v":0},{"$f":"SUM(BG67:BG70)","v":0}]
["Expanded Benefits","10.1","Expanded Benefits FFS",{"$f":"SUM(E72:N72)","v":0},{"$nulls":10},{"$f":"SUM(P72:Y72)","v":0},{"$nulls":10},{"$f":"SUM(AA72:AJ72)","v":0},{"$nulls":10},{"$f":"SUM(AL72:AU72)","v":0},{"$nulls":11},{"$f":"SUM(AX72:BG72)+AV72","v":0},{"$f":"E72+P72+AA72+AL72","v":0},{"$f":"F72+Q72+AB72+AM72","v":0},0,0,0,0,0,0,0,0]
[null,"10.2","Expanded Benefits Subcapitation",{"$f":"SUM(E73:N73)","v":0},{"$nulls":10},{"$f":"SUM(P73:Y73)","v":0},{"$nulls":10},{"$f":"SUM(AA73:AJ73)","v":0},{"$nulls":10},{"$f":"SUM(AL73:AU73)","v":0},{"$nulls":11},{"$f":"SUM(AX73:BG73)+AV73","v":0},{"$f":"E73+P73+AA73+AL73","v":0},0,{"$f":"G73+R73+AC73+AN73","v":0},0,0,0,0,0,0,0]
[null,"10.3","Ending IBNP for Expanded Benefits",{"$f":"SUM(E74:N74)","v":0},{"$nulls":10},{"$f":"SUM(P74:Y74)","v":0},{"$nulls":10},{"$f":"SUM(AA74:AJ74)","v":0},{"$nulls":10},{"$f":"SUM(AL74:AU74)","v":0},{"$nulls":11},{"$f":"SUM(AX74:BG74)+AV74","v":0},{"$f":"E74+P74+AA74+AL74","v":0},0,{"$f":"G74+R74+AC74+AN74","v":0},0,0,0,0,0,0,0]
[null,"10.4","Expanded Benefits Settlements/AP",{"$f":"SUM(E75:N75)","v":0},{"$nulls":10},{"$f":"SUM(P75:Y75)","v":0},{"$nulls":10},{"$f":"SUM(AA75:AJ75)","v":0},{"$nulls":10},{"$f":"SUM(AL75:AU75)","v":0},{"$nulls":11},{"$f":"SUM(AX75:BG75)+AV75","v":0},{"$f":"E75+P75+AA75+AL75","v":0},0,{"$f":"G75+R75+AC75+AN75","v":0},0,0,0,0,0,0,0]
[null,"10.5","Total Expanded Benefits",{"$f":"SUM(D72:D75)","v":0},{"$f":"SUM(E72:E75)","v":0},0,0,0,0,0,0,0,0,0,0,0,0,0,0,0,0,0,0,{"$f":"SUM(X72:X75)","v":0},0,0,0,0,0,0,0,0,0,0,0,0,0,0,0,0,0,0,0,0,0,0,0,0,0,0,0,0,0,0,0,0,0,0,0]
["Totals Before and After Reinsurance","11.1","Total Services Paid Directly FFS",{"$f":"D20+SUM(D22:D23,D27)+SUM(D29:D32)+D37+D41+D46+D51+SUM(D56:D57)+SUM(D59:D60)+SUM(D64:D67)+D72","v":0},{"$f":"E20+SUM(E22:E23,E27)+SUM(E29:E32)+E37+E41+E46+E51+SUM(E56:E57)+SUM(E59:E60)+SUM(E64:E67)+E72","v":0},{"$f":"F20+SUM(F22:F23,F27)+SUM(F29:F32)+F37+F41+F46+F51+SUM(F56:F57)+SUM(F59:F60)+SUM(F64:F67)+F72","v":0},{"$f":"G20+SUM(G22:G23,G27)+SUM(G29:G32)+G37+G41+G46+G51+SUM(G56:G57)+SUM(G59:G60)+SUM(G64:G67)+G72","v":0},0,0,0,0,0,0,0,{"$f":"O20+SUM(O22:O23,O27)+SUM(O29:O32)+O37+O41+O46+O51+SUM(O56:O57)+SUM(O59:O60)+SUM(O64:O67)+O72","v":0},{"$f":"P20+SUM(P22:P23,P27)+SUM(P29:P32)+P37+P41+P46+P51+SUM(P56:P57)+SUM(P59:P60)+SUM(P64:P67)+P72","v":0},0,0,0,0,0,0,0,0,0,{"$f":"Z20+SUM(Z22:Z23,Z27)+SUM(Z29:Z32)+Z37+Z41+Z46+Z51+SUM(Z56:Z57)+SUM(Z59:Z60)+SUM(Z64:Z67)+Z72","v":0},{"$f":"AA20+SUM(AA22:AA23,AA27)+SUM(AA29:AA32)+AA37+AA41+AA46+AA51+SUM(AA56:AA57)+SUM(AA59:AA60)+SUM(AA64:AA67)+AA72","v":0},0,0,0,0,0,0,0,0,0,{"$f":"AK20+SUM(AK22:AK23,AK27)+SUM(AK29:AK32)+AK37+AK41+AK46+AK51+SUM(AK56:AK57)+SUM(AK59:AK60)+SUM(AK64:AK67)+AK72","v":0},{"$f":"AL20+SUM(AL22:AL23,AL27)+SUM(AL29:AL32)+AL37+AL41+AL46+AL51+SUM(AL56:AL57)+SUM(AL59:AL60)+SUM(AL64:AL67)+AL72","v":0},0,0,0,0,0,0,0,0,0,{"$f":"AV20+SUM(AV22:AV23,AV27)+SUM(AV29:AV32)+AV37+AV41+AV46+AV51+SUM(AV56:AV57)+SUM(AV59:AV60)+SUM(AV64:AV67)+AV72","v":0},{"$f":"AW20+SUM(AW22:AW23,AW27)+SUM(AW29:AW32)+AW37+AW41+AW46+AW51+SUM(AW56:AW57)+SUM(AW59:AW60)+SUM(AW64:AW67)+AW72","v":0},{"$f":"AX20+SUM(AX22:AX23,AX27)+SUM(AX29:AX32)+AX37+AX41+AX46+AX51+SUM(AX56:AX57)+SUM(AX59:AX60)+SUM(AX64:AX67)+AX72","v":0},0,0,0,0,0,0,0,0,0]
[null,"11.2","Total Services Paid Directly -- IBNP",{"$f":"D21+D24+D34+D38+D43+D48+D53+D58+D69+D74","v":0},{"$f":"E21+E24+E34+E38+E43+E48+E53+E58+E69+E74","v":0},{"$f":"F21+F24+F34+F38+F43+F48+F53+F58+F69+F74","v":0},{"$f":"G21+G24+G34+G38+G43+G48+G53+G58+G69+G74","v":0},0,0,0,0,0,0,0,{"$f":"O21+O24+O34+O38+O43+O48+O53+O58+O69+O74","v":0},{"$f":"P21+P24+P34+P38+P43+P48+P53+P58+P69+P74","v":0},0,0,0,0,0,0,0,0,0,{"$f":"Z21+Z24+Z34+Z38+Z43+Z48+Z53+Z58+Z69+Z74","v":0},{"$f":"AA21+AA24+AA34+AA38+AA43+AA48+AA53+AA58+AA69+AA74","v":0},0,0,0,0,0,0,0,0,0,{"$f":"AK21+AK24+AK34+AK38+AK43+AK48+AK53+AK58+AK69+AK74","v":0},{"$f":"AL21+AL24+AL34+AL38+AL43+AL48+AL53+AL58+AL69+AL74","v":0},0,0,0,0,0,0,0,0,0,{"$f":"AV21+AV24+AV34+AV38+AV43+AV48+AV53+AV58+AV69+AV74","v":0},{"$f":"AW21+AW24+AW34+AW38+AW43+AW48+AW53+AW58+AW69+AW74","v":0},{"$f":"AX21+AX24+AX34+AX38+AX43+AX48+AX53+AX58+AX69+AX74","v":0},0,0,0,0,0,0,0,0,0]
[null,"11.3","Total Services Paid through Subcapitation",{"$f":"D25+D33+D42+D47+D52+D61+D68+D73","v":0},{"$f":"E25+E33+E42+E47+E52+E61+E68+E73","v":0},{"$f":"F25+F33+F42+F47+F52+F61+F68+F73","v":0},{"$f":"G25+G33+G42+G47+G52+G61+G68+G73","v":0},0,0,0,0,0,0,0,{"$f":"O25+O33+O42+O47+O52+O61+O68+O73","v":0},{"$f":"P25+P33+P42+P47+P52+P61+P68+P73","v":0},0,0,0,0,0,0,0,0,0,{"$f":"Z25+Z33+Z42+Z47+Z52+Z61+Z68+Z73","v":0},{"$f":"AA25+AA33+AA42+AA47+AA52+AA61+AA68+AA73","v":0},0,0,0,0,0,0,0,0,0,{"$f":"AK25+AK33+AK42+AK47+AK52+AK61+AK68+AK73","v":0},{"$f":"AL25+AL33+AL42+AL47+AL52+AL61+AL68+AL73","v":0},0,0,0,0,0,0,0,0,0,{"$f":"AV25+AV33+AV42+AV47+AV52+AV61+AV68+AV73","v":0},{"$f":"AW25+AW33+AW42+AW47+AW52+AW61+AW68+AW73","v":0},{"$f":"AX25+AX33+AX42+AX47+AX52+AX61+AX68+AX73","v":0},0,0,0,0,0,0,0,0,0]
[null,"11.4","Total Services Paid by Settlements/AP",{"$f":"D26+D35+D39+D44+D49+D54+D62+D70+D75","v":0},{"$f":"E26+E35+E39+E44+E49+E54+E62+E70+E75","v":0},{"$f":"F26+F35+F39+F44+F49+F54+F62+F70+F75","v":0},{"$f":"G26+G35+G39+G44+G49+G54+G62+G70+G75","v":0},0,0,0,0,0,0,0,{"$f":"O26+O35+O39+O44+O49+O54+O62+O70+O75","v":0},{"$f":"P26+P35+P39+P44+P49+P54+P62+P70+P75","v":0},0,0,0,0,0,0,0,0,0,{"$f":"Z26+Z35+Z39+Z44+Z49+Z54+Z62+Z70+Z75","v":0},{"$f":"AA26+AA35+AA39+AA44+AA49+AA54+AA62+AA70+AA75","v":0},0,0,0,0,0,0,0,0,0,{"$f":"AK26+AK35+AK39+AK44+AK49+AK54+AK62+AK70+AK75","v":0},{"$f":"AL26+AL35+AL39+AL44+AL49+AL54+AL62+AL70+AL75","v":0},0,0,0,0,0,0,0,0,0,0,{"$f":"AW26+AW35+AW39+AW44+AW49+AW54+AW62+AW70+AW75","v":0},{"$f":"AX26+AX35+AX39+AX44+AX49+AX54+AX62+AX70+AX75","v":0},0,0,0,0,0,0,0,0,0]
[null,"11.5","TPL & Fraud/Abuse Recoveries",{"$f":"SUM(E81:N81)","v":0},{"$nulls":10},{"$f":"SUM(P81:Y81)","v":0},{"$nulls":10},{"$f":"SUM(AA81:AJ81)","v":0},{"$nulls":10},{"$f":"SUM(AL81:AU81)","v":0},{"$nulls":11},{"$f":"SUM(AX81:BG81)+AV81","v":0},{"$f":"E81+P81+AA81+AL81","v":0},{"$f":"F81+Q81+AB81+AM81","v":0},{"$f":"G81+R81+AC81+AN81","v":0},{"$f":"H81+S81+AD81+AO81","v":0},0,0,0,0,0,0]
[null,"11.6.1","Premium Deficiency Reserve",{"$f":"SUM(E82:N82)","v":0},{"$nulls":10},{"$f":"SUM(P82:Y82)","v":0},{"$nulls":10},{"$f":"SUM(AA82:AJ82)","v":0},{"$nulls":10},{"$f":"SUM(AL82:AU82)","v":0},{"$nulls":11},{"$f":"SUM(AX82:BG82)+AV82","v":0},{"$f":"E82+P82+AA82+AL82","v":0},0,{"$f":"G82+R82+AC82+AN82","v":0},0,0,0,0,0,0,0]
[null,"11.7","Subtotal Benefit Expense before Reinsurance",{"$f":"SUM(D77:D82)","v":0},{"$f":"SUM(E77:E82)","v":0},0,0,0,0,0,0,0,0,0,0,0,0,0,0,0,0,0,0,0,0,0,0,0,0,0,0,0,0,0,0,0,0,0,0,0,0,0,0,0,0,0,0,0,0,0,0,0,0,0,0,0,0,0,0]
[null,"11.8","Reinsurance Premiums",{"$f":"SUM(E84:N84)","v":0},{"$nulls":10},{"$f":"SUM(P84:Y84)","v":0},{"$nulls":10},{"$f":"SUM(AA84:AJ84)","v":0},{"$nulls":10},{"$f":"SUM(AL84:AU84)","v":0},{"$nulls":11},{"$f":"SUM(AX84:BG84)+AV84","v":0},{"$f":"E84+P84+AA84+AL84","v":0},{"$f":"F84+Q84+AB84+AM84","v":0},0,0,0,0,0,0,0,0]
[null,"11.9","Reinsurance Recoveries",{"$f":"SUM(E85:N85)","v":0},{"$nulls":10},{"$f":"SUM(P85:Y85)","v":0},{"$nulls":10},{"$f":"SUM(AA85:AJ85)","v":0},{"$nulls":10},{"$f":"SUM(AL85:AU85)","v":0},{"$nulls":11},{"$f":"SUM(AX85:BG85)+AV85","v":0},{"$f":"E85+P85+AA85+AL85","v":0},0,{"$f":"G85+R85+AC85+AN85","v":0},0,0,0,0,0,0,0]
[null,"11.10","Net cost of Reinsurance",{"$f":"SUM(D84:D85)","v":0},{"$f":"SUM(E84:E85)","v":0},0,0,0,0,0,0,0,0,0,{"$f":"SUM(O84:O85)","v":0},{"$f":"SUM(P84:P85)","v":0},0,0,0,0,0,0,0,0,0,{"$f":"SUM(Z84:Z85)","v":0},{"$f":"SUM(AA84:AA85)","v":0},0,0,0,0,0,0,0,0,0,{"$f":"SUM(AK84:AK85)","v":0},{"$f":"SUM(AL84:AL85)","v":0},{"$f":"SUM(AM84:AM85)","v":0},0,0,0,0,0,0,0,0,0,{"$f":"SUM(AW84:AW85)","v":0},{"$f":"SUM(AX84:AX85)","v":0},0,{"$f":"SUM(AZ84:AZ85)","v":0},0,{"$f":"SUM(BB84:BB85)","v":0},0,0,0,0,0]
[null,"11.11","Grand Total Medical Benefit Expense Net of Reinsurance",{"$f":"D83+D86","v":0},{"$f":"E83+E86","v":0},0,0,0,0,0,0,0,0,0,{"$f":"O83+O86","v":0},{"$f":"P83+P86","v":0},0,0,0,0,0,0,0,0,0,{"$f":"Z83+Z86","v":0},{"$f":"AA83+AA86","v":0},0,0,0,0,0,0,0,0,0,{"$f":"AK83+AK86","v":0},{"$f":"AL83+AL86","v":0},{"$f":"AM83+AM86","v":0},0,0,0,0,0,0,0,0,0,{"$f":"AW83+AW86","v":0},{"$f":"AX83+AX86","v":0},{"$f":"AY83+AY86","v":0},0,0,0,0,0,0,0,0]
["Administrative Expenses, Government-Mandated Assessments, Taxes, and Fees ",null,null,"JANUARY - MARCH (Q1)",{"$nulls":10},"APRIL - JUNE (Q2)",{"$nulls":10},"JULY - SEPTEMBER (Q3)",{"$nulls":10},"OCTOBER - DECEMBER (Q4)",{"$nulls":11},"TOTAL (TO DATE)"]
[{"$nulls":3},"Total","Health Plan","Corporate",{"$nulls":8},"Total","Health Plan","Corporate",{"$nulls":8},"Total","Health Plan","Corporate",{"$nulls":8},"Total","Health Plan","Corporate",{"$nulls":8},"Prior Year Adjustments","Total","Health Plan","Corporate"]
["Administrative Expenses","12.1","Salaries & Benefits",{"$f":"E90+F90","v":0},{"$nulls":10},{"$f":"P90+Q90","v":0},{"$nulls":10},{"$f":"AA90+AB90","v":0},{"$nulls":10},{"$f":"AL90+AM90","v":0},{"$nulls":11},{"$f":"AX90+AY90+AV90","v":0},{"$f":"E90+P90+AA90+AL90","v":0},{"$f":"F90+Q90+AB90+AM90","v":0}]
[null,"12.2","Administrative Services",{"$f":"E91+F91","v":0},{"$nulls":10},{"$f":"P91+Q91","v":0},{"$nulls":10},{"$f":"AA91+AB91","v":0},{"$nulls":10},{"$f":"AL91+AM91","v":0},{"$nulls":11},0,{"$f":"E91+P91+AA91+AL91","v":0},0]
[null,"12.3","Information Systems",0,{"$nulls":10},0,{"$nulls":10},0,{"$nulls":10},0,{"$nulls":11},0,0,0]
[null,"12.4","Marketing Expenses",0,{"$nulls":10},0,{"$nulls":10},0,{"$nulls":10},0,{"$nulls":11},0,0,0]
[null,"12.5","General  Administration",0,{"$nulls":10},0,{"$nulls":10},0,{"$nulls":10},0,{"$nulls":11},0,0,0]
[null,"12.6","Compliance/Regulatory",0,{"$nulls":10},0,{"$nulls":10},0,{"$nulls":10},0,{"$nulls":11},0,0,0]
[null,"12.7","Total Administrative Expenses ",{"$f":"E96+F96","v":0},{"$f":"SUM(E90:E95)","v":0},{"$f":"SUM(F90:F95)","v":0},{"$nulls":8},{"$f":"P96+Q96","v":0},{"$f":"SUM(P90:P95)","v":0},0,{"$nulls":8},{"$f":"AA96+AB96","v":0},{"$f":"SUM(AA90:AA95)","v":0},0,{"$nulls":8},{"$f":"AL96+AM96","v":0},{"$f":"SUM(AL90:AL95)","v":0},0,{"$nulls":8},{"$f":"SUM(AV90:AV95)","v":0},0,{"$f":"SUM(AX90:AX95)","v":0},{"$f":"SUM(AY90:AY95)","v":0}]
["Government-Mandated Assessments, Taxes, and Fees Other Than Income Taxes","13.1","State Premium tax",{"$nulls":45},{"$f":"D97+O97+Z97+AK97+AV97","v":0}]
[null,"13.2","Department of Insurance Assessments",{"$nulls":45},0]
[null,"13.3","Section 9010 Health Insurance Providers Fee",{"$nulls":45},0]
[null,"13.4","Other 1",{"$nulls":45},0]
[null,"13.5","Other 2",{"$nulls":45},0]
[null,"13.6","Other 3",{"$nulls":45},0]
[null,"13.7","Total ",{"$f":"SUM(D97:D102)","v":0},{"$nulls":10},{"$f":"SUM(O97:O102)","v":0},{"$nulls":10},{"$f":"SUM(Z97:Z102)","v":0},{"$nulls":10},{"$f":"SUM(AK97:AK102)","v":0},{"$nulls":10},{"$f":"SUM(AV97:AV102)","v":0},{"$f":"SUM(AW97:AW102)","v":0}]
[null,"14.0","Grand Total Expenses",{"$f":"D87+D96+D103","v":0},{"$nulls":10},{"$f":"O87+O96+O103","v":0},{"$nulls":10},{"$f":"Z87+Z96+Z103","v":0},{"$nulls":10},{"$f":"AK87+AK96+AK103","v":0},{"$nulls":10},{"$f":"AV87+AV96+AV103","v":0},{"$f":"AW87+AW96+AW103","v":0}]
[null,"15.0","Underwriting Gain / (Loss)  --- AKA Pre-tax Earnings from Operations",{"$f":"D17-D104","v":0},{"$nulls":10},{"$f":"O17-O104","v":0},{"$nulls":10},{"$f":"Z17-Z104","v":0},{"$nulls":10},{"$f":"AK17-AK104","v":0},{"$nulls":10},{"$f":"AV17-AV104","v":0},{"$f":"AW17-AW104","v":0}]
[null,"16.0","Income Tax Expense",{"$nulls":45},{"$f":"D106+O106+Z106+AK106+AV106","v":0}]
[null,"17.0","Net Underwriting Gain (Loss)",{"$f":"D105-D106","v":0},{"$nulls":10},{"$f":"O105-O106","v":0},{"$nulls":10},{"$f":"Z105-Z106","v":0},{"$nulls":10},{"$f":"AK105-AK106","v":0},{"$nulls":10},{"$f":"AV105-AV106","v":0},{"$f":"AW105-AW106","v":0}]

{"sheet":"MMA Rev-Exp Region 6","index":12,"n_rows":107,"n_cols":59,"rows_kept":107,"hidden":true,"merged":[[6,3,6,13],[6,14,6,24],[6,25,6,35],[6,36,6,46],[6,48,6,58],[9,0,9,2],[10,0,16,0],[17,0,18,2],[17,3,17,13],[17,14,17,24],[17,25,17,35],[17,36,17,46],[17,48,17,58],[19,0,27,0],[28,0,35,0],[36,0,39,0],[40,0,44,0],[45,0,49,0],[50,0,54,0],[55,0,62,0],[63,0,70,0],[71,0,75,0],[76,0,86,0],[87,0,88,2],[87,3,87,13],[87,14,87,24],[87,25,87,35],[87,36,87,46],[87,48,87,58],[89,0,95,0],[96,0,102,0]]}
["MANAGED MEDICAL ASSISTANCE -- REVENUE AND EXPENSE SCHEDULE - REGION 6"]
[]
["Health Plan:",null,{"$f":"'MMA Rev-Exp Summary'!C3","v":0}]
["Reporting Period:",null,{"$f":"IF('MMA Rev-Exp Summary'!C4=0,\"\",'MMA Rev-Exp Summary'!C4)","v":""}]
["Paid Through:",null,{"$f":"IF('MMA Rev-Exp Summary'!C5=0,\"\",'MMA Rev-Exp Summary'!C5)","v":""}]
["Region 6"]
[{"$nulls":3},"JANUARY - MARCH (Q1)",{"$nulls":10},"APRIL - JUNE (Q2)",{"$nulls":10},"JULY - SEPTEMBER (Q3)",{"$nulls":10},"OCTOBER - DECEMBER (Q4)",{"$nulls":11},"TOTAL (TO DATE)"]
[{"$nulls":3},"Total","TANF Non-SMI","TANF SMI","SSI Medicaid Only Non-SMI","SSI Medicaid Only SMI","Dual Eligible","Child Welfare","HIV/AIDS Dual Eligible","HIV/AIDS Medicaid Only","LTC Dual Eligible","LTC Medicaid Only","Total","TANF Non-SMI","TANF SMI","SSI Medicaid Only Non-SMI","SSI Medicaid Only SMI","Dual Eligible","Child Welfare","HIV/AIDS Dual Eligible","HIV/AIDS Medicaid Only","LTC Dual Eligible","LTC Medicaid Only","Total","TANF Non-SMI","TANF SMI","SSI Medicaid Only Non-SMI","SSI Medicaid Only SMI","Dual Eligible","Child Welfare","HIV/AIDS Dual Eligible","HIV/AIDS Medicaid Only","LTC Dual Eligible","LTC Medicaid Only","Total","TANF Non-SMI","TANF SMI","SSI Medicaid Only Non-SMI","SSI Medicaid Only SMI","Dual Eligible","Child Welfare","HIV/AIDS Dual Eligible","HIV/AIDS Medicaid Only","LTC Dual Eligible","LTC Medicaid Only","Prior Year Adjustments","Total","TANF Non-SMI","TANF SMI","SSI Medicaid Only Non-SMI","SSI Medicaid Only SMI","Dual Eligible","Child Welfare","HIV/AIDS Dual Eligible","HIV/AIDS Medicaid Only","LTC Dual Eligible","LTC Medicaid Only"]
["MEMBER MONTHS",null,null,{"$f":"SUM(E9:N9)","v":0},{"$nulls":10},{"$f":"SUM(P9:Y9)","v":0},{"$nulls":10},{"$f":"SUM(AA9:AJ9)","v":0},{"$nulls":10},{"$f":"SUM(AL9:AU9)","v":0},{"$nulls":11},{"$f":"AK9+Z9+O9+D9+AV9","v":0},{"$f":"AL9+AA9+P9+E9","v":0},{"$f":"AM9+AB9+Q9+F9","v":0},0,0,0,0,0,0,0,0]
["REVENUES"]
["Revenues",1.1,"Capitation",{"$f":"SUM(E11:N11)","v":0},{"$nulls":10},{"$f":"SUM(P11:Y11)","v":0},{"$nulls":10},{"$f":"SUM(AA11:AJ11)","v":0},{"$nulls":10},{"$f":"SUM(AL11:AU11)","v":0},{"$nulls":11},{"$f":"SUM(AX11:BG11)+AV11","v":0},{"$f":"E11+P11+AA11+AL11","v":0},0,0,0,0,0,0,0,0,0]
[null,1.2,"Transplant Kick Payments",0,{"$nulls":10},0,{"$nulls":10},0,{"$nulls":10},0,{"$nulls":11},{"$f":"SUM(AX12:BG12)+AV12","v":0},0,0,{"$f":"G12+R12+AC12+AN12","v":0},0,0,0,0,0,0,0]
[null,"1.3","Hepatitis C Kick Payments",0,{"$nulls":10},0,{"$nulls":10},0,{"$nulls":10},0,{"$nulls":11},0,0,0,{"$f":"G13+R13+AC13+AN13","v":0},0,0,0,0,0,0,0]
[null,"1.4.1","Maternity Kick Payments",0,{"$nulls":10},0,{"$nulls":10},0,{"$nulls":10},0,{"$nulls":11},0,0,0,{"$f":"G14+R14+AC14+AN14","v":0},0,0,0,0,0,0,0]
[null,"1.5","ACA § 9010 related payments",0,{"$nulls":10},0,{"$nulls":10},0,{"$nulls":10},0,{"$nulls":11},0,0,0,{"$f":"G15+R15+AC15+AN15","v":0},0,0,0,0,0,0,0]
[null,"1.6","Other Revenue",0,{"$nulls":10},0,{"$nulls":10},0,{"$nulls":10},0,{"$nulls":11},0,0,0,{"$f":"G16+R16+AC16+AN16","v":0},0,0,0,0,0,0,0]
[null,"1.7","Total Revenue",{"$f":"SUM(D11:D16)","v":0},{"$f":"SUM(E11:E16)","v":0},{"$f":"SUM(F11:F16)","v":0},{"$f":"SUM(G11:G16)","v":0},0,0,0,0,0,0,0,{"$f":"SUM(O11:O16)","v":0},{"$f":"SUM(P11:P16)","v":0},{"$f":"SUM(Q11:Q16)","v":0},{"$f":"SUM(R11:R16)","v":0},0,0,0,0,0,0,0,{"$f":"SUM(Z11:Z16)","v":0},{"$f":"SUM(AA11:AA16)","v":0},{"$f":"SUM(AB11:AB16)","v":0},{"$f":"SUM(AC11:AC16)","v":0},0,0,0,0,0,0,0,{"$f":"SUM(AK11:AK16)","v":0},{"$f":"SUM(AL11:AL16)","v":0},{"$f":"SUM(AM11:AM16)","v":0},0,0,0,0,0,0,0,0,0,{"$f":"SUM(AW11:AW16)","v":0},{"$f":"SUM(AX11:AX16)","v":0},{"$f":"SUM(AY11:AY16)","v":0},0,0,0,0,0,0,0,0]
["BENEFIT EXPENSES",null,null,"JANUARY - MARCH (Q1)",{"$nulls":10},"APRIL - JUNE (Q2)",{"$nulls":10},"JULY - SEPTEMBER (Q3)",{"$nulls":10},"OCTOBER - DECEMBER (Q4)",{"$nulls":11},"TOTAL (TO DATE)"]
[{"$nulls":3},"Total","TANF Non-SMI","TANF SMI","SSI Medicaid Only Non-SMI","SSI Medicaid Only SMI","Dual Eligible","Child Welfare","HIV/AIDS Dual Eligible","HIV/AIDS Medicaid Only","LTC Dual Eligible","LTC Medicaid Only","Total","TANF Non-SMI","TANF SMI","SSI Medicaid Only Non-SMI","SSI Medicaid Only SMI","Dual Eligible","Child Welfare","HIV/AIDS Dual Eligible","HIV/AIDS Medicaid Only","LTC Dual Eligible","LTC Medicaid Only","Total","TANF Non-SMI","TANF SMI","SSI Medicaid Only Non-SMI","SSI Medicaid Only SMI","Dual Eligible","Child Welfare","HIV/AIDS Dual Eligible","HIV/AIDS Medicaid Only","LTC Dual Eligible","LTC Medicaid Only","Total","TANF Non-SMI","TANF SMI","SSI Medicaid Only Non-SMI","SSI Medicaid Only SMI","Dual Eligible","Child Welfare","HIV/AIDS Dual Eligible","HIV/AIDS Medicaid Only","LTC Dual Eligible","LTC Medicaid Only","Prior Year Adjustments","Total","TANF Non-SMI","TANF SMI","SSI Medicaid Only Non-SMI","SSI Medicaid Only SMI","Dual Eligible","Child Welfare","HIV/AIDS Dual Eligible","HIV/AIDS Medicaid Only","LTC Dual Eligible","LTC Medicaid Only"]
["Hospital Services",2.1,"Inpatient FFS",{"$f":"SUM(E20:N20)","v":0},{"$nulls":10},{"$f":"SUM(P20:Y20)","v":0},{"$nulls":10},{"$f":"SUM(AA20:AJ20)","v":0},{"$nulls":10},{"$f":"SUM(AL20:AU20)","v":0},{"$nulls":11},{"$f":"SUM(AX20:BG20)+AV20","v":0},{"$f":"E20+P20+AA20+AL20","v":0},0,0,0,0,0,0,0,0,0]
[null,2.2,"Ending IBNP for Inpatient Hospital Services",0,{"$nulls":10},0,{"$nulls":10},0,{"$nulls":10},0,{"$nulls":11},{"$f":"SUM(AX21:BG21)+AV21","v":0},0,0,0,0,0,0,0,0,0,0]
[null,2.3,"Outpatient FFS: ER",0,{"$nulls":10},0,{"$nulls":10},0,{"$nulls":10},0,{"$nulls":11},0,0,0,0,0,0,0,0,0,0,0]
[null,2.4,"Outpatient FFS: Other than ER ",0,{"$nulls":10},0,{"$nulls":10},0,{"$nulls":10},0,{"$nulls":11},0,0,0,0,0,0,0,0,0,0,0]
[null,2.5,"Ending IBNP for Outpatient Hospital Services",0,{"$nulls":10},0,{"$nulls":10},0,{"$nulls":10},0,{"$nulls":11},0,0,0,0,0,0,0,0,0,0,0]
[null,"2.6","Subcapitated Hospital Services",0,{"$nulls":10},0,{"$nulls":10},0,{"$nulls":10},0,{"$nulls":11},0,0,0,0,0,0,0,0,0,0,0]
[null,"2.7","Hospital Settlements/AP",0,{"$nulls":10},0,{"$nulls":10},0,{"$nulls":10},0,{"$nulls":11},0,0,0,0,0,0,0,0,0,0,0]
[null,"2.7.1","Transplant Services",0,{"$nulls":10},0,{"$nulls":10},0,{"$nulls":10},0,{"$nulls":11},0,0,0,0,0,0,0,0,0,0,0]
[null,"2.8","Total Hospital Services",{"$f":"SUM(D20:D27)","v":0},{"$f":"SUM(E20:E27)","v":0},0,0,0,0,0,0,0,0,0,{"$f":"SUM(O20:O27)","v":0},{"$f":"SUM(P20:P27)","v":0},0,0,0,0,0,0,0,0,0,{"$f":"SUM(Z20:Z27)","v":0},{"$f":"SUM(AA20:AA27)","v":0},0,0,0,0,0,0,0,0,0,{"$f":"SUM(AK20:AK27)","v":0},{"$f":"SUM(AL20:AL27)","v":0},0,0,0,0,0,0,0,0,0,{"$f":"SUM(AV20:AV27)","v":0},{"$f":"SUM(AW20:AW27)","v":0},{"$f":"SUM(AX20:AX27)","v":0},0,0,0,0,0,0,0,0,0]
["Professional Services",3.1,"Primary Care FFS",{"$f":"SUM(E29:N29)","v":0},{"$nulls":10},{"$f":"SUM(P29:Y29)","v":0},{"$nulls":10},{"$f":"SUM(AA29:AJ29)","v":0},{"$nulls":10},{"$f":"SUM(AL29:AU29)","v":0},{"$nulls":11},{"$f":"SUM(AX29:BG29)+AV29","v":0},{"$f":"E29+P29+AA29+AL29","v":0},0,0,0,0,0,0,0,0,0]
[null,3.2,"Specialty Care FFS",0,{"$nulls":10},0,{"$nulls":10},0,{"$nulls":10},0,{"$nulls":11},0,0,0,0,0,0,0,0,0,0,0]
[null,3.3,"Other Professional FFS",0,{"$nulls":10},0,{"$nulls":10},0,{"$nulls":10},0,{"$nulls":11},0,0,0,0,0,0,0,0,0,0,0]
[null,"3.4","§ 1202 PCP Payments to providers",0,{"$nulls":10},{"$f":"SUM(P32:Y32)","v":0},{"$nulls":10},{"$f":"SUM(AA32:AJ32)","v":0},{"$nulls":10},{"$f":"SUM(AL32:AU32)","v":0},{"$nulls":11},{"$f":"SUM(AX32:BG32)+AV32","v":0},0,0,0,0,0,0,0,0,0,0]
[null,"3.5","Subcapitated Professional Services",0,{"$nulls":10},0,{"$nulls":10},0,{"$nulls":10},0,{"$nulls":11},{"$f":"SUM(AX33:BG33)+AV33","v":0},0,0,0,0,0,0,0,0,0,0]
[null,"3.6","Ending IBNP for Professional Services",0,{"$nulls":10},0,{"$nulls":10},0,{"$nulls":10},0,{"$nulls":11},0,0,0,0,0,0,0,0,0,0,0]
[null,"3.7","Professional Settlements/AP",0,{"$nulls":10},0,{"$nulls":10},0,{"$nulls":10},0,{"$nulls":11},0,0,0,0,0,0,0,0,0,0,0]
[null,"3.8","Total Physician Services",{"$f":"SUM(D29:D35)","v":0},0,0,0,0,0,0,0,0,0,0,0,0,0,0,0,0,0,0,0,0,0,0,0,0,0,0,0,0,0,0,0,0,0,0,0,0,0,0,0,0,0,0,0,0,0,0,0,0,0,0,0,0,0,0,0]
["Maternity Services","4.1.1","Maternity Services",{"$f":"SUM(E37:N37)","v":0},{"$nulls":10},{"$f":"SUM(P37:Y37)","v":0},{"$nulls":10},{"$f":"SUM(AA37:AJ37)","v":0},{"$nulls":10},{"$f":"SUM(AL37:AU37)","v":0},{"$nulls":11},{"$f":"SUM(AX37:BG37)+AV37","v":0},{"$f":"E37+P37+AA37+AL37","v":0},{"$f":"F37+Q37+AB37+AM37","v":0},{"$f":"G37+R37+AC37+AN37","v":0},0,0,0,0,0,0,0]
[null,"4.2.1","Ending IBNP for Maternity Services",{"$f":"SUM(E38:N38)","v":0},{"$nulls":10},{"$f":"SUM(P38:Y38)","v":0},{"$nulls":10},{"$f":"SUM(AA38:AJ38)","v":0},{"$nulls":10},{"$f":"SUM(AL38:AU38)","v":0},{"$nulls":11},{"$f":"SUM(AX38:BG38)+AV38","v":0},{"$f":"E38+P38+AA38+AL38","v":0},0,{"$f":"G38+R38+AC38+AN38","v":0},0,0,0,0,0,0,0]
[null,"4.3.1","Maternity Settlements/AP",{"$f":"SUM(E39:N39)","v":0},{"$nulls":10},{"$f":"SUM(P39:Y39)","v":0},{"$nulls":10},{"$f":"SUM(AA39:AJ39)","v":0},{"$nulls":10},{"$f":"SUM(AL39:AU39)","v":0},{"$nulls":11},{"$f":"SUM(AX39:BG39)+AV39","v":0},{"$f":"E39+P39+AA39+AL39","v":0},0,{"$f":"G39+R39+AC39+AN39","v":0},0,0,0,0,0,0,0]
[null,"4.4.1","Total Maternity Services",{"$f":"SUM(D37:D39)","v":0},0,0,0,0,0,0,0,0,0,0,{"$f":"SUM(O37:O39)","v":0},0,0,0,0,0,{"$f":"SUM(U37:U39)","v":0},0,0,0,0,0,0,0,0,0,0,0,0,{"$f":"SUM(AH37:AH39)","v":0},0,0,0,0,0,0,0,0,0,0,0,0,0,0,0,{"$f":"SUM(AX37:AX39)","v":0},{"$f":"SUM(AY37:AY39)","v":0},0,0,0,0,0,0,0,0]
["Mental Health",5.1,"Mental Health & Substance Abuse FFS",{"$f":"SUM(E41:N41)","v":0},{"$nulls":10},{"$f":"SUM(P41:Y41)","v":0},{"$nulls":10},{"$f":"SUM(AA41:AJ41)","v":0},{"$nulls":10},{"$f":"SUM(AL41:AU41)","v":0},{"$nulls":11},{"$f":"SUM(AX41:BG41)+AV41","v":0},{"$f":"E41+P41+AA41+AL41","v":0},{"$f":"F41+Q41+AB41+AM41","v":0},0,0,0,0,0,0,0,0]
[null,5.2,"Mental Health & Substance Abuse Subcapitation",{"$f":"SUM(E42:N42)","v":0},{"$nulls":10},{"$f":"SUM(P42:Y42)","v":0},{"$nulls":10},{"$f":"SUM(AA42:AJ42)","v":0},{"$nulls":10},{"$f":"SUM(AL42:AU42)","v":0},{"$nulls":11},{"$f":"SUM(AX42:BG42)+AV42","v":0},{"$f":"E42+P42+AA42+AL42","v":0},0,{"$f":"G42+R42+AC42+AN42","v":0},0,0,0,0,0,0,0]
[null,5.3,"Ending IBNP for Mental Health & Substance Abuse",{"$f":"SUM(E43:N43)","v":0},{"$nulls":10},{"$f":"SUM(P43:Y43)","v":0},{"$nulls":10},{"$f":"SUM(AA43:AJ43)","v":0},{"$nulls":10},{"$f":"SUM(AL43:AU43)","v":0},{"$nulls":11},{"$f":"SUM(AX43:BG43)+AV43","v":0},{"$f":"E43+P43+AA43+AL43","v":0},0,{"$f":"G43+R43+AC43+AN43","v":0},0,0,0,0,0,0,0]
[null,"5.4","Mental Health Settlements/AP",{"$f":"SUM(E44:N44)","v":0},{"$nulls":10},{"$f":"SUM(P44:Y44)","v":0},{"$nulls":10},{"$f":"SUM(AA44:AJ44)","v":0},{"$nulls":10},{"$f":"SUM(AL44:AU44)","v":0},{"$nulls":11},{"$f":"SUM(AX44:BG44)+AV44","v":0},{"$f":"E44+P44+AA44+AL44","v":0},0,{"$f":"G44+R44+AC44+AN44","v":0},0,0,0,0,0,0,0]
[null,"5.5","Total Mental Health & Substance Abuse Services",{"$f":"SUM(D41:D44)","v":0},{"$f":"SUM(E41:E44)","v":0},0,0,0,{"$f":"SUM(I41:I44)","v":0},0,0,0,0,0,0,0,0,0,0,0,0,0,0,0,0,0,0,0,0,0,0,0,0,0,0,0,0,0,0,0,0,0,0,0,0,0,0,0,0,0,0,0,0,0,0,0,0,0,0]
["Dental",6.1,"Dental FFS",{"$f":"SUM(E46:N46)","v":0},{"$nulls":10},{"$f":"SUM(P46:Y46)","v":0},{"$nulls":10},{"$f":"SUM(AA46:AJ46)","v":0},{"$nulls":10},{"$f":"SUM(AL46:AU46)","v":0},{"$nulls":11},{"$f":"SUM(AX46:BG46)+AV46","v":0},{"$f":"E46+P46+AA46+AL46","v":0},{"$f":"F46+Q46+AB46+AM46","v":0},0,0,0,0,0,0,0,0]
[null,6.2,"Dental Subcapitation",{"$f":"SUM(E47:N47)","v":0},{"$nulls":10},{"$f":"SUM(P47:Y47)","v":0},{"$nulls":10},{"$f":"SUM(AA47:AJ47)","v":0},{"$nulls":10},{"$f":"SUM(AL47:AU47)","v":0},{"$nulls":11},{"$f":"SUM(AX47:BG47)+AV47","v":0},{"$f":"E47+P47+AA47+AL47","v":0},0,{"$f":"G47+R47+AC47+AN47","v":0},0,0,0,0,0,0,0]
[null,6.3,"Ending IBNP for Dental Services",{"$f":"SUM(E48:N48)","v":0},{"$nulls":10},{"$f":"SUM(P48:Y48)","v":0},{"$nulls":10},{"$f":"SUM(AA48:AJ48)","v":0},{"$nulls":10},{"$f":"SUM(AL48:AU48)","v":0},{"$nulls":11},{"$f":"SUM(AX48:BG48)+AV48","v":0},{"$f":"E48+P48+AA48+AL48","v":0},0,{"$f":"G48+R48+AC48+AN48","v":0},0,0,0,0,0,0,0]
[null,"6.4","Dental Settlements/AP",{"$f":"SUM(E49:N49)","v":0},{"$nulls":10},{"$f":"SUM(P49:Y49)","v":0},{"$nulls":10},{"$f":"SUM(AA49:AJ49)","v":0},{"$nulls":10},{"$f":"SUM(AL49:AU49)","v":0},{"$nulls":11},{"$f":"SUM(AX49:BG49)+AV49","v":0},{"$f":"E49+P49+AA49+AL49","v":0},0,{"$f":"G49+R49+AC49+AN49","v":0},0,0,0,0,0,0,0]
[null,"6.5","Total Dental Services",{"$f":"SUM(D46:D49)","v":0},{"$f":"SUM(E46:E49)","v":0},0,0,0,0,0,0,0,0,0,0,0,0,0,0,0,0,0,0,0,0,0,0,0,0,0,0,0,0,0,0,0,0,0,0,0,0,0,0,0,0,0,0,0,0,0,0,0,0,0,0,0,0,0,0]
["Transportation",7.1,"Transportation FFS",{"$f":"SUM(E51:N51)","v":0},{"$nulls":10},{"$f":"SUM(P51:Y51)","v":0},{"$nulls":10},{"$f":"SUM(AA51:AJ51)","v":0},{"$nulls":10},{"$f":"SUM(AL51:AU51)","v":0},{"$nulls":11},{"$f":"SUM(AX51:BG51)+AV51","v":0},{"$f":"E51+P51+AA51+AL51","v":0},{"$f":"F51+Q51+AB51+AM51","v":0},0,0,0,0,0,0,0,0]
[null,7.2,"Transportation Subcapitation",{"$f":"SUM(E52:N52)","v":0},{"$nulls":10},{"$f":"SUM(P52:Y52)","v":0},{"$nulls":10},{"$f":"SUM(AA52:AJ52)","v":0},{"$nulls":10},{"$f":"SUM(AL52:AU52)","v":0},{"$nulls":11},{"$f":"SUM(AX52:BG52)+AV52","v":0},{"$f":"E52+P52+AA52+AL52","v":0},0,{"$f":"G52+R52+AC52+AN52","v":0},0,0,0,0,0,0,0]
[null,7.3,"Ending IBNP for Transportation",{"$f":"SUM(E53:N53)","v":0},{"$nulls":10},{"$f":"SUM(P53:Y53)","v":0},{"$nulls":10},{"$f":"SUM(AA53:AJ53)","v":0},{"$nulls":10},{"$f":"SUM(AL53:AU53)","v":0},{"$nulls":11},{"$f":"SUM(AX53:BG53)+AV53","v":0},{"$f":"E53+P53+AA53+AL53","v":0},0,{"$f":"G53+R53+AC53+AN53","v":0},0,0,0,0,0,0,0]
[null,"7.4","Transportation Settlements/AP",{"$f":"SUM(E54:N54)","v":0},{"$nulls":10},{"$f":"SUM(P54:Y54)","v":0},{"$nulls":10},{"$f":"SUM(AA54:AJ54)","v":0},{"$nulls":10},{"$f":"SUM(AL54:AU54)","v":0},{"$nulls":11},{"$f":"SUM(AX54:BG54)+AV54","v":0},{"$f":"E54+P54+AA54+AL54","v":0},0,{"$f":"G54+R54+AC54+AN54","v":0},0,0,0,0,0,0,0]
[null,"7.5","Total Transportation Services",{"$f":"SUM(D51:D54)","v":0},{"$f":"SUM(E51:E54)","v":0},0,0,0,0,0,0,0,0,0,0,0,0,0,0,0,0,0,0,{"$f":"SUM(X51:X54)","v":0},0,0,0,0,0,0,0,0,0,0,0,0,0,0,0,0,0,0,0,0,0,0,0,0,0,0,0,0,0,0,0,0,0,0,0]
["Pharmacy",8.1,"Prescription Drugs FFS",{"$f":"SUM(E56:N56)","v":0},{"$nulls":10},{"$f":"SUM(P56:Y56)","v":0},{"$nulls":10},{"$f":"SUM(AA56:AJ56)","v":0},{"$nulls":10},{"$f":"SUM(AL56:AU56)","v":0},{"$nulls":11},{"$f":"SUM(AX56:BG56)+AV56","v":0},{"$f":"E56+P56+AA56+AL56","v":0},0,0,0,0,0,0,0,0,0]
[null,"8.2","Hepatitis C Prescription Drug FFS",0,{"$nulls":10},0,{"$nulls":10},0,{"$nulls":10},0,{"$nulls":11},{"$f":"SUM(AX57:BG57)+AV57","v":0},0,0,0,0,0,0,0,0,0,0]
[null,"8.3","Ending IBNP for Prescription Drugs",0,{"$nulls":10},0,{"$nulls":10},0,{"$nulls":10},0,{"$nulls":11},0,0,0,0,0,0,0,0,0,0,0]
[null,"8.4","Prescription Drug Rebates ",0,{"$nulls":10},0,{"$nulls":10},0,{"$nulls":10},0,{"$nulls":11},0,0,0,0,0,0,0,0,0,0,0]
[null,"8.5","Ending accrual for Rebates receivable",0,{"$nulls":10},0,{"$nulls":10},0,{"$nulls":10},0,{"$nulls":11},0,0,0,0,0,0,0,0,0,0,0]
[null,"8.6","Prescription Drugs Subcapitation",0,{"$nulls":10},0,{"$nulls":10},0,{"$nulls":10},0,{"$nulls":11},0,0,0,0,0,0,0,0,0,0,0]
[null,"8.7","Prescription Drug Settlements/AP",0,{"$nulls":10},0,{"$nulls":10},0,{"$nulls":10},0,{"$nulls":11},0,0,0,0,0,0,0,0,0,0,0]
[null,"8.8","Total Prescription Drugs",{"$f":"SUM(D56:D62)","v":0},{"$f":"SUM(E56:E62)","v":0},0,0,0,0,0,0,0,0,0,0,0,0,0,0,0,0,0,0,0,0,0,0,0,0,0,0,0,0,0,0,0,0,0,0,0,0,0,0,0,0,0,0,0,0,0,0,0,0,0,0,0,0,0,0]
["Other Services",9.1,"Home Health, Private Duty Nursing, Personal Care FFS",{"$f":"SUM(E64:L64)","v":0},{"$nulls":10},{"$f":"SUM(P64:W64)","v":0},{"$nulls":10},{"$f":"SUM(AA64:AH64)","v":0},{"$nulls":10},{"$f":"SUM(AL64:AS64)","v":0},{"$nulls":11},{"$f":"SUM(AX64:BE64)+AV64","v":0},{"$f":"E64+P64+AA64+AL64","v":0},0,0,0,0,0,0,0]
[null,"9.2","Hospice FFS",{"$f":"SUM(E65:L65)","v":0},{"$nulls":10},{"$f":"SUM(P65:W65)","v":0},{"$nulls":10},{"$f":"SUM(AA65:AH65)","v":0},{"$nulls":10},{"$f":"SUM(AL65:AS65)","v":0},{"$nulls":11},{"$f":"SUM(AX65:BE65)+AV65","v":0},0,0,0,0,0,0,0,0]
[null,"9.3","DME FFS",{"$f":"SUM(E66:L66)","v":0},{"$nulls":10},{"$f":"SUM(P66:W66)","v":0},{"$nulls":10},{"$f":"SUM(AA66:AH66)","v":0},{"$nulls":10},{"$f":"SUM(AL66:AS66)","v":0},{"$nulls":11},0,0,0,0,0,0,0,0,0]
[null,"9.4","Other State Plan Services FFS",{"$f":"SUM(E67:N67)","v":0},{"$nulls":10},{"$f":"SUM(P67:Y67)","v":0},{"$nulls":10},{"$f":"SUM(AA67:AJ67)","v":0},{"$nulls":10},{"$f":"SUM(AL67:AU67)","v":0},{"$nulls":11},{"$f":"SUM(AX67:BG67)+AV67","v":0},0,0,0,0,0,0,0,0,0,0]
[null,"9.5","Other Services Subcapitation",{"$f":"SUM(E68:N68)","v":0},{"$nulls":10},{"$f":"SUM(P68:Y68)","v":0},{"$nulls":10},{"$f":"SUM(AA68:AJ68)","v":0},{"$nulls":10},{"$f":"SUM(AL68:AU68)","v":0},{"$nulls":11},{"$f":"SUM(AX68:BG68)+AV68","v":0},0,0,0,0,0,0,0,0,0,0]
[null,"9.6","Ending IBNP for Other Services",{"$f":"SUM(E69:N69)","v":0},{"$nulls":10},{"$f":"SUM(P69:Y69)","v":0},{"$nulls":10},{"$f":"SUM(AA69:AJ69)","v":0},{"$nulls":10},{"$f":"SUM(AL69:AU69)","v":0},{"$nulls":11},{"$f":"SUM(AX69:BG69)+AV69","v":0},0,0,0,0,0,0,0,0,0,0]
[null,"9.7","Other Services Settlements/AP",{"$f":"SUM(E70:N70)","v":0},{"$nulls":10},{"$f":"SUM(P70:Y70)","v":0},{"$nulls":10},{"$f":"SUM(AA70:AJ70)","v":0},{"$nulls":10},{"$f":"SUM(AL70:AU70)","v":0},{"$nulls":11},{"$f":"SUM(AX70:BG70)+AV70","v":0},0,0,0,0,0,0,0,0,0,0]
[null,"9.8","Total Other Services",{"$f":"SUM(D64:D70)","v":0},{"$f":"SUM(E64:E70)","v":0},0,0,0,0,0,0,0,{"$f":"SUM(M67:M70)","v":0},{"$f":"SUM(N67:N70)","v":0},0,0,0,0,0,0,0,0,0,{"$f":"SUM(X67:X70)","v":0},{"$f":"SUM(Y67:Y70)","v":0},0,0,0,0,0,0,0,0,0,{"$f":"SUM(AI67:AI70)","v":0},{"$f":"SUM(AJ67:AJ70)","v":0},0,0,0,0,0,0,0,0,0,{"$f":"SUM(AT67:AT70)","v":0},{"$f":"SUM(AU67:AU70)","v":0},{"$f":"SUM(AV64:AV70)","v":0},0,0,0,0,0,0,0,{"$f":"SUM(BD64:BD70)","v":0},{"$f":"SUM(BE64:BE70)","v":0},{"$f":"SUM(BF67:BF70)","v":0},{"$f":"SUM(BG67:BG70)","v":0}]
["Expanded Benefits","10.1","Expanded Benefits FFS",{"$f":"SUM(E72:N72)","v":0},{"$nulls":10},{"$f":"SUM(P72:Y72)","v":0},{"$nulls":10},{"$f":"SUM(AA72:AJ72)","v":0},{"$nulls":10},{"$f":"SUM(AL72:AU72)","v":0},{"$nulls":11},{"$f":"SUM(AX72:BG72)+AV72","v":0},{"$f":"E72+P72+AA72+AL72","v":0},{"$f":"F72+Q72+AB72+AM72","v":0},0,0,0,0,0,0,0,0]
[null,"10.2","Expanded Benefits Subcapitation",{"$f":"SUM(E73:N73)","v":0},{"$nulls":10},{"$f":"SUM(P73:Y73)","v":0},{"$nulls":10},{"$f":"SUM(AA73:AJ73)","v":0},{"$nulls":10},{"$f":"SUM(AL73:AU73)","v":0},{"$nulls":11},{"$f":"SUM(AX73:BG73)+AV73","v":0},{"$f":"E73+P73+AA73+AL73","v":0},0,{"$f":"G73+R73+AC73+AN73","v":0},0,0,0,0,0,0,0]
[null,"10.3","Ending IBNP for Expanded Benefits",{"$f":"SUM(E74:N74)","v":0},{"$nulls":10},{"$f":"SUM(P74:Y74)","v":0},{"$nulls":10},{"$f":"SUM(AA74:AJ74)","v":0},{"$nulls":10},{"$f":"SUM(AL74:AU74)","v":0},{"$nulls":11},{"$f":"SUM(AX74:BG74)+AV74","v":0},{"$f":"E74+P74+AA74+AL74","v":0},0,{"$f":"G74+R74+AC74+AN74","v":0},0,0,0,0,0,0,0]
[null,"10.4","Expanded Benefits Settlements/AP",{"$f":"SUM(E75:N75)","v":0},{"$nulls":10},{"$f":"SUM(P75:Y75)","v":0},{"$nulls":10},{"$f":"SUM(AA75:AJ75)","v":0},{"$nulls":10},{"$f":"SUM(AL75:AU75)","v":0},{"$nulls":11},{"$f":"SUM(AX75:BG75)+AV75","v":0},{"$f":"E75+P75+AA75+AL75","v":0},0,{"$f":"G75+R75+AC75+AN75","v":0},0,0,0,0,0,0,0]
[null,"10.5","Total Expanded Benefits",{"$f":"SUM(D72:D75)","v":0},{"$f":"SUM(E72:E75)","v":0},0,0,0,0,0,0,0,0,0,0,0,0,0,0,0,0,0,0,{"$f":"SUM(X72:X75)","v":0},0,0,0,0,0,0,0,0,0,0,0,0,0,0,0,0,0,0,0,0,0,0,0,0,0,0,0,0,0,0,0,0,0,0,0]
["Totals Before and After Reinsurance","11.1","Total Services Paid Directly FFS",{"$f":"D20+SUM(D22:D23,D27)+SUM(D29:D32)+D37+D41+D46+D51+SUM(D56:D57)+SUM(D59:D60)+SUM(D64:D67)+D72","v":0},{"$f":"E20+SUM(E22:E23,E27)+SUM(E29:E32)+E37+E41+E46+E51+SUM(E56:E57)+SUM(E59:E60)+SUM(E64:E67)+E72","v":0},{"$f":"F20+SUM(F22:F23,F27)+SUM(F29:F32)+F37+F41+F46+F51+SUM(F56:F57)+SUM(F59:F60)+SUM(F64:F67)+F72","v":0},{"$f":"G20+SUM(G22:G23,G27)+SUM(G29:G32)+G37+G41+G46+G51+SUM(G56:G57)+SUM(G59:G60)+SUM(G64:G67)+G72","v":0},0,0,0,0,0,0,0,{"$f":"O20+SUM(O22:O23,O27)+SUM(O29:O32)+O37+O41+O46+O51+SUM(O56:O57)+SUM(O59:O60)+SUM(O64:O67)+O72","v":0},{"$f":"P20+SUM(P22:P23,P27)+SUM(P29:P32)+P37+P41+P46+P51+SUM(P56:P57)+SUM(P59:P60)+SUM(P64:P67)+P72","v":0},0,0,0,0,0,0,0,0,0,{"$f":"Z20+SUM(Z22:Z23,Z27)+SUM(Z29:Z32)+Z37+Z41+Z46+Z51+SUM(Z56:Z57)+SUM(Z59:Z60)+SUM(Z64:Z67)+Z72","v":0},{"$f":"AA20+SUM(AA22:AA23,AA27)+SUM(AA29:AA32)+AA37+AA41+AA46+AA51+SUM(AA56:AA57)+SUM(AA59:AA60)+SUM(AA64:AA67)+AA72","v":0},0,0,0,0,0,0,0,0,0,{"$f":"AK20+SUM(AK22:AK23,AK27)+SUM(AK29:AK32)+AK37+AK41+AK46+AK51+SUM(AK56:AK57)+SUM(AK59:AK60)+SUM(AK64:AK67)+AK72","v":0},{"$f":"AL20+SUM(AL22:AL23,AL27)+SUM(AL29:AL32)+AL37+AL41+AL46+AL51+SUM(AL56:AL57)+SUM(AL59:AL60)+SUM(AL64:AL67)+AL72","v":0},0,0,0,0,0,0,0,0,0,{"$f":"AV20+SUM(AV22:AV23,AV27)+SUM(AV29:AV32)+AV37+AV41+AV46+AV51+SUM(AV56:AV57)+SUM(AV59:AV60)+SUM(AV64:AV67)+AV72","v":0},{"$f":"AW20+SUM(AW22:AW23,AW27)+SUM(AW29:AW32)+AW37+AW41+AW46+AW51+SUM(AW56:AW57)+SUM(AW59:AW60)+SUM(AW64:AW67)+AW72","v":0},{"$f":"AX20+SUM(AX22:AX23,AX27)+SUM(AX29:AX32)+AX37+AX41+AX46+AX51+SUM(AX56:AX57)+SUM(AX59:AX60)+SUM(AX64:AX67)+AX72","v":0},0,0,0,0,0,0,0,0,0]
[null,"11.2","Total Services Paid Directly -- IBNP",{"$f":"D21+D24+D34+D38+D43+D48+D53+D58+D69+D74","v":0},{"$f":"E21+E24+E34+E38+E43+E48+E53+E58+E69+E74","v":0},{"$f":"F21+F24+F34+F38+F43+F48+F53+F58+F69+F74","v":0},{"$f":"G21+G24+G34+G38+G43+G48+G53+G58+G69+G74","v":0},0,0,0,0,0,0,0,{"$f":"O21+O24+O34+O38+O43+O48+O53+O58+O69+O74","v":0},{"$f":"P21+P24+P34+P38+P43+P48+P53+P58+P69+P74","v":0},0,0,0,0,0,0,0,0,0,{"$f":"Z21+Z24+Z34+Z38+Z43+Z48+Z53+Z58+Z69+Z74","v":0},{"$f":"AA21+AA24+AA34+AA38+AA43+AA48+AA53+AA58+AA69+AA74","v":0},0,0,0,0,0,0,0,0,0,{"$f":"AK21+AK24+AK34+AK38+AK43+AK48+AK53+AK58+AK69+AK74","v":0},{"$f":"AL21+AL24+AL34+AL38+AL43+AL48+AL53+AL58+AL69+AL74","v":0},0,0,0,0,0,0,0,0,0,{"$f":"AV21+AV24+AV34+AV38+AV43+AV48+AV53+AV58+AV69+AV74","v":0},{"$f":"AW21+AW24+AW34+AW38+AW43+AW48+AW53+AW58+AW69+AW74","v":0},{"$f":"AX21+AX24+AX34+AX38+AX43+AX48+AX53+AX58+AX69+AX74","v":0},0,0,0,0,0,0,0,0,0]
[null,"11.3","Total Services Paid through Subcapitation",{"$f":"D25+D33+D42+D47+D52+D61+D68+D73","v":0},{"$f":"E25+E33+E42+E47+E52+E61+E68+E73","v":0},{"$f":"F25+F33+F42+F47+F52+F61+F68+F73","v":0},{"$f":"G25+G33+G42+G47+G52+G61+G68+G73","v":0},0,0,0,0,0,0,0,{"$f":"O25+O33+O42+O47+O52+O61+O68+O73","v":0},{"$f":"P25+P33+P42+P47+P52+P61+P68+P73","v":0},0,0,0,0,0,0,0,0,0,{"$f":"Z25+Z33+Z42+Z47+Z52+Z61+Z68+Z73","v":0},{"$f":"AA25+AA33+AA42+AA47+AA52+AA61+AA68+AA73","v":0},0,0,0,0,0,0,0,0,0,{"$f":"AK25+AK33+AK42+AK47+AK52+AK61+AK68+AK73","v":0},{"$f":"AL25+AL33+AL42+AL47+AL52+AL61+AL68+AL73","v":0},0,0,0,0,0,0,0,0,0,{"$f":"AV25+AV33+AV42+AV47+AV52+AV61+AV68+AV73","v":0},{"$f":"AW25+AW33+AW42+AW47+AW52+AW61+AW68+AW73","v":0},{"$f":"AX25+AX33+AX42+AX47+AX52+AX61+AX68+AX73","v":0},0,0,0,0,0,0,0,0,0]
[null,"11.4","Total Services Paid by Settlements/AP",{"$f":"D26+D35+D39+D44+D49+D54+D62+D70+D75","v":0},{"$f":"E26+E35+E39+E44+E49+E54+E62+E70+E75","v":0},{"$f":"F26+F35+F39+F44+F49+F54+F62+F70+F75","v":0},{"$f":"G26+G35+G39+G44+G49+G54+G62+G70+G75","v":0},0,0,0,0,0,0,0,{"$f":"O26+O35+O39+O44+O49+O54+O62+O70+O75","v":0},{"$f":"P26+P35+P39+P44+P49+P54+P62+P70+P75","v":0},0,0,0,0,0,0,0,0,0,{"$f":"Z26+Z35+Z39+Z44+Z49+Z54+Z62+Z70+Z75","v":0},{"$f":"AA26+AA35+AA39+AA44+AA49+AA54+AA62+AA70+AA75","v":0},0,0,0,0,0,0,0,0,0,{"$f":"AK26+AK35+AK39+AK44+AK49+AK54+AK62+AK70+AK75","v":0},{"$f":"AL26+AL35+AL39+AL44+AL49+AL54+AL62+AL70+AL75","v":0},0,0,0,0,0,0,0,0,0,0,{"$f":"AW26+AW35+AW39+AW44+AW49+AW54+AW62+AW70+AW75","v":0},{"$f":"AX26+AX35+AX39+AX44+AX49+AX54+AX62+AX70+AX75","v":0},0,0,0,0,0,0,0,0,0]
[null,"11.5","TPL & Fraud/Abuse Recoveries",{"$f":"SUM(E81:N81)","v":0},{"$nulls":10},{"$f":"SUM(P81:Y81)","v":0},{"$nulls":10},{"$f":"SUM(AA81:AJ81)","v":0},{"$nulls":10},{"$f":"SUM(AL81:AU81)","v":0},{"$nulls":11},{"$f":"SUM(AX81:BG81)+AV81","v":0},{"$f":"E81+P81+AA81+AL81","v":0},{"$f":"F81+Q81+AB81+AM81","v":0},{"$f":"G81+R81+AC81+AN81","v":0},{"$f":"H81+S81+AD81+AO81","v":0},0,0,0,0,0,0]
[null,"11.6.1","Premium Deficiency Reserve",{"$f":"SUM(E82:N82)","v":0},{"$nulls":10},{"$f":"SUM(P82:Y82)","v":0},{"$nulls":10},{"$f":"SUM(AA82:AJ82)","v":0},{"$nulls":10},{"$f":"SUM(AL82:AU82)","v":0},{"$nulls":11},{"$f":"SUM(AX82:BG82)+AV82","v":0},{"$f":"E82+P82+AA82+AL82","v":0},0,{"$f":"G82+R82+AC82+AN82","v":0},0,0,0,0,0,0,0]
[null,"11.7","Subtotal Benefit Expense before Reinsurance",{"$f":"SUM(D77:D82)","v":0},{"$f":"SUM(E77:E82)","v":0},0,0,0,0,0,0,0,0,0,0,0,0,0,0,0,0,0,0,0,0,0,0,0,0,0,0,0,0,0,0,0,0,0,0,0,0,0,0,0,0,0,0,0,0,0,0,0,0,0,0,0,0,0,0]
[null,"11.8","Reinsurance Premiums",{"$f":"SUM(E84:N84)","v":0},{"$nulls":10},{"$f":"SUM(P84:Y84)","v":0},{"$nulls":10},{"$f":"SUM(AA84:AJ84)","v":0},{"$nulls":10},{"$f":"SUM(AL84:AU84)","v":0},{"$nulls":11},{"$f":"SUM(AX84:BG84)+AV84","v":0},{"$f":"E84+P84+AA84+AL84","v":0},{"$f":"F84+Q84+AB84+AM84","v":0},0,0,0,0,0,0,0,0]
[null,"11.9","Reinsurance Recoveries",{"$f":"SUM(E85:N85)","v":0},{"$nulls":10},{"$f":"SUM(P85:Y85)","v":0},{"$nulls":10},{"$f":"SUM(AA85:AJ85)","v":0},{"$nulls":10},{"$f":"SUM(AL85:AU85)","v":0},{"$nulls":11},{"$f":"SUM(AX85:BG85)+AV85","v":0},{"$f":"E85+P85+AA85+AL85","v":0},0,{"$f":"G85+R85+AC85+AN85","v":0},0,0,0,0,0,0,0]
[null,"11.10","Net cost of Reinsurance",{"$f":"SUM(D84:D85)","v":0},{"$f":"SUM(E84:E85)","v":0},0,0,0,0,0,0,0,0,0,{"$f":"SUM(O84:O85)","v":0},{"$f":"SUM(P84:P85)","v":0},0,0,0,0,0,0,0,0,0,{"$f":"SUM(Z84:Z85)","v":0},{"$f":"SUM(AA84:AA85)","v":0},0,0,0,0,0,0,0,0,0,{"$f":"SUM(AK84:AK85)","v":0},{"$f":"SUM(AL84:AL85)","v":0},{"$f":"SUM(AM84:AM85)","v":0},0,0,0,0,0,0,0,0,0,{"$f":"SUM(AW84:AW85)","v":0},{"$f":"SUM(AX84:AX85)","v":0},0,{"$f":"SUM(AZ84:AZ85)","v":0},0,{"$f":"SUM(BB84:BB85)","v":0},0,0,0,0,0]
[null,"11.11","Grand Total Medical Benefit Expense Net of Reinsurance",{"$f":"D83+D86","v":0},{"$f":"E83+E86","v":0},0,0,0,0,0,0,0,0,0,{"$f":"O83+O86","v":0},{"$f":"P83+P86","v":0},0,0,0,0,0,0,0,0,0,{"$f":"Z83+Z86","v":0},{"$f":"AA83+AA86","v":0},0,0,0,0,0,0,0,0,0,{"$f":"AK83+AK86","v":0},{"$f":"AL83+AL86","v":0},{"$f":"AM83+AM86","v":0},0,0,0,0,0,0,0,0,0,{"$f":"AW83+AW86","v":0},{"$f":"AX83+AX86","v":0},{"$f":"AY83+AY86","v":0},0,0,0,0,0,0,0,0]
["Administrative Expenses, Government-Mandated Assessments, Taxes, and Fees ",null,null,"JANUARY - MARCH (Q1)",{"$nulls":10},"APRIL - JUNE (Q2)",{"$nulls":10},"JULY - SEPTEMBER (Q3)",{"$nulls":10},"OCTOBER - DECEMBER (Q4)",{"$nulls":11},"TOTAL (TO DATE)"]
[{"$nulls":3},"Total","Health Plan","Corporate",{"$nulls":8},"Total","Health Plan","Corporate",{"$nulls":8},"Total","Health Plan","Corporate",{"$nulls":8},"Total","Health Plan","Corporate",{"$nulls":8},"Prior Year Adjustments","Total","Health Plan","Corporate"]
["Administrative Expenses","12.1","Salaries & Benefits",{"$f":"E90+F90","v":0},{"$nulls":10},{"$f":"P90+Q90","v":0},{"$nulls":10},{"$f":"AA90+AB90","v":0},{"$nulls":10},{"$f":"AL90+AM90","v":0},{"$nulls":11},{"$f":"AX90+AY90+AV90","v":0},{"$f":"E90+P90+AA90+AL90","v":0},{"$f":"F90+Q90+AB90+AM90","v":0}]
[null,"12.2","Administrative Services",{"$f":"E91+F91","v":0},{"$nulls":10},{"$f":"P91+Q91","v":0},{"$nulls":10},{"$f":"AA91+AB91","v":0},{"$nulls":10},{"$f":"AL91+AM91","v":0},{"$nulls":11},0,{"$f":"E91+P91+AA91+AL91","v":0},0]
[null,"12.3","Information Systems",0,{"$nulls":10},0,{"$nulls":10},0,{"$nulls":10},0,{"$nulls":11},0,0,0]
[null,"12.4","Marketing Expenses",0,{"$nulls":10},0,{"$nulls":10},0,{"$nulls":10},0,{"$nulls":11},0,0,0]
[null,"12.5","General  Administration",0,{"$nulls":10},0,{"$nulls":10},0,{"$nulls":10},0,{"$nulls":11},0,0,0]
[null,"12.6","Compliance/Regulatory",0,{"$nulls":10},0,{"$nulls":10},0,{"$nulls":10},0,{"$nulls":11},0,0,0]
[null,"12.7","Total Administrative Expenses ",{"$f":"E96+F96","v":0},{"$f":"SUM(E90:E95)","v":0},{"$f":"SUM(F90:F95)","v":0},{"$nulls":8},{"$f":"P96+Q96","v":0},{"$f":"SUM(P90:P95)","v":0},0,{"$nulls":8},{"$f":"AA96+AB96","v":0},{"$f":"SUM(AA90:AA95)","v":0},0,{"$nulls":8},{"$f":"AL96+AM96","v":0},{"$f":"SUM(AL90:AL95)","v":0},0,{"$nulls":8},{"$f":"SUM(AV90:AV95)","v":0},0,{"$f":"SUM(AX90:AX95)","v":0},{"$f":"SUM(AY90:AY95)","v":0}]
["Government-Mandated Assessments, Taxes, and Fees Other Than Income Taxes","13.1","State Premium tax",{"$nulls":45},{"$f":"D97+O97+Z97+AK97+AV97","v":0}]
[null,"13.2","Department of Insurance Assessments",{"$nulls":45},0]
[null,"13.3","Section 9010 Health Insurance Providers Fee",{"$nulls":45},0]
[null,"13.4","Other 1",{"$nulls":45},0]
[null,"13.5","Other 2",{"$nulls":45},0]
[null,"13.6","Other 3",{"$nulls":45},0]
[null,"13.7","Total ",{"$f":"SUM(D97:D102)","v":0},{"$nulls":10},{"$f":"SUM(O97:O102)","v":0},{"$nulls":10},{"$f":"SUM(Z97:Z102)","v":0},{"$nulls":10},{"$f":"SUM(AK97:AK102)","v":0},{"$nulls":10},{"$f":"SUM(AV97:AV102)","v":0},{"$f":"SUM(AW97:AW102)","v":0}]
[null,"14.0","Grand Total Expenses",{"$f":"D87+D96+D103","v":0},{"$nulls":10},{"$f":"O87+O96+O103","v":0},{"$nulls":10},{"$f":"Z87+Z96+Z103","v":0},{"$nulls":10},{"$f":"AK87+AK96+AK103","v":0},{"$nulls":10},{"$f":"AV87+AV96+AV103","v":0},{"$f":"AW87+AW96+AW103","v":0}]
[null,"15.0","Underwriting Gain / (Loss)  --- AKA Pre-tax Earnings from Operations",{"$f":"D17-D104","v":0},{"$nulls":10},{"$f":"O17-O104","v":0},{"$nulls":10},{"$f":"Z17-Z104","v":0},{"$nulls":10},{"$f":"AK17-AK104","v":0},{"$nulls":10},{"$f":"AV17-AV104","v":0},{"$f":"AW17-AW104","v":0}]
[null,"16.0","Income Tax Expense",{"$nulls":45},{"$f":"D106+O106+Z106+AK106+AV106","v":0}]
[null,"17.0","Net Underwriting Gain (Loss)",{"$f":"D105-D106","v":0},{"$nulls":10},{"$f":"O105-O106","v":0},{"$nulls":10},{"$f":"Z105-Z106","v":0},{"$nulls":10},{"$f":"AK105-AK106","v":0},{"$nulls":10},{"$f":"AV105-AV106","v":0},{"$f":"AW105-AW106","v":0}]

{"sheet":"MMA Rev-Exp Region 7","index":13,"n_rows":107,"n_cols":59,"rows_kept":107,"hidden":true,"merged":[[6,3,6,13],[6,14,6,24],[6,25,6,35],[6,36,6,46],[6,48,6,58],[9,0,9,2],[10,0,16,0],[17,0,18,2],[17,3,17,13],[17,14,17,24],[17,25,17,35],[17,36,17,46],[17,48,17,58],[19,0,27,0],[28,0,35,0],[36,0,39,0],[40,0,44,0],[45,0,49,0],[50,0,54,0],[55,0,62,0],[63,0,70,0],[71,0,75,0],[76,0,86,0],[87,0,88,2],[87,3,87,13],[87,14,87,24],[87,25,87,35],[87,36,87,46],[87,48,87,58],[89,0,95,0],[96,0,102,0]]}
["MANAGED MEDICAL ASSISTANCE -- REVENUE AND EXPENSE SCHEDULE - REGION 7"]
[]
["Health Plan:",null,{"$f":"'MMA Rev-Exp Summary'!C3","v":0}]
["Reporting Period:",null,{"$f":"IF('MMA Rev-Exp Summary'!C4=0,\"\",'MMA Rev-Exp Summary'!C4)","v":""}]
["Paid Through:",null,{"$f":"IF('MMA Rev-Exp Summary'!C5=0,\"\",'MMA Rev-Exp Summary'!C5)","v":""}]
["Region 7"]
[{"$nulls":3},"JANUARY - MARCH (Q1)",{"$nulls":10},"APRIL - JUNE (Q2)",{"$nulls":10},"JULY - SEPTEMBER (Q3)",{"$nulls":10},"OCTOBER - DECEMBER (Q4)",{"$nulls":11},"TOTAL (TO DATE)"]
[{"$nulls":3},"Total","TANF Non-SMI","TANF SMI","SSI Medicaid Only Non-SMI","SSI Medicaid Only SMI","Dual Eligible","Child Welfare","HIV/AIDS Dual Eligible","HIV/AIDS Medicaid Only","LTC Dual Eligible","LTC Medicaid Only","Total","TANF Non-SMI","TANF SMI","SSI Medicaid Only Non-SMI","SSI Medicaid Only SMI","Dual Eligible","Child Welfare","HIV/AIDS Dual Eligible","HIV/AIDS Medicaid Only","LTC Dual Eligible","LTC Medicaid Only","Total","TANF Non-SMI","TANF SMI","SSI Medicaid Only Non-SMI","SSI Medicaid Only SMI","Dual Eligible","Child Welfare","HIV/AIDS Dual Eligible","HIV/AIDS Medicaid Only","LTC Dual Eligible","LTC Medicaid Only","Total","TANF Non-SMI","TANF SMI","SSI Medicaid Only Non-SMI","SSI Medicaid Only SMI","Dual Eligible","Child Welfare","HIV/AIDS Dual Eligible","HIV/AIDS Medicaid Only","LTC Dual Eligible","LTC Medicaid Only","Prior Year Adjustments","Total","TANF Non-SMI","TANF SMI","SSI Medicaid Only Non-SMI","SSI Medicaid Only SMI","Dual Eligible","Child Welfare","HIV/AIDS Dual Eligible","HIV/AIDS Medicaid Only","LTC Dual Eligible","LTC Medicaid Only"]
["MEMBER MONTHS",null,null,{"$f":"SUM(E9:N9)","v":0},{"$nulls":10},{"$f":"SUM(P9:Y9)","v":0},{"$nulls":10},{"$f":"SUM(AA9:AJ9)","v":0},{"$nulls":10},{"$f":"SUM(AL9:AU9)","v":0},{"$nulls":11},{"$f":"AK9+Z9+O9+D9+AV9","v":0},{"$f":"AL9+AA9+P9+E9","v":0},{"$f":"AM9+AB9+Q9+F9","v":0},0,0,0,0,0,0,0,0]
["REVENUES"]
["Revenues",1.1,"Capitation",{"$f":"SUM(E11:N11)","v":0},{"$nulls":10},{"$f":"SUM(P11:Y11)","v":0},{"$nulls":10},{"$f":"SUM(AA11:AJ11)","v":0},{"$nulls":10},{"$f":"SUM(AL11:AU11)","v":0},{"$nulls":11},{"$f":"SUM(AX11:BG11)+AV11","v":0},{"$f":"E11+P11+AA11+AL11","v":0},0,0,0,0,0,0,0,0,0]
[null,1.2,"Transplant Kick Payments",0,{"$nulls":10},0,{"$nulls":10},0,{"$nulls":10},0,{"$nulls":11},{"$f":"SUM(AX12:BG12)+AV12","v":0},0,0,{"$f":"G12+R12+AC12+AN12","v":0},0,0,0,0,0,0,0]
[null,"1.3","Hepatitis C Kick Payments",0,{"$nulls":10},0,{"$nulls":10},0,{"$nulls":10},0,{"$nulls":11},0,0,0,{"$f":"G13+R13+AC13+AN13","v":0},0,0,0,0,0,0,0]
[null,"1.4.1","Maternity Kick Payments",0,{"$nulls":10},0,{"$nulls":10},0,{"$nulls":10},0,{"$nulls":11},0,0,0,{"$f":"G14+R14+AC14+AN14","v":0},0,0,0,0,0,0,0]
[null,"1.5","ACA § 9010 related payments",0,{"$nulls":10},0,{"$nulls":10},0,{"$nulls":10},0,{"$nulls":11},0,0,0,{"$f":"G15+R15+AC15+AN15","v":0},0,0,0,0,0,0,0]
[null,"1.6","Other Revenue",0,{"$nulls":10},0,{"$nulls":10},0,{"$nulls":10},0,{"$nulls":11},0,0,0,{"$f":"G16+R16+AC16+AN16","v":0},0,0,0,0,0,0,0]
[null,"1.7","Total Revenue",{"$f":"SUM(D11:D16)","v":0},{"$f":"SUM(E11:E16)","v":0},{"$f":"SUM(F11:F16)","v":0},{"$f":"SUM(G11:G16)","v":0},0,0,0,0,0,0,0,{"$f":"SUM(O11:O16)","v":0},{"$f":"SUM(P11:P16)","v":0},{"$f":"SUM(Q11:Q16)","v":0},{"$f":"SUM(R11:R16)","v":0},0,0,0,0,0,0,0,{"$f":"SUM(Z11:Z16)","v":0},{"$f":"SUM(AA11:AA16)","v":0},{"$f":"SUM(AB11:AB16)","v":0},{"$f":"SUM(AC11:AC16)","v":0},0,0,0,0,0,0,0,{"$f":"SUM(AK11:AK16)","v":0},{"$f":"SUM(AL11:AL16)","v":0},{"$f":"SUM(AM11:AM16)","v":0},0,0,0,0,0,0,0,0,0,{"$f":"SUM(AW11:AW16)","v":0},{"$f":"SUM(AX11:AX16)","v":0},{"$f":"SUM(AY11:AY16)","v":0},0,0,0,0,0,0,0,0]
["BENEFIT EXPENSES",null,null,"JANUARY - MARCH (Q1)",{"$nulls":10},"APRIL - JUNE (Q2)",{"$nulls":10},"JULY - SEPTEMBER (Q3)",{"$nulls":10},"OCTOBER - DECEMBER (Q4)",{"$nulls":11},"TOTAL (TO DATE)"]
[{"$nulls":3},"Total","TANF Non-SMI","TANF SMI","SSI Medicaid Only Non-SMI","SSI Medicaid Only SMI","Dual Eligible","Child Welfare","HIV/AIDS Dual Eligible","HIV/AIDS Medicaid Only","LTC Dual Eligible","LTC Medicaid Only","Total","TANF Non-SMI","TANF SMI","SSI Medicaid Only Non-SMI","SSI Medicaid Only SMI","Dual Eligible","Child Welfare","HIV/AIDS Dual Eligible","HIV/AIDS Medicaid Only","LTC Dual Eligible","LTC Medicaid Only","Total","TANF Non-SMI","TANF SMI","SSI Medicaid Only Non-SMI","SSI Medicaid Only SMI","Dual Eligible","Child Welfare","HIV/AIDS Dual Eligible","HIV/AIDS Medicaid Only","LTC Dual Eligible","LTC Medicaid Only","Total","TANF Non-SMI","TANF SMI","SSI Medicaid Only Non-SMI","SSI Medicaid Only SMI","Dual Eligible","Child Welfare","HIV/AIDS Dual Eligible","HIV/AIDS Medicaid Only","LTC Dual Eligible","LTC Medicaid Only","Prior Year Adjustments","Total","TANF Non-SMI","TANF SMI","SSI Medicaid Only Non-SMI","SSI Medicaid Only SMI","Dual Eligible","Child Welfare","HIV/AIDS Dual Eligible","HIV/AIDS Medicaid Only","LTC Dual Eligible","LTC Medicaid Only"]
["Hospital Services",2.1,"Inpatient FFS",{"$f":"SUM(E20:N20)","v":0},{"$nulls":10},{"$f":"SUM(P20:Y20)","v":0},{"$nulls":10},{"$f":"SUM(AA20:AJ20)","v":0},{"$nulls":10},{"$f":"SUM(AL20:AU20)","v":0},{"$nulls":11},{"$f":"SUM(AX20:BG20)+AV20","v":0},{"$f":"E20+P20+AA20+AL20","v":0},0,0,0,0,0,0,0,0,0]
[null,2.2,"Ending IBNP for Inpatient Hospital Services",0,{"$nulls":10},0,{"$nulls":10},0,{"$nulls":10},0,{"$nulls":11},{"$f":"SUM(AX21:BG21)+AV21","v":0},0,0,0,0,0,0,0,0,0,0]
[null,2.3,"Outpatient FFS: ER",0,{"$nulls":10},0,{"$nulls":10},0,{"$nulls":10},0,{"$nulls":11},0,0,0,0,0,0,0,0,0,0,0]
[null,2.4,"Outpatient FFS: Other than ER ",0,{"$nulls":10},0,{"$nulls":10},0,{"$nulls":10},0,{"$nulls":11},0,0,0,0,0,0,0,0,0,0,0]
[null,2.5,"Ending IBNP for Outpatient Hospital Services",0,{"$nulls":10},0,{"$nulls":10},0,{"$nulls":10},0,{"$nulls":11},0,0,0,0,0,0,0,0,0,0,0]
[null,"2.6","Subcapitated Hospital Services",0,{"$nulls":10},0,{"$nulls":10},0,{"$nulls":10},0,{"$nulls":11},0,0,0,0,0,0,0,0,0,0,0]
[null,"2.7","Hospital Settlements/AP",0,{"$nulls":10},0,{"$nulls":10},0,{"$nulls":10},0,{"$nulls":11},0,0,0,0,0,0,0,0,0,0,0]
[null,"2.7.1","Transplant Services",0,{"$nulls":10},0,{"$nulls":10},0,{"$nulls":10},0,{"$nulls":11},0,0,0,0,0,0,0,0,0,0,0]
[null,"2.8","Total Hospital Services",{"$f":"SUM(D20:D27)","v":0},{"$f":"SUM(E20:E27)","v":0},0,0,0,0,0,0,0,0,0,{"$f":"SUM(O20:O27)","v":0},{"$f":"SUM(P20:P27)","v":0},0,0,0,0,0,0,0,0,0,{"$f":"SUM(Z20:Z27)","v":0},{"$f":"SUM(AA20:AA27)","v":0},0,0,0,0,0,0,0,0,0,{"$f":"SUM(AK20:AK27)","v":0},{"$f":"SUM(AL20:AL27)","v":0},0,0,0,0,0,0,0,0,0,{"$f":"SUM(AV20:AV27)","v":0},{"$f":"SUM(AW20:AW27)","v":0},{"$f":"SUM(AX20:AX27)","v":0},0,0,0,0,0,0,0,0,0]
["Professional Services",3.1,"Primary Care FFS",{"$f":"SUM(E29:N29)","v":0},{"$nulls":10},{"$f":"SUM(P29:Y29)","v":0},{"$nulls":10},{"$f":"SUM(AA29:AJ29)","v":0},{"$nulls":10},{"$f":"SUM(AL29:AU29)","v":0},{"$nulls":11},{"$f":"SUM(AX29:BG29)+AV29","v":0},{"$f":"E29+P29+AA29+AL29","v":0},0,0,0,0,0,0,0,0,0]
[null,3.2,"Specialty Care FFS",0,{"$nulls":10},0,{"$nulls":10},0,{"$nulls":10},0,{"$nulls":11},0,0,0,0,0,0,0,0,0,0,0]
[null,3.3,"Other Professional FFS",0,{"$nulls":10},0,{"$nulls":10},0,{"$nulls":10},0,{"$nulls":11},0,0,0,0,0,0,0,0,0,0,0]
[null,"3.4","§ 1202 PCP Payments to providers",0,{"$nulls":10},{"$f":"SUM(P32:Y32)","v":0},{"$nulls":10},{"$f":"SUM(AA32:AJ32)","v":0},{"$nulls":10},{"$f":"SUM(AL32:AU32)","v":0},{"$nulls":11},{"$f":"SUM(AX32:BG32)+AV32","v":0},0,0,0,0,0,0,0,0,0,0]
[null,"3.5","Subcapitated Professional Services",0,{"$nulls":10},0,{"$nulls":10},0,{"$nulls":10},0,{"$nulls":11},{"$f":"SUM(AX33:BG33)+AV33","v":0},0,0,0,0,0,0,0,0,0,0]
[null,"3.6","Ending IBNP for Professional Services",0,{"$nulls":10},0,{"$nulls":10},0,{"$nulls":10},0,{"$nulls":11},0,0,0,0,0,0,0,0,0,0,0]
[null,"3.7","Professional Settlements/AP",0,{"$nulls":10},0,{"$nulls":10},0,{"$nulls":10},0,{"$nulls":11},0,0,0,0,0,0,0,0,0,0,0]
[null,"3.8","Total Physician Services",{"$f":"SUM(D29:D35)","v":0},0,0,0,0,0,0,0,0,0,0,0,0,0,0,0,0,0,0,0,0,0,0,0,0,0,0,0,0,0,0,0,0,0,0,0,0,0,0,0,0,0,0,0,0,0,0,0,0,0,0,0,0,0,0,0]
["Maternity Services","4.1.1","Maternity Services",{"$f":"SUM(E37:N37)","v":0},{"$nulls":10},{"$f":"SUM(P37:Y37)","v":0},{"$nulls":10},{"$f":"SUM(AA37:AJ37)","v":0},{"$nulls":10},{"$f":"SUM(AL37:AU37)","v":0},{"$nulls":11},{"$f":"SUM(AX37:BG37)+AV37","v":0},{"$f":"E37+P37+AA37+AL37","v":0},{"$f":"F37+Q37+AB37+AM37","v":0},{"$f":"G37+R37+AC37+AN37","v":0},0,0,0,0,0,0,0]
[null,"4.2.1","Ending IBNP for Maternity Services",{"$f":"SUM(E38:N38)","v":0},{"$nulls":10},{"$f":"SUM(P38:Y38)","v":0},{"$nulls":10},{"$f":"SUM(AA38:AJ38)","v":0},{"$nulls":10},{"$f":"SUM(AL38:AU38)","v":0},{"$nulls":11},{"$f":"SUM(AX38:BG38)+AV38","v":0},{"$f":"E38+P38+AA38+AL38","v":0},0,{"$f":"G38+R38+AC38+AN38","v":0},0,0,0,0,0,0,0]
[null,"4.3.1","Maternity Settlements/AP",{"$f":"SUM(E39:N39)","v":0},{"$nulls":10},{"$f":"SUM(P39:Y39)","v":0},{"$nulls":10},{"$f":"SUM(AA39:AJ39)","v":0},{"$nulls":10},{"$f":"SUM(AL39:AU39)","v":0},{"$nulls":11},{"$f":"SUM(AX39:BG39)+AV39","v":0},{"$f":"E39+P39+AA39+AL39","v":0},0,{"$f":"G39+R39+AC39+AN39","v":0},0,0,0,0,0,0,0]
[null,"4.4.1","Total Maternity Services",{"$f":"SUM(D37:D39)","v":0},0,0,0,0,0,0,0,0,0,0,{"$f":"SUM(O37:O39)","v":0},0,0,0,0,0,{"$f":"SUM(U37:U39)","v":0},0,0,0,0,0,0,0,0,0,0,0,0,{"$f":"SUM(AH37:AH39)","v":0},0,0,0,0,0,0,0,0,0,0,0,0,0,0,0,{"$f":"SUM(AX37:AX39)","v":0},{"$f":"SUM(AY37:AY39)","v":0},0,0,0,0,0,0,0,0]
["Mental Health",5.1,"Mental Health & Substance Abuse FFS",{"$f":"SUM(E41:N41)","v":0},{"$nulls":10},{"$f":"SUM(P41:Y41)","v":0},{"$nulls":10},{"$f":"SUM(AA41:AJ41)","v":0},{"$nulls":10},{"$f":"SUM(AL41:AU41)","v":0},{"$nulls":11},{"$f":"SUM(AX41:BG41)+AV41","v":0},{"$f":"E41+P41+AA41+AL41","v":0},{"$f":"F41+Q41+AB41+AM41","v":0},0,0,0,0,0,0,0,0]
[null,5.2,"Mental Health & Substance Abuse Subcapitation",{"$f":"SUM(E42:N42)","v":0},{"$nulls":10},{"$f":"SUM(P42:Y42)","v":0},{"$nulls":10},{"$f":"SUM(AA42:AJ42)","v":0},{"$nulls":10},{"$f":"SUM(AL42:AU42)","v":0},{"$nulls":11},{"$f":"SUM(AX42:BG42)+AV42","v":0},{"$f":"E42+P42+AA42+AL42","v":0},0,{"$f":"G42+R42+AC42+AN42","v":0},0,0,0,0,0,0,0]
[null,5.3,"Ending IBNP for Mental Health & Substance Abuse",{"$f":"SUM(E43:N43)","v":0},{"$nulls":10},{"$f":"SUM(P43:Y43)","v":0},{"$nulls":10},{"$f":"SUM(AA43:AJ43)","v":0},{"$nulls":10},{"$f":"SUM(AL43:AU43)","v":0},{"$nulls":11},{"$f":"SUM(AX43:BG43)+AV43","v":0},{"$f":"E43+P43+AA43+AL43","v":0},0,{"$f":"G43+R43+AC43+AN43","v":0},0,0,0,0,0,0,0]
[null,"5.4","Mental Health Settlements/AP",{"$f":"SUM(E44:N44)","v":0},{"$nulls":10},{"$f":"SUM(P44:Y44)","v":0},{"$nulls":10},{"$f":"SUM(AA44:AJ44)","v":0},{"$nulls":10},{"$f":"SUM(AL44:AU44)","v":0},{"$nulls":11},{"$f":"SUM(AX44:BG44)+AV44","v":0},{"$f":"E44+P44+AA44+AL44","v":0},0,{"$f":"G44+R44+AC44+AN44","v":0},0,0,0,0,0,0,0]
[null,"5.5","Total Mental Health & Substance Abuse Services",{"$f":"SUM(D41:D44)","v":0},{"$f":"SUM(E41:E44)","v":0},0,0,0,{"$f":"SUM(I41:I44)","v":0},0,0,0,0,0,0,0,0,0,0,0,0,0,0,0,0,0,0,0,0,0,0,0,0,0,0,0,0,0,0,0,0,0,0,0,0,0,0,0,0,0,0,0,0,0,0,0,0,0,0]
["Dental",6.1,"Dental FFS",{"$f":"SUM(E46:N46)","v":0},{"$nulls":10},{"$f":"SUM(P46:Y46)","v":0},{"$nulls":10},{"$f":"SUM(AA46:AJ46)","v":0},{"$nulls":10},{"$f":"SUM(AL46:AU46)","v":0},{"$nulls":11},{"$f":"SUM(AX46:BG46)+AV46","v":0},{"$f":"E46+P46+AA46+AL46","v":0},{"$f":"F46+Q46+AB46+AM46","v":0},0,0,0,0,0,0,0,0]
[null,6.2,"Dental Subcapitation",{"$f":"SUM(E47:N47)","v":0},{"$nulls":10},{"$f":"SUM(P47:Y47)","v":0},{"$nulls":10},{"$f":"SUM(AA47:AJ47)","v":0},{"$nulls":10},{"$f":"SUM(AL47:AU47)","v":0},{"$nulls":11},{"$f":"SUM(AX47:BG47)+AV47","v":0},{"$f":"E47+P47+AA47+AL47","v":0},0,{"$f":"G47+R47+AC47+AN47","v":0},0,0,0,0,0,0,0]
[null,6.3,"Ending IBNP for Dental Services",{"$f":"SUM(E48:N48)","v":0},{"$nulls":10},{"$f":"SUM(P48:Y48)","v":0},{"$nulls":10},{"$f":"SUM(AA48:AJ48)","v":0},{"$nulls":10},{"$f":"SUM(AL48:AU48)","v":0},{"$nulls":11},{"$f":"SUM(AX48:BG48)+AV48","v":0},{"$f":"E48+P48+AA48+AL48","v":0},0,{"$f":"G48+R48+AC48+AN48","v":0},0,0,0,0,0,0,0]
[null,"6.4","Dental Settlements/AP",{"$f":"SUM(E49:N49)","v":0},{"$nulls":10},{"$f":"SUM(P49:Y49)","v":0},{"$nulls":10},{"$f":"SUM(AA49:AJ49)","v":0},{"$nulls":10},{"$f":"SUM(AL49:AU49)","v":0},{"$nulls":11},{"$f":"SUM(AX49:BG49)+AV49","v":0},{"$f":"E49+P49+AA49+AL49","v":0},0,{"$f":"G49+R49+AC49+AN49","v":0},0,0,0,0,0,0,0]
[null,"6.5","Total Dental Services",{"$f":"SUM(D46:D49)","v":0},{"$f":"SUM(E46:E49)","v":0},0,0,0,0,0,0,0,0,0,0,0,0,0,0,0,0,0,0,0,0,0,0,0,0,0,0,0,0,0,0,0,0,0,0,0,0,0,0,0,0,0,0,0,0,0,0,0,0,0,0,0,0,0,0]
["Transportation",7.1,"Transportation FFS",{"$f":"SUM(E51:N51)","v":0},{"$nulls":10},{"$f":"SUM(P51:Y51)","v":0},{"$nulls":10},{"$f":"SUM(AA51:AJ51)","v":0},{"$nulls":10},{"$f":"SUM(AL51:AU51)","v":0},{"$nulls":11},{"$f":"SUM(AX51:BG51)+AV51","v":0},{"$f":"E51+P51+AA51+AL51","v":0},{"$f":"F51+Q51+AB51+AM51","v":0},0,0,0,0,0,0,0,0]
[null,7.2,"Transportation Subcapitation",{"$f":"SUM(E52:N52)","v":0},{"$nulls":10},{"$f":"SUM(P52:Y52)","v":0},{"$nulls":10},{"$f":"SUM(AA52:AJ52)","v":0},{"$nulls":10},{"$f":"SUM(AL52:AU52)","v":0},{"$nulls":11},{"$f":"SUM(AX52:BG52)+AV52","v":0},{"$f":"E52+P52+AA52+AL52","v":0},0,{"$f":"G52+R52+AC52+AN52","v":0},0,0,0,0,0,0,0]
[null,7.3,"Ending IBNP for Transportation",{"$f":"SUM(E53:N53)","v":0},{"$nulls":10},{"$f":"SUM(P53:Y53)","v":0},{"$nulls":10},{"$f":"SUM(AA53:AJ53)","v":0},{"$nulls":10},{"$f":"SUM(AL53:AU53)","v":0},{"$nulls":11},{"$f":"SUM(AX53:BG53)+AV53","v":0},{"$f":"E53+P53+AA53+AL53","v":0},0,{"$f":"G53+R53+AC53+AN53","v":0},0,0,0,0,0,0,0]
[null,"7.4","Transportation Settlements/AP",{"$f":"SUM(E54:N54)","v":0},{"$nulls":10},{"$f":"SUM(P54:Y54)","v":0},{"$nulls":10},{"$f":"SUM(AA54:AJ54)","v":0},{"$nulls":10},{"$f":"SUM(AL54:AU54)","v":0},{"$nulls":11},{"$f":"SUM(AX54:BG54)+AV54","v":0},{"$f":"E54+P54+AA54+AL54","v":0},0,{"$f":"G54+R54+AC54+AN54","v":0},0,0,0,0,0,0,0]
[null,"7.5","Total Transportation Services",{"$f":"SUM(D51:D54)","v":0},{"$f":"SUM(E51:E54)","v":0},0,0,0,0,0,0,0,0,0,0,0,0,0,0,0,0,0,0,{"$f":"SUM(X51:X54)","v":0},0,0,0,0,0,0,0,0,0,0,0,0,0,0,0,0,0,0,0,0,0,0,0,0,0,0,0,0,0,0,0,0,0,0,0]
["Pharmacy",8.1,"Prescription Drugs FFS",{"$f":"SUM(E56:N56)","v":0},{"$nulls":10},{"$f":"SUM(P56:Y56)","v":0},{"$nulls":10},{"$f":"SUM(AA56:AJ56)","v":0},{"$nulls":10},{"$f":"SUM(AL56:AU56)","v":0},{"$nulls":11},{"$f":"SUM(AX56:BG56)+AV56","v":0},{"$f":"E56+P56+AA56+AL56","v":0},0,0,0,0,0,0,0,0,0]
[null,"8.2","Hepatitis C Prescription Drug FFS",0,{"$nulls":10},0,{"$nulls":10},0,{"$nulls":10},0,{"$nulls":11},{"$f":"SUM(AX57:BG57)+AV57","v":0},0,0,0,0,0,0,0,0,0,0]
[null,"8.3","Ending IBNP for Prescription Drugs",0,{"$nulls":10},0,{"$nulls":10},0,{"$nulls":10},0,{"$nulls":11},0,0,0,0,0,0,0,0,0,0,0]
[null,"8.4","Prescription Drug Rebates ",0,{"$nulls":10},0,{"$nulls":10},0,{"$nulls":10},0,{"$nulls":11},0,0,0,0,0,0,0,0,0,0,0]
[null,"8.5","Ending accrual for Rebates receivable",0,{"$nulls":10},0,{"$nulls":10},0,{"$nulls":10},0,{"$nulls":11},0,0,0,0,0,0,0,0,0,0,0]
[null,"8.6","Prescription Drugs Subcapitation",0,{"$nulls":10},0,{"$nulls":10},0,{"$nulls":10},0,{"$nulls":11},0,0,0,0,0,0,0,0,0,0,0]
[null,"8.7","Prescription Drug Settlements/AP",0,{"$nulls":10},0,{"$nulls":10},0,{"$nulls":10},0,{"$nulls":11},0,0,0,0,0,0,0,0,0,0,0]
[null,"8.8","Total Prescription Drugs",{"$f":"SUM(D56:D62)","v":0},{"$f":"SUM(E56:E62)","v":0},0,0,0,0,0,0,0,0,0,0,0,0,0,0,0,0,0,0,0,0,0,0,0,0,0,0,0,0,0,0,0,0,0,0,0,0,0,0,0,0,0,0,0,0,0,0,0,0,0,0,0,0,0,0]
["Other Services",9.1,"Home Health, Private Duty Nursing, Personal Care FFS",{"$f":"SUM(E64:L64)","v":0},{"$nulls":10},{"$f":"SUM(P64:W64)","v":0},{"$nulls":10},{"$f":"SUM(AA64:AH64)","v":0},{"$nulls":10},{"$f":"SUM(AL64:AS64)","v":0},{"$nulls":11},{"$f":"SUM(AX64:BE64)+AV64","v":0},{"$f":"E64+P64+AA64+AL64","v":0},0,0,0,0,0,0,0]
[null,"9.2","Hospice FFS",{"$f":"SUM(E65:L65)","v":0},{"$nulls":10},{"$f":"SUM(P65:W65)","v":0},{"$nulls":10},{"$f":"SUM(AA65:AH65)","v":0},{"$nulls":10},{"$f":"SUM(AL65:AS65)","v":0},{"$nulls":11},{"$f":"SUM(AX65:BE65)+AV65","v":0},0,0,0,0,0,0,0,0]
[null,"9.3","DME FFS",{"$f":"SUM(E66:L66)","v":0},{"$nulls":10},{"$f":"SUM(P66:W66)","v":0},{"$nulls":10},{"$f":"SUM(AA66:AH66)","v":0},{"$nulls":10},{"$f":"SUM(AL66:AS66)","v":0},{"$nulls":11},0,0,0,0,0,0,0,0,0]
[null,"9.4","Other State Plan Services FFS",{"$f":"SUM(E67:N67)","v":0},{"$nulls":10},{"$f":"SUM(P67:Y67)","v":0},{"$nulls":10},{"$f":"SUM(AA67:AJ67)","v":0},{"$nulls":10},{"$f":"SUM(AL67:AU67)","v":0},{"$nulls":11},{"$f":"SUM(AX67:BG67)+AV67","v":0},0,0,0,0,0,0,0,0,0,0]
[null,"9.5","Other Services Subcapitation",{"$f":"SUM(E68:N68)","v":0},{"$nulls":10},{"$f":"SUM(P68:Y68)","v":0},{"$nulls":10},{"$f":"SUM(AA68:AJ68)","v":0},{"$nulls":10},{"$f":"SUM(AL68:AU68)","v":0},{"$nulls":11},{"$f":"SUM(AX68:BG68)+AV68","v":0},0,0,0,0,0,0,0,0,0,0]
[null,"9.6","Ending IBNP for Other Services",{"$f":"SUM(E69:N69)","v":0},{"$nulls":10},{"$f":"SUM(P69:Y69)","v":0},{"$nulls":10},{"$f":"SUM(AA69:AJ69)","v":0},{"$nulls":10},{"$f":"SUM(AL69:AU69)","v":0},{"$nulls":11},{"$f":"SUM(AX69:BG69)+AV69","v":0},0,0,0,0,0,0,0,0,0,0]
[null,"9.7","Other Services Settlements/AP",{"$f":"SUM(E70:N70)","v":0},{"$nulls":10},{"$f":"SUM(P70:Y70)","v":0},{"$nulls":10},{"$f":"SUM(AA70:AJ70)","v":0},{"$nulls":10},{"$f":"SUM(AL70:AU70)","v":0},{"$nulls":11},{"$f":"SUM(AX70:BG70)+AV70","v":0},0,0,0,0,0,0,0,0,0,0]
[null,"9.8","Total Other Services",{"$f":"SUM(D64:D70)","v":0},{"$f":"SUM(E64:E70)","v":0},0,0,0,0,0,0,0,{"$f":"SUM(M67:M70)","v":0},{"$f":"SUM(N67:N70)","v":0},0,0,0,0,0,0,0,0,0,{"$f":"SUM(X67:X70)","v":0},{"$f":"SUM(Y67:Y70)","v":0},0,0,0,0,0,0,0,0,0,{"$f":"SUM(AI67:AI70)","v":0},{"$f":"SUM(AJ67:AJ70)","v":0},0,0,0,0,0,0,0,0,0,{"$f":"SUM(AT67:AT70)","v":0},{"$f":"SUM(AU67:AU70)","v":0},{"$f":"SUM(AV64:AV70)","v":0},0,0,0,0,0,0,0,{"$f":"SUM(BD64:BD70)","v":0},{"$f":"SUM(BE64:BE70)","v":0},{"$f":"SUM(BF67:BF70)","v":0},{"$f":"SUM(BG67:BG70)","v":0}]
["Expanded Benefits","10.1","Expanded Benefits FFS",{"$f":"SUM(E72:N72)","v":0},{"$nulls":10},{"$f":"SUM(P72:Y72)","v":0},{"$nulls":10},{"$f":"SUM(AA72:AJ72)","v":0},{"$nulls":10},{"$f":"SUM(AL72:AU72)","v":0},{"$nulls":11},{"$f":"SUM(AX72:BG72)+AV72","v":0},{"$f":"E72+P72+AA72+AL72","v":0},{"$f":"F72+Q72+AB72+AM72","v":0},0,0,0,0,0,0,0,0]
[null,"10.2","Expanded Benefits Subcapitation",{"$f":"SUM(E73:N73)","v":0},{"$nulls":10},{"$f":"SUM(P73:Y73)","v":0},{"$nulls":10},{"$f":"SUM(AA73:AJ73)","v":0},{"$nulls":10},{"$f":"SUM(AL73:AU73)","v":0},{"$nulls":11},{"$f":"SUM(AX73:BG73)+AV73","v":0},{"$f":"E73+P73+AA73+AL73","v":0},0,{"$f":"G73+R73+AC73+AN73","v":0},0,0,0,0,0,0,0]
[null,"10.3","Ending IBNP for Expanded Benefits",{"$f":"SUM(E74:N74)","v":0},{"$nulls":10},{"$f":"SUM(P74:Y74)","v":0},{"$nulls":10},{"$f":"SUM(AA74:AJ74)","v":0},{"$nulls":10},{"$f":"SUM(AL74:AU74)","v":0},{"$nulls":11},{"$f":"SUM(AX74:BG74)+AV74","v":0},{"$f":"E74+P74+AA74+AL74","v":0},0,{"$f":"G74+R74+AC74+AN74","v":0},0,0,0,0,0,0,0]
[null,"10.4","Expanded Benefits Settlements/AP",{"$f":"SUM(E75:N75)","v":0},{"$nulls":10},{"$f":"SUM(P75:Y75)","v":0},{"$nulls":10},{"$f":"SUM(AA75:AJ75)","v":0},{"$nulls":10},{"$f":"SUM(AL75:AU75)","v":0},{"$nulls":11},{"$f":"SUM(AX75:BG75)+AV75","v":0},{"$f":"E75+P75+AA75+AL75","v":0},0,{"$f":"G75+R75+AC75+AN75","v":0},0,0,0,0,0,0,0]
[null,"10.5","Total Expanded Benefits",{"$f":"SUM(D72:D75)","v":0},{"$f":"SUM(E72:E75)","v":0},0,0,0,0,0,0,0,0,0,0,0,0,0,0,0,0,0,0,{"$f":"SUM(X72:X75)","v":0},0,0,0,0,0,0,0,0,0,0,0,0,0,0,0,0,0,0,0,0,0,0,0,0,0,0,0,0,0,0,0,0,0,0,0]
["Totals Before and After Reinsurance","11.1","Total Services Paid Directly FFS",{"$f":"D20+SUM(D22:D23,D27)+SUM(D29:D32)+D37+D41+D46+D51+SUM(D56:D57)+SUM(D59:D60)+SUM(D64:D67)+D72","v":0},{"$f":"E20+SUM(E22:E23,E27)+SUM(E29:E32)+E37+E41+E46+E51+SUM(E56:E57)+SUM(E59:E60)+SUM(E64:E67)+E72","v":0},{"$f":"F20+SUM(F22:F23,F27)+SUM(F29:F32)+F37+F41+F46+F51+SUM(F56:F57)+SUM(F59:F60)+SUM(F64:F67)+F72","v":0},{"$f":"G20+SUM(G22:G23,G27)+SUM(G29:G32)+G37+G41+G46+G51+SUM(G56:G57)+SUM(G59:G60)+SUM(G64:G67)+G72","v":0},0,0,0,0,0,0,0,{"$f":"O20+SUM(O22:O23,O27)+SUM(O29:O32)+O37+O41+O46+O51+SUM(O56:O57)+SUM(O59:O60)+SUM(O64:O67)+O72","v":0},{"$f":"P20+SUM(P22:P23,P27)+SUM(P29:P32)+P37+P41+P46+P51+SUM(P56:P57)+SUM(P59:P60)+SUM(P64:P67)+P72","v":0},0,0,0,0,0,0,0,0,0,{"$f":"Z20+SUM(Z22:Z23,Z27)+SUM(Z29:Z32)+Z37+Z41+Z46+Z51+SUM(Z56:Z57)+SUM(Z59:Z60)+SUM(Z64:Z67)+Z72","v":0},{"$f":"AA20+SUM(AA22:AA23,AA27)+SUM(AA29:AA32)+AA37+AA41+AA46+AA51+SUM(AA56:AA57)+SUM(AA59:AA60)+SUM(AA64:AA67)+AA72","v":0},0,0,0,0,0,0,0,0,0,{"$f":"AK20+SUM(AK22:AK23,AK27)+SUM(AK29:AK32)+AK37+AK41+AK46+AK51+SUM(AK56:AK57)+SUM(AK59:AK60)+SUM(AK64:AK67)+AK72","v":0},{"$f":"AL20+SUM(AL22:AL23,AL27)+SUM(AL29:AL32)+AL37+AL41+AL46+AL51+SUM(AL56:AL57)+SUM(AL59:AL60)+SUM(AL64:AL67)+AL72","v":0},0,0,0,0,0,0,0,0,0,{"$f":"AV20+SUM(AV22:AV23,AV27)+SUM(AV29:AV32)+AV37+AV41+AV46+AV51+SUM(AV56:AV57)+SUM(AV59:AV60)+SUM(AV64:AV67)+AV72","v":0},{"$f":"AW20+SUM(AW22:AW23,AW27)+SUM(AW29:AW32)+AW37+AW41+AW46+AW51+SUM(AW56:AW57)+SUM(AW59:AW60)+SUM(AW64:AW67)+AW72","v":0},{"$f":"AX20+SUM(AX22:AX23,AX27)+SUM(AX29:AX32)+AX37+AX41+AX46+AX51+SUM(AX56:AX57)+SUM(AX59:AX60)+SUM(AX64:AX67)+AX72","v":0},0,0,0,0,0,0,0,0,0]
[null,"11.2","Total Services Paid Directly -- IBNP",{"$f":"D21+D24+D34+D38+D43+D48+D53+D58+D69+D74","v":0},{"$f":"E21+E24+E34+E38+E43+E48+E53+E58+E69+E74","v":0},{"$f":"F21+F24+F34+F38+F43+F48+F53+F58+F69+F74","v":0},{"$f":"G21+G24+G34+G38+G43+G48+G53+G58+G69+G74","v":0},0,0,0,0,0,0,0,{"$f":"O21+O24+O34+O38+O43+O48+O53+O58+O69+O74","v":0},{"$f":"P21+P24+P34+P38+P43+P48+P53+P58+P69+P74","v":0},0,0,0,0,0,0,0,0,0,{"$f":"Z21+Z24+Z34+Z38+Z43+Z48+Z53+Z58+Z69+Z74","v":0},{"$f":"AA21+AA24+AA34+AA38+AA43+AA48+AA53+AA58+AA69+AA74","v":0},0,0,0,0,0,0,0,0,0,{"$f":"AK21+AK24+AK34+AK38+AK43+AK48+AK53+AK58+AK69+AK74","v":0},{"$f":"AL21+AL24+AL34+AL38+AL43+AL48+AL53+AL58+AL69+AL74","v":0},0,0,0,0,0,0,0,0,0,{"$f":"AV21+AV24+AV34+AV38+AV43+AV48+AV53+AV58+AV69+AV74","v":0},{"$f":"AW21+AW24+AW34+AW38+AW43+AW48+AW53+AW58+AW69+AW74","v":0},{"$f":"AX21+AX24+AX34+AX38+AX43+AX48+AX53+AX58+AX69+AX74","v":0},0,0,0,0,0,0,0,0,0]
[null,"11.3","Total Services Paid through Subcapitation",{"$f":"D25+D33+D42+D47+D52+D61+D68+D73","v":0},{"$f":"E25+E33+E42+E47+E52+E61+E68+E73","v":0},{"$f":"F25+F33+F42+F47+F52+F61+F68+F73","v":0},{"$f":"G25+G33+G42+G47+G52+G61+G68+G73","v":0},0,0,0,0,0,0,0,{"$f":"O25+O33+O42+O47+O52+O61+O68+O73","v":0},{"$f":"P25+P33+P42+P47+P52+P61+P68+P73","v":0},0,0,0,0,0,0,0,0,0,{"$f":"Z25+Z33+Z42+Z47+Z52+Z61+Z68+Z73","v":0},{"$f":"AA25+AA33+AA42+AA47+AA52+AA61+AA68+AA73","v":0},0,0,0,0,0,0,0,0,0,{"$f":"AK25+AK33+AK42+AK47+AK52+AK61+AK68+AK73","v":0},{"$f":"AL25+AL33+AL42+AL47+AL52+AL61+AL68+AL73","v":0},0,0,0,0,0,0,0,0,0,{"$f":"AV25+AV33+AV42+AV47+AV52+AV61+AV68+AV73","v":0},{"$f":"AW25+AW33+AW42+AW47+AW52+AW61+AW68+AW73","v":0},{"$f":"AX25+AX33+AX42+AX47+AX52+AX61+AX68+AX73","v":0},0,0,0,0,0,0,0,0,0]
[null,"11.4","Total Services Paid by Settlements/AP",{"$f":"D26+D35+D39+D44+D49+D54+D62+D70+D75","v":0},{"$f":"E26+E35+E39+E44+E49+E54+E62+E70+E75","v":0},{"$f":"F26+F35+F39+F44+F49+F54+F62+F70+F75","v":0},{"$f":"G26+G35+G39+G44+G49+G54+G62+G70+G75","v":0},0,0,0,0,0,0,0,{"$f":"O26+O35+O39+O44+O49+O54+O62+O70+O75","v":0},{"$f":"P26+P35+P39+P44+P49+P54+P62+P70+P75","v":0},0,0,0,0,0,0,0,0,0,{"$f":"Z26+Z35+Z39+Z44+Z49+Z54+Z62+Z70+Z75","v":0},{"$f":"AA26+AA35+AA39+AA44+AA49+AA54+AA62+AA70+AA75","v":0},0,0,0,0,0,0,0,0,0,{"$f":"AK26+AK35+AK39+AK44+AK49+AK54+AK62+AK70+AK75","v":0},{"$f":"AL26+AL35+AL39+AL44+AL49+AL54+AL62+AL70+AL75","v":0},0,0,0,0,0,0,0,0,0,0,{"$f":"AW26+AW35+AW39+AW44+AW49+AW54+AW62+AW70+AW75","v":0},{"$f":"AX26+AX35+AX39+AX44+AX49+AX54+AX62+AX70+AX75","v":0},0,0,0,0,0,0,0,0,0]
[null,"11.5","TPL & Fraud/Abuse Recoveries",{"$f":"SUM(E81:N81)","v":0},{"$nulls":10},{"$f":"SUM(P81:Y81)","v":0},{"$nulls":10},{"$f":"SUM(AA81:AJ81)","v":0},{"$nulls":10},{"$f":"SUM(AL81:AU81)","v":0},{"$nulls":11},{"$f":"SUM(AX81:BG81)+AV81","v":0},{"$f":"E81+P81+AA81+AL81","v":0},{"$f":"F81+Q81+AB81+AM81","v":0},{"$f":"G81+R81+AC81+AN81","v":0},{"$f":"H81+S81+AD81+AO81","v":0},0,0,0,0,0,0]
[null,"11.6.1","Premium Deficiency Reserve",{"$f":"SUM(E82:N82)","v":0},{"$nulls":10},{"$f":"SUM(P82:Y82)","v":0},{"$nulls":10},{"$f":"SUM(AA82:AJ82)","v":0},{"$nulls":10},{"$f":"SUM(AL82:AU82)","v":0},{"$nulls":11},{"$f":"SUM(AX82:BG82)+AV82","v":0},{"$f":"E82+P82+AA82+AL82","v":0},0,{"$f":"G82+R82+AC82+AN82","v":0},0,0,0,0,0,0,0]
[null,"11.7","Subtotal Benefit Expense before Reinsurance",{"$f":"SUM(D77:D82)","v":0},{"$f":"SUM(E77:E82)","v":0},0,0,0,0,0,0,0,0,0,0,0,0,0,0,0,0,0,0,0,0,0,0,0,0,0,0,0,0,0,0,0,0,0,0,0,0,0,0,0,0,0,0,0,0,0,0,0,0,0,0,0,0,0,0]
[null,"11.8","Reinsurance Premiums",{"$f":"SUM(E84:N84)","v":0},{"$nulls":10},{"$f":"SUM(P84:Y84)","v":0},{"$nulls":10},{"$f":"SUM(AA84:AJ84)","v":0},{"$nulls":10},{"$f":"SUM(AL84:AU84)","v":0},{"$nulls":11},{"$f":"SUM(AX84:BG84)+AV84","v":0},{"$f":"E84+P84+AA84+AL84","v":0},{"$f":"F84+Q84+AB84+AM84","v":0},0,0,0,0,0,0,0,0]
[null,"11.9","Reinsurance Recoveries",{"$f":"SUM(E85:N85)","v":0},{"$nulls":10},{"$f":"SUM(P85:Y85)","v":0},{"$nulls":10},{"$f":"SUM(AA85:AJ85)","v":0},{"$nulls":10},{"$f":"SUM(AL85:AU85)","v":0},{"$nulls":11},{"$f":"SUM(AX85:BG85)+AV85","v":0},{"$f":"E85+P85+AA85+AL85","v":0},0,{"$f":"G85+R85+AC85+AN85","v":0},0,0,0,0,0,0,0]
[null,"11.10","Net cost of Reinsurance",{"$f":"SUM(D84:D85)","v":0},{"$f":"SUM(E84:E85)","v":0},0,0,0,0,0,0,0,0,0,{"$f":"SUM(O84:O85)","v":0},{"$f":"SUM(P84:P85)","v":0},0,0,0,0,0,0,0,0,0,{"$f":"SUM(Z84:Z85)","v":0},{"$f":"SUM(AA84:AA85)","v":0},0,0,0,0,0,0,0,0,0,{"$f":"SUM(AK84:AK85)","v":0},{"$f":"SUM(AL84:AL85)","v":0},{"$f":"SUM(AM84:AM85)","v":0},0,0,0,0,0,0,0,0,0,{"$f":"SUM(AW84:AW85)","v":0},{"$f":"SUM(AX84:AX85)","v":0},0,{"$f":"SUM(AZ84:AZ85)","v":0},0,{"$f":"SUM(BB84:BB85)","v":0},0,0,0,0,0]
[null,"11.11","Grand Total Medical Benefit Expense Net of Reinsurance",{"$f":"D83+D86","v":0},{"$f":"E83+E86","v":0},0,0,0,0,0,0,0,0,0,{"$f":"O83+O86","v":0},{"$f":"P83+P86","v":0},0,0,0,0,0,0,0,0,0,{"$f":"Z83+Z86","v":0},{"$f":"AA83+AA86","v":0},0,0,0,0,0,0,0,0,0,{"$f":"AK83+AK86","v":0},{"$f":"AL83+AL86","v":0},{"$f":"AM83+AM86","v":0},0,0,0,0,0,0,0,0,0,{"$f":"AW83+AW86","v":0},{"$f":"AX83+AX86","v":0},{"$f":"AY83+AY86","v":0},0,0,0,0,0,0,0,0]
["Administrative Expenses, Government-Mandated Assessments, Taxes, and Fees ",null,null,"JANUARY - MARCH (Q1)",{"$nulls":10},"APRIL - JUNE (Q2)",{"$nulls":10},"JULY - SEPTEMBER (Q3)",{"$nulls":10},"OCTOBER - DECEMBER (Q4)",{"$nulls":11},"TOTAL (TO DATE)"]
[{"$nulls":3},"Total","Health Plan","Corporate",{"$nulls":8},"Total","Health Plan","Corporate",{"$nulls":8},"Total","Health Plan","Corporate",{"$nulls":8},"Total","Health Plan","Corporate",{"$nulls":8},"Prior Year Adjustments","Total","Health Plan","Corporate"]
["Administrative Expenses","12.1","Salaries & Benefits",{"$f":"E90+F90","v":0},{"$nulls":10},{"$f":"P90+Q90","v":0},{"$nulls":10},{"$f":"AA90+AB90","v":0},{"$nulls":10},{"$f":"AL90+AM90","v":0},{"$nulls":11},{"$f":"AX90+AY90+AV90","v":0},{"$f":"E90+P90+AA90+AL90","v":0},{"$f":"F90+Q90+AB90+AM90","v":0}]
[null,"12.2","Administrative Services",{"$f":"E91+F91","v":0},{"$nulls":10},{"$f":"P91+Q91","v":0},{"$nulls":10},{"$f":"AA91+AB91","v":0},{"$nulls":10},{"$f":"AL91+AM91","v":0},{"$nulls":11},0,{"$f":"E91+P91+AA91+AL91","v":0},0]
[null,"12.3","Information Systems",0,{"$nulls":10},0,{"$nulls":10},0,{"$nulls":10},0,{"$nulls":11},0,0,0]
[null,"12.4","Marketing Expenses",0,{"$nulls":10},0,{"$nulls":10},0,{"$nulls":10},0,{"$nulls":11},0,0,0]
[null,"12.5","General  Administration",0,{"$nulls":10},0,{"$nulls":10},0,{"$nulls":10},0,{"$nulls":11},0,0,0]
[null,"12.6","Compliance/Regulatory",0,{"$nulls":10},0,{"$nulls":10},0,{"$nulls":10},0,{"$nulls":11},0,0,0]
[null,"12.7","Total Administrative Expenses ",{"$f":"E96+F96","v":0},{"$f":"SUM(E90:E95)","v":0},{"$f":"SUM(F90:F95)","v":0},{"$nulls":8},{"$f":"P96+Q96","v":0},{"$f":"SUM(P90:P95)","v":0},0,{"$nulls":8},{"$f":"AA96+AB96","v":0},{"$f":"SUM(AA90:AA95)","v":0},0,{"$nulls":8},{"$f":"AL96+AM96","v":0},{"$f":"SUM(AL90:AL95)","v":0},0,{"$nulls":8},{"$f":"SUM(AV90:AV95)","v":0},0,{"$f":"SUM(AX90:AX95)","v":0},{"$f":"SUM(AY90:AY95)","v":0}]
["Government-Mandated Assessments, Taxes, and Fees Other Than Income Taxes","13.1","State Premium tax",{"$nulls":45},{"$f":"D97+O97+Z97+AK97+AV97","v":0}]
[null,"13.2","Department of Insurance Assessments",{"$nulls":45},0]
[null,"13.3","Section 9010 Health Insurance Providers Fee",{"$nulls":45},0]
[null,"13.4","Other 1",{"$nulls":45},0]
[null,"13.5","Other 2",{"$nulls":45},0]
[null,"13.6","Other 3",{"$nulls":45},0]
[null,"13.7","Total ",{"$f":"SUM(D97:D102)","v":0},{"$nulls":10},{"$f":"SUM(O97:O102)","v":0},{"$nulls":10},{"$f":"SUM(Z97:Z102)","v":0},{"$nulls":10},{"$f":"SUM(AK97:AK102)","v":0},{"$nulls":10},{"$f":"SUM(AV97:AV102)","v":0},{"$f":"SUM(AW97:AW102)","v":0}]
[null,"14.0","Grand Total Expenses",{"$f":"D87+D96+D103","v":0},{"$nulls":10},{"$f":"O87+O96+O103","v":0},{"$nulls":10},{"$f":"Z87+Z96+Z103","v":0},{"$nulls":10},{"$f":"AK87+AK96+AK103","v":0},{"$nulls":10},{"$f":"AV87+AV96+AV103","v":0},{"$f":"AW87+AW96+AW103","v":0}]
[null,"15.0","Underwriting Gain / (Loss)  --- AKA Pre-tax Earnings from Operations",{"$f":"D17-D104","v":0},{"$nulls":10},{"$f":"O17-O104","v":0},{"$nulls":10},{"$f":"Z17-Z104","v":0},{"$nulls":10},{"$f":"AK17-AK104","v":0},{"$nulls":10},{"$f":"AV17-AV104","v":0},{"$f":"AW17-AW104","v":0}]
[null,"16.0","Income Tax Expense",{"$nulls":45},{"$f":"D106+O106+Z106+AK106+AV106","v":0}]
[null,"17.0","Net Underwriting Gain (Loss)",{"$f":"D105-D106","v":0},{"$nulls":10},{"$f":"O105-O106","v":0},{"$nulls":10},{"$f":"Z105-Z106","v":0},{"$nulls":10},{"$f":"AK105-AK106","v":0},{"$nulls":10},{"$f":"AV105-AV106","v":0},{"$f":"AW105-AW106","v":0}]

{"sheet":"MMA Rev-Exp Region 8","index":14,"n_rows":107,"n_cols":59,"rows_kept":107,"hidden":true,"merged":[[6,3,6,13],[6,14,6,24],[6,25,6,35],[6,36,6,46],[6,48,6,58],[9,0,9,2],[10,0,16,0],[17,0,18,2],[17,3,17,13],[17,14,17,24],[17,25,17,35],[17,36,17,46],[17,48,17,58],[19,0,27,0],[28,0,35,0],[36,0,39,0],[40,0,44,0],[45,0,49,0],[50,0,54,0],[55,0,62,0],[63,0,70,0],[71,0,75,0],[76,0,86,0],[87,0,88,2],[87,3,87,13],[87,14,87,24],[87,25,87,35],[87,36,87,46],[87,48,87,58],[89,0,95,0],[96,0,102,0]]}
["MANAGED MEDICAL ASSISTANCE -- REVENUE AND EXPENSE SCHEDULE - REGION 8"]
[]
["Health Plan:",null,{"$f":"'MMA Rev-Exp Summary'!C3","v":0}]
["Reporting Period:",null,{"$f":"IF('MMA Rev-Exp Summary'!C4=0,\"\",'MMA Rev-Exp Summary'!C4)","v":""}]
["Paid Through:",null,{"$f":"IF('MMA Rev-Exp Summary'!C5=0,\"\",'MMA Rev-Exp Summary'!C5)","v":""}]
["Region 8"]
[{"$nulls":3},"JANUARY - MARCH (Q1)",{"$nulls":10},"APRIL - JUNE (Q2)",{"$nulls":10},"JULY - SEPTEMBER (Q3)",{"$nulls":10},"OCTOBER - DECEMBER (Q4)",{"$nulls":11},"TOTAL (TO DATE)"]
[{"$nulls":3},"Total","TANF Non-SMI","TANF SMI","SSI Medicaid Only Non-SMI","SSI Medicaid Only SMI","Dual Eligible","Child Welfare","HIV/AIDS Dual Eligible","HIV/AIDS Medicaid Only","LTC Dual Eligible","LTC Medicaid Only","Total","TANF Non-SMI","TANF SMI","SSI Medicaid Only Non-SMI","SSI Medicaid Only SMI","Dual Eligible","Child Welfare","HIV/AIDS Dual Eligible","HIV/AIDS Medicaid Only","LTC Dual Eligible","LTC Medicaid Only","Total","TANF Non-SMI","TANF SMI","SSI Medicaid Only Non-SMI","SSI Medicaid Only SMI","Dual Eligible","Child Welfare","HIV/AIDS Dual Eligible","HIV/AIDS Medicaid Only","LTC Dual Eligible","LTC Medicaid Only","Total","TANF Non-SMI","TANF SMI","SSI Medicaid Only Non-SMI","SSI Medicaid Only SMI","Dual Eligible","Child Welfare","HIV/AIDS Dual Eligible","HIV/AIDS Medicaid Only","LTC Dual Eligible","LTC Medicaid Only","Prior Year Adjustments","Total","TANF Non-SMI","TANF SMI","SSI Medicaid Only Non-SMI","SSI Medicaid Only SMI","Dual Eligible","Child Welfare","HIV/AIDS Dual Eligible","HIV/AIDS Medicaid Only","LTC Dual Eligible","LTC Medicaid Only"]
["MEMBER MONTHS",null,null,{"$f":"SUM(E9:N9)","v":0},{"$nulls":10},{"$f":"SUM(P9:Y9)","v":0},{"$nulls":10},{"$f":"SUM(AA9:AJ9)","v":0},{"$nulls":10},{"$f":"SUM(AL9:AU9)","v":0},{"$nulls":11},{"$f":"AK9+Z9+O9+D9+AV9","v":0},{"$f":"AL9+AA9+P9+E9","v":0},{"$f":"AM9+AB9+Q9+F9","v":0},0,0,0,0,0,0,0,0]
["REVENUES"]
["Revenues",1.1,"Capitation",{"$f":"SUM(E11:N11)","v":0},{"$nulls":10},{"$f":"SUM(P11:Y11)","v":0},{"$nulls":10},{"$f":"SUM(AA11:AJ11)","v":0},{"$nulls":10},{"$f":"SUM(AL11:AU11)","v":0},{"$nulls":11},{"$f":"SUM(AX11:BG11)+AV11","v":0},{"$f":"E11+P11+AA11+AL11","v":0},0,0,0,0,0,0,0,0,0]
[null,1.2,"Transplant Kick Payments",0,{"$nulls":10},0,{"$nulls":10},0,{"$nulls":10},0,{"$nulls":11},{"$f":"SUM(AX12:BG12)+AV12","v":0},0,0,{"$f":"G12+R12+AC12+AN12","v":0},0,0,0,0,0,0,0]
[null,"1.3","Hepatitis C Kick Payments",0,{"$nulls":10},0,{"$nulls":10},0,{"$nulls":10},0,{"$nulls":11},0,0,0,{"$f":"G13+R13+AC13+AN13","v":0},0,0,0,0,0,0,0]
[null,"1.4.1","Maternity Kick Payments",0,{"$nulls":10},0,{"$nulls":10},0,{"$nulls":10},0,{"$nulls":11},0,0,0,{"$f":"G14+R14+AC14+AN14","v":0},0,0,0,0,0,0,0]
[null,"1.5","ACA § 9010 related payments",0,{"$nulls":10},0,{"$nulls":10},0,{"$nulls":10},0,{"$nulls":11},0,0,0,{"$f":"G15+R15+AC15+AN15","v":0},0,0,0,0,0,0,0]
[null,"1.6","Other Revenue",0,{"$nulls":10},0,{"$nulls":10},0,{"$nulls":10},0,{"$nulls":11},0,0,0,{"$f":"G16+R16+AC16+AN16","v":0},0,0,0,0,0,0,0]
[null,"1.7","Total Revenue",{"$f":"SUM(D11:D16)","v":0},{"$f":"SUM(E11:E16)","v":0},{"$f":"SUM(F11:F16)","v":0},{"$f":"SUM(G11:G16)","v":0},0,0,0,0,0,0,0,{"$f":"SUM(O11:O16)","v":0},{"$f":"SUM(P11:P16)","v":0},{"$f":"SUM(Q11:Q16)","v":0},{"$f":"SUM(R11:R16)","v":0},0,0,0,0,0,0,0,{"$f":"SUM(Z11:Z16)","v":0},{"$f":"SUM(AA11:AA16)","v":0},{"$f":"SUM(AB11:AB16)","v":0},{"$f":"SUM(AC11:AC16)","v":0},0,0,0,0,0,0,0,{"$f":"SUM(AK11:AK16)","v":0},{"$f":"SUM(AL11:AL16)","v":0},{"$f":"SUM(AM11:AM16)","v":0},0,0,0,0,0,0,0,0,0,{"$f":"SUM(AW11:AW16)","v":0},{"$f":"SUM(AX11:AX16)","v":0},{"$f":"SUM(AY11:AY16)","v":0},0,0,0,0,0,0,0,0]
["BENEFIT EXPENSES",null,null,"JANUARY - MARCH (Q1)",{"$nulls":10},"APRIL - JUNE (Q2)",{"$nulls":10},"JULY - SEPTEMBER (Q3)",{"$nulls":10},"OCTOBER - DECEMBER (Q4)",{"$nulls":11},"TOTAL (TO DATE)"]
[{"$nulls":3},"Total","TANF Non-SMI","TANF SMI","SSI Medicaid Only Non-SMI","SSI Medicaid Only SMI","Dual Eligible","Child Welfare","HIV/AIDS Dual Eligible","HIV/AIDS Medicaid Only","LTC Dual Eligible","LTC Medicaid Only","Total","TANF Non-SMI","TANF SMI","SSI Medicaid Only Non-SMI","SSI Medicaid Only SMI","Dual Eligible","Child Welfare","HIV/AIDS Dual Eligible","HIV/AIDS Medicaid Only","LTC Dual Eligible","LTC Medicaid Only","Total","TANF Non-SMI","TANF SMI","SSI Medicaid Only Non-SMI","SSI Medicaid Only SMI","Dual Eligible","Child Welfare","HIV/AIDS Dual Eligible","HIV/AIDS Medicaid Only","LTC Dual Eligible","LTC Medicaid Only","Total","TANF Non-SMI","TANF SMI","SSI Medicaid Only Non-SMI","SSI Medicaid Only SMI","Dual Eligible","Child Welfare","HIV/AIDS Dual Eligible","HIV/AIDS Medicaid Only","LTC Dual Eligible","LTC Medicaid Only","Prior Year Adjustments","Total","TANF Non-SMI","TANF SMI","SSI Medicaid Only Non-SMI","SSI Medicaid Only SMI","Dual Eligible","Child Welfare","HIV/AIDS Dual Eligible","HIV/AIDS Medicaid Only","LTC Dual Eligible","LTC Medicaid Only"]
["Hospital Services",2.1,"Inpatient FFS",{"$f":"SUM(E20:N20)","v":0},{"$nulls":10},{"$f":"SUM(P20:Y20)","v":0},{"$nulls":10},{"$f":"SUM(AA20:AJ20)","v":0},{"$nulls":10},{"$f":"SUM(AL20:AU20)","v":0},{"$nulls":11},{"$f":"SUM(AX20:BG20)+AV20","v":0},{"$f":"E20+P20+AA20+AL20","v":0},0,0,0,0,0,0,0,0,0]
[null,2.2,"Ending IBNP for Inpatient Hospital Services",0,{"$nulls":10},0,{"$nulls":10},0,{"$nulls":10},0,{"$nulls":11},{"$f":"SUM(AX21:BG21)+AV21","v":0},0,0,0,0,0,0,0,0,0,0]
[null,2.3,"Outpatient FFS: ER",0,{"$nulls":10},0,{"$nulls":10},0,{"$nulls":10},0,{"$nulls":11},0,0,0,0,0,0,0,0,0,0,0]
[null,2.4,"Outpatient FFS: Other than ER ",0,{"$nulls":10},0,{"$nulls":10},0,{"$nulls":10},0,{"$nulls":11},0,0,0,0,0,0,0,0,0,0,0]
[null,2.5,"Ending IBNP for Outpatient Hospital Services",0,{"$nulls":10},0,{"$nulls":10},0,{"$nulls":10},0,{"$nulls":11},0,0,0,0,0,0,0,0,0,0,0]
[null,"2.6","Subcapitated Hospital Services",0,{"$nulls":10},0,{"$nulls":10},0,{"$nulls":10},0,{"$nulls":11},0,0,0,0,0,0,0,0,0,0,0]
[null,"2.7","Hospital Settlements/AP",0,{"$nulls":10},0,{"$nulls":10},0,{"$nulls":10},0,{"$nulls":11},0,0,0,0,0,0,0,0,0,0,0]
[null,"2.7.1","Transplant Services",0,{"$nulls":10},0,{"$nulls":10},0,{"$nulls":10},0,{"$nulls":11},0,0,0,0,0,0,0,0,0,0,0]
[null,"2.8","Total Hospital Services",{"$f":"SUM(D20:D27)","v":0},{"$f":"SUM(E20:E27)","v":0},0,0,0,0,0,0,0,0,0,{"$f":"SUM(O20:O27)","v":0},{"$f":"SUM(P20:P27)","v":0},0,0,0,0,0,0,0,0,0,{"$f":"SUM(Z20:Z27)","v":0},{"$f":"SUM(AA20:AA27)","v":0},0,0,0,0,0,0,0,0,0,{"$f":"SUM(AK20:AK27)","v":0},{"$f":"SUM(AL20:AL27)","v":0},0,0,0,0,0,0,0,0,0,{"$f":"SUM(AV20:AV27)","v":0},{"$f":"SUM(AW20:AW27)","v":0},{"$f":"SUM(AX20:AX27)","v":0},0,0,0,0,0,0,0,0,0]
["Professional Services",3.1,"Primary Care FFS",{"$f":"SUM(E29:N29)","v":0},{"$nulls":10},{"$f":"SUM(P29:Y29)","v":0},{"$nulls":10},{"$f":"SUM(AA29:AJ29)","v":0},{"$nulls":10},{"$f":"SUM(AL29:AU29)","v":0},{"$nulls":11},{"$f":"SUM(AX29:BG29)+AV29","v":0},{"$f":"E29+P29+AA29+AL29","v":0},0,0,0,0,0,0,0,0,0]
[null,3.2,"Specialty Care FFS",0,{"$nulls":10},0,{"$nulls":10},0,{"$nulls":10},0,{"$nulls":11},0,0,0,0,0,0,0,0,0,0,0]
[null,3.3,"Other Professional FFS",0,{"$nulls":10},0,{"$nulls":10},0,{"$nulls":10},0,{"$nulls":11},0,0,0,0,0,0,0,0,0,0,0]
[null,"3.4","§ 1202 PCP Payments to providers",0,{"$nulls":10},{"$f":"SUM(P32:Y32)","v":0},{"$nulls":10},{"$f":"SUM(AA32:AJ32)","v":0},{"$nulls":10},{"$f":"SUM(AL32:AU32)","v":0},{"$nulls":11},{"$f":"SUM(AX32:BG32)+AV32","v":0},0,0,0,0,0,0,0,0,0,0]
[null,"3.5","Subcapitated Professional Services",0,{"$nulls":10},0,{"$nulls":10},0,{"$nulls":10},0,{"$nulls":11},{"$f":"SUM(AX33:BG33)+AV33","v":0},0,0,0,0,0,0,0,0,0,0]
[null,"3.6","Ending IBNP for Professional Services",0,{"$nulls":10},0,{"$nulls":10},0,{"$nulls":10},0,{"$nulls":11},0,0,0,0,0,0,0,0,0,0,0]
[null,"3.7","Professional Settlements/AP",0,{"$nulls":10},0,{"$nulls":10},0,{"$nulls":10},0,{"$nulls":11},0,0,0,0,0,0,0,0,0,0,0]
[null,"3.8","Total Physician Services",{"$f":"SUM(D29:D35)","v":0},0,0,0,0,0,0,0,0,0,0,0,0,0,0,0,0,0,0,0,0,0,0,0,0,0,0,0,0,0,0,0,0,0,0,0,0,0,0,0,0,0,0,0,0,0,0,0,0,0,0,0,0,0,0,0]
["Maternity Services","4.1.1","Maternity Services",{"$f":"SUM(E37:N37)","v":0},{"$nulls":10},{"$f":"SUM(P37:Y37)","v":0},{"$nulls":10},{"$f":"SUM(AA37:AJ37)","v":0},{"$nulls":10},{"$f":"SUM(AL37:AU37)","v":0},{"$nulls":11},{"$f":"SUM(AX37:BG37)+AV37","v":0},{"$f":"E37+P37+AA37+AL37","v":0},{"$f":"F37+Q37+AB37+AM37","v":0},{"$f":"G37+R37+AC37+AN37","v":0},0,0,0,0,0,0,0]
[null,"4.2.1","Ending IBNP for Maternity Services",{"$f":"SUM(E38:N38)","v":0},{"$nulls":10},{"$f":"SUM(P38:Y38)","v":0},{"$nulls":10},{"$f":"SUM(AA38:AJ38)","v":0},{"$nulls":10},{"$f":"SUM(AL38:AU38)","v":0},{"$nulls":11},{"$f":"SUM(AX38:BG38)+AV38","v":0},{"$f":"E38+P38+AA38+AL38","v":0},0,{"$f":"G38+R38+AC38+AN38","v":0},0,0,0,0,0,0,0]
[null,"4.3.1","Maternity Settlements/AP",{"$f":"SUM(E39:N39)","v":0},{"$nulls":10},{"$f":"SUM(P39:Y39)","v":0},{"$nulls":10},{"$f":"SUM(AA39:AJ39)","v":0},{"$nulls":10},{"$f":"SUM(AL39:AU39)","v":0},{"$nulls":11},{"$f":"SUM(AX39:BG39)+AV39","v":0},{"$f":"E39+P39+AA39+AL39","v":0},0,{"$f":"G39+R39+AC39+AN39","v":0},0,0,0,0,0,0,0]
[null,"4.4.1","Total Maternity Services",{"$f":"SUM(D37:D39)","v":0},0,0,0,0,0,0,0,0,0,0,{"$f":"SUM(O37:O39)","v":0},0,0,0,0,0,{"$f":"SUM(U37:U39)","v":0},0,0,0,0,0,0,0,0,0,0,0,0,{"$f":"SUM(AH37:AH39)","v":0},0,0,0,0,0,0,0,0,0,0,0,0,0,0,0,{"$f":"SUM(AX37:AX39)","v":0},{"$f":"SUM(AY37:AY39)","v":0},0,0,0,0,0,0,0,0]
["Mental Health",5.1,"Mental Health & Substance Abuse FFS",{"$f":"SUM(E41:N41)","v":0},{"$nulls":10},{"$f":"SUM(P41:Y41)","v":0},{"$nulls":10},{"$f":"SUM(AA41:AJ41)","v":0},{"$nulls":10},{"$f":"SUM(AL41:AU41)","v":0},{"$nulls":11},{"$f":"SUM(AX41:BG41)+AV41","v":0},{"$f":"E41+P41+AA41+AL41","v":0},{"$f":"F41+Q41+AB41+AM41","v":0},0,0,0,0,0,0,0,0]
[null,5.2,"Mental Health & Substance Abuse Subcapitation",{"$f":"SUM(E42:N42)","v":0},{"$nulls":10},{"$f":"SUM(P42:Y42)","v":0},{"$nulls":10},{"$f":"SUM(AA42:AJ42)","v":0},{"$nulls":10},{"$f":"SUM(AL42:AU42)","v":0},{"$nulls":11},{"$f":"SUM(AX42:BG42)+AV42","v":0},{"$f":"E42+P42+AA42+AL42","v":0},0,{"$f":"G42+R42+AC42+AN42","v":0},0,0,0,0,0,0,0]
[null,5.3,"Ending IBNP for Mental Health & Substance Abuse",{"$f":"SUM(E43:N43)","v":0},{"$nulls":10},{"$f":"SUM(P43:Y43)","v":0},{"$nulls":10},{"$f":"SUM(AA43:AJ43)","v":0},{"$nulls":10},{"$f":"SUM(AL43:AU43)","v":0},{"$nulls":11},{"$f":"SUM(AX43:BG43)+AV43","v":0},{"$f":"E43+P43+AA43+AL43","v":0},0,{"$f":"G43+R43+AC43+AN43","v":0},0,0,0,0,0,0,0]
[null,"5.4","Mental Health Settlements/AP",{"$f":"SUM(E44:N44)","v":0},{"$nulls":10},{"$f":"SUM(P44:Y44)","v":0},{"$nulls":10},{"$f":"SUM(AA44:AJ44)","v":0},{"$nulls":10},{"$f":"SUM(AL44:AU44)","v":0},{"$nulls":11},{"$f":"SUM(AX44:BG44)+AV44","v":0},{"$f":"E44+P44+AA44+AL44","v":0},0,{"$f":"G44+R44+AC44+AN44","v":0},0,0,0,0,0,0,0]
[null,"5.5","Total Mental Health & Substance Abuse Services",{"$f":"SUM(D41:D44)","v":0},{"$f":"SUM(E41:E44)","v":0},0,0,0,{"$f":"SUM(I41:I44)","v":0},0,0,0,0,0,0,0,0,0,0,0,0,0,0,0,0,0,0,0,0,0,0,0,0,0,0,0,0,0,0,0,0,0,0,0,0,0,0,0,0,0,0,0,0,0,0,0,0,0,0]
["Dental",6.1,"Dental FFS",{"$f":"SUM(E46:N46)","v":0},{"$nulls":10},{"$f":"SUM(P46:Y46)","v":0},{"$nulls":10},{"$f":"SUM(AA46:AJ46)","v":0},{"$nulls":10},{"$f":"SUM(AL46:AU46)","v":0},{"$nulls":11},{"$f":"SUM(AX46:BG46)+AV46","v":0},{"$f":"E46+P46+AA46+AL46","v":0},{"$f":"F46+Q46+AB46+AM46","v":0},0,0,0,0,0,0,0,0]
[null,6.2,"Dental Subcapitation",{"$f":"SUM(E47:N47)","v":0},{"$nulls":10},{"$f":"SUM(P47:Y47)","v":0},{"$nulls":10},{"$f":"SUM(AA47:AJ47)","v":0},{"$nulls":10},{"$f":"SUM(AL47:AU47)","v":0},{"$nulls":11},{"$f":"SUM(AX47:BG47)+AV47","v":0},{"$f":"E47+P47+AA47+AL47","v":0},0,{"$f":"G47+R47+AC47+AN47","v":0},0,0,0,0,0,0,0]
[null,6.3,"Ending IBNP for Dental Services",{"$f":"SUM(E48:N48)","v":0},{"$nulls":10},{"$f":"SUM(P48:Y48)","v":0},{"$nulls":10},{"$f":"SUM(AA48:AJ48)","v":0},{"$nulls":10},{"$f":"SUM(AL48:AU48)","v":0},{"$nulls":11},{"$f":"SUM(AX48:BG48)+AV48","v":0},{"$f":"E48+P48+AA48+AL48","v":0},0,{"$f":"G48+R48+AC48+AN48","v":0},0,0,0,0,0,0,0]
[null,"6.4","Dental Settlements/AP",{"$f":"SUM(E49:N49)","v":0},{"$nulls":10},{"$f":"SUM(P49:Y49)","v":0},{"$nulls":10},{"$f":"SUM(AA49:AJ49)","v":0},{"$nulls":10},{"$f":"SUM(AL49:AU49)","v":0},{"$nulls":11},{"$f":"SUM(AX49:BG49)+AV49","v":0},{"$f":"E49+P49+AA49+AL49","v":0},0,{"$f":"G49+R49+AC49+AN49","v":0},0,0,0,0,0,0,0]
[null,"6.5","Total Dental Services",{"$f":"SUM(D46:D49)","v":0},{"$f":"SUM(E46:E49)","v":0},0,0,0,0,0,0,0,0,0,0,0,0,0,0,0,0,0,0,0,0,0,0,0,0,0,0,0,0,0,0,0,0,0,0,0,0,0,0,0,0,0,0,0,0,0,0,0,0,0,0,0,0,0,0]
["Transportation",7.1,"Transportation FFS",{"$f":"SUM(E51:N51)","v":0},{"$nulls":10},{"$f":"SUM(P51:Y51)","v":0},{"$nulls":10},{"$f":"SUM(AA51:AJ51)","v":0},{"$nulls":10},{"$f":"SUM(AL51:AU51)","v":0},{"$nulls":11},{"$f":"SUM(AX51:BG51)+AV51","v":0},{"$f":"E51+P51+AA51+AL51","v":0},{"$f":"F51+Q51+AB51+AM51","v":0},0,0,0,0,0,0,0,0]
[null,7.2,"Transportation Subcapitation",{"$f":"SUM(E52:N52)","v":0},{"$nulls":10},{"$f":"SUM(P52:Y52)","v":0},{"$nulls":10},{"$f":"SUM(AA52:AJ52)","v":0},{"$nulls":10},{"$f":"SUM(AL52:AU52)","v":0},{"$nulls":11},{"$f":"SUM(AX52:BG52)+AV52","v":0},{"$f":"E52+P52+AA52+AL52","v":0},0,{"$f":"G52+R52+AC52+AN52","v":0},0,0,0,0,0,0,0]
[null,7.3,"Ending IBNP for Transportation",{"$f":"SUM(E53:N53)","v":0},{"$nulls":10},{"$f":"SUM(P53:Y53)","v":0},{"$nulls":10},{"$f":"SUM(AA53:AJ53)","v":0},{"$nulls":10},{"$f":"SUM(AL53:AU53)","v":0},{"$nulls":11},{"$f":"SUM(AX53:BG53)+AV53","v":0},{"$f":"E53+P53+AA53+AL53","v":0},0,{"$f":"G53+R53+AC53+AN53","v":0},0,0,0,0,0,0,0]
[null,"7.4","Transportation Settlements/AP",{"$f":"SUM(E54:N54)","v":0},{"$nulls":10},{"$f":"SUM(P54:Y54)","v":0},{"$nulls":10},{"$f":"SUM(AA54:AJ54)","v":0},{"$nulls":10},{"$f":"SUM(AL54:AU54)","v":0},{"$nulls":11},{"$f":"SUM(AX54:BG54)+AV54","v":0},{"$f":"E54+P54+AA54+AL54","v":0},0,{"$f":"G54+R54+AC54+AN54","v":0},0,0,0,0,0,0,0]
[null,"7.5","Total Transportation Services",{"$f":"SUM(D51:D54)","v":0},{"$f":"SUM(E51:E54)","v":0},0,0,0,0,0,0,0,0,0,0,0,0,0,0,0,0,0,0,{"$f":"SUM(X51:X54)","v":0},0,0,0,0,0,0,0,0,0,0,0,0,0,0,0,0,0,0,0,0,0,0,0,0,0,0,0,0,0,0,0,0,0,0,0]
["Pharmacy",8.1,"Prescription Drugs FFS",{"$f":"SUM(E56:N56)","v":0},{"$nulls":10},{"$f":"SUM(P56:Y56)","v":0},{"$nulls":10},{"$f":"SUM(AA56:AJ56)","v":0},{"$nulls":10},{"$f":"SUM(AL56:AU56)","v":0},{"$nulls":11},{"$f":"SUM(AX56:BG56)+AV56","v":0},{"$f":"E56+P56+AA56+AL56","v":0},0,0,0,0,0,0,0,0,0]
[null,"8.2","Hepatitis C Prescription Drug FFS",0,{"$nulls":10},0,{"$nulls":10},0,{"$nulls":10},0,{"$nulls":11},{"$f":"SUM(AX57:BG57)+AV57","v":0},0,0,0,0,0,0,0,0,0,0]
[null,"8.3","Ending IBNP for Prescription Drugs",0,{"$nulls":10},0,{"$nulls":10},0,{"$nulls":10},0,{"$nulls":11},0,0,0,0,0,0,0,0,0,0,0]
[null,"8.4","Prescription Drug Rebates ",0,{"$nulls":10},0,{"$nulls":10},0,{"$nulls":10},0,{"$nulls":11},0,0,0,0,0,0,0,0,0,0,0]
[null,"8.5","Ending accrual for Rebates receivable",0,{"$nulls":10},0,{"$nulls":10},0,{"$nulls":10},0,{"$nulls":11},0,0,0,0,0,0,0,0,0,0,0]
[null,"8.6","Prescription Drugs Subcapitation",0,{"$nulls":10},0,{"$nulls":10},0,{"$nulls":10},0,{"$nulls":11},0,0,0,0,0,0,0,0,0,0,0]
[null,"8.7","Prescription Drug Settlements/AP",0,{"$nulls":10},0,{"$nulls":10},0,{"$nulls":10},0,{"$nulls":11},0,0,0,0,0,0,0,0,0,0,0]
[null,"8.8","Total Prescription Drugs",{"$f":"SUM(D56:D62)","v":0},{"$f":"SUM(E56:E62)","v":0},0,0,0,0,0,0,0,0,0,0,0,0,0,0,0,0,0,0,0,0,0,0,0,0,0,0,0,0,0,0,0,0,0,0,0,0,0,0,0,0,0,0,0,0,0,0,0,0,0,0,0,0,0,0]
["Other Services",9.1,"Home Health, Private Duty Nursing, Personal Care FFS",{"$f":"SUM(E64:L64)","v":0},{"$nulls":10},{"$f":"SUM(P64:W64)","v":0},{"$nulls":10},{"$f":"SUM(AA64:AH64)","v":0},{"$nulls":10},{"$f":"SUM(AL64:AS64)","v":0},{"$nulls":11},{"$f":"SUM(AX64:BE64)+AV64","v":0},{"$f":"E64+P64+AA64+AL64","v":0},0,0,0,0,0,0,0]
[null,"9.2","Hospice FFS",{"$f":"SUM(E65:L65)","v":0},{"$nulls":10},{"$f":"SUM(P65:W65)","v":0},{"$nulls":10},{"$f":"SUM(AA65:AH65)","v":0},{"$nulls":10},{"$f":"SUM(AL65:AS65)","v":0},{"$nulls":11},{"$f":"SUM(AX65:BE65)+AV65","v":0},0,0,0,0,0,0,0,0]
[null,"9.3","DME FFS",{"$f":"SUM(E66:L66)","v":0},{"$nulls":10},{"$f":"SUM(P66:W66)","v":0},{"$nulls":10},{"$f":"SUM(AA66:AH66)","v":0},{"$nulls":10},{"$f":"SUM(AL66:AS66)","v":0},{"$nulls":11},0,0,0,0,0,0,0,0,0]
[null,"9.4","Other State Plan Services FFS",{"$f":"SUM(E67:N67)","v":0},{"$nulls":10},{"$f":"SUM(P67:Y67)","v":0},{"$nulls":10},{"$f":"SUM(AA67:AJ67)","v":0},{"$nulls":10},{"$f":"SUM(AL67:AU67)","v":0},{"$nulls":11},{"$f":"SUM(AX67:BG67)+AV67","v":0},0,0,0,0,0,0,0,0,0,0]
[null,"9.5","Other Services Subcapitation",{"$f":"SUM(E68:N68)","v":0},{"$nulls":10},{"$f":"SUM(P68:Y68)","v":0},{"$nulls":10},{"$f":"SUM(AA68:AJ68)","v":0},{"$nulls":10},{"$f":"SUM(AL68:AU68)","v":0},{"$nulls":11},{"$f":"SUM(AX68:BG68)+AV68","v":0},0,0,0,0,0,0,0,0,0,0]
[null,"9.6","Ending IBNP for Other Services",{"$f":"SUM(E69:N69)","v":0},{"$nulls":10},{"$f":"SUM(P69:Y69)","v":0},{"$nulls":10},{"$f":"SUM(AA69:AJ69)","v":0},{"$nulls":10},{"$f":"SUM(AL69:AU69)","v":0},{"$nulls":11},{"$f":"SUM(AX69:BG69)+AV69","v":0},0,0,0,0,0,0,0,0,0,0]
[null,"9.7","Other Services Settlements/AP",{"$f":"SUM(E70:N70)","v":0},{"$nulls":10},{"$f":"SUM(P70:Y70)","v":0},{"$nulls":10},{"$f":"SUM(AA70:AJ70)","v":0},{"$nulls":10},{"$f":"SUM(AL70:AU70)","v":0},{"$nulls":11},{"$f":"SUM(AX70:BG70)+AV70","v":0},0,0,0,0,0,0,0,0,0,0]
[null,"9.8","Total Other Services",{"$f":"SUM(D64:D70)","v":0},{"$f":"SUM(E64:E70)","v":0},0,0,0,0,0,0,0,{"$f":"SUM(M67:M70)","v":0},{"$f":"SUM(N67:N70)","v":0},0,0,0,0,0,0,0,0,0,{"$f":"SUM(X67:X70)","v":0},{"$f":"SUM(Y67:Y70)","v":0},0,0,0,0,0,0,0,0,0,{"$f":"SUM(AI67:AI70)","v":0},{"$f":"SUM(AJ67:AJ70)","v":0},0,0,0,0,0,0,0,0,0,{"$f":"SUM(AT67:AT70)","v":0},{"$f":"SUM(AU67:AU70)","v":0},{"$f":"SUM(AV64:AV70)","v":0},0,0,0,0,0,0,0,{"$f":"SUM(BD64:BD70)","v":0},{"$f":"SUM(BE64:BE70)","v":0},{"$f":"SUM(BF67:BF70)","v":0},{"$f":"SUM(BG67:BG70)","v":0}]
["Expanded Benefits","10.1","Expanded Benefits FFS",{"$f":"SUM(E72:N72)","v":0},{"$nulls":10},{"$f":"SUM(P72:Y72)","v":0},{"$nulls":10},{"$f":"SUM(AA72:AJ72)","v":0},{"$nulls":10},{"$f":"SUM(AL72:AU72)","v":0},{"$nulls":11},{"$f":"SUM(AX72:BG72)+AV72","v":0},{"$f":"E72+P72+AA72+AL72","v":0},{"$f":"F72+Q72+AB72+AM72","v":0},0,0,0,0,0,0,0,0]
[null,"10.2","Expanded Benefits Subcapitation",{"$f":"SUM(E73:N73)","v":0},{"$nulls":10},{"$f":"SUM(P73:Y73)","v":0},{"$nulls":10},{"$f":"SUM(AA73:AJ73)","v":0},{"$nulls":10},{"$f":"SUM(AL73:AU73)","v":0},{"$nulls":11},{"$f":"SUM(AX73:BG73)+AV73","v":0},{"$f":"E73+P73+AA73+AL73","v":0},0,{"$f":"G73+R73+AC73+AN73","v":0},0,0,0,0,0,0,0]
[null,"10.3","Ending IBNP for Expanded Benefits",{"$f":"SUM(E74:N74)","v":0},{"$nulls":10},{"$f":"SUM(P74:Y74)","v":0},{"$nulls":10},{"$f":"SUM(AA74:AJ74)","v":0},{"$nulls":10},{"$f":"SUM(AL74:AU74)","v":0},{"$nulls":11},{"$f":"SUM(AX74:BG74)+AV74","v":0},{"$f":"E74+P74+AA74+AL74","v":0},0,{"$f":"G74+R74+AC74+AN74","v":0},0,0,0,0,0,0,0]
[null,"10.4","Expanded Benefits Settlements/AP",{"$f":"SUM(E75:N75)","v":0},{"$nulls":10},{"$f":"SUM(P75:Y75)","v":0},{"$nulls":10},{"$f":"SUM(AA75:AJ75)","v":0},{"$nulls":10},{"$f":"SUM(AL75:AU75)","v":0},{"$nulls":11},{"$f":"SUM(AX75:BG75)+AV75","v":0},{"$f":"E75+P75+AA75+AL75","v":0},0,{"$f":"G75+R75+AC75+AN75","v":0},0,0,0,0,0,0,0]
[null,"10.5","Total Expanded Benefits",{"$f":"SUM(D72:D75)","v":0},{"$f":"SUM(E72:E75)","v":0},0,0,0,0,0,0,0,0,0,0,0,0,0,0,0,0,0,0,{"$f":"SUM(X72:X75)","v":0},0,0,0,0,0,0,0,0,0,0,0,0,0,0,0,0,0,0,0,0,0,0,0,0,0,0,0,0,0,0,0,0,0,0,0]
["Totals Before and After Reinsurance","11.1","Total Services Paid Directly FFS",{"$f":"D20+SUM(D22:D23,D27)+SUM(D29:D32)+D37+D41+D46+D51+SUM(D56:D57)+SUM(D59:D60)+SUM(D64:D67)+D72","v":0},{"$f":"E20+SUM(E22:E23,E27)+SUM(E29:E32)+E37+E41+E46+E51+SUM(E56:E57)+SUM(E59:E60)+SUM(E64:E67)+E72","v":0},{"$f":"F20+SUM(F22:F23,F27)+SUM(F29:F32)+F37+F41+F46+F51+SUM(F56:F57)+SUM(F59:F60)+SUM(F64:F67)+F72","v":0},{"$f":"G20+SUM(G22:G23,G27)+SUM(G29:G32)+G37+G41+G46+G51+SUM(G56:G57)+SUM(G59:G60)+SUM(G64:G67)+G72","v":0},0,0,0,0,0,0,0,{"$f":"O20+SUM(O22:O23,O27)+SUM(O29:O32)+O37+O41+O46+O51+SUM(O56:O57)+SUM(O59:O60)+SUM(O64:O67)+O72","v":0},{"$f":"P20+SUM(P22:P23,P27)+SUM(P29:P32)+P37+P41+P46+P51+SUM(P56:P57)+SUM(P59:P60)+SUM(P64:P67)+P72","v":0},0,0,0,0,0,0,0,0,0,{"$f":"Z20+SUM(Z22:Z23,Z27)+SUM(Z29:Z32)+Z37+Z41+Z46+Z51+SUM(Z56:Z57)+SUM(Z59:Z60)+SUM(Z64:Z67)+Z72","v":0},{"$f":"AA20+SUM(AA22:AA23,AA27)+SUM(AA29:AA32)+AA37+AA41+AA46+AA51+SUM(AA56:AA57)+SUM(AA59:AA60)+SUM(AA64:AA67)+AA72","v":0},0,0,0,0,0,0,0,0,0,{"$f":"AK20+SUM(AK22:AK23,AK27)+SUM(AK29:AK32)+AK37+AK41+AK46+AK51+SUM(AK56:AK57)+SUM(AK59:AK60)+SUM(AK64:AK67)+AK72","v":0},{"$f":"AL20+SUM(AL22:AL23,AL27)+SUM(AL29:AL32)+AL37+AL41+AL46+AL51+SUM(AL56:AL57)+SUM(AL59:AL60)+SUM(AL64:AL67)+AL72","v":0},0,0,0,0,0,0,0,0,0,{"$f":"AV20+SUM(AV22:AV23,AV27)+SUM(AV29:AV32)+AV37+AV41+AV46+AV51+SUM(AV56:AV57)+SUM(AV59:AV60)+SUM(AV64:AV67)+AV72","v":0},{"$f":"AW20+SUM(AW22:AW23,AW27)+SUM(AW29:AW32)+AW37+AW41+AW46+AW51+SUM(AW56:AW57)+SUM(AW59:AW60)+SUM(AW64:AW67)+AW72","v":0},{"$f":"AX20+SUM(AX22:AX23,AX27)+SUM(AX29:AX32)+AX37+AX41+AX46+AX51+SUM(AX56:AX57)+SUM(AX59:AX60)+SUM(AX64:AX67)+AX72","v":0},0,0,0,0,0,0,0,0,0]
[null,"11.2","Total Services Paid Directly -- IBNP",{"$f":"D21+D24+D34+D38+D43+D48+D53+D58+D69+D74","v":0},{"$f":"E21+E24+E34+E38+E43+E48+E53+E58+E69+E74","v":0},{"$f":"F21+F24+F34+F38+F43+F48+F53+F58+F69+F74","v":0},{"$f":"G21+G24+G34+G38+G43+G48+G53+G58+G69+G74","v":0},0,0,0,0,0,0,0,{"$f":"O21+O24+O34+O38+O43+O48+O53+O58+O69+O74","v":0},{"$f":"P21+P24+P34+P38+P43+P48+P53+P58+P69+P74","v":0},0,0,0,0,0,0,0,0,0,{"$f":"Z21+Z24+Z34+Z38+Z43+Z48+Z53+Z58+Z69+Z74","v":0},{"$f":"AA21+AA24+AA34+AA38+AA43+AA48+AA53+AA58+AA69+AA74","v":0},0,0,0,0,0,0,0,0,0,{"$f":"AK21+AK24+AK34+AK38+AK43+AK48+AK53+AK58+AK69+AK74","v":0},{"$f":"AL21+AL24+AL34+AL38+AL43+AL48+AL53+AL58+AL69+AL74","v":0},0,0,0,0,0,0,0,0,0,{"$f":"AV21+AV24+AV34+AV38+AV43+AV48+AV53+AV58+AV69+AV74","v":0},{"$f":"AW21+AW24+AW34+AW38+AW43+AW48+AW53+AW58+AW69+AW74","v":0},{"$f":"AX21+AX24+AX34+AX38+AX43+AX48+AX53+AX58+AX69+AX74","v":0},0,0,0,0,0,0,0,0,0]
[null,"11.3","Total Services Paid through Subcapitation",{"$f":"D25+D33+D42+D47+D52+D61+D68+D73","v":0},{"$f":"E25+E33+E42+E47+E52+E61+E68+E73","v":0},{"$f":"F25+F33+F42+F47+F52+F61+F68+F73","v":0},{"$f":"G25+G33+G42+G47+G52+G61+G68+G73","v":0},0,0,0,0,0,0,0,{"$f":"O25+O33+O42+O47+O52+O61+O68+O73","v":0},{"$f":"P25+P33+P42+P47+P52+P61+P68+P73","v":0},0,0,0,0,0,0,0,0,0,{"$f":"Z25+Z33+Z42+Z47+Z52+Z61+Z68+Z73","v":0},{"$f":"AA25+AA33+AA42+AA47+AA52+AA61+AA68+AA73","v":0},0,0,0,0,0,0,0,0,0,{"$f":"AK25+AK33+AK42+AK47+AK52+AK61+AK68+AK73","v":0},{"$f":"AL25+AL33+AL42+AL47+AL52+AL61+AL68+AL73","v":0},0,0,0,0,0,0,0,0,0,{"$f":"AV25+AV33+AV42+AV47+AV52+AV61+AV68+AV73","v":0},{"$f":"AW25+AW33+AW42+AW47+AW52+AW61+AW68+AW73","v":0},{"$f":"AX25+AX33+AX42+AX47+AX52+AX61+AX68+AX73","v":0},0,0,0,0,0,0,0,0,0]
[null,"11.4","Total Services Paid by Settlements/AP",{"$f":"D26+D35+D39+D44+D49+D54+D62+D70+D75","v":0},{"$f":"E26+E35+E39+E44+E49+E54+E62+E70+E75","v":0},{"$f":"F26+F35+F39+F44+F49+F54+F62+F70+F75","v":0},{"$f":"G26+G35+G39+G44+G49+G54+G62+G70+G75","v":0},0,0,0,0,0,0,0,{"$f":"O26+O35+O39+O44+O49+O54+O62+O70+O75","v":0},{"$f":"P26+P35+P39+P44+P49+P54+P62+P70+P75","v":0},0,0,0,0,0,0,0,0,0,{"$f":"Z26+Z35+Z39+Z44+Z49+Z54+Z62+Z70+Z75","v":0},{"$f":"AA26+AA35+AA39+AA44+AA49+AA54+AA62+AA70+AA75","v":0},0,0,0,0,0,0,0,0,0,{"$f":"AK26+AK35+AK39+AK44+AK49+AK54+AK62+AK70+AK75","v":0},{"$f":"AL26+AL35+AL39+AL44+AL49+AL54+AL62+AL70+AL75","v":0},0,0,0,0,0,0,0,0,0,0,{"$f":"AW26+AW35+AW39+AW44+AW49+AW54+AW62+AW70+AW75","v":0},{"$f":"AX26+AX35+AX39+AX44+AX49+AX54+AX62+AX70+AX75","v":0},0,0,0,0,0,0,0,0,0]
[null,"11.5","TPL & Fraud/Abuse Recoveries",{"$f":"SUM(E81:N81)","v":0},{"$nulls":10},{"$f":"SUM(P81:Y81)","v":0},{"$nulls":10},{"$f":"SUM(AA81:AJ81)","v":0},{"$nulls":10},{"$f":"SUM(AL81:AU81)","v":0},{"$nulls":11},{"$f":"SUM(AX81:BG81)+AV81","v":0},{"$f":"E81+P81+AA81+AL81","v":0},{"$f":"F81+Q81+AB81+AM81","v":0},{"$f":"G81+R81+AC81+AN81","v":0},{"$f":"H81+S81+AD81+AO81","v":0},0,0,0,0,0,0]
[null,"11.6.1","Premium Deficiency Reserve",{"$f":"SUM(E82:N82)","v":0},{"$nulls":10},{"$f":"SUM(P82:Y82)","v":0},{"$nulls":10},{"$f":"SUM(AA82:AJ82)","v":0},{"$nulls":10},{"$f":"SUM(AL82:AU82)","v":0},{"$nulls":11},{"$f":"SUM(AX82:BG82)+AV82","v":0},{"$f":"E82+P82+AA82+AL82","v":0},0,{"$f":"G82+R82+AC82+AN82","v":0},0,0,0,0,0,0,0]
[null,"11.7","Subtotal Benefit Expense before Reinsurance",{"$f":"SUM(D77:D82)","v":0},{"$f":"SUM(E77:E82)","v":0},0,0,0,0,0,0,0,0,0,0,0,0,0,0,0,0,0,0,0,0,0,0,0,0,0,0,0,0,0,0,0,0,0,0,0,0,0,0,0,0,0,0,0,0,0,0,0,0,0,0,0,0,0,0]
[null,"11.8","Reinsurance Premiums",{"$f":"SUM(E84:N84)","v":0},{"$nulls":10},{"$f":"SUM(P84:Y84)","v":0},{"$nulls":10},{"$f":"SUM(AA84:AJ84)","v":0},{"$nulls":10},{"$f":"SUM(AL84:AU84)","v":0},{"$nulls":11},{"$f":"SUM(AX84:BG84)+AV84","v":0},{"$f":"E84+P84+AA84+AL84","v":0},{"$f":"F84+Q84+AB84+AM84","v":0},0,0,0,0,0,0,0,0]
[null,"11.9","Reinsurance Recoveries",{"$f":"SUM(E85:N85)","v":0},{"$nulls":10},{"$f":"SUM(P85:Y85)","v":0},{"$nulls":10},{"$f":"SUM(AA85:AJ85)","v":0},{"$nulls":10},{"$f":"SUM(AL85:AU85)","v":0},{"$nulls":11},{"$f":"SUM(AX85:BG85)+AV85","v":0},{"$f":"E85+P85+AA85+AL85","v":0},0,{"$f":"G85+R85+AC85+AN85","v":0},0,0,0,0,0,0,0]
[null,"11.10","Net cost of Reinsurance",{"$f":"SUM(D84:D85)","v":0},{"$f":"SUM(E84:E85)","v":0},0,0,0,0,0,0,0,0,0,{"$f":"SUM(O84:O85)","v":0},{"$f":"SUM(P84:P85)","v":0},0,0,0,0,0,0,0,0,0,{"$f":"SUM(Z84:Z85)","v":0},{"$f":"SUM(AA84:AA85)","v":0},0,0,0,0,0,0,0,0,0,{"$f":"SUM(AK84:AK85)","v":0},{"$f":"SUM(AL84:AL85)","v":0},{"$f":"SUM(AM84:AM85)","v":0},0,0,0,0,0,0,0,0,0,{"$f":"SUM(AW84:AW85)","v":0},{"$f":"SUM(AX84:AX85)","v":0},0,{"$f":"SUM(AZ84:AZ85)","v":0},0,{"$f":"SUM(BB84:BB85)","v":0},0,0,0,0,0]
[null,"11.11","Grand Total Medical Benefit Expense Net of Reinsurance",{"$f":"D83+D86","v":0},{"$f":"E83+E86","v":0},0,0,0,0,0,0,0,0,0,{"$f":"O83+O86","v":0},{"$f":"P83+P86","v":0},0,0,0,0,0,0,0,0,0,{"$f":"Z83+Z86","v":0},{"$f":"AA83+AA86","v":0},0,0,0,0,0,0,0,0,0,{"$f":"AK83+AK86","v":0},{"$f":"AL83+AL86","v":0},{"$f":"AM83+AM86","v":0},0,0,0,0,0,0,0,0,0,{"$f":"AW83+AW86","v":0},{"$f":"AX83+AX86","v":0},{"$f":"AY83+AY86","v":0},0,0,0,0,0,0,0,0]
["Administrative Expenses, Government-Mandated Assessments, Taxes, and Fees ",null,null,"JANUARY - MARCH (Q1)",{"$nulls":10},"APRIL - JUNE (Q2)",{"$nulls":10},"JULY - SEPTEMBER (Q3)",{"$nulls":10},"OCTOBER - DECEMBER (Q4)",{"$nulls":11},"TOTAL (TO DATE)"]
[{"$nulls":3},"Total","Health Plan","Corporate",{"$nulls":8},"Total","Health Plan","Corporate",{"$nulls":8},"Total","Health Plan","Corporate",{"$nulls":8},"Total","Health Plan","Corporate",{"$nulls":8},"Prior Year Adjustments","Total","Health Plan","Corporate"]
["Administrative Expenses","12.1","Salaries & Benefits",{"$f":"E90+F90","v":0},{"$nulls":10},{"$f":"P90+Q90","v":0},{"$nulls":10},{"$f":"AA90+AB90","v":0},{"$nulls":10},{"$f":"AL90+AM90","v":0},{"$nulls":11},{"$f":"AX90+AY90+AV90","v":0},{"$f":"E90+P90+AA90+AL90","v":0},{"$f":"F90+Q90+AB90+AM90","v":0}]
[null,"12.2","Administrative Services",{"$f":"E91+F91","v":0},{"$nulls":10},{"$f":"P91+Q91","v":0},{"$nulls":10},{"$f":"AA91+AB91","v":0},{"$nulls":10},{"$f":"AL91+AM91","v":0},{"$nulls":11},0,{"$f":"E91+P91+AA91+AL91","v":0},0]
[null,"12.3","Information Systems",0,{"$nulls":10},0,{"$nulls":10},0,{"$nulls":10},0,{"$nulls":11},0,0,0]
[null,"12.4","Marketing Expenses",0,{"$nulls":10},0,{"$nulls":10},0,{"$nulls":10},0,{"$nulls":11},0,0,0]
[null,"12.5","General  Administration",0,{"$nulls":10},0,{"$nulls":10},0,{"$nulls":10},0,{"$nulls":11},0,0,0]
[null,"12.6","Compliance/Regulatory",0,{"$nulls":10},0,{"$nulls":10},0,{"$nulls":10},0,{"$nulls":11},0,0,0]
[null,"12.7","Total Administrative Expenses ",{"$f":"E96+F96","v":0},{"$f":"SUM(E90:E95)","v":0},{"$f":"SUM(F90:F95)","v":0},{"$nulls":8},{"$f":"P96+Q96","v":0},{"$f":"SUM(P90:P95)","v":0},0,{"$nulls":8},{"$f":"AA96+AB96","v":0},{"$f":"SUM(AA90:AA95)","v":0},0,{"$nulls":8},{"$f":"AL96+AM96","v":0},{"$f":"SUM(AL90:AL95)","v":0},0,{"$nulls":8},{"$f":"SUM(AV90:AV95)","v":0},0,{"$f":"SUM(AX90:AX95)","v":0},{"$f":"SUM(AY90:AY95)","v":0}]
["Government-Mandated Assessments, Taxes, and Fees Other Than Income Taxes","13.1","State Premium tax",{"$nulls":45},{"$f":"D97+O97+Z97+AK97+AV97","v":0}]
[null,"13.2","Department of Insurance Assessments",{"$nulls":45},0]
[null,"13.3","Section 9010 Health Insurance Providers Fee",{"$nulls":45},0]
[null,"13.4","Other 1",{"$nulls":45},0]
[null,"13.5","Other 2",{"$nulls":45},0]
[null,"13.6","Other 3",{"$nulls":45},0]
[null,"13.7","Total ",{"$f":"SUM(D97:D102)","v":0},{"$nulls":10},{"$f":"SUM(O97:O102)","v":0},{"$nulls":10},{"$f":"SUM(Z97:Z102)","v":0},{"$nulls":10},{"$f":"SUM(AK97:AK102)","v":0},{"$nulls":10},{"$f":"SUM(AV97:AV102)","v":0},{"$f":"SUM(AW97:AW102)","v":0}]
[null,"14.0","Grand Total Expenses",{"$f":"D87+D96+D103","v":0},{"$nulls":10},{"$f":"O87+O96+O103","v":0},{"$nulls":10},{"$f":"Z87+Z96+Z103","v":0},{"$nulls":10},{"$f":"AK87+AK96+AK103","v":0},{"$nulls":10},{"$f":"AV87+AV96+AV103","v":0},{"$f":"AW87+AW96+AW103","v":0}]
[null,"15.0","Underwriting Gain / (Loss)  --- AKA Pre-tax Earnings from Operations",{"$f":"D17-D104","v":0},{"$nulls":10},{"$f":"O17-O104","v":0},{"$nulls":10},{"$f":"Z17-Z104","v":0},{"$nulls":10},{"$f":"AK17-AK104","v":0},{"$nulls":10},{"$f":"AV17-AV104","v":0},{"$f":"AW17-AW104","v":0}]
[null,"16.0","Income Tax Expense",{"$nulls":45},{"$f":"D106+O106+Z106+AK106+AV106","v":0}]
[null,"17.0","Net Underwriting Gain (Loss)",{"$f":"D105-D106","v":0},{"$nulls":10},{"$f":"O105-O106","v":0},{"$nulls":10},{"$f":"Z105-Z106","v":0},{"$nulls":10},{"$f":"AK105-AK106","v":0},{"$nulls":10},{"$f":"AV105-AV106","v":0},{"$f":"AW105-AW106","v":0}]

{"sheet":"MMA Rev-Exp Region 9","index":15,"n_rows":107,"n_cols":59,"rows_kept":107,"hidden":true,"merged":[[6,3,6,13],[6,14,6,24],[6,25,6,35],[6,36,6,46],[6,48,6,58],[9,0,9,2],[10,0,16,0],[17,0,18,2],[17,3,17,13],[17,14,17,24],[17,25,17,35],[17,36,17,46],[17,48,17,58],[19,0,27,0],[28,0,35,0],[36,0,39,0],[40,0,44,0],[45,0,49,0],[50,0,54,0],[55,0,62,0],[63,0,70,0],[71,0,75,0],[76,0,86,0],[87,0,88,2],[87,3,87,13],[87,14,87,24],[87,25,87,35],[87,36,87,46],[87,48,87,58],[89,0,95,0],[96,0,102,0]]}
["MANAGED MEDICAL ASSISTANCE -- REVENUE AND EXPENSE SCHEDULE - REGION 9"]
[]
["Health Plan:",null,{"$f":"'MMA Rev-Exp Summary'!C3","v":0}]
["Reporting Period:",null,{"$f":"IF('MMA Rev-Exp Summary'!C4=0,\"\",'MMA Rev-Exp Summary'!C4)","v":""}]
["Paid Through:",null,{"$f":"IF('MMA Rev-Exp Summary'!C5=0,\"\",'MMA Rev-Exp Summary'!C5)","v":""}]
["Region 9"]
[{"$nulls":3},"JANUARY - MARCH (Q1)",{"$nulls":10},"APRIL - JUNE (Q2)",{"$nulls":10},"JULY - SEPTEMBER (Q3)",{"$nulls":10},"OCTOBER - DECEMBER (Q4)",{"$nulls":11},"TOTAL (TO DATE)"]
[{"$nulls":3},"Total","TANF Non-SMI","TANF SMI","SSI Medicaid Only Non-SMI","SSI Medicaid Only SMI","Dual Eligible","Child Welfare","HIV/AIDS Dual Eligible","HIV/AIDS Medicaid Only","LTC Dual Eligible","LTC Medicaid Only","Total","TANF Non-SMI","TANF SMI","SSI Medicaid Only Non-SMI","SSI Medicaid Only SMI","Dual Eligible","Child Welfare","HIV/AIDS Dual Eligible","HIV/AIDS Medicaid Only","LTC Dual Eligible","LTC Medicaid Only","Total","TANF Non-SMI","TANF SMI","SSI Medicaid Only Non-SMI","SSI Medicaid Only SMI","Dual Eligible","Child Welfare","HIV/AIDS Dual Eligible","HIV/AIDS Medicaid Only","LTC Dual Eligible","LTC Medicaid Only","Total","TANF Non-SMI","TANF SMI","SSI Medicaid Only Non-SMI","SSI Medicaid Only SMI","Dual Eligible","Child Welfare","HIV/AIDS Dual Eligible","HIV/AIDS Medicaid Only","LTC Dual Eligible","LTC Medicaid Only","Prior Year Adjustments","Total","TANF Non-SMI","TANF SMI","SSI Medicaid Only Non-SMI","SSI Medicaid Only SMI","Dual Eligible","Child Welfare","HIV/AIDS Dual Eligible","HIV/AIDS Medicaid Only","LTC Dual Eligible","LTC Medicaid Only"]
["MEMBER MONTHS",null,null,{"$f":"SUM(E9:N9)","v":0},{"$nulls":10},{"$f":"SUM(P9:Y9)","v":0},{"$nulls":10},{"$f":"SUM(AA9:AJ9)","v":0},{"$nulls":10},{"$f":"SUM(AL9:AU9)","v":0},{"$nulls":11},{"$f":"AK9+Z9+O9+D9+AV9","v":0},{"$f":"AL9+AA9+P9+E9","v":0},{"$f":"AM9+AB9+Q9+F9","v":0},0,0,0,0,0,0,0,0]
["REVENUES"]
["Revenues",1.1,"Capitation",{"$f":"SUM(E11:N11)","v":0},{"$nulls":10},{"$f":"SUM(P11:Y11)","v":0},{"$nulls":10},{"$f":"SUM(AA11:AJ11)","v":0},{"$nulls":10},{"$f":"SUM(AL11:AU11)","v":0},{"$nulls":11},{"$f":"SUM(AX11:BG11)+AV11","v":0},{"$f":"E11+P11+AA11+AL11","v":0},0,0,0,0,0,0,0,0,0]
[null,1.2,"Transplant Kick Payments",0,{"$nulls":10},0,{"$nulls":10},0,{"$nulls":10},0,{"$nulls":11},{"$f":"SUM(AX12:BG12)+AV12","v":0},0,0,{"$f":"G12+R12+AC12+AN12","v":0},0,0,0,0,0,0,0]
[null,"1.3","Hepatitis C Kick Payments",0,{"$nulls":10},0,{"$nulls":10},0,{"$nulls":10},0,{"$nulls":11},0,0,0,{"$f":"G13+R13+AC13+AN13","v":0},0,0,0,0,0,0,0]
[null,"1.4.1","Maternity Kick Payments",0,{"$nulls":10},0,{"$nulls":10},0,{"$nulls":10},0,{"$nulls":11},0,0,0,{"$f":"G14+R14+AC14+AN14","v":0},0,0,0,0,0,0,0]
[null,"1.5","ACA § 9010 related payments",0,{"$nulls":10},0,{"$nulls":10},0,{"$nulls":10},0,{"$nulls":11},0,0,0,{"$f":"G15+R15+AC15+AN15","v":0},0,0,0,0,0,0,0]
[null,"1.6","Other Revenue",0,{"$nulls":10},0,{"$nulls":10},0,{"$nulls":10},0,{"$nulls":11},0,0,0,{"$f":"G16+R16+AC16+AN16","v":0},0,0,0,0,0,0,0]
[null,"1.7","Total Revenue",{"$f":"SUM(D11:D16)","v":0},{"$f":"SUM(E11:E16)","v":0},{"$f":"SUM(F11:F16)","v":0},{"$f":"SUM(G11:G16)","v":0},0,0,0,0,0,0,0,{"$f":"SUM(O11:O16)","v":0},{"$f":"SUM(P11:P16)","v":0},{"$f":"SUM(Q11:Q16)","v":0},{"$f":"SUM(R11:R16)","v":0},0,0,0,0,0,0,0,{"$f":"SUM(Z11:Z16)","v":0},{"$f":"SUM(AA11:AA16)","v":0},{"$f":"SUM(AB11:AB16)","v":0},{"$f":"SUM(AC11:AC16)","v":0},0,0,0,0,0,0,0,{"$f":"SUM(AK11:AK16)","v":0},{"$f":"SUM(AL11:AL16)","v":0},{"$f":"SUM(AM11:AM16)","v":0},0,0,0,0,0,0,0,0,0,{"$f":"SUM(AW11:AW16)","v":0},{"$f":"SUM(AX11:AX16)","v":0},{"$f":"SUM(AY11:AY16)","v":0},0,0,0,0,0,0,0,0]
["BENEFIT EXPENSES",null,null,"JANUARY - MARCH (Q1)",{"$nulls":10},"APRIL - JUNE (Q2)",{"$nulls":10},"JULY - SEPTEMBER (Q3)",{"$nulls":10},"OCTOBER - DECEMBER (Q4)",{"$nulls":11},"TOTAL (TO DATE)"]
[{"$nulls":3},"Total","TANF Non-SMI","TANF SMI","SSI Medicaid Only Non-SMI","SSI Medicaid Only SMI","Dual Eligible","Child Welfare","HIV/AIDS Dual Eligible","HIV/AIDS Medicaid Only","LTC Dual Eligible","LTC Medicaid Only","Total","TANF Non-SMI","TANF SMI","SSI Medicaid Only Non-SMI","SSI Medicaid Only SMI","Dual Eligible","Child Welfare","HIV/AIDS Dual Eligible","HIV/AIDS Medicaid Only","LTC Dual Eligible","LTC Medicaid Only","Total","TANF Non-SMI","TANF SMI","SSI Medicaid Only Non-SMI","SSI Medicaid Only SMI","Dual Eligible","Child Welfare","HIV/AIDS Dual Eligible","HIV/AIDS Medicaid Only","LTC Dual Eligible","LTC Medicaid Only","Total","TANF Non-SMI","TANF SMI","SSI Medicaid Only Non-SMI","SSI Medicaid Only SMI","Dual Eligible","Child Welfare","HIV/AIDS Dual Eligible","HIV/AIDS Medicaid Only","LTC Dual Eligible","LTC Medicaid Only","Prior Year Adjustments","Total","TANF Non-SMI","TANF SMI","SSI Medicaid Only Non-SMI","SSI Medicaid Only SMI","Dual Eligible","Child Welfare","HIV/AIDS Dual Eligible","HIV/AIDS Medicaid Only","LTC Dual Eligible","LTC Medicaid Only"]
["Hospital Services",2.1,"Inpatient FFS",{"$f":"SUM(E20:N20)","v":0},{"$nulls":10},{"$f":"SUM(P20:Y20)","v":0},{"$nulls":10},{"$f":"SUM(AA20:AJ20)","v":0},{"$nulls":10},{"$f":"SUM(AL20:AU20)","v":0},{"$nulls":11},{"$f":"SUM(AX20:BG20)+AV20","v":0},{"$f":"E20+P20+AA20+AL20","v":0},0,0,0,0,0,0,0,0,0]
[null,2.2,"Ending IBNP for Inpatient Hospital Services",0,{"$nulls":10},0,{"$nulls":10},0,{"$nulls":10},0,{"$nulls":11},{"$f":"SUM(AX21:BG21)+AV21","v":0},0,0,0,0,0,0,0,0,0,0]
[null,2.3,"Outpatient FFS: ER",0,{"$nulls":10},0,{"$nulls":10},0,{"$nulls":10},0,{"$nulls":11},0,0,0,0,0,0,0,0,0,0,0]
[null,2.4,"Outpatient FFS: Other than ER ",0,{"$nulls":10},0,{"$nulls":10},0,{"$nulls":10},0,{"$nulls":11},0,0,0,0,0,0,0,0,0,0,0]
[null,2.5,"Ending IBNP for Outpatient Hospital Services",0,{"$nulls":10},0,{"$nulls":10},0,{"$nulls":10},0,{"$nulls":11},0,0,0,0,0,0,0,0,0,0,0]
[null,"2.6","Subcapitated Hospital Services",0,{"$nulls":10},0,{"$nulls":10},0,{"$nulls":10},0,{"$nulls":11},0,0,0,0,0,0,0,0,0,0,0]
[null,"2.7","Hospital Settlements/AP",0,{"$nulls":10},0,{"$nulls":10},0,{"$nulls":10},0,{"$nulls":11},0,0,0,0,0,0,0,0,0,0,0]
[null,"2.7.1","Transplant Services",0,{"$nulls":10},0,{"$nulls":10},0,{"$nulls":10},0,{"$nulls":11},0,0,0,0,0,0,0,0,0,0,0]
[null,"2.8","Total Hospital Services",{"$f":"SUM(D20:D27)","v":0},{"$f":"SUM(E20:E27)","v":0},0,0,0,0,0,0,0,0,0,{"$f":"SUM(O20:O27)","v":0},{"$f":"SUM(P20:P27)","v":0},0,0,0,0,0,0,0,0,0,{"$f":"SUM(Z20:Z27)","v":0},{"$f":"SUM(AA20:AA27)","v":0},0,0,0,0,0,0,0,0,0,{"$f":"SUM(AK20:AK27)","v":0},{"$f":"SUM(AL20:AL27)","v":0},0,0,0,0,0,0,0,0,0,{"$f":"SUM(AV20:AV27)","v":0},{"$f":"SUM(AW20:AW27)","v":0},{"$f":"SUM(AX20:AX27)","v":0},0,0,0,0,0,0,0,0,0]
["Professional Services",3.1,"Primary Care FFS",{"$f":"SUM(E29:N29)","v":0},{"$nulls":10},{"$f":"SUM(P29:Y29)","v":0},{"$nulls":10},{"$f":"SUM(AA29:AJ29)","v":0},{"$nulls":10},{"$f":"SUM(AL29:AU29)","v":0},{"$nulls":11},{"$f":"SUM(AX29:BG29)+AV29","v":0},{"$f":"E29+P29+AA29+AL29","v":0},0,0,0,0,0,0,0,0,0]
[null,3.2,"Specialty Care FFS",0,{"$nulls":10},0,{"$nulls":10},0,{"$nulls":10},0,{"$nulls":11},0,0,0,0,0,0,0,0,0,0,0]
[null,3.3,"Other Professional FFS",0,{"$nulls":10},0,{"$nulls":10},0,{"$nulls":10},0,{"$nulls":11},0,0,0,0,0,0,0,0,0,0,0]
[null,"3.4","§ 1202 PCP Payments to providers",0,{"$nulls":10},{"$f":"SUM(P32:Y32)","v":0},{"$nulls":10},{"$f":"SUM(AA32:AJ32)","v":0},{"$nulls":10},{"$f":"SUM(AL32:AU32)","v":0},{"$nulls":11},{"$f":"SUM(AX32:BG32)+AV32","v":0},0,0,0,0,0,0,0,0,0,0]
[null,"3.5","Subcapitated Professional Services",0,{"$nulls":10},0,{"$nulls":10},0,{"$nulls":10},0,{"$nulls":11},{"$f":"SUM(AX33:BG33)+AV33","v":0},0,0,0,0,0,0,0,0,0,0]
[null,"3.6","Ending IBNP for Professional Services",0,{"$nulls":10},0,{"$nulls":10},0,{"$nulls":10},0,{"$nulls":11},0,0,0,0,0,0,0,0,0,0,0]
[null,"3.7","Professional Settlements/AP",0,{"$nulls":10},0,{"$nulls":10},0,{"$nulls":10},0,{"$nulls":11},0,0,0,0,0,0,0,0,0,0,0]
[null,"3.8","Total Physician Services",{"$f":"SUM(D29:D35)","v":0},0,0,0,0,0,0,0,0,0,0,0,0,0,0,0,0,0,0,0,0,0,0,0,0,0,0,0,0,0,0,0,0,0,0,0,0,0,0,0,0,0,0,0,0,0,0,0,0,0,0,0,0,0,0,0]
["Maternity Services","4.1.1","Maternity Services",{"$f":"SUM(E37:N37)","v":0},{"$nulls":10},{"$f":"SUM(P37:Y37)","v":0},{"$nulls":10},{"$f":"SUM(AA37:AJ37)","v":0},{"$nulls":10},{"$f":"SUM(AL37:AU37)","v":0},{"$nulls":11},{"$f":"SUM(AX37:BG37)+AV37","v":0},{"$f":"E37+P37+AA37+AL37","v":0},{"$f":"F37+Q37+AB37+AM37","v":0},{"$f":"G37+R37+AC37+AN37","v":0},0,0,0,0,0,0,0]
[null,"4.2.1","Ending IBNP for Maternity Services",{"$f":"SUM(E38:N38)","v":0},{"$nulls":10},{"$f":"SUM(P38:Y38)","v":0},{"$nulls":10},{"$f":"SUM(AA38:AJ38)","v":0},{"$nulls":10},{"$f":"SUM(AL38:AU38)","v":0},{"$nulls":11},{"$f":"SUM(AX38:BG38)+AV38","v":0},{"$f":"E38+P38+AA38+AL38","v":0},0,{"$f":"G38+R38+AC38+AN38","v":0},0,0,0,0,0,0,0]
[null,"4.3.1","Maternity Settlements/AP",{"$f":"SUM(E39:N39)","v":0},{"$nulls":10},{"$f":"SUM(P39:Y39)","v":0},{"$nulls":10},{"$f":"SUM(AA39:AJ39)","v":0},{"$nulls":10},{"$f":"SUM(AL39:AU39)","v":0},{"$nulls":11},{"$f":"SUM(AX39:BG39)+AV39","v":0},{"$f":"E39+P39+AA39+AL39","v":0},0,{"$f":"G39+R39+AC39+AN39","v":0},0,0,0,0,0,0,0]
[null,"4.4.1","Total Maternity Services",{"$f":"SUM(D37:D39)","v":0},0,0,0,0,0,0,0,0,0,0,{"$f":"SUM(O37:O39)","v":0},0,0,0,0,0,{"$f":"SUM(U37:U39)","v":0},0,0,0,0,0,0,0,0,0,0,0,0,{"$f":"SUM(AH37:AH39)","v":0},0,0,0,0,0,0,0,0,0,0,0,0,0,0,0,{"$f":"SUM(AX37:AX39)","v":0},{"$f":"SUM(AY37:AY39)","v":0},0,0,0,0,0,0,0,0]
["Mental Health",5.1,"Mental Health & Substance Abuse FFS",{"$f":"SUM(E41:N41)","v":0},{"$nulls":10},{"$f":"SUM(P41:Y41)","v":0},{"$nulls":10},{"$f":"SUM(AA41:AJ41)","v":0},{"$nulls":10},{"$f":"SUM(AL41:AU41)","v":0},{"$nulls":11},{"$f":"SUM(AX41:BG41)+AV41","v":0},{"$f":"E41+P41+AA41+AL41","v":0},{"$f":"F41+Q41+AB41+AM41","v":0},0,0,0,0,0,0,0,0]
[null,5.2,"Mental Health & Substance Abuse Subcapitation",{"$f":"SUM(E42:N42)","v":0},{"$nulls":10},{"$f":"SUM(P42:Y42)","v":0},{"$nulls":10},{"$f":"SUM(AA42:AJ42)","v":0},{"$nulls":10},{"$f":"SUM(AL42:AU42)","v":0},{"$nulls":11},{"$f":"SUM(AX42:BG42)+AV42","v":0},{"$f":"E42+P42+AA42+AL42","v":0},0,{"$f":"G42+R42+AC42+AN42","v":0},0,0,0,0,0,0,0]
[null,5.3,"Ending IBNP for Mental Health & Substance Abuse",{"$f":"SUM(E43:N43)","v":0},{"$nulls":10},{"$f":"SUM(P43:Y43)","v":0},{"$nulls":10},{"$f":"SUM(AA43:AJ43)","v":0},{"$nulls":10},{"$f":"SUM(AL43:AU43)","v":0},{"$nulls":11},{"$f":"SUM(AX43:BG43)+AV43","v":0},{"$f":"E43+P43+AA43+AL43","v":0},0,{"$f":"G43+R43+AC43+AN43","v":0},0,0,0,0,0,0,0]
[null,"5.4","Mental Health Settlements/AP",{"$f":"SUM(E44:N44)","v":0},{"$nulls":10},{"$f":"SUM(P44:Y44)","v":0},{"$nulls":10},{"$f":"SUM(AA44:AJ44)","v":0},{"$nulls":10},{"$f":"SUM(AL44:AU44)","v":0},{"$nulls":11},{"$f":"SUM(AX44:BG44)+AV44","v":0},{"$f":"E44+P44+AA44+AL44","v":0},0,{"$f":"G44+R44+AC44+AN44","v":0},0,0,0,0,0,0,0]
[null,"5.5","Total Mental Health & Substance Abuse Services",{"$f":"SUM(D41:D44)","v":0},{"$f":"SUM(E41:E44)","v":0},0,0,0,{"$f":"SUM(I41:I44)","v":0},0,0,0,0,0,0,0,0,0,0,0,0,0,0,0,0,0,0,0,0,0,0,0,0,0,0,0,0,0,0,0,0,0,0,0,0,0,0,0,0,0,0,0,0,0,0,0,0,0,0]
["Dental",6.1,"Dental FFS",{"$f":"SUM(E46:N46)","v":0},{"$nulls":10},{"$f":"SUM(P46:Y46)","v":0},{"$nulls":10},{"$f":"SUM(AA46:AJ46)","v":0},{"$nulls":10},{"$f":"SUM(AL46:AU46)","v":0},{"$nulls":11},{"$f":"SUM(AX46:BG46)+AV46","v":0},{"$f":"E46+P46+AA46+AL46","v":0},{"$f":"F46+Q46+AB46+AM46","v":0},0,0,0,0,0,0,0,0]
[null,6.2,"Dental Subcapitation",{"$f":"SUM(E47:N47)","v":0},{"$nulls":10},{"$f":"SUM(P47:Y47)","v":0},{"$nulls":10},{"$f":"SUM(AA47:AJ47)","v":0},{"$nulls":10},{"$f":"SUM(AL47:AU47)","v":0},{"$nulls":11},{"$f":"SUM(AX47:BG47)+AV47","v":0},{"$f":"E47+P47+AA47+AL47","v":0},0,{"$f":"G47+R47+AC47+AN47","v":0},0,0,0,0,0,0,0]
[null,6.3,"Ending IBNP for Dental Services",{"$f":"SUM(E48:N48)","v":0},{"$nulls":10},{"$f":"SUM(P48:Y48)","v":0},{"$nulls":10},{"$f":"SUM(AA48:AJ48)","v":0},{"$nulls":10},{"$f":"SUM(AL48:AU48)","v":0},{"$nulls":11},{"$f":"SUM(AX48:BG48)+AV48","v":0},{"$f":"E48+P48+AA48+AL48","v":0},0,{"$f":"G48+R48+AC48+AN48","v":0},0,0,0,0,0,0,0]
[null,"6.4","Dental Settlements/AP",{"$f":"SUM(E49:N49)","v":0},{"$nulls":10},{"$f":"SUM(P49:Y49)","v":0},{"$nulls":10},{"$f":"SUM(AA49:AJ49)","v":0},{"$nulls":10},{"$f":"SUM(AL49:AU49)","v":0},{"$nulls":11},{"$f":"SUM(AX49:BG49)+AV49","v":0},{"$f":"E49+P49+AA49+AL49","v":0},0,{"$f":"G49+R49+AC49+AN49","v":0},0,0,0,0,0,0,0]
[null,"6.5","Total Dental Services",{"$f":"SUM(D46:D49)","v":0},{"$f":"SUM(E46:E49)","v":0},0,0,0,0,0,0,0,0,0,0,0,0,0,0,0,0,0,0,0,0,0,0,0,0,0,0,0,0,0,0,0,0,0,0,0,0,0,0,0,0,0,0,0,0,0,0,0,0,0,0,0,0,0,0]
["Transportation",7.1,"Transportation FFS",{"$f":"SUM(E51:N51)","v":0},{"$nulls":10},{"$f":"SUM(P51:Y51)","v":0},{"$nulls":10},{"$f":"SUM(AA51:AJ51)","v":0},{"$nulls":10},{"$f":"SUM(AL51:AU51)","v":0},{"$nulls":11},{"$f":"SUM(AX51:BG51)+AV51","v":0},{"$f":"E51+P51+AA51+AL51","v":0},{"$f":"F51+Q51+AB51+AM51","v":0},0,0,0,0,0,0,0,0]
[null,7.2,"Transportation Subcapitation",{"$f":"SUM(E52:N52)","v":0},{"$nulls":10},{"$f":"SUM(P52:Y52)","v":0},{"$nulls":10},{"$f":"SUM(AA52:AJ52)","v":0},{"$nulls":10},{"$f":"SUM(AL52:AU52)","v":0},{"$nulls":11},{"$f":"SUM(AX52:BG52)+AV52","v":0},{"$f":"E52+P52+AA52+AL52","v":0},0,{"$f":"G52+R52+AC52+AN52","v":0},0,0,0,0,0,0,0]
[null,7.3,"Ending IBNP for Transportation",{"$f":"SUM(E53:N53)","v":0},{"$nulls":10},{"$f":"SUM(P53:Y53)","v":0},{"$nulls":10},{"$f":"SUM(AA53:AJ53)","v":0},{"$nulls":10},{"$f":"SUM(AL53:AU53)","v":0},{"$nulls":11},{"$f":"SUM(AX53:BG53)+AV53","v":0},{"$f":"E53+P53+AA53+AL53","v":0},0,{"$f":"G53+R53+AC53+AN53","v":0},0,0,0,0,0,0,0]
[null,"7.4","Transportation Settlements/AP",{"$f":"SUM(E54:N54)","v":0},{"$nulls":10},{"$f":"SUM(P54:Y54)","v":0},{"$nulls":10},{"$f":"SUM(AA54:AJ54)","v":0},{"$nulls":10},{"$f":"SUM(AL54:AU54)","v":0},{"$nulls":11},{"$f":"SUM(AX54:BG54)+AV54","v":0},{"$f":"E54+P54+AA54+AL54","v":0},0,{"$f":"G54+R54+AC54+AN54","v":0},0,0,0,0,0,0,0]
[null,"7.5","Total Transportation Services",{"$f":"SUM(D51:D54)","v":0},{"$f":"SUM(E51:E54)","v":0},0,0,0,0,0,0,0,0,0,0,0,0,0,0,0,0,0,0,{"$f":"SUM(X51:X54)","v":0},0,0,0,0,0,0,0,0,0,0,0,0,0,0,0,0,0,0,0,0,0,0,0,0,0,0,0,0,0,0,0,0,0,0,0]
["Pharmacy",8.1,"Prescription Drugs FFS",{"$f":"SUM(E56:N56)","v":0},{"$nulls":10},{"$f":"SUM(P56:Y56)","v":0},{"$nulls":10},{"$f":"SUM(AA56:AJ56)","v":0},{"$nulls":10},{"$f":"SUM(AL56:AU56)","v":0},{"$nulls":11},{"$f":"SUM(AX56:BG56)+AV56","v":0},{"$f":"E56+P56+AA56+AL56","v":0},0,0,0,0,0,0,0,0,0]
[null,"8.2","Hepatitis C Prescription Drug FFS",0,{"$nulls":10},0,{"$nulls":10},0,{"$nulls":10},0,{"$nulls":11},{"$f":"SUM(AX57:BG57)+AV57","v":0},0,0,0,0,0,0,0,0,0,0]
[null,"8.3","Ending IBNP for Prescription Drugs",0,{"$nulls":10},0,{"$nulls":10},0,{"$nulls":10},0,{"$nulls":11},0,0,0,0,0,0,0,0,0,0,0]
[null,"8.4","Prescription Drug Rebates ",0,{"$nulls":10},0,{"$nulls":10},0,{"$nulls":10},0,{"$nulls":11},0,0,0,0,0,0,0,0,0,0,0]
[null,"8.5","Ending accrual for Rebates receivable",0,{"$nulls":10},0,{"$nulls":10},0,{"$nulls":10},0,{"$nulls":11},0,0,0,0,0,0,0,0,0,0,0]
[null,"8.6","Prescription Drugs Subcapitation",0,{"$nulls":10},0,{"$nulls":10},0,{"$nulls":10},0,{"$nulls":11},0,0,0,0,0,0,0,0,0,0,0]
[null,"8.7","Prescription Drug Settlements/AP",0,{"$nulls":10},0,{"$nulls":10},0,{"$nulls":10},0,{"$nulls":11},0,0,0,0,0,0,0,0,0,0,0]
[null,"8.8","Total Prescription Drugs",{"$f":"SUM(D56:D62)","v":0},{"$f":"SUM(E56:E62)","v":0},0,0,0,0,0,0,0,0,0,0,0,0,0,0,0,0,0,0,0,0,0,0,0,0,0,0,0,0,0,0,0,0,0,0,0,0,0,0,0,0,0,0,0,0,0,0,0,0,0,0,0,0,0,0]
["Other Services",9.1,"Home Health, Private Duty Nursing, Personal Care FFS",{"$f":"SUM(E64:L64)","v":0},{"$nulls":10},{"$f":"SUM(P64:W64)","v":0},{"$nulls":10},{"$f":"SUM(AA64:AH64)","v":0},{"$nulls":10},{"$f":"SUM(AL64:AS64)","v":0},{"$nulls":11},{"$f":"SUM(AX64:BE64)+AV64","v":0},{"$f":"E64+P64+AA64+AL64","v":0},0,0,0,0,0,0,0]
[null,"9.2","Hospice FFS",{"$f":"SUM(E65:L65)","v":0},{"$nulls":10},{"$f":"SUM(P65:W65)","v":0},{"$nulls":10},{"$f":"SUM(AA65:AH65)","v":0},{"$nulls":10},{"$f":"SUM(AL65:AS65)","v":0},{"$nulls":11},{"$f":"SUM(AX65:BE65)+AV65","v":0},0,0,0,0,0,0,0,0]
[null,"9.3","DME FFS",{"$f":"SUM(E66:L66)","v":0},{"$nulls":10},{"$f":"SUM(P66:W66)","v":0},{"$nulls":10},{"$f":"SUM(AA66:AH66)","v":0},{"$nulls":10},{"$f":"SUM(AL66:AS66)","v":0},{"$nulls":11},0,0,0,0,0,0,0,0,0]
[null,"9.4","Other State Plan Services FFS",{"$f":"SUM(E67:N67)","v":0},{"$nulls":10},{"$f":"SUM(P67:Y67)","v":0},{"$nulls":10},{"$f":"SUM(AA67:AJ67)","v":0},{"$nulls":10},{"$f":"SUM(AL67:AU67)","v":0},{"$nulls":11},{"$f":"SUM(AX67:BG67)+AV67","v":0},0,0,0,0,0,0,0,0,0,0]
[null,"9.5","Other Services Subcapitation",{"$f":"SUM(E68:N68)","v":0},{"$nulls":10},{"$f":"SUM(P68:Y68)","v":0},{"$nulls":10},{"$f":"SUM(AA68:AJ68)","v":0},{"$nulls":10},{"$f":"SUM(AL68:AU68)","v":0},{"$nulls":11},{"$f":"SUM(AX68:BG68)+AV68","v":0},0,0,0,0,0,0,0,0,0,0]
[null,"9.6","Ending IBNP for Other Services",{"$f":"SUM(E69:N69)","v":0},{"$nulls":10},{"$f":"SUM(P69:Y69)","v":0},{"$nulls":10},{"$f":"SUM(AA69:AJ69)","v":0},{"$nulls":10},{"$f":"SUM(AL69:AU69)","v":0},{"$nulls":11},{"$f":"SUM(AX69:BG69)+AV69","v":0},0,0,0,0,0,0,0,0,0,0]
[null,"9.7","Other Services Settlements/AP",{"$f":"SUM(E70:N70)","v":0},{"$nulls":10},{"$f":"SUM(P70:Y70)","v":0},{"$nulls":10},{"$f":"SUM(AA70:AJ70)","v":0},{"$nulls":10},{"$f":"SUM(AL70:AU70)","v":0},{"$nulls":11},{"$f":"SUM(AX70:BG70)+AV70","v":0},0,0,0,0,0,0,0,0,0,0]
[null,"9.8","Total Other Services",{"$f":"SUM(D64:D70)","v":0},{"$f":"SUM(E64:E70)","v":0},0,0,0,0,0,0,0,{"$f":"SUM(M67:M70)","v":0},{"$f":"SUM(N67:N70)","v":0},0,0,0,0,0,0,0,0,0,{"$f":"SUM(X67:X70)","v":0},{"$f":"SUM(Y67:Y70)","v":0},0,0,0,0,0,0,0,0,0,{"$f":"SUM(AI67:AI70)","v":0},{"$f":"SUM(AJ67:AJ70)","v":0},0,0,0,0,0,0,0,0,0,{"$f":"SUM(AT67:AT70)","v":0},{"$f":"SUM(AU67:AU70)","v":0},{"$f":"SUM(AV64:AV70)","v":0},0,0,0,0,0,0,0,{"$f":"SUM(BD64:BD70)","v":0},{"$f":"SUM(BE64:BE70)","v":0},{"$f":"SUM(BF67:BF70)","v":0},{"$f":"SUM(BG67:BG70)","v":0}]
["Expanded Benefits","10.1","Expanded Benefits FFS",{"$f":"SUM(E72:N72)","v":0},{"$nulls":10},{"$f":"SUM(P72:Y72)","v":0},{"$nulls":10},{"$f":"SUM(AA72:AJ72)","v":0},{"$nulls":10},{"$f":"SUM(AL72:AU72)","v":0},{"$nulls":11},{"$f":"SUM(AX72:BG72)+AV72","v":0},{"$f":"E72+P72+AA72+AL72","v":0},{"$f":"F72+Q72+AB72+AM72","v":0},0,0,0,0,0,0,0,0]
[null,"10.2","Expanded Benefits Subcapitation",{"$f":"SUM(E73:N73)","v":0},{"$nulls":10},{"$f":"SUM(P73:Y73)","v":0},{"$nulls":10},{"$f":"SUM(AA73:AJ73)","v":0},{"$nulls":10},{"$f":"SUM(AL73:AU73)","v":0},{"$nulls":11},{"$f":"SUM(AX73:BG73)+AV73","v":0},{"$f":"E73+P73+AA73+AL73","v":0},0,{"$f":"G73+R73+AC73+AN73","v":0},0,0,0,0,0,0,0]
[null,"10.3","Ending IBNP for Expanded Benefits",{"$f":"SUM(E74:N74)","v":0},{"$nulls":10},{"$f":"SUM(P74:Y74)","v":0},{"$nulls":10},{"$f":"SUM(AA74:AJ74)","v":0},{"$nulls":10},{"$f":"SUM(AL74:AU74)","v":0},{"$nulls":11},{"$f":"SUM(AX74:BG74)+AV74","v":0},{"$f":"E74+P74+AA74+AL74","v":0},0,{"$f":"G74+R74+AC74+AN74","v":0},0,0,0,0,0,0,0]
[null,"10.4","Expanded Benefits Settlements/AP",{"$f":"SUM(E75:N75)","v":0},{"$nulls":10},{"$f":"SUM(P75:Y75)","v":0},{"$nulls":10},{"$f":"SUM(AA75:AJ75)","v":0},{"$nulls":10},{"$f":"SUM(AL75:AU75)","v":0},{"$nulls":11},{"$f":"SUM(AX75:BG75)+AV75","v":0},{"$f":"E75+P75+AA75+AL75","v":0},0,{"$f":"G75+R75+AC75+AN75","v":0},0,0,0,0,0,0,0]
[null,"10.5","Total Expanded Benefits",{"$f":"SUM(D72:D75)","v":0},{"$f":"SUM(E72:E75)","v":0},0,0,0,0,0,0,0,0,0,0,0,0,0,0,0,0,0,0,{"$f":"SUM(X72:X75)","v":0},0,0,0,0,0,0,0,0,0,0,0,0,0,0,0,0,0,0,0,0,0,0,0,0,0,0,0,0,0,0,0,0,0,0,0]
["Totals Before and After Reinsurance","11.1","Total Services Paid Directly FFS",{"$f":"D20+SUM(D22:D23,D27)+SUM(D29:D32)+D37+D41+D46+D51+SUM(D56:D57)+SUM(D59:D60)+SUM(D64:D67)+D72","v":0},{"$f":"E20+SUM(E22:E23,E27)+SUM(E29:E32)+E37+E41+E46+E51+SUM(E56:E57)+SUM(E59:E60)+SUM(E64:E67)+E72","v":0},{"$f":"F20+SUM(F22:F23,F27)+SUM(F29:F32)+F37+F41+F46+F51+SUM(F56:F57)+SUM(F59:F60)+SUM(F64:F67)+F72","v":0},{"$f":"G20+SUM(G22:G23,G27)+SUM(G29:G32)+G37+G41+G46+G51+SUM(G56:G57)+SUM(G59:G60)+SUM(G64:G67)+G72","v":0},0,0,0,0,0,0,0,{"$f":"O20+SUM(O22:O23,O27)+SUM(O29:O32)+O37+O41+O46+O51+SUM(O56:O57)+SUM(O59:O60)+SUM(O64:O67)+O72","v":0},{"$f":"P20+SUM(P22:P23,P27)+SUM(P29:P32)+P37+P41+P46+P51+SUM(P56:P57)+SUM(P59:P60)+SUM(P64:P67)+P72","v":0},0,0,0,0,0,0,0,0,0,{"$f":"Z20+SUM(Z22:Z23,Z27)+SUM(Z29:Z32)+Z37+Z41+Z46+Z51+SUM(Z56:Z57)+SUM(Z59:Z60)+SUM(Z64:Z67)+Z72","v":0},{"$f":"AA20+SUM(AA22:AA23,AA27)+SUM(AA29:AA32)+AA37+AA41+AA46+AA51+SUM(AA56:AA57)+SUM(AA59:AA60)+SUM(AA64:AA67)+AA72","v":0},0,0,0,0,0,0,0,0,0,{"$f":"AK20+SUM(AK22:AK23,AK27)+SUM(AK29:AK32)+AK37+AK41+AK46+AK51+SUM(AK56:AK57)+SUM(AK59:AK60)+SUM(AK64:AK67)+AK72","v":0},{"$f":"AL20+SUM(AL22:AL23,AL27)+SUM(AL29:AL32)+AL37+AL41+AL46+AL51+SUM(AL56:AL57)+SUM(AL59:AL60)+SUM(AL64:AL67)+AL72","v":0},0,0,0,0,0,0,0,0,0,{"$f":"AV20+SUM(AV22:AV23,AV27)+SUM(AV29:AV32)+AV37+AV41+AV46+AV51+SUM(AV56:AV57)+SUM(AV59:AV60)+SUM(AV64:AV67)+AV72","v":0},{"$f":"AW20+SUM(AW22:AW23,AW27)+SUM(AW29:AW32)+AW37+AW41+AW46+AW51+SUM(AW56:AW57)+SUM(AW59:AW60)+SUM(AW64:AW67)+AW72","v":0},{"$f":"AX20+SUM(AX22:AX23,AX27)+SUM(AX29:AX32)+AX37+AX41+AX46+AX51+SUM(AX56:AX57)+SUM(AX59:AX60)+SUM(AX64:AX67)+AX72","v":0},0,0,0,0,0,0,0,0,0]
[null,"11.2","Total Services Paid Directly -- IBNP",{"$f":"D21+D24+D34+D38+D43+D48+D53+D58+D69+D74","v":0},{"$f":"E21+E24+E34+E38+E43+E48+E53+E58+E69+E74","v":0},{"$f":"F21+F24+F34+F38+F43+F48+F53+F58+F69+F74","v":0},{"$f":"G21+G24+G34+G38+G43+G48+G53+G58+G69+G74","v":0},0,0,0,0,0,0,0,{"$f":"O21+O24+O34+O38+O43+O48+O53+O58+O69+O74","v":0},{"$f":"P21+P24+P34+P38+P43+P48+P53+P58+P69+P74","v":0},0,0,0,0,0,0,0,0,0,{"$f":"Z21+Z24+Z34+Z38+Z43+Z48+Z53+Z58+Z69+Z74","v":0},{"$f":"AA21+AA24+AA34+AA38+AA43+AA48+AA53+AA58+AA69+AA74","v":0},0,0,0,0,0,0,0,0,0,{"$f":"AK21+AK24+AK34+AK38+AK43+AK48+AK53+AK58+AK69+AK74","v":0},{"$f":"AL21+AL24+AL34+AL38+AL43+AL48+AL53+AL58+AL69+AL74","v":0},0,0,0,0,0,0,0,0,0,{"$f":"AV21+AV24+AV34+AV38+AV43+AV48+AV53+AV58+AV69+AV74","v":0},{"$f":"AW21+AW24+AW34+AW38+AW43+AW48+AW53+AW58+AW69+AW74","v":0},{"$f":"AX21+AX24+AX34+AX38+AX43+AX48+AX53+AX58+AX69+AX74","v":0},0,0,0,0,0,0,0,0,0]
[null,"11.3","Total Services Paid through Subcapitation",{"$f":"D25+D33+D42+D47+D52+D61+D68+D73","v":0},{"$f":"E25+E33+E42+E47+E52+E61+E68+E73","v":0},{"$f":"F25+F33+F42+F47+F52+F61+F68+F73","v":0},{"$f":"G25+G33+G42+G47+G52+G61+G68+G73","v":0},0,0,0,0,0,0,0,{"$f":"O25+O33+O42+O47+O52+O61+O68+O73","v":0},{"$f":"P25+P33+P42+P47+P52+P61+P68+P73","v":0},0,0,0,0,0,0,0,0,0,{"$f":"Z25+Z33+Z42+Z47+Z52+Z61+Z68+Z73","v":0},{"$f":"AA25+AA33+AA42+AA47+AA52+AA61+AA68+AA73","v":0},0,0,0,0,0,0,0,0,0,{"$f":"AK25+AK33+AK42+AK47+AK52+AK61+AK68+AK73","v":0},{"$f":"AL25+AL33+AL42+AL47+AL52+AL61+AL68+AL73","v":0},0,0,0,0,0,0,0,0,0,{"$f":"AV25+AV33+AV42+AV47+AV52+AV61+AV68+AV73","v":0},{"$f":"AW25+AW33+AW42+AW47+AW52+AW61+AW68+AW73","v":0},{"$f":"AX25+AX33+AX42+AX47+AX52+AX61+AX68+AX73","v":0},0,0,0,0,0,0,0,0,0]
[null,"11.4","Total Services Paid by Settlements/AP",{"$f":"D26+D35+D39+D44+D49+D54+D62+D70+D75","v":0},{"$f":"E26+E35+E39+E44+E49+E54+E62+E70+E75","v":0},{"$f":"F26+F35+F39+F44+F49+F54+F62+F70+F75","v":0},{"$f":"G26+G35+G39+G44+G49+G54+G62+G70+G75","v":0},0,0,0,0,0,0,0,{"$f":"O26+O35+O39+O44+O49+O54+O62+O70+O75","v":0},{"$f":"P26+P35+P39+P44+P49+P54+P62+P70+P75","v":0},0,0,0,0,0,0,0,0,0,{"$f":"Z26+Z35+Z39+Z44+Z49+Z54+Z62+Z70+Z75","v":0},{"$f":"AA26+AA35+AA39+AA44+AA49+AA54+AA62+AA70+AA75","v":0},0,0,0,0,0,0,0,0,0,{"$f":"AK26+AK35+AK39+AK44+AK49+AK54+AK62+AK70+AK75","v":0},{"$f":"AL26+AL35+AL39+AL44+AL49+AL54+AL62+AL70+AL75","v":0},0,0,0,0,0,0,0,0,0,0,{"$f":"AW26+AW35+AW39+AW44+AW49+AW54+AW62+AW70+AW75","v":0},{"$f":"AX26+AX35+AX39+AX44+AX49+AX54+AX62+AX70+AX75","v":0},0,0,0,0,0,0,0,0,0]
[null,"11.5","TPL & Fraud/Abuse Recoveries",{"$f":"SUM(E81:N81)","v":0},{"$nulls":10},{"$f":"SUM(P81:Y81)","v":0},{"$nulls":10},{"$f":"SUM(AA81:AJ81)","v":0},{"$nulls":10},{"$f":"SUM(AL81:AU81)","v":0},{"$nulls":11},{"$f":"SUM(AX81:BG81)+AV81","v":0},{"$f":"E81+P81+AA81+AL81","v":0},{"$f":"F81+Q81+AB81+AM81","v":0},{"$f":"G81+R81+AC81+AN81","v":0},{"$f":"H81+S81+AD81+AO81","v":0},0,0,0,0,0,0]
[null,"11.6.1","Premium Deficiency Reserve",{"$f":"SUM(E82:N82)","v":0},{"$nulls":10},{"$f":"SUM(P82:Y82)","v":0},{"$nulls":10},{"$f":"SUM(AA82:AJ82)","v":0},{"$nulls":10},{"$f":"SUM(AL82:AU82)","v":0},{"$nulls":11},{"$f":"SUM(AX82:BG82)+AV82","v":0},{"$f":"E82+P82+AA82+AL82","v":0},0,{"$f":"G82+R82+AC82+AN82","v":0},0,0,0,0,0,0,0]
[null,"11.7","Subtotal Benefit Expense before Reinsurance",{"$f":"SUM(D77:D82)","v":0},{"$f":"SUM(E77:E82)","v":0},0,0,0,0,0,0,0,0,0,0,0,0,0,0,0,0,0,0,0,0,0,0,0,0,0,0,0,0,0,0,0,0,0,0,0,0,0,0,0,0,0,0,0,0,0,0,0,0,0,0,0,0,0,0]
[null,"11.8","Reinsurance Premiums",{"$f":"SUM(E84:N84)","v":0},{"$nulls":10},{"$f":"SUM(P84:Y84)","v":0},{"$nulls":10},{"$f":"SUM(AA84:AJ84)","v":0},{"$nulls":10},{"$f":"SUM(AL84:AU84)","v":0},{"$nulls":11},{"$f":"SUM(AX84:BG84)+AV84","v":0},{"$f":"E84+P84+AA84+AL84","v":0},{"$f":"F84+Q84+AB84+AM84","v":0},0,0,0,0,0,0,0,0]
[null,"11.9","Reinsurance Recoveries",{"$f":"SUM(E85:N85)","v":0},{"$nulls":10},{"$f":"SUM(P85:Y85)","v":0},{"$nulls":10},{"$f":"SUM(AA85:AJ85)","v":0},{"$nulls":10},{"$f":"SUM(AL85:AU85)","v":0},{"$nulls":11},{"$f":"SUM(AX85:BG85)+AV85","v":0},{"$f":"E85+P85+AA85+AL85","v":0},0,{"$f":"G85+R85+AC85+AN85","v":0},0,0,0,0,0,0,0]
[null,"11.10","Net cost of Reinsurance",{"$f":"SUM(D84:D85)","v":0},{"$f":"SUM(E84:E85)","v":0},0,0,0,0,0,0,0,0,0,{"$f":"SUM(O84:O85)","v":0},{"$f":"SUM(P84:P85)","v":0},0,0,0,0,0,0,0,0,0,{"$f":"SUM(Z84:Z85)","v":0},{"$f":"SUM(AA84:AA85)","v":0},0,0,0,0,0,0,0,0,0,{"$f":"SUM(AK84:AK85)","v":0},{"$f":"SUM(AL84:AL85)","v":0},{"$f":"SUM(AM84:AM85)","v":0},0,0,0,0,0,0,0,0,0,{"$f":"SUM(AW84:AW85)","v":0},{"$f":"SUM(AX84:AX85)","v":0},0,{"$f":"SUM(AZ84:AZ85)","v":0},0,{"$f":"SUM(BB84:BB85)","v":0},0,0,0,0,0]
[null,"11.11","Grand Total Medical Benefit Expense Net of Reinsurance",{"$f":"D83+D86","v":0},{"$f":"E83+E86","v":0},0,0,0,0,0,0,0,0,0,{"$f":"O83+O86","v":0},{"$f":"P83+P86","v":0},0,0,0,0,0,0,0,0,0,{"$f":"Z83+Z86","v":0},{"$f":"AA83+AA86","v":0},0,0,0,0,0,0,0,0,0,{"$f":"AK83+AK86","v":0},{"$f":"AL83+AL86","v":0},{"$f":"AM83+AM86","v":0},0,0,0,0,0,0,0,0,0,{"$f":"AW83+AW86","v":0},{"$f":"AX83+AX86","v":0},{"$f":"AY83+AY86","v":0},0,0,0,0,0,0,0,0]
["Administrative Expenses, Government-Mandated Assessments, Taxes, and Fees ",null,null,"JANUARY - MARCH (Q1)",{"$nulls":10},"APRIL - JUNE (Q2)",{"$nulls":10},"JULY - SEPTEMBER (Q3)",{"$nulls":10},"OCTOBER - DECEMBER (Q4)",{"$nulls":11},"TOTAL (TO DATE)"]
[{"$nulls":3},"Total","Health Plan","Corporate",{"$nulls":8},"Total","Health Plan","Corporate",{"$nulls":8},"Total","Health Plan","Corporate",{"$nulls":8},"Total","Health Plan","Corporate",{"$nulls":8},"Prior Year Adjustments","Total","Health Plan","Corporate"]
["Administrative Expenses","12.1","Salaries & Benefits",{"$f":"E90+F90","v":0},{"$nulls":10},{"$f":"P90+Q90","v":0},{"$nulls":10},{"$f":"AA90+AB90","v":0},{"$nulls":10},{"$f":"AL90+AM90","v":0},{"$nulls":11},{"$f":"AX90+AY90+AV90","v":0},{"$f":"E90+P90+AA90+AL90","v":0},{"$f":"F90+Q90+AB90+AM90","v":0}]
[null,"12.2","Administrative Services",{"$f":"E91+F91","v":0},{"$nulls":10},{"$f":"P91+Q91","v":0},{"$nulls":10},{"$f":"AA91+AB91","v":0},{"$nulls":10},{"$f":"AL91+AM91","v":0},{"$nulls":11},0,{"$f":"E91+P91+AA91+AL91","v":0},0]
[null,"12.3","Information Systems",0,{"$nulls":10},0,{"$nulls":10},0,{"$nulls":10},0,{"$nulls":11},0,0,0]
[null,"12.4","Marketing Expenses",0,{"$nulls":10},0,{"$nulls":10},0,{"$nulls":10},0,{"$nulls":11},0,0,0]
[null,"12.5","General  Administration",0,{"$nulls":10},0,{"$nulls":10},0,{"$nulls":10},0,{"$nulls":11},0,0,0]
[null,"12.6","Compliance/Regulatory",0,{"$nulls":10},0,{"$nulls":10},0,{"$nulls":10},0,{"$nulls":11},0,0,0]
[null,"12.7","Total Administrative Expenses ",{"$f":"E96+F96","v":0},{"$f":"SUM(E90:E95)","v":0},{"$f":"SUM(F90:F95)","v":0},{"$nulls":8},{"$f":"P96+Q96","v":0},{"$f":"SUM(P90:P95)","v":0},0,{"$nulls":8},{"$f":"AA96+AB96","v":0},{"$f":"SUM(AA90:AA95)","v":0},0,{"$nulls":8},{"$f":"AL96+AM96","v":0},{"$f":"SUM(AL90:AL95)","v":0},0,{"$nulls":8},{"$f":"SUM(AV90:AV95)","v":0},0,{"$f":"SUM(AX90:AX95)","v":0},{"$f":"SUM(AY90:AY95)","v":0}]
["Government-Mandated Assessments, Taxes, and Fees Other Than Income Taxes","13.1","State Premium tax",{"$nulls":45},{"$f":"D97+O97+Z97+AK97+AV97","v":0}]
[null,"13.2","Department of Insurance Assessments",{"$nulls":45},0]
[null,"13.3","Section 9010 Health Insurance Providers Fee",{"$nulls":45},0]
[null,"13.4","Other 1",{"$nulls":45},0]
[null,"13.5","Other 2",{"$nulls":45},0]
[null,"13.6","Other 3",{"$nulls":45},0]
[null,"13.7","Total ",{"$f":"SUM(D97:D102)","v":0},{"$nulls":10},{"$f":"SUM(O97:O102)","v":0},{"$nulls":10},{"$f":"SUM(Z97:Z102)","v":0},{"$nulls":10},{"$f":"SUM(AK97:AK102)","v":0},{"$nulls":10},{"$f":"SUM(AV97:AV102)","v":0},{"$f":"SUM(AW97:AW102)","v":0}]
[null,"14.0","Grand Total Expenses",{"$f":"D87+D96+D103","v":0},{"$nulls":10},{"$f":"O87+O96+O103","v":0},{"$nulls":10},{"$f":"Z87+Z96+Z103","v":0},{"$nulls":10},{"$f":"AK87+AK96+AK103","v":0},{"$nulls":10},{"$f":"AV87+AV96+AV103","v":0},{"$f":"AW87+AW96+AW103","v":0}]
[null,"15.0","Underwriting Gain / (Loss)  --- AKA Pre-tax Earnings from Operations",{"$f":"D17-D104","v":0},{"$nulls":10},{"$f":"O17-O104","v":0},{"$nulls":10},{"$f":"Z17-Z104","v":0},{"$nulls":10},{"$f":"AK17-AK104","v":0},{"$nulls":10},{"$f":"AV17-AV104","v":0},{"$f":"AW17-AW104","v":0}]
[null,"16.0","Income Tax Expense",{"$nulls":45},{"$f":"D106+O106+Z106+AK106+AV106","v":0}]
[null,"17.0","Net Underwriting Gain (Loss)",{"$f":"D105-D106","v":0},{"$nulls":10},{"$f":"O105-O106","v":0},{"$nulls":10},{"$f":"Z105-Z106","v":0},{"$nulls":10},{"$f":"AK105-AK106","v":0},{"$nulls":10},{"$f":"AV105-AV106","v":0},{"$f":"AW105-AW106","v":0}]

{"sheet":"MMA Rev-Exp Region 10","index":16,"n_rows":107,"n_cols":59,"rows_kept":107,"hidden":true,"merged":[[6,3,6,13],[6,14,6,24],[6,25,6,35],[6,36,6,46],[6,48,6,58],[9,0,9,2],[10,0,16,0],[17,0,18,2],[17,3,17,13],[17,14,17,24],[17,25,17,35],[17,36,17,46],[17,48,17,58],[19,0,27,0],[28,0,35,0],[36,0,39,0],[40,0,44,0],[45,0,49,0],[50,0,54,0],[55,0,62,0],[63,0,70,0],[71,0,75,0],[76,0,86,0],[87,0,88,2],[87,3,87,13],[87,14,87,24],[87,25,87,35],[87,36,87,46],[87,48,87,58],[89,0,95,0],[96,0,102,0]]}
["MANAGED MEDICAL ASSISTANCE -- REVENUE AND EXPENSE SCHEDULE - REGION 10"]
[]
["Health Plan:",null,{"$f":"'MMA Rev-Exp Summary'!C3","v":0}]
["Reporting Period:",null,{"$f":"IF('MMA Rev-Exp Summary'!C4=0,\"\",'MMA Rev-Exp Summary'!C4)","v":""}]
["Paid Through:",null,{"$f":"IF('MMA Rev-Exp Summary'!C5=0,\"\",'MMA Rev-Exp Summary'!C5)","v":""}]
["Region 10"]
[{"$nulls":3},"JANUARY - MARCH (Q1)",{"$nulls":10},"APRIL - JUNE (Q2)",{"$nulls":10},"JULY - SEPTEMBER (Q3)",{"$nulls":10},"OCTOBER - DECEMBER (Q4)",{"$nulls":11},"TOTAL (TO DATE)"]
[{"$nulls":3},"Total","TANF Non-SMI","TANF SMI","SSI Medicaid Only Non-SMI","SSI Medicaid Only SMI","Dual Eligible","Child Welfare","HIV/AIDS Dual Eligible","HIV/AIDS Medicaid Only","LTC Dual Eligible","LTC Medicaid Only","Total","TANF Non-SMI","TANF SMI","SSI Medicaid Only Non-SMI","SSI Medicaid Only SMI","Dual Eligible","Child Welfare","HIV/AIDS Dual Eligible","HIV/AIDS Medicaid Only","LTC Dual Eligible","LTC Medicaid Only","Total","TANF Non-SMI","TANF SMI","SSI Medicaid Only Non-SMI","SSI Medicaid Only SMI","Dual Eligible","Child Welfare","HIV/AIDS Dual Eligible","HIV/AIDS Medicaid Only","LTC Dual Eligible","LTC Medicaid Only","Total","TANF Non-SMI","TANF SMI","SSI Medicaid Only Non-SMI","SSI Medicaid Only SMI","Dual Eligible","Child Welfare","HIV/AIDS Dual Eligible","HIV/AIDS Medicaid Only","LTC Dual Eligible","LTC Medicaid Only","Prior Year Adjustments","Total","TANF Non-SMI","TANF SMI","SSI Medicaid Only Non-SMI","SSI Medicaid Only SMI","Dual Eligible","Child Welfare","HIV/AIDS Dual Eligible","HIV/AIDS Medicaid Only","LTC Dual Eligible","LTC Medicaid Only"]
["MEMBER MONTHS",null,null,{"$f":"SUM(E9:N9)","v":0},{"$nulls":10},{"$f":"SUM(P9:Y9)","v":0},{"$nulls":10},{"$f":"SUM(AA9:AJ9)","v":0},{"$nulls":10},{"$f":"SUM(AL9:AU9)","v":0},{"$nulls":11},{"$f":"AK9+Z9+O9+D9+AV9","v":0},{"$f":"AL9+AA9+P9+E9","v":0},{"$f":"AM9+AB9+Q9+F9","v":0},0,0,0,0,0,0,0,0]
["REVENUES"]
["Revenues",1.1,"Capitation",{"$f":"SUM(E11:N11)","v":0},{"$nulls":10},{"$f":"SUM(P11:Y11)","v":0},{"$nulls":10},{"$f":"SUM(AA11:AJ11)","v":0},{"$nulls":10},{"$f":"SUM(AL11:AU11)","v":0},{"$nulls":11},{"$f":"SUM(AX11:BG11)+AV11","v":0},{"$f":"E11+P11+AA11+AL11","v":0},0,0,0,0,0,0,0,0,0]
[null,1.2,"Transplant Kick Payments",0,{"$nulls":10},0,{"$nulls":10},0,{"$nulls":10},0,{"$nulls":11},{"$f":"SUM(AX12:BG12)+AV12","v":0},0,0,{"$f":"G12+R12+AC12+AN12","v":0},0,0,0,0,0,0,0]
[null,"1.3","Hepatitis C Kick Payments",0,{"$nulls":10},0,{"$nulls":10},0,{"$nulls":10},0,{"$nulls":11},0,0,0,{"$f":"G13+R13+AC13+AN13","v":0},0,0,0,0,0,0,0]
[null,"1.4.1","Maternity Kick Payments",0,{"$nulls":10},0,{"$nulls":10},0,{"$nulls":10},0,{"$nulls":11},0,0,0,{"$f":"G14+R14+AC14+AN14","v":0},0,0,0,0,0,0,0]
[null,"1.5","ACA § 9010 related payments",0,{"$nulls":10},0,{"$nulls":10},0,{"$nulls":10},0,{"$nulls":11},0,0,0,{"$f":"G15+R15+AC15+AN15","v":0},0,0,0,0,0,0,0]
[null,"1.6","Other Revenue",0,{"$nulls":10},0,{"$nulls":10},0,{"$nulls":10},0,{"$nulls":11},0,0,0,{"$f":"G16+R16+AC16+AN16","v":0},0,0,0,0,0,0,0]
[null,"1.7","Total Revenue",{"$f":"SUM(D11:D16)","v":0},{"$f":"SUM(E11:E16)","v":0},{"$f":"SUM(F11:F16)","v":0},{"$f":"SUM(G11:G16)","v":0},0,0,0,0,0,0,0,{"$f":"SUM(O11:O16)","v":0},{"$f":"SUM(P11:P16)","v":0},{"$f":"SUM(Q11:Q16)","v":0},{"$f":"SUM(R11:R16)","v":0},0,0,0,0,0,0,0,{"$f":"SUM(Z11:Z16)","v":0},{"$f":"SUM(AA11:AA16)","v":0},{"$f":"SUM(AB11:AB16)","v":0},{"$f":"SUM(AC11:AC16)","v":0},0,0,0,0,0,0,0,{"$f":"SUM(AK11:AK16)","v":0},{"$f":"SUM(AL11:AL16)","v":0},{"$f":"SUM(AM11:AM16)","v":0},0,0,0,0,0,0,0,0,0,{"$f":"SUM(AW11:AW16)","v":0},{"$f":"SUM(AX11:AX16)","v":0},{"$f":"SUM(AY11:AY16)","v":0},0,0,0,0,0,0,0,0]
["BENEFIT EXPENSES",null,null,"JANUARY - MARCH (Q1)",{"$nulls":10},"APRIL - JUNE (Q2)",{"$nulls":10},"JULY - SEPTEMBER (Q3)",{"$nulls":10},"OCTOBER - DECEMBER (Q4)",{"$nulls":11},"TOTAL (TO DATE)"]
[{"$nulls":3},"Total","TANF Non-SMI","TANF SMI","SSI Medicaid Only Non-SMI","SSI Medicaid Only SMI","Dual Eligible","Child Welfare","HIV/AIDS Dual Eligible","HIV/AIDS Medicaid Only","LTC Dual Eligible","LTC Medicaid Only","Total","TANF Non-SMI","TANF SMI","SSI Medicaid Only Non-SMI","SSI Medicaid Only SMI","Dual Eligible","Child Welfare","HIV/AIDS Dual Eligible","HIV/AIDS Medicaid Only","LTC Dual Eligible","LTC Medicaid Only","Total","TANF Non-SMI","TANF SMI","SSI Medicaid Only Non-SMI","SSI Medicaid Only SMI","Dual Eligible","Child Welfare","HIV/AIDS Dual Eligible","HIV/AIDS Medicaid Only","LTC Dual Eligible","LTC Medicaid Only","Total","TANF Non-SMI","TANF SMI","SSI Medicaid Only Non-SMI","SSI Medicaid Only SMI","Dual Eligible","Child Welfare","HIV/AIDS Dual Eligible","HIV/AIDS Medicaid Only","LTC Dual Eligible","LTC Medicaid Only","Prior Year Adjustments","Total","TANF Non-SMI","TANF SMI","SSI Medicaid Only Non-SMI","SSI Medicaid Only SMI","Dual Eligible","Child Welfare","HIV/AIDS Dual Eligible","HIV/AIDS Medicaid Only","LTC Dual Eligible","LTC Medicaid Only"]
["Hospital Services",2.1,"Inpatient FFS",{"$f":"SUM(E20:N20)","v":0},{"$nulls":10},{"$f":"SUM(P20:Y20)","v":0},{"$nulls":10},{"$f":"SUM(AA20:AJ20)","v":0},{"$nulls":10},{"$f":"SUM(AL20:AU20)","v":0},{"$nulls":11},{"$f":"SUM(AX20:BG20)+AV20","v":0},{"$f":"E20+P20+AA20+AL20","v":0},0,0,0,0,0,0,0,0,0]
[null,2.2,"Ending IBNP for Inpatient Hospital Services",0,{"$nulls":10},0,{"$nulls":10},0,{"$nulls":10},0,{"$nulls":11},{"$f":"SUM(AX21:BG21)+AV21","v":0},0,0,0,0,0,0,0,0,0,0]
[null,2.3,"Outpatient FFS: ER",0,{"$nulls":10},0,{"$nulls":10},0,{"$nulls":10},0,{"$nulls":11},0,0,0,0,0,0,0,0,0,0,0]
[null,2.4,"Outpatient FFS: Other than ER ",0,{"$nulls":10},0,{"$nulls":10},0,{"$nulls":10},0,{"$nulls":11},0,0,0,0,0,0,0,0,0,0,0]
[null,2.5,"Ending IBNP for Outpatient Hospital Services",0,{"$nulls":10},0,{"$nulls":10},0,{"$nulls":10},0,{"$nulls":11},0,0,0,0,0,0,0,0,0,0,0]
[null,"2.6","Subcapitated Hospital Services",0,{"$nulls":10},0,{"$nulls":10},0,{"$nulls":10},0,{"$nulls":11},0,0,0,0,0,0,0,0,0,0,0]
[null,"2.7","Hospital Settlements/AP",0,{"$nulls":10},0,{"$nulls":10},0,{"$nulls":10},0,{"$nulls":11},0,0,0,0,0,0,0,0,0,0,0]
[null,"2.7.1","Transplant Services",0,{"$nulls":10},0,{"$nulls":10},0,{"$nulls":10},0,{"$nulls":11},0,0,0,0,0,0,0,0,0,0,0]
[null,"2.8","Total Hospital Services",{"$f":"SUM(D20:D27)","v":0},{"$f":"SUM(E20:E27)","v":0},0,0,0,0,0,0,0,0,0,{"$f":"SUM(O20:O27)","v":0},{"$f":"SUM(P20:P27)","v":0},0,0,0,0,0,0,0,0,0,{"$f":"SUM(Z20:Z27)","v":0},{"$f":"SUM(AA20:AA27)","v":0},0,0,0,0,0,0,0,0,0,{"$f":"SUM(AK20:AK27)","v":0},{"$f":"SUM(AL20:AL27)","v":0},0,0,0,0,0,0,0,0,0,{"$f":"SUM(AV20:AV27)","v":0},{"$f":"SUM(AW20:AW27)","v":0},{"$f":"SUM(AX20:AX27)","v":0},0,0,0,0,0,0,0,0,0]
["Professional Services",3.1,"Primary Care FFS",{"$f":"SUM(E29:N29)","v":0},{"$nulls":10},{"$f":"SUM(P29:Y29)","v":0},{"$nulls":10},{"$f":"SUM(AA29:AJ29)","v":0},{"$nulls":10},{"$f":"SUM(AL29:AU29)","v":0},{"$nulls":11},{"$f":"SUM(AX29:BG29)+AV29","v":0},{"$f":"E29+P29+AA29+AL29","v":0},0,0,0,0,0,0,0,0,0]
[null,3.2,"Specialty Care FFS",0,{"$nulls":10},0,{"$nulls":10},0,{"$nulls":10},0,{"$nulls":11},0,0,0,0,0,0,0,0,0,0,0]
[null,3.3,"Other Professional FFS",0,{"$nulls":10},0,{"$nulls":10},0,{"$nulls":10},0,{"$nulls":11},0,0,0,0,0,0,0,0,0,0,0]
[null,"3.4","§ 1202 PCP Payments to providers",0,{"$nulls":10},{"$f":"SUM(P32:Y32)","v":0},{"$nulls":10},{"$f":"SUM(AA32:AJ32)","v":0},{"$nulls":10},{"$f":"SUM(AL32:AU32)","v":0},{"$nulls":11},{"$f":"SUM(AX32:BG32)+AV32","v":0},0,0,0,0,0,0,0,0,0,0]
[null,"3.5","Subcapitated Professional Services",0,{"$nulls":10},0,{"$nulls":10},0,{"$nulls":10},0,{"$nulls":11},{"$f":"SUM(AX33:BG33)+AV33","v":0},0,0,0,0,0,0,0,0,0,0]
[null,"3.6","Ending IBNP for Professional Services",0,{"$nulls":10},0,{"$nulls":10},0,{"$nulls":10},0,{"$nulls":11},0,0,0,0,0,0,0,0,0,0,0]
[null,"3.7","Professional Settlements/AP",0,{"$nulls":10},0,{"$nulls":10},0,{"$nulls":10},0,{"$nulls":11},0,0,0,0,0,0,0,0,0,0,0]
[null,"3.8","Total Physician Services",{"$f":"SUM(D29:D35)","v":0},0,0,0,0,0,0,0,0,0,0,0,0,0,0,0,0,0,0,0,0,0,0,0,0,0,0,0,0,0,0,0,0,0,0,0,0,0,0,0,0,0,0,0,0,0,0,0,0,0,0,0,0,0,0,0]
["Maternity Services","4.1.1","Maternity Services",{"$f":"SUM(E37:N37)","v":0},{"$nulls":10},{"$f":"SUM(P37:Y37)","v":0},{"$nulls":10},{"$f":"SUM(AA37:AJ37)","v":0},{"$nulls":10},{"$f":"SUM(AL37:AU37)","v":0},{"$nulls":11},{"$f":"SUM(AX37:BG37)+AV37","v":0},{"$f":"E37+P37+AA37+AL37","v":0},{"$f":"F37+Q37+AB37+AM37","v":0},{"$f":"G37+R37+AC37+AN37","v":0},0,0,0,0,0,0,0]
[null,"4.2.1","Ending IBNP for Maternity Services",{"$f":"SUM(E38:N38)","v":0},{"$nulls":10},{"$f":"SUM(P38:Y38)","v":0},{"$nulls":10},{"$f":"SUM(AA38:AJ38)","v":0},{"$nulls":10},{"$f":"SUM(AL38:AU38)","v":0},{"$nulls":11},{"$f":"SUM(AX38:BG38)+AV38","v":0},{"$f":"E38+P38+AA38+AL38","v":0},0,{"$f":"G38+R38+AC38+AN38","v":0},0,0,0,0,0,0,0]
[null,"4.3.1","Maternity Settlements/AP",{"$f":"SUM(E39:N39)","v":0},{"$nulls":10},{"$f":"SUM(P39:Y39)","v":0},{"$nulls":10},{"$f":"SUM(AA39:AJ39)","v":0},{"$nulls":10},{"$f":"SUM(AL39:AU39)","v":0},{"$nulls":11},{"$f":"SUM(AX39:BG39)+AV39","v":0},{"$f":"E39+P39+AA39+AL39","v":0},0,{"$f":"G39+R39+AC39+AN39","v":0},0,0,0,0,0,0,0]
[null,"4.4.1","Total Maternity Services",{"$f":"SUM(D37:D39)","v":0},0,0,0,0,0,0,0,0,0,0,{"$f":"SUM(O37:O39)","v":0},0,0,0,0,0,{"$f":"SUM(U37:U39)","v":0},0,0,0,0,0,0,0,0,0,0,0,0,{"$f":"SUM(AH37:AH39)","v":0},0,0,0,0,0,0,0,0,0,0,0,0,0,0,0,{"$f":"SUM(AX37:AX39)","v":0},{"$f":"SUM(AY37:AY39)","v":0},0,0,0,0,0,0,0,0]
["Mental Health",5.1,"Mental Health & Substance Abuse FFS",{"$f":"SUM(E41:N41)","v":0},{"$nulls":10},{"$f":"SUM(P41:Y41)","v":0},{"$nulls":10},{"$f":"SUM(AA41:AJ41)","v":0},{"$nulls":10},{"$f":"SUM(AL41:AU41)","v":0},{"$nulls":11},{"$f":"SUM(AX41:BG41)+AV41","v":0},{"$f":"E41+P41+AA41+AL41","v":0},{"$f":"F41+Q41+AB41+AM41","v":0},0,0,0,0,0,0,0,0]
[null,5.2,"Mental Health & Substance Abuse Subcapitation",{"$f":"SUM(E42:N42)","v":0},{"$nulls":10},{"$f":"SUM(P42:Y42)","v":0},{"$nulls":10},{"$f":"SUM(AA42:AJ42)","v":0},{"$nulls":10},{"$f":"SUM(AL42:AU42)","v":0},{"$nulls":11},{"$f":"SUM(AX42:BG42)+AV42","v":0},{"$f":"E42+P42+AA42+AL42","v":0},0,{"$f":"G42+R42+AC42+AN42","v":0},0,0,0,0,0,0,0]
[null,5.3,"Ending IBNP for Mental Health & Substance Abuse",{"$f":"SUM(E43:N43)","v":0},{"$nulls":10},{"$f":"SUM(P43:Y43)","v":0},{"$nulls":10},{"$f":"SUM(AA43:AJ43)","v":0},{"$nulls":10},{"$f":"SUM(AL43:AU43)","v":0},{"$nulls":11},{"$f":"SUM(AX43:BG43)+AV43","v":0},{"$f":"E43+P43+AA43+AL43","v":0},0,{"$f":"G43+R43+AC43+AN43","v":0},0,0,0,0,0,0,0]
[null,"5.4","Mental Health Settlements/AP",{"$f":"SUM(E44:N44)","v":0},{"$nulls":10},{"$f":"SUM(P44:Y44)","v":0},{"$nulls":10},{"$f":"SUM(AA44:AJ44)","v":0},{"$nulls":10},{"$f":"SUM(AL44:AU44)","v":0},{"$nulls":11},{"$f":"SUM(AX44:BG44)+AV44","v":0},{"$f":"E44+P44+AA44+AL44","v":0},0,{"$f":"G44+R44+AC44+AN44","v":0},0,0,0,0,0,0,0]
[null,"5.5","Total Mental Health & Substance Abuse Services",{"$f":"SUM(D41:D44)","v":0},{"$f":"SUM(E41:E44)","v":0},0,0,0,{"$f":"SUM(I41:I44)","v":0},0,0,0,0,0,0,0,0,0,0,0,0,0,0,0,0,0,0,0,0,0,0,0,0,0,0,0,0,0,0,0,0,0,0,0,0,0,0,0,0,0,0,0,0,0,0,0,0,0,0]
["Dental",6.1,"Dental FFS",{"$f":"SUM(E46:N46)","v":0},{"$nulls":10},{"$f":"SUM(P46:Y46)","v":0},{"$nulls":10},{"$f":"SUM(AA46:AJ46)","v":0},{"$nulls":10},{"$f":"SUM(AL46:AU46)","v":0},{"$nulls":11},{"$f":"SUM(AX46:BG46)+AV46","v":0},{"$f":"E46+P46+AA46+AL46","v":0},{"$f":"F46+Q46+AB46+AM46","v":0},0,0,0,0,0,0,0,0]
[null,6.2,"Dental Subcapitation",{"$f":"SUM(E47:N47)","v":0},{"$nulls":10},{"$f":"SUM(P47:Y47)","v":0},{"$nulls":10},{"$f":"SUM(AA47:AJ47)","v":0},{"$nulls":10},{"$f":"SUM(AL47:AU47)","v":0},{"$nulls":11},{"$f":"SUM(AX47:BG47)+AV47","v":0},{"$f":"E47+P47+AA47+AL47","v":0},0,{"$f":"G47+R47+AC47+AN47","v":0},0,0,0,0,0,0,0]
[null,6.3,"Ending IBNP for Dental Services",{"$f":"SUM(E48:N48)","v":0},{"$nulls":10},{"$f":"SUM(P48:Y48)","v":0},{"$nulls":10},{"$f":"SUM(AA48:AJ48)","v":0},{"$nulls":10},{"$f":"SUM(AL48:AU48)","v":0},{"$nulls":11},{"$f":"SUM(AX48:BG48)+AV48","v":0},{"$f":"E48+P48+AA48+AL48","v":0},0,{"$f":"G48+R48+AC48+AN48","v":0},0,0,0,0,0,0,0]
[null,"6.4","Dental Settlements/AP",{"$f":"SUM(E49:N49)","v":0},{"$nulls":10},{"$f":"SUM(P49:Y49)","v":0},{"$nulls":10},{"$f":"SUM(AA49:AJ49)","v":0},{"$nulls":10},{"$f":"SUM(AL49:AU49)","v":0},{"$nulls":11},{"$f":"SUM(AX49:BG49)+AV49","v":0},{"$f":"E49+P49+AA49+AL49","v":0},0,{"$f":"G49+R49+AC49+AN49","v":0},0,0,0,0,0,0,0]
[null,"6.5","Total Dental Services",{"$f":"SUM(D46:D49)","v":0},{"$f":"SUM(E46:E49)","v":0},0,0,0,0,0,0,0,0,0,0,0,0,0,0,0,0,0,0,0,0,0,0,0,0,0,0,0,0,0,0,0,0,0,0,0,0,0,0,0,0,0,0,0,0,0,0,0,0,0,0,0,0,0,0]
["Transportation",7.1,"Transportation FFS",{"$f":"SUM(E51:N51)","v":0},{"$nulls":10},{"$f":"SUM(P51:Y51)","v":0},{"$nulls":10},{"$f":"SUM(AA51:AJ51)","v":0},{"$nulls":10},{"$f":"SUM(AL51:AU51)","v":0},{"$nulls":11},{"$f":"SUM(AX51:BG51)+AV51","v":0},{"$f":"E51+P51+AA51+AL51","v":0},{"$f":"F51+Q51+AB51+AM51","v":0},0,0,0,0,0,0,0,0]
[null,7.2,"Transportation Subcapitation",{"$f":"SUM(E52:N52)","v":0},{"$nulls":10},{"$f":"SUM(P52:Y52)","v":0},{"$nulls":10},{"$f":"SUM(AA52:AJ52)","v":0},{"$nulls":10},{"$f":"SUM(AL52:AU52)","v":0},{"$nulls":11},{"$f":"SUM(AX52:BG52)+AV52","v":0},{"$f":"E52+P52+AA52+AL52","v":0},0,{"$f":"G52+R52+AC52+AN52","v":0},0,0,0,0,0,0,0]
[null,7.3,"Ending IBNP for Transportation",{"$f":"SUM(E53:N53)","v":0},{"$nulls":10},{"$f":"SUM(P53:Y53)","v":0},{"$nulls":10},{"$f":"SUM(AA53:AJ53)","v":0},{"$nulls":10},{"$f":"SUM(AL53:AU53)","v":0},{"$nulls":11},{"$f":"SUM(AX53:BG53)+AV53","v":0},{"$f":"E53+P53+AA53+AL53","v":0},0,{"$f":"G53+R53+AC53+AN53","v":0},0,0,0,0,0,0,0]
[null,"7.4","Transportation Settlements/AP",{"$f":"SUM(E54:N54)","v":0},{"$nulls":10},{"$f":"SUM(P54:Y54)","v":0},{"$nulls":10},{"$f":"SUM(AA54:AJ54)","v":0},{"$nulls":10},{"$f":"SUM(AL54:AU54)","v":0},{"$nulls":11},{"$f":"SUM(AX54:BG54)+AV54","v":0},{"$f":"E54+P54+AA54+AL54","v":0},0,{"$f":"G54+R54+AC54+AN54","v":0},0,0,0,0,0,0,0]
[null,"7.5","Total Transportation Services",{"$f":"SUM(D51:D54)","v":0},{"$f":"SUM(E51:E54)","v":0},0,0,0,0,0,0,0,0,0,0,0,0,0,0,0,0,0,0,{"$f":"SUM(X51:X54)","v":0},0,0,0,0,0,0,0,0,0,0,0,0,0,0,0,0,0,0,0,0,0,0,0,0,0,0,0,0,0,0,0,0,0,0,0]
["Pharmacy",8.1,"Prescription Drugs FFS",{"$f":"SUM(E56:N56)","v":0},{"$nulls":10},{"$f":"SUM(P56:Y56)","v":0},{"$nulls":10},{"$f":"SUM(AA56:AJ56)","v":0},{"$nulls":10},{"$f":"SUM(AL56:AU56)","v":0},{"$nulls":11},{"$f":"SUM(AX56:BG56)+AV56","v":0},{"$f":"E56+P56+AA56+AL56","v":0},0,0,0,0,0,0,0,0,0]
[null,"8.2","Hepatitis C Prescription Drug FFS",0,{"$nulls":10},0,{"$nulls":10},0,{"$nulls":10},0,{"$nulls":11},{"$f":"SUM(AX57:BG57)+AV57","v":0},0,0,0,0,0,0,0,0,0,0]
[null,"8.3","Ending IBNP for Prescription Drugs",0,{"$nulls":10},0,{"$nulls":10},0,{"$nulls":10},0,{"$nulls":11},0,0,0,0,0,0,0,0,0,0,0]
[null,"8.4","Prescription Drug Rebates ",0,{"$nulls":10},0,{"$nulls":10},0,{"$nulls":10},0,{"$nulls":11},0,0,0,0,0,0,0,0,0,0,0]
[null,"8.5","Ending accrual for Rebates receivable",0,{"$nulls":10},0,{"$nulls":10},0,{"$nulls":10},0,{"$nulls":11},0,0,0,0,0,0,0,0,0,0,0]
[null,"8.6","Prescription Drugs Subcapitation",0,{"$nulls":10},0,{"$nulls":10},0,{"$nulls":10},0,{"$nulls":11},0,0,0,0,0,0,0,0,0,0,0]
[null,"8.7","Prescription Drug Settlements/AP",0,{"$nulls":10},0,{"$nulls":10},0,{"$nulls":10},0,{"$nulls":11},0,0,0,0,0,0,0,0,0,0,0]
[null,"8.8","Total Prescription Drugs",{"$f":"SUM(D56:D62)","v":0},{"$f":"SUM(E56:E62)","v":0},0,0,0,0,0,0,0,0,0,0,0,0,0,0,0,0,0,0,0,0,0,0,0,0,0,0,0,0,0,0,0,0,0,0,0,0,0,0,0,0,0,0,0,0,0,0,0,0,0,0,0,0,0,0]
["Other Services",9.1,"Home Health, Private Duty Nursing, Personal Care FFS",{"$f":"SUM(E64:L64)","v":0},{"$nulls":10},{"$f":"SUM(P64:W64)","v":0},{"$nulls":10},{"$f":"SUM(AA64:AH64)","v":0},{"$nulls":10},{"$f":"SUM(AL64:AS64)","v":0},{"$nulls":11},{"$f":"SUM(AX64:BE64)+AV64","v":0},{"$f":"E64+P64+AA64+AL64","v":0},0,0,0,0,0,0,0]
[null,"9.2","Hospice FFS",{"$f":"SUM(E65:L65)","v":0},{"$nulls":10},{"$f":"SUM(P65:W65)","v":0},{"$nulls":10},{"$f":"SUM(AA65:AH65)","v":0},{"$nulls":10},{"$f":"SUM(AL65:AS65)","v":0},{"$nulls":11},{"$f":"SUM(AX65:BE65)+AV65","v":0},0,0,0,0,0,0,0,0]
[null,"9.3","DME FFS",{"$f":"SUM(E66:L66)","v":0},{"$nulls":10},{"$f":"SUM(P66:W66)","v":0},{"$nulls":10},{"$f":"SUM(AA66:AH66)","v":0},{"$nulls":10},{"$f":"SUM(AL66:AS66)","v":0},{"$nulls":11},0,0,0,0,0,0,0,0,0]
[null,"9.4","Other State Plan Services FFS",{"$f":"SUM(E67:N67)","v":0},{"$nulls":10},{"$f":"SUM(P67:Y67)","v":0},{"$nulls":10},{"$f":"SUM(AA67:AJ67)","v":0},{"$nulls":10},{"$f":"SUM(AL67:AU67)","v":0},{"$nulls":11},{"$f":"SUM(AX67:BG67)+AV67","v":0},0,0,0,0,0,0,0,0,0,0]
[null,"9.5","Other Services Subcapitation",{"$f":"SUM(E68:N68)","v":0},{"$nulls":10},{"$f":"SUM(P68:Y68)","v":0},{"$nulls":10},{"$f":"SUM(AA68:AJ68)","v":0},{"$nulls":10},{"$f":"SUM(AL68:AU68)","v":0},{"$nulls":11},{"$f":"SUM(AX68:BG68)+AV68","v":0},0,0,0,0,0,0,0,0,0,0]
[null,"9.6","Ending IBNP for Other Services",{"$f":"SUM(E69:N69)","v":0},{"$nulls":10},{"$f":"SUM(P69:Y69)","v":0},{"$nulls":10},{"$f":"SUM(AA69:AJ69)","v":0},{"$nulls":10},{"$f":"SUM(AL69:AU69)","v":0},{"$nulls":11},{"$f":"SUM(AX69:BG69)+AV69","v":0},0,0,0,0,0,0,0,0,0,0]
[null,"9.7","Other Services Settlements/AP",{"$f":"SUM(E70:N70)","v":0},{"$nulls":10},{"$f":"SUM(P70:Y70)","v":0},{"$nulls":10},{"$f":"SUM(AA70:AJ70)","v":0},{"$nulls":10},{"$f":"SUM(AL70:AU70)","v":0},{"$nulls":11},{"$f":"SUM(AX70:BG70)+AV70","v":0},0,0,0,0,0,0,0,0,0,0]
[null,"9.8","Total Other Services",{"$f":"SUM(D64:D70)","v":0},{"$f":"SUM(E64:E70)","v":0},0,0,0,0,0,0,0,{"$f":"SUM(M67:M70)","v":0},{"$f":"SUM(N67:N70)","v":0},0,0,0,0,0,0,0,0,0,{"$f":"SUM(X67:X70)","v":0},{"$f":"SUM(Y67:Y70)","v":0},0,0,0,0,0,0,0,0,0,{"$f":"SUM(AI67:AI70)","v":0},{"$f":"SUM(AJ67:AJ70)","v":0},0,0,0,0,0,0,0,0,0,{"$f":"SUM(AT67:AT70)","v":0},{"$f":"SUM(AU67:AU70)","v":0},{"$f":"SUM(AV64:AV70)","v":0},0,0,0,0,0,0,0,{"$f":"SUM(BD64:BD70)","v":0},{"$f":"SUM(BE64:BE70)","v":0},{"$f":"SUM(BF67:BF70)","v":0},{"$f":"SUM(BG67:BG70)","v":0}]
["Expanded Benefits","10.1","Expanded Benefits FFS",{"$f":"SUM(E72:N72)","v":0},{"$nulls":10},{"$f":"SUM(P72:Y72)","v":0},{"$nulls":10},{"$f":"SUM(AA72:AJ72)","v":0},{"$nulls":10},{"$f":"SUM(AL72:AU72)","v":0},{"$nulls":11},{"$f":"SUM(AX72:BG72)+AV72","v":0},{"$f":"E72+P72+AA72+AL72","v":0},{"$f":"F72+Q72+AB72+AM72","v":0},0,0,0,0,0,0,0,0]
[null,"10.2","Expanded Benefits Subcapitation",{"$f":"SUM(E73:N73)","v":0},{"$nulls":10},{"$f":"SUM(P73:Y73)","v":0},{"$nulls":10},{"$f":"SUM(AA73:AJ73)","v":0},{"$nulls":10},{"$f":"SUM(AL73:AU73)","v":0},{"$nulls":11},{"$f":"SUM(AX73:BG73)+AV73","v":0},{"$f":"E73+P73+AA73+AL73","v":0},0,{"$f":"G73+R73+AC73+AN73","v":0},0,0,0,0,0,0,0]
[null,"10.3","Ending IBNP for Expanded Benefits",{"$f":"SUM(E74:N74)","v":0},{"$nulls":10},{"$f":"SUM(P74:Y74)","v":0},{"$nulls":10},{"$f":"SUM(AA74:AJ74)","v":0},{"$nulls":10},{"$f":"SUM(AL74:AU74)","v":0},{"$nulls":11},{"$f":"SUM(AX74:BG74)+AV74","v":0},{"$f":"E74+P74+AA74+AL74","v":0},0,{"$f":"G74+R74+AC74+AN74","v":0},0,0,0,0,0,0,0]
[null,"10.4","Expanded Benefits Settlements/AP",{"$f":"SUM(E75:N75)","v":0},{"$nulls":10},{"$f":"SUM(P75:Y75)","v":0},{"$nulls":10},{"$f":"SUM(AA75:AJ75)","v":0},{"$nulls":10},{"$f":"SUM(AL75:AU75)","v":0},{"$nulls":11},{"$f":"SUM(AX75:BG75)+AV75","v":0},{"$f":"E75+P75+AA75+AL75","v":0},0,{"$f":"G75+R75+AC75+AN75","v":0},0,0,0,0,0,0,0]
[null,"10.5","Total Expanded Benefits",{"$f":"SUM(D72:D75)","v":0},{"$f":"SUM(E72:E75)","v":0},0,0,0,0,0,0,0,0,0,0,0,0,0,0,0,0,0,0,{"$f":"SUM(X72:X75)","v":0},0,0,0,0,0,0,0,0,0,0,0,0,0,0,0,0,0,0,0,0,0,0,0,0,0,0,0,0,0,0,0,0,0,0,0]
["Totals Before and After Reinsurance","11.1","Total Services Paid Directly FFS",{"$f":"D20+SUM(D22:D23,D27)+SUM(D29:D32)+D37+D41+D46+D51+SUM(D56:D57)+SUM(D59:D60)+SUM(D64:D67)+D72","v":0},{"$f":"E20+SUM(E22:E23,E27)+SUM(E29:E32)+E37+E41+E46+E51+SUM(E56:E57)+SUM(E59:E60)+SUM(E64:E67)+E72","v":0},{"$f":"F20+SUM(F22:F23,F27)+SUM(F29:F32)+F37+F41+F46+F51+SUM(F56:F57)+SUM(F59:F60)+SUM(F64:F67)+F72","v":0},{"$f":"G20+SUM(G22:G23,G27)+SUM(G29:G32)+G37+G41+G46+G51+SUM(G56:G57)+SUM(G59:G60)+SUM(G64:G67)+G72","v":0},0,0,0,0,0,0,0,{"$f":"O20+SUM(O22:O23,O27)+SUM(O29:O32)+O37+O41+O46+O51+SUM(O56:O57)+SUM(O59:O60)+SUM(O64:O67)+O72","v":0},{"$f":"P20+SUM(P22:P23,P27)+SUM(P29:P32)+P37+P41+P46+P51+SUM(P56:P57)+SUM(P59:P60)+SUM(P64:P67)+P72","v":0},0,0,0,0,0,0,0,0,0,{"$f":"Z20+SUM(Z22:Z23,Z27)+SUM(Z29:Z32)+Z37+Z41+Z46+Z51+SUM(Z56:Z57)+SUM(Z59:Z60)+SUM(Z64:Z67)+Z72","v":0},{"$f":"AA20+SUM(AA22:AA23,AA27)+SUM(AA29:AA32)+AA37+AA41+AA46+AA51+SUM(AA56:AA57)+SUM(AA59:AA60)+SUM(AA64:AA67)+AA72","v":0},0,0,0,0,0,0,0,0,0,{"$f":"AK20+SUM(AK22:AK23,AK27)+SUM(AK29:AK32)+AK37+AK41+AK46+AK51+SUM(AK56:AK57)+SUM(AK59:AK60)+SUM(AK64:AK67)+AK72","v":0},{"$f":"AL20+SUM(AL22:AL23,AL27)+SUM(AL29:AL32)+AL37+AL41+AL46+AL51+SUM(AL56:AL57)+SUM(AL59:AL60)+SUM(AL64:AL67)+AL72","v":0},0,0,0,0,0,0,0,0,0,{"$f":"AV20+SUM(AV22:AV23,AV27)+SUM(AV29:AV32)+AV37+AV41+AV46+AV51+SUM(AV56:AV57)+SUM(AV59:AV60)+SUM(AV64:AV67)+AV72","v":0},{"$f":"AW20+SUM(AW22:AW23,AW27)+SUM(AW29:AW32)+AW37+AW41+AW46+AW51+SUM(AW56:AW57)+SUM(AW59:AW60)+SUM(AW64:AW67)+AW72","v":0},{"$f":"AX20+SUM(AX22:AX23,AX27)+SUM(AX29:AX32)+AX37+AX41+AX46+AX51+SUM(AX56:AX57)+SUM(AX59:AX60)+SUM(AX64:AX67)+AX72","v":0},0,0,0,0,0,0,0,0,0]
[null,"11.2","Total Services Paid Directly -- IBNP",{"$f":"D21+D24+D34+D38+D43+D48+D53+D58+D69+D74","v":0},{"$f":"E21+E24+E34+E38+E43+E48+E53+E58+E69+E74","v":0},{"$f":"F21+F24+F34+F38+F43+F48+F53+F58+F69+F74","v":0},{"$f":"G21+G24+G34+G38+G43+G48+G53+G58+G69+G74","v":0},0,0,0,0,0,0,0,{"$f":"O21+O24+O34+O38+O43+O48+O53+O58+O69+O74","v":0},{"$f":"P21+P24+P34+P38+P43+P48+P53+P58+P69+P74","v":0},0,0,0,0,0,0,0,0,0,{"$f":"Z21+Z24+Z34+Z38+Z43+Z48+Z53+Z58+Z69+Z74","v":0},{"$f":"AA21+AA24+AA34+AA38+AA43+AA48+AA53+AA58+AA69+AA74","v":0},0,0,0,0,0,0,0,0,0,{"$f":"AK21+AK24+AK34+AK38+AK43+AK48+AK53+AK58+AK69+AK74","v":0},{"$f":"AL21+AL24+AL34+AL38+AL43+AL48+AL53+AL58+AL69+AL74","v":0},0,0,0,0,0,0,0,0,0,{"$f":"AV21+AV24+AV34+AV38+AV43+AV48+AV53+AV58+AV69+AV74","v":0},{"$f":"AW21+AW24+AW34+AW38+AW43+AW48+AW53+AW58+AW69+AW74","v":0},{"$f":"AX21+AX24+AX34+AX38+AX43+AX48+AX53+AX58+AX69+AX74","v":0},0,0,0,0,0,0,0,0,0]
[null,"11.3","Total Services Paid through Subcapitation",{"$f":"D25+D33+D42+D47+D52+D61+D68+D73","v":0},{"$f":"E25+E33+E42+E47+E52+E61+E68+E73","v":0},{"$f":"F25+F33+F42+F47+F52+F61+F68+F73","v":0},{"$f":"G25+G33+G42+G47+G52+G61+G68+G73","v":0},0,0,0,0,0,0,0,{"$f":"O25+O33+O42+O47+O52+O61+O68+O73","v":0},{"$f":"P25+P33+P42+P47+P52+P61+P68+P73","v":0},0,0,0,0,0,0,0,0,0,{"$f":"Z25+Z33+Z42+Z47+Z52+Z61+Z68+Z73","v":0},{"$f":"AA25+AA33+AA42+AA47+AA52+AA61+AA68+AA73","v":0},0,0,0,0,0,0,0,0,0,{"$f":"AK25+AK33+AK42+AK47+AK52+AK61+AK68+AK73","v":0},{"$f":"AL25+AL33+AL42+AL47+AL52+AL61+AL68+AL73","v":0},0,0,0,0,0,0,0,0,0,{"$f":"AV25+AV33+AV42+AV47+AV52+AV61+AV68+AV73","v":0},{"$f":"AW25+AW33+AW42+AW47+AW52+AW61+AW68+AW73","v":0},{"$f":"AX25+AX33+AX42+AX47+AX52+AX61+AX68+AX73","v":0},0,0,0,0,0,0,0,0,0]
[null,"11.4","Total Services Paid by Settlements/AP",{"$f":"D26+D35+D39+D44+D49+D54+D62+D70+D75","v":0},{"$f":"E26+E35+E39+E44+E49+E54+E62+E70+E75","v":0},{"$f":"F26+F35+F39+F44+F49+F54+F62+F70+F75","v":0},{"$f":"G26+G35+G39+G44+G49+G54+G62+G70+G75","v":0},0,0,0,0,0,0,0,{"$f":"O26+O35+O39+O44+O49+O54+O62+O70+O75","v":0},{"$f":"P26+P35+P39+P44+P49+P54+P62+P70+P75","v":0},0,0,0,0,0,0,0,0,0,{"$f":"Z26+Z35+Z39+Z44+Z49+Z54+Z62+Z70+Z75","v":0},{"$f":"AA26+AA35+AA39+AA44+AA49+AA54+AA62+AA70+AA75","v":0},0,0,0,0,0,0,0,0,0,{"$f":"AK26+AK35+AK39+AK44+AK49+AK54+AK62+AK70+AK75","v":0},{"$f":"AL26+AL35+AL39+AL44+AL49+AL54+AL62+AL70+AL75","v":0},0,0,0,0,0,0,0,0,0,0,{"$f":"AW26+AW35+AW39+AW44+AW49+AW54+AW62+AW70+AW75","v":0},{"$f":"AX26+AX35+AX39+AX44+AX49+AX54+AX62+AX70+AX75","v":0},0,0,0,0,0,0,0,0,0]
[null,"11.5","TPL & Fraud/Abuse Recoveries",{"$f":"SUM(E81:N81)","v":0},{"$nulls":10},{"$f":"SUM(P81:Y81)","v":0},{"$nulls":10},{"$f":"SUM(AA81:AJ81)","v":0},{"$nulls":10},{"$f":"SUM(AL81:AU81)","v":0},{"$nulls":11},{"$f":"SUM(AX81:BG81)+AV81","v":0},{"$f":"E81+P81+AA81+AL81","v":0},{"$f":"F81+Q81+AB81+AM81","v":0},{"$f":"G81+R81+AC81+AN81","v":0},{"$f":"H81+S81+AD81+AO81","v":0},0,0,0,0,0,0]
[null,"11.6.1","Premium Deficiency Reserve",{"$f":"SUM(E82:N82)","v":0},{"$nulls":10},{"$f":"SUM(P82:Y82)","v":0},{"$nulls":10},{"$f":"SUM(AA82:AJ82)","v":0},{"$nulls":10},{"$f":"SUM(AL82:AU82)","v":0},{"$nulls":11},{"$f":"SUM(AX82:BG82)+AV82","v":0},{"$f":"E82+P82+AA82+AL82","v":0},0,{"$f":"G82+R82+AC82+AN82","v":0},0,0,0,0,0,0,0]
[null,"11.7","Subtotal Benefit Expense before Reinsurance",{"$f":"SUM(D77:D82)","v":0},{"$f":"SUM(E77:E82)","v":0},0,0,0,0,0,0,0,0,0,0,0,0,0,0,0,0,0,0,0,0,0,0,0,0,0,0,0,0,0,0,0,0,0,0,0,0,0,0,0,0,0,0,0,0,0,0,0,0,0,0,0,0,0,0]
[null,"11.8","Reinsurance Premiums",{"$f":"SUM(E84:N84)","v":0},{"$nulls":10},{"$f":"SUM(P84:Y84)","v":0},{"$nulls":10},{"$f":"SUM(AA84:AJ84)","v":0},{"$nulls":10},{"$f":"SUM(AL84:AU84)","v":0},{"$nulls":11},{"$f":"SUM(AX84:BG84)+AV84","v":0},{"$f":"E84+P84+AA84+AL84","v":0},{"$f":"F84+Q84+AB84+AM84","v":0},0,0,0,0,0,0,0,0]
[null,"11.9","Reinsurance Recoveries",{"$f":"SUM(E85:N85)","v":0},{"$nulls":10},{"$f":"SUM(P85:Y85)","v":0},{"$nulls":10},{"$f":"SUM(AA85:AJ85)","v":0},{"$nulls":10},{"$f":"SUM(AL85:AU85)","v":0},{"$nulls":11},{"$f":"SUM(AX85:BG85)+AV85","v":0},{"$f":"E85+P85+AA85+AL85","v":0},0,{"$f":"G85+R85+AC85+AN85","v":0},0,0,0,0,0,0,0]
[null,"11.10","Net cost of Reinsurance",{"$f":"SUM(D84:D85)","v":0},{"$f":"SUM(E84:E85)","v":0},0,0,0,0,0,0,0,0,0,{"$f":"SUM(O84:O85)","v":0},{"$f":"SUM(P84:P85)","v":0},0,0,0,0,0,0,0,0,0,{"$f":"SUM(Z84:Z85)","v":0},{"$f":"SUM(AA84:AA85)","v":0},0,0,0,0,0,0,0,0,0,{"$f":"SUM(AK84:AK85)","v":0},{"$f":"SUM(AL84:AL85)","v":0},{"$f":"SUM(AM84:AM85)","v":0},0,0,0,0,0,0,0,0,0,{"$f":"SUM(AW84:AW85)","v":0},{"$f":"SUM(AX84:AX85)","v":0},0,{"$f":"SUM(AZ84:AZ85)","v":0},0,{"$f":"SUM(BB84:BB85)","v":0},0,0,0,0,0]
[null,"11.11","Grand Total Medical Benefit Expense Net of Reinsurance",{"$f":"D83+D86","v":0},{"$f":"E83+E86","v":0},0,0,0,0,0,0,0,0,0,{"$f":"O83+O86","v":0},{"$f":"P83+P86","v":0},0,0,0,0,0,0,0,0,0,{"$f":"Z83+Z86","v":0},{"$f":"AA83+AA86","v":0},0,0,0,0,0,0,0,0,0,{"$f":"AK83+AK86","v":0},{"$f":"AL83+AL86","v":0},{"$f":"AM83+AM86","v":0},0,0,0,0,0,0,0,0,0,{"$f":"AW83+AW86","v":0},{"$f":"AX83+AX86","v":0},{"$f":"AY83+AY86","v":0},0,0,0,0,0,0,0,0]
["Administrative Expenses, Government-Mandated Assessments, Taxes, and Fees ",null,null,"JANUARY - MARCH (Q1)",{"$nulls":10},"APRIL - JUNE (Q2)",{"$nulls":10},"JULY - SEPTEMBER (Q3)",{"$nulls":10},"OCTOBER - DECEMBER (Q4)",{"$nulls":11},"TOTAL (TO DATE)"]
[{"$nulls":3},"Total","Health Plan","Corporate",{"$nulls":8},"Total","Health Plan","Corporate",{"$nulls":8},"Total","Health Plan","Corporate",{"$nulls":8},"Total","Health Plan","Corporate",{"$nulls":8},"Prior Year Adjustments","Total","Health Plan","Corporate"]
["Administrative Expenses","12.1","Salaries & Benefits",{"$f":"E90+F90","v":0},{"$nulls":10},{"$f":"P90+Q90","v":0},{"$nulls":10},{"$f":"AA90+AB90","v":0},{"$nulls":10},{"$f":"AL90+AM90","v":0},{"$nulls":11},{"$f":"AX90+AY90+AV90","v":0},{"$f":"E90+P90+AA90+AL90","v":0},{"$f":"F90+Q90+AB90+AM90","v":0}]
[null,"12.2","Administrative Services",{"$f":"E91+F91","v":0},{"$nulls":10},{"$f":"P91+Q91","v":0},{"$nulls":10},{"$f":"AA91+AB91","v":0},{"$nulls":10},{"$f":"AL91+AM91","v":0},{"$nulls":11},0,{"$f":"E91+P91+AA91+AL91","v":0},0]
[null,"12.3","Information Systems",0,{"$nulls":10},0,{"$nulls":10},0,{"$nulls":10},0,{"$nulls":11},0,0,0]
[null,"12.4","Marketing Expenses",0,{"$nulls":10},0,{"$nulls":10},0,{"$nulls":10},0,{"$nulls":11},0,0,0]
[null,"12.5","General  Administration",0,{"$nulls":10},0,{"$nulls":10},0,{"$nulls":10},0,{"$nulls":11},0,0,0]
[null,"12.6","Compliance/Regulatory",0,{"$nulls":10},0,{"$nulls":10},0,{"$nulls":10},0,{"$nulls":11},0,0,0]
[null,"12.7","Total Administrative Expenses ",{"$f":"E96+F96","v":0},{"$f":"SUM(E90:E95)","v":0},{"$f":"SUM(F90:F95)","v":0},{"$nulls":8},{"$f":"P96+Q96","v":0},{"$f":"SUM(P90:P95)","v":0},0,{"$nulls":8},{"$f":"AA96+AB96","v":0},{"$f":"SUM(AA90:AA95)","v":0},0,{"$nulls":8},{"$f":"AL96+AM96","v":0},{"$f":"SUM(AL90:AL95)","v":0},0,{"$nulls":8},{"$f":"SUM(AV90:AV95)","v":0},0,{"$f":"SUM(AX90:AX95)","v":0},{"$f":"SUM(AY90:AY95)","v":0}]
["Government-Mandated Assessments, Taxes, and Fees Other Than Income Taxes","13.1","State Premium tax",{"$nulls":45},{"$f":"D97+O97+Z97+AK97+AV97","v":0}]
[null,"13.2","Department of Insurance Assessments",{"$nulls":45},0]
[null,"13.3","Section 9010 Health Insurance Providers Fee",{"$nulls":45},0]
[null,"13.4","Other 1",{"$nulls":45},0]
[null,"13.5","Other 2",{"$nulls":45},0]
[null,"13.6","Other 3",{"$nulls":45},0]
[null,"13.7","Total ",{"$f":"SUM(D97:D102)","v":0},{"$nulls":10},{"$f":"SUM(O97:O102)","v":0},{"$nulls":10},{"$f":"SUM(Z97:Z102)","v":0},{"$nulls":10},{"$f":"SUM(AK97:AK102)","v":0},{"$nulls":10},{"$f":"SUM(AV97:AV102)","v":0},{"$f":"SUM(AW97:AW102)","v":0}]
[null,"14.0","Grand Total Expenses",{"$f":"D87+D96+D103","v":0},{"$nulls":10},{"$f":"O87+O96+O103","v":0},{"$nulls":10},{"$f":"Z87+Z96+Z103","v":0},{"$nulls":10},{"$f":"AK87+AK96+AK103","v":0},{"$nulls":10},{"$f":"AV87+AV96+AV103","v":0},{"$f":"AW87+AW96+AW103","v":0}]
[null,"15.0","Underwriting Gain / (Loss)  --- AKA Pre-tax Earnings from Operations",{"$f":"D17-D104","v":0},{"$nulls":10},{"$f":"O17-O104","v":0},{"$nulls":10},{"$f":"Z17-Z104","v":0},{"$nulls":10},{"$f":"AK17-AK104","v":0},{"$nulls":10},{"$f":"AV17-AV104","v":0},{"$f":"AW17-AW104","v":0}]
[null,"16.0","Income Tax Expense",{"$nulls":45},{"$f":"D106+O106+Z106+AK106+AV106","v":0}]
[null,"17.0","Net Underwriting Gain (Loss)",{"$f":"D105-D106","v":0},{"$nulls":10},{"$f":"O105-O106","v":0},{"$nulls":10},{"$f":"Z105-Z106","v":0},{"$nulls":10},{"$f":"AK105-AK106","v":0},{"$nulls":10},{"$f":"AV105-AV106","v":0},{"$f":"AW105-AW106","v":0}]

{"sheet":"MMA Rev-Exp Region 11","index":17,"n_rows":107,"n_cols":59,"rows_kept":107,"hidden":true,"merged":[[6,3,6,13],[6,14,6,24],[6,25,6,35],[6,36,6,46],[6,48,6,58],[9,0,9,2],[10,0,16,0],[17,0,18,2],[17,3,17,13],[17,14,17,24],[17,25,17,35],[17,36,17,46],[17,48,17,58],[19,0,27,0],[28,0,35,0],[36,0,39,0],[40,0,44,0],[45,0,49,0],[50,0,54,0],[55,0,62,0],[63,0,70,0],[71,0,75,0],[76,0,86,0],[87,0,88,2],[87,3,87,13],[87,14,87,24],[87,25,87,35],[87,36,87,46],[87,48,87,58],[89,0,95,0],[96,0,102,0]]}
["MANAGED MEDICAL ASSISTANCE -- REVENUE AND EXPENSE SCHEDULE - REGION 11"]
[]
["Health Plan:",null,{"$f":"'MMA Rev-Exp Summary'!C3","v":0}]
["Reporting Period:",null,{"$f":"IF('MMA Rev-Exp Summary'!C4=0,\"\",'MMA Rev-Exp Summary'!C4)","v":""}]
["Paid Through:",null,{"$f":"IF('MMA Rev-Exp Summary'!C5=0,\"\",'MMA Rev-Exp Summary'!C5)","v":""}]
["Region 11"]
[{"$nulls":3},"JANUARY - MARCH (Q1)",{"$nulls":10},"APRIL - JUNE (Q2)",{"$nulls":10},"JULY - SEPTEMBER (Q3)",{"$nulls":10},"OCTOBER - DECEMBER (Q4)",{"$nulls":11},"TOTAL (TO DATE)"]
[{"$nulls":3},"Total","TANF Non-SMI","TANF SMI","SSI Medicaid Only Non-SMI","SSI Medicaid Only SMI","Dual Eligible","Child Welfare","HIV/AIDS Dual Eligible","HIV/AIDS Medicaid Only","LTC Dual Eligible","LTC Medicaid Only","Total","TANF Non-SMI","TANF SMI","SSI Medicaid Only Non-SMI","SSI Medicaid Only SMI","Dual Eligible","Child Welfare","HIV/AIDS Dual Eligible","HIV/AIDS Medicaid Only","LTC Dual Eligible","LTC Medicaid Only","Total","TANF Non-SMI","TANF SMI","SSI Medicaid Only Non-SMI","SSI Medicaid Only SMI","Dual Eligible","Child Welfare","HIV/AIDS Dual Eligible","HIV/AIDS Medicaid Only","LTC Dual Eligible","LTC Medicaid Only","Total","TANF Non-SMI","TANF SMI","SSI Medicaid Only Non-SMI","SSI Medicaid Only SMI","Dual Eligible","Child Welfare","HIV/AIDS Dual Eligible","HIV/AIDS Medicaid Only","LTC Dual Eligible","LTC Medicaid Only","Prior Year Adjustments","Total","TANF Non-SMI","TANF SMI","SSI Medicaid Only Non-SMI","SSI Medicaid Only SMI","Dual Eligible","Child Welfare","HIV/AIDS Dual Eligible","HIV/AIDS Medicaid Only","LTC Dual Eligible","LTC Medicaid Only"]
["MEMBER MONTHS",null,null,{"$f":"SUM(E9:N9)","v":0},{"$nulls":10},{"$f":"SUM(P9:Y9)","v":0},{"$nulls":10},{"$f":"SUM(AA9:AJ9)","v":0},{"$nulls":10},{"$f":"SUM(AL9:AU9)","v":0},{"$nulls":11},{"$f":"AK9+Z9+O9+D9+AV9","v":0},{"$f":"AL9+AA9+P9+E9","v":0},{"$f":"AM9+AB9+Q9+F9","v":0},0,0,0,0,0,0,0,0]
["REVENUES"]
["Revenues",1.1,"Capitation",{"$f":"SUM(E11:N11)","v":0},{"$nulls":10},{"$f":"SUM(P11:Y11)","v":0},{"$nulls":10},{"$f":"SUM(AA11:AJ11)","v":0},{"$nulls":10},{"$f":"SUM(AL11:AU11)","v":0},{"$nulls":11},{"$f":"SUM(AX11:BG11)+AV11","v":0},{"$f":"E11+P11+AA11+AL11","v":0},0,0,0,0,0,0,0,0,0]
[null,1.2,"Transplant Kick Payments",0,{"$nulls":10},0,{"$nulls":10},0,{"$nulls":10},0,{"$nulls":11},{"$f":"SUM(AX12:BG12)+AV12","v":0},0,0,{"$f":"G12+R12+AC12+AN12","v":0},0,0,0,0,0,0,0]
[null,"1.3","Hepatitis C Kick Payments",0,{"$nulls":10},0,{"$nulls":10},0,{"$nulls":10},0,{"$nulls":11},0,0,0,{"$f":"G13+R13+AC13+AN13","v":0},0,0,0,0,0,0,0]
[null,"1.4.1","Maternity Kick Payments",0,{"$nulls":10},0,{"$nulls":10},0,{"$nulls":10},0,{"$nulls":11},0,0,0,{"$f":"G14+R14+AC14+AN14","v":0},0,0,0,0,0,0,0]
[null,"1.5","ACA § 9010 related payments",0,{"$nulls":10},0,{"$nulls":10},0,{"$nulls":10},0,{"$nulls":11},0,0,0,{"$f":"G15+R15+AC15+AN15","v":0},0,0,0,0,0,0,0]
[null,"1.6","Other Revenue",0,{"$nulls":10},0,{"$nulls":10},0,{"$nulls":10},0,{"$nulls":11},0,0,0,{"$f":"G16+R16+AC16+AN16","v":0},0,0,0,0,0,0,0]
[null,"1.7","Total Revenue",{"$f":"SUM(D11:D16)","v":0},{"$f":"SUM(E11:E16)","v":0},{"$f":"SUM(F11:F16)","v":0},{"$f":"SUM(G11:G16)","v":0},0,0,0,0,0,0,0,{"$f":"SUM(O11:O16)","v":0},{"$f":"SUM(P11:P16)","v":0},{"$f":"SUM(Q11:Q16)","v":0},{"$f":"SUM(R11:R16)","v":0},0,0,0,0,0,0,0,{"$f":"SUM(Z11:Z16)","v":0},{"$f":"SUM(AA11:AA16)","v":0},{"$f":"SUM(AB11:AB16)","v":0},{"$f":"SUM(AC11:AC16)","v":0},0,0,0,0,0,0,0,{"$f":"SUM(AK11:AK16)","v":0},{"$f":"SUM(AL11:AL16)","v":0},{"$f":"SUM(AM11:AM16)","v":0},0,0,0,0,0,0,0,0,0,{"$f":"SUM(AW11:AW16)","v":0},{"$f":"SUM(AX11:AX16)","v":0},{"$f":"SUM(AY11:AY16)","v":0},0,0,0,0,0,0,0,0]
["BENEFIT EXPENSES",null,null,"JANUARY - MARCH (Q1)",{"$nulls":10},"APRIL - JUNE (Q2)",{"$nulls":10},"JULY - SEPTEMBER (Q3)",{"$nulls":10},"OCTOBER - DECEMBER (Q4)",{"$nulls":11},"TOTAL (TO DATE)"]
[{"$nulls":3},"Total","TANF Non-SMI","TANF SMI","SSI Medicaid Only Non-SMI","SSI Medicaid Only SMI","Dual Eligible","Child Welfare","HIV/AIDS Dual Eligible","HIV/AIDS Medicaid Only","LTC Dual Eligible","LTC Medicaid Only","Total","TANF Non-SMI","TANF SMI","SSI Medicaid Only Non-SMI","SSI Medicaid Only SMI","Dual Eligible","Child Welfare","HIV/AIDS Dual Eligible","HIV/AIDS Medicaid Only","LTC Dual Eligible","LTC Medicaid Only","Total","TANF Non-SMI","TANF SMI","SSI Medicaid Only Non-SMI","SSI Medicaid Only SMI","Dual Eligible","Child Welfare","HIV/AIDS Dual Eligible","HIV/AIDS Medicaid Only","LTC Dual Eligible","LTC Medicaid Only","Total","TANF Non-SMI","TANF SMI","SSI Medicaid Only Non-SMI","SSI Medicaid Only SMI","Dual Eligible","Child Welfare","HIV/AIDS Dual Eligible","HIV/AIDS Medicaid Only","LTC Dual Eligible","LTC Medicaid Only","Prior Year Adjustments","Total","TANF Non-SMI","TANF SMI","SSI Medicaid Only Non-SMI","SSI Medicaid Only SMI","Dual Eligible","Child Welfare","HIV/AIDS Dual Eligible","HIV/AIDS Medicaid Only","LTC Dual Eligible","LTC Medicaid Only"]
["Hospital Services",2.1,"Inpatient FFS",{"$f":"SUM(E20:N20)","v":0},{"$nulls":10},{"$f":"SUM(P20:Y20)","v":0},{"$nulls":10},{"$f":"SUM(AA20:AJ20)","v":0},{"$nulls":10},{"$f":"SUM(AL20:AU20)","v":0},{"$nulls":11},{"$f":"SUM(AX20:BG20)+AV20","v":0},{"$f":"E20+P20+AA20+AL20","v":0},0,0,0,0,0,0,0,0,0]
[null,2.2,"Ending IBNP for Inpatient Hospital Services",0,{"$nulls":10},0,{"$nulls":10},0,{"$nulls":10},0,{"$nulls":11},{"$f":"SUM(AX21:BG21)+AV21","v":0},0,0,0,0,0,0,0,0,0,0]
[null,2.3,"Outpatient FFS: ER",0,{"$nulls":10},0,{"$nulls":10},0,{"$nulls":10},0,{"$nulls":11},0,0,0,0,0,0,0,0,0,0,0]
[null,2.4,"Outpatient FFS: Other than ER ",0,{"$nulls":10},0,{"$nulls":10},0,{"$nulls":10},0,{"$nulls":11},0,0,0,0,0,0,0,0,0,0,0]
[null,2.5,"Ending IBNP for Outpatient Hospital Services",0,{"$nulls":10},0,{"$nulls":10},0,{"$nulls":10},0,{"$nulls":11},0,0,0,0,0,0,0,0,0,0,0]
[null,"2.6","Subcapitated Hospital Services",0,{"$nulls":10},0,{"$nulls":10},0,{"$nulls":10},0,{"$nulls":11},0,0,0,0,0,0,0,0,0,0,0]
[null,"2.7","Hospital Settlements/AP",0,{"$nulls":10},0,{"$nulls":10},0,{"$nulls":10},0,{"$nulls":11},0,0,0,0,0,0,0,0,0,0,0]
[null,"2.7.1","Transplant Services",0,{"$nulls":10},0,{"$nulls":10},0,{"$nulls":10},0,{"$nulls":11},0,0,0,0,0,0,0,0,0,0,0]
[null,"2.8","Total Hospital Services",{"$f":"SUM(D20:D27)","v":0},{"$f":"SUM(E20:E27)","v":0},0,0,0,0,0,0,0,0,0,{"$f":"SUM(O20:O27)","v":0},{"$f":"SUM(P20:P27)","v":0},0,0,0,0,0,0,0,0,0,{"$f":"SUM(Z20:Z27)","v":0},{"$f":"SUM(AA20:AA27)","v":0},0,0,0,0,0,0,0,0,0,{"$f":"SUM(AK20:AK27)","v":0},{"$f":"SUM(AL20:AL27)","v":0},0,0,0,0,0,0,0,0,0,{"$f":"SUM(AV20:AV27)","v":0},{"$f":"SUM(AW20:AW27)","v":0},{"$f":"SUM(AX20:AX27)","v":0},0,0,0,0,0,0,0,0,0]
["Professional Services",3.1,"Primary Care FFS",{"$f":"SUM(E29:N29)","v":0},{"$nulls":10},{"$f":"SUM(P29:Y29)","v":0},{"$nulls":10},{"$f":"SUM(AA29:AJ29)","v":0},{"$nulls":10},{"$f":"SUM(AL29:AU29)","v":0},{"$nulls":11},{"$f":"SUM(AX29:BG29)+AV29","v":0},{"$f":"E29+P29+AA29+AL29","v":0},0,0,0,0,0,0,0,0,0]
[null,3.2,"Specialty Care FFS",0,{"$nulls":10},0,{"$nulls":10},0,{"$nulls":10},0,{"$nulls":11},0,0,0,0,0,0,0,0,0,0,0]
[null,3.3,"Other Professional FFS",0,{"$nulls":10},0,{"$nulls":10},0,{"$nulls":10},0,{"$nulls":11},0,0,0,0,0,0,0,0,0,0,0]
[null,"3.4","§ 1202 PCP Payments to providers",0,{"$nulls":10},{"$f":"SUM(P32:Y32)","v":0},{"$nulls":10},{"$f":"SUM(AA32:AJ32)","v":0},{"$nulls":10},{"$f":"SUM(AL32:AU32)","v":0},{"$nulls":11},{"$f":"SUM(AX32:BG32)+AV32","v":0},0,0,0,0,0,0,0,0,0,0]
[null,"3.5","Subcapitated Professional Services",0,{"$nulls":10},0,{"$nulls":10},0,{"$nulls":10},0,{"$nulls":11},{"$f":"SUM(AX33:BG33)+AV33","v":0},0,0,0,0,0,0,0,0,0,0]
[null,"3.6","Ending IBNP for Professional Services",0,{"$nulls":10},0,{"$nulls":10},0,{"$nulls":10},0,{"$nulls":11},0,0,0,0,0,0,0,0,0,0,0]
[null,"3.7","Professional Settlements/AP",0,{"$nulls":10},0,{"$nulls":10},0,{"$nulls":10},0,{"$nulls":11},0,0,0,0,0,0,0,0,0,0,0]
[null,"3.8","Total Physician Services",{"$f":"SUM(D29:D35)","v":0},0,0,0,0,0,0,0,0,0,0,0,0,0,0,0,0,0,0,0,0,0,0,0,0,0,0,0,0,0,0,0,0,0,0,0,0,0,0,0,0,0,0,0,0,0,0,0,0,0,0,0,0,0,0,0]
["Maternity Services","4.1.1","Maternity Services",{"$f":"SUM(E37:N37)","v":0},{"$nulls":10},{"$f":"SUM(P37:Y37)","v":0},{"$nulls":10},{"$f":"SUM(AA37:AJ37)","v":0},{"$nulls":10},{"$f":"SUM(AL37:AU37)","v":0},{"$nulls":11},{"$f":"SUM(AX37:BG37)+AV37","v":0},{"$f":"E37+P37+AA37+AL37","v":0},{"$f":"F37+Q37+AB37+AM37","v":0},{"$f":"G37+R37+AC37+AN37","v":0},0,0,0,0,0,0,0]
[null,"4.2.1","Ending IBNP for Maternity Services",{"$f":"SUM(E38:N38)","v":0},{"$nulls":10},{"$f":"SUM(P38:Y38)","v":0},{"$nulls":10},{"$f":"SUM(AA38:AJ38)","v":0},{"$nulls":10},{"$f":"SUM(AL38:AU38)","v":0},{"$nulls":11},{"$f":"SUM(AX38:BG38)+AV38","v":0},{"$f":"E38+P38+AA38+AL38","v":0},0,{"$f":"G38+R38+AC38+AN38","v":0},0,0,0,0,0,0,0]
[null,"4.3.1","Maternity Settlements/AP",{"$f":"SUM(E39:N39)","v":0},{"$nulls":10},{"$f":"SUM(P39:Y39)","v":0},{"$nulls":10},{"$f":"SUM(AA39:AJ39)","v":0},{"$nulls":10},{"$f":"SUM(AL39:AU39)","v":0},{"$nulls":11},{"$f":"SUM(AX39:BG39)+AV39","v":0},{"$f":"E39+P39+AA39+AL39","v":0},0,{"$f":"G39+R39+AC39+AN39","v":0},0,0,0,0,0,0,0]
[null,"4.4.1","Total Maternity Services",{"$f":"SUM(D37:D39)","v":0},0,0,0,0,0,0,0,0,0,0,{"$f":"SUM(O37:O39)","v":0},0,0,0,0,0,{"$f":"SUM(U37:U39)","v":0},0,0,0,0,0,0,0,0,0,0,0,0,{"$f":"SUM(AH37:AH39)","v":0},0,0,0,0,0,0,0,0,0,0,0,0,0,0,0,{"$f":"SUM(AX37:AX39)","v":0},{"$f":"SUM(AY37:AY39)","v":0},0,0,0,0,0,0,0,0]
["Mental Health",5.1,"Mental Health & Substance Abuse FFS",{"$f":"SUM(E41:N41)","v":0},{"$nulls":10},{"$f":"SUM(P41:Y41)","v":0},{"$nulls":10},{"$f":"SUM(AA41:AJ41)","v":0},{"$nulls":10},{"$f":"SUM(AL41:AU41)","v":0},{"$nulls":11},{"$f":"SUM(AX41:BG41)+AV41","v":0},{"$f":"E41+P41+AA41+AL41","v":0},{"$f":"F41+Q41+AB41+AM41","v":0},0,0,0,0,0,0,0,0]
[null,5.2,"Mental Health & Substance Abuse Subcapitation",{"$f":"SUM(E42:N42)","v":0},{"$nulls":10},{"$f":"SUM(P42:Y42)","v":0},{"$nulls":10},{"$f":"SUM(AA42:AJ42)","v":0},{"$nulls":10},{"$f":"SUM(AL42:AU42)","v":0},{"$nulls":11},{"$f":"SUM(AX42:BG42)+AV42","v":0},{"$f":"E42+P42+AA42+AL42","v":0},0,{"$f":"G42+R42+AC42+AN42","v":0},0,0,0,0,0,0,0]
[null,5.3,"Ending IBNP for Mental Health & Substance Abuse",{"$f":"SUM(E43:N43)","v":0},{"$nulls":10},{"$f":"SUM(P43:Y43)","v":0},{"$nulls":10},{"$f":"SUM(AA43:AJ43)","v":0},{"$nulls":10},{"$f":"SUM(AL43:AU43)","v":0},{"$nulls":11},{"$f":"SUM(AX43:BG43)+AV43","v":0},{"$f":"E43+P43+AA43+AL43","v":0},0,{"$f":"G43+R43+AC43+AN43","v":0},0,0,0,0,0,0,0]
[null,"5.4","Mental Health Settlements/AP",{"$f":"SUM(E44:N44)","v":0},{"$nulls":10},{"$f":"SUM(P44:Y44)","v":0},{"$nulls":10},{"$f":"SUM(AA44:AJ44)","v":0},{"$nulls":10},{"$f":"SUM(AL44:AU44)","v":0},{"$nulls":11},{"$f":"SUM(AX44:BG44)+AV44","v":0},{"$f":"E44+P44+AA44+AL44","v":0},0,{"$f":"G44+R44+AC44+AN44","v":0},0,0,0,0,0,0,0]
[null,"5.5","Total Mental Health & Substance Abuse Services",{"$f":"SUM(D41:D44)","v":0},{"$f":"SUM(E41:E44)","v":0},0,0,0,{"$f":"SUM(I41:I44)","v":0},0,0,0,0,0,0,0,0,0,0,0,0,0,0,0,0,0,0,0,0,0,0,0,0,0,0,0,0,0,0,0,0,0,0,0,0,0,0,0,0,0,0,0,0,0,0,0,0,0,0]
["Dental",6.1,"Dental FFS",{"$f":"SUM(E46:N46)","v":0},{"$nulls":10},{"$f":"SUM(P46:Y46)","v":0},{"$nulls":10},{"$f":"SUM(AA46:AJ46)","v":0},{"$nulls":10},{"$f":"SUM(AL46:AU46)","v":0},{"$nulls":11},{"$f":"SUM(AX46:BG46)+AV46","v":0},{"$f":"E46+P46+AA46+AL46","v":0},{"$f":"F46+Q46+AB46+AM46","v":0},0,0,0,0,0,0,0,0]
[null,6.2,"Dental Subcapitation",{"$f":"SUM(E47:N47)","v":0},{"$nulls":10},{"$f":"SUM(P47:Y47)","v":0},{"$nulls":10},{"$f":"SUM(AA47:AJ47)","v":0},{"$nulls":10},{"$f":"SUM(AL47:AU47)","v":0},{"$nulls":11},{"$f":"SUM(AX47:BG47)+AV47","v":0},{"$f":"E47+P47+AA47+AL47","v":0},0,{"$f":"G47+R47+AC47+AN47","v":0},0,0,0,0,0,0,0]
[null,6.3,"Ending IBNP for Dental Services",{"$f":"SUM(E48:N48)","v":0},{"$nulls":10},{"$f":"SUM(P48:Y48)","v":0},{"$nulls":10},{"$f":"SUM(AA48:AJ48)","v":0},{"$nulls":10},{"$f":"SUM(AL48:AU48)","v":0},{"$nulls":11},{"$f":"SUM(AX48:BG48)+AV48","v":0},{"$f":"E48+P48+AA48+AL48","v":0},0,{"$f":"G48+R48+AC48+AN48","v":0},0,0,0,0,0,0,0]
[null,"6.4","Dental Settlements/AP",{"$f":"SUM(E49:N49)","v":0},{"$nulls":10},{"$f":"SUM(P49:Y49)","v":0},{"$nulls":10},{"$f":"SUM(AA49:AJ49)","v":0},{"$nulls":10},{"$f":"SUM(AL49:AU49)","v":0},{"$nulls":11},{"$f":"SUM(AX49:BG49)+AV49","v":0},{"$f":"E49+P49+AA49+AL49","v":0},0,{"$f":"G49+R49+AC49+AN49","v":0},0,0,0,0,0,0,0]
[null,"6.5","Total Dental Services",{"$f":"SUM(D46:D49)","v":0},{"$f":"SUM(E46:E49)","v":0},0,0,0,0,0,0,0,0,0,0,0,0,0,0,0,0,0,0,0,0,0,0,0,0,0,0,0,0,0,0,0,0,0,0,0,0,0,0,0,0,0,0,0,0,0,0,0,0,0,0,0,0,0,0]
["Transportation",7.1,"Transportation FFS",{"$f":"SUM(E51:N51)","v":0},{"$nulls":10},{"$f":"SUM(P51:Y51)","v":0},{"$nulls":10},{"$f":"SUM(AA51:AJ51)","v":0},{"$nulls":10},{"$f":"SUM(AL51:AU51)","v":0},{"$nulls":11},{"$f":"SUM(AX51:BG51)+AV51","v":0},{"$f":"E51+P51+AA51+AL51","v":0},{"$f":"F51+Q51+AB51+AM51","v":0},0,0,0,0,0,0,0,0]
[null,7.2,"Transportation Subcapitation",{"$f":"SUM(E52:N52)","v":0},{"$nulls":10},{"$f":"SUM(P52:Y52)","v":0},{"$nulls":10},{"$f":"SUM(AA52:AJ52)","v":0},{"$nulls":10},{"$f":"SUM(AL52:AU52)","v":0},{"$nulls":11},{"$f":"SUM(AX52:BG52)+AV52","v":0},{"$f":"E52+P52+AA52+AL52","v":0},0,{"$f":"G52+R52+AC52+AN52","v":0},0,0,0,0,0,0,0]
[null,7.3,"Ending IBNP for Transportation",{"$f":"SUM(E53:N53)","v":0},{"$nulls":10},{"$f":"SUM(P53:Y53)","v":0},{"$nulls":10},{"$f":"SUM(AA53:AJ53)","v":0},{"$nulls":10},{"$f":"SUM(AL53:AU53)","v":0},{"$nulls":11},{"$f":"SUM(AX53:BG53)+AV53","v":0},{"$f":"E53+P53+AA53+AL53","v":0},0,{"$f":"G53+R53+AC53+AN53","v":0},0,0,0,0,0,0,0]
[null,"7.4","Transportation Settlements/AP",{"$f":"SUM(E54:N54)","v":0},{"$nulls":10},{"$f":"SUM(P54:Y54)","v":0},{"$nulls":10},{"$f":"SUM(AA54:AJ54)","v":0},{"$nulls":10},{"$f":"SUM(AL54:AU54)","v":0},{"$nulls":11},{"$f":"SUM(AX54:BG54)+AV54","v":0},{"$f":"E54+P54+AA54+AL54","v":0},0,{"$f":"G54+R54+AC54+AN54","v":0},0,0,0,0,0,0,0]
[null,"7.5","Total Transportation Services",{"$f":"SUM(D51:D54)","v":0},{"$f":"SUM(E51:E54)","v":0},0,0,0,0,0,0,0,0,0,0,0,0,0,0,0,0,0,0,{"$f":"SUM(X51:X54)","v":0},0,0,0,0,0,0,0,0,0,0,0,0,0,0,0,0,0,0,0,0,0,0,0,0,0,0,0,0,0,0,0,0,0,0,0]
["Pharmacy",8.1,"Prescription Drugs FFS",{"$f":"SUM(E56:N56)","v":0},{"$nulls":10},{"$f":"SUM(P56:Y56)","v":0},{"$nulls":10},{"$f":"SUM(AA56:AJ56)","v":0},{"$nulls":10},{"$f":"SUM(AL56:AU56)","v":0},{"$nulls":11},{"$f":"SUM(AX56:BG56)+AV56","v":0},{"$f":"E56+P56+AA56+AL56","v":0},0,0,0,0,0,0,0,0,0]
[null,"8.2","Hepatitis C Prescription Drug FFS",0,{"$nulls":10},0,{"$nulls":10},0,{"$nulls":10},0,{"$nulls":11},{"$f":"SUM(AX57:BG57)+AV57","v":0},0,0,0,0,0,0,0,0,0,0]
[null,"8.3","Ending IBNP for Prescription Drugs",0,{"$nulls":10},0,{"$nulls":10},0,{"$nulls":10},0,{"$nulls":11},0,0,0,0,0,0,0,0,0,0,0]
[null,"8.4","Prescription Drug Rebates ",0,{"$nulls":10},0,{"$nulls":10},0,{"$nulls":10},0,{"$nulls":11},0,0,0,0,0,0,0,0,0,0,0]
[null,"8.5","Ending accrual for Rebates receivable",0,{"$nulls":10},0,{"$nulls":10},0,{"$nulls":10},0,{"$nulls":11},0,0,0,0,0,0,0,0,0,0,0]
[null,"8.6","Prescription Drugs Subcapitation",0,{"$nulls":10},0,{"$nulls":10},0,{"$nulls":10},0,{"$nulls":11},0,0,0,0,0,0,0,0,0,0,0]
[null,"8.7","Prescription Drug Settlements/AP",0,{"$nulls":10},0,{"$nulls":10},0,{"$nulls":10},0,{"$nulls":11},0,0,0,0,0,0,0,0,0,0,0]
[null,"8.8","Total Prescription Drugs",{"$f":"SUM(D56:D62)","v":0},{"$f":"SUM(E56:E62)","v":0},0,0,0,0,0,0,0,0,0,0,0,0,0,0,0,0,0,0,0,0,0,0,0,0,0,0,0,0,0,0,0,0,0,0,0,0,0,0,0,0,0,0,0,0,0,0,0,0,0,0,0,0,0,0]
["Other Services",9.1,"Home Health, Private Duty Nursing, Personal Care FFS",{"$f":"SUM(E64:L64)","v":0},{"$nulls":10},{"$f":"SUM(P64:W64)","v":0},{"$nulls":10},{"$f":"SUM(AA64:AH64)","v":0},{"$nulls":10},{"$f":"SUM(AL64:AS64)","v":0},{"$nulls":11},{"$f":"SUM(AX64:BE64)+AV64","v":0},{"$f":"E64+P64+AA64+AL64","v":0},0,0,0,0,0,0,0]
[null,"9.2","Hospice FFS",{"$f":"SUM(E65:L65)","v":0},{"$nulls":10},{"$f":"SUM(P65:W65)","v":0},{"$nulls":10},{"$f":"SUM(AA65:AH65)","v":0},{"$nulls":10},{"$f":"SUM(AL65:AS65)","v":0},{"$nulls":11},{"$f":"SUM(AX65:BE65)+AV65","v":0},0,0,0,0,0,0,0,0]
[null,"9.3","DME FFS",{"$f":"SUM(E66:L66)","v":0},{"$nulls":10},{"$f":"SUM(P66:W66)","v":0},{"$nulls":10},{"$f":"SUM(AA66:AH66)","v":0},{"$nulls":10},{"$f":"SUM(AL66:AS66)","v":0},{"$nulls":11},0,0,0,0,0,0,0,0,0]
[null,"9.4","Other State Plan Services FFS",{"$f":"SUM(E67:N67)","v":0},{"$nulls":10},{"$f":"SUM(P67:Y67)","v":0},{"$nulls":10},{"$f":"SUM(AA67:AJ67)","v":0},{"$nulls":10},{"$f":"SUM(AL67:AU67)","v":0},{"$nulls":11},{"$f":"SUM(AX67:BG67)+AV67","v":0},0,0,0,0,0,0,0,0,0,0]
[null,"9.5","Other Services Subcapitation",{"$f":"SUM(E68:N68)","v":0},{"$nulls":10},{"$f":"SUM(P68:Y68)","v":0},{"$nulls":10},{"$f":"SUM(AA68:AJ68)","v":0},{"$nulls":10},{"$f":"SUM(AL68:AU68)","v":0},{"$nulls":11},{"$f":"SUM(AX68:BG68)+AV68","v":0},0,0,0,0,0,0,0,0,0,0]
[null,"9.6","Ending IBNP for Other Services",{"$f":"SUM(E69:N69)","v":0},{"$nulls":10},{"$f":"SUM(P69:Y69)","v":0},{"$nulls":10},{"$f":"SUM(AA69:AJ69)","v":0},{"$nulls":10},{"$f":"SUM(AL69:AU69)","v":0},{"$nulls":11},{"$f":"SUM(AX69:BG69)+AV69","v":0},0,0,0,0,0,0,0,0,0,0]
[null,"9.7","Other Services Settlements/AP",{"$f":"SUM(E70:N70)","v":0},{"$nulls":10},{"$f":"SUM(P70:Y70)","v":0},{"$nulls":10},{"$f":"SUM(AA70:AJ70)","v":0},{"$nulls":10},{"$f":"SUM(AL70:AU70)","v":0},{"$nulls":11},{"$f":"SUM(AX70:BG70)+AV70","v":0},0,0,0,0,0,0,0,0,0,0]
[null,"9.8","Total Other Services",{"$f":"SUM(D64:D70)","v":0},{"$f":"SUM(E64:E70)","v":0},0,0,0,0,0,0,0,{"$f":"SUM(M67:M70)","v":0},{"$f":"SUM(N67:N70)","v":0},0,0,0,0,0,0,0,0,0,{"$f":"SUM(X67:X70)","v":0},{"$f":"SUM(Y67:Y70)","v":0},0,0,0,0,0,0,0,0,0,{"$f":"SUM(AI67:AI70)","v":0},{"$f":"SUM(AJ67:AJ70)","v":0},0,0,0,0,0,0,0,0,0,{"$f":"SUM(AT67:AT70)","v":0},{"$f":"SUM(AU67:AU70)","v":0},{"$f":"SUM(AV64:AV70)","v":0},0,0,0,0,0,0,0,{"$f":"SUM(BD64:BD70)","v":0},{"$f":"SUM(BE64:BE70)","v":0},{"$f":"SUM(BF67:BF70)","v":0},{"$f":"SUM(BG67:BG70)","v":0}]
["Expanded Benefits","10.1","Expanded Benefits FFS",{"$f":"SUM(E72:N72)","v":0},{"$nulls":10},{"$f":"SUM(P72:Y72)","v":0},{"$nulls":10},{"$f":"SUM(AA72:AJ72)","v":0},{"$nulls":10},{"$f":"SUM(AL72:AU72)","v":0},{"$nulls":11},{"$f":"SUM(AX72:BG72)+AV72","v":0},{"$f":"E72+P72+AA72+AL72","v":0},{"$f":"F72+Q72+AB72+AM72","v":0},0,0,0,0,0,0,0,0]
[null,"10.2","Expanded Benefits Subcapitation",{"$f":"SUM(E73:N73)","v":0},{"$nulls":10},{"$f":"SUM(P73:Y73)","v":0},{"$nulls":10},{"$f":"SUM(AA73:AJ73)","v":0},{"$nulls":10},{"$f":"SUM(AL73:AU73)","v":0},{"$nulls":11},{"$f":"SUM(AX73:BG73)+AV73","v":0},{"$f":"E73+P73+AA73+AL73","v":0},0,{"$f":"G73+R73+AC73+AN73","v":0},0,0,0,0,0,0,0]
[null,"10.3","Ending IBNP for Expanded Benefits",{"$f":"SUM(E74:N74)","v":0},{"$nulls":10},{"$f":"SUM(P74:Y74)","v":0},{"$nulls":10},{"$f":"SUM(AA74:AJ74)","v":0},{"$nulls":10},{"$f":"SUM(AL74:AU74)","v":0},{"$nulls":11},{"$f":"SUM(AX74:BG74)+AV74","v":0},{"$f":"E74+P74+AA74+AL74","v":0},0,{"$f":"G74+R74+AC74+AN74","v":0},0,0,0,0,0,0,0]
[null,"10.4","Expanded Benefits Settlements/AP",{"$f":"SUM(E75:N75)","v":0},{"$nulls":10},{"$f":"SUM(P75:Y75)","v":0},{"$nulls":10},{"$f":"SUM(AA75:AJ75)","v":0},{"$nulls":10},{"$f":"SUM(AL75:AU75)","v":0},{"$nulls":11},{"$f":"SUM(AX75:BG75)+AV75","v":0},{"$f":"E75+P75+AA75+AL75","v":0},0,{"$f":"G75+R75+AC75+AN75","v":0},0,0,0,0,0,0,0]
[null,"10.5","Total Expanded Benefits",{"$f":"SUM(D72:D75)","v":0},{"$f":"SUM(E72:E75)","v":0},0,0,0,0,0,0,0,0,0,0,0,0,0,0,0,0,0,0,{"$f":"SUM(X72:X75)","v":0},0,0,0,0,0,0,0,0,0,0,0,0,0,0,0,0,0,0,0,0,0,0,0,0,0,0,0,0,0,0,0,0,0,0,0]
["Totals Before and After Reinsurance","11.1","Total Services Paid Directly FFS",{"$f":"D20+SUM(D22:D23,D27)+SUM(D29:D32)+D37+D41+D46+D51+SUM(D56:D57)+SUM(D59:D60)+SUM(D64:D67)+D72","v":0},{"$f":"E20+SUM(E22:E23,E27)+SUM(E29:E32)+E37+E41+E46+E51+SUM(E56:E57)+SUM(E59:E60)+SUM(E64:E67)+E72","v":0},{"$f":"F20+SUM(F22:F23,F27)+SUM(F29:F32)+F37+F41+F46+F51+SUM(F56:F57)+SUM(F59:F60)+SUM(F64:F67)+F72","v":0},{"$f":"G20+SUM(G22:G23,G27)+SUM(G29:G32)+G37+G41+G46+G51+SUM(G56:G57)+SUM(G59:G60)+SUM(G64:G67)+G72","v":0},0,0,0,0,0,0,0,{"$f":"O20+SUM(O22:O23,O27)+SUM(O29:O32)+O37+O41+O46+O51+SUM(O56:O57)+SUM(O59:O60)+SUM(O64:O67)+O72","v":0},{"$f":"P20+SUM(P22:P23,P27)+SUM(P29:P32)+P37+P41+P46+P51+SUM(P56:P57)+SUM(P59:P60)+SUM(P64:P67)+P72","v":0},0,0,0,0,0,0,0,0,0,{"$f":"Z20+SUM(Z22:Z23,Z27)+SUM(Z29:Z32)+Z37+Z41+Z46+Z51+SUM(Z56:Z57)+SUM(Z59:Z60)+SUM(Z64:Z67)+Z72","v":0},{"$f":"AA20+SUM(AA22:AA23,AA27)+SUM(AA29:AA32)+AA37+AA41+AA46+AA51+SUM(AA56:AA57)+SUM(AA59:AA60)+SUM(AA64:AA67)+AA72","v":0},0,0,0,0,0,0,0,0,0,{"$f":"AK20+SUM(AK22:AK23,AK27)+SUM(AK29:AK32)+AK37+AK41+AK46+AK51+SUM(AK56:AK57)+SUM(AK59:AK60)+SUM(AK64:AK67)+AK72","v":0},{"$f":"AL20+SUM(AL22:AL23,AL27)+SUM(AL29:AL32)+AL37+AL41+AL46+AL51+SUM(AL56:AL57)+SUM(AL59:AL60)+SUM(AL64:AL67)+AL72","v":0},0,0,0,0,0,0,0,0,0,{"$f":"AV20+SUM(AV22:AV23,AV27)+SUM(AV29:AV32)+AV37+AV41+AV46+AV51+SUM(AV56:AV57)+SUM(AV59:AV60)+SUM(AV64:AV67)+AV72","v":0},{"$f":"AW20+SUM(AW22:AW23,AW27)+SUM(AW29:AW32)+AW37+AW41+AW46+AW51+SUM(AW56:AW57)+SUM(AW59:AW60)+SUM(AW64:AW67)+AW72","v":0},{"$f":"AX20+SUM(AX22:AX23,AX27)+SUM(AX29:AX32)+AX37+AX41+AX46+AX51+SUM(AX56:AX57)+SUM(AX59:AX60)+SUM(AX64:AX67)+AX72","v":0},0,0,0,0,0,0,0,0,0]
[null,"11.2","Total Services Paid Directly -- IBNP",{"$f":"D21+D24+D34+D38+D43+D48+D53+D58+D69+D74","v":0},{"$f":"E21+E24+E34+E38+E43+E48+E53+E58+E69+E74","v":0},{"$f":"F21+F24+F34+F38+F43+F48+F53+F58+F69+F74","v":0},{"$f":"G21+G24+G34+G38+G43+G48+G53+G58+G69+G74","v":0},0,0,0,0,0,0,0,{"$f":"O21+O24+O34+O38+O43+O48+O53+O58+O69+O74","v":0},{"$f":"P21+P24+P34+P38+P43+P48+P53+P58+P69+P74","v":0},0,0,0,0,0,0,0,0,0,{"$f":"Z21+Z24+Z34+Z38+Z43+Z48+Z53+Z58+Z69+Z74","v":0},{"$f":"AA21+AA24+AA34+AA38+AA43+AA48+AA53+AA58+AA69+AA74","v":0},0,0,0,0,0,0,0,0,0,{"$f":"AK21+AK24+AK34+AK38+AK43+AK48+AK53+AK58+AK69+AK74","v":0},{"$f":"AL21+AL24+AL34+AL38+AL43+AL48+AL53+AL58+AL69+AL74","v":0},0,0,0,0,0,0,0,0,0,{"$f":"AV21+AV24+AV34+AV38+AV43+AV48+AV53+AV58+AV69+AV74","v":0},{"$f":"AW21+AW24+AW34+AW38+AW43+AW48+AW53+AW58+AW69+AW74","v":0},{"$f":"AX21+AX24+AX34+AX38+AX43+AX48+AX53+AX58+AX69+AX74","v":0},0,0,0,0,0,0,0,0,0]
[null,"11.3","Total Services Paid through Subcapitation",{"$f":"D25+D33+D42+D47+D52+D61+D68+D73","v":0},{"$f":"E25+E33+E42+E47+E52+E61+E68+E73","v":0},{"$f":"F25+F33+F42+F47+F52+F61+F68+F73","v":0},{"$f":"G25+G33+G42+G47+G52+G61+G68+G73","v":0},0,0,0,0,0,0,0,{"$f":"O25+O33+O42+O47+O52+O61+O68+O73","v":0},{"$f":"P25+P33+P42+P47+P52+P61+P68+P73","v":0},0,0,0,0,0,0,0,0,0,{"$f":"Z25+Z33+Z42+Z47+Z52+Z61+Z68+Z73","v":0},{"$f":"AA25+AA33+AA42+AA47+AA52+AA61+AA68+AA73","v":0},0,0,0,0,0,0,0,0,0,{"$f":"AK25+AK33+AK42+AK47+AK52+AK61+AK68+AK73","v":0},{"$f":"AL25+AL33+AL42+AL47+AL52+AL61+AL68+AL73","v":0},0,0,0,0,0,0,0,0,0,{"$f":"AV25+AV33+AV42+AV47+AV52+AV61+AV68+AV73","v":0},{"$f":"AW25+AW33+AW42+AW47+AW52+AW61+AW68+AW73","v":0},{"$f":"AX25+AX33+AX42+AX47+AX52+AX61+AX68+AX73","v":0},0,0,0,0,0,0,0,0,0]
[null,"11.4","Total Services Paid by Settlements/AP",{"$f":"D26+D35+D39+D44+D49+D54+D62+D70+D75","v":0},{"$f":"E26+E35+E39+E44+E49+E54+E62+E70+E75","v":0},{"$f":"F26+F35+F39+F44+F49+F54+F62+F70+F75","v":0},{"$f":"G26+G35+G39+G44+G49+G54+G62+G70+G75","v":0},0,0,0,0,0,0,0,{"$f":"O26+O35+O39+O44+O49+O54+O62+O70+O75","v":0},{"$f":"P26+P35+P39+P44+P49+P54+P62+P70+P75","v":0},0,0,0,0,0,0,0,0,0,{"$f":"Z26+Z35+Z39+Z44+Z49+Z54+Z62+Z70+Z75","v":0},{"$f":"AA26+AA35+AA39+AA44+AA49+AA54+AA62+AA70+AA75","v":0},0,0,0,0,0,0,0,0,0,{"$f":"AK26+AK35+AK39+AK44+AK49+AK54+AK62+AK70+AK75","v":0},{"$f":"AL26+AL35+AL39+AL44+AL49+AL54+AL62+AL70+AL75","v":0},0,0,0,0,0,0,0,0,0,0,{"$f":"AW26+AW35+AW39+AW44+AW49+AW54+AW62+AW70+AW75","v":0},{"$f":"AX26+AX35+AX39+AX44+AX49+AX54+AX62+AX70+AX75","v":0},0,0,0,0,0,0,0,0,0]
[null,"11.5","TPL & Fraud/Abuse Recoveries",{"$f":"SUM(E81:N81)","v":0},{"$nulls":10},{"$f":"SUM(P81:Y81)","v":0},{"$nulls":10},{"$f":"SUM(AA81:AJ81)","v":0},{"$nulls":10},{"$f":"SUM(AL81:AU81)","v":0},{"$nulls":11},{"$f":"SUM(AX81:BG81)+AV81","v":0},{"$f":"E81+P81+AA81+AL81","v":0},{"$f":"F81+Q81+AB81+AM81","v":0},{"$f":"G81+R81+AC81+AN81","v":0},{"$f":"H81+S81+AD81+AO81","v":0},0,0,0,0,0,0]
[null,"11.6.1","Premium Deficiency Reserve",{"$f":"SUM(E82:N82)","v":0},{"$nulls":10},{"$f":"SUM(P82:Y82)","v":0},{"$nulls":10},{"$f":"SUM(AA82:AJ82)","v":0},{"$nulls":10},{"$f":"SUM(AL82:AU82)","v":0},{"$nulls":11},{"$f":"SUM(AX82:BG82)+AV82","v":0},{"$f":"E82+P82+AA82+AL82","v":0},0,{"$f":"G82+R82+AC82+AN82","v":0},0,0,0,0,0,0,0]
[null,"11.7","Subtotal Benefit Expense before Reinsurance",{"$f":"SUM(D77:D82)","v":0},{"$f":"SUM(E77:E82)","v":0},0,0,0,0,0,0,0,0,0,0,0,0,0,0,0,0,0,0,0,0,0,0,0,0,0,0,0,0,0,0,0,0,0,0,0,0,0,0,0,0,0,0,0,0,0,0,0,0,0,0,0,0,0,0]
[null,"11.8","Reinsurance Premiums",{"$f":"SUM(E84:N84)","v":0},{"$nulls":10},{"$f":"SUM(P84:Y84)","v":0},{"$nulls":10},{"$f":"SUM(AA84:AJ84)","v":0},{"$nulls":10},{"$f":"SUM(AL84:AU84)","v":0},{"$nulls":11},{"$f":"SUM(AX84:BG84)+AV84","v":0},{"$f":"E84+P84+AA84+AL84","v":0},{"$f":"F84+Q84+AB84+AM84","v":0},0,0,0,0,0,0,0,0]
[null,"11.9","Reinsurance Recoveries",{"$f":"SUM(E85:N85)","v":0},{"$nulls":10},{"$f":"SUM(P85:Y85)","v":0},{"$nulls":10},{"$f":"SUM(AA85:AJ85)","v":0},{"$nulls":10},{"$f":"SUM(AL85:AU85)","v":0},{"$nulls":11},{"$f":"SUM(AX85:BG85)+AV85","v":0},{"$f":"E85+P85+AA85+AL85","v":0},0,{"$f":"G85+R85+AC85+AN85","v":0},0,0,0,0,0,0,0]
[null,"11.10","Net cost of Reinsurance",{"$f":"SUM(D84:D85)","v":0},{"$f":"SUM(E84:E85)","v":0},0,0,0,0,0,0,0,0,0,{"$f":"SUM(O84:O85)","v":0},{"$f":"SUM(P84:P85)","v":0},0,0,0,0,0,0,0,0,0,{"$f":"SUM(Z84:Z85)","v":0},{"$f":"SUM(AA84:AA85)","v":0},0,0,0,0,0,0,0,0,0,{"$f":"SUM(AK84:AK85)","v":0},{"$f":"SUM(AL84:AL85)","v":0},{"$f":"SUM(AM84:AM85)","v":0},0,0,0,0,0,0,0,0,0,{"$f":"SUM(AW84:AW85)","v":0},{"$f":"SUM(AX84:AX85)","v":0},0,{"$f":"SUM(AZ84:AZ85)","v":0},0,{"$f":"SUM(BB84:BB85)","v":0},0,0,0,0,0]
[null,"11.11","Grand Total Medical Benefit Expense Net of Reinsurance",{"$f":"D83+D86","v":0},{"$f":"E83+E86","v":0},0,0,0,0,0,0,0,0,0,{"$f":"O83+O86","v":0},{"$f":"P83+P86","v":0},0,0,0,0,0,0,0,0,0,{"$f":"Z83+Z86","v":0},{"$f":"AA83+AA86","v":0},0,0,0,0,0,0,0,0,0,{"$f":"AK83+AK86","v":0},{"$f":"AL83+AL86","v":0},{"$f":"AM83+AM86","v":0},0,0,0,0,0,0,0,0,0,{"$f":"AW83+AW86","v":0},{"$f":"AX83+AX86","v":0},{"$f":"AY83+AY86","v":0},0,0,0,0,0,0,0,0]
["Administrative Expenses, Government-Mandated Assessments, Taxes, and Fees ",null,null,"JANUARY - MARCH (Q1)",{"$nulls":10},"APRIL - JUNE (Q2)",{"$nulls":10},"JULY - SEPTEMBER (Q3)",{"$nulls":10},"OCTOBER - DECEMBER (Q4)",{"$nulls":11},"TOTAL (TO DATE)"]
[{"$nulls":3},"Total","Health Plan","Corporate",{"$nulls":8},"Total","Health Plan","Corporate",{"$nulls":8},"Total","Health Plan","Corporate",{"$nulls":8},"Total","Health Plan","Corporate",{"$nulls":8},"Prior Year Adjustments","Total","Health Plan","Corporate"]
["Administrative Expenses","12.1","Salaries & Benefits",{"$f":"E90+F90","v":0},{"$nulls":10},{"$f":"P90+Q90","v":0},{"$nulls":10},{"$f":"AA90+AB90","v":0},{"$nulls":10},{"$f":"AL90+AM90","v":0},{"$nulls":11},{"$f":"AX90+AY90+AV90","v":0},{"$f":"E90+P90+AA90+AL90","v":0},{"$f":"F90+Q90+AB90+AM90","v":0}]
[null,"12.2","Administrative Services",{"$f":"E91+F91","v":0},{"$nulls":10},{"$f":"P91+Q91","v":0},{"$nulls":10},{"$f":"AA91+AB91","v":0},{"$nulls":10},{"$f":"AL91+AM91","v":0},{"$nulls":11},0,{"$f":"E91+P91+AA91+AL91","v":0},0]
[null,"12.3","Information Systems",0,{"$nulls":10},0,{"$nulls":10},0,{"$nulls":10},0,{"$nulls":11},0,0,0]
[null,"12.4","Marketing Expenses",0,{"$nulls":10},0,{"$nulls":10},0,{"$nulls":10},0,{"$nulls":11},0,0,0]
[null,"12.5","General  Administration",0,{"$nulls":10},0,{"$nulls":10},0,{"$nulls":10},0,{"$nulls":11},0,0,0]
[null,"12.6","Compliance/Regulatory",0,{"$nulls":10},0,{"$nulls":10},0,{"$nulls":10},0,{"$nulls":11},0,0,0]
[null,"12.7","Total Administrative Expenses ",{"$f":"E96+F96","v":0},{"$f":"SUM(E90:E95)","v":0},{"$f":"SUM(F90:F95)","v":0},{"$nulls":8},{"$f":"P96+Q96","v":0},{"$f":"SUM(P90:P95)","v":0},0,{"$nulls":8},{"$f":"AA96+AB96","v":0},{"$f":"SUM(AA90:AA95)","v":0},0,{"$nulls":8},{"$f":"AL96+AM96","v":0},{"$f":"SUM(AL90:AL95)","v":0},0,{"$nulls":8},{"$f":"SUM(AV90:AV95)","v":0},0,{"$f":"SUM(AX90:AX95)","v":0},{"$f":"SUM(AY90:AY95)","v":0}]
["Government-Mandated Assessments, Taxes, and Fees Other Than Income Taxes","13.1","State Premium tax",{"$nulls":45},{"$f":"D97+O97+Z97+AK97+AV97","v":0}]
[null,"13.2","Department of Insurance Assessments",{"$nulls":45},0]
[null,"13.3","Section 9010 Health Insurance Providers Fee",{"$nulls":45},0]
[null,"13.4","Other 1",{"$nulls":45},0]
[null,"13.5","Other 2",{"$nulls":45},0]
[null,"13.6","Other 3",{"$nulls":45},0]
[null,"13.7","Total ",{"$f":"SUM(D97:D102)","v":0},{"$nulls":10},{"$f":"SUM(O97:O102)","v":0},{"$nulls":10},{"$f":"SUM(Z97:Z102)","v":0},{"$nulls":10},{"$f":"SUM(AK97:AK102)","v":0},{"$nulls":10},{"$f":"SUM(AV97:AV102)","v":0},{"$f":"SUM(AW97:AW102)","v":0}]
[null,"14.0","Grand Total Expenses",{"$f":"D87+D96+D103","v":0},{"$nulls":10},{"$f":"O87+O96+O103","v":0},{"$nulls":10},{"$f":"Z87+Z96+Z103","v":0},{"$nulls":10},{"$f":"AK87+AK96+AK103","v":0},{"$nulls":10},{"$f":"AV87+AV96+AV103","v":0},{"$f":"AW87+AW96+AW103","v":0}]
[null,"15.0","Underwriting Gain / (Loss)  --- AKA Pre-tax Earnings from Operations",{"$f":"D17-D104","v":0},{"$nulls":10},{"$f":"O17-O104","v":0},{"$nulls":10},{"$f":"Z17-Z104","v":0},{"$nulls":10},{"$f":"AK17-AK104","v":0},{"$nulls":10},{"$f":"AV17-AV104","v":0},{"$f":"AW17-AW104","v":0}]
[null,"16.0","Income Tax Expense",{"$nulls":45},{"$f":"D106+O106+Z106+AK106+AV106","v":0}]
[null,"17.0","Net Underwriting Gain (Loss)",{"$f":"D105-D106","v":0},{"$nulls":10},{"$f":"O105-O106","v":0},{"$nulls":10},{"$f":"Z105-Z106","v":0},{"$nulls":10},{"$f":"AK105-AK106","v":0},{"$nulls":10},{"$f":"AV105-AV106","v":0},{"$f":"AW105-AW106","v":0}]

{"sheet":"MMA Subcap Summary","index":18,"n_rows":83,"n_cols":14,"rows_kept":83,"hidden":true,"merged":[[7,0,8,2],[7,3,8,4],[7,5,8,6],[7,7,8,8],[7,9,8,10],[7,11,8,11],[7,12,8,13],[11,0,17,0],[18,0,39,0],[40,0,46,0],[47,0,53,0],[54,0,60,0],[61,0,67,0],[68,0,74,0],[75,0,81,0]]}
["MANAGED MEDICAL ASSISTANCE -- SUBCAPITATION SCHEDULE - SUMMARY"]
[]
["Health Plan:",null,{"$f":"'MMA Rev-Exp Summary'!C3","v":0}]
["Reporting Period:",null,{"$f":"IF('MMA Rev-Exp Summary'!C4=0,\"\",'MMA Rev-Exp Summary'!C4)","v":""}]
["Paid Through:",null,{"$f":"IF('MMA Rev-Exp Summary'!C5=0,\"\",'MMA Rev-Exp Summary'!C5)","v":""}]
["Summary"]
[]
[{"$nulls":3},"JANUARY - MARCH (Q1)",null,"APRIL - \nJUNE (Q2)",null,"JULY - SEPTEMBER (Q3)",null,"OCTOBER - DECEMBER (Q4)",null,"Prior Year Adjustments","TOTAL\n(TO DATE)"]
[]
[{"$nulls":3},"MM","Amount","MM","Amount","MM","Amount","MM","Amount","Amount","MM","Amount"]
["MMA EXPENSES"]
["Hospital Services","1.1","Vendor #1",{"$nulls":9},{"$f":"D12+F12+H12+J12","v":0},{"$f":"E12+G12+I12+K12+L12","v":0}]
[null,"1.2","Vendor #2",{"$nulls":9},0,0]
[null,"1.3","Vendor #3",{"$nulls":9},0,0]
[null,"1.4","Vendor #4",{"$nulls":9},0,0]
[null,"1.5","Vendor #5",{"$nulls":9},0,0]
[null,"1.6","All Others",{"$nulls":9},0,0]
[null,"1.7","Total Subcap Hospital Services",null,{"$f":"SUM(E12:E17)","v":0},null,{"$f":"SUM(G12:G17)","v":0},null,{"$f":"SUM(I12:I17)","v":0},null,{"$f":"SUM(K12:K17)","v":0},{"$f":"SUM(L12:L17)","v":0},null,{"$f":"SUM(N12:N17)","v":0}]
["Professional Services","2.1","Primary Care - Vendor #1",{"$nulls":9},{"$f":"D19+F19+H19+J19","v":0},{"$f":"E19+G19+I19+K19+L19","v":0}]
[null,"2.2","Primary Care - Vendor #2",{"$nulls":9},0,0]
[null,"2.3","Primary Care - Vendor #3",{"$nulls":9},0,0]
[null,"2.4","Primary Care - Vendor #4",{"$nulls":9},0,0]
[null,"2.5","Primary Care - Vendor #5",{"$nulls":9},0,0]
[null,"2.6","Primary Care - All Others",{"$nulls":9},0,0]
[null,"2.7","Subtotal Primary Care",null,{"$f":"SUM(E19:E24)","v":0},null,{"$f":"SUM(G19:G24)","v":0},null,{"$f":"SUM(I19:I24)","v":0},null,{"$f":"SUM(K19:K24)","v":0},{"$f":"SUM(L19:L24)","v":0},null,{"$f":"SUM(N19:N24)","v":0}]
[null,"2.8","Specialty Care - Vendor #1",{"$nulls":9},{"$f":"D26+F26+H26+J26","v":0},{"$f":"E26+G26+I26+K26+L26","v":0}]
[null,"2.9","Specialty Care - Vendor #2",{"$nulls":9},0,0]
[null,"2.10","Specialty Care - Vendor #3",{"$nulls":9},0,0]
[null,"2.11","Specialty Care - Vendor #4",{"$nulls":9},0,0]
[null,"2.12","Specialty Care - Vendor #5",{"$nulls":9},0,0]
[null,"2.13","Specialty Care - All Others",{"$nulls":9},0,0]
[null,"2.14","Subtotal Specialty Care",null,{"$f":"SUM(E26:E31)","v":0},null,{"$f":"SUM(G26:G31)","v":0},null,{"$f":"SUM(I26:I31)","v":0},null,{"$f":"SUM(K26:K31)","v":0},{"$f":"SUM(L26:L31)","v":0},null,{"$f":"SUM(N26:N31)","v":0}]
[null,"2.15","Other Professional - Vendor #1",{"$nulls":9},{"$f":"D33+F33+H33+J33","v":0},{"$f":"E33+G33+I33+K33+L33","v":0}]
[null,"2.16","Other Professional - Vendor #2",{"$nulls":9},0,0]
[null,"2.17","Other Professional - Vendor #3",{"$nulls":9},0,0]
[null,"2.18","Other Professional - Vendor #4",{"$nulls":9},0,0]
[null,"2.19","Other Professional - Vendor #5",{"$nulls":9},0,0]
[null,"2.20","Other Professional - All Others",{"$nulls":9},0,0]
[null,"2.21","Subtotal Other Professional",null,{"$f":"SUM(E33:E38)","v":0},null,{"$f":"SUM(G33:G38)","v":0},null,{"$f":"SUM(I33:I38)","v":0},null,{"$f":"SUM(K33:K38)","v":0},{"$f":"SUM(L33:L38)","v":0},{"$f":"SUM(M33:M38)","v":0},{"$f":"SUM(N33:N38)","v":0}]
[null,"2.22","Total Subcap Professional Services",null,{"$f":"E25+E32+E39","v":0},null,{"$f":"G25+G32+G39","v":0},null,{"$f":"I25+I32+I39","v":0},null,{"$f":"K25+K32+K39","v":0},{"$f":"L25+L32+L39","v":0},null,{"$f":"N25+N32+N39","v":0}]
["Mental Health","3.1","Vendor #1",{"$nulls":9},{"$f":"D41+F41+H41+J41","v":0},{"$f":"E41+G41+I41+K41+L41","v":0}]
[null,"3.2","Vendor #2",{"$nulls":9},0,0]
[null,"3.3","Vendor #3",{"$nulls":9},0,0]
[null,"3.4","Vendor #4",{"$nulls":9},0,0]
[null,"3.5","Vendor #5",{"$nulls":9},0,0]
[null,"3.6","All Others",{"$nulls":9},0,0]
[null,"3.7","Total Subcap Mental Health Services",null,{"$f":"SUM(E41:E46)","v":0},null,{"$f":"SUM(G41:G46)","v":0},null,{"$f":"SUM(I41:I46)","v":0},null,{"$f":"SUM(K41:K46)","v":0},{"$f":"SUM(L41:L46)","v":0},null,{"$f":"SUM(N41:N46)","v":0}]
["Dental","4.1","Vendor #1",{"$nulls":9},{"$f":"D48+F48+H48+J48","v":0},{"$f":"E48+G48+I48+K48+L48","v":0}]
[null,"4.2","Vendor #2",{"$nulls":9},0,0]
[null,"4.3","Vendor #3",{"$nulls":9},0,0]
[null,"4.4","Vendor #4",{"$nulls":9},0,0]
[null,"4.5","Vendor #5",{"$nulls":9},0,0]
[null,"4.6","All Others",{"$nulls":9},0,0]
[null,"4.7","Total Subcap Dental Services",null,{"$f":"SUM(E48:E53)","v":0},null,{"$f":"SUM(G48:G53)","v":0},null,{"$f":"SUM(I48:I53)","v":0},null,{"$f":"SUM(K48:K53)","v":0},{"$f":"SUM(L48:L53)","v":0},null,{"$f":"SUM(N48:N53)","v":0}]
["Transportation","5.1","Vendor #1",{"$nulls":9},{"$f":"D55+F55+H55+J55","v":0},{"$f":"E55+G55+I55+K55+L55","v":0}]
[null,"5.2","Vendor #2",{"$nulls":9},0,0]
[null,"5.3","Vendor #3",{"$nulls":9},0,0]
[null,"5.4","Vendor #4",{"$nulls":9},0,0]
[null,"5.5","Vendor #5",{"$nulls":9},0,0]
[null,"5.6","All Others",{"$nulls":9},0,0]
[null,"5.7","Total Subcap Transp. Services",null,{"$f":"SUM(E55:E60)","v":0},null,{"$f":"SUM(G55:G60)","v":0},null,{"$f":"SUM(I55:I60)","v":0},null,{"$f":"SUM(K55:K60)","v":0},{"$f":"SUM(L55:L60)","v":0},null,{"$f":"SUM(N55:N60)","v":0}]
["Pharmacy","6.1","Vendor #1",{"$nulls":9},{"$f":"D62+F62+H62+J62","v":0},{"$f":"E62+G62+I62+K62+L62","v":0}]
[null,"6.2","Vendor #2",{"$nulls":9},0,0]
[null,"6.3","Vendor #3",{"$nulls":9},0,0]
[null,"6.4","Vendor #4",{"$nulls":9},0,0]
[null,"6.5","Vendor #5",{"$nulls":9},0,0]
[null,"6.6","All Others",{"$nulls":9},0,0]
[null,"6.7","Total Subcap Pharmacy Services",null,{"$f":"SUM(E62:E67)","v":0},null,{"$f":"SUM(G62:G67)","v":0},null,{"$f":"SUM(I62:I67)","v":0},null,{"$f":"SUM(K62:K67)","v":0},{"$f":"SUM(L62:L67)","v":0},null,{"$f":"SUM(N62:N67)","v":0}]
["Other Services","7.1","Service Type, Vendor #1",{"$nulls":9},{"$f":"D69+F69+H69+J69","v":0},{"$f":"E69+G69+I69+K69+L69","v":0}]
[null,"7.2","Service Type, Vendor #2",{"$nulls":9},0,0]
[null,"7.3","Service Type, Vendor #3",{"$nulls":9},0,0]
[null,"7.4","Service Type, Vendor #4",{"$nulls":9},0,0]
[null,"7.5","Service Type, Vendor #5",{"$nulls":9},0,0]
[null,"7.6","All Others",{"$nulls":9},0,0]
[null,"7.7","Total Subcap Other Services",null,{"$f":"SUM(E69:E74)","v":0},null,{"$f":"SUM(G69:G74)","v":0},null,{"$f":"SUM(I69:I74)","v":0},null,{"$f":"SUM(K69:K74)","v":0},{"$f":"SUM(L69:L74)","v":0},null,{"$f":"SUM(N69:N74)","v":0}]
["Expanded Benefits","8.1","Service Type, Vendor #1",{"$nulls":9},{"$f":"D76+F76+H76+J76","v":0},{"$f":"E76+G76+I76+K76+L76","v":0}]
[null,"8.2","Service Type, Vendor #2",{"$nulls":9},0,0]
[null,"8.3","Service Type, Vendor #3",{"$nulls":9},0,0]
[null,"8.4","Service Type, Vendor #4",{"$nulls":9},0,0]
[null,"8.5","Service Type, Vendor #5",{"$nulls":9},0,0]
[null,"8.6","All Others",{"$nulls":9},0,0]
[null,"8.7","Total Subcap Expanded Benefits",null,{"$f":"SUM(E76:E81)","v":0},null,{"$f":"SUM(G76:G81)","v":0},null,{"$f":"SUM(I76:I81)","v":0},null,{"$f":"SUM(K76:K81)","v":0},{"$f":"SUM(L76:L81)","v":0},null,{"$f":"SUM(N76:N81)","v":0}]
[null,9,"Grand Total, Subcap Services",null,{"$f":"E18+E40+E47+E54+E61+E68+E75+E82","v":0},null,{"$f":"G18+G40+G47+G54+G61+G68+G75+G82","v":0},null,{"$f":"I18+I40+I47+I54+I61+I68+I75+I82","v":0},null,{"$f":"K18+K40+K47+K54+K61+K68+K75+K82","v":0},{"$f":"L18+L40+L47+L54+L61+L68+L75+L82","v":0},null,{"$f":"N18+N40+N47+N54+N61+N68+N75+N82","v":0}]

{"sheet":"MMA Exp Benefits","index":19,"n_rows":35,"n_cols":59,"rows_kept":35,"hidden":true,"merged":[[7,0,7,2],[7,3,7,13],[7,14,7,24],[7,25,7,35],[7,36,7,46],[7,48,7,58],[10,0,10,2],[11,0,34,0]]}
["MANAGED MEDICAL ASSISTANCE -- EXPANDED BENEFITS -- SUMMARY"]
[]
["Health Plan:",null,{"$f":"'MMA Rev-Exp Summary'!C3","v":0}]
["Reporting Period:",null,{"$f":"IF('MMA Rev-Exp Summary'!C4=0,\"\",'MMA Rev-Exp Summary'!C4)","v":""}]
["Paid Through:",null,{"$f":"IF('MMA Rev-Exp Summary'!C5=0,\"\",'MMA Rev-Exp Summary'!C5)","v":""}]
[]
[]
[{"$nulls":3},"JANUARY - MARCH (Q1)",{"$nulls":10},"APRIL - JUNE (Q2)",{"$nulls":10},"JULY - SEPTEMBER (Q3)",{"$nulls":10},"OCTOBER - DECEMBER (Q4)",{"$nulls":11},"TOTAL (TO DATE)"]
[{"$nulls":3},"Total","TANF Non-SMI","TANF SMI","SSI Medicaid Only Non-SMI","SSI Medicaid Only SMI","Dual Eligible","Child Welfare","HIV/AIDS Dual Eligible","HIV/AIDS Medicaid Only","LTC Dual Eligible","LTC Medicaid Only","Total","TANF Non-SMI","TANF SMI","SSI Medicaid Only Non-SMI","SSI Medicaid Only SMI","Dual Eligible","Child Welfare","HIV/AIDS Dual Eligible","HIV/AIDS Medicaid Only","LTC Dual Eligible","LTC Medicaid Only","Total","TANF Non-SMI","TANF SMI","SSI Medicaid Only Non-SMI","SSI Medicaid Only SMI","Dual Eligible","Child Welfare","HIV/AIDS Dual Eligible","HIV/AIDS Medicaid Only","LTC Dual Eligible","LTC Medicaid Only","Total","TANF Non-SMI","TANF SMI","SSI Medicaid Only Non-SMI","SSI Medicaid Only SMI","Dual Eligible","Child Welfare","HIV/AIDS Dual Eligible","HIV/AIDS Medicaid Only","LTC Dual Eligible","LTC Medicaid Only","Prior Year Adjustments","Total","TANF Non-SMI","TANF SMI","SSI Medicaid Only Non-SMI","SSI Medicaid Only SMI","Dual Eligible","Child Welfare","HIV/AIDS Dual Eligible","HIV/AIDS Medicaid Only","LTC Dual Eligible","LTC Medicaid Only"]
["MEMBER MONTHS",null,null,{"$f":"SUM(E10:N10)","v":0},{"$nulls":10},{"$f":"SUM(P10:Y10)","v":0},{"$nulls":10},{"$f":"SUM(AA10:AJ10)","v":0},{"$nulls":10},{"$f":"SUM(AL10:AU10)","v":0},{"$nulls":11},{"$f":"SUM(AX10:BG10)+AV10","v":0},{"$f":"E10+P10+AA10+AL10","v":0},{"$f":"AM10+AB10+Q10+F10","v":0},0,0,0,0,0,0,0,0]
["EXPANDED BENEFITS"]
["Expanded Benefit","1.1","Adult Dental Services (Expanded)",{"$f":"SUM(E12:N12)","v":0},{"$nulls":10},{"$f":"SUM(P12:Y12)","v":0},{"$nulls":10},{"$f":"SUM(AA12:AJ12)","v":0},{"$nulls":10},{"$f":"SUM(AL12:AU12)","v":0},{"$nulls":11},{"$f":"SUM(AX12:BG12)+AV12","v":0},{"$f":"E12+P12+AA12+AL12","v":0},{"$f":"F12+Q12+AB12+AM12","v":0},0,0,0,0,0,0,0,0]
[null,"1.2","Adult Hearing Services (Expanded)",{"$f":"SUM(E13:N13)","v":0},{"$nulls":10},{"$f":"SUM(P13:Y13)","v":0},{"$nulls":10},{"$f":"SUM(AA13:AJ13)","v":0},{"$nulls":10},{"$f":"SUM(AL13:AU13)","v":0},{"$nulls":11},{"$f":"SUM(AX13:BG13)+AV13","v":0},{"$f":"E13+P13+AA13+AL13","v":0},0,0,0,0,0,0,0,0,0]
[null,"1.3","Adult Vision Services (Expanded)",{"$f":"SUM(E14:N14)","v":0},{"$nulls":10},{"$f":"SUM(P14:Y14)","v":0},{"$nulls":10},{"$f":"SUM(AA14:AJ14)","v":0},{"$nulls":10},{"$f":"SUM(AL14:AU14)","v":0},{"$nulls":11},{"$f":"SUM(AX14:BG14)+AV14","v":0},{"$f":"E14+P14+AA14+AL14","v":0},0,0,0,0,0,0,0,0,0]
[null,"1.4","Art Therapy",0,{"$nulls":10},0,{"$nulls":10},0,{"$nulls":10},0,{"$nulls":11},0,0,0,0,0,0,0,0,0,0,0]
[null,"1.5","Equine Therapy",0,{"$nulls":10},0,{"$nulls":10},0,{"$nulls":10},0,{"$nulls":11},0,0,0,0,0,0,0,0,0,0,0]
[null,"1.6","Home and Community-Based Services",0,{"$nulls":10},0,{"$nulls":10},0,{"$nulls":10},0,{"$nulls":11},0,0,0,0,0,0,0,0,0,0,0]
[null,"1.7","Home Health Care for Non-Pregnant Adults (Expanded)",0,{"$nulls":10},0,{"$nulls":10},0,{"$nulls":10},0,{"$nulls":11},0,0,0,0,0,0,0,0,0,0,0]
[null,"1.8","Influenza Vaccine",0,{"$nulls":10},0,{"$nulls":10},0,{"$nulls":10},0,{"$nulls":11},0,0,0,0,0,0,0,0,0,0,0]
[null,"1.9","Intensive Outpatient Therapy",0,{"$nulls":10},0,{"$nulls":10},0,{"$nulls":10},0,{"$nulls":11},0,0,0,0,0,0,0,0,0,0,0]
[null,"1.10","Medically-Related Lodging & Food",0,{"$nulls":10},0,{"$nulls":10},0,{"$nulls":10},0,{"$nulls":11},0,0,0,0,0,0,0,0,0,0,0]
[null,"1.11","Newborn Circumcisions",0,{"$nulls":10},0,{"$nulls":10},0,{"$nulls":10},0,{"$nulls":11},0,0,0,0,0,0,0,0,0,0,0]
[null,"1.12","Nutritional Counseling",0,{"$nulls":10},0,{"$nulls":10},0,{"$nulls":10},0,{"$nulls":11},0,0,0,0,0,0,0,0,0,0,0]
[null,"1.13","Outpatient Hospital Services (Expanded)",0,{"$nulls":10},0,{"$nulls":10},0,{"$nulls":10},0,{"$nulls":11},0,0,0,0,0,0,0,0,0,0,0]
[null,"1.14","Over-the-Counter Medication and Supplies",0,{"$nulls":10},0,{"$nulls":10},0,{"$nulls":10},0,{"$nulls":11},0,0,0,0,0,0,0,0,0,0,0]
[null,"1.15","Pet Therapy",0,{"$nulls":10},0,{"$nulls":10},0,{"$nulls":10},0,{"$nulls":11},0,0,0,0,0,0,0,0,0,0,0]
[null,"1.16","Physician Home visits",0,{"$nulls":10},0,{"$nulls":10},0,{"$nulls":10},0,{"$nulls":11},0,0,0,0,0,0,0,0,0,0,0]
[null,"1.17","Pneumonia Vaccine",0,{"$nulls":10},0,{"$nulls":10},0,{"$nulls":10},0,{"$nulls":11},0,0,0,0,0,0,0,0,0,0,0]
[null,"1.18","Post-Discharge Meals",0,{"$nulls":10},0,{"$nulls":10},0,{"$nulls":10},0,{"$nulls":11},0,0,0,0,0,0,0,0,0,0,0]
[null,"1.19","Prenatal/Perinatal Visits (Expanded)",0,{"$nulls":10},0,{"$nulls":10},0,{"$nulls":10},0,{"$nulls":11},0,0,0,0,0,0,0,0,0,0,0]
[null,"1.20","Primary Care Visits for Non-Pregnant Adults (Expanded)",0,{"$nulls":10},0,{"$nulls":10},0,{"$nulls":10},0,{"$nulls":11},0,0,0,0,0,0,0,0,0,0,0]
[null,"1.21","Shingles Vaccine",0,{"$nulls":10},0,{"$nulls":10},0,{"$nulls":10},0,{"$nulls":11},0,0,0,0,0,0,0,0,0,0,0]
[null,"1.22","Waived Co-Payments",0,{"$nulls":10},0,{"$nulls":10},0,{"$nulls":10},0,{"$nulls":11},0,0,0,0,0,0,0,0,0,0,0]
[null,"1.23","Other (Describe)",0,{"$nulls":10},0,{"$nulls":10},0,{"$nulls":10},0,{"$nulls":11},0,0,0,0,0,0,0,0,0,0,0]
[null,"1.24","Total",{"$f":"SUM(D12:D34)","v":0},{"$f":"SUM(E12:E34)","v":0},0,0,0,0,0,0,0,0,0,{"$f":"SUM(O12:O34)","v":0},{"$f":"SUM(P12:P34)","v":0},0,0,0,0,0,0,0,0,0,{"$f":"SUM(Z12:Z34)","v":0},{"$f":"SUM(AA12:AA34)","v":0},0,0,0,0,0,0,0,0,0,{"$f":"SUM(AK12:AK34)","v":0},{"$f":"SUM(AL12:AL34)","v":0},0,0,0,0,0,0,0,0,0,0,0,{"$f":"SUM(AX12:AX34)","v":0},0,0,0,0,0,0,0,0,0]

{"sheet":"MMA Related-Party Summary","index":20,"n_rows":62,"n_cols":16,"rows_kept":62,"hidden":true,"merged":[[7,0,7,2],[7,5,7,6],[7,7,7,8],[7,9,7,10],[7,11,7,12],[7,14,7,15],[9,0,14,0],[15,0,20,0],[21,0,26,0],[27,0,32,0],[33,0,38,0],[39,0,44,0],[45,0,50,0],[51,0,56,0]]}
["MANAGED MEDICAL ASSISTANCE -- RELATED-PARTY TRANSACTION SCHEDULE - SUMMARY"]
[]
["Health Plan:",null,{"$f":"'MMA Rev-Exp Summary'!C3","v":0}]
["Reporting Period:",null,{"$f":"IF('MMA Rev-Exp Summary'!C4=0,\"\",'MMA Rev-Exp Summary'!C4)","v":""}]
["Paid Through:",null,{"$f":"IF('MMA Rev-Exp Summary'!C5=0,\"\",'MMA Rev-Exp Summary'!C5)","v":""}]
["Summary"]
[]
[{"$nulls":5},"JANUARY - MARCH (Q1)",null,"APRIL - \nJUNE (Q2)",null,"JULY - SEPTEMBER (Q3)",null,"OCTOBER - DECEMBER (Q4)",null,"PRIOR YEAR ADJUSTMENTS","TOTAL\n(TO DATE)"]
["EXPENSES",null,"Vendor Name","Affiliation","Payment Methodology","MM","Amount","MM","Amount","MM","Amount","MM","Amount","Amount","MM","Amount"]
["Hospital Services","1.1","Vendor #1",{"$nulls":11},{"$f":"F10+H10+J10+L10","v":0},{"$f":"G10+I10+K10+M10+N10","v":0}]
[null,"1.2","Vendor #2",{"$nulls":11},{"$f":"F11+H11+J11+L11","v":0},{"$f":"G11+I11+K11+M11+N11","v":0}]
[null,"1.3","Vendor #3",{"$nulls":11},{"$f":"F12+H12+J12+L12","v":0},0]
[null,"1.4","Vendor #4",{"$nulls":11},{"$f":"F13+H13+J13+L13","v":0},0]
[null,"1.5","Vendor #5",{"$nulls":11},{"$f":"F14+H14+J14+L14","v":0},{"$f":"G14+I14+K14+M14+N14","v":0}]
[null,"1.6","Total Hospital Services",{"$nulls":3},{"$f":"SUM(G10:G14)","v":0},null,{"$f":"SUM(I10:I14)","v":0},null,{"$f":"SUM(K10:K14)","v":0},null,{"$f":"SUM(M10:M14)","v":0},{"$f":"SUM(N10:N14)","v":0},null,{"$f":"G15+I15+K15+M15+N15","v":0}]
["Professional Services","2.1","Vendor #1",{"$nulls":11},{"$f":"F16+H16+J16+L16","v":0},{"$f":"G16+I16+K16+M16+N16","v":0}]
[null,"2.2","Vendor #2",{"$nulls":11},{"$f":"F17+H17+J17+L17","v":0},0]
[null,"2.3","Vendor #3",{"$nulls":11},{"$f":"F18+H18+J18+L18","v":0},0]
[null,"2.4","Vendor #4",{"$nulls":11},{"$f":"F19+H19+J19+L19","v":0},{"$f":"G19+I19+K19+M19+N19","v":0}]
[null,"2.5","Vendor #5",{"$nulls":11},{"$f":"F20+H20+J20+L20","v":0},0]
[null,"2.6","Total Professional Services",{"$nulls":3},{"$f":"SUM(G16:G20)","v":0},null,{"$f":"SUM(I16:I20)","v":0},null,{"$f":"SUM(K16:K20)","v":0},null,{"$f":"SUM(M16:M20)","v":0},{"$f":"SUM(N16:N20)","v":0},null,{"$f":"G21+I21+K21+M21+N21","v":0}]
["Mental Health","3.1","Vendor #1",{"$nulls":11},{"$f":"F22+H22+J22+L22","v":0},{"$f":"G22+I22+K22+M22+N22","v":0}]
[null,"3.2","Vendor #2",{"$nulls":11},{"$f":"F23+H23+J23+L23","v":0},{"$f":"G23+I23+K23+M23+N23","v":0}]
[null,"3.3","Vendor #3",{"$nulls":11},{"$f":"F24+H24+J24+L24","v":0},0]
[null,"3.4","Vendor #4",{"$nulls":11},{"$f":"F25+H25+J25+L25","v":0},{"$f":"G25+I25+K25+M25+N25","v":0}]
[null,"3.5","Vendor #5",{"$nulls":11},{"$f":"F26+H26+J26+L26","v":0},0]
[null,"3.6","Total Mental Health",{"$nulls":3},{"$f":"SUM(G22:G26)","v":0},null,{"$f":"SUM(I22:I26)","v":0},null,{"$f":"SUM(K22:K26)","v":0},null,{"$f":"SUM(M22:M26)","v":0},{"$f":"SUM(N22:N26)","v":0},null,{"$f":"G27+I27+K27+M27+N27","v":0}]
["Dental","4.1","Vendor #1",{"$nulls":11},{"$f":"F28+H28+J28+L28","v":0},{"$f":"G28+I28+K28+M28+N28","v":0}]
[null,"4.2","Vendor #2",{"$nulls":11},{"$f":"F29+H29+J29+L29","v":0},{"$f":"G29+I29+K29+M29+N29","v":0}]
[null,"4.3","Vendor #3",{"$nulls":11},{"$f":"F30+H30+J30+L30","v":0},0]
[null,"4.4","Vendor #4",{"$nulls":11},{"$f":"F31+H31+J31+L31","v":0},{"$f":"G31+I31+K31+M31+N31","v":0}]
[null,"4.5","Vendor #5",{"$nulls":11},{"$f":"F32+H32+J32+L32","v":0},0]
[null,"4.6","Total Dental",{"$nulls":3},{"$f":"SUM(G28:G32)","v":0},null,{"$f":"SUM(I28:I32)","v":0},null,{"$f":"SUM(K28:K32)","v":0},null,{"$f":"SUM(M28:M32)","v":0},{"$f":"SUM(N28:N32)","v":0},null,{"$f":"G33+I33+K33+M33+N33","v":0}]
["Transportation","5.1","Vendor #1",{"$nulls":11},{"$f":"F34+H34+J34+L34","v":0},{"$f":"G34+I34+K34+M34+N34","v":0}]
[null,"5.2","Vendor #2",{"$nulls":11},{"$f":"F35+H35+J35+L35","v":0},{"$f":"G35+I35+K35+M35+N35","v":0}]
[null,"5.3","Vendor #3",{"$nulls":11},{"$f":"F36+H36+J36+L36","v":0},0]
[null,"5.4","Vendor #4",{"$nulls":11},{"$f":"F37+H37+J37+L37","v":0},{"$f":"G37+I37+K37+M37+N37","v":0}]
[null,"5.5","Vendor #5",{"$nulls":11},{"$f":"F38+H38+J38+L38","v":0},0]
[null,"5.6","Total Transportation",{"$nulls":3},{"$f":"SUM(G34:G38)","v":0},null,{"$f":"SUM(I34:I38)","v":0},null,{"$f":"SUM(K34:K38)","v":0},null,{"$f":"SUM(M34:M38)","v":0},{"$f":"SUM(N34:N38)","v":0},null,{"$f":"G39+I39+K39+M39+N39","v":0}]
["Pharmacy","6.1","Vendor #1",{"$nulls":11},{"$f":"F40+H40+J40+L40","v":0},{"$f":"G40+I40+K40+M40+N40","v":0}]
[null,"6.2","Vendor #2",{"$nulls":11},{"$f":"F41+H41+J41+L41","v":0},{"$f":"G41+I41+K41+M41+N41","v":0}]
[null,"6.3","Vendor #3",{"$nulls":11},{"$f":"F42+H42+J42+L42","v":0},0]
[null,"6.4","Vendor #4",{"$nulls":11},{"$f":"F43+H43+J43+L43","v":0},{"$f":"G43+I43+K43+M43+N43","v":0}]
[null,"6.5","Vendor #5",{"$nulls":11},{"$f":"F44+H44+J44+L44","v":0},0]
[null,"6.6","Total Pharmacy",{"$nulls":3},{"$f":"SUM(G40:G44)","v":0},null,{"$f":"SUM(I40:I44)","v":0},null,{"$f":"SUM(K40:K44)","v":0},null,{"$f":"SUM(M40:M44)","v":0},{"$f":"SUM(N40:N44)","v":0},null,{"$f":"G45+I45+K45+M45+N45","v":0}]
["Other Services","7.1","Vendor #1",{"$nulls":11},{"$f":"F46+H46+J46+L46","v":0},{"$f":"G46+I46+K46+M46+N46","v":0}]
[null,"7.2","Vendor #2",{"$nulls":11},{"$f":"F47+H47+J47+L47","v":0},{"$f":"G47+I47+K47+M47+N47","v":0}]
[null,"7.3","Vendor #3",{"$nulls":11},{"$f":"F48+H48+J48+L48","v":0},0]
[null,"7.4","Vendor #4",{"$nulls":11},{"$f":"F49+H49+J49+L49","v":0},{"$f":"G49+I49+K49+M49+N49","v":0}]
[null,"7.5","Vendor #5",{"$nulls":11},{"$f":"F50+H50+J50+L50","v":0},0]
[null,"7.6","Total Other Services",{"$nulls":3},{"$f":"SUM(G46:G50)","v":0},null,{"$f":"SUM(I46:I50)","v":0},null,{"$f":"SUM(K46:K50)","v":0},null,{"$f":"SUM(M46:M50)","v":0},{"$f":"SUM(N46:N50)","v":0},null,{"$f":"G51+I51+K51+M51+N51","v":0}]
["Administrative Expense","8.1","Vendor #1",{"$nulls":11},{"$f":"F52+H52+J52+L52","v":0},{"$f":"G52+I52+K52+M52+N52","v":0}]
[null,"8.2","Vendor #2",{"$nulls":11},0,{"$f":"G53+I53+K53+M53+N53","v":0}]
[null,"8.3","Vendor #3",{"$nulls":11},0,0]
[null,"8.4","Vendor #4",{"$nulls":11},0,{"$f":"G55+I55+K55+M55+N55","v":0}]
[null,"8.5","Vendor #5",{"$nulls":11},0,0]
[null,"8.6","Total Administrative Expense",{"$nulls":3},{"$f":"SUM(G52:G56)","v":0},null,{"$f":"SUM(I52:I56)","v":0},null,{"$f":"SUM(K52:K56)","v":0},null,{"$f":"SUM(M52:M56)","v":0},{"$f":"SUM(N52:N56)","v":0},null,{"$f":"G57+I57+K57+M57+N57","v":0}]
[null,9,"Grand Total",{"$nulls":3},{"$f":"G15+G21+G27+G33+G39+G45+G51+G57","v":0},null,{"$f":"I15+I21+I27+I33+I39+I45+I51+I57","v":0},null,{"$f":"K15+K21+K27+K33+K39+K45+K51+K57","v":0},null,{"$f":"M15+M21+M27+M33+M39+M45+M51+M57","v":0},{"$f":"N15+N21+N27+N33+N39+N45+N51+N57","v":0},null,{"$f":"P15+P21+P27+P33+P39+P45+P51+P57","v":0}]
[]
["Notes"]
["Additional lines can be added if the number of related-party vendors exceeds the number of lines listed per service type."]
["Additional information concerning the nature of the relationship with each related party, as well as the payment methodology, shall be disclosed in the Notes tab of the Financial Reporting package."]

{"sheet":"MMA Phys Comp","index":21,"n_rows":29,"n_cols":62,"rows_kept":29,"hidden":true,"merged":[[9,0,9,2],[9,6,9,16],[9,17,9,27],[9,28,9,38],[9,39,9,49],[9,51,9,61],[12,0,12,2],[13,0,17,0],[18,0,22,0],[23,0,27,0]]}
["MANAGED MEDICAL ASSISTANCE -- ENHANCED PHYSICIAN COMPENSATION -- SUMMARY"]
["Refer to the General Instructions tab for schedule-specific instructions"]
[]
["Health Plan:",null,{"$f":"'MMA Rev-Exp Summary'!C3","v":0}]
["Reporting Period:",null,{"$f":"IF('MMA Rev-Exp Summary'!C4=0,\"\",'MMA Rev-Exp Summary'!C4)","v":""}]
["Paid Through:",null,{"$f":"IF('MMA Rev-Exp Summary'!C5=0,\"\",'MMA Rev-Exp Summary'!C5)","v":""}]
["Program:  AP or IHP"]
[]
[]
[{"$nulls":6},"JANUARY - MARCH  (Q1)",{"$nulls":10},"APRIL - JUNE  (Q2)",{"$nulls":10},"JULY - SEPTEMBER  (Q3)",{"$nulls":10},"OCTOBER - DECEMBER  (Q4)",{"$nulls":11},"TOTAL (TO DATE)"]
[null,null,"Payment Methodology","No. of Identified Providers","No. of Qualified Providers","% of Identified Providers Paid","Total","TANF Non-SMI","TANF SMI","SSI Medicaid Only Non-SMI","SSI Medicaid Only SMI","Dual Eligible","Child Welfare","HIV/AIDS Dual Eligible","HIV/AIDS Medicaid Only","LTC Dual Eligible","LTC Medicaid Only","Total","TANF Non-SMI","TANF SMI","SSI Medicaid Only Non-SMI","SSI Medicaid Only SMI","Dual Eligible","Child Welfare","HIV/AIDS Dual Eligible","HIV/AIDS Medicaid Only","LTC Dual Eligible","LTC Medicaid Only","Total","TANF Non-SMI","TANF SMI","SSI Medicaid Only Non-SMI","SSI Medicaid Only SMI","Dual Eligible","Child Welfare","HIV/AIDS Dual Eligible","HIV/AIDS Medicaid Only","LTC Dual Eligible","LTC Medicaid Only","Total","TANF Non-SMI","TANF SMI","SSI Medicaid Only Non-SMI","SSI Medicaid Only SMI","Dual Eligible","Child Welfare","HIV/AIDS Dual Eligible","HIV/AIDS Medicaid Only","LTC Dual Eligible","LTC Medicaid Only","Prior Calendar Years","Total","TANF Non-SMI","TANF SMI","SSI Medicaid Only Non-SMI","SSI Medicaid Only SMI","Dual Eligible","Child Welfare","HIV/AIDS Dual Eligible","HIV/AIDS Medicaid Only","LTC Dual Eligible","LTC Medicaid Only"]
["MEMBER MONTHS",{"$nulls":5},{"$f":"SUM(H12:Q12)","v":0},{"$nulls":10},{"$f":"SUM(S12:AB12)","v":0},{"$nulls":10},{"$f":"SUM(AD12:AM12)","v":0},{"$nulls":10},{"$f":"SUM(AO12:AX12)","v":0},{"$nulls":11},{"$f":"SUM(BA12:BJ12)+AY12","v":0},{"$f":"H12+S12+AD12+AO12","v":0},{"$f":"I12+T12+AE12+AP12","v":0},{"$f":"J12+U12+AF12+AQ12","v":0},0,0,0,0,0,0,0]
["EXPENSES"]
["Pediatrician","1.1","FFS",null,null,{"$f":"IFERROR(E14/D14, \"\")","v":""},{"$f":"SUM(H14:Q14)","v":0},{"$nulls":10},{"$f":"SUM(S14:AB14)","v":0},{"$nulls":10},{"$f":"SUM(AD14:AM14)","v":0},{"$nulls":10},{"$f":"SUM(AO14:AX14)","v":0},{"$nulls":11},{"$f":"SUM(BA14:BJ14)+AY14","v":0},{"$f":"H14+S14+AD14+AO14","v":0},{"$f":"I14+T14+AE14+AP14","v":0},0,0,0,0,0,0,0,0]
[null,"1.2","Subcapitation",null,null,"",{"$f":"SUM(H15:Q15)","v":0},{"$nulls":10},{"$f":"SUM(S15:AB15)","v":0},{"$nulls":10},{"$f":"SUM(AD15:AM15)","v":0},{"$nulls":10},{"$f":"SUM(AO15:AX15)","v":0},{"$nulls":11},{"$f":"SUM(BA15:BJ15)+AY15","v":0},0,0,0,0,0,0,0,0,0,0]
[null,"1.3","Retroactive Payment",null,null,"",0,{"$nulls":10},0,{"$nulls":10},0,{"$nulls":10},0,{"$nulls":11},0,0,0,0,0,0,0,0,0,0,0]
[null,"1.4","Other",null,null,"",0,{"$nulls":10},0,{"$nulls":10},0,{"$nulls":10},0,{"$nulls":11},0,0,0,0,0,0,0,0,0,0,0]
[null,"1.5","Total",{"$f":"SUM(D14:D17)","v":0},{"$f":"SUM(E14:E17)","v":0},"",0,{"$f":"SUM(H14:H17)","v":0},0,0,0,0,0,0,0,0,0,0,{"$f":"SUM(S14:S17)","v":0},0,0,0,0,0,0,0,0,0,0,{"$f":"SUM(AD14:AD17)","v":0},0,0,0,0,0,0,0,0,0,0,{"$f":"SUM(AO14:AO17)","v":0},0,0,0,0,0,0,0,0,0,{"$f":"SUM(AY14:AY17)","v":0},0,0,0,0,0,0,0,0,0,0,0]
["OB/GYN","2.1","FFS",null,null,"",{"$f":"SUM(H19:Q19)","v":0},{"$nulls":10},{"$f":"SUM(S19:AB19)","v":0},{"$nulls":10},{"$f":"SUM(AD19:AM19)","v":0},{"$nulls":10},{"$f":"SUM(AO19:AX19)","v":0},{"$nulls":11},{"$f":"SUM(BA19:BJ19)+AY19","v":0},0,0,0,0,0,0,0,0,0,0]
[null,"2.2","Subcapitation",null,null,"",0,{"$nulls":10},{"$f":"SUM(S20:AB20)","v":0},{"$nulls":10},{"$f":"SUM(AD20:AM20)","v":0},{"$nulls":10},{"$f":"SUM(AO20:AX20)","v":0},{"$nulls":11},0,0,0,0,0,0,0,0,0,0,0]
[null,"2.3","Retroactive Payment",null,null,"",0,{"$nulls":10},0,{"$nulls":10},0,{"$nulls":10},0,{"$nulls":11},0,0,0,0,0,0,0,0,0,0,0]
[null,"2.4","Other",null,null,"",0,{"$nulls":10},0,{"$nulls":10},0,{"$nulls":10},0,{"$nulls":11},0,0,0,0,0,0,0,0,0,0,0]
[null,"2.5","Total",{"$f":"SUM(D19:D22)","v":0},{"$f":"SUM(E19:E22)","v":0},"",0,{"$f":"SUM(H19:H22)","v":0},0,0,0,0,0,0,0,0,0,0,{"$f":"SUM(S19:S22)","v":0},0,0,0,0,0,0,0,0,0,0,{"$f":"SUM(AD19:AD22)","v":0},0,0,0,0,0,0,0,0,0,0,{"$f":"SUM(AO19:AO22)","v":0},0,0,0,0,0,0,0,0,0,{"$f":"SUM(AY19:AY22)","v":0},0,0,0,0,0,0,0,0,0,0,0]
["Other","3.1","FFS",null,null,{"$f":"IFERROR(E24/D24, \"\")","v":""},{"$f":"SUM(H24:Q24)","v":0},{"$nulls":10},{"$f":"SUM(S24:AB24)","v":0},{"$nulls":10},{"$f":"SUM(AD24:AM24)","v":0},{"$nulls":10},{"$f":"SUM(AO24:AX24)","v":0},{"$nulls":11},{"$f":"SUM(BA24:BJ24)+AY24","v":0},{"$f":"H24+S24+AD24+AO24","v":0},0,0,0,0,0,0,0,0,0]
[null,"3.2","Subcapitation",null,null,"",0,{"$nulls":10},{"$f":"SUM(S25:AB25)","v":0},{"$nulls":10},{"$f":"SUM(AD25:AM25)","v":0},{"$nulls":10},{"$f":"SUM(AO25:AX25)","v":0},{"$nulls":11},0,0,0,0,0,0,0,0,0,0,0]
[null,"3.3","Retroactive Payment",null,null,"",0,{"$nulls":10},0,{"$nulls":10},0,{"$nulls":10},0,{"$nulls":11},0,0,0,0,0,0,0,0,0,0,0]
[null,"3.4","Other",null,null,"",0,{"$nulls":10},0,{"$nulls":10},0,{"$nulls":10},0,{"$nulls":11},0,0,0,0,0,0,0,0,0,0,0]
[null,"3.5","Total",{"$f":"SUM(D24:D27)","v":0},{"$f":"SUM(E24:E27)","v":0},"",0,{"$f":"SUM(H24:H27)","v":0},0,0,0,0,0,0,0,0,0,0,{"$f":"SUM(S24:S27)","v":0},0,0,0,0,0,0,0,0,0,0,{"$f":"SUM(AD24:AD27)","v":0},0,0,0,0,0,0,0,0,0,0,{"$f":"SUM(AO24:AO27)","v":0},0,0,0,0,0,0,0,0,0,{"$f":"SUM(AY24:AY27)","v":0},0,0,0,0,0,0,0,0,0,0,0]
[null,{"v":4,"d":"4.0"},"Grand Total",{"$f":"D18+D23+D28","v":0},{"$f":"E18+E23+E28","v":0},"",{"$f":"G18+G23+G28","v":0},{"$f":"H18+H23+H28","v":0},{"$f":"I18+I23+I28","v":0},0,0,0,0,0,0,0,0,{"$f":"R18+R23+R28","v":0},{"$f":"S18+S23+S28","v":0},{"$f":"T18+T23+T28","v":0},{"$f":"U18+U23+U28","v":0},{"$f":"V18+V23+V28","v":0},{"$f":"W18+W23+W28","v":0},{"$f":"X18+X23+X28","v":0},{"$f":"Y18+Y23+Y28","v":0},{"$f":"Z18+Z23+Z28","v":0},{"$f":"AA18+AA23+AA28","v":0},{"$f":"AB18+AB23+AB28","v":0},{"$f":"AC18+AC23+AC28","v":0},{"$f":"AD18+AD23+AD28","v":0},{"$f":"AE18+AE23+AE28","v":0},{"$f":"AF18+AF23+AF28","v":0},{"$f":"AG18+AG23+AG28","v":0},{"$f":"AH18+AH23+AH28","v":0},{"$f":"AI18+AI23+AI28","v":0},{"$f":"AJ18+AJ23+AJ28","v":0},{"$f":"AK18+AK23+AK28","v":0},{"$f":"AL18+AL23+AL28","v":0},{"$f":"AM18+AM23+AM28","v":0},{"$f":"AN18+AN23+AN28","v":0},{"$f":"AO18+AO23+AO28","v":0},{"$f":"AP18+AP23+AP28","v":0},{"$f":"AQ18+AQ23+AQ28","v":0},{"$f":"AR18+AR23+AR28","v":0},{"$f":"AS18+AS23+AS28","v":0},{"$f":"AT18+AT23+AT28","v":0},{"$f":"AU18+AU23+AU28","v":0},{"$f":"AV18+AV23+AV28","v":0},{"$f":"AW18+AW23+AW28","v":0},{"$f":"AX18+AX23+AX28","v":0},{"$f":"AY18+AY23+AY28","v":0},{"$f":"AZ18+AZ23+AZ28","v":0},{"$f":"BA18+BA23+BA28","v":0},{"$f":"BB18+BB23+BB28","v":0},0,0,0,0,0,0,0,0]

{"sheet":"LTC Rev-Exp Instructions","index":22,"n_rows":83,"n_cols":4,"rows_kept":83,"hidden":true,"merged":[[18,0,18,2],[19,0,20,2],[19,3,20,3],[21,0,24,0],[25,0,26,2],[25,3,26,3],[27,0,36,0],[37,0,48,0],[49,0,53,0],[54,0,64,0],[65,0,65,2],[66,0,72,0],[73,0,78,0]]}
["LONG TERM CARE REVENUE AND EXPENSE SCHEDULE - INSTRUCTIONS"]
["QUARTERLY AND ANNUAL"]
[]
["Coverage:","Reported for LTC experience, by region. Summary report aggregates all contracted regions."]
["Reporting Period:","Quarter YTD; each quarterly submission introduces a new quarter and updates prior quarters."]
["June 1","Q1 Revenue & Expense Schedule includes only January - March (paid through March)."]
["August 15","Q2 Revenue & Expense Schedule includes restated January - March, first look at April - June (all paid through June). "]
["November 15","Q3 Revenue & Expense Schedule includes restated January - March and April - June, first look at July - September (all paid through September)."]
["February 15","Q4 Revenue & Expense Schedule includes restated quarters 1 - 3, first look at October - December (all paid through December)."]
["May 1","Annual Revenue & Expense Schedule includes restated quarters 1-4 of prior calendar year, all paid through March."]
[]
["Health Plan:","Name or D/B/A of the managed care plan."]
["Reporting Period:","Based upon the reporting periods identified above."]
["Paid Through:","Based on the paid through timeframes identified above."]
["Region:","Applicable only for Regional reports."]
[]
["Note:  The Prior Year Adjustment column shall be used to report all prior period activity, including changes in estimates."]
[]
["MEMBER MONTHS",null,null,"Number of members enrolled in each month.  Year-to-Date is the sum of the member months over the individual months of the period."]
["REVENUES"]
[]
["Revenues",1.1,"Capitation","Monthly premium payments earned on behalf of Medicaid recipients "]
[null,1.2,"NH Rate Reconciliation","Accruals for amounts due to the plan as a result of the annual nursing home rate reconciliation.  Amounts due to the State arising from nursing home rate reconciliations should be listed as a negative amount,  reducing revenue earned during the period."]
[null,"1.3","Other Revenue","Plan-related revenue earned from other sources not listed in lines 1.1 through 1.2 -- does not include investment gains.  Report details of this income, including type and amount, in the notes section of this report."]
[null,"1.4","Total Revenue","Sum of lines 1.1 through 1.3 (Direct business, not increased for reinsurance assumed and not reduced by reinsurance ceded)."]
["EXPENSES"]
[]
["LTC Nursing Facility (NF) & Hospice Services",2.1,"Nursing Facility Days (Medicaid)","The number of Nursing Facility days for Medicaid-only Nursing Facility services as defined in the SMMC contract."]
[null,2.2,"Nursing Facility Days (Crossover)","The number of days for Medicare crossover Nursing Facility services as defined in the SMMC Contract.  Report Nursing Facility days for days 21-100.  Days 1-20 should not be reported."]
[null,2.3,"Nursing Facility FFS (Medicaid)","Expenses incurred for Medicaid-only Nursing Facility services as defined in the SMMC Contract.  "]
[null,2.4,"Nursing Facility FFS (Crossover)","Expenses incurred for Medicare crossover Nursing Facility services as defined in the SMMC Contract.  Report only Medicare crossover expenses for days 21-100.  Days 1-20 should not be reported."]
[null,2.5,"Hospice Days","The number of days for Hospice services as defined in the SMMC Contract."]
[null,2.6,"Hospice FFS","Expenses incurred for Hospice services as defined in the SMMC Contract."]
[null,2.7,"Ending IBNP for NF & Hospice Services","Estimated amount for Nursing Facility and Hospice services that have been incurred but not paid (IBNP).  Amounts should be \"Best Estimate\" and should not include margin or LAE.  The Prior Calendar Year column should include a reversal of the prior year's IBNP as claims experience develops."]
[null,2.8,"NF & Hospice Subcapitated Services","Expenses incurred for subcapitated payments to providers for Nursing Facility and Hospice services."]
[null,2.9,"NF & Hospice Settlements/AP","Expenses incurred for Nursing Facility and Hospice services associated with provider, recipient, legal, and/or TPL settlements not included on lines 2.3, 2.4, 2.6, 2.7, and 2.8.  Also includes alternative payment arrangements."]
[null,{"v":2.1,"d":"2.10"},"Total Nursing Facility and Hospice","Sum of lines 2.3, 2.4, 2.6, 2.7, 2.8, and 2.9."]
["Long Term Care Services",2.11,"Assisted Living FFS","Expenses incurred for Assisted Living services as defined in the SMMC Contract."]
[null,2.12,"Home Health FFS","Expenses incurred for Attendant Care, Intermittent/Skilled Nursing, or Personal Care services as defined in the SMMC Contract."]
[null,2.13,"Medical Equipment/Supplies FFS","Expenses incurred for Medical Equipment and Supplies as defined in the SMMC Contract."]
[null,2.14,"Therapy Services FFS","Expenses incurred for Occupational Therapy, Physical Therapy, Respiratory Therapy, or Speech Therapy services, as defined in the SMMC Contract."]
[null,2.15,"Transportation Services FFS","Expenses incurred for Transportation services as defined in the SMMC Contract."]
[null,2.16,"Case Management (Plan Provided) FFS","Expenses incurred for plan-provided case management services as defined in the SMMC contract.  Report expenses for the direct service component only.  Expenses for the support of case management services shall be reported in Section 5, Administrative Expense."]
[null,2.17,"Case Management (non-Plan Provided) FFS","Expenses incurred for non-plan provide case management services as defined in the SMMC contract."]
[null,2.18,"Home & Community Based Services  (HCBS) FFS","Expenses incurred for all other LTC services included in the SMMC Contract, and not listed above in lines 2.3 through 2.17."]
[null,2.19,"Subcapitated LTC Services (excluding NF)","Expenses incurred for subcapitated payments to providers for LTC services, excluding Nursing Facility and Hospice, which should be reported on line 2.8."]
[null,{"v":2.2,"d":"2.20"},"Ending IBNP for Long Term Care Services (excluding NF)","Estimated amount for LTC services that have been incurred but not paid (IBNP), excluding Nursing Facility and Hospice, which should be reported on line 2.7.  Amounts should be \"Best Estimate\" and should not include margin or LAE.  The Prior Calendar Year column should include a reversal of the prior year's IBNP as claims experience develops."]
[null,2.21,"LTC Services Settlements/AP (excluding NF)","Expenses incurred for LTC services associated with provider, recipient, legal, and/or TPL settlements not included on lines 2.11 through 2.20.  Also includes alternative payment arrangements."]
[null,2.22,"Grand Total LTC Services","Sum of lines 2.10 through 2.21."]
["Expanded Benefits","3.1","Expanded Benefits FFS","Expenses incurred for services offered by the health plan as specified in the Medicaid Health Plan Contract, Attachment I, Table 3."]
[null,"3.2","Expanded Benefits Subcapitation","Expenses incurred for subcapitated payments made to providers for Expanded Benefits services."]
[null,"3.3","Ending IBNP for Expanded Benefits","Estimated amount for Expanded Benefits services incurred but not paid (IBNP).  Amounts should be \"Best Estimate\" and should not include margin or LAE.  The Prior Calendar Year column should include a reversal of the prior year's IBNP as claims experience develops."]
[null,3.4,"Expanded Benefits Services Settlements/AP","Expenses incurred for expanded benefits services associated with provider, recipient, legal, and/or TPL settlements not included o lines 3.1 through 3.3.  Also includes alternative payment arrangements."]
[null,3.5,"Total Expanded Benefits","Sum of lines 3.1 through 3.4"]
["Totals Before and After Reinsurance","4.1","Total Services Paid Directly FFS","Sum of lines 2.3, 2.4, 2.6, 2.11, 2.12, 2.13, 2.14, 2.15, 2.16, 2.17, 2.18, and 3.1"]
[null,"4.2","Total Services Paid Directly -- IBNP","Sum of lines 2.7, 2.20, and 3.3."]
[null,"4.3","Total Services Paid through Subcapitation","Sum of lines 2.8, 2.19, and 3.2."]
[null,4.4,"Total Services Paid by Settlements","Sum of lines 2.9, 2.21, and 3.4."]
[null,4.5,"TPL & Fraud/Abuse Recoveries","Recoveries due to Third-Party Liability, Fraud & Abuse, and other overpayment recovery efforts not included in lines 2.1 through 3.4.  Reported as a negative amount."]
[null,"4.6.1","Premium Deficiency Reserve","Provision for Premium Deficiency Reserve."]
[null,"4.7","Subtotal Benefit Expense before Reinsurance","Sum of lines 4.1 through 4.6.1"]
[null,"4.8","Reinsurance Premiums","Expenses incurred  by plans to authorized companies assuming risk."]
[null,"4.9","Reinsurance Recoveries","Amounts recovered and changes in accrued amounts recoverable from reinsurers on paid losses and on losses included in IBNP.  Reported as a negative amount."]
[null,"4.10","Net Cost of Reinsurance","Sum of line 4.8 and line 4.9."]
[null,"4.11","Grand Total Service Benefit Expense Net of Reinsurance","Sum of lines 4.7 and 4.10"]
["Administrative Expenses, Government-Mandated Assessments, Taxes, and Fees "]
["Administrative Expenses","5.1","Salaries & Benefits","Direct salary, benefit, and payroll tax expenses.  Excludes case management which should be reported as an LTC Service expense.  Expenses should be allocated across populations with an explanation as to the allocation methodology used included on the Notes tab."]
[null,"5.2","Administrative Services","Non-salary/benefit-related expenses for accounting, actuarial, risk management, legal, investment services, underwriting, etc.  Includes payments to parent company or other contracted entities.  Excludes case management which should be reported as an LTC Service expense.  Expenses should be allocated across populations with an explanation as to the allocation methodology used included on the Notes tab."]
[null,"5.3","Information Systems","Claims processing, pharmacy benefits management, and other information systems expenses.  Includes payments to parent company or contracted entities.  Expenses should be allocated across populations with an explanation as to the allocation methodology used included on the Notes tab."]
[null,"5.4","Marketing Expenses","Market research, marketing campaigns/advertising, public relations.  Expenses should be allocated across populations with an explanation as to the allocation methodology used included on the Notes tab."]
[null,"5.5","General  Administration","Direct & Allocated overhead, rent, utilities, supplies, insurance, and other operating expenses not specifically identified in lines 5.1 through 5.4  Excludes case management which should be reported as an LTC Service expense.  Expenses should be allocated across populations with an explanation as to the allocation methodology used included on the Notes tab."]
[null,"5.6","Compliance/Regulatory","Expenses associated with fines, penalties, liquidated damages, or other compliance matters as identified/levied by governmental or other regulatory entities.  Expenses should be allocated across populations with an explanation as to the allocation methodology used included on the Notes tab."]
[null,"5.7","Total Administrative Expenses ","Sum of lines 5.1 through 5.6"]
["Government-Mandated Assessments, Taxes, and Fees Other Than Income Taxes","6.1","State Premium Tax","Amounts paid or payable on premium revenue in 1.4."]
[null,"6.2","Department of Insurance Assessments","Amounts paid or payable related to premium revenue in 1.4."]
[null,"6.3","Other 1","Additional assessments, taxes, and fees not reported on lines 13.1 through 13.3, as needed.  Additional information to be provided in the Notes section."]
[null,"6.4","Other 2","Additional assessments, taxes, and fees not reported on lines 13.1 through 13.3, as needed.  Additional information to be provided in the Notes section."]
[null,"6.5","Other 3","Additional assessments, taxes, and fees not reported on lines 13.1 through 13.3, as needed.  Additional information to be provided in the Notes section."]
[null,"6.6","Total ","Sum of lines 6.1 through 6.6"]
[null,"7.0","Grand Total Expenses","Sum of lines 4.11 and 5.7 and 6.6"]
[null,"8.0","Underwriting Gain / (Loss)  --- AKA Pre-tax Earnings from Operations","Line 1.4 minus line 7."]
[null,"9.0","Income Tax Expense","Domestic federal, state, and local taxes based on income from operations.  Excludes income tax expense reported on lines 11.6 and 11.8."]
[null,"10.0","Net Underwriting Gain (Loss) from Operations","Line 8 minus line 9."]

{"sheet":"LTC Rev-Exp Summary","index":23,"n_rows":73,"n_cols":24,"rows_kept":73,"hidden":true,"merged":[[6,3,6,6],[6,7,6,10],[6,11,6,14],[6,15,6,18],[6,20,6,23],[9,0,9,2],[10,0,13,0],[14,0,15,2],[14,3,14,6],[14,7,14,10],[14,11,14,14],[14,15,14,18],[14,20,14,23],[16,0,25,0],[26,0,37,0],[38,0,42,0],[43,0,53,0],[54,0,55,2],[54,3,54,6],[54,7,54,10],[54,11,54,14],[54,15,54,18],[54,20,54,23],[56,0,62,0],[63,0,68,0]]}
["LONG TERM CARE -- REVENUE AND EXPENSE SCHEDULE - SUMMARY"]
[]
["Health Plan:"]
["Reporting Period:"]
["Paid Through:"]
["Summary"]
[{"$nulls":3},"JANUARY - MARCH (Q1)",{"$nulls":3},"APRIL - JUNE (Q2)",{"$nulls":3},"JULY - SEPTEMBER (Q3)",{"$nulls":3},"OCTOBER - DECEMBER (Q4)",{"$nulls":4},"TOTAL (TO DATE)"]
[{"$nulls":3},"Total","Non-HCBS","HCBS","MED-P / SIXT","Total","Non-HCBS","HCBS","MED-P / SIXT","Total","Non-HCBS","HCBS","MED-P / SIXT","Total","Non-HCBS","HCBS","MED-P / SIXT","Prior Year Adjustments","Total","Non-HCBS","HCBS","MED-P / SIXT"]
["MEMBER MONTHS",null,null,{"$f":"SUM(E9:G9)","v":0},{"$f":"SUM('LTC Rev-Exp Region 1:LTC Rev-Exp Region 11'!E9)","v":0},{"$f":"SUM('LTC Rev-Exp Region 1:LTC Rev-Exp Region 11'!F9)","v":0},{"$f":"SUM('LTC Rev-Exp Region 1:LTC Rev-Exp Region 11'!G9)","v":0},{"$f":"SUM(I9:K9)","v":0},{"$f":"SUM('LTC Rev-Exp Region 1:LTC Rev-Exp Region 11'!I9)","v":0},{"$f":"SUM('LTC Rev-Exp Region 1:LTC Rev-Exp Region 11'!J9)","v":0},{"$f":"SUM('LTC Rev-Exp Region 1:LTC Rev-Exp Region 11'!K9)","v":0},{"$f":"SUM(M9:O9)","v":0},{"$f":"SUM('LTC Rev-Exp Region 1:LTC Rev-Exp Region 11'!M9)","v":0},{"$f":"SUM('LTC Rev-Exp Region 1:LTC Rev-Exp Region 11'!N9)","v":0},{"$f":"SUM('LTC Rev-Exp Region 1:LTC Rev-Exp Region 11'!O9)","v":0},{"$f":"SUM(Q9:S9)","v":0},{"$f":"SUM('LTC Rev-Exp Region 1:LTC Rev-Exp Region 11'!Q9)","v":0},{"$f":"SUM('LTC Rev-Exp Region 1:LTC Rev-Exp Region 11'!R9)","v":0},{"$f":"SUM('LTC Rev-Exp Region 1:LTC Rev-Exp Region 11'!S9)","v":0},{"$f":"SUM('LTC Rev-Exp Region 1:LTC Rev-Exp Region 11'!T9)","v":0},{"$f":"SUM(V9:X9)+T9","v":0},{"$f":"SUM('LTC Rev-Exp Region 1:LTC Rev-Exp Region 11'!V9)","v":0},{"$f":"SUM('LTC Rev-Exp Region 1:LTC Rev-Exp Region 11'!W9)","v":0},{"$f":"SUM('LTC Rev-Exp Region 1:LTC Rev-Exp Region 11'!X9)","v":0}]
["REVENUES"]
["Revenues",1.1,"Capitation",{"$f":"SUM('LTC Rev-Exp Region 1:LTC Rev-Exp Region 11'!D11)","v":0},{"$nulls":3},{"$f":"SUM('LTC Rev-Exp Region 1:LTC Rev-Exp Region 11'!H11)","v":0},{"$nulls":3},{"$f":"SUM('LTC Rev-Exp Region 1:LTC Rev-Exp Region 11'!L11)","v":0},{"$nulls":3},{"$f":"SUM('LTC Rev-Exp Region 1:LTC Rev-Exp Region 11'!P11)","v":0},{"$nulls":3},{"$f":"SUM('LTC Rev-Exp Region 1:LTC Rev-Exp Region 11'!T11)","v":0},{"$f":"SUM('LTC Rev-Exp Region 1:LTC Rev-Exp Region 11'!U11)","v":0}]
[null,1.2,"NH Rate Reconciliation",{"$f":"SUM('LTC Rev-Exp Region 1:LTC Rev-Exp Region 11'!D12)","v":0},{"$nulls":3},{"$f":"SUM('LTC Rev-Exp Region 1:LTC Rev-Exp Region 11'!H12)","v":0},{"$nulls":3},{"$f":"SUM('LTC Rev-Exp Region 1:LTC Rev-Exp Region 11'!L12)","v":0},{"$nulls":3},{"$f":"SUM('LTC Rev-Exp Region 1:LTC Rev-Exp Region 11'!P12)","v":0},{"$nulls":3},{"$f":"SUM('LTC Rev-Exp Region 1:LTC Rev-Exp Region 11'!T12)","v":0},{"$f":"SUM('LTC Rev-Exp Region 1:LTC Rev-Exp Region 11'!U12)","v":0}]
[null,"1.3","Other Revenue",{"$f":"SUM('LTC Rev-Exp Region 1:LTC Rev-Exp Region 11'!D13)","v":0},{"$nulls":3},{"$f":"SUM('LTC Rev-Exp Region 1:LTC Rev-Exp Region 11'!H13)","v":0},{"$nulls":3},{"$f":"SUM('LTC Rev-Exp Region 1:LTC Rev-Exp Region 11'!L13)","v":0},{"$nulls":3},{"$f":"SUM('LTC Rev-Exp Region 1:LTC Rev-Exp Region 11'!P13)","v":0},{"$nulls":3},{"$f":"SUM('LTC Rev-Exp Region 1:LTC Rev-Exp Region 11'!T13)","v":0},{"$f":"SUM('LTC Rev-Exp Region 1:LTC Rev-Exp Region 11'!U13)","v":0}]
[null,"1.4","Total Revenue",{"$f":"SUM(D11:D13)","v":0},{"$nulls":3},{"$f":"SUM(H11:H13)","v":0},{"$nulls":3},{"$f":"SUM(L11:L13)","v":0},{"$nulls":3},{"$f":"SUM(P11:P13)","v":0},{"$nulls":3},{"$f":"SUM(T11:T13)","v":0},{"$f":"SUM(U11:U13)","v":0}]
["EXPENSES",null,null,"JANUARY - MARCH (Q1)",{"$nulls":3},"APRIL - JUNE (Q2)",{"$nulls":3},"JULY - SEPTEMBER (Q3)",{"$nulls":3},"OCTOBER - DECEMBER (Q4)",{"$nulls":4},"TOTAL (TO DATE)"]
[{"$nulls":3},"Total","Non-HCBS","HCBS","MED-P / SIXT","Total","Non-HCBS","HCBS","MED-P / SIXT","Total","Non-HCBS","HCBS","MED-P / SIXT","Total","Non-HCBS","HCBS","MED-P / SIXT","Prior Year Adjustments","Total","Non-HCBS","HCBS","MED-P / SIXT"]
["LTC Nursing Facility (NF) & Hospice Services",2.1,"Nursing Facility Days (Medicaid)",{"$f":"SUM(E17:G17)","v":0},{"$f":"SUM('LTC Rev-Exp Region 1:LTC Rev-Exp Region 11'!E17)","v":0},{"$f":"SUM('LTC Rev-Exp Region 1:LTC Rev-Exp Region 11'!F17)","v":0},{"$f":"SUM('LTC Rev-Exp Region 1:LTC Rev-Exp Region 11'!G17)","v":0},{"$f":"SUM(I17:K17)","v":0},{"$f":"SUM('LTC Rev-Exp Region 1:LTC Rev-Exp Region 11'!I17)","v":0},{"$f":"SUM('LTC Rev-Exp Region 1:LTC Rev-Exp Region 11'!J17)","v":0},{"$f":"SUM('LTC Rev-Exp Region 1:LTC Rev-Exp Region 11'!K17)","v":0},{"$f":"SUM(M17:O17)","v":0},{"$f":"SUM('LTC Rev-Exp Region 1:LTC Rev-Exp Region 11'!M17)","v":0},{"$f":"SUM('LTC Rev-Exp Region 1:LTC Rev-Exp Region 11'!N17)","v":0},{"$f":"SUM('LTC Rev-Exp Region 1:LTC Rev-Exp Region 11'!O17)","v":0},{"$f":"SUM(Q17:S17)","v":0},{"$f":"SUM('LTC Rev-Exp Region 1:LTC Rev-Exp Region 11'!Q17)","v":0},{"$f":"SUM('LTC Rev-Exp Region 1:LTC Rev-Exp Region 11'!R17)","v":0},{"$f":"SUM('LTC Rev-Exp Region 1:LTC Rev-Exp Region 11'!S17)","v":0},{"$f":"SUM('LTC Rev-Exp Region 1:LTC Rev-Exp Region 11'!T17)","v":0},{"$f":"SUM(V17:X17)+T17","v":0},{"$f":"SUM('LTC Rev-Exp Region 1:LTC Rev-Exp Region 11'!V17)","v":0},{"$f":"SUM('LTC Rev-Exp Region 1:LTC Rev-Exp Region 11'!W17)","v":0},{"$f":"SUM('LTC Rev-Exp Region 1:LTC Rev-Exp Region 11'!X17)","v":0}]
[null,2.2,"Nursing Facility Days (Crossover)",{"$f":"SUM(E18:G18)","v":0},{"$f":"SUM('LTC Rev-Exp Region 1:LTC Rev-Exp Region 11'!E18)","v":0},{"$f":"SUM('LTC Rev-Exp Region 1:LTC Rev-Exp Region 11'!F18)","v":0},{"$f":"SUM('LTC Rev-Exp Region 1:LTC Rev-Exp Region 11'!G18)","v":0},{"$f":"SUM(I18:K18)","v":0},{"$f":"SUM('LTC Rev-Exp Region 1:LTC Rev-Exp Region 11'!I18)","v":0},{"$f":"SUM('LTC Rev-Exp Region 1:LTC Rev-Exp Region 11'!J18)","v":0},{"$f":"SUM('LTC Rev-Exp Region 1:LTC Rev-Exp Region 11'!K18)","v":0},{"$f":"SUM(M18:O18)","v":0},{"$f":"SUM('LTC Rev-Exp Region 1:LTC Rev-Exp Region 11'!M18)","v":0},{"$f":"SUM('LTC Rev-Exp Region 1:LTC Rev-Exp Region 11'!N18)","v":0},{"$f":"SUM('LTC Rev-Exp Region 1:LTC Rev-Exp Region 11'!O18)","v":0},{"$f":"SUM(Q18:S18)","v":0},{"$f":"SUM('LTC Rev-Exp Region 1:LTC Rev-Exp Region 11'!Q18)","v":0},{"$f":"SUM('LTC Rev-Exp Region 1:LTC Rev-Exp Region 11'!R18)","v":0},{"$f":"SUM('LTC Rev-Exp Region 1:LTC Rev-Exp Region 11'!S18)","v":0},{"$f":"SUM('LTC Rev-Exp Region 1:LTC Rev-Exp Region 11'!T18)","v":0},{"$f":"SUM(V18:X18)+T18","v":0},{"$f":"SUM('LTC Rev-Exp Region 1:LTC Rev-Exp Region 11'!V18)","v":0},{"$f":"SUM('LTC Rev-Exp Region 1:LTC Rev-Exp Region 11'!W18)","v":0},{"$f":"SUM('LTC Rev-Exp Region 1:LTC Rev-Exp Region 11'!X18)","v":0}]
[null,2.3,"Nursing Facility FFS (Medicaid)",0,{"$f":"SUM('LTC Rev-Exp Region 1:LTC Rev-Exp Region 11'!E19)","v":0},{"$f":"SUM('LTC Rev-Exp Region 1:LTC Rev-Exp Region 11'!F19)","v":0},{"$f":"SUM('LTC Rev-Exp Region 1:LTC Rev-Exp Region 11'!G19)","v":0},0,{"$f":"SUM('LTC Rev-Exp Region 1:LTC Rev-Exp Region 11'!I19)","v":0},{"$f":"SUM('LTC Rev-Exp Region 1:LTC Rev-Exp Region 11'!J19)","v":0},{"$f":"SUM('LTC Rev-Exp Region 1:LTC Rev-Exp Region 11'!K19)","v":0},0,{"$f":"SUM('LTC Rev-Exp Region 1:LTC Rev-Exp Region 11'!M19)","v":0},{"$f":"SUM('LTC Rev-Exp Region 1:LTC Rev-Exp Region 11'!N19)","v":0},{"$f":"SUM('LTC Rev-Exp Region 1:LTC Rev-Exp Region 11'!O19)","v":0},0,{"$f":"SUM('LTC Rev-Exp Region 1:LTC Rev-Exp Region 11'!Q19)","v":0},{"$f":"SUM('LTC Rev-Exp Region 1:LTC Rev-Exp Region 11'!R19)","v":0},{"$f":"SUM('LTC Rev-Exp Region 1:LTC Rev-Exp Region 11'!S19)","v":0},{"$f":"SUM('LTC Rev-Exp Region 1:LTC Rev-Exp Region 11'!T19)","v":0},0,{"$f":"SUM('LTC Rev-Exp Region 1:LTC Rev-Exp Region 11'!V19)","v":0},{"$f":"SUM('LTC Rev-Exp Region 1:LTC Rev-Exp Region 11'!W19)","v":0},{"$f":"SUM('LTC Rev-Exp Region 1:LTC Rev-Exp Region 11'!X19)","v":0}]
[null,2.4,"Nursing Facility FFS (Crossover)",0,{"$f":"SUM('LTC Rev-Exp Region 1:LTC Rev-Exp Region 11'!E20)","v":0},{"$f":"SUM('LTC Rev-Exp Region 1:LTC Rev-Exp Region 11'!F20)","v":0},{"$f":"SUM('LTC Rev-Exp Region 1:LTC Rev-Exp Region 11'!G20)","v":0},0,{"$f":"SUM('LTC Rev-Exp Region 1:LTC Rev-Exp Region 11'!I20)","v":0},{"$f":"SUM('LTC Rev-Exp Region 1:LTC Rev-Exp Region 11'!J20)","v":0},{"$f":"SUM('LTC Rev-Exp Region 1:LTC Rev-Exp Region 11'!K20)","v":0},0,{"$f":"SUM('LTC Rev-Exp Region 1:LTC Rev-Exp Region 11'!M20)","v":0},{"$f":"SUM('LTC Rev-Exp Region 1:LTC Rev-Exp Region 11'!N20)","v":0},{"$f":"SUM('LTC Rev-Exp Region 1:LTC Rev-Exp Region 11'!O20)","v":0},0,{"$f":"SUM('LTC Rev-Exp Region 1:LTC Rev-Exp Region 11'!Q20)","v":0},{"$f":"SUM('LTC Rev-Exp Region 1:LTC Rev-Exp Region 11'!R20)","v":0},{"$f":"SUM('LTC Rev-Exp Region 1:LTC Rev-Exp Region 11'!S20)","v":0},{"$f":"SUM('LTC Rev-Exp Region 1:LTC Rev-Exp Region 11'!T20)","v":0},0,{"$f":"SUM('LTC Rev-Exp Region 1:LTC Rev-Exp Region 11'!V20)","v":0},{"$f":"SUM('LTC Rev-Exp Region 1:LTC Rev-Exp Region 11'!W20)","v":0},{"$f":"SUM('LTC Rev-Exp Region 1:LTC Rev-Exp Region 11'!X20)","v":0}]
[null,2.5,"Hospice Days",0,{"$f":"SUM('LTC Rev-Exp Region 1:LTC Rev-Exp Region 11'!E21)","v":0},{"$f":"SUM('LTC Rev-Exp Region 1:LTC Rev-Exp Region 11'!F21)","v":0},{"$f":"SUM('LTC Rev-Exp Region 1:LTC Rev-Exp Region 11'!G21)","v":0},0,{"$f":"SUM('LTC Rev-Exp Region 1:LTC Rev-Exp Region 11'!I21)","v":0},{"$f":"SUM('LTC Rev-Exp Region 1:LTC Rev-Exp Region 11'!J21)","v":0},{"$f":"SUM('LTC Rev-Exp Region 1:LTC Rev-Exp Region 11'!K21)","v":0},0,{"$f":"SUM('LTC Rev-Exp Region 1:LTC Rev-Exp Region 11'!M21)","v":0},{"$f":"SUM('LTC Rev-Exp Region 1:LTC Rev-Exp Region 11'!N21)","v":0},{"$f":"SUM('LTC Rev-Exp Region 1:LTC Rev-Exp Region 11'!O21)","v":0},0,{"$f":"SUM('LTC Rev-Exp Region 1:LTC Rev-Exp Region 11'!Q21)","v":0},{"$f":"SUM('LTC Rev-Exp Region 1:LTC Rev-Exp Region 11'!R21)","v":0},{"$f":"SUM('LTC Rev-Exp Region 1:LTC Rev-Exp Region 11'!S21)","v":0},{"$f":"SUM('LTC Rev-Exp Region 1:LTC Rev-Exp Region 11'!T21)","v":0},0,{"$f":"SUM('LTC Rev-Exp Region 1:LTC Rev-Exp Region 11'!V21)","v":0},{"$f":"SUM('LTC Rev-Exp Region 1:LTC Rev-Exp Region 11'!W21)","v":0},{"$f":"SUM('LTC Rev-Exp Region 1:LTC Rev-Exp Region 11'!X21)","v":0}]
[null,2.6,"Hospice FFS",0,{"$f":"SUM('LTC Rev-Exp Region 1:LTC Rev-Exp Region 11'!E22)","v":0},{"$f":"SUM('LTC Rev-Exp Region 1:LTC Rev-Exp Region 11'!F22)","v":0},{"$f":"SUM('LTC Rev-Exp Region 1:LTC Rev-Exp Region 11'!G22)","v":0},0,{"$f":"SUM('LTC Rev-Exp Region 1:LTC Rev-Exp Region 11'!I22)","v":0},{"$f":"SUM('LTC Rev-Exp Region 1:LTC Rev-Exp Region 11'!J22)","v":0},{"$f":"SUM('LTC Rev-Exp Region 1:LTC Rev-Exp Region 11'!K22)","v":0},0,{"$f":"SUM('LTC Rev-Exp Region 1:LTC Rev-Exp Region 11'!M22)","v":0},{"$f":"SUM('LTC Rev-Exp Region 1:LTC Rev-Exp Region 11'!N22)","v":0},{"$f":"SUM('LTC Rev-Exp Region 1:LTC Rev-Exp Region 11'!O22)","v":0},0,{"$f":"SUM('LTC Rev-Exp Region 1:LTC Rev-Exp Region 11'!Q22)","v":0},{"$f":"SUM('LTC Rev-Exp Region 1:LTC Rev-Exp Region 11'!R22)","v":0},{"$f":"SUM('LTC Rev-Exp Region 1:LTC Rev-Exp Region 11'!S22)","v":0},{"$f":"SUM('LTC Rev-Exp Region 1:LTC Rev-Exp Region 11'!T22)","v":0},0,{"$f":"SUM('LTC Rev-Exp Region 1:LTC Rev-Exp Region 11'!V22)","v":0},{"$f":"SUM('LTC Rev-Exp Region 1:LTC Rev-Exp Region 11'!W22)","v":0},{"$f":"SUM('LTC Rev-Exp Region 1:LTC Rev-Exp Region 11'!X22)","v":0}]
[null,2.7,"Ending IBNP for NF & Hospice Services",0,{"$f":"SUM('LTC Rev-Exp Region 1:LTC Rev-Exp Region 11'!E23)","v":0},{"$f":"SUM('LTC Rev-Exp Region 1:LTC Rev-Exp Region 11'!F23)","v":0},{"$f":"SUM('LTC Rev-Exp Region 1:LTC Rev-Exp Region 11'!G23)","v":0},0,{"$f":"SUM('LTC Rev-Exp Region 1:LTC Rev-Exp Region 11'!I23)","v":0},{"$f":"SUM('LTC Rev-Exp Region 1:LTC Rev-Exp Region 11'!J23)","v":0},{"$f":"SUM('LTC Rev-Exp Region 1:LTC Rev-Exp Region 11'!K23)","v":0},0,{"$f":"SUM('LTC Rev-Exp Region 1:LTC Rev-Exp Region 11'!M23)","v":0},{"$f":"SUM('LTC Rev-Exp Region 1:LTC Rev-Exp Region 11'!N23)","v":0},{"$f":"SUM('LTC Rev-Exp Region 1:LTC Rev-Exp Region 11'!O23)","v":0},0,{"$f":"SUM('LTC Rev-Exp Region 1:LTC Rev-Exp Region 11'!Q23)","v":0},{"$f":"SUM('LTC Rev-Exp Region 1:LTC Rev-Exp Region 11'!R23)","v":0},{"$f":"SUM('LTC Rev-Exp Region 1:LTC Rev-Exp Region 11'!S23)","v":0},{"$f":"SUM('LTC Rev-Exp Region 1:LTC Rev-Exp Region 11'!T23)","v":0},0,{"$f":"SUM('LTC Rev-Exp Region 1:LTC Rev-Exp Region 11'!V23)","v":0},{"$f":"SUM('LTC Rev-Exp Region 1:LTC Rev-Exp Region 11'!W23)","v":0},{"$f":"SUM('LTC Rev-Exp Region 1:LTC Rev-Exp Region 11'!X23)","v":0}]
[null,2.8,"NF & Hospice Subcapitated Services",0,{"$f":"SUM('LTC Rev-Exp Region 1:LTC Rev-Exp Region 11'!E24)","v":0},{"$f":"SUM('LTC Rev-Exp Region 1:LTC Rev-Exp Region 11'!F24)","v":0},{"$f":"SUM('LTC Rev-Exp Region 1:LTC Rev-Exp Region 11'!G24)","v":0},0,{"$f":"SUM('LTC Rev-Exp Region 1:LTC Rev-Exp Region 11'!I24)","v":0},{"$f":"SUM('LTC Rev-Exp Region 1:LTC Rev-Exp Region 11'!J24)","v":0},{"$f":"SUM('LTC Rev-Exp Region 1:LTC Rev-Exp Region 11'!K24)","v":0},0,{"$f":"SUM('LTC Rev-Exp Region 1:LTC Rev-Exp Region 11'!M24)","v":0},{"$f":"SUM('LTC Rev-Exp Region 1:LTC Rev-Exp Region 11'!N24)","v":0},{"$f":"SUM('LTC Rev-Exp Region 1:LTC Rev-Exp Region 11'!O24)","v":0},0,{"$f":"SUM('LTC Rev-Exp Region 1:LTC Rev-Exp Region 11'!Q24)","v":0},{"$f":"SUM('LTC Rev-Exp Region 1:LTC Rev-Exp Region 11'!R24)","v":0},{"$f":"SUM('LTC Rev-Exp Region 1:LTC Rev-Exp Region 11'!S24)","v":0},{"$f":"SUM('LTC Rev-Exp Region 1:LTC Rev-Exp Region 11'!T24)","v":0},0,{"$f":"SUM('LTC Rev-Exp Region 1:LTC Rev-Exp Region 11'!V24)","v":0},{"$f":"SUM('LTC Rev-Exp Region 1:LTC Rev-Exp Region 11'!W24)","v":0},{"$f":"SUM('LTC Rev-Exp Region 1:LTC Rev-Exp Region 11'!X24)","v":0}]
[null,2.9,"NF & Hospice Settlements/AP",0,{"$f":"SUM('LTC Rev-Exp Region 1:LTC Rev-Exp Region 11'!E25)","v":0},{"$f":"SUM('LTC Rev-Exp Region 1:LTC Rev-Exp Region 11'!F25)","v":0},{"$f":"SUM('LTC Rev-Exp Region 1:LTC Rev-Exp Region 11'!G25)","v":0},0,{"$f":"SUM('LTC Rev-Exp Region 1:LTC Rev-Exp Region 11'!I25)","v":0},{"$f":"SUM('LTC Rev-Exp Region 1:LTC Rev-Exp Region 11'!J25)","v":0},{"$f":"SUM('LTC Rev-Exp Region 1:LTC Rev-Exp Region 11'!K25)","v":0},0,{"$f":"SUM('LTC Rev-Exp Region 1:LTC Rev-Exp Region 11'!M25)","v":0},{"$f":"SUM('LTC Rev-Exp Region 1:LTC Rev-Exp Region 11'!N25)","v":0},{"$f":"SUM('LTC Rev-Exp Region 1:LTC Rev-Exp Region 11'!O25)","v":0},0,{"$f":"SUM('LTC Rev-Exp Region 1:LTC Rev-Exp Region 11'!Q25)","v":0},{"$f":"SUM('LTC Rev-Exp Region 1:LTC Rev-Exp Region 11'!R25)","v":0},{"$f":"SUM('LTC Rev-Exp Region 1:LTC Rev-Exp Region 11'!S25)","v":0},{"$f":"SUM('LTC Rev-Exp Region 1:LTC Rev-Exp Region 11'!T25)","v":0},0,{"$f":"SUM('LTC Rev-Exp Region 1:LTC Rev-Exp Region 11'!V25)","v":0},{"$f":"SUM('LTC Rev-Exp Region 1:LTC Rev-Exp Region 11'!W25)","v":0},{"$f":"SUM('LTC Rev-Exp Region 1:LTC Rev-Exp Region 11'!X25)","v":0}]
[null,{"v":2.1,"d":"2.10"},"Total Nursing Facility and Hospice",{"$f":"SUM(E26:G26)","v":0},{"$f":"SUM('LTC Rev-Exp Region 1:LTC Rev-Exp Region 11'!E26)","v":0},{"$f":"SUM('LTC Rev-Exp Region 1:LTC Rev-Exp Region 11'!F26)","v":0},{"$f":"SUM('LTC Rev-Exp Region 1:LTC Rev-Exp Region 11'!G26)","v":0},{"$f":"SUM(I26:K26)","v":0},{"$f":"SUM('LTC Rev-Exp Region 1:LTC Rev-Exp Region 11'!I26)","v":0},{"$f":"SUM('LTC Rev-Exp Region 1:LTC Rev-Exp Region 11'!J26)","v":0},{"$f":"SUM('LTC Rev-Exp Region 1:LTC Rev-Exp Region 11'!K26)","v":0},{"$f":"SUM(M26:O26)","v":0},{"$f":"SUM('LTC Rev-Exp Region 1:LTC Rev-Exp Region 11'!M26)","v":0},{"$f":"SUM('LTC Rev-Exp Region 1:LTC Rev-Exp Region 11'!N26)","v":0},{"$f":"SUM('LTC Rev-Exp Region 1:LTC Rev-Exp Region 11'!O26)","v":0},{"$f":"SUM(Q26:S26)","v":0},{"$f":"SUM('LTC Rev-Exp Region 1:LTC Rev-Exp Region 11'!Q26)","v":0},{"$f":"SUM('LTC Rev-Exp Region 1:LTC Rev-Exp Region 11'!R26)","v":0},{"$f":"SUM('LTC Rev-Exp Region 1:LTC Rev-Exp Region 11'!S26)","v":0},{"$f":"SUM(T19:T20,T22:T25)","v":0},{"$f":"SUM(V26:X26)+T26","v":0},{"$f":"SUM('LTC Rev-Exp Region 1:LTC Rev-Exp Region 11'!V26)","v":0},{"$f":"SUM('LTC Rev-Exp Region 1:LTC Rev-Exp Region 11'!W26)","v":0},{"$f":"SUM('LTC Rev-Exp Region 1:LTC Rev-Exp Region 11'!X26)","v":0}]
["Long Term Care Services",2.11,"Assisted Living FFS",{"$f":"SUM(E27:G27)","v":0},{"$f":"SUM('LTC Rev-Exp Region 1:LTC Rev-Exp Region 11'!E27)","v":0},{"$f":"SUM('LTC Rev-Exp Region 1:LTC Rev-Exp Region 11'!F27)","v":0},{"$f":"SUM('LTC Rev-Exp Region 1:LTC Rev-Exp Region 11'!G27)","v":0},{"$f":"SUM(I27:K27)","v":0},{"$f":"SUM('LTC Rev-Exp Region 1:LTC Rev-Exp Region 11'!I27)","v":0},{"$f":"SUM('LTC Rev-Exp Region 1:LTC Rev-Exp Region 11'!J27)","v":0},{"$f":"SUM('LTC Rev-Exp Region 1:LTC Rev-Exp Region 11'!K27)","v":0},{"$f":"SUM(M27:O27)","v":0},{"$f":"SUM('LTC Rev-Exp Region 1:LTC Rev-Exp Region 11'!M27)","v":0},{"$f":"SUM('LTC Rev-Exp Region 1:LTC Rev-Exp Region 11'!N27)","v":0},{"$f":"SUM('LTC Rev-Exp Region 1:LTC Rev-Exp Region 11'!O27)","v":0},{"$f":"SUM(Q27:S27)","v":0},{"$f":"SUM('LTC Rev-Exp Region 1:LTC Rev-Exp Region 11'!Q27)","v":0},{"$f":"SUM('LTC Rev-Exp Region 1:LTC Rev-Exp Region 11'!R27)","v":0},{"$f":"SUM('LTC Rev-Exp Region 1:LTC Rev-Exp Region 11'!S27)","v":0},{"$f":"SUM('LTC Rev-Exp Region 1:LTC Rev-Exp Region 11'!T27)","v":0},{"$f":"SUM(V27:X27)+T27","v":0},{"$f":"SUM('LTC Rev-Exp Region 1:LTC Rev-Exp Region 11'!V27)","v":0},{"$f":"SUM('LTC Rev-Exp Region 1:LTC Rev-Exp Region 11'!W27)","v":0},{"$f":"SUM('LTC Rev-Exp Region 1:LTC Rev-Exp Region 11'!X27)","v":0}]
[null,2.12,"Home Health FFS",{"$f":"SUM(E28:G28)","v":0},{"$f":"SUM('LTC Rev-Exp Region 1:LTC Rev-Exp Region 11'!E28)","v":0},{"$f":"SUM('LTC Rev-Exp Region 1:LTC Rev-Exp Region 11'!F28)","v":0},{"$f":"SUM('LTC Rev-Exp Region 1:LTC Rev-Exp Region 11'!G28)","v":0},{"$f":"SUM(I28:K28)","v":0},{"$f":"SUM('LTC Rev-Exp Region 1:LTC Rev-Exp Region 11'!I28)","v":0},{"$f":"SUM('LTC Rev-Exp Region 1:LTC Rev-Exp Region 11'!J28)","v":0},{"$f":"SUM('LTC Rev-Exp Region 1:LTC Rev-Exp Region 11'!K28)","v":0},{"$f":"SUM(M28:O28)","v":0},{"$f":"SUM('LTC Rev-Exp Region 1:LTC Rev-Exp Region 11'!M28)","v":0},{"$f":"SUM('LTC Rev-Exp Region 1:LTC Rev-Exp Region 11'!N28)","v":0},{"$f":"SUM('LTC Rev-Exp Region 1:LTC Rev-Exp Region 11'!O28)","v":0},{"$f":"SUM(Q28:S28)","v":0},{"$f":"SUM('LTC Rev-Exp Region 1:LTC Rev-Exp Region 11'!Q28)","v":0},{"$f":"SUM('LTC Rev-Exp Region 1:LTC Rev-Exp Region 11'!R28)","v":0},{"$f":"SUM('LTC Rev-Exp Region 1:LTC Rev-Exp Region 11'!S28)","v":0},{"$f":"SUM('LTC Rev-Exp Region 1:LTC Rev-Exp Region 11'!T28)","v":0},{"$f":"SUM(V28:X28)+T28","v":0},{"$f":"SUM('LTC Rev-Exp Region 1:LTC Rev-Exp Region 11'!V28)","v":0},{"$f":"SUM('LTC Rev-Exp Region 1:LTC Rev-Exp Region 11'!W28)","v":0},{"$f":"SUM('LTC Rev-Exp Region 1:LTC Rev-Exp Region 11'!X28)","v":0}]
[null,2.13,"Medical Equipment/Supplies FFS",0,{"$f":"SUM('LTC Rev-Exp Region 1:LTC Rev-Exp Region 11'!E29)","v":0},{"$f":"SUM('LTC Rev-Exp Region 1:LTC Rev-Exp Region 11'!F29)","v":0},{"$f":"SUM('LTC Rev-Exp Region 1:LTC Rev-Exp Region 11'!G29)","v":0},0,{"$f":"SUM('LTC Rev-Exp Region 1:LTC Rev-Exp Region 11'!I29)","v":0},{"$f":"SUM('LTC Rev-Exp Region 1:LTC Rev-Exp Region 11'!J29)","v":0},{"$f":"SUM('LTC Rev-Exp Region 1:LTC Rev-Exp Region 11'!K29)","v":0},0,{"$f":"SUM('LTC Rev-Exp Region 1:LTC Rev-Exp Region 11'!M29)","v":0},{"$f":"SUM('LTC Rev-Exp Region 1:LTC Rev-Exp Region 11'!N29)","v":0},{"$f":"SUM('LTC Rev-Exp Region 1:LTC Rev-Exp Region 11'!O29)","v":0},0,{"$f":"SUM('LTC Rev-Exp Region 1:LTC Rev-Exp Region 11'!Q29)","v":0},{"$f":"SUM('LTC Rev-Exp Region 1:LTC Rev-Exp Region 11'!R29)","v":0},{"$f":"SUM('LTC Rev-Exp Region 1:LTC Rev-Exp Region 11'!S29)","v":0},{"$f":"SUM('LTC Rev-Exp Region 1:LTC Rev-Exp Region 11'!T29)","v":0},0,{"$f":"SUM('LTC Rev-Exp Region 1:LTC Rev-Exp Region 11'!V29)","v":0},{"$f":"SUM('LTC Rev-Exp Region 1:LTC Rev-Exp Region 11'!W29)","v":0},{"$f":"SUM('LTC Rev-Exp Region 1:LTC Rev-Exp Region 11'!X29)","v":0}]
[null,2.14,"Therapy Services FFS",0,{"$f":"SUM('LTC Rev-Exp Region 1:LTC Rev-Exp Region 11'!E30)","v":0},{"$f":"SUM('LTC Rev-Exp Region 1:LTC Rev-Exp Region 11'!F30)","v":0},{"$f":"SUM('LTC Rev-Exp Region 1:LTC Rev-Exp Region 11'!G30)","v":0},0,{"$f":"SUM('LTC Rev-Exp Region 1:LTC Rev-Exp Region 11'!I30)","v":0},{"$f":"SUM('LTC Rev-Exp Region 1:LTC Rev-Exp Region 11'!J30)","v":0},{"$f":"SUM('LTC Rev-Exp Region 1:LTC Rev-Exp Region 11'!K30)","v":0},0,{"$f":"SUM('LTC Rev-Exp Region 1:LTC Rev-Exp Region 11'!M30)","v":0},{"$f":"SUM('LTC Rev-Exp Region 1:LTC Rev-Exp Region 11'!N30)","v":0},{"$f":"SUM('LTC Rev-Exp Region 1:LTC Rev-Exp Region 11'!O30)","v":0},0,{"$f":"SUM('LTC Rev-Exp Region 1:LTC Rev-Exp Region 11'!Q30)","v":0},{"$f":"SUM('LTC Rev-Exp Region 1:LTC Rev-Exp Region 11'!R30)","v":0},{"$f":"SUM('LTC Rev-Exp Region 1:LTC Rev-Exp Region 11'!S30)","v":0},{"$f":"SUM('LTC Rev-Exp Region 1:LTC Rev-Exp Region 11'!T30)","v":0},0,{"$f":"SUM('LTC Rev-Exp Region 1:LTC Rev-Exp Region 11'!V30)","v":0},{"$f":"SUM('LTC Rev-Exp Region 1:LTC Rev-Exp Region 11'!W30)","v":0},{"$f":"SUM('LTC Rev-Exp Region 1:LTC Rev-Exp Region 11'!X30)","v":0}]
[null,2.15,"Transportation Services FFS",0,{"$f":"SUM('LTC Rev-Exp Region 1:LTC Rev-Exp Region 11'!E31)","v":0},{"$f":"SUM('LTC Rev-Exp Region 1:LTC Rev-Exp Region 11'!F31)","v":0},{"$f":"SUM('LTC Rev-Exp Region 1:LTC Rev-Exp Region 11'!G31)","v":0},0,{"$f":"SUM('LTC Rev-Exp Region 1:LTC Rev-Exp Region 11'!I31)","v":0},{"$f":"SUM('LTC Rev-Exp Region 1:LTC Rev-Exp Region 11'!J31)","v":0},{"$f":"SUM('LTC Rev-Exp Region 1:LTC Rev-Exp Region 11'!K31)","v":0},0,{"$f":"SUM('LTC Rev-Exp Region 1:LTC Rev-Exp Region 11'!M31)","v":0},{"$f":"SUM('LTC Rev-Exp Region 1:LTC Rev-Exp Region 11'!N31)","v":0},{"$f":"SUM('LTC Rev-Exp Region 1:LTC Rev-Exp Region 11'!O31)","v":0},0,{"$f":"SUM('LTC Rev-Exp Region 1:LTC Rev-Exp Region 11'!Q31)","v":0},{"$f":"SUM('LTC Rev-Exp Region 1:LTC Rev-Exp Region 11'!R31)","v":0},{"$f":"SUM('LTC Rev-Exp Region 1:LTC Rev-Exp Region 11'!S31)","v":0},{"$f":"SUM('LTC Rev-Exp Region 1:LTC Rev-Exp Region 11'!T31)","v":0},0,{"$f":"SUM('LTC Rev-Exp Region 1:LTC Rev-Exp Region 11'!V31)","v":0},{"$f":"SUM('LTC Rev-Exp Region 1:LTC Rev-Exp Region 11'!W31)","v":0},{"$f":"SUM('LTC Rev-Exp Region 1:LTC Rev-Exp Region 11'!X31)","v":0}]
[null,2.16,"Case Management (Plan Provided) FFS",0,{"$f":"SUM('LTC Rev-Exp Region 1:LTC Rev-Exp Region 11'!E32)","v":0},{"$f":"SUM('LTC Rev-Exp Region 1:LTC Rev-Exp Region 11'!F32)","v":0},{"$f":"SUM('LTC Rev-Exp Region 1:LTC Rev-Exp Region 11'!G32)","v":0},0,{"$f":"SUM('LTC Rev-Exp Region 1:LTC Rev-Exp Region 11'!I32)","v":0},{"$f":"SUM('LTC Rev-Exp Region 1:LTC Rev-Exp Region 11'!J32)","v":0},{"$f":"SUM('LTC Rev-Exp Region 1:LTC Rev-Exp Region 11'!K32)","v":0},0,{"$f":"SUM('LTC Rev-Exp Region 1:LTC Rev-Exp Region 11'!M32)","v":0},{"$f":"SUM('LTC Rev-Exp Region 1:LTC Rev-Exp Region 11'!N32)","v":0},{"$f":"SUM('LTC Rev-Exp Region 1:LTC Rev-Exp Region 11'!O32)","v":0},0,{"$f":"SUM('LTC Rev-Exp Region 1:LTC Rev-Exp Region 11'!Q32)","v":0},{"$f":"SUM('LTC Rev-Exp Region 1:LTC Rev-Exp Region 11'!R32)","v":0},{"$f":"SUM('LTC Rev-Exp Region 1:LTC Rev-Exp Region 11'!S32)","v":0},{"$f":"SUM('LTC Rev-Exp Region 1:LTC Rev-Exp Region 11'!T32)","v":0},0,{"$f":"SUM('LTC Rev-Exp Region 1:LTC Rev-Exp Region 11'!V32)","v":0},{"$f":"SUM('LTC Rev-Exp Region 1:LTC Rev-Exp Region 11'!W32)","v":0},{"$f":"SUM('LTC Rev-Exp Region 1:LTC Rev-Exp Region 11'!X32)","v":0}]
[null,2.17,"Case Management (non-Plan Provided) FFS",0,{"$f":"SUM('LTC Rev-Exp Region 1:LTC Rev-Exp Region 11'!E33)","v":0},{"$f":"SUM('LTC Rev-Exp Region 1:LTC Rev-Exp Region 11'!F33)","v":0},{"$f":"SUM('LTC Rev-Exp Region 1:LTC Rev-Exp Region 11'!G33)","v":0},0,{"$f":"SUM('LTC Rev-Exp Region 1:LTC Rev-Exp Region 11'!I33)","v":0},{"$f":"SUM('LTC Rev-Exp Region 1:LTC Rev-Exp Region 11'!J33)","v":0},{"$f":"SUM('LTC Rev-Exp Region 1:LTC Rev-Exp Region 11'!K33)","v":0},0,{"$f":"SUM('LTC Rev-Exp Region 1:LTC Rev-Exp Region 11'!M33)","v":0},{"$f":"SUM('LTC Rev-Exp Region 1:LTC Rev-Exp Region 11'!N33)","v":0},{"$f":"SUM('LTC Rev-Exp Region 1:LTC Rev-Exp Region 11'!O33)","v":0},0,{"$f":"SUM('LTC Rev-Exp Region 1:LTC Rev-Exp Region 11'!Q33)","v":0},{"$f":"SUM('LTC Rev-Exp Region 1:LTC Rev-Exp Region 11'!R33)","v":0},{"$f":"SUM('LTC Rev-Exp Region 1:LTC Rev-Exp Region 11'!S33)","v":0},{"$f":"SUM('LTC Rev-Exp Region 1:LTC Rev-Exp Region 11'!T33)","v":0},0,{"$f":"SUM('LTC Rev-Exp Region 1:LTC Rev-Exp Region 11'!V33)","v":0},{"$f":"SUM('LTC Rev-Exp Region 1:LTC Rev-Exp Region 11'!W33)","v":0},{"$f":"SUM('LTC Rev-Exp Region 1:LTC Rev-Exp Region 11'!X33)","v":0}]
[null,2.18,"Home & Community Based Services  (HCBS) FFS",0,{"$f":"SUM('LTC Rev-Exp Region 1:LTC Rev-Exp Region 11'!E34)","v":0},{"$f":"SUM('LTC Rev-Exp Region 1:LTC Rev-Exp Region 11'!F34)","v":0},{"$f":"SUM('LTC Rev-Exp Region 1:LTC Rev-Exp Region 11'!G34)","v":0},0,{"$f":"SUM('LTC Rev-Exp Region 1:LTC Rev-Exp Region 11'!I34)","v":0},{"$f":"SUM('LTC Rev-Exp Region 1:LTC Rev-Exp Region 11'!J34)","v":0},{"$f":"SUM('LTC Rev-Exp Region 1:LTC Rev-Exp Region 11'!K34)","v":0},0,{"$f":"SUM('LTC Rev-Exp Region 1:LTC Rev-Exp Region 11'!M34)","v":0},{"$f":"SUM('LTC Rev-Exp Region 1:LTC Rev-Exp Region 11'!N34)","v":0},{"$f":"SUM('LTC Rev-Exp Region 1:LTC Rev-Exp Region 11'!O34)","v":0},0,{"$f":"SUM('LTC Rev-Exp Region 1:LTC Rev-Exp Region 11'!Q34)","v":0},{"$f":"SUM('LTC Rev-Exp Region 1:LTC Rev-Exp Region 11'!R34)","v":0},{"$f":"SUM('LTC Rev-Exp Region 1:LTC Rev-Exp Region 11'!S34)","v":0},{"$f":"SUM('LTC Rev-Exp Region 1:LTC Rev-Exp Region 11'!T34)","v":0},0,{"$f":"SUM('LTC Rev-Exp Region 1:LTC Rev-Exp Region 11'!V34)","v":0},{"$f":"SUM('LTC Rev-Exp Region 1:LTC Rev-Exp Region 11'!W34)","v":0},{"$f":"SUM('LTC Rev-Exp Region 1:LTC Rev-Exp Region 11'!X34)","v":0}]
[null,2.19,"Subcapitated LTC Services (excluding NF)",0,{"$f":"SUM('LTC Rev-Exp Region 1:LTC Rev-Exp Region 11'!E35)","v":0},{"$f":"SUM('LTC Rev-Exp Region 1:LTC Rev-Exp Region 11'!F35)","v":0},{"$f":"SUM('LTC Rev-Exp Region 1:LTC Rev-Exp Region 11'!G35)","v":0},0,{"$f":"SUM('LTC Rev-Exp Region 1:LTC Rev-Exp Region 11'!I35)","v":0},{"$f":"SUM('LTC Rev-Exp Region 1:LTC Rev-Exp Region 11'!J35)","v":0},{"$f":"SUM('LTC Rev-Exp Region 1:LTC Rev-Exp Region 11'!K35)","v":0},0,{"$f":"SUM('LTC Rev-Exp Region 1:LTC Rev-Exp Region 11'!M35)","v":0},{"$f":"SUM('LTC Rev-Exp Region 1:LTC Rev-Exp Region 11'!N35)","v":0},{"$f":"SUM('LTC Rev-Exp Region 1:LTC Rev-Exp Region 11'!O35)","v":0},0,{"$f":"SUM('LTC Rev-Exp Region 1:LTC Rev-Exp Region 11'!Q35)","v":0},{"$f":"SUM('LTC Rev-Exp Region 1:LTC Rev-Exp Region 11'!R35)","v":0},{"$f":"SUM('LTC Rev-Exp Region 1:LTC Rev-Exp Region 11'!S35)","v":0},{"$f":"SUM('LTC Rev-Exp Region 1:LTC Rev-Exp Region 11'!T35)","v":0},0,{"$f":"SUM('LTC Rev-Exp Region 1:LTC Rev-Exp Region 11'!V35)","v":0},{"$f":"SUM('LTC Rev-Exp Region 1:LTC Rev-Exp Region 11'!W35)","v":0},{"$f":"SUM('LTC Rev-Exp Region 1:LTC Rev-Exp Region 11'!X35)","v":0}]
[null,{"v":2.2,"d":"2.20"},"Ending IBNP for Long Term Care Services (excluding NF)",0,{"$f":"SUM('LTC Rev-Exp Region 1:LTC Rev-Exp Region 11'!E36)","v":0},{"$f":"SUM('LTC Rev-Exp Region 1:LTC Rev-Exp Region 11'!F36)","v":0},{"$f":"SUM('LTC Rev-Exp Region 1:LTC Rev-Exp Region 11'!G36)","v":0},0,{"$f":"SUM('LTC Rev-Exp Region 1:LTC Rev-Exp Region 11'!I36)","v":0},{"$f":"SUM('LTC Rev-Exp Region 1:LTC Rev-Exp Region 11'!J36)","v":0},{"$f":"SUM('LTC Rev-Exp Region 1:LTC Rev-Exp Region 11'!K36)","v":0},0,{"$f":"SUM('LTC Rev-Exp Region 1:LTC Rev-Exp Region 11'!M36)","v":0},{"$f":"SUM('LTC Rev-Exp Region 1:LTC Rev-Exp Region 11'!N36)","v":0},{"$f":"SUM('LTC Rev-Exp Region 1:LTC Rev-Exp Region 11'!O36)","v":0},0,{"$f":"SUM('LTC Rev-Exp Region 1:LTC Rev-Exp Region 11'!Q36)","v":0},{"$f":"SUM('LTC Rev-Exp Region 1:LTC Rev-Exp Region 11'!R36)","v":0},{"$f":"SUM('LTC Rev-Exp Region 1:LTC Rev-Exp Region 11'!S36)","v":0},{"$f":"SUM('LTC Rev-Exp Region 1:LTC Rev-Exp Region 11'!T36)","v":0},0,{"$f":"SUM('LTC Rev-Exp Region 1:LTC Rev-Exp Region 11'!V36)","v":0},{"$f":"SUM('LTC Rev-Exp Region 1:LTC Rev-Exp Region 11'!W36)","v":0},{"$f":"SUM('LTC Rev-Exp Region 1:LTC Rev-Exp Region 11'!X36)","v":0}]
[null,2.21,"LTC Services Settlements/AP (excluding NF)",0,{"$f":"SUM('LTC Rev-Exp Region 1:LTC Rev-Exp Region 11'!E37)","v":0},{"$f":"SUM('LTC Rev-Exp Region 1:LTC Rev-Exp Region 11'!F37)","v":0},{"$f":"SUM('LTC Rev-Exp Region 1:LTC Rev-Exp Region 11'!G37)","v":0},0,{"$f":"SUM('LTC Rev-Exp Region 1:LTC Rev-Exp Region 11'!I37)","v":0},{"$f":"SUM('LTC Rev-Exp Region 1:LTC Rev-Exp Region 11'!J37)","v":0},{"$f":"SUM('LTC Rev-Exp Region 1:LTC Rev-Exp Region 11'!K37)","v":0},0,{"$f":"SUM('LTC Rev-Exp Region 1:LTC Rev-Exp Region 11'!M37)","v":0},{"$f":"SUM('LTC Rev-Exp Region 1:LTC Rev-Exp Region 11'!N37)","v":0},{"$f":"SUM('LTC Rev-Exp Region 1:LTC Rev-Exp Region 11'!O37)","v":0},0,{"$f":"SUM('LTC Rev-Exp Region 1:LTC Rev-Exp Region 11'!Q37)","v":0},{"$f":"SUM('LTC Rev-Exp Region 1:LTC Rev-Exp Region 11'!R37)","v":0},{"$f":"SUM('LTC Rev-Exp Region 1:LTC Rev-Exp Region 11'!S37)","v":0},{"$f":"SUM('LTC Rev-Exp Region 1:LTC Rev-Exp Region 11'!T37)","v":0},0,{"$f":"SUM('LTC Rev-Exp Region 1:LTC Rev-Exp Region 11'!V37)","v":0},{"$f":"SUM('LTC Rev-Exp Region 1:LTC Rev-Exp Region 11'!W37)","v":0},{"$f":"SUM('LTC Rev-Exp Region 1:LTC Rev-Exp Region 11'!X37)","v":0}]
[null,2.22,"Grand Total LTC Services",{"$f":"D26+SUM(D27:D37)","v":0},{"$f":"SUM('LTC Rev-Exp Region 1:LTC Rev-Exp Region 11'!E38)","v":0},{"$f":"SUM('LTC Rev-Exp Region 1:LTC Rev-Exp Region 11'!F38)","v":0},{"$f":"SUM('LTC Rev-Exp Region 1:LTC Rev-Exp Region 11'!G38)","v":0},{"$f":"H26+SUM(H27:H37)","v":0},{"$f":"SUM('LTC Rev-Exp Region 1:LTC Rev-Exp Region 11'!I38)","v":0},{"$f":"SUM('LTC Rev-Exp Region 1:LTC Rev-Exp Region 11'!J38)","v":0},{"$f":"SUM('LTC Rev-Exp Region 1:LTC Rev-Exp Region 11'!K38)","v":0},{"$f":"L26+SUM(L27:L37)","v":0},{"$f":"SUM('LTC Rev-Exp Region 1:LTC Rev-Exp Region 11'!M38)","v":0},{"$f":"SUM('LTC Rev-Exp Region 1:LTC Rev-Exp Region 11'!N38)","v":0},{"$f":"SUM('LTC Rev-Exp Region 1:LTC Rev-Exp Region 11'!O38)","v":0},{"$f":"P26+SUM(P27:P37)","v":0},{"$f":"SUM('LTC Rev-Exp Region 1:LTC Rev-Exp Region 11'!Q38)","v":0},{"$f":"SUM('LTC Rev-Exp Region 1:LTC Rev-Exp Region 11'!R38)","v":0},{"$f":"SUM('LTC Rev-Exp Region 1:LTC Rev-Exp Region 11'!S38)","v":0},{"$f":"SUM(T26:T37)","v":0},{"$f":"U26+SUM(U27:U37)","v":0},{"$f":"SUM('LTC Rev-Exp Region 1:LTC Rev-Exp Region 11'!V38)","v":0},{"$f":"SUM('LTC Rev-Exp Region 1:LTC Rev-Exp Region 11'!W38)","v":0},{"$f":"SUM('LTC Rev-Exp Region 1:LTC Rev-Exp Region 11'!X38)","v":0}]
["Expanded Benefits","3.1","Expanded Benefits FFS",{"$f":"SUM(E39:G39)","v":0},{"$f":"SUM('LTC Rev-Exp Region 1:LTC Rev-Exp Region 11'!E39)","v":0},{"$f":"SUM('LTC Rev-Exp Region 1:LTC Rev-Exp Region 11'!F39)","v":0},{"$f":"SUM('LTC Rev-Exp Region 1:LTC Rev-Exp Region 11'!G39)","v":0},{"$f":"SUM(I39:K39)","v":0},{"$f":"SUM('LTC Rev-Exp Region 1:LTC Rev-Exp Region 11'!I39)","v":0},{"$f":"SUM('LTC Rev-Exp Region 1:LTC Rev-Exp Region 11'!J39)","v":0},{"$f":"SUM('LTC Rev-Exp Region 1:LTC Rev-Exp Region 11'!K39)","v":0},{"$f":"SUM(M39:O39)","v":0},{"$f":"SUM('LTC Rev-Exp Region 1:LTC Rev-Exp Region 11'!M39)","v":0},{"$f":"SUM('LTC Rev-Exp Region 1:LTC Rev-Exp Region 11'!N39)","v":0},{"$f":"SUM('LTC Rev-Exp Region 1:LTC Rev-Exp Region 11'!O39)","v":0},{"$f":"SUM(Q39:S39)","v":0},{"$f":"SUM('LTC Rev-Exp Region 1:LTC Rev-Exp Region 11'!Q39)","v":0},{"$f":"SUM('LTC Rev-Exp Region 1:LTC Rev-Exp Region 11'!R39)","v":0},{"$f":"SUM('LTC Rev-Exp Region 1:LTC Rev-Exp Region 11'!S39)","v":0},{"$f":"SUM('LTC Rev-Exp Region 1:LTC Rev-Exp Region 11'!T39)","v":0},{"$f":"SUM(V39:X39)+T39","v":0},{"$f":"SUM('LTC Rev-Exp Region 1:LTC Rev-Exp Region 11'!V39)","v":0},{"$f":"SUM('LTC Rev-Exp Region 1:LTC Rev-Exp Region 11'!W39)","v":0},{"$f":"SUM('LTC Rev-Exp Region 1:LTC Rev-Exp Region 11'!X39)","v":0}]
[null,"3.2","Expanded Benefits Subcapitation",{"$f":"SUM(E40:G40)","v":0},{"$f":"SUM('LTC Rev-Exp Region 1:LTC Rev-Exp Region 11'!E40)","v":0},{"$f":"SUM('LTC Rev-Exp Region 1:LTC Rev-Exp Region 11'!F40)","v":0},{"$f":"SUM('LTC Rev-Exp Region 1:LTC Rev-Exp Region 11'!G40)","v":0},{"$f":"SUM(I40:K40)","v":0},{"$f":"SUM('LTC Rev-Exp Region 1:LTC Rev-Exp Region 11'!I40)","v":0},{"$f":"SUM('LTC Rev-Exp Region 1:LTC Rev-Exp Region 11'!J40)","v":0},{"$f":"SUM('LTC Rev-Exp Region 1:LTC Rev-Exp Region 11'!K40)","v":0},{"$f":"SUM(M40:O40)","v":0},{"$f":"SUM('LTC Rev-Exp Region 1:LTC Rev-Exp Region 11'!M40)","v":0},{"$f":"SUM('LTC Rev-Exp Region 1:LTC Rev-Exp Region 11'!N40)","v":0},{"$f":"SUM('LTC Rev-Exp Region 1:LTC Rev-Exp Region 11'!O40)","v":0},{"$f":"SUM(Q40:S40)","v":0},{"$f":"SUM('LTC Rev-Exp Region 1:LTC Rev-Exp Region 11'!Q40)","v":0},{"$f":"SUM('LTC Rev-Exp Region 1:LTC Rev-Exp Region 11'!R40)","v":0},{"$f":"SUM('LTC Rev-Exp Region 1:LTC Rev-Exp Region 11'!S40)","v":0},{"$f":"SUM('LTC Rev-Exp Region 1:LTC Rev-Exp Region 11'!T40)","v":0},{"$f":"SUM(V40:X40)+T40","v":0},{"$f":"SUM('LTC Rev-Exp Region 1:LTC Rev-Exp Region 11'!V40)","v":0},{"$f":"SUM('LTC Rev-Exp Region 1:LTC Rev-Exp Region 11'!W40)","v":0},{"$f":"SUM('LTC Rev-Exp Region 1:LTC Rev-Exp Region 11'!X40)","v":0}]
[null,"3.3","Ending IBNP for Expanded Benefits",{"$f":"SUM(E41:G41)","v":0},{"$f":"SUM('LTC Rev-Exp Region 1:LTC Rev-Exp Region 11'!E41)","v":0},{"$f":"SUM('LTC Rev-Exp Region 1:LTC Rev-Exp Region 11'!F41)","v":0},{"$f":"SUM('LTC Rev-Exp Region 1:LTC Rev-Exp Region 11'!G41)","v":0},{"$f":"SUM(I41:K41)","v":0},{"$f":"SUM('LTC Rev-Exp Region 1:LTC Rev-Exp Region 11'!I41)","v":0},{"$f":"SUM('LTC Rev-Exp Region 1:LTC Rev-Exp Region 11'!J41)","v":0},{"$f":"SUM('LTC Rev-Exp Region 1:LTC Rev-Exp Region 11'!K41)","v":0},{"$f":"SUM(M41:O41)","v":0},{"$f":"SUM('LTC Rev-Exp Region 1:LTC Rev-Exp Region 11'!M41)","v":0},{"$f":"SUM('LTC Rev-Exp Region 1:LTC Rev-Exp Region 11'!N41)","v":0},{"$f":"SUM('LTC Rev-Exp Region 1:LTC Rev-Exp Region 11'!O41)","v":0},{"$f":"SUM(Q41:S41)","v":0},{"$f":"SUM('LTC Rev-Exp Region 1:LTC Rev-Exp Region 11'!Q41)","v":0},{"$f":"SUM('LTC Rev-Exp Region 1:LTC Rev-Exp Region 11'!R41)","v":0},{"$f":"SUM('LTC Rev-Exp Region 1:LTC Rev-Exp Region 11'!S41)","v":0},{"$f":"SUM('LTC Rev-Exp Region 1:LTC Rev-Exp Region 11'!T41)","v":0},0,{"$f":"SUM('LTC Rev-Exp Region 1:LTC Rev-Exp Region 11'!V41)","v":0},{"$f":"SUM('LTC Rev-Exp Region 1:LTC Rev-Exp Region 11'!W41)","v":0},{"$f":"SUM('LTC Rev-Exp Region 1:LTC Rev-Exp Region 11'!X41)","v":0}]
[null,3.4,"Expanded Benefits Services Settlements",{"$f":"SUM(E42:G42)","v":0},{"$f":"SUM('LTC Rev-Exp Region 1:LTC Rev-Exp Region 11'!E42)","v":0},{"$f":"SUM('LTC Rev-Exp Region 1:LTC Rev-Exp Region 11'!F42)","v":0},{"$f":"SUM('LTC Rev-Exp Region 1:LTC Rev-Exp Region 11'!G42)","v":0},{"$f":"SUM(I42:K42)","v":0},{"$f":"SUM('LTC Rev-Exp Region 1:LTC Rev-Exp Region 11'!I42)","v":0},{"$f":"SUM('LTC Rev-Exp Region 1:LTC Rev-Exp Region 11'!J42)","v":0},{"$f":"SUM('LTC Rev-Exp Region 1:LTC Rev-Exp Region 11'!K42)","v":0},{"$f":"SUM(M42:O42)","v":0},{"$f":"SUM('LTC Rev-Exp Region 1:LTC Rev-Exp Region 11'!M42)","v":0},{"$f":"SUM('LTC Rev-Exp Region 1:LTC Rev-Exp Region 11'!N42)","v":0},{"$f":"SUM('LTC Rev-Exp Region 1:LTC Rev-Exp Region 11'!O42)","v":0},{"$f":"SUM(Q42:S42)","v":0},{"$f":"SUM('LTC Rev-Exp Region 1:LTC Rev-Exp Region 11'!Q42)","v":0},{"$f":"SUM('LTC Rev-Exp Region 1:LTC Rev-Exp Region 11'!R42)","v":0},{"$f":"SUM('LTC Rev-Exp Region 1:LTC Rev-Exp Region 11'!S42)","v":0},{"$f":"SUM('LTC Rev-Exp Region 1:LTC Rev-Exp Region 11'!T42)","v":0},0,{"$f":"SUM('LTC Rev-Exp Region 1:LTC Rev-Exp Region 11'!V42)","v":0},{"$f":"SUM('LTC Rev-Exp Region 1:LTC Rev-Exp Region 11'!W42)","v":0},{"$f":"SUM('LTC Rev-Exp Region 1:LTC Rev-Exp Region 11'!X42)","v":0}]
[null,3.5,"Total Expanded Benefits",{"$f":"SUM(D39:D42)","v":0},0,0,0,0,0,0,0,0,0,0,0,0,0,0,0,{"$f":"SUM(T39:T42)","v":0},0,0,0,0]
["Totals Before and After Reinsurance","4.1","Total Services Paid Directly FFS",{"$f":"D19+D20+D22+SUM(D27:D34)+D39","v":0},0,0,0,0,0,0,0,0,0,0,0,0,0,0,0,{"$f":"SUM(T19+T20+T22, T27:T34)+T39","v":0},0,0,0,0]
[null,"4.2","Total Services Paid Directly -- IBNP",{"$f":"D23+D36+D41","v":0},0,0,0,0,0,0,0,0,0,0,0,0,0,0,0,0,0,0,0,0]
[null,"4.3","Total Services Paid through Subcapitation",{"$f":"D24+D35+D40","v":0},0,0,0,0,0,0,0,0,0,0,0,0,0,0,0,0,0,0,0,0]
[null,4.4,"Total Services Paid by Settlements/AP",{"$f":"D25+D37+D42","v":0},0,0,0,0,0,0,0,0,0,0,0,0,0,0,0,0,0,0,0,0]
[null,4.5,"TPL & Fraud/Abuse Recoveries",{"$f":"SUM(E48:G48)","v":0},{"$f":"SUM('LTC Rev-Exp Region 1:LTC Rev-Exp Region 11'!E48)","v":0},{"$f":"SUM('LTC Rev-Exp Region 1:LTC Rev-Exp Region 11'!F48)","v":0},{"$f":"SUM('LTC Rev-Exp Region 1:LTC Rev-Exp Region 11'!G48)","v":0},{"$f":"SUM(I48:K48)","v":0},{"$f":"SUM('LTC Rev-Exp Region 1:LTC Rev-Exp Region 11'!I48)","v":0},{"$f":"SUM('LTC Rev-Exp Region 1:LTC Rev-Exp Region 11'!J48)","v":0},{"$f":"SUM('LTC Rev-Exp Region 1:LTC Rev-Exp Region 11'!K48)","v":0},{"$f":"SUM(M48:O48)","v":0},{"$f":"SUM('LTC Rev-Exp Region 1:LTC Rev-Exp Region 11'!M48)","v":0},{"$f":"SUM('LTC Rev-Exp Region 1:LTC Rev-Exp Region 11'!N48)","v":0},{"$f":"SUM('LTC Rev-Exp Region 1:LTC Rev-Exp Region 11'!O48)","v":0},{"$f":"SUM(Q48:S48)","v":0},{"$f":"SUM('LTC Rev-Exp Region 1:LTC Rev-Exp Region 11'!Q48)","v":0},{"$f":"SUM('LTC Rev-Exp Region 1:LTC Rev-Exp Region 11'!R48)","v":0},{"$f":"SUM('LTC Rev-Exp Region 1:LTC Rev-Exp Region 11'!S48)","v":0},{"$f":"SUM('LTC Rev-Exp Region 1:LTC Rev-Exp Region 11'!T48)","v":0},{"$f":"SUM(V48:X48)+T48","v":0},{"$f":"SUM('LTC Rev-Exp Region 1:LTC Rev-Exp Region 11'!V48)","v":0},{"$f":"SUM('LTC Rev-Exp Region 1:LTC Rev-Exp Region 11'!W48)","v":0},{"$f":"SUM('LTC Rev-Exp Region 1:LTC Rev-Exp Region 11'!X48)","v":0}]
[null,"4.6.1","Premium Deficiency Reserve",{"$f":"SUM(E49:G49)","v":0},{"$f":"SUM('LTC Rev-Exp Region 1:LTC Rev-Exp Region 11'!E49)","v":0},{"$f":"SUM('LTC Rev-Exp Region 1:LTC Rev-Exp Region 11'!F49)","v":0},{"$f":"SUM('LTC Rev-Exp Region 1:LTC Rev-Exp Region 11'!G49)","v":0},{"$f":"SUM(I49:K49)","v":0},{"$f":"SUM('LTC Rev-Exp Region 1:LTC Rev-Exp Region 11'!I49)","v":0},{"$f":"SUM('LTC Rev-Exp Region 1:LTC Rev-Exp Region 11'!J49)","v":0},{"$f":"SUM('LTC Rev-Exp Region 1:LTC Rev-Exp Region 11'!K49)","v":0},{"$f":"SUM(M49:O49)","v":0},{"$f":"SUM('LTC Rev-Exp Region 1:LTC Rev-Exp Region 11'!M49)","v":0},{"$f":"SUM('LTC Rev-Exp Region 1:LTC Rev-Exp Region 11'!N49)","v":0},{"$f":"SUM('LTC Rev-Exp Region 1:LTC Rev-Exp Region 11'!O49)","v":0},{"$f":"SUM(Q49:S49)","v":0},{"$f":"SUM('LTC Rev-Exp Region 1:LTC Rev-Exp Region 11'!Q49)","v":0},{"$f":"SUM('LTC Rev-Exp Region 1:LTC Rev-Exp Region 11'!R49)","v":0},{"$f":"SUM('LTC Rev-Exp Region 1:LTC Rev-Exp Region 11'!S49)","v":0},{"$f":"SUM('LTC Rev-Exp Region 1:LTC Rev-Exp Region 11'!T49)","v":0},{"$f":"SUM(V49:X49)+T49","v":0},{"$f":"SUM('LTC Rev-Exp Region 1:LTC Rev-Exp Region 11'!V49)","v":0},{"$f":"SUM('LTC Rev-Exp Region 1:LTC Rev-Exp Region 11'!W49)","v":0},{"$f":"SUM('LTC Rev-Exp Region 1:LTC Rev-Exp Region 11'!X49)","v":0}]
[null,"4.7","Subtotal Benefit Expense before Reinsurance",{"$f":"SUM(D44:D49)","v":0},0,0,0,0,0,0,0,0,0,0,0,0,0,0,0,{"$f":"SUM(T44:T49)","v":0},0,0,0,0]
[null,"4.8","Reinsurance Premiums",{"$f":"SUM(E51:G51)","v":0},{"$f":"SUM('LTC Rev-Exp Region 1:LTC Rev-Exp Region 11'!E51)","v":0},{"$f":"SUM('LTC Rev-Exp Region 1:LTC Rev-Exp Region 11'!F51)","v":0},{"$f":"SUM('LTC Rev-Exp Region 1:LTC Rev-Exp Region 11'!G51)","v":0},{"$f":"SUM(I51:K51)","v":0},{"$f":"SUM('LTC Rev-Exp Region 1:LTC Rev-Exp Region 11'!I51)","v":0},{"$f":"SUM('LTC Rev-Exp Region 1:LTC Rev-Exp Region 11'!J51)","v":0},{"$f":"SUM('LTC Rev-Exp Region 1:LTC Rev-Exp Region 11'!K51)","v":0},{"$f":"SUM(M51:O51)","v":0},{"$f":"SUM('LTC Rev-Exp Region 1:LTC Rev-Exp Region 11'!M51)","v":0},{"$f":"SUM('LTC Rev-Exp Region 1:LTC Rev-Exp Region 11'!N51)","v":0},{"$f":"SUM('LTC Rev-Exp Region 1:LTC Rev-Exp Region 11'!O51)","v":0},{"$f":"SUM(Q51:S51)","v":0},{"$f":"SUM('LTC Rev-Exp Region 1:LTC Rev-Exp Region 11'!Q51)","v":0},{"$f":"SUM('LTC Rev-Exp Region 1:LTC Rev-Exp Region 11'!R51)","v":0},{"$f":"SUM('LTC Rev-Exp Region 1:LTC Rev-Exp Region 11'!S51)","v":0},{"$f":"SUM('LTC Rev-Exp Region 1:LTC Rev-Exp Region 11'!T51)","v":0},{"$f":"SUM(V51:X51)+T51","v":0},{"$f":"SUM('LTC Rev-Exp Region 1:LTC Rev-Exp Region 11'!V51)","v":0},{"$f":"SUM('LTC Rev-Exp Region 1:LTC Rev-Exp Region 11'!W51)","v":0},{"$f":"SUM('LTC Rev-Exp Region 1:LTC Rev-Exp Region 11'!X51)","v":0}]
[null,"4.9","Reinsurance Recoveries",{"$f":"SUM(E52:G52)","v":0},{"$f":"SUM('LTC Rev-Exp Region 1:LTC Rev-Exp Region 11'!E52)","v":0},{"$f":"SUM('LTC Rev-Exp Region 1:LTC Rev-Exp Region 11'!F52)","v":0},{"$f":"SUM('LTC Rev-Exp Region 1:LTC Rev-Exp Region 11'!G52)","v":0},{"$f":"SUM(I52:K52)","v":0},{"$f":"SUM('LTC Rev-Exp Region 1:LTC Rev-Exp Region 11'!I52)","v":0},{"$f":"SUM('LTC Rev-Exp Region 1:LTC Rev-Exp Region 11'!J52)","v":0},{"$f":"SUM('LTC Rev-Exp Region 1:LTC Rev-Exp Region 11'!K52)","v":0},{"$f":"SUM(M52:O52)","v":0},{"$f":"SUM('LTC Rev-Exp Region 1:LTC Rev-Exp Region 11'!M52)","v":0},{"$f":"SUM('LTC Rev-Exp Region 1:LTC Rev-Exp Region 11'!N52)","v":0},{"$f":"SUM('LTC Rev-Exp Region 1:LTC Rev-Exp Region 11'!O52)","v":0},{"$f":"SUM(Q52:S52)","v":0},{"$f":"SUM('LTC Rev-Exp Region 1:LTC Rev-Exp Region 11'!Q52)","v":0},{"$f":"SUM('LTC Rev-Exp Region 1:LTC Rev-Exp Region 11'!R52)","v":0},{"$f":"SUM('LTC Rev-Exp Region 1:LTC Rev-Exp Region 11'!S52)","v":0},{"$f":"SUM('LTC Rev-Exp Region 1:LTC Rev-Exp Region 11'!T52)","v":0},{"$f":"SUM(V52:X52)+T52","v":0},{"$f":"SUM('LTC Rev-Exp Region 1:LTC Rev-Exp Region 11'!V52)","v":0},{"$f":"SUM('LTC Rev-Exp Region 1:LTC Rev-Exp Region 11'!W52)","v":0},{"$f":"SUM('LTC Rev-Exp Region 1:LTC Rev-Exp Region 11'!X52)","v":0}]
[null,"4.10","Net Cost of Reinsurance",{"$f":"SUM(D51:D52)","v":0},{"$f":"SUM('LTC Rev-Exp Region 1:LTC Rev-Exp Region 11'!E53)","v":0},{"$f":"SUM('LTC Rev-Exp Region 1:LTC Rev-Exp Region 11'!F53)","v":0},{"$f":"SUM('LTC Rev-Exp Region 1:LTC Rev-Exp Region 11'!G53)","v":0},{"$f":"SUM(H51:H52)","v":0},{"$f":"SUM('LTC Rev-Exp Region 1:LTC Rev-Exp Region 11'!I53)","v":0},{"$f":"SUM('LTC Rev-Exp Region 1:LTC Rev-Exp Region 11'!J53)","v":0},{"$f":"SUM('LTC Rev-Exp Region 1:LTC Rev-Exp Region 11'!K53)","v":0},{"$f":"SUM(L51:L52)","v":0},{"$f":"SUM('LTC Rev-Exp Region 1:LTC Rev-Exp Region 11'!M53)","v":0},{"$f":"SUM('LTC Rev-Exp Region 1:LTC Rev-Exp Region 11'!N53)","v":0},{"$f":"SUM('LTC Rev-Exp Region 1:LTC Rev-Exp Region 11'!O53)","v":0},{"$f":"SUM(P51:P52)","v":0},{"$f":"SUM('LTC Rev-Exp Region 1:LTC Rev-Exp Region 11'!Q53)","v":0},{"$f":"SUM('LTC Rev-Exp Region 1:LTC Rev-Exp Region 11'!R53)","v":0},{"$f":"SUM('LTC Rev-Exp Region 1:LTC Rev-Exp Region 11'!S53)","v":0},{"$f":"SUM(T51:T52)","v":0},0,{"$f":"SUM('LTC Rev-Exp Region 1:LTC Rev-Exp Region 11'!V53)","v":0},{"$f":"SUM('LTC Rev-Exp Region 1:LTC Rev-Exp Region 11'!W53)","v":0},{"$f":"SUM('LTC Rev-Exp Region 1:LTC Rev-Exp Region 11'!X53)","v":0}]
[null,"4.11","Grand Total Service Benefit Expense Net of Reinsurance",{"$f":"D50+D53","v":0},0,0,0,0,0,0,0,0,0,0,0,0,0,0,0,0,0,0,0,0]
["Administrative Expenses, Government-Mandated Assessments, Taxes, and Fees ",null,null,"JANUARY - MARCH (Q1)",{"$nulls":3},"APRIL - JUNE (Q2)",{"$nulls":3},"JULY - SEPTEMBER (Q3)",{"$nulls":3},"OCTOBER - DECEMBER (Q4)",{"$nulls":4},"TOTAL (TO DATE)"]
[{"$nulls":3},"Total","Non-HCBS","HCBS","MED-P / SIXT","Total","Non-HCBS","HCBS","MED-P / SIXT","Total","Non-HCBS","HCBS","MED-P / SIXT","Total","Non-HCBS","HCBS","MED-P / SIXT","Prior Year Adjustments","Total","Non-HCBS","HCBS","MED-P / SIXT"]
["Administrative Expenses","5.1","Salaries & Benefits",{"$f":"SUM('LTC Rev-Exp Region 1:LTC Rev-Exp Region 11'!D57)","v":0},{"$f":"SUM('LTC Rev-Exp Region 1:LTC Rev-Exp Region 11'!E57)","v":0},{"$f":"SUM('LTC Rev-Exp Region 1:LTC Rev-Exp Region 11'!F57)","v":0},{"$f":"SUM('LTC Rev-Exp Region 1:LTC Rev-Exp Region 11'!G57)","v":0},{"$f":"SUM('LTC Rev-Exp Region 1:LTC Rev-Exp Region 11'!H57)","v":0},{"$f":"SUM('LTC Rev-Exp Region 1:LTC Rev-Exp Region 11'!I57)","v":0},{"$f":"SUM('LTC Rev-Exp Region 1:LTC Rev-Exp Region 11'!J57)","v":0},{"$f":"SUM('LTC Rev-Exp Region 1:LTC Rev-Exp Region 11'!K57)","v":0},{"$f":"SUM('LTC Rev-Exp Region 1:LTC Rev-Exp Region 11'!L57)","v":0},{"$f":"SUM('LTC Rev-Exp Region 1:LTC Rev-Exp Region 11'!M57)","v":0},{"$f":"SUM('LTC Rev-Exp Region 1:LTC Rev-Exp Region 11'!N57)","v":0},{"$f":"SUM('LTC Rev-Exp Region 1:LTC Rev-Exp Region 11'!O57)","v":0},{"$f":"SUM('LTC Rev-Exp Region 1:LTC Rev-Exp Region 11'!P57)","v":0},{"$f":"SUM('LTC Rev-Exp Region 1:LTC Rev-Exp Region 11'!Q57)","v":0},{"$f":"SUM('LTC Rev-Exp Region 1:LTC Rev-Exp Region 11'!R57)","v":0},{"$f":"SUM('LTC Rev-Exp Region 1:LTC Rev-Exp Region 11'!S57)","v":0},{"$f":"SUM('LTC Rev-Exp Region 1:LTC Rev-Exp Region 11'!T57)","v":0},{"$f":"SUM(V57:X57)+T57","v":0},{"$f":"SUM('LTC Rev-Exp Region 1:LTC Rev-Exp Region 11'!V57)","v":0},{"$f":"SUM('LTC Rev-Exp Region 1:LTC Rev-Exp Region 11'!W57)","v":0},{"$f":"SUM('LTC Rev-Exp Region 1:LTC Rev-Exp Region 11'!X57)","v":0}]
[null,"5.2","Administrative Services",{"$f":"SUM('LTC Rev-Exp Region 1:LTC Rev-Exp Region 11'!D58)","v":0},{"$f":"SUM('LTC Rev-Exp Region 1:LTC Rev-Exp Region 11'!E58)","v":0},{"$f":"SUM('LTC Rev-Exp Region 1:LTC Rev-Exp Region 11'!F58)","v":0},{"$f":"SUM('LTC Rev-Exp Region 1:LTC Rev-Exp Region 11'!G58)","v":0},{"$f":"SUM('LTC Rev-Exp Region 1:LTC Rev-Exp Region 11'!H58)","v":0},{"$f":"SUM('LTC Rev-Exp Region 1:LTC Rev-Exp Region 11'!I58)","v":0},{"$f":"SUM('LTC Rev-Exp Region 1:LTC Rev-Exp Region 11'!J58)","v":0},{"$f":"SUM('LTC Rev-Exp Region 1:LTC Rev-Exp Region 11'!K58)","v":0},{"$f":"SUM('LTC Rev-Exp Region 1:LTC Rev-Exp Region 11'!L58)","v":0},{"$f":"SUM('LTC Rev-Exp Region 1:LTC Rev-Exp Region 11'!M58)","v":0},{"$f":"SUM('LTC Rev-Exp Region 1:LTC Rev-Exp Region 11'!N58)","v":0},{"$f":"SUM('LTC Rev-Exp Region 1:LTC Rev-Exp Region 11'!O58)","v":0},{"$f":"SUM('LTC Rev-Exp Region 1:LTC Rev-Exp Region 11'!P58)","v":0},{"$f":"SUM('LTC Rev-Exp Region 1:LTC Rev-Exp Region 11'!Q58)","v":0},{"$f":"SUM('LTC Rev-Exp Region 1:LTC Rev-Exp Region 11'!R58)","v":0},{"$f":"SUM('LTC Rev-Exp Region 1:LTC Rev-Exp Region 11'!S58)","v":0},{"$f":"SUM('LTC Rev-Exp Region 1:LTC Rev-Exp Region 11'!T58)","v":0},{"$f":"SUM(V58:X58)+T58","v":0},{"$f":"SUM('LTC Rev-Exp Region 1:LTC Rev-Exp Region 11'!V58)","v":0},{"$f":"SUM('LTC Rev-Exp Region 1:LTC Rev-Exp Region 11'!W58)","v":0},{"$f":"SUM('LTC Rev-Exp Region 1:LTC Rev-Exp Region 11'!X58)","v":0}]
[null,"5.3","Information Systems",{"$f":"SUM('LTC Rev-Exp Region 1:LTC Rev-Exp Region 11'!D59)","v":0},{"$f":"SUM('LTC Rev-Exp Region 1:LTC Rev-Exp Region 11'!E59)","v":0},{"$f":"SUM('LTC Rev-Exp Region 1:LTC Rev-Exp Region 11'!F59)","v":0},{"$f":"SUM('LTC Rev-Exp Region 1:LTC Rev-Exp Region 11'!G59)","v":0},{"$f":"SUM('LTC Rev-Exp Region 1:LTC Rev-Exp Region 11'!H59)","v":0},{"$f":"SUM('LTC Rev-Exp Region 1:LTC Rev-Exp Region 11'!I59)","v":0},{"$f":"SUM('LTC Rev-Exp Region 1:LTC Rev-Exp Region 11'!J59)","v":0},{"$f":"SUM('LTC Rev-Exp Region 1:LTC Rev-Exp Region 11'!K59)","v":0},{"$f":"SUM('LTC Rev-Exp Region 1:LTC Rev-Exp Region 11'!L59)","v":0},{"$f":"SUM('LTC Rev-Exp Region 1:LTC Rev-Exp Region 11'!M59)","v":0},{"$f":"SUM('LTC Rev-Exp Region 1:LTC Rev-Exp Region 11'!N59)","v":0},{"$f":"SUM('LTC Rev-Exp Region 1:LTC Rev-Exp Region 11'!O59)","v":0},{"$f":"SUM('LTC Rev-Exp Region 1:LTC Rev-Exp Region 11'!P59)","v":0},{"$f":"SUM('LTC Rev-Exp Region 1:LTC Rev-Exp Region 11'!Q59)","v":0},{"$f":"SUM('LTC Rev-Exp Region 1:LTC Rev-Exp Region 11'!R59)","v":0},{"$f":"SUM('LTC Rev-Exp Region 1:LTC Rev-Exp Region 11'!S59)","v":0},{"$f":"SUM('LTC Rev-Exp Region 1:LTC Rev-Exp Region 11'!T59)","v":0},0,{"$f":"SUM('LTC Rev-Exp Region 1:LTC Rev-Exp Region 11'!V59)","v":0},{"$f":"SUM('LTC Rev-Exp Region 1:LTC Rev-Exp Region 11'!W59)","v":0},{"$f":"SUM('LTC Rev-Exp Region 1:LTC Rev-Exp Region 11'!X59)","v":0}]
[null,"5.4","Marketing Expenses",{"$f":"SUM('LTC Rev-Exp Region 1:LTC Rev-Exp Region 11'!D60)","v":0},{"$f":"SUM('LTC Rev-Exp Region 1:LTC Rev-Exp Region 11'!E60)","v":0},{"$f":"SUM('LTC Rev-Exp Region 1:LTC Rev-Exp Region 11'!F60)","v":0},{"$f":"SUM('LTC Rev-Exp Region 1:LTC Rev-Exp Region 11'!G60)","v":0},{"$f":"SUM('LTC Rev-Exp Region 1:LTC Rev-Exp Region 11'!H60)","v":0},{"$f":"SUM('LTC Rev-Exp Region 1:LTC Rev-Exp Region 11'!I60)","v":0},{"$f":"SUM('LTC Rev-Exp Region 1:LTC Rev-Exp Region 11'!J60)","v":0},{"$f":"SUM('LTC Rev-Exp Region 1:LTC Rev-Exp Region 11'!K60)","v":0},{"$f":"SUM('LTC Rev-Exp Region 1:LTC Rev-Exp Region 11'!L60)","v":0},{"$f":"SUM('LTC Rev-Exp Region 1:LTC Rev-Exp Region 11'!M60)","v":0},{"$f":"SUM('LTC Rev-Exp Region 1:LTC Rev-Exp Region 11'!N60)","v":0},{"$f":"SUM('LTC Rev-Exp Region 1:LTC Rev-Exp Region 11'!O60)","v":0},{"$f":"SUM('LTC Rev-Exp Region 1:LTC Rev-Exp Region 11'!P60)","v":0},{"$f":"SUM('LTC Rev-Exp Region 1:LTC Rev-Exp Region 11'!Q60)","v":0},{"$f":"SUM('LTC Rev-Exp Region 1:LTC Rev-Exp Region 11'!R60)","v":0},{"$f":"SUM('LTC Rev-Exp Region 1:LTC Rev-Exp Region 11'!S60)","v":0},{"$f":"SUM('LTC Rev-Exp Region 1:LTC Rev-Exp Region 11'!T60)","v":0},0,{"$f":"SUM('LTC Rev-Exp Region 1:LTC Rev-Exp Region 11'!V60)","v":0},{"$f":"SUM('LTC Rev-Exp Region 1:LTC Rev-Exp Region 11'!W60)","v":0},{"$f":"SUM('LTC Rev-Exp Region 1:LTC Rev-Exp Region 11'!X60)","v":0}]
[null,"5.5","General  Administration",{"$f":"SUM('LTC Rev-Exp Region 1:LTC Rev-Exp Region 11'!D61)","v":0},{"$f":"SUM('LTC Rev-Exp Region 1:LTC Rev-Exp Region 11'!E61)","v":0},{"$f":"SUM('LTC Rev-Exp Region 1:LTC Rev-Exp Region 11'!F61)","v":0},{"$f":"SUM('LTC Rev-Exp Region 1:LTC Rev-Exp Region 11'!G61)","v":0},{"$f":"SUM('LTC Rev-Exp Region 1:LTC Rev-Exp Region 11'!H61)","v":0},{"$f":"SUM('LTC Rev-Exp Region 1:LTC Rev-Exp Region 11'!I61)","v":0},{"$f":"SUM('LTC Rev-Exp Region 1:LTC Rev-Exp Region 11'!J61)","v":0},{"$f":"SUM('LTC Rev-Exp Region 1:LTC Rev-Exp Region 11'!K61)","v":0},{"$f":"SUM('LTC Rev-Exp Region 1:LTC Rev-Exp Region 11'!L61)","v":0},{"$f":"SUM('LTC Rev-Exp Region 1:LTC Rev-Exp Region 11'!M61)","v":0},{"$f":"SUM('LTC Rev-Exp Region 1:LTC Rev-Exp Region 11'!N61)","v":0},{"$f":"SUM('LTC Rev-Exp Region 1:LTC Rev-Exp Region 11'!O61)","v":0},{"$f":"SUM('LTC Rev-Exp Region 1:LTC Rev-Exp Region 11'!P61)","v":0},{"$f":"SUM('LTC Rev-Exp Region 1:LTC Rev-Exp Region 11'!Q61)","v":0},{"$f":"SUM('LTC Rev-Exp Region 1:LTC Rev-Exp Region 11'!R61)","v":0},{"$f":"SUM('LTC Rev-Exp Region 1:LTC Rev-Exp Region 11'!S61)","v":0},{"$f":"SUM('LTC Rev-Exp Region 1:LTC Rev-Exp Region 11'!T61)","v":0},0,{"$f":"SUM('LTC Rev-Exp Region 1:LTC Rev-Exp Region 11'!V61)","v":0},{"$f":"SUM('LTC Rev-Exp Region 1:LTC Rev-Exp Region 11'!W61)","v":0},{"$f":"SUM('LTC Rev-Exp Region 1:LTC Rev-Exp Region 11'!X61)","v":0}]
[null,"5.6","Compliance/Regulatory",{"$f":"SUM('LTC Rev-Exp Region 1:LTC Rev-Exp Region 11'!D62)","v":0},{"$f":"SUM('LTC Rev-Exp Region 1:LTC Rev-Exp Region 11'!E62)","v":0},{"$f":"SUM('LTC Rev-Exp Region 1:LTC Rev-Exp Region 11'!F62)","v":0},{"$f":"SUM('LTC Rev-Exp Region 1:LTC Rev-Exp Region 11'!G62)","v":0},{"$f":"SUM('LTC Rev-Exp Region 1:LTC Rev-Exp Region 11'!H62)","v":0},{"$f":"SUM('LTC Rev-Exp Region 1:LTC Rev-Exp Region 11'!I62)","v":0},{"$f":"SUM('LTC Rev-Exp Region 1:LTC Rev-Exp Region 11'!J62)","v":0},{"$f":"SUM('LTC Rev-Exp Region 1:LTC Rev-Exp Region 11'!K62)","v":0},{"$f":"SUM('LTC Rev-Exp Region 1:LTC Rev-Exp Region 11'!L62)","v":0},{"$f":"SUM('LTC Rev-Exp Region 1:LTC Rev-Exp Region 11'!M62)","v":0},{"$f":"SUM('LTC Rev-Exp Region 1:LTC Rev-Exp Region 11'!N62)","v":0},{"$f":"SUM('LTC Rev-Exp Region 1:LTC Rev-Exp Region 11'!O62)","v":0},{"$f":"SUM('LTC Rev-Exp Region 1:LTC Rev-Exp Region 11'!P62)","v":0},{"$f":"SUM('LTC Rev-Exp Region 1:LTC Rev-Exp Region 11'!Q62)","v":0},{"$f":"SUM('LTC Rev-Exp Region 1:LTC Rev-Exp Region 11'!R62)","v":0},{"$f":"SUM('LTC Rev-Exp Region 1:LTC Rev-Exp Region 11'!S62)","v":0},{"$f":"SUM('LTC Rev-Exp Region 1:LTC Rev-Exp Region 11'!T62)","v":0},0,{"$f":"SUM('LTC Rev-Exp Region 1:LTC Rev-Exp Region 11'!V62)","v":0},{"$f":"SUM('LTC Rev-Exp Region 1:LTC Rev-Exp Region 11'!W62)","v":0},{"$f":"SUM('LTC Rev-Exp Region 1:LTC Rev-Exp Region 11'!X62)","v":0}]
[null,"5.7","Total Administrative Expenses ",{"$f":"SUM(D57:D62)","v":0},0,0,0,0,0,0,0,0,0,0,0,0,0,0,0,{"$f":"SUM(T57:T62)","v":0},0,0,0,0]
["Government-Mandated Assessments, Taxes, and Fees Other Than Income Taxes","6.1","State Premium Tax",{"$f":"SUM('LTC Rev-Exp Region 1:LTC Rev-Exp Region 11'!D64)","v":0},{"$nulls":3},{"$f":"SUM('LTC Rev-Exp Region 1:LTC Rev-Exp Region 11'!H64)","v":0},{"$nulls":3},{"$f":"SUM('LTC Rev-Exp Region 1:LTC Rev-Exp Region 11'!L64)","v":0},{"$nulls":3},{"$f":"SUM('LTC Rev-Exp Region 1:LTC Rev-Exp Region 11'!P64)","v":0},{"$nulls":3},{"$f":"SUM('LTC Rev-Exp Region 1:LTC Rev-Exp Region 11'!T64)","v":0},{"$f":"SUM('LTC Rev-Exp Region 1:LTC Rev-Exp Region 11'!U64)","v":0}]
[null,"6.2","Department of Insurance Assessments",{"$f":"SUM('LTC Rev-Exp Region 1:LTC Rev-Exp Region 11'!D65)","v":0},{"$nulls":3},{"$f":"SUM('LTC Rev-Exp Region 1:LTC Rev-Exp Region 11'!H65)","v":0},{"$nulls":3},{"$f":"SUM('LTC Rev-Exp Region 1:LTC Rev-Exp Region 11'!L65)","v":0},{"$nulls":3},{"$f":"SUM('LTC Rev-Exp Region 1:LTC Rev-Exp Region 11'!P65)","v":0},{"$nulls":3},{"$f":"SUM('LTC Rev-Exp Region 1:LTC Rev-Exp Region 11'!T65)","v":0},{"$f":"SUM('LTC Rev-Exp Region 1:LTC Rev-Exp Region 11'!U65)","v":0}]
[null,"6.3","Other 1",{"$f":"SUM('LTC Rev-Exp Region 1:LTC Rev-Exp Region 11'!D66)","v":0},{"$nulls":3},{"$f":"SUM('LTC Rev-Exp Region 1:LTC Rev-Exp Region 11'!H66)","v":0},{"$nulls":3},{"$f":"SUM('LTC Rev-Exp Region 1:LTC Rev-Exp Region 11'!L66)","v":0},{"$nulls":3},{"$f":"SUM('LTC Rev-Exp Region 1:LTC Rev-Exp Region 11'!P66)","v":0},{"$nulls":3},{"$f":"SUM('LTC Rev-Exp Region 1:LTC Rev-Exp Region 11'!T66)","v":0},{"$f":"SUM('LTC Rev-Exp Region 1:LTC Rev-Exp Region 11'!U66)","v":0}]
[null,"6.4","Other 2",{"$f":"SUM('LTC Rev-Exp Region 1:LTC Rev-Exp Region 11'!D67)","v":0},{"$nulls":3},{"$f":"SUM('LTC Rev-Exp Region 1:LTC Rev-Exp Region 11'!H67)","v":0},{"$nulls":3},{"$f":"SUM('LTC Rev-Exp Region 1:LTC Rev-Exp Region 11'!L67)","v":0},{"$nulls":3},{"$f":"SUM('LTC Rev-Exp Region 1:LTC Rev-Exp Region 11'!P67)","v":0},{"$nulls":3},{"$f":"SUM('LTC Rev-Exp Region 1:LTC Rev-Exp Region 11'!T67)","v":0},{"$f":"SUM('LTC Rev-Exp Region 1:LTC Rev-Exp Region 11'!U67)","v":0}]
[null,"6.5","Other 3",{"$f":"SUM('LTC Rev-Exp Region 1:LTC Rev-Exp Region 11'!D68)","v":0},{"$nulls":3},{"$f":"SUM('LTC Rev-Exp Region 1:LTC Rev-Exp Region 11'!H68)","v":0},{"$nulls":3},{"$f":"SUM('LTC Rev-Exp Region 1:LTC Rev-Exp Region 11'!L68)","v":0},{"$nulls":3},{"$f":"SUM('LTC Rev-Exp Region 1:LTC Rev-Exp Region 11'!P68)","v":0},{"$nulls":3},{"$f":"SUM('LTC Rev-Exp Region 1:LTC Rev-Exp Region 11'!T68)","v":0},{"$f":"SUM('LTC Rev-Exp Region 1:LTC Rev-Exp Region 11'!U68)","v":0}]
[null,"6.6","Total ",{"$f":"SUM(D64:D68)","v":0},{"$nulls":3},{"$f":"SUM(H64:H68)","v":0},{"$nulls":3},{"$f":"SUM(L64:L68)","v":0},{"$nulls":3},{"$f":"SUM(P64:P68)","v":0},{"$nulls":3},{"$f":"SUM(T64:T68)","v":0},{"$f":"SUM(U64:U68)","v":0}]
[null,"7.0","Grand Total Expenses",{"$f":"D54+D63+D69","v":0},{"$nulls":3},{"$f":"H54+H63+H69","v":0},{"$nulls":3},{"$f":"L54+L63+L69","v":0},{"$nulls":3},{"$f":"P54+P63+P69","v":0},{"$nulls":3},{"$f":"T54+T63+T69","v":0},{"$f":"U54+U63+U69","v":0}]
[null,"8.0","Underwriting Gain / (Loss)  --- AKA Pre-tax Earnings from Operations",{"$f":"D14-D70","v":0},{"$nulls":3},{"$f":"H14-H70","v":0},{"$nulls":3},{"$f":"L14-L70","v":0},{"$nulls":3},{"$f":"P14-P70","v":0},{"$nulls":3},{"$f":"T14-T70","v":0},{"$f":"U14-U70","v":0}]
[null,"9.0","Income Tax Expense",{"$f":"SUM('LTC Rev-Exp Region 1:LTC Rev-Exp Region 11'!D72)","v":0},{"$nulls":3},{"$f":"SUM('LTC Rev-Exp Region 1:LTC Rev-Exp Region 11'!H72)","v":0},{"$nulls":3},{"$f":"SUM('LTC Rev-Exp Region 1:LTC Rev-Exp Region 11'!L72)","v":0},{"$nulls":3},{"$f":"SUM('LTC Rev-Exp Region 1:LTC Rev-Exp Region 11'!P72)","v":0},{"$nulls":4},{"$f":"SUM('LTC Rev-Exp Region 1:LTC Rev-Exp Region 11'!U72)","v":0}]
[null,"10.0","Net Underwriting Gain (Loss)",{"$f":"D71-D72","v":0},{"$nulls":3},{"$f":"H71-H72","v":0},{"$nulls":3},{"$f":"L71-L72","v":0},{"$nulls":3},{"$f":"P71-P72","v":0},{"$nulls":3},{"$f":"T71-T72","v":0},{"$f":"U71-U72","v":0}]

{"sheet":"LTC Rev-Exp Region 1","index":24,"n_rows":73,"n_cols":24,"rows_kept":73,"hidden":true,"merged":[[6,3,6,6],[6,7,6,10],[6,11,6,14],[6,15,6,18],[6,20,6,23],[9,0,9,2],[10,0,13,0],[14,0,15,2],[14,3,14,6],[14,7,14,10],[14,11,14,14],[14,15,14,18],[14,20,14,23],[16,0,25,0],[26,0,37,0],[38,0,42,0],[43,0,53,0],[54,0,55,2],[54,3,54,6],[54,7,54,10],[54,11,54,14],[54,15,54,18],[54,20,54,23],[56,0,62,0],[63,0,68,0]]}
["LONG TERM CARE -- REVENUE AND EXPENSE SCHEDULE - REGION 1"]
[]
["Health Plan:",null,{"$f":"'LTC Rev-Exp Summary'!C3","v":0}]
["Reporting Period:",null,{"$f":"IF('LTC Rev-Exp Summary'!C4=0,\"\",'LTC Rev-Exp Summary'!C4)","v":""}]
["Paid Through:",null,{"$f":"IF('LTC Rev-Exp Summary'!C5=0,\"\",'LTC Rev-Exp Summary'!C5)","v":""}]
["Region 1"]
[{"$nulls":3},"JANUARY - MARCH (Q1)",{"$nulls":3},"APRIL - JUNE (Q2)",{"$nulls":3},"JULY - SEPTEMBER (Q3)",{"$nulls":3},"OCTOBER - DECEMBER (Q4)",{"$nulls":4},"TOTAL (TO DATE)"]
[{"$nulls":3},"Total","Non-HCBS","HCBS","MED-P / SIXT","Total","Non-HCBS","HCBS","MED-P / SIXT","Total","Non-HCBS","HCBS","MED-P / SIXT","Total","Non-HCBS","HCBS","MED-P / SIXT","Prior Year Adjustments","Total","Non-HCBS","HCBS","MED-P / SIXT"]
["MEMBER MONTHS",null,null,{"$f":"SUM(E9:G9)","v":0},{"$nulls":3},{"$f":"SUM(I9:K9)","v":0},{"$nulls":3},{"$f":"SUM(M9:O9)","v":0},{"$nulls":3},{"$f":"SUM(Q9:S9)","v":0},{"$nulls":4},{"$f":"SUM(V9:X9)+T9","v":0},{"$f":"E9+I9+M9+Q9","v":0},{"$f":"F9+J9+N9+R9","v":0},{"$f":"G9+K9+O9+S9","v":0}]
["REVENUES"]
["Revenues",1.1,"Capitation",{"$nulls":17},{"$f":"D11+H11+L11+P11+T11","v":0}]
[null,1.2,"NH Rate Reconciliation",{"$nulls":17},{"$f":"D12+H12+L12+P12+T12","v":0}]
[null,"1.3","Other Revenue",{"$nulls":17},0]
[null,"1.4","Total Revenue",{"$f":"SUM(D11:D13)","v":0},{"$nulls":3},{"$f":"SUM(H11:H13)","v":0},{"$nulls":3},{"$f":"SUM(L11:L13)","v":0},{"$nulls":3},{"$f":"SUM(P11:P13)","v":0},{"$nulls":3},{"$f":"SUM(T11:T13)","v":0},{"$f":"SUM(U11:U13)","v":0}]
["EXPENSES",null,null,"JANUARY - MARCH (Q1)",{"$nulls":3},"APRIL - JUNE (Q2)",{"$nulls":3},"JULY - SEPTEMBER (Q3)",{"$nulls":3},"OCTOBER - DECEMBER (Q4)",{"$nulls":4},"TOTAL (TO DATE)"]
[{"$nulls":3},"Total","Non-HCBS","HCBS","MED-P / SIXT","Total","Non-HCBS","HCBS","MED-P / SIXT","Total","Non-HCBS","HCBS","MED-P / SIXT","Total","Non-HCBS","HCBS","MED-P / SIXT","Prior Calendar Year Adjustments","Total","Non-HCBS","HCBS","MED-P / SIXT"]
["LTC Nursing Facility (NF) & Hospice Services",2.1,"Nursing Facility Days (Medicaid)",{"$f":"SUM(E17:G17)","v":0},{"$nulls":3},{"$f":"SUM(I17:K17)","v":0},{"$nulls":3},{"$f":"SUM(M17:O17)","v":0},{"$nulls":3},{"$f":"SUM(Q17:S17)","v":0},{"$nulls":4},{"$f":"SUM(V17:X17)+T17","v":0},{"$f":"E17+I17+M17+Q17","v":0},{"$f":"F17+J17+N17+R17","v":0},{"$f":"G17+K17+O17+S17","v":0}]
[null,2.2,"Nursing Facility Days (Crossover)",0,{"$nulls":3},0,{"$nulls":3},0,{"$nulls":3},0,{"$nulls":4},{"$f":"SUM(V18:X18)+T18","v":0},0,0,0]
[null,2.3,"Nursing Facility FFS (Medicaid)",0,{"$nulls":3},0,{"$nulls":3},0,{"$nulls":3},0,{"$nulls":4},0,0,0,0]
[null,2.4,"Nursing Facility FFS (Crossover)",0,{"$nulls":3},0,{"$nulls":3},0,{"$nulls":3},0,{"$nulls":4},0,0,0,0]
[null,2.5,"Hospice Days",0,{"$nulls":3},0,{"$nulls":3},0,{"$nulls":3},0,{"$nulls":4},0,0,0,0]
[null,2.6,"Hospice FFS",0,{"$nulls":3},0,{"$nulls":3},0,{"$nulls":3},0,{"$nulls":4},0,0,0,0]
[null,2.7,"Ending IBNP for NF & Hospice Services",0,{"$nulls":3},0,{"$nulls":3},0,{"$nulls":3},0,{"$nulls":4},0,0,0,0]
[null,2.8,"NF & Hospice Subcapitated Services",0,{"$nulls":3},0,{"$nulls":3},0,{"$nulls":3},0,{"$nulls":4},0,0,0,0]
[null,2.9,"NF & Hospice Settlements/AP",0,{"$nulls":3},0,{"$nulls":3},0,{"$nulls":3},0,{"$nulls":4},0,0,0,0]
[null,{"v":2.1,"d":"2.10"},"Total Nursing Facility and Hospice",{"$f":"SUM(D19:D20,D22:D25)","v":0},0,0,0,0,0,0,0,0,0,0,0,0,0,0,0,0,0,0,0,0]
["Long Term Care Services",2.11,"Assisted Living FFS",{"$f":"SUM(E27:G27)","v":0},{"$nulls":3},{"$f":"SUM(I27:K27)","v":0},{"$nulls":3},{"$f":"SUM(M27:O27)","v":0},{"$nulls":3},{"$f":"SUM(Q27:S27)","v":0},{"$nulls":4},{"$f":"SUM(V27:X27)+T27","v":0},{"$f":"E27+I27+M27+Q27","v":0},{"$f":"F27+J27+N27+R27","v":0},{"$f":"G27+K27+O27+S27","v":0}]
[null,2.12,"Home Health FFS",0,{"$nulls":3},0,{"$nulls":3},0,{"$nulls":3},0,{"$nulls":4},{"$f":"SUM(V28:X28)+T28","v":0},0,0,0]
[null,2.13,"Medical Equipment/Supplies FFS",0,{"$nulls":3},0,{"$nulls":3},0,{"$nulls":3},0,{"$nulls":4},0,0,0,0]
[null,2.14,"Therapy Services FFS",0,{"$nulls":3},0,{"$nulls":3},0,{"$nulls":3},0,{"$nulls":4},0,0,0,0]
[null,2.15,"Transportation Services FFS",0,{"$nulls":3},0,{"$nulls":3},0,{"$nulls":3},0,{"$nulls":4},0,0,0,0]
[null,2.16,"Case Management (Plan Provided) FFS",0,{"$nulls":3},0,{"$nulls":3},0,{"$nulls":3},0,{"$nulls":4},0,0,0,0]
[null,2.17,"Case Management (non-Plan Provided) FFS",0,{"$nulls":3},0,{"$nulls":3},0,{"$nulls":3},0,{"$nulls":4},0,0,0,0]
[null,2.18,"Home & Community Based Services  (HCBS) FFS",0,{"$nulls":3},0,{"$nulls":3},0,{"$nulls":3},0,{"$nulls":4},0,0,0,0]
[null,2.19,"Subcapitated LTC Services (excluding NF)",0,{"$nulls":3},0,{"$nulls":3},0,{"$nulls":3},0,{"$nulls":4},0,0,0,0]
[null,{"v":2.2,"d":"2.20"},"Ending IBNP for Long Term Care Services (excluding NF)",0,{"$nulls":3},0,{"$nulls":3},0,{"$nulls":3},0,{"$nulls":4},0,0,0,{"$f":"G36+K36+O36+S36","v":0}]
[null,2.21,"LTC Services Settlements/AP (excluding NF)",0,{"$nulls":3},0,{"$nulls":3},0,{"$nulls":3},0,{"$nulls":4},0,{"$f":"E37+I37+M37+Q37","v":0},{"$f":"F37+J37+N37+R37","v":0},{"$f":"G37+K37+O37+S37","v":0}]
[null,2.22,"Grand Total LTC Services",{"$f":"SUM(D26,D27:D37)","v":0},{"$f":"SUM(E26:E37)","v":0},0,0,0,0,0,0,0,0,0,0,0,0,0,0,0,0,0,0,0]
["Expanded Benefits","3.1","Expanded Benefits FFS",{"$f":"SUM(E39:G39)","v":0},{"$nulls":3},{"$f":"SUM(I39:K39)","v":0},{"$nulls":3},{"$f":"SUM(M39:O39)","v":0},{"$nulls":3},{"$f":"SUM(Q39:S39)","v":0},{"$nulls":4},{"$f":"SUM(V39:X39)+T39","v":0},{"$f":"E39+I39+M39+Q39","v":0},0,0]
[null,"3.2","Expanded Benefits Subcapitation",{"$f":"SUM(E40:G40)","v":0},{"$nulls":3},{"$f":"SUM(I40:K40)","v":0},{"$nulls":3},{"$f":"SUM(M40:O40)","v":0},{"$nulls":3},{"$f":"SUM(Q40:S40)","v":0},{"$nulls":4},{"$f":"SUM(V40:X40)+T40","v":0},0,0,0]
[null,"3.3","Ending IBNP for Expanded Benefits",{"$f":"SUM(E41:G41)","v":0},{"$nulls":3},{"$f":"SUM(I41:K41)","v":0},{"$nulls":3},{"$f":"SUM(M41:O41)","v":0},{"$nulls":3},{"$f":"SUM(Q41:S41)","v":0},{"$nulls":4},0,0,0,0]
[null,3.4,"Expanded Benefits Services Settlements",{"$f":"SUM(E42:G42)","v":0},{"$nulls":3},{"$f":"SUM(I42:K42)","v":0},{"$nulls":3},{"$f":"SUM(M42:O42)","v":0},{"$nulls":3},{"$f":"SUM(Q42:S42)","v":0},{"$nulls":4},0,0,0,0]
[null,3.5,"Total Expanded Benefits",{"$f":"SUM(D39:D42)","v":0},0,0,0,0,0,0,0,0,0,0,0,0,0,0,0,0,0,0,0,0]
["Totals Before and After Reinsurance","4.1","Total Services Paid Directly FFS",{"$f":"SUM(D19+D20+D22, D27:D34)+D39","v":0},{"$f":"SUM(E19+E20+E22, E27:E34)+E39","v":0},0,0,{"$f":"SUM(H19+H20+H22, H27:H34)+H39","v":0},0,0,0,{"$f":"SUM(L19+L20+L22, L27:L34)+L39","v":0},0,0,0,{"$f":"SUM(P19+P20+P22, P27:P34)+P39","v":0},0,0,0,{"$f":"SUM(T19+T20+T22, T27:T34)+T39","v":0},{"$f":"SUM(U19+U20+U22, U27:U34)+U39","v":0},0,0,0]
[null,"4.2","Total Services Paid Directly -- IBNP",{"$f":"D23+D36+D41","v":0},0,0,0,0,0,0,0,0,0,0,0,0,0,0,0,{"$f":"T23+T36+T41","v":0},0,0,0,0]
[null,"4.3","Total Services Paid through Subcapitation",{"$f":"D24+D35+D40","v":0},0,0,0,0,0,0,0,0,0,0,0,0,0,0,0,{"$f":"T24+T35+T40","v":0},0,0,0,0]
[null,4.4,"Total Services Paid by Settlements/AP",{"$f":"D25+D37+D42","v":0},0,0,0,0,0,0,0,0,0,0,0,0,0,0,0,{"$f":"T25+T37+T42","v":0},0,0,0,0]
[null,4.5,"TPL & Fraud/Abuse Recoveries",{"$f":"SUM(E48:G48)","v":0},{"$nulls":3},{"$f":"SUM(I48:K48)","v":0},{"$nulls":3},{"$f":"SUM(M48:O48)","v":0},{"$nulls":3},{"$f":"SUM(Q48:S48)","v":0},{"$nulls":4},{"$f":"SUM(V48:X48)+T48","v":0},{"$f":"E48+I48+M48+Q48","v":0},0,0]
[null,"4.6.1","Premium Deficiency Reserve",{"$f":"SUM(E49:G49)","v":0},{"$nulls":3},{"$f":"SUM(I49:K49)","v":0},{"$nulls":3},{"$f":"SUM(M49:O49)","v":0},{"$nulls":3},{"$f":"SUM(Q49:S49)","v":0},{"$nulls":4},{"$f":"SUM(V49:X49)+T49","v":0},0,0,0]
[null,"4.7","Subtotal Benefit Expense before Reinsurance",{"$f":"SUM(D44:D49)","v":0},0,0,0,0,0,0,0,0,0,0,0,0,0,0,0,0,0,0,0,0]
[null,"4.8","Reinsurance Premiums",{"$f":"SUM(E51:G51)","v":0},{"$nulls":3},{"$f":"SUM(I51:K51)","v":0},{"$nulls":3},{"$f":"SUM(M51:O51)","v":0},{"$nulls":3},{"$f":"SUM(Q51:S51)","v":0},{"$nulls":4},{"$f":"SUM(V51:X51)+T51","v":0},{"$f":"E51+I51+M51+Q51","v":0},0,0]
[null,"4.9","Reinsurance Recoveries",{"$f":"SUM(E52:G52)","v":0},{"$nulls":3},{"$f":"SUM(I52:K52)","v":0},{"$nulls":3},{"$f":"SUM(M52:O52)","v":0},{"$nulls":3},{"$f":"SUM(Q52:S52)","v":0},{"$nulls":4},{"$f":"SUM(V52:X52)+T52","v":0},0,0,0]
[null,"4.10","Net Cost of Reinsurance",{"$f":"SUM(D51:D52)","v":0},0,0,0,0,0,0,0,0,0,0,0,0,0,0,0,{"$f":"SUM(T51:T52)","v":0},0,0,0,0]
[null,"4.11","Grand Total Service Benefit Expense Net of Reinsurance",{"$f":"D50+D53","v":0},0,0,0,0,0,0,0,0,0,0,0,0,0,0,0,{"$f":"T50+T53","v":0},0,0,0,0]
["Administrative Expenses, Government-Mandated Assessments, Taxes, and Fees ",null,null,"JANUARY - MARCH (Q1)",{"$nulls":3},"APRIL - JUNE (Q2)",{"$nulls":3},"JULY - SEPTEMBER (Q3)",{"$nulls":3},"OCTOBER - DECEMBER (Q4)",{"$nulls":4},"TOTAL (TO DATE)"]
[{"$nulls":3},"Total","Non-HCBS","HCBS","MED-P / SIXT","Total","Non-HCBS","HCBS","MED-P / SIXT","Total","Non-HCBS","HCBS","MED-P / SIXT","Total","Non-HCBS","HCBS","MED-P / SIXT","Prior Calendar Year Adjustments","Total","Non-HCBS","HCBS","MED-P / SIXT"]
["Administrative Expenses","5.1","Salaries & Benefits",{"$f":"SUM(E57:G57)","v":0},{"$nulls":3},{"$f":"SUM(I57:K57)","v":0},{"$nulls":3},{"$f":"SUM(M57:O57)","v":0},{"$nulls":3},{"$f":"SUM(Q57:S57)","v":0},{"$nulls":4},{"$f":"D57+H57+L57+P57+T57","v":0},{"$f":"E57+I57+M57+Q57","v":0},{"$f":"F57+J57+N57+R57","v":0},{"$f":"G57+K57+O57+S57","v":0}]
[null,"5.2","Administrative Services",0,{"$nulls":3},0,{"$nulls":3},0,{"$nulls":3},0,{"$nulls":4},{"$f":"D58+H58+L58+P58+T58","v":0},0,0,0]
[null,"5.3","Information Systems",0,{"$nulls":3},0,{"$nulls":3},0,{"$nulls":3},0,{"$nulls":4},0,0,0,0]
[null,"5.4","Marketing Expenses",0,{"$nulls":3},0,{"$nulls":3},0,{"$nulls":3},0,{"$nulls":4},0,0,0,0]
[null,"5.5","General  Administration",0,{"$nulls":3},0,{"$nulls":3},0,{"$nulls":3},0,{"$nulls":4},0,0,0,0]
[null,"5.6","Compliance/Regulatory",0,{"$nulls":3},0,{"$nulls":3},0,{"$nulls":3},0,{"$nulls":4},0,0,0,0]
[null,"5.7","Total Administrative Expenses ",{"$f":"SUM(D57:D62)","v":0},0,0,0,0,0,0,0,0,0,0,0,0,0,0,0,0,0,0,0,0]
["Government-Mandated Assessments, Taxes, and Fees Other Than Income Taxes","6.1","State Premium Tax",{"$nulls":17},{"$f":"D64+H64+L64+P64+T64","v":0}]
[null,"6.2","Department of Insurance Assessments",{"$nulls":17},{"$f":"D65+H65+L65+P65+T65","v":0}]
[null,"6.3","Other 1",{"$nulls":17},0]
[null,"6.4","Other 2",{"$nulls":17},0]
[null,"6.5","Other 3",{"$nulls":17},0]
[null,"6.6","Total ",{"$f":"SUM(D64:D68)","v":0},{"$nulls":3},{"$f":"SUM(H64:H68)","v":0},{"$nulls":3},{"$f":"SUM(L64:L68)","v":0},{"$nulls":3},{"$f":"SUM(P64:P68)","v":0},{"$nulls":3},{"$f":"SUM(T64:T68)","v":0},{"$f":"SUM(U64:U68)","v":0}]
[null,"7.0","Grand Total Expenses",{"$f":"D54+D63+D69","v":0},{"$nulls":3},{"$f":"H54+H63+H69","v":0},{"$nulls":3},{"$f":"L54+L63+L69","v":0},{"$nulls":3},{"$f":"P54+P63+P69","v":0},{"$nulls":3},{"$f":"T54+T63+T69","v":0},{"$f":"U54+U63+U69","v":0}]
[null,"8.0","Underwriting Gain / (Loss)  --- AKA Pre-tax Earnings from Operations",{"$f":"D14-D70","v":0},{"$nulls":3},{"$f":"H14-H70","v":0},{"$nulls":3},{"$f":"L14-L70","v":0},{"$nulls":3},{"$f":"P14-P70","v":0},{"$nulls":3},{"$f":"T14-T70","v":0},{"$f":"U14-U70","v":0}]
[null,"9.0","Income Tax Expense",{"$nulls":17},{"$f":"D72+H72+L72+P72+T72","v":0}]
[null,"10.0","Net Underwriting Gain (Loss)",{"$f":"D71-D72","v":0},{"$nulls":3},{"$f":"H71-H72","v":0},{"$nulls":3},{"$f":"L71-L72","v":0},{"$nulls":3},{"$f":"P71-P72","v":0},{"$nulls":3},{"$f":"T71-T72","v":0},{"$f":"U71-U72","v":0}]

{"sheet":"LTC Rev-Exp Region 2","index":25,"n_rows":73,"n_cols":24,"rows_kept":73,"hidden":true,"merged":[[6,3,6,6],[6,7,6,10],[6,11,6,14],[6,15,6,18],[6,20,6,23],[9,0,9,2],[10,0,13,0],[14,0,15,2],[14,3,14,6],[14,7,14,10],[14,11,14,14],[14,15,14,18],[14,20,14,23],[16,0,25,0],[26,0,37,0],[38,0,42,0],[43,0,53,0],[54,0,55,2],[54,3,54,6],[54,7,54,10],[54,11,54,14],[54,15,54,18],[54,20,54,23],[56,0,62,0],[63,0,68,0]]}
["LONG TERM CARE -- REVENUE AND EXPENSE SCHEDULE - REGION 2"]
[]
["Health Plan:",null,{"$f":"'LTC Rev-Exp Summary'!C3","v":0}]
["Reporting Period:",null,{"$f":"IF('LTC Rev-Exp Summary'!C4=0,\"\",'LTC Rev-Exp Summary'!C4)","v":""}]
["Paid Through:",null,{"$f":"IF('LTC Rev-Exp Summary'!C5=0,\"\",'LTC Rev-Exp Summary'!C5)","v":""}]
["Region 2"]
[{"$nulls":3},"JANUARY - MARCH (Q1)",{"$nulls":3},"APRIL - JUNE (Q2)",{"$nulls":3},"JULY - SEPTEMBER (Q3)",{"$nulls":3},"OCTOBER - DECEMBER (Q4)",{"$nulls":4},"TOTAL (TO DATE)"]
[{"$nulls":3},"Total","Non-HCBS","HCBS","MED-P / SIXT","Total","Non-HCBS","HCBS","MED-P / SIXT","Total","Non-HCBS","HCBS","MED-P / SIXT","Total","Non-HCBS","HCBS","MED-P / SIXT","Prior Year Adjustments","Total","Non-HCBS","HCBS","MED-P / SIXT"]
["MEMBER MONTHS",null,null,{"$f":"SUM(E9:G9)","v":0},{"$nulls":3},{"$f":"SUM(I9:K9)","v":0},{"$nulls":3},{"$f":"SUM(M9:O9)","v":0},{"$nulls":3},{"$f":"SUM(Q9:S9)","v":0},{"$nulls":4},{"$f":"SUM(V9:X9)+T9","v":0},{"$f":"E9+I9+M9+Q9","v":0},{"$f":"F9+J9+N9+R9","v":0},{"$f":"G9+K9+O9+S9","v":0}]
["REVENUES"]
["Revenues",1.1,"Capitation",{"$nulls":17},{"$f":"D11+H11+L11+P11+T11","v":0}]
[null,1.2,"NH Rate Reconciliation",{"$nulls":17},{"$f":"D12+H12+L12+P12+T12","v":0}]
[null,"1.3","Other Revenue",{"$nulls":17},0]
[null,"1.4","Total Revenue",{"$f":"SUM(D11:D13)","v":0},{"$nulls":3},{"$f":"SUM(H11:H13)","v":0},{"$nulls":3},{"$f":"SUM(L11:L13)","v":0},{"$nulls":3},{"$f":"SUM(P11:P13)","v":0},{"$nulls":3},{"$f":"SUM(T11:T13)","v":0},{"$f":"SUM(U11:U13)","v":0}]
["EXPENSES",null,null,"JANUARY - MARCH (Q1)",{"$nulls":3},"APRIL - JUNE (Q2)",{"$nulls":3},"JULY - SEPTEMBER (Q3)",{"$nulls":3},"OCTOBER - DECEMBER (Q4)",{"$nulls":4},"TOTAL (TO DATE)"]
[{"$nulls":3},"Total","Non-HCBS","HCBS","MED-P / SIXT","Total","Non-HCBS","HCBS","MED-P / SIXT","Total","Non-HCBS","HCBS","MED-P / SIXT","Total","Non-HCBS","HCBS","MED-P / SIXT","Prior Calendar Year Adjustments","Total","Non-HCBS","HCBS","MED-P / SIXT"]
["LTC Nursing Facility (NF) & Hospice Services",2.1,"Nursing Facility Days (Medicaid)",{"$f":"SUM(E17:G17)","v":0},{"$nulls":3},{"$f":"SUM(I17:K17)","v":0},{"$nulls":3},{"$f":"SUM(M17:O17)","v":0},{"$nulls":3},{"$f":"SUM(Q17:S17)","v":0},{"$nulls":4},{"$f":"SUM(V17:X17)+T17","v":0},{"$f":"E17+I17+M17+Q17","v":0},0,0]
[null,2.2,"Nursing Facility Days (Crossover)",0,{"$nulls":3},0,{"$nulls":3},0,{"$nulls":3},0,{"$nulls":4},{"$f":"SUM(V18:X18)+T18","v":0},0,0,0]
[null,2.3,"Nursing Facility FFS (Medicaid)",0,{"$nulls":3},0,{"$nulls":3},0,{"$nulls":3},0,{"$nulls":4},0,0,0,0]
[null,2.4,"Nursing Facility FFS (Crossover)",0,{"$nulls":3},0,{"$nulls":3},0,{"$nulls":3},0,{"$nulls":4},0,0,0,0]
[null,2.5,"Hospice Days",0,{"$nulls":3},0,{"$nulls":3},0,{"$nulls":3},0,{"$nulls":4},0,0,0,0]
[null,2.6,"Hospice FFS",0,{"$nulls":3},0,{"$nulls":3},0,{"$nulls":3},0,{"$nulls":4},0,0,0,0]
[null,2.7,"Ending IBNP for NF & Hospice Services",0,{"$nulls":3},0,{"$nulls":3},0,{"$nulls":3},0,{"$nulls":4},0,0,0,0]
[null,2.8,"NF & Hospice Subcapitated Services",0,{"$nulls":3},0,{"$nulls":3},0,{"$nulls":3},0,{"$nulls":4},0,0,0,0]
[null,2.9,"NF & Hospice Settlements/AP",0,{"$nulls":3},0,{"$nulls":3},0,{"$nulls":3},0,{"$nulls":4},0,0,0,0]
[null,{"v":2.1,"d":"2.10"},"Total Nursing Facility and Hospice",{"$f":"SUM(D19:D20,D22:D25)","v":0},0,0,0,0,0,0,0,0,0,0,0,0,0,0,0,0,0,0,0,0]
["Long Term Care Services",2.11,"Assisted Living FFS",{"$f":"SUM(E27:G27)","v":0},{"$nulls":3},{"$f":"SUM(I27:K27)","v":0},{"$nulls":3},{"$f":"SUM(M27:O27)","v":0},{"$nulls":3},{"$f":"SUM(Q27:S27)","v":0},{"$nulls":4},{"$f":"SUM(V27:X27)+T27","v":0},{"$f":"E27+I27+M27+Q27","v":0},0,0]
[null,2.12,"Home Health FFS",0,{"$nulls":3},0,{"$nulls":3},0,{"$nulls":3},0,{"$nulls":4},{"$f":"SUM(V28:X28)+T28","v":0},0,0,0]
[null,2.13,"Medical Equipment/Supplies FFS",0,{"$nulls":3},0,{"$nulls":3},0,{"$nulls":3},0,{"$nulls":4},0,0,0,0]
[null,2.14,"Therapy Services FFS",0,{"$nulls":3},0,{"$nulls":3},0,{"$nulls":3},0,{"$nulls":4},0,0,0,0]
[null,2.15,"Transportation Services FFS",0,{"$nulls":3},0,{"$nulls":3},0,{"$nulls":3},0,{"$nulls":4},0,0,0,0]
[null,2.16,"Case Management (Plan Provided) FFS",0,{"$nulls":3},0,{"$nulls":3},0,{"$nulls":3},0,{"$nulls":4},0,0,0,0]
[null,2.17,"Case Management (non-Plan Provided) FFS",0,{"$nulls":3},0,{"$nulls":3},0,{"$nulls":3},0,{"$nulls":4},0,0,0,0]
[null,2.18,"Home & Community Based Services  (HCBS) FFS",0,{"$nulls":3},0,{"$nulls":3},0,{"$nulls":3},0,{"$nulls":4},0,0,0,0]
[null,2.19,"Subcapitated LTC Services (excluding NF)",0,{"$nulls":3},0,{"$nulls":3},0,{"$nulls":3},0,{"$nulls":4},0,0,0,0]
[null,{"v":2.2,"d":"2.20"},"Ending IBNP for Long Term Care Services (excluding NF)",0,{"$nulls":3},0,{"$nulls":3},0,{"$nulls":3},0,{"$nulls":4},0,0,0,{"$f":"G36+K36+O36+S36","v":0}]
[null,2.21,"LTC Services Settlements/AP (excluding NF)",0,{"$nulls":3},0,{"$nulls":3},0,{"$nulls":3},0,{"$nulls":4},0,{"$f":"E37+I37+M37+Q37","v":0},{"$f":"F37+J37+N37+R37","v":0},{"$f":"G37+K37+O37+S37","v":0}]
[null,2.22,"Grand Total LTC Services",{"$f":"SUM(D26,D27:D37)","v":0},{"$f":"SUM(E26:E37)","v":0},0,0,0,0,0,0,0,0,0,0,0,0,0,0,0,0,0,0,0]
["Expanded Benefits","3.1","Expanded Benefits FFS",{"$f":"SUM(E39:G39)","v":0},{"$nulls":3},{"$f":"SUM(I39:K39)","v":0},{"$nulls":3},{"$f":"SUM(M39:O39)","v":0},{"$nulls":3},{"$f":"SUM(Q39:S39)","v":0},{"$nulls":4},{"$f":"SUM(V39:X39)+T39","v":0},{"$f":"E39+I39+M39+Q39","v":0},0,0]
[null,"3.2","Expanded Benefits Subcapitation",{"$f":"SUM(E40:G40)","v":0},{"$nulls":3},{"$f":"SUM(I40:K40)","v":0},{"$nulls":3},{"$f":"SUM(M40:O40)","v":0},{"$nulls":3},{"$f":"SUM(Q40:S40)","v":0},{"$nulls":4},{"$f":"SUM(V40:X40)+T40","v":0},0,0,0]
[null,"3.3","Ending IBNP for Expanded Benefits",{"$f":"SUM(E41:G41)","v":0},{"$nulls":3},{"$f":"SUM(I41:K41)","v":0},{"$nulls":3},{"$f":"SUM(M41:O41)","v":0},{"$nulls":3},{"$f":"SUM(Q41:S41)","v":0},{"$nulls":4},0,0,0,0]
[null,3.4,"Expanded Benefits Services Settlements",{"$f":"SUM(E42:G42)","v":0},{"$nulls":3},{"$f":"SUM(I42:K42)","v":0},{"$nulls":3},{"$f":"SUM(M42:O42)","v":0},{"$nulls":3},{"$f":"SUM(Q42:S42)","v":0},{"$nulls":4},0,0,0,0]
[null,3.5,"Total Expanded Benefits",{"$f":"SUM(D39:D42)","v":0},0,0,0,0,0,0,0,0,0,0,0,0,0,0,0,0,0,0,0,0]
["Totals Before and After Reinsurance","4.1","Total Services Paid Directly FFS",{"$f":"SUM(D19+D20+D22, D27:D34)+D39","v":0},{"$f":"SUM(E19+E20+E22, E27:E34)+E39","v":0},0,0,{"$f":"SUM(H19+H20+H22, H27:H34)+H39","v":0},0,0,0,{"$f":"SUM(L19+L20+L22, L27:L34)+L39","v":0},0,0,0,{"$f":"SUM(P19+P20+P22, P27:P34)+P39","v":0},0,0,0,0,{"$f":"SUM(U19+U20+U22, U27:U34)+U39","v":0},0,0,0]
[null,"4.2","Total Services Paid Directly -- IBNP",{"$f":"D23+D36+D41","v":0},0,0,0,0,0,0,0,0,0,0,0,0,0,0,0,0,0,0,0,0]
[null,"4.3","Total Services Paid through Subcapitation",{"$f":"D24+D35+D40","v":0},0,0,0,0,0,0,0,0,0,0,0,0,0,0,0,0,0,0,0,0]
[null,4.4,"Total Services Paid by Settlements/AP",{"$f":"D25+D37+D42","v":0},0,0,0,0,0,0,0,0,0,0,0,0,0,0,0,0,0,0,0,0]
[null,4.5,"TPL & Fraud/Abuse Recoveries",{"$f":"SUM(E48:G48)","v":0},{"$nulls":3},{"$f":"SUM(I48:K48)","v":0},{"$nulls":3},{"$f":"SUM(M48:O48)","v":0},{"$nulls":3},{"$f":"SUM(Q48:S48)","v":0},{"$nulls":4},{"$f":"SUM(V48:X48)+T48","v":0},{"$f":"E48+I48+M48+Q48","v":0},0,0]
[null,"4.6.1","Premium Deficiency Reserve",{"$f":"SUM(E49:G49)","v":0},{"$nulls":3},{"$f":"SUM(I49:K49)","v":0},{"$nulls":3},{"$f":"SUM(M49:O49)","v":0},{"$nulls":3},{"$f":"SUM(Q49:S49)","v":0},{"$nulls":4},{"$f":"SUM(V49:X49)+T49","v":0},0,0,0]
[null,"4.7","Subtotal Benefit Expense before Reinsurance",{"$f":"SUM(D44:D49)","v":0},0,0,0,0,0,0,0,0,0,0,0,0,0,0,0,0,0,0,0,0]
[null,"4.8","Reinsurance Premiums",{"$f":"SUM(E51:G51)","v":0},{"$nulls":3},{"$f":"SUM(I51:K51)","v":0},{"$nulls":3},{"$f":"SUM(M51:O51)","v":0},{"$nulls":3},{"$f":"SUM(Q51:S51)","v":0},{"$nulls":4},{"$f":"SUM(V51:X51)+T51","v":0},{"$f":"E51+I51+M51+Q51","v":0},0,0]
[null,"4.9","Reinsurance Recoveries",{"$f":"SUM(E52:G52)","v":0},{"$nulls":3},{"$f":"SUM(I52:K52)","v":0},{"$nulls":3},{"$f":"SUM(M52:O52)","v":0},{"$nulls":3},{"$f":"SUM(Q52:S52)","v":0},{"$nulls":4},{"$f":"SUM(V52:X52)+T52","v":0},0,0,0]
[null,"4.10","Net Cost of Reinsurance",{"$f":"SUM(D51:D52)","v":0},0,0,0,0,0,0,0,0,0,0,0,0,0,0,0,{"$f":"SUM(T51:T52)","v":0},0,0,0,0]
[null,"4.11","Grand Total Service Benefit Expense Net of Reinsurance",{"$f":"D50+D53","v":0},0,0,0,0,0,0,0,0,0,0,0,0,0,0,0,0,0,0,0,0]
["Administrative Expenses, Government-Mandated Assessments, Taxes, and Fees ",null,null,"JANUARY - MARCH (Q1)",{"$nulls":3},"APRIL - JUNE (Q2)",{"$nulls":3},"JULY - SEPTEMBER (Q3)",{"$nulls":3},"OCTOBER - DECEMBER (Q4)",{"$nulls":4},"TOTAL (TO DATE)"]
[{"$nulls":3},"Total","Non-HCBS","HCBS","MED-P / SIXT","Total","Non-HCBS","HCBS","MED-P / SIXT","Total","Non-HCBS","HCBS","MED-P / SIXT","Total","Non-HCBS","HCBS","MED-P / SIXT","Prior Calendar Year Adjustments","Total","Non-HCBS","HCBS","MED-P / SIXT"]
["Administrative Expenses","5.1","Salaries & Benefits",{"$f":"SUM(E57:G57)","v":0},{"$nulls":3},{"$f":"SUM(I57:K57)","v":0},{"$nulls":3},{"$f":"SUM(M57:O57)","v":0},{"$nulls":3},{"$f":"SUM(Q57:S57)","v":0},{"$nulls":4},{"$f":"D57+H57+L57+P57+T57","v":0},{"$f":"E57+I57+M57+Q57","v":0},0,0]
[null,"5.2","Administrative Services",0,{"$nulls":3},0,{"$nulls":3},0,{"$nulls":3},0,{"$nulls":4},{"$f":"D58+H58+L58+P58+T58","v":0},0,0,0]
[null,"5.3","Information Systems",0,{"$nulls":3},0,{"$nulls":3},0,{"$nulls":3},0,{"$nulls":4},0,0,0,0]
[null,"5.4","Marketing Expenses",0,{"$nulls":3},0,{"$nulls":3},0,{"$nulls":3},0,{"$nulls":4},0,0,0,0]
[null,"5.5","General  Administration",0,{"$nulls":3},0,{"$nulls":3},0,{"$nulls":3},0,{"$nulls":4},0,0,0,0]
[null,"5.6","Compliance/Regulatory",0,{"$nulls":3},0,{"$nulls":3},0,{"$nulls":3},0,{"$nulls":4},0,0,0,0]
[null,"5.7","Total Administrative Expenses ",{"$f":"SUM(D57:D62)","v":0},0,0,0,0,0,0,0,0,0,0,0,0,0,0,0,0,0,0,0,0]
["Government-Mandated Assessments, Taxes, and Fees Other Than Income Taxes","6.1","State Premium Tax",{"$nulls":17},{"$f":"D64+H64+L64+P64+T64","v":0}]
[null,"6.2","Department of Insurance Assessments",{"$nulls":17},{"$f":"D65+H65+L65+P65+T65","v":0}]
[null,"6.3","Other 1",{"$nulls":17},0]
[null,"6.4","Other 2",{"$nulls":17},0]
[null,"6.5","Other 3",{"$nulls":17},0]
[null,"6.6","Total ",{"$f":"SUM(D64:D68)","v":0},{"$nulls":3},{"$f":"SUM(H64:H68)","v":0},{"$nulls":3},{"$f":"SUM(L64:L68)","v":0},{"$nulls":3},{"$f":"SUM(P64:P68)","v":0},{"$nulls":3},{"$f":"SUM(T64:T68)","v":0},{"$f":"SUM(U64:U68)","v":0}]
[null,"7.0","Grand Total Expenses",{"$f":"D54+D63+D69","v":0},{"$nulls":3},{"$f":"H54+H63+H69","v":0},{"$nulls":3},{"$f":"L54+L63+L69","v":0},{"$nulls":3},{"$f":"P54+P63+P69","v":0},{"$nulls":3},{"$f":"T54+T63+T69","v":0},{"$f":"U54+U63+U69","v":0}]
[null,"8.0","Underwriting Gain / (Loss)  --- AKA Pre-tax Earnings from Operations",{"$f":"D14-D70","v":0},{"$nulls":3},{"$f":"H14-H70","v":0},{"$nulls":3},{"$f":"L14-L70","v":0},{"$nulls":3},{"$f":"P14-P70","v":0},{"$nulls":3},{"$f":"T14-T70","v":0},{"$f":"U14-U70","v":0}]
[null,"9.0","Income Tax Expense",{"$nulls":17},{"$f":"D72+H72+L72+P72+T72","v":0}]
[null,"10.0","Net Underwriting Gain (Loss)",{"$f":"D71-D72","v":0},{"$nulls":3},{"$f":"H71-H72","v":0},{"$nulls":3},{"$f":"L71-L72","v":0},{"$nulls":3},{"$f":"P71-P72","v":0},{"$nulls":3},{"$f":"T71-T72","v":0},{"$f":"U71-U72","v":0}]

{"sheet":"LTC Rev-Exp Region 3","index":26,"n_rows":73,"n_cols":24,"rows_kept":73,"hidden":true,"merged":[[6,3,6,6],[6,7,6,10],[6,11,6,14],[6,15,6,18],[6,20,6,23],[9,0,9,2],[10,0,13,0],[14,0,15,2],[14,3,14,6],[14,7,14,10],[14,11,14,14],[14,15,14,18],[14,20,14,23],[16,0,25,0],[26,0,37,0],[38,0,42,0],[43,0,53,0],[54,0,55,2],[54,3,54,6],[54,7,54,10],[54,11,54,14],[54,15,54,18],[54,20,54,23],[56,0,62,0],[63,0,68,0]]}
["LONG TERM CARE -- REVENUE AND EXPENSE SCHEDULE - REGION 3"]
[]
["Health Plan:",null,{"$f":"'LTC Rev-Exp Summary'!C3","v":0}]
["Reporting Period:",null,{"$f":"IF('LTC Rev-Exp Summary'!C4=0,\"\",'LTC Rev-Exp Summary'!C4)","v":""}]
["Paid Through:",null,{"$f":"IF('LTC Rev-Exp Summary'!C5=0,\"\",'LTC Rev-Exp Summary'!C5)","v":""}]
["Region 3"]
[{"$nulls":3},"JANUARY - MARCH (Q1)",{"$nulls":3},"APRIL - JUNE (Q2)",{"$nulls":3},"JULY - SEPTEMBER (Q3)",{"$nulls":3},"OCTOBER - DECEMBER (Q4)",{"$nulls":4},"TOTAL (TO DATE)"]
[{"$nulls":3},"Total","Non-HCBS","HCBS","MED-P / SIXT","Total","Non-HCBS","HCBS","MED-P / SIXT","Total","Non-HCBS","HCBS","MED-P / SIXT","Total","Non-HCBS","HCBS","MED-P / SIXT","Prior Year Adjustments","Total","Non-HCBS","HCBS","MED-P / SIXT"]
["MEMBER MONTHS",null,null,{"$f":"SUM(E9:G9)","v":0},{"$nulls":3},{"$f":"SUM(I9:K9)","v":0},{"$nulls":3},{"$f":"SUM(M9:O9)","v":0},{"$nulls":3},{"$f":"SUM(Q9:S9)","v":0},{"$nulls":4},{"$f":"SUM(V9:X9)+T9","v":0},{"$f":"E9+I9+M9+Q9","v":0},{"$f":"F9+J9+N9+R9","v":0},{"$f":"G9+K9+O9+S9","v":0}]
["REVENUES"]
["Revenues",1.1,"Capitation",{"$nulls":17},{"$f":"D11+H11+L11+P11+T11","v":0}]
[null,1.2,"NH Rate Reconciliation",{"$nulls":17},{"$f":"D12+H12+L12+P12+T12","v":0}]
[null,"1.3","Other Revenue",{"$nulls":17},0]
[null,"1.4","Total Revenue",{"$f":"SUM(D11:D13)","v":0},{"$nulls":3},{"$f":"SUM(H11:H13)","v":0},{"$nulls":3},{"$f":"SUM(L11:L13)","v":0},{"$nulls":3},{"$f":"SUM(P11:P13)","v":0},{"$nulls":3},{"$f":"SUM(T11:T13)","v":0},{"$f":"SUM(U11:U13)","v":0}]
["EXPENSES",null,null,"JANUARY - MARCH (Q1)",{"$nulls":3},"APRIL - JUNE (Q2)",{"$nulls":3},"JULY - SEPTEMBER (Q3)",{"$nulls":3},"OCTOBER - DECEMBER (Q4)",{"$nulls":4},"TOTAL (TO DATE)"]
[{"$nulls":3},"Total","Non-HCBS","HCBS","MED-P / SIXT","Total","Non-HCBS","HCBS","MED-P / SIXT","Total","Non-HCBS","HCBS","MED-P / SIXT","Total","Non-HCBS","HCBS","MED-P / SIXT","Prior Calendar Year Adjustments","Total","Non-HCBS","HCBS","MED-P / SIXT"]
["LTC Nursing Facility (NF) & Hospice Services",2.1,"Nursing Facility Days (Medicaid)",{"$f":"SUM(E17:G17)","v":0},{"$nulls":3},{"$f":"SUM(I17:K17)","v":0},{"$nulls":3},{"$f":"SUM(M17:O17)","v":0},{"$nulls":3},{"$f":"SUM(Q17:S17)","v":0},{"$nulls":4},{"$f":"SUM(V17:X17)+T17","v":0},{"$f":"E17+I17+M17+Q17","v":0},0,0]
[null,2.2,"Nursing Facility Days (Crossover)",0,{"$nulls":3},0,{"$nulls":3},0,{"$nulls":3},0,{"$nulls":4},{"$f":"SUM(V18:X18)+T18","v":0},0,0,0]
[null,2.3,"Nursing Facility FFS (Medicaid)",0,{"$nulls":3},0,{"$nulls":3},0,{"$nulls":3},0,{"$nulls":4},0,0,0,0]
[null,2.4,"Nursing Facility FFS (Crossover)",0,{"$nulls":3},0,{"$nulls":3},0,{"$nulls":3},0,{"$nulls":4},0,0,0,0]
[null,2.5,"Hospice Days",0,{"$nulls":3},0,{"$nulls":3},0,{"$nulls":3},0,{"$nulls":4},0,0,0,0]
[null,2.6,"Hospice FFS",0,{"$nulls":3},0,{"$nulls":3},0,{"$nulls":3},0,{"$nulls":4},0,0,0,0]
[null,2.7,"Ending IBNP for NF & Hospice Services",0,{"$nulls":3},0,{"$nulls":3},0,{"$nulls":3},0,{"$nulls":4},0,0,0,0]
[null,2.8,"NF & Hospice Subcapitated Services",0,{"$nulls":3},0,{"$nulls":3},0,{"$nulls":3},0,{"$nulls":4},0,0,0,0]
[null,2.9,"NF & Hospice Settlements/AP",0,{"$nulls":3},0,{"$nulls":3},0,{"$nulls":3},0,{"$nulls":4},0,0,0,0]
[null,{"v":2.1,"d":"2.10"},"Total Nursing Facility and Hospice",{"$f":"SUM(D19:D20,D22:D25)","v":0},0,0,0,0,0,0,0,0,0,0,0,0,0,0,0,0,0,0,0,0]
["Long Term Care Services",2.11,"Assisted Living FFS",{"$f":"SUM(E27:G27)","v":0},{"$nulls":3},{"$f":"SUM(I27:K27)","v":0},{"$nulls":3},{"$f":"SUM(M27:O27)","v":0},{"$nulls":3},{"$f":"SUM(Q27:S27)","v":0},{"$nulls":4},{"$f":"SUM(V27:X27)+T27","v":0},{"$f":"E27+I27+M27+Q27","v":0},0,0]
[null,2.12,"Home Health FFS",0,{"$nulls":3},0,{"$nulls":3},0,{"$nulls":3},0,{"$nulls":4},{"$f":"SUM(V28:X28)+T28","v":0},0,0,0]
[null,2.13,"Medical Equipment/Supplies FFS",0,{"$nulls":3},0,{"$nulls":3},0,{"$nulls":3},0,{"$nulls":4},0,0,0,0]
[null,2.14,"Therapy Services FFS",0,{"$nulls":3},0,{"$nulls":3},0,{"$nulls":3},0,{"$nulls":4},0,0,0,0]
[null,2.15,"Transportation Services FFS",0,{"$nulls":3},0,{"$nulls":3},0,{"$nulls":3},0,{"$nulls":4},0,0,0,0]
[null,2.16,"Case Management (Plan Provided) FFS",0,{"$nulls":3},0,{"$nulls":3},0,{"$nulls":3},0,{"$nulls":4},0,0,0,0]
[null,2.17,"Case Management (non-Plan Provided) FFS",0,{"$nulls":3},0,{"$nulls":3},0,{"$nulls":3},0,{"$nulls":4},0,0,0,0]
[null,2.18,"Home & Community Based Services  (HCBS) FFS",0,{"$nulls":3},0,{"$nulls":3},0,{"$nulls":3},0,{"$nulls":4},0,0,0,0]
[null,2.19,"Subcapitated LTC Services (excluding NF)",0,{"$nulls":3},0,{"$nulls":3},0,{"$nulls":3},0,{"$nulls":4},0,0,0,0]
[null,{"v":2.2,"d":"2.20"},"Ending IBNP for Long Term Care Services (excluding NF)",0,{"$nulls":3},0,{"$nulls":3},0,{"$nulls":3},0,{"$nulls":4},0,0,0,{"$f":"G36+K36+O36+S36","v":0}]
[null,2.21,"LTC Services Settlements/AP (excluding NF)",0,{"$nulls":3},0,{"$nulls":3},0,{"$nulls":3},0,{"$nulls":4},0,{"$f":"E37+I37+M37+Q37","v":0},{"$f":"F37+J37+N37+R37","v":0},{"$f":"G37+K37+O37+S37","v":0}]
[null,2.22,"Grand Total LTC Services",{"$f":"SUM(D26,D27:D37)","v":0},{"$f":"SUM(E26:E37)","v":0},0,0,0,0,0,0,0,0,0,0,0,0,0,0,0,0,0,0,0]
["Expanded Benefits","3.1","Expanded Benefits FFS",{"$f":"SUM(E39:G39)","v":0},{"$nulls":3},{"$f":"SUM(I39:K39)","v":0},{"$nulls":3},{"$f":"SUM(M39:O39)","v":0},{"$nulls":3},{"$f":"SUM(Q39:S39)","v":0},{"$nulls":4},{"$f":"SUM(V39:X39)+T39","v":0},{"$f":"E39+I39+M39+Q39","v":0},0,0]
[null,"3.2","Expanded Benefits Subcapitation",{"$f":"SUM(E40:G40)","v":0},{"$nulls":3},{"$f":"SUM(I40:K40)","v":0},{"$nulls":3},{"$f":"SUM(M40:O40)","v":0},{"$nulls":3},{"$f":"SUM(Q40:S40)","v":0},{"$nulls":4},{"$f":"SUM(V40:X40)+T40","v":0},0,0,0]
[null,"3.3","Ending IBNP for Expanded Benefits",{"$f":"SUM(E41:G41)","v":0},{"$nulls":3},{"$f":"SUM(I41:K41)","v":0},{"$nulls":3},{"$f":"SUM(M41:O41)","v":0},{"$nulls":3},{"$f":"SUM(Q41:S41)","v":0},{"$nulls":4},0,0,0,0]
[null,3.4,"Expanded Benefits Services Settlements",{"$f":"SUM(E42:G42)","v":0},{"$nulls":3},{"$f":"SUM(I42:K42)","v":0},{"$nulls":3},{"$f":"SUM(M42:O42)","v":0},{"$nulls":3},{"$f":"SUM(Q42:S42)","v":0},{"$nulls":4},0,0,0,0]
[null,3.5,"Total Expanded Benefits",{"$f":"SUM(D39:D42)","v":0},0,0,0,0,0,0,0,0,0,0,0,0,0,0,0,0,0,0,0,0]
["Totals Before and After Reinsurance","4.1","Total Services Paid Directly FFS",{"$f":"SUM(D19+D20+D22, D27:D34)+D39","v":0},{"$f":"SUM(E19+E20+E22, E27:E34)+E39","v":0},0,0,{"$f":"SUM(H19+H20+H22, H27:H34)+H39","v":0},0,0,0,{"$f":"SUM(L19+L20+L22, L27:L34)+L39","v":0},0,0,0,{"$f":"SUM(P19+P20+P22, P27:P34)+P39","v":0},0,0,0,0,{"$f":"SUM(U19+U20+U22, U27:U34)+U39","v":0},0,0,0]
[null,"4.2","Total Services Paid Directly -- IBNP",{"$f":"D23+D36+D41","v":0},0,0,0,0,0,0,0,0,0,0,0,0,0,0,0,0,0,0,0,0]
[null,"4.3","Total Services Paid through Subcapitation",{"$f":"D24+D35+D40","v":0},0,0,0,0,0,0,0,0,0,0,0,0,0,0,0,0,0,0,0,0]
[null,4.4,"Total Services Paid by Settlements/AP",{"$f":"D25+D37+D42","v":0},0,0,0,0,0,0,0,0,0,0,0,0,0,0,0,0,0,0,0,0]
[null,4.5,"TPL & Fraud/Abuse Recoveries",{"$f":"SUM(E48:G48)","v":0},{"$nulls":3},{"$f":"SUM(I48:K48)","v":0},{"$nulls":3},{"$f":"SUM(M48:O48)","v":0},{"$nulls":3},{"$f":"SUM(Q48:S48)","v":0},{"$nulls":4},{"$f":"SUM(V48:X48)+T48","v":0},{"$f":"E48+I48+M48+Q48","v":0},0,0]
[null,"4.6.1","Premium Deficiency Reserve",{"$f":"SUM(E49:G49)","v":0},{"$nulls":3},{"$f":"SUM(I49:K49)","v":0},{"$nulls":3},{"$f":"SUM(M49:O49)","v":0},{"$nulls":3},{"$f":"SUM(Q49:S49)","v":0},{"$nulls":4},{"$f":"SUM(V49:X49)+T49","v":0},0,0,0]
[null,"4.7","Subtotal Benefit Expense before Reinsurance",{"$f":"SUM(D44:D49)","v":0},0,0,0,0,0,0,0,0,0,0,0,0,0,0,0,0,0,0,0,0]
[null,"4.8","Reinsurance Premiums",{"$f":"SUM(E51:G51)","v":0},{"$nulls":3},{"$f":"SUM(I51:K51)","v":0},{"$nulls":3},{"$f":"SUM(M51:O51)","v":0},{"$nulls":3},{"$f":"SUM(Q51:S51)","v":0},{"$nulls":4},{"$f":"SUM(V51:X51)+T51","v":0},{"$f":"E51+I51+M51+Q51","v":0},0,0]
[null,"4.9","Reinsurance Recoveries",{"$f":"SUM(E52:G52)","v":0},{"$nulls":3},{"$f":"SUM(I52:K52)","v":0},{"$nulls":3},{"$f":"SUM(M52:O52)","v":0},{"$nulls":3},{"$f":"SUM(Q52:S52)","v":0},{"$nulls":4},{"$f":"SUM(V52:X52)+T52","v":0},0,0,0]
[null,"4.10","Net Cost of Reinsurance",{"$f":"SUM(D51:D52)","v":0},0,0,0,0,0,0,0,0,0,0,0,0,0,0,0,0,0,0,0,0]
[null,"4.11","Grand Total Service Benefit Expense Net of Reinsurance",{"$f":"D50+D53","v":0},0,0,0,0,0,0,0,0,0,0,0,0,0,0,0,0,0,0,0,0]
["Administrative Expenses, Government-Mandated Assessments, Taxes, and Fees ",null,null,"JANUARY - MARCH (Q1)",{"$nulls":3},"APRIL - JUNE (Q2)",{"$nulls":3},"JULY - SEPTEMBER (Q3)",{"$nulls":3},"OCTOBER - DECEMBER (Q4)",{"$nulls":4},"TOTAL (TO DATE)"]
[{"$nulls":3},"Total","Non-HCBS","HCBS","MED-P / SIXT","Total","Non-HCBS","HCBS","MED-P / SIXT","Total","Non-HCBS","HCBS","MED-P / SIXT","Total","Non-HCBS","HCBS","MED-P / SIXT","Prior Calendar Year Adjustments","Total","Non-HCBS","HCBS","MED-P / SIXT"]
["Administrative Expenses","5.1","Salaries & Benefits",{"$f":"SUM(E57:G57)","v":0},{"$nulls":3},{"$f":"SUM(I57:K57)","v":0},{"$nulls":3},{"$f":"SUM(M57:O57)","v":0},{"$nulls":3},{"$f":"SUM(Q57:S57)","v":0},{"$nulls":4},{"$f":"D57+H57+L57+P57+T57","v":0},{"$f":"E57+I57+M57+Q57","v":0},0,0]
[null,"5.2","Administrative Services",0,{"$nulls":3},0,{"$nulls":3},0,{"$nulls":3},0,{"$nulls":4},{"$f":"D58+H58+L58+P58+T58","v":0},0,0,0]
[null,"5.3","Information Systems",0,{"$nulls":3},0,{"$nulls":3},0,{"$nulls":3},0,{"$nulls":4},0,0,0,0]
[null,"5.4","Marketing Expenses",0,{"$nulls":3},0,{"$nulls":3},0,{"$nulls":3},0,{"$nulls":4},0,0,0,0]
[null,"5.5","General  Administration",0,{"$nulls":3},0,{"$nulls":3},0,{"$nulls":3},0,{"$nulls":4},0,0,0,0]
[null,"5.6","Compliance/Regulatory",0,{"$nulls":3},0,{"$nulls":3},0,{"$nulls":3},0,{"$nulls":4},0,0,0,0]
[null,"5.7","Total Administrative Expenses ",{"$f":"SUM(D57:D62)","v":0},0,0,0,0,0,0,0,0,0,0,0,0,0,0,0,0,0,0,0,0]
["Government-Mandated Assessments, Taxes, and Fees Other Than Income Taxes","6.1","State Premium Tax",{"$nulls":17},{"$f":"D64+H64+L64+P64+T64","v":0}]
[null,"6.2","Department of Insurance Assessments",{"$nulls":17},{"$f":"D65+H65+L65+P65+T65","v":0}]
[null,"6.3","Other 1",{"$nulls":17},0]
[null,"6.4","Other 2",{"$nulls":17},0]
[null,"6.5","Other 3",{"$nulls":17},0]
[null,"6.6","Total ",{"$f":"SUM(D64:D68)","v":0},{"$nulls":3},{"$f":"SUM(H64:H68)","v":0},{"$nulls":3},{"$f":"SUM(L64:L68)","v":0},{"$nulls":3},{"$f":"SUM(P64:P68)","v":0},{"$nulls":3},{"$f":"SUM(T64:T68)","v":0},{"$f":"SUM(U64:U68)","v":0}]
[null,"7.0","Grand Total Expenses",{"$f":"D54+D63+D69","v":0},{"$nulls":3},{"$f":"H54+H63+H69","v":0},{"$nulls":3},{"$f":"L54+L63+L69","v":0},{"$nulls":3},{"$f":"P54+P63+P69","v":0},{"$nulls":3},{"$f":"T54+T63+T69","v":0},{"$f":"U54+U63+U69","v":0}]
[null,"8.0","Underwriting Gain / (Loss)  --- AKA Pre-tax Earnings from Operations",{"$f":"D14-D70","v":0},{"$nulls":3},{"$f":"H14-H70","v":0},{"$nulls":3},{"$f":"L14-L70","v":0},{"$nulls":3},{"$f":"P14-P70","v":0},{"$nulls":3},{"$f":"T14-T70","v":0},{"$f":"U14-U70","v":0}]
[null,"9.0","Income Tax Expense",{"$nulls":17},{"$f":"D72+H72+L72+P72+T72","v":0}]
[null,"10.0","Net Underwriting Gain (Loss)",{"$f":"D71-D72","v":0},{"$nulls":3},{"$f":"H71-H72","v":0},{"$nulls":3},{"$f":"L71-L72","v":0},{"$nulls":3},{"$f":"P71-P72","v":0},{"$nulls":3},{"$f":"T71-T72","v":0},{"$f":"U71-U72","v":0}]

{"sheet":"LTC Rev-Exp Region 4","index":27,"n_rows":73,"n_cols":24,"rows_kept":73,"hidden":true,"merged":[[6,3,6,6],[6,7,6,10],[6,11,6,14],[6,15,6,18],[6,20,6,23],[9,0,9,2],[10,0,13,0],[14,0,15,2],[14,3,14,6],[14,7,14,10],[14,11,14,14],[14,15,14,18],[14,20,14,23],[16,0,25,0],[26,0,37,0],[38,0,42,0],[43,0,53,0],[54,0,55,2],[54,3,54,6],[54,7,54,10],[54,11,54,14],[54,15,54,18],[54,20,54,23],[56,0,62,0],[63,0,68,0]]}
["LONG TERM CARE -- REVENUE AND EXPENSE SCHEDULE - REGION 4"]
[]
["Health Plan:",null,{"$f":"'LTC Rev-Exp Summary'!C3","v":0}]
["Reporting Period:",null,{"$f":"IF('LTC Rev-Exp Summary'!C4=0,\"\",'LTC Rev-Exp Summary'!C4)","v":""}]
["Paid Through:",null,{"$f":"IF('LTC Rev-Exp Summary'!C5=0,\"\",'LTC Rev-Exp Summary'!C5)","v":""}]
["Region 4"]
[{"$nulls":3},"JANUARY - MARCH (Q1)",{"$nulls":3},"APRIL - JUNE (Q2)",{"$nulls":3},"JULY - SEPTEMBER (Q3)",{"$nulls":3},"OCTOBER - DECEMBER (Q4)",{"$nulls":4},"TOTAL (TO DATE)"]
[{"$nulls":3},"Total","Non-HCBS","HCBS","MED-P / SIXT","Total","Non-HCBS","HCBS","MED-P / SIXT","Total","Non-HCBS","HCBS","MED-P / SIXT","Total","Non-HCBS","HCBS","MED-P / SIXT","Prior Year Adjustments","Total","Non-HCBS","HCBS","MED-P / SIXT"]
["MEMBER MONTHS",null,null,{"$f":"SUM(E9:G9)","v":0},{"$nulls":3},{"$f":"SUM(I9:K9)","v":0},{"$nulls":3},{"$f":"SUM(M9:O9)","v":0},{"$nulls":3},{"$f":"SUM(Q9:S9)","v":0},{"$nulls":4},{"$f":"SUM(V9:X9)+T9","v":0},{"$f":"E9+I9+M9+Q9","v":0},{"$f":"F9+J9+N9+R9","v":0},{"$f":"G9+K9+O9+S9","v":0}]
["REVENUES"]
["Revenues",1.1,"Capitation",{"$nulls":17},{"$f":"D11+H11+L11+P11+T11","v":0}]
[null,1.2,"NH Rate Reconciliation",{"$nulls":17},{"$f":"D12+H12+L12+P12+T12","v":0}]
[null,"1.3","Other Revenue",{"$nulls":17},0]
[null,"1.4","Total Revenue",{"$f":"SUM(D11:D13)","v":0},{"$nulls":3},{"$f":"SUM(H11:H13)","v":0},{"$nulls":3},{"$f":"SUM(L11:L13)","v":0},{"$nulls":3},{"$f":"SUM(P11:P13)","v":0},{"$nulls":3},{"$f":"SUM(T11:T13)","v":0},{"$f":"SUM(U11:U13)","v":0}]
["EXPENSES",null,null,"JANUARY - MARCH (Q1)",{"$nulls":3},"APRIL - JUNE (Q2)",{"$nulls":3},"JULY - SEPTEMBER (Q3)",{"$nulls":3},"OCTOBER - DECEMBER (Q4)",{"$nulls":4},"TOTAL (TO DATE)"]
[{"$nulls":3},"Total","Non-HCBS","HCBS","MED-P / SIXT","Total","Non-HCBS","HCBS","MED-P / SIXT","Total","Non-HCBS","HCBS","MED-P / SIXT","Total","Non-HCBS","HCBS","MED-P / SIXT","Prior Calendar Year Adjustments","Total","Non-HCBS","HCBS","MED-P / SIXT"]
["LTC Nursing Facility (NF) & Hospice Services",2.1,"Nursing Facility Days (Medicaid)",{"$f":"SUM(E17:G17)","v":0},{"$nulls":3},{"$f":"SUM(I17:K17)","v":0},{"$nulls":3},{"$f":"SUM(M17:O17)","v":0},{"$nulls":3},{"$f":"SUM(Q17:S17)","v":0},{"$nulls":4},{"$f":"SUM(V17:X17)+T17","v":0},{"$f":"E17+I17+M17+Q17","v":0},0,0]
[null,2.2,"Nursing Facility Days (Crossover)",0,{"$nulls":3},0,{"$nulls":3},0,{"$nulls":3},0,{"$nulls":4},{"$f":"SUM(V18:X18)+T18","v":0},0,0,0]
[null,2.3,"Nursing Facility FFS (Medicaid)",0,{"$nulls":3},0,{"$nulls":3},0,{"$nulls":3},0,{"$nulls":4},0,0,0,0]
[null,2.4,"Nursing Facility FFS (Crossover)",0,{"$nulls":3},0,{"$nulls":3},0,{"$nulls":3},0,{"$nulls":4},0,0,0,0]
[null,2.5,"Hospice Days",0,{"$nulls":3},0,{"$nulls":3},0,{"$nulls":3},0,{"$nulls":4},0,0,0,0]
[null,2.6,"Hospice FFS",0,{"$nulls":3},0,{"$nulls":3},0,{"$nulls":3},0,{"$nulls":4},0,0,0,0]
[null,2.7,"Ending IBNP for NF & Hospice Services",0,{"$nulls":3},0,{"$nulls":3},0,{"$nulls":3},0,{"$nulls":4},0,0,0,0]
[null,2.8,"NF & Hospice Subcapitated Services",0,{"$nulls":3},0,{"$nulls":3},0,{"$nulls":3},0,{"$nulls":4},0,0,0,0]
[null,2.9,"NF & Hospice Settlements/AP",0,{"$nulls":3},0,{"$nulls":3},0,{"$nulls":3},0,{"$nulls":4},0,0,0,0]
[null,{"v":2.1,"d":"2.10"},"Total Nursing Facility and Hospice",{"$f":"SUM(D19:D20,D22:D25)","v":0},0,0,0,0,0,0,0,0,0,0,0,0,0,0,0,0,0,0,0,0]
["Long Term Care Services",2.11,"Assisted Living FFS",{"$f":"SUM(E27:G27)","v":0},{"$nulls":3},{"$f":"SUM(I27:K27)","v":0},{"$nulls":3},{"$f":"SUM(M27:O27)","v":0},{"$nulls":3},{"$f":"SUM(Q27:S27)","v":0},{"$nulls":4},{"$f":"SUM(V27:X27)+T27","v":0},{"$f":"E27+I27+M27+Q27","v":0},0,0]
[null,2.12,"Home Health FFS",0,{"$nulls":3},0,{"$nulls":3},0,{"$nulls":3},0,{"$nulls":4},{"$f":"SUM(V28:X28)+T28","v":0},0,0,0]
[null,2.13,"Medical Equipment/Supplies FFS",0,{"$nulls":3},0,{"$nulls":3},0,{"$nulls":3},0,{"$nulls":4},0,0,0,0]
[null,2.14,"Therapy Services FFS",0,{"$nulls":3},0,{"$nulls":3},0,{"$nulls":3},0,{"$nulls":4},0,0,0,0]
[null,2.15,"Transportation Services FFS",0,{"$nulls":3},0,{"$nulls":3},0,{"$nulls":3},0,{"$nulls":4},0,0,0,0]
[null,2.16,"Case Management (Plan Provided) FFS",0,{"$nulls":3},0,{"$nulls":3},0,{"$nulls":3},0,{"$nulls":4},0,0,0,0]
[null,2.17,"Case Management (non-Plan Provided) FFS",0,{"$nulls":3},0,{"$nulls":3},0,{"$nulls":3},0,{"$nulls":4},0,0,0,0]
[null,2.18,"Home & Community Based Services  (HCBS) FFS",0,{"$nulls":3},0,{"$nulls":3},0,{"$nulls":3},0,{"$nulls":4},0,0,0,0]
[null,2.19,"Subcapitated LTC Services (excluding NF)",0,{"$nulls":3},0,{"$nulls":3},0,{"$nulls":3},0,{"$nulls":4},0,0,0,0]
[null,{"v":2.2,"d":"2.20"},"Ending IBNP for Long Term Care Services (excluding NF)",0,{"$nulls":3},0,{"$nulls":3},0,{"$nulls":3},0,{"$nulls":4},0,0,0,{"$f":"G36+K36+O36+S36","v":0}]
[null,2.21,"LTC Services Settlements/AP (excluding NF)",0,{"$nulls":3},0,{"$nulls":3},0,{"$nulls":3},0,{"$nulls":4},0,{"$f":"E37+I37+M37+Q37","v":0},{"$f":"F37+J37+N37+R37","v":0},{"$f":"G37+K37+O37+S37","v":0}]
[null,2.22,"Grand Total LTC Services",{"$f":"SUM(D26,D27:D37)","v":0},{"$f":"SUM(E26:E37)","v":0},0,0,0,0,0,0,0,0,0,0,0,0,0,0,0,0,0,0,0]
["Expanded Benefits","3.1","Expanded Benefits FFS",{"$f":"SUM(E39:G39)","v":0},{"$nulls":3},{"$f":"SUM(I39:K39)","v":0},{"$nulls":3},{"$f":"SUM(M39:O39)","v":0},{"$nulls":3},{"$f":"SUM(Q39:S39)","v":0},{"$nulls":4},{"$f":"SUM(V39:X39)+T39","v":0},{"$f":"E39+I39+M39+Q39","v":0},0,0]
[null,"3.2","Expanded Benefits Subcapitation",{"$f":"SUM(E40:G40)","v":0},{"$nulls":3},{"$f":"SUM(I40:K40)","v":0},{"$nulls":3},{"$f":"SUM(M40:O40)","v":0},{"$nulls":3},{"$f":"SUM(Q40:S40)","v":0},{"$nulls":4},{"$f":"SUM(V40:X40)+T40","v":0},0,0,0]
[null,"3.3","Ending IBNP for Expanded Benefits",{"$f":"SUM(E41:G41)","v":0},{"$nulls":3},{"$f":"SUM(I41:K41)","v":0},{"$nulls":3},{"$f":"SUM(M41:O41)","v":0},{"$nulls":3},{"$f":"SUM(Q41:S41)","v":0},{"$nulls":4},0,0,0,0]
[null,3.4,"Expanded Benefits Services Settlements",{"$f":"SUM(E42:G42)","v":0},{"$nulls":3},{"$f":"SUM(I42:K42)","v":0},{"$nulls":3},{"$f":"SUM(M42:O42)","v":0},{"$nulls":3},{"$f":"SUM(Q42:S42)","v":0},{"$nulls":4},0,0,0,0]
[null,3.5,"Total Expanded Benefits",{"$f":"SUM(D39:D42)","v":0},0,0,0,0,0,0,0,0,0,0,0,0,0,0,0,0,0,0,0,0]
["Totals Before and After Reinsurance","4.1","Total Services Paid Directly FFS",{"$f":"SUM(D19+D20+D22, D27:D34)+D39","v":0},{"$f":"SUM(E19+E20+E22, E27:E34)+E39","v":0},0,0,{"$f":"SUM(H19+H20+H22, H27:H34)+H39","v":0},0,0,0,{"$f":"SUM(L19+L20+L22, L27:L34)+L39","v":0},0,0,0,{"$f":"SUM(P19+P20+P22, P27:P34)+P39","v":0},0,0,0,0,{"$f":"SUM(U19+U20+U22, U27:U34)+U39","v":0},0,0,0]
[null,"4.2","Total Services Paid Directly -- IBNP",{"$f":"D23+D36+D41","v":0},0,0,0,0,0,0,0,0,0,0,0,0,0,0,0,0,0,0,0,0]
[null,"4.3","Total Services Paid through Subcapitation",{"$f":"D24+D35+D40","v":0},0,0,0,0,0,0,0,0,0,0,0,0,0,0,0,0,0,0,0,0]
[null,4.4,"Total Services Paid by Settlements/AP",{"$f":"D25+D37+D42","v":0},0,0,0,0,0,0,0,0,0,0,0,0,0,0,0,0,0,0,0,0]
[null,4.5,"TPL & Fraud/Abuse Recoveries",{"$f":"SUM(E48:G48)","v":0},{"$nulls":3},{"$f":"SUM(I48:K48)","v":0},{"$nulls":3},{"$f":"SUM(M48:O48)","v":0},{"$nulls":3},{"$f":"SUM(Q48:S48)","v":0},{"$nulls":4},{"$f":"SUM(V48:X48)+T48","v":0},{"$f":"E48+I48+M48+Q48","v":0},0,0]
[null,"4.6.1","Premium Deficiency Reserve",{"$f":"SUM(E49:G49)","v":0},{"$nulls":3},{"$f":"SUM(I49:K49)","v":0},{"$nulls":3},{"$f":"SUM(M49:O49)","v":0},{"$nulls":3},{"$f":"SUM(Q49:S49)","v":0},{"$nulls":4},{"$f":"SUM(V49:X49)+T49","v":0},0,0,0]
[null,"4.7","Subtotal Benefit Expense before Reinsurance",{"$f":"SUM(D44:D49)","v":0},0,0,0,0,0,0,0,0,0,0,0,0,0,0,0,0,0,0,0,0]
[null,"4.8","Reinsurance Premiums",{"$f":"SUM(E51:G51)","v":0},{"$nulls":3},{"$f":"SUM(I51:K51)","v":0},{"$nulls":3},{"$f":"SUM(M51:O51)","v":0},{"$nulls":3},{"$f":"SUM(Q51:S51)","v":0},{"$nulls":4},{"$f":"SUM(V51:X51)+T51","v":0},{"$f":"E51+I51+M51+Q51","v":0},0,0]
[null,"4.9","Reinsurance Recoveries",{"$f":"SUM(E52:G52)","v":0},{"$nulls":3},{"$f":"SUM(I52:K52)","v":0},{"$nulls":3},{"$f":"SUM(M52:O52)","v":0},{"$nulls":3},{"$f":"SUM(Q52:S52)","v":0},{"$nulls":4},{"$f":"SUM(V52:X52)+T52","v":0},0,0,0]
[null,"4.10","Net Cost of Reinsurance",{"$f":"SUM(D51:D52)","v":0},0,0,0,0,0,0,0,0,0,0,0,0,0,0,0,0,0,0,0,0]
[null,"4.11","Grand Total Service Benefit Expense Net of Reinsurance",{"$f":"D50+D53","v":0},0,0,0,0,0,0,0,0,0,0,0,0,0,0,0,0,0,0,0,0]
["Administrative Expenses, Government-Mandated Assessments, Taxes, and Fees ",null,null,"JANUARY - MARCH (Q1)",{"$nulls":3},"APRIL - JUNE (Q2)",{"$nulls":3},"JULY - SEPTEMBER (Q3)",{"$nulls":3},"OCTOBER - DECEMBER (Q4)",{"$nulls":4},"TOTAL (TO DATE)"]
[{"$nulls":3},"Total","Non-HCBS","HCBS","MED-P / SIXT","Total","Non-HCBS","HCBS","MED-P / SIXT","Total","Non-HCBS","HCBS","MED-P / SIXT","Total","Non-HCBS","HCBS","MED-P / SIXT","Prior Calendar Year Adjustments","Total","Non-HCBS","HCBS","MED-P / SIXT"]
["Administrative Expenses","5.1","Salaries & Benefits",{"$f":"SUM(E57:G57)","v":0},{"$nulls":3},{"$f":"SUM(I57:K57)","v":0},{"$nulls":3},{"$f":"SUM(M57:O57)","v":0},{"$nulls":3},{"$f":"SUM(Q57:S57)","v":0},{"$nulls":4},{"$f":"D57+H57+L57+P57+T57","v":0},{"$f":"E57+I57+M57+Q57","v":0},0,0]
[null,"5.2","Administrative Services",0,{"$nulls":3},0,{"$nulls":3},0,{"$nulls":3},0,{"$nulls":4},{"$f":"D58+H58+L58+P58+T58","v":0},0,0,0]
[null,"5.3","Information Systems",0,{"$nulls":3},0,{"$nulls":3},0,{"$nulls":3},0,{"$nulls":4},0,0,0,0]
[null,"5.4","Marketing Expenses",0,{"$nulls":3},0,{"$nulls":3},0,{"$nulls":3},0,{"$nulls":4},0,0,0,0]
[null,"5.5","General  Administration",0,{"$nulls":3},0,{"$nulls":3},0,{"$nulls":3},0,{"$nulls":4},0,0,0,0]
[null,"5.6","Compliance/Regulatory",0,{"$nulls":3},0,{"$nulls":3},0,{"$nulls":3},0,{"$nulls":4},0,0,0,0]
[null,"5.7","Total Administrative Expenses ",{"$f":"SUM(D57:D62)","v":0},0,0,0,0,0,0,0,0,0,0,0,0,0,0,0,0,0,0,0,0]
["Government-Mandated Assessments, Taxes, and Fees Other Than Income Taxes","6.1","State Premium Tax",{"$nulls":17},{"$f":"D64+H64+L64+P64+T64","v":0}]
[null,"6.2","Department of Insurance Assessments",{"$nulls":17},{"$f":"D65+H65+L65+P65+T65","v":0}]
[null,"6.3","Other 1",{"$nulls":17},0]
[null,"6.4","Other 2",{"$nulls":17},0]
[null,"6.5","Other 3",{"$nulls":17},0]
[null,"6.6","Total ",{"$f":"SUM(D64:D68)","v":0},{"$nulls":3},{"$f":"SUM(H64:H68)","v":0},{"$nulls":3},{"$f":"SUM(L64:L68)","v":0},{"$nulls":3},{"$f":"SUM(P64:P68)","v":0},{"$nulls":3},{"$f":"SUM(T64:T68)","v":0},{"$f":"SUM(U64:U68)","v":0}]
[null,"7.0","Grand Total Expenses",{"$f":"D54+D63+D69","v":0},{"$nulls":3},{"$f":"H54+H63+H69","v":0},{"$nulls":3},{"$f":"L54+L63+L69","v":0},{"$nulls":3},{"$f":"P54+P63+P69","v":0},{"$nulls":3},{"$f":"T54+T63+T69","v":0},{"$f":"U54+U63+U69","v":0}]
[null,"8.0","Underwriting Gain / (Loss)  --- AKA Pre-tax Earnings from Operations",{"$f":"D14-D70","v":0},{"$nulls":3},{"$f":"H14-H70","v":0},{"$nulls":3},{"$f":"L14-L70","v":0},{"$nulls":3},{"$f":"P14-P70","v":0},{"$nulls":3},{"$f":"T14-T70","v":0},{"$f":"U14-U70","v":0}]
[null,"9.0","Income Tax Expense",{"$nulls":17},{"$f":"D72+H72+L72+P72+T72","v":0}]
[null,"10.0","Net Underwriting Gain (Loss)",{"$f":"D71-D72","v":0},{"$nulls":3},{"$f":"H71-H72","v":0},{"$nulls":3},{"$f":"L71-L72","v":0},{"$nulls":3},{"$f":"P71-P72","v":0},{"$nulls":3},{"$f":"T71-T72","v":0},{"$f":"U71-U72","v":0}]

{"sheet":"LTC Rev-Exp Region 5","index":28,"n_rows":73,"n_cols":24,"rows_kept":73,"hidden":true,"merged":[[6,3,6,6],[6,7,6,10],[6,11,6,14],[6,15,6,18],[6,20,6,23],[9,0,9,2],[10,0,13,0],[14,0,15,2],[14,3,14,6],[14,7,14,10],[14,11,14,14],[14,15,14,18],[14,20,14,23],[16,0,25,0],[26,0,37,0],[38,0,42,0],[43,0,53,0],[54,0,55,2],[54,3,54,6],[54,7,54,10],[54,11,54,14],[54,15,54,18],[54,20,54,23],[56,0,62,0],[63,0,68,0]]}
["LONG TERM CARE -- REVENUE AND EXPENSE SCHEDULE - REGION 5"]
[]
["Health Plan:",null,{"$f":"'LTC Rev-Exp Summary'!C3","v":0}]
["Reporting Period:",null,{"$f":"IF('LTC Rev-Exp Summary'!C4=0,\"\",'LTC Rev-Exp Summary'!C4)","v":""}]
["Paid Through:",null,{"$f":"IF('LTC Rev-Exp Summary'!C5=0,\"\",'LTC Rev-Exp Summary'!C5)","v":""}]
["Region 5"]
[{"$nulls":3},"JANUARY - MARCH (Q1)",{"$nulls":3},"APRIL - JUNE (Q2)",{"$nulls":3},"JULY - SEPTEMBER (Q3)",{"$nulls":3},"OCTOBER - DECEMBER (Q4)",{"$nulls":4},"TOTAL (TO DATE)"]
[{"$nulls":3},"Total","Non-HCBS","HCBS","MED-P / SIXT","Total","Non-HCBS","HCBS","MED-P / SIXT","Total","Non-HCBS","HCBS","MED-P / SIXT","Total","Non-HCBS","HCBS","MED-P / SIXT","Prior Year Adjustments","Total","Non-HCBS","HCBS","MED-P / SIXT"]
["MEMBER MONTHS",null,null,{"$f":"SUM(E9:G9)","v":0},{"$nulls":3},{"$f":"SUM(I9:K9)","v":0},{"$nulls":3},{"$f":"SUM(M9:O9)","v":0},{"$nulls":3},{"$f":"SUM(Q9:S9)","v":0},{"$nulls":4},{"$f":"SUM(V9:X9)+T9","v":0},{"$f":"E9+I9+M9+Q9","v":0},{"$f":"F9+J9+N9+R9","v":0},{"$f":"G9+K9+O9+S9","v":0}]
["REVENUES"]
["Revenues",1.1,"Capitation",{"$nulls":17},{"$f":"D11+H11+L11+P11+T11","v":0}]
[null,1.2,"NH Rate Reconciliation",{"$nulls":17},{"$f":"D12+H12+L12+P12+T12","v":0}]
[null,"1.3","Other Revenue",{"$nulls":17},0]
[null,"1.4","Total Revenue",{"$f":"SUM(D11:D13)","v":0},{"$nulls":3},{"$f":"SUM(H11:H13)","v":0},{"$nulls":3},{"$f":"SUM(L11:L13)","v":0},{"$nulls":3},{"$f":"SUM(P11:P13)","v":0},{"$nulls":3},{"$f":"SUM(T11:T13)","v":0},{"$f":"SUM(U11:U13)","v":0}]
["EXPENSES",null,null,"JANUARY - MARCH (Q1)",{"$nulls":3},"APRIL - JUNE (Q2)",{"$nulls":3},"JULY - SEPTEMBER (Q3)",{"$nulls":3},"OCTOBER - DECEMBER (Q4)",{"$nulls":4},"TOTAL (TO DATE)"]
[{"$nulls":3},"Total","Non-HCBS","HCBS","MED-P / SIXT","Total","Non-HCBS","HCBS","MED-P / SIXT","Total","Non-HCBS","HCBS","MED-P / SIXT","Total","Non-HCBS","HCBS","MED-P / SIXT","Prior Calendar Year Adjustments","Total","Non-HCBS","HCBS","MED-P / SIXT"]
["LTC Nursing Facility (NF) & Hospice Services",2.1,"Nursing Facility Days (Medicaid)",{"$f":"SUM(E17:G17)","v":0},{"$nulls":3},{"$f":"SUM(I17:K17)","v":0},{"$nulls":3},{"$f":"SUM(M17:O17)","v":0},{"$nulls":3},{"$f":"SUM(Q17:S17)","v":0},{"$nulls":4},{"$f":"SUM(V17:X17)+T17","v":0},{"$f":"E17+I17+M17+Q17","v":0},0,0]
[null,2.2,"Nursing Facility Days (Crossover)",0,{"$nulls":3},0,{"$nulls":3},0,{"$nulls":3},0,{"$nulls":4},{"$f":"SUM(V18:X18)+T18","v":0},0,0,0]
[null,2.3,"Nursing Facility FFS (Medicaid)",0,{"$nulls":3},0,{"$nulls":3},0,{"$nulls":3},0,{"$nulls":4},0,0,0,0]
[null,2.4,"Nursing Facility FFS (Crossover)",0,{"$nulls":3},0,{"$nulls":3},0,{"$nulls":3},0,{"$nulls":4},0,0,0,0]
[null,2.5,"Hospice Days",0,{"$nulls":3},0,{"$nulls":3},0,{"$nulls":3},0,{"$nulls":4},0,0,0,0]
[null,2.6,"Hospice FFS",0,{"$nulls":3},0,{"$nulls":3},0,{"$nulls":3},0,{"$nulls":4},0,0,0,0]
[null,2.7,"Ending IBNP for NF & Hospice Services",0,{"$nulls":3},0,{"$nulls":3},0,{"$nulls":3},0,{"$nulls":4},0,0,0,0]
[null,2.8,"NF & Hospice Subcapitated Services",0,{"$nulls":3},0,{"$nulls":3},0,{"$nulls":3},0,{"$nulls":4},0,0,0,0]
[null,2.9,"NF & Hospice Settlements/AP",0,{"$nulls":3},0,{"$nulls":3},0,{"$nulls":3},0,{"$nulls":4},0,0,0,0]
[null,{"v":2.1,"d":"2.10"},"Total Nursing Facility and Hospice",{"$f":"SUM(D19:D20,D22:D25)","v":0},0,0,0,0,0,0,0,0,0,0,0,0,0,0,0,0,0,0,0,0]
["Long Term Care Services",2.11,"Assisted Living FFS",{"$f":"SUM(E27:G27)","v":0},{"$nulls":3},{"$f":"SUM(I27:K27)","v":0},{"$nulls":3},{"$f":"SUM(M27:O27)","v":0},{"$nulls":3},{"$f":"SUM(Q27:S27)","v":0},{"$nulls":4},{"$f":"SUM(V27:X27)+T27","v":0},{"$f":"E27+I27+M27+Q27","v":0},0,0]
[null,2.12,"Home Health FFS",0,{"$nulls":3},0,{"$nulls":3},0,{"$nulls":3},0,{"$nulls":4},{"$f":"SUM(V28:X28)+T28","v":0},0,0,0]
[null,2.13,"Medical Equipment/Supplies FFS",0,{"$nulls":3},0,{"$nulls":3},0,{"$nulls":3},0,{"$nulls":4},0,0,0,0]
[null,2.14,"Therapy Services FFS",0,{"$nulls":3},0,{"$nulls":3},0,{"$nulls":3},0,{"$nulls":4},0,0,0,0]
[null,2.15,"Transportation Services FFS",0,{"$nulls":3},0,{"$nulls":3},0,{"$nulls":3},0,{"$nulls":4},0,0,0,0]
[null,2.16,"Case Management (Plan Provided) FFS",0,{"$nulls":3},0,{"$nulls":3},0,{"$nulls":3},0,{"$nulls":4},0,0,0,0]
[null,2.17,"Case Management (non-Plan Provided) FFS",0,{"$nulls":3},0,{"$nulls":3},0,{"$nulls":3},0,{"$nulls":4},0,0,0,0]
[null,2.18,"Home & Community Based Services  (HCBS) FFS",0,{"$nulls":3},0,{"$nulls":3},0,{"$nulls":3},0,{"$nulls":4},0,0,0,0]
[null,2.19,"Subcapitated LTC Services (excluding NF)",0,{"$nulls":3},0,{"$nulls":3},0,{"$nulls":3},0,{"$nulls":4},0,0,0,0]
[null,{"v":2.2,"d":"2.20"},"Ending IBNP for Long Term Care Services (excluding NF)",0,{"$nulls":3},0,{"$nulls":3},0,{"$nulls":3},0,{"$nulls":4},0,0,0,{"$f":"G36+K36+O36+S36","v":0}]
[null,2.21,"LTC Services Settlements/AP (excluding NF)",0,{"$nulls":3},0,{"$nulls":3},0,{"$nulls":3},0,{"$nulls":4},0,{"$f":"E37+I37+M37+Q37","v":0},{"$f":"F37+J37+N37+R37","v":0},{"$f":"G37+K37+O37+S37","v":0}]
[null,2.22,"Grand Total LTC Services",{"$f":"SUM(D26,D27:D37)","v":0},{"$f":"SUM(E26:E37)","v":0},0,0,0,0,0,0,0,0,0,0,0,0,0,0,0,0,0,0,0]
["Expanded Benefits","3.1","Expanded Benefits FFS",{"$f":"SUM(E39:G39)","v":0},{"$nulls":3},{"$f":"SUM(I39:K39)","v":0},{"$nulls":3},{"$f":"SUM(M39:O39)","v":0},{"$nulls":3},{"$f":"SUM(Q39:S39)","v":0},{"$nulls":4},{"$f":"SUM(V39:X39)+T39","v":0},{"$f":"E39+I39+M39+Q39","v":0},0,0]
[null,"3.2","Expanded Benefits Subcapitation",{"$f":"SUM(E40:G40)","v":0},{"$nulls":3},{"$f":"SUM(I40:K40)","v":0},{"$nulls":3},{"$f":"SUM(M40:O40)","v":0},{"$nulls":3},{"$f":"SUM(Q40:S40)","v":0},{"$nulls":4},{"$f":"SUM(V40:X40)+T40","v":0},0,0,0]
[null,"3.3","Ending IBNP for Expanded Benefits",{"$f":"SUM(E41:G41)","v":0},{"$nulls":3},{"$f":"SUM(I41:K41)","v":0},{"$nulls":3},{"$f":"SUM(M41:O41)","v":0},{"$nulls":3},{"$f":"SUM(Q41:S41)","v":0},{"$nulls":4},0,0,0,0]
[null,3.4,"Expanded Benefits Services Settlements",{"$f":"SUM(E42:G42)","v":0},{"$nulls":3},{"$f":"SUM(I42:K42)","v":0},{"$nulls":3},{"$f":"SUM(M42:O42)","v":0},{"$nulls":3},{"$f":"SUM(Q42:S42)","v":0},{"$nulls":4},0,0,0,0]
[null,3.5,"Total Expanded Benefits",{"$f":"SUM(D39:D42)","v":0},0,0,0,0,0,0,0,0,0,0,0,0,0,0,0,0,0,0,0,0]
["Totals Before and After Reinsurance","4.1","Total Services Paid Directly FFS",{"$f":"SUM(D19+D20+D22, D27:D34)+D39","v":0},{"$f":"SUM(E19+E20+E22, E27:E34)+E39","v":0},0,0,{"$f":"SUM(H19+H20+H22, H27:H34)+H39","v":0},0,0,0,{"$f":"SUM(L19+L20+L22, L27:L34)+L39","v":0},0,0,0,{"$f":"SUM(P19+P20+P22, P27:P34)+P39","v":0},0,0,0,0,{"$f":"SUM(U19+U20+U22, U27:U34)+U39","v":0},0,0,0]
[null,"4.2","Total Services Paid Directly -- IBNP",{"$f":"D23+D36+D41","v":0},0,0,0,0,0,0,0,0,0,0,0,0,0,0,0,0,0,0,0,0]
[null,"4.3","Total Services Paid through Subcapitation",{"$f":"D24+D35+D40","v":0},0,0,0,0,0,0,0,0,0,0,0,0,0,0,0,0,0,0,0,0]
[null,4.4,"Total Services Paid by Settlements/AP",{"$f":"D25+D37+D42","v":0},0,0,0,0,0,0,0,0,0,0,0,0,0,0,0,0,0,0,0,0]
[null,4.5,"TPL & Fraud/Abuse Recoveries",{"$f":"SUM(E48:G48)","v":0},{"$nulls":3},{"$f":"SUM(I48:K48)","v":0},{"$nulls":3},{"$f":"SUM(M48:O48)","v":0},{"$nulls":3},{"$f":"SUM(Q48:S48)","v":0},{"$nulls":4},{"$f":"SUM(V48:X48)+T48","v":0},{"$f":"E48+I48+M48+Q48","v":0},0,0]
[null,"4.6.1","Premium Deficiency Reserve",{"$f":"SUM(E49:G49)","v":0},{"$nulls":3},{"$f":"SUM(I49:K49)","v":0},{"$nulls":3},{"$f":"SUM(M49:O49)","v":0},{"$nulls":3},{"$f":"SUM(Q49:S49)","v":0},{"$nulls":4},{"$f":"SUM(V49:X49)+T49","v":0},0,0,0]
[null,"4.7","Subtotal Benefit Expense before Reinsurance",{"$f":"SUM(D44:D49)","v":0},0,0,0,0,0,0,0,0,0,0,0,0,0,0,0,0,0,0,0,0]
[null,"4.8","Reinsurance Premiums",{"$f":"SUM(E51:G51)","v":0},{"$nulls":3},{"$f":"SUM(I51:K51)","v":0},{"$nulls":3},{"$f":"SUM(M51:O51)","v":0},{"$nulls":3},{"$f":"SUM(Q51:S51)","v":0},{"$nulls":4},{"$f":"SUM(V51:X51)+T51","v":0},{"$f":"E51+I51+M51+Q51","v":0},0,0]
[null,"4.9","Reinsurance Recoveries",{"$f":"SUM(E52:G52)","v":0},{"$nulls":3},{"$f":"SUM(I52:K52)","v":0},{"$nulls":3},{"$f":"SUM(M52:O52)","v":0},{"$nulls":3},{"$f":"SUM(Q52:S52)","v":0},{"$nulls":4},{"$f":"SUM(V52:X52)+T52","v":0},0,0,0]
[null,"4.10","Net Cost of Reinsurance",{"$f":"SUM(D51:D52)","v":0},0,0,0,0,0,0,0,0,0,0,0,0,0,0,0,0,0,0,0,0]
[null,"4.11","Grand Total Service Benefit Expense Net of Reinsurance",{"$f":"D50+D53","v":0},0,0,0,0,0,0,0,0,0,0,0,0,0,0,0,0,0,0,0,0]
["Administrative Expenses, Government-Mandated Assessments, Taxes, and Fees ",null,null,"JANUARY - MARCH (Q1)",{"$nulls":3},"APRIL - JUNE (Q2)",{"$nulls":3},"JULY - SEPTEMBER (Q3)",{"$nulls":3},"OCTOBER - DECEMBER (Q4)",{"$nulls":4},"TOTAL (TO DATE)"]
[{"$nulls":3},"Total","Non-HCBS","HCBS","MED-P / SIXT","Total","Non-HCBS","HCBS","MED-P / SIXT","Total","Non-HCBS","HCBS","MED-P / SIXT","Total","Non-HCBS","HCBS","MED-P / SIXT","Prior Calendar Year Adjustments","Total","Non-HCBS","HCBS","MED-P / SIXT"]
["Administrative Expenses","5.1","Salaries & Benefits",{"$f":"SUM(E57:G57)","v":0},{"$nulls":3},{"$f":"SUM(I57:K57)","v":0},{"$nulls":3},{"$f":"SUM(M57:O57)","v":0},{"$nulls":3},{"$f":"SUM(Q57:S57)","v":0},{"$nulls":4},{"$f":"D57+H57+L57+P57+T57","v":0},{"$f":"E57+I57+M57+Q57","v":0},0,0]
[null,"5.2","Administrative Services",0,{"$nulls":3},0,{"$nulls":3},0,{"$nulls":3},0,{"$nulls":4},{"$f":"D58+H58+L58+P58+T58","v":0},0,0,0]
[null,"5.3","Information Systems",0,{"$nulls":3},0,{"$nulls":3},0,{"$nulls":3},0,{"$nulls":4},0,0,0,0]
[null,"5.4","Marketing Expenses",0,{"$nulls":3},0,{"$nulls":3},0,{"$nulls":3},0,{"$nulls":4},0,0,0,0]
[null,"5.5","General  Administration",0,{"$nulls":3},0,{"$nulls":3},0,{"$nulls":3},0,{"$nulls":4},0,0,0,0]
[null,"5.6","Compliance/Regulatory",0,{"$nulls":3},0,{"$nulls":3},0,{"$nulls":3},0,{"$nulls":4},0,0,0,0]
[null,"5.7","Total Administrative Expenses ",{"$f":"SUM(D57:D62)","v":0},0,0,0,0,0,0,0,0,0,0,0,0,0,0,0,0,0,0,0,0]
["Government-Mandated Assessments, Taxes, and Fees Other Than Income Taxes","6.1","State Premium Tax",{"$nulls":17},{"$f":"D64+H64+L64+P64+T64","v":0}]
[null,"6.2","Department of Insurance Assessments",{"$nulls":17},{"$f":"D65+H65+L65+P65+T65","v":0}]
[null,"6.3","Other 1",{"$nulls":17},0]
[null,"6.4","Other 2",{"$nulls":17},0]
[null,"6.5","Other 3",{"$nulls":17},0]
[null,"6.6","Total ",{"$f":"SUM(D64:D68)","v":0},{"$nulls":3},{"$f":"SUM(H64:H68)","v":0},{"$nulls":3},{"$f":"SUM(L64:L68)","v":0},{"$nulls":3},{"$f":"SUM(P64:P68)","v":0},{"$nulls":3},{"$f":"SUM(T64:T68)","v":0},{"$f":"SUM(U64:U68)","v":0}]
[null,"7.0","Grand Total Expenses",{"$f":"D54+D63+D69","v":0},{"$nulls":3},{"$f":"H54+H63+H69","v":0},{"$nulls":3},{"$f":"L54+L63+L69","v":0},{"$nulls":3},{"$f":"P54+P63+P69","v":0},{"$nulls":3},{"$f":"T54+T63+T69","v":0},{"$f":"U54+U63+U69","v":0}]
[null,"8.0","Underwriting Gain / (Loss)  --- AKA Pre-tax Earnings from Operations",{"$f":"D14-D70","v":0},{"$nulls":3},{"$f":"H14-H70","v":0},{"$nulls":3},{"$f":"L14-L70","v":0},{"$nulls":3},{"$f":"P14-P70","v":0},{"$nulls":3},{"$f":"T14-T70","v":0},{"$f":"U14-U70","v":0}]
[null,"9.0","Income Tax Expense",{"$nulls":17},{"$f":"D72+H72+L72+P72+T72","v":0}]
[null,"10.0","Net Underwriting Gain (Loss)",{"$f":"D71-D72","v":0},{"$nulls":3},{"$f":"H71-H72","v":0},{"$nulls":3},{"$f":"L71-L72","v":0},{"$nulls":3},{"$f":"P71-P72","v":0},{"$nulls":3},{"$f":"T71-T72","v":0},{"$f":"U71-U72","v":0}]

{"sheet":"LTC Rev-Exp Region 6","index":29,"n_rows":73,"n_cols":24,"rows_kept":73,"hidden":true,"merged":[[6,3,6,6],[6,7,6,10],[6,11,6,14],[6,15,6,18],[6,20,6,23],[9,0,9,2],[10,0,13,0],[14,0,15,2],[14,3,14,6],[14,7,14,10],[14,11,14,14],[14,15,14,18],[14,20,14,23],[16,0,25,0],[26,0,37,0],[38,0,42,0],[43,0,53,0],[54,0,55,2],[54,3,54,6],[54,7,54,10],[54,11,54,14],[54,15,54,18],[54,20,54,23],[56,0,62,0],[63,0,68,0]]}
["LONG TERM CARE -- REVENUE AND EXPENSE SCHEDULE - REGION 6"]
[]
["Health Plan:",null,{"$f":"'LTC Rev-Exp Summary'!C3","v":0}]
["Reporting Period:",null,{"$f":"IF('LTC Rev-Exp Summary'!C4=0,\"\",'LTC Rev-Exp Summary'!C4)","v":""}]
["Paid Through:",null,{"$f":"IF('LTC Rev-Exp Summary'!C5=0,\"\",'LTC Rev-Exp Summary'!C5)","v":""}]
["Region 6"]
[{"$nulls":3},"JANUARY - MARCH (Q1)",{"$nulls":3},"APRIL - JUNE (Q2)",{"$nulls":3},"JULY - SEPTEMBER (Q3)",{"$nulls":3},"OCTOBER - DECEMBER (Q4)",{"$nulls":4},"TOTAL (TO DATE)"]
[{"$nulls":3},"Total","Non-HCBS","HCBS","MED-P / SIXT","Total","Non-HCBS","HCBS","MED-P / SIXT","Total","Non-HCBS","HCBS","MED-P / SIXT","Total","Non-HCBS","HCBS","MED-P / SIXT","Prior Year Adjustments","Total","Non-HCBS","HCBS","MED-P / SIXT"]
["MEMBER MONTHS",null,null,{"$f":"SUM(E9:G9)","v":0},{"$nulls":3},{"$f":"SUM(I9:K9)","v":0},{"$nulls":3},{"$f":"SUM(M9:O9)","v":0},{"$nulls":3},{"$f":"SUM(Q9:S9)","v":0},{"$nulls":4},{"$f":"SUM(V9:X9)+T9","v":0},{"$f":"E9+I9+M9+Q9","v":0},{"$f":"F9+J9+N9+R9","v":0},{"$f":"G9+K9+O9+S9","v":0}]
["REVENUES"]
["Revenues",1.1,"Capitation",{"$nulls":17},{"$f":"D11+H11+L11+P11+T11","v":0}]
[null,1.2,"NH Rate Reconciliation",{"$nulls":17},{"$f":"D12+H12+L12+P12+T12","v":0}]
[null,"1.3","Other Revenue",{"$nulls":17},0]
[null,"1.4","Total Revenue",{"$f":"SUM(D11:D13)","v":0},{"$nulls":3},{"$f":"SUM(H11:H13)","v":0},{"$nulls":3},{"$f":"SUM(L11:L13)","v":0},{"$nulls":3},{"$f":"SUM(P11:P13)","v":0},{"$nulls":3},{"$f":"SUM(T11:T13)","v":0},{"$f":"SUM(U11:U13)","v":0}]
["EXPENSES",null,null,"JANUARY - MARCH (Q1)",{"$nulls":3},"APRIL - JUNE (Q2)",{"$nulls":3},"JULY - SEPTEMBER (Q3)",{"$nulls":3},"OCTOBER - DECEMBER (Q4)",{"$nulls":4},"TOTAL (TO DATE)"]
[{"$nulls":3},"Total","Non-HCBS","HCBS","MED-P / SIXT","Total","Non-HCBS","HCBS","MED-P / SIXT","Total","Non-HCBS","HCBS","MED-P / SIXT","Total","Non-HCBS","HCBS","MED-P / SIXT","Prior Calendar Year Adjustments","Total","Non-HCBS","HCBS","MED-P / SIXT"]
["LTC Nursing Facility (NF) & Hospice Services",2.1,"Nursing Facility Days (Medicaid)",{"$f":"SUM(E17:G17)","v":0},{"$nulls":3},{"$f":"SUM(I17:K17)","v":0},{"$nulls":3},{"$f":"SUM(M17:O17)","v":0},{"$nulls":3},{"$f":"SUM(Q17:S17)","v":0},{"$nulls":4},{"$f":"SUM(V17:X17)+T17","v":0},{"$f":"E17+I17+M17+Q17","v":0},0,0]
[null,2.2,"Nursing Facility Days (Crossover)",0,{"$nulls":3},0,{"$nulls":3},0,{"$nulls":3},0,{"$nulls":4},{"$f":"SUM(V18:X18)+T18","v":0},0,0,0]
[null,2.3,"Nursing Facility FFS (Medicaid)",0,{"$nulls":3},0,{"$nulls":3},0,{"$nulls":3},0,{"$nulls":4},0,0,0,0]
[null,2.4,"Nursing Facility FFS (Crossover)",0,{"$nulls":3},0,{"$nulls":3},0,{"$nulls":3},0,{"$nulls":4},0,0,0,0]
[null,2.5,"Hospice Days",0,{"$nulls":3},0,{"$nulls":3},0,{"$nulls":3},0,{"$nulls":4},0,0,0,0]
[null,2.6,"Hospice FFS",0,{"$nulls":3},0,{"$nulls":3},0,{"$nulls":3},0,{"$nulls":4},0,0,0,0]
[null,2.7,"Ending IBNP for NF & Hospice Services",0,{"$nulls":3},0,{"$nulls":3},0,{"$nulls":3},0,{"$nulls":4},0,0,0,0]
[null,2.8,"NF & Hospice Subcapitated Services",0,{"$nulls":3},0,{"$nulls":3},0,{"$nulls":3},0,{"$nulls":4},0,0,0,0]
[null,2.9,"NF & Hospice Settlements/AP",0,{"$nulls":3},0,{"$nulls":3},0,{"$nulls":3},0,{"$nulls":4},0,0,0,0]
[null,{"v":2.1,"d":"2.10"},"Total Nursing Facility and Hospice",{"$f":"SUM(D19:D20,D22:D25)","v":0},0,0,0,0,0,0,0,0,0,0,0,0,0,0,0,0,0,0,0,0]
["Long Term Care Services",2.11,"Assisted Living FFS",{"$f":"SUM(E27:G27)","v":0},{"$nulls":3},{"$f":"SUM(I27:K27)","v":0},{"$nulls":3},{"$f":"SUM(M27:O27)","v":0},{"$nulls":3},{"$f":"SUM(Q27:S27)","v":0},{"$nulls":4},{"$f":"SUM(V27:X27)+T27","v":0},{"$f":"E27+I27+M27+Q27","v":0},0,0]
[null,2.12,"Home Health FFS",0,{"$nulls":3},0,{"$nulls":3},0,{"$nulls":3},0,{"$nulls":4},{"$f":"SUM(V28:X28)+T28","v":0},0,0,0]
[null,2.13,"Medical Equipment/Supplies FFS",0,{"$nulls":3},0,{"$nulls":3},0,{"$nulls":3},0,{"$nulls":4},0,0,0,0]
[null,2.14,"Therapy Services FFS",0,{"$nulls":3},0,{"$nulls":3},0,{"$nulls":3},0,{"$nulls":4},0,0,0,0]
[null,2.15,"Transportation Services FFS",0,{"$nulls":3},0,{"$nulls":3},0,{"$nulls":3},0,{"$nulls":4},0,0,0,0]
[null,2.16,"Case Management (Plan Provided) FFS",0,{"$nulls":3},0,{"$nulls":3},0,{"$nulls":3},0,{"$nulls":4},0,0,0,0]
[null,2.17,"Case Management (non-Plan Provided) FFS",0,{"$nulls":3},0,{"$nulls":3},0,{"$nulls":3},0,{"$nulls":4},0,0,0,0]
[null,2.18,"Home & Community Based Services  (HCBS) FFS",0,{"$nulls":3},0,{"$nulls":3},0,{"$nulls":3},0,{"$nulls":4},0,0,0,0]
[null,2.19,"Subcapitated LTC Services (excluding NF)",0,{"$nulls":3},0,{"$nulls":3},0,{"$nulls":3},0,{"$nulls":4},0,0,0,0]
[null,{"v":2.2,"d":"2.20"},"Ending IBNP for Long Term Care Services (excluding NF)",0,{"$nulls":3},0,{"$nulls":3},0,{"$nulls":3},0,{"$nulls":4},0,0,0,{"$f":"G36+K36+O36+S36","v":0}]
[null,2.21,"LTC Services Settlements/AP (excluding NF)",0,{"$nulls":3},0,{"$nulls":3},0,{"$nulls":3},0,{"$nulls":4},0,{"$f":"E37+I37+M37+Q37","v":0},{"$f":"F37+J37+N37+R37","v":0},{"$f":"G37+K37+O37+S37","v":0}]
[null,2.22,"Grand Total LTC Services",{"$f":"SUM(D26,D27:D37)","v":0},{"$f":"SUM(E26:E37)","v":0},0,0,0,0,0,0,0,0,0,0,0,0,0,0,0,0,0,0,0]
["Expanded Benefits","3.1","Expanded Benefits FFS",{"$f":"SUM(E39:G39)","v":0},{"$nulls":3},{"$f":"SUM(I39:K39)","v":0},{"$nulls":3},{"$f":"SUM(M39:O39)","v":0},{"$nulls":3},{"$f":"SUM(Q39:S39)","v":0},{"$nulls":4},{"$f":"SUM(V39:X39)+T39","v":0},{"$f":"E39+I39+M39+Q39","v":0},0,0]
[null,"3.2","Expanded Benefits Subcapitation",{"$f":"SUM(E40:G40)","v":0},{"$nulls":3},{"$f":"SUM(I40:K40)","v":0},{"$nulls":3},{"$f":"SUM(M40:O40)","v":0},{"$nulls":3},{"$f":"SUM(Q40:S40)","v":0},{"$nulls":4},{"$f":"SUM(V40:X40)+T40","v":0},0,0,0]
[null,"3.3","Ending IBNP for Expanded Benefits",{"$f":"SUM(E41:G41)","v":0},{"$nulls":3},{"$f":"SUM(I41:K41)","v":0},{"$nulls":3},{"$f":"SUM(M41:O41)","v":0},{"$nulls":3},{"$f":"SUM(Q41:S41)","v":0},{"$nulls":4},0,0,0,0]
[null,3.4,"Expanded Benefits Services Settlements",{"$f":"SUM(E42:G42)","v":0},{"$nulls":3},{"$f":"SUM(I42:K42)","v":0},{"$nulls":3},{"$f":"SUM(M42:O42)","v":0},{"$nulls":3},{"$f":"SUM(Q42:S42)","v":0},{"$nulls":4},0,0,0,0]
[null,3.5,"Total Expanded Benefits",{"$f":"SUM(D39:D42)","v":0},0,0,0,0,0,0,0,0,0,0,0,0,0,0,0,0,0,0,0,0]
["Totals Before and After Reinsurance","4.1","Total Services Paid Directly FFS",{"$f":"SUM(D19+D20+D22, D27:D34)+D39","v":0},{"$f":"SUM(E19+E20+E22, E27:E34)+E39","v":0},0,0,{"$f":"SUM(H19+H20+H22, H27:H34)+H39","v":0},0,0,0,{"$f":"SUM(L19+L20+L22, L27:L34)+L39","v":0},0,0,0,{"$f":"SUM(P19+P20+P22, P27:P34)+P39","v":0},0,0,0,0,{"$f":"SUM(U19+U20+U22, U27:U34)+U39","v":0},0,0,0]
[null,"4.2","Total Services Paid Directly -- IBNP",{"$f":"D23+D36+D41","v":0},0,0,0,0,0,0,0,0,0,0,0,0,0,0,0,0,0,0,0,0]
[null,"4.3","Total Services Paid through Subcapitation",{"$f":"D24+D35+D40","v":0},0,0,0,0,0,0,0,0,0,0,0,0,0,0,0,0,0,0,0,0]
[null,4.4,"Total Services Paid by Settlements/AP",{"$f":"D25+D37+D42","v":0},0,0,0,0,0,0,0,0,0,0,0,0,0,0,0,0,0,0,0,0]
[null,4.5,"TPL & Fraud/Abuse Recoveries",{"$f":"SUM(E48:G48)","v":0},{"$nulls":3},{"$f":"SUM(I48:K48)","v":0},{"$nulls":3},{"$f":"SUM(M48:O48)","v":0},{"$nulls":3},{"$f":"SUM(Q48:S48)","v":0},{"$nulls":4},{"$f":"SUM(V48:X48)+T48","v":0},{"$f":"E48+I48+M48+Q48","v":0},0,0]
[null,"4.6.1","Premium Deficiency Reserve",{"$f":"SUM(E49:G49)","v":0},{"$nulls":3},{"$f":"SUM(I49:K49)","v":0},{"$nulls":3},{"$f":"SUM(M49:O49)","v":0},{"$nulls":3},{"$f":"SUM(Q49:S49)","v":0},{"$nulls":4},{"$f":"SUM(V49:X49)+T49","v":0},0,0,0]
[null,"4.7","Subtotal Benefit Expense before Reinsurance",{"$f":"SUM(D44:D49)","v":0},0,0,0,0,0,0,0,0,0,0,0,0,0,0,0,0,0,0,0,0]
[null,"4.8","Reinsurance Premiums",{"$f":"SUM(E51:G51)","v":0},{"$nulls":3},{"$f":"SUM(I51:K51)","v":0},{"$nulls":3},{"$f":"SUM(M51:O51)","v":0},{"$nulls":3},{"$f":"SUM(Q51:S51)","v":0},{"$nulls":4},{"$f":"SUM(V51:X51)+T51","v":0},{"$f":"E51+I51+M51+Q51","v":0},0,0]
[null,"4.9","Reinsurance Recoveries",{"$f":"SUM(E52:G52)","v":0},{"$nulls":3},{"$f":"SUM(I52:K52)","v":0},{"$nulls":3},{"$f":"SUM(M52:O52)","v":0},{"$nulls":3},{"$f":"SUM(Q52:S52)","v":0},{"$nulls":4},{"$f":"SUM(V52:X52)+T52","v":0},0,0,0]
[null,"4.10","Net Cost of Reinsurance",{"$f":"SUM(D51:D52)","v":0},0,0,0,0,0,0,0,0,0,0,0,0,0,0,0,0,0,0,0,0]
[null,"4.11","Grand Total Service Benefit Expense Net of Reinsurance",{"$f":"D50+D53","v":0},0,0,0,0,0,0,0,0,0,0,0,0,0,0,0,0,0,0,0,0]
["Administrative Expenses, Government-Mandated Assessments, Taxes, and Fees ",null,null,"JANUARY - MARCH (Q1)",{"$nulls":3},"APRIL - JUNE (Q2)",{"$nulls":3},"JULY - SEPTEMBER (Q3)",{"$nulls":3},"OCTOBER - DECEMBER (Q4)",{"$nulls":4},"TOTAL (TO DATE)"]
[{"$nulls":3},"Total","Non-HCBS","HCBS","MED-P / SIXT","Total","Non-HCBS","HCBS","MED-P / SIXT","Total","Non-HCBS","HCBS","MED-P / SIXT","Total","Non-HCBS","HCBS","MED-P / SIXT","Prior Calendar Year Adjustments","Total","Non-HCBS","HCBS","MED-P / SIXT"]
["Administrative Expenses","5.1","Salaries & Benefits",{"$f":"SUM(E57:G57)","v":0},{"$nulls":3},{"$f":"SUM(I57:K57)","v":0},{"$nulls":3},{"$f":"SUM(M57:O57)","v":0},{"$nulls":3},{"$f":"SUM(Q57:S57)","v":0},{"$nulls":4},{"$f":"D57+H57+L57+P57+T57","v":0},{"$f":"E57+I57+M57+Q57","v":0},0,0]
[null,"5.2","Administrative Services",0,{"$nulls":3},0,{"$nulls":3},0,{"$nulls":3},0,{"$nulls":4},{"$f":"D58+H58+L58+P58+T58","v":0},0,0,0]
[null,"5.3","Information Systems",0,{"$nulls":3},0,{"$nulls":3},0,{"$nulls":3},0,{"$nulls":4},0,0,0,0]
[null,"5.4","Marketing Expenses",0,{"$nulls":3},0,{"$nulls":3},0,{"$nulls":3},0,{"$nulls":4},0,0,0,0]
[null,"5.5","General  Administration",0,{"$nulls":3},0,{"$nulls":3},0,{"$nulls":3},0,{"$nulls":4},0,0,0,0]
[null,"5.6","Compliance/Regulatory",0,{"$nulls":3},0,{"$nulls":3},0,{"$nulls":3},0,{"$nulls":4},0,0,0,0]
[null,"5.7","Total Administrative Expenses ",{"$f":"SUM(D57:D62)","v":0},0,0,0,0,0,0,0,0,0,0,0,0,0,0,0,0,0,0,0,0]
["Government-Mandated Assessments, Taxes, and Fees Other Than Income Taxes","6.1","State Premium Tax",{"$nulls":17},{"$f":"D64+H64+L64+P64+T64","v":0}]
[null,"6.2","Department of Insurance Assessments",{"$nulls":17},{"$f":"D65+H65+L65+P65+T65","v":0}]
[null,"6.3","Other 1",{"$nulls":17},0]
[null,"6.4","Other 2",{"$nulls":17},0]
[null,"6.5","Other 3",{"$nulls":17},0]
[null,"6.6","Total ",{"$f":"SUM(D64:D68)","v":0},{"$nulls":3},{"$f":"SUM(H64:H68)","v":0},{"$nulls":3},{"$f":"SUM(L64:L68)","v":0},{"$nulls":3},{"$f":"SUM(P64:P68)","v":0},{"$nulls":3},{"$f":"SUM(T64:T68)","v":0},{"$f":"SUM(U64:U68)","v":0}]
[null,"7.0","Grand Total Expenses",{"$f":"D54+D63+D69","v":0},{"$nulls":3},{"$f":"H54+H63+H69","v":0},{"$nulls":3},{"$f":"L54+L63+L69","v":0},{"$nulls":3},{"$f":"P54+P63+P69","v":0},{"$nulls":3},{"$f":"T54+T63+T69","v":0},{"$f":"U54+U63+U69","v":0}]
[null,"8.0","Underwriting Gain / (Loss)  --- AKA Pre-tax Earnings from Operations",{"$f":"D14-D70","v":0},{"$nulls":3},{"$f":"H14-H70","v":0},{"$nulls":3},{"$f":"L14-L70","v":0},{"$nulls":3},{"$f":"P14-P70","v":0},{"$nulls":3},{"$f":"T14-T70","v":0},{"$f":"U14-U70","v":0}]
[null,"9.0","Income Tax Expense",{"$nulls":17},{"$f":"D72+H72+L72+P72+T72","v":0}]
[null,"10.0","Net Underwriting Gain (Loss)",{"$f":"D71-D72","v":0},{"$nulls":3},{"$f":"H71-H72","v":0},{"$nulls":3},{"$f":"L71-L72","v":0},{"$nulls":3},{"$f":"P71-P72","v":0},{"$nulls":3},{"$f":"T71-T72","v":0},{"$f":"U71-U72","v":0}]

{"sheet":"LTC Rev-Exp Region 7","index":30,"n_rows":73,"n_cols":24,"rows_kept":73,"hidden":true,"merged":[[6,3,6,6],[6,7,6,10],[6,11,6,14],[6,15,6,18],[6,20,6,23],[9,0,9,2],[10,0,13,0],[14,0,15,2],[14,3,14,6],[14,7,14,10],[14,11,14,14],[14,15,14,18],[14,20,14,23],[16,0,25,0],[26,0,37,0],[38,0,42,0],[43,0,53,0],[54,0,55,2],[54,3,54,6],[54,7,54,10],[54,11,54,14],[54,15,54,18],[54,20,54,23],[56,0,62,0],[63,0,68,0]]}
["LONG TERM CARE -- REVENUE AND EXPENSE SCHEDULE - REGION 7"]
[]
["Health Plan:",null,{"$f":"'LTC Rev-Exp Summary'!C3","v":0}]
["Reporting Period:",null,{"$f":"IF('LTC Rev-Exp Summary'!C4=0,\"\",'LTC Rev-Exp Summary'!C4)","v":""}]
["Paid Through:",null,{"$f":"IF('LTC Rev-Exp Summary'!C5=0,\"\",'LTC Rev-Exp Summary'!C5)","v":""}]
["Region 7"]
[{"$nulls":3},"JANUARY - MARCH (Q1)",{"$nulls":3},"APRIL - JUNE (Q2)",{"$nulls":3},"JULY - SEPTEMBER (Q3)",{"$nulls":3},"OCTOBER - DECEMBER (Q4)",{"$nulls":4},"TOTAL (TO DATE)"]
[{"$nulls":3},"Total","Non-HCBS","HCBS","MED-P / SIXT","Total","Non-HCBS","HCBS","MED-P / SIXT","Total","Non-HCBS","HCBS","MED-P / SIXT","Total","Non-HCBS","HCBS","MED-P / SIXT","Prior Year Adjustments","Total","Non-HCBS","HCBS","MED-P / SIXT"]
["MEMBER MONTHS",null,null,{"$f":"SUM(E9:G9)","v":0},{"$nulls":3},{"$f":"SUM(I9:K9)","v":0},{"$nulls":3},{"$f":"SUM(M9:O9)","v":0},{"$nulls":3},{"$f":"SUM(Q9:S9)","v":0},{"$nulls":4},{"$f":"SUM(V9:X9)+T9","v":0},{"$f":"E9+I9+M9+Q9","v":0},{"$f":"F9+J9+N9+R9","v":0},{"$f":"G9+K9+O9+S9","v":0}]
["REVENUES"]
["Revenues",1.1,"Capitation",{"$nulls":17},{"$f":"D11+H11+L11+P11+T11","v":0}]
[null,1.2,"NH Rate Reconciliation",{"$nulls":17},{"$f":"D12+H12+L12+P12+T12","v":0}]
[null,"1.3","Other Revenue",{"$nulls":17},0]
[null,"1.4","Total Revenue",{"$f":"SUM(D11:D13)","v":0},{"$nulls":3},{"$f":"SUM(H11:H13)","v":0},{"$nulls":3},{"$f":"SUM(L11:L13)","v":0},{"$nulls":3},{"$f":"SUM(P11:P13)","v":0},{"$nulls":3},{"$f":"SUM(T11:T13)","v":0},{"$f":"SUM(U11:U13)","v":0}]
["EXPENSES",null,null,"JANUARY - MARCH (Q1)",{"$nulls":3},"APRIL - JUNE (Q2)",{"$nulls":3},"JULY - SEPTEMBER (Q3)",{"$nulls":3},"OCTOBER - DECEMBER (Q4)",{"$nulls":4},"TOTAL (TO DATE)"]
[{"$nulls":3},"Total","Non-HCBS","HCBS","MED-P / SIXT","Total","Non-HCBS","HCBS","MED-P / SIXT","Total","Non-HCBS","HCBS","MED-P / SIXT","Total","Non-HCBS","HCBS","MED-P / SIXT","Prior Calendar Year Adjustments","Total","Non-HCBS","HCBS","MED-P / SIXT"]
["LTC Nursing Facility (NF) & Hospice Services",2.1,"Nursing Facility Days (Medicaid)",{"$f":"SUM(E17:G17)","v":0},{"$nulls":3},{"$f":"SUM(I17:K17)","v":0},{"$nulls":3},{"$f":"SUM(M17:O17)","v":0},{"$nulls":3},{"$f":"SUM(Q17:S17)","v":0},{"$nulls":4},{"$f":"SUM(V17:X17)+T17","v":0},{"$f":"E17+I17+M17+Q17","v":0},0,0]
[null,2.2,"Nursing Facility Days (Crossover)",0,{"$nulls":3},0,{"$nulls":3},0,{"$nulls":3},0,{"$nulls":4},{"$f":"SUM(V18:X18)+T18","v":0},0,0,0]
[null,2.3,"Nursing Facility FFS (Medicaid)",0,{"$nulls":3},0,{"$nulls":3},0,{"$nulls":3},0,{"$nulls":4},0,0,0,0]
[null,2.4,"Nursing Facility FFS (Crossover)",0,{"$nulls":3},0,{"$nulls":3},0,{"$nulls":3},0,{"$nulls":4},0,0,0,0]
[null,2.5,"Hospice Days",0,{"$nulls":3},0,{"$nulls":3},0,{"$nulls":3},0,{"$nulls":4},0,0,0,0]
[null,2.6,"Hospice FFS",0,{"$nulls":3},0,{"$nulls":3},0,{"$nulls":3},0,{"$nulls":4},0,0,0,0]
[null,2.7,"Ending IBNP for NF & Hospice Services",0,{"$nulls":3},0,{"$nulls":3},0,{"$nulls":3},0,{"$nulls":4},0,0,0,0]
[null,2.8,"NF & Hospice Subcapitated Services",0,{"$nulls":3},0,{"$nulls":3},0,{"$nulls":3},0,{"$nulls":4},0,0,0,0]
[null,2.9,"NF & Hospice Settlements/AP",0,{"$nulls":3},0,{"$nulls":3},0,{"$nulls":3},0,{"$nulls":4},0,0,0,0]
[null,{"v":2.1,"d":"2.10"},"Total Nursing Facility and Hospice",{"$f":"SUM(D19:D20,D22:D25)","v":0},0,0,0,0,0,0,0,0,0,0,0,0,0,0,0,0,0,0,0,0]
["Long Term Care Services",2.11,"Assisted Living FFS",{"$f":"SUM(E27:G27)","v":0},{"$nulls":3},{"$f":"SUM(I27:K27)","v":0},{"$nulls":3},{"$f":"SUM(M27:O27)","v":0},{"$nulls":3},{"$f":"SUM(Q27:S27)","v":0},{"$nulls":4},{"$f":"SUM(V27:X27)+T27","v":0},{"$f":"E27+I27+M27+Q27","v":0},0,0]
[null,2.12,"Home Health FFS",0,{"$nulls":3},0,{"$nulls":3},0,{"$nulls":3},0,{"$nulls":4},{"$f":"SUM(V28:X28)+T28","v":0},0,0,0]
[null,2.13,"Medical Equipment/Supplies FFS",0,{"$nulls":3},0,{"$nulls":3},0,{"$nulls":3},0,{"$nulls":4},0,0,0,0]
[null,2.14,"Therapy Services FFS",0,{"$nulls":3},0,{"$nulls":3},0,{"$nulls":3},0,{"$nulls":4},0,0,0,0]
[null,2.15,"Transportation Services FFS",0,{"$nulls":3},0,{"$nulls":3},0,{"$nulls":3},0,{"$nulls":4},0,0,0,0]
[null,2.16,"Case Management (Plan Provided) FFS",0,{"$nulls":3},0,{"$nulls":3},0,{"$nulls":3},0,{"$nulls":4},0,0,0,0]
[null,2.17,"Case Management (non-Plan Provided) FFS",0,{"$nulls":3},0,{"$nulls":3},0,{"$nulls":3},0,{"$nulls":4},0,0,0,0]
[null,2.18,"Home & Community Based Services  (HCBS) FFS",0,{"$nulls":3},0,{"$nulls":3},0,{"$nulls":3},0,{"$nulls":4},0,0,0,0]
[null,2.19,"Subcapitated LTC Services (excluding NF)",0,{"$nulls":3},0,{"$nulls":3},0,{"$nulls":3},0,{"$nulls":4},0,0,0,0]
[null,{"v":2.2,"d":"2.20"},"Ending IBNP for Long Term Care Services (excluding NF)",0,{"$nulls":3},0,{"$nulls":3},0,{"$nulls":3},0,{"$nulls":4},0,0,0,{"$f":"G36+K36+O36+S36","v":0}]
[null,2.21,"LTC Services Settlements/AP (excluding NF)",0,{"$nulls":3},0,{"$nulls":3},0,{"$nulls":3},0,{"$nulls":4},0,{"$f":"E37+I37+M37+Q37","v":0},{"$f":"F37+J37+N37+R37","v":0},{"$f":"G37+K37+O37+S37","v":0}]
[null,2.22,"Grand Total LTC Services",{"$f":"SUM(D26,D27:D37)","v":0},{"$f":"SUM(E26:E37)","v":0},0,0,0,0,0,0,0,0,0,0,0,0,0,0,0,0,0,0,0]
["Expanded Benefits","3.1","Expanded Benefits FFS",{"$f":"SUM(E39:G39)","v":0},{"$nulls":3},{"$f":"SUM(I39:K39)","v":0},{"$nulls":3},{"$f":"SUM(M39:O39)","v":0},{"$nulls":3},{"$f":"SUM(Q39:S39)","v":0},{"$nulls":4},{"$f":"SUM(V39:X39)+T39","v":0},{"$f":"E39+I39+M39+Q39","v":0},0,0]
[null,"3.2","Expanded Benefits Subcapitation",{"$f":"SUM(E40:G40)","v":0},{"$nulls":3},{"$f":"SUM(I40:K40)","v":0},{"$nulls":3},{"$f":"SUM(M40:O40)","v":0},{"$nulls":3},{"$f":"SUM(Q40:S40)","v":0},{"$nulls":4},{"$f":"SUM(V40:X40)+T40","v":0},0,0,0]
[null,"3.3","Ending IBNP for Expanded Benefits",{"$f":"SUM(E41:G41)","v":0},{"$nulls":3},{"$f":"SUM(I41:K41)","v":0},{"$nulls":3},{"$f":"SUM(M41:O41)","v":0},{"$nulls":3},{"$f":"SUM(Q41:S41)","v":0},{"$nulls":4},0,0,0,0]
[null,3.4,"Expanded Benefits Services Settlements",{"$f":"SUM(E42:G42)","v":0},{"$nulls":3},{"$f":"SUM(I42:K42)","v":0},{"$nulls":3},{"$f":"SUM(M42:O42)","v":0},{"$nulls":3},{"$f":"SUM(Q42:S42)","v":0},{"$nulls":4},0,0,0,0]
[null,3.5,"Total Expanded Benefits",{"$f":"SUM(D39:D42)","v":0},0,0,0,0,0,0,0,0,0,0,0,0,0,0,0,0,0,0,0,0]
["Totals Before and After Reinsurance","4.1","Total Services Paid Directly FFS",{"$f":"SUM(D19+D20+D22, D27:D34)+D39","v":0},{"$f":"SUM(E19+E20+E22, E27:E34)+E39","v":0},0,0,{"$f":"SUM(H19+H20+H22, H27:H34)+H39","v":0},0,0,0,{"$f":"SUM(L19+L20+L22, L27:L34)+L39","v":0},0,0,0,{"$f":"SUM(P19+P20+P22, P27:P34)+P39","v":0},0,0,0,0,{"$f":"SUM(U19+U20+U22, U27:U34)+U39","v":0},0,0,0]
[null,"4.2","Total Services Paid Directly -- IBNP",{"$f":"D23+D36+D41","v":0},0,0,0,0,0,0,0,0,0,0,0,0,0,0,0,0,0,0,0,0]
[null,"4.3","Total Services Paid through Subcapitation",{"$f":"D24+D35+D40","v":0},0,0,0,0,0,0,0,0,0,0,0,0,0,0,0,0,0,0,0,0]
[null,4.4,"Total Services Paid by Settlements/AP",{"$f":"D25+D37+D42","v":0},0,0,0,0,0,0,0,0,0,0,0,0,0,0,0,0,0,0,0,0]
[null,4.5,"TPL & Fraud/Abuse Recoveries",{"$f":"SUM(E48:G48)","v":0},{"$nulls":3},{"$f":"SUM(I48:K48)","v":0},{"$nulls":3},{"$f":"SUM(M48:O48)","v":0},{"$nulls":3},{"$f":"SUM(Q48:S48)","v":0},{"$nulls":4},{"$f":"SUM(V48:X48)+T48","v":0},{"$f":"E48+I48+M48+Q48","v":0},0,0]
[null,"4.6.1","Premium Deficiency Reserve",{"$f":"SUM(E49:G49)","v":0},{"$nulls":3},{"$f":"SUM(I49:K49)","v":0},{"$nulls":3},{"$f":"SUM(M49:O49)","v":0},{"$nulls":3},{"$f":"SUM(Q49:S49)","v":0},{"$nulls":4},{"$f":"SUM(V49:X49)+T49","v":0},0,0,0]
[null,"4.7","Subtotal Benefit Expense before Reinsurance",{"$f":"SUM(D44:D49)","v":0},0,0,0,0,0,0,0,0,0,0,0,0,0,0,0,0,0,0,0,0]
[null,"4.8","Reinsurance Premiums",{"$f":"SUM(E51:G51)","v":0},{"$nulls":3},{"$f":"SUM(I51:K51)","v":0},{"$nulls":3},{"$f":"SUM(M51:O51)","v":0},{"$nulls":3},{"$f":"SUM(Q51:S51)","v":0},{"$nulls":4},{"$f":"SUM(V51:X51)+T51","v":0},{"$f":"E51+I51+M51+Q51","v":0},0,0]
[null,"4.9","Reinsurance Recoveries",{"$f":"SUM(E52:G52)","v":0},{"$nulls":3},{"$f":"SUM(I52:K52)","v":0},{"$nulls":3},{"$f":"SUM(M52:O52)","v":0},{"$nulls":3},{"$f":"SUM(Q52:S52)","v":0},{"$nulls":4},{"$f":"SUM(V52:X52)+T52","v":0},0,0,0]
[null,"4.10","Net Cost of Reinsurance",{"$f":"SUM(D51:D52)","v":0},0,0,0,0,0,0,0,0,0,0,0,0,0,0,0,0,0,0,0,0]
[null,"4.11","Grand Total Service Benefit Expense Net of Reinsurance",{"$f":"D50+D53","v":0},0,0,0,0,0,0,0,0,0,0,0,0,0,0,0,0,0,0,0,0]
["Administrative Expenses, Government-Mandated Assessments, Taxes, and Fees ",null,null,"JANUARY - MARCH (Q1)",{"$nulls":3},"APRIL - JUNE (Q2)",{"$nulls":3},"JULY - SEPTEMBER (Q3)",{"$nulls":3},"OCTOBER - DECEMBER (Q4)",{"$nulls":4},"TOTAL (TO DATE)"]
[{"$nulls":3},"Total","Non-HCBS","HCBS","MED-P / SIXT","Total","Non-HCBS","HCBS","MED-P / SIXT","Total","Non-HCBS","HCBS","MED-P / SIXT","Total","Non-HCBS","HCBS","MED-P / SIXT","Prior Calendar Year Adjustments","Total","Non-HCBS","HCBS","MED-P / SIXT"]
["Administrative Expenses","5.1","Salaries & Benefits",{"$f":"SUM(E57:G57)","v":0},{"$nulls":3},{"$f":"SUM(I57:K57)","v":0},{"$nulls":3},{"$f":"SUM(M57:O57)","v":0},{"$nulls":3},{"$f":"SUM(Q57:S57)","v":0},{"$nulls":4},{"$f":"D57+H57+L57+P57+T57","v":0},{"$f":"E57+I57+M57+Q57","v":0},0,0]
[null,"5.2","Administrative Services",0,{"$nulls":3},0,{"$nulls":3},0,{"$nulls":3},0,{"$nulls":4},{"$f":"D58+H58+L58+P58+T58","v":0},0,0,0]
[null,"5.3","Information Systems",0,{"$nulls":3},0,{"$nulls":3},0,{"$nulls":3},0,{"$nulls":4},0,0,0,0]
[null,"5.4","Marketing Expenses",0,{"$nulls":3},0,{"$nulls":3},0,{"$nulls":3},0,{"$nulls":4},0,0,0,0]
[null,"5.5","General  Administration",0,{"$nulls":3},0,{"$nulls":3},0,{"$nulls":3},0,{"$nulls":4},0,0,0,0]
[null,"5.6","Compliance/Regulatory",0,{"$nulls":3},0,{"$nulls":3},0,{"$nulls":3},0,{"$nulls":4},0,0,0,0]
[null,"5.7","Total Administrative Expenses ",{"$f":"SUM(D57:D62)","v":0},0,0,0,0,0,0,0,0,0,0,0,0,0,0,0,0,0,0,0,0]
["Government-Mandated Assessments, Taxes, and Fees Other Than Income Taxes","6.1","State Premium Tax",{"$nulls":17},{"$f":"D64+H64+L64+P64+T64","v":0}]
[null,"6.2","Department of Insurance Assessments",{"$nulls":17},{"$f":"D65+H65+L65+P65+T65","v":0}]
[null,"6.3","Other 1",{"$nulls":17},0]
[null,"6.4","Other 2",{"$nulls":17},0]
[null,"6.5","Other 3",{"$nulls":17},0]
[null,"6.6","Total ",{"$f":"SUM(D64:D68)","v":0},{"$nulls":3},{"$f":"SUM(H64:H68)","v":0},{"$nulls":3},{"$f":"SUM(L64:L68)","v":0},{"$nulls":3},{"$f":"SUM(P64:P68)","v":0},{"$nulls":3},{"$f":"SUM(T64:T68)","v":0},{"$f":"SUM(U64:U68)","v":0}]
[null,"7.0","Grand Total Expenses",{"$f":"D54+D63+D69","v":0},{"$nulls":3},{"$f":"H54+H63+H69","v":0},{"$nulls":3},{"$f":"L54+L63+L69","v":0},{"$nulls":3},{"$f":"P54+P63+P69","v":0},{"$nulls":3},{"$f":"T54+T63+T69","v":0},{"$f":"U54+U63+U69","v":0}]
[null,"8.0","Underwriting Gain / (Loss)  --- AKA Pre-tax Earnings from Operations",{"$f":"D14-D70","v":0},{"$nulls":3},{"$f":"H14-H70","v":0},{"$nulls":3},{"$f":"L14-L70","v":0},{"$nulls":3},{"$f":"P14-P70","v":0},{"$nulls":3},{"$f":"T14-T70","v":0},{"$f":"U14-U70","v":0}]
[null,"9.0","Income Tax Expense",{"$nulls":17},{"$f":"D72+H72+L72+P72+T72","v":0}]
[null,"10.0","Net Underwriting Gain (Loss)",{"$f":"D71-D72","v":0},{"$nulls":3},{"$f":"H71-H72","v":0},{"$nulls":3},{"$f":"L71-L72","v":0},{"$nulls":3},{"$f":"P71-P72","v":0},{"$nulls":3},{"$f":"T71-T72","v":0},{"$f":"U71-U72","v":0}]

{"sheet":"LTC Rev-Exp Region 8","index":31,"n_rows":73,"n_cols":24,"rows_kept":73,"hidden":true,"merged":[[6,3,6,6],[6,7,6,10],[6,11,6,14],[6,15,6,18],[6,20,6,23],[9,0,9,2],[10,0,13,0],[14,0,15,2],[14,3,14,6],[14,7,14,10],[14,11,14,14],[14,15,14,18],[14,20,14,23],[16,0,25,0],[26,0,37,0],[38,0,42,0],[43,0,53,0],[54,0,55,2],[54,3,54,6],[54,7,54,10],[54,11,54,14],[54,15,54,18],[54,20,54,23],[56,0,62,0],[63,0,68,0]]}
["LONG TERM CARE -- REVENUE AND EXPENSE SCHEDULE - REGION 8"]
[]
["Health Plan:",null,{"$f":"'LTC Rev-Exp Summary'!C3","v":0}]
["Reporting Period:",null,{"$f":"IF('LTC Rev-Exp Summary'!C4=0,\"\",'LTC Rev-Exp Summary'!C4)","v":""}]
["Paid Through:",null,{"$f":"IF('LTC Rev-Exp Summary'!C5=0,\"\",'LTC Rev-Exp Summary'!C5)","v":""}]
["Region 8"]
[{"$nulls":3},"JANUARY - MARCH (Q1)",{"$nulls":3},"APRIL - JUNE (Q2)",{"$nulls":3},"JULY - SEPTEMBER (Q3)",{"$nulls":3},"OCTOBER - DECEMBER (Q4)",{"$nulls":4},"TOTAL (TO DATE)"]
[{"$nulls":3},"Total","Non-HCBS","HCBS","MED-P / SIXT","Total","Non-HCBS","HCBS","MED-P / SIXT","Total","Non-HCBS","HCBS","MED-P / SIXT","Total","Non-HCBS","HCBS","MED-P / SIXT","Prior Year Adjustments","Total","Non-HCBS","HCBS","MED-P / SIXT"]
["MEMBER MONTHS",null,null,{"$f":"SUM(E9:G9)","v":0},{"$nulls":3},{"$f":"SUM(I9:K9)","v":0},{"$nulls":3},{"$f":"SUM(M9:O9)","v":0},{"$nulls":3},{"$f":"SUM(Q9:S9)","v":0},{"$nulls":4},{"$f":"SUM(V9:X9)+T9","v":0},{"$f":"E9+I9+M9+Q9","v":0},{"$f":"F9+J9+N9+R9","v":0},{"$f":"G9+K9+O9+S9","v":0}]
["REVENUES"]
["Revenues",1.1,"Capitation",{"$nulls":17},{"$f":"D11+H11+L11+P11+T11","v":0}]
[null,1.2,"NH Rate Reconciliation",{"$nulls":17},{"$f":"D12+H12+L12+P12+T12","v":0}]
[null,"1.3","Other Revenue",{"$nulls":17},0]
[null,"1.4","Total Revenue",{"$f":"SUM(D11:D13)","v":0},{"$nulls":3},{"$f":"SUM(H11:H13)","v":0},{"$nulls":3},{"$f":"SUM(L11:L13)","v":0},{"$nulls":3},{"$f":"SUM(P11:P13)","v":0},{"$nulls":3},{"$f":"SUM(T11:T13)","v":0},{"$f":"SUM(U11:U13)","v":0}]
["EXPENSES",null,null,"JANUARY - MARCH (Q1)",{"$nulls":3},"APRIL - JUNE (Q2)",{"$nulls":3},"JULY - SEPTEMBER (Q3)",{"$nulls":3},"OCTOBER - DECEMBER (Q4)",{"$nulls":4},"TOTAL (TO DATE)"]
[{"$nulls":3},"Total","Non-HCBS","HCBS","MED-P / SIXT","Total","Non-HCBS","HCBS","MED-P / SIXT","Total","Non-HCBS","HCBS","MED-P / SIXT","Total","Non-HCBS","HCBS","MED-P / SIXT","Prior Calendar Year Adjustments","Total","Non-HCBS","HCBS","MED-P / SIXT"]
["LTC Nursing Facility (NF) & Hospice Services",2.1,"Nursing Facility Days (Medicaid)",{"$f":"SUM(E17:G17)","v":0},{"$nulls":3},{"$f":"SUM(I17:K17)","v":0},{"$nulls":3},{"$f":"SUM(M17:O17)","v":0},{"$nulls":3},{"$f":"SUM(Q17:S17)","v":0},{"$nulls":4},{"$f":"SUM(V17:X17)+T17","v":0},{"$f":"E17+I17+M17+Q17","v":0},0,0]
[null,2.2,"Nursing Facility Days (Crossover)",0,{"$nulls":3},0,{"$nulls":3},0,{"$nulls":3},0,{"$nulls":4},{"$f":"SUM(V18:X18)+T18","v":0},0,0,0]
[null,2.3,"Nursing Facility FFS (Medicaid)",0,{"$nulls":3},0,{"$nulls":3},0,{"$nulls":3},0,{"$nulls":4},0,0,0,0]
[null,2.4,"Nursing Facility FFS (Crossover)",0,{"$nulls":3},0,{"$nulls":3},0,{"$nulls":3},0,{"$nulls":4},0,0,0,0]
[null,2.5,"Hospice Days",0,{"$nulls":3},0,{"$nulls":3},0,{"$nulls":3},0,{"$nulls":4},0,0,0,0]
[null,2.6,"Hospice FFS",0,{"$nulls":3},0,{"$nulls":3},0,{"$nulls":3},0,{"$nulls":4},0,0,0,0]
[null,2.7,"Ending IBNP for NF & Hospice Services",0,{"$nulls":3},0,{"$nulls":3},0,{"$nulls":3},0,{"$nulls":4},0,0,0,0]
[null,2.8,"NF & Hospice Subcapitated Services",0,{"$nulls":3},0,{"$nulls":3},0,{"$nulls":3},0,{"$nulls":4},0,0,0,0]
[null,2.9,"NF & Hospice Settlements/AP",0,{"$nulls":3},0,{"$nulls":3},0,{"$nulls":3},0,{"$nulls":4},0,0,0,0]
[null,{"v":2.1,"d":"2.10"},"Total Nursing Facility and Hospice",{"$f":"SUM(D19:D20,D22:D25)","v":0},0,0,0,0,0,0,0,0,0,0,0,0,0,0,0,0,0,0,0,0]
["Long Term Care Services",2.11,"Assisted Living FFS",{"$f":"SUM(E27:G27)","v":0},{"$nulls":3},{"$f":"SUM(I27:K27)","v":0},{"$nulls":3},{"$f":"SUM(M27:O27)","v":0},{"$nulls":3},{"$f":"SUM(Q27:S27)","v":0},{"$nulls":4},{"$f":"SUM(V27:X27)+T27","v":0},{"$f":"E27+I27+M27+Q27","v":0},0,0]
[null,2.12,"Home Health FFS",0,{"$nulls":3},0,{"$nulls":3},0,{"$nulls":3},0,{"$nulls":4},{"$f":"SUM(V28:X28)+T28","v":0},0,0,0]
[null,2.13,"Medical Equipment/Supplies FFS",0,{"$nulls":3},0,{"$nulls":3},0,{"$nulls":3},0,{"$nulls":4},0,0,0,0]
[null,2.14,"Therapy Services FFS",0,{"$nulls":3},0,{"$nulls":3},0,{"$nulls":3},0,{"$nulls":4},0,0,0,0]
[null,2.15,"Transportation Services FFS",0,{"$nulls":3},0,{"$nulls":3},0,{"$nulls":3},0,{"$nulls":4},0,0,0,0]
[null,2.16,"Case Management (Plan Provided) FFS",0,{"$nulls":3},0,{"$nulls":3},0,{"$nulls":3},0,{"$nulls":4},0,0,0,0]
[null,2.17,"Case Management (non-Plan Provided) FFS",0,{"$nulls":3},0,{"$nulls":3},0,{"$nulls":3},0,{"$nulls":4},0,0,0,0]
[null,2.18,"Home & Community Based Services  (HCBS) FFS",0,{"$nulls":3},0,{"$nulls":3},0,{"$nulls":3},0,{"$nulls":4},0,0,0,0]
[null,2.19,"Subcapitated LTC Services (excluding NF)",0,{"$nulls":3},0,{"$nulls":3},0,{"$nulls":3},0,{"$nulls":4},0,0,0,0]
[null,{"v":2.2,"d":"2.20"},"Ending IBNP for Long Term Care Services (excluding NF)",0,{"$nulls":3},0,{"$nulls":3},0,{"$nulls":3},0,{"$nulls":4},0,0,0,{"$f":"G36+K36+O36+S36","v":0}]
[null,2.21,"LTC Services Settlements/AP (excluding NF)",0,{"$nulls":3},0,{"$nulls":3},0,{"$nulls":3},0,{"$nulls":4},0,{"$f":"E37+I37+M37+Q37","v":0},{"$f":"F37+J37+N37+R37","v":0},{"$f":"G37+K37+O37+S37","v":0}]
[null,2.22,"Grand Total LTC Services",{"$f":"SUM(D26,D27:D37)","v":0},{"$f":"SUM(E26:E37)","v":0},0,0,0,0,0,0,0,0,0,0,0,0,0,0,0,0,0,0,0]
["Expanded Benefits","3.1","Expanded Benefits FFS",{"$f":"SUM(E39:G39)","v":0},{"$nulls":3},{"$f":"SUM(I39:K39)","v":0},{"$nulls":3},{"$f":"SUM(M39:O39)","v":0},{"$nulls":3},{"$f":"SUM(Q39:S39)","v":0},{"$nulls":4},{"$f":"SUM(V39:X39)+T39","v":0},{"$f":"E39+I39+M39+Q39","v":0},0,0]
[null,"3.2","Expanded Benefits Subcapitation",{"$f":"SUM(E40:G40)","v":0},{"$nulls":3},{"$f":"SUM(I40:K40)","v":0},{"$nulls":3},{"$f":"SUM(M40:O40)","v":0},{"$nulls":3},{"$f":"SUM(Q40:S40)","v":0},{"$nulls":4},{"$f":"SUM(V40:X40)+T40","v":0},0,0,0]
[null,"3.3","Ending IBNP for Expanded Benefits",{"$f":"SUM(E41:G41)","v":0},{"$nulls":3},{"$f":"SUM(I41:K41)","v":0},{"$nulls":3},{"$f":"SUM(M41:O41)","v":0},{"$nulls":3},{"$f":"SUM(Q41:S41)","v":0},{"$nulls":4},0,0,0,0]
[null,3.4,"Expanded Benefits Services Settlements",{"$f":"SUM(E42:G42)","v":0},{"$nulls":3},{"$f":"SUM(I42:K42)","v":0},{"$nulls":3},{"$f":"SUM(M42:O42)","v":0},{"$nulls":3},{"$f":"SUM(Q42:S42)","v":0},{"$nulls":4},0,0,0,0]
[null,3.5,"Total Expanded Benefits",{"$f":"SUM(D39:D42)","v":0},0,0,0,0,0,0,0,0,0,0,0,0,0,0,0,0,0,0,0,0]
["Totals Before and After Reinsurance","4.1","Total Services Paid Directly FFS",{"$f":"SUM(D19+D20+D22, D27:D34)+D39","v":0},{"$f":"SUM(E19+E20+E22, E27:E34)+E39","v":0},0,0,{"$f":"SUM(H19+H20+H22, H27:H34)+H39","v":0},0,0,0,{"$f":"SUM(L19+L20+L22, L27:L34)+L39","v":0},0,0,0,{"$f":"SUM(P19+P20+P22, P27:P34)+P39","v":0},0,0,0,0,{"$f":"SUM(U19+U20+U22, U27:U34)+U39","v":0},0,0,0]
[null,"4.2","Total Services Paid Directly -- IBNP",{"$f":"D23+D36+D41","v":0},0,0,0,0,0,0,0,0,0,0,0,0,0,0,0,0,0,0,0,0]
[null,"4.3","Total Services Paid through Subcapitation",{"$f":"D24+D35+D40","v":0},0,0,0,0,0,0,0,0,0,0,0,0,0,0,0,0,0,0,0,0]
[null,4.4,"Total Services Paid by Settlements/AP",{"$f":"D25+D37+D42","v":0},0,0,0,0,0,0,0,0,0,0,0,0,0,0,0,0,0,0,0,0]
[null,4.5,"TPL & Fraud/Abuse Recoveries",{"$f":"SUM(E48:G48)","v":0},{"$nulls":3},{"$f":"SUM(I48:K48)","v":0},{"$nulls":3},{"$f":"SUM(M48:O48)","v":0},{"$nulls":3},{"$f":"SUM(Q48:S48)","v":0},{"$nulls":4},{"$f":"SUM(V48:X48)+T48","v":0},{"$f":"E48+I48+M48+Q48","v":0},0,0]
[null,"4.6.1","Premium Deficiency Reserve",{"$f":"SUM(E49:G49)","v":0},{"$nulls":3},{"$f":"SUM(I49:K49)","v":0},{"$nulls":3},{"$f":"SUM(M49:O49)","v":0},{"$nulls":3},{"$f":"SUM(Q49:S49)","v":0},{"$nulls":4},{"$f":"SUM(V49:X49)+T49","v":0},0,0,0]
[null,"4.7","Subtotal Benefit Expense before Reinsurance",{"$f":"SUM(D44:D49)","v":0},0,0,0,0,0,0,0,0,0,0,0,0,0,0,0,0,0,0,0,0]
[null,"4.8","Reinsurance Premiums",{"$f":"SUM(E51:G51)","v":0},{"$nulls":3},{"$f":"SUM(I51:K51)","v":0},{"$nulls":3},{"$f":"SUM(M51:O51)","v":0},{"$nulls":3},{"$f":"SUM(Q51:S51)","v":0},{"$nulls":4},{"$f":"SUM(V51:X51)+T51","v":0},{"$f":"E51+I51+M51+Q51","v":0},0,0]
[null,"4.9","Reinsurance Recoveries",{"$f":"SUM(E52:G52)","v":0},{"$nulls":3},{"$f":"SUM(I52:K52)","v":0},{"$nulls":3},{"$f":"SUM(M52:O52)","v":0},{"$nulls":3},{"$f":"SUM(Q52:S52)","v":0},{"$nulls":4},{"$f":"SUM(V52:X52)+T52","v":0},0,0,0]
[null,"4.10","Net Cost of Reinsurance",{"$f":"SUM(D51:D52)","v":0},0,0,0,0,0,0,0,0,0,0,0,0,0,0,0,0,0,0,0,0]
[null,"4.11","Grand Total Service Benefit Expense Net of Reinsurance",{"$f":"D50+D53","v":0},0,0,0,0,0,0,0,0,0,0,0,0,0,0,0,0,0,0,0,0]
["Administrative Expenses, Government-Mandated Assessments, Taxes, and Fees ",null,null,"JANUARY - MARCH (Q1)",{"$nulls":3},"APRIL - JUNE (Q2)",{"$nulls":3},"JULY - SEPTEMBER (Q3)",{"$nulls":3},"OCTOBER - DECEMBER (Q4)",{"$nulls":4},"TOTAL (TO DATE)"]
[{"$nulls":3},"Total","Non-HCBS","HCBS","MED-P / SIXT","Total","Non-HCBS","HCBS","MED-P / SIXT","Total","Non-HCBS","HCBS","MED-P / SIXT","Total","Non-HCBS","HCBS","MED-P / SIXT","Prior Calendar Year Adjustments","Total","Non-HCBS","HCBS","MED-P / SIXT"]
["Administrative Expenses","5.1","Salaries & Benefits",{"$f":"SUM(E57:G57)","v":0},{"$nulls":3},{"$f":"SUM(I57:K57)","v":0},{"$nulls":3},{"$f":"SUM(M57:O57)","v":0},{"$nulls":3},{"$f":"SUM(Q57:S57)","v":0},{"$nulls":4},{"$f":"D57+H57+L57+P57+T57","v":0},{"$f":"E57+I57+M57+Q57","v":0},0,0]
[null,"5.2","Administrative Services",0,{"$nulls":3},0,{"$nulls":3},0,{"$nulls":3},0,{"$nulls":4},{"$f":"D58+H58+L58+P58+T58","v":0},0,0,0]
[null,"5.3","Information Systems",0,{"$nulls":3},0,{"$nulls":3},0,{"$nulls":3},0,{"$nulls":4},0,0,0,0]
[null,"5.4","Marketing Expenses",0,{"$nulls":3},0,{"$nulls":3},0,{"$nulls":3},0,{"$nulls":4},0,0,0,0]
[null,"5.5","General  Administration",0,{"$nulls":3},0,{"$nulls":3},0,{"$nulls":3},0,{"$nulls":4},0,0,0,0]
[null,"5.6","Compliance/Regulatory",0,{"$nulls":3},0,{"$nulls":3},0,{"$nulls":3},0,{"$nulls":4},0,0,0,0]
[null,"5.7","Total Administrative Expenses ",{"$f":"SUM(D57:D62)","v":0},0,0,0,0,0,0,0,0,0,0,0,0,0,0,0,0,0,0,0,0]
["Government-Mandated Assessments, Taxes, and Fees Other Than Income Taxes","6.1","State Premium Tax",{"$nulls":17},{"$f":"D64+H64+L64+P64+T64","v":0}]
[null,"6.2","Department of Insurance Assessments",{"$nulls":17},{"$f":"D65+H65+L65+P65+T65","v":0}]
[null,"6.3","Other 1",{"$nulls":17},0]
[null,"6.4","Other 2",{"$nulls":17},0]
[null,"6.5","Other 3",{"$nulls":17},0]
[null,"6.6","Total ",{"$f":"SUM(D64:D68)","v":0},{"$nulls":3},{"$f":"SUM(H64:H68)","v":0},{"$nulls":3},{"$f":"SUM(L64:L68)","v":0},{"$nulls":3},{"$f":"SUM(P64:P68)","v":0},{"$nulls":3},{"$f":"SUM(T64:T68)","v":0},{"$f":"SUM(U64:U68)","v":0}]
[null,"7.0","Grand Total Expenses",{"$f":"D54+D63+D69","v":0},{"$nulls":3},{"$f":"H54+H63+H69","v":0},{"$nulls":3},{"$f":"L54+L63+L69","v":0},{"$nulls":3},{"$f":"P54+P63+P69","v":0},{"$nulls":3},{"$f":"T54+T63+T69","v":0},{"$f":"U54+U63+U69","v":0}]
[null,"8.0","Underwriting Gain / (Loss)  --- AKA Pre-tax Earnings from Operations",{"$f":"D14-D70","v":0},{"$nulls":3},{"$f":"H14-H70","v":0},{"$nulls":3},{"$f":"L14-L70","v":0},{"$nulls":3},{"$f":"P14-P70","v":0},{"$nulls":3},{"$f":"T14-T70","v":0},{"$f":"U14-U70","v":0}]
[null,"9.0","Income Tax Expense",{"$nulls":17},{"$f":"D72+H72+L72+P72+T72","v":0}]
[null,"10.0","Net Underwriting Gain (Loss)",{"$f":"D71-D72","v":0},{"$nulls":3},{"$f":"H71-H72","v":0},{"$nulls":3},{"$f":"L71-L72","v":0},{"$nulls":3},{"$f":"P71-P72","v":0},{"$nulls":3},{"$f":"T71-T72","v":0},{"$f":"U71-U72","v":0}]

{"sheet":"LTC Rev-Exp Region 9","index":32,"n_rows":73,"n_cols":24,"rows_kept":73,"hidden":true,"merged":[[6,3,6,6],[6,7,6,10],[6,11,6,14],[6,15,6,18],[6,20,6,23],[9,0,9,2],[10,0,13,0],[14,0,15,2],[14,3,14,6],[14,7,14,10],[14,11,14,14],[14,15,14,18],[14,20,14,23],[16,0,25,0],[26,0,37,0],[38,0,42,0],[43,0,53,0],[54,0,55,2],[54,3,54,6],[54,7,54,10],[54,11,54,14],[54,15,54,18],[54,20,54,23],[56,0,62,0],[63,0,68,0]]}
["LONG TERM CARE -- REVENUE AND EXPENSE SCHEDULE - REGION 9"]
[]
["Health Plan:",null,{"$f":"'LTC Rev-Exp Summary'!C3","v":0}]
["Reporting Period:",null,{"$f":"IF('LTC Rev-Exp Summary'!C4=0,\"\",'LTC Rev-Exp Summary'!C4)","v":""}]
["Paid Through:",null,{"$f":"IF('LTC Rev-Exp Summary'!C5=0,\"\",'LTC Rev-Exp Summary'!C5)","v":""}]
["Region 9"]
[{"$nulls":3},"JANUARY - MARCH (Q1)",{"$nulls":3},"APRIL - JUNE (Q2)",{"$nulls":3},"JULY - SEPTEMBER (Q3)",{"$nulls":3},"OCTOBER - DECEMBER (Q4)",{"$nulls":4},"TOTAL (TO DATE)"]
[{"$nulls":3},"Total","Non-HCBS","HCBS","MED-P / SIXT","Total","Non-HCBS","HCBS","MED-P / SIXT","Total","Non-HCBS","HCBS","MED-P / SIXT","Total","Non-HCBS","HCBS","MED-P / SIXT","Prior Year Adjustments","Total","Non-HCBS","HCBS","MED-P / SIXT"]
["MEMBER MONTHS",null,null,{"$f":"SUM(E9:G9)","v":0},{"$nulls":3},{"$f":"SUM(I9:K9)","v":0},{"$nulls":3},{"$f":"SUM(M9:O9)","v":0},{"$nulls":3},{"$f":"SUM(Q9:S9)","v":0},{"$nulls":4},{"$f":"SUM(V9:X9)+T9","v":0},{"$f":"E9+I9+M9+Q9","v":0},{"$f":"F9+J9+N9+R9","v":0},{"$f":"G9+K9+O9+S9","v":0}]
["REVENUES"]
["Revenues",1.1,"Capitation",{"$nulls":17},{"$f":"D11+H11+L11+P11+T11","v":0}]
[null,1.2,"NH Rate Reconciliation",{"$nulls":17},{"$f":"D12+H12+L12+P12+T12","v":0}]
[null,"1.3","Other Revenue",{"$nulls":17},0]
[null,"1.4","Total Revenue",{"$f":"SUM(D11:D13)","v":0},{"$nulls":3},{"$f":"SUM(H11:H13)","v":0},{"$nulls":3},{"$f":"SUM(L11:L13)","v":0},{"$nulls":3},{"$f":"SUM(P11:P13)","v":0},{"$nulls":3},{"$f":"SUM(T11:T13)","v":0},{"$f":"SUM(U11:U13)","v":0}]
["EXPENSES",null,null,"JANUARY - MARCH (Q1)",{"$nulls":3},"APRIL - JUNE (Q2)",{"$nulls":3},"JULY - SEPTEMBER (Q3)",{"$nulls":3},"OCTOBER - DECEMBER (Q4)",{"$nulls":4},"TOTAL (TO DATE)"]
[{"$nulls":3},"Total","Non-HCBS","HCBS","MED-P / SIXT","Total","Non-HCBS","HCBS","MED-P / SIXT","Total","Non-HCBS","HCBS","MED-P / SIXT","Total","Non-HCBS","HCBS","MED-P / SIXT","Prior Calendar Year Adjustments","Total","Non-HCBS","HCBS","MED-P / SIXT"]
["LTC Nursing Facility (NF) & Hospice Services",2.1,"Nursing Facility Days (Medicaid)",{"$f":"SUM(E17:G17)","v":0},{"$nulls":3},{"$f":"SUM(I17:K17)","v":0},{"$nulls":3},{"$f":"SUM(M17:O17)","v":0},{"$nulls":3},{"$f":"SUM(Q17:S17)","v":0},{"$nulls":4},{"$f":"SUM(V17:X17)+T17","v":0},{"$f":"E17+I17+M17+Q17","v":0},0,0]
[null,2.2,"Nursing Facility Days (Crossover)",0,{"$nulls":3},0,{"$nulls":3},0,{"$nulls":3},0,{"$nulls":4},{"$f":"SUM(V18:X18)+T18","v":0},0,0,0]
[null,2.3,"Nursing Facility FFS (Medicaid)",0,{"$nulls":3},0,{"$nulls":3},0,{"$nulls":3},0,{"$nulls":4},0,0,0,0]
[null,2.4,"Nursing Facility FFS (Crossover)",0,{"$nulls":3},0,{"$nulls":3},0,{"$nulls":3},0,{"$nulls":4},0,0,0,0]
[null,2.5,"Hospice Days",0,{"$nulls":3},0,{"$nulls":3},0,{"$nulls":3},0,{"$nulls":4},0,0,0,0]
[null,2.6,"Hospice FFS",0,{"$nulls":3},0,{"$nulls":3},0,{"$nulls":3},0,{"$nulls":4},0,0,0,0]
[null,2.7,"Ending IBNP for NF & Hospice Services",0,{"$nulls":3},0,{"$nulls":3},0,{"$nulls":3},0,{"$nulls":4},0,0,0,0]
[null,2.8,"NF & Hospice Subcapitated Services",0,{"$nulls":3},0,{"$nulls":3},0,{"$nulls":3},0,{"$nulls":4},0,0,0,0]
[null,2.9,"NF & Hospice Settlements/AP",0,{"$nulls":3},0,{"$nulls":3},0,{"$nulls":3},0,{"$nulls":4},0,0,0,0]
[null,{"v":2.1,"d":"2.10"},"Total Nursing Facility and Hospice",{"$f":"SUM(D19:D20,D22:D25)","v":0},0,0,0,0,0,0,0,0,0,0,0,0,0,0,0,0,0,0,0,0]
["Long Term Care Services",2.11,"Assisted Living FFS",{"$f":"SUM(E27:G27)","v":0},{"$nulls":3},{"$f":"SUM(I27:K27)","v":0},{"$nulls":3},{"$f":"SUM(M27:O27)","v":0},{"$nulls":3},{"$f":"SUM(Q27:S27)","v":0},{"$nulls":4},{"$f":"SUM(V27:X27)+T27","v":0},{"$f":"E27+I27+M27+Q27","v":0},0,0]
[null,2.12,"Home Health FFS",0,{"$nulls":3},0,{"$nulls":3},0,{"$nulls":3},0,{"$nulls":4},{"$f":"SUM(V28:X28)+T28","v":0},0,0,0]
[null,2.13,"Medical Equipment/Supplies FFS",0,{"$nulls":3},0,{"$nulls":3},0,{"$nulls":3},0,{"$nulls":4},0,0,0,0]
[null,2.14,"Therapy Services FFS",0,{"$nulls":3},0,{"$nulls":3},0,{"$nulls":3},0,{"$nulls":4},0,0,0,0]
[null,2.15,"Transportation Services FFS",0,{"$nulls":3},0,{"$nulls":3},0,{"$nulls":3},0,{"$nulls":4},0,0,0,0]
[null,2.16,"Case Management (Plan Provided) FFS",0,{"$nulls":3},0,{"$nulls":3},0,{"$nulls":3},0,{"$nulls":4},0,0,0,0]
[null,2.17,"Case Management (non-Plan Provided) FFS",0,{"$nulls":3},0,{"$nulls":3},0,{"$nulls":3},0,{"$nulls":4},0,0,0,0]
[null,2.18,"Home & Community Based Services  (HCBS) FFS",0,{"$nulls":3},0,{"$nulls":3},0,{"$nulls":3},0,{"$nulls":4},0,0,0,0]
[null,2.19,"Subcapitated LTC Services (excluding NF)",0,{"$nulls":3},0,{"$nulls":3},0,{"$nulls":3},0,{"$nulls":4},0,0,0,0]
[null,{"v":2.2,"d":"2.20"},"Ending IBNP for Long Term Care Services (excluding NF)",0,{"$nulls":3},0,{"$nulls":3},0,{"$nulls":3},0,{"$nulls":4},0,0,0,{"$f":"G36+K36+O36+S36","v":0}]
[null,2.21,"LTC Services Settlements/AP (excluding NF)",0,{"$nulls":3},0,{"$nulls":3},0,{"$nulls":3},0,{"$nulls":4},0,{"$f":"E37+I37+M37+Q37","v":0},{"$f":"F37+J37+N37+R37","v":0},{"$f":"G37+K37+O37+S37","v":0}]
[null,2.22,"Grand Total LTC Services",{"$f":"SUM(D26,D27:D37)","v":0},{"$f":"SUM(E26:E37)","v":0},0,0,0,0,0,0,0,0,0,0,0,0,0,0,0,0,0,0,0]
["Expanded Benefits","3.1","Expanded Benefits FFS",{"$f":"SUM(E39:G39)","v":0},{"$nulls":3},{"$f":"SUM(I39:K39)","v":0},{"$nulls":3},{"$f":"SUM(M39:O39)","v":0},{"$nulls":3},{"$f":"SUM(Q39:S39)","v":0},{"$nulls":4},{"$f":"SUM(V39:X39)+T39","v":0},{"$f":"E39+I39+M39+Q39","v":0},0,0]
[null,"3.2","Expanded Benefits Subcapitation",{"$f":"SUM(E40:G40)","v":0},{"$nulls":3},{"$f":"SUM(I40:K40)","v":0},{"$nulls":3},{"$f":"SUM(M40:O40)","v":0},{"$nulls":3},{"$f":"SUM(Q40:S40)","v":0},{"$nulls":4},{"$f":"SUM(V40:X40)+T40","v":0},0,0,0]
[null,"3.3","Ending IBNP for Expanded Benefits",{"$f":"SUM(E41:G41)","v":0},{"$nulls":3},{"$f":"SUM(I41:K41)","v":0},{"$nulls":3},{"$f":"SUM(M41:O41)","v":0},{"$nulls":3},{"$f":"SUM(Q41:S41)","v":0},{"$nulls":4},0,0,0,0]
[null,3.4,"Expanded Benefits Services Settlements",{"$f":"SUM(E42:G42)","v":0},{"$nulls":3},{"$f":"SUM(I42:K42)","v":0},{"$nulls":3},{"$f":"SUM(M42:O42)","v":0},{"$nulls":3},{"$f":"SUM(Q42:S42)","v":0},{"$nulls":4},0,0,0,0]
[null,3.5,"Total Expanded Benefits",{"$f":"SUM(D39:D42)","v":0},0,0,0,0,0,0,0,0,0,0,0,0,0,0,0,0,0,0,0,0]
["Totals Before and After Reinsurance","4.1","Total Services Paid Directly FFS",{"$f":"SUM(D19+D20+D22, D27:D34)+D39","v":0},{"$f":"SUM(E19+E20+E22, E27:E34)+E39","v":0},0,0,{"$f":"SUM(H19+H20+H22, H27:H34)+H39","v":0},0,0,0,{"$f":"SUM(L19+L20+L22, L27:L34)+L39","v":0},0,0,0,{"$f":"SUM(P19+P20+P22, P27:P34)+P39","v":0},0,0,0,0,{"$f":"SUM(U19+U20+U22, U27:U34)+U39","v":0},0,0,0]
[null,"4.2","Total Services Paid Directly -- IBNP",{"$f":"D23+D36+D41","v":0},0,0,0,0,0,0,0,0,0,0,0,0,0,0,0,0,0,0,0,0]
[null,"4.3","Total Services Paid through Subcapitation",{"$f":"D24+D35+D40","v":0},0,0,0,0,0,0,0,0,0,0,0,0,0,0,0,0,0,0,0,0]
[null,4.4,"Total Services Paid by Settlements/AP",{"$f":"D25+D37+D42","v":0},0,0,0,0,0,0,0,0,0,0,0,0,0,0,0,0,0,0,0,0]
[null,4.5,"TPL & Fraud/Abuse Recoveries",{"$f":"SUM(E48:G48)","v":0},{"$nulls":3},{"$f":"SUM(I48:K48)","v":0},{"$nulls":3},{"$f":"SUM(M48:O48)","v":0},{"$nulls":3},{"$f":"SUM(Q48:S48)","v":0},{"$nulls":4},{"$f":"SUM(V48:X48)+T48","v":0},{"$f":"E48+I48+M48+Q48","v":0},0,0]
[null,"4.6.1","Premium Deficiency Reserve",{"$f":"SUM(E49:G49)","v":0},{"$nulls":3},{"$f":"SUM(I49:K49)","v":0},{"$nulls":3},{"$f":"SUM(M49:O49)","v":0},{"$nulls":3},{"$f":"SUM(Q49:S49)","v":0},{"$nulls":4},{"$f":"SUM(V49:X49)+T49","v":0},0,0,0]
[null,"4.7","Subtotal Benefit Expense before Reinsurance",{"$f":"SUM(D44:D49)","v":0},0,0,0,0,0,0,0,0,0,0,0,0,0,0,0,0,0,0,0,0]
[null,"4.8","Reinsurance Premiums",{"$f":"SUM(E51:G51)","v":0},{"$nulls":3},{"$f":"SUM(I51:K51)","v":0},{"$nulls":3},{"$f":"SUM(M51:O51)","v":0},{"$nulls":3},{"$f":"SUM(Q51:S51)","v":0},{"$nulls":4},{"$f":"SUM(V51:X51)+T51","v":0},{"$f":"E51+I51+M51+Q51","v":0},0,0]
[null,"4.9","Reinsurance Recoveries",{"$f":"SUM(E52:G52)","v":0},{"$nulls":3},{"$f":"SUM(I52:K52)","v":0},{"$nulls":3},{"$f":"SUM(M52:O52)","v":0},{"$nulls":3},{"$f":"SUM(Q52:S52)","v":0},{"$nulls":4},{"$f":"SUM(V52:X52)+T52","v":0},0,0,0]
[null,"4.10","Net Cost of Reinsurance",{"$f":"SUM(D51:D52)","v":0},0,0,0,0,0,0,0,0,0,0,0,0,0,0,0,0,0,0,0,0]
[null,"4.11","Grand Total Service Benefit Expense Net of Reinsurance",{"$f":"D50+D53","v":0},0,0,0,0,0,0,0,0,0,0,0,0,0,0,0,0,0,0,0,0]
["Administrative Expenses, Government-Mandated Assessments, Taxes, and Fees ",null,null,"JANUARY - MARCH (Q1)",{"$nulls":3},"APRIL - JUNE (Q2)",{"$nulls":3},"JULY - SEPTEMBER (Q3)",{"$nulls":3},"OCTOBER - DECEMBER (Q4)",{"$nulls":4},"TOTAL (TO DATE)"]
[{"$nulls":3},"Total","Non-HCBS","HCBS","MED-P / SIXT","Total","Non-HCBS","HCBS","MED-P / SIXT","Total","Non-HCBS","HCBS","MED-P / SIXT","Total","Non-HCBS","HCBS","MED-P / SIXT","Prior Calendar Year Adjustments","Total","Non-HCBS","HCBS","MED-P / SIXT"]
["Administrative Expenses","5.1","Salaries & Benefits",{"$f":"SUM(E57:G57)","v":0},{"$nulls":3},{"$f":"SUM(I57:K57)","v":0},{"$nulls":3},{"$f":"SUM(M57:O57)","v":0},{"$nulls":3},{"$f":"SUM(Q57:S57)","v":0},{"$nulls":4},{"$f":"D57+H57+L57+P57+T57","v":0},{"$f":"E57+I57+M57+Q57","v":0},0,0]
[null,"5.2","Administrative Services",0,{"$nulls":3},0,{"$nulls":3},0,{"$nulls":3},0,{"$nulls":4},{"$f":"D58+H58+L58+P58+T58","v":0},0,0,0]
[null,"5.3","Information Systems",0,{"$nulls":3},0,{"$nulls":3},0,{"$nulls":3},0,{"$nulls":4},0,0,0,0]
[null,"5.4","Marketing Expenses",0,{"$nulls":3},0,{"$nulls":3},0,{"$nulls":3},0,{"$nulls":4},0,0,0,0]
[null,"5.5","General  Administration",0,{"$nulls":3},0,{"$nulls":3},0,{"$nulls":3},0,{"$nulls":4},0,0,0,0]
[null,"5.6","Compliance/Regulatory",0,{"$nulls":3},0,{"$nulls":3},0,{"$nulls":3},0,{"$nulls":4},0,0,0,0]
[null,"5.7","Total Administrative Expenses ",{"$f":"SUM(D57:D62)","v":0},0,0,0,0,0,0,0,0,0,0,0,0,0,0,0,0,0,0,0,0]
["Government-Mandated Assessments, Taxes, and Fees Other Than Income Taxes","6.1","State Premium Tax",{"$nulls":17},{"$f":"D64+H64+L64+P64+T64","v":0}]
[null,"6.2","Department of Insurance Assessments",{"$nulls":17},{"$f":"D65+H65+L65+P65+T65","v":0}]
[null,"6.3","Other 1",{"$nulls":17},0]
[null,"6.4","Other 2",{"$nulls":17},0]
[null,"6.5","Other 3",{"$nulls":17},0]
[null,"6.6","Total ",{"$f":"SUM(D64:D68)","v":0},{"$nulls":3},{"$f":"SUM(H64:H68)","v":0},{"$nulls":3},{"$f":"SUM(L64:L68)","v":0},{"$nulls":3},{"$f":"SUM(P64:P68)","v":0},{"$nulls":3},{"$f":"SUM(T64:T68)","v":0},{"$f":"SUM(U64:U68)","v":0}]
[null,"7.0","Grand Total Expenses",{"$f":"D54+D63+D69","v":0},{"$nulls":3},{"$f":"H54+H63+H69","v":0},{"$nulls":3},{"$f":"L54+L63+L69","v":0},{"$nulls":3},{"$f":"P54+P63+P69","v":0},{"$nulls":3},{"$f":"T54+T63+T69","v":0},{"$f":"U54+U63+U69","v":0}]
[null,"8.0","Underwriting Gain / (Loss)  --- AKA Pre-tax Earnings from Operations",{"$f":"D14-D70","v":0},{"$nulls":3},{"$f":"H14-H70","v":0},{"$nulls":3},{"$f":"L14-L70","v":0},{"$nulls":3},{"$f":"P14-P70","v":0},{"$nulls":3},{"$f":"T14-T70","v":0},{"$f":"U14-U70","v":0}]
[null,"9.0","Income Tax Expense",{"$nulls":17},{"$f":"D72+H72+L72+P72+T72","v":0}]
[null,"10.0","Net Underwriting Gain (Loss)",{"$f":"D71-D72","v":0},{"$nulls":3},{"$f":"H71-H72","v":0},{"$nulls":3},{"$f":"L71-L72","v":0},{"$nulls":3},{"$f":"P71-P72","v":0},{"$nulls":3},{"$f":"T71-T72","v":0},{"$f":"U71-U72","v":0}]

{"sheet":"LTC Rev-Exp Region 10","index":33,"n_rows":73,"n_cols":24,"rows_kept":73,"hidden":true,"merged":[[6,3,6,6],[6,7,6,10],[6,11,6,14],[6,15,6,18],[6,20,6,23],[9,0,9,2],[10,0,13,0],[14,0,15,2],[14,3,14,6],[14,7,14,10],[14,11,14,14],[14,15,14,18],[14,20,14,23],[16,0,25,0],[26,0,37,0],[38,0,42,0],[43,0,53,0],[54,0,55,2],[54,3,54,6],[54,7,54,10],[54,11,54,14],[54,15,54,18],[54,20,54,23],[56,0,62,0],[63,0,68,0]]}
["LONG TERM CARE -- REVENUE AND EXPENSE SCHEDULE - REGION 10"]
[]
["Health Plan:",null,{"$f":"'LTC Rev-Exp Summary'!C3","v":0}]
["Reporting Period:",null,{"$f":"IF('LTC Rev-Exp Summary'!C4=0,\"\",'LTC Rev-Exp Summary'!C4)","v":""}]
["Paid Through:",null,{"$f":"IF('LTC Rev-Exp Summary'!C5=0,\"\",'LTC Rev-Exp Summary'!C5)","v":""}]
["Region 10"]
[{"$nulls":3},"JANUARY - MARCH (Q1)",{"$nulls":3},"APRIL - JUNE (Q2)",{"$nulls":3},"JULY - SEPTEMBER (Q3)",{"$nulls":3},"OCTOBER - DECEMBER (Q4)",{"$nulls":4},"TOTAL (TO DATE)"]
[{"$nulls":3},"Total","Non-HCBS","HCBS","MED-P / SIXT","Total","Non-HCBS","HCBS","MED-P / SIXT","Total","Non-HCBS","HCBS","MED-P / SIXT","Total","Non-HCBS","HCBS","MED-P / SIXT","Prior Year Adjustments","Total","Non-HCBS","HCBS","MED-P / SIXT"]
["MEMBER MONTHS",null,null,{"$f":"SUM(E9:G9)","v":0},{"$nulls":3},{"$f":"SUM(I9:K9)","v":0},{"$nulls":3},{"$f":"SUM(M9:O9)","v":0},{"$nulls":3},{"$f":"SUM(Q9:S9)","v":0},{"$nulls":4},{"$f":"SUM(V9:X9)+T9","v":0},{"$f":"E9+I9+M9+Q9","v":0},{"$f":"F9+J9+N9+R9","v":0},{"$f":"G9+K9+O9+S9","v":0}]
["REVENUES"]
["Revenues",1.1,"Capitation",{"$nulls":17},{"$f":"D11+H11+L11+P11+T11","v":0}]
[null,1.2,"NH Rate Reconciliation",{"$nulls":17},{"$f":"D12+H12+L12+P12+T12","v":0}]
[null,"1.3","Other Revenue",{"$nulls":17},0]
[null,"1.4","Total Revenue",{"$f":"SUM(D11:D13)","v":0},{"$nulls":3},{"$f":"SUM(H11:H13)","v":0},{"$nulls":3},{"$f":"SUM(L11:L13)","v":0},{"$nulls":3},{"$f":"SUM(P11:P13)","v":0},{"$nulls":3},{"$f":"SUM(T11:T13)","v":0},{"$f":"SUM(U11:U13)","v":0}]
["EXPENSES",null,null,"JANUARY - MARCH (Q1)",{"$nulls":3},"APRIL - JUNE (Q2)",{"$nulls":3},"JULY - SEPTEMBER (Q3)",{"$nulls":3},"OCTOBER - DECEMBER (Q4)",{"$nulls":4},"TOTAL (TO DATE)"]
[{"$nulls":3},"Total","Non-HCBS","HCBS","MED-P / SIXT","Total","Non-HCBS","HCBS","MED-P / SIXT","Total","Non-HCBS","HCBS","MED-P / SIXT","Total","Non-HCBS","HCBS","MED-P / SIXT","Prior Calendar Year Adjustments","Total","Non-HCBS","HCBS","MED-P / SIXT"]
["LTC Nursing Facility (NF) & Hospice Services",2.1,"Nursing Facility Days (Medicaid)",{"$f":"SUM(E17:G17)","v":0},{"$nulls":3},{"$f":"SUM(I17:K17)","v":0},{"$nulls":3},{"$f":"SUM(M17:O17)","v":0},{"$nulls":3},{"$f":"SUM(Q17:S17)","v":0},{"$nulls":4},{"$f":"SUM(V17:X17)+T17","v":0},{"$f":"E17+I17+M17+Q17","v":0},0,0]
[null,2.2,"Nursing Facility Days (Crossover)",0,{"$nulls":3},0,{"$nulls":3},0,{"$nulls":3},0,{"$nulls":4},{"$f":"SUM(V18:X18)+T18","v":0},0,0,0]
[null,2.3,"Nursing Facility FFS (Medicaid)",0,{"$nulls":3},0,{"$nulls":3},0,{"$nulls":3},0,{"$nulls":4},0,0,0,0]
[null,2.4,"Nursing Facility FFS (Crossover)",0,{"$nulls":3},0,{"$nulls":3},0,{"$nulls":3},0,{"$nulls":4},0,0,0,0]
[null,2.5,"Hospice Days",0,{"$nulls":3},0,{"$nulls":3},0,{"$nulls":3},0,{"$nulls":4},0,0,0,0]
[null,2.6,"Hospice FFS",0,{"$nulls":3},0,{"$nulls":3},0,{"$nulls":3},0,{"$nulls":4},0,0,0,0]
[null,2.7,"Ending IBNP for NF & Hospice Services",0,{"$nulls":3},0,{"$nulls":3},0,{"$nulls":3},0,{"$nulls":4},0,0,0,0]
[null,2.8,"NF & Hospice Subcapitated Services",0,{"$nulls":3},0,{"$nulls":3},0,{"$nulls":3},0,{"$nulls":4},0,0,0,0]
[null,2.9,"NF & Hospice Settlements/AP",0,{"$nulls":3},0,{"$nulls":3},0,{"$nulls":3},0,{"$nulls":4},0,0,0,0]
[null,{"v":2.1,"d":"2.10"},"Total Nursing Facility and Hospice",{"$f":"SUM(D19:D20,D22:D25)","v":0},0,0,0,0,0,0,0,0,0,0,0,0,0,0,0,0,0,0,0,0]
["Long Term Care Services",2.11,"Assisted Living FFS",{"$f":"SUM(E27:G27)","v":0},{"$nulls":3},{"$f":"SUM(I27:K27)","v":0},{"$nulls":3},{"$f":"SUM(M27:O27)","v":0},{"$nulls":3},{"$f":"SUM(Q27:S27)","v":0},{"$nulls":4},{"$f":"SUM(V27:X27)+T27","v":0},{"$f":"E27+I27+M27+Q27","v":0},0,0]
[null,2.12,"Home Health FFS",0,{"$nulls":3},0,{"$nulls":3},0,{"$nulls":3},0,{"$nulls":4},{"$f":"SUM(V28:X28)+T28","v":0},0,0,0]
[null,2.13,"Medical Equipment/Supplies FFS",0,{"$nulls":3},0,{"$nulls":3},0,{"$nulls":3},0,{"$nulls":4},0,0,0,0]
[null,2.14,"Therapy Services FFS",0,{"$nulls":3},0,{"$nulls":3},0,{"$nulls":3},0,{"$nulls":4},0,0,0,0]
[null,2.15,"Transportation Services FFS",0,{"$nulls":3},0,{"$nulls":3},0,{"$nulls":3},0,{"$nulls":4},0,0,0,0]
[null,2.16,"Case Management (Plan Provided) FFS",0,{"$nulls":3},0,{"$nulls":3},0,{"$nulls":3},0,{"$nulls":4},0,0,0,0]
[null,2.17,"Case Management (non-Plan Provided) FFS",0,{"$nulls":3},0,{"$nulls":3},0,{"$nulls":3},0,{"$nulls":4},0,0,0,0]
[null,2.18,"Home & Community Based Services  (HCBS) FFS",0,{"$nulls":3},0,{"$nulls":3},0,{"$nulls":3},0,{"$nulls":4},0,0,0,0]
[null,2.19,"Subcapitated LTC Services (excluding NF)",0,{"$nulls":3},0,{"$nulls":3},0,{"$nulls":3},0,{"$nulls":4},0,0,0,0]
[null,{"v":2.2,"d":"2.20"},"Ending IBNP for Long Term Care Services (excluding NF)",0,{"$nulls":3},0,{"$nulls":3},0,{"$nulls":3},0,{"$nulls":4},0,0,0,{"$f":"G36+K36+O36+S36","v":0}]
[null,2.21,"LTC Services Settlements/AP (excluding NF)",0,{"$nulls":3},0,{"$nulls":3},0,{"$nulls":3},0,{"$nulls":4},0,{"$f":"E37+I37+M37+Q37","v":0},{"$f":"F37+J37+N37+R37","v":0},{"$f":"G37+K37+O37+S37","v":0}]
[null,2.22,"Grand Total LTC Services",{"$f":"SUM(D26,D27:D37)","v":0},{"$f":"SUM(E26:E37)","v":0},0,0,0,0,0,0,0,0,0,0,0,0,0,0,0,0,0,0,0]
["Expanded Benefits","3.1","Expanded Benefits FFS",{"$f":"SUM(E39:G39)","v":0},{"$nulls":3},{"$f":"SUM(I39:K39)","v":0},{"$nulls":3},{"$f":"SUM(M39:O39)","v":0},{"$nulls":3},{"$f":"SUM(Q39:S39)","v":0},{"$nulls":4},{"$f":"SUM(V39:X39)+T39","v":0},{"$f":"E39+I39+M39+Q39","v":0},0,0]
[null,"3.2","Expanded Benefits Subcapitation",{"$f":"SUM(E40:G40)","v":0},{"$nulls":3},{"$f":"SUM(I40:K40)","v":0},{"$nulls":3},{"$f":"SUM(M40:O40)","v":0},{"$nulls":3},{"$f":"SUM(Q40:S40)","v":0},{"$nulls":4},{"$f":"SUM(V40:X40)+T40","v":0},0,0,0]
[null,"3.3","Ending IBNP for Expanded Benefits",{"$f":"SUM(E41:G41)","v":0},{"$nulls":3},{"$f":"SUM(I41:K41)","v":0},{"$nulls":3},{"$f":"SUM(M41:O41)","v":0},{"$nulls":3},{"$f":"SUM(Q41:S41)","v":0},{"$nulls":4},0,0,0,0]
[null,3.4,"Expanded Benefits Services Settlements",{"$f":"SUM(E42:G42)","v":0},{"$nulls":3},{"$f":"SUM(I42:K42)","v":0},{"$nulls":3},{"$f":"SUM(M42:O42)","v":0},{"$nulls":3},{"$f":"SUM(Q42:S42)","v":0},{"$nulls":4},0,0,0,0]
[null,3.5,"Total Expanded Benefits",{"$f":"SUM(D39:D42)","v":0},0,0,0,0,0,0,0,0,0,0,0,0,0,0,0,0,0,0,0,0]
["Totals Before and After Reinsurance","4.1","Total Services Paid Directly FFS",{"$f":"SUM(D19+D20+D22, D27:D34)+D39","v":0},{"$f":"SUM(E19+E20+E22, E27:E34)+E39","v":0},0,0,{"$f":"SUM(H19+H20+H22, H27:H34)+H39","v":0},0,0,0,{"$f":"SUM(L19+L20+L22, L27:L34)+L39","v":0},0,0,0,{"$f":"SUM(P19+P20+P22, P27:P34)+P39","v":0},0,0,0,0,{"$f":"SUM(U19+U20+U22, U27:U34)+U39","v":0},0,0,0]
[null,"4.2","Total Services Paid Directly -- IBNP",{"$f":"D23+D36+D41","v":0},0,0,0,0,0,0,0,0,0,0,0,0,0,0,0,0,0,0,0,0]
[null,"4.3","Total Services Paid through Subcapitation",{"$f":"D24+D35+D40","v":0},0,0,0,0,0,0,0,0,0,0,0,0,0,0,0,0,0,0,0,0]
[null,4.4,"Total Services Paid by Settlements/AP",{"$f":"D25+D37+D42","v":0},0,0,0,0,0,0,0,0,0,0,0,0,0,0,0,0,0,0,0,0]
[null,4.5,"TPL & Fraud/Abuse Recoveries",{"$f":"SUM(E48:G48)","v":0},{"$nulls":3},{"$f":"SUM(I48:K48)","v":0},{"$nulls":3},{"$f":"SUM(M48:O48)","v":0},{"$nulls":3},{"$f":"SUM(Q48:S48)","v":0},{"$nulls":4},{"$f":"SUM(V48:X48)+T48","v":0},{"$f":"E48+I48+M48+Q48","v":0},0,0]
[null,"4.6.1","Premium Deficiency Reserve",{"$f":"SUM(E49:G49)","v":0},{"$nulls":3},{"$f":"SUM(I49:K49)","v":0},{"$nulls":3},{"$f":"SUM(M49:O49)","v":0},{"$nulls":3},{"$f":"SUM(Q49:S49)","v":0},{"$nulls":4},{"$f":"SUM(V49:X49)+T49","v":0},0,0,0]
[null,"4.7","Subtotal Benefit Expense before Reinsurance",{"$f":"SUM(D44:D49)","v":0},0,0,0,0,0,0,0,0,0,0,0,0,0,0,0,0,0,0,0,0]
[null,"4.8","Reinsurance Premiums",{"$f":"SUM(E51:G51)","v":0},{"$nulls":3},{"$f":"SUM(I51:K51)","v":0},{"$nulls":3},{"$f":"SUM(M51:O51)","v":0},{"$nulls":3},{"$f":"SUM(Q51:S51)","v":0},{"$nulls":4},{"$f":"SUM(V51:X51)+T51","v":0},{"$f":"E51+I51+M51+Q51","v":0},0,0]
[null,"4.9","Reinsurance Recoveries",{"$f":"SUM(E52:G52)","v":0},{"$nulls":3},{"$f":"SUM(I52:K52)","v":0},{"$nulls":3},{"$f":"SUM(M52:O52)","v":0},{"$nulls":3},{"$f":"SUM(Q52:S52)","v":0},{"$nulls":4},{"$f":"SUM(V52:X52)+T52","v":0},0,0,0]
[null,"4.10","Net Cost of Reinsurance",{"$f":"SUM(D51:D52)","v":0},0,0,0,0,0,0,0,0,0,0,0,0,0,0,0,0,0,0,0,0]
[null,"4.11","Grand Total Service Benefit Expense Net of Reinsurance",{"$f":"D50+D53","v":0},0,0,0,0,0,0,0,0,0,0,0,0,0,0,0,0,0,0,0,0]
["Administrative Expenses, Government-Mandated Assessments, Taxes, and Fees ",null,null,"JANUARY - MARCH (Q1)",{"$nulls":3},"APRIL - JUNE (Q2)",{"$nulls":3},"JULY - SEPTEMBER (Q3)",{"$nulls":3},"OCTOBER - DECEMBER (Q4)",{"$nulls":4},"TOTAL (TO DATE)"]
[{"$nulls":3},"Total","Non-HCBS","HCBS","MED-P / SIXT","Total","Non-HCBS","HCBS","MED-P / SIXT","Total","Non-HCBS","HCBS","MED-P / SIXT","Total","Non-HCBS","HCBS","MED-P / SIXT","Prior Calendar Year Adjustments","Total","Non-HCBS","HCBS","MED-P / SIXT"]
["Administrative Expenses","5.1","Salaries & Benefits",{"$f":"SUM(E57:G57)","v":0},{"$nulls":3},{"$f":"SUM(I57:K57)","v":0},{"$nulls":3},{"$f":"SUM(M57:O57)","v":0},{"$nulls":3},{"$f":"SUM(Q57:S57)","v":0},{"$nulls":4},{"$f":"D57+H57+L57+P57+T57","v":0},{"$f":"E57+I57+M57+Q57","v":0},0,0]
[null,"5.2","Administrative Services",0,{"$nulls":3},0,{"$nulls":3},0,{"$nulls":3},0,{"$nulls":4},{"$f":"D58+H58+L58+P58+T58","v":0},0,0,0]
[null,"5.3","Information Systems",0,{"$nulls":3},0,{"$nulls":3},0,{"$nulls":3},0,{"$nulls":4},0,0,0,0]
[null,"5.4","Marketing Expenses",0,{"$nulls":3},0,{"$nulls":3},0,{"$nulls":3},0,{"$nulls":4},0,0,0,0]
[null,"5.5","General  Administration",0,{"$nulls":3},0,{"$nulls":3},0,{"$nulls":3},0,{"$nulls":4},0,0,0,0]
[null,"5.6","Compliance/Regulatory",0,{"$nulls":3},0,{"$nulls":3},0,{"$nulls":3},0,{"$nulls":4},0,0,0,0]
[null,"5.7","Total Administrative Expenses ",{"$f":"SUM(D57:D62)","v":0},0,0,0,0,0,0,0,0,0,0,0,0,0,0,0,0,0,0,0,0]
["Government-Mandated Assessments, Taxes, and Fees Other Than Income Taxes","6.1","State Premium Tax",{"$nulls":17},{"$f":"D64+H64+L64+P64+T64","v":0}]
[null,"6.2","Department of Insurance Assessments",{"$nulls":17},{"$f":"D65+H65+L65+P65+T65","v":0}]
[null,"6.3","Other 1",{"$nulls":17},0]
[null,"6.4","Other 2",{"$nulls":17},0]
[null,"6.5","Other 3",{"$nulls":17},0]
[null,"6.6","Total ",{"$f":"SUM(D64:D68)","v":0},{"$nulls":3},{"$f":"SUM(H64:H68)","v":0},{"$nulls":3},{"$f":"SUM(L64:L68)","v":0},{"$nulls":3},{"$f":"SUM(P64:P68)","v":0},{"$nulls":3},{"$f":"SUM(T64:T68)","v":0},{"$f":"SUM(U64:U68)","v":0}]
[null,"7.0","Grand Total Expenses",{"$f":"D54+D63+D69","v":0},{"$nulls":3},{"$f":"H54+H63+H69","v":0},{"$nulls":3},{"$f":"L54+L63+L69","v":0},{"$nulls":3},{"$f":"P54+P63+P69","v":0},{"$nulls":3},{"$f":"T54+T63+T69","v":0},{"$f":"U54+U63+U69","v":0}]
[null,"8.0","Underwriting Gain / (Loss)  --- AKA Pre-tax Earnings from Operations",{"$f":"D14-D70","v":0},{"$nulls":3},{"$f":"H14-H70","v":0},{"$nulls":3},{"$f":"L14-L70","v":0},{"$nulls":3},{"$f":"P14-P70","v":0},{"$nulls":3},{"$f":"T14-T70","v":0},{"$f":"U14-U70","v":0}]
[null,"9.0","Income Tax Expense",{"$nulls":17},{"$f":"D72+H72+L72+P72+T72","v":0}]
[null,"10.0","Net Underwriting Gain (Loss)",{"$f":"D71-D72","v":0},{"$nulls":3},{"$f":"H71-H72","v":0},{"$nulls":3},{"$f":"L71-L72","v":0},{"$nulls":3},{"$f":"P71-P72","v":0},{"$nulls":3},{"$f":"T71-T72","v":0},{"$f":"U71-U72","v":0}]

{"sheet":"LTC Rev-Exp Region 11","index":34,"n_rows":73,"n_cols":24,"rows_kept":73,"hidden":true,"merged":[[6,3,6,6],[6,7,6,10],[6,11,6,14],[6,15,6,18],[6,20,6,23],[9,0,9,2],[10,0,13,0],[14,0,15,2],[14,3,14,6],[14,7,14,10],[14,11,14,14],[14,15,14,18],[14,20,14,23],[16,0,25,0],[26,0,37,0],[38,0,42,0],[43,0,53,0],[54,0,55,2],[54,3,54,6],[54,7,54,10],[54,11,54,14],[54,15,54,18],[54,20,54,23],[56,0,62,0],[63,0,68,0]]}
["LONG TERM CARE -- REVENUE AND EXPENSE SCHEDULE - REGION 11"]
[]
["Health Plan:",null,{"$f":"'LTC Rev-Exp Summary'!C3","v":0}]
["Reporting Period:",null,{"$f":"IF('LTC Rev-Exp Summary'!C4=0,\"\",'LTC Rev-Exp Summary'!C4)","v":""}]
["Paid Through:",null,{"$f":"IF('LTC Rev-Exp Summary'!C5=0,\"\",'LTC Rev-Exp Summary'!C5)","v":""}]
["Region 11"]
[{"$nulls":3},"JANUARY - MARCH (Q1)",{"$nulls":3},"APRIL - JUNE (Q2)",{"$nulls":3},"JULY - SEPTEMBER (Q3)",{"$nulls":3},"OCTOBER - DECEMBER (Q4)",{"$nulls":4},"TOTAL (TO DATE)"]
[{"$nulls":3},"Total","Non-HCBS","HCBS","MED-P / SIXT","Total","Non-HCBS","HCBS","MED-P / SIXT","Total","Non-HCBS","HCBS","MED-P / SIXT","Total","Non-HCBS","HCBS","MED-P / SIXT","Prior Year Adjustments","Total","Non-HCBS","HCBS","MED-P / SIXT"]
["MEMBER MONTHS",null,null,{"$f":"SUM(E9:G9)","v":0},{"$nulls":3},{"$f":"SUM(I9:K9)","v":0},{"$nulls":3},{"$f":"SUM(M9:O9)","v":0},{"$nulls":3},{"$f":"SUM(Q9:S9)","v":0},{"$nulls":4},{"$f":"SUM(V9:X9)+T9","v":0},{"$f":"E9+I9+M9+Q9","v":0},{"$f":"F9+J9+N9+R9","v":0},{"$f":"G9+K9+O9+S9","v":0}]
["REVENUES"]
["Revenues",1.1,"Capitation",{"$nulls":17},{"$f":"D11+H11+L11+P11+T11","v":0}]
[null,1.2,"NH Rate Reconciliation",{"$nulls":17},{"$f":"D12+H12+L12+P12+T12","v":0}]
[null,"1.3","Other Revenue",{"$nulls":17},0]
[null,"1.4","Total Revenue",{"$f":"SUM(D11:D13)","v":0},{"$nulls":3},{"$f":"SUM(H11:H13)","v":0},{"$nulls":3},{"$f":"SUM(L11:L13)","v":0},{"$nulls":3},{"$f":"SUM(P11:P13)","v":0},{"$nulls":3},{"$f":"SUM(T11:T13)","v":0},{"$f":"SUM(U11:U13)","v":0}]
["EXPENSES",null,null,"JANUARY - MARCH (Q1)",{"$nulls":3},"APRIL - JUNE (Q2)",{"$nulls":3},"JULY - SEPTEMBER (Q3)",{"$nulls":3},"OCTOBER - DECEMBER (Q4)",{"$nulls":4},"TOTAL (TO DATE)"]
[{"$nulls":3},"Total","Non-HCBS","HCBS","MED-P / SIXT","Total","Non-HCBS","HCBS","MED-P / SIXT","Total","Non-HCBS","HCBS","MED-P / SIXT","Total","Non-HCBS","HCBS","MED-P / SIXT","Prior Calendar Year Adjustments","Total","Non-HCBS","HCBS","MED-P / SIXT"]
["LTC Nursing Facility (NF) & Hospice Services",2.1,"Nursing Facility Days (Medicaid)",{"$f":"SUM(E17:G17)","v":0},{"$nulls":3},{"$f":"SUM(I17:K17)","v":0},{"$nulls":3},{"$f":"SUM(M17:O17)","v":0},{"$nulls":3},{"$f":"SUM(Q17:S17)","v":0},{"$nulls":4},{"$f":"SUM(V17:X17)+T17","v":0},{"$f":"E17+I17+M17+Q17","v":0},0,0]
[null,2.2,"Nursing Facility Days (Crossover)",0,{"$nulls":3},0,{"$nulls":3},0,{"$nulls":3},0,{"$nulls":4},{"$f":"SUM(V18:X18)+T18","v":0},0,0,0]
[null,2.3,"Nursing Facility FFS (Medicaid)",0,{"$nulls":3},0,{"$nulls":3},0,{"$nulls":3},0,{"$nulls":4},0,0,0,0]
[null,2.4,"Nursing Facility FFS (Crossover)",0,{"$nulls":3},0,{"$nulls":3},0,{"$nulls":3},0,{"$nulls":4},0,0,0,0]
[null,2.5,"Hospice Days",0,{"$nulls":3},0,{"$nulls":3},0,{"$nulls":3},0,{"$nulls":4},0,0,0,0]
[null,2.6,"Hospice FFS",0,{"$nulls":3},0,{"$nulls":3},0,{"$nulls":3},0,{"$nulls":4},0,0,0,0]
[null,2.7,"Ending IBNP for NF & Hospice Services",0,{"$nulls":3},0,{"$nulls":3},0,{"$nulls":3},0,{"$nulls":4},0,0,0,0]
[null,2.8,"NF & Hospice Subcapitated Services",0,{"$nulls":3},0,{"$nulls":3},0,{"$nulls":3},0,{"$nulls":4},0,0,0,0]
[null,2.9,"NF & Hospice Settlements/AP",0,{"$nulls":3},0,{"$nulls":3},0,{"$nulls":3},0,{"$nulls":4},0,0,0,0]
[null,{"v":2.1,"d":"2.10"},"Total Nursing Facility and Hospice",{"$f":"SUM(D19:D20,D22:D25)","v":0},0,0,0,0,0,0,0,0,0,0,0,0,0,0,0,0,0,0,0,0]
["Long Term Care Services",2.11,"Assisted Living FFS",{"$f":"SUM(E27:G27)","v":0},{"$nulls":3},{"$f":"SUM(I27:K27)","v":0},{"$nulls":3},{"$f":"SUM(M27:O27)","v":0},{"$nulls":3},{"$f":"SUM(Q27:S27)","v":0},{"$nulls":4},{"$f":"SUM(V27:X27)+T27","v":0},{"$f":"E27+I27+M27+Q27","v":0},0,0]
[null,2.12,"Home Health FFS",0,{"$nulls":3},0,{"$nulls":3},0,{"$nulls":3},0,{"$nulls":4},{"$f":"SUM(V28:X28)+T28","v":0},0,0,0]
[null,2.13,"Medical Equipment/Supplies FFS",0,{"$nulls":3},0,{"$nulls":3},0,{"$nulls":3},0,{"$nulls":4},0,0,0,0]
[null,2.14,"Therapy Services FFS",0,{"$nulls":3},0,{"$nulls":3},0,{"$nulls":3},0,{"$nulls":4},0,0,0,0]
[null,2.15,"Transportation Services FFS",0,{"$nulls":3},0,{"$nulls":3},0,{"$nulls":3},0,{"$nulls":4},0,0,0,0]
[null,2.16,"Case Management (Plan Provided) FFS",0,{"$nulls":3},0,{"$nulls":3},0,{"$nulls":3},0,{"$nulls":4},0,0,0,0]
[null,2.17,"Case Management (non-Plan Provided) FFS",0,{"$nulls":3},0,{"$nulls":3},0,{"$nulls":3},0,{"$nulls":4},0,0,0,0]
[null,2.18,"Home & Community Based Services  (HCBS) FFS",0,{"$nulls":3},0,{"$nulls":3},0,{"$nulls":3},0,{"$nulls":4},0,0,0,0]
[null,2.19,"Subcapitated LTC Services (excluding NF)",0,{"$nulls":3},0,{"$nulls":3},0,{"$nulls":3},0,{"$nulls":4},0,0,0,0]
[null,{"v":2.2,"d":"2.20"},"Ending IBNP for Long Term Care Services (excluding NF)",0,{"$nulls":3},0,{"$nulls":3},0,{"$nulls":3},0,{"$nulls":4},0,0,0,{"$f":"G36+K36+O36+S36","v":0}]
[null,2.21,"LTC Services Settlements/AP (excluding NF)",0,{"$nulls":3},0,{"$nulls":3},0,{"$nulls":3},0,{"$nulls":4},0,{"$f":"E37+I37+M37+Q37","v":0},{"$f":"F37+J37+N37+R37","v":0},{"$f":"G37+K37+O37+S37","v":0}]
[null,2.22,"Grand Total LTC Services",{"$f":"SUM(D26,D27:D37)","v":0},{"$f":"SUM(E26:E37)","v":0},0,0,0,0,0,0,0,0,0,0,0,0,0,0,0,0,0,0,0]
["Expanded Benefits","3.1","Expanded Benefits FFS",{"$f":"SUM(E39:G39)","v":0},{"$nulls":3},{"$f":"SUM(I39:K39)","v":0},{"$nulls":3},{"$f":"SUM(M39:O39)","v":0},{"$nulls":3},{"$f":"SUM(Q39:S39)","v":0},{"$nulls":4},{"$f":"SUM(V39:X39)+T39","v":0},{"$f":"E39+I39+M39+Q39","v":0},0,0]
[null,"3.2","Expanded Benefits Subcapitation",{"$f":"SUM(E40:G40)","v":0},{"$nulls":3},{"$f":"SUM(I40:K40)","v":0},{"$nulls":3},{"$f":"SUM(M40:O40)","v":0},{"$nulls":3},{"$f":"SUM(Q40:S40)","v":0},{"$nulls":4},{"$f":"SUM(V40:X40)+T40","v":0},0,0,0]
[null,"3.3","Ending IBNP for Expanded Benefits",{"$f":"SUM(E41:G41)","v":0},{"$nulls":3},{"$f":"SUM(I41:K41)","v":0},{"$nulls":3},{"$f":"SUM(M41:O41)","v":0},{"$nulls":3},{"$f":"SUM(Q41:S41)","v":0},{"$nulls":4},0,0,0,0]
[null,3.4,"Expanded Benefits Services Settlements",{"$f":"SUM(E42:G42)","v":0},{"$nulls":3},{"$f":"SUM(I42:K42)","v":0},{"$nulls":3},{"$f":"SUM(M42:O42)","v":0},{"$nulls":3},{"$f":"SUM(Q42:S42)","v":0},{"$nulls":4},0,0,0,0]
[null,3.5,"Total Expanded Benefits",{"$f":"SUM(D39:D42)","v":0},0,0,0,0,0,0,0,0,0,0,0,0,0,0,0,0,0,0,0,0]
["Totals Before and After Reinsurance","4.1","Total Services Paid Directly FFS",{"$f":"SUM(D19+D20+D22, D27:D34)+D39","v":0},{"$f":"SUM(E19+E20+E22, E27:E34)+E39","v":0},0,0,{"$f":"SUM(H19+H20+H22, H27:H34)+H39","v":0},0,0,0,{"$f":"SUM(L19+L20+L22, L27:L34)+L39","v":0},0,0,0,{"$f":"SUM(P19+P20+P22, P27:P34)+P39","v":0},0,0,0,0,{"$f":"SUM(U19+U20+U22, U27:U34)+U39","v":0},0,0,0]
[null,"4.2","Total Services Paid Directly -- IBNP",{"$f":"D23+D36+D41","v":0},0,0,0,0,0,0,0,0,0,0,0,0,0,0,0,0,0,0,0,0]
[null,"4.3","Total Services Paid through Subcapitation",{"$f":"D24+D35+D40","v":0},0,0,0,0,0,0,0,0,0,0,0,0,0,0,0,0,0,0,0,0]
[null,4.4,"Total Services Paid by Settlements/AP",{"$f":"D25+D37+D42","v":0},0,0,0,0,0,0,0,0,0,0,0,0,0,0,0,0,0,0,0,0]
[null,4.5,"TPL & Fraud/Abuse Recoveries",{"$f":"SUM(E48:G48)","v":0},{"$nulls":3},{"$f":"SUM(I48:K48)","v":0},{"$nulls":3},{"$f":"SUM(M48:O48)","v":0},{"$nulls":3},{"$f":"SUM(Q48:S48)","v":0},{"$nulls":4},{"$f":"SUM(V48:X48)+T48","v":0},{"$f":"E48+I48+M48+Q48","v":0},0,0]
[null,"4.6.1","Premium Deficiency Reserve",{"$f":"SUM(E49:G49)","v":0},{"$nulls":3},{"$f":"SUM(I49:K49)","v":0},{"$nulls":3},{"$f":"SUM(M49:O49)","v":0},{"$nulls":3},{"$f":"SUM(Q49:S49)","v":0},{"$nulls":4},{"$f":"SUM(V49:X49)+T49","v":0},0,0,0]
[null,"4.7","Subtotal Benefit Expense before Reinsurance",{"$f":"SUM(D44:D49)","v":0},0,0,0,0,0,0,0,0,0,0,0,0,0,0,0,0,0,0,0,0]
[null,"4.8","Reinsurance Premiums",{"$f":"SUM(E51:G51)","v":0},{"$nulls":3},{"$f":"SUM(I51:K51)","v":0},{"$nulls":3},{"$f":"SUM(M51:O51)","v":0},{"$nulls":3},{"$f":"SUM(Q51:S51)","v":0},{"$nulls":4},{"$f":"SUM(V51:X51)+T51","v":0},{"$f":"E51+I51+M51+Q51","v":0},0,0]
[null,"4.9","Reinsurance Recoveries",{"$f":"SUM(E52:G52)","v":0},{"$nulls":3},{"$f":"SUM(I52:K52)","v":0},{"$nulls":3},{"$f":"SUM(M52:O52)","v":0},{"$nulls":3},{"$f":"SUM(Q52:S52)","v":0},{"$nulls":4},{"$f":"SUM(V52:X52)+T52","v":0},0,0,0]
[null,"4.10","Net Cost of Reinsurance",{"$f":"SUM(D51:D52)","v":0},0,0,0,0,0,0,0,0,0,0,0,0,0,0,0,0,0,0,0,0]
[null,"4.11","Grand Total Service Benefit Expense Net of Reinsurance",{"$f":"D50+D53","v":0},0,0,0,0,0,0,0,0,0,0,0,0,0,0,0,0,0,0,0,0]
["Administrative Expenses, Government-Mandated Assessments, Taxes, and Fees ",null,null,"JANUARY - MARCH (Q1)",{"$nulls":3},"APRIL - JUNE (Q2)",{"$nulls":3},"JULY - SEPTEMBER (Q3)",{"$nulls":3},"OCTOBER - DECEMBER (Q4)",{"$nulls":4},"TOTAL (TO DATE)"]
[{"$nulls":3},"Total","Non-HCBS","HCBS","MED-P / SIXT","Total","Non-HCBS","HCBS","MED-P / SIXT","Total","Non-HCBS","HCBS","MED-P / SIXT","Total","Non-HCBS","HCBS","MED-P / SIXT","Prior Calendar Year Adjustments","Total","Non-HCBS","HCBS","MED-P / SIXT"]
["Administrative Expenses","5.1","Salaries & Benefits",{"$f":"SUM(E57:G57)","v":0},{"$nulls":3},{"$f":"SUM(I57:K57)","v":0},{"$nulls":3},{"$f":"SUM(M57:O57)","v":0},{"$nulls":3},{"$f":"SUM(Q57:S57)","v":0},{"$nulls":4},{"$f":"D57+H57+L57+P57+T57","v":0},{"$f":"E57+I57+M57+Q57","v":0},0,0]
[null,"5.2","Administrative Services",0,{"$nulls":3},0,{"$nulls":3},0,{"$nulls":3},0,{"$nulls":4},{"$f":"D58+H58+L58+P58+T58","v":0},0,0,0]
[null,"5.3","Information Systems",0,{"$nulls":3},0,{"$nulls":3},0,{"$nulls":3},0,{"$nulls":4},0,0,0,0]
[null,"5.4","Marketing Expenses",0,{"$nulls":3},0,{"$nulls":3},0,{"$nulls":3},0,{"$nulls":4},0,0,0,0]
[null,"5.5","General  Administration",0,{"$nulls":3},0,{"$nulls":3},0,{"$nulls":3},0,{"$nulls":4},0,0,0,0]
[null,"5.6","Compliance/Regulatory",0,{"$nulls":3},0,{"$nulls":3},0,{"$nulls":3},0,{"$nulls":4},0,0,0,0]
[null,"5.7","Total Administrative Expenses ",{"$f":"SUM(D57:D62)","v":0},0,0,0,0,0,0,0,0,0,0,0,0,0,0,0,0,0,0,0,0]
["Government-Mandated Assessments, Taxes, and Fees Other Than Income Taxes","6.1","State Premium Tax",{"$nulls":17},{"$f":"D64+H64+L64+P64+T64","v":0}]
[null,"6.2","Department of Insurance Assessments",{"$nulls":17},{"$f":"D65+H65+L65+P65+T65","v":0}]
[null,"6.3","Other 1",{"$nulls":17},0]
[null,"6.4","Other 2",{"$nulls":17},0]
[null,"6.5","Other 3",{"$nulls":17},0]
[null,"6.6","Total ",{"$f":"SUM(D64:D68)","v":0},{"$nulls":3},{"$f":"SUM(H64:H68)","v":0},{"$nulls":3},{"$f":"SUM(L64:L68)","v":0},{"$nulls":3},{"$f":"SUM(P64:P68)","v":0},{"$nulls":3},{"$f":"SUM(T64:T68)","v":0},{"$f":"SUM(U64:U68)","v":0}]
[null,"7.0","Grand Total Expenses",{"$f":"D54+D63+D69","v":0},{"$nulls":3},{"$f":"H54+H63+H69","v":0},{"$nulls":3},{"$f":"L54+L63+L69","v":0},{"$nulls":3},{"$f":"P54+P63+P69","v":0},{"$nulls":3},{"$f":"T54+T63+T69","v":0},{"$f":"U54+U63+U69","v":0}]
[null,"8.0","Underwriting Gain / (Loss)  --- AKA Pre-tax Earnings from Operations",{"$f":"D14-D70","v":0},{"$nulls":3},{"$f":"H14-H70","v":0},{"$nulls":3},{"$f":"L14-L70","v":0},{"$nulls":3},{"$f":"P14-P70","v":0},{"$nulls":3},{"$f":"T14-T70","v":0},{"$f":"U14-U70","v":0}]
[null,"9.0","Income Tax Expense",{"$nulls":17},{"$f":"D72+H72+L72+P72+T72","v":0}]
[null,"10.0","Net Underwriting Gain (Loss)",{"$f":"D71-D72","v":0},{"$nulls":3},{"$f":"H71-H72","v":0},{"$nulls":3},{"$f":"L71-L72","v":0},{"$nulls":3},{"$f":"P71-P72","v":0},{"$nulls":3},{"$f":"T71-T72","v":0},{"$f":"U71-U72","v":0}]

{"sheet":"LTC Subcap Summary","index":35,"n_rows":34,"n_cols":15,"rows_kept":34,"hidden":true,"merged":[[7,0,8,2],[7,4,8,5],[7,6,8,7],[7,8,8,9],[7,10,8,11],[7,12,8,12],[7,13,8,14],[11,0,22,0],[23,0,28,0]]}
["LONG TERM CARE -- SUBCAPITATION SCHEDULE - SUMMARY"]
[]
["Health Plan:",null,{"$f":"'LTC Rev-Exp Summary'!C3","v":0}]
["Reporting Period:",null,{"$f":"IF('LTC Rev-Exp Summary'!C4=0,\"\",'LTC Rev-Exp Summary'!C4)","v":""}]
["Paid Through:",null,{"$f":"IF('LTC Rev-Exp Summary'!C5=0,\"\",'LTC Rev-Exp Summary'!C5)","v":""}]
["Summary"]
[]
[{"$nulls":4},"JANUARY - MARCH (Q1)",null,"APRIL - JUNE (Q2)",null,"JULY - SEPTEMBER (Q3)",null,"OCTOBER - DECEMBER (Q4)",null,"Prior Year Adjustments","TOTAL (TO DATE)"]
[]
["EXPENSES",{"$nulls":3},"MM","Amount","MM","Amount","MM","Amount","MM","Amount","Amount","MM","Amount"]
[null,null,"Vendor Name","Service Category"]
["LTC Services","1.1","Vendor #1",{"$nulls":10},{"$f":"E12+G12+I12+K12","v":0},{"$f":"F12+H12+J12+L12+M12","v":0}]
[null,"1.2","Vendor #2",{"$nulls":10},0,0]
[null,"1.3","Vendor #3",{"$nulls":10},0,0]
[null,"1.4","Vendor #4",{"$nulls":10},0,0]
[null,"1.5","Vendor #5",{"$nulls":10},0,0]
[null,"1.6","Vendor #6",{"$nulls":10},0,0]
[null,"1.7","Vendor #7",{"$nulls":10},0,0]
[null,"1.8","Vendor #8",{"$nulls":10},0,0]
[null,"1.9","Vendor #9",{"$nulls":10},0,0]
[null,"1.10","Vendor #10",{"$nulls":10},0,0]
[null,"1.11","All Others",{"$nulls":10},0,0]
[null,"1.12","Total Subcap LTC Services",null,null,{"$f":"SUM(F12:F22)","v":0},null,{"$f":"SUM(H12:H22)","v":0},null,{"$f":"SUM(J12:J22)","v":0},null,{"$f":"SUM(L12:L22)","v":0},{"$f":"SUM(M12:M22)","v":0},null,{"$f":"SUM(O12:O22)","v":0}]
["Expanded Benefits","2.1","Vendor #1",{"$nulls":10},{"$f":"E24+G24+I24+K24","v":0},{"$f":"F24+H24+J24+L24+M24","v":0}]
[null,"2.2","Vendor #2",{"$nulls":10},0,0]
[null,"2.3","Vendor #3",{"$nulls":10},0,0]
[null,"2.4","Vendor #4",{"$nulls":10},0,0]
[null,"2.5","Vendor #5",{"$nulls":10},0,0]
[null,"2.6","All Others",{"$nulls":10},0,0]
[null,2.7,"Total Subcap LTC Services",null,null,{"$f":"SUM(F24:F29)","v":0},null,{"$f":"SUM(H24:H29)","v":0},null,{"$f":"SUM(J24:J29)","v":0},null,{"$f":"SUM(L24:L29)","v":0},{"$f":"SUM(M24:M29)","v":0},null,{"$f":"SUM(O24:O29)","v":0}]
[null,3,"Grand Total, Subcap Services",null,null,{"$f":"F23+F30","v":0},null,{"$f":"H23+H30","v":0},null,{"$f":"J23+J30","v":0},null,{"$f":"L23+L30","v":0},{"$f":"M23+M30","v":0},null,{"$f":"O23+O30","v":0}]
[]
["Note "]
["Each Vendor shall be reported on the same line for the Summary Subcap schedule as well as Regional Subcap schedules.  This will allow the formulas in the Subcap Summary schedule to total properly.  Additional lines can be added if needed."]

{"sheet":"LTC Exp Benefits","index":36,"n_rows":24,"n_cols":24,"rows_kept":24,"hidden":true,"merged":[[7,0,7,2],[7,3,7,6],[7,7,7,10],[7,11,7,14],[7,15,7,18],[7,20,7,23],[10,0,10,2],[11,0,23,0]]}
["LONG TERM CARE -- EXPANDED BENEFITS -- SUMMARY"]
[]
["Health Plan:",null,{"$f":"'LTC Rev-Exp Summary'!C3","v":0}]
["Reporting Period:",null,{"$f":"IF('LTC Rev-Exp Summary'!C4=0,\"\",'LTC Rev-Exp Summary'!C4)","v":""}]
["Paid Through:",null,{"$f":"IF('LTC Rev-Exp Summary'!C5=0,\"\",'LTC Rev-Exp Summary'!C5)","v":""}]
[]
[]
[{"$nulls":3},"JANUARY - MARCH (Q1)",{"$nulls":3},"APRIL - JUNE (Q2)",{"$nulls":3},"JULY - SEPTEMBER (Q3)",{"$nulls":3},"OCTOBER - DECEMBER (Q4)",{"$nulls":4},"TOTAL (TO DATE)"]
[{"$nulls":3},"Total","Non-HCBS","HCBS","MED-P/SIXT","Total","Non-HCBS","HCBS","MED-P/SIXT","Total","Non-HCBS","HCBS","MED-P/SIXT","Total","Non-HCBS","HCBS","MED-P/SIXT","Prior Year Adjustments","Total","Non-HCBS","HCBS","MED-P/SIXT"]
["MEMBER MONTHS",null,null,{"$f":"SUM(E10:G10)","v":0},{"$nulls":3},{"$f":"SUM(I10:K10)","v":0},{"$nulls":3},{"$f":"SUM(M10:O10)","v":0},{"$nulls":3},{"$f":"SUM(Q10:S10)","v":0},{"$nulls":4},{"$f":"SUM(V10:X10)+T10","v":0},{"$f":"E10+I10+M10+Q10","v":0},{"$f":"R10+N10+J10+F10","v":0},{"$f":"S10+O10+K10+G10","v":0}]
["EXPANDED BENEFITS"]
["Expanded Benefit","1.1","Assisted Living Facility/ Adult Family Care Home Bed Hold",{"$f":"SUM(E12:G12)","v":0},{"$nulls":3},{"$f":"SUM(I12:K12)","v":0},{"$nulls":3},{"$f":"SUM(M12:O12)","v":0},{"$nulls":3},{"$f":"SUM(Q12:S12)","v":0},{"$nulls":4},{"$f":"SUM(V12:X12)+T12","v":0},{"$f":"E12+I12+M12+Q12","v":0},0,0]
[null,"1.2","Cellular Phone Services",0,{"$nulls":3},0,{"$nulls":3},0,{"$nulls":3},0,{"$nulls":4},0,0,0,0]
[null,"1.3","Dental Services (Age 21+)",0,{"$nulls":3},0,{"$nulls":3},0,{"$nulls":3},0,{"$nulls":4},0,0,0,0]
[null,"1.4","Emergency Financial Assistance",0,{"$nulls":3},0,{"$nulls":3},0,{"$nulls":3},0,{"$nulls":4},0,0,0,0]
[null,"1.5","Hearing Evaluation (Age 21+)",0,{"$nulls":3},0,{"$nulls":3},0,{"$nulls":3},0,{"$nulls":4},0,0,0,0]
[null,"1.6","Mobile Personal Emergency Response System",0,{"$nulls":3},0,{"$nulls":3},0,{"$nulls":3},0,{"$nulls":4},0,0,0,0]
[null,"1.7","Non-Medical Transportation",0,{"$nulls":3},0,{"$nulls":3},0,{"$nulls":3},0,{"$nulls":4},0,0,0,0]
[null,"1.8","Over-The-Counter Drugs/Supplies",0,{"$nulls":3},0,{"$nulls":3},0,{"$nulls":3},0,{"$nulls":4},0,0,0,0]
[null,"1.9","Support to Move Out of a Nursing Facility",0,{"$nulls":3},0,{"$nulls":3},0,{"$nulls":3},0,{"$nulls":4},0,0,0,0]
[null,"1.10","Vision Care (Age 21+)",0,{"$nulls":3},0,{"$nulls":3},0,{"$nulls":3},0,{"$nulls":4},0,0,0,0]
[null,"1.11","Wellness Grocery Discount",0,{"$nulls":3},0,{"$nulls":3},0,{"$nulls":3},0,{"$nulls":4},0,0,0,0]
[null,"1.12","Other (Describe)",0,{"$nulls":3},0,{"$nulls":3},0,{"$nulls":3},0,{"$nulls":4},0,0,0,0]
[null,"1.13","Total",{"$f":"SUM(D12:D23)","v":0},0,0,0,0,0,0,0,0,0,0,0,0,0,0,0,0,0,{"$f":"SUM(V12:V23)","v":0},{"$f":"SUM(W12:W23)","v":0},{"$f":"SUM(X12:X23)","v":0}]

{"sheet":"LTC Related-Party Summary","index":37,"n_rows":33,"n_cols":16,"rows_kept":33,"hidden":true,"merged":[[7,0,7,2],[7,5,7,6],[7,7,7,8],[7,9,7,10],[7,11,7,12],[7,14,7,15],[9,0,14,0],[15,0,20,0],[21,0,26,0]]}
["LONG TERM CARE -- RELATED-PARTY TRANSACTION SCHEDULE - SUMMARY"]
[]
["Health Plan:",null,{"$f":"'LTC Rev-Exp Summary'!C3","v":0}]
["Reporting Period:",null,{"$f":"IF('LTC Rev-Exp Summary'!C4=0,\"\",'LTC Rev-Exp Summary'!C4)","v":""}]
["Paid Through:",null,{"$f":"IF('LTC Rev-Exp Summary'!C5=0,\"\",'LTC Rev-Exp Summary'!C5)","v":""}]
["Summary"]
[]
[{"$nulls":5},"JANUARY - MARCH (Q1)",null,"APRIL - JUNE (Q2)",null,"JULY - SEPTEMBER (Q3)",null,"OCTOBER - DECEMBER (Q4)",null,"Prior Year Adjustments","TOTAL (TO DATE)"]
["EXPENSES",null,"Vendor Name","Affiliation","Payment Methodology","MM","Amount","MM","Amount","MM","Amount","MM","Amount","Amount","MM","Amount"]
["LTC Nursing Facility (NF) & Hospice Services","1.1","Vendor #1",{"$nulls":11},{"$f":"F10+H10+J10+L10","v":0},{"$f":"G10+I10+K10+M10+N10","v":0}]
[null,"1.2","Vendor #2",{"$nulls":11},{"$f":"F11+H11+J11+L11","v":0},{"$f":"G11+I11+K11+M11+N11","v":0}]
[null,"1.3","Vendor #3",{"$nulls":11},0,{"$f":"G12+I12+K12+M12+N12","v":0}]
[null,"1.4","Vendor #4",{"$nulls":11},0,{"$f":"G13+I13+K13+M13+N13","v":0}]
[null,"1.5","Vendor #5",{"$nulls":11},0,{"$f":"G14+I14+K14+M14+N14","v":0}]
[null,"1.6","Total LTC Nursing Facility & Hospice",{"$nulls":3},{"$f":"SUM(G10:G14)","v":0},null,{"$f":"SUM(I10:I14)","v":0},null,{"$f":"SUM(K10:K14)","v":0},null,{"$f":"SUM(M10:M14)","v":0},{"$f":"SUM(N10:N14)","v":0},null,{"$f":"SUM(P10:P14)","v":0}]
["Long Term Care Services","2.1","Vendor #1",{"$nulls":11},{"$f":"F16+H16+J16+L16","v":0},{"$f":"G16+I16+K16+M16+N16","v":0}]
[null,"2.2","Vendor #2",{"$nulls":11},0,{"$f":"G17+I17+K17+M17+N17","v":0}]
[null,"2.3","Vendor #3",{"$nulls":11},0,{"$f":"G18+I18+K18+M18+N18","v":0}]
[null,"2.4","Vendor #4",{"$nulls":11},0,{"$f":"G19+I19+K19+M19+N19","v":0}]
[null,"2.5","Vendor #5",{"$nulls":11},0,{"$f":"G20+I20+K20+M20+N20","v":0}]
[null,"2.6","Total Long Term Services",{"$nulls":3},{"$f":"SUM(G16:G20)","v":0},null,{"$f":"SUM(I16:I20)","v":0},null,{"$f":"SUM(K16:K20)","v":0},null,{"$f":"SUM(M16:M20)","v":0},{"$f":"SUM(N16:N20)","v":0},null,{"$f":"SUM(P16:P20)","v":0}]
["Administrative Expenses","3.1","Vendor #1",{"$nulls":11},{"$f":"F22+H22+J22+L22","v":0},{"$f":"G22+I22+K22+M22+N22","v":0}]
[null,"3.2","Vendor #2",{"$nulls":11},{"$f":"F23+H23+J23+L23","v":0},{"$f":"G23+I23+K23+M23+N23","v":0}]
[null,"3.3","Vendor #3",{"$nulls":11},0,{"$f":"G24+I24+K24+M24+N24","v":0}]
[null,"3.4","Vendor #4",{"$nulls":11},0,{"$f":"G25+I25+K25+M25+N25","v":0}]
[null,"3.5","Vendor #5",{"$nulls":11},0,{"$f":"G26+I26+K26+M26+N26","v":0}]
[null,"3.6","Total Administrative Expenses",{"$nulls":3},{"$f":"SUM(G22:G26)","v":0},null,{"$f":"SUM(I22:I26)","v":0},null,{"$f":"SUM(K22:K26)","v":0},null,{"$f":"SUM(M22:M26)","v":0},{"$f":"SUM(N22:N26)","v":0},null,{"$f":"SUM(P22:P26)","v":0}]
[null,4,"Grand Total",{"$nulls":3},{"$f":"G15+G21+G27","v":0},null,{"$f":"I15+I21+I27","v":0},null,{"$f":"K15+K21+K27","v":0},null,{"$f":"M15+M21+M27","v":0},{"$f":"N15+N21+N27","v":0},null,{"$f":"P15+P21+P27","v":0}]
[]
["Notes"]
["Each Vendor shall be reported on the same line for the Summary Related-Party schedule as well as Regional Related-Party schedules.  This will allow the formulas in the Related-Party Summary schedule to total properly.  Additional lines can be added if needed."]
[]
["Additional information concerning the nature of the relationship with each related party, as well as the payment methodology, shall be disclosed in the Notes tab of the Financial Reporting package."]

{"sheet":"ASR Instructions","index":38,"n_rows":64,"n_cols":3,"rows_kept":64,"hidden":true,"merged":[[18,0,18,1],[63,0,63,2]]}
["ACHIEVED SAVINGS REBATE EXHIBIT - INSTRUCTIONS"]
["QUARTERLY AND ANNUAL"]
[]
["Coverage:","Reported for both MMA and LTC experience; all regions combined"]
["Reporting Period:","Quarter YTD; one quarter lag behind Revenue & Expense schedule"]
["June 1","Q1 Revenue & Expense Schedule includes only January - March (paid through March).  ASR Exhibit can be left blank."]
["August 15","Q2 Revenue & Expense Schedule includes restated January - March, first look at April - June (all paid through June).  ASR Exhibit uses restated January - March of the current calendar year."]
["November 15","Q3 Revenue & Expense Schedule includes restated January - March and April - June, first look at July - September (all paid through September).  ASR Exhibit uses restated January - June of the current calendar year."]
["February 15","Q4 Revenue & Expense Schedule includes restated quarters 1 - 3, first look at October - December (all paid through December).  ASR Exhibit uses restated January - September of the current calendar year."]
["May 1","Annual Revenue & Expense Schedule and ASR Exhibit includes restated quarters 1-4, all paid through March.  "]
[]
["Health Plan:","Name or D/B/A of the managed care plan."]
["Reporting Period:","Based upon the reporting periods identified above."]
["Paid Through:","Based on the paid through timeframes identified above."]
["Plan Type:","MMA, LTC, or Comprehensive"]
[]
["Note:  Please refer to the SMMC contract and/or Section 409.967(3), Florida Statues, for additional information/clarification on items specific to the calculation of the Achieved Savings Rebate."]
[]
["REVENUES"]
[1.1,"Total Revenue from Revenue & Expense Schedules","Premium and related payments earned on behalf of Medicaid recipients. \nCorresponds to LTC Rev-Exp Line 1.4 and MMA Rev-Exp Line 1.7."]
[1.2,"Federal Taxes and Assessments, including ACA § 9010","Federal taxes and assessments allocated to health insurance coverage.  Includes income taxes deductible from revenue for Federal MLR reporting, as well as funds provided for the \"gross up\" of HIPF payments, if applicable.  Reported as a negative amount.  "]
[1.3,"State Insurance, Premium and other Taxes","State premium taxes or other assessments allocated to health insurance coverage.  Includes income taxes deductible from revenue for Federal MLR reporting, as well as funds provided for the \"gross up\" of HIPF payments, if applicable.  Reported as a negative amount.  "]
[1.4,"Regulatory Authority Licenses and Fees","Statutory assessments based on premium to defray operating expenses of any state insurance department. Do not include fines and penalties or examination fees not in lieu of premium taxes.  Reported as a negative amount.  "]
["1.5","Revenue Subject to MLR ","Sum of Lines 1.1 through 1.4."]
["1.6","Less:  Financial Incentive Payments Outside of Capitation Rate ","Incentive payments received by the plan in addition to the capitation rate.  Reported as a negative.  [409.967(3), FL Statutes]"]
["1.7","Add:  Income taxes deducted from Revenue for Federal MLR Reporting","Federal and State income taxes deducted from revenue in lines 1.2 and 1.3 to arrive at Revenue subject to MLR, if applicable.  Excludes funds provided for the \"gross up\" of HIPF payments."]
["1.8","Revenue Subject to ASR ","Sum of lines 1.5 through 1.7.  Refer to Section 409.967(3), Florida Statutes, and the SMMC contract for additional guidance concerning adjustments to revenue for the ASR calculation."]
["EXPENSES"]
["Benefit Expenses"]
["2.1","Total Benefits Paid through FFS and Subcapitation During the Year","Total expenses incurred for providing services to Medicaid beneficiaries, including services provided as fee-for-service or subcapitation. \nCorresponds to LTC Rev-Exp Lines 4.1 plus 4.3 plus 4.5 and MMA Rev-Exp Lines 11.1 plus 11.3 plus 11.5."]
["2.2","Incurred But Not Paid Ending Balance","Ending balance of Incurred but not Paid (IBNP) for the reporting period.  Corresponds to LTC Rev-Exp line 4.2 and MMA Rev-Exp line 11.2."]
["2.3","Settlements/AP","Expenses incurred for financial payments and related service expenses associated with provider, recipient, legal, and/or TPL settlements not reported in lines 2.1 - 2.2.  Includes alternative payment arrangements.\nCorresponds to LTC Rev-Exp line 4.4 and MMA Rev-Exp line 11.4."]
["2.4","Less: Premium Deficiency Reserve and other Reserve Account Contributions","Premium Deficiency Reserve and other Reserve Account contributions other than IBNP.  Reported as a negative amount.\nCorresponds to LTC Rev-Exp line 4.6.1 and MMA Rev-Exp line 11.6.1."]
["2.5","Total Benefit Expense before Reinsurance ","Sum of lines 2.1 through 2.4."]
[2.6,"Net Cost of Reinsurance","Amounts paid by the plan to an authorized reinsurer, less amounts recovered and change in accrued amount recoverable from reinsurer on paid losses. \nCorresponds to LTC Rev-Exp line 4.10 and MMA Rev-Exp line 11.10."]
["2.7","Total Benefit Expense after Reinsurance ","Lines 2.5 plus 2.6."]
["Florida-Specific Contributions (MLR Only)"]
["3.1","Funds to Graduate Medical Education institutions","Funds provided by plans to graduate medical institutions to underwrite the costs of residency positions, provided the funding is sufficient to sustain the position(s) for the number of years necessary to complete the residency requirements and the residency positions funded by the plan are active providers of care to Medicaid and uninsured residents.**"]
["3.2","Contributions for the Purpose of Supporting Medicaid and Indigent Care","Contributions to a designated state trust fund for the purpose of supporting Medicaid and indigent care."]
["3.3","Total Florida-Specific Contributions ","Lines 3.1 plus 3.2."]
["Improving Health Care Quality Expenses Incurred (MLR Only)"]
["4.1","Improve Health Outcomes","Using the guidance found at 45 CFR, 158.150, include expenses meeting the definition of Improve Health Outcomes that are not health information technology expenses. "]
["4.2","Activities to Prevent Hospital Readmissions","Using the guidance found at 45 CFR, 158.150, include expenses meeting the definition of Improving Activities to Prevent Hospital Readmissions that are not health information technology expenses. "]
["4.3","Improve Patient Safety and Reducing Medical Errors","Using the guidance found at 45 CFR, 158.150, include expenses meeting the definition of Improve Patient Safety and Reduce Medical Errors that are not health information technology expenses. "]
["4.4","Wellness and Health Promotion Activities","Using the guidance found at 45 CFR, 158.150, include expenses meeting the definition of Wellness and Health Promotion Activities that are not health information technology expenses. "]
["4.5","Health Information Technology (HIT) expenses related to Health Improvement","Using the guidance found at 45 CFR 151.151, include expenses meeting the definition of HIT Expenses for Health Care Quality Improvements that are health information technology expenses. "]
["4.6","Total of Defined Expenses incurred for improving Health Care Quality.","Sum of lines 4.1 through 4.5."]
["5.0","Deductible Fraud and Abuse Detection/Recovery Expenses (MLR only)","Using the federal guidance found at 45 CFR 158.140 report the lesser of Fraud and Abuse Recoveries that reduced paid claims in line 2.1 above or Total Fraud and Abuse Detection/Recovery Expenses."]
["6.0","Preliminary Medical Loss Ratio: MLR ","(Lines 2.7 plus 3.3 plus 4.6 + 5.0)/Line 1.5. Preliminary MLR prior to any adjustment due to credibility."]
["Administrative Expenses"]
["7.1","Total Administrative Expenses from Revenue & Expense Schedule","Total administrative expenses associated with administering the contract, as reported on LTC Rev-Exp line 5.7 and MMA Rev-Exp line 12.7, including Improving Health Care Quality Expenses incurred."]
["7.2","Less: Compliance/Regulatory","Expenses included in line 7.1 above that are associated with fines, penalties, liquidated damages, or other compliance matters as identified/levied by governmental or other regulatory entities; as reported on LTC Rev-Exp line 5.6 and MMA Rev-Exp line 12.6. Report as a negative amount."]
["7.3","Less: Lobbying/Political expenses","Expenses included in line 7.1 above associated with lobbying and political contributions/expenses. Report as a negative amount."]
["7.4","Less: Cash-value of Executive Bonuses Above Base Salary","Expenses included in line 7.1 above associated with the cash value of bonuses issued to executives, reported as a negative amount.  Executive defined as CEO, CFO, COO, CIO, CISO, CKO, President, VP, Managing Director, Executive Director, Secretary, Treasurer, Controller, Board of Directors, or other like titles assigned to corporate executives. (amount required to be disclosed in notes of Annual Summary). "]
["7.5","Less: Other Non-allowed expenses","Expenses reported in line 7.1 that are not related to the fulfillment of the contract and not included in lines 7.2 through 7.5; including charitable contributions, legal fees, or claims interest expense.  Report as a negative amount."]
["7.6","Administrative Expense Subject to ASR ","Sum of lines 7.1 through 7.5."]
["8.0","Actuarially-sound Administrative Expense Maximum","Dollar amount of administration expense as calculated by application of the actuarially-sound maximum administrative percentage(s) to the capitation received. The actuarially-sound maximum administrative percentage(s) will be provided each rate cycle with rate report materials.  This line is automatically populated from calculations performed on the ASR Admin Max tab."]
["9.0","Administrative Expenses Subject to ASR ","The lesser of line 7.6 or line 8.0."]
["10.0","Total Benefit and Administrative Expense Subject to ASR","The sum of lines 2.7 and 9.0."]
["Calculation of Pre-Tax Income and ASR"]
["11.1","Pre-tax Income subject to ASR","Line 1.7 minus line 10.0.  Refer to the SMMC contract for further information concerning the definition of \"Pre-tax income.\""]
["11.2","Pre-tax Income as a Percent of Revenue ","Line 11.1 / line 1.8."]
["11.3","Preliminary Achieved Savings Rebate","Preliminary ASR without adjustment for credibility or quality incentive.\nIf Line 11.2 <= 5.00%; then Line 11.3 = $0\nIf 5.00% < Line 11.2 <= 10.00%; then Line 11.3 = (Line 11.2 - 5.00%/2) multiplied by Line 1.8\nIf Line 11.2 > 10.00%; then Line 11.3 = (Line 11.2 - 7.50%) multiplied by Line 1.8 "]
["** Please provide an attestation from the graduate medical education institutions that the funding amount is sufficient to sustain the position(s) for the number of years necessary to complete the residency requirements and the residency positions funded are active providers of care to Medicaid and uninsured patients (include Medicaid provider identification numbers)."]

{"sheet":"ASR Exhibit","index":39,"n_rows":51,"n_cols":20,"rows_kept":51,"hidden":true,"merged":[[4,2,4,4],[4,5,4,7],[4,8,4,10],[4,11,4,13],[4,14,4,16],[4,17,4,19]]}
["ACHIEVED SAVINGS REBATE EXHIBIT"]
["Health Plan:"]
["Reporting Period:"]
["Paid Through:"]
["Plan Type: ",null,"JANUARY - MARCH (Q1)",null,null,"APRIL - JUNE (Q2)",null,null,"JULY - SEPTEMBER (Q3)",null,null,"OCTOBER - DECEMBER (Q4)",null,null,"Prior Year Adjustments",null,null,"TOTAL (TO DATE)"]
[null,null,"Total","MMA","LTC","Total","MMA","LTC","Total","MMA","LTC","Total","MMA","LTC","Total","MMA ","LTC","Total","MMA","LTC"]
["REVENUES"]
[1.1,"Total Revenue from Revenue & Expense Schedules",{"$f":"SUM(D8:E8)","v":0},null,null,{"$f":"SUM(G8:H8)","v":0},null,null,{"$f":"SUM(J8:K8)","v":0},null,null,{"$f":"SUM(M8:N8)","v":0},null,null,{"$f":"SUM(P8:Q8)","v":0},null,null,{"$f":"SUM(S8:T8)","v":0},{"$f":"D8+G8+J8+M8+P8","v":0},{"$f":"E8+H8+K8+N8+Q8","v":0}]
[1.2,"Federal Taxes and Assessments, including ACA § 9010",{"$f":"SUM(D9:E9)","v":0},null,null,{"$f":"SUM(G9:H9)","v":0},null,null,{"$f":"SUM(J9:K9)","v":0},null,null,{"$f":"SUM(M9:N9)","v":0},null,null,{"$f":"SUM(P9:Q9)","v":0},null,null,{"$f":"SUM(S9:T9)","v":0},{"$f":"D9+G9+J9+M9+P9","v":0},{"$f":"E9+H9+K9+N9+Q9","v":0}]
[1.3,"State Insurance, Premium and other Taxes",{"$f":"SUM(D10:E10)","v":0},null,null,{"$f":"SUM(G10:H10)","v":0},null,null,{"$f":"SUM(J10:K10)","v":0},null,null,{"$f":"SUM(M10:N10)","v":0},null,null,{"$f":"SUM(P10:Q10)","v":0},null,null,{"$f":"SUM(S10:T10)","v":0},0,0]
[1.4,"Regulatory Authority Licenses and Fees",{"$f":"SUM(D11:E11)","v":0},null,null,{"$f":"SUM(G11:H11)","v":0},null,null,{"$f":"SUM(J11:K11)","v":0},null,null,{"$f":"SUM(M11:N11)","v":0},null,null,{"$f":"SUM(P11:Q11)","v":0},null,null,{"$f":"SUM(S11:T11)","v":0},0,0]
["1.5","Revenue Subject to MLR ",{"$f":"SUM(C8:C11)","v":0},0,0,0,0,0,0,0,0,0,0,0,{"$f":"SUM(O8:O11)","v":0},0,0,0,0,0]
["1.6","Less:  Financial Incentive Payments Outside of Capitation Rate ",{"$f":"SUM(D13:E13)","v":0},null,null,{"$f":"SUM(G13:H13)","v":0},null,null,{"$f":"SUM(J13:K13)","v":0},null,null,{"$f":"SUM(M13:N13)","v":0},null,null,{"$f":"SUM(P13:Q13)","v":0},null,null,{"$f":"SUM(S13:T13)","v":0},0,0]
["1.7","Add:  Income taxes deducted from Revenue for Federal MLR Reporting",{"$f":"SUM(D14:E14)","v":0},null,null,{"$f":"SUM(G14:H14)","v":0},null,null,{"$f":"SUM(J14:K14)","v":0},null,null,{"$f":"SUM(M14:N14)","v":0},null,null,{"$f":"SUM(P14:Q14)","v":0},null,null,{"$f":"SUM(S14:T14)","v":0},0,0]
["1.8","Revenue Subject to ASR ",{"$f":"SUM(C12:C14)","v":0},0,0,0,0,0,0,0,0,0,0,0,0,0,0,0,0,0]
["EXPENSES"]
["Benefit Expenses"]
["2.1","Total Benefits Paid through FFS and Subcapitation During the Year",{"$f":"SUM(D18:E18)","v":0},null,null,{"$f":"SUM(G18:H18)","v":0},null,null,{"$f":"SUM(J18:K18)","v":0},null,null,{"$f":"SUM(M18:N18)","v":0},null,null,{"$f":"SUM(P18:Q18)","v":0},null,null,{"$f":"SUM(S18:T18)","v":0},{"$f":"D18+G18+J18+M18+P18","v":0},{"$f":"E18+H18+K18+N18+Q18","v":0}]
["2.2","Incurred but not Paid (IBNP) Ending Balance",{"$f":"SUM(D19:E19)","v":0},null,null,{"$f":"SUM(G19:H19)","v":0},null,null,{"$f":"SUM(J19:K19)","v":0},null,null,{"$f":"SUM(M19:N19)","v":0},null,null,{"$f":"SUM(P19:Q19)","v":0},null,null,{"$f":"SUM(S19:T19)","v":0},{"$f":"D19+G19+J19+M19+P19","v":0},{"$f":"E19+H19+K19+N19+Q19","v":0}]
["2.3","Settlements/AP",{"$f":"SUM(D20:E20)","v":0},null,null,{"$f":"SUM(G20:H20)","v":0},null,null,{"$f":"SUM(J20:K20)","v":0},null,null,{"$f":"SUM(M20:N20)","v":0},null,null,{"$f":"SUM(P20:Q20)","v":0},null,null,{"$f":"SUM(S20:T20)","v":0},0,0]
["2.4","Less: Premium Deficiency Reserve and other Reserve Account Contributions",{"$f":"SUM(D21:E21)","v":0},null,null,{"$f":"SUM(G21:H21)","v":0},null,null,{"$f":"SUM(J21:K21)","v":0},null,null,{"$f":"SUM(M21:N21)","v":0},null,null,{"$f":"SUM(P21:Q21)","v":0},null,null,{"$f":"SUM(S21:T21)","v":0},0,0]
["2.5","Total Benefit Expense before Reinsurance ",{"$f":"SUM(C18:C21)","v":0},0,0,0,0,0,0,0,0,0,0,0,{"$f":"SUM(O18:O21)","v":0},0,0,0,0,0]
[2.6,"Net Cost of Reinsurance",{"$f":"SUM(D23:E23)","v":0},null,null,{"$f":"SUM(G23:H23)","v":0},null,null,{"$f":"SUM(J23:K23)","v":0},null,null,{"$f":"SUM(M23:N23)","v":0},null,null,{"$f":"SUM(P23:Q23)","v":0},null,null,{"$f":"SUM(S23:T23)","v":0},{"$f":"D23+G23+J23+M23+P23","v":0},{"$f":"E23+H23+K23+N23+Q23","v":0}]
["2.7","Total Benefit Expense after Reinsurance ",{"$f":"SUM(C22:C23)","v":0},0,0,0,0,0,0,0,0,0,0,0,{"$f":"SUM(O22:O23)","v":0},0,0,0,0,0]
["Florida-Specific Contributions (MLR Only)"]
["3.1","Funds to Graduate Medical Education institutions",{"$f":"D26","v":0},null,null,{"$f":"G26","v":0},null,null,{"$f":"J26","v":0},null,null,{"$f":"M26","v":0},null,null,{"$f":"P26","v":0},null,null,{"$f":"S26","v":0},{"$f":"D26+G26+J26+M26+P26","v":0}]
["3.2","Contributions for the Purpose of Supporting Medicaid and Indigent Care",{"$f":"D27","v":0},null,null,{"$f":"G27","v":0},null,null,{"$f":"J27","v":0},null,null,{"$f":"M27","v":0},null,null,{"$f":"P27","v":0},null,null,{"$f":"S27","v":0},{"$f":"D27+G27+J27+M27+P27","v":0}]
["3.3","Total Florida-Specific Contributions ",{"$f":"SUM(C26:C27)","v":0},{"$f":"SUM(D26:D27)","v":0},null,{"$f":"SUM(F26:F27)","v":0},{"$f":"SUM(G26:G27)","v":0},null,{"$f":"SUM(I26:I27)","v":0},{"$f":"SUM(J26:J27)","v":0},null,{"$f":"SUM(L26:L27)","v":0},{"$f":"SUM(M26:M27)","v":0},null,{"$f":"SUM(O26:O27)","v":0},{"$f":"SUM(P26:P27)","v":0},null,{"$f":"SUM(R26:R27)","v":0},{"$f":"SUM(S26:S27)","v":0}]
["Improving Health Care Quality Expenses Incurred (MLR Only)"]
["4.1","Improve Health Outcomes",{"$f":"D30","v":0},null,null,{"$f":"G30","v":0},null,null,{"$f":"J30","v":0},null,null,{"$f":"M30","v":0},null,null,{"$f":"P30","v":0},null,null,{"$f":"S30","v":0},{"$f":"D30+G30+J30+M30+P30","v":0}]
["4.2","Activities to Prevent Hospital Readmissions",{"$f":"D31","v":0},null,null,{"$f":"G31","v":0},null,null,{"$f":"J31","v":0},null,null,{"$f":"M31","v":0},null,null,{"$f":"P31","v":0},null,null,{"$f":"S31","v":0},{"$f":"D31+G31+J31+M31+P31","v":0}]
["4.3","Improve Patient Safety and Reducing Medical Errors",{"$f":"D32","v":0},null,null,{"$f":"G32","v":0},null,null,{"$f":"J32","v":0},null,null,{"$f":"M32","v":0},null,null,{"$f":"P32","v":0},null,null,{"$f":"S32","v":0},0]
["4.4","Wellness and Health Promotion Activities",{"$f":"D33","v":0},null,null,{"$f":"G33","v":0},null,null,{"$f":"J33","v":0},null,null,{"$f":"M33","v":0},null,null,{"$f":"P33","v":0},null,null,{"$f":"S33","v":0},0]
["4.5","Health Information Technology (HIT) expenses related to Health Improvement",{"$f":"D34","v":0},null,null,{"$f":"G34","v":0},null,null,{"$f":"J34","v":0},null,null,{"$f":"M34","v":0},null,null,{"$f":"P34","v":0},null,null,{"$f":"S34","v":0},0]
["4.6","Total of Defined Expenses incurred for improving Health Care Quality.",{"$f":"SUM(C30:C34)","v":0},{"$f":"SUM(D30:D34)","v":0},null,{"$f":"SUM(F30:F34)","v":0},{"$f":"SUM(G30:G34)","v":0},null,{"$f":"SUM(I30:I34)","v":0},{"$f":"SUM(J30:J34)","v":0},null,{"$f":"SUM(L30:L34)","v":0},{"$f":"SUM(M30:M34)","v":0},null,{"$f":"SUM(O30:O34)","v":0},{"$f":"SUM(P30:P34)","v":0},null,{"$f":"SUM(R30:R34)","v":0},{"$f":"SUM(S30:S34)","v":0}]
["5.0","Deductible Fraud and Abuse Detection/Recovery Expenses (MLR only)",{"$f":"D36","v":0},null,null,{"$f":"G36","v":0},null,null,{"$f":"J36","v":0},null,null,{"$f":"M36","v":0},null,null,{"$f":"P36","v":0},null,null,{"$f":"S36","v":0},{"$f":"D36+G36+J36+M36+P36","v":0}]
["6.0","Preliminary Medical Loss Ratio: MLR ",{"$f":"IFERROR((C24+C28+C35+C36)/C12,0)","v":{"v":0,"d":"0.00%"}},{"$f":"IFERROR((D24+D28+D35+D36)/D12,0)","v":{"v":0,"d":"0.00%"}},null,{"$f":"IFERROR((F24+F28+F35+F36)/F12,0)","v":{"v":0,"d":"0.00%"}},{"$f":"IFERROR((G24+G28+G35+G36)/G12,0)","v":{"v":0,"d":"0.00%"}},null,{"$f":"IFERROR((I24+I28+I35+I36)/I12,0)","v":{"v":0,"d":"0.00%"}},{"$f":"IFERROR((J24+J28+J35+J36)/J12,0)","v":{"v":0,"d":"0.00%"}},null,{"$f":"IFERROR((L24+L28+L35+L36)/L12,0)","v":{"v":0,"d":"0.00%"}},{"$f":"IFERROR((M24+M28+M35+M36)/M12,0)","v":{"v":0,"d":"0.00%"}},{"$nulls":4},{"$f":"IFERROR((R24+R28+R35+R36)/R12,0)","v":{"v":0,"d":"0.00%"}},{"$f":"IFERROR((S24+S28+S35+S36)/S12,0)","v":{"v":0,"d":"0.00%"}}]
["Administrative Expenses"]
["7.1","Total Administrative Expenses from Revenue & Expense Schedule",{"$f":"SUM(D39:E39)","v":0},null,null,{"$f":"SUM(G39:H39)","v":0},null,null,{"$f":"SUM(J39:K39)","v":0},null,null,{"$f":"SUM(M39:N39)","v":0},null,null,{"$f":"SUM(P39:Q39)","v":0},null,null,{"$f":"SUM(S39:T39)","v":0},{"$f":"D39+G39+J39+M39+P39","v":0},{"$f":"E39+H39+K39+N39+Q39","v":0}]
["7.2","Less: Compliance/Regulatory",0,null,null,0,null,null,0,null,null,0,null,null,0,null,null,0,{"$f":"D40+G40+J40+M40+P40","v":0},{"$f":"E40+H40+K40+N40+Q40","v":0}]
["7.3","Less: Lobbying/Political expenses",0,null,null,0,null,null,0,null,null,0,null,null,0,null,null,0,0,0]
["7.4","Less: Cash-value of Executive Bonuses Above Base Salary",0,null,null,0,null,null,0,null,null,0,null,null,0,null,null,0,0,0]
["7.5","Less: Other Non-allowed expenses",0,null,null,0,null,null,0,null,null,0,null,null,0,null,null,0,0,0]
["7.6","Administrative Expense Subject to ASR ",{"$f":"SUM(C39:C43)","v":0},0,0,0,0,0,0,0,0,0,0,0,0,0,0,0,0,0]
["8.0","Actuarially-sound Administrative Expense Maximum",{"$nulls":15},{"$f":"S45+T45","v":0},{"$f":"'ASR Admin Max'!C15","v":0},{"$f":"'ASR Admin Max'!D19+'ASR Admin Max'!E19","v":0}]
["9.0","Administrative Expenses Subject to ASR ",{"$nulls":15},{"$f":"MIN(R44:R45)","v":0},{"$f":"MIN(S44:S45)","v":0},{"$f":"MIN(T44:T45)","v":0}]
["10.0","Total Benefit and Administrative Expense subject to ASR",{"$nulls":15},{"$f":"R24+R46","v":0},{"$f":"S24+S46","v":0},{"$f":"T24+T46","v":0}]
["Calculation of Pre-Tax Income and ASR"]
["11.1","Pre-tax Income",{"$nulls":15},{"$f":"R15-R47","v":0},{"$f":"S15-S47","v":0},{"$f":"T15-T47","v":0}]
["11.2","Pre-tax Income as a Percent of Revenue",{"$nulls":15},{"$f":"IFERROR(R49/R15, 0)","v":{"v":0,"d":"0.0%"}},{"$f":"IFERROR(S49/S15, 0)","v":{"v":0,"d":"0.0%"}},{"$f":"IFERROR(T49/T15, 0)","v":{"v":0,"d":"0.0%"}}]
["11.3","Preliminary Achieved Savings Rebate"]

{"sheet":"ASR Admin Max","index":40,"n_rows":29,"n_cols":5,"rows_kept":29,"hidden":true,"merged":[[7,2,7,4],[8,3,8,4]]}
["ACHIEVED SAVINGS REBATE - ACTUARIALLY-SOUND ADMINISTRATIVE MAXIMUM CALCULATION"]
["Health Plan:",{"$f":"IF('ASR Exhibit'!B2=0,\"\",'ASR Exhibit'!B2)","v":""}]
["Reporting Period:",{"$f":"IF('ASR Exhibit'!B3=0,\"\",'ASR Exhibit'!B3)","v":""}]
["Paid Through:",{"$f":"IF('ASR Exhibit'!B4=0,\"\",'ASR Exhibit'!B4)","v":""}]
["Plan Type: ",{"$f":"IF('ASR Exhibit'!B5=0,\"\",'ASR Exhibit'!B5)","v":""}]
[]
[]
[null,null,"CALENDER YEAR TOTAL (TO DATE)"]
[null,null,"MMA","Long-Term Care"]
[{"$nulls":3},"Non-HCBS","HCBS"]
["MMA Administrative Expense Maximum"]
["1.0","Plan Enrollment"]
["1.1","MMA Administrative Maximum (Percent of Premium)"]
[1.2,"MMA Revenue Subject to ASR",{"$f":"'ASR Exhibit'!S15","v":0}]
["1.3","Total MMA Administrative Maximum",{"$f":"IFERROR(C13*C14, 0)","v":0}]
["LTC Administrative Expense Maximum"]
["2.0","LTC Member Months"]
[2.1,"LTC Administrative Maximum (PMPM)"]
[2.2,"Total LTC Administrative Maximum ",null,{"$f":"D17*D18","v":0},{"$f":"E17*E18","v":0}]
[]
[]
[]
["Instructions"]
["Reporting Period","Follows the same reporting schedules as the ASR Exhibit, as noted in the ASR Instructions (i.e. one quarter lag)."]
["Paid Through","Follows the same Paid Through dates as the ASR Exhibit, as noted in the ASR Instructions (i.e. paid through the current period)."]
["Line 1.0","Report national health plan enrollment across all lines, as of the end of the reporting period."]
["Line 1.1","Enter the applicable administrative maximum percentage of premium based on plan enrollment."]
["Line 2.0","Report Year-to-Date member months for the reporting period."]
["Line 2.1","Enter the administrative maximum PMPM applicable to each population."]

{"sheet":"Notes","index":41,"n_rows":31,"n_cols":7,"rows_kept":31,"hidden":true}
["Notes - Other Revenue"]
[]
[]
["MMA Rev-Exp Line 1.6 - Other Revenue (add rows as needed)"]
["Description ","Q1","Q2","Q3","Q4","Prior","Total (To Date)"]
[{"$nulls":6},{"$f":"SUM(B6:F6)","v":0}]
[{"$nulls":6},{"$f":"SUM(B7:F7)","v":0}]
[{"$nulls":6},0]
[{"$nulls":6},0]
[{"$nulls":6},0]
[{"$nulls":6},0]
[{"$nulls":6},0]
["1.6 Other Revenue (Total)",{"$f":"SUM(B6:B12)","v":0},{"$f":"SUM(C6:C12)","v":0},0,0,0,0]
[]
[]
[]
[]
["LTC Rev-Exp Line 1.4 - Other Revenue (add rows as needed)"]
["Description ","Q1","Q2","Q3","Q4","Prior","Total (To Date)"]
[{"$nulls":6},{"$f":"SUM(B20:F20)","v":0}]
[{"$nulls":6},{"$f":"SUM(B21:F21)","v":0}]
[{"$nulls":6},0]
[{"$nulls":6},0]
[{"$nulls":6},0]
[{"$nulls":6},0]
[{"$nulls":6},0]
["1.6 Other Revenue (Total)",{"$f":"SUM(B20:B26)","v":0},{"$f":"SUM(C20:C26)","v":0},{"$f":"SUM(D20:D26)","v":0},{"$f":"SUM(E20:E26)","v":0},{"$f":"SUM(F20:F26)","v":0},{"$f":"SUM(G20:G26)","v":0}]
[]
[]
[]
["Additional Notes - Report as Needed"]

{"sheet":"Drop-down Lists","index":42,"n_rows":9,"n_cols":1,"rows_kept":9,"hidden":true,"merged":[[0,0,0,2]]}
["Drop-down Lists"]
[]
[]
["Payment Methodology"]
["Fee-for-Service"]
["Subcapitation"]
["Alternative Payment Methodology"]
["% of Premium"]
["Other (please explain)"]

{"sheet":"MMA Data","index":43,"n_rows":4141,"n_cols":28,"rows_kept":2250,"cut":true,"hidden":true,"bounds":{"rows_first":1000,"rows_last":250,"rows_between":1000,"halvings":1}}
["Contract","Plan ID","Plan Name","Reporting Year","Reporting Quarter","Calendar Quarter","Quarter Ending","Region","Transaction Class","Transaction Type","Transaction Category","Report Line","Report Description","Total","TANF Non-SMI","TANF SMI","SSI Medicaid Only Non-SMI","SSI Medicaid Only SMI","Dual Eligible","Child Welfare","HIV/AIDS Dual Eligible","HIV/AIDS Medicaid Only","LTC Dual Eligible","LTC Medicaid Only","Prior Year","File Name","File Date","Status"]
["MMA",null,null,{"$f":"Jurat!I$1","v":0},{"$f":"Jurat!D$33","v":"00:00:00"},"Q1","2017-03-31","Summary","Member Months","Member Months","Member Months",null,"Member Months",{"$f":"'MMA Rev-Exp Summary'!D$9","v":{"v":0,"d":"$0.00"}},{"$f":"'MMA Rev-Exp Summary'!E$9","v":{"v":0,"d":"$0.00"}},{"$f":"'MMA Rev-Exp Summary'!F$9","v":{"v":0,"d":"$0.00"}},{"$f":"'MMA Rev-Exp Summary'!G$9","v":{"v":0,"d":"$0.00"}},{"$f":"'MMA Rev-Exp Summary'!H$9","v":{"v":0,"d":"$0.00"}},{"$f":"'MMA Rev-Exp Summary'!I$9","v":{"v":0,"d":"$0.00"}},{"$f":"'MMA Rev-Exp Summary'!J$9","v":{"v":0,"d":"$0.00"}},{"$f":"'MMA Rev-Exp Summary'!K$9","v":{"v":0,"d":"$0.00"}},{"$f":"'MMA Rev-Exp Summary'!L$9","v":{"v":0,"d":"$0.00"}},{"$f":"'MMA Rev-Exp Summary'!M$9","v":{"v":0,"d":"$0.00"}},{"$f":"'MMA Rev-Exp Summary'!N$9","v":{"v":0,"d":"$0.00"}},{"v":0,"d":"$0.00"}]
["MMA",null,null,{"$f":"Jurat!I$1","v":0},{"$f":"Jurat!D$33","v":"00:00:00"},"Q1","2017-03-31","Summary","Operating Revenue","Capitation","Capitation",1.1,"Capitation",{"$f":"'MMA Rev-Exp Summary'!D$11","v":{"v":0,"d":"$0.00"}},{"$f":"'MMA Rev-Exp Summary'!E$11","v":{"v":0,"d":"$0.00"}},{"$f":"'MMA Rev-Exp Summary'!F$11","v":{"v":0,"d":"$0.00"}},{"$f":"'MMA Rev-Exp Summary'!G$11","v":{"v":0,"d":"$0.00"}},{"$f":"'MMA Rev-Exp Summary'!H$11","v":{"v":0,"d":"$0.00"}},{"$f":"'MMA Rev-Exp Summary'!I$11","v":{"v":0,"d":"$0.00"}},{"$f":"'MMA Rev-Exp Summary'!J$11","v":{"v":0,"d":"$0.00"}},{"$f":"'MMA Rev-Exp Summary'!K$11","v":{"v":0,"d":"$0.00"}},{"$f":"'MMA Rev-Exp Summary'!L$11","v":{"v":0,"d":"$0.00"}},{"$f":"'MMA Rev-Exp Summary'!M$11","v":{"v":0,"d":"$0.00"}},{"$f":"'MMA Rev-Exp Summary'!N$11","v":{"v":0,"d":"$0.00"}},{"v":0,"d":"$0.00"}]
["MMA",null,null,{"$f":"Jurat!I$1","v":0},{"$f":"Jurat!D$33","v":"00:00:00"},"Q1","2017-03-31","Summary","Operating Revenue","Kick Payments","Kick Payments - Transplant",1.2,"Transplant Kick Payments",{"$f":"'MMA Rev-Exp Summary'!D$12","v":{"v":0,"d":"$0.00"}},{"$f":"'MMA Rev-Exp Summary'!E$12","v":{"v":0,"d":"$0.00"}},{"$f":"'MMA Rev-Exp Summary'!F$12","v":{"v":0,"d":"$0.00"}},{"$f":"'MMA Rev-Exp Summary'!G$12","v":{"v":0,"d":"$0.00"}},{"$f":"'MMA Rev-Exp Summary'!H$12","v":{"v":0,"d":"$0.00"}},{"$f":"'MMA Rev-Exp Summary'!I$12","v":{"v":0,"d":"$0.00"}},{"$f":"'MMA Rev-Exp Summary'!J$12","v":{"v":0,"d":"$0.00"}},{"$f":"'MMA Rev-Exp Summary'!K$12","v":{"v":0,"d":"$0.00"}},{"$f":"'MMA Rev-Exp Summary'!L$12","v":{"v":0,"d":"$0.00"}},{"$f":"'MMA Rev-Exp Summary'!M$12","v":{"v":0,"d":"$0.00"}},{"$f":"'MMA Rev-Exp Summary'!N$12","v":{"v":0,"d":"$0.00"}},{"v":0,"d":"$0.00"}]
["MMA",null,null,{"$f":"Jurat!I$1","v":0},{"$f":"Jurat!D$33","v":"00:00:00"},"Q1","2017-03-31","Summary","Operating Revenue","Kick Payments","Kick Payments - Hep C","1.3","Hepatitis C Kick Payments",{"$f":"'MMA Rev-Exp Summary'!D$13","v":{"v":0,"d":"$0.00"}},{"$f":"'MMA Rev-Exp Summary'!E$13","v":{"v":0,"d":"$0.00"}},{"$f":"'MMA Rev-Exp Summary'!F$13","v":{"v":0,"d":"$0.00"}},{"$f":"'MMA Rev-Exp Summary'!G$13","v":{"v":0,"d":"$0.00"}},{"$f":"'MMA Rev-Exp Summary'!H$13","v":{"v":0,"d":"$0.00"}},{"$f":"'MMA Rev-Exp Summary'!I$13","v":{"v":0,"d":"$0.00"}},{"$f":"'MMA Rev-Exp Summary'!J$13","v":{"v":0,"d":"$0.00"}},{"$f":"'MMA Rev-Exp Summary'!K$13","v":{"v":0,"d":"$0.00"}},{"$f":"'MMA Rev-Exp Summary'!L$13","v":{"v":0,"d":"$0.00"}},{"$f":"'MMA Rev-Exp Summary'!M$13","v":{"v":0,"d":"$0.00"}},{"$f":"'MMA Rev-Exp Summary'!N$13","v":{"v":0,"d":"$0.00"}},{"v":0,"d":"$0.00"}]
["MMA",null,null,{"$f":"Jurat!I$1","v":0},{"$f":"Jurat!D$33","v":"00:00:00"},"Q1","2017-03-31","Summary","Operating Revenue","Kick Payments","Kick Payments - Maternity","1.4.1","Maternity Kick Payments",{"$f":"'MMA Rev-Exp Summary'!D$14","v":{"v":0,"d":"$0.00"}},{"$f":"'MMA Rev-Exp Summary'!E$14","v":{"v":0,"d":"$0.00"}},{"$f":"'MMA Rev-Exp Summary'!F$14","v":{"v":0,"d":"$0.00"}},{"$f":"'MMA Rev-Exp Summary'!G$14","v":{"v":0,"d":"$0.00"}},{"$f":"'MMA Rev-Exp Summary'!H$14","v":{"v":0,"d":"$0.00"}},{"$f":"'MMA Rev-Exp Summary'!I$14","v":{"v":0,"d":"$0.00"}},{"$f":"'MMA Rev-Exp Summary'!J$14","v":{"v":0,"d":"$0.00"}},{"$f":"'MMA Rev-Exp Summary'!K$14","v":{"v":0,"d":"$0.00"}},{"$f":"'MMA Rev-Exp Summary'!L$14","v":{"v":0,"d":"$0.00"}},{"$f":"'MMA Rev-Exp Summary'!M$14","v":{"v":0,"d":"$0.00"}},{"$f":"'MMA Rev-Exp Summary'!N$14","v":{"v":0,"d":"$0.00"}},{"v":0,"d":"$0.00"}]
["MMA",null,null,{"$f":"Jurat!I$1","v":0},{"$f":"Jurat!D$33","v":"00:00:00"},"Q1","2017-03-31","Summary","Operating Revenue","Other Revenue","Other Revenue - 9010","1.5","ACA § 9010 related payments",{"$f":"'MMA Rev-Exp Summary'!D$15","v":{"v":0,"d":"$0.00"}},{"$f":"'MMA Rev-Exp Summary'!E$15","v":{"v":0,"d":"$0.00"}},{"$f":"'MMA Rev-Exp Summary'!F$15","v":{"v":0,"d":"$0.00"}},{"$f":"'MMA Rev-Exp Summary'!G$15","v":{"v":0,"d":"$0.00"}},{"$f":"'MMA Rev-Exp Summary'!H$15","v":{"v":0,"d":"$0.00"}},{"$f":"'MMA Rev-Exp Summary'!I$15","v":{"v":0,"d":"$0.00"}},{"$f":"'MMA Rev-Exp Summary'!J$15","v":{"v":0,"d":"$0.00"}},{"$f":"'MMA Rev-Exp Summary'!K$15","v":{"v":0,"d":"$0.00"}},{"$f":"'MMA Rev-Exp Summary'!L$15","v":{"v":0,"d":"$0.00"}},{"$f":"'MMA Rev-Exp Summary'!M$15","v":{"v":0,"d":"$0.00"}},{"$f":"'MMA Rev-Exp Summary'!N$15","v":{"v":0,"d":"$0.00"}},{"v":0,"d":"$0.00"}]
["MMA",null,null,{"$f":"Jurat!I$1","v":0},{"$f":"Jurat!D$33","v":"00:00:00"},"Q1","2017-03-31","Summary","Operating Revenue","Other Revenue","Other Revenue","1.6","Other Revenue",{"$f":"'MMA Rev-Exp Summary'!D$16","v":{"v":0,"d":"$0.00"}},{"$f":"'MMA Rev-Exp Summary'!E$16","v":{"v":0,"d":"$0.00"}},{"$f":"'MMA Rev-Exp Summary'!F$16","v":{"v":0,"d":"$0.00"}},{"$f":"'MMA Rev-Exp Summary'!G$16","v":{"v":0,"d":"$0.00"}},{"$f":"'MMA Rev-Exp Summary'!H$16","v":{"v":0,"d":"$0.00"}},{"$f":"'MMA Rev-Exp Summary'!I$16","v":{"v":0,"d":"$0.00"}},{"$f":"'MMA Rev-Exp Summary'!J$16","v":{"v":0,"d":"$0.00"}},{"$f":"'MMA Rev-Exp Summary'!K$16","v":{"v":0,"d":"$0.00"}},{"$f":"'MMA Rev-Exp Summary'!L$16","v":{"v":0,"d":"$0.00"}},{"$f":"'MMA Rev-Exp Summary'!M$16","v":{"v":0,"d":"$0.00"}},{"$f":"'MMA Rev-Exp Summary'!N$16","v":{"v":0,"d":"$0.00"}},{"v":0,"d":"$0.00"}]
["MMA",null,null,{"$f":"Jurat!I$1","v":0},{"$f":"Jurat!D$33","v":"00:00:00"},"Q1","2017-03-31","Summary","Operating Expense","Medical Benefits Expense","Hospital Services",2.1,"Inpatient FFS",{"$f":"'MMA Rev-Exp Summary'!D$20","v":{"v":0,"d":"$0.00"}},{"$f":"'MMA Rev-Exp Summary'!E$20","v":{"v":0,"d":"$0.00"}},{"$f":"'MMA Rev-Exp Summary'!F$20","v":{"v":0,"d":"$0.00"}},{"$f":"'MMA Rev-Exp Summary'!G$20","v":{"v":0,"d":"$0.00"}},{"$f":"'MMA Rev-Exp Summary'!H$20","v":{"v":0,"d":"$0.00"}},{"$f":"'MMA Rev-Exp Summary'!I$20","v":{"v":0,"d":"$0.00"}},{"$f":"'MMA Rev-Exp Summary'!J$20","v":{"v":0,"d":"$0.00"}},{"$f":"'MMA Rev-Exp Summary'!K$20","v":{"v":0,"d":"$0.00"}},{"$f":"'MMA Rev-Exp Summary'!L$20","v":{"v":0,"d":"$0.00"}},{"$f":"'MMA Rev-Exp Summary'!M$20","v":{"v":0,"d":"$0.00"}},{"$f":"'MMA Rev-Exp Summary'!N$20","v":{"v":0,"d":"$0.00"}},{"v":0,"d":"$0.00"}]
["MMA",null,null,{"$f":"Jurat!I$1","v":0},{"$f":"Jurat!D$33","v":"00:00:00"},"Q1","2017-03-31","Summary","Operating Expense","Medical Benefits Expense","Hospital Services",2.2,"Ending IBNP for Inpatient Hospital Services",{"$f":"'MMA Rev-Exp Summary'!D$21","v":{"v":0,"d":"$0.00"}},{"$f":"'MMA Rev-Exp Summary'!E$21","v":{"v":0,"d":"$0.00"}},{"$f":"'MMA Rev-Exp Summary'!F$21","v":{"v":0,"d":"$0.00"}},{"$f":"'MMA Rev-Exp Summary'!G$21","v":{"v":0,"d":"$0.00"}},{"$f":"'MMA Rev-Exp Summary'!H$21","v":{"v":0,"d":"$0.00"}},{"$f":"'MMA Rev-Exp Summary'!I$21","v":{"v":0,"d":"$0.00"}},{"$f":"'MMA Rev-Exp Summary'!J$21","v":{"v":0,"d":"$0.00"}},{"$f":"'MMA Rev-Exp Summary'!K$21","v":{"v":0,"d":"$0.00"}},{"$f":"'MMA Rev-Exp Summary'!L$21","v":{"v":0,"d":"$0.00"}},{"$f":"'MMA Rev-Exp Summary'!M$21","v":{"v":0,"d":"$0.00"}},{"$f":"'MMA Rev-Exp Summary'!N$21","v":{"v":0,"d":"$0.00"}},{"v":0,"d":"$0.00"}]
["MMA",null,null,{"$f":"Jurat!I$1","v":0},{"$f":"Jurat!D$33","v":"00:00:00"},"Q1","2017-03-31","Summary","Operating Expense","Medical Benefits Expense","Hospital Services",2.3,"Outpatient FFS: ER",{"$f":"'MMA Rev-Exp Summary'!D$22","v":{"v":0,"d":"$0.00"}},{"$f":"'MMA Rev-Exp Summary'!E$22","v":{"v":0,"d":"$0.00"}},{"$f":"'MMA Rev-Exp Summary'!F$22","v":{"v":0,"d":"$0.00"}},{"$f":"'MMA Rev-Exp Summary'!G$22","v":{"v":0,"d":"$0.00"}},{"$f":"'MMA Rev-Exp Summary'!H$22","v":{"v":0,"d":"$0.00"}},{"$f":"'MMA Rev-Exp Summary'!I$22","v":{"v":0,"d":"$0.00"}},{"$f":"'MMA Rev-Exp Summary'!J$22","v":{"v":0,"d":"$0.00"}},{"$f":"'MMA Rev-Exp Summary'!K$22","v":{"v":0,"d":"$0.00"}},{"$f":"'MMA Rev-Exp Summary'!L$22","v":{"v":0,"d":"$0.00"}},{"$f":"'MMA Rev-Exp Summary'!M$22","v":{"v":0,"d":"$0.00"}},{"$f":"'MMA Rev-Exp Summary'!N$22","v":{"v":0,"d":"$0.00"}},{"v":0,"d":"$0.00"}]
["MMA",null,null,{"$f":"Jurat!I$1","v":0},{"$f":"Jurat!D$33","v":"00:00:00"},"Q1","2017-03-31","Summary","Operating Expense","Medical Benefits Expense","Hospital Services",2.4,"Outpatient FFS: Other than ER ",{"$f":"'MMA Rev-Exp Summary'!D$23","v":{"v":0,"d":"$0.00"}},{"$f":"'MMA Rev-Exp Summary'!E$23","v":{"v":0,"d":"$0.00"}},{"$f":"'MMA Rev-Exp Summary'!F$23","v":{"v":0,"d":"$0.00"}},{"$f":"'MMA Rev-Exp Summary'!G$23","v":{"v":0,"d":"$0.00"}},{"$f":"'MMA Rev-Exp Summary'!H$23","v":{"v":0,"d":"$0.00"}},{"$f":"'MMA Rev-Exp Summary'!I$23","v":{"v":0,"d":"$0.00"}},{"$f":"'MMA Rev-Exp Summary'!J$23","v":{"v":0,"d":"$0.00"}},{"$f":"'MMA Rev-Exp Summary'!K$23","v":{"v":0,"d":"$0.00"}},{"$f":"'MMA Rev-Exp Summary'!L$23","v":{"v":0,"d":"$0.00"}},{"$f":"'MMA Rev-Exp Summary'!M$23","v":{"v":0,"d":"$0.00"}},{"$f":"'MMA Rev-Exp Summary'!N$23","v":{"v":0,"d":"$0.00"}},{"v":0,"d":"$0.00"}]
["MMA",null,null,{"$f":"Jurat!I$1","v":0},{"$f":"Jurat!D$33","v":"00:00:00"},"Q1","2017-03-31","Summary","Operating Expense","Medical Benefits Expense","Hospital Services",2.5,"Ending IBNP for Outpatient Hospital Services",{"$f":"'MMA Rev-Exp Summary'!D$24","v":{"v":0,"d":"$0.00"}},{"$f":"'MMA Rev-Exp Summary'!E$24","v":{"v":0,"d":"$0.00"}},{"$f":"'MMA Rev-Exp Summary'!F$24","v":{"v":0,"d":"$0.00"}},{"$f":"'MMA Rev-Exp Summary'!G$24","v":{"v":0,"d":"$0.00"}},{"$f":"'MMA Rev-Exp Summary'!H$24","v":{"v":0,"d":"$0.00"}},{"$f":"'MMA Rev-Exp Summary'!I$24","v":{"v":0,"d":"$0.00"}},{"$f":"'MMA Rev-Exp Summary'!J$24","v":{"v":0,"d":"$0.00"}},{"$f":"'MMA Rev-Exp Summary'!K$24","v":{"v":0,"d":"$0.00"}},{"$f":"'MMA Rev-Exp Summary'!L$24","v":{"v":0,"d":"$0.00"}},{"$f":"'MMA Rev-Exp Summary'!M$24","v":{"v":0,"d":"$0.00"}},{"$f":"'MMA Rev-Exp Summary'!N$24","v":{"v":0,"d":"$0.00"}},{"v":0,"d":"$0.00"}]
["MMA",null,null,{"$f":"Jurat!I$1","v":0},{"$f":"Jurat!D$33","v":"00:00:00"},"Q1","2017-03-31","Summary","Operating Expense","Medical Benefits Expense","Hospital Services","2.6","Subcapitated Hospital Services",{"$f":"'MMA Rev-Exp Summary'!D$25","v":{"v":0,"d":"$0.00"}},{"$f":"'MMA Rev-Exp Summary'!E$25","v":{"v":0,"d":"$0.00"}},{"$f":"'MMA Rev-Exp Summary'!F$25","v":{"v":0,"d":"$0.00"}},{"$f":"'MMA Rev-Exp Summary'!G$25","v":{"v":0,"d":"$0.00"}},{"$f":"'MMA Rev-Exp Summary'!H$25","v":{"v":0,"d":"$0.00"}},{"$f":"'MMA Rev-Exp Summary'!I$25","v":{"v":0,"d":"$0.00"}},{"$f":"'MMA Rev-Exp Summary'!J$25","v":{"v":0,"d":"$0.00"}},{"$f":"'MMA Rev-Exp Summary'!K$25","v":{"v":0,"d":"$0.00"}},{"$f":"'MMA Rev-Exp Summary'!L$25","v":{"v":0,"d":"$0.00"}},{"$f":"'MMA Rev-Exp Summary'!M$25","v":{"v":0,"d":"$0.00"}},{"$f":"'MMA Rev-Exp Summary'!N$25","v":{"v":0,"d":"$0.00"}},{"v":0,"d":"$0.00"}]
["MMA",null,null,{"$f":"Jurat!I$1","v":0},{"$f":"Jurat!D$33","v":"00:00:00"},"Q1","2017-03-31","Summary","Operating Expense","Medical Benefits Expense","Hospital Services","2.7","Hospital Settlements",{"$f":"'MMA Rev-Exp Summary'!D$26","v":{"v":0,"d":"$0.00"}},{"$f":"'MMA Rev-Exp Summary'!E$26","v":{"v":0,"d":"$0.00"}},{"$f":"'MMA Rev-Exp Summary'!F$26","v":{"v":0,"d":"$0.00"}},{"$f":"'MMA Rev-Exp Summary'!G$26","v":{"v":0,"d":"$0.00"}},{"$f":"'MMA Rev-Exp Summary'!H$26","v":{"v":0,"d":"$0.00"}},{"$f":"'MMA Rev-Exp Summary'!I$26","v":{"v":0,"d":"$0.00"}},{"$f":"'MMA Rev-Exp Summary'!J$26","v":{"v":0,"d":"$0.00"}},{"$f":"'MMA Rev-Exp Summary'!K$26","v":{"v":0,"d":"$0.00"}},{"$f":"'MMA Rev-Exp Summary'!L$26","v":{"v":0,"d":"$0.00"}},{"$f":"'MMA Rev-Exp Summary'!M$26","v":{"v":0,"d":"$0.00"}},{"$f":"'MMA Rev-Exp Summary'!N$26","v":{"v":0,"d":"$0.00"}},{"v":0,"d":"$0.00"}]
["MMA",null,null,{"$f":"Jurat!I$1","v":0},{"$f":"Jurat!D$33","v":"00:00:00"},"Q1","2017-03-31","Summary","Operating Expense","Medical Benefits Expense","Hospital Services","2.7.1","Transplant Services",{"$f":"'MMA Rev-Exp Summary'!D$27","v":{"v":0,"d":"$0.00"}},{"$f":"'MMA Rev-Exp Summary'!E$27","v":{"v":0,"d":"$0.00"}},{"$f":"'MMA Rev-Exp Summary'!F$27","v":{"v":0,"d":"$0.00"}},{"$f":"'MMA Rev-Exp Summary'!G$27","v":{"v":0,"d":"$0.00"}},{"$f":"'MMA Rev-Exp Summary'!H$27","v":{"v":0,"d":"$0.00"}},{"$f":"'MMA Rev-Exp Summary'!I$27","v":{"v":0,"d":"$0.00"}},{"$f":"'MMA Rev-Exp Summary'!J$27","v":{"v":0,"d":"$0.00"}},{"$f":"'MMA Rev-Exp Summary'!K$27","v":{"v":0,"d":"$0.00"}},{"$f":"'MMA Rev-Exp Summary'!L$27","v":{"v":0,"d":"$0.00"}},{"$f":"'MMA Rev-Exp Summary'!M$27","v":{"v":0,"d":"$0.00"}},{"$f":"'MMA Rev-Exp Summary'!N$27","v":{"v":0,"d":"$0.00"}},{"v":0,"d":"$0.00"}]
["MMA",null,null,{"$f":"Jurat!I$1","v":0},{"$f":"Jurat!D$33","v":"00:00:00"},"Q1","2017-03-31","Summary","Operating Expense","Medical Benefits Expense","Professional Services",3.1,"Primary Care FFS",{"$f":"'MMA Rev-Exp Summary'!D$29","v":{"v":0,"d":"$0.00"}},{"$f":"'MMA Rev-Exp Summary'!E$29","v":{"v":0,"d":"$0.00"}},{"$f":"'MMA Rev-Exp Summary'!F$29","v":{"v":0,"d":"$0.00"}},{"$f":"'MMA Rev-Exp Summary'!G$29","v":{"v":0,"d":"$0.00"}},{"$f":"'MMA Rev-Exp Summary'!H$29","v":{"v":0,"d":"$0.00"}},{"$f":"'MMA Rev-Exp Summary'!I$29","v":{"v":0,"d":"$0.00"}},{"$f":"'MMA Rev-Exp Summary'!J$29","v":{"v":0,"d":"$0.00"}},{"$f":"'MMA Rev-Exp Summary'!K$29","v":{"v":0,"d":"$0.00"}},{"$f":"'MMA Rev-Exp Summary'!L$29","v":{"v":0,"d":"$0.00"}},{"$f":"'MMA Rev-Exp Summary'!M$29","v":{"v":0,"d":"$0.00"}},{"$f":"'MMA Rev-Exp Summary'!N$29","v":{"v":0,"d":"$0.00"}},{"v":0,"d":"$0.00"}]
["MMA",null,null,{"$f":"Jurat!I$1","v":0},{"$f":"Jurat!D$33","v":"00:00:00"},"Q1","2017-03-31","Summary","Operating Expense","Medical Benefits Expense","Professional Services",3.2,"Specialty Care FFS",{"$f":"'MMA Rev-Exp Summary'!D$30","v":{"v":0,"d":"$0.00"}},{"$f":"'MMA Rev-Exp Summary'!E$30","v":{"v":0,"d":"$0.00"}},{"$f":"'MMA Rev-Exp Summary'!F$30","v":{"v":0,"d":"$0.00"}},{"$f":"'MMA Rev-Exp Summary'!G$30","v":{"v":0,"d":"$0.00"}},{"$f":"'MMA Rev-Exp Summary'!H$30","v":{"v":0,"d":"$0.00"}},{"$f":"'MMA Rev-Exp Summary'!I$30","v":{"v":0,"d":"$0.00"}},{"$f":"'MMA Rev-Exp Summary'!J$30","v":{"v":0,"d":"$0.00"}},{"$f":"'MMA Rev-Exp Summary'!K$30","v":{"v":0,"d":"$0.00"}},{"$f":"'MMA Rev-Exp Summary'!L$30","v":{"v":0,"d":"$0.00"}},{"$f":"'MMA Rev-Exp Summary'!M$30","v":{"v":0,"d":"$0.00"}},{"$f":"'MMA Rev-Exp Summary'!N$30","v":{"v":0,"d":"$0.00"}},{"v":0,"d":"$0.00"}]
["MMA",null,null,{"$f":"Jurat!I$1","v":0},{"$f":"Jurat!D$33","v":"00:00:00"},"Q1","2017-03-31","Summary","Operating Expense","Medical Benefits Expense","Professional Services",3.3,"Other Professional FFS",{"$f":"'MMA Rev-Exp Summary'!D$31","v":{"v":0,"d":"$0.00"}},{"$f":"'MMA Rev-Exp Summary'!E$31","v":{"v":0,"d":"$0.00"}},{"$f":"'MMA Rev-Exp Summary'!F$31","v":{"v":0,"d":"$0.00"}},{"$f":"'MMA Rev-Exp Summary'!G$31","v":{"v":0,"d":"$0.00"}},{"$f":"'MMA Rev-Exp Summary'!H$31","v":{"v":0,"d":"$0.00"}},{"$f":"'MMA Rev-Exp Summary'!I$31","v":{"v":0,"d":"$0.00"}},{"$f":"'MMA Rev-Exp Summary'!J$31","v":{"v":0,"d":"$0.00"}},{"$f":"'MMA Rev-Exp Summary'!K$31","v":{"v":0,"d":"$0.00"}},{"$f":"'MMA Rev-Exp Summary'!L$31","v":{"v":0,"d":"$0.00"}},{"$f":"'MMA Rev-Exp Summary'!M$31","v":{"v":0,"d":"$0.00"}},{"$f":"'MMA Rev-Exp Summary'!N$31","v":{"v":0,"d":"$0.00"}},{"v":0,"d":"$0.00"}]
["MMA",null,null,{"$f":"Jurat!I$1","v":0},{"$f":"Jurat!D$33","v":"00:00:00"},"Q1","2017-03-31","Summary","Operating Expense","Medical Benefits Expense","Professional Services","3.4","§ 1202 PCP Payments to providers",{"$f":"'MMA Rev-Exp Summary'!D$32","v":{"v":0,"d":"$0.00"}},{"$f":"'MMA Rev-Exp Summary'!E$32","v":{"v":0,"d":"$0.00"}},{"$f":"'MMA Rev-Exp Summary'!F$32","v":{"v":0,"d":"$0.00"}},{"$f":"'MMA Rev-Exp Summary'!G$32","v":{"v":0,"d":"$0.00"}},{"$f":"'MMA Rev-Exp Summary'!H$32","v":{"v":0,"d":"$0.00"}},{"$f":"'MMA Rev-Exp Summary'!I$32","v":{"v":0,"d":"$0.00"}},{"$f":"'MMA Rev-Exp Summary'!J$32","v":{"v":0,"d":"$0.00"}},{"$f":"'MMA Rev-Exp Summary'!K$32","v":{"v":0,"d":"$0.00"}},{"$f":"'MMA Rev-Exp Summary'!L$32","v":{"v":0,"d":"$0.00"}},{"$f":"'MMA Rev-Exp Summary'!M$32","v":{"v":0,"d":"$0.00"}},{"$f":"'MMA Rev-Exp Summary'!N$32","v":{"v":0,"d":"$0.00"}},{"v":0,"d":"$0.00"}]
["MMA",null,null,{"$f":"Jurat!I$1","v":0},{"$f":"Jurat!D$33","v":"00:00:00"},"Q1","2017-03-31","Summary","Operating Expense","Medical Benefits Expense","Professional Services","3.5","Subcapitated Professional Services",{"$f":"'MMA Rev-Exp Summary'!D$33","v":{"v":0,"d":"$0.00"}},{"$f":"'MMA Rev-Exp Summary'!E$33","v":{"v":0,"d":"$0.00"}},{"$f":"'MMA Rev-Exp Summary'!F$33","v":{"v":0,"d":"$0.00"}},{"$f":"'MMA Rev-Exp Summary'!G$33","v":{"v":0,"d":"$0.00"}},{"$f":"'MMA Rev-Exp Summary'!H$33","v":{"v":0,"d":"$0.00"}},{"$f":"'MMA Rev-Exp Summary'!I$33","v":{"v":0,"d":"$0.00"}},{"$f":"'MMA Rev-Exp Summary'!J$33","v":{"v":0,"d":"$0.00"}},{"$f":"'MMA Rev-Exp Summary'!K$33","v":{"v":0,"d":"$0.00"}},{"$f":"'MMA Rev-Exp Summary'!L$33","v":{"v":0,"d":"$0.00"}},{"$f":"'MMA Rev-Exp Summary'!M$33","v":{"v":0,"d":"$0.00"}},{"$f":"'MMA Rev-Exp Summary'!N$33","v":{"v":0,"d":"$0.00"}},{"v":0,"d":"$0.00"}]
["MMA",null,null,{"$f":"Jurat!I$1","v":0},{"$f":"Jurat!D$33","v":"00:00:00"},"Q1","2017-03-31","Summary","Operating Expense","Medical Benefits Expense","Professional Services","3.6","Ending IBNP for Professional Services",{"$f":"'MMA Rev-Exp Summary'!D$34","v":{"v":0,"d":"$0.00"}},{"$f":"'MMA Rev-Exp Summary'!E$34","v":{"v":0,"d":"$0.00"}},{"$f":"'MMA Rev-Exp Summary'!F$34","v":{"v":0,"d":"$0.00"}},{"$f":"'MMA Rev-Exp Summary'!G$34","v":{"v":0,"d":"$0.00"}},{"$f":"'MMA Rev-Exp Summary'!H$34","v":{"v":0,"d":"$0.00"}},{"$f":"'MMA Rev-Exp Summary'!I$34","v":{"v":0,"d":"$0.00"}},{"$f":"'MMA Rev-Exp Summary'!J$34","v":{"v":0,"d":"$0.00"}},{"$f":"'MMA Rev-Exp Summary'!K$34","v":{"v":0,"d":"$0.00"}},{"$f":"'MMA Rev-Exp Summary'!L$34","v":{"v":0,"d":"$0.00"}},{"$f":"'MMA Rev-Exp Summary'!M$34","v":{"v":0,"d":"$0.00"}},{"$f":"'MMA Rev-Exp Summary'!N$34","v":{"v":0,"d":"$0.00"}},{"v":0,"d":"$0.00"}]
["MMA",null,null,{"$f":"Jurat!I$1","v":0},{"$f":"Jurat!D$33","v":"00:00:00"},"Q1","2017-03-31","Summary","Operating Expense","Medical Benefits Expense","Professional Services","3.7","Professional Services Settlements",{"$f":"'MMA Rev-Exp Summary'!D$35","v":{"v":0,"d":"$0.00"}},{"$f":"'MMA Rev-Exp Summary'!E$35","v":{"v":0,"d":"$0.00"}},{"$f":"'MMA Rev-Exp Summary'!F$35","v":{"v":0,"d":"$0.00"}},{"$f":"'MMA Rev-Exp Summary'!G$35","v":{"v":0,"d":"$0.00"}},{"$f":"'MMA Rev-Exp Summary'!H$35","v":{"v":0,"d":"$0.00"}},{"$f":"'MMA Rev-Exp Summary'!I$35","v":{"v":0,"d":"$0.00"}},{"$f":"'MMA Rev-Exp Summary'!J$35","v":{"v":0,"d":"$0.00"}},{"$f":"'MMA Rev-Exp Summary'!K$35","v":{"v":0,"d":"$0.00"}},{"$f":"'MMA Rev-Exp Summary'!L$35","v":{"v":0,"d":"$0.00"}},{"$f":"'MMA Rev-Exp Summary'!M$35","v":{"v":0,"d":"$0.00"}},{"$f":"'MMA Rev-Exp Summary'!N$35","v":{"v":0,"d":"$0.00"}},{"v":0,"d":"$0.00"}]
["MMA",null,null,{"$f":"Jurat!I$1","v":0},{"$f":"Jurat!D$33","v":"00:00:00"},"Q1","2017-03-31","Summary","Operating Expense","Medical Benefits Expense","Maternity Services","4.1.1","Maternity Services",{"$f":"'MMA Rev-Exp Summary'!D$37","v":{"v":0,"d":"$0.00"}},{"$f":"'MMA Rev-Exp Summary'!E$37","v":{"v":0,"d":"$0.00"}},{"$f":"'MMA Rev-Exp Summary'!F$37","v":{"v":0,"d":"$0.00"}},{"$f":"'MMA Rev-Exp Summary'!G$37","v":{"v":0,"d":"$0.00"}},{"$f":"'MMA Rev-Exp Summary'!H$37","v":{"v":0,"d":"$0.00"}},{"$f":"'MMA Rev-Exp Summary'!I$37","v":{"v":0,"d":"$0.00"}},{"$f":"'MMA Rev-Exp Summary'!J$37","v":{"v":0,"d":"$0.00"}},{"$f":"'MMA Rev-Exp Summary'!K$37","v":{"v":0,"d":"$0.00"}},{"$f":"'MMA Rev-Exp Summary'!L$37","v":{"v":0,"d":"$0.00"}},{"$f":"'MMA Rev-Exp Summary'!M$37","v":{"v":0,"d":"$0.00"}},{"$f":"'MMA Rev-Exp Summary'!N$37","v":{"v":0,"d":"$0.00"}},{"v":0,"d":"$0.00"}]
["MMA",null,null,{"$f":"Jurat!I$1","v":0},{"$f":"Jurat!D$33","v":"00:00:00"},"Q1","2017-03-31","Summary","Operating Expense","Medical Benefits Expense","Maternity Services","4.2.1","Ending IBNP for Maternity Services",{"$f":"'MMA Rev-Exp Summary'!D$38","v":{"v":0,"d":"$0.00"}},{"$f":"'MMA Rev-Exp Summary'!E$38","v":{"v":0,"d":"$0.00"}},{"$f":"'MMA Rev-Exp Summary'!F$38","v":{"v":0,"d":"$0.00"}},{"$f":"'MMA Rev-Exp Summary'!G$38","v":{"v":0,"d":"$0.00"}},{"$f":"'MMA Rev-Exp Summary'!H$38","v":{"v":0,"d":"$0.00"}},{"$f":"'MMA Rev-Exp Summary'!I$38","v":{"v":0,"d":"$0.00"}},{"$f":"'MMA Rev-Exp Summary'!J$38","v":{"v":0,"d":"$0.00"}},{"$f":"'MMA Rev-Exp Summary'!K$38","v":{"v":0,"d":"$0.00"}},{"$f":"'MMA Rev-Exp Summary'!L$38","v":{"v":0,"d":"$0.00"}},{"$f":"'MMA Rev-Exp Summary'!M$38","v":{"v":0,"d":"$0.00"}},{"$f":"'MMA Rev-Exp Summary'!N$38","v":{"v":0,"d":"$0.00"}},{"v":0,"d":"$0.00"}]
["MMA",null,null,{"$f":"Jurat!I$1","v":0},{"$f":"Jurat!D$33","v":"00:00:00"},"Q1","2017-03-31","Summary","Operating Expense","Medical Benefits Expense","Maternity Services","4.3.1","Maternity Settlements",{"$f":"'MMA Rev-Exp Summary'!D$39","v":{"v":0,"d":"$0.00"}},{"$f":"'MMA Rev-Exp Summary'!E$39","v":{"v":0,"d":"$0.00"}},{"$f":"'MMA Rev-Exp Summary'!F$39","v":{"v":0,"d":"$0.00"}},{"$f":"'MMA Rev-Exp Summary'!G$39","v":{"v":0,"d":"$0.00"}},{"$f":"'MMA Rev-Exp Summary'!H$39","v":{"v":0,"d":"$0.00"}},{"$f":"'MMA Rev-Exp Summary'!I$39","v":{"v":0,"d":"$0.00"}},{"$f":"'MMA Rev-Exp Summary'!J$39","v":{"v":0,"d":"$0.00"}},{"$f":"'MMA Rev-Exp Summary'!K$39","v":{"v":0,"d":"$0.00"}},{"$f":"'MMA Rev-Exp Summary'!L$39","v":{"v":0,"d":"$0.00"}},{"$f":"'MMA Rev-Exp Summary'!M$39","v":{"v":0,"d":"$0.00"}},{"$f":"'MMA Rev-Exp Summary'!N$39","v":{"v":0,"d":"$0.00"}},{"v":0,"d":"$0.00"}]
["MMA",null,null,{"$f":"Jurat!I$1","v":0},{"$f":"Jurat!D$33","v":"00:00:00"},"Q1","2017-03-31","Summary","Operating Expense","Medical Benefits Expense","Mental Health Services",5.1,"Mental Health & Substance Abuse FFS",{"$f":"'MMA Rev-Exp Summary'!D$41","v":{"v":0,"d":"$0.00"}},{"$f":"'MMA Rev-Exp Summary'!E$41","v":{"v":0,"d":"$0.00"}},{"$f":"'MMA Rev-Exp Summary'!F$41","v":{"v":0,"d":"$0.00"}},{"$f":"'MMA Rev-Exp Summary'!G$41","v":{"v":0,"d":"$0.00"}},{"$f":"'MMA Rev-Exp Summary'!H$41","v":{"v":0,"d":"$0.00"}},{"$f":"'MMA Rev-Exp Summary'!I$41","v":{"v":0,"d":"$0.00"}},{"$f":"'MMA Rev-Exp Summary'!J$41","v":{"v":0,"d":"$0.00"}},{"$f":"'MMA Rev-Exp Summary'!K$41","v":{"v":0,"d":"$0.00"}},{"$f":"'MMA Rev-Exp Summary'!L$41","v":{"v":0,"d":"$0.00"}},{"$f":"'MMA Rev-Exp Summary'!M$41","v":{"v":0,"d":"$0.00"}},{"$f":"'MMA Rev-Exp Summary'!N$41","v":{"v":0,"d":"$0.00"}},{"v":0,"d":"$0.00"}]
["MMA",null,null,{"$f":"Jurat!I$1","v":0},{"$f":"Jurat!D$33","v":"00:00:00"},"Q1","2017-03-31","Summary","Operating Expense","Medical Benefits Expense","Mental Health Services",5.2,"Mental Health & Substance Abuse Subcapitation",{"$f":"'MMA Rev-Exp Summary'!D$42","v":{"v":0,"d":"$0.00"}},{"$f":"'MMA Rev-Exp Summary'!E$42","v":{"v":0,"d":"$0.00"}},{"$f":"'MMA Rev-Exp Summary'!F$42","v":{"v":0,"d":"$0.00"}},{"$f":"'MMA Rev-Exp Summary'!G$42","v":{"v":0,"d":"$0.00"}},{"$f":"'MMA Rev-Exp Summary'!H$42","v":{"v":0,"d":"$0.00"}},{"$f":"'MMA Rev-Exp Summary'!I$42","v":{"v":0,"d":"$0.00"}},{"$f":"'MMA Rev-Exp Summary'!J$42","v":{"v":0,"d":"$0.00"}},{"$f":"'MMA Rev-Exp Summary'!K$42","v":{"v":0,"d":"$0.00"}},{"$f":"'MMA Rev-Exp Summary'!L$42","v":{"v":0,"d":"$0.00"}},{"$f":"'MMA Rev-Exp Summary'!M$42","v":{"v":0,"d":"$0.00"}},{"$f":"'MMA Rev-Exp Summary'!N$42","v":{"v":0,"d":"$0.00"}},{"v":0,"d":"$0.00"}]
["MMA",null,null,{"$f":"Jurat!I$1","v":0},{"$f":"Jurat!D$33","v":"00:00:00"},"Q1","2017-03-31","Summary","Operating Expense","Medical Benefits Expense","Mental Health Services",5.3,"Ending IBNP for Mental Health & Substance Abuse",{"$f":"'MMA Rev-Exp Summary'!D$43","v":{"v":0,"d":"$0.00"}},{"$f":"'MMA Rev-Exp Summary'!E$43","v":{"v":0,"d":"$0.00"}},{"$f":"'MMA Rev-Exp Summary'!F$43","v":{"v":0,"d":"$0.00"}},{"$f":"'MMA Rev-Exp Summary'!G$43","v":{"v":0,"d":"$0.00"}},{"$f":"'MMA Rev-Exp Summary'!H$43","v":{"v":0,"d":"$0.00"}},{"$f":"'MMA Rev-Exp Summary'!I$43","v":{"v":0,"d":"$0.00"}},{"$f":"'MMA Rev-Exp Summary'!J$43","v":{"v":0,"d":"$0.00"}},{"$f":"'MMA Rev-Exp Summary'!K$43","v":{"v":0,"d":"$0.00"}},{"$f":"'MMA Rev-Exp Summary'!L$43","v":{"v":0,"d":"$0.00"}},{"$f":"'MMA Rev-Exp Summary'!M$43","v":{"v":0,"d":"$0.00"}},{"$f":"'MMA Rev-Exp Summary'!N$43","v":{"v":0,"d":"$0.00"}},{"v":0,"d":"$0.00"}]
["MMA",null,null,{"$f":"Jurat!I$1","v":0},{"$f":"Jurat!D$33","v":"00:00:00"},"Q1","2017-03-31","Summary","Operating Expense","Medical Benefits Expense","Mental Health Services","5.4","Mental Health Settlements",{"$f":"'MMA Rev-Exp Summary'!D$44","v":{"v":0,"d":"$0.00"}},{"$f":"'MMA Rev-Exp Summary'!E$44","v":{"v":0,"d":"$0.00"}},{"$f":"'MMA Rev-Exp Summary'!F$44","v":{"v":0,"d":"$0.00"}},{"$f":"'MMA Rev-Exp Summary'!G$44","v":{"v":0,"d":"$0.00"}},{"$f":"'MMA Rev-Exp Summary'!H$44","v":{"v":0,"d":"$0.00"}},{"$f":"'MMA Rev-Exp Summary'!I$44","v":{"v":0,"d":"$0.00"}},{"$f":"'MMA Rev-Exp Summary'!J$44","v":{"v":0,"d":"$0.00"}},{"$f":"'MMA Rev-Exp Summary'!K$44","v":{"v":0,"d":"$0.00"}},{"$f":"'MMA Rev-Exp Summary'!L$44","v":{"v":0,"d":"$0.00"}},{"$f":"'MMA Rev-Exp Summary'!M$44","v":{"v":0,"d":"$0.00"}},{"$f":"'MMA Rev-Exp Summary'!N$44","v":{"v":0,"d":"$0.00"}},{"v":0,"d":"$0.00"}]
["MMA",null,null,{"$f":"Jurat!I$1","v":0},{"$f":"Jurat!D$33","v":"00:00:00"},"Q1","2017-03-31","Summary","Operating Expense","Medical Benefits Expense","Dental Services",6.1,"Dental FFS",{"$f":"'MMA Rev-Exp Summary'!D$46","v":{"v":0,"d":"$0.00"}},{"$f":"'MMA Rev-Exp Summary'!E$46","v":{"v":0,"d":"$0.00"}},{"$f":"'MMA Rev-Exp Summary'!F$46","v":{"v":0,"d":"$0.00"}},{"$f":"'MMA Rev-Exp Summary'!G$46","v":{"v":0,"d":"$0.00"}},{"$f":"'MMA Rev-Exp Summary'!H$46","v":{"v":0,"d":"$0.00"}},{"$f":"'MMA Rev-Exp Summary'!I$46","v":{"v":0,"d":"$0.00"}},{"$f":"'MMA Rev-Exp Summary'!J$46","v":{"v":0,"d":"$0.00"}},{"$f":"'MMA Rev-Exp Summary'!K$46","v":{"v":0,"d":"$0.00"}},{"$f":"'MMA Rev-Exp Summary'!L$46","v":{"v":0,"d":"$0.00"}},{"$f":"'MMA Rev-Exp Summary'!M$46","v":{"v":0,"d":"$0.00"}},{"$f":"'MMA Rev-Exp Summary'!N$46","v":{"v":0,"d":"$0.00"}},{"v":0,"d":"$0.00"}]
["MMA",null,null,{"$f":"Jurat!I$1","v":0},{"$f":"Jurat!D$33","v":"00:00:00"},"Q1","2017-03-31","Summary","Operating Expense","Medical Benefits Expense","Dental Services",6.2,"Dental Subcapitation",{"$f":"'MMA Rev-Exp Summary'!D$47","v":{"v":0,"d":"$0.00"}},{"$f":"'MMA Rev-Exp Summary'!E$47","v":{"v":0,"d":"$0.00"}},{"$f":"'MMA Rev-Exp Summary'!F$47","v":{"v":0,"d":"$0.00"}},{"$f":"'MMA Rev-Exp Summary'!G$47","v":{"v":0,"d":"$0.00"}},{"$f":"'MMA Rev-Exp Summary'!H$47","v":{"v":0,"d":"$0.00"}},{"$f":"'MMA Rev-Exp Summary'!I$47","v":{"v":0,"d":"$0.00"}},{"$f":"'MMA Rev-Exp Summary'!J$47","v":{"v":0,"d":"$0.00"}},{"$f":"'MMA Rev-Exp Summary'!K$47","v":{"v":0,"d":"$0.00"}},{"$f":"'MMA Rev-Exp Summary'!L$47","v":{"v":0,"d":"$0.00"}},{"$f":"'MMA Rev-Exp Summary'!M$47","v":{"v":0,"d":"$0.00"}},{"$f":"'MMA Rev-Exp Summary'!N$47","v":{"v":0,"d":"$0.00"}},{"v":0,"d":"$0.00"}]
["MMA",null,null,{"$f":"Jurat!I$1","v":0},{"$f":"Jurat!D$33","v":"00:00:00"},"Q1","2017-03-31","Summary","Operating Expense","Medical Benefits Expense","Dental Services",6.3,"Ending IBNP for Dental Services",{"$f":"'MMA Rev-Exp Summary'!D$48","v":{"v":0,"d":"$0.00"}},{"$f":"'MMA Rev-Exp Summary'!E$48","v":{"v":0,"d":"$0.00"}},{"$f":"'MMA Rev-Exp Summary'!F$48","v":{"v":0,"d":"$0.00"}},{"$f":"'MMA Rev-Exp Summary'!G$48","v":{"v":0,"d":"$0.00"}},{"$f":"'MMA Rev-Exp Summary'!H$48","v":{"v":0,"d":"$0.00"}},{"$f":"'MMA Rev-Exp Summary'!I$48","v":{"v":0,"d":"$0.00"}},{"$f":"'MMA Rev-Exp Summary'!J$48","v":{"v":0,"d":"$0.00"}},{"$f":"'MMA Rev-Exp Summary'!K$48","v":{"v":0,"d":"$0.00"}},{"$f":"'MMA Rev-Exp Summary'!L$48","v":{"v":0,"d":"$0.00"}},{"$f":"'MMA Rev-Exp Summary'!M$48","v":{"v":0,"d":"$0.00"}},{"$f":"'MMA Rev-Exp Summary'!N$48","v":{"v":0,"d":"$0.00"}},{"v":0,"d":"$0.00"}]
["MMA",null,null,{"$f":"Jurat!I$1","v":0},{"$f":"Jurat!D$33","v":"00:00:00"},"Q1","2017-03-31","Summary","Operating Expense","Medical Benefits Expense","Dental Services","6.4","Dental Settlements",{"$f":"'MMA Rev-Exp Summary'!D$49","v":{"v":0,"d":"$0.00"}},{"$f":"'MMA Rev-Exp Summary'!E$49","v":{"v":0,"d":"$0.00"}},{"$f":"'MMA Rev-Exp Summary'!F$49","v":{"v":0,"d":"$0.00"}},{"$f":"'MMA Rev-Exp Summary'!G$49","v":{"v":0,"d":"$0.00"}},{"$f":"'MMA Rev-Exp Summary'!H$49","v":{"v":0,"d":"$0.00"}},{"$f":"'MMA Rev-Exp Summary'!I$49","v":{"v":0,"d":"$0.00"}},{"$f":"'MMA Rev-Exp Summary'!J$49","v":{"v":0,"d":"$0.00"}},{"$f":"'MMA Rev-Exp Summary'!K$49","v":{"v":0,"d":"$0.00"}},{"$f":"'MMA Rev-Exp Summary'!L$49","v":{"v":0,"d":"$0.00"}},{"$f":"'MMA Rev-Exp Summary'!M$49","v":{"v":0,"d":"$0.00"}},{"$f":"'MMA Rev-Exp Summary'!N$49","v":{"v":0,"d":"$0.00"}},{"v":0,"d":"$0.00"}]
["MMA",null,null,{"$f":"Jurat!I$1","v":0},{"$f":"Jurat!D$33","v":"00:00:00"},"Q1","2017-03-31","Summary","Operating Expense","Medical Benefits Expense","Transportation Services",7.1,"Transportation FFS",{"$f":"'MMA Rev-Exp Summary'!D$51","v":{"v":0,"d":"$0.00"}},{"$f":"'MMA Rev-Exp Summary'!E$51","v":{"v":0,"d":"$0.00"}},{"$f":"'MMA Rev-Exp Summary'!F$51","v":{"v":0,"d":"$0.00"}},{"$f":"'MMA Rev-Exp Summary'!G$51","v":{"v":0,"d":"$0.00"}},{"$f":"'MMA Rev-Exp Summary'!H$51","v":{"v":0,"d":"$0.00"}},{"$f":"'MMA Rev-Exp Summary'!I$51","v":{"v":0,"d":"$0.00"}},{"$f":"'MMA Rev-Exp Summary'!J$51","v":{"v":0,"d":"$0.00"}},{"$f":"'MMA Rev-Exp Summary'!K$51","v":{"v":0,"d":"$0.00"}},{"$f":"'MMA Rev-Exp Summary'!L$51","v":{"v":0,"d":"$0.00"}},{"$f":"'MMA Rev-Exp Summary'!M$51","v":{"v":0,"d":"$0.00"}},{"$f":"'MMA Rev-Exp Summary'!N$51","v":{"v":0,"d":"$0.00"}},{"v":0,"d":"$0.00"}]
["MMA",null,null,{"$f":"Jurat!I$1","v":0},{"$f":"Jurat!D$33","v":"00:00:00"},"Q1","2017-03-31","Summary","Operating Expense","Medical Benefits Expense","Transportation Services",7.2,"Transportation Subcapitation",{"$f":"'MMA Rev-Exp Summary'!D$52","v":{"v":0,"d":"$0.00"}},{"$f":"'MMA Rev-Exp Summary'!E$52","v":{"v":0,"d":"$0.00"}},{"$f":"'MMA Rev-Exp Summary'!F$52","v":{"v":0,"d":"$0.00"}},{"$f":"'MMA Rev-Exp Summary'!G$52","v":{"v":0,"d":"$0.00"}},{"$f":"'MMA Rev-Exp Summary'!H$52","v":{"v":0,"d":"$0.00"}},{"$f":"'MMA Rev-Exp Summary'!I$52","v":{"v":0,"d":"$0.00"}},{"$f":"'MMA Rev-Exp Summary'!J$52","v":{"v":0,"d":"$0.00"}},{"$f":"'MMA Rev-Exp Summary'!K$52","v":{"v":0,"d":"$0.00"}},{"$f":"'MMA Rev-Exp Summary'!L$52","v":{"v":0,"d":"$0.00"}},{"$f":"'MMA Rev-Exp Summary'!M$52","v":{"v":0,"d":"$0.00"}},{"$f":"'MMA Rev-Exp Summary'!N$52","v":{"v":0,"d":"$0.00"}},{"v":0,"d":"$0.00"}]
["MMA",null,null,{"$f":"Jurat!I$1","v":0},{"$f":"Jurat!D$33","v":"00:00:00"},"Q1","2017-03-31","Summary","Operating Expense","Medical Benefits Expense","Transportation Services",7.3,"Ending IBNP for Transportation",{"$f":"'MMA Rev-Exp Summary'!D$53","v":{"v":0,"d":"$0.00"}},{"$f":"'MMA Rev-Exp Summary'!E$53","v":{"v":0,"d":"$0.00"}},{"$f":"'MMA Rev-Exp Summary'!F$53","v":{"v":0,"d":"$0.00"}},{"$f":"'MMA Rev-Exp Summary'!G$53","v":{"v":0,"d":"$0.00"}},{"$f":"'MMA Rev-Exp Summary'!H$53","v":{"v":0,"d":"$0.00"}},{"$f":"'MMA Rev-Exp Summary'!I$53","v":{"v":0,"d":"$0.00"}},{"$f":"'MMA Rev-Exp Summary'!J$53","v":{"v":0,"d":"$0.00"}},{"$f":"'MMA Rev-Exp Summary'!K$53","v":{"v":0,"d":"$0.00"}},{"$f":"'MMA Rev-Exp Summary'!L$53","v":{"v":0,"d":"$0.00"}},{"$f":"'MMA Rev-Exp Summary'!M$53","v":{"v":0,"d":"$0.00"}},{"$f":"'MMA Rev-Exp Summary'!N$53","v":{"v":0,"d":"$0.00"}},{"v":0,"d":"$0.00"}]
["MMA",null,null,{"$f":"Jurat!I$1","v":0},{"$f":"Jurat!D$33","v":"00:00:00"},"Q1","2017-03-31","Summary","Operating Expense","Medical Benefits Expense","Transportation Services","7.4","Transportation Settlements",{"$f":"'MMA Rev-Exp Summary'!D$54","v":{"v":0,"d":"$0.00"}},{"$f":"'MMA Rev-Exp Summary'!E$54","v":{"v":0,"d":"$0.00"}},{"$f":"'MMA Rev-Exp Summary'!F$54","v":{"v":0,"d":"$0.00"}},{"$f":"'MMA Rev-Exp Summary'!G$54","v":{"v":0,"d":"$0.00"}},{"$f":"'MMA Rev-Exp Summary'!H$54","v":{"v":0,"d":"$0.00"}},{"$f":"'MMA Rev-Exp Summary'!I$54","v":{"v":0,"d":"$0.00"}},{"$f":"'MMA Rev-Exp Summary'!J$54","v":{"v":0,"d":"$0.00"}},{"$f":"'MMA Rev-Exp Summary'!K$54","v":{"v":0,"d":"$0.00"}},{"$f":"'MMA Rev-Exp Summary'!L$54","v":{"v":0,"d":"$0.00"}},{"$f":"'MMA Rev-Exp Summary'!M$54","v":{"v":0,"d":"$0.00"}},{"$f":"'MMA Rev-Exp Summary'!N$54","v":{"v":0,"d":"$0.00"}},{"v":0,"d":"$0.00"}]
["MMA",null,null,{"$f":"Jurat!I$1","v":0},{"$f":"Jurat!D$33","v":"00:00:00"},"Q1","2017-03-31","Summary","Operating Expense","Medical Benefits Expense","Pharmacy Services",8.1,"Prescription Drugs FFS",{"$f":"'MMA Rev-Exp Summary'!D$56","v":{"v":0,"d":"$0.00"}},{"$f":"'MMA Rev-Exp Summary'!E$56","v":{"v":0,"d":"$0.00"}},{"$f":"'MMA Rev-Exp Summary'!F$56","v":{"v":0,"d":"$0.00"}},{"$f":"'MMA Rev-Exp Summary'!G$56","v":{"v":0,"d":"$0.00"}},{"$f":"'MMA Rev-Exp Summary'!H$56","v":{"v":0,"d":"$0.00"}},{"$f":"'MMA Rev-Exp Summary'!I$56","v":{"v":0,"d":"$0.00"}},{"$f":"'MMA Rev-Exp Summary'!J$56","v":{"v":0,"d":"$0.00"}},{"$f":"'MMA Rev-Exp Summary'!K$56","v":{"v":0,"d":"$0.00"}},{"$f":"'MMA Rev-Exp Summary'!L$56","v":{"v":0,"d":"$0.00"}},{"$f":"'MMA Rev-Exp Summary'!M$56","v":{"v":0,"d":"$0.00"}},{"$f":"'MMA Rev-Exp Summary'!N$56","v":{"v":0,"d":"$0.00"}},{"v":0,"d":"$0.00"}]
["MMA",null,null,{"$f":"Jurat!I$1","v":0},{"$f":"Jurat!D$33","v":"00:00:00"},"Q1","2017-03-31","Summary","Operating Expense","Medical Benefits Expense","Pharmacy Services","8.2","Hepatitis C Prescription Drug FFS",{"$f":"'MMA Rev-Exp Summary'!D$57","v":{"v":0,"d":"$0.00"}},{"$f":"'MMA Rev-Exp Summary'!E$57","v":{"v":0,"d":"$0.00"}},{"$f":"'MMA Rev-Exp Summary'!F$57","v":{"v":0,"d":"$0.00"}},{"$f":"'MMA Rev-Exp Summary'!G$57","v":{"v":0,"d":"$0.00"}},{"$f":"'MMA Rev-Exp Summary'!H$57","v":{"v":0,"d":"$0.00"}},{"$f":"'MMA Rev-Exp Summary'!I$57","v":{"v":0,"d":"$0.00"}},{"$f":"'MMA Rev-Exp Summary'!J$57","v":{"v":0,"d":"$0.00"}},{"$f":"'MMA Rev-Exp Summary'!K$57","v":{"v":0,"d":"$0.00"}},{"$f":"'MMA Rev-Exp Summary'!L$57","v":{"v":0,"d":"$0.00"}},{"$f":"'MMA Rev-Exp Summary'!M$57","v":{"v":0,"d":"$0.00"}},{"$f":"'MMA Rev-Exp Summary'!N$57","v":{"v":0,"d":"$0.00"}},{"v":0,"d":"$0.00"}]
["MMA",null,null,{"$f":"Jurat!I$1","v":0},{"$f":"Jurat!D$33","v":"00:00:00"},"Q1","2017-03-31","Summary","Operating Expense","Medical Benefits Expense","Pharmacy Services","8.3","Ending IBNP for Prescription Drugs",{"$f":"'MMA Rev-Exp Summary'!D$58","v":{"v":0,"d":"$0.00"}},{"$f":"'MMA Rev-Exp Summary'!E$58","v":{"v":0,"d":"$0.00"}},{"$f":"'MMA Rev-Exp Summary'!F$58","v":{"v":0,"d":"$0.00"}},{"$f":"'MMA Rev-Exp Summary'!G$58","v":{"v":0,"d":"$0.00"}},{"$f":"'MMA Rev-Exp Summary'!H$58","v":{"v":0,"d":"$0.00"}},{"$f":"'MMA Rev-Exp Summary'!I$58","v":{"v":0,"d":"$0.00"}},{"$f":"'MMA Rev-Exp Summary'!J$58","v":{"v":0,"d":"$0.00"}},{"$f":"'MMA Rev-Exp Summary'!K$58","v":{"v":0,"d":"$0.00"}},{"$f":"'MMA Rev-Exp Summary'!L$58","v":{"v":0,"d":"$0.00"}},{"$f":"'MMA Rev-Exp Summary'!M$58","v":{"v":0,"d":"$0.00"}},{"$f":"'MMA Rev-Exp Summary'!N$58","v":{"v":0,"d":"$0.00"}},{"v":0,"d":"$0.00"}]
["MMA",null,null,{"$f":"Jurat!I$1","v":0},{"$f":"Jurat!D$33","v":"00:00:00"},"Q1","2017-03-31","Summary","Operating Expense","Medical Benefits Expense","Pharmacy Services","8.4","Prescription Drug Rebates ",{"$f":"'MMA Rev-Exp Summary'!D$59","v":{"v":0,"d":"$0.00"}},{"$f":"'MMA Rev-Exp Summary'!E$59","v":{"v":0,"d":"$0.00"}},{"$f":"'MMA Rev-Exp Summary'!F$59","v":{"v":0,"d":"$0.00"}},{"$f":"'MMA Rev-Exp Summary'!G$59","v":{"v":0,"d":"$0.00"}},{"$f":"'MMA Rev-Exp Summary'!H$59","v":{"v":0,"d":"$0.00"}},{"$f":"'MMA Rev-Exp Summary'!I$59","v":{"v":0,"d":"$0.00"}},{"$f":"'MMA Rev-Exp Summary'!J$59","v":{"v":0,"d":"$0.00"}},{"$f":"'MMA Rev-Exp Summary'!K$59","v":{"v":0,"d":"$0.00"}},{"$f":"'MMA Rev-Exp Summary'!L$59","v":{"v":0,"d":"$0.00"}},{"$f":"'MMA Rev-Exp Summary'!M$59","v":{"v":0,"d":"$0.00"}},{"$f":"'MMA Rev-Exp Summary'!N$59","v":{"v":0,"d":"$0.00"}},{"v":0,"d":"$0.00"}]
["MMA",null,null,{"$f":"Jurat!I$1","v":0},{"$f":"Jurat!D$33","v":"00:00:00"},"Q1","2017-03-31","Summary","Operating Expense","Medical Benefits Expense","Pharmacy Services","8.5","Ending accrual for Rebates receivable",{"$f":"'MMA Rev-Exp Summary'!D$60","v":{"v":0,"d":"$0.00"}},{"$f":"'MMA Rev-Exp Summary'!E$60","v":{"v":0,"d":"$0.00"}},{"$f":"'MMA Rev-Exp Summary'!F$60","v":{"v":0,"d":"$0.00"}},{"$f":"'MMA Rev-Exp Summary'!G$60","v":{"v":0,"d":"$0.00"}},{"$f":"'MMA Rev-Exp Summary'!H$60","v":{"v":0,"d":"$0.00"}},{"$f":"'MMA Rev-Exp Summary'!I$60","v":{"v":0,"d":"$0.00"}},{"$f":"'MMA Rev-Exp Summary'!J$60","v":{"v":0,"d":"$0.00"}},{"$f":"'MMA Rev-Exp Summary'!K$60","v":{"v":0,"d":"$0.00"}},{"$f":"'MMA Rev-Exp Summary'!L$60","v":{"v":0,"d":"$0.00"}},{"$f":"'MMA Rev-Exp Summary'!M$60","v":{"v":0,"d":"$0.00"}},{"$f":"'MMA Rev-Exp Summary'!N$60","v":{"v":0,"d":"$0.00"}},{"v":0,"d":"$0.00"}]
["MMA",null,null,{"$f":"Jurat!I$1","v":0},{"$f":"Jurat!D$33","v":"00:00:00"},"Q1","2017-03-31","Summary","Operating Expense","Medical Benefits Expense","Pharmacy Services","8.6","Prescription Drugs Subcapitation",{"$f":"'MMA Rev-Exp Summary'!D$61","v":{"v":0,"d":"$0.00"}},{"$f":"'MMA Rev-Exp Summary'!E$61","v":{"v":0,"d":"$0.00"}},{"$f":"'MMA Rev-Exp Summary'!F$61","v":{"v":0,"d":"$0.00"}},{"$f":"'MMA Rev-Exp Summary'!G$61","v":{"v":0,"d":"$0.00"}},{"$f":"'MMA Rev-Exp Summary'!H$61","v":{"v":0,"d":"$0.00"}},{"$f":"'MMA Rev-Exp Summary'!I$61","v":{"v":0,"d":"$0.00"}},{"$f":"'MMA Rev-Exp Summary'!J$61","v":{"v":0,"d":"$0.00"}},{"$f":"'MMA Rev-Exp Summary'!K$61","v":{"v":0,"d":"$0.00"}},{"$f":"'MMA Rev-Exp Summary'!L$61","v":{"v":0,"d":"$0.00"}},{"$f":"'MMA Rev-Exp Summary'!M$61","v":{"v":0,"d":"$0.00"}},{"$f":"'MMA Rev-Exp Summary'!N$61","v":{"v":0,"d":"$0.00"}},{"v":0,"d":"$0.00"}]
["MMA",null,null,{"$f":"Jurat!I$1","v":0},{"$f":"Jurat!D$33","v":"00:00:00"},"Q1","2017-03-31","Summary","Operating Expense","Medical Benefits Expense","Pharmacy Services","8.7","Prescription Drug Settlements",{"$f":"'MMA Rev-Exp Summary'!D$62","v":{"v":0,"d":"$0.00"}},{"$f":"'MMA Rev-Exp Summary'!E$62","v":{"v":0,"d":"$0.00"}},{"$f":"'MMA Rev-Exp Summary'!F$62","v":{"v":0,"d":"$0.00"}},{"$f":"'MMA Rev-Exp Summary'!G$62","v":{"v":0,"d":"$0.00"}},{"$f":"'MMA Rev-Exp Summary'!H$62","v":{"v":0,"d":"$0.00"}},{"$f":"'MMA Rev-Exp Summary'!I$62","v":{"v":0,"d":"$0.00"}},{"$f":"'MMA Rev-Exp Summary'!J$62","v":{"v":0,"d":"$0.00"}},{"$f":"'MMA Rev-Exp Summary'!K$62","v":{"v":0,"d":"$0.00"}},{"$f":"'MMA Rev-Exp Summary'!L$62","v":{"v":0,"d":"$0.00"}},{"$f":"'MMA Rev-Exp Summary'!M$62","v":{"v":0,"d":"$0.00"}},{"$f":"'MMA Rev-Exp Summary'!N$62","v":{"v":0,"d":"$0.00"}},{"v":0,"d":"$0.00"}]
["MMA",null,null,{"$f":"Jurat!I$1","v":0},{"$f":"Jurat!D$33","v":"00:00:00"},"Q1","2017-03-31","Summary","Operating Expense","Medical Benefits Expense","Other MMA Services",9.1,"Home Health, Private Duty Nursing, Personal Care FFS",{"$f":"'MMA Rev-Exp Summary'!D$64","v":{"v":0,"d":"$0.00"}},{"$f":"'MMA Rev-Exp Summary'!E$64","v":{"v":0,"d":"$0.00"}},{"$f":"'MMA Rev-Exp Summary'!F$64","v":{"v":0,"d":"$0.00"}},{"$f":"'MMA Rev-Exp Summary'!G$64","v":{"v":0,"d":"$0.00"}},{"$f":"'MMA Rev-Exp Summary'!H$64","v":{"v":0,"d":"$0.00"}},{"$f":"'MMA Rev-Exp Summary'!I$64","v":{"v":0,"d":"$0.00"}},{"$f":"'MMA Rev-Exp Summary'!J$64","v":{"v":0,"d":"$0.00"}},{"$f":"'MMA Rev-Exp Summary'!K$64","v":{"v":0,"d":"$0.00"}},{"$f":"'MMA Rev-Exp Summary'!L$64","v":{"v":0,"d":"$0.00"}},{"$f":"'MMA Rev-Exp Summary'!M$64","v":{"v":0,"d":"$0.00"}},{"$f":"'MMA Rev-Exp Summary'!N$64","v":{"v":0,"d":"$0.00"}},{"v":0,"d":"$0.00"}]
["MMA",null,null,{"$f":"Jurat!I$1","v":0},{"$f":"Jurat!D$33","v":"00:00:00"},"Q1","2017-03-31","Summary","Operating Expense","Medical Benefits Expense","Other MMA Services","9.2","Hospice FFS",{"$f":"'MMA Rev-Exp Summary'!D$65","v":{"v":0,"d":"$0.00"}},{"$f":"'MMA Rev-Exp Summary'!E$65","v":{"v":0,"d":"$0.00"}},{"$f":"'MMA Rev-Exp Summary'!F$65","v":{"v":0,"d":"$0.00"}},{"$f":"'MMA Rev-Exp Summary'!G$65","v":{"v":0,"d":"$0.00"}},{"$f":"'MMA Rev-Exp Summary'!H$65","v":{"v":0,"d":"$0.00"}},{"$f":"'MMA Rev-Exp Summary'!I$65","v":{"v":0,"d":"$0.00"}},{"$f":"'MMA Rev-Exp Summary'!J$65","v":{"v":0,"d":"$0.00"}},{"$f":"'MMA Rev-Exp Summary'!K$65","v":{"v":0,"d":"$0.00"}},{"$f":"'MMA Rev-Exp Summary'!L$65","v":{"v":0,"d":"$0.00"}},{"$f":"'MMA Rev-Exp Summary'!M$65","v":{"v":0,"d":"$0.00"}},{"$f":"'MMA Rev-Exp Summary'!N$65","v":{"v":0,"d":"$0.00"}},{"v":0,"d":"$0.00"}]
["MMA",null,null,{"$f":"Jurat!I$1","v":0},{"$f":"Jurat!D$33","v":"00:00:00"},"Q1","2017-03-31","Summary","Operating Expense","Medical Benefits Expense","Other MMA Services","9.3","DME FFS",{"$f":"'MMA Rev-Exp Summary'!D$66","v":{"v":0,"d":"$0.00"}},{"$f":"'MMA Rev-Exp Summary'!E$66","v":{"v":0,"d":"$0.00"}},{"$f":"'MMA Rev-Exp Summary'!F$66","v":{"v":0,"d":"$0.00"}},{"$f":"'MMA Rev-Exp Summary'!G$66","v":{"v":0,"d":"$0.00"}},{"$f":"'MMA Rev-Exp Summary'!H$66","v":{"v":0,"d":"$0.00"}},{"$f":"'MMA Rev-Exp Summary'!I$66","v":{"v":0,"d":"$0.00"}},{"$f":"'MMA Rev-Exp Summary'!J$66","v":{"v":0,"d":"$0.00"}},{"$f":"'MMA Rev-Exp Summary'!K$66","v":{"v":0,"d":"$0.00"}},{"$f":"'MMA Rev-Exp Summary'!L$66","v":{"v":0,"d":"$0.00"}},{"$f":"'MMA Rev-Exp Summary'!M$66","v":{"v":0,"d":"$0.00"}},{"$f":"'MMA Rev-Exp Summary'!N$66","v":{"v":0,"d":"$0.00"}},{"v":0,"d":"$0.00"}]
["MMA",null,null,{"$f":"Jurat!I$1","v":0},{"$f":"Jurat!D$33","v":"00:00:00"},"Q1","2017-03-31","Summary","Operating Expense","Medical Benefits Expense","Other MMA Services","9.4","Other State Plan Services FFS",{"$f":"'MMA Rev-Exp Summary'!D$67","v":{"v":0,"d":"$0.00"}},{"$f":"'MMA Rev-Exp Summary'!E$67","v":{"v":0,"d":"$0.00"}},{"$f":"'MMA Rev-Exp Summary'!F$67","v":{"v":0,"d":"$0.00"}},{"$f":"'MMA Rev-Exp Summary'!G$67","v":{"v":0,"d":"$0.00"}},{"$f":"'MMA Rev-Exp Summary'!H$67","v":{"v":0,"d":"$0.00"}},{"$f":"'MMA Rev-Exp Summary'!I$67","v":{"v":0,"d":"$0.00"}},{"$f":"'MMA Rev-Exp Summary'!J$67","v":{"v":0,"d":"$0.00"}},{"$f":"'MMA Rev-Exp Summary'!K$67","v":{"v":0,"d":"$0.00"}},{"$f":"'MMA Rev-Exp Summary'!L$67","v":{"v":0,"d":"$0.00"}},{"$f":"'MMA Rev-Exp Summary'!M$67","v":{"v":0,"d":"$0.00"}},{"$f":"'MMA Rev-Exp Summary'!N$67","v":{"v":0,"d":"$0.00"}},{"v":0,"d":"$0.00"}]
["MMA",null,null,{"$f":"Jurat!I$1","v":0},{"$f":"Jurat!D$33","v":"00:00:00"},"Q1","2017-03-31","Summary","Operating Expense","Medical Benefits Expense","Other MMA Services","9.5","Other Services Subcapitation",{"$f":"'MMA Rev-Exp Summary'!D$68","v":{"v":0,"d":"$0.00"}},{"$f":"'MMA Rev-Exp Summary'!E$68","v":{"v":0,"d":"$0.00"}},{"$f":"'MMA Rev-Exp Summary'!F$68","v":{"v":0,"d":"$0.00"}},{"$f":"'MMA Rev-Exp Summary'!G$68","v":{"v":0,"d":"$0.00"}},{"$f":"'MMA Rev-Exp Summary'!H$68","v":{"v":0,"d":"$0.00"}},{"$f":"'MMA Rev-Exp Summary'!I$68","v":{"v":0,"d":"$0.00"}},{"$f":"'MMA Rev-Exp Summary'!J$68","v":{"v":0,"d":"$0.00"}},{"$f":"'MMA Rev-Exp Summary'!K$68","v":{"v":0,"d":"$0.00"}},{"$f":"'MMA Rev-Exp Summary'!L$68","v":{"v":0,"d":"$0.00"}},{"$f":"'MMA Rev-Exp Summary'!M$68","v":{"v":0,"d":"$0.00"}},{"$f":"'MMA Rev-Exp Summary'!N$68","v":{"v":0,"d":"$0.00"}},{"v":0,"d":"$0.00"}]
["MMA",null,null,{"$f":"Jurat!I$1","v":0},{"$f":"Jurat!D$33","v":"00:00:00"},"Q1","2017-03-31","Summary","Operating Expense","Medical Benefits Expense","Other MMA Services","9.6","Ending IBNP for Other Services",{"$f":"'MMA Rev-Exp Summary'!D$69","v":{"v":0,"d":"$0.00"}},{"$f":"'MMA Rev-Exp Summary'!E$69","v":{"v":0,"d":"$0.00"}},{"$f":"'MMA Rev-Exp Summary'!F$69","v":{"v":0,"d":"$0.00"}},{"$f":"'MMA Rev-Exp Summary'!G$69","v":{"v":0,"d":"$0.00"}},{"$f":"'MMA Rev-Exp Summary'!H$69","v":{"v":0,"d":"$0.00"}},{"$f":"'MMA Rev-Exp Summary'!I$69","v":{"v":0,"d":"$0.00"}},{"$f":"'MMA Rev-Exp Summary'!J$69","v":{"v":0,"d":"$0.00"}},{"$f":"'MMA Rev-Exp Summary'!K$69","v":{"v":0,"d":"$0.00"}},{"$f":"'MMA Rev-Exp Summary'!L$69","v":{"v":0,"d":"$0.00"}},{"$f":"'MMA Rev-Exp Summary'!M$69","v":{"v":0,"d":"$0.00"}},{"$f":"'MMA Rev-Exp Summary'!N$69","v":{"v":0,"d":"$0.00"}},{"v":0,"d":"$0.00"}]
["MMA",null,null,{"$f":"Jurat!I$1","v":0},{"$f":"Jurat!D$33","v":"00:00:00"},"Q1","2017-03-31","Summary","Operating Expense","Medical Benefits Expense","Other MMA Services","9.7","Other Services Settlements",{"$f":"'MMA Rev-Exp Summary'!D$70","v":{"v":0,"d":"$0.00"}},{"$f":"'MMA Rev-Exp Summary'!E$70","v":{"v":0,"d":"$0.00"}},{"$f":"'MMA Rev-Exp Summary'!F$70","v":{"v":0,"d":"$0.00"}},{"$f":"'MMA Rev-Exp Summary'!G$70","v":{"v":0,"d":"$0.00"}},{"$f":"'MMA Rev-Exp Summary'!H$70","v":{"v":0,"d":"$0.00"}},{"$f":"'MMA Rev-Exp Summary'!I$70","v":{"v":0,"d":"$0.00"}},{"$f":"'MMA Rev-Exp Summary'!J$70","v":{"v":0,"d":"$0.00"}},{"$f":"'MMA Rev-Exp Summary'!K$70","v":{"v":0,"d":"$0.00"}},{"$f":"'MMA Rev-Exp Summary'!L$70","v":{"v":0,"d":"$0.00"}},{"$f":"'MMA Rev-Exp Summary'!M$70","v":{"v":0,"d":"$0.00"}},{"$f":"'MMA Rev-Exp Summary'!N$70","v":{"v":0,"d":"$0.00"}},{"v":0,"d":"$0.00"}]
["MMA",null,null,{"$f":"Jurat!I$1","v":0},{"$f":"Jurat!D$33","v":"00:00:00"},"Q1","2017-03-31","Summary","Operating Expense","Medical Benefits Expense","Expanded Benefits","10.1","Expanded Benefits FFS",{"$f":"'MMA Rev-Exp Summary'!D$72","v":{"v":0,"d":"$0.00"}},{"$f":"'MMA Rev-Exp Summary'!E$72","v":{"v":0,"d":"$0.00"}},{"$f":"'MMA Rev-Exp Summary'!F$72","v":{"v":0,"d":"$0.00"}},{"$f":"'MMA Rev-Exp Summary'!G$72","v":{"v":0,"d":"$0.00"}},{"$f":"'MMA Rev-Exp Summary'!H$72","v":{"v":0,"d":"$0.00"}},{"$f":"'MMA Rev-Exp Summary'!I$72","v":{"v":0,"d":"$0.00"}},{"$f":"'MMA Rev-Exp Summary'!J$72","v":{"v":0,"d":"$0.00"}},{"$f":"'MMA Rev-Exp Summary'!K$72","v":{"v":0,"d":"$0.00"}},{"$f":"'MMA Rev-Exp Summary'!L$72","v":{"v":0,"d":"$0.00"}},{"$f":"'MMA Rev-Exp Summary'!M$72","v":{"v":0,"d":"$0.00"}},{"$f":"'MMA Rev-Exp Summary'!N$72","v":{"v":0,"d":"$0.00"}},{"v":0,"d":"$0.00"}]
["MMA",null,null,{"$f":"Jurat!I$1","v":0},{"$f":"Jurat!D$33","v":"00:00:00"},"Q1","2017-03-31","Summary","Operating Expense","Medical Benefits Expense","Expanded Benefits","10.2","Expanded benefits Subcapitation",{"$f":"'MMA Rev-Exp Summary'!D$73","v":{"v":0,"d":"$0.00"}},{"$f":"'MMA Rev-Exp Summary'!E$73","v":{"v":0,"d":"$0.00"}},{"$f":"'MMA Rev-Exp Summary'!F$73","v":{"v":0,"d":"$0.00"}},{"$f":"'MMA Rev-Exp Summary'!G$73","v":{"v":0,"d":"$0.00"}},{"$f":"'MMA Rev-Exp Summary'!H$73","v":{"v":0,"d":"$0.00"}},{"$f":"'MMA Rev-Exp Summary'!I$73","v":{"v":0,"d":"$0.00"}},{"$f":"'MMA Rev-Exp Summary'!J$73","v":{"v":0,"d":"$0.00"}},{"$f":"'MMA Rev-Exp Summary'!K$73","v":{"v":0,"d":"$0.00"}},{"$f":"'MMA Rev-Exp Summary'!L$73","v":{"v":0,"d":"$0.00"}},{"$f":"'MMA Rev-Exp Summary'!M$73","v":{"v":0,"d":"$0.00"}},{"$f":"'MMA Rev-Exp Summary'!N$73","v":{"v":0,"d":"$0.00"}},{"v":0,"d":"$0.00"}]
["MMA",null,null,{"$f":"Jurat!I$1","v":0},{"$f":"Jurat!D$33","v":"00:00:00"},"Q1","2017-03-31","Summary","Operating Expense","Medical Benefits Expense","Expanded Benefits","10.3","Ending IBNP for Expanded Benefits",{"$f":"'MMA Rev-Exp Summary'!D$74","v":{"v":0,"d":"$0.00"}},{"$f":"'MMA Rev-Exp Summary'!E$74","v":{"v":0,"d":"$0.00"}},{"$f":"'MMA Rev-Exp Summary'!F$74","v":{"v":0,"d":"$0.00"}},{"$f":"'MMA Rev-Exp Summary'!G$74","v":{"v":0,"d":"$0.00"}},{"$f":"'MMA Rev-Exp Summary'!H$74","v":{"v":0,"d":"$0.00"}},{"$f":"'MMA Rev-Exp Summary'!I$74","v":{"v":0,"d":"$0.00"}},{"$f":"'MMA Rev-Exp Summary'!J$74","v":{"v":0,"d":"$0.00"}},{"$f":"'MMA Rev-Exp Summary'!K$74","v":{"v":0,"d":"$0.00"}},{"$f":"'MMA Rev-Exp Summary'!L$74","v":{"v":0,"d":"$0.00"}},{"$f":"'MMA Rev-Exp Summary'!M$74","v":{"v":0,"d":"$0.00"}},{"$f":"'MMA Rev-Exp Summary'!N$74","v":{"v":0,"d":"$0.00"}},{"v":0,"d":"$0.00"}]
["MMA",null,null,{"$f":"Jurat!I$1","v":0},{"$f":"Jurat!D$33","v":"00:00:00"},"Q1","2017-03-31","Summary","Operating Expense","Medical Benefits Expense","Expanded Benefits","10.4","Expanded Benefits Settlements",{"$f":"'MMA Rev-Exp Summary'!D$75","v":{"v":0,"d":"$0.00"}},{"$f":"'MMA Rev-Exp Summary'!E$75","v":{"v":0,"d":"$0.00"}},{"$f":"'MMA Rev-Exp Summary'!F$75","v":{"v":0,"d":"$0.00"}},{"$f":"'MMA Rev-Exp Summary'!G$75","v":{"v":0,"d":"$0.00"}},{"$f":"'MMA Rev-Exp Summary'!H$75","v":{"v":0,"d":"$0.00"}},{"$f":"'MMA Rev-Exp Summary'!I$75","v":{"v":0,"d":"$0.00"}},{"$f":"'MMA Rev-Exp Summary'!J$75","v":{"v":0,"d":"$0.00"}},{"$f":"'MMA Rev-Exp Summary'!K$75","v":{"v":0,"d":"$0.00"}},{"$f":"'MMA Rev-Exp Summary'!L$75","v":{"v":0,"d":"$0.00"}},{"$f":"'MMA Rev-Exp Summary'!M$75","v":{"v":0,"d":"$0.00"}},{"$f":"'MMA Rev-Exp Summary'!N$75","v":{"v":0,"d":"$0.00"}},{"v":0,"d":"$0.00"}]
["MMA",null,null,{"$f":"Jurat!I$1","v":0},{"$f":"Jurat!D$33","v":"00:00:00"},"Q1","2017-03-31","Summary","Operating Expense","Medical Benefits Expense","Other Medical","11.5","TPL & Fraud/Abuse Recoveries",{"$f":"'MMA Rev-Exp Summary'!D$81","v":{"v":0,"d":"$0.00"}},{"$f":"'MMA Rev-Exp Summary'!E$81","v":{"v":0,"d":"$0.00"}},{"$f":"'MMA Rev-Exp Summary'!F$81","v":{"v":0,"d":"$0.00"}},{"$f":"'MMA Rev-Exp Summary'!G$81","v":{"v":0,"d":"$0.00"}},{"$f":"'MMA Rev-Exp Summary'!H$81","v":{"v":0,"d":"$0.00"}},{"$f":"'MMA Rev-Exp Summary'!I$81","v":{"v":0,"d":"$0.00"}},{"$f":"'MMA Rev-Exp Summary'!J$81","v":{"v":0,"d":"$0.00"}},{"$f":"'MMA Rev-Exp Summary'!K$81","v":{"v":0,"d":"$0.00"}},{"$f":"'MMA Rev-Exp Summary'!L$81","v":{"v":0,"d":"$0.00"}},{"$f":"'MMA Rev-Exp Summary'!M$81","v":{"v":0,"d":"$0.00"}},{"$f":"'MMA Rev-Exp Summary'!N$81","v":{"v":0,"d":"$0.00"}},{"v":0,"d":"$0.00"}]
["MMA",null,null,{"$f":"Jurat!I$1","v":0},{"$f":"Jurat!D$33","v":"00:00:00"},"Q1","2017-03-31","Summary","Operating Expense","Medical Benefits Expense","Other Medical","11.6.1","Premium Deficiency Reserve",{"$f":"'MMA Rev-Exp Summary'!D$82","v":{"v":0,"d":"$0.00"}},{"$f":"'MMA Rev-Exp Summary'!E$82","v":{"v":0,"d":"$0.00"}},{"$f":"'MMA Rev-Exp Summary'!F$82","v":{"v":0,"d":"$0.00"}},{"$f":"'MMA Rev-Exp Summary'!G$82","v":{"v":0,"d":"$0.00"}},{"$f":"'MMA Rev-Exp Summary'!H$82","v":{"v":0,"d":"$0.00"}},{"$f":"'MMA Rev-Exp Summary'!I$82","v":{"v":0,"d":"$0.00"}},{"$f":"'MMA Rev-Exp Summary'!J$82","v":{"v":0,"d":"$0.00"}},{"$f":"'MMA Rev-Exp Summary'!K$82","v":{"v":0,"d":"$0.00"}},{"$f":"'MMA Rev-Exp Summary'!L$82","v":{"v":0,"d":"$0.00"}},{"$f":"'MMA Rev-Exp Summary'!M$82","v":{"v":0,"d":"$0.00"}},{"$f":"'MMA Rev-Exp Summary'!N$82","v":{"v":0,"d":"$0.00"}},{"v":0,"d":"$0.00"}]
["MMA",null,null,{"$f":"Jurat!I$1","v":0},{"$f":"Jurat!D$33","v":"00:00:00"},"Q1","2017-03-31","Summary","Operating Expense","Medical Benefits Expense","Other Medical","11.8","Reinsurance Premiums",{"$f":"'MMA Rev-Exp Summary'!D$84","v":{"v":0,"d":"$0.00"}},{"$f":"'MMA Rev-Exp Summary'!E$84","v":{"v":0,"d":"$0.00"}},{"$f":"'MMA Rev-Exp Summary'!F$84","v":{"v":0,"d":"$0.00"}},{"$f":"'MMA Rev-Exp Summary'!G$84","v":{"v":0,"d":"$0.00"}},{"$f":"'MMA Rev-Exp Summary'!H$84","v":{"v":0,"d":"$0.00"}},{"$f":"'MMA Rev-Exp Summary'!I$84","v":{"v":0,"d":"$0.00"}},{"$f":"'MMA Rev-Exp Summary'!J$84","v":{"v":0,"d":"$0.00"}},{"$f":"'MMA Rev-Exp Summary'!K$84","v":{"v":0,"d":"$0.00"}},{"$f":"'MMA Rev-Exp Summary'!L$84","v":{"v":0,"d":"$0.00"}},{"$f":"'MMA Rev-Exp Summary'!M$84","v":{"v":0,"d":"$0.00"}},{"$f":"'MMA Rev-Exp Summary'!N$84","v":{"v":0,"d":"$0.00"}},{"v":0,"d":"$0.00"}]
["MMA",null,null,{"$f":"Jurat!I$1","v":0},{"$f":"Jurat!D$33","v":"00:00:00"},"Q1","2017-03-31","Summary","Operating Expense","Medical Benefits Expense","Other Medical","11.9","Reinsurance Recoveries",{"$f":"'MMA Rev-Exp Summary'!D$85","v":{"v":0,"d":"$0.00"}},{"$f":"'MMA Rev-Exp Summary'!E$85","v":{"v":0,"d":"$0.00"}},{"$f":"'MMA Rev-Exp Summary'!F$85","v":{"v":0,"d":"$0.00"}},{"$f":"'MMA Rev-Exp Summary'!G$85","v":{"v":0,"d":"$0.00"}},{"$f":"'MMA Rev-Exp Summary'!H$85","v":{"v":0,"d":"$0.00"}},{"$f":"'MMA Rev-Exp Summary'!I$85","v":{"v":0,"d":"$0.00"}},{"$f":"'MMA Rev-Exp Summary'!J$85","v":{"v":0,"d":"$0.00"}},{"$f":"'MMA Rev-Exp Summary'!K$85","v":{"v":0,"d":"$0.00"}},{"$f":"'MMA Rev-Exp Summary'!L$85","v":{"v":0,"d":"$0.00"}},{"$f":"'MMA Rev-Exp Summary'!M$85","v":{"v":0,"d":"$0.00"}},{"$f":"'MMA Rev-Exp Summary'!N$85","v":{"v":0,"d":"$0.00"}},{"v":0,"d":"$0.00"}]
["MMA",null,null,{"$f":"Jurat!I$1","v":0},{"$f":"Jurat!D$33","v":"00:00:00"},"Q1","2017-03-31","Summary","Operating Expense","Administrative Expense","Administrative","12.1","Salaries & Benefits",{"$f":"'MMA Rev-Exp Summary'!D$90","v":{"v":0,"d":"$0.00"}},{"v":0,"d":"$0.00"},{"v":0,"d":"$0.00"},{"v":0,"d":"$0.00"},{"v":0,"d":"$0.00"},{"v":0,"d":"$0.00"},{"v":0,"d":"$0.00"},{"v":0,"d":"$0.00"},{"v":0,"d":"$0.00"},{"v":0,"d":"$0.00"},{"v":0,"d":"$0.00"},{"v":0,"d":"$0.00"}]
["MMA",null,null,{"$f":"Jurat!I$1","v":0},{"$f":"Jurat!D$33","v":"00:00:00"},"Q1","2017-03-31","Summary","Operating Expense","Administrative Expense","Administrative","12.2","Administrative Services",{"$f":"'MMA Rev-Exp Summary'!D$91","v":{"v":0,"d":"$0.00"}},{"v":0,"d":"$0.00"},{"v":0,"d":"$0.00"},{"v":0,"d":"$0.00"},{"v":0,"d":"$0.00"},{"v":0,"d":"$0.00"},{"v":0,"d":"$0.00"},{"v":0,"d":"$0.00"},{"v":0,"d":"$0.00"},{"v":0,"d":"$0.00"},{"v":0,"d":"$0.00"},{"v":0,"d":"$0.00"}]
["MMA",null,null,{"$f":"Jurat!I$1","v":0},{"$f":"Jurat!D$33","v":"00:00:00"},"Q1","2017-03-31","Summary","Operating Expense","Administrative Expense","Administrative","12.3","Information Systems",{"$f":"'MMA Rev-Exp Summary'!D$92","v":{"v":0,"d":"$0.00"}},{"v":0,"d":"$0.00"},{"v":0,"d":"$0.00"},{"v":0,"d":"$0.00"},{"v":0,"d":"$0.00"},{"v":0,"d":"$0.00"},{"v":0,"d":"$0.00"},{"v":0,"d":"$0.00"},{"v":0,"d":"$0.00"},{"v":0,"d":"$0.00"},{"v":0,"d":"$0.00"},{"v":0,"d":"$0.00"}]
["MMA",null,null,{"$f":"Jurat!I$1","v":0},{"$f":"Jurat!D$33","v":"00:00:00"},"Q1","2017-03-31","Summary","Operating Expense","Administrative Expense","Administrative","12.4","Marketing Expenses",{"$f":"'MMA Rev-Exp Summary'!D$93","v":{"v":0,"d":"$0.00"}},{"v":0,"d":"$0.00"},{"v":0,"d":"$0.00"},{"v":0,"d":"$0.00"},{"v":0,"d":"$0.00"},{"v":0,"d":"$0.00"},{"v":0,"d":"$0.00"},{"v":0,"d":"$0.00"},{"v":0,"d":"$0.00"},{"v":0,"d":"$0.00"},{"v":0,"d":"$0.00"},{"v":0,"d":"$0.00"}]
["MMA",null,null,{"$f":"Jurat!I$1","v":0},{"$f":"Jurat!D$33","v":"00:00:00"},"Q1","2017-03-31","Summary","Operating Expense","Administrative Expense","Administrative","12.5","General  Administration",{"$f":"'MMA Rev-Exp Summary'!D$94","v":{"v":0,"d":"$0.00"}},{"v":0,"d":"$0.00"},{"v":0,"d":"$0.00"},{"v":0,"d":"$0.00"},{"v":0,"d":"$0.00"},{"v":0,"d":"$0.00"},{"v":0,"d":"$0.00"},{"v":0,"d":"$0.00"},{"v":0,"d":"$0.00"},{"v":0,"d":"$0.00"},{"v":0,"d":"$0.00"},{"v":0,"d":"$0.00"}]
["MMA",null,null,{"$f":"Jurat!I$1","v":0},{"$f":"Jurat!D$33","v":"00:00:00"},"Q1","2017-03-31","Summary","Operating Expense","Administrative Expense","Administrative","12.6","Compliance/Regulatory",{"$f":"'MMA Rev-Exp Summary'!D$95","v":{"v":0,"d":"$0.00"}},{"v":0,"d":"$0.00"},{"v":0,"d":"$0.00"},{"v":0,"d":"$0.00"},{"v":0,"d":"$0.00"},{"v":0,"d":"$0.00"},{"v":0,"d":"$0.00"},{"v":0,"d":"$0.00"},{"v":0,"d":"$0.00"},{"v":0,"d":"$0.00"},{"v":0,"d":"$0.00"},{"v":0,"d":"$0.00"}]
["MMA",null,null,{"$f":"Jurat!I$1","v":0},{"$f":"Jurat!D$33","v":"00:00:00"},"Q1","2017-03-31","Summary","Operating Expense","Taxes & Fees","Taxes & Fees","13.1","State Premium tax",{"$f":"'MMA Rev-Exp Summary'!D$97","v":{"v":0,"d":"$0.00"}},{"v":0,"d":"$0.00"},{"v":0,"d":"$0.00"},{"v":0,"d":"$0.00"},{"v":0,"d":"$0.00"},{"v":0,"d":"$0.00"},{"v":0,"d":"$0.00"},{"v":0,"d":"$0.00"},{"v":0,"d":"$0.00"},{"v":0,"d":"$0.00"},{"v":0,"d":"$0.00"},{"v":0,"d":"$0.00"}]
["MMA",null,null,{"$f":"Jurat!I$1","v":0},{"$f":"Jurat!D$33","v":"00:00:00"},"Q1","2017-03-31","Summary","Operating Expense","Taxes & Fees","Taxes & Fees","13.2","Department of Insurance Assessments",{"$f":"'MMA Rev-Exp Summary'!D$98","v":{"v":0,"d":"$0.00"}},{"v":0,"d":"$0.00"},{"v":0,"d":"$0.00"},{"v":0,"d":"$0.00"},{"v":0,"d":"$0.00"},{"v":0,"d":"$0.00"},{"v":0,"d":"$0.00"},{"v":0,"d":"$0.00"},{"v":0,"d":"$0.00"},{"v":0,"d":"$0.00"},{"v":0,"d":"$0.00"},{"v":0,"d":"$0.00"}]
["MMA",null,null,{"$f":"Jurat!I$1","v":0},{"$f":"Jurat!D$33","v":"00:00:00"},"Q1","2017-03-31","Summary","Operating Expense","Taxes & Fees","Taxes & Fees","13.3","Section 9010 Health Insurance Providers Fee",{"$f":"'MMA Rev-Exp Summary'!D$99","v":{"v":0,"d":"$0.00"}},{"v":0,"d":"$0.00"},{"v":0,"d":"$0.00"},{"v":0,"d":"$0.00"},{"v":0,"d":"$0.00"},{"v":0,"d":"$0.00"},{"v":0,"d":"$0.00"},{"v":0,"d":"$0.00"},{"v":0,"d":"$0.00"},{"v":0,"d":"$0.00"},{"v":0,"d":"$0.00"},{"v":0,"d":"$0.00"}]
["MMA",null,null,{"$f":"Jurat!I$1","v":0},{"$f":"Jurat!D$33","v":"00:00:00"},"Q1","2017-03-31","Summary","Non-Operating Expense","Income Tax Expense","Income Tax Expense","16.0","Income Tax Expense",{"$f":"'MMA Rev-Exp Summary'!D$106","v":{"v":0,"d":"$0.00"}},{"v":0,"d":"$0.00"},{"v":0,"d":"$0.00"},{"v":0,"d":"$0.00"},{"v":0,"d":"$0.00"},{"v":0,"d":"$0.00"},{"v":0,"d":"$0.00"},{"v":0,"d":"$0.00"},{"v":0,"d":"$0.00"},{"v":0,"d":"$0.00"},{"v":0,"d":"$0.00"},{"v":0,"d":"$0.00"}]
["MMA",null,null,{"$f":"Jurat!I$1","v":0},{"$f":"Jurat!D$33","v":"00:00:00"},"Q2","2017-06-30","Summary","Member Months","Member Months","Member Months",null,"Member Months",{"$f":"'MMA Rev-Exp Summary'!O$9","v":{"v":0,"d":"$0.00"}},{"$f":"'MMA Rev-Exp Summary'!P$9","v":{"v":0,"d":"$0.00"}},{"$f":"'MMA Rev-Exp Summary'!Q$9","v":{"v":0,"d":"$0.00"}},{"$f":"'MMA Rev-Exp Summary'!R$9","v":{"v":0,"d":"$0.00"}},{"$f":"'MMA Rev-Exp Summary'!S$9","v":{"v":0,"d":"$0.00"}},{"$f":"'MMA Rev-Exp Summary'!T$9","v":{"v":0,"d":"$0.00"}},{"$f":"'MMA Rev-Exp Summary'!U$9","v":{"v":0,"d":"$0.00"}},{"$f":"'MMA Rev-Exp Summary'!V$9","v":{"v":0,"d":"$0.00"}},{"$f":"'MMA Rev-Exp Summary'!W$9","v":{"v":0,"d":"$0.00"}},{"$f":"'MMA Rev-Exp Summary'!X$9","v":{"v":0,"d":"$0.00"}},{"$f":"'MMA Rev-Exp Summary'!Y$9","v":{"v":0,"d":"$0.00"}},{"v":0,"d":"$0.00"}]
["MMA",null,null,{"$f":"Jurat!I$1","v":0},{"$f":"Jurat!D$33","v":"00:00:00"},"Q2","2017-06-30","Summary","Operating Revenue","Capitation","Capitation",1.1,"Capitation",{"$f":"'MMA Rev-Exp Summary'!O$11","v":{"v":0,"d":"$0.00"}},{"$f":"'MMA Rev-Exp Summary'!P$11","v":{"v":0,"d":"$0.00"}},{"$f":"'MMA Rev-Exp Summary'!Q$11","v":{"v":0,"d":"$0.00"}},{"$f":"'MMA Rev-Exp Summary'!R$11","v":{"v":0,"d":"$0.00"}},{"$f":"'MMA Rev-Exp Summary'!S$11","v":{"v":0,"d":"$0.00"}},{"$f":"'MMA Rev-Exp Summary'!T$11","v":{"v":0,"d":"$0.00"}},{"$f":"'MMA Rev-Exp Summary'!U$11","v":{"v":0,"d":"$0.00"}},{"$f":"'MMA Rev-Exp Summary'!V$11","v":{"v":0,"d":"$0.00"}},{"$f":"'MMA Rev-Exp Summary'!W$11","v":{"v":0,"d":"$0.00"}},{"$f":"'MMA Rev-Exp Summary'!X$11","v":{"v":0,"d":"$0.00"}},{"$f":"'MMA Rev-Exp Summary'!Y$11","v":{"v":0,"d":"$0.00"}},{"v":0,"d":"$0.00"}]
["MMA",null,null,{"$f":"Jurat!I$1","v":0},{"$f":"Jurat!D$33","v":"00:00:00"},"Q2","2017-06-30","Summary","Operating Revenue","Kick Payments","Kick Payments - Transplant",1.2,"Transplant Kick Payments",{"$f":"'MMA Rev-Exp Summary'!O$12","v":{"v":0,"d":"$0.00"}},{"$f":"'MMA Rev-Exp Summary'!P$12","v":{"v":0,"d":"$0.00"}},{"$f":"'MMA Rev-Exp Summary'!Q$12","v":{"v":0,"d":"$0.00"}},{"$f":"'MMA Rev-Exp Summary'!R$12","v":{"v":0,"d":"$0.00"}},{"$f":"'MMA Rev-Exp Summary'!S$12","v":{"v":0,"d":"$0.00"}},{"$f":"'MMA Rev-Exp Summary'!T$12","v":{"v":0,"d":"$0.00"}},{"$f":"'MMA Rev-Exp Summary'!U$12","v":{"v":0,"d":"$0.00"}},{"$f":"'MMA Rev-Exp Summary'!V$12","v":{"v":0,"d":"$0.00"}},{"$f":"'MMA Rev-Exp Summary'!W$12","v":{"v":0,"d":"$0.00"}},{"$f":"'MMA Rev-Exp Summary'!X$12","v":{"v":0,"d":"$0.00"}},{"$f":"'MMA Rev-Exp Summary'!Y$12","v":{"v":0,"d":"$0.00"}},{"v":0,"d":"$0.00"}]
["MMA",null,null,{"$f":"Jurat!I$1","v":0},{"$f":"Jurat!D$33","v":"00:00:00"},"Q2","2017-06-30","Summary","Operating Revenue","Kick Payments","Kick Payments - Hep C","1.3","Hepatitis C Kick Payments",{"$f":"'MMA Rev-Exp Summary'!O$13","v":{"v":0,"d":"$0.00"}},{"$f":"'MMA Rev-Exp Summary'!P$13","v":{"v":0,"d":"$0.00"}},{"$f":"'MMA Rev-Exp Summary'!Q$13","v":{"v":0,"d":"$0.00"}},{"$f":"'MMA Rev-Exp Summary'!R$13","v":{"v":0,"d":"$0.00"}},{"$f":"'MMA Rev-Exp Summary'!S$13","v":{"v":0,"d":"$0.00"}},{"$f":"'MMA Rev-Exp Summary'!T$13","v":{"v":0,"d":"$0.00"}},{"$f":"'MMA Rev-Exp Summary'!U$13","v":{"v":0,"d":"$0.00"}},{"$f":"'MMA Rev-Exp Summary'!V$13","v":{"v":0,"d":"$0.00"}},{"$f":"'MMA Rev-Exp Summary'!W$13","v":{"v":0,"d":"$0.00"}},{"$f":"'MMA Rev-Exp Summary'!X$13","v":{"v":0,"d":"$0.00"}},{"$f":"'MMA Rev-Exp Summary'!Y$13","v":{"v":0,"d":"$0.00"}},{"v":0,"d":"$0.00"}]
["MMA",null,null,{"$f":"Jurat!I$1","v":0},{"$f":"Jurat!D$33","v":"00:00:00"},"Q2","2017-06-30","Summary","Operating Revenue","Kick Payments","Kick Payments - Maternity","1.4.1","Maternity Kick Payments",{"$f":"'MMA Rev-Exp Summary'!O$14","v":{"v":0,"d":"$0.00"}},{"$f":"'MMA Rev-Exp Summary'!P$14","v":{"v":0,"d":"$0.00"}},{"$f":"'MMA Rev-Exp Summary'!Q$14","v":{"v":0,"d":"$0.00"}},{"$f":"'MMA Rev-Exp Summary'!R$14","v":{"v":0,"d":"$0.00"}},{"$f":"'MMA Rev-Exp Summary'!S$14","v":{"v":0,"d":"$0.00"}},{"$f":"'MMA Rev-Exp Summary'!T$14","v":{"v":0,"d":"$0.00"}},{"$f":"'MMA Rev-Exp Summary'!U$14","v":{"v":0,"d":"$0.00"}},{"$f":"'MMA Rev-Exp Summary'!V$14","v":{"v":0,"d":"$0.00"}},{"$f":"'MMA Rev-Exp Summary'!W$14","v":{"v":0,"d":"$0.00"}},{"$f":"'MMA Rev-Exp Summary'!X$14","v":{"v":0,"d":"$0.00"}},{"$f":"'MMA Rev-Exp Summary'!Y$14","v":{"v":0,"d":"$0.00"}},{"v":0,"d":"$0.00"}]
["MMA",null,null,{"$f":"Jurat!I$1","v":0},{"$f":"Jurat!D$33","v":"00:00:00"},"Q2","2017-06-30","Summary","Operating Revenue","Other Revenue","Other Revenue - 9010","1.5","ACA § 9010 related payments",{"$f":"'MMA Rev-Exp Summary'!O$15","v":{"v":0,"d":"$0.00"}},{"$f":"'MMA Rev-Exp Summary'!P$15","v":{"v":0,"d":"$0.00"}},{"$f":"'MMA Rev-Exp Summary'!Q$15","v":{"v":0,"d":"$0.00"}},{"$f":"'MMA Rev-Exp Summary'!R$15","v":{"v":0,"d":"$0.00"}},{"$f":"'MMA Rev-Exp Summary'!S$15","v":{"v":0,"d":"$0.00"}},{"$f":"'MMA Rev-Exp Summary'!T$15","v":{"v":0,"d":"$0.00"}},{"$f":"'MMA Rev-Exp Summary'!U$15","v":{"v":0,"d":"$0.00"}},{"$f":"'MMA Rev-Exp Summary'!V$15","v":{"v":0,"d":"$0.00"}},{"$f":"'MMA Rev-Exp Summary'!W$15","v":{"v":0,"d":"$0.00"}},{"$f":"'MMA Rev-Exp Summary'!X$15","v":{"v":0,"d":"$0.00"}},{"$f":"'MMA Rev-Exp Summary'!Y$15","v":{"v":0,"d":"$0.00"}},{"v":0,"d":"$0.00"}]
["MMA",null,null,{"$f":"Jurat!I$1","v":0},{"$f":"Jurat!D$33","v":"00:00:00"},"Q2","2017-06-30","Summary","Operating Revenue","Other Revenue","Other Revenue","1.6","Other Revenue",{"$f":"'MMA Rev-Exp Summary'!O$16","v":{"v":0,"d":"$0.00"}},{"$f":"'MMA Rev-Exp Summary'!P$16","v":{"v":0,"d":"$0.00"}},{"$f":"'MMA Rev-Exp Summary'!Q$16","v":{"v":0,"d":"$0.00"}},{"$f":"'MMA Rev-Exp Summary'!R$16","v":{"v":0,"d":"$0.00"}},{"$f":"'MMA Rev-Exp Summary'!S$16","v":{"v":0,"d":"$0.00"}},{"$f":"'MMA Rev-Exp Summary'!T$16","v":{"v":0,"d":"$0.00"}},{"$f":"'MMA Rev-Exp Summary'!U$16","v":{"v":0,"d":"$0.00"}},{"$f":"'MMA Rev-Exp Summary'!V$16","v":{"v":0,"d":"$0.00"}},{"$f":"'MMA Rev-Exp Summary'!W$16","v":{"v":0,"d":"$0.00"}},{"$f":"'MMA Rev-Exp Summary'!X$16","v":{"v":0,"d":"$0.00"}},{"$f":"'MMA Rev-Exp Summary'!Y$16","v":{"v":0,"d":"$0.00"}},{"v":0,"d":"$0.00"}]
["MMA",null,null,{"$f":"Jurat!I$1","v":0},{"$f":"Jurat!D$33","v":"00:00:00"},"Q2","2017-06-30","Summary","Operating Expense","Medical Benefits Expense","Hospital Services",2.1,"Inpatient FFS",{"$f":"'MMA Rev-Exp Summary'!O$20","v":{"v":0,"d":"$0.00"}},{"$f":"'MMA Rev-Exp Summary'!P$20","v":{"v":0,"d":"$0.00"}},{"$f":"'MMA Rev-Exp Summary'!Q$20","v":{"v":0,"d":"$0.00"}},{"$f":"'MMA Rev-Exp Summary'!R$20","v":{"v":0,"d":"$0.00"}},{"$f":"'MMA Rev-Exp Summary'!S$20","v":{"v":0,"d":"$0.00"}},{"$f":"'MMA Rev-Exp Summary'!T$20","v":{"v":0,"d":"$0.00"}},{"$f":"'MMA Rev-Exp Summary'!U$20","v":{"v":0,"d":"$0.00"}},{"$f":"'MMA Rev-Exp Summary'!V$20","v":{"v":0,"d":"$0.00"}},{"$f":"'MMA Rev-Exp Summary'!W$20","v":{"v":0,"d":"$0.00"}},{"$f":"'MMA Rev-Exp Summary'!X$20","v":{"v":0,"d":"$0.00"}},{"$f":"'MMA Rev-Exp Summary'!Y$20","v":{"v":0,"d":"$0.00"}},{"v":0,"d":"$0.00"}]
["MMA",null,null,{"$f":"Jurat!I$1","v":0},{"$f":"Jurat!D$33","v":"00:00:00"},"Q2","2017-06-30","Summary","Operating Expense","Medical Benefits Expense","Hospital Services",2.2,"Ending IBNP for Inpatient Hospital Services",{"$f":"'MMA Rev-Exp Summary'!O$21","v":{"v":0,"d":"$0.00"}},{"$f":"'MMA Rev-Exp Summary'!P$21","v":{"v":0,"d":"$0.00"}},{"$f":"'MMA Rev-Exp Summary'!Q$21","v":{"v":0,"d":"$0.00"}},{"$f":"'MMA Rev-Exp Summary'!R$21","v":{"v":0,"d":"$0.00"}},{"$f":"'MMA Rev-Exp Summary'!S$21","v":{"v":0,"d":"$0.00"}},{"$f":"'MMA Rev-Exp Summary'!T$21","v":{"v":0,"d":"$0.00"}},{"$f":"'MMA Rev-Exp Summary'!U$21","v":{"v":0,"d":"$0.00"}},{"$f":"'MMA Rev-Exp Summary'!V$21","v":{"v":0,"d":"$0.00"}},{"$f":"'MMA Rev-Exp Summary'!W$21","v":{"v":0,"d":"$0.00"}},{"$f":"'MMA Rev-Exp Summary'!X$21","v":{"v":0,"d":"$0.00"}},{"$f":"'MMA Rev-Exp Summary'!Y$21","v":{"v":0,"d":"$0.00"}},{"v":0,"d":"$0.00"}]
["MMA",null,null,{"$f":"Jurat!I$1","v":0},{"$f":"Jurat!D$33","v":"00:00:00"},"Q2","2017-06-30","Summary","Operating Expense","Medical Benefits Expense","Hospital Services",2.3,"Outpatient FFS: ER",{"$f":"'MMA Rev-Exp Summary'!O$22","v":{"v":0,"d":"$0.00"}},{"$f":"'MMA Rev-Exp Summary'!P$22","v":{"v":0,"d":"$0.00"}},{"$f":"'MMA Rev-Exp Summary'!Q$22","v":{"v":0,"d":"$0.00"}},{"$f":"'MMA Rev-Exp Summary'!R$22","v":{"v":0,"d":"$0.00"}},{"$f":"'MMA Rev-Exp Summary'!S$22","v":{"v":0,"d":"$0.00"}},{"$f":"'MMA Rev-Exp Summary'!T$22","v":{"v":0,"d":"$0.00"}},{"$f":"'MMA Rev-Exp Summary'!U$22","v":{"v":0,"d":"$0.00"}},{"$f":"'MMA Rev-Exp Summary'!V$22","v":{"v":0,"d":"$0.00"}},{"$f":"'MMA Rev-Exp Summary'!W$22","v":{"v":0,"d":"$0.00"}},{"$f":"'MMA Rev-Exp Summary'!X$22","v":{"v":0,"d":"$0.00"}},{"$f":"'MMA Rev-Exp Summary'!Y$22","v":{"v":0,"d":"$0.00"}},{"v":0,"d":"$0.00"}]
["MMA",null,null,{"$f":"Jurat!I$1","v":0},{"$f":"Jurat!D$33","v":"00:00:00"},"Q2","2017-06-30","Summary","Operating Expense","Medical Benefits Expense","Hospital Services",2.4,"Outpatient FFS: Other than ER ",{"$f":"'MMA Rev-Exp Summary'!O$23","v":{"v":0,"d":"$0.00"}},{"$f":"'MMA Rev-Exp Summary'!P$23","v":{"v":0,"d":"$0.00"}},{"$f":"'MMA Rev-Exp Summary'!Q$23","v":{"v":0,"d":"$0.00"}},{"$f":"'MMA Rev-Exp Summary'!R$23","v":{"v":0,"d":"$0.00"}},{"$f":"'MMA Rev-Exp Summary'!S$23","v":{"v":0,"d":"$0.00"}},{"$f":"'MMA Rev-Exp Summary'!T$23","v":{"v":0,"d":"$0.00"}},{"$f":"'MMA Rev-Exp Summary'!U$23","v":{"v":0,"d":"$0.00"}},{"$f":"'MMA Rev-Exp Summary'!V$23","v":{"v":0,"d":"$0.00"}},{"$f":"'MMA Rev-Exp Summary'!W$23","v":{"v":0,"d":"$0.00"}},{"$f":"'MMA Rev-Exp Summary'!X$23","v":{"v":0,"d":"$0.00"}},{"$f":"'MMA Rev-Exp Summary'!Y$23","v":{"v":0,"d":"$0.00"}},{"v":0,"d":"$0.00"}]
["MMA",null,null,{"$f":"Jurat!I$1","v":0},{"$f":"Jurat!D$33","v":"00:00:00"},"Q2","2017-06-30","Summary","Operating Expense","Medical Benefits Expense","Hospital Services",2.5,"Ending IBNP for Outpatient Hospital Services",{"$f":"'MMA Rev-Exp Summary'!O$24","v":{"v":0,"d":"$0.00"}},{"$f":"'MMA Rev-Exp Summary'!P$24","v":{"v":0,"d":"$0.00"}},{"$f":"'MMA Rev-Exp Summary'!Q$24","v":{"v":0,"d":"$0.00"}},{"$f":"'MMA Rev-Exp Summary'!R$24","v":{"v":0,"d":"$0.00"}},{"$f":"'MMA Rev-Exp Summary'!S$24","v":{"v":0,"d":"$0.00"}},{"$f":"'MMA Rev-Exp Summary'!T$24","v":{"v":0,"d":"$0.00"}},{"$f":"'MMA Rev-Exp Summary'!U$24","v":{"v":0,"d":"$0.00"}},{"$f":"'MMA Rev-Exp Summary'!V$24","v":{"v":0,"d":"$0.00"}},{"$f":"'MMA Rev-Exp Summary'!W$24","v":{"v":0,"d":"$0.00"}},{"$f":"'MMA Rev-Exp Summary'!X$24","v":{"v":0,"d":"$0.00"}},{"$f":"'MMA Rev-Exp Summary'!Y$24","v":{"v":0,"d":"$0.00"}},{"v":0,"d":"$0.00"}]
["MMA",null,null,{"$f":"Jurat!I$1","v":0},{"$f":"Jurat!D$33","v":"00:00:00"},"Q2","2017-06-30","Summary","Operating Expense","Medical Benefits Expense","Hospital Services","2.6","Subcapitated Hospital Services",{"$f":"'MMA Rev-Exp Summary'!O$25","v":{"v":0,"d":"$0.00"}},{"$f":"'MMA Rev-Exp Summary'!P$25","v":{"v":0,"d":"$0.00"}},{"$f":"'MMA Rev-Exp Summary'!Q$25","v":{"v":0,"d":"$0.00"}},{"$f":"'MMA Rev-Exp Summary'!R$25","v":{"v":0,"d":"$0.00"}},{"$f":"'MMA Rev-Exp Summary'!S$25","v":{"v":0,"d":"$0.00"}},{"$f":"'MMA Rev-Exp Summary'!T$25","v":{"v":0,"d":"$0.00"}},{"$f":"'MMA Rev-Exp Summary'!U$25","v":{"v":0,"d":"$0.00"}},{"$f":"'MMA Rev-Exp Summary'!V$25","v":{"v":0,"d":"$0.00"}},{"$f":"'MMA Rev-Exp Summary'!W$25","v":{"v":0,"d":"$0.00"}},{"$f":"'MMA Rev-Exp Summary'!X$25","v":{"v":0,"d":"$0.00"}},{"$f":"'MMA Rev-Exp Summary'!Y$25","v":{"v":0,"d":"$0.00"}},{"v":0,"d":"$0.00"}]
["MMA",null,null,{"$f":"Jurat!I$1","v":0},{"$f":"Jurat!D$33","v":"00:00:00"},"Q2","2017-06-30","Summary","Operating Expense","Medical Benefits Expense","Hospital Services","2.7","Hospital Settlements",{"$f":"'MMA Rev-Exp Summary'!O$26","v":{"v":0,"d":"$0.00"}},{"$f":"'MMA Rev-Exp Summary'!P$26","v":{"v":0,"d":"$0.00"}},{"$f":"'MMA Rev-Exp Summary'!Q$26","v":{"v":0,"d":"$0.00"}},{"$f":"'MMA Rev-Exp Summary'!R$26","v":{"v":0,"d":"$0.00"}},{"$f":"'MMA Rev-Exp Summary'!S$26","v":{"v":0,"d":"$0.00"}},{"$f":"'MMA Rev-Exp Summary'!T$26","v":{"v":0,"d":"$0.00"}},{"$f":"'MMA Rev-Exp Summary'!U$26","v":{"v":0,"d":"$0.00"}},{"$f":"'MMA Rev-Exp Summary'!V$26","v":{"v":0,"d":"$0.00"}},{"$f":"'MMA Rev-Exp Summary'!W$26","v":{"v":0,"d":"$0.00"}},{"$f":"'MMA Rev-Exp Summary'!X$26","v":{"v":0,"d":"$0.00"}},{"$f":"'MMA Rev-Exp Summary'!Y$26","v":{"v":0,"d":"$0.00"}},{"v":0,"d":"$0.00"}]
["MMA",null,null,{"$f":"Jurat!I$1","v":0},{"$f":"Jurat!D$33","v":"00:00:00"},"Q2","2017-06-30","Summary","Operating Expense","Medical Benefits Expense","Hospital Services","2.7.1","Transplant Services",{"$f":"'MMA Rev-Exp Summary'!O$27","v":{"v":0,"d":"$0.00"}},{"$f":"'MMA Rev-Exp Summary'!P$27","v":{"v":0,"d":"$0.00"}},{"$f":"'MMA Rev-Exp Summary'!Q$27","v":{"v":0,"d":"$0.00"}},{"$f":"'MMA Rev-Exp Summary'!R$27","v":{"v":0,"d":"$0.00"}},{"$f":"'MMA Rev-Exp Summary'!S$27","v":{"v":0,"d":"$0.00"}},{"$f":"'MMA Rev-Exp Summary'!T$27","v":{"v":0,"d":"$0.00"}},{"$f":"'MMA Rev-Exp Summary'!U$27","v":{"v":0,"d":"$0.00"}},{"$f":"'MMA Rev-Exp Summary'!V$27","v":{"v":0,"d":"$0.00"}},{"$f":"'MMA Rev-Exp Summary'!W$27","v":{"v":0,"d":"$0.00"}},{"$f":"'MMA Rev-Exp Summary'!X$27","v":{"v":0,"d":"$0.00"}},{"$f":"'MMA Rev-Exp Summary'!Y$27","v":{"v":0,"d":"$0.00"}},{"v":0,"d":"$0.00"}]
["MMA",null,null,{"$f":"Jurat!I$1","v":0},{"$f":"Jurat!D$33","v":"00:00:00"},"Q2","2017-06-30","Summary","Operating Expense","Medical Benefits Expense","Professional Services",3.1,"Primary Care FFS",{"$f":"'MMA Rev-Exp Summary'!O$29","v":{"v":0,"d":"$0.00"}},{"$f":"'MMA Rev-Exp Summary'!P$29","v":{"v":0,"d":"$0.00"}},{"$f":"'MMA Rev-Exp Summary'!Q$29","v":{"v":0,"d":"$0.00"}},{"$f":"'MMA Rev-Exp Summary'!R$29","v":{"v":0,"d":"$0.00"}},{"$f":"'MMA Rev-Exp Summary'!S$29","v":{"v":0,"d":"$0.00"}},{"$f":"'MMA Rev-Exp Summary'!T$29","v":{"v":0,"d":"$0.00"}},{"$f":"'MMA Rev-Exp Summary'!U$29","v":{"v":0,"d":"$0.00"}},{"$f":"'MMA Rev-Exp Summary'!V$29","v":{"v":0,"d":"$0.00"}},{"$f":"'MMA Rev-Exp Summary'!W$29","v":{"v":0,"d":"$0.00"}},{"$f":"'MMA Rev-Exp Summary'!X$29","v":{"v":0,"d":"$0.00"}},{"$f":"'MMA Rev-Exp Summary'!Y$29","v":{"v":0,"d":"$0.00"}},{"v":0,"d":"$0.00"}]
["MMA",null,null,{"$f":"Jurat!I$1","v":0},{"$f":"Jurat!D$33","v":"00:00:00"},"Q2","2017-06-30","Summary","Operating Expense","Medical Benefits Expense","Professional Services",3.2,"Specialty Care FFS",{"$f":"'MMA Rev-Exp Summary'!O$30","v":{"v":0,"d":"$0.00"}},{"$f":"'MMA Rev-Exp Summary'!P$30","v":{"v":0,"d":"$0.00"}},{"$f":"'MMA Rev-Exp Summary'!Q$30","v":{"v":0,"d":"$0.00"}},{"$f":"'MMA Rev-Exp Summary'!R$30","v":{"v":0,"d":"$0.00"}},{"$f":"'MMA Rev-Exp Summary'!S$30","v":{"v":0,"d":"$0.00"}},{"$f":"'MMA Rev-Exp Summary'!T$30","v":{"v":0,"d":"$0.00"}},{"$f":"'MMA Rev-Exp Summary'!U$30","v":{"v":0,"d":"$0.00"}},{"$f":"'MMA Rev-Exp Summary'!V$30","v":{"v":0,"d":"$0.00"}},{"$f":"'MMA Rev-Exp Summary'!W$30","v":{"v":0,"d":"$0.00"}},{"$f":"'MMA Rev-Exp Summary'!X$30","v":{"v":0,"d":"$0.00"}},{"$f":"'MMA Rev-Exp Summary'!Y$30","v":{"v":0,"d":"$0.00"}},{"v":0,"d":"$0.00"}]
["MMA",null,null,{"$f":"Jurat!I$1","v":0},{"$f":"Jurat!D$33","v":"00:00:00"},"Q2","2017-06-30","Summary","Operating Expense","Medical Benefits Expense","Professional Services",3.3,"Other Professional FFS",{"$f":"'MMA Rev-Exp Summary'!O$31","v":{"v":0,"d":"$0.00"}},{"$f":"'MMA Rev-Exp Summary'!P$31","v":{"v":0,"d":"$0.00"}},{"$f":"'MMA Rev-Exp Summary'!Q$31","v":{"v":0,"d":"$0.00"}},{"$f":"'MMA Rev-Exp Summary'!R$31","v":{"v":0,"d":"$0.00"}},{"$f":"'MMA Rev-Exp Summary'!S$31","v":{"v":0,"d":"$0.00"}},{"$f":"'MMA Rev-Exp Summary'!T$31","v":{"v":0,"d":"$0.00"}},{"$f":"'MMA Rev-Exp Summary'!U$31","v":{"v":0,"d":"$0.00"}},{"$f":"'MMA Rev-Exp Summary'!V$31","v":{"v":0,"d":"$0.00"}},{"$f":"'MMA Rev-Exp Summary'!W$31","v":{"v":0,"d":"$0.00"}},{"$f":"'MMA Rev-Exp Summary'!X$31","v":{"v":0,"d":"$0.00"}},{"$f":"'MMA Rev-Exp Summary'!Y$31","v":{"v":0,"d":"$0.00"}},{"v":0,"d":"$0.00"}]
["MMA",null,null,{"$f":"Jurat!I$1","v":0},{"$f":"Jurat!D$33","v":"00:00:00"},"Q2","2017-06-30","Summary","Operating Expense","Medical Benefits Expense","Professional Services","3.4","§ 1202 PCP Payments to providers",{"$f":"'MMA Rev-Exp Summary'!O$32","v":{"v":0,"d":"$0.00"}},{"$f":"'MMA Rev-Exp Summary'!P$32","v":{"v":0,"d":"$0.00"}},{"$f":"'MMA Rev-Exp Summary'!Q$32","v":{"v":0,"d":"$0.00"}},{"$f":"'MMA Rev-Exp Summary'!R$32","v":{"v":0,"d":"$0.00"}},{"$f":"'MMA Rev-Exp Summary'!S$32","v":{"v":0,"d":"$0.00"}},{"$f":"'MMA Rev-Exp Summary'!T$32","v":{"v":0,"d":"$0.00"}},{"$f":"'MMA Rev-Exp Summary'!U$32","v":{"v":0,"d":"$0.00"}},{"$f":"'MMA Rev-Exp Summary'!V$32","v":{"v":0,"d":"$0.00"}},{"$f":"'MMA Rev-Exp Summary'!W$32","v":{"v":0,"d":"$0.00"}},{"$f":"'MMA Rev-Exp Summary'!X$32","v":{"v":0,"d":"$0.00"}},{"$f":"'MMA Rev-Exp Summary'!Y$32","v":{"v":0,"d":"$0.00"}},{"v":0,"d":"$0.00"}]
["MMA",null,null,{"$f":"Jurat!I$1","v":0},{"$f":"Jurat!D$33","v":"00:00:00"},"Q2","2017-06-30","Summary","Operating Expense","Medical Benefits Expense","Professional Services","3.5","Subcapitated Professional Services",{"$f":"'MMA Rev-Exp Summary'!O$33","v":{"v":0,"d":"$0.00"}},{"$f":"'MMA Rev-Exp Summary'!P$33","v":{"v":0,"d":"$0.00"}},{"$f":"'MMA Rev-Exp Summary'!Q$33","v":{"v":0,"d":"$0.00"}},{"$f":"'MMA Rev-Exp Summary'!R$33","v":{"v":0,"d":"$0.00"}},{"$f":"'MMA Rev-Exp Summary'!S$33","v":{"v":0,"d":"$0.00"}},{"$f":"'MMA Rev-Exp Summary'!T$33","v":{"v":0,"d":"$0.00"}},{"$f":"'MMA Rev-Exp Summary'!U$33","v":{"v":0,"d":"$0.00"}},{"$f":"'MMA Rev-Exp Summary'!V$33","v":{"v":0,"d":"$0.00"}},{"$f":"'MMA Rev-Exp Summary'!W$33","v":{"v":0,"d":"$0.00"}},{"$f":"'MMA Rev-Exp Summary'!X$33","v":{"v":0,"d":"$0.00"}},{"$f":"'MMA Rev-Exp Summary'!Y$33","v":{"v":0,"d":"$0.00"}},{"v":0,"d":"$0.00"}]
["MMA",null,null,{"$f":"Jurat!I$1","v":0},{"$f":"Jurat!D$33","v":"00:00:00"},"Q2","2017-06-30","Summary","Operating Expense","Medical Benefits Expense","Professional Services","3.6","Ending IBNP for Professional Services",{"$f":"'MMA Rev-Exp Summary'!O$34","v":{"v":0,"d":"$0.00"}},{"$f":"'MMA Rev-Exp Summary'!P$34","v":{"v":0,"d":"$0.00"}},{"$f":"'MMA Rev-Exp Summary'!Q$34","v":{"v":0,"d":"$0.00"}},{"$f":"'MMA Rev-Exp Summary'!R$34","v":{"v":0,"d":"$0.00"}},{"$f":"'MMA Rev-Exp Summary'!S$34","v":{"v":0,"d":"$0.00"}},{"$f":"'MMA Rev-Exp Summary'!T$34","v":{"v":0,"d":"$0.00"}},{"$f":"'MMA Rev-Exp Summary'!U$34","v":{"v":0,"d":"$0.00"}},{"$f":"'MMA Rev-Exp Summary'!V$34","v":{"v":0,"d":"$0.00"}},{"$f":"'MMA Rev-Exp Summary'!W$34","v":{"v":0,"d":"$0.00"}},{"$f":"'MMA Rev-Exp Summary'!X$34","v":{"v":0,"d":"$0.00"}},{"$f":"'MMA Rev-Exp Summary'!Y$34","v":{"v":0,"d":"$0.00"}},{"v":0,"d":"$0.00"}]
["MMA",null,null,{"$f":"Jurat!I$1","v":0},{"$f":"Jurat!D$33","v":"00:00:00"},"Q2","2017-06-30","Summary","Operating Expense","Medical Benefits Expense","Professional Services","3.7","Professional Services Settlements",{"$f":"'MMA Rev-Exp Summary'!O$35","v":{"v":0,"d":"$0.00"}},{"$f":"'MMA Rev-Exp Summary'!P$35","v":{"v":0,"d":"$0.00"}},{"$f":"'MMA Rev-Exp Summary'!Q$35","v":{"v":0,"d":"$0.00"}},{"$f":"'MMA Rev-Exp Summary'!R$35","v":{"v":0,"d":"$0.00"}},{"$f":"'MMA Rev-Exp Summary'!S$35","v":{"v":0,"d":"$0.00"}},{"$f":"'MMA Rev-Exp Summary'!T$35","v":{"v":0,"d":"$0.00"}},{"$f":"'MMA Rev-Exp Summary'!U$35","v":{"v":0,"d":"$0.00"}},{"$f":"'MMA Rev-Exp Summary'!V$35","v":{"v":0,"d":"$0.00"}},{"$f":"'MMA Rev-Exp Summary'!W$35","v":{"v":0,"d":"$0.00"}},{"$f":"'MMA Rev-Exp Summary'!X$35","v":{"v":0,"d":"$0.00"}},{"$f":"'MMA Rev-Exp Summary'!Y$35","v":{"v":0,"d":"$0.00"}},{"v":0,"d":"$0.00"}]
["MMA",null,null,{"$f":"Jurat!I$1","v":0},{"$f":"Jurat!D$33","v":"00:00:00"},"Q2","2017-06-30","Summary","Operating Expense","Medical Benefits Expense","Maternity Services","4.1.1","Maternity Services",{"$f":"'MMA Rev-Exp Summary'!O$37","v":{"v":0,"d":"$0.00"}},{"$f":"'MMA Rev-Exp Summary'!P$37","v":{"v":0,"d":"$0.00"}},{"$f":"'MMA Rev-Exp Summary'!Q$37","v":{"v":0,"d":"$0.00"}},{"$f":"'MMA Rev-Exp Summary'!R$37","v":{"v":0,"d":"$0.00"}},{"$f":"'MMA Rev-Exp Summary'!S$37","v":{"v":0,"d":"$0.00"}},{"$f":"'MMA Rev-Exp Summary'!T$37","v":{"v":0,"d":"$0.00"}},{"$f":"'MMA Rev-Exp Summary'!U$37","v":{"v":0,"d":"$0.00"}},{"$f":"'MMA Rev-Exp Summary'!V$37","v":{"v":0,"d":"$0.00"}},{"$f":"'MMA Rev-Exp Summary'!W$37","v":{"v":0,"d":"$0.00"}},{"$f":"'MMA Rev-Exp Summary'!X$37","v":{"v":0,"d":"$0.00"}},{"$f":"'MMA Rev-Exp Summary'!Y$37","v":{"v":0,"d":"$0.00"}},{"v":0,"d":"$0.00"}]
["MMA",null,null,{"$f":"Jurat!I$1","v":0},{"$f":"Jurat!D$33","v":"00:00:00"},"Q2","2017-06-30","Summary","Operating Expense","Medical Benefits Expense","Maternity Services","4.2.1","Ending IBNP for Maternity Services",{"$f":"'MMA Rev-Exp Summary'!O$38","v":{"v":0,"d":"$0.00"}},{"$f":"'MMA Rev-Exp Summary'!P$38","v":{"v":0,"d":"$0.00"}},{"$f":"'MMA Rev-Exp Summary'!Q$38","v":{"v":0,"d":"$0.00"}},{"$f":"'MMA Rev-Exp Summary'!R$38","v":{"v":0,"d":"$0.00"}},{"$f":"'MMA Rev-Exp Summary'!S$38","v":{"v":0,"d":"$0.00"}},{"$f":"'MMA Rev-Exp Summary'!T$38","v":{"v":0,"d":"$0.00"}},{"$f":"'MMA Rev-Exp Summary'!U$38","v":{"v":0,"d":"$0.00"}},{"$f":"'MMA Rev-Exp Summary'!V$38","v":{"v":0,"d":"$0.00"}},{"$f":"'MMA Rev-Exp Summary'!W$38","v":{"v":0,"d":"$0.00"}},{"$f":"'MMA Rev-Exp Summary'!X$38","v":{"v":0,"d":"$0.00"}},{"$f":"'MMA Rev-Exp Summary'!Y$38","v":{"v":0,"d":"$0.00"}},{"v":0,"d":"$0.00"}]
["MMA",null,null,{"$f":"Jurat!I$1","v":0},{"$f":"Jurat!D$33","v":"00:00:00"},"Q2","2017-06-30","Summary","Operating Expense","Medical Benefits Expense","Maternity Services","4.3.1","Maternity Settlements",{"$f":"'MMA Rev-Exp Summary'!O$39","v":{"v":0,"d":"$0.00"}},{"$f":"'MMA Rev-Exp Summary'!P$39","v":{"v":0,"d":"$0.00"}},{"$f":"'MMA Rev-Exp Summary'!Q$39","v":{"v":0,"d":"$0.00"}},{"$f":"'MMA Rev-Exp Summary'!R$39","v":{"v":0,"d":"$0.00"}},{"$f":"'MMA Rev-Exp Summary'!S$39","v":{"v":0,"d":"$0.00"}},{"$f":"'MMA Rev-Exp Summary'!T$39","v":{"v":0,"d":"$0.00"}},{"$f":"'MMA Rev-Exp Summary'!U$39","v":{"v":0,"d":"$0.00"}},{"$f":"'MMA Rev-Exp Summary'!V$39","v":{"v":0,"d":"$0.00"}},{"$f":"'MMA Rev-Exp Summary'!W$39","v":{"v":0,"d":"$0.00"}},{"$f":"'MMA Rev-Exp Summary'!X$39","v":{"v":0,"d":"$0.00"}},{"$f":"'MMA Rev-Exp Summary'!Y$39","v":{"v":0,"d":"$0.00"}},{"v":0,"d":"$0.00"}]
["MMA",null,null,{"$f":"Jurat!I$1","v":0},{"$f":"Jurat!D$33","v":"00:00:00"},"Q2","2017-06-30","Summary","Operating Expense","Medical Benefits Expense","Mental Health Services",5.1,"Mental Health & Substance Abuse FFS",{"$f":"'MMA Rev-Exp Summary'!O$41","v":{"v":0,"d":"$0.00"}},{"$f":"'MMA Rev-Exp Summary'!P$41","v":{"v":0,"d":"$0.00"}},{"$f":"'MMA Rev-Exp Summary'!Q$41","v":{"v":0,"d":"$0.00"}},{"$f":"'MMA Rev-Exp Summary'!R$41","v":{"v":0,"d":"$0.00"}},{"$f":"'MMA Rev-Exp Summary'!S$41","v":{"v":0,"d":"$0.00"}},{"$f":"'MMA Rev-Exp Summary'!T$41","v":{"v":0,"d":"$0.00"}},{"$f":"'MMA Rev-Exp Summary'!U$41","v":{"v":0,"d":"$0.00"}},{"$f":"'MMA Rev-Exp Summary'!V$41","v":{"v":0,"d":"$0.00"}},{"$f":"'MMA Rev-Exp Summary'!W$41","v":{"v":0,"d":"$0.00"}},{"$f":"'MMA Rev-Exp Summary'!X$41","v":{"v":0,"d":"$0.00"}},{"$f":"'MMA Rev-Exp Summary'!Y$41","v":{"v":0,"d":"$0.00"}},{"v":0,"d":"$0.00"}]
["MMA",null,null,{"$f":"Jurat!I$1","v":0},{"$f":"Jurat!D$33","v":"00:00:00"},"Q2","2017-06-30","Summary","Operating Expense","Medical Benefits Expense","Mental Health Services",5.2,"Mental Health & Substance Abuse Subcapitation",{"$f":"'MMA Rev-Exp Summary'!O$42","v":{"v":0,"d":"$0.00"}},{"$f":"'MMA Rev-Exp Summary'!P$42","v":{"v":0,"d":"$0.00"}},{"$f":"'MMA Rev-Exp Summary'!Q$42","v":{"v":0,"d":"$0.00"}},{"$f":"'MMA Rev-Exp Summary'!R$42","v":{"v":0,"d":"$0.00"}},{"$f":"'MMA Rev-Exp Summary'!S$42","v":{"v":0,"d":"$0.00"}},{"$f":"'MMA Rev-Exp Summary'!T$42","v":{"v":0,"d":"$0.00"}},{"$f":"'MMA Rev-Exp Summary'!U$42","v":{"v":0,"d":"$0.00"}},{"$f":"'MMA Rev-Exp Summary'!V$42","v":{"v":0,"d":"$0.00"}},{"$f":"'MMA Rev-Exp Summary'!W$42","v":{"v":0,"d":"$0.00"}},{"$f":"'MMA Rev-Exp Summary'!X$42","v":{"v":0,"d":"$0.00"}},{"$f":"'MMA Rev-Exp Summary'!Y$42","v":{"v":0,"d":"$0.00"}},{"v":0,"d":"$0.00"}]
["MMA",null,null,{"$f":"Jurat!I$1","v":0},{"$f":"Jurat!D$33","v":"00:00:00"},"Q2","2017-06-30","Summary","Operating Expense","Medical Benefits Expense","Mental Health Services",5.3,"Ending IBNP for Mental Health & Substance Abuse",{"$f":"'MMA Rev-Exp Summary'!O$43","v":{"v":0,"d":"$0.00"}},{"$f":"'MMA Rev-Exp Summary'!P$43","v":{"v":0,"d":"$0.00"}},{"$f":"'MMA Rev-Exp Summary'!Q$43","v":{"v":0,"d":"$0.00"}},{"$f":"'MMA Rev-Exp Summary'!R$43","v":{"v":0,"d":"$0.00"}},{"$f":"'MMA Rev-Exp Summary'!S$43","v":{"v":0,"d":"$0.00"}},{"$f":"'MMA Rev-Exp Summary'!T$43","v":{"v":0,"d":"$0.00"}},{"$f":"'MMA Rev-Exp Summary'!U$43","v":{"v":0,"d":"$0.00"}},{"$f":"'MMA Rev-Exp Summary'!V$43","v":{"v":0,"d":"$0.00"}},{"$f":"'MMA Rev-Exp Summary'!W$43","v":{"v":0,"d":"$0.00"}},{"$f":"'MMA Rev-Exp Summary'!X$43","v":{"v":0,"d":"$0.00"}},{"$f":"'MMA Rev-Exp Summary'!Y$43","v":{"v":0,"d":"$0.00"}},{"v":0,"d":"$0.00"}]
["MMA",null,null,{"$f":"Jurat!I$1","v":0},{"$f":"Jurat!D$33","v":"00:00:00"},"Q2","2017-06-30","Summary","Operating Expense","Medical Benefits Expense","Mental Health Services","5.4","Mental Health Settlements",{"$f":"'MMA Rev-Exp Summary'!O$44","v":{"v":0,"d":"$0.00"}},{"$f":"'MMA Rev-Exp Summary'!P$44","v":{"v":0,"d":"$0.00"}},{"$f":"'MMA Rev-Exp Summary'!Q$44","v":{"v":0,"d":"$0.00"}},{"$f":"'MMA Rev-Exp Summary'!R$44","v":{"v":0,"d":"$0.00"}},{"$f":"'MMA Rev-Exp Summary'!S$44","v":{"v":0,"d":"$0.00"}},{"$f":"'MMA Rev-Exp Summary'!T$44","v":{"v":0,"d":"$0.00"}},{"$f":"'MMA Rev-Exp Summary'!U$44","v":{"v":0,"d":"$0.00"}},{"$f":"'MMA Rev-Exp Summary'!V$44","v":{"v":0,"d":"$0.00"}},{"$f":"'MMA Rev-Exp Summary'!W$44","v":{"v":0,"d":"$0.00"}},{"$f":"'MMA Rev-Exp Summary'!X$44","v":{"v":0,"d":"$0.00"}},{"$f":"'MMA Rev-Exp Summary'!Y$44","v":{"v":0,"d":"$0.00"}},{"v":0,"d":"$0.00"}]
["MMA",null,null,{"$f":"Jurat!I$1","v":0},{"$f":"Jurat!D$33","v":"00:00:00"},"Q2","2017-06-30","Summary","Operating Expense","Medical Benefits Expense","Dental Services",6.1,"Dental FFS",{"$f":"'MMA Rev-Exp Summary'!O$46","v":{"v":0,"d":"$0.00"}},{"$f":"'MMA Rev-Exp Summary'!P$46","v":{"v":0,"d":"$0.00"}},{"$f":"'MMA Rev-Exp Summary'!Q$46","v":{"v":0,"d":"$0.00"}},{"$f":"'MMA Rev-Exp Summary'!R$46","v":{"v":0,"d":"$0.00"}},{"$f":"'MMA Rev-Exp Summary'!S$46","v":{"v":0,"d":"$0.00"}},{"$f":"'MMA Rev-Exp Summary'!T$46","v":{"v":0,"d":"$0.00"}},{"$f":"'MMA Rev-Exp Summary'!U$46","v":{"v":0,"d":"$0.00"}},{"$f":"'MMA Rev-Exp Summary'!V$46","v":{"v":0,"d":"$0.00"}},{"$f":"'MMA Rev-Exp Summary'!W$46","v":{"v":0,"d":"$0.00"}},{"$f":"'MMA Rev-Exp Summary'!X$46","v":{"v":0,"d":"$0.00"}},{"$f":"'MMA Rev-Exp Summary'!Y$46","v":{"v":0,"d":"$0.00"}},{"v":0,"d":"$0.00"}]
["MMA",null,null,{"$f":"Jurat!I$1","v":0},{"$f":"Jurat!D$33","v":"00:00:00"},"Q2","2017-06-30","Summary","Operating Expense","Medical Benefits Expense","Dental Services",6.2,"Dental Subcapitation",{"$f":"'MMA Rev-Exp Summary'!O$47","v":{"v":0,"d":"$0.00"}},{"$f":"'MMA Rev-Exp Summary'!P$47","v":{"v":0,"d":"$0.00"}},{"$f":"'MMA Rev-Exp Summary'!Q$47","v":{"v":0,"d":"$0.00"}},{"$f":"'MMA Rev-Exp Summary'!R$47","v":{"v":0,"d":"$0.00"}},{"$f":"'MMA Rev-Exp Summary'!S$47","v":{"v":0,"d":"$0.00"}},{"$f":"'MMA Rev-Exp Summary'!T$47","v":{"v":0,"d":"$0.00"}},{"$f":"'MMA Rev-Exp Summary'!U$47","v":{"v":0,"d":"$0.00"}},{"$f":"'MMA Rev-Exp Summary'!V$47","v":{"v":0,"d":"$0.00"}},{"$f":"'MMA Rev-Exp Summary'!W$47","v":{"v":0,"d":"$0.00"}},{"$f":"'MMA Rev-Exp Summary'!X$47","v":{"v":0,"d":"$0.00"}},{"$f":"'MMA Rev-Exp Summary'!Y$47","v":{"v":0,"d":"$0.00"}},{"v":0,"d":"$0.00"}]
["MMA",null,null,{"$f":"Jurat!I$1","v":0},{"$f":"Jurat!D$33","v":"00:00:00"},"Q2","2017-06-30","Summary","Operating Expense","Medical Benefits Expense","Dental Services",6.3,"Ending IBNP for Dental Services",{"$f":"'MMA Rev-Exp Summary'!O$48","v":{"v":0,"d":"$0.00"}},{"$f":"'MMA Rev-Exp Summary'!P$48","v":{"v":0,"d":"$0.00"}},{"$f":"'MMA Rev-Exp Summary'!Q$48","v":{"v":0,"d":"$0.00"}},{"$f":"'MMA Rev-Exp Summary'!R$48","v":{"v":0,"d":"$0.00"}},{"$f":"'MMA Rev-Exp Summary'!S$48","v":{"v":0,"d":"$0.00"}},{"$f":"'MMA Rev-Exp Summary'!T$48","v":{"v":0,"d":"$0.00"}},{"$f":"'MMA Rev-Exp Summary'!U$48","v":{"v":0,"d":"$0.00"}},{"$f":"'MMA Rev-Exp Summary'!V$48","v":{"v":0,"d":"$0.00"}},{"$f":"'MMA Rev-Exp Summary'!W$48","v":{"v":0,"d":"$0.00"}},{"$f":"'MMA Rev-Exp Summary'!X$48","v":{"v":0,"d":"$0.00"}},{"$f":"'MMA Rev-Exp Summary'!Y$48","v":{"v":0,"d":"$0.00"}},{"v":0,"d":"$0.00"}]
["MMA",null,null,{"$f":"Jurat!I$1","v":0},{"$f":"Jurat!D$33","v":"00:00:00"},"Q2","2017-06-30","Summary","Operating Expense","Medical Benefits Expense","Dental Services","6.4","Dental Settlements",{"$f":"'MMA Rev-Exp Summary'!O$49","v":{"v":0,"d":"$0.00"}},{"$f":"'MMA Rev-Exp Summary'!P$49","v":{"v":0,"d":"$0.00"}},{"$f":"'MMA Rev-Exp Summary'!Q$49","v":{"v":0,"d":"$0.00"}},{"$f":"'MMA Rev-Exp Summary'!R$49","v":{"v":0,"d":"$0.00"}},{"$f":"'MMA Rev-Exp Summary'!S$49","v":{"v":0,"d":"$0.00"}},{"$f":"'MMA Rev-Exp Summary'!T$49","v":{"v":0,"d":"$0.00"}},{"$f":"'MMA Rev-Exp Summary'!U$49","v":{"v":0,"d":"$0.00"}},{"$f":"'MMA Rev-Exp Summary'!V$49","v":{"v":0,"d":"$0.00"}},{"$f":"'MMA Rev-Exp Summary'!W$49","v":{"v":0,"d":"$0.00"}},{"$f":"'MMA Rev-Exp Summary'!X$49","v":{"v":0,"d":"$0.00"}},{"$f":"'MMA Rev-Exp Summary'!Y$49","v":{"v":0,"d":"$0.00"}},{"v":0,"d":"$0.00"}]
["MMA",null,null,{"$f":"Jurat!I$1","v":0},{"$f":"Jurat!D$33","v":"00:00:00"},"Q2","2017-06-30","Summary","Operating Expense","Medical Benefits Expense","Transportation Services",7.1,"Transportation FFS",{"$f":"'MMA Rev-Exp Summary'!O$51","v":{"v":0,"d":"$0.00"}},{"$f":"'MMA Rev-Exp Summary'!P$51","v":{"v":0,"d":"$0.00"}},{"$f":"'MMA Rev-Exp Summary'!Q$51","v":{"v":0,"d":"$0.00"}},{"$f":"'MMA Rev-Exp Summary'!R$51","v":{"v":0,"d":"$0.00"}},{"$f":"'MMA Rev-Exp Summary'!S$51","v":{"v":0,"d":"$0.00"}},{"$f":"'MMA Rev-Exp Summary'!T$51","v":{"v":0,"d":"$0.00"}},{"$f":"'MMA Rev-Exp Summary'!U$51","v":{"v":0,"d":"$0.00"}},{"$f":"'MMA Rev-Exp Summary'!V$51","v":{"v":0,"d":"$0.00"}},{"$f":"'MMA Rev-Exp Summary'!W$51","v":{"v":0,"d":"$0.00"}},{"$f":"'MMA Rev-Exp Summary'!X$51","v":{"v":0,"d":"$0.00"}},{"$f":"'MMA Rev-Exp Summary'!Y$51","v":{"v":0,"d":"$0.00"}},{"v":0,"d":"$0.00"}]
["MMA",null,null,{"$f":"Jurat!I$1","v":0},{"$f":"Jurat!D$33","v":"00:00:00"},"Q2","2017-06-30","Summary","Operating Expense","Medical Benefits Expense","Transportation Services",7.2,"Transportation Subcapitation",{"$f":"'MMA Rev-Exp Summary'!O$52","v":{"v":0,"d":"$0.00"}},{"$f":"'MMA Rev-Exp Summary'!P$52","v":{"v":0,"d":"$0.00"}},{"$f":"'MMA Rev-Exp Summary'!Q$52","v":{"v":0,"d":"$0.00"}},{"$f":"'MMA Rev-Exp Summary'!R$52","v":{"v":0,"d":"$0.00"}},{"$f":"'MMA Rev-Exp Summary'!S$52","v":{"v":0,"d":"$0.00"}},{"$f":"'MMA Rev-Exp Summary'!T$52","v":{"v":0,"d":"$0.00"}},{"$f":"'MMA Rev-Exp Summary'!U$52","v":{"v":0,"d":"$0.00"}},{"$f":"'MMA Rev-Exp Summary'!V$52","v":{"v":0,"d":"$0.00"}},{"$f":"'MMA Rev-Exp Summary'!W$52","v":{"v":0,"d":"$0.00"}},{"$f":"'MMA Rev-Exp Summary'!X$52","v":{"v":0,"d":"$0.00"}},{"$f":"'MMA Rev-Exp Summary'!Y$52","v":{"v":0,"d":"$0.00"}},{"v":0,"d":"$0.00"}]
["MMA",null,null,{"$f":"Jurat!I$1","v":0},{"$f":"Jurat!D$33","v":"00:00:00"},"Q2","2017-06-30","Summary","Operating Expense","Medical Benefits Expense","Transportation Services",7.3,"Ending IBNP for Transportation",{"$f":"'MMA Rev-Exp Summary'!O$53","v":{"v":0,"d":"$0.00"}},{"$f":"'MMA Rev-Exp Summary'!P$53","v":{"v":0,"d":"$0.00"}},{"$f":"'MMA Rev-Exp Summary'!Q$53","v":{"v":0,"d":"$0.00"}},{"$f":"'MMA Rev-Exp Summary'!R$53","v":{"v":0,"d":"$0.00"}},{"$f":"'MMA Rev-Exp Summary'!S$53","v":{"v":0,"d":"$0.00"}},{"$f":"'MMA Rev-Exp Summary'!T$53","v":{"v":0,"d":"$0.00"}},{"$f":"'MMA Rev-Exp Summary'!U$53","v":{"v":0,"d":"$0.00"}},{"$f":"'MMA Rev-Exp Summary'!V$53","v":{"v":0,"d":"$0.00"}},{"$f":"'MMA Rev-Exp Summary'!W$53","v":{"v":0,"d":"$0.00"}},{"$f":"'MMA Rev-Exp Summary'!X$53","v":{"v":0,"d":"$0.00"}},{"$f":"'MMA Rev-Exp Summary'!Y$53","v":{"v":0,"d":"$0.00"}},{"v":0,"d":"$0.00"}]
["MMA",null,null,{"$f":"Jurat!I$1","v":0},{"$f":"Jurat!D$33","v":"00:00:00"},"Q2","2017-06-30","Summary","Operating Expense","Medical Benefits Expense","Transportation Services","7.4","Transportation Settlements",{"$f":"'MMA Rev-Exp Summary'!O$54","v":{"v":0,"d":"$0.00"}},{"$f":"'MMA Rev-Exp Summary'!P$54","v":{"v":0,"d":"$0.00"}},{"$f":"'MMA Rev-Exp Summary'!Q$54","v":{"v":0,"d":"$0.00"}},{"$f":"'MMA Rev-Exp Summary'!R$54","v":{"v":0,"d":"$0.00"}},{"$f":"'MMA Rev-Exp Summary'!S$54","v":{"v":0,"d":"$0.00"}},{"$f":"'MMA Rev-Exp Summary'!T$54","v":{"v":0,"d":"$0.00"}},{"$f":"'MMA Rev-Exp Summary'!U$54","v":{"v":0,"d":"$0.00"}},{"$f":"'MMA Rev-Exp Summary'!V$54","v":{"v":0,"d":"$0.00"}},{"$f":"'MMA Rev-Exp Summary'!W$54","v":{"v":0,"d":"$0.00"}},{"$f":"'MMA Rev-Exp Summary'!X$54","v":{"v":0,"d":"$0.00"}},{"$f":"'MMA Rev-Exp Summary'!Y$54","v":{"v":0,"d":"$0.00"}},{"v":0,"d":"$0.00"}]
["MMA",null,null,{"$f":"Jurat!I$1","v":0},{"$f":"Jurat!D$33","v":"00:00:00"},"Q2","2017-06-30","Summary","Operating Expense","Medical Benefits Expense","Pharmacy Services",8.1,"Prescription Drugs FFS",{"$f":"'MMA Rev-Exp Summary'!O$56","v":{"v":0,"d":"$0.00"}},{"$f":"'MMA Rev-Exp Summary'!P$56","v":{"v":0,"d":"$0.00"}},{"$f":"'MMA Rev-Exp Summary'!Q$56","v":{"v":0,"d":"$0.00"}},{"$f":"'MMA Rev-Exp Summary'!R$56","v":{"v":0,"d":"$0.00"}},{"$f":"'MMA Rev-Exp Summary'!S$56","v":{"v":0,"d":"$0.00"}},{"$f":"'MMA Rev-Exp Summary'!T$56","v":{"v":0,"d":"$0.00"}},{"$f":"'MMA Rev-Exp Summary'!U$56","v":{"v":0,"d":"$0.00"}},{"$f":"'MMA Rev-Exp Summary'!V$56","v":{"v":0,"d":"$0.00"}},{"$f":"'MMA Rev-Exp Summary'!W$56","v":{"v":0,"d":"$0.00"}},{"$f":"'MMA Rev-Exp Summary'!X$56","v":{"v":0,"d":"$0.00"}},{"$f":"'MMA Rev-Exp Summary'!Y$56","v":{"v":0,"d":"$0.00"}},{"v":0,"d":"$0.00"}]
["MMA",null,null,{"$f":"Jurat!I$1","v":0},{"$f":"Jurat!D$33","v":"00:00:00"},"Q2","2017-06-30","Summary","Operating Expense","Medical Benefits Expense","Pharmacy Services","8.2","Hepatitis C Prescription Drug FFS",{"$f":"'MMA Rev-Exp Summary'!O$57","v":{"v":0,"d":"$0.00"}},{"$f":"'MMA Rev-Exp Summary'!P$57","v":{"v":0,"d":"$0.00"}},{"$f":"'MMA Rev-Exp Summary'!Q$57","v":{"v":0,"d":"$0.00"}},{"$f":"'MMA Rev-Exp Summary'!R$57","v":{"v":0,"d":"$0.00"}},{"$f":"'MMA Rev-Exp Summary'!S$57","v":{"v":0,"d":"$0.00"}},{"$f":"'MMA Rev-Exp Summary'!T$57","v":{"v":0,"d":"$0.00"}},{"$f":"'MMA Rev-Exp Summary'!U$57","v":{"v":0,"d":"$0.00"}},{"$f":"'MMA Rev-Exp Summary'!V$57","v":{"v":0,"d":"$0.00"}},{"$f":"'MMA Rev-Exp Summary'!W$57","v":{"v":0,"d":"$0.00"}},{"$f":"'MMA Rev-Exp Summary'!X$57","v":{"v":0,"d":"$0.00"}},{"$f":"'MMA Rev-Exp Summary'!Y$57","v":{"v":0,"d":"$0.00"}},{"v":0,"d":"$0.00"}]
["MMA",null,null,{"$f":"Jurat!I$1","v":0},{"$f":"Jurat!D$33","v":"00:00:00"},"Q2","2017-06-30","Summary","Operating Expense","Medical Benefits Expense","Pharmacy Services","8.3","Ending IBNP for Prescription Drugs",{"$f":"'MMA Rev-Exp Summary'!O$58","v":{"v":0,"d":"$0.00"}},{"$f":"'MMA Rev-Exp Summary'!P$58","v":{"v":0,"d":"$0.00"}},{"$f":"'MMA Rev-Exp Summary'!Q$58","v":{"v":0,"d":"$0.00"}},{"$f":"'MMA Rev-Exp Summary'!R$58","v":{"v":0,"d":"$0.00"}},{"$f":"'MMA Rev-Exp Summary'!S$58","v":{"v":0,"d":"$0.00"}},{"$f":"'MMA Rev-Exp Summary'!T$58","v":{"v":0,"d":"$0.00"}},{"$f":"'MMA Rev-Exp Summary'!U$58","v":{"v":0,"d":"$0.00"}},{"$f":"'MMA Rev-Exp Summary'!V$58","v":{"v":0,"d":"$0.00"}},{"$f":"'MMA Rev-Exp Summary'!W$58","v":{"v":0,"d":"$0.00"}},{"$f":"'MMA Rev-Exp Summary'!X$58","v":{"v":0,"d":"$0.00"}},{"$f":"'MMA Rev-Exp Summary'!Y$58","v":{"v":0,"d":"$0.00"}},{"v":0,"d":"$0.00"}]
["MMA",null,null,{"$f":"Jurat!I$1","v":0},{"$f":"Jurat!D$33","v":"00:00:00"},"Q2","2017-06-30","Summary","Operating Expense","Medical Benefits Expense","Pharmacy Services","8.4","Prescription Drug Rebates ",{"$f":"'MMA Rev-Exp Summary'!O$59","v":{"v":0,"d":"$0.00"}},{"$f":"'MMA Rev-Exp Summary'!P$59","v":{"v":0,"d":"$0.00"}},{"$f":"'MMA Rev-Exp Summary'!Q$59","v":{"v":0,"d":"$0.00"}},{"$f":"'MMA Rev-Exp Summary'!R$59","v":{"v":0,"d":"$0.00"}},{"$f":"'MMA Rev-Exp Summary'!S$59","v":{"v":0,"d":"$0.00"}},{"$f":"'MMA Rev-Exp Summary'!T$59","v":{"v":0,"d":"$0.00"}},{"$f":"'MMA Rev-Exp Summary'!U$59","v":{"v":0,"d":"$0.00"}},{"$f":"'MMA Rev-Exp Summary'!V$59","v":{"v":0,"d":"$0.00"}},{"$f":"'MMA Rev-Exp Summary'!W$59","v":{"v":0,"d":"$0.00"}},{"$f":"'MMA Rev-Exp Summary'!X$59","v":{"v":0,"d":"$0.00"}},{"$f":"'MMA Rev-Exp Summary'!Y$59","v":{"v":0,"d":"$0.00"}},{"v":0,"d":"$0.00"}]
["MMA",null,null,{"$f":"Jurat!I$1","v":0},{"$f":"Jurat!D$33","v":"00:00:00"},"Q2","2017-06-30","Summary","Operating Expense","Medical Benefits Expense","Pharmacy Services","8.5","Ending accrual for Rebates receivable",{"$f":"'MMA Rev-Exp Summary'!O$60","v":{"v":0,"d":"$0.00"}},{"$f":"'MMA Rev-Exp Summary'!P$60","v":{"v":0,"d":"$0.00"}},{"$f":"'MMA Rev-Exp Summary'!Q$60","v":{"v":0,"d":"$0.00"}},{"$f":"'MMA Rev-Exp Summary'!R$60","v":{"v":0,"d":"$0.00"}},{"$f":"'MMA Rev-Exp Summary'!S$60","v":{"v":0,"d":"$0.00"}},{"$f":"'MMA Rev-Exp Summary'!T$60","v":{"v":0,"d":"$0.00"}},{"$f":"'MMA Rev-Exp Summary'!U$60","v":{"v":0,"d":"$0.00"}},{"$f":"'MMA Rev-Exp Summary'!V$60","v":{"v":0,"d":"$0.00"}},{"$f":"'MMA Rev-Exp Summary'!W$60","v":{"v":0,"d":"$0.00"}},{"$f":"'MMA Rev-Exp Summary'!X$60","v":{"v":0,"d":"$0.00"}},{"$f":"'MMA Rev-Exp Summary'!Y$60","v":{"v":0,"d":"$0.00"}},{"v":0,"d":"$0.00"}]
["MMA",null,null,{"$f":"Jurat!I$1","v":0},{"$f":"Jurat!D$33","v":"00:00:00"},"Q2","2017-06-30","Summary","Operating Expense","Medical Benefits Expense","Pharmacy Services","8.6","Prescription Drugs Subcapitation",{"$f":"'MMA Rev-Exp Summary'!O$61","v":{"v":0,"d":"$0.00"}},{"$f":"'MMA Rev-Exp Summary'!P$61","v":{"v":0,"d":"$0.00"}},{"$f":"'MMA Rev-Exp Summary'!Q$61","v":{"v":0,"d":"$0.00"}},{"$f":"'MMA Rev-Exp Summary'!R$61","v":{"v":0,"d":"$0.00"}},{"$f":"'MMA Rev-Exp Summary'!S$61","v":{"v":0,"d":"$0.00"}},{"$f":"'MMA Rev-Exp Summary'!T$61","v":{"v":0,"d":"$0.00"}},{"$f":"'MMA Rev-Exp Summary'!U$61","v":{"v":0,"d":"$0.00"}},{"$f":"'MMA Rev-Exp Summary'!V$61","v":{"v":0,"d":"$0.00"}},{"$f":"'MMA Rev-Exp Summary'!W$61","v":{"v":0,"d":"$0.00"}},{"$f":"'MMA Rev-Exp Summary'!X$61","v":{"v":0,"d":"$0.00"}},{"$f":"'MMA Rev-Exp Summary'!Y$61","v":{"v":0,"d":"$0.00"}},{"v":0,"d":"$0.00"}]
["MMA",null,null,{"$f":"Jurat!I$1","v":0},{"$f":"Jurat!D$33","v":"00:00:00"},"Q2","2017-06-30","Summary","Operating Expense","Medical Benefits Expense","Pharmacy Services","8.7","Prescription Drug Settlements",{"$f":"'MMA Rev-Exp Summary'!O$62","v":{"v":0,"d":"$0.00"}},{"$f":"'MMA Rev-Exp Summary'!P$62","v":{"v":0,"d":"$0.00"}},{"$f":"'MMA Rev-Exp Summary'!Q$62","v":{"v":0,"d":"$0.00"}},{"$f":"'MMA Rev-Exp Summary'!R$62","v":{"v":0,"d":"$0.00"}},{"$f":"'MMA Rev-Exp Summary'!S$62","v":{"v":0,"d":"$0.00"}},{"$f":"'MMA Rev-Exp Summary'!T$62","v":{"v":0,"d":"$0.00"}},{"$f":"'MMA Rev-Exp Summary'!U$62","v":{"v":0,"d":"$0.00"}},{"$f":"'MMA Rev-Exp Summary'!V$62","v":{"v":0,"d":"$0.00"}},{"$f":"'MMA Rev-Exp Summary'!W$62","v":{"v":0,"d":"$0.00"}},{"$f":"'MMA Rev-Exp Summary'!X$62","v":{"v":0,"d":"$0.00"}},{"$f":"'MMA Rev-Exp Summary'!Y$62","v":{"v":0,"d":"$0.00"}},{"v":0,"d":"$0.00"}]
["MMA",null,null,{"$f":"Jurat!I$1","v":0},{"$f":"Jurat!D$33","v":"00:00:00"},"Q2","2017-06-30","Summary","Operating Expense","Medical Benefits Expense","Other MMA Services",9.1,"Home Health, Private Duty Nursing, Personal Care FFS",{"$f":"'MMA Rev-Exp Summary'!O$64","v":{"v":0,"d":"$0.00"}},{"$f":"'MMA Rev-Exp Summary'!P$64","v":{"v":0,"d":"$0.00"}},{"$f":"'MMA Rev-Exp Summary'!Q$64","v":{"v":0,"d":"$0.00"}},{"$f":"'MMA Rev-Exp Summary'!R$64","v":{"v":0,"d":"$0.00"}},{"$f":"'MMA Rev-Exp Summary'!S$64","v":{"v":0,"d":"$0.00"}},{"$f":"'MMA Rev-Exp Summary'!T$64","v":{"v":0,"d":"$0.00"}},{"$f":"'MMA Rev-Exp Summary'!U$64","v":{"v":0,"d":"$0.00"}},{"$f":"'MMA Rev-Exp Summary'!V$64","v":{"v":0,"d":"$0.00"}},{"$f":"'MMA Rev-Exp Summary'!W$64","v":{"v":0,"d":"$0.00"}},{"$f":"'MMA Rev-Exp Summary'!X$64","v":{"v":0,"d":"$0.00"}},{"$f":"'MMA Rev-Exp Summary'!Y$64","v":{"v":0,"d":"$0.00"}},{"v":0,"d":"$0.00"}]
["MMA",null,null,{"$f":"Jurat!I$1","v":0},{"$f":"Jurat!D$33","v":"00:00:00"},"Q2","2017-06-30","Summary","Operating Expense","Medical Benefits Expense","Other MMA Services","9.2","Hospice FFS",{"$f":"'MMA Rev-Exp Summary'!O$65","v":{"v":0,"d":"$0.00"}},{"$f":"'MMA Rev-Exp Summary'!P$65","v":{"v":0,"d":"$0.00"}},{"$f":"'MMA Rev-Exp Summary'!Q$65","v":{"v":0,"d":"$0.00"}},{"$f":"'MMA Rev-Exp Summary'!R$65","v":{"v":0,"d":"$0.00"}},{"$f":"'MMA Rev-Exp Summary'!S$65","v":{"v":0,"d":"$0.00"}},{"$f":"'MMA Rev-Exp Summary'!T$65","v":{"v":0,"d":"$0.00"}},{"$f":"'MMA Rev-Exp Summary'!U$65","v":{"v":0,"d":"$0.00"}},{"$f":"'MMA Rev-Exp Summary'!V$65","v":{"v":0,"d":"$0.00"}},{"$f":"'MMA Rev-Exp Summary'!W$65","v":{"v":0,"d":"$0.00"}},{"$f":"'MMA Rev-Exp Summary'!X$65","v":{"v":0,"d":"$0.00"}},{"$f":"'MMA Rev-Exp Summary'!Y$65","v":{"v":0,"d":"$0.00"}},{"v":0,"d":"$0.00"}]
["MMA",null,null,{"$f":"Jurat!I$1","v":0},{"$f":"Jurat!D$33","v":"00:00:00"},"Q2","2017-06-30","Summary","Operating Expense","Medical Benefits Expense","Other MMA Services","9.3","DME FFS",{"$f":"'MMA Rev-Exp Summary'!O$66","v":{"v":0,"d":"$0.00"}},{"$f":"'MMA Rev-Exp Summary'!P$66","v":{"v":0,"d":"$0.00"}},{"$f":"'MMA Rev-Exp Summary'!Q$66","v":{"v":0,"d":"$0.00"}},{"$f":"'MMA Rev-Exp Summary'!R$66","v":{"v":0,"d":"$0.00"}},{"$f":"'MMA Rev-Exp Summary'!S$66","v":{"v":0,"d":"$0.00"}},{"$f":"'MMA Rev-Exp Summary'!T$66","v":{"v":0,"d":"$0.00"}},{"$f":"'MMA Rev-Exp Summary'!U$66","v":{"v":0,"d":"$0.00"}},{"$f":"'MMA Rev-Exp Summary'!V$66","v":{"v":0,"d":"$0.00"}},{"$f":"'MMA Rev-Exp Summary'!W$66","v":{"v":0,"d":"$0.00"}},{"$f":"'MMA Rev-Exp Summary'!X$66","v":{"v":0,"d":"$0.00"}},{"$f":"'MMA Rev-Exp Summary'!Y$66","v":{"v":0,"d":"$0.00"}},{"v":0,"d":"$0.00"}]
["MMA",null,null,{"$f":"Jurat!I$1","v":0},{"$f":"Jurat!D$33","v":"00:00:00"},"Q2","2017-06-30","Summary","Operating Expense","Medical Benefits Expense","Other MMA Services","9.4","Other State Plan Services FFS",{"$f":"'MMA Rev-Exp Summary'!O$67","v":{"v":0,"d":"$0.00"}},{"$f":"'MMA Rev-Exp Summary'!P$67","v":{"v":0,"d":"$0.00"}},{"$f":"'MMA Rev-Exp Summary'!Q$67","v":{"v":0,"d":"$0.00"}},{"$f":"'MMA Rev-Exp Summary'!R$67","v":{"v":0,"d":"$0.00"}},{"$f":"'MMA Rev-Exp Summary'!S$67","v":{"v":0,"d":"$0.00"}},{"$f":"'MMA Rev-Exp Summary'!T$67","v":{"v":0,"d":"$0.00"}},{"$f":"'MMA Rev-Exp Summary'!U$67","v":{"v":0,"d":"$0.00"}},{"$f":"'MMA Rev-Exp Summary'!V$67","v":{"v":0,"d":"$0.00"}},{"$f":"'MMA Rev-Exp Summary'!W$67","v":{"v":0,"d":"$0.00"}},{"$f":"'MMA Rev-Exp Summary'!X$67","v":{"v":0,"d":"$0.00"}},{"$f":"'MMA Rev-Exp Summary'!Y$67","v":{"v":0,"d":"$0.00"}},{"v":0,"d":"$0.00"}]
["MMA",null,null,{"$f":"Jurat!I$1","v":0},{"$f":"Jurat!D$33","v":"00:00:00"},"Q2","2017-06-30","Summary","Operating Expense","Medical Benefits Expense","Other MMA Services","9.5","Other Services Subcapitation",{"$f":"'MMA Rev-Exp Summary'!O$68","v":{"v":0,"d":"$0.00"}},{"$f":"'MMA Rev-Exp Summary'!P$68","v":{"v":0,"d":"$0.00"}},{"$f":"'MMA Rev-Exp Summary'!Q$68","v":{"v":0,"d":"$0.00"}},{"$f":"'MMA Rev-Exp Summary'!R$68","v":{"v":0,"d":"$0.00"}},{"$f":"'MMA Rev-Exp Summary'!S$68","v":{"v":0,"d":"$0.00"}},{"$f":"'MMA Rev-Exp Summary'!T$68","v":{"v":0,"d":"$0.00"}},{"$f":"'MMA Rev-Exp Summary'!U$68","v":{"v":0,"d":"$0.00"}},{"$f":"'MMA Rev-Exp Summary'!V$68","v":{"v":0,"d":"$0.00"}},{"$f":"'MMA Rev-Exp Summary'!W$68","v":{"v":0,"d":"$0.00"}},{"$f":"'MMA Rev-Exp Summary'!X$68","v":{"v":0,"d":"$0.00"}},{"$f":"'MMA Rev-Exp Summary'!Y$68","v":{"v":0,"d":"$0.00"}},{"v":0,"d":"$0.00"}]
["MMA",null,null,{"$f":"Jurat!I$1","v":0},{"$f":"Jurat!D$33","v":"00:00:00"},"Q2","2017-06-30","Summary","Operating Expense","Medical Benefits Expense","Other MMA Services","9.6","Ending IBNP for Other Services",{"$f":"'MMA Rev-Exp Summary'!O$69","v":{"v":0,"d":"$0.00"}},{"$f":"'MMA Rev-Exp Summary'!P$69","v":{"v":0,"d":"$0.00"}},{"$f":"'MMA Rev-Exp Summary'!Q$69","v":{"v":0,"d":"$0.00"}},{"$f":"'MMA Rev-Exp Summary'!R$69","v":{"v":0,"d":"$0.00"}},{"$f":"'MMA Rev-Exp Summary'!S$69","v":{"v":0,"d":"$0.00"}},{"$f":"'MMA Rev-Exp Summary'!T$69","v":{"v":0,"d":"$0.00"}},{"$f":"'MMA Rev-Exp Summary'!U$69","v":{"v":0,"d":"$0.00"}},{"$f":"'MMA Rev-Exp Summary'!V$69","v":{"v":0,"d":"$0.00"}},{"$f":"'MMA Rev-Exp Summary'!W$69","v":{"v":0,"d":"$0.00"}},{"$f":"'MMA Rev-Exp Summary'!X$69","v":{"v":0,"d":"$0.00"}},{"$f":"'MMA Rev-Exp Summary'!Y$69","v":{"v":0,"d":"$0.00"}},{"v":0,"d":"$0.00"}]
["MMA",null,null,{"$f":"Jurat!I$1","v":0},{"$f":"Jurat!D$33","v":"00:00:00"},"Q2","2017-06-30","Summary","Operating Expense","Medical Benefits Expense","Other MMA Services","9.7","Other Services Settlements",{"$f":"'MMA Rev-Exp Summary'!O$70","v":{"v":0,"d":"$0.00"}},{"$f":"'MMA Rev-Exp Summary'!P$70","v":{"v":0,"d":"$0.00"}},{"$f":"'MMA Rev-Exp Summary'!Q$70","v":{"v":0,"d":"$0.00"}},{"$f":"'MMA Rev-Exp Summary'!R$70","v":{"v":0,"d":"$0.00"}},{"$f":"'MMA Rev-Exp Summary'!S$70","v":{"v":0,"d":"$0.00"}},{"$f":"'MMA Rev-Exp Summary'!T$70","v":{"v":0,"d":"$0.00"}},{"$f":"'MMA Rev-Exp Summary'!U$70","v":{"v":0,"d":"$0.00"}},{"$f":"'MMA Rev-Exp Summary'!V$70","v":{"v":0,"d":"$0.00"}},{"$f":"'MMA Rev-Exp Summary'!W$70","v":{"v":0,"d":"$0.00"}},{"$f":"'MMA Rev-Exp Summary'!X$70","v":{"v":0,"d":"$0.00"}},{"$f":"'MMA Rev-Exp Summary'!Y$70","v":{"v":0,"d":"$0.00"}},{"v":0,"d":"$0.00"}]
["MMA",null,null,{"$f":"Jurat!I$1","v":0},{"$f":"Jurat!D$33","v":"00:00:00"},"Q2","2017-06-30","Summary","Operating Expense","Medical Benefits Expense","Expanded Benefits","10.1","Expanded Benefits FFS",{"$f":"'MMA Rev-Exp Summary'!O$72","v":{"v":0,"d":"$0.00"}},{"$f":"'MMA Rev-Exp Summary'!P$72","v":{"v":0,"d":"$0.00"}},{"$f":"'MMA Rev-Exp Summary'!Q$72","v":{"v":0,"d":"$0.00"}},{"$f":"'MMA Rev-Exp Summary'!R$72","v":{"v":0,"d":"$0.00"}},{"$f":"'MMA Rev-Exp Summary'!S$72","v":{"v":0,"d":"$0.00"}},{"$f":"'MMA Rev-Exp Summary'!T$72","v":{"v":0,"d":"$0.00"}},{"$f":"'MMA Rev-Exp Summary'!U$72","v":{"v":0,"d":"$0.00"}},{"$f":"'MMA Rev-Exp Summary'!V$72","v":{"v":0,"d":"$0.00"}},{"$f":"'MMA Rev-Exp Summary'!W$72","v":{"v":0,"d":"$0.00"}},{"$f":"'MMA Rev-Exp Summary'!X$72","v":{"v":0,"d":"$0.00"}},{"$f":"'MMA Rev-Exp Summary'!Y$72","v":{"v":0,"d":"$0.00"}},{"v":0,"d":"$0.00"}]
["MMA",null,null,{"$f":"Jurat!I$1","v":0},{"$f":"Jurat!D$33","v":"00:00:00"},"Q2","2017-06-30","Summary","Operating Expense","Medical Benefits Expense","Expanded Benefits","10.2","Expanded benefits Subcapitation",{"$f":"'MMA Rev-Exp Summary'!O$73","v":{"v":0,"d":"$0.00"}},{"$f":"'MMA Rev-Exp Summary'!P$73","v":{"v":0,"d":"$0.00"}},{"$f":"'MMA Rev-Exp Summary'!Q$73","v":{"v":0,"d":"$0.00"}},{"$f":"'MMA Rev-Exp Summary'!R$73","v":{"v":0,"d":"$0.00"}},{"$f":"'MMA Rev-Exp Summary'!S$73","v":{"v":0,"d":"$0.00"}},{"$f":"'MMA Rev-Exp Summary'!T$73","v":{"v":0,"d":"$0.00"}},{"$f":"'MMA Rev-Exp Summary'!U$73","v":{"v":0,"d":"$0.00"}},{"$f":"'MMA Rev-Exp Summary'!V$73","v":{"v":0,"d":"$0.00"}},{"$f":"'MMA Rev-Exp Summary'!W$73","v":{"v":0,"d":"$0.00"}},{"$f":"'MMA Rev-Exp Summary'!X$73","v":{"v":0,"d":"$0.00"}},{"$f":"'MMA Rev-Exp Summary'!Y$73","v":{"v":0,"d":"$0.00"}},{"v":0,"d":"$0.00"}]
["MMA",null,null,{"$f":"Jurat!I$1","v":0},{"$f":"Jurat!D$33","v":"00:00:00"},"Q2","2017-06-30","Summary","Operating Expense","Medical Benefits Expense","Expanded Benefits","10.3","Ending IBNP for Expanded Benefits",{"$f":"'MMA Rev-Exp Summary'!O$74","v":{"v":0,"d":"$0.00"}},{"$f":"'MMA Rev-Exp Summary'!P$74","v":{"v":0,"d":"$0.00"}},{"$f":"'MMA Rev-Exp Summary'!Q$74","v":{"v":0,"d":"$0.00"}},{"$f":"'MMA Rev-Exp Summary'!R$74","v":{"v":0,"d":"$0.00"}},{"$f":"'MMA Rev-Exp Summary'!S$74","v":{"v":0,"d":"$0.00"}},{"$f":"'MMA Rev-Exp Summary'!T$74","v":{"v":0,"d":"$0.00"}},{"$f":"'MMA Rev-Exp Summary'!U$74","v":{"v":0,"d":"$0.00"}},{"$f":"'MMA Rev-Exp Summary'!V$74","v":{"v":0,"d":"$0.00"}},{"$f":"'MMA Rev-Exp Summary'!W$74","v":{"v":0,"d":"$0.00"}},{"$f":"'MMA Rev-Exp Summary'!X$74","v":{"v":0,"d":"$0.00"}},{"$f":"'MMA Rev-Exp Summary'!Y$74","v":{"v":0,"d":"$0.00"}},{"v":0,"d":"$0.00"}]
["MMA",null,null,{"$f":"Jurat!I$1","v":0},{"$f":"Jurat!D$33","v":"00:00:00"},"Q2","2017-06-30","Summary","Operating Expense","Medical Benefits Expense","Expanded Benefits","10.4","Expanded Benefits Settlements",{"$f":"'MMA Rev-Exp Summary'!O$75","v":{"v":0,"d":"$0.00"}},{"$f":"'MMA Rev-Exp Summary'!P$75","v":{"v":0,"d":"$0.00"}},{"$f":"'MMA Rev-Exp Summary'!Q$75","v":{"v":0,"d":"$0.00"}},{"$f":"'MMA Rev-Exp Summary'!R$75","v":{"v":0,"d":"$0.00"}},{"$f":"'MMA Rev-Exp Summary'!S$75","v":{"v":0,"d":"$0.00"}},{"$f":"'MMA Rev-Exp Summary'!T$75","v":{"v":0,"d":"$0.00"}},{"$f":"'MMA Rev-Exp Summary'!U$75","v":{"v":0,"d":"$0.00"}},{"$f":"'MMA Rev-Exp Summary'!V$75","v":{"v":0,"d":"$0.00"}},{"$f":"'MMA Rev-Exp Summary'!W$75","v":{"v":0,"d":"$0.00"}},{"$f":"'MMA Rev-Exp Summary'!X$75","v":{"v":0,"d":"$0.00"}},{"$f":"'MMA Rev-Exp Summary'!Y$75","v":{"v":0,"d":"$0.00"}},{"v":0,"d":"$0.00"}]
["MMA",null,null,{"$f":"Jurat!I$1","v":0},{"$f":"Jurat!D$33","v":"00:00:00"},"Q2","2017-06-30","Summary","Operating Expense","Medical Benefits Expense","Other Medical","11.5","TPL & Fraud/Abuse Recoveries",{"$f":"'MMA Rev-Exp Summary'!O$81","v":{"v":0,"d":"$0.00"}},{"$f":"'MMA Rev-Exp Summary'!P$81","v":{"v":0,"d":"$0.00"}},{"$f":"'MMA Rev-Exp Summary'!Q$81","v":{"v":0,"d":"$0.00"}},{"$f":"'MMA Rev-Exp Summary'!R$81","v":{"v":0,"d":"$0.00"}},{"$f":"'MMA Rev-Exp Summary'!S$81","v":{"v":0,"d":"$0.00"}},{"$f":"'MMA Rev-Exp Summary'!T$81","v":{"v":0,"d":"$0.00"}},{"$f":"'MMA Rev-Exp Summary'!U$81","v":{"v":0,"d":"$0.00"}},{"$f":"'MMA Rev-Exp Summary'!V$81","v":{"v":0,"d":"$0.00"}},{"$f":"'MMA Rev-Exp Summary'!W$81","v":{"v":0,"d":"$0.00"}},{"$f":"'MMA Rev-Exp Summary'!X$81","v":{"v":0,"d":"$0.00"}},{"$f":"'MMA Rev-Exp Summary'!Y$81","v":{"v":0,"d":"$0.00"}},{"v":0,"d":"$0.00"}]
["MMA",null,null,{"$f":"Jurat!I$1","v":0},{"$f":"Jurat!D$33","v":"00:00:00"},"Q2","2017-06-30","Summary","Operating Expense","Medical Benefits Expense","Other Medical","11.6.1","Premium Deficiency Reserve",{"$f":"'MMA Rev-Exp Summary'!O$82","v":{"v":0,"d":"$0.00"}},{"$f":"'MMA Rev-Exp Summary'!P$82","v":{"v":0,"d":"$0.00"}},{"$f":"'MMA Rev-Exp Summary'!Q$82","v":{"v":0,"d":"$0.00"}},{"$f":"'MMA Rev-Exp Summary'!R$82","v":{"v":0,"d":"$0.00"}},{"$f":"'MMA Rev-Exp Summary'!S$82","v":{"v":0,"d":"$0.00"}},{"$f":"'MMA Rev-Exp Summary'!T$82","v":{"v":0,"d":"$0.00"}},{"$f":"'MMA Rev-Exp Summary'!U$82","v":{"v":0,"d":"$0.00"}},{"$f":"'MMA Rev-Exp Summary'!V$82","v":{"v":0,"d":"$0.00"}},{"$f":"'MMA Rev-Exp Summary'!W$82","v":{"v":0,"d":"$0.00"}},{"$f":"'MMA Rev-Exp Summary'!X$82","v":{"v":0,"d":"$0.00"}},{"$f":"'MMA Rev-Exp Summary'!Y$82","v":{"v":0,"d":"$0.00"}},{"v":0,"d":"$0.00"}]
["MMA",null,null,{"$f":"Jurat!I$1","v":0},{"$f":"Jurat!D$33","v":"00:00:00"},"Q2","2017-06-30","Summary","Operating Expense","Medical Benefits Expense","Other Medical","11.8","Reinsurance Premiums",{"$f":"'MMA Rev-Exp Summary'!O$84","v":{"v":0,"d":"$0.00"}},{"$f":"'MMA Rev-Exp Summary'!P$84","v":{"v":0,"d":"$0.00"}},{"$f":"'MMA Rev-Exp Summary'!Q$84","v":{"v":0,"d":"$0.00"}},{"$f":"'MMA Rev-Exp Summary'!R$84","v":{"v":0,"d":"$0.00"}},{"$f":"'MMA Rev-Exp Summary'!S$84","v":{"v":0,"d":"$0.00"}},{"$f":"'MMA Rev-Exp Summary'!T$84","v":{"v":0,"d":"$0.00"}},{"$f":"'MMA Rev-Exp Summary'!U$84","v":{"v":0,"d":"$0.00"}},{"$f":"'MMA Rev-Exp Summary'!V$84","v":{"v":0,"d":"$0.00"}},{"$f":"'MMA Rev-Exp Summary'!W$84","v":{"v":0,"d":"$0.00"}},{"$f":"'MMA Rev-Exp Summary'!X$84","v":{"v":0,"d":"$0.00"}},{"$f":"'MMA Rev-Exp Summary'!Y$84","v":{"v":0,"d":"$0.00"}},{"v":0,"d":"$0.00"}]
["MMA",null,null,{"$f":"Jurat!I$1","v":0},{"$f":"Jurat!D$33","v":"00:00:00"},"Q2","2017-06-30","Summary","Operating Expense","Medical Benefits Expense","Other Medical","11.9","Reinsurance Recoveries",{"$f":"'MMA Rev-Exp Summary'!O$85","v":{"v":0,"d":"$0.00"}},{"$f":"'MMA Rev-Exp Summary'!P$85","v":{"v":0,"d":"$0.00"}},{"$f":"'MMA Rev-Exp Summary'!Q$85","v":{"v":0,"d":"$0.00"}},{"$f":"'MMA Rev-Exp Summary'!R$85","v":{"v":0,"d":"$0.00"}},{"$f":"'MMA Rev-Exp Summary'!S$85","v":{"v":0,"d":"$0.00"}},{"$f":"'MMA Rev-Exp Summary'!T$85","v":{"v":0,"d":"$0.00"}},{"$f":"'MMA Rev-Exp Summary'!U$85","v":{"v":0,"d":"$0.00"}},{"$f":"'MMA Rev-Exp Summary'!V$85","v":{"v":0,"d":"$0.00"}},{"$f":"'MMA Rev-Exp Summary'!W$85","v":{"v":0,"d":"$0.00"}},{"$f":"'MMA Rev-Exp Summary'!X$85","v":{"v":0,"d":"$0.00"}},{"$f":"'MMA Rev-Exp Summary'!Y$85","v":{"v":0,"d":"$0.00"}},{"v":0,"d":"$0.00"}]
["MMA",null,null,{"$f":"Jurat!I$1","v":0},{"$f":"Jurat!D$33","v":"00:00:00"},"Q2","2017-06-30","Summary","Operating Expense","Administrative Expense","Administrative","12.1","Salaries & Benefits",{"$f":"'MMA Rev-Exp Summary'!O$90","v":{"v":0,"d":"$0.00"}},{"v":0,"d":"$0.00"},{"v":0,"d":"$0.00"},{"v":0,"d":"$0.00"},{"v":0,"d":"$0.00"},{"v":0,"d":"$0.00"},{"v":0,"d":"$0.00"},{"v":0,"d":"$0.00"},{"v":0,"d":"$0.00"},{"v":0,"d":"$0.00"},{"v":0,"d":"$0.00"},{"v":0,"d":"$0.00"}]
["MMA",null,null,{"$f":"Jurat!I$1","v":0},{"$f":"Jurat!D$33","v":"00:00:00"},"Q2","2017-06-30","Summary","Operating Expense","Administrative Expense","Administrative","12.2","Administrative Services",{"$f":"'MMA Rev-Exp Summary'!O$91","v":{"v":0,"d":"$0.00"}},{"v":0,"d":"$0.00"},{"v":0,"d":"$0.00"},{"v":0,"d":"$0.00"},{"v":0,"d":"$0.00"},{"v":0,"d":"$0.00"},{"v":0,"d":"$0.00"},{"v":0,"d":"$0.00"},{"v":0,"d":"$0.00"},{"v":0,"d":"$0.00"},{"v":0,"d":"$0.00"},{"v":0,"d":"$0.00"}]
["MMA",null,null,{"$f":"Jurat!I$1","v":0},{"$f":"Jurat!D$33","v":"00:00:00"},"Q2","2017-06-30","Summary","Operating Expense","Administrative Expense","Administrative","12.3","Information Systems",{"$f":"'MMA Rev-Exp Summary'!O$92","v":{"v":0,"d":"$0.00"}},{"v":0,"d":"$0.00"},{"v":0,"d":"$0.00"},{"v":0,"d":"$0.00"},{"v":0,"d":"$0.00"},{"v":0,"d":"$0.00"},{"v":0,"d":"$0.00"},{"v":0,"d":"$0.00"},{"v":0,"d":"$0.00"},{"v":0,"d":"$0.00"},{"v":0,"d":"$0.00"},{"v":0,"d":"$0.00"}]
["MMA",null,null,{"$f":"Jurat!I$1","v":0},{"$f":"Jurat!D$33","v":"00:00:00"},"Q2","2017-06-30","Summary","Operating Expense","Administrative Expense","Administrative","12.4","Marketing Expenses",{"$f":"'MMA Rev-Exp Summary'!O$93","v":{"v":0,"d":"$0.00"}},{"v":0,"d":"$0.00"},{"v":0,"d":"$0.00"},{"v":0,"d":"$0.00"},{"v":0,"d":"$0.00"},{"v":0,"d":"$0.00"},{"v":0,"d":"$0.00"},{"v":0,"d":"$0.00"},{"v":0,"d":"$0.00"},{"v":0,"d":"$0.00"},{"v":0,"d":"$0.00"},{"v":0,"d":"$0.00"}]
["MMA",null,null,{"$f":"Jurat!I$1","v":0},{"$f":"Jurat!D$33","v":"00:00:00"},"Q2","2017-06-30","Summary","Operating Expense","Administrative Expense","Administrative","12.5","General  Administration",{"$f":"'MMA Rev-Exp Summary'!O$94","v":{"v":0,"d":"$0.00"}},{"v":0,"d":"$0.00"},{"v":0,"d":"$0.00"},{"v":0,"d":"$0.00"},{"v":0,"d":"$0.00"},{"v":0,"d":"$0.00"},{"v":0,"d":"$0.00"},{"v":0,"d":"$0.00"},{"v":0,"d":"$0.00"},{"v":0,"d":"$0.00"},{"v":0,"d":"$0.00"},{"v":0,"d":"$0.00"}]
["MMA",null,null,{"$f":"Jurat!I$1","v":0},{"$f":"Jurat!D$33","v":"00:00:00"},"Q2","2017-06-30","Summary","Operating Expense","Administrative Expense","Administrative","12.6","Compliance/Regulatory",{"$f":"'MMA Rev-Exp Summary'!O$95","v":{"v":0,"d":"$0.00"}},{"v":0,"d":"$0.00"},{"v":0,"d":"$0.00"},{"v":0,"d":"$0.00"},{"v":0,"d":"$0.00"},{"v":0,"d":"$0.00"},{"v":0,"d":"$0.00"},{"v":0,"d":"$0.00"},{"v":0,"d":"$0.00"},{"v":0,"d":"$0.00"},{"v":0,"d":"$0.00"},{"v":0,"d":"$0.00"}]
["MMA",null,null,{"$f":"Jurat!I$1","v":0},{"$f":"Jurat!D$33","v":"00:00:00"},"Q2","2017-06-30","Summary","Operating Expense","Taxes & Fees","Taxes & Fees","13.1","State Premium tax",{"$f":"'MMA Rev-Exp Summary'!O$97","v":{"v":0,"d":"$0.00"}},{"v":0,"d":"$0.00"},{"v":0,"d":"$0.00"},{"v":0,"d":"$0.00"},{"v":0,"d":"$0.00"},{"v":0,"d":"$0.00"},{"v":0,"d":"$0.00"},{"v":0,"d":"$0.00"},{"v":0,"d":"$0.00"},{"v":0,"d":"$0.00"},{"v":0,"d":"$0.00"},{"v":0,"d":"$0.00"}]
["MMA",null,null,{"$f":"Jurat!I$1","v":0},{"$f":"Jurat!D$33","v":"00:00:00"},"Q2","2017-06-30","Summary","Operating Expense","Taxes & Fees","Taxes & Fees","13.2","Department of Insurance Assessments",{"$f":"'MMA Rev-Exp Summary'!O$98","v":{"v":0,"d":"$0.00"}},{"v":0,"d":"$0.00"},{"v":0,"d":"$0.00"},{"v":0,"d":"$0.00"},{"v":0,"d":"$0.00"},{"v":0,"d":"$0.00"},{"v":0,"d":"$0.00"},{"v":0,"d":"$0.00"},{"v":0,"d":"$0.00"},{"v":0,"d":"$0.00"},{"v":0,"d":"$0.00"},{"v":0,"d":"$0.00"}]
["MMA",null,null,{"$f":"Jurat!I$1","v":0},{"$f":"Jurat!D$33","v":"00:00:00"},"Q2","2017-06-30","Summary","Operating Expense","Taxes & Fees","Taxes & Fees","13.3","Section 9010 Health Insurance Providers Fee",{"$f":"'MMA Rev-Exp Summary'!O$99","v":{"v":0,"d":"$0.00"}},{"v":0,"d":"$0.00"},{"v":0,"d":"$0.00"},{"v":0,"d":"$0.00"},{"v":0,"d":"$0.00"},{"v":0,"d":"$0.00"},{"v":0,"d":"$0.00"},{"v":0,"d":"$0.00"},{"v":0,"d":"$0.00"},{"v":0,"d":"$0.00"},{"v":0,"d":"$0.00"},{"v":0,"d":"$0.00"}]
["MMA",null,null,{"$f":"Jurat!I$1","v":0},{"$f":"Jurat!D$33","v":"00:00:00"},"Q2","2017-06-30","Summary","Non-Operating Expense","Income Tax Expense","Income Tax Expense","16.0","Income Tax Expense",{"$f":"'MMA Rev-Exp Summary'!O$106","v":{"v":0,"d":"$0.00"}},{"v":0,"d":"$0.00"},{"v":0,"d":"$0.00"},{"v":0,"d":"$0.00"},{"v":0,"d":"$0.00"},{"v":0,"d":"$0.00"},{"v":0,"d":"$0.00"},{"v":0,"d":"$0.00"},{"v":0,"d":"$0.00"},{"v":0,"d":"$0.00"},{"v":0,"d":"$0.00"},{"v":0,"d":"$0.00"}]
["MMA",null,null,{"$f":"Jurat!I$1","v":0},{"$f":"Jurat!D$33","v":"00:00:00"},"Q3","2017-09-30","Summary","Member Months","Member Months","Member Months",null,"Member Months",{"$f":"'MMA Rev-Exp Summary'!Z$9","v":{"v":0,"d":"$0.00"}},{"$f":"'MMA Rev-Exp Summary'!AA$9","v":{"v":0,"d":"$0.00"}},{"$f":"'MMA Rev-Exp Summary'!AB$9","v":{"v":0,"d":"$0.00"}},{"$f":"'MMA Rev-Exp Summary'!AC$9","v":{"v":0,"d":"$0.00"}},{"$f":"'MMA Rev-Exp Summary'!AD$9","v":{"v":0,"d":"$0.00"}},{"$f":"'MMA Rev-Exp Summary'!AE$9","v":{"v":0,"d":"$0.00"}},{"$f":"'MMA Rev-Exp Summary'!AF$9","v":{"v":0,"d":"$0.00"}},{"$f":"'MMA Rev-Exp Summary'!AG$9","v":{"v":0,"d":"$0.00"}},{"$f":"'MMA Rev-Exp Summary'!AH$9","v":{"v":0,"d":"$0.00"}},{"$f":"'MMA Rev-Exp Summary'!AI$9","v":{"v":0,"d":"$0.00"}},{"$f":"'MMA Rev-Exp Summary'!AJ$9","v":{"v":0,"d":"$0.00"}},{"v":0,"d":"$0.00"}]
["MMA",null,null,{"$f":"Jurat!I$1","v":0},{"$f":"Jurat!D$33","v":"00:00:00"},"Q3","2017-09-30","Summary","Operating Revenue","Capitation","Capitation",1.1,"Capitation",{"$f":"'MMA Rev-Exp Summary'!Z$11","v":{"v":0,"d":"$0.00"}},{"$f":"'MMA Rev-Exp Summary'!AA$11","v":{"v":0,"d":"$0.00"}},{"$f":"'MMA Rev-Exp Summary'!AB$11","v":{"v":0,"d":"$0.00"}},{"$f":"'MMA Rev-Exp Summary'!AC$11","v":{"v":0,"d":"$0.00"}},{"$f":"'MMA Rev-Exp Summary'!AD$11","v":{"v":0,"d":"$0.00"}},{"$f":"'MMA Rev-Exp Summary'!AE$11","v":{"v":0,"d":"$0.00"}},{"$f":"'MMA Rev-Exp Summary'!AF$11","v":{"v":0,"d":"$0.00"}},{"$f":"'MMA Rev-Exp Summary'!AG$11","v":{"v":0,"d":"$0.00"}},{"$f":"'MMA Rev-Exp Summary'!AH$11","v":{"v":0,"d":"$0.00"}},{"$f":"'MMA Rev-Exp Summary'!AI$11","v":{"v":0,"d":"$0.00"}},{"$f":"'MMA Rev-Exp Summary'!AJ$11","v":{"v":0,"d":"$0.00"}},{"v":0,"d":"$0.00"}]
["MMA",null,null,{"$f":"Jurat!I$1","v":0},{"$f":"Jurat!D$33","v":"00:00:00"},"Q3","2017-09-30","Summary","Operating Revenue","Kick Payments","Kick Payments - Transplant",1.2,"Transplant Kick Payments",{"$f":"'MMA Rev-Exp Summary'!Z$12","v":{"v":0,"d":"$0.00"}},{"$f":"'MMA Rev-Exp Summary'!AA$12","v":{"v":0,"d":"$0.00"}},{"$f":"'MMA Rev-Exp Summary'!AB$12","v":{"v":0,"d":"$0.00"}},{"$f":"'MMA Rev-Exp Summary'!AC$12","v":{"v":0,"d":"$0.00"}},{"$f":"'MMA Rev-Exp Summary'!AD$12","v":{"v":0,"d":"$0.00"}},{"$f":"'MMA Rev-Exp Summary'!AE$12","v":{"v":0,"d":"$0.00"}},{"$f":"'MMA Rev-Exp Summary'!AF$12","v":{"v":0,"d":"$0.00"}},{"$f":"'MMA Rev-Exp Summary'!AG$12","v":{"v":0,"d":"$0.00"}},{"$f":"'MMA Rev-Exp Summary'!AH$12","v":{"v":0,"d":"$0.00"}},{"$f":"'MMA Rev-Exp Summary'!AI$12","v":{"v":0,"d":"$0.00"}},{"$f":"'MMA Rev-Exp Summary'!AJ$12","v":{"v":0,"d":"$0.00"}},{"v":0,"d":"$0.00"}]
["MMA",null,null,{"$f":"Jurat!I$1","v":0},{"$f":"Jurat!D$33","v":"00:00:00"},"Q3","2017-09-30","Summary","Operating Revenue","Kick Payments","Kick Payments - Hep C","1.3","Hepatitis C Kick Payments",{"$f":"'MMA Rev-Exp Summary'!Z$13","v":{"v":0,"d":"$0.00"}},{"$f":"'MMA Rev-Exp Summary'!AA$13","v":{"v":0,"d":"$0.00"}},{"$f":"'MMA Rev-Exp Summary'!AB$13","v":{"v":0,"d":"$0.00"}},{"$f":"'MMA Rev-Exp Summary'!AC$13","v":{"v":0,"d":"$0.00"}},{"$f":"'MMA Rev-Exp Summary'!AD$13","v":{"v":0,"d":"$0.00"}},{"$f":"'MMA Rev-Exp Summary'!AE$13","v":{"v":0,"d":"$0.00"}},{"$f":"'MMA Rev-Exp Summary'!AF$13","v":{"v":0,"d":"$0.00"}},{"$f":"'MMA Rev-Exp Summary'!AG$13","v":{"v":0,"d":"$0.00"}},{"$f":"'MMA Rev-Exp Summary'!AH$13","v":{"v":0,"d":"$0.00"}},{"$f":"'MMA Rev-Exp Summary'!AI$13","v":{"v":0,"d":"$0.00"}},{"$f":"'MMA Rev-Exp Summary'!AJ$13","v":{"v":0,"d":"$0.00"}},{"v":0,"d":"$0.00"}]
["MMA",null,null,{"$f":"Jurat!I$1","v":0},{"$f":"Jurat!D$33","v":"00:00:00"},"Q3","2017-09-30","Summary","Operating Revenue","Kick Payments","Kick Payments - Maternity","1.4.1","Maternity Kick Payments",{"$f":"'MMA Rev-Exp Summary'!Z$14","v":{"v":0,"d":"$0.00"}},{"$f":"'MMA Rev-Exp Summary'!AA$14","v":{"v":0,"d":"$0.00"}},{"$f":"'MMA Rev-Exp Summary'!AB$14","v":{"v":0,"d":"$0.00"}},{"$f":"'MMA Rev-Exp Summary'!AC$14","v":{"v":0,"d":"$0.00"}},{"$f":"'MMA Rev-Exp Summary'!AD$14","v":{"v":0,"d":"$0.00"}},{"$f":"'MMA Rev-Exp Summary'!AE$14","v":{"v":0,"d":"$0.00"}},{"$f":"'MMA Rev-Exp Summary'!AF$14","v":{"v":0,"d":"$0.00"}},{"$f":"'MMA Rev-Exp Summary'!AG$14","v":{"v":0,"d":"$0.00"}},{"$f":"'MMA Rev-Exp Summary'!AH$14","v":{"v":0,"d":"$0.00"}},{"$f":"'MMA Rev-Exp Summary'!AI$14","v":{"v":0,"d":"$0.00"}},{"$f":"'MMA Rev-Exp Summary'!AJ$14","v":{"v":0,"d":"$0.00"}},{"v":0,"d":"$0.00"}]
["MMA",null,null,{"$f":"Jurat!I$1","v":0},{"$f":"Jurat!D$33","v":"00:00:00"},"Q3","2017-09-30","Summary","Operating Revenue","Other Revenue","Other Revenue - 9010","1.5","ACA § 9010 related payments",{"$f":"'MMA Rev-Exp Summary'!Z$15","v":{"v":0,"d":"$0.00"}},{"$f":"'MMA Rev-Exp Summary'!AA$15","v":{"v":0,"d":"$0.00"}},{"$f":"'MMA Rev-Exp Summary'!AB$15","v":{"v":0,"d":"$0.00"}},{"$f":"'MMA Rev-Exp Summary'!AC$15","v":{"v":0,"d":"$0.00"}},{"$f":"'MMA Rev-Exp Summary'!AD$15","v":{"v":0,"d":"$0.00"}},{"$f":"'MMA Rev-Exp Summary'!AE$15","v":{"v":0,"d":"$0.00"}},{"$f":"'MMA Rev-Exp Summary'!AF$15","v":{"v":0,"d":"$0.00"}},{"$f":"'MMA Rev-Exp Summary'!AG$15","v":{"v":0,"d":"$0.00"}},{"$f":"'MMA Rev-Exp Summary'!AH$15","v":{"v":0,"d":"$0.00"}},{"$f":"'MMA Rev-Exp Summary'!AI$15","v":{"v":0,"d":"$0.00"}},{"$f":"'MMA Rev-Exp Summary'!AJ$15","v":{"v":0,"d":"$0.00"}},{"v":0,"d":"$0.00"}]
["MMA",null,null,{"$f":"Jurat!I$1","v":0},{"$f":"Jurat!D$33","v":"00:00:00"},"Q3","2017-09-30","Summary","Operating Revenue","Other Revenue","Other Revenue","1.6","Other Revenue",{"$f":"'MMA Rev-Exp Summary'!Z$16","v":{"v":0,"d":"$0.00"}},{"$f":"'MMA Rev-Exp Summary'!AA$16","v":{"v":0,"d":"$0.00"}},{"$f":"'MMA Rev-Exp Summary'!AB$16","v":{"v":0,"d":"$0.00"}},{"$f":"'MMA Rev-Exp Summary'!AC$16","v":{"v":0,"d":"$0.00"}},{"$f":"'MMA Rev-Exp Summary'!AD$16","v":{"v":0,"d":"$0.00"}},{"$f":"'MMA Rev-Exp Summary'!AE$16","v":{"v":0,"d":"$0.00"}},{"$f":"'MMA Rev-Exp Summary'!AF$16","v":{"v":0,"d":"$0.00"}},{"$f":"'MMA Rev-Exp Summary'!AG$16","v":{"v":0,"d":"$0.00"}},{"$f":"'MMA Rev-Exp Summary'!AH$16","v":{"v":0,"d":"$0.00"}},{"$f":"'MMA Rev-Exp Summary'!AI$16","v":{"v":0,"d":"$0.00"}},{"$f":"'MMA Rev-Exp Summary'!AJ$16","v":{"v":0,"d":"$0.00"}},{"v":0,"d":"$0.00"}]
["MMA",null,null,{"$f":"Jurat!I$1","v":0},{"$f":"Jurat!D$33","v":"00:00:00"},"Q3","2017-09-30","Summary","Operating Expense","Medical Benefits Expense","Hospital Services",2.1,"Inpatient FFS",{"$f":"'MMA Rev-Exp Summary'!Z$20","v":{"v":0,"d":"$0.00"}},{"$f":"'MMA Rev-Exp Summary'!AA$20","v":{"v":0,"d":"$0.00"}},{"$f":"'MMA Rev-Exp Summary'!AB$20","v":{"v":0,"d":"$0.00"}},{"$f":"'MMA Rev-Exp Summary'!AC$20","v":{"v":0,"d":"$0.00"}},{"$f":"'MMA Rev-Exp Summary'!AD$20","v":{"v":0,"d":"$0.00"}},{"$f":"'MMA Rev-Exp Summary'!AE$20","v":{"v":0,"d":"$0.00"}},{"$f":"'MMA Rev-Exp Summary'!AF$20","v":{"v":0,"d":"$0.00"}},{"$f":"'MMA Rev-Exp Summary'!AG$20","v":{"v":0,"d":"$0.00"}},{"$f":"'MMA Rev-Exp Summary'!AH$20","v":{"v":0,"d":"$0.00"}},{"$f":"'MMA Rev-Exp Summary'!AI$20","v":{"v":0,"d":"$0.00"}},{"$f":"'MMA Rev-Exp Summary'!AJ$20","v":{"v":0,"d":"$0.00"}},{"v":0,"d":"$0.00"}]
["MMA",null,null,{"$f":"Jurat!I$1","v":0},{"$f":"Jurat!D$33","v":"00:00:00"},"Q3","2017-09-30","Summary","Operating Expense","Medical Benefits Expense","Hospital Services",2.2,"Ending IBNP for Inpatient Hospital Services",{"$f":"'MMA Rev-Exp Summary'!Z$21","v":{"v":0,"d":"$0.00"}},{"$f":"'MMA Rev-Exp Summary'!AA$21","v":{"v":0,"d":"$0.00"}},{"$f":"'MMA Rev-Exp Summary'!AB$21","v":{"v":0,"d":"$0.00"}},{"$f":"'MMA Rev-Exp Summary'!AC$21","v":{"v":0,"d":"$0.00"}},{"$f":"'MMA Rev-Exp Summary'!AD$21","v":{"v":0,"d":"$0.00"}},{"$f":"'MMA Rev-Exp Summary'!AE$21","v":{"v":0,"d":"$0.00"}},{"$f":"'MMA Rev-Exp Summary'!AF$21","v":{"v":0,"d":"$0.00"}},{"$f":"'MMA Rev-Exp Summary'!AG$21","v":{"v":0,"d":"$0.00"}},{"$f":"'MMA Rev-Exp Summary'!AH$21","v":{"v":0,"d":"$0.00"}},{"$f":"'MMA Rev-Exp Summary'!AI$21","v":{"v":0,"d":"$0.00"}},{"$f":"'MMA Rev-Exp Summary'!AJ$21","v":{"v":0,"d":"$0.00"}},{"v":0,"d":"$0.00"}]
["MMA",null,null,{"$f":"Jurat!I$1","v":0},{"$f":"Jurat!D$33","v":"00:00:00"},"Q3","2017-09-30","Summary","Operating Expense","Medical Benefits Expense","Hospital Services",2.3,"Outpatient FFS: ER",{"$f":"'MMA Rev-Exp Summary'!Z$22","v":{"v":0,"d":"$0.00"}},{"$f":"'MMA Rev-Exp Summary'!AA$22","v":{"v":0,"d":"$0.00"}},{"$f":"'MMA Rev-Exp Summary'!AB$22","v":{"v":0,"d":"$0.00"}},{"$f":"'MMA Rev-Exp Summary'!AC$22","v":{"v":0,"d":"$0.00"}},{"$f":"'MMA Rev-Exp Summary'!AD$22","v":{"v":0,"d":"$0.00"}},{"$f":"'MMA Rev-Exp Summary'!AE$22","v":{"v":0,"d":"$0.00"}},{"$f":"'MMA Rev-Exp Summary'!AF$22","v":{"v":0,"d":"$0.00"}},{"$f":"'MMA Rev-Exp Summary'!AG$22","v":{"v":0,"d":"$0.00"}},{"$f":"'MMA Rev-Exp Summary'!AH$22","v":{"v":0,"d":"$0.00"}},{"$f":"'MMA Rev-Exp Summary'!AI$22","v":{"v":0,"d":"$0.00"}},{"$f":"'MMA Rev-Exp Summary'!AJ$22","v":{"v":0,"d":"$0.00"}},{"v":0,"d":"$0.00"}]
["MMA",null,null,{"$f":"Jurat!I$1","v":0},{"$f":"Jurat!D$33","v":"00:00:00"},"Q3","2017-09-30","Summary","Operating Expense","Medical Benefits Expense","Hospital Services",2.4,"Outpatient FFS: Other than ER ",{"$f":"'MMA Rev-Exp Summary'!Z$23","v":{"v":0,"d":"$0.00"}},{"$f":"'MMA Rev-Exp Summary'!AA$23","v":{"v":0,"d":"$0.00"}},{"$f":"'MMA Rev-Exp Summary'!AB$23","v":{"v":0,"d":"$0.00"}},{"$f":"'MMA Rev-Exp Summary'!AC$23","v":{"v":0,"d":"$0.00"}},{"$f":"'MMA Rev-Exp Summary'!AD$23","v":{"v":0,"d":"$0.00"}},{"$f":"'MMA Rev-Exp Summary'!AE$23","v":{"v":0,"d":"$0.00"}},{"$f":"'MMA Rev-Exp Summary'!AF$23","v":{"v":0,"d":"$0.00"}},{"$f":"'MMA Rev-Exp Summary'!AG$23","v":{"v":0,"d":"$0.00"}},{"$f":"'MMA Rev-Exp Summary'!AH$23","v":{"v":0,"d":"$0.00"}},{"$f":"'MMA Rev-Exp Summary'!AI$23","v":{"v":0,"d":"$0.00"}},{"$f":"'MMA Rev-Exp Summary'!AJ$23","v":{"v":0,"d":"$0.00"}},{"v":0,"d":"$0.00"}]
["MMA",null,null,{"$f":"Jurat!I$1","v":0},{"$f":"Jurat!D$33","v":"00:00:00"},"Q3","2017-09-30","Summary","Operating Expense","Medical Benefits Expense","Hospital Services",2.5,"Ending IBNP for Outpatient Hospital Services",{"$f":"'MMA Rev-Exp Summary'!Z$24","v":{"v":0,"d":"$0.00"}},{"$f":"'MMA Rev-Exp Summary'!AA$24","v":{"v":0,"d":"$0.00"}},{"$f":"'MMA Rev-Exp Summary'!AB$24","v":{"v":0,"d":"$0.00"}},{"$f":"'MMA Rev-Exp Summary'!AC$24","v":{"v":0,"d":"$0.00"}},{"$f":"'MMA Rev-Exp Summary'!AD$24","v":{"v":0,"d":"$0.00"}},{"$f":"'MMA Rev-Exp Summary'!AE$24","v":{"v":0,"d":"$0.00"}},{"$f":"'MMA Rev-Exp Summary'!AF$24","v":{"v":0,"d":"$0.00"}},{"$f":"'MMA Rev-Exp Summary'!AG$24","v":{"v":0,"d":"$0.00"}},{"$f":"'MMA Rev-Exp Summary'!AH$24","v":{"v":0,"d":"$0.00"}},{"$f":"'MMA Rev-Exp Summary'!AI$24","v":{"v":0,"d":"$0.00"}},{"$f":"'MMA Rev-Exp Summary'!AJ$24","v":{"v":0,"d":"$0.00"}},{"v":0,"d":"$0.00"}]
["MMA",null,null,{"$f":"Jurat!I$1","v":0},{"$f":"Jurat!D$33","v":"00:00:00"},"Q3","2017-09-30","Summary","Operating Expense","Medical Benefits Expense","Hospital Services","2.6","Subcapitated Hospital Services",{"$f":"'MMA Rev-Exp Summary'!Z$25","v":{"v":0,"d":"$0.00"}},{"$f":"'MMA Rev-Exp Summary'!AA$25","v":{"v":0,"d":"$0.00"}},{"$f":"'MMA Rev-Exp Summary'!AB$25","v":{"v":0,"d":"$0.00"}},{"$f":"'MMA Rev-Exp Summary'!AC$25","v":{"v":0,"d":"$0.00"}},{"$f":"'MMA Rev-Exp Summary'!AD$25","v":{"v":0,"d":"$0.00"}},{"$f":"'MMA Rev-Exp Summary'!AE$25","v":{"v":0,"d":"$0.00"}},{"$f":"'MMA Rev-Exp Summary'!AF$25","v":{"v":0,"d":"$0.00"}},{"$f":"'MMA Rev-Exp Summary'!AG$25","v":{"v":0,"d":"$0.00"}},{"$f":"'MMA Rev-Exp Summary'!AH$25","v":{"v":0,"d":"$0.00"}},{"$f":"'MMA Rev-Exp Summary'!AI$25","v":{"v":0,"d":"$0.00"}},{"$f":"'MMA Rev-Exp Summary'!AJ$25","v":{"v":0,"d":"$0.00"}},{"v":0,"d":"$0.00"}]
["MMA",null,null,{"$f":"Jurat!I$1","v":0},{"$f":"Jurat!D$33","v":"00:00:00"},"Q3","2017-09-30","Summary","Operating Expense","Medical Benefits Expense","Hospital Services","2.7","Hospital Settlements",{"$f":"'MMA Rev-Exp Summary'!Z$26","v":{"v":0,"d":"$0.00"}},{"$f":"'MMA Rev-Exp Summary'!AA$26","v":{"v":0,"d":"$0.00"}},{"$f":"'MMA Rev-Exp Summary'!AB$26","v":{"v":0,"d":"$0.00"}},{"$f":"'MMA Rev-Exp Summary'!AC$26","v":{"v":0,"d":"$0.00"}},{"$f":"'MMA Rev-Exp Summary'!AD$26","v":{"v":0,"d":"$0.00"}},{"$f":"'MMA Rev-Exp Summary'!AE$26","v":{"v":0,"d":"$0.00"}},{"$f":"'MMA Rev-Exp Summary'!AF$26","v":{"v":0,"d":"$0.00"}},{"$f":"'MMA Rev-Exp Summary'!AG$26","v":{"v":0,"d":"$0.00"}},{"$f":"'MMA Rev-Exp Summary'!AH$26","v":{"v":0,"d":"$0.00"}},{"$f":"'MMA Rev-Exp Summary'!AI$26","v":{"v":0,"d":"$0.00"}},{"$f":"'MMA Rev-Exp Summary'!AJ$26","v":{"v":0,"d":"$0.00"}},{"v":0,"d":"$0.00"}]
["MMA",null,null,{"$f":"Jurat!I$1","v":0},{"$f":"Jurat!D$33","v":"00:00:00"},"Q3","2017-09-30","Summary","Operating Expense","Medical Benefits Expense","Hospital Services","2.7.1","Transplant Services",{"$f":"'MMA Rev-Exp Summary'!Z$27","v":{"v":0,"d":"$0.00"}},{"$f":"'MMA Rev-Exp Summary'!AA$27","v":{"v":0,"d":"$0.00"}},{"$f":"'MMA Rev-Exp Summary'!AB$27","v":{"v":0,"d":"$0.00"}},{"$f":"'MMA Rev-Exp Summary'!AC$27","v":{"v":0,"d":"$0.00"}},{"$f":"'MMA Rev-Exp Summary'!AD$27","v":{"v":0,"d":"$0.00"}},{"$f":"'MMA Rev-Exp Summary'!AE$27","v":{"v":0,"d":"$0.00"}},{"$f":"'MMA Rev-Exp Summary'!AF$27","v":{"v":0,"d":"$0.00"}},{"$f":"'MMA Rev-Exp Summary'!AG$27","v":{"v":0,"d":"$0.00"}},{"$f":"'MMA Rev-Exp Summary'!AH$27","v":{"v":0,"d":"$0.00"}},{"$f":"'MMA Rev-Exp Summary'!AI$27","v":{"v":0,"d":"$0.00"}},{"$f":"'MMA Rev-Exp Summary'!AJ$27","v":{"v":0,"d":"$0.00"}},{"v":0,"d":"$0.00"}]
["MMA",null,null,{"$f":"Jurat!I$1","v":0},{"$f":"Jurat!D$33","v":"00:00:00"},"Q3","2017-09-30","Summary","Operating Expense","Medical Benefits Expense","Professional Services",3.1,"Primary Care FFS",{"$f":"'MMA Rev-Exp Summary'!Z$29","v":{"v":0,"d":"$0.00"}},{"$f":"'MMA Rev-Exp Summary'!AA$29","v":{"v":0,"d":"$0.00"}},{"$f":"'MMA Rev-Exp Summary'!AB$29","v":{"v":0,"d":"$0.00"}},{"$f":"'MMA Rev-Exp Summary'!AC$29","v":{"v":0,"d":"$0.00"}},{"$f":"'MMA Rev-Exp Summary'!AD$29","v":{"v":0,"d":"$0.00"}},{"$f":"'MMA Rev-Exp Summary'!AE$29","v":{"v":0,"d":"$0.00"}},{"$f":"'MMA Rev-Exp Summary'!AF$29","v":{"v":0,"d":"$0.00"}},{"$f":"'MMA Rev-Exp Summary'!AG$29","v":{"v":0,"d":"$0.00"}},{"$f":"'MMA Rev-Exp Summary'!AH$29","v":{"v":0,"d":"$0.00"}},{"$f":"'MMA Rev-Exp Summary'!AI$29","v":{"v":0,"d":"$0.00"}},{"$f":"'MMA Rev-Exp Summary'!AJ$29","v":{"v":0,"d":"$0.00"}},{"v":0,"d":"$0.00"}]
["MMA",null,null,{"$f":"Jurat!I$1","v":0},{"$f":"Jurat!D$33","v":"00:00:00"},"Q3","2017-09-30","Summary","Operating Expense","Medical Benefits Expense","Professional Services",3.2,"Specialty Care FFS",{"$f":"'MMA Rev-Exp Summary'!Z$30","v":{"v":0,"d":"$0.00"}},{"$f":"'MMA Rev-Exp Summary'!AA$30","v":{"v":0,"d":"$0.00"}},{"$f":"'MMA Rev-Exp Summary'!AB$30","v":{"v":0,"d":"$0.00"}},{"$f":"'MMA Rev-Exp Summary'!AC$30","v":{"v":0,"d":"$0.00"}},{"$f":"'MMA Rev-Exp Summary'!AD$30","v":{"v":0,"d":"$0.00"}},{"$f":"'MMA Rev-Exp Summary'!AE$30","v":{"v":0,"d":"$0.00"}},{"$f":"'MMA Rev-Exp Summary'!AF$30","v":{"v":0,"d":"$0.00"}},{"$f":"'MMA Rev-Exp Summary'!AG$30","v":{"v":0,"d":"$0.00"}},{"$f":"'MMA Rev-Exp Summary'!AH$30","v":{"v":0,"d":"$0.00"}},{"$f":"'MMA Rev-Exp Summary'!AI$30","v":{"v":0,"d":"$0.00"}},{"$f":"'MMA Rev-Exp Summary'!AJ$30","v":{"v":0,"d":"$0.00"}},{"v":0,"d":"$0.00"}]
["MMA",null,null,{"$f":"Jurat!I$1","v":0},{"$f":"Jurat!D$33","v":"00:00:00"},"Q3","2017-09-30","Summary","Operating Expense","Medical Benefits Expense","Professional Services",3.3,"Other Professional FFS",{"$f":"'MMA Rev-Exp Summary'!Z$31","v":{"v":0,"d":"$0.00"}},{"$f":"'MMA Rev-Exp Summary'!AA$31","v":{"v":0,"d":"$0.00"}},{"$f":"'MMA Rev-Exp Summary'!AB$31","v":{"v":0,"d":"$0.00"}},{"$f":"'MMA Rev-Exp Summary'!AC$31","v":{"v":0,"d":"$0.00"}},{"$f":"'MMA Rev-Exp Summary'!AD$31","v":{"v":0,"d":"$0.00"}},{"$f":"'MMA Rev-Exp Summary'!AE$31","v":{"v":0,"d":"$0.00"}},{"$f":"'MMA Rev-Exp Summary'!AF$31","v":{"v":0,"d":"$0.00"}},{"$f":"'MMA Rev-Exp Summary'!AG$31","v":{"v":0,"d":"$0.00"}},{"$f":"'MMA Rev-Exp Summary'!AH$31","v":{"v":0,"d":"$0.00"}},{"$f":"'MMA Rev-Exp Summary'!AI$31","v":{"v":0,"d":"$0.00"}},{"$f":"'MMA Rev-Exp Summary'!AJ$31","v":{"v":0,"d":"$0.00"}},{"v":0,"d":"$0.00"}]
["MMA",null,null,{"$f":"Jurat!I$1","v":0},{"$f":"Jurat!D$33","v":"00:00:00"},"Q3","2017-09-30","Summary","Operating Expense","Medical Benefits Expense","Professional Services","3.4","§ 1202 PCP Payments to providers",{"$f":"'MMA Rev-Exp Summary'!Z$32","v":{"v":0,"d":"$0.00"}},{"$f":"'MMA Rev-Exp Summary'!AA$32","v":{"v":0,"d":"$0.00"}},{"$f":"'MMA Rev-Exp Summary'!AB$32","v":{"v":0,"d":"$0.00"}},{"$f":"'MMA Rev-Exp Summary'!AC$32","v":{"v":0,"d":"$0.00"}},{"$f":"'MMA Rev-Exp Summary'!AD$32","v":{"v":0,"d":"$0.00"}},{"$f":"'MMA Rev-Exp Summary'!AE$32","v":{"v":0,"d":"$0.00"}},{"$f":"'MMA Rev-Exp Summary'!AF$32","v":{"v":0,"d":"$0.00"}},{"$f":"'MMA Rev-Exp Summary'!AG$32","v":{"v":0,"d":"$0.00"}},{"$f":"'MMA Rev-Exp Summary'!AH$32","v":{"v":0,"d":"$0.00"}},{"$f":"'MMA Rev-Exp Summary'!AI$32","v":{"v":0,"d":"$0.00"}},{"$f":"'MMA Rev-Exp Summary'!AJ$32","v":{"v":0,"d":"$0.00"}},{"v":0,"d":"$0.00"}]
["MMA",null,null,{"$f":"Jurat!I$1","v":0},{"$f":"Jurat!D$33","v":"00:00:00"},"Q3","2017-09-30","Summary","Operating Expense","Medical Benefits Expense","Professional Services","3.5","Subcapitated Professional Services",{"$f":"'MMA Rev-Exp Summary'!Z$33","v":{"v":0,"d":"$0.00"}},{"$f":"'MMA Rev-Exp Summary'!AA$33","v":{"v":0,"d":"$0.00"}},{"$f":"'MMA Rev-Exp Summary'!AB$33","v":{"v":0,"d":"$0.00"}},{"$f":"'MMA Rev-Exp Summary'!AC$33","v":{"v":0,"d":"$0.00"}},{"$f":"'MMA Rev-Exp Summary'!AD$33","v":{"v":0,"d":"$0.00"}},{"$f":"'MMA Rev-Exp Summary'!AE$33","v":{"v":0,"d":"$0.00"}},{"$f":"'MMA Rev-Exp Summary'!AF$33","v":{"v":0,"d":"$0.00"}},{"$f":"'MMA Rev-Exp Summary'!AG$33","v":{"v":0,"d":"$0.00"}},{"$f":"'MMA Rev-Exp Summary'!AH$33","v":{"v":0,"d":"$0.00"}},{"$f":"'MMA Rev-Exp Summary'!AI$33","v":{"v":0,"d":"$0.00"}},{"$f":"'MMA Rev-Exp Summary'!AJ$33","v":{"v":0,"d":"$0.00"}},{"v":0,"d":"$0.00"}]
["MMA",null,null,{"$f":"Jurat!I$1","v":0},{"$f":"Jurat!D$33","v":"00:00:00"},"Q3","2017-09-30","Summary","Operating Expense","Medical Benefits Expense","Professional Services","3.6","Ending IBNP for Professional Services",{"$f":"'MMA Rev-Exp Summary'!Z$34","v":{"v":0,"d":"$0.00"}},{"$f":"'MMA Rev-Exp Summary'!AA$34","v":{"v":0,"d":"$0.00"}},{"$f":"'MMA Rev-Exp Summary'!AB$34","v":{"v":0,"d":"$0.00"}},{"$f":"'MMA Rev-Exp Summary'!AC$34","v":{"v":0,"d":"$0.00"}},{"$f":"'MMA Rev-Exp Summary'!AD$34","v":{"v":0,"d":"$0.00"}},{"$f":"'MMA Rev-Exp Summary'!AE$34","v":{"v":0,"d":"$0.00"}},{"$f":"'MMA Rev-Exp Summary'!AF$34","v":{"v":0,"d":"$0.00"}},{"$f":"'MMA Rev-Exp Summary'!AG$34","v":{"v":0,"d":"$0.00"}},{"$f":"'MMA Rev-Exp Summary'!AH$34","v":{"v":0,"d":"$0.00"}},{"$f":"'MMA Rev-Exp Summary'!AI$34","v":{"v":0,"d":"$0.00"}},{"$f":"'MMA Rev-Exp Summary'!AJ$34","v":{"v":0,"d":"$0.00"}},{"v":0,"d":"$0.00"}]
["MMA",null,null,{"$f":"Jurat!I$1","v":0},{"$f":"Jurat!D$33","v":"00:00:00"},"Q3","2017-09-30","Summary","Operating Expense","Medical Benefits Expense","Professional Services","3.7","Professional Services Settlements",{"$f":"'MMA Rev-Exp Summary'!Z$35","v":{"v":0,"d":"$0.00"}},{"$f":"'MMA Rev-Exp Summary'!AA$35","v":{"v":0,"d":"$0.00"}},{"$f":"'MMA Rev-Exp Summary'!AB$35","v":{"v":0,"d":"$0.00"}},{"$f":"'MMA Rev-Exp Summary'!AC$35","v":{"v":0,"d":"$0.00"}},{"$f":"'MMA Rev-Exp Summary'!AD$35","v":{"v":0,"d":"$0.00"}},{"$f":"'MMA Rev-Exp Summary'!AE$35","v":{"v":0,"d":"$0.00"}},{"$f":"'MMA Rev-Exp Summary'!AF$35","v":{"v":0,"d":"$0.00"}},{"$f":"'MMA Rev-Exp Summary'!AG$35","v":{"v":0,"d":"$0.00"}},{"$f":"'MMA Rev-Exp Summary'!AH$35","v":{"v":0,"d":"$0.00"}},{"$f":"'MMA Rev-Exp Summary'!AI$35","v":{"v":0,"d":"$0.00"}},{"$f":"'MMA Rev-Exp Summary'!AJ$35","v":{"v":0,"d":"$0.00"}},{"v":0,"d":"$0.00"}]
["MMA",null,null,{"$f":"Jurat!I$1","v":0},{"$f":"Jurat!D$33","v":"00:00:00"},"Q3","2017-09-30","Summary","Operating Expense","Medical Benefits Expense","Maternity Services","4.1.1","Maternity Services",{"$f":"'MMA Rev-Exp Summary'!Z$37","v":{"v":0,"d":"$0.00"}},{"$f":"'MMA Rev-Exp Summary'!AA$37","v":{"v":0,"d":"$0.00"}},{"$f":"'MMA Rev-Exp Summary'!AB$37","v":{"v":0,"d":"$0.00"}},{"$f":"'MMA Rev-Exp Summary'!AC$37","v":{"v":0,"d":"$0.00"}},{"$f":"'MMA Rev-Exp Summary'!AD$37","v":{"v":0,"d":"$0.00"}},{"$f":"'MMA Rev-Exp Summary'!AE$37","v":{"v":0,"d":"$0.00"}},{"$f":"'MMA Rev-Exp Summary'!AF$37","v":{"v":0,"d":"$0.00"}},{"$f":"'MMA Rev-Exp Summary'!AG$37","v":{"v":0,"d":"$0.00"}},{"$f":"'MMA Rev-Exp Summary'!AH$37","v":{"v":0,"d":"$0.00"}},{"$f":"'MMA Rev-Exp Summary'!AI$37","v":{"v":0,"d":"$0.00"}},{"$f":"'MMA Rev-Exp Summary'!AJ$37","v":{"v":0,"d":"$0.00"}},{"v":0,"d":"$0.00"}]
["MMA",null,null,{"$f":"Jurat!I$1","v":0},{"$f":"Jurat!D$33","v":"00:00:00"},"Q3","2017-09-30","Summary","Operating Expense","Medical Benefits Expense","Maternity Services","4.2.1","Ending IBNP for Maternity Services",{"$f":"'MMA Rev-Exp Summary'!Z$38","v":{"v":0,"d":"$0.00"}},{"$f":"'MMA Rev-Exp Summary'!AA$38","v":{"v":0,"d":"$0.00"}},{"$f":"'MMA Rev-Exp Summary'!AB$38","v":{"v":0,"d":"$0.00"}},{"$f":"'MMA Rev-Exp Summary'!AC$38","v":{"v":0,"d":"$0.00"}},{"$f":"'MMA Rev-Exp Summary'!AD$38","v":{"v":0,"d":"$0.00"}},{"$f":"'MMA Rev-Exp Summary'!AE$38","v":{"v":0,"d":"$0.00"}},{"$f":"'MMA Rev-Exp Summary'!AF$38","v":{"v":0,"d":"$0.00"}},{"$f":"'MMA Rev-Exp Summary'!AG$38","v":{"v":0,"d":"$0.00"}},{"$f":"'MMA Rev-Exp Summary'!AH$38","v":{"v":0,"d":"$0.00"}},{"$f":"'MMA Rev-Exp Summary'!AI$38","v":{"v":0,"d":"$0.00"}},{"$f":"'MMA Rev-Exp Summary'!AJ$38","v":{"v":0,"d":"$0.00"}},{"v":0,"d":"$0.00"}]
["MMA",null,null,{"$f":"Jurat!I$1","v":0},{"$f":"Jurat!D$33","v":"00:00:00"},"Q3","2017-09-30","Summary","Operating Expense","Medical Benefits Expense","Maternity Services","4.3.1","Maternity Settlements",{"$f":"'MMA Rev-Exp Summary'!Z$39","v":{"v":0,"d":"$0.00"}},{"$f":"'MMA Rev-Exp Summary'!AA$39","v":{"v":0,"d":"$0.00"}},{"$f":"'MMA Rev-Exp Summary'!AB$39","v":{"v":0,"d":"$0.00"}},{"$f":"'MMA Rev-Exp Summary'!AC$39","v":{"v":0,"d":"$0.00"}},{"$f":"'MMA Rev-Exp Summary'!AD$39","v":{"v":0,"d":"$0.00"}},{"$f":"'MMA Rev-Exp Summary'!AE$39","v":{"v":0,"d":"$0.00"}},{"$f":"'MMA Rev-Exp Summary'!AF$39","v":{"v":0,"d":"$0.00"}},{"$f":"'MMA Rev-Exp Summary'!AG$39","v":{"v":0,"d":"$0.00"}},{"$f":"'MMA Rev-Exp Summary'!AH$39","v":{"v":0,"d":"$0.00"}},{"$f":"'MMA Rev-Exp Summary'!AI$39","v":{"v":0,"d":"$0.00"}},{"$f":"'MMA Rev-Exp Summary'!AJ$39","v":{"v":0,"d":"$0.00"}},{"v":0,"d":"$0.00"}]
["MMA",null,null,{"$f":"Jurat!I$1","v":0},{"$f":"Jurat!D$33","v":"00:00:00"},"Q3","2017-09-30","Summary","Operating Expense","Medical Benefits Expense","Mental Health Services",5.1,"Mental Health & Substance Abuse FFS",{"$f":"'MMA Rev-Exp Summary'!Z$41","v":{"v":0,"d":"$0.00"}},{"$f":"'MMA Rev-Exp Summary'!AA$41","v":{"v":0,"d":"$0.00"}},{"$f":"'MMA Rev-Exp Summary'!AB$41","v":{"v":0,"d":"$0.00"}},{"$f":"'MMA Rev-Exp Summary'!AC$41","v":{"v":0,"d":"$0.00"}},{"$f":"'MMA Rev-Exp Summary'!AD$41","v":{"v":0,"d":"$0.00"}},{"$f":"'MMA Rev-Exp Summary'!AE$41","v":{"v":0,"d":"$0.00"}},{"$f":"'MMA Rev-Exp Summary'!AF$41","v":{"v":0,"d":"$0.00"}},{"$f":"'MMA Rev-Exp Summary'!AG$41","v":{"v":0,"d":"$0.00"}},{"$f":"'MMA Rev-Exp Summary'!AH$41","v":{"v":0,"d":"$0.00"}},{"$f":"'MMA Rev-Exp Summary'!AI$41","v":{"v":0,"d":"$0.00"}},{"$f":"'MMA Rev-Exp Summary'!AJ$41","v":{"v":0,"d":"$0.00"}},{"v":0,"d":"$0.00"}]
["MMA",null,null,{"$f":"Jurat!I$1","v":0},{"$f":"Jurat!D$33","v":"00:00:00"},"Q3","2017-09-30","Summary","Operating Expense","Medical Benefits Expense","Mental Health Services",5.2,"Mental Health & Substance Abuse Subcapitation",{"$f":"'MMA Rev-Exp Summary'!Z$42","v":{"v":0,"d":"$0.00"}},{"$f":"'MMA Rev-Exp Summary'!AA$42","v":{"v":0,"d":"$0.00"}},{"$f":"'MMA Rev-Exp Summary'!AB$42","v":{"v":0,"d":"$0.00"}},{"$f":"'MMA Rev-Exp Summary'!AC$42","v":{"v":0,"d":"$0.00"}},{"$f":"'MMA Rev-Exp Summary'!AD$42","v":{"v":0,"d":"$0.00"}},{"$f":"'MMA Rev-Exp Summary'!AE$42","v":{"v":0,"d":"$0.00"}},{"$f":"'MMA Rev-Exp Summary'!AF$42","v":{"v":0,"d":"$0.00"}},{"$f":"'MMA Rev-Exp Summary'!AG$42","v":{"v":0,"d":"$0.00"}},{"$f":"'MMA Rev-Exp Summary'!AH$42","v":{"v":0,"d":"$0.00"}},{"$f":"'MMA Rev-Exp Summary'!AI$42","v":{"v":0,"d":"$0.00"}},{"$f":"'MMA Rev-Exp Summary'!AJ$42","v":{"v":0,"d":"$0.00"}},{"v":0,"d":"$0.00"}]
["MMA",null,null,{"$f":"Jurat!I$1","v":0},{"$f":"Jurat!D$33","v":"00:00:00"},"Q3","2017-09-30","Summary","Operating Expense","Medical Benefits Expense","Mental Health Services",5.3,"Ending IBNP for Mental Health & Substance Abuse",{"$f":"'MMA Rev-Exp Summary'!Z$43","v":{"v":0,"d":"$0.00"}},{"$f":"'MMA Rev-Exp Summary'!AA$43","v":{"v":0,"d":"$0.00"}},{"$f":"'MMA Rev-Exp Summary'!AB$43","v":{"v":0,"d":"$0.00"}},{"$f":"'MMA Rev-Exp Summary'!AC$43","v":{"v":0,"d":"$0.00"}},{"$f":"'MMA Rev-Exp Summary'!AD$43","v":{"v":0,"d":"$0.00"}},{"$f":"'MMA Rev-Exp Summary'!AE$43","v":{"v":0,"d":"$0.00"}},{"$f":"'MMA Rev-Exp Summary'!AF$43","v":{"v":0,"d":"$0.00"}},{"$f":"'MMA Rev-Exp Summary'!AG$43","v":{"v":0,"d":"$0.00"}},{"$f":"'MMA Rev-Exp Summary'!AH$43","v":{"v":0,"d":"$0.00"}},{"$f":"'MMA Rev-Exp Summary'!AI$43","v":{"v":0,"d":"$0.00"}},{"$f":"'MMA Rev-Exp Summary'!AJ$43","v":{"v":0,"d":"$0.00"}},{"v":0,"d":"$0.00"}]
["MMA",null,null,{"$f":"Jurat!I$1","v":0},{"$f":"Jurat!D$33","v":"00:00:00"},"Q3","2017-09-30","Summary","Operating Expense","Medical Benefits Expense","Mental Health Services","5.4","Mental Health Settlements",{"$f":"'MMA Rev-Exp Summary'!Z$44","v":{"v":0,"d":"$0.00"}},{"$f":"'MMA Rev-Exp Summary'!AA$44","v":{"v":0,"d":"$0.00"}},{"$f":"'MMA Rev-Exp Summary'!AB$44","v":{"v":0,"d":"$0.00"}},{"$f":"'MMA Rev-Exp Summary'!AC$44","v":{"v":0,"d":"$0.00"}},{"$f":"'MMA Rev-Exp Summary'!AD$44","v":{"v":0,"d":"$0.00"}},{"$f":"'MMA Rev-Exp Summary'!AE$44","v":{"v":0,"d":"$0.00"}},{"$f":"'MMA Rev-Exp Summary'!AF$44","v":{"v":0,"d":"$0.00"}},{"$f":"'MMA Rev-Exp Summary'!AG$44","v":{"v":0,"d":"$0.00"}},{"$f":"'MMA Rev-Exp Summary'!AH$44","v":{"v":0,"d":"$0.00"}},{"$f":"'MMA Rev-Exp Summary'!AI$44","v":{"v":0,"d":"$0.00"}},{"$f":"'MMA Rev-Exp Summary'!AJ$44","v":{"v":0,"d":"$0.00"}},{"v":0,"d":"$0.00"}]
["MMA",null,null,{"$f":"Jurat!I$1","v":0},{"$f":"Jurat!D$33","v":"00:00:00"},"Q3","2017-09-30","Summary","Operating Expense","Medical Benefits Expense","Dental Services",6.1,"Dental FFS",{"$f":"'MMA Rev-Exp Summary'!Z$46","v":{"v":0,"d":"$0.00"}},{"$f":"'MMA Rev-Exp Summary'!AA$46","v":{"v":0,"d":"$0.00"}},{"$f":"'MMA Rev-Exp Summary'!AB$46","v":{"v":0,"d":"$0.00"}},{"$f":"'MMA Rev-Exp Summary'!AC$46","v":{"v":0,"d":"$0.00"}},{"$f":"'MMA Rev-Exp Summary'!AD$46","v":{"v":0,"d":"$0.00"}},{"$f":"'MMA Rev-Exp Summary'!AE$46","v":{"v":0,"d":"$0.00"}},{"$f":"'MMA Rev-Exp Summary'!AF$46","v":{"v":0,"d":"$0.00"}},{"$f":"'MMA Rev-Exp Summary'!AG$46","v":{"v":0,"d":"$0.00"}},{"$f":"'MMA Rev-Exp Summary'!AH$46","v":{"v":0,"d":"$0.00"}},{"$f":"'MMA Rev-Exp Summary'!AI$46","v":{"v":0,"d":"$0.00"}},{"$f":"'MMA Rev-Exp Summary'!AJ$46","v":{"v":0,"d":"$0.00"}},{"v":0,"d":"$0.00"}]
["MMA",null,null,{"$f":"Jurat!I$1","v":0},{"$f":"Jurat!D$33","v":"00:00:00"},"Q3","2017-09-30","Summary","Operating Expense","Medical Benefits Expense","Dental Services",6.2,"Dental Subcapitation",{"$f":"'MMA Rev-Exp Summary'!Z$47","v":{"v":0,"d":"$0.00"}},{"$f":"'MMA Rev-Exp Summary'!AA$47","v":{"v":0,"d":"$0.00"}},{"$f":"'MMA Rev-Exp Summary'!AB$47","v":{"v":0,"d":"$0.00"}},{"$f":"'MMA Rev-Exp Summary'!AC$47","v":{"v":0,"d":"$0.00"}},{"$f":"'MMA Rev-Exp Summary'!AD$47","v":{"v":0,"d":"$0.00"}},{"$f":"'MMA Rev-Exp Summary'!AE$47","v":{"v":0,"d":"$0.00"}},{"$f":"'MMA Rev-Exp Summary'!AF$47","v":{"v":0,"d":"$0.00"}},{"$f":"'MMA Rev-Exp Summary'!AG$47","v":{"v":0,"d":"$0.00"}},{"$f":"'MMA Rev-Exp Summary'!AH$47","v":{"v":0,"d":"$0.00"}},{"$f":"'MMA Rev-Exp Summary'!AI$47","v":{"v":0,"d":"$0.00"}},{"$f":"'MMA Rev-Exp Summary'!AJ$47","v":{"v":0,"d":"$0.00"}},{"v":0,"d":"$0.00"}]
["MMA",null,null,{"$f":"Jurat!I$1","v":0},{"$f":"Jurat!D$33","v":"00:00:00"},"Q3","2017-09-30","Summary","Operating Expense","Medical Benefits Expense","Dental Services",6.3,"Ending IBNP for Dental Services",{"$f":"'MMA Rev-Exp Summary'!Z$48","v":{"v":0,"d":"$0.00"}},{"$f":"'MMA Rev-Exp Summary'!AA$48","v":{"v":0,"d":"$0.00"}},{"$f":"'MMA Rev-Exp Summary'!AB$48","v":{"v":0,"d":"$0.00"}},{"$f":"'MMA Rev-Exp Summary'!AC$48","v":{"v":0,"d":"$0.00"}},{"$f":"'MMA Rev-Exp Summary'!AD$48","v":{"v":0,"d":"$0.00"}},{"$f":"'MMA Rev-Exp Summary'!AE$48","v":{"v":0,"d":"$0.00"}},{"$f":"'MMA Rev-Exp Summary'!AF$48","v":{"v":0,"d":"$0.00"}},{"$f":"'MMA Rev-Exp Summary'!AG$48","v":{"v":0,"d":"$0.00"}},{"$f":"'MMA Rev-Exp Summary'!AH$48","v":{"v":0,"d":"$0.00"}},{"$f":"'MMA Rev-Exp Summary'!AI$48","v":{"v":0,"d":"$0.00"}},{"$f":"'MMA Rev-Exp Summary'!AJ$48","v":{"v":0,"d":"$0.00"}},{"v":0,"d":"$0.00"}]
["MMA",null,null,{"$f":"Jurat!I$1","v":0},{"$f":"Jurat!D$33","v":"00:00:00"},"Q3","2017-09-30","Summary","Operating Expense","Medical Benefits Expense","Dental Services","6.4","Dental Settlements",{"$f":"'MMA Rev-Exp Summary'!Z$49","v":{"v":0,"d":"$0.00"}},{"$f":"'MMA Rev-Exp Summary'!AA$49","v":{"v":0,"d":"$0.00"}},{"$f":"'MMA Rev-Exp Summary'!AB$49","v":{"v":0,"d":"$0.00"}},{"$f":"'MMA Rev-Exp Summary'!AC$49","v":{"v":0,"d":"$0.00"}},{"$f":"'MMA Rev-Exp Summary'!AD$49","v":{"v":0,"d":"$0.00"}},{"$f":"'MMA Rev-Exp Summary'!AE$49","v":{"v":0,"d":"$0.00"}},{"$f":"'MMA Rev-Exp Summary'!AF$49","v":{"v":0,"d":"$0.00"}},{"$f":"'MMA Rev-Exp Summary'!AG$49","v":{"v":0,"d":"$0.00"}},{"$f":"'MMA Rev-Exp Summary'!AH$49","v":{"v":0,"d":"$0.00"}},{"$f":"'MMA Rev-Exp Summary'!AI$49","v":{"v":0,"d":"$0.00"}},{"$f":"'MMA Rev-Exp Summary'!AJ$49","v":{"v":0,"d":"$0.00"}},{"v":0,"d":"$0.00"}]
["MMA",null,null,{"$f":"Jurat!I$1","v":0},{"$f":"Jurat!D$33","v":"00:00:00"},"Q3","2017-09-30","Summary","Operating Expense","Medical Benefits Expense","Transportation Services",7.1,"Transportation FFS",{"$f":"'MMA Rev-Exp Summary'!Z$51","v":{"v":0,"d":"$0.00"}},{"$f":"'MMA Rev-Exp Summary'!AA$51","v":{"v":0,"d":"$0.00"}},{"$f":"'MMA Rev-Exp Summary'!AB$51","v":{"v":0,"d":"$0.00"}},{"$f":"'MMA Rev-Exp Summary'!AC$51","v":{"v":0,"d":"$0.00"}},{"$f":"'MMA Rev-Exp Summary'!AD$51","v":{"v":0,"d":"$0.00"}},{"$f":"'MMA Rev-Exp Summary'!AE$51","v":{"v":0,"d":"$0.00"}},{"$f":"'MMA Rev-Exp Summary'!AF$51","v":{"v":0,"d":"$0.00"}},{"$f":"'MMA Rev-Exp Summary'!AG$51","v":{"v":0,"d":"$0.00"}},{"$f":"'MMA Rev-Exp Summary'!AH$51","v":{"v":0,"d":"$0.00"}},{"$f":"'MMA Rev-Exp Summary'!AI$51","v":{"v":0,"d":"$0.00"}},{"$f":"'MMA Rev-Exp Summary'!AJ$51","v":{"v":0,"d":"$0.00"}},{"v":0,"d":"$0.00"}]
["MMA",null,null,{"$f":"Jurat!I$1","v":0},{"$f":"Jurat!D$33","v":"00:00:00"},"Q3","2017-09-30","Summary","Operating Expense","Medical Benefits Expense","Transportation Services",7.2,"Transportation Subcapitation",{"$f":"'MMA Rev-Exp Summary'!Z$52","v":{"v":0,"d":"$0.00"}},{"$f":"'MMA Rev-Exp Summary'!AA$52","v":{"v":0,"d":"$0.00"}},{"$f":"'MMA Rev-Exp Summary'!AB$52","v":{"v":0,"d":"$0.00"}},{"$f":"'MMA Rev-Exp Summary'!AC$52","v":{"v":0,"d":"$0.00"}},{"$f":"'MMA Rev-Exp Summary'!AD$52","v":{"v":0,"d":"$0.00"}},{"$f":"'MMA Rev-Exp Summary'!AE$52","v":{"v":0,"d":"$0.00"}},{"$f":"'MMA Rev-Exp Summary'!AF$52","v":{"v":0,"d":"$0.00"}},{"$f":"'MMA Rev-Exp Summary'!AG$52","v":{"v":0,"d":"$0.00"}},{"$f":"'MMA Rev-Exp Summary'!AH$52","v":{"v":0,"d":"$0.00"}},{"$f":"'MMA Rev-Exp Summary'!AI$52","v":{"v":0,"d":"$0.00"}},{"$f":"'MMA Rev-Exp Summary'!AJ$52","v":{"v":0,"d":"$0.00"}},{"v":0,"d":"$0.00"}]
["MMA",null,null,{"$f":"Jurat!I$1","v":0},{"$f":"Jurat!D$33","v":"00:00:00"},"Q3","2017-09-30","Summary","Operating Expense","Medical Benefits Expense","Transportation Services",7.3,"Ending IBNP for Transportation",{"$f":"'MMA Rev-Exp Summary'!Z$53","v":{"v":0,"d":"$0.00"}},{"$f":"'MMA Rev-Exp Summary'!AA$53","v":{"v":0,"d":"$0.00"}},{"$f":"'MMA Rev-Exp Summary'!AB$53","v":{"v":0,"d":"$0.00"}},{"$f":"'MMA Rev-Exp Summary'!AC$53","v":{"v":0,"d":"$0.00"}},{"$f":"'MMA Rev-Exp Summary'!AD$53","v":{"v":0,"d":"$0.00"}},{"$f":"'MMA Rev-Exp Summary'!AE$53","v":{"v":0,"d":"$0.00"}},{"$f":"'MMA Rev-Exp Summary'!AF$53","v":{"v":0,"d":"$0.00"}},{"$f":"'MMA Rev-Exp Summary'!AG$53","v":{"v":0,"d":"$0.00"}},{"$f":"'MMA Rev-Exp Summary'!AH$53","v":{"v":0,"d":"$0.00"}},{"$f":"'MMA Rev-Exp Summary'!AI$53","v":{"v":0,"d":"$0.00"}},{"$f":"'MMA Rev-Exp Summary'!AJ$53","v":{"v":0,"d":"$0.00"}},{"v":0,"d":"$0.00"}]
["MMA",null,null,{"$f":"Jurat!I$1","v":0},{"$f":"Jurat!D$33","v":"00:00:00"},"Q3","2017-09-30","Summary","Operating Expense","Medical Benefits Expense","Transportation Services","7.4","Transportation Settlements",{"$f":"'MMA Rev-Exp Summary'!Z$54","v":{"v":0,"d":"$0.00"}},{"$f":"'MMA Rev-Exp Summary'!AA$54","v":{"v":0,"d":"$0.00"}},{"$f":"'MMA Rev-Exp Summary'!AB$54","v":{"v":0,"d":"$0.00"}},{"$f":"'MMA Rev-Exp Summary'!AC$54","v":{"v":0,"d":"$0.00"}},{"$f":"'MMA Rev-Exp Summary'!AD$54","v":{"v":0,"d":"$0.00"}},{"$f":"'MMA Rev-Exp Summary'!AE$54","v":{"v":0,"d":"$0.00"}},{"$f":"'MMA Rev-Exp Summary'!AF$54","v":{"v":0,"d":"$0.00"}},{"$f":"'MMA Rev-Exp Summary'!AG$54","v":{"v":0,"d":"$0.00"}},{"$f":"'MMA Rev-Exp Summary'!AH$54","v":{"v":0,"d":"$0.00"}},{"$f":"'MMA Rev-Exp Summary'!AI$54","v":{"v":0,"d":"$0.00"}},{"$f":"'MMA Rev-Exp Summary'!AJ$54","v":{"v":0,"d":"$0.00"}},{"v":0,"d":"$0.00"}]
["MMA",null,null,{"$f":"Jurat!I$1","v":0},{"$f":"Jurat!D$33","v":"00:00:00"},"Q3","2017-09-30","Summary","Operating Expense","Medical Benefits Expense","Pharmacy Services",8.1,"Prescription Drugs FFS",{"$f":"'MMA Rev-Exp Summary'!Z$56","v":{"v":0,"d":"$0.00"}},{"$f":"'MMA Rev-Exp Summary'!AA$56","v":{"v":0,"d":"$0.00"}},{"$f":"'MMA Rev-Exp Summary'!AB$56","v":{"v":0,"d":"$0.00"}},{"$f":"'MMA Rev-Exp Summary'!AC$56","v":{"v":0,"d":"$0.00"}},{"$f":"'MMA Rev-Exp Summary'!AD$56","v":{"v":0,"d":"$0.00"}},{"$f":"'MMA Rev-Exp Summary'!AE$56","v":{"v":0,"d":"$0.00"}},{"$f":"'MMA Rev-Exp Summary'!AF$56","v":{"v":0,"d":"$0.00"}},{"$f":"'MMA Rev-Exp Summary'!AG$56","v":{"v":0,"d":"$0.00"}},{"$f":"'MMA Rev-Exp Summary'!AH$56","v":{"v":0,"d":"$0.00"}},{"$f":"'MMA Rev-Exp Summary'!AI$56","v":{"v":0,"d":"$0.00"}},{"$f":"'MMA Rev-Exp Summary'!AJ$56","v":{"v":0,"d":"$0.00"}},{"v":0,"d":"$0.00"}]
["MMA",null,null,{"$f":"Jurat!I$1","v":0},{"$f":"Jurat!D$33","v":"00:00:00"},"Q3","2017-09-30","Summary","Operating Expense","Medical Benefits Expense","Pharmacy Services","8.2","Hepatitis C Prescription Drug FFS",{"$f":"'MMA Rev-Exp Summary'!Z$57","v":{"v":0,"d":"$0.00"}},{"$f":"'MMA Rev-Exp Summary'!AA$57","v":{"v":0,"d":"$0.00"}},{"$f":"'MMA Rev-Exp Summary'!AB$57","v":{"v":0,"d":"$0.00"}},{"$f":"'MMA Rev-Exp Summary'!AC$57","v":{"v":0,"d":"$0.00"}},{"$f":"'MMA Rev-Exp Summary'!AD$57","v":{"v":0,"d":"$0.00"}},{"$f":"'MMA Rev-Exp Summary'!AE$57","v":{"v":0,"d":"$0.00"}},{"$f":"'MMA Rev-Exp Summary'!AF$57","v":{"v":0,"d":"$0.00"}},{"$f":"'MMA Rev-Exp Summary'!AG$57","v":{"v":0,"d":"$0.00"}},{"$f":"'MMA Rev-Exp Summary'!AH$57","v":{"v":0,"d":"$0.00"}},{"$f":"'MMA Rev-Exp Summary'!AI$57","v":{"v":0,"d":"$0.00"}},{"$f":"'MMA Rev-Exp Summary'!AJ$57","v":{"v":0,"d":"$0.00"}},{"v":0,"d":"$0.00"}]
["MMA",null,null,{"$f":"Jurat!I$1","v":0},{"$f":"Jurat!D$33","v":"00:00:00"},"Q3","2017-09-30","Summary","Operating Expense","Medical Benefits Expense","Pharmacy Services","8.3","Ending IBNP for Prescription Drugs",{"$f":"'MMA Rev-Exp Summary'!Z$58","v":{"v":0,"d":"$0.00"}},{"$f":"'MMA Rev-Exp Summary'!AA$58","v":{"v":0,"d":"$0.00"}},{"$f":"'MMA Rev-Exp Summary'!AB$58","v":{"v":0,"d":"$0.00"}},{"$f":"'MMA Rev-Exp Summary'!AC$58","v":{"v":0,"d":"$0.00"}},{"$f":"'MMA Rev-Exp Summary'!AD$58","v":{"v":0,"d":"$0.00"}},{"$f":"'MMA Rev-Exp Summary'!AE$58","v":{"v":0,"d":"$0.00"}},{"$f":"'MMA Rev-Exp Summary'!AF$58","v":{"v":0,"d":"$0.00"}},{"$f":"'MMA Rev-Exp Summary'!AG$58","v":{"v":0,"d":"$0.00"}},{"$f":"'MMA Rev-Exp Summary'!AH$58","v":{"v":0,"d":"$0.00"}},{"$f":"'MMA Rev-Exp Summary'!AI$58","v":{"v":0,"d":"$0.00"}},{"$f":"'MMA Rev-Exp Summary'!AJ$58","v":{"v":0,"d":"$0.00"}},{"v":0,"d":"$0.00"}]
["MMA",null,null,{"$f":"Jurat!I$1","v":0},{"$f":"Jurat!D$33","v":"00:00:00"},"Q3","2017-09-30","Summary","Operating Expense","Medical Benefits Expense","Pharmacy Services","8.4","Prescription Drug Rebates ",{"$f":"'MMA Rev-Exp Summary'!Z$59","v":{"v":0,"d":"$0.00"}},{"$f":"'MMA Rev-Exp Summary'!AA$59","v":{"v":0,"d":"$0.00"}},{"$f":"'MMA Rev-Exp Summary'!AB$59","v":{"v":0,"d":"$0.00"}},{"$f":"'MMA Rev-Exp Summary'!AC$59","v":{"v":0,"d":"$0.00"}},{"$f":"'MMA Rev-Exp Summary'!AD$59","v":{"v":0,"d":"$0.00"}},{"$f":"'MMA Rev-Exp Summary'!AE$59","v":{"v":0,"d":"$0.00"}},{"$f":"'MMA Rev-Exp Summary'!AF$59","v":{"v":0,"d":"$0.00"}},{"$f":"'MMA Rev-Exp Summary'!AG$59","v":{"v":0,"d":"$0.00"}},{"$f":"'MMA Rev-Exp Summary'!AH$59","v":{"v":0,"d":"$0.00"}},{"$f":"'MMA Rev-Exp Summary'!AI$59","v":{"v":0,"d":"$0.00"}},{"$f":"'MMA Rev-Exp Summary'!AJ$59","v":{"v":0,"d":"$0.00"}},{"v":0,"d":"$0.00"}]
["MMA",null,null,{"$f":"Jurat!I$1","v":0},{"$f":"Jurat!D$33","v":"00:00:00"},"Q3","2017-09-30","Summary","Operating Expense","Medical Benefits Expense","Pharmacy Services","8.5","Ending accrual for Rebates receivable",{"$f":"'MMA Rev-Exp Summary'!Z$60","v":{"v":0,"d":"$0.00"}},{"$f":"'MMA Rev-Exp Summary'!AA$60","v":{"v":0,"d":"$0.00"}},{"$f":"'MMA Rev-Exp Summary'!AB$60","v":{"v":0,"d":"$0.00"}},{"$f":"'MMA Rev-Exp Summary'!AC$60","v":{"v":0,"d":"$0.00"}},{"$f":"'MMA Rev-Exp Summary'!AD$60","v":{"v":0,"d":"$0.00"}},{"$f":"'MMA Rev-Exp Summary'!AE$60","v":{"v":0,"d":"$0.00"}},{"$f":"'MMA Rev-Exp Summary'!AF$60","v":{"v":0,"d":"$0.00"}},{"$f":"'MMA Rev-Exp Summary'!AG$60","v":{"v":0,"d":"$0.00"}},{"$f":"'MMA Rev-Exp Summary'!AH$60","v":{"v":0,"d":"$0.00"}},{"$f":"'MMA Rev-Exp Summary'!AI$60","v":{"v":0,"d":"$0.00"}},{"$f":"'MMA Rev-Exp Summary'!AJ$60","v":{"v":0,"d":"$0.00"}},{"v":0,"d":"$0.00"}]
["MMA",null,null,{"$f":"Jurat!I$1","v":0},{"$f":"Jurat!D$33","v":"00:00:00"},"Q3","2017-09-30","Summary","Operating Expense","Medical Benefits Expense","Pharmacy Services","8.6","Prescription Drugs Subcapitation",{"$f":"'MMA Rev-Exp Summary'!Z$61","v":{"v":0,"d":"$0.00"}},{"$f":"'MMA Rev-Exp Summary'!AA$61","v":{"v":0,"d":"$0.00"}},{"$f":"'MMA Rev-Exp Summary'!AB$61","v":{"v":0,"d":"$0.00"}},{"$f":"'MMA Rev-Exp Summary'!AC$61","v":{"v":0,"d":"$0.00"}},{"$f":"'MMA Rev-Exp Summary'!AD$61","v":{"v":0,"d":"$0.00"}},{"$f":"'MMA Rev-Exp Summary'!AE$61","v":{"v":0,"d":"$0.00"}},{"$f":"'MMA Rev-Exp Summary'!AF$61","v":{"v":0,"d":"$0.00"}},{"$f":"'MMA Rev-Exp Summary'!AG$61","v":{"v":0,"d":"$0.00"}},{"$f":"'MMA Rev-Exp Summary'!AH$61","v":{"v":0,"d":"$0.00"}},{"$f":"'MMA Rev-Exp Summary'!AI$61","v":{"v":0,"d":"$0.00"}},{"$f":"'MMA Rev-Exp Summary'!AJ$61","v":{"v":0,"d":"$0.00"}},{"v":0,"d":"$0.00"}]
["MMA",null,null,{"$f":"Jurat!I$1","v":0},{"$f":"Jurat!D$33","v":"00:00:00"},"Q3","2017-09-30","Summary","Operating Expense","Medical Benefits Expense","Pharmacy Services","8.7","Prescription Drug Settlements",{"$f":"'MMA Rev-Exp Summary'!Z$62","v":{"v":0,"d":"$0.00"}},{"$f":"'MMA Rev-Exp Summary'!AA$62","v":{"v":0,"d":"$0.00"}},{"$f":"'MMA Rev-Exp Summary'!AB$62","v":{"v":0,"d":"$0.00"}},{"$f":"'MMA Rev-Exp Summary'!AC$62","v":{"v":0,"d":"$0.00"}},{"$f":"'MMA Rev-Exp Summary'!AD$62","v":{"v":0,"d":"$0.00"}},{"$f":"'MMA Rev-Exp Summary'!AE$62","v":{"v":0,"d":"$0.00"}},{"$f":"'MMA Rev-Exp Summary'!AF$62","v":{"v":0,"d":"$0.00"}},{"$f":"'MMA Rev-Exp Summary'!AG$62","v":{"v":0,"d":"$0.00"}},{"$f":"'MMA Rev-Exp Summary'!AH$62","v":{"v":0,"d":"$0.00"}},{"$f":"'MMA Rev-Exp Summary'!AI$62","v":{"v":0,"d":"$0.00"}},{"$f":"'MMA Rev-Exp Summary'!AJ$62","v":{"v":0,"d":"$0.00"}},{"v":0,"d":"$0.00"}]
["MMA",null,null,{"$f":"Jurat!I$1","v":0},{"$f":"Jurat!D$33","v":"00:00:00"},"Q3","2017-09-30","Summary","Operating Expense","Medical Benefits Expense","Other MMA Services",9.1,"Home Health, Private Duty Nursing, Personal Care FFS",{"$f":"'MMA Rev-Exp Summary'!Z$64","v":{"v":0,"d":"$0.00"}},{"$f":"'MMA Rev-Exp Summary'!AA$64","v":{"v":0,"d":"$0.00"}},{"$f":"'MMA Rev-Exp Summary'!AB$64","v":{"v":0,"d":"$0.00"}},{"$f":"'MMA Rev-Exp Summary'!AC$64","v":{"v":0,"d":"$0.00"}},{"$f":"'MMA Rev-Exp Summary'!AD$64","v":{"v":0,"d":"$0.00"}},{"$f":"'MMA Rev-Exp Summary'!AE$64","v":{"v":0,"d":"$0.00"}},{"$f":"'MMA Rev-Exp Summary'!AF$64","v":{"v":0,"d":"$0.00"}},{"$f":"'MMA Rev-Exp Summary'!AG$64","v":{"v":0,"d":"$0.00"}},{"$f":"'MMA Rev-Exp Summary'!AH$64","v":{"v":0,"d":"$0.00"}},{"$f":"'MMA Rev-Exp Summary'!AI$64","v":{"v":0,"d":"$0.00"}},{"$f":"'MMA Rev-Exp Summary'!AJ$64","v":{"v":0,"d":"$0.00"}},{"v":0,"d":"$0.00"}]
["MMA",null,null,{"$f":"Jurat!I$1","v":0},{"$f":"Jurat!D$33","v":"00:00:00"},"Q3","2017-09-30","Summary","Operating Expense","Medical Benefits Expense","Other MMA Services","9.2","Hospice FFS",{"$f":"'MMA Rev-Exp Summary'!Z$65","v":{"v":0,"d":"$0.00"}},{"$f":"'MMA Rev-Exp Summary'!AA$65","v":{"v":0,"d":"$0.00"}},{"$f":"'MMA Rev-Exp Summary'!AB$65","v":{"v":0,"d":"$0.00"}},{"$f":"'MMA Rev-Exp Summary'!AC$65","v":{"v":0,"d":"$0.00"}},{"$f":"'MMA Rev-Exp Summary'!AD$65","v":{"v":0,"d":"$0.00"}},{"$f":"'MMA Rev-Exp Summary'!AE$65","v":{"v":0,"d":"$0.00"}},{"$f":"'MMA Rev-Exp Summary'!AF$65","v":{"v":0,"d":"$0.00"}},{"$f":"'MMA Rev-Exp Summary'!AG$65","v":{"v":0,"d":"$0.00"}},{"$f":"'MMA Rev-Exp Summary'!AH$65","v":{"v":0,"d":"$0.00"}},{"$f":"'MMA Rev-Exp Summary'!AI$65","v":{"v":0,"d":"$0.00"}},{"$f":"'MMA Rev-Exp Summary'!AJ$65","v":{"v":0,"d":"$0.00"}},{"v":0,"d":"$0.00"}]
["MMA",null,null,{"$f":"Jurat!I$1","v":0},{"$f":"Jurat!D$33","v":"00:00:00"},"Q3","2017-09-30","Summary","Operating Expense","Medical Benefits Expense","Other MMA Services","9.3","DME FFS",{"$f":"'MMA Rev-Exp Summary'!Z$66","v":{"v":0,"d":"$0.00"}},{"$f":"'MMA Rev-Exp Summary'!AA$66","v":{"v":0,"d":"$0.00"}},{"$f":"'MMA Rev-Exp Summary'!AB$66","v":{"v":0,"d":"$0.00"}},{"$f":"'MMA Rev-Exp Summary'!AC$66","v":{"v":0,"d":"$0.00"}},{"$f":"'MMA Rev-Exp Summary'!AD$66","v":{"v":0,"d":"$0.00"}},{"$f":"'MMA Rev-Exp Summary'!AE$66","v":{"v":0,"d":"$0.00"}},{"$f":"'MMA Rev-Exp Summary'!AF$66","v":{"v":0,"d":"$0.00"}},{"$f":"'MMA Rev-Exp Summary'!AG$66","v":{"v":0,"d":"$0.00"}},{"$f":"'MMA Rev-Exp Summary'!AH$66","v":{"v":0,"d":"$0.00"}},{"$f":"'MMA Rev-Exp Summary'!AI$66","v":{"v":0,"d":"$0.00"}},{"$f":"'MMA Rev-Exp Summary'!AJ$66","v":{"v":0,"d":"$0.00"}},{"v":0,"d":"$0.00"}]
["MMA",null,null,{"$f":"Jurat!I$1","v":0},{"$f":"Jurat!D$33","v":"00:00:00"},"Q3","2017-09-30","Summary","Operating Expense","Medical Benefits Expense","Other MMA Services","9.4","Other State Plan Services FFS",{"$f":"'MMA Rev-Exp Summary'!Z$67","v":{"v":0,"d":"$0.00"}},{"$f":"'MMA Rev-Exp Summary'!AA$67","v":{"v":0,"d":"$0.00"}},{"$f":"'MMA Rev-Exp Summary'!AB$67","v":{"v":0,"d":"$0.00"}},{"$f":"'MMA Rev-Exp Summary'!AC$67","v":{"v":0,"d":"$0.00"}},{"$f":"'MMA Rev-Exp Summary'!AD$67","v":{"v":0,"d":"$0.00"}},{"$f":"'MMA Rev-Exp Summary'!AE$67","v":{"v":0,"d":"$0.00"}},{"$f":"'MMA Rev-Exp Summary'!AF$67","v":{"v":0,"d":"$0.00"}},{"$f":"'MMA Rev-Exp Summary'!AG$67","v":{"v":0,"d":"$0.00"}},{"$f":"'MMA Rev-Exp Summary'!AH$67","v":{"v":0,"d":"$0.00"}},{"$f":"'MMA Rev-Exp Summary'!AI$67","v":{"v":0,"d":"$0.00"}},{"$f":"'MMA Rev-Exp Summary'!AJ$67","v":{"v":0,"d":"$0.00"}},{"v":0,"d":"$0.00"}]
["MMA",null,null,{"$f":"Jurat!I$1","v":0},{"$f":"Jurat!D$33","v":"00:00:00"},"Q3","2017-09-30","Summary","Operating Expense","Medical Benefits Expense","Other MMA Services","9.5","Other Services Subcapitation",{"$f":"'MMA Rev-Exp Summary'!Z$68","v":{"v":0,"d":"$0.00"}},{"$f":"'MMA Rev-Exp Summary'!AA$68","v":{"v":0,"d":"$0.00"}},{"$f":"'MMA Rev-Exp Summary'!AB$68","v":{"v":0,"d":"$0.00"}},{"$f":"'MMA Rev-Exp Summary'!AC$68","v":{"v":0,"d":"$0.00"}},{"$f":"'MMA Rev-Exp Summary'!AD$68","v":{"v":0,"d":"$0.00"}},{"$f":"'MMA Rev-Exp Summary'!AE$68","v":{"v":0,"d":"$0.00"}},{"$f":"'MMA Rev-Exp Summary'!AF$68","v":{"v":0,"d":"$0.00"}},{"$f":"'MMA Rev-Exp Summary'!AG$68","v":{"v":0,"d":"$0.00"}},{"$f":"'MMA Rev-Exp Summary'!AH$68","v":{"v":0,"d":"$0.00"}},{"$f":"'MMA Rev-Exp Summary'!AI$68","v":{"v":0,"d":"$0.00"}},{"$f":"'MMA Rev-Exp Summary'!AJ$68","v":{"v":0,"d":"$0.00"}},{"v":0,"d":"$0.00"}]
["MMA",null,null,{"$f":"Jurat!I$1","v":0},{"$f":"Jurat!D$33","v":"00:00:00"},"Q3","2017-09-30","Summary","Operating Expense","Medical Benefits Expense","Other MMA Services","9.6","Ending IBNP for Other Services",{"$f":"'MMA Rev-Exp Summary'!Z$69","v":{"v":0,"d":"$0.00"}},{"$f":"'MMA Rev-Exp Summary'!AA$69","v":{"v":0,"d":"$0.00"}},{"$f":"'MMA Rev-Exp Summary'!AB$69","v":{"v":0,"d":"$0.00"}},{"$f":"'MMA Rev-Exp Summary'!AC$69","v":{"v":0,"d":"$0.00"}},{"$f":"'MMA Rev-Exp Summary'!AD$69","v":{"v":0,"d":"$0.00"}},{"$f":"'MMA Rev-Exp Summary'!AE$69","v":{"v":0,"d":"$0.00"}},{"$f":"'MMA Rev-Exp Summary'!AF$69","v":{"v":0,"d":"$0.00"}},{"$f":"'MMA Rev-Exp Summary'!AG$69","v":{"v":0,"d":"$0.00"}},{"$f":"'MMA Rev-Exp Summary'!AH$69","v":{"v":0,"d":"$0.00"}},{"$f":"'MMA Rev-Exp Summary'!AI$69","v":{"v":0,"d":"$0.00"}},{"$f":"'MMA Rev-Exp Summary'!AJ$69","v":{"v":0,"d":"$0.00"}},{"v":0,"d":"$0.00"}]
["MMA",null,null,{"$f":"Jurat!I$1","v":0},{"$f":"Jurat!D$33","v":"00:00:00"},"Q3","2017-09-30","Summary","Operating Expense","Medical Benefits Expense","Other MMA Services","9.7","Other Services Settlements",{"$f":"'MMA Rev-Exp Summary'!Z$70","v":{"v":0,"d":"$0.00"}},{"$f":"'MMA Rev-Exp Summary'!AA$70","v":{"v":0,"d":"$0.00"}},{"$f":"'MMA Rev-Exp Summary'!AB$70","v":{"v":0,"d":"$0.00"}},{"$f":"'MMA Rev-Exp Summary'!AC$70","v":{"v":0,"d":"$0.00"}},{"$f":"'MMA Rev-Exp Summary'!AD$70","v":{"v":0,"d":"$0.00"}},{"$f":"'MMA Rev-Exp Summary'!AE$70","v":{"v":0,"d":"$0.00"}},{"$f":"'MMA Rev-Exp Summary'!AF$70","v":{"v":0,"d":"$0.00"}},{"$f":"'MMA Rev-Exp Summary'!AG$70","v":{"v":0,"d":"$0.00"}},{"$f":"'MMA Rev-Exp Summary'!AH$70","v":{"v":0,"d":"$0.00"}},{"$f":"'MMA Rev-Exp Summary'!AI$70","v":{"v":0,"d":"$0.00"}},{"$f":"'MMA Rev-Exp Summary'!AJ$70","v":{"v":0,"d":"$0.00"}},{"v":0,"d":"$0.00"}]
["MMA",null,null,{"$f":"Jurat!I$1","v":0},{"$f":"Jurat!D$33","v":"00:00:00"},"Q3","2017-09-30","Summary","Operating Expense","Medical Benefits Expense","Expanded Benefits","10.1","Expanded Benefits FFS",{"$f":"'MMA Rev-Exp Summary'!Z$72","v":{"v":0,"d":"$0.00"}},{"$f":"'MMA Rev-Exp Summary'!AA$72","v":{"v":0,"d":"$0.00"}},{"$f":"'MMA Rev-Exp Summary'!AB$72","v":{"v":0,"d":"$0.00"}},{"$f":"'MMA Rev-Exp Summary'!AC$72","v":{"v":0,"d":"$0.00"}},{"$f":"'MMA Rev-Exp Summary'!AD$72","v":{"v":0,"d":"$0.00"}},{"$f":"'MMA Rev-Exp Summary'!AE$72","v":{"v":0,"d":"$0.00"}},{"$f":"'MMA Rev-Exp Summary'!AF$72","v":{"v":0,"d":"$0.00"}},{"$f":"'MMA Rev-Exp Summary'!AG$72","v":{"v":0,"d":"$0.00"}},{"$f":"'MMA Rev-Exp Summary'!AH$72","v":{"v":0,"d":"$0.00"}},{"$f":"'MMA Rev-Exp Summary'!AI$72","v":{"v":0,"d":"$0.00"}},{"$f":"'MMA Rev-Exp Summary'!AJ$72","v":{"v":0,"d":"$0.00"}},{"v":0,"d":"$0.00"}]
["MMA",null,null,{"$f":"Jurat!I$1","v":0},{"$f":"Jurat!D$33","v":"00:00:00"},"Q3","2017-09-30","Summary","Operating Expense","Medical Benefits Expense","Expanded Benefits","10.2","Expanded benefits Subcapitation",{"$f":"'MMA Rev-Exp Summary'!Z$73","v":{"v":0,"d":"$0.00"}},{"$f":"'MMA Rev-Exp Summary'!AA$73","v":{"v":0,"d":"$0.00"}},{"$f":"'MMA Rev-Exp Summary'!AB$73","v":{"v":0,"d":"$0.00"}},{"$f":"'MMA Rev-Exp Summary'!AC$73","v":{"v":0,"d":"$0.00"}},{"$f":"'MMA Rev-Exp Summary'!AD$73","v":{"v":0,"d":"$0.00"}},{"$f":"'MMA Rev-Exp Summary'!AE$73","v":{"v":0,"d":"$0.00"}},{"$f":"'MMA Rev-Exp Summary'!AF$73","v":{"v":0,"d":"$0.00"}},{"$f":"'MMA Rev-Exp Summary'!AG$73","v":{"v":0,"d":"$0.00"}},{"$f":"'MMA Rev-Exp Summary'!AH$73","v":{"v":0,"d":"$0.00"}},{"$f":"'MMA Rev-Exp Summary'!AI$73","v":{"v":0,"d":"$0.00"}},{"$f":"'MMA Rev-Exp Summary'!AJ$73","v":{"v":0,"d":"$0.00"}},{"v":0,"d":"$0.00"}]
["MMA",null,null,{"$f":"Jurat!I$1","v":0},{"$f":"Jurat!D$33","v":"00:00:00"},"Q3","2017-09-30","Summary","Operating Expense","Medical Benefits Expense","Expanded Benefits","10.3","Ending IBNP for Expanded Benefits",{"$f":"'MMA Rev-Exp Summary'!Z$74","v":{"v":0,"d":"$0.00"}},{"$f":"'MMA Rev-Exp Summary'!AA$74","v":{"v":0,"d":"$0.00"}},{"$f":"'MMA Rev-Exp Summary'!AB$74","v":{"v":0,"d":"$0.00"}},{"$f":"'MMA Rev-Exp Summary'!AC$74","v":{"v":0,"d":"$0.00"}},{"$f":"'MMA Rev-Exp Summary'!AD$74","v":{"v":0,"d":"$0.00"}},{"$f":"'MMA Rev-Exp Summary'!AE$74","v":{"v":0,"d":"$0.00"}},{"$f":"'MMA Rev-Exp Summary'!AF$74","v":{"v":0,"d":"$0.00"}},{"$f":"'MMA Rev-Exp Summary'!AG$74","v":{"v":0,"d":"$0.00"}},{"$f":"'MMA Rev-Exp Summary'!AH$74","v":{"v":0,"d":"$0.00"}},{"$f":"'MMA Rev-Exp Summary'!AI$74","v":{"v":0,"d":"$0.00"}},{"$f":"'MMA Rev-Exp Summary'!AJ$74","v":{"v":0,"d":"$0.00"}},{"v":0,"d":"$0.00"}]
["MMA",null,null,{"$f":"Jurat!I$1","v":0},{"$f":"Jurat!D$33","v":"00:00:00"},"Q3","2017-09-30","Summary","Operating Expense","Medical Benefits Expense","Expanded Benefits","10.4","Expanded Benefits Settlements",{"$f":"'MMA Rev-Exp Summary'!Z$75","v":{"v":0,"d":"$0.00"}},{"$f":"'MMA Rev-Exp Summary'!AA$75","v":{"v":0,"d":"$0.00"}},{"$f":"'MMA Rev-Exp Summary'!AB$75","v":{"v":0,"d":"$0.00"}},{"$f":"'MMA Rev-Exp Summary'!AC$75","v":{"v":0,"d":"$0.00"}},{"$f":"'MMA Rev-Exp Summary'!AD$75","v":{"v":0,"d":"$0.00"}},{"$f":"'MMA Rev-Exp Summary'!AE$75","v":{"v":0,"d":"$0.00"}},{"$f":"'MMA Rev-Exp Summary'!AF$75","v":{"v":0,"d":"$0.00"}},{"$f":"'MMA Rev-Exp Summary'!AG$75","v":{"v":0,"d":"$0.00"}},{"$f":"'MMA Rev-Exp Summary'!AH$75","v":{"v":0,"d":"$0.00"}},{"$f":"'MMA Rev-Exp Summary'!AI$75","v":{"v":0,"d":"$0.00"}},{"$f":"'MMA Rev-Exp Summary'!AJ$75","v":{"v":0,"d":"$0.00"}},{"v":0,"d":"$0.00"}]
["MMA",null,null,{"$f":"Jurat!I$1","v":0},{"$f":"Jurat!D$33","v":"00:00:00"},"Q3","2017-09-30","Summary","Operating Expense","Medical Benefits Expense","Other Medical","11.5","TPL & Fraud/Abuse Recoveries",{"$f":"'MMA Rev-Exp Summary'!Z$81","v":{"v":0,"d":"$0.00"}},{"$f":"'MMA Rev-Exp Summary'!AA$81","v":{"v":0,"d":"$0.00"}},{"$f":"'MMA Rev-Exp Summary'!AB$81","v":{"v":0,"d":"$0.00"}},{"$f":"'MMA Rev-Exp Summary'!AC$81","v":{"v":0,"d":"$0.00"}},{"$f":"'MMA Rev-Exp Summary'!AD$81","v":{"v":0,"d":"$0.00"}},{"$f":"'MMA Rev-Exp Summary'!AE$81","v":{"v":0,"d":"$0.00"}},{"$f":"'MMA Rev-Exp Summary'!AF$81","v":{"v":0,"d":"$0.00"}},{"$f":"'MMA Rev-Exp Summary'!AG$81","v":{"v":0,"d":"$0.00"}},{"$f":"'MMA Rev-Exp Summary'!AH$81","v":{"v":0,"d":"$0.00"}},{"$f":"'MMA Rev-Exp Summary'!AI$81","v":{"v":0,"d":"$0.00"}},{"$f":"'MMA Rev-Exp Summary'!AJ$81","v":{"v":0,"d":"$0.00"}},{"v":0,"d":"$0.00"}]
["MMA",null,null,{"$f":"Jurat!I$1","v":0},{"$f":"Jurat!D$33","v":"00:00:00"},"Q3","2017-09-30","Summary","Operating Expense","Medical Benefits Expense","Other Medical","11.6.1","Premium Deficiency Reserve",{"$f":"'MMA Rev-Exp Summary'!Z$82","v":{"v":0,"d":"$0.00"}},{"$f":"'MMA Rev-Exp Summary'!AA$82","v":{"v":0,"d":"$0.00"}},{"$f":"'MMA Rev-Exp Summary'!AB$82","v":{"v":0,"d":"$0.00"}},{"$f":"'MMA Rev-Exp Summary'!AC$82","v":{"v":0,"d":"$0.00"}},{"$f":"'MMA Rev-Exp Summary'!AD$82","v":{"v":0,"d":"$0.00"}},{"$f":"'MMA Rev-Exp Summary'!AE$82","v":{"v":0,"d":"$0.00"}},{"$f":"'MMA Rev-Exp Summary'!AF$82","v":{"v":0,"d":"$0.00"}},{"$f":"'MMA Rev-Exp Summary'!AG$82","v":{"v":0,"d":"$0.00"}},{"$f":"'MMA Rev-Exp Summary'!AH$82","v":{"v":0,"d":"$0.00"}},{"$f":"'MMA Rev-Exp Summary'!AI$82","v":{"v":0,"d":"$0.00"}},{"$f":"'MMA Rev-Exp Summary'!AJ$82","v":{"v":0,"d":"$0.00"}},{"v":0,"d":"$0.00"}]
["MMA",null,null,{"$f":"Jurat!I$1","v":0},{"$f":"Jurat!D$33","v":"00:00:00"},"Q3","2017-09-30","Summary","Operating Expense","Medical Benefits Expense","Other Medical","11.8","Reinsurance Premiums",{"$f":"'MMA Rev-Exp Summary'!Z$84","v":{"v":0,"d":"$0.00"}},{"$f":"'MMA Rev-Exp Summary'!AA$84","v":{"v":0,"d":"$0.00"}},{"$f":"'MMA Rev-Exp Summary'!AB$84","v":{"v":0,"d":"$0.00"}},{"$f":"'MMA Rev-Exp Summary'!AC$84","v":{"v":0,"d":"$0.00"}},{"$f":"'MMA Rev-Exp Summary'!AD$84","v":{"v":0,"d":"$0.00"}},{"$f":"'MMA Rev-Exp Summary'!AE$84","v":{"v":0,"d":"$0.00"}},{"$f":"'MMA Rev-Exp Summary'!AF$84","v":{"v":0,"d":"$0.00"}},{"$f":"'MMA Rev-Exp Summary'!AG$84","v":{"v":0,"d":"$0.00"}},{"$f":"'MMA Rev-Exp Summary'!AH$84","v":{"v":0,"d":"$0.00"}},{"$f":"'MMA Rev-Exp Summary'!AI$84","v":{"v":0,"d":"$0.00"}},{"$f":"'MMA Rev-Exp Summary'!AJ$84","v":{"v":0,"d":"$0.00"}},{"v":0,"d":"$0.00"}]
["MMA",null,null,{"$f":"Jurat!I$1","v":0},{"$f":"Jurat!D$33","v":"00:00:00"},"Q3","2017-09-30","Summary","Operating Expense","Medical Benefits Expense","Other Medical","11.9","Reinsurance Recoveries",{"$f":"'MMA Rev-Exp Summary'!Z$85","v":{"v":0,"d":"$0.00"}},{"$f":"'MMA Rev-Exp Summary'!AA$85","v":{"v":0,"d":"$0.00"}},{"$f":"'MMA Rev-Exp Summary'!AB$85","v":{"v":0,"d":"$0.00"}},{"$f":"'MMA Rev-Exp Summary'!AC$85","v":{"v":0,"d":"$0.00"}},{"$f":"'MMA Rev-Exp Summary'!AD$85","v":{"v":0,"d":"$0.00"}},{"$f":"'MMA Rev-Exp Summary'!AE$85","v":{"v":0,"d":"$0.00"}},{"$f":"'MMA Rev-Exp Summary'!AF$85","v":{"v":0,"d":"$0.00"}},{"$f":"'MMA Rev-Exp Summary'!AG$85","v":{"v":0,"d":"$0.00"}},{"$f":"'MMA Rev-Exp Summary'!AH$85","v":{"v":0,"d":"$0.00"}},{"$f":"'MMA Rev-Exp Summary'!AI$85","v":{"v":0,"d":"$0.00"}},{"$f":"'MMA Rev-Exp Summary'!AJ$85","v":{"v":0,"d":"$0.00"}},{"v":0,"d":"$0.00"}]
["MMA",null,null,{"$f":"Jurat!I$1","v":0},{"$f":"Jurat!D$33","v":"00:00:00"},"Q3","2017-09-30","Summary","Operating Expense","Administrative Expense","Administrative","12.1","Salaries & Benefits",{"$f":"'MMA Rev-Exp Summary'!Z$90","v":{"v":0,"d":"$0.00"}},{"v":0,"d":"$0.00"},{"v":0,"d":"$0.00"},{"v":0,"d":"$0.00"},{"v":0,"d":"$0.00"},{"v":0,"d":"$0.00"},{"v":0,"d":"$0.00"},{"v":0,"d":"$0.00"},{"v":0,"d":"$0.00"},{"v":0,"d":"$0.00"},{"v":0,"d":"$0.00"},{"v":0,"d":"$0.00"}]
["MMA",null,null,{"$f":"Jurat!I$1","v":0},{"$f":"Jurat!D$33","v":"00:00:00"},"Q3","2017-09-30","Summary","Operating Expense","Administrative Expense","Administrative","12.2","Administrative Services",{"$f":"'MMA Rev-Exp Summary'!Z$91","v":{"v":0,"d":"$0.00"}},{"v":0,"d":"$0.00"},{"v":0,"d":"$0.00"},{"v":0,"d":"$0.00"},{"v":0,"d":"$0.00"},{"v":0,"d":"$0.00"},{"v":0,"d":"$0.00"},{"v":0,"d":"$0.00"},{"v":0,"d":"$0.00"},{"v":0,"d":"$0.00"},{"v":0,"d":"$0.00"},{"v":0,"d":"$0.00"}]
["MMA",null,null,{"$f":"Jurat!I$1","v":0},{"$f":"Jurat!D$33","v":"00:00:00"},"Q3","2017-09-30","Summary","Operating Expense","Administrative Expense","Administrative","12.3","Information Systems",{"$f":"'MMA Rev-Exp Summary'!Z$92","v":{"v":0,"d":"$0.00"}},{"v":0,"d":"$0.00"},{"v":0,"d":"$0.00"},{"v":0,"d":"$0.00"},{"v":0,"d":"$0.00"},{"v":0,"d":"$0.00"},{"v":0,"d":"$0.00"},{"v":0,"d":"$0.00"},{"v":0,"d":"$0.00"},{"v":0,"d":"$0.00"},{"v":0,"d":"$0.00"},{"v":0,"d":"$0.00"}]
["MMA",null,null,{"$f":"Jurat!I$1","v":0},{"$f":"Jurat!D$33","v":"00:00:00"},"Q3","2017-09-30","Summary","Operating Expense","Administrative Expense","Administrative","12.4","Marketing Expenses",{"$f":"'MMA Rev-Exp Summary'!Z$93","v":{"v":0,"d":"$0.00"}},{"v":0,"d":"$0.00"},{"v":0,"d":"$0.00"},{"v":0,"d":"$0.00"},{"v":0,"d":"$0.00"},{"v":0,"d":"$0.00"},{"v":0,"d":"$0.00"},{"v":0,"d":"$0.00"},{"v":0,"d":"$0.00"},{"v":0,"d":"$0.00"},{"v":0,"d":"$0.00"},{"v":0,"d":"$0.00"}]
["MMA",null,null,{"$f":"Jurat!I$1","v":0},{"$f":"Jurat!D$33","v":"00:00:00"},"Q3","2017-09-30","Summary","Operating Expense","Administrative Expense","Administrative","12.5","General  Administration",{"$f":"'MMA Rev-Exp Summary'!Z$94","v":{"v":0,"d":"$0.00"}},{"v":0,"d":"$0.00"},{"v":0,"d":"$0.00"},{"v":0,"d":"$0.00"},{"v":0,"d":"$0.00"},{"v":0,"d":"$0.00"},{"v":0,"d":"$0.00"},{"v":0,"d":"$0.00"},{"v":0,"d":"$0.00"},{"v":0,"d":"$0.00"},{"v":0,"d":"$0.00"},{"v":0,"d":"$0.00"}]
["MMA",null,null,{"$f":"Jurat!I$1","v":0},{"$f":"Jurat!D$33","v":"00:00:00"},"Q3","2017-09-30","Summary","Operating Expense","Administrative Expense","Administrative","12.6","Compliance/Regulatory",{"$f":"'MMA Rev-Exp Summary'!Z$95","v":{"v":0,"d":"$0.00"}},{"v":0,"d":"$0.00"},{"v":0,"d":"$0.00"},{"v":0,"d":"$0.00"},{"v":0,"d":"$0.00"},{"v":0,"d":"$0.00"},{"v":0,"d":"$0.00"},{"v":0,"d":"$0.00"},{"v":0,"d":"$0.00"},{"v":0,"d":"$0.00"},{"v":0,"d":"$0.00"},{"v":0,"d":"$0.00"}]
["MMA",null,null,{"$f":"Jurat!I$1","v":0},{"$f":"Jurat!D$33","v":"00:00:00"},"Q3","2017-09-30","Summary","Operating Expense","Taxes & Fees","Taxes & Fees","13.1","State Premium tax",{"$f":"'MMA Rev-Exp Summary'!Z$97","v":{"v":0,"d":"$0.00"}},{"v":0,"d":"$0.00"},{"v":0,"d":"$0.00"},{"v":0,"d":"$0.00"},{"v":0,"d":"$0.00"},{"v":0,"d":"$0.00"},{"v":0,"d":"$0.00"},{"v":0,"d":"$0.00"},{"v":0,"d":"$0.00"},{"v":0,"d":"$0.00"},{"v":0,"d":"$0.00"},{"v":0,"d":"$0.00"}]
["MMA",null,null,{"$f":"Jurat!I$1","v":0},{"$f":"Jurat!D$33","v":"00:00:00"},"Q3","2017-09-30","Summary","Operating Expense","Taxes & Fees","Taxes & Fees","13.2","Department of Insurance Assessments",{"$f":"'MMA Rev-Exp Summary'!Z$98","v":{"v":0,"d":"$0.00"}},{"v":0,"d":"$0.00"},{"v":0,"d":"$0.00"},{"v":0,"d":"$0.00"},{"v":0,"d":"$0.00"},{"v":0,"d":"$0.00"},{"v":0,"d":"$0.00"},{"v":0,"d":"$0.00"},{"v":0,"d":"$0.00"},{"v":0,"d":"$0.00"},{"v":0,"d":"$0.00"},{"v":0,"d":"$0.00"}]
["MMA",null,null,{"$f":"Jurat!I$1","v":0},{"$f":"Jurat!D$33","v":"00:00:00"},"Q3","2017-09-30","Summary","Operating Expense","Taxes & Fees","Taxes & Fees","13.3","Section 9010 Health Insurance Providers Fee",{"$f":"'MMA Rev-Exp Summary'!Z$99","v":{"v":0,"d":"$0.00"}},{"v":0,"d":"$0.00"},{"v":0,"d":"$0.00"},{"v":0,"d":"$0.00"},{"v":0,"d":"$0.00"},{"v":0,"d":"$0.00"},{"v":0,"d":"$0.00"},{"v":0,"d":"$0.00"},{"v":0,"d":"$0.00"},{"v":0,"d":"$0.00"},{"v":0,"d":"$0.00"},{"v":0,"d":"$0.00"}]
["MMA",null,null,{"$f":"Jurat!I$1","v":0},{"$f":"Jurat!D$33","v":"00:00:00"},"Q3","2017-09-30","Summary","Non-Operating Expense","Income Tax Expense","Income Tax Expense","16.0","Income Tax Expense",{"$f":"'MMA Rev-Exp Summary'!Z$106","v":{"v":0,"d":"$0.00"}},{"v":0,"d":"$0.00"},{"v":0,"d":"$0.00"},{"v":0,"d":"$0.00"},{"v":0,"d":"$0.00"},{"v":0,"d":"$0.00"},{"v":0,"d":"$0.00"},{"v":0,"d":"$0.00"},{"v":0,"d":"$0.00"},{"v":0,"d":"$0.00"},{"v":0,"d":"$0.00"},{"v":0,"d":"$0.00"}]
["MMA",null,null,{"$f":"Jurat!I$1","v":0},{"$f":"Jurat!D$33","v":"00:00:00"},"Q4","2017-12-31","Summary","Member Months","Member Months","Member Months",null,"Member Months",{"$f":"'MMA Rev-Exp Summary'!AK$9","v":{"v":0,"d":"$0.00"}},{"$f":"'MMA Rev-Exp Summary'!AL$9","v":{"v":0,"d":"$0.00"}},{"$f":"'MMA Rev-Exp Summary'!AM$9","v":{"v":0,"d":"$0.00"}},{"$f":"'MMA Rev-Exp Summary'!AN$9","v":{"v":0,"d":"$0.00"}},{"$f":"'MMA Rev-Exp Summary'!AO$9","v":{"v":0,"d":"$0.00"}},{"$f":"'MMA Rev-Exp Summary'!AP$9","v":{"v":0,"d":"$0.00"}},{"$f":"'MMA Rev-Exp Summary'!AQ$9","v":{"v":0,"d":"$0.00"}},{"$f":"'MMA Rev-Exp Summary'!AR$9","v":{"v":0,"d":"$0.00"}},{"$f":"'MMA Rev-Exp Summary'!AS$9","v":{"v":0,"d":"$0.00"}},{"$f":"'MMA Rev-Exp Summary'!AT$9","v":{"v":0,"d":"$0.00"}},{"$f":"'MMA Rev-Exp Summary'!AU$9","v":{"v":0,"d":"$0.00"}},{"v":0,"d":"$0.00"}]
["MMA",null,null,{"$f":"Jurat!I$1","v":0},{"$f":"Jurat!D$33","v":"00:00:00"},"Q4","2017-12-31","Summary","Operating Revenue","Capitation","Capitation",1.1,"Capitation",{"$f":"'MMA Rev-Exp Summary'!AK$11","v":{"v":0,"d":"$0.00"}},{"$f":"'MMA Rev-Exp Summary'!AL$11","v":{"v":0,"d":"$0.00"}},{"$f":"'MMA Rev-Exp Summary'!AM$11","v":{"v":0,"d":"$0.00"}},{"$f":"'MMA Rev-Exp Summary'!AN$11","v":{"v":0,"d":"$0.00"}},{"$f":"'MMA Rev-Exp Summary'!AO$11","v":{"v":0,"d":"$0.00"}},{"$f":"'MMA Rev-Exp Summary'!AP$11","v":{"v":0,"d":"$0.00"}},{"$f":"'MMA Rev-Exp Summary'!AQ$11","v":{"v":0,"d":"$0.00"}},{"$f":"'MMA Rev-Exp Summary'!AR$11","v":{"v":0,"d":"$0.00"}},{"$f":"'MMA Rev-Exp Summary'!AS$11","v":{"v":0,"d":"$0.00"}},{"$f":"'MMA Rev-Exp Summary'!AT$11","v":{"v":0,"d":"$0.00"}},{"$f":"'MMA Rev-Exp Summary'!AU$11","v":{"v":0,"d":"$0.00"}},{"v":0,"d":"$0.00"}]
["MMA",null,null,{"$f":"Jurat!I$1","v":0},{"$f":"Jurat!D$33","v":"00:00:00"},"Q4","2017-12-31","Summary","Operating Revenue","Kick Payments","Kick Payments - Transplant",1.2,"Transplant Kick Payments",{"$f":"'MMA Rev-Exp Summary'!AK$12","v":{"v":0,"d":"$0.00"}},{"$f":"'MMA Rev-Exp Summary'!AL$12","v":{"v":0,"d":"$0.00"}},{"$f":"'MMA Rev-Exp Summary'!AM$12","v":{"v":0,"d":"$0.00"}},{"$f":"'MMA Rev-Exp Summary'!AN$12","v":{"v":0,"d":"$0.00"}},{"$f":"'MMA Rev-Exp Summary'!AO$12","v":{"v":0,"d":"$0.00"}},{"$f":"'MMA Rev-Exp Summary'!AP$12","v":{"v":0,"d":"$0.00"}},{"$f":"'MMA Rev-Exp Summary'!AQ$12","v":{"v":0,"d":"$0.00"}},{"$f":"'MMA Rev-Exp Summary'!AR$12","v":{"v":0,"d":"$0.00"}},{"$f":"'MMA Rev-Exp Summary'!AS$12","v":{"v":0,"d":"$0.00"}},{"$f":"'MMA Rev-Exp Summary'!AT$12","v":{"v":0,"d":"$0.00"}},{"$f":"'MMA Rev-Exp Summary'!AU$12","v":{"v":0,"d":"$0.00"}},{"v":0,"d":"$0.00"}]
["MMA",null,null,{"$f":"Jurat!I$1","v":0},{"$f":"Jurat!D$33","v":"00:00:00"},"Q4","2017-12-31","Summary","Operating Revenue","Kick Payments","Kick Payments - Hep C","1.3","Hepatitis C Kick Payments",{"$f":"'MMA Rev-Exp Summary'!AK$13","v":{"v":0,"d":"$0.00"}},{"$f":"'MMA Rev-Exp Summary'!AL$13","v":{"v":0,"d":"$0.00"}},{"$f":"'MMA Rev-Exp Summary'!AM$13","v":{"v":0,"d":"$0.00"}},{"$f":"'MMA Rev-Exp Summary'!AN$13","v":{"v":0,"d":"$0.00"}},{"$f":"'MMA Rev-Exp Summary'!AO$13","v":{"v":0,"d":"$0.00"}},{"$f":"'MMA Rev-Exp Summary'!AP$13","v":{"v":0,"d":"$0.00"}},{"$f":"'MMA Rev-Exp Summary'!AQ$13","v":{"v":0,"d":"$0.00"}},{"$f":"'MMA Rev-Exp Summary'!AR$13","v":{"v":0,"d":"$0.00"}},{"$f":"'MMA Rev-Exp Summary'!AS$13","v":{"v":0,"d":"$0.00"}},{"$f":"'MMA Rev-Exp Summary'!AT$13","v":{"v":0,"d":"$0.00"}},{"$f":"'MMA Rev-Exp Summary'!AU$13","v":{"v":0,"d":"$0.00"}},{"v":0,"d":"$0.00"}]
["MMA",null,null,{"$f":"Jurat!I$1","v":0},{"$f":"Jurat!D$33","v":"00:00:00"},"Q4","2017-12-31","Summary","Operating Revenue","Kick Payments","Kick Payments - Maternity","1.4.1","Maternity Kick Payments",{"$f":"'MMA Rev-Exp Summary'!AK$14","v":{"v":0,"d":"$0.00"}},{"$f":"'MMA Rev-Exp Summary'!AL$14","v":{"v":0,"d":"$0.00"}},{"$f":"'MMA Rev-Exp Summary'!AM$14","v":{"v":0,"d":"$0.00"}},{"$f":"'MMA Rev-Exp Summary'!AN$14","v":{"v":0,"d":"$0.00"}},{"$f":"'MMA Rev-Exp Summary'!AO$14","v":{"v":0,"d":"$0.00"}},{"$f":"'MMA Rev-Exp Summary'!AP$14","v":{"v":0,"d":"$0.00"}},{"$f":"'MMA Rev-Exp Summary'!AQ$14","v":{"v":0,"d":"$0.00"}},{"$f":"'MMA Rev-Exp Summary'!AR$14","v":{"v":0,"d":"$0.00"}},{"$f":"'MMA Rev-Exp Summary'!AS$14","v":{"v":0,"d":"$0.00"}},{"$f":"'MMA Rev-Exp Summary'!AT$14","v":{"v":0,"d":"$0.00"}},{"$f":"'MMA Rev-Exp Summary'!AU$14","v":{"v":0,"d":"$0.00"}},{"v":0,"d":"$0.00"}]
["MMA",null,null,{"$f":"Jurat!I$1","v":0},{"$f":"Jurat!D$33","v":"00:00:00"},"Q4","2017-12-31","Summary","Operating Revenue","Other Revenue","Other Revenue - 9010","1.5","ACA § 9010 related payments",{"$f":"'MMA Rev-Exp Summary'!AK$15","v":{"v":0,"d":"$0.00"}},{"$f":"'MMA Rev-Exp Summary'!AL$15","v":{"v":0,"d":"$0.00"}},{"$f":"'MMA Rev-Exp Summary'!AM$15","v":{"v":0,"d":"$0.00"}},{"$f":"'MMA Rev-Exp Summary'!AN$15","v":{"v":0,"d":"$0.00"}},{"$f":"'MMA Rev-Exp Summary'!AO$15","v":{"v":0,"d":"$0.00"}},{"$f":"'MMA Rev-Exp Summary'!AP$15","v":{"v":0,"d":"$0.00"}},{"$f":"'MMA Rev-Exp Summary'!AQ$15","v":{"v":0,"d":"$0.00"}},{"$f":"'MMA Rev-Exp Summary'!AR$15","v":{"v":0,"d":"$0.00"}},{"$f":"'MMA Rev-Exp Summary'!AS$15","v":{"v":0,"d":"$0.00"}},{"$f":"'MMA Rev-Exp Summary'!AT$15","v":{"v":0,"d":"$0.00"}},{"$f":"'MMA Rev-Exp Summary'!AU$15","v":{"v":0,"d":"$0.00"}},{"v":0,"d":"$0.00"}]
["MMA",null,null,{"$f":"Jurat!I$1","v":0},{"$f":"Jurat!D$33","v":"00:00:00"},"Q4","2017-12-31","Summary","Operating Revenue","Other Revenue","Other Revenue","1.6","Other Revenue",{"$f":"'MMA Rev-Exp Summary'!AK$16","v":{"v":0,"d":"$0.00"}},{"$f":"'MMA Rev-Exp Summary'!AL$16","v":{"v":0,"d":"$0.00"}},{"$f":"'MMA Rev-Exp Summary'!AM$16","v":{"v":0,"d":"$0.00"}},{"$f":"'MMA Rev-Exp Summary'!AN$16","v":{"v":0,"d":"$0.00"}},{"$f":"'MMA Rev-Exp Summary'!AO$16","v":{"v":0,"d":"$0.00"}},{"$f":"'MMA Rev-Exp Summary'!AP$16","v":{"v":0,"d":"$0.00"}},{"$f":"'MMA Rev-Exp Summary'!AQ$16","v":{"v":0,"d":"$0.00"}},{"$f":"'MMA Rev-Exp Summary'!AR$16","v":{"v":0,"d":"$0.00"}},{"$f":"'MMA Rev-Exp Summary'!AS$16","v":{"v":0,"d":"$0.00"}},{"$f":"'MMA Rev-Exp Summary'!AT$16","v":{"v":0,"d":"$0.00"}},{"$f":"'MMA Rev-Exp Summary'!AU$16","v":{"v":0,"d":"$0.00"}},{"v":0,"d":"$0.00"}]
["MMA",null,null,{"$f":"Jurat!I$1","v":0},{"$f":"Jurat!D$33","v":"00:00:00"},"Q4","2017-12-31","Summary","Operating Expense","Medical Benefits Expense","Hospital Services",2.1,"Inpatient FFS",{"$f":"'MMA Rev-Exp Summary'!AK$20","v":{"v":0,"d":"$0.00"}},{"$f":"'MMA Rev-Exp Summary'!AL$20","v":{"v":0,"d":"$0.00"}},{"$f":"'MMA Rev-Exp Summary'!AM$20","v":{"v":0,"d":"$0.00"}},{"$f":"'MMA Rev-Exp Summary'!AN$20","v":{"v":0,"d":"$0.00"}},{"$f":"'MMA Rev-Exp Summary'!AO$20","v":{"v":0,"d":"$0.00"}},{"$f":"'MMA Rev-Exp Summary'!AP$20","v":{"v":0,"d":"$0.00"}},{"$f":"'MMA Rev-Exp Summary'!AQ$20","v":{"v":0,"d":"$0.00"}},{"$f":"'MMA Rev-Exp Summary'!AR$20","v":{"v":0,"d":"$0.00"}},{"$f":"'MMA Rev-Exp Summary'!AS$20","v":{"v":0,"d":"$0.00"}},{"$f":"'MMA Rev-Exp Summary'!AT$20","v":{"v":0,"d":"$0.00"}},{"$f":"'MMA Rev-Exp Summary'!AU$20","v":{"v":0,"d":"$0.00"}},{"v":0,"d":"$0.00"}]
["MMA",null,null,{"$f":"Jurat!I$1","v":0},{"$f":"Jurat!D$33","v":"00:00:00"},"Q4","2017-12-31","Summary","Operating Expense","Medical Benefits Expense","Hospital Services",2.2,"Ending IBNP for Inpatient Hospital Services",{"$f":"'MMA Rev-Exp Summary'!AK$21","v":{"v":0,"d":"$0.00"}},{"$f":"'MMA Rev-Exp Summary'!AL$21","v":{"v":0,"d":"$0.00"}},{"$f":"'MMA Rev-Exp Summary'!AM$21","v":{"v":0,"d":"$0.00"}},{"$f":"'MMA Rev-Exp Summary'!AN$21","v":{"v":0,"d":"$0.00"}},{"$f":"'MMA Rev-Exp Summary'!AO$21","v":{"v":0,"d":"$0.00"}},{"$f":"'MMA Rev-Exp Summary'!AP$21","v":{"v":0,"d":"$0.00"}},{"$f":"'MMA Rev-Exp Summary'!AQ$21","v":{"v":0,"d":"$0.00"}},{"$f":"'MMA Rev-Exp Summary'!AR$21","v":{"v":0,"d":"$0.00"}},{"$f":"'MMA Rev-Exp Summary'!AS$21","v":{"v":0,"d":"$0.00"}},{"$f":"'MMA Rev-Exp Summary'!AT$21","v":{"v":0,"d":"$0.00"}},{"$f":"'MMA Rev-Exp Summary'!AU$21","v":{"v":0,"d":"$0.00"}},{"v":0,"d":"$0.00"}]
["MMA",null,null,{"$f":"Jurat!I$1","v":0},{"$f":"Jurat!D$33","v":"00:00:00"},"Q4","2017-12-31","Summary","Operating Expense","Medical Benefits Expense","Hospital Services",2.3,"Outpatient FFS: ER",{"$f":"'MMA Rev-Exp Summary'!AK$22","v":{"v":0,"d":"$0.00"}},{"$f":"'MMA Rev-Exp Summary'!AL$22","v":{"v":0,"d":"$0.00"}},{"$f":"'MMA Rev-Exp Summary'!AM$22","v":{"v":0,"d":"$0.00"}},{"$f":"'MMA Rev-Exp Summary'!AN$22","v":{"v":0,"d":"$0.00"}},{"$f":"'MMA Rev-Exp Summary'!AO$22","v":{"v":0,"d":"$0.00"}},{"$f":"'MMA Rev-Exp Summary'!AP$22","v":{"v":0,"d":"$0.00"}},{"$f":"'MMA Rev-Exp Summary'!AQ$22","v":{"v":0,"d":"$0.00"}},{"$f":"'MMA Rev-Exp Summary'!AR$22","v":{"v":0,"d":"$0.00"}},{"$f":"'MMA Rev-Exp Summary'!AS$22","v":{"v":0,"d":"$0.00"}},{"$f":"'MMA Rev-Exp Summary'!AT$22","v":{"v":0,"d":"$0.00"}},{"$f":"'MMA Rev-Exp Summary'!AU$22","v":{"v":0,"d":"$0.00"}},{"v":0,"d":"$0.00"}]
["MMA",null,null,{"$f":"Jurat!I$1","v":0},{"$f":"Jurat!D$33","v":"00:00:00"},"Q4","2017-12-31","Summary","Operating Expense","Medical Benefits Expense","Hospital Services",2.4,"Outpatient FFS: Other than ER ",{"$f":"'MMA Rev-Exp Summary'!AK$23","v":{"v":0,"d":"$0.00"}},{"$f":"'MMA Rev-Exp Summary'!AL$23","v":{"v":0,"d":"$0.00"}},{"$f":"'MMA Rev-Exp Summary'!AM$23","v":{"v":0,"d":"$0.00"}},{"$f":"'MMA Rev-Exp Summary'!AN$23","v":{"v":0,"d":"$0.00"}},{"$f":"'MMA Rev-Exp Summary'!AO$23","v":{"v":0,"d":"$0.00"}},{"$f":"'MMA Rev-Exp Summary'!AP$23","v":{"v":0,"d":"$0.00"}},{"$f":"'MMA Rev-Exp Summary'!AQ$23","v":{"v":0,"d":"$0.00"}},{"$f":"'MMA Rev-Exp Summary'!AR$23","v":{"v":0,"d":"$0.00"}},{"$f":"'MMA Rev-Exp Summary'!AS$23","v":{"v":0,"d":"$0.00"}},{"$f":"'MMA Rev-Exp Summary'!AT$23","v":{"v":0,"d":"$0.00"}},{"$f":"'MMA Rev-Exp Summary'!AU$23","v":{"v":0,"d":"$0.00"}},{"v":0,"d":"$0.00"}]
["MMA",null,null,{"$f":"Jurat!I$1","v":0},{"$f":"Jurat!D$33","v":"00:00:00"},"Q4","2017-12-31","Summary","Operating Expense","Medical Benefits Expense","Hospital Services",2.5,"Ending IBNP for Outpatient Hospital Services",{"$f":"'MMA Rev-Exp Summary'!AK$24","v":{"v":0,"d":"$0.00"}},{"$f":"'MMA Rev-Exp Summary'!AL$24","v":{"v":0,"d":"$0.00"}},{"$f":"'MMA Rev-Exp Summary'!AM$24","v":{"v":0,"d":"$0.00"}},{"$f":"'MMA Rev-Exp Summary'!AN$24","v":{"v":0,"d":"$0.00"}},{"$f":"'MMA Rev-Exp Summary'!AO$24","v":{"v":0,"d":"$0.00"}},{"$f":"'MMA Rev-Exp Summary'!AP$24","v":{"v":0,"d":"$0.00"}},{"$f":"'MMA Rev-Exp Summary'!AQ$24","v":{"v":0,"d":"$0.00"}},{"$f":"'MMA Rev-Exp Summary'!AR$24","v":{"v":0,"d":"$0.00"}},{"$f":"'MMA Rev-Exp Summary'!AS$24","v":{"v":0,"d":"$0.00"}},{"$f":"'MMA Rev-Exp Summary'!AT$24","v":{"v":0,"d":"$0.00"}},{"$f":"'MMA Rev-Exp Summary'!AU$24","v":{"v":0,"d":"$0.00"}},{"v":0,"d":"$0.00"}]
["MMA",null,null,{"$f":"Jurat!I$1","v":0},{"$f":"Jurat!D$33","v":"00:00:00"},"Q4","2017-12-31","Summary","Operating Expense","Medical Benefits Expense","Hospital Services","2.6","Subcapitated Hospital Services",{"$f":"'MMA Rev-Exp Summary'!AK$25","v":{"v":0,"d":"$0.00"}},{"$f":"'MMA Rev-Exp Summary'!AL$25","v":{"v":0,"d":"$0.00"}},{"$f":"'MMA Rev-Exp Summary'!AM$25","v":{"v":0,"d":"$0.00"}},{"$f":"'MMA Rev-Exp Summary'!AN$25","v":{"v":0,"d":"$0.00"}},{"$f":"'MMA Rev-Exp Summary'!AO$25","v":{"v":0,"d":"$0.00"}},{"$f":"'MMA Rev-Exp Summary'!AP$25","v":{"v":0,"d":"$0.00"}},{"$f":"'MMA Rev-Exp Summary'!AQ$25","v":{"v":0,"d":"$0.00"}},{"$f":"'MMA Rev-Exp Summary'!AR$25","v":{"v":0,"d":"$0.00"}},{"$f":"'MMA Rev-Exp Summary'!AS$25","v":{"v":0,"d":"$0.00"}},{"$f":"'MMA Rev-Exp Summary'!AT$25","v":{"v":0,"d":"$0.00"}},{"$f":"'MMA Rev-Exp Summary'!AU$25","v":{"v":0,"d":"$0.00"}},{"v":0,"d":"$0.00"}]
["MMA",null,null,{"$f":"Jurat!I$1","v":0},{"$f":"Jurat!D$33","v":"00:00:00"},"Q4","2017-12-31","Summary","Operating Expense","Medical Benefits Expense","Hospital Services","2.7","Hospital Settlements",{"$f":"'MMA Rev-Exp Summary'!AK$26","v":{"v":0,"d":"$0.00"}},{"$f":"'MMA Rev-Exp Summary'!AL$26","v":{"v":0,"d":"$0.00"}},{"$f":"'MMA Rev-Exp Summary'!AM$26","v":{"v":0,"d":"$0.00"}},{"$f":"'MMA Rev-Exp Summary'!AN$26","v":{"v":0,"d":"$0.00"}},{"$f":"'MMA Rev-Exp Summary'!AO$26","v":{"v":0,"d":"$0.00"}},{"$f":"'MMA Rev-Exp Summary'!AP$26","v":{"v":0,"d":"$0.00"}},{"$f":"'MMA Rev-Exp Summary'!AQ$26","v":{"v":0,"d":"$0.00"}},{"$f":"'MMA Rev-Exp Summary'!AR$26","v":{"v":0,"d":"$0.00"}},{"$f":"'MMA Rev-Exp Summary'!AS$26","v":{"v":0,"d":"$0.00"}},{"$f":"'MMA Rev-Exp Summary'!AT$26","v":{"v":0,"d":"$0.00"}},{"$f":"'MMA Rev-Exp Summary'!AU$26","v":{"v":0,"d":"$0.00"}},{"v":0,"d":"$0.00"}]
["MMA",null,null,{"$f":"Jurat!I$1","v":0},{"$f":"Jurat!D$33","v":"00:00:00"},"Q4","2017-12-31","Summary","Operating Expense","Medical Benefits Expense","Hospital Services","2.7.1","Transplant Services",{"$f":"'MMA Rev-Exp Summary'!AK$27","v":{"v":0,"d":"$0.00"}},{"$f":"'MMA Rev-Exp Summary'!AL$27","v":{"v":0,"d":"$0.00"}},{"$f":"'MMA Rev-Exp Summary'!AM$27","v":{"v":0,"d":"$0.00"}},{"$f":"'MMA Rev-Exp Summary'!AN$27","v":{"v":0,"d":"$0.00"}},{"$f":"'MMA Rev-Exp Summary'!AO$27","v":{"v":0,"d":"$0.00"}},{"$f":"'MMA Rev-Exp Summary'!AP$27","v":{"v":0,"d":"$0.00"}},{"$f":"'MMA Rev-Exp Summary'!AQ$27","v":{"v":0,"d":"$0.00"}},{"$f":"'MMA Rev-Exp Summary'!AR$27","v":{"v":0,"d":"$0.00"}},{"$f":"'MMA Rev-Exp Summary'!AS$27","v":{"v":0,"d":"$0.00"}},{"$f":"'MMA Rev-Exp Summary'!AT$27","v":{"v":0,"d":"$0.00"}},{"$f":"'MMA Rev-Exp Summary'!AU$27","v":{"v":0,"d":"$0.00"}},{"v":0,"d":"$0.00"}]
["MMA",null,null,{"$f":"Jurat!I$1","v":0},{"$f":"Jurat!D$33","v":"00:00:00"},"Q4","2017-12-31","Summary","Operating Expense","Medical Benefits Expense","Professional Services",3.1,"Primary Care FFS",{"$f":"'MMA Rev-Exp Summary'!AK$29","v":{"v":0,"d":"$0.00"}},{"$f":"'MMA Rev-Exp Summary'!AL$29","v":{"v":0,"d":"$0.00"}},{"$f":"'MMA Rev-Exp Summary'!AM$29","v":{"v":0,"d":"$0.00"}},{"$f":"'MMA Rev-Exp Summary'!AN$29","v":{"v":0,"d":"$0.00"}},{"$f":"'MMA Rev-Exp Summary'!AO$29","v":{"v":0,"d":"$0.00"}},{"$f":"'MMA Rev-Exp Summary'!AP$29","v":{"v":0,"d":"$0.00"}},{"$f":"'MMA Rev-Exp Summary'!AQ$29","v":{"v":0,"d":"$0.00"}},{"$f":"'MMA Rev-Exp Summary'!AR$29","v":{"v":0,"d":"$0.00"}},{"$f":"'MMA Rev-Exp Summary'!AS$29","v":{"v":0,"d":"$0.00"}},{"$f":"'MMA Rev-Exp Summary'!AT$29","v":{"v":0,"d":"$0.00"}},{"$f":"'MMA Rev-Exp Summary'!AU$29","v":{"v":0,"d":"$0.00"}},{"v":0,"d":"$0.00"}]
["MMA",null,null,{"$f":"Jurat!I$1","v":0},{"$f":"Jurat!D$33","v":"00:00:00"},"Q4","2017-12-31","Summary","Operating Expense","Medical Benefits Expense","Professional Services",3.2,"Specialty Care FFS",{"$f":"'MMA Rev-Exp Summary'!AK$30","v":{"v":0,"d":"$0.00"}},{"$f":"'MMA Rev-Exp Summary'!AL$30","v":{"v":0,"d":"$0.00"}},{"$f":"'MMA Rev-Exp Summary'!AM$30","v":{"v":0,"d":"$0.00"}},{"$f":"'MMA Rev-Exp Summary'!AN$30","v":{"v":0,"d":"$0.00"}},{"$f":"'MMA Rev-Exp Summary'!AO$30","v":{"v":0,"d":"$0.00"}},{"$f":"'MMA Rev-Exp Summary'!AP$30","v":{"v":0,"d":"$0.00"}},{"$f":"'MMA Rev-Exp Summary'!AQ$30","v":{"v":0,"d":"$0.00"}},{"$f":"'MMA Rev-Exp Summary'!AR$30","v":{"v":0,"d":"$0.00"}},{"$f":"'MMA Rev-Exp Summary'!AS$30","v":{"v":0,"d":"$0.00"}},{"$f":"'MMA Rev-Exp Summary'!AT$30","v":{"v":0,"d":"$0.00"}},{"$f":"'MMA Rev-Exp Summary'!AU$30","v":{"v":0,"d":"$0.00"}},{"v":0,"d":"$0.00"}]
["MMA",null,null,{"$f":"Jurat!I$1","v":0},{"$f":"Jurat!D$33","v":"00:00:00"},"Q4","2017-12-31","Summary","Operating Expense","Medical Benefits Expense","Professional Services",3.3,"Other Professional FFS",{"$f":"'MMA Rev-Exp Summary'!AK$31","v":{"v":0,"d":"$0.00"}},{"$f":"'MMA Rev-Exp Summary'!AL$31","v":{"v":0,"d":"$0.00"}},{"$f":"'MMA Rev-Exp Summary'!AM$31","v":{"v":0,"d":"$0.00"}},{"$f":"'MMA Rev-Exp Summary'!AN$31","v":{"v":0,"d":"$0.00"}},{"$f":"'MMA Rev-Exp Summary'!AO$31","v":{"v":0,"d":"$0.00"}},{"$f":"'MMA Rev-Exp Summary'!AP$31","v":{"v":0,"d":"$0.00"}},{"$f":"'MMA Rev-Exp Summary'!AQ$31","v":{"v":0,"d":"$0.00"}},{"$f":"'MMA Rev-Exp Summary'!AR$31","v":{"v":0,"d":"$0.00"}},{"$f":"'MMA Rev-Exp Summary'!AS$31","v":{"v":0,"d":"$0.00"}},{"$f":"'MMA Rev-Exp Summary'!AT$31","v":{"v":0,"d":"$0.00"}},{"$f":"'MMA Rev-Exp Summary'!AU$31","v":{"v":0,"d":"$0.00"}},{"v":0,"d":"$0.00"}]
["MMA",null,null,{"$f":"Jurat!I$1","v":0},{"$f":"Jurat!D$33","v":"00:00:00"},"Q4","2017-12-31","Summary","Operating Expense","Medical Benefits Expense","Professional Services","3.4","§ 1202 PCP Payments to providers",{"$f":"'MMA Rev-Exp Summary'!AK$32","v":{"v":0,"d":"$0.00"}},{"$f":"'MMA Rev-Exp Summary'!AL$32","v":{"v":0,"d":"$0.00"}},{"$f":"'MMA Rev-Exp Summary'!AM$32","v":{"v":0,"d":"$0.00"}},{"$f":"'MMA Rev-Exp Summary'!AN$32","v":{"v":0,"d":"$0.00"}},{"$f":"'MMA Rev-Exp Summary'!AO$32","v":{"v":0,"d":"$0.00"}},{"$f":"'MMA Rev-Exp Summary'!AP$32","v":{"v":0,"d":"$0.00"}},{"$f":"'MMA Rev-Exp Summary'!AQ$32","v":{"v":0,"d":"$0.00"}},{"$f":"'MMA Rev-Exp Summary'!AR$32","v":{"v":0,"d":"$0.00"}},{"$f":"'MMA Rev-Exp Summary'!AS$32","v":{"v":0,"d":"$0.00"}},{"$f":"'MMA Rev-Exp Summary'!AT$32","v":{"v":0,"d":"$0.00"}},{"$f":"'MMA Rev-Exp Summary'!AU$32","v":{"v":0,"d":"$0.00"}},{"v":0,"d":"$0.00"}]
["MMA",null,null,{"$f":"Jurat!I$1","v":0},{"$f":"Jurat!D$33","v":"00:00:00"},"Q4","2017-12-31","Summary","Operating Expense","Medical Benefits Expense","Professional Services","3.5","Subcapitated Professional Services",{"$f":"'MMA Rev-Exp Summary'!AK$33","v":{"v":0,"d":"$0.00"}},{"$f":"'MMA Rev-Exp Summary'!AL$33","v":{"v":0,"d":"$0.00"}},{"$f":"'MMA Rev-Exp Summary'!AM$33","v":{"v":0,"d":"$0.00"}},{"$f":"'MMA Rev-Exp Summary'!AN$33","v":{"v":0,"d":"$0.00"}},{"$f":"'MMA Rev-Exp Summary'!AO$33","v":{"v":0,"d":"$0.00"}},{"$f":"'MMA Rev-Exp Summary'!AP$33","v":{"v":0,"d":"$0.00"}},{"$f":"'MMA Rev-Exp Summary'!AQ$33","v":{"v":0,"d":"$0.00"}},{"$f":"'MMA Rev-Exp Summary'!AR$33","v":{"v":0,"d":"$0.00"}},{"$f":"'MMA Rev-Exp Summary'!AS$33","v":{"v":0,"d":"$0.00"}},{"$f":"'MMA Rev-Exp Summary'!AT$33","v":{"v":0,"d":"$0.00"}},{"$f":"'MMA Rev-Exp Summary'!AU$33","v":{"v":0,"d":"$0.00"}},{"v":0,"d":"$0.00"}]
["MMA",null,null,{"$f":"Jurat!I$1","v":0},{"$f":"Jurat!D$33","v":"00:00:00"},"Q4","2017-12-31","Summary","Operating Expense","Medical Benefits Expense","Professional Services","3.6","Ending IBNP for Professional Services",{"$f":"'MMA Rev-Exp Summary'!AK$34","v":{"v":0,"d":"$0.00"}},{"$f":"'MMA Rev-Exp Summary'!AL$34","v":{"v":0,"d":"$0.00"}},{"$f":"'MMA Rev-Exp Summary'!AM$34","v":{"v":0,"d":"$0.00"}},{"$f":"'MMA Rev-Exp Summary'!AN$34","v":{"v":0,"d":"$0.00"}},{"$f":"'MMA Rev-Exp Summary'!AO$34","v":{"v":0,"d":"$0.00"}},{"$f":"'MMA Rev-Exp Summary'!AP$34","v":{"v":0,"d":"$0.00"}},{"$f":"'MMA Rev-Exp Summary'!AQ$34","v":{"v":0,"d":"$0.00"}},{"$f":"'MMA Rev-Exp Summary'!AR$34","v":{"v":0,"d":"$0.00"}},{"$f":"'MMA Rev-Exp Summary'!AS$34","v":{"v":0,"d":"$0.00"}},{"$f":"'MMA Rev-Exp Summary'!AT$34","v":{"v":0,"d":"$0.00"}},{"$f":"'MMA Rev-Exp Summary'!AU$34","v":{"v":0,"d":"$0.00"}},{"v":0,"d":"$0.00"}]
["MMA",null,null,{"$f":"Jurat!I$1","v":0},{"$f":"Jurat!D$33","v":"00:00:00"},"Q4","2017-12-31","Summary","Operating Expense","Medical Benefits Expense","Professional Services","3.7","Professional Services Settlements",{"$f":"'MMA Rev-Exp Summary'!AK$35","v":{"v":0,"d":"$0.00"}},{"$f":"'MMA Rev-Exp Summary'!AL$35","v":{"v":0,"d":"$0.00"}},{"$f":"'MMA Rev-Exp Summary'!AM$35","v":{"v":0,"d":"$0.00"}},{"$f":"'MMA Rev-Exp Summary'!AN$35","v":{"v":0,"d":"$0.00"}},{"$f":"'MMA Rev-Exp Summary'!AO$35","v":{"v":0,"d":"$0.00"}},{"$f":"'MMA Rev-Exp Summary'!AP$35","v":{"v":0,"d":"$0.00"}},{"$f":"'MMA Rev-Exp Summary'!AQ$35","v":{"v":0,"d":"$0.00"}},{"$f":"'MMA Rev-Exp Summary'!AR$35","v":{"v":0,"d":"$0.00"}},{"$f":"'MMA Rev-Exp Summary'!AS$35","v":{"v":0,"d":"$0.00"}},{"$f":"'MMA Rev-Exp Summary'!AT$35","v":{"v":0,"d":"$0.00"}},{"$f":"'MMA Rev-Exp Summary'!AU$35","v":{"v":0,"d":"$0.00"}},{"v":0,"d":"$0.00"}]
["MMA",null,null,{"$f":"Jurat!I$1","v":0},{"$f":"Jurat!D$33","v":"00:00:00"},"Q4","2017-12-31","Summary","Operating Expense","Medical Benefits Expense","Maternity Services","4.1.1","Maternity Services",{"$f":"'MMA Rev-Exp Summary'!AK$37","v":{"v":0,"d":"$0.00"}},{"$f":"'MMA Rev-Exp Summary'!AL$37","v":{"v":0,"d":"$0.00"}},{"$f":"'MMA Rev-Exp Summary'!AM$37","v":{"v":0,"d":"$0.00"}},{"$f":"'MMA Rev-Exp Summary'!AN$37","v":{"v":0,"d":"$0.00"}},{"$f":"'MMA Rev-Exp Summary'!AO$37","v":{"v":0,"d":"$0.00"}},{"$f":"'MMA Rev-Exp Summary'!AP$37","v":{"v":0,"d":"$0.00"}},{"$f":"'MMA Rev-Exp Summary'!AQ$37","v":{"v":0,"d":"$0.00"}},{"$f":"'MMA Rev-Exp Summary'!AR$37","v":{"v":0,"d":"$0.00"}},{"$f":"'MMA Rev-Exp Summary'!AS$37","v":{"v":0,"d":"$0.00"}},{"$f":"'MMA Rev-Exp Summary'!AT$37","v":{"v":0,"d":"$0.00"}},{"$f":"'MMA Rev-Exp Summary'!AU$37","v":{"v":0,"d":"$0.00"}},{"v":0,"d":"$0.00"}]
["MMA",null,null,{"$f":"Jurat!I$1","v":0},{"$f":"Jurat!D$33","v":"00:00:00"},"Q4","2017-12-31","Summary","Operating Expense","Medical Benefits Expense","Maternity Services","4.2.1","Ending IBNP for Maternity Services",{"$f":"'MMA Rev-Exp Summary'!AK$38","v":{"v":0,"d":"$0.00"}},{"$f":"'MMA Rev-Exp Summary'!AL$38","v":{"v":0,"d":"$0.00"}},{"$f":"'MMA Rev-Exp Summary'!AM$38","v":{"v":0,"d":"$0.00"}},{"$f":"'MMA Rev-Exp Summary'!AN$38","v":{"v":0,"d":"$0.00"}},{"$f":"'MMA Rev-Exp Summary'!AO$38","v":{"v":0,"d":"$0.00"}},{"$f":"'MMA Rev-Exp Summary'!AP$38","v":{"v":0,"d":"$0.00"}},{"$f":"'MMA Rev-Exp Summary'!AQ$38","v":{"v":0,"d":"$0.00"}},{"$f":"'MMA Rev-Exp Summary'!AR$38","v":{"v":0,"d":"$0.00"}},{"$f":"'MMA Rev-Exp Summary'!AS$38","v":{"v":0,"d":"$0.00"}},{"$f":"'MMA Rev-Exp Summary'!AT$38","v":{"v":0,"d":"$0.00"}},{"$f":"'MMA Rev-Exp Summary'!AU$38","v":{"v":0,"d":"$0.00"}},{"v":0,"d":"$0.00"}]
["MMA",null,null,{"$f":"Jurat!I$1","v":0},{"$f":"Jurat!D$33","v":"00:00:00"},"Q4","2017-12-31","Summary","Operating Expense","Medical Benefits Expense","Maternity Services","4.3.1","Maternity Settlements",{"$f":"'MMA Rev-Exp Summary'!AK$39","v":{"v":0,"d":"$0.00"}},{"$f":"'MMA Rev-Exp Summary'!AL$39","v":{"v":0,"d":"$0.00"}},{"$f":"'MMA Rev-Exp Summary'!AM$39","v":{"v":0,"d":"$0.00"}},{"$f":"'MMA Rev-Exp Summary'!AN$39","v":{"v":0,"d":"$0.00"}},{"$f":"'MMA Rev-Exp Summary'!AO$39","v":{"v":0,"d":"$0.00"}},{"$f":"'MMA Rev-Exp Summary'!AP$39","v":{"v":0,"d":"$0.00"}},{"$f":"'MMA Rev-Exp Summary'!AQ$39","v":{"v":0,"d":"$0.00"}},{"$f":"'MMA Rev-Exp Summary'!AR$39","v":{"v":0,"d":"$0.00"}},{"$f":"'MMA Rev-Exp Summary'!AS$39","v":{"v":0,"d":"$0.00"}},{"$f":"'MMA Rev-Exp Summary'!AT$39","v":{"v":0,"d":"$0.00"}},{"$f":"'MMA Rev-Exp Summary'!AU$39","v":{"v":0,"d":"$0.00"}},{"v":0,"d":"$0.00"}]
["MMA",null,null,{"$f":"Jurat!I$1","v":0},{"$f":"Jurat!D$33","v":"00:00:00"},"Q4","2017-12-31","Summary","Operating Expense","Medical Benefits Expense","Mental Health Services",5.1,"Mental Health & Substance Abuse FFS",{"$f":"'MMA Rev-Exp Summary'!AK$41","v":{"v":0,"d":"$0.00"}},{"$f":"'MMA Rev-Exp Summary'!AL$41","v":{"v":0,"d":"$0.00"}},{"$f":"'MMA Rev-Exp Summary'!AM$41","v":{"v":0,"d":"$0.00"}},{"$f":"'MMA Rev-Exp Summary'!AN$41","v":{"v":0,"d":"$0.00"}},{"$f":"'MMA Rev-Exp Summary'!AO$41","v":{"v":0,"d":"$0.00"}},{"$f":"'MMA Rev-Exp Summary'!AP$41","v":{"v":0,"d":"$0.00"}},{"$f":"'MMA Rev-Exp Summary'!AQ$41","v":{"v":0,"d":"$0.00"}},{"$f":"'MMA Rev-Exp Summary'!AR$41","v":{"v":0,"d":"$0.00"}},{"$f":"'MMA Rev-Exp Summary'!AS$41","v":{"v":0,"d":"$0.00"}},{"$f":"'MMA Rev-Exp Summary'!AT$41","v":{"v":0,"d":"$0.00"}},{"$f":"'MMA Rev-Exp Summary'!AU$41","v":{"v":0,"d":"$0.00"}},{"v":0,"d":"$0.00"}]
["MMA",null,null,{"$f":"Jurat!I$1","v":0},{"$f":"Jurat!D$33","v":"00:00:00"},"Q4","2017-12-31","Summary","Operating Expense","Medical Benefits Expense","Mental Health Services",5.2,"Mental Health & Substance Abuse Subcapitation",{"$f":"'MMA Rev-Exp Summary'!AK$42","v":{"v":0,"d":"$0.00"}},{"$f":"'MMA Rev-Exp Summary'!AL$42","v":{"v":0,"d":"$0.00"}},{"$f":"'MMA Rev-Exp Summary'!AM$42","v":{"v":0,"d":"$0.00"}},{"$f":"'MMA Rev-Exp Summary'!AN$42","v":{"v":0,"d":"$0.00"}},{"$f":"'MMA Rev-Exp Summary'!AO$42","v":{"v":0,"d":"$0.00"}},{"$f":"'MMA Rev-Exp Summary'!AP$42","v":{"v":0,"d":"$0.00"}},{"$f":"'MMA Rev-Exp Summary'!AQ$42","v":{"v":0,"d":"$0.00"}},{"$f":"'MMA Rev-Exp Summary'!AR$42","v":{"v":0,"d":"$0.00"}},{"$f":"'MMA Rev-Exp Summary'!AS$42","v":{"v":0,"d":"$0.00"}},{"$f":"'MMA Rev-Exp Summary'!AT$42","v":{"v":0,"d":"$0.00"}},{"$f":"'MMA Rev-Exp Summary'!AU$42","v":{"v":0,"d":"$0.00"}},{"v":0,"d":"$0.00"}]
["MMA",null,null,{"$f":"Jurat!I$1","v":0},{"$f":"Jurat!D$33","v":"00:00:00"},"Q4","2017-12-31","Summary","Operating Expense","Medical Benefits Expense","Mental Health Services",5.3,"Ending IBNP for Mental Health & Substance Abuse",{"$f":"'MMA Rev-Exp Summary'!AK$43","v":{"v":0,"d":"$0.00"}},{"$f":"'MMA Rev-Exp Summary'!AL$43","v":{"v":0,"d":"$0.00"}},{"$f":"'MMA Rev-Exp Summary'!AM$43","v":{"v":0,"d":"$0.00"}},{"$f":"'MMA Rev-Exp Summary'!AN$43","v":{"v":0,"d":"$0.00"}},{"$f":"'MMA Rev-Exp Summary'!AO$43","v":{"v":0,"d":"$0.00"}},{"$f":"'MMA Rev-Exp Summary'!AP$43","v":{"v":0,"d":"$0.00"}},{"$f":"'MMA Rev-Exp Summary'!AQ$43","v":{"v":0,"d":"$0.00"}},{"$f":"'MMA Rev-Exp Summary'!AR$43","v":{"v":0,"d":"$0.00"}},{"$f":"'MMA Rev-Exp Summary'!AS$43","v":{"v":0,"d":"$0.00"}},{"$f":"'MMA Rev-Exp Summary'!AT$43","v":{"v":0,"d":"$0.00"}},{"$f":"'MMA Rev-Exp Summary'!AU$43","v":{"v":0,"d":"$0.00"}},{"v":0,"d":"$0.00"}]
["MMA",null,null,{"$f":"Jurat!I$1","v":0},{"$f":"Jurat!D$33","v":"00:00:00"},"Q4","2017-12-31","Summary","Operating Expense","Medical Benefits Expense","Mental Health Services","5.4","Mental Health Settlements",{"$f":"'MMA Rev-Exp Summary'!AK$44","v":{"v":0,"d":"$0.00"}},{"$f":"'MMA Rev-Exp Summary'!AL$44","v":{"v":0,"d":"$0.00"}},{"$f":"'MMA Rev-Exp Summary'!AM$44","v":{"v":0,"d":"$0.00"}},{"$f":"'MMA Rev-Exp Summary'!AN$44","v":{"v":0,"d":"$0.00"}},{"$f":"'MMA Rev-Exp Summary'!AO$44","v":{"v":0,"d":"$0.00"}},{"$f":"'MMA Rev-Exp Summary'!AP$44","v":{"v":0,"d":"$0.00"}},{"$f":"'MMA Rev-Exp Summary'!AQ$44","v":{"v":0,"d":"$0.00"}},{"$f":"'MMA Rev-Exp Summary'!AR$44","v":{"v":0,"d":"$0.00"}},{"$f":"'MMA Rev-Exp Summary'!AS$44","v":{"v":0,"d":"$0.00"}},{"$f":"'MMA Rev-Exp Summary'!AT$44","v":{"v":0,"d":"$0.00"}},{"$f":"'MMA Rev-Exp Summary'!AU$44","v":{"v":0,"d":"$0.00"}},{"v":0,"d":"$0.00"}]
["MMA",null,null,{"$f":"Jurat!I$1","v":0},{"$f":"Jurat!D$33","v":"00:00:00"},"Q4","2017-12-31","Summary","Operating Expense","Medical Benefits Expense","Dental Services",6.1,"Dental FFS",{"$f":"'MMA Rev-Exp Summary'!AK$46","v":{"v":0,"d":"$0.00"}},{"$f":"'MMA Rev-Exp Summary'!AL$46","v":{"v":0,"d":"$0.00"}},{"$f":"'MMA Rev-Exp Summary'!AM$46","v":{"v":0,"d":"$0.00"}},{"$f":"'MMA Rev-Exp Summary'!AN$46","v":{"v":0,"d":"$0.00"}},{"$f":"'MMA Rev-Exp Summary'!AO$46","v":{"v":0,"d":"$0.00"}},{"$f":"'MMA Rev-Exp Summary'!AP$46","v":{"v":0,"d":"$0.00"}},{"$f":"'MMA Rev-Exp Summary'!AQ$46","v":{"v":0,"d":"$0.00"}},{"$f":"'MMA Rev-Exp Summary'!AR$46","v":{"v":0,"d":"$0.00"}},{"$f":"'MMA Rev-Exp Summary'!AS$46","v":{"v":0,"d":"$0.00"}},{"$f":"'MMA Rev-Exp Summary'!AT$46","v":{"v":0,"d":"$0.00"}},{"$f":"'MMA Rev-Exp Summary'!AU$46","v":{"v":0,"d":"$0.00"}},{"v":0,"d":"$0.00"}]
["MMA",null,null,{"$f":"Jurat!I$1","v":0},{"$f":"Jurat!D$33","v":"00:00:00"},"Q4","2017-12-31","Summary","Operating Expense","Medical Benefits Expense","Dental Services",6.2,"Dental Subcapitation",{"$f":"'MMA Rev-Exp Summary'!AK$47","v":{"v":0,"d":"$0.00"}},{"$f":"'MMA Rev-Exp Summary'!AL$47","v":{"v":0,"d":"$0.00"}},{"$f":"'MMA Rev-Exp Summary'!AM$47","v":{"v":0,"d":"$0.00"}},{"$f":"'MMA Rev-Exp Summary'!AN$47","v":{"v":0,"d":"$0.00"}},{"$f":"'MMA Rev-Exp Summary'!AO$47","v":{"v":0,"d":"$0.00"}},{"$f":"'MMA Rev-Exp Summary'!AP$47","v":{"v":0,"d":"$0.00"}},{"$f":"'MMA Rev-Exp Summary'!AQ$47","v":{"v":0,"d":"$0.00"}},{"$f":"'MMA Rev-Exp Summary'!AR$47","v":{"v":0,"d":"$0.00"}},{"$f":"'MMA Rev-Exp Summary'!AS$47","v":{"v":0,"d":"$0.00"}},{"$f":"'MMA Rev-Exp Summary'!AT$47","v":{"v":0,"d":"$0.00"}},{"$f":"'MMA Rev-Exp Summary'!AU$47","v":{"v":0,"d":"$0.00"}},{"v":0,"d":"$0.00"}]
["MMA",null,null,{"$f":"Jurat!I$1","v":0},{"$f":"Jurat!D$33","v":"00:00:00"},"Q4","2017-12-31","Summary","Operating Expense","Medical Benefits Expense","Dental Services",6.3,"Ending IBNP for Dental Services",{"$f":"'MMA Rev-Exp Summary'!AK$48","v":{"v":0,"d":"$0.00"}},{"$f":"'MMA Rev-Exp Summary'!AL$48","v":{"v":0,"d":"$0.00"}},{"$f":"'MMA Rev-Exp Summary'!AM$48","v":{"v":0,"d":"$0.00"}},{"$f":"'MMA Rev-Exp Summary'!AN$48","v":{"v":0,"d":"$0.00"}},{"$f":"'MMA Rev-Exp Summary'!AO$48","v":{"v":0,"d":"$0.00"}},{"$f":"'MMA Rev-Exp Summary'!AP$48","v":{"v":0,"d":"$0.00"}},{"$f":"'MMA Rev-Exp Summary'!AQ$48","v":{"v":0,"d":"$0.00"}},{"$f":"'MMA Rev-Exp Summary'!AR$48","v":{"v":0,"d":"$0.00"}},{"$f":"'MMA Rev-Exp Summary'!AS$48","v":{"v":0,"d":"$0.00"}},{"$f":"'MMA Rev-Exp Summary'!AT$48","v":{"v":0,"d":"$0.00"}},{"$f":"'MMA Rev-Exp Summary'!AU$48","v":{"v":0,"d":"$0.00"}},{"v":0,"d":"$0.00"}]
["MMA",null,null,{"$f":"Jurat!I$1","v":0},{"$f":"Jurat!D$33","v":"00:00:00"},"Q4","2017-12-31","Summary","Operating Expense","Medical Benefits Expense","Dental Services","6.4","Dental Settlements",{"$f":"'MMA Rev-Exp Summary'!AK$49","v":{"v":0,"d":"$0.00"}},{"$f":"'MMA Rev-Exp Summary'!AL$49","v":{"v":0,"d":"$0.00"}},{"$f":"'MMA Rev-Exp Summary'!AM$49","v":{"v":0,"d":"$0.00"}},{"$f":"'MMA Rev-Exp Summary'!AN$49","v":{"v":0,"d":"$0.00"}},{"$f":"'MMA Rev-Exp Summary'!AO$49","v":{"v":0,"d":"$0.00"}},{"$f":"'MMA Rev-Exp Summary'!AP$49","v":{"v":0,"d":"$0.00"}},{"$f":"'MMA Rev-Exp Summary'!AQ$49","v":{"v":0,"d":"$0.00"}},{"$f":"'MMA Rev-Exp Summary'!AR$49","v":{"v":0,"d":"$0.00"}},{"$f":"'MMA Rev-Exp Summary'!AS$49","v":{"v":0,"d":"$0.00"}},{"$f":"'MMA Rev-Exp Summary'!AT$49","v":{"v":0,"d":"$0.00"}},{"$f":"'MMA Rev-Exp Summary'!AU$49","v":{"v":0,"d":"$0.00"}},{"v":0,"d":"$0.00"}]
["MMA",null,null,{"$f":"Jurat!I$1","v":0},{"$f":"Jurat!D$33","v":"00:00:00"},"Q4","2017-12-31","Summary","Operating Expense","Medical Benefits Expense","Transportation Services",7.1,"Transportation FFS",{"$f":"'MMA Rev-Exp Summary'!AK$51","v":{"v":0,"d":"$0.00"}},{"$f":"'MMA Rev-Exp Summary'!AL$51","v":{"v":0,"d":"$0.00"}},{"$f":"'MMA Rev-Exp Summary'!AM$51","v":{"v":0,"d":"$0.00"}},{"$f":"'MMA Rev-Exp Summary'!AN$51","v":{"v":0,"d":"$0.00"}},{"$f":"'MMA Rev-Exp Summary'!AO$51","v":{"v":0,"d":"$0.00"}},{"$f":"'MMA Rev-Exp Summary'!AP$51","v":{"v":0,"d":"$0.00"}},{"$f":"'MMA Rev-Exp Summary'!AQ$51","v":{"v":0,"d":"$0.00"}},{"$f":"'MMA Rev-Exp Summary'!AR$51","v":{"v":0,"d":"$0.00"}},{"$f":"'MMA Rev-Exp Summary'!AS$51","v":{"v":0,"d":"$0.00"}},{"$f":"'MMA Rev-Exp Summary'!AT$51","v":{"v":0,"d":"$0.00"}},{"$f":"'MMA Rev-Exp Summary'!AU$51","v":{"v":0,"d":"$0.00"}},{"v":0,"d":"$0.00"}]
["MMA",null,null,{"$f":"Jurat!I$1","v":0},{"$f":"Jurat!D$33","v":"00:00:00"},"Q4","2017-12-31","Summary","Operating Expense","Medical Benefits Expense","Transportation Services",7.2,"Transportation Subcapitation",{"$f":"'MMA Rev-Exp Summary'!AK$52","v":{"v":0,"d":"$0.00"}},{"$f":"'MMA Rev-Exp Summary'!AL$52","v":{"v":0,"d":"$0.00"}},{"$f":"'MMA Rev-Exp Summary'!AM$52","v":{"v":0,"d":"$0.00"}},{"$f":"'MMA Rev-Exp Summary'!AN$52","v":{"v":0,"d":"$0.00"}},{"$f":"'MMA Rev-Exp Summary'!AO$52","v":{"v":0,"d":"$0.00"}},{"$f":"'MMA Rev-Exp Summary'!AP$52","v":{"v":0,"d":"$0.00"}},{"$f":"'MMA Rev-Exp Summary'!AQ$52","v":{"v":0,"d":"$0.00"}},{"$f":"'MMA Rev-Exp Summary'!AR$52","v":{"v":0,"d":"$0.00"}},{"$f":"'MMA Rev-Exp Summary'!AS$52","v":{"v":0,"d":"$0.00"}},{"$f":"'MMA Rev-Exp Summary'!AT$52","v":{"v":0,"d":"$0.00"}},{"$f":"'MMA Rev-Exp Summary'!AU$52","v":{"v":0,"d":"$0.00"}},{"v":0,"d":"$0.00"}]
["MMA",null,null,{"$f":"Jurat!I$1","v":0},{"$f":"Jurat!D$33","v":"00:00:00"},"Q4","2017-12-31","Summary","Operating Expense","Medical Benefits Expense","Transportation Services",7.3,"Ending IBNP for Transportation",{"$f":"'MMA Rev-Exp Summary'!AK$53","v":{"v":0,"d":"$0.00"}},{"$f":"'MMA Rev-Exp Summary'!AL$53","v":{"v":0,"d":"$0.00"}},{"$f":"'MMA Rev-Exp Summary'!AM$53","v":{"v":0,"d":"$0.00"}},{"$f":"'MMA Rev-Exp Summary'!AN$53","v":{"v":0,"d":"$0.00"}},{"$f":"'MMA Rev-Exp Summary'!AO$53","v":{"v":0,"d":"$0.00"}},{"$f":"'MMA Rev-Exp Summary'!AP$53","v":{"v":0,"d":"$0.00"}},{"$f":"'MMA Rev-Exp Summary'!AQ$53","v":{"v":0,"d":"$0.00"}},{"$f":"'MMA Rev-Exp Summary'!AR$53","v":{"v":0,"d":"$0.00"}},{"$f":"'MMA Rev-Exp Summary'!AS$53","v":{"v":0,"d":"$0.00"}},{"$f":"'MMA Rev-Exp Summary'!AT$53","v":{"v":0,"d":"$0.00"}},{"$f":"'MMA Rev-Exp Summary'!AU$53","v":{"v":0,"d":"$0.00"}},{"v":0,"d":"$0.00"}]
["MMA",null,null,{"$f":"Jurat!I$1","v":0},{"$f":"Jurat!D$33","v":"00:00:00"},"Q4","2017-12-31","Summary","Operating Expense","Medical Benefits Expense","Transportation Services","7.4","Transportation Settlements",{"$f":"'MMA Rev-Exp Summary'!AK$54","v":{"v":0,"d":"$0.00"}},{"$f":"'MMA Rev-Exp Summary'!AL$54","v":{"v":0,"d":"$0.00"}},{"$f":"'MMA Rev-Exp Summary'!AM$54","v":{"v":0,"d":"$0.00"}},{"$f":"'MMA Rev-Exp Summary'!AN$54","v":{"v":0,"d":"$0.00"}},{"$f":"'MMA Rev-Exp Summary'!AO$54","v":{"v":0,"d":"$0.00"}},{"$f":"'MMA Rev-Exp Summary'!AP$54","v":{"v":0,"d":"$0.00"}},{"$f":"'MMA Rev-Exp Summary'!AQ$54","v":{"v":0,"d":"$0.00"}},{"$f":"'MMA Rev-Exp Summary'!AR$54","v":{"v":0,"d":"$0.00"}},{"$f":"'MMA Rev-Exp Summary'!AS$54","v":{"v":0,"d":"$0.00"}},{"$f":"'MMA Rev-Exp Summary'!AT$54","v":{"v":0,"d":"$0.00"}},{"$f":"'MMA Rev-Exp Summary'!AU$54","v":{"v":0,"d":"$0.00"}},{"v":0,"d":"$0.00"}]
["MMA",null,null,{"$f":"Jurat!I$1","v":0},{"$f":"Jurat!D$33","v":"00:00:00"},"Q4","2017-12-31","Summary","Operating Expense","Medical Benefits Expense","Pharmacy Services",8.1,"Prescription Drugs FFS",{"$f":"'MMA Rev-Exp Summary'!AK$56","v":{"v":0,"d":"$0.00"}},{"$f":"'MMA Rev-Exp Summary'!AL$56","v":{"v":0,"d":"$0.00"}},{"$f":"'MMA Rev-Exp Summary'!AM$56","v":{"v":0,"d":"$0.00"}},{"$f":"'MMA Rev-Exp Summary'!AN$56","v":{"v":0,"d":"$0.00"}},{"$f":"'MMA Rev-Exp Summary'!AO$56","v":{"v":0,"d":"$0.00"}},{"$f":"'MMA Rev-Exp Summary'!AP$56","v":{"v":0,"d":"$0.00"}},{"$f":"'MMA Rev-Exp Summary'!AQ$56","v":{"v":0,"d":"$0.00"}},{"$f":"'MMA Rev-Exp Summary'!AR$56","v":{"v":0,"d":"$0.00"}},{"$f":"'MMA Rev-Exp Summary'!AS$56","v":{"v":0,"d":"$0.00"}},{"$f":"'MMA Rev-Exp Summary'!AT$56","v":{"v":0,"d":"$0.00"}},{"$f":"'MMA Rev-Exp Summary'!AU$56","v":{"v":0,"d":"$0.00"}},{"v":0,"d":"$0.00"}]
["MMA",null,null,{"$f":"Jurat!I$1","v":0},{"$f":"Jurat!D$33","v":"00:00:00"},"Q4","2017-12-31","Summary","Operating Expense","Medical Benefits Expense","Pharmacy Services","8.2","Hepatitis C Prescription Drug FFS",{"$f":"'MMA Rev-Exp Summary'!AK$57","v":{"v":0,"d":"$0.00"}},{"$f":"'MMA Rev-Exp Summary'!AL$57","v":{"v":0,"d":"$0.00"}},{"$f":"'MMA Rev-Exp Summary'!AM$57","v":{"v":0,"d":"$0.00"}},{"$f":"'MMA Rev-Exp Summary'!AN$57","v":{"v":0,"d":"$0.00"}},{"$f":"'MMA Rev-Exp Summary'!AO$57","v":{"v":0,"d":"$0.00"}},{"$f":"'MMA Rev-Exp Summary'!AP$57","v":{"v":0,"d":"$0.00"}},{"$f":"'MMA Rev-Exp Summary'!AQ$57","v":{"v":0,"d":"$0.00"}},{"$f":"'MMA Rev-Exp Summary'!AR$57","v":{"v":0,"d":"$0.00"}},{"$f":"'MMA Rev-Exp Summary'!AS$57","v":{"v":0,"d":"$0.00"}},{"$f":"'MMA Rev-Exp Summary'!AT$57","v":{"v":0,"d":"$0.00"}},{"$f":"'MMA Rev-Exp Summary'!AU$57","v":{"v":0,"d":"$0.00"}},{"v":0,"d":"$0.00"}]
["MMA",null,null,{"$f":"Jurat!I$1","v":0},{"$f":"Jurat!D$33","v":"00:00:00"},"Q4","2017-12-31","Summary","Operating Expense","Medical Benefits Expense","Pharmacy Services","8.3","Ending IBNP for Prescription Drugs",{"$f":"'MMA Rev-Exp Summary'!AK$58","v":{"v":0,"d":"$0.00"}},{"$f":"'MMA Rev-Exp Summary'!AL$58","v":{"v":0,"d":"$0.00"}},{"$f":"'MMA Rev-Exp Summary'!AM$58","v":{"v":0,"d":"$0.00"}},{"$f":"'MMA Rev-Exp Summary'!AN$58","v":{"v":0,"d":"$0.00"}},{"$f":"'MMA Rev-Exp Summary'!AO$58","v":{"v":0,"d":"$0.00"}},{"$f":"'MMA Rev-Exp Summary'!AP$58","v":{"v":0,"d":"$0.00"}},{"$f":"'MMA Rev-Exp Summary'!AQ$58","v":{"v":0,"d":"$0.00"}},{"$f":"'MMA Rev-Exp Summary'!AR$58","v":{"v":0,"d":"$0.00"}},{"$f":"'MMA Rev-Exp Summary'!AS$58","v":{"v":0,"d":"$0.00"}},{"$f":"'MMA Rev-Exp Summary'!AT$58","v":{"v":0,"d":"$0.00"}},{"$f":"'MMA Rev-Exp Summary'!AU$58","v":{"v":0,"d":"$0.00"}},{"v":0,"d":"$0.00"}]
["MMA",null,null,{"$f":"Jurat!I$1","v":0},{"$f":"Jurat!D$33","v":"00:00:00"},"Q4","2017-12-31","Summary","Operating Expense","Medical Benefits Expense","Pharmacy Services","8.4","Prescription Drug Rebates ",{"$f":"'MMA Rev-Exp Summary'!AK$59","v":{"v":0,"d":"$0.00"}},{"$f":"'MMA Rev-Exp Summary'!AL$59","v":{"v":0,"d":"$0.00"}},{"$f":"'MMA Rev-Exp Summary'!AM$59","v":{"v":0,"d":"$0.00"}},{"$f":"'MMA Rev-Exp Summary'!AN$59","v":{"v":0,"d":"$0.00"}},{"$f":"'MMA Rev-Exp Summary'!AO$59","v":{"v":0,"d":"$0.00"}},{"$f":"'MMA Rev-Exp Summary'!AP$59","v":{"v":0,"d":"$0.00"}},{"$f":"'MMA Rev-Exp Summary'!AQ$59","v":{"v":0,"d":"$0.00"}},{"$f":"'MMA Rev-Exp Summary'!AR$59","v":{"v":0,"d":"$0.00"}},{"$f":"'MMA Rev-Exp Summary'!AS$59","v":{"v":0,"d":"$0.00"}},{"$f":"'MMA Rev-Exp Summary'!AT$59","v":{"v":0,"d":"$0.00"}},{"$f":"'MMA Rev-Exp Summary'!AU$59","v":{"v":0,"d":"$0.00"}},{"v":0,"d":"$0.00"}]
["MMA",null,null,{"$f":"Jurat!I$1","v":0},{"$f":"Jurat!D$33","v":"00:00:00"},"Q4","2017-12-31","Summary","Operating Expense","Medical Benefits Expense","Pharmacy Services","8.5","Ending accrual for Rebates receivable",{"$f":"'MMA Rev-Exp Summary'!AK$60","v":{"v":0,"d":"$0.00"}},{"$f":"'MMA Rev-Exp Summary'!AL$60","v":{"v":0,"d":"$0.00"}},{"$f":"'MMA Rev-Exp Summary'!AM$60","v":{"v":0,"d":"$0.00"}},{"$f":"'MMA Rev-Exp Summary'!AN$60","v":{"v":0,"d":"$0.00"}},{"$f":"'MMA Rev-Exp Summary'!AO$60","v":{"v":0,"d":"$0.00"}},{"$f":"'MMA Rev-Exp Summary'!AP$60","v":{"v":0,"d":"$0.00"}},{"$f":"'MMA Rev-Exp Summary'!AQ$60","v":{"v":0,"d":"$0.00"}},{"$f":"'MMA Rev-Exp Summary'!AR$60","v":{"v":0,"d":"$0.00"}},{"$f":"'MMA Rev-Exp Summary'!AS$60","v":{"v":0,"d":"$0.00"}},{"$f":"'MMA Rev-Exp Summary'!AT$60","v":{"v":0,"d":"$0.00"}},{"$f":"'MMA Rev-Exp Summary'!AU$60","v":{"v":0,"d":"$0.00"}},{"v":0,"d":"$0.00"}]
["MMA",null,null,{"$f":"Jurat!I$1","v":0},{"$f":"Jurat!D$33","v":"00:00:00"},"Q4","2017-12-31","Summary","Operating Expense","Medical Benefits Expense","Pharmacy Services","8.6","Prescription Drugs Subcapitation",{"$f":"'MMA Rev-Exp Summary'!AK$61","v":{"v":0,"d":"$0.00"}},{"$f":"'MMA Rev-Exp Summary'!AL$61","v":{"v":0,"d":"$0.00"}},{"$f":"'MMA Rev-Exp Summary'!AM$61","v":{"v":0,"d":"$0.00"}},{"$f":"'MMA Rev-Exp Summary'!AN$61","v":{"v":0,"d":"$0.00"}},{"$f":"'MMA Rev-Exp Summary'!AO$61","v":{"v":0,"d":"$0.00"}},{"$f":"'MMA Rev-Exp Summary'!AP$61","v":{"v":0,"d":"$0.00"}},{"$f":"'MMA Rev-Exp Summary'!AQ$61","v":{"v":0,"d":"$0.00"}},{"$f":"'MMA Rev-Exp Summary'!AR$61","v":{"v":0,"d":"$0.00"}},{"$f":"'MMA Rev-Exp Summary'!AS$61","v":{"v":0,"d":"$0.00"}},{"$f":"'MMA Rev-Exp Summary'!AT$61","v":{"v":0,"d":"$0.00"}},{"$f":"'MMA Rev-Exp Summary'!AU$61","v":{"v":0,"d":"$0.00"}},{"v":0,"d":"$0.00"}]
["MMA",null,null,{"$f":"Jurat!I$1","v":0},{"$f":"Jurat!D$33","v":"00:00:00"},"Q4","2017-12-31","Summary","Operating Expense","Medical Benefits Expense","Pharmacy Services","8.7","Prescription Drug Settlements",{"$f":"'MMA Rev-Exp Summary'!AK$62","v":{"v":0,"d":"$0.00"}},{"$f":"'MMA Rev-Exp Summary'!AL$62","v":{"v":0,"d":"$0.00"}},{"$f":"'MMA Rev-Exp Summary'!AM$62","v":{"v":0,"d":"$0.00"}},{"$f":"'MMA Rev-Exp Summary'!AN$62","v":{"v":0,"d":"$0.00"}},{"$f":"'MMA Rev-Exp Summary'!AO$62","v":{"v":0,"d":"$0.00"}},{"$f":"'MMA Rev-Exp Summary'!AP$62","v":{"v":0,"d":"$0.00"}},{"$f":"'MMA Rev-Exp Summary'!AQ$62","v":{"v":0,"d":"$0.00"}},{"$f":"'MMA Rev-Exp Summary'!AR$62","v":{"v":0,"d":"$0.00"}},{"$f":"'MMA Rev-Exp Summary'!AS$62","v":{"v":0,"d":"$0.00"}},{"$f":"'MMA Rev-Exp Summary'!AT$62","v":{"v":0,"d":"$0.00"}},{"$f":"'MMA Rev-Exp Summary'!AU$62","v":{"v":0,"d":"$0.00"}},{"v":0,"d":"$0.00"}]
["MMA",null,null,{"$f":"Jurat!I$1","v":0},{"$f":"Jurat!D$33","v":"00:00:00"},"Q4","2017-12-31","Summary","Operating Expense","Medical Benefits Expense","Other MMA Services",9.1,"Home Health, Private Duty Nursing, Personal Care FFS",{"$f":"'MMA Rev-Exp Summary'!AK$64","v":{"v":0,"d":"$0.00"}},{"$f":"'MMA Rev-Exp Summary'!AL$64","v":{"v":0,"d":"$0.00"}},{"$f":"'MMA Rev-Exp Summary'!AM$64","v":{"v":0,"d":"$0.00"}},{"$f":"'MMA Rev-Exp Summary'!AN$64","v":{"v":0,"d":"$0.00"}},{"$f":"'MMA Rev-Exp Summary'!AO$64","v":{"v":0,"d":"$0.00"}},{"$f":"'MMA Rev-Exp Summary'!AP$64","v":{"v":0,"d":"$0.00"}},{"$f":"'MMA Rev-Exp Summary'!AQ$64","v":{"v":0,"d":"$0.00"}},{"$f":"'MMA Rev-Exp Summary'!AR$64","v":{"v":0,"d":"$0.00"}},{"$f":"'MMA Rev-Exp Summary'!AS$64","v":{"v":0,"d":"$0.00"}},{"$f":"'MMA Rev-Exp Summary'!AT$64","v":{"v":0,"d":"$0.00"}},{"$f":"'MMA Rev-Exp Summary'!AU$64","v":{"v":0,"d":"$0.00"}},{"v":0,"d":"$0.00"}]
["MMA",null,null,{"$f":"Jurat!I$1","v":0},{"$f":"Jurat!D$33","v":"00:00:00"},"Q4","2017-12-31","Summary","Operating Expense","Medical Benefits Expense","Other MMA Services","9.2","Hospice FFS",{"$f":"'MMA Rev-Exp Summary'!AK$65","v":{"v":0,"d":"$0.00"}},{"$f":"'MMA Rev-Exp Summary'!AL$65","v":{"v":0,"d":"$0.00"}},{"$f":"'MMA Rev-Exp Summary'!AM$65","v":{"v":0,"d":"$0.00"}},{"$f":"'MMA Rev-Exp Summary'!AN$65","v":{"v":0,"d":"$0.00"}},{"$f":"'MMA Rev-Exp Summary'!AO$65","v":{"v":0,"d":"$0.00"}},{"$f":"'MMA Rev-Exp Summary'!AP$65","v":{"v":0,"d":"$0.00"}},{"$f":"'MMA Rev-Exp Summary'!AQ$65","v":{"v":0,"d":"$0.00"}},{"$f":"'MMA Rev-Exp Summary'!AR$65","v":{"v":0,"d":"$0.00"}},{"$f":"'MMA Rev-Exp Summary'!AS$65","v":{"v":0,"d":"$0.00"}},{"$f":"'MMA Rev-Exp Summary'!AT$65","v":{"v":0,"d":"$0.00"}},{"$f":"'MMA Rev-Exp Summary'!AU$65","v":{"v":0,"d":"$0.00"}},{"v":0,"d":"$0.00"}]
["MMA",null,null,{"$f":"Jurat!I$1","v":0},{"$f":"Jurat!D$33","v":"00:00:00"},"Q4","2017-12-31","Summary","Operating Expense","Medical Benefits Expense","Other MMA Services","9.3","DME FFS",{"$f":"'MMA Rev-Exp Summary'!AK$66","v":{"v":0,"d":"$0.00"}},{"$f":"'MMA Rev-Exp Summary'!AL$66","v":{"v":0,"d":"$0.00"}},{"$f":"'MMA Rev-Exp Summary'!AM$66","v":{"v":0,"d":"$0.00"}},{"$f":"'MMA Rev-Exp Summary'!AN$66","v":{"v":0,"d":"$0.00"}},{"$f":"'MMA Rev-Exp Summary'!AO$66","v":{"v":0,"d":"$0.00"}},{"$f":"'MMA Rev-Exp Summary'!AP$66","v":{"v":0,"d":"$0.00"}},{"$f":"'MMA Rev-Exp Summary'!AQ$66","v":{"v":0,"d":"$0.00"}},{"$f":"'MMA Rev-Exp Summary'!AR$66","v":{"v":0,"d":"$0.00"}},{"$f":"'MMA Rev-Exp Summary'!AS$66","v":{"v":0,"d":"$0.00"}},{"$f":"'MMA Rev-Exp Summary'!AT$66","v":{"v":0,"d":"$0.00"}},{"$f":"'MMA Rev-Exp Summary'!AU$66","v":{"v":0,"d":"$0.00"}},{"v":0,"d":"$0.00"}]
["MMA",null,null,{"$f":"Jurat!I$1","v":0},{"$f":"Jurat!D$33","v":"00:00:00"},"Q4","2017-12-31","Summary","Operating Expense","Medical Benefits Expense","Other MMA Services","9.4","Other State Plan Services FFS",{"$f":"'MMA Rev-Exp Summary'!AK$67","v":{"v":0,"d":"$0.00"}},{"$f":"'MMA Rev-Exp Summary'!AL$67","v":{"v":0,"d":"$0.00"}},{"$f":"'MMA Rev-Exp Summary'!AM$67","v":{"v":0,"d":"$0.00"}},{"$f":"'MMA Rev-Exp Summary'!AN$67","v":{"v":0,"d":"$0.00"}},{"$f":"'MMA Rev-Exp Summary'!AO$67","v":{"v":0,"d":"$0.00"}},{"$f":"'MMA Rev-Exp Summary'!AP$67","v":{"v":0,"d":"$0.00"}},{"$f":"'MMA Rev-Exp Summary'!AQ$67","v":{"v":0,"d":"$0.00"}},{"$f":"'MMA Rev-Exp Summary'!AR$67","v":{"v":0,"d":"$0.00"}},{"$f":"'MMA Rev-Exp Summary'!AS$67","v":{"v":0,"d":"$0.00"}},{"$f":"'MMA Rev-Exp Summary'!AT$67","v":{"v":0,"d":"$0.00"}},{"$f":"'MMA Rev-Exp Summary'!AU$67","v":{"v":0,"d":"$0.00"}},{"v":0,"d":"$0.00"}]
["MMA",null,null,{"$f":"Jurat!I$1","v":0},{"$f":"Jurat!D$33","v":"00:00:00"},"Q4","2017-12-31","Summary","Operating Expense","Medical Benefits Expense","Other MMA Services","9.5","Other Services Subcapitation",{"$f":"'MMA Rev-Exp Summary'!AK$68","v":{"v":0,"d":"$0.00"}},{"$f":"'MMA Rev-Exp Summary'!AL$68","v":{"v":0,"d":"$0.00"}},{"$f":"'MMA Rev-Exp Summary'!AM$68","v":{"v":0,"d":"$0.00"}},{"$f":"'MMA Rev-Exp Summary'!AN$68","v":{"v":0,"d":"$0.00"}},{"$f":"'MMA Rev-Exp Summary'!AO$68","v":{"v":0,"d":"$0.00"}},{"$f":"'MMA Rev-Exp Summary'!AP$68","v":{"v":0,"d":"$0.00"}},{"$f":"'MMA Rev-Exp Summary'!AQ$68","v":{"v":0,"d":"$0.00"}},{"$f":"'MMA Rev-Exp Summary'!AR$68","v":{"v":0,"d":"$0.00"}},{"$f":"'MMA Rev-Exp Summary'!AS$68","v":{"v":0,"d":"$0.00"}},{"$f":"'MMA Rev-Exp Summary'!AT$68","v":{"v":0,"d":"$0.00"}},{"$f":"'MMA Rev-Exp Summary'!AU$68","v":{"v":0,"d":"$0.00"}},{"v":0,"d":"$0.00"}]
["MMA",null,null,{"$f":"Jurat!I$1","v":0},{"$f":"Jurat!D$33","v":"00:00:00"},"Q4","2017-12-31","Summary","Operating Expense","Medical Benefits Expense","Other MMA Services","9.6","Ending IBNP for Other Services",{"$f":"'MMA Rev-Exp Summary'!AK$69","v":{"v":0,"d":"$0.00"}},{"$f":"'MMA Rev-Exp Summary'!AL$69","v":{"v":0,"d":"$0.00"}},{"$f":"'MMA Rev-Exp Summary'!AM$69","v":{"v":0,"d":"$0.00"}},{"$f":"'MMA Rev-Exp Summary'!AN$69","v":{"v":0,"d":"$0.00"}},{"$f":"'MMA Rev-Exp Summary'!AO$69","v":{"v":0,"d":"$0.00"}},{"$f":"'MMA Rev-Exp Summary'!AP$69","v":{"v":0,"d":"$0.00"}},{"$f":"'MMA Rev-Exp Summary'!AQ$69","v":{"v":0,"d":"$0.00"}},{"$f":"'MMA Rev-Exp Summary'!AR$69","v":{"v":0,"d":"$0.00"}},{"$f":"'MMA Rev-Exp Summary'!AS$69","v":{"v":0,"d":"$0.00"}},{"$f":"'MMA Rev-Exp Summary'!AT$69","v":{"v":0,"d":"$0.00"}},{"$f":"'MMA Rev-Exp Summary'!AU$69","v":{"v":0,"d":"$0.00"}},{"v":0,"d":"$0.00"}]
["MMA",null,null,{"$f":"Jurat!I$1","v":0},{"$f":"Jurat!D$33","v":"00:00:00"},"Q4","2017-12-31","Summary","Operating Expense","Medical Benefits Expense","Other MMA Services","9.7","Other Services Settlements",{"$f":"'MMA Rev-Exp Summary'!AK$70","v":{"v":0,"d":"$0.00"}},{"$f":"'MMA Rev-Exp Summary'!AL$70","v":{"v":0,"d":"$0.00"}},{"$f":"'MMA Rev-Exp Summary'!AM$70","v":{"v":0,"d":"$0.00"}},{"$f":"'MMA Rev-Exp Summary'!AN$70","v":{"v":0,"d":"$0.00"}},{"$f":"'MMA Rev-Exp Summary'!AO$70","v":{"v":0,"d":"$0.00"}},{"$f":"'MMA Rev-Exp Summary'!AP$70","v":{"v":0,"d":"$0.00"}},{"$f":"'MMA Rev-Exp Summary'!AQ$70","v":{"v":0,"d":"$0.00"}},{"$f":"'MMA Rev-Exp Summary'!AR$70","v":{"v":0,"d":"$0.00"}},{"$f":"'MMA Rev-Exp Summary'!AS$70","v":{"v":0,"d":"$0.00"}},{"$f":"'MMA Rev-Exp Summary'!AT$70","v":{"v":0,"d":"$0.00"}},{"$f":"'MMA Rev-Exp Summary'!AU$70","v":{"v":0,"d":"$0.00"}},{"v":0,"d":"$0.00"}]
["MMA",null,null,{"$f":"Jurat!I$1","v":0},{"$f":"Jurat!D$33","v":"00:00:00"},"Q4","2017-12-31","Summary","Operating Expense","Medical Benefits Expense","Expanded Benefits","10.1","Expanded Benefits FFS",{"$f":"'MMA Rev-Exp Summary'!AK$72","v":{"v":0,"d":"$0.00"}},{"$f":"'MMA Rev-Exp Summary'!AL$72","v":{"v":0,"d":"$0.00"}},{"$f":"'MMA Rev-Exp Summary'!AM$72","v":{"v":0,"d":"$0.00"}},{"$f":"'MMA Rev-Exp Summary'!AN$72","v":{"v":0,"d":"$0.00"}},{"$f":"'MMA Rev-Exp Summary'!AO$72","v":{"v":0,"d":"$0.00"}},{"$f":"'MMA Rev-Exp Summary'!AP$72","v":{"v":0,"d":"$0.00"}},{"$f":"'MMA Rev-Exp Summary'!AQ$72","v":{"v":0,"d":"$0.00"}},{"$f":"'MMA Rev-Exp Summary'!AR$72","v":{"v":0,"d":"$0.00"}},{"$f":"'MMA Rev-Exp Summary'!AS$72","v":{"v":0,"d":"$0.00"}},{"$f":"'MMA Rev-Exp Summary'!AT$72","v":{"v":0,"d":"$0.00"}},{"$f":"'MMA Rev-Exp Summary'!AU$72","v":{"v":0,"d":"$0.00"}},{"v":0,"d":"$0.00"}]
["MMA",null,null,{"$f":"Jurat!I$1","v":0},{"$f":"Jurat!D$33","v":"00:00:00"},"Q4","2017-12-31","Summary","Operating Expense","Medical Benefits Expense","Expanded Benefits","10.2","Expanded benefits Subcapitation",{"$f":"'MMA Rev-Exp Summary'!AK$73","v":{"v":0,"d":"$0.00"}},{"$f":"'MMA Rev-Exp Summary'!AL$73","v":{"v":0,"d":"$0.00"}},{"$f":"'MMA Rev-Exp Summary'!AM$73","v":{"v":0,"d":"$0.00"}},{"$f":"'MMA Rev-Exp Summary'!AN$73","v":{"v":0,"d":"$0.00"}},{"$f":"'MMA Rev-Exp Summary'!AO$73","v":{"v":0,"d":"$0.00"}},{"$f":"'MMA Rev-Exp Summary'!AP$73","v":{"v":0,"d":"$0.00"}},{"$f":"'MMA Rev-Exp Summary'!AQ$73","v":{"v":0,"d":"$0.00"}},{"$f":"'MMA Rev-Exp Summary'!AR$73","v":{"v":0,"d":"$0.00"}},{"$f":"'MMA Rev-Exp Summary'!AS$73","v":{"v":0,"d":"$0.00"}},{"$f":"'MMA Rev-Exp Summary'!AT$73","v":{"v":0,"d":"$0.00"}},{"$f":"'MMA Rev-Exp Summary'!AU$73","v":{"v":0,"d":"$0.00"}},{"v":0,"d":"$0.00"}]
["MMA",null,null,{"$f":"Jurat!I$1","v":0},{"$f":"Jurat!D$33","v":"00:00:00"},"Q4","2017-12-31","Summary","Operating Expense","Medical Benefits Expense","Expanded Benefits","10.3","Ending IBNP for Expanded Benefits",{"$f":"'MMA Rev-Exp Summary'!AK$74","v":{"v":0,"d":"$0.00"}},{"$f":"'MMA Rev-Exp Summary'!AL$74","v":{"v":0,"d":"$0.00"}},{"$f":"'MMA Rev-Exp Summary'!AM$74","v":{"v":0,"d":"$0.00"}},{"$f":"'MMA Rev-Exp Summary'!AN$74","v":{"v":0,"d":"$0.00"}},{"$f":"'MMA Rev-Exp Summary'!AO$74","v":{"v":0,"d":"$0.00"}},{"$f":"'MMA Rev-Exp Summary'!AP$74","v":{"v":0,"d":"$0.00"}},{"$f":"'MMA Rev-Exp Summary'!AQ$74","v":{"v":0,"d":"$0.00"}},{"$f":"'MMA Rev-Exp Summary'!AR$74","v":{"v":0,"d":"$0.00"}},{"$f":"'MMA Rev-Exp Summary'!AS$74","v":{"v":0,"d":"$0.00"}},{"$f":"'MMA Rev-Exp Summary'!AT$74","v":{"v":0,"d":"$0.00"}},{"$f":"'MMA Rev-Exp Summary'!AU$74","v":{"v":0,"d":"$0.00"}},{"v":0,"d":"$0.00"}]
["MMA",null,null,{"$f":"Jurat!I$1","v":0},{"$f":"Jurat!D$33","v":"00:00:00"},"Q4","2017-12-31","Summary","Operating Expense","Medical Benefits Expense","Expanded Benefits","10.4","Expanded Benefits Settlements",{"$f":"'MMA Rev-Exp Summary'!AK$75","v":{"v":0,"d":"$0.00"}},{"$f":"'MMA Rev-Exp Summary'!AL$75","v":{"v":0,"d":"$0.00"}},{"$f":"'MMA Rev-Exp Summary'!AM$75","v":{"v":0,"d":"$0.00"}},{"$f":"'MMA Rev-Exp Summary'!AN$75","v":{"v":0,"d":"$0.00"}},{"$f":"'MMA Rev-Exp Summary'!AO$75","v":{"v":0,"d":"$0.00"}},{"$f":"'MMA Rev-Exp Summary'!AP$75","v":{"v":0,"d":"$0.00"}},{"$f":"'MMA Rev-Exp Summary'!AQ$75","v":{"v":0,"d":"$0.00"}},{"$f":"'MMA Rev-Exp Summary'!AR$75","v":{"v":0,"d":"$0.00"}},{"$f":"'MMA Rev-Exp Summary'!AS$75","v":{"v":0,"d":"$0.00"}},{"$f":"'MMA Rev-Exp Summary'!AT$75","v":{"v":0,"d":"$0.00"}},{"$f":"'MMA Rev-Exp Summary'!AU$75","v":{"v":0,"d":"$0.00"}},{"v":0,"d":"$0.00"}]
["MMA",null,null,{"$f":"Jurat!I$1","v":0},{"$f":"Jurat!D$33","v":"00:00:00"},"Q4","2017-12-31","Summary","Operating Expense","Medical Benefits Expense","Other Medical","11.5","TPL & Fraud/Abuse Recoveries",{"$f":"'MMA Rev-Exp Summary'!AK$81","v":{"v":0,"d":"$0.00"}},{"$f":"'MMA Rev-Exp Summary'!AL$81","v":{"v":0,"d":"$0.00"}},{"$f":"'MMA Rev-Exp Summary'!AM$81","v":{"v":0,"d":"$0.00"}},{"$f":"'MMA Rev-Exp Summary'!AN$81","v":{"v":0,"d":"$0.00"}},{"$f":"'MMA Rev-Exp Summary'!AO$81","v":{"v":0,"d":"$0.00"}},{"$f":"'MMA Rev-Exp Summary'!AP$81","v":{"v":0,"d":"$0.00"}},{"$f":"'MMA Rev-Exp Summary'!AQ$81","v":{"v":0,"d":"$0.00"}},{"$f":"'MMA Rev-Exp Summary'!AR$81","v":{"v":0,"d":"$0.00"}},{"$f":"'MMA Rev-Exp Summary'!AS$81","v":{"v":0,"d":"$0.00"}},{"$f":"'MMA Rev-Exp Summary'!AT$81","v":{"v":0,"d":"$0.00"}},{"$f":"'MMA Rev-Exp Summary'!AU$81","v":{"v":0,"d":"$0.00"}},{"v":0,"d":"$0.00"}]
["MMA",null,null,{"$f":"Jurat!I$1","v":0},{"$f":"Jurat!D$33","v":"00:00:00"},"Q4","2017-12-31","Summary","Operating Expense","Medical Benefits Expense","Other Medical","11.6.1","Premium Deficiency Reserve",{"$f":"'MMA Rev-Exp Summary'!AK$82","v":{"v":0,"d":"$0.00"}},{"$f":"'MMA Rev-Exp Summary'!AL$82","v":{"v":0,"d":"$0.00"}},{"$f":"'MMA Rev-Exp Summary'!AM$82","v":{"v":0,"d":"$0.00"}},{"$f":"'MMA Rev-Exp Summary'!AN$82","v":{"v":0,"d":"$0.00"}},{"$f":"'MMA Rev-Exp Summary'!AO$82","v":{"v":0,"d":"$0.00"}},{"$f":"'MMA Rev-Exp Summary'!AP$82","v":{"v":0,"d":"$0.00"}},{"$f":"'MMA Rev-Exp Summary'!AQ$82","v":{"v":0,"d":"$0.00"}},{"$f":"'MMA Rev-Exp Summary'!AR$82","v":{"v":0,"d":"$0.00"}},{"$f":"'MMA Rev-Exp Summary'!AS$82","v":{"v":0,"d":"$0.00"}},{"$f":"'MMA Rev-Exp Summary'!AT$82","v":{"v":0,"d":"$0.00"}},{"$f":"'MMA Rev-Exp Summary'!AU$82","v":{"v":0,"d":"$0.00"}},{"v":0,"d":"$0.00"}]
["MMA",null,null,{"$f":"Jurat!I$1","v":0},{"$f":"Jurat!D$33","v":"00:00:00"},"Q4","2017-12-31","Summary","Operating Expense","Medical Benefits Expense","Other Medical","11.8","Reinsurance Premiums",{"$f":"'MMA Rev-Exp Summary'!AK$84","v":{"v":0,"d":"$0.00"}},{"$f":"'MMA Rev-Exp Summary'!AL$84","v":{"v":0,"d":"$0.00"}},{"$f":"'MMA Rev-Exp Summary'!AM$84","v":{"v":0,"d":"$0.00"}},{"$f":"'MMA Rev-Exp Summary'!AN$84","v":{"v":0,"d":"$0.00"}},{"$f":"'MMA Rev-Exp Summary'!AO$84","v":{"v":0,"d":"$0.00"}},{"$f":"'MMA Rev-Exp Summary'!AP$84","v":{"v":0,"d":"$0.00"}},{"$f":"'MMA Rev-Exp Summary'!AQ$84","v":{"v":0,"d":"$0.00"}},{"$f":"'MMA Rev-Exp Summary'!AR$84","v":{"v":0,"d":"$0.00"}},{"$f":"'MMA Rev-Exp Summary'!AS$84","v":{"v":0,"d":"$0.00"}},{"$f":"'MMA Rev-Exp Summary'!AT$84","v":{"v":0,"d":"$0.00"}},{"$f":"'MMA Rev-Exp Summary'!AU$84","v":{"v":0,"d":"$0.00"}},{"v":0,"d":"$0.00"}]
["MMA",null,null,{"$f":"Jurat!I$1","v":0},{"$f":"Jurat!D$33","v":"00:00:00"},"Q4","2017-12-31","Summary","Operating Expense","Medical Benefits Expense","Other Medical","11.9","Reinsurance Recoveries",{"$f":"'MMA Rev-Exp Summary'!AK$85","v":{"v":0,"d":"$0.00"}},{"$f":"'MMA Rev-Exp Summary'!AL$85","v":{"v":0,"d":"$0.00"}},{"$f":"'MMA Rev-Exp Summary'!AM$85","v":{"v":0,"d":"$0.00"}},{"$f":"'MMA Rev-Exp Summary'!AN$85","v":{"v":0,"d":"$0.00"}},{"$f":"'MMA Rev-Exp Summary'!AO$85","v":{"v":0,"d":"$0.00"}},{"$f":"'MMA Rev-Exp Summary'!AP$85","v":{"v":0,"d":"$0.00"}},{"$f":"'MMA Rev-Exp Summary'!AQ$85","v":{"v":0,"d":"$0.00"}},{"$f":"'MMA Rev-Exp Summary'!AR$85","v":{"v":0,"d":"$0.00"}},{"$f":"'MMA Rev-Exp Summary'!AS$85","v":{"v":0,"d":"$0.00"}},{"$f":"'MMA Rev-Exp Summary'!AT$85","v":{"v":0,"d":"$0.00"}},{"$f":"'MMA Rev-Exp Summary'!AU$85","v":{"v":0,"d":"$0.00"}},{"v":0,"d":"$0.00"}]
["MMA",null,null,{"$f":"Jurat!I$1","v":0},{"$f":"Jurat!D$33","v":"00:00:00"},"Q4","2017-12-31","Summary","Operating Expense","Administrative Expense","Administrative","12.1","Salaries & Benefits",{"$f":"'MMA Rev-Exp Summary'!AK$90","v":{"v":0,"d":"$0.00"}},{"v":0,"d":"$0.00"},{"v":0,"d":"$0.00"},{"v":0,"d":"$0.00"},{"v":0,"d":"$0.00"},{"v":0,"d":"$0.00"},{"v":0,"d":"$0.00"},{"v":0,"d":"$0.00"},{"v":0,"d":"$0.00"},{"v":0,"d":"$0.00"},{"v":0,"d":"$0.00"},{"v":0,"d":"$0.00"}]
["MMA",null,null,{"$f":"Jurat!I$1","v":0},{"$f":"Jurat!D$33","v":"00:00:00"},"Q4","2017-12-31","Summary","Operating Expense","Administrative Expense","Administrative","12.2","Administrative Services",{"$f":"'MMA Rev-Exp Summary'!AK$91","v":{"v":0,"d":"$0.00"}},{"v":0,"d":"$0.00"},{"v":0,"d":"$0.00"},{"v":0,"d":"$0.00"},{"v":0,"d":"$0.00"},{"v":0,"d":"$0.00"},{"v":0,"d":"$0.00"},{"v":0,"d":"$0.00"},{"v":0,"d":"$0.00"},{"v":0,"d":"$0.00"},{"v":0,"d":"$0.00"},{"v":0,"d":"$0.00"}]
["MMA",null,null,{"$f":"Jurat!I$1","v":0},{"$f":"Jurat!D$33","v":"00:00:00"},"Q4","2017-12-31","Summary","Operating Expense","Administrative Expense","Administrative","12.3","Information Systems",{"$f":"'MMA Rev-Exp Summary'!AK$92","v":{"v":0,"d":"$0.00"}},{"v":0,"d":"$0.00"},{"v":0,"d":"$0.00"},{"v":0,"d":"$0.00"},{"v":0,"d":"$0.00"},{"v":0,"d":"$0.00"},{"v":0,"d":"$0.00"},{"v":0,"d":"$0.00"},{"v":0,"d":"$0.00"},{"v":0,"d":"$0.00"},{"v":0,"d":"$0.00"},{"v":0,"d":"$0.00"}]
["MMA",null,null,{"$f":"Jurat!I$1","v":0},{"$f":"Jurat!D$33","v":"00:00:00"},"Q4","2017-12-31","Summary","Operating Expense","Administrative Expense","Administrative","12.4","Marketing Expenses",{"$f":"'MMA Rev-Exp Summary'!AK$93","v":{"v":0,"d":"$0.00"}},{"v":0,"d":"$0.00"},{"v":0,"d":"$0.00"},{"v":0,"d":"$0.00"},{"v":0,"d":"$0.00"},{"v":0,"d":"$0.00"},{"v":0,"d":"$0.00"},{"v":0,"d":"$0.00"},{"v":0,"d":"$0.00"},{"v":0,"d":"$0.00"},{"v":0,"d":"$0.00"},{"v":0,"d":"$0.00"}]
["MMA",null,null,{"$f":"Jurat!I$1","v":0},{"$f":"Jurat!D$33","v":"00:00:00"},"Q4","2017-12-31","Summary","Operating Expense","Administrative Expense","Administrative","12.5","General  Administration",{"$f":"'MMA Rev-Exp Summary'!AK$94","v":{"v":0,"d":"$0.00"}},{"v":0,"d":"$0.00"},{"v":0,"d":"$0.00"},{"v":0,"d":"$0.00"},{"v":0,"d":"$0.00"},{"v":0,"d":"$0.00"},{"v":0,"d":"$0.00"},{"v":0,"d":"$0.00"},{"v":0,"d":"$0.00"},{"v":0,"d":"$0.00"},{"v":0,"d":"$0.00"},{"v":0,"d":"$0.00"}]
["MMA",null,null,{"$f":"Jurat!I$1","v":0},{"$f":"Jurat!D$33","v":"00:00:00"},"Q4","2017-12-31","Summary","Operating Expense","Administrative Expense","Administrative","12.6","Compliance/Regulatory",{"$f":"'MMA Rev-Exp Summary'!AK$95","v":{"v":0,"d":"$0.00"}},{"v":0,"d":"$0.00"},{"v":0,"d":"$0.00"},{"v":0,"d":"$0.00"},{"v":0,"d":"$0.00"},{"v":0,"d":"$0.00"},{"v":0,"d":"$0.00"},{"v":0,"d":"$0.00"},{"v":0,"d":"$0.00"},{"v":0,"d":"$0.00"},{"v":0,"d":"$0.00"},{"v":0,"d":"$0.00"}]
["MMA",null,null,{"$f":"Jurat!I$1","v":0},{"$f":"Jurat!D$33","v":"00:00:00"},"Q4","2017-12-31","Summary","Operating Expense","Taxes & Fees","Taxes & Fees","13.1","State Premium tax",{"$f":"'MMA Rev-Exp Summary'!AK$97","v":{"v":0,"d":"$0.00"}},{"v":0,"d":"$0.00"},{"v":0,"d":"$0.00"},{"v":0,"d":"$0.00"},{"v":0,"d":"$0.00"},{"v":0,"d":"$0.00"},{"v":0,"d":"$0.00"},{"v":0,"d":"$0.00"},{"v":0,"d":"$0.00"},{"v":0,"d":"$0.00"},{"v":0,"d":"$0.00"},{"v":0,"d":"$0.00"}]
["MMA",null,null,{"$f":"Jurat!I$1","v":0},{"$f":"Jurat!D$33","v":"00:00:00"},"Q4","2017-12-31","Summary","Operating Expense","Taxes & Fees","Taxes & Fees","13.2","Department of Insurance Assessments",{"$f":"'MMA Rev-Exp Summary'!AK$98","v":{"v":0,"d":"$0.00"}},{"v":0,"d":"$0.00"},{"v":0,"d":"$0.00"},{"v":0,"d":"$0.00"},{"v":0,"d":"$0.00"},{"v":0,"d":"$0.00"},{"v":0,"d":"$0.00"},{"v":0,"d":"$0.00"},{"v":0,"d":"$0.00"},{"v":0,"d":"$0.00"},{"v":0,"d":"$0.00"},{"v":0,"d":"$0.00"}]
["MMA",null,null,{"$f":"Jurat!I$1","v":0},{"$f":"Jurat!D$33","v":"00:00:00"},"Q4","2017-12-31","Summary","Operating Expense","Taxes & Fees","Taxes & Fees","13.3","Section 9010 Health Insurance Providers Fee",{"$f":"'MMA Rev-Exp Summary'!AK$99","v":{"v":0,"d":"$0.00"}},{"v":0,"d":"$0.00"},{"v":0,"d":"$0.00"},{"v":0,"d":"$0.00"},{"v":0,"d":"$0.00"},{"v":0,"d":"$0.00"},{"v":0,"d":"$0.00"},{"v":0,"d":"$0.00"},{"v":0,"d":"$0.00"},{"v":0,"d":"$0.00"},{"v":0,"d":"$0.00"},{"v":0,"d":"$0.00"}]
["MMA",null,null,{"$f":"Jurat!I$1","v":0},{"$f":"Jurat!D$33","v":"00:00:00"},"Q4","2017-12-31","Summary","Non-Operating Expense","Income Tax Expense","Income Tax Expense","16.0","Income Tax Expense",{"$f":"'MMA Rev-Exp Summary'!AK$106","v":{"v":0,"d":"$0.00"}},{"v":0,"d":"$0.00"},{"v":0,"d":"$0.00"},{"v":0,"d":"$0.00"},{"v":0,"d":"$0.00"},{"v":0,"d":"$0.00"},{"v":0,"d":"$0.00"},{"v":0,"d":"$0.00"},{"v":0,"d":"$0.00"},{"v":0,"d":"$0.00"},{"v":0,"d":"$0.00"},{"v":0,"d":"$0.00"}]
["MMA",null,null,{"$f":"Jurat!I$1","v":0},{"$f":"Jurat!D$33","v":"00:00:00"},"Q1","2017-03-31","Region 1","Member Months","Member Months","Member Months",null,"Member Months",{"$f":"'MMA Rev-Exp Region 1'!D$9","v":{"v":0,"d":"$0.00"}},{"$f":"'MMA Rev-Exp Region 1'!E$9","v":{"v":0,"d":"$0.00"}},{"$f":"'MMA Rev-Exp Region 1'!F$9","v":{"v":0,"d":"$0.00"}},{"$f":"'MMA Rev-Exp Region 1'!G$9","v":{"v":0,"d":"$0.00"}},{"$f":"'MMA Rev-Exp Region 1'!H$9","v":{"v":0,"d":"$0.00"}},{"$f":"'MMA Rev-Exp Region 1'!I$9","v":{"v":0,"d":"$0.00"}},{"$f":"'MMA Rev-Exp Region 1'!J$9","v":{"v":0,"d":"$0.00"}},{"$f":"'MMA Rev-Exp Region 1'!K$9","v":{"v":0,"d":"$0.00"}},{"$f":"'MMA Rev-Exp Region 1'!L$9","v":{"v":0,"d":"$0.00"}},{"$f":"'MMA Rev-Exp Region 1'!M$9","v":{"v":0,"d":"$0.00"}},{"$f":"'MMA Rev-Exp Region 1'!N$9","v":{"v":0,"d":"$0.00"}},{"v":0,"d":"$0.00"}]
["MMA",null,null,{"$f":"Jurat!I$1","v":0},{"$f":"Jurat!D$33","v":"00:00:00"},"Q1","2017-03-31","Region 1","Operating Revenue","Capitation","Capitation",1.1,"Capitation",{"$f":"'MMA Rev-Exp Region 1'!D$11","v":{"v":0,"d":"$0.00"}},{"$f":"'MMA Rev-Exp Region 1'!E$11","v":{"v":0,"d":"$0.00"}},{"$f":"'MMA Rev-Exp Region 1'!F$11","v":{"v":0,"d":"$0.00"}},{"$f":"'MMA Rev-Exp Region 1'!G$11","v":{"v":0,"d":"$0.00"}},{"$f":"'MMA Rev-Exp Region 1'!H$11","v":{"v":0,"d":"$0.00"}},{"$f":"'MMA Rev-Exp Region 1'!I$11","v":{"v":0,"d":"$0.00"}},{"$f":"'MMA Rev-Exp Region 1'!J$11","v":{"v":0,"d":"$0.00"}},{"$f":"'MMA Rev-Exp Region 1'!K$11","v":{"v":0,"d":"$0.00"}},{"$f":"'MMA Rev-Exp Region 1'!L$11","v":{"v":0,"d":"$0.00"}},{"$f":"'MMA Rev-Exp Region 1'!M$11","v":{"v":0,"d":"$0.00"}},{"$f":"'MMA Rev-Exp Region 1'!N$11","v":{"v":0,"d":"$0.00"}},{"v":0,"d":"$0.00"}]
["MMA",null,null,{"$f":"Jurat!I$1","v":0},{"$f":"Jurat!D$33","v":"00:00:00"},"Q1","2017-03-31","Region 1","Operating Revenue","Kick Payments","Kick Payments - Transplant",1.2,"Transplant Kick Payments",{"$f":"'MMA Rev-Exp Region 1'!D$12","v":{"v":0,"d":"$0.00"}},{"$f":"'MMA Rev-Exp Region 1'!E$12","v":{"v":0,"d":"$0.00"}},{"$f":"'MMA Rev-Exp Region 1'!F$12","v":{"v":0,"d":"$0.00"}},{"$f":"'MMA Rev-Exp Region 1'!G$12","v":{"v":0,"d":"$0.00"}},{"$f":"'MMA Rev-Exp Region 1'!H$12","v":{"v":0,"d":"$0.00"}},{"$f":"'MMA Rev-Exp Region 1'!I$12","v":{"v":0,"d":"$0.00"}},{"$f":"'MMA Rev-Exp Region 1'!J$12","v":{"v":0,"d":"$0.00"}},{"$f":"'MMA Rev-Exp Region 1'!K$12","v":{"v":0,"d":"$0.00"}},{"$f":"'MMA Rev-Exp Region 1'!L$12","v":{"v":0,"d":"$0.00"}},{"$f":"'MMA Rev-Exp Region 1'!M$12","v":{"v":0,"d":"$0.00"}},{"$f":"'MMA Rev-Exp Region 1'!N$12","v":{"v":0,"d":"$0.00"}},{"v":0,"d":"$0.00"}]
["MMA",null,null,{"$f":"Jurat!I$1","v":0},{"$f":"Jurat!D$33","v":"00:00:00"},"Q1","2017-03-31","Region 1","Operating Revenue","Kick Payments","Kick Payments - Hep C","1.3","Hepatitis C Kick Payments",{"$f":"'MMA Rev-Exp Region 1'!D$13","v":{"v":0,"d":"$0.00"}},{"$f":"'MMA Rev-Exp Region 1'!E$13","v":{"v":0,"d":"$0.00"}},{"$f":"'MMA Rev-Exp Region 1'!F$13","v":{"v":0,"d":"$0.00"}},{"$f":"'MMA Rev-Exp Region 1'!G$13","v":{"v":0,"d":"$0.00"}},{"$f":"'MMA Rev-Exp Region 1'!H$13","v":{"v":0,"d":"$0.00"}},{"$f":"'MMA Rev-Exp Region 1'!I$13","v":{"v":0,"d":"$0.00"}},{"$f":"'MMA Rev-Exp Region 1'!J$13","v":{"v":0,"d":"$0.00"}},{"$f":"'MMA Rev-Exp Region 1'!K$13","v":{"v":0,"d":"$0.00"}},{"$f":"'MMA Rev-Exp Region 1'!L$13","v":{"v":0,"d":"$0.00"}},{"$f":"'MMA Rev-Exp Region 1'!M$13","v":{"v":0,"d":"$0.00"}},{"$f":"'MMA Rev-Exp Region 1'!N$13","v":{"v":0,"d":"$0.00"}},{"v":0,"d":"$0.00"}]
["MMA",null,null,{"$f":"Jurat!I$1","v":0},{"$f":"Jurat!D$33","v":"00:00:00"},"Q1","2017-03-31","Region 1","Operating Revenue","Kick Payments","Kick Payments - Maternity","1.4.1","Maternity Kick Payments",{"$f":"'MMA Rev-Exp Region 1'!D$14","v":{"v":0,"d":"$0.00"}},{"$f":"'MMA Rev-Exp Region 1'!E$14","v":{"v":0,"d":"$0.00"}},{"$f":"'MMA Rev-Exp Region 1'!F$14","v":{"v":0,"d":"$0.00"}},{"$f":"'MMA Rev-Exp Region 1'!G$14","v":{"v":0,"d":"$0.00"}},{"$f":"'MMA Rev-Exp Region 1'!H$14","v":{"v":0,"d":"$0.00"}},{"$f":"'MMA Rev-Exp Region 1'!I$14","v":{"v":0,"d":"$0.00"}},{"$f":"'MMA Rev-Exp Region 1'!J$14","v":{"v":0,"d":"$0.00"}},{"$f":"'MMA Rev-Exp Region 1'!K$14","v":{"v":0,"d":"$0.00"}},{"$f":"'MMA Rev-Exp Region 1'!L$14","v":{"v":0,"d":"$0.00"}},{"$f":"'MMA Rev-Exp Region 1'!M$14","v":{"v":0,"d":"$0.00"}},{"$f":"'MMA Rev-Exp Region 1'!N$14","v":{"v":0,"d":"$0.00"}},{"v":0,"d":"$0.00"}]
["MMA",null,null,{"$f":"Jurat!I$1","v":0},{"$f":"Jurat!D$33","v":"00:00:00"},"Q1","2017-03-31","Region 1","Operating Revenue","Other Revenue","Other Revenue - 9010","1.5","ACA § 9010 related payments",{"$f":"'MMA Rev-Exp Region 1'!D$15","v":{"v":0,"d":"$0.00"}},{"$f":"'MMA Rev-Exp Region 1'!E$15","v":{"v":0,"d":"$0.00"}},{"$f":"'MMA Rev-Exp Region 1'!F$15","v":{"v":0,"d":"$0.00"}},{"$f":"'MMA Rev-Exp Region 1'!G$15","v":{"v":0,"d":"$0.00"}},{"$f":"'MMA Rev-Exp Region 1'!H$15","v":{"v":0,"d":"$0.00"}},{"$f":"'MMA Rev-Exp Region 1'!I$15","v":{"v":0,"d":"$0.00"}},{"$f":"'MMA Rev-Exp Region 1'!J$15","v":{"v":0,"d":"$0.00"}},{"$f":"'MMA Rev-Exp Region 1'!K$15","v":{"v":0,"d":"$0.00"}},{"$f":"'MMA Rev-Exp Region 1'!L$15","v":{"v":0,"d":"$0.00"}},{"$f":"'MMA Rev-Exp Region 1'!M$15","v":{"v":0,"d":"$0.00"}},{"$f":"'MMA Rev-Exp Region 1'!N$15","v":{"v":0,"d":"$0.00"}},{"v":0,"d":"$0.00"}]
["MMA",null,null,{"$f":"Jurat!I$1","v":0},{"$f":"Jurat!D$33","v":"00:00:00"},"Q1","2017-03-31","Region 1","Operating Revenue","Other Revenue","Other Revenue","1.6","Other Revenue",{"$f":"'MMA Rev-Exp Region 1'!D$16","v":{"v":0,"d":"$0.00"}},{"$f":"'MMA Rev-Exp Region 1'!E$16","v":{"v":0,"d":"$0.00"}},{"$f":"'MMA Rev-Exp Region 1'!F$16","v":{"v":0,"d":"$0.00"}},{"$f":"'MMA Rev-Exp Region 1'!G$16","v":{"v":0,"d":"$0.00"}},{"$f":"'MMA Rev-Exp Region 1'!H$16","v":{"v":0,"d":"$0.00"}},{"$f":"'MMA Rev-Exp Region 1'!I$16","v":{"v":0,"d":"$0.00"}},{"$f":"'MMA Rev-Exp Region 1'!J$16","v":{"v":0,"d":"$0.00"}},{"$f":"'MMA Rev-Exp Region 1'!K$16","v":{"v":0,"d":"$0.00"}},{"$f":"'MMA Rev-Exp Region 1'!L$16","v":{"v":0,"d":"$0.00"}},{"$f":"'MMA Rev-Exp Region 1'!M$16","v":{"v":0,"d":"$0.00"}},{"$f":"'MMA Rev-Exp Region 1'!N$16","v":{"v":0,"d":"$0.00"}},{"v":0,"d":"$0.00"}]
["MMA",null,null,{"$f":"Jurat!I$1","v":0},{"$f":"Jurat!D$33","v":"00:00:00"},"Q1","2017-03-31","Region 1","Operating Expense","Medical Benefits Expense","Hospital Services",2.1,"Inpatient FFS",{"$f":"'MMA Rev-Exp Region 1'!D$20","v":{"v":0,"d":"$0.00"}},{"$f":"'MMA Rev-Exp Region 1'!E$20","v":{"v":0,"d":"$0.00"}},{"$f":"'MMA Rev-Exp Region 1'!F$20","v":{"v":0,"d":"$0.00"}},{"$f":"'MMA Rev-Exp Region 1'!G$20","v":{"v":0,"d":"$0.00"}},{"$f":"'MMA Rev-Exp Region 1'!H$20","v":{"v":0,"d":"$0.00"}},{"$f":"'MMA Rev-Exp Region 1'!I$20","v":{"v":0,"d":"$0.00"}},{"$f":"'MMA Rev-Exp Region 1'!J$20","v":{"v":0,"d":"$0.00"}},{"$f":"'MMA Rev-Exp Region 1'!K$20","v":{"v":0,"d":"$0.00"}},{"$f":"'MMA Rev-Exp Region 1'!L$20","v":{"v":0,"d":"$0.00"}},{"$f":"'MMA Rev-Exp Region 1'!M$20","v":{"v":0,"d":"$0.00"}},{"$f":"'MMA Rev-Exp Region 1'!N$20","v":{"v":0,"d":"$0.00"}},{"v":0,"d":"$0.00"}]
["MMA",null,null,{"$f":"Jurat!I$1","v":0},{"$f":"Jurat!D$33","v":"00:00:00"},"Q1","2017-03-31","Region 1","Operating Expense","Medical Benefits Expense","Hospital Services",2.2,"Ending IBNP for Inpatient Hospital Services",{"$f":"'MMA Rev-Exp Region 1'!D$21","v":{"v":0,"d":"$0.00"}},{"$f":"'MMA Rev-Exp Region 1'!E$21","v":{"v":0,"d":"$0.00"}},{"$f":"'MMA Rev-Exp Region 1'!F$21","v":{"v":0,"d":"$0.00"}},{"$f":"'MMA Rev-Exp Region 1'!G$21","v":{"v":0,"d":"$0.00"}},{"$f":"'MMA Rev-Exp Region 1'!H$21","v":{"v":0,"d":"$0.00"}},{"$f":"'MMA Rev-Exp Region 1'!I$21","v":{"v":0,"d":"$0.00"}},{"$f":"'MMA Rev-Exp Region 1'!J$21","v":{"v":0,"d":"$0.00"}},{"$f":"'MMA Rev-Exp Region 1'!K$21","v":{"v":0,"d":"$0.00"}},{"$f":"'MMA Rev-Exp Region 1'!L$21","v":{"v":0,"d":"$0.00"}},{"$f":"'MMA Rev-Exp Region 1'!M$21","v":{"v":0,"d":"$0.00"}},{"$f":"'MMA Rev-Exp Region 1'!N$21","v":{"v":0,"d":"$0.00"}},{"v":0,"d":"$0.00"}]
["MMA",null,null,{"$f":"Jurat!I$1","v":0},{"$f":"Jurat!D$33","v":"00:00:00"},"Q1","2017-03-31","Region 1","Operating Expense","Medical Benefits Expense","Hospital Services",2.3,"Outpatient FFS: ER",{"$f":"'MMA Rev-Exp Region 1'!D$22","v":{"v":0,"d":"$0.00"}},{"$f":"'MMA Rev-Exp Region 1'!E$22","v":{"v":0,"d":"$0.00"}},{"$f":"'MMA Rev-Exp Region 1'!F$22","v":{"v":0,"d":"$0.00"}},{"$f":"'MMA Rev-Exp Region 1'!G$22","v":{"v":0,"d":"$0.00"}},{"$f":"'MMA Rev-Exp Region 1'!H$22","v":{"v":0,"d":"$0.00"}},{"$f":"'MMA Rev-Exp Region 1'!I$22","v":{"v":0,"d":"$0.00"}},{"$f":"'MMA Rev-Exp Region 1'!J$22","v":{"v":0,"d":"$0.00"}},{"$f":"'MMA Rev-Exp Region 1'!K$22","v":{"v":0,"d":"$0.00"}},{"$f":"'MMA Rev-Exp Region 1'!L$22","v":{"v":0,"d":"$0.00"}},{"$f":"'MMA Rev-Exp Region 1'!M$22","v":{"v":0,"d":"$0.00"}},{"$f":"'MMA Rev-Exp Region 1'!N$22","v":{"v":0,"d":"$0.00"}},{"v":0,"d":"$0.00"}]
["MMA",null,null,{"$f":"Jurat!I$1","v":0},{"$f":"Jurat!D$33","v":"00:00:00"},"Q1","2017-03-31","Region 1","Operating Expense","Medical Benefits Expense","Hospital Services",2.4,"Outpatient FFS: Other than ER ",{"$f":"'MMA Rev-Exp Region 1'!D$23","v":{"v":0,"d":"$0.00"}},{"$f":"'MMA Rev-Exp Region 1'!E$23","v":{"v":0,"d":"$0.00"}},{"$f":"'MMA Rev-Exp Region 1'!F$23","v":{"v":0,"d":"$0.00"}},{"$f":"'MMA Rev-Exp Region 1'!G$23","v":{"v":0,"d":"$0.00"}},{"$f":"'MMA Rev-Exp Region 1'!H$23","v":{"v":0,"d":"$0.00"}},{"$f":"'MMA Rev-Exp Region 1'!I$23","v":{"v":0,"d":"$0.00"}},{"$f":"'MMA Rev-Exp Region 1'!J$23","v":{"v":0,"d":"$0.00"}},{"$f":"'MMA Rev-Exp Region 1'!K$23","v":{"v":0,"d":"$0.00"}},{"$f":"'MMA Rev-Exp Region 1'!L$23","v":{"v":0,"d":"$0.00"}},{"$f":"'MMA Rev-Exp Region 1'!M$23","v":{"v":0,"d":"$0.00"}},{"$f":"'MMA Rev-Exp Region 1'!N$23","v":{"v":0,"d":"$0.00"}},{"v":0,"d":"$0.00"}]
["MMA",null,null,{"$f":"Jurat!I$1","v":0},{"$f":"Jurat!D$33","v":"00:00:00"},"Q1","2017-03-31","Region 1","Operating Expense","Medical Benefits Expense","Hospital Services",2.5,"Ending IBNP for Outpatient Hospital Services",{"$f":"'MMA Rev-Exp Region 1'!D$24","v":{"v":0,"d":"$0.00"}},{"$f":"'MMA Rev-Exp Region 1'!E$24","v":{"v":0,"d":"$0.00"}},{"$f":"'MMA Rev-Exp Region 1'!F$24","v":{"v":0,"d":"$0.00"}},{"$f":"'MMA Rev-Exp Region 1'!G$24","v":{"v":0,"d":"$0.00"}},{"$f":"'MMA Rev-Exp Region 1'!H$24","v":{"v":0,"d":"$0.00"}},{"$f":"'MMA Rev-Exp Region 1'!I$24","v":{"v":0,"d":"$0.00"}},{"$f":"'MMA Rev-Exp Region 1'!J$24","v":{"v":0,"d":"$0.00"}},{"$f":"'MMA Rev-Exp Region 1'!K$24","v":{"v":0,"d":"$0.00"}},{"$f":"'MMA Rev-Exp Region 1'!L$24","v":{"v":0,"d":"$0.00"}},{"$f":"'MMA Rev-Exp Region 1'!M$24","v":{"v":0,"d":"$0.00"}},{"$f":"'MMA Rev-Exp Region 1'!N$24","v":{"v":0,"d":"$0.00"}},{"v":0,"d":"$0.00"}]
["MMA",null,null,{"$f":"Jurat!I$1","v":0},{"$f":"Jurat!D$33","v":"00:00:00"},"Q1","2017-03-31","Region 1","Operating Expense","Medical Benefits Expense","Hospital Services","2.6","Subcapitated Hospital Services",{"$f":"'MMA Rev-Exp Region 1'!D$25","v":{"v":0,"d":"$0.00"}},{"$f":"'MMA Rev-Exp Region 1'!E$25","v":{"v":0,"d":"$0.00"}},{"$f":"'MMA Rev-Exp Region 1'!F$25","v":{"v":0,"d":"$0.00"}},{"$f":"'MMA Rev-Exp Region 1'!G$25","v":{"v":0,"d":"$0.00"}},{"$f":"'MMA Rev-Exp Region 1'!H$25","v":{"v":0,"d":"$0.00"}},{"$f":"'MMA Rev-Exp Region 1'!I$25","v":{"v":0,"d":"$0.00"}},{"$f":"'MMA Rev-Exp Region 1'!J$25","v":{"v":0,"d":"$0.00"}},{"$f":"'MMA Rev-Exp Region 1'!K$25","v":{"v":0,"d":"$0.00"}},{"$f":"'MMA Rev-Exp Region 1'!L$25","v":{"v":0,"d":"$0.00"}},{"$f":"'MMA Rev-Exp Region 1'!M$25","v":{"v":0,"d":"$0.00"}},{"$f":"'MMA Rev-Exp Region 1'!N$25","v":{"v":0,"d":"$0.00"}},{"v":0,"d":"$0.00"}]
["MMA",null,null,{"$f":"Jurat!I$1","v":0},{"$f":"Jurat!D$33","v":"00:00:00"},"Q1","2017-03-31","Region 1","Operating Expense","Medical Benefits Expense","Hospital Services","2.7","Hospital Settlements",{"$f":"'MMA Rev-Exp Region 1'!D$26","v":{"v":0,"d":"$0.00"}},{"$f":"'MMA Rev-Exp Region 1'!E$26","v":{"v":0,"d":"$0.00"}},{"$f":"'MMA Rev-Exp Region 1'!F$26","v":{"v":0,"d":"$0.00"}},{"$f":"'MMA Rev-Exp Region 1'!G$26","v":{"v":0,"d":"$0.00"}},{"$f":"'MMA Rev-Exp Region 1'!H$26","v":{"v":0,"d":"$0.00"}},{"$f":"'MMA Rev-Exp Region 1'!I$26","v":{"v":0,"d":"$0.00"}},{"$f":"'MMA Rev-Exp Region 1'!J$26","v":{"v":0,"d":"$0.00"}},{"$f":"'MMA Rev-Exp Region 1'!K$26","v":{"v":0,"d":"$0.00"}},{"$f":"'MMA Rev-Exp Region 1'!L$26","v":{"v":0,"d":"$0.00"}},{"$f":"'MMA Rev-Exp Region 1'!M$26","v":{"v":0,"d":"$0.00"}},{"$f":"'MMA Rev-Exp Region 1'!N$26","v":{"v":0,"d":"$0.00"}},{"v":0,"d":"$0.00"}]
["MMA",null,null,{"$f":"Jurat!I$1","v":0},{"$f":"Jurat!D$33","v":"00:00:00"},"Q1","2017-03-31","Region 1","Operating Expense","Medical Benefits Expense","Hospital Services","2.7.1","Transplant Services",{"$f":"'MMA Rev-Exp Region 1'!D$27","v":{"v":0,"d":"$0.00"}},{"$f":"'MMA Rev-Exp Region 1'!E$27","v":{"v":0,"d":"$0.00"}},{"$f":"'MMA Rev-Exp Region 1'!F$27","v":{"v":0,"d":"$0.00"}},{"$f":"'MMA Rev-Exp Region 1'!G$27","v":{"v":0,"d":"$0.00"}},{"$f":"'MMA Rev-Exp Region 1'!H$27","v":{"v":0,"d":"$0.00"}},{"$f":"'MMA Rev-Exp Region 1'!I$27","v":{"v":0,"d":"$0.00"}},{"$f":"'MMA Rev-Exp Region 1'!J$27","v":{"v":0,"d":"$0.00"}},{"$f":"'MMA Rev-Exp Region 1'!K$27","v":{"v":0,"d":"$0.00"}},{"$f":"'MMA Rev-Exp Region 1'!L$27","v":{"v":0,"d":"$0.00"}},{"$f":"'MMA Rev-Exp Region 1'!M$27","v":{"v":0,"d":"$0.00"}},{"$f":"'MMA Rev-Exp Region 1'!N$27","v":{"v":0,"d":"$0.00"}},{"v":0,"d":"$0.00"}]
["MMA",null,null,{"$f":"Jurat!I$1","v":0},{"$f":"Jurat!D$33","v":"00:00:00"},"Q1","2017-03-31","Region 1","Operating Expense","Medical Benefits Expense","Professional Services",3.1,"Primary Care FFS",{"$f":"'MMA Rev-Exp Region 1'!D$29","v":{"v":0,"d":"$0.00"}},{"$f":"'MMA Rev-Exp Region 1'!E$29","v":{"v":0,"d":"$0.00"}},{"$f":"'MMA Rev-Exp Region 1'!F$29","v":{"v":0,"d":"$0.00"}},{"$f":"'MMA Rev-Exp Region 1'!G$29","v":{"v":0,"d":"$0.00"}},{"$f":"'MMA Rev-Exp Region 1'!H$29","v":{"v":0,"d":"$0.00"}},{"$f":"'MMA Rev-Exp Region 1'!I$29","v":{"v":0,"d":"$0.00"}},{"$f":"'MMA Rev-Exp Region 1'!J$29","v":{"v":0,"d":"$0.00"}},{"$f":"'MMA Rev-Exp Region 1'!K$29","v":{"v":0,"d":"$0.00"}},{"$f":"'MMA Rev-Exp Region 1'!L$29","v":{"v":0,"d":"$0.00"}},{"$f":"'MMA Rev-Exp Region 1'!M$29","v":{"v":0,"d":"$0.00"}},{"$f":"'MMA Rev-Exp Region 1'!N$29","v":{"v":0,"d":"$0.00"}},{"v":0,"d":"$0.00"}]
["MMA",null,null,{"$f":"Jurat!I$1","v":0},{"$f":"Jurat!D$33","v":"00:00:00"},"Q1","2017-03-31","Region 1","Operating Expense","Medical Benefits Expense","Professional Services",3.2,"Specialty Care FFS",{"$f":"'MMA Rev-Exp Region 1'!D$30","v":{"v":0,"d":"$0.00"}},{"$f":"'MMA Rev-Exp Region 1'!E$30","v":{"v":0,"d":"$0.00"}},{"$f":"'MMA Rev-Exp Region 1'!F$30","v":{"v":0,"d":"$0.00"}},{"$f":"'MMA Rev-Exp Region 1'!G$30","v":{"v":0,"d":"$0.00"}},{"$f":"'MMA Rev-Exp Region 1'!H$30","v":{"v":0,"d":"$0.00"}},{"$f":"'MMA Rev-Exp Region 1'!I$30","v":{"v":0,"d":"$0.00"}},{"$f":"'MMA Rev-Exp Region 1'!J$30","v":{"v":0,"d":"$0.00"}},{"$f":"'MMA Rev-Exp Region 1'!K$30","v":{"v":0,"d":"$0.00"}},{"$f":"'MMA Rev-Exp Region 1'!L$30","v":{"v":0,"d":"$0.00"}},{"$f":"'MMA Rev-Exp Region 1'!M$30","v":{"v":0,"d":"$0.00"}},{"$f":"'MMA Rev-Exp Region 1'!N$30","v":{"v":0,"d":"$0.00"}},{"v":0,"d":"$0.00"}]
["MMA",null,null,{"$f":"Jurat!I$1","v":0},{"$f":"Jurat!D$33","v":"00:00:00"},"Q1","2017-03-31","Region 1","Operating Expense","Medical Benefits Expense","Professional Services",3.3,"Other Professional FFS",{"$f":"'MMA Rev-Exp Region 1'!D$31","v":{"v":0,"d":"$0.00"}},{"$f":"'MMA Rev-Exp Region 1'!E$31","v":{"v":0,"d":"$0.00"}},{"$f":"'MMA Rev-Exp Region 1'!F$31","v":{"v":0,"d":"$0.00"}},{"$f":"'MMA Rev-Exp Region 1'!G$31","v":{"v":0,"d":"$0.00"}},{"$f":"'MMA Rev-Exp Region 1'!H$31","v":{"v":0,"d":"$0.00"}},{"$f":"'MMA Rev-Exp Region 1'!I$31","v":{"v":0,"d":"$0.00"}},{"$f":"'MMA Rev-Exp Region 1'!J$31","v":{"v":0,"d":"$0.00"}},{"$f":"'MMA Rev-Exp Region 1'!K$31","v":{"v":0,"d":"$0.00"}},{"$f":"'MMA Rev-Exp Region 1'!L$31","v":{"v":0,"d":"$0.00"}},{"$f":"'MMA Rev-Exp Region 1'!M$31","v":{"v":0,"d":"$0.00"}},{"$f":"'MMA Rev-Exp Region 1'!N$31","v":{"v":0,"d":"$0.00"}},{"v":0,"d":"$0.00"}]
["MMA",null,null,{"$f":"Jurat!I$1","v":0},{"$f":"Jurat!D$33","v":"00:00:00"},"Q1","2017-03-31","Region 1","Operating Expense","Medical Benefits Expense","Professional Services","3.4","§ 1202 PCP Payments to providers",{"$f":"'MMA Rev-Exp Region 1'!D$32","v":{"v":0,"d":"$0.00"}},{"$f":"'MMA Rev-Exp Region 1'!E$32","v":{"v":0,"d":"$0.00"}},{"$f":"'MMA Rev-Exp Region 1'!F$32","v":{"v":0,"d":"$0.00"}},{"$f":"'MMA Rev-Exp Region 1'!G$32","v":{"v":0,"d":"$0.00"}},{"$f":"'MMA Rev-Exp Region 1'!H$32","v":{"v":0,"d":"$0.00"}},{"$f":"'MMA Rev-Exp Region 1'!I$32","v":{"v":0,"d":"$0.00"}},{"$f":"'MMA Rev-Exp Region 1'!J$32","v":{"v":0,"d":"$0.00"}},{"$f":"'MMA Rev-Exp Region 1'!K$32","v":{"v":0,"d":"$0.00"}},{"$f":"'MMA Rev-Exp Region 1'!L$32","v":{"v":0,"d":"$0.00"}},{"$f":"'MMA Rev-Exp Region 1'!M$32","v":{"v":0,"d":"$0.00"}},{"$f":"'MMA Rev-Exp Region 1'!N$32","v":{"v":0,"d":"$0.00"}},{"v":0,"d":"$0.00"}]
["MMA",null,null,{"$f":"Jurat!I$1","v":0},{"$f":"Jurat!D$33","v":"00:00:00"},"Q1","2017-03-31","Region 1","Operating Expense","Medical Benefits Expense","Professional Services","3.5","Subcapitated Professional Services",{"$f":"'MMA Rev-Exp Region 1'!D$33","v":{"v":0,"d":"$0.00"}},{"$f":"'MMA Rev-Exp Region 1'!E$33","v":{"v":0,"d":"$0.00"}},{"$f":"'MMA Rev-Exp Region 1'!F$33","v":{"v":0,"d":"$0.00"}},{"$f":"'MMA Rev-Exp Region 1'!G$33","v":{"v":0,"d":"$0.00"}},{"$f":"'MMA Rev-Exp Region 1'!H$33","v":{"v":0,"d":"$0.00"}},{"$f":"'MMA Rev-Exp Region 1'!I$33","v":{"v":0,"d":"$0.00"}},{"$f":"'MMA Rev-Exp Region 1'!J$33","v":{"v":0,"d":"$0.00"}},{"$f":"'MMA Rev-Exp Region 1'!K$33","v":{"v":0,"d":"$0.00"}},{"$f":"'MMA Rev-Exp Region 1'!L$33","v":{"v":0,"d":"$0.00"}},{"$f":"'MMA Rev-Exp Region 1'!M$33","v":{"v":0,"d":"$0.00"}},{"$f":"'MMA Rev-Exp Region 1'!N$33","v":{"v":0,"d":"$0.00"}},{"v":0,"d":"$0.00"}]
["MMA",null,null,{"$f":"Jurat!I$1","v":0},{"$f":"Jurat!D$33","v":"00:00:00"},"Q1","2017-03-31","Region 1","Operating Expense","Medical Benefits Expense","Professional Services","3.6","Ending IBNP for Professional Services",{"$f":"'MMA Rev-Exp Region 1'!D$34","v":{"v":0,"d":"$0.00"}},{"$f":"'MMA Rev-Exp Region 1'!E$34","v":{"v":0,"d":"$0.00"}},{"$f":"'MMA Rev-Exp Region 1'!F$34","v":{"v":0,"d":"$0.00"}},{"$f":"'MMA Rev-Exp Region 1'!G$34","v":{"v":0,"d":"$0.00"}},{"$f":"'MMA Rev-Exp Region 1'!H$34","v":{"v":0,"d":"$0.00"}},{"$f":"'MMA Rev-Exp Region 1'!I$34","v":{"v":0,"d":"$0.00"}},{"$f":"'MMA Rev-Exp Region 1'!J$34","v":{"v":0,"d":"$0.00"}},{"$f":"'MMA Rev-Exp Region 1'!K$34","v":{"v":0,"d":"$0.00"}},{"$f":"'MMA Rev-Exp Region 1'!L$34","v":{"v":0,"d":"$0.00"}},{"$f":"'MMA Rev-Exp Region 1'!M$34","v":{"v":0,"d":"$0.00"}},{"$f":"'MMA Rev-Exp Region 1'!N$34","v":{"v":0,"d":"$0.00"}},{"v":0,"d":"$0.00"}]
["MMA",null,null,{"$f":"Jurat!I$1","v":0},{"$f":"Jurat!D$33","v":"00:00:00"},"Q1","2017-03-31","Region 1","Operating Expense","Medical Benefits Expense","Professional Services","3.7","Professional Services Settlements",{"$f":"'MMA Rev-Exp Region 1'!D$35","v":{"v":0,"d":"$0.00"}},{"$f":"'MMA Rev-Exp Region 1'!E$35","v":{"v":0,"d":"$0.00"}},{"$f":"'MMA Rev-Exp Region 1'!F$35","v":{"v":0,"d":"$0.00"}},{"$f":"'MMA Rev-Exp Region 1'!G$35","v":{"v":0,"d":"$0.00"}},{"$f":"'MMA Rev-Exp Region 1'!H$35","v":{"v":0,"d":"$0.00"}},{"$f":"'MMA Rev-Exp Region 1'!I$35","v":{"v":0,"d":"$0.00"}},{"$f":"'MMA Rev-Exp Region 1'!J$35","v":{"v":0,"d":"$0.00"}},{"$f":"'MMA Rev-Exp Region 1'!K$35","v":{"v":0,"d":"$0.00"}},{"$f":"'MMA Rev-Exp Region 1'!L$35","v":{"v":0,"d":"$0.00"}},{"$f":"'MMA Rev-Exp Region 1'!M$35","v":{"v":0,"d":"$0.00"}},{"$f":"'MMA Rev-Exp Region 1'!N$35","v":{"v":0,"d":"$0.00"}},{"v":0,"d":"$0.00"}]
["MMA",null,null,{"$f":"Jurat!I$1","v":0},{"$f":"Jurat!D$33","v":"00:00:00"},"Q1","2017-03-31","Region 1","Operating Expense","Medical Benefits Expense","Maternity Services","4.1.1","Maternity Services",{"$f":"'MMA Rev-Exp Region 1'!D$37","v":{"v":0,"d":"$0.00"}},{"$f":"'MMA Rev-Exp Region 1'!E$37","v":{"v":0,"d":"$0.00"}},{"$f":"'MMA Rev-Exp Region 1'!F$37","v":{"v":0,"d":"$0.00"}},{"$f":"'MMA Rev-Exp Region 1'!G$37","v":{"v":0,"d":"$0.00"}},{"$f":"'MMA Rev-Exp Region 1'!H$37","v":{"v":0,"d":"$0.00"}},{"$f":"'MMA Rev-Exp Region 1'!I$37","v":{"v":0,"d":"$0.00"}},{"$f":"'MMA Rev-Exp Region 1'!J$37","v":{"v":0,"d":"$0.00"}},{"$f":"'MMA Rev-Exp Region 1'!K$37","v":{"v":0,"d":"$0.00"}},{"$f":"'MMA Rev-Exp Region 1'!L$37","v":{"v":0,"d":"$0.00"}},{"$f":"'MMA Rev-Exp Region 1'!M$37","v":{"v":0,"d":"$0.00"}},{"$f":"'MMA Rev-Exp Region 1'!N$37","v":{"v":0,"d":"$0.00"}},{"v":0,"d":"$0.00"}]
["MMA",null,null,{"$f":"Jurat!I$1","v":0},{"$f":"Jurat!D$33","v":"00:00:00"},"Q1","2017-03-31","Region 1","Operating Expense","Medical Benefits Expense","Maternity Services","4.2.1","Ending IBNP for Maternity Services",{"$f":"'MMA Rev-Exp Region 1'!D$38","v":{"v":0,"d":"$0.00"}},{"$f":"'MMA Rev-Exp Region 1'!E$38","v":{"v":0,"d":"$0.00"}},{"$f":"'MMA Rev-Exp Region 1'!F$38","v":{"v":0,"d":"$0.00"}},{"$f":"'MMA Rev-Exp Region 1'!G$38","v":{"v":0,"d":"$0.00"}},{"$f":"'MMA Rev-Exp Region 1'!H$38","v":{"v":0,"d":"$0.00"}},{"$f":"'MMA Rev-Exp Region 1'!I$38","v":{"v":0,"d":"$0.00"}},{"$f":"'MMA Rev-Exp Region 1'!J$38","v":{"v":0,"d":"$0.00"}},{"$f":"'MMA Rev-Exp Region 1'!K$38","v":{"v":0,"d":"$0.00"}},{"$f":"'MMA Rev-Exp Region 1'!L$38","v":{"v":0,"d":"$0.00"}},{"$f":"'MMA Rev-Exp Region 1'!M$38","v":{"v":0,"d":"$0.00"}},{"$f":"'MMA Rev-Exp Region 1'!N$38","v":{"v":0,"d":"$0.00"}},{"v":0,"d":"$0.00"}]
["MMA",null,null,{"$f":"Jurat!I$1","v":0},{"$f":"Jurat!D$33","v":"00:00:00"},"Q1","2017-03-31","Region 1","Operating Expense","Medical Benefits Expense","Maternity Services","4.3.1","Maternity Settlements",{"$f":"'MMA Rev-Exp Region 1'!D$39","v":{"v":0,"d":"$0.00"}},{"$f":"'MMA Rev-Exp Region 1'!E$39","v":{"v":0,"d":"$0.00"}},{"$f":"'MMA Rev-Exp Region 1'!F$39","v":{"v":0,"d":"$0.00"}},{"$f":"'MMA Rev-Exp Region 1'!G$39","v":{"v":0,"d":"$0.00"}},{"$f":"'MMA Rev-Exp Region 1'!H$39","v":{"v":0,"d":"$0.00"}},{"$f":"'MMA Rev-Exp Region 1'!I$39","v":{"v":0,"d":"$0.00"}},{"$f":"'MMA Rev-Exp Region 1'!J$39","v":{"v":0,"d":"$0.00"}},{"$f":"'MMA Rev-Exp Region 1'!K$39","v":{"v":0,"d":"$0.00"}},{"$f":"'MMA Rev-Exp Region 1'!L$39","v":{"v":0,"d":"$0.00"}},{"$f":"'MMA Rev-Exp Region 1'!M$39","v":{"v":0,"d":"$0.00"}},{"$f":"'MMA Rev-Exp Region 1'!N$39","v":{"v":0,"d":"$0.00"}},{"v":0,"d":"$0.00"}]
["MMA",null,null,{"$f":"Jurat!I$1","v":0},{"$f":"Jurat!D$33","v":"00:00:00"},"Q1","2017-03-31","Region 1","Operating Expense","Medical Benefits Expense","Mental Health Services",5.1,"Mental Health & Substance Abuse FFS",{"$f":"'MMA Rev-Exp Region 1'!D$41","v":{"v":0,"d":"$0.00"}},{"$f":"'MMA Rev-Exp Region 1'!E$41","v":{"v":0,"d":"$0.00"}},{"$f":"'MMA Rev-Exp Region 1'!F$41","v":{"v":0,"d":"$0.00"}},{"$f":"'MMA Rev-Exp Region 1'!G$41","v":{"v":0,"d":"$0.00"}},{"$f":"'MMA Rev-Exp Region 1'!H$41","v":{"v":0,"d":"$0.00"}},{"$f":"'MMA Rev-Exp Region 1'!I$41","v":{"v":0,"d":"$0.00"}},{"$f":"'MMA Rev-Exp Region 1'!J$41","v":{"v":0,"d":"$0.00"}},{"$f":"'MMA Rev-Exp Region 1'!K$41","v":{"v":0,"d":"$0.00"}},{"$f":"'MMA Rev-Exp Region 1'!L$41","v":{"v":0,"d":"$0.00"}},{"$f":"'MMA Rev-Exp Region 1'!M$41","v":{"v":0,"d":"$0.00"}},{"$f":"'MMA Rev-Exp Region 1'!N$41","v":{"v":0,"d":"$0.00"}},{"v":0,"d":"$0.00"}]
["MMA",null,null,{"$f":"Jurat!I$1","v":0},{"$f":"Jurat!D$33","v":"00:00:00"},"Q1","2017-03-31","Region 1","Operating Expense","Medical Benefits Expense","Mental Health Services",5.2,"Mental Health & Substance Abuse Subcapitation",{"$f":"'MMA Rev-Exp Region 1'!D$42","v":{"v":0,"d":"$0.00"}},{"$f":"'MMA Rev-Exp Region 1'!E$42","v":{"v":0,"d":"$0.00"}},{"$f":"'MMA Rev-Exp Region 1'!F$42","v":{"v":0,"d":"$0.00"}},{"$f":"'MMA Rev-Exp Region 1'!G$42","v":{"v":0,"d":"$0.00"}},{"$f":"'MMA Rev-Exp Region 1'!H$42","v":{"v":0,"d":"$0.00"}},{"$f":"'MMA Rev-Exp Region 1'!I$42","v":{"v":0,"d":"$0.00"}},{"$f":"'MMA Rev-Exp Region 1'!J$42","v":{"v":0,"d":"$0.00"}},{"$f":"'MMA Rev-Exp Region 1'!K$42","v":{"v":0,"d":"$0.00"}},{"$f":"'MMA Rev-Exp Region 1'!L$42","v":{"v":0,"d":"$0.00"}},{"$f":"'MMA Rev-Exp Region 1'!M$42","v":{"v":0,"d":"$0.00"}},{"$f":"'MMA Rev-Exp Region 1'!N$42","v":{"v":0,"d":"$0.00"}},{"v":0,"d":"$0.00"}]
["MMA",null,null,{"$f":"Jurat!I$1","v":0},{"$f":"Jurat!D$33","v":"00:00:00"},"Q1","2017-03-31","Region 1","Operating Expense","Medical Benefits Expense","Mental Health Services",5.3,"Ending IBNP for Mental Health & Substance Abuse",{"$f":"'MMA Rev-Exp Region 1'!D$43","v":{"v":0,"d":"$0.00"}},{"$f":"'MMA Rev-Exp Region 1'!E$43","v":{"v":0,"d":"$0.00"}},{"$f":"'MMA Rev-Exp Region 1'!F$43","v":{"v":0,"d":"$0.00"}},{"$f":"'MMA Rev-Exp Region 1'!G$43","v":{"v":0,"d":"$0.00"}},{"$f":"'MMA Rev-Exp Region 1'!H$43","v":{"v":0,"d":"$0.00"}},{"$f":"'MMA Rev-Exp Region 1'!I$43","v":{"v":0,"d":"$0.00"}},{"$f":"'MMA Rev-Exp Region 1'!J$43","v":{"v":0,"d":"$0.00"}},{"$f":"'MMA Rev-Exp Region 1'!K$43","v":{"v":0,"d":"$0.00"}},{"$f":"'MMA Rev-Exp Region 1'!L$43","v":{"v":0,"d":"$0.00"}},{"$f":"'MMA Rev-Exp Region 1'!M$43","v":{"v":0,"d":"$0.00"}},{"$f":"'MMA Rev-Exp Region 1'!N$43","v":{"v":0,"d":"$0.00"}},{"v":0,"d":"$0.00"}]
["MMA",null,null,{"$f":"Jurat!I$1","v":0},{"$f":"Jurat!D$33","v":"00:00:00"},"Q1","2017-03-31","Region 1","Operating Expense","Medical Benefits Expense","Mental Health Services","5.4","Mental Health Settlements",{"$f":"'MMA Rev-Exp Region 1'!D$44","v":{"v":0,"d":"$0.00"}},{"$f":"'MMA Rev-Exp Region 1'!E$44","v":{"v":0,"d":"$0.00"}},{"$f":"'MMA Rev-Exp Region 1'!F$44","v":{"v":0,"d":"$0.00"}},{"$f":"'MMA Rev-Exp Region 1'!G$44","v":{"v":0,"d":"$0.00"}},{"$f":"'MMA Rev-Exp Region 1'!H$44","v":{"v":0,"d":"$0.00"}},{"$f":"'MMA Rev-Exp Region 1'!I$44","v":{"v":0,"d":"$0.00"}},{"$f":"'MMA Rev-Exp Region 1'!J$44","v":{"v":0,"d":"$0.00"}},{"$f":"'MMA Rev-Exp Region 1'!K$44","v":{"v":0,"d":"$0.00"}},{"$f":"'MMA Rev-Exp Region 1'!L$44","v":{"v":0,"d":"$0.00"}},{"$f":"'MMA Rev-Exp Region 1'!M$44","v":{"v":0,"d":"$0.00"}},{"$f":"'MMA Rev-Exp Region 1'!N$44","v":{"v":0,"d":"$0.00"}},{"v":0,"d":"$0.00"}]
["MMA",null,null,{"$f":"Jurat!I$1","v":0},{"$f":"Jurat!D$33","v":"00:00:00"},"Q1","2017-03-31","Region 1","Operating Expense","Medical Benefits Expense","Dental Services",6.1,"Dental FFS",{"$f":"'MMA Rev-Exp Region 1'!D$46","v":{"v":0,"d":"$0.00"}},{"$f":"'MMA Rev-Exp Region 1'!E$46","v":{"v":0,"d":"$0.00"}},{"$f":"'MMA Rev-Exp Region 1'!F$46","v":{"v":0,"d":"$0.00"}},{"$f":"'MMA Rev-Exp Region 1'!G$46","v":{"v":0,"d":"$0.00"}},{"$f":"'MMA Rev-Exp Region 1'!H$46","v":{"v":0,"d":"$0.00"}},{"$f":"'MMA Rev-Exp Region 1'!I$46","v":{"v":0,"d":"$0.00"}},{"$f":"'MMA Rev-Exp Region 1'!J$46","v":{"v":0,"d":"$0.00"}},{"$f":"'MMA Rev-Exp Region 1'!K$46","v":{"v":0,"d":"$0.00"}},{"$f":"'MMA Rev-Exp Region 1'!L$46","v":{"v":0,"d":"$0.00"}},{"$f":"'MMA Rev-Exp Region 1'!M$46","v":{"v":0,"d":"$0.00"}},{"$f":"'MMA Rev-Exp Region 1'!N$46","v":{"v":0,"d":"$0.00"}},{"v":0,"d":"$0.00"}]
["MMA",null,null,{"$f":"Jurat!I$1","v":0},{"$f":"Jurat!D$33","v":"00:00:00"},"Q1","2017-03-31","Region 1","Operating Expense","Medical Benefits Expense","Dental Services",6.2,"Dental Subcapitation",{"$f":"'MMA Rev-Exp Region 1'!D$47","v":{"v":0,"d":"$0.00"}},{"$f":"'MMA Rev-Exp Region 1'!E$47","v":{"v":0,"d":"$0.00"}},{"$f":"'MMA Rev-Exp Region 1'!F$47","v":{"v":0,"d":"$0.00"}},{"$f":"'MMA Rev-Exp Region 1'!G$47","v":{"v":0,"d":"$0.00"}},{"$f":"'MMA Rev-Exp Region 1'!H$47","v":{"v":0,"d":"$0.00"}},{"$f":"'MMA Rev-Exp Region 1'!I$47","v":{"v":0,"d":"$0.00"}},{"$f":"'MMA Rev-Exp Region 1'!J$47","v":{"v":0,"d":"$0.00"}},{"$f":"'MMA Rev-Exp Region 1'!K$47","v":{"v":0,"d":"$0.00"}},{"$f":"'MMA Rev-Exp Region 1'!L$47","v":{"v":0,"d":"$0.00"}},{"$f":"'MMA Rev-Exp Region 1'!M$47","v":{"v":0,"d":"$0.00"}},{"$f":"'MMA Rev-Exp Region 1'!N$47","v":{"v":0,"d":"$0.00"}},{"v":0,"d":"$0.00"}]
["MMA",null,null,{"$f":"Jurat!I$1","v":0},{"$f":"Jurat!D$33","v":"00:00:00"},"Q1","2017-03-31","Region 1","Operating Expense","Medical Benefits Expense","Dental Services",6.3,"Ending IBNP for Dental Services",{"$f":"'MMA Rev-Exp Region 1'!D$48","v":{"v":0,"d":"$0.00"}},{"$f":"'MMA Rev-Exp Region 1'!E$48","v":{"v":0,"d":"$0.00"}},{"$f":"'MMA Rev-Exp Region 1'!F$48","v":{"v":0,"d":"$0.00"}},{"$f":"'MMA Rev-Exp Region 1'!G$48","v":{"v":0,"d":"$0.00"}},{"$f":"'MMA Rev-Exp Region 1'!H$48","v":{"v":0,"d":"$0.00"}},{"$f":"'MMA Rev-Exp Region 1'!I$48","v":{"v":0,"d":"$0.00"}},{"$f":"'MMA Rev-Exp Region 1'!J$48","v":{"v":0,"d":"$0.00"}},{"$f":"'MMA Rev-Exp Region 1'!K$48","v":{"v":0,"d":"$0.00"}},{"$f":"'MMA Rev-Exp Region 1'!L$48","v":{"v":0,"d":"$0.00"}},{"$f":"'MMA Rev-Exp Region 1'!M$48","v":{"v":0,"d":"$0.00"}},{"$f":"'MMA Rev-Exp Region 1'!N$48","v":{"v":0,"d":"$0.00"}},{"v":0,"d":"$0.00"}]
["MMA",null,null,{"$f":"Jurat!I$1","v":0},{"$f":"Jurat!D$33","v":"00:00:00"},"Q1","2017-03-31","Region 1","Operating Expense","Medical Benefits Expense","Dental Services","6.4","Dental Settlements",{"$f":"'MMA Rev-Exp Region 1'!D$49","v":{"v":0,"d":"$0.00"}},{"$f":"'MMA Rev-Exp Region 1'!E$49","v":{"v":0,"d":"$0.00"}},{"$f":"'MMA Rev-Exp Region 1'!F$49","v":{"v":0,"d":"$0.00"}},{"$f":"'MMA Rev-Exp Region 1'!G$49","v":{"v":0,"d":"$0.00"}},{"$f":"'MMA Rev-Exp Region 1'!H$49","v":{"v":0,"d":"$0.00"}},{"$f":"'MMA Rev-Exp Region 1'!I$49","v":{"v":0,"d":"$0.00"}},{"$f":"'MMA Rev-Exp Region 1'!J$49","v":{"v":0,"d":"$0.00"}},{"$f":"'MMA Rev-Exp Region 1'!K$49","v":{"v":0,"d":"$0.00"}},{"$f":"'MMA Rev-Exp Region 1'!L$49","v":{"v":0,"d":"$0.00"}},{"$f":"'MMA Rev-Exp Region 1'!M$49","v":{"v":0,"d":"$0.00"}},{"$f":"'MMA Rev-Exp Region 1'!N$49","v":{"v":0,"d":"$0.00"}},{"v":0,"d":"$0.00"}]
["MMA",null,null,{"$f":"Jurat!I$1","v":0},{"$f":"Jurat!D$33","v":"00:00:00"},"Q1","2017-03-31","Region 1","Operating Expense","Medical Benefits Expense","Transportation Services",7.1,"Transportation FFS",{"$f":"'MMA Rev-Exp Region 1'!D$51","v":{"v":0,"d":"$0.00"}},{"$f":"'MMA Rev-Exp Region 1'!E$51","v":{"v":0,"d":"$0.00"}},{"$f":"'MMA Rev-Exp Region 1'!F$51","v":{"v":0,"d":"$0.00"}},{"$f":"'MMA Rev-Exp Region 1'!G$51","v":{"v":0,"d":"$0.00"}},{"$f":"'MMA Rev-Exp Region 1'!H$51","v":{"v":0,"d":"$0.00"}},{"$f":"'MMA Rev-Exp Region 1'!I$51","v":{"v":0,"d":"$0.00"}},{"$f":"'MMA Rev-Exp Region 1'!J$51","v":{"v":0,"d":"$0.00"}},{"$f":"'MMA Rev-Exp Region 1'!K$51","v":{"v":0,"d":"$0.00"}},{"$f":"'MMA Rev-Exp Region 1'!L$51","v":{"v":0,"d":"$0.00"}},{"$f":"'MMA Rev-Exp Region 1'!M$51","v":{"v":0,"d":"$0.00"}},{"$f":"'MMA Rev-Exp Region 1'!N$51","v":{"v":0,"d":"$0.00"}},{"v":0,"d":"$0.00"}]
["MMA",null,null,{"$f":"Jurat!I$1","v":0},{"$f":"Jurat!D$33","v":"00:00:00"},"Q1","2017-03-31","Region 1","Operating Expense","Medical Benefits Expense","Transportation Services",7.2,"Transportation Subcapitation",{"$f":"'MMA Rev-Exp Region 1'!D$52","v":{"v":0,"d":"$0.00"}},{"$f":"'MMA Rev-Exp Region 1'!E$52","v":{"v":0,"d":"$0.00"}},{"$f":"'MMA Rev-Exp Region 1'!F$52","v":{"v":0,"d":"$0.00"}},{"$f":"'MMA Rev-Exp Region 1'!G$52","v":{"v":0,"d":"$0.00"}},{"$f":"'MMA Rev-Exp Region 1'!H$52","v":{"v":0,"d":"$0.00"}},{"$f":"'MMA Rev-Exp Region 1'!I$52","v":{"v":0,"d":"$0.00"}},{"$f":"'MMA Rev-Exp Region 1'!J$52","v":{"v":0,"d":"$0.00"}},{"$f":"'MMA Rev-Exp Region 1'!K$52","v":{"v":0,"d":"$0.00"}},{"$f":"'MMA Rev-Exp Region 1'!L$52","v":{"v":0,"d":"$0.00"}},{"$f":"'MMA Rev-Exp Region 1'!M$52","v":{"v":0,"d":"$0.00"}},{"$f":"'MMA Rev-Exp Region 1'!N$52","v":{"v":0,"d":"$0.00"}},{"v":0,"d":"$0.00"}]
["MMA",null,null,{"$f":"Jurat!I$1","v":0},{"$f":"Jurat!D$33","v":"00:00:00"},"Q1","2017-03-31","Region 1","Operating Expense","Medical Benefits Expense","Transportation Services",7.3,"Ending IBNP for Transportation",{"$f":"'MMA Rev-Exp Region 1'!D$53","v":{"v":0,"d":"$0.00"}},{"$f":"'MMA Rev-Exp Region 1'!E$53","v":{"v":0,"d":"$0.00"}},{"$f":"'MMA Rev-Exp Region 1'!F$53","v":{"v":0,"d":"$0.00"}},{"$f":"'MMA Rev-Exp Region 1'!G$53","v":{"v":0,"d":"$0.00"}},{"$f":"'MMA Rev-Exp Region 1'!H$53","v":{"v":0,"d":"$0.00"}},{"$f":"'MMA Rev-Exp Region 1'!I$53","v":{"v":0,"d":"$0.00"}},{"$f":"'MMA Rev-Exp Region 1'!J$53","v":{"v":0,"d":"$0.00"}},{"$f":"'MMA Rev-Exp Region 1'!K$53","v":{"v":0,"d":"$0.00"}},{"$f":"'MMA Rev-Exp Region 1'!L$53","v":{"v":0,"d":"$0.00"}},{"$f":"'MMA Rev-Exp Region 1'!M$53","v":{"v":0,"d":"$0.00"}},{"$f":"'MMA Rev-Exp Region 1'!N$53","v":{"v":0,"d":"$0.00"}},{"v":0,"d":"$0.00"}]
["MMA",null,null,{"$f":"Jurat!I$1","v":0},{"$f":"Jurat!D$33","v":"00:00:00"},"Q1","2017-03-31","Region 1","Operating Expense","Medical Benefits Expense","Transportation Services","7.4","Transportation Settlements",{"$f":"'MMA Rev-Exp Region 1'!D$54","v":{"v":0,"d":"$0.00"}},{"$f":"'MMA Rev-Exp Region 1'!E$54","v":{"v":0,"d":"$0.00"}},{"$f":"'MMA Rev-Exp Region 1'!F$54","v":{"v":0,"d":"$0.00"}},{"$f":"'MMA Rev-Exp Region 1'!G$54","v":{"v":0,"d":"$0.00"}},{"$f":"'MMA Rev-Exp Region 1'!H$54","v":{"v":0,"d":"$0.00"}},{"$f":"'MMA Rev-Exp Region 1'!I$54","v":{"v":0,"d":"$0.00"}},{"$f":"'MMA Rev-Exp Region 1'!J$54","v":{"v":0,"d":"$0.00"}},{"$f":"'MMA Rev-Exp Region 1'!K$54","v":{"v":0,"d":"$0.00"}},{"$f":"'MMA Rev-Exp Region 1'!L$54","v":{"v":0,"d":"$0.00"}},{"$f":"'MMA Rev-Exp Region 1'!M$54","v":{"v":0,"d":"$0.00"}},{"$f":"'MMA Rev-Exp Region 1'!N$54","v":{"v":0,"d":"$0.00"}},{"v":0,"d":"$0.00"}]
["MMA",null,null,{"$f":"Jurat!I$1","v":0},{"$f":"Jurat!D$33","v":"00:00:00"},"Q1","2017-03-31","Region 1","Operating Expense","Medical Benefits Expense","Pharmacy Services",8.1,"Prescription Drugs FFS",{"$f":"'MMA Rev-Exp Region 1'!D$56","v":{"v":0,"d":"$0.00"}},{"$f":"'MMA Rev-Exp Region 1'!E$56","v":{"v":0,"d":"$0.00"}},{"$f":"'MMA Rev-Exp Region 1'!F$56","v":{"v":0,"d":"$0.00"}},{"$f":"'MMA Rev-Exp Region 1'!G$56","v":{"v":0,"d":"$0.00"}},{"$f":"'MMA Rev-Exp Region 1'!H$56","v":{"v":0,"d":"$0.00"}},{"$f":"'MMA Rev-Exp Region 1'!I$56","v":{"v":0,"d":"$0.00"}},{"$f":"'MMA Rev-Exp Region 1'!J$56","v":{"v":0,"d":"$0.00"}},{"$f":"'MMA Rev-Exp Region 1'!K$56","v":{"v":0,"d":"$0.00"}},{"$f":"'MMA Rev-Exp Region 1'!L$56","v":{"v":0,"d":"$0.00"}},{"$f":"'MMA Rev-Exp Region 1'!M$56","v":{"v":0,"d":"$0.00"}},{"$f":"'MMA Rev-Exp Region 1'!N$56","v":{"v":0,"d":"$0.00"}},{"v":0,"d":"$0.00"}]
["MMA",null,null,{"$f":"Jurat!I$1","v":0},{"$f":"Jurat!D$33","v":"00:00:00"},"Q1","2017-03-31","Region 1","Operating Expense","Medical Benefits Expense","Pharmacy Services","8.2","Hepatitis C Prescription Drug FFS",{"$f":"'MMA Rev-Exp Region 1'!D$57","v":{"v":0,"d":"$0.00"}},{"$f":"'MMA Rev-Exp Region 1'!E$57","v":{"v":0,"d":"$0.00"}},{"$f":"'MMA Rev-Exp Region 1'!F$57","v":{"v":0,"d":"$0.00"}},{"$f":"'MMA Rev-Exp Region 1'!G$57","v":{"v":0,"d":"$0.00"}},{"$f":"'MMA Rev-Exp Region 1'!H$57","v":{"v":0,"d":"$0.00"}},{"$f":"'MMA Rev-Exp Region 1'!I$57","v":{"v":0,"d":"$0.00"}},{"$f":"'MMA Rev-Exp Region 1'!J$57","v":{"v":0,"d":"$0.00"}},{"$f":"'MMA Rev-Exp Region 1'!K$57","v":{"v":0,"d":"$0.00"}},{"$f":"'MMA Rev-Exp Region 1'!L$57","v":{"v":0,"d":"$0.00"}},{"$f":"'MMA Rev-Exp Region 1'!M$57","v":{"v":0,"d":"$0.00"}},{"$f":"'MMA Rev-Exp Region 1'!N$57","v":{"v":0,"d":"$0.00"}},{"v":0,"d":"$0.00"}]
["MMA",null,null,{"$f":"Jurat!I$1","v":0},{"$f":"Jurat!D$33","v":"00:00:00"},"Q1","2017-03-31","Region 1","Operating Expense","Medical Benefits Expense","Pharmacy Services","8.3","Ending IBNP for Prescription Drugs",{"$f":"'MMA Rev-Exp Region 1'!D$58","v":{"v":0,"d":"$0.00"}},{"$f":"'MMA Rev-Exp Region 1'!E$58","v":{"v":0,"d":"$0.00"}},{"$f":"'MMA Rev-Exp Region 1'!F$58","v":{"v":0,"d":"$0.00"}},{"$f":"'MMA Rev-Exp Region 1'!G$58","v":{"v":0,"d":"$0.00"}},{"$f":"'MMA Rev-Exp Region 1'!H$58","v":{"v":0,"d":"$0.00"}},{"$f":"'MMA Rev-Exp Region 1'!I$58","v":{"v":0,"d":"$0.00"}},{"$f":"'MMA Rev-Exp Region 1'!J$58","v":{"v":0,"d":"$0.00"}},{"$f":"'MMA Rev-Exp Region 1'!K$58","v":{"v":0,"d":"$0.00"}},{"$f":"'MMA Rev-Exp Region 1'!L$58","v":{"v":0,"d":"$0.00"}},{"$f":"'MMA Rev-Exp Region 1'!M$58","v":{"v":0,"d":"$0.00"}},{"$f":"'MMA Rev-Exp Region 1'!N$58","v":{"v":0,"d":"$0.00"}},{"v":0,"d":"$0.00"}]
["MMA",null,null,{"$f":"Jurat!I$1","v":0},{"$f":"Jurat!D$33","v":"00:00:00"},"Q1","2017-03-31","Region 1","Operating Expense","Medical Benefits Expense","Pharmacy Services","8.4","Prescription Drug Rebates ",{"$f":"'MMA Rev-Exp Region 1'!D$59","v":{"v":0,"d":"$0.00"}},{"$f":"'MMA Rev-Exp Region 1'!E$59","v":{"v":0,"d":"$0.00"}},{"$f":"'MMA Rev-Exp Region 1'!F$59","v":{"v":0,"d":"$0.00"}},{"$f":"'MMA Rev-Exp Region 1'!G$59","v":{"v":0,"d":"$0.00"}},{"$f":"'MMA Rev-Exp Region 1'!H$59","v":{"v":0,"d":"$0.00"}},{"$f":"'MMA Rev-Exp Region 1'!I$59","v":{"v":0,"d":"$0.00"}},{"$f":"'MMA Rev-Exp Region 1'!J$59","v":{"v":0,"d":"$0.00"}},{"$f":"'MMA Rev-Exp Region 1'!K$59","v":{"v":0,"d":"$0.00"}},{"$f":"'MMA Rev-Exp Region 1'!L$59","v":{"v":0,"d":"$0.00"}},{"$f":"'MMA Rev-Exp Region 1'!M$59","v":{"v":0,"d":"$0.00"}},{"$f":"'MMA Rev-Exp Region 1'!N$59","v":{"v":0,"d":"$0.00"}},{"v":0,"d":"$0.00"}]
["MMA",null,null,{"$f":"Jurat!I$1","v":0},{"$f":"Jurat!D$33","v":"00:00:00"},"Q1","2017-03-31","Region 1","Operating Expense","Medical Benefits Expense","Pharmacy Services","8.5","Ending accrual for Rebates receivable",{"$f":"'MMA Rev-Exp Region 1'!D$60","v":{"v":0,"d":"$0.00"}},{"$f":"'MMA Rev-Exp Region 1'!E$60","v":{"v":0,"d":"$0.00"}},{"$f":"'MMA Rev-Exp Region 1'!F$60","v":{"v":0,"d":"$0.00"}},{"$f":"'MMA Rev-Exp Region 1'!G$60","v":{"v":0,"d":"$0.00"}},{"$f":"'MMA Rev-Exp Region 1'!H$60","v":{"v":0,"d":"$0.00"}},{"$f":"'MMA Rev-Exp Region 1'!I$60","v":{"v":0,"d":"$0.00"}},{"$f":"'MMA Rev-Exp Region 1'!J$60","v":{"v":0,"d":"$0.00"}},{"$f":"'MMA Rev-Exp Region 1'!K$60","v":{"v":0,"d":"$0.00"}},{"$f":"'MMA Rev-Exp Region 1'!L$60","v":{"v":0,"d":"$0.00"}},{"$f":"'MMA Rev-Exp Region 1'!M$60","v":{"v":0,"d":"$0.00"}},{"$f":"'MMA Rev-Exp Region 1'!N$60","v":{"v":0,"d":"$0.00"}},{"v":0,"d":"$0.00"}]
["MMA",null,null,{"$f":"Jurat!I$1","v":0},{"$f":"Jurat!D$33","v":"00:00:00"},"Q1","2017-03-31","Region 1","Operating Expense","Medical Benefits Expense","Pharmacy Services","8.6","Prescription Drugs Subcapitation",{"$f":"'MMA Rev-Exp Region 1'!D$61","v":{"v":0,"d":"$0.00"}},{"$f":"'MMA Rev-Exp Region 1'!E$61","v":{"v":0,"d":"$0.00"}},{"$f":"'MMA Rev-Exp Region 1'!F$61","v":{"v":0,"d":"$0.00"}},{"$f":"'MMA Rev-Exp Region 1'!G$61","v":{"v":0,"d":"$0.00"}},{"$f":"'MMA Rev-Exp Region 1'!H$61","v":{"v":0,"d":"$0.00"}},{"$f":"'MMA Rev-Exp Region 1'!I$61","v":{"v":0,"d":"$0.00"}},{"$f":"'MMA Rev-Exp Region 1'!J$61","v":{"v":0,"d":"$0.00"}},{"$f":"'MMA Rev-Exp Region 1'!K$61","v":{"v":0,"d":"$0.00"}},{"$f":"'MMA Rev-Exp Region 1'!L$61","v":{"v":0,"d":"$0.00"}},{"$f":"'MMA Rev-Exp Region 1'!M$61","v":{"v":0,"d":"$0.00"}},{"$f":"'MMA Rev-Exp Region 1'!N$61","v":{"v":0,"d":"$0.00"}},{"v":0,"d":"$0.00"}]
["MMA",null,null,{"$f":"Jurat!I$1","v":0},{"$f":"Jurat!D$33","v":"00:00:00"},"Q1","2017-03-31","Region 1","Operating Expense","Medical Benefits Expense","Pharmacy Services","8.7","Prescription Drug Settlements",{"$f":"'MMA Rev-Exp Region 1'!D$62","v":{"v":0,"d":"$0.00"}},{"$f":"'MMA Rev-Exp Region 1'!E$62","v":{"v":0,"d":"$0.00"}},{"$f":"'MMA Rev-Exp Region 1'!F$62","v":{"v":0,"d":"$0.00"}},{"$f":"'MMA Rev-Exp Region 1'!G$62","v":{"v":0,"d":"$0.00"}},{"$f":"'MMA Rev-Exp Region 1'!H$62","v":{"v":0,"d":"$0.00"}},{"$f":"'MMA Rev-Exp Region 1'!I$62","v":{"v":0,"d":"$0.00"}},{"$f":"'MMA Rev-Exp Region 1'!J$62","v":{"v":0,"d":"$0.00"}},{"$f":"'MMA Rev-Exp Region 1'!K$62","v":{"v":0,"d":"$0.00"}},{"$f":"'MMA Rev-Exp Region 1'!L$62","v":{"v":0,"d":"$0.00"}},{"$f":"'MMA Rev-Exp Region 1'!M$62","v":{"v":0,"d":"$0.00"}},{"$f":"'MMA Rev-Exp Region 1'!N$62","v":{"v":0,"d":"$0.00"}},{"v":0,"d":"$0.00"}]
["MMA",null,null,{"$f":"Jurat!I$1","v":0},{"$f":"Jurat!D$33","v":"00:00:00"},"Q1","2017-03-31","Region 1","Operating Expense","Medical Benefits Expense","Other MMA Services",9.1,"Home Health, Private Duty Nursing, Personal Care FFS",{"$f":"'MMA Rev-Exp Region 1'!D$64","v":{"v":0,"d":"$0.00"}},{"$f":"'MMA Rev-Exp Region 1'!E$64","v":{"v":0,"d":"$0.00"}},{"$f":"'MMA Rev-Exp Region 1'!F$64","v":{"v":0,"d":"$0.00"}},{"$f":"'MMA Rev-Exp Region 1'!G$64","v":{"v":0,"d":"$0.00"}},{"$f":"'MMA Rev-Exp Region 1'!H$64","v":{"v":0,"d":"$0.00"}},{"$f":"'MMA Rev-Exp Region 1'!I$64","v":{"v":0,"d":"$0.00"}},{"$f":"'MMA Rev-Exp Region 1'!J$64","v":{"v":0,"d":"$0.00"}},{"$f":"'MMA Rev-Exp Region 1'!K$64","v":{"v":0,"d":"$0.00"}},{"$f":"'MMA Rev-Exp Region 1'!L$64","v":{"v":0,"d":"$0.00"}},{"$f":"'MMA Rev-Exp Region 1'!M$64","v":{"v":0,"d":"$0.00"}},{"$f":"'MMA Rev-Exp Region 1'!N$64","v":{"v":0,"d":"$0.00"}},{"v":0,"d":"$0.00"}]
["MMA",null,null,{"$f":"Jurat!I$1","v":0},{"$f":"Jurat!D$33","v":"00:00:00"},"Q1","2017-03-31","Region 1","Operating Expense","Medical Benefits Expense","Other MMA Services","9.2","Hospice FFS",{"$f":"'MMA Rev-Exp Region 1'!D$65","v":{"v":0,"d":"$0.00"}},{"$f":"'MMA Rev-Exp Region 1'!E$65","v":{"v":0,"d":"$0.00"}},{"$f":"'MMA Rev-Exp Region 1'!F$65","v":{"v":0,"d":"$0.00"}},{"$f":"'MMA Rev-Exp Region 1'!G$65","v":{"v":0,"d":"$0.00"}},{"$f":"'MMA Rev-Exp Region 1'!H$65","v":{"v":0,"d":"$0.00"}},{"$f":"'MMA Rev-Exp Region 1'!I$65","v":{"v":0,"d":"$0.00"}},{"$f":"'MMA Rev-Exp Region 1'!J$65","v":{"v":0,"d":"$0.00"}},{"$f":"'MMA Rev-Exp Region 1'!K$65","v":{"v":0,"d":"$0.00"}},{"$f":"'MMA Rev-Exp Region 1'!L$65","v":{"v":0,"d":"$0.00"}},{"$f":"'MMA Rev-Exp Region 1'!M$65","v":{"v":0,"d":"$0.00"}},{"$f":"'MMA Rev-Exp Region 1'!N$65","v":{"v":0,"d":"$0.00"}},{"v":0,"d":"$0.00"}]
["MMA",null,null,{"$f":"Jurat!I$1","v":0},{"$f":"Jurat!D$33","v":"00:00:00"},"Q1","2017-03-31","Region 1","Operating Expense","Medical Benefits Expense","Other MMA Services","9.3","DME FFS",{"$f":"'MMA Rev-Exp Region 1'!D$66","v":{"v":0,"d":"$0.00"}},{"$f":"'MMA Rev-Exp Region 1'!E$66","v":{"v":0,"d":"$0.00"}},{"$f":"'MMA Rev-Exp Region 1'!F$66","v":{"v":0,"d":"$0.00"}},{"$f":"'MMA Rev-Exp Region 1'!G$66","v":{"v":0,"d":"$0.00"}},{"$f":"'MMA Rev-Exp Region 1'!H$66","v":{"v":0,"d":"$0.00"}},{"$f":"'MMA Rev-Exp Region 1'!I$66","v":{"v":0,"d":"$0.00"}},{"$f":"'MMA Rev-Exp Region 1'!J$66","v":{"v":0,"d":"$0.00"}},{"$f":"'MMA Rev-Exp Region 1'!K$66","v":{"v":0,"d":"$0.00"}},{"$f":"'MMA Rev-Exp Region 1'!L$66","v":{"v":0,"d":"$0.00"}},{"$f":"'MMA Rev-Exp Region 1'!M$66","v":{"v":0,"d":"$0.00"}},{"$f":"'MMA Rev-Exp Region 1'!N$66","v":{"v":0,"d":"$0.00"}},{"v":0,"d":"$0.00"}]
["MMA",null,null,{"$f":"Jurat!I$1","v":0},{"$f":"Jurat!D$33","v":"00:00:00"},"Q1","2017-03-31","Region 1","Operating Expense","Medical Benefits Expense","Other MMA Services","9.4","Other State Plan Services FFS",{"$f":"'MMA Rev-Exp Region 1'!D$67","v":{"v":0,"d":"$0.00"}},{"$f":"'MMA Rev-Exp Region 1'!E$67","v":{"v":0,"d":"$0.00"}},{"$f":"'MMA Rev-Exp Region 1'!F$67","v":{"v":0,"d":"$0.00"}},{"$f":"'MMA Rev-Exp Region 1'!G$67","v":{"v":0,"d":"$0.00"}},{"$f":"'MMA Rev-Exp Region 1'!H$67","v":{"v":0,"d":"$0.00"}},{"$f":"'MMA Rev-Exp Region 1'!I$67","v":{"v":0,"d":"$0.00"}},{"$f":"'MMA Rev-Exp Region 1'!J$67","v":{"v":0,"d":"$0.00"}},{"$f":"'MMA Rev-Exp Region 1'!K$67","v":{"v":0,"d":"$0.00"}},{"$f":"'MMA Rev-Exp Region 1'!L$67","v":{"v":0,"d":"$0.00"}},{"$f":"'MMA Rev-Exp Region 1'!M$67","v":{"v":0,"d":"$0.00"}},{"$f":"'MMA Rev-Exp Region 1'!N$67","v":{"v":0,"d":"$0.00"}},{"v":0,"d":"$0.00"}]
["MMA",null,null,{"$f":"Jurat!I$1","v":0},{"$f":"Jurat!D$33","v":"00:00:00"},"Q1","2017-03-31","Region 1","Operating Expense","Medical Benefits Expense","Other MMA Services","9.5","Other Services Subcapitation",{"$f":"'MMA Rev-Exp Region 1'!D$68","v":{"v":0,"d":"$0.00"}},{"$f":"'MMA Rev-Exp Region 1'!E$68","v":{"v":0,"d":"$0.00"}},{"$f":"'MMA Rev-Exp Region 1'!F$68","v":{"v":0,"d":"$0.00"}},{"$f":"'MMA Rev-Exp Region 1'!G$68","v":{"v":0,"d":"$0.00"}},{"$f":"'MMA Rev-Exp Region 1'!H$68","v":{"v":0,"d":"$0.00"}},{"$f":"'MMA Rev-Exp Region 1'!I$68","v":{"v":0,"d":"$0.00"}},{"$f":"'MMA Rev-Exp Region 1'!J$68","v":{"v":0,"d":"$0.00"}},{"$f":"'MMA Rev-Exp Region 1'!K$68","v":{"v":0,"d":"$0.00"}},{"$f":"'MMA Rev-Exp Region 1'!L$68","v":{"v":0,"d":"$0.00"}},{"$f":"'MMA Rev-Exp Region 1'!M$68","v":{"v":0,"d":"$0.00"}},{"$f":"'MMA Rev-Exp Region 1'!N$68","v":{"v":0,"d":"$0.00"}},{"v":0,"d":"$0.00"}]
["MMA",null,null,{"$f":"Jurat!I$1","v":0},{"$f":"Jurat!D$33","v":"00:00:00"},"Q1","2017-03-31","Region 1","Operating Expense","Medical Benefits Expense","Other MMA Services","9.6","Ending IBNP for Other Services",{"$f":"'MMA Rev-Exp Region 1'!D$69","v":{"v":0,"d":"$0.00"}},{"$f":"'MMA Rev-Exp Region 1'!E$69","v":{"v":0,"d":"$0.00"}},{"$f":"'MMA Rev-Exp Region 1'!F$69","v":{"v":0,"d":"$0.00"}},{"$f":"'MMA Rev-Exp Region 1'!G$69","v":{"v":0,"d":"$0.00"}},{"$f":"'MMA Rev-Exp Region 1'!H$69","v":{"v":0,"d":"$0.00"}},{"$f":"'MMA Rev-Exp Region 1'!I$69","v":{"v":0,"d":"$0.00"}},{"$f":"'MMA Rev-Exp Region 1'!J$69","v":{"v":0,"d":"$0.00"}},{"$f":"'MMA Rev-Exp Region 1'!K$69","v":{"v":0,"d":"$0.00"}},{"$f":"'MMA Rev-Exp Region 1'!L$69","v":{"v":0,"d":"$0.00"}},{"$f":"'MMA Rev-Exp Region 1'!M$69","v":{"v":0,"d":"$0.00"}},{"$f":"'MMA Rev-Exp Region 1'!N$69","v":{"v":0,"d":"$0.00"}},{"v":0,"d":"$0.00"}]
["MMA",null,null,{"$f":"Jurat!I$1","v":0},{"$f":"Jurat!D$33","v":"00:00:00"},"Q1","2017-03-31","Region 1","Operating Expense","Medical Benefits Expense","Other MMA Services","9.7","Other Services Settlements",{"$f":"'MMA Rev-Exp Region 1'!D$70","v":{"v":0,"d":"$0.00"}},{"$f":"'MMA Rev-Exp Region 1'!E$70","v":{"v":0,"d":"$0.00"}},{"$f":"'MMA Rev-Exp Region 1'!F$70","v":{"v":0,"d":"$0.00"}},{"$f":"'MMA Rev-Exp Region 1'!G$70","v":{"v":0,"d":"$0.00"}},{"$f":"'MMA Rev-Exp Region 1'!H$70","v":{"v":0,"d":"$0.00"}},{"$f":"'MMA Rev-Exp Region 1'!I$70","v":{"v":0,"d":"$0.00"}},{"$f":"'MMA Rev-Exp Region 1'!J$70","v":{"v":0,"d":"$0.00"}},{"$f":"'MMA Rev-Exp Region 1'!K$70","v":{"v":0,"d":"$0.00"}},{"$f":"'MMA Rev-Exp Region 1'!L$70","v":{"v":0,"d":"$0.00"}},{"$f":"'MMA Rev-Exp Region 1'!M$70","v":{"v":0,"d":"$0.00"}},{"$f":"'MMA Rev-Exp Region 1'!N$70","v":{"v":0,"d":"$0.00"}},{"v":0,"d":"$0.00"}]
["MMA",null,null,{"$f":"Jurat!I$1","v":0},{"$f":"Jurat!D$33","v":"00:00:00"},"Q1","2017-03-31","Region 1","Operating Expense","Medical Benefits Expense","Expanded Benefits","10.1","Expanded Benefits FFS",{"$f":"'MMA Rev-Exp Region 1'!D$72","v":{"v":0,"d":"$0.00"}},{"$f":"'MMA Rev-Exp Region 1'!E$72","v":{"v":0,"d":"$0.00"}},{"$f":"'MMA Rev-Exp Region 1'!F$72","v":{"v":0,"d":"$0.00"}},{"$f":"'MMA Rev-Exp Region 1'!G$72","v":{"v":0,"d":"$0.00"}},{"$f":"'MMA Rev-Exp Region 1'!H$72","v":{"v":0,"d":"$0.00"}},{"$f":"'MMA Rev-Exp Region 1'!I$72","v":{"v":0,"d":"$0.00"}},{"$f":"'MMA Rev-Exp Region 1'!J$72","v":{"v":0,"d":"$0.00"}},{"$f":"'MMA Rev-Exp Region 1'!K$72","v":{"v":0,"d":"$0.00"}},{"$f":"'MMA Rev-Exp Region 1'!L$72","v":{"v":0,"d":"$0.00"}},{"$f":"'MMA Rev-Exp Region 1'!M$72","v":{"v":0,"d":"$0.00"}},{"$f":"'MMA Rev-Exp Region 1'!N$72","v":{"v":0,"d":"$0.00"}},{"v":0,"d":"$0.00"}]
["MMA",null,null,{"$f":"Jurat!I$1","v":0},{"$f":"Jurat!D$33","v":"00:00:00"},"Q1","2017-03-31","Region 1","Operating Expense","Medical Benefits Expense","Expanded Benefits","10.2","Expanded benefits Subcapitation",{"$f":"'MMA Rev-Exp Region 1'!D$73","v":{"v":0,"d":"$0.00"}},{"$f":"'MMA Rev-Exp Region 1'!E$73","v":{"v":0,"d":"$0.00"}},{"$f":"'MMA Rev-Exp Region 1'!F$73","v":{"v":0,"d":"$0.00"}},{"$f":"'MMA Rev-Exp Region 1'!G$73","v":{"v":0,"d":"$0.00"}},{"$f":"'MMA Rev-Exp Region 1'!H$73","v":{"v":0,"d":"$0.00"}},{"$f":"'MMA Rev-Exp Region 1'!I$73","v":{"v":0,"d":"$0.00"}},{"$f":"'MMA Rev-Exp Region 1'!J$73","v":{"v":0,"d":"$0.00"}},{"$f":"'MMA Rev-Exp Region 1'!K$73","v":{"v":0,"d":"$0.00"}},{"$f":"'MMA Rev-Exp Region 1'!L$73","v":{"v":0,"d":"$0.00"}},{"$f":"'MMA Rev-Exp Region 1'!M$73","v":{"v":0,"d":"$0.00"}},{"$f":"'MMA Rev-Exp Region 1'!N$73","v":{"v":0,"d":"$0.00"}},{"v":0,"d":"$0.00"}]
["MMA",null,null,{"$f":"Jurat!I$1","v":0},{"$f":"Jurat!D$33","v":"00:00:00"},"Q1","2017-03-31","Region 1","Operating Expense","Medical Benefits Expense","Expanded Benefits","10.3","Ending IBNP for Expanded Benefits",{"$f":"'MMA Rev-Exp Region 1'!D$74","v":{"v":0,"d":"$0.00"}},{"$f":"'MMA Rev-Exp Region 1'!E$74","v":{"v":0,"d":"$0.00"}},{"$f":"'MMA Rev-Exp Region 1'!F$74","v":{"v":0,"d":"$0.00"}},{"$f":"'MMA Rev-Exp Region 1'!G$74","v":{"v":0,"d":"$0.00"}},{"$f":"'MMA Rev-Exp Region 1'!H$74","v":{"v":0,"d":"$0.00"}},{"$f":"'MMA Rev-Exp Region 1'!I$74","v":{"v":0,"d":"$0.00"}},{"$f":"'MMA Rev-Exp Region 1'!J$74","v":{"v":0,"d":"$0.00"}},{"$f":"'MMA Rev-Exp Region 1'!K$74","v":{"v":0,"d":"$0.00"}},{"$f":"'MMA Rev-Exp Region 1'!L$74","v":{"v":0,"d":"$0.00"}},{"$f":"'MMA Rev-Exp Region 1'!M$74","v":{"v":0,"d":"$0.00"}},{"$f":"'MMA Rev-Exp Region 1'!N$74","v":{"v":0,"d":"$0.00"}},{"v":0,"d":"$0.00"}]
["MMA",null,null,{"$f":"Jurat!I$1","v":0},{"$f":"Jurat!D$33","v":"00:00:00"},"Q1","2017-03-31","Region 1","Operating Expense","Medical Benefits Expense","Expanded Benefits","10.4","Expanded Benefits Settlements",{"$f":"'MMA Rev-Exp Region 1'!D$75","v":{"v":0,"d":"$0.00"}},{"$f":"'MMA Rev-Exp Region 1'!E$75","v":{"v":0,"d":"$0.00"}},{"$f":"'MMA Rev-Exp Region 1'!F$75","v":{"v":0,"d":"$0.00"}},{"$f":"'MMA Rev-Exp Region 1'!G$75","v":{"v":0,"d":"$0.00"}},{"$f":"'MMA Rev-Exp Region 1'!H$75","v":{"v":0,"d":"$0.00"}},{"$f":"'MMA Rev-Exp Region 1'!I$75","v":{"v":0,"d":"$0.00"}},{"$f":"'MMA Rev-Exp Region 1'!J$75","v":{"v":0,"d":"$0.00"}},{"$f":"'MMA Rev-Exp Region 1'!K$75","v":{"v":0,"d":"$0.00"}},{"$f":"'MMA Rev-Exp Region 1'!L$75","v":{"v":0,"d":"$0.00"}},{"$f":"'MMA Rev-Exp Region 1'!M$75","v":{"v":0,"d":"$0.00"}},{"$f":"'MMA Rev-Exp Region 1'!N$75","v":{"v":0,"d":"$0.00"}},{"v":0,"d":"$0.00"}]
["MMA",null,null,{"$f":"Jurat!I$1","v":0},{"$f":"Jurat!D$33","v":"00:00:00"},"Q1","2017-03-31","Region 1","Operating Expense","Medical Benefits Expense","Other Medical","11.5","TPL & Fraud/Abuse Recoveries",{"$f":"'MMA Rev-Exp Region 1'!D$81","v":{"v":0,"d":"$0.00"}},{"$f":"'MMA Rev-Exp Region 1'!E$81","v":{"v":0,"d":"$0.00"}},{"$f":"'MMA Rev-Exp Region 1'!F$81","v":{"v":0,"d":"$0.00"}},{"$f":"'MMA Rev-Exp Region 1'!G$81","v":{"v":0,"d":"$0.00"}},{"$f":"'MMA Rev-Exp Region 1'!H$81","v":{"v":0,"d":"$0.00"}},{"$f":"'MMA Rev-Exp Region 1'!I$81","v":{"v":0,"d":"$0.00"}},{"$f":"'MMA Rev-Exp Region 1'!J$81","v":{"v":0,"d":"$0.00"}},{"$f":"'MMA Rev-Exp Region 1'!K$81","v":{"v":0,"d":"$0.00"}},{"$f":"'MMA Rev-Exp Region 1'!L$81","v":{"v":0,"d":"$0.00"}},{"$f":"'MMA Rev-Exp Region 1'!M$81","v":{"v":0,"d":"$0.00"}},{"$f":"'MMA Rev-Exp Region 1'!N$81","v":{"v":0,"d":"$0.00"}},{"v":0,"d":"$0.00"}]
["MMA",null,null,{"$f":"Jurat!I$1","v":0},{"$f":"Jurat!D$33","v":"00:00:00"},"Q1","2017-03-31","Region 1","Operating Expense","Medical Benefits Expense","Other Medical","11.6.1","Premium Deficiency Reserve",{"$f":"'MMA Rev-Exp Region 1'!D$82","v":{"v":0,"d":"$0.00"}},{"$f":"'MMA Rev-Exp Region 1'!E$82","v":{"v":0,"d":"$0.00"}},{"$f":"'MMA Rev-Exp Region 1'!F$82","v":{"v":0,"d":"$0.00"}},{"$f":"'MMA Rev-Exp Region 1'!G$82","v":{"v":0,"d":"$0.00"}},{"$f":"'MMA Rev-Exp Region 1'!H$82","v":{"v":0,"d":"$0.00"}},{"$f":"'MMA Rev-Exp Region 1'!I$82","v":{"v":0,"d":"$0.00"}},{"$f":"'MMA Rev-Exp Region 1'!J$82","v":{"v":0,"d":"$0.00"}},{"$f":"'MMA Rev-Exp Region 1'!K$82","v":{"v":0,"d":"$0.00"}},{"$f":"'MMA Rev-Exp Region 1'!L$82","v":{"v":0,"d":"$0.00"}},{"$f":"'MMA Rev-Exp Region 1'!M$82","v":{"v":0,"d":"$0.00"}},{"$f":"'MMA Rev-Exp Region 1'!N$82","v":{"v":0,"d":"$0.00"}},{"v":0,"d":"$0.00"}]
["MMA",null,null,{"$f":"Jurat!I$1","v":0},{"$f":"Jurat!D$33","v":"00:00:00"},"Q1","2017-03-31","Region 1","Operating Expense","Medical Benefits Expense","Other Medical","11.8","Reinsurance Premiums",{"$f":"'MMA Rev-Exp Region 1'!D$84","v":{"v":0,"d":"$0.00"}},{"$f":"'MMA Rev-Exp Region 1'!E$84","v":{"v":0,"d":"$0.00"}},{"$f":"'MMA Rev-Exp Region 1'!F$84","v":{"v":0,"d":"$0.00"}},{"$f":"'MMA Rev-Exp Region 1'!G$84","v":{"v":0,"d":"$0.00"}},{"$f":"'MMA Rev-Exp Region 1'!H$84","v":{"v":0,"d":"$0.00"}},{"$f":"'MMA Rev-Exp Region 1'!I$84","v":{"v":0,"d":"$0.00"}},{"$f":"'MMA Rev-Exp Region 1'!J$84","v":{"v":0,"d":"$0.00"}},{"$f":"'MMA Rev-Exp Region 1'!K$84","v":{"v":0,"d":"$0.00"}},{"$f":"'MMA Rev-Exp Region 1'!L$84","v":{"v":0,"d":"$0.00"}},{"$f":"'MMA Rev-Exp Region 1'!M$84","v":{"v":0,"d":"$0.00"}},{"$f":"'MMA Rev-Exp Region 1'!N$84","v":{"v":0,"d":"$0.00"}},{"v":0,"d":"$0.00"}]
["MMA",null,null,{"$f":"Jurat!I$1","v":0},{"$f":"Jurat!D$33","v":"00:00:00"},"Q1","2017-03-31","Region 1","Operating Expense","Medical Benefits Expense","Other Medical","11.9","Reinsurance Recoveries",{"$f":"'MMA Rev-Exp Region 1'!D$85","v":{"v":0,"d":"$0.00"}},{"$f":"'MMA Rev-Exp Region 1'!E$85","v":{"v":0,"d":"$0.00"}},{"$f":"'MMA Rev-Exp Region 1'!F$85","v":{"v":0,"d":"$0.00"}},{"$f":"'MMA Rev-Exp Region 1'!G$85","v":{"v":0,"d":"$0.00"}},{"$f":"'MMA Rev-Exp Region 1'!H$85","v":{"v":0,"d":"$0.00"}},{"$f":"'MMA Rev-Exp Region 1'!I$85","v":{"v":0,"d":"$0.00"}},{"$f":"'MMA Rev-Exp Region 1'!J$85","v":{"v":0,"d":"$0.00"}},{"$f":"'MMA Rev-Exp Region 1'!K$85","v":{"v":0,"d":"$0.00"}},{"$f":"'MMA Rev-Exp Region 1'!L$85","v":{"v":0,"d":"$0.00"}},{"$f":"'MMA Rev-Exp Region 1'!M$85","v":{"v":0,"d":"$0.00"}},{"$f":"'MMA Rev-Exp Region 1'!N$85","v":{"v":0,"d":"$0.00"}},{"v":0,"d":"$0.00"}]
["MMA",null,null,{"$f":"Jurat!I$1","v":0},{"$f":"Jurat!D$33","v":"00:00:00"},"Q1","2017-03-31","Region 1","Operating Expense","Administrative Expense","Administrative","12.1","Salaries & Benefits",{"$f":"'MMA Rev-Exp Region 1'!D$90","v":{"v":0,"d":"$0.00"}},{"v":0,"d":"$0.00"},{"v":0,"d":"$0.00"},{"v":0,"d":"$0.00"},{"v":0,"d":"$0.00"},{"v":0,"d":"$0.00"},{"v":0,"d":"$0.00"},{"v":0,"d":"$0.00"},{"v":0,"d":"$0.00"},{"v":0,"d":"$0.00"},{"v":0,"d":"$0.00"},{"v":0,"d":"$0.00"}]
["MMA",null,null,{"$f":"Jurat!I$1","v":0},{"$f":"Jurat!D$33","v":"00:00:00"},"Q1","2017-03-31","Region 1","Operating Expense","Administrative Expense","Administrative","12.2","Administrative Services",{"$f":"'MMA Rev-Exp Region 1'!D$91","v":{"v":0,"d":"$0.00"}},{"v":0,"d":"$0.00"},{"v":0,"d":"$0.00"},{"v":0,"d":"$0.00"},{"v":0,"d":"$0.00"},{"v":0,"d":"$0.00"},{"v":0,"d":"$0.00"},{"v":0,"d":"$0.00"},{"v":0,"d":"$0.00"},{"v":0,"d":"$0.00"},{"v":0,"d":"$0.00"},{"v":0,"d":"$0.00"}]
["MMA",null,null,{"$f":"Jurat!I$1","v":0},{"$f":"Jurat!D$33","v":"00:00:00"},"Q1","2017-03-31","Region 1","Operating Expense","Administrative Expense","Administrative","12.3","Information Systems",{"$f":"'MMA Rev-Exp Region 1'!D$92","v":{"v":0,"d":"$0.00"}},{"v":0,"d":"$0.00"},{"v":0,"d":"$0.00"},{"v":0,"d":"$0.00"},{"v":0,"d":"$0.00"},{"v":0,"d":"$0.00"},{"v":0,"d":"$0.00"},{"v":0,"d":"$0.00"},{"v":0,"d":"$0.00"},{"v":0,"d":"$0.00"},{"v":0,"d":"$0.00"},{"v":0,"d":"$0.00"}]
["MMA",null,null,{"$f":"Jurat!I$1","v":0},{"$f":"Jurat!D$33","v":"00:00:00"},"Q1","2017-03-31","Region 1","Operating Expense","Administrative Expense","Administrative","12.4","Marketing Expenses",{"$f":"'MMA Rev-Exp Region 1'!D$93","v":{"v":0,"d":"$0.00"}},{"v":0,"d":"$0.00"},{"v":0,"d":"$0.00"},{"v":0,"d":"$0.00"},{"v":0,"d":"$0.00"},{"v":0,"d":"$0.00"},{"v":0,"d":"$0.00"},{"v":0,"d":"$0.00"},{"v":0,"d":"$0.00"},{"v":0,"d":"$0.00"},{"v":0,"d":"$0.00"},{"v":0,"d":"$0.00"}]
["MMA",null,null,{"$f":"Jurat!I$1","v":0},{"$f":"Jurat!D$33","v":"00:00:00"},"Q1","2017-03-31","Region 1","Operating Expense","Administrative Expense","Administrative","12.5","General  Administration",{"$f":"'MMA Rev-Exp Region 1'!D$94","v":{"v":0,"d":"$0.00"}},{"v":0,"d":"$0.00"},{"v":0,"d":"$0.00"},{"v":0,"d":"$0.00"},{"v":0,"d":"$0.00"},{"v":0,"d":"$0.00"},{"v":0,"d":"$0.00"},{"v":0,"d":"$0.00"},{"v":0,"d":"$0.00"},{"v":0,"d":"$0.00"},{"v":0,"d":"$0.00"},{"v":0,"d":"$0.00"}]
["MMA",null,null,{"$f":"Jurat!I$1","v":0},{"$f":"Jurat!D$33","v":"00:00:00"},"Q1","2017-03-31","Region 1","Operating Expense","Administrative Expense","Administrative","12.6","Compliance/Regulatory",{"$f":"'MMA Rev-Exp Region 1'!D$95","v":{"v":0,"d":"$0.00"}},{"v":0,"d":"$0.00"},{"v":0,"d":"$0.00"},{"v":0,"d":"$0.00"},{"v":0,"d":"$0.00"},{"v":0,"d":"$0.00"},{"v":0,"d":"$0.00"},{"v":0,"d":"$0.00"},{"v":0,"d":"$0.00"},{"v":0,"d":"$0.00"},{"v":0,"d":"$0.00"},{"v":0,"d":"$0.00"}]
["MMA",null,null,{"$f":"Jurat!I$1","v":0},{"$f":"Jurat!D$33","v":"00:00:00"},"Q1","2017-03-31","Region 1","Operating Expense","Taxes & Fees","Taxes & Fees","13.1","State Premium tax",{"$f":"'MMA Rev-Exp Region 1'!D$97","v":{"v":0,"d":"$0.00"}},{"v":0,"d":"$0.00"},{"v":0,"d":"$0.00"},{"v":0,"d":"$0.00"},{"v":0,"d":"$0.00"},{"v":0,"d":"$0.00"},{"v":0,"d":"$0.00"},{"v":0,"d":"$0.00"},{"v":0,"d":"$0.00"},{"v":0,"d":"$0.00"},{"v":0,"d":"$0.00"},{"v":0,"d":"$0.00"}]
["MMA",null,null,{"$f":"Jurat!I$1","v":0},{"$f":"Jurat!D$33","v":"00:00:00"},"Q1","2017-03-31","Region 1","Operating Expense","Taxes & Fees","Taxes & Fees","13.2","Department of Insurance Assessments",{"$f":"'MMA Rev-Exp Region 1'!D$98","v":{"v":0,"d":"$0.00"}},{"v":0,"d":"$0.00"},{"v":0,"d":"$0.00"},{"v":0,"d":"$0.00"},{"v":0,"d":"$0.00"},{"v":0,"d":"$0.00"},{"v":0,"d":"$0.00"},{"v":0,"d":"$0.00"},{"v":0,"d":"$0.00"},{"v":0,"d":"$0.00"},{"v":0,"d":"$0.00"},{"v":0,"d":"$0.00"}]
["MMA",null,null,{"$f":"Jurat!I$1","v":0},{"$f":"Jurat!D$33","v":"00:00:00"},"Q1","2017-03-31","Region 1","Operating Expense","Taxes & Fees","Taxes & Fees","13.3","Section 9010 Health Insurance Providers Fee",{"$f":"'MMA Rev-Exp Region 1'!D$99","v":{"v":0,"d":"$0.00"}},{"v":0,"d":"$0.00"},{"v":0,"d":"$0.00"},{"v":0,"d":"$0.00"},{"v":0,"d":"$0.00"},{"v":0,"d":"$0.00"},{"v":0,"d":"$0.00"},{"v":0,"d":"$0.00"},{"v":0,"d":"$0.00"},{"v":0,"d":"$0.00"},{"v":0,"d":"$0.00"},{"v":0,"d":"$0.00"}]
["MMA",null,null,{"$f":"Jurat!I$1","v":0},{"$f":"Jurat!D$33","v":"00:00:00"},"Q1","2017-03-31","Region 1","Non-Operating Expense","Income Tax Expense","Income Tax Expense","16.0","Income Tax Expense",{"$f":"'MMA Rev-Exp Region 1'!D$106","v":{"v":0,"d":"$0.00"}},{"v":0,"d":"$0.00"},{"v":0,"d":"$0.00"},{"v":0,"d":"$0.00"},{"v":0,"d":"$0.00"},{"v":0,"d":"$0.00"},{"v":0,"d":"$0.00"},{"v":0,"d":"$0.00"},{"v":0,"d":"$0.00"},{"v":0,"d":"$0.00"},{"v":0,"d":"$0.00"},{"v":0,"d":"$0.00"}]
["MMA",null,null,{"$f":"Jurat!I$1","v":0},{"$f":"Jurat!D$33","v":"00:00:00"},"Q2","2017-06-30","Region 1","Member Months","Member Months","Member Months",null,"Member Months",{"$f":"'MMA Rev-Exp Region 1'!O$9","v":{"v":0,"d":"$0.00"}},{"$f":"'MMA Rev-Exp Region 1'!P$9","v":{"v":0,"d":"$0.00"}},{"$f":"'MMA Rev-Exp Region 1'!Q$9","v":{"v":0,"d":"$0.00"}},{"$f":"'MMA Rev-Exp Region 1'!R$9","v":{"v":0,"d":"$0.00"}},{"$f":"'MMA Rev-Exp Region 1'!S$9","v":{"v":0,"d":"$0.00"}},{"$f":"'MMA Rev-Exp Region 1'!T$9","v":{"v":0,"d":"$0.00"}},{"$f":"'MMA Rev-Exp Region 1'!U$9","v":{"v":0,"d":"$0.00"}},{"$f":"'MMA Rev-Exp Region 1'!V$9","v":{"v":0,"d":"$0.00"}},{"$f":"'MMA Rev-Exp Region 1'!W$9","v":{"v":0,"d":"$0.00"}},{"$f":"'MMA Rev-Exp Region 1'!X$9","v":{"v":0,"d":"$0.00"}},{"$f":"'MMA Rev-Exp Region 1'!Y$9","v":{"v":0,"d":"$0.00"}},{"v":0,"d":"$0.00"}]
["MMA",null,null,{"$f":"Jurat!I$1","v":0},{"$f":"Jurat!D$33","v":"00:00:00"},"Q2","2017-06-30","Region 1","Operating Revenue","Capitation","Capitation",1.1,"Capitation",{"$f":"'MMA Rev-Exp Region 1'!O$11","v":{"v":0,"d":"$0.00"}},{"$f":"'MMA Rev-Exp Region 1'!P$11","v":{"v":0,"d":"$0.00"}},{"$f":"'MMA Rev-Exp Region 1'!Q$11","v":{"v":0,"d":"$0.00"}},{"$f":"'MMA Rev-Exp Region 1'!R$11","v":{"v":0,"d":"$0.00"}},{"$f":"'MMA Rev-Exp Region 1'!S$11","v":{"v":0,"d":"$0.00"}},{"$f":"'MMA Rev-Exp Region 1'!T$11","v":{"v":0,"d":"$0.00"}},{"$f":"'MMA Rev-Exp Region 1'!U$11","v":{"v":0,"d":"$0.00"}},{"$f":"'MMA Rev-Exp Region 1'!V$11","v":{"v":0,"d":"$0.00"}},{"$f":"'MMA Rev-Exp Region 1'!W$11","v":{"v":0,"d":"$0.00"}},{"$f":"'MMA Rev-Exp Region 1'!X$11","v":{"v":0,"d":"$0.00"}},{"$f":"'MMA Rev-Exp Region 1'!Y$11","v":{"v":0,"d":"$0.00"}},{"v":0,"d":"$0.00"}]
["MMA",null,null,{"$f":"Jurat!I$1","v":0},{"$f":"Jurat!D$33","v":"00:00:00"},"Q2","2017-06-30","Region 1","Operating Revenue","Kick Payments","Kick Payments - Transplant",1.2,"Transplant Kick Payments",{"$f":"'MMA Rev-Exp Region 1'!O$12","v":{"v":0,"d":"$0.00"}},{"$f":"'MMA Rev-Exp Region 1'!P$12","v":{"v":0,"d":"$0.00"}},{"$f":"'MMA Rev-Exp Region 1'!Q$12","v":{"v":0,"d":"$0.00"}},{"$f":"'MMA Rev-Exp Region 1'!R$12","v":{"v":0,"d":"$0.00"}},{"$f":"'MMA Rev-Exp Region 1'!S$12","v":{"v":0,"d":"$0.00"}},{"$f":"'MMA Rev-Exp Region 1'!T$12","v":{"v":0,"d":"$0.00"}},{"$f":"'MMA Rev-Exp Region 1'!U$12","v":{"v":0,"d":"$0.00"}},{"$f":"'MMA Rev-Exp Region 1'!V$12","v":{"v":0,"d":"$0.00"}},{"$f":"'MMA Rev-Exp Region 1'!W$12","v":{"v":0,"d":"$0.00"}},{"$f":"'MMA Rev-Exp Region 1'!X$12","v":{"v":0,"d":"$0.00"}},{"$f":"'MMA Rev-Exp Region 1'!Y$12","v":{"v":0,"d":"$0.00"}},{"v":0,"d":"$0.00"}]
["MMA",null,null,{"$f":"Jurat!I$1","v":0},{"$f":"Jurat!D$33","v":"00:00:00"},"Q2","2017-06-30","Region 1","Operating Revenue","Kick Payments","Kick Payments - Hep C","1.3","Hepatitis C Kick Payments",{"$f":"'MMA Rev-Exp Region 1'!O$13","v":{"v":0,"d":"$0.00"}},{"$f":"'MMA Rev-Exp Region 1'!P$13","v":{"v":0,"d":"$0.00"}},{"$f":"'MMA Rev-Exp Region 1'!Q$13","v":{"v":0,"d":"$0.00"}},{"$f":"'MMA Rev-Exp Region 1'!R$13","v":{"v":0,"d":"$0.00"}},{"$f":"'MMA Rev-Exp Region 1'!S$13","v":{"v":0,"d":"$0.00"}},{"$f":"'MMA Rev-Exp Region 1'!T$13","v":{"v":0,"d":"$0.00"}},{"$f":"'MMA Rev-Exp Region 1'!U$13","v":{"v":0,"d":"$0.00"}},{"$f":"'MMA Rev-Exp Region 1'!V$13","v":{"v":0,"d":"$0.00"}},{"$f":"'MMA Rev-Exp Region 1'!W$13","v":{"v":0,"d":"$0.00"}},{"$f":"'MMA Rev-Exp Region 1'!X$13","v":{"v":0,"d":"$0.00"}},{"$f":"'MMA Rev-Exp Region 1'!Y$13","v":{"v":0,"d":"$0.00"}},{"v":0,"d":"$0.00"}]
["MMA",null,null,{"$f":"Jurat!I$1","v":0},{"$f":"Jurat!D$33","v":"00:00:00"},"Q2","2017-06-30","Region 1","Operating Revenue","Kick Payments","Kick Payments - Maternity","1.4.1","Maternity Kick Payments",{"$f":"'MMA Rev-Exp Region 1'!O$14","v":{"v":0,"d":"$0.00"}},{"$f":"'MMA Rev-Exp Region 1'!P$14","v":{"v":0,"d":"$0.00"}},{"$f":"'MMA Rev-Exp Region 1'!Q$14","v":{"v":0,"d":"$0.00"}},{"$f":"'MMA Rev-Exp Region 1'!R$14","v":{"v":0,"d":"$0.00"}},{"$f":"'MMA Rev-Exp Region 1'!S$14","v":{"v":0,"d":"$0.00"}},{"$f":"'MMA Rev-Exp Region 1'!T$14","v":{"v":0,"d":"$0.00"}},{"$f":"'MMA Rev-Exp Region 1'!U$14","v":{"v":0,"d":"$0.00"}},{"$f":"'MMA Rev-Exp Region 1'!V$14","v":{"v":0,"d":"$0.00"}},{"$f":"'MMA Rev-Exp Region 1'!W$14","v":{"v":0,"d":"$0.00"}},{"$f":"'MMA Rev-Exp Region 1'!X$14","v":{"v":0,"d":"$0.00"}},{"$f":"'MMA Rev-Exp Region 1'!Y$14","v":{"v":0,"d":"$0.00"}},{"v":0,"d":"$0.00"}]
["MMA",null,null,{"$f":"Jurat!I$1","v":0},{"$f":"Jurat!D$33","v":"00:00:00"},"Q2","2017-06-30","Region 1","Operating Revenue","Other Revenue","Other Revenue - 9010","1.5","ACA § 9010 related payments",{"$f":"'MMA Rev-Exp Region 1'!O$15","v":{"v":0,"d":"$0.00"}},{"$f":"'MMA Rev-Exp Region 1'!P$15","v":{"v":0,"d":"$0.00"}},{"$f":"'MMA Rev-Exp Region 1'!Q$15","v":{"v":0,"d":"$0.00"}},{"$f":"'MMA Rev-Exp Region 1'!R$15","v":{"v":0,"d":"$0.00"}},{"$f":"'MMA Rev-Exp Region 1'!S$15","v":{"v":0,"d":"$0.00"}},{"$f":"'MMA Rev-Exp Region 1'!T$15","v":{"v":0,"d":"$0.00"}},{"$f":"'MMA Rev-Exp Region 1'!U$15","v":{"v":0,"d":"$0.00"}},{"$f":"'MMA Rev-Exp Region 1'!V$15","v":{"v":0,"d":"$0.00"}},{"$f":"'MMA Rev-Exp Region 1'!W$15","v":{"v":0,"d":"$0.00"}},{"$f":"'MMA Rev-Exp Region 1'!X$15","v":{"v":0,"d":"$0.00"}},{"$f":"'MMA Rev-Exp Region 1'!Y$15","v":{"v":0,"d":"$0.00"}},{"v":0,"d":"$0.00"}]
["MMA",null,null,{"$f":"Jurat!I$1","v":0},{"$f":"Jurat!D$33","v":"00:00:00"},"Q2","2017-06-30","Region 1","Operating Revenue","Other Revenue","Other Revenue","1.6","Other Revenue",{"$f":"'MMA Rev-Exp Region 1'!O$16","v":{"v":0,"d":"$0.00"}},{"$f":"'MMA Rev-Exp Region 1'!P$16","v":{"v":0,"d":"$0.00"}},{"$f":"'MMA Rev-Exp Region 1'!Q$16","v":{"v":0,"d":"$0.00"}},{"$f":"'MMA Rev-Exp Region 1'!R$16","v":{"v":0,"d":"$0.00"}},{"$f":"'MMA Rev-Exp Region 1'!S$16","v":{"v":0,"d":"$0.00"}},{"$f":"'MMA Rev-Exp Region 1'!T$16","v":{"v":0,"d":"$0.00"}},{"$f":"'MMA Rev-Exp Region 1'!U$16","v":{"v":0,"d":"$0.00"}},{"$f":"'MMA Rev-Exp Region 1'!V$16","v":{"v":0,"d":"$0.00"}},{"$f":"'MMA Rev-Exp Region 1'!W$16","v":{"v":0,"d":"$0.00"}},{"$f":"'MMA Rev-Exp Region 1'!X$16","v":{"v":0,"d":"$0.00"}},{"$f":"'MMA Rev-Exp Region 1'!Y$16","v":{"v":0,"d":"$0.00"}},{"v":0,"d":"$0.00"}]
["MMA",null,null,{"$f":"Jurat!I$1","v":0},{"$f":"Jurat!D$33","v":"00:00:00"},"Q2","2017-06-30","Region 1","Operating Expense","Medical Benefits Expense","Hospital Services",2.1,"Inpatient FFS",{"$f":"'MMA Rev-Exp Region 1'!O$20","v":{"v":0,"d":"$0.00"}},{"$f":"'MMA Rev-Exp Region 1'!P$20","v":{"v":0,"d":"$0.00"}},{"$f":"'MMA Rev-Exp Region 1'!Q$20","v":{"v":0,"d":"$0.00"}},{"$f":"'MMA Rev-Exp Region 1'!R$20","v":{"v":0,"d":"$0.00"}},{"$f":"'MMA Rev-Exp Region 1'!S$20","v":{"v":0,"d":"$0.00"}},{"$f":"'MMA Rev-Exp Region 1'!T$20","v":{"v":0,"d":"$0.00"}},{"$f":"'MMA Rev-Exp Region 1'!U$20","v":{"v":0,"d":"$0.00"}},{"$f":"'MMA Rev-Exp Region 1'!V$20","v":{"v":0,"d":"$0.00"}},{"$f":"'MMA Rev-Exp Region 1'!W$20","v":{"v":0,"d":"$0.00"}},{"$f":"'MMA Rev-Exp Region 1'!X$20","v":{"v":0,"d":"$0.00"}},{"$f":"'MMA Rev-Exp Region 1'!Y$20","v":{"v":0,"d":"$0.00"}},{"v":0,"d":"$0.00"}]
["MMA",null,null,{"$f":"Jurat!I$1","v":0},{"$f":"Jurat!D$33","v":"00:00:00"},"Q2","2017-06-30","Region 1","Operating Expense","Medical Benefits Expense","Hospital Services",2.2,"Ending IBNP for Inpatient Hospital Services",{"$f":"'MMA Rev-Exp Region 1'!O$21","v":{"v":0,"d":"$0.00"}},{"$f":"'MMA Rev-Exp Region 1'!P$21","v":{"v":0,"d":"$0.00"}},{"$f":"'MMA Rev-Exp Region 1'!Q$21","v":{"v":0,"d":"$0.00"}},{"$f":"'MMA Rev-Exp Region 1'!R$21","v":{"v":0,"d":"$0.00"}},{"$f":"'MMA Rev-Exp Region 1'!S$21","v":{"v":0,"d":"$0.00"}},{"$f":"'MMA Rev-Exp Region 1'!T$21","v":{"v":0,"d":"$0.00"}},{"$f":"'MMA Rev-Exp Region 1'!U$21","v":{"v":0,"d":"$0.00"}},{"$f":"'MMA Rev-Exp Region 1'!V$21","v":{"v":0,"d":"$0.00"}},{"$f":"'MMA Rev-Exp Region 1'!W$21","v":{"v":0,"d":"$0.00"}},{"$f":"'MMA Rev-Exp Region 1'!X$21","v":{"v":0,"d":"$0.00"}},{"$f":"'MMA Rev-Exp Region 1'!Y$21","v":{"v":0,"d":"$0.00"}},{"v":0,"d":"$0.00"}]
["MMA",null,null,{"$f":"Jurat!I$1","v":0},{"$f":"Jurat!D$33","v":"00:00:00"},"Q2","2017-06-30","Region 1","Operating Expense","Medical Benefits Expense","Hospital Services",2.3,"Outpatient FFS: ER",{"$f":"'MMA Rev-Exp Region 1'!O$22","v":{"v":0,"d":"$0.00"}},{"$f":"'MMA Rev-Exp Region 1'!P$22","v":{"v":0,"d":"$0.00"}},{"$f":"'MMA Rev-Exp Region 1'!Q$22","v":{"v":0,"d":"$0.00"}},{"$f":"'MMA Rev-Exp Region 1'!R$22","v":{"v":0,"d":"$0.00"}},{"$f":"'MMA Rev-Exp Region 1'!S$22","v":{"v":0,"d":"$0.00"}},{"$f":"'MMA Rev-Exp Region 1'!T$22","v":{"v":0,"d":"$0.00"}},{"$f":"'MMA Rev-Exp Region 1'!U$22","v":{"v":0,"d":"$0.00"}},{"$f":"'MMA Rev-Exp Region 1'!V$22","v":{"v":0,"d":"$0.00"}},{"$f":"'MMA Rev-Exp Region 1'!W$22","v":{"v":0,"d":"$0.00"}},{"$f":"'MMA Rev-Exp Region 1'!X$22","v":{"v":0,"d":"$0.00"}},{"$f":"'MMA Rev-Exp Region 1'!Y$22","v":{"v":0,"d":"$0.00"}},{"v":0,"d":"$0.00"}]
["MMA",null,null,{"$f":"Jurat!I$1","v":0},{"$f":"Jurat!D$33","v":"00:00:00"},"Q2","2017-06-30","Region 1","Operating Expense","Medical Benefits Expense","Hospital Services",2.4,"Outpatient FFS: Other than ER ",{"$f":"'MMA Rev-Exp Region 1'!O$23","v":{"v":0,"d":"$0.00"}},{"$f":"'MMA Rev-Exp Region 1'!P$23","v":{"v":0,"d":"$0.00"}},{"$f":"'MMA Rev-Exp Region 1'!Q$23","v":{"v":0,"d":"$0.00"}},{"$f":"'MMA Rev-Exp Region 1'!R$23","v":{"v":0,"d":"$0.00"}},{"$f":"'MMA Rev-Exp Region 1'!S$23","v":{"v":0,"d":"$0.00"}},{"$f":"'MMA Rev-Exp Region 1'!T$23","v":{"v":0,"d":"$0.00"}},{"$f":"'MMA Rev-Exp Region 1'!U$23","v":{"v":0,"d":"$0.00"}},{"$f":"'MMA Rev-Exp Region 1'!V$23","v":{"v":0,"d":"$0.00"}},{"$f":"'MMA Rev-Exp Region 1'!W$23","v":{"v":0,"d":"$0.00"}},{"$f":"'MMA Rev-Exp Region 1'!X$23","v":{"v":0,"d":"$0.00"}},{"$f":"'MMA Rev-Exp Region 1'!Y$23","v":{"v":0,"d":"$0.00"}},{"v":0,"d":"$0.00"}]
["MMA",null,null,{"$f":"Jurat!I$1","v":0},{"$f":"Jurat!D$33","v":"00:00:00"},"Q2","2017-06-30","Region 1","Operating Expense","Medical Benefits Expense","Hospital Services",2.5,"Ending IBNP for Outpatient Hospital Services",{"$f":"'MMA Rev-Exp Region 1'!O$24","v":{"v":0,"d":"$0.00"}},{"$f":"'MMA Rev-Exp Region 1'!P$24","v":{"v":0,"d":"$0.00"}},{"$f":"'MMA Rev-Exp Region 1'!Q$24","v":{"v":0,"d":"$0.00"}},{"$f":"'MMA Rev-Exp Region 1'!R$24","v":{"v":0,"d":"$0.00"}},{"$f":"'MMA Rev-Exp Region 1'!S$24","v":{"v":0,"d":"$0.00"}},{"$f":"'MMA Rev-Exp Region 1'!T$24","v":{"v":0,"d":"$0.00"}},{"$f":"'MMA Rev-Exp Region 1'!U$24","v":{"v":0,"d":"$0.00"}},{"$f":"'MMA Rev-Exp Region 1'!V$24","v":{"v":0,"d":"$0.00"}},{"$f":"'MMA Rev-Exp Region 1'!W$24","v":{"v":0,"d":"$0.00"}},{"$f":"'MMA Rev-Exp Region 1'!X$24","v":{"v":0,"d":"$0.00"}},{"$f":"'MMA Rev-Exp Region 1'!Y$24","v":{"v":0,"d":"$0.00"}},{"v":0,"d":"$0.00"}]
["MMA",null,null,{"$f":"Jurat!I$1","v":0},{"$f":"Jurat!D$33","v":"00:00:00"},"Q2","2017-06-30","Region 1","Operating Expense","Medical Benefits Expense","Hospital Services","2.6","Subcapitated Hospital Services",{"$f":"'MMA Rev-Exp Region 1'!O$25","v":{"v":0,"d":"$0.00"}},{"$f":"'MMA Rev-Exp Region 1'!P$25","v":{"v":0,"d":"$0.00"}},{"$f":"'MMA Rev-Exp Region 1'!Q$25","v":{"v":0,"d":"$0.00"}},{"$f":"'MMA Rev-Exp Region 1'!R$25","v":{"v":0,"d":"$0.00"}},{"$f":"'MMA Rev-Exp Region 1'!S$25","v":{"v":0,"d":"$0.00"}},{"$f":"'MMA Rev-Exp Region 1'!T$25","v":{"v":0,"d":"$0.00"}},{"$f":"'MMA Rev-Exp Region 1'!U$25","v":{"v":0,"d":"$0.00"}},{"$f":"'MMA Rev-Exp Region 1'!V$25","v":{"v":0,"d":"$0.00"}},{"$f":"'MMA Rev-Exp Region 1'!W$25","v":{"v":0,"d":"$0.00"}},{"$f":"'MMA Rev-Exp Region 1'!X$25","v":{"v":0,"d":"$0.00"}},{"$f":"'MMA Rev-Exp Region 1'!Y$25","v":{"v":0,"d":"$0.00"}},{"v":0,"d":"$0.00"}]
["MMA",null,null,{"$f":"Jurat!I$1","v":0},{"$f":"Jurat!D$33","v":"00:00:00"},"Q2","2017-06-30","Region 1","Operating Expense","Medical Benefits Expense","Hospital Services","2.7","Hospital Settlements",{"$f":"'MMA Rev-Exp Region 1'!O$26","v":{"v":0,"d":"$0.00"}},{"$f":"'MMA Rev-Exp Region 1'!P$26","v":{"v":0,"d":"$0.00"}},{"$f":"'MMA Rev-Exp Region 1'!Q$26","v":{"v":0,"d":"$0.00"}},{"$f":"'MMA Rev-Exp Region 1'!R$26","v":{"v":0,"d":"$0.00"}},{"$f":"'MMA Rev-Exp Region 1'!S$26","v":{"v":0,"d":"$0.00"}},{"$f":"'MMA Rev-Exp Region 1'!T$26","v":{"v":0,"d":"$0.00"}},{"$f":"'MMA Rev-Exp Region 1'!U$26","v":{"v":0,"d":"$0.00"}},{"$f":"'MMA Rev-Exp Region 1'!V$26","v":{"v":0,"d":"$0.00"}},{"$f":"'MMA Rev-Exp Region 1'!W$26","v":{"v":0,"d":"$0.00"}},{"$f":"'MMA Rev-Exp Region 1'!X$26","v":{"v":0,"d":"$0.00"}},{"$f":"'MMA Rev-Exp Region 1'!Y$26","v":{"v":0,"d":"$0.00"}},{"v":0,"d":"$0.00"}]
["MMA",null,null,{"$f":"Jurat!I$1","v":0},{"$f":"Jurat!D$33","v":"00:00:00"},"Q2","2017-06-30","Region 1","Operating Expense","Medical Benefits Expense","Hospital Services","2.7.1","Transplant Services",{"$f":"'MMA Rev-Exp Region 1'!O$27","v":{"v":0,"d":"$0.00"}},{"$f":"'MMA Rev-Exp Region 1'!P$27","v":{"v":0,"d":"$0.00"}},{"$f":"'MMA Rev-Exp Region 1'!Q$27","v":{"v":0,"d":"$0.00"}},{"$f":"'MMA Rev-Exp Region 1'!R$27","v":{"v":0,"d":"$0.00"}},{"$f":"'MMA Rev-Exp Region 1'!S$27","v":{"v":0,"d":"$0.00"}},{"$f":"'MMA Rev-Exp Region 1'!T$27","v":{"v":0,"d":"$0.00"}},{"$f":"'MMA Rev-Exp Region 1'!U$27","v":{"v":0,"d":"$0.00"}},{"$f":"'MMA Rev-Exp Region 1'!V$27","v":{"v":0,"d":"$0.00"}},{"$f":"'MMA Rev-Exp Region 1'!W$27","v":{"v":0,"d":"$0.00"}},{"$f":"'MMA Rev-Exp Region 1'!X$27","v":{"v":0,"d":"$0.00"}},{"$f":"'MMA Rev-Exp Region 1'!Y$27","v":{"v":0,"d":"$0.00"}},{"v":0,"d":"$0.00"}]
["MMA",null,null,{"$f":"Jurat!I$1","v":0},{"$f":"Jurat!D$33","v":"00:00:00"},"Q2","2017-06-30","Region 1","Operating Expense","Medical Benefits Expense","Professional Services",3.1,"Primary Care FFS",{"$f":"'MMA Rev-Exp Region 1'!O$29","v":{"v":0,"d":"$0.00"}},{"$f":"'MMA Rev-Exp Region 1'!P$29","v":{"v":0,"d":"$0.00"}},{"$f":"'MMA Rev-Exp Region 1'!Q$29","v":{"v":0,"d":"$0.00"}},{"$f":"'MMA Rev-Exp Region 1'!R$29","v":{"v":0,"d":"$0.00"}},{"$f":"'MMA Rev-Exp Region 1'!S$29","v":{"v":0,"d":"$0.00"}},{"$f":"'MMA Rev-Exp Region 1'!T$29","v":{"v":0,"d":"$0.00"}},{"$f":"'MMA Rev-Exp Region 1'!U$29","v":{"v":0,"d":"$0.00"}},{"$f":"'MMA Rev-Exp Region 1'!V$29","v":{"v":0,"d":"$0.00"}},{"$f":"'MMA Rev-Exp Region 1'!W$29","v":{"v":0,"d":"$0.00"}},{"$f":"'MMA Rev-Exp Region 1'!X$29","v":{"v":0,"d":"$0.00"}},{"$f":"'MMA Rev-Exp Region 1'!Y$29","v":{"v":0,"d":"$0.00"}},{"v":0,"d":"$0.00"}]
["MMA",null,null,{"$f":"Jurat!I$1","v":0},{"$f":"Jurat!D$33","v":"00:00:00"},"Q2","2017-06-30","Region 1","Operating Expense","Medical Benefits Expense","Professional Services",3.2,"Specialty Care FFS",{"$f":"'MMA Rev-Exp Region 1'!O$30","v":{"v":0,"d":"$0.00"}},{"$f":"'MMA Rev-Exp Region 1'!P$30","v":{"v":0,"d":"$0.00"}},{"$f":"'MMA Rev-Exp Region 1'!Q$30","v":{"v":0,"d":"$0.00"}},{"$f":"'MMA Rev-Exp Region 1'!R$30","v":{"v":0,"d":"$0.00"}},{"$f":"'MMA Rev-Exp Region 1'!S$30","v":{"v":0,"d":"$0.00"}},{"$f":"'MMA Rev-Exp Region 1'!T$30","v":{"v":0,"d":"$0.00"}},{"$f":"'MMA Rev-Exp Region 1'!U$30","v":{"v":0,"d":"$0.00"}},{"$f":"'MMA Rev-Exp Region 1'!V$30","v":{"v":0,"d":"$0.00"}},{"$f":"'MMA Rev-Exp Region 1'!W$30","v":{"v":0,"d":"$0.00"}},{"$f":"'MMA Rev-Exp Region 1'!X$30","v":{"v":0,"d":"$0.00"}},{"$f":"'MMA Rev-Exp Region 1'!Y$30","v":{"v":0,"d":"$0.00"}},{"v":0,"d":"$0.00"}]
["MMA",null,null,{"$f":"Jurat!I$1","v":0},{"$f":"Jurat!D$33","v":"00:00:00"},"Q2","2017-06-30","Region 1","Operating Expense","Medical Benefits Expense","Professional Services",3.3,"Other Professional FFS",{"$f":"'MMA Rev-Exp Region 1'!O$31","v":{"v":0,"d":"$0.00"}},{"$f":"'MMA Rev-Exp Region 1'!P$31","v":{"v":0,"d":"$0.00"}},{"$f":"'MMA Rev-Exp Region 1'!Q$31","v":{"v":0,"d":"$0.00"}},{"$f":"'MMA Rev-Exp Region 1'!R$31","v":{"v":0,"d":"$0.00"}},{"$f":"'MMA Rev-Exp Region 1'!S$31","v":{"v":0,"d":"$0.00"}},{"$f":"'MMA Rev-Exp Region 1'!T$31","v":{"v":0,"d":"$0.00"}},{"$f":"'MMA Rev-Exp Region 1'!U$31","v":{"v":0,"d":"$0.00"}},{"$f":"'MMA Rev-Exp Region 1'!V$31","v":{"v":0,"d":"$0.00"}},{"$f":"'MMA Rev-Exp Region 1'!W$31","v":{"v":0,"d":"$0.00"}},{"$f":"'MMA Rev-Exp Region 1'!X$31","v":{"v":0,"d":"$0.00"}},{"$f":"'MMA Rev-Exp Region 1'!Y$31","v":{"v":0,"d":"$0.00"}},{"v":0,"d":"$0.00"}]
["MMA",null,null,{"$f":"Jurat!I$1","v":0},{"$f":"Jurat!D$33","v":"00:00:00"},"Q2","2017-06-30","Region 1","Operating Expense","Medical Benefits Expense","Professional Services","3.4","§ 1202 PCP Payments to providers",{"$f":"'MMA Rev-Exp Region 1'!O$32","v":{"v":0,"d":"$0.00"}},{"$f":"'MMA Rev-Exp Region 1'!P$32","v":{"v":0,"d":"$0.00"}},{"$f":"'MMA Rev-Exp Region 1'!Q$32","v":{"v":0,"d":"$0.00"}},{"$f":"'MMA Rev-Exp Region 1'!R$32","v":{"v":0,"d":"$0.00"}},{"$f":"'MMA Rev-Exp Region 1'!S$32","v":{"v":0,"d":"$0.00"}},{"$f":"'MMA Rev-Exp Region 1'!T$32","v":{"v":0,"d":"$0.00"}},{"$f":"'MMA Rev-Exp Region 1'!U$32","v":{"v":0,"d":"$0.00"}},{"$f":"'MMA Rev-Exp Region 1'!V$32","v":{"v":0,"d":"$0.00"}},{"$f":"'MMA Rev-Exp Region 1'!W$32","v":{"v":0,"d":"$0.00"}},{"$f":"'MMA Rev-Exp Region 1'!X$32","v":{"v":0,"d":"$0.00"}},{"$f":"'MMA Rev-Exp Region 1'!Y$32","v":{"v":0,"d":"$0.00"}},{"v":0,"d":"$0.00"}]
["MMA",null,null,{"$f":"Jurat!I$1","v":0},{"$f":"Jurat!D$33","v":"00:00:00"},"Q2","2017-06-30","Region 1","Operating Expense","Medical Benefits Expense","Professional Services","3.5","Subcapitated Professional Services",{"$f":"'MMA Rev-Exp Region 1'!O$33","v":{"v":0,"d":"$0.00"}},{"$f":"'MMA Rev-Exp Region 1'!P$33","v":{"v":0,"d":"$0.00"}},{"$f":"'MMA Rev-Exp Region 1'!Q$33","v":{"v":0,"d":"$0.00"}},{"$f":"'MMA Rev-Exp Region 1'!R$33","v":{"v":0,"d":"$0.00"}},{"$f":"'MMA Rev-Exp Region 1'!S$33","v":{"v":0,"d":"$0.00"}},{"$f":"'MMA Rev-Exp Region 1'!T$33","v":{"v":0,"d":"$0.00"}},{"$f":"'MMA Rev-Exp Region 1'!U$33","v":{"v":0,"d":"$0.00"}},{"$f":"'MMA Rev-Exp Region 1'!V$33","v":{"v":0,"d":"$0.00"}},{"$f":"'MMA Rev-Exp Region 1'!W$33","v":{"v":0,"d":"$0.00"}},{"$f":"'MMA Rev-Exp Region 1'!X$33","v":{"v":0,"d":"$0.00"}},{"$f":"'MMA Rev-Exp Region 1'!Y$33","v":{"v":0,"d":"$0.00"}},{"v":0,"d":"$0.00"}]
["MMA",null,null,{"$f":"Jurat!I$1","v":0},{"$f":"Jurat!D$33","v":"00:00:00"},"Q2","2017-06-30","Region 1","Operating Expense","Medical Benefits Expense","Professional Services","3.6","Ending IBNP for Professional Services",{"$f":"'MMA Rev-Exp Region 1'!O$34","v":{"v":0,"d":"$0.00"}},{"$f":"'MMA Rev-Exp Region 1'!P$34","v":{"v":0,"d":"$0.00"}},{"$f":"'MMA Rev-Exp Region 1'!Q$34","v":{"v":0,"d":"$0.00"}},{"$f":"'MMA Rev-Exp Region 1'!R$34","v":{"v":0,"d":"$0.00"}},{"$f":"'MMA Rev-Exp Region 1'!S$34","v":{"v":0,"d":"$0.00"}},{"$f":"'MMA Rev-Exp Region 1'!T$34","v":{"v":0,"d":"$0.00"}},{"$f":"'MMA Rev-Exp Region 1'!U$34","v":{"v":0,"d":"$0.00"}},{"$f":"'MMA Rev-Exp Region 1'!V$34","v":{"v":0,"d":"$0.00"}},{"$f":"'MMA Rev-Exp Region 1'!W$34","v":{"v":0,"d":"$0.00"}},{"$f":"'MMA Rev-Exp Region 1'!X$34","v":{"v":0,"d":"$0.00"}},{"$f":"'MMA Rev-Exp Region 1'!Y$34","v":{"v":0,"d":"$0.00"}},{"v":0,"d":"$0.00"}]
["MMA",null,null,{"$f":"Jurat!I$1","v":0},{"$f":"Jurat!D$33","v":"00:00:00"},"Q2","2017-06-30","Region 1","Operating Expense","Medical Benefits Expense","Professional Services","3.7","Professional Services Settlements",{"$f":"'MMA Rev-Exp Region 1'!O$35","v":{"v":0,"d":"$0.00"}},{"$f":"'MMA Rev-Exp Region 1'!P$35","v":{"v":0,"d":"$0.00"}},{"$f":"'MMA Rev-Exp Region 1'!Q$35","v":{"v":0,"d":"$0.00"}},{"$f":"'MMA Rev-Exp Region 1'!R$35","v":{"v":0,"d":"$0.00"}},{"$f":"'MMA Rev-Exp Region 1'!S$35","v":{"v":0,"d":"$0.00"}},{"$f":"'MMA Rev-Exp Region 1'!T$35","v":{"v":0,"d":"$0.00"}},{"$f":"'MMA Rev-Exp Region 1'!U$35","v":{"v":0,"d":"$0.00"}},{"$f":"'MMA Rev-Exp Region 1'!V$35","v":{"v":0,"d":"$0.00"}},{"$f":"'MMA Rev-Exp Region 1'!W$35","v":{"v":0,"d":"$0.00"}},{"$f":"'MMA Rev-Exp Region 1'!X$35","v":{"v":0,"d":"$0.00"}},{"$f":"'MMA Rev-Exp Region 1'!Y$35","v":{"v":0,"d":"$0.00"}},{"v":0,"d":"$0.00"}]
["MMA",null,null,{"$f":"Jurat!I$1","v":0},{"$f":"Jurat!D$33","v":"00:00:00"},"Q2","2017-06-30","Region 1","Operating Expense","Medical Benefits Expense","Maternity Services","4.1.1","Maternity Services",{"$f":"'MMA Rev-Exp Region 1'!O$37","v":{"v":0,"d":"$0.00"}},{"$f":"'MMA Rev-Exp Region 1'!P$37","v":{"v":0,"d":"$0.00"}},{"$f":"'MMA Rev-Exp Region 1'!Q$37","v":{"v":0,"d":"$0.00"}},{"$f":"'MMA Rev-Exp Region 1'!R$37","v":{"v":0,"d":"$0.00"}},{"$f":"'MMA Rev-Exp Region 1'!S$37","v":{"v":0,"d":"$0.00"}},{"$f":"'MMA Rev-Exp Region 1'!T$37","v":{"v":0,"d":"$0.00"}},{"$f":"'MMA Rev-Exp Region 1'!U$37","v":{"v":0,"d":"$0.00"}},{"$f":"'MMA Rev-Exp Region 1'!V$37","v":{"v":0,"d":"$0.00"}},{"$f":"'MMA Rev-Exp Region 1'!W$37","v":{"v":0,"d":"$0.00"}},{"$f":"'MMA Rev-Exp Region 1'!X$37","v":{"v":0,"d":"$0.00"}},{"$f":"'MMA Rev-Exp Region 1'!Y$37","v":{"v":0,"d":"$0.00"}},{"v":0,"d":"$0.00"}]
["MMA",null,null,{"$f":"Jurat!I$1","v":0},{"$f":"Jurat!D$33","v":"00:00:00"},"Q2","2017-06-30","Region 1","Operating Expense","Medical Benefits Expense","Maternity Services","4.2.1","Ending IBNP for Maternity Services",{"$f":"'MMA Rev-Exp Region 1'!O$38","v":{"v":0,"d":"$0.00"}},{"$f":"'MMA Rev-Exp Region 1'!P$38","v":{"v":0,"d":"$0.00"}},{"$f":"'MMA Rev-Exp Region 1'!Q$38","v":{"v":0,"d":"$0.00"}},{"$f":"'MMA Rev-Exp Region 1'!R$38","v":{"v":0,"d":"$0.00"}},{"$f":"'MMA Rev-Exp Region 1'!S$38","v":{"v":0,"d":"$0.00"}},{"$f":"'MMA Rev-Exp Region 1'!T$38","v":{"v":0,"d":"$0.00"}},{"$f":"'MMA Rev-Exp Region 1'!U$38","v":{"v":0,"d":"$0.00"}},{"$f":"'MMA Rev-Exp Region 1'!V$38","v":{"v":0,"d":"$0.00"}},{"$f":"'MMA Rev-Exp Region 1'!W$38","v":{"v":0,"d":"$0.00"}},{"$f":"'MMA Rev-Exp Region 1'!X$38","v":{"v":0,"d":"$0.00"}},{"$f":"'MMA Rev-Exp Region 1'!Y$38","v":{"v":0,"d":"$0.00"}},{"v":0,"d":"$0.00"}]
["MMA",null,null,{"$f":"Jurat!I$1","v":0},{"$f":"Jurat!D$33","v":"00:00:00"},"Q2","2017-06-30","Region 1","Operating Expense","Medical Benefits Expense","Maternity Services","4.3.1","Maternity Settlements",{"$f":"'MMA Rev-Exp Region 1'!O$39","v":{"v":0,"d":"$0.00"}},{"$f":"'MMA Rev-Exp Region 1'!P$39","v":{"v":0,"d":"$0.00"}},{"$f":"'MMA Rev-Exp Region 1'!Q$39","v":{"v":0,"d":"$0.00"}},{"$f":"'MMA Rev-Exp Region 1'!R$39","v":{"v":0,"d":"$0.00"}},{"$f":"'MMA Rev-Exp Region 1'!S$39","v":{"v":0,"d":"$0.00"}},{"$f":"'MMA Rev-Exp Region 1'!T$39","v":{"v":0,"d":"$0.00"}},{"$f":"'MMA Rev-Exp Region 1'!U$39","v":{"v":0,"d":"$0.00"}},{"$f":"'MMA Rev-Exp Region 1'!V$39","v":{"v":0,"d":"$0.00"}},{"$f":"'MMA Rev-Exp Region 1'!W$39","v":{"v":0,"d":"$0.00"}},{"$f":"'MMA Rev-Exp Region 1'!X$39","v":{"v":0,"d":"$0.00"}},{"$f":"'MMA Rev-Exp Region 1'!Y$39","v":{"v":0,"d":"$0.00"}},{"v":0,"d":"$0.00"}]
["MMA",null,null,{"$f":"Jurat!I$1","v":0},{"$f":"Jurat!D$33","v":"00:00:00"},"Q2","2017-06-30","Region 1","Operating Expense","Medical Benefits Expense","Mental Health Services",5.1,"Mental Health & Substance Abuse FFS",{"$f":"'MMA Rev-Exp Region 1'!O$41","v":{"v":0,"d":"$0.00"}},{"$f":"'MMA Rev-Exp Region 1'!P$41","v":{"v":0,"d":"$0.00"}},{"$f":"'MMA Rev-Exp Region 1'!Q$41","v":{"v":0,"d":"$0.00"}},{"$f":"'MMA Rev-Exp Region 1'!R$41","v":{"v":0,"d":"$0.00"}},{"$f":"'MMA Rev-Exp Region 1'!S$41","v":{"v":0,"d":"$0.00"}},{"$f":"'MMA Rev-Exp Region 1'!T$41","v":{"v":0,"d":"$0.00"}},{"$f":"'MMA Rev-Exp Region 1'!U$41","v":{"v":0,"d":"$0.00"}},{"$f":"'MMA Rev-Exp Region 1'!V$41","v":{"v":0,"d":"$0.00"}},{"$f":"'MMA Rev-Exp Region 1'!W$41","v":{"v":0,"d":"$0.00"}},{"$f":"'MMA Rev-Exp Region 1'!X$41","v":{"v":0,"d":"$0.00"}},{"$f":"'MMA Rev-Exp Region 1'!Y$41","v":{"v":0,"d":"$0.00"}},{"v":0,"d":"$0.00"}]
["MMA",null,null,{"$f":"Jurat!I$1","v":0},{"$f":"Jurat!D$33","v":"00:00:00"},"Q2","2017-06-30","Region 1","Operating Expense","Medical Benefits Expense","Mental Health Services",5.2,"Mental Health & Substance Abuse Subcapitation",{"$f":"'MMA Rev-Exp Region 1'!O$42","v":{"v":0,"d":"$0.00"}},{"$f":"'MMA Rev-Exp Region 1'!P$42","v":{"v":0,"d":"$0.00"}},{"$f":"'MMA Rev-Exp Region 1'!Q$42","v":{"v":0,"d":"$0.00"}},{"$f":"'MMA Rev-Exp Region 1'!R$42","v":{"v":0,"d":"$0.00"}},{"$f":"'MMA Rev-Exp Region 1'!S$42","v":{"v":0,"d":"$0.00"}},{"$f":"'MMA Rev-Exp Region 1'!T$42","v":{"v":0,"d":"$0.00"}},{"$f":"'MMA Rev-Exp Region 1'!U$42","v":{"v":0,"d":"$0.00"}},{"$f":"'MMA Rev-Exp Region 1'!V$42","v":{"v":0,"d":"$0.00"}},{"$f":"'MMA Rev-Exp Region 1'!W$42","v":{"v":0,"d":"$0.00"}},{"$f":"'MMA Rev-Exp Region 1'!X$42","v":{"v":0,"d":"$0.00"}},{"$f":"'MMA Rev-Exp Region 1'!Y$42","v":{"v":0,"d":"$0.00"}},{"v":0,"d":"$0.00"}]
["MMA",null,null,{"$f":"Jurat!I$1","v":0},{"$f":"Jurat!D$33","v":"00:00:00"},"Q2","2017-06-30","Region 1","Operating Expense","Medical Benefits Expense","Mental Health Services",5.3,"Ending IBNP for Mental Health & Substance Abuse",{"$f":"'MMA Rev-Exp Region 1'!O$43","v":{"v":0,"d":"$0.00"}},{"$f":"'MMA Rev-Exp Region 1'!P$43","v":{"v":0,"d":"$0.00"}},{"$f":"'MMA Rev-Exp Region 1'!Q$43","v":{"v":0,"d":"$0.00"}},{"$f":"'MMA Rev-Exp Region 1'!R$43","v":{"v":0,"d":"$0.00"}},{"$f":"'MMA Rev-Exp Region 1'!S$43","v":{"v":0,"d":"$0.00"}},{"$f":"'MMA Rev-Exp Region 1'!T$43","v":{"v":0,"d":"$0.00"}},{"$f":"'MMA Rev-Exp Region 1'!U$43","v":{"v":0,"d":"$0.00"}},{"$f":"'MMA Rev-Exp Region 1'!V$43","v":{"v":0,"d":"$0.00"}},{"$f":"'MMA Rev-Exp Region 1'!W$43","v":{"v":0,"d":"$0.00"}},{"$f":"'MMA Rev-Exp Region 1'!X$43","v":{"v":0,"d":"$0.00"}},{"$f":"'MMA Rev-Exp Region 1'!Y$43","v":{"v":0,"d":"$0.00"}},{"v":0,"d":"$0.00"}]
["MMA",null,null,{"$f":"Jurat!I$1","v":0},{"$f":"Jurat!D$33","v":"00:00:00"},"Q2","2017-06-30","Region 1","Operating Expense","Medical Benefits Expense","Mental Health Services","5.4","Mental Health Settlements",{"$f":"'MMA Rev-Exp Region 1'!O$44","v":{"v":0,"d":"$0.00"}},{"$f":"'MMA Rev-Exp Region 1'!P$44","v":{"v":0,"d":"$0.00"}},{"$f":"'MMA Rev-Exp Region 1'!Q$44","v":{"v":0,"d":"$0.00"}},{"$f":"'MMA Rev-Exp Region 1'!R$44","v":{"v":0,"d":"$0.00"}},{"$f":"'MMA Rev-Exp Region 1'!S$44","v":{"v":0,"d":"$0.00"}},{"$f":"'MMA Rev-Exp Region 1'!T$44","v":{"v":0,"d":"$0.00"}},{"$f":"'MMA Rev-Exp Region 1'!U$44","v":{"v":0,"d":"$0.00"}},{"$f":"'MMA Rev-Exp Region 1'!V$44","v":{"v":0,"d":"$0.00"}},{"$f":"'MMA Rev-Exp Region 1'!W$44","v":{"v":0,"d":"$0.00"}},{"$f":"'MMA Rev-Exp Region 1'!X$44","v":{"v":0,"d":"$0.00"}},{"$f":"'MMA Rev-Exp Region 1'!Y$44","v":{"v":0,"d":"$0.00"}},{"v":0,"d":"$0.00"}]
["MMA",null,null,{"$f":"Jurat!I$1","v":0},{"$f":"Jurat!D$33","v":"00:00:00"},"Q2","2017-06-30","Region 1","Operating Expense","Medical Benefits Expense","Dental Services",6.1,"Dental FFS",{"$f":"'MMA Rev-Exp Region 1'!O$46","v":{"v":0,"d":"$0.00"}},{"$f":"'MMA Rev-Exp Region 1'!P$46","v":{"v":0,"d":"$0.00"}},{"$f":"'MMA Rev-Exp Region 1'!Q$46","v":{"v":0,"d":"$0.00"}},{"$f":"'MMA Rev-Exp Region 1'!R$46","v":{"v":0,"d":"$0.00"}},{"$f":"'MMA Rev-Exp Region 1'!S$46","v":{"v":0,"d":"$0.00"}},{"$f":"'MMA Rev-Exp Region 1'!T$46","v":{"v":0,"d":"$0.00"}},{"$f":"'MMA Rev-Exp Region 1'!U$46","v":{"v":0,"d":"$0.00"}},{"$f":"'MMA Rev-Exp Region 1'!V$46","v":{"v":0,"d":"$0.00"}},{"$f":"'MMA Rev-Exp Region 1'!W$46","v":{"v":0,"d":"$0.00"}},{"$f":"'MMA Rev-Exp Region 1'!X$46","v":{"v":0,"d":"$0.00"}},{"$f":"'MMA Rev-Exp Region 1'!Y$46","v":{"v":0,"d":"$0.00"}},{"v":0,"d":"$0.00"}]
["MMA",null,null,{"$f":"Jurat!I$1","v":0},{"$f":"Jurat!D$33","v":"00:00:00"},"Q2","2017-06-30","Region 1","Operating Expense","Medical Benefits Expense","Dental Services",6.2,"Dental Subcapitation",{"$f":"'MMA Rev-Exp Region 1'!O$47","v":{"v":0,"d":"$0.00"}},{"$f":"'MMA Rev-Exp Region 1'!P$47","v":{"v":0,"d":"$0.00"}},{"$f":"'MMA Rev-Exp Region 1'!Q$47","v":{"v":0,"d":"$0.00"}},{"$f":"'MMA Rev-Exp Region 1'!R$47","v":{"v":0,"d":"$0.00"}},{"$f":"'MMA Rev-Exp Region 1'!S$47","v":{"v":0,"d":"$0.00"}},{"$f":"'MMA Rev-Exp Region 1'!T$47","v":{"v":0,"d":"$0.00"}},{"$f":"'MMA Rev-Exp Region 1'!U$47","v":{"v":0,"d":"$0.00"}},{"$f":"'MMA Rev-Exp Region 1'!V$47","v":{"v":0,"d":"$0.00"}},{"$f":"'MMA Rev-Exp Region 1'!W$47","v":{"v":0,"d":"$0.00"}},{"$f":"'MMA Rev-Exp Region 1'!X$47","v":{"v":0,"d":"$0.00"}},{"$f":"'MMA Rev-Exp Region 1'!Y$47","v":{"v":0,"d":"$0.00"}},{"v":0,"d":"$0.00"}]
["MMA",null,null,{"$f":"Jurat!I$1","v":0},{"$f":"Jurat!D$33","v":"00:00:00"},"Q2","2017-06-30","Region 1","Operating Expense","Medical Benefits Expense","Dental Services",6.3,"Ending IBNP for Dental Services",{"$f":"'MMA Rev-Exp Region 1'!O$48","v":{"v":0,"d":"$0.00"}},{"$f":"'MMA Rev-Exp Region 1'!P$48","v":{"v":0,"d":"$0.00"}},{"$f":"'MMA Rev-Exp Region 1'!Q$48","v":{"v":0,"d":"$0.00"}},{"$f":"'MMA Rev-Exp Region 1'!R$48","v":{"v":0,"d":"$0.00"}},{"$f":"'MMA Rev-Exp Region 1'!S$48","v":{"v":0,"d":"$0.00"}},{"$f":"'MMA Rev-Exp Region 1'!T$48","v":{"v":0,"d":"$0.00"}},{"$f":"'MMA Rev-Exp Region 1'!U$48","v":{"v":0,"d":"$0.00"}},{"$f":"'MMA Rev-Exp Region 1'!V$48","v":{"v":0,"d":"$0.00"}},{"$f":"'MMA Rev-Exp Region 1'!W$48","v":{"v":0,"d":"$0.00"}},{"$f":"'MMA Rev-Exp Region 1'!X$48","v":{"v":0,"d":"$0.00"}},{"$f":"'MMA Rev-Exp Region 1'!Y$48","v":{"v":0,"d":"$0.00"}},{"v":0,"d":"$0.00"}]
["MMA",null,null,{"$f":"Jurat!I$1","v":0},{"$f":"Jurat!D$33","v":"00:00:00"},"Q2","2017-06-30","Region 1","Operating Expense","Medical Benefits Expense","Dental Services","6.4","Dental Settlements",{"$f":"'MMA Rev-Exp Region 1'!O$49","v":{"v":0,"d":"$0.00"}},{"$f":"'MMA Rev-Exp Region 1'!P$49","v":{"v":0,"d":"$0.00"}},{"$f":"'MMA Rev-Exp Region 1'!Q$49","v":{"v":0,"d":"$0.00"}},{"$f":"'MMA Rev-Exp Region 1'!R$49","v":{"v":0,"d":"$0.00"}},{"$f":"'MMA Rev-Exp Region 1'!S$49","v":{"v":0,"d":"$0.00"}},{"$f":"'MMA Rev-Exp Region 1'!T$49","v":{"v":0,"d":"$0.00"}},{"$f":"'MMA Rev-Exp Region 1'!U$49","v":{"v":0,"d":"$0.00"}},{"$f":"'MMA Rev-Exp Region 1'!V$49","v":{"v":0,"d":"$0.00"}},{"$f":"'MMA Rev-Exp Region 1'!W$49","v":{"v":0,"d":"$0.00"}},{"$f":"'MMA Rev-Exp Region 1'!X$49","v":{"v":0,"d":"$0.00"}},{"$f":"'MMA Rev-Exp Region 1'!Y$49","v":{"v":0,"d":"$0.00"}},{"v":0,"d":"$0.00"}]
["MMA",null,null,{"$f":"Jurat!I$1","v":0},{"$f":"Jurat!D$33","v":"00:00:00"},"Q2","2017-06-30","Region 1","Operating Expense","Medical Benefits Expense","Transportation Services",7.1,"Transportation FFS",{"$f":"'MMA Rev-Exp Region 1'!O$51","v":{"v":0,"d":"$0.00"}},{"$f":"'MMA Rev-Exp Region 1'!P$51","v":{"v":0,"d":"$0.00"}},{"$f":"'MMA Rev-Exp Region 1'!Q$51","v":{"v":0,"d":"$0.00"}},{"$f":"'MMA Rev-Exp Region 1'!R$51","v":{"v":0,"d":"$0.00"}},{"$f":"'MMA Rev-Exp Region 1'!S$51","v":{"v":0,"d":"$0.00"}},{"$f":"'MMA Rev-Exp Region 1'!T$51","v":{"v":0,"d":"$0.00"}},{"$f":"'MMA Rev-Exp Region 1'!U$51","v":{"v":0,"d":"$0.00"}},{"$f":"'MMA Rev-Exp Region 1'!V$51","v":{"v":0,"d":"$0.00"}},{"$f":"'MMA Rev-Exp Region 1'!W$51","v":{"v":0,"d":"$0.00"}},{"$f":"'MMA Rev-Exp Region 1'!X$51","v":{"v":0,"d":"$0.00"}},{"$f":"'MMA Rev-Exp Region 1'!Y$51","v":{"v":0,"d":"$0.00"}},{"v":0,"d":"$0.00"}]
["MMA",null,null,{"$f":"Jurat!I$1","v":0},{"$f":"Jurat!D$33","v":"00:00:00"},"Q2","2017-06-30","Region 1","Operating Expense","Medical Benefits Expense","Transportation Services",7.2,"Transportation Subcapitation",{"$f":"'MMA Rev-Exp Region 1'!O$52","v":{"v":0,"d":"$0.00"}},{"$f":"'MMA Rev-Exp Region 1'!P$52","v":{"v":0,"d":"$0.00"}},{"$f":"'MMA Rev-Exp Region 1'!Q$52","v":{"v":0,"d":"$0.00"}},{"$f":"'MMA Rev-Exp Region 1'!R$52","v":{"v":0,"d":"$0.00"}},{"$f":"'MMA Rev-Exp Region 1'!S$52","v":{"v":0,"d":"$0.00"}},{"$f":"'MMA Rev-Exp Region 1'!T$52","v":{"v":0,"d":"$0.00"}},{"$f":"'MMA Rev-Exp Region 1'!U$52","v":{"v":0,"d":"$0.00"}},{"$f":"'MMA Rev-Exp Region 1'!V$52","v":{"v":0,"d":"$0.00"}},{"$f":"'MMA Rev-Exp Region 1'!W$52","v":{"v":0,"d":"$0.00"}},{"$f":"'MMA Rev-Exp Region 1'!X$52","v":{"v":0,"d":"$0.00"}},{"$f":"'MMA Rev-Exp Region 1'!Y$52","v":{"v":0,"d":"$0.00"}},{"v":0,"d":"$0.00"}]
["MMA",null,null,{"$f":"Jurat!I$1","v":0},{"$f":"Jurat!D$33","v":"00:00:00"},"Q2","2017-06-30","Region 1","Operating Expense","Medical Benefits Expense","Transportation Services",7.3,"Ending IBNP for Transportation",{"$f":"'MMA Rev-Exp Region 1'!O$53","v":{"v":0,"d":"$0.00"}},{"$f":"'MMA Rev-Exp Region 1'!P$53","v":{"v":0,"d":"$0.00"}},{"$f":"'MMA Rev-Exp Region 1'!Q$53","v":{"v":0,"d":"$0.00"}},{"$f":"'MMA Rev-Exp Region 1'!R$53","v":{"v":0,"d":"$0.00"}},{"$f":"'MMA Rev-Exp Region 1'!S$53","v":{"v":0,"d":"$0.00"}},{"$f":"'MMA Rev-Exp Region 1'!T$53","v":{"v":0,"d":"$0.00"}},{"$f":"'MMA Rev-Exp Region 1'!U$53","v":{"v":0,"d":"$0.00"}},{"$f":"'MMA Rev-Exp Region 1'!V$53","v":{"v":0,"d":"$0.00"}},{"$f":"'MMA Rev-Exp Region 1'!W$53","v":{"v":0,"d":"$0.00"}},{"$f":"'MMA Rev-Exp Region 1'!X$53","v":{"v":0,"d":"$0.00"}},{"$f":"'MMA Rev-Exp Region 1'!Y$53","v":{"v":0,"d":"$0.00"}},{"v":0,"d":"$0.00"}]
["MMA",null,null,{"$f":"Jurat!I$1","v":0},{"$f":"Jurat!D$33","v":"00:00:00"},"Q2","2017-06-30","Region 1","Operating Expense","Medical Benefits Expense","Transportation Services","7.4","Transportation Settlements",{"$f":"'MMA Rev-Exp Region 1'!O$54","v":{"v":0,"d":"$0.00"}},{"$f":"'MMA Rev-Exp Region 1'!P$54","v":{"v":0,"d":"$0.00"}},{"$f":"'MMA Rev-Exp Region 1'!Q$54","v":{"v":0,"d":"$0.00"}},{"$f":"'MMA Rev-Exp Region 1'!R$54","v":{"v":0,"d":"$0.00"}},{"$f":"'MMA Rev-Exp Region 1'!S$54","v":{"v":0,"d":"$0.00"}},{"$f":"'MMA Rev-Exp Region 1'!T$54","v":{"v":0,"d":"$0.00"}},{"$f":"'MMA Rev-Exp Region 1'!U$54","v":{"v":0,"d":"$0.00"}},{"$f":"'MMA Rev-Exp Region 1'!V$54","v":{"v":0,"d":"$0.00"}},{"$f":"'MMA Rev-Exp Region 1'!W$54","v":{"v":0,"d":"$0.00"}},{"$f":"'MMA Rev-Exp Region 1'!X$54","v":{"v":0,"d":"$0.00"}},{"$f":"'MMA Rev-Exp Region 1'!Y$54","v":{"v":0,"d":"$0.00"}},{"v":0,"d":"$0.00"}]
["MMA",null,null,{"$f":"Jurat!I$1","v":0},{"$f":"Jurat!D$33","v":"00:00:00"},"Q2","2017-06-30","Region 1","Operating Expense","Medical Benefits Expense","Pharmacy Services",8.1,"Prescription Drugs FFS",{"$f":"'MMA Rev-Exp Region 1'!O$56","v":{"v":0,"d":"$0.00"}},{"$f":"'MMA Rev-Exp Region 1'!P$56","v":{"v":0,"d":"$0.00"}},{"$f":"'MMA Rev-Exp Region 1'!Q$56","v":{"v":0,"d":"$0.00"}},{"$f":"'MMA Rev-Exp Region 1'!R$56","v":{"v":0,"d":"$0.00"}},{"$f":"'MMA Rev-Exp Region 1'!S$56","v":{"v":0,"d":"$0.00"}},{"$f":"'MMA Rev-Exp Region 1'!T$56","v":{"v":0,"d":"$0.00"}},{"$f":"'MMA Rev-Exp Region 1'!U$56","v":{"v":0,"d":"$0.00"}},{"$f":"'MMA Rev-Exp Region 1'!V$56","v":{"v":0,"d":"$0.00"}},{"$f":"'MMA Rev-Exp Region 1'!W$56","v":{"v":0,"d":"$0.00"}},{"$f":"'MMA Rev-Exp Region 1'!X$56","v":{"v":0,"d":"$0.00"}},{"$f":"'MMA Rev-Exp Region 1'!Y$56","v":{"v":0,"d":"$0.00"}},{"v":0,"d":"$0.00"}]
["MMA",null,null,{"$f":"Jurat!I$1","v":0},{"$f":"Jurat!D$33","v":"00:00:00"},"Q2","2017-06-30","Region 1","Operating Expense","Medical Benefits Expense","Pharmacy Services","8.2","Hepatitis C Prescription Drug FFS",{"$f":"'MMA Rev-Exp Region 1'!O$57","v":{"v":0,"d":"$0.00"}},{"$f":"'MMA Rev-Exp Region 1'!P$57","v":{"v":0,"d":"$0.00"}},{"$f":"'MMA Rev-Exp Region 1'!Q$57","v":{"v":0,"d":"$0.00"}},{"$f":"'MMA Rev-Exp Region 1'!R$57","v":{"v":0,"d":"$0.00"}},{"$f":"'MMA Rev-Exp Region 1'!S$57","v":{"v":0,"d":"$0.00"}},{"$f":"'MMA Rev-Exp Region 1'!T$57","v":{"v":0,"d":"$0.00"}},{"$f":"'MMA Rev-Exp Region 1'!U$57","v":{"v":0,"d":"$0.00"}},{"$f":"'MMA Rev-Exp Region 1'!V$57","v":{"v":0,"d":"$0.00"}},{"$f":"'MMA Rev-Exp Region 1'!W$57","v":{"v":0,"d":"$0.00"}},{"$f":"'MMA Rev-Exp Region 1'!X$57","v":{"v":0,"d":"$0.00"}},{"$f":"'MMA Rev-Exp Region 1'!Y$57","v":{"v":0,"d":"$0.00"}},{"v":0,"d":"$0.00"}]
["MMA",null,null,{"$f":"Jurat!I$1","v":0},{"$f":"Jurat!D$33","v":"00:00:00"},"Q2","2017-06-30","Region 1","Operating Expense","Medical Benefits Expense","Pharmacy Services","8.3","Ending IBNP for Prescription Drugs",{"$f":"'MMA Rev-Exp Region 1'!O$58","v":{"v":0,"d":"$0.00"}},{"$f":"'MMA Rev-Exp Region 1'!P$58","v":{"v":0,"d":"$0.00"}},{"$f":"'MMA Rev-Exp Region 1'!Q$58","v":{"v":0,"d":"$0.00"}},{"$f":"'MMA Rev-Exp Region 1'!R$58","v":{"v":0,"d":"$0.00"}},{"$f":"'MMA Rev-Exp Region 1'!S$58","v":{"v":0,"d":"$0.00"}},{"$f":"'MMA Rev-Exp Region 1'!T$58","v":{"v":0,"d":"$0.00"}},{"$f":"'MMA Rev-Exp Region 1'!U$58","v":{"v":0,"d":"$0.00"}},{"$f":"'MMA Rev-Exp Region 1'!V$58","v":{"v":0,"d":"$0.00"}},{"$f":"'MMA Rev-Exp Region 1'!W$58","v":{"v":0,"d":"$0.00"}},{"$f":"'MMA Rev-Exp Region 1'!X$58","v":{"v":0,"d":"$0.00"}},{"$f":"'MMA Rev-Exp Region 1'!Y$58","v":{"v":0,"d":"$0.00"}},{"v":0,"d":"$0.00"}]
["MMA",null,null,{"$f":"Jurat!I$1","v":0},{"$f":"Jurat!D$33","v":"00:00:00"},"Q2","2017-06-30","Region 1","Operating Expense","Medical Benefits Expense","Pharmacy Services","8.4","Prescription Drug Rebates ",{"$f":"'MMA Rev-Exp Region 1'!O$59","v":{"v":0,"d":"$0.00"}},{"$f":"'MMA Rev-Exp Region 1'!P$59","v":{"v":0,"d":"$0.00"}},{"$f":"'MMA Rev-Exp Region 1'!Q$59","v":{"v":0,"d":"$0.00"}},{"$f":"'MMA Rev-Exp Region 1'!R$59","v":{"v":0,"d":"$0.00"}},{"$f":"'MMA Rev-Exp Region 1'!S$59","v":{"v":0,"d":"$0.00"}},{"$f":"'MMA Rev-Exp Region 1'!T$59","v":{"v":0,"d":"$0.00"}},{"$f":"'MMA Rev-Exp Region 1'!U$59","v":{"v":0,"d":"$0.00"}},{"$f":"'MMA Rev-Exp Region 1'!V$59","v":{"v":0,"d":"$0.00"}},{"$f":"'MMA Rev-Exp Region 1'!W$59","v":{"v":0,"d":"$0.00"}},{"$f":"'MMA Rev-Exp Region 1'!X$59","v":{"v":0,"d":"$0.00"}},{"$f":"'MMA Rev-Exp Region 1'!Y$59","v":{"v":0,"d":"$0.00"}},{"v":0,"d":"$0.00"}]
["MMA",null,null,{"$f":"Jurat!I$1","v":0},{"$f":"Jurat!D$33","v":"00:00:00"},"Q2","2017-06-30","Region 1","Operating Expense","Medical Benefits Expense","Pharmacy Services","8.5","Ending accrual for Rebates receivable",{"$f":"'MMA Rev-Exp Region 1'!O$60","v":{"v":0,"d":"$0.00"}},{"$f":"'MMA Rev-Exp Region 1'!P$60","v":{"v":0,"d":"$0.00"}},{"$f":"'MMA Rev-Exp Region 1'!Q$60","v":{"v":0,"d":"$0.00"}},{"$f":"'MMA Rev-Exp Region 1'!R$60","v":{"v":0,"d":"$0.00"}},{"$f":"'MMA Rev-Exp Region 1'!S$60","v":{"v":0,"d":"$0.00"}},{"$f":"'MMA Rev-Exp Region 1'!T$60","v":{"v":0,"d":"$0.00"}},{"$f":"'MMA Rev-Exp Region 1'!U$60","v":{"v":0,"d":"$0.00"}},{"$f":"'MMA Rev-Exp Region 1'!V$60","v":{"v":0,"d":"$0.00"}},{"$f":"'MMA Rev-Exp Region 1'!W$60","v":{"v":0,"d":"$0.00"}},{"$f":"'MMA Rev-Exp Region 1'!X$60","v":{"v":0,"d":"$0.00"}},{"$f":"'MMA Rev-Exp Region 1'!Y$60","v":{"v":0,"d":"$0.00"}},{"v":0,"d":"$0.00"}]
["MMA",null,null,{"$f":"Jurat!I$1","v":0},{"$f":"Jurat!D$33","v":"00:00:00"},"Q2","2017-06-30","Region 1","Operating Expense","Medical Benefits Expense","Pharmacy Services","8.6","Prescription Drugs Subcapitation",{"$f":"'MMA Rev-Exp Region 1'!O$61","v":{"v":0,"d":"$0.00"}},{"$f":"'MMA Rev-Exp Region 1'!P$61","v":{"v":0,"d":"$0.00"}},{"$f":"'MMA Rev-Exp Region 1'!Q$61","v":{"v":0,"d":"$0.00"}},{"$f":"'MMA Rev-Exp Region 1'!R$61","v":{"v":0,"d":"$0.00"}},{"$f":"'MMA Rev-Exp Region 1'!S$61","v":{"v":0,"d":"$0.00"}},{"$f":"'MMA Rev-Exp Region 1'!T$61","v":{"v":0,"d":"$0.00"}},{"$f":"'MMA Rev-Exp Region 1'!U$61","v":{"v":0,"d":"$0.00"}},{"$f":"'MMA Rev-Exp Region 1'!V$61","v":{"v":0,"d":"$0.00"}},{"$f":"'MMA Rev-Exp Region 1'!W$61","v":{"v":0,"d":"$0.00"}},{"$f":"'MMA Rev-Exp Region 1'!X$61","v":{"v":0,"d":"$0.00"}},{"$f":"'MMA Rev-Exp Region 1'!Y$61","v":{"v":0,"d":"$0.00"}},{"v":0,"d":"$0.00"}]
["MMA",null,null,{"$f":"Jurat!I$1","v":0},{"$f":"Jurat!D$33","v":"00:00:00"},"Q2","2017-06-30","Region 1","Operating Expense","Medical Benefits Expense","Pharmacy Services","8.7","Prescription Drug Settlements",{"$f":"'MMA Rev-Exp Region 1'!O$62","v":{"v":0,"d":"$0.00"}},{"$f":"'MMA Rev-Exp Region 1'!P$62","v":{"v":0,"d":"$0.00"}},{"$f":"'MMA Rev-Exp Region 1'!Q$62","v":{"v":0,"d":"$0.00"}},{"$f":"'MMA Rev-Exp Region 1'!R$62","v":{"v":0,"d":"$0.00"}},{"$f":"'MMA Rev-Exp Region 1'!S$62","v":{"v":0,"d":"$0.00"}},{"$f":"'MMA Rev-Exp Region 1'!T$62","v":{"v":0,"d":"$0.00"}},{"$f":"'MMA Rev-Exp Region 1'!U$62","v":{"v":0,"d":"$0.00"}},{"$f":"'MMA Rev-Exp Region 1'!V$62","v":{"v":0,"d":"$0.00"}},{"$f":"'MMA Rev-Exp Region 1'!W$62","v":{"v":0,"d":"$0.00"}},{"$f":"'MMA Rev-Exp Region 1'!X$62","v":{"v":0,"d":"$0.00"}},{"$f":"'MMA Rev-Exp Region 1'!Y$62","v":{"v":0,"d":"$0.00"}},{"v":0,"d":"$0.00"}]
["MMA",null,null,{"$f":"Jurat!I$1","v":0},{"$f":"Jurat!D$33","v":"00:00:00"},"Q2","2017-06-30","Region 1","Operating Expense","Medical Benefits Expense","Other MMA Services",9.1,"Home Health, Private Duty Nursing, Personal Care FFS",{"$f":"'MMA Rev-Exp Region 1'!O$64","v":{"v":0,"d":"$0.00"}},{"$f":"'MMA Rev-Exp Region 1'!P$64","v":{"v":0,"d":"$0.00"}},{"$f":"'MMA Rev-Exp Region 1'!Q$64","v":{"v":0,"d":"$0.00"}},{"$f":"'MMA Rev-Exp Region 1'!R$64","v":{"v":0,"d":"$0.00"}},{"$f":"'MMA Rev-Exp Region 1'!S$64","v":{"v":0,"d":"$0.00"}},{"$f":"'MMA Rev-Exp Region 1'!T$64","v":{"v":0,"d":"$0.00"}},{"$f":"'MMA Rev-Exp Region 1'!U$64","v":{"v":0,"d":"$0.00"}},{"$f":"'MMA Rev-Exp Region 1'!V$64","v":{"v":0,"d":"$0.00"}},{"$f":"'MMA Rev-Exp Region 1'!W$64","v":{"v":0,"d":"$0.00"}},{"$f":"'MMA Rev-Exp Region 1'!X$64","v":{"v":0,"d":"$0.00"}},{"$f":"'MMA Rev-Exp Region 1'!Y$64","v":{"v":0,"d":"$0.00"}},{"v":0,"d":"$0.00"}]
["MMA",null,null,{"$f":"Jurat!I$1","v":0},{"$f":"Jurat!D$33","v":"00:00:00"},"Q2","2017-06-30","Region 1","Operating Expense","Medical Benefits Expense","Other MMA Services","9.2","Hospice FFS",{"$f":"'MMA Rev-Exp Region 1'!O$65","v":{"v":0,"d":"$0.00"}},{"$f":"'MMA Rev-Exp Region 1'!P$65","v":{"v":0,"d":"$0.00"}},{"$f":"'MMA Rev-Exp Region 1'!Q$65","v":{"v":0,"d":"$0.00"}},{"$f":"'MMA Rev-Exp Region 1'!R$65","v":{"v":0,"d":"$0.00"}},{"$f":"'MMA Rev-Exp Region 1'!S$65","v":{"v":0,"d":"$0.00"}},{"$f":"'MMA Rev-Exp Region 1'!T$65","v":{"v":0,"d":"$0.00"}},{"$f":"'MMA Rev-Exp Region 1'!U$65","v":{"v":0,"d":"$0.00"}},{"$f":"'MMA Rev-Exp Region 1'!V$65","v":{"v":0,"d":"$0.00"}},{"$f":"'MMA Rev-Exp Region 1'!W$65","v":{"v":0,"d":"$0.00"}},{"$f":"'MMA Rev-Exp Region 1'!X$65","v":{"v":0,"d":"$0.00"}},{"$f":"'MMA Rev-Exp Region 1'!Y$65","v":{"v":0,"d":"$0.00"}},{"v":0,"d":"$0.00"}]
["MMA",null,null,{"$f":"Jurat!I$1","v":0},{"$f":"Jurat!D$33","v":"00:00:00"},"Q2","2017-06-30","Region 1","Operating Expense","Medical Benefits Expense","Other MMA Services","9.3","DME FFS",{"$f":"'MMA Rev-Exp Region 1'!O$66","v":{"v":0,"d":"$0.00"}},{"$f":"'MMA Rev-Exp Region 1'!P$66","v":{"v":0,"d":"$0.00"}},{"$f":"'MMA Rev-Exp Region 1'!Q$66","v":{"v":0,"d":"$0.00"}},{"$f":"'MMA Rev-Exp Region 1'!R$66","v":{"v":0,"d":"$0.00"}},{"$f":"'MMA Rev-Exp Region 1'!S$66","v":{"v":0,"d":"$0.00"}},{"$f":"'MMA Rev-Exp Region 1'!T$66","v":{"v":0,"d":"$0.00"}},{"$f":"'MMA Rev-Exp Region 1'!U$66","v":{"v":0,"d":"$0.00"}},{"$f":"'MMA Rev-Exp Region 1'!V$66","v":{"v":0,"d":"$0.00"}},{"$f":"'MMA Rev-Exp Region 1'!W$66","v":{"v":0,"d":"$0.00"}},{"$f":"'MMA Rev-Exp Region 1'!X$66","v":{"v":0,"d":"$0.00"}},{"$f":"'MMA Rev-Exp Region 1'!Y$66","v":{"v":0,"d":"$0.00"}},{"v":0,"d":"$0.00"}]
["MMA",null,null,{"$f":"Jurat!I$1","v":0},{"$f":"Jurat!D$33","v":"00:00:00"},"Q2","2017-06-30","Region 1","Operating Expense","Medical Benefits Expense","Other MMA Services","9.4","Other State Plan Services FFS",{"$f":"'MMA Rev-Exp Region 1'!O$67","v":{"v":0,"d":"$0.00"}},{"$f":"'MMA Rev-Exp Region 1'!P$67","v":{"v":0,"d":"$0.00"}},{"$f":"'MMA Rev-Exp Region 1'!Q$67","v":{"v":0,"d":"$0.00"}},{"$f":"'MMA Rev-Exp Region 1'!R$67","v":{"v":0,"d":"$0.00"}},{"$f":"'MMA Rev-Exp Region 1'!S$67","v":{"v":0,"d":"$0.00"}},{"$f":"'MMA Rev-Exp Region 1'!T$67","v":{"v":0,"d":"$0.00"}},{"$f":"'MMA Rev-Exp Region 1'!U$67","v":{"v":0,"d":"$0.00"}},{"$f":"'MMA Rev-Exp Region 1'!V$67","v":{"v":0,"d":"$0.00"}},{"$f":"'MMA Rev-Exp Region 1'!W$67","v":{"v":0,"d":"$0.00"}},{"$f":"'MMA Rev-Exp Region 1'!X$67","v":{"v":0,"d":"$0.00"}},{"$f":"'MMA Rev-Exp Region 1'!Y$67","v":{"v":0,"d":"$0.00"}},{"v":0,"d":"$0.00"}]
["MMA",null,null,{"$f":"Jurat!I$1","v":0},{"$f":"Jurat!D$33","v":"00:00:00"},"Q2","2017-06-30","Region 1","Operating Expense","Medical Benefits Expense","Other MMA Services","9.5","Other Services Subcapitation",{"$f":"'MMA Rev-Exp Region 1'!O$68","v":{"v":0,"d":"$0.00"}},{"$f":"'MMA Rev-Exp Region 1'!P$68","v":{"v":0,"d":"$0.00"}},{"$f":"'MMA Rev-Exp Region 1'!Q$68","v":{"v":0,"d":"$0.00"}},{"$f":"'MMA Rev-Exp Region 1'!R$68","v":{"v":0,"d":"$0.00"}},{"$f":"'MMA Rev-Exp Region 1'!S$68","v":{"v":0,"d":"$0.00"}},{"$f":"'MMA Rev-Exp Region 1'!T$68","v":{"v":0,"d":"$0.00"}},{"$f":"'MMA Rev-Exp Region 1'!U$68","v":{"v":0,"d":"$0.00"}},{"$f":"'MMA Rev-Exp Region 1'!V$68","v":{"v":0,"d":"$0.00"}},{"$f":"'MMA Rev-Exp Region 1'!W$68","v":{"v":0,"d":"$0.00"}},{"$f":"'MMA Rev-Exp Region 1'!X$68","v":{"v":0,"d":"$0.00"}},{"$f":"'MMA Rev-Exp Region 1'!Y$68","v":{"v":0,"d":"$0.00"}},{"v":0,"d":"$0.00"}]
["MMA",null,null,{"$f":"Jurat!I$1","v":0},{"$f":"Jurat!D$33","v":"00:00:00"},"Q2","2017-06-30","Region 1","Operating Expense","Medical Benefits Expense","Other MMA Services","9.6","Ending IBNP for Other Services",{"$f":"'MMA Rev-Exp Region 1'!O$69","v":{"v":0,"d":"$0.00"}},{"$f":"'MMA Rev-Exp Region 1'!P$69","v":{"v":0,"d":"$0.00"}},{"$f":"'MMA Rev-Exp Region 1'!Q$69","v":{"v":0,"d":"$0.00"}},{"$f":"'MMA Rev-Exp Region 1'!R$69","v":{"v":0,"d":"$0.00"}},{"$f":"'MMA Rev-Exp Region 1'!S$69","v":{"v":0,"d":"$0.00"}},{"$f":"'MMA Rev-Exp Region 1'!T$69","v":{"v":0,"d":"$0.00"}},{"$f":"'MMA Rev-Exp Region 1'!U$69","v":{"v":0,"d":"$0.00"}},{"$f":"'MMA Rev-Exp Region 1'!V$69","v":{"v":0,"d":"$0.00"}},{"$f":"'MMA Rev-Exp Region 1'!W$69","v":{"v":0,"d":"$0.00"}},{"$f":"'MMA Rev-Exp Region 1'!X$69","v":{"v":0,"d":"$0.00"}},{"$f":"'MMA Rev-Exp Region 1'!Y$69","v":{"v":0,"d":"$0.00"}},{"v":0,"d":"$0.00"}]
["MMA",null,null,{"$f":"Jurat!I$1","v":0},{"$f":"Jurat!D$33","v":"00:00:00"},"Q2","2017-06-30","Region 1","Operating Expense","Medical Benefits Expense","Other MMA Services","9.7","Other Services Settlements",{"$f":"'MMA Rev-Exp Region 1'!O$70","v":{"v":0,"d":"$0.00"}},{"$f":"'MMA Rev-Exp Region 1'!P$70","v":{"v":0,"d":"$0.00"}},{"$f":"'MMA Rev-Exp Region 1'!Q$70","v":{"v":0,"d":"$0.00"}},{"$f":"'MMA Rev-Exp Region 1'!R$70","v":{"v":0,"d":"$0.00"}},{"$f":"'MMA Rev-Exp Region 1'!S$70","v":{"v":0,"d":"$0.00"}},{"$f":"'MMA Rev-Exp Region 1'!T$70","v":{"v":0,"d":"$0.00"}},{"$f":"'MMA Rev-Exp Region 1'!U$70","v":{"v":0,"d":"$0.00"}},{"$f":"'MMA Rev-Exp Region 1'!V$70","v":{"v":0,"d":"$0.00"}},{"$f":"'MMA Rev-Exp Region 1'!W$70","v":{"v":0,"d":"$0.00"}},{"$f":"'MMA Rev-Exp Region 1'!X$70","v":{"v":0,"d":"$0.00"}},{"$f":"'MMA Rev-Exp Region 1'!Y$70","v":{"v":0,"d":"$0.00"}},{"v":0,"d":"$0.00"}]
["MMA",null,null,{"$f":"Jurat!I$1","v":0},{"$f":"Jurat!D$33","v":"00:00:00"},"Q2","2017-06-30","Region 1","Operating Expense","Medical Benefits Expense","Expanded Benefits","10.1","Expanded Benefits FFS",{"$f":"'MMA Rev-Exp Region 1'!O$72","v":{"v":0,"d":"$0.00"}},{"$f":"'MMA Rev-Exp Region 1'!P$72","v":{"v":0,"d":"$0.00"}},{"$f":"'MMA Rev-Exp Region 1'!Q$72","v":{"v":0,"d":"$0.00"}},{"$f":"'MMA Rev-Exp Region 1'!R$72","v":{"v":0,"d":"$0.00"}},{"$f":"'MMA Rev-Exp Region 1'!S$72","v":{"v":0,"d":"$0.00"}},{"$f":"'MMA Rev-Exp Region 1'!T$72","v":{"v":0,"d":"$0.00"}},{"$f":"'MMA Rev-Exp Region 1'!U$72","v":{"v":0,"d":"$0.00"}},{"$f":"'MMA Rev-Exp Region 1'!V$72","v":{"v":0,"d":"$0.00"}},{"$f":"'MMA Rev-Exp Region 1'!W$72","v":{"v":0,"d":"$0.00"}},{"$f":"'MMA Rev-Exp Region 1'!X$72","v":{"v":0,"d":"$0.00"}},{"$f":"'MMA Rev-Exp Region 1'!Y$72","v":{"v":0,"d":"$0.00"}},{"v":0,"d":"$0.00"}]
["MMA",null,null,{"$f":"Jurat!I$1","v":0},{"$f":"Jurat!D$33","v":"00:00:00"},"Q2","2017-06-30","Region 1","Operating Expense","Medical Benefits Expense","Expanded Benefits","10.2","Expanded benefits Subcapitation",{"$f":"'MMA Rev-Exp Region 1'!O$73","v":{"v":0,"d":"$0.00"}},{"$f":"'MMA Rev-Exp Region 1'!P$73","v":{"v":0,"d":"$0.00"}},{"$f":"'MMA Rev-Exp Region 1'!Q$73","v":{"v":0,"d":"$0.00"}},{"$f":"'MMA Rev-Exp Region 1'!R$73","v":{"v":0,"d":"$0.00"}},{"$f":"'MMA Rev-Exp Region 1'!S$73","v":{"v":0,"d":"$0.00"}},{"$f":"'MMA Rev-Exp Region 1'!T$73","v":{"v":0,"d":"$0.00"}},{"$f":"'MMA Rev-Exp Region 1'!U$73","v":{"v":0,"d":"$0.00"}},{"$f":"'MMA Rev-Exp Region 1'!V$73","v":{"v":0,"d":"$0.00"}},{"$f":"'MMA Rev-Exp Region 1'!W$73","v":{"v":0,"d":"$0.00"}},{"$f":"'MMA Rev-Exp Region 1'!X$73","v":{"v":0,"d":"$0.00"}},{"$f":"'MMA Rev-Exp Region 1'!Y$73","v":{"v":0,"d":"$0.00"}},{"v":0,"d":"$0.00"}]
["MMA",null,null,{"$f":"Jurat!I$1","v":0},{"$f":"Jurat!D$33","v":"00:00:00"},"Q2","2017-06-30","Region 1","Operating Expense","Medical Benefits Expense","Expanded Benefits","10.3","Ending IBNP for Expanded Benefits",{"$f":"'MMA Rev-Exp Region 1'!O$74","v":{"v":0,"d":"$0.00"}},{"$f":"'MMA Rev-Exp Region 1'!P$74","v":{"v":0,"d":"$0.00"}},{"$f":"'MMA Rev-Exp Region 1'!Q$74","v":{"v":0,"d":"$0.00"}},{"$f":"'MMA Rev-Exp Region 1'!R$74","v":{"v":0,"d":"$0.00"}},{"$f":"'MMA Rev-Exp Region 1'!S$74","v":{"v":0,"d":"$0.00"}},{"$f":"'MMA Rev-Exp Region 1'!T$74","v":{"v":0,"d":"$0.00"}},{"$f":"'MMA Rev-Exp Region 1'!U$74","v":{"v":0,"d":"$0.00"}},{"$f":"'MMA Rev-Exp Region 1'!V$74","v":{"v":0,"d":"$0.00"}},{"$f":"'MMA Rev-Exp Region 1'!W$74","v":{"v":0,"d":"$0.00"}},{"$f":"'MMA Rev-Exp Region 1'!X$74","v":{"v":0,"d":"$0.00"}},{"$f":"'MMA Rev-Exp Region 1'!Y$74","v":{"v":0,"d":"$0.00"}},{"v":0,"d":"$0.00"}]
["MMA",null,null,{"$f":"Jurat!I$1","v":0},{"$f":"Jurat!D$33","v":"00:00:00"},"Q2","2017-06-30","Region 1","Operating Expense","Medical Benefits Expense","Expanded Benefits","10.4","Expanded Benefits Settlements",{"$f":"'MMA Rev-Exp Region 1'!O$75","v":{"v":0,"d":"$0.00"}},{"$f":"'MMA Rev-Exp Region 1'!P$75","v":{"v":0,"d":"$0.00"}},{"$f":"'MMA Rev-Exp Region 1'!Q$75","v":{"v":0,"d":"$0.00"}},{"$f":"'MMA Rev-Exp Region 1'!R$75","v":{"v":0,"d":"$0.00"}},{"$f":"'MMA Rev-Exp Region 1'!S$75","v":{"v":0,"d":"$0.00"}},{"$f":"'MMA Rev-Exp Region 1'!T$75","v":{"v":0,"d":"$0.00"}},{"$f":"'MMA Rev-Exp Region 1'!U$75","v":{"v":0,"d":"$0.00"}},{"$f":"'MMA Rev-Exp Region 1'!V$75","v":{"v":0,"d":"$0.00"}},{"$f":"'MMA Rev-Exp Region 1'!W$75","v":{"v":0,"d":"$0.00"}},{"$f":"'MMA Rev-Exp Region 1'!X$75","v":{"v":0,"d":"$0.00"}},{"$f":"'MMA Rev-Exp Region 1'!Y$75","v":{"v":0,"d":"$0.00"}},{"v":0,"d":"$0.00"}]
["MMA",null,null,{"$f":"Jurat!I$1","v":0},{"$f":"Jurat!D$33","v":"00:00:00"},"Q2","2017-06-30","Region 1","Operating Expense","Medical Benefits Expense","Other Medical","11.5","TPL & Fraud/Abuse Recoveries",{"$f":"'MMA Rev-Exp Region 1'!O$81","v":{"v":0,"d":"$0.00"}},{"$f":"'MMA Rev-Exp Region 1'!P$81","v":{"v":0,"d":"$0.00"}},{"$f":"'MMA Rev-Exp Region 1'!Q$81","v":{"v":0,"d":"$0.00"}},{"$f":"'MMA Rev-Exp Region 1'!R$81","v":{"v":0,"d":"$0.00"}},{"$f":"'MMA Rev-Exp Region 1'!S$81","v":{"v":0,"d":"$0.00"}},{"$f":"'MMA Rev-Exp Region 1'!T$81","v":{"v":0,"d":"$0.00"}},{"$f":"'MMA Rev-Exp Region 1'!U$81","v":{"v":0,"d":"$0.00"}},{"$f":"'MMA Rev-Exp Region 1'!V$81","v":{"v":0,"d":"$0.00"}},{"$f":"'MMA Rev-Exp Region 1'!W$81","v":{"v":0,"d":"$0.00"}},{"$f":"'MMA Rev-Exp Region 1'!X$81","v":{"v":0,"d":"$0.00"}},{"$f":"'MMA Rev-Exp Region 1'!Y$81","v":{"v":0,"d":"$0.00"}},{"v":0,"d":"$0.00"}]
["MMA",null,null,{"$f":"Jurat!I$1","v":0},{"$f":"Jurat!D$33","v":"00:00:00"},"Q2","2017-06-30","Region 1","Operating Expense","Medical Benefits Expense","Other Medical","11.6.1","Premium Deficiency Reserve",{"$f":"'MMA Rev-Exp Region 1'!O$82","v":{"v":0,"d":"$0.00"}},{"$f":"'MMA Rev-Exp Region 1'!P$82","v":{"v":0,"d":"$0.00"}},{"$f":"'MMA Rev-Exp Region 1'!Q$82","v":{"v":0,"d":"$0.00"}},{"$f":"'MMA Rev-Exp Region 1'!R$82","v":{"v":0,"d":"$0.00"}},{"$f":"'MMA Rev-Exp Region 1'!S$82","v":{"v":0,"d":"$0.00"}},{"$f":"'MMA Rev-Exp Region 1'!T$82","v":{"v":0,"d":"$0.00"}},{"$f":"'MMA Rev-Exp Region 1'!U$82","v":{"v":0,"d":"$0.00"}},{"$f":"'MMA Rev-Exp Region 1'!V$82","v":{"v":0,"d":"$0.00"}},{"$f":"'MMA Rev-Exp Region 1'!W$82","v":{"v":0,"d":"$0.00"}},{"$f":"'MMA Rev-Exp Region 1'!X$82","v":{"v":0,"d":"$0.00"}},{"$f":"'MMA Rev-Exp Region 1'!Y$82","v":{"v":0,"d":"$0.00"}},{"v":0,"d":"$0.00"}]
["MMA",null,null,{"$f":"Jurat!I$1","v":0},{"$f":"Jurat!D$33","v":"00:00:00"},"Q2","2017-06-30","Region 1","Operating Expense","Medical Benefits Expense","Other Medical","11.8","Reinsurance Premiums",{"$f":"'MMA Rev-Exp Region 1'!O$84","v":{"v":0,"d":"$0.00"}},{"$f":"'MMA Rev-Exp Region 1'!P$84","v":{"v":0,"d":"$0.00"}},{"$f":"'MMA Rev-Exp Region 1'!Q$84","v":{"v":0,"d":"$0.00"}},{"$f":"'MMA Rev-Exp Region 1'!R$84","v":{"v":0,"d":"$0.00"}},{"$f":"'MMA Rev-Exp Region 1'!S$84","v":{"v":0,"d":"$0.00"}},{"$f":"'MMA Rev-Exp Region 1'!T$84","v":{"v":0,"d":"$0.00"}},{"$f":"'MMA Rev-Exp Region 1'!U$84","v":{"v":0,"d":"$0.00"}},{"$f":"'MMA Rev-Exp Region 1'!V$84","v":{"v":0,"d":"$0.00"}},{"$f":"'MMA Rev-Exp Region 1'!W$84","v":{"v":0,"d":"$0.00"}},{"$f":"'MMA Rev-Exp Region 1'!X$84","v":{"v":0,"d":"$0.00"}},{"$f":"'MMA Rev-Exp Region 1'!Y$84","v":{"v":0,"d":"$0.00"}},{"v":0,"d":"$0.00"}]
["MMA",null,null,{"$f":"Jurat!I$1","v":0},{"$f":"Jurat!D$33","v":"00:00:00"},"Q2","2017-06-30","Region 1","Operating Expense","Medical Benefits Expense","Other Medical","11.9","Reinsurance Recoveries",{"$f":"'MMA Rev-Exp Region 1'!O$85","v":{"v":0,"d":"$0.00"}},{"$f":"'MMA Rev-Exp Region 1'!P$85","v":{"v":0,"d":"$0.00"}},{"$f":"'MMA Rev-Exp Region 1'!Q$85","v":{"v":0,"d":"$0.00"}},{"$f":"'MMA Rev-Exp Region 1'!R$85","v":{"v":0,"d":"$0.00"}},{"$f":"'MMA Rev-Exp Region 1'!S$85","v":{"v":0,"d":"$0.00"}},{"$f":"'MMA Rev-Exp Region 1'!T$85","v":{"v":0,"d":"$0.00"}},{"$f":"'MMA Rev-Exp Region 1'!U$85","v":{"v":0,"d":"$0.00"}},{"$f":"'MMA Rev-Exp Region 1'!V$85","v":{"v":0,"d":"$0.00"}},{"$f":"'MMA Rev-Exp Region 1'!W$85","v":{"v":0,"d":"$0.00"}},{"$f":"'MMA Rev-Exp Region 1'!X$85","v":{"v":0,"d":"$0.00"}},{"$f":"'MMA Rev-Exp Region 1'!Y$85","v":{"v":0,"d":"$0.00"}},{"v":0,"d":"$0.00"}]
["MMA",null,null,{"$f":"Jurat!I$1","v":0},{"$f":"Jurat!D$33","v":"00:00:00"},"Q2","2017-06-30","Region 1","Operating Expense","Administrative Expense","Administrative","12.1","Salaries & Benefits",{"$f":"'MMA Rev-Exp Region 1'!O$90","v":{"v":0,"d":"$0.00"}},{"v":0,"d":"$0.00"},{"v":0,"d":"$0.00"},{"v":0,"d":"$0.00"},{"v":0,"d":"$0.00"},{"v":0,"d":"$0.00"},{"v":0,"d":"$0.00"},{"v":0,"d":"$0.00"},{"v":0,"d":"$0.00"},{"v":0,"d":"$0.00"},{"v":0,"d":"$0.00"},{"v":0,"d":"$0.00"}]
["MMA",null,null,{"$f":"Jurat!I$1","v":0},{"$f":"Jurat!D$33","v":"00:00:00"},"Q2","2017-06-30","Region 1","Operating Expense","Administrative Expense","Administrative","12.2","Administrative Services",{"$f":"'MMA Rev-Exp Region 1'!O$91","v":{"v":0,"d":"$0.00"}},{"v":0,"d":"$0.00"},{"v":0,"d":"$0.00"},{"v":0,"d":"$0.00"},{"v":0,"d":"$0.00"},{"v":0,"d":"$0.00"},{"v":0,"d":"$0.00"},{"v":0,"d":"$0.00"},{"v":0,"d":"$0.00"},{"v":0,"d":"$0.00"},{"v":0,"d":"$0.00"},{"v":0,"d":"$0.00"}]
["MMA",null,null,{"$f":"Jurat!I$1","v":0},{"$f":"Jurat!D$33","v":"00:00:00"},"Q2","2017-06-30","Region 1","Operating Expense","Administrative Expense","Administrative","12.3","Information Systems",{"$f":"'MMA Rev-Exp Region 1'!O$92","v":{"v":0,"d":"$0.00"}},{"v":0,"d":"$0.00"},{"v":0,"d":"$0.00"},{"v":0,"d":"$0.00"},{"v":0,"d":"$0.00"},{"v":0,"d":"$0.00"},{"v":0,"d":"$0.00"},{"v":0,"d":"$0.00"},{"v":0,"d":"$0.00"},{"v":0,"d":"$0.00"},{"v":0,"d":"$0.00"},{"v":0,"d":"$0.00"}]
["MMA",null,null,{"$f":"Jurat!I$1","v":0},{"$f":"Jurat!D$33","v":"00:00:00"},"Q2","2017-06-30","Region 1","Operating Expense","Administrative Expense","Administrative","12.4","Marketing Expenses",{"$f":"'MMA Rev-Exp Region 1'!O$93","v":{"v":0,"d":"$0.00"}},{"v":0,"d":"$0.00"},{"v":0,"d":"$0.00"},{"v":0,"d":"$0.00"},{"v":0,"d":"$0.00"},{"v":0,"d":"$0.00"},{"v":0,"d":"$0.00"},{"v":0,"d":"$0.00"},{"v":0,"d":"$0.00"},{"v":0,"d":"$0.00"},{"v":0,"d":"$0.00"},{"v":0,"d":"$0.00"}]
["MMA",null,null,{"$f":"Jurat!I$1","v":0},{"$f":"Jurat!D$33","v":"00:00:00"},"Q2","2017-06-30","Region 1","Operating Expense","Administrative Expense","Administrative","12.5","General  Administration",{"$f":"'MMA Rev-Exp Region 1'!O$94","v":{"v":0,"d":"$0.00"}},{"v":0,"d":"$0.00"},{"v":0,"d":"$0.00"},{"v":0,"d":"$0.00"},{"v":0,"d":"$0.00"},{"v":0,"d":"$0.00"},{"v":0,"d":"$0.00"},{"v":0,"d":"$0.00"},{"v":0,"d":"$0.00"},{"v":0,"d":"$0.00"},{"v":0,"d":"$0.00"},{"v":0,"d":"$0.00"}]
["MMA",null,null,{"$f":"Jurat!I$1","v":0},{"$f":"Jurat!D$33","v":"00:00:00"},"Q2","2017-06-30","Region 1","Operating Expense","Administrative Expense","Administrative","12.6","Compliance/Regulatory",{"$f":"'MMA Rev-Exp Region 1'!O$95","v":{"v":0,"d":"$0.00"}},{"v":0,"d":"$0.00"},{"v":0,"d":"$0.00"},{"v":0,"d":"$0.00"},{"v":0,"d":"$0.00"},{"v":0,"d":"$0.00"},{"v":0,"d":"$0.00"},{"v":0,"d":"$0.00"},{"v":0,"d":"$0.00"},{"v":0,"d":"$0.00"},{"v":0,"d":"$0.00"},{"v":0,"d":"$0.00"}]
["MMA",null,null,{"$f":"Jurat!I$1","v":0},{"$f":"Jurat!D$33","v":"00:00:00"},"Q2","2017-06-30","Region 1","Operating Expense","Taxes & Fees","Taxes & Fees","13.1","State Premium tax",{"$f":"'MMA Rev-Exp Region 1'!O$97","v":{"v":0,"d":"$0.00"}},{"v":0,"d":"$0.00"},{"v":0,"d":"$0.00"},{"v":0,"d":"$0.00"},{"v":0,"d":"$0.00"},{"v":0,"d":"$0.00"},{"v":0,"d":"$0.00"},{"v":0,"d":"$0.00"},{"v":0,"d":"$0.00"},{"v":0,"d":"$0.00"},{"v":0,"d":"$0.00"},{"v":0,"d":"$0.00"}]
["MMA",null,null,{"$f":"Jurat!I$1","v":0},{"$f":"Jurat!D$33","v":"00:00:00"},"Q2","2017-06-30","Region 1","Operating Expense","Taxes & Fees","Taxes & Fees","13.2","Department of Insurance Assessments",{"$f":"'MMA Rev-Exp Region 1'!O$98","v":{"v":0,"d":"$0.00"}},{"v":0,"d":"$0.00"},{"v":0,"d":"$0.00"},{"v":0,"d":"$0.00"},{"v":0,"d":"$0.00"},{"v":0,"d":"$0.00"},{"v":0,"d":"$0.00"},{"v":0,"d":"$0.00"},{"v":0,"d":"$0.00"},{"v":0,"d":"$0.00"},{"v":0,"d":"$0.00"},{"v":0,"d":"$0.00"}]
["MMA",null,null,{"$f":"Jurat!I$1","v":0},{"$f":"Jurat!D$33","v":"00:00:00"},"Q2","2017-06-30","Region 1","Operating Expense","Taxes & Fees","Taxes & Fees","13.3","Section 9010 Health Insurance Providers Fee",{"$f":"'MMA Rev-Exp Region 1'!O$99","v":{"v":0,"d":"$0.00"}},{"v":0,"d":"$0.00"},{"v":0,"d":"$0.00"},{"v":0,"d":"$0.00"},{"v":0,"d":"$0.00"},{"v":0,"d":"$0.00"},{"v":0,"d":"$0.00"},{"v":0,"d":"$0.00"},{"v":0,"d":"$0.00"},{"v":0,"d":"$0.00"},{"v":0,"d":"$0.00"},{"v":0,"d":"$0.00"}]
["MMA",null,null,{"$f":"Jurat!I$1","v":0},{"$f":"Jurat!D$33","v":"00:00:00"},"Q2","2017-06-30","Region 1","Non-Operating Expense","Income Tax Expense","Income Tax Expense","16.0","Income Tax Expense",{"$f":"'MMA Rev-Exp Region 1'!O$106","v":{"v":0,"d":"$0.00"}},{"v":0,"d":"$0.00"},{"v":0,"d":"$0.00"},{"v":0,"d":"$0.00"},{"v":0,"d":"$0.00"},{"v":0,"d":"$0.00"},{"v":0,"d":"$0.00"},{"v":0,"d":"$0.00"},{"v":0,"d":"$0.00"},{"v":0,"d":"$0.00"},{"v":0,"d":"$0.00"},{"v":0,"d":"$0.00"}]
["MMA",null,null,{"$f":"Jurat!I$1","v":0},{"$f":"Jurat!D$33","v":"00:00:00"},"Q3","2017-09-30","Region 1","Member Months","Member Months","Member Months",null,"Member Months",{"$f":"'MMA Rev-Exp Region 1'!Z$9","v":{"v":0,"d":"$0.00"}},{"$f":"'MMA Rev-Exp Region 1'!AA$9","v":{"v":0,"d":"$0.00"}},{"$f":"'MMA Rev-Exp Region 1'!AB$9","v":{"v":0,"d":"$0.00"}},{"$f":"'MMA Rev-Exp Region 1'!AC$9","v":{"v":0,"d":"$0.00"}},{"$f":"'MMA Rev-Exp Region 1'!AD$9","v":{"v":0,"d":"$0.00"}},{"$f":"'MMA Rev-Exp Region 1'!AE$9","v":{"v":0,"d":"$0.00"}},{"$f":"'MMA Rev-Exp Region 1'!AF$9","v":{"v":0,"d":"$0.00"}},{"$f":"'MMA Rev-Exp Region 1'!AG$9","v":{"v":0,"d":"$0.00"}},{"$f":"'MMA Rev-Exp Region 1'!AH$9","v":{"v":0,"d":"$0.00"}},{"$f":"'MMA Rev-Exp Region 1'!AI$9","v":{"v":0,"d":"$0.00"}},{"$f":"'MMA Rev-Exp Region 1'!AJ$9","v":{"v":0,"d":"$0.00"}},{"v":0,"d":"$0.00"}]
["MMA",null,null,{"$f":"Jurat!I$1","v":0},{"$f":"Jurat!D$33","v":"00:00:00"},"Q3","2017-09-30","Region 1","Operating Revenue","Capitation","Capitation",1.1,"Capitation",{"$f":"'MMA Rev-Exp Region 1'!Z$11","v":{"v":0,"d":"$0.00"}},{"$f":"'MMA Rev-Exp Region 1'!AA$11","v":{"v":0,"d":"$0.00"}},{"$f":"'MMA Rev-Exp Region 1'!AB$11","v":{"v":0,"d":"$0.00"}},{"$f":"'MMA Rev-Exp Region 1'!AC$11","v":{"v":0,"d":"$0.00"}},{"$f":"'MMA Rev-Exp Region 1'!AD$11","v":{"v":0,"d":"$0.00"}},{"$f":"'MMA Rev-Exp Region 1'!AE$11","v":{"v":0,"d":"$0.00"}},{"$f":"'MMA Rev-Exp Region 1'!AF$11","v":{"v":0,"d":"$0.00"}},{"$f":"'MMA Rev-Exp Region 1'!AG$11","v":{"v":0,"d":"$0.00"}},{"$f":"'MMA Rev-Exp Region 1'!AH$11","v":{"v":0,"d":"$0.00"}},{"$f":"'MMA Rev-Exp Region 1'!AI$11","v":{"v":0,"d":"$0.00"}},{"$f":"'MMA Rev-Exp Region 1'!AJ$11","v":{"v":0,"d":"$0.00"}},{"v":0,"d":"$0.00"}]
["MMA",null,null,{"$f":"Jurat!I$1","v":0},{"$f":"Jurat!D$33","v":"00:00:00"},"Q3","2017-09-30","Region 1","Operating Revenue","Kick Payments","Kick Payments - Transplant",1.2,"Transplant Kick Payments",{"$f":"'MMA Rev-Exp Region 1'!Z$12","v":{"v":0,"d":"$0.00"}},{"$f":"'MMA Rev-Exp Region 1'!AA$12","v":{"v":0,"d":"$0.00"}},{"$f":"'MMA Rev-Exp Region 1'!AB$12","v":{"v":0,"d":"$0.00"}},{"$f":"'MMA Rev-Exp Region 1'!AC$12","v":{"v":0,"d":"$0.00"}},{"$f":"'MMA Rev-Exp Region 1'!AD$12","v":{"v":0,"d":"$0.00"}},{"$f":"'MMA Rev-Exp Region 1'!AE$12","v":{"v":0,"d":"$0.00"}},{"$f":"'MMA Rev-Exp Region 1'!AF$12","v":{"v":0,"d":"$0.00"}},{"$f":"'MMA Rev-Exp Region 1'!AG$12","v":{"v":0,"d":"$0.00"}},{"$f":"'MMA Rev-Exp Region 1'!AH$12","v":{"v":0,"d":"$0.00"}},{"$f":"'MMA Rev-Exp Region 1'!AI$12","v":{"v":0,"d":"$0.00"}},{"$f":"'MMA Rev-Exp Region 1'!AJ$12","v":{"v":0,"d":"$0.00"}},{"v":0,"d":"$0.00"}]
["MMA",null,null,{"$f":"Jurat!I$1","v":0},{"$f":"Jurat!D$33","v":"00:00:00"},"Q3","2017-09-30","Region 1","Operating Revenue","Kick Payments","Kick Payments - Hep C","1.3","Hepatitis C Kick Payments",{"$f":"'MMA Rev-Exp Region 1'!Z$13","v":{"v":0,"d":"$0.00"}},{"$f":"'MMA Rev-Exp Region 1'!AA$13","v":{"v":0,"d":"$0.00"}},{"$f":"'MMA Rev-Exp Region 1'!AB$13","v":{"v":0,"d":"$0.00"}},{"$f":"'MMA Rev-Exp Region 1'!AC$13","v":{"v":0,"d":"$0.00"}},{"$f":"'MMA Rev-Exp Region 1'!AD$13","v":{"v":0,"d":"$0.00"}},{"$f":"'MMA Rev-Exp Region 1'!AE$13","v":{"v":0,"d":"$0.00"}},{"$f":"'MMA Rev-Exp Region 1'!AF$13","v":{"v":0,"d":"$0.00"}},{"$f":"'MMA Rev-Exp Region 1'!AG$13","v":{"v":0,"d":"$0.00"}},{"$f":"'MMA Rev-Exp Region 1'!AH$13","v":{"v":0,"d":"$0.00"}},{"$f":"'MMA Rev-Exp Region 1'!AI$13","v":{"v":0,"d":"$0.00"}},{"$f":"'MMA Rev-Exp Region 1'!AJ$13","v":{"v":0,"d":"$0.00"}},{"v":0,"d":"$0.00"}]
["MMA",null,null,{"$f":"Jurat!I$1","v":0},{"$f":"Jurat!D$33","v":"00:00:00"},"Q3","2017-09-30","Region 1","Operating Revenue","Kick Payments","Kick Payments - Maternity","1.4.1","Maternity Kick Payments",{"$f":"'MMA Rev-Exp Region 1'!Z$14","v":{"v":0,"d":"$0.00"}},{"$f":"'MMA Rev-Exp Region 1'!AA$14","v":{"v":0,"d":"$0.00"}},{"$f":"'MMA Rev-Exp Region 1'!AB$14","v":{"v":0,"d":"$0.00"}},{"$f":"'MMA Rev-Exp Region 1'!AC$14","v":{"v":0,"d":"$0.00"}},{"$f":"'MMA Rev-Exp Region 1'!AD$14","v":{"v":0,"d":"$0.00"}},{"$f":"'MMA Rev-Exp Region 1'!AE$14","v":{"v":0,"d":"$0.00"}},{"$f":"'MMA Rev-Exp Region 1'!AF$14","v":{"v":0,"d":"$0.00"}},{"$f":"'MMA Rev-Exp Region 1'!AG$14","v":{"v":0,"d":"$0.00"}},{"$f":"'MMA Rev-Exp Region 1'!AH$14","v":{"v":0,"d":"$0.00"}},{"$f":"'MMA Rev-Exp Region 1'!AI$14","v":{"v":0,"d":"$0.00"}},{"$f":"'MMA Rev-Exp Region 1'!AJ$14","v":{"v":0,"d":"$0.00"}},{"v":0,"d":"$0.00"}]
["MMA",null,null,{"$f":"Jurat!I$1","v":0},{"$f":"Jurat!D$33","v":"00:00:00"},"Q3","2017-09-30","Region 1","Operating Revenue","Other Revenue","Other Revenue - 9010","1.5","ACA § 9010 related payments",{"$f":"'MMA Rev-Exp Region 1'!Z$15","v":{"v":0,"d":"$0.00"}},{"$f":"'MMA Rev-Exp Region 1'!AA$15","v":{"v":0,"d":"$0.00"}},{"$f":"'MMA Rev-Exp Region 1'!AB$15","v":{"v":0,"d":"$0.00"}},{"$f":"'MMA Rev-Exp Region 1'!AC$15","v":{"v":0,"d":"$0.00"}},{"$f":"'MMA Rev-Exp Region 1'!AD$15","v":{"v":0,"d":"$0.00"}},{"$f":"'MMA Rev-Exp Region 1'!AE$15","v":{"v":0,"d":"$0.00"}},{"$f":"'MMA Rev-Exp Region 1'!AF$15","v":{"v":0,"d":"$0.00"}},{"$f":"'MMA Rev-Exp Region 1'!AG$15","v":{"v":0,"d":"$0.00"}},{"$f":"'MMA Rev-Exp Region 1'!AH$15","v":{"v":0,"d":"$0.00"}},{"$f":"'MMA Rev-Exp Region 1'!AI$15","v":{"v":0,"d":"$0.00"}},{"$f":"'MMA Rev-Exp Region 1'!AJ$15","v":{"v":0,"d":"$0.00"}},{"v":0,"d":"$0.00"}]
["MMA",null,null,{"$f":"Jurat!I$1","v":0},{"$f":"Jurat!D$33","v":"00:00:00"},"Q3","2017-09-30","Region 1","Operating Revenue","Other Revenue","Other Revenue","1.6","Other Revenue",{"$f":"'MMA Rev-Exp Region 1'!Z$16","v":{"v":0,"d":"$0.00"}},{"$f":"'MMA Rev-Exp Region 1'!AA$16","v":{"v":0,"d":"$0.00"}},{"$f":"'MMA Rev-Exp Region 1'!AB$16","v":{"v":0,"d":"$0.00"}},{"$f":"'MMA Rev-Exp Region 1'!AC$16","v":{"v":0,"d":"$0.00"}},{"$f":"'MMA Rev-Exp Region 1'!AD$16","v":{"v":0,"d":"$0.00"}},{"$f":"'MMA Rev-Exp Region 1'!AE$16","v":{"v":0,"d":"$0.00"}},{"$f":"'MMA Rev-Exp Region 1'!AF$16","v":{"v":0,"d":"$0.00"}},{"$f":"'MMA Rev-Exp Region 1'!AG$16","v":{"v":0,"d":"$0.00"}},{"$f":"'MMA Rev-Exp Region 1'!AH$16","v":{"v":0,"d":"$0.00"}},{"$f":"'MMA Rev-Exp Region 1'!AI$16","v":{"v":0,"d":"$0.00"}},{"$f":"'MMA Rev-Exp Region 1'!AJ$16","v":{"v":0,"d":"$0.00"}},{"v":0,"d":"$0.00"}]
["MMA",null,null,{"$f":"Jurat!I$1","v":0},{"$f":"Jurat!D$33","v":"00:00:00"},"Q3","2017-09-30","Region 1","Operating Expense","Medical Benefits Expense","Hospital Services",2.1,"Inpatient FFS",{"$f":"'MMA Rev-Exp Region 1'!Z$20","v":{"v":0,"d":"$0.00"}},{"$f":"'MMA Rev-Exp Region 1'!AA$20","v":{"v":0,"d":"$0.00"}},{"$f":"'MMA Rev-Exp Region 1'!AB$20","v":{"v":0,"d":"$0.00"}},{"$f":"'MMA Rev-Exp Region 1'!AC$20","v":{"v":0,"d":"$0.00"}},{"$f":"'MMA Rev-Exp Region 1'!AD$20","v":{"v":0,"d":"$0.00"}},{"$f":"'MMA Rev-Exp Region 1'!AE$20","v":{"v":0,"d":"$0.00"}},{"$f":"'MMA Rev-Exp Region 1'!AF$20","v":{"v":0,"d":"$0.00"}},{"$f":"'MMA Rev-Exp Region 1'!AG$20","v":{"v":0,"d":"$0.00"}},{"$f":"'MMA Rev-Exp Region 1'!AH$20","v":{"v":0,"d":"$0.00"}},{"$f":"'MMA Rev-Exp Region 1'!AI$20","v":{"v":0,"d":"$0.00"}},{"$f":"'MMA Rev-Exp Region 1'!AJ$20","v":{"v":0,"d":"$0.00"}},{"v":0,"d":"$0.00"}]
["MMA",null,null,{"$f":"Jurat!I$1","v":0},{"$f":"Jurat!D$33","v":"00:00:00"},"Q3","2017-09-30","Region 1","Operating Expense","Medical Benefits Expense","Hospital Services",2.2,"Ending IBNP for Inpatient Hospital Services",{"$f":"'MMA Rev-Exp Region 1'!Z$21","v":{"v":0,"d":"$0.00"}},{"$f":"'MMA Rev-Exp Region 1'!AA$21","v":{"v":0,"d":"$0.00"}},{"$f":"'MMA Rev-Exp Region 1'!AB$21","v":{"v":0,"d":"$0.00"}},{"$f":"'MMA Rev-Exp Region 1'!AC$21","v":{"v":0,"d":"$0.00"}},{"$f":"'MMA Rev-Exp Region 1'!AD$21","v":{"v":0,"d":"$0.00"}},{"$f":"'MMA Rev-Exp Region 1'!AE$21","v":{"v":0,"d":"$0.00"}},{"$f":"'MMA Rev-Exp Region 1'!AF$21","v":{"v":0,"d":"$0.00"}},{"$f":"'MMA Rev-Exp Region 1'!AG$21","v":{"v":0,"d":"$0.00"}},{"$f":"'MMA Rev-Exp Region 1'!AH$21","v":{"v":0,"d":"$0.00"}},{"$f":"'MMA Rev-Exp Region 1'!AI$21","v":{"v":0,"d":"$0.00"}},{"$f":"'MMA Rev-Exp Region 1'!AJ$21","v":{"v":0,"d":"$0.00"}},{"v":0,"d":"$0.00"}]
["MMA",null,null,{"$f":"Jurat!I$1","v":0},{"$f":"Jurat!D$33","v":"00:00:00"},"Q3","2017-09-30","Region 1","Operating Expense","Medical Benefits Expense","Hospital Services",2.3,"Outpatient FFS: ER",{"$f":"'MMA Rev-Exp Region 1'!Z$22","v":{"v":0,"d":"$0.00"}},{"$f":"'MMA Rev-Exp Region 1'!AA$22","v":{"v":0,"d":"$0.00"}},{"$f":"'MMA Rev-Exp Region 1'!AB$22","v":{"v":0,"d":"$0.00"}},{"$f":"'MMA Rev-Exp Region 1'!AC$22","v":{"v":0,"d":"$0.00"}},{"$f":"'MMA Rev-Exp Region 1'!AD$22","v":{"v":0,"d":"$0.00"}},{"$f":"'MMA Rev-Exp Region 1'!AE$22","v":{"v":0,"d":"$0.00"}},{"$f":"'MMA Rev-Exp Region 1'!AF$22","v":{"v":0,"d":"$0.00"}},{"$f":"'MMA Rev-Exp Region 1'!AG$22","v":{"v":0,"d":"$0.00"}},{"$f":"'MMA Rev-Exp Region 1'!AH$22","v":{"v":0,"d":"$0.00"}},{"$f":"'MMA Rev-Exp Region 1'!AI$22","v":{"v":0,"d":"$0.00"}},{"$f":"'MMA Rev-Exp Region 1'!AJ$22","v":{"v":0,"d":"$0.00"}},{"v":0,"d":"$0.00"}]
["MMA",null,null,{"$f":"Jurat!I$1","v":0},{"$f":"Jurat!D$33","v":"00:00:00"},"Q3","2017-09-30","Region 1","Operating Expense","Medical Benefits Expense","Hospital Services",2.4,"Outpatient FFS: Other than ER ",{"$f":"'MMA Rev-Exp Region 1'!Z$23","v":{"v":0,"d":"$0.00"}},{"$f":"'MMA Rev-Exp Region 1'!AA$23","v":{"v":0,"d":"$0.00"}},{"$f":"'MMA Rev-Exp Region 1'!AB$23","v":{"v":0,"d":"$0.00"}},{"$f":"'MMA Rev-Exp Region 1'!AC$23","v":{"v":0,"d":"$0.00"}},{"$f":"'MMA Rev-Exp Region 1'!AD$23","v":{"v":0,"d":"$0.00"}},{"$f":"'MMA Rev-Exp Region 1'!AE$23","v":{"v":0,"d":"$0.00"}},{"$f":"'MMA Rev-Exp Region 1'!AF$23","v":{"v":0,"d":"$0.00"}},{"$f":"'MMA Rev-Exp Region 1'!AG$23","v":{"v":0,"d":"$0.00"}},{"$f":"'MMA Rev-Exp Region 1'!AH$23","v":{"v":0,"d":"$0.00"}},{"$f":"'MMA Rev-Exp Region 1'!AI$23","v":{"v":0,"d":"$0.00"}},{"$f":"'MMA Rev-Exp Region 1'!AJ$23","v":{"v":0,"d":"$0.00"}},{"v":0,"d":"$0.00"}]
["MMA",null,null,{"$f":"Jurat!I$1","v":0},{"$f":"Jurat!D$33","v":"00:00:00"},"Q3","2017-09-30","Region 1","Operating Expense","Medical Benefits Expense","Hospital Services",2.5,"Ending IBNP for Outpatient Hospital Services",{"$f":"'MMA Rev-Exp Region 1'!Z$24","v":{"v":0,"d":"$0.00"}},{"$f":"'MMA Rev-Exp Region 1'!AA$24","v":{"v":0,"d":"$0.00"}},{"$f":"'MMA Rev-Exp Region 1'!AB$24","v":{"v":0,"d":"$0.00"}},{"$f":"'MMA Rev-Exp Region 1'!AC$24","v":{"v":0,"d":"$0.00"}},{"$f":"'MMA Rev-Exp Region 1'!AD$24","v":{"v":0,"d":"$0.00"}},{"$f":"'MMA Rev-Exp Region 1'!AE$24","v":{"v":0,"d":"$0.00"}},{"$f":"'MMA Rev-Exp Region 1'!AF$24","v":{"v":0,"d":"$0.00"}},{"$f":"'MMA Rev-Exp Region 1'!AG$24","v":{"v":0,"d":"$0.00"}},{"$f":"'MMA Rev-Exp Region 1'!AH$24","v":{"v":0,"d":"$0.00"}},{"$f":"'MMA Rev-Exp Region 1'!AI$24","v":{"v":0,"d":"$0.00"}},{"$f":"'MMA Rev-Exp Region 1'!AJ$24","v":{"v":0,"d":"$0.00"}},{"v":0,"d":"$0.00"}]
["MMA",null,null,{"$f":"Jurat!I$1","v":0},{"$f":"Jurat!D$33","v":"00:00:00"},"Q3","2017-09-30","Region 1","Operating Expense","Medical Benefits Expense","Hospital Services","2.6","Subcapitated Hospital Services",{"$f":"'MMA Rev-Exp Region 1'!Z$25","v":{"v":0,"d":"$0.00"}},{"$f":"'MMA Rev-Exp Region 1'!AA$25","v":{"v":0,"d":"$0.00"}},{"$f":"'MMA Rev-Exp Region 1'!AB$25","v":{"v":0,"d":"$0.00"}},{"$f":"'MMA Rev-Exp Region 1'!AC$25","v":{"v":0,"d":"$0.00"}},{"$f":"'MMA Rev-Exp Region 1'!AD$25","v":{"v":0,"d":"$0.00"}},{"$f":"'MMA Rev-Exp Region 1'!AE$25","v":{"v":0,"d":"$0.00"}},{"$f":"'MMA Rev-Exp Region 1'!AF$25","v":{"v":0,"d":"$0.00"}},{"$f":"'MMA Rev-Exp Region 1'!AG$25","v":{"v":0,"d":"$0.00"}},{"$f":"'MMA Rev-Exp Region 1'!AH$25","v":{"v":0,"d":"$0.00"}},{"$f":"'MMA Rev-Exp Region 1'!AI$25","v":{"v":0,"d":"$0.00"}},{"$f":"'MMA Rev-Exp Region 1'!AJ$25","v":{"v":0,"d":"$0.00"}},{"v":0,"d":"$0.00"}]
["MMA",null,null,{"$f":"Jurat!I$1","v":0},{"$f":"Jurat!D$33","v":"00:00:00"},"Q3","2017-09-30","Region 1","Operating Expense","Medical Benefits Expense","Hospital Services","2.7","Hospital Settlements",{"$f":"'MMA Rev-Exp Region 1'!Z$26","v":{"v":0,"d":"$0.00"}},{"$f":"'MMA Rev-Exp Region 1'!AA$26","v":{"v":0,"d":"$0.00"}},{"$f":"'MMA Rev-Exp Region 1'!AB$26","v":{"v":0,"d":"$0.00"}},{"$f":"'MMA Rev-Exp Region 1'!AC$26","v":{"v":0,"d":"$0.00"}},{"$f":"'MMA Rev-Exp Region 1'!AD$26","v":{"v":0,"d":"$0.00"}},{"$f":"'MMA Rev-Exp Region 1'!AE$26","v":{"v":0,"d":"$0.00"}},{"$f":"'MMA Rev-Exp Region 1'!AF$26","v":{"v":0,"d":"$0.00"}},{"$f":"'MMA Rev-Exp Region 1'!AG$26","v":{"v":0,"d":"$0.00"}},{"$f":"'MMA Rev-Exp Region 1'!AH$26","v":{"v":0,"d":"$0.00"}},{"$f":"'MMA Rev-Exp Region 1'!AI$26","v":{"v":0,"d":"$0.00"}},{"$f":"'MMA Rev-Exp Region 1'!AJ$26","v":{"v":0,"d":"$0.00"}},{"v":0,"d":"$0.00"}]
["MMA",null,null,{"$f":"Jurat!I$1","v":0},{"$f":"Jurat!D$33","v":"00:00:00"},"Q3","2017-09-30","Region 1","Operating Expense","Medical Benefits Expense","Hospital Services","2.7.1","Transplant Services",{"$f":"'MMA Rev-Exp Region 1'!Z$27","v":{"v":0,"d":"$0.00"}},{"$f":"'MMA Rev-Exp Region 1'!AA$27","v":{"v":0,"d":"$0.00"}},{"$f":"'MMA Rev-Exp Region 1'!AB$27","v":{"v":0,"d":"$0.00"}},{"$f":"'MMA Rev-Exp Region 1'!AC$27","v":{"v":0,"d":"$0.00"}},{"$f":"'MMA Rev-Exp Region 1'!AD$27","v":{"v":0,"d":"$0.00"}},{"$f":"'MMA Rev-Exp Region 1'!AE$27","v":{"v":0,"d":"$0.00"}},{"$f":"'MMA Rev-Exp Region 1'!AF$27","v":{"v":0,"d":"$0.00"}},{"$f":"'MMA Rev-Exp Region 1'!AG$27","v":{"v":0,"d":"$0.00"}},{"$f":"'MMA Rev-Exp Region 1'!AH$27","v":{"v":0,"d":"$0.00"}},{"$f":"'MMA Rev-Exp Region 1'!AI$27","v":{"v":0,"d":"$0.00"}},{"$f":"'MMA Rev-Exp Region 1'!AJ$27","v":{"v":0,"d":"$0.00"}},{"v":0,"d":"$0.00"}]
["MMA",null,null,{"$f":"Jurat!I$1","v":0},{"$f":"Jurat!D$33","v":"00:00:00"},"Q3","2017-09-30","Region 1","Operating Expense","Medical Benefits Expense","Professional Services",3.1,"Primary Care FFS",{"$f":"'MMA Rev-Exp Region 1'!Z$29","v":{"v":0,"d":"$0.00"}},{"$f":"'MMA Rev-Exp Region 1'!AA$29","v":{"v":0,"d":"$0.00"}},{"$f":"'MMA Rev-Exp Region 1'!AB$29","v":{"v":0,"d":"$0.00"}},{"$f":"'MMA Rev-Exp Region 1'!AC$29","v":{"v":0,"d":"$0.00"}},{"$f":"'MMA Rev-Exp Region 1'!AD$29","v":{"v":0,"d":"$0.00"}},{"$f":"'MMA Rev-Exp Region 1'!AE$29","v":{"v":0,"d":"$0.00"}},{"$f":"'MMA Rev-Exp Region 1'!AF$29","v":{"v":0,"d":"$0.00"}},{"$f":"'MMA Rev-Exp Region 1'!AG$29","v":{"v":0,"d":"$0.00"}},{"$f":"'MMA Rev-Exp Region 1'!AH$29","v":{"v":0,"d":"$0.00"}},{"$f":"'MMA Rev-Exp Region 1'!AI$29","v":{"v":0,"d":"$0.00"}},{"$f":"'MMA Rev-Exp Region 1'!AJ$29","v":{"v":0,"d":"$0.00"}},{"v":0,"d":"$0.00"}]
["MMA",null,null,{"$f":"Jurat!I$1","v":0},{"$f":"Jurat!D$33","v":"00:00:00"},"Q3","2017-09-30","Region 1","Operating Expense","Medical Benefits Expense","Professional Services",3.2,"Specialty Care FFS",{"$f":"'MMA Rev-Exp Region 1'!Z$30","v":{"v":0,"d":"$0.00"}},{"$f":"'MMA Rev-Exp Region 1'!AA$30","v":{"v":0,"d":"$0.00"}},{"$f":"'MMA Rev-Exp Region 1'!AB$30","v":{"v":0,"d":"$0.00"}},{"$f":"'MMA Rev-Exp Region 1'!AC$30","v":{"v":0,"d":"$0.00"}},{"$f":"'MMA Rev-Exp Region 1'!AD$30","v":{"v":0,"d":"$0.00"}},{"$f":"'MMA Rev-Exp Region 1'!AE$30","v":{"v":0,"d":"$0.00"}},{"$f":"'MMA Rev-Exp Region 1'!AF$30","v":{"v":0,"d":"$0.00"}},{"$f":"'MMA Rev-Exp Region 1'!AG$30","v":{"v":0,"d":"$0.00"}},{"$f":"'MMA Rev-Exp Region 1'!AH$30","v":{"v":0,"d":"$0.00"}},{"$f":"'MMA Rev-Exp Region 1'!AI$30","v":{"v":0,"d":"$0.00"}},{"$f":"'MMA Rev-Exp Region 1'!AJ$30","v":{"v":0,"d":"$0.00"}},{"v":0,"d":"$0.00"}]
["MMA",null,null,{"$f":"Jurat!I$1","v":0},{"$f":"Jurat!D$33","v":"00:00:00"},"Q3","2017-09-30","Region 1","Operating Expense","Medical Benefits Expense","Professional Services",3.3,"Other Professional FFS",{"$f":"'MMA Rev-Exp Region 1'!Z$31","v":{"v":0,"d":"$0.00"}},{"$f":"'MMA Rev-Exp Region 1'!AA$31","v":{"v":0,"d":"$0.00"}},{"$f":"'MMA Rev-Exp Region 1'!AB$31","v":{"v":0,"d":"$0.00"}},{"$f":"'MMA Rev-Exp Region 1'!AC$31","v":{"v":0,"d":"$0.00"}},{"$f":"'MMA Rev-Exp Region 1'!AD$31","v":{"v":0,"d":"$0.00"}},{"$f":"'MMA Rev-Exp Region 1'!AE$31","v":{"v":0,"d":"$0.00"}},{"$f":"'MMA Rev-Exp Region 1'!AF$31","v":{"v":0,"d":"$0.00"}},{"$f":"'MMA Rev-Exp Region 1'!AG$31","v":{"v":0,"d":"$0.00"}},{"$f":"'MMA Rev-Exp Region 1'!AH$31","v":{"v":0,"d":"$0.00"}},{"$f":"'MMA Rev-Exp Region 1'!AI$31","v":{"v":0,"d":"$0.00"}},{"$f":"'MMA Rev-Exp Region 1'!AJ$31","v":{"v":0,"d":"$0.00"}},{"v":0,"d":"$0.00"}]
["MMA",null,null,{"$f":"Jurat!I$1","v":0},{"$f":"Jurat!D$33","v":"00:00:00"},"Q3","2017-09-30","Region 1","Operating Expense","Medical Benefits Expense","Professional Services","3.4","§ 1202 PCP Payments to providers",{"$f":"'MMA Rev-Exp Region 1'!Z$32","v":{"v":0,"d":"$0.00"}},{"$f":"'MMA Rev-Exp Region 1'!AA$32","v":{"v":0,"d":"$0.00"}},{"$f":"'MMA Rev-Exp Region 1'!AB$32","v":{"v":0,"d":"$0.00"}},{"$f":"'MMA Rev-Exp Region 1'!AC$32","v":{"v":0,"d":"$0.00"}},{"$f":"'MMA Rev-Exp Region 1'!AD$32","v":{"v":0,"d":"$0.00"}},{"$f":"'MMA Rev-Exp Region 1'!AE$32","v":{"v":0,"d":"$0.00"}},{"$f":"'MMA Rev-Exp Region 1'!AF$32","v":{"v":0,"d":"$0.00"}},{"$f":"'MMA Rev-Exp Region 1'!AG$32","v":{"v":0,"d":"$0.00"}},{"$f":"'MMA Rev-Exp Region 1'!AH$32","v":{"v":0,"d":"$0.00"}},{"$f":"'MMA Rev-Exp Region 1'!AI$32","v":{"v":0,"d":"$0.00"}},{"$f":"'MMA Rev-Exp Region 1'!AJ$32","v":{"v":0,"d":"$0.00"}},{"v":0,"d":"$0.00"}]
["MMA",null,null,{"$f":"Jurat!I$1","v":0},{"$f":"Jurat!D$33","v":"00:00:00"},"Q3","2017-09-30","Region 1","Operating Expense","Medical Benefits Expense","Professional Services","3.5","Subcapitated Professional Services",{"$f":"'MMA Rev-Exp Region 1'!Z$33","v":{"v":0,"d":"$0.00"}},{"$f":"'MMA Rev-Exp Region 1'!AA$33","v":{"v":0,"d":"$0.00"}},{"$f":"'MMA Rev-Exp Region 1'!AB$33","v":{"v":0,"d":"$0.00"}},{"$f":"'MMA Rev-Exp Region 1'!AC$33","v":{"v":0,"d":"$0.00"}},{"$f":"'MMA Rev-Exp Region 1'!AD$33","v":{"v":0,"d":"$0.00"}},{"$f":"'MMA Rev-Exp Region 1'!AE$33","v":{"v":0,"d":"$0.00"}},{"$f":"'MMA Rev-Exp Region 1'!AF$33","v":{"v":0,"d":"$0.00"}},{"$f":"'MMA Rev-Exp Region 1'!AG$33","v":{"v":0,"d":"$0.00"}},{"$f":"'MMA Rev-Exp Region 1'!AH$33","v":{"v":0,"d":"$0.00"}},{"$f":"'MMA Rev-Exp Region 1'!AI$33","v":{"v":0,"d":"$0.00"}},{"$f":"'MMA Rev-Exp Region 1'!AJ$33","v":{"v":0,"d":"$0.00"}},{"v":0,"d":"$0.00"}]
["MMA",null,null,{"$f":"Jurat!I$1","v":0},{"$f":"Jurat!D$33","v":"00:00:00"},"Q3","2017-09-30","Region 1","Operating Expense","Medical Benefits Expense","Professional Services","3.6","Ending IBNP for Professional Services",{"$f":"'MMA Rev-Exp Region 1'!Z$34","v":{"v":0,"d":"$0.00"}},{"$f":"'MMA Rev-Exp Region 1'!AA$34","v":{"v":0,"d":"$0.00"}},{"$f":"'MMA Rev-Exp Region 1'!AB$34","v":{"v":0,"d":"$0.00"}},{"$f":"'MMA Rev-Exp Region 1'!AC$34","v":{"v":0,"d":"$0.00"}},{"$f":"'MMA Rev-Exp Region 1'!AD$34","v":{"v":0,"d":"$0.00"}},{"$f":"'MMA Rev-Exp Region 1'!AE$34","v":{"v":0,"d":"$0.00"}},{"$f":"'MMA Rev-Exp Region 1'!AF$34","v":{"v":0,"d":"$0.00"}},{"$f":"'MMA Rev-Exp Region 1'!AG$34","v":{"v":0,"d":"$0.00"}},{"$f":"'MMA Rev-Exp Region 1'!AH$34","v":{"v":0,"d":"$0.00"}},{"$f":"'MMA Rev-Exp Region 1'!AI$34","v":{"v":0,"d":"$0.00"}},{"$f":"'MMA Rev-Exp Region 1'!AJ$34","v":{"v":0,"d":"$0.00"}},{"v":0,"d":"$0.00"}]
["MMA",null,null,{"$f":"Jurat!I$1","v":0},{"$f":"Jurat!D$33","v":"00:00:00"},"Q3","2017-09-30","Region 1","Operating Expense","Medical Benefits Expense","Professional Services","3.7","Professional Services Settlements",{"$f":"'MMA Rev-Exp Region 1'!Z$35","v":{"v":0,"d":"$0.00"}},{"$f":"'MMA Rev-Exp Region 1'!AA$35","v":{"v":0,"d":"$0.00"}},{"$f":"'MMA Rev-Exp Region 1'!AB$35","v":{"v":0,"d":"$0.00"}},{"$f":"'MMA Rev-Exp Region 1'!AC$35","v":{"v":0,"d":"$0.00"}},{"$f":"'MMA Rev-Exp Region 1'!AD$35","v":{"v":0,"d":"$0.00"}},{"$f":"'MMA Rev-Exp Region 1'!AE$35","v":{"v":0,"d":"$0.00"}},{"$f":"'MMA Rev-Exp Region 1'!AF$35","v":{"v":0,"d":"$0.00"}},{"$f":"'MMA Rev-Exp Region 1'!AG$35","v":{"v":0,"d":"$0.00"}},{"$f":"'MMA Rev-Exp Region 1'!AH$35","v":{"v":0,"d":"$0.00"}},{"$f":"'MMA Rev-Exp Region 1'!AI$35","v":{"v":0,"d":"$0.00"}},{"$f":"'MMA Rev-Exp Region 1'!AJ$35","v":{"v":0,"d":"$0.00"}},{"v":0,"d":"$0.00"}]
["MMA",null,null,{"$f":"Jurat!I$1","v":0},{"$f":"Jurat!D$33","v":"00:00:00"},"Q3","2017-09-30","Region 1","Operating Expense","Medical Benefits Expense","Maternity Services","4.1.1","Maternity Services",{"$f":"'MMA Rev-Exp Region 1'!Z$37","v":{"v":0,"d":"$0.00"}},{"$f":"'MMA Rev-Exp Region 1'!AA$37","v":{"v":0,"d":"$0.00"}},{"$f":"'MMA Rev-Exp Region 1'!AB$37","v":{"v":0,"d":"$0.00"}},{"$f":"'MMA Rev-Exp Region 1'!AC$37","v":{"v":0,"d":"$0.00"}},{"$f":"'MMA Rev-Exp Region 1'!AD$37","v":{"v":0,"d":"$0.00"}},{"$f":"'MMA Rev-Exp Region 1'!AE$37","v":{"v":0,"d":"$0.00"}},{"$f":"'MMA Rev-Exp Region 1'!AF$37","v":{"v":0,"d":"$0.00"}},{"$f":"'MMA Rev-Exp Region 1'!AG$37","v":{"v":0,"d":"$0.00"}},{"$f":"'MMA Rev-Exp Region 1'!AH$37","v":{"v":0,"d":"$0.00"}},{"$f":"'MMA Rev-Exp Region 1'!AI$37","v":{"v":0,"d":"$0.00"}},{"$f":"'MMA Rev-Exp Region 1'!AJ$37","v":{"v":0,"d":"$0.00"}},{"v":0,"d":"$0.00"}]
["MMA",null,null,{"$f":"Jurat!I$1","v":0},{"$f":"Jurat!D$33","v":"00:00:00"},"Q3","2017-09-30","Region 1","Operating Expense","Medical Benefits Expense","Maternity Services","4.2.1","Ending IBNP for Maternity Services",{"$f":"'MMA Rev-Exp Region 1'!Z$38","v":{"v":0,"d":"$0.00"}},{"$f":"'MMA Rev-Exp Region 1'!AA$38","v":{"v":0,"d":"$0.00"}},{"$f":"'MMA Rev-Exp Region 1'!AB$38","v":{"v":0,"d":"$0.00"}},{"$f":"'MMA Rev-Exp Region 1'!AC$38","v":{"v":0,"d":"$0.00"}},{"$f":"'MMA Rev-Exp Region 1'!AD$38","v":{"v":0,"d":"$0.00"}},{"$f":"'MMA Rev-Exp Region 1'!AE$38","v":{"v":0,"d":"$0.00"}},{"$f":"'MMA Rev-Exp Region 1'!AF$38","v":{"v":0,"d":"$0.00"}},{"$f":"'MMA Rev-Exp Region 1'!AG$38","v":{"v":0,"d":"$0.00"}},{"$f":"'MMA Rev-Exp Region 1'!AH$38","v":{"v":0,"d":"$0.00"}},{"$f":"'MMA Rev-Exp Region 1'!AI$38","v":{"v":0,"d":"$0.00"}},{"$f":"'MMA Rev-Exp Region 1'!AJ$38","v":{"v":0,"d":"$0.00"}},{"v":0,"d":"$0.00"}]
["MMA",null,null,{"$f":"Jurat!I$1","v":0},{"$f":"Jurat!D$33","v":"00:00:00"},"Q3","2017-09-30","Region 1","Operating Expense","Medical Benefits Expense","Maternity Services","4.3.1","Maternity Settlements",{"$f":"'MMA Rev-Exp Region 1'!Z$39","v":{"v":0,"d":"$0.00"}},{"$f":"'MMA Rev-Exp Region 1'!AA$39","v":{"v":0,"d":"$0.00"}},{"$f":"'MMA Rev-Exp Region 1'!AB$39","v":{"v":0,"d":"$0.00"}},{"$f":"'MMA Rev-Exp Region 1'!AC$39","v":{"v":0,"d":"$0.00"}},{"$f":"'MMA Rev-Exp Region 1'!AD$39","v":{"v":0,"d":"$0.00"}},{"$f":"'MMA Rev-Exp Region 1'!AE$39","v":{"v":0,"d":"$0.00"}},{"$f":"'MMA Rev-Exp Region 1'!AF$39","v":{"v":0,"d":"$0.00"}},{"$f":"'MMA Rev-Exp Region 1'!AG$39","v":{"v":0,"d":"$0.00"}},{"$f":"'MMA Rev-Exp Region 1'!AH$39","v":{"v":0,"d":"$0.00"}},{"$f":"'MMA Rev-Exp Region 1'!AI$39","v":{"v":0,"d":"$0.00"}},{"$f":"'MMA Rev-Exp Region 1'!AJ$39","v":{"v":0,"d":"$0.00"}},{"v":0,"d":"$0.00"}]
["MMA",null,null,{"$f":"Jurat!I$1","v":0},{"$f":"Jurat!D$33","v":"00:00:00"},"Q3","2017-09-30","Region 1","Operating Expense","Medical Benefits Expense","Mental Health Services",5.1,"Mental Health & Substance Abuse FFS",{"$f":"'MMA Rev-Exp Region 1'!Z$41","v":{"v":0,"d":"$0.00"}},{"$f":"'MMA Rev-Exp Region 1'!AA$41","v":{"v":0,"d":"$0.00"}},{"$f":"'MMA Rev-Exp Region 1'!AB$41","v":{"v":0,"d":"$0.00"}},{"$f":"'MMA Rev-Exp Region 1'!AC$41","v":{"v":0,"d":"$0.00"}},{"$f":"'MMA Rev-Exp Region 1'!AD$41","v":{"v":0,"d":"$0.00"}},{"$f":"'MMA Rev-Exp Region 1'!AE$41","v":{"v":0,"d":"$0.00"}},{"$f":"'MMA Rev-Exp Region 1'!AF$41","v":{"v":0,"d":"$0.00"}},{"$f":"'MMA Rev-Exp Region 1'!AG$41","v":{"v":0,"d":"$0.00"}},{"$f":"'MMA Rev-Exp Region 1'!AH$41","v":{"v":0,"d":"$0.00"}},{"$f":"'MMA Rev-Exp Region 1'!AI$41","v":{"v":0,"d":"$0.00"}},{"$f":"'MMA Rev-Exp Region 1'!AJ$41","v":{"v":0,"d":"$0.00"}},{"v":0,"d":"$0.00"}]
["MMA",null,null,{"$f":"Jurat!I$1","v":0},{"$f":"Jurat!D$33","v":"00:00:00"},"Q3","2017-09-30","Region 1","Operating Expense","Medical Benefits Expense","Mental Health Services",5.2,"Mental Health & Substance Abuse Subcapitation",{"$f":"'MMA Rev-Exp Region 1'!Z$42","v":{"v":0,"d":"$0.00"}},{"$f":"'MMA Rev-Exp Region 1'!AA$42","v":{"v":0,"d":"$0.00"}},{"$f":"'MMA Rev-Exp Region 1'!AB$42","v":{"v":0,"d":"$0.00"}},{"$f":"'MMA Rev-Exp Region 1'!AC$42","v":{"v":0,"d":"$0.00"}},{"$f":"'MMA Rev-Exp Region 1'!AD$42","v":{"v":0,"d":"$0.00"}},{"$f":"'MMA Rev-Exp Region 1'!AE$42","v":{"v":0,"d":"$0.00"}},{"$f":"'MMA Rev-Exp Region 1'!AF$42","v":{"v":0,"d":"$0.00"}},{"$f":"'MMA Rev-Exp Region 1'!AG$42","v":{"v":0,"d":"$0.00"}},{"$f":"'MMA Rev-Exp Region 1'!AH$42","v":{"v":0,"d":"$0.00"}},{"$f":"'MMA Rev-Exp Region 1'!AI$42","v":{"v":0,"d":"$0.00"}},{"$f":"'MMA Rev-Exp Region 1'!AJ$42","v":{"v":0,"d":"$0.00"}},{"v":0,"d":"$0.00"}]
["MMA",null,null,{"$f":"Jurat!I$1","v":0},{"$f":"Jurat!D$33","v":"00:00:00"},"Q3","2017-09-30","Region 1","Operating Expense","Medical Benefits Expense","Mental Health Services",5.3,"Ending IBNP for Mental Health & Substance Abuse",{"$f":"'MMA Rev-Exp Region 1'!Z$43","v":{"v":0,"d":"$0.00"}},{"$f":"'MMA Rev-Exp Region 1'!AA$43","v":{"v":0,"d":"$0.00"}},{"$f":"'MMA Rev-Exp Region 1'!AB$43","v":{"v":0,"d":"$0.00"}},{"$f":"'MMA Rev-Exp Region 1'!AC$43","v":{"v":0,"d":"$0.00"}},{"$f":"'MMA Rev-Exp Region 1'!AD$43","v":{"v":0,"d":"$0.00"}},{"$f":"'MMA Rev-Exp Region 1'!AE$43","v":{"v":0,"d":"$0.00"}},{"$f":"'MMA Rev-Exp Region 1'!AF$43","v":{"v":0,"d":"$0.00"}},{"$f":"'MMA Rev-Exp Region 1'!AG$43","v":{"v":0,"d":"$0.00"}},{"$f":"'MMA Rev-Exp Region 1'!AH$43","v":{"v":0,"d":"$0.00"}},{"$f":"'MMA Rev-Exp Region 1'!AI$43","v":{"v":0,"d":"$0.00"}},{"$f":"'MMA Rev-Exp Region 1'!AJ$43","v":{"v":0,"d":"$0.00"}},{"v":0,"d":"$0.00"}]
["MMA",null,null,{"$f":"Jurat!I$1","v":0},{"$f":"Jurat!D$33","v":"00:00:00"},"Q3","2017-09-30","Region 1","Operating Expense","Medical Benefits Expense","Mental Health Services","5.4","Mental Health Settlements",{"$f":"'MMA Rev-Exp Region 1'!Z$44","v":{"v":0,"d":"$0.00"}},{"$f":"'MMA Rev-Exp Region 1'!AA$44","v":{"v":0,"d":"$0.00"}},{"$f":"'MMA Rev-Exp Region 1'!AB$44","v":{"v":0,"d":"$0.00"}},{"$f":"'MMA Rev-Exp Region 1'!AC$44","v":{"v":0,"d":"$0.00"}},{"$f":"'MMA Rev-Exp Region 1'!AD$44","v":{"v":0,"d":"$0.00"}},{"$f":"'MMA Rev-Exp Region 1'!AE$44","v":{"v":0,"d":"$0.00"}},{"$f":"'MMA Rev-Exp Region 1'!AF$44","v":{"v":0,"d":"$0.00"}},{"$f":"'MMA Rev-Exp Region 1'!AG$44","v":{"v":0,"d":"$0.00"}},{"$f":"'MMA Rev-Exp Region 1'!AH$44","v":{"v":0,"d":"$0.00"}},{"$f":"'MMA Rev-Exp Region 1'!AI$44","v":{"v":0,"d":"$0.00"}},{"$f":"'MMA Rev-Exp Region 1'!AJ$44","v":{"v":0,"d":"$0.00"}},{"v":0,"d":"$0.00"}]
["MMA",null,null,{"$f":"Jurat!I$1","v":0},{"$f":"Jurat!D$33","v":"00:00:00"},"Q3","2017-09-30","Region 1","Operating Expense","Medical Benefits Expense","Dental Services",6.1,"Dental FFS",{"$f":"'MMA Rev-Exp Region 1'!Z$46","v":{"v":0,"d":"$0.00"}},{"$f":"'MMA Rev-Exp Region 1'!AA$46","v":{"v":0,"d":"$0.00"}},{"$f":"'MMA Rev-Exp Region 1'!AB$46","v":{"v":0,"d":"$0.00"}},{"$f":"'MMA Rev-Exp Region 1'!AC$46","v":{"v":0,"d":"$0.00"}},{"$f":"'MMA Rev-Exp Region 1'!AD$46","v":{"v":0,"d":"$0.00"}},{"$f":"'MMA Rev-Exp Region 1'!AE$46","v":{"v":0,"d":"$0.00"}},{"$f":"'MMA Rev-Exp Region 1'!AF$46","v":{"v":0,"d":"$0.00"}},{"$f":"'MMA Rev-Exp Region 1'!AG$46","v":{"v":0,"d":"$0.00"}},{"$f":"'MMA Rev-Exp Region 1'!AH$46","v":{"v":0,"d":"$0.00"}},{"$f":"'MMA Rev-Exp Region 1'!AI$46","v":{"v":0,"d":"$0.00"}},{"$f":"'MMA Rev-Exp Region 1'!AJ$46","v":{"v":0,"d":"$0.00"}},{"v":0,"d":"$0.00"}]
["MMA",null,null,{"$f":"Jurat!I$1","v":0},{"$f":"Jurat!D$33","v":"00:00:00"},"Q3","2017-09-30","Region 1","Operating Expense","Medical Benefits Expense","Dental Services",6.2,"Dental Subcapitation",{"$f":"'MMA Rev-Exp Region 1'!Z$47","v":{"v":0,"d":"$0.00"}},{"$f":"'MMA Rev-Exp Region 1'!AA$47","v":{"v":0,"d":"$0.00"}},{"$f":"'MMA Rev-Exp Region 1'!AB$47","v":{"v":0,"d":"$0.00"}},{"$f":"'MMA Rev-Exp Region 1'!AC$47","v":{"v":0,"d":"$0.00"}},{"$f":"'MMA Rev-Exp Region 1'!AD$47","v":{"v":0,"d":"$0.00"}},{"$f":"'MMA Rev-Exp Region 1'!AE$47","v":{"v":0,"d":"$0.00"}},{"$f":"'MMA Rev-Exp Region 1'!AF$47","v":{"v":0,"d":"$0.00"}},{"$f":"'MMA Rev-Exp Region 1'!AG$47","v":{"v":0,"d":"$0.00"}},{"$f":"'MMA Rev-Exp Region 1'!AH$47","v":{"v":0,"d":"$0.00"}},{"$f":"'MMA Rev-Exp Region 1'!AI$47","v":{"v":0,"d":"$0.00"}},{"$f":"'MMA Rev-Exp Region 1'!AJ$47","v":{"v":0,"d":"$0.00"}},{"v":0,"d":"$0.00"}]
["MMA",null,null,{"$f":"Jurat!I$1","v":0},{"$f":"Jurat!D$33","v":"00:00:00"},"Q3","2017-09-30","Region 1","Operating Expense","Medical Benefits Expense","Dental Services",6.3,"Ending IBNP for Dental Services",{"$f":"'MMA Rev-Exp Region 1'!Z$48","v":{"v":0,"d":"$0.00"}},{"$f":"'MMA Rev-Exp Region 1'!AA$48","v":{"v":0,"d":"$0.00"}},{"$f":"'MMA Rev-Exp Region 1'!AB$48","v":{"v":0,"d":"$0.00"}},{"$f":"'MMA Rev-Exp Region 1'!AC$48","v":{"v":0,"d":"$0.00"}},{"$f":"'MMA Rev-Exp Region 1'!AD$48","v":{"v":0,"d":"$0.00"}},{"$f":"'MMA Rev-Exp Region 1'!AE$48","v":{"v":0,"d":"$0.00"}},{"$f":"'MMA Rev-Exp Region 1'!AF$48","v":{"v":0,"d":"$0.00"}},{"$f":"'MMA Rev-Exp Region 1'!AG$48","v":{"v":0,"d":"$0.00"}},{"$f":"'MMA Rev-Exp Region 1'!AH$48","v":{"v":0,"d":"$0.00"}},{"$f":"'MMA Rev-Exp Region 1'!AI$48","v":{"v":0,"d":"$0.00"}},{"$f":"'MMA Rev-Exp Region 1'!AJ$48","v":{"v":0,"d":"$0.00"}},{"v":0,"d":"$0.00"}]
["MMA",null,null,{"$f":"Jurat!I$1","v":0},{"$f":"Jurat!D$33","v":"00:00:00"},"Q3","2017-09-30","Region 1","Operating Expense","Medical Benefits Expense","Dental Services","6.4","Dental Settlements",{"$f":"'MMA Rev-Exp Region 1'!Z$49","v":{"v":0,"d":"$0.00"}},{"$f":"'MMA Rev-Exp Region 1'!AA$49","v":{"v":0,"d":"$0.00"}},{"$f":"'MMA Rev-Exp Region 1'!AB$49","v":{"v":0,"d":"$0.00"}},{"$f":"'MMA Rev-Exp Region 1'!AC$49","v":{"v":0,"d":"$0.00"}},{"$f":"'MMA Rev-Exp Region 1'!AD$49","v":{"v":0,"d":"$0.00"}},{"$f":"'MMA Rev-Exp Region 1'!AE$49","v":{"v":0,"d":"$0.00"}},{"$f":"'MMA Rev-Exp Region 1'!AF$49","v":{"v":0,"d":"$0.00"}},{"$f":"'MMA Rev-Exp Region 1'!AG$49","v":{"v":0,"d":"$0.00"}},{"$f":"'MMA Rev-Exp Region 1'!AH$49","v":{"v":0,"d":"$0.00"}},{"$f":"'MMA Rev-Exp Region 1'!AI$49","v":{"v":0,"d":"$0.00"}},{"$f":"'MMA Rev-Exp Region 1'!AJ$49","v":{"v":0,"d":"$0.00"}},{"v":0,"d":"$0.00"}]
["MMA",null,null,{"$f":"Jurat!I$1","v":0},{"$f":"Jurat!D$33","v":"00:00:00"},"Q3","2017-09-30","Region 1","Operating Expense","Medical Benefits Expense","Transportation Services",7.1,"Transportation FFS",{"$f":"'MMA Rev-Exp Region 1'!Z$51","v":{"v":0,"d":"$0.00"}},{"$f":"'MMA Rev-Exp Region 1'!AA$51","v":{"v":0,"d":"$0.00"}},{"$f":"'MMA Rev-Exp Region 1'!AB$51","v":{"v":0,"d":"$0.00"}},{"$f":"'MMA Rev-Exp Region 1'!AC$51","v":{"v":0,"d":"$0.00"}},{"$f":"'MMA Rev-Exp Region 1'!AD$51","v":{"v":0,"d":"$0.00"}},{"$f":"'MMA Rev-Exp Region 1'!AE$51","v":{"v":0,"d":"$0.00"}},{"$f":"'MMA Rev-Exp Region 1'!AF$51","v":{"v":0,"d":"$0.00"}},{"$f":"'MMA Rev-Exp Region 1'!AG$51","v":{"v":0,"d":"$0.00"}},{"$f":"'MMA Rev-Exp Region 1'!AH$51","v":{"v":0,"d":"$0.00"}},{"$f":"'MMA Rev-Exp Region 1'!AI$51","v":{"v":0,"d":"$0.00"}},{"$f":"'MMA Rev-Exp Region 1'!AJ$51","v":{"v":0,"d":"$0.00"}},{"v":0,"d":"$0.00"}]
["MMA",null,null,{"$f":"Jurat!I$1","v":0},{"$f":"Jurat!D$33","v":"00:00:00"},"Q3","2017-09-30","Region 1","Operating Expense","Medical Benefits Expense","Transportation Services",7.2,"Transportation Subcapitation",{"$f":"'MMA Rev-Exp Region 1'!Z$52","v":{"v":0,"d":"$0.00"}},{"$f":"'MMA Rev-Exp Region 1'!AA$52","v":{"v":0,"d":"$0.00"}},{"$f":"'MMA Rev-Exp Region 1'!AB$52","v":{"v":0,"d":"$0.00"}},{"$f":"'MMA Rev-Exp Region 1'!AC$52","v":{"v":0,"d":"$0.00"}},{"$f":"'MMA Rev-Exp Region 1'!AD$52","v":{"v":0,"d":"$0.00"}},{"$f":"'MMA Rev-Exp Region 1'!AE$52","v":{"v":0,"d":"$0.00"}},{"$f":"'MMA Rev-Exp Region 1'!AF$52","v":{"v":0,"d":"$0.00"}},{"$f":"'MMA Rev-Exp Region 1'!AG$52","v":{"v":0,"d":"$0.00"}},{"$f":"'MMA Rev-Exp Region 1'!AH$52","v":{"v":0,"d":"$0.00"}},{"$f":"'MMA Rev-Exp Region 1'!AI$52","v":{"v":0,"d":"$0.00"}},{"$f":"'MMA Rev-Exp Region 1'!AJ$52","v":{"v":0,"d":"$0.00"}},{"v":0,"d":"$0.00"}]
["MMA",null,null,{"$f":"Jurat!I$1","v":0},{"$f":"Jurat!D$33","v":"00:00:00"},"Q3","2017-09-30","Region 1","Operating Expense","Medical Benefits Expense","Transportation Services",7.3,"Ending IBNP for Transportation",{"$f":"'MMA Rev-Exp Region 1'!Z$53","v":{"v":0,"d":"$0.00"}},{"$f":"'MMA Rev-Exp Region 1'!AA$53","v":{"v":0,"d":"$0.00"}},{"$f":"'MMA Rev-Exp Region 1'!AB$53","v":{"v":0,"d":"$0.00"}},{"$f":"'MMA Rev-Exp Region 1'!AC$53","v":{"v":0,"d":"$0.00"}},{"$f":"'MMA Rev-Exp Region 1'!AD$53","v":{"v":0,"d":"$0.00"}},{"$f":"'MMA Rev-Exp Region 1'!AE$53","v":{"v":0,"d":"$0.00"}},{"$f":"'MMA Rev-Exp Region 1'!AF$53","v":{"v":0,"d":"$0.00"}},{"$f":"'MMA Rev-Exp Region 1'!AG$53","v":{"v":0,"d":"$0.00"}},{"$f":"'MMA Rev-Exp Region 1'!AH$53","v":{"v":0,"d":"$0.00"}},{"$f":"'MMA Rev-Exp Region 1'!AI$53","v":{"v":0,"d":"$0.00"}},{"$f":"'MMA Rev-Exp Region 1'!AJ$53","v":{"v":0,"d":"$0.00"}},{"v":0,"d":"$0.00"}]
["MMA",null,null,{"$f":"Jurat!I$1","v":0},{"$f":"Jurat!D$33","v":"00:00:00"},"Q3","2017-09-30","Region 1","Operating Expense","Medical Benefits Expense","Transportation Services","7.4","Transportation Settlements",{"$f":"'MMA Rev-Exp Region 1'!Z$54","v":{"v":0,"d":"$0.00"}},{"$f":"'MMA Rev-Exp Region 1'!AA$54","v":{"v":0,"d":"$0.00"}},{"$f":"'MMA Rev-Exp Region 1'!AB$54","v":{"v":0,"d":"$0.00"}},{"$f":"'MMA Rev-Exp Region 1'!AC$54","v":{"v":0,"d":"$0.00"}},{"$f":"'MMA Rev-Exp Region 1'!AD$54","v":{"v":0,"d":"$0.00"}},{"$f":"'MMA Rev-Exp Region 1'!AE$54","v":{"v":0,"d":"$0.00"}},{"$f":"'MMA Rev-Exp Region 1'!AF$54","v":{"v":0,"d":"$0.00"}},{"$f":"'MMA Rev-Exp Region 1'!AG$54","v":{"v":0,"d":"$0.00"}},{"$f":"'MMA Rev-Exp Region 1'!AH$54","v":{"v":0,"d":"$0.00"}},{"$f":"'MMA Rev-Exp Region 1'!AI$54","v":{"v":0,"d":"$0.00"}},{"$f":"'MMA Rev-Exp Region 1'!AJ$54","v":{"v":0,"d":"$0.00"}},{"v":0,"d":"$0.00"}]
["MMA",null,null,{"$f":"Jurat!I$1","v":0},{"$f":"Jurat!D$33","v":"00:00:00"},"Q3","2017-09-30","Region 1","Operating Expense","Medical Benefits Expense","Pharmacy Services",8.1,"Prescription Drugs FFS",{"$f":"'MMA Rev-Exp Region 1'!Z$56","v":{"v":0,"d":"$0.00"}},{"$f":"'MMA Rev-Exp Region 1'!AA$56","v":{"v":0,"d":"$0.00"}},{"$f":"'MMA Rev-Exp Region 1'!AB$56","v":{"v":0,"d":"$0.00"}},{"$f":"'MMA Rev-Exp Region 1'!AC$56","v":{"v":0,"d":"$0.00"}},{"$f":"'MMA Rev-Exp Region 1'!AD$56","v":{"v":0,"d":"$0.00"}},{"$f":"'MMA Rev-Exp Region 1'!AE$56","v":{"v":0,"d":"$0.00"}},{"$f":"'MMA Rev-Exp Region 1'!AF$56","v":{"v":0,"d":"$0.00"}},{"$f":"'MMA Rev-Exp Region 1'!AG$56","v":{"v":0,"d":"$0.00"}},{"$f":"'MMA Rev-Exp Region 1'!AH$56","v":{"v":0,"d":"$0.00"}},{"$f":"'MMA Rev-Exp Region 1'!AI$56","v":{"v":0,"d":"$0.00"}},{"$f":"'MMA Rev-Exp Region 1'!AJ$56","v":{"v":0,"d":"$0.00"}},{"v":0,"d":"$0.00"}]
["MMA",null,null,{"$f":"Jurat!I$1","v":0},{"$f":"Jurat!D$33","v":"00:00:00"},"Q3","2017-09-30","Region 1","Operating Expense","Medical Benefits Expense","Pharmacy Services","8.2","Hepatitis C Prescription Drug FFS",{"$f":"'MMA Rev-Exp Region 1'!Z$57","v":{"v":0,"d":"$0.00"}},{"$f":"'MMA Rev-Exp Region 1'!AA$57","v":{"v":0,"d":"$0.00"}},{"$f":"'MMA Rev-Exp Region 1'!AB$57","v":{"v":0,"d":"$0.00"}},{"$f":"'MMA Rev-Exp Region 1'!AC$57","v":{"v":0,"d":"$0.00"}},{"$f":"'MMA Rev-Exp Region 1'!AD$57","v":{"v":0,"d":"$0.00"}},{"$f":"'MMA Rev-Exp Region 1'!AE$57","v":{"v":0,"d":"$0.00"}},{"$f":"'MMA Rev-Exp Region 1'!AF$57","v":{"v":0,"d":"$0.00"}},{"$f":"'MMA Rev-Exp Region 1'!AG$57","v":{"v":0,"d":"$0.00"}},{"$f":"'MMA Rev-Exp Region 1'!AH$57","v":{"v":0,"d":"$0.00"}},{"$f":"'MMA Rev-Exp Region 1'!AI$57","v":{"v":0,"d":"$0.00"}},{"$f":"'MMA Rev-Exp Region 1'!AJ$57","v":{"v":0,"d":"$0.00"}},{"v":0,"d":"$0.00"}]
["MMA",null,null,{"$f":"Jurat!I$1","v":0},{"$f":"Jurat!D$33","v":"00:00:00"},"Q3","2017-09-30","Region 1","Operating Expense","Medical Benefits Expense","Pharmacy Services","8.3","Ending IBNP for Prescription Drugs",{"$f":"'MMA Rev-Exp Region 1'!Z$58","v":{"v":0,"d":"$0.00"}},{"$f":"'MMA Rev-Exp Region 1'!AA$58","v":{"v":0,"d":"$0.00"}},{"$f":"'MMA Rev-Exp Region 1'!AB$58","v":{"v":0,"d":"$0.00"}},{"$f":"'MMA Rev-Exp Region 1'!AC$58","v":{"v":0,"d":"$0.00"}},{"$f":"'MMA Rev-Exp Region 1'!AD$58","v":{"v":0,"d":"$0.00"}},{"$f":"'MMA Rev-Exp Region 1'!AE$58","v":{"v":0,"d":"$0.00"}},{"$f":"'MMA Rev-Exp Region 1'!AF$58","v":{"v":0,"d":"$0.00"}},{"$f":"'MMA Rev-Exp Region 1'!AG$58","v":{"v":0,"d":"$0.00"}},{"$f":"'MMA Rev-Exp Region 1'!AH$58","v":{"v":0,"d":"$0.00"}},{"$f":"'MMA Rev-Exp Region 1'!AI$58","v":{"v":0,"d":"$0.00"}},{"$f":"'MMA Rev-Exp Region 1'!AJ$58","v":{"v":0,"d":"$0.00"}},{"v":0,"d":"$0.00"}]
["MMA",null,null,{"$f":"Jurat!I$1","v":0},{"$f":"Jurat!D$33","v":"00:00:00"},"Q3","2017-09-30","Region 1","Operating Expense","Medical Benefits Expense","Pharmacy Services","8.4","Prescription Drug Rebates ",{"$f":"'MMA Rev-Exp Region 1'!Z$59","v":{"v":0,"d":"$0.00"}},{"$f":"'MMA Rev-Exp Region 1'!AA$59","v":{"v":0,"d":"$0.00"}},{"$f":"'MMA Rev-Exp Region 1'!AB$59","v":{"v":0,"d":"$0.00"}},{"$f":"'MMA Rev-Exp Region 1'!AC$59","v":{"v":0,"d":"$0.00"}},{"$f":"'MMA Rev-Exp Region 1'!AD$59","v":{"v":0,"d":"$0.00"}},{"$f":"'MMA Rev-Exp Region 1'!AE$59","v":{"v":0,"d":"$0.00"}},{"$f":"'MMA Rev-Exp Region 1'!AF$59","v":{"v":0,"d":"$0.00"}},{"$f":"'MMA Rev-Exp Region 1'!AG$59","v":{"v":0,"d":"$0.00"}},{"$f":"'MMA Rev-Exp Region 1'!AH$59","v":{"v":0,"d":"$0.00"}},{"$f":"'MMA Rev-Exp Region 1'!AI$59","v":{"v":0,"d":"$0.00"}},{"$f":"'MMA Rev-Exp Region 1'!AJ$59","v":{"v":0,"d":"$0.00"}},{"v":0,"d":"$0.00"}]
["MMA",null,null,{"$f":"Jurat!I$1","v":0},{"$f":"Jurat!D$33","v":"00:00:00"},"Q3","2017-09-30","Region 1","Operating Expense","Medical Benefits Expense","Pharmacy Services","8.5","Ending accrual for Rebates receivable",{"$f":"'MMA Rev-Exp Region 1'!Z$60","v":{"v":0,"d":"$0.00"}},{"$f":"'MMA Rev-Exp Region 1'!AA$60","v":{"v":0,"d":"$0.00"}},{"$f":"'MMA Rev-Exp Region 1'!AB$60","v":{"v":0,"d":"$0.00"}},{"$f":"'MMA Rev-Exp Region 1'!AC$60","v":{"v":0,"d":"$0.00"}},{"$f":"'MMA Rev-Exp Region 1'!AD$60","v":{"v":0,"d":"$0.00"}},{"$f":"'MMA Rev-Exp Region 1'!AE$60","v":{"v":0,"d":"$0.00"}},{"$f":"'MMA Rev-Exp Region 1'!AF$60","v":{"v":0,"d":"$0.00"}},{"$f":"'MMA Rev-Exp Region 1'!AG$60","v":{"v":0,"d":"$0.00"}},{"$f":"'MMA Rev-Exp Region 1'!AH$60","v":{"v":0,"d":"$0.00"}},{"$f":"'MMA Rev-Exp Region 1'!AI$60","v":{"v":0,"d":"$0.00"}},{"$f":"'MMA Rev-Exp Region 1'!AJ$60","v":{"v":0,"d":"$0.00"}},{"v":0,"d":"$0.00"}]
["MMA",null,null,{"$f":"Jurat!I$1","v":0},{"$f":"Jurat!D$33","v":"00:00:00"},"Q3","2017-09-30","Region 1","Operating Expense","Medical Benefits Expense","Pharmacy Services","8.6","Prescription Drugs Subcapitation",{"$f":"'MMA Rev-Exp Region 1'!Z$61","v":{"v":0,"d":"$0.00"}},{"$f":"'MMA Rev-Exp Region 1'!AA$61","v":{"v":0,"d":"$0.00"}},{"$f":"'MMA Rev-Exp Region 1'!AB$61","v":{"v":0,"d":"$0.00"}},{"$f":"'MMA Rev-Exp Region 1'!AC$61","v":{"v":0,"d":"$0.00"}},{"$f":"'MMA Rev-Exp Region 1'!AD$61","v":{"v":0,"d":"$0.00"}},{"$f":"'MMA Rev-Exp Region 1'!AE$61","v":{"v":0,"d":"$0.00"}},{"$f":"'MMA Rev-Exp Region 1'!AF$61","v":{"v":0,"d":"$0.00"}},{"$f":"'MMA Rev-Exp Region 1'!AG$61","v":{"v":0,"d":"$0.00"}},{"$f":"'MMA Rev-Exp Region 1'!AH$61","v":{"v":0,"d":"$0.00"}},{"$f":"'MMA Rev-Exp Region 1'!AI$61","v":{"v":0,"d":"$0.00"}},{"$f":"'MMA Rev-Exp Region 1'!AJ$61","v":{"v":0,"d":"$0.00"}},{"v":0,"d":"$0.00"}]
["MMA",null,null,{"$f":"Jurat!I$1","v":0},{"$f":"Jurat!D$33","v":"00:00:00"},"Q3","2017-09-30","Region 1","Operating Expense","Medical Benefits Expense","Pharmacy Services","8.7","Prescription Drug Settlements",{"$f":"'MMA Rev-Exp Region 1'!Z$62","v":{"v":0,"d":"$0.00"}},{"$f":"'MMA Rev-Exp Region 1'!AA$62","v":{"v":0,"d":"$0.00"}},{"$f":"'MMA Rev-Exp Region 1'!AB$62","v":{"v":0,"d":"$0.00"}},{"$f":"'MMA Rev-Exp Region 1'!AC$62","v":{"v":0,"d":"$0.00"}},{"$f":"'MMA Rev-Exp Region 1'!AD$62","v":{"v":0,"d":"$0.00"}},{"$f":"'MMA Rev-Exp Region 1'!AE$62","v":{"v":0,"d":"$0.00"}},{"$f":"'MMA Rev-Exp Region 1'!AF$62","v":{"v":0,"d":"$0.00"}},{"$f":"'MMA Rev-Exp Region 1'!AG$62","v":{"v":0,"d":"$0.00"}},{"$f":"'MMA Rev-Exp Region 1'!AH$62","v":{"v":0,"d":"$0.00"}},{"$f":"'MMA Rev-Exp Region 1'!AI$62","v":{"v":0,"d":"$0.00"}},{"$f":"'MMA Rev-Exp Region 1'!AJ$62","v":{"v":0,"d":"$0.00"}},{"v":0,"d":"$0.00"}]
["MMA",null,null,{"$f":"Jurat!I$1","v":0},{"$f":"Jurat!D$33","v":"00:00:00"},"Q3","2017-09-30","Region 1","Operating Expense","Medical Benefits Expense","Other MMA Services",9.1,"Home Health, Private Duty Nursing, Personal Care FFS",{"$f":"'MMA Rev-Exp Region 1'!Z$64","v":{"v":0,"d":"$0.00"}},{"$f":"'MMA Rev-Exp Region 1'!AA$64","v":{"v":0,"d":"$0.00"}},{"$f":"'MMA Rev-Exp Region 1'!AB$64","v":{"v":0,"d":"$0.00"}},{"$f":"'MMA Rev-Exp Region 1'!AC$64","v":{"v":0,"d":"$0.00"}},{"$f":"'MMA Rev-Exp Region 1'!AD$64","v":{"v":0,"d":"$0.00"}},{"$f":"'MMA Rev-Exp Region 1'!AE$64","v":{"v":0,"d":"$0.00"}},{"$f":"'MMA Rev-Exp Region 1'!AF$64","v":{"v":0,"d":"$0.00"}},{"$f":"'MMA Rev-Exp Region 1'!AG$64","v":{"v":0,"d":"$0.00"}},{"$f":"'MMA Rev-Exp Region 1'!AH$64","v":{"v":0,"d":"$0.00"}},{"$f":"'MMA Rev-Exp Region 1'!AI$64","v":{"v":0,"d":"$0.00"}},{"$f":"'MMA Rev-Exp Region 1'!AJ$64","v":{"v":0,"d":"$0.00"}},{"v":0,"d":"$0.00"}]
["MMA",null,null,{"$f":"Jurat!I$1","v":0},{"$f":"Jurat!D$33","v":"00:00:00"},"Q3","2017-09-30","Region 1","Operating Expense","Medical Benefits Expense","Other MMA Services","9.2","Hospice FFS",{"$f":"'MMA Rev-Exp Region 1'!Z$65","v":{"v":0,"d":"$0.00"}},{"$f":"'MMA Rev-Exp Region 1'!AA$65","v":{"v":0,"d":"$0.00"}},{"$f":"'MMA Rev-Exp Region 1'!AB$65","v":{"v":0,"d":"$0.00"}},{"$f":"'MMA Rev-Exp Region 1'!AC$65","v":{"v":0,"d":"$0.00"}},{"$f":"'MMA Rev-Exp Region 1'!AD$65","v":{"v":0,"d":"$0.00"}},{"$f":"'MMA Rev-Exp Region 1'!AE$65","v":{"v":0,"d":"$0.00"}},{"$f":"'MMA Rev-Exp Region 1'!AF$65","v":{"v":0,"d":"$0.00"}},{"$f":"'MMA Rev-Exp Region 1'!AG$65","v":{"v":0,"d":"$0.00"}},{"$f":"'MMA Rev-Exp Region 1'!AH$65","v":{"v":0,"d":"$0.00"}},{"$f":"'MMA Rev-Exp Region 1'!AI$65","v":{"v":0,"d":"$0.00"}},{"$f":"'MMA Rev-Exp Region 1'!AJ$65","v":{"v":0,"d":"$0.00"}},{"v":0,"d":"$0.00"}]
["MMA",null,null,{"$f":"Jurat!I$1","v":0},{"$f":"Jurat!D$33","v":"00:00:00"},"Q3","2017-09-30","Region 1","Operating Expense","Medical Benefits Expense","Other MMA Services","9.3","DME FFS",{"$f":"'MMA Rev-Exp Region 1'!Z$66","v":{"v":0,"d":"$0.00"}},{"$f":"'MMA Rev-Exp Region 1'!AA$66","v":{"v":0,"d":"$0.00"}},{"$f":"'MMA Rev-Exp Region 1'!AB$66","v":{"v":0,"d":"$0.00"}},{"$f":"'MMA Rev-Exp Region 1'!AC$66","v":{"v":0,"d":"$0.00"}},{"$f":"'MMA Rev-Exp Region 1'!AD$66","v":{"v":0,"d":"$0.00"}},{"$f":"'MMA Rev-Exp Region 1'!AE$66","v":{"v":0,"d":"$0.00"}},{"$f":"'MMA Rev-Exp Region 1'!AF$66","v":{"v":0,"d":"$0.00"}},{"$f":"'MMA Rev-Exp Region 1'!AG$66","v":{"v":0,"d":"$0.00"}},{"$f":"'MMA Rev-Exp Region 1'!AH$66","v":{"v":0,"d":"$0.00"}},{"$f":"'MMA Rev-Exp Region 1'!AI$66","v":{"v":0,"d":"$0.00"}},{"$f":"'MMA Rev-Exp Region 1'!AJ$66","v":{"v":0,"d":"$0.00"}},{"v":0,"d":"$0.00"}]
["MMA",null,null,{"$f":"Jurat!I$1","v":0},{"$f":"Jurat!D$33","v":"00:00:00"},"Q3","2017-09-30","Region 1","Operating Expense","Medical Benefits Expense","Other MMA Services","9.4","Other State Plan Services FFS",{"$f":"'MMA Rev-Exp Region 1'!Z$67","v":{"v":0,"d":"$0.00"}},{"$f":"'MMA Rev-Exp Region 1'!AA$67","v":{"v":0,"d":"$0.00"}},{"$f":"'MMA Rev-Exp Region 1'!AB$67","v":{"v":0,"d":"$0.00"}},{"$f":"'MMA Rev-Exp Region 1'!AC$67","v":{"v":0,"d":"$0.00"}},{"$f":"'MMA Rev-Exp Region 1'!AD$67","v":{"v":0,"d":"$0.00"}},{"$f":"'MMA Rev-Exp Region 1'!AE$67","v":{"v":0,"d":"$0.00"}},{"$f":"'MMA Rev-Exp Region 1'!AF$67","v":{"v":0,"d":"$0.00"}},{"$f":"'MMA Rev-Exp Region 1'!AG$67","v":{"v":0,"d":"$0.00"}},{"$f":"'MMA Rev-Exp Region 1'!AH$67","v":{"v":0,"d":"$0.00"}},{"$f":"'MMA Rev-Exp Region 1'!AI$67","v":{"v":0,"d":"$0.00"}},{"$f":"'MMA Rev-Exp Region 1'!AJ$67","v":{"v":0,"d":"$0.00"}},{"v":0,"d":"$0.00"}]
["MMA",null,null,{"$f":"Jurat!I$1","v":0},{"$f":"Jurat!D$33","v":"00:00:00"},"Q3","2017-09-30","Region 1","Operating Expense","Medical Benefits Expense","Other MMA Services","9.5","Other Services Subcapitation",{"$f":"'MMA Rev-Exp Region 1'!Z$68","v":{"v":0,"d":"$0.00"}},{"$f":"'MMA Rev-Exp Region 1'!AA$68","v":{"v":0,"d":"$0.00"}},{"$f":"'MMA Rev-Exp Region 1'!AB$68","v":{"v":0,"d":"$0.00"}},{"$f":"'MMA Rev-Exp Region 1'!AC$68","v":{"v":0,"d":"$0.00"}},{"$f":"'MMA Rev-Exp Region 1'!AD$68","v":{"v":0,"d":"$0.00"}},{"$f":"'MMA Rev-Exp Region 1'!AE$68","v":{"v":0,"d":"$0.00"}},{"$f":"'MMA Rev-Exp Region 1'!AF$68","v":{"v":0,"d":"$0.00"}},{"$f":"'MMA Rev-Exp Region 1'!AG$68","v":{"v":0,"d":"$0.00"}},{"$f":"'MMA Rev-Exp Region 1'!AH$68","v":{"v":0,"d":"$0.00"}},{"$f":"'MMA Rev-Exp Region 1'!AI$68","v":{"v":0,"d":"$0.00"}},{"$f":"'MMA Rev-Exp Region 1'!AJ$68","v":{"v":0,"d":"$0.00"}},{"v":0,"d":"$0.00"}]
["MMA",null,null,{"$f":"Jurat!I$1","v":0},{"$f":"Jurat!D$33","v":"00:00:00"},"Q3","2017-09-30","Region 1","Operating Expense","Medical Benefits Expense","Other MMA Services","9.6","Ending IBNP for Other Services",{"$f":"'MMA Rev-Exp Region 1'!Z$69","v":{"v":0,"d":"$0.00"}},{"$f":"'MMA Rev-Exp Region 1'!AA$69","v":{"v":0,"d":"$0.00"}},{"$f":"'MMA Rev-Exp Region 1'!AB$69","v":{"v":0,"d":"$0.00"}},{"$f":"'MMA Rev-Exp Region 1'!AC$69","v":{"v":0,"d":"$0.00"}},{"$f":"'MMA Rev-Exp Region 1'!AD$69","v":{"v":0,"d":"$0.00"}},{"$f":"'MMA Rev-Exp Region 1'!AE$69","v":{"v":0,"d":"$0.00"}},{"$f":"'MMA Rev-Exp Region 1'!AF$69","v":{"v":0,"d":"$0.00"}},{"$f":"'MMA Rev-Exp Region 1'!AG$69","v":{"v":0,"d":"$0.00"}},{"$f":"'MMA Rev-Exp Region 1'!AH$69","v":{"v":0,"d":"$0.00"}},{"$f":"'MMA Rev-Exp Region 1'!AI$69","v":{"v":0,"d":"$0.00"}},{"$f":"'MMA Rev-Exp Region 1'!AJ$69","v":{"v":0,"d":"$0.00"}},{"v":0,"d":"$0.00"}]
["MMA",null,null,{"$f":"Jurat!I$1","v":0},{"$f":"Jurat!D$33","v":"00:00:00"},"Q3","2017-09-30","Region 1","Operating Expense","Medical Benefits Expense","Other MMA Services","9.7","Other Services Settlements",{"$f":"'MMA Rev-Exp Region 1'!Z$70","v":{"v":0,"d":"$0.00"}},{"$f":"'MMA Rev-Exp Region 1'!AA$70","v":{"v":0,"d":"$0.00"}},{"$f":"'MMA Rev-Exp Region 1'!AB$70","v":{"v":0,"d":"$0.00"}},{"$f":"'MMA Rev-Exp Region 1'!AC$70","v":{"v":0,"d":"$0.00"}},{"$f":"'MMA Rev-Exp Region 1'!AD$70","v":{"v":0,"d":"$0.00"}},{"$f":"'MMA Rev-Exp Region 1'!AE$70","v":{"v":0,"d":"$0.00"}},{"$f":"'MMA Rev-Exp Region 1'!AF$70","v":{"v":0,"d":"$0.00"}},{"$f":"'MMA Rev-Exp Region 1'!AG$70","v":{"v":0,"d":"$0.00"}},{"$f":"'MMA Rev-Exp Region 1'!AH$70","v":{"v":0,"d":"$0.00"}},{"$f":"'MMA Rev-Exp Region 1'!AI$70","v":{"v":0,"d":"$0.00"}},{"$f":"'MMA Rev-Exp Region 1'!AJ$70","v":{"v":0,"d":"$0.00"}},{"v":0,"d":"$0.00"}]
["MMA",null,null,{"$f":"Jurat!I$1","v":0},{"$f":"Jurat!D$33","v":"00:00:00"},"Q3","2017-09-30","Region 1","Operating Expense","Medical Benefits Expense","Expanded Benefits","10.1","Expanded Benefits FFS",{"$f":"'MMA Rev-Exp Region 1'!Z$72","v":{"v":0,"d":"$0.00"}},{"$f":"'MMA Rev-Exp Region 1'!AA$72","v":{"v":0,"d":"$0.00"}},{"$f":"'MMA Rev-Exp Region 1'!AB$72","v":{"v":0,"d":"$0.00"}},{"$f":"'MMA Rev-Exp Region 1'!AC$72","v":{"v":0,"d":"$0.00"}},{"$f":"'MMA Rev-Exp Region 1'!AD$72","v":{"v":0,"d":"$0.00"}},{"$f":"'MMA Rev-Exp Region 1'!AE$72","v":{"v":0,"d":"$0.00"}},{"$f":"'MMA Rev-Exp Region 1'!AF$72","v":{"v":0,"d":"$0.00"}},{"$f":"'MMA Rev-Exp Region 1'!AG$72","v":{"v":0,"d":"$0.00"}},{"$f":"'MMA Rev-Exp Region 1'!AH$72","v":{"v":0,"d":"$0.00"}},{"$f":"'MMA Rev-Exp Region 1'!AI$72","v":{"v":0,"d":"$0.00"}},{"$f":"'MMA Rev-Exp Region 1'!AJ$72","v":{"v":0,"d":"$0.00"}},{"v":0,"d":"$0.00"}]
["MMA",null,null,{"$f":"Jurat!I$1","v":0},{"$f":"Jurat!D$33","v":"00:00:00"},"Q3","2017-09-30","Region 1","Operating Expense","Medical Benefits Expense","Expanded Benefits","10.2","Expanded benefits Subcapitation",{"$f":"'MMA Rev-Exp Region 1'!Z$73","v":{"v":0,"d":"$0.00"}},{"$f":"'MMA Rev-Exp Region 1'!AA$73","v":{"v":0,"d":"$0.00"}},{"$f":"'MMA Rev-Exp Region 1'!AB$73","v":{"v":0,"d":"$0.00"}},{"$f":"'MMA Rev-Exp Region 1'!AC$73","v":{"v":0,"d":"$0.00"}},{"$f":"'MMA Rev-Exp Region 1'!AD$73","v":{"v":0,"d":"$0.00"}},{"$f":"'MMA Rev-Exp Region 1'!AE$73","v":{"v":0,"d":"$0.00"}},{"$f":"'MMA Rev-Exp Region 1'!AF$73","v":{"v":0,"d":"$0.00"}},{"$f":"'MMA Rev-Exp Region 1'!AG$73","v":{"v":0,"d":"$0.00"}},{"$f":"'MMA Rev-Exp Region 1'!AH$73","v":{"v":0,"d":"$0.00"}},{"$f":"'MMA Rev-Exp Region 1'!AI$73","v":{"v":0,"d":"$0.00"}},{"$f":"'MMA Rev-Exp Region 1'!AJ$73","v":{"v":0,"d":"$0.00"}},{"v":0,"d":"$0.00"}]
["MMA",null,null,{"$f":"Jurat!I$1","v":0},{"$f":"Jurat!D$33","v":"00:00:00"},"Q3","2017-09-30","Region 1","Operating Expense","Medical Benefits Expense","Expanded Benefits","10.3","Ending IBNP for Expanded Benefits",{"$f":"'MMA Rev-Exp Region 1'!Z$74","v":{"v":0,"d":"$0.00"}},{"$f":"'MMA Rev-Exp Region 1'!AA$74","v":{"v":0,"d":"$0.00"}},{"$f":"'MMA Rev-Exp Region 1'!AB$74","v":{"v":0,"d":"$0.00"}},{"$f":"'MMA Rev-Exp Region 1'!AC$74","v":{"v":0,"d":"$0.00"}},{"$f":"'MMA Rev-Exp Region 1'!AD$74","v":{"v":0,"d":"$0.00"}},{"$f":"'MMA Rev-Exp Region 1'!AE$74","v":{"v":0,"d":"$0.00"}},{"$f":"'MMA Rev-Exp Region 1'!AF$74","v":{"v":0,"d":"$0.00"}},{"$f":"'MMA Rev-Exp Region 1'!AG$74","v":{"v":0,"d":"$0.00"}},{"$f":"'MMA Rev-Exp Region 1'!AH$74","v":{"v":0,"d":"$0.00"}},{"$f":"'MMA Rev-Exp Region 1'!AI$74","v":{"v":0,"d":"$0.00"}},{"$f":"'MMA Rev-Exp Region 1'!AJ$74","v":{"v":0,"d":"$0.00"}},{"v":0,"d":"$0.00"}]
["MMA",null,null,{"$f":"Jurat!I$1","v":0},{"$f":"Jurat!D$33","v":"00:00:00"},"Q3","2017-09-30","Region 1","Operating Expense","Medical Benefits Expense","Expanded Benefits","10.4","Expanded Benefits Settlements",{"$f":"'MMA Rev-Exp Region 1'!Z$75","v":{"v":0,"d":"$0.00"}},{"$f":"'MMA Rev-Exp Region 1'!AA$75","v":{"v":0,"d":"$0.00"}},{"$f":"'MMA Rev-Exp Region 1'!AB$75","v":{"v":0,"d":"$0.00"}},{"$f":"'MMA Rev-Exp Region 1'!AC$75","v":{"v":0,"d":"$0.00"}},{"$f":"'MMA Rev-Exp Region 1'!AD$75","v":{"v":0,"d":"$0.00"}},{"$f":"'MMA Rev-Exp Region 1'!AE$75","v":{"v":0,"d":"$0.00"}},{"$f":"'MMA Rev-Exp Region 1'!AF$75","v":{"v":0,"d":"$0.00"}},{"$f":"'MMA Rev-Exp Region 1'!AG$75","v":{"v":0,"d":"$0.00"}},{"$f":"'MMA Rev-Exp Region 1'!AH$75","v":{"v":0,"d":"$0.00"}},{"$f":"'MMA Rev-Exp Region 1'!AI$75","v":{"v":0,"d":"$0.00"}},{"$f":"'MMA Rev-Exp Region 1'!AJ$75","v":{"v":0,"d":"$0.00"}},{"v":0,"d":"$0.00"}]
["MMA",null,null,{"$f":"Jurat!I$1","v":0},{"$f":"Jurat!D$33","v":"00:00:00"},"Q3","2017-09-30","Region 1","Operating Expense","Medical Benefits Expense","Other Medical","11.5","TPL & Fraud/Abuse Recoveries",{"$f":"'MMA Rev-Exp Region 1'!Z$81","v":{"v":0,"d":"$0.00"}},{"$f":"'MMA Rev-Exp Region 1'!AA$81","v":{"v":0,"d":"$0.00"}},{"$f":"'MMA Rev-Exp Region 1'!AB$81","v":{"v":0,"d":"$0.00"}},{"$f":"'MMA Rev-Exp Region 1'!AC$81","v":{"v":0,"d":"$0.00"}},{"$f":"'MMA Rev-Exp Region 1'!AD$81","v":{"v":0,"d":"$0.00"}},{"$f":"'MMA Rev-Exp Region 1'!AE$81","v":{"v":0,"d":"$0.00"}},{"$f":"'MMA Rev-Exp Region 1'!AF$81","v":{"v":0,"d":"$0.00"}},{"$f":"'MMA Rev-Exp Region 1'!AG$81","v":{"v":0,"d":"$0.00"}},{"$f":"'MMA Rev-Exp Region 1'!AH$81","v":{"v":0,"d":"$0.00"}},{"$f":"'MMA Rev-Exp Region 1'!AI$81","v":{"v":0,"d":"$0.00"}},{"$f":"'MMA Rev-Exp Region 1'!AJ$81","v":{"v":0,"d":"$0.00"}},{"v":0,"d":"$0.00"}]
["MMA",null,null,{"$f":"Jurat!I$1","v":0},{"$f":"Jurat!D$33","v":"00:00:00"},"Q3","2017-09-30","Region 1","Operating Expense","Medical Benefits Expense","Other Medical","11.6.1","Premium Deficiency Reserve",{"$f":"'MMA Rev-Exp Region 1'!Z$82","v":{"v":0,"d":"$0.00"}},{"$f":"'MMA Rev-Exp Region 1'!AA$82","v":{"v":0,"d":"$0.00"}},{"$f":"'MMA Rev-Exp Region 1'!AB$82","v":{"v":0,"d":"$0.00"}},{"$f":"'MMA Rev-Exp Region 1'!AC$82","v":{"v":0,"d":"$0.00"}},{"$f":"'MMA Rev-Exp Region 1'!AD$82","v":{"v":0,"d":"$0.00"}},{"$f":"'MMA Rev-Exp Region 1'!AE$82","v":{"v":0,"d":"$0.00"}},{"$f":"'MMA Rev-Exp Region 1'!AF$82","v":{"v":0,"d":"$0.00"}},{"$f":"'MMA Rev-Exp Region 1'!AG$82","v":{"v":0,"d":"$0.00"}},{"$f":"'MMA Rev-Exp Region 1'!AH$82","v":{"v":0,"d":"$0.00"}},{"$f":"'MMA Rev-Exp Region 1'!AI$82","v":{"v":0,"d":"$0.00"}},{"$f":"'MMA Rev-Exp Region 1'!AJ$82","v":{"v":0,"d":"$0.00"}},{"v":0,"d":"$0.00"}]
["MMA",null,null,{"$f":"Jurat!I$1","v":0},{"$f":"Jurat!D$33","v":"00:00:00"},"Q3","2017-09-30","Region 1","Operating Expense","Medical Benefits Expense","Other Medical","11.8","Reinsurance Premiums",{"$f":"'MMA Rev-Exp Region 1'!Z$84","v":{"v":0,"d":"$0.00"}},{"$f":"'MMA Rev-Exp Region 1'!AA$84","v":{"v":0,"d":"$0.00"}},{"$f":"'MMA Rev-Exp Region 1'!AB$84","v":{"v":0,"d":"$0.00"}},{"$f":"'MMA Rev-Exp Region 1'!AC$84","v":{"v":0,"d":"$0.00"}},{"$f":"'MMA Rev-Exp Region 1'!AD$84","v":{"v":0,"d":"$0.00"}},{"$f":"'MMA Rev-Exp Region 1'!AE$84","v":{"v":0,"d":"$0.00"}},{"$f":"'MMA Rev-Exp Region 1'!AF$84","v":{"v":0,"d":"$0.00"}},{"$f":"'MMA Rev-Exp Region 1'!AG$84","v":{"v":0,"d":"$0.00"}},{"$f":"'MMA Rev-Exp Region 1'!AH$84","v":{"v":0,"d":"$0.00"}},{"$f":"'MMA Rev-Exp Region 1'!AI$84","v":{"v":0,"d":"$0.00"}},{"$f":"'MMA Rev-Exp Region 1'!AJ$84","v":{"v":0,"d":"$0.00"}},{"v":0,"d":"$0.00"}]
["MMA",null,null,{"$f":"Jurat!I$1","v":0},{"$f":"Jurat!D$33","v":"00:00:00"},"Q3","2017-09-30","Region 1","Operating Expense","Medical Benefits Expense","Other Medical","11.9","Reinsurance Recoveries",{"$f":"'MMA Rev-Exp Region 1'!Z$85","v":{"v":0,"d":"$0.00"}},{"$f":"'MMA Rev-Exp Region 1'!AA$85","v":{"v":0,"d":"$0.00"}},{"$f":"'MMA Rev-Exp Region 1'!AB$85","v":{"v":0,"d":"$0.00"}},{"$f":"'MMA Rev-Exp Region 1'!AC$85","v":{"v":0,"d":"$0.00"}},{"$f":"'MMA Rev-Exp Region 1'!AD$85","v":{"v":0,"d":"$0.00"}},{"$f":"'MMA Rev-Exp Region 1'!AE$85","v":{"v":0,"d":"$0.00"}},{"$f":"'MMA Rev-Exp Region 1'!AF$85","v":{"v":0,"d":"$0.00"}},{"$f":"'MMA Rev-Exp Region 1'!AG$85","v":{"v":0,"d":"$0.00"}},{"$f":"'MMA Rev-Exp Region 1'!AH$85","v":{"v":0,"d":"$0.00"}},{"$f":"'MMA Rev-Exp Region 1'!AI$85","v":{"v":0,"d":"$0.00"}},{"$f":"'MMA Rev-Exp Region 1'!AJ$85","v":{"v":0,"d":"$0.00"}},{"v":0,"d":"$0.00"}]
["MMA",null,null,{"$f":"Jurat!I$1","v":0},{"$f":"Jurat!D$33","v":"00:00:00"},"Q3","2017-09-30","Region 1","Operating Expense","Administrative Expense","Administrative","12.1","Salaries & Benefits",{"$f":"'MMA Rev-Exp Region 1'!Z$90","v":{"v":0,"d":"$0.00"}},{"v":0,"d":"$0.00"},{"v":0,"d":"$0.00"},{"v":0,"d":"$0.00"},{"v":0,"d":"$0.00"},{"v":0,"d":"$0.00"},{"v":0,"d":"$0.00"},{"v":0,"d":"$0.00"},{"v":0,"d":"$0.00"},{"v":0,"d":"$0.00"},{"v":0,"d":"$0.00"},{"v":0,"d":"$0.00"}]
["MMA",null,null,{"$f":"Jurat!I$1","v":0},{"$f":"Jurat!D$33","v":"00:00:00"},"Q3","2017-09-30","Region 1","Operating Expense","Administrative Expense","Administrative","12.2","Administrative Services",{"$f":"'MMA Rev-Exp Region 1'!Z$91","v":{"v":0,"d":"$0.00"}},{"v":0,"d":"$0.00"},{"v":0,"d":"$0.00"},{"v":0,"d":"$0.00"},{"v":0,"d":"$0.00"},{"v":0,"d":"$0.00"},{"v":0,"d":"$0.00"},{"v":0,"d":"$0.00"},{"v":0,"d":"$0.00"},{"v":0,"d":"$0.00"},{"v":0,"d":"$0.00"},{"v":0,"d":"$0.00"}]
["MMA",null,null,{"$f":"Jurat!I$1","v":0},{"$f":"Jurat!D$33","v":"00:00:00"},"Q3","2017-09-30","Region 1","Operating Expense","Administrative Expense","Administrative","12.3","Information Systems",{"$f":"'MMA Rev-Exp Region 1'!Z$92","v":{"v":0,"d":"$0.00"}},{"v":0,"d":"$0.00"},{"v":0,"d":"$0.00"},{"v":0,"d":"$0.00"},{"v":0,"d":"$0.00"},{"v":0,"d":"$0.00"},{"v":0,"d":"$0.00"},{"v":0,"d":"$0.00"},{"v":0,"d":"$0.00"},{"v":0,"d":"$0.00"},{"v":0,"d":"$0.00"},{"v":0,"d":"$0.00"}]
["MMA",null,null,{"$f":"Jurat!I$1","v":0},{"$f":"Jurat!D$33","v":"00:00:00"},"Q3","2017-09-30","Region 1","Operating Expense","Administrative Expense","Administrative","12.4","Marketing Expenses",{"$f":"'MMA Rev-Exp Region 1'!Z$93","v":{"v":0,"d":"$0.00"}},{"v":0,"d":"$0.00"},{"v":0,"d":"$0.00"},{"v":0,"d":"$0.00"},{"v":0,"d":"$0.00"},{"v":0,"d":"$0.00"},{"v":0,"d":"$0.00"},{"v":0,"d":"$0.00"},{"v":0,"d":"$0.00"},{"v":0,"d":"$0.00"},{"v":0,"d":"$0.00"},{"v":0,"d":"$0.00"}]
["MMA",null,null,{"$f":"Jurat!I$1","v":0},{"$f":"Jurat!D$33","v":"00:00:00"},"Q3","2017-09-30","Region 1","Operating Expense","Administrative Expense","Administrative","12.5","General  Administration",{"$f":"'MMA Rev-Exp Region 1'!Z$94","v":{"v":0,"d":"$0.00"}},{"v":0,"d":"$0.00"},{"v":0,"d":"$0.00"},{"v":0,"d":"$0.00"},{"v":0,"d":"$0.00"},{"v":0,"d":"$0.00"},{"v":0,"d":"$0.00"},{"v":0,"d":"$0.00"},{"v":0,"d":"$0.00"},{"v":0,"d":"$0.00"},{"v":0,"d":"$0.00"},{"v":0,"d":"$0.00"}]
["MMA",null,null,{"$f":"Jurat!I$1","v":0},{"$f":"Jurat!D$33","v":"00:00:00"},"Q3","2017-09-30","Region 1","Operating Expense","Administrative Expense","Administrative","12.6","Compliance/Regulatory",{"$f":"'MMA Rev-Exp Region 1'!Z$95","v":{"v":0,"d":"$0.00"}},{"v":0,"d":"$0.00"},{"v":0,"d":"$0.00"},{"v":0,"d":"$0.00"},{"v":0,"d":"$0.00"},{"v":0,"d":"$0.00"},{"v":0,"d":"$0.00"},{"v":0,"d":"$0.00"},{"v":0,"d":"$0.00"},{"v":0,"d":"$0.00"},{"v":0,"d":"$0.00"},{"v":0,"d":"$0.00"}]
["MMA",null,null,{"$f":"Jurat!I$1","v":0},{"$f":"Jurat!D$33","v":"00:00:00"},"Q3","2017-09-30","Region 1","Operating Expense","Taxes & Fees","Taxes & Fees","13.1","State Premium tax",{"$f":"'MMA Rev-Exp Region 1'!Z$97","v":{"v":0,"d":"$0.00"}},{"v":0,"d":"$0.00"},{"v":0,"d":"$0.00"},{"v":0,"d":"$0.00"},{"v":0,"d":"$0.00"},{"v":0,"d":"$0.00"},{"v":0,"d":"$0.00"},{"v":0,"d":"$0.00"},{"v":0,"d":"$0.00"},{"v":0,"d":"$0.00"},{"v":0,"d":"$0.00"},{"v":0,"d":"$0.00"}]
["MMA",null,null,{"$f":"Jurat!I$1","v":0},{"$f":"Jurat!D$33","v":"00:00:00"},"Q3","2017-09-30","Region 1","Operating Expense","Taxes & Fees","Taxes & Fees","13.2","Department of Insurance Assessments",{"$f":"'MMA Rev-Exp Region 1'!Z$98","v":{"v":0,"d":"$0.00"}},{"v":0,"d":"$0.00"},{"v":0,"d":"$0.00"},{"v":0,"d":"$0.00"},{"v":0,"d":"$0.00"},{"v":0,"d":"$0.00"},{"v":0,"d":"$0.00"},{"v":0,"d":"$0.00"},{"v":0,"d":"$0.00"},{"v":0,"d":"$0.00"},{"v":0,"d":"$0.00"},{"v":0,"d":"$0.00"}]
["MMA",null,null,{"$f":"Jurat!I$1","v":0},{"$f":"Jurat!D$33","v":"00:00:00"},"Q3","2017-09-30","Region 1","Operating Expense","Taxes & Fees","Taxes & Fees","13.3","Section 9010 Health Insurance Providers Fee",{"$f":"'MMA Rev-Exp Region 1'!Z$99","v":{"v":0,"d":"$0.00"}},{"v":0,"d":"$0.00"},{"v":0,"d":"$0.00"},{"v":0,"d":"$0.00"},{"v":0,"d":"$0.00"},{"v":0,"d":"$0.00"},{"v":0,"d":"$0.00"},{"v":0,"d":"$0.00"},{"v":0,"d":"$0.00"},{"v":0,"d":"$0.00"},{"v":0,"d":"$0.00"},{"v":0,"d":"$0.00"}]
["MMA",null,null,{"$f":"Jurat!I$1","v":0},{"$f":"Jurat!D$33","v":"00:00:00"},"Q3","2017-09-30","Region 1","Non-Operating Expense","Income Tax Expense","Income Tax Expense","16.0","Income Tax Expense",{"$f":"'MMA Rev-Exp Region 1'!Z$106","v":{"v":0,"d":"$0.00"}},{"v":0,"d":"$0.00"},{"v":0,"d":"$0.00"},{"v":0,"d":"$0.00"},{"v":0,"d":"$0.00"},{"v":0,"d":"$0.00"},{"v":0,"d":"$0.00"},{"v":0,"d":"$0.00"},{"v":0,"d":"$0.00"},{"v":0,"d":"$0.00"},{"v":0,"d":"$0.00"},{"v":0,"d":"$0.00"}]
["MMA",null,null,{"$f":"Jurat!I$1","v":0},{"$f":"Jurat!D$33","v":"00:00:00"},"Q4","2017-12-31","Region 1","Member Months","Member Months","Member Months",null,"Member Months",{"$f":"'MMA Rev-Exp Region 1'!AK$9","v":{"v":0,"d":"$0.00"}},{"$f":"'MMA Rev-Exp Region 1'!AL$9","v":{"v":0,"d":"$0.00"}},{"$f":"'MMA Rev-Exp Region 1'!AM$9","v":{"v":0,"d":"$0.00"}},{"$f":"'MMA Rev-Exp Region 1'!AN$9","v":{"v":0,"d":"$0.00"}},{"$f":"'MMA Rev-Exp Region 1'!AO$9","v":{"v":0,"d":"$0.00"}},{"$f":"'MMA Rev-Exp Region 1'!AP$9","v":{"v":0,"d":"$0.00"}},{"$f":"'MMA Rev-Exp Region 1'!AQ$9","v":{"v":0,"d":"$0.00"}},{"$f":"'MMA Rev-Exp Region 1'!AR$9","v":{"v":0,"d":"$0.00"}},{"$f":"'MMA Rev-Exp Region 1'!AS$9","v":{"v":0,"d":"$0.00"}},{"$f":"'MMA Rev-Exp Region 1'!AT$9","v":{"v":0,"d":"$0.00"}},{"$f":"'MMA Rev-Exp Region 1'!AU$9","v":{"v":0,"d":"$0.00"}},{"v":0,"d":"$0.00"}]
["MMA",null,null,{"$f":"Jurat!I$1","v":0},{"$f":"Jurat!D$33","v":"00:00:00"},"Q4","2017-12-31","Region 1","Operating Revenue","Capitation","Capitation",1.1,"Capitation",{"$f":"'MMA Rev-Exp Region 1'!AK$11","v":{"v":0,"d":"$0.00"}},{"$f":"'MMA Rev-Exp Region 1'!AL$11","v":{"v":0,"d":"$0.00"}},{"$f":"'MMA Rev-Exp Region 1'!AM$11","v":{"v":0,"d":"$0.00"}},{"$f":"'MMA Rev-Exp Region 1'!AN$11","v":{"v":0,"d":"$0.00"}},{"$f":"'MMA Rev-Exp Region 1'!AO$11","v":{"v":0,"d":"$0.00"}},{"$f":"'MMA Rev-Exp Region 1'!AP$11","v":{"v":0,"d":"$0.00"}},{"$f":"'MMA Rev-Exp Region 1'!AQ$11","v":{"v":0,"d":"$0.00"}},{"$f":"'MMA Rev-Exp Region 1'!AR$11","v":{"v":0,"d":"$0.00"}},{"$f":"'MMA Rev-Exp Region 1'!AS$11","v":{"v":0,"d":"$0.00"}},{"$f":"'MMA Rev-Exp Region 1'!AT$11","v":{"v":0,"d":"$0.00"}},{"$f":"'MMA Rev-Exp Region 1'!AU$11","v":{"v":0,"d":"$0.00"}},{"v":0,"d":"$0.00"}]
["MMA",null,null,{"$f":"Jurat!I$1","v":0},{"$f":"Jurat!D$33","v":"00:00:00"},"Q4","2017-12-31","Region 1","Operating Revenue","Kick Payments","Kick Payments - Transplant",1.2,"Transplant Kick Payments",{"$f":"'MMA Rev-Exp Region 1'!AK$12","v":{"v":0,"d":"$0.00"}},{"$f":"'MMA Rev-Exp Region 1'!AL$12","v":{"v":0,"d":"$0.00"}},{"$f":"'MMA Rev-Exp Region 1'!AM$12","v":{"v":0,"d":"$0.00"}},{"$f":"'MMA Rev-Exp Region 1'!AN$12","v":{"v":0,"d":"$0.00"}},{"$f":"'MMA Rev-Exp Region 1'!AO$12","v":{"v":0,"d":"$0.00"}},{"$f":"'MMA Rev-Exp Region 1'!AP$12","v":{"v":0,"d":"$0.00"}},{"$f":"'MMA Rev-Exp Region 1'!AQ$12","v":{"v":0,"d":"$0.00"}},{"$f":"'MMA Rev-Exp Region 1'!AR$12","v":{"v":0,"d":"$0.00"}},{"$f":"'MMA Rev-Exp Region 1'!AS$12","v":{"v":0,"d":"$0.00"}},{"$f":"'MMA Rev-Exp Region 1'!AT$12","v":{"v":0,"d":"$0.00"}},{"$f":"'MMA Rev-Exp Region 1'!AU$12","v":{"v":0,"d":"$0.00"}},{"v":0,"d":"$0.00"}]
["MMA",null,null,{"$f":"Jurat!I$1","v":0},{"$f":"Jurat!D$33","v":"00:00:00"},"Q4","2017-12-31","Region 1","Operating Revenue","Kick Payments","Kick Payments - Hep C","1.3","Hepatitis C Kick Payments",{"$f":"'MMA Rev-Exp Region 1'!AK$13","v":{"v":0,"d":"$0.00"}},{"$f":"'MMA Rev-Exp Region 1'!AL$13","v":{"v":0,"d":"$0.00"}},{"$f":"'MMA Rev-Exp Region 1'!AM$13","v":{"v":0,"d":"$0.00"}},{"$f":"'MMA Rev-Exp Region 1'!AN$13","v":{"v":0,"d":"$0.00"}},{"$f":"'MMA Rev-Exp Region 1'!AO$13","v":{"v":0,"d":"$0.00"}},{"$f":"'MMA Rev-Exp Region 1'!AP$13","v":{"v":0,"d":"$0.00"}},{"$f":"'MMA Rev-Exp Region 1'!AQ$13","v":{"v":0,"d":"$0.00"}},{"$f":"'MMA Rev-Exp Region 1'!AR$13","v":{"v":0,"d":"$0.00"}},{"$f":"'MMA Rev-Exp Region 1'!AS$13","v":{"v":0,"d":"$0.00"}},{"$f":"'MMA Rev-Exp Region 1'!AT$13","v":{"v":0,"d":"$0.00"}},{"$f":"'MMA Rev-Exp Region 1'!AU$13","v":{"v":0,"d":"$0.00"}},{"v":0,"d":"$0.00"}]
["MMA",null,null,{"$f":"Jurat!I$1","v":0},{"$f":"Jurat!D$33","v":"00:00:00"},"Q4","2017-12-31","Region 1","Operating Revenue","Kick Payments","Kick Payments - Maternity","1.4.1","Maternity Kick Payments",{"$f":"'MMA Rev-Exp Region 1'!AK$14","v":{"v":0,"d":"$0.00"}},{"$f":"'MMA Rev-Exp Region 1'!AL$14","v":{"v":0,"d":"$0.00"}},{"$f":"'MMA Rev-Exp Region 1'!AM$14","v":{"v":0,"d":"$0.00"}},{"$f":"'MMA Rev-Exp Region 1'!AN$14","v":{"v":0,"d":"$0.00"}},{"$f":"'MMA Rev-Exp Region 1'!AO$14","v":{"v":0,"d":"$0.00"}},{"$f":"'MMA Rev-Exp Region 1'!AP$14","v":{"v":0,"d":"$0.00"}},{"$f":"'MMA Rev-Exp Region 1'!AQ$14","v":{"v":0,"d":"$0.00"}},{"$f":"'MMA Rev-Exp Region 1'!AR$14","v":{"v":0,"d":"$0.00"}},{"$f":"'MMA Rev-Exp Region 1'!AS$14","v":{"v":0,"d":"$0.00"}},{"$f":"'MMA Rev-Exp Region 1'!AT$14","v":{"v":0,"d":"$0.00"}},{"$f":"'MMA Rev-Exp Region 1'!AU$14","v":{"v":0,"d":"$0.00"}},{"v":0,"d":"$0.00"}]
["MMA",null,null,{"$f":"Jurat!I$1","v":0},{"$f":"Jurat!D$33","v":"00:00:00"},"Q4","2017-12-31","Region 1","Operating Revenue","Other Revenue","Other Revenue - 9010","1.5","ACA § 9010 related payments",{"$f":"'MMA Rev-Exp Region 1'!AK$15","v":{"v":0,"d":"$0.00"}},{"$f":"'MMA Rev-Exp Region 1'!AL$15","v":{"v":0,"d":"$0.00"}},{"$f":"'MMA Rev-Exp Region 1'!AM$15","v":{"v":0,"d":"$0.00"}},{"$f":"'MMA Rev-Exp Region 1'!AN$15","v":{"v":0,"d":"$0.00"}},{"$f":"'MMA Rev-Exp Region 1'!AO$15","v":{"v":0,"d":"$0.00"}},{"$f":"'MMA Rev-Exp Region 1'!AP$15","v":{"v":0,"d":"$0.00"}},{"$f":"'MMA Rev-Exp Region 1'!AQ$15","v":{"v":0,"d":"$0.00"}},{"$f":"'MMA Rev-Exp Region 1'!AR$15","v":{"v":0,"d":"$0.00"}},{"$f":"'MMA Rev-Exp Region 1'!AS$15","v":{"v":0,"d":"$0.00"}},{"$f":"'MMA Rev-Exp Region 1'!AT$15","v":{"v":0,"d":"$0.00"}},{"$f":"'MMA Rev-Exp Region 1'!AU$15","v":{"v":0,"d":"$0.00"}},{"v":0,"d":"$0.00"}]
["MMA",null,null,{"$f":"Jurat!I$1","v":0},{"$f":"Jurat!D$33","v":"00:00:00"},"Q4","2017-12-31","Region 1","Operating Revenue","Other Revenue","Other Revenue","1.6","Other Revenue",{"$f":"'MMA Rev-Exp Region 1'!AK$16","v":{"v":0,"d":"$0.00"}},{"$f":"'MMA Rev-Exp Region 1'!AL$16","v":{"v":0,"d":"$0.00"}},{"$f":"'MMA Rev-Exp Region 1'!AM$16","v":{"v":0,"d":"$0.00"}},{"$f":"'MMA Rev-Exp Region 1'!AN$16","v":{"v":0,"d":"$0.00"}},{"$f":"'MMA Rev-Exp Region 1'!AO$16","v":{"v":0,"d":"$0.00"}},{"$f":"'MMA Rev-Exp Region 1'!AP$16","v":{"v":0,"d":"$0.00"}},{"$f":"'MMA Rev-Exp Region 1'!AQ$16","v":{"v":0,"d":"$0.00"}},{"$f":"'MMA Rev-Exp Region 1'!AR$16","v":{"v":0,"d":"$0.00"}},{"$f":"'MMA Rev-Exp Region 1'!AS$16","v":{"v":0,"d":"$0.00"}},{"$f":"'MMA Rev-Exp Region 1'!AT$16","v":{"v":0,"d":"$0.00"}},{"$f":"'MMA Rev-Exp Region 1'!AU$16","v":{"v":0,"d":"$0.00"}},{"v":0,"d":"$0.00"}]
["MMA",null,null,{"$f":"Jurat!I$1","v":0},{"$f":"Jurat!D$33","v":"00:00:00"},"Q4","2017-12-31","Region 1","Operating Expense","Medical Benefits Expense","Hospital Services",2.1,"Inpatient FFS",{"$f":"'MMA Rev-Exp Region 1'!AK$20","v":{"v":0,"d":"$0.00"}},{"$f":"'MMA Rev-Exp Region 1'!AL$20","v":{"v":0,"d":"$0.00"}},{"$f":"'MMA Rev-Exp Region 1'!AM$20","v":{"v":0,"d":"$0.00"}},{"$f":"'MMA Rev-Exp Region 1'!AN$20","v":{"v":0,"d":"$0.00"}},{"$f":"'MMA Rev-Exp Region 1'!AO$20","v":{"v":0,"d":"$0.00"}},{"$f":"'MMA Rev-Exp Region 1'!AP$20","v":{"v":0,"d":"$0.00"}},{"$f":"'MMA Rev-Exp Region 1'!AQ$20","v":{"v":0,"d":"$0.00"}},{"$f":"'MMA Rev-Exp Region 1'!AR$20","v":{"v":0,"d":"$0.00"}},{"$f":"'MMA Rev-Exp Region 1'!AS$20","v":{"v":0,"d":"$0.00"}},{"$f":"'MMA Rev-Exp Region 1'!AT$20","v":{"v":0,"d":"$0.00"}},{"$f":"'MMA Rev-Exp Region 1'!AU$20","v":{"v":0,"d":"$0.00"}},{"v":0,"d":"$0.00"}]
["MMA",null,null,{"$f":"Jurat!I$1","v":0},{"$f":"Jurat!D$33","v":"00:00:00"},"Q4","2017-12-31","Region 1","Operating Expense","Medical Benefits Expense","Hospital Services",2.2,"Ending IBNP for Inpatient Hospital Services",{"$f":"'MMA Rev-Exp Region 1'!AK$21","v":{"v":0,"d":"$0.00"}},{"$f":"'MMA Rev-Exp Region 1'!AL$21","v":{"v":0,"d":"$0.00"}},{"$f":"'MMA Rev-Exp Region 1'!AM$21","v":{"v":0,"d":"$0.00"}},{"$f":"'MMA Rev-Exp Region 1'!AN$21","v":{"v":0,"d":"$0.00"}},{"$f":"'MMA Rev-Exp Region 1'!AO$21","v":{"v":0,"d":"$0.00"}},{"$f":"'MMA Rev-Exp Region 1'!AP$21","v":{"v":0,"d":"$0.00"}},{"$f":"'MMA Rev-Exp Region 1'!AQ$21","v":{"v":0,"d":"$0.00"}},{"$f":"'MMA Rev-Exp Region 1'!AR$21","v":{"v":0,"d":"$0.00"}},{"$f":"'MMA Rev-Exp Region 1'!AS$21","v":{"v":0,"d":"$0.00"}},{"$f":"'MMA Rev-Exp Region 1'!AT$21","v":{"v":0,"d":"$0.00"}},{"$f":"'MMA Rev-Exp Region 1'!AU$21","v":{"v":0,"d":"$0.00"}},{"v":0,"d":"$0.00"}]
["MMA",null,null,{"$f":"Jurat!I$1","v":0},{"$f":"Jurat!D$33","v":"00:00:00"},"Q4","2017-12-31","Region 1","Operating Expense","Medical Benefits Expense","Hospital Services",2.3,"Outpatient FFS: ER",{"$f":"'MMA Rev-Exp Region 1'!AK$22","v":{"v":0,"d":"$0.00"}},{"$f":"'MMA Rev-Exp Region 1'!AL$22","v":{"v":0,"d":"$0.00"}},{"$f":"'MMA Rev-Exp Region 1'!AM$22","v":{"v":0,"d":"$0.00"}},{"$f":"'MMA Rev-Exp Region 1'!AN$22","v":{"v":0,"d":"$0.00"}},{"$f":"'MMA Rev-Exp Region 1'!AO$22","v":{"v":0,"d":"$0.00"}},{"$f":"'MMA Rev-Exp Region 1'!AP$22","v":{"v":0,"d":"$0.00"}},{"$f":"'MMA Rev-Exp Region 1'!AQ$22","v":{"v":0,"d":"$0.00"}},{"$f":"'MMA Rev-Exp Region 1'!AR$22","v":{"v":0,"d":"$0.00"}},{"$f":"'MMA Rev-Exp Region 1'!AS$22","v":{"v":0,"d":"$0.00"}},{"$f":"'MMA Rev-Exp Region 1'!AT$22","v":{"v":0,"d":"$0.00"}},{"$f":"'MMA Rev-Exp Region 1'!AU$22","v":{"v":0,"d":"$0.00"}},{"v":0,"d":"$0.00"}]
["MMA",null,null,{"$f":"Jurat!I$1","v":0},{"$f":"Jurat!D$33","v":"00:00:00"},"Q4","2017-12-31","Region 1","Operating Expense","Medical Benefits Expense","Hospital Services",2.4,"Outpatient FFS: Other than ER ",{"$f":"'MMA Rev-Exp Region 1'!AK$23","v":{"v":0,"d":"$0.00"}},{"$f":"'MMA Rev-Exp Region 1'!AL$23","v":{"v":0,"d":"$0.00"}},{"$f":"'MMA Rev-Exp Region 1'!AM$23","v":{"v":0,"d":"$0.00"}},{"$f":"'MMA Rev-Exp Region 1'!AN$23","v":{"v":0,"d":"$0.00"}},{"$f":"'MMA Rev-Exp Region 1'!AO$23","v":{"v":0,"d":"$0.00"}},{"$f":"'MMA Rev-Exp Region 1'!AP$23","v":{"v":0,"d":"$0.00"}},{"$f":"'MMA Rev-Exp Region 1'!AQ$23","v":{"v":0,"d":"$0.00"}},{"$f":"'MMA Rev-Exp Region 1'!AR$23","v":{"v":0,"d":"$0.00"}},{"$f":"'MMA Rev-Exp Region 1'!AS$23","v":{"v":0,"d":"$0.00"}},{"$f":"'MMA Rev-Exp Region 1'!AT$23","v":{"v":0,"d":"$0.00"}},{"$f":"'MMA Rev-Exp Region 1'!AU$23","v":{"v":0,"d":"$0.00"}},{"v":0,"d":"$0.00"}]
["MMA",null,null,{"$f":"Jurat!I$1","v":0},{"$f":"Jurat!D$33","v":"00:00:00"},"Q4","2017-12-31","Region 1","Operating Expense","Medical Benefits Expense","Hospital Services",2.5,"Ending IBNP for Outpatient Hospital Services",{"$f":"'MMA Rev-Exp Region 1'!AK$24","v":{"v":0,"d":"$0.00"}},{"$f":"'MMA Rev-Exp Region 1'!AL$24","v":{"v":0,"d":"$0.00"}},{"$f":"'MMA Rev-Exp Region 1'!AM$24","v":{"v":0,"d":"$0.00"}},{"$f":"'MMA Rev-Exp Region 1'!AN$24","v":{"v":0,"d":"$0.00"}},{"$f":"'MMA Rev-Exp Region 1'!AO$24","v":{"v":0,"d":"$0.00"}},{"$f":"'MMA Rev-Exp Region 1'!AP$24","v":{"v":0,"d":"$0.00"}},{"$f":"'MMA Rev-Exp Region 1'!AQ$24","v":{"v":0,"d":"$0.00"}},{"$f":"'MMA Rev-Exp Region 1'!AR$24","v":{"v":0,"d":"$0.00"}},{"$f":"'MMA Rev-Exp Region 1'!AS$24","v":{"v":0,"d":"$0.00"}},{"$f":"'MMA Rev-Exp Region 1'!AT$24","v":{"v":0,"d":"$0.00"}},{"$f":"'MMA Rev-Exp Region 1'!AU$24","v":{"v":0,"d":"$0.00"}},{"v":0,"d":"$0.00"}]
["MMA",null,null,{"$f":"Jurat!I$1","v":0},{"$f":"Jurat!D$33","v":"00:00:00"},"Q4","2017-12-31","Region 1","Operating Expense","Medical Benefits Expense","Hospital Services","2.6","Subcapitated Hospital Services",{"$f":"'MMA Rev-Exp Region 1'!AK$25","v":{"v":0,"d":"$0.00"}},{"$f":"'MMA Rev-Exp Region 1'!AL$25","v":{"v":0,"d":"$0.00"}},{"$f":"'MMA Rev-Exp Region 1'!AM$25","v":{"v":0,"d":"$0.00"}},{"$f":"'MMA Rev-Exp Region 1'!AN$25","v":{"v":0,"d":"$0.00"}},{"$f":"'MMA Rev-Exp Region 1'!AO$25","v":{"v":0,"d":"$0.00"}},{"$f":"'MMA Rev-Exp Region 1'!AP$25","v":{"v":0,"d":"$0.00"}},{"$f":"'MMA Rev-Exp Region 1'!AQ$25","v":{"v":0,"d":"$0.00"}},{"$f":"'MMA Rev-Exp Region 1'!AR$25","v":{"v":0,"d":"$0.00"}},{"$f":"'MMA Rev-Exp Region 1'!AS$25","v":{"v":0,"d":"$0.00"}},{"$f":"'MMA Rev-Exp Region 1'!AT$25","v":{"v":0,"d":"$0.00"}},{"$f":"'MMA Rev-Exp Region 1'!AU$25","v":{"v":0,"d":"$0.00"}},{"v":0,"d":"$0.00"}]
["MMA",null,null,{"$f":"Jurat!I$1","v":0},{"$f":"Jurat!D$33","v":"00:00:00"},"Q4","2017-12-31","Region 1","Operating Expense","Medical Benefits Expense","Hospital Services","2.7","Hospital Settlements",{"$f":"'MMA Rev-Exp Region 1'!AK$26","v":{"v":0,"d":"$0.00"}},{"$f":"'MMA Rev-Exp Region 1'!AL$26","v":{"v":0,"d":"$0.00"}},{"$f":"'MMA Rev-Exp Region 1'!AM$26","v":{"v":0,"d":"$0.00"}},{"$f":"'MMA Rev-Exp Region 1'!AN$26","v":{"v":0,"d":"$0.00"}},{"$f":"'MMA Rev-Exp Region 1'!AO$26","v":{"v":0,"d":"$0.00"}},{"$f":"'MMA Rev-Exp Region 1'!AP$26","v":{"v":0,"d":"$0.00"}},{"$f":"'MMA Rev-Exp Region 1'!AQ$26","v":{"v":0,"d":"$0.00"}},{"$f":"'MMA Rev-Exp Region 1'!AR$26","v":{"v":0,"d":"$0.00"}},{"$f":"'MMA Rev-Exp Region 1'!AS$26","v":{"v":0,"d":"$0.00"}},{"$f":"'MMA Rev-Exp Region 1'!AT$26","v":{"v":0,"d":"$0.00"}},{"$f":"'MMA Rev-Exp Region 1'!AU$26","v":{"v":0,"d":"$0.00"}},{"v":0,"d":"$0.00"}]
["MMA",null,null,{"$f":"Jurat!I$1","v":0},{"$f":"Jurat!D$33","v":"00:00:00"},"Q4","2017-12-31","Region 1","Operating Expense","Medical Benefits Expense","Hospital Services","2.7.1","Transplant Services",{"$f":"'MMA Rev-Exp Region 1'!AK$27","v":{"v":0,"d":"$0.00"}},{"$f":"'MMA Rev-Exp Region 1'!AL$27","v":{"v":0,"d":"$0.00"}},{"$f":"'MMA Rev-Exp Region 1'!AM$27","v":{"v":0,"d":"$0.00"}},{"$f":"'MMA Rev-Exp Region 1'!AN$27","v":{"v":0,"d":"$0.00"}},{"$f":"'MMA Rev-Exp Region 1'!AO$27","v":{"v":0,"d":"$0.00"}},{"$f":"'MMA Rev-Exp Region 1'!AP$27","v":{"v":0,"d":"$0.00"}},{"$f":"'MMA Rev-Exp Region 1'!AQ$27","v":{"v":0,"d":"$0.00"}},{"$f":"'MMA Rev-Exp Region 1'!AR$27","v":{"v":0,"d":"$0.00"}},{"$f":"'MMA Rev-Exp Region 1'!AS$27","v":{"v":0,"d":"$0.00"}},{"$f":"'MMA Rev-Exp Region 1'!AT$27","v":{"v":0,"d":"$0.00"}},{"$f":"'MMA Rev-Exp Region 1'!AU$27","v":{"v":0,"d":"$0.00"}},{"v":0,"d":"$0.00"}]
["MMA",null,null,{"$f":"Jurat!I$1","v":0},{"$f":"Jurat!D$33","v":"00:00:00"},"Q4","2017-12-31","Region 1","Operating Expense","Medical Benefits Expense","Professional Services",3.1,"Primary Care FFS",{"$f":"'MMA Rev-Exp Region 1'!AK$29","v":{"v":0,"d":"$0.00"}},{"$f":"'MMA Rev-Exp Region 1'!AL$29","v":{"v":0,"d":"$0.00"}},{"$f":"'MMA Rev-Exp Region 1'!AM$29","v":{"v":0,"d":"$0.00"}},{"$f":"'MMA Rev-Exp Region 1'!AN$29","v":{"v":0,"d":"$0.00"}},{"$f":"'MMA Rev-Exp Region 1'!AO$29","v":{"v":0,"d":"$0.00"}},{"$f":"'MMA Rev-Exp Region 1'!AP$29","v":{"v":0,"d":"$0.00"}},{"$f":"'MMA Rev-Exp Region 1'!AQ$29","v":{"v":0,"d":"$0.00"}},{"$f":"'MMA Rev-Exp Region 1'!AR$29","v":{"v":0,"d":"$0.00"}},{"$f":"'MMA Rev-Exp Region 1'!AS$29","v":{"v":0,"d":"$0.00"}},{"$f":"'MMA Rev-Exp Region 1'!AT$29","v":{"v":0,"d":"$0.00"}},{"$f":"'MMA Rev-Exp Region 1'!AU$29","v":{"v":0,"d":"$0.00"}},{"v":0,"d":"$0.00"}]
["MMA",null,null,{"$f":"Jurat!I$1","v":0},{"$f":"Jurat!D$33","v":"00:00:00"},"Q4","2017-12-31","Region 1","Operating Expense","Medical Benefits Expense","Professional Services",3.2,"Specialty Care FFS",{"$f":"'MMA Rev-Exp Region 1'!AK$30","v":{"v":0,"d":"$0.00"}},{"$f":"'MMA Rev-Exp Region 1'!AL$30","v":{"v":0,"d":"$0.00"}},{"$f":"'MMA Rev-Exp Region 1'!AM$30","v":{"v":0,"d":"$0.00"}},{"$f":"'MMA Rev-Exp Region 1'!AN$30","v":{"v":0,"d":"$0.00"}},{"$f":"'MMA Rev-Exp Region 1'!AO$30","v":{"v":0,"d":"$0.00"}},{"$f":"'MMA Rev-Exp Region 1'!AP$30","v":{"v":0,"d":"$0.00"}},{"$f":"'MMA Rev-Exp Region 1'!AQ$30","v":{"v":0,"d":"$0.00"}},{"$f":"'MMA Rev-Exp Region 1'!AR$30","v":{"v":0,"d":"$0.00"}},{"$f":"'MMA Rev-Exp Region 1'!AS$30","v":{"v":0,"d":"$0.00"}},{"$f":"'MMA Rev-Exp Region 1'!AT$30","v":{"v":0,"d":"$0.00"}},{"$f":"'MMA Rev-Exp Region 1'!AU$30","v":{"v":0,"d":"$0.00"}},{"v":0,"d":"$0.00"}]
["MMA",null,null,{"$f":"Jurat!I$1","v":0},{"$f":"Jurat!D$33","v":"00:00:00"},"Q4","2017-12-31","Region 1","Operating Expense","Medical Benefits Expense","Professional Services",3.3,"Other Professional FFS",{"$f":"'MMA Rev-Exp Region 1'!AK$31","v":{"v":0,"d":"$0.00"}},{"$f":"'MMA Rev-Exp Region 1'!AL$31","v":{"v":0,"d":"$0.00"}},{"$f":"'MMA Rev-Exp Region 1'!AM$31","v":{"v":0,"d":"$0.00"}},{"$f":"'MMA Rev-Exp Region 1'!AN$31","v":{"v":0,"d":"$0.00"}},{"$f":"'MMA Rev-Exp Region 1'!AO$31","v":{"v":0,"d":"$0.00"}},{"$f":"'MMA Rev-Exp Region 1'!AP$31","v":{"v":0,"d":"$0.00"}},{"$f":"'MMA Rev-Exp Region 1'!AQ$31","v":{"v":0,"d":"$0.00"}},{"$f":"'MMA Rev-Exp Region 1'!AR$31","v":{"v":0,"d":"$0.00"}},{"$f":"'MMA Rev-Exp Region 1'!AS$31","v":{"v":0,"d":"$0.00"}},{"$f":"'MMA Rev-Exp Region 1'!AT$31","v":{"v":0,"d":"$0.00"}},{"$f":"'MMA Rev-Exp Region 1'!AU$31","v":{"v":0,"d":"$0.00"}},{"v":0,"d":"$0.00"}]
["MMA",null,null,{"$f":"Jurat!I$1","v":0},{"$f":"Jurat!D$33","v":"00:00:00"},"Q4","2017-12-31","Region 1","Operating Expense","Medical Benefits Expense","Professional Services","3.4","§ 1202 PCP Payments to providers",{"$f":"'MMA Rev-Exp Region 1'!AK$32","v":{"v":0,"d":"$0.00"}},{"$f":"'MMA Rev-Exp Region 1'!AL$32","v":{"v":0,"d":"$0.00"}},{"$f":"'MMA Rev-Exp Region 1'!AM$32","v":{"v":0,"d":"$0.00"}},{"$f":"'MMA Rev-Exp Region 1'!AN$32","v":{"v":0,"d":"$0.00"}},{"$f":"'MMA Rev-Exp Region 1'!AO$32","v":{"v":0,"d":"$0.00"}},{"$f":"'MMA Rev-Exp Region 1'!AP$32","v":{"v":0,"d":"$0.00"}},{"$f":"'MMA Rev-Exp Region 1'!AQ$32","v":{"v":0,"d":"$0.00"}},{"$f":"'MMA Rev-Exp Region 1'!AR$32","v":{"v":0,"d":"$0.00"}},{"$f":"'MMA Rev-Exp Region 1'!AS$32","v":{"v":0,"d":"$0.00"}},{"$f":"'MMA Rev-Exp Region 1'!AT$32","v":{"v":0,"d":"$0.00"}},{"$f":"'MMA Rev-Exp Region 1'!AU$32","v":{"v":0,"d":"$0.00"}},{"v":0,"d":"$0.00"}]
["MMA",null,null,{"$f":"Jurat!I$1","v":0},{"$f":"Jurat!D$33","v":"00:00:00"},"Q4","2017-12-31","Region 1","Operating Expense","Medical Benefits Expense","Professional Services","3.5","Subcapitated Professional Services",{"$f":"'MMA Rev-Exp Region 1'!AK$33","v":{"v":0,"d":"$0.00"}},{"$f":"'MMA Rev-Exp Region 1'!AL$33","v":{"v":0,"d":"$0.00"}},{"$f":"'MMA Rev-Exp Region 1'!AM$33","v":{"v":0,"d":"$0.00"}},{"$f":"'MMA Rev-Exp Region 1'!AN$33","v":{"v":0,"d":"$0.00"}},{"$f":"'MMA Rev-Exp Region 1'!AO$33","v":{"v":0,"d":"$0.00"}},{"$f":"'MMA Rev-Exp Region 1'!AP$33","v":{"v":0,"d":"$0.00"}},{"$f":"'MMA Rev-Exp Region 1'!AQ$33","v":{"v":0,"d":"$0.00"}},{"$f":"'MMA Rev-Exp Region 1'!AR$33","v":{"v":0,"d":"$0.00"}},{"$f":"'MMA Rev-Exp Region 1'!AS$33","v":{"v":0,"d":"$0.00"}},{"$f":"'MMA Rev-Exp Region 1'!AT$33","v":{"v":0,"d":"$0.00"}},{"$f":"'MMA Rev-Exp Region 1'!AU$33","v":{"v":0,"d":"$0.00"}},{"v":0,"d":"$0.00"}]
["MMA",null,null,{"$f":"Jurat!I$1","v":0},{"$f":"Jurat!D$33","v":"00:00:00"},"Q4","2017-12-31","Region 1","Operating Expense","Medical Benefits Expense","Professional Services","3.6","Ending IBNP for Professional Services",{"$f":"'MMA Rev-Exp Region 1'!AK$34","v":{"v":0,"d":"$0.00"}},{"$f":"'MMA Rev-Exp Region 1'!AL$34","v":{"v":0,"d":"$0.00"}},{"$f":"'MMA Rev-Exp Region 1'!AM$34","v":{"v":0,"d":"$0.00"}},{"$f":"'MMA Rev-Exp Region 1'!AN$34","v":{"v":0,"d":"$0.00"}},{"$f":"'MMA Rev-Exp Region 1'!AO$34","v":{"v":0,"d":"$0.00"}},{"$f":"'MMA Rev-Exp Region 1'!AP$34","v":{"v":0,"d":"$0.00"}},{"$f":"'MMA Rev-Exp Region 1'!AQ$34","v":{"v":0,"d":"$0.00"}},{"$f":"'MMA Rev-Exp Region 1'!AR$34","v":{"v":0,"d":"$0.00"}},{"$f":"'MMA Rev-Exp Region 1'!AS$34","v":{"v":0,"d":"$0.00"}},{"$f":"'MMA Rev-Exp Region 1'!AT$34","v":{"v":0,"d":"$0.00"}},{"$f":"'MMA Rev-Exp Region 1'!AU$34","v":{"v":0,"d":"$0.00"}},{"v":0,"d":"$0.00"}]
["MMA",null,null,{"$f":"Jurat!I$1","v":0},{"$f":"Jurat!D$33","v":"00:00:00"},"Q4","2017-12-31","Region 1","Operating Expense","Medical Benefits Expense","Professional Services","3.7","Professional Services Settlements",{"$f":"'MMA Rev-Exp Region 1'!AK$35","v":{"v":0,"d":"$0.00"}},{"$f":"'MMA Rev-Exp Region 1'!AL$35","v":{"v":0,"d":"$0.00"}},{"$f":"'MMA Rev-Exp Region 1'!AM$35","v":{"v":0,"d":"$0.00"}},{"$f":"'MMA Rev-Exp Region 1'!AN$35","v":{"v":0,"d":"$0.00"}},{"$f":"'MMA Rev-Exp Region 1'!AO$35","v":{"v":0,"d":"$0.00"}},{"$f":"'MMA Rev-Exp Region 1'!AP$35","v":{"v":0,"d":"$0.00"}},{"$f":"'MMA Rev-Exp Region 1'!AQ$35","v":{"v":0,"d":"$0.00"}},{"$f":"'MMA Rev-Exp Region 1'!AR$35","v":{"v":0,"d":"$0.00"}},{"$f":"'MMA Rev-Exp Region 1'!AS$35","v":{"v":0,"d":"$0.00"}},{"$f":"'MMA Rev-Exp Region 1'!AT$35","v":{"v":0,"d":"$0.00"}},{"$f":"'MMA Rev-Exp Region 1'!AU$35","v":{"v":0,"d":"$0.00"}},{"v":0,"d":"$0.00"}]
["MMA",null,null,{"$f":"Jurat!I$1","v":0},{"$f":"Jurat!D$33","v":"00:00:00"},"Q4","2017-12-31","Region 1","Operating Expense","Medical Benefits Expense","Maternity Services","4.1.1","Maternity Services",{"$f":"'MMA Rev-Exp Region 1'!AK$37","v":{"v":0,"d":"$0.00"}},{"$f":"'MMA Rev-Exp Region 1'!AL$37","v":{"v":0,"d":"$0.00"}},{"$f":"'MMA Rev-Exp Region 1'!AM$37","v":{"v":0,"d":"$0.00"}},{"$f":"'MMA Rev-Exp Region 1'!AN$37","v":{"v":0,"d":"$0.00"}},{"$f":"'MMA Rev-Exp Region 1'!AO$37","v":{"v":0,"d":"$0.00"}},{"$f":"'MMA Rev-Exp Region 1'!AP$37","v":{"v":0,"d":"$0.00"}},{"$f":"'MMA Rev-Exp Region 1'!AQ$37","v":{"v":0,"d":"$0.00"}},{"$f":"'MMA Rev-Exp Region 1'!AR$37","v":{"v":0,"d":"$0.00"}},{"$f":"'MMA Rev-Exp Region 1'!AS$37","v":{"v":0,"d":"$0.00"}},{"$f":"'MMA Rev-Exp Region 1'!AT$37","v":{"v":0,"d":"$0.00"}},{"$f":"'MMA Rev-Exp Region 1'!AU$37","v":{"v":0,"d":"$0.00"}},{"v":0,"d":"$0.00"}]
["MMA",null,null,{"$f":"Jurat!I$1","v":0},{"$f":"Jurat!D$33","v":"00:00:00"},"Q4","2017-12-31","Region 1","Operating Expense","Medical Benefits Expense","Maternity Services","4.2.1","Ending IBNP for Maternity Services",{"$f":"'MMA Rev-Exp Region 1'!AK$38","v":{"v":0,"d":"$0.00"}},{"$f":"'MMA Rev-Exp Region 1'!AL$38","v":{"v":0,"d":"$0.00"}},{"$f":"'MMA Rev-Exp Region 1'!AM$38","v":{"v":0,"d":"$0.00"}},{"$f":"'MMA Rev-Exp Region 1'!AN$38","v":{"v":0,"d":"$0.00"}},{"$f":"'MMA Rev-Exp Region 1'!AO$38","v":{"v":0,"d":"$0.00"}},{"$f":"'MMA Rev-Exp Region 1'!AP$38","v":{"v":0,"d":"$0.00"}},{"$f":"'MMA Rev-Exp Region 1'!AQ$38","v":{"v":0,"d":"$0.00"}},{"$f":"'MMA Rev-Exp Region 1'!AR$38","v":{"v":0,"d":"$0.00"}},{"$f":"'MMA Rev-Exp Region 1'!AS$38","v":{"v":0,"d":"$0.00"}},{"$f":"'MMA Rev-Exp Region 1'!AT$38","v":{"v":0,"d":"$0.00"}},{"$f":"'MMA Rev-Exp Region 1'!AU$38","v":{"v":0,"d":"$0.00"}},{"v":0,"d":"$0.00"}]
["MMA",null,null,{"$f":"Jurat!I$1","v":0},{"$f":"Jurat!D$33","v":"00:00:00"},"Q4","2017-12-31","Region 1","Operating Expense","Medical Benefits Expense","Maternity Services","4.3.1","Maternity Settlements",{"$f":"'MMA Rev-Exp Region 1'!AK$39","v":{"v":0,"d":"$0.00"}},{"$f":"'MMA Rev-Exp Region 1'!AL$39","v":{"v":0,"d":"$0.00"}},{"$f":"'MMA Rev-Exp Region 1'!AM$39","v":{"v":0,"d":"$0.00"}},{"$f":"'MMA Rev-Exp Region 1'!AN$39","v":{"v":0,"d":"$0.00"}},{"$f":"'MMA Rev-Exp Region 1'!AO$39","v":{"v":0,"d":"$0.00"}},{"$f":"'MMA Rev-Exp Region 1'!AP$39","v":{"v":0,"d":"$0.00"}},{"$f":"'MMA Rev-Exp Region 1'!AQ$39","v":{"v":0,"d":"$0.00"}},{"$f":"'MMA Rev-Exp Region 1'!AR$39","v":{"v":0,"d":"$0.00"}},{"$f":"'MMA Rev-Exp Region 1'!AS$39","v":{"v":0,"d":"$0.00"}},{"$f":"'MMA Rev-Exp Region 1'!AT$39","v":{"v":0,"d":"$0.00"}},{"$f":"'MMA Rev-Exp Region 1'!AU$39","v":{"v":0,"d":"$0.00"}},{"v":0,"d":"$0.00"}]
["MMA",null,null,{"$f":"Jurat!I$1","v":0},{"$f":"Jurat!D$33","v":"00:00:00"},"Q4","2017-12-31","Region 1","Operating Expense","Medical Benefits Expense","Mental Health Services",5.1,"Mental Health & Substance Abuse FFS",{"$f":"'MMA Rev-Exp Region 1'!AK$41","v":{"v":0,"d":"$0.00"}},{"$f":"'MMA Rev-Exp Region 1'!AL$41","v":{"v":0,"d":"$0.00"}},{"$f":"'MMA Rev-Exp Region 1'!AM$41","v":{"v":0,"d":"$0.00"}},{"$f":"'MMA Rev-Exp Region 1'!AN$41","v":{"v":0,"d":"$0.00"}},{"$f":"'MMA Rev-Exp Region 1'!AO$41","v":{"v":0,"d":"$0.00"}},{"$f":"'MMA Rev-Exp Region 1'!AP$41","v":{"v":0,"d":"$0.00"}},{"$f":"'MMA Rev-Exp Region 1'!AQ$41","v":{"v":0,"d":"$0.00"}},{"$f":"'MMA Rev-Exp Region 1'!AR$41","v":{"v":0,"d":"$0.00"}},{"$f":"'MMA Rev-Exp Region 1'!AS$41","v":{"v":0,"d":"$0.00"}},{"$f":"'MMA Rev-Exp Region 1'!AT$41","v":{"v":0,"d":"$0.00"}},{"$f":"'MMA Rev-Exp Region 1'!AU$41","v":{"v":0,"d":"$0.00"}},{"v":0,"d":"$0.00"}]
["MMA",null,null,{"$f":"Jurat!I$1","v":0},{"$f":"Jurat!D$33","v":"00:00:00"},"Q4","2017-12-31","Region 1","Operating Expense","Medical Benefits Expense","Mental Health Services",5.2,"Mental Health & Substance Abuse Subcapitation",{"$f":"'MMA Rev-Exp Region 1'!AK$42","v":{"v":0,"d":"$0.00"}},{"$f":"'MMA Rev-Exp Region 1'!AL$42","v":{"v":0,"d":"$0.00"}},{"$f":"'MMA Rev-Exp Region 1'!AM$42","v":{"v":0,"d":"$0.00"}},{"$f":"'MMA Rev-Exp Region 1'!AN$42","v":{"v":0,"d":"$0.00"}},{"$f":"'MMA Rev-Exp Region 1'!AO$42","v":{"v":0,"d":"$0.00"}},{"$f":"'MMA Rev-Exp Region 1'!AP$42","v":{"v":0,"d":"$0.00"}},{"$f":"'MMA Rev-Exp Region 1'!AQ$42","v":{"v":0,"d":"$0.00"}},{"$f":"'MMA Rev-Exp Region 1'!AR$42","v":{"v":0,"d":"$0.00"}},{"$f":"'MMA Rev-Exp Region 1'!AS$42","v":{"v":0,"d":"$0.00"}},{"$f":"'MMA Rev-Exp Region 1'!AT$42","v":{"v":0,"d":"$0.00"}},{"$f":"'MMA Rev-Exp Region 1'!AU$42","v":{"v":0,"d":"$0.00"}},{"v":0,"d":"$0.00"}]
["MMA",null,null,{"$f":"Jurat!I$1","v":0},{"$f":"Jurat!D$33","v":"00:00:00"},"Q4","2017-12-31","Region 1","Operating Expense","Medical Benefits Expense","Mental Health Services",5.3,"Ending IBNP for Mental Health & Substance Abuse",{"$f":"'MMA Rev-Exp Region 1'!AK$43","v":{"v":0,"d":"$0.00"}},{"$f":"'MMA Rev-Exp Region 1'!AL$43","v":{"v":0,"d":"$0.00"}},{"$f":"'MMA Rev-Exp Region 1'!AM$43","v":{"v":0,"d":"$0.00"}},{"$f":"'MMA Rev-Exp Region 1'!AN$43","v":{"v":0,"d":"$0.00"}},{"$f":"'MMA Rev-Exp Region 1'!AO$43","v":{"v":0,"d":"$0.00"}},{"$f":"'MMA Rev-Exp Region 1'!AP$43","v":{"v":0,"d":"$0.00"}},{"$f":"'MMA Rev-Exp Region 1'!AQ$43","v":{"v":0,"d":"$0.00"}},{"$f":"'MMA Rev-Exp Region 1'!AR$43","v":{"v":0,"d":"$0.00"}},{"$f":"'MMA Rev-Exp Region 1'!AS$43","v":{"v":0,"d":"$0.00"}},{"$f":"'MMA Rev-Exp Region 1'!AT$43","v":{"v":0,"d":"$0.00"}},{"$f":"'MMA Rev-Exp Region 1'!AU$43","v":{"v":0,"d":"$0.00"}},{"v":0,"d":"$0.00"}]
["MMA",null,null,{"$f":"Jurat!I$1","v":0},{"$f":"Jurat!D$33","v":"00:00:00"},"Q4","2017-12-31","Region 1","Operating Expense","Medical Benefits Expense","Mental Health Services","5.4","Mental Health Settlements",{"$f":"'MMA Rev-Exp Region 1'!AK$44","v":{"v":0,"d":"$0.00"}},{"$f":"'MMA Rev-Exp Region 1'!AL$44","v":{"v":0,"d":"$0.00"}},{"$f":"'MMA Rev-Exp Region 1'!AM$44","v":{"v":0,"d":"$0.00"}},{"$f":"'MMA Rev-Exp Region 1'!AN$44","v":{"v":0,"d":"$0.00"}},{"$f":"'MMA Rev-Exp Region 1'!AO$44","v":{"v":0,"d":"$0.00"}},{"$f":"'MMA Rev-Exp Region 1'!AP$44","v":{"v":0,"d":"$0.00"}},{"$f":"'MMA Rev-Exp Region 1'!AQ$44","v":{"v":0,"d":"$0.00"}},{"$f":"'MMA Rev-Exp Region 1'!AR$44","v":{"v":0,"d":"$0.00"}},{"$f":"'MMA Rev-Exp Region 1'!AS$44","v":{"v":0,"d":"$0.00"}},{"$f":"'MMA Rev-Exp Region 1'!AT$44","v":{"v":0,"d":"$0.00"}},{"$f":"'MMA Rev-Exp Region 1'!AU$44","v":{"v":0,"d":"$0.00"}},{"v":0,"d":"$0.00"}]
["MMA",null,null,{"$f":"Jurat!I$1","v":0},{"$f":"Jurat!D$33","v":"00:00:00"},"Q4","2017-12-31","Region 1","Operating Expense","Medical Benefits Expense","Dental Services",6.1,"Dental FFS",{"$f":"'MMA Rev-Exp Region 1'!AK$46","v":{"v":0,"d":"$0.00"}},{"$f":"'MMA Rev-Exp Region 1'!AL$46","v":{"v":0,"d":"$0.00"}},{"$f":"'MMA Rev-Exp Region 1'!AM$46","v":{"v":0,"d":"$0.00"}},{"$f":"'MMA Rev-Exp Region 1'!AN$46","v":{"v":0,"d":"$0.00"}},{"$f":"'MMA Rev-Exp Region 1'!AO$46","v":{"v":0,"d":"$0.00"}},{"$f":"'MMA Rev-Exp Region 1'!AP$46","v":{"v":0,"d":"$0.00"}},{"$f":"'MMA Rev-Exp Region 1'!AQ$46","v":{"v":0,"d":"$0.00"}},{"$f":"'MMA Rev-Exp Region 1'!AR$46","v":{"v":0,"d":"$0.00"}},{"$f":"'MMA Rev-Exp Region 1'!AS$46","v":{"v":0,"d":"$0.00"}},{"$f":"'MMA Rev-Exp Region 1'!AT$46","v":{"v":0,"d":"$0.00"}},{"$f":"'MMA Rev-Exp Region 1'!AU$46","v":{"v":0,"d":"$0.00"}},{"v":0,"d":"$0.00"}]
["MMA",null,null,{"$f":"Jurat!I$1","v":0},{"$f":"Jurat!D$33","v":"00:00:00"},"Q4","2017-12-31","Region 1","Operating Expense","Medical Benefits Expense","Dental Services",6.2,"Dental Subcapitation",{"$f":"'MMA Rev-Exp Region 1'!AK$47","v":{"v":0,"d":"$0.00"}},{"$f":"'MMA Rev-Exp Region 1'!AL$47","v":{"v":0,"d":"$0.00"}},{"$f":"'MMA Rev-Exp Region 1'!AM$47","v":{"v":0,"d":"$0.00"}},{"$f":"'MMA Rev-Exp Region 1'!AN$47","v":{"v":0,"d":"$0.00"}},{"$f":"'MMA Rev-Exp Region 1'!AO$47","v":{"v":0,"d":"$0.00"}},{"$f":"'MMA Rev-Exp Region 1'!AP$47","v":{"v":0,"d":"$0.00"}},{"$f":"'MMA Rev-Exp Region 1'!AQ$47","v":{"v":0,"d":"$0.00"}},{"$f":"'MMA Rev-Exp Region 1'!AR$47","v":{"v":0,"d":"$0.00"}},{"$f":"'MMA Rev-Exp Region 1'!AS$47","v":{"v":0,"d":"$0.00"}},{"$f":"'MMA Rev-Exp Region 1'!AT$47","v":{"v":0,"d":"$0.00"}},{"$f":"'MMA Rev-Exp Region 1'!AU$47","v":{"v":0,"d":"$0.00"}},{"v":0,"d":"$0.00"}]
["MMA",null,null,{"$f":"Jurat!I$1","v":0},{"$f":"Jurat!D$33","v":"00:00:00"},"Q4","2017-12-31","Region 1","Operating Expense","Medical Benefits Expense","Dental Services",6.3,"Ending IBNP for Dental Services",{"$f":"'MMA Rev-Exp Region 1'!AK$48","v":{"v":0,"d":"$0.00"}},{"$f":"'MMA Rev-Exp Region 1'!AL$48","v":{"v":0,"d":"$0.00"}},{"$f":"'MMA Rev-Exp Region 1'!AM$48","v":{"v":0,"d":"$0.00"}},{"$f":"'MMA Rev-Exp Region 1'!AN$48","v":{"v":0,"d":"$0.00"}},{"$f":"'MMA Rev-Exp Region 1'!AO$48","v":{"v":0,"d":"$0.00"}},{"$f":"'MMA Rev-Exp Region 1'!AP$48","v":{"v":0,"d":"$0.00"}},{"$f":"'MMA Rev-Exp Region 1'!AQ$48","v":{"v":0,"d":"$0.00"}},{"$f":"'MMA Rev-Exp Region 1'!AR$48","v":{"v":0,"d":"$0.00"}},{"$f":"'MMA Rev-Exp Region 1'!AS$48","v":{"v":0,"d":"$0.00"}},{"$f":"'MMA Rev-Exp Region 1'!AT$48","v":{"v":0,"d":"$0.00"}},{"$f":"'MMA Rev-Exp Region 1'!AU$48","v":{"v":0,"d":"$0.00"}},{"v":0,"d":"$0.00"}]
["MMA",null,null,{"$f":"Jurat!I$1","v":0},{"$f":"Jurat!D$33","v":"00:00:00"},"Q4","2017-12-31","Region 1","Operating Expense","Medical Benefits Expense","Dental Services","6.4","Dental Settlements",{"$f":"'MMA Rev-Exp Region 1'!AK$49","v":{"v":0,"d":"$0.00"}},{"$f":"'MMA Rev-Exp Region 1'!AL$49","v":{"v":0,"d":"$0.00"}},{"$f":"'MMA Rev-Exp Region 1'!AM$49","v":{"v":0,"d":"$0.00"}},{"$f":"'MMA Rev-Exp Region 1'!AN$49","v":{"v":0,"d":"$0.00"}},{"$f":"'MMA Rev-Exp Region 1'!AO$49","v":{"v":0,"d":"$0.00"}},{"$f":"'MMA Rev-Exp Region 1'!AP$49","v":{"v":0,"d":"$0.00"}},{"$f":"'MMA Rev-Exp Region 1'!AQ$49","v":{"v":0,"d":"$0.00"}},{"$f":"'MMA Rev-Exp Region 1'!AR$49","v":{"v":0,"d":"$0.00"}},{"$f":"'MMA Rev-Exp Region 1'!AS$49","v":{"v":0,"d":"$0.00"}},{"$f":"'MMA Rev-Exp Region 1'!AT$49","v":{"v":0,"d":"$0.00"}},{"$f":"'MMA Rev-Exp Region 1'!AU$49","v":{"v":0,"d":"$0.00"}},{"v":0,"d":"$0.00"}]
["MMA",null,null,{"$f":"Jurat!I$1","v":0},{"$f":"Jurat!D$33","v":"00:00:00"},"Q4","2017-12-31","Region 1","Operating Expense","Medical Benefits Expense","Transportation Services",7.1,"Transportation FFS",{"$f":"'MMA Rev-Exp Region 1'!AK$51","v":{"v":0,"d":"$0.00"}},{"$f":"'MMA Rev-Exp Region 1'!AL$51","v":{"v":0,"d":"$0.00"}},{"$f":"'MMA Rev-Exp Region 1'!AM$51","v":{"v":0,"d":"$0.00"}},{"$f":"'MMA Rev-Exp Region 1'!AN$51","v":{"v":0,"d":"$0.00"}},{"$f":"'MMA Rev-Exp Region 1'!AO$51","v":{"v":0,"d":"$0.00"}},{"$f":"'MMA Rev-Exp Region 1'!AP$51","v":{"v":0,"d":"$0.00"}},{"$f":"'MMA Rev-Exp Region 1'!AQ$51","v":{"v":0,"d":"$0.00"}},{"$f":"'MMA Rev-Exp Region 1'!AR$51","v":{"v":0,"d":"$0.00"}},{"$f":"'MMA Rev-Exp Region 1'!AS$51","v":{"v":0,"d":"$0.00"}},{"$f":"'MMA Rev-Exp Region 1'!AT$51","v":{"v":0,"d":"$0.00"}},{"$f":"'MMA Rev-Exp Region 1'!AU$51","v":{"v":0,"d":"$0.00"}},{"v":0,"d":"$0.00"}]
["MMA",null,null,{"$f":"Jurat!I$1","v":0},{"$f":"Jurat!D$33","v":"00:00:00"},"Q4","2017-12-31","Region 1","Operating Expense","Medical Benefits Expense","Transportation Services",7.2,"Transportation Subcapitation",{"$f":"'MMA Rev-Exp Region 1'!AK$52","v":{"v":0,"d":"$0.00"}},{"$f":"'MMA Rev-Exp Region 1'!AL$52","v":{"v":0,"d":"$0.00"}},{"$f":"'MMA Rev-Exp Region 1'!AM$52","v":{"v":0,"d":"$0.00"}},{"$f":"'MMA Rev-Exp Region 1'!AN$52","v":{"v":0,"d":"$0.00"}},{"$f":"'MMA Rev-Exp Region 1'!AO$52","v":{"v":0,"d":"$0.00"}},{"$f":"'MMA Rev-Exp Region 1'!AP$52","v":{"v":0,"d":"$0.00"}},{"$f":"'MMA Rev-Exp Region 1'!AQ$52","v":{"v":0,"d":"$0.00"}},{"$f":"'MMA Rev-Exp Region 1'!AR$52","v":{"v":0,"d":"$0.00"}},{"$f":"'MMA Rev-Exp Region 1'!AS$52","v":{"v":0,"d":"$0.00"}},{"$f":"'MMA Rev-Exp Region 1'!AT$52","v":{"v":0,"d":"$0.00"}},{"$f":"'MMA Rev-Exp Region 1'!AU$52","v":{"v":0,"d":"$0.00"}},{"v":0,"d":"$0.00"}]
["MMA",null,null,{"$f":"Jurat!I$1","v":0},{"$f":"Jurat!D$33","v":"00:00:00"},"Q4","2017-12-31","Region 1","Operating Expense","Medical Benefits Expense","Transportation Services",7.3,"Ending IBNP for Transportation",{"$f":"'MMA Rev-Exp Region 1'!AK$53","v":{"v":0,"d":"$0.00"}},{"$f":"'MMA Rev-Exp Region 1'!AL$53","v":{"v":0,"d":"$0.00"}},{"$f":"'MMA Rev-Exp Region 1'!AM$53","v":{"v":0,"d":"$0.00"}},{"$f":"'MMA Rev-Exp Region 1'!AN$53","v":{"v":0,"d":"$0.00"}},{"$f":"'MMA Rev-Exp Region 1'!AO$53","v":{"v":0,"d":"$0.00"}},{"$f":"'MMA Rev-Exp Region 1'!AP$53","v":{"v":0,"d":"$0.00"}},{"$f":"'MMA Rev-Exp Region 1'!AQ$53","v":{"v":0,"d":"$0.00"}},{"$f":"'MMA Rev-Exp Region 1'!AR$53","v":{"v":0,"d":"$0.00"}},{"$f":"'MMA Rev-Exp Region 1'!AS$53","v":{"v":0,"d":"$0.00"}},{"$f":"'MMA Rev-Exp Region 1'!AT$53","v":{"v":0,"d":"$0.00"}},{"$f":"'MMA Rev-Exp Region 1'!AU$53","v":{"v":0,"d":"$0.00"}},{"v":0,"d":"$0.00"}]
["MMA",null,null,{"$f":"Jurat!I$1","v":0},{"$f":"Jurat!D$33","v":"00:00:00"},"Q4","2017-12-31","Region 1","Operating Expense","Medical Benefits Expense","Transportation Services","7.4","Transportation Settlements",{"$f":"'MMA Rev-Exp Region 1'!AK$54","v":{"v":0,"d":"$0.00"}},{"$f":"'MMA Rev-Exp Region 1'!AL$54","v":{"v":0,"d":"$0.00"}},{"$f":"'MMA Rev-Exp Region 1'!AM$54","v":{"v":0,"d":"$0.00"}},{"$f":"'MMA Rev-Exp Region 1'!AN$54","v":{"v":0,"d":"$0.00"}},{"$f":"'MMA Rev-Exp Region 1'!AO$54","v":{"v":0,"d":"$0.00"}},{"$f":"'MMA Rev-Exp Region 1'!AP$54","v":{"v":0,"d":"$0.00"}},{"$f":"'MMA Rev-Exp Region 1'!AQ$54","v":{"v":0,"d":"$0.00"}},{"$f":"'MMA Rev-Exp Region 1'!AR$54","v":{"v":0,"d":"$0.00"}},{"$f":"'MMA Rev-Exp Region 1'!AS$54","v":{"v":0,"d":"$0.00"}},{"$f":"'MMA Rev-Exp Region 1'!AT$54","v":{"v":0,"d":"$0.00"}},{"$f":"'MMA Rev-Exp Region 1'!AU$54","v":{"v":0,"d":"$0.00"}},{"v":0,"d":"$0.00"}]
["MMA",null,null,{"$f":"Jurat!I$1","v":0},{"$f":"Jurat!D$33","v":"00:00:00"},"Q4","2017-12-31","Region 1","Operating Expense","Medical Benefits Expense","Pharmacy Services",8.1,"Prescription Drugs FFS",{"$f":"'MMA Rev-Exp Region 1'!AK$56","v":{"v":0,"d":"$0.00"}},{"$f":"'MMA Rev-Exp Region 1'!AL$56","v":{"v":0,"d":"$0.00"}},{"$f":"'MMA Rev-Exp Region 1'!AM$56","v":{"v":0,"d":"$0.00"}},{"$f":"'MMA Rev-Exp Region 1'!AN$56","v":{"v":0,"d":"$0.00"}},{"$f":"'MMA Rev-Exp Region 1'!AO$56","v":{"v":0,"d":"$0.00"}},{"$f":"'MMA Rev-Exp Region 1'!AP$56","v":{"v":0,"d":"$0.00"}},{"$f":"'MMA Rev-Exp Region 1'!AQ$56","v":{"v":0,"d":"$0.00"}},{"$f":"'MMA Rev-Exp Region 1'!AR$56","v":{"v":0,"d":"$0.00"}},{"$f":"'MMA Rev-Exp Region 1'!AS$56","v":{"v":0,"d":"$0.00"}},{"$f":"'MMA Rev-Exp Region 1'!AT$56","v":{"v":0,"d":"$0.00"}},{"$f":"'MMA Rev-Exp Region 1'!AU$56","v":{"v":0,"d":"$0.00"}},{"v":0,"d":"$0.00"}]
["MMA",null,null,{"$f":"Jurat!I$1","v":0},{"$f":"Jurat!D$33","v":"00:00:00"},"Q4","2017-12-31","Region 1","Operating Expense","Medical Benefits Expense","Pharmacy Services","8.2","Hepatitis C Prescription Drug FFS",{"$f":"'MMA Rev-Exp Region 1'!AK$57","v":{"v":0,"d":"$0.00"}},{"$f":"'MMA Rev-Exp Region 1'!AL$57","v":{"v":0,"d":"$0.00"}},{"$f":"'MMA Rev-Exp Region 1'!AM$57","v":{"v":0,"d":"$0.00"}},{"$f":"'MMA Rev-Exp Region 1'!AN$57","v":{"v":0,"d":"$0.00"}},{"$f":"'MMA Rev-Exp Region 1'!AO$57","v":{"v":0,"d":"$0.00"}},{"$f":"'MMA Rev-Exp Region 1'!AP$57","v":{"v":0,"d":"$0.00"}},{"$f":"'MMA Rev-Exp Region 1'!AQ$57","v":{"v":0,"d":"$0.00"}},{"$f":"'MMA Rev-Exp Region 1'!AR$57","v":{"v":0,"d":"$0.00"}},{"$f":"'MMA Rev-Exp Region 1'!AS$57","v":{"v":0,"d":"$0.00"}},{"$f":"'MMA Rev-Exp Region 1'!AT$57","v":{"v":0,"d":"$0.00"}},{"$f":"'MMA Rev-Exp Region 1'!AU$57","v":{"v":0,"d":"$0.00"}},{"v":0,"d":"$0.00"}]
["MMA",null,null,{"$f":"Jurat!I$1","v":0},{"$f":"Jurat!D$33","v":"00:00:00"},"Q4","2017-12-31","Region 1","Operating Expense","Medical Benefits Expense","Pharmacy Services","8.3","Ending IBNP for Prescription Drugs",{"$f":"'MMA Rev-Exp Region 1'!AK$58","v":{"v":0,"d":"$0.00"}},{"$f":"'MMA Rev-Exp Region 1'!AL$58","v":{"v":0,"d":"$0.00"}},{"$f":"'MMA Rev-Exp Region 1'!AM$58","v":{"v":0,"d":"$0.00"}},{"$f":"'MMA Rev-Exp Region 1'!AN$58","v":{"v":0,"d":"$0.00"}},{"$f":"'MMA Rev-Exp Region 1'!AO$58","v":{"v":0,"d":"$0.00"}},{"$f":"'MMA Rev-Exp Region 1'!AP$58","v":{"v":0,"d":"$0.00"}},{"$f":"'MMA Rev-Exp Region 1'!AQ$58","v":{"v":0,"d":"$0.00"}},{"$f":"'MMA Rev-Exp Region 1'!AR$58","v":{"v":0,"d":"$0.00"}},{"$f":"'MMA Rev-Exp Region 1'!AS$58","v":{"v":0,"d":"$0.00"}},{"$f":"'MMA Rev-Exp Region 1'!AT$58","v":{"v":0,"d":"$0.00"}},{"$f":"'MMA Rev-Exp Region 1'!AU$58","v":{"v":0,"d":"$0.00"}},{"v":0,"d":"$0.00"}]
["MMA",null,null,{"$f":"Jurat!I$1","v":0},{"$f":"Jurat!D$33","v":"00:00:00"},"Q4","2017-12-31","Region 1","Operating Expense","Medical Benefits Expense","Pharmacy Services","8.4","Prescription Drug Rebates ",{"$f":"'MMA Rev-Exp Region 1'!AK$59","v":{"v":0,"d":"$0.00"}},{"$f":"'MMA Rev-Exp Region 1'!AL$59","v":{"v":0,"d":"$0.00"}},{"$f":"'MMA Rev-Exp Region 1'!AM$59","v":{"v":0,"d":"$0.00"}},{"$f":"'MMA Rev-Exp Region 1'!AN$59","v":{"v":0,"d":"$0.00"}},{"$f":"'MMA Rev-Exp Region 1'!AO$59","v":{"v":0,"d":"$0.00"}},{"$f":"'MMA Rev-Exp Region 1'!AP$59","v":{"v":0,"d":"$0.00"}},{"$f":"'MMA Rev-Exp Region 1'!AQ$59","v":{"v":0,"d":"$0.00"}},{"$f":"'MMA Rev-Exp Region 1'!AR$59","v":{"v":0,"d":"$0.00"}},{"$f":"'MMA Rev-Exp Region 1'!AS$59","v":{"v":0,"d":"$0.00"}},{"$f":"'MMA Rev-Exp Region 1'!AT$59","v":{"v":0,"d":"$0.00"}},{"$f":"'MMA Rev-Exp Region 1'!AU$59","v":{"v":0,"d":"$0.00"}},{"v":0,"d":"$0.00"}]
["MMA",null,null,{"$f":"Jurat!I$1","v":0},{"$f":"Jurat!D$33","v":"00:00:00"},"Q4","2017-12-31","Region 1","Operating Expense","Medical Benefits Expense","Pharmacy Services","8.5","Ending accrual for Rebates receivable",{"$f":"'MMA Rev-Exp Region 1'!AK$60","v":{"v":0,"d":"$0.00"}},{"$f":"'MMA Rev-Exp Region 1'!AL$60","v":{"v":0,"d":"$0.00"}},{"$f":"'MMA Rev-Exp Region 1'!AM$60","v":{"v":0,"d":"$0.00"}},{"$f":"'MMA Rev-Exp Region 1'!AN$60","v":{"v":0,"d":"$0.00"}},{"$f":"'MMA Rev-Exp Region 1'!AO$60","v":{"v":0,"d":"$0.00"}},{"$f":"'MMA Rev-Exp Region 1'!AP$60","v":{"v":0,"d":"$0.00"}},{"$f":"'MMA Rev-Exp Region 1'!AQ$60","v":{"v":0,"d":"$0.00"}},{"$f":"'MMA Rev-Exp Region 1'!AR$60","v":{"v":0,"d":"$0.00"}},{"$f":"'MMA Rev-Exp Region 1'!AS$60","v":{"v":0,"d":"$0.00"}},{"$f":"'MMA Rev-Exp Region 1'!AT$60","v":{"v":0,"d":"$0.00"}},{"$f":"'MMA Rev-Exp Region 1'!AU$60","v":{"v":0,"d":"$0.00"}},{"v":0,"d":"$0.00"}]
["MMA",null,null,{"$f":"Jurat!I$1","v":0},{"$f":"Jurat!D$33","v":"00:00:00"},"Q4","2017-12-31","Region 1","Operating Expense","Medical Benefits Expense","Pharmacy Services","8.6","Prescription Drugs Subcapitation",{"$f":"'MMA Rev-Exp Region 1'!AK$61","v":{"v":0,"d":"$0.00"}},{"$f":"'MMA Rev-Exp Region 1'!AL$61","v":{"v":0,"d":"$0.00"}},{"$f":"'MMA Rev-Exp Region 1'!AM$61","v":{"v":0,"d":"$0.00"}},{"$f":"'MMA Rev-Exp Region 1'!AN$61","v":{"v":0,"d":"$0.00"}},{"$f":"'MMA Rev-Exp Region 1'!AO$61","v":{"v":0,"d":"$0.00"}},{"$f":"'MMA Rev-Exp Region 1'!AP$61","v":{"v":0,"d":"$0.00"}},{"$f":"'MMA Rev-Exp Region 1'!AQ$61","v":{"v":0,"d":"$0.00"}},{"$f":"'MMA Rev-Exp Region 1'!AR$61","v":{"v":0,"d":"$0.00"}},{"$f":"'MMA Rev-Exp Region 1'!AS$61","v":{"v":0,"d":"$0.00"}},{"$f":"'MMA Rev-Exp Region 1'!AT$61","v":{"v":0,"d":"$0.00"}},{"$f":"'MMA Rev-Exp Region 1'!AU$61","v":{"v":0,"d":"$0.00"}},{"v":0,"d":"$0.00"}]
["MMA",null,null,{"$f":"Jurat!I$1","v":0},{"$f":"Jurat!D$33","v":"00:00:00"},"Q4","2017-12-31","Region 1","Operating Expense","Medical Benefits Expense","Pharmacy Services","8.7","Prescription Drug Settlements",{"$f":"'MMA Rev-Exp Region 1'!AK$62","v":{"v":0,"d":"$0.00"}},{"$f":"'MMA Rev-Exp Region 1'!AL$62","v":{"v":0,"d":"$0.00"}},{"$f":"'MMA Rev-Exp Region 1'!AM$62","v":{"v":0,"d":"$0.00"}},{"$f":"'MMA Rev-Exp Region 1'!AN$62","v":{"v":0,"d":"$0.00"}},{"$f":"'MMA Rev-Exp Region 1'!AO$62","v":{"v":0,"d":"$0.00"}},{"$f":"'MMA Rev-Exp Region 1'!AP$62","v":{"v":0,"d":"$0.00"}},{"$f":"'MMA Rev-Exp Region 1'!AQ$62","v":{"v":0,"d":"$0.00"}},{"$f":"'MMA Rev-Exp Region 1'!AR$62","v":{"v":0,"d":"$0.00"}},{"$f":"'MMA Rev-Exp Region 1'!AS$62","v":{"v":0,"d":"$0.00"}},{"$f":"'MMA Rev-Exp Region 1'!AT$62","v":{"v":0,"d":"$0.00"}},{"$f":"'MMA Rev-Exp Region 1'!AU$62","v":{"v":0,"d":"$0.00"}},{"v":0,"d":"$0.00"}]
["MMA",null,null,{"$f":"Jurat!I$1","v":0},{"$f":"Jurat!D$33","v":"00:00:00"},"Q4","2017-12-31","Region 1","Operating Expense","Medical Benefits Expense","Other MMA Services",9.1,"Home Health, Private Duty Nursing, Personal Care FFS",{"$f":"'MMA Rev-Exp Region 1'!AK$64","v":{"v":0,"d":"$0.00"}},{"$f":"'MMA Rev-Exp Region 1'!AL$64","v":{"v":0,"d":"$0.00"}},{"$f":"'MMA Rev-Exp Region 1'!AM$64","v":{"v":0,"d":"$0.00"}},{"$f":"'MMA Rev-Exp Region 1'!AN$64","v":{"v":0,"d":"$0.00"}},{"$f":"'MMA Rev-Exp Region 1'!AO$64","v":{"v":0,"d":"$0.00"}},{"$f":"'MMA Rev-Exp Region 1'!AP$64","v":{"v":0,"d":"$0.00"}},{"$f":"'MMA Rev-Exp Region 1'!AQ$64","v":{"v":0,"d":"$0.00"}},{"$f":"'MMA Rev-Exp Region 1'!AR$64","v":{"v":0,"d":"$0.00"}},{"$f":"'MMA Rev-Exp Region 1'!AS$64","v":{"v":0,"d":"$0.00"}},{"$f":"'MMA Rev-Exp Region 1'!AT$64","v":{"v":0,"d":"$0.00"}},{"$f":"'MMA Rev-Exp Region 1'!AU$64","v":{"v":0,"d":"$0.00"}},{"v":0,"d":"$0.00"}]
["MMA",null,null,{"$f":"Jurat!I$1","v":0},{"$f":"Jurat!D$33","v":"00:00:00"},"Q4","2017-12-31","Region 1","Operating Expense","Medical Benefits Expense","Other MMA Services","9.2","Hospice FFS",{"$f":"'MMA Rev-Exp Region 1'!AK$65","v":{"v":0,"d":"$0.00"}},{"$f":"'MMA Rev-Exp Region 1'!AL$65","v":{"v":0,"d":"$0.00"}},{"$f":"'MMA Rev-Exp Region 1'!AM$65","v":{"v":0,"d":"$0.00"}},{"$f":"'MMA Rev-Exp Region 1'!AN$65","v":{"v":0,"d":"$0.00"}},{"$f":"'MMA Rev-Exp Region 1'!AO$65","v":{"v":0,"d":"$0.00"}},{"$f":"'MMA Rev-Exp Region 1'!AP$65","v":{"v":0,"d":"$0.00"}},{"$f":"'MMA Rev-Exp Region 1'!AQ$65","v":{"v":0,"d":"$0.00"}},{"$f":"'MMA Rev-Exp Region 1'!AR$65","v":{"v":0,"d":"$0.00"}},{"$f":"'MMA Rev-Exp Region 1'!AS$65","v":{"v":0,"d":"$0.00"}},{"$f":"'MMA Rev-Exp Region 1'!AT$65","v":{"v":0,"d":"$0.00"}},{"$f":"'MMA Rev-Exp Region 1'!AU$65","v":{"v":0,"d":"$0.00"}},{"v":0,"d":"$0.00"}]
["MMA",null,null,{"$f":"Jurat!I$1","v":0},{"$f":"Jurat!D$33","v":"00:00:00"},"Q4","2017-12-31","Region 1","Operating Expense","Medical Benefits Expense","Other MMA Services","9.3","DME FFS",{"$f":"'MMA Rev-Exp Region 1'!AK$66","v":{"v":0,"d":"$0.00"}},{"$f":"'MMA Rev-Exp Region 1'!AL$66","v":{"v":0,"d":"$0.00"}},{"$f":"'MMA Rev-Exp Region 1'!AM$66","v":{"v":0,"d":"$0.00"}},{"$f":"'MMA Rev-Exp Region 1'!AN$66","v":{"v":0,"d":"$0.00"}},{"$f":"'MMA Rev-Exp Region 1'!AO$66","v":{"v":0,"d":"$0.00"}},{"$f":"'MMA Rev-Exp Region 1'!AP$66","v":{"v":0,"d":"$0.00"}},{"$f":"'MMA Rev-Exp Region 1'!AQ$66","v":{"v":0,"d":"$0.00"}},{"$f":"'MMA Rev-Exp Region 1'!AR$66","v":{"v":0,"d":"$0.00"}},{"$f":"'MMA Rev-Exp Region 1'!AS$66","v":{"v":0,"d":"$0.00"}},{"$f":"'MMA Rev-Exp Region 1'!AT$66","v":{"v":0,"d":"$0.00"}},{"$f":"'MMA Rev-Exp Region 1'!AU$66","v":{"v":0,"d":"$0.00"}},{"v":0,"d":"$0.00"}]
["MMA",null,null,{"$f":"Jurat!I$1","v":0},{"$f":"Jurat!D$33","v":"00:00:00"},"Q4","2017-12-31","Region 1","Operating Expense","Medical Benefits Expense","Other MMA Services","9.4","Other State Plan Services FFS",{"$f":"'MMA Rev-Exp Region 1'!AK$67","v":{"v":0,"d":"$0.00"}},{"$f":"'MMA Rev-Exp Region 1'!AL$67","v":{"v":0,"d":"$0.00"}},{"$f":"'MMA Rev-Exp Region 1'!AM$67","v":{"v":0,"d":"$0.00"}},{"$f":"'MMA Rev-Exp Region 1'!AN$67","v":{"v":0,"d":"$0.00"}},{"$f":"'MMA Rev-Exp Region 1'!AO$67","v":{"v":0,"d":"$0.00"}},{"$f":"'MMA Rev-Exp Region 1'!AP$67","v":{"v":0,"d":"$0.00"}},{"$f":"'MMA Rev-Exp Region 1'!AQ$67","v":{"v":0,"d":"$0.00"}},{"$f":"'MMA Rev-Exp Region 1'!AR$67","v":{"v":0,"d":"$0.00"}},{"$f":"'MMA Rev-Exp Region 1'!AS$67","v":{"v":0,"d":"$0.00"}},{"$f":"'MMA Rev-Exp Region 1'!AT$67","v":{"v":0,"d":"$0.00"}},{"$f":"'MMA Rev-Exp Region 1'!AU$67","v":{"v":0,"d":"$0.00"}},{"v":0,"d":"$0.00"}]
["MMA",null,null,{"$f":"Jurat!I$1","v":0},{"$f":"Jurat!D$33","v":"00:00:00"},"Q4","2017-12-31","Region 1","Operating Expense","Medical Benefits Expense","Other MMA Services","9.5","Other Services Subcapitation",{"$f":"'MMA Rev-Exp Region 1'!AK$68","v":{"v":0,"d":"$0.00"}},{"$f":"'MMA Rev-Exp Region 1'!AL$68","v":{"v":0,"d":"$0.00"}},{"$f":"'MMA Rev-Exp Region 1'!AM$68","v":{"v":0,"d":"$0.00"}},{"$f":"'MMA Rev-Exp Region 1'!AN$68","v":{"v":0,"d":"$0.00"}},{"$f":"'MMA Rev-Exp Region 1'!AO$68","v":{"v":0,"d":"$0.00"}},{"$f":"'MMA Rev-Exp Region 1'!AP$68","v":{"v":0,"d":"$0.00"}},{"$f":"'MMA Rev-Exp Region 1'!AQ$68","v":{"v":0,"d":"$0.00"}},{"$f":"'MMA Rev-Exp Region 1'!AR$68","v":{"v":0,"d":"$0.00"}},{"$f":"'MMA Rev-Exp Region 1'!AS$68","v":{"v":0,"d":"$0.00"}},{"$f":"'MMA Rev-Exp Region 1'!AT$68","v":{"v":0,"d":"$0.00"}},{"$f":"'MMA Rev-Exp Region 1'!AU$68","v":{"v":0,"d":"$0.00"}},{"v":0,"d":"$0.00"}]
["MMA",null,null,{"$f":"Jurat!I$1","v":0},{"$f":"Jurat!D$33","v":"00:00:00"},"Q4","2017-12-31","Region 1","Operating Expense","Medical Benefits Expense","Other MMA Services","9.6","Ending IBNP for Other Services",{"$f":"'MMA Rev-Exp Region 1'!AK$69","v":{"v":0,"d":"$0.00"}},{"$f":"'MMA Rev-Exp Region 1'!AL$69","v":{"v":0,"d":"$0.00"}},{"$f":"'MMA Rev-Exp Region 1'!AM$69","v":{"v":0,"d":"$0.00"}},{"$f":"'MMA Rev-Exp Region 1'!AN$69","v":{"v":0,"d":"$0.00"}},{"$f":"'MMA Rev-Exp Region 1'!AO$69","v":{"v":0,"d":"$0.00"}},{"$f":"'MMA Rev-Exp Region 1'!AP$69","v":{"v":0,"d":"$0.00"}},{"$f":"'MMA Rev-Exp Region 1'!AQ$69","v":{"v":0,"d":"$0.00"}},{"$f":"'MMA Rev-Exp Region 1'!AR$69","v":{"v":0,"d":"$0.00"}},{"$f":"'MMA Rev-Exp Region 1'!AS$69","v":{"v":0,"d":"$0.00"}},{"$f":"'MMA Rev-Exp Region 1'!AT$69","v":{"v":0,"d":"$0.00"}},{"$f":"'MMA Rev-Exp Region 1'!AU$69","v":{"v":0,"d":"$0.00"}},{"v":0,"d":"$0.00"}]
["MMA",null,null,{"$f":"Jurat!I$1","v":0},{"$f":"Jurat!D$33","v":"00:00:00"},"Q4","2017-12-31","Region 1","Operating Expense","Medical Benefits Expense","Other MMA Services","9.7","Other Services Settlements",{"$f":"'MMA Rev-Exp Region 1'!AK$70","v":{"v":0,"d":"$0.00"}},{"$f":"'MMA Rev-Exp Region 1'!AL$70","v":{"v":0,"d":"$0.00"}},{"$f":"'MMA Rev-Exp Region 1'!AM$70","v":{"v":0,"d":"$0.00"}},{"$f":"'MMA Rev-Exp Region 1'!AN$70","v":{"v":0,"d":"$0.00"}},{"$f":"'MMA Rev-Exp Region 1'!AO$70","v":{"v":0,"d":"$0.00"}},{"$f":"'MMA Rev-Exp Region 1'!AP$70","v":{"v":0,"d":"$0.00"}},{"$f":"'MMA Rev-Exp Region 1'!AQ$70","v":{"v":0,"d":"$0.00"}},{"$f":"'MMA Rev-Exp Region 1'!AR$70","v":{"v":0,"d":"$0.00"}},{"$f":"'MMA Rev-Exp Region 1'!AS$70","v":{"v":0,"d":"$0.00"}},{"$f":"'MMA Rev-Exp Region 1'!AT$70","v":{"v":0,"d":"$0.00"}},{"$f":"'MMA Rev-Exp Region 1'!AU$70","v":{"v":0,"d":"$0.00"}},{"v":0,"d":"$0.00"}]
["MMA",null,null,{"$f":"Jurat!I$1","v":0},{"$f":"Jurat!D$33","v":"00:00:00"},"Q4","2017-12-31","Region 1","Operating Expense","Medical Benefits Expense","Expanded Benefits","10.1","Expanded Benefits FFS",{"$f":"'MMA Rev-Exp Region 1'!AK$72","v":{"v":0,"d":"$0.00"}},{"$f":"'MMA Rev-Exp Region 1'!AL$72","v":{"v":0,"d":"$0.00"}},{"$f":"'MMA Rev-Exp Region 1'!AM$72","v":{"v":0,"d":"$0.00"}},{"$f":"'MMA Rev-Exp Region 1'!AN$72","v":{"v":0,"d":"$0.00"}},{"$f":"'MMA Rev-Exp Region 1'!AO$72","v":{"v":0,"d":"$0.00"}},{"$f":"'MMA Rev-Exp Region 1'!AP$72","v":{"v":0,"d":"$0.00"}},{"$f":"'MMA Rev-Exp Region 1'!AQ$72","v":{"v":0,"d":"$0.00"}},{"$f":"'MMA Rev-Exp Region 1'!AR$72","v":{"v":0,"d":"$0.00"}},{"$f":"'MMA Rev-Exp Region 1'!AS$72","v":{"v":0,"d":"$0.00"}},{"$f":"'MMA Rev-Exp Region 1'!AT$72","v":{"v":0,"d":"$0.00"}},{"$f":"'MMA Rev-Exp Region 1'!AU$72","v":{"v":0,"d":"$0.00"}},{"v":0,"d":"$0.00"}]
["MMA",null,null,{"$f":"Jurat!I$1","v":0},{"$f":"Jurat!D$33","v":"00:00:00"},"Q4","2017-12-31","Region 1","Operating Expense","Medical Benefits Expense","Expanded Benefits","10.2","Expanded benefits Subcapitation",{"$f":"'MMA Rev-Exp Region 1'!AK$73","v":{"v":0,"d":"$0.00"}},{"$f":"'MMA Rev-Exp Region 1'!AL$73","v":{"v":0,"d":"$0.00"}},{"$f":"'MMA Rev-Exp Region 1'!AM$73","v":{"v":0,"d":"$0.00"}},{"$f":"'MMA Rev-Exp Region 1'!AN$73","v":{"v":0,"d":"$0.00"}},{"$f":"'MMA Rev-Exp Region 1'!AO$73","v":{"v":0,"d":"$0.00"}},{"$f":"'MMA Rev-Exp Region 1'!AP$73","v":{"v":0,"d":"$0.00"}},{"$f":"'MMA Rev-Exp Region 1'!AQ$73","v":{"v":0,"d":"$0.00"}},{"$f":"'MMA Rev-Exp Region 1'!AR$73","v":{"v":0,"d":"$0.00"}},{"$f":"'MMA Rev-Exp Region 1'!AS$73","v":{"v":0,"d":"$0.00"}},{"$f":"'MMA Rev-Exp Region 1'!AT$73","v":{"v":0,"d":"$0.00"}},{"$f":"'MMA Rev-Exp Region 1'!AU$73","v":{"v":0,"d":"$0.00"}},{"v":0,"d":"$0.00"}]
["MMA",null,null,{"$f":"Jurat!I$1","v":0},{"$f":"Jurat!D$33","v":"00:00:00"},"Q4","2017-12-31","Region 1","Operating Expense","Medical Benefits Expense","Expanded Benefits","10.3","Ending IBNP for Expanded Benefits",{"$f":"'MMA Rev-Exp Region 1'!AK$74","v":{"v":0,"d":"$0.00"}},{"$f":"'MMA Rev-Exp Region 1'!AL$74","v":{"v":0,"d":"$0.00"}},{"$f":"'MMA Rev-Exp Region 1'!AM$74","v":{"v":0,"d":"$0.00"}},{"$f":"'MMA Rev-Exp Region 1'!AN$74","v":{"v":0,"d":"$0.00"}},{"$f":"'MMA Rev-Exp Region 1'!AO$74","v":{"v":0,"d":"$0.00"}},{"$f":"'MMA Rev-Exp Region 1'!AP$74","v":{"v":0,"d":"$0.00"}},{"$f":"'MMA Rev-Exp Region 1'!AQ$74","v":{"v":0,"d":"$0.00"}},{"$f":"'MMA Rev-Exp Region 1'!AR$74","v":{"v":0,"d":"$0.00"}},{"$f":"'MMA Rev-Exp Region 1'!AS$74","v":{"v":0,"d":"$0.00"}},{"$f":"'MMA Rev-Exp Region 1'!AT$74","v":{"v":0,"d":"$0.00"}},{"$f":"'MMA Rev-Exp Region 1'!AU$74","v":{"v":0,"d":"$0.00"}},{"v":0,"d":"$0.00"}]
["MMA",null,null,{"$f":"Jurat!I$1","v":0},{"$f":"Jurat!D$33","v":"00:00:00"},"Q4","2017-12-31","Region 1","Operating Expense","Medical Benefits Expense","Expanded Benefits","10.4","Expanded Benefits Settlements",{"$f":"'MMA Rev-Exp Region 1'!AK$75","v":{"v":0,"d":"$0.00"}},{"$f":"'MMA Rev-Exp Region 1'!AL$75","v":{"v":0,"d":"$0.00"}},{"$f":"'MMA Rev-Exp Region 1'!AM$75","v":{"v":0,"d":"$0.00"}},{"$f":"'MMA Rev-Exp Region 1'!AN$75","v":{"v":0,"d":"$0.00"}},{"$f":"'MMA Rev-Exp Region 1'!AO$75","v":{"v":0,"d":"$0.00"}},{"$f":"'MMA Rev-Exp Region 1'!AP$75","v":{"v":0,"d":"$0.00"}},{"$f":"'MMA Rev-Exp Region 1'!AQ$75","v":{"v":0,"d":"$0.00"}},{"$f":"'MMA Rev-Exp Region 1'!AR$75","v":{"v":0,"d":"$0.00"}},{"$f":"'MMA Rev-Exp Region 1'!AS$75","v":{"v":0,"d":"$0.00"}},{"$f":"'MMA Rev-Exp Region 1'!AT$75","v":{"v":0,"d":"$0.00"}},{"$f":"'MMA Rev-Exp Region 1'!AU$75","v":{"v":0,"d":"$0.00"}},{"v":0,"d":"$0.00"}]
["MMA",null,null,{"$f":"Jurat!I$1","v":0},{"$f":"Jurat!D$33","v":"00:00:00"},"Q4","2017-12-31","Region 1","Operating Expense","Medical Benefits Expense","Other Medical","11.5","TPL & Fraud/Abuse Recoveries",{"$f":"'MMA Rev-Exp Region 1'!AK$81","v":{"v":0,"d":"$0.00"}},{"$f":"'MMA Rev-Exp Region 1'!AL$81","v":{"v":0,"d":"$0.00"}},{"$f":"'MMA Rev-Exp Region 1'!AM$81","v":{"v":0,"d":"$0.00"}},{"$f":"'MMA Rev-Exp Region 1'!AN$81","v":{"v":0,"d":"$0.00"}},{"$f":"'MMA Rev-Exp Region 1'!AO$81","v":{"v":0,"d":"$0.00"}},{"$f":"'MMA Rev-Exp Region 1'!AP$81","v":{"v":0,"d":"$0.00"}},{"$f":"'MMA Rev-Exp Region 1'!AQ$81","v":{"v":0,"d":"$0.00"}},{"$f":"'MMA Rev-Exp Region 1'!AR$81","v":{"v":0,"d":"$0.00"}},{"$f":"'MMA Rev-Exp Region 1'!AS$81","v":{"v":0,"d":"$0.00"}},{"$f":"'MMA Rev-Exp Region 1'!AT$81","v":{"v":0,"d":"$0.00"}},{"$f":"'MMA Rev-Exp Region 1'!AU$81","v":{"v":0,"d":"$0.00"}},{"v":0,"d":"$0.00"}]
["MMA",null,null,{"$f":"Jurat!I$1","v":0},{"$f":"Jurat!D$33","v":"00:00:00"},"Q4","2017-12-31","Region 1","Operating Expense","Medical Benefits Expense","Other Medical","11.6.1","Premium Deficiency Reserve",{"$f":"'MMA Rev-Exp Region 1'!AK$82","v":{"v":0,"d":"$0.00"}},{"$f":"'MMA Rev-Exp Region 1'!AL$82","v":{"v":0,"d":"$0.00"}},{"$f":"'MMA Rev-Exp Region 1'!AM$82","v":{"v":0,"d":"$0.00"}},{"$f":"'MMA Rev-Exp Region 1'!AN$82","v":{"v":0,"d":"$0.00"}},{"$f":"'MMA Rev-Exp Region 1'!AO$82","v":{"v":0,"d":"$0.00"}},{"$f":"'MMA Rev-Exp Region 1'!AP$82","v":{"v":0,"d":"$0.00"}},{"$f":"'MMA Rev-Exp Region 1'!AQ$82","v":{"v":0,"d":"$0.00"}},{"$f":"'MMA Rev-Exp Region 1'!AR$82","v":{"v":0,"d":"$0.00"}},{"$f":"'MMA Rev-Exp Region 1'!AS$82","v":{"v":0,"d":"$0.00"}},{"$f":"'MMA Rev-Exp Region 1'!AT$82","v":{"v":0,"d":"$0.00"}},{"$f":"'MMA Rev-Exp Region 1'!AU$82","v":{"v":0,"d":"$0.00"}},{"v":0,"d":"$0.00"}]
["MMA",null,null,{"$f":"Jurat!I$1","v":0},{"$f":"Jurat!D$33","v":"00:00:00"},"Q4","2017-12-31","Region 1","Operating Expense","Medical Benefits Expense","Other Medical","11.8","Reinsurance Premiums",{"$f":"'MMA Rev-Exp Region 1'!AK$84","v":{"v":0,"d":"$0.00"}},{"$f":"'MMA Rev-Exp Region 1'!AL$84","v":{"v":0,"d":"$0.00"}},{"$f":"'MMA Rev-Exp Region 1'!AM$84","v":{"v":0,"d":"$0.00"}},{"$f":"'MMA Rev-Exp Region 1'!AN$84","v":{"v":0,"d":"$0.00"}},{"$f":"'MMA Rev-Exp Region 1'!AO$84","v":{"v":0,"d":"$0.00"}},{"$f":"'MMA Rev-Exp Region 1'!AP$84","v":{"v":0,"d":"$0.00"}},{"$f":"'MMA Rev-Exp Region 1'!AQ$84","v":{"v":0,"d":"$0.00"}},{"$f":"'MMA Rev-Exp Region 1'!AR$84","v":{"v":0,"d":"$0.00"}},{"$f":"'MMA Rev-Exp Region 1'!AS$84","v":{"v":0,"d":"$0.00"}},{"$f":"'MMA Rev-Exp Region 1'!AT$84","v":{"v":0,"d":"$0.00"}},{"$f":"'MMA Rev-Exp Region 1'!AU$84","v":{"v":0,"d":"$0.00"}},{"v":0,"d":"$0.00"}]
["MMA",null,null,{"$f":"Jurat!I$1","v":0},{"$f":"Jurat!D$33","v":"00:00:00"},"Q4","2017-12-31","Region 1","Operating Expense","Medical Benefits Expense","Other Medical","11.9","Reinsurance Recoveries",{"$f":"'MMA Rev-Exp Region 1'!AK$85","v":{"v":0,"d":"$0.00"}},{"$f":"'MMA Rev-Exp Region 1'!AL$85","v":{"v":0,"d":"$0.00"}},{"$f":"'MMA Rev-Exp Region 1'!AM$85","v":{"v":0,"d":"$0.00"}},{"$f":"'MMA Rev-Exp Region 1'!AN$85","v":{"v":0,"d":"$0.00"}},{"$f":"'MMA Rev-Exp Region 1'!AO$85","v":{"v":0,"d":"$0.00"}},{"$f":"'MMA Rev-Exp Region 1'!AP$85","v":{"v":0,"d":"$0.00"}},{"$f":"'MMA Rev-Exp Region 1'!AQ$85","v":{"v":0,"d":"$0.00"}},{"$f":"'MMA Rev-Exp Region 1'!AR$85","v":{"v":0,"d":"$0.00"}},{"$f":"'MMA Rev-Exp Region 1'!AS$85","v":{"v":0,"d":"$0.00"}},{"$f":"'MMA Rev-Exp Region 1'!AT$85","v":{"v":0,"d":"$0.00"}},{"$f":"'MMA Rev-Exp Region 1'!AU$85","v":{"v":0,"d":"$0.00"}},{"v":0,"d":"$0.00"}]
["MMA",null,null,{"$f":"Jurat!I$1","v":0},{"$f":"Jurat!D$33","v":"00:00:00"},"Q4","2017-12-31","Region 1","Operating Expense","Administrative Expense","Administrative","12.1","Salaries & Benefits",{"$f":"'MMA Rev-Exp Region 1'!AK$90","v":{"v":0,"d":"$0.00"}},{"v":0,"d":"$0.00"},{"v":0,"d":"$0.00"},{"v":0,"d":"$0.00"},{"v":0,"d":"$0.00"},{"v":0,"d":"$0.00"},{"v":0,"d":"$0.00"},{"v":0,"d":"$0.00"},{"v":0,"d":"$0.00"},{"v":0,"d":"$0.00"},{"v":0,"d":"$0.00"},{"v":0,"d":"$0.00"}]
["MMA",null,null,{"$f":"Jurat!I$1","v":0},{"$f":"Jurat!D$33","v":"00:00:00"},"Q4","2017-12-31","Region 1","Operating Expense","Administrative Expense","Administrative","12.2","Administrative Services",{"$f":"'MMA Rev-Exp Region 1'!AK$91","v":{"v":0,"d":"$0.00"}},{"v":0,"d":"$0.00"},{"v":0,"d":"$0.00"},{"v":0,"d":"$0.00"},{"v":0,"d":"$0.00"},{"v":0,"d":"$0.00"},{"v":0,"d":"$0.00"},{"v":0,"d":"$0.00"},{"v":0,"d":"$0.00"},{"v":0,"d":"$0.00"},{"v":0,"d":"$0.00"},{"v":0,"d":"$0.00"}]
["MMA",null,null,{"$f":"Jurat!I$1","v":0},{"$f":"Jurat!D$33","v":"00:00:00"},"Q4","2017-12-31","Region 1","Operating Expense","Administrative Expense","Administrative","12.3","Information Systems",{"$f":"'MMA Rev-Exp Region 1'!AK$92","v":{"v":0,"d":"$0.00"}},{"v":0,"d":"$0.00"},{"v":0,"d":"$0.00"},{"v":0,"d":"$0.00"},{"v":0,"d":"$0.00"},{"v":0,"d":"$0.00"},{"v":0,"d":"$0.00"},{"v":0,"d":"$0.00"},{"v":0,"d":"$0.00"},{"v":0,"d":"$0.00"},{"v":0,"d":"$0.00"},{"v":0,"d":"$0.00"}]
["MMA",null,null,{"$f":"Jurat!I$1","v":0},{"$f":"Jurat!D$33","v":"00:00:00"},"Q4","2017-12-31","Region 1","Operating Expense","Administrative Expense","Administrative","12.4","Marketing Expenses",{"$f":"'MMA Rev-Exp Region 1'!AK$93","v":{"v":0,"d":"$0.00"}},{"v":0,"d":"$0.00"},{"v":0,"d":"$0.00"},{"v":0,"d":"$0.00"},{"v":0,"d":"$0.00"},{"v":0,"d":"$0.00"},{"v":0,"d":"$0.00"},{"v":0,"d":"$0.00"},{"v":0,"d":"$0.00"},{"v":0,"d":"$0.00"},{"v":0,"d":"$0.00"},{"v":0,"d":"$0.00"}]
["MMA",null,null,{"$f":"Jurat!I$1","v":0},{"$f":"Jurat!D$33","v":"00:00:00"},"Q4","2017-12-31","Region 1","Operating Expense","Administrative Expense","Administrative","12.5","General  Administration",{"$f":"'MMA Rev-Exp Region 1'!AK$94","v":{"v":0,"d":"$0.00"}},{"v":0,"d":"$0.00"},{"v":0,"d":"$0.00"},{"v":0,"d":"$0.00"},{"v":0,"d":"$0.00"},{"v":0,"d":"$0.00"},{"v":0,"d":"$0.00"},{"v":0,"d":"$0.00"},{"v":0,"d":"$0.00"},{"v":0,"d":"$0.00"},{"v":0,"d":"$0.00"},{"v":0,"d":"$0.00"}]
["MMA",null,null,{"$f":"Jurat!I$1","v":0},{"$f":"Jurat!D$33","v":"00:00:00"},"Q4","2017-12-31","Region 1","Operating Expense","Administrative Expense","Administrative","12.6","Compliance/Regulatory",{"$f":"'MMA Rev-Exp Region 1'!AK$95","v":{"v":0,"d":"$0.00"}},{"v":0,"d":"$0.00"},{"v":0,"d":"$0.00"},{"v":0,"d":"$0.00"},{"v":0,"d":"$0.00"},{"v":0,"d":"$0.00"},{"v":0,"d":"$0.00"},{"v":0,"d":"$0.00"},{"v":0,"d":"$0.00"},{"v":0,"d":"$0.00"},{"v":0,"d":"$0.00"},{"v":0,"d":"$0.00"}]
["MMA",null,null,{"$f":"Jurat!I$1","v":0},{"$f":"Jurat!D$33","v":"00:00:00"},"Q4","2017-12-31","Region 1","Operating Expense","Taxes & Fees","Taxes & Fees","13.1","State Premium tax",{"$f":"'MMA Rev-Exp Region 1'!AK$97","v":{"v":0,"d":"$0.00"}},{"v":0,"d":"$0.00"},{"v":0,"d":"$0.00"},{"v":0,"d":"$0.00"},{"v":0,"d":"$0.00"},{"v":0,"d":"$0.00"},{"v":0,"d":"$0.00"},{"v":0,"d":"$0.00"},{"v":0,"d":"$0.00"},{"v":0,"d":"$0.00"},{"v":0,"d":"$0.00"},{"v":0,"d":"$0.00"}]
["MMA",null,null,{"$f":"Jurat!I$1","v":0},{"$f":"Jurat!D$33","v":"00:00:00"},"Q4","2017-12-31","Region 1","Operating Expense","Taxes & Fees","Taxes & Fees","13.2","Department of Insurance Assessments",{"$f":"'MMA Rev-Exp Region 1'!AK$98","v":{"v":0,"d":"$0.00"}},{"v":0,"d":"$0.00"},{"v":0,"d":"$0.00"},{"v":0,"d":"$0.00"},{"v":0,"d":"$0.00"},{"v":0,"d":"$0.00"},{"v":0,"d":"$0.00"},{"v":0,"d":"$0.00"},{"v":0,"d":"$0.00"},{"v":0,"d":"$0.00"},{"v":0,"d":"$0.00"},{"v":0,"d":"$0.00"}]
["MMA",null,null,{"$f":"Jurat!I$1","v":0},{"$f":"Jurat!D$33","v":"00:00:00"},"Q4","2017-12-31","Region 1","Operating Expense","Taxes & Fees","Taxes & Fees","13.3","Section 9010 Health Insurance Providers Fee",{"$f":"'MMA Rev-Exp Region 1'!AK$99","v":{"v":0,"d":"$0.00"}},{"v":0,"d":"$0.00"},{"v":0,"d":"$0.00"},{"v":0,"d":"$0.00"},{"v":0,"d":"$0.00"},{"v":0,"d":"$0.00"},{"v":0,"d":"$0.00"},{"v":0,"d":"$0.00"},{"v":0,"d":"$0.00"},{"v":0,"d":"$0.00"},{"v":0,"d":"$0.00"},{"v":0,"d":"$0.00"}]
["MMA",null,null,{"$f":"Jurat!I$1","v":0},{"$f":"Jurat!D$33","v":"00:00:00"},"Q4","2017-12-31","Region 1","Non-Operating Expense","Income Tax Expense","Income Tax Expense","16.0","Income Tax Expense",{"$f":"'MMA Rev-Exp Region 1'!AK$106","v":{"v":0,"d":"$0.00"}},{"v":0,"d":"$0.00"},{"v":0,"d":"$0.00"},{"v":0,"d":"$0.00"},{"v":0,"d":"$0.00"},{"v":0,"d":"$0.00"},{"v":0,"d":"$0.00"},{"v":0,"d":"$0.00"},{"v":0,"d":"$0.00"},{"v":0,"d":"$0.00"},{"v":0,"d":"$0.00"},{"v":0,"d":"$0.00"}]
["MMA",null,null,{"$f":"Jurat!I$1","v":0},{"$f":"Jurat!D$33","v":"00:00:00"},"Q1","2017-03-31","Region 2","Member Months","Member Months","Member Months",null,"Member Months",{"$f":"'MMA Rev-Exp Region 2'!D$9","v":{"v":0,"d":"$0.00"}},{"$f":"'MMA Rev-Exp Region 2'!E$9","v":{"v":0,"d":"$0.00"}},{"$f":"'MMA Rev-Exp Region 2'!F$9","v":{"v":0,"d":"$0.00"}},{"$f":"'MMA Rev-Exp Region 2'!G$9","v":{"v":0,"d":"$0.00"}},{"$f":"'MMA Rev-Exp Region 2'!H$9","v":{"v":0,"d":"$0.00"}},{"$f":"'MMA Rev-Exp Region 2'!I$9","v":{"v":0,"d":"$0.00"}},{"$f":"'MMA Rev-Exp Region 2'!J$9","v":{"v":0,"d":"$0.00"}},{"$f":"'MMA Rev-Exp Region 2'!K$9","v":{"v":0,"d":"$0.00"}},{"$f":"'MMA Rev-Exp Region 2'!L$9","v":{"v":0,"d":"$0.00"}},{"$f":"'MMA Rev-Exp Region 2'!M$9","v":{"v":0,"d":"$0.00"}},{"$f":"'MMA Rev-Exp Region 2'!N$9","v":{"v":0,"d":"$0.00"}},{"v":0,"d":"$0.00"}]
["MMA",null,null,{"$f":"Jurat!I$1","v":0},{"$f":"Jurat!D$33","v":"00:00:00"},"Q1","2017-03-31","Region 2","Operating Revenue","Capitation","Capitation",1.1,"Capitation",{"$f":"'MMA Rev-Exp Region 2'!D$11","v":{"v":0,"d":"$0.00"}},{"$f":"'MMA Rev-Exp Region 2'!E$11","v":{"v":0,"d":"$0.00"}},{"$f":"'MMA Rev-Exp Region 2'!F$11","v":{"v":0,"d":"$0.00"}},{"$f":"'MMA Rev-Exp Region 2'!G$11","v":{"v":0,"d":"$0.00"}},{"$f":"'MMA Rev-Exp Region 2'!H$11","v":{"v":0,"d":"$0.00"}},{"$f":"'MMA Rev-Exp Region 2'!I$11","v":{"v":0,"d":"$0.00"}},{"$f":"'MMA Rev-Exp Region 2'!J$11","v":{"v":0,"d":"$0.00"}},{"$f":"'MMA Rev-Exp Region 2'!K$11","v":{"v":0,"d":"$0.00"}},{"$f":"'MMA Rev-Exp Region 2'!L$11","v":{"v":0,"d":"$0.00"}},{"$f":"'MMA Rev-Exp Region 2'!M$11","v":{"v":0,"d":"$0.00"}},{"$f":"'MMA Rev-Exp Region 2'!N$11","v":{"v":0,"d":"$0.00"}},{"v":0,"d":"$0.00"}]
["MMA",null,null,{"$f":"Jurat!I$1","v":0},{"$f":"Jurat!D$33","v":"00:00:00"},"Q1","2017-03-31","Region 2","Operating Revenue","Kick Payments","Kick Payments - Transplant",1.2,"Transplant Kick Payments",{"$f":"'MMA Rev-Exp Region 2'!D$12","v":{"v":0,"d":"$0.00"}},{"$f":"'MMA Rev-Exp Region 2'!E$12","v":{"v":0,"d":"$0.00"}},{"$f":"'MMA Rev-Exp Region 2'!F$12","v":{"v":0,"d":"$0.00"}},{"$f":"'MMA Rev-Exp Region 2'!G$12","v":{"v":0,"d":"$0.00"}},{"$f":"'MMA Rev-Exp Region 2'!H$12","v":{"v":0,"d":"$0.00"}},{"$f":"'MMA Rev-Exp Region 2'!I$12","v":{"v":0,"d":"$0.00"}},{"$f":"'MMA Rev-Exp Region 2'!J$12","v":{"v":0,"d":"$0.00"}},{"$f":"'MMA Rev-Exp Region 2'!K$12","v":{"v":0,"d":"$0.00"}},{"$f":"'MMA Rev-Exp Region 2'!L$12","v":{"v":0,"d":"$0.00"}},{"$f":"'MMA Rev-Exp Region 2'!M$12","v":{"v":0,"d":"$0.00"}},{"$f":"'MMA Rev-Exp Region 2'!N$12","v":{"v":0,"d":"$0.00"}},{"v":0,"d":"$0.00"}]
["MMA",null,null,{"$f":"Jurat!I$1","v":0},{"$f":"Jurat!D$33","v":"00:00:00"},"Q1","2017-03-31","Region 2","Operating Revenue","Kick Payments","Kick Payments - Hep C","1.3","Hepatitis C Kick Payments",{"$f":"'MMA Rev-Exp Region 2'!D$13","v":{"v":0,"d":"$0.00"}},{"$f":"'MMA Rev-Exp Region 2'!E$13","v":{"v":0,"d":"$0.00"}},{"$f":"'MMA Rev-Exp Region 2'!F$13","v":{"v":0,"d":"$0.00"}},{"$f":"'MMA Rev-Exp Region 2'!G$13","v":{"v":0,"d":"$0.00"}},{"$f":"'MMA Rev-Exp Region 2'!H$13","v":{"v":0,"d":"$0.00"}},{"$f":"'MMA Rev-Exp Region 2'!I$13","v":{"v":0,"d":"$0.00"}},{"$f":"'MMA Rev-Exp Region 2'!J$13","v":{"v":0,"d":"$0.00"}},{"$f":"'MMA Rev-Exp Region 2'!K$13","v":{"v":0,"d":"$0.00"}},{"$f":"'MMA Rev-Exp Region 2'!L$13","v":{"v":0,"d":"$0.00"}},{"$f":"'MMA Rev-Exp Region 2'!M$13","v":{"v":0,"d":"$0.00"}},{"$f":"'MMA Rev-Exp Region 2'!N$13","v":{"v":0,"d":"$0.00"}},{"v":0,"d":"$0.00"}]
["MMA",null,null,{"$f":"Jurat!I$1","v":0},{"$f":"Jurat!D$33","v":"00:00:00"},"Q1","2017-03-31","Region 2","Operating Revenue","Kick Payments","Kick Payments - Maternity","1.4.1","Maternity Kick Payments",{"$f":"'MMA Rev-Exp Region 2'!D$14","v":{"v":0,"d":"$0.00"}},{"$f":"'MMA Rev-Exp Region 2'!E$14","v":{"v":0,"d":"$0.00"}},{"$f":"'MMA Rev-Exp Region 2'!F$14","v":{"v":0,"d":"$0.00"}},{"$f":"'MMA Rev-Exp Region 2'!G$14","v":{"v":0,"d":"$0.00"}},{"$f":"'MMA Rev-Exp Region 2'!H$14","v":{"v":0,"d":"$0.00"}},{"$f":"'MMA Rev-Exp Region 2'!I$14","v":{"v":0,"d":"$0.00"}},{"$f":"'MMA Rev-Exp Region 2'!J$14","v":{"v":0,"d":"$0.00"}},{"$f":"'MMA Rev-Exp Region 2'!K$14","v":{"v":0,"d":"$0.00"}},{"$f":"'MMA Rev-Exp Region 2'!L$14","v":{"v":0,"d":"$0.00"}},{"$f":"'MMA Rev-Exp Region 2'!M$14","v":{"v":0,"d":"$0.00"}},{"$f":"'MMA Rev-Exp Region 2'!N$14","v":{"v":0,"d":"$0.00"}},{"v":0,"d":"$0.00"}]
["MMA",null,null,{"$f":"Jurat!I$1","v":0},{"$f":"Jurat!D$33","v":"00:00:00"},"Q1","2017-03-31","Region 2","Operating Revenue","Other Revenue","Other Revenue - 9010","1.5","ACA § 9010 related payments",{"$f":"'MMA Rev-Exp Region 2'!D$15","v":{"v":0,"d":"$0.00"}},{"$f":"'MMA Rev-Exp Region 2'!E$15","v":{"v":0,"d":"$0.00"}},{"$f":"'MMA Rev-Exp Region 2'!F$15","v":{"v":0,"d":"$0.00"}},{"$f":"'MMA Rev-Exp Region 2'!G$15","v":{"v":0,"d":"$0.00"}},{"$f":"'MMA Rev-Exp Region 2'!H$15","v":{"v":0,"d":"$0.00"}},{"$f":"'MMA Rev-Exp Region 2'!I$15","v":{"v":0,"d":"$0.00"}},{"$f":"'MMA Rev-Exp Region 2'!J$15","v":{"v":0,"d":"$0.00"}},{"$f":"'MMA Rev-Exp Region 2'!K$15","v":{"v":0,"d":"$0.00"}},{"$f":"'MMA Rev-Exp Region 2'!L$15","v":{"v":0,"d":"$0.00"}},{"$f":"'MMA Rev-Exp Region 2'!M$15","v":{"v":0,"d":"$0.00"}},{"$f":"'MMA Rev-Exp Region 2'!N$15","v":{"v":0,"d":"$0.00"}},{"v":0,"d":"$0.00"}]
["MMA",null,null,{"$f":"Jurat!I$1","v":0},{"$f":"Jurat!D$33","v":"00:00:00"},"Q1","2017-03-31","Region 2","Operating Revenue","Other Revenue","Other Revenue","1.6","Other Revenue",{"$f":"'MMA Rev-Exp Region 2'!D$16","v":{"v":0,"d":"$0.00"}},{"$f":"'MMA Rev-Exp Region 2'!E$16","v":{"v":0,"d":"$0.00"}},{"$f":"'MMA Rev-Exp Region 2'!F$16","v":{"v":0,"d":"$0.00"}},{"$f":"'MMA Rev-Exp Region 2'!G$16","v":{"v":0,"d":"$0.00"}},{"$f":"'MMA Rev-Exp Region 2'!H$16","v":{"v":0,"d":"$0.00"}},{"$f":"'MMA Rev-Exp Region 2'!I$16","v":{"v":0,"d":"$0.00"}},{"$f":"'MMA Rev-Exp Region 2'!J$16","v":{"v":0,"d":"$0.00"}},{"$f":"'MMA Rev-Exp Region 2'!K$16","v":{"v":0,"d":"$0.00"}},{"$f":"'MMA Rev-Exp Region 2'!L$16","v":{"v":0,"d":"$0.00"}},{"$f":"'MMA Rev-Exp Region 2'!M$16","v":{"v":0,"d":"$0.00"}},{"$f":"'MMA Rev-Exp Region 2'!N$16","v":{"v":0,"d":"$0.00"}},{"v":0,"d":"$0.00"}]
["MMA",null,null,{"$f":"Jurat!I$1","v":0},{"$f":"Jurat!D$33","v":"00:00:00"},"Q1","2017-03-31","Region 2","Operating Expense","Medical Benefits Expense","Hospital Services",2.1,"Inpatient FFS",{"$f":"'MMA Rev-Exp Region 2'!D$20","v":{"v":0,"d":"$0.00"}},{"$f":"'MMA Rev-Exp Region 2'!E$20","v":{"v":0,"d":"$0.00"}},{"$f":"'MMA Rev-Exp Region 2'!F$20","v":{"v":0,"d":"$0.00"}},{"$f":"'MMA Rev-Exp Region 2'!G$20","v":{"v":0,"d":"$0.00"}},{"$f":"'MMA Rev-Exp Region 2'!H$20","v":{"v":0,"d":"$0.00"}},{"$f":"'MMA Rev-Exp Region 2'!I$20","v":{"v":0,"d":"$0.00"}},{"$f":"'MMA Rev-Exp Region 2'!J$20","v":{"v":0,"d":"$0.00"}},{"$f":"'MMA Rev-Exp Region 2'!K$20","v":{"v":0,"d":"$0.00"}},{"$f":"'MMA Rev-Exp Region 2'!L$20","v":{"v":0,"d":"$0.00"}},{"$f":"'MMA Rev-Exp Region 2'!M$20","v":{"v":0,"d":"$0.00"}},{"$f":"'MMA Rev-Exp Region 2'!N$20","v":{"v":0,"d":"$0.00"}},{"v":0,"d":"$0.00"}]
["MMA",null,null,{"$f":"Jurat!I$1","v":0},{"$f":"Jurat!D$33","v":"00:00:00"},"Q1","2017-03-31","Region 2","Operating Expense","Medical Benefits Expense","Hospital Services",2.2,"Ending IBNP for Inpatient Hospital Services",{"$f":"'MMA Rev-Exp Region 2'!D$21","v":{"v":0,"d":"$0.00"}},{"$f":"'MMA Rev-Exp Region 2'!E$21","v":{"v":0,"d":"$0.00"}},{"$f":"'MMA Rev-Exp Region 2'!F$21","v":{"v":0,"d":"$0.00"}},{"$f":"'MMA Rev-Exp Region 2'!G$21","v":{"v":0,"d":"$0.00"}},{"$f":"'MMA Rev-Exp Region 2'!H$21","v":{"v":0,"d":"$0.00"}},{"$f":"'MMA Rev-Exp Region 2'!I$21","v":{"v":0,"d":"$0.00"}},{"$f":"'MMA Rev-Exp Region 2'!J$21","v":{"v":0,"d":"$0.00"}},{"$f":"'MMA Rev-Exp Region 2'!K$21","v":{"v":0,"d":"$0.00"}},{"$f":"'MMA Rev-Exp Region 2'!L$21","v":{"v":0,"d":"$0.00"}},{"$f":"'MMA Rev-Exp Region 2'!M$21","v":{"v":0,"d":"$0.00"}},{"$f":"'MMA Rev-Exp Region 2'!N$21","v":{"v":0,"d":"$0.00"}},{"v":0,"d":"$0.00"}]
["MMA",null,null,{"$f":"Jurat!I$1","v":0},{"$f":"Jurat!D$33","v":"00:00:00"},"Q1","2017-03-31","Region 2","Operating Expense","Medical Benefits Expense","Hospital Services",2.3,"Outpatient FFS: ER",{"$f":"'MMA Rev-Exp Region 2'!D$22","v":{"v":0,"d":"$0.00"}},{"$f":"'MMA Rev-Exp Region 2'!E$22","v":{"v":0,"d":"$0.00"}},{"$f":"'MMA Rev-Exp Region 2'!F$22","v":{"v":0,"d":"$0.00"}},{"$f":"'MMA Rev-Exp Region 2'!G$22","v":{"v":0,"d":"$0.00"}},{"$f":"'MMA Rev-Exp Region 2'!H$22","v":{"v":0,"d":"$0.00"}},{"$f":"'MMA Rev-Exp Region 2'!I$22","v":{"v":0,"d":"$0.00"}},{"$f":"'MMA Rev-Exp Region 2'!J$22","v":{"v":0,"d":"$0.00"}},{"$f":"'MMA Rev-Exp Region 2'!K$22","v":{"v":0,"d":"$0.00"}},{"$f":"'MMA Rev-Exp Region 2'!L$22","v":{"v":0,"d":"$0.00"}},{"$f":"'MMA Rev-Exp Region 2'!M$22","v":{"v":0,"d":"$0.00"}},{"$f":"'MMA Rev-Exp Region 2'!N$22","v":{"v":0,"d":"$0.00"}},{"v":0,"d":"$0.00"}]
["MMA",null,null,{"$f":"Jurat!I$1","v":0},{"$f":"Jurat!D$33","v":"00:00:00"},"Q1","2017-03-31","Region 2","Operating Expense","Medical Benefits Expense","Hospital Services",2.4,"Outpatient FFS: Other than ER ",{"$f":"'MMA Rev-Exp Region 2'!D$23","v":{"v":0,"d":"$0.00"}},{"$f":"'MMA Rev-Exp Region 2'!E$23","v":{"v":0,"d":"$0.00"}},{"$f":"'MMA Rev-Exp Region 2'!F$23","v":{"v":0,"d":"$0.00"}},{"$f":"'MMA Rev-Exp Region 2'!G$23","v":{"v":0,"d":"$0.00"}},{"$f":"'MMA Rev-Exp Region 2'!H$23","v":{"v":0,"d":"$0.00"}},{"$f":"'MMA Rev-Exp Region 2'!I$23","v":{"v":0,"d":"$0.00"}},{"$f":"'MMA Rev-Exp Region 2'!J$23","v":{"v":0,"d":"$0.00"}},{"$f":"'MMA Rev-Exp Region 2'!K$23","v":{"v":0,"d":"$0.00"}},{"$f":"'MMA Rev-Exp Region 2'!L$23","v":{"v":0,"d":"$0.00"}},{"$f":"'MMA Rev-Exp Region 2'!M$23","v":{"v":0,"d":"$0.00"}},{"$f":"'MMA Rev-Exp Region 2'!N$23","v":{"v":0,"d":"$0.00"}},{"v":0,"d":"$0.00"}]
["MMA",null,null,{"$f":"Jurat!I$1","v":0},{"$f":"Jurat!D$33","v":"00:00:00"},"Q1","2017-03-31","Region 2","Operating Expense","Medical Benefits Expense","Hospital Services",2.5,"Ending IBNP for Outpatient Hospital Services",{"$f":"'MMA Rev-Exp Region 2'!D$24","v":{"v":0,"d":"$0.00"}},{"$f":"'MMA Rev-Exp Region 2'!E$24","v":{"v":0,"d":"$0.00"}},{"$f":"'MMA Rev-Exp Region 2'!F$24","v":{"v":0,"d":"$0.00"}},{"$f":"'MMA Rev-Exp Region 2'!G$24","v":{"v":0,"d":"$0.00"}},{"$f":"'MMA Rev-Exp Region 2'!H$24","v":{"v":0,"d":"$0.00"}},{"$f":"'MMA Rev-Exp Region 2'!I$24","v":{"v":0,"d":"$0.00"}},{"$f":"'MMA Rev-Exp Region 2'!J$24","v":{"v":0,"d":"$0.00"}},{"$f":"'MMA Rev-Exp Region 2'!K$24","v":{"v":0,"d":"$0.00"}},{"$f":"'MMA Rev-Exp Region 2'!L$24","v":{"v":0,"d":"$0.00"}},{"$f":"'MMA Rev-Exp Region 2'!M$24","v":{"v":0,"d":"$0.00"}},{"$f":"'MMA Rev-Exp Region 2'!N$24","v":{"v":0,"d":"$0.00"}},{"v":0,"d":"$0.00"}]
["MMA",null,null,{"$f":"Jurat!I$1","v":0},{"$f":"Jurat!D$33","v":"00:00:00"},"Q1","2017-03-31","Region 2","Operating Expense","Medical Benefits Expense","Hospital Services","2.6","Subcapitated Hospital Services",{"$f":"'MMA Rev-Exp Region 2'!D$25","v":{"v":0,"d":"$0.00"}},{"$f":"'MMA Rev-Exp Region 2'!E$25","v":{"v":0,"d":"$0.00"}},{"$f":"'MMA Rev-Exp Region 2'!F$25","v":{"v":0,"d":"$0.00"}},{"$f":"'MMA Rev-Exp Region 2'!G$25","v":{"v":0,"d":"$0.00"}},{"$f":"'MMA Rev-Exp Region 2'!H$25","v":{"v":0,"d":"$0.00"}},{"$f":"'MMA Rev-Exp Region 2'!I$25","v":{"v":0,"d":"$0.00"}},{"$f":"'MMA Rev-Exp Region 2'!J$25","v":{"v":0,"d":"$0.00"}},{"$f":"'MMA Rev-Exp Region 2'!K$25","v":{"v":0,"d":"$0.00"}},{"$f":"'MMA Rev-Exp Region 2'!L$25","v":{"v":0,"d":"$0.00"}},{"$f":"'MMA Rev-Exp Region 2'!M$25","v":{"v":0,"d":"$0.00"}},{"$f":"'MMA Rev-Exp Region 2'!N$25","v":{"v":0,"d":"$0.00"}},{"v":0,"d":"$0.00"}]
["MMA",null,null,{"$f":"Jurat!I$1","v":0},{"$f":"Jurat!D$33","v":"00:00:00"},"Q1","2017-03-31","Region 2","Operating Expense","Medical Benefits Expense","Hospital Services","2.7","Hospital Settlements",{"$f":"'MMA Rev-Exp Region 2'!D$26","v":{"v":0,"d":"$0.00"}},{"$f":"'MMA Rev-Exp Region 2'!E$26","v":{"v":0,"d":"$0.00"}},{"$f":"'MMA Rev-Exp Region 2'!F$26","v":{"v":0,"d":"$0.00"}},{"$f":"'MMA Rev-Exp Region 2'!G$26","v":{"v":0,"d":"$0.00"}},{"$f":"'MMA Rev-Exp Region 2'!H$26","v":{"v":0,"d":"$0.00"}},{"$f":"'MMA Rev-Exp Region 2'!I$26","v":{"v":0,"d":"$0.00"}},{"$f":"'MMA Rev-Exp Region 2'!J$26","v":{"v":0,"d":"$0.00"}},{"$f":"'MMA Rev-Exp Region 2'!K$26","v":{"v":0,"d":"$0.00"}},{"$f":"'MMA Rev-Exp Region 2'!L$26","v":{"v":0,"d":"$0.00"}},{"$f":"'MMA Rev-Exp Region 2'!M$26","v":{"v":0,"d":"$0.00"}},{"$f":"'MMA Rev-Exp Region 2'!N$26","v":{"v":0,"d":"$0.00"}},{"v":0,"d":"$0.00"}]
["MMA",{"$nulls":5},"2017-03-31","Region 2","Operating Expense","Medical Benefits Expense","Hospital Services","2.7.1","Transplant Services",{"$f":"'MMA Rev-Exp Region 2'!D$27","v":{"v":0,"d":"$0.00"}},{"$f":"'MMA Rev-Exp Region 2'!E$27","v":{"v":0,"d":"$0.00"}},{"$f":"'MMA Rev-Exp Region 2'!F$27","v":{"v":0,"d":"$0.00"}},{"$f":"'MMA Rev-Exp Region 2'!G$27","v":{"v":0,"d":"$0.00"}},{"$f":"'MMA Rev-Exp Region 2'!H$27","v":{"v":0,"d":"$0.00"}},{"$f":"'MMA Rev-Exp Region 2'!I$27","v":{"v":0,"d":"$0.00"}},{"$f":"'MMA Rev-Exp Region 2'!J$27","v":{"v":0,"d":"$0.00"}},{"$f":"'MMA Rev-Exp Region 2'!K$27","v":{"v":0,"d":"$0.00"}},{"$f":"'MMA Rev-Exp Region 2'!L$27","v":{"v":0,"d":"$0.00"}},{"$f":"'MMA Rev-Exp Region 2'!M$27","v":{"v":0,"d":"$0.00"}},{"$f":"'MMA Rev-Exp Region 2'!N$27","v":{"v":0,"d":"$0.00"}},{"v":0,"d":"$0.00"}]
["MMA",null,null,{"$f":"Jurat!I$1","v":0},{"$f":"Jurat!D$33","v":"00:00:00"},"Q1","2017-03-31","Region 2","Operating Expense","Medical Benefits Expense","Professional Services",3.1,"Primary Care FFS",{"$f":"'MMA Rev-Exp Region 2'!D$29","v":{"v":0,"d":"$0.00"}},{"$f":"'MMA Rev-Exp Region 2'!E$29","v":{"v":0,"d":"$0.00"}},{"$f":"'MMA Rev-Exp Region 2'!F$29","v":{"v":0,"d":"$0.00"}},{"$f":"'MMA Rev-Exp Region 2'!G$29","v":{"v":0,"d":"$0.00"}},{"$f":"'MMA Rev-Exp Region 2'!H$29","v":{"v":0,"d":"$0.00"}},{"$f":"'MMA Rev-Exp Region 2'!I$29","v":{"v":0,"d":"$0.00"}},{"$f":"'MMA Rev-Exp Region 2'!J$29","v":{"v":0,"d":"$0.00"}},{"$f":"'MMA Rev-Exp Region 2'!K$29","v":{"v":0,"d":"$0.00"}},{"$f":"'MMA Rev-Exp Region 2'!L$29","v":{"v":0,"d":"$0.00"}},{"$f":"'MMA Rev-Exp Region 2'!M$29","v":{"v":0,"d":"$0.00"}},{"$f":"'MMA Rev-Exp Region 2'!N$29","v":{"v":0,"d":"$0.00"}},{"v":0,"d":"$0.00"}]
["MMA",null,null,{"$f":"Jurat!I$1","v":0},{"$f":"Jurat!D$33","v":"00:00:00"},"Q1","2017-03-31","Region 2","Operating Expense","Medical Benefits Expense","Professional Services",3.2,"Specialty Care FFS",{"$f":"'MMA Rev-Exp Region 2'!D$30","v":{"v":0,"d":"$0.00"}},{"$f":"'MMA Rev-Exp Region 2'!E$30","v":{"v":0,"d":"$0.00"}},{"$f":"'MMA Rev-Exp Region 2'!F$30","v":{"v":0,"d":"$0.00"}},{"$f":"'MMA Rev-Exp Region 2'!G$30","v":{"v":0,"d":"$0.00"}},{"$f":"'MMA Rev-Exp Region 2'!H$30","v":{"v":0,"d":"$0.00"}},{"$f":"'MMA Rev-Exp Region 2'!I$30","v":{"v":0,"d":"$0.00"}},{"$f":"'MMA Rev-Exp Region 2'!J$30","v":{"v":0,"d":"$0.00"}},{"$f":"'MMA Rev-Exp Region 2'!K$30","v":{"v":0,"d":"$0.00"}},{"$f":"'MMA Rev-Exp Region 2'!L$30","v":{"v":0,"d":"$0.00"}},{"$f":"'MMA Rev-Exp Region 2'!M$30","v":{"v":0,"d":"$0.00"}},{"$f":"'MMA Rev-Exp Region 2'!N$30","v":{"v":0,"d":"$0.00"}},{"v":0,"d":"$0.00"}]
["MMA",null,null,{"$f":"Jurat!I$1","v":0},{"$f":"Jurat!D$33","v":"00:00:00"},"Q1","2017-03-31","Region 2","Operating Expense","Medical Benefits Expense","Professional Services",3.3,"Other Professional FFS",{"$f":"'MMA Rev-Exp Region 2'!D$31","v":{"v":0,"d":"$0.00"}},{"$f":"'MMA Rev-Exp Region 2'!E$31","v":{"v":0,"d":"$0.00"}},{"$f":"'MMA Rev-Exp Region 2'!F$31","v":{"v":0,"d":"$0.00"}},{"$f":"'MMA Rev-Exp Region 2'!G$31","v":{"v":0,"d":"$0.00"}},{"$f":"'MMA Rev-Exp Region 2'!H$31","v":{"v":0,"d":"$0.00"}},{"$f":"'MMA Rev-Exp Region 2'!I$31","v":{"v":0,"d":"$0.00"}},{"$f":"'MMA Rev-Exp Region 2'!J$31","v":{"v":0,"d":"$0.00"}},{"$f":"'MMA Rev-Exp Region 2'!K$31","v":{"v":0,"d":"$0.00"}},{"$f":"'MMA Rev-Exp Region 2'!L$31","v":{"v":0,"d":"$0.00"}},{"$f":"'MMA Rev-Exp Region 2'!M$31","v":{"v":0,"d":"$0.00"}},{"$f":"'MMA Rev-Exp Region 2'!N$31","v":{"v":0,"d":"$0.00"}},{"v":0,"d":"$0.00"}]
["MMA",null,null,{"$f":"Jurat!I$1","v":0},{"$f":"Jurat!D$33","v":"00:00:00"},"Q1","2017-03-31","Region 2","Operating Expense","Medical Benefits Expense","Professional Services","3.4","§ 1202 PCP Payments to providers",{"$f":"'MMA Rev-Exp Region 2'!D$32","v":{"v":0,"d":"$0.00"}},{"$f":"'MMA Rev-Exp Region 2'!E$32","v":{"v":0,"d":"$0.00"}},{"$f":"'MMA Rev-Exp Region 2'!F$32","v":{"v":0,"d":"$0.00"}},{"$f":"'MMA Rev-Exp Region 2'!G$32","v":{"v":0,"d":"$0.00"}},{"$f":"'MMA Rev-Exp Region 2'!H$32","v":{"v":0,"d":"$0.00"}},{"$f":"'MMA Rev-Exp Region 2'!I$32","v":{"v":0,"d":"$0.00"}},{"$f":"'MMA Rev-Exp Region 2'!J$32","v":{"v":0,"d":"$0.00"}},{"$f":"'MMA Rev-Exp Region 2'!K$32","v":{"v":0,"d":"$0.00"}},{"$f":"'MMA Rev-Exp Region 2'!L$32","v":{"v":0,"d":"$0.00"}},{"$f":"'MMA Rev-Exp Region 2'!M$32","v":{"v":0,"d":"$0.00"}},{"$f":"'MMA Rev-Exp Region 2'!N$32","v":{"v":0,"d":"$0.00"}},{"v":0,"d":"$0.00"}]
["MMA",null,null,{"$f":"Jurat!I$1","v":0},{"$f":"Jurat!D$33","v":"00:00:00"},"Q1","2017-03-31","Region 2","Operating Expense","Medical Benefits Expense","Professional Services","3.5","Subcapitated Professional Services",{"$f":"'MMA Rev-Exp Region 2'!D$33","v":{"v":0,"d":"$0.00"}},{"$f":"'MMA Rev-Exp Region 2'!E$33","v":{"v":0,"d":"$0.00"}},{"$f":"'MMA Rev-Exp Region 2'!F$33","v":{"v":0,"d":"$0.00"}},{"$f":"'MMA Rev-Exp Region 2'!G$33","v":{"v":0,"d":"$0.00"}},{"$f":"'MMA Rev-Exp Region 2'!H$33","v":{"v":0,"d":"$0.00"}},{"$f":"'MMA Rev-Exp Region 2'!I$33","v":{"v":0,"d":"$0.00"}},{"$f":"'MMA Rev-Exp Region 2'!J$33","v":{"v":0,"d":"$0.00"}},{"$f":"'MMA Rev-Exp Region 2'!K$33","v":{"v":0,"d":"$0.00"}},{"$f":"'MMA Rev-Exp Region 2'!L$33","v":{"v":0,"d":"$0.00"}},{"$f":"'MMA Rev-Exp Region 2'!M$33","v":{"v":0,"d":"$0.00"}},{"$f":"'MMA Rev-Exp Region 2'!N$33","v":{"v":0,"d":"$0.00"}},{"v":0,"d":"$0.00"}]
["MMA",null,null,{"$f":"Jurat!I$1","v":0},{"$f":"Jurat!D$33","v":"00:00:00"},"Q1","2017-03-31","Region 2","Operating Expense","Medical Benefits Expense","Professional Services","3.6","Ending IBNP for Professional Services",{"$f":"'MMA Rev-Exp Region 2'!D$34","v":{"v":0,"d":"$0.00"}},{"$f":"'MMA Rev-Exp Region 2'!E$34","v":{"v":0,"d":"$0.00"}},{"$f":"'MMA Rev-Exp Region 2'!F$34","v":{"v":0,"d":"$0.00"}},{"$f":"'MMA Rev-Exp Region 2'!G$34","v":{"v":0,"d":"$0.00"}},{"$f":"'MMA Rev-Exp Region 2'!H$34","v":{"v":0,"d":"$0.00"}},{"$f":"'MMA Rev-Exp Region 2'!I$34","v":{"v":0,"d":"$0.00"}},{"$f":"'MMA Rev-Exp Region 2'!J$34","v":{"v":0,"d":"$0.00"}},{"$f":"'MMA Rev-Exp Region 2'!K$34","v":{"v":0,"d":"$0.00"}},{"$f":"'MMA Rev-Exp Region 2'!L$34","v":{"v":0,"d":"$0.00"}},{"$f":"'MMA Rev-Exp Region 2'!M$34","v":{"v":0,"d":"$0.00"}},{"$f":"'MMA Rev-Exp Region 2'!N$34","v":{"v":0,"d":"$0.00"}},{"v":0,"d":"$0.00"}]
["MMA",null,null,{"$f":"Jurat!I$1","v":0},{"$f":"Jurat!D$33","v":"00:00:00"},"Q1","2017-03-31","Region 2","Operating Expense","Medical Benefits Expense","Professional Services","3.7","Professional Services Settlements",{"$f":"'MMA Rev-Exp Region 2'!D$35","v":{"v":0,"d":"$0.00"}},{"$f":"'MMA Rev-Exp Region 2'!E$35","v":{"v":0,"d":"$0.00"}},{"$f":"'MMA Rev-Exp Region 2'!F$35","v":{"v":0,"d":"$0.00"}},{"$f":"'MMA Rev-Exp Region 2'!G$35","v":{"v":0,"d":"$0.00"}},{"$f":"'MMA Rev-Exp Region 2'!H$35","v":{"v":0,"d":"$0.00"}},{"$f":"'MMA Rev-Exp Region 2'!I$35","v":{"v":0,"d":"$0.00"}},{"$f":"'MMA Rev-Exp Region 2'!J$35","v":{"v":0,"d":"$0.00"}},{"$f":"'MMA Rev-Exp Region 2'!K$35","v":{"v":0,"d":"$0.00"}},{"$f":"'MMA Rev-Exp Region 2'!L$35","v":{"v":0,"d":"$0.00"}},{"$f":"'MMA Rev-Exp Region 2'!M$35","v":{"v":0,"d":"$0.00"}},{"$f":"'MMA Rev-Exp Region 2'!N$35","v":{"v":0,"d":"$0.00"}},{"v":0,"d":"$0.00"}]
["MMA",null,null,{"$f":"Jurat!I$1","v":0},{"$f":"Jurat!D$33","v":"00:00:00"},"Q1","2017-03-31","Region 2","Operating Expense","Medical Benefits Expense","Maternity Services","4.1.1","Maternity Services",{"$f":"'MMA Rev-Exp Region 2'!D$37","v":{"v":0,"d":"$0.00"}},{"$f":"'MMA Rev-Exp Region 2'!E$37","v":{"v":0,"d":"$0.00"}},{"$f":"'MMA Rev-Exp Region 2'!F$37","v":{"v":0,"d":"$0.00"}},{"$f":"'MMA Rev-Exp Region 2'!G$37","v":{"v":0,"d":"$0.00"}},{"$f":"'MMA Rev-Exp Region 2'!H$37","v":{"v":0,"d":"$0.00"}},{"$f":"'MMA Rev-Exp Region 2'!I$37","v":{"v":0,"d":"$0.00"}},{"$f":"'MMA Rev-Exp Region 2'!J$37","v":{"v":0,"d":"$0.00"}},{"$f":"'MMA Rev-Exp Region 2'!K$37","v":{"v":0,"d":"$0.00"}},{"$f":"'MMA Rev-Exp Region 2'!L$37","v":{"v":0,"d":"$0.00"}},{"$f":"'MMA Rev-Exp Region 2'!M$37","v":{"v":0,"d":"$0.00"}},{"$f":"'MMA Rev-Exp Region 2'!N$37","v":{"v":0,"d":"$0.00"}},{"v":0,"d":"$0.00"}]
["MMA",null,null,{"$f":"Jurat!I$1","v":0},{"$f":"Jurat!D$33","v":"00:00:00"},"Q1","2017-03-31","Region 2","Operating Expense","Medical Benefits Expense","Maternity Services","4.2.1","Ending IBNP for Maternity Services",{"$f":"'MMA Rev-Exp Region 2'!D$38","v":{"v":0,"d":"$0.00"}},{"$f":"'MMA Rev-Exp Region 2'!E$38","v":{"v":0,"d":"$0.00"}},{"$f":"'MMA Rev-Exp Region 2'!F$38","v":{"v":0,"d":"$0.00"}},{"$f":"'MMA Rev-Exp Region 2'!G$38","v":{"v":0,"d":"$0.00"}},{"$f":"'MMA Rev-Exp Region 2'!H$38","v":{"v":0,"d":"$0.00"}},{"$f":"'MMA Rev-Exp Region 2'!I$38","v":{"v":0,"d":"$0.00"}},{"$f":"'MMA Rev-Exp Region 2'!J$38","v":{"v":0,"d":"$0.00"}},{"$f":"'MMA Rev-Exp Region 2'!K$38","v":{"v":0,"d":"$0.00"}},{"$f":"'MMA Rev-Exp Region 2'!L$38","v":{"v":0,"d":"$0.00"}},{"$f":"'MMA Rev-Exp Region 2'!M$38","v":{"v":0,"d":"$0.00"}},{"$f":"'MMA Rev-Exp Region 2'!N$38","v":{"v":0,"d":"$0.00"}},{"v":0,"d":"$0.00"}]
["MMA",null,null,{"$f":"Jurat!I$1","v":0},{"$f":"Jurat!D$33","v":"00:00:00"},"Q1","2017-03-31","Region 2","Operating Expense","Medical Benefits Expense","Maternity Services","4.3.1","Maternity Settlements",{"$f":"'MMA Rev-Exp Region 2'!D$39","v":{"v":0,"d":"$0.00"}},{"$f":"'MMA Rev-Exp Region 2'!E$39","v":{"v":0,"d":"$0.00"}},{"$f":"'MMA Rev-Exp Region 2'!F$39","v":{"v":0,"d":"$0.00"}},{"$f":"'MMA Rev-Exp Region 2'!G$39","v":{"v":0,"d":"$0.00"}},{"$f":"'MMA Rev-Exp Region 2'!H$39","v":{"v":0,"d":"$0.00"}},{"$f":"'MMA Rev-Exp Region 2'!I$39","v":{"v":0,"d":"$0.00"}},{"$f":"'MMA Rev-Exp Region 2'!J$39","v":{"v":0,"d":"$0.00"}},{"$f":"'MMA Rev-Exp Region 2'!K$39","v":{"v":0,"d":"$0.00"}},{"$f":"'MMA Rev-Exp Region 2'!L$39","v":{"v":0,"d":"$0.00"}},{"$f":"'MMA Rev-Exp Region 2'!M$39","v":{"v":0,"d":"$0.00"}},{"$f":"'MMA Rev-Exp Region 2'!N$39","v":{"v":0,"d":"$0.00"}},{"v":0,"d":"$0.00"}]
["MMA",null,null,{"$f":"Jurat!I$1","v":0},{"$f":"Jurat!D$33","v":"00:00:00"},"Q1","2017-03-31","Region 2","Operating Expense","Medical Benefits Expense","Mental Health Services",5.1,"Mental Health & Substance Abuse FFS",{"$f":"'MMA Rev-Exp Region 2'!D$41","v":{"v":0,"d":"$0.00"}},{"$f":"'MMA Rev-Exp Region 2'!E$41","v":{"v":0,"d":"$0.00"}},{"$f":"'MMA Rev-Exp Region 2'!F$41","v":{"v":0,"d":"$0.00"}},{"$f":"'MMA Rev-Exp Region 2'!G$41","v":{"v":0,"d":"$0.00"}},{"$f":"'MMA Rev-Exp Region 2'!H$41","v":{"v":0,"d":"$0.00"}},{"$f":"'MMA Rev-Exp Region 2'!I$41","v":{"v":0,"d":"$0.00"}},{"$f":"'MMA Rev-Exp Region 2'!J$41","v":{"v":0,"d":"$0.00"}},{"$f":"'MMA Rev-Exp Region 2'!K$41","v":{"v":0,"d":"$0.00"}},{"$f":"'MMA Rev-Exp Region 2'!L$41","v":{"v":0,"d":"$0.00"}},{"$f":"'MMA Rev-Exp Region 2'!M$41","v":{"v":0,"d":"$0.00"}},{"$f":"'MMA Rev-Exp Region 2'!N$41","v":{"v":0,"d":"$0.00"}},{"v":0,"d":"$0.00"}]
["MMA",null,null,{"$f":"Jurat!I$1","v":0},{"$f":"Jurat!D$33","v":"00:00:00"},"Q1","2017-03-31","Region 2","Operating Expense","Medical Benefits Expense","Mental Health Services",5.2,"Mental Health & Substance Abuse Subcapitation",{"$f":"'MMA Rev-Exp Region 2'!D$42","v":{"v":0,"d":"$0.00"}},{"$f":"'MMA Rev-Exp Region 2'!E$42","v":{"v":0,"d":"$0.00"}},{"$f":"'MMA Rev-Exp Region 2'!F$42","v":{"v":0,"d":"$0.00"}},{"$f":"'MMA Rev-Exp Region 2'!G$42","v":{"v":0,"d":"$0.00"}},{"$f":"'MMA Rev-Exp Region 2'!H$42","v":{"v":0,"d":"$0.00"}},{"$f":"'MMA Rev-Exp Region 2'!I$42","v":{"v":0,"d":"$0.00"}},{"$f":"'MMA Rev-Exp Region 2'!J$42","v":{"v":0,"d":"$0.00"}},{"$f":"'MMA Rev-Exp Region 2'!K$42","v":{"v":0,"d":"$0.00"}},{"$f":"'MMA Rev-Exp Region 2'!L$42","v":{"v":0,"d":"$0.00"}},{"$f":"'MMA Rev-Exp Region 2'!M$42","v":{"v":0,"d":"$0.00"}},{"$f":"'MMA Rev-Exp Region 2'!N$42","v":{"v":0,"d":"$0.00"}},{"v":0,"d":"$0.00"}]
["MMA",null,null,{"$f":"Jurat!I$1","v":0},{"$f":"Jurat!D$33","v":"00:00:00"},"Q1","2017-03-31","Region 2","Operating Expense","Medical Benefits Expense","Mental Health Services",5.3,"Ending IBNP for Mental Health & Substance Abuse",{"$f":"'MMA Rev-Exp Region 2'!D$43","v":{"v":0,"d":"$0.00"}},{"$f":"'MMA Rev-Exp Region 2'!E$43","v":{"v":0,"d":"$0.00"}},{"$f":"'MMA Rev-Exp Region 2'!F$43","v":{"v":0,"d":"$0.00"}},{"$f":"'MMA Rev-Exp Region 2'!G$43","v":{"v":0,"d":"$0.00"}},{"$f":"'MMA Rev-Exp Region 2'!H$43","v":{"v":0,"d":"$0.00"}},{"$f":"'MMA Rev-Exp Region 2'!I$43","v":{"v":0,"d":"$0.00"}},{"$f":"'MMA Rev-Exp Region 2'!J$43","v":{"v":0,"d":"$0.00"}},{"$f":"'MMA Rev-Exp Region 2'!K$43","v":{"v":0,"d":"$0.00"}},{"$f":"'MMA Rev-Exp Region 2'!L$43","v":{"v":0,"d":"$0.00"}},{"$f":"'MMA Rev-Exp Region 2'!M$43","v":{"v":0,"d":"$0.00"}},{"$f":"'MMA Rev-Exp Region 2'!N$43","v":{"v":0,"d":"$0.00"}},{"v":0,"d":"$0.00"}]
["MMA",null,null,{"$f":"Jurat!I$1","v":0},{"$f":"Jurat!D$33","v":"00:00:00"},"Q1","2017-03-31","Region 2","Operating Expense","Medical Benefits Expense","Mental Health Services","5.4","Mental Health Settlements",{"$f":"'MMA Rev-Exp Region 2'!D$44","v":{"v":0,"d":"$0.00"}},{"$f":"'MMA Rev-Exp Region 2'!E$44","v":{"v":0,"d":"$0.00"}},{"$f":"'MMA Rev-Exp Region 2'!F$44","v":{"v":0,"d":"$0.00"}},{"$f":"'MMA Rev-Exp Region 2'!G$44","v":{"v":0,"d":"$0.00"}},{"$f":"'MMA Rev-Exp Region 2'!H$44","v":{"v":0,"d":"$0.00"}},{"$f":"'MMA Rev-Exp Region 2'!I$44","v":{"v":0,"d":"$0.00"}},{"$f":"'MMA Rev-Exp Region 2'!J$44","v":{"v":0,"d":"$0.00"}},{"$f":"'MMA Rev-Exp Region 2'!K$44","v":{"v":0,"d":"$0.00"}},{"$f":"'MMA Rev-Exp Region 2'!L$44","v":{"v":0,"d":"$0.00"}},{"$f":"'MMA Rev-Exp Region 2'!M$44","v":{"v":0,"d":"$0.00"}},{"$f":"'MMA Rev-Exp Region 2'!N$44","v":{"v":0,"d":"$0.00"}},{"v":0,"d":"$0.00"}]
["MMA",null,null,{"$f":"Jurat!I$1","v":0},{"$f":"Jurat!D$33","v":"00:00:00"},"Q1","2017-03-31","Region 2","Operating Expense","Medical Benefits Expense","Dental Services",6.1,"Dental FFS",{"$f":"'MMA Rev-Exp Region 2'!D$46","v":{"v":0,"d":"$0.00"}},{"$f":"'MMA Rev-Exp Region 2'!E$46","v":{"v":0,"d":"$0.00"}},{"$f":"'MMA Rev-Exp Region 2'!F$46","v":{"v":0,"d":"$0.00"}},{"$f":"'MMA Rev-Exp Region 2'!G$46","v":{"v":0,"d":"$0.00"}},{"$f":"'MMA Rev-Exp Region 2'!H$46","v":{"v":0,"d":"$0.00"}},{"$f":"'MMA Rev-Exp Region 2'!I$46","v":{"v":0,"d":"$0.00"}},{"$f":"'MMA Rev-Exp Region 2'!J$46","v":{"v":0,"d":"$0.00"}},{"$f":"'MMA Rev-Exp Region 2'!K$46","v":{"v":0,"d":"$0.00"}},{"$f":"'MMA Rev-Exp Region 2'!L$46","v":{"v":0,"d":"$0.00"}},{"$f":"'MMA Rev-Exp Region 2'!M$46","v":{"v":0,"d":"$0.00"}},{"$f":"'MMA Rev-Exp Region 2'!N$46","v":{"v":0,"d":"$0.00"}},{"v":0,"d":"$0.00"}]
["MMA",null,null,{"$f":"Jurat!I$1","v":0},{"$f":"Jurat!D$33","v":"00:00:00"},"Q1","2017-03-31","Region 2","Operating Expense","Medical Benefits Expense","Dental Services",6.2,"Dental Subcapitation",{"$f":"'MMA Rev-Exp Region 2'!D$47","v":{"v":0,"d":"$0.00"}},{"$f":"'MMA Rev-Exp Region 2'!E$47","v":{"v":0,"d":"$0.00"}},{"$f":"'MMA Rev-Exp Region 2'!F$47","v":{"v":0,"d":"$0.00"}},{"$f":"'MMA Rev-Exp Region 2'!G$47","v":{"v":0,"d":"$0.00"}},{"$f":"'MMA Rev-Exp Region 2'!H$47","v":{"v":0,"d":"$0.00"}},{"$f":"'MMA Rev-Exp Region 2'!I$47","v":{"v":0,"d":"$0.00"}},{"$f":"'MMA Rev-Exp Region 2'!J$47","v":{"v":0,"d":"$0.00"}},{"$f":"'MMA Rev-Exp Region 2'!K$47","v":{"v":0,"d":"$0.00"}},{"$f":"'MMA Rev-Exp Region 2'!L$47","v":{"v":0,"d":"$0.00"}},{"$f":"'MMA Rev-Exp Region 2'!M$47","v":{"v":0,"d":"$0.00"}},{"$f":"'MMA Rev-Exp Region 2'!N$47","v":{"v":0,"d":"$0.00"}},{"v":0,"d":"$0.00"}]
["MMA",null,null,{"$f":"Jurat!I$1","v":0},{"$f":"Jurat!D$33","v":"00:00:00"},"Q1","2017-03-31","Region 2","Operating Expense","Medical Benefits Expense","Dental Services",6.3,"Ending IBNP for Dental Services",{"$f":"'MMA Rev-Exp Region 2'!D$48","v":{"v":0,"d":"$0.00"}},{"$f":"'MMA Rev-Exp Region 2'!E$48","v":{"v":0,"d":"$0.00"}},{"$f":"'MMA Rev-Exp Region 2'!F$48","v":{"v":0,"d":"$0.00"}},{"$f":"'MMA Rev-Exp Region 2'!G$48","v":{"v":0,"d":"$0.00"}},{"$f":"'MMA Rev-Exp Region 2'!H$48","v":{"v":0,"d":"$0.00"}},{"$f":"'MMA Rev-Exp Region 2'!I$48","v":{"v":0,"d":"$0.00"}},{"$f":"'MMA Rev-Exp Region 2'!J$48","v":{"v":0,"d":"$0.00"}},{"$f":"'MMA Rev-Exp Region 2'!K$48","v":{"v":0,"d":"$0.00"}},{"$f":"'MMA Rev-Exp Region 2'!L$48","v":{"v":0,"d":"$0.00"}},{"$f":"'MMA Rev-Exp Region 2'!M$48","v":{"v":0,"d":"$0.00"}},{"$f":"'MMA Rev-Exp Region 2'!N$48","v":{"v":0,"d":"$0.00"}},{"v":0,"d":"$0.00"}]
["MMA",null,null,{"$f":"Jurat!I$1","v":0},{"$f":"Jurat!D$33","v":"00:00:00"},"Q1","2017-03-31","Region 2","Operating Expense","Medical Benefits Expense","Dental Services","6.4","Dental Settlements",{"$f":"'MMA Rev-Exp Region 2'!D$49","v":{"v":0,"d":"$0.00"}},{"$f":"'MMA Rev-Exp Region 2'!E$49","v":{"v":0,"d":"$0.00"}},{"$f":"'MMA Rev-Exp Region 2'!F$49","v":{"v":0,"d":"$0.00"}},{"$f":"'MMA Rev-Exp Region 2'!G$49","v":{"v":0,"d":"$0.00"}},{"$f":"'MMA Rev-Exp Region 2'!H$49","v":{"v":0,"d":"$0.00"}},{"$f":"'MMA Rev-Exp Region 2'!I$49","v":{"v":0,"d":"$0.00"}},{"$f":"'MMA Rev-Exp Region 2'!J$49","v":{"v":0,"d":"$0.00"}},{"$f":"'MMA Rev-Exp Region 2'!K$49","v":{"v":0,"d":"$0.00"}},{"$f":"'MMA Rev-Exp Region 2'!L$49","v":{"v":0,"d":"$0.00"}},{"$f":"'MMA Rev-Exp Region 2'!M$49","v":{"v":0,"d":"$0.00"}},{"$f":"'MMA Rev-Exp Region 2'!N$49","v":{"v":0,"d":"$0.00"}},{"v":0,"d":"$0.00"}]
["MMA",null,null,{"$f":"Jurat!I$1","v":0},{"$f":"Jurat!D$33","v":"00:00:00"},"Q1","2017-03-31","Region 2","Operating Expense","Medical Benefits Expense","Transportation Services",7.1,"Transportation FFS",{"$f":"'MMA Rev-Exp Region 2'!D$51","v":{"v":0,"d":"$0.00"}},{"$f":"'MMA Rev-Exp Region 2'!E$51","v":{"v":0,"d":"$0.00"}},{"$f":"'MMA Rev-Exp Region 2'!F$51","v":{"v":0,"d":"$0.00"}},{"$f":"'MMA Rev-Exp Region 2'!G$51","v":{"v":0,"d":"$0.00"}},{"$f":"'MMA Rev-Exp Region 2'!H$51","v":{"v":0,"d":"$0.00"}},{"$f":"'MMA Rev-Exp Region 2'!I$51","v":{"v":0,"d":"$0.00"}},{"$f":"'MMA Rev-Exp Region 2'!J$51","v":{"v":0,"d":"$0.00"}},{"$f":"'MMA Rev-Exp Region 2'!K$51","v":{"v":0,"d":"$0.00"}},{"$f":"'MMA Rev-Exp Region 2'!L$51","v":{"v":0,"d":"$0.00"}},{"$f":"'MMA Rev-Exp Region 2'!M$51","v":{"v":0,"d":"$0.00"}},{"$f":"'MMA Rev-Exp Region 2'!N$51","v":{"v":0,"d":"$0.00"}},{"v":0,"d":"$0.00"}]
["MMA",null,null,{"$f":"Jurat!I$1","v":0},{"$f":"Jurat!D$33","v":"00:00:00"},"Q1","2017-03-31","Region 2","Operating Expense","Medical Benefits Expense","Transportation Services",7.2,"Transportation Subcapitation",{"$f":"'MMA Rev-Exp Region 2'!D$52","v":{"v":0,"d":"$0.00"}},{"$f":"'MMA Rev-Exp Region 2'!E$52","v":{"v":0,"d":"$0.00"}},{"$f":"'MMA Rev-Exp Region 2'!F$52","v":{"v":0,"d":"$0.00"}},{"$f":"'MMA Rev-Exp Region 2'!G$52","v":{"v":0,"d":"$0.00"}},{"$f":"'MMA Rev-Exp Region 2'!H$52","v":{"v":0,"d":"$0.00"}},{"$f":"'MMA Rev-Exp Region 2'!I$52","v":{"v":0,"d":"$0.00"}},{"$f":"'MMA Rev-Exp Region 2'!J$52","v":{"v":0,"d":"$0.00"}},{"$f":"'MMA Rev-Exp Region 2'!K$52","v":{"v":0,"d":"$0.00"}},{"$f":"'MMA Rev-Exp Region 2'!L$52","v":{"v":0,"d":"$0.00"}},{"$f":"'MMA Rev-Exp Region 2'!M$52","v":{"v":0,"d":"$0.00"}},{"$f":"'MMA Rev-Exp Region 2'!N$52","v":{"v":0,"d":"$0.00"}},{"v":0,"d":"$0.00"}]
["MMA",null,null,{"$f":"Jurat!I$1","v":0},{"$f":"Jurat!D$33","v":"00:00:00"},"Q1","2017-03-31","Region 2","Operating Expense","Medical Benefits Expense","Transportation Services",7.3,"Ending IBNP for Transportation",{"$f":"'MMA Rev-Exp Region 2'!D$53","v":{"v":0,"d":"$0.00"}},{"$f":"'MMA Rev-Exp Region 2'!E$53","v":{"v":0,"d":"$0.00"}},{"$f":"'MMA Rev-Exp Region 2'!F$53","v":{"v":0,"d":"$0.00"}},{"$f":"'MMA Rev-Exp Region 2'!G$53","v":{"v":0,"d":"$0.00"}},{"$f":"'MMA Rev-Exp Region 2'!H$53","v":{"v":0,"d":"$0.00"}},{"$f":"'MMA Rev-Exp Region 2'!I$53","v":{"v":0,"d":"$0.00"}},{"$f":"'MMA Rev-Exp Region 2'!J$53","v":{"v":0,"d":"$0.00"}},{"$f":"'MMA Rev-Exp Region 2'!K$53","v":{"v":0,"d":"$0.00"}},{"$f":"'MMA Rev-Exp Region 2'!L$53","v":{"v":0,"d":"$0.00"}},{"$f":"'MMA Rev-Exp Region 2'!M$53","v":{"v":0,"d":"$0.00"}},{"$f":"'MMA Rev-Exp Region 2'!N$53","v":{"v":0,"d":"$0.00"}},{"v":0,"d":"$0.00"}]
["MMA",null,null,{"$f":"Jurat!I$1","v":0},{"$f":"Jurat!D$33","v":"00:00:00"},"Q1","2017-03-31","Region 2","Operating Expense","Medical Benefits Expense","Transportation Services","7.4","Transportation Settlements",{"$f":"'MMA Rev-Exp Region 2'!D$54","v":{"v":0,"d":"$0.00"}},{"$f":"'MMA Rev-Exp Region 2'!E$54","v":{"v":0,"d":"$0.00"}},{"$f":"'MMA Rev-Exp Region 2'!F$54","v":{"v":0,"d":"$0.00"}},{"$f":"'MMA Rev-Exp Region 2'!G$54","v":{"v":0,"d":"$0.00"}},{"$f":"'MMA Rev-Exp Region 2'!H$54","v":{"v":0,"d":"$0.00"}},{"$f":"'MMA Rev-Exp Region 2'!I$54","v":{"v":0,"d":"$0.00"}},{"$f":"'MMA Rev-Exp Region 2'!J$54","v":{"v":0,"d":"$0.00"}},{"$f":"'MMA Rev-Exp Region 2'!K$54","v":{"v":0,"d":"$0.00"}},{"$f":"'MMA Rev-Exp Region 2'!L$54","v":{"v":0,"d":"$0.00"}},{"$f":"'MMA Rev-Exp Region 2'!M$54","v":{"v":0,"d":"$0.00"}},{"$f":"'MMA Rev-Exp Region 2'!N$54","v":{"v":0,"d":"$0.00"}},{"v":0,"d":"$0.00"}]
["MMA",null,null,{"$f":"Jurat!I$1","v":0},{"$f":"Jurat!D$33","v":"00:00:00"},"Q1","2017-03-31","Region 2","Operating Expense","Medical Benefits Expense","Pharmacy Services",8.1,"Prescription Drugs FFS",{"$f":"'MMA Rev-Exp Region 2'!D$56","v":{"v":0,"d":"$0.00"}},{"$f":"'MMA Rev-Exp Region 2'!E$56","v":{"v":0,"d":"$0.00"}},{"$f":"'MMA Rev-Exp Region 2'!F$56","v":{"v":0,"d":"$0.00"}},{"$f":"'MMA Rev-Exp Region 2'!G$56","v":{"v":0,"d":"$0.00"}},{"$f":"'MMA Rev-Exp Region 2'!H$56","v":{"v":0,"d":"$0.00"}},{"$f":"'MMA Rev-Exp Region 2'!I$56","v":{"v":0,"d":"$0.00"}},{"$f":"'MMA Rev-Exp Region 2'!J$56","v":{"v":0,"d":"$0.00"}},{"$f":"'MMA Rev-Exp Region 2'!K$56","v":{"v":0,"d":"$0.00"}},{"$f":"'MMA Rev-Exp Region 2'!L$56","v":{"v":0,"d":"$0.00"}},{"$f":"'MMA Rev-Exp Region 2'!M$56","v":{"v":0,"d":"$0.00"}},{"$f":"'MMA Rev-Exp Region 2'!N$56","v":{"v":0,"d":"$0.00"}},{"v":0,"d":"$0.00"}]
["MMA",null,null,{"$f":"Jurat!I$1","v":0},{"$f":"Jurat!D$33","v":"00:00:00"},"Q1","2017-03-31","Region 2","Operating Expense","Medical Benefits Expense","Pharmacy Services","8.2","Hepatitis C Prescription Drug FFS",{"$f":"'MMA Rev-Exp Region 2'!D$57","v":{"v":0,"d":"$0.00"}},{"$f":"'MMA Rev-Exp Region 2'!E$57","v":{"v":0,"d":"$0.00"}},{"$f":"'MMA Rev-Exp Region 2'!F$57","v":{"v":0,"d":"$0.00"}},{"$f":"'MMA Rev-Exp Region 2'!G$57","v":{"v":0,"d":"$0.00"}},{"$f":"'MMA Rev-Exp Region 2'!H$57","v":{"v":0,"d":"$0.00"}},{"$f":"'MMA Rev-Exp Region 2'!I$57","v":{"v":0,"d":"$0.00"}},{"$f":"'MMA Rev-Exp Region 2'!J$57","v":{"v":0,"d":"$0.00"}},{"$f":"'MMA Rev-Exp Region 2'!K$57","v":{"v":0,"d":"$0.00"}},{"$f":"'MMA Rev-Exp Region 2'!L$57","v":{"v":0,"d":"$0.00"}},{"$f":"'MMA Rev-Exp Region 2'!M$57","v":{"v":0,"d":"$0.00"}},{"$f":"'MMA Rev-Exp Region 2'!N$57","v":{"v":0,"d":"$0.00"}},{"v":0,"d":"$0.00"}]
["MMA",null,null,{"$f":"Jurat!I$1","v":0},{"$f":"Jurat!D$33","v":"00:00:00"},"Q1","2017-03-31","Region 2","Operating Expense","Medical Benefits Expense","Pharmacy Services","8.3","Ending IBNP for Prescription Drugs",{"$f":"'MMA Rev-Exp Region 2'!D$58","v":{"v":0,"d":"$0.00"}},{"$f":"'MMA Rev-Exp Region 2'!E$58","v":{"v":0,"d":"$0.00"}},{"$f":"'MMA Rev-Exp Region 2'!F$58","v":{"v":0,"d":"$0.00"}},{"$f":"'MMA Rev-Exp Region 2'!G$58","v":{"v":0,"d":"$0.00"}},{"$f":"'MMA Rev-Exp Region 2'!H$58","v":{"v":0,"d":"$0.00"}},{"$f":"'MMA Rev-Exp Region 2'!I$58","v":{"v":0,"d":"$0.00"}},{"$f":"'MMA Rev-Exp Region 2'!J$58","v":{"v":0,"d":"$0.00"}},{"$f":"'MMA Rev-Exp Region 2'!K$58","v":{"v":0,"d":"$0.00"}},{"$f":"'MMA Rev-Exp Region 2'!L$58","v":{"v":0,"d":"$0.00"}},{"$f":"'MMA Rev-Exp Region 2'!M$58","v":{"v":0,"d":"$0.00"}},{"$f":"'MMA Rev-Exp Region 2'!N$58","v":{"v":0,"d":"$0.00"}},{"v":0,"d":"$0.00"}]
["MMA",null,null,{"$f":"Jurat!I$1","v":0},{"$f":"Jurat!D$33","v":"00:00:00"},"Q1","2017-03-31","Region 2","Operating Expense","Medical Benefits Expense","Pharmacy Services","8.4","Prescription Drug Rebates ",{"$f":"'MMA Rev-Exp Region 2'!D$59","v":{"v":0,"d":"$0.00"}},{"$f":"'MMA Rev-Exp Region 2'!E$59","v":{"v":0,"d":"$0.00"}},{"$f":"'MMA Rev-Exp Region 2'!F$59","v":{"v":0,"d":"$0.00"}},{"$f":"'MMA Rev-Exp Region 2'!G$59","v":{"v":0,"d":"$0.00"}},{"$f":"'MMA Rev-Exp Region 2'!H$59","v":{"v":0,"d":"$0.00"}},{"$f":"'MMA Rev-Exp Region 2'!I$59","v":{"v":0,"d":"$0.00"}},{"$f":"'MMA Rev-Exp Region 2'!J$59","v":{"v":0,"d":"$0.00"}},{"$f":"'MMA Rev-Exp Region 2'!K$59","v":{"v":0,"d":"$0.00"}},{"$f":"'MMA Rev-Exp Region 2'!L$59","v":{"v":0,"d":"$0.00"}},{"$f":"'MMA Rev-Exp Region 2'!M$59","v":{"v":0,"d":"$0.00"}},{"$f":"'MMA Rev-Exp Region 2'!N$59","v":{"v":0,"d":"$0.00"}},{"v":0,"d":"$0.00"}]
["MMA",null,null,{"$f":"Jurat!I$1","v":0},{"$f":"Jurat!D$33","v":"00:00:00"},"Q1","2017-03-31","Region 2","Operating Expense","Medical Benefits Expense","Pharmacy Services","8.5","Ending accrual for Rebates receivable",{"$f":"'MMA Rev-Exp Region 2'!D$60","v":{"v":0,"d":"$0.00"}},{"$f":"'MMA Rev-Exp Region 2'!E$60","v":{"v":0,"d":"$0.00"}},{"$f":"'MMA Rev-Exp Region 2'!F$60","v":{"v":0,"d":"$0.00"}},{"$f":"'MMA Rev-Exp Region 2'!G$60","v":{"v":0,"d":"$0.00"}},{"$f":"'MMA Rev-Exp Region 2'!H$60","v":{"v":0,"d":"$0.00"}},{"$f":"'MMA Rev-Exp Region 2'!I$60","v":{"v":0,"d":"$0.00"}},{"$f":"'MMA Rev-Exp Region 2'!J$60","v":{"v":0,"d":"$0.00"}},{"$f":"'MMA Rev-Exp Region 2'!K$60","v":{"v":0,"d":"$0.00"}},{"$f":"'MMA Rev-Exp Region 2'!L$60","v":{"v":0,"d":"$0.00"}},{"$f":"'MMA Rev-Exp Region 2'!M$60","v":{"v":0,"d":"$0.00"}},{"$f":"'MMA Rev-Exp Region 2'!N$60","v":{"v":0,"d":"$0.00"}},{"v":0,"d":"$0.00"}]
["MMA",null,null,{"$f":"Jurat!I$1","v":0},{"$f":"Jurat!D$33","v":"00:00:00"},"Q1","2017-03-31","Region 2","Operating Expense","Medical Benefits Expense","Pharmacy Services","8.6","Prescription Drugs Subcapitation",{"$f":"'MMA Rev-Exp Region 2'!D$61","v":{"v":0,"d":"$0.00"}},{"$f":"'MMA Rev-Exp Region 2'!E$61","v":{"v":0,"d":"$0.00"}},{"$f":"'MMA Rev-Exp Region 2'!F$61","v":{"v":0,"d":"$0.00"}},{"$f":"'MMA Rev-Exp Region 2'!G$61","v":{"v":0,"d":"$0.00"}},{"$f":"'MMA Rev-Exp Region 2'!H$61","v":{"v":0,"d":"$0.00"}},{"$f":"'MMA Rev-Exp Region 2'!I$61","v":{"v":0,"d":"$0.00"}},{"$f":"'MMA Rev-Exp Region 2'!J$61","v":{"v":0,"d":"$0.00"}},{"$f":"'MMA Rev-Exp Region 2'!K$61","v":{"v":0,"d":"$0.00"}},{"$f":"'MMA Rev-Exp Region 2'!L$61","v":{"v":0,"d":"$0.00"}},{"$f":"'MMA Rev-Exp Region 2'!M$61","v":{"v":0,"d":"$0.00"}},{"$f":"'MMA Rev-Exp Region 2'!N$61","v":{"v":0,"d":"$0.00"}},{"v":0,"d":"$0.00"}]
["MMA",null,null,{"$f":"Jurat!I$1","v":0},{"$f":"Jurat!D$33","v":"00:00:00"},"Q1","2017-03-31","Region 2","Operating Expense","Medical Benefits Expense","Pharmacy Services","8.7","Prescription Drug Settlements",{"$f":"'MMA Rev-Exp Region 2'!D$62","v":{"v":0,"d":"$0.00"}},{"$f":"'MMA Rev-Exp Region 2'!E$62","v":{"v":0,"d":"$0.00"}},{"$f":"'MMA Rev-Exp Region 2'!F$62","v":{"v":0,"d":"$0.00"}},{"$f":"'MMA Rev-Exp Region 2'!G$62","v":{"v":0,"d":"$0.00"}},{"$f":"'MMA Rev-Exp Region 2'!H$62","v":{"v":0,"d":"$0.00"}},{"$f":"'MMA Rev-Exp Region 2'!I$62","v":{"v":0,"d":"$0.00"}},{"$f":"'MMA Rev-Exp Region 2'!J$62","v":{"v":0,"d":"$0.00"}},{"$f":"'MMA Rev-Exp Region 2'!K$62","v":{"v":0,"d":"$0.00"}},{"$f":"'MMA Rev-Exp Region 2'!L$62","v":{"v":0,"d":"$0.00"}},{"$f":"'MMA Rev-Exp Region 2'!M$62","v":{"v":0,"d":"$0.00"}},{"$f":"'MMA Rev-Exp Region 2'!N$62","v":{"v":0,"d":"$0.00"}},{"v":0,"d":"$0.00"}]
["MMA",null,null,{"$f":"Jurat!I$1","v":0},{"$f":"Jurat!D$33","v":"00:00:00"},"Q1","2017-03-31","Region 2","Operating Expense","Medical Benefits Expense","Other MMA Services",9.1,"Home Health, Private Duty Nursing, Personal Care FFS",{"$f":"'MMA Rev-Exp Region 2'!D$64","v":{"v":0,"d":"$0.00"}},{"$f":"'MMA Rev-Exp Region 2'!E$64","v":{"v":0,"d":"$0.00"}},{"$f":"'MMA Rev-Exp Region 2'!F$64","v":{"v":0,"d":"$0.00"}},{"$f":"'MMA Rev-Exp Region 2'!G$64","v":{"v":0,"d":"$0.00"}},{"$f":"'MMA Rev-Exp Region 2'!H$64","v":{"v":0,"d":"$0.00"}},{"$f":"'MMA Rev-Exp Region 2'!I$64","v":{"v":0,"d":"$0.00"}},{"$f":"'MMA Rev-Exp Region 2'!J$64","v":{"v":0,"d":"$0.00"}},{"$f":"'MMA Rev-Exp Region 2'!K$64","v":{"v":0,"d":"$0.00"}},{"$f":"'MMA Rev-Exp Region 2'!L$64","v":{"v":0,"d":"$0.00"}},{"$f":"'MMA Rev-Exp Region 2'!M$64","v":{"v":0,"d":"$0.00"}},{"$f":"'MMA Rev-Exp Region 2'!N$64","v":{"v":0,"d":"$0.00"}},{"v":0,"d":"$0.00"}]
["MMA",null,null,{"$f":"Jurat!I$1","v":0},{"$f":"Jurat!D$33","v":"00:00:00"},"Q1","2017-03-31","Region 2","Operating Expense","Medical Benefits Expense","Other MMA Services","9.2","Hospice FFS",{"$f":"'MMA Rev-Exp Region 2'!D$65","v":{"v":0,"d":"$0.00"}},{"$f":"'MMA Rev-Exp Region 2'!E$65","v":{"v":0,"d":"$0.00"}},{"$f":"'MMA Rev-Exp Region 2'!F$65","v":{"v":0,"d":"$0.00"}},{"$f":"'MMA Rev-Exp Region 2'!G$65","v":{"v":0,"d":"$0.00"}},{"$f":"'MMA Rev-Exp Region 2'!H$65","v":{"v":0,"d":"$0.00"}},{"$f":"'MMA Rev-Exp Region 2'!I$65","v":{"v":0,"d":"$0.00"}},{"$f":"'MMA Rev-Exp Region 2'!J$65","v":{"v":0,"d":"$0.00"}},{"$f":"'MMA Rev-Exp Region 2'!K$65","v":{"v":0,"d":"$0.00"}},{"$f":"'MMA Rev-Exp Region 2'!L$65","v":{"v":0,"d":"$0.00"}},{"$f":"'MMA Rev-Exp Region 2'!M$65","v":{"v":0,"d":"$0.00"}},{"$f":"'MMA Rev-Exp Region 2'!N$65","v":{"v":0,"d":"$0.00"}},{"v":0,"d":"$0.00"}]
["MMA",null,null,{"$f":"Jurat!I$1","v":0},{"$f":"Jurat!D$33","v":"00:00:00"},"Q1","2017-03-31","Region 2","Operating Expense","Medical Benefits Expense","Other MMA Services","9.3","DME FFS",{"$f":"'MMA Rev-Exp Region 2'!D$66","v":{"v":0,"d":"$0.00"}},{"$f":"'MMA Rev-Exp Region 2'!E$66","v":{"v":0,"d":"$0.00"}},{"$f":"'MMA Rev-Exp Region 2'!F$66","v":{"v":0,"d":"$0.00"}},{"$f":"'MMA Rev-Exp Region 2'!G$66","v":{"v":0,"d":"$0.00"}},{"$f":"'MMA Rev-Exp Region 2'!H$66","v":{"v":0,"d":"$0.00"}},{"$f":"'MMA Rev-Exp Region 2'!I$66","v":{"v":0,"d":"$0.00"}},{"$f":"'MMA Rev-Exp Region 2'!J$66","v":{"v":0,"d":"$0.00"}},{"$f":"'MMA Rev-Exp Region 2'!K$66","v":{"v":0,"d":"$0.00"}},{"$f":"'MMA Rev-Exp Region 2'!L$66","v":{"v":0,"d":"$0.00"}},{"$f":"'MMA Rev-Exp Region 2'!M$66","v":{"v":0,"d":"$0.00"}},{"$f":"'MMA Rev-Exp Region 2'!N$66","v":{"v":0,"d":"$0.00"}},{"v":0,"d":"$0.00"}]
["MMA",null,null,{"$f":"Jurat!I$1","v":0},{"$f":"Jurat!D$33","v":"00:00:00"},"Q1","2017-03-31","Region 2","Operating Expense","Medical Benefits Expense","Other MMA Services","9.4","Other State Plan Services FFS",{"$f":"'MMA Rev-Exp Region 2'!D$67","v":{"v":0,"d":"$0.00"}},{"$f":"'MMA Rev-Exp Region 2'!E$67","v":{"v":0,"d":"$0.00"}},{"$f":"'MMA Rev-Exp Region 2'!F$67","v":{"v":0,"d":"$0.00"}},{"$f":"'MMA Rev-Exp Region 2'!G$67","v":{"v":0,"d":"$0.00"}},{"$f":"'MMA Rev-Exp Region 2'!H$67","v":{"v":0,"d":"$0.00"}},{"$f":"'MMA Rev-Exp Region 2'!I$67","v":{"v":0,"d":"$0.00"}},{"$f":"'MMA Rev-Exp Region 2'!J$67","v":{"v":0,"d":"$0.00"}},{"$f":"'MMA Rev-Exp Region 2'!K$67","v":{"v":0,"d":"$0.00"}},{"$f":"'MMA Rev-Exp Region 2'!L$67","v":{"v":0,"d":"$0.00"}},{"$f":"'MMA Rev-Exp Region 2'!M$67","v":{"v":0,"d":"$0.00"}},{"$f":"'MMA Rev-Exp Region 2'!N$67","v":{"v":0,"d":"$0.00"}},{"v":0,"d":"$0.00"}]
["MMA",null,null,{"$f":"Jurat!I$1","v":0},{"$f":"Jurat!D$33","v":"00:00:00"},"Q1","2017-03-31","Region 2","Operating Expense","Medical Benefits Expense","Other MMA Services","9.5","Other Services Subcapitation",{"$f":"'MMA Rev-Exp Region 2'!D$68","v":{"v":0,"d":"$0.00"}},{"$f":"'MMA Rev-Exp Region 2'!E$68","v":{"v":0,"d":"$0.00"}},{"$f":"'MMA Rev-Exp Region 2'!F$68","v":{"v":0,"d":"$0.00"}},{"$f":"'MMA Rev-Exp Region 2'!G$68","v":{"v":0,"d":"$0.00"}},{"$f":"'MMA Rev-Exp Region 2'!H$68","v":{"v":0,"d":"$0.00"}},{"$f":"'MMA Rev-Exp Region 2'!I$68","v":{"v":0,"d":"$0.00"}},{"$f":"'MMA Rev-Exp Region 2'!J$68","v":{"v":0,"d":"$0.00"}},{"$f":"'MMA Rev-Exp Region 2'!K$68","v":{"v":0,"d":"$0.00"}},{"$f":"'MMA Rev-Exp Region 2'!L$68","v":{"v":0,"d":"$0.00"}},{"$f":"'MMA Rev-Exp Region 2'!M$68","v":{"v":0,"d":"$0.00"}},{"$f":"'MMA Rev-Exp Region 2'!N$68","v":{"v":0,"d":"$0.00"}},{"v":0,"d":"$0.00"}]
["MMA",null,null,{"$f":"Jurat!I$1","v":0},{"$f":"Jurat!D$33","v":"00:00:00"},"Q1","2017-03-31","Region 2","Operating Expense","Medical Benefits Expense","Other MMA Services","9.6","Ending IBNP for Other Services",{"$f":"'MMA Rev-Exp Region 2'!D$69","v":{"v":0,"d":"$0.00"}},{"$f":"'MMA Rev-Exp Region 2'!E$69","v":{"v":0,"d":"$0.00"}},{"$f":"'MMA Rev-Exp Region 2'!F$69","v":{"v":0,"d":"$0.00"}},{"$f":"'MMA Rev-Exp Region 2'!G$69","v":{"v":0,"d":"$0.00"}},{"$f":"'MMA Rev-Exp Region 2'!H$69","v":{"v":0,"d":"$0.00"}},{"$f":"'MMA Rev-Exp Region 2'!I$69","v":{"v":0,"d":"$0.00"}},{"$f":"'MMA Rev-Exp Region 2'!J$69","v":{"v":0,"d":"$0.00"}},{"$f":"'MMA Rev-Exp Region 2'!K$69","v":{"v":0,"d":"$0.00"}},{"$f":"'MMA Rev-Exp Region 2'!L$69","v":{"v":0,"d":"$0.00"}},{"$f":"'MMA Rev-Exp Region 2'!M$69","v":{"v":0,"d":"$0.00"}},{"$f":"'MMA Rev-Exp Region 2'!N$69","v":{"v":0,"d":"$0.00"}},{"v":0,"d":"$0.00"}]
["MMA",null,null,{"$f":"Jurat!I$1","v":0},{"$f":"Jurat!D$33","v":"00:00:00"},"Q1","2017-03-31","Region 2","Operating Expense","Medical Benefits Expense","Other MMA Services","9.7","Other Services Settlements",{"$f":"'MMA Rev-Exp Region 2'!D$70","v":{"v":0,"d":"$0.00"}},{"$f":"'MMA Rev-Exp Region 2'!E$70","v":{"v":0,"d":"$0.00"}},{"$f":"'MMA Rev-Exp Region 2'!F$70","v":{"v":0,"d":"$0.00"}},{"$f":"'MMA Rev-Exp Region 2'!G$70","v":{"v":0,"d":"$0.00"}},{"$f":"'MMA Rev-Exp Region 2'!H$70","v":{"v":0,"d":"$0.00"}},{"$f":"'MMA Rev-Exp Region 2'!I$70","v":{"v":0,"d":"$0.00"}},{"$f":"'MMA Rev-Exp Region 2'!J$70","v":{"v":0,"d":"$0.00"}},{"$f":"'MMA Rev-Exp Region 2'!K$70","v":{"v":0,"d":"$0.00"}},{"$f":"'MMA Rev-Exp Region 2'!L$70","v":{"v":0,"d":"$0.00"}},{"$f":"'MMA Rev-Exp Region 2'!M$70","v":{"v":0,"d":"$0.00"}},{"$f":"'MMA Rev-Exp Region 2'!N$70","v":{"v":0,"d":"$0.00"}},{"v":0,"d":"$0.00"}]
["MMA",null,null,{"$f":"Jurat!I$1","v":0},{"$f":"Jurat!D$33","v":"00:00:00"},"Q1","2017-03-31","Region 2","Operating Expense","Medical Benefits Expense","Expanded Benefits","10.1","Expanded Benefits FFS",{"$f":"'MMA Rev-Exp Region 2'!D$72","v":{"v":0,"d":"$0.00"}},{"$f":"'MMA Rev-Exp Region 2'!E$72","v":{"v":0,"d":"$0.00"}},{"$f":"'MMA Rev-Exp Region 2'!F$72","v":{"v":0,"d":"$0.00"}},{"$f":"'MMA Rev-Exp Region 2'!G$72","v":{"v":0,"d":"$0.00"}},{"$f":"'MMA Rev-Exp Region 2'!H$72","v":{"v":0,"d":"$0.00"}},{"$f":"'MMA Rev-Exp Region 2'!I$72","v":{"v":0,"d":"$0.00"}},{"$f":"'MMA Rev-Exp Region 2'!J$72","v":{"v":0,"d":"$0.00"}},{"$f":"'MMA Rev-Exp Region 2'!K$72","v":{"v":0,"d":"$0.00"}},{"$f":"'MMA Rev-Exp Region 2'!L$72","v":{"v":0,"d":"$0.00"}},{"$f":"'MMA Rev-Exp Region 2'!M$72","v":{"v":0,"d":"$0.00"}},{"$f":"'MMA Rev-Exp Region 2'!N$72","v":{"v":0,"d":"$0.00"}},{"v":0,"d":"$0.00"}]
["MMA",null,null,{"$f":"Jurat!I$1","v":0},{"$f":"Jurat!D$33","v":"00:00:00"},"Q1","2017-03-31","Region 2","Operating Expense","Medical Benefits Expense","Expanded Benefits","10.2","Expanded benefits Subcapitation",{"$f":"'MMA Rev-Exp Region 2'!D$73","v":{"v":0,"d":"$0.00"}},{"$f":"'MMA Rev-Exp Region 2'!E$73","v":{"v":0,"d":"$0.00"}},{"$f":"'MMA Rev-Exp Region 2'!F$73","v":{"v":0,"d":"$0.00"}},{"$f":"'MMA Rev-Exp Region 2'!G$73","v":{"v":0,"d":"$0.00"}},{"$f":"'MMA Rev-Exp Region 2'!H$73","v":{"v":0,"d":"$0.00"}},{"$f":"'MMA Rev-Exp Region 2'!I$73","v":{"v":0,"d":"$0.00"}},{"$f":"'MMA Rev-Exp Region 2'!J$73","v":{"v":0,"d":"$0.00"}},{"$f":"'MMA Rev-Exp Region 2'!K$73","v":{"v":0,"d":"$0.00"}},{"$f":"'MMA Rev-Exp Region 2'!L$73","v":{"v":0,"d":"$0.00"}},{"$f":"'MMA Rev-Exp Region 2'!M$73","v":{"v":0,"d":"$0.00"}},{"$f":"'MMA Rev-Exp Region 2'!N$73","v":{"v":0,"d":"$0.00"}},{"v":0,"d":"$0.00"}]
["MMA",null,null,{"$f":"Jurat!I$1","v":0},{"$f":"Jurat!D$33","v":"00:00:00"},"Q1","2017-03-31","Region 2","Operating Expense","Medical Benefits Expense","Expanded Benefits","10.3","Ending IBNP for Expanded Benefits",{"$f":"'MMA Rev-Exp Region 2'!D$74","v":{"v":0,"d":"$0.00"}},{"$f":"'MMA Rev-Exp Region 2'!E$74","v":{"v":0,"d":"$0.00"}},{"$f":"'MMA Rev-Exp Region 2'!F$74","v":{"v":0,"d":"$0.00"}},{"$f":"'MMA Rev-Exp Region 2'!G$74","v":{"v":0,"d":"$0.00"}},{"$f":"'MMA Rev-Exp Region 2'!H$74","v":{"v":0,"d":"$0.00"}},{"$f":"'MMA Rev-Exp Region 2'!I$74","v":{"v":0,"d":"$0.00"}},{"$f":"'MMA Rev-Exp Region 2'!J$74","v":{"v":0,"d":"$0.00"}},{"$f":"'MMA Rev-Exp Region 2'!K$74","v":{"v":0,"d":"$0.00"}},{"$f":"'MMA Rev-Exp Region 2'!L$74","v":{"v":0,"d":"$0.00"}},{"$f":"'MMA Rev-Exp Region 2'!M$74","v":{"v":0,"d":"$0.00"}},{"$f":"'MMA Rev-Exp Region 2'!N$74","v":{"v":0,"d":"$0.00"}},{"v":0,"d":"$0.00"}]
["MMA",null,null,{"$f":"Jurat!I$1","v":0},{"$f":"Jurat!D$33","v":"00:00:00"},"Q1","2017-03-31","Region 2","Operating Expense","Medical Benefits Expense","Expanded Benefits","10.4","Expanded Benefits Settlements",{"$f":"'MMA Rev-Exp Region 2'!D$75","v":{"v":0,"d":"$0.00"}},{"$f":"'MMA Rev-Exp Region 2'!E$75","v":{"v":0,"d":"$0.00"}},{"$f":"'MMA Rev-Exp Region 2'!F$75","v":{"v":0,"d":"$0.00"}},{"$f":"'MMA Rev-Exp Region 2'!G$75","v":{"v":0,"d":"$0.00"}},{"$f":"'MMA Rev-Exp Region 2'!H$75","v":{"v":0,"d":"$0.00"}},{"$f":"'MMA Rev-Exp Region 2'!I$75","v":{"v":0,"d":"$0.00"}},{"$f":"'MMA Rev-Exp Region 2'!J$75","v":{"v":0,"d":"$0.00"}},{"$f":"'MMA Rev-Exp Region 2'!K$75","v":{"v":0,"d":"$0.00"}},{"$f":"'MMA Rev-Exp Region 2'!L$75","v":{"v":0,"d":"$0.00"}},{"$f":"'MMA Rev-Exp Region 2'!M$75","v":{"v":0,"d":"$0.00"}},{"$f":"'MMA Rev-Exp Region 2'!N$75","v":{"v":0,"d":"$0.00"}},{"v":0,"d":"$0.00"}]
["MMA",null,null,{"$f":"Jurat!I$1","v":0},{"$f":"Jurat!D$33","v":"00:00:00"},"Q1","2017-03-31","Region 2","Operating Expense","Medical Benefits Expense","Other Medical","11.5","TPL & Fraud/Abuse Recoveries",{"$f":"'MMA Rev-Exp Region 2'!D$81","v":{"v":0,"d":"$0.00"}},{"$f":"'MMA Rev-Exp Region 2'!E$81","v":{"v":0,"d":"$0.00"}},{"$f":"'MMA Rev-Exp Region 2'!F$81","v":{"v":0,"d":"$0.00"}},{"$f":"'MMA Rev-Exp Region 2'!G$81","v":{"v":0,"d":"$0.00"}},{"$f":"'MMA Rev-Exp Region 2'!H$81","v":{"v":0,"d":"$0.00"}},{"$f":"'MMA Rev-Exp Region 2'!I$81","v":{"v":0,"d":"$0.00"}},{"$f":"'MMA Rev-Exp Region 2'!J$81","v":{"v":0,"d":"$0.00"}},{"$f":"'MMA Rev-Exp Region 2'!K$81","v":{"v":0,"d":"$0.00"}},{"$f":"'MMA Rev-Exp Region 2'!L$81","v":{"v":0,"d":"$0.00"}},{"$f":"'MMA Rev-Exp Region 2'!M$81","v":{"v":0,"d":"$0.00"}},{"$f":"'MMA Rev-Exp Region 2'!N$81","v":{"v":0,"d":"$0.00"}},{"v":0,"d":"$0.00"}]
["MMA",null,null,{"$f":"Jurat!I$1","v":0},{"$f":"Jurat!D$33","v":"00:00:00"},"Q1","2017-03-31","Region 2","Operating Expense","Medical Benefits Expense","Other Medical","11.6.1","Premium Deficiency Reserve",{"$f":"'MMA Rev-Exp Region 2'!D$82","v":{"v":0,"d":"$0.00"}},{"$f":"'MMA Rev-Exp Region 2'!E$82","v":{"v":0,"d":"$0.00"}},{"$f":"'MMA Rev-Exp Region 2'!F$82","v":{"v":0,"d":"$0.00"}},{"$f":"'MMA Rev-Exp Region 2'!G$82","v":{"v":0,"d":"$0.00"}},{"$f":"'MMA Rev-Exp Region 2'!H$82","v":{"v":0,"d":"$0.00"}},{"$f":"'MMA Rev-Exp Region 2'!I$82","v":{"v":0,"d":"$0.00"}},{"$f":"'MMA Rev-Exp Region 2'!J$82","v":{"v":0,"d":"$0.00"}},{"$f":"'MMA Rev-Exp Region 2'!K$82","v":{"v":0,"d":"$0.00"}},{"$f":"'MMA Rev-Exp Region 2'!L$82","v":{"v":0,"d":"$0.00"}},{"$f":"'MMA Rev-Exp Region 2'!M$82","v":{"v":0,"d":"$0.00"}},{"$f":"'MMA Rev-Exp Region 2'!N$82","v":{"v":0,"d":"$0.00"}},{"v":0,"d":"$0.00"}]
["MMA",null,null,{"$f":"Jurat!I$1","v":0},{"$f":"Jurat!D$33","v":"00:00:00"},"Q1","2017-03-31","Region 2","Operating Expense","Medical Benefits Expense","Other Medical","11.8","Reinsurance Premiums",{"$f":"'MMA Rev-Exp Region 2'!D$84","v":{"v":0,"d":"$0.00"}},{"$f":"'MMA Rev-Exp Region 2'!E$84","v":{"v":0,"d":"$0.00"}},{"$f":"'MMA Rev-Exp Region 2'!F$84","v":{"v":0,"d":"$0.00"}},{"$f":"'MMA Rev-Exp Region 2'!G$84","v":{"v":0,"d":"$0.00"}},{"$f":"'MMA Rev-Exp Region 2'!H$84","v":{"v":0,"d":"$0.00"}},{"$f":"'MMA Rev-Exp Region 2'!I$84","v":{"v":0,"d":"$0.00"}},{"$f":"'MMA Rev-Exp Region 2'!J$84","v":{"v":0,"d":"$0.00"}},{"$f":"'MMA Rev-Exp Region 2'!K$84","v":{"v":0,"d":"$0.00"}},{"$f":"'MMA Rev-Exp Region 2'!L$84","v":{"v":0,"d":"$0.00"}},{"$f":"'MMA Rev-Exp Region 2'!M$84","v":{"v":0,"d":"$0.00"}},{"$f":"'MMA Rev-Exp Region 2'!N$84","v":{"v":0,"d":"$0.00"}},{"v":0,"d":"$0.00"}]
["MMA",null,null,{"$f":"Jurat!I$1","v":0},{"$f":"Jurat!D$33","v":"00:00:00"},"Q1","2017-03-31","Region 2","Operating Expense","Medical Benefits Expense","Other Medical","11.9","Reinsurance Recoveries",{"$f":"'MMA Rev-Exp Region 2'!D$85","v":{"v":0,"d":"$0.00"}},{"$f":"'MMA Rev-Exp Region 2'!E$85","v":{"v":0,"d":"$0.00"}},{"$f":"'MMA Rev-Exp Region 2'!F$85","v":{"v":0,"d":"$0.00"}},{"$f":"'MMA Rev-Exp Region 2'!G$85","v":{"v":0,"d":"$0.00"}},{"$f":"'MMA Rev-Exp Region 2'!H$85","v":{"v":0,"d":"$0.00"}},{"$f":"'MMA Rev-Exp Region 2'!I$85","v":{"v":0,"d":"$0.00"}},{"$f":"'MMA Rev-Exp Region 2'!J$85","v":{"v":0,"d":"$0.00"}},{"$f":"'MMA Rev-Exp Region 2'!K$85","v":{"v":0,"d":"$0.00"}},{"$f":"'MMA Rev-Exp Region 2'!L$85","v":{"v":0,"d":"$0.00"}},{"$f":"'MMA Rev-Exp Region 2'!M$85","v":{"v":0,"d":"$0.00"}},{"$f":"'MMA Rev-Exp Region 2'!N$85","v":{"v":0,"d":"$0.00"}},{"v":0,"d":"$0.00"}]
["MMA",null,null,{"$f":"Jurat!I$1","v":0},{"$f":"Jurat!D$33","v":"00:00:00"},"Q1","2017-03-31","Region 2","Operating Expense","Administrative Expense","Administrative","12.1","Salaries & Benefits",{"$f":"'MMA Rev-Exp Region 2'!D$90","v":{"v":0,"d":"$0.00"}},{"v":0,"d":"$0.00"},{"v":0,"d":"$0.00"},{"v":0,"d":"$0.00"},{"v":0,"d":"$0.00"},{"v":0,"d":"$0.00"},{"v":0,"d":"$0.00"},{"v":0,"d":"$0.00"},{"v":0,"d":"$0.00"},{"v":0,"d":"$0.00"},{"v":0,"d":"$0.00"},{"v":0,"d":"$0.00"}]
["MMA",null,null,{"$f":"Jurat!I$1","v":0},{"$f":"Jurat!D$33","v":"00:00:00"},"Q1","2017-03-31","Region 2","Operating Expense","Administrative Expense","Administrative","12.2","Administrative Services",{"$f":"'MMA Rev-Exp Region 2'!D$91","v":{"v":0,"d":"$0.00"}},{"v":0,"d":"$0.00"},{"v":0,"d":"$0.00"},{"v":0,"d":"$0.00"},{"v":0,"d":"$0.00"},{"v":0,"d":"$0.00"},{"v":0,"d":"$0.00"},{"v":0,"d":"$0.00"},{"v":0,"d":"$0.00"},{"v":0,"d":"$0.00"},{"v":0,"d":"$0.00"},{"v":0,"d":"$0.00"}]
["MMA",null,null,{"$f":"Jurat!I$1","v":0},{"$f":"Jurat!D$33","v":"00:00:00"},"Q1","2017-03-31","Region 2","Operating Expense","Administrative Expense","Administrative","12.3","Information Systems",{"$f":"'MMA Rev-Exp Region 2'!D$92","v":{"v":0,"d":"$0.00"}},{"v":0,"d":"$0.00"},{"v":0,"d":"$0.00"},{"v":0,"d":"$0.00"},{"v":0,"d":"$0.00"},{"v":0,"d":"$0.00"},{"v":0,"d":"$0.00"},{"v":0,"d":"$0.00"},{"v":0,"d":"$0.00"},{"v":0,"d":"$0.00"},{"v":0,"d":"$0.00"},{"v":0,"d":"$0.00"}]
["MMA",null,null,{"$f":"Jurat!I$1","v":0},{"$f":"Jurat!D$33","v":"00:00:00"},"Q1","2017-03-31","Region 2","Operating Expense","Administrative Expense","Administrative","12.4","Marketing Expenses",{"$f":"'MMA Rev-Exp Region 2'!D$93","v":{"v":0,"d":"$0.00"}},{"v":0,"d":"$0.00"},{"v":0,"d":"$0.00"},{"v":0,"d":"$0.00"},{"v":0,"d":"$0.00"},{"v":0,"d":"$0.00"},{"v":0,"d":"$0.00"},{"v":0,"d":"$0.00"},{"v":0,"d":"$0.00"},{"v":0,"d":"$0.00"},{"v":0,"d":"$0.00"},{"v":0,"d":"$0.00"}]
["MMA",null,null,{"$f":"Jurat!I$1","v":0},{"$f":"Jurat!D$33","v":"00:00:00"},"Q1","2017-03-31","Region 2","Operating Expense","Administrative Expense","Administrative","12.5","General  Administration",{"$f":"'MMA Rev-Exp Region 2'!D$94","v":{"v":0,"d":"$0.00"}},{"v":0,"d":"$0.00"},{"v":0,"d":"$0.00"},{"v":0,"d":"$0.00"},{"v":0,"d":"$0.00"},{"v":0,"d":"$0.00"},{"v":0,"d":"$0.00"},{"v":0,"d":"$0.00"},{"v":0,"d":"$0.00"},{"v":0,"d":"$0.00"},{"v":0,"d":"$0.00"},{"v":0,"d":"$0.00"}]
["MMA",null,null,{"$f":"Jurat!I$1","v":0},{"$f":"Jurat!D$33","v":"00:00:00"},"Q1","2017-03-31","Region 2","Operating Expense","Administrative Expense","Administrative","12.6","Compliance/Regulatory",{"$f":"'MMA Rev-Exp Region 2'!D$95","v":{"v":0,"d":"$0.00"}},{"v":0,"d":"$0.00"},{"v":0,"d":"$0.00"},{"v":0,"d":"$0.00"},{"v":0,"d":"$0.00"},{"v":0,"d":"$0.00"},{"v":0,"d":"$0.00"},{"v":0,"d":"$0.00"},{"v":0,"d":"$0.00"},{"v":0,"d":"$0.00"},{"v":0,"d":"$0.00"},{"v":0,"d":"$0.00"}]
["MMA",null,null,{"$f":"Jurat!I$1","v":0},{"$f":"Jurat!D$33","v":"00:00:00"},"Q1","2017-03-31","Region 2","Operating Expense","Taxes & Fees","Taxes & Fees","13.1","State Premium tax",{"$f":"'MMA Rev-Exp Region 2'!D$97","v":{"v":0,"d":"$0.00"}},{"v":0,"d":"$0.00"},{"v":0,"d":"$0.00"},{"v":0,"d":"$0.00"},{"v":0,"d":"$0.00"},{"v":0,"d":"$0.00"},{"v":0,"d":"$0.00"},{"v":0,"d":"$0.00"},{"v":0,"d":"$0.00"},{"v":0,"d":"$0.00"},{"v":0,"d":"$0.00"},{"v":0,"d":"$0.00"}]
["MMA",null,null,{"$f":"Jurat!I$1","v":0},{"$f":"Jurat!D$33","v":"00:00:00"},"Q1","2017-03-31","Region 2","Operating Expense","Taxes & Fees","Taxes & Fees","13.2","Department of Insurance Assessments",{"$f":"'MMA Rev-Exp Region 2'!D$98","v":{"v":0,"d":"$0.00"}},{"v":0,"d":"$0.00"},{"v":0,"d":"$0.00"},{"v":0,"d":"$0.00"},{"v":0,"d":"$0.00"},{"v":0,"d":"$0.00"},{"v":0,"d":"$0.00"},{"v":0,"d":"$0.00"},{"v":0,"d":"$0.00"},{"v":0,"d":"$0.00"},{"v":0,"d":"$0.00"},{"v":0,"d":"$0.00"}]
["MMA",null,null,{"$f":"Jurat!I$1","v":0},{"$f":"Jurat!D$33","v":"00:00:00"},"Q1","2017-03-31","Region 2","Operating Expense","Taxes & Fees","Taxes & Fees","13.3","Section 9010 Health Insurance Providers Fee",{"$f":"'MMA Rev-Exp Region 2'!D$99","v":{"v":0,"d":"$0.00"}},{"v":0,"d":"$0.00"},{"v":0,"d":"$0.00"},{"v":0,"d":"$0.00"},{"v":0,"d":"$0.00"},{"v":0,"d":"$0.00"},{"v":0,"d":"$0.00"},{"v":0,"d":"$0.00"},{"v":0,"d":"$0.00"},{"v":0,"d":"$0.00"},{"v":0,"d":"$0.00"},{"v":0,"d":"$0.00"}]
["MMA",null,null,{"$f":"Jurat!I$1","v":0},{"$f":"Jurat!D$33","v":"00:00:00"},"Q1","2017-03-31","Region 2","Non-Operating Expense","Income Tax Expense","Income Tax Expense","16.0","Income Tax Expense",{"$f":"'MMA Rev-Exp Region 2'!D$106","v":{"v":0,"d":"$0.00"}},{"v":0,"d":"$0.00"},{"v":0,"d":"$0.00"},{"v":0,"d":"$0.00"},{"v":0,"d":"$0.00"},{"v":0,"d":"$0.00"},{"v":0,"d":"$0.00"},{"v":0,"d":"$0.00"},{"v":0,"d":"$0.00"},{"v":0,"d":"$0.00"},{"v":0,"d":"$0.00"},{"v":0,"d":"$0.00"}]
["MMA",null,null,{"$f":"Jurat!I$1","v":0},{"$f":"Jurat!D$33","v":"00:00:00"},"Q1","2017-06-30","Region 2","Member Months","Member Months","Member Months",null,"Member Months",{"$f":"'MMA Rev-Exp Region 2'!O$9","v":{"v":0,"d":"$0.00"}},{"$f":"'MMA Rev-Exp Region 2'!P$9","v":{"v":0,"d":"$0.00"}},{"$f":"'MMA Rev-Exp Region 2'!Q$9","v":{"v":0,"d":"$0.00"}},{"$f":"'MMA Rev-Exp Region 2'!R$9","v":{"v":0,"d":"$0.00"}},{"$f":"'MMA Rev-Exp Region 2'!S$9","v":{"v":0,"d":"$0.00"}},{"$f":"'MMA Rev-Exp Region 2'!T$9","v":{"v":0,"d":"$0.00"}},{"$f":"'MMA Rev-Exp Region 2'!U$9","v":{"v":0,"d":"$0.00"}},{"$f":"'MMA Rev-Exp Region 2'!V$9","v":{"v":0,"d":"$0.00"}},{"$f":"'MMA Rev-Exp Region 2'!W$9","v":{"v":0,"d":"$0.00"}},{"$f":"'MMA Rev-Exp Region 2'!X$9","v":{"v":0,"d":"$0.00"}},{"$f":"'MMA Rev-Exp Region 2'!Y$9","v":{"v":0,"d":"$0.00"}},{"v":0,"d":"$0.00"}]
["MMA",null,null,{"$f":"Jurat!I$1","v":0},{"$f":"Jurat!D$33","v":"00:00:00"},"Q2","2017-06-30","Region 2","Operating Revenue","Capitation","Capitation",1.1,"Capitation",{"$f":"'MMA Rev-Exp Region 2'!O$11","v":{"v":0,"d":"$0.00"}},{"$f":"'MMA Rev-Exp Region 2'!P$11","v":{"v":0,"d":"$0.00"}},{"$f":"'MMA Rev-Exp Region 2'!Q$11","v":{"v":0,"d":"$0.00"}},{"$f":"'MMA Rev-Exp Region 2'!R$11","v":{"v":0,"d":"$0.00"}},{"$f":"'MMA Rev-Exp Region 2'!S$11","v":{"v":0,"d":"$0.00"}},{"$f":"'MMA Rev-Exp Region 2'!T$11","v":{"v":0,"d":"$0.00"}},{"$f":"'MMA Rev-Exp Region 2'!U$11","v":{"v":0,"d":"$0.00"}},{"$f":"'MMA Rev-Exp Region 2'!V$11","v":{"v":0,"d":"$0.00"}},{"$f":"'MMA Rev-Exp Region 2'!W$11","v":{"v":0,"d":"$0.00"}},{"$f":"'MMA Rev-Exp Region 2'!X$11","v":{"v":0,"d":"$0.00"}},{"$f":"'MMA Rev-Exp Region 2'!Y$11","v":{"v":0,"d":"$0.00"}},{"v":0,"d":"$0.00"}]
["MMA",null,null,{"$f":"Jurat!I$1","v":0},{"$f":"Jurat!D$33","v":"00:00:00"},"Q2","2017-06-30","Region 2","Operating Revenue","Kick Payments","Kick Payments - Transplant",1.2,"Transplant Kick Payments",{"$f":"'MMA Rev-Exp Region 2'!O$12","v":{"v":0,"d":"$0.00"}},{"$f":"'MMA Rev-Exp Region 2'!P$12","v":{"v":0,"d":"$0.00"}},{"$f":"'MMA Rev-Exp Region 2'!Q$12","v":{"v":0,"d":"$0.00"}},{"$f":"'MMA Rev-Exp Region 2'!R$12","v":{"v":0,"d":"$0.00"}},{"$f":"'MMA Rev-Exp Region 2'!S$12","v":{"v":0,"d":"$0.00"}},{"$f":"'MMA Rev-Exp Region 2'!T$12","v":{"v":0,"d":"$0.00"}},{"$f":"'MMA Rev-Exp Region 2'!U$12","v":{"v":0,"d":"$0.00"}},{"$f":"'MMA Rev-Exp Region 2'!V$12","v":{"v":0,"d":"$0.00"}},{"$f":"'MMA Rev-Exp Region 2'!W$12","v":{"v":0,"d":"$0.00"}},{"$f":"'MMA Rev-Exp Region 2'!X$12","v":{"v":0,"d":"$0.00"}},{"$f":"'MMA Rev-Exp Region 2'!Y$12","v":{"v":0,"d":"$0.00"}},{"v":0,"d":"$0.00"}]
["MMA",null,null,{"$f":"Jurat!I$1","v":0},{"$f":"Jurat!D$33","v":"00:00:00"},"Q2","2017-06-30","Region 2","Operating Revenue","Kick Payments","Kick Payments - Hep C","1.3","Hepatitis C Kick Payments",{"$f":"'MMA Rev-Exp Region 2'!O$13","v":{"v":0,"d":"$0.00"}},{"$f":"'MMA Rev-Exp Region 2'!P$13","v":{"v":0,"d":"$0.00"}},{"$f":"'MMA Rev-Exp Region 2'!Q$13","v":{"v":0,"d":"$0.00"}},{"$f":"'MMA Rev-Exp Region 2'!R$13","v":{"v":0,"d":"$0.00"}},{"$f":"'MMA Rev-Exp Region 2'!S$13","v":{"v":0,"d":"$0.00"}},{"$f":"'MMA Rev-Exp Region 2'!T$13","v":{"v":0,"d":"$0.00"}},{"$f":"'MMA Rev-Exp Region 2'!U$13","v":{"v":0,"d":"$0.00"}},{"$f":"'MMA Rev-Exp Region 2'!V$13","v":{"v":0,"d":"$0.00"}},{"$f":"'MMA Rev-Exp Region 2'!W$13","v":{"v":0,"d":"$0.00"}},{"$f":"'MMA Rev-Exp Region 2'!X$13","v":{"v":0,"d":"$0.00"}},{"$f":"'MMA Rev-Exp Region 2'!Y$13","v":{"v":0,"d":"$0.00"}},{"v":0,"d":"$0.00"}]
["MMA",null,null,{"$f":"Jurat!I$1","v":0},{"$f":"Jurat!D$33","v":"00:00:00"},"Q2","2017-06-30","Region 2","Operating Revenue","Kick Payments","Kick Payments - Maternity","1.4.1","Maternity Kick Payments",{"$f":"'MMA Rev-Exp Region 2'!O$14","v":{"v":0,"d":"$0.00"}},{"$f":"'MMA Rev-Exp Region 2'!P$14","v":{"v":0,"d":"$0.00"}},{"$f":"'MMA Rev-Exp Region 2'!Q$14","v":{"v":0,"d":"$0.00"}},{"$f":"'MMA Rev-Exp Region 2'!R$14","v":{"v":0,"d":"$0.00"}},{"$f":"'MMA Rev-Exp Region 2'!S$14","v":{"v":0,"d":"$0.00"}},{"$f":"'MMA Rev-Exp Region 2'!T$14","v":{"v":0,"d":"$0.00"}},{"$f":"'MMA Rev-Exp Region 2'!U$14","v":{"v":0,"d":"$0.00"}},{"$f":"'MMA Rev-Exp Region 2'!V$14","v":{"v":0,"d":"$0.00"}},{"$f":"'MMA Rev-Exp Region 2'!W$14","v":{"v":0,"d":"$0.00"}},{"$f":"'MMA Rev-Exp Region 2'!X$14","v":{"v":0,"d":"$0.00"}},{"$f":"'MMA Rev-Exp Region 2'!Y$14","v":{"v":0,"d":"$0.00"}},{"v":0,"d":"$0.00"}]
["MMA",null,null,{"$f":"Jurat!I$1","v":0},{"$f":"Jurat!D$33","v":"00:00:00"},"Q2","2017-06-30","Region 2","Operating Revenue","Other Revenue","Other Revenue - 9010","1.5","ACA § 9010 related payments",{"$f":"'MMA Rev-Exp Region 2'!O$15","v":{"v":0,"d":"$0.00"}},{"$f":"'MMA Rev-Exp Region 2'!P$15","v":{"v":0,"d":"$0.00"}},{"$f":"'MMA Rev-Exp Region 2'!Q$15","v":{"v":0,"d":"$0.00"}},{"$f":"'MMA Rev-Exp Region 2'!R$15","v":{"v":0,"d":"$0.00"}},{"$f":"'MMA Rev-Exp Region 2'!S$15","v":{"v":0,"d":"$0.00"}},{"$f":"'MMA Rev-Exp Region 2'!T$15","v":{"v":0,"d":"$0.00"}},{"$f":"'MMA Rev-Exp Region 2'!U$15","v":{"v":0,"d":"$0.00"}},{"$f":"'MMA Rev-Exp Region 2'!V$15","v":{"v":0,"d":"$0.00"}},{"$f":"'MMA Rev-Exp Region 2'!W$15","v":{"v":0,"d":"$0.00"}},{"$f":"'MMA Rev-Exp Region 2'!X$15","v":{"v":0,"d":"$0.00"}},{"$f":"'MMA Rev-Exp Region 2'!Y$15","v":{"v":0,"d":"$0.00"}},{"v":0,"d":"$0.00"}]
["MMA",null,null,{"$f":"Jurat!I$1","v":0},{"$f":"Jurat!D$33","v":"00:00:00"},"Q2","2017-06-30","Region 2","Operating Revenue","Other Revenue","Other Revenue","1.6","Other Revenue",{"$f":"'MMA Rev-Exp Region 2'!O$16","v":{"v":0,"d":"$0.00"}},{"$f":"'MMA Rev-Exp Region 2'!P$16","v":{"v":0,"d":"$0.00"}},{"$f":"'MMA Rev-Exp Region 2'!Q$16","v":{"v":0,"d":"$0.00"}},{"$f":"'MMA Rev-Exp Region 2'!R$16","v":{"v":0,"d":"$0.00"}},{"$f":"'MMA Rev-Exp Region 2'!S$16","v":{"v":0,"d":"$0.00"}},{"$f":"'MMA Rev-Exp Region 2'!T$16","v":{"v":0,"d":"$0.00"}},{"$f":"'MMA Rev-Exp Region 2'!U$16","v":{"v":0,"d":"$0.00"}},{"$f":"'MMA Rev-Exp Region 2'!V$16","v":{"v":0,"d":"$0.00"}},{"$f":"'MMA Rev-Exp Region 2'!W$16","v":{"v":0,"d":"$0.00"}},{"$f":"'MMA Rev-Exp Region 2'!X$16","v":{"v":0,"d":"$0.00"}},{"$f":"'MMA Rev-Exp Region 2'!Y$16","v":{"v":0,"d":"$0.00"}},{"v":0,"d":"$0.00"}]
["MMA",null,null,{"$f":"Jurat!I$1","v":0},{"$f":"Jurat!D$33","v":"00:00:00"},"Q2","2017-06-30","Region 2","Operating Expense","Medical Benefits Expense","Hospital Services",2.1,"Inpatient FFS",{"$f":"'MMA Rev-Exp Region 2'!O$20","v":{"v":0,"d":"$0.00"}},{"$f":"'MMA Rev-Exp Region 2'!P$20","v":{"v":0,"d":"$0.00"}},{"$f":"'MMA Rev-Exp Region 2'!Q$20","v":{"v":0,"d":"$0.00"}},{"$f":"'MMA Rev-Exp Region 2'!R$20","v":{"v":0,"d":"$0.00"}},{"$f":"'MMA Rev-Exp Region 2'!S$20","v":{"v":0,"d":"$0.00"}},{"$f":"'MMA Rev-Exp Region 2'!T$20","v":{"v":0,"d":"$0.00"}},{"$f":"'MMA Rev-Exp Region 2'!U$20","v":{"v":0,"d":"$0.00"}},{"$f":"'MMA Rev-Exp Region 2'!V$20","v":{"v":0,"d":"$0.00"}},{"$f":"'MMA Rev-Exp Region 2'!W$20","v":{"v":0,"d":"$0.00"}},{"$f":"'MMA Rev-Exp Region 2'!X$20","v":{"v":0,"d":"$0.00"}},{"$f":"'MMA Rev-Exp Region 2'!Y$20","v":{"v":0,"d":"$0.00"}},{"v":0,"d":"$0.00"}]
["MMA",null,null,{"$f":"Jurat!I$1","v":0},{"$f":"Jurat!D$33","v":"00:00:00"},"Q2","2017-06-30","Region 2","Operating Expense","Medical Benefits Expense","Hospital Services",2.2,"Ending IBNP for Inpatient Hospital Services",{"$f":"'MMA Rev-Exp Region 2'!O$21","v":{"v":0,"d":"$0.00"}},{"$f":"'MMA Rev-Exp Region 2'!P$21","v":{"v":0,"d":"$0.00"}},{"$f":"'MMA Rev-Exp Region 2'!Q$21","v":{"v":0,"d":"$0.00"}},{"$f":"'MMA Rev-Exp Region 2'!R$21","v":{"v":0,"d":"$0.00"}},{"$f":"'MMA Rev-Exp Region 2'!S$21","v":{"v":0,"d":"$0.00"}},{"$f":"'MMA Rev-Exp Region 2'!T$21","v":{"v":0,"d":"$0.00"}},{"$f":"'MMA Rev-Exp Region 2'!U$21","v":{"v":0,"d":"$0.00"}},{"$f":"'MMA Rev-Exp Region 2'!V$21","v":{"v":0,"d":"$0.00"}},{"$f":"'MMA Rev-Exp Region 2'!W$21","v":{"v":0,"d":"$0.00"}},{"$f":"'MMA Rev-Exp Region 2'!X$21","v":{"v":0,"d":"$0.00"}},{"$f":"'MMA Rev-Exp Region 2'!Y$21","v":{"v":0,"d":"$0.00"}},{"v":0,"d":"$0.00"}]
["MMA",null,null,{"$f":"Jurat!I$1","v":0},{"$f":"Jurat!D$33","v":"00:00:00"},"Q2","2017-06-30","Region 2","Operating Expense","Medical Benefits Expense","Hospital Services",2.3,"Outpatient FFS: ER",{"$f":"'MMA Rev-Exp Region 2'!O$22","v":{"v":0,"d":"$0.00"}},{"$f":"'MMA Rev-Exp Region 2'!P$22","v":{"v":0,"d":"$0.00"}},{"$f":"'MMA Rev-Exp Region 2'!Q$22","v":{"v":0,"d":"$0.00"}},{"$f":"'MMA Rev-Exp Region 2'!R$22","v":{"v":0,"d":"$0.00"}},{"$f":"'MMA Rev-Exp Region 2'!S$22","v":{"v":0,"d":"$0.00"}},{"$f":"'MMA Rev-Exp Region 2'!T$22","v":{"v":0,"d":"$0.00"}},{"$f":"'MMA Rev-Exp Region 2'!U$22","v":{"v":0,"d":"$0.00"}},{"$f":"'MMA Rev-Exp Region 2'!V$22","v":{"v":0,"d":"$0.00"}},{"$f":"'MMA Rev-Exp Region 2'!W$22","v":{"v":0,"d":"$0.00"}},{"$f":"'MMA Rev-Exp Region 2'!X$22","v":{"v":0,"d":"$0.00"}},{"$f":"'MMA Rev-Exp Region 2'!Y$22","v":{"v":0,"d":"$0.00"}},{"v":0,"d":"$0.00"}]
["MMA",null,null,{"$f":"Jurat!I$1","v":0},{"$f":"Jurat!D$33","v":"00:00:00"},"Q2","2017-06-30","Region 2","Operating Expense","Medical Benefits Expense","Hospital Services",2.4,"Outpatient FFS: Other than ER ",{"$f":"'MMA Rev-Exp Region 2'!O$23","v":{"v":0,"d":"$0.00"}},{"$f":"'MMA Rev-Exp Region 2'!P$23","v":{"v":0,"d":"$0.00"}},{"$f":"'MMA Rev-Exp Region 2'!Q$23","v":{"v":0,"d":"$0.00"}},{"$f":"'MMA Rev-Exp Region 2'!R$23","v":{"v":0,"d":"$0.00"}},{"$f":"'MMA Rev-Exp Region 2'!S$23","v":{"v":0,"d":"$0.00"}},{"$f":"'MMA Rev-Exp Region 2'!T$23","v":{"v":0,"d":"$0.00"}},{"$f":"'MMA Rev-Exp Region 2'!U$23","v":{"v":0,"d":"$0.00"}},{"$f":"'MMA Rev-Exp Region 2'!V$23","v":{"v":0,"d":"$0.00"}},{"$f":"'MMA Rev-Exp Region 2'!W$23","v":{"v":0,"d":"$0.00"}},{"$f":"'MMA Rev-Exp Region 2'!X$23","v":{"v":0,"d":"$0.00"}},{"$f":"'MMA Rev-Exp Region 2'!Y$23","v":{"v":0,"d":"$0.00"}},{"v":0,"d":"$0.00"}]
["MMA",null,null,{"$f":"Jurat!I$1","v":0},{"$f":"Jurat!D$33","v":"00:00:00"},"Q2","2017-06-30","Region 2","Operating Expense","Medical Benefits Expense","Hospital Services",2.5,"Ending IBNP for Outpatient Hospital Services",{"$f":"'MMA Rev-Exp Region 2'!O$24","v":{"v":0,"d":"$0.00"}},{"$f":"'MMA Rev-Exp Region 2'!P$24","v":{"v":0,"d":"$0.00"}},{"$f":"'MMA Rev-Exp Region 2'!Q$24","v":{"v":0,"d":"$0.00"}},{"$f":"'MMA Rev-Exp Region 2'!R$24","v":{"v":0,"d":"$0.00"}},{"$f":"'MMA Rev-Exp Region 2'!S$24","v":{"v":0,"d":"$0.00"}},{"$f":"'MMA Rev-Exp Region 2'!T$24","v":{"v":0,"d":"$0.00"}},{"$f":"'MMA Rev-Exp Region 2'!U$24","v":{"v":0,"d":"$0.00"}},{"$f":"'MMA Rev-Exp Region 2'!V$24","v":{"v":0,"d":"$0.00"}},{"$f":"'MMA Rev-Exp Region 2'!W$24","v":{"v":0,"d":"$0.00"}},{"$f":"'MMA Rev-Exp Region 2'!X$24","v":{"v":0,"d":"$0.00"}},{"$f":"'MMA Rev-Exp Region 2'!Y$24","v":{"v":0,"d":"$0.00"}},{"v":0,"d":"$0.00"}]
["MMA",null,null,{"$f":"Jurat!I$1","v":0},{"$f":"Jurat!D$33","v":"00:00:00"},"Q2","2017-06-30","Region 2","Operating Expense","Medical Benefits Expense","Hospital Services","2.6","Subcapitated Hospital Services",{"$f":"'MMA Rev-Exp Region 2'!O$25","v":{"v":0,"d":"$0.00"}},{"$f":"'MMA Rev-Exp Region 2'!P$25","v":{"v":0,"d":"$0.00"}},{"$f":"'MMA Rev-Exp Region 2'!Q$25","v":{"v":0,"d":"$0.00"}},{"$f":"'MMA Rev-Exp Region 2'!R$25","v":{"v":0,"d":"$0.00"}},{"$f":"'MMA Rev-Exp Region 2'!S$25","v":{"v":0,"d":"$0.00"}},{"$f":"'MMA Rev-Exp Region 2'!T$25","v":{"v":0,"d":"$0.00"}},{"$f":"'MMA Rev-Exp Region 2'!U$25","v":{"v":0,"d":"$0.00"}},{"$f":"'MMA Rev-Exp Region 2'!V$25","v":{"v":0,"d":"$0.00"}},{"$f":"'MMA Rev-Exp Region 2'!W$25","v":{"v":0,"d":"$0.00"}},{"$f":"'MMA Rev-Exp Region 2'!X$25","v":{"v":0,"d":"$0.00"}},{"$f":"'MMA Rev-Exp Region 2'!Y$25","v":{"v":0,"d":"$0.00"}},{"v":0,"d":"$0.00"}]
["MMA",null,null,{"$f":"Jurat!I$1","v":0},{"$f":"Jurat!D$33","v":"00:00:00"},"Q2","2017-06-30","Region 2","Operating Expense","Medical Benefits Expense","Hospital Services","2.7","Hospital Settlements",{"$f":"'MMA Rev-Exp Region 2'!O$26","v":{"v":0,"d":"$0.00"}},{"$f":"'MMA Rev-Exp Region 2'!P$26","v":{"v":0,"d":"$0.00"}},{"$f":"'MMA Rev-Exp Region 2'!Q$26","v":{"v":0,"d":"$0.00"}},{"$f":"'MMA Rev-Exp Region 2'!R$26","v":{"v":0,"d":"$0.00"}},{"$f":"'MMA Rev-Exp Region 2'!S$26","v":{"v":0,"d":"$0.00"}},{"$f":"'MMA Rev-Exp Region 2'!T$26","v":{"v":0,"d":"$0.00"}},{"$f":"'MMA Rev-Exp Region 2'!U$26","v":{"v":0,"d":"$0.00"}},{"$f":"'MMA Rev-Exp Region 2'!V$26","v":{"v":0,"d":"$0.00"}},{"$f":"'MMA Rev-Exp Region 2'!W$26","v":{"v":0,"d":"$0.00"}},{"$f":"'MMA Rev-Exp Region 2'!X$26","v":{"v":0,"d":"$0.00"}},{"$f":"'MMA Rev-Exp Region 2'!Y$26","v":{"v":0,"d":"$0.00"}},{"v":0,"d":"$0.00"}]
["MMA",null,null,{"$f":"Jurat!I$1","v":0},{"$f":"Jurat!D$33","v":"00:00:00"},"Q2","2017-06-30","Region 2","Operating Expense","Medical Benefits Expense","Hospital Services","2.7.1","Transplant Services",{"$f":"'MMA Rev-Exp Region 2'!O$27","v":{"v":0,"d":"$0.00"}},{"$f":"'MMA Rev-Exp Region 2'!P$27","v":{"v":0,"d":"$0.00"}},{"$f":"'MMA Rev-Exp Region 2'!Q$27","v":{"v":0,"d":"$0.00"}},{"$f":"'MMA Rev-Exp Region 2'!R$27","v":{"v":0,"d":"$0.00"}},{"$f":"'MMA Rev-Exp Region 2'!S$27","v":{"v":0,"d":"$0.00"}},{"$f":"'MMA Rev-Exp Region 2'!T$27","v":{"v":0,"d":"$0.00"}},{"$f":"'MMA Rev-Exp Region 2'!U$27","v":{"v":0,"d":"$0.00"}},{"$f":"'MMA Rev-Exp Region 2'!V$27","v":{"v":0,"d":"$0.00"}},{"$f":"'MMA Rev-Exp Region 2'!W$27","v":{"v":0,"d":"$0.00"}},{"$f":"'MMA Rev-Exp Region 2'!X$27","v":{"v":0,"d":"$0.00"}},{"$f":"'MMA Rev-Exp Region 2'!Y$27","v":{"v":0,"d":"$0.00"}},{"v":0,"d":"$0.00"}]
["MMA",{"$nulls":3},{"$f":"Jurat!D$33","v":"00:00:00"},"Q2","2017-06-30","Region 2","Operating Expense","Medical Benefits Expense","Professional Services",3.1,"Primary Care FFS",{"$f":"'MMA Rev-Exp Region 2'!O$29","v":{"v":0,"d":"$0.00"}},{"$f":"'MMA Rev-Exp Region 2'!P$29","v":{"v":0,"d":"$0.00"}},{"$f":"'MMA Rev-Exp Region 2'!Q$29","v":{"v":0,"d":"$0.00"}},{"$f":"'MMA Rev-Exp Region 2'!R$29","v":{"v":0,"d":"$0.00"}},{"$f":"'MMA Rev-Exp Region 2'!S$29","v":{"v":0,"d":"$0.00"}},{"$f":"'MMA Rev-Exp Region 2'!T$29","v":{"v":0,"d":"$0.00"}},{"$f":"'MMA Rev-Exp Region 2'!U$29","v":{"v":0,"d":"$0.00"}},{"$f":"'MMA Rev-Exp Region 2'!V$29","v":{"v":0,"d":"$0.00"}},{"$f":"'MMA Rev-Exp Region 2'!W$29","v":{"v":0,"d":"$0.00"}},{"$f":"'MMA Rev-Exp Region 2'!X$29","v":{"v":0,"d":"$0.00"}},{"$f":"'MMA Rev-Exp Region 2'!Y$29","v":{"v":0,"d":"$0.00"}},{"v":0,"d":"$0.00"}]
["MMA",null,null,{"$f":"Jurat!I$1","v":0},{"$f":"Jurat!D$33","v":"00:00:00"},"Q2","2017-06-30","Region 2","Operating Expense","Medical Benefits Expense","Professional Services",3.2,"Specialty Care FFS",{"$f":"'MMA Rev-Exp Region 2'!O$30","v":{"v":0,"d":"$0.00"}},{"$f":"'MMA Rev-Exp Region 2'!P$30","v":{"v":0,"d":"$0.00"}},{"$f":"'MMA Rev-Exp Region 2'!Q$30","v":{"v":0,"d":"$0.00"}},{"$f":"'MMA Rev-Exp Region 2'!R$30","v":{"v":0,"d":"$0.00"}},{"$f":"'MMA Rev-Exp Region 2'!S$30","v":{"v":0,"d":"$0.00"}},{"$f":"'MMA Rev-Exp Region 2'!T$30","v":{"v":0,"d":"$0.00"}},{"$f":"'MMA Rev-Exp Region 2'!U$30","v":{"v":0,"d":"$0.00"}},{"$f":"'MMA Rev-Exp Region 2'!V$30","v":{"v":0,"d":"$0.00"}},{"$f":"'MMA Rev-Exp Region 2'!W$30","v":{"v":0,"d":"$0.00"}},{"$f":"'MMA Rev-Exp Region 2'!X$30","v":{"v":0,"d":"$0.00"}},{"$f":"'MMA Rev-Exp Region 2'!Y$30","v":{"v":0,"d":"$0.00"}},{"v":0,"d":"$0.00"}]
["MMA",null,null,{"$f":"Jurat!I$1","v":0},{"$f":"Jurat!D$33","v":"00:00:00"},"Q2","2017-06-30","Region 2","Operating Expense","Medical Benefits Expense","Professional Services",3.3,"Other Professional FFS",{"$f":"'MMA Rev-Exp Region 2'!O$31","v":{"v":0,"d":"$0.00"}},{"$f":"'MMA Rev-Exp Region 2'!P$31","v":{"v":0,"d":"$0.00"}},{"$f":"'MMA Rev-Exp Region 2'!Q$31","v":{"v":0,"d":"$0.00"}},{"$f":"'MMA Rev-Exp Region 2'!R$31","v":{"v":0,"d":"$0.00"}},{"$f":"'MMA Rev-Exp Region 2'!S$31","v":{"v":0,"d":"$0.00"}},{"$f":"'MMA Rev-Exp Region 2'!T$31","v":{"v":0,"d":"$0.00"}},{"$f":"'MMA Rev-Exp Region 2'!U$31","v":{"v":0,"d":"$0.00"}},{"$f":"'MMA Rev-Exp Region 2'!V$31","v":{"v":0,"d":"$0.00"}},{"$f":"'MMA Rev-Exp Region 2'!W$31","v":{"v":0,"d":"$0.00"}},{"$f":"'MMA Rev-Exp Region 2'!X$31","v":{"v":0,"d":"$0.00"}},{"$f":"'MMA Rev-Exp Region 2'!Y$31","v":{"v":0,"d":"$0.00"}},{"v":0,"d":"$0.00"}]
["MMA",null,null,{"$f":"Jurat!I$1","v":0},{"$f":"Jurat!D$33","v":"00:00:00"},"Q2","2017-06-30","Region 2","Operating Expense","Medical Benefits Expense","Professional Services","3.4","§ 1202 PCP Payments to providers",{"$f":"'MMA Rev-Exp Region 2'!O$32","v":{"v":0,"d":"$0.00"}},{"$f":"'MMA Rev-Exp Region 2'!P$32","v":{"v":0,"d":"$0.00"}},{"$f":"'MMA Rev-Exp Region 2'!Q$32","v":{"v":0,"d":"$0.00"}},{"$f":"'MMA Rev-Exp Region 2'!R$32","v":{"v":0,"d":"$0.00"}},{"$f":"'MMA Rev-Exp Region 2'!S$32","v":{"v":0,"d":"$0.00"}},{"$f":"'MMA Rev-Exp Region 2'!T$32","v":{"v":0,"d":"$0.00"}},{"$f":"'MMA Rev-Exp Region 2'!U$32","v":{"v":0,"d":"$0.00"}},{"$f":"'MMA Rev-Exp Region 2'!V$32","v":{"v":0,"d":"$0.00"}},{"$f":"'MMA Rev-Exp Region 2'!W$32","v":{"v":0,"d":"$0.00"}},{"$f":"'MMA Rev-Exp Region 2'!X$32","v":{"v":0,"d":"$0.00"}},{"$f":"'MMA Rev-Exp Region 2'!Y$32","v":{"v":0,"d":"$0.00"}},{"v":0,"d":"$0.00"}]
["MMA",null,null,{"$f":"Jurat!I$1","v":0},{"$f":"Jurat!D$33","v":"00:00:00"},"Q2","2017-06-30","Region 2","Operating Expense","Medical Benefits Expense","Professional Services","3.5","Subcapitated Professional Services",{"$f":"'MMA Rev-Exp Region 2'!O$33","v":{"v":0,"d":"$0.00"}},{"$f":"'MMA Rev-Exp Region 2'!P$33","v":{"v":0,"d":"$0.00"}},{"$f":"'MMA Rev-Exp Region 2'!Q$33","v":{"v":0,"d":"$0.00"}},{"$f":"'MMA Rev-Exp Region 2'!R$33","v":{"v":0,"d":"$0.00"}},{"$f":"'MMA Rev-Exp Region 2'!S$33","v":{"v":0,"d":"$0.00"}},{"$f":"'MMA Rev-Exp Region 2'!T$33","v":{"v":0,"d":"$0.00"}},{"$f":"'MMA Rev-Exp Region 2'!U$33","v":{"v":0,"d":"$0.00"}},{"$f":"'MMA Rev-Exp Region 2'!V$33","v":{"v":0,"d":"$0.00"}},{"$f":"'MMA Rev-Exp Region 2'!W$33","v":{"v":0,"d":"$0.00"}},{"$f":"'MMA Rev-Exp Region 2'!X$33","v":{"v":0,"d":"$0.00"}},{"$f":"'MMA Rev-Exp Region 2'!Y$33","v":{"v":0,"d":"$0.00"}},{"v":0,"d":"$0.00"}]
["MMA",null,null,{"$f":"Jurat!I$1","v":0},{"$f":"Jurat!D$33","v":"00:00:00"},"Q2","2017-06-30","Region 2","Operating Expense","Medical Benefits Expense","Professional Services","3.6","Ending IBNP for Professional Services",{"$f":"'MMA Rev-Exp Region 2'!O$34","v":{"v":0,"d":"$0.00"}},{"$f":"'MMA Rev-Exp Region 2'!P$34","v":{"v":0,"d":"$0.00"}},{"$f":"'MMA Rev-Exp Region 2'!Q$34","v":{"v":0,"d":"$0.00"}},{"$f":"'MMA Rev-Exp Region 2'!R$34","v":{"v":0,"d":"$0.00"}},{"$f":"'MMA Rev-Exp Region 2'!S$34","v":{"v":0,"d":"$0.00"}},{"$f":"'MMA Rev-Exp Region 2'!T$34","v":{"v":0,"d":"$0.00"}},{"$f":"'MMA Rev-Exp Region 2'!U$34","v":{"v":0,"d":"$0.00"}},{"$f":"'MMA Rev-Exp Region 2'!V$34","v":{"v":0,"d":"$0.00"}},{"$f":"'MMA Rev-Exp Region 2'!W$34","v":{"v":0,"d":"$0.00"}},{"$f":"'MMA Rev-Exp Region 2'!X$34","v":{"v":0,"d":"$0.00"}},{"$f":"'MMA Rev-Exp Region 2'!Y$34","v":{"v":0,"d":"$0.00"}},{"v":0,"d":"$0.00"}]
["MMA",null,null,{"$f":"Jurat!I$1","v":0},{"$f":"Jurat!D$33","v":"00:00:00"},"Q2","2017-06-30","Region 2","Operating Expense","Medical Benefits Expense","Professional Services","3.7","Professional Services Settlements",{"$f":"'MMA Rev-Exp Region 2'!O$35","v":{"v":0,"d":"$0.00"}},{"$f":"'MMA Rev-Exp Region 2'!P$35","v":{"v":0,"d":"$0.00"}},{"$f":"'MMA Rev-Exp Region 2'!Q$35","v":{"v":0,"d":"$0.00"}},{"$f":"'MMA Rev-Exp Region 2'!R$35","v":{"v":0,"d":"$0.00"}},{"$f":"'MMA Rev-Exp Region 2'!S$35","v":{"v":0,"d":"$0.00"}},{"$f":"'MMA Rev-Exp Region 2'!T$35","v":{"v":0,"d":"$0.00"}},{"$f":"'MMA Rev-Exp Region 2'!U$35","v":{"v":0,"d":"$0.00"}},{"$f":"'MMA Rev-Exp Region 2'!V$35","v":{"v":0,"d":"$0.00"}},{"$f":"'MMA Rev-Exp Region 2'!W$35","v":{"v":0,"d":"$0.00"}},{"$f":"'MMA Rev-Exp Region 2'!X$35","v":{"v":0,"d":"$0.00"}},{"$f":"'MMA Rev-Exp Region 2'!Y$35","v":{"v":0,"d":"$0.00"}},{"v":0,"d":"$0.00"}]
["MMA",null,null,{"$f":"Jurat!I$1","v":0},{"$f":"Jurat!D$33","v":"00:00:00"},"Q2","2017-06-30","Region 2","Operating Expense","Medical Benefits Expense","Maternity Services","4.1.1","Maternity Services",{"$f":"'MMA Rev-Exp Region 2'!O$37","v":{"v":0,"d":"$0.00"}},{"$f":"'MMA Rev-Exp Region 2'!P$37","v":{"v":0,"d":"$0.00"}},{"$f":"'MMA Rev-Exp Region 2'!Q$37","v":{"v":0,"d":"$0.00"}},{"$f":"'MMA Rev-Exp Region 2'!R$37","v":{"v":0,"d":"$0.00"}},{"$f":"'MMA Rev-Exp Region 2'!S$37","v":{"v":0,"d":"$0.00"}},{"$f":"'MMA Rev-Exp Region 2'!T$37","v":{"v":0,"d":"$0.00"}},{"$f":"'MMA Rev-Exp Region 2'!U$37","v":{"v":0,"d":"$0.00"}},{"$f":"'MMA Rev-Exp Region 2'!V$37","v":{"v":0,"d":"$0.00"}},{"$f":"'MMA Rev-Exp Region 2'!W$37","v":{"v":0,"d":"$0.00"}},{"$f":"'MMA Rev-Exp Region 2'!X$37","v":{"v":0,"d":"$0.00"}},{"$f":"'MMA Rev-Exp Region 2'!Y$37","v":{"v":0,"d":"$0.00"}},{"v":0,"d":"$0.00"}]
["MMA",null,null,{"$f":"Jurat!I$1","v":0},{"$f":"Jurat!D$33","v":"00:00:00"},"Q2","2017-06-30","Region 2","Operating Expense","Medical Benefits Expense","Maternity Services","4.2.1","Ending IBNP for Maternity Services",{"$f":"'MMA Rev-Exp Region 2'!O$38","v":{"v":0,"d":"$0.00"}},{"$f":"'MMA Rev-Exp Region 2'!P$38","v":{"v":0,"d":"$0.00"}},{"$f":"'MMA Rev-Exp Region 2'!Q$38","v":{"v":0,"d":"$0.00"}},{"$f":"'MMA Rev-Exp Region 2'!R$38","v":{"v":0,"d":"$0.00"}},{"$f":"'MMA Rev-Exp Region 2'!S$38","v":{"v":0,"d":"$0.00"}},{"$f":"'MMA Rev-Exp Region 2'!T$38","v":{"v":0,"d":"$0.00"}},{"$f":"'MMA Rev-Exp Region 2'!U$38","v":{"v":0,"d":"$0.00"}},{"$f":"'MMA Rev-Exp Region 2'!V$38","v":{"v":0,"d":"$0.00"}},{"$f":"'MMA Rev-Exp Region 2'!W$38","v":{"v":0,"d":"$0.00"}},{"$f":"'MMA Rev-Exp Region 2'!X$38","v":{"v":0,"d":"$0.00"}},{"$f":"'MMA Rev-Exp Region 2'!Y$38","v":{"v":0,"d":"$0.00"}},{"v":0,"d":"$0.00"}]
["MMA",null,null,{"$f":"Jurat!I$1","v":0},{"$f":"Jurat!D$33","v":"00:00:00"},"Q2","2017-06-30","Region 2","Operating Expense","Medical Benefits Expense","Maternity Services","4.3.1","Maternity Settlements",{"$f":"'MMA Rev-Exp Region 2'!O$39","v":{"v":0,"d":"$0.00"}},{"$f":"'MMA Rev-Exp Region 2'!P$39","v":{"v":0,"d":"$0.00"}},{"$f":"'MMA Rev-Exp Region 2'!Q$39","v":{"v":0,"d":"$0.00"}},{"$f":"'MMA Rev-Exp Region 2'!R$39","v":{"v":0,"d":"$0.00"}},{"$f":"'MMA Rev-Exp Region 2'!S$39","v":{"v":0,"d":"$0.00"}},{"$f":"'MMA Rev-Exp Region 2'!T$39","v":{"v":0,"d":"$0.00"}},{"$f":"'MMA Rev-Exp Region 2'!U$39","v":{"v":0,"d":"$0.00"}},{"$f":"'MMA Rev-Exp Region 2'!V$39","v":{"v":0,"d":"$0.00"}},{"$f":"'MMA Rev-Exp Region 2'!W$39","v":{"v":0,"d":"$0.00"}},{"$f":"'MMA Rev-Exp Region 2'!X$39","v":{"v":0,"d":"$0.00"}},{"$f":"'MMA Rev-Exp Region 2'!Y$39","v":{"v":0,"d":"$0.00"}},{"v":0,"d":"$0.00"}]
["MMA",null,null,{"$f":"Jurat!I$1","v":0},{"$f":"Jurat!D$33","v":"00:00:00"},"Q2","2017-06-30","Region 2","Operating Expense","Medical Benefits Expense","Mental Health Services",5.1,"Mental Health & Substance Abuse FFS",{"$f":"'MMA Rev-Exp Region 2'!O$41","v":{"v":0,"d":"$0.00"}},{"$f":"'MMA Rev-Exp Region 2'!P$41","v":{"v":0,"d":"$0.00"}},{"$f":"'MMA Rev-Exp Region 2'!Q$41","v":{"v":0,"d":"$0.00"}},{"$f":"'MMA Rev-Exp Region 2'!R$41","v":{"v":0,"d":"$0.00"}},{"$f":"'MMA Rev-Exp Region 2'!S$41","v":{"v":0,"d":"$0.00"}},{"$f":"'MMA Rev-Exp Region 2'!T$41","v":{"v":0,"d":"$0.00"}},{"$f":"'MMA Rev-Exp Region 2'!U$41","v":{"v":0,"d":"$0.00"}},{"$f":"'MMA Rev-Exp Region 2'!V$41","v":{"v":0,"d":"$0.00"}},{"$f":"'MMA Rev-Exp Region 2'!W$41","v":{"v":0,"d":"$0.00"}},{"$f":"'MMA Rev-Exp Region 2'!X$41","v":{"v":0,"d":"$0.00"}},{"$f":"'MMA Rev-Exp Region 2'!Y$41","v":{"v":0,"d":"$0.00"}},{"v":0,"d":"$0.00"}]
["MMA",null,null,{"$f":"Jurat!I$1","v":0},{"$f":"Jurat!D$33","v":"00:00:00"},"Q2","2017-06-30","Region 2","Operating Expense","Medical Benefits Expense","Mental Health Services",5.2,"Mental Health & Substance Abuse Subcapitation",{"$f":"'MMA Rev-Exp Region 2'!O$42","v":{"v":0,"d":"$0.00"}},{"$f":"'MMA Rev-Exp Region 2'!P$42","v":{"v":0,"d":"$0.00"}},{"$f":"'MMA Rev-Exp Region 2'!Q$42","v":{"v":0,"d":"$0.00"}},{"$f":"'MMA Rev-Exp Region 2'!R$42","v":{"v":0,"d":"$0.00"}},{"$f":"'MMA Rev-Exp Region 2'!S$42","v":{"v":0,"d":"$0.00"}},{"$f":"'MMA Rev-Exp Region 2'!T$42","v":{"v":0,"d":"$0.00"}},{"$f":"'MMA Rev-Exp Region 2'!U$42","v":{"v":0,"d":"$0.00"}},{"$f":"'MMA Rev-Exp Region 2'!V$42","v":{"v":0,"d":"$0.00"}},{"$f":"'MMA Rev-Exp Region 2'!W$42","v":{"v":0,"d":"$0.00"}},{"$f":"'MMA Rev-Exp Region 2'!X$42","v":{"v":0,"d":"$0.00"}},{"$f":"'MMA Rev-Exp Region 2'!Y$42","v":{"v":0,"d":"$0.00"}},{"v":0,"d":"$0.00"}]
["MMA",null,null,{"$f":"Jurat!I$1","v":0},{"$f":"Jurat!D$33","v":"00:00:00"},"Q2","2017-06-30","Region 2","Operating Expense","Medical Benefits Expense","Mental Health Services",5.3,"Ending IBNP for Mental Health & Substance Abuse",{"$f":"'MMA Rev-Exp Region 2'!O$43","v":{"v":0,"d":"$0.00"}},{"$f":"'MMA Rev-Exp Region 2'!P$43","v":{"v":0,"d":"$0.00"}},{"$f":"'MMA Rev-Exp Region 2'!Q$43","v":{"v":0,"d":"$0.00"}},{"$f":"'MMA Rev-Exp Region 2'!R$43","v":{"v":0,"d":"$0.00"}},{"$f":"'MMA Rev-Exp Region 2'!S$43","v":{"v":0,"d":"$0.00"}},{"$f":"'MMA Rev-Exp Region 2'!T$43","v":{"v":0,"d":"$0.00"}},{"$f":"'MMA Rev-Exp Region 2'!U$43","v":{"v":0,"d":"$0.00"}},{"$f":"'MMA Rev-Exp Region 2'!V$43","v":{"v":0,"d":"$0.00"}},{"$f":"'MMA Rev-Exp Region 2'!W$43","v":{"v":0,"d":"$0.00"}},{"$f":"'MMA Rev-Exp Region 2'!X$43","v":{"v":0,"d":"$0.00"}},{"$f":"'MMA Rev-Exp Region 2'!Y$43","v":{"v":0,"d":"$0.00"}},{"v":0,"d":"$0.00"}]
["MMA",null,null,{"$f":"Jurat!I$1","v":0},{"$f":"Jurat!D$33","v":"00:00:00"},"Q2","2017-06-30","Region 2","Operating Expense","Medical Benefits Expense","Mental Health Services","5.4","Mental Health Settlements",{"$f":"'MMA Rev-Exp Region 2'!O$44","v":{"v":0,"d":"$0.00"}},{"$f":"'MMA Rev-Exp Region 2'!P$44","v":{"v":0,"d":"$0.00"}},{"$f":"'MMA Rev-Exp Region 2'!Q$44","v":{"v":0,"d":"$0.00"}},{"$f":"'MMA Rev-Exp Region 2'!R$44","v":{"v":0,"d":"$0.00"}},{"$f":"'MMA Rev-Exp Region 2'!S$44","v":{"v":0,"d":"$0.00"}},{"$f":"'MMA Rev-Exp Region 2'!T$44","v":{"v":0,"d":"$0.00"}},{"$f":"'MMA Rev-Exp Region 2'!U$44","v":{"v":0,"d":"$0.00"}},{"$f":"'MMA Rev-Exp Region 2'!V$44","v":{"v":0,"d":"$0.00"}},{"$f":"'MMA Rev-Exp Region 2'!W$44","v":{"v":0,"d":"$0.00"}},{"$f":"'MMA Rev-Exp Region 2'!X$44","v":{"v":0,"d":"$0.00"}},{"$f":"'MMA Rev-Exp Region 2'!Y$44","v":{"v":0,"d":"$0.00"}},{"v":0,"d":"$0.00"}]
["MMA",null,null,{"$f":"Jurat!I$1","v":0},{"$f":"Jurat!D$33","v":"00:00:00"},"Q2","2017-06-30","Region 2","Operating Expense","Medical Benefits Expense","Dental Services",6.1,"Dental FFS",{"$f":"'MMA Rev-Exp Region 2'!O$46","v":{"v":0,"d":"$0.00"}},{"$f":"'MMA Rev-Exp Region 2'!P$46","v":{"v":0,"d":"$0.00"}},{"$f":"'MMA Rev-Exp Region 2'!Q$46","v":{"v":0,"d":"$0.00"}},{"$f":"'MMA Rev-Exp Region 2'!R$46","v":{"v":0,"d":"$0.00"}},{"$f":"'MMA Rev-Exp Region 2'!S$46","v":{"v":0,"d":"$0.00"}},{"$f":"'MMA Rev-Exp Region 2'!T$46","v":{"v":0,"d":"$0.00"}},{"$f":"'MMA Rev-Exp Region 2'!U$46","v":{"v":0,"d":"$0.00"}},{"$f":"'MMA Rev-Exp Region 2'!V$46","v":{"v":0,"d":"$0.00"}},{"$f":"'MMA Rev-Exp Region 2'!W$46","v":{"v":0,"d":"$0.00"}},{"$f":"'MMA Rev-Exp Region 2'!X$46","v":{"v":0,"d":"$0.00"}},{"$f":"'MMA Rev-Exp Region 2'!Y$46","v":{"v":0,"d":"$0.00"}},{"v":0,"d":"$0.00"}]
["MMA",null,null,{"$f":"Jurat!I$1","v":0},{"$f":"Jurat!D$33","v":"00:00:00"},"Q2","2017-06-30","Region 2","Operating Expense","Medical Benefits Expense","Dental Services",6.2,"Dental Subcapitation",{"$f":"'MMA Rev-Exp Region 2'!O$47","v":{"v":0,"d":"$0.00"}},{"$f":"'MMA Rev-Exp Region 2'!P$47","v":{"v":0,"d":"$0.00"}},{"$f":"'MMA Rev-Exp Region 2'!Q$47","v":{"v":0,"d":"$0.00"}},{"$f":"'MMA Rev-Exp Region 2'!R$47","v":{"v":0,"d":"$0.00"}},{"$f":"'MMA Rev-Exp Region 2'!S$47","v":{"v":0,"d":"$0.00"}},{"$f":"'MMA Rev-Exp Region 2'!T$47","v":{"v":0,"d":"$0.00"}},{"$f":"'MMA Rev-Exp Region 2'!U$47","v":{"v":0,"d":"$0.00"}},{"$f":"'MMA Rev-Exp Region 2'!V$47","v":{"v":0,"d":"$0.00"}},{"$f":"'MMA Rev-Exp Region 2'!W$47","v":{"v":0,"d":"$0.00"}},{"$f":"'MMA Rev-Exp Region 2'!X$47","v":{"v":0,"d":"$0.00"}},{"$f":"'MMA Rev-Exp Region 2'!Y$47","v":{"v":0,"d":"$0.00"}},{"v":0,"d":"$0.00"}]
["MMA",null,null,{"$f":"Jurat!I$1","v":0},{"$f":"Jurat!D$33","v":"00:00:00"},"Q2","2017-06-30","Region 2","Operating Expense","Medical Benefits Expense","Dental Services",6.3,"Ending IBNP for Dental Services",{"$f":"'MMA Rev-Exp Region 2'!O$48","v":{"v":0,"d":"$0.00"}},{"$f":"'MMA Rev-Exp Region 2'!P$48","v":{"v":0,"d":"$0.00"}},{"$f":"'MMA Rev-Exp Region 2'!Q$48","v":{"v":0,"d":"$0.00"}},{"$f":"'MMA Rev-Exp Region 2'!R$48","v":{"v":0,"d":"$0.00"}},{"$f":"'MMA Rev-Exp Region 2'!S$48","v":{"v":0,"d":"$0.00"}},{"$f":"'MMA Rev-Exp Region 2'!T$48","v":{"v":0,"d":"$0.00"}},{"$f":"'MMA Rev-Exp Region 2'!U$48","v":{"v":0,"d":"$0.00"}},{"$f":"'MMA Rev-Exp Region 2'!V$48","v":{"v":0,"d":"$0.00"}},{"$f":"'MMA Rev-Exp Region 2'!W$48","v":{"v":0,"d":"$0.00"}},{"$f":"'MMA Rev-Exp Region 2'!X$48","v":{"v":0,"d":"$0.00"}},{"$f":"'MMA Rev-Exp Region 2'!Y$48","v":{"v":0,"d":"$0.00"}},{"v":0,"d":"$0.00"}]
["MMA",null,null,{"$f":"Jurat!I$1","v":0},{"$f":"Jurat!D$33","v":"00:00:00"},"Q2","2017-06-30","Region 2","Operating Expense","Medical Benefits Expense","Dental Services","6.4","Dental Settlements",{"$f":"'MMA Rev-Exp Region 2'!O$49","v":{"v":0,"d":"$0.00"}},{"$f":"'MMA Rev-Exp Region 2'!P$49","v":{"v":0,"d":"$0.00"}},{"$f":"'MMA Rev-Exp Region 2'!Q$49","v":{"v":0,"d":"$0.00"}},{"$f":"'MMA Rev-Exp Region 2'!R$49","v":{"v":0,"d":"$0.00"}},{"$f":"'MMA Rev-Exp Region 2'!S$49","v":{"v":0,"d":"$0.00"}},{"$f":"'MMA Rev-Exp Region 2'!T$49","v":{"v":0,"d":"$0.00"}},{"$f":"'MMA Rev-Exp Region 2'!U$49","v":{"v":0,"d":"$0.00"}},{"$f":"'MMA Rev-Exp Region 2'!V$49","v":{"v":0,"d":"$0.00"}},{"$f":"'MMA Rev-Exp Region 2'!W$49","v":{"v":0,"d":"$0.00"}},{"$f":"'MMA Rev-Exp Region 2'!X$49","v":{"v":0,"d":"$0.00"}},{"$f":"'MMA Rev-Exp Region 2'!Y$49","v":{"v":0,"d":"$0.00"}},{"v":0,"d":"$0.00"}]
["MMA",null,null,{"$f":"Jurat!I$1","v":0},{"$f":"Jurat!D$33","v":"00:00:00"},"Q2","2017-06-30","Region 2","Operating Expense","Medical Benefits Expense","Transportation Services",7.1,"Transportation FFS",{"$f":"'MMA Rev-Exp Region 2'!O$51","v":{"v":0,"d":"$0.00"}},{"$f":"'MMA Rev-Exp Region 2'!P$51","v":{"v":0,"d":"$0.00"}},{"$f":"'MMA Rev-Exp Region 2'!Q$51","v":{"v":0,"d":"$0.00"}},{"$f":"'MMA Rev-Exp Region 2'!R$51","v":{"v":0,"d":"$0.00"}},{"$f":"'MMA Rev-Exp Region 2'!S$51","v":{"v":0,"d":"$0.00"}},{"$f":"'MMA Rev-Exp Region 2'!T$51","v":{"v":0,"d":"$0.00"}},{"$f":"'MMA Rev-Exp Region 2'!U$51","v":{"v":0,"d":"$0.00"}},{"$f":"'MMA Rev-Exp Region 2'!V$51","v":{"v":0,"d":"$0.00"}},{"$f":"'MMA Rev-Exp Region 2'!W$51","v":{"v":0,"d":"$0.00"}},{"$f":"'MMA Rev-Exp Region 2'!X$51","v":{"v":0,"d":"$0.00"}},{"$f":"'MMA Rev-Exp Region 2'!Y$51","v":{"v":0,"d":"$0.00"}},{"v":0,"d":"$0.00"}]
["MMA",null,null,{"$f":"Jurat!I$1","v":0},{"$f":"Jurat!D$33","v":"00:00:00"},"Q2","2017-06-30","Region 2","Operating Expense","Medical Benefits Expense","Transportation Services",7.2,"Transportation Subcapitation",{"$f":"'MMA Rev-Exp Region 2'!O$52","v":{"v":0,"d":"$0.00"}},{"$f":"'MMA Rev-Exp Region 2'!P$52","v":{"v":0,"d":"$0.00"}},{"$f":"'MMA Rev-Exp Region 2'!Q$52","v":{"v":0,"d":"$0.00"}},{"$f":"'MMA Rev-Exp Region 2'!R$52","v":{"v":0,"d":"$0.00"}},{"$f":"'MMA Rev-Exp Region 2'!S$52","v":{"v":0,"d":"$0.00"}},{"$f":"'MMA Rev-Exp Region 2'!T$52","v":{"v":0,"d":"$0.00"}},{"$f":"'MMA Rev-Exp Region 2'!U$52","v":{"v":0,"d":"$0.00"}},{"$f":"'MMA Rev-Exp Region 2'!V$52","v":{"v":0,"d":"$0.00"}},{"$f":"'MMA Rev-Exp Region 2'!W$52","v":{"v":0,"d":"$0.00"}},{"$f":"'MMA Rev-Exp Region 2'!X$52","v":{"v":0,"d":"$0.00"}},{"$f":"'MMA Rev-Exp Region 2'!Y$52","v":{"v":0,"d":"$0.00"}},{"v":0,"d":"$0.00"}]
["MMA",null,null,{"$f":"Jurat!I$1","v":0},{"$f":"Jurat!D$33","v":"00:00:00"},"Q2","2017-06-30","Region 2","Operating Expense","Medical Benefits Expense","Transportation Services",7.3,"Ending IBNP for Transportation",{"$f":"'MMA Rev-Exp Region 2'!O$53","v":{"v":0,"d":"$0.00"}},{"$f":"'MMA Rev-Exp Region 2'!P$53","v":{"v":0,"d":"$0.00"}},{"$f":"'MMA Rev-Exp Region 2'!Q$53","v":{"v":0,"d":"$0.00"}},{"$f":"'MMA Rev-Exp Region 2'!R$53","v":{"v":0,"d":"$0.00"}},{"$f":"'MMA Rev-Exp Region 2'!S$53","v":{"v":0,"d":"$0.00"}},{"$f":"'MMA Rev-Exp Region 2'!T$53","v":{"v":0,"d":"$0.00"}},{"$f":"'MMA Rev-Exp Region 2'!U$53","v":{"v":0,"d":"$0.00"}},{"$f":"'MMA Rev-Exp Region 2'!V$53","v":{"v":0,"d":"$0.00"}},{"$f":"'MMA Rev-Exp Region 2'!W$53","v":{"v":0,"d":"$0.00"}},{"$f":"'MMA Rev-Exp Region 2'!X$53","v":{"v":0,"d":"$0.00"}},{"$f":"'MMA Rev-Exp Region 2'!Y$53","v":{"v":0,"d":"$0.00"}},{"v":0,"d":"$0.00"}]
["MMA",null,null,{"$f":"Jurat!I$1","v":0},{"$f":"Jurat!D$33","v":"00:00:00"},"Q2","2017-06-30","Region 2","Operating Expense","Medical Benefits Expense","Transportation Services","7.4","Transportation Settlements",{"$f":"'MMA Rev-Exp Region 2'!O$54","v":{"v":0,"d":"$0.00"}},{"$f":"'MMA Rev-Exp Region 2'!P$54","v":{"v":0,"d":"$0.00"}},{"$f":"'MMA Rev-Exp Region 2'!Q$54","v":{"v":0,"d":"$0.00"}},{"$f":"'MMA Rev-Exp Region 2'!R$54","v":{"v":0,"d":"$0.00"}},{"$f":"'MMA Rev-Exp Region 2'!S$54","v":{"v":0,"d":"$0.00"}},{"$f":"'MMA Rev-Exp Region 2'!T$54","v":{"v":0,"d":"$0.00"}},{"$f":"'MMA Rev-Exp Region 2'!U$54","v":{"v":0,"d":"$0.00"}},{"$f":"'MMA Rev-Exp Region 2'!V$54","v":{"v":0,"d":"$0.00"}},{"$f":"'MMA Rev-Exp Region 2'!W$54","v":{"v":0,"d":"$0.00"}},{"$f":"'MMA Rev-Exp Region 2'!X$54","v":{"v":0,"d":"$0.00"}},{"$f":"'MMA Rev-Exp Region 2'!Y$54","v":{"v":0,"d":"$0.00"}},{"v":0,"d":"$0.00"}]
["MMA",null,null,{"$f":"Jurat!I$1","v":0},{"$f":"Jurat!D$33","v":"00:00:00"},"Q2","2017-06-30","Region 2","Operating Expense","Medical Benefits Expense","Pharmacy Services",8.1,"Prescription Drugs FFS",{"$f":"'MMA Rev-Exp Region 2'!O$56","v":{"v":0,"d":"$0.00"}},{"$f":"'MMA Rev-Exp Region 2'!P$56","v":{"v":0,"d":"$0.00"}},{"$f":"'MMA Rev-Exp Region 2'!Q$56","v":{"v":0,"d":"$0.00"}},{"$f":"'MMA Rev-Exp Region 2'!R$56","v":{"v":0,"d":"$0.00"}},{"$f":"'MMA Rev-Exp Region 2'!S$56","v":{"v":0,"d":"$0.00"}},{"$f":"'MMA Rev-Exp Region 2'!T$56","v":{"v":0,"d":"$0.00"}},{"$f":"'MMA Rev-Exp Region 2'!U$56","v":{"v":0,"d":"$0.00"}},{"$f":"'MMA Rev-Exp Region 2'!V$56","v":{"v":0,"d":"$0.00"}},{"$f":"'MMA Rev-Exp Region 2'!W$56","v":{"v":0,"d":"$0.00"}},{"$f":"'MMA Rev-Exp Region 2'!X$56","v":{"v":0,"d":"$0.00"}},{"$f":"'MMA Rev-Exp Region 2'!Y$56","v":{"v":0,"d":"$0.00"}},{"v":0,"d":"$0.00"}]
["MMA",null,null,{"$f":"Jurat!I$1","v":0},{"$f":"Jurat!D$33","v":"00:00:00"},"Q2","2017-06-30","Region 2","Operating Expense","Medical Benefits Expense","Pharmacy Services","8.2","Hepatitis C Prescription Drug FFS",{"$f":"'MMA Rev-Exp Region 2'!O$57","v":{"v":0,"d":"$0.00"}},{"$f":"'MMA Rev-Exp Region 2'!P$57","v":{"v":0,"d":"$0.00"}},{"$f":"'MMA Rev-Exp Region 2'!Q$57","v":{"v":0,"d":"$0.00"}},{"$f":"'MMA Rev-Exp Region 2'!R$57","v":{"v":0,"d":"$0.00"}},{"$f":"'MMA Rev-Exp Region 2'!S$57","v":{"v":0,"d":"$0.00"}},{"$f":"'MMA Rev-Exp Region 2'!T$57","v":{"v":0,"d":"$0.00"}},{"$f":"'MMA Rev-Exp Region 2'!U$57","v":{"v":0,"d":"$0.00"}},{"$f":"'MMA Rev-Exp Region 2'!V$57","v":{"v":0,"d":"$0.00"}},{"$f":"'MMA Rev-Exp Region 2'!W$57","v":{"v":0,"d":"$0.00"}},{"$f":"'MMA Rev-Exp Region 2'!X$57","v":{"v":0,"d":"$0.00"}},{"$f":"'MMA Rev-Exp Region 2'!Y$57","v":{"v":0,"d":"$0.00"}},{"v":0,"d":"$0.00"}]
["MMA",null,null,{"$f":"Jurat!I$1","v":0},{"$f":"Jurat!D$33","v":"00:00:00"},"Q2","2017-06-30","Region 2","Operating Expense","Medical Benefits Expense","Pharmacy Services","8.3","Ending IBNP for Prescription Drugs",{"$f":"'MMA Rev-Exp Region 2'!O$58","v":{"v":0,"d":"$0.00"}},{"$f":"'MMA Rev-Exp Region 2'!P$58","v":{"v":0,"d":"$0.00"}},{"$f":"'MMA Rev-Exp Region 2'!Q$58","v":{"v":0,"d":"$0.00"}},{"$f":"'MMA Rev-Exp Region 2'!R$58","v":{"v":0,"d":"$0.00"}},{"$f":"'MMA Rev-Exp Region 2'!S$58","v":{"v":0,"d":"$0.00"}},{"$f":"'MMA Rev-Exp Region 2'!T$58","v":{"v":0,"d":"$0.00"}},{"$f":"'MMA Rev-Exp Region 2'!U$58","v":{"v":0,"d":"$0.00"}},{"$f":"'MMA Rev-Exp Region 2'!V$58","v":{"v":0,"d":"$0.00"}},{"$f":"'MMA Rev-Exp Region 2'!W$58","v":{"v":0,"d":"$0.00"}},{"$f":"'MMA Rev-Exp Region 2'!X$58","v":{"v":0,"d":"$0.00"}},{"$f":"'MMA Rev-Exp Region 2'!Y$58","v":{"v":0,"d":"$0.00"}},{"v":0,"d":"$0.00"}]
["MMA",null,null,{"$f":"Jurat!I$1","v":0},{"$f":"Jurat!D$33","v":"00:00:00"},"Q2","2017-06-30","Region 2","Operating Expense","Medical Benefits Expense","Pharmacy Services","8.4","Prescription Drug Rebates ",{"$f":"'MMA Rev-Exp Region 2'!O$59","v":{"v":0,"d":"$0.00"}},{"$f":"'MMA Rev-Exp Region 2'!P$59","v":{"v":0,"d":"$0.00"}},{"$f":"'MMA Rev-Exp Region 2'!Q$59","v":{"v":0,"d":"$0.00"}},{"$f":"'MMA Rev-Exp Region 2'!R$59","v":{"v":0,"d":"$0.00"}},{"$f":"'MMA Rev-Exp Region 2'!S$59","v":{"v":0,"d":"$0.00"}},{"$f":"'MMA Rev-Exp Region 2'!T$59","v":{"v":0,"d":"$0.00"}},{"$f":"'MMA Rev-Exp Region 2'!U$59","v":{"v":0,"d":"$0.00"}},{"$f":"'MMA Rev-Exp Region 2'!V$59","v":{"v":0,"d":"$0.00"}},{"$f":"'MMA Rev-Exp Region 2'!W$59","v":{"v":0,"d":"$0.00"}},{"$f":"'MMA Rev-Exp Region 2'!X$59","v":{"v":0,"d":"$0.00"}},{"$f":"'MMA Rev-Exp Region 2'!Y$59","v":{"v":0,"d":"$0.00"}},{"v":0,"d":"$0.00"}]
["MMA",null,null,{"$f":"Jurat!I$1","v":0},{"$f":"Jurat!D$33","v":"00:00:00"},"Q2","2017-06-30","Region 2","Operating Expense","Medical Benefits Expense","Pharmacy Services","8.5","Ending accrual for Rebates receivable",{"$f":"'MMA Rev-Exp Region 2'!O$60","v":{"v":0,"d":"$0.00"}},{"$f":"'MMA Rev-Exp Region 2'!P$60","v":{"v":0,"d":"$0.00"}},{"$f":"'MMA Rev-Exp Region 2'!Q$60","v":{"v":0,"d":"$0.00"}},{"$f":"'MMA Rev-Exp Region 2'!R$60","v":{"v":0,"d":"$0.00"}},{"$f":"'MMA Rev-Exp Region 2'!S$60","v":{"v":0,"d":"$0.00"}},{"$f":"'MMA Rev-Exp Region 2'!T$60","v":{"v":0,"d":"$0.00"}},{"$f":"'MMA Rev-Exp Region 2'!U$60","v":{"v":0,"d":"$0.00"}},{"$f":"'MMA Rev-Exp Region 2'!V$60","v":{"v":0,"d":"$0.00"}},{"$f":"'MMA Rev-Exp Region 2'!W$60","v":{"v":0,"d":"$0.00"}},{"$f":"'MMA Rev-Exp Region 2'!X$60","v":{"v":0,"d":"$0.00"}},{"$f":"'MMA Rev-Exp Region 2'!Y$60","v":{"v":0,"d":"$0.00"}},{"v":0,"d":"$0.00"}]
["MMA",null,null,{"$f":"Jurat!I$1","v":0},{"$f":"Jurat!D$33","v":"00:00:00"},"Q2","2017-06-30","Region 2","Operating Expense","Medical Benefits Expense","Pharmacy Services","8.6","Prescription Drugs Subcapitation",{"$f":"'MMA Rev-Exp Region 2'!O$61","v":{"v":0,"d":"$0.00"}},{"$f":"'MMA Rev-Exp Region 2'!P$61","v":{"v":0,"d":"$0.00"}},{"$f":"'MMA Rev-Exp Region 2'!Q$61","v":{"v":0,"d":"$0.00"}},{"$f":"'MMA Rev-Exp Region 2'!R$61","v":{"v":0,"d":"$0.00"}},{"$f":"'MMA Rev-Exp Region 2'!S$61","v":{"v":0,"d":"$0.00"}},{"$f":"'MMA Rev-Exp Region 2'!T$61","v":{"v":0,"d":"$0.00"}},{"$f":"'MMA Rev-Exp Region 2'!U$61","v":{"v":0,"d":"$0.00"}},{"$f":"'MMA Rev-Exp Region 2'!V$61","v":{"v":0,"d":"$0.00"}},{"$f":"'MMA Rev-Exp Region 2'!W$61","v":{"v":0,"d":"$0.00"}},{"$f":"'MMA Rev-Exp Region 2'!X$61","v":{"v":0,"d":"$0.00"}},{"$f":"'MMA Rev-Exp Region 2'!Y$61","v":{"v":0,"d":"$0.00"}},{"v":0,"d":"$0.00"}]
["MMA",null,null,{"$f":"Jurat!I$1","v":0},{"$f":"Jurat!D$33","v":"00:00:00"},"Q2","2017-06-30","Region 2","Operating Expense","Medical Benefits Expense","Pharmacy Services","8.7","Prescription Drug Settlements",{"$f":"'MMA Rev-Exp Region 2'!O$62","v":{"v":0,"d":"$0.00"}},{"$f":"'MMA Rev-Exp Region 2'!P$62","v":{"v":0,"d":"$0.00"}},{"$f":"'MMA Rev-Exp Region 2'!Q$62","v":{"v":0,"d":"$0.00"}},{"$f":"'MMA Rev-Exp Region 2'!R$62","v":{"v":0,"d":"$0.00"}},{"$f":"'MMA Rev-Exp Region 2'!S$62","v":{"v":0,"d":"$0.00"}},{"$f":"'MMA Rev-Exp Region 2'!T$62","v":{"v":0,"d":"$0.00"}},{"$f":"'MMA Rev-Exp Region 2'!U$62","v":{"v":0,"d":"$0.00"}},{"$f":"'MMA Rev-Exp Region 2'!V$62","v":{"v":0,"d":"$0.00"}},{"$f":"'MMA Rev-Exp Region 2'!W$62","v":{"v":0,"d":"$0.00"}},{"$f":"'MMA Rev-Exp Region 2'!X$62","v":{"v":0,"d":"$0.00"}},{"$f":"'MMA Rev-Exp Region 2'!Y$62","v":{"v":0,"d":"$0.00"}},{"v":0,"d":"$0.00"}]
["MMA",null,null,{"$f":"Jurat!I$1","v":0},{"$f":"Jurat!D$33","v":"00:00:00"},"Q2","2017-06-30","Region 2","Operating Expense","Medical Benefits Expense","Other MMA Services",9.1,"Home Health, Private Duty Nursing, Personal Care FFS",{"$f":"'MMA Rev-Exp Region 2'!O$64","v":{"v":0,"d":"$0.00"}},{"$f":"'MMA Rev-Exp Region 2'!P$64","v":{"v":0,"d":"$0.00"}},{"$f":"'MMA Rev-Exp Region 2'!Q$64","v":{"v":0,"d":"$0.00"}},{"$f":"'MMA Rev-Exp Region 2'!R$64","v":{"v":0,"d":"$0.00"}},{"$f":"'MMA Rev-Exp Region 2'!S$64","v":{"v":0,"d":"$0.00"}},{"$f":"'MMA Rev-Exp Region 2'!T$64","v":{"v":0,"d":"$0.00"}},{"$f":"'MMA Rev-Exp Region 2'!U$64","v":{"v":0,"d":"$0.00"}},{"$f":"'MMA Rev-Exp Region 2'!V$64","v":{"v":0,"d":"$0.00"}},{"$f":"'MMA Rev-Exp Region 2'!W$64","v":{"v":0,"d":"$0.00"}},{"$f":"'MMA Rev-Exp Region 2'!X$64","v":{"v":0,"d":"$0.00"}},{"$f":"'MMA Rev-Exp Region 2'!Y$64","v":{"v":0,"d":"$0.00"}},{"v":0,"d":"$0.00"}]
["MMA",null,null,{"$f":"Jurat!I$1","v":0},{"$f":"Jurat!D$33","v":"00:00:00"},"Q2","2017-06-30","Region 2","Operating Expense","Medical Benefits Expense","Other MMA Services","9.2","Hospice FFS",{"$f":"'MMA Rev-Exp Region 2'!O$65","v":{"v":0,"d":"$0.00"}},{"$f":"'MMA Rev-Exp Region 2'!P$65","v":{"v":0,"d":"$0.00"}},{"$f":"'MMA Rev-Exp Region 2'!Q$65","v":{"v":0,"d":"$0.00"}},{"$f":"'MMA Rev-Exp Region 2'!R$65","v":{"v":0,"d":"$0.00"}},{"$f":"'MMA Rev-Exp Region 2'!S$65","v":{"v":0,"d":"$0.00"}},{"$f":"'MMA Rev-Exp Region 2'!T$65","v":{"v":0,"d":"$0.00"}},{"$f":"'MMA Rev-Exp Region 2'!U$65","v":{"v":0,"d":"$0.00"}},{"$f":"'MMA Rev-Exp Region 2'!V$65","v":{"v":0,"d":"$0.00"}},{"$f":"'MMA Rev-Exp Region 2'!W$65","v":{"v":0,"d":"$0.00"}},{"$f":"'MMA Rev-Exp Region 2'!X$65","v":{"v":0,"d":"$0.00"}},{"$f":"'MMA Rev-Exp Region 2'!Y$65","v":{"v":0,"d":"$0.00"}},{"v":0,"d":"$0.00"}]
["MMA",null,null,{"$f":"Jurat!I$1","v":0},{"$f":"Jurat!D$33","v":"00:00:00"},"Q2","2017-06-30","Region 2","Operating Expense","Medical Benefits Expense","Other MMA Services","9.3","DME FFS",{"$f":"'MMA Rev-Exp Region 2'!O$66","v":{"v":0,"d":"$0.00"}},{"$f":"'MMA Rev-Exp Region 2'!P$66","v":{"v":0,"d":"$0.00"}},{"$f":"'MMA Rev-Exp Region 2'!Q$66","v":{"v":0,"d":"$0.00"}},{"$f":"'MMA Rev-Exp Region 2'!R$66","v":{"v":0,"d":"$0.00"}},{"$f":"'MMA Rev-Exp Region 2'!S$66","v":{"v":0,"d":"$0.00"}},{"$f":"'MMA Rev-Exp Region 2'!T$66","v":{"v":0,"d":"$0.00"}},{"$f":"'MMA Rev-Exp Region 2'!U$66","v":{"v":0,"d":"$0.00"}},{"$f":"'MMA Rev-Exp Region 2'!V$66","v":{"v":0,"d":"$0.00"}},{"$f":"'MMA Rev-Exp Region 2'!W$66","v":{"v":0,"d":"$0.00"}},{"$f":"'MMA Rev-Exp Region 2'!X$66","v":{"v":0,"d":"$0.00"}},{"$f":"'MMA Rev-Exp Region 2'!Y$66","v":{"v":0,"d":"$0.00"}},{"v":0,"d":"$0.00"}]
["MMA",null,null,{"$f":"Jurat!I$1","v":0},{"$f":"Jurat!D$33","v":"00:00:00"},"Q2","2017-06-30","Region 2","Operating Expense","Medical Benefits Expense","Other MMA Services","9.4","Other State Plan Services FFS",{"$f":"'MMA Rev-Exp Region 2'!O$67","v":{"v":0,"d":"$0.00"}},{"$f":"'MMA Rev-Exp Region 2'!P$67","v":{"v":0,"d":"$0.00"}},{"$f":"'MMA Rev-Exp Region 2'!Q$67","v":{"v":0,"d":"$0.00"}},{"$f":"'MMA Rev-Exp Region 2'!R$67","v":{"v":0,"d":"$0.00"}},{"$f":"'MMA Rev-Exp Region 2'!S$67","v":{"v":0,"d":"$0.00"}},{"$f":"'MMA Rev-Exp Region 2'!T$67","v":{"v":0,"d":"$0.00"}},{"$f":"'MMA Rev-Exp Region 2'!U$67","v":{"v":0,"d":"$0.00"}},{"$f":"'MMA Rev-Exp Region 2'!V$67","v":{"v":0,"d":"$0.00"}},{"$f":"'MMA Rev-Exp Region 2'!W$67","v":{"v":0,"d":"$0.00"}},{"$f":"'MMA Rev-Exp Region 2'!X$67","v":{"v":0,"d":"$0.00"}},{"$f":"'MMA Rev-Exp Region 2'!Y$67","v":{"v":0,"d":"$0.00"}},{"v":0,"d":"$0.00"}]
["MMA",null,null,{"$f":"Jurat!I$1","v":0},{"$f":"Jurat!D$33","v":"00:00:00"},"Q2","2017-06-30","Region 2","Operating Expense","Medical Benefits Expense","Other MMA Services","9.5","Other Services Subcapitation",{"$f":"'MMA Rev-Exp Region 2'!O$68","v":{"v":0,"d":"$0.00"}},{"$f":"'MMA Rev-Exp Region 2'!P$68","v":{"v":0,"d":"$0.00"}},{"$f":"'MMA Rev-Exp Region 2'!Q$68","v":{"v":0,"d":"$0.00"}},{"$f":"'MMA Rev-Exp Region 2'!R$68","v":{"v":0,"d":"$0.00"}},{"$f":"'MMA Rev-Exp Region 2'!S$68","v":{"v":0,"d":"$0.00"}},{"$f":"'MMA Rev-Exp Region 2'!T$68","v":{"v":0,"d":"$0.00"}},{"$f":"'MMA Rev-Exp Region 2'!U$68","v":{"v":0,"d":"$0.00"}},{"$f":"'MMA Rev-Exp Region 2'!V$68","v":{"v":0,"d":"$0.00"}},{"$f":"'MMA Rev-Exp Region 2'!W$68","v":{"v":0,"d":"$0.00"}},{"$f":"'MMA Rev-Exp Region 2'!X$68","v":{"v":0,"d":"$0.00"}},{"$f":"'MMA Rev-Exp Region 2'!Y$68","v":{"v":0,"d":"$0.00"}},{"v":0,"d":"$0.00"}]
["MMA",null,null,{"$f":"Jurat!I$1","v":0},{"$f":"Jurat!D$33","v":"00:00:00"},"Q2","2017-06-30","Region 2","Operating Expense","Medical Benefits Expense","Other MMA Services","9.6","Ending IBNP for Other Services",{"$f":"'MMA Rev-Exp Region 2'!O$69","v":{"v":0,"d":"$0.00"}},{"$f":"'MMA Rev-Exp Region 2'!P$69","v":{"v":0,"d":"$0.00"}},{"$f":"'MMA Rev-Exp Region 2'!Q$69","v":{"v":0,"d":"$0.00"}},{"$f":"'MMA Rev-Exp Region 2'!R$69","v":{"v":0,"d":"$0.00"}},{"$f":"'MMA Rev-Exp Region 2'!S$69","v":{"v":0,"d":"$0.00"}},{"$f":"'MMA Rev-Exp Region 2'!T$69","v":{"v":0,"d":"$0.00"}},{"$f":"'MMA Rev-Exp Region 2'!U$69","v":{"v":0,"d":"$0.00"}},{"$f":"'MMA Rev-Exp Region 2'!V$69","v":{"v":0,"d":"$0.00"}},{"$f":"'MMA Rev-Exp Region 2'!W$69","v":{"v":0,"d":"$0.00"}},{"$f":"'MMA Rev-Exp Region 2'!X$69","v":{"v":0,"d":"$0.00"}},{"$f":"'MMA Rev-Exp Region 2'!Y$69","v":{"v":0,"d":"$0.00"}},{"v":0,"d":"$0.00"}]
["MMA",null,null,{"$f":"Jurat!I$1","v":0},{"$f":"Jurat!D$33","v":"00:00:00"},"Q2","2017-06-30","Region 2","Operating Expense","Medical Benefits Expense","Other MMA Services","9.7","Other Services Settlements",{"$f":"'MMA Rev-Exp Region 2'!O$70","v":{"v":0,"d":"$0.00"}},{"$f":"'MMA Rev-Exp Region 2'!P$70","v":{"v":0,"d":"$0.00"}},{"$f":"'MMA Rev-Exp Region 2'!Q$70","v":{"v":0,"d":"$0.00"}},{"$f":"'MMA Rev-Exp Region 2'!R$70","v":{"v":0,"d":"$0.00"}},{"$f":"'MMA Rev-Exp Region 2'!S$70","v":{"v":0,"d":"$0.00"}},{"$f":"'MMA Rev-Exp Region 2'!T$70","v":{"v":0,"d":"$0.00"}},{"$f":"'MMA Rev-Exp Region 2'!U$70","v":{"v":0,"d":"$0.00"}},{"$f":"'MMA Rev-Exp Region 2'!V$70","v":{"v":0,"d":"$0.00"}},{"$f":"'MMA Rev-Exp Region 2'!W$70","v":{"v":0,"d":"$0.00"}},{"$f":"'MMA Rev-Exp Region 2'!X$70","v":{"v":0,"d":"$0.00"}},{"$f":"'MMA Rev-Exp Region 2'!Y$70","v":{"v":0,"d":"$0.00"}},{"v":0,"d":"$0.00"}]
["MMA",null,null,{"$f":"Jurat!I$1","v":0},{"$f":"Jurat!D$33","v":"00:00:00"},"Q2","2017-06-30","Region 2","Operating Expense","Medical Benefits Expense","Expanded Benefits","10.1","Expanded Benefits FFS",{"$f":"'MMA Rev-Exp Region 2'!O$72","v":{"v":0,"d":"$0.00"}},{"$f":"'MMA Rev-Exp Region 2'!P$72","v":{"v":0,"d":"$0.00"}},{"$f":"'MMA Rev-Exp Region 2'!Q$72","v":{"v":0,"d":"$0.00"}},{"$f":"'MMA Rev-Exp Region 2'!R$72","v":{"v":0,"d":"$0.00"}},{"$f":"'MMA Rev-Exp Region 2'!S$72","v":{"v":0,"d":"$0.00"}},{"$f":"'MMA Rev-Exp Region 2'!T$72","v":{"v":0,"d":"$0.00"}},{"$f":"'MMA Rev-Exp Region 2'!U$72","v":{"v":0,"d":"$0.00"}},{"$f":"'MMA Rev-Exp Region 2'!V$72","v":{"v":0,"d":"$0.00"}},{"$f":"'MMA Rev-Exp Region 2'!W$72","v":{"v":0,"d":"$0.00"}},{"$f":"'MMA Rev-Exp Region 2'!X$72","v":{"v":0,"d":"$0.00"}},{"$f":"'MMA Rev-Exp Region 2'!Y$72","v":{"v":0,"d":"$0.00"}},{"v":0,"d":"$0.00"}]
["MMA",null,null,{"$f":"Jurat!I$1","v":0},{"$f":"Jurat!D$33","v":"00:00:00"},"Q2","2017-06-30","Region 2","Operating Expense","Medical Benefits Expense","Expanded Benefits","10.2","Expanded benefits Subcapitation",{"$f":"'MMA Rev-Exp Region 2'!O$73","v":{"v":0,"d":"$0.00"}},{"$f":"'MMA Rev-Exp Region 2'!P$73","v":{"v":0,"d":"$0.00"}},{"$f":"'MMA Rev-Exp Region 2'!Q$73","v":{"v":0,"d":"$0.00"}},{"$f":"'MMA Rev-Exp Region 2'!R$73","v":{"v":0,"d":"$0.00"}},{"$f":"'MMA Rev-Exp Region 2'!S$73","v":{"v":0,"d":"$0.00"}},{"$f":"'MMA Rev-Exp Region 2'!T$73","v":{"v":0,"d":"$0.00"}},{"$f":"'MMA Rev-Exp Region 2'!U$73","v":{"v":0,"d":"$0.00"}},{"$f":"'MMA Rev-Exp Region 2'!V$73","v":{"v":0,"d":"$0.00"}},{"$f":"'MMA Rev-Exp Region 2'!W$73","v":{"v":0,"d":"$0.00"}},{"$f":"'MMA Rev-Exp Region 2'!X$73","v":{"v":0,"d":"$0.00"}},{"$f":"'MMA Rev-Exp Region 2'!Y$73","v":{"v":0,"d":"$0.00"}},{"v":0,"d":"$0.00"}]
["MMA",null,null,{"$f":"Jurat!I$1","v":0},{"$f":"Jurat!D$33","v":"00:00:00"},"Q2","2017-06-30","Region 2","Operating Expense","Medical Benefits Expense","Expanded Benefits","10.3","Ending IBNP for Expanded Benefits",{"$f":"'MMA Rev-Exp Region 2'!O$74","v":{"v":0,"d":"$0.00"}},{"$f":"'MMA Rev-Exp Region 2'!P$74","v":{"v":0,"d":"$0.00"}},{"$f":"'MMA Rev-Exp Region 2'!Q$74","v":{"v":0,"d":"$0.00"}},{"$f":"'MMA Rev-Exp Region 2'!R$74","v":{"v":0,"d":"$0.00"}},{"$f":"'MMA Rev-Exp Region 2'!S$74","v":{"v":0,"d":"$0.00"}},{"$f":"'MMA Rev-Exp Region 2'!T$74","v":{"v":0,"d":"$0.00"}},{"$f":"'MMA Rev-Exp Region 2'!U$74","v":{"v":0,"d":"$0.00"}},{"$f":"'MMA Rev-Exp Region 2'!V$74","v":{"v":0,"d":"$0.00"}},{"$f":"'MMA Rev-Exp Region 2'!W$74","v":{"v":0,"d":"$0.00"}},{"$f":"'MMA Rev-Exp Region 2'!X$74","v":{"v":0,"d":"$0.00"}},{"$f":"'MMA Rev-Exp Region 2'!Y$74","v":{"v":0,"d":"$0.00"}},{"v":0,"d":"$0.00"}]
["MMA",null,null,{"$f":"Jurat!I$1","v":0},{"$f":"Jurat!D$33","v":"00:00:00"},"Q2","2017-06-30","Region 2","Operating Expense","Medical Benefits Expense","Expanded Benefits","10.4","Expanded Benefits Settlements",{"$f":"'MMA Rev-Exp Region 2'!O$75","v":{"v":0,"d":"$0.00"}},{"$f":"'MMA Rev-Exp Region 2'!P$75","v":{"v":0,"d":"$0.00"}},{"$f":"'MMA Rev-Exp Region 2'!Q$75","v":{"v":0,"d":"$0.00"}},{"$f":"'MMA Rev-Exp Region 2'!R$75","v":{"v":0,"d":"$0.00"}},{"$f":"'MMA Rev-Exp Region 2'!S$75","v":{"v":0,"d":"$0.00"}},{"$f":"'MMA Rev-Exp Region 2'!T$75","v":{"v":0,"d":"$0.00"}},{"$f":"'MMA Rev-Exp Region 2'!U$75","v":{"v":0,"d":"$0.00"}},{"$f":"'MMA Rev-Exp Region 2'!V$75","v":{"v":0,"d":"$0.00"}},{"$f":"'MMA Rev-Exp Region 2'!W$75","v":{"v":0,"d":"$0.00"}},{"$f":"'MMA Rev-Exp Region 2'!X$75","v":{"v":0,"d":"$0.00"}},{"$f":"'MMA Rev-Exp Region 2'!Y$75","v":{"v":0,"d":"$0.00"}},{"v":0,"d":"$0.00"}]
["MMA",null,null,{"$f":"Jurat!I$1","v":0},{"$f":"Jurat!D$33","v":"00:00:00"},"Q2","2017-06-30","Region 2","Operating Expense","Medical Benefits Expense","Other Medical","11.5","TPL & Fraud/Abuse Recoveries",{"$f":"'MMA Rev-Exp Region 2'!O$81","v":{"v":0,"d":"$0.00"}},{"$f":"'MMA Rev-Exp Region 2'!P$81","v":{"v":0,"d":"$0.00"}},{"$f":"'MMA Rev-Exp Region 2'!Q$81","v":{"v":0,"d":"$0.00"}},{"$f":"'MMA Rev-Exp Region 2'!R$81","v":{"v":0,"d":"$0.00"}},{"$f":"'MMA Rev-Exp Region 2'!S$81","v":{"v":0,"d":"$0.00"}},{"$f":"'MMA Rev-Exp Region 2'!T$81","v":{"v":0,"d":"$0.00"}},{"$f":"'MMA Rev-Exp Region 2'!U$81","v":{"v":0,"d":"$0.00"}},{"$f":"'MMA Rev-Exp Region 2'!V$81","v":{"v":0,"d":"$0.00"}},{"$f":"'MMA Rev-Exp Region 2'!W$81","v":{"v":0,"d":"$0.00"}},{"$f":"'MMA Rev-Exp Region 2'!X$81","v":{"v":0,"d":"$0.00"}},{"$f":"'MMA Rev-Exp Region 2'!Y$81","v":{"v":0,"d":"$0.00"}},{"v":0,"d":"$0.00"}]
["MMA",null,null,{"$f":"Jurat!I$1","v":0},{"$f":"Jurat!D$33","v":"00:00:00"},"Q2","2017-06-30","Region 2","Operating Expense","Medical Benefits Expense","Other Medical","11.6.1","Premium Deficiency Reserve",{"$f":"'MMA Rev-Exp Region 2'!O$82","v":{"v":0,"d":"$0.00"}},{"$f":"'MMA Rev-Exp Region 2'!P$82","v":{"v":0,"d":"$0.00"}},{"$f":"'MMA Rev-Exp Region 2'!Q$82","v":{"v":0,"d":"$0.00"}},{"$f":"'MMA Rev-Exp Region 2'!R$82","v":{"v":0,"d":"$0.00"}},{"$f":"'MMA Rev-Exp Region 2'!S$82","v":{"v":0,"d":"$0.00"}},{"$f":"'MMA Rev-Exp Region 2'!T$82","v":{"v":0,"d":"$0.00"}},{"$f":"'MMA Rev-Exp Region 2'!U$82","v":{"v":0,"d":"$0.00"}},{"$f":"'MMA Rev-Exp Region 2'!V$82","v":{"v":0,"d":"$0.00"}},{"$f":"'MMA Rev-Exp Region 2'!W$82","v":{"v":0,"d":"$0.00"}},{"$f":"'MMA Rev-Exp Region 2'!X$82","v":{"v":0,"d":"$0.00"}},{"$f":"'MMA Rev-Exp Region 2'!Y$82","v":{"v":0,"d":"$0.00"}},{"v":0,"d":"$0.00"}]
["MMA",null,null,{"$f":"Jurat!I$1","v":0},{"$f":"Jurat!D$33","v":"00:00:00"},"Q2","2017-06-30","Region 2","Operating Expense","Medical Benefits Expense","Other Medical","11.8","Reinsurance Premiums",{"$f":"'MMA Rev-Exp Region 2'!O$84","v":{"v":0,"d":"$0.00"}},{"$f":"'MMA Rev-Exp Region 2'!P$84","v":{"v":0,"d":"$0.00"}},{"$f":"'MMA Rev-Exp Region 2'!Q$84","v":{"v":0,"d":"$0.00"}},{"$f":"'MMA Rev-Exp Region 2'!R$84","v":{"v":0,"d":"$0.00"}},{"$f":"'MMA Rev-Exp Region 2'!S$84","v":{"v":0,"d":"$0.00"}},{"$f":"'MMA Rev-Exp Region 2'!T$84","v":{"v":0,"d":"$0.00"}},{"$f":"'MMA Rev-Exp Region 2'!U$84","v":{"v":0,"d":"$0.00"}},{"$f":"'MMA Rev-Exp Region 2'!V$84","v":{"v":0,"d":"$0.00"}},{"$f":"'MMA Rev-Exp Region 2'!W$84","v":{"v":0,"d":"$0.00"}},{"$f":"'MMA Rev-Exp Region 2'!X$84","v":{"v":0,"d":"$0.00"}},{"$f":"'MMA Rev-Exp Region 2'!Y$84","v":{"v":0,"d":"$0.00"}},{"v":0,"d":"$0.00"}]
["MMA",null,null,{"$f":"Jurat!I$1","v":0},{"$f":"Jurat!D$33","v":"00:00:00"},"Q2","2017-06-30","Region 2","Operating Expense","Medical Benefits Expense","Other Medical","11.9","Reinsurance Recoveries",{"$f":"'MMA Rev-Exp Region 2'!O$85","v":{"v":0,"d":"$0.00"}},{"$f":"'MMA Rev-Exp Region 2'!P$85","v":{"v":0,"d":"$0.00"}},{"$f":"'MMA Rev-Exp Region 2'!Q$85","v":{"v":0,"d":"$0.00"}},{"$f":"'MMA Rev-Exp Region 2'!R$85","v":{"v":0,"d":"$0.00"}},{"$f":"'MMA Rev-Exp Region 2'!S$85","v":{"v":0,"d":"$0.00"}},{"$f":"'MMA Rev-Exp Region 2'!T$85","v":{"v":0,"d":"$0.00"}},{"$f":"'MMA Rev-Exp Region 2'!U$85","v":{"v":0,"d":"$0.00"}},{"$f":"'MMA Rev-Exp Region 2'!V$85","v":{"v":0,"d":"$0.00"}},{"$f":"'MMA Rev-Exp Region 2'!W$85","v":{"v":0,"d":"$0.00"}},{"$f":"'MMA Rev-Exp Region 2'!X$85","v":{"v":0,"d":"$0.00"}},{"$f":"'MMA Rev-Exp Region 2'!Y$85","v":{"v":0,"d":"$0.00"}},{"v":0,"d":"$0.00"}]
["MMA",null,null,{"$f":"Jurat!I$1","v":0},{"$f":"Jurat!D$33","v":"00:00:00"},"Q2","2017-06-30","Region 2","Operating Expense","Administrative Expense","Administrative","12.1","Salaries & Benefits",{"$f":"'MMA Rev-Exp Region 2'!O$90","v":{"v":0,"d":"$0.00"}},{"v":0,"d":"$0.00"},{"v":0,"d":"$0.00"},{"v":0,"d":"$0.00"},{"v":0,"d":"$0.00"},{"v":0,"d":"$0.00"},{"v":0,"d":"$0.00"},{"v":0,"d":"$0.00"},{"v":0,"d":"$0.00"},{"v":0,"d":"$0.00"},{"v":0,"d":"$0.00"},{"v":0,"d":"$0.00"}]
["MMA",null,null,{"$f":"Jurat!I$1","v":0},{"$f":"Jurat!D$33","v":"00:00:00"},"Q2","2017-06-30","Region 2","Operating Expense","Administrative Expense","Administrative","12.2","Administrative Services",{"$f":"'MMA Rev-Exp Region 2'!O$91","v":{"v":0,"d":"$0.00"}},{"v":0,"d":"$0.00"},{"v":0,"d":"$0.00"},{"v":0,"d":"$0.00"},{"v":0,"d":"$0.00"},{"v":0,"d":"$0.00"},{"v":0,"d":"$0.00"},{"v":0,"d":"$0.00"},{"v":0,"d":"$0.00"},{"v":0,"d":"$0.00"},{"v":0,"d":"$0.00"},{"v":0,"d":"$0.00"}]
["MMA",null,null,{"$f":"Jurat!I$1","v":0},{"$f":"Jurat!D$33","v":"00:00:00"},"Q2","2017-06-30","Region 2","Operating Expense","Administrative Expense","Administrative","12.3","Information Systems",{"$f":"'MMA Rev-Exp Region 2'!O$92","v":{"v":0,"d":"$0.00"}},{"v":0,"d":"$0.00"},{"v":0,"d":"$0.00"},{"v":0,"d":"$0.00"},{"v":0,"d":"$0.00"},{"v":0,"d":"$0.00"},{"v":0,"d":"$0.00"},{"v":0,"d":"$0.00"},{"v":0,"d":"$0.00"},{"v":0,"d":"$0.00"},{"v":0,"d":"$0.00"},{"v":0,"d":"$0.00"}]
["MMA",null,null,{"$f":"Jurat!I$1","v":0},{"$f":"Jurat!D$33","v":"00:00:00"},"Q2","2017-06-30","Region 2","Operating Expense","Administrative Expense","Administrative","12.4","Marketing Expenses",{"$f":"'MMA Rev-Exp Region 2'!O$93","v":{"v":0,"d":"$0.00"}},{"v":0,"d":"$0.00"},{"v":0,"d":"$0.00"},{"v":0,"d":"$0.00"},{"v":0,"d":"$0.00"},{"v":0,"d":"$0.00"},{"v":0,"d":"$0.00"},{"v":0,"d":"$0.00"},{"v":0,"d":"$0.00"},{"v":0,"d":"$0.00"},{"v":0,"d":"$0.00"},{"v":0,"d":"$0.00"}]
["MMA",null,null,{"$f":"Jurat!I$1","v":0},{"$f":"Jurat!D$33","v":"00:00:00"},"Q2","2017-06-30","Region 2","Operating Expense","Administrative Expense","Administrative","12.5","General  Administration",{"$f":"'MMA Rev-Exp Region 2'!O$94","v":{"v":0,"d":"$0.00"}},{"v":0,"d":"$0.00"},{"v":0,"d":"$0.00"},{"v":0,"d":"$0.00"},{"v":0,"d":"$0.00"},{"v":0,"d":"$0.00"},{"v":0,"d":"$0.00"},{"v":0,"d":"$0.00"},{"v":0,"d":"$0.00"},{"v":0,"d":"$0.00"},{"v":0,"d":"$0.00"},{"v":0,"d":"$0.00"}]
["MMA",null,null,{"$f":"Jurat!I$1","v":0},{"$f":"Jurat!D$33","v":"00:00:00"},"Q2","2017-06-30","Region 2","Operating Expense","Administrative Expense","Administrative","12.6","Compliance/Regulatory",{"$f":"'MMA Rev-Exp Region 2'!O$95","v":{"v":0,"d":"$0.00"}},{"v":0,"d":"$0.00"},{"v":0,"d":"$0.00"},{"v":0,"d":"$0.00"},{"v":0,"d":"$0.00"},{"v":0,"d":"$0.00"},{"v":0,"d":"$0.00"},{"v":0,"d":"$0.00"},{"v":0,"d":"$0.00"},{"v":0,"d":"$0.00"},{"v":0,"d":"$0.00"},{"v":0,"d":"$0.00"}]
["MMA",null,null,{"$f":"Jurat!I$1","v":0},{"$f":"Jurat!D$33","v":"00:00:00"},"Q2","2017-06-30","Region 2","Operating Expense","Taxes & Fees","Taxes & Fees","13.1","State Premium tax",{"$f":"'MMA Rev-Exp Region 2'!O$97","v":{"v":0,"d":"$0.00"}},{"v":0,"d":"$0.00"},{"v":0,"d":"$0.00"},{"v":0,"d":"$0.00"},{"v":0,"d":"$0.00"},{"v":0,"d":"$0.00"},{"v":0,"d":"$0.00"},{"v":0,"d":"$0.00"},{"v":0,"d":"$0.00"},{"v":0,"d":"$0.00"},{"v":0,"d":"$0.00"},{"v":0,"d":"$0.00"}]
["MMA",null,null,{"$f":"Jurat!I$1","v":0},{"$f":"Jurat!D$33","v":"00:00:00"},"Q2","2017-06-30","Region 2","Operating Expense","Taxes & Fees","Taxes & Fees","13.2","Department of Insurance Assessments",{"$f":"'MMA Rev-Exp Region 2'!O$98","v":{"v":0,"d":"$0.00"}},{"v":0,"d":"$0.00"},{"v":0,"d":"$0.00"},{"v":0,"d":"$0.00"},{"v":0,"d":"$0.00"},{"v":0,"d":"$0.00"},{"v":0,"d":"$0.00"},{"v":0,"d":"$0.00"},{"v":0,"d":"$0.00"},{"v":0,"d":"$0.00"},{"v":0,"d":"$0.00"},{"v":0,"d":"$0.00"}]
["MMA",null,null,{"$f":"Jurat!I$1","v":0},{"$f":"Jurat!D$33","v":"00:00:00"},"Q2","2017-06-30","Region 2","Operating Expense","Taxes & Fees","Taxes & Fees","13.3","Section 9010 Health Insurance Providers Fee",{"$f":"'MMA Rev-Exp Region 2'!O$99","v":{"v":0,"d":"$0.00"}},{"v":0,"d":"$0.00"},{"v":0,"d":"$0.00"},{"v":0,"d":"$0.00"},{"v":0,"d":"$0.00"},{"v":0,"d":"$0.00"},{"v":0,"d":"$0.00"},{"v":0,"d":"$0.00"},{"v":0,"d":"$0.00"},{"v":0,"d":"$0.00"},{"v":0,"d":"$0.00"},{"v":0,"d":"$0.00"}]
["MMA",null,null,{"$f":"Jurat!I$1","v":0},{"$f":"Jurat!D$33","v":"00:00:00"},"Q2","2017-06-30","Region 2","Non-Operating Expense","Income Tax Expense","Income Tax Expense","16.0","Income Tax Expense",{"$f":"'MMA Rev-Exp Region 2'!O$106","v":{"v":0,"d":"$0.00"}},{"v":0,"d":"$0.00"},{"v":0,"d":"$0.00"},{"v":0,"d":"$0.00"},{"v":0,"d":"$0.00"},{"v":0,"d":"$0.00"},{"v":0,"d":"$0.00"},{"v":0,"d":"$0.00"},{"v":0,"d":"$0.00"},{"v":0,"d":"$0.00"},{"v":0,"d":"$0.00"},{"v":0,"d":"$0.00"}]
["MMA",null,null,{"$f":"Jurat!I$1","v":0},{"$f":"Jurat!D$33","v":"00:00:00"},"Q2","2017-09-30","Region 2","Member Months","Member Months","Member Months",null,"Member Months",{"$f":"'MMA Rev-Exp Region 2'!Z$9","v":{"v":0,"d":"$0.00"}},{"$f":"'MMA Rev-Exp Region 2'!AA$9","v":{"v":0,"d":"$0.00"}},{"$f":"'MMA Rev-Exp Region 2'!AB$9","v":{"v":0,"d":"$0.00"}},{"$f":"'MMA Rev-Exp Region 2'!AC$9","v":{"v":0,"d":"$0.00"}},{"$f":"'MMA Rev-Exp Region 2'!AD$9","v":{"v":0,"d":"$0.00"}},{"$f":"'MMA Rev-Exp Region 2'!AE$9","v":{"v":0,"d":"$0.00"}},{"$f":"'MMA Rev-Exp Region 2'!AF$9","v":{"v":0,"d":"$0.00"}},{"$f":"'MMA Rev-Exp Region 2'!AG$9","v":{"v":0,"d":"$0.00"}},{"$f":"'MMA Rev-Exp Region 2'!AH$9","v":{"v":0,"d":"$0.00"}},{"$f":"'MMA Rev-Exp Region 2'!AI$9","v":{"v":0,"d":"$0.00"}},{"$f":"'MMA Rev-Exp Region 2'!AJ$9","v":{"v":0,"d":"$0.00"}},{"v":0,"d":"$0.00"}]
["MMA",null,null,{"$f":"Jurat!I$1","v":0},{"$f":"Jurat!D$33","v":"00:00:00"},"Q3","2017-09-30","Region 2","Operating Revenue","Capitation","Capitation",1.1,"Capitation",{"$f":"'MMA Rev-Exp Region 2'!Z$11","v":{"v":0,"d":"$0.00"}},{"$f":"'MMA Rev-Exp Region 2'!AA$11","v":{"v":0,"d":"$0.00"}},{"$f":"'MMA Rev-Exp Region 2'!AB$11","v":{"v":0,"d":"$0.00"}},{"$f":"'MMA Rev-Exp Region 2'!AC$11","v":{"v":0,"d":"$0.00"}},{"$f":"'MMA Rev-Exp Region 2'!AD$11","v":{"v":0,"d":"$0.00"}},{"$f":"'MMA Rev-Exp Region 2'!AE$11","v":{"v":0,"d":"$0.00"}},{"$f":"'MMA Rev-Exp Region 2'!AF$11","v":{"v":0,"d":"$0.00"}},{"$f":"'MMA Rev-Exp Region 2'!AG$11","v":{"v":0,"d":"$0.00"}},{"$f":"'MMA Rev-Exp Region 2'!AH$11","v":{"v":0,"d":"$0.00"}},{"$f":"'MMA Rev-Exp Region 2'!AI$11","v":{"v":0,"d":"$0.00"}},{"$f":"'MMA Rev-Exp Region 2'!AJ$11","v":{"v":0,"d":"$0.00"}},{"v":0,"d":"$0.00"}]
["MMA",null,null,{"$f":"Jurat!I$1","v":0},{"$f":"Jurat!D$33","v":"00:00:00"},"Q3","2017-09-30","Region 2","Operating Revenue","Kick Payments","Kick Payments - Transplant",1.2,"Transplant Kick Payments",{"$f":"'MMA Rev-Exp Region 2'!Z$12","v":{"v":0,"d":"$0.00"}},{"$f":"'MMA Rev-Exp Region 2'!AA$12","v":{"v":0,"d":"$0.00"}},{"$f":"'MMA Rev-Exp Region 2'!AB$12","v":{"v":0,"d":"$0.00"}},{"$f":"'MMA Rev-Exp Region 2'!AC$12","v":{"v":0,"d":"$0.00"}},{"$f":"'MMA Rev-Exp Region 2'!AD$12","v":{"v":0,"d":"$0.00"}},{"$f":"'MMA Rev-Exp Region 2'!AE$12","v":{"v":0,"d":"$0.00"}},{"$f":"'MMA Rev-Exp Region 2'!AF$12","v":{"v":0,"d":"$0.00"}},{"$f":"'MMA Rev-Exp Region 2'!AG$12","v":{"v":0,"d":"$0.00"}},{"$f":"'MMA Rev-Exp Region 2'!AH$12","v":{"v":0,"d":"$0.00"}},{"$f":"'MMA Rev-Exp Region 2'!AI$12","v":{"v":0,"d":"$0.00"}},{"$f":"'MMA Rev-Exp Region 2'!AJ$12","v":{"v":0,"d":"$0.00"}},{"v":0,"d":"$0.00"}]
["MMA",null,null,{"$f":"Jurat!I$1","v":0},{"$f":"Jurat!D$33","v":"00:00:00"},"Q3","2017-09-30","Region 2","Operating Revenue","Kick Payments","Kick Payments - Hep C","1.3","Hepatitis C Kick Payments",{"$f":"'MMA Rev-Exp Region 2'!Z$13","v":{"v":0,"d":"$0.00"}},{"$f":"'MMA Rev-Exp Region 2'!AA$13","v":{"v":0,"d":"$0.00"}},{"$f":"'MMA Rev-Exp Region 2'!AB$13","v":{"v":0,"d":"$0.00"}},{"$f":"'MMA Rev-Exp Region 2'!AC$13","v":{"v":0,"d":"$0.00"}},{"$f":"'MMA Rev-Exp Region 2'!AD$13","v":{"v":0,"d":"$0.00"}},{"$f":"'MMA Rev-Exp Region 2'!AE$13","v":{"v":0,"d":"$0.00"}},{"$f":"'MMA Rev-Exp Region 2'!AF$13","v":{"v":0,"d":"$0.00"}},{"$f":"'MMA Rev-Exp Region 2'!AG$13","v":{"v":0,"d":"$0.00"}},{"$f":"'MMA Rev-Exp Region 2'!AH$13","v":{"v":0,"d":"$0.00"}},{"$f":"'MMA Rev-Exp Region 2'!AI$13","v":{"v":0,"d":"$0.00"}},{"$f":"'MMA Rev-Exp Region 2'!AJ$13","v":{"v":0,"d":"$0.00"}},{"v":0,"d":"$0.00"}]
["MMA",null,null,{"$f":"Jurat!I$1","v":0},{"$f":"Jurat!D$33","v":"00:00:00"},"Q3","2017-09-30","Region 2","Operating Revenue","Kick Payments","Kick Payments - Maternity","1.4.1","Maternity Kick Payments",{"$f":"'MMA Rev-Exp Region 2'!Z$14","v":{"v":0,"d":"$0.00"}},{"$f":"'MMA Rev-Exp Region 2'!AA$14","v":{"v":0,"d":"$0.00"}},{"$f":"'MMA Rev-Exp Region 2'!AB$14","v":{"v":0,"d":"$0.00"}},{"$f":"'MMA Rev-Exp Region 2'!AC$14","v":{"v":0,"d":"$0.00"}},{"$f":"'MMA Rev-Exp Region 2'!AD$14","v":{"v":0,"d":"$0.00"}},{"$f":"'MMA Rev-Exp Region 2'!AE$14","v":{"v":0,"d":"$0.00"}},{"$f":"'MMA Rev-Exp Region 2'!AF$14","v":{"v":0,"d":"$0.00"}},{"$f":"'MMA Rev-Exp Region 2'!AG$14","v":{"v":0,"d":"$0.00"}},{"$f":"'MMA Rev-Exp Region 2'!AH$14","v":{"v":0,"d":"$0.00"}},{"$f":"'MMA Rev-Exp Region 2'!AI$14","v":{"v":0,"d":"$0.00"}},{"$f":"'MMA Rev-Exp Region 2'!AJ$14","v":{"v":0,"d":"$0.00"}},{"v":0,"d":"$0.00"}]
["MMA",null,null,{"$f":"Jurat!I$1","v":0},{"$f":"Jurat!D$33","v":"00:00:00"},"Q3","2017-09-30","Region 2","Operating Revenue","Other Revenue","Other Revenue - 9010","1.5","ACA § 9010 related payments",{"$f":"'MMA Rev-Exp Region 2'!Z$15","v":{"v":0,"d":"$0.00"}},{"$f":"'MMA Rev-Exp Region 2'!AA$15","v":{"v":0,"d":"$0.00"}},{"$f":"'MMA Rev-Exp Region 2'!AB$15","v":{"v":0,"d":"$0.00"}},{"$f":"'MMA Rev-Exp Region 2'!AC$15","v":{"v":0,"d":"$0.00"}},{"$f":"'MMA Rev-Exp Region 2'!AD$15","v":{"v":0,"d":"$0.00"}},{"$f":"'MMA Rev-Exp Region 2'!AE$15","v":{"v":0,"d":"$0.00"}},{"$f":"'MMA Rev-Exp Region 2'!AF$15","v":{"v":0,"d":"$0.00"}},{"$f":"'MMA Rev-Exp Region 2'!AG$15","v":{"v":0,"d":"$0.00"}},{"$f":"'MMA Rev-Exp Region 2'!AH$15","v":{"v":0,"d":"$0.00"}},{"$f":"'MMA Rev-Exp Region 2'!AI$15","v":{"v":0,"d":"$0.00"}},{"$f":"'MMA Rev-Exp Region 2'!AJ$15","v":{"v":0,"d":"$0.00"}},{"v":0,"d":"$0.00"}]
["MMA",null,null,{"$f":"Jurat!I$1","v":0},{"$f":"Jurat!D$33","v":"00:00:00"},"Q3","2017-09-30","Region 2","Operating Revenue","Other Revenue","Other Revenue","1.6","Other Revenue",{"$f":"'MMA Rev-Exp Region 2'!Z$16","v":{"v":0,"d":"$0.00"}},{"$f":"'MMA Rev-Exp Region 2'!AA$16","v":{"v":0,"d":"$0.00"}},{"$f":"'MMA Rev-Exp Region 2'!AB$16","v":{"v":0,"d":"$0.00"}},{"$f":"'MMA Rev-Exp Region 2'!AC$16","v":{"v":0,"d":"$0.00"}},{"$f":"'MMA Rev-Exp Region 2'!AD$16","v":{"v":0,"d":"$0.00"}},{"$f":"'MMA Rev-Exp Region 2'!AE$16","v":{"v":0,"d":"$0.00"}},{"$f":"'MMA Rev-Exp Region 2'!AF$16","v":{"v":0,"d":"$0.00"}},{"$f":"'MMA Rev-Exp Region 2'!AG$16","v":{"v":0,"d":"$0.00"}},{"$f":"'MMA Rev-Exp Region 2'!AH$16","v":{"v":0,"d":"$0.00"}},{"$f":"'MMA Rev-Exp Region 2'!AI$16","v":{"v":0,"d":"$0.00"}},{"$f":"'MMA Rev-Exp Region 2'!AJ$16","v":{"v":0,"d":"$0.00"}},{"v":0,"d":"$0.00"}]
["MMA",null,null,{"$f":"Jurat!I$1","v":0},{"$f":"Jurat!D$33","v":"00:00:00"},"Q3","2017-09-30","Region 2","Operating Expense","Medical Benefits Expense","Hospital Services",2.1,"Inpatient FFS",{"$f":"'MMA Rev-Exp Region 2'!Z$20","v":{"v":0,"d":"$0.00"}},{"$f":"'MMA Rev-Exp Region 2'!AA$20","v":{"v":0,"d":"$0.00"}},{"$f":"'MMA Rev-Exp Region 2'!AB$20","v":{"v":0,"d":"$0.00"}},{"$f":"'MMA Rev-Exp Region 2'!AC$20","v":{"v":0,"d":"$0.00"}},{"$f":"'MMA Rev-Exp Region 2'!AD$20","v":{"v":0,"d":"$0.00"}},{"$f":"'MMA Rev-Exp Region 2'!AE$20","v":{"v":0,"d":"$0.00"}},{"$f":"'MMA Rev-Exp Region 2'!AF$20","v":{"v":0,"d":"$0.00"}},{"$f":"'MMA Rev-Exp Region 2'!AG$20","v":{"v":0,"d":"$0.00"}},{"$f":"'MMA Rev-Exp Region 2'!AH$20","v":{"v":0,"d":"$0.00"}},{"$f":"'MMA Rev-Exp Region 2'!AI$20","v":{"v":0,"d":"$0.00"}},{"$f":"'MMA Rev-Exp Region 2'!AJ$20","v":{"v":0,"d":"$0.00"}},{"v":0,"d":"$0.00"}]
["MMA",null,null,{"$f":"Jurat!I$1","v":0},{"$f":"Jurat!D$33","v":"00:00:00"},"Q3","2017-09-30","Region 2","Operating Expense","Medical Benefits Expense","Hospital Services",2.2,"Ending IBNP for Inpatient Hospital Services",{"$f":"'MMA Rev-Exp Region 2'!Z$21","v":{"v":0,"d":"$0.00"}},{"$f":"'MMA Rev-Exp Region 2'!AA$21","v":{"v":0,"d":"$0.00"}},{"$f":"'MMA Rev-Exp Region 2'!AB$21","v":{"v":0,"d":"$0.00"}},{"$f":"'MMA Rev-Exp Region 2'!AC$21","v":{"v":0,"d":"$0.00"}},{"$f":"'MMA Rev-Exp Region 2'!AD$21","v":{"v":0,"d":"$0.00"}},{"$f":"'MMA Rev-Exp Region 2'!AE$21","v":{"v":0,"d":"$0.00"}},{"$f":"'MMA Rev-Exp Region 2'!AF$21","v":{"v":0,"d":"$0.00"}},{"$f":"'MMA Rev-Exp Region 2'!AG$21","v":{"v":0,"d":"$0.00"}},{"$f":"'MMA Rev-Exp Region 2'!AH$21","v":{"v":0,"d":"$0.00"}},{"$f":"'MMA Rev-Exp Region 2'!AI$21","v":{"v":0,"d":"$0.00"}},{"$f":"'MMA Rev-Exp Region 2'!AJ$21","v":{"v":0,"d":"$0.00"}},{"v":0,"d":"$0.00"}]
["MMA",null,null,{"$f":"Jurat!I$1","v":0},{"$f":"Jurat!D$33","v":"00:00:00"},"Q3","2017-09-30","Region 2","Operating Expense","Medical Benefits Expense","Hospital Services",2.3,"Outpatient FFS: ER",{"$f":"'MMA Rev-Exp Region 2'!Z$22","v":{"v":0,"d":"$0.00"}},{"$f":"'MMA Rev-Exp Region 2'!AA$22","v":{"v":0,"d":"$0.00"}},{"$f":"'MMA Rev-Exp Region 2'!AB$22","v":{"v":0,"d":"$0.00"}},{"$f":"'MMA Rev-Exp Region 2'!AC$22","v":{"v":0,"d":"$0.00"}},{"$f":"'MMA Rev-Exp Region 2'!AD$22","v":{"v":0,"d":"$0.00"}},{"$f":"'MMA Rev-Exp Region 2'!AE$22","v":{"v":0,"d":"$0.00"}},{"$f":"'MMA Rev-Exp Region 2'!AF$22","v":{"v":0,"d":"$0.00"}},{"$f":"'MMA Rev-Exp Region 2'!AG$22","v":{"v":0,"d":"$0.00"}},{"$f":"'MMA Rev-Exp Region 2'!AH$22","v":{"v":0,"d":"$0.00"}},{"$f":"'MMA Rev-Exp Region 2'!AI$22","v":{"v":0,"d":"$0.00"}},{"$f":"'MMA Rev-Exp Region 2'!AJ$22","v":{"v":0,"d":"$0.00"}},{"v":0,"d":"$0.00"}]
["MMA",null,null,{"$f":"Jurat!I$1","v":0},{"$f":"Jurat!D$33","v":"00:00:00"},"Q3","2017-09-30","Region 2","Operating Expense","Medical Benefits Expense","Hospital Services",2.4,"Outpatient FFS: Other than ER ",{"$f":"'MMA Rev-Exp Region 2'!Z$23","v":{"v":0,"d":"$0.00"}},{"$f":"'MMA Rev-Exp Region 2'!AA$23","v":{"v":0,"d":"$0.00"}},{"$f":"'MMA Rev-Exp Region 2'!AB$23","v":{"v":0,"d":"$0.00"}},{"$f":"'MMA Rev-Exp Region 2'!AC$23","v":{"v":0,"d":"$0.00"}},{"$f":"'MMA Rev-Exp Region 2'!AD$23","v":{"v":0,"d":"$0.00"}},{"$f":"'MMA Rev-Exp Region 2'!AE$23","v":{"v":0,"d":"$0.00"}},{"$f":"'MMA Rev-Exp Region 2'!AF$23","v":{"v":0,"d":"$0.00"}},{"$f":"'MMA Rev-Exp Region 2'!AG$23","v":{"v":0,"d":"$0.00"}},{"$f":"'MMA Rev-Exp Region 2'!AH$23","v":{"v":0,"d":"$0.00"}},{"$f":"'MMA Rev-Exp Region 2'!AI$23","v":{"v":0,"d":"$0.00"}},{"$f":"'MMA Rev-Exp Region 2'!AJ$23","v":{"v":0,"d":"$0.00"}},{"v":0,"d":"$0.00"}]
["MMA",null,null,{"$f":"Jurat!I$1","v":0},{"$f":"Jurat!D$33","v":"00:00:00"},"Q3","2017-09-30","Region 2","Operating Expense","Medical Benefits Expense","Hospital Services",2.5,"Ending IBNP for Outpatient Hospital Services",{"$f":"'MMA Rev-Exp Region 2'!Z$24","v":{"v":0,"d":"$0.00"}},{"$f":"'MMA Rev-Exp Region 2'!AA$24","v":{"v":0,"d":"$0.00"}},{"$f":"'MMA Rev-Exp Region 2'!AB$24","v":{"v":0,"d":"$0.00"}},{"$f":"'MMA Rev-Exp Region 2'!AC$24","v":{"v":0,"d":"$0.00"}},{"$f":"'MMA Rev-Exp Region 2'!AD$24","v":{"v":0,"d":"$0.00"}},{"$f":"'MMA Rev-Exp Region 2'!AE$24","v":{"v":0,"d":"$0.00"}},{"$f":"'MMA Rev-Exp Region 2'!AF$24","v":{"v":0,"d":"$0.00"}},{"$f":"'MMA Rev-Exp Region 2'!AG$24","v":{"v":0,"d":"$0.00"}},{"$f":"'MMA Rev-Exp Region 2'!AH$24","v":{"v":0,"d":"$0.00"}},{"$f":"'MMA Rev-Exp Region 2'!AI$24","v":{"v":0,"d":"$0.00"}},{"$f":"'MMA Rev-Exp Region 2'!AJ$24","v":{"v":0,"d":"$0.00"}},{"v":0,"d":"$0.00"}]
["MMA",null,null,{"$f":"Jurat!I$1","v":0},{"$f":"Jurat!D$33","v":"00:00:00"},"Q3","2017-09-30","Region 2","Operating Expense","Medical Benefits Expense","Hospital Services","2.6","Subcapitated Hospital Services",{"$f":"'MMA Rev-Exp Region 2'!Z$25","v":{"v":0,"d":"$0.00"}},{"$f":"'MMA Rev-Exp Region 2'!AA$25","v":{"v":0,"d":"$0.00"}},{"$f":"'MMA Rev-Exp Region 2'!AB$25","v":{"v":0,"d":"$0.00"}},{"$f":"'MMA Rev-Exp Region 2'!AC$25","v":{"v":0,"d":"$0.00"}},{"$f":"'MMA Rev-Exp Region 2'!AD$25","v":{"v":0,"d":"$0.00"}},{"$f":"'MMA Rev-Exp Region 2'!AE$25","v":{"v":0,"d":"$0.00"}},{"$f":"'MMA Rev-Exp Region 2'!AF$25","v":{"v":0,"d":"$0.00"}},{"$f":"'MMA Rev-Exp Region 2'!AG$25","v":{"v":0,"d":"$0.00"}},{"$f":"'MMA Rev-Exp Region 2'!AH$25","v":{"v":0,"d":"$0.00"}},{"$f":"'MMA Rev-Exp Region 2'!AI$25","v":{"v":0,"d":"$0.00"}},{"$f":"'MMA Rev-Exp Region 2'!AJ$25","v":{"v":0,"d":"$0.00"}},{"v":0,"d":"$0.00"}]
["MMA",null,null,{"$f":"Jurat!I$1","v":0},{"$f":"Jurat!D$33","v":"00:00:00"},"Q3","2017-09-30","Region 2","Operating Expense","Medical Benefits Expense","Hospital Services","2.7","Hospital Settlements",{"$f":"'MMA Rev-Exp Region 2'!Z$26","v":{"v":0,"d":"$0.00"}},{"$f":"'MMA Rev-Exp Region 2'!AA$26","v":{"v":0,"d":"$0.00"}},{"$f":"'MMA Rev-Exp Region 2'!AB$26","v":{"v":0,"d":"$0.00"}},{"$f":"'MMA Rev-Exp Region 2'!AC$26","v":{"v":0,"d":"$0.00"}},{"$f":"'MMA Rev-Exp Region 2'!AD$26","v":{"v":0,"d":"$0.00"}},{"$f":"'MMA Rev-Exp Region 2'!AE$26","v":{"v":0,"d":"$0.00"}},{"$f":"'MMA Rev-Exp Region 2'!AF$26","v":{"v":0,"d":"$0.00"}},{"$f":"'MMA Rev-Exp Region 2'!AG$26","v":{"v":0,"d":"$0.00"}},{"$f":"'MMA Rev-Exp Region 2'!AH$26","v":{"v":0,"d":"$0.00"}},{"$f":"'MMA Rev-Exp Region 2'!AI$26","v":{"v":0,"d":"$0.00"}},{"$f":"'MMA Rev-Exp Region 2'!AJ$26","v":{"v":0,"d":"$0.00"}},{"v":0,"d":"$0.00"}]
["MMA",null,null,{"$f":"Jurat!I$1","v":0},{"$f":"Jurat!D$33","v":"00:00:00"},"Q3","2017-09-30","Region 2","Operating Expense","Medical Benefits Expense","Hospital Services","2.7.1","Transplant Services",{"$f":"'MMA Rev-Exp Region 2'!Z$27","v":{"v":0,"d":"$0.00"}},{"$f":"'MMA Rev-Exp Region 2'!AA$27","v":{"v":0,"d":"$0.00"}},{"$f":"'MMA Rev-Exp Region 2'!AB$27","v":{"v":0,"d":"$0.00"}},{"$f":"'MMA Rev-Exp Region 2'!AC$27","v":{"v":0,"d":"$0.00"}},{"$f":"'MMA Rev-Exp Region 2'!AD$27","v":{"v":0,"d":"$0.00"}},{"$f":"'MMA Rev-Exp Region 2'!AE$27","v":{"v":0,"d":"$0.00"}},{"$f":"'MMA Rev-Exp Region 2'!AF$27","v":{"v":0,"d":"$0.00"}},{"$f":"'MMA Rev-Exp Region 2'!AG$27","v":{"v":0,"d":"$0.00"}},{"$f":"'MMA Rev-Exp Region 2'!AH$27","v":{"v":0,"d":"$0.00"}},{"$f":"'MMA Rev-Exp Region 2'!AI$27","v":{"v":0,"d":"$0.00"}},{"$f":"'MMA Rev-Exp Region 2'!AJ$27","v":{"v":0,"d":"$0.00"}},{"v":0,"d":"$0.00"}]
["MMA",{"$nulls":5},"2017-09-30","Region 2","Operating Expense","Medical Benefits Expense","Professional Services",3.1,"Primary Care FFS",{"$f":"'MMA Rev-Exp Region 2'!Z$29","v":{"v":0,"d":"$0.00"}},{"$f":"'MMA Rev-Exp Region 2'!AA$29","v":{"v":0,"d":"$0.00"}},{"$f":"'MMA Rev-Exp Region 2'!AB$29","v":{"v":0,"d":"$0.00"}},{"$f":"'MMA Rev-Exp Region 2'!AC$29","v":{"v":0,"d":"$0.00"}},{"$f":"'MMA Rev-Exp Region 2'!AD$29","v":{"v":0,"d":"$0.00"}},{"$f":"'MMA Rev-Exp Region 2'!AE$29","v":{"v":0,"d":"$0.00"}},{"$f":"'MMA Rev-Exp Region 2'!AF$29","v":{"v":0,"d":"$0.00"}},{"$f":"'MMA Rev-Exp Region 2'!AG$29","v":{"v":0,"d":"$0.00"}},{"$f":"'MMA Rev-Exp Region 2'!AH$29","v":{"v":0,"d":"$0.00"}},{"$f":"'MMA Rev-Exp Region 2'!AI$29","v":{"v":0,"d":"$0.00"}},{"$f":"'MMA Rev-Exp Region 2'!AJ$29","v":{"v":0,"d":"$0.00"}},{"v":0,"d":"$0.00"}]
["MMA",null,null,{"$f":"Jurat!I$1","v":0},{"$f":"Jurat!D$33","v":"00:00:00"},"Q3","2017-09-30","Region 2","Operating Expense","Medical Benefits Expense","Professional Services",3.2,"Specialty Care FFS",{"$f":"'MMA Rev-Exp Region 2'!Z$30","v":{"v":0,"d":"$0.00"}},{"$f":"'MMA Rev-Exp Region 2'!AA$30","v":{"v":0,"d":"$0.00"}},{"$f":"'MMA Rev-Exp Region 2'!AB$30","v":{"v":0,"d":"$0.00"}},{"$f":"'MMA Rev-Exp Region 2'!AC$30","v":{"v":0,"d":"$0.00"}},{"$f":"'MMA Rev-Exp Region 2'!AD$30","v":{"v":0,"d":"$0.00"}},{"$f":"'MMA Rev-Exp Region 2'!AE$30","v":{"v":0,"d":"$0.00"}},{"$f":"'MMA Rev-Exp Region 2'!AF$30","v":{"v":0,"d":"$0.00"}},{"$f":"'MMA Rev-Exp Region 2'!AG$30","v":{"v":0,"d":"$0.00"}},{"$f":"'MMA Rev-Exp Region 2'!AH$30","v":{"v":0,"d":"$0.00"}},{"$f":"'MMA Rev-Exp Region 2'!AI$30","v":{"v":0,"d":"$0.00"}},{"$f":"'MMA Rev-Exp Region 2'!AJ$30","v":{"v":0,"d":"$0.00"}},{"v":0,"d":"$0.00"}]
["MMA",null,null,{"$f":"Jurat!I$1","v":0},{"$f":"Jurat!D$33","v":"00:00:00"},"Q3","2017-09-30","Region 2","Operating Expense","Medical Benefits Expense","Professional Services",3.3,"Other Professional FFS",{"$f":"'MMA Rev-Exp Region 2'!Z$31","v":{"v":0,"d":"$0.00"}},{"$f":"'MMA Rev-Exp Region 2'!AA$31","v":{"v":0,"d":"$0.00"}},{"$f":"'MMA Rev-Exp Region 2'!AB$31","v":{"v":0,"d":"$0.00"}},{"$f":"'MMA Rev-Exp Region 2'!AC$31","v":{"v":0,"d":"$0.00"}},{"$f":"'MMA Rev-Exp Region 2'!AD$31","v":{"v":0,"d":"$0.00"}},{"$f":"'MMA Rev-Exp Region 2'!AE$31","v":{"v":0,"d":"$0.00"}},{"$f":"'MMA Rev-Exp Region 2'!AF$31","v":{"v":0,"d":"$0.00"}},{"$f":"'MMA Rev-Exp Region 2'!AG$31","v":{"v":0,"d":"$0.00"}},{"$f":"'MMA Rev-Exp Region 2'!AH$31","v":{"v":0,"d":"$0.00"}},{"$f":"'MMA Rev-Exp Region 2'!AI$31","v":{"v":0,"d":"$0.00"}},{"$f":"'MMA Rev-Exp Region 2'!AJ$31","v":{"v":0,"d":"$0.00"}},{"v":0,"d":"$0.00"}]
["MMA",null,null,{"$f":"Jurat!I$1","v":0},{"$f":"Jurat!D$33","v":"00:00:00"},"Q3","2017-09-30","Region 2","Operating Expense","Medical Benefits Expense","Professional Services","3.4","§ 1202 PCP Payments to providers",{"$f":"'MMA Rev-Exp Region 2'!Z$32","v":{"v":0,"d":"$0.00"}},{"$f":"'MMA Rev-Exp Region 2'!AA$32","v":{"v":0,"d":"$0.00"}},{"$f":"'MMA Rev-Exp Region 2'!AB$32","v":{"v":0,"d":"$0.00"}},{"$f":"'MMA Rev-Exp Region 2'!AC$32","v":{"v":0,"d":"$0.00"}},{"$f":"'MMA Rev-Exp Region 2'!AD$32","v":{"v":0,"d":"$0.00"}},{"$f":"'MMA Rev-Exp Region 2'!AE$32","v":{"v":0,"d":"$0.00"}},{"$f":"'MMA Rev-Exp Region 2'!AF$32","v":{"v":0,"d":"$0.00"}},{"$f":"'MMA Rev-Exp Region 2'!AG$32","v":{"v":0,"d":"$0.00"}},{"$f":"'MMA Rev-Exp Region 2'!AH$32","v":{"v":0,"d":"$0.00"}},{"$f":"'MMA Rev-Exp Region 2'!AI$32","v":{"v":0,"d":"$0.00"}},{"$f":"'MMA Rev-Exp Region 2'!AJ$32","v":{"v":0,"d":"$0.00"}},{"v":0,"d":"$0.00"}]
["MMA",null,null,{"$f":"Jurat!I$1","v":0},{"$f":"Jurat!D$33","v":"00:00:00"},"Q3","2017-09-30","Region 2","Operating Expense","Medical Benefits Expense","Professional Services","3.5","Subcapitated Professional Services",{"$f":"'MMA Rev-Exp Region 2'!Z$33","v":{"v":0,"d":"$0.00"}},{"$f":"'MMA Rev-Exp Region 2'!AA$33","v":{"v":0,"d":"$0.00"}},{"$f":"'MMA Rev-Exp Region 2'!AB$33","v":{"v":0,"d":"$0.00"}},{"$f":"'MMA Rev-Exp Region 2'!AC$33","v":{"v":0,"d":"$0.00"}},{"$f":"'MMA Rev-Exp Region 2'!AD$33","v":{"v":0,"d":"$0.00"}},{"$f":"'MMA Rev-Exp Region 2'!AE$33","v":{"v":0,"d":"$0.00"}},{"$f":"'MMA Rev-Exp Region 2'!AF$33","v":{"v":0,"d":"$0.00"}},{"$f":"'MMA Rev-Exp Region 2'!AG$33","v":{"v":0,"d":"$0.00"}},{"$f":"'MMA Rev-Exp Region 2'!AH$33","v":{"v":0,"d":"$0.00"}},{"$f":"'MMA Rev-Exp Region 2'!AI$33","v":{"v":0,"d":"$0.00"}},{"$f":"'MMA Rev-Exp Region 2'!AJ$33","v":{"v":0,"d":"$0.00"}},{"v":0,"d":"$0.00"}]
["MMA",null,null,{"$f":"Jurat!I$1","v":0},{"$f":"Jurat!D$33","v":"00:00:00"},"Q3","2017-09-30","Region 2","Operating Expense","Medical Benefits Expense","Professional Services","3.6","Ending IBNP for Professional Services",{"$f":"'MMA Rev-Exp Region 2'!Z$34","v":{"v":0,"d":"$0.00"}},{"$f":"'MMA Rev-Exp Region 2'!AA$34","v":{"v":0,"d":"$0.00"}},{"$f":"'MMA Rev-Exp Region 2'!AB$34","v":{"v":0,"d":"$0.00"}},{"$f":"'MMA Rev-Exp Region 2'!AC$34","v":{"v":0,"d":"$0.00"}},{"$f":"'MMA Rev-Exp Region 2'!AD$34","v":{"v":0,"d":"$0.00"}},{"$f":"'MMA Rev-Exp Region 2'!AE$34","v":{"v":0,"d":"$0.00"}},{"$f":"'MMA Rev-Exp Region 2'!AF$34","v":{"v":0,"d":"$0.00"}},{"$f":"'MMA Rev-Exp Region 2'!AG$34","v":{"v":0,"d":"$0.00"}},{"$f":"'MMA Rev-Exp Region 2'!AH$34","v":{"v":0,"d":"$0.00"}},{"$f":"'MMA Rev-Exp Region 2'!AI$34","v":{"v":0,"d":"$0.00"}},{"$f":"'MMA Rev-Exp Region 2'!AJ$34","v":{"v":0,"d":"$0.00"}},{"v":0,"d":"$0.00"}]
["MMA",null,null,{"$f":"Jurat!I$1","v":0},{"$f":"Jurat!D$33","v":"00:00:00"},"Q3","2017-09-30","Region 2","Operating Expense","Medical Benefits Expense","Professional Services","3.7","Professional Services Settlements",{"$f":"'MMA Rev-Exp Region 2'!Z$35","v":{"v":0,"d":"$0.00"}},{"$f":"'MMA Rev-Exp Region 2'!AA$35","v":{"v":0,"d":"$0.00"}},{"$f":"'MMA Rev-Exp Region 2'!AB$35","v":{"v":0,"d":"$0.00"}},{"$f":"'MMA Rev-Exp Region 2'!AC$35","v":{"v":0,"d":"$0.00"}},{"$f":"'MMA Rev-Exp Region 2'!AD$35","v":{"v":0,"d":"$0.00"}},{"$f":"'MMA Rev-Exp Region 2'!AE$35","v":{"v":0,"d":"$0.00"}},{"$f":"'MMA Rev-Exp Region 2'!AF$35","v":{"v":0,"d":"$0.00"}},{"$f":"'MMA Rev-Exp Region 2'!AG$35","v":{"v":0,"d":"$0.00"}},{"$f":"'MMA Rev-Exp Region 2'!AH$35","v":{"v":0,"d":"$0.00"}},{"$f":"'MMA Rev-Exp Region 2'!AI$35","v":{"v":0,"d":"$0.00"}},{"$f":"'MMA Rev-Exp Region 2'!AJ$35","v":{"v":0,"d":"$0.00"}},{"v":0,"d":"$0.00"}]
["MMA",null,null,{"$f":"Jurat!I$1","v":0},{"$f":"Jurat!D$33","v":"00:00:00"},"Q3","2017-09-30","Region 2","Operating Expense","Medical Benefits Expense","Maternity Services","4.1.1","Maternity Services",{"$f":"'MMA Rev-Exp Region 2'!Z$37","v":{"v":0,"d":"$0.00"}},{"$f":"'MMA Rev-Exp Region 2'!AA$37","v":{"v":0,"d":"$0.00"}},{"$f":"'MMA Rev-Exp Region 2'!AB$37","v":{"v":0,"d":"$0.00"}},{"$f":"'MMA Rev-Exp Region 2'!AC$37","v":{"v":0,"d":"$0.00"}},{"$f":"'MMA Rev-Exp Region 2'!AD$37","v":{"v":0,"d":"$0.00"}},{"$f":"'MMA Rev-Exp Region 2'!AE$37","v":{"v":0,"d":"$0.00"}},{"$f":"'MMA Rev-Exp Region 2'!AF$37","v":{"v":0,"d":"$0.00"}},{"$f":"'MMA Rev-Exp Region 2'!AG$37","v":{"v":0,"d":"$0.00"}},{"$f":"'MMA Rev-Exp Region 2'!AH$37","v":{"v":0,"d":"$0.00"}},{"$f":"'MMA Rev-Exp Region 2'!AI$37","v":{"v":0,"d":"$0.00"}},{"$f":"'MMA Rev-Exp Region 2'!AJ$37","v":{"v":0,"d":"$0.00"}},{"v":0,"d":"$0.00"}]
["MMA",null,null,{"$f":"Jurat!I$1","v":0},{"$f":"Jurat!D$33","v":"00:00:00"},"Q3","2017-09-30","Region 2","Operating Expense","Medical Benefits Expense","Maternity Services","4.2.1","Ending IBNP for Maternity Services",{"$f":"'MMA Rev-Exp Region 2'!Z$38","v":{"v":0,"d":"$0.00"}},{"$f":"'MMA Rev-Exp Region 2'!AA$38","v":{"v":0,"d":"$0.00"}},{"$f":"'MMA Rev-Exp Region 2'!AB$38","v":{"v":0,"d":"$0.00"}},{"$f":"'MMA Rev-Exp Region 2'!AC$38","v":{"v":0,"d":"$0.00"}},{"$f":"'MMA Rev-Exp Region 2'!AD$38","v":{"v":0,"d":"$0.00"}},{"$f":"'MMA Rev-Exp Region 2'!AE$38","v":{"v":0,"d":"$0.00"}},{"$f":"'MMA Rev-Exp Region 2'!AF$38","v":{"v":0,"d":"$0.00"}},{"$f":"'MMA Rev-Exp Region 2'!AG$38","v":{"v":0,"d":"$0.00"}},{"$f":"'MMA Rev-Exp Region 2'!AH$38","v":{"v":0,"d":"$0.00"}},{"$f":"'MMA Rev-Exp Region 2'!AI$38","v":{"v":0,"d":"$0.00"}},{"$f":"'MMA Rev-Exp Region 2'!AJ$38","v":{"v":0,"d":"$0.00"}},{"v":0,"d":"$0.00"}]
["MMA",null,null,{"$f":"Jurat!I$1","v":0},{"$f":"Jurat!D$33","v":"00:00:00"},"Q3","2017-09-30","Region 2","Operating Expense","Medical Benefits Expense","Maternity Services","4.3.1","Maternity Settlements",{"$f":"'MMA Rev-Exp Region 2'!Z$39","v":{"v":0,"d":"$0.00"}},{"$f":"'MMA Rev-Exp Region 2'!AA$39","v":{"v":0,"d":"$0.00"}},{"$f":"'MMA Rev-Exp Region 2'!AB$39","v":{"v":0,"d":"$0.00"}},{"$f":"'MMA Rev-Exp Region 2'!AC$39","v":{"v":0,"d":"$0.00"}},{"$f":"'MMA Rev-Exp Region 2'!AD$39","v":{"v":0,"d":"$0.00"}},{"$f":"'MMA Rev-Exp Region 2'!AE$39","v":{"v":0,"d":"$0.00"}},{"$f":"'MMA Rev-Exp Region 2'!AF$39","v":{"v":0,"d":"$0.00"}},{"$f":"'MMA Rev-Exp Region 2'!AG$39","v":{"v":0,"d":"$0.00"}},{"$f":"'MMA Rev-Exp Region 2'!AH$39","v":{"v":0,"d":"$0.00"}},{"$f":"'MMA Rev-Exp Region 2'!AI$39","v":{"v":0,"d":"$0.00"}},{"$f":"'MMA Rev-Exp Region 2'!AJ$39","v":{"v":0,"d":"$0.00"}},{"v":0,"d":"$0.00"}]
["MMA",null,null,{"$f":"Jurat!I$1","v":0},{"$f":"Jurat!D$33","v":"00:00:00"},"Q3","2017-09-30","Region 2","Operating Expense","Medical Benefits Expense","Mental Health Services",5.1,"Mental Health & Substance Abuse FFS",{"$f":"'MMA Rev-Exp Region 2'!Z$41","v":{"v":0,"d":"$0.00"}},{"$f":"'MMA Rev-Exp Region 2'!AA$41","v":{"v":0,"d":"$0.00"}},{"$f":"'MMA Rev-Exp Region 2'!AB$41","v":{"v":0,"d":"$0.00"}},{"$f":"'MMA Rev-Exp Region 2'!AC$41","v":{"v":0,"d":"$0.00"}},{"$f":"'MMA Rev-Exp Region 2'!AD$41","v":{"v":0,"d":"$0.00"}},{"$f":"'MMA Rev-Exp Region 2'!AE$41","v":{"v":0,"d":"$0.00"}},{"$f":"'MMA Rev-Exp Region 2'!AF$41","v":{"v":0,"d":"$0.00"}},{"$f":"'MMA Rev-Exp Region 2'!AG$41","v":{"v":0,"d":"$0.00"}},{"$f":"'MMA Rev-Exp Region 2'!AH$41","v":{"v":0,"d":"$0.00"}},{"$f":"'MMA Rev-Exp Region 2'!AI$41","v":{"v":0,"d":"$0.00"}},{"$f":"'MMA Rev-Exp Region 2'!AJ$41","v":{"v":0,"d":"$0.00"}},{"v":0,"d":"$0.00"}]
["MMA",null,null,{"$f":"Jurat!I$1","v":0},{"$f":"Jurat!D$33","v":"00:00:00"},"Q3","2017-09-30","Region 2","Operating Expense","Medical Benefits Expense","Mental Health Services",5.2,"Mental Health & Substance Abuse Subcapitation",{"$f":"'MMA Rev-Exp Region 2'!Z$42","v":{"v":0,"d":"$0.00"}},{"$f":"'MMA Rev-Exp Region 2'!AA$42","v":{"v":0,"d":"$0.00"}},{"$f":"'MMA Rev-Exp Region 2'!AB$42","v":{"v":0,"d":"$0.00"}},{"$f":"'MMA Rev-Exp Region 2'!AC$42","v":{"v":0,"d":"$0.00"}},{"$f":"'MMA Rev-Exp Region 2'!AD$42","v":{"v":0,"d":"$0.00"}},{"$f":"'MMA Rev-Exp Region 2'!AE$42","v":{"v":0,"d":"$0.00"}},{"$f":"'MMA Rev-Exp Region 2'!AF$42","v":{"v":0,"d":"$0.00"}},{"$f":"'MMA Rev-Exp Region 2'!AG$42","v":{"v":0,"d":"$0.00"}},{"$f":"'MMA Rev-Exp Region 2'!AH$42","v":{"v":0,"d":"$0.00"}},{"$f":"'MMA Rev-Exp Region 2'!AI$42","v":{"v":0,"d":"$0.00"}},{"$f":"'MMA Rev-Exp Region 2'!AJ$42","v":{"v":0,"d":"$0.00"}},{"v":0,"d":"$0.00"}]
["MMA",null,null,{"$f":"Jurat!I$1","v":0},{"$f":"Jurat!D$33","v":"00:00:00"},"Q3","2017-09-30","Region 2","Operating Expense","Medical Benefits Expense","Mental Health Services",5.3,"Ending IBNP for Mental Health & Substance Abuse",{"$f":"'MMA Rev-Exp Region 2'!Z$43","v":{"v":0,"d":"$0.00"}},{"$f":"'MMA Rev-Exp Region 2'!AA$43","v":{"v":0,"d":"$0.00"}},{"$f":"'MMA Rev-Exp Region 2'!AB$43","v":{"v":0,"d":"$0.00"}},{"$f":"'MMA Rev-Exp Region 2'!AC$43","v":{"v":0,"d":"$0.00"}},{"$f":"'MMA Rev-Exp Region 2'!AD$43","v":{"v":0,"d":"$0.00"}},{"$f":"'MMA Rev-Exp Region 2'!AE$43","v":{"v":0,"d":"$0.00"}},{"$f":"'MMA Rev-Exp Region 2'!AF$43","v":{"v":0,"d":"$0.00"}},{"$f":"'MMA Rev-Exp Region 2'!AG$43","v":{"v":0,"d":"$0.00"}},{"$f":"'MMA Rev-Exp Region 2'!AH$43","v":{"v":0,"d":"$0.00"}},{"$f":"'MMA Rev-Exp Region 2'!AI$43","v":{"v":0,"d":"$0.00"}},{"$f":"'MMA Rev-Exp Region 2'!AJ$43","v":{"v":0,"d":"$0.00"}},{"v":0,"d":"$0.00"}]
["MMA",null,null,{"$f":"Jurat!I$1","v":0},{"$f":"Jurat!D$33","v":"00:00:00"},"Q3","2017-09-30","Region 2","Operating Expense","Medical Benefits Expense","Mental Health Services","5.4","Mental Health Settlements",{"$f":"'MMA Rev-Exp Region 2'!Z$44","v":{"v":0,"d":"$0.00"}},{"$f":"'MMA Rev-Exp Region 2'!AA$44","v":{"v":0,"d":"$0.00"}},{"$f":"'MMA Rev-Exp Region 2'!AB$44","v":{"v":0,"d":"$0.00"}},{"$f":"'MMA Rev-Exp Region 2'!AC$44","v":{"v":0,"d":"$0.00"}},{"$f":"'MMA Rev-Exp Region 2'!AD$44","v":{"v":0,"d":"$0.00"}},{"$f":"'MMA Rev-Exp Region 2'!AE$44","v":{"v":0,"d":"$0.00"}},{"$f":"'MMA Rev-Exp Region 2'!AF$44","v":{"v":0,"d":"$0.00"}},{"$f":"'MMA Rev-Exp Region 2'!AG$44","v":{"v":0,"d":"$0.00"}},{"$f":"'MMA Rev-Exp Region 2'!AH$44","v":{"v":0,"d":"$0.00"}},{"$f":"'MMA Rev-Exp Region 2'!AI$44","v":{"v":0,"d":"$0.00"}},{"$f":"'MMA Rev-Exp Region 2'!AJ$44","v":{"v":0,"d":"$0.00"}},{"v":0,"d":"$0.00"}]
["MMA",null,null,{"$f":"Jurat!I$1","v":0},{"$f":"Jurat!D$33","v":"00:00:00"},"Q3","2017-09-30","Region 2","Operating Expense","Medical Benefits Expense","Dental Services",6.1,"Dental FFS",{"$f":"'MMA Rev-Exp Region 2'!Z$46","v":{"v":0,"d":"$0.00"}},{"$f":"'MMA Rev-Exp Region 2'!AA$46","v":{"v":0,"d":"$0.00"}},{"$f":"'MMA Rev-Exp Region 2'!AB$46","v":{"v":0,"d":"$0.00"}},{"$f":"'MMA Rev-Exp Region 2'!AC$46","v":{"v":0,"d":"$0.00"}},{"$f":"'MMA Rev-Exp Region 2'!AD$46","v":{"v":0,"d":"$0.00"}},{"$f":"'MMA Rev-Exp Region 2'!AE$46","v":{"v":0,"d":"$0.00"}},{"$f":"'MMA Rev-Exp Region 2'!AF$46","v":{"v":0,"d":"$0.00"}},{"$f":"'MMA Rev-Exp Region 2'!AG$46","v":{"v":0,"d":"$0.00"}},{"$f":"'MMA Rev-Exp Region 2'!AH$46","v":{"v":0,"d":"$0.00"}},{"$f":"'MMA Rev-Exp Region 2'!AI$46","v":{"v":0,"d":"$0.00"}},{"$f":"'MMA Rev-Exp Region 2'!AJ$46","v":{"v":0,"d":"$0.00"}},{"v":0,"d":"$0.00"}]
["MMA",null,null,{"$f":"Jurat!I$1","v":0},{"$f":"Jurat!D$33","v":"00:00:00"},"Q3","2017-09-30","Region 2","Operating Expense","Medical Benefits Expense","Dental Services",6.2,"Dental Subcapitation",{"$f":"'MMA Rev-Exp Region 2'!Z$47","v":{"v":0,"d":"$0.00"}},{"$f":"'MMA Rev-Exp Region 2'!AA$47","v":{"v":0,"d":"$0.00"}},{"$f":"'MMA Rev-Exp Region 2'!AB$47","v":{"v":0,"d":"$0.00"}},{"$f":"'MMA Rev-Exp Region 2'!AC$47","v":{"v":0,"d":"$0.00"}},{"$f":"'MMA Rev-Exp Region 2'!AD$47","v":{"v":0,"d":"$0.00"}},{"$f":"'MMA Rev-Exp Region 2'!AE$47","v":{"v":0,"d":"$0.00"}},{"$f":"'MMA Rev-Exp Region 2'!AF$47","v":{"v":0,"d":"$0.00"}},{"$f":"'MMA Rev-Exp Region 2'!AG$47","v":{"v":0,"d":"$0.00"}},{"$f":"'MMA Rev-Exp Region 2'!AH$47","v":{"v":0,"d":"$0.00"}},{"$f":"'MMA Rev-Exp Region 2'!AI$47","v":{"v":0,"d":"$0.00"}},{"$f":"'MMA Rev-Exp Region 2'!AJ$47","v":{"v":0,"d":"$0.00"}},{"v":0,"d":"$0.00"}]
["MMA",null,null,{"$f":"Jurat!I$1","v":0},{"$f":"Jurat!D$33","v":"00:00:00"},"Q3","2017-09-30","Region 2","Operating Expense","Medical Benefits Expense","Dental Services",6.3,"Ending IBNP for Dental Services",{"$f":"'MMA Rev-Exp Region 2'!Z$48","v":{"v":0,"d":"$0.00"}},{"$f":"'MMA Rev-Exp Region 2'!AA$48","v":{"v":0,"d":"$0.00"}},{"$f":"'MMA Rev-Exp Region 2'!AB$48","v":{"v":0,"d":"$0.00"}},{"$f":"'MMA Rev-Exp Region 2'!AC$48","v":{"v":0,"d":"$0.00"}},{"$f":"'MMA Rev-Exp Region 2'!AD$48","v":{"v":0,"d":"$0.00"}},{"$f":"'MMA Rev-Exp Region 2'!AE$48","v":{"v":0,"d":"$0.00"}},{"$f":"'MMA Rev-Exp Region 2'!AF$48","v":{"v":0,"d":"$0.00"}},{"$f":"'MMA Rev-Exp Region 2'!AG$48","v":{"v":0,"d":"$0.00"}},{"$f":"'MMA Rev-Exp Region 2'!AH$48","v":{"v":0,"d":"$0.00"}},{"$f":"'MMA Rev-Exp Region 2'!AI$48","v":{"v":0,"d":"$0.00"}},{"$f":"'MMA Rev-Exp Region 2'!AJ$48","v":{"v":0,"d":"$0.00"}},{"v":0,"d":"$0.00"}]
["MMA",null,null,{"$f":"Jurat!I$1","v":0},{"$f":"Jurat!D$33","v":"00:00:00"},"Q3","2017-09-30","Region 2","Operating Expense","Medical Benefits Expense","Dental Services","6.4","Dental Settlements",{"$f":"'MMA Rev-Exp Region 2'!Z$49","v":{"v":0,"d":"$0.00"}},{"$f":"'MMA Rev-Exp Region 2'!AA$49","v":{"v":0,"d":"$0.00"}},{"$f":"'MMA Rev-Exp Region 2'!AB$49","v":{"v":0,"d":"$0.00"}},{"$f":"'MMA Rev-Exp Region 2'!AC$49","v":{"v":0,"d":"$0.00"}},{"$f":"'MMA Rev-Exp Region 2'!AD$49","v":{"v":0,"d":"$0.00"}},{"$f":"'MMA Rev-Exp Region 2'!AE$49","v":{"v":0,"d":"$0.00"}},{"$f":"'MMA Rev-Exp Region 2'!AF$49","v":{"v":0,"d":"$0.00"}},{"$f":"'MMA Rev-Exp Region 2'!AG$49","v":{"v":0,"d":"$0.00"}},{"$f":"'MMA Rev-Exp Region 2'!AH$49","v":{"v":0,"d":"$0.00"}},{"$f":"'MMA Rev-Exp Region 2'!AI$49","v":{"v":0,"d":"$0.00"}},{"$f":"'MMA Rev-Exp Region 2'!AJ$49","v":{"v":0,"d":"$0.00"}},{"v":0,"d":"$0.00"}]
["MMA",null,null,{"$f":"Jurat!I$1","v":0},{"$f":"Jurat!D$33","v":"00:00:00"},"Q3","2017-09-30","Region 2","Operating Expense","Medical Benefits Expense","Transportation Services",7.1,"Transportation FFS",{"$f":"'MMA Rev-Exp Region 2'!Z$51","v":{"v":0,"d":"$0.00"}},{"$f":"'MMA Rev-Exp Region 2'!AA$51","v":{"v":0,"d":"$0.00"}},{"$f":"'MMA Rev-Exp Region 2'!AB$51","v":{"v":0,"d":"$0.00"}},{"$f":"'MMA Rev-Exp Region 2'!AC$51","v":{"v":0,"d":"$0.00"}},{"$f":"'MMA Rev-Exp Region 2'!AD$51","v":{"v":0,"d":"$0.00"}},{"$f":"'MMA Rev-Exp Region 2'!AE$51","v":{"v":0,"d":"$0.00"}},{"$f":"'MMA Rev-Exp Region 2'!AF$51","v":{"v":0,"d":"$0.00"}},{"$f":"'MMA Rev-Exp Region 2'!AG$51","v":{"v":0,"d":"$0.00"}},{"$f":"'MMA Rev-Exp Region 2'!AH$51","v":{"v":0,"d":"$0.00"}},{"$f":"'MMA Rev-Exp Region 2'!AI$51","v":{"v":0,"d":"$0.00"}},{"$f":"'MMA Rev-Exp Region 2'!AJ$51","v":{"v":0,"d":"$0.00"}},{"v":0,"d":"$0.00"}]
["MMA",null,null,{"$f":"Jurat!I$1","v":0},{"$f":"Jurat!D$33","v":"00:00:00"},"Q3","2017-09-30","Region 2","Operating Expense","Medical Benefits Expense","Transportation Services",7.2,"Transportation Subcapitation",{"$f":"'MMA Rev-Exp Region 2'!Z$52","v":{"v":0,"d":"$0.00"}},{"$f":"'MMA Rev-Exp Region 2'!AA$52","v":{"v":0,"d":"$0.00"}},{"$f":"'MMA Rev-Exp Region 2'!AB$52","v":{"v":0,"d":"$0.00"}},{"$f":"'MMA Rev-Exp Region 2'!AC$52","v":{"v":0,"d":"$0.00"}},{"$f":"'MMA Rev-Exp Region 2'!AD$52","v":{"v":0,"d":"$0.00"}},{"$f":"'MMA Rev-Exp Region 2'!AE$52","v":{"v":0,"d":"$0.00"}},{"$f":"'MMA Rev-Exp Region 2'!AF$52","v":{"v":0,"d":"$0.00"}},{"$f":"'MMA Rev-Exp Region 2'!AG$52","v":{"v":0,"d":"$0.00"}},{"$f":"'MMA Rev-Exp Region 2'!AH$52","v":{"v":0,"d":"$0.00"}},{"$f":"'MMA Rev-Exp Region 2'!AI$52","v":{"v":0,"d":"$0.00"}},{"$f":"'MMA Rev-Exp Region 2'!AJ$52","v":{"v":0,"d":"$0.00"}},{"v":0,"d":"$0.00"}]
["MMA",null,null,{"$f":"Jurat!I$1","v":0},{"$f":"Jurat!D$33","v":"00:00:00"},"Q3","2017-09-30","Region 2","Operating Expense","Medical Benefits Expense","Transportation Services",7.3,"Ending IBNP for Transportation",{"$f":"'MMA Rev-Exp Region 2'!Z$53","v":{"v":0,"d":"$0.00"}},{"$f":"'MMA Rev-Exp Region 2'!AA$53","v":{"v":0,"d":"$0.00"}},{"$f":"'MMA Rev-Exp Region 2'!AB$53","v":{"v":0,"d":"$0.00"}},{"$f":"'MMA Rev-Exp Region 2'!AC$53","v":{"v":0,"d":"$0.00"}},{"$f":"'MMA Rev-Exp Region 2'!AD$53","v":{"v":0,"d":"$0.00"}},{"$f":"'MMA Rev-Exp Region 2'!AE$53","v":{"v":0,"d":"$0.00"}},{"$f":"'MMA Rev-Exp Region 2'!AF$53","v":{"v":0,"d":"$0.00"}},{"$f":"'MMA Rev-Exp Region 2'!AG$53","v":{"v":0,"d":"$0.00"}},{"$f":"'MMA Rev-Exp Region 2'!AH$53","v":{"v":0,"d":"$0.00"}},{"$f":"'MMA Rev-Exp Region 2'!AI$53","v":{"v":0,"d":"$0.00"}},{"$f":"'MMA Rev-Exp Region 2'!AJ$53","v":{"v":0,"d":"$0.00"}},{"v":0,"d":"$0.00"}]
["MMA",null,null,{"$f":"Jurat!I$1","v":0},{"$f":"Jurat!D$33","v":"00:00:00"},"Q3","2017-09-30","Region 2","Operating Expense","Medical Benefits Expense","Transportation Services","7.4","Transportation Settlements",{"$f":"'MMA Rev-Exp Region 2'!Z$54","v":{"v":0,"d":"$0.00"}},{"$f":"'MMA Rev-Exp Region 2'!AA$54","v":{"v":0,"d":"$0.00"}},{"$f":"'MMA Rev-Exp Region 2'!AB$54","v":{"v":0,"d":"$0.00"}},{"$f":"'MMA Rev-Exp Region 2'!AC$54","v":{"v":0,"d":"$0.00"}},{"$f":"'MMA Rev-Exp Region 2'!AD$54","v":{"v":0,"d":"$0.00"}},{"$f":"'MMA Rev-Exp Region 2'!AE$54","v":{"v":0,"d":"$0.00"}},{"$f":"'MMA Rev-Exp Region 2'!AF$54","v":{"v":0,"d":"$0.00"}},{"$f":"'MMA Rev-Exp Region 2'!AG$54","v":{"v":0,"d":"$0.00"}},{"$f":"'MMA Rev-Exp Region 2'!AH$54","v":{"v":0,"d":"$0.00"}},{"$f":"'MMA Rev-Exp Region 2'!AI$54","v":{"v":0,"d":"$0.00"}},{"$f":"'MMA Rev-Exp Region 2'!AJ$54","v":{"v":0,"d":"$0.00"}},{"v":0,"d":"$0.00"}]
["MMA",null,null,{"$f":"Jurat!I$1","v":0},{"$f":"Jurat!D$33","v":"00:00:00"},"Q3","2017-09-30","Region 2","Operating Expense","Medical Benefits Expense","Pharmacy Services",8.1,"Prescription Drugs FFS",{"$f":"'MMA Rev-Exp Region 2'!Z$56","v":{"v":0,"d":"$0.00"}},{"$f":"'MMA Rev-Exp Region 2'!AA$56","v":{"v":0,"d":"$0.00"}},{"$f":"'MMA Rev-Exp Region 2'!AB$56","v":{"v":0,"d":"$0.00"}},{"$f":"'MMA Rev-Exp Region 2'!AC$56","v":{"v":0,"d":"$0.00"}},{"$f":"'MMA Rev-Exp Region 2'!AD$56","v":{"v":0,"d":"$0.00"}},{"$f":"'MMA Rev-Exp Region 2'!AE$56","v":{"v":0,"d":"$0.00"}},{"$f":"'MMA Rev-Exp Region 2'!AF$56","v":{"v":0,"d":"$0.00"}},{"$f":"'MMA Rev-Exp Region 2'!AG$56","v":{"v":0,"d":"$0.00"}},{"$f":"'MMA Rev-Exp Region 2'!AH$56","v":{"v":0,"d":"$0.00"}},{"$f":"'MMA Rev-Exp Region 2'!AI$56","v":{"v":0,"d":"$0.00"}},{"$f":"'MMA Rev-Exp Region 2'!AJ$56","v":{"v":0,"d":"$0.00"}},{"v":0,"d":"$0.00"}]
["MMA",null,null,{"$f":"Jurat!I$1","v":0},{"$f":"Jurat!D$33","v":"00:00:00"},"Q3","2017-09-30","Region 2","Operating Expense","Medical Benefits Expense","Pharmacy Services","8.2","Hepatitis C Prescription Drug FFS",{"$f":"'MMA Rev-Exp Region 2'!Z$57","v":{"v":0,"d":"$0.00"}},{"$f":"'MMA Rev-Exp Region 2'!AA$57","v":{"v":0,"d":"$0.00"}},{"$f":"'MMA Rev-Exp Region 2'!AB$57","v":{"v":0,"d":"$0.00"}},{"$f":"'MMA Rev-Exp Region 2'!AC$57","v":{"v":0,"d":"$0.00"}},{"$f":"'MMA Rev-Exp Region 2'!AD$57","v":{"v":0,"d":"$0.00"}},{"$f":"'MMA Rev-Exp Region 2'!AE$57","v":{"v":0,"d":"$0.00"}},{"$f":"'MMA Rev-Exp Region 2'!AF$57","v":{"v":0,"d":"$0.00"}},{"$f":"'MMA Rev-Exp Region 2'!AG$57","v":{"v":0,"d":"$0.00"}},{"$f":"'MMA Rev-Exp Region 2'!AH$57","v":{"v":0,"d":"$0.00"}},{"$f":"'MMA Rev-Exp Region 2'!AI$57","v":{"v":0,"d":"$0.00"}},{"$f":"'MMA Rev-Exp Region 2'!AJ$57","v":{"v":0,"d":"$0.00"}},{"v":0,"d":"$0.00"}]
["MMA",null,null,{"$f":"Jurat!I$1","v":0},{"$f":"Jurat!D$33","v":"00:00:00"},"Q3","2017-09-30","Region 2","Operating Expense","Medical Benefits Expense","Pharmacy Services","8.3","Ending IBNP for Prescription Drugs",{"$f":"'MMA Rev-Exp Region 2'!Z$58","v":{"v":0,"d":"$0.00"}},{"$f":"'MMA Rev-Exp Region 2'!AA$58","v":{"v":0,"d":"$0.00"}},{"$f":"'MMA Rev-Exp Region 2'!AB$58","v":{"v":0,"d":"$0.00"}},{"$f":"'MMA Rev-Exp Region 2'!AC$58","v":{"v":0,"d":"$0.00"}},{"$f":"'MMA Rev-Exp Region 2'!AD$58","v":{"v":0,"d":"$0.00"}},{"$f":"'MMA Rev-Exp Region 2'!AE$58","v":{"v":0,"d":"$0.00"}},{"$f":"'MMA Rev-Exp Region 2'!AF$58","v":{"v":0,"d":"$0.00"}},{"$f":"'MMA Rev-Exp Region 2'!AG$58","v":{"v":0,"d":"$0.00"}},{"$f":"'MMA Rev-Exp Region 2'!AH$58","v":{"v":0,"d":"$0.00"}},{"$f":"'MMA Rev-Exp Region 2'!AI$58","v":{"v":0,"d":"$0.00"}},{"$f":"'MMA Rev-Exp Region 2'!AJ$58","v":{"v":0,"d":"$0.00"}},{"v":0,"d":"$0.00"}]
["MMA",null,null,{"$f":"Jurat!I$1","v":0},{"$f":"Jurat!D$33","v":"00:00:00"},"Q3","2017-09-30","Region 2","Operating Expense","Medical Benefits Expense","Pharmacy Services","8.4","Prescription Drug Rebates ",{"$f":"'MMA Rev-Exp Region 2'!Z$59","v":{"v":0,"d":"$0.00"}},{"$f":"'MMA Rev-Exp Region 2'!AA$59","v":{"v":0,"d":"$0.00"}},{"$f":"'MMA Rev-Exp Region 2'!AB$59","v":{"v":0,"d":"$0.00"}},{"$f":"'MMA Rev-Exp Region 2'!AC$59","v":{"v":0,"d":"$0.00"}},{"$f":"'MMA Rev-Exp Region 2'!AD$59","v":{"v":0,"d":"$0.00"}},{"$f":"'MMA Rev-Exp Region 2'!AE$59","v":{"v":0,"d":"$0.00"}},{"$f":"'MMA Rev-Exp Region 2'!AF$59","v":{"v":0,"d":"$0.00"}},{"$f":"'MMA Rev-Exp Region 2'!AG$59","v":{"v":0,"d":"$0.00"}},{"$f":"'MMA Rev-Exp Region 2'!AH$59","v":{"v":0,"d":"$0.00"}},{"$f":"'MMA Rev-Exp Region 2'!AI$59","v":{"v":0,"d":"$0.00"}},{"$f":"'MMA Rev-Exp Region 2'!AJ$59","v":{"v":0,"d":"$0.00"}},{"v":0,"d":"$0.00"}]
["MMA",null,null,{"$f":"Jurat!I$1","v":0},{"$f":"Jurat!D$33","v":"00:00:00"},"Q3","2017-09-30","Region 2","Operating Expense","Medical Benefits Expense","Pharmacy Services","8.5","Ending accrual for Rebates receivable",{"$f":"'MMA Rev-Exp Region 2'!Z$60","v":{"v":0,"d":"$0.00"}},{"$f":"'MMA Rev-Exp Region 2'!AA$60","v":{"v":0,"d":"$0.00"}},{"$f":"'MMA Rev-Exp Region 2'!AB$60","v":{"v":0,"d":"$0.00"}},{"$f":"'MMA Rev-Exp Region 2'!AC$60","v":{"v":0,"d":"$0.00"}},{"$f":"'MMA Rev-Exp Region 2'!AD$60","v":{"v":0,"d":"$0.00"}},{"$f":"'MMA Rev-Exp Region 2'!AE$60","v":{"v":0,"d":"$0.00"}},{"$f":"'MMA Rev-Exp Region 2'!AF$60","v":{"v":0,"d":"$0.00"}},{"$f":"'MMA Rev-Exp Region 2'!AG$60","v":{"v":0,"d":"$0.00"}},{"$f":"'MMA Rev-Exp Region 2'!AH$60","v":{"v":0,"d":"$0.00"}},{"$f":"'MMA Rev-Exp Region 2'!AI$60","v":{"v":0,"d":"$0.00"}},{"$f":"'MMA Rev-Exp Region 2'!AJ$60","v":{"v":0,"d":"$0.00"}},{"v":0,"d":"$0.00"}]
["MMA",null,null,{"$f":"Jurat!I$1","v":0},{"$f":"Jurat!D$33","v":"00:00:00"},"Q3","2017-09-30","Region 2","Operating Expense","Medical Benefits Expense","Pharmacy Services","8.6","Prescription Drugs Subcapitation",{"$f":"'MMA Rev-Exp Region 2'!Z$61","v":{"v":0,"d":"$0.00"}},{"$f":"'MMA Rev-Exp Region 2'!AA$61","v":{"v":0,"d":"$0.00"}},{"$f":"'MMA Rev-Exp Region 2'!AB$61","v":{"v":0,"d":"$0.00"}},{"$f":"'MMA Rev-Exp Region 2'!AC$61","v":{"v":0,"d":"$0.00"}},{"$f":"'MMA Rev-Exp Region 2'!AD$61","v":{"v":0,"d":"$0.00"}},{"$f":"'MMA Rev-Exp Region 2'!AE$61","v":{"v":0,"d":"$0.00"}},{"$f":"'MMA Rev-Exp Region 2'!AF$61","v":{"v":0,"d":"$0.00"}},{"$f":"'MMA Rev-Exp Region 2'!AG$61","v":{"v":0,"d":"$0.00"}},{"$f":"'MMA Rev-Exp Region 2'!AH$61","v":{"v":0,"d":"$0.00"}},{"$f":"'MMA Rev-Exp Region 2'!AI$61","v":{"v":0,"d":"$0.00"}},{"$f":"'MMA Rev-Exp Region 2'!AJ$61","v":{"v":0,"d":"$0.00"}},{"v":0,"d":"$0.00"}]
["MMA",null,null,{"$f":"Jurat!I$1","v":0},{"$f":"Jurat!D$33","v":"00:00:00"},"Q3","2017-09-30","Region 2","Operating Expense","Medical Benefits Expense","Pharmacy Services","8.7","Prescription Drug Settlements",{"$f":"'MMA Rev-Exp Region 2'!Z$62","v":{"v":0,"d":"$0.00"}},{"$f":"'MMA Rev-Exp Region 2'!AA$62","v":{"v":0,"d":"$0.00"}},{"$f":"'MMA Rev-Exp Region 2'!AB$62","v":{"v":0,"d":"$0.00"}},{"$f":"'MMA Rev-Exp Region 2'!AC$62","v":{"v":0,"d":"$0.00"}},{"$f":"'MMA Rev-Exp Region 2'!AD$62","v":{"v":0,"d":"$0.00"}},{"$f":"'MMA Rev-Exp Region 2'!AE$62","v":{"v":0,"d":"$0.00"}},{"$f":"'MMA Rev-Exp Region 2'!AF$62","v":{"v":0,"d":"$0.00"}},{"$f":"'MMA Rev-Exp Region 2'!AG$62","v":{"v":0,"d":"$0.00"}},{"$f":"'MMA Rev-Exp Region 2'!AH$62","v":{"v":0,"d":"$0.00"}},{"$f":"'MMA Rev-Exp Region 2'!AI$62","v":{"v":0,"d":"$0.00"}},{"$f":"'MMA Rev-Exp Region 2'!AJ$62","v":{"v":0,"d":"$0.00"}},{"v":0,"d":"$0.00"}]
["MMA",null,null,{"$f":"Jurat!I$1","v":0},{"$f":"Jurat!D$33","v":"00:00:00"},"Q3","2017-09-30","Region 2","Operating Expense","Medical Benefits Expense","Other MMA Services",9.1,"Home Health, Private Duty Nursing, Personal Care FFS",{"$f":"'MMA Rev-Exp Region 2'!Z$64","v":{"v":0,"d":"$0.00"}},{"$f":"'MMA Rev-Exp Region 2'!AA$64","v":{"v":0,"d":"$0.00"}},{"$f":"'MMA Rev-Exp Region 2'!AB$64","v":{"v":0,"d":"$0.00"}},{"$f":"'MMA Rev-Exp Region 2'!AC$64","v":{"v":0,"d":"$0.00"}},{"$f":"'MMA Rev-Exp Region 2'!AD$64","v":{"v":0,"d":"$0.00"}},{"$f":"'MMA Rev-Exp Region 2'!AE$64","v":{"v":0,"d":"$0.00"}},{"$f":"'MMA Rev-Exp Region 2'!AF$64","v":{"v":0,"d":"$0.00"}},{"$f":"'MMA Rev-Exp Region 2'!AG$64","v":{"v":0,"d":"$0.00"}},{"$f":"'MMA Rev-Exp Region 2'!AH$64","v":{"v":0,"d":"$0.00"}},{"$f":"'MMA Rev-Exp Region 2'!AI$64","v":{"v":0,"d":"$0.00"}},{"$f":"'MMA Rev-Exp Region 2'!AJ$64","v":{"v":0,"d":"$0.00"}},{"v":0,"d":"$0.00"}]
["MMA",null,null,{"$f":"Jurat!I$1","v":0},{"$f":"Jurat!D$33","v":"00:00:00"},"Q3","2017-09-30","Region 2","Operating Expense","Medical Benefits Expense","Other MMA Services","9.2","Hospice FFS",{"$f":"'MMA Rev-Exp Region 2'!Z$65","v":{"v":0,"d":"$0.00"}},{"$f":"'MMA Rev-Exp Region 2'!AA$65","v":{"v":0,"d":"$0.00"}},{"$f":"'MMA Rev-Exp Region 2'!AB$65","v":{"v":0,"d":"$0.00"}},{"$f":"'MMA Rev-Exp Region 2'!AC$65","v":{"v":0,"d":"$0.00"}},{"$f":"'MMA Rev-Exp Region 2'!AD$65","v":{"v":0,"d":"$0.00"}},{"$f":"'MMA Rev-Exp Region 2'!AE$65","v":{"v":0,"d":"$0.00"}},{"$f":"'MMA Rev-Exp Region 2'!AF$65","v":{"v":0,"d":"$0.00"}},{"$f":"'MMA Rev-Exp Region 2'!AG$65","v":{"v":0,"d":"$0.00"}},{"$f":"'MMA Rev-Exp Region 2'!AH$65","v":{"v":0,"d":"$0.00"}},{"$f":"'MMA Rev-Exp Region 2'!AI$65","v":{"v":0,"d":"$0.00"}},{"$f":"'MMA Rev-Exp Region 2'!AJ$65","v":{"v":0,"d":"$0.00"}},{"v":0,"d":"$0.00"}]
["MMA",null,null,{"$f":"Jurat!I$1","v":0},{"$f":"Jurat!D$33","v":"00:00:00"},"Q3","2017-09-30","Region 2","Operating Expense","Medical Benefits Expense","Other MMA Services","9.3","DME FFS",{"$f":"'MMA Rev-Exp Region 2'!Z$66","v":{"v":0,"d":"$0.00"}},{"$f":"'MMA Rev-Exp Region 2'!AA$66","v":{"v":0,"d":"$0.00"}},{"$f":"'MMA Rev-Exp Region 2'!AB$66","v":{"v":0,"d":"$0.00"}},{"$f":"'MMA Rev-Exp Region 2'!AC$66","v":{"v":0,"d":"$0.00"}},{"$f":"'MMA Rev-Exp Region 2'!AD$66","v":{"v":0,"d":"$0.00"}},{"$f":"'MMA Rev-Exp Region 2'!AE$66","v":{"v":0,"d":"$0.00"}},{"$f":"'MMA Rev-Exp Region 2'!AF$66","v":{"v":0,"d":"$0.00"}},{"$f":"'MMA Rev-Exp Region 2'!AG$66","v":{"v":0,"d":"$0.00"}},{"$f":"'MMA Rev-Exp Region 2'!AH$66","v":{"v":0,"d":"$0.00"}},{"$f":"'MMA Rev-Exp Region 2'!AI$66","v":{"v":0,"d":"$0.00"}},{"$f":"'MMA Rev-Exp Region 2'!AJ$66","v":{"v":0,"d":"$0.00"}},{"v":0,"d":"$0.00"}]
["MMA",null,null,{"$f":"Jurat!I$1","v":0},{"$f":"Jurat!D$33","v":"00:00:00"},"Q3","2017-09-30","Region 2","Operating Expense","Medical Benefits Expense","Other MMA Services","9.4","Other State Plan Services FFS",{"$f":"'MMA Rev-Exp Region 2'!Z$67","v":{"v":0,"d":"$0.00"}},{"$f":"'MMA Rev-Exp Region 2'!AA$67","v":{"v":0,"d":"$0.00"}},{"$f":"'MMA Rev-Exp Region 2'!AB$67","v":{"v":0,"d":"$0.00"}},{"$f":"'MMA Rev-Exp Region 2'!AC$67","v":{"v":0,"d":"$0.00"}},{"$f":"'MMA Rev-Exp Region 2'!AD$67","v":{"v":0,"d":"$0.00"}},{"$f":"'MMA Rev-Exp Region 2'!AE$67","v":{"v":0,"d":"$0.00"}},{"$f":"'MMA Rev-Exp Region 2'!AF$67","v":{"v":0,"d":"$0.00"}},{"$f":"'MMA Rev-Exp Region 2'!AG$67","v":{"v":0,"d":"$0.00"}},{"$f":"'MMA Rev-Exp Region 2'!AH$67","v":{"v":0,"d":"$0.00"}},{"$f":"'MMA Rev-Exp Region 2'!AI$67","v":{"v":0,"d":"$0.00"}},{"$f":"'MMA Rev-Exp Region 2'!AJ$67","v":{"v":0,"d":"$0.00"}},{"v":0,"d":"$0.00"}]
["MMA",null,null,{"$f":"Jurat!I$1","v":0},{"$f":"Jurat!D$33","v":"00:00:00"},"Q3","2017-09-30","Region 2","Operating Expense","Medical Benefits Expense","Other MMA Services","9.5","Other Services Subcapitation",{"$f":"'MMA Rev-Exp Region 2'!Z$68","v":{"v":0,"d":"$0.00"}},{"$f":"'MMA Rev-Exp Region 2'!AA$68","v":{"v":0,"d":"$0.00"}},{"$f":"'MMA Rev-Exp Region 2'!AB$68","v":{"v":0,"d":"$0.00"}},{"$f":"'MMA Rev-Exp Region 2'!AC$68","v":{"v":0,"d":"$0.00"}},{"$f":"'MMA Rev-Exp Region 2'!AD$68","v":{"v":0,"d":"$0.00"}},{"$f":"'MMA Rev-Exp Region 2'!AE$68","v":{"v":0,"d":"$0.00"}},{"$f":"'MMA Rev-Exp Region 2'!AF$68","v":{"v":0,"d":"$0.00"}},{"$f":"'MMA Rev-Exp Region 2'!AG$68","v":{"v":0,"d":"$0.00"}},{"$f":"'MMA Rev-Exp Region 2'!AH$68","v":{"v":0,"d":"$0.00"}},{"$f":"'MMA Rev-Exp Region 2'!AI$68","v":{"v":0,"d":"$0.00"}},{"$f":"'MMA Rev-Exp Region 2'!AJ$68","v":{"v":0,"d":"$0.00"}},{"v":0,"d":"$0.00"}]
["MMA",null,null,{"$f":"Jurat!I$1","v":0},{"$f":"Jurat!D$33","v":"00:00:00"},"Q3","2017-09-30","Region 2","Operating Expense","Medical Benefits Expense","Other MMA Services","9.6","Ending IBNP for Other Services",{"$f":"'MMA Rev-Exp Region 2'!Z$69","v":{"v":0,"d":"$0.00"}},{"$f":"'MMA Rev-Exp Region 2'!AA$69","v":{"v":0,"d":"$0.00"}},{"$f":"'MMA Rev-Exp Region 2'!AB$69","v":{"v":0,"d":"$0.00"}},{"$f":"'MMA Rev-Exp Region 2'!AC$69","v":{"v":0,"d":"$0.00"}},{"$f":"'MMA Rev-Exp Region 2'!AD$69","v":{"v":0,"d":"$0.00"}},{"$f":"'MMA Rev-Exp Region 2'!AE$69","v":{"v":0,"d":"$0.00"}},{"$f":"'MMA Rev-Exp Region 2'!AF$69","v":{"v":0,"d":"$0.00"}},{"$f":"'MMA Rev-Exp Region 2'!AG$69","v":{"v":0,"d":"$0.00"}},{"$f":"'MMA Rev-Exp Region 2'!AH$69","v":{"v":0,"d":"$0.00"}},{"$f":"'MMA Rev-Exp Region 2'!AI$69","v":{"v":0,"d":"$0.00"}},{"$f":"'MMA Rev-Exp Region 2'!AJ$69","v":{"v":0,"d":"$0.00"}},{"v":0,"d":"$0.00"}]
["MMA",null,null,{"$f":"Jurat!I$1","v":0},{"$f":"Jurat!D$33","v":"00:00:00"},"Q3","2017-09-30","Region 2","Operating Expense","Medical Benefits Expense","Other MMA Services","9.7","Other Services Settlements",{"$f":"'MMA Rev-Exp Region 2'!Z$70","v":{"v":0,"d":"$0.00"}},{"$f":"'MMA Rev-Exp Region 2'!AA$70","v":{"v":0,"d":"$0.00"}},{"$f":"'MMA Rev-Exp Region 2'!AB$70","v":{"v":0,"d":"$0.00"}},{"$f":"'MMA Rev-Exp Region 2'!AC$70","v":{"v":0,"d":"$0.00"}},{"$f":"'MMA Rev-Exp Region 2'!AD$70","v":{"v":0,"d":"$0.00"}},{"$f":"'MMA Rev-Exp Region 2'!AE$70","v":{"v":0,"d":"$0.00"}},{"$f":"'MMA Rev-Exp Region 2'!AF$70","v":{"v":0,"d":"$0.00"}},{"$f":"'MMA Rev-Exp Region 2'!AG$70","v":{"v":0,"d":"$0.00"}},{"$f":"'MMA Rev-Exp Region 2'!AH$70","v":{"v":0,"d":"$0.00"}},{"$f":"'MMA Rev-Exp Region 2'!AI$70","v":{"v":0,"d":"$0.00"}},{"$f":"'MMA Rev-Exp Region 2'!AJ$70","v":{"v":0,"d":"$0.00"}},{"v":0,"d":"$0.00"}]
["MMA",null,null,{"$f":"Jurat!I$1","v":0},{"$f":"Jurat!D$33","v":"00:00:00"},"Q3","2017-09-30","Region 2","Operating Expense","Medical Benefits Expense","Expanded Benefits","10.1","Expanded Benefits FFS",{"$f":"'MMA Rev-Exp Region 2'!Z$72","v":{"v":0,"d":"$0.00"}},{"$f":"'MMA Rev-Exp Region 2'!AA$72","v":{"v":0,"d":"$0.00"}},{"$f":"'MMA Rev-Exp Region 2'!AB$72","v":{"v":0,"d":"$0.00"}},{"$f":"'MMA Rev-Exp Region 2'!AC$72","v":{"v":0,"d":"$0.00"}},{"$f":"'MMA Rev-Exp Region 2'!AD$72","v":{"v":0,"d":"$0.00"}},{"$f":"'MMA Rev-Exp Region 2'!AE$72","v":{"v":0,"d":"$0.00"}},{"$f":"'MMA Rev-Exp Region 2'!AF$72","v":{"v":0,"d":"$0.00"}},{"$f":"'MMA Rev-Exp Region 2'!AG$72","v":{"v":0,"d":"$0.00"}},{"$f":"'MMA Rev-Exp Region 2'!AH$72","v":{"v":0,"d":"$0.00"}},{"$f":"'MMA Rev-Exp Region 2'!AI$72","v":{"v":0,"d":"$0.00"}},{"$f":"'MMA Rev-Exp Region 2'!AJ$72","v":{"v":0,"d":"$0.00"}},{"v":0,"d":"$0.00"}]
["MMA",null,null,{"$f":"Jurat!I$1","v":0},{"$f":"Jurat!D$33","v":"00:00:00"},"Q3","2017-09-30","Region 2","Operating Expense","Medical Benefits Expense","Expanded Benefits","10.2","Expanded benefits Subcapitation",{"$f":"'MMA Rev-Exp Region 2'!Z$73","v":{"v":0,"d":"$0.00"}},{"$f":"'MMA Rev-Exp Region 2'!AA$73","v":{"v":0,"d":"$0.00"}},{"$f":"'MMA Rev-Exp Region 2'!AB$73","v":{"v":0,"d":"$0.00"}},{"$f":"'MMA Rev-Exp Region 2'!AC$73","v":{"v":0,"d":"$0.00"}},{"$f":"'MMA Rev-Exp Region 2'!AD$73","v":{"v":0,"d":"$0.00"}},{"$f":"'MMA Rev-Exp Region 2'!AE$73","v":{"v":0,"d":"$0.00"}},{"$f":"'MMA Rev-Exp Region 2'!AF$73","v":{"v":0,"d":"$0.00"}},{"$f":"'MMA Rev-Exp Region 2'!AG$73","v":{"v":0,"d":"$0.00"}},{"$f":"'MMA Rev-Exp Region 2'!AH$73","v":{"v":0,"d":"$0.00"}},{"$f":"'MMA Rev-Exp Region 2'!AI$73","v":{"v":0,"d":"$0.00"}},{"$f":"'MMA Rev-Exp Region 2'!AJ$73","v":{"v":0,"d":"$0.00"}},{"v":0,"d":"$0.00"}]
["MMA",null,null,{"$f":"Jurat!I$1","v":0},{"$f":"Jurat!D$33","v":"00:00:00"},"Q3","2017-09-30","Region 2","Operating Expense","Medical Benefits Expense","Expanded Benefits","10.3","Ending IBNP for Expanded Benefits",{"$f":"'MMA Rev-Exp Region 2'!Z$74","v":{"v":0,"d":"$0.00"}},{"$f":"'MMA Rev-Exp Region 2'!AA$74","v":{"v":0,"d":"$0.00"}},{"$f":"'MMA Rev-Exp Region 2'!AB$74","v":{"v":0,"d":"$0.00"}},{"$f":"'MMA Rev-Exp Region 2'!AC$74","v":{"v":0,"d":"$0.00"}},{"$f":"'MMA Rev-Exp Region 2'!AD$74","v":{"v":0,"d":"$0.00"}},{"$f":"'MMA Rev-Exp Region 2'!AE$74","v":{"v":0,"d":"$0.00"}},{"$f":"'MMA Rev-Exp Region 2'!AF$74","v":{"v":0,"d":"$0.00"}},{"$f":"'MMA Rev-Exp Region 2'!AG$74","v":{"v":0,"d":"$0.00"}},{"$f":"'MMA Rev-Exp Region 2'!AH$74","v":{"v":0,"d":"$0.00"}},{"$f":"'MMA Rev-Exp Region 2'!AI$74","v":{"v":0,"d":"$0.00"}},{"$f":"'MMA Rev-Exp Region 2'!AJ$74","v":{"v":0,"d":"$0.00"}},{"v":0,"d":"$0.00"}]
["MMA",null,null,{"$f":"Jurat!I$1","v":0},{"$f":"Jurat!D$33","v":"00:00:00"},"Q3","2017-09-30","Region 2","Operating Expense","Medical Benefits Expense","Expanded Benefits","10.4","Expanded Benefits Settlements",{"$f":"'MMA Rev-Exp Region 2'!Z$75","v":{"v":0,"d":"$0.00"}},{"$f":"'MMA Rev-Exp Region 2'!AA$75","v":{"v":0,"d":"$0.00"}},{"$f":"'MMA Rev-Exp Region 2'!AB$75","v":{"v":0,"d":"$0.00"}},{"$f":"'MMA Rev-Exp Region 2'!AC$75","v":{"v":0,"d":"$0.00"}},{"$f":"'MMA Rev-Exp Region 2'!AD$75","v":{"v":0,"d":"$0.00"}},{"$f":"'MMA Rev-Exp Region 2'!AE$75","v":{"v":0,"d":"$0.00"}},{"$f":"'MMA Rev-Exp Region 2'!AF$75","v":{"v":0,"d":"$0.00"}},{"$f":"'MMA Rev-Exp Region 2'!AG$75","v":{"v":0,"d":"$0.00"}},{"$f":"'MMA Rev-Exp Region 2'!AH$75","v":{"v":0,"d":"$0.00"}},{"$f":"'MMA Rev-Exp Region 2'!AI$75","v":{"v":0,"d":"$0.00"}},{"$f":"'MMA Rev-Exp Region 2'!AJ$75","v":{"v":0,"d":"$0.00"}},{"v":0,"d":"$0.00"}]
["MMA",null,null,{"$f":"Jurat!I$1","v":0},{"$f":"Jurat!D$33","v":"00:00:00"},"Q3","2017-09-30","Region 2","Operating Expense","Medical Benefits Expense","Other Medical","11.5","TPL & Fraud/Abuse Recoveries",{"$f":"'MMA Rev-Exp Region 2'!Z$81","v":{"v":0,"d":"$0.00"}},{"$f":"'MMA Rev-Exp Region 2'!AA$81","v":{"v":0,"d":"$0.00"}},{"$f":"'MMA Rev-Exp Region 2'!AB$81","v":{"v":0,"d":"$0.00"}},{"$f":"'MMA Rev-Exp Region 2'!AC$81","v":{"v":0,"d":"$0.00"}},{"$f":"'MMA Rev-Exp Region 2'!AD$81","v":{"v":0,"d":"$0.00"}},{"$f":"'MMA Rev-Exp Region 2'!AE$81","v":{"v":0,"d":"$0.00"}},{"$f":"'MMA Rev-Exp Region 2'!AF$81","v":{"v":0,"d":"$0.00"}},{"$f":"'MMA Rev-Exp Region 2'!AG$81","v":{"v":0,"d":"$0.00"}},{"$f":"'MMA Rev-Exp Region 2'!AH$81","v":{"v":0,"d":"$0.00"}},{"$f":"'MMA Rev-Exp Region 2'!AI$81","v":{"v":0,"d":"$0.00"}},{"$f":"'MMA Rev-Exp Region 2'!AJ$81","v":{"v":0,"d":"$0.00"}},{"v":0,"d":"$0.00"}]
["MMA",null,null,{"$f":"Jurat!I$1","v":0},{"$f":"Jurat!D$33","v":"00:00:00"},"Q3","2017-09-30","Region 2","Operating Expense","Medical Benefits Expense","Other Medical","11.6.1","Premium Deficiency Reserve",{"$f":"'MMA Rev-Exp Region 2'!Z$82","v":{"v":0,"d":"$0.00"}},{"$f":"'MMA Rev-Exp Region 2'!AA$82","v":{"v":0,"d":"$0.00"}},{"$f":"'MMA Rev-Exp Region 2'!AB$82","v":{"v":0,"d":"$0.00"}},{"$f":"'MMA Rev-Exp Region 2'!AC$82","v":{"v":0,"d":"$0.00"}},{"$f":"'MMA Rev-Exp Region 2'!AD$82","v":{"v":0,"d":"$0.00"}},{"$f":"'MMA Rev-Exp Region 2'!AE$82","v":{"v":0,"d":"$0.00"}},{"$f":"'MMA Rev-Exp Region 2'!AF$82","v":{"v":0,"d":"$0.00"}},{"$f":"'MMA Rev-Exp Region 2'!AG$82","v":{"v":0,"d":"$0.00"}},{"$f":"'MMA Rev-Exp Region 2'!AH$82","v":{"v":0,"d":"$0.00"}},{"$f":"'MMA Rev-Exp Region 2'!AI$82","v":{"v":0,"d":"$0.00"}},{"$f":"'MMA Rev-Exp Region 2'!AJ$82","v":{"v":0,"d":"$0.00"}},{"v":0,"d":"$0.00"}]
["MMA",null,null,{"$f":"Jurat!I$1","v":0},{"$f":"Jurat!D$33","v":"00:00:00"},"Q3","2017-09-30","Region 2","Operating Expense","Medical Benefits Expense","Other Medical","11.8","Reinsurance Premiums",{"$f":"'MMA Rev-Exp Region 2'!Z$84","v":{"v":0,"d":"$0.00"}},{"$f":"'MMA Rev-Exp Region 2'!AA$84","v":{"v":0,"d":"$0.00"}},{"$f":"'MMA Rev-Exp Region 2'!AB$84","v":{"v":0,"d":"$0.00"}},{"$f":"'MMA Rev-Exp Region 2'!AC$84","v":{"v":0,"d":"$0.00"}},{"$f":"'MMA Rev-Exp Region 2'!AD$84","v":{"v":0,"d":"$0.00"}},{"$f":"'MMA Rev-Exp Region 2'!AE$84","v":{"v":0,"d":"$0.00"}},{"$f":"'MMA Rev-Exp Region 2'!AF$84","v":{"v":0,"d":"$0.00"}},{"$f":"'MMA Rev-Exp Region 2'!AG$84","v":{"v":0,"d":"$0.00"}},{"$f":"'MMA Rev-Exp Region 2'!AH$84","v":{"v":0,"d":"$0.00"}},{"$f":"'MMA Rev-Exp Region 2'!AI$84","v":{"v":0,"d":"$0.00"}},{"$f":"'MMA Rev-Exp Region 2'!AJ$84","v":{"v":0,"d":"$0.00"}},{"v":0,"d":"$0.00"}]
["MMA",null,null,{"$f":"Jurat!I$1","v":0},{"$f":"Jurat!D$33","v":"00:00:00"},"Q3","2017-09-30","Region 2","Operating Expense","Medical Benefits Expense","Other Medical","11.9","Reinsurance Recoveries",{"$f":"'MMA Rev-Exp Region 2'!Z$85","v":{"v":0,"d":"$0.00"}},{"$f":"'MMA Rev-Exp Region 2'!AA$85","v":{"v":0,"d":"$0.00"}},{"$f":"'MMA Rev-Exp Region 2'!AB$85","v":{"v":0,"d":"$0.00"}},{"$f":"'MMA Rev-Exp Region 2'!AC$85","v":{"v":0,"d":"$0.00"}},{"$f":"'MMA Rev-Exp Region 2'!AD$85","v":{"v":0,"d":"$0.00"}},{"$f":"'MMA Rev-Exp Region 2'!AE$85","v":{"v":0,"d":"$0.00"}},{"$f":"'MMA Rev-Exp Region 2'!AF$85","v":{"v":0,"d":"$0.00"}},{"$f":"'MMA Rev-Exp Region 2'!AG$85","v":{"v":0,"d":"$0.00"}},{"$f":"'MMA Rev-Exp Region 2'!AH$85","v":{"v":0,"d":"$0.00"}},{"$f":"'MMA Rev-Exp Region 2'!AI$85","v":{"v":0,"d":"$0.00"}},{"$f":"'MMA Rev-Exp Region 2'!AJ$85","v":{"v":0,"d":"$0.00"}},{"v":0,"d":"$0.00"}]
["MMA",null,null,{"$f":"Jurat!I$1","v":0},{"$f":"Jurat!D$33","v":"00:00:00"},"Q3","2017-09-30","Region 2","Operating Expense","Administrative Expense","Administrative","12.1","Salaries & Benefits",{"$f":"'MMA Rev-Exp Region 2'!Z$90","v":{"v":0,"d":"$0.00"}},{"v":0,"d":"$0.00"},{"v":0,"d":"$0.00"},{"v":0,"d":"$0.00"},{"v":0,"d":"$0.00"},{"v":0,"d":"$0.00"},{"v":0,"d":"$0.00"},{"v":0,"d":"$0.00"},{"v":0,"d":"$0.00"},{"v":0,"d":"$0.00"},{"v":0,"d":"$0.00"},{"v":0,"d":"$0.00"}]
["MMA",null,null,{"$f":"Jurat!I$1","v":0},{"$f":"Jurat!D$33","v":"00:00:00"},"Q3","2017-09-30","Region 2","Operating Expense","Administrative Expense","Administrative","12.2","Administrative Services",{"$f":"'MMA Rev-Exp Region 2'!Z$91","v":{"v":0,"d":"$0.00"}},{"v":0,"d":"$0.00"},{"v":0,"d":"$0.00"},{"v":0,"d":"$0.00"},{"v":0,"d":"$0.00"},{"v":0,"d":"$0.00"},{"v":0,"d":"$0.00"},{"v":0,"d":"$0.00"},{"v":0,"d":"$0.00"},{"v":0,"d":"$0.00"},{"v":0,"d":"$0.00"},{"v":0,"d":"$0.00"}]
["MMA",null,null,{"$f":"Jurat!I$1","v":0},{"$f":"Jurat!D$33","v":"00:00:00"},"Q3","2017-09-30","Region 2","Operating Expense","Administrative Expense","Administrative","12.3","Information Systems",{"$f":"'MMA Rev-Exp Region 2'!Z$92","v":{"v":0,"d":"$0.00"}},{"v":0,"d":"$0.00"},{"v":0,"d":"$0.00"},{"v":0,"d":"$0.00"},{"v":0,"d":"$0.00"},{"v":0,"d":"$0.00"},{"v":0,"d":"$0.00"},{"v":0,"d":"$0.00"},{"v":0,"d":"$0.00"},{"v":0,"d":"$0.00"},{"v":0,"d":"$0.00"},{"v":0,"d":"$0.00"}]
["MMA",null,null,{"$f":"Jurat!I$1","v":0},{"$f":"Jurat!D$33","v":"00:00:00"},"Q3","2017-09-30","Region 2","Operating Expense","Administrative Expense","Administrative","12.4","Marketing Expenses",{"$f":"'MMA Rev-Exp Region 2'!Z$93","v":{"v":0,"d":"$0.00"}},{"v":0,"d":"$0.00"},{"v":0,"d":"$0.00"},{"v":0,"d":"$0.00"},{"v":0,"d":"$0.00"},{"v":0,"d":"$0.00"},{"v":0,"d":"$0.00"},{"v":0,"d":"$0.00"},{"v":0,"d":"$0.00"},{"v":0,"d":"$0.00"},{"v":0,"d":"$0.00"},{"v":0,"d":"$0.00"}]
["MMA",null,null,{"$f":"Jurat!I$1","v":0},{"$f":"Jurat!D$33","v":"00:00:00"},"Q3","2017-09-30","Region 2","Operating Expense","Administrative Expense","Administrative","12.5","General  Administration",{"$f":"'MMA Rev-Exp Region 2'!Z$94","v":{"v":0,"d":"$0.00"}},{"v":0,"d":"$0.00"},{"v":0,"d":"$0.00"},{"v":0,"d":"$0.00"},{"v":0,"d":"$0.00"},{"v":0,"d":"$0.00"},{"v":0,"d":"$0.00"},{"v":0,"d":"$0.00"},{"v":0,"d":"$0.00"},{"v":0,"d":"$0.00"},{"v":0,"d":"$0.00"},{"v":0,"d":"$0.00"}]
["MMA",null,null,{"$f":"Jurat!I$1","v":0},{"$f":"Jurat!D$33","v":"00:00:00"},"Q3","2017-09-30","Region 2","Operating Expense","Administrative Expense","Administrative","12.6","Compliance/Regulatory",{"$f":"'MMA Rev-Exp Region 2'!Z$95","v":{"v":0,"d":"$0.00"}},{"v":0,"d":"$0.00"},{"v":0,"d":"$0.00"},{"v":0,"d":"$0.00"},{"v":0,"d":"$0.00"},{"v":0,"d":"$0.00"},{"v":0,"d":"$0.00"},{"v":0,"d":"$0.00"},{"v":0,"d":"$0.00"},{"v":0,"d":"$0.00"},{"v":0,"d":"$0.00"},{"v":0,"d":"$0.00"}]
["MMA",null,null,{"$f":"Jurat!I$1","v":0},{"$f":"Jurat!D$33","v":"00:00:00"},"Q3","2017-09-30","Region 2","Operating Expense","Taxes & Fees","Taxes & Fees","13.1","State Premium tax",{"$f":"'MMA Rev-Exp Region 2'!Z$97","v":{"v":0,"d":"$0.00"}},{"v":0,"d":"$0.00"},{"v":0,"d":"$0.00"},{"v":0,"d":"$0.00"},{"v":0,"d":"$0.00"},{"v":0,"d":"$0.00"},{"v":0,"d":"$0.00"},{"v":0,"d":"$0.00"},{"v":0,"d":"$0.00"},{"v":0,"d":"$0.00"},{"v":0,"d":"$0.00"},{"v":0,"d":"$0.00"}]
["MMA",null,null,{"$f":"Jurat!I$1","v":0},{"$f":"Jurat!D$33","v":"00:00:00"},"Q3","2017-09-30","Region 2","Operating Expense","Taxes & Fees","Taxes & Fees","13.2","Department of Insurance Assessments",{"$f":"'MMA Rev-Exp Region 2'!Z$98","v":{"v":0,"d":"$0.00"}},{"v":0,"d":"$0.00"},{"v":0,"d":"$0.00"},{"v":0,"d":"$0.00"},{"v":0,"d":"$0.00"},{"v":0,"d":"$0.00"},{"v":0,"d":"$0.00"},{"v":0,"d":"$0.00"},{"v":0,"d":"$0.00"},{"v":0,"d":"$0.00"},{"v":0,"d":"$0.00"},{"v":0,"d":"$0.00"}]
["MMA",null,null,{"$f":"Jurat!I$1","v":0},{"$f":"Jurat!D$33","v":"00:00:00"},"Q3","2017-09-30","Region 2","Operating Expense","Taxes & Fees","Taxes & Fees","13.3","Section 9010 Health Insurance Providers Fee",{"$f":"'MMA Rev-Exp Region 2'!Z$99","v":{"v":0,"d":"$0.00"}},{"v":0,"d":"$0.00"},{"v":0,"d":"$0.00"},{"v":0,"d":"$0.00"},{"v":0,"d":"$0.00"},{"v":0,"d":"$0.00"},{"v":0,"d":"$0.00"},{"v":0,"d":"$0.00"},{"v":0,"d":"$0.00"},{"v":0,"d":"$0.00"},{"v":0,"d":"$0.00"},{"v":0,"d":"$0.00"}]
["MMA",null,null,{"$f":"Jurat!I$1","v":0},{"$f":"Jurat!D$33","v":"00:00:00"},"Q3","2017-09-30","Region 2","Non-Operating Expense","Income Tax Expense","Income Tax Expense","16.0","Income Tax Expense",{"$f":"'MMA Rev-Exp Region 2'!Z$106","v":{"v":0,"d":"$0.00"}},{"v":0,"d":"$0.00"},{"v":0,"d":"$0.00"},{"v":0,"d":"$0.00"},{"v":0,"d":"$0.00"},{"v":0,"d":"$0.00"},{"v":0,"d":"$0.00"},{"v":0,"d":"$0.00"},{"v":0,"d":"$0.00"},{"v":0,"d":"$0.00"},{"v":0,"d":"$0.00"},{"v":0,"d":"$0.00"}]
["MMA",null,null,{"$f":"Jurat!I$1","v":0},{"$f":"Jurat!D$33","v":"00:00:00"},"Q3","2017-12-31","Region 2","Member Months","Member Months","Member Months",null,"Member Months",{"$f":"'MMA Rev-Exp Region 2'!AK$9","v":{"v":0,"d":"$0.00"}},{"$f":"'MMA Rev-Exp Region 2'!AL$9","v":{"v":0,"d":"$0.00"}},{"$f":"'MMA Rev-Exp Region 2'!AM$9","v":{"v":0,"d":"$0.00"}},{"$f":"'MMA Rev-Exp Region 2'!AN$9","v":{"v":0,"d":"$0.00"}},{"$f":"'MMA Rev-Exp Region 2'!AO$9","v":{"v":0,"d":"$0.00"}},{"$f":"'MMA Rev-Exp Region 2'!AP$9","v":{"v":0,"d":"$0.00"}},{"$f":"'MMA Rev-Exp Region 2'!AQ$9","v":{"v":0,"d":"$0.00"}},{"$f":"'MMA Rev-Exp Region 2'!AR$9","v":{"v":0,"d":"$0.00"}},{"$f":"'MMA Rev-Exp Region 2'!AS$9","v":{"v":0,"d":"$0.00"}},{"$f":"'MMA Rev-Exp Region 2'!AT$9","v":{"v":0,"d":"$0.00"}},{"$f":"'MMA Rev-Exp Region 2'!AU$9","v":{"v":0,"d":"$0.00"}},{"v":0,"d":"$0.00"}]
["MMA",null,null,{"$f":"Jurat!I$1","v":0},{"$f":"Jurat!D$33","v":"00:00:00"},"Q4","2017-12-31","Region 2","Operating Revenue","Capitation","Capitation",1.1,"Capitation",{"$f":"'MMA Rev-Exp Region 2'!AK$11","v":{"v":0,"d":"$0.00"}},{"$f":"'MMA Rev-Exp Region 2'!AL$11","v":{"v":0,"d":"$0.00"}},{"$f":"'MMA Rev-Exp Region 2'!AM$11","v":{"v":0,"d":"$0.00"}},{"$f":"'MMA Rev-Exp Region 2'!AN$11","v":{"v":0,"d":"$0.00"}},{"$f":"'MMA Rev-Exp Region 2'!AO$11","v":{"v":0,"d":"$0.00"}},{"$f":"'MMA Rev-Exp Region 2'!AP$11","v":{"v":0,"d":"$0.00"}},{"$f":"'MMA Rev-Exp Region 2'!AQ$11","v":{"v":0,"d":"$0.00"}},{"$f":"'MMA Rev-Exp Region 2'!AR$11","v":{"v":0,"d":"$0.00"}},{"$f":"'MMA Rev-Exp Region 2'!AS$11","v":{"v":0,"d":"$0.00"}},{"$f":"'MMA Rev-Exp Region 2'!AT$11","v":{"v":0,"d":"$0.00"}},{"$f":"'MMA Rev-Exp Region 2'!AU$11","v":{"v":0,"d":"$0.00"}},{"v":0,"d":"$0.00"}]
["MMA",null,null,{"$f":"Jurat!I$1","v":0},{"$f":"Jurat!D$33","v":"00:00:00"},"Q4","2017-12-31","Region 2","Operating Revenue","Kick Payments","Kick Payments - Transplant",1.2,"Transplant Kick Payments",{"$f":"'MMA Rev-Exp Region 2'!AK$12","v":{"v":0,"d":"$0.00"}},{"$f":"'MMA Rev-Exp Region 2'!AL$12","v":{"v":0,"d":"$0.00"}},{"$f":"'MMA Rev-Exp Region 2'!AM$12","v":{"v":0,"d":"$0.00"}},{"$f":"'MMA Rev-Exp Region 2'!AN$12","v":{"v":0,"d":"$0.00"}},{"$f":"'MMA Rev-Exp Region 2'!AO$12","v":{"v":0,"d":"$0.00"}},{"$f":"'MMA Rev-Exp Region 2'!AP$12","v":{"v":0,"d":"$0.00"}},{"$f":"'MMA Rev-Exp Region 2'!AQ$12","v":{"v":0,"d":"$0.00"}},{"$f":"'MMA Rev-Exp Region 2'!AR$12","v":{"v":0,"d":"$0.00"}},{"$f":"'MMA Rev-Exp Region 2'!AS$12","v":{"v":0,"d":"$0.00"}},{"$f":"'MMA Rev-Exp Region 2'!AT$12","v":{"v":0,"d":"$0.00"}},{"$f":"'MMA Rev-Exp Region 2'!AU$12","v":{"v":0,"d":"$0.00"}},{"v":0,"d":"$0.00"}]
["MMA",null,null,{"$f":"Jurat!I$1","v":0},{"$f":"Jurat!D$33","v":"00:00:00"},"Q4","2017-12-31","Region 2","Operating Revenue","Kick Payments","Kick Payments - Hep C","1.3","Hepatitis C Kick Payments",{"$f":"'MMA Rev-Exp Region 2'!AK$13","v":{"v":0,"d":"$0.00"}},{"$f":"'MMA Rev-Exp Region 2'!AL$13","v":{"v":0,"d":"$0.00"}},{"$f":"'MMA Rev-Exp Region 2'!AM$13","v":{"v":0,"d":"$0.00"}},{"$f":"'MMA Rev-Exp Region 2'!AN$13","v":{"v":0,"d":"$0.00"}},{"$f":"'MMA Rev-Exp Region 2'!AO$13","v":{"v":0,"d":"$0.00"}},{"$f":"'MMA Rev-Exp Region 2'!AP$13","v":{"v":0,"d":"$0.00"}},{"$f":"'MMA Rev-Exp Region 2'!AQ$13","v":{"v":0,"d":"$0.00"}},{"$f":"'MMA Rev-Exp Region 2'!AR$13","v":{"v":0,"d":"$0.00"}},{"$f":"'MMA Rev-Exp Region 2'!AS$13","v":{"v":0,"d":"$0.00"}},{"$f":"'MMA Rev-Exp Region 2'!AT$13","v":{"v":0,"d":"$0.00"}},{"$f":"'MMA Rev-Exp Region 2'!AU$13","v":{"v":0,"d":"$0.00"}},{"v":0,"d":"$0.00"}]
["MMA",null,null,{"$f":"Jurat!I$1","v":0},{"$f":"Jurat!D$33","v":"00:00:00"},"Q4","2017-12-31","Region 2","Operating Revenue","Kick Payments","Kick Payments - Maternity","1.4.1","Maternity Kick Payments",{"$f":"'MMA Rev-Exp Region 2'!AK$14","v":{"v":0,"d":"$0.00"}},{"$f":"'MMA Rev-Exp Region 2'!AL$14","v":{"v":0,"d":"$0.00"}},{"$f":"'MMA Rev-Exp Region 2'!AM$14","v":{"v":0,"d":"$0.00"}},{"$f":"'MMA Rev-Exp Region 2'!AN$14","v":{"v":0,"d":"$0.00"}},{"$f":"'MMA Rev-Exp Region 2'!AO$14","v":{"v":0,"d":"$0.00"}},{"$f":"'MMA Rev-Exp Region 2'!AP$14","v":{"v":0,"d":"$0.00"}},{"$f":"'MMA Rev-Exp Region 2'!AQ$14","v":{"v":0,"d":"$0.00"}},{"$f":"'MMA Rev-Exp Region 2'!AR$14","v":{"v":0,"d":"$0.00"}},{"$f":"'MMA Rev-Exp Region 2'!AS$14","v":{"v":0,"d":"$0.00"}},{"$f":"'MMA Rev-Exp Region 2'!AT$14","v":{"v":0,"d":"$0.00"}},{"$f":"'MMA Rev-Exp Region 2'!AU$14","v":{"v":0,"d":"$0.00"}},{"v":0,"d":"$0.00"}]
["MMA",null,null,{"$f":"Jurat!I$1","v":0},{"$f":"Jurat!D$33","v":"00:00:00"},"Q4","2017-12-31","Region 2","Operating Revenue","Other Revenue","Other Revenue - 9010","1.5","ACA § 9010 related payments",{"$f":"'MMA Rev-Exp Region 2'!AK$15","v":{"v":0,"d":"$0.00"}},{"$f":"'MMA Rev-Exp Region 2'!AL$15","v":{"v":0,"d":"$0.00"}},{"$f":"'MMA Rev-Exp Region 2'!AM$15","v":{"v":0,"d":"$0.00"}},{"$f":"'MMA Rev-Exp Region 2'!AN$15","v":{"v":0,"d":"$0.00"}},{"$f":"'MMA Rev-Exp Region 2'!AO$15","v":{"v":0,"d":"$0.00"}},{"$f":"'MMA Rev-Exp Region 2'!AP$15","v":{"v":0,"d":"$0.00"}},{"$f":"'MMA Rev-Exp Region 2'!AQ$15","v":{"v":0,"d":"$0.00"}},{"$f":"'MMA Rev-Exp Region 2'!AR$15","v":{"v":0,"d":"$0.00"}},{"$f":"'MMA Rev-Exp Region 2'!AS$15","v":{"v":0,"d":"$0.00"}},{"$f":"'MMA Rev-Exp Region 2'!AT$15","v":{"v":0,"d":"$0.00"}},{"$f":"'MMA Rev-Exp Region 2'!AU$15","v":{"v":0,"d":"$0.00"}},{"v":0,"d":"$0.00"}]
["MMA",null,null,{"$f":"Jurat!I$1","v":0},{"$f":"Jurat!D$33","v":"00:00:00"},"Q4","2017-12-31","Region 2","Operating Revenue","Other Revenue","Other Revenue","1.6","Other Revenue",{"$f":"'MMA Rev-Exp Region 2'!AK$16","v":{"v":0,"d":"$0.00"}},{"$f":"'MMA Rev-Exp Region 2'!AL$16","v":{"v":0,"d":"$0.00"}},{"$f":"'MMA Rev-Exp Region 2'!AM$16","v":{"v":0,"d":"$0.00"}},{"$f":"'MMA Rev-Exp Region 2'!AN$16","v":{"v":0,"d":"$0.00"}},{"$f":"'MMA Rev-Exp Region 2'!AO$16","v":{"v":0,"d":"$0.00"}},{"$f":"'MMA Rev-Exp Region 2'!AP$16","v":{"v":0,"d":"$0.00"}},{"$f":"'MMA Rev-Exp Region 2'!AQ$16","v":{"v":0,"d":"$0.00"}},{"$f":"'MMA Rev-Exp Region 2'!AR$16","v":{"v":0,"d":"$0.00"}},{"$f":"'MMA Rev-Exp Region 2'!AS$16","v":{"v":0,"d":"$0.00"}},{"$f":"'MMA Rev-Exp Region 2'!AT$16","v":{"v":0,"d":"$0.00"}},{"$f":"'MMA Rev-Exp Region 2'!AU$16","v":{"v":0,"d":"$0.00"}},{"v":0,"d":"$0.00"}]
["MMA",null,null,{"$f":"Jurat!I$1","v":0},{"$f":"Jurat!D$33","v":"00:00:00"},"Q4","2017-12-31","Region 2","Operating Expense","Medical Benefits Expense","Hospital Services",2.1,"Inpatient FFS",{"$f":"'MMA Rev-Exp Region 2'!AK$20","v":{"v":0,"d":"$0.00"}},{"$f":"'MMA Rev-Exp Region 2'!AL$20","v":{"v":0,"d":"$0.00"}},{"$f":"'MMA Rev-Exp Region 2'!AM$20","v":{"v":0,"d":"$0.00"}},{"$f":"'MMA Rev-Exp Region 2'!AN$20","v":{"v":0,"d":"$0.00"}},{"$f":"'MMA Rev-Exp Region 2'!AO$20","v":{"v":0,"d":"$0.00"}},{"$f":"'MMA Rev-Exp Region 2'!AP$20","v":{"v":0,"d":"$0.00"}},{"$f":"'MMA Rev-Exp Region 2'!AQ$20","v":{"v":0,"d":"$0.00"}},{"$f":"'MMA Rev-Exp Region 2'!AR$20","v":{"v":0,"d":"$0.00"}},{"$f":"'MMA Rev-Exp Region 2'!AS$20","v":{"v":0,"d":"$0.00"}},{"$f":"'MMA Rev-Exp Region 2'!AT$20","v":{"v":0,"d":"$0.00"}},{"$f":"'MMA Rev-Exp Region 2'!AU$20","v":{"v":0,"d":"$0.00"}},{"v":0,"d":"$0.00"}]
["MMA",null,null,{"$f":"Jurat!I$1","v":0},{"$f":"Jurat!D$33","v":"00:00:00"},"Q4","2017-12-31","Region 2","Operating Expense","Medical Benefits Expense","Hospital Services",2.2,"Ending IBNP for Inpatient Hospital Services",{"$f":"'MMA Rev-Exp Region 2'!AK$21","v":{"v":0,"d":"$0.00"}},{"$f":"'MMA Rev-Exp Region 2'!AL$21","v":{"v":0,"d":"$0.00"}},{"$f":"'MMA Rev-Exp Region 2'!AM$21","v":{"v":0,"d":"$0.00"}},{"$f":"'MMA Rev-Exp Region 2'!AN$21","v":{"v":0,"d":"$0.00"}},{"$f":"'MMA Rev-Exp Region 2'!AO$21","v":{"v":0,"d":"$0.00"}},{"$f":"'MMA Rev-Exp Region 2'!AP$21","v":{"v":0,"d":"$0.00"}},{"$f":"'MMA Rev-Exp Region 2'!AQ$21","v":{"v":0,"d":"$0.00"}},{"$f":"'MMA Rev-Exp Region 2'!AR$21","v":{"v":0,"d":"$0.00"}},{"$f":"'MMA Rev-Exp Region 2'!AS$21","v":{"v":0,"d":"$0.00"}},{"$f":"'MMA Rev-Exp Region 2'!AT$21","v":{"v":0,"d":"$0.00"}},{"$f":"'MMA Rev-Exp Region 2'!AU$21","v":{"v":0,"d":"$0.00"}},{"v":0,"d":"$0.00"}]
["MMA",null,null,{"$f":"Jurat!I$1","v":0},{"$f":"Jurat!D$33","v":"00:00:00"},"Q4","2017-12-31","Region 2","Operating Expense","Medical Benefits Expense","Hospital Services",2.3,"Outpatient FFS: ER",{"$f":"'MMA Rev-Exp Region 2'!AK$22","v":{"v":0,"d":"$0.00"}},{"$f":"'MMA Rev-Exp Region 2'!AL$22","v":{"v":0,"d":"$0.00"}},{"$f":"'MMA Rev-Exp Region 2'!AM$22","v":{"v":0,"d":"$0.00"}},{"$f":"'MMA Rev-Exp Region 2'!AN$22","v":{"v":0,"d":"$0.00"}},{"$f":"'MMA Rev-Exp Region 2'!AO$22","v":{"v":0,"d":"$0.00"}},{"$f":"'MMA Rev-Exp Region 2'!AP$22","v":{"v":0,"d":"$0.00"}},{"$f":"'MMA Rev-Exp Region 2'!AQ$22","v":{"v":0,"d":"$0.00"}},{"$f":"'MMA Rev-Exp Region 2'!AR$22","v":{"v":0,"d":"$0.00"}},{"$f":"'MMA Rev-Exp Region 2'!AS$22","v":{"v":0,"d":"$0.00"}},{"$f":"'MMA Rev-Exp Region 2'!AT$22","v":{"v":0,"d":"$0.00"}},{"$f":"'MMA Rev-Exp Region 2'!AU$22","v":{"v":0,"d":"$0.00"}},{"v":0,"d":"$0.00"}]
["MMA",null,null,{"$f":"Jurat!I$1","v":0},{"$f":"Jurat!D$33","v":"00:00:00"},"Q4","2017-12-31","Region 2","Operating Expense","Medical Benefits Expense","Hospital Services",2.4,"Outpatient FFS: Other than ER ",{"$f":"'MMA Rev-Exp Region 2'!AK$23","v":{"v":0,"d":"$0.00"}},{"$f":"'MMA Rev-Exp Region 2'!AL$23","v":{"v":0,"d":"$0.00"}},{"$f":"'MMA Rev-Exp Region 2'!AM$23","v":{"v":0,"d":"$0.00"}},{"$f":"'MMA Rev-Exp Region 2'!AN$23","v":{"v":0,"d":"$0.00"}},{"$f":"'MMA Rev-Exp Region 2'!AO$23","v":{"v":0,"d":"$0.00"}},{"$f":"'MMA Rev-Exp Region 2'!AP$23","v":{"v":0,"d":"$0.00"}},{"$f":"'MMA Rev-Exp Region 2'!AQ$23","v":{"v":0,"d":"$0.00"}},{"$f":"'MMA Rev-Exp Region 2'!AR$23","v":{"v":0,"d":"$0.00"}},{"$f":"'MMA Rev-Exp Region 2'!AS$23","v":{"v":0,"d":"$0.00"}},{"$f":"'MMA Rev-Exp Region 2'!AT$23","v":{"v":0,"d":"$0.00"}},{"$f":"'MMA Rev-Exp Region 2'!AU$23","v":{"v":0,"d":"$0.00"}},{"v":0,"d":"$0.00"}]
["MMA",null,null,{"$f":"Jurat!I$1","v":0},{"$f":"Jurat!D$33","v":"00:00:00"},"Q4","2017-12-31","Region 2","Operating Expense","Medical Benefits Expense","Hospital Services",2.5,"Ending IBNP for Outpatient Hospital Services",{"$f":"'MMA Rev-Exp Region 2'!AK$24","v":{"v":0,"d":"$0.00"}},{"$f":"'MMA Rev-Exp Region 2'!AL$24","v":{"v":0,"d":"$0.00"}},{"$f":"'MMA Rev-Exp Region 2'!AM$24","v":{"v":0,"d":"$0.00"}},{"$f":"'MMA Rev-Exp Region 2'!AN$24","v":{"v":0,"d":"$0.00"}},{"$f":"'MMA Rev-Exp Region 2'!AO$24","v":{"v":0,"d":"$0.00"}},{"$f":"'MMA Rev-Exp Region 2'!AP$24","v":{"v":0,"d":"$0.00"}},{"$f":"'MMA Rev-Exp Region 2'!AQ$24","v":{"v":0,"d":"$0.00"}},{"$f":"'MMA Rev-Exp Region 2'!AR$24","v":{"v":0,"d":"$0.00"}},{"$f":"'MMA Rev-Exp Region 2'!AS$24","v":{"v":0,"d":"$0.00"}},{"$f":"'MMA Rev-Exp Region 2'!AT$24","v":{"v":0,"d":"$0.00"}},{"$f":"'MMA Rev-Exp Region 2'!AU$24","v":{"v":0,"d":"$0.00"}},{"v":0,"d":"$0.00"}]
["MMA",null,null,{"$f":"Jurat!I$1","v":0},{"$f":"Jurat!D$33","v":"00:00:00"},"Q4","2017-12-31","Region 2","Operating Expense","Medical Benefits Expense","Hospital Services","2.6","Subcapitated Hospital Services",{"$f":"'MMA Rev-Exp Region 2'!AK$25","v":{"v":0,"d":"$0.00"}},{"$f":"'MMA Rev-Exp Region 2'!AL$25","v":{"v":0,"d":"$0.00"}},{"$f":"'MMA Rev-Exp Region 2'!AM$25","v":{"v":0,"d":"$0.00"}},{"$f":"'MMA Rev-Exp Region 2'!AN$25","v":{"v":0,"d":"$0.00"}},{"$f":"'MMA Rev-Exp Region 2'!AO$25","v":{"v":0,"d":"$0.00"}},{"$f":"'MMA Rev-Exp Region 2'!AP$25","v":{"v":0,"d":"$0.00"}},{"$f":"'MMA Rev-Exp Region 2'!AQ$25","v":{"v":0,"d":"$0.00"}},{"$f":"'MMA Rev-Exp Region 2'!AR$25","v":{"v":0,"d":"$0.00"}},{"$f":"'MMA Rev-Exp Region 2'!AS$25","v":{"v":0,"d":"$0.00"}},{"$f":"'MMA Rev-Exp Region 2'!AT$25","v":{"v":0,"d":"$0.00"}},{"$f":"'MMA Rev-Exp Region 2'!AU$25","v":{"v":0,"d":"$0.00"}},{"v":0,"d":"$0.00"}]
["MMA",null,null,{"$f":"Jurat!I$1","v":0},{"$f":"Jurat!D$33","v":"00:00:00"},"Q4","2017-12-31","Region 2","Operating Expense","Medical Benefits Expense","Hospital Services","2.7","Hospital Settlements",{"$f":"'MMA Rev-Exp Region 2'!AK$26","v":{"v":0,"d":"$0.00"}},{"$f":"'MMA Rev-Exp Region 2'!AL$26","v":{"v":0,"d":"$0.00"}},{"$f":"'MMA Rev-Exp Region 2'!AM$26","v":{"v":0,"d":"$0.00"}},{"$f":"'MMA Rev-Exp Region 2'!AN$26","v":{"v":0,"d":"$0.00"}},{"$f":"'MMA Rev-Exp Region 2'!AO$26","v":{"v":0,"d":"$0.00"}},{"$f":"'MMA Rev-Exp Region 2'!AP$26","v":{"v":0,"d":"$0.00"}},{"$f":"'MMA Rev-Exp Region 2'!AQ$26","v":{"v":0,"d":"$0.00"}},{"$f":"'MMA Rev-Exp Region 2'!AR$26","v":{"v":0,"d":"$0.00"}},{"$f":"'MMA Rev-Exp Region 2'!AS$26","v":{"v":0,"d":"$0.00"}},{"$f":"'MMA Rev-Exp Region 2'!AT$26","v":{"v":0,"d":"$0.00"}},{"$f":"'MMA Rev-Exp Region 2'!AU$26","v":{"v":0,"d":"$0.00"}},{"v":0,"d":"$0.00"}]
["MMA",null,null,{"$f":"Jurat!I$1","v":0},{"$f":"Jurat!D$33","v":"00:00:00"},"Q4","2017-12-31","Region 2","Operating Expense","Medical Benefits Expense","Hospital Services","2.7.1","Transplant Services",{"$f":"'MMA Rev-Exp Region 2'!AK$27","v":{"v":0,"d":"$0.00"}},{"$f":"'MMA Rev-Exp Region 2'!AL$27","v":{"v":0,"d":"$0.00"}},{"$f":"'MMA Rev-Exp Region 2'!AM$27","v":{"v":0,"d":"$0.00"}},{"$f":"'MMA Rev-Exp Region 2'!AN$27","v":{"v":0,"d":"$0.00"}},{"$f":"'MMA Rev-Exp Region 2'!AO$27","v":{"v":0,"d":"$0.00"}},{"$f":"'MMA Rev-Exp Region 2'!AP$27","v":{"v":0,"d":"$0.00"}},{"$f":"'MMA Rev-Exp Region 2'!AQ$27","v":{"v":0,"d":"$0.00"}},{"$f":"'MMA Rev-Exp Region 2'!AR$27","v":{"v":0,"d":"$0.00"}},{"$f":"'MMA Rev-Exp Region 2'!AS$27","v":{"v":0,"d":"$0.00"}},{"$f":"'MMA Rev-Exp Region 2'!AT$27","v":{"v":0,"d":"$0.00"}},{"$f":"'MMA Rev-Exp Region 2'!AU$27","v":{"v":0,"d":"$0.00"}},{"v":0,"d":"$0.00"}]
["MMA",null,null,{"$f":"Jurat!I$1","v":0},{"$f":"Jurat!D$33","v":"00:00:00"},"Q4","2017-12-31","Region 2","Operating Expense","Medical Benefits Expense","Professional Services",3.1,"Primary Care FFS",{"$f":"'MMA Rev-Exp Region 2'!AK$29","v":{"v":0,"d":"$0.00"}},{"$f":"'MMA Rev-Exp Region 2'!AL$29","v":{"v":0,"d":"$0.00"}},{"$f":"'MMA Rev-Exp Region 2'!AM$29","v":{"v":0,"d":"$0.00"}},{"$f":"'MMA Rev-Exp Region 2'!AN$29","v":{"v":0,"d":"$0.00"}},{"$f":"'MMA Rev-Exp Region 2'!AO$29","v":{"v":0,"d":"$0.00"}},{"$f":"'MMA Rev-Exp Region 2'!AP$29","v":{"v":0,"d":"$0.00"}},{"$f":"'MMA Rev-Exp Region 2'!AQ$29","v":{"v":0,"d":"$0.00"}},{"$f":"'MMA Rev-Exp Region 2'!AR$29","v":{"v":0,"d":"$0.00"}},{"$f":"'MMA Rev-Exp Region 2'!AS$29","v":{"v":0,"d":"$0.00"}},{"$f":"'MMA Rev-Exp Region 2'!AT$29","v":{"v":0,"d":"$0.00"}},{"$f":"'MMA Rev-Exp Region 2'!AU$29","v":{"v":0,"d":"$0.00"}},{"v":0,"d":"$0.00"}]
["MMA",null,null,{"$f":"Jurat!I$1","v":0},{"$f":"Jurat!D$33","v":"00:00:00"},"Q4","2017-12-31","Region 2","Operating Expense","Medical Benefits Expense","Professional Services",3.2,"Specialty Care FFS",{"$f":"'MMA Rev-Exp Region 2'!AK$30","v":{"v":0,"d":"$0.00"}},{"$f":"'MMA Rev-Exp Region 2'!AL$30","v":{"v":0,"d":"$0.00"}},{"$f":"'MMA Rev-Exp Region 2'!AM$30","v":{"v":0,"d":"$0.00"}},{"$f":"'MMA Rev-Exp Region 2'!AN$30","v":{"v":0,"d":"$0.00"}},{"$f":"'MMA Rev-Exp Region 2'!AO$30","v":{"v":0,"d":"$0.00"}},{"$f":"'MMA Rev-Exp Region 2'!AP$30","v":{"v":0,"d":"$0.00"}},{"$f":"'MMA Rev-Exp Region 2'!AQ$30","v":{"v":0,"d":"$0.00"}},{"$f":"'MMA Rev-Exp Region 2'!AR$30","v":{"v":0,"d":"$0.00"}},{"$f":"'MMA Rev-Exp Region 2'!AS$30","v":{"v":0,"d":"$0.00"}},{"$f":"'MMA Rev-Exp Region 2'!AT$30","v":{"v":0,"d":"$0.00"}},{"$f":"'MMA Rev-Exp Region 2'!AU$30","v":{"v":0,"d":"$0.00"}},{"v":0,"d":"$0.00"}]
["MMA",null,null,{"$f":"Jurat!I$1","v":0},{"$f":"Jurat!D$33","v":"00:00:00"},"Q4","2017-12-31","Region 2","Operating Expense","Medical Benefits Expense","Professional Services",3.3,"Other Professional FFS",{"$f":"'MMA Rev-Exp Region 2'!AK$31","v":{"v":0,"d":"$0.00"}},{"$f":"'MMA Rev-Exp Region 2'!AL$31","v":{"v":0,"d":"$0.00"}},{"$f":"'MMA Rev-Exp Region 2'!AM$31","v":{"v":0,"d":"$0.00"}},{"$f":"'MMA Rev-Exp Region 2'!AN$31","v":{"v":0,"d":"$0.00"}},{"$f":"'MMA Rev-Exp Region 2'!AO$31","v":{"v":0,"d":"$0.00"}},{"$f":"'MMA Rev-Exp Region 2'!AP$31","v":{"v":0,"d":"$0.00"}},{"$f":"'MMA Rev-Exp Region 2'!AQ$31","v":{"v":0,"d":"$0.00"}},{"$f":"'MMA Rev-Exp Region 2'!AR$31","v":{"v":0,"d":"$0.00"}},{"$f":"'MMA Rev-Exp Region 2'!AS$31","v":{"v":0,"d":"$0.00"}},{"$f":"'MMA Rev-Exp Region 2'!AT$31","v":{"v":0,"d":"$0.00"}},{"$f":"'MMA Rev-Exp Region 2'!AU$31","v":{"v":0,"d":"$0.00"}},{"v":0,"d":"$0.00"}]
["MMA",null,null,{"$f":"Jurat!I$1","v":0},{"$f":"Jurat!D$33","v":"00:00:00"},"Q4","2017-12-31","Region 2","Operating Expense","Medical Benefits Expense","Professional Services","3.4","§ 1202 PCP Payments to providers",{"$f":"'MMA Rev-Exp Region 2'!AK$32","v":{"v":0,"d":"$0.00"}},{"$f":"'MMA Rev-Exp Region 2'!AL$32","v":{"v":0,"d":"$0.00"}},{"$f":"'MMA Rev-Exp Region 2'!AM$32","v":{"v":0,"d":"$0.00"}},{"$f":"'MMA Rev-Exp Region 2'!AN$32","v":{"v":0,"d":"$0.00"}},{"$f":"'MMA Rev-Exp Region 2'!AO$32","v":{"v":0,"d":"$0.00"}},{"$f":"'MMA Rev-Exp Region 2'!AP$32","v":{"v":0,"d":"$0.00"}},{"$f":"'MMA Rev-Exp Region 2'!AQ$32","v":{"v":0,"d":"$0.00"}},{"$f":"'MMA Rev-Exp Region 2'!AR$32","v":{"v":0,"d":"$0.00"}},{"$f":"'MMA Rev-Exp Region 2'!AS$32","v":{"v":0,"d":"$0.00"}},{"$f":"'MMA Rev-Exp Region 2'!AT$32","v":{"v":0,"d":"$0.00"}},{"$f":"'MMA Rev-Exp Region 2'!AU$32","v":{"v":0,"d":"$0.00"}},{"v":0,"d":"$0.00"}]
["MMA",null,null,{"$f":"Jurat!I$1","v":0},{"$f":"Jurat!D$33","v":"00:00:00"},"Q4","2017-12-31","Region 2","Operating Expense","Medical Benefits Expense","Professional Services","3.5","Subcapitated Professional Services",{"$f":"'MMA Rev-Exp Region 2'!AK$33","v":{"v":0,"d":"$0.00"}},{"$f":"'MMA Rev-Exp Region 2'!AL$33","v":{"v":0,"d":"$0.00"}},{"$f":"'MMA Rev-Exp Region 2'!AM$33","v":{"v":0,"d":"$0.00"}},{"$f":"'MMA Rev-Exp Region 2'!AN$33","v":{"v":0,"d":"$0.00"}},{"$f":"'MMA Rev-Exp Region 2'!AO$33","v":{"v":0,"d":"$0.00"}},{"$f":"'MMA Rev-Exp Region 2'!AP$33","v":{"v":0,"d":"$0.00"}},{"$f":"'MMA Rev-Exp Region 2'!AQ$33","v":{"v":0,"d":"$0.00"}},{"$f":"'MMA Rev-Exp Region 2'!AR$33","v":{"v":0,"d":"$0.00"}},{"$f":"'MMA Rev-Exp Region 2'!AS$33","v":{"v":0,"d":"$0.00"}},{"$f":"'MMA Rev-Exp Region 2'!AT$33","v":{"v":0,"d":"$0.00"}},{"$f":"'MMA Rev-Exp Region 2'!AU$33","v":{"v":0,"d":"$0.00"}},{"v":0,"d":"$0.00"}]
["MMA",null,null,{"$f":"Jurat!I$1","v":0},{"$f":"Jurat!D$33","v":"00:00:00"},"Q4","2017-12-31","Region 2","Operating Expense","Medical Benefits Expense","Professional Services","3.6","Ending IBNP for Professional Services",{"$f":"'MMA Rev-Exp Region 2'!AK$34","v":{"v":0,"d":"$0.00"}},{"$f":"'MMA Rev-Exp Region 2'!AL$34","v":{"v":0,"d":"$0.00"}},{"$f":"'MMA Rev-Exp Region 2'!AM$34","v":{"v":0,"d":"$0.00"}},{"$f":"'MMA Rev-Exp Region 2'!AN$34","v":{"v":0,"d":"$0.00"}},{"$f":"'MMA Rev-Exp Region 2'!AO$34","v":{"v":0,"d":"$0.00"}},{"$f":"'MMA Rev-Exp Region 2'!AP$34","v":{"v":0,"d":"$0.00"}},{"$f":"'MMA Rev-Exp Region 2'!AQ$34","v":{"v":0,"d":"$0.00"}},{"$f":"'MMA Rev-Exp Region 2'!AR$34","v":{"v":0,"d":"$0.00"}},{"$f":"'MMA Rev-Exp Region 2'!AS$34","v":{"v":0,"d":"$0.00"}},{"$f":"'MMA Rev-Exp Region 2'!AT$34","v":{"v":0,"d":"$0.00"}},{"$f":"'MMA Rev-Exp Region 2'!AU$34","v":{"v":0,"d":"$0.00"}},{"v":0,"d":"$0.00"}]
["MMA",null,null,{"$f":"Jurat!I$1","v":0},{"$f":"Jurat!D$33","v":"00:00:00"},"Q4","2017-12-31","Region 2","Operating Expense","Medical Benefits Expense","Professional Services","3.7","Professional Services Settlements",{"$f":"'MMA Rev-Exp Region 2'!AK$35","v":{"v":0,"d":"$0.00"}},{"$f":"'MMA Rev-Exp Region 2'!AL$35","v":{"v":0,"d":"$0.00"}},{"$f":"'MMA Rev-Exp Region 2'!AM$35","v":{"v":0,"d":"$0.00"}},{"$f":"'MMA Rev-Exp Region 2'!AN$35","v":{"v":0,"d":"$0.00"}},{"$f":"'MMA Rev-Exp Region 2'!AO$35","v":{"v":0,"d":"$0.00"}},{"$f":"'MMA Rev-Exp Region 2'!AP$35","v":{"v":0,"d":"$0.00"}},{"$f":"'MMA Rev-Exp Region 2'!AQ$35","v":{"v":0,"d":"$0.00"}},{"$f":"'MMA Rev-Exp Region 2'!AR$35","v":{"v":0,"d":"$0.00"}},{"$f":"'MMA Rev-Exp Region 2'!AS$35","v":{"v":0,"d":"$0.00"}},{"$f":"'MMA Rev-Exp Region 2'!AT$35","v":{"v":0,"d":"$0.00"}},{"$f":"'MMA Rev-Exp Region 2'!AU$35","v":{"v":0,"d":"$0.00"}},{"v":0,"d":"$0.00"}]
["MMA",null,null,{"$f":"Jurat!I$1","v":0},{"$f":"Jurat!D$33","v":"00:00:00"},"Q4","2017-12-31","Region 2","Operating Expense","Medical Benefits Expense","Maternity Services","4.1.1","Maternity Services",{"$f":"'MMA Rev-Exp Region 2'!AK$37","v":{"v":0,"d":"$0.00"}},{"$f":"'MMA Rev-Exp Region 2'!AL$37","v":{"v":0,"d":"$0.00"}},{"$f":"'MMA Rev-Exp Region 2'!AM$37","v":{"v":0,"d":"$0.00"}},{"$f":"'MMA Rev-Exp Region 2'!AN$37","v":{"v":0,"d":"$0.00"}},{"$f":"'MMA Rev-Exp Region 2'!AO$37","v":{"v":0,"d":"$0.00"}},{"$f":"'MMA Rev-Exp Region 2'!AP$37","v":{"v":0,"d":"$0.00"}},{"$f":"'MMA Rev-Exp Region 2'!AQ$37","v":{"v":0,"d":"$0.00"}},{"$f":"'MMA Rev-Exp Region 2'!AR$37","v":{"v":0,"d":"$0.00"}},{"$f":"'MMA Rev-Exp Region 2'!AS$37","v":{"v":0,"d":"$0.00"}},{"$f":"'MMA Rev-Exp Region 2'!AT$37","v":{"v":0,"d":"$0.00"}},{"$f":"'MMA Rev-Exp Region 2'!AU$37","v":{"v":0,"d":"$0.00"}},{"v":0,"d":"$0.00"}]
["MMA",null,null,{"$f":"Jurat!I$1","v":0},{"$f":"Jurat!D$33","v":"00:00:00"},"Q4","2017-12-31","Region 2","Operating Expense","Medical Benefits Expense","Maternity Services","4.2.1","Ending IBNP for Maternity Services",{"$f":"'MMA Rev-Exp Region 2'!AK$38","v":{"v":0,"d":"$0.00"}},{"$f":"'MMA Rev-Exp Region 2'!AL$38","v":{"v":0,"d":"$0.00"}},{"$f":"'MMA Rev-Exp Region 2'!AM$38","v":{"v":0,"d":"$0.00"}},{"$f":"'MMA Rev-Exp Region 2'!AN$38","v":{"v":0,"d":"$0.00"}},{"$f":"'MMA Rev-Exp Region 2'!AO$38","v":{"v":0,"d":"$0.00"}},{"$f":"'MMA Rev-Exp Region 2'!AP$38","v":{"v":0,"d":"$0.00"}},{"$f":"'MMA Rev-Exp Region 2'!AQ$38","v":{"v":0,"d":"$0.00"}},{"$f":"'MMA Rev-Exp Region 2'!AR$38","v":{"v":0,"d":"$0.00"}},{"$f":"'MMA Rev-Exp Region 2'!AS$38","v":{"v":0,"d":"$0.00"}},{"$f":"'MMA Rev-Exp Region 2'!AT$38","v":{"v":0,"d":"$0.00"}},{"$f":"'MMA Rev-Exp Region 2'!AU$38","v":{"v":0,"d":"$0.00"}},{"v":0,"d":"$0.00"}]
["MMA",null,null,{"$f":"Jurat!I$1","v":0},{"$f":"Jurat!D$33","v":"00:00:00"},"Q4","2017-12-31","Region 2","Operating Expense","Medical Benefits Expense","Maternity Services","4.3.1","Maternity Settlements",{"$f":"'MMA Rev-Exp Region 2'!AK$39","v":{"v":0,"d":"$0.00"}},{"$f":"'MMA Rev-Exp Region 2'!AL$39","v":{"v":0,"d":"$0.00"}},{"$f":"'MMA Rev-Exp Region 2'!AM$39","v":{"v":0,"d":"$0.00"}},{"$f":"'MMA Rev-Exp Region 2'!AN$39","v":{"v":0,"d":"$0.00"}},{"$f":"'MMA Rev-Exp Region 2'!AO$39","v":{"v":0,"d":"$0.00"}},{"$f":"'MMA Rev-Exp Region 2'!AP$39","v":{"v":0,"d":"$0.00"}},{"$f":"'MMA Rev-Exp Region 2'!AQ$39","v":{"v":0,"d":"$0.00"}},{"$f":"'MMA Rev-Exp Region 2'!AR$39","v":{"v":0,"d":"$0.00"}},{"$f":"'MMA Rev-Exp Region 2'!AS$39","v":{"v":0,"d":"$0.00"}},{"$f":"'MMA Rev-Exp Region 2'!AT$39","v":{"v":0,"d":"$0.00"}},{"$f":"'MMA Rev-Exp Region 2'!AU$39","v":{"v":0,"d":"$0.00"}},{"v":0,"d":"$0.00"}]
["MMA",null,null,{"$f":"Jurat!I$1","v":0},{"$f":"Jurat!D$33","v":"00:00:00"},"Q4","2017-12-31","Region 2","Operating Expense","Medical Benefits Expense","Mental Health Services",5.1,"Mental Health & Substance Abuse FFS",{"$f":"'MMA Rev-Exp Region 2'!AK$41","v":{"v":0,"d":"$0.00"}},{"$f":"'MMA Rev-Exp Region 2'!AL$41","v":{"v":0,"d":"$0.00"}},{"$f":"'MMA Rev-Exp Region 2'!AM$41","v":{"v":0,"d":"$0.00"}},{"$f":"'MMA Rev-Exp Region 2'!AN$41","v":{"v":0,"d":"$0.00"}},{"$f":"'MMA Rev-Exp Region 2'!AO$41","v":{"v":0,"d":"$0.00"}},{"$f":"'MMA Rev-Exp Region 2'!AP$41","v":{"v":0,"d":"$0.00"}},{"$f":"'MMA Rev-Exp Region 2'!AQ$41","v":{"v":0,"d":"$0.00"}},{"$f":"'MMA Rev-Exp Region 2'!AR$41","v":{"v":0,"d":"$0.00"}},{"$f":"'MMA Rev-Exp Region 2'!AS$41","v":{"v":0,"d":"$0.00"}},{"$f":"'MMA Rev-Exp Region 2'!AT$41","v":{"v":0,"d":"$0.00"}},{"$f":"'MMA Rev-Exp Region 2'!AU$41","v":{"v":0,"d":"$0.00"}},{"v":0,"d":"$0.00"}]
["MMA",null,null,{"$f":"Jurat!I$1","v":0},{"$f":"Jurat!D$33","v":"00:00:00"},"Q4","2017-12-31","Region 2","Operating Expense","Medical Benefits Expense","Mental Health Services",5.2,"Mental Health & Substance Abuse Subcapitation",{"$f":"'MMA Rev-Exp Region 2'!AK$42","v":{"v":0,"d":"$0.00"}},{"$f":"'MMA Rev-Exp Region 2'!AL$42","v":{"v":0,"d":"$0.00"}},{"$f":"'MMA Rev-Exp Region 2'!AM$42","v":{"v":0,"d":"$0.00"}},{"$f":"'MMA Rev-Exp Region 2'!AN$42","v":{"v":0,"d":"$0.00"}},{"$f":"'MMA Rev-Exp Region 2'!AO$42","v":{"v":0,"d":"$0.00"}},{"$f":"'MMA Rev-Exp Region 2'!AP$42","v":{"v":0,"d":"$0.00"}},{"$f":"'MMA Rev-Exp Region 2'!AQ$42","v":{"v":0,"d":"$0.00"}},{"$f":"'MMA Rev-Exp Region 2'!AR$42","v":{"v":0,"d":"$0.00"}},{"$f":"'MMA Rev-Exp Region 2'!AS$42","v":{"v":0,"d":"$0.00"}},{"$f":"'MMA Rev-Exp Region 2'!AT$42","v":{"v":0,"d":"$0.00"}},{"$f":"'MMA Rev-Exp Region 2'!AU$42","v":{"v":0,"d":"$0.00"}},{"v":0,"d":"$0.00"}]
["MMA",null,null,{"$f":"Jurat!I$1","v":0},{"$f":"Jurat!D$33","v":"00:00:00"},"Q4","2017-12-31","Region 2","Operating Expense","Medical Benefits Expense","Mental Health Services",5.3,"Ending IBNP for Mental Health & Substance Abuse",{"$f":"'MMA Rev-Exp Region 2'!AK$43","v":{"v":0,"d":"$0.00"}},{"$f":"'MMA Rev-Exp Region 2'!AL$43","v":{"v":0,"d":"$0.00"}},{"$f":"'MMA Rev-Exp Region 2'!AM$43","v":{"v":0,"d":"$0.00"}},{"$f":"'MMA Rev-Exp Region 2'!AN$43","v":{"v":0,"d":"$0.00"}},{"$f":"'MMA Rev-Exp Region 2'!AO$43","v":{"v":0,"d":"$0.00"}},{"$f":"'MMA Rev-Exp Region 2'!AP$43","v":{"v":0,"d":"$0.00"}},{"$f":"'MMA Rev-Exp Region 2'!AQ$43","v":{"v":0,"d":"$0.00"}},{"$f":"'MMA Rev-Exp Region 2'!AR$43","v":{"v":0,"d":"$0.00"}},{"$f":"'MMA Rev-Exp Region 2'!AS$43","v":{"v":0,"d":"$0.00"}},{"$f":"'MMA Rev-Exp Region 2'!AT$43","v":{"v":0,"d":"$0.00"}},{"$f":"'MMA Rev-Exp Region 2'!AU$43","v":{"v":0,"d":"$0.00"}},{"v":0,"d":"$0.00"}]
["MMA",null,null,{"$f":"Jurat!I$1","v":0},{"$f":"Jurat!D$33","v":"00:00:00"},"Q4","2017-12-31","Region 2","Operating Expense","Medical Benefits Expense","Mental Health Services","5.4","Mental Health Settlements",{"$f":"'MMA Rev-Exp Region 2'!AK$44","v":{"v":0,"d":"$0.00"}},{"$f":"'MMA Rev-Exp Region 2'!AL$44","v":{"v":0,"d":"$0.00"}},{"$f":"'MMA Rev-Exp Region 2'!AM$44","v":{"v":0,"d":"$0.00"}},{"$f":"'MMA Rev-Exp Region 2'!AN$44","v":{"v":0,"d":"$0.00"}},{"$f":"'MMA Rev-Exp Region 2'!AO$44","v":{"v":0,"d":"$0.00"}},{"$f":"'MMA Rev-Exp Region 2'!AP$44","v":{"v":0,"d":"$0.00"}},{"$f":"'MMA Rev-Exp Region 2'!AQ$44","v":{"v":0,"d":"$0.00"}},{"$f":"'MMA Rev-Exp Region 2'!AR$44","v":{"v":0,"d":"$0.00"}},{"$f":"'MMA Rev-Exp Region 2'!AS$44","v":{"v":0,"d":"$0.00"}},{"$f":"'MMA Rev-Exp Region 2'!AT$44","v":{"v":0,"d":"$0.00"}},{"$f":"'MMA Rev-Exp Region 2'!AU$44","v":{"v":0,"d":"$0.00"}},{"v":0,"d":"$0.00"}]
["MMA",null,null,{"$f":"Jurat!I$1","v":0},{"$f":"Jurat!D$33","v":"00:00:00"},"Q4","2017-12-31","Region 2","Operating Expense","Medical Benefits Expense","Dental Services",6.1,"Dental FFS",{"$f":"'MMA Rev-Exp Region 2'!AK$46","v":{"v":0,"d":"$0.00"}},{"$f":"'MMA Rev-Exp Region 2'!AL$46","v":{"v":0,"d":"$0.00"}},{"$f":"'MMA Rev-Exp Region 2'!AM$46","v":{"v":0,"d":"$0.00"}},{"$f":"'MMA Rev-Exp Region 2'!AN$46","v":{"v":0,"d":"$0.00"}},{"$f":"'MMA Rev-Exp Region 2'!AO$46","v":{"v":0,"d":"$0.00"}},{"$f":"'MMA Rev-Exp Region 2'!AP$46","v":{"v":0,"d":"$0.00"}},{"$f":"'MMA Rev-Exp Region 2'!AQ$46","v":{"v":0,"d":"$0.00"}},{"$f":"'MMA Rev-Exp Region 2'!AR$46","v":{"v":0,"d":"$0.00"}},{"$f":"'MMA Rev-Exp Region 2'!AS$46","v":{"v":0,"d":"$0.00"}},{"$f":"'MMA Rev-Exp Region 2'!AT$46","v":{"v":0,"d":"$0.00"}},{"$f":"'MMA Rev-Exp Region 2'!AU$46","v":{"v":0,"d":"$0.00"}},{"v":0,"d":"$0.00"}]
["MMA",null,null,{"$f":"Jurat!I$1","v":0},{"$f":"Jurat!D$33","v":"00:00:00"},"Q4","2017-12-31","Region 2","Operating Expense","Medical Benefits Expense","Dental Services",6.2,"Dental Subcapitation",{"$f":"'MMA Rev-Exp Region 2'!AK$47","v":{"v":0,"d":"$0.00"}},{"$f":"'MMA Rev-Exp Region 2'!AL$47","v":{"v":0,"d":"$0.00"}},{"$f":"'MMA Rev-Exp Region 2'!AM$47","v":{"v":0,"d":"$0.00"}},{"$f":"'MMA Rev-Exp Region 2'!AN$47","v":{"v":0,"d":"$0.00"}},{"$f":"'MMA Rev-Exp Region 2'!AO$47","v":{"v":0,"d":"$0.00"}},{"$f":"'MMA Rev-Exp Region 2'!AP$47","v":{"v":0,"d":"$0.00"}},{"$f":"'MMA Rev-Exp Region 2'!AQ$47","v":{"v":0,"d":"$0.00"}},{"$f":"'MMA Rev-Exp Region 2'!AR$47","v":{"v":0,"d":"$0.00"}},{"$f":"'MMA Rev-Exp Region 2'!AS$47","v":{"v":0,"d":"$0.00"}},{"$f":"'MMA Rev-Exp Region 2'!AT$47","v":{"v":0,"d":"$0.00"}},{"$f":"'MMA Rev-Exp Region 2'!AU$47","v":{"v":0,"d":"$0.00"}},{"v":0,"d":"$0.00"}]
["MMA",null,null,{"$f":"Jurat!I$1","v":0},{"$f":"Jurat!D$33","v":"00:00:00"},"Q4","2017-12-31","Region 2","Operating Expense","Medical Benefits Expense","Dental Services",6.3,"Ending IBNP for Dental Services",{"$f":"'MMA Rev-Exp Region 2'!AK$48","v":{"v":0,"d":"$0.00"}},{"$f":"'MMA Rev-Exp Region 2'!AL$48","v":{"v":0,"d":"$0.00"}},{"$f":"'MMA Rev-Exp Region 2'!AM$48","v":{"v":0,"d":"$0.00"}},{"$f":"'MMA Rev-Exp Region 2'!AN$48","v":{"v":0,"d":"$0.00"}},{"$f":"'MMA Rev-Exp Region 2'!AO$48","v":{"v":0,"d":"$0.00"}},{"$f":"'MMA Rev-Exp Region 2'!AP$48","v":{"v":0,"d":"$0.00"}},{"$f":"'MMA Rev-Exp Region 2'!AQ$48","v":{"v":0,"d":"$0.00"}},{"$f":"'MMA Rev-Exp Region 2'!AR$48","v":{"v":0,"d":"$0.00"}},{"$f":"'MMA Rev-Exp Region 2'!AS$48","v":{"v":0,"d":"$0.00"}},{"$f":"'MMA Rev-Exp Region 2'!AT$48","v":{"v":0,"d":"$0.00"}},{"$f":"'MMA Rev-Exp Region 2'!AU$48","v":{"v":0,"d":"$0.00"}},{"v":0,"d":"$0.00"}]
["MMA",null,null,{"$f":"Jurat!I$1","v":0},{"$f":"Jurat!D$33","v":"00:00:00"},"Q4","2017-12-31","Region 2","Operating Expense","Medical Benefits Expense","Dental Services","6.4","Dental Settlements",{"$f":"'MMA Rev-Exp Region 2'!AK$49","v":{"v":0,"d":"$0.00"}},{"$f":"'MMA Rev-Exp Region 2'!AL$49","v":{"v":0,"d":"$0.00"}},{"$f":"'MMA Rev-Exp Region 2'!AM$49","v":{"v":0,"d":"$0.00"}},{"$f":"'MMA Rev-Exp Region 2'!AN$49","v":{"v":0,"d":"$0.00"}},{"$f":"'MMA Rev-Exp Region 2'!AO$49","v":{"v":0,"d":"$0.00"}},{"$f":"'MMA Rev-Exp Region 2'!AP$49","v":{"v":0,"d":"$0.00"}},{"$f":"'MMA Rev-Exp Region 2'!AQ$49","v":{"v":0,"d":"$0.00"}},{"$f":"'MMA Rev-Exp Region 2'!AR$49","v":{"v":0,"d":"$0.00"}},{"$f":"'MMA Rev-Exp Region 2'!AS$49","v":{"v":0,"d":"$0.00"}},{"$f":"'MMA Rev-Exp Region 2'!AT$49","v":{"v":0,"d":"$0.00"}},{"$f":"'MMA Rev-Exp Region 2'!AU$49","v":{"v":0,"d":"$0.00"}},{"v":0,"d":"$0.00"}]
["MMA",null,null,{"$f":"Jurat!I$1","v":0},{"$f":"Jurat!D$33","v":"00:00:00"},"Q4","2017-12-31","Region 2","Operating Expense","Medical Benefits Expense","Transportation Services",7.1,"Transportation FFS",{"$f":"'MMA Rev-Exp Region 2'!AK$51","v":{"v":0,"d":"$0.00"}},{"$f":"'MMA Rev-Exp Region 2'!AL$51","v":{"v":0,"d":"$0.00"}},{"$f":"'MMA Rev-Exp Region 2'!AM$51","v":{"v":0,"d":"$0.00"}},{"$f":"'MMA Rev-Exp Region 2'!AN$51","v":{"v":0,"d":"$0.00"}},{"$f":"'MMA Rev-Exp Region 2'!AO$51","v":{"v":0,"d":"$0.00"}},{"$f":"'MMA Rev-Exp Region 2'!AP$51","v":{"v":0,"d":"$0.00"}},{"$f":"'MMA Rev-Exp Region 2'!AQ$51","v":{"v":0,"d":"$0.00"}},{"$f":"'MMA Rev-Exp Region 2'!AR$51","v":{"v":0,"d":"$0.00"}},{"$f":"'MMA Rev-Exp Region 2'!AS$51","v":{"v":0,"d":"$0.00"}},{"$f":"'MMA Rev-Exp Region 2'!AT$51","v":{"v":0,"d":"$0.00"}},{"$f":"'MMA Rev-Exp Region 2'!AU$51","v":{"v":0,"d":"$0.00"}},{"v":0,"d":"$0.00"}]
["MMA",null,null,{"$f":"Jurat!I$1","v":0},{"$f":"Jurat!D$33","v":"00:00:00"},"Q4","2017-12-31","Region 2","Operating Expense","Medical Benefits Expense","Transportation Services",7.2,"Transportation Subcapitation",{"$f":"'MMA Rev-Exp Region 2'!AK$52","v":{"v":0,"d":"$0.00"}},{"$f":"'MMA Rev-Exp Region 2'!AL$52","v":{"v":0,"d":"$0.00"}},{"$f":"'MMA Rev-Exp Region 2'!AM$52","v":{"v":0,"d":"$0.00"}},{"$f":"'MMA Rev-Exp Region 2'!AN$52","v":{"v":0,"d":"$0.00"}},{"$f":"'MMA Rev-Exp Region 2'!AO$52","v":{"v":0,"d":"$0.00"}},{"$f":"'MMA Rev-Exp Region 2'!AP$52","v":{"v":0,"d":"$0.00"}},{"$f":"'MMA Rev-Exp Region 2'!AQ$52","v":{"v":0,"d":"$0.00"}},{"$f":"'MMA Rev-Exp Region 2'!AR$52","v":{"v":0,"d":"$0.00"}},{"$f":"'MMA Rev-Exp Region 2'!AS$52","v":{"v":0,"d":"$0.00"}},{"$f":"'MMA Rev-Exp Region 2'!AT$52","v":{"v":0,"d":"$0.00"}},{"$f":"'MMA Rev-Exp Region 2'!AU$52","v":{"v":0,"d":"$0.00"}},{"v":0,"d":"$0.00"}]
["MMA",null,null,{"$f":"Jurat!I$1","v":0},{"$f":"Jurat!D$33","v":"00:00:00"},"Q4","2017-12-31","Region 2","Operating Expense","Medical Benefits Expense","Transportation Services",7.3,"Ending IBNP for Transportation",{"$f":"'MMA Rev-Exp Region 2'!AK$53","v":{"v":0,"d":"$0.00"}},{"$f":"'MMA Rev-Exp Region 2'!AL$53","v":{"v":0,"d":"$0.00"}},{"$f":"'MMA Rev-Exp Region 2'!AM$53","v":{"v":0,"d":"$0.00"}},{"$f":"'MMA Rev-Exp Region 2'!AN$53","v":{"v":0,"d":"$0.00"}},{"$f":"'MMA Rev-Exp Region 2'!AO$53","v":{"v":0,"d":"$0.00"}},{"$f":"'MMA Rev-Exp Region 2'!AP$53","v":{"v":0,"d":"$0.00"}},{"$f":"'MMA Rev-Exp Region 2'!AQ$53","v":{"v":0,"d":"$0.00"}},{"$f":"'MMA Rev-Exp Region 2'!AR$53","v":{"v":0,"d":"$0.00"}},{"$f":"'MMA Rev-Exp Region 2'!AS$53","v":{"v":0,"d":"$0.00"}},{"$f":"'MMA Rev-Exp Region 2'!AT$53","v":{"v":0,"d":"$0.00"}},{"$f":"'MMA Rev-Exp Region 2'!AU$53","v":{"v":0,"d":"$0.00"}},{"v":0,"d":"$0.00"}]
["MMA",null,null,{"$f":"Jurat!I$1","v":0},{"$f":"Jurat!D$33","v":"00:00:00"},"Q4","2017-12-31","Region 2","Operating Expense","Medical Benefits Expense","Transportation Services","7.4","Transportation Settlements",{"$f":"'MMA Rev-Exp Region 2'!AK$54","v":{"v":0,"d":"$0.00"}},{"$f":"'MMA Rev-Exp Region 2'!AL$54","v":{"v":0,"d":"$0.00"}},{"$f":"'MMA Rev-Exp Region 2'!AM$54","v":{"v":0,"d":"$0.00"}},{"$f":"'MMA Rev-Exp Region 2'!AN$54","v":{"v":0,"d":"$0.00"}},{"$f":"'MMA Rev-Exp Region 2'!AO$54","v":{"v":0,"d":"$0.00"}},{"$f":"'MMA Rev-Exp Region 2'!AP$54","v":{"v":0,"d":"$0.00"}},{"$f":"'MMA Rev-Exp Region 2'!AQ$54","v":{"v":0,"d":"$0.00"}},{"$f":"'MMA Rev-Exp Region 2'!AR$54","v":{"v":0,"d":"$0.00"}},{"$f":"'MMA Rev-Exp Region 2'!AS$54","v":{"v":0,"d":"$0.00"}},{"$f":"'MMA Rev-Exp Region 2'!AT$54","v":{"v":0,"d":"$0.00"}},{"$f":"'MMA Rev-Exp Region 2'!AU$54","v":{"v":0,"d":"$0.00"}},{"v":0,"d":"$0.00"}]
["MMA",null,null,{"$f":"Jurat!I$1","v":0},{"$f":"Jurat!D$33","v":"00:00:00"},"Q4","2017-12-31","Region 2","Operating Expense","Medical Benefits Expense","Pharmacy Services",8.1,"Prescription Drugs FFS",{"$f":"'MMA Rev-Exp Region 2'!AK$56","v":{"v":0,"d":"$0.00"}},{"$f":"'MMA Rev-Exp Region 2'!AL$56","v":{"v":0,"d":"$0.00"}},{"$f":"'MMA Rev-Exp Region 2'!AM$56","v":{"v":0,"d":"$0.00"}},{"$f":"'MMA Rev-Exp Region 2'!AN$56","v":{"v":0,"d":"$0.00"}},{"$f":"'MMA Rev-Exp Region 2'!AO$56","v":{"v":0,"d":"$0.00"}},{"$f":"'MMA Rev-Exp Region 2'!AP$56","v":{"v":0,"d":"$0.00"}},{"$f":"'MMA Rev-Exp Region 2'!AQ$56","v":{"v":0,"d":"$0.00"}},{"$f":"'MMA Rev-Exp Region 2'!AR$56","v":{"v":0,"d":"$0.00"}},{"$f":"'MMA Rev-Exp Region 2'!AS$56","v":{"v":0,"d":"$0.00"}},{"$f":"'MMA Rev-Exp Region 2'!AT$56","v":{"v":0,"d":"$0.00"}},{"$f":"'MMA Rev-Exp Region 2'!AU$56","v":{"v":0,"d":"$0.00"}},{"v":0,"d":"$0.00"}]
["MMA",null,null,{"$f":"Jurat!I$1","v":0},{"$f":"Jurat!D$33","v":"00:00:00"},"Q4","2017-12-31","Region 2","Operating Expense","Medical Benefits Expense","Pharmacy Services","8.2","Hepatitis C Prescription Drug FFS",{"$f":"'MMA Rev-Exp Region 2'!AK$57","v":{"v":0,"d":"$0.00"}},{"$f":"'MMA Rev-Exp Region 2'!AL$57","v":{"v":0,"d":"$0.00"}},{"$f":"'MMA Rev-Exp Region 2'!AM$57","v":{"v":0,"d":"$0.00"}},{"$f":"'MMA Rev-Exp Region 2'!AN$57","v":{"v":0,"d":"$0.00"}},{"$f":"'MMA Rev-Exp Region 2'!AO$57","v":{"v":0,"d":"$0.00"}},{"$f":"'MMA Rev-Exp Region 2'!AP$57","v":{"v":0,"d":"$0.00"}},{"$f":"'MMA Rev-Exp Region 2'!AQ$57","v":{"v":0,"d":"$0.00"}},{"$f":"'MMA Rev-Exp Region 2'!AR$57","v":{"v":0,"d":"$0.00"}},{"$f":"'MMA Rev-Exp Region 2'!AS$57","v":{"v":0,"d":"$0.00"}},{"$f":"'MMA Rev-Exp Region 2'!AT$57","v":{"v":0,"d":"$0.00"}},{"$f":"'MMA Rev-Exp Region 2'!AU$57","v":{"v":0,"d":"$0.00"}},{"v":0,"d":"$0.00"}]
["MMA",null,null,{"$f":"Jurat!I$1","v":0},{"$f":"Jurat!D$33","v":"00:00:00"},"Q4","2017-12-31","Region 2","Operating Expense","Medical Benefits Expense","Pharmacy Services","8.3","Ending IBNP for Prescription Drugs",{"$f":"'MMA Rev-Exp Region 2'!AK$58","v":{"v":0,"d":"$0.00"}},{"$f":"'MMA Rev-Exp Region 2'!AL$58","v":{"v":0,"d":"$0.00"}},{"$f":"'MMA Rev-Exp Region 2'!AM$58","v":{"v":0,"d":"$0.00"}},{"$f":"'MMA Rev-Exp Region 2'!AN$58","v":{"v":0,"d":"$0.00"}},{"$f":"'MMA Rev-Exp Region 2'!AO$58","v":{"v":0,"d":"$0.00"}},{"$f":"'MMA Rev-Exp Region 2'!AP$58","v":{"v":0,"d":"$0.00"}},{"$f":"'MMA Rev-Exp Region 2'!AQ$58","v":{"v":0,"d":"$0.00"}},{"$f":"'MMA Rev-Exp Region 2'!AR$58","v":{"v":0,"d":"$0.00"}},{"$f":"'MMA Rev-Exp Region 2'!AS$58","v":{"v":0,"d":"$0.00"}},{"$f":"'MMA Rev-Exp Region 2'!AT$58","v":{"v":0,"d":"$0.00"}},{"$f":"'MMA Rev-Exp Region 2'!AU$58","v":{"v":0,"d":"$0.00"}},{"v":0,"d":"$0.00"}]
["MMA",null,null,{"$f":"Jurat!I$1","v":0},{"$f":"Jurat!D$33","v":"00:00:00"},"Q4","2017-12-31","Region 2","Operating Expense","Medical Benefits Expense","Pharmacy Services","8.4","Prescription Drug Rebates ",{"$f":"'MMA Rev-Exp Region 2'!AK$59","v":{"v":0,"d":"$0.00"}},{"$f":"'MMA Rev-Exp Region 2'!AL$59","v":{"v":0,"d":"$0.00"}},{"$f":"'MMA Rev-Exp Region 2'!AM$59","v":{"v":0,"d":"$0.00"}},{"$f":"'MMA Rev-Exp Region 2'!AN$59","v":{"v":0,"d":"$0.00"}},{"$f":"'MMA Rev-Exp Region 2'!AO$59","v":{"v":0,"d":"$0.00"}},{"$f":"'MMA Rev-Exp Region 2'!AP$59","v":{"v":0,"d":"$0.00"}},{"$f":"'MMA Rev-Exp Region 2'!AQ$59","v":{"v":0,"d":"$0.00"}},{"$f":"'MMA Rev-Exp Region 2'!AR$59","v":{"v":0,"d":"$0.00"}},{"$f":"'MMA Rev-Exp Region 2'!AS$59","v":{"v":0,"d":"$0.00"}},{"$f":"'MMA Rev-Exp Region 2'!AT$59","v":{"v":0,"d":"$0.00"}},{"$f":"'MMA Rev-Exp Region 2'!AU$59","v":{"v":0,"d":"$0.00"}},{"v":0,"d":"$0.00"}]
["MMA",null,null,{"$f":"Jurat!I$1","v":0},{"$f":"Jurat!D$33","v":"00:00:00"},"Q4","2017-12-31","Region 2","Operating Expense","Medical Benefits Expense","Pharmacy Services","8.5","Ending accrual for Rebates receivable",{"$f":"'MMA Rev-Exp Region 2'!AK$60","v":{"v":0,"d":"$0.00"}},{"$f":"'MMA Rev-Exp Region 2'!AL$60","v":{"v":0,"d":"$0.00"}},{"$f":"'MMA Rev-Exp Region 2'!AM$60","v":{"v":0,"d":"$0.00"}},{"$f":"'MMA Rev-Exp Region 2'!AN$60","v":{"v":0,"d":"$0.00"}},{"$f":"'MMA Rev-Exp Region 2'!AO$60","v":{"v":0,"d":"$0.00"}},{"$f":"'MMA Rev-Exp Region 2'!AP$60","v":{"v":0,"d":"$0.00"}},{"$f":"'MMA Rev-Exp Region 2'!AQ$60","v":{"v":0,"d":"$0.00"}},{"$f":"'MMA Rev-Exp Region 2'!AR$60","v":{"v":0,"d":"$0.00"}},{"$f":"'MMA Rev-Exp Region 2'!AS$60","v":{"v":0,"d":"$0.00"}},{"$f":"'MMA Rev-Exp Region 2'!AT$60","v":{"v":0,"d":"$0.00"}},{"$f":"'MMA Rev-Exp Region 2'!AU$60","v":{"v":0,"d":"$0.00"}},{"v":0,"d":"$0.00"}]
["MMA",null,null,{"$f":"Jurat!I$1","v":0},{"$f":"Jurat!D$33","v":"00:00:00"},"Q4","2017-12-31","Region 2","Operating Expense","Medical Benefits Expense","Pharmacy Services","8.6","Prescription Drugs Subcapitation",{"$f":"'MMA Rev-Exp Region 2'!AK$61","v":{"v":0,"d":"$0.00"}},{"$f":"'MMA Rev-Exp Region 2'!AL$61","v":{"v":0,"d":"$0.00"}},{"$f":"'MMA Rev-Exp Region 2'!AM$61","v":{"v":0,"d":"$0.00"}},{"$f":"'MMA Rev-Exp Region 2'!AN$61","v":{"v":0,"d":"$0.00"}},{"$f":"'MMA Rev-Exp Region 2'!AO$61","v":{"v":0,"d":"$0.00"}},{"$f":"'MMA Rev-Exp Region 2'!AP$61","v":{"v":0,"d":"$0.00"}},{"$f":"'MMA Rev-Exp Region 2'!AQ$61","v":{"v":0,"d":"$0.00"}},{"$f":"'MMA Rev-Exp Region 2'!AR$61","v":{"v":0,"d":"$0.00"}},{"$f":"'MMA Rev-Exp Region 2'!AS$61","v":{"v":0,"d":"$0.00"}},{"$f":"'MMA Rev-Exp Region 2'!AT$61","v":{"v":0,"d":"$0.00"}},{"$f":"'MMA Rev-Exp Region 2'!AU$61","v":{"v":0,"d":"$0.00"}},{"v":0,"d":"$0.00"}]
["MMA",null,null,{"$f":"Jurat!I$1","v":0},{"$f":"Jurat!D$33","v":"00:00:00"},"Q4","2017-12-31","Region 2","Operating Expense","Medical Benefits Expense","Pharmacy Services","8.7","Prescription Drug Settlements",{"$f":"'MMA Rev-Exp Region 2'!AK$62","v":{"v":0,"d":"$0.00"}},{"$f":"'MMA Rev-Exp Region 2'!AL$62","v":{"v":0,"d":"$0.00"}},{"$f":"'MMA Rev-Exp Region 2'!AM$62","v":{"v":0,"d":"$0.00"}},{"$f":"'MMA Rev-Exp Region 2'!AN$62","v":{"v":0,"d":"$0.00"}},{"$f":"'MMA Rev-Exp Region 2'!AO$62","v":{"v":0,"d":"$0.00"}},{"$f":"'MMA Rev-Exp Region 2'!AP$62","v":{"v":0,"d":"$0.00"}},{"$f":"'MMA Rev-Exp Region 2'!AQ$62","v":{"v":0,"d":"$0.00"}},{"$f":"'MMA Rev-Exp Region 2'!AR$62","v":{"v":0,"d":"$0.00"}},{"$f":"'MMA Rev-Exp Region 2'!AS$62","v":{"v":0,"d":"$0.00"}},{"$f":"'MMA Rev-Exp Region 2'!AT$62","v":{"v":0,"d":"$0.00"}},{"$f":"'MMA Rev-Exp Region 2'!AU$62","v":{"v":0,"d":"$0.00"}},{"v":0,"d":"$0.00"}]
["MMA",null,null,{"$f":"Jurat!I$1","v":0},{"$f":"Jurat!D$33","v":"00:00:00"},"Q4","2017-12-31","Region 2","Operating Expense","Medical Benefits Expense","Other MMA Services",9.1,"Home Health, Private Duty Nursing, Personal Care FFS",{"$f":"'MMA Rev-Exp Region 2'!AK$64","v":{"v":0,"d":"$0.00"}},{"$f":"'MMA Rev-Exp Region 2'!AL$64","v":{"v":0,"d":"$0.00"}},{"$f":"'MMA Rev-Exp Region 2'!AM$64","v":{"v":0,"d":"$0.00"}},{"$f":"'MMA Rev-Exp Region 2'!AN$64","v":{"v":0,"d":"$0.00"}},{"$f":"'MMA Rev-Exp Region 2'!AO$64","v":{"v":0,"d":"$0.00"}},{"$f":"'MMA Rev-Exp Region 2'!AP$64","v":{"v":0,"d":"$0.00"}},{"$f":"'MMA Rev-Exp Region 2'!AQ$64","v":{"v":0,"d":"$0.00"}},{"$f":"'MMA Rev-Exp Region 2'!AR$64","v":{"v":0,"d":"$0.00"}},{"$f":"'MMA Rev-Exp Region 2'!AS$64","v":{"v":0,"d":"$0.00"}},{"$f":"'MMA Rev-Exp Region 2'!AT$64","v":{"v":0,"d":"$0.00"}},{"$f":"'MMA Rev-Exp Region 2'!AU$64","v":{"v":0,"d":"$0.00"}},{"v":0,"d":"$0.00"}]
["MMA",null,null,{"$f":"Jurat!I$1","v":0},{"$f":"Jurat!D$33","v":"00:00:00"},"Q4","2017-12-31","Region 2","Operating Expense","Medical Benefits Expense","Other MMA Services","9.2","Hospice FFS",{"$f":"'MMA Rev-Exp Region 2'!AK$65","v":{"v":0,"d":"$0.00"}},{"$f":"'MMA Rev-Exp Region 2'!AL$65","v":{"v":0,"d":"$0.00"}},{"$f":"'MMA Rev-Exp Region 2'!AM$65","v":{"v":0,"d":"$0.00"}},{"$f":"'MMA Rev-Exp Region 2'!AN$65","v":{"v":0,"d":"$0.00"}},{"$f":"'MMA Rev-Exp Region 2'!AO$65","v":{"v":0,"d":"$0.00"}},{"$f":"'MMA Rev-Exp Region 2'!AP$65","v":{"v":0,"d":"$0.00"}},{"$f":"'MMA Rev-Exp Region 2'!AQ$65","v":{"v":0,"d":"$0.00"}},{"$f":"'MMA Rev-Exp Region 2'!AR$65","v":{"v":0,"d":"$0.00"}},{"$f":"'MMA Rev-Exp Region 2'!AS$65","v":{"v":0,"d":"$0.00"}},{"$f":"'MMA Rev-Exp Region 2'!AT$65","v":{"v":0,"d":"$0.00"}},{"$f":"'MMA Rev-Exp Region 2'!AU$65","v":{"v":0,"d":"$0.00"}},{"v":0,"d":"$0.00"}]
["MMA",null,null,{"$f":"Jurat!I$1","v":0},{"$f":"Jurat!D$33","v":"00:00:00"},"Q4","2017-12-31","Region 2","Operating Expense","Medical Benefits Expense","Other MMA Services","9.3","DME FFS",{"$f":"'MMA Rev-Exp Region 2'!AK$66","v":{"v":0,"d":"$0.00"}},{"$f":"'MMA Rev-Exp Region 2'!AL$66","v":{"v":0,"d":"$0.00"}},{"$f":"'MMA Rev-Exp Region 2'!AM$66","v":{"v":0,"d":"$0.00"}},{"$f":"'MMA Rev-Exp Region 2'!AN$66","v":{"v":0,"d":"$0.00"}},{"$f":"'MMA Rev-Exp Region 2'!AO$66","v":{"v":0,"d":"$0.00"}},{"$f":"'MMA Rev-Exp Region 2'!AP$66","v":{"v":0,"d":"$0.00"}},{"$f":"'MMA Rev-Exp Region 2'!AQ$66","v":{"v":0,"d":"$0.00"}},{"$f":"'MMA Rev-Exp Region 2'!AR$66","v":{"v":0,"d":"$0.00"}},{"$f":"'MMA Rev-Exp Region 2'!AS$66","v":{"v":0,"d":"$0.00"}},{"$f":"'MMA Rev-Exp Region 2'!AT$66","v":{"v":0,"d":"$0.00"}},{"$f":"'MMA Rev-Exp Region 2'!AU$66","v":{"v":0,"d":"$0.00"}},{"v":0,"d":"$0.00"}]
["MMA",null,null,{"$f":"Jurat!I$1","v":0},{"$f":"Jurat!D$33","v":"00:00:00"},"Q4","2017-12-31","Region 2","Operating Expense","Medical Benefits Expense","Other MMA Services","9.4","Other State Plan Services FFS",{"$f":"'MMA Rev-Exp Region 2'!AK$67","v":{"v":0,"d":"$0.00"}},{"$f":"'MMA Rev-Exp Region 2'!AL$67","v":{"v":0,"d":"$0.00"}},{"$f":"'MMA Rev-Exp Region 2'!AM$67","v":{"v":0,"d":"$0.00"}},{"$f":"'MMA Rev-Exp Region 2'!AN$67","v":{"v":0,"d":"$0.00"}},{"$f":"'MMA Rev-Exp Region 2'!AO$67","v":{"v":0,"d":"$0.00"}},{"$f":"'MMA Rev-Exp Region 2'!AP$67","v":{"v":0,"d":"$0.00"}},{"$f":"'MMA Rev-Exp Region 2'!AQ$67","v":{"v":0,"d":"$0.00"}},{"$f":"'MMA Rev-Exp Region 2'!AR$67","v":{"v":0,"d":"$0.00"}},{"$f":"'MMA Rev-Exp Region 2'!AS$67","v":{"v":0,"d":"$0.00"}},{"$f":"'MMA Rev-Exp Region 2'!AT$67","v":{"v":0,"d":"$0.00"}},{"$f":"'MMA Rev-Exp Region 2'!AU$67","v":{"v":0,"d":"$0.00"}},{"v":0,"d":"$0.00"}]
["MMA",null,null,{"$f":"Jurat!I$1","v":0},{"$f":"Jurat!D$33","v":"00:00:00"},"Q4","2017-12-31","Region 2","Operating Expense","Medical Benefits Expense","Other MMA Services","9.5","Other Services Subcapitation",{"$f":"'MMA Rev-Exp Region 2'!AK$68","v":{"v":0,"d":"$0.00"}},{"$f":"'MMA Rev-Exp Region 2'!AL$68","v":{"v":0,"d":"$0.00"}},{"$f":"'MMA Rev-Exp Region 2'!AM$68","v":{"v":0,"d":"$0.00"}},{"$f":"'MMA Rev-Exp Region 2'!AN$68","v":{"v":0,"d":"$0.00"}},{"$f":"'MMA Rev-Exp Region 2'!AO$68","v":{"v":0,"d":"$0.00"}},{"$f":"'MMA Rev-Exp Region 2'!AP$68","v":{"v":0,"d":"$0.00"}},{"$f":"'MMA Rev-Exp Region 2'!AQ$68","v":{"v":0,"d":"$0.00"}},{"$f":"'MMA Rev-Exp Region 2'!AR$68","v":{"v":0,"d":"$0.00"}},{"$f":"'MMA Rev-Exp Region 2'!AS$68","v":{"v":0,"d":"$0.00"}},{"$f":"'MMA Rev-Exp Region 2'!AT$68","v":{"v":0,"d":"$0.00"}},{"$f":"'MMA Rev-Exp Region 2'!AU$68","v":{"v":0,"d":"$0.00"}},{"v":0,"d":"$0.00"}]
["MMA",null,null,{"$f":"Jurat!I$1","v":0},{"$f":"Jurat!D$33","v":"00:00:00"},"Q4","2017-12-31","Region 2","Operating Expense","Medical Benefits Expense","Other MMA Services","9.6","Ending IBNP for Other Services",{"$f":"'MMA Rev-Exp Region 2'!AK$69","v":{"v":0,"d":"$0.00"}},{"$f":"'MMA Rev-Exp Region 2'!AL$69","v":{"v":0,"d":"$0.00"}},{"$f":"'MMA Rev-Exp Region 2'!AM$69","v":{"v":0,"d":"$0.00"}},{"$f":"'MMA Rev-Exp Region 2'!AN$69","v":{"v":0,"d":"$0.00"}},{"$f":"'MMA Rev-Exp Region 2'!AO$69","v":{"v":0,"d":"$0.00"}},{"$f":"'MMA Rev-Exp Region 2'!AP$69","v":{"v":0,"d":"$0.00"}},{"$f":"'MMA Rev-Exp Region 2'!AQ$69","v":{"v":0,"d":"$0.00"}},{"$f":"'MMA Rev-Exp Region 2'!AR$69","v":{"v":0,"d":"$0.00"}},{"$f":"'MMA Rev-Exp Region 2'!AS$69","v":{"v":0,"d":"$0.00"}},{"$f":"'MMA Rev-Exp Region 2'!AT$69","v":{"v":0,"d":"$0.00"}},{"$f":"'MMA Rev-Exp Region 2'!AU$69","v":{"v":0,"d":"$0.00"}},{"v":0,"d":"$0.00"}]
["MMA",null,null,{"$f":"Jurat!I$1","v":0},{"$f":"Jurat!D$33","v":"00:00:00"},"Q4","2017-12-31","Region 2","Operating Expense","Medical Benefits Expense","Other MMA Services","9.7","Other Services Settlements",{"$f":"'MMA Rev-Exp Region 2'!AK$70","v":{"v":0,"d":"$0.00"}},{"$f":"'MMA Rev-Exp Region 2'!AL$70","v":{"v":0,"d":"$0.00"}},{"$f":"'MMA Rev-Exp Region 2'!AM$70","v":{"v":0,"d":"$0.00"}},{"$f":"'MMA Rev-Exp Region 2'!AN$70","v":{"v":0,"d":"$0.00"}},{"$f":"'MMA Rev-Exp Region 2'!AO$70","v":{"v":0,"d":"$0.00"}},{"$f":"'MMA Rev-Exp Region 2'!AP$70","v":{"v":0,"d":"$0.00"}},{"$f":"'MMA Rev-Exp Region 2'!AQ$70","v":{"v":0,"d":"$0.00"}},{"$f":"'MMA Rev-Exp Region 2'!AR$70","v":{"v":0,"d":"$0.00"}},{"$f":"'MMA Rev-Exp Region 2'!AS$70","v":{"v":0,"d":"$0.00"}},{"$f":"'MMA Rev-Exp Region 2'!AT$70","v":{"v":0,"d":"$0.00"}},{"$f":"'MMA Rev-Exp Region 2'!AU$70","v":{"v":0,"d":"$0.00"}},{"v":0,"d":"$0.00"}]
["MMA",null,null,{"$f":"Jurat!I$1","v":0},{"$f":"Jurat!D$33","v":"00:00:00"},"Q4","2017-12-31","Region 2","Operating Expense","Medical Benefits Expense","Expanded Benefits","10.1","Expanded Benefits FFS",{"$f":"'MMA Rev-Exp Region 2'!AK$72","v":{"v":0,"d":"$0.00"}},{"$f":"'MMA Rev-Exp Region 2'!AL$72","v":{"v":0,"d":"$0.00"}},{"$f":"'MMA Rev-Exp Region 2'!AM$72","v":{"v":0,"d":"$0.00"}},{"$f":"'MMA Rev-Exp Region 2'!AN$72","v":{"v":0,"d":"$0.00"}},{"$f":"'MMA Rev-Exp Region 2'!AO$72","v":{"v":0,"d":"$0.00"}},{"$f":"'MMA Rev-Exp Region 2'!AP$72","v":{"v":0,"d":"$0.00"}},{"$f":"'MMA Rev-Exp Region 2'!AQ$72","v":{"v":0,"d":"$0.00"}},{"$f":"'MMA Rev-Exp Region 2'!AR$72","v":{"v":0,"d":"$0.00"}},{"$f":"'MMA Rev-Exp Region 2'!AS$72","v":{"v":0,"d":"$0.00"}},{"$f":"'MMA Rev-Exp Region 2'!AT$72","v":{"v":0,"d":"$0.00"}},{"$f":"'MMA Rev-Exp Region 2'!AU$72","v":{"v":0,"d":"$0.00"}},{"v":0,"d":"$0.00"}]
["MMA",null,null,{"$f":"Jurat!I$1","v":0},{"$f":"Jurat!D$33","v":"00:00:00"},"Q4","2017-12-31","Region 2","Operating Expense","Medical Benefits Expense","Expanded Benefits","10.2","Expanded benefits Subcapitation",{"$f":"'MMA Rev-Exp Region 2'!AK$73","v":{"v":0,"d":"$0.00"}},{"$f":"'MMA Rev-Exp Region 2'!AL$73","v":{"v":0,"d":"$0.00"}},{"$f":"'MMA Rev-Exp Region 2'!AM$73","v":{"v":0,"d":"$0.00"}},{"$f":"'MMA Rev-Exp Region 2'!AN$73","v":{"v":0,"d":"$0.00"}},{"$f":"'MMA Rev-Exp Region 2'!AO$73","v":{"v":0,"d":"$0.00"}},{"$f":"'MMA Rev-Exp Region 2'!AP$73","v":{"v":0,"d":"$0.00"}},{"$f":"'MMA Rev-Exp Region 2'!AQ$73","v":{"v":0,"d":"$0.00"}},{"$f":"'MMA Rev-Exp Region 2'!AR$73","v":{"v":0,"d":"$0.00"}},{"$f":"'MMA Rev-Exp Region 2'!AS$73","v":{"v":0,"d":"$0.00"}},{"$f":"'MMA Rev-Exp Region 2'!AT$73","v":{"v":0,"d":"$0.00"}},{"$f":"'MMA Rev-Exp Region 2'!AU$73","v":{"v":0,"d":"$0.00"}},{"v":0,"d":"$0.00"}]
["MMA",null,null,{"$f":"Jurat!I$1","v":0},{"$f":"Jurat!D$33","v":"00:00:00"},"Q4","2017-12-31","Region 2","Operating Expense","Medical Benefits Expense","Expanded Benefits","10.3","Ending IBNP for Expanded Benefits",{"$f":"'MMA Rev-Exp Region 2'!AK$74","v":{"v":0,"d":"$0.00"}},{"$f":"'MMA Rev-Exp Region 2'!AL$74","v":{"v":0,"d":"$0.00"}},{"$f":"'MMA Rev-Exp Region 2'!AM$74","v":{"v":0,"d":"$0.00"}},{"$f":"'MMA Rev-Exp Region 2'!AN$74","v":{"v":0,"d":"$0.00"}},{"$f":"'MMA Rev-Exp Region 2'!AO$74","v":{"v":0,"d":"$0.00"}},{"$f":"'MMA Rev-Exp Region 2'!AP$74","v":{"v":0,"d":"$0.00"}},{"$f":"'MMA Rev-Exp Region 2'!AQ$74","v":{"v":0,"d":"$0.00"}},{"$f":"'MMA Rev-Exp Region 2'!AR$74","v":{"v":0,"d":"$0.00"}},{"$f":"'MMA Rev-Exp Region 2'!AS$74","v":{"v":0,"d":"$0.00"}},{"$f":"'MMA Rev-Exp Region 2'!AT$74","v":{"v":0,"d":"$0.00"}},{"$f":"'MMA Rev-Exp Region 2'!AU$74","v":{"v":0,"d":"$0.00"}},{"v":0,"d":"$0.00"}]
["MMA",null,null,{"$f":"Jurat!I$1","v":0},{"$f":"Jurat!D$33","v":"00:00:00"},"Q4","2017-12-31","Region 2","Operating Expense","Medical Benefits Expense","Expanded Benefits","10.4","Expanded Benefits Settlements",{"$f":"'MMA Rev-Exp Region 2'!AK$75","v":{"v":0,"d":"$0.00"}},{"$f":"'MMA Rev-Exp Region 2'!AL$75","v":{"v":0,"d":"$0.00"}},{"$f":"'MMA Rev-Exp Region 2'!AM$75","v":{"v":0,"d":"$0.00"}},{"$f":"'MMA Rev-Exp Region 2'!AN$75","v":{"v":0,"d":"$0.00"}},{"$f":"'MMA Rev-Exp Region 2'!AO$75","v":{"v":0,"d":"$0.00"}},{"$f":"'MMA Rev-Exp Region 2'!AP$75","v":{"v":0,"d":"$0.00"}},{"$f":"'MMA Rev-Exp Region 2'!AQ$75","v":{"v":0,"d":"$0.00"}},{"$f":"'MMA Rev-Exp Region 2'!AR$75","v":{"v":0,"d":"$0.00"}},{"$f":"'MMA Rev-Exp Region 2'!AS$75","v":{"v":0,"d":"$0.00"}},{"$f":"'MMA Rev-Exp Region 2'!AT$75","v":{"v":0,"d":"$0.00"}},{"$f":"'MMA Rev-Exp Region 2'!AU$75","v":{"v":0,"d":"$0.00"}},{"v":0,"d":"$0.00"}]
["MMA",null,null,{"$f":"Jurat!I$1","v":0},{"$f":"Jurat!D$33","v":"00:00:00"},"Q4","2017-12-31","Region 2","Operating Expense","Medical Benefits Expense","Other Medical","11.5","TPL & Fraud/Abuse Recoveries",{"$f":"'MMA Rev-Exp Region 2'!AK$81","v":{"v":0,"d":"$0.00"}},{"$f":"'MMA Rev-Exp Region 2'!AL$81","v":{"v":0,"d":"$0.00"}},{"$f":"'MMA Rev-Exp Region 2'!AM$81","v":{"v":0,"d":"$0.00"}},{"$f":"'MMA Rev-Exp Region 2'!AN$81","v":{"v":0,"d":"$0.00"}},{"$f":"'MMA Rev-Exp Region 2'!AO$81","v":{"v":0,"d":"$0.00"}},{"$f":"'MMA Rev-Exp Region 2'!AP$81","v":{"v":0,"d":"$0.00"}},{"$f":"'MMA Rev-Exp Region 2'!AQ$81","v":{"v":0,"d":"$0.00"}},{"$f":"'MMA Rev-Exp Region 2'!AR$81","v":{"v":0,"d":"$0.00"}},{"$f":"'MMA Rev-Exp Region 2'!AS$81","v":{"v":0,"d":"$0.00"}},{"$f":"'MMA Rev-Exp Region 2'!AT$81","v":{"v":0,"d":"$0.00"}},{"$f":"'MMA Rev-Exp Region 2'!AU$81","v":{"v":0,"d":"$0.00"}},{"v":0,"d":"$0.00"}]
["MMA",null,null,{"$f":"Jurat!I$1","v":0},{"$f":"Jurat!D$33","v":"00:00:00"},"Q4","2017-12-31","Region 2","Operating Expense","Medical Benefits Expense","Other Medical","11.6.1","Premium Deficiency Reserve",{"$f":"'MMA Rev-Exp Region 2'!AK$82","v":{"v":0,"d":"$0.00"}},{"$f":"'MMA Rev-Exp Region 2'!AL$82","v":{"v":0,"d":"$0.00"}},{"$f":"'MMA Rev-Exp Region 2'!AM$82","v":{"v":0,"d":"$0.00"}},{"$f":"'MMA Rev-Exp Region 2'!AN$82","v":{"v":0,"d":"$0.00"}},{"$f":"'MMA Rev-Exp Region 2'!AO$82","v":{"v":0,"d":"$0.00"}},{"$f":"'MMA Rev-Exp Region 2'!AP$82","v":{"v":0,"d":"$0.00"}},{"$f":"'MMA Rev-Exp Region 2'!AQ$82","v":{"v":0,"d":"$0.00"}},{"$f":"'MMA Rev-Exp Region 2'!AR$82","v":{"v":0,"d":"$0.00"}},{"$f":"'MMA Rev-Exp Region 2'!AS$82","v":{"v":0,"d":"$0.00"}},{"$f":"'MMA Rev-Exp Region 2'!AT$82","v":{"v":0,"d":"$0.00"}},{"$f":"'MMA Rev-Exp Region 2'!AU$82","v":{"v":0,"d":"$0.00"}},{"v":0,"d":"$0.00"}]
["MMA",null,null,{"$f":"Jurat!I$1","v":0},{"$f":"Jurat!D$33","v":"00:00:00"},"Q4","2017-12-31","Region 2","Operating Expense","Medical Benefits Expense","Other Medical","11.8","Reinsurance Premiums",{"$f":"'MMA Rev-Exp Region 2'!AK$84","v":{"v":0,"d":"$0.00"}},{"$f":"'MMA Rev-Exp Region 2'!AL$84","v":{"v":0,"d":"$0.00"}},{"$f":"'MMA Rev-Exp Region 2'!AM$84","v":{"v":0,"d":"$0.00"}},{"$f":"'MMA Rev-Exp Region 2'!AN$84","v":{"v":0,"d":"$0.00"}},{"$f":"'MMA Rev-Exp Region 2'!AO$84","v":{"v":0,"d":"$0.00"}},{"$f":"'MMA Rev-Exp Region 2'!AP$84","v":{"v":0,"d":"$0.00"}},{"$f":"'MMA Rev-Exp Region 2'!AQ$84","v":{"v":0,"d":"$0.00"}},{"$f":"'MMA Rev-Exp Region 2'!AR$84","v":{"v":0,"d":"$0.00"}},{"$f":"'MMA Rev-Exp Region 2'!AS$84","v":{"v":0,"d":"$0.00"}},{"$f":"'MMA Rev-Exp Region 2'!AT$84","v":{"v":0,"d":"$0.00"}},{"$f":"'MMA Rev-Exp Region 2'!AU$84","v":{"v":0,"d":"$0.00"}},{"v":0,"d":"$0.00"}]
["MMA",null,null,{"$f":"Jurat!I$1","v":0},{"$f":"Jurat!D$33","v":"00:00:00"},"Q4","2017-12-31","Region 2","Operating Expense","Medical Benefits Expense","Other Medical","11.9","Reinsurance Recoveries",{"$f":"'MMA Rev-Exp Region 2'!AK$85","v":{"v":0,"d":"$0.00"}},{"$f":"'MMA Rev-Exp Region 2'!AL$85","v":{"v":0,"d":"$0.00"}},{"$f":"'MMA Rev-Exp Region 2'!AM$85","v":{"v":0,"d":"$0.00"}},{"$f":"'MMA Rev-Exp Region 2'!AN$85","v":{"v":0,"d":"$0.00"}},{"$f":"'MMA Rev-Exp Region 2'!AO$85","v":{"v":0,"d":"$0.00"}},{"$f":"'MMA Rev-Exp Region 2'!AP$85","v":{"v":0,"d":"$0.00"}},{"$f":"'MMA Rev-Exp Region 2'!AQ$85","v":{"v":0,"d":"$0.00"}},{"$f":"'MMA Rev-Exp Region 2'!AR$85","v":{"v":0,"d":"$0.00"}},{"$f":"'MMA Rev-Exp Region 2'!AS$85","v":{"v":0,"d":"$0.00"}},{"$f":"'MMA Rev-Exp Region 2'!AT$85","v":{"v":0,"d":"$0.00"}},{"$f":"'MMA Rev-Exp Region 2'!AU$85","v":{"v":0,"d":"$0.00"}},{"v":0,"d":"$0.00"}]
["MMA",null,null,{"$f":"Jurat!I$1","v":0},{"$f":"Jurat!D$33","v":"00:00:00"},"Q4","2017-12-31","Region 2","Operating Expense","Administrative Expense","Administrative","12.1","Salaries & Benefits",{"$f":"'MMA Rev-Exp Region 2'!AK$90","v":{"v":0,"d":"$0.00"}},{"v":0,"d":"$0.00"},{"v":0,"d":"$0.00"},{"v":0,"d":"$0.00"},{"v":0,"d":"$0.00"},{"v":0,"d":"$0.00"},{"v":0,"d":"$0.00"},{"v":0,"d":"$0.00"},{"v":0,"d":"$0.00"},{"v":0,"d":"$0.00"},{"v":0,"d":"$0.00"},{"v":0,"d":"$0.00"}]
["MMA",null,null,{"$f":"Jurat!I$1","v":0},{"$f":"Jurat!D$33","v":"00:00:00"},"Q4","2017-12-31","Region 2","Operating Expense","Administrative Expense","Administrative","12.2","Administrative Services",{"$f":"'MMA Rev-Exp Region 2'!AK$91","v":{"v":0,"d":"$0.00"}},{"v":0,"d":"$0.00"},{"v":0,"d":"$0.00"},{"v":0,"d":"$0.00"},{"v":0,"d":"$0.00"},{"v":0,"d":"$0.00"},{"v":0,"d":"$0.00"},{"v":0,"d":"$0.00"},{"v":0,"d":"$0.00"},{"v":0,"d":"$0.00"},{"v":0,"d":"$0.00"},{"v":0,"d":"$0.00"}]
["MMA",null,null,{"$f":"Jurat!I$1","v":0},{"$f":"Jurat!D$33","v":"00:00:00"},"Q4","2017-12-31","Region 2","Operating Expense","Administrative Expense","Administrative","12.3","Information Systems",{"$f":"'MMA Rev-Exp Region 2'!AK$92","v":{"v":0,"d":"$0.00"}},{"v":0,"d":"$0.00"},{"v":0,"d":"$0.00"},{"v":0,"d":"$0.00"},{"v":0,"d":"$0.00"},{"v":0,"d":"$0.00"},{"v":0,"d":"$0.00"},{"v":0,"d":"$0.00"},{"v":0,"d":"$0.00"},{"v":0,"d":"$0.00"},{"v":0,"d":"$0.00"},{"v":0,"d":"$0.00"}]
["MMA",null,null,{"$f":"Jurat!I$1","v":0},{"$f":"Jurat!D$33","v":"00:00:00"},"Q4","2017-12-31","Region 2","Operating Expense","Administrative Expense","Administrative","12.4","Marketing Expenses",{"$f":"'MMA Rev-Exp Region 2'!AK$93","v":{"v":0,"d":"$0.00"}},{"v":0,"d":"$0.00"},{"v":0,"d":"$0.00"},{"v":0,"d":"$0.00"},{"v":0,"d":"$0.00"},{"v":0,"d":"$0.00"},{"v":0,"d":"$0.00"},{"v":0,"d":"$0.00"},{"v":0,"d":"$0.00"},{"v":0,"d":"$0.00"},{"v":0,"d":"$0.00"},{"v":0,"d":"$0.00"}]
["MMA",null,null,{"$f":"Jurat!I$1","v":0},{"$f":"Jurat!D$33","v":"00:00:00"},"Q4","2017-12-31","Region 2","Operating Expense","Administrative Expense","Administrative","12.5","General  Administration",{"$f":"'MMA Rev-Exp Region 2'!AK$94","v":{"v":0,"d":"$0.00"}},{"v":0,"d":"$0.00"},{"v":0,"d":"$0.00"},{"v":0,"d":"$0.00"},{"v":0,"d":"$0.00"},{"v":0,"d":"$0.00"},{"v":0,"d":"$0.00"},{"v":0,"d":"$0.00"},{"v":0,"d":"$0.00"},{"v":0,"d":"$0.00"},{"v":0,"d":"$0.00"},{"v":0,"d":"$0.00"}]
["MMA",null,null,{"$f":"Jurat!I$1","v":0},{"$f":"Jurat!D$33","v":"00:00:00"},"Q4","2017-12-31","Region 2","Operating Expense","Administrative Expense","Administrative","12.6","Compliance/Regulatory",{"$f":"'MMA Rev-Exp Region 2'!AK$95","v":{"v":0,"d":"$0.00"}},{"v":0,"d":"$0.00"},{"v":0,"d":"$0.00"},{"v":0,"d":"$0.00"},{"v":0,"d":"$0.00"},{"v":0,"d":"$0.00"},{"v":0,"d":"$0.00"},{"v":0,"d":"$0.00"},{"v":0,"d":"$0.00"},{"v":0,"d":"$0.00"},{"v":0,"d":"$0.00"},{"v":0,"d":"$0.00"}]
["MMA",null,null,{"$f":"Jurat!I$1","v":0},{"$f":"Jurat!D$33","v":"00:00:00"},"Q4","2017-12-31","Region 2","Operating Expense","Taxes & Fees","Taxes & Fees","13.1","State Premium tax",{"$f":"'MMA Rev-Exp Region 2'!AK$97","v":{"v":0,"d":"$0.00"}},{"v":0,"d":"$0.00"},{"v":0,"d":"$0.00"},{"v":0,"d":"$0.00"},{"v":0,"d":"$0.00"},{"v":0,"d":"$0.00"},{"v":0,"d":"$0.00"},{"v":0,"d":"$0.00"},{"v":0,"d":"$0.00"},{"v":0,"d":"$0.00"},{"v":0,"d":"$0.00"},{"v":0,"d":"$0.00"}]
["MMA",null,null,{"$f":"Jurat!I$1","v":0},{"$f":"Jurat!D$33","v":"00:00:00"},"Q4","2017-12-31","Region 2","Operating Expense","Taxes & Fees","Taxes & Fees","13.2","Department of Insurance Assessments",{"$f":"'MMA Rev-Exp Region 2'!AK$98","v":{"v":0,"d":"$0.00"}},{"v":0,"d":"$0.00"},{"v":0,"d":"$0.00"},{"v":0,"d":"$0.00"},{"v":0,"d":"$0.00"},{"v":0,"d":"$0.00"},{"v":0,"d":"$0.00"},{"v":0,"d":"$0.00"},{"v":0,"d":"$0.00"},{"v":0,"d":"$0.00"},{"v":0,"d":"$0.00"},{"v":0,"d":"$0.00"}]
["MMA",null,null,{"$f":"Jurat!I$1","v":0},{"$f":"Jurat!D$33","v":"00:00:00"},"Q4","2017-12-31","Region 2","Operating Expense","Taxes & Fees","Taxes & Fees","13.3","Section 9010 Health Insurance Providers Fee",{"$f":"'MMA Rev-Exp Region 2'!AK$99","v":{"v":0,"d":"$0.00"}},{"v":0,"d":"$0.00"},{"v":0,"d":"$0.00"},{"v":0,"d":"$0.00"},{"v":0,"d":"$0.00"},{"v":0,"d":"$0.00"},{"v":0,"d":"$0.00"},{"v":0,"d":"$0.00"},{"v":0,"d":"$0.00"},{"v":0,"d":"$0.00"},{"v":0,"d":"$0.00"},{"v":0,"d":"$0.00"}]
["MMA",null,null,{"$f":"Jurat!I$1","v":0},{"$f":"Jurat!D$33","v":"00:00:00"},"Q4","2017-12-31","Region 2","Operating Expense","Income Tax Expense","Income Tax Expense","16.0","Income Tax Expense",{"$f":"'MMA Rev-Exp Region 2'!AK$106","v":{"v":0,"d":"$0.00"}},{"v":0,"d":"$0.00"},{"v":0,"d":"$0.00"},{"v":0,"d":"$0.00"},{"v":0,"d":"$0.00"},{"v":0,"d":"$0.00"},{"v":0,"d":"$0.00"},{"v":0,"d":"$0.00"},{"v":0,"d":"$0.00"},{"v":0,"d":"$0.00"},{"v":0,"d":"$0.00"},{"v":0,"d":"$0.00"}]
["MMA",null,null,{"$f":"Jurat!I$1","v":0},{"$f":"Jurat!D$33","v":"00:00:00"},"Q1","2017-03-31","Region 3","Member Months","Member Months","Member Months",null,"Member Months",{"$f":"'MMA Rev-Exp Region 3'!D$9","v":{"v":0,"d":"$0.00"}},{"$f":"'MMA Rev-Exp Region 3'!E$9","v":{"v":0,"d":"$0.00"}},{"$f":"'MMA Rev-Exp Region 3'!F$9","v":{"v":0,"d":"$0.00"}},{"$f":"'MMA Rev-Exp Region 3'!G$9","v":{"v":0,"d":"$0.00"}},{"$f":"'MMA Rev-Exp Region 3'!H$9","v":{"v":0,"d":"$0.00"}},{"$f":"'MMA Rev-Exp Region 3'!I$9","v":{"v":0,"d":"$0.00"}},{"$f":"'MMA Rev-Exp Region 3'!J$9","v":{"v":0,"d":"$0.00"}},{"$f":"'MMA Rev-Exp Region 3'!K$9","v":{"v":0,"d":"$0.00"}},{"$f":"'MMA Rev-Exp Region 3'!L$9","v":{"v":0,"d":"$0.00"}},{"$f":"'MMA Rev-Exp Region 3'!M$9","v":{"v":0,"d":"$0.00"}},{"$f":"'MMA Rev-Exp Region 3'!N$9","v":{"v":0,"d":"$0.00"}},{"v":0,"d":"$0.00"}]
["MMA",null,null,{"$f":"Jurat!I$1","v":0},{"$f":"Jurat!D$33","v":"00:00:00"},"Q1","2017-03-31","Region 3","Operating Revenue","Capitation","Capitation",1.1,"Capitation",{"$f":"'MMA Rev-Exp Region 3'!D$11","v":{"v":0,"d":"$0.00"}},{"$f":"'MMA Rev-Exp Region 3'!E$11","v":{"v":0,"d":"$0.00"}},{"$f":"'MMA Rev-Exp Region 3'!F$11","v":{"v":0,"d":"$0.00"}},{"$f":"'MMA Rev-Exp Region 3'!G$11","v":{"v":0,"d":"$0.00"}},{"$f":"'MMA Rev-Exp Region 3'!H$11","v":{"v":0,"d":"$0.00"}},{"$f":"'MMA Rev-Exp Region 3'!I$11","v":{"v":0,"d":"$0.00"}},{"$f":"'MMA Rev-Exp Region 3'!J$11","v":{"v":0,"d":"$0.00"}},{"$f":"'MMA Rev-Exp Region 3'!K$11","v":{"v":0,"d":"$0.00"}},{"$f":"'MMA Rev-Exp Region 3'!L$11","v":{"v":0,"d":"$0.00"}},{"$f":"'MMA Rev-Exp Region 3'!M$11","v":{"v":0,"d":"$0.00"}},{"$f":"'MMA Rev-Exp Region 3'!N$11","v":{"v":0,"d":"$0.00"}},{"v":0,"d":"$0.00"}]
["MMA",null,null,{"$f":"Jurat!I$1","v":0},{"$f":"Jurat!D$33","v":"00:00:00"},"Q1","2017-03-31","Region 3","Operating Revenue","Kick Payments","Kick Payments - Transplant",1.2,"Transplant Kick Payments",{"$f":"'MMA Rev-Exp Region 3'!D$12","v":{"v":0,"d":"$0.00"}},{"$f":"'MMA Rev-Exp Region 3'!E$12","v":{"v":0,"d":"$0.00"}},{"$f":"'MMA Rev-Exp Region 3'!F$12","v":{"v":0,"d":"$0.00"}},{"$f":"'MMA Rev-Exp Region 3'!G$12","v":{"v":0,"d":"$0.00"}},{"$f":"'MMA Rev-Exp Region 3'!H$12","v":{"v":0,"d":"$0.00"}},{"$f":"'MMA Rev-Exp Region 3'!I$12","v":{"v":0,"d":"$0.00"}},{"$f":"'MMA Rev-Exp Region 3'!J$12","v":{"v":0,"d":"$0.00"}},{"$f":"'MMA Rev-Exp Region 3'!K$12","v":{"v":0,"d":"$0.00"}},{"$f":"'MMA Rev-Exp Region 3'!L$12","v":{"v":0,"d":"$0.00"}},{"$f":"'MMA Rev-Exp Region 3'!M$12","v":{"v":0,"d":"$0.00"}},{"$f":"'MMA Rev-Exp Region 3'!N$12","v":{"v":0,"d":"$0.00"}},{"v":0,"d":"$0.00"}]
["MMA",null,null,{"$f":"Jurat!I$1","v":0},{"$f":"Jurat!D$33","v":"00:00:00"},"Q1","2017-03-31","Region 3","Operating Revenue","Kick Payments","Kick Payments - Hep C","1.3","Hepatitis C Kick Payments",{"$f":"'MMA Rev-Exp Region 3'!D$13","v":{"v":0,"d":"$0.00"}},{"$f":"'MMA Rev-Exp Region 3'!E$13","v":{"v":0,"d":"$0.00"}},{"$f":"'MMA Rev-Exp Region 3'!F$13","v":{"v":0,"d":"$0.00"}},{"$f":"'MMA Rev-Exp Region 3'!G$13","v":{"v":0,"d":"$0.00"}},{"$f":"'MMA Rev-Exp Region 3'!H$13","v":{"v":0,"d":"$0.00"}},{"$f":"'MMA Rev-Exp Region 3'!I$13","v":{"v":0,"d":"$0.00"}},{"$f":"'MMA Rev-Exp Region 3'!J$13","v":{"v":0,"d":"$0.00"}},{"$f":"'MMA Rev-Exp Region 3'!K$13","v":{"v":0,"d":"$0.00"}},{"$f":"'MMA Rev-Exp Region 3'!L$13","v":{"v":0,"d":"$0.00"}},{"$f":"'MMA Rev-Exp Region 3'!M$13","v":{"v":0,"d":"$0.00"}},{"$f":"'MMA Rev-Exp Region 3'!N$13","v":{"v":0,"d":"$0.00"}},{"v":0,"d":"$0.00"}]
["MMA",null,null,{"$f":"Jurat!I$1","v":0},{"$f":"Jurat!D$33","v":"00:00:00"},"Q1","2017-03-31","Region 3","Operating Revenue","Kick Payments","Kick Payments - Maternity","1.4.1","Maternity Kick Payments",{"$f":"'MMA Rev-Exp Region 3'!D$14","v":{"v":0,"d":"$0.00"}},{"$f":"'MMA Rev-Exp Region 3'!E$14","v":{"v":0,"d":"$0.00"}},{"$f":"'MMA Rev-Exp Region 3'!F$14","v":{"v":0,"d":"$0.00"}},{"$f":"'MMA Rev-Exp Region 3'!G$14","v":{"v":0,"d":"$0.00"}},{"$f":"'MMA Rev-Exp Region 3'!H$14","v":{"v":0,"d":"$0.00"}},{"$f":"'MMA Rev-Exp Region 3'!I$14","v":{"v":0,"d":"$0.00"}},{"$f":"'MMA Rev-Exp Region 3'!J$14","v":{"v":0,"d":"$0.00"}},{"$f":"'MMA Rev-Exp Region 3'!K$14","v":{"v":0,"d":"$0.00"}},{"$f":"'MMA Rev-Exp Region 3'!L$14","v":{"v":0,"d":"$0.00"}},{"$f":"'MMA Rev-Exp Region 3'!M$14","v":{"v":0,"d":"$0.00"}},{"$f":"'MMA Rev-Exp Region 3'!N$14","v":{"v":0,"d":"$0.00"}},{"v":0,"d":"$0.00"}]
["MMA",null,null,{"$f":"Jurat!I$1","v":0},{"$f":"Jurat!D$33","v":"00:00:00"},"Q1","2017-03-31","Region 3","Operating Revenue","Other Revenue","Other Revenue - 9010","1.5","ACA § 9010 related payments",{"$f":"'MMA Rev-Exp Region 3'!D$15","v":{"v":0,"d":"$0.00"}},{"$f":"'MMA Rev-Exp Region 3'!E$15","v":{"v":0,"d":"$0.00"}},{"$f":"'MMA Rev-Exp Region 3'!F$15","v":{"v":0,"d":"$0.00"}},{"$f":"'MMA Rev-Exp Region 3'!G$15","v":{"v":0,"d":"$0.00"}},{"$f":"'MMA Rev-Exp Region 3'!H$15","v":{"v":0,"d":"$0.00"}},{"$f":"'MMA Rev-Exp Region 3'!I$15","v":{"v":0,"d":"$0.00"}},{"$f":"'MMA Rev-Exp Region 3'!J$15","v":{"v":0,"d":"$0.00"}},{"$f":"'MMA Rev-Exp Region 3'!K$15","v":{"v":0,"d":"$0.00"}},{"$f":"'MMA Rev-Exp Region 3'!L$15","v":{"v":0,"d":"$0.00"}},{"$f":"'MMA Rev-Exp Region 3'!M$15","v":{"v":0,"d":"$0.00"}},{"$f":"'MMA Rev-Exp Region 3'!N$15","v":{"v":0,"d":"$0.00"}},{"v":0,"d":"$0.00"}]
["MMA",null,null,{"$f":"Jurat!I$1","v":0},{"$f":"Jurat!D$33","v":"00:00:00"},"Q1","2017-03-31","Region 3","Operating Revenue","Other Revenue","Other Revenue","1.6","Other Revenue",{"$f":"'MMA Rev-Exp Region 3'!D$16","v":{"v":0,"d":"$0.00"}},{"$f":"'MMA Rev-Exp Region 3'!E$16","v":{"v":0,"d":"$0.00"}},{"$f":"'MMA Rev-Exp Region 3'!F$16","v":{"v":0,"d":"$0.00"}},{"$f":"'MMA Rev-Exp Region 3'!G$16","v":{"v":0,"d":"$0.00"}},{"$f":"'MMA Rev-Exp Region 3'!H$16","v":{"v":0,"d":"$0.00"}},{"$f":"'MMA Rev-Exp Region 3'!I$16","v":{"v":0,"d":"$0.00"}},{"$f":"'MMA Rev-Exp Region 3'!J$16","v":{"v":0,"d":"$0.00"}},{"$f":"'MMA Rev-Exp Region 3'!K$16","v":{"v":0,"d":"$0.00"}},{"$f":"'MMA Rev-Exp Region 3'!L$16","v":{"v":0,"d":"$0.00"}},{"$f":"'MMA Rev-Exp Region 3'!M$16","v":{"v":0,"d":"$0.00"}},{"$f":"'MMA Rev-Exp Region 3'!N$16","v":{"v":0,"d":"$0.00"}},{"v":0,"d":"$0.00"}]
["MMA",null,null,{"$f":"Jurat!I$1","v":0},{"$f":"Jurat!D$33","v":"00:00:00"},"Q1","2017-03-31","Region 3","Operating Expense","Medical Benefits Expense","Hospital Services",2.1,"Inpatient FFS",{"$f":"'MMA Rev-Exp Region 3'!D$20","v":{"v":0,"d":"$0.00"}},{"$f":"'MMA Rev-Exp Region 3'!E$20","v":{"v":0,"d":"$0.00"}},{"$f":"'MMA Rev-Exp Region 3'!F$20","v":{"v":0,"d":"$0.00"}},{"$f":"'MMA Rev-Exp Region 3'!G$20","v":{"v":0,"d":"$0.00"}},{"$f":"'MMA Rev-Exp Region 3'!H$20","v":{"v":0,"d":"$0.00"}},{"$f":"'MMA Rev-Exp Region 3'!I$20","v":{"v":0,"d":"$0.00"}},{"$f":"'MMA Rev-Exp Region 3'!J$20","v":{"v":0,"d":"$0.00"}},{"$f":"'MMA Rev-Exp Region 3'!K$20","v":{"v":0,"d":"$0.00"}},{"$f":"'MMA Rev-Exp Region 3'!L$20","v":{"v":0,"d":"$0.00"}},{"$f":"'MMA Rev-Exp Region 3'!M$20","v":{"v":0,"d":"$0.00"}},{"$f":"'MMA Rev-Exp Region 3'!N$20","v":{"v":0,"d":"$0.00"}},{"v":0,"d":"$0.00"}]
["MMA",null,null,{"$f":"Jurat!I$1","v":0},{"$f":"Jurat!D$33","v":"00:00:00"},"Q1","2017-03-31","Region 3","Operating Expense","Medical Benefits Expense","Hospital Services",2.2,"Ending IBNP for Inpatient Hospital Services",{"$f":"'MMA Rev-Exp Region 3'!D$21","v":{"v":0,"d":"$0.00"}},{"$f":"'MMA Rev-Exp Region 3'!E$21","v":{"v":0,"d":"$0.00"}},{"$f":"'MMA Rev-Exp Region 3'!F$21","v":{"v":0,"d":"$0.00"}},{"$f":"'MMA Rev-Exp Region 3'!G$21","v":{"v":0,"d":"$0.00"}},{"$f":"'MMA Rev-Exp Region 3'!H$21","v":{"v":0,"d":"$0.00"}},{"$f":"'MMA Rev-Exp Region 3'!I$21","v":{"v":0,"d":"$0.00"}},{"$f":"'MMA Rev-Exp Region 3'!J$21","v":{"v":0,"d":"$0.00"}},{"$f":"'MMA Rev-Exp Region 3'!K$21","v":{"v":0,"d":"$0.00"}},{"$f":"'MMA Rev-Exp Region 3'!L$21","v":{"v":0,"d":"$0.00"}},{"$f":"'MMA Rev-Exp Region 3'!M$21","v":{"v":0,"d":"$0.00"}},{"$f":"'MMA Rev-Exp Region 3'!N$21","v":{"v":0,"d":"$0.00"}},{"v":0,"d":"$0.00"}]
["MMA",null,null,{"$f":"Jurat!I$1","v":0},{"$f":"Jurat!D$33","v":"00:00:00"},"Q1","2017-03-31","Region 3","Operating Expense","Medical Benefits Expense","Hospital Services",2.3,"Outpatient FFS: ER",{"$f":"'MMA Rev-Exp Region 3'!D$22","v":{"v":0,"d":"$0.00"}},{"$f":"'MMA Rev-Exp Region 3'!E$22","v":{"v":0,"d":"$0.00"}},{"$f":"'MMA Rev-Exp Region 3'!F$22","v":{"v":0,"d":"$0.00"}},{"$f":"'MMA Rev-Exp Region 3'!G$22","v":{"v":0,"d":"$0.00"}},{"$f":"'MMA Rev-Exp Region 3'!H$22","v":{"v":0,"d":"$0.00"}},{"$f":"'MMA Rev-Exp Region 3'!I$22","v":{"v":0,"d":"$0.00"}},{"$f":"'MMA Rev-Exp Region 3'!J$22","v":{"v":0,"d":"$0.00"}},{"$f":"'MMA Rev-Exp Region 3'!K$22","v":{"v":0,"d":"$0.00"}},{"$f":"'MMA Rev-Exp Region 3'!L$22","v":{"v":0,"d":"$0.00"}},{"$f":"'MMA Rev-Exp Region 3'!M$22","v":{"v":0,"d":"$0.00"}},{"$f":"'MMA Rev-Exp Region 3'!N$22","v":{"v":0,"d":"$0.00"}},{"v":0,"d":"$0.00"}]
["MMA",null,null,{"$f":"Jurat!I$1","v":0},{"$f":"Jurat!D$33","v":"00:00:00"},"Q1","2017-03-31","Region 3","Operating Expense","Medical Benefits Expense","Hospital Services",2.4,"Outpatient FFS: Other than ER ",{"$f":"'MMA Rev-Exp Region 3'!D$23","v":{"v":0,"d":"$0.00"}},{"$f":"'MMA Rev-Exp Region 3'!E$23","v":{"v":0,"d":"$0.00"}},{"$f":"'MMA Rev-Exp Region 3'!F$23","v":{"v":0,"d":"$0.00"}},{"$f":"'MMA Rev-Exp Region 3'!G$23","v":{"v":0,"d":"$0.00"}},{"$f":"'MMA Rev-Exp Region 3'!H$23","v":{"v":0,"d":"$0.00"}},{"$f":"'MMA Rev-Exp Region 3'!I$23","v":{"v":0,"d":"$0.00"}},{"$f":"'MMA Rev-Exp Region 3'!J$23","v":{"v":0,"d":"$0.00"}},{"$f":"'MMA Rev-Exp Region 3'!K$23","v":{"v":0,"d":"$0.00"}},{"$f":"'MMA Rev-Exp Region 3'!L$23","v":{"v":0,"d":"$0.00"}},{"$f":"'MMA Rev-Exp Region 3'!M$23","v":{"v":0,"d":"$0.00"}},{"$f":"'MMA Rev-Exp Region 3'!N$23","v":{"v":0,"d":"$0.00"}},{"v":0,"d":"$0.00"}]
["MMA",null,null,{"$f":"Jurat!I$1","v":0},{"$f":"Jurat!D$33","v":"00:00:00"},"Q1","2017-03-31","Region 3","Operating Expense","Medical Benefits Expense","Hospital Services",2.5,"Ending IBNP for Outpatient Hospital Services",{"$f":"'MMA Rev-Exp Region 3'!D$24","v":{"v":0,"d":"$0.00"}},{"$f":"'MMA Rev-Exp Region 3'!E$24","v":{"v":0,"d":"$0.00"}},{"$f":"'MMA Rev-Exp Region 3'!F$24","v":{"v":0,"d":"$0.00"}},{"$f":"'MMA Rev-Exp Region 3'!G$24","v":{"v":0,"d":"$0.00"}},{"$f":"'MMA Rev-Exp Region 3'!H$24","v":{"v":0,"d":"$0.00"}},{"$f":"'MMA Rev-Exp Region 3'!I$24","v":{"v":0,"d":"$0.00"}},{"$f":"'MMA Rev-Exp Region 3'!J$24","v":{"v":0,"d":"$0.00"}},{"$f":"'MMA Rev-Exp Region 3'!K$24","v":{"v":0,"d":"$0.00"}},{"$f":"'MMA Rev-Exp Region 3'!L$24","v":{"v":0,"d":"$0.00"}},{"$f":"'MMA Rev-Exp Region 3'!M$24","v":{"v":0,"d":"$0.00"}},{"$f":"'MMA Rev-Exp Region 3'!N$24","v":{"v":0,"d":"$0.00"}},{"v":0,"d":"$0.00"}]
["MMA",null,null,{"$f":"Jurat!I$1","v":0},{"$f":"Jurat!D$33","v":"00:00:00"},"Q1","2017-03-31","Region 3","Operating Expense","Medical Benefits Expense","Hospital Services","2.6","Subcapitated Hospital Services",{"$f":"'MMA Rev-Exp Region 3'!D$25","v":{"v":0,"d":"$0.00"}},{"$f":"'MMA Rev-Exp Region 3'!E$25","v":{"v":0,"d":"$0.00"}},{"$f":"'MMA Rev-Exp Region 3'!F$25","v":{"v":0,"d":"$0.00"}},{"$f":"'MMA Rev-Exp Region 3'!G$25","v":{"v":0,"d":"$0.00"}},{"$f":"'MMA Rev-Exp Region 3'!H$25","v":{"v":0,"d":"$0.00"}},{"$f":"'MMA Rev-Exp Region 3'!I$25","v":{"v":0,"d":"$0.00"}},{"$f":"'MMA Rev-Exp Region 3'!J$25","v":{"v":0,"d":"$0.00"}},{"$f":"'MMA Rev-Exp Region 3'!K$25","v":{"v":0,"d":"$0.00"}},{"$f":"'MMA Rev-Exp Region 3'!L$25","v":{"v":0,"d":"$0.00"}},{"$f":"'MMA Rev-Exp Region 3'!M$25","v":{"v":0,"d":"$0.00"}},{"$f":"'MMA Rev-Exp Region 3'!N$25","v":{"v":0,"d":"$0.00"}},{"v":0,"d":"$0.00"}]
["MMA",null,null,{"$f":"Jurat!I$1","v":0},{"$f":"Jurat!D$33","v":"00:00:00"},"Q1","2017-03-31","Region 3","Operating Expense","Medical Benefits Expense","Hospital Services","2.7","Hospital Settlements",{"$f":"'MMA Rev-Exp Region 3'!D$26","v":{"v":0,"d":"$0.00"}},{"$f":"'MMA Rev-Exp Region 3'!E$26","v":{"v":0,"d":"$0.00"}},{"$f":"'MMA Rev-Exp Region 3'!F$26","v":{"v":0,"d":"$0.00"}},{"$f":"'MMA Rev-Exp Region 3'!G$26","v":{"v":0,"d":"$0.00"}},{"$f":"'MMA Rev-Exp Region 3'!H$26","v":{"v":0,"d":"$0.00"}},{"$f":"'MMA Rev-Exp Region 3'!I$26","v":{"v":0,"d":"$0.00"}},{"$f":"'MMA Rev-Exp Region 3'!J$26","v":{"v":0,"d":"$0.00"}},{"$f":"'MMA Rev-Exp Region 3'!K$26","v":{"v":0,"d":"$0.00"}},{"$f":"'MMA Rev-Exp Region 3'!L$26","v":{"v":0,"d":"$0.00"}},{"$f":"'MMA Rev-Exp Region 3'!M$26","v":{"v":0,"d":"$0.00"}},{"$f":"'MMA Rev-Exp Region 3'!N$26","v":{"v":0,"d":"$0.00"}},{"v":0,"d":"$0.00"}]
["MMA",null,null,{"$f":"Jurat!I$1","v":0},{"$f":"Jurat!D$33","v":"00:00:00"},"Q1","2017-03-31","Region 3","Operating Expense","Medical Benefits Expense","Hospital Services","2.7.1","Transplant Services",{"$f":"'MMA Rev-Exp Region 3'!D$27","v":{"v":0,"d":"$0.00"}},{"$f":"'MMA Rev-Exp Region 3'!E$27","v":{"v":0,"d":"$0.00"}},{"$f":"'MMA Rev-Exp Region 3'!F$27","v":{"v":0,"d":"$0.00"}},{"$f":"'MMA Rev-Exp Region 3'!G$27","v":{"v":0,"d":"$0.00"}},{"$f":"'MMA Rev-Exp Region 3'!H$27","v":{"v":0,"d":"$0.00"}},{"$f":"'MMA Rev-Exp Region 3'!I$27","v":{"v":0,"d":"$0.00"}},{"$f":"'MMA Rev-Exp Region 3'!J$27","v":{"v":0,"d":"$0.00"}},{"$f":"'MMA Rev-Exp Region 3'!K$27","v":{"v":0,"d":"$0.00"}},{"$f":"'MMA Rev-Exp Region 3'!L$27","v":{"v":0,"d":"$0.00"}},{"$f":"'MMA Rev-Exp Region 3'!M$27","v":{"v":0,"d":"$0.00"}},{"$f":"'MMA Rev-Exp Region 3'!N$27","v":{"v":0,"d":"$0.00"}},{"v":0,"d":"$0.00"}]
["MMA",null,null,{"$f":"Jurat!I$1","v":0},{"$f":"Jurat!D$33","v":"00:00:00"},"Q1","2017-03-31","Region 3","Operating Expense","Medical Benefits Expense","Professional Services",3.1,"Primary Care FFS",{"$f":"'MMA Rev-Exp Region 3'!D$29","v":{"v":0,"d":"$0.00"}},{"$f":"'MMA Rev-Exp Region 3'!E$29","v":{"v":0,"d":"$0.00"}},{"$f":"'MMA Rev-Exp Region 3'!F$29","v":{"v":0,"d":"$0.00"}},{"$f":"'MMA Rev-Exp Region 3'!G$29","v":{"v":0,"d":"$0.00"}},{"$f":"'MMA Rev-Exp Region 3'!H$29","v":{"v":0,"d":"$0.00"}},{"$f":"'MMA Rev-Exp Region 3'!I$29","v":{"v":0,"d":"$0.00"}},{"$f":"'MMA Rev-Exp Region 3'!J$29","v":{"v":0,"d":"$0.00"}},{"$f":"'MMA Rev-Exp Region 3'!K$29","v":{"v":0,"d":"$0.00"}},{"$f":"'MMA Rev-Exp Region 3'!L$29","v":{"v":0,"d":"$0.00"}},{"$f":"'MMA Rev-Exp Region 3'!M$29","v":{"v":0,"d":"$0.00"}},{"$f":"'MMA Rev-Exp Region 3'!N$29","v":{"v":0,"d":"$0.00"}},{"v":0,"d":"$0.00"}]
["MMA",null,null,{"$f":"Jurat!I$1","v":0},{"$f":"Jurat!D$33","v":"00:00:00"},"Q1","2017-03-31","Region 3","Operating Expense","Medical Benefits Expense","Professional Services",3.2,"Specialty Care FFS",{"$f":"'MMA Rev-Exp Region 3'!D$30","v":{"v":0,"d":"$0.00"}},{"$f":"'MMA Rev-Exp Region 3'!E$30","v":{"v":0,"d":"$0.00"}},{"$f":"'MMA Rev-Exp Region 3'!F$30","v":{"v":0,"d":"$0.00"}},{"$f":"'MMA Rev-Exp Region 3'!G$30","v":{"v":0,"d":"$0.00"}},{"$f":"'MMA Rev-Exp Region 3'!H$30","v":{"v":0,"d":"$0.00"}},{"$f":"'MMA Rev-Exp Region 3'!I$30","v":{"v":0,"d":"$0.00"}},{"$f":"'MMA Rev-Exp Region 3'!J$30","v":{"v":0,"d":"$0.00"}},{"$f":"'MMA Rev-Exp Region 3'!K$30","v":{"v":0,"d":"$0.00"}},{"$f":"'MMA Rev-Exp Region 3'!L$30","v":{"v":0,"d":"$0.00"}},{"$f":"'MMA Rev-Exp Region 3'!M$30","v":{"v":0,"d":"$0.00"}},{"$f":"'MMA Rev-Exp Region 3'!N$30","v":{"v":0,"d":"$0.00"}},{"v":0,"d":"$0.00"}]
["MMA",null,null,{"$f":"Jurat!I$1","v":0},{"$f":"Jurat!D$33","v":"00:00:00"},"Q1","2017-03-31","Region 3","Operating Expense","Medical Benefits Expense","Professional Services",3.3,"Other Professional FFS",{"$f":"'MMA Rev-Exp Region 3'!D$31","v":{"v":0,"d":"$0.00"}},{"$f":"'MMA Rev-Exp Region 3'!E$31","v":{"v":0,"d":"$0.00"}},{"$f":"'MMA Rev-Exp Region 3'!F$31","v":{"v":0,"d":"$0.00"}},{"$f":"'MMA Rev-Exp Region 3'!G$31","v":{"v":0,"d":"$0.00"}},{"$f":"'MMA Rev-Exp Region 3'!H$31","v":{"v":0,"d":"$0.00"}},{"$f":"'MMA Rev-Exp Region 3'!I$31","v":{"v":0,"d":"$0.00"}},{"$f":"'MMA Rev-Exp Region 3'!J$31","v":{"v":0,"d":"$0.00"}},{"$f":"'MMA Rev-Exp Region 3'!K$31","v":{"v":0,"d":"$0.00"}},{"$f":"'MMA Rev-Exp Region 3'!L$31","v":{"v":0,"d":"$0.00"}},{"$f":"'MMA Rev-Exp Region 3'!M$31","v":{"v":0,"d":"$0.00"}},{"$f":"'MMA Rev-Exp Region 3'!N$31","v":{"v":0,"d":"$0.00"}},{"v":0,"d":"$0.00"}]
["MMA",null,null,{"$f":"Jurat!I$1","v":0},{"$f":"Jurat!D$33","v":"00:00:00"},"Q1","2017-03-31","Region 3","Operating Expense","Medical Benefits Expense","Professional Services","3.4","§ 1202 PCP Payments to providers",{"$f":"'MMA Rev-Exp Region 3'!D$32","v":{"v":0,"d":"$0.00"}},{"$f":"'MMA Rev-Exp Region 3'!E$32","v":{"v":0,"d":"$0.00"}},{"$f":"'MMA Rev-Exp Region 3'!F$32","v":{"v":0,"d":"$0.00"}},{"$f":"'MMA Rev-Exp Region 3'!G$32","v":{"v":0,"d":"$0.00"}},{"$f":"'MMA Rev-Exp Region 3'!H$32","v":{"v":0,"d":"$0.00"}},{"$f":"'MMA Rev-Exp Region 3'!I$32","v":{"v":0,"d":"$0.00"}},{"$f":"'MMA Rev-Exp Region 3'!J$32","v":{"v":0,"d":"$0.00"}},{"$f":"'MMA Rev-Exp Region 3'!K$32","v":{"v":0,"d":"$0.00"}},{"$f":"'MMA Rev-Exp Region 3'!L$32","v":{"v":0,"d":"$0.00"}},{"$f":"'MMA Rev-Exp Region 3'!M$32","v":{"v":0,"d":"$0.00"}},{"$f":"'MMA Rev-Exp Region 3'!N$32","v":{"v":0,"d":"$0.00"}},{"v":0,"d":"$0.00"}]
["MMA",null,null,{"$f":"Jurat!I$1","v":0},{"$f":"Jurat!D$33","v":"00:00:00"},"Q1","2017-03-31","Region 3","Operating Expense","Medical Benefits Expense","Professional Services","3.5","Subcapitated Professional Services",{"$f":"'MMA Rev-Exp Region 3'!D$33","v":{"v":0,"d":"$0.00"}},{"$f":"'MMA Rev-Exp Region 3'!E$33","v":{"v":0,"d":"$0.00"}},{"$f":"'MMA Rev-Exp Region 3'!F$33","v":{"v":0,"d":"$0.00"}},{"$f":"'MMA Rev-Exp Region 3'!G$33","v":{"v":0,"d":"$0.00"}},{"$f":"'MMA Rev-Exp Region 3'!H$33","v":{"v":0,"d":"$0.00"}},{"$f":"'MMA Rev-Exp Region 3'!I$33","v":{"v":0,"d":"$0.00"}},{"$f":"'MMA Rev-Exp Region 3'!J$33","v":{"v":0,"d":"$0.00"}},{"$f":"'MMA Rev-Exp Region 3'!K$33","v":{"v":0,"d":"$0.00"}},{"$f":"'MMA Rev-Exp Region 3'!L$33","v":{"v":0,"d":"$0.00"}},{"$f":"'MMA Rev-Exp Region 3'!M$33","v":{"v":0,"d":"$0.00"}},{"$f":"'MMA Rev-Exp Region 3'!N$33","v":{"v":0,"d":"$0.00"}},{"v":0,"d":"$0.00"}]
["MMA",null,null,{"$f":"Jurat!I$1","v":0},{"$f":"Jurat!D$33","v":"00:00:00"},"Q1","2017-03-31","Region 3","Operating Expense","Medical Benefits Expense","Professional Services","3.6","Ending IBNP for Professional Services",{"$f":"'MMA Rev-Exp Region 3'!D$34","v":{"v":0,"d":"$0.00"}},{"$f":"'MMA Rev-Exp Region 3'!E$34","v":{"v":0,"d":"$0.00"}},{"$f":"'MMA Rev-Exp Region 3'!F$34","v":{"v":0,"d":"$0.00"}},{"$f":"'MMA Rev-Exp Region 3'!G$34","v":{"v":0,"d":"$0.00"}},{"$f":"'MMA Rev-Exp Region 3'!H$34","v":{"v":0,"d":"$0.00"}},{"$f":"'MMA Rev-Exp Region 3'!I$34","v":{"v":0,"d":"$0.00"}},{"$f":"'MMA Rev-Exp Region 3'!J$34","v":{"v":0,"d":"$0.00"}},{"$f":"'MMA Rev-Exp Region 3'!K$34","v":{"v":0,"d":"$0.00"}},{"$f":"'MMA Rev-Exp Region 3'!L$34","v":{"v":0,"d":"$0.00"}},{"$f":"'MMA Rev-Exp Region 3'!M$34","v":{"v":0,"d":"$0.00"}},{"$f":"'MMA Rev-Exp Region 3'!N$34","v":{"v":0,"d":"$0.00"}},{"v":0,"d":"$0.00"}]
["MMA",null,null,{"$f":"Jurat!I$1","v":0},{"$f":"Jurat!D$33","v":"00:00:00"},"Q1","2017-03-31","Region 3","Operating Expense","Medical Benefits Expense","Professional Services","3.7","Professional Services Settlements",{"$f":"'MMA Rev-Exp Region 3'!D$35","v":{"v":0,"d":"$0.00"}},{"$f":"'MMA Rev-Exp Region 3'!E$35","v":{"v":0,"d":"$0.00"}},{"$f":"'MMA Rev-Exp Region 3'!F$35","v":{"v":0,"d":"$0.00"}},{"$f":"'MMA Rev-Exp Region 3'!G$35","v":{"v":0,"d":"$0.00"}},{"$f":"'MMA Rev-Exp Region 3'!H$35","v":{"v":0,"d":"$0.00"}},{"$f":"'MMA Rev-Exp Region 3'!I$35","v":{"v":0,"d":"$0.00"}},{"$f":"'MMA Rev-Exp Region 3'!J$35","v":{"v":0,"d":"$0.00"}},{"$f":"'MMA Rev-Exp Region 3'!K$35","v":{"v":0,"d":"$0.00"}},{"$f":"'MMA Rev-Exp Region 3'!L$35","v":{"v":0,"d":"$0.00"}},{"$f":"'MMA Rev-Exp Region 3'!M$35","v":{"v":0,"d":"$0.00"}},{"$f":"'MMA Rev-Exp Region 3'!N$35","v":{"v":0,"d":"$0.00"}},{"v":0,"d":"$0.00"}]
["MMA",null,null,{"$f":"Jurat!I$1","v":0},{"$f":"Jurat!D$33","v":"00:00:00"},"Q1","2017-03-31","Region 3","Operating Expense","Medical Benefits Expense","Maternity Services","4.1.1","Maternity Services",{"$f":"'MMA Rev-Exp Region 3'!D$37","v":{"v":0,"d":"$0.00"}},{"$f":"'MMA Rev-Exp Region 3'!E$37","v":{"v":0,"d":"$0.00"}},{"$f":"'MMA Rev-Exp Region 3'!F$37","v":{"v":0,"d":"$0.00"}},{"$f":"'MMA Rev-Exp Region 3'!G$37","v":{"v":0,"d":"$0.00"}},{"$f":"'MMA Rev-Exp Region 3'!H$37","v":{"v":0,"d":"$0.00"}},{"$f":"'MMA Rev-Exp Region 3'!I$37","v":{"v":0,"d":"$0.00"}},{"$f":"'MMA Rev-Exp Region 3'!J$37","v":{"v":0,"d":"$0.00"}},{"$f":"'MMA Rev-Exp Region 3'!K$37","v":{"v":0,"d":"$0.00"}},{"$f":"'MMA Rev-Exp Region 3'!L$37","v":{"v":0,"d":"$0.00"}},{"$f":"'MMA Rev-Exp Region 3'!M$37","v":{"v":0,"d":"$0.00"}},{"$f":"'MMA Rev-Exp Region 3'!N$37","v":{"v":0,"d":"$0.00"}},{"v":0,"d":"$0.00"}]
["MMA",null,null,{"$f":"Jurat!I$1","v":0},{"$f":"Jurat!D$33","v":"00:00:00"},"Q1","2017-03-31","Region 3","Operating Expense","Medical Benefits Expense","Maternity Services","4.2.1","Ending IBNP for Maternity Services",{"$f":"'MMA Rev-Exp Region 3'!D$38","v":{"v":0,"d":"$0.00"}},{"$f":"'MMA Rev-Exp Region 3'!E$38","v":{"v":0,"d":"$0.00"}},{"$f":"'MMA Rev-Exp Region 3'!F$38","v":{"v":0,"d":"$0.00"}},{"$f":"'MMA Rev-Exp Region 3'!G$38","v":{"v":0,"d":"$0.00"}},{"$f":"'MMA Rev-Exp Region 3'!H$38","v":{"v":0,"d":"$0.00"}},{"$f":"'MMA Rev-Exp Region 3'!I$38","v":{"v":0,"d":"$0.00"}},{"$f":"'MMA Rev-Exp Region 3'!J$38","v":{"v":0,"d":"$0.00"}},{"$f":"'MMA Rev-Exp Region 3'!K$38","v":{"v":0,"d":"$0.00"}},{"$f":"'MMA Rev-Exp Region 3'!L$38","v":{"v":0,"d":"$0.00"}},{"$f":"'MMA Rev-Exp Region 3'!M$38","v":{"v":0,"d":"$0.00"}},{"$f":"'MMA Rev-Exp Region 3'!N$38","v":{"v":0,"d":"$0.00"}},{"v":0,"d":"$0.00"}]
["MMA",null,null,{"$f":"Jurat!I$1","v":0},{"$f":"Jurat!D$33","v":"00:00:00"},"Q1","2017-03-31","Region 3","Operating Expense","Medical Benefits Expense","Maternity Services","4.3.1","Maternity Settlements",{"$f":"'MMA Rev-Exp Region 3'!D$39","v":{"v":0,"d":"$0.00"}},{"$f":"'MMA Rev-Exp Region 3'!E$39","v":{"v":0,"d":"$0.00"}},{"$f":"'MMA Rev-Exp Region 3'!F$39","v":{"v":0,"d":"$0.00"}},{"$f":"'MMA Rev-Exp Region 3'!G$39","v":{"v":0,"d":"$0.00"}},{"$f":"'MMA Rev-Exp Region 3'!H$39","v":{"v":0,"d":"$0.00"}},{"$f":"'MMA Rev-Exp Region 3'!I$39","v":{"v":0,"d":"$0.00"}},{"$f":"'MMA Rev-Exp Region 3'!J$39","v":{"v":0,"d":"$0.00"}},{"$f":"'MMA Rev-Exp Region 3'!K$39","v":{"v":0,"d":"$0.00"}},{"$f":"'MMA Rev-Exp Region 3'!L$39","v":{"v":0,"d":"$0.00"}},{"$f":"'MMA Rev-Exp Region 3'!M$39","v":{"v":0,"d":"$0.00"}},{"$f":"'MMA Rev-Exp Region 3'!N$39","v":{"v":0,"d":"$0.00"}},{"v":0,"d":"$0.00"}]
["MMA",null,null,{"$f":"Jurat!I$1","v":0},{"$f":"Jurat!D$33","v":"00:00:00"},"Q1","2017-03-31","Region 3","Operating Expense","Medical Benefits Expense","Mental Health Services",5.1,"Mental Health & Substance Abuse FFS",{"$f":"'MMA Rev-Exp Region 3'!D$41","v":{"v":0,"d":"$0.00"}},{"$f":"'MMA Rev-Exp Region 3'!E$41","v":{"v":0,"d":"$0.00"}},{"$f":"'MMA Rev-Exp Region 3'!F$41","v":{"v":0,"d":"$0.00"}},{"$f":"'MMA Rev-Exp Region 3'!G$41","v":{"v":0,"d":"$0.00"}},{"$f":"'MMA Rev-Exp Region 3'!H$41","v":{"v":0,"d":"$0.00"}},{"$f":"'MMA Rev-Exp Region 3'!I$41","v":{"v":0,"d":"$0.00"}},{"$f":"'MMA Rev-Exp Region 3'!J$41","v":{"v":0,"d":"$0.00"}},{"$f":"'MMA Rev-Exp Region 3'!K$41","v":{"v":0,"d":"$0.00"}},{"$f":"'MMA Rev-Exp Region 3'!L$41","v":{"v":0,"d":"$0.00"}},{"$f":"'MMA Rev-Exp Region 3'!M$41","v":{"v":0,"d":"$0.00"}},{"$f":"'MMA Rev-Exp Region 3'!N$41","v":{"v":0,"d":"$0.00"}},{"v":0,"d":"$0.00"}]
["MMA",null,null,{"$f":"Jurat!I$1","v":0},{"$f":"Jurat!D$33","v":"00:00:00"},"Q1","2017-03-31","Region 3","Operating Expense","Medical Benefits Expense","Mental Health Services",5.2,"Mental Health & Substance Abuse Subcapitation",{"$f":"'MMA Rev-Exp Region 3'!D$42","v":{"v":0,"d":"$0.00"}},{"$f":"'MMA Rev-Exp Region 3'!E$42","v":{"v":0,"d":"$0.00"}},{"$f":"'MMA Rev-Exp Region 3'!F$42","v":{"v":0,"d":"$0.00"}},{"$f":"'MMA Rev-Exp Region 3'!G$42","v":{"v":0,"d":"$0.00"}},{"$f":"'MMA Rev-Exp Region 3'!H$42","v":{"v":0,"d":"$0.00"}},{"$f":"'MMA Rev-Exp Region 3'!I$42","v":{"v":0,"d":"$0.00"}},{"$f":"'MMA Rev-Exp Region 3'!J$42","v":{"v":0,"d":"$0.00"}},{"$f":"'MMA Rev-Exp Region 3'!K$42","v":{"v":0,"d":"$0.00"}},{"$f":"'MMA Rev-Exp Region 3'!L$42","v":{"v":0,"d":"$0.00"}},{"$f":"'MMA Rev-Exp Region 3'!M$42","v":{"v":0,"d":"$0.00"}},{"$f":"'MMA Rev-Exp Region 3'!N$42","v":{"v":0,"d":"$0.00"}},{"v":0,"d":"$0.00"}]
["MMA",null,null,{"$f":"Jurat!I$1","v":0},{"$f":"Jurat!D$33","v":"00:00:00"},"Q1","2017-03-31","Region 3","Operating Expense","Medical Benefits Expense","Mental Health Services",5.3,"Ending IBNP for Mental Health & Substance Abuse",{"$f":"'MMA Rev-Exp Region 3'!D$43","v":{"v":0,"d":"$0.00"}},{"$f":"'MMA Rev-Exp Region 3'!E$43","v":{"v":0,"d":"$0.00"}},{"$f":"'MMA Rev-Exp Region 3'!F$43","v":{"v":0,"d":"$0.00"}},{"$f":"'MMA Rev-Exp Region 3'!G$43","v":{"v":0,"d":"$0.00"}},{"$f":"'MMA Rev-Exp Region 3'!H$43","v":{"v":0,"d":"$0.00"}},{"$f":"'MMA Rev-Exp Region 3'!I$43","v":{"v":0,"d":"$0.00"}},{"$f":"'MMA Rev-Exp Region 3'!J$43","v":{"v":0,"d":"$0.00"}},{"$f":"'MMA Rev-Exp Region 3'!K$43","v":{"v":0,"d":"$0.00"}},{"$f":"'MMA Rev-Exp Region 3'!L$43","v":{"v":0,"d":"$0.00"}},{"$f":"'MMA Rev-Exp Region 3'!M$43","v":{"v":0,"d":"$0.00"}},{"$f":"'MMA Rev-Exp Region 3'!N$43","v":{"v":0,"d":"$0.00"}},{"v":0,"d":"$0.00"}]
["MMA",null,null,{"$f":"Jurat!I$1","v":0},{"$f":"Jurat!D$33","v":"00:00:00"},"Q1","2017-03-31","Region 3","Operating Expense","Medical Benefits Expense","Mental Health Services","5.4","Mental Health Settlements",{"$f":"'MMA Rev-Exp Region 3'!D$44","v":{"v":0,"d":"$0.00"}},{"$f":"'MMA Rev-Exp Region 3'!E$44","v":{"v":0,"d":"$0.00"}},{"$f":"'MMA Rev-Exp Region 3'!F$44","v":{"v":0,"d":"$0.00"}},{"$f":"'MMA Rev-Exp Region 3'!G$44","v":{"v":0,"d":"$0.00"}},{"$f":"'MMA Rev-Exp Region 3'!H$44","v":{"v":0,"d":"$0.00"}},{"$f":"'MMA Rev-Exp Region 3'!I$44","v":{"v":0,"d":"$0.00"}},{"$f":"'MMA Rev-Exp Region 3'!J$44","v":{"v":0,"d":"$0.00"}},{"$f":"'MMA Rev-Exp Region 3'!K$44","v":{"v":0,"d":"$0.00"}},{"$f":"'MMA Rev-Exp Region 3'!L$44","v":{"v":0,"d":"$0.00"}},{"$f":"'MMA Rev-Exp Region 3'!M$44","v":{"v":0,"d":"$0.00"}},{"$f":"'MMA Rev-Exp Region 3'!N$44","v":{"v":0,"d":"$0.00"}},{"v":0,"d":"$0.00"}]
["MMA",null,null,{"$f":"Jurat!I$1","v":0},{"$f":"Jurat!D$33","v":"00:00:00"},"Q1","2017-03-31","Region 3","Operating Expense","Medical Benefits Expense","Dental Services",6.1,"Dental FFS",{"$f":"'MMA Rev-Exp Region 3'!D$46","v":{"v":0,"d":"$0.00"}},{"$f":"'MMA Rev-Exp Region 3'!E$46","v":{"v":0,"d":"$0.00"}},{"$f":"'MMA Rev-Exp Region 3'!F$46","v":{"v":0,"d":"$0.00"}},{"$f":"'MMA Rev-Exp Region 3'!G$46","v":{"v":0,"d":"$0.00"}},{"$f":"'MMA Rev-Exp Region 3'!H$46","v":{"v":0,"d":"$0.00"}},{"$f":"'MMA Rev-Exp Region 3'!I$46","v":{"v":0,"d":"$0.00"}},{"$f":"'MMA Rev-Exp Region 3'!J$46","v":{"v":0,"d":"$0.00"}},{"$f":"'MMA Rev-Exp Region 3'!K$46","v":{"v":0,"d":"$0.00"}},{"$f":"'MMA Rev-Exp Region 3'!L$46","v":{"v":0,"d":"$0.00"}},{"$f":"'MMA Rev-Exp Region 3'!M$46","v":{"v":0,"d":"$0.00"}},{"$f":"'MMA Rev-Exp Region 3'!N$46","v":{"v":0,"d":"$0.00"}},{"v":0,"d":"$0.00"}]
["MMA",null,null,{"$f":"Jurat!I$1","v":0},{"$f":"Jurat!D$33","v":"00:00:00"},"Q1","2017-03-31","Region 3","Operating Expense","Medical Benefits Expense","Dental Services",6.2,"Dental Subcapitation",{"$f":"'MMA Rev-Exp Region 3'!D$47","v":{"v":0,"d":"$0.00"}},{"$f":"'MMA Rev-Exp Region 3'!E$47","v":{"v":0,"d":"$0.00"}},{"$f":"'MMA Rev-Exp Region 3'!F$47","v":{"v":0,"d":"$0.00"}},{"$f":"'MMA Rev-Exp Region 3'!G$47","v":{"v":0,"d":"$0.00"}},{"$f":"'MMA Rev-Exp Region 3'!H$47","v":{"v":0,"d":"$0.00"}},{"$f":"'MMA Rev-Exp Region 3'!I$47","v":{"v":0,"d":"$0.00"}},{"$f":"'MMA Rev-Exp Region 3'!J$47","v":{"v":0,"d":"$0.00"}},{"$f":"'MMA Rev-Exp Region 3'!K$47","v":{"v":0,"d":"$0.00"}},{"$f":"'MMA Rev-Exp Region 3'!L$47","v":{"v":0,"d":"$0.00"}},{"$f":"'MMA Rev-Exp Region 3'!M$47","v":{"v":0,"d":"$0.00"}},{"$f":"'MMA Rev-Exp Region 3'!N$47","v":{"v":0,"d":"$0.00"}},{"v":0,"d":"$0.00"}]
["MMA",null,null,{"$f":"Jurat!I$1","v":0},{"$f":"Jurat!D$33","v":"00:00:00"},"Q1","2017-03-31","Region 3","Operating Expense","Medical Benefits Expense","Dental Services",6.3,"Ending IBNP for Dental Services",{"$f":"'MMA Rev-Exp Region 3'!D$48","v":{"v":0,"d":"$0.00"}},{"$f":"'MMA Rev-Exp Region 3'!E$48","v":{"v":0,"d":"$0.00"}},{"$f":"'MMA Rev-Exp Region 3'!F$48","v":{"v":0,"d":"$0.00"}},{"$f":"'MMA Rev-Exp Region 3'!G$48","v":{"v":0,"d":"$0.00"}},{"$f":"'MMA Rev-Exp Region 3'!H$48","v":{"v":0,"d":"$0.00"}},{"$f":"'MMA Rev-Exp Region 3'!I$48","v":{"v":0,"d":"$0.00"}},{"$f":"'MMA Rev-Exp Region 3'!J$48","v":{"v":0,"d":"$0.00"}},{"$f":"'MMA Rev-Exp Region 3'!K$48","v":{"v":0,"d":"$0.00"}},{"$f":"'MMA Rev-Exp Region 3'!L$48","v":{"v":0,"d":"$0.00"}},{"$f":"'MMA Rev-Exp Region 3'!M$48","v":{"v":0,"d":"$0.00"}},{"$f":"'MMA Rev-Exp Region 3'!N$48","v":{"v":0,"d":"$0.00"}},{"v":0,"d":"$0.00"}]
["MMA",null,null,{"$f":"Jurat!I$1","v":0},{"$f":"Jurat!D$33","v":"00:00:00"},"Q1","2017-03-31","Region 3","Operating Expense","Medical Benefits Expense","Dental Services","6.4","Dental Settlements",{"$f":"'MMA Rev-Exp Region 3'!D$49","v":{"v":0,"d":"$0.00"}},{"$f":"'MMA Rev-Exp Region 3'!E$49","v":{"v":0,"d":"$0.00"}},{"$f":"'MMA Rev-Exp Region 3'!F$49","v":{"v":0,"d":"$0.00"}},{"$f":"'MMA Rev-Exp Region 3'!G$49","v":{"v":0,"d":"$0.00"}},{"$f":"'MMA Rev-Exp Region 3'!H$49","v":{"v":0,"d":"$0.00"}},{"$f":"'MMA Rev-Exp Region 3'!I$49","v":{"v":0,"d":"$0.00"}},{"$f":"'MMA Rev-Exp Region 3'!J$49","v":{"v":0,"d":"$0.00"}},{"$f":"'MMA Rev-Exp Region 3'!K$49","v":{"v":0,"d":"$0.00"}},{"$f":"'MMA Rev-Exp Region 3'!L$49","v":{"v":0,"d":"$0.00"}},{"$f":"'MMA Rev-Exp Region 3'!M$49","v":{"v":0,"d":"$0.00"}},{"$f":"'MMA Rev-Exp Region 3'!N$49","v":{"v":0,"d":"$0.00"}},{"v":0,"d":"$0.00"}]
["MMA",null,null,{"$f":"Jurat!I$1","v":0},{"$f":"Jurat!D$33","v":"00:00:00"},"Q1","2017-03-31","Region 3","Operating Expense","Medical Benefits Expense","Transportation Services",7.1,"Transportation FFS",{"$f":"'MMA Rev-Exp Region 3'!D$51","v":{"v":0,"d":"$0.00"}},{"$f":"'MMA Rev-Exp Region 3'!E$51","v":{"v":0,"d":"$0.00"}},{"$f":"'MMA Rev-Exp Region 3'!F$51","v":{"v":0,"d":"$0.00"}},{"$f":"'MMA Rev-Exp Region 3'!G$51","v":{"v":0,"d":"$0.00"}},{"$f":"'MMA Rev-Exp Region 3'!H$51","v":{"v":0,"d":"$0.00"}},{"$f":"'MMA Rev-Exp Region 3'!I$51","v":{"v":0,"d":"$0.00"}},{"$f":"'MMA Rev-Exp Region 3'!J$51","v":{"v":0,"d":"$0.00"}},{"$f":"'MMA Rev-Exp Region 3'!K$51","v":{"v":0,"d":"$0.00"}},{"$f":"'MMA Rev-Exp Region 3'!L$51","v":{"v":0,"d":"$0.00"}},{"$f":"'MMA Rev-Exp Region 3'!M$51","v":{"v":0,"d":"$0.00"}},{"$f":"'MMA Rev-Exp Region 3'!N$51","v":{"v":0,"d":"$0.00"}},{"v":0,"d":"$0.00"}]
["MMA",null,null,{"$f":"Jurat!I$1","v":0},{"$f":"Jurat!D$33","v":"00:00:00"},"Q1","2017-03-31","Region 3","Operating Expense","Medical Benefits Expense","Transportation Services",7.2,"Transportation Subcapitation",{"$f":"'MMA Rev-Exp Region 3'!D$52","v":{"v":0,"d":"$0.00"}},{"$f":"'MMA Rev-Exp Region 3'!E$52","v":{"v":0,"d":"$0.00"}},{"$f":"'MMA Rev-Exp Region 3'!F$52","v":{"v":0,"d":"$0.00"}},{"$f":"'MMA Rev-Exp Region 3'!G$52","v":{"v":0,"d":"$0.00"}},{"$f":"'MMA Rev-Exp Region 3'!H$52","v":{"v":0,"d":"$0.00"}},{"$f":"'MMA Rev-Exp Region 3'!I$52","v":{"v":0,"d":"$0.00"}},{"$f":"'MMA Rev-Exp Region 3'!J$52","v":{"v":0,"d":"$0.00"}},{"$f":"'MMA Rev-Exp Region 3'!K$52","v":{"v":0,"d":"$0.00"}},{"$f":"'MMA Rev-Exp Region 3'!L$52","v":{"v":0,"d":"$0.00"}},{"$f":"'MMA Rev-Exp Region 3'!M$52","v":{"v":0,"d":"$0.00"}},{"$f":"'MMA Rev-Exp Region 3'!N$52","v":{"v":0,"d":"$0.00"}},{"v":0,"d":"$0.00"}]
["MMA",null,null,{"$f":"Jurat!I$1","v":0},{"$f":"Jurat!D$33","v":"00:00:00"},"Q1","2017-03-31","Region 3","Operating Expense","Medical Benefits Expense","Transportation Services",7.3,"Ending IBNP for Transportation",{"$f":"'MMA Rev-Exp Region 3'!D$53","v":{"v":0,"d":"$0.00"}},{"$f":"'MMA Rev-Exp Region 3'!E$53","v":{"v":0,"d":"$0.00"}},{"$f":"'MMA Rev-Exp Region 3'!F$53","v":{"v":0,"d":"$0.00"}},{"$f":"'MMA Rev-Exp Region 3'!G$53","v":{"v":0,"d":"$0.00"}},{"$f":"'MMA Rev-Exp Region 3'!H$53","v":{"v":0,"d":"$0.00"}},{"$f":"'MMA Rev-Exp Region 3'!I$53","v":{"v":0,"d":"$0.00"}},{"$f":"'MMA Rev-Exp Region 3'!J$53","v":{"v":0,"d":"$0.00"}},{"$f":"'MMA Rev-Exp Region 3'!K$53","v":{"v":0,"d":"$0.00"}},{"$f":"'MMA Rev-Exp Region 3'!L$53","v":{"v":0,"d":"$0.00"}},{"$f":"'MMA Rev-Exp Region 3'!M$53","v":{"v":0,"d":"$0.00"}},{"$f":"'MMA Rev-Exp Region 3'!N$53","v":{"v":0,"d":"$0.00"}},{"v":0,"d":"$0.00"}]
["MMA",null,null,{"$f":"Jurat!I$1","v":0},{"$f":"Jurat!D$33","v":"00:00:00"},"Q1","2017-03-31","Region 3","Operating Expense","Medical Benefits Expense","Transportation Services","7.4","Transportation Settlements",{"$f":"'MMA Rev-Exp Region 3'!D$54","v":{"v":0,"d":"$0.00"}},{"$f":"'MMA Rev-Exp Region 3'!E$54","v":{"v":0,"d":"$0.00"}},{"$f":"'MMA Rev-Exp Region 3'!F$54","v":{"v":0,"d":"$0.00"}},{"$f":"'MMA Rev-Exp Region 3'!G$54","v":{"v":0,"d":"$0.00"}},{"$f":"'MMA Rev-Exp Region 3'!H$54","v":{"v":0,"d":"$0.00"}},{"$f":"'MMA Rev-Exp Region 3'!I$54","v":{"v":0,"d":"$0.00"}},{"$f":"'MMA Rev-Exp Region 3'!J$54","v":{"v":0,"d":"$0.00"}},{"$f":"'MMA Rev-Exp Region 3'!K$54","v":{"v":0,"d":"$0.00"}},{"$f":"'MMA Rev-Exp Region 3'!L$54","v":{"v":0,"d":"$0.00"}},{"$f":"'MMA Rev-Exp Region 3'!M$54","v":{"v":0,"d":"$0.00"}},{"$f":"'MMA Rev-Exp Region 3'!N$54","v":{"v":0,"d":"$0.00"}},{"v":0,"d":"$0.00"}]
["MMA",null,null,{"$f":"Jurat!I$1","v":0},{"$f":"Jurat!D$33","v":"00:00:00"},"Q1","2017-03-31","Region 3","Operating Expense","Medical Benefits Expense","Pharmacy Services",8.1,"Prescription Drugs FFS",{"$f":"'MMA Rev-Exp Region 3'!D$56","v":{"v":0,"d":"$0.00"}},{"$f":"'MMA Rev-Exp Region 3'!E$56","v":{"v":0,"d":"$0.00"}},{"$f":"'MMA Rev-Exp Region 3'!F$56","v":{"v":0,"d":"$0.00"}},{"$f":"'MMA Rev-Exp Region 3'!G$56","v":{"v":0,"d":"$0.00"}},{"$f":"'MMA Rev-Exp Region 3'!H$56","v":{"v":0,"d":"$0.00"}},{"$f":"'MMA Rev-Exp Region 3'!I$56","v":{"v":0,"d":"$0.00"}},{"$f":"'MMA Rev-Exp Region 3'!J$56","v":{"v":0,"d":"$0.00"}},{"$f":"'MMA Rev-Exp Region 3'!K$56","v":{"v":0,"d":"$0.00"}},{"$f":"'MMA Rev-Exp Region 3'!L$56","v":{"v":0,"d":"$0.00"}},{"$f":"'MMA Rev-Exp Region 3'!M$56","v":{"v":0,"d":"$0.00"}},{"$f":"'MMA Rev-Exp Region 3'!N$56","v":{"v":0,"d":"$0.00"}},{"v":0,"d":"$0.00"}]
["MMA",null,null,{"$f":"Jurat!I$1","v":0},{"$f":"Jurat!D$33","v":"00:00:00"},"Q1","2017-03-31","Region 3","Operating Expense","Medical Benefits Expense","Pharmacy Services","8.2","Hepatitis C Prescription Drug FFS",{"$f":"'MMA Rev-Exp Region 3'!D$57","v":{"v":0,"d":"$0.00"}},{"$f":"'MMA Rev-Exp Region 3'!E$57","v":{"v":0,"d":"$0.00"}},{"$f":"'MMA Rev-Exp Region 3'!F$57","v":{"v":0,"d":"$0.00"}},{"$f":"'MMA Rev-Exp Region 3'!G$57","v":{"v":0,"d":"$0.00"}},{"$f":"'MMA Rev-Exp Region 3'!H$57","v":{"v":0,"d":"$0.00"}},{"$f":"'MMA Rev-Exp Region 3'!I$57","v":{"v":0,"d":"$0.00"}},{"$f":"'MMA Rev-Exp Region 3'!J$57","v":{"v":0,"d":"$0.00"}},{"$f":"'MMA Rev-Exp Region 3'!K$57","v":{"v":0,"d":"$0.00"}},{"$f":"'MMA Rev-Exp Region 3'!L$57","v":{"v":0,"d":"$0.00"}},{"$f":"'MMA Rev-Exp Region 3'!M$57","v":{"v":0,"d":"$0.00"}},{"$f":"'MMA Rev-Exp Region 3'!N$57","v":{"v":0,"d":"$0.00"}},{"v":0,"d":"$0.00"}]
["MMA",null,null,{"$f":"Jurat!I$1","v":0},{"$f":"Jurat!D$33","v":"00:00:00"},"Q1","2017-03-31","Region 3","Operating Expense","Medical Benefits Expense","Pharmacy Services","8.3","Ending IBNP for Prescription Drugs",{"$f":"'MMA Rev-Exp Region 3'!D$58","v":{"v":0,"d":"$0.00"}},{"$f":"'MMA Rev-Exp Region 3'!E$58","v":{"v":0,"d":"$0.00"}},{"$f":"'MMA Rev-Exp Region 3'!F$58","v":{"v":0,"d":"$0.00"}},{"$f":"'MMA Rev-Exp Region 3'!G$58","v":{"v":0,"d":"$0.00"}},{"$f":"'MMA Rev-Exp Region 3'!H$58","v":{"v":0,"d":"$0.00"}},{"$f":"'MMA Rev-Exp Region 3'!I$58","v":{"v":0,"d":"$0.00"}},{"$f":"'MMA Rev-Exp Region 3'!J$58","v":{"v":0,"d":"$0.00"}},{"$f":"'MMA Rev-Exp Region 3'!K$58","v":{"v":0,"d":"$0.00"}},{"$f":"'MMA Rev-Exp Region 3'!L$58","v":{"v":0,"d":"$0.00"}},{"$f":"'MMA Rev-Exp Region 3'!M$58","v":{"v":0,"d":"$0.00"}},{"$f":"'MMA Rev-Exp Region 3'!N$58","v":{"v":0,"d":"$0.00"}},{"v":0,"d":"$0.00"}]
["MMA",null,null,{"$f":"Jurat!I$1","v":0},{"$f":"Jurat!D$33","v":"00:00:00"},"Q1","2017-03-31","Region 3","Operating Expense","Medical Benefits Expense","Pharmacy Services","8.4","Prescription Drug Rebates ",{"$f":"'MMA Rev-Exp Region 3'!D$59","v":{"v":0,"d":"$0.00"}},{"$f":"'MMA Rev-Exp Region 3'!E$59","v":{"v":0,"d":"$0.00"}},{"$f":"'MMA Rev-Exp Region 3'!F$59","v":{"v":0,"d":"$0.00"}},{"$f":"'MMA Rev-Exp Region 3'!G$59","v":{"v":0,"d":"$0.00"}},{"$f":"'MMA Rev-Exp Region 3'!H$59","v":{"v":0,"d":"$0.00"}},{"$f":"'MMA Rev-Exp Region 3'!I$59","v":{"v":0,"d":"$0.00"}},{"$f":"'MMA Rev-Exp Region 3'!J$59","v":{"v":0,"d":"$0.00"}},{"$f":"'MMA Rev-Exp Region 3'!K$59","v":{"v":0,"d":"$0.00"}},{"$f":"'MMA Rev-Exp Region 3'!L$59","v":{"v":0,"d":"$0.00"}},{"$f":"'MMA Rev-Exp Region 3'!M$59","v":{"v":0,"d":"$0.00"}},{"$f":"'MMA Rev-Exp Region 3'!N$59","v":{"v":0,"d":"$0.00"}},{"v":0,"d":"$0.00"}]
["MMA",null,null,{"$f":"Jurat!I$1","v":0},{"$f":"Jurat!D$33","v":"00:00:00"},"Q1","2017-03-31","Region 3","Operating Expense","Medical Benefits Expense","Pharmacy Services","8.5","Ending accrual for Rebates receivable",{"$f":"'MMA Rev-Exp Region 3'!D$60","v":{"v":0,"d":"$0.00"}},{"$f":"'MMA Rev-Exp Region 3'!E$60","v":{"v":0,"d":"$0.00"}},{"$f":"'MMA Rev-Exp Region 3'!F$60","v":{"v":0,"d":"$0.00"}},{"$f":"'MMA Rev-Exp Region 3'!G$60","v":{"v":0,"d":"$0.00"}},{"$f":"'MMA Rev-Exp Region 3'!H$60","v":{"v":0,"d":"$0.00"}},{"$f":"'MMA Rev-Exp Region 3'!I$60","v":{"v":0,"d":"$0.00"}},{"$f":"'MMA Rev-Exp Region 3'!J$60","v":{"v":0,"d":"$0.00"}},{"$f":"'MMA Rev-Exp Region 3'!K$60","v":{"v":0,"d":"$0.00"}},{"$f":"'MMA Rev-Exp Region 3'!L$60","v":{"v":0,"d":"$0.00"}},{"$f":"'MMA Rev-Exp Region 3'!M$60","v":{"v":0,"d":"$0.00"}},{"$f":"'MMA Rev-Exp Region 3'!N$60","v":{"v":0,"d":"$0.00"}},{"v":0,"d":"$0.00"}]
["MMA",null,null,{"$f":"Jurat!I$1","v":0},{"$f":"Jurat!D$33","v":"00:00:00"},"Q1","2017-03-31","Region 3","Operating Expense","Medical Benefits Expense","Pharmacy Services","8.6","Prescription Drugs Subcapitation",{"$f":"'MMA Rev-Exp Region 3'!D$61","v":{"v":0,"d":"$0.00"}},{"$f":"'MMA Rev-Exp Region 3'!E$61","v":{"v":0,"d":"$0.00"}},{"$f":"'MMA Rev-Exp Region 3'!F$61","v":{"v":0,"d":"$0.00"}},{"$f":"'MMA Rev-Exp Region 3'!G$61","v":{"v":0,"d":"$0.00"}},{"$f":"'MMA Rev-Exp Region 3'!H$61","v":{"v":0,"d":"$0.00"}},{"$f":"'MMA Rev-Exp Region 3'!I$61","v":{"v":0,"d":"$0.00"}},{"$f":"'MMA Rev-Exp Region 3'!J$61","v":{"v":0,"d":"$0.00"}},{"$f":"'MMA Rev-Exp Region 3'!K$61","v":{"v":0,"d":"$0.00"}},{"$f":"'MMA Rev-Exp Region 3'!L$61","v":{"v":0,"d":"$0.00"}},{"$f":"'MMA Rev-Exp Region 3'!M$61","v":{"v":0,"d":"$0.00"}},{"$f":"'MMA Rev-Exp Region 3'!N$61","v":{"v":0,"d":"$0.00"}},{"v":0,"d":"$0.00"}]
["MMA",null,null,{"$f":"Jurat!I$1","v":0},{"$f":"Jurat!D$33","v":"00:00:00"},"Q1","2017-03-31","Region 3","Operating Expense","Medical Benefits Expense","Pharmacy Services","8.7","Prescription Drug Settlements",{"$f":"'MMA Rev-Exp Region 3'!D$62","v":{"v":0,"d":"$0.00"}},{"$f":"'MMA Rev-Exp Region 3'!E$62","v":{"v":0,"d":"$0.00"}},{"$f":"'MMA Rev-Exp Region 3'!F$62","v":{"v":0,"d":"$0.00"}},{"$f":"'MMA Rev-Exp Region 3'!G$62","v":{"v":0,"d":"$0.00"}},{"$f":"'MMA Rev-Exp Region 3'!H$62","v":{"v":0,"d":"$0.00"}},{"$f":"'MMA Rev-Exp Region 3'!I$62","v":{"v":0,"d":"$0.00"}},{"$f":"'MMA Rev-Exp Region 3'!J$62","v":{"v":0,"d":"$0.00"}},{"$f":"'MMA Rev-Exp Region 3'!K$62","v":{"v":0,"d":"$0.00"}},{"$f":"'MMA Rev-Exp Region 3'!L$62","v":{"v":0,"d":"$0.00"}},{"$f":"'MMA Rev-Exp Region 3'!M$62","v":{"v":0,"d":"$0.00"}},{"$f":"'MMA Rev-Exp Region 3'!N$62","v":{"v":0,"d":"$0.00"}},{"v":0,"d":"$0.00"}]
["MMA",null,null,{"$f":"Jurat!I$1","v":0},{"$f":"Jurat!D$33","v":"00:00:00"},"Q1","2017-03-31","Region 3","Operating Expense","Medical Benefits Expense","Other MMA Services",9.1,"Home Health, Private Duty Nursing, Personal Care FFS",{"$f":"'MMA Rev-Exp Region 3'!D$64","v":{"v":0,"d":"$0.00"}},{"$f":"'MMA Rev-Exp Region 3'!E$64","v":{"v":0,"d":"$0.00"}},{"$f":"'MMA Rev-Exp Region 3'!F$64","v":{"v":0,"d":"$0.00"}},{"$f":"'MMA Rev-Exp Region 3'!G$64","v":{"v":0,"d":"$0.00"}},{"$f":"'MMA Rev-Exp Region 3'!H$64","v":{"v":0,"d":"$0.00"}},{"$f":"'MMA Rev-Exp Region 3'!I$64","v":{"v":0,"d":"$0.00"}},{"$f":"'MMA Rev-Exp Region 3'!J$64","v":{"v":0,"d":"$0.00"}},{"$f":"'MMA Rev-Exp Region 3'!K$64","v":{"v":0,"d":"$0.00"}},{"$f":"'MMA Rev-Exp Region 3'!L$64","v":{"v":0,"d":"$0.00"}},{"$f":"'MMA Rev-Exp Region 3'!M$64","v":{"v":0,"d":"$0.00"}},{"$f":"'MMA Rev-Exp Region 3'!N$64","v":{"v":0,"d":"$0.00"}},{"v":0,"d":"$0.00"}]
["MMA",null,null,{"$f":"Jurat!I$1","v":0},{"$f":"Jurat!D$33","v":"00:00:00"},"Q1","2017-03-31","Region 3","Operating Expense","Medical Benefits Expense","Other MMA Services","9.2","Hospice FFS",{"$f":"'MMA Rev-Exp Region 3'!D$65","v":{"v":0,"d":"$0.00"}},{"$f":"'MMA Rev-Exp Region 3'!E$65","v":{"v":0,"d":"$0.00"}},{"$f":"'MMA Rev-Exp Region 3'!F$65","v":{"v":0,"d":"$0.00"}},{"$f":"'MMA Rev-Exp Region 3'!G$65","v":{"v":0,"d":"$0.00"}},{"$f":"'MMA Rev-Exp Region 3'!H$65","v":{"v":0,"d":"$0.00"}},{"$f":"'MMA Rev-Exp Region 3'!I$65","v":{"v":0,"d":"$0.00"}},{"$f":"'MMA Rev-Exp Region 3'!J$65","v":{"v":0,"d":"$0.00"}},{"$f":"'MMA Rev-Exp Region 3'!K$65","v":{"v":0,"d":"$0.00"}},{"$f":"'MMA Rev-Exp Region 3'!L$65","v":{"v":0,"d":"$0.00"}},{"$f":"'MMA Rev-Exp Region 3'!M$65","v":{"v":0,"d":"$0.00"}},{"$f":"'MMA Rev-Exp Region 3'!N$65","v":{"v":0,"d":"$0.00"}},{"v":0,"d":"$0.00"}]
["MMA",null,null,{"$f":"Jurat!I$1","v":0},{"$f":"Jurat!D$33","v":"00:00:00"},"Q1","2017-03-31","Region 3","Operating Expense","Medical Benefits Expense","Other MMA Services","9.3","DME FFS",{"$f":"'MMA Rev-Exp Region 3'!D$66","v":{"v":0,"d":"$0.00"}},{"$f":"'MMA Rev-Exp Region 3'!E$66","v":{"v":0,"d":"$0.00"}},{"$f":"'MMA Rev-Exp Region 3'!F$66","v":{"v":0,"d":"$0.00"}},{"$f":"'MMA Rev-Exp Region 3'!G$66","v":{"v":0,"d":"$0.00"}},{"$f":"'MMA Rev-Exp Region 3'!H$66","v":{"v":0,"d":"$0.00"}},{"$f":"'MMA Rev-Exp Region 3'!I$66","v":{"v":0,"d":"$0.00"}},{"$f":"'MMA Rev-Exp Region 3'!J$66","v":{"v":0,"d":"$0.00"}},{"$f":"'MMA Rev-Exp Region 3'!K$66","v":{"v":0,"d":"$0.00"}},{"$f":"'MMA Rev-Exp Region 3'!L$66","v":{"v":0,"d":"$0.00"}},{"$f":"'MMA Rev-Exp Region 3'!M$66","v":{"v":0,"d":"$0.00"}},{"$f":"'MMA Rev-Exp Region 3'!N$66","v":{"v":0,"d":"$0.00"}},{"v":0,"d":"$0.00"}]
["MMA",null,null,{"$f":"Jurat!I$1","v":0},{"$f":"Jurat!D$33","v":"00:00:00"},"Q1","2017-03-31","Region 3","Operating Expense","Medical Benefits Expense","Other MMA Services","9.4","Other State Plan Services FFS",{"$f":"'MMA Rev-Exp Region 3'!D$67","v":{"v":0,"d":"$0.00"}},{"$f":"'MMA Rev-Exp Region 3'!E$67","v":{"v":0,"d":"$0.00"}},{"$f":"'MMA Rev-Exp Region 3'!F$67","v":{"v":0,"d":"$0.00"}},{"$f":"'MMA Rev-Exp Region 3'!G$67","v":{"v":0,"d":"$0.00"}},{"$f":"'MMA Rev-Exp Region 3'!H$67","v":{"v":0,"d":"$0.00"}},{"$f":"'MMA Rev-Exp Region 3'!I$67","v":{"v":0,"d":"$0.00"}},{"$f":"'MMA Rev-Exp Region 3'!J$67","v":{"v":0,"d":"$0.00"}},{"$f":"'MMA Rev-Exp Region 3'!K$67","v":{"v":0,"d":"$0.00"}},{"$f":"'MMA Rev-Exp Region 3'!L$67","v":{"v":0,"d":"$0.00"}},{"$f":"'MMA Rev-Exp Region 3'!M$67","v":{"v":0,"d":"$0.00"}},{"$f":"'MMA Rev-Exp Region 3'!N$67","v":{"v":0,"d":"$0.00"}},{"v":0,"d":"$0.00"}]
["MMA",null,null,{"$f":"Jurat!I$1","v":0},{"$f":"Jurat!D$33","v":"00:00:00"},"Q1","2017-03-31","Region 3","Operating Expense","Medical Benefits Expense","Other MMA Services","9.5","Other Services Subcapitation",{"$f":"'MMA Rev-Exp Region 3'!D$68","v":{"v":0,"d":"$0.00"}},{"$f":"'MMA Rev-Exp Region 3'!E$68","v":{"v":0,"d":"$0.00"}},{"$f":"'MMA Rev-Exp Region 3'!F$68","v":{"v":0,"d":"$0.00"}},{"$f":"'MMA Rev-Exp Region 3'!G$68","v":{"v":0,"d":"$0.00"}},{"$f":"'MMA Rev-Exp Region 3'!H$68","v":{"v":0,"d":"$0.00"}},{"$f":"'MMA Rev-Exp Region 3'!I$68","v":{"v":0,"d":"$0.00"}},{"$f":"'MMA Rev-Exp Region 3'!J$68","v":{"v":0,"d":"$0.00"}},{"$f":"'MMA Rev-Exp Region 3'!K$68","v":{"v":0,"d":"$0.00"}},{"$f":"'MMA Rev-Exp Region 3'!L$68","v":{"v":0,"d":"$0.00"}},{"$f":"'MMA Rev-Exp Region 3'!M$68","v":{"v":0,"d":"$0.00"}},{"$f":"'MMA Rev-Exp Region 3'!N$68","v":{"v":0,"d":"$0.00"}},{"v":0,"d":"$0.00"}]
["MMA",null,null,{"$f":"Jurat!I$1","v":0},{"$f":"Jurat!D$33","v":"00:00:00"},"Q1","2017-03-31","Region 3","Operating Expense","Medical Benefits Expense","Other MMA Services","9.6","Ending IBNP for Other Services",{"$f":"'MMA Rev-Exp Region 3'!D$69","v":{"v":0,"d":"$0.00"}},{"$f":"'MMA Rev-Exp Region 3'!E$69","v":{"v":0,"d":"$0.00"}},{"$f":"'MMA Rev-Exp Region 3'!F$69","v":{"v":0,"d":"$0.00"}},{"$f":"'MMA Rev-Exp Region 3'!G$69","v":{"v":0,"d":"$0.00"}},{"$f":"'MMA Rev-Exp Region 3'!H$69","v":{"v":0,"d":"$0.00"}},{"$f":"'MMA Rev-Exp Region 3'!I$69","v":{"v":0,"d":"$0.00"}},{"$f":"'MMA Rev-Exp Region 3'!J$69","v":{"v":0,"d":"$0.00"}},{"$f":"'MMA Rev-Exp Region 3'!K$69","v":{"v":0,"d":"$0.00"}},{"$f":"'MMA Rev-Exp Region 3'!L$69","v":{"v":0,"d":"$0.00"}},{"$f":"'MMA Rev-Exp Region 3'!M$69","v":{"v":0,"d":"$0.00"}},{"$f":"'MMA Rev-Exp Region 3'!N$69","v":{"v":0,"d":"$0.00"}},{"v":0,"d":"$0.00"}]
["MMA",null,null,{"$f":"Jurat!I$1","v":0},{"$f":"Jurat!D$33","v":"00:00:00"},"Q1","2017-03-31","Region 3","Operating Expense","Medical Benefits Expense","Other MMA Services","9.7","Other Services Settlements",{"$f":"'MMA Rev-Exp Region 3'!D$70","v":{"v":0,"d":"$0.00"}},{"$f":"'MMA Rev-Exp Region 3'!E$70","v":{"v":0,"d":"$0.00"}},{"$f":"'MMA Rev-Exp Region 3'!F$70","v":{"v":0,"d":"$0.00"}},{"$f":"'MMA Rev-Exp Region 3'!G$70","v":{"v":0,"d":"$0.00"}},{"$f":"'MMA Rev-Exp Region 3'!H$70","v":{"v":0,"d":"$0.00"}},{"$f":"'MMA Rev-Exp Region 3'!I$70","v":{"v":0,"d":"$0.00"}},{"$f":"'MMA Rev-Exp Region 3'!J$70","v":{"v":0,"d":"$0.00"}},{"$f":"'MMA Rev-Exp Region 3'!K$70","v":{"v":0,"d":"$0.00"}},{"$f":"'MMA Rev-Exp Region 3'!L$70","v":{"v":0,"d":"$0.00"}},{"$f":"'MMA Rev-Exp Region 3'!M$70","v":{"v":0,"d":"$0.00"}},{"$f":"'MMA Rev-Exp Region 3'!N$70","v":{"v":0,"d":"$0.00"}},{"v":0,"d":"$0.00"}]
["MMA",null,null,{"$f":"Jurat!I$1","v":0},{"$f":"Jurat!D$33","v":"00:00:00"},"Q1","2017-03-31","Region 3","Operating Expense","Medical Benefits Expense","Expanded Benefits","10.1","Expanded Benefits FFS",{"$f":"'MMA Rev-Exp Region 3'!D$72","v":{"v":0,"d":"$0.00"}},{"$f":"'MMA Rev-Exp Region 3'!E$72","v":{"v":0,"d":"$0.00"}},{"$f":"'MMA Rev-Exp Region 3'!F$72","v":{"v":0,"d":"$0.00"}},{"$f":"'MMA Rev-Exp Region 3'!G$72","v":{"v":0,"d":"$0.00"}},{"$f":"'MMA Rev-Exp Region 3'!H$72","v":{"v":0,"d":"$0.00"}},{"$f":"'MMA Rev-Exp Region 3'!I$72","v":{"v":0,"d":"$0.00"}},{"$f":"'MMA Rev-Exp Region 3'!J$72","v":{"v":0,"d":"$0.00"}},{"$f":"'MMA Rev-Exp Region 3'!K$72","v":{"v":0,"d":"$0.00"}},{"$f":"'MMA Rev-Exp Region 3'!L$72","v":{"v":0,"d":"$0.00"}},{"$f":"'MMA Rev-Exp Region 3'!M$72","v":{"v":0,"d":"$0.00"}},{"$f":"'MMA Rev-Exp Region 3'!N$72","v":{"v":0,"d":"$0.00"}},{"v":0,"d":"$0.00"}]
["MMA",null,null,{"$f":"Jurat!I$1","v":0},{"$f":"Jurat!D$33","v":"00:00:00"},"Q1","2017-03-31","Region 3","Operating Expense","Medical Benefits Expense","Expanded Benefits","10.2","Expanded benefits Subcapitation",{"$f":"'MMA Rev-Exp Region 3'!D$73","v":{"v":0,"d":"$0.00"}},{"$f":"'MMA Rev-Exp Region 3'!E$73","v":{"v":0,"d":"$0.00"}},{"$f":"'MMA Rev-Exp Region 3'!F$73","v":{"v":0,"d":"$0.00"}},{"$f":"'MMA Rev-Exp Region 3'!G$73","v":{"v":0,"d":"$0.00"}},{"$f":"'MMA Rev-Exp Region 3'!H$73","v":{"v":0,"d":"$0.00"}},{"$f":"'MMA Rev-Exp Region 3'!I$73","v":{"v":0,"d":"$0.00"}},{"$f":"'MMA Rev-Exp Region 3'!J$73","v":{"v":0,"d":"$0.00"}},{"$f":"'MMA Rev-Exp Region 3'!K$73","v":{"v":0,"d":"$0.00"}},{"$f":"'MMA Rev-Exp Region 3'!L$73","v":{"v":0,"d":"$0.00"}},{"$f":"'MMA Rev-Exp Region 3'!M$73","v":{"v":0,"d":"$0.00"}},{"$f":"'MMA Rev-Exp Region 3'!N$73","v":{"v":0,"d":"$0.00"}},{"v":0,"d":"$0.00"}]
["MMA",null,null,{"$f":"Jurat!I$1","v":0},{"$f":"Jurat!D$33","v":"00:00:00"},"Q1","2017-03-31","Region 3","Operating Expense","Medical Benefits Expense","Expanded Benefits","10.3","Ending IBNP for Expanded Benefits",{"$f":"'MMA Rev-Exp Region 3'!D$74","v":{"v":0,"d":"$0.00"}},{"$f":"'MMA Rev-Exp Region 3'!E$74","v":{"v":0,"d":"$0.00"}},{"$f":"'MMA Rev-Exp Region 3'!F$74","v":{"v":0,"d":"$0.00"}},{"$f":"'MMA Rev-Exp Region 3'!G$74","v":{"v":0,"d":"$0.00"}},{"$f":"'MMA Rev-Exp Region 3'!H$74","v":{"v":0,"d":"$0.00"}},{"$f":"'MMA Rev-Exp Region 3'!I$74","v":{"v":0,"d":"$0.00"}},{"$f":"'MMA Rev-Exp Region 3'!J$74","v":{"v":0,"d":"$0.00"}},{"$f":"'MMA Rev-Exp Region 3'!K$74","v":{"v":0,"d":"$0.00"}},{"$f":"'MMA Rev-Exp Region 3'!L$74","v":{"v":0,"d":"$0.00"}},{"$f":"'MMA Rev-Exp Region 3'!M$74","v":{"v":0,"d":"$0.00"}},{"$f":"'MMA Rev-Exp Region 3'!N$74","v":{"v":0,"d":"$0.00"}},{"v":0,"d":"$0.00"}]
["MMA",null,null,{"$f":"Jurat!I$1","v":0},{"$f":"Jurat!D$33","v":"00:00:00"},"Q1","2017-03-31","Region 3","Operating Expense","Medical Benefits Expense","Expanded Benefits","10.4","Expanded Benefits Settlements",{"$f":"'MMA Rev-Exp Region 3'!D$75","v":{"v":0,"d":"$0.00"}},{"$f":"'MMA Rev-Exp Region 3'!E$75","v":{"v":0,"d":"$0.00"}},{"$f":"'MMA Rev-Exp Region 3'!F$75","v":{"v":0,"d":"$0.00"}},{"$f":"'MMA Rev-Exp Region 3'!G$75","v":{"v":0,"d":"$0.00"}},{"$f":"'MMA Rev-Exp Region 3'!H$75","v":{"v":0,"d":"$0.00"}},{"$f":"'MMA Rev-Exp Region 3'!I$75","v":{"v":0,"d":"$0.00"}},{"$f":"'MMA Rev-Exp Region 3'!J$75","v":{"v":0,"d":"$0.00"}},{"$f":"'MMA Rev-Exp Region 3'!K$75","v":{"v":0,"d":"$0.00"}},{"$f":"'MMA Rev-Exp Region 3'!L$75","v":{"v":0,"d":"$0.00"}},{"$f":"'MMA Rev-Exp Region 3'!M$75","v":{"v":0,"d":"$0.00"}},{"$f":"'MMA Rev-Exp Region 3'!N$75","v":{"v":0,"d":"$0.00"}},{"v":0,"d":"$0.00"}]
["MMA",null,null,{"$f":"Jurat!I$1","v":0},{"$f":"Jurat!D$33","v":"00:00:00"},"Q1","2017-03-31","Region 3","Operating Expense","Medical Benefits Expense","Other Medical","11.5","TPL & Fraud/Abuse Recoveries",{"$f":"'MMA Rev-Exp Region 3'!D$81","v":{"v":0,"d":"$0.00"}},{"$f":"'MMA Rev-Exp Region 3'!E$81","v":{"v":0,"d":"$0.00"}},{"$f":"'MMA Rev-Exp Region 3'!F$81","v":{"v":0,"d":"$0.00"}},{"$f":"'MMA Rev-Exp Region 3'!G$81","v":{"v":0,"d":"$0.00"}},{"$f":"'MMA Rev-Exp Region 3'!H$81","v":{"v":0,"d":"$0.00"}},{"$f":"'MMA Rev-Exp Region 3'!I$81","v":{"v":0,"d":"$0.00"}},{"$f":"'MMA Rev-Exp Region 3'!J$81","v":{"v":0,"d":"$0.00"}},{"$f":"'MMA Rev-Exp Region 3'!K$81","v":{"v":0,"d":"$0.00"}},{"$f":"'MMA Rev-Exp Region 3'!L$81","v":{"v":0,"d":"$0.00"}},{"$f":"'MMA Rev-Exp Region 3'!M$81","v":{"v":0,"d":"$0.00"}},{"$f":"'MMA Rev-Exp Region 3'!N$81","v":{"v":0,"d":"$0.00"}},{"v":0,"d":"$0.00"}]
["MMA",null,null,{"$f":"Jurat!I$1","v":0},{"$f":"Jurat!D$33","v":"00:00:00"},"Q1","2017-03-31","Region 3","Operating Expense","Medical Benefits Expense","Other Medical","11.6.1","Premium Deficiency Reserve",{"$f":"'MMA Rev-Exp Region 3'!D$82","v":{"v":0,"d":"$0.00"}},{"$f":"'MMA Rev-Exp Region 3'!E$82","v":{"v":0,"d":"$0.00"}},{"$f":"'MMA Rev-Exp Region 3'!F$82","v":{"v":0,"d":"$0.00"}},{"$f":"'MMA Rev-Exp Region 3'!G$82","v":{"v":0,"d":"$0.00"}},{"$f":"'MMA Rev-Exp Region 3'!H$82","v":{"v":0,"d":"$0.00"}},{"$f":"'MMA Rev-Exp Region 3'!I$82","v":{"v":0,"d":"$0.00"}},{"$f":"'MMA Rev-Exp Region 3'!J$82","v":{"v":0,"d":"$0.00"}},{"$f":"'MMA Rev-Exp Region 3'!K$82","v":{"v":0,"d":"$0.00"}},{"$f":"'MMA Rev-Exp Region 3'!L$82","v":{"v":0,"d":"$0.00"}},{"$f":"'MMA Rev-Exp Region 3'!M$82","v":{"v":0,"d":"$0.00"}},{"$f":"'MMA Rev-Exp Region 3'!N$82","v":{"v":0,"d":"$0.00"}},{"v":0,"d":"$0.00"}]
["MMA",null,null,{"$f":"Jurat!I$1","v":0},{"$f":"Jurat!D$33","v":"00:00:00"},"Q1","2017-03-31","Region 3","Operating Expense","Medical Benefits Expense","Other Medical","11.8","Reinsurance Premiums",{"$f":"'MMA Rev-Exp Region 3'!D$84","v":{"v":0,"d":"$0.00"}},{"$f":"'MMA Rev-Exp Region 3'!E$84","v":{"v":0,"d":"$0.00"}},{"$f":"'MMA Rev-Exp Region 3'!F$84","v":{"v":0,"d":"$0.00"}},{"$f":"'MMA Rev-Exp Region 3'!G$84","v":{"v":0,"d":"$0.00"}},{"$f":"'MMA Rev-Exp Region 3'!H$84","v":{"v":0,"d":"$0.00"}},{"$f":"'MMA Rev-Exp Region 3'!I$84","v":{"v":0,"d":"$0.00"}},{"$f":"'MMA Rev-Exp Region 3'!J$84","v":{"v":0,"d":"$0.00"}},{"$f":"'MMA Rev-Exp Region 3'!K$84","v":{"v":0,"d":"$0.00"}},{"$f":"'MMA Rev-Exp Region 3'!L$84","v":{"v":0,"d":"$0.00"}},{"$f":"'MMA Rev-Exp Region 3'!M$84","v":{"v":0,"d":"$0.00"}},{"$f":"'MMA Rev-Exp Region 3'!N$84","v":{"v":0,"d":"$0.00"}},{"v":0,"d":"$0.00"}]
["MMA",null,null,{"$f":"Jurat!I$1","v":0},{"$f":"Jurat!D$33","v":"00:00:00"},"Q1","2017-03-31","Region 3","Operating Expense","Medical Benefits Expense","Other Medical","11.9","Reinsurance Recoveries",{"$f":"'MMA Rev-Exp Region 3'!D$85","v":{"v":0,"d":"$0.00"}},{"$f":"'MMA Rev-Exp Region 3'!E$85","v":{"v":0,"d":"$0.00"}},{"$f":"'MMA Rev-Exp Region 3'!F$85","v":{"v":0,"d":"$0.00"}},{"$f":"'MMA Rev-Exp Region 3'!G$85","v":{"v":0,"d":"$0.00"}},{"$f":"'MMA Rev-Exp Region 3'!H$85","v":{"v":0,"d":"$0.00"}},{"$f":"'MMA Rev-Exp Region 3'!I$85","v":{"v":0,"d":"$0.00"}},{"$f":"'MMA Rev-Exp Region 3'!J$85","v":{"v":0,"d":"$0.00"}},{"$f":"'MMA Rev-Exp Region 3'!K$85","v":{"v":0,"d":"$0.00"}},{"$f":"'MMA Rev-Exp Region 3'!L$85","v":{"v":0,"d":"$0.00"}},{"$f":"'MMA Rev-Exp Region 3'!M$85","v":{"v":0,"d":"$0.00"}},{"$f":"'MMA Rev-Exp Region 3'!N$85","v":{"v":0,"d":"$0.00"}},{"v":0,"d":"$0.00"}]
["MMA",null,null,{"$f":"Jurat!I$1","v":0},{"$f":"Jurat!D$33","v":"00:00:00"},"Q1","2017-03-31","Region 3","Operating Expense","Administrative Expense","Administrative","12.1","Salaries & Benefits",{"$f":"'MMA Rev-Exp Region 3'!D$90","v":{"v":0,"d":"$0.00"}},{"v":0,"d":"$0.00"},{"v":0,"d":"$0.00"},{"v":0,"d":"$0.00"},{"v":0,"d":"$0.00"},{"v":0,"d":"$0.00"},{"v":0,"d":"$0.00"},{"v":0,"d":"$0.00"},{"v":0,"d":"$0.00"},{"v":0,"d":"$0.00"},{"v":0,"d":"$0.00"},{"v":0,"d":"$0.00"}]
["MMA",null,null,{"$f":"Jurat!I$1","v":0},{"$f":"Jurat!D$33","v":"00:00:00"},"Q1","2017-03-31","Region 3","Operating Expense","Administrative Expense","Administrative","12.2","Administrative Services",{"$f":"'MMA Rev-Exp Region 3'!D$91","v":{"v":0,"d":"$0.00"}},{"v":0,"d":"$0.00"},{"v":0,"d":"$0.00"},{"v":0,"d":"$0.00"},{"v":0,"d":"$0.00"},{"v":0,"d":"$0.00"},{"v":0,"d":"$0.00"},{"v":0,"d":"$0.00"},{"v":0,"d":"$0.00"},{"v":0,"d":"$0.00"},{"v":0,"d":"$0.00"},{"v":0,"d":"$0.00"}]
["MMA",null,null,{"$f":"Jurat!I$1","v":0},{"$f":"Jurat!D$33","v":"00:00:00"},"Q1","2017-03-31","Region 3","Operating Expense","Administrative Expense","Administrative","12.3","Information Systems",{"$f":"'MMA Rev-Exp Region 3'!D$92","v":{"v":0,"d":"$0.00"}},{"v":0,"d":"$0.00"},{"v":0,"d":"$0.00"},{"v":0,"d":"$0.00"},{"v":0,"d":"$0.00"},{"v":0,"d":"$0.00"},{"v":0,"d":"$0.00"},{"v":0,"d":"$0.00"},{"v":0,"d":"$0.00"},{"v":0,"d":"$0.00"},{"v":0,"d":"$0.00"},{"v":0,"d":"$0.00"}]
["MMA",null,null,{"$f":"Jurat!I$1","v":0},{"$f":"Jurat!D$33","v":"00:00:00"},"Q1","2017-03-31","Region 3","Operating Expense","Administrative Expense","Administrative","12.4","Marketing Expenses",{"$f":"'MMA Rev-Exp Region 3'!D$93","v":{"v":0,"d":"$0.00"}},{"v":0,"d":"$0.00"},{"v":0,"d":"$0.00"},{"v":0,"d":"$0.00"},{"v":0,"d":"$0.00"},{"v":0,"d":"$0.00"},{"v":0,"d":"$0.00"},{"v":0,"d":"$0.00"},{"v":0,"d":"$0.00"},{"v":0,"d":"$0.00"},{"v":0,"d":"$0.00"},{"v":0,"d":"$0.00"}]
["MMA",null,null,{"$f":"Jurat!I$1","v":0},{"$f":"Jurat!D$33","v":"00:00:00"},"Q1","2017-03-31","Region 3","Operating Expense","Administrative Expense","Administrative","12.5","General  Administration",{"$f":"'MMA Rev-Exp Region 3'!D$94","v":{"v":0,"d":"$0.00"}},{"v":0,"d":"$0.00"},{"v":0,"d":"$0.00"},{"v":0,"d":"$0.00"},{"v":0,"d":"$0.00"},{"v":0,"d":"$0.00"},{"v":0,"d":"$0.00"},{"v":0,"d":"$0.00"},{"v":0,"d":"$0.00"},{"v":0,"d":"$0.00"},{"v":0,"d":"$0.00"},{"v":0,"d":"$0.00"}]
["MMA",null,null,{"$f":"Jurat!I$1","v":0},{"$f":"Jurat!D$33","v":"00:00:00"},"Q1","2017-03-31","Region 3","Operating Expense","Administrative Expense","Administrative","12.6","Compliance/Regulatory",{"$f":"'MMA Rev-Exp Region 3'!D$95","v":{"v":0,"d":"$0.00"}},{"v":0,"d":"$0.00"},{"v":0,"d":"$0.00"},{"v":0,"d":"$0.00"},{"v":0,"d":"$0.00"},{"v":0,"d":"$0.00"},{"v":0,"d":"$0.00"},{"v":0,"d":"$0.00"},{"v":0,"d":"$0.00"},{"v":0,"d":"$0.00"},{"v":0,"d":"$0.00"},{"v":0,"d":"$0.00"}]
["MMA",null,null,{"$f":"Jurat!I$1","v":0},{"$f":"Jurat!D$33","v":"00:00:00"},"Q1","2017-03-31","Region 3","Operating Expense","Taxes & Fees","Taxes & Fees","13.1","State Premium tax",{"$f":"'MMA Rev-Exp Region 3'!D$97","v":{"v":0,"d":"$0.00"}},{"v":0,"d":"$0.00"},{"v":0,"d":"$0.00"},{"v":0,"d":"$0.00"},{"v":0,"d":"$0.00"},{"v":0,"d":"$0.00"},{"v":0,"d":"$0.00"},{"v":0,"d":"$0.00"},{"v":0,"d":"$0.00"},{"v":0,"d":"$0.00"},{"v":0,"d":"$0.00"},{"v":0,"d":"$0.00"}]
["MMA",null,null,{"$f":"Jurat!I$1","v":0},{"$f":"Jurat!D$33","v":"00:00:00"},"Q1","2017-03-31","Region 3","Operating Expense","Taxes & Fees","Taxes & Fees","13.2","Department of Insurance Assessments",{"$f":"'MMA Rev-Exp Region 3'!D$98","v":{"v":0,"d":"$0.00"}},{"v":0,"d":"$0.00"},{"v":0,"d":"$0.00"},{"v":0,"d":"$0.00"},{"v":0,"d":"$0.00"},{"v":0,"d":"$0.00"},{"v":0,"d":"$0.00"},{"v":0,"d":"$0.00"},{"v":0,"d":"$0.00"},{"v":0,"d":"$0.00"},{"v":0,"d":"$0.00"},{"v":0,"d":"$0.00"}]
["MMA",null,null,{"$f":"Jurat!I$1","v":0},{"$f":"Jurat!D$33","v":"00:00:00"},"Q1","2017-03-31","Region 3","Operating Expense","Taxes & Fees","Taxes & Fees","13.3","Section 9010 Health Insurance Providers Fee",{"$f":"'MMA Rev-Exp Region 3'!D$99","v":{"v":0,"d":"$0.00"}},{"v":0,"d":"$0.00"},{"v":0,"d":"$0.00"},{"v":0,"d":"$0.00"},{"v":0,"d":"$0.00"},{"v":0,"d":"$0.00"},{"v":0,"d":"$0.00"},{"v":0,"d":"$0.00"},{"v":0,"d":"$0.00"},{"v":0,"d":"$0.00"},{"v":0,"d":"$0.00"},{"v":0,"d":"$0.00"}]
["MMA",null,null,{"$f":"Jurat!I$1","v":0},{"$f":"Jurat!D$33","v":"00:00:00"},"Q1","2017-03-31","Region 3","Non-Operating Expense","Income Tax Expense","Income Tax Expense","16.0","Income Tax Expense",{"$f":"'MMA Rev-Exp Region 3'!D$106","v":{"v":0,"d":"$0.00"}},{"v":0,"d":"$0.00"},{"v":0,"d":"$0.00"},{"v":0,"d":"$0.00"},{"v":0,"d":"$0.00"},{"v":0,"d":"$0.00"},{"v":0,"d":"$0.00"},{"v":0,"d":"$0.00"},{"v":0,"d":"$0.00"},{"v":0,"d":"$0.00"},{"v":0,"d":"$0.00"},{"v":0,"d":"$0.00"}]
["MMA",null,null,{"$f":"Jurat!I$1","v":0},{"$f":"Jurat!D$33","v":"00:00:00"},"Q2","2017-06-30","Region 3","Member Months","Member Months","Member Months",null,"Member Months",{"$f":"'MMA Rev-Exp Region 3'!O$9","v":{"v":0,"d":"$0.00"}},{"$f":"'MMA Rev-Exp Region 3'!P$9","v":{"v":0,"d":"$0.00"}},{"$f":"'MMA Rev-Exp Region 3'!Q$9","v":{"v":0,"d":"$0.00"}},{"$f":"'MMA Rev-Exp Region 3'!R$9","v":{"v":0,"d":"$0.00"}},{"$f":"'MMA Rev-Exp Region 3'!S$9","v":{"v":0,"d":"$0.00"}},{"$f":"'MMA Rev-Exp Region 3'!T$9","v":{"v":0,"d":"$0.00"}},{"$f":"'MMA Rev-Exp Region 3'!U$9","v":{"v":0,"d":"$0.00"}},{"$f":"'MMA Rev-Exp Region 3'!V$9","v":{"v":0,"d":"$0.00"}},{"$f":"'MMA Rev-Exp Region 3'!W$9","v":{"v":0,"d":"$0.00"}},{"$f":"'MMA Rev-Exp Region 3'!X$9","v":{"v":0,"d":"$0.00"}},{"$f":"'MMA Rev-Exp Region 3'!Y$9","v":{"v":0,"d":"$0.00"}},{"v":0,"d":"$0.00"}]
["MMA",null,null,{"$f":"Jurat!I$1","v":0},{"$f":"Jurat!D$33","v":"00:00:00"},"Q2","2017-06-30","Region 3","Operating Revenue","Capitation","Capitation",1.1,"Capitation",{"$f":"'MMA Rev-Exp Region 3'!O$11","v":{"v":0,"d":"$0.00"}},{"$f":"'MMA Rev-Exp Region 3'!P$11","v":{"v":0,"d":"$0.00"}},{"$f":"'MMA Rev-Exp Region 3'!Q$11","v":{"v":0,"d":"$0.00"}},{"$f":"'MMA Rev-Exp Region 3'!R$11","v":{"v":0,"d":"$0.00"}},{"$f":"'MMA Rev-Exp Region 3'!S$11","v":{"v":0,"d":"$0.00"}},{"$f":"'MMA Rev-Exp Region 3'!T$11","v":{"v":0,"d":"$0.00"}},{"$f":"'MMA Rev-Exp Region 3'!U$11","v":{"v":0,"d":"$0.00"}},{"$f":"'MMA Rev-Exp Region 3'!V$11","v":{"v":0,"d":"$0.00"}},{"$f":"'MMA Rev-Exp Region 3'!W$11","v":{"v":0,"d":"$0.00"}},{"$f":"'MMA Rev-Exp Region 3'!X$11","v":{"v":0,"d":"$0.00"}},{"$f":"'MMA Rev-Exp Region 3'!Y$11","v":{"v":0,"d":"$0.00"}},{"v":0,"d":"$0.00"}]
["MMA",null,null,{"$f":"Jurat!I$1","v":0},{"$f":"Jurat!D$33","v":"00:00:00"},"Q2","2017-06-30","Region 3","Operating Revenue","Kick Payments","Kick Payments - Transplant",1.2,"Transplant Kick Payments",{"$f":"'MMA Rev-Exp Region 3'!O$12","v":{"v":0,"d":"$0.00"}},{"$f":"'MMA Rev-Exp Region 3'!P$12","v":{"v":0,"d":"$0.00"}},{"$f":"'MMA Rev-Exp Region 3'!Q$12","v":{"v":0,"d":"$0.00"}},{"$f":"'MMA Rev-Exp Region 3'!R$12","v":{"v":0,"d":"$0.00"}},{"$f":"'MMA Rev-Exp Region 3'!S$12","v":{"v":0,"d":"$0.00"}},{"$f":"'MMA Rev-Exp Region 3'!T$12","v":{"v":0,"d":"$0.00"}},{"$f":"'MMA Rev-Exp Region 3'!U$12","v":{"v":0,"d":"$0.00"}},{"$f":"'MMA Rev-Exp Region 3'!V$12","v":{"v":0,"d":"$0.00"}},{"$f":"'MMA Rev-Exp Region 3'!W$12","v":{"v":0,"d":"$0.00"}},{"$f":"'MMA Rev-Exp Region 3'!X$12","v":{"v":0,"d":"$0.00"}},{"$f":"'MMA Rev-Exp Region 3'!Y$12","v":{"v":0,"d":"$0.00"}},{"v":0,"d":"$0.00"}]
["MMA",null,null,{"$f":"Jurat!I$1","v":0},{"$f":"Jurat!D$33","v":"00:00:00"},"Q2","2017-06-30","Region 3","Operating Revenue","Kick Payments","Kick Payments - Hep C","1.3","Hepatitis C Kick Payments",{"$f":"'MMA Rev-Exp Region 3'!O$13","v":{"v":0,"d":"$0.00"}},{"$f":"'MMA Rev-Exp Region 3'!P$13","v":{"v":0,"d":"$0.00"}},{"$f":"'MMA Rev-Exp Region 3'!Q$13","v":{"v":0,"d":"$0.00"}},{"$f":"'MMA Rev-Exp Region 3'!R$13","v":{"v":0,"d":"$0.00"}},{"$f":"'MMA Rev-Exp Region 3'!S$13","v":{"v":0,"d":"$0.00"}},{"$f":"'MMA Rev-Exp Region 3'!T$13","v":{"v":0,"d":"$0.00"}},{"$f":"'MMA Rev-Exp Region 3'!U$13","v":{"v":0,"d":"$0.00"}},{"$f":"'MMA Rev-Exp Region 3'!V$13","v":{"v":0,"d":"$0.00"}},{"$f":"'MMA Rev-Exp Region 3'!W$13","v":{"v":0,"d":"$0.00"}},{"$f":"'MMA Rev-Exp Region 3'!X$13","v":{"v":0,"d":"$0.00"}},{"$f":"'MMA Rev-Exp Region 3'!Y$13","v":{"v":0,"d":"$0.00"}},{"v":0,"d":"$0.00"}]
["MMA",null,null,{"$f":"Jurat!I$1","v":0},{"$f":"Jurat!D$33","v":"00:00:00"},"Q2","2017-06-30","Region 3","Operating Revenue","Kick Payments","Kick Payments - Maternity","1.4.1","Maternity Kick Payments",{"$f":"'MMA Rev-Exp Region 3'!O$14","v":{"v":0,"d":"$0.00"}},{"$f":"'MMA Rev-Exp Region 3'!P$14","v":{"v":0,"d":"$0.00"}},{"$f":"'MMA Rev-Exp Region 3'!Q$14","v":{"v":0,"d":"$0.00"}},{"$f":"'MMA Rev-Exp Region 3'!R$14","v":{"v":0,"d":"$0.00"}},{"$f":"'MMA Rev-Exp Region 3'!S$14","v":{"v":0,"d":"$0.00"}},{"$f":"'MMA Rev-Exp Region 3'!T$14","v":{"v":0,"d":"$0.00"}},{"$f":"'MMA Rev-Exp Region 3'!U$14","v":{"v":0,"d":"$0.00"}},{"$f":"'MMA Rev-Exp Region 3'!V$14","v":{"v":0,"d":"$0.00"}},{"$f":"'MMA Rev-Exp Region 3'!W$14","v":{"v":0,"d":"$0.00"}},{"$f":"'MMA Rev-Exp Region 3'!X$14","v":{"v":0,"d":"$0.00"}},{"$f":"'MMA Rev-Exp Region 3'!Y$14","v":{"v":0,"d":"$0.00"}},{"v":0,"d":"$0.00"}]
["MMA",null,null,{"$f":"Jurat!I$1","v":0},{"$f":"Jurat!D$33","v":"00:00:00"},"Q2","2017-06-30","Region 3","Operating Revenue","Other Revenue","Other Revenue - 9010","1.5","ACA § 9010 related payments",{"$f":"'MMA Rev-Exp Region 3'!O$15","v":{"v":0,"d":"$0.00"}},{"$f":"'MMA Rev-Exp Region 3'!P$15","v":{"v":0,"d":"$0.00"}},{"$f":"'MMA Rev-Exp Region 3'!Q$15","v":{"v":0,"d":"$0.00"}},{"$f":"'MMA Rev-Exp Region 3'!R$15","v":{"v":0,"d":"$0.00"}},{"$f":"'MMA Rev-Exp Region 3'!S$15","v":{"v":0,"d":"$0.00"}},{"$f":"'MMA Rev-Exp Region 3'!T$15","v":{"v":0,"d":"$0.00"}},{"$f":"'MMA Rev-Exp Region 3'!U$15","v":{"v":0,"d":"$0.00"}},{"$f":"'MMA Rev-Exp Region 3'!V$15","v":{"v":0,"d":"$0.00"}},{"$f":"'MMA Rev-Exp Region 3'!W$15","v":{"v":0,"d":"$0.00"}},{"$f":"'MMA Rev-Exp Region 3'!X$15","v":{"v":0,"d":"$0.00"}},{"$f":"'MMA Rev-Exp Region 3'!Y$15","v":{"v":0,"d":"$0.00"}},{"v":0,"d":"$0.00"}]
["MMA",null,null,{"$f":"Jurat!I$1","v":0},{"$f":"Jurat!D$33","v":"00:00:00"},"Q2","2017-06-30","Region 3","Operating Revenue","Other Revenue","Other Revenue","1.6","Other Revenue",{"$f":"'MMA Rev-Exp Region 3'!O$16","v":{"v":0,"d":"$0.00"}},{"$f":"'MMA Rev-Exp Region 3'!P$16","v":{"v":0,"d":"$0.00"}},{"$f":"'MMA Rev-Exp Region 3'!Q$16","v":{"v":0,"d":"$0.00"}},{"$f":"'MMA Rev-Exp Region 3'!R$16","v":{"v":0,"d":"$0.00"}},{"$f":"'MMA Rev-Exp Region 3'!S$16","v":{"v":0,"d":"$0.00"}},{"$f":"'MMA Rev-Exp Region 3'!T$16","v":{"v":0,"d":"$0.00"}},{"$f":"'MMA Rev-Exp Region 3'!U$16","v":{"v":0,"d":"$0.00"}},{"$f":"'MMA Rev-Exp Region 3'!V$16","v":{"v":0,"d":"$0.00"}},{"$f":"'MMA Rev-Exp Region 3'!W$16","v":{"v":0,"d":"$0.00"}},{"$f":"'MMA Rev-Exp Region 3'!X$16","v":{"v":0,"d":"$0.00"}},{"$f":"'MMA Rev-Exp Region 3'!Y$16","v":{"v":0,"d":"$0.00"}},{"v":0,"d":"$0.00"}]
["MMA",null,null,{"$f":"Jurat!I$1","v":0},{"$f":"Jurat!D$33","v":"00:00:00"},"Q2","2017-06-30","Region 3","Operating Expense","Medical Benefits Expense","Hospital Services",2.1,"Inpatient FFS",{"$f":"'MMA Rev-Exp Region 3'!O$20","v":{"v":0,"d":"$0.00"}},{"$f":"'MMA Rev-Exp Region 3'!P$20","v":{"v":0,"d":"$0.00"}},{"$f":"'MMA Rev-Exp Region 3'!Q$20","v":{"v":0,"d":"$0.00"}},{"$f":"'MMA Rev-Exp Region 3'!R$20","v":{"v":0,"d":"$0.00"}},{"$f":"'MMA Rev-Exp Region 3'!S$20","v":{"v":0,"d":"$0.00"}},{"$f":"'MMA Rev-Exp Region 3'!T$20","v":{"v":0,"d":"$0.00"}},{"$f":"'MMA Rev-Exp Region 3'!U$20","v":{"v":0,"d":"$0.00"}},{"$f":"'MMA Rev-Exp Region 3'!V$20","v":{"v":0,"d":"$0.00"}},{"$f":"'MMA Rev-Exp Region 3'!W$20","v":{"v":0,"d":"$0.00"}},{"$f":"'MMA Rev-Exp Region 3'!X$20","v":{"v":0,"d":"$0.00"}},{"$f":"'MMA Rev-Exp Region 3'!Y$20","v":{"v":0,"d":"$0.00"}},{"v":0,"d":"$0.00"}]
["MMA",null,null,{"$f":"Jurat!I$1","v":0},{"$f":"Jurat!D$33","v":"00:00:00"},"Q2","2017-06-30","Region 3","Operating Expense","Medical Benefits Expense","Hospital Services",2.2,"Ending IBNP for Inpatient Hospital Services",{"$f":"'MMA Rev-Exp Region 3'!O$21","v":{"v":0,"d":"$0.00"}},{"$f":"'MMA Rev-Exp Region 3'!P$21","v":{"v":0,"d":"$0.00"}},{"$f":"'MMA Rev-Exp Region 3'!Q$21","v":{"v":0,"d":"$0.00"}},{"$f":"'MMA Rev-Exp Region 3'!R$21","v":{"v":0,"d":"$0.00"}},{"$f":"'MMA Rev-Exp Region 3'!S$21","v":{"v":0,"d":"$0.00"}},{"$f":"'MMA Rev-Exp Region 3'!T$21","v":{"v":0,"d":"$0.00"}},{"$f":"'MMA Rev-Exp Region 3'!U$21","v":{"v":0,"d":"$0.00"}},{"$f":"'MMA Rev-Exp Region 3'!V$21","v":{"v":0,"d":"$0.00"}},{"$f":"'MMA Rev-Exp Region 3'!W$21","v":{"v":0,"d":"$0.00"}},{"$f":"'MMA Rev-Exp Region 3'!X$21","v":{"v":0,"d":"$0.00"}},{"$f":"'MMA Rev-Exp Region 3'!Y$21","v":{"v":0,"d":"$0.00"}},{"v":0,"d":"$0.00"}]
["MMA",null,null,{"$f":"Jurat!I$1","v":0},{"$f":"Jurat!D$33","v":"00:00:00"},"Q2","2017-06-30","Region 3","Operating Expense","Medical Benefits Expense","Hospital Services",2.3,"Outpatient FFS: ER",{"$f":"'MMA Rev-Exp Region 3'!O$22","v":{"v":0,"d":"$0.00"}},{"$f":"'MMA Rev-Exp Region 3'!P$22","v":{"v":0,"d":"$0.00"}},{"$f":"'MMA Rev-Exp Region 3'!Q$22","v":{"v":0,"d":"$0.00"}},{"$f":"'MMA Rev-Exp Region 3'!R$22","v":{"v":0,"d":"$0.00"}},{"$f":"'MMA Rev-Exp Region 3'!S$22","v":{"v":0,"d":"$0.00"}},{"$f":"'MMA Rev-Exp Region 3'!T$22","v":{"v":0,"d":"$0.00"}},{"$f":"'MMA Rev-Exp Region 3'!U$22","v":{"v":0,"d":"$0.00"}},{"$f":"'MMA Rev-Exp Region 3'!V$22","v":{"v":0,"d":"$0.00"}},{"$f":"'MMA Rev-Exp Region 3'!W$22","v":{"v":0,"d":"$0.00"}},{"$f":"'MMA Rev-Exp Region 3'!X$22","v":{"v":0,"d":"$0.00"}},{"$f":"'MMA Rev-Exp Region 3'!Y$22","v":{"v":0,"d":"$0.00"}},{"v":0,"d":"$0.00"}]
["MMA",null,null,{"$f":"Jurat!I$1","v":0},{"$f":"Jurat!D$33","v":"00:00:00"},"Q2","2017-06-30","Region 3","Operating Expense","Medical Benefits Expense","Hospital Services",2.4,"Outpatient FFS: Other than ER ",{"$f":"'MMA Rev-Exp Region 3'!O$23","v":{"v":0,"d":"$0.00"}},{"$f":"'MMA Rev-Exp Region 3'!P$23","v":{"v":0,"d":"$0.00"}},{"$f":"'MMA Rev-Exp Region 3'!Q$23","v":{"v":0,"d":"$0.00"}},{"$f":"'MMA Rev-Exp Region 3'!R$23","v":{"v":0,"d":"$0.00"}},{"$f":"'MMA Rev-Exp Region 3'!S$23","v":{"v":0,"d":"$0.00"}},{"$f":"'MMA Rev-Exp Region 3'!T$23","v":{"v":0,"d":"$0.00"}},{"$f":"'MMA Rev-Exp Region 3'!U$23","v":{"v":0,"d":"$0.00"}},{"$f":"'MMA Rev-Exp Region 3'!V$23","v":{"v":0,"d":"$0.00"}},{"$f":"'MMA Rev-Exp Region 3'!W$23","v":{"v":0,"d":"$0.00"}},{"$f":"'MMA Rev-Exp Region 3'!X$23","v":{"v":0,"d":"$0.00"}},{"$f":"'MMA Rev-Exp Region 3'!Y$23","v":{"v":0,"d":"$0.00"}},{"v":0,"d":"$0.00"}]
["MMA",null,null,{"$f":"Jurat!I$1","v":0},{"$f":"Jurat!D$33","v":"00:00:00"},"Q2","2017-06-30","Region 3","Operating Expense","Medical Benefits Expense","Hospital Services",2.5,"Ending IBNP for Outpatient Hospital Services",{"$f":"'MMA Rev-Exp Region 3'!O$24","v":{"v":0,"d":"$0.00"}},{"$f":"'MMA Rev-Exp Region 3'!P$24","v":{"v":0,"d":"$0.00"}},{"$f":"'MMA Rev-Exp Region 3'!Q$24","v":{"v":0,"d":"$0.00"}},{"$f":"'MMA Rev-Exp Region 3'!R$24","v":{"v":0,"d":"$0.00"}},{"$f":"'MMA Rev-Exp Region 3'!S$24","v":{"v":0,"d":"$0.00"}},{"$f":"'MMA Rev-Exp Region 3'!T$24","v":{"v":0,"d":"$0.00"}},{"$f":"'MMA Rev-Exp Region 3'!U$24","v":{"v":0,"d":"$0.00"}},{"$f":"'MMA Rev-Exp Region 3'!V$24","v":{"v":0,"d":"$0.00"}},{"$f":"'MMA Rev-Exp Region 3'!W$24","v":{"v":0,"d":"$0.00"}},{"$f":"'MMA Rev-Exp Region 3'!X$24","v":{"v":0,"d":"$0.00"}},{"$f":"'MMA Rev-Exp Region 3'!Y$24","v":{"v":0,"d":"$0.00"}},{"v":0,"d":"$0.00"}]
["MMA",null,null,{"$f":"Jurat!I$1","v":0},{"$f":"Jurat!D$33","v":"00:00:00"},"Q2","2017-06-30","Region 3","Operating Expense","Medical Benefits Expense","Hospital Services","2.6","Subcapitated Hospital Services",{"$f":"'MMA Rev-Exp Region 3'!O$25","v":{"v":0,"d":"$0.00"}},{"$f":"'MMA Rev-Exp Region 3'!P$25","v":{"v":0,"d":"$0.00"}},{"$f":"'MMA Rev-Exp Region 3'!Q$25","v":{"v":0,"d":"$0.00"}},{"$f":"'MMA Rev-Exp Region 3'!R$25","v":{"v":0,"d":"$0.00"}},{"$f":"'MMA Rev-Exp Region 3'!S$25","v":{"v":0,"d":"$0.00"}},{"$f":"'MMA Rev-Exp Region 3'!T$25","v":{"v":0,"d":"$0.00"}},{"$f":"'MMA Rev-Exp Region 3'!U$25","v":{"v":0,"d":"$0.00"}},{"$f":"'MMA Rev-Exp Region 3'!V$25","v":{"v":0,"d":"$0.00"}},{"$f":"'MMA Rev-Exp Region 3'!W$25","v":{"v":0,"d":"$0.00"}},{"$f":"'MMA Rev-Exp Region 3'!X$25","v":{"v":0,"d":"$0.00"}},{"$f":"'MMA Rev-Exp Region 3'!Y$25","v":{"v":0,"d":"$0.00"}},{"v":0,"d":"$0.00"}]
["MMA",null,null,{"$f":"Jurat!I$1","v":0},{"$f":"Jurat!D$33","v":"00:00:00"},"Q2","2017-06-30","Region 3","Operating Expense","Medical Benefits Expense","Hospital Services","2.7","Hospital Settlements",{"$f":"'MMA Rev-Exp Region 3'!O$26","v":{"v":0,"d":"$0.00"}},{"$f":"'MMA Rev-Exp Region 3'!P$26","v":{"v":0,"d":"$0.00"}},{"$f":"'MMA Rev-Exp Region 3'!Q$26","v":{"v":0,"d":"$0.00"}},{"$f":"'MMA Rev-Exp Region 3'!R$26","v":{"v":0,"d":"$0.00"}},{"$f":"'MMA Rev-Exp Region 3'!S$26","v":{"v":0,"d":"$0.00"}},{"$f":"'MMA Rev-Exp Region 3'!T$26","v":{"v":0,"d":"$0.00"}},{"$f":"'MMA Rev-Exp Region 3'!U$26","v":{"v":0,"d":"$0.00"}},{"$f":"'MMA Rev-Exp Region 3'!V$26","v":{"v":0,"d":"$0.00"}},{"$f":"'MMA Rev-Exp Region 3'!W$26","v":{"v":0,"d":"$0.00"}},{"$f":"'MMA Rev-Exp Region 3'!X$26","v":{"v":0,"d":"$0.00"}},{"$f":"'MMA Rev-Exp Region 3'!Y$26","v":{"v":0,"d":"$0.00"}},{"v":0,"d":"$0.00"}]
["MMA",null,null,{"$f":"Jurat!I$1","v":0},{"$f":"Jurat!D$33","v":"00:00:00"},"Q2","2017-06-30","Region 3","Operating Expense","Medical Benefits Expense","Hospital Services","2.7.1","Transplant Services",{"$f":"'MMA Rev-Exp Region 3'!O$27","v":{"v":0,"d":"$0.00"}},{"$f":"'MMA Rev-Exp Region 3'!P$27","v":{"v":0,"d":"$0.00"}},{"$f":"'MMA Rev-Exp Region 3'!Q$27","v":{"v":0,"d":"$0.00"}},{"$f":"'MMA Rev-Exp Region 3'!R$27","v":{"v":0,"d":"$0.00"}},{"$f":"'MMA Rev-Exp Region 3'!S$27","v":{"v":0,"d":"$0.00"}},{"$f":"'MMA Rev-Exp Region 3'!T$27","v":{"v":0,"d":"$0.00"}},{"$f":"'MMA Rev-Exp Region 3'!U$27","v":{"v":0,"d":"$0.00"}},{"$f":"'MMA Rev-Exp Region 3'!V$27","v":{"v":0,"d":"$0.00"}},{"$f":"'MMA Rev-Exp Region 3'!W$27","v":{"v":0,"d":"$0.00"}},{"$f":"'MMA Rev-Exp Region 3'!X$27","v":{"v":0,"d":"$0.00"}},{"$f":"'MMA Rev-Exp Region 3'!Y$27","v":{"v":0,"d":"$0.00"}},{"v":0,"d":"$0.00"}]
["MMA",null,null,{"$f":"Jurat!I$1","v":0},{"$f":"Jurat!D$33","v":"00:00:00"},"Q2","2017-06-30","Region 3","Operating Expense","Medical Benefits Expense","Professional Services",3.1,"Primary Care FFS",{"$f":"'MMA Rev-Exp Region 3'!O$29","v":{"v":0,"d":"$0.00"}},{"$f":"'MMA Rev-Exp Region 3'!P$29","v":{"v":0,"d":"$0.00"}},{"$f":"'MMA Rev-Exp Region 3'!Q$29","v":{"v":0,"d":"$0.00"}},{"$f":"'MMA Rev-Exp Region 3'!R$29","v":{"v":0,"d":"$0.00"}},{"$f":"'MMA Rev-Exp Region 3'!S$29","v":{"v":0,"d":"$0.00"}},{"$f":"'MMA Rev-Exp Region 3'!T$29","v":{"v":0,"d":"$0.00"}},{"$f":"'MMA Rev-Exp Region 3'!U$29","v":{"v":0,"d":"$0.00"}},{"$f":"'MMA Rev-Exp Region 3'!V$29","v":{"v":0,"d":"$0.00"}},{"$f":"'MMA Rev-Exp Region 3'!W$29","v":{"v":0,"d":"$0.00"}},{"$f":"'MMA Rev-Exp Region 3'!X$29","v":{"v":0,"d":"$0.00"}},{"$f":"'MMA Rev-Exp Region 3'!Y$29","v":{"v":0,"d":"$0.00"}},{"v":0,"d":"$0.00"}]
["MMA",null,null,{"$f":"Jurat!I$1","v":0},{"$f":"Jurat!D$33","v":"00:00:00"},"Q2","2017-06-30","Region 3","Operating Expense","Medical Benefits Expense","Professional Services",3.2,"Specialty Care FFS",{"$f":"'MMA Rev-Exp Region 3'!O$30","v":{"v":0,"d":"$0.00"}},{"$f":"'MMA Rev-Exp Region 3'!P$30","v":{"v":0,"d":"$0.00"}},{"$f":"'MMA Rev-Exp Region 3'!Q$30","v":{"v":0,"d":"$0.00"}},{"$f":"'MMA Rev-Exp Region 3'!R$30","v":{"v":0,"d":"$0.00"}},{"$f":"'MMA Rev-Exp Region 3'!S$30","v":{"v":0,"d":"$0.00"}},{"$f":"'MMA Rev-Exp Region 3'!T$30","v":{"v":0,"d":"$0.00"}},{"$f":"'MMA Rev-Exp Region 3'!U$30","v":{"v":0,"d":"$0.00"}},{"$f":"'MMA Rev-Exp Region 3'!V$30","v":{"v":0,"d":"$0.00"}},{"$f":"'MMA Rev-Exp Region 3'!W$30","v":{"v":0,"d":"$0.00"}},{"$f":"'MMA Rev-Exp Region 3'!X$30","v":{"v":0,"d":"$0.00"}},{"$f":"'MMA Rev-Exp Region 3'!Y$30","v":{"v":0,"d":"$0.00"}},{"v":0,"d":"$0.00"}]
["MMA",null,null,{"$f":"Jurat!I$1","v":0},{"$f":"Jurat!D$33","v":"00:00:00"},"Q2","2017-06-30","Region 3","Operating Expense","Medical Benefits Expense","Professional Services",3.3,"Other Professional FFS",{"$f":"'MMA Rev-Exp Region 3'!O$31","v":{"v":0,"d":"$0.00"}},{"$f":"'MMA Rev-Exp Region 3'!P$31","v":{"v":0,"d":"$0.00"}},{"$f":"'MMA Rev-Exp Region 3'!Q$31","v":{"v":0,"d":"$0.00"}},{"$f":"'MMA Rev-Exp Region 3'!R$31","v":{"v":0,"d":"$0.00"}},{"$f":"'MMA Rev-Exp Region 3'!S$31","v":{"v":0,"d":"$0.00"}},{"$f":"'MMA Rev-Exp Region 3'!T$31","v":{"v":0,"d":"$0.00"}},{"$f":"'MMA Rev-Exp Region 3'!U$31","v":{"v":0,"d":"$0.00"}},{"$f":"'MMA Rev-Exp Region 3'!V$31","v":{"v":0,"d":"$0.00"}},{"$f":"'MMA Rev-Exp Region 3'!W$31","v":{"v":0,"d":"$0.00"}},{"$f":"'MMA Rev-Exp Region 3'!X$31","v":{"v":0,"d":"$0.00"}},{"$f":"'MMA Rev-Exp Region 3'!Y$31","v":{"v":0,"d":"$0.00"}},{"v":0,"d":"$0.00"}]
["MMA",null,null,{"$f":"Jurat!I$1","v":0},{"$f":"Jurat!D$33","v":"00:00:00"},"Q2","2017-06-30","Region 3","Operating Expense","Medical Benefits Expense","Professional Services","3.4","§ 1202 PCP Payments to providers",{"$f":"'MMA Rev-Exp Region 3'!O$32","v":{"v":0,"d":"$0.00"}},{"$f":"'MMA Rev-Exp Region 3'!P$32","v":{"v":0,"d":"$0.00"}},{"$f":"'MMA Rev-Exp Region 3'!Q$32","v":{"v":0,"d":"$0.00"}},{"$f":"'MMA Rev-Exp Region 3'!R$32","v":{"v":0,"d":"$0.00"}},{"$f":"'MMA Rev-Exp Region 3'!S$32","v":{"v":0,"d":"$0.00"}},{"$f":"'MMA Rev-Exp Region 3'!T$32","v":{"v":0,"d":"$0.00"}},{"$f":"'MMA Rev-Exp Region 3'!U$32","v":{"v":0,"d":"$0.00"}},{"$f":"'MMA Rev-Exp Region 3'!V$32","v":{"v":0,"d":"$0.00"}},{"$f":"'MMA Rev-Exp Region 3'!W$32","v":{"v":0,"d":"$0.00"}},{"$f":"'MMA Rev-Exp Region 3'!X$32","v":{"v":0,"d":"$0.00"}},{"$f":"'MMA Rev-Exp Region 3'!Y$32","v":{"v":0,"d":"$0.00"}},{"v":0,"d":"$0.00"}]
["MMA",null,null,{"$f":"Jurat!I$1","v":0},{"$f":"Jurat!D$33","v":"00:00:00"},"Q2","2017-06-30","Region 3","Operating Expense","Medical Benefits Expense","Professional Services","3.5","Subcapitated Professional Services",{"$f":"'MMA Rev-Exp Region 3'!O$33","v":{"v":0,"d":"$0.00"}},{"$f":"'MMA Rev-Exp Region 3'!P$33","v":{"v":0,"d":"$0.00"}},{"$f":"'MMA Rev-Exp Region 3'!Q$33","v":{"v":0,"d":"$0.00"}},{"$f":"'MMA Rev-Exp Region 3'!R$33","v":{"v":0,"d":"$0.00"}},{"$f":"'MMA Rev-Exp Region 3'!S$33","v":{"v":0,"d":"$0.00"}},{"$f":"'MMA Rev-Exp Region 3'!T$33","v":{"v":0,"d":"$0.00"}},{"$f":"'MMA Rev-Exp Region 3'!U$33","v":{"v":0,"d":"$0.00"}},{"$f":"'MMA Rev-Exp Region 3'!V$33","v":{"v":0,"d":"$0.00"}},{"$f":"'MMA Rev-Exp Region 3'!W$33","v":{"v":0,"d":"$0.00"}},{"$f":"'MMA Rev-Exp Region 3'!X$33","v":{"v":0,"d":"$0.00"}},{"$f":"'MMA Rev-Exp Region 3'!Y$33","v":{"v":0,"d":"$0.00"}},{"v":0,"d":"$0.00"}]
["MMA",null,null,{"$f":"Jurat!I$1","v":0},{"$f":"Jurat!D$33","v":"00:00:00"},"Q2","2017-06-30","Region 3","Operating Expense","Medical Benefits Expense","Professional Services","3.6","Ending IBNP for Professional Services",{"$f":"'MMA Rev-Exp Region 3'!O$34","v":{"v":0,"d":"$0.00"}},{"$f":"'MMA Rev-Exp Region 3'!P$34","v":{"v":0,"d":"$0.00"}},{"$f":"'MMA Rev-Exp Region 3'!Q$34","v":{"v":0,"d":"$0.00"}},{"$f":"'MMA Rev-Exp Region 3'!R$34","v":{"v":0,"d":"$0.00"}},{"$f":"'MMA Rev-Exp Region 3'!S$34","v":{"v":0,"d":"$0.00"}},{"$f":"'MMA Rev-Exp Region 3'!T$34","v":{"v":0,"d":"$0.00"}},{"$f":"'MMA Rev-Exp Region 3'!U$34","v":{"v":0,"d":"$0.00"}},{"$f":"'MMA Rev-Exp Region 3'!V$34","v":{"v":0,"d":"$0.00"}},{"$f":"'MMA Rev-Exp Region 3'!W$34","v":{"v":0,"d":"$0.00"}},{"$f":"'MMA Rev-Exp Region 3'!X$34","v":{"v":0,"d":"$0.00"}},{"$f":"'MMA Rev-Exp Region 3'!Y$34","v":{"v":0,"d":"$0.00"}},{"v":0,"d":"$0.00"}]
["MMA",null,null,{"$f":"Jurat!I$1","v":0},{"$f":"Jurat!D$33","v":"00:00:00"},"Q2","2017-06-30","Region 3","Operating Expense","Medical Benefits Expense","Professional Services","3.7","Professional Services Settlements",{"$f":"'MMA Rev-Exp Region 3'!O$35","v":{"v":0,"d":"$0.00"}},{"$f":"'MMA Rev-Exp Region 3'!P$35","v":{"v":0,"d":"$0.00"}},{"$f":"'MMA Rev-Exp Region 3'!Q$35","v":{"v":0,"d":"$0.00"}},{"$f":"'MMA Rev-Exp Region 3'!R$35","v":{"v":0,"d":"$0.00"}},{"$f":"'MMA Rev-Exp Region 3'!S$35","v":{"v":0,"d":"$0.00"}},{"$f":"'MMA Rev-Exp Region 3'!T$35","v":{"v":0,"d":"$0.00"}},{"$f":"'MMA Rev-Exp Region 3'!U$35","v":{"v":0,"d":"$0.00"}},{"$f":"'MMA Rev-Exp Region 3'!V$35","v":{"v":0,"d":"$0.00"}},{"$f":"'MMA Rev-Exp Region 3'!W$35","v":{"v":0,"d":"$0.00"}},{"$f":"'MMA Rev-Exp Region 3'!X$35","v":{"v":0,"d":"$0.00"}},{"$f":"'MMA Rev-Exp Region 3'!Y$35","v":{"v":0,"d":"$0.00"}},{"v":0,"d":"$0.00"}]
["MMA",null,null,{"$f":"Jurat!I$1","v":0},{"$f":"Jurat!D$33","v":"00:00:00"},"Q2","2017-06-30","Region 3","Operating Expense","Medical Benefits Expense","Maternity Services","4.1.1","Maternity Services",{"$f":"'MMA Rev-Exp Region 3'!O$37","v":{"v":0,"d":"$0.00"}},{"$f":"'MMA Rev-Exp Region 3'!P$37","v":{"v":0,"d":"$0.00"}},{"$f":"'MMA Rev-Exp Region 3'!Q$37","v":{"v":0,"d":"$0.00"}},{"$f":"'MMA Rev-Exp Region 3'!R$37","v":{"v":0,"d":"$0.00"}},{"$f":"'MMA Rev-Exp Region 3'!S$37","v":{"v":0,"d":"$0.00"}},{"$f":"'MMA Rev-Exp Region 3'!T$37","v":{"v":0,"d":"$0.00"}},{"$f":"'MMA Rev-Exp Region 3'!U$37","v":{"v":0,"d":"$0.00"}},{"$f":"'MMA Rev-Exp Region 3'!V$37","v":{"v":0,"d":"$0.00"}},{"$f":"'MMA Rev-Exp Region 3'!W$37","v":{"v":0,"d":"$0.00"}},{"$f":"'MMA Rev-Exp Region 3'!X$37","v":{"v":0,"d":"$0.00"}},{"$f":"'MMA Rev-Exp Region 3'!Y$37","v":{"v":0,"d":"$0.00"}},{"v":0,"d":"$0.00"}]
["MMA",null,null,{"$f":"Jurat!I$1","v":0},{"$f":"Jurat!D$33","v":"00:00:00"},"Q2","2017-06-30","Region 3","Operating Expense","Medical Benefits Expense","Maternity Services","4.2.1","Ending IBNP for Maternity Services",{"$f":"'MMA Rev-Exp Region 3'!O$38","v":{"v":0,"d":"$0.00"}},{"$f":"'MMA Rev-Exp Region 3'!P$38","v":{"v":0,"d":"$0.00"}},{"$f":"'MMA Rev-Exp Region 3'!Q$38","v":{"v":0,"d":"$0.00"}},{"$f":"'MMA Rev-Exp Region 3'!R$38","v":{"v":0,"d":"$0.00"}},{"$f":"'MMA Rev-Exp Region 3'!S$38","v":{"v":0,"d":"$0.00"}},{"$f":"'MMA Rev-Exp Region 3'!T$38","v":{"v":0,"d":"$0.00"}},{"$f":"'MMA Rev-Exp Region 3'!U$38","v":{"v":0,"d":"$0.00"}},{"$f":"'MMA Rev-Exp Region 3'!V$38","v":{"v":0,"d":"$0.00"}},{"$f":"'MMA Rev-Exp Region 3'!W$38","v":{"v":0,"d":"$0.00"}},{"$f":"'MMA Rev-Exp Region 3'!X$38","v":{"v":0,"d":"$0.00"}},{"$f":"'MMA Rev-Exp Region 3'!Y$38","v":{"v":0,"d":"$0.00"}},{"v":0,"d":"$0.00"}]
["MMA",null,null,{"$f":"Jurat!I$1","v":0},{"$f":"Jurat!D$33","v":"00:00:00"},"Q2","2017-06-30","Region 3","Operating Expense","Medical Benefits Expense","Maternity Services","4.3.1","Maternity Settlements",{"$f":"'MMA Rev-Exp Region 3'!O$39","v":{"v":0,"d":"$0.00"}},{"$f":"'MMA Rev-Exp Region 3'!P$39","v":{"v":0,"d":"$0.00"}},{"$f":"'MMA Rev-Exp Region 3'!Q$39","v":{"v":0,"d":"$0.00"}},{"$f":"'MMA Rev-Exp Region 3'!R$39","v":{"v":0,"d":"$0.00"}},{"$f":"'MMA Rev-Exp Region 3'!S$39","v":{"v":0,"d":"$0.00"}},{"$f":"'MMA Rev-Exp Region 3'!T$39","v":{"v":0,"d":"$0.00"}},{"$f":"'MMA Rev-Exp Region 3'!U$39","v":{"v":0,"d":"$0.00"}},{"$f":"'MMA Rev-Exp Region 3'!V$39","v":{"v":0,"d":"$0.00"}},{"$f":"'MMA Rev-Exp Region 3'!W$39","v":{"v":0,"d":"$0.00"}},{"$f":"'MMA Rev-Exp Region 3'!X$39","v":{"v":0,"d":"$0.00"}},{"$f":"'MMA Rev-Exp Region 3'!Y$39","v":{"v":0,"d":"$0.00"}},{"v":0,"d":"$0.00"}]
["MMA",null,null,{"$f":"Jurat!I$1","v":0},{"$f":"Jurat!D$33","v":"00:00:00"},"Q2","2017-06-30","Region 3","Operating Expense","Medical Benefits Expense","Mental Health Services",5.1,"Mental Health & Substance Abuse FFS",{"$f":"'MMA Rev-Exp Region 3'!O$41","v":{"v":0,"d":"$0.00"}},{"$f":"'MMA Rev-Exp Region 3'!P$41","v":{"v":0,"d":"$0.00"}},{"$f":"'MMA Rev-Exp Region 3'!Q$41","v":{"v":0,"d":"$0.00"}},{"$f":"'MMA Rev-Exp Region 3'!R$41","v":{"v":0,"d":"$0.00"}},{"$f":"'MMA Rev-Exp Region 3'!S$41","v":{"v":0,"d":"$0.00"}},{"$f":"'MMA Rev-Exp Region 3'!T$41","v":{"v":0,"d":"$0.00"}},{"$f":"'MMA Rev-Exp Region 3'!U$41","v":{"v":0,"d":"$0.00"}},{"$f":"'MMA Rev-Exp Region 3'!V$41","v":{"v":0,"d":"$0.00"}},{"$f":"'MMA Rev-Exp Region 3'!W$41","v":{"v":0,"d":"$0.00"}},{"$f":"'MMA Rev-Exp Region 3'!X$41","v":{"v":0,"d":"$0.00"}},{"$f":"'MMA Rev-Exp Region 3'!Y$41","v":{"v":0,"d":"$0.00"}},{"v":0,"d":"$0.00"}]
["MMA",null,null,{"$f":"Jurat!I$1","v":0},{"$f":"Jurat!D$33","v":"00:00:00"},"Q2","2017-06-30","Region 3","Operating Expense","Medical Benefits Expense","Mental Health Services",5.2,"Mental Health & Substance Abuse Subcapitation",{"$f":"'MMA Rev-Exp Region 3'!O$42","v":{"v":0,"d":"$0.00"}},{"$f":"'MMA Rev-Exp Region 3'!P$42","v":{"v":0,"d":"$0.00"}},{"$f":"'MMA Rev-Exp Region 3'!Q$42","v":{"v":0,"d":"$0.00"}},{"$f":"'MMA Rev-Exp Region 3'!R$42","v":{"v":0,"d":"$0.00"}},{"$f":"'MMA Rev-Exp Region 3'!S$42","v":{"v":0,"d":"$0.00"}},{"$f":"'MMA Rev-Exp Region 3'!T$42","v":{"v":0,"d":"$0.00"}},{"$f":"'MMA Rev-Exp Region 3'!U$42","v":{"v":0,"d":"$0.00"}},{"$f":"'MMA Rev-Exp Region 3'!V$42","v":{"v":0,"d":"$0.00"}},{"$f":"'MMA Rev-Exp Region 3'!W$42","v":{"v":0,"d":"$0.00"}},{"$f":"'MMA Rev-Exp Region 3'!X$42","v":{"v":0,"d":"$0.00"}},{"$f":"'MMA Rev-Exp Region 3'!Y$42","v":{"v":0,"d":"$0.00"}},{"v":0,"d":"$0.00"}]
["MMA",null,null,{"$f":"Jurat!I$1","v":0},{"$f":"Jurat!D$33","v":"00:00:00"},"Q2","2017-06-30","Region 3","Operating Expense","Medical Benefits Expense","Mental Health Services",5.3,"Ending IBNP for Mental Health & Substance Abuse",{"$f":"'MMA Rev-Exp Region 3'!O$43","v":{"v":0,"d":"$0.00"}},{"$f":"'MMA Rev-Exp Region 3'!P$43","v":{"v":0,"d":"$0.00"}},{"$f":"'MMA Rev-Exp Region 3'!Q$43","v":{"v":0,"d":"$0.00"}},{"$f":"'MMA Rev-Exp Region 3'!R$43","v":{"v":0,"d":"$0.00"}},{"$f":"'MMA Rev-Exp Region 3'!S$43","v":{"v":0,"d":"$0.00"}},{"$f":"'MMA Rev-Exp Region 3'!T$43","v":{"v":0,"d":"$0.00"}},{"$f":"'MMA Rev-Exp Region 3'!U$43","v":{"v":0,"d":"$0.00"}},{"$f":"'MMA Rev-Exp Region 3'!V$43","v":{"v":0,"d":"$0.00"}},{"$f":"'MMA Rev-Exp Region 3'!W$43","v":{"v":0,"d":"$0.00"}},{"$f":"'MMA Rev-Exp Region 3'!X$43","v":{"v":0,"d":"$0.00"}},{"$f":"'MMA Rev-Exp Region 3'!Y$43","v":{"v":0,"d":"$0.00"}},{"v":0,"d":"$0.00"}]
["MMA",null,null,{"$f":"Jurat!I$1","v":0},{"$f":"Jurat!D$33","v":"00:00:00"},"Q2","2017-06-30","Region 3","Operating Expense","Medical Benefits Expense","Mental Health Services","5.4","Mental Health Settlements",{"$f":"'MMA Rev-Exp Region 3'!O$44","v":{"v":0,"d":"$0.00"}},{"$f":"'MMA Rev-Exp Region 3'!P$44","v":{"v":0,"d":"$0.00"}},{"$f":"'MMA Rev-Exp Region 3'!Q$44","v":{"v":0,"d":"$0.00"}},{"$f":"'MMA Rev-Exp Region 3'!R$44","v":{"v":0,"d":"$0.00"}},{"$f":"'MMA Rev-Exp Region 3'!S$44","v":{"v":0,"d":"$0.00"}},{"$f":"'MMA Rev-Exp Region 3'!T$44","v":{"v":0,"d":"$0.00"}},{"$f":"'MMA Rev-Exp Region 3'!U$44","v":{"v":0,"d":"$0.00"}},{"$f":"'MMA Rev-Exp Region 3'!V$44","v":{"v":0,"d":"$0.00"}},{"$f":"'MMA Rev-Exp Region 3'!W$44","v":{"v":0,"d":"$0.00"}},{"$f":"'MMA Rev-Exp Region 3'!X$44","v":{"v":0,"d":"$0.00"}},{"$f":"'MMA Rev-Exp Region 3'!Y$44","v":{"v":0,"d":"$0.00"}},{"v":0,"d":"$0.00"}]
["MMA",null,null,{"$f":"Jurat!I$1","v":0},{"$f":"Jurat!D$33","v":"00:00:00"},"Q2","2017-06-30","Region 3","Operating Expense","Medical Benefits Expense","Dental Services",6.1,"Dental FFS",{"$f":"'MMA Rev-Exp Region 3'!O$46","v":{"v":0,"d":"$0.00"}},{"$f":"'MMA Rev-Exp Region 3'!P$46","v":{"v":0,"d":"$0.00"}},{"$f":"'MMA Rev-Exp Region 3'!Q$46","v":{"v":0,"d":"$0.00"}},{"$f":"'MMA Rev-Exp Region 3'!R$46","v":{"v":0,"d":"$0.00"}},{"$f":"'MMA Rev-Exp Region 3'!S$46","v":{"v":0,"d":"$0.00"}},{"$f":"'MMA Rev-Exp Region 3'!T$46","v":{"v":0,"d":"$0.00"}},{"$f":"'MMA Rev-Exp Region 3'!U$46","v":{"v":0,"d":"$0.00"}},{"$f":"'MMA Rev-Exp Region 3'!V$46","v":{"v":0,"d":"$0.00"}},{"$f":"'MMA Rev-Exp Region 3'!W$46","v":{"v":0,"d":"$0.00"}},{"$f":"'MMA Rev-Exp Region 3'!X$46","v":{"v":0,"d":"$0.00"}},{"$f":"'MMA Rev-Exp Region 3'!Y$46","v":{"v":0,"d":"$0.00"}},{"v":0,"d":"$0.00"}]
["MMA",null,null,{"$f":"Jurat!I$1","v":0},{"$f":"Jurat!D$33","v":"00:00:00"},"Q2","2017-06-30","Region 3","Operating Expense","Medical Benefits Expense","Dental Services",6.2,"Dental Subcapitation",{"$f":"'MMA Rev-Exp Region 3'!O$47","v":{"v":0,"d":"$0.00"}},{"$f":"'MMA Rev-Exp Region 3'!P$47","v":{"v":0,"d":"$0.00"}},{"$f":"'MMA Rev-Exp Region 3'!Q$47","v":{"v":0,"d":"$0.00"}},{"$f":"'MMA Rev-Exp Region 3'!R$47","v":{"v":0,"d":"$0.00"}},{"$f":"'MMA Rev-Exp Region 3'!S$47","v":{"v":0,"d":"$0.00"}},{"$f":"'MMA Rev-Exp Region 3'!T$47","v":{"v":0,"d":"$0.00"}},{"$f":"'MMA Rev-Exp Region 3'!U$47","v":{"v":0,"d":"$0.00"}},{"$f":"'MMA Rev-Exp Region 3'!V$47","v":{"v":0,"d":"$0.00"}},{"$f":"'MMA Rev-Exp Region 3'!W$47","v":{"v":0,"d":"$0.00"}},{"$f":"'MMA Rev-Exp Region 3'!X$47","v":{"v":0,"d":"$0.00"}},{"$f":"'MMA Rev-Exp Region 3'!Y$47","v":{"v":0,"d":"$0.00"}},{"v":0,"d":"$0.00"}]
["MMA",null,null,{"$f":"Jurat!I$1","v":0},{"$f":"Jurat!D$33","v":"00:00:00"},"Q2","2017-06-30","Region 3","Operating Expense","Medical Benefits Expense","Dental Services",6.3,"Ending IBNP for Dental Services",{"$f":"'MMA Rev-Exp Region 3'!O$48","v":{"v":0,"d":"$0.00"}},{"$f":"'MMA Rev-Exp Region 3'!P$48","v":{"v":0,"d":"$0.00"}},{"$f":"'MMA Rev-Exp Region 3'!Q$48","v":{"v":0,"d":"$0.00"}},{"$f":"'MMA Rev-Exp Region 3'!R$48","v":{"v":0,"d":"$0.00"}},{"$f":"'MMA Rev-Exp Region 3'!S$48","v":{"v":0,"d":"$0.00"}},{"$f":"'MMA Rev-Exp Region 3'!T$48","v":{"v":0,"d":"$0.00"}},{"$f":"'MMA Rev-Exp Region 3'!U$48","v":{"v":0,"d":"$0.00"}},{"$f":"'MMA Rev-Exp Region 3'!V$48","v":{"v":0,"d":"$0.00"}},{"$f":"'MMA Rev-Exp Region 3'!W$48","v":{"v":0,"d":"$0.00"}},{"$f":"'MMA Rev-Exp Region 3'!X$48","v":{"v":0,"d":"$0.00"}},{"$f":"'MMA Rev-Exp Region 3'!Y$48","v":{"v":0,"d":"$0.00"}},{"v":0,"d":"$0.00"}]
["MMA",null,null,{"$f":"Jurat!I$1","v":0},{"$f":"Jurat!D$33","v":"00:00:00"},"Q2","2017-06-30","Region 3","Operating Expense","Medical Benefits Expense","Dental Services","6.4","Dental Settlements",{"$f":"'MMA Rev-Exp Region 3'!O$49","v":{"v":0,"d":"$0.00"}},{"$f":"'MMA Rev-Exp Region 3'!P$49","v":{"v":0,"d":"$0.00"}},{"$f":"'MMA Rev-Exp Region 3'!Q$49","v":{"v":0,"d":"$0.00"}},{"$f":"'MMA Rev-Exp Region 3'!R$49","v":{"v":0,"d":"$0.00"}},{"$f":"'MMA Rev-Exp Region 3'!S$49","v":{"v":0,"d":"$0.00"}},{"$f":"'MMA Rev-Exp Region 3'!T$49","v":{"v":0,"d":"$0.00"}},{"$f":"'MMA Rev-Exp Region 3'!U$49","v":{"v":0,"d":"$0.00"}},{"$f":"'MMA Rev-Exp Region 3'!V$49","v":{"v":0,"d":"$0.00"}},{"$f":"'MMA Rev-Exp Region 3'!W$49","v":{"v":0,"d":"$0.00"}},{"$f":"'MMA Rev-Exp Region 3'!X$49","v":{"v":0,"d":"$0.00"}},{"$f":"'MMA Rev-Exp Region 3'!Y$49","v":{"v":0,"d":"$0.00"}},{"v":0,"d":"$0.00"}]
["MMA",null,null,{"$f":"Jurat!I$1","v":0},{"$f":"Jurat!D$33","v":"00:00:00"},"Q2","2017-06-30","Region 3","Operating Expense","Medical Benefits Expense","Transportation Services",7.1,"Transportation FFS",{"$f":"'MMA Rev-Exp Region 3'!O$51","v":{"v":0,"d":"$0.00"}},{"$f":"'MMA Rev-Exp Region 3'!P$51","v":{"v":0,"d":"$0.00"}},{"$f":"'MMA Rev-Exp Region 3'!Q$51","v":{"v":0,"d":"$0.00"}},{"$f":"'MMA Rev-Exp Region 3'!R$51","v":{"v":0,"d":"$0.00"}},{"$f":"'MMA Rev-Exp Region 3'!S$51","v":{"v":0,"d":"$0.00"}},{"$f":"'MMA Rev-Exp Region 3'!T$51","v":{"v":0,"d":"$0.00"}},{"$f":"'MMA Rev-Exp Region 3'!U$51","v":{"v":0,"d":"$0.00"}},{"$f":"'MMA Rev-Exp Region 3'!V$51","v":{"v":0,"d":"$0.00"}},{"$f":"'MMA Rev-Exp Region 3'!W$51","v":{"v":0,"d":"$0.00"}},{"$f":"'MMA Rev-Exp Region 3'!X$51","v":{"v":0,"d":"$0.00"}},{"$f":"'MMA Rev-Exp Region 3'!Y$51","v":{"v":0,"d":"$0.00"}},{"v":0,"d":"$0.00"}]
["MMA",null,null,{"$f":"Jurat!I$1","v":0},{"$f":"Jurat!D$33","v":"00:00:00"},"Q2","2017-06-30","Region 3","Operating Expense","Medical Benefits Expense","Transportation Services",7.2,"Transportation Subcapitation",{"$f":"'MMA Rev-Exp Region 3'!O$52","v":{"v":0,"d":"$0.00"}},{"$f":"'MMA Rev-Exp Region 3'!P$52","v":{"v":0,"d":"$0.00"}},{"$f":"'MMA Rev-Exp Region 3'!Q$52","v":{"v":0,"d":"$0.00"}},{"$f":"'MMA Rev-Exp Region 3'!R$52","v":{"v":0,"d":"$0.00"}},{"$f":"'MMA Rev-Exp Region 3'!S$52","v":{"v":0,"d":"$0.00"}},{"$f":"'MMA Rev-Exp Region 3'!T$52","v":{"v":0,"d":"$0.00"}},{"$f":"'MMA Rev-Exp Region 3'!U$52","v":{"v":0,"d":"$0.00"}},{"$f":"'MMA Rev-Exp Region 3'!V$52","v":{"v":0,"d":"$0.00"}},{"$f":"'MMA Rev-Exp Region 3'!W$52","v":{"v":0,"d":"$0.00"}},{"$f":"'MMA Rev-Exp Region 3'!X$52","v":{"v":0,"d":"$0.00"}},{"$f":"'MMA Rev-Exp Region 3'!Y$52","v":{"v":0,"d":"$0.00"}},{"v":0,"d":"$0.00"}]
["MMA",null,null,{"$f":"Jurat!I$1","v":0},{"$f":"Jurat!D$33","v":"00:00:00"},"Q2","2017-06-30","Region 3","Operating Expense","Medical Benefits Expense","Transportation Services",7.3,"Ending IBNP for Transportation",{"$f":"'MMA Rev-Exp Region 3'!O$53","v":{"v":0,"d":"$0.00"}},{"$f":"'MMA Rev-Exp Region 3'!P$53","v":{"v":0,"d":"$0.00"}},{"$f":"'MMA Rev-Exp Region 3'!Q$53","v":{"v":0,"d":"$0.00"}},{"$f":"'MMA Rev-Exp Region 3'!R$53","v":{"v":0,"d":"$0.00"}},{"$f":"'MMA Rev-Exp Region 3'!S$53","v":{"v":0,"d":"$0.00"}},{"$f":"'MMA Rev-Exp Region 3'!T$53","v":{"v":0,"d":"$0.00"}},{"$f":"'MMA Rev-Exp Region 3'!U$53","v":{"v":0,"d":"$0.00"}},{"$f":"'MMA Rev-Exp Region 3'!V$53","v":{"v":0,"d":"$0.00"}},{"$f":"'MMA Rev-Exp Region 3'!W$53","v":{"v":0,"d":"$0.00"}},{"$f":"'MMA Rev-Exp Region 3'!X$53","v":{"v":0,"d":"$0.00"}},{"$f":"'MMA Rev-Exp Region 3'!Y$53","v":{"v":0,"d":"$0.00"}},{"v":0,"d":"$0.00"}]
["MMA",null,null,{"$f":"Jurat!I$1","v":0},{"$f":"Jurat!D$33","v":"00:00:00"},"Q2","2017-06-30","Region 3","Operating Expense","Medical Benefits Expense","Transportation Services","7.4","Transportation Settlements",{"$f":"'MMA Rev-Exp Region 3'!O$54","v":{"v":0,"d":"$0.00"}},{"$f":"'MMA Rev-Exp Region 3'!P$54","v":{"v":0,"d":"$0.00"}},{"$f":"'MMA Rev-Exp Region 3'!Q$54","v":{"v":0,"d":"$0.00"}},{"$f":"'MMA Rev-Exp Region 3'!R$54","v":{"v":0,"d":"$0.00"}},{"$f":"'MMA Rev-Exp Region 3'!S$54","v":{"v":0,"d":"$0.00"}},{"$f":"'MMA Rev-Exp Region 3'!T$54","v":{"v":0,"d":"$0.00"}},{"$f":"'MMA Rev-Exp Region 3'!U$54","v":{"v":0,"d":"$0.00"}},{"$f":"'MMA Rev-Exp Region 3'!V$54","v":{"v":0,"d":"$0.00"}},{"$f":"'MMA Rev-Exp Region 3'!W$54","v":{"v":0,"d":"$0.00"}},{"$f":"'MMA Rev-Exp Region 3'!X$54","v":{"v":0,"d":"$0.00"}},{"$f":"'MMA Rev-Exp Region 3'!Y$54","v":{"v":0,"d":"$0.00"}},{"v":0,"d":"$0.00"}]
["MMA",null,null,{"$f":"Jurat!I$1","v":0},{"$f":"Jurat!D$33","v":"00:00:00"},"Q2","2017-06-30","Region 3","Operating Expense","Medical Benefits Expense","Pharmacy Services",8.1,"Prescription Drugs FFS",{"$f":"'MMA Rev-Exp Region 3'!O$56","v":{"v":0,"d":"$0.00"}},{"$f":"'MMA Rev-Exp Region 3'!P$56","v":{"v":0,"d":"$0.00"}},{"$f":"'MMA Rev-Exp Region 3'!Q$56","v":{"v":0,"d":"$0.00"}},{"$f":"'MMA Rev-Exp Region 3'!R$56","v":{"v":0,"d":"$0.00"}},{"$f":"'MMA Rev-Exp Region 3'!S$56","v":{"v":0,"d":"$0.00"}},{"$f":"'MMA Rev-Exp Region 3'!T$56","v":{"v":0,"d":"$0.00"}},{"$f":"'MMA Rev-Exp Region 3'!U$56","v":{"v":0,"d":"$0.00"}},{"$f":"'MMA Rev-Exp Region 3'!V$56","v":{"v":0,"d":"$0.00"}},{"$f":"'MMA Rev-Exp Region 3'!W$56","v":{"v":0,"d":"$0.00"}},{"$f":"'MMA Rev-Exp Region 3'!X$56","v":{"v":0,"d":"$0.00"}},{"$f":"'MMA Rev-Exp Region 3'!Y$56","v":{"v":0,"d":"$0.00"}},{"v":0,"d":"$0.00"}]
["MMA",null,null,{"$f":"Jurat!I$1","v":0},{"$f":"Jurat!D$33","v":"00:00:00"},"Q2","2017-06-30","Region 3","Operating Expense","Medical Benefits Expense","Pharmacy Services","8.2","Hepatitis C Prescription Drug FFS",{"$f":"'MMA Rev-Exp Region 3'!O$57","v":{"v":0,"d":"$0.00"}},{"$f":"'MMA Rev-Exp Region 3'!P$57","v":{"v":0,"d":"$0.00"}},{"$f":"'MMA Rev-Exp Region 3'!Q$57","v":{"v":0,"d":"$0.00"}},{"$f":"'MMA Rev-Exp Region 3'!R$57","v":{"v":0,"d":"$0.00"}},{"$f":"'MMA Rev-Exp Region 3'!S$57","v":{"v":0,"d":"$0.00"}},{"$f":"'MMA Rev-Exp Region 3'!T$57","v":{"v":0,"d":"$0.00"}},{"$f":"'MMA Rev-Exp Region 3'!U$57","v":{"v":0,"d":"$0.00"}},{"$f":"'MMA Rev-Exp Region 3'!V$57","v":{"v":0,"d":"$0.00"}},{"$f":"'MMA Rev-Exp Region 3'!W$57","v":{"v":0,"d":"$0.00"}},{"$f":"'MMA Rev-Exp Region 3'!X$57","v":{"v":0,"d":"$0.00"}},{"$f":"'MMA Rev-Exp Region 3'!Y$57","v":{"v":0,"d":"$0.00"}},{"v":0,"d":"$0.00"}]
["MMA",null,null,{"$f":"Jurat!I$1","v":0},{"$f":"Jurat!D$33","v":"00:00:00"},"Q2","2017-06-30","Region 3","Operating Expense","Medical Benefits Expense","Pharmacy Services","8.3","Ending IBNP for Prescription Drugs",{"$f":"'MMA Rev-Exp Region 3'!O$58","v":{"v":0,"d":"$0.00"}},{"$f":"'MMA Rev-Exp Region 3'!P$58","v":{"v":0,"d":"$0.00"}},{"$f":"'MMA Rev-Exp Region 3'!Q$58","v":{"v":0,"d":"$0.00"}},{"$f":"'MMA Rev-Exp Region 3'!R$58","v":{"v":0,"d":"$0.00"}},{"$f":"'MMA Rev-Exp Region 3'!S$58","v":{"v":0,"d":"$0.00"}},{"$f":"'MMA Rev-Exp Region 3'!T$58","v":{"v":0,"d":"$0.00"}},{"$f":"'MMA Rev-Exp Region 3'!U$58","v":{"v":0,"d":"$0.00"}},{"$f":"'MMA Rev-Exp Region 3'!V$58","v":{"v":0,"d":"$0.00"}},{"$f":"'MMA Rev-Exp Region 3'!W$58","v":{"v":0,"d":"$0.00"}},{"$f":"'MMA Rev-Exp Region 3'!X$58","v":{"v":0,"d":"$0.00"}},{"$f":"'MMA Rev-Exp Region 3'!Y$58","v":{"v":0,"d":"$0.00"}},{"v":0,"d":"$0.00"}]
["MMA",null,null,{"$f":"Jurat!I$1","v":0},{"$f":"Jurat!D$33","v":"00:00:00"},"Q2","2017-06-30","Region 3","Operating Expense","Medical Benefits Expense","Pharmacy Services","8.4","Prescription Drug Rebates ",{"$f":"'MMA Rev-Exp Region 3'!O$59","v":{"v":0,"d":"$0.00"}},{"$f":"'MMA Rev-Exp Region 3'!P$59","v":{"v":0,"d":"$0.00"}},{"$f":"'MMA Rev-Exp Region 3'!Q$59","v":{"v":0,"d":"$0.00"}},{"$f":"'MMA Rev-Exp Region 3'!R$59","v":{"v":0,"d":"$0.00"}},{"$f":"'MMA Rev-Exp Region 3'!S$59","v":{"v":0,"d":"$0.00"}},{"$f":"'MMA Rev-Exp Region 3'!T$59","v":{"v":0,"d":"$0.00"}},{"$f":"'MMA Rev-Exp Region 3'!U$59","v":{"v":0,"d":"$0.00"}},{"$f":"'MMA Rev-Exp Region 3'!V$59","v":{"v":0,"d":"$0.00"}},{"$f":"'MMA Rev-Exp Region 3'!W$59","v":{"v":0,"d":"$0.00"}},{"$f":"'MMA Rev-Exp Region 3'!X$59","v":{"v":0,"d":"$0.00"}},{"$f":"'MMA Rev-Exp Region 3'!Y$59","v":{"v":0,"d":"$0.00"}},{"v":0,"d":"$0.00"}]
["MMA",null,null,{"$f":"Jurat!I$1","v":0},{"$f":"Jurat!D$33","v":"00:00:00"},"Q2","2017-06-30","Region 3","Operating Expense","Medical Benefits Expense","Pharmacy Services","8.5","Ending accrual for Rebates receivable",{"$f":"'MMA Rev-Exp Region 3'!O$60","v":{"v":0,"d":"$0.00"}},{"$f":"'MMA Rev-Exp Region 3'!P$60","v":{"v":0,"d":"$0.00"}},{"$f":"'MMA Rev-Exp Region 3'!Q$60","v":{"v":0,"d":"$0.00"}},{"$f":"'MMA Rev-Exp Region 3'!R$60","v":{"v":0,"d":"$0.00"}},{"$f":"'MMA Rev-Exp Region 3'!S$60","v":{"v":0,"d":"$0.00"}},{"$f":"'MMA Rev-Exp Region 3'!T$60","v":{"v":0,"d":"$0.00"}},{"$f":"'MMA Rev-Exp Region 3'!U$60","v":{"v":0,"d":"$0.00"}},{"$f":"'MMA Rev-Exp Region 3'!V$60","v":{"v":0,"d":"$0.00"}},{"$f":"'MMA Rev-Exp Region 3'!W$60","v":{"v":0,"d":"$0.00"}},{"$f":"'MMA Rev-Exp Region 3'!X$60","v":{"v":0,"d":"$0.00"}},{"$f":"'MMA Rev-Exp Region 3'!Y$60","v":{"v":0,"d":"$0.00"}},{"v":0,"d":"$0.00"}]
["MMA",null,null,{"$f":"Jurat!I$1","v":0},{"$f":"Jurat!D$33","v":"00:00:00"},"Q2","2017-06-30","Region 3","Operating Expense","Medical Benefits Expense","Pharmacy Services","8.6","Prescription Drugs Subcapitation",{"$f":"'MMA Rev-Exp Region 3'!O$61","v":{"v":0,"d":"$0.00"}},{"$f":"'MMA Rev-Exp Region 3'!P$61","v":{"v":0,"d":"$0.00"}},{"$f":"'MMA Rev-Exp Region 3'!Q$61","v":{"v":0,"d":"$0.00"}},{"$f":"'MMA Rev-Exp Region 3'!R$61","v":{"v":0,"d":"$0.00"}},{"$f":"'MMA Rev-Exp Region 3'!S$61","v":{"v":0,"d":"$0.00"}},{"$f":"'MMA Rev-Exp Region 3'!T$61","v":{"v":0,"d":"$0.00"}},{"$f":"'MMA Rev-Exp Region 3'!U$61","v":{"v":0,"d":"$0.00"}},{"$f":"'MMA Rev-Exp Region 3'!V$61","v":{"v":0,"d":"$0.00"}},{"$f":"'MMA Rev-Exp Region 3'!W$61","v":{"v":0,"d":"$0.00"}},{"$f":"'MMA Rev-Exp Region 3'!X$61","v":{"v":0,"d":"$0.00"}},{"$f":"'MMA Rev-Exp Region 3'!Y$61","v":{"v":0,"d":"$0.00"}},{"v":0,"d":"$0.00"}]
["MMA",null,null,{"$f":"Jurat!I$1","v":0},{"$f":"Jurat!D$33","v":"00:00:00"},"Q2","2017-06-30","Region 3","Operating Expense","Medical Benefits Expense","Pharmacy Services","8.7","Prescription Drug Settlements",{"$f":"'MMA Rev-Exp Region 3'!O$62","v":{"v":0,"d":"$0.00"}},{"$f":"'MMA Rev-Exp Region 3'!P$62","v":{"v":0,"d":"$0.00"}},{"$f":"'MMA Rev-Exp Region 3'!Q$62","v":{"v":0,"d":"$0.00"}},{"$f":"'MMA Rev-Exp Region 3'!R$62","v":{"v":0,"d":"$0.00"}},{"$f":"'MMA Rev-Exp Region 3'!S$62","v":{"v":0,"d":"$0.00"}},{"$f":"'MMA Rev-Exp Region 3'!T$62","v":{"v":0,"d":"$0.00"}},{"$f":"'MMA Rev-Exp Region 3'!U$62","v":{"v":0,"d":"$0.00"}},{"$f":"'MMA Rev-Exp Region 3'!V$62","v":{"v":0,"d":"$0.00"}},{"$f":"'MMA Rev-Exp Region 3'!W$62","v":{"v":0,"d":"$0.00"}},{"$f":"'MMA Rev-Exp Region 3'!X$62","v":{"v":0,"d":"$0.00"}},{"$f":"'MMA Rev-Exp Region 3'!Y$62","v":{"v":0,"d":"$0.00"}},{"v":0,"d":"$0.00"}]
["MMA",null,null,{"$f":"Jurat!I$1","v":0},{"$f":"Jurat!D$33","v":"00:00:00"},"Q2","2017-06-30","Region 3","Operating Expense","Medical Benefits Expense","Other MMA Services",9.1,"Home Health, Private Duty Nursing, Personal Care FFS",{"$f":"'MMA Rev-Exp Region 3'!O$64","v":{"v":0,"d":"$0.00"}},{"$f":"'MMA Rev-Exp Region 3'!P$64","v":{"v":0,"d":"$0.00"}},{"$f":"'MMA Rev-Exp Region 3'!Q$64","v":{"v":0,"d":"$0.00"}},{"$f":"'MMA Rev-Exp Region 3'!R$64","v":{"v":0,"d":"$0.00"}},{"$f":"'MMA Rev-Exp Region 3'!S$64","v":{"v":0,"d":"$0.00"}},{"$f":"'MMA Rev-Exp Region 3'!T$64","v":{"v":0,"d":"$0.00"}},{"$f":"'MMA Rev-Exp Region 3'!U$64","v":{"v":0,"d":"$0.00"}},{"$f":"'MMA Rev-Exp Region 3'!V$64","v":{"v":0,"d":"$0.00"}},{"$f":"'MMA Rev-Exp Region 3'!W$64","v":{"v":0,"d":"$0.00"}},{"$f":"'MMA Rev-Exp Region 3'!X$64","v":{"v":0,"d":"$0.00"}},{"$f":"'MMA Rev-Exp Region 3'!Y$64","v":{"v":0,"d":"$0.00"}},{"v":0,"d":"$0.00"}]
["MMA",null,null,{"$f":"Jurat!I$1","v":0},{"$f":"Jurat!D$33","v":"00:00:00"},"Q2","2017-06-30","Region 3","Operating Expense","Medical Benefits Expense","Other MMA Services","9.2","Hospice FFS",{"$f":"'MMA Rev-Exp Region 3'!O$65","v":{"v":0,"d":"$0.00"}},{"$f":"'MMA Rev-Exp Region 3'!P$65","v":{"v":0,"d":"$0.00"}},{"$f":"'MMA Rev-Exp Region 3'!Q$65","v":{"v":0,"d":"$0.00"}},{"$f":"'MMA Rev-Exp Region 3'!R$65","v":{"v":0,"d":"$0.00"}},{"$f":"'MMA Rev-Exp Region 3'!S$65","v":{"v":0,"d":"$0.00"}},{"$f":"'MMA Rev-Exp Region 3'!T$65","v":{"v":0,"d":"$0.00"}},{"$f":"'MMA Rev-Exp Region 3'!U$65","v":{"v":0,"d":"$0.00"}},{"$f":"'MMA Rev-Exp Region 3'!V$65","v":{"v":0,"d":"$0.00"}},{"$f":"'MMA Rev-Exp Region 3'!W$65","v":{"v":0,"d":"$0.00"}},{"$f":"'MMA Rev-Exp Region 3'!X$65","v":{"v":0,"d":"$0.00"}},{"$f":"'MMA Rev-Exp Region 3'!Y$65","v":{"v":0,"d":"$0.00"}},{"v":0,"d":"$0.00"}]
["MMA",null,null,{"$f":"Jurat!I$1","v":0},{"$f":"Jurat!D$33","v":"00:00:00"},"Q2","2017-06-30","Region 3","Operating Expense","Medical Benefits Expense","Other MMA Services","9.3","DME FFS",{"$f":"'MMA Rev-Exp Region 3'!O$66","v":{"v":0,"d":"$0.00"}},{"$f":"'MMA Rev-Exp Region 3'!P$66","v":{"v":0,"d":"$0.00"}},{"$f":"'MMA Rev-Exp Region 3'!Q$66","v":{"v":0,"d":"$0.00"}},{"$f":"'MMA Rev-Exp Region 3'!R$66","v":{"v":0,"d":"$0.00"}},{"$f":"'MMA Rev-Exp Region 3'!S$66","v":{"v":0,"d":"$0.00"}},{"$f":"'MMA Rev-Exp Region 3'!T$66","v":{"v":0,"d":"$0.00"}},{"$f":"'MMA Rev-Exp Region 3'!U$66","v":{"v":0,"d":"$0.00"}},{"$f":"'MMA Rev-Exp Region 3'!V$66","v":{"v":0,"d":"$0.00"}},{"$f":"'MMA Rev-Exp Region 3'!W$66","v":{"v":0,"d":"$0.00"}},{"$f":"'MMA Rev-Exp Region 3'!X$66","v":{"v":0,"d":"$0.00"}},{"$f":"'MMA Rev-Exp Region 3'!Y$66","v":{"v":0,"d":"$0.00"}},{"v":0,"d":"$0.00"}]
["MMA",null,null,{"$f":"Jurat!I$1","v":0},{"$f":"Jurat!D$33","v":"00:00:00"},"Q2","2017-06-30","Region 3","Operating Expense","Medical Benefits Expense","Other MMA Services","9.4","Other State Plan Services FFS",{"$f":"'MMA Rev-Exp Region 3'!O$67","v":{"v":0,"d":"$0.00"}},{"$f":"'MMA Rev-Exp Region 3'!P$67","v":{"v":0,"d":"$0.00"}},{"$f":"'MMA Rev-Exp Region 3'!Q$67","v":{"v":0,"d":"$0.00"}},{"$f":"'MMA Rev-Exp Region 3'!R$67","v":{"v":0,"d":"$0.00"}},{"$f":"'MMA Rev-Exp Region 3'!S$67","v":{"v":0,"d":"$0.00"}},{"$f":"'MMA Rev-Exp Region 3'!T$67","v":{"v":0,"d":"$0.00"}},{"$f":"'MMA Rev-Exp Region 3'!U$67","v":{"v":0,"d":"$0.00"}},{"$f":"'MMA Rev-Exp Region 3'!V$67","v":{"v":0,"d":"$0.00"}},{"$f":"'MMA Rev-Exp Region 3'!W$67","v":{"v":0,"d":"$0.00"}},{"$f":"'MMA Rev-Exp Region 3'!X$67","v":{"v":0,"d":"$0.00"}},{"$f":"'MMA Rev-Exp Region 3'!Y$67","v":{"v":0,"d":"$0.00"}},{"v":0,"d":"$0.00"}]
["MMA",null,null,{"$f":"Jurat!I$1","v":0},{"$f":"Jurat!D$33","v":"00:00:00"},"Q2","2017-06-30","Region 3","Operating Expense","Medical Benefits Expense","Other MMA Services","9.5","Other Services Subcapitation",{"$f":"'MMA Rev-Exp Region 3'!O$68","v":{"v":0,"d":"$0.00"}},{"$f":"'MMA Rev-Exp Region 3'!P$68","v":{"v":0,"d":"$0.00"}},{"$f":"'MMA Rev-Exp Region 3'!Q$68","v":{"v":0,"d":"$0.00"}},{"$f":"'MMA Rev-Exp Region 3'!R$68","v":{"v":0,"d":"$0.00"}},{"$f":"'MMA Rev-Exp Region 3'!S$68","v":{"v":0,"d":"$0.00"}},{"$f":"'MMA Rev-Exp Region 3'!T$68","v":{"v":0,"d":"$0.00"}},{"$f":"'MMA Rev-Exp Region 3'!U$68","v":{"v":0,"d":"$0.00"}},{"$f":"'MMA Rev-Exp Region 3'!V$68","v":{"v":0,"d":"$0.00"}},{"$f":"'MMA Rev-Exp Region 3'!W$68","v":{"v":0,"d":"$0.00"}},{"$f":"'MMA Rev-Exp Region 3'!X$68","v":{"v":0,"d":"$0.00"}},{"$f":"'MMA Rev-Exp Region 3'!Y$68","v":{"v":0,"d":"$0.00"}},{"v":0,"d":"$0.00"}]
["MMA",null,null,{"$f":"Jurat!I$1","v":0},{"$f":"Jurat!D$33","v":"00:00:00"},"Q2","2017-06-30","Region 3","Operating Expense","Medical Benefits Expense","Other MMA Services","9.6","Ending IBNP for Other Services",{"$f":"'MMA Rev-Exp Region 3'!O$69","v":{"v":0,"d":"$0.00"}},{"$f":"'MMA Rev-Exp Region 3'!P$69","v":{"v":0,"d":"$0.00"}},{"$f":"'MMA Rev-Exp Region 3'!Q$69","v":{"v":0,"d":"$0.00"}},{"$f":"'MMA Rev-Exp Region 3'!R$69","v":{"v":0,"d":"$0.00"}},{"$f":"'MMA Rev-Exp Region 3'!S$69","v":{"v":0,"d":"$0.00"}},{"$f":"'MMA Rev-Exp Region 3'!T$69","v":{"v":0,"d":"$0.00"}},{"$f":"'MMA Rev-Exp Region 3'!U$69","v":{"v":0,"d":"$0.00"}},{"$f":"'MMA Rev-Exp Region 3'!V$69","v":{"v":0,"d":"$0.00"}},{"$f":"'MMA Rev-Exp Region 3'!W$69","v":{"v":0,"d":"$0.00"}},{"$f":"'MMA Rev-Exp Region 3'!X$69","v":{"v":0,"d":"$0.00"}},{"$f":"'MMA Rev-Exp Region 3'!Y$69","v":{"v":0,"d":"$0.00"}},{"v":0,"d":"$0.00"}]
["MMA",null,null,{"$f":"Jurat!I$1","v":0},{"$f":"Jurat!D$33","v":"00:00:00"},"Q2","2017-06-30","Region 3","Operating Expense","Medical Benefits Expense","Other MMA Services","9.7","Other Services Settlements",{"$f":"'MMA Rev-Exp Region 3'!O$70","v":{"v":0,"d":"$0.00"}},{"$f":"'MMA Rev-Exp Region 3'!P$70","v":{"v":0,"d":"$0.00"}},{"$f":"'MMA Rev-Exp Region 3'!Q$70","v":{"v":0,"d":"$0.00"}},{"$f":"'MMA Rev-Exp Region 3'!R$70","v":{"v":0,"d":"$0.00"}},{"$f":"'MMA Rev-Exp Region 3'!S$70","v":{"v":0,"d":"$0.00"}},{"$f":"'MMA Rev-Exp Region 3'!T$70","v":{"v":0,"d":"$0.00"}},{"$f":"'MMA Rev-Exp Region 3'!U$70","v":{"v":0,"d":"$0.00"}},{"$f":"'MMA Rev-Exp Region 3'!V$70","v":{"v":0,"d":"$0.00"}},{"$f":"'MMA Rev-Exp Region 3'!W$70","v":{"v":0,"d":"$0.00"}},{"$f":"'MMA Rev-Exp Region 3'!X$70","v":{"v":0,"d":"$0.00"}},{"$f":"'MMA Rev-Exp Region 3'!Y$70","v":{"v":0,"d":"$0.00"}},{"v":0,"d":"$0.00"}]
["MMA",null,null,{"$f":"Jurat!I$1","v":0},{"$f":"Jurat!D$33","v":"00:00:00"},"Q2","2017-06-30","Region 3","Operating Expense","Medical Benefits Expense","Expanded Benefits","10.1","Expanded Benefits FFS",{"$f":"'MMA Rev-Exp Region 3'!O$72","v":{"v":0,"d":"$0.00"}},{"$f":"'MMA Rev-Exp Region 3'!P$72","v":{"v":0,"d":"$0.00"}},{"$f":"'MMA Rev-Exp Region 3'!Q$72","v":{"v":0,"d":"$0.00"}},{"$f":"'MMA Rev-Exp Region 3'!R$72","v":{"v":0,"d":"$0.00"}},{"$f":"'MMA Rev-Exp Region 3'!S$72","v":{"v":0,"d":"$0.00"}},{"$f":"'MMA Rev-Exp Region 3'!T$72","v":{"v":0,"d":"$0.00"}},{"$f":"'MMA Rev-Exp Region 3'!U$72","v":{"v":0,"d":"$0.00"}},{"$f":"'MMA Rev-Exp Region 3'!V$72","v":{"v":0,"d":"$0.00"}},{"$f":"'MMA Rev-Exp Region 3'!W$72","v":{"v":0,"d":"$0.00"}},{"$f":"'MMA Rev-Exp Region 3'!X$72","v":{"v":0,"d":"$0.00"}},{"$f":"'MMA Rev-Exp Region 3'!Y$72","v":{"v":0,"d":"$0.00"}},{"v":0,"d":"$0.00"}]
["MMA",null,null,{"$f":"Jurat!I$1","v":0},{"$f":"Jurat!D$33","v":"00:00:00"},"Q2","2017-06-30","Region 3","Operating Expense","Medical Benefits Expense","Expanded Benefits","10.2","Expanded benefits Subcapitation",{"$f":"'MMA Rev-Exp Region 3'!O$73","v":{"v":0,"d":"$0.00"}},{"$f":"'MMA Rev-Exp Region 3'!P$73","v":{"v":0,"d":"$0.00"}},{"$f":"'MMA Rev-Exp Region 3'!Q$73","v":{"v":0,"d":"$0.00"}},{"$f":"'MMA Rev-Exp Region 3'!R$73","v":{"v":0,"d":"$0.00"}},{"$f":"'MMA Rev-Exp Region 3'!S$73","v":{"v":0,"d":"$0.00"}},{"$f":"'MMA Rev-Exp Region 3'!T$73","v":{"v":0,"d":"$0.00"}},{"$f":"'MMA Rev-Exp Region 3'!U$73","v":{"v":0,"d":"$0.00"}},{"$f":"'MMA Rev-Exp Region 3'!V$73","v":{"v":0,"d":"$0.00"}},{"$f":"'MMA Rev-Exp Region 3'!W$73","v":{"v":0,"d":"$0.00"}},{"$f":"'MMA Rev-Exp Region 3'!X$73","v":{"v":0,"d":"$0.00"}},{"$f":"'MMA Rev-Exp Region 3'!Y$73","v":{"v":0,"d":"$0.00"}},{"v":0,"d":"$0.00"}]
["MMA",null,null,{"$f":"Jurat!I$1","v":0},{"$f":"Jurat!D$33","v":"00:00:00"},"Q2","2017-06-30","Region 3","Operating Expense","Medical Benefits Expense","Expanded Benefits","10.3","Ending IBNP for Expanded Benefits",{"$f":"'MMA Rev-Exp Region 3'!O$74","v":{"v":0,"d":"$0.00"}},{"$f":"'MMA Rev-Exp Region 3'!P$74","v":{"v":0,"d":"$0.00"}},{"$f":"'MMA Rev-Exp Region 3'!Q$74","v":{"v":0,"d":"$0.00"}},{"$f":"'MMA Rev-Exp Region 3'!R$74","v":{"v":0,"d":"$0.00"}},{"$f":"'MMA Rev-Exp Region 3'!S$74","v":{"v":0,"d":"$0.00"}},{"$f":"'MMA Rev-Exp Region 3'!T$74","v":{"v":0,"d":"$0.00"}},{"$f":"'MMA Rev-Exp Region 3'!U$74","v":{"v":0,"d":"$0.00"}},{"$f":"'MMA Rev-Exp Region 3'!V$74","v":{"v":0,"d":"$0.00"}},{"$f":"'MMA Rev-Exp Region 3'!W$74","v":{"v":0,"d":"$0.00"}},{"$f":"'MMA Rev-Exp Region 3'!X$74","v":{"v":0,"d":"$0.00"}},{"$f":"'MMA Rev-Exp Region 3'!Y$74","v":{"v":0,"d":"$0.00"}},{"v":0,"d":"$0.00"}]
["MMA",null,null,{"$f":"Jurat!I$1","v":0},{"$f":"Jurat!D$33","v":"00:00:00"},"Q2","2017-06-30","Region 3","Operating Expense","Medical Benefits Expense","Expanded Benefits","10.4","Expanded Benefits Settlements",{"$f":"'MMA Rev-Exp Region 3'!O$75","v":{"v":0,"d":"$0.00"}},{"$f":"'MMA Rev-Exp Region 3'!P$75","v":{"v":0,"d":"$0.00"}},{"$f":"'MMA Rev-Exp Region 3'!Q$75","v":{"v":0,"d":"$0.00"}},{"$f":"'MMA Rev-Exp Region 3'!R$75","v":{"v":0,"d":"$0.00"}},{"$f":"'MMA Rev-Exp Region 3'!S$75","v":{"v":0,"d":"$0.00"}},{"$f":"'MMA Rev-Exp Region 3'!T$75","v":{"v":0,"d":"$0.00"}},{"$f":"'MMA Rev-Exp Region 3'!U$75","v":{"v":0,"d":"$0.00"}},{"$f":"'MMA Rev-Exp Region 3'!V$75","v":{"v":0,"d":"$0.00"}},{"$f":"'MMA Rev-Exp Region 3'!W$75","v":{"v":0,"d":"$0.00"}},{"$f":"'MMA Rev-Exp Region 3'!X$75","v":{"v":0,"d":"$0.00"}},{"$f":"'MMA Rev-Exp Region 3'!Y$75","v":{"v":0,"d":"$0.00"}},{"v":0,"d":"$0.00"}]
["MMA",null,null,{"$f":"Jurat!I$1","v":0},{"$f":"Jurat!D$33","v":"00:00:00"},"Q2","2017-06-30","Region 3","Operating Expense","Medical Benefits Expense","Other Medical","11.5","TPL & Fraud/Abuse Recoveries",{"$f":"'MMA Rev-Exp Region 3'!O$81","v":{"v":0,"d":"$0.00"}},{"$f":"'MMA Rev-Exp Region 3'!P$81","v":{"v":0,"d":"$0.00"}},{"$f":"'MMA Rev-Exp Region 3'!Q$81","v":{"v":0,"d":"$0.00"}},{"$f":"'MMA Rev-Exp Region 3'!R$81","v":{"v":0,"d":"$0.00"}},{"$f":"'MMA Rev-Exp Region 3'!S$81","v":{"v":0,"d":"$0.00"}},{"$f":"'MMA Rev-Exp Region 3'!T$81","v":{"v":0,"d":"$0.00"}},{"$f":"'MMA Rev-Exp Region 3'!U$81","v":{"v":0,"d":"$0.00"}},{"$f":"'MMA Rev-Exp Region 3'!V$81","v":{"v":0,"d":"$0.00"}},{"$f":"'MMA Rev-Exp Region 3'!W$81","v":{"v":0,"d":"$0.00"}},{"$f":"'MMA Rev-Exp Region 3'!X$81","v":{"v":0,"d":"$0.00"}},{"$f":"'MMA Rev-Exp Region 3'!Y$81","v":{"v":0,"d":"$0.00"}},{"v":0,"d":"$0.00"}]
["MMA",null,null,{"$f":"Jurat!I$1","v":0},{"$f":"Jurat!D$33","v":"00:00:00"},"Q2","2017-06-30","Region 3","Operating Expense","Medical Benefits Expense","Other Medical","11.6.1","Premium Deficiency Reserve",{"$f":"'MMA Rev-Exp Region 3'!O$82","v":{"v":0,"d":"$0.00"}},{"$f":"'MMA Rev-Exp Region 3'!P$82","v":{"v":0,"d":"$0.00"}},{"$f":"'MMA Rev-Exp Region 3'!Q$82","v":{"v":0,"d":"$0.00"}},{"$f":"'MMA Rev-Exp Region 3'!R$82","v":{"v":0,"d":"$0.00"}},{"$f":"'MMA Rev-Exp Region 3'!S$82","v":{"v":0,"d":"$0.00"}},{"$f":"'MMA Rev-Exp Region 3'!T$82","v":{"v":0,"d":"$0.00"}},{"$f":"'MMA Rev-Exp Region 3'!U$82","v":{"v":0,"d":"$0.00"}},{"$f":"'MMA Rev-Exp Region 3'!V$82","v":{"v":0,"d":"$0.00"}},{"$f":"'MMA Rev-Exp Region 3'!W$82","v":{"v":0,"d":"$0.00"}},{"$f":"'MMA Rev-Exp Region 3'!X$82","v":{"v":0,"d":"$0.00"}},{"$f":"'MMA Rev-Exp Region 3'!Y$82","v":{"v":0,"d":"$0.00"}},{"v":0,"d":"$0.00"}]
["MMA",null,null,{"$f":"Jurat!I$1","v":0},{"$f":"Jurat!D$33","v":"00:00:00"},"Q2","2017-06-30","Region 3","Operating Expense","Medical Benefits Expense","Other Medical","11.8","Reinsurance Premiums",{"$f":"'MMA Rev-Exp Region 3'!O$84","v":{"v":0,"d":"$0.00"}},{"$f":"'MMA Rev-Exp Region 3'!P$84","v":{"v":0,"d":"$0.00"}},{"$f":"'MMA Rev-Exp Region 3'!Q$84","v":{"v":0,"d":"$0.00"}},{"$f":"'MMA Rev-Exp Region 3'!R$84","v":{"v":0,"d":"$0.00"}},{"$f":"'MMA Rev-Exp Region 3'!S$84","v":{"v":0,"d":"$0.00"}},{"$f":"'MMA Rev-Exp Region 3'!T$84","v":{"v":0,"d":"$0.00"}},{"$f":"'MMA Rev-Exp Region 3'!U$84","v":{"v":0,"d":"$0.00"}},{"$f":"'MMA Rev-Exp Region 3'!V$84","v":{"v":0,"d":"$0.00"}},{"$f":"'MMA Rev-Exp Region 3'!W$84","v":{"v":0,"d":"$0.00"}},{"$f":"'MMA Rev-Exp Region 3'!X$84","v":{"v":0,"d":"$0.00"}},{"$f":"'MMA Rev-Exp Region 3'!Y$84","v":{"v":0,"d":"$0.00"}},{"v":0,"d":"$0.00"}]
["MMA",null,null,{"$f":"Jurat!I$1","v":0},{"$f":"Jurat!D$33","v":"00:00:00"},"Q2","2017-06-30","Region 3","Operating Expense","Medical Benefits Expense","Other Medical","11.9","Reinsurance Recoveries",{"$f":"'MMA Rev-Exp Region 3'!O$85","v":{"v":0,"d":"$0.00"}},{"$f":"'MMA Rev-Exp Region 3'!P$85","v":{"v":0,"d":"$0.00"}},{"$f":"'MMA Rev-Exp Region 3'!Q$85","v":{"v":0,"d":"$0.00"}},{"$f":"'MMA Rev-Exp Region 3'!R$85","v":{"v":0,"d":"$0.00"}},{"$f":"'MMA Rev-Exp Region 3'!S$85","v":{"v":0,"d":"$0.00"}},{"$f":"'MMA Rev-Exp Region 3'!T$85","v":{"v":0,"d":"$0.00"}},{"$f":"'MMA Rev-Exp Region 3'!U$85","v":{"v":0,"d":"$0.00"}},{"$f":"'MMA Rev-Exp Region 3'!V$85","v":{"v":0,"d":"$0.00"}},{"$f":"'MMA Rev-Exp Region 3'!W$85","v":{"v":0,"d":"$0.00"}},{"$f":"'MMA Rev-Exp Region 3'!X$85","v":{"v":0,"d":"$0.00"}},{"$f":"'MMA Rev-Exp Region 3'!Y$85","v":{"v":0,"d":"$0.00"}},{"v":0,"d":"$0.00"}]
["MMA",null,null,{"$f":"Jurat!I$1","v":0},{"$f":"Jurat!D$33","v":"00:00:00"},"Q2","2017-06-30","Region 3","Operating Expense","Administrative Expense","Administrative","12.1","Salaries & Benefits",{"$f":"'MMA Rev-Exp Region 3'!O$90","v":{"v":0,"d":"$0.00"}},{"v":0,"d":"$0.00"},{"v":0,"d":"$0.00"},{"v":0,"d":"$0.00"},{"v":0,"d":"$0.00"},{"v":0,"d":"$0.00"},{"v":0,"d":"$0.00"},{"v":0,"d":"$0.00"},{"v":0,"d":"$0.00"},{"v":0,"d":"$0.00"},{"v":0,"d":"$0.00"},{"v":0,"d":"$0.00"}]
["MMA",null,null,{"$f":"Jurat!I$1","v":0},{"$f":"Jurat!D$33","v":"00:00:00"},"Q2","2017-06-30","Region 3","Operating Expense","Administrative Expense","Administrative","12.2","Administrative Services",{"$f":"'MMA Rev-Exp Region 3'!O$91","v":{"v":0,"d":"$0.00"}},{"v":0,"d":"$0.00"},{"v":0,"d":"$0.00"},{"v":0,"d":"$0.00"},{"v":0,"d":"$0.00"},{"v":0,"d":"$0.00"},{"v":0,"d":"$0.00"},{"v":0,"d":"$0.00"},{"v":0,"d":"$0.00"},{"v":0,"d":"$0.00"},{"v":0,"d":"$0.00"},{"v":0,"d":"$0.00"}]
["MMA",null,null,{"$f":"Jurat!I$1","v":0},{"$f":"Jurat!D$33","v":"00:00:00"},"Q2","2017-06-30","Region 3","Operating Expense","Administrative Expense","Administrative","12.3","Information Systems",{"$f":"'MMA Rev-Exp Region 3'!O$92","v":{"v":0,"d":"$0.00"}},{"v":0,"d":"$0.00"},{"v":0,"d":"$0.00"},{"v":0,"d":"$0.00"},{"v":0,"d":"$0.00"},{"v":0,"d":"$0.00"},{"v":0,"d":"$0.00"},{"v":0,"d":"$0.00"},{"v":0,"d":"$0.00"},{"v":0,"d":"$0.00"},{"v":0,"d":"$0.00"},{"v":0,"d":"$0.00"}]
["MMA",null,null,{"$f":"Jurat!I$1","v":0},{"$f":"Jurat!D$33","v":"00:00:00"},"Q2","2017-06-30","Region 3","Operating Expense","Administrative Expense","Administrative","12.4","Marketing Expenses",{"$f":"'MMA Rev-Exp Region 3'!O$93","v":{"v":0,"d":"$0.00"}},{"v":0,"d":"$0.00"},{"v":0,"d":"$0.00"},{"v":0,"d":"$0.00"},{"v":0,"d":"$0.00"},{"v":0,"d":"$0.00"},{"v":0,"d":"$0.00"},{"v":0,"d":"$0.00"},{"v":0,"d":"$0.00"},{"v":0,"d":"$0.00"},{"v":0,"d":"$0.00"},{"v":0,"d":"$0.00"}]
["MMA",null,null,{"$f":"Jurat!I$1","v":0},{"$f":"Jurat!D$33","v":"00:00:00"},"Q2","2017-06-30","Region 3","Operating Expense","Administrative Expense","Administrative","12.5","General  Administration",{"$f":"'MMA Rev-Exp Region 3'!O$94","v":{"v":0,"d":"$0.00"}},{"v":0,"d":"$0.00"},{"v":0,"d":"$0.00"},{"v":0,"d":"$0.00"},{"v":0,"d":"$0.00"},{"v":0,"d":"$0.00"},{"v":0,"d":"$0.00"},{"v":0,"d":"$0.00"},{"v":0,"d":"$0.00"},{"v":0,"d":"$0.00"},{"v":0,"d":"$0.00"},{"v":0,"d":"$0.00"}]
["MMA",null,null,{"$f":"Jurat!I$1","v":0},{"$f":"Jurat!D$33","v":"00:00:00"},"Q2","2017-06-30","Region 3","Operating Expense","Administrative Expense","Administrative","12.6","Compliance/Regulatory",{"$f":"'MMA Rev-Exp Region 3'!O$95","v":{"v":0,"d":"$0.00"}},{"v":0,"d":"$0.00"},{"v":0,"d":"$0.00"},{"v":0,"d":"$0.00"},{"v":0,"d":"$0.00"},{"v":0,"d":"$0.00"},{"v":0,"d":"$0.00"},{"v":0,"d":"$0.00"},{"v":0,"d":"$0.00"},{"v":0,"d":"$0.00"},{"v":0,"d":"$0.00"},{"v":0,"d":"$0.00"}]
["MMA",null,null,{"$f":"Jurat!I$1","v":0},{"$f":"Jurat!D$33","v":"00:00:00"},"Q2","2017-06-30","Region 3","Operating Expense","Taxes & Fees","Taxes & Fees","13.1","State Premium tax",{"$f":"'MMA Rev-Exp Region 3'!O$97","v":{"v":0,"d":"$0.00"}},{"v":0,"d":"$0.00"},{"v":0,"d":"$0.00"},{"v":0,"d":"$0.00"},{"v":0,"d":"$0.00"},{"v":0,"d":"$0.00"},{"v":0,"d":"$0.00"},{"v":0,"d":"$0.00"},{"v":0,"d":"$0.00"},{"v":0,"d":"$0.00"},{"v":0,"d":"$0.00"},{"v":0,"d":"$0.00"}]
["MMA",null,null,{"$f":"Jurat!I$1","v":0},{"$f":"Jurat!D$33","v":"00:00:00"},"Q2","2017-06-30","Region 3","Operating Expense","Taxes & Fees","Taxes & Fees","13.2","Department of Insurance Assessments",{"$f":"'MMA Rev-Exp Region 3'!O$98","v":{"v":0,"d":"$0.00"}},{"v":0,"d":"$0.00"},{"v":0,"d":"$0.00"},{"v":0,"d":"$0.00"},{"v":0,"d":"$0.00"},{"v":0,"d":"$0.00"},{"v":0,"d":"$0.00"},{"v":0,"d":"$0.00"},{"v":0,"d":"$0.00"},{"v":0,"d":"$0.00"},{"v":0,"d":"$0.00"},{"v":0,"d":"$0.00"}]
["MMA",null,null,{"$f":"Jurat!I$1","v":0},{"$f":"Jurat!D$33","v":"00:00:00"},"Q2","2017-06-30","Region 3","Operating Expense","Taxes & Fees","Taxes & Fees","13.3","Section 9010 Health Insurance Providers Fee",{"$f":"'MMA Rev-Exp Region 3'!O$99","v":{"v":0,"d":"$0.00"}},{"v":0,"d":"$0.00"},{"v":0,"d":"$0.00"},{"v":0,"d":"$0.00"},{"v":0,"d":"$0.00"},{"v":0,"d":"$0.00"},{"v":0,"d":"$0.00"},{"v":0,"d":"$0.00"},{"v":0,"d":"$0.00"},{"v":0,"d":"$0.00"},{"v":0,"d":"$0.00"},{"v":0,"d":"$0.00"}]
["MMA",null,null,{"$f":"Jurat!I$1","v":0},{"$f":"Jurat!D$33","v":"00:00:00"},"Q2","2017-06-30","Region 3","Non-Operating Expense","Income Tax Expense","Income Tax Expense","16.0","Income Tax Expense",{"$f":"'MMA Rev-Exp Region 3'!O$106","v":{"v":0,"d":"$0.00"}},{"v":0,"d":"$0.00"},{"v":0,"d":"$0.00"},{"v":0,"d":"$0.00"},{"v":0,"d":"$0.00"},{"v":0,"d":"$0.00"},{"v":0,"d":"$0.00"},{"v":0,"d":"$0.00"},{"v":0,"d":"$0.00"},{"v":0,"d":"$0.00"},{"v":0,"d":"$0.00"},{"v":0,"d":"$0.00"}]
["MMA",null,null,{"$f":"Jurat!I$1","v":0},{"$f":"Jurat!D$33","v":"00:00:00"},"Q3","2017-09-30","Region 3","Member Months","Member Months","Member Months",null,"Member Months",{"$f":"'MMA Rev-Exp Region 3'!Z$9","v":{"v":0,"d":"$0.00"}},{"$f":"'MMA Rev-Exp Region 3'!AA$9","v":{"v":0,"d":"$0.00"}},{"$f":"'MMA Rev-Exp Region 3'!AB$9","v":{"v":0,"d":"$0.00"}},{"$f":"'MMA Rev-Exp Region 3'!AC$9","v":{"v":0,"d":"$0.00"}},{"$f":"'MMA Rev-Exp Region 3'!AD$9","v":{"v":0,"d":"$0.00"}},{"$f":"'MMA Rev-Exp Region 3'!AE$9","v":{"v":0,"d":"$0.00"}},{"$f":"'MMA Rev-Exp Region 3'!AF$9","v":{"v":0,"d":"$0.00"}},{"$f":"'MMA Rev-Exp Region 3'!AG$9","v":{"v":0,"d":"$0.00"}},{"$f":"'MMA Rev-Exp Region 3'!AH$9","v":{"v":0,"d":"$0.00"}},{"$f":"'MMA Rev-Exp Region 3'!AI$9","v":{"v":0,"d":"$0.00"}},{"$f":"'MMA Rev-Exp Region 3'!AJ$9","v":{"v":0,"d":"$0.00"}},{"v":0,"d":"$0.00"}]
["MMA",null,null,{"$f":"Jurat!I$1","v":0},{"$f":"Jurat!D$33","v":"00:00:00"},"Q3","2017-09-30","Region 3","Operating Revenue","Capitation","Capitation",1.1,"Capitation",{"$f":"'MMA Rev-Exp Region 3'!Z$11","v":{"v":0,"d":"$0.00"}},{"$f":"'MMA Rev-Exp Region 3'!AA$11","v":{"v":0,"d":"$0.00"}},{"$f":"'MMA Rev-Exp Region 3'!AB$11","v":{"v":0,"d":"$0.00"}},{"$f":"'MMA Rev-Exp Region 3'!AC$11","v":{"v":0,"d":"$0.00"}},{"$f":"'MMA Rev-Exp Region 3'!AD$11","v":{"v":0,"d":"$0.00"}},{"$f":"'MMA Rev-Exp Region 3'!AE$11","v":{"v":0,"d":"$0.00"}},{"$f":"'MMA Rev-Exp Region 3'!AF$11","v":{"v":0,"d":"$0.00"}},{"$f":"'MMA Rev-Exp Region 3'!AG$11","v":{"v":0,"d":"$0.00"}},{"$f":"'MMA Rev-Exp Region 3'!AH$11","v":{"v":0,"d":"$0.00"}},{"$f":"'MMA Rev-Exp Region 3'!AI$11","v":{"v":0,"d":"$0.00"}},{"$f":"'MMA Rev-Exp Region 3'!AJ$11","v":{"v":0,"d":"$0.00"}},{"v":0,"d":"$0.00"}]
["MMA",null,null,{"$f":"Jurat!I$1","v":0},{"$f":"Jurat!D$33","v":"00:00:00"},"Q3","2017-09-30","Region 3","Operating Revenue","Kick Payments","Kick Payments - Transplant",1.2,"Transplant Kick Payments",{"$f":"'MMA Rev-Exp Region 3'!Z$12","v":{"v":0,"d":"$0.00"}},{"$f":"'MMA Rev-Exp Region 3'!AA$12","v":{"v":0,"d":"$0.00"}},{"$f":"'MMA Rev-Exp Region 3'!AB$12","v":{"v":0,"d":"$0.00"}},{"$f":"'MMA Rev-Exp Region 3'!AC$12","v":{"v":0,"d":"$0.00"}},{"$f":"'MMA Rev-Exp Region 3'!AD$12","v":{"v":0,"d":"$0.00"}},{"$f":"'MMA Rev-Exp Region 3'!AE$12","v":{"v":0,"d":"$0.00"}},{"$f":"'MMA Rev-Exp Region 3'!AF$12","v":{"v":0,"d":"$0.00"}},{"$f":"'MMA Rev-Exp Region 3'!AG$12","v":{"v":0,"d":"$0.00"}},{"$f":"'MMA Rev-Exp Region 3'!AH$12","v":{"v":0,"d":"$0.00"}},{"$f":"'MMA Rev-Exp Region 3'!AI$12","v":{"v":0,"d":"$0.00"}},{"$f":"'MMA Rev-Exp Region 3'!AJ$12","v":{"v":0,"d":"$0.00"}},{"v":0,"d":"$0.00"}]
["MMA",null,null,{"$f":"Jurat!I$1","v":0},{"$f":"Jurat!D$33","v":"00:00:00"},"Q3","2017-09-30","Region 3","Operating Revenue","Kick Payments","Kick Payments - Hep C","1.3","Hepatitis C Kick Payments",{"$f":"'MMA Rev-Exp Region 3'!Z$13","v":{"v":0,"d":"$0.00"}},{"$f":"'MMA Rev-Exp Region 3'!AA$13","v":{"v":0,"d":"$0.00"}},{"$f":"'MMA Rev-Exp Region 3'!AB$13","v":{"v":0,"d":"$0.00"}},{"$f":"'MMA Rev-Exp Region 3'!AC$13","v":{"v":0,"d":"$0.00"}},{"$f":"'MMA Rev-Exp Region 3'!AD$13","v":{"v":0,"d":"$0.00"}},{"$f":"'MMA Rev-Exp Region 3'!AE$13","v":{"v":0,"d":"$0.00"}},{"$f":"'MMA Rev-Exp Region 3'!AF$13","v":{"v":0,"d":"$0.00"}},{"$f":"'MMA Rev-Exp Region 3'!AG$13","v":{"v":0,"d":"$0.00"}},{"$f":"'MMA Rev-Exp Region 3'!AH$13","v":{"v":0,"d":"$0.00"}},{"$f":"'MMA Rev-Exp Region 3'!AI$13","v":{"v":0,"d":"$0.00"}},{"$f":"'MMA Rev-Exp Region 3'!AJ$13","v":{"v":0,"d":"$0.00"}},{"v":0,"d":"$0.00"}]
["MMA",null,null,{"$f":"Jurat!I$1","v":0},{"$f":"Jurat!D$33","v":"00:00:00"},"Q3","2017-09-30","Region 3","Operating Revenue","Kick Payments","Kick Payments - Maternity","1.4.1","Maternity Kick Payments",{"$f":"'MMA Rev-Exp Region 3'!Z$14","v":{"v":0,"d":"$0.00"}},{"$f":"'MMA Rev-Exp Region 3'!AA$14","v":{"v":0,"d":"$0.00"}},{"$f":"'MMA Rev-Exp Region 3'!AB$14","v":{"v":0,"d":"$0.00"}},{"$f":"'MMA Rev-Exp Region 3'!AC$14","v":{"v":0,"d":"$0.00"}},{"$f":"'MMA Rev-Exp Region 3'!AD$14","v":{"v":0,"d":"$0.00"}},{"$f":"'MMA Rev-Exp Region 3'!AE$14","v":{"v":0,"d":"$0.00"}},{"$f":"'MMA Rev-Exp Region 3'!AF$14","v":{"v":0,"d":"$0.00"}},{"$f":"'MMA Rev-Exp Region 3'!AG$14","v":{"v":0,"d":"$0.00"}},{"$f":"'MMA Rev-Exp Region 3'!AH$14","v":{"v":0,"d":"$0.00"}},{"$f":"'MMA Rev-Exp Region 3'!AI$14","v":{"v":0,"d":"$0.00"}},{"$f":"'MMA Rev-Exp Region 3'!AJ$14","v":{"v":0,"d":"$0.00"}},{"v":0,"d":"$0.00"}]
["MMA",null,null,{"$f":"Jurat!I$1","v":0},{"$f":"Jurat!D$33","v":"00:00:00"},"Q3","2017-09-30","Region 3","Operating Revenue","Other Revenue","Other Revenue - 9010","1.5","ACA § 9010 related payments",{"$f":"'MMA Rev-Exp Region 3'!Z$15","v":{"v":0,"d":"$0.00"}},{"$f":"'MMA Rev-Exp Region 3'!AA$15","v":{"v":0,"d":"$0.00"}},{"$f":"'MMA Rev-Exp Region 3'!AB$15","v":{"v":0,"d":"$0.00"}},{"$f":"'MMA Rev-Exp Region 3'!AC$15","v":{"v":0,"d":"$0.00"}},{"$f":"'MMA Rev-Exp Region 3'!AD$15","v":{"v":0,"d":"$0.00"}},{"$f":"'MMA Rev-Exp Region 3'!AE$15","v":{"v":0,"d":"$0.00"}},{"$f":"'MMA Rev-Exp Region 3'!AF$15","v":{"v":0,"d":"$0.00"}},{"$f":"'MMA Rev-Exp Region 3'!AG$15","v":{"v":0,"d":"$0.00"}},{"$f":"'MMA Rev-Exp Region 3'!AH$15","v":{"v":0,"d":"$0.00"}},{"$f":"'MMA Rev-Exp Region 3'!AI$15","v":{"v":0,"d":"$0.00"}},{"$f":"'MMA Rev-Exp Region 3'!AJ$15","v":{"v":0,"d":"$0.00"}},{"v":0,"d":"$0.00"}]
["MMA",null,null,{"$f":"Jurat!I$1","v":0},{"$f":"Jurat!D$33","v":"00:00:00"},"Q3","2017-09-30","Region 3","Operating Revenue","Other Revenue","Other Revenue","1.6","Other Revenue",{"$f":"'MMA Rev-Exp Region 3'!Z$16","v":{"v":0,"d":"$0.00"}},{"$f":"'MMA Rev-Exp Region 3'!AA$16","v":{"v":0,"d":"$0.00"}},{"$f":"'MMA Rev-Exp Region 3'!AB$16","v":{"v":0,"d":"$0.00"}},{"$f":"'MMA Rev-Exp Region 3'!AC$16","v":{"v":0,"d":"$0.00"}},{"$f":"'MMA Rev-Exp Region 3'!AD$16","v":{"v":0,"d":"$0.00"}},{"$f":"'MMA Rev-Exp Region 3'!AE$16","v":{"v":0,"d":"$0.00"}},{"$f":"'MMA Rev-Exp Region 3'!AF$16","v":{"v":0,"d":"$0.00"}},{"$f":"'MMA Rev-Exp Region 3'!AG$16","v":{"v":0,"d":"$0.00"}},{"$f":"'MMA Rev-Exp Region 3'!AH$16","v":{"v":0,"d":"$0.00"}},{"$f":"'MMA Rev-Exp Region 3'!AI$16","v":{"v":0,"d":"$0.00"}},{"$f":"'MMA Rev-Exp Region 3'!AJ$16","v":{"v":0,"d":"$0.00"}},{"v":0,"d":"$0.00"}]
["MMA",null,null,{"$f":"Jurat!I$1","v":0},{"$f":"Jurat!D$33","v":"00:00:00"},"Q3","2017-09-30","Region 3","Operating Expense","Medical Benefits Expense","Hospital Services",2.1,"Inpatient FFS",{"$f":"'MMA Rev-Exp Region 3'!Z$20","v":{"v":0,"d":"$0.00"}},{"$f":"'MMA Rev-Exp Region 3'!AA$20","v":{"v":0,"d":"$0.00"}},{"$f":"'MMA Rev-Exp Region 3'!AB$20","v":{"v":0,"d":"$0.00"}},{"$f":"'MMA Rev-Exp Region 3'!AC$20","v":{"v":0,"d":"$0.00"}},{"$f":"'MMA Rev-Exp Region 3'!AD$20","v":{"v":0,"d":"$0.00"}},{"$f":"'MMA Rev-Exp Region 3'!AE$20","v":{"v":0,"d":"$0.00"}},{"$f":"'MMA Rev-Exp Region 3'!AF$20","v":{"v":0,"d":"$0.00"}},{"$f":"'MMA Rev-Exp Region 3'!AG$20","v":{"v":0,"d":"$0.00"}},{"$f":"'MMA Rev-Exp Region 3'!AH$20","v":{"v":0,"d":"$0.00"}},{"$f":"'MMA Rev-Exp Region 3'!AI$20","v":{"v":0,"d":"$0.00"}},{"$f":"'MMA Rev-Exp Region 3'!AJ$20","v":{"v":0,"d":"$0.00"}},{"v":0,"d":"$0.00"}]
["MMA",null,null,{"$f":"Jurat!I$1","v":0},{"$f":"Jurat!D$33","v":"00:00:00"},"Q3","2017-09-30","Region 3","Operating Expense","Medical Benefits Expense","Hospital Services",2.2,"Ending IBNP for Inpatient Hospital Services",{"$f":"'MMA Rev-Exp Region 3'!Z$21","v":{"v":0,"d":"$0.00"}},{"$f":"'MMA Rev-Exp Region 3'!AA$21","v":{"v":0,"d":"$0.00"}},{"$f":"'MMA Rev-Exp Region 3'!AB$21","v":{"v":0,"d":"$0.00"}},{"$f":"'MMA Rev-Exp Region 3'!AC$21","v":{"v":0,"d":"$0.00"}},{"$f":"'MMA Rev-Exp Region 3'!AD$21","v":{"v":0,"d":"$0.00"}},{"$f":"'MMA Rev-Exp Region 3'!AE$21","v":{"v":0,"d":"$0.00"}},{"$f":"'MMA Rev-Exp Region 3'!AF$21","v":{"v":0,"d":"$0.00"}},{"$f":"'MMA Rev-Exp Region 3'!AG$21","v":{"v":0,"d":"$0.00"}},{"$f":"'MMA Rev-Exp Region 3'!AH$21","v":{"v":0,"d":"$0.00"}},{"$f":"'MMA Rev-Exp Region 3'!AI$21","v":{"v":0,"d":"$0.00"}},{"$f":"'MMA Rev-Exp Region 3'!AJ$21","v":{"v":0,"d":"$0.00"}},{"v":0,"d":"$0.00"}]
["MMA",null,null,{"$f":"Jurat!I$1","v":0},{"$f":"Jurat!D$33","v":"00:00:00"},"Q3","2017-09-30","Region 3","Operating Expense","Medical Benefits Expense","Hospital Services",2.3,"Outpatient FFS: ER",{"$f":"'MMA Rev-Exp Region 3'!Z$22","v":{"v":0,"d":"$0.00"}},{"$f":"'MMA Rev-Exp Region 3'!AA$22","v":{"v":0,"d":"$0.00"}},{"$f":"'MMA Rev-Exp Region 3'!AB$22","v":{"v":0,"d":"$0.00"}},{"$f":"'MMA Rev-Exp Region 3'!AC$22","v":{"v":0,"d":"$0.00"}},{"$f":"'MMA Rev-Exp Region 3'!AD$22","v":{"v":0,"d":"$0.00"}},{"$f":"'MMA Rev-Exp Region 3'!AE$22","v":{"v":0,"d":"$0.00"}},{"$f":"'MMA Rev-Exp Region 3'!AF$22","v":{"v":0,"d":"$0.00"}},{"$f":"'MMA Rev-Exp Region 3'!AG$22","v":{"v":0,"d":"$0.00"}},{"$f":"'MMA Rev-Exp Region 3'!AH$22","v":{"v":0,"d":"$0.00"}},{"$f":"'MMA Rev-Exp Region 3'!AI$22","v":{"v":0,"d":"$0.00"}},{"$f":"'MMA Rev-Exp Region 3'!AJ$22","v":{"v":0,"d":"$0.00"}},{"v":0,"d":"$0.00"}]
["MMA",null,null,{"$f":"Jurat!I$1","v":0},{"$f":"Jurat!D$33","v":"00:00:00"},"Q3","2017-09-30","Region 3","Operating Expense","Medical Benefits Expense","Hospital Services",2.4,"Outpatient FFS: Other than ER ",{"$f":"'MMA Rev-Exp Region 3'!Z$23","v":{"v":0,"d":"$0.00"}},{"$f":"'MMA Rev-Exp Region 3'!AA$23","v":{"v":0,"d":"$0.00"}},{"$f":"'MMA Rev-Exp Region 3'!AB$23","v":{"v":0,"d":"$0.00"}},{"$f":"'MMA Rev-Exp Region 3'!AC$23","v":{"v":0,"d":"$0.00"}},{"$f":"'MMA Rev-Exp Region 3'!AD$23","v":{"v":0,"d":"$0.00"}},{"$f":"'MMA Rev-Exp Region 3'!AE$23","v":{"v":0,"d":"$0.00"}},{"$f":"'MMA Rev-Exp Region 3'!AF$23","v":{"v":0,"d":"$0.00"}},{"$f":"'MMA Rev-Exp Region 3'!AG$23","v":{"v":0,"d":"$0.00"}},{"$f":"'MMA Rev-Exp Region 3'!AH$23","v":{"v":0,"d":"$0.00"}},{"$f":"'MMA Rev-Exp Region 3'!AI$23","v":{"v":0,"d":"$0.00"}},{"$f":"'MMA Rev-Exp Region 3'!AJ$23","v":{"v":0,"d":"$0.00"}},{"v":0,"d":"$0.00"}]
["MMA",null,null,{"$f":"Jurat!I$1","v":0},{"$f":"Jurat!D$33","v":"00:00:00"},"Q3","2017-09-30","Region 3","Operating Expense","Medical Benefits Expense","Hospital Services",2.5,"Ending IBNP for Outpatient Hospital Services",{"$f":"'MMA Rev-Exp Region 3'!Z$24","v":{"v":0,"d":"$0.00"}},{"$f":"'MMA Rev-Exp Region 3'!AA$24","v":{"v":0,"d":"$0.00"}},{"$f":"'MMA Rev-Exp Region 3'!AB$24","v":{"v":0,"d":"$0.00"}},{"$f":"'MMA Rev-Exp Region 3'!AC$24","v":{"v":0,"d":"$0.00"}},{"$f":"'MMA Rev-Exp Region 3'!AD$24","v":{"v":0,"d":"$0.00"}},{"$f":"'MMA Rev-Exp Region 3'!AE$24","v":{"v":0,"d":"$0.00"}},{"$f":"'MMA Rev-Exp Region 3'!AF$24","v":{"v":0,"d":"$0.00"}},{"$f":"'MMA Rev-Exp Region 3'!AG$24","v":{"v":0,"d":"$0.00"}},{"$f":"'MMA Rev-Exp Region 3'!AH$24","v":{"v":0,"d":"$0.00"}},{"$f":"'MMA Rev-Exp Region 3'!AI$24","v":{"v":0,"d":"$0.00"}},{"$f":"'MMA Rev-Exp Region 3'!AJ$24","v":{"v":0,"d":"$0.00"}},{"v":0,"d":"$0.00"}]
["MMA",null,null,{"$f":"Jurat!I$1","v":0},{"$f":"Jurat!D$33","v":"00:00:00"},"Q3","2017-09-30","Region 3","Operating Expense","Medical Benefits Expense","Hospital Services","2.6","Subcapitated Hospital Services",{"$f":"'MMA Rev-Exp Region 3'!Z$25","v":{"v":0,"d":"$0.00"}},{"$f":"'MMA Rev-Exp Region 3'!AA$25","v":{"v":0,"d":"$0.00"}},{"$f":"'MMA Rev-Exp Region 3'!AB$25","v":{"v":0,"d":"$0.00"}},{"$f":"'MMA Rev-Exp Region 3'!AC$25","v":{"v":0,"d":"$0.00"}},{"$f":"'MMA Rev-Exp Region 3'!AD$25","v":{"v":0,"d":"$0.00"}},{"$f":"'MMA Rev-Exp Region 3'!AE$25","v":{"v":0,"d":"$0.00"}},{"$f":"'MMA Rev-Exp Region 3'!AF$25","v":{"v":0,"d":"$0.00"}},{"$f":"'MMA Rev-Exp Region 3'!AG$25","v":{"v":0,"d":"$0.00"}},{"$f":"'MMA Rev-Exp Region 3'!AH$25","v":{"v":0,"d":"$0.00"}},{"$f":"'MMA Rev-Exp Region 3'!AI$25","v":{"v":0,"d":"$0.00"}},{"$f":"'MMA Rev-Exp Region 3'!AJ$25","v":{"v":0,"d":"$0.00"}},{"v":0,"d":"$0.00"}]
["MMA",null,null,{"$f":"Jurat!I$1","v":0},{"$f":"Jurat!D$33","v":"00:00:00"},"Q3","2017-09-30","Region 3","Operating Expense","Medical Benefits Expense","Hospital Services","2.7","Hospital Settlements",{"$f":"'MMA Rev-Exp Region 3'!Z$26","v":{"v":0,"d":"$0.00"}},{"$f":"'MMA Rev-Exp Region 3'!AA$26","v":{"v":0,"d":"$0.00"}},{"$f":"'MMA Rev-Exp Region 3'!AB$26","v":{"v":0,"d":"$0.00"}},{"$f":"'MMA Rev-Exp Region 3'!AC$26","v":{"v":0,"d":"$0.00"}},{"$f":"'MMA Rev-Exp Region 3'!AD$26","v":{"v":0,"d":"$0.00"}},{"$f":"'MMA Rev-Exp Region 3'!AE$26","v":{"v":0,"d":"$0.00"}},{"$f":"'MMA Rev-Exp Region 3'!AF$26","v":{"v":0,"d":"$0.00"}},{"$f":"'MMA Rev-Exp Region 3'!AG$26","v":{"v":0,"d":"$0.00"}},{"$f":"'MMA Rev-Exp Region 3'!AH$26","v":{"v":0,"d":"$0.00"}},{"$f":"'MMA Rev-Exp Region 3'!AI$26","v":{"v":0,"d":"$0.00"}},{"$f":"'MMA Rev-Exp Region 3'!AJ$26","v":{"v":0,"d":"$0.00"}},{"v":0,"d":"$0.00"}]
["MMA",null,null,{"$f":"Jurat!I$1","v":0},{"$f":"Jurat!D$33","v":"00:00:00"},"Q3","2017-09-30","Region 3","Operating Expense","Medical Benefits Expense","Hospital Services","2.7.1","Transplant Services",{"$f":"'MMA Rev-Exp Region 3'!Z$27","v":{"v":0,"d":"$0.00"}},{"$f":"'MMA Rev-Exp Region 3'!AA$27","v":{"v":0,"d":"$0.00"}},{"$f":"'MMA Rev-Exp Region 3'!AB$27","v":{"v":0,"d":"$0.00"}},{"$f":"'MMA Rev-Exp Region 3'!AC$27","v":{"v":0,"d":"$0.00"}},{"$f":"'MMA Rev-Exp Region 3'!AD$27","v":{"v":0,"d":"$0.00"}},{"$f":"'MMA Rev-Exp Region 3'!AE$27","v":{"v":0,"d":"$0.00"}},{"$f":"'MMA Rev-Exp Region 3'!AF$27","v":{"v":0,"d":"$0.00"}},{"$f":"'MMA Rev-Exp Region 3'!AG$27","v":{"v":0,"d":"$0.00"}},{"$f":"'MMA Rev-Exp Region 3'!AH$27","v":{"v":0,"d":"$0.00"}},{"$f":"'MMA Rev-Exp Region 3'!AI$27","v":{"v":0,"d":"$0.00"}},{"$f":"'MMA Rev-Exp Region 3'!AJ$27","v":{"v":0,"d":"$0.00"}},{"v":0,"d":"$0.00"}]
["MMA",null,null,{"$f":"Jurat!I$1","v":0},{"$f":"Jurat!D$33","v":"00:00:00"},"Q3","2017-09-30","Region 3","Operating Expense","Medical Benefits Expense","Professional Services",3.1,"Primary Care FFS",{"$f":"'MMA Rev-Exp Region 3'!Z$29","v":{"v":0,"d":"$0.00"}},{"$f":"'MMA Rev-Exp Region 3'!AA$29","v":{"v":0,"d":"$0.00"}},{"$f":"'MMA Rev-Exp Region 3'!AB$29","v":{"v":0,"d":"$0.00"}},{"$f":"'MMA Rev-Exp Region 3'!AC$29","v":{"v":0,"d":"$0.00"}},{"$f":"'MMA Rev-Exp Region 3'!AD$29","v":{"v":0,"d":"$0.00"}},{"$f":"'MMA Rev-Exp Region 3'!AE$29","v":{"v":0,"d":"$0.00"}},{"$f":"'MMA Rev-Exp Region 3'!AF$29","v":{"v":0,"d":"$0.00"}},{"$f":"'MMA Rev-Exp Region 3'!AG$29","v":{"v":0,"d":"$0.00"}},{"$f":"'MMA Rev-Exp Region 3'!AH$29","v":{"v":0,"d":"$0.00"}},{"$f":"'MMA Rev-Exp Region 3'!AI$29","v":{"v":0,"d":"$0.00"}},{"$f":"'MMA Rev-Exp Region 3'!AJ$29","v":{"v":0,"d":"$0.00"}},{"v":0,"d":"$0.00"}]
["MMA",null,null,{"$f":"Jurat!I$1","v":0},{"$f":"Jurat!D$33","v":"00:00:00"},"Q3","2017-09-30","Region 3","Operating Expense","Medical Benefits Expense","Professional Services",3.2,"Specialty Care FFS",{"$f":"'MMA Rev-Exp Region 3'!Z$30","v":{"v":0,"d":"$0.00"}},{"$f":"'MMA Rev-Exp Region 3'!AA$30","v":{"v":0,"d":"$0.00"}},{"$f":"'MMA Rev-Exp Region 3'!AB$30","v":{"v":0,"d":"$0.00"}},{"$f":"'MMA Rev-Exp Region 3'!AC$30","v":{"v":0,"d":"$0.00"}},{"$f":"'MMA Rev-Exp Region 3'!AD$30","v":{"v":0,"d":"$0.00"}},{"$f":"'MMA Rev-Exp Region 3'!AE$30","v":{"v":0,"d":"$0.00"}},{"$f":"'MMA Rev-Exp Region 3'!AF$30","v":{"v":0,"d":"$0.00"}},{"$f":"'MMA Rev-Exp Region 3'!AG$30","v":{"v":0,"d":"$0.00"}},{"$f":"'MMA Rev-Exp Region 3'!AH$30","v":{"v":0,"d":"$0.00"}},{"$f":"'MMA Rev-Exp Region 3'!AI$30","v":{"v":0,"d":"$0.00"}},{"$f":"'MMA Rev-Exp Region 3'!AJ$30","v":{"v":0,"d":"$0.00"}},{"v":0,"d":"$0.00"}]
["MMA",null,null,{"$f":"Jurat!I$1","v":0},{"$f":"Jurat!D$33","v":"00:00:00"},"Q3","2017-09-30","Region 3","Operating Expense","Medical Benefits Expense","Professional Services",3.3,"Other Professional FFS",{"$f":"'MMA Rev-Exp Region 3'!Z$31","v":{"v":0,"d":"$0.00"}},{"$f":"'MMA Rev-Exp Region 3'!AA$31","v":{"v":0,"d":"$0.00"}},{"$f":"'MMA Rev-Exp Region 3'!AB$31","v":{"v":0,"d":"$0.00"}},{"$f":"'MMA Rev-Exp Region 3'!AC$31","v":{"v":0,"d":"$0.00"}},{"$f":"'MMA Rev-Exp Region 3'!AD$31","v":{"v":0,"d":"$0.00"}},{"$f":"'MMA Rev-Exp Region 3'!AE$31","v":{"v":0,"d":"$0.00"}},{"$f":"'MMA Rev-Exp Region 3'!AF$31","v":{"v":0,"d":"$0.00"}},{"$f":"'MMA Rev-Exp Region 3'!AG$31","v":{"v":0,"d":"$0.00"}},{"$f":"'MMA Rev-Exp Region 3'!AH$31","v":{"v":0,"d":"$0.00"}},{"$f":"'MMA Rev-Exp Region 3'!AI$31","v":{"v":0,"d":"$0.00"}},{"$f":"'MMA Rev-Exp Region 3'!AJ$31","v":{"v":0,"d":"$0.00"}},{"v":0,"d":"$0.00"}]
["MMA",null,null,{"$f":"Jurat!I$1","v":0},{"$f":"Jurat!D$33","v":"00:00:00"},"Q3","2017-09-30","Region 3","Operating Expense","Medical Benefits Expense","Professional Services","3.4","§ 1202 PCP Payments to providers",{"$f":"'MMA Rev-Exp Region 3'!Z$32","v":{"v":0,"d":"$0.00"}},{"$f":"'MMA Rev-Exp Region 3'!AA$32","v":{"v":0,"d":"$0.00"}},{"$f":"'MMA Rev-Exp Region 3'!AB$32","v":{"v":0,"d":"$0.00"}},{"$f":"'MMA Rev-Exp Region 3'!AC$32","v":{"v":0,"d":"$0.00"}},{"$f":"'MMA Rev-Exp Region 3'!AD$32","v":{"v":0,"d":"$0.00"}},{"$f":"'MMA Rev-Exp Region 3'!AE$32","v":{"v":0,"d":"$0.00"}},{"$f":"'MMA Rev-Exp Region 3'!AF$32","v":{"v":0,"d":"$0.00"}},{"$f":"'MMA Rev-Exp Region 3'!AG$32","v":{"v":0,"d":"$0.00"}},{"$f":"'MMA Rev-Exp Region 3'!AH$32","v":{"v":0,"d":"$0.00"}},{"$f":"'MMA Rev-Exp Region 3'!AI$32","v":{"v":0,"d":"$0.00"}},{"$f":"'MMA Rev-Exp Region 3'!AJ$32","v":{"v":0,"d":"$0.00"}},{"v":0,"d":"$0.00"}]
["MMA",null,null,{"$f":"Jurat!I$1","v":0},{"$f":"Jurat!D$33","v":"00:00:00"},"Q3","2017-09-30","Region 3","Operating Expense","Medical Benefits Expense","Professional Services","3.5","Subcapitated Professional Services",{"$f":"'MMA Rev-Exp Region 3'!Z$33","v":{"v":0,"d":"$0.00"}},{"$f":"'MMA Rev-Exp Region 3'!AA$33","v":{"v":0,"d":"$0.00"}},{"$f":"'MMA Rev-Exp Region 3'!AB$33","v":{"v":0,"d":"$0.00"}},{"$f":"'MMA Rev-Exp Region 3'!AC$33","v":{"v":0,"d":"$0.00"}},{"$f":"'MMA Rev-Exp Region 3'!AD$33","v":{"v":0,"d":"$0.00"}},{"$f":"'MMA Rev-Exp Region 3'!AE$33","v":{"v":0,"d":"$0.00"}},{"$f":"'MMA Rev-Exp Region 3'!AF$33","v":{"v":0,"d":"$0.00"}},{"$f":"'MMA Rev-Exp Region 3'!AG$33","v":{"v":0,"d":"$0.00"}},{"$f":"'MMA Rev-Exp Region 3'!AH$33","v":{"v":0,"d":"$0.00"}},{"$f":"'MMA Rev-Exp Region 3'!AI$33","v":{"v":0,"d":"$0.00"}},{"$f":"'MMA Rev-Exp Region 3'!AJ$33","v":{"v":0,"d":"$0.00"}},{"v":0,"d":"$0.00"}]
["MMA",null,null,{"$f":"Jurat!I$1","v":0},{"$f":"Jurat!D$33","v":"00:00:00"},"Q3","2017-09-30","Region 3","Operating Expense","Medical Benefits Expense","Professional Services","3.6","Ending IBNP for Professional Services",{"$f":"'MMA Rev-Exp Region 3'!Z$34","v":{"v":0,"d":"$0.00"}},{"$f":"'MMA Rev-Exp Region 3'!AA$34","v":{"v":0,"d":"$0.00"}},{"$f":"'MMA Rev-Exp Region 3'!AB$34","v":{"v":0,"d":"$0.00"}},{"$f":"'MMA Rev-Exp Region 3'!AC$34","v":{"v":0,"d":"$0.00"}},{"$f":"'MMA Rev-Exp Region 3'!AD$34","v":{"v":0,"d":"$0.00"}},{"$f":"'MMA Rev-Exp Region 3'!AE$34","v":{"v":0,"d":"$0.00"}},{"$f":"'MMA Rev-Exp Region 3'!AF$34","v":{"v":0,"d":"$0.00"}},{"$f":"'MMA Rev-Exp Region 3'!AG$34","v":{"v":0,"d":"$0.00"}},{"$f":"'MMA Rev-Exp Region 3'!AH$34","v":{"v":0,"d":"$0.00"}},{"$f":"'MMA Rev-Exp Region 3'!AI$34","v":{"v":0,"d":"$0.00"}},{"$f":"'MMA Rev-Exp Region 3'!AJ$34","v":{"v":0,"d":"$0.00"}},{"v":0,"d":"$0.00"}]
["MMA",null,null,{"$f":"Jurat!I$1","v":0},{"$f":"Jurat!D$33","v":"00:00:00"},"Q3","2017-09-30","Region 3","Operating Expense","Medical Benefits Expense","Professional Services","3.7","Professional Services Settlements",{"$f":"'MMA Rev-Exp Region 3'!Z$35","v":{"v":0,"d":"$0.00"}},{"$f":"'MMA Rev-Exp Region 3'!AA$35","v":{"v":0,"d":"$0.00"}},{"$f":"'MMA Rev-Exp Region 3'!AB$35","v":{"v":0,"d":"$0.00"}},{"$f":"'MMA Rev-Exp Region 3'!AC$35","v":{"v":0,"d":"$0.00"}},{"$f":"'MMA Rev-Exp Region 3'!AD$35","v":{"v":0,"d":"$0.00"}},{"$f":"'MMA Rev-Exp Region 3'!AE$35","v":{"v":0,"d":"$0.00"}},{"$f":"'MMA Rev-Exp Region 3'!AF$35","v":{"v":0,"d":"$0.00"}},{"$f":"'MMA Rev-Exp Region 3'!AG$35","v":{"v":0,"d":"$0.00"}},{"$f":"'MMA Rev-Exp Region 3'!AH$35","v":{"v":0,"d":"$0.00"}},{"$f":"'MMA Rev-Exp Region 3'!AI$35","v":{"v":0,"d":"$0.00"}},{"$f":"'MMA Rev-Exp Region 3'!AJ$35","v":{"v":0,"d":"$0.00"}},{"v":0,"d":"$0.00"}]
["MMA",null,null,{"$f":"Jurat!I$1","v":0},{"$f":"Jurat!D$33","v":"00:00:00"},"Q3","2017-09-30","Region 3","Operating Expense","Medical Benefits Expense","Maternity Services","4.1.1","Maternity Services",{"$f":"'MMA Rev-Exp Region 3'!Z$37","v":{"v":0,"d":"$0.00"}},{"$f":"'MMA Rev-Exp Region 3'!AA$37","v":{"v":0,"d":"$0.00"}},{"$f":"'MMA Rev-Exp Region 3'!AB$37","v":{"v":0,"d":"$0.00"}},{"$f":"'MMA Rev-Exp Region 3'!AC$37","v":{"v":0,"d":"$0.00"}},{"$f":"'MMA Rev-Exp Region 3'!AD$37","v":{"v":0,"d":"$0.00"}},{"$f":"'MMA Rev-Exp Region 3'!AE$37","v":{"v":0,"d":"$0.00"}},{"$f":"'MMA Rev-Exp Region 3'!AF$37","v":{"v":0,"d":"$0.00"}},{"$f":"'MMA Rev-Exp Region 3'!AG$37","v":{"v":0,"d":"$0.00"}},{"$f":"'MMA Rev-Exp Region 3'!AH$37","v":{"v":0,"d":"$0.00"}},{"$f":"'MMA Rev-Exp Region 3'!AI$37","v":{"v":0,"d":"$0.00"}},{"$f":"'MMA Rev-Exp Region 3'!AJ$37","v":{"v":0,"d":"$0.00"}},{"v":0,"d":"$0.00"}]
["MMA",null,null,{"$f":"Jurat!I$1","v":0},{"$f":"Jurat!D$33","v":"00:00:00"},"Q3","2017-09-30","Region 3","Operating Expense","Medical Benefits Expense","Maternity Services","4.2.1","Ending IBNP for Maternity Services",{"$f":"'MMA Rev-Exp Region 3'!Z$38","v":{"v":0,"d":"$0.00"}},{"$f":"'MMA Rev-Exp Region 3'!AA$38","v":{"v":0,"d":"$0.00"}},{"$f":"'MMA Rev-Exp Region 3'!AB$38","v":{"v":0,"d":"$0.00"}},{"$f":"'MMA Rev-Exp Region 3'!AC$38","v":{"v":0,"d":"$0.00"}},{"$f":"'MMA Rev-Exp Region 3'!AD$38","v":{"v":0,"d":"$0.00"}},{"$f":"'MMA Rev-Exp Region 3'!AE$38","v":{"v":0,"d":"$0.00"}},{"$f":"'MMA Rev-Exp Region 3'!AF$38","v":{"v":0,"d":"$0.00"}},{"$f":"'MMA Rev-Exp Region 3'!AG$38","v":{"v":0,"d":"$0.00"}},{"$f":"'MMA Rev-Exp Region 3'!AH$38","v":{"v":0,"d":"$0.00"}},{"$f":"'MMA Rev-Exp Region 3'!AI$38","v":{"v":0,"d":"$0.00"}},{"$f":"'MMA Rev-Exp Region 3'!AJ$38","v":{"v":0,"d":"$0.00"}},{"v":0,"d":"$0.00"}]
["MMA",null,null,{"$f":"Jurat!I$1","v":0},{"$f":"Jurat!D$33","v":"00:00:00"},"Q3","2017-09-30","Region 3","Operating Expense","Medical Benefits Expense","Maternity Services","4.3.1","Maternity Settlements",{"$f":"'MMA Rev-Exp Region 3'!Z$39","v":{"v":0,"d":"$0.00"}},{"$f":"'MMA Rev-Exp Region 3'!AA$39","v":{"v":0,"d":"$0.00"}},{"$f":"'MMA Rev-Exp Region 3'!AB$39","v":{"v":0,"d":"$0.00"}},{"$f":"'MMA Rev-Exp Region 3'!AC$39","v":{"v":0,"d":"$0.00"}},{"$f":"'MMA Rev-Exp Region 3'!AD$39","v":{"v":0,"d":"$0.00"}},{"$f":"'MMA Rev-Exp Region 3'!AE$39","v":{"v":0,"d":"$0.00"}},{"$f":"'MMA Rev-Exp Region 3'!AF$39","v":{"v":0,"d":"$0.00"}},{"$f":"'MMA Rev-Exp Region 3'!AG$39","v":{"v":0,"d":"$0.00"}},{"$f":"'MMA Rev-Exp Region 3'!AH$39","v":{"v":0,"d":"$0.00"}},{"$f":"'MMA Rev-Exp Region 3'!AI$39","v":{"v":0,"d":"$0.00"}},{"$f":"'MMA Rev-Exp Region 3'!AJ$39","v":{"v":0,"d":"$0.00"}},{"v":0,"d":"$0.00"}]
["MMA",null,null,{"$f":"Jurat!I$1","v":0},{"$f":"Jurat!D$33","v":"00:00:00"},"Q3","2017-09-30","Region 3","Operating Expense","Medical Benefits Expense","Mental Health Services",5.1,"Mental Health & Substance Abuse FFS",{"$f":"'MMA Rev-Exp Region 3'!Z$41","v":{"v":0,"d":"$0.00"}},{"$f":"'MMA Rev-Exp Region 3'!AA$41","v":{"v":0,"d":"$0.00"}},{"$f":"'MMA Rev-Exp Region 3'!AB$41","v":{"v":0,"d":"$0.00"}},{"$f":"'MMA Rev-Exp Region 3'!AC$41","v":{"v":0,"d":"$0.00"}},{"$f":"'MMA Rev-Exp Region 3'!AD$41","v":{"v":0,"d":"$0.00"}},{"$f":"'MMA Rev-Exp Region 3'!AE$41","v":{"v":0,"d":"$0.00"}},{"$f":"'MMA Rev-Exp Region 3'!AF$41","v":{"v":0,"d":"$0.00"}},{"$f":"'MMA Rev-Exp Region 3'!AG$41","v":{"v":0,"d":"$0.00"}},{"$f":"'MMA Rev-Exp Region 3'!AH$41","v":{"v":0,"d":"$0.00"}},{"$f":"'MMA Rev-Exp Region 3'!AI$41","v":{"v":0,"d":"$0.00"}},{"$f":"'MMA Rev-Exp Region 3'!AJ$41","v":{"v":0,"d":"$0.00"}},{"v":0,"d":"$0.00"}]
["MMA",null,null,{"$f":"Jurat!I$1","v":0},{"$f":"Jurat!D$33","v":"00:00:00"},"Q3","2017-09-30","Region 3","Operating Expense","Medical Benefits Expense","Mental Health Services",5.2,"Mental Health & Substance Abuse Subcapitation",{"$f":"'MMA Rev-Exp Region 3'!Z$42","v":{"v":0,"d":"$0.00"}},{"$f":"'MMA Rev-Exp Region 3'!AA$42","v":{"v":0,"d":"$0.00"}},{"$f":"'MMA Rev-Exp Region 3'!AB$42","v":{"v":0,"d":"$0.00"}},{"$f":"'MMA Rev-Exp Region 3'!AC$42","v":{"v":0,"d":"$0.00"}},{"$f":"'MMA Rev-Exp Region 3'!AD$42","v":{"v":0,"d":"$0.00"}},{"$f":"'MMA Rev-Exp Region 3'!AE$42","v":{"v":0,"d":"$0.00"}},{"$f":"'MMA Rev-Exp Region 3'!AF$42","v":{"v":0,"d":"$0.00"}},{"$f":"'MMA Rev-Exp Region 3'!AG$42","v":{"v":0,"d":"$0.00"}},{"$f":"'MMA Rev-Exp Region 3'!AH$42","v":{"v":0,"d":"$0.00"}},{"$f":"'MMA Rev-Exp Region 3'!AI$42","v":{"v":0,"d":"$0.00"}},{"$f":"'MMA Rev-Exp Region 3'!AJ$42","v":{"v":0,"d":"$0.00"}},{"v":0,"d":"$0.00"}]
["MMA",null,null,{"$f":"Jurat!I$1","v":0},{"$f":"Jurat!D$33","v":"00:00:00"},"Q3","2017-09-30","Region 3","Operating Expense","Medical Benefits Expense","Mental Health Services",5.3,"Ending IBNP for Mental Health & Substance Abuse",{"$f":"'MMA Rev-Exp Region 3'!Z$43","v":{"v":0,"d":"$0.00"}},{"$f":"'MMA Rev-Exp Region 3'!AA$43","v":{"v":0,"d":"$0.00"}},{"$f":"'MMA Rev-Exp Region 3'!AB$43","v":{"v":0,"d":"$0.00"}},{"$f":"'MMA Rev-Exp Region 3'!AC$43","v":{"v":0,"d":"$0.00"}},{"$f":"'MMA Rev-Exp Region 3'!AD$43","v":{"v":0,"d":"$0.00"}},{"$f":"'MMA Rev-Exp Region 3'!AE$43","v":{"v":0,"d":"$0.00"}},{"$f":"'MMA Rev-Exp Region 3'!AF$43","v":{"v":0,"d":"$0.00"}},{"$f":"'MMA Rev-Exp Region 3'!AG$43","v":{"v":0,"d":"$0.00"}},{"$f":"'MMA Rev-Exp Region 3'!AH$43","v":{"v":0,"d":"$0.00"}},{"$f":"'MMA Rev-Exp Region 3'!AI$43","v":{"v":0,"d":"$0.00"}},{"$f":"'MMA Rev-Exp Region 3'!AJ$43","v":{"v":0,"d":"$0.00"}},{"v":0,"d":"$0.00"}]
["MMA",null,null,{"$f":"Jurat!I$1","v":0},{"$f":"Jurat!D$33","v":"00:00:00"},"Q3","2017-09-30","Region 3","Operating Expense","Medical Benefits Expense","Mental Health Services","5.4","Mental Health Settlements",{"$f":"'MMA Rev-Exp Region 3'!Z$44","v":{"v":0,"d":"$0.00"}},{"$f":"'MMA Rev-Exp Region 3'!AA$44","v":{"v":0,"d":"$0.00"}},{"$f":"'MMA Rev-Exp Region 3'!AB$44","v":{"v":0,"d":"$0.00"}},{"$f":"'MMA Rev-Exp Region 3'!AC$44","v":{"v":0,"d":"$0.00"}},{"$f":"'MMA Rev-Exp Region 3'!AD$44","v":{"v":0,"d":"$0.00"}},{"$f":"'MMA Rev-Exp Region 3'!AE$44","v":{"v":0,"d":"$0.00"}},{"$f":"'MMA Rev-Exp Region 3'!AF$44","v":{"v":0,"d":"$0.00"}},{"$f":"'MMA Rev-Exp Region 3'!AG$44","v":{"v":0,"d":"$0.00"}},{"$f":"'MMA Rev-Exp Region 3'!AH$44","v":{"v":0,"d":"$0.00"}},{"$f":"'MMA Rev-Exp Region 3'!AI$44","v":{"v":0,"d":"$0.00"}},{"$f":"'MMA Rev-Exp Region 3'!AJ$44","v":{"v":0,"d":"$0.00"}},{"v":0,"d":"$0.00"}]
["MMA",null,null,{"$f":"Jurat!I$1","v":0},{"$f":"Jurat!D$33","v":"00:00:00"},"Q3","2017-09-30","Region 3","Operating Expense","Medical Benefits Expense","Dental Services",6.1,"Dental FFS",{"$f":"'MMA Rev-Exp Region 3'!Z$46","v":{"v":0,"d":"$0.00"}},{"$f":"'MMA Rev-Exp Region 3'!AA$46","v":{"v":0,"d":"$0.00"}},{"$f":"'MMA Rev-Exp Region 3'!AB$46","v":{"v":0,"d":"$0.00"}},{"$f":"'MMA Rev-Exp Region 3'!AC$46","v":{"v":0,"d":"$0.00"}},{"$f":"'MMA Rev-Exp Region 3'!AD$46","v":{"v":0,"d":"$0.00"}},{"$f":"'MMA Rev-Exp Region 3'!AE$46","v":{"v":0,"d":"$0.00"}},{"$f":"'MMA Rev-Exp Region 3'!AF$46","v":{"v":0,"d":"$0.00"}},{"$f":"'MMA Rev-Exp Region 3'!AG$46","v":{"v":0,"d":"$0.00"}},{"$f":"'MMA Rev-Exp Region 3'!AH$46","v":{"v":0,"d":"$0.00"}},{"$f":"'MMA Rev-Exp Region 3'!AI$46","v":{"v":0,"d":"$0.00"}},{"$f":"'MMA Rev-Exp Region 3'!AJ$46","v":{"v":0,"d":"$0.00"}},{"v":0,"d":"$0.00"}]
["MMA",null,null,{"$f":"Jurat!I$1","v":0},{"$f":"Jurat!D$33","v":"00:00:00"},"Q3","2017-09-30","Region 3","Operating Expense","Medical Benefits Expense","Dental Services",6.2,"Dental Subcapitation",{"$f":"'MMA Rev-Exp Region 3'!Z$47","v":{"v":0,"d":"$0.00"}},{"$f":"'MMA Rev-Exp Region 3'!AA$47","v":{"v":0,"d":"$0.00"}},{"$f":"'MMA Rev-Exp Region 3'!AB$47","v":{"v":0,"d":"$0.00"}},{"$f":"'MMA Rev-Exp Region 3'!AC$47","v":{"v":0,"d":"$0.00"}},{"$f":"'MMA Rev-Exp Region 3'!AD$47","v":{"v":0,"d":"$0.00"}},{"$f":"'MMA Rev-Exp Region 3'!AE$47","v":{"v":0,"d":"$0.00"}},{"$f":"'MMA Rev-Exp Region 3'!AF$47","v":{"v":0,"d":"$0.00"}},{"$f":"'MMA Rev-Exp Region 3'!AG$47","v":{"v":0,"d":"$0.00"}},{"$f":"'MMA Rev-Exp Region 3'!AH$47","v":{"v":0,"d":"$0.00"}},{"$f":"'MMA Rev-Exp Region 3'!AI$47","v":{"v":0,"d":"$0.00"}},{"$f":"'MMA Rev-Exp Region 3'!AJ$47","v":{"v":0,"d":"$0.00"}},{"v":0,"d":"$0.00"}]
["MMA",null,null,{"$f":"Jurat!I$1","v":0},{"$f":"Jurat!D$33","v":"00:00:00"},"Q3","2017-09-30","Region 3","Operating Expense","Medical Benefits Expense","Dental Services",6.3,"Ending IBNP for Dental Services",{"$f":"'MMA Rev-Exp Region 3'!Z$48","v":{"v":0,"d":"$0.00"}},{"$f":"'MMA Rev-Exp Region 3'!AA$48","v":{"v":0,"d":"$0.00"}},{"$f":"'MMA Rev-Exp Region 3'!AB$48","v":{"v":0,"d":"$0.00"}},{"$f":"'MMA Rev-Exp Region 3'!AC$48","v":{"v":0,"d":"$0.00"}},{"$f":"'MMA Rev-Exp Region 3'!AD$48","v":{"v":0,"d":"$0.00"}},{"$f":"'MMA Rev-Exp Region 3'!AE$48","v":{"v":0,"d":"$0.00"}},{"$f":"'MMA Rev-Exp Region 3'!AF$48","v":{"v":0,"d":"$0.00"}},{"$f":"'MMA Rev-Exp Region 3'!AG$48","v":{"v":0,"d":"$0.00"}},{"$f":"'MMA Rev-Exp Region 3'!AH$48","v":{"v":0,"d":"$0.00"}},{"$f":"'MMA Rev-Exp Region 3'!AI$48","v":{"v":0,"d":"$0.00"}},{"$f":"'MMA Rev-Exp Region 3'!AJ$48","v":{"v":0,"d":"$0.00"}},{"v":0,"d":"$0.00"}]
["MMA",null,null,{"$f":"Jurat!I$1","v":0},{"$f":"Jurat!D$33","v":"00:00:00"},"Q3","2017-09-30","Region 3","Operating Expense","Medical Benefits Expense","Dental Services","6.4","Dental Settlements",{"$f":"'MMA Rev-Exp Region 3'!Z$49","v":{"v":0,"d":"$0.00"}},{"$f":"'MMA Rev-Exp Region 3'!AA$49","v":{"v":0,"d":"$0.00"}},{"$f":"'MMA Rev-Exp Region 3'!AB$49","v":{"v":0,"d":"$0.00"}},{"$f":"'MMA Rev-Exp Region 3'!AC$49","v":{"v":0,"d":"$0.00"}},{"$f":"'MMA Rev-Exp Region 3'!AD$49","v":{"v":0,"d":"$0.00"}},{"$f":"'MMA Rev-Exp Region 3'!AE$49","v":{"v":0,"d":"$0.00"}},{"$f":"'MMA Rev-Exp Region 3'!AF$49","v":{"v":0,"d":"$0.00"}},{"$f":"'MMA Rev-Exp Region 3'!AG$49","v":{"v":0,"d":"$0.00"}},{"$f":"'MMA Rev-Exp Region 3'!AH$49","v":{"v":0,"d":"$0.00"}},{"$f":"'MMA Rev-Exp Region 3'!AI$49","v":{"v":0,"d":"$0.00"}},{"$f":"'MMA Rev-Exp Region 3'!AJ$49","v":{"v":0,"d":"$0.00"}},{"v":0,"d":"$0.00"}]
["MMA",null,null,{"$f":"Jurat!I$1","v":0},{"$f":"Jurat!D$33","v":"00:00:00"},"Q3","2017-09-30","Region 3","Operating Expense","Medical Benefits Expense","Transportation Services",7.2,"Transportation Subcapitation",{"$f":"'MMA Rev-Exp Region 3'!Z$52","v":{"v":0,"d":"$0.00"}},{"$f":"'MMA Rev-Exp Region 3'!AA$52","v":{"v":0,"d":"$0.00"}},{"$f":"'MMA Rev-Exp Region 3'!AB$52","v":{"v":0,"d":"$0.00"}},{"$f":"'MMA Rev-Exp Region 3'!AC$52","v":{"v":0,"d":"$0.00"}},{"$f":"'MMA Rev-Exp Region 3'!AD$52","v":{"v":0,"d":"$0.00"}},{"$f":"'MMA Rev-Exp Region 3'!AE$52","v":{"v":0,"d":"$0.00"}},{"$f":"'MMA Rev-Exp Region 3'!AF$52","v":{"v":0,"d":"$0.00"}},{"$f":"'MMA Rev-Exp Region 3'!AG$52","v":{"v":0,"d":"$0.00"}},{"$f":"'MMA Rev-Exp Region 3'!AH$52","v":{"v":0,"d":"$0.00"}},{"$f":"'MMA Rev-Exp Region 3'!AI$52","v":{"v":0,"d":"$0.00"}},{"$f":"'MMA Rev-Exp Region 3'!AJ$52","v":{"v":0,"d":"$0.00"}},{"v":0,"d":"$0.00"}]
["MMA",null,null,{"$f":"Jurat!I$1","v":0},{"$f":"Jurat!D$33","v":"00:00:00"},"Q3","2017-09-30","Region 3","Operating Expense","Medical Benefits Expense","Transportation Services","7.4","Transportation Settlements",{"$f":"'MMA Rev-Exp Region 3'!Z$54","v":{"v":0,"d":"$0.00"}},{"$f":"'MMA Rev-Exp Region 3'!AA$54","v":{"v":0,"d":"$0.00"}},{"$f":"'MMA Rev-Exp Region 3'!AB$54","v":{"v":0,"d":"$0.00"}},{"$f":"'MMA Rev-Exp Region 3'!AC$54","v":{"v":0,"d":"$0.00"}},{"$f":"'MMA Rev-Exp Region 3'!AD$54","v":{"v":0,"d":"$0.00"}},{"$f":"'MMA Rev-Exp Region 3'!AE$54","v":{"v":0,"d":"$0.00"}},{"$f":"'MMA Rev-Exp Region 3'!AF$54","v":{"v":0,"d":"$0.00"}},{"$f":"'MMA Rev-Exp Region 3'!AG$54","v":{"v":0,"d":"$0.00"}},{"$f":"'MMA Rev-Exp Region 3'!AH$54","v":{"v":0,"d":"$0.00"}},{"$f":"'MMA Rev-Exp Region 3'!AI$54","v":{"v":0,"d":"$0.00"}},{"$f":"'MMA Rev-Exp Region 3'!AJ$54","v":{"v":0,"d":"$0.00"}},{"v":0,"d":"$0.00"}]
["MMA",null,null,{"$f":"Jurat!I$1","v":0},{"$f":"Jurat!D$33","v":"00:00:00"},"Q3","2017-09-30","Region 3","Operating Expense","Medical Benefits Expense","Pharmacy Services","8.3","Ending IBNP for Prescription Drugs",{"$f":"'MMA Rev-Exp Region 3'!Z$58","v":{"v":0,"d":"$0.00"}},{"$f":"'MMA Rev-Exp Region 3'!AA$58","v":{"v":0,"d":"$0.00"}},{"$f":"'MMA Rev-Exp Region 3'!AB$58","v":{"v":0,"d":"$0.00"}},{"$f":"'MMA Rev-Exp Region 3'!AC$58","v":{"v":0,"d":"$0.00"}},{"$f":"'MMA Rev-Exp Region 3'!AD$58","v":{"v":0,"d":"$0.00"}},{"$f":"'MMA Rev-Exp Region 3'!AE$58","v":{"v":0,"d":"$0.00"}},{"$f":"'MMA Rev-Exp Region 3'!AF$58","v":{"v":0,"d":"$0.00"}},{"$f":"'MMA Rev-Exp Region 3'!AG$58","v":{"v":0,"d":"$0.00"}},{"$f":"'MMA Rev-Exp Region 3'!AH$58","v":{"v":0,"d":"$0.00"}},{"$f":"'MMA Rev-Exp Region 3'!AI$58","v":{"v":0,"d":"$0.00"}},{"$f":"'MMA Rev-Exp Region 3'!AJ$58","v":{"v":0,"d":"$0.00"}},{"v":0,"d":"$0.00"}]
["MMA",null,null,{"$f":"Jurat!I$1","v":0},{"$f":"Jurat!D$33","v":"00:00:00"},"Q3","2017-09-30","Region 3","Operating Expense","Medical Benefits Expense","Pharmacy Services","8.7","Prescription Drug Settlements",{"$f":"'MMA Rev-Exp Region 3'!Z$62","v":{"v":0,"d":"$0.00"}},{"$f":"'MMA Rev-Exp Region 3'!AA$62","v":{"v":0,"d":"$0.00"}},{"$f":"'MMA Rev-Exp Region 3'!AB$62","v":{"v":0,"d":"$0.00"}},{"$f":"'MMA Rev-Exp Region 3'!AC$62","v":{"v":0,"d":"$0.00"}},{"$f":"'MMA Rev-Exp Region 3'!AD$62","v":{"v":0,"d":"$0.00"}},{"$f":"'MMA Rev-Exp Region 3'!AE$62","v":{"v":0,"d":"$0.00"}},{"$f":"'MMA Rev-Exp Region 3'!AF$62","v":{"v":0,"d":"$0.00"}},{"$f":"'MMA Rev-Exp Region 3'!AG$62","v":{"v":0,"d":"$0.00"}},{"$f":"'MMA Rev-Exp Region 3'!AH$62","v":{"v":0,"d":"$0.00"}},{"$f":"'MMA Rev-Exp Region 3'!AI$62","v":{"v":0,"d":"$0.00"}},{"$f":"'MMA Rev-Exp Region 3'!AJ$62","v":{"v":0,"d":"$0.00"}},{"v":0,"d":"$0.00"}]
["MMA",null,null,{"$f":"Jurat!I$1","v":0},{"$f":"Jurat!D$33","v":"00:00:00"},"Q3","2017-09-30","Region 3","Operating Expense","Medical Benefits Expense","Other MMA Services","9.3","DME FFS",{"$f":"'MMA Rev-Exp Region 3'!Z$66","v":{"v":0,"d":"$0.00"}},{"$f":"'MMA Rev-Exp Region 3'!AA$66","v":{"v":0,"d":"$0.00"}},{"$f":"'MMA Rev-Exp Region 3'!AB$66","v":{"v":0,"d":"$0.00"}},{"$f":"'MMA Rev-Exp Region 3'!AC$66","v":{"v":0,"d":"$0.00"}},{"$f":"'MMA Rev-Exp Region 3'!AD$66","v":{"v":0,"d":"$0.00"}},{"$f":"'MMA Rev-Exp Region 3'!AE$66","v":{"v":0,"d":"$0.00"}},{"$f":"'MMA Rev-Exp Region 3'!AF$66","v":{"v":0,"d":"$0.00"}},{"$f":"'MMA Rev-Exp Region 3'!AG$66","v":{"v":0,"d":"$0.00"}},{"$f":"'MMA Rev-Exp Region 3'!AH$66","v":{"v":0,"d":"$0.00"}},{"$f":"'MMA Rev-Exp Region 3'!AI$66","v":{"v":0,"d":"$0.00"}},{"$f":"'MMA Rev-Exp Region 3'!AJ$66","v":{"v":0,"d":"$0.00"}},{"v":0,"d":"$0.00"}]
["MMA",null,null,{"$f":"Jurat!I$1","v":0},{"$f":"Jurat!D$33","v":"00:00:00"},"Q3","2017-09-30","Region 3","Operating Expense","Medical Benefits Expense","Other MMA Services","9.6","Ending IBNP for Other Services",{"$f":"'MMA Rev-Exp Region 3'!Z$69","v":{"v":0,"d":"$0.00"}},{"$f":"'MMA Rev-Exp Region 3'!AA$69","v":{"v":0,"d":"$0.00"}},{"$f":"'MMA Rev-Exp Region 3'!AB$69","v":{"v":0,"d":"$0.00"}},{"$f":"'MMA Rev-Exp Region 3'!AC$69","v":{"v":0,"d":"$0.00"}},{"$f":"'MMA Rev-Exp Region 3'!AD$69","v":{"v":0,"d":"$0.00"}},{"$f":"'MMA Rev-Exp Region 3'!AE$69","v":{"v":0,"d":"$0.00"}},{"$f":"'MMA Rev-Exp Region 3'!AF$69","v":{"v":0,"d":"$0.00"}},{"$f":"'MMA Rev-Exp Region 3'!AG$69","v":{"v":0,"d":"$0.00"}},{"$f":"'MMA Rev-Exp Region 3'!AH$69","v":{"v":0,"d":"$0.00"}},{"$f":"'MMA Rev-Exp Region 3'!AI$69","v":{"v":0,"d":"$0.00"}},{"$f":"'MMA Rev-Exp Region 3'!AJ$69","v":{"v":0,"d":"$0.00"}},{"v":0,"d":"$0.00"}]
["MMA",null,null,{"$f":"Jurat!I$1","v":0},{"$f":"Jurat!D$33","v":"00:00:00"},"Q3","2017-09-30","Region 3","Operating Expense","Medical Benefits Expense","Other MMA Services","9.7","Other Services Settlements",{"$f":"'MMA Rev-Exp Region 3'!Z$70","v":{"v":0,"d":"$0.00"}},{"$f":"'MMA Rev-Exp Region 3'!AA$70","v":{"v":0,"d":"$0.00"}},{"$f":"'MMA Rev-Exp Region 3'!AB$70","v":{"v":0,"d":"$0.00"}},{"$f":"'MMA Rev-Exp Region 3'!AC$70","v":{"v":0,"d":"$0.00"}},{"$f":"'MMA Rev-Exp Region 3'!AD$70","v":{"v":0,"d":"$0.00"}},{"$f":"'MMA Rev-Exp Region 3'!AE$70","v":{"v":0,"d":"$0.00"}},{"$f":"'MMA Rev-Exp Region 3'!AF$70","v":{"v":0,"d":"$0.00"}},{"$f":"'MMA Rev-Exp Region 3'!AG$70","v":{"v":0,"d":"$0.00"}},{"$f":"'MMA Rev-Exp Region 3'!AH$70","v":{"v":0,"d":"$0.00"}},{"$f":"'MMA Rev-Exp Region 3'!AI$70","v":{"v":0,"d":"$0.00"}},{"$f":"'MMA Rev-Exp Region 3'!AJ$70","v":{"v":0,"d":"$0.00"}},{"v":0,"d":"$0.00"}]
["MMA",null,null,{"$f":"Jurat!I$1","v":0},{"$f":"Jurat!D$33","v":"00:00:00"},"Q3","2017-09-30","Region 3","Operating Expense","Medical Benefits Expense","Expanded Benefits","10.3","Ending IBNP for Expanded Benefits",{"$f":"'MMA Rev-Exp Region 3'!Z$74","v":{"v":0,"d":"$0.00"}},{"$f":"'MMA Rev-Exp Region 3'!AA$74","v":{"v":0,"d":"$0.00"}},{"$f":"'MMA Rev-Exp Region 3'!AB$74","v":{"v":0,"d":"$0.00"}},{"$f":"'MMA Rev-Exp Region 3'!AC$74","v":{"v":0,"d":"$0.00"}},{"$f":"'MMA Rev-Exp Region 3'!AD$74","v":{"v":0,"d":"$0.00"}},{"$f":"'MMA Rev-Exp Region 3'!AE$74","v":{"v":0,"d":"$0.00"}},{"$f":"'MMA Rev-Exp Region 3'!AF$74","v":{"v":0,"d":"$0.00"}},{"$f":"'MMA Rev-Exp Region 3'!AG$74","v":{"v":0,"d":"$0.00"}},{"$f":"'MMA Rev-Exp Region 3'!AH$74","v":{"v":0,"d":"$0.00"}},{"$f":"'MMA Rev-Exp Region 3'!AI$74","v":{"v":0,"d":"$0.00"}},{"$f":"'MMA Rev-Exp Region 3'!AJ$74","v":{"v":0,"d":"$0.00"}},{"v":0,"d":"$0.00"}]
["MMA",null,null,{"$f":"Jurat!I$1","v":0},{"$f":"Jurat!D$33","v":"00:00:00"},"Q3","2017-09-30","Region 3","Operating Expense","Medical Benefits Expense","Other Medical","11.8","Reinsurance Premiums",{"$f":"'MMA Rev-Exp Region 3'!Z$84","v":{"v":0,"d":"$0.00"}},{"$f":"'MMA Rev-Exp Region 3'!AA$84","v":{"v":0,"d":"$0.00"}},{"$f":"'MMA Rev-Exp Region 3'!AB$84","v":{"v":0,"d":"$0.00"}},{"$f":"'MMA Rev-Exp Region 3'!AC$84","v":{"v":0,"d":"$0.00"}},{"$f":"'MMA Rev-Exp Region 3'!AD$84","v":{"v":0,"d":"$0.00"}},{"$f":"'MMA Rev-Exp Region 3'!AE$84","v":{"v":0,"d":"$0.00"}},{"$f":"'MMA Rev-Exp Region 3'!AF$84","v":{"v":0,"d":"$0.00"}},{"$f":"'MMA Rev-Exp Region 3'!AG$84","v":{"v":0,"d":"$0.00"}},{"$f":"'MMA Rev-Exp Region 3'!AH$84","v":{"v":0,"d":"$0.00"}},{"$f":"'MMA Rev-Exp Region 3'!AI$84","v":{"v":0,"d":"$0.00"}},{"$f":"'MMA Rev-Exp Region 3'!AJ$84","v":{"v":0,"d":"$0.00"}},{"v":0,"d":"$0.00"}]
["MMA",null,null,{"$f":"Jurat!I$1","v":0},{"$f":"Jurat!D$33","v":"00:00:00"},"Q3","2017-09-30","Region 3","Operating Expense","Administrative Expense","Administrative","12.1","Salaries & Benefits",{"$f":"'MMA Rev-Exp Region 3'!Z$90","v":{"v":0,"d":"$0.00"}},{"v":0,"d":"$0.00"},{"v":0,"d":"$0.00"},{"v":0,"d":"$0.00"},{"v":0,"d":"$0.00"},{"v":0,"d":"$0.00"},{"v":0,"d":"$0.00"},{"v":0,"d":"$0.00"},{"v":0,"d":"$0.00"},{"v":0,"d":"$0.00"},{"v":0,"d":"$0.00"},{"v":0,"d":"$0.00"}]
["MMA",null,null,{"$f":"Jurat!I$1","v":0},{"$f":"Jurat!D$33","v":"00:00:00"},"Q3","2017-09-30","Region 3","Operating Expense","Administrative Expense","Administrative","12.4","Marketing Expenses",{"$f":"'MMA Rev-Exp Region 3'!Z$93","v":{"v":0,"d":"$0.00"}},{"v":0,"d":"$0.00"},{"v":0,"d":"$0.00"},{"v":0,"d":"$0.00"},{"v":0,"d":"$0.00"},{"v":0,"d":"$0.00"},{"v":0,"d":"$0.00"},{"v":0,"d":"$0.00"},{"v":0,"d":"$0.00"},{"v":0,"d":"$0.00"},{"v":0,"d":"$0.00"},{"v":0,"d":"$0.00"}]
["MMA",null,null,{"$f":"Jurat!I$1","v":0},{"$f":"Jurat!D$33","v":"00:00:00"},"Q3","2017-09-30","Region 3","Operating Expense","Taxes & Fees","Taxes & Fees","13.2","Department of Insurance Assessments",{"$f":"'MMA Rev-Exp Region 3'!Z$98","v":{"v":0,"d":"$0.00"}},{"v":0,"d":"$0.00"},{"v":0,"d":"$0.00"},{"v":0,"d":"$0.00"},{"v":0,"d":"$0.00"},{"v":0,"d":"$0.00"},{"v":0,"d":"$0.00"},{"v":0,"d":"$0.00"},{"v":0,"d":"$0.00"},{"v":0,"d":"$0.00"},{"v":0,"d":"$0.00"},{"v":0,"d":"$0.00"}]
["MMA",null,null,{"$f":"Jurat!I$1","v":0},{"$f":"Jurat!D$33","v":"00:00:00"},"Q4","2017-12-31","Region 3","Member Months","Member Months","Member Months",null,"Member Months",{"$f":"'MMA Rev-Exp Region 3'!AK$9","v":{"v":0,"d":"$0.00"}},{"$f":"'MMA Rev-Exp Region 3'!AL$9","v":{"v":0,"d":"$0.00"}},{"$f":"'MMA Rev-Exp Region 3'!AM$9","v":{"v":0,"d":"$0.00"}},{"$f":"'MMA Rev-Exp Region 3'!AN$9","v":{"v":0,"d":"$0.00"}},{"$f":"'MMA Rev-Exp Region 3'!AO$9","v":{"v":0,"d":"$0.00"}},{"$f":"'MMA Rev-Exp Region 3'!AP$9","v":{"v":0,"d":"$0.00"}},{"$f":"'MMA Rev-Exp Region 3'!AQ$9","v":{"v":0,"d":"$0.00"}},{"$f":"'MMA Rev-Exp Region 3'!AR$9","v":{"v":0,"d":"$0.00"}},{"$f":"'MMA Rev-Exp Region 3'!AS$9","v":{"v":0,"d":"$0.00"}},{"$f":"'MMA Rev-Exp Region 3'!AT$9","v":{"v":0,"d":"$0.00"}},{"$f":"'MMA Rev-Exp Region 3'!AU$9","v":{"v":0,"d":"$0.00"}},{"v":0,"d":"$0.00"}]
["MMA",null,null,{"$f":"Jurat!I$1","v":0},{"$f":"Jurat!D$33","v":"00:00:00"},"Q4","2017-12-31","Region 3","Operating Revenue","Kick Payments","Kick Payments - Hep C","1.3","Hepatitis C Kick Payments",{"$f":"'MMA Rev-Exp Region 3'!AK$13","v":{"v":0,"d":"$0.00"}},{"$f":"'MMA Rev-Exp Region 3'!AL$13","v":{"v":0,"d":"$0.00"}},{"$f":"'MMA Rev-Exp Region 3'!AM$13","v":{"v":0,"d":"$0.00"}},{"$f":"'MMA Rev-Exp Region 3'!AN$13","v":{"v":0,"d":"$0.00"}},{"$f":"'MMA Rev-Exp Region 3'!AO$13","v":{"v":0,"d":"$0.00"}},{"$f":"'MMA Rev-Exp Region 3'!AP$13","v":{"v":0,"d":"$0.00"}},{"$f":"'MMA Rev-Exp Region 3'!AQ$13","v":{"v":0,"d":"$0.00"}},{"$f":"'MMA Rev-Exp Region 3'!AR$13","v":{"v":0,"d":"$0.00"}},{"$f":"'MMA Rev-Exp Region 3'!AS$13","v":{"v":0,"d":"$0.00"}},{"$f":"'MMA Rev-Exp Region 3'!AT$13","v":{"v":0,"d":"$0.00"}},{"$f":"'MMA Rev-Exp Region 3'!AU$13","v":{"v":0,"d":"$0.00"}},{"v":0,"d":"$0.00"}]
["MMA",null,null,{"$f":"Jurat!I$1","v":0},{"$f":"Jurat!D$33","v":"00:00:00"},"Q4","2017-12-31","Region 3","Operating Revenue","Kick Payments","Kick Payments - Maternity","1.4.1","Maternity Kick Payments",{"$f":"'MMA Rev-Exp Region 3'!AK$14","v":{"v":0,"d":"$0.00"}},{"$f":"'MMA Rev-Exp Region 3'!AL$14","v":{"v":0,"d":"$0.00"}},{"$f":"'MMA Rev-Exp Region 3'!AM$14","v":{"v":0,"d":"$0.00"}},{"$f":"'MMA Rev-Exp Region 3'!AN$14","v":{"v":0,"d":"$0.00"}},{"$f":"'MMA Rev-Exp Region 3'!AO$14","v":{"v":0,"d":"$0.00"}},{"$f":"'MMA Rev-Exp Region 3'!AP$14","v":{"v":0,"d":"$0.00"}},{"$f":"'MMA Rev-Exp Region 3'!AQ$14","v":{"v":0,"d":"$0.00"}},{"$f":"'MMA Rev-Exp Region 3'!AR$14","v":{"v":0,"d":"$0.00"}},{"$f":"'MMA Rev-Exp Region 3'!AS$14","v":{"v":0,"d":"$0.00"}},{"$f":"'MMA Rev-Exp Region 3'!AT$14","v":{"v":0,"d":"$0.00"}},{"$f":"'MMA Rev-Exp Region 3'!AU$14","v":{"v":0,"d":"$0.00"}},{"v":0,"d":"$0.00"}]
["MMA",null,null,{"$f":"Jurat!I$1","v":0},{"$f":"Jurat!D$33","v":"00:00:00"},"Q4","2017-12-31","Region 3","Operating Expense","Medical Benefits Expense","Hospital Services",2.1,"Inpatient FFS",{"$f":"'MMA Rev-Exp Region 3'!AK$20","v":{"v":0,"d":"$0.00"}},{"$f":"'MMA Rev-Exp Region 3'!AL$20","v":{"v":0,"d":"$0.00"}},{"$f":"'MMA Rev-Exp Region 3'!AM$20","v":{"v":0,"d":"$0.00"}},{"$f":"'MMA Rev-Exp Region 3'!AN$20","v":{"v":0,"d":"$0.00"}},{"$f":"'MMA Rev-Exp Region 3'!AO$20","v":{"v":0,"d":"$0.00"}},{"$f":"'MMA Rev-Exp Region 3'!AP$20","v":{"v":0,"d":"$0.00"}},{"$f":"'MMA Rev-Exp Region 3'!AQ$20","v":{"v":0,"d":"$0.00"}},{"$f":"'MMA Rev-Exp Region 3'!AR$20","v":{"v":0,"d":"$0.00"}},{"$f":"'MMA Rev-Exp Region 3'!AS$20","v":{"v":0,"d":"$0.00"}},{"$f":"'MMA Rev-Exp Region 3'!AT$20","v":{"v":0,"d":"$0.00"}},{"$f":"'MMA Rev-Exp Region 3'!AU$20","v":{"v":0,"d":"$0.00"}},{"v":0,"d":"$0.00"}]
["MMA",null,null,{"$f":"Jurat!I$1","v":0},{"$f":"Jurat!D$33","v":"00:00:00"},"Q4","2017-12-31","Region 3","Operating Expense","Medical Benefits Expense","Hospital Services",2.5,"Ending IBNP for Outpatient Hospital Services",{"$f":"'MMA Rev-Exp Region 3'!AK$24","v":{"v":0,"d":"$0.00"}},{"$f":"'MMA Rev-Exp Region 3'!AL$24","v":{"v":0,"d":"$0.00"}},{"$f":"'MMA Rev-Exp Region 3'!AM$24","v":{"v":0,"d":"$0.00"}},{"$f":"'MMA Rev-Exp Region 3'!AN$24","v":{"v":0,"d":"$0.00"}},{"$f":"'MMA Rev-Exp Region 3'!AO$24","v":{"v":0,"d":"$0.00"}},{"$f":"'MMA Rev-Exp Region 3'!AP$24","v":{"v":0,"d":"$0.00"}},{"$f":"'MMA Rev-Exp Region 3'!AQ$24","v":{"v":0,"d":"$0.00"}},{"$f":"'MMA Rev-Exp Region 3'!AR$24","v":{"v":0,"d":"$0.00"}},{"$f":"'MMA Rev-Exp Region 3'!AS$24","v":{"v":0,"d":"$0.00"}},{"$f":"'MMA Rev-Exp Region 3'!AT$24","v":{"v":0,"d":"$0.00"}},{"$f":"'MMA Rev-Exp Region 3'!AU$24","v":{"v":0,"d":"$0.00"}},{"v":0,"d":"$0.00"}]
["MMA",null,null,{"$f":"Jurat!I$1","v":0},{"$f":"Jurat!D$33","v":"00:00:00"},"Q4","2017-12-31","Region 3","Operating Expense","Medical Benefits Expense","Hospital Services","2.7.1","Transplant Services",{"$f":"'MMA Rev-Exp Region 3'!AK$27","v":{"v":0,"d":"$0.00"}},{"$f":"'MMA Rev-Exp Region 3'!AL$27","v":{"v":0,"d":"$0.00"}},{"$f":"'MMA Rev-Exp Region 3'!AM$27","v":{"v":0,"d":"$0.00"}},{"$f":"'MMA Rev-Exp Region 3'!AN$27","v":{"v":0,"d":"$0.00"}},{"$f":"'MMA Rev-Exp Region 3'!AO$27","v":{"v":0,"d":"$0.00"}},{"$f":"'MMA Rev-Exp Region 3'!AP$27","v":{"v":0,"d":"$0.00"}},{"$f":"'MMA Rev-Exp Region 3'!AQ$27","v":{"v":0,"d":"$0.00"}},{"$f":"'MMA Rev-Exp Region 3'!AR$27","v":{"v":0,"d":"$0.00"}},{"$f":"'MMA Rev-Exp Region 3'!AS$27","v":{"v":0,"d":"$0.00"}},{"$f":"'MMA Rev-Exp Region 3'!AT$27","v":{"v":0,"d":"$0.00"}},{"$f":"'MMA Rev-Exp Region 3'!AU$27","v":{"v":0,"d":"$0.00"}},{"v":0,"d":"$0.00"}]
["MMA",null,null,{"$f":"Jurat!I$1","v":0},{"$f":"Jurat!D$33","v":"00:00:00"},"Q4","2017-12-31","Region 3","Operating Expense","Medical Benefits Expense","Professional Services",3.3,"Other Professional FFS",{"$f":"'MMA Rev-Exp Region 3'!AK$31","v":{"v":0,"d":"$0.00"}},{"$f":"'MMA Rev-Exp Region 3'!AL$31","v":{"v":0,"d":"$0.00"}},{"$f":"'MMA Rev-Exp Region 3'!AM$31","v":{"v":0,"d":"$0.00"}},{"$f":"'MMA Rev-Exp Region 3'!AN$31","v":{"v":0,"d":"$0.00"}},{"$f":"'MMA Rev-Exp Region 3'!AO$31","v":{"v":0,"d":"$0.00"}},{"$f":"'MMA Rev-Exp Region 3'!AP$31","v":{"v":0,"d":"$0.00"}},{"$f":"'MMA Rev-Exp Region 3'!AQ$31","v":{"v":0,"d":"$0.00"}},{"$f":"'MMA Rev-Exp Region 3'!AR$31","v":{"v":0,"d":"$0.00"}},{"$f":"'MMA Rev-Exp Region 3'!AS$31","v":{"v":0,"d":"$0.00"}},{"$f":"'MMA Rev-Exp Region 3'!AT$31","v":{"v":0,"d":"$0.00"}},{"$f":"'MMA Rev-Exp Region 3'!AU$31","v":{"v":0,"d":"$0.00"}},{"v":0,"d":"$0.00"}]
["MMA",null,null,{"$f":"Jurat!I$1","v":0},{"$f":"Jurat!D$33","v":"00:00:00"},"Q4","2017-12-31","Region 3","Operating Expense","Medical Benefits Expense","Professional Services","3.6","Ending IBNP for Professional Services",{"$f":"'MMA Rev-Exp Region 3'!AK$34","v":{"v":0,"d":"$0.00"}},{"$f":"'MMA Rev-Exp Region 3'!AL$34","v":{"v":0,"d":"$0.00"}},{"$f":"'MMA Rev-Exp Region 3'!AM$34","v":{"v":0,"d":"$0.00"}},{"$f":"'MMA Rev-Exp Region 3'!AN$34","v":{"v":0,"d":"$0.00"}},{"$f":"'MMA Rev-Exp Region 3'!AO$34","v":{"v":0,"d":"$0.00"}},{"$f":"'MMA Rev-Exp Region 3'!AP$34","v":{"v":0,"d":"$0.00"}},{"$f":"'MMA Rev-Exp Region 3'!AQ$34","v":{"v":0,"d":"$0.00"}},{"$f":"'MMA Rev-Exp Region 3'!AR$34","v":{"v":0,"d":"$0.00"}},{"$f":"'MMA Rev-Exp Region 3'!AS$34","v":{"v":0,"d":"$0.00"}},{"$f":"'MMA Rev-Exp Region 3'!AT$34","v":{"v":0,"d":"$0.00"}},{"$f":"'MMA Rev-Exp Region 3'!AU$34","v":{"v":0,"d":"$0.00"}},{"v":0,"d":"$0.00"}]
["MMA",null,null,{"$f":"Jurat!I$1","v":0},{"$f":"Jurat!D$33","v":"00:00:00"},"Q4","2017-12-31","Region 3","Operating Expense","Medical Benefits Expense","Maternity Services","4.2.1","Ending IBNP for Maternity Services",{"$f":"'MMA Rev-Exp Region 3'!AK$38","v":{"v":0,"d":"$0.00"}},{"$f":"'MMA Rev-Exp Region 3'!AL$38","v":{"v":0,"d":"$0.00"}},{"$f":"'MMA Rev-Exp Region 3'!AM$38","v":{"v":0,"d":"$0.00"}},{"$f":"'MMA Rev-Exp Region 3'!AN$38","v":{"v":0,"d":"$0.00"}},{"$f":"'MMA Rev-Exp Region 3'!AO$38","v":{"v":0,"d":"$0.00"}},{"$f":"'MMA Rev-Exp Region 3'!AP$38","v":{"v":0,"d":"$0.00"}},{"$f":"'MMA Rev-Exp Region 3'!AQ$38","v":{"v":0,"d":"$0.00"}},{"$f":"'MMA Rev-Exp Region 3'!AR$38","v":{"v":0,"d":"$0.00"}},{"$f":"'MMA Rev-Exp Region 3'!AS$38","v":{"v":0,"d":"$0.00"}},{"$f":"'MMA Rev-Exp Region 3'!AT$38","v":{"v":0,"d":"$0.00"}},{"$f":"'MMA Rev-Exp Region 3'!AU$38","v":{"v":0,"d":"$0.00"}},{"v":0,"d":"$0.00"}]
["MMA",null,null,{"$f":"Jurat!I$1","v":0},{"$f":"Jurat!D$33","v":"00:00:00"},"Q4","2017-12-31","Region 3","Operating Expense","Medical Benefits Expense","Maternity Services","4.3.1","Maternity Settlements",{"$f":"'MMA Rev-Exp Region 3'!AK$39","v":{"v":0,"d":"$0.00"}},{"$f":"'MMA Rev-Exp Region 3'!AL$39","v":{"v":0,"d":"$0.00"}},{"$f":"'MMA Rev-Exp Region 3'!AM$39","v":{"v":0,"d":"$0.00"}},{"$f":"'MMA Rev-Exp Region 3'!AN$39","v":{"v":0,"d":"$0.00"}},{"$f":"'MMA Rev-Exp Region 3'!AO$39","v":{"v":0,"d":"$0.00"}},{"$f":"'MMA Rev-Exp Region 3'!AP$39","v":{"v":0,"d":"$0.00"}},{"$f":"'MMA Rev-Exp Region 3'!AQ$39","v":{"v":0,"d":"$0.00"}},{"$f":"'MMA Rev-Exp Region 3'!AR$39","v":{"v":0,"d":"$0.00"}},{"$f":"'MMA Rev-Exp Region 3'!AS$39","v":{"v":0,"d":"$0.00"}},{"$f":"'MMA Rev-Exp Region 3'!AT$39","v":{"v":0,"d":"$0.00"}},{"$f":"'MMA Rev-Exp Region 3'!AU$39","v":{"v":0,"d":"$0.00"}},{"v":0,"d":"$0.00"}]
["MMA",null,null,{"$f":"Jurat!I$1","v":0},{"$f":"Jurat!D$33","v":"00:00:00"},"Q4","2017-12-31","Region 3","Operating Expense","Medical Benefits Expense","Mental Health Services",5.3,"Ending IBNP for Mental Health & Substance Abuse",{"$f":"'MMA Rev-Exp Region 3'!AK$43","v":{"v":0,"d":"$0.00"}},{"$f":"'MMA Rev-Exp Region 3'!AL$43","v":{"v":0,"d":"$0.00"}},{"$f":"'MMA Rev-Exp Region 3'!AM$43","v":{"v":0,"d":"$0.00"}},{"$f":"'MMA Rev-Exp Region 3'!AN$43","v":{"v":0,"d":"$0.00"}},{"$f":"'MMA Rev-Exp Region 3'!AO$43","v":{"v":0,"d":"$0.00"}},{"$f":"'MMA Rev-Exp Region 3'!AP$43","v":{"v":0,"d":"$0.00"}},{"$f":"'MMA Rev-Exp Region 3'!AQ$43","v":{"v":0,"d":"$0.00"}},{"$f":"'MMA Rev-Exp Region 3'!AR$43","v":{"v":0,"d":"$0.00"}},{"$f":"'MMA Rev-Exp Region 3'!AS$43","v":{"v":0,"d":"$0.00"}},{"$f":"'MMA Rev-Exp Region 3'!AT$43","v":{"v":0,"d":"$0.00"}},{"$f":"'MMA Rev-Exp Region 3'!AU$43","v":{"v":0,"d":"$0.00"}},{"v":0,"d":"$0.00"}]
["MMA",null,null,{"$f":"Jurat!I$1","v":0},{"$f":"Jurat!D$33","v":"00:00:00"},"Q4","2017-12-31","Region 3","Operating Expense","Medical Benefits Expense","Dental Services",6.2,"Dental Subcapitation",{"$f":"'MMA Rev-Exp Region 3'!AK$47","v":{"v":0,"d":"$0.00"}},{"$f":"'MMA Rev-Exp Region 3'!AL$47","v":{"v":0,"d":"$0.00"}},{"$f":"'MMA Rev-Exp Region 3'!AM$47","v":{"v":0,"d":"$0.00"}},{"$f":"'MMA Rev-Exp Region 3'!AN$47","v":{"v":0,"d":"$0.00"}},{"$f":"'MMA Rev-Exp Region 3'!AO$47","v":{"v":0,"d":"$0.00"}},{"$f":"'MMA Rev-Exp Region 3'!AP$47","v":{"v":0,"d":"$0.00"}},{"$f":"'MMA Rev-Exp Region 3'!AQ$47","v":{"v":0,"d":"$0.00"}},{"$f":"'MMA Rev-Exp Region 3'!AR$47","v":{"v":0,"d":"$0.00"}},{"$f":"'MMA Rev-Exp Region 3'!AS$47","v":{"v":0,"d":"$0.00"}},{"$f":"'MMA Rev-Exp Region 3'!AT$47","v":{"v":0,"d":"$0.00"}},{"$f":"'MMA Rev-Exp Region 3'!AU$47","v":{"v":0,"d":"$0.00"}},{"v":0,"d":"$0.00"}]
["MMA",null,null,{"$f":"Jurat!I$1","v":0},{"$f":"Jurat!D$33","v":"00:00:00"},"Q4","2017-12-31","Region 3","Operating Expense","Medical Benefits Expense","Transportation Services",7.2,"Transportation Subcapitation",{"$f":"'MMA Rev-Exp Region 3'!AK$52","v":{"v":0,"d":"$0.00"}},{"$f":"'MMA Rev-Exp Region 3'!AL$52","v":{"v":0,"d":"$0.00"}},{"$f":"'MMA Rev-Exp Region 3'!AM$52","v":{"v":0,"d":"$0.00"}},{"$f":"'MMA Rev-Exp Region 3'!AN$52","v":{"v":0,"d":"$0.00"}},{"$f":"'MMA Rev-Exp Region 3'!AO$52","v":{"v":0,"d":"$0.00"}},{"$f":"'MMA Rev-Exp Region 3'!AP$52","v":{"v":0,"d":"$0.00"}},{"$f":"'MMA Rev-Exp Region 3'!AQ$52","v":{"v":0,"d":"$0.00"}},{"$f":"'MMA Rev-Exp Region 3'!AR$52","v":{"v":0,"d":"$0.00"}},{"$f":"'MMA Rev-Exp Region 3'!AS$52","v":{"v":0,"d":"$0.00"}},{"$f":"'MMA Rev-Exp Region 3'!AT$52","v":{"v":0,"d":"$0.00"}},{"$f":"'MMA Rev-Exp Region 3'!AU$52","v":{"v":0,"d":"$0.00"}},{"v":0,"d":"$0.00"}]
["MMA",null,null,{"$f":"Jurat!I$1","v":0},{"$f":"Jurat!D$33","v":"00:00:00"},"Q4","2017-12-31","Region 3","Operating Expense","Medical Benefits Expense","Pharmacy Services",8.1,"Prescription Drugs FFS",{"$f":"'MMA Rev-Exp Region 3'!AK$56","v":{"v":0,"d":"$0.00"}},{"$f":"'MMA Rev-Exp Region 3'!AL$56","v":{"v":0,"d":"$0.00"}},{"$f":"'MMA Rev-Exp Region 3'!AM$56","v":{"v":0,"d":"$0.00"}},{"$f":"'MMA Rev-Exp Region 3'!AN$56","v":{"v":0,"d":"$0.00"}},{"$f":"'MMA Rev-Exp Region 3'!AO$56","v":{"v":0,"d":"$0.00"}},{"$f":"'MMA Rev-Exp Region 3'!AP$56","v":{"v":0,"d":"$0.00"}},{"$f":"'MMA Rev-Exp Region 3'!AQ$56","v":{"v":0,"d":"$0.00"}},{"$f":"'MMA Rev-Exp Region 3'!AR$56","v":{"v":0,"d":"$0.00"}},{"$f":"'MMA Rev-Exp Region 3'!AS$56","v":{"v":0,"d":"$0.00"}},{"$f":"'MMA Rev-Exp Region 3'!AT$56","v":{"v":0,"d":"$0.00"}},{"$f":"'MMA Rev-Exp Region 3'!AU$56","v":{"v":0,"d":"$0.00"}},{"v":0,"d":"$0.00"}]
["MMA",null,null,{"$f":"Jurat!I$1","v":0},{"$f":"Jurat!D$33","v":"00:00:00"},"Q4","2017-12-31","Region 3","Operating Expense","Medical Benefits Expense","Pharmacy Services","8.4","Prescription Drug Rebates ",{"$f":"'MMA Rev-Exp Region 3'!AK$59","v":{"v":0,"d":"$0.00"}},{"$f":"'MMA Rev-Exp Region 3'!AL$59","v":{"v":0,"d":"$0.00"}},{"$f":"'MMA Rev-Exp Region 3'!AM$59","v":{"v":0,"d":"$0.00"}},{"$f":"'MMA Rev-Exp Region 3'!AN$59","v":{"v":0,"d":"$0.00"}},{"$f":"'MMA Rev-Exp Region 3'!AO$59","v":{"v":0,"d":"$0.00"}},{"$f":"'MMA Rev-Exp Region 3'!AP$59","v":{"v":0,"d":"$0.00"}},{"$f":"'MMA Rev-Exp Region 3'!AQ$59","v":{"v":0,"d":"$0.00"}},{"$f":"'MMA Rev-Exp Region 3'!AR$59","v":{"v":0,"d":"$0.00"}},{"$f":"'MMA Rev-Exp Region 3'!AS$59","v":{"v":0,"d":"$0.00"}},{"$f":"'MMA Rev-Exp Region 3'!AT$59","v":{"v":0,"d":"$0.00"}},{"$f":"'MMA Rev-Exp Region 3'!AU$59","v":{"v":0,"d":"$0.00"}},{"v":0,"d":"$0.00"}]
["MMA",null,null,{"$f":"Jurat!I$1","v":0},{"$f":"Jurat!D$33","v":"00:00:00"},"Q4","2017-12-31","Region 3","Operating Expense","Medical Benefits Expense","Pharmacy Services","8.6","Prescription Drugs Subcapitation",{"$f":"'MMA Rev-Exp Region 3'!AK$61","v":{"v":0,"d":"$0.00"}},{"$f":"'MMA Rev-Exp Region 3'!AL$61","v":{"v":0,"d":"$0.00"}},{"$f":"'MMA Rev-Exp Region 3'!AM$61","v":{"v":0,"d":"$0.00"}},{"$f":"'MMA Rev-Exp Region 3'!AN$61","v":{"v":0,"d":"$0.00"}},{"$f":"'MMA Rev-Exp Region 3'!AO$61","v":{"v":0,"d":"$0.00"}},{"$f":"'MMA Rev-Exp Region 3'!AP$61","v":{"v":0,"d":"$0.00"}},{"$f":"'MMA Rev-Exp Region 3'!AQ$61","v":{"v":0,"d":"$0.00"}},{"$f":"'MMA Rev-Exp Region 3'!AR$61","v":{"v":0,"d":"$0.00"}},{"$f":"'MMA Rev-Exp Region 3'!AS$61","v":{"v":0,"d":"$0.00"}},{"$f":"'MMA Rev-Exp Region 3'!AT$61","v":{"v":0,"d":"$0.00"}},{"$f":"'MMA Rev-Exp Region 3'!AU$61","v":{"v":0,"d":"$0.00"}},{"v":0,"d":"$0.00"}]
["MMA",null,null,{"$f":"Jurat!I$1","v":0},{"$f":"Jurat!D$33","v":"00:00:00"},"Q4","2017-12-31","Region 3","Operating Expense","Medical Benefits Expense","Other MMA Services","9.3","DME FFS",{"$f":"'MMA Rev-Exp Region 3'!AK$66","v":{"v":0,"d":"$0.00"}},{"$f":"'MMA Rev-Exp Region 3'!AL$66","v":{"v":0,"d":"$0.00"}},{"$f":"'MMA Rev-Exp Region 3'!AM$66","v":{"v":0,"d":"$0.00"}},{"$f":"'MMA Rev-Exp Region 3'!AN$66","v":{"v":0,"d":"$0.00"}},{"$f":"'MMA Rev-Exp Region 3'!AO$66","v":{"v":0,"d":"$0.00"}},{"$f":"'MMA Rev-Exp Region 3'!AP$66","v":{"v":0,"d":"$0.00"}},{"$f":"'MMA Rev-Exp Region 3'!AQ$66","v":{"v":0,"d":"$0.00"}},{"$f":"'MMA Rev-Exp Region 3'!AR$66","v":{"v":0,"d":"$0.00"}},{"$f":"'MMA Rev-Exp Region 3'!AS$66","v":{"v":0,"d":"$0.00"}},{"$f":"'MMA Rev-Exp Region 3'!AT$66","v":{"v":0,"d":"$0.00"}},{"$f":"'MMA Rev-Exp Region 3'!AU$66","v":{"v":0,"d":"$0.00"}},{"v":0,"d":"$0.00"}]
["MMA",null,null,{"$f":"Jurat!I$1","v":0},{"$f":"Jurat!D$33","v":"00:00:00"},"Q4","2017-12-31","Region 3","Operating Expense","Medical Benefits Expense","Other MMA Services","9.4","Other State Plan Services FFS",{"$f":"'MMA Rev-Exp Region 3'!AK$67","v":{"v":0,"d":"$0.00"}},{"$f":"'MMA Rev-Exp Region 3'!AL$67","v":{"v":0,"d":"$0.00"}},{"$f":"'MMA Rev-Exp Region 3'!AM$67","v":{"v":0,"d":"$0.00"}},{"$f":"'MMA Rev-Exp Region 3'!AN$67","v":{"v":0,"d":"$0.00"}},{"$f":"'MMA Rev-Exp Region 3'!AO$67","v":{"v":0,"d":"$0.00"}},{"$f":"'MMA Rev-Exp Region 3'!AP$67","v":{"v":0,"d":"$0.00"}},{"$f":"'MMA Rev-Exp Region 3'!AQ$67","v":{"v":0,"d":"$0.00"}},{"$f":"'MMA Rev-Exp Region 3'!AR$67","v":{"v":0,"d":"$0.00"}},{"$f":"'MMA Rev-Exp Region 3'!AS$67","v":{"v":0,"d":"$0.00"}},{"$f":"'MMA Rev-Exp Region 3'!AT$67","v":{"v":0,"d":"$0.00"}},{"$f":"'MMA Rev-Exp Region 3'!AU$67","v":{"v":0,"d":"$0.00"}},{"v":0,"d":"$0.00"}]
["MMA",null,null,{"$f":"Jurat!I$1","v":0},{"$f":"Jurat!D$33","v":"00:00:00"},"Q4","2017-12-31","Region 3","Operating Expense","Medical Benefits Expense","Other MMA Services","9.7","Other Services Settlements",{"$f":"'MMA Rev-Exp Region 3'!AK$70","v":{"v":0,"d":"$0.00"}},{"$f":"'MMA Rev-Exp Region 3'!AL$70","v":{"v":0,"d":"$0.00"}},{"$f":"'MMA Rev-Exp Region 3'!AM$70","v":{"v":0,"d":"$0.00"}},{"$f":"'MMA Rev-Exp Region 3'!AN$70","v":{"v":0,"d":"$0.00"}},{"$f":"'MMA Rev-Exp Region 3'!AO$70","v":{"v":0,"d":"$0.00"}},{"$f":"'MMA Rev-Exp Region 3'!AP$70","v":{"v":0,"d":"$0.00"}},{"$f":"'MMA Rev-Exp Region 3'!AQ$70","v":{"v":0,"d":"$0.00"}},{"$f":"'MMA Rev-Exp Region 3'!AR$70","v":{"v":0,"d":"$0.00"}},{"$f":"'MMA Rev-Exp Region 3'!AS$70","v":{"v":0,"d":"$0.00"}},{"$f":"'MMA Rev-Exp Region 3'!AT$70","v":{"v":0,"d":"$0.00"}},{"$f":"'MMA Rev-Exp Region 3'!AU$70","v":{"v":0,"d":"$0.00"}},{"v":0,"d":"$0.00"}]
["MMA",null,null,{"$f":"Jurat!I$1","v":0},{"$f":"Jurat!D$33","v":"00:00:00"},"Q4","2017-12-31","Region 3","Operating Expense","Medical Benefits Expense","Expanded Benefits","10.3","Ending IBNP for Expanded Benefits",{"$f":"'MMA Rev-Exp Region 3'!AK$74","v":{"v":0,"d":"$0.00"}},{"$f":"'MMA Rev-Exp Region 3'!AL$74","v":{"v":0,"d":"$0.00"}},{"$f":"'MMA Rev-Exp Region 3'!AM$74","v":{"v":0,"d":"$0.00"}},{"$f":"'MMA Rev-Exp Region 3'!AN$74","v":{"v":0,"d":"$0.00"}},{"$f":"'MMA Rev-Exp Region 3'!AO$74","v":{"v":0,"d":"$0.00"}},{"$f":"'MMA Rev-Exp Region 3'!AP$74","v":{"v":0,"d":"$0.00"}},{"$f":"'MMA Rev-Exp Region 3'!AQ$74","v":{"v":0,"d":"$0.00"}},{"$f":"'MMA Rev-Exp Region 3'!AR$74","v":{"v":0,"d":"$0.00"}},{"$f":"'MMA Rev-Exp Region 3'!AS$74","v":{"v":0,"d":"$0.00"}},{"$f":"'MMA Rev-Exp Region 3'!AT$74","v":{"v":0,"d":"$0.00"}},{"$f":"'MMA Rev-Exp Region 3'!AU$74","v":{"v":0,"d":"$0.00"}},{"v":0,"d":"$0.00"}]
["MMA",null,null,{"$f":"Jurat!I$1","v":0},{"$f":"Jurat!D$33","v":"00:00:00"},"Q4","2017-12-31","Region 3","Operating Expense","Medical Benefits Expense","Other Medical","11.8","Reinsurance Premiums",{"$f":"'MMA Rev-Exp Region 3'!AK$84","v":{"v":0,"d":"$0.00"}},{"$f":"'MMA Rev-Exp Region 3'!AL$84","v":{"v":0,"d":"$0.00"}},{"$f":"'MMA Rev-Exp Region 3'!AM$84","v":{"v":0,"d":"$0.00"}},{"$f":"'MMA Rev-Exp Region 3'!AN$84","v":{"v":0,"d":"$0.00"}},{"$f":"'MMA Rev-Exp Region 3'!AO$84","v":{"v":0,"d":"$0.00"}},{"$f":"'MMA Rev-Exp Region 3'!AP$84","v":{"v":0,"d":"$0.00"}},{"$f":"'MMA Rev-Exp Region 3'!AQ$84","v":{"v":0,"d":"$0.00"}},{"$f":"'MMA Rev-Exp Region 3'!AR$84","v":{"v":0,"d":"$0.00"}},{"$f":"'MMA Rev-Exp Region 3'!AS$84","v":{"v":0,"d":"$0.00"}},{"$f":"'MMA Rev-Exp Region 3'!AT$84","v":{"v":0,"d":"$0.00"}},{"$f":"'MMA Rev-Exp Region 3'!AU$84","v":{"v":0,"d":"$0.00"}},{"v":0,"d":"$0.00"}]
["MMA",null,null,{"$f":"Jurat!I$1","v":0},{"$f":"Jurat!D$33","v":"00:00:00"},"Q4","2017-12-31","Region 3","Operating Expense","Administrative Expense","Administrative","12.2","Administrative Services",{"$f":"'MMA Rev-Exp Region 3'!AK$91","v":{"v":0,"d":"$0.00"}},{"v":0,"d":"$0.00"},{"v":0,"d":"$0.00"},{"v":0,"d":"$0.00"},{"v":0,"d":"$0.00"},{"v":0,"d":"$0.00"},{"v":0,"d":"$0.00"},{"v":0,"d":"$0.00"},{"v":0,"d":"$0.00"},{"v":0,"d":"$0.00"},{"v":0,"d":"$0.00"},{"v":0,"d":"$0.00"}]
["MMA",null,null,{"$f":"Jurat!I$1","v":0},{"$f":"Jurat!D$33","v":"00:00:00"},"Q4","2017-12-31","Region 3","Operating Expense","Administrative Expense","Administrative","12.5","General  Administration",{"$f":"'MMA Rev-Exp Region 3'!AK$94","v":{"v":0,"d":"$0.00"}},{"v":0,"d":"$0.00"},{"v":0,"d":"$0.00"},{"v":0,"d":"$0.00"},{"v":0,"d":"$0.00"},{"v":0,"d":"$0.00"},{"v":0,"d":"$0.00"},{"v":0,"d":"$0.00"},{"v":0,"d":"$0.00"},{"v":0,"d":"$0.00"},{"v":0,"d":"$0.00"},{"v":0,"d":"$0.00"}]
["MMA",null,null,{"$f":"Jurat!I$1","v":0},{"$f":"Jurat!D$33","v":"00:00:00"},"Q4","2017-12-31","Region 3","Operating Expense","Taxes & Fees","Taxes & Fees","13.3","Section 9010 Health Insurance Providers Fee",{"$f":"'MMA Rev-Exp Region 3'!AK$99","v":{"v":0,"d":"$0.00"}},{"v":0,"d":"$0.00"},{"v":0,"d":"$0.00"},{"v":0,"d":"$0.00"},{"v":0,"d":"$0.00"},{"v":0,"d":"$0.00"},{"v":0,"d":"$0.00"},{"v":0,"d":"$0.00"},{"v":0,"d":"$0.00"},{"v":0,"d":"$0.00"},{"v":0,"d":"$0.00"},{"v":0,"d":"$0.00"}]
["MMA",null,null,{"$f":"Jurat!I$1","v":0},{"$f":"Jurat!D$33","v":"00:00:00"},"Q1","2017-03-31","Region 4","Member Months","Member Months","Member Months",null,"Member Months",{"$f":"'MMA Rev-Exp Region 4'!D$9","v":{"v":0,"d":"$0.00"}},{"$f":"'MMA Rev-Exp Region 4'!E$9","v":{"v":0,"d":"$0.00"}},{"$f":"'MMA Rev-Exp Region 4'!F$9","v":{"v":0,"d":"$0.00"}},{"$f":"'MMA Rev-Exp Region 4'!G$9","v":{"v":0,"d":"$0.00"}},{"$f":"'MMA Rev-Exp Region 4'!H$9","v":{"v":0,"d":"$0.00"}},{"$f":"'MMA Rev-Exp Region 4'!I$9","v":{"v":0,"d":"$0.00"}},{"$f":"'MMA Rev-Exp Region 4'!J$9","v":{"v":0,"d":"$0.00"}},{"$f":"'MMA Rev-Exp Region 4'!K$9","v":{"v":0,"d":"$0.00"}},{"$f":"'MMA Rev-Exp Region 4'!L$9","v":{"v":0,"d":"$0.00"}},{"$f":"'MMA Rev-Exp Region 4'!M$9","v":{"v":0,"d":"$0.00"}},{"$f":"'MMA Rev-Exp Region 4'!N$9","v":{"v":0,"d":"$0.00"}},{"v":0,"d":"$0.00"}]
["MMA",null,null,{"$f":"Jurat!I$1","v":0},{"$f":"Jurat!D$33","v":"00:00:00"},"Q1","2017-03-31","Region 4","Operating Revenue","Capitation","Capitation",1.1,"Capitation",{"$f":"'MMA Rev-Exp Region 4'!D$11","v":{"v":0,"d":"$0.00"}},{"$f":"'MMA Rev-Exp Region 4'!E$11","v":{"v":0,"d":"$0.00"}},{"$f":"'MMA Rev-Exp Region 4'!F$11","v":{"v":0,"d":"$0.00"}},{"$f":"'MMA Rev-Exp Region 4'!G$11","v":{"v":0,"d":"$0.00"}},{"$f":"'MMA Rev-Exp Region 4'!H$11","v":{"v":0,"d":"$0.00"}},{"$f":"'MMA Rev-Exp Region 4'!I$11","v":{"v":0,"d":"$0.00"}},{"$f":"'MMA Rev-Exp Region 4'!J$11","v":{"v":0,"d":"$0.00"}},{"$f":"'MMA Rev-Exp Region 4'!K$11","v":{"v":0,"d":"$0.00"}},{"$f":"'MMA Rev-Exp Region 4'!L$11","v":{"v":0,"d":"$0.00"}},{"$f":"'MMA Rev-Exp Region 4'!M$11","v":{"v":0,"d":"$0.00"}},{"$f":"'MMA Rev-Exp Region 4'!N$11","v":{"v":0,"d":"$0.00"}},{"v":0,"d":"$0.00"}]
["MMA",null,null,{"$f":"Jurat!I$1","v":0},{"$f":"Jurat!D$33","v":"00:00:00"},"Q1","2017-03-31","Region 4","Operating Revenue","Kick Payments","Kick Payments - Maternity","1.4.1","Maternity Kick Payments",{"$f":"'MMA Rev-Exp Region 4'!D$14","v":{"v":0,"d":"$0.00"}},{"$f":"'MMA Rev-Exp Region 4'!E$14","v":{"v":0,"d":"$0.00"}},{"$f":"'MMA Rev-Exp Region 4'!F$14","v":{"v":0,"d":"$0.00"}},{"$f":"'MMA Rev-Exp Region 4'!G$14","v":{"v":0,"d":"$0.00"}},{"$f":"'MMA Rev-Exp Region 4'!H$14","v":{"v":0,"d":"$0.00"}},{"$f":"'MMA Rev-Exp Region 4'!I$14","v":{"v":0,"d":"$0.00"}},{"$f":"'MMA Rev-Exp Region 4'!J$14","v":{"v":0,"d":"$0.00"}},{"$f":"'MMA Rev-Exp Region 4'!K$14","v":{"v":0,"d":"$0.00"}},{"$f":"'MMA Rev-Exp Region 4'!L$14","v":{"v":0,"d":"$0.00"}},{"$f":"'MMA Rev-Exp Region 4'!M$14","v":{"v":0,"d":"$0.00"}},{"$f":"'MMA Rev-Exp Region 4'!N$14","v":{"v":0,"d":"$0.00"}},{"v":0,"d":"$0.00"}]
["MMA",null,null,{"$f":"Jurat!I$1","v":0},{"$f":"Jurat!D$33","v":"00:00:00"},"Q1","2017-03-31","Region 4","Operating Expense","Medical Benefits Expense","Hospital Services",2.1,"Inpatient FFS",{"$f":"'MMA Rev-Exp Region 4'!D$20","v":{"v":0,"d":"$0.00"}},{"$f":"'MMA Rev-Exp Region 4'!E$20","v":{"v":0,"d":"$0.00"}},{"$f":"'MMA Rev-Exp Region 4'!F$20","v":{"v":0,"d":"$0.00"}},{"$f":"'MMA Rev-Exp Region 4'!G$20","v":{"v":0,"d":"$0.00"}},{"$f":"'MMA Rev-Exp Region 4'!H$20","v":{"v":0,"d":"$0.00"}},{"$f":"'MMA Rev-Exp Region 4'!I$20","v":{"v":0,"d":"$0.00"}},{"$f":"'MMA Rev-Exp Region 4'!J$20","v":{"v":0,"d":"$0.00"}},{"$f":"'MMA Rev-Exp Region 4'!K$20","v":{"v":0,"d":"$0.00"}},{"$f":"'MMA Rev-Exp Region 4'!L$20","v":{"v":0,"d":"$0.00"}},{"$f":"'MMA Rev-Exp Region 4'!M$20","v":{"v":0,"d":"$0.00"}},{"$f":"'MMA Rev-Exp Region 4'!N$20","v":{"v":0,"d":"$0.00"}},{"v":0,"d":"$0.00"}]
["MMA",null,null,{"$f":"Jurat!I$1","v":0},{"$f":"Jurat!D$33","v":"00:00:00"},"Q1","2017-03-31","Region 4","Operating Expense","Medical Benefits Expense","Hospital Services",2.5,"Ending IBNP for Outpatient Hospital Services",{"$f":"'MMA Rev-Exp Region 4'!D$24","v":{"v":0,"d":"$0.00"}},{"$f":"'MMA Rev-Exp Region 4'!E$24","v":{"v":0,"d":"$0.00"}},{"$f":"'MMA Rev-Exp Region 4'!F$24","v":{"v":0,"d":"$0.00"}},{"$f":"'MMA Rev-Exp Region 4'!G$24","v":{"v":0,"d":"$0.00"}},{"$f":"'MMA Rev-Exp Region 4'!H$24","v":{"v":0,"d":"$0.00"}},{"$f":"'MMA Rev-Exp Region 4'!I$24","v":{"v":0,"d":"$0.00"}},{"$f":"'MMA Rev-Exp Region 4'!J$24","v":{"v":0,"d":"$0.00"}},{"$f":"'MMA Rev-Exp Region 4'!K$24","v":{"v":0,"d":"$0.00"}},{"$f":"'MMA Rev-Exp Region 4'!L$24","v":{"v":0,"d":"$0.00"}},{"$f":"'MMA Rev-Exp Region 4'!M$24","v":{"v":0,"d":"$0.00"}},{"$f":"'MMA Rev-Exp Region 4'!N$24","v":{"v":0,"d":"$0.00"}},{"v":0,"d":"$0.00"}]
["MMA",null,null,{"$f":"Jurat!I$1","v":0},{"$f":"Jurat!D$33","v":"00:00:00"},"Q1","2017-03-31","Region 4","Operating Expense","Medical Benefits Expense","Hospital Services","2.7.1","Transplant Services",{"$f":"'MMA Rev-Exp Region 4'!D$27","v":{"v":0,"d":"$0.00"}},{"$f":"'MMA Rev-Exp Region 4'!E$27","v":{"v":0,"d":"$0.00"}},{"$f":"'MMA Rev-Exp Region 4'!F$27","v":{"v":0,"d":"$0.00"}},{"$f":"'MMA Rev-Exp Region 4'!G$27","v":{"v":0,"d":"$0.00"}},{"$f":"'MMA Rev-Exp Region 4'!H$27","v":{"v":0,"d":"$0.00"}},{"$f":"'MMA Rev-Exp Region 4'!I$27","v":{"v":0,"d":"$0.00"}},{"$f":"'MMA Rev-Exp Region 4'!J$27","v":{"v":0,"d":"$0.00"}},{"$f":"'MMA Rev-Exp Region 4'!K$27","v":{"v":0,"d":"$0.00"}},{"$f":"'MMA Rev-Exp Region 4'!L$27","v":{"v":0,"d":"$0.00"}},{"$f":"'MMA Rev-Exp Region 4'!M$27","v":{"v":0,"d":"$0.00"}},{"$f":"'MMA Rev-Exp Region 4'!N$27","v":{"v":0,"d":"$0.00"}},{"v":0,"d":"$0.00"}]
["MMA",null,null,{"$f":"Jurat!I$1","v":0},{"$f":"Jurat!D$33","v":"00:00:00"},"Q1","2017-03-31","Region 4","Operating Expense","Medical Benefits Expense","Professional Services","3.4","§ 1202 PCP Payments to providers",{"$f":"'MMA Rev-Exp Region 4'!D$32","v":{"v":0,"d":"$0.00"}},{"$f":"'MMA Rev-Exp Region 4'!E$32","v":{"v":0,"d":"$0.00"}},{"$f":"'MMA Rev-Exp Region 4'!F$32","v":{"v":0,"d":"$0.00"}},{"$f":"'MMA Rev-Exp Region 4'!G$32","v":{"v":0,"d":"$0.00"}},{"$f":"'MMA Rev-Exp Region 4'!H$32","v":{"v":0,"d":"$0.00"}},{"$f":"'MMA Rev-Exp Region 4'!I$32","v":{"v":0,"d":"$0.00"}},{"$f":"'MMA Rev-Exp Region 4'!J$32","v":{"v":0,"d":"$0.00"}},{"$f":"'MMA Rev-Exp Region 4'!K$32","v":{"v":0,"d":"$0.00"}},{"$f":"'MMA Rev-Exp Region 4'!L$32","v":{"v":0,"d":"$0.00"}},{"$f":"'MMA Rev-Exp Region 4'!M$32","v":{"v":0,"d":"$0.00"}},{"$f":"'MMA Rev-Exp Region 4'!N$32","v":{"v":0,"d":"$0.00"}},{"v":0,"d":"$0.00"}]
["MMA",null,null,{"$f":"Jurat!I$1","v":0},{"$f":"Jurat!D$33","v":"00:00:00"},"Q1","2017-03-31","Region 4","Operating Expense","Medical Benefits Expense","Professional Services","3.7","Professional Services Settlements",{"$f":"'MMA Rev-Exp Region 4'!D$35","v":{"v":0,"d":"$0.00"}},{"$f":"'MMA Rev-Exp Region 4'!E$35","v":{"v":0,"d":"$0.00"}},{"$f":"'MMA Rev-Exp Region 4'!F$35","v":{"v":0,"d":"$0.00"}},{"$f":"'MMA Rev-Exp Region 4'!G$35","v":{"v":0,"d":"$0.00"}},{"$f":"'MMA Rev-Exp Region 4'!H$35","v":{"v":0,"d":"$0.00"}},{"$f":"'MMA Rev-Exp Region 4'!I$35","v":{"v":0,"d":"$0.00"}},{"$f":"'MMA Rev-Exp Region 4'!J$35","v":{"v":0,"d":"$0.00"}},{"$f":"'MMA Rev-Exp Region 4'!K$35","v":{"v":0,"d":"$0.00"}},{"$f":"'MMA Rev-Exp Region 4'!L$35","v":{"v":0,"d":"$0.00"}},{"$f":"'MMA Rev-Exp Region 4'!M$35","v":{"v":0,"d":"$0.00"}},{"$f":"'MMA Rev-Exp Region 4'!N$35","v":{"v":0,"d":"$0.00"}},{"v":0,"d":"$0.00"}]
["MMA",null,null,{"$f":"Jurat!I$1","v":0},{"$f":"Jurat!D$33","v":"00:00:00"},"Q1","2017-03-31","Region 4","Operating Expense","Medical Benefits Expense","Maternity Services","4.3.1","Maternity Settlements",{"$f":"'MMA Rev-Exp Region 4'!D$39","v":{"v":0,"d":"$0.00"}},{"$f":"'MMA Rev-Exp Region 4'!E$39","v":{"v":0,"d":"$0.00"}},{"$f":"'MMA Rev-Exp Region 4'!F$39","v":{"v":0,"d":"$0.00"}},{"$f":"'MMA Rev-Exp Region 4'!G$39","v":{"v":0,"d":"$0.00"}},{"$f":"'MMA Rev-Exp Region 4'!H$39","v":{"v":0,"d":"$0.00"}},{"$f":"'MMA Rev-Exp Region 4'!I$39","v":{"v":0,"d":"$0.00"}},{"$f":"'MMA Rev-Exp Region 4'!J$39","v":{"v":0,"d":"$0.00"}},{"$f":"'MMA Rev-Exp Region 4'!K$39","v":{"v":0,"d":"$0.00"}},{"$f":"'MMA Rev-Exp Region 4'!L$39","v":{"v":0,"d":"$0.00"}},{"$f":"'MMA Rev-Exp Region 4'!M$39","v":{"v":0,"d":"$0.00"}},{"$f":"'MMA Rev-Exp Region 4'!N$39","v":{"v":0,"d":"$0.00"}},{"v":0,"d":"$0.00"}]
["MMA",null,null,{"$f":"Jurat!I$1","v":0},{"$f":"Jurat!D$33","v":"00:00:00"},"Q1","2017-03-31","Region 4","Operating Expense","Medical Benefits Expense","Mental Health Services",5.1,"Mental Health & Substance Abuse FFS",{"$f":"'MMA Rev-Exp Region 4'!D$41","v":{"v":0,"d":"$0.00"}},{"$f":"'MMA Rev-Exp Region 4'!E$41","v":{"v":0,"d":"$0.00"}},{"$f":"'MMA Rev-Exp Region 4'!F$41","v":{"v":0,"d":"$0.00"}},{"$f":"'MMA Rev-Exp Region 4'!G$41","v":{"v":0,"d":"$0.00"}},{"$f":"'MMA Rev-Exp Region 4'!H$41","v":{"v":0,"d":"$0.00"}},{"$f":"'MMA Rev-Exp Region 4'!I$41","v":{"v":0,"d":"$0.00"}},{"$f":"'MMA Rev-Exp Region 4'!J$41","v":{"v":0,"d":"$0.00"}},{"$f":"'MMA Rev-Exp Region 4'!K$41","v":{"v":0,"d":"$0.00"}},{"$f":"'MMA Rev-Exp Region 4'!L$41","v":{"v":0,"d":"$0.00"}},{"$f":"'MMA Rev-Exp Region 4'!M$41","v":{"v":0,"d":"$0.00"}},{"$f":"'MMA Rev-Exp Region 4'!N$41","v":{"v":0,"d":"$0.00"}},{"v":0,"d":"$0.00"}]
["MMA",null,null,{"$f":"Jurat!I$1","v":0},{"$f":"Jurat!D$33","v":"00:00:00"},"Q1","2017-03-31","Region 4","Operating Expense","Medical Benefits Expense","Mental Health Services",5.3,"Ending IBNP for Mental Health & Substance Abuse",{"$f":"'MMA Rev-Exp Region 4'!D$43","v":{"v":0,"d":"$0.00"}},{"$f":"'MMA Rev-Exp Region 4'!E$43","v":{"v":0,"d":"$0.00"}},{"$f":"'MMA Rev-Exp Region 4'!F$43","v":{"v":0,"d":"$0.00"}},{"$f":"'MMA Rev-Exp Region 4'!G$43","v":{"v":0,"d":"$0.00"}},{"$f":"'MMA Rev-Exp Region 4'!H$43","v":{"v":0,"d":"$0.00"}},{"$f":"'MMA Rev-Exp Region 4'!I$43","v":{"v":0,"d":"$0.00"}},{"$f":"'MMA Rev-Exp Region 4'!J$43","v":{"v":0,"d":"$0.00"}},{"$f":"'MMA Rev-Exp Region 4'!K$43","v":{"v":0,"d":"$0.00"}},{"$f":"'MMA Rev-Exp Region 4'!L$43","v":{"v":0,"d":"$0.00"}},{"$f":"'MMA Rev-Exp Region 4'!M$43","v":{"v":0,"d":"$0.00"}},{"$f":"'MMA Rev-Exp Region 4'!N$43","v":{"v":0,"d":"$0.00"}},{"v":0,"d":"$0.00"}]
["MMA",null,null,{"$f":"Jurat!I$1","v":0},{"$f":"Jurat!D$33","v":"00:00:00"},"Q1","2017-03-31","Region 4","Operating Expense","Medical Benefits Expense","Dental Services",6.2,"Dental Subcapitation",{"$f":"'MMA Rev-Exp Region 4'!D$47","v":{"v":0,"d":"$0.00"}},{"$f":"'MMA Rev-Exp Region 4'!E$47","v":{"v":0,"d":"$0.00"}},{"$f":"'MMA Rev-Exp Region 4'!F$47","v":{"v":0,"d":"$0.00"}},{"$f":"'MMA Rev-Exp Region 4'!G$47","v":{"v":0,"d":"$0.00"}},{"$f":"'MMA Rev-Exp Region 4'!H$47","v":{"v":0,"d":"$0.00"}},{"$f":"'MMA Rev-Exp Region 4'!I$47","v":{"v":0,"d":"$0.00"}},{"$f":"'MMA Rev-Exp Region 4'!J$47","v":{"v":0,"d":"$0.00"}},{"$f":"'MMA Rev-Exp Region 4'!K$47","v":{"v":0,"d":"$0.00"}},{"$f":"'MMA Rev-Exp Region 4'!L$47","v":{"v":0,"d":"$0.00"}},{"$f":"'MMA Rev-Exp Region 4'!M$47","v":{"v":0,"d":"$0.00"}},{"$f":"'MMA Rev-Exp Region 4'!N$47","v":{"v":0,"d":"$0.00"}},{"v":0,"d":"$0.00"}]
["MMA",null,null,{"$f":"Jurat!I$1","v":0},{"$f":"Jurat!D$33","v":"00:00:00"},"Q1","2017-03-31","Region 4","Operating Expense","Medical Benefits Expense","Transportation Services",7.2,"Transportation Subcapitation",{"$f":"'MMA Rev-Exp Region 4'!D$52","v":{"v":0,"d":"$0.00"}},{"$f":"'MMA Rev-Exp Region 4'!E$52","v":{"v":0,"d":"$0.00"}},{"$f":"'MMA Rev-Exp Region 4'!F$52","v":{"v":0,"d":"$0.00"}},{"$f":"'MMA Rev-Exp Region 4'!G$52","v":{"v":0,"d":"$0.00"}},{"$f":"'MMA Rev-Exp Region 4'!H$52","v":{"v":0,"d":"$0.00"}},{"$f":"'MMA Rev-Exp Region 4'!I$52","v":{"v":0,"d":"$0.00"}},{"$f":"'MMA Rev-Exp Region 4'!J$52","v":{"v":0,"d":"$0.00"}},{"$f":"'MMA Rev-Exp Region 4'!K$52","v":{"v":0,"d":"$0.00"}},{"$f":"'MMA Rev-Exp Region 4'!L$52","v":{"v":0,"d":"$0.00"}},{"$f":"'MMA Rev-Exp Region 4'!M$52","v":{"v":0,"d":"$0.00"}},{"$f":"'MMA Rev-Exp Region 4'!N$52","v":{"v":0,"d":"$0.00"}},{"v":0,"d":"$0.00"}]
["MMA",null,null,{"$f":"Jurat!I$1","v":0},{"$f":"Jurat!D$33","v":"00:00:00"},"Q1","2017-03-31","Region 4","Operating Expense","Medical Benefits Expense","Pharmacy Services",8.1,"Prescription Drugs FFS",{"$f":"'MMA Rev-Exp Region 4'!D$56","v":{"v":0,"d":"$0.00"}},{"$f":"'MMA Rev-Exp Region 4'!E$56","v":{"v":0,"d":"$0.00"}},{"$f":"'MMA Rev-Exp Region 4'!F$56","v":{"v":0,"d":"$0.00"}},{"$f":"'MMA Rev-Exp Region 4'!G$56","v":{"v":0,"d":"$0.00"}},{"$f":"'MMA Rev-Exp Region 4'!H$56","v":{"v":0,"d":"$0.00"}},{"$f":"'MMA Rev-Exp Region 4'!I$56","v":{"v":0,"d":"$0.00"}},{"$f":"'MMA Rev-Exp Region 4'!J$56","v":{"v":0,"d":"$0.00"}},{"$f":"'MMA Rev-Exp Region 4'!K$56","v":{"v":0,"d":"$0.00"}},{"$f":"'MMA Rev-Exp Region 4'!L$56","v":{"v":0,"d":"$0.00"}},{"$f":"'MMA Rev-Exp Region 4'!M$56","v":{"v":0,"d":"$0.00"}},{"$f":"'MMA Rev-Exp Region 4'!N$56","v":{"v":0,"d":"$0.00"}},{"v":0,"d":"$0.00"}]
["MMA",null,null,{"$f":"Jurat!I$1","v":0},{"$f":"Jurat!D$33","v":"00:00:00"},"Q1","2017-03-31","Region 4","Operating Expense","Medical Benefits Expense","Pharmacy Services","8.5","Ending accrual for Rebates receivable",{"$f":"'MMA Rev-Exp Region 4'!D$60","v":{"v":0,"d":"$0.00"}},{"$f":"'MMA Rev-Exp Region 4'!E$60","v":{"v":0,"d":"$0.00"}},{"$f":"'MMA Rev-Exp Region 4'!F$60","v":{"v":0,"d":"$0.00"}},{"$f":"'MMA Rev-Exp Region 4'!G$60","v":{"v":0,"d":"$0.00"}},{"$f":"'MMA Rev-Exp Region 4'!H$60","v":{"v":0,"d":"$0.00"}},{"$f":"'MMA Rev-Exp Region 4'!I$60","v":{"v":0,"d":"$0.00"}},{"$f":"'MMA Rev-Exp Region 4'!J$60","v":{"v":0,"d":"$0.00"}},{"$f":"'MMA Rev-Exp Region 4'!K$60","v":{"v":0,"d":"$0.00"}},{"$f":"'MMA Rev-Exp Region 4'!L$60","v":{"v":0,"d":"$0.00"}},{"$f":"'MMA Rev-Exp Region 4'!M$60","v":{"v":0,"d":"$0.00"}},{"$f":"'MMA Rev-Exp Region 4'!N$60","v":{"v":0,"d":"$0.00"}},{"v":0,"d":"$0.00"}]
["MMA",null,null,{"$f":"Jurat!I$1","v":0},{"$f":"Jurat!D$33","v":"00:00:00"},"Q1","2017-03-31","Region 4","Operating Expense","Medical Benefits Expense","Other MMA Services",9.1,"Home Health, Private Duty Nursing, Personal Care FFS",{"$f":"'MMA Rev-Exp Region 4'!D$64","v":{"v":0,"d":"$0.00"}},{"$f":"'MMA Rev-Exp Region 4'!E$64","v":{"v":0,"d":"$0.00"}},{"$f":"'MMA Rev-Exp Region 4'!F$64","v":{"v":0,"d":"$0.00"}},{"$f":"'MMA Rev-Exp Region 4'!G$64","v":{"v":0,"d":"$0.00"}},{"$f":"'MMA Rev-Exp Region 4'!H$64","v":{"v":0,"d":"$0.00"}},{"$f":"'MMA Rev-Exp Region 4'!I$64","v":{"v":0,"d":"$0.00"}},{"$f":"'MMA Rev-Exp Region 4'!J$64","v":{"v":0,"d":"$0.00"}},{"$f":"'MMA Rev-Exp Region 4'!K$64","v":{"v":0,"d":"$0.00"}},{"$f":"'MMA Rev-Exp Region 4'!L$64","v":{"v":0,"d":"$0.00"}},{"$f":"'MMA Rev-Exp Region 4'!M$64","v":{"v":0,"d":"$0.00"}},{"$f":"'MMA Rev-Exp Region 4'!N$64","v":{"v":0,"d":"$0.00"}},{"v":0,"d":"$0.00"}]
["MMA",null,null,{"$f":"Jurat!I$1","v":0},{"$f":"Jurat!D$33","v":"00:00:00"},"Q1","2017-03-31","Region 4","Operating Expense","Medical Benefits Expense","Other MMA Services","9.4","Other State Plan Services FFS",{"$f":"'MMA Rev-Exp Region 4'!D$67","v":{"v":0,"d":"$0.00"}},{"$f":"'MMA Rev-Exp Region 4'!E$67","v":{"v":0,"d":"$0.00"}},{"$f":"'MMA Rev-Exp Region 4'!F$67","v":{"v":0,"d":"$0.00"}},{"$f":"'MMA Rev-Exp Region 4'!G$67","v":{"v":0,"d":"$0.00"}},{"$f":"'MMA Rev-Exp Region 4'!H$67","v":{"v":0,"d":"$0.00"}},{"$f":"'MMA Rev-Exp Region 4'!I$67","v":{"v":0,"d":"$0.00"}},{"$f":"'MMA Rev-Exp Region 4'!J$67","v":{"v":0,"d":"$0.00"}},{"$f":"'MMA Rev-Exp Region 4'!K$67","v":{"v":0,"d":"$0.00"}},{"$f":"'MMA Rev-Exp Region 4'!L$67","v":{"v":0,"d":"$0.00"}},{"$f":"'MMA Rev-Exp Region 4'!M$67","v":{"v":0,"d":"$0.00"}},{"$f":"'MMA Rev-Exp Region 4'!N$67","v":{"v":0,"d":"$0.00"}},{"v":0,"d":"$0.00"}]
["MMA",null,null,{"$f":"Jurat!I$1","v":0},{"$f":"Jurat!D$33","v":"00:00:00"},"Q1","2017-03-31","Region 4","Operating Expense","Medical Benefits Expense","Other MMA Services","9.5","Other Services Subcapitation",{"$f":"'MMA Rev-Exp Region 4'!D$68","v":{"v":0,"d":"$0.00"}},{"$f":"'MMA Rev-Exp Region 4'!E$68","v":{"v":0,"d":"$0.00"}},{"$f":"'MMA Rev-Exp Region 4'!F$68","v":{"v":0,"d":"$0.00"}},{"$f":"'MMA Rev-Exp Region 4'!G$68","v":{"v":0,"d":"$0.00"}},{"$f":"'MMA Rev-Exp Region 4'!H$68","v":{"v":0,"d":"$0.00"}},{"$f":"'MMA Rev-Exp Region 4'!I$68","v":{"v":0,"d":"$0.00"}},{"$f":"'MMA Rev-Exp Region 4'!J$68","v":{"v":0,"d":"$0.00"}},{"$f":"'MMA Rev-Exp Region 4'!K$68","v":{"v":0,"d":"$0.00"}},{"$f":"'MMA Rev-Exp Region 4'!L$68","v":{"v":0,"d":"$0.00"}},{"$f":"'MMA Rev-Exp Region 4'!M$68","v":{"v":0,"d":"$0.00"}},{"$f":"'MMA Rev-Exp Region 4'!N$68","v":{"v":0,"d":"$0.00"}},{"v":0,"d":"$0.00"}]
["MMA",null,null,{"$f":"Jurat!I$1","v":0},{"$f":"Jurat!D$33","v":"00:00:00"},"Q1","2017-03-31","Region 4","Operating Expense","Medical Benefits Expense","Expanded Benefits","10.1","Expanded Benefits FFS",{"$f":"'MMA Rev-Exp Region 4'!D$72","v":{"v":0,"d":"$0.00"}},{"$f":"'MMA Rev-Exp Region 4'!E$72","v":{"v":0,"d":"$0.00"}},{"$f":"'MMA Rev-Exp Region 4'!F$72","v":{"v":0,"d":"$0.00"}},{"$f":"'MMA Rev-Exp Region 4'!G$72","v":{"v":0,"d":"$0.00"}},{"$f":"'MMA Rev-Exp Region 4'!H$72","v":{"v":0,"d":"$0.00"}},{"$f":"'MMA Rev-Exp Region 4'!I$72","v":{"v":0,"d":"$0.00"}},{"$f":"'MMA Rev-Exp Region 4'!J$72","v":{"v":0,"d":"$0.00"}},{"$f":"'MMA Rev-Exp Region 4'!K$72","v":{"v":0,"d":"$0.00"}},{"$f":"'MMA Rev-Exp Region 4'!L$72","v":{"v":0,"d":"$0.00"}},{"$f":"'MMA Rev-Exp Region 4'!M$72","v":{"v":0,"d":"$0.00"}},{"$f":"'MMA Rev-Exp Region 4'!N$72","v":{"v":0,"d":"$0.00"}},{"v":0,"d":"$0.00"}]
["MMA",null,null,{"$f":"Jurat!I$1","v":0},{"$f":"Jurat!D$33","v":"00:00:00"},"Q1","2017-03-31","Region 4","Operating Expense","Medical Benefits Expense","Expanded Benefits","10.4","Expanded Benefits Settlements",{"$f":"'MMA Rev-Exp Region 4'!D$75","v":{"v":0,"d":"$0.00"}},{"$f":"'MMA Rev-Exp Region 4'!E$75","v":{"v":0,"d":"$0.00"}},{"$f":"'MMA Rev-Exp Region 4'!F$75","v":{"v":0,"d":"$0.00"}},{"$f":"'MMA Rev-Exp Region 4'!G$75","v":{"v":0,"d":"$0.00"}},{"$f":"'MMA Rev-Exp Region 4'!H$75","v":{"v":0,"d":"$0.00"}},{"$f":"'MMA Rev-Exp Region 4'!I$75","v":{"v":0,"d":"$0.00"}},{"$f":"'MMA Rev-Exp Region 4'!J$75","v":{"v":0,"d":"$0.00"}},{"$f":"'MMA Rev-Exp Region 4'!K$75","v":{"v":0,"d":"$0.00"}},{"$f":"'MMA Rev-Exp Region 4'!L$75","v":{"v":0,"d":"$0.00"}},{"$f":"'MMA Rev-Exp Region 4'!M$75","v":{"v":0,"d":"$0.00"}},{"$f":"'MMA Rev-Exp Region 4'!N$75","v":{"v":0,"d":"$0.00"}},{"v":0,"d":"$0.00"}]
["MMA",null,null,{"$f":"Jurat!I$1","v":0},{"$f":"Jurat!D$33","v":"00:00:00"},"Q1","2017-03-31","Region 4","Operating Expense","Medical Benefits Expense","Other Medical","11.8","Reinsurance Premiums",{"$f":"'MMA Rev-Exp Region 4'!D$84","v":{"v":0,"d":"$0.00"}},{"$f":"'MMA Rev-Exp Region 4'!E$84","v":{"v":0,"d":"$0.00"}},{"$f":"'MMA Rev-Exp Region 4'!F$84","v":{"v":0,"d":"$0.00"}},{"$f":"'MMA Rev-Exp Region 4'!G$84","v":{"v":0,"d":"$0.00"}},{"$f":"'MMA Rev-Exp Region 4'!H$84","v":{"v":0,"d":"$0.00"}},{"$f":"'MMA Rev-Exp Region 4'!I$84","v":{"v":0,"d":"$0.00"}},{"$f":"'MMA Rev-Exp Region 4'!J$84","v":{"v":0,"d":"$0.00"}},{"$f":"'MMA Rev-Exp Region 4'!K$84","v":{"v":0,"d":"$0.00"}},{"$f":"'MMA Rev-Exp Region 4'!L$84","v":{"v":0,"d":"$0.00"}},{"$f":"'MMA Rev-Exp Region 4'!M$84","v":{"v":0,"d":"$0.00"}},{"$f":"'MMA Rev-Exp Region 4'!N$84","v":{"v":0,"d":"$0.00"}},{"v":0,"d":"$0.00"}]
["MMA",null,null,{"$f":"Jurat!I$1","v":0},{"$f":"Jurat!D$33","v":"00:00:00"},"Q1","2017-03-31","Region 4","Operating Expense","Administrative Expense","Administrative","12.2","Administrative Services",{"$f":"'MMA Rev-Exp Region 4'!D$91","v":{"v":0,"d":"$0.00"}},{"v":0,"d":"$0.00"},{"v":0,"d":"$0.00"},{"v":0,"d":"$0.00"},{"v":0,"d":"$0.00"},{"v":0,"d":"$0.00"},{"v":0,"d":"$0.00"},{"v":0,"d":"$0.00"},{"v":0,"d":"$0.00"},{"v":0,"d":"$0.00"},{"v":0,"d":"$0.00"},{"v":0,"d":"$0.00"}]
["MMA",null,null,{"$f":"Jurat!I$1","v":0},{"$f":"Jurat!D$33","v":"00:00:00"},"Q1","2017-03-31","Region 4","Operating Expense","Administrative Expense","Administrative","12.6","Compliance/Regulatory",{"$f":"'MMA Rev-Exp Region 4'!D$95","v":{"v":0,"d":"$0.00"}},{"v":0,"d":"$0.00"},{"v":0,"d":"$0.00"},{"v":0,"d":"$0.00"},{"v":0,"d":"$0.00"},{"v":0,"d":"$0.00"},{"v":0,"d":"$0.00"},{"v":0,"d":"$0.00"},{"v":0,"d":"$0.00"},{"v":0,"d":"$0.00"},{"v":0,"d":"$0.00"},{"v":0,"d":"$0.00"}]
["MMA",null,null,{"$f":"Jurat!I$1","v":0},{"$f":"Jurat!D$33","v":"00:00:00"},"Q1","2017-03-31","Region 4","Operating Expense","Taxes & Fees","Taxes & Fees","13.3","Section 9010 Health Insurance Providers Fee",{"$f":"'MMA Rev-Exp Region 4'!D$99","v":{"v":0,"d":"$0.00"}},{"v":0,"d":"$0.00"},{"v":0,"d":"$0.00"},{"v":0,"d":"$0.00"},{"v":0,"d":"$0.00"},{"v":0,"d":"$0.00"},{"v":0,"d":"$0.00"},{"v":0,"d":"$0.00"},{"v":0,"d":"$0.00"},{"v":0,"d":"$0.00"},{"v":0,"d":"$0.00"},{"v":0,"d":"$0.00"}]
["MMA",null,null,{"$f":"Jurat!I$1","v":0},{"$f":"Jurat!D$33","v":"00:00:00"},"Q2","2017-06-30","Region 4","Operating Revenue","Capitation","Capitation",1.1,"Capitation",{"$f":"'MMA Rev-Exp Region 4'!O$11","v":{"v":0,"d":"$0.00"}},{"$f":"'MMA Rev-Exp Region 4'!P$11","v":{"v":0,"d":"$0.00"}},{"$f":"'MMA Rev-Exp Region 4'!Q$11","v":{"v":0,"d":"$0.00"}},{"$f":"'MMA Rev-Exp Region 4'!R$11","v":{"v":0,"d":"$0.00"}},{"$f":"'MMA Rev-Exp Region 4'!S$11","v":{"v":0,"d":"$0.00"}},{"$f":"'MMA Rev-Exp Region 4'!T$11","v":{"v":0,"d":"$0.00"}},{"$f":"'MMA Rev-Exp Region 4'!U$11","v":{"v":0,"d":"$0.00"}},{"$f":"'MMA Rev-Exp Region 4'!V$11","v":{"v":0,"d":"$0.00"}},{"$f":"'MMA Rev-Exp Region 4'!W$11","v":{"v":0,"d":"$0.00"}},{"$f":"'MMA Rev-Exp Region 4'!X$11","v":{"v":0,"d":"$0.00"}},{"$f":"'MMA Rev-Exp Region 4'!Y$11","v":{"v":0,"d":"$0.00"}},{"v":0,"d":"$0.00"}]
["MMA",null,null,{"$f":"Jurat!I$1","v":0},{"$f":"Jurat!D$33","v":"00:00:00"},"Q2","2017-06-30","Region 4","Operating Revenue","Kick Payments","Kick Payments - Transplant",1.2,"Transplant Kick Payments",{"$f":"'MMA Rev-Exp Region 4'!O$12","v":{"v":0,"d":"$0.00"}},{"$f":"'MMA Rev-Exp Region 4'!P$12","v":{"v":0,"d":"$0.00"}},{"$f":"'MMA Rev-Exp Region 4'!Q$12","v":{"v":0,"d":"$0.00"}},{"$f":"'MMA Rev-Exp Region 4'!R$12","v":{"v":0,"d":"$0.00"}},{"$f":"'MMA Rev-Exp Region 4'!S$12","v":{"v":0,"d":"$0.00"}},{"$f":"'MMA Rev-Exp Region 4'!T$12","v":{"v":0,"d":"$0.00"}},{"$f":"'MMA Rev-Exp Region 4'!U$12","v":{"v":0,"d":"$0.00"}},{"$f":"'MMA Rev-Exp Region 4'!V$12","v":{"v":0,"d":"$0.00"}},{"$f":"'MMA Rev-Exp Region 4'!W$12","v":{"v":0,"d":"$0.00"}},{"$f":"'MMA Rev-Exp Region 4'!X$12","v":{"v":0,"d":"$0.00"}},{"$f":"'MMA Rev-Exp Region 4'!Y$12","v":{"v":0,"d":"$0.00"}},{"v":0,"d":"$0.00"}]
["MMA",null,null,{"$f":"Jurat!I$1","v":0},{"$f":"Jurat!D$33","v":"00:00:00"},"Q2","2017-06-30","Region 4","Operating Revenue","Other Revenue","Other Revenue - 9010","1.5","ACA § 9010 related payments",{"$f":"'MMA Rev-Exp Region 4'!O$15","v":{"v":0,"d":"$0.00"}},{"$f":"'MMA Rev-Exp Region 4'!P$15","v":{"v":0,"d":"$0.00"}},{"$f":"'MMA Rev-Exp Region 4'!Q$15","v":{"v":0,"d":"$0.00"}},{"$f":"'MMA Rev-Exp Region 4'!R$15","v":{"v":0,"d":"$0.00"}},{"$f":"'MMA Rev-Exp Region 4'!S$15","v":{"v":0,"d":"$0.00"}},{"$f":"'MMA Rev-Exp Region 4'!T$15","v":{"v":0,"d":"$0.00"}},{"$f":"'MMA Rev-Exp Region 4'!U$15","v":{"v":0,"d":"$0.00"}},{"$f":"'MMA Rev-Exp Region 4'!V$15","v":{"v":0,"d":"$0.00"}},{"$f":"'MMA Rev-Exp Region 4'!W$15","v":{"v":0,"d":"$0.00"}},{"$f":"'MMA Rev-Exp Region 4'!X$15","v":{"v":0,"d":"$0.00"}},{"$f":"'MMA Rev-Exp Region 4'!Y$15","v":{"v":0,"d":"$0.00"}},{"v":0,"d":"$0.00"}]
["MMA",null,null,{"$f":"Jurat!I$1","v":0},{"$f":"Jurat!D$33","v":"00:00:00"},"Q2","2017-06-30","Region 4","Operating Expense","Medical Benefits Expense","Hospital Services",2.3,"Outpatient FFS: ER",{"$f":"'MMA Rev-Exp Region 4'!O$22","v":{"v":0,"d":"$0.00"}},{"$f":"'MMA Rev-Exp Region 4'!P$22","v":{"v":0,"d":"$0.00"}},{"$f":"'MMA Rev-Exp Region 4'!Q$22","v":{"v":0,"d":"$0.00"}},{"$f":"'MMA Rev-Exp Region 4'!R$22","v":{"v":0,"d":"$0.00"}},{"$f":"'MMA Rev-Exp Region 4'!S$22","v":{"v":0,"d":"$0.00"}},{"$f":"'MMA Rev-Exp Region 4'!T$22","v":{"v":0,"d":"$0.00"}},{"$f":"'MMA Rev-Exp Region 4'!U$22","v":{"v":0,"d":"$0.00"}},{"$f":"'MMA Rev-Exp Region 4'!V$22","v":{"v":0,"d":"$0.00"}},{"$f":"'MMA Rev-Exp Region 4'!W$22","v":{"v":0,"d":"$0.00"}},{"$f":"'MMA Rev-Exp Region 4'!X$22","v":{"v":0,"d":"$0.00"}},{"$f":"'MMA Rev-Exp Region 4'!Y$22","v":{"v":0,"d":"$0.00"}},{"v":0,"d":"$0.00"}]
["MMA",null,null,{"$f":"Jurat!I$1","v":0},{"$f":"Jurat!D$33","v":"00:00:00"},"Q2","2017-06-30","Region 4","Operating Expense","Medical Benefits Expense","Hospital Services","2.6","Subcapitated Hospital Services",{"$f":"'MMA Rev-Exp Region 4'!O$25","v":{"v":0,"d":"$0.00"}},{"$f":"'MMA Rev-Exp Region 4'!P$25","v":{"v":0,"d":"$0.00"}},{"$f":"'MMA Rev-Exp Region 4'!Q$25","v":{"v":0,"d":"$0.00"}},{"$f":"'MMA Rev-Exp Region 4'!R$25","v":{"v":0,"d":"$0.00"}},{"$f":"'MMA Rev-Exp Region 4'!S$25","v":{"v":0,"d":"$0.00"}},{"$f":"'MMA Rev-Exp Region 4'!T$25","v":{"v":0,"d":"$0.00"}},{"$f":"'MMA Rev-Exp Region 4'!U$25","v":{"v":0,"d":"$0.00"}},{"$f":"'MMA Rev-Exp Region 4'!V$25","v":{"v":0,"d":"$0.00"}},{"$f":"'MMA Rev-Exp Region 4'!W$25","v":{"v":0,"d":"$0.00"}},{"$f":"'MMA Rev-Exp Region 4'!X$25","v":{"v":0,"d":"$0.00"}},{"$f":"'MMA Rev-Exp Region 4'!Y$25","v":{"v":0,"d":"$0.00"}},{"v":0,"d":"$0.00"}]
["MMA",null,null,{"$f":"Jurat!I$1","v":0},{"$f":"Jurat!D$33","v":"00:00:00"},"Q2","2017-06-30","Region 4","Operating Expense","Medical Benefits Expense","Hospital Services","2.7.1","Transplant Services",{"$f":"'MMA Rev-Exp Region 4'!O$27","v":{"v":0,"d":"$0.00"}},{"$f":"'MMA Rev-Exp Region 4'!P$27","v":{"v":0,"d":"$0.00"}},{"$f":"'MMA Rev-Exp Region 4'!Q$27","v":{"v":0,"d":"$0.00"}},{"$f":"'MMA Rev-Exp Region 4'!R$27","v":{"v":0,"d":"$0.00"}},{"$f":"'MMA Rev-Exp Region 4'!S$27","v":{"v":0,"d":"$0.00"}},{"$f":"'MMA Rev-Exp Region 4'!T$27","v":{"v":0,"d":"$0.00"}},{"$f":"'MMA Rev-Exp Region 4'!U$27","v":{"v":0,"d":"$0.00"}},{"$f":"'MMA Rev-Exp Region 4'!V$27","v":{"v":0,"d":"$0.00"}},{"$f":"'MMA Rev-Exp Region 4'!W$27","v":{"v":0,"d":"$0.00"}},{"$f":"'MMA Rev-Exp Region 4'!X$27","v":{"v":0,"d":"$0.00"}},{"$f":"'MMA Rev-Exp Region 4'!Y$27","v":{"v":0,"d":"$0.00"}},{"v":0,"d":"$0.00"}]
["MMA",null,null,{"$f":"Jurat!I$1","v":0},{"$f":"Jurat!D$33","v":"00:00:00"},"Q2","2017-06-30","Region 4","Operating Expense","Medical Benefits Expense","Professional Services","3.4","§ 1202 PCP Payments to providers",{"$f":"'MMA Rev-Exp Region 4'!O$32","v":{"v":0,"d":"$0.00"}},{"$f":"'MMA Rev-Exp Region 4'!P$32","v":{"v":0,"d":"$0.00"}},{"$f":"'MMA Rev-Exp Region 4'!Q$32","v":{"v":0,"d":"$0.00"}},{"$f":"'MMA Rev-Exp Region 4'!R$32","v":{"v":0,"d":"$0.00"}},{"$f":"'MMA Rev-Exp Region 4'!S$32","v":{"v":0,"d":"$0.00"}},{"$f":"'MMA Rev-Exp Region 4'!T$32","v":{"v":0,"d":"$0.00"}},{"$f":"'MMA Rev-Exp Region 4'!U$32","v":{"v":0,"d":"$0.00"}},{"$f":"'MMA Rev-Exp Region 4'!V$32","v":{"v":0,"d":"$0.00"}},{"$f":"'MMA Rev-Exp Region 4'!W$32","v":{"v":0,"d":"$0.00"}},{"$f":"'MMA Rev-Exp Region 4'!X$32","v":{"v":0,"d":"$0.00"}},{"$f":"'MMA Rev-Exp Region 4'!Y$32","v":{"v":0,"d":"$0.00"}},{"v":0,"d":"$0.00"}]
["MMA",null,null,{"$f":"Jurat!I$1","v":0},{"$f":"Jurat!D$33","v":"00:00:00"},"Q2","2017-06-30","Region 4","Operating Expense","Medical Benefits Expense","Professional Services","3.7","Professional Services Settlements",{"$f":"'MMA Rev-Exp Region 4'!O$35","v":{"v":0,"d":"$0.00"}},{"$f":"'MMA Rev-Exp Region 4'!P$35","v":{"v":0,"d":"$0.00"}},{"$f":"'MMA Rev-Exp Region 4'!Q$35","v":{"v":0,"d":"$0.00"}},{"$f":"'MMA Rev-Exp Region 4'!R$35","v":{"v":0,"d":"$0.00"}},{"$f":"'MMA Rev-Exp Region 4'!S$35","v":{"v":0,"d":"$0.00"}},{"$f":"'MMA Rev-Exp Region 4'!T$35","v":{"v":0,"d":"$0.00"}},{"$f":"'MMA Rev-Exp Region 4'!U$35","v":{"v":0,"d":"$0.00"}},{"$f":"'MMA Rev-Exp Region 4'!V$35","v":{"v":0,"d":"$0.00"}},{"$f":"'MMA Rev-Exp Region 4'!W$35","v":{"v":0,"d":"$0.00"}},{"$f":"'MMA Rev-Exp Region 4'!X$35","v":{"v":0,"d":"$0.00"}},{"$f":"'MMA Rev-Exp Region 4'!Y$35","v":{"v":0,"d":"$0.00"}},{"v":0,"d":"$0.00"}]
["MMA",null,null,{"$f":"Jurat!I$1","v":0},{"$f":"Jurat!D$33","v":"00:00:00"},"Q2","2017-06-30","Region 4","Operating Expense","Medical Benefits Expense","Maternity Services","4.3.1","Maternity Settlements",{"$f":"'MMA Rev-Exp Region 4'!O$39","v":{"v":0,"d":"$0.00"}},{"$f":"'MMA Rev-Exp Region 4'!P$39","v":{"v":0,"d":"$0.00"}},{"$f":"'MMA Rev-Exp Region 4'!Q$39","v":{"v":0,"d":"$0.00"}},{"$f":"'MMA Rev-Exp Region 4'!R$39","v":{"v":0,"d":"$0.00"}},{"$f":"'MMA Rev-Exp Region 4'!S$39","v":{"v":0,"d":"$0.00"}},{"$f":"'MMA Rev-Exp Region 4'!T$39","v":{"v":0,"d":"$0.00"}},{"$f":"'MMA Rev-Exp Region 4'!U$39","v":{"v":0,"d":"$0.00"}},{"$f":"'MMA Rev-Exp Region 4'!V$39","v":{"v":0,"d":"$0.00"}},{"$f":"'MMA Rev-Exp Region 4'!W$39","v":{"v":0,"d":"$0.00"}},{"$f":"'MMA Rev-Exp Region 4'!X$39","v":{"v":0,"d":"$0.00"}},{"$f":"'MMA Rev-Exp Region 4'!Y$39","v":{"v":0,"d":"$0.00"}},{"v":0,"d":"$0.00"}]
["MMA",null,null,{"$f":"Jurat!I$1","v":0},{"$f":"Jurat!D$33","v":"00:00:00"},"Q2","2017-06-30","Region 4","Operating Expense","Medical Benefits Expense","Mental Health Services",5.1,"Mental Health & Substance Abuse FFS",{"$f":"'MMA Rev-Exp Region 4'!O$41","v":{"v":0,"d":"$0.00"}},{"$f":"'MMA Rev-Exp Region 4'!P$41","v":{"v":0,"d":"$0.00"}},{"$f":"'MMA Rev-Exp Region 4'!Q$41","v":{"v":0,"d":"$0.00"}},{"$f":"'MMA Rev-Exp Region 4'!R$41","v":{"v":0,"d":"$0.00"}},{"$f":"'MMA Rev-Exp Region 4'!S$41","v":{"v":0,"d":"$0.00"}},{"$f":"'MMA Rev-Exp Region 4'!T$41","v":{"v":0,"d":"$0.00"}},{"$f":"'MMA Rev-Exp Region 4'!U$41","v":{"v":0,"d":"$0.00"}},{"$f":"'MMA Rev-Exp Region 4'!V$41","v":{"v":0,"d":"$0.00"}},{"$f":"'MMA Rev-Exp Region 4'!W$41","v":{"v":0,"d":"$0.00"}},{"$f":"'MMA Rev-Exp Region 4'!X$41","v":{"v":0,"d":"$0.00"}},{"$f":"'MMA Rev-Exp Region 4'!Y$41","v":{"v":0,"d":"$0.00"}},{"v":0,"d":"$0.00"}]
["MMA",null,null,{"$f":"Jurat!I$1","v":0},{"$f":"Jurat!D$33","v":"00:00:00"},"Q2","2017-06-30","Region 4","Operating Expense","Medical Benefits Expense","Mental Health Services","5.4","Mental Health Settlements",{"$f":"'MMA Rev-Exp Region 4'!O$44","v":{"v":0,"d":"$0.00"}},{"$f":"'MMA Rev-Exp Region 4'!P$44","v":{"v":0,"d":"$0.00"}},{"$f":"'MMA Rev-Exp Region 4'!Q$44","v":{"v":0,"d":"$0.00"}},{"$f":"'MMA Rev-Exp Region 4'!R$44","v":{"v":0,"d":"$0.00"}},{"$f":"'MMA Rev-Exp Region 4'!S$44","v":{"v":0,"d":"$0.00"}},{"$f":"'MMA Rev-Exp Region 4'!T$44","v":{"v":0,"d":"$0.00"}},{"$f":"'MMA Rev-Exp Region 4'!U$44","v":{"v":0,"d":"$0.00"}},{"$f":"'MMA Rev-Exp Region 4'!V$44","v":{"v":0,"d":"$0.00"}},{"$f":"'MMA Rev-Exp Region 4'!W$44","v":{"v":0,"d":"$0.00"}},{"$f":"'MMA Rev-Exp Region 4'!X$44","v":{"v":0,"d":"$0.00"}},{"$f":"'MMA Rev-Exp Region 4'!Y$44","v":{"v":0,"d":"$0.00"}},{"v":0,"d":"$0.00"}]
["MMA",null,null,{"$f":"Jurat!I$1","v":0},{"$f":"Jurat!D$33","v":"00:00:00"},"Q2","2017-06-30","Region 4","Operating Expense","Medical Benefits Expense","Dental Services","6.4","Dental Settlements",{"$f":"'MMA Rev-Exp Region 4'!O$49","v":{"v":0,"d":"$0.00"}},{"$f":"'MMA Rev-Exp Region 4'!P$49","v":{"v":0,"d":"$0.00"}},{"$f":"'MMA Rev-Exp Region 4'!Q$49","v":{"v":0,"d":"$0.00"}},{"$f":"'MMA Rev-Exp Region 4'!R$49","v":{"v":0,"d":"$0.00"}},{"$f":"'MMA Rev-Exp Region 4'!S$49","v":{"v":0,"d":"$0.00"}},{"$f":"'MMA Rev-Exp Region 4'!T$49","v":{"v":0,"d":"$0.00"}},{"$f":"'MMA Rev-Exp Region 4'!U$49","v":{"v":0,"d":"$0.00"}},{"$f":"'MMA Rev-Exp Region 4'!V$49","v":{"v":0,"d":"$0.00"}},{"$f":"'MMA Rev-Exp Region 4'!W$49","v":{"v":0,"d":"$0.00"}},{"$f":"'MMA Rev-Exp Region 4'!X$49","v":{"v":0,"d":"$0.00"}},{"$f":"'MMA Rev-Exp Region 4'!Y$49","v":{"v":0,"d":"$0.00"}},{"v":0,"d":"$0.00"}]
["MMA",null,null,{"$f":"Jurat!I$1","v":0},{"$f":"Jurat!D$33","v":"00:00:00"},"Q2","2017-06-30","Region 4","Operating Expense","Medical Benefits Expense","Transportation Services",7.3,"Ending IBNP for Transportation",{"$f":"'MMA Rev-Exp Region 4'!O$53","v":{"v":0,"d":"$0.00"}},{"$f":"'MMA Rev-Exp Region 4'!P$53","v":{"v":0,"d":"$0.00"}},{"$f":"'MMA Rev-Exp Region 4'!Q$53","v":{"v":0,"d":"$0.00"}},{"$f":"'MMA Rev-Exp Region 4'!R$53","v":{"v":0,"d":"$0.00"}},{"$f":"'MMA Rev-Exp Region 4'!S$53","v":{"v":0,"d":"$0.00"}},{"$f":"'MMA Rev-Exp Region 4'!T$53","v":{"v":0,"d":"$0.00"}},{"$f":"'MMA Rev-Exp Region 4'!U$53","v":{"v":0,"d":"$0.00"}},{"$f":"'MMA Rev-Exp Region 4'!V$53","v":{"v":0,"d":"$0.00"}},{"$f":"'MMA Rev-Exp Region 4'!W$53","v":{"v":0,"d":"$0.00"}},{"$f":"'MMA Rev-Exp Region 4'!X$53","v":{"v":0,"d":"$0.00"}},{"$f":"'MMA Rev-Exp Region 4'!Y$53","v":{"v":0,"d":"$0.00"}},{"v":0,"d":"$0.00"}]
["MMA",null,null,{"$f":"Jurat!I$1","v":0},{"$f":"Jurat!D$33","v":"00:00:00"},"Q2","2017-06-30","Region 4","Operating Expense","Medical Benefits Expense","Pharmacy Services",8.1,"Prescription Drugs FFS",{"$f":"'MMA Rev-Exp Region 4'!O$56","v":{"v":0,"d":"$0.00"}},{"$f":"'MMA Rev-Exp Region 4'!P$56","v":{"v":0,"d":"$0.00"}},{"$f":"'MMA Rev-Exp Region 4'!Q$56","v":{"v":0,"d":"$0.00"}},{"$f":"'MMA Rev-Exp Region 4'!R$56","v":{"v":0,"d":"$0.00"}},{"$f":"'MMA Rev-Exp Region 4'!S$56","v":{"v":0,"d":"$0.00"}},{"$f":"'MMA Rev-Exp Region 4'!T$56","v":{"v":0,"d":"$0.00"}},{"$f":"'MMA Rev-Exp Region 4'!U$56","v":{"v":0,"d":"$0.00"}},{"$f":"'MMA Rev-Exp Region 4'!V$56","v":{"v":0,"d":"$0.00"}},{"$f":"'MMA Rev-Exp Region 4'!W$56","v":{"v":0,"d":"$0.00"}},{"$f":"'MMA Rev-Exp Region 4'!X$56","v":{"v":0,"d":"$0.00"}},{"$f":"'MMA Rev-Exp Region 4'!Y$56","v":{"v":0,"d":"$0.00"}},{"v":0,"d":"$0.00"}]
["MMA",null,null,{"$f":"Jurat!I$1","v":0},{"$f":"Jurat!D$33","v":"00:00:00"},"Q2","2017-06-30","Region 4","Operating Expense","Medical Benefits Expense","Pharmacy Services","8.5","Ending accrual for Rebates receivable",{"$f":"'MMA Rev-Exp Region 4'!O$60","v":{"v":0,"d":"$0.00"}},{"$f":"'MMA Rev-Exp Region 4'!P$60","v":{"v":0,"d":"$0.00"}},{"$f":"'MMA Rev-Exp Region 4'!Q$60","v":{"v":0,"d":"$0.00"}},{"$f":"'MMA Rev-Exp Region 4'!R$60","v":{"v":0,"d":"$0.00"}},{"$f":"'MMA Rev-Exp Region 4'!S$60","v":{"v":0,"d":"$0.00"}},{"$f":"'MMA Rev-Exp Region 4'!T$60","v":{"v":0,"d":"$0.00"}},{"$f":"'MMA Rev-Exp Region 4'!U$60","v":{"v":0,"d":"$0.00"}},{"$f":"'MMA Rev-Exp Region 4'!V$60","v":{"v":0,"d":"$0.00"}},{"$f":"'MMA Rev-Exp Region 4'!W$60","v":{"v":0,"d":"$0.00"}},{"$f":"'MMA Rev-Exp Region 4'!X$60","v":{"v":0,"d":"$0.00"}},{"$f":"'MMA Rev-Exp Region 4'!Y$60","v":{"v":0,"d":"$0.00"}},{"v":0,"d":"$0.00"}]
["MMA",null,null,{"$f":"Jurat!I$1","v":0},{"$f":"Jurat!D$33","v":"00:00:00"},"Q2","2017-06-30","Region 4","Operating Expense","Medical Benefits Expense","Other MMA Services",9.1,"Home Health, Private Duty Nursing, Personal Care FFS",{"$f":"'MMA Rev-Exp Region 4'!O$64","v":{"v":0,"d":"$0.00"}},{"$f":"'MMA Rev-Exp Region 4'!P$64","v":{"v":0,"d":"$0.00"}},{"$f":"'MMA Rev-Exp Region 4'!Q$64","v":{"v":0,"d":"$0.00"}},{"$f":"'MMA Rev-Exp Region 4'!R$64","v":{"v":0,"d":"$0.00"}},{"$f":"'MMA Rev-Exp Region 4'!S$64","v":{"v":0,"d":"$0.00"}},{"$f":"'MMA Rev-Exp Region 4'!T$64","v":{"v":0,"d":"$0.00"}},{"$f":"'MMA Rev-Exp Region 4'!U$64","v":{"v":0,"d":"$0.00"}},{"$f":"'MMA Rev-Exp Region 4'!V$64","v":{"v":0,"d":"$0.00"}},{"$f":"'MMA Rev-Exp Region 4'!W$64","v":{"v":0,"d":"$0.00"}},{"$f":"'MMA Rev-Exp Region 4'!X$64","v":{"v":0,"d":"$0.00"}},{"$f":"'MMA Rev-Exp Region 4'!Y$64","v":{"v":0,"d":"$0.00"}},{"v":0,"d":"$0.00"}]
["MMA",null,null,{"$f":"Jurat!I$1","v":0},{"$f":"Jurat!D$33","v":"00:00:00"},"Q2","2017-06-30","Region 4","Operating Expense","Medical Benefits Expense","Other MMA Services","9.2","Hospice FFS",{"$f":"'MMA Rev-Exp Region 4'!O$65","v":{"v":0,"d":"$0.00"}},{"$f":"'MMA Rev-Exp Region 4'!P$65","v":{"v":0,"d":"$0.00"}},{"$f":"'MMA Rev-Exp Region 4'!Q$65","v":{"v":0,"d":"$0.00"}},{"$f":"'MMA Rev-Exp Region 4'!R$65","v":{"v":0,"d":"$0.00"}},{"$f":"'MMA Rev-Exp Region 4'!S$65","v":{"v":0,"d":"$0.00"}},{"$f":"'MMA Rev-Exp Region 4'!T$65","v":{"v":0,"d":"$0.00"}},{"$f":"'MMA Rev-Exp Region 4'!U$65","v":{"v":0,"d":"$0.00"}},{"$f":"'MMA Rev-Exp Region 4'!V$65","v":{"v":0,"d":"$0.00"}},{"$f":"'MMA Rev-Exp Region 4'!W$65","v":{"v":0,"d":"$0.00"}},{"$f":"'MMA Rev-Exp Region 4'!X$65","v":{"v":0,"d":"$0.00"}},{"$f":"'MMA Rev-Exp Region 4'!Y$65","v":{"v":0,"d":"$0.00"}},{"v":0,"d":"$0.00"}]
["MMA",null,null,{"$f":"Jurat!I$1","v":0},{"$f":"Jurat!D$33","v":"00:00:00"},"Q2","2017-06-30","Region 4","Operating Expense","Medical Benefits Expense","Other MMA Services","9.5","Other Services Subcapitation",{"$f":"'MMA Rev-Exp Region 4'!O$68","v":{"v":0,"d":"$0.00"}},{"$f":"'MMA Rev-Exp Region 4'!P$68","v":{"v":0,"d":"$0.00"}},{"$f":"'MMA Rev-Exp Region 4'!Q$68","v":{"v":0,"d":"$0.00"}},{"$f":"'MMA Rev-Exp Region 4'!R$68","v":{"v":0,"d":"$0.00"}},{"$f":"'MMA Rev-Exp Region 4'!S$68","v":{"v":0,"d":"$0.00"}},{"$f":"'MMA Rev-Exp Region 4'!T$68","v":{"v":0,"d":"$0.00"}},{"$f":"'MMA Rev-Exp Region 4'!U$68","v":{"v":0,"d":"$0.00"}},{"$f":"'MMA Rev-Exp Region 4'!V$68","v":{"v":0,"d":"$0.00"}},{"$f":"'MMA Rev-Exp Region 4'!W$68","v":{"v":0,"d":"$0.00"}},{"$f":"'MMA Rev-Exp Region 4'!X$68","v":{"v":0,"d":"$0.00"}},{"$f":"'MMA Rev-Exp Region 4'!Y$68","v":{"v":0,"d":"$0.00"}},{"v":0,"d":"$0.00"}]
["MMA",null,null,{"$f":"Jurat!I$1","v":0},{"$f":"Jurat!D$33","v":"00:00:00"},"Q2","2017-06-30","Region 4","Operating Expense","Medical Benefits Expense","Expanded Benefits","10.1","Expanded Benefits FFS",{"$f":"'MMA Rev-Exp Region 4'!O$72","v":{"v":0,"d":"$0.00"}},{"$f":"'MMA Rev-Exp Region 4'!P$72","v":{"v":0,"d":"$0.00"}},{"$f":"'MMA Rev-Exp Region 4'!Q$72","v":{"v":0,"d":"$0.00"}},{"$f":"'MMA Rev-Exp Region 4'!R$72","v":{"v":0,"d":"$0.00"}},{"$f":"'MMA Rev-Exp Region 4'!S$72","v":{"v":0,"d":"$0.00"}},{"$f":"'MMA Rev-Exp Region 4'!T$72","v":{"v":0,"d":"$0.00"}},{"$f":"'MMA Rev-Exp Region 4'!U$72","v":{"v":0,"d":"$0.00"}},{"$f":"'MMA Rev-Exp Region 4'!V$72","v":{"v":0,"d":"$0.00"}},{"$f":"'MMA Rev-Exp Region 4'!W$72","v":{"v":0,"d":"$0.00"}},{"$f":"'MMA Rev-Exp Region 4'!X$72","v":{"v":0,"d":"$0.00"}},{"$f":"'MMA Rev-Exp Region 4'!Y$72","v":{"v":0,"d":"$0.00"}},{"v":0,"d":"$0.00"}]
["MMA",null,null,{"$f":"Jurat!I$1","v":0},{"$f":"Jurat!D$33","v":"00:00:00"},"Q2","2017-06-30","Region 4","Operating Expense","Medical Benefits Expense","Other Medical","11.5","TPL & Fraud/Abuse Recoveries",{"$f":"'MMA Rev-Exp Region 4'!O$81","v":{"v":0,"d":"$0.00"}},{"$f":"'MMA Rev-Exp Region 4'!P$81","v":{"v":0,"d":"$0.00"}},{"$f":"'MMA Rev-Exp Region 4'!Q$81","v":{"v":0,"d":"$0.00"}},{"$f":"'MMA Rev-Exp Region 4'!R$81","v":{"v":0,"d":"$0.00"}},{"$f":"'MMA Rev-Exp Region 4'!S$81","v":{"v":0,"d":"$0.00"}},{"$f":"'MMA Rev-Exp Region 4'!T$81","v":{"v":0,"d":"$0.00"}},{"$f":"'MMA Rev-Exp Region 4'!U$81","v":{"v":0,"d":"$0.00"}},{"$f":"'MMA Rev-Exp Region 4'!V$81","v":{"v":0,"d":"$0.00"}},{"$f":"'MMA Rev-Exp Region 4'!W$81","v":{"v":0,"d":"$0.00"}},{"$f":"'MMA Rev-Exp Region 4'!X$81","v":{"v":0,"d":"$0.00"}},{"$f":"'MMA Rev-Exp Region 4'!Y$81","v":{"v":0,"d":"$0.00"}},{"v":0,"d":"$0.00"}]
["MMA",null,null,{"$f":"Jurat!I$1","v":0},{"$f":"Jurat!D$33","v":"00:00:00"},"Q2","2017-06-30","Region 4","Operating Expense","Medical Benefits Expense","Other Medical","11.9","Reinsurance Recoveries",{"$f":"'MMA Rev-Exp Region 4'!O$85","v":{"v":0,"d":"$0.00"}},{"$f":"'MMA Rev-Exp Region 4'!P$85","v":{"v":0,"d":"$0.00"}},{"$f":"'MMA Rev-Exp Region 4'!Q$85","v":{"v":0,"d":"$0.00"}},{"$f":"'MMA Rev-Exp Region 4'!R$85","v":{"v":0,"d":"$0.00"}},{"$f":"'MMA Rev-Exp Region 4'!S$85","v":{"v":0,"d":"$0.00"}},{"$f":"'MMA Rev-Exp Region 4'!T$85","v":{"v":0,"d":"$0.00"}},{"$f":"'MMA Rev-Exp Region 4'!U$85","v":{"v":0,"d":"$0.00"}},{"$f":"'MMA Rev-Exp Region 4'!V$85","v":{"v":0,"d":"$0.00"}},{"$f":"'MMA Rev-Exp Region 4'!W$85","v":{"v":0,"d":"$0.00"}},{"$f":"'MMA Rev-Exp Region 4'!X$85","v":{"v":0,"d":"$0.00"}},{"$f":"'MMA Rev-Exp Region 4'!Y$85","v":{"v":0,"d":"$0.00"}},{"v":0,"d":"$0.00"}]
["MMA",null,null,{"$f":"Jurat!I$1","v":0},{"$f":"Jurat!D$33","v":"00:00:00"},"Q2","2017-06-30","Region 4","Operating Expense","Administrative Expense","Administrative","12.3","Information Systems",{"$f":"'MMA Rev-Exp Region 4'!O$92","v":{"v":0,"d":"$0.00"}},{"v":0,"d":"$0.00"},{"v":0,"d":"$0.00"},{"v":0,"d":"$0.00"},{"v":0,"d":"$0.00"},{"v":0,"d":"$0.00"},{"v":0,"d":"$0.00"},{"v":0,"d":"$0.00"},{"v":0,"d":"$0.00"},{"v":0,"d":"$0.00"},{"v":0,"d":"$0.00"},{"v":0,"d":"$0.00"}]
["MMA",null,null,{"$f":"Jurat!I$1","v":0},{"$f":"Jurat!D$33","v":"00:00:00"},"Q2","2017-06-30","Region 4","Operating Expense","Administrative Expense","Administrative","12.6","Compliance/Regulatory",{"$f":"'MMA Rev-Exp Region 4'!O$95","v":{"v":0,"d":"$0.00"}},{"v":0,"d":"$0.00"},{"v":0,"d":"$0.00"},{"v":0,"d":"$0.00"},{"v":0,"d":"$0.00"},{"v":0,"d":"$0.00"},{"v":0,"d":"$0.00"},{"v":0,"d":"$0.00"},{"v":0,"d":"$0.00"},{"v":0,"d":"$0.00"},{"v":0,"d":"$0.00"},{"v":0,"d":"$0.00"}]
["MMA",null,null,{"$f":"Jurat!I$1","v":0},{"$f":"Jurat!D$33","v":"00:00:00"},"Q2","2017-06-30","Region 4","Operating Expense","Taxes & Fees","Taxes & Fees","13.3","Section 9010 Health Insurance Providers Fee",{"$f":"'MMA Rev-Exp Region 4'!O$99","v":{"v":0,"d":"$0.00"}},{"v":0,"d":"$0.00"},{"v":0,"d":"$0.00"},{"v":0,"d":"$0.00"},{"v":0,"d":"$0.00"},{"v":0,"d":"$0.00"},{"v":0,"d":"$0.00"},{"v":0,"d":"$0.00"},{"v":0,"d":"$0.00"},{"v":0,"d":"$0.00"},{"v":0,"d":"$0.00"},{"v":0,"d":"$0.00"}]
["MMA",null,null,{"$f":"Jurat!I$1","v":0},{"$f":"Jurat!D$33","v":"00:00:00"},"Q2","2017-06-30","Region 4","Non-Operating Expense","Income Tax Expense","Income Tax Expense","16.0","Income Tax Expense",{"$f":"'MMA Rev-Exp Region 4'!O$106","v":{"v":0,"d":"$0.00"}},{"v":0,"d":"$0.00"},{"v":0,"d":"$0.00"},{"v":0,"d":"$0.00"},{"v":0,"d":"$0.00"},{"v":0,"d":"$0.00"},{"v":0,"d":"$0.00"},{"v":0,"d":"$0.00"},{"v":0,"d":"$0.00"},{"v":0,"d":"$0.00"},{"v":0,"d":"$0.00"},{"v":0,"d":"$0.00"}]
["MMA",null,null,{"$f":"Jurat!I$1","v":0},{"$f":"Jurat!D$33","v":"00:00:00"},"Q3","2017-09-30","Region 4","Operating Revenue","Kick Payments","Kick Payments - Transplant",1.2,"Transplant Kick Payments",{"$f":"'MMA Rev-Exp Region 4'!Z$12","v":{"v":0,"d":"$0.00"}},{"$f":"'MMA Rev-Exp Region 4'!AA$12","v":{"v":0,"d":"$0.00"}},{"$f":"'MMA Rev-Exp Region 4'!AB$12","v":{"v":0,"d":"$0.00"}},{"$f":"'MMA Rev-Exp Region 4'!AC$12","v":{"v":0,"d":"$0.00"}},{"$f":"'MMA Rev-Exp Region 4'!AD$12","v":{"v":0,"d":"$0.00"}},{"$f":"'MMA Rev-Exp Region 4'!AE$12","v":{"v":0,"d":"$0.00"}},{"$f":"'MMA Rev-Exp Region 4'!AF$12","v":{"v":0,"d":"$0.00"}},{"$f":"'MMA Rev-Exp Region 4'!AG$12","v":{"v":0,"d":"$0.00"}},{"$f":"'MMA Rev-Exp Region 4'!AH$12","v":{"v":0,"d":"$0.00"}},{"$f":"'MMA Rev-Exp Region 4'!AI$12","v":{"v":0,"d":"$0.00"}},{"$f":"'MMA Rev-Exp Region 4'!AJ$12","v":{"v":0,"d":"$0.00"}},{"v":0,"d":"$0.00"}]
["MMA",null,null,{"$f":"Jurat!I$1","v":0},{"$f":"Jurat!D$33","v":"00:00:00"},"Q3","2017-09-30","Region 4","Operating Revenue","Other Revenue","Other Revenue - 9010","1.5","ACA § 9010 related payments",{"$f":"'MMA Rev-Exp Region 4'!Z$15","v":{"v":0,"d":"$0.00"}},{"$f":"'MMA Rev-Exp Region 4'!AA$15","v":{"v":0,"d":"$0.00"}},{"$f":"'MMA Rev-Exp Region 4'!AB$15","v":{"v":0,"d":"$0.00"}},{"$f":"'MMA Rev-Exp Region 4'!AC$15","v":{"v":0,"d":"$0.00"}},{"$f":"'MMA Rev-Exp Region 4'!AD$15","v":{"v":0,"d":"$0.00"}},{"$f":"'MMA Rev-Exp Region 4'!AE$15","v":{"v":0,"d":"$0.00"}},{"$f":"'MMA Rev-Exp Region 4'!AF$15","v":{"v":0,"d":"$0.00"}},{"$f":"'MMA Rev-Exp Region 4'!AG$15","v":{"v":0,"d":"$0.00"}},{"$f":"'MMA Rev-Exp Region 4'!AH$15","v":{"v":0,"d":"$0.00"}},{"$f":"'MMA Rev-Exp Region 4'!AI$15","v":{"v":0,"d":"$0.00"}},{"$f":"'MMA Rev-Exp Region 4'!AJ$15","v":{"v":0,"d":"$0.00"}},{"v":0,"d":"$0.00"}]
["MMA",null,null,{"$f":"Jurat!I$1","v":0},{"$f":"Jurat!D$33","v":"00:00:00"},"Q3","2017-09-30","Region 4","Operating Expense","Medical Benefits Expense","Hospital Services",2.3,"Outpatient FFS: ER",{"$f":"'MMA Rev-Exp Region 4'!Z$22","v":{"v":0,"d":"$0.00"}},{"$f":"'MMA Rev-Exp Region 4'!AA$22","v":{"v":0,"d":"$0.00"}},{"$f":"'MMA Rev-Exp Region 4'!AB$22","v":{"v":0,"d":"$0.00"}},{"$f":"'MMA Rev-Exp Region 4'!AC$22","v":{"v":0,"d":"$0.00"}},{"$f":"'MMA Rev-Exp Region 4'!AD$22","v":{"v":0,"d":"$0.00"}},{"$f":"'MMA Rev-Exp Region 4'!AE$22","v":{"v":0,"d":"$0.00"}},{"$f":"'MMA Rev-Exp Region 4'!AF$22","v":{"v":0,"d":"$0.00"}},{"$f":"'MMA Rev-Exp Region 4'!AG$22","v":{"v":0,"d":"$0.00"}},{"$f":"'MMA Rev-Exp Region 4'!AH$22","v":{"v":0,"d":"$0.00"}},{"$f":"'MMA Rev-Exp Region 4'!AI$22","v":{"v":0,"d":"$0.00"}},{"$f":"'MMA Rev-Exp Region 4'!AJ$22","v":{"v":0,"d":"$0.00"}},{"v":0,"d":"$0.00"}]
["MMA",null,null,{"$f":"Jurat!I$1","v":0},{"$f":"Jurat!D$33","v":"00:00:00"},"Q3","2017-09-30","Region 4","Operating Expense","Medical Benefits Expense","Hospital Services","2.6","Subcapitated Hospital Services",{"$f":"'MMA Rev-Exp Region 4'!Z$25","v":{"v":0,"d":"$0.00"}},{"$f":"'MMA Rev-Exp Region 4'!AA$25","v":{"v":0,"d":"$0.00"}},{"$f":"'MMA Rev-Exp Region 4'!AB$25","v":{"v":0,"d":"$0.00"}},{"$f":"'MMA Rev-Exp Region 4'!AC$25","v":{"v":0,"d":"$0.00"}},{"$f":"'MMA Rev-Exp Region 4'!AD$25","v":{"v":0,"d":"$0.00"}},{"$f":"'MMA Rev-Exp Region 4'!AE$25","v":{"v":0,"d":"$0.00"}},{"$f":"'MMA Rev-Exp Region 4'!AF$25","v":{"v":0,"d":"$0.00"}},{"$f":"'MMA Rev-Exp Region 4'!AG$25","v":{"v":0,"d":"$0.00"}},{"$f":"'MMA Rev-Exp Region 4'!AH$25","v":{"v":0,"d":"$0.00"}},{"$f":"'MMA Rev-Exp Region 4'!AI$25","v":{"v":0,"d":"$0.00"}},{"$f":"'MMA Rev-Exp Region 4'!AJ$25","v":{"v":0,"d":"$0.00"}},{"v":0,"d":"$0.00"}]
["MMA",null,null,{"$f":"Jurat!I$1","v":0},{"$f":"Jurat!D$33","v":"00:00:00"},"Q3","2017-09-30","Region 4","Operating Expense","Medical Benefits Expense","Professional Services",3.1,"Primary Care FFS",{"$f":"'MMA Rev-Exp Region 4'!Z$29","v":{"v":0,"d":"$0.00"}},{"$f":"'MMA Rev-Exp Region 4'!AA$29","v":{"v":0,"d":"$0.00"}},{"$f":"'MMA Rev-Exp Region 4'!AB$29","v":{"v":0,"d":"$0.00"}},{"$f":"'MMA Rev-Exp Region 4'!AC$29","v":{"v":0,"d":"$0.00"}},{"$f":"'MMA Rev-Exp Region 4'!AD$29","v":{"v":0,"d":"$0.00"}},{"$f":"'MMA Rev-Exp Region 4'!AE$29","v":{"v":0,"d":"$0.00"}},{"$f":"'MMA Rev-Exp Region 4'!AF$29","v":{"v":0,"d":"$0.00"}},{"$f":"'MMA Rev-Exp Region 4'!AG$29","v":{"v":0,"d":"$0.00"}},{"$f":"'MMA Rev-Exp Region 4'!AH$29","v":{"v":0,"d":"$0.00"}},{"$f":"'MMA Rev-Exp Region 4'!AI$29","v":{"v":0,"d":"$0.00"}},{"$f":"'MMA Rev-Exp Region 4'!AJ$29","v":{"v":0,"d":"$0.00"}},{"v":0,"d":"$0.00"}]
["MMA",null,null,{"$f":"Jurat!I$1","v":0},{"$f":"Jurat!D$33","v":"00:00:00"},"Q3","2017-09-30","Region 4","Operating Expense","Medical Benefits Expense","Professional Services","3.5","Subcapitated Professional Services",{"$f":"'MMA Rev-Exp Region 4'!Z$33","v":{"v":0,"d":"$0.00"}},{"$f":"'MMA Rev-Exp Region 4'!AA$33","v":{"v":0,"d":"$0.00"}},{"$f":"'MMA Rev-Exp Region 4'!AB$33","v":{"v":0,"d":"$0.00"}},{"$f":"'MMA Rev-Exp Region 4'!AC$33","v":{"v":0,"d":"$0.00"}},{"$f":"'MMA Rev-Exp Region 4'!AD$33","v":{"v":0,"d":"$0.00"}},{"$f":"'MMA Rev-Exp Region 4'!AE$33","v":{"v":0,"d":"$0.00"}},{"$f":"'MMA Rev-Exp Region 4'!AF$33","v":{"v":0,"d":"$0.00"}},{"$f":"'MMA Rev-Exp Region 4'!AG$33","v":{"v":0,"d":"$0.00"}},{"$f":"'MMA Rev-Exp Region 4'!AH$33","v":{"v":0,"d":"$0.00"}},{"$f":"'MMA Rev-Exp Region 4'!AI$33","v":{"v":0,"d":"$0.00"}},{"$f":"'MMA Rev-Exp Region 4'!AJ$33","v":{"v":0,"d":"$0.00"}},{"v":0,"d":"$0.00"}]
["MMA",null,null,{"$f":"Jurat!I$1","v":0},{"$f":"Jurat!D$33","v":"00:00:00"},"Q3","2017-09-30","Region 4","Operating Expense","Medical Benefits Expense","Professional Services","3.6","Ending IBNP for Professional Services",{"$f":"'MMA Rev-Exp Region 4'!Z$34","v":{"v":0,"d":"$0.00"}},{"$f":"'MMA Rev-Exp Region 4'!AA$34","v":{"v":0,"d":"$0.00"}},{"$f":"'MMA Rev-Exp Region 4'!AB$34","v":{"v":0,"d":"$0.00"}},{"$f":"'MMA Rev-Exp Region 4'!AC$34","v":{"v":0,"d":"$0.00"}},{"$f":"'MMA Rev-Exp Region 4'!AD$34","v":{"v":0,"d":"$0.00"}},{"$f":"'MMA Rev-Exp Region 4'!AE$34","v":{"v":0,"d":"$0.00"}},{"$f":"'MMA Rev-Exp Region 4'!AF$34","v":{"v":0,"d":"$0.00"}},{"$f":"'MMA Rev-Exp Region 4'!AG$34","v":{"v":0,"d":"$0.00"}},{"$f":"'MMA Rev-Exp Region 4'!AH$34","v":{"v":0,"d":"$0.00"}},{"$f":"'MMA Rev-Exp Region 4'!AI$34","v":{"v":0,"d":"$0.00"}},{"$f":"'MMA Rev-Exp Region 4'!AJ$34","v":{"v":0,"d":"$0.00"}},{"v":0,"d":"$0.00"}]
["MMA",null,null,{"$f":"Jurat!I$1","v":0},{"$f":"Jurat!D$33","v":"00:00:00"},"Q3","2017-09-30","Region 4","Operating Expense","Medical Benefits Expense","Maternity Services","4.1.1","Maternity Services",{"$f":"'MMA Rev-Exp Region 4'!Z$37","v":{"v":0,"d":"$0.00"}},{"$f":"'MMA Rev-Exp Region 4'!AA$37","v":{"v":0,"d":"$0.00"}},{"$f":"'MMA Rev-Exp Region 4'!AB$37","v":{"v":0,"d":"$0.00"}},{"$f":"'MMA Rev-Exp Region 4'!AC$37","v":{"v":0,"d":"$0.00"}},{"$f":"'MMA Rev-Exp Region 4'!AD$37","v":{"v":0,"d":"$0.00"}},{"$f":"'MMA Rev-Exp Region 4'!AE$37","v":{"v":0,"d":"$0.00"}},{"$f":"'MMA Rev-Exp Region 4'!AF$37","v":{"v":0,"d":"$0.00"}},{"$f":"'MMA Rev-Exp Region 4'!AG$37","v":{"v":0,"d":"$0.00"}},{"$f":"'MMA Rev-Exp Region 4'!AH$37","v":{"v":0,"d":"$0.00"}},{"$f":"'MMA Rev-Exp Region 4'!AI$37","v":{"v":0,"d":"$0.00"}},{"$f":"'MMA Rev-Exp Region 4'!AJ$37","v":{"v":0,"d":"$0.00"}},{"v":0,"d":"$0.00"}]
["MMA",null,null,{"$f":"Jurat!I$1","v":0},{"$f":"Jurat!D$33","v":"00:00:00"},"Q3","2017-09-30","Region 4","Operating Expense","Medical Benefits Expense","Mental Health Services",5.1,"Mental Health & Substance Abuse FFS",{"$f":"'MMA Rev-Exp Region 4'!Z$41","v":{"v":0,"d":"$0.00"}},{"$f":"'MMA Rev-Exp Region 4'!AA$41","v":{"v":0,"d":"$0.00"}},{"$f":"'MMA Rev-Exp Region 4'!AB$41","v":{"v":0,"d":"$0.00"}},{"$f":"'MMA Rev-Exp Region 4'!AC$41","v":{"v":0,"d":"$0.00"}},{"$f":"'MMA Rev-Exp Region 4'!AD$41","v":{"v":0,"d":"$0.00"}},{"$f":"'MMA Rev-Exp Region 4'!AE$41","v":{"v":0,"d":"$0.00"}},{"$f":"'MMA Rev-Exp Region 4'!AF$41","v":{"v":0,"d":"$0.00"}},{"$f":"'MMA Rev-Exp Region 4'!AG$41","v":{"v":0,"d":"$0.00"}},{"$f":"'MMA Rev-Exp Region 4'!AH$41","v":{"v":0,"d":"$0.00"}},{"$f":"'MMA Rev-Exp Region 4'!AI$41","v":{"v":0,"d":"$0.00"}},{"$f":"'MMA Rev-Exp Region 4'!AJ$41","v":{"v":0,"d":"$0.00"}},{"v":0,"d":"$0.00"}]
["MMA",null,null,{"$f":"Jurat!I$1","v":0},{"$f":"Jurat!D$33","v":"00:00:00"},"Q3","2017-09-30","Region 4","Operating Expense","Medical Benefits Expense","Mental Health Services","5.4","Mental Health Settlements",{"$f":"'MMA Rev-Exp Region 4'!Z$44","v":{"v":0,"d":"$0.00"}},{"$f":"'MMA Rev-Exp Region 4'!AA$44","v":{"v":0,"d":"$0.00"}},{"$f":"'MMA Rev-Exp Region 4'!AB$44","v":{"v":0,"d":"$0.00"}},{"$f":"'MMA Rev-Exp Region 4'!AC$44","v":{"v":0,"d":"$0.00"}},{"$f":"'MMA Rev-Exp Region 4'!AD$44","v":{"v":0,"d":"$0.00"}},{"$f":"'MMA Rev-Exp Region 4'!AE$44","v":{"v":0,"d":"$0.00"}},{"$f":"'MMA Rev-Exp Region 4'!AF$44","v":{"v":0,"d":"$0.00"}},{"$f":"'MMA Rev-Exp Region 4'!AG$44","v":{"v":0,"d":"$0.00"}},{"$f":"'MMA Rev-Exp Region 4'!AH$44","v":{"v":0,"d":"$0.00"}},{"$f":"'MMA Rev-Exp Region 4'!AI$44","v":{"v":0,"d":"$0.00"}},{"$f":"'MMA Rev-Exp Region 4'!AJ$44","v":{"v":0,"d":"$0.00"}},{"v":0,"d":"$0.00"}]
["MMA",null,null,{"$f":"Jurat!I$1","v":0},{"$f":"Jurat!D$33","v":"00:00:00"},"Q3","2017-09-30","Region 4","Operating Expense","Medical Benefits Expense","Dental Services","6.4","Dental Settlements",{"$f":"'MMA Rev-Exp Region 4'!Z$49","v":{"v":0,"d":"$0.00"}},{"$f":"'MMA Rev-Exp Region 4'!AA$49","v":{"v":0,"d":"$0.00"}},{"$f":"'MMA Rev-Exp Region 4'!AB$49","v":{"v":0,"d":"$0.00"}},{"$f":"'MMA Rev-Exp Region 4'!AC$49","v":{"v":0,"d":"$0.00"}},{"$f":"'MMA Rev-Exp Region 4'!AD$49","v":{"v":0,"d":"$0.00"}},{"$f":"'MMA Rev-Exp Region 4'!AE$49","v":{"v":0,"d":"$0.00"}},{"$f":"'MMA Rev-Exp Region 4'!AF$49","v":{"v":0,"d":"$0.00"}},{"$f":"'MMA Rev-Exp Region 4'!AG$49","v":{"v":0,"d":"$0.00"}},{"$f":"'MMA Rev-Exp Region 4'!AH$49","v":{"v":0,"d":"$0.00"}},{"$f":"'MMA Rev-Exp Region 4'!AI$49","v":{"v":0,"d":"$0.00"}},{"$f":"'MMA Rev-Exp Region 4'!AJ$49","v":{"v":0,"d":"$0.00"}},{"v":0,"d":"$0.00"}]
["MMA",null,null,{"$f":"Jurat!I$1","v":0},{"$f":"Jurat!D$33","v":"00:00:00"},"Q3","2017-09-30","Region 4","Operating Expense","Medical Benefits Expense","Transportation Services",7.3,"Ending IBNP for Transportation",{"$f":"'MMA Rev-Exp Region 4'!Z$53","v":{"v":0,"d":"$0.00"}},{"$f":"'MMA Rev-Exp Region 4'!AA$53","v":{"v":0,"d":"$0.00"}},{"$f":"'MMA Rev-Exp Region 4'!AB$53","v":{"v":0,"d":"$0.00"}},{"$f":"'MMA Rev-Exp Region 4'!AC$53","v":{"v":0,"d":"$0.00"}},{"$f":"'MMA Rev-Exp Region 4'!AD$53","v":{"v":0,"d":"$0.00"}},{"$f":"'MMA Rev-Exp Region 4'!AE$53","v":{"v":0,"d":"$0.00"}},{"$f":"'MMA Rev-Exp Region 4'!AF$53","v":{"v":0,"d":"$0.00"}},{"$f":"'MMA Rev-Exp Region 4'!AG$53","v":{"v":0,"d":"$0.00"}},{"$f":"'MMA Rev-Exp Region 4'!AH$53","v":{"v":0,"d":"$0.00"}},{"$f":"'MMA Rev-Exp Region 4'!AI$53","v":{"v":0,"d":"$0.00"}},{"$f":"'MMA Rev-Exp Region 4'!AJ$53","v":{"v":0,"d":"$0.00"}},{"v":0,"d":"$0.00"}]
["MMA",null,null,{"$f":"Jurat!I$1","v":0},{"$f":"Jurat!D$33","v":"00:00:00"},"Q3","2017-09-30","Region 4","Operating Expense","Medical Benefits Expense","Pharmacy Services","8.3","Ending IBNP for Prescription Drugs",{"$f":"'MMA Rev-Exp Region 4'!Z$58","v":{"v":0,"d":"$0.00"}},{"$f":"'MMA Rev-Exp Region 4'!AA$58","v":{"v":0,"d":"$0.00"}},{"$f":"'MMA Rev-Exp Region 4'!AB$58","v":{"v":0,"d":"$0.00"}},{"$f":"'MMA Rev-Exp Region 4'!AC$58","v":{"v":0,"d":"$0.00"}},{"$f":"'MMA Rev-Exp Region 4'!AD$58","v":{"v":0,"d":"$0.00"}},{"$f":"'MMA Rev-Exp Region 4'!AE$58","v":{"v":0,"d":"$0.00"}},{"$f":"'MMA Rev-Exp Region 4'!AF$58","v":{"v":0,"d":"$0.00"}},{"$f":"'MMA Rev-Exp Region 4'!AG$58","v":{"v":0,"d":"$0.00"}},{"$f":"'MMA Rev-Exp Region 4'!AH$58","v":{"v":0,"d":"$0.00"}},{"$f":"'MMA Rev-Exp Region 4'!AI$58","v":{"v":0,"d":"$0.00"}},{"$f":"'MMA Rev-Exp Region 4'!AJ$58","v":{"v":0,"d":"$0.00"}},{"v":0,"d":"$0.00"}]
["MMA",null,null,{"$f":"Jurat!I$1","v":0},{"$f":"Jurat!D$33","v":"00:00:00"},"Q3","2017-09-30","Region 4","Operating Expense","Medical Benefits Expense","Pharmacy Services","8.6","Prescription Drugs Subcapitation",{"$f":"'MMA Rev-Exp Region 4'!Z$61","v":{"v":0,"d":"$0.00"}},{"$f":"'MMA Rev-Exp Region 4'!AA$61","v":{"v":0,"d":"$0.00"}},{"$f":"'MMA Rev-Exp Region 4'!AB$61","v":{"v":0,"d":"$0.00"}},{"$f":"'MMA Rev-Exp Region 4'!AC$61","v":{"v":0,"d":"$0.00"}},{"$f":"'MMA Rev-Exp Region 4'!AD$61","v":{"v":0,"d":"$0.00"}},{"$f":"'MMA Rev-Exp Region 4'!AE$61","v":{"v":0,"d":"$0.00"}},{"$f":"'MMA Rev-Exp Region 4'!AF$61","v":{"v":0,"d":"$0.00"}},{"$f":"'MMA Rev-Exp Region 4'!AG$61","v":{"v":0,"d":"$0.00"}},{"$f":"'MMA Rev-Exp Region 4'!AH$61","v":{"v":0,"d":"$0.00"}},{"$f":"'MMA Rev-Exp Region 4'!AI$61","v":{"v":0,"d":"$0.00"}},{"$f":"'MMA Rev-Exp Region 4'!AJ$61","v":{"v":0,"d":"$0.00"}},{"v":0,"d":"$0.00"}]
["MMA",null,null,{"$f":"Jurat!I$1","v":0},{"$f":"Jurat!D$33","v":"00:00:00"},"Q3","2017-09-30","Region 4","Operating Expense","Medical Benefits Expense","Other MMA Services","9.2","Hospice FFS",{"$f":"'MMA Rev-Exp Region 4'!Z$65","v":{"v":0,"d":"$0.00"}},{"$f":"'MMA Rev-Exp Region 4'!AA$65","v":{"v":0,"d":"$0.00"}},{"$f":"'MMA Rev-Exp Region 4'!AB$65","v":{"v":0,"d":"$0.00"}},{"$f":"'MMA Rev-Exp Region 4'!AC$65","v":{"v":0,"d":"$0.00"}},{"$f":"'MMA Rev-Exp Region 4'!AD$65","v":{"v":0,"d":"$0.00"}},{"$f":"'MMA Rev-Exp Region 4'!AE$65","v":{"v":0,"d":"$0.00"}},{"$f":"'MMA Rev-Exp Region 4'!AF$65","v":{"v":0,"d":"$0.00"}},{"$f":"'MMA Rev-Exp Region 4'!AG$65","v":{"v":0,"d":"$0.00"}},{"$f":"'MMA Rev-Exp Region 4'!AH$65","v":{"v":0,"d":"$0.00"}},{"$f":"'MMA Rev-Exp Region 4'!AI$65","v":{"v":0,"d":"$0.00"}},{"$f":"'MMA Rev-Exp Region 4'!AJ$65","v":{"v":0,"d":"$0.00"}},{"v":0,"d":"$0.00"}]
["MMA",null,null,{"$f":"Jurat!I$1","v":0},{"$f":"Jurat!D$33","v":"00:00:00"},"Q3","2017-09-30","Region 4","Operating Expense","Medical Benefits Expense","Other MMA Services","9.4","Other State Plan Services FFS",{"$f":"'MMA Rev-Exp Region 4'!Z$67","v":{"v":0,"d":"$0.00"}},{"$f":"'MMA Rev-Exp Region 4'!AA$67","v":{"v":0,"d":"$0.00"}},{"$f":"'MMA Rev-Exp Region 4'!AB$67","v":{"v":0,"d":"$0.00"}},{"$f":"'MMA Rev-Exp Region 4'!AC$67","v":{"v":0,"d":"$0.00"}},{"$f":"'MMA Rev-Exp Region 4'!AD$67","v":{"v":0,"d":"$0.00"}},{"$f":"'MMA Rev-Exp Region 4'!AE$67","v":{"v":0,"d":"$0.00"}},{"$f":"'MMA Rev-Exp Region 4'!AF$67","v":{"v":0,"d":"$0.00"}},{"$f":"'MMA Rev-Exp Region 4'!AG$67","v":{"v":0,"d":"$0.00"}},{"$f":"'MMA Rev-Exp Region 4'!AH$67","v":{"v":0,"d":"$0.00"}},{"$f":"'MMA Rev-Exp Region 4'!AI$67","v":{"v":0,"d":"$0.00"}},{"$f":"'MMA Rev-Exp Region 4'!AJ$67","v":{"v":0,"d":"$0.00"}},{"v":0,"d":"$0.00"}]
["MMA",null,null,{"$f":"Jurat!I$1","v":0},{"$f":"Jurat!D$33","v":"00:00:00"},"Q3","2017-09-30","Region 4","Operating Expense","Medical Benefits Expense","Other MMA Services","9.5","Other Services Subcapitation",{"$f":"'MMA Rev-Exp Region 4'!Z$68","v":{"v":0,"d":"$0.00"}},{"$f":"'MMA Rev-Exp Region 4'!AA$68","v":{"v":0,"d":"$0.00"}},{"$f":"'MMA Rev-Exp Region 4'!AB$68","v":{"v":0,"d":"$0.00"}},{"$f":"'MMA Rev-Exp Region 4'!AC$68","v":{"v":0,"d":"$0.00"}},{"$f":"'MMA Rev-Exp Region 4'!AD$68","v":{"v":0,"d":"$0.00"}},{"$f":"'MMA Rev-Exp Region 4'!AE$68","v":{"v":0,"d":"$0.00"}},{"$f":"'MMA Rev-Exp Region 4'!AF$68","v":{"v":0,"d":"$0.00"}},{"$f":"'MMA Rev-Exp Region 4'!AG$68","v":{"v":0,"d":"$0.00"}},{"$f":"'MMA Rev-Exp Region 4'!AH$68","v":{"v":0,"d":"$0.00"}},{"$f":"'MMA Rev-Exp Region 4'!AI$68","v":{"v":0,"d":"$0.00"}},{"$f":"'MMA Rev-Exp Region 4'!AJ$68","v":{"v":0,"d":"$0.00"}},{"v":0,"d":"$0.00"}]
["MMA",null,null,{"$f":"Jurat!I$1","v":0},{"$f":"Jurat!D$33","v":"00:00:00"},"Q3","2017-09-30","Region 4","Operating Expense","Medical Benefits Expense","Expanded Benefits","10.1","Expanded Benefits FFS",{"$f":"'MMA Rev-Exp Region 4'!Z$72","v":{"v":0,"d":"$0.00"}},{"$f":"'MMA Rev-Exp Region 4'!AA$72","v":{"v":0,"d":"$0.00"}},{"$f":"'MMA Rev-Exp Region 4'!AB$72","v":{"v":0,"d":"$0.00"}},{"$f":"'MMA Rev-Exp Region 4'!AC$72","v":{"v":0,"d":"$0.00"}},{"$f":"'MMA Rev-Exp Region 4'!AD$72","v":{"v":0,"d":"$0.00"}},{"$f":"'MMA Rev-Exp Region 4'!AE$72","v":{"v":0,"d":"$0.00"}},{"$f":"'MMA Rev-Exp Region 4'!AF$72","v":{"v":0,"d":"$0.00"}},{"$f":"'MMA Rev-Exp Region 4'!AG$72","v":{"v":0,"d":"$0.00"}},{"$f":"'MMA Rev-Exp Region 4'!AH$72","v":{"v":0,"d":"$0.00"}},{"$f":"'MMA Rev-Exp Region 4'!AI$72","v":{"v":0,"d":"$0.00"}},{"$f":"'MMA Rev-Exp Region 4'!AJ$72","v":{"v":0,"d":"$0.00"}},{"v":0,"d":"$0.00"}]
["MMA",null,null,{"$f":"Jurat!I$1","v":0},{"$f":"Jurat!D$33","v":"00:00:00"},"Q3","2017-09-30","Region 4","Operating Expense","Medical Benefits Expense","Other Medical","11.5","TPL & Fraud/Abuse Recoveries",{"$f":"'MMA Rev-Exp Region 4'!Z$81","v":{"v":0,"d":"$0.00"}},{"$f":"'MMA Rev-Exp Region 4'!AA$81","v":{"v":0,"d":"$0.00"}},{"$f":"'MMA Rev-Exp Region 4'!AB$81","v":{"v":0,"d":"$0.00"}},{"$f":"'MMA Rev-Exp Region 4'!AC$81","v":{"v":0,"d":"$0.00"}},{"$f":"'MMA Rev-Exp Region 4'!AD$81","v":{"v":0,"d":"$0.00"}},{"$f":"'MMA Rev-Exp Region 4'!AE$81","v":{"v":0,"d":"$0.00"}},{"$f":"'MMA Rev-Exp Region 4'!AF$81","v":{"v":0,"d":"$0.00"}},{"$f":"'MMA Rev-Exp Region 4'!AG$81","v":{"v":0,"d":"$0.00"}},{"$f":"'MMA Rev-Exp Region 4'!AH$81","v":{"v":0,"d":"$0.00"}},{"$f":"'MMA Rev-Exp Region 4'!AI$81","v":{"v":0,"d":"$0.00"}},{"$f":"'MMA Rev-Exp Region 4'!AJ$81","v":{"v":0,"d":"$0.00"}},{"v":0,"d":"$0.00"}]
["MMA",null,null,{"$f":"Jurat!I$1","v":0},{"$f":"Jurat!D$33","v":"00:00:00"},"Q3","2017-09-30","Region 4","Operating Expense","Medical Benefits Expense","Other Medical","11.9","Reinsurance Recoveries",{"$f":"'MMA Rev-Exp Region 4'!Z$85","v":{"v":0,"d":"$0.00"}},{"$f":"'MMA Rev-Exp Region 4'!AA$85","v":{"v":0,"d":"$0.00"}},{"$f":"'MMA Rev-Exp Region 4'!AB$85","v":{"v":0,"d":"$0.00"}},{"$f":"'MMA Rev-Exp Region 4'!AC$85","v":{"v":0,"d":"$0.00"}},{"$f":"'MMA Rev-Exp Region 4'!AD$85","v":{"v":0,"d":"$0.00"}},{"$f":"'MMA Rev-Exp Region 4'!AE$85","v":{"v":0,"d":"$0.00"}},{"$f":"'MMA Rev-Exp Region 4'!AF$85","v":{"v":0,"d":"$0.00"}},{"$f":"'MMA Rev-Exp Region 4'!AG$85","v":{"v":0,"d":"$0.00"}},{"$f":"'MMA Rev-Exp Region 4'!AH$85","v":{"v":0,"d":"$0.00"}},{"$f":"'MMA Rev-Exp Region 4'!AI$85","v":{"v":0,"d":"$0.00"}},{"$f":"'MMA Rev-Exp Region 4'!AJ$85","v":{"v":0,"d":"$0.00"}},{"v":0,"d":"$0.00"}]
["MMA",null,null,{"$f":"Jurat!I$1","v":0},{"$f":"Jurat!D$33","v":"00:00:00"},"Q3","2017-09-30","Region 4","Operating Expense","Administrative Expense","Administrative","12.4","Marketing Expenses",{"$f":"'MMA Rev-Exp Region 4'!Z$93","v":{"v":0,"d":"$0.00"}},{"v":0,"d":"$0.00"},{"v":0,"d":"$0.00"},{"v":0,"d":"$0.00"},{"v":0,"d":"$0.00"},{"v":0,"d":"$0.00"},{"v":0,"d":"$0.00"},{"v":0,"d":"$0.00"},{"v":0,"d":"$0.00"},{"v":0,"d":"$0.00"},{"v":0,"d":"$0.00"},{"v":0,"d":"$0.00"}]
["MMA",null,null,{"$f":"Jurat!I$1","v":0},{"$f":"Jurat!D$33","v":"00:00:00"},"Q3","2017-09-30","Region 4","Operating Expense","Taxes & Fees","Taxes & Fees","13.1","State Premium tax",{"$f":"'MMA Rev-Exp Region 4'!Z$97","v":{"v":0,"d":"$0.00"}},{"v":0,"d":"$0.00"},{"v":0,"d":"$0.00"},{"v":0,"d":"$0.00"},{"v":0,"d":"$0.00"},{"v":0,"d":"$0.00"},{"v":0,"d":"$0.00"},{"v":0,"d":"$0.00"},{"v":0,"d":"$0.00"},{"v":0,"d":"$0.00"},{"v":0,"d":"$0.00"},{"v":0,"d":"$0.00"}]
["MMA",null,null,{"$f":"Jurat!I$1","v":0},{"$f":"Jurat!D$33","v":"00:00:00"},"Q3","2017-09-30","Region 4","Non-Operating Expense","Income Tax Expense","Income Tax Expense","16.0","Income Tax Expense",{"$f":"'MMA Rev-Exp Region 4'!Z$106","v":{"v":0,"d":"$0.00"}},{"v":0,"d":"$0.00"},{"v":0,"d":"$0.00"},{"v":0,"d":"$0.00"},{"v":0,"d":"$0.00"},{"v":0,"d":"$0.00"},{"v":0,"d":"$0.00"},{"v":0,"d":"$0.00"},{"v":0,"d":"$0.00"},{"v":0,"d":"$0.00"},{"v":0,"d":"$0.00"},{"v":0,"d":"$0.00"}]
["MMA",null,null,{"$f":"Jurat!I$1","v":0},{"$f":"Jurat!D$33","v":"00:00:00"},"Q4","2017-12-31","Region 4","Member Months","Member Months","Member Months",null,"Member Months",{"$f":"'MMA Rev-Exp Region 4'!AK$9","v":{"v":0,"d":"$0.00"}},{"$f":"'MMA Rev-Exp Region 4'!AL$9","v":{"v":0,"d":"$0.00"}},{"$f":"'MMA Rev-Exp Region 4'!AM$9","v":{"v":0,"d":"$0.00"}},{"$f":"'MMA Rev-Exp Region 4'!AN$9","v":{"v":0,"d":"$0.00"}},{"$f":"'MMA Rev-Exp Region 4'!AO$9","v":{"v":0,"d":"$0.00"}},{"$f":"'MMA Rev-Exp Region 4'!AP$9","v":{"v":0,"d":"$0.00"}},{"$f":"'MMA Rev-Exp Region 4'!AQ$9","v":{"v":0,"d":"$0.00"}},{"$f":"'MMA Rev-Exp Region 4'!AR$9","v":{"v":0,"d":"$0.00"}},{"$f":"'MMA Rev-Exp Region 4'!AS$9","v":{"v":0,"d":"$0.00"}},{"$f":"'MMA Rev-Exp Region 4'!AT$9","v":{"v":0,"d":"$0.00"}},{"$f":"'MMA Rev-Exp Region 4'!AU$9","v":{"v":0,"d":"$0.00"}},{"v":0,"d":"$0.00"}]
["MMA",null,null,{"$f":"Jurat!I$1","v":0},{"$f":"Jurat!D$33","v":"00:00:00"},"Q4","2017-12-31","Region 4","Operating Revenue","Kick Payments","Kick Payments - Hep C","1.3","Hepatitis C Kick Payments",{"$f":"'MMA Rev-Exp Region 4'!AK$13","v":{"v":0,"d":"$0.00"}},{"$f":"'MMA Rev-Exp Region 4'!AL$13","v":{"v":0,"d":"$0.00"}},{"$f":"'MMA Rev-Exp Region 4'!AM$13","v":{"v":0,"d":"$0.00"}},{"$f":"'MMA Rev-Exp Region 4'!AN$13","v":{"v":0,"d":"$0.00"}},{"$f":"'MMA Rev-Exp Region 4'!AO$13","v":{"v":0,"d":"$0.00"}},{"$f":"'MMA Rev-Exp Region 4'!AP$13","v":{"v":0,"d":"$0.00"}},{"$f":"'MMA Rev-Exp Region 4'!AQ$13","v":{"v":0,"d":"$0.00"}},{"$f":"'MMA Rev-Exp Region 4'!AR$13","v":{"v":0,"d":"$0.00"}},{"$f":"'MMA Rev-Exp Region 4'!AS$13","v":{"v":0,"d":"$0.00"}},{"$f":"'MMA Rev-Exp Region 4'!AT$13","v":{"v":0,"d":"$0.00"}},{"$f":"'MMA Rev-Exp Region 4'!AU$13","v":{"v":0,"d":"$0.00"}},{"v":0,"d":"$0.00"}]
["MMA",null,null,{"$f":"Jurat!I$1","v":0},{"$f":"Jurat!D$33","v":"00:00:00"},"Q4","2017-12-31","Region 4","Operating Expense","Medical Benefits Expense","Hospital Services",2.1,"Inpatient FFS",{"$f":"'MMA Rev-Exp Region 4'!AK$20","v":{"v":0,"d":"$0.00"}},{"$f":"'MMA Rev-Exp Region 4'!AL$20","v":{"v":0,"d":"$0.00"}},{"$f":"'MMA Rev-Exp Region 4'!AM$20","v":{"v":0,"d":"$0.00"}},{"$f":"'MMA Rev-Exp Region 4'!AN$20","v":{"v":0,"d":"$0.00"}},{"$f":"'MMA Rev-Exp Region 4'!AO$20","v":{"v":0,"d":"$0.00"}},{"$f":"'MMA Rev-Exp Region 4'!AP$20","v":{"v":0,"d":"$0.00"}},{"$f":"'MMA Rev-Exp Region 4'!AQ$20","v":{"v":0,"d":"$0.00"}},{"$f":"'MMA Rev-Exp Region 4'!AR$20","v":{"v":0,"d":"$0.00"}},{"$f":"'MMA Rev-Exp Region 4'!AS$20","v":{"v":0,"d":"$0.00"}},{"$f":"'MMA Rev-Exp Region 4'!AT$20","v":{"v":0,"d":"$0.00"}},{"$f":"'MMA Rev-Exp Region 4'!AU$20","v":{"v":0,"d":"$0.00"}},{"v":0,"d":"$0.00"}]
["MMA",null,null,{"$f":"Jurat!I$1","v":0},{"$f":"Jurat!D$33","v":"00:00:00"},"Q4","2017-12-31","Region 4","Operating Expense","Medical Benefits Expense","Hospital Services",2.3,"Outpatient FFS: ER",{"$f":"'MMA Rev-Exp Region 4'!AK$22","v":{"v":0,"d":"$0.00"}},{"$f":"'MMA Rev-Exp Region 4'!AL$22","v":{"v":0,"d":"$0.00"}},{"$f":"'MMA Rev-Exp Region 4'!AM$22","v":{"v":0,"d":"$0.00"}},{"$f":"'MMA Rev-Exp Region 4'!AN$22","v":{"v":0,"d":"$0.00"}},{"$f":"'MMA Rev-Exp Region 4'!AO$22","v":{"v":0,"d":"$0.00"}},{"$f":"'MMA Rev-Exp Region 4'!AP$22","v":{"v":0,"d":"$0.00"}},{"$f":"'MMA Rev-Exp Region 4'!AQ$22","v":{"v":0,"d":"$0.00"}},{"$f":"'MMA Rev-Exp Region 4'!AR$22","v":{"v":0,"d":"$0.00"}},{"$f":"'MMA Rev-Exp Region 4'!AS$22","v":{"v":0,"d":"$0.00"}},{"$f":"'MMA Rev-Exp Region 4'!AT$22","v":{"v":0,"d":"$0.00"}},{"$f":"'MMA Rev-Exp Region 4'!AU$22","v":{"v":0,"d":"$0.00"}},{"v":0,"d":"$0.00"}]
["MMA",null,null,{"$f":"Jurat!I$1","v":0},{"$f":"Jurat!D$33","v":"00:00:00"},"Q4","2017-12-31","Region 4","Operating Expense","Medical Benefits Expense","Hospital Services","2.6","Subcapitated Hospital Services",{"$f":"'MMA Rev-Exp Region 4'!AK$25","v":{"v":0,"d":"$0.00"}},{"$f":"'MMA Rev-Exp Region 4'!AL$25","v":{"v":0,"d":"$0.00"}},{"$f":"'MMA Rev-Exp Region 4'!AM$25","v":{"v":0,"d":"$0.00"}},{"$f":"'MMA Rev-Exp Region 4'!AN$25","v":{"v":0,"d":"$0.00"}},{"$f":"'MMA Rev-Exp Region 4'!AO$25","v":{"v":0,"d":"$0.00"}},{"$f":"'MMA Rev-Exp Region 4'!AP$25","v":{"v":0,"d":"$0.00"}},{"$f":"'MMA Rev-Exp Region 4'!AQ$25","v":{"v":0,"d":"$0.00"}},{"$f":"'MMA Rev-Exp Region 4'!AR$25","v":{"v":0,"d":"$0.00"}},{"$f":"'MMA Rev-Exp Region 4'!AS$25","v":{"v":0,"d":"$0.00"}},{"$f":"'MMA Rev-Exp Region 4'!AT$25","v":{"v":0,"d":"$0.00"}},{"$f":"'MMA Rev-Exp Region 4'!AU$25","v":{"v":0,"d":"$0.00"}},{"v":0,"d":"$0.00"}]
["MMA",null,null,{"$f":"Jurat!I$1","v":0},{"$f":"Jurat!D$33","v":"00:00:00"},"Q4","2017-12-31","Region 4","Operating Expense","Medical Benefits Expense","Professional Services",3.2,"Specialty Care FFS",{"$f":"'MMA Rev-Exp Region 4'!AK$30","v":{"v":0,"d":"$0.00"}},{"$f":"'MMA Rev-Exp Region 4'!AL$30","v":{"v":0,"d":"$0.00"}},{"$f":"'MMA Rev-Exp Region 4'!AM$30","v":{"v":0,"d":"$0.00"}},{"$f":"'MMA Rev-Exp Region 4'!AN$30","v":{"v":0,"d":"$0.00"}},{"$f":"'MMA Rev-Exp Region 4'!AO$30","v":{"v":0,"d":"$0.00"}},{"$f":"'MMA Rev-Exp Region 4'!AP$30","v":{"v":0,"d":"$0.00"}},{"$f":"'MMA Rev-Exp Region 4'!AQ$30","v":{"v":0,"d":"$0.00"}},{"$f":"'MMA Rev-Exp Region 4'!AR$30","v":{"v":0,"d":"$0.00"}},{"$f":"'MMA Rev-Exp Region 4'!AS$30","v":{"v":0,"d":"$0.00"}},{"$f":"'MMA Rev-Exp Region 4'!AT$30","v":{"v":0,"d":"$0.00"}},{"$f":"'MMA Rev-Exp Region 4'!AU$30","v":{"v":0,"d":"$0.00"}},{"v":0,"d":"$0.00"}]
["MMA",null,null,{"$f":"Jurat!I$1","v":0},{"$f":"Jurat!D$33","v":"00:00:00"},"Q4","2017-12-31","Region 4","Operating Expense","Medical Benefits Expense","Professional Services","3.5","Subcapitated Professional Services",{"$f":"'MMA Rev-Exp Region 4'!AK$33","v":{"v":0,"d":"$0.00"}},{"$f":"'MMA Rev-Exp Region 4'!AL$33","v":{"v":0,"d":"$0.00"}},{"$f":"'MMA Rev-Exp Region 4'!AM$33","v":{"v":0,"d":"$0.00"}},{"$f":"'MMA Rev-Exp Region 4'!AN$33","v":{"v":0,"d":"$0.00"}},{"$f":"'MMA Rev-Exp Region 4'!AO$33","v":{"v":0,"d":"$0.00"}},{"$f":"'MMA Rev-Exp Region 4'!AP$33","v":{"v":0,"d":"$0.00"}},{"$f":"'MMA Rev-Exp Region 4'!AQ$33","v":{"v":0,"d":"$0.00"}},{"$f":"'MMA Rev-Exp Region 4'!AR$33","v":{"v":0,"d":"$0.00"}},{"$f":"'MMA Rev-Exp Region 4'!AS$33","v":{"v":0,"d":"$0.00"}},{"$f":"'MMA Rev-Exp Region 4'!AT$33","v":{"v":0,"d":"$0.00"}},{"$f":"'MMA Rev-Exp Region 4'!AU$33","v":{"v":0,"d":"$0.00"}},{"v":0,"d":"$0.00"}]
["MMA",null,null,{"$f":"Jurat!I$1","v":0},{"$f":"Jurat!D$33","v":"00:00:00"},"Q4","2017-12-31","Region 4","Operating Expense","Medical Benefits Expense","Maternity Services","4.1.1","Maternity Services",{"$f":"'MMA Rev-Exp Region 4'!AK$37","v":{"v":0,"d":"$0.00"}},{"$f":"'MMA Rev-Exp Region 4'!AL$37","v":{"v":0,"d":"$0.00"}},{"$f":"'MMA Rev-Exp Region 4'!AM$37","v":{"v":0,"d":"$0.00"}},{"$f":"'MMA Rev-Exp Region 4'!AN$37","v":{"v":0,"d":"$0.00"}},{"$f":"'MMA Rev-Exp Region 4'!AO$37","v":{"v":0,"d":"$0.00"}},{"$f":"'MMA Rev-Exp Region 4'!AP$37","v":{"v":0,"d":"$0.00"}},{"$f":"'MMA Rev-Exp Region 4'!AQ$37","v":{"v":0,"d":"$0.00"}},{"$f":"'MMA Rev-Exp Region 4'!AR$37","v":{"v":0,"d":"$0.00"}},{"$f":"'MMA Rev-Exp Region 4'!AS$37","v":{"v":0,"d":"$0.00"}},{"$f":"'MMA Rev-Exp Region 4'!AT$37","v":{"v":0,"d":"$0.00"}},{"$f":"'MMA Rev-Exp Region 4'!AU$37","v":{"v":0,"d":"$0.00"}},{"v":0,"d":"$0.00"}]
["MMA",null,null,{"$f":"Jurat!I$1","v":0},{"$f":"Jurat!D$33","v":"00:00:00"},"Q4","2017-12-31","Region 4","Operating Expense","Medical Benefits Expense","Maternity Services","4.2.1","Ending IBNP for Maternity Services",{"$f":"'MMA Rev-Exp Region 4'!AK$38","v":{"v":0,"d":"$0.00"}},{"$f":"'MMA Rev-Exp Region 4'!AL$38","v":{"v":0,"d":"$0.00"}},{"$f":"'MMA Rev-Exp Region 4'!AM$38","v":{"v":0,"d":"$0.00"}},{"$f":"'MMA Rev-Exp Region 4'!AN$38","v":{"v":0,"d":"$0.00"}},{"$f":"'MMA Rev-Exp Region 4'!AO$38","v":{"v":0,"d":"$0.00"}},{"$f":"'MMA Rev-Exp Region 4'!AP$38","v":{"v":0,"d":"$0.00"}},{"$f":"'MMA Rev-Exp Region 4'!AQ$38","v":{"v":0,"d":"$0.00"}},{"$f":"'MMA Rev-Exp Region 4'!AR$38","v":{"v":0,"d":"$0.00"}},{"$f":"'MMA Rev-Exp Region 4'!AS$38","v":{"v":0,"d":"$0.00"}},{"$f":"'MMA Rev-Exp Region 4'!AT$38","v":{"v":0,"d":"$0.00"}},{"$f":"'MMA Rev-Exp Region 4'!AU$38","v":{"v":0,"d":"$0.00"}},{"v":0,"d":"$0.00"}]
["MMA",null,null,{"$f":"Jurat!I$1","v":0},{"$f":"Jurat!D$33","v":"00:00:00"},"Q4","2017-12-31","Region 4","Operating Expense","Medical Benefits Expense","Mental Health Services",5.2,"Mental Health & Substance Abuse Subcapitation",{"$f":"'MMA Rev-Exp Region 4'!AK$42","v":{"v":0,"d":"$0.00"}},{"$f":"'MMA Rev-Exp Region 4'!AL$42","v":{"v":0,"d":"$0.00"}},{"$f":"'MMA Rev-Exp Region 4'!AM$42","v":{"v":0,"d":"$0.00"}},{"$f":"'MMA Rev-Exp Region 4'!AN$42","v":{"v":0,"d":"$0.00"}},{"$f":"'MMA Rev-Exp Region 4'!AO$42","v":{"v":0,"d":"$0.00"}},{"$f":"'MMA Rev-Exp Region 4'!AP$42","v":{"v":0,"d":"$0.00"}},{"$f":"'MMA Rev-Exp Region 4'!AQ$42","v":{"v":0,"d":"$0.00"}},{"$f":"'MMA Rev-Exp Region 4'!AR$42","v":{"v":0,"d":"$0.00"}},{"$f":"'MMA Rev-Exp Region 4'!AS$42","v":{"v":0,"d":"$0.00"}},{"$f":"'MMA Rev-Exp Region 4'!AT$42","v":{"v":0,"d":"$0.00"}},{"$f":"'MMA Rev-Exp Region 4'!AU$42","v":{"v":0,"d":"$0.00"}},{"v":0,"d":"$0.00"}]
["MMA",null,null,{"$f":"Jurat!I$1","v":0},{"$f":"Jurat!D$33","v":"00:00:00"},"Q4","2017-12-31","Region 4","Operating Expense","Medical Benefits Expense","Dental Services",6.2,"Dental Subcapitation",{"$f":"'MMA Rev-Exp Region 4'!AK$47","v":{"v":0,"d":"$0.00"}},{"$f":"'MMA Rev-Exp Region 4'!AL$47","v":{"v":0,"d":"$0.00"}},{"$f":"'MMA Rev-Exp Region 4'!AM$47","v":{"v":0,"d":"$0.00"}},{"$f":"'MMA Rev-Exp Region 4'!AN$47","v":{"v":0,"d":"$0.00"}},{"$f":"'MMA Rev-Exp Region 4'!AO$47","v":{"v":0,"d":"$0.00"}},{"$f":"'MMA Rev-Exp Region 4'!AP$47","v":{"v":0,"d":"$0.00"}},{"$f":"'MMA Rev-Exp Region 4'!AQ$47","v":{"v":0,"d":"$0.00"}},{"$f":"'MMA Rev-Exp Region 4'!AR$47","v":{"v":0,"d":"$0.00"}},{"$f":"'MMA Rev-Exp Region 4'!AS$47","v":{"v":0,"d":"$0.00"}},{"$f":"'MMA Rev-Exp Region 4'!AT$47","v":{"v":0,"d":"$0.00"}},{"$f":"'MMA Rev-Exp Region 4'!AU$47","v":{"v":0,"d":"$0.00"}},{"v":0,"d":"$0.00"}]
["MMA",null,null,{"$f":"Jurat!I$1","v":0},{"$f":"Jurat!D$33","v":"00:00:00"},"Q4","2017-12-31","Region 4","Operating Expense","Medical Benefits Expense","Dental Services","6.4","Dental Settlements",{"$f":"'MMA Rev-Exp Region 4'!AK$49","v":{"v":0,"d":"$0.00"}},{"$f":"'MMA Rev-Exp Region 4'!AL$49","v":{"v":0,"d":"$0.00"}},{"$f":"'MMA Rev-Exp Region 4'!AM$49","v":{"v":0,"d":"$0.00"}},{"$f":"'MMA Rev-Exp Region 4'!AN$49","v":{"v":0,"d":"$0.00"}},{"$f":"'MMA Rev-Exp Region 4'!AO$49","v":{"v":0,"d":"$0.00"}},{"$f":"'MMA Rev-Exp Region 4'!AP$49","v":{"v":0,"d":"$0.00"}},{"$f":"'MMA Rev-Exp Region 4'!AQ$49","v":{"v":0,"d":"$0.00"}},{"$f":"'MMA Rev-Exp Region 4'!AR$49","v":{"v":0,"d":"$0.00"}},{"$f":"'MMA Rev-Exp Region 4'!AS$49","v":{"v":0,"d":"$0.00"}},{"$f":"'MMA Rev-Exp Region 4'!AT$49","v":{"v":0,"d":"$0.00"}},{"$f":"'MMA Rev-Exp Region 4'!AU$49","v":{"v":0,"d":"$0.00"}},{"v":0,"d":"$0.00"}]
["MMA",null,null,{"$f":"Jurat!I$1","v":0},{"$f":"Jurat!D$33","v":"00:00:00"},"Q4","2017-12-31","Region 4","Operating Expense","Medical Benefits Expense","Transportation Services",7.3,"Ending IBNP for Transportation",{"$f":"'MMA Rev-Exp Region 4'!AK$53","v":{"v":0,"d":"$0.00"}},{"$f":"'MMA Rev-Exp Region 4'!AL$53","v":{"v":0,"d":"$0.00"}},{"$f":"'MMA Rev-Exp Region 4'!AM$53","v":{"v":0,"d":"$0.00"}},{"$f":"'MMA Rev-Exp Region 4'!AN$53","v":{"v":0,"d":"$0.00"}},{"$f":"'MMA Rev-Exp Region 4'!AO$53","v":{"v":0,"d":"$0.00"}},{"$f":"'MMA Rev-Exp Region 4'!AP$53","v":{"v":0,"d":"$0.00"}},{"$f":"'MMA Rev-Exp Region 4'!AQ$53","v":{"v":0,"d":"$0.00"}},{"$f":"'MMA Rev-Exp Region 4'!AR$53","v":{"v":0,"d":"$0.00"}},{"$f":"'MMA Rev-Exp Region 4'!AS$53","v":{"v":0,"d":"$0.00"}},{"$f":"'MMA Rev-Exp Region 4'!AT$53","v":{"v":0,"d":"$0.00"}},{"$f":"'MMA Rev-Exp Region 4'!AU$53","v":{"v":0,"d":"$0.00"}},{"v":0,"d":"$0.00"}]
["MMA",null,null,{"$f":"Jurat!I$1","v":0},{"$f":"Jurat!D$33","v":"00:00:00"},"Q4","2017-12-31","Region 4","Operating Expense","Medical Benefits Expense","Pharmacy Services","8.3","Ending IBNP for Prescription Drugs",{"$f":"'MMA Rev-Exp Region 4'!AK$58","v":{"v":0,"d":"$0.00"}},{"$f":"'MMA Rev-Exp Region 4'!AL$58","v":{"v":0,"d":"$0.00"}},{"$f":"'MMA Rev-Exp Region 4'!AM$58","v":{"v":0,"d":"$0.00"}},{"$f":"'MMA Rev-Exp Region 4'!AN$58","v":{"v":0,"d":"$0.00"}},{"$f":"'MMA Rev-Exp Region 4'!AO$58","v":{"v":0,"d":"$0.00"}},{"$f":"'MMA Rev-Exp Region 4'!AP$58","v":{"v":0,"d":"$0.00"}},{"$f":"'MMA Rev-Exp Region 4'!AQ$58","v":{"v":0,"d":"$0.00"}},{"$f":"'MMA Rev-Exp Region 4'!AR$58","v":{"v":0,"d":"$0.00"}},{"$f":"'MMA Rev-Exp Region 4'!AS$58","v":{"v":0,"d":"$0.00"}},{"$f":"'MMA Rev-Exp Region 4'!AT$58","v":{"v":0,"d":"$0.00"}},{"$f":"'MMA Rev-Exp Region 4'!AU$58","v":{"v":0,"d":"$0.00"}},{"v":0,"d":"$0.00"}]
["MMA",null,null,{"$f":"Jurat!I$1","v":0},{"$f":"Jurat!D$33","v":"00:00:00"},"Q4","2017-12-31","Region 4","Operating Expense","Medical Benefits Expense","Pharmacy Services","8.6","Prescription Drugs Subcapitation",{"$f":"'MMA Rev-Exp Region 4'!AK$61","v":{"v":0,"d":"$0.00"}},{"$f":"'MMA Rev-Exp Region 4'!AL$61","v":{"v":0,"d":"$0.00"}},{"$f":"'MMA Rev-Exp Region 4'!AM$61","v":{"v":0,"d":"$0.00"}},{"$f":"'MMA Rev-Exp Region 4'!AN$61","v":{"v":0,"d":"$0.00"}},{"$f":"'MMA Rev-Exp Region 4'!AO$61","v":{"v":0,"d":"$0.00"}},{"$f":"'MMA Rev-Exp Region 4'!AP$61","v":{"v":0,"d":"$0.00"}},{"$f":"'MMA Rev-Exp Region 4'!AQ$61","v":{"v":0,"d":"$0.00"}},{"$f":"'MMA Rev-Exp Region 4'!AR$61","v":{"v":0,"d":"$0.00"}},{"$f":"'MMA Rev-Exp Region 4'!AS$61","v":{"v":0,"d":"$0.00"}},{"$f":"'MMA Rev-Exp Region 4'!AT$61","v":{"v":0,"d":"$0.00"}},{"$f":"'MMA Rev-Exp Region 4'!AU$61","v":{"v":0,"d":"$0.00"}},{"v":0,"d":"$0.00"}]
["MMA",null,null,{"$f":"Jurat!I$1","v":0},{"$f":"Jurat!D$33","v":"00:00:00"},"Q4","2017-12-31","Region 4","Operating Expense","Medical Benefits Expense","Other MMA Services","9.2","Hospice FFS",{"$f":"'MMA Rev-Exp Region 4'!AK$65","v":{"v":0,"d":"$0.00"}},{"$f":"'MMA Rev-Exp Region 4'!AL$65","v":{"v":0,"d":"$0.00"}},{"$f":"'MMA Rev-Exp Region 4'!AM$65","v":{"v":0,"d":"$0.00"}},{"$f":"'MMA Rev-Exp Region 4'!AN$65","v":{"v":0,"d":"$0.00"}},{"$f":"'MMA Rev-Exp Region 4'!AO$65","v":{"v":0,"d":"$0.00"}},{"$f":"'MMA Rev-Exp Region 4'!AP$65","v":{"v":0,"d":"$0.00"}},{"$f":"'MMA Rev-Exp Region 4'!AQ$65","v":{"v":0,"d":"$0.00"}},{"$f":"'MMA Rev-Exp Region 4'!AR$65","v":{"v":0,"d":"$0.00"}},{"$f":"'MMA Rev-Exp Region 4'!AS$65","v":{"v":0,"d":"$0.00"}},{"$f":"'MMA Rev-Exp Region 4'!AT$65","v":{"v":0,"d":"$0.00"}},{"$f":"'MMA Rev-Exp Region 4'!AU$65","v":{"v":0,"d":"$0.00"}},{"v":0,"d":"$0.00"}]
["MMA",null,null,{"$f":"Jurat!I$1","v":0},{"$f":"Jurat!D$33","v":"00:00:00"},"Q4","2017-12-31","Region 4","Operating Expense","Medical Benefits Expense","Other MMA Services","9.3","DME FFS",{"$f":"'MMA Rev-Exp Region 4'!AK$66","v":{"v":0,"d":"$0.00"}},{"$f":"'MMA Rev-Exp Region 4'!AL$66","v":{"v":0,"d":"$0.00"}},{"$f":"'MMA Rev-Exp Region 4'!AM$66","v":{"v":0,"d":"$0.00"}},{"$f":"'MMA Rev-Exp Region 4'!AN$66","v":{"v":0,"d":"$0.00"}},{"$f":"'MMA Rev-Exp Region 4'!AO$66","v":{"v":0,"d":"$0.00"}},{"$f":"'MMA Rev-Exp Region 4'!AP$66","v":{"v":0,"d":"$0.00"}},{"$f":"'MMA Rev-Exp Region 4'!AQ$66","v":{"v":0,"d":"$0.00"}},{"$f":"'MMA Rev-Exp Region 4'!AR$66","v":{"v":0,"d":"$0.00"}},{"$f":"'MMA Rev-Exp Region 4'!AS$66","v":{"v":0,"d":"$0.00"}},{"$f":"'MMA Rev-Exp Region 4'!AT$66","v":{"v":0,"d":"$0.00"}},{"$f":"'MMA Rev-Exp Region 4'!AU$66","v":{"v":0,"d":"$0.00"}},{"v":0,"d":"$0.00"}]
["MMA",null,null,{"$f":"Jurat!I$1","v":0},{"$f":"Jurat!D$33","v":"00:00:00"},"Q4","2017-12-31","Region 4","Operating Expense","Medical Benefits Expense","Other MMA Services","9.6","Ending IBNP for Other Services",{"$f":"'MMA Rev-Exp Region 4'!AK$69","v":{"v":0,"d":"$0.00"}},{"$f":"'MMA Rev-Exp Region 4'!AL$69","v":{"v":0,"d":"$0.00"}},{"$f":"'MMA Rev-Exp Region 4'!AM$69","v":{"v":0,"d":"$0.00"}},{"$f":"'MMA Rev-Exp Region 4'!AN$69","v":{"v":0,"d":"$0.00"}},{"$f":"'MMA Rev-Exp Region 4'!AO$69","v":{"v":0,"d":"$0.00"}},{"$f":"'MMA Rev-Exp Region 4'!AP$69","v":{"v":0,"d":"$0.00"}},{"$f":"'MMA Rev-Exp Region 4'!AQ$69","v":{"v":0,"d":"$0.00"}},{"$f":"'MMA Rev-Exp Region 4'!AR$69","v":{"v":0,"d":"$0.00"}},{"$f":"'MMA Rev-Exp Region 4'!AS$69","v":{"v":0,"d":"$0.00"}},{"$f":"'MMA Rev-Exp Region 4'!AT$69","v":{"v":0,"d":"$0.00"}},{"$f":"'MMA Rev-Exp Region 4'!AU$69","v":{"v":0,"d":"$0.00"}},{"v":0,"d":"$0.00"}]
["MMA",null,null,{"$f":"Jurat!I$1","v":0},{"$f":"Jurat!D$33","v":"00:00:00"},"Q4","2017-12-31","Region 4","Operating Expense","Medical Benefits Expense","Expanded Benefits","10.3","Ending IBNP for Expanded Benefits",{"$f":"'MMA Rev-Exp Region 4'!AK$74","v":{"v":0,"d":"$0.00"}},{"$f":"'MMA Rev-Exp Region 4'!AL$74","v":{"v":0,"d":"$0.00"}},{"$f":"'MMA Rev-Exp Region 4'!AM$74","v":{"v":0,"d":"$0.00"}},{"$f":"'MMA Rev-Exp Region 4'!AN$74","v":{"v":0,"d":"$0.00"}},{"$f":"'MMA Rev-Exp Region 4'!AO$74","v":{"v":0,"d":"$0.00"}},{"$f":"'MMA Rev-Exp Region 4'!AP$74","v":{"v":0,"d":"$0.00"}},{"$f":"'MMA Rev-Exp Region 4'!AQ$74","v":{"v":0,"d":"$0.00"}},{"$f":"'MMA Rev-Exp Region 4'!AR$74","v":{"v":0,"d":"$0.00"}},{"$f":"'MMA Rev-Exp Region 4'!AS$74","v":{"v":0,"d":"$0.00"}},{"$f":"'MMA Rev-Exp Region 4'!AT$74","v":{"v":0,"d":"$0.00"}},{"$f":"'MMA Rev-Exp Region 4'!AU$74","v":{"v":0,"d":"$0.00"}},{"v":0,"d":"$0.00"}]
["MMA",null,null,{"$f":"Jurat!I$1","v":0},{"$f":"Jurat!D$33","v":"00:00:00"},"Q4","2017-12-31","Region 4","Operating Expense","Medical Benefits Expense","Other Medical","11.6.1","Premium Deficiency Reserve",{"$f":"'MMA Rev-Exp Region 4'!AK$82","v":{"v":0,"d":"$0.00"}},{"$f":"'MMA Rev-Exp Region 4'!AL$82","v":{"v":0,"d":"$0.00"}},{"$f":"'MMA Rev-Exp Region 4'!AM$82","v":{"v":0,"d":"$0.00"}},{"$f":"'MMA Rev-Exp Region 4'!AN$82","v":{"v":0,"d":"$0.00"}},{"$f":"'MMA Rev-Exp Region 4'!AO$82","v":{"v":0,"d":"$0.00"}},{"$f":"'MMA Rev-Exp Region 4'!AP$82","v":{"v":0,"d":"$0.00"}},{"$f":"'MMA Rev-Exp Region 4'!AQ$82","v":{"v":0,"d":"$0.00"}},{"$f":"'MMA Rev-Exp Region 4'!AR$82","v":{"v":0,"d":"$0.00"}},{"$f":"'MMA Rev-Exp Region 4'!AS$82","v":{"v":0,"d":"$0.00"}},{"$f":"'MMA Rev-Exp Region 4'!AT$82","v":{"v":0,"d":"$0.00"}},{"$f":"'MMA Rev-Exp Region 4'!AU$82","v":{"v":0,"d":"$0.00"}},{"v":0,"d":"$0.00"}]
["MMA",null,null,{"$f":"Jurat!I$1","v":0},{"$f":"Jurat!D$33","v":"00:00:00"},"Q4","2017-12-31","Region 4","Operating Expense","Administrative Expense","Administrative","12.1","Salaries & Benefits",{"$f":"'MMA Rev-Exp Region 4'!AK$90","v":{"v":0,"d":"$0.00"}},{"v":0,"d":"$0.00"},{"v":0,"d":"$0.00"},{"v":0,"d":"$0.00"},{"v":0,"d":"$0.00"},{"v":0,"d":"$0.00"},{"v":0,"d":"$0.00"},{"v":0,"d":"$0.00"},{"v":0,"d":"$0.00"},{"v":0,"d":"$0.00"},{"v":0,"d":"$0.00"},{"v":0,"d":"$0.00"}]
["MMA",null,null,{"$f":"Jurat!I$1","v":0},{"$f":"Jurat!D$33","v":"00:00:00"},"Q4","2017-12-31","Region 4","Operating Expense","Administrative Expense","Administrative","12.4","Marketing Expenses",{"$f":"'MMA Rev-Exp Region 4'!AK$93","v":{"v":0,"d":"$0.00"}},{"v":0,"d":"$0.00"},{"v":0,"d":"$0.00"},{"v":0,"d":"$0.00"},{"v":0,"d":"$0.00"},{"v":0,"d":"$0.00"},{"v":0,"d":"$0.00"},{"v":0,"d":"$0.00"},{"v":0,"d":"$0.00"},{"v":0,"d":"$0.00"},{"v":0,"d":"$0.00"},{"v":0,"d":"$0.00"}]
["MMA",null,null,{"$f":"Jurat!I$1","v":0},{"$f":"Jurat!D$33","v":"00:00:00"},"Q4","2017-12-31","Region 4","Operating Expense","Taxes & Fees","Taxes & Fees","13.1","State Premium tax",{"$f":"'MMA Rev-Exp Region 4'!AK$97","v":{"v":0,"d":"$0.00"}},{"v":0,"d":"$0.00"},{"v":0,"d":"$0.00"},{"v":0,"d":"$0.00"},{"v":0,"d":"$0.00"},{"v":0,"d":"$0.00"},{"v":0,"d":"$0.00"},{"v":0,"d":"$0.00"},{"v":0,"d":"$0.00"},{"v":0,"d":"$0.00"},{"v":0,"d":"$0.00"},{"v":0,"d":"$0.00"}]
["MMA",null,null,{"$f":"Jurat!I$1","v":0},{"$f":"Jurat!D$33","v":"00:00:00"},"Q4","2017-12-31","Region 4","Operating Expense","Taxes & Fees","Taxes & Fees","13.2","Department of Insurance Assessments",{"$f":"'MMA Rev-Exp Region 4'!AK$98","v":{"v":0,"d":"$0.00"}},{"v":0,"d":"$0.00"},{"v":0,"d":"$0.00"},{"v":0,"d":"$0.00"},{"v":0,"d":"$0.00"},{"v":0,"d":"$0.00"},{"v":0,"d":"$0.00"},{"v":0,"d":"$0.00"},{"v":0,"d":"$0.00"},{"v":0,"d":"$0.00"},{"v":0,"d":"$0.00"},{"v":0,"d":"$0.00"}]
["MMA",null,null,{"$f":"Jurat!I$1","v":0},{"$f":"Jurat!D$33","v":"00:00:00"},"Q1","2017-03-31","Region 5","Member Months","Member Months","Member Months",null,"Member Months",{"$f":"'MMA Rev-Exp Region 5'!D$9","v":{"v":0,"d":"$0.00"}},{"$f":"'MMA Rev-Exp Region 5'!E$9","v":{"v":0,"d":"$0.00"}},{"$f":"'MMA Rev-Exp Region 5'!F$9","v":{"v":0,"d":"$0.00"}},{"$f":"'MMA Rev-Exp Region 5'!G$9","v":{"v":0,"d":"$0.00"}},{"$f":"'MMA Rev-Exp Region 5'!H$9","v":{"v":0,"d":"$0.00"}},{"$f":"'MMA Rev-Exp Region 5'!I$9","v":{"v":0,"d":"$0.00"}},{"$f":"'MMA Rev-Exp Region 5'!J$9","v":{"v":0,"d":"$0.00"}},{"$f":"'MMA Rev-Exp Region 5'!K$9","v":{"v":0,"d":"$0.00"}},{"$f":"'MMA Rev-Exp Region 5'!L$9","v":{"v":0,"d":"$0.00"}},{"$f":"'MMA Rev-Exp Region 5'!M$9","v":{"v":0,"d":"$0.00"}},{"$f":"'MMA Rev-Exp Region 5'!N$9","v":{"v":0,"d":"$0.00"}},{"v":0,"d":"$0.00"}]
["MMA",null,null,{"$f":"Jurat!I$1","v":0},{"$f":"Jurat!D$33","v":"00:00:00"},"Q1","2017-03-31","Region 5","Operating Revenue","Kick Payments","Kick Payments - Hep C","1.3","Hepatitis C Kick Payments",{"$f":"'MMA Rev-Exp Region 5'!D$13","v":{"v":0,"d":"$0.00"}},{"$f":"'MMA Rev-Exp Region 5'!E$13","v":{"v":0,"d":"$0.00"}},{"$f":"'MMA Rev-Exp Region 5'!F$13","v":{"v":0,"d":"$0.00"}},{"$f":"'MMA Rev-Exp Region 5'!G$13","v":{"v":0,"d":"$0.00"}},{"$f":"'MMA Rev-Exp Region 5'!H$13","v":{"v":0,"d":"$0.00"}},{"$f":"'MMA Rev-Exp Region 5'!I$13","v":{"v":0,"d":"$0.00"}},{"$f":"'MMA Rev-Exp Region 5'!J$13","v":{"v":0,"d":"$0.00"}},{"$f":"'MMA Rev-Exp Region 5'!K$13","v":{"v":0,"d":"$0.00"}},{"$f":"'MMA Rev-Exp Region 5'!L$13","v":{"v":0,"d":"$0.00"}},{"$f":"'MMA Rev-Exp Region 5'!M$13","v":{"v":0,"d":"$0.00"}},{"$f":"'MMA Rev-Exp Region 5'!N$13","v":{"v":0,"d":"$0.00"}},{"v":0,"d":"$0.00"}]
["MMA",null,null,{"$f":"Jurat!I$1","v":0},{"$f":"Jurat!D$33","v":"00:00:00"},"Q1","2017-03-31","Region 5","Operating Expense","Medical Benefits Expense","Hospital Services",2.1,"Inpatient FFS",{"$f":"'MMA Rev-Exp Region 5'!D$20","v":{"v":0,"d":"$0.00"}},{"$f":"'MMA Rev-Exp Region 5'!E$20","v":{"v":0,"d":"$0.00"}},{"$f":"'MMA Rev-Exp Region 5'!F$20","v":{"v":0,"d":"$0.00"}},{"$f":"'MMA Rev-Exp Region 5'!G$20","v":{"v":0,"d":"$0.00"}},{"$f":"'MMA Rev-Exp Region 5'!H$20","v":{"v":0,"d":"$0.00"}},{"$f":"'MMA Rev-Exp Region 5'!I$20","v":{"v":0,"d":"$0.00"}},{"$f":"'MMA Rev-Exp Region 5'!J$20","v":{"v":0,"d":"$0.00"}},{"$f":"'MMA Rev-Exp Region 5'!K$20","v":{"v":0,"d":"$0.00"}},{"$f":"'MMA Rev-Exp Region 5'!L$20","v":{"v":0,"d":"$0.00"}},{"$f":"'MMA Rev-Exp Region 5'!M$20","v":{"v":0,"d":"$0.00"}},{"$f":"'MMA Rev-Exp Region 5'!N$20","v":{"v":0,"d":"$0.00"}},{"v":0,"d":"$0.00"}]
["MMA",null,null,{"$f":"Jurat!I$1","v":0},{"$f":"Jurat!D$33","v":"00:00:00"},"Q1","2017-03-31","Region 5","Operating Expense","Medical Benefits Expense","Hospital Services",2.4,"Outpatient FFS: Other than ER ",{"$f":"'MMA Rev-Exp Region 5'!D$23","v":{"v":0,"d":"$0.00"}},{"$f":"'MMA Rev-Exp Region 5'!E$23","v":{"v":0,"d":"$0.00"}},{"$f":"'MMA Rev-Exp Region 5'!F$23","v":{"v":0,"d":"$0.00"}},{"$f":"'MMA Rev-Exp Region 5'!G$23","v":{"v":0,"d":"$0.00"}},{"$f":"'MMA Rev-Exp Region 5'!H$23","v":{"v":0,"d":"$0.00"}},{"$f":"'MMA Rev-Exp Region 5'!I$23","v":{"v":0,"d":"$0.00"}},{"$f":"'MMA Rev-Exp Region 5'!J$23","v":{"v":0,"d":"$0.00"}},{"$f":"'MMA Rev-Exp Region 5'!K$23","v":{"v":0,"d":"$0.00"}},{"$f":"'MMA Rev-Exp Region 5'!L$23","v":{"v":0,"d":"$0.00"}},{"$f":"'MMA Rev-Exp Region 5'!M$23","v":{"v":0,"d":"$0.00"}},{"$f":"'MMA Rev-Exp Region 5'!N$23","v":{"v":0,"d":"$0.00"}},{"v":0,"d":"$0.00"}]
["MMA",null,null,{"$f":"Jurat!I$1","v":0},{"$f":"Jurat!D$33","v":"00:00:00"},"Q1","2017-03-31","Region 5","Operating Expense","Medical Benefits Expense","Hospital Services","2.7","Hospital Settlements",{"$f":"'MMA Rev-Exp Region 5'!D$26","v":{"v":0,"d":"$0.00"}},{"$f":"'MMA Rev-Exp Region 5'!E$26","v":{"v":0,"d":"$0.00"}},{"$f":"'MMA Rev-Exp Region 5'!F$26","v":{"v":0,"d":"$0.00"}},{"$f":"'MMA Rev-Exp Region 5'!G$26","v":{"v":0,"d":"$0.00"}},{"$f":"'MMA Rev-Exp Region 5'!H$26","v":{"v":0,"d":"$0.00"}},{"$f":"'MMA Rev-Exp Region 5'!I$26","v":{"v":0,"d":"$0.00"}},{"$f":"'MMA Rev-Exp Region 5'!J$26","v":{"v":0,"d":"$0.00"}},{"$f":"'MMA Rev-Exp Region 5'!K$26","v":{"v":0,"d":"$0.00"}},{"$f":"'MMA Rev-Exp Region 5'!L$26","v":{"v":0,"d":"$0.00"}},{"$f":"'MMA Rev-Exp Region 5'!M$26","v":{"v":0,"d":"$0.00"}},{"$f":"'MMA Rev-Exp Region 5'!N$26","v":{"v":0,"d":"$0.00"}},{"v":0,"d":"$0.00"}]
["MMA",null,null,{"$f":"Jurat!I$1","v":0},{"$f":"Jurat!D$33","v":"00:00:00"},"Q1","2017-03-31","Region 5","Operating Expense","Medical Benefits Expense","Professional Services",3.1,"Primary Care FFS",{"$f":"'MMA Rev-Exp Region 5'!D$29","v":{"v":0,"d":"$0.00"}},{"$f":"'MMA Rev-Exp Region 5'!E$29","v":{"v":0,"d":"$0.00"}},{"$f":"'MMA Rev-Exp Region 5'!F$29","v":{"v":0,"d":"$0.00"}},{"$f":"'MMA Rev-Exp Region 5'!G$29","v":{"v":0,"d":"$0.00"}},{"$f":"'MMA Rev-Exp Region 5'!H$29","v":{"v":0,"d":"$0.00"}},{"$f":"'MMA Rev-Exp Region 5'!I$29","v":{"v":0,"d":"$0.00"}},{"$f":"'MMA Rev-Exp Region 5'!J$29","v":{"v":0,"d":"$0.00"}},{"$f":"'MMA Rev-Exp Region 5'!K$29","v":{"v":0,"d":"$0.00"}},{"$f":"'MMA Rev-Exp Region 5'!L$29","v":{"v":0,"d":"$0.00"}},{"$f":"'MMA Rev-Exp Region 5'!M$29","v":{"v":0,"d":"$0.00"}},{"$f":"'MMA Rev-Exp Region 5'!N$29","v":{"v":0,"d":"$0.00"}},{"v":0,"d":"$0.00"}]
["MMA",null,null,{"$f":"Jurat!I$1","v":0},{"$f":"Jurat!D$33","v":"00:00:00"},"Q1","2017-03-31","Region 5","Operating Expense","Medical Benefits Expense","Professional Services","3.5","Subcapitated Professional Services",{"$f":"'MMA Rev-Exp Region 5'!D$33","v":{"v":0,"d":"$0.00"}},{"$f":"'MMA Rev-Exp Region 5'!E$33","v":{"v":0,"d":"$0.00"}},{"$f":"'MMA Rev-Exp Region 5'!F$33","v":{"v":0,"d":"$0.00"}},{"$f":"'MMA Rev-Exp Region 5'!G$33","v":{"v":0,"d":"$0.00"}},{"$f":"'MMA Rev-Exp Region 5'!H$33","v":{"v":0,"d":"$0.00"}},{"$f":"'MMA Rev-Exp Region 5'!I$33","v":{"v":0,"d":"$0.00"}},{"$f":"'MMA Rev-Exp Region 5'!J$33","v":{"v":0,"d":"$0.00"}},{"$f":"'MMA Rev-Exp Region 5'!K$33","v":{"v":0,"d":"$0.00"}},{"$f":"'MMA Rev-Exp Region 5'!L$33","v":{"v":0,"d":"$0.00"}},{"$f":"'MMA Rev-Exp Region 5'!M$33","v":{"v":0,"d":"$0.00"}},{"$f":"'MMA Rev-Exp Region 5'!N$33","v":{"v":0,"d":"$0.00"}},{"v":0,"d":"$0.00"}]
["MMA",null,null,{"$f":"Jurat!I$1","v":0},{"$f":"Jurat!D$33","v":"00:00:00"},"Q1","2017-03-31","Region 5","Operating Expense","Medical Benefits Expense","Professional Services","3.6","Ending IBNP for Professional Services",{"$f":"'MMA Rev-Exp Region 5'!D$34","v":{"v":0,"d":"$0.00"}},{"$f":"'MMA Rev-Exp Region 5'!E$34","v":{"v":0,"d":"$0.00"}},{"$f":"'MMA Rev-Exp Region 5'!F$34","v":{"v":0,"d":"$0.00"}},{"$f":"'MMA Rev-Exp Region 5'!G$34","v":{"v":0,"d":"$0.00"}},{"$f":"'MMA Rev-Exp Region 5'!H$34","v":{"v":0,"d":"$0.00"}},{"$f":"'MMA Rev-Exp Region 5'!I$34","v":{"v":0,"d":"$0.00"}},{"$f":"'MMA Rev-Exp Region 5'!J$34","v":{"v":0,"d":"$0.00"}},{"$f":"'MMA Rev-Exp Region 5'!K$34","v":{"v":0,"d":"$0.00"}},{"$f":"'MMA Rev-Exp Region 5'!L$34","v":{"v":0,"d":"$0.00"}},{"$f":"'MMA Rev-Exp Region 5'!M$34","v":{"v":0,"d":"$0.00"}},{"$f":"'MMA Rev-Exp Region 5'!N$34","v":{"v":0,"d":"$0.00"}},{"v":0,"d":"$0.00"}]
["MMA",null,null,{"$f":"Jurat!I$1","v":0},{"$f":"Jurat!D$33","v":"00:00:00"},"Q1","2017-03-31","Region 5","Operating Expense","Medical Benefits Expense","Maternity Services","4.2.1","Ending IBNP for Maternity Services",{"$f":"'MMA Rev-Exp Region 5'!D$38","v":{"v":0,"d":"$0.00"}},{"$f":"'MMA Rev-Exp Region 5'!E$38","v":{"v":0,"d":"$0.00"}},{"$f":"'MMA Rev-Exp Region 5'!F$38","v":{"v":0,"d":"$0.00"}},{"$f":"'MMA Rev-Exp Region 5'!G$38","v":{"v":0,"d":"$0.00"}},{"$f":"'MMA Rev-Exp Region 5'!H$38","v":{"v":0,"d":"$0.00"}},{"$f":"'MMA Rev-Exp Region 5'!I$38","v":{"v":0,"d":"$0.00"}},{"$f":"'MMA Rev-Exp Region 5'!J$38","v":{"v":0,"d":"$0.00"}},{"$f":"'MMA Rev-Exp Region 5'!K$38","v":{"v":0,"d":"$0.00"}},{"$f":"'MMA Rev-Exp Region 5'!L$38","v":{"v":0,"d":"$0.00"}},{"$f":"'MMA Rev-Exp Region 5'!M$38","v":{"v":0,"d":"$0.00"}},{"$f":"'MMA Rev-Exp Region 5'!N$38","v":{"v":0,"d":"$0.00"}},{"v":0,"d":"$0.00"}]
["MMA",null,null,{"$f":"Jurat!I$1","v":0},{"$f":"Jurat!D$33","v":"00:00:00"},"Q1","2017-03-31","Region 5","Operating Expense","Medical Benefits Expense","Mental Health Services",5.2,"Mental Health & Substance Abuse Subcapitation",{"$f":"'MMA Rev-Exp Region 5'!D$42","v":{"v":0,"d":"$0.00"}},{"$f":"'MMA Rev-Exp Region 5'!E$42","v":{"v":0,"d":"$0.00"}},{"$f":"'MMA Rev-Exp Region 5'!F$42","v":{"v":0,"d":"$0.00"}},{"$f":"'MMA Rev-Exp Region 5'!G$42","v":{"v":0,"d":"$0.00"}},{"$f":"'MMA Rev-Exp Region 5'!H$42","v":{"v":0,"d":"$0.00"}},{"$f":"'MMA Rev-Exp Region 5'!I$42","v":{"v":0,"d":"$0.00"}},{"$f":"'MMA Rev-Exp Region 5'!J$42","v":{"v":0,"d":"$0.00"}},{"$f":"'MMA Rev-Exp Region 5'!K$42","v":{"v":0,"d":"$0.00"}},{"$f":"'MMA Rev-Exp Region 5'!L$42","v":{"v":0,"d":"$0.00"}},{"$f":"'MMA Rev-Exp Region 5'!M$42","v":{"v":0,"d":"$0.00"}},{"$f":"'MMA Rev-Exp Region 5'!N$42","v":{"v":0,"d":"$0.00"}},{"v":0,"d":"$0.00"}]
["MMA",null,null,{"$f":"Jurat!I$1","v":0},{"$f":"Jurat!D$33","v":"00:00:00"},"Q1","2017-03-31","Region 5","Operating Expense","Medical Benefits Expense","Dental Services",6.2,"Dental Subcapitation",{"$f":"'MMA Rev-Exp Region 5'!D$47","v":{"v":0,"d":"$0.00"}},{"$f":"'MMA Rev-Exp Region 5'!E$47","v":{"v":0,"d":"$0.00"}},{"$f":"'MMA Rev-Exp Region 5'!F$47","v":{"v":0,"d":"$0.00"}},{"$f":"'MMA Rev-Exp Region 5'!G$47","v":{"v":0,"d":"$0.00"}},{"$f":"'MMA Rev-Exp Region 5'!H$47","v":{"v":0,"d":"$0.00"}},{"$f":"'MMA Rev-Exp Region 5'!I$47","v":{"v":0,"d":"$0.00"}},{"$f":"'MMA Rev-Exp Region 5'!J$47","v":{"v":0,"d":"$0.00"}},{"$f":"'MMA Rev-Exp Region 5'!K$47","v":{"v":0,"d":"$0.00"}},{"$f":"'MMA Rev-Exp Region 5'!L$47","v":{"v":0,"d":"$0.00"}},{"$f":"'MMA Rev-Exp Region 5'!M$47","v":{"v":0,"d":"$0.00"}},{"$f":"'MMA Rev-Exp Region 5'!N$47","v":{"v":0,"d":"$0.00"}},{"v":0,"d":"$0.00"}]
["MMA",null,null,{"$f":"Jurat!I$1","v":0},{"$f":"Jurat!D$33","v":"00:00:00"},"Q1","2017-03-31","Region 5","Operating Expense","Medical Benefits Expense","Transportation Services",7.1,"Transportation FFS",{"$f":"'MMA Rev-Exp Region 5'!D$51","v":{"v":0,"d":"$0.00"}},{"$f":"'MMA Rev-Exp Region 5'!E$51","v":{"v":0,"d":"$0.00"}},{"$f":"'MMA Rev-Exp Region 5'!F$51","v":{"v":0,"d":"$0.00"}},{"$f":"'MMA Rev-Exp Region 5'!G$51","v":{"v":0,"d":"$0.00"}},{"$f":"'MMA Rev-Exp Region 5'!H$51","v":{"v":0,"d":"$0.00"}},{"$f":"'MMA Rev-Exp Region 5'!I$51","v":{"v":0,"d":"$0.00"}},{"$f":"'MMA Rev-Exp Region 5'!J$51","v":{"v":0,"d":"$0.00"}},{"$f":"'MMA Rev-Exp Region 5'!K$51","v":{"v":0,"d":"$0.00"}},{"$f":"'MMA Rev-Exp Region 5'!L$51","v":{"v":0,"d":"$0.00"}},{"$f":"'MMA Rev-Exp Region 5'!M$51","v":{"v":0,"d":"$0.00"}},{"$f":"'MMA Rev-Exp Region 5'!N$51","v":{"v":0,"d":"$0.00"}},{"v":0,"d":"$0.00"}]
["MMA",null,null,{"$f":"Jurat!I$1","v":0},{"$f":"Jurat!D$33","v":"00:00:00"},"Q1","2017-03-31","Region 5","Operating Expense","Medical Benefits Expense","Pharmacy Services",8.1,"Prescription Drugs FFS",{"$f":"'MMA Rev-Exp Region 5'!D$56","v":{"v":0,"d":"$0.00"}},{"$f":"'MMA Rev-Exp Region 5'!E$56","v":{"v":0,"d":"$0.00"}},{"$f":"'MMA Rev-Exp Region 5'!F$56","v":{"v":0,"d":"$0.00"}},{"$f":"'MMA Rev-Exp Region 5'!G$56","v":{"v":0,"d":"$0.00"}},{"$f":"'MMA Rev-Exp Region 5'!H$56","v":{"v":0,"d":"$0.00"}},{"$f":"'MMA Rev-Exp Region 5'!I$56","v":{"v":0,"d":"$0.00"}},{"$f":"'MMA Rev-Exp Region 5'!J$56","v":{"v":0,"d":"$0.00"}},{"$f":"'MMA Rev-Exp Region 5'!K$56","v":{"v":0,"d":"$0.00"}},{"$f":"'MMA Rev-Exp Region 5'!L$56","v":{"v":0,"d":"$0.00"}},{"$f":"'MMA Rev-Exp Region 5'!M$56","v":{"v":0,"d":"$0.00"}},{"$f":"'MMA Rev-Exp Region 5'!N$56","v":{"v":0,"d":"$0.00"}},{"v":0,"d":"$0.00"}]
["MMA",null,null,{"$f":"Jurat!I$1","v":0},{"$f":"Jurat!D$33","v":"00:00:00"},"Q1","2017-03-31","Region 5","Operating Expense","Medical Benefits Expense","Pharmacy Services","8.4","Prescription Drug Rebates ",{"$f":"'MMA Rev-Exp Region 5'!D$59","v":{"v":0,"d":"$0.00"}},{"$f":"'MMA Rev-Exp Region 5'!E$59","v":{"v":0,"d":"$0.00"}},{"$f":"'MMA Rev-Exp Region 5'!F$59","v":{"v":0,"d":"$0.00"}},{"$f":"'MMA Rev-Exp Region 5'!G$59","v":{"v":0,"d":"$0.00"}},{"$f":"'MMA Rev-Exp Region 5'!H$59","v":{"v":0,"d":"$0.00"}},{"$f":"'MMA Rev-Exp Region 5'!I$59","v":{"v":0,"d":"$0.00"}},{"$f":"'MMA Rev-Exp Region 5'!J$59","v":{"v":0,"d":"$0.00"}},{"$f":"'MMA Rev-Exp Region 5'!K$59","v":{"v":0,"d":"$0.00"}},{"$f":"'MMA Rev-Exp Region 5'!L$59","v":{"v":0,"d":"$0.00"}},{"$f":"'MMA Rev-Exp Region 5'!M$59","v":{"v":0,"d":"$0.00"}},{"$f":"'MMA Rev-Exp Region 5'!N$59","v":{"v":0,"d":"$0.00"}},{"v":0,"d":"$0.00"}]
["MMA",null,null,{"$f":"Jurat!I$1","v":0},{"$f":"Jurat!D$33","v":"00:00:00"},"Q1","2017-03-31","Region 5","Operating Expense","Medical Benefits Expense","Pharmacy Services","8.6","Prescription Drugs Subcapitation",{"$f":"'MMA Rev-Exp Region 5'!D$61","v":{"v":0,"d":"$0.00"}},{"$f":"'MMA Rev-Exp Region 5'!E$61","v":{"v":0,"d":"$0.00"}},{"$f":"'MMA Rev-Exp Region 5'!F$61","v":{"v":0,"d":"$0.00"}},{"$f":"'MMA Rev-Exp Region 5'!G$61","v":{"v":0,"d":"$0.00"}},{"$f":"'MMA Rev-Exp Region 5'!H$61","v":{"v":0,"d":"$0.00"}},{"$f":"'MMA Rev-Exp Region 5'!I$61","v":{"v":0,"d":"$0.00"}},{"$f":"'MMA Rev-Exp Region 5'!J$61","v":{"v":0,"d":"$0.00"}},{"$f":"'MMA Rev-Exp Region 5'!K$61","v":{"v":0,"d":"$0.00"}},{"$f":"'MMA Rev-Exp Region 5'!L$61","v":{"v":0,"d":"$0.00"}},{"$f":"'MMA Rev-Exp Region 5'!M$61","v":{"v":0,"d":"$0.00"}},{"$f":"'MMA Rev-Exp Region 5'!N$61","v":{"v":0,"d":"$0.00"}},{"v":0,"d":"$0.00"}]
["MMA",null,null,{"$f":"Jurat!I$1","v":0},{"$f":"Jurat!D$33","v":"00:00:00"},"Q1","2017-03-31","Region 5","Operating Expense","Medical Benefits Expense","Pharmacy Services","8.7","Prescription Drug Settlements",{"$f":"'MMA Rev-Exp Region 5'!D$62","v":{"v":0,"d":"$0.00"}},{"$f":"'MMA Rev-Exp Region 5'!E$62","v":{"v":0,"d":"$0.00"}},{"$f":"'MMA Rev-Exp Region 5'!F$62","v":{"v":0,"d":"$0.00"}},{"$f":"'MMA Rev-Exp Region 5'!G$62","v":{"v":0,"d":"$0.00"}},{"$f":"'MMA Rev-Exp Region 5'!H$62","v":{"v":0,"d":"$0.00"}},{"$f":"'MMA Rev-Exp Region 5'!I$62","v":{"v":0,"d":"$0.00"}},{"$f":"'MMA Rev-Exp Region 5'!J$62","v":{"v":0,"d":"$0.00"}},{"$f":"'MMA Rev-Exp Region 5'!K$62","v":{"v":0,"d":"$0.00"}},{"$f":"'MMA Rev-Exp Region 5'!L$62","v":{"v":0,"d":"$0.00"}},{"$f":"'MMA Rev-Exp Region 5'!M$62","v":{"v":0,"d":"$0.00"}},{"$f":"'MMA Rev-Exp Region 5'!N$62","v":{"v":0,"d":"$0.00"}},{"v":0,"d":"$0.00"}]
["MMA",null,null,{"$f":"Jurat!I$1","v":0},{"$f":"Jurat!D$33","v":"00:00:00"},"Q1","2017-03-31","Region 5","Operating Expense","Medical Benefits Expense","Other MMA Services","9.3","DME FFS",{"$f":"'MMA Rev-Exp Region 5'!D$66","v":{"v":0,"d":"$0.00"}},{"$f":"'MMA Rev-Exp Region 5'!E$66","v":{"v":0,"d":"$0.00"}},{"$f":"'MMA Rev-Exp Region 5'!F$66","v":{"v":0,"d":"$0.00"}},{"$f":"'MMA Rev-Exp Region 5'!G$66","v":{"v":0,"d":"$0.00"}},{"$f":"'MMA Rev-Exp Region 5'!H$66","v":{"v":0,"d":"$0.00"}},{"$f":"'MMA Rev-Exp Region 5'!I$66","v":{"v":0,"d":"$0.00"}},{"$f":"'MMA Rev-Exp Region 5'!J$66","v":{"v":0,"d":"$0.00"}},{"$f":"'MMA Rev-Exp Region 5'!K$66","v":{"v":0,"d":"$0.00"}},{"$f":"'MMA Rev-Exp Region 5'!L$66","v":{"v":0,"d":"$0.00"}},{"$f":"'MMA Rev-Exp Region 5'!M$66","v":{"v":0,"d":"$0.00"}},{"$f":"'MMA Rev-Exp Region 5'!N$66","v":{"v":0,"d":"$0.00"}},{"v":0,"d":"$0.00"}]
["MMA",null,null,{"$f":"Jurat!I$1","v":0},{"$f":"Jurat!D$33","v":"00:00:00"},"Q1","2017-03-31","Region 5","Operating Expense","Medical Benefits Expense","Other MMA Services","9.6","Ending IBNP for Other Services",{"$f":"'MMA Rev-Exp Region 5'!D$69","v":{"v":0,"d":"$0.00"}},{"$f":"'MMA Rev-Exp Region 5'!E$69","v":{"v":0,"d":"$0.00"}},{"$f":"'MMA Rev-Exp Region 5'!F$69","v":{"v":0,"d":"$0.00"}},{"$f":"'MMA Rev-Exp Region 5'!G$69","v":{"v":0,"d":"$0.00"}},{"$f":"'MMA Rev-Exp Region 5'!H$69","v":{"v":0,"d":"$0.00"}},{"$f":"'MMA Rev-Exp Region 5'!I$69","v":{"v":0,"d":"$0.00"}},{"$f":"'MMA Rev-Exp Region 5'!J$69","v":{"v":0,"d":"$0.00"}},{"$f":"'MMA Rev-Exp Region 5'!K$69","v":{"v":0,"d":"$0.00"}},{"$f":"'MMA Rev-Exp Region 5'!L$69","v":{"v":0,"d":"$0.00"}},{"$f":"'MMA Rev-Exp Region 5'!M$69","v":{"v":0,"d":"$0.00"}},{"$f":"'MMA Rev-Exp Region 5'!N$69","v":{"v":0,"d":"$0.00"}},{"v":0,"d":"$0.00"}]
["MMA",null,null,{"$f":"Jurat!I$1","v":0},{"$f":"Jurat!D$33","v":"00:00:00"},"Q1","2017-03-31","Region 5","Operating Expense","Medical Benefits Expense","Expanded Benefits","10.3","Ending IBNP for Expanded Benefits",{"$f":"'MMA Rev-Exp Region 5'!D$74","v":{"v":0,"d":"$0.00"}},{"$f":"'MMA Rev-Exp Region 5'!E$74","v":{"v":0,"d":"$0.00"}},{"$f":"'MMA Rev-Exp Region 5'!F$74","v":{"v":0,"d":"$0.00"}},{"$f":"'MMA Rev-Exp Region 5'!G$74","v":{"v":0,"d":"$0.00"}},{"$f":"'MMA Rev-Exp Region 5'!H$74","v":{"v":0,"d":"$0.00"}},{"$f":"'MMA Rev-Exp Region 5'!I$74","v":{"v":0,"d":"$0.00"}},{"$f":"'MMA Rev-Exp Region 5'!J$74","v":{"v":0,"d":"$0.00"}},{"$f":"'MMA Rev-Exp Region 5'!K$74","v":{"v":0,"d":"$0.00"}},{"$f":"'MMA Rev-Exp Region 5'!L$74","v":{"v":0,"d":"$0.00"}},{"$f":"'MMA Rev-Exp Region 5'!M$74","v":{"v":0,"d":"$0.00"}},{"$f":"'MMA Rev-Exp Region 5'!N$74","v":{"v":0,"d":"$0.00"}},{"v":0,"d":"$0.00"}]
["MMA",null,null,{"$f":"Jurat!I$1","v":0},{"$f":"Jurat!D$33","v":"00:00:00"},"Q1","2017-03-31","Region 5","Operating Expense","Medical Benefits Expense","Other Medical","11.6.1","Premium Deficiency Reserve",{"$f":"'MMA Rev-Exp Region 5'!D$82","v":{"v":0,"d":"$0.00"}},{"$f":"'MMA Rev-Exp Region 5'!E$82","v":{"v":0,"d":"$0.00"}},{"$f":"'MMA Rev-Exp Region 5'!F$82","v":{"v":0,"d":"$0.00"}},{"$f":"'MMA Rev-Exp Region 5'!G$82","v":{"v":0,"d":"$0.00"}},{"$f":"'MMA Rev-Exp Region 5'!H$82","v":{"v":0,"d":"$0.00"}},{"$f":"'MMA Rev-Exp Region 5'!I$82","v":{"v":0,"d":"$0.00"}},{"$f":"'MMA Rev-Exp Region 5'!J$82","v":{"v":0,"d":"$0.00"}},{"$f":"'MMA Rev-Exp Region 5'!K$82","v":{"v":0,"d":"$0.00"}},{"$f":"'MMA Rev-Exp Region 5'!L$82","v":{"v":0,"d":"$0.00"}},{"$f":"'MMA Rev-Exp Region 5'!M$82","v":{"v":0,"d":"$0.00"}},{"$f":"'MMA Rev-Exp Region 5'!N$82","v":{"v":0,"d":"$0.00"}},{"v":0,"d":"$0.00"}]
["MMA",null,null,{"$f":"Jurat!I$1","v":0},{"$f":"Jurat!D$33","v":"00:00:00"},"Q1","2017-03-31","Region 5","Operating Expense","Administrative Expense","Administrative","12.2","Administrative Services",{"$f":"'MMA Rev-Exp Region 5'!D$91","v":{"v":0,"d":"$0.00"}},{"v":0,"d":"$0.00"},{"v":0,"d":"$0.00"},{"v":0,"d":"$0.00"},{"v":0,"d":"$0.00"},{"v":0,"d":"$0.00"},{"v":0,"d":"$0.00"},{"v":0,"d":"$0.00"},{"v":0,"d":"$0.00"},{"v":0,"d":"$0.00"},{"v":0,"d":"$0.00"},{"v":0,"d":"$0.00"}]
["MMA",null,null,{"$f":"Jurat!I$1","v":0},{"$f":"Jurat!D$33","v":"00:00:00"},"Q1","2017-03-31","Region 5","Operating Expense","Administrative Expense","Administrative","12.5","General  Administration",{"$f":"'MMA Rev-Exp Region 5'!D$94","v":{"v":0,"d":"$0.00"}},{"v":0,"d":"$0.00"},{"v":0,"d":"$0.00"},{"v":0,"d":"$0.00"},{"v":0,"d":"$0.00"},{"v":0,"d":"$0.00"},{"v":0,"d":"$0.00"},{"v":0,"d":"$0.00"},{"v":0,"d":"$0.00"},{"v":0,"d":"$0.00"},{"v":0,"d":"$0.00"},{"v":0,"d":"$0.00"}]
["MMA",null,null,{"$f":"Jurat!I$1","v":0},{"$f":"Jurat!D$33","v":"00:00:00"},"Q1","2017-03-31","Region 5","Operating Expense","Taxes & Fees","Taxes & Fees","13.2","Department of Insurance Assessments",{"$f":"'MMA Rev-Exp Region 5'!D$98","v":{"v":0,"d":"$0.00"}},{"v":0,"d":"$0.00"},{"v":0,"d":"$0.00"},{"v":0,"d":"$0.00"},{"v":0,"d":"$0.00"},{"v":0,"d":"$0.00"},{"v":0,"d":"$0.00"},{"v":0,"d":"$0.00"},{"v":0,"d":"$0.00"},{"v":0,"d":"$0.00"},{"v":0,"d":"$0.00"},{"v":0,"d":"$0.00"}]
["MMA",null,null,{"$f":"Jurat!I$1","v":0},{"$f":"Jurat!D$33","v":"00:00:00"},"Q1","2017-03-31","Region 5","Operating Expense","Taxes & Fees","Taxes & Fees","13.3","Section 9010 Health Insurance Providers Fee",{"$f":"'MMA Rev-Exp Region 5'!D$99","v":{"v":0,"d":"$0.00"}},{"v":0,"d":"$0.00"},{"v":0,"d":"$0.00"},{"v":0,"d":"$0.00"},{"v":0,"d":"$0.00"},{"v":0,"d":"$0.00"},{"v":0,"d":"$0.00"},{"v":0,"d":"$0.00"},{"v":0,"d":"$0.00"},{"v":0,"d":"$0.00"},{"v":0,"d":"$0.00"},{"v":0,"d":"$0.00"}]
["MMA",null,null,{"$f":"Jurat!I$1","v":0},{"$f":"Jurat!D$33","v":"00:00:00"},"Q2","2017-06-30","Region 5","Member Months","Member Months","Member Months",null,"Member Months",{"$f":"'MMA Rev-Exp Region 5'!O$9","v":{"v":0,"d":"$0.00"}},{"$f":"'MMA Rev-Exp Region 5'!P$9","v":{"v":0,"d":"$0.00"}},{"$f":"'MMA Rev-Exp Region 5'!Q$9","v":{"v":0,"d":"$0.00"}},{"$f":"'MMA Rev-Exp Region 5'!R$9","v":{"v":0,"d":"$0.00"}},{"$f":"'MMA Rev-Exp Region 5'!S$9","v":{"v":0,"d":"$0.00"}},{"$f":"'MMA Rev-Exp Region 5'!T$9","v":{"v":0,"d":"$0.00"}},{"$f":"'MMA Rev-Exp Region 5'!U$9","v":{"v":0,"d":"$0.00"}},{"$f":"'MMA Rev-Exp Region 5'!V$9","v":{"v":0,"d":"$0.00"}},{"$f":"'MMA Rev-Exp Region 5'!W$9","v":{"v":0,"d":"$0.00"}},{"$f":"'MMA Rev-Exp Region 5'!X$9","v":{"v":0,"d":"$0.00"}},{"$f":"'MMA Rev-Exp Region 5'!Y$9","v":{"v":0,"d":"$0.00"}},{"v":0,"d":"$0.00"}]
["MMA",null,null,{"$f":"Jurat!I$1","v":0},{"$f":"Jurat!D$33","v":"00:00:00"},"Q2","2017-06-30","Region 5","Operating Revenue","Kick Payments","Kick Payments - Hep C","1.3","Hepatitis C Kick Payments",{"$f":"'MMA Rev-Exp Region 5'!O$13","v":{"v":0,"d":"$0.00"}},{"$f":"'MMA Rev-Exp Region 5'!P$13","v":{"v":0,"d":"$0.00"}},{"$f":"'MMA Rev-Exp Region 5'!Q$13","v":{"v":0,"d":"$0.00"}},{"$f":"'MMA Rev-Exp Region 5'!R$13","v":{"v":0,"d":"$0.00"}},{"$f":"'MMA Rev-Exp Region 5'!S$13","v":{"v":0,"d":"$0.00"}},{"$f":"'MMA Rev-Exp Region 5'!T$13","v":{"v":0,"d":"$0.00"}},{"$f":"'MMA Rev-Exp Region 5'!U$13","v":{"v":0,"d":"$0.00"}},{"$f":"'MMA Rev-Exp Region 5'!V$13","v":{"v":0,"d":"$0.00"}},{"$f":"'MMA Rev-Exp Region 5'!W$13","v":{"v":0,"d":"$0.00"}},{"$f":"'MMA Rev-Exp Region 5'!X$13","v":{"v":0,"d":"$0.00"}},{"$f":"'MMA Rev-Exp Region 5'!Y$13","v":{"v":0,"d":"$0.00"}},{"v":0,"d":"$0.00"}]
["MMA",null,null,{"$f":"Jurat!I$1","v":0},{"$f":"Jurat!D$33","v":"00:00:00"},"Q2","2017-06-30","Region 5","Operating Expense","Medical Benefits Expense","Hospital Services",2.1,"Inpatient FFS",{"$f":"'MMA Rev-Exp Region 5'!O$20","v":{"v":0,"d":"$0.00"}},{"$f":"'MMA Rev-Exp Region 5'!P$20","v":{"v":0,"d":"$0.00"}},{"$f":"'MMA Rev-Exp Region 5'!Q$20","v":{"v":0,"d":"$0.00"}},{"$f":"'MMA Rev-Exp Region 5'!R$20","v":{"v":0,"d":"$0.00"}},{"$f":"'MMA Rev-Exp Region 5'!S$20","v":{"v":0,"d":"$0.00"}},{"$f":"'MMA Rev-Exp Region 5'!T$20","v":{"v":0,"d":"$0.00"}},{"$f":"'MMA Rev-Exp Region 5'!U$20","v":{"v":0,"d":"$0.00"}},{"$f":"'MMA Rev-Exp Region 5'!V$20","v":{"v":0,"d":"$0.00"}},{"$f":"'MMA Rev-Exp Region 5'!W$20","v":{"v":0,"d":"$0.00"}},{"$f":"'MMA Rev-Exp Region 5'!X$20","v":{"v":0,"d":"$0.00"}},{"$f":"'MMA Rev-Exp Region 5'!Y$20","v":{"v":0,"d":"$0.00"}},{"v":0,"d":"$0.00"}]
["MMA",null,null,{"$f":"Jurat!I$1","v":0},{"$f":"Jurat!D$33","v":"00:00:00"},"Q2","2017-06-30","Region 5","Operating Expense","Medical Benefits Expense","Hospital Services",2.4,"Outpatient FFS: Other than ER ",{"$f":"'MMA Rev-Exp Region 5'!O$23","v":{"v":0,"d":"$0.00"}},{"$f":"'MMA Rev-Exp Region 5'!P$23","v":{"v":0,"d":"$0.00"}},{"$f":"'MMA Rev-Exp Region 5'!Q$23","v":{"v":0,"d":"$0.00"}},{"$f":"'MMA Rev-Exp Region 5'!R$23","v":{"v":0,"d":"$0.00"}},{"$f":"'MMA Rev-Exp Region 5'!S$23","v":{"v":0,"d":"$0.00"}},{"$f":"'MMA Rev-Exp Region 5'!T$23","v":{"v":0,"d":"$0.00"}},{"$f":"'MMA Rev-Exp Region 5'!U$23","v":{"v":0,"d":"$0.00"}},{"$f":"'MMA Rev-Exp Region 5'!V$23","v":{"v":0,"d":"$0.00"}},{"$f":"'MMA Rev-Exp Region 5'!W$23","v":{"v":0,"d":"$0.00"}},{"$f":"'MMA Rev-Exp Region 5'!X$23","v":{"v":0,"d":"$0.00"}},{"$f":"'MMA Rev-Exp Region 5'!Y$23","v":{"v":0,"d":"$0.00"}},{"v":0,"d":"$0.00"}]
["MMA",null,null,{"$f":"Jurat!I$1","v":0},{"$f":"Jurat!D$33","v":"00:00:00"},"Q2","2017-06-30","Region 5","Operating Expense","Medical Benefits Expense","Hospital Services","2.7.1","Transplant Services",{"$f":"'MMA Rev-Exp Region 5'!O$27","v":{"v":0,"d":"$0.00"}},{"$f":"'MMA Rev-Exp Region 5'!P$27","v":{"v":0,"d":"$0.00"}},{"$f":"'MMA Rev-Exp Region 5'!Q$27","v":{"v":0,"d":"$0.00"}},{"$f":"'MMA Rev-Exp Region 5'!R$27","v":{"v":0,"d":"$0.00"}},{"$f":"'MMA Rev-Exp Region 5'!S$27","v":{"v":0,"d":"$0.00"}},{"$f":"'MMA Rev-Exp Region 5'!T$27","v":{"v":0,"d":"$0.00"}},{"$f":"'MMA Rev-Exp Region 5'!U$27","v":{"v":0,"d":"$0.00"}},{"$f":"'MMA Rev-Exp Region 5'!V$27","v":{"v":0,"d":"$0.00"}},{"$f":"'MMA Rev-Exp Region 5'!W$27","v":{"v":0,"d":"$0.00"}},{"$f":"'MMA Rev-Exp Region 5'!X$27","v":{"v":0,"d":"$0.00"}},{"$f":"'MMA Rev-Exp Region 5'!Y$27","v":{"v":0,"d":"$0.00"}},{"v":0,"d":"$0.00"}]
["MMA",null,null,{"$f":"Jurat!I$1","v":0},{"$f":"Jurat!D$33","v":"00:00:00"},"Q2","2017-06-30","Region 5","Operating Expense","Medical Benefits Expense","Professional Services",3.3,"Other Professional FFS",{"$f":"'MMA Rev-Exp Region 5'!O$31","v":{"v":0,"d":"$0.00"}},{"$f":"'MMA Rev-Exp Region 5'!P$31","v":{"v":0,"d":"$0.00"}},{"$f":"'MMA Rev-Exp Region 5'!Q$31","v":{"v":0,"d":"$0.00"}},{"$f":"'MMA Rev-Exp Region 5'!R$31","v":{"v":0,"d":"$0.00"}},{"$f":"'MMA Rev-Exp Region 5'!S$31","v":{"v":0,"d":"$0.00"}},{"$f":"'MMA Rev-Exp Region 5'!T$31","v":{"v":0,"d":"$0.00"}},{"$f":"'MMA Rev-Exp Region 5'!U$31","v":{"v":0,"d":"$0.00"}},{"$f":"'MMA Rev-Exp Region 5'!V$31","v":{"v":0,"d":"$0.00"}},{"$f":"'MMA Rev-Exp Region 5'!W$31","v":{"v":0,"d":"$0.00"}},{"$f":"'MMA Rev-Exp Region 5'!X$31","v":{"v":0,"d":"$0.00"}},{"$f":"'MMA Rev-Exp Region 5'!Y$31","v":{"v":0,"d":"$0.00"}},{"v":0,"d":"$0.00"}]
["MMA",null,null,{"$f":"Jurat!I$1","v":0},{"$f":"Jurat!D$33","v":"00:00:00"},"Q2","2017-06-30","Region 5","Operating Expense","Medical Benefits Expense","Professional Services","3.6","Ending IBNP for Professional Services",{"$f":"'MMA Rev-Exp Region 5'!O$34","v":{"v":0,"d":"$0.00"}},{"$f":"'MMA Rev-Exp Region 5'!P$34","v":{"v":0,"d":"$0.00"}},{"$f":"'MMA Rev-Exp Region 5'!Q$34","v":{"v":0,"d":"$0.00"}},{"$f":"'MMA Rev-Exp Region 5'!R$34","v":{"v":0,"d":"$0.00"}},{"$f":"'MMA Rev-Exp Region 5'!S$34","v":{"v":0,"d":"$0.00"}},{"$f":"'MMA Rev-Exp Region 5'!T$34","v":{"v":0,"d":"$0.00"}},{"$f":"'MMA Rev-Exp Region 5'!U$34","v":{"v":0,"d":"$0.00"}},{"$f":"'MMA Rev-Exp Region 5'!V$34","v":{"v":0,"d":"$0.00"}},{"$f":"'MMA Rev-Exp Region 5'!W$34","v":{"v":0,"d":"$0.00"}},{"$f":"'MMA Rev-Exp Region 5'!X$34","v":{"v":0,"d":"$0.00"}},{"$f":"'MMA Rev-Exp Region 5'!Y$34","v":{"v":0,"d":"$0.00"}},{"v":0,"d":"$0.00"}]
["MMA",null,null,{"$f":"Jurat!I$1","v":0},{"$f":"Jurat!D$33","v":"00:00:00"},"Q2","2017-06-30","Region 5","Operating Expense","Medical Benefits Expense","Professional Services","3.7","Professional Services Settlements",{"$f":"'MMA Rev-Exp Region 5'!O$35","v":{"v":0,"d":"$0.00"}},{"$f":"'MMA Rev-Exp Region 5'!P$35","v":{"v":0,"d":"$0.00"}},{"$f":"'MMA Rev-Exp Region 5'!Q$35","v":{"v":0,"d":"$0.00"}},{"$f":"'MMA Rev-Exp Region 5'!R$35","v":{"v":0,"d":"$0.00"}},{"$f":"'MMA Rev-Exp Region 5'!S$35","v":{"v":0,"d":"$0.00"}},{"$f":"'MMA Rev-Exp Region 5'!T$35","v":{"v":0,"d":"$0.00"}},{"$f":"'MMA Rev-Exp Region 5'!U$35","v":{"v":0,"d":"$0.00"}},{"$f":"'MMA Rev-Exp Region 5'!V$35","v":{"v":0,"d":"$0.00"}},{"$f":"'MMA Rev-Exp Region 5'!W$35","v":{"v":0,"d":"$0.00"}},{"$f":"'MMA Rev-Exp Region 5'!X$35","v":{"v":0,"d":"$0.00"}},{"$f":"'MMA Rev-Exp Region 5'!Y$35","v":{"v":0,"d":"$0.00"}},{"v":0,"d":"$0.00"}]
["MMA",null,null,{"$f":"Jurat!I$1","v":0},{"$f":"Jurat!D$33","v":"00:00:00"},"Q2","2017-06-30","Region 5","Operating Expense","Medical Benefits Expense","Maternity Services","4.3.1","Maternity Settlements",{"$f":"'MMA Rev-Exp Region 5'!O$39","v":{"v":0,"d":"$0.00"}},{"$f":"'MMA Rev-Exp Region 5'!P$39","v":{"v":0,"d":"$0.00"}},{"$f":"'MMA Rev-Exp Region 5'!Q$39","v":{"v":0,"d":"$0.00"}},{"$f":"'MMA Rev-Exp Region 5'!R$39","v":{"v":0,"d":"$0.00"}},{"$f":"'MMA Rev-Exp Region 5'!S$39","v":{"v":0,"d":"$0.00"}},{"$f":"'MMA Rev-Exp Region 5'!T$39","v":{"v":0,"d":"$0.00"}},{"$f":"'MMA Rev-Exp Region 5'!U$39","v":{"v":0,"d":"$0.00"}},{"$f":"'MMA Rev-Exp Region 5'!V$39","v":{"v":0,"d":"$0.00"}},{"$f":"'MMA Rev-Exp Region 5'!W$39","v":{"v":0,"d":"$0.00"}},{"$f":"'MMA Rev-Exp Region 5'!X$39","v":{"v":0,"d":"$0.00"}},{"$f":"'MMA Rev-Exp Region 5'!Y$39","v":{"v":0,"d":"$0.00"}},{"v":0,"d":"$0.00"}]
["MMA",null,null,{"$f":"Jurat!I$1","v":0},{"$f":"Jurat!D$33","v":"00:00:00"},"Q2","2017-06-30","Region 5","Operating Expense","Medical Benefits Expense","Mental Health Services",5.3,"Ending IBNP for Mental Health & Substance Abuse",{"$f":"'MMA Rev-Exp Region 5'!O$43","v":{"v":0,"d":"$0.00"}},{"$f":"'MMA Rev-Exp Region 5'!P$43","v":{"v":0,"d":"$0.00"}},{"$f":"'MMA Rev-Exp Region 5'!Q$43","v":{"v":0,"d":"$0.00"}},{"$f":"'MMA Rev-Exp Region 5'!R$43","v":{"v":0,"d":"$0.00"}},{"$f":"'MMA Rev-Exp Region 5'!S$43","v":{"v":0,"d":"$0.00"}},{"$f":"'MMA Rev-Exp Region 5'!T$43","v":{"v":0,"d":"$0.00"}},{"$f":"'MMA Rev-Exp Region 5'!U$43","v":{"v":0,"d":"$0.00"}},{"$f":"'MMA Rev-Exp Region 5'!V$43","v":{"v":0,"d":"$0.00"}},{"$f":"'MMA Rev-Exp Region 5'!W$43","v":{"v":0,"d":"$0.00"}},{"$f":"'MMA Rev-Exp Region 5'!X$43","v":{"v":0,"d":"$0.00"}},{"$f":"'MMA Rev-Exp Region 5'!Y$43","v":{"v":0,"d":"$0.00"}},{"v":0,"d":"$0.00"}]
["MMA",null,null,{"$f":"Jurat!I$1","v":0},{"$f":"Jurat!D$33","v":"00:00:00"},"Q2","2017-06-30","Region 5","Operating Expense","Medical Benefits Expense","Dental Services",6.2,"Dental Subcapitation",{"$f":"'MMA Rev-Exp Region 5'!O$47","v":{"v":0,"d":"$0.00"}},{"$f":"'MMA Rev-Exp Region 5'!P$47","v":{"v":0,"d":"$0.00"}},{"$f":"'MMA Rev-Exp Region 5'!Q$47","v":{"v":0,"d":"$0.00"}},{"$f":"'MMA Rev-Exp Region 5'!R$47","v":{"v":0,"d":"$0.00"}},{"$f":"'MMA Rev-Exp Region 5'!S$47","v":{"v":0,"d":"$0.00"}},{"$f":"'MMA Rev-Exp Region 5'!T$47","v":{"v":0,"d":"$0.00"}},{"$f":"'MMA Rev-Exp Region 5'!U$47","v":{"v":0,"d":"$0.00"}},{"$f":"'MMA Rev-Exp Region 5'!V$47","v":{"v":0,"d":"$0.00"}},{"$f":"'MMA Rev-Exp Region 5'!W$47","v":{"v":0,"d":"$0.00"}},{"$f":"'MMA Rev-Exp Region 5'!X$47","v":{"v":0,"d":"$0.00"}},{"$f":"'MMA Rev-Exp Region 5'!Y$47","v":{"v":0,"d":"$0.00"}},{"v":0,"d":"$0.00"}]
["MMA",null,null,{"$f":"Jurat!I$1","v":0},{"$f":"Jurat!D$33","v":"00:00:00"},"Q2","2017-06-30","Region 5","Operating Expense","Medical Benefits Expense","Transportation Services",7.1,"Transportation FFS",{"$f":"'MMA Rev-Exp Region 5'!O$51","v":{"v":0,"d":"$0.00"}},{"$f":"'MMA Rev-Exp Region 5'!P$51","v":{"v":0,"d":"$0.00"}},{"$f":"'MMA Rev-Exp Region 5'!Q$51","v":{"v":0,"d":"$0.00"}},{"$f":"'MMA Rev-Exp Region 5'!R$51","v":{"v":0,"d":"$0.00"}},{"$f":"'MMA Rev-Exp Region 5'!S$51","v":{"v":0,"d":"$0.00"}},{"$f":"'MMA Rev-Exp Region 5'!T$51","v":{"v":0,"d":"$0.00"}},{"$f":"'MMA Rev-Exp Region 5'!U$51","v":{"v":0,"d":"$0.00"}},{"$f":"'MMA Rev-Exp Region 5'!V$51","v":{"v":0,"d":"$0.00"}},{"$f":"'MMA Rev-Exp Region 5'!W$51","v":{"v":0,"d":"$0.00"}},{"$f":"'MMA Rev-Exp Region 5'!X$51","v":{"v":0,"d":"$0.00"}},{"$f":"'MMA Rev-Exp Region 5'!Y$51","v":{"v":0,"d":"$0.00"}},{"v":0,"d":"$0.00"}]
["MMA",null,null,{"$f":"Jurat!I$1","v":0},{"$f":"Jurat!D$33","v":"00:00:00"},"Q2","2017-06-30","Region 5","Operating Expense","Medical Benefits Expense","Pharmacy Services",8.1,"Prescription Drugs FFS",{"$f":"'MMA Rev-Exp Region 5'!O$56","v":{"v":0,"d":"$0.00"}},{"$f":"'MMA Rev-Exp Region 5'!P$56","v":{"v":0,"d":"$0.00"}},{"$f":"'MMA Rev-Exp Region 5'!Q$56","v":{"v":0,"d":"$0.00"}},{"$f":"'MMA Rev-Exp Region 5'!R$56","v":{"v":0,"d":"$0.00"}},{"$f":"'MMA Rev-Exp Region 5'!S$56","v":{"v":0,"d":"$0.00"}},{"$f":"'MMA Rev-Exp Region 5'!T$56","v":{"v":0,"d":"$0.00"}},{"$f":"'MMA Rev-Exp Region 5'!U$56","v":{"v":0,"d":"$0.00"}},{"$f":"'MMA Rev-Exp Region 5'!V$56","v":{"v":0,"d":"$0.00"}},{"$f":"'MMA Rev-Exp Region 5'!W$56","v":{"v":0,"d":"$0.00"}},{"$f":"'MMA Rev-Exp Region 5'!X$56","v":{"v":0,"d":"$0.00"}},{"$f":"'MMA Rev-Exp Region 5'!Y$56","v":{"v":0,"d":"$0.00"}},{"v":0,"d":"$0.00"}]
["MMA",null,null,{"$f":"Jurat!I$1","v":0},{"$f":"Jurat!D$33","v":"00:00:00"},"Q2","2017-06-30","Region 5","Operating Expense","Medical Benefits Expense","Pharmacy Services","8.4","Prescription Drug Rebates ",{"$f":"'MMA Rev-Exp Region 5'!O$59","v":{"v":0,"d":"$0.00"}},{"$f":"'MMA Rev-Exp Region 5'!P$59","v":{"v":0,"d":"$0.00"}},{"$f":"'MMA Rev-Exp Region 5'!Q$59","v":{"v":0,"d":"$0.00"}},{"$f":"'MMA Rev-Exp Region 5'!R$59","v":{"v":0,"d":"$0.00"}},{"$f":"'MMA Rev-Exp Region 5'!S$59","v":{"v":0,"d":"$0.00"}},{"$f":"'MMA Rev-Exp Region 5'!T$59","v":{"v":0,"d":"$0.00"}},{"$f":"'MMA Rev-Exp Region 5'!U$59","v":{"v":0,"d":"$0.00"}},{"$f":"'MMA Rev-Exp Region 5'!V$59","v":{"v":0,"d":"$0.00"}},{"$f":"'MMA Rev-Exp Region 5'!W$59","v":{"v":0,"d":"$0.00"}},{"$f":"'MMA Rev-Exp Region 5'!X$59","v":{"v":0,"d":"$0.00"}},{"$f":"'MMA Rev-Exp Region 5'!Y$59","v":{"v":0,"d":"$0.00"}},{"v":0,"d":"$0.00"}]
["MMA",null,null,{"$f":"Jurat!I$1","v":0},{"$f":"Jurat!D$33","v":"00:00:00"},"Q2","2017-06-30","Region 5","Operating Expense","Medical Benefits Expense","Pharmacy Services","8.7","Prescription Drug Settlements",{"$f":"'MMA Rev-Exp Region 5'!O$62","v":{"v":0,"d":"$0.00"}},{"$f":"'MMA Rev-Exp Region 5'!P$62","v":{"v":0,"d":"$0.00"}},{"$f":"'MMA Rev-Exp Region 5'!Q$62","v":{"v":0,"d":"$0.00"}},{"$f":"'MMA Rev-Exp Region 5'!R$62","v":{"v":0,"d":"$0.00"}},{"$f":"'MMA Rev-Exp Region 5'!S$62","v":{"v":0,"d":"$0.00"}},{"$f":"'MMA Rev-Exp Region 5'!T$62","v":{"v":0,"d":"$0.00"}},{"$f":"'MMA Rev-Exp Region 5'!U$62","v":{"v":0,"d":"$0.00"}},{"$f":"'MMA Rev-Exp Region 5'!V$62","v":{"v":0,"d":"$0.00"}},{"$f":"'MMA Rev-Exp Region 5'!W$62","v":{"v":0,"d":"$0.00"}},{"$f":"'MMA Rev-Exp Region 5'!X$62","v":{"v":0,"d":"$0.00"}},{"$f":"'MMA Rev-Exp Region 5'!Y$62","v":{"v":0,"d":"$0.00"}},{"v":0,"d":"$0.00"}]
["MMA",null,null,{"$f":"Jurat!I$1","v":0},{"$f":"Jurat!D$33","v":"00:00:00"},"Q2","2017-06-30","Region 5","Operating Expense","Medical Benefits Expense","Other MMA Services",9.1,"Home Health, Private Duty Nursing, Personal Care FFS",{"$f":"'MMA Rev-Exp Region 5'!O$64","v":{"v":0,"d":"$0.00"}},{"$f":"'MMA Rev-Exp Region 5'!P$64","v":{"v":0,"d":"$0.00"}},{"$f":"'MMA Rev-Exp Region 5'!Q$64","v":{"v":0,"d":"$0.00"}},{"$f":"'MMA Rev-Exp Region 5'!R$64","v":{"v":0,"d":"$0.00"}},{"$f":"'MMA Rev-Exp Region 5'!S$64","v":{"v":0,"d":"$0.00"}},{"$f":"'MMA Rev-Exp Region 5'!T$64","v":{"v":0,"d":"$0.00"}},{"$f":"'MMA Rev-Exp Region 5'!U$64","v":{"v":0,"d":"$0.00"}},{"$f":"'MMA Rev-Exp Region 5'!V$64","v":{"v":0,"d":"$0.00"}},{"$f":"'MMA Rev-Exp Region 5'!W$64","v":{"v":0,"d":"$0.00"}},{"$f":"'MMA Rev-Exp Region 5'!X$64","v":{"v":0,"d":"$0.00"}},{"$f":"'MMA Rev-Exp Region 5'!Y$64","v":{"v":0,"d":"$0.00"}},{"v":0,"d":"$0.00"}]
["MMA",null,null,{"$f":"Jurat!I$1","v":0},{"$f":"Jurat!D$33","v":"00:00:00"},"Q2","2017-06-30","Region 5","Operating Expense","Medical Benefits Expense","Other MMA Services","9.4","Other State Plan Services FFS",{"$f":"'MMA Rev-Exp Region 5'!O$67","v":{"v":0,"d":"$0.00"}},{"$f":"'MMA Rev-Exp Region 5'!P$67","v":{"v":0,"d":"$0.00"}},{"$f":"'MMA Rev-Exp Region 5'!Q$67","v":{"v":0,"d":"$0.00"}},{"$f":"'MMA Rev-Exp Region 5'!R$67","v":{"v":0,"d":"$0.00"}},{"$f":"'MMA Rev-Exp Region 5'!S$67","v":{"v":0,"d":"$0.00"}},{"$f":"'MMA Rev-Exp Region 5'!T$67","v":{"v":0,"d":"$0.00"}},{"$f":"'MMA Rev-Exp Region 5'!U$67","v":{"v":0,"d":"$0.00"}},{"$f":"'MMA Rev-Exp Region 5'!V$67","v":{"v":0,"d":"$0.00"}},{"$f":"'MMA Rev-Exp Region 5'!W$67","v":{"v":0,"d":"$0.00"}},{"$f":"'MMA Rev-Exp Region 5'!X$67","v":{"v":0,"d":"$0.00"}},{"$f":"'MMA Rev-Exp Region 5'!Y$67","v":{"v":0,"d":"$0.00"}},{"v":0,"d":"$0.00"}]
["MMA",null,null,{"$f":"Jurat!I$1","v":0},{"$f":"Jurat!D$33","v":"00:00:00"},"Q2","2017-06-30","Region 5","Operating Expense","Medical Benefits Expense","Expanded Benefits","10.1","Expanded Benefits FFS",{"$f":"'MMA Rev-Exp Region 5'!O$72","v":{"v":0,"d":"$0.00"}},{"$f":"'MMA Rev-Exp Region 5'!P$72","v":{"v":0,"d":"$0.00"}},{"$f":"'MMA Rev-Exp Region 5'!Q$72","v":{"v":0,"d":"$0.00"}},{"$f":"'MMA Rev-Exp Region 5'!R$72","v":{"v":0,"d":"$0.00"}},{"$f":"'MMA Rev-Exp Region 5'!S$72","v":{"v":0,"d":"$0.00"}},{"$f":"'MMA Rev-Exp Region 5'!T$72","v":{"v":0,"d":"$0.00"}},{"$f":"'MMA Rev-Exp Region 5'!U$72","v":{"v":0,"d":"$0.00"}},{"$f":"'MMA Rev-Exp Region 5'!V$72","v":{"v":0,"d":"$0.00"}},{"$f":"'MMA Rev-Exp Region 5'!W$72","v":{"v":0,"d":"$0.00"}},{"$f":"'MMA Rev-Exp Region 5'!X$72","v":{"v":0,"d":"$0.00"}},{"$f":"'MMA Rev-Exp Region 5'!Y$72","v":{"v":0,"d":"$0.00"}},{"v":0,"d":"$0.00"}]
["MMA",null,null,{"$f":"Jurat!I$1","v":0},{"$f":"Jurat!D$33","v":"00:00:00"},"Q2","2017-06-30","Region 5","Operating Expense","Medical Benefits Expense","Expanded Benefits","10.4","Expanded Benefits Settlements",{"$f":"'MMA Rev-Exp Region 5'!O$75","v":{"v":0,"d":"$0.00"}},{"$f":"'MMA Rev-Exp Region 5'!P$75","v":{"v":0,"d":"$0.00"}},{"$f":"'MMA Rev-Exp Region 5'!Q$75","v":{"v":0,"d":"$0.00"}},{"$f":"'MMA Rev-Exp Region 5'!R$75","v":{"v":0,"d":"$0.00"}},{"$f":"'MMA Rev-Exp Region 5'!S$75","v":{"v":0,"d":"$0.00"}},{"$f":"'MMA Rev-Exp Region 5'!T$75","v":{"v":0,"d":"$0.00"}},{"$f":"'MMA Rev-Exp Region 5'!U$75","v":{"v":0,"d":"$0.00"}},{"$f":"'MMA Rev-Exp Region 5'!V$75","v":{"v":0,"d":"$0.00"}},{"$f":"'MMA Rev-Exp Region 5'!W$75","v":{"v":0,"d":"$0.00"}},{"$f":"'MMA Rev-Exp Region 5'!X$75","v":{"v":0,"d":"$0.00"}},{"$f":"'MMA Rev-Exp Region 5'!Y$75","v":{"v":0,"d":"$0.00"}},{"v":0,"d":"$0.00"}]
["MMA",null,null,{"$f":"Jurat!I$1","v":0},{"$f":"Jurat!D$33","v":"00:00:00"},"Q2","2017-06-30","Region 5","Operating Expense","Medical Benefits Expense","Other Medical","11.6.1","Premium Deficiency Reserve",{"$f":"'MMA Rev-Exp Region 5'!O$82","v":{"v":0,"d":"$0.00"}},{"$f":"'MMA Rev-Exp Region 5'!P$82","v":{"v":0,"d":"$0.00"}},{"$f":"'MMA Rev-Exp Region 5'!Q$82","v":{"v":0,"d":"$0.00"}},{"$f":"'MMA Rev-Exp Region 5'!R$82","v":{"v":0,"d":"$0.00"}},{"$f":"'MMA Rev-Exp Region 5'!S$82","v":{"v":0,"d":"$0.00"}},{"$f":"'MMA Rev-Exp Region 5'!T$82","v":{"v":0,"d":"$0.00"}},{"$f":"'MMA Rev-Exp Region 5'!U$82","v":{"v":0,"d":"$0.00"}},{"$f":"'MMA Rev-Exp Region 5'!V$82","v":{"v":0,"d":"$0.00"}},{"$f":"'MMA Rev-Exp Region 5'!W$82","v":{"v":0,"d":"$0.00"}},{"$f":"'MMA Rev-Exp Region 5'!X$82","v":{"v":0,"d":"$0.00"}},{"$f":"'MMA Rev-Exp Region 5'!Y$82","v":{"v":0,"d":"$0.00"}},{"v":0,"d":"$0.00"}]
["MMA",null,null,{"$f":"Jurat!I$1","v":0},{"$f":"Jurat!D$33","v":"00:00:00"},"Q2","2017-06-30","Region 5","Operating Expense","Administrative Expense","Administrative","12.2","Administrative Services",{"$f":"'MMA Rev-Exp Region 5'!O$91","v":{"v":0,"d":"$0.00"}},{"v":0,"d":"$0.00"},{"v":0,"d":"$0.00"},{"v":0,"d":"$0.00"},{"v":0,"d":"$0.00"},{"v":0,"d":"$0.00"},{"v":0,"d":"$0.00"},{"v":0,"d":"$0.00"},{"v":0,"d":"$0.00"},{"v":0,"d":"$0.00"},{"v":0,"d":"$0.00"},{"v":0,"d":"$0.00"}]
["MMA",null,null,{"$f":"Jurat!I$1","v":0},{"$f":"Jurat!D$33","v":"00:00:00"},"Q2","2017-06-30","Region 5","Operating Expense","Administrative Expense","Administrative","12.5","General  Administration",{"$f":"'MMA Rev-Exp Region 5'!O$94","v":{"v":0,"d":"$0.00"}},{"v":0,"d":"$0.00"},{"v":0,"d":"$0.00"},{"v":0,"d":"$0.00"},{"v":0,"d":"$0.00"},{"v":0,"d":"$0.00"},{"v":0,"d":"$0.00"},{"v":0,"d":"$0.00"},{"v":0,"d":"$0.00"},{"v":0,"d":"$0.00"},{"v":0,"d":"$0.00"},{"v":0,"d":"$0.00"}]
["MMA",null,null,{"$f":"Jurat!I$1","v":0},{"$f":"Jurat!D$33","v":"00:00:00"},"Q2","2017-06-30","Region 5","Operating Expense","Taxes & Fees","Taxes & Fees","13.2","Department of Insurance Assessments",{"$f":"'MMA Rev-Exp Region 5'!O$98","v":{"v":0,"d":"$0.00"}},{"v":0,"d":"$0.00"},{"v":0,"d":"$0.00"},{"v":0,"d":"$0.00"},{"v":0,"d":"$0.00"},{"v":0,"d":"$0.00"},{"v":0,"d":"$0.00"},{"v":0,"d":"$0.00"},{"v":0,"d":"$0.00"},{"v":0,"d":"$0.00"},{"v":0,"d":"$0.00"},{"v":0,"d":"$0.00"}]
["MMA",null,null,{"$f":"Jurat!I$1","v":0},{"$f":"Jurat!D$33","v":"00:00:00"},"Q2","2017-06-30","Region 5","Operating Expense","Taxes & Fees","Taxes & Fees","13.3","Section 9010 Health Insurance Providers Fee",{"$f":"'MMA Rev-Exp Region 5'!O$99","v":{"v":0,"d":"$0.00"}},{"v":0,"d":"$0.00"},{"v":0,"d":"$0.00"},{"v":0,"d":"$0.00"},{"v":0,"d":"$0.00"},{"v":0,"d":"$0.00"},{"v":0,"d":"$0.00"},{"v":0,"d":"$0.00"},{"v":0,"d":"$0.00"},{"v":0,"d":"$0.00"},{"v":0,"d":"$0.00"},{"v":0,"d":"$0.00"}]
["MMA",null,null,{"$f":"Jurat!I$1","v":0},{"$f":"Jurat!D$33","v":"00:00:00"},"Q3","2017-09-30","Region 5","Operating Revenue","Capitation","Capitation",1.1,"Capitation",{"$f":"'MMA Rev-Exp Region 5'!Z$11","v":{"v":0,"d":"$0.00"}},{"$f":"'MMA Rev-Exp Region 5'!AA$11","v":{"v":0,"d":"$0.00"}},{"$f":"'MMA Rev-Exp Region 5'!AB$11","v":{"v":0,"d":"$0.00"}},{"$f":"'MMA Rev-Exp Region 5'!AC$11","v":{"v":0,"d":"$0.00"}},{"$f":"'MMA Rev-Exp Region 5'!AD$11","v":{"v":0,"d":"$0.00"}},{"$f":"'MMA Rev-Exp Region 5'!AE$11","v":{"v":0,"d":"$0.00"}},{"$f":"'MMA Rev-Exp Region 5'!AF$11","v":{"v":0,"d":"$0.00"}},{"$f":"'MMA Rev-Exp Region 5'!AG$11","v":{"v":0,"d":"$0.00"}},{"$f":"'MMA Rev-Exp Region 5'!AH$11","v":{"v":0,"d":"$0.00"}},{"$f":"'MMA Rev-Exp Region 5'!AI$11","v":{"v":0,"d":"$0.00"}},{"$f":"'MMA Rev-Exp Region 5'!AJ$11","v":{"v":0,"d":"$0.00"}},{"v":0,"d":"$0.00"}]
["MMA",null,null,{"$f":"Jurat!I$1","v":0},{"$f":"Jurat!D$33","v":"00:00:00"},"Q3","2017-09-30","Region 5","Operating Revenue","Other Revenue","Other Revenue - 9010","1.5","ACA § 9010 related payments",{"$f":"'MMA Rev-Exp Region 5'!Z$15","v":{"v":0,"d":"$0.00"}},{"$f":"'MMA Rev-Exp Region 5'!AA$15","v":{"v":0,"d":"$0.00"}},{"$f":"'MMA Rev-Exp Region 5'!AB$15","v":{"v":0,"d":"$0.00"}},{"$f":"'MMA Rev-Exp Region 5'!AC$15","v":{"v":0,"d":"$0.00"}},{"$f":"'MMA Rev-Exp Region 5'!AD$15","v":{"v":0,"d":"$0.00"}},{"$f":"'MMA Rev-Exp Region 5'!AE$15","v":{"v":0,"d":"$0.00"}},{"$f":"'MMA Rev-Exp Region 5'!AF$15","v":{"v":0,"d":"$0.00"}},{"$f":"'MMA Rev-Exp Region 5'!AG$15","v":{"v":0,"d":"$0.00"}},{"$f":"'MMA Rev-Exp Region 5'!AH$15","v":{"v":0,"d":"$0.00"}},{"$f":"'MMA Rev-Exp Region 5'!AI$15","v":{"v":0,"d":"$0.00"}},{"$f":"'MMA Rev-Exp Region 5'!AJ$15","v":{"v":0,"d":"$0.00"}},{"v":0,"d":"$0.00"}]
["MMA",null,null,{"$f":"Jurat!I$1","v":0},{"$f":"Jurat!D$33","v":"00:00:00"},"Q3","2017-09-30","Region 5","Operating Expense","Medical Benefits Expense","Hospital Services",2.2,"Ending IBNP for Inpatient Hospital Services",{"$f":"'MMA Rev-Exp Region 5'!Z$21","v":{"v":0,"d":"$0.00"}},{"$f":"'MMA Rev-Exp Region 5'!AA$21","v":{"v":0,"d":"$0.00"}},{"$f":"'MMA Rev-Exp Region 5'!AB$21","v":{"v":0,"d":"$0.00"}},{"$f":"'MMA Rev-Exp Region 5'!AC$21","v":{"v":0,"d":"$0.00"}},{"$f":"'MMA Rev-Exp Region 5'!AD$21","v":{"v":0,"d":"$0.00"}},{"$f":"'MMA Rev-Exp Region 5'!AE$21","v":{"v":0,"d":"$0.00"}},{"$f":"'MMA Rev-Exp Region 5'!AF$21","v":{"v":0,"d":"$0.00"}},{"$f":"'MMA Rev-Exp Region 5'!AG$21","v":{"v":0,"d":"$0.00"}},{"$f":"'MMA Rev-Exp Region 5'!AH$21","v":{"v":0,"d":"$0.00"}},{"$f":"'MMA Rev-Exp Region 5'!AI$21","v":{"v":0,"d":"$0.00"}},{"$f":"'MMA Rev-Exp Region 5'!AJ$21","v":{"v":0,"d":"$0.00"}},{"v":0,"d":"$0.00"}]
["MMA",null,null,{"$f":"Jurat!I$1","v":0},{"$f":"Jurat!D$33","v":"00:00:00"},"Q3","2017-09-30","Region 5","Operating Expense","Medical Benefits Expense","Hospital Services",2.4,"Outpatient FFS: Other than ER ",{"$f":"'MMA Rev-Exp Region 5'!Z$23","v":{"v":0,"d":"$0.00"}},{"$f":"'MMA Rev-Exp Region 5'!AA$23","v":{"v":0,"d":"$0.00"}},{"$f":"'MMA Rev-Exp Region 5'!AB$23","v":{"v":0,"d":"$0.00"}},{"$f":"'MMA Rev-Exp Region 5'!AC$23","v":{"v":0,"d":"$0.00"}},{"$f":"'MMA Rev-Exp Region 5'!AD$23","v":{"v":0,"d":"$0.00"}},{"$f":"'MMA Rev-Exp Region 5'!AE$23","v":{"v":0,"d":"$0.00"}},{"$f":"'MMA Rev-Exp Region 5'!AF$23","v":{"v":0,"d":"$0.00"}},{"$f":"'MMA Rev-Exp Region 5'!AG$23","v":{"v":0,"d":"$0.00"}},{"$f":"'MMA Rev-Exp Region 5'!AH$23","v":{"v":0,"d":"$0.00"}},{"$f":"'MMA Rev-Exp Region 5'!AI$23","v":{"v":0,"d":"$0.00"}},{"$f":"'MMA Rev-Exp Region 5'!AJ$23","v":{"v":0,"d":"$0.00"}},{"v":0,"d":"$0.00"}]
["MMA",null,null,{"$f":"Jurat!I$1","v":0},{"$f":"Jurat!D$33","v":"00:00:00"},"Q3","2017-09-30","Region 5","Operating Expense","Medical Benefits Expense","Hospital Services","2.7.1","Transplant Services",{"$f":"'MMA Rev-Exp Region 5'!Z$27","v":{"v":0,"d":"$0.00"}},{"$f":"'MMA Rev-Exp Region 5'!AA$27","v":{"v":0,"d":"$0.00"}},{"$f":"'MMA Rev-Exp Region 5'!AB$27","v":{"v":0,"d":"$0.00"}},{"$f":"'MMA Rev-Exp Region 5'!AC$27","v":{"v":0,"d":"$0.00"}},{"$f":"'MMA Rev-Exp Region 5'!AD$27","v":{"v":0,"d":"$0.00"}},{"$f":"'MMA Rev-Exp Region 5'!AE$27","v":{"v":0,"d":"$0.00"}},{"$f":"'MMA Rev-Exp Region 5'!AF$27","v":{"v":0,"d":"$0.00"}},{"$f":"'MMA Rev-Exp Region 5'!AG$27","v":{"v":0,"d":"$0.00"}},{"$f":"'MMA Rev-Exp Region 5'!AH$27","v":{"v":0,"d":"$0.00"}},{"$f":"'MMA Rev-Exp Region 5'!AI$27","v":{"v":0,"d":"$0.00"}},{"$f":"'MMA Rev-Exp Region 5'!AJ$27","v":{"v":0,"d":"$0.00"}},{"v":0,"d":"$0.00"}]
["MMA",null,null,{"$f":"Jurat!I$1","v":0},{"$f":"Jurat!D$33","v":"00:00:00"},"Q3","2017-09-30","Region 5","Operating Expense","Medical Benefits Expense","Professional Services",3.3,"Other Professional FFS",{"$f":"'MMA Rev-Exp Region 5'!Z$31","v":{"v":0,"d":"$0.00"}},{"$f":"'MMA Rev-Exp Region 5'!AA$31","v":{"v":0,"d":"$0.00"}},{"$f":"'MMA Rev-Exp Region 5'!AB$31","v":{"v":0,"d":"$0.00"}},{"$f":"'MMA Rev-Exp Region 5'!AC$31","v":{"v":0,"d":"$0.00"}},{"$f":"'MMA Rev-Exp Region 5'!AD$31","v":{"v":0,"d":"$0.00"}},{"$f":"'MMA Rev-Exp Region 5'!AE$31","v":{"v":0,"d":"$0.00"}},{"$f":"'MMA Rev-Exp Region 5'!AF$31","v":{"v":0,"d":"$0.00"}},{"$f":"'MMA Rev-Exp Region 5'!AG$31","v":{"v":0,"d":"$0.00"}},{"$f":"'MMA Rev-Exp Region 5'!AH$31","v":{"v":0,"d":"$0.00"}},{"$f":"'MMA Rev-Exp Region 5'!AI$31","v":{"v":0,"d":"$0.00"}},{"$f":"'MMA Rev-Exp Region 5'!AJ$31","v":{"v":0,"d":"$0.00"}},{"v":0,"d":"$0.00"}]
["MMA",null,null,{"$f":"Jurat!I$1","v":0},{"$f":"Jurat!D$33","v":"00:00:00"},"Q3","2017-09-30","Region 5","Operating Expense","Medical Benefits Expense","Professional Services","3.4","§ 1202 PCP Payments to providers",{"$f":"'MMA Rev-Exp Region 5'!Z$32","v":{"v":0,"d":"$0.00"}},{"$f":"'MMA Rev-Exp Region 5'!AA$32","v":{"v":0,"d":"$0.00"}},{"$f":"'MMA Rev-Exp Region 5'!AB$32","v":{"v":0,"d":"$0.00"}},{"$f":"'MMA Rev-Exp Region 5'!AC$32","v":{"v":0,"d":"$0.00"}},{"$f":"'MMA Rev-Exp Region 5'!AD$32","v":{"v":0,"d":"$0.00"}},{"$f":"'MMA Rev-Exp Region 5'!AE$32","v":{"v":0,"d":"$0.00"}},{"$f":"'MMA Rev-Exp Region 5'!AF$32","v":{"v":0,"d":"$0.00"}},{"$f":"'MMA Rev-Exp Region 5'!AG$32","v":{"v":0,"d":"$0.00"}},{"$f":"'MMA Rev-Exp Region 5'!AH$32","v":{"v":0,"d":"$0.00"}},{"$f":"'MMA Rev-Exp Region 5'!AI$32","v":{"v":0,"d":"$0.00"}},{"$f":"'MMA Rev-Exp Region 5'!AJ$32","v":{"v":0,"d":"$0.00"}},{"v":0,"d":"$0.00"}]
["MMA",null,null,{"$f":"Jurat!I$1","v":0},{"$f":"Jurat!D$33","v":"00:00:00"},"Q3","2017-09-30","Region 5","Operating Expense","Medical Benefits Expense","Professional Services","3.7","Professional Services Settlements",{"$f":"'MMA Rev-Exp Region 5'!Z$35","v":{"v":0,"d":"$0.00"}},{"$f":"'MMA Rev-Exp Region 5'!AA$35","v":{"v":0,"d":"$0.00"}},{"$f":"'MMA Rev-Exp Region 5'!AB$35","v":{"v":0,"d":"$0.00"}},{"$f":"'MMA Rev-Exp Region 5'!AC$35","v":{"v":0,"d":"$0.00"}},{"$f":"'MMA Rev-Exp Region 5'!AD$35","v":{"v":0,"d":"$0.00"}},{"$f":"'MMA Rev-Exp Region 5'!AE$35","v":{"v":0,"d":"$0.00"}},{"$f":"'MMA Rev-Exp Region 5'!AF$35","v":{"v":0,"d":"$0.00"}},{"$f":"'MMA Rev-Exp Region 5'!AG$35","v":{"v":0,"d":"$0.00"}},{"$f":"'MMA Rev-Exp Region 5'!AH$35","v":{"v":0,"d":"$0.00"}},{"$f":"'MMA Rev-Exp Region 5'!AI$35","v":{"v":0,"d":"$0.00"}},{"$f":"'MMA Rev-Exp Region 5'!AJ$35","v":{"v":0,"d":"$0.00"}},{"v":0,"d":"$0.00"}]
["MMA",null,null,{"$f":"Jurat!I$1","v":0},{"$f":"Jurat!D$33","v":"00:00:00"},"Q3","2017-09-30","Region 5","Operating Expense","Medical Benefits Expense","Maternity Services","4.3.1","Maternity Settlements",{"$f":"'MMA Rev-Exp Region 5'!Z$39","v":{"v":0,"d":"$0.00"}},{"$f":"'MMA Rev-Exp Region 5'!AA$39","v":{"v":0,"d":"$0.00"}},{"$f":"'MMA Rev-Exp Region 5'!AB$39","v":{"v":0,"d":"$0.00"}},{"$f":"'MMA Rev-Exp Region 5'!AC$39","v":{"v":0,"d":"$0.00"}},{"$f":"'MMA Rev-Exp Region 5'!AD$39","v":{"v":0,"d":"$0.00"}},{"$f":"'MMA Rev-Exp Region 5'!AE$39","v":{"v":0,"d":"$0.00"}},{"$f":"'MMA Rev-Exp Region 5'!AF$39","v":{"v":0,"d":"$0.00"}},{"$f":"'MMA Rev-Exp Region 5'!AG$39","v":{"v":0,"d":"$0.00"}},{"$f":"'MMA Rev-Exp Region 5'!AH$39","v":{"v":0,"d":"$0.00"}},{"$f":"'MMA Rev-Exp Region 5'!AI$39","v":{"v":0,"d":"$0.00"}},{"$f":"'MMA Rev-Exp Region 5'!AJ$39","v":{"v":0,"d":"$0.00"}},{"v":0,"d":"$0.00"}]
["MMA",null,null,{"$f":"Jurat!I$1","v":0},{"$f":"Jurat!D$33","v":"00:00:00"},"Q3","2017-09-30","Region 5","Operating Expense","Medical Benefits Expense","Mental Health Services","5.4","Mental Health Settlements",{"$f":"'MMA Rev-Exp Region 5'!Z$44","v":{"v":0,"d":"$0.00"}},{"$f":"'MMA Rev-Exp Region 5'!AA$44","v":{"v":0,"d":"$0.00"}},{"$f":"'MMA Rev-Exp Region 5'!AB$44","v":{"v":0,"d":"$0.00"}},{"$f":"'MMA Rev-Exp Region 5'!AC$44","v":{"v":0,"d":"$0.00"}},{"$f":"'MMA Rev-Exp Region 5'!AD$44","v":{"v":0,"d":"$0.00"}},{"$f":"'MMA Rev-Exp Region 5'!AE$44","v":{"v":0,"d":"$0.00"}},{"$f":"'MMA Rev-Exp Region 5'!AF$44","v":{"v":0,"d":"$0.00"}},{"$f":"'MMA Rev-Exp Region 5'!AG$44","v":{"v":0,"d":"$0.00"}},{"$f":"'MMA Rev-Exp Region 5'!AH$44","v":{"v":0,"d":"$0.00"}},{"$f":"'MMA Rev-Exp Region 5'!AI$44","v":{"v":0,"d":"$0.00"}},{"$f":"'MMA Rev-Exp Region 5'!AJ$44","v":{"v":0,"d":"$0.00"}},{"v":0,"d":"$0.00"}]
["MMA",null,null,{"$f":"Jurat!I$1","v":0},{"$f":"Jurat!D$33","v":"00:00:00"},"Q3","2017-09-30","Region 5","Operating Expense","Medical Benefits Expense","Dental Services",6.3,"Ending IBNP for Dental Services",{"$f":"'MMA Rev-Exp Region 5'!Z$48","v":{"v":0,"d":"$0.00"}},{"$f":"'MMA Rev-Exp Region 5'!AA$48","v":{"v":0,"d":"$0.00"}},{"$f":"'MMA Rev-Exp Region 5'!AB$48","v":{"v":0,"d":"$0.00"}},{"$f":"'MMA Rev-Exp Region 5'!AC$48","v":{"v":0,"d":"$0.00"}},{"$f":"'MMA Rev-Exp Region 5'!AD$48","v":{"v":0,"d":"$0.00"}},{"$f":"'MMA Rev-Exp Region 5'!AE$48","v":{"v":0,"d":"$0.00"}},{"$f":"'MMA Rev-Exp Region 5'!AF$48","v":{"v":0,"d":"$0.00"}},{"$f":"'MMA Rev-Exp Region 5'!AG$48","v":{"v":0,"d":"$0.00"}},{"$f":"'MMA Rev-Exp Region 5'!AH$48","v":{"v":0,"d":"$0.00"}},{"$f":"'MMA Rev-Exp Region 5'!AI$48","v":{"v":0,"d":"$0.00"}},{"$f":"'MMA Rev-Exp Region 5'!AJ$48","v":{"v":0,"d":"$0.00"}},{"v":0,"d":"$0.00"}]
["MMA",null,null,{"$f":"Jurat!I$1","v":0},{"$f":"Jurat!D$33","v":"00:00:00"},"Q3","2017-09-30","Region 5","Operating Expense","Medical Benefits Expense","Transportation Services",7.2,"Transportation Subcapitation",{"$f":"'MMA Rev-Exp Region 5'!Z$52","v":{"v":0,"d":"$0.00"}},{"$f":"'MMA Rev-Exp Region 5'!AA$52","v":{"v":0,"d":"$0.00"}},{"$f":"'MMA Rev-Exp Region 5'!AB$52","v":{"v":0,"d":"$0.00"}},{"$f":"'MMA Rev-Exp Region 5'!AC$52","v":{"v":0,"d":"$0.00"}},{"$f":"'MMA Rev-Exp Region 5'!AD$52","v":{"v":0,"d":"$0.00"}},{"$f":"'MMA Rev-Exp Region 5'!AE$52","v":{"v":0,"d":"$0.00"}},{"$f":"'MMA Rev-Exp Region 5'!AF$52","v":{"v":0,"d":"$0.00"}},{"$f":"'MMA Rev-Exp Region 5'!AG$52","v":{"v":0,"d":"$0.00"}},{"$f":"'MMA Rev-Exp Region 5'!AH$52","v":{"v":0,"d":"$0.00"}},{"$f":"'MMA Rev-Exp Region 5'!AI$52","v":{"v":0,"d":"$0.00"}},{"$f":"'MMA Rev-Exp Region 5'!AJ$52","v":{"v":0,"d":"$0.00"}},{"v":0,"d":"$0.00"}]
["MMA",null,null,{"$f":"Jurat!I$1","v":0},{"$f":"Jurat!D$33","v":"00:00:00"},"Q3","2017-09-30","Region 5","Operating Expense","Medical Benefits Expense","Pharmacy Services",8.1,"Prescription Drugs FFS",{"$f":"'MMA Rev-Exp Region 5'!Z$56","v":{"v":0,"d":"$0.00"}},{"$f":"'MMA Rev-Exp Region 5'!AA$56","v":{"v":0,"d":"$0.00"}},{"$f":"'MMA Rev-Exp Region 5'!AB$56","v":{"v":0,"d":"$0.00"}},{"$f":"'MMA Rev-Exp Region 5'!AC$56","v":{"v":0,"d":"$0.00"}},{"$f":"'MMA Rev-Exp Region 5'!AD$56","v":{"v":0,"d":"$0.00"}},{"$f":"'MMA Rev-Exp Region 5'!AE$56","v":{"v":0,"d":"$0.00"}},{"$f":"'MMA Rev-Exp Region 5'!AF$56","v":{"v":0,"d":"$0.00"}},{"$f":"'MMA Rev-Exp Region 5'!AG$56","v":{"v":0,"d":"$0.00"}},{"$f":"'MMA Rev-Exp Region 5'!AH$56","v":{"v":0,"d":"$0.00"}},{"$f":"'MMA Rev-Exp Region 5'!AI$56","v":{"v":0,"d":"$0.00"}},{"$f":"'MMA Rev-Exp Region 5'!AJ$56","v":{"v":0,"d":"$0.00"}},{"v":0,"d":"$0.00"}]
["MMA",null,null,{"$f":"Jurat!I$1","v":0},{"$f":"Jurat!D$33","v":"00:00:00"},"Q3","2017-09-30","Region 5","Operating Expense","Medical Benefits Expense","Pharmacy Services","8.4","Prescription Drug Rebates ",{"$f":"'MMA Rev-Exp Region 5'!Z$59","v":{"v":0,"d":"$0.00"}},{"$f":"'MMA Rev-Exp Region 5'!AA$59","v":{"v":0,"d":"$0.00"}},{"$f":"'MMA Rev-Exp Region 5'!AB$59","v":{"v":0,"d":"$0.00"}},{"$f":"'MMA Rev-Exp Region 5'!AC$59","v":{"v":0,"d":"$0.00"}},{"$f":"'MMA Rev-Exp Region 5'!AD$59","v":{"v":0,"d":"$0.00"}},{"$f":"'MMA Rev-Exp Region 5'!AE$59","v":{"v":0,"d":"$0.00"}},{"$f":"'MMA Rev-Exp Region 5'!AF$59","v":{"v":0,"d":"$0.00"}},{"$f":"'MMA Rev-Exp Region 5'!AG$59","v":{"v":0,"d":"$0.00"}},{"$f":"'MMA Rev-Exp Region 5'!AH$59","v":{"v":0,"d":"$0.00"}},{"$f":"'MMA Rev-Exp Region 5'!AI$59","v":{"v":0,"d":"$0.00"}},{"$f":"'MMA Rev-Exp Region 5'!AJ$59","v":{"v":0,"d":"$0.00"}},{"v":0,"d":"$0.00"}]
["MMA",null,null,{"$f":"Jurat!I$1","v":0},{"$f":"Jurat!D$33","v":"00:00:00"},"Q3","2017-09-30","Region 5","Operating Expense","Medical Benefits Expense","Pharmacy Services","8.5","Ending accrual for Rebates receivable",{"$f":"'MMA Rev-Exp Region 5'!Z$60","v":{"v":0,"d":"$0.00"}},{"$f":"'MMA Rev-Exp Region 5'!AA$60","v":{"v":0,"d":"$0.00"}},{"$f":"'MMA Rev-Exp Region 5'!AB$60","v":{"v":0,"d":"$0.00"}},{"$f":"'MMA Rev-Exp Region 5'!AC$60","v":{"v":0,"d":"$0.00"}},{"$f":"'MMA Rev-Exp Region 5'!AD$60","v":{"v":0,"d":"$0.00"}},{"$f":"'MMA Rev-Exp Region 5'!AE$60","v":{"v":0,"d":"$0.00"}},{"$f":"'MMA Rev-Exp Region 5'!AF$60","v":{"v":0,"d":"$0.00"}},{"$f":"'MMA Rev-Exp Region 5'!AG$60","v":{"v":0,"d":"$0.00"}},{"$f":"'MMA Rev-Exp Region 5'!AH$60","v":{"v":0,"d":"$0.00"}},{"$f":"'MMA Rev-Exp Region 5'!AI$60","v":{"v":0,"d":"$0.00"}},{"$f":"'MMA Rev-Exp Region 5'!AJ$60","v":{"v":0,"d":"$0.00"}},{"v":0,"d":"$0.00"}]
["MMA",null,null,{"$f":"Jurat!I$1","v":0},{"$f":"Jurat!D$33","v":"00:00:00"},"Q3","2017-09-30","Region 5","Operating Expense","Medical Benefits Expense","Other MMA Services",9.1,"Home Health, Private Duty Nursing, Personal Care FFS",{"$f":"'MMA Rev-Exp Region 5'!Z$64","v":{"v":0,"d":"$0.00"}},{"$f":"'MMA Rev-Exp Region 5'!AA$64","v":{"v":0,"d":"$0.00"}},{"$f":"'MMA Rev-Exp Region 5'!AB$64","v":{"v":0,"d":"$0.00"}},{"$f":"'MMA Rev-Exp Region 5'!AC$64","v":{"v":0,"d":"$0.00"}},{"$f":"'MMA Rev-Exp Region 5'!AD$64","v":{"v":0,"d":"$0.00"}},{"$f":"'MMA Rev-Exp Region 5'!AE$64","v":{"v":0,"d":"$0.00"}},{"$f":"'MMA Rev-Exp Region 5'!AF$64","v":{"v":0,"d":"$0.00"}},{"$f":"'MMA Rev-Exp Region 5'!AG$64","v":{"v":0,"d":"$0.00"}},{"$f":"'MMA Rev-Exp Region 5'!AH$64","v":{"v":0,"d":"$0.00"}},{"$f":"'MMA Rev-Exp Region 5'!AI$64","v":{"v":0,"d":"$0.00"}},{"$f":"'MMA Rev-Exp Region 5'!AJ$64","v":{"v":0,"d":"$0.00"}},{"v":0,"d":"$0.00"}]
["MMA",null,null,{"$f":"Jurat!I$1","v":0},{"$f":"Jurat!D$33","v":"00:00:00"},"Q3","2017-09-30","Region 5","Operating Expense","Medical Benefits Expense","Other MMA Services","9.4","Other State Plan Services FFS",{"$f":"'MMA Rev-Exp Region 5'!Z$67","v":{"v":0,"d":"$0.00"}},{"$f":"'MMA Rev-Exp Region 5'!AA$67","v":{"v":0,"d":"$0.00"}},{"$f":"'MMA Rev-Exp Region 5'!AB$67","v":{"v":0,"d":"$0.00"}},{"$f":"'MMA Rev-Exp Region 5'!AC$67","v":{"v":0,"d":"$0.00"}},{"$f":"'MMA Rev-Exp Region 5'!AD$67","v":{"v":0,"d":"$0.00"}},{"$f":"'MMA Rev-Exp Region 5'!AE$67","v":{"v":0,"d":"$0.00"}},{"$f":"'MMA Rev-Exp Region 5'!AF$67","v":{"v":0,"d":"$0.00"}},{"$f":"'MMA Rev-Exp Region 5'!AG$67","v":{"v":0,"d":"$0.00"}},{"$f":"'MMA Rev-Exp Region 5'!AH$67","v":{"v":0,"d":"$0.00"}},{"$f":"'MMA Rev-Exp Region 5'!AI$67","v":{"v":0,"d":"$0.00"}},{"$f":"'MMA Rev-Exp Region 5'!AJ$67","v":{"v":0,"d":"$0.00"}},{"v":0,"d":"$0.00"}]
["MMA",null,null,{"$f":"Jurat!I$1","v":0},{"$f":"Jurat!D$33","v":"00:00:00"},"Q3","2017-09-30","Region 5","Operating Expense","Medical Benefits Expense","Expanded Benefits","10.1","Expanded Benefits FFS",{"$f":"'MMA Rev-Exp Region 5'!Z$72","v":{"v":0,"d":"$0.00"}},{"$f":"'MMA Rev-Exp Region 5'!AA$72","v":{"v":0,"d":"$0.00"}},{"$f":"'MMA Rev-Exp Region 5'!AB$72","v":{"v":0,"d":"$0.00"}},{"$f":"'MMA Rev-Exp Region 5'!AC$72","v":{"v":0,"d":"$0.00"}},{"$f":"'MMA Rev-Exp Region 5'!AD$72","v":{"v":0,"d":"$0.00"}},{"$f":"'MMA Rev-Exp Region 5'!AE$72","v":{"v":0,"d":"$0.00"}},{"$f":"'MMA Rev-Exp Region 5'!AF$72","v":{"v":0,"d":"$0.00"}},{"$f":"'MMA Rev-Exp Region 5'!AG$72","v":{"v":0,"d":"$0.00"}},{"$f":"'MMA Rev-Exp Region 5'!AH$72","v":{"v":0,"d":"$0.00"}},{"$f":"'MMA Rev-Exp Region 5'!AI$72","v":{"v":0,"d":"$0.00"}},{"$f":"'MMA Rev-Exp Region 5'!AJ$72","v":{"v":0,"d":"$0.00"}},{"v":0,"d":"$0.00"}]
["MMA",null,null,{"$f":"Jurat!I$1","v":0},{"$f":"Jurat!D$33","v":"00:00:00"},"Q3","2017-09-30","Region 5","Operating Expense","Medical Benefits Expense","Expanded Benefits","10.4","Expanded Benefits Settlements",{"$f":"'MMA Rev-Exp Region 5'!Z$75","v":{"v":0,"d":"$0.00"}},{"$f":"'MMA Rev-Exp Region 5'!AA$75","v":{"v":0,"d":"$0.00"}},{"$f":"'MMA Rev-Exp Region 5'!AB$75","v":{"v":0,"d":"$0.00"}},{"$f":"'MMA Rev-Exp Region 5'!AC$75","v":{"v":0,"d":"$0.00"}},{"$f":"'MMA Rev-Exp Region 5'!AD$75","v":{"v":0,"d":"$0.00"}},{"$f":"'MMA Rev-Exp Region 5'!AE$75","v":{"v":0,"d":"$0.00"}},{"$f":"'MMA Rev-Exp Region 5'!AF$75","v":{"v":0,"d":"$0.00"}},{"$f":"'MMA Rev-Exp Region 5'!AG$75","v":{"v":0,"d":"$0.00"}},{"$f":"'MMA Rev-Exp Region 5'!AH$75","v":{"v":0,"d":"$0.00"}},{"$f":"'MMA Rev-Exp Region 5'!AI$75","v":{"v":0,"d":"$0.00"}},{"$f":"'MMA Rev-Exp Region 5'!AJ$75","v":{"v":0,"d":"$0.00"}},{"v":0,"d":"$0.00"}]
["MMA",null,null,{"$f":"Jurat!I$1","v":0},{"$f":"Jurat!D$33","v":"00:00:00"},"Q3","2017-09-30","Region 5","Operating Expense","Medical Benefits Expense","Other Medical","11.9","Reinsurance Recoveries",{"$f":"'MMA Rev-Exp Region 5'!Z$85","v":{"v":0,"d":"$0.00"}},{"$f":"'MMA Rev-Exp Region 5'!AA$85","v":{"v":0,"d":"$0.00"}},{"$f":"'MMA Rev-Exp Region 5'!AB$85","v":{"v":0,"d":"$0.00"}},{"$f":"'MMA Rev-Exp Region 5'!AC$85","v":{"v":0,"d":"$0.00"}},{"$f":"'MMA Rev-Exp Region 5'!AD$85","v":{"v":0,"d":"$0.00"}},{"$f":"'MMA Rev-Exp Region 5'!AE$85","v":{"v":0,"d":"$0.00"}},{"$f":"'MMA Rev-Exp Region 5'!AF$85","v":{"v":0,"d":"$0.00"}},{"$f":"'MMA Rev-Exp Region 5'!AG$85","v":{"v":0,"d":"$0.00"}},{"$f":"'MMA Rev-Exp Region 5'!AH$85","v":{"v":0,"d":"$0.00"}},{"$f":"'MMA Rev-Exp Region 5'!AI$85","v":{"v":0,"d":"$0.00"}},{"$f":"'MMA Rev-Exp Region 5'!AJ$85","v":{"v":0,"d":"$0.00"}},{"v":0,"d":"$0.00"}]
["MMA",null,null,{"$f":"Jurat!I$1","v":0},{"$f":"Jurat!D$33","v":"00:00:00"},"Q3","2017-09-30","Region 5","Operating Expense","Administrative Expense","Administrative","12.3","Information Systems",{"$f":"'MMA Rev-Exp Region 5'!Z$92","v":{"v":0,"d":"$0.00"}},{"v":0,"d":"$0.00"},{"v":0,"d":"$0.00"},{"v":0,"d":"$0.00"},{"v":0,"d":"$0.00"},{"v":0,"d":"$0.00"},{"v":0,"d":"$0.00"},{"v":0,"d":"$0.00"},{"v":0,"d":"$0.00"},{"v":0,"d":"$0.00"},{"v":0,"d":"$0.00"},{"v":0,"d":"$0.00"}]
["MMA",null,null,{"$f":"Jurat!I$1","v":0},{"$f":"Jurat!D$33","v":"00:00:00"},"Q3","2017-09-30","Region 5","Operating Expense","Administrative Expense","Administrative","12.4","Marketing Expenses",{"$f":"'MMA Rev-Exp Region 5'!Z$93","v":{"v":0,"d":"$0.00"}},{"v":0,"d":"$0.00"},{"v":0,"d":"$0.00"},{"v":0,"d":"$0.00"},{"v":0,"d":"$0.00"},{"v":0,"d":"$0.00"},{"v":0,"d":"$0.00"},{"v":0,"d":"$0.00"},{"v":0,"d":"$0.00"},{"v":0,"d":"$0.00"},{"v":0,"d":"$0.00"},{"v":0,"d":"$0.00"}]
["MMA",null,null,{"$f":"Jurat!I$1","v":0},{"$f":"Jurat!D$33","v":"00:00:00"},"Q3","2017-09-30","Region 5","Operating Expense","Administrative Expense","Administrative","12.6","Compliance/Regulatory",{"$f":"'MMA Rev-Exp Region 5'!Z$95","v":{"v":0,"d":"$0.00"}},{"v":0,"d":"$0.00"},{"v":0,"d":"$0.00"},{"v":0,"d":"$0.00"},{"v":0,"d":"$0.00"},{"v":0,"d":"$0.00"},{"v":0,"d":"$0.00"},{"v":0,"d":"$0.00"},{"v":0,"d":"$0.00"},{"v":0,"d":"$0.00"},{"v":0,"d":"$0.00"},{"v":0,"d":"$0.00"}]
["MMA",null,null,{"$f":"Jurat!I$1","v":0},{"$f":"Jurat!D$33","v":"00:00:00"},"Q3","2017-09-30","Region 5","Operating Expense","Taxes & Fees","Taxes & Fees","13.3","Section 9010 Health Insurance Providers Fee",{"$f":"'MMA Rev-Exp Region 5'!Z$99","v":{"v":0,"d":"$0.00"}},{"v":0,"d":"$0.00"},{"v":0,"d":"$0.00"},{"v":0,"d":"$0.00"},{"v":0,"d":"$0.00"},{"v":0,"d":"$0.00"},{"v":0,"d":"$0.00"},{"v":0,"d":"$0.00"},{"v":0,"d":"$0.00"},{"v":0,"d":"$0.00"},{"v":0,"d":"$0.00"},{"v":0,"d":"$0.00"}]
["MMA",null,null,{"$f":"Jurat!I$1","v":0},{"$f":"Jurat!D$33","v":"00:00:00"},"Q4","2017-12-31","Region 5","Operating Revenue","Capitation","Capitation",1.1,"Capitation",{"$f":"'MMA Rev-Exp Region 5'!AK$11","v":{"v":0,"d":"$0.00"}},{"$f":"'MMA Rev-Exp Region 5'!AL$11","v":{"v":0,"d":"$0.00"}},{"$f":"'MMA Rev-Exp Region 5'!AM$11","v":{"v":0,"d":"$0.00"}},{"$f":"'MMA Rev-Exp Region 5'!AN$11","v":{"v":0,"d":"$0.00"}},{"$f":"'MMA Rev-Exp Region 5'!AO$11","v":{"v":0,"d":"$0.00"}},{"$f":"'MMA Rev-Exp Region 5'!AP$11","v":{"v":0,"d":"$0.00"}},{"$f":"'MMA Rev-Exp Region 5'!AQ$11","v":{"v":0,"d":"$0.00"}},{"$f":"'MMA Rev-Exp Region 5'!AR$11","v":{"v":0,"d":"$0.00"}},{"$f":"'MMA Rev-Exp Region 5'!AS$11","v":{"v":0,"d":"$0.00"}},{"$f":"'MMA Rev-Exp Region 5'!AT$11","v":{"v":0,"d":"$0.00"}},{"$f":"'MMA Rev-Exp Region 5'!AU$11","v":{"v":0,"d":"$0.00"}},{"v":0,"d":"$0.00"}]
["MMA",null,null,{"$f":"Jurat!I$1","v":0},{"$f":"Jurat!D$33","v":"00:00:00"},"Q4","2017-12-31","Region 5","Operating Revenue","Other Revenue","Other Revenue - 9010","1.5","ACA § 9010 related payments",{"$f":"'MMA Rev-Exp Region 5'!AK$15","v":{"v":0,"d":"$0.00"}},{"$f":"'MMA Rev-Exp Region 5'!AL$15","v":{"v":0,"d":"$0.00"}},{"$f":"'MMA Rev-Exp Region 5'!AM$15","v":{"v":0,"d":"$0.00"}},{"$f":"'MMA Rev-Exp Region 5'!AN$15","v":{"v":0,"d":"$0.00"}},{"$f":"'MMA Rev-Exp Region 5'!AO$15","v":{"v":0,"d":"$0.00"}},{"$f":"'MMA Rev-Exp Region 5'!AP$15","v":{"v":0,"d":"$0.00"}},{"$f":"'MMA Rev-Exp Region 5'!AQ$15","v":{"v":0,"d":"$0.00"}},{"$f":"'MMA Rev-Exp Region 5'!AR$15","v":{"v":0,"d":"$0.00"}},{"$f":"'MMA Rev-Exp Region 5'!AS$15","v":{"v":0,"d":"$0.00"}},{"$f":"'MMA Rev-Exp Region 5'!AT$15","v":{"v":0,"d":"$0.00"}},{"$f":"'MMA Rev-Exp Region 5'!AU$15","v":{"v":0,"d":"$0.00"}},{"v":0,"d":"$0.00"}]
["MMA",null,null,{"$f":"Jurat!I$1","v":0},{"$f":"Jurat!D$33","v":"00:00:00"},"Q4","2017-12-31","Region 5","Operating Expense","Medical Benefits Expense","Hospital Services",2.2,"Ending IBNP for Inpatient Hospital Services",{"$f":"'MMA Rev-Exp Region 5'!AK$21","v":{"v":0,"d":"$0.00"}},{"$f":"'MMA Rev-Exp Region 5'!AL$21","v":{"v":0,"d":"$0.00"}},{"$f":"'MMA Rev-Exp Region 5'!AM$21","v":{"v":0,"d":"$0.00"}},{"$f":"'MMA Rev-Exp Region 5'!AN$21","v":{"v":0,"d":"$0.00"}},{"$f":"'MMA Rev-Exp Region 5'!AO$21","v":{"v":0,"d":"$0.00"}},{"$f":"'MMA Rev-Exp Region 5'!AP$21","v":{"v":0,"d":"$0.00"}},{"$f":"'MMA Rev-Exp Region 5'!AQ$21","v":{"v":0,"d":"$0.00"}},{"$f":"'MMA Rev-Exp Region 5'!AR$21","v":{"v":0,"d":"$0.00"}},{"$f":"'MMA Rev-Exp Region 5'!AS$21","v":{"v":0,"d":"$0.00"}},{"$f":"'MMA Rev-Exp Region 5'!AT$21","v":{"v":0,"d":"$0.00"}},{"$f":"'MMA Rev-Exp Region 5'!AU$21","v":{"v":0,"d":"$0.00"}},{"v":0,"d":"$0.00"}]
["MMA",null,null,{"$f":"Jurat!I$1","v":0},{"$f":"Jurat!D$33","v":"00:00:00"},"Q4","2017-12-31","Region 5","Operating Expense","Medical Benefits Expense","Hospital Services","2.6","Subcapitated Hospital Services",{"$f":"'MMA Rev-Exp Region 5'!AK$25","v":{"v":0,"d":"$0.00"}},{"$f":"'MMA Rev-Exp Region 5'!AL$25","v":{"v":0,"d":"$0.00"}},{"$f":"'MMA Rev-Exp Region 5'!AM$25","v":{"v":0,"d":"$0.00"}},{"$f":"'MMA Rev-Exp Region 5'!AN$25","v":{"v":0,"d":"$0.00"}},{"$f":"'MMA Rev-Exp Region 5'!AO$25","v":{"v":0,"d":"$0.00"}},{"$f":"'MMA Rev-Exp Region 5'!AP$25","v":{"v":0,"d":"$0.00"}},{"$f":"'MMA Rev-Exp Region 5'!AQ$25","v":{"v":0,"d":"$0.00"}},{"$f":"'MMA Rev-Exp Region 5'!AR$25","v":{"v":0,"d":"$0.00"}},{"$f":"'MMA Rev-Exp Region 5'!AS$25","v":{"v":0,"d":"$0.00"}},{"$f":"'MMA Rev-Exp Region 5'!AT$25","v":{"v":0,"d":"$0.00"}},{"$f":"'MMA Rev-Exp Region 5'!AU$25","v":{"v":0,"d":"$0.00"}},{"v":0,"d":"$0.00"}]
["MMA",null,null,{"$f":"Jurat!I$1","v":0},{"$f":"Jurat!D$33","v":"00:00:00"},"Q4","2017-12-31","Region 5","Operating Expense","Medical Benefits Expense","Professional Services",3.1,"Primary Care FFS",{"$f":"'MMA Rev-Exp Region 5'!AK$29","v":{"v":0,"d":"$0.00"}},{"$f":"'MMA Rev-Exp Region 5'!AL$29","v":{"v":0,"d":"$0.00"}},{"$f":"'MMA Rev-Exp Region 5'!AM$29","v":{"v":0,"d":"$0.00"}},{"$f":"'MMA Rev-Exp Region 5'!AN$29","v":{"v":0,"d":"$0.00"}},{"$f":"'MMA Rev-Exp Region 5'!AO$29","v":{"v":0,"d":"$0.00"}},{"$f":"'MMA Rev-Exp Region 5'!AP$29","v":{"v":0,"d":"$0.00"}},{"$f":"'MMA Rev-Exp Region 5'!AQ$29","v":{"v":0,"d":"$0.00"}},{"$f":"'MMA Rev-Exp Region 5'!AR$29","v":{"v":0,"d":"$0.00"}},{"$f":"'MMA Rev-Exp Region 5'!AS$29","v":{"v":0,"d":"$0.00"}},{"$f":"'MMA Rev-Exp Region 5'!AT$29","v":{"v":0,"d":"$0.00"}},{"$f":"'MMA Rev-Exp Region 5'!AU$29","v":{"v":0,"d":"$0.00"}},{"v":0,"d":"$0.00"}]
["MMA",null,null,{"$f":"Jurat!I$1","v":0},{"$f":"Jurat!D$33","v":"00:00:00"},"Q4","2017-12-31","Region 5","Operating Expense","Medical Benefits Expense","Professional Services","3.4","§ 1202 PCP Payments to providers",{"$f":"'MMA Rev-Exp Region 5'!AK$32","v":{"v":0,"d":"$0.00"}},{"$f":"'MMA Rev-Exp Region 5'!AL$32","v":{"v":0,"d":"$0.00"}},{"$f":"'MMA Rev-Exp Region 5'!AM$32","v":{"v":0,"d":"$0.00"}},{"$f":"'MMA Rev-Exp Region 5'!AN$32","v":{"v":0,"d":"$0.00"}},{"$f":"'MMA Rev-Exp Region 5'!AO$32","v":{"v":0,"d":"$0.00"}},{"$f":"'MMA Rev-Exp Region 5'!AP$32","v":{"v":0,"d":"$0.00"}},{"$f":"'MMA Rev-Exp Region 5'!AQ$32","v":{"v":0,"d":"$0.00"}},{"$f":"'MMA Rev-Exp Region 5'!AR$32","v":{"v":0,"d":"$0.00"}},{"$f":"'MMA Rev-Exp Region 5'!AS$32","v":{"v":0,"d":"$0.00"}},{"$f":"'MMA Rev-Exp Region 5'!AT$32","v":{"v":0,"d":"$0.00"}},{"$f":"'MMA Rev-Exp Region 5'!AU$32","v":{"v":0,"d":"$0.00"}},{"v":0,"d":"$0.00"}]
["MMA",null,null,{"$f":"Jurat!I$1","v":0},{"$f":"Jurat!D$33","v":"00:00:00"},"Q4","2017-12-31","Region 5","Operating Expense","Medical Benefits Expense","Professional Services","3.5","Subcapitated Professional Services",{"$f":"'MMA Rev-Exp Region 5'!AK$33","v":{"v":0,"d":"$0.00"}},{"$f":"'MMA Rev-Exp Region 5'!AL$33","v":{"v":0,"d":"$0.00"}},{"$f":"'MMA Rev-Exp Region 5'!AM$33","v":{"v":0,"d":"$0.00"}},{"$f":"'MMA Rev-Exp Region 5'!AN$33","v":{"v":0,"d":"$0.00"}},{"$f":"'MMA Rev-Exp Region 5'!AO$33","v":{"v":0,"d":"$0.00"}},{"$f":"'MMA Rev-Exp Region 5'!AP$33","v":{"v":0,"d":"$0.00"}},{"$f":"'MMA Rev-Exp Region 5'!AQ$33","v":{"v":0,"d":"$0.00"}},{"$f":"'MMA Rev-Exp Region 5'!AR$33","v":{"v":0,"d":"$0.00"}},{"$f":"'MMA Rev-Exp Region 5'!AS$33","v":{"v":0,"d":"$0.00"}},{"$f":"'MMA Rev-Exp Region 5'!AT$33","v":{"v":0,"d":"$0.00"}},{"$f":"'MMA Rev-Exp Region 5'!AU$33","v":{"v":0,"d":"$0.00"}},{"v":0,"d":"$0.00"}]
["MMA",null,null,{"$f":"Jurat!I$1","v":0},{"$f":"Jurat!D$33","v":"00:00:00"},"Q4","2017-12-31","Region 5","Operating Expense","Medical Benefits Expense","Maternity Services","4.1.1","Maternity Services",{"$f":"'MMA Rev-Exp Region 5'!AK$37","v":{"v":0,"d":"$0.00"}},{"$f":"'MMA Rev-Exp Region 5'!AL$37","v":{"v":0,"d":"$0.00"}},{"$f":"'MMA Rev-Exp Region 5'!AM$37","v":{"v":0,"d":"$0.00"}},{"$f":"'MMA Rev-Exp Region 5'!AN$37","v":{"v":0,"d":"$0.00"}},{"$f":"'MMA Rev-Exp Region 5'!AO$37","v":{"v":0,"d":"$0.00"}},{"$f":"'MMA Rev-Exp Region 5'!AP$37","v":{"v":0,"d":"$0.00"}},{"$f":"'MMA Rev-Exp Region 5'!AQ$37","v":{"v":0,"d":"$0.00"}},{"$f":"'MMA Rev-Exp Region 5'!AR$37","v":{"v":0,"d":"$0.00"}},{"$f":"'MMA Rev-Exp Region 5'!AS$37","v":{"v":0,"d":"$0.00"}},{"$f":"'MMA Rev-Exp Region 5'!AT$37","v":{"v":0,"d":"$0.00"}},{"$f":"'MMA Rev-Exp Region 5'!AU$37","v":{"v":0,"d":"$0.00"}},{"v":0,"d":"$0.00"}]
["MMA",null,null,{"$f":"Jurat!I$1","v":0},{"$f":"Jurat!D$33","v":"00:00:00"},"Q4","2017-12-31","Region 5","Operating Expense","Medical Benefits Expense","Maternity Services","4.3.1","Maternity Settlements",{"$f":"'MMA Rev-Exp Region 5'!AK$39","v":{"v":0,"d":"$0.00"}},{"$f":"'MMA Rev-Exp Region 5'!AL$39","v":{"v":0,"d":"$0.00"}},{"$f":"'MMA Rev-Exp Region 5'!AM$39","v":{"v":0,"d":"$0.00"}},{"$f":"'MMA Rev-Exp Region 5'!AN$39","v":{"v":0,"d":"$0.00"}},{"$f":"'MMA Rev-Exp Region 5'!AO$39","v":{"v":0,"d":"$0.00"}},{"$f":"'MMA Rev-Exp Region 5'!AP$39","v":{"v":0,"d":"$0.00"}},{"$f":"'MMA Rev-Exp Region 5'!AQ$39","v":{"v":0,"d":"$0.00"}},{"$f":"'MMA Rev-Exp Region 5'!AR$39","v":{"v":0,"d":"$0.00"}},{"$f":"'MMA Rev-Exp Region 5'!AS$39","v":{"v":0,"d":"$0.00"}},{"$f":"'MMA Rev-Exp Region 5'!AT$39","v":{"v":0,"d":"$0.00"}},{"$f":"'MMA Rev-Exp Region 5'!AU$39","v":{"v":0,"d":"$0.00"}},{"v":0,"d":"$0.00"}]
["MMA",null,null,{"$f":"Jurat!I$1","v":0},{"$f":"Jurat!D$33","v":"00:00:00"},"Q4","2017-12-31","Region 5","Operating Expense","Medical Benefits Expense","Mental Health Services","5.4","Mental Health Settlements",{"$f":"'MMA Rev-Exp Region 5'!AK$44","v":{"v":0,"d":"$0.00"}},{"$f":"'MMA Rev-Exp Region 5'!AL$44","v":{"v":0,"d":"$0.00"}},{"$f":"'MMA Rev-Exp Region 5'!AM$44","v":{"v":0,"d":"$0.00"}},{"$f":"'MMA Rev-Exp Region 5'!AN$44","v":{"v":0,"d":"$0.00"}},{"$f":"'MMA Rev-Exp Region 5'!AO$44","v":{"v":0,"d":"$0.00"}},{"$f":"'MMA Rev-Exp Region 5'!AP$44","v":{"v":0,"d":"$0.00"}},{"$f":"'MMA Rev-Exp Region 5'!AQ$44","v":{"v":0,"d":"$0.00"}},{"$f":"'MMA Rev-Exp Region 5'!AR$44","v":{"v":0,"d":"$0.00"}},{"$f":"'MMA Rev-Exp Region 5'!AS$44","v":{"v":0,"d":"$0.00"}},{"$f":"'MMA Rev-Exp Region 5'!AT$44","v":{"v":0,"d":"$0.00"}},{"$f":"'MMA Rev-Exp Region 5'!AU$44","v":{"v":0,"d":"$0.00"}},{"v":0,"d":"$0.00"}]
["MMA",null,null,{"$f":"Jurat!I$1","v":0},{"$f":"Jurat!D$33","v":"00:00:00"},"Q4","2017-12-31","Region 5","Operating Expense","Medical Benefits Expense","Dental Services",6.3,"Ending IBNP for Dental Services",{"$f":"'MMA Rev-Exp Region 5'!AK$48","v":{"v":0,"d":"$0.00"}},{"$f":"'MMA Rev-Exp Region 5'!AL$48","v":{"v":0,"d":"$0.00"}},{"$f":"'MMA Rev-Exp Region 5'!AM$48","v":{"v":0,"d":"$0.00"}},{"$f":"'MMA Rev-Exp Region 5'!AN$48","v":{"v":0,"d":"$0.00"}},{"$f":"'MMA Rev-Exp Region 5'!AO$48","v":{"v":0,"d":"$0.00"}},{"$f":"'MMA Rev-Exp Region 5'!AP$48","v":{"v":0,"d":"$0.00"}},{"$f":"'MMA Rev-Exp Region 5'!AQ$48","v":{"v":0,"d":"$0.00"}},{"$f":"'MMA Rev-Exp Region 5'!AR$48","v":{"v":0,"d":"$0.00"}},{"$f":"'MMA Rev-Exp Region 5'!AS$48","v":{"v":0,"d":"$0.00"}},{"$f":"'MMA Rev-Exp Region 5'!AT$48","v":{"v":0,"d":"$0.00"}},{"$f":"'MMA Rev-Exp Region 5'!AU$48","v":{"v":0,"d":"$0.00"}},{"v":0,"d":"$0.00"}]
["MMA",null,null,{"$f":"Jurat!I$1","v":0},{"$f":"Jurat!D$33","v":"00:00:00"},"Q4","2017-12-31","Region 5","Operating Expense","Medical Benefits Expense","Transportation Services",7.3,"Ending IBNP for Transportation",{"$f":"'MMA Rev-Exp Region 5'!AK$53","v":{"v":0,"d":"$0.00"}},{"$f":"'MMA Rev-Exp Region 5'!AL$53","v":{"v":0,"d":"$0.00"}},{"$f":"'MMA Rev-Exp Region 5'!AM$53","v":{"v":0,"d":"$0.00"}},{"$f":"'MMA Rev-Exp Region 5'!AN$53","v":{"v":0,"d":"$0.00"}},{"$f":"'MMA Rev-Exp Region 5'!AO$53","v":{"v":0,"d":"$0.00"}},{"$f":"'MMA Rev-Exp Region 5'!AP$53","v":{"v":0,"d":"$0.00"}},{"$f":"'MMA Rev-Exp Region 5'!AQ$53","v":{"v":0,"d":"$0.00"}},{"$f":"'MMA Rev-Exp Region 5'!AR$53","v":{"v":0,"d":"$0.00"}},{"$f":"'MMA Rev-Exp Region 5'!AS$53","v":{"v":0,"d":"$0.00"}},{"$f":"'MMA Rev-Exp Region 5'!AT$53","v":{"v":0,"d":"$0.00"}},{"$f":"'MMA Rev-Exp Region 5'!AU$53","v":{"v":0,"d":"$0.00"}},{"v":0,"d":"$0.00"}]
["MMA",null,null,{"$f":"Jurat!I$1","v":0},{"$f":"Jurat!D$33","v":"00:00:00"},"Q4","2017-12-31","Region 5","Operating Expense","Medical Benefits Expense","Pharmacy Services","8.2","Hepatitis C Prescription Drug FFS",{"$f":"'MMA Rev-Exp Region 5'!AK$57","v":{"v":0,"d":"$0.00"}},{"$f":"'MMA Rev-Exp Region 5'!AL$57","v":{"v":0,"d":"$0.00"}},{"$f":"'MMA Rev-Exp Region 5'!AM$57","v":{"v":0,"d":"$0.00"}},{"$f":"'MMA Rev-Exp Region 5'!AN$57","v":{"v":0,"d":"$0.00"}},{"$f":"'MMA Rev-Exp Region 5'!AO$57","v":{"v":0,"d":"$0.00"}},{"$f":"'MMA Rev-Exp Region 5'!AP$57","v":{"v":0,"d":"$0.00"}},{"$f":"'MMA Rev-Exp Region 5'!AQ$57","v":{"v":0,"d":"$0.00"}},{"$f":"'MMA Rev-Exp Region 5'!AR$57","v":{"v":0,"d":"$0.00"}},{"$f":"'MMA Rev-Exp Region 5'!AS$57","v":{"v":0,"d":"$0.00"}},{"$f":"'MMA Rev-Exp Region 5'!AT$57","v":{"v":0,"d":"$0.00"}},{"$f":"'MMA Rev-Exp Region 5'!AU$57","v":{"v":0,"d":"$0.00"}},{"v":0,"d":"$0.00"}]
["MMA",null,null,{"$f":"Jurat!I$1","v":0},{"$f":"Jurat!D$33","v":"00:00:00"},"Q4","2017-12-31","Region 5","Operating Expense","Medical Benefits Expense","Pharmacy Services","8.5","Ending accrual for Rebates receivable",{"$f":"'MMA Rev-Exp Region 5'!AK$60","v":{"v":0,"d":"$0.00"}},{"$f":"'MMA Rev-Exp Region 5'!AL$60","v":{"v":0,"d":"$0.00"}},{"$f":"'MMA Rev-Exp Region 5'!AM$60","v":{"v":0,"d":"$0.00"}},{"$f":"'MMA Rev-Exp Region 5'!AN$60","v":{"v":0,"d":"$0.00"}},{"$f":"'MMA Rev-Exp Region 5'!AO$60","v":{"v":0,"d":"$0.00"}},{"$f":"'MMA Rev-Exp Region 5'!AP$60","v":{"v":0,"d":"$0.00"}},{"$f":"'MMA Rev-Exp Region 5'!AQ$60","v":{"v":0,"d":"$0.00"}},{"$f":"'MMA Rev-Exp Region 5'!AR$60","v":{"v":0,"d":"$0.00"}},{"$f":"'MMA Rev-Exp Region 5'!AS$60","v":{"v":0,"d":"$0.00"}},{"$f":"'MMA Rev-Exp Region 5'!AT$60","v":{"v":0,"d":"$0.00"}},{"$f":"'MMA Rev-Exp Region 5'!AU$60","v":{"v":0,"d":"$0.00"}},{"v":0,"d":"$0.00"}]
["MMA",null,null,{"$f":"Jurat!I$1","v":0},{"$f":"Jurat!D$33","v":"00:00:00"},"Q4","2017-12-31","Region 5","Operating Expense","Medical Benefits Expense","Pharmacy Services","8.6","Prescription Drugs Subcapitation",{"$f":"'MMA Rev-Exp Region 5'!AK$61","v":{"v":0,"d":"$0.00"}},{"$f":"'MMA Rev-Exp Region 5'!AL$61","v":{"v":0,"d":"$0.00"}},{"$f":"'MMA Rev-Exp Region 5'!AM$61","v":{"v":0,"d":"$0.00"}},{"$f":"'MMA Rev-Exp Region 5'!AN$61","v":{"v":0,"d":"$0.00"}},{"$f":"'MMA Rev-Exp Region 5'!AO$61","v":{"v":0,"d":"$0.00"}},{"$f":"'MMA Rev-Exp Region 5'!AP$61","v":{"v":0,"d":"$0.00"}},{"$f":"'MMA Rev-Exp Region 5'!AQ$61","v":{"v":0,"d":"$0.00"}},{"$f":"'MMA Rev-Exp Region 5'!AR$61","v":{"v":0,"d":"$0.00"}},{"$f":"'MMA Rev-Exp Region 5'!AS$61","v":{"v":0,"d":"$0.00"}},{"$f":"'MMA Rev-Exp Region 5'!AT$61","v":{"v":0,"d":"$0.00"}},{"$f":"'MMA Rev-Exp Region 5'!AU$61","v":{"v":0,"d":"$0.00"}},{"v":0,"d":"$0.00"}]
["MMA",null,null,{"$f":"Jurat!I$1","v":0},{"$f":"Jurat!D$33","v":"00:00:00"},"Q4","2017-12-31","Region 5","Operating Expense","Medical Benefits Expense","Other MMA Services","9.2","Hospice FFS",{"$f":"'MMA Rev-Exp Region 5'!AK$65","v":{"v":0,"d":"$0.00"}},{"$f":"'MMA Rev-Exp Region 5'!AL$65","v":{"v":0,"d":"$0.00"}},{"$f":"'MMA Rev-Exp Region 5'!AM$65","v":{"v":0,"d":"$0.00"}},{"$f":"'MMA Rev-Exp Region 5'!AN$65","v":{"v":0,"d":"$0.00"}},{"$f":"'MMA Rev-Exp Region 5'!AO$65","v":{"v":0,"d":"$0.00"}},{"$f":"'MMA Rev-Exp Region 5'!AP$65","v":{"v":0,"d":"$0.00"}},{"$f":"'MMA Rev-Exp Region 5'!AQ$65","v":{"v":0,"d":"$0.00"}},{"$f":"'MMA Rev-Exp Region 5'!AR$65","v":{"v":0,"d":"$0.00"}},{"$f":"'MMA Rev-Exp Region 5'!AS$65","v":{"v":0,"d":"$0.00"}},{"$f":"'MMA Rev-Exp Region 5'!AT$65","v":{"v":0,"d":"$0.00"}},{"$f":"'MMA Rev-Exp Region 5'!AU$65","v":{"v":0,"d":"$0.00"}},{"v":0,"d":"$0.00"}]
["MMA",null,null,{"$f":"Jurat!I$1","v":0},{"$f":"Jurat!D$33","v":"00:00:00"},"Q4","2017-12-31","Region 5","Operating Expense","Medical Benefits Expense","Other MMA Services","9.6","Ending IBNP for Other Services",{"$f":"'MMA Rev-Exp Region 5'!AK$69","v":{"v":0,"d":"$0.00"}},{"$f":"'MMA Rev-Exp Region 5'!AL$69","v":{"v":0,"d":"$0.00"}},{"$f":"'MMA Rev-Exp Region 5'!AM$69","v":{"v":0,"d":"$0.00"}},{"$f":"'MMA Rev-Exp Region 5'!AN$69","v":{"v":0,"d":"$0.00"}},{"$f":"'MMA Rev-Exp Region 5'!AO$69","v":{"v":0,"d":"$0.00"}},{"$f":"'MMA Rev-Exp Region 5'!AP$69","v":{"v":0,"d":"$0.00"}},{"$f":"'MMA Rev-Exp Region 5'!AQ$69","v":{"v":0,"d":"$0.00"}},{"$f":"'MMA Rev-Exp Region 5'!AR$69","v":{"v":0,"d":"$0.00"}},{"$f":"'MMA Rev-Exp Region 5'!AS$69","v":{"v":0,"d":"$0.00"}},{"$f":"'MMA Rev-Exp Region 5'!AT$69","v":{"v":0,"d":"$0.00"}},{"$f":"'MMA Rev-Exp Region 5'!AU$69","v":{"v":0,"d":"$0.00"}},{"v":0,"d":"$0.00"}]
["MMA",null,null,{"$f":"Jurat!I$1","v":0},{"$f":"Jurat!D$33","v":"00:00:00"},"Q4","2017-12-31","Region 5","Operating Expense","Medical Benefits Expense","Expanded Benefits","10.1","Expanded Benefits FFS",{"$f":"'MMA Rev-Exp Region 5'!AK$72","v":{"v":0,"d":"$0.00"}},{"$f":"'MMA Rev-Exp Region 5'!AL$72","v":{"v":0,"d":"$0.00"}},{"$f":"'MMA Rev-Exp Region 5'!AM$72","v":{"v":0,"d":"$0.00"}},{"$f":"'MMA Rev-Exp Region 5'!AN$72","v":{"v":0,"d":"$0.00"}},{"$f":"'MMA Rev-Exp Region 5'!AO$72","v":{"v":0,"d":"$0.00"}},{"$f":"'MMA Rev-Exp Region 5'!AP$72","v":{"v":0,"d":"$0.00"}},{"$f":"'MMA Rev-Exp Region 5'!AQ$72","v":{"v":0,"d":"$0.00"}},{"$f":"'MMA Rev-Exp Region 5'!AR$72","v":{"v":0,"d":"$0.00"}},{"$f":"'MMA Rev-Exp Region 5'!AS$72","v":{"v":0,"d":"$0.00"}},{"$f":"'MMA Rev-Exp Region 5'!AT$72","v":{"v":0,"d":"$0.00"}},{"$f":"'MMA Rev-Exp Region 5'!AU$72","v":{"v":0,"d":"$0.00"}},{"v":0,"d":"$0.00"}]
["MMA",null,null,{"$f":"Jurat!I$1","v":0},{"$f":"Jurat!D$33","v":"00:00:00"},"Q4","2017-12-31","Region 5","Operating Expense","Medical Benefits Expense","Expanded Benefits","10.4","Expanded Benefits Settlements",{"$f":"'MMA Rev-Exp Region 5'!AK$75","v":{"v":0,"d":"$0.00"}},{"$f":"'MMA Rev-Exp Region 5'!AL$75","v":{"v":0,"d":"$0.00"}},{"$f":"'MMA Rev-Exp Region 5'!AM$75","v":{"v":0,"d":"$0.00"}},{"$f":"'MMA Rev-Exp Region 5'!AN$75","v":{"v":0,"d":"$0.00"}},{"$f":"'MMA Rev-Exp Region 5'!AO$75","v":{"v":0,"d":"$0.00"}},{"$f":"'MMA Rev-Exp Region 5'!AP$75","v":{"v":0,"d":"$0.00"}},{"$f":"'MMA Rev-Exp Region 5'!AQ$75","v":{"v":0,"d":"$0.00"}},{"$f":"'MMA Rev-Exp Region 5'!AR$75","v":{"v":0,"d":"$0.00"}},{"$f":"'MMA Rev-Exp Region 5'!AS$75","v":{"v":0,"d":"$0.00"}},{"$f":"'MMA Rev-Exp Region 5'!AT$75","v":{"v":0,"d":"$0.00"}},{"$f":"'MMA Rev-Exp Region 5'!AU$75","v":{"v":0,"d":"$0.00"}},{"v":0,"d":"$0.00"}]
["MMA",null,null,{"$f":"Jurat!I$1","v":0},{"$f":"Jurat!D$33","v":"00:00:00"},"Q4","2017-12-31","Region 5","Operating Expense","Medical Benefits Expense","Other Medical","11.9","Reinsurance Recoveries",{"$f":"'MMA Rev-Exp Region 5'!AK$85","v":{"v":0,"d":"$0.00"}},{"$f":"'MMA Rev-Exp Region 5'!AL$85","v":{"v":0,"d":"$0.00"}},{"$f":"'MMA Rev-Exp Region 5'!AM$85","v":{"v":0,"d":"$0.00"}},{"$f":"'MMA Rev-Exp Region 5'!AN$85","v":{"v":0,"d":"$0.00"}},{"$f":"'MMA Rev-Exp Region 5'!AO$85","v":{"v":0,"d":"$0.00"}},{"$f":"'MMA Rev-Exp Region 5'!AP$85","v":{"v":0,"d":"$0.00"}},{"$f":"'MMA Rev-Exp Region 5'!AQ$85","v":{"v":0,"d":"$0.00"}},{"$f":"'MMA Rev-Exp Region 5'!AR$85","v":{"v":0,"d":"$0.00"}},{"$f":"'MMA Rev-Exp Region 5'!AS$85","v":{"v":0,"d":"$0.00"}},{"$f":"'MMA Rev-Exp Region 5'!AT$85","v":{"v":0,"d":"$0.00"}},{"$f":"'MMA Rev-Exp Region 5'!AU$85","v":{"v":0,"d":"$0.00"}},{"v":0,"d":"$0.00"}]
["MMA",null,null,{"$f":"Jurat!I$1","v":0},{"$f":"Jurat!D$33","v":"00:00:00"},"Q4","2017-12-31","Region 5","Operating Expense","Administrative Expense","Administrative","12.3","Information Systems",{"$f":"'MMA Rev-Exp Region 5'!AK$92","v":{"v":0,"d":"$0.00"}},{"v":0,"d":"$0.00"},{"v":0,"d":"$0.00"},{"v":0,"d":"$0.00"},{"v":0,"d":"$0.00"},{"v":0,"d":"$0.00"},{"v":0,"d":"$0.00"},{"v":0,"d":"$0.00"},{"v":0,"d":"$0.00"},{"v":0,"d":"$0.00"},{"v":0,"d":"$0.00"},{"v":0,"d":"$0.00"}]
["MMA",null,null,{"$f":"Jurat!I$1","v":0},{"$f":"Jurat!D$33","v":"00:00:00"},"Q4","2017-12-31","Region 5","Operating Expense","Administrative Expense","Administrative","12.6","Compliance/Regulatory",{"$f":"'MMA Rev-Exp Region 5'!AK$95","v":{"v":0,"d":"$0.00"}},{"v":0,"d":"$0.00"},{"v":0,"d":"$0.00"},{"v":0,"d":"$0.00"},{"v":0,"d":"$0.00"},{"v":0,"d":"$0.00"},{"v":0,"d":"$0.00"},{"v":0,"d":"$0.00"},{"v":0,"d":"$0.00"},{"v":0,"d":"$0.00"},{"v":0,"d":"$0.00"},{"v":0,"d":"$0.00"}]
["MMA",null,null,{"$f":"Jurat!I$1","v":0},{"$f":"Jurat!D$33","v":"00:00:00"},"Q4","2017-12-31","Region 5","Operating Expense","Taxes & Fees","Taxes & Fees","13.1","State Premium tax",{"$f":"'MMA Rev-Exp Region 5'!AK$97","v":{"v":0,"d":"$0.00"}},{"v":0,"d":"$0.00"},{"v":0,"d":"$0.00"},{"v":0,"d":"$0.00"},{"v":0,"d":"$0.00"},{"v":0,"d":"$0.00"},{"v":0,"d":"$0.00"},{"v":0,"d":"$0.00"},{"v":0,"d":"$0.00"},{"v":0,"d":"$0.00"},{"v":0,"d":"$0.00"},{"v":0,"d":"$0.00"}]
["MMA",null,null,{"$f":"Jurat!I$1","v":0},{"$f":"Jurat!D$33","v":"00:00:00"},"Q4","2017-12-31","Region 5","Non-Operating Expense","Income Tax Expense","Income Tax Expense","16.0","Income Tax Expense",{"$f":"'MMA Rev-Exp Region 5'!AK$106","v":{"v":0,"d":"$0.00"}},{"v":0,"d":"$0.00"},{"v":0,"d":"$0.00"},{"v":0,"d":"$0.00"},{"v":0,"d":"$0.00"},{"v":0,"d":"$0.00"},{"v":0,"d":"$0.00"},{"v":0,"d":"$0.00"},{"v":0,"d":"$0.00"},{"v":0,"d":"$0.00"},{"v":0,"d":"$0.00"},{"v":0,"d":"$0.00"}]
["MMA",null,null,{"$f":"Jurat!I$1","v":0},{"$f":"Jurat!D$33","v":"00:00:00"},"Q1","2017-03-31","Region 6","Operating Revenue","Kick Payments","Kick Payments - Hep C","1.3","Hepatitis C Kick Payments",{"$f":"'MMA Rev-Exp Region 6'!D$13","v":{"v":0,"d":"$0.00"}},{"$f":"'MMA Rev-Exp Region 6'!E$13","v":{"v":0,"d":"$0.00"}},{"$f":"'MMA Rev-Exp Region 6'!F$13","v":{"v":0,"d":"$0.00"}},{"$f":"'MMA Rev-Exp Region 6'!G$13","v":{"v":0,"d":"$0.00"}},{"$f":"'MMA Rev-Exp Region 6'!H$13","v":{"v":0,"d":"$0.00"}},{"$f":"'MMA Rev-Exp Region 6'!I$13","v":{"v":0,"d":"$0.00"}},{"$f":"'MMA Rev-Exp Region 6'!J$13","v":{"v":0,"d":"$0.00"}},{"$f":"'MMA Rev-Exp Region 6'!K$13","v":{"v":0,"d":"$0.00"}},{"$f":"'MMA Rev-Exp Region 6'!L$13","v":{"v":0,"d":"$0.00"}},{"$f":"'MMA Rev-Exp Region 6'!M$13","v":{"v":0,"d":"$0.00"}},{"$f":"'MMA Rev-Exp Region 6'!N$13","v":{"v":0,"d":"$0.00"}},{"v":0,"d":"$0.00"}]
["MMA",null,null,{"$f":"Jurat!I$1","v":0},{"$f":"Jurat!D$33","v":"00:00:00"},"Q1","2017-03-31","Region 6","Operating Revenue","Other Revenue","Other Revenue - 9010","1.5","ACA § 9010 related payments",{"$f":"'MMA Rev-Exp Region 6'!D$15","v":{"v":0,"d":"$0.00"}},{"$f":"'MMA Rev-Exp Region 6'!E$15","v":{"v":0,"d":"$0.00"}},{"$f":"'MMA Rev-Exp Region 6'!F$15","v":{"v":0,"d":"$0.00"}},{"$f":"'MMA Rev-Exp Region 6'!G$15","v":{"v":0,"d":"$0.00"}},{"$f":"'MMA Rev-Exp Region 6'!H$15","v":{"v":0,"d":"$0.00"}},{"$f":"'MMA Rev-Exp Region 6'!I$15","v":{"v":0,"d":"$0.00"}},{"$f":"'MMA Rev-Exp Region 6'!J$15","v":{"v":0,"d":"$0.00"}},{"$f":"'MMA Rev-Exp Region 6'!K$15","v":{"v":0,"d":"$0.00"}},{"$f":"'MMA Rev-Exp Region 6'!L$15","v":{"v":0,"d":"$0.00"}},{"$f":"'MMA Rev-Exp Region 6'!M$15","v":{"v":0,"d":"$0.00"}},{"$f":"'MMA Rev-Exp Region 6'!N$15","v":{"v":0,"d":"$0.00"}},{"v":0,"d":"$0.00"}]
["MMA",null,null,{"$f":"Jurat!I$1","v":0},{"$f":"Jurat!D$33","v":"00:00:00"},"Q1","2017-03-31","Region 6","Operating Expense","Medical Benefits Expense","Hospital Services",2.2,"Ending IBNP for Inpatient Hospital Services",{"$f":"'MMA Rev-Exp Region 6'!D$21","v":{"v":0,"d":"$0.00"}},{"$f":"'MMA Rev-Exp Region 6'!E$21","v":{"v":0,"d":"$0.00"}},{"$f":"'MMA Rev-Exp Region 6'!F$21","v":{"v":0,"d":"$0.00"}},{"$f":"'MMA Rev-Exp Region 6'!G$21","v":{"v":0,"d":"$0.00"}},{"$f":"'MMA Rev-Exp Region 6'!H$21","v":{"v":0,"d":"$0.00"}},{"$f":"'MMA Rev-Exp Region 6'!I$21","v":{"v":0,"d":"$0.00"}},{"$f":"'MMA Rev-Exp Region 6'!J$21","v":{"v":0,"d":"$0.00"}},{"$f":"'MMA Rev-Exp Region 6'!K$21","v":{"v":0,"d":"$0.00"}},{"$f":"'MMA Rev-Exp Region 6'!L$21","v":{"v":0,"d":"$0.00"}},{"$f":"'MMA Rev-Exp Region 6'!M$21","v":{"v":0,"d":"$0.00"}},{"$f":"'MMA Rev-Exp Region 6'!N$21","v":{"v":0,"d":"$0.00"}},{"v":0,"d":"$0.00"}]
["MMA",null,null,{"$f":"Jurat!I$1","v":0},{"$f":"Jurat!D$33","v":"00:00:00"},"Q1","2017-03-31","Region 6","Operating Expense","Medical Benefits Expense","Hospital Services","2.6","Subcapitated Hospital Services",{"$f":"'MMA Rev-Exp Region 6'!D$25","v":{"v":0,"d":"$0.00"}},{"$f":"'MMA Rev-Exp Region 6'!E$25","v":{"v":0,"d":"$0.00"}},{"$f":"'MMA Rev-Exp Region 6'!F$25","v":{"v":0,"d":"$0.00"}},{"$f":"'MMA Rev-Exp Region 6'!G$25","v":{"v":0,"d":"$0.00"}},{"$f":"'MMA Rev-Exp Region 6'!H$25","v":{"v":0,"d":"$0.00"}},{"$f":"'MMA Rev-Exp Region 6'!I$25","v":{"v":0,"d":"$0.00"}},{"$f":"'MMA Rev-Exp Region 6'!J$25","v":{"v":0,"d":"$0.00"}},{"$f":"'MMA Rev-Exp Region 6'!K$25","v":{"v":0,"d":"$0.00"}},{"$f":"'MMA Rev-Exp Region 6'!L$25","v":{"v":0,"d":"$0.00"}},{"$f":"'MMA Rev-Exp Region 6'!M$25","v":{"v":0,"d":"$0.00"}},{"$f":"'MMA Rev-Exp Region 6'!N$25","v":{"v":0,"d":"$0.00"}},{"v":0,"d":"$0.00"}]
["MMA",null,null,{"$f":"Jurat!I$1","v":0},{"$f":"Jurat!D$33","v":"00:00:00"},"Q1","2017-03-31","Region 6","Operating Expense","Medical Benefits Expense","Professional Services",3.1,"Primary Care FFS",{"$f":"'MMA Rev-Exp Region 6'!D$29","v":{"v":0,"d":"$0.00"}},{"$f":"'MMA Rev-Exp Region 6'!E$29","v":{"v":0,"d":"$0.00"}},{"$f":"'MMA Rev-Exp Region 6'!F$29","v":{"v":0,"d":"$0.00"}},{"$f":"'MMA Rev-Exp Region 6'!G$29","v":{"v":0,"d":"$0.00"}},{"$f":"'MMA Rev-Exp Region 6'!H$29","v":{"v":0,"d":"$0.00"}},{"$f":"'MMA Rev-Exp Region 6'!I$29","v":{"v":0,"d":"$0.00"}},{"$f":"'MMA Rev-Exp Region 6'!J$29","v":{"v":0,"d":"$0.00"}},{"$f":"'MMA Rev-Exp Region 6'!K$29","v":{"v":0,"d":"$0.00"}},{"$f":"'MMA Rev-Exp Region 6'!L$29","v":{"v":0,"d":"$0.00"}},{"$f":"'MMA Rev-Exp Region 6'!M$29","v":{"v":0,"d":"$0.00"}},{"$f":"'MMA Rev-Exp Region 6'!N$29","v":{"v":0,"d":"$0.00"}},{"v":0,"d":"$0.00"}]
["MMA",null,null,{"$f":"Jurat!I$1","v":0},{"$f":"Jurat!D$33","v":"00:00:00"},"Q1","2017-03-31","Region 6","Operating Expense","Medical Benefits Expense","Professional Services","3.4","§ 1202 PCP Payments to providers",{"$f":"'MMA Rev-Exp Region 6'!D$32","v":{"v":0,"d":"$0.00"}},{"$f":"'MMA Rev-Exp Region 6'!E$32","v":{"v":0,"d":"$0.00"}},{"$f":"'MMA Rev-Exp Region 6'!F$32","v":{"v":0,"d":"$0.00"}},{"$f":"'MMA Rev-Exp Region 6'!G$32","v":{"v":0,"d":"$0.00"}},{"$f":"'MMA Rev-Exp Region 6'!H$32","v":{"v":0,"d":"$0.00"}},{"$f":"'MMA Rev-Exp Region 6'!I$32","v":{"v":0,"d":"$0.00"}},{"$f":"'MMA Rev-Exp Region 6'!J$32","v":{"v":0,"d":"$0.00"}},{"$f":"'MMA Rev-Exp Region 6'!K$32","v":{"v":0,"d":"$0.00"}},{"$f":"'MMA Rev-Exp Region 6'!L$32","v":{"v":0,"d":"$0.00"}},{"$f":"'MMA Rev-Exp Region 6'!M$32","v":{"v":0,"d":"$0.00"}},{"$f":"'MMA Rev-Exp Region 6'!N$32","v":{"v":0,"d":"$0.00"}},{"v":0,"d":"$0.00"}]
["MMA",null,null,{"$f":"Jurat!I$1","v":0},{"$f":"Jurat!D$33","v":"00:00:00"},"Q1","2017-03-31","Region 6","Operating Expense","Medical Benefits Expense","Professional Services","3.5","Subcapitated Professional Services",{"$f":"'MMA Rev-Exp Region 6'!D$33","v":{"v":0,"d":"$0.00"}},{"$f":"'MMA Rev-Exp Region 6'!E$33","v":{"v":0,"d":"$0.00"}},{"$f":"'MMA Rev-Exp Region 6'!F$33","v":{"v":0,"d":"$0.00"}},{"$f":"'MMA Rev-Exp Region 6'!G$33","v":{"v":0,"d":"$0.00"}},{"$f":"'MMA Rev-Exp Region 6'!H$33","v":{"v":0,"d":"$0.00"}},{"$f":"'MMA Rev-Exp Region 6'!I$33","v":{"v":0,"d":"$0.00"}},{"$f":"'MMA Rev-Exp Region 6'!J$33","v":{"v":0,"d":"$0.00"}},{"$f":"'MMA Rev-Exp Region 6'!K$33","v":{"v":0,"d":"$0.00"}},{"$f":"'MMA Rev-Exp Region 6'!L$33","v":{"v":0,"d":"$0.00"}},{"$f":"'MMA Rev-Exp Region 6'!M$33","v":{"v":0,"d":"$0.00"}},{"$f":"'MMA Rev-Exp Region 6'!N$33","v":{"v":0,"d":"$0.00"}},{"v":0,"d":"$0.00"}]
["MMA",null,null,{"$f":"Jurat!I$1","v":0},{"$f":"Jurat!D$33","v":"00:00:00"},"Q1","2017-03-31","Region 6","Operating Expense","Medical Benefits Expense","Maternity Services","4.1.1","Maternity Services",{"$f":"'MMA Rev-Exp Region 6'!D$37","v":{"v":0,"d":"$0.00"}},{"$f":"'MMA Rev-Exp Region 6'!E$37","v":{"v":0,"d":"$0.00"}},{"$f":"'MMA Rev-Exp Region 6'!F$37","v":{"v":0,"d":"$0.00"}},{"$f":"'MMA Rev-Exp Region 6'!G$37","v":{"v":0,"d":"$0.00"}},{"$f":"'MMA Rev-Exp Region 6'!H$37","v":{"v":0,"d":"$0.00"}},{"$f":"'MMA Rev-Exp Region 6'!I$37","v":{"v":0,"d":"$0.00"}},{"$f":"'MMA Rev-Exp Region 6'!J$37","v":{"v":0,"d":"$0.00"}},{"$f":"'MMA Rev-Exp Region 6'!K$37","v":{"v":0,"d":"$0.00"}},{"$f":"'MMA Rev-Exp Region 6'!L$37","v":{"v":0,"d":"$0.00"}},{"$f":"'MMA Rev-Exp Region 6'!M$37","v":{"v":0,"d":"$0.00"}},{"$f":"'MMA Rev-Exp Region 6'!N$37","v":{"v":0,"d":"$0.00"}},{"v":0,"d":"$0.00"}]
["MMA",null,null,{"$f":"Jurat!I$1","v":0},{"$f":"Jurat!D$33","v":"00:00:00"},"Q1","2017-03-31","Region 6","Operating Expense","Medical Benefits Expense","Mental Health Services",5.2,"Mental Health & Substance Abuse Subcapitation",{"$f":"'MMA Rev-Exp Region 6'!D$42","v":{"v":0,"d":"$0.00"}},{"$f":"'MMA Rev-Exp Region 6'!E$42","v":{"v":0,"d":"$0.00"}},{"$f":"'MMA Rev-Exp Region 6'!F$42","v":{"v":0,"d":"$0.00"}},{"$f":"'MMA Rev-Exp Region 6'!G$42","v":{"v":0,"d":"$0.00"}},{"$f":"'MMA Rev-Exp Region 6'!H$42","v":{"v":0,"d":"$0.00"}},{"$f":"'MMA Rev-Exp Region 6'!I$42","v":{"v":0,"d":"$0.00"}},{"$f":"'MMA Rev-Exp Region 6'!J$42","v":{"v":0,"d":"$0.00"}},{"$f":"'MMA Rev-Exp Region 6'!K$42","v":{"v":0,"d":"$0.00"}},{"$f":"'MMA Rev-Exp Region 6'!L$42","v":{"v":0,"d":"$0.00"}},{"$f":"'MMA Rev-Exp Region 6'!M$42","v":{"v":0,"d":"$0.00"}},{"$f":"'MMA Rev-Exp Region 6'!N$42","v":{"v":0,"d":"$0.00"}},{"v":0,"d":"$0.00"}]
["MMA",null,null,{"$f":"Jurat!I$1","v":0},{"$f":"Jurat!D$33","v":"00:00:00"},"Q1","2017-03-31","Region 6","Operating Expense","Medical Benefits Expense","Dental Services",6.1,"Dental FFS",{"$f":"'MMA Rev-Exp Region 6'!D$46","v":{"v":0,"d":"$0.00"}},{"$f":"'MMA Rev-Exp Region 6'!E$46","v":{"v":0,"d":"$0.00"}},{"$f":"'MMA Rev-Exp Region 6'!F$46","v":{"v":0,"d":"$0.00"}},{"$f":"'MMA Rev-Exp Region 6'!G$46","v":{"v":0,"d":"$0.00"}},{"$f":"'MMA Rev-Exp Region 6'!H$46","v":{"v":0,"d":"$0.00"}},{"$f":"'MMA Rev-Exp Region 6'!I$46","v":{"v":0,"d":"$0.00"}},{"$f":"'MMA Rev-Exp Region 6'!J$46","v":{"v":0,"d":"$0.00"}},{"$f":"'MMA Rev-Exp Region 6'!K$46","v":{"v":0,"d":"$0.00"}},{"$f":"'MMA Rev-Exp Region 6'!L$46","v":{"v":0,"d":"$0.00"}},{"$f":"'MMA Rev-Exp Region 6'!M$46","v":{"v":0,"d":"$0.00"}},{"$f":"'MMA Rev-Exp Region 6'!N$46","v":{"v":0,"d":"$0.00"}},{"v":0,"d":"$0.00"}]
["MMA",null,null,{"$f":"Jurat!I$1","v":0},{"$f":"Jurat!D$33","v":"00:00:00"},"Q1","2017-03-31","Region 6","Operating Expense","Medical Benefits Expense","Dental Services","6.4","Dental Settlements",{"$f":"'MMA Rev-Exp Region 6'!D$49","v":{"v":0,"d":"$0.00"}},{"$f":"'MMA Rev-Exp Region 6'!E$49","v":{"v":0,"d":"$0.00"}},{"$f":"'MMA Rev-Exp Region 6'!F$49","v":{"v":0,"d":"$0.00"}},{"$f":"'MMA Rev-Exp Region 6'!G$49","v":{"v":0,"d":"$0.00"}},{"$f":"'MMA Rev-Exp Region 6'!H$49","v":{"v":0,"d":"$0.00"}},{"$f":"'MMA Rev-Exp Region 6'!I$49","v":{"v":0,"d":"$0.00"}},{"$f":"'MMA Rev-Exp Region 6'!J$49","v":{"v":0,"d":"$0.00"}},{"$f":"'MMA Rev-Exp Region 6'!K$49","v":{"v":0,"d":"$0.00"}},{"$f":"'MMA Rev-Exp Region 6'!L$49","v":{"v":0,"d":"$0.00"}},{"$f":"'MMA Rev-Exp Region 6'!M$49","v":{"v":0,"d":"$0.00"}},{"$f":"'MMA Rev-Exp Region 6'!N$49","v":{"v":0,"d":"$0.00"}},{"v":0,"d":"$0.00"}]
["MMA",null,null,{"$f":"Jurat!I$1","v":0},{"$f":"Jurat!D$33","v":"00:00:00"},"Q1","2017-03-31","Region 6","Operating Expense","Medical Benefits Expense","Transportation Services",7.3,"Ending IBNP for Transportation",{"$f":"'MMA Rev-Exp Region 6'!D$53","v":{"v":0,"d":"$0.00"}},{"$f":"'MMA Rev-Exp Region 6'!E$53","v":{"v":0,"d":"$0.00"}},{"$f":"'MMA Rev-Exp Region 6'!F$53","v":{"v":0,"d":"$0.00"}},{"$f":"'MMA Rev-Exp Region 6'!G$53","v":{"v":0,"d":"$0.00"}},{"$f":"'MMA Rev-Exp Region 6'!H$53","v":{"v":0,"d":"$0.00"}},{"$f":"'MMA Rev-Exp Region 6'!I$53","v":{"v":0,"d":"$0.00"}},{"$f":"'MMA Rev-Exp Region 6'!J$53","v":{"v":0,"d":"$0.00"}},{"$f":"'MMA Rev-Exp Region 6'!K$53","v":{"v":0,"d":"$0.00"}},{"$f":"'MMA Rev-Exp Region 6'!L$53","v":{"v":0,"d":"$0.00"}},{"$f":"'MMA Rev-Exp Region 6'!M$53","v":{"v":0,"d":"$0.00"}},{"$f":"'MMA Rev-Exp Region 6'!N$53","v":{"v":0,"d":"$0.00"}},{"v":0,"d":"$0.00"}]
["MMA",null,null,{"$f":"Jurat!I$1","v":0},{"$f":"Jurat!D$33","v":"00:00:00"},"Q1","2017-03-31","Region 6","Operating Expense","Medical Benefits Expense","Pharmacy Services","8.2","Hepatitis C Prescription Drug FFS",{"$f":"'MMA Rev-Exp Region 6'!D$57","v":{"v":0,"d":"$0.00"}},{"$f":"'MMA Rev-Exp Region 6'!E$57","v":{"v":0,"d":"$0.00"}},{"$f":"'MMA Rev-Exp Region 6'!F$57","v":{"v":0,"d":"$0.00"}},{"$f":"'MMA Rev-Exp Region 6'!G$57","v":{"v":0,"d":"$0.00"}},{"$f":"'MMA Rev-Exp Region 6'!H$57","v":{"v":0,"d":"$0.00"}},{"$f":"'MMA Rev-Exp Region 6'!I$57","v":{"v":0,"d":"$0.00"}},{"$f":"'MMA Rev-Exp Region 6'!J$57","v":{"v":0,"d":"$0.00"}},{"$f":"'MMA Rev-Exp Region 6'!K$57","v":{"v":0,"d":"$0.00"}},{"$f":"'MMA Rev-Exp Region 6'!L$57","v":{"v":0,"d":"$0.00"}},{"$f":"'MMA Rev-Exp Region 6'!M$57","v":{"v":0,"d":"$0.00"}},{"$f":"'MMA Rev-Exp Region 6'!N$57","v":{"v":0,"d":"$0.00"}},{"v":0,"d":"$0.00"}]
["MMA",null,null,{"$f":"Jurat!I$1","v":0},{"$f":"Jurat!D$33","v":"00:00:00"},"Q1","2017-03-31","Region 6","Operating Expense","Medical Benefits Expense","Pharmacy Services","8.3","Ending IBNP for Prescription Drugs",{"$f":"'MMA Rev-Exp Region 6'!D$58","v":{"v":0,"d":"$0.00"}},{"$f":"'MMA Rev-Exp Region 6'!E$58","v":{"v":0,"d":"$0.00"}},{"$f":"'MMA Rev-Exp Region 6'!F$58","v":{"v":0,"d":"$0.00"}},{"$f":"'MMA Rev-Exp Region 6'!G$58","v":{"v":0,"d":"$0.00"}},{"$f":"'MMA Rev-Exp Region 6'!H$58","v":{"v":0,"d":"$0.00"}},{"$f":"'MMA Rev-Exp Region 6'!I$58","v":{"v":0,"d":"$0.00"}},{"$f":"'MMA Rev-Exp Region 6'!J$58","v":{"v":0,"d":"$0.00"}},{"$f":"'MMA Rev-Exp Region 6'!K$58","v":{"v":0,"d":"$0.00"}},{"$f":"'MMA Rev-Exp Region 6'!L$58","v":{"v":0,"d":"$0.00"}},{"$f":"'MMA Rev-Exp Region 6'!M$58","v":{"v":0,"d":"$0.00"}},{"$f":"'MMA Rev-Exp Region 6'!N$58","v":{"v":0,"d":"$0.00"}},{"v":0,"d":"$0.00"}]
["MMA",null,null,{"$f":"Jurat!I$1","v":0},{"$f":"Jurat!D$33","v":"00:00:00"},"Q1","2017-03-31","Region 6","Operating Expense","Medical Benefits Expense","Pharmacy Services","8.6","Prescription Drugs Subcapitation",{"$f":"'MMA Rev-Exp Region 6'!D$61","v":{"v":0,"d":"$0.00"}},{"$f":"'MMA Rev-Exp Region 6'!E$61","v":{"v":0,"d":"$0.00"}},{"$f":"'MMA Rev-Exp Region 6'!F$61","v":{"v":0,"d":"$0.00"}},{"$f":"'MMA Rev-Exp Region 6'!G$61","v":{"v":0,"d":"$0.00"}},{"$f":"'MMA Rev-Exp Region 6'!H$61","v":{"v":0,"d":"$0.00"}},{"$f":"'MMA Rev-Exp Region 6'!I$61","v":{"v":0,"d":"$0.00"}},{"$f":"'MMA Rev-Exp Region 6'!J$61","v":{"v":0,"d":"$0.00"}},{"$f":"'MMA Rev-Exp Region 6'!K$61","v":{"v":0,"d":"$0.00"}},{"$f":"'MMA Rev-Exp Region 6'!L$61","v":{"v":0,"d":"$0.00"}},{"$f":"'MMA Rev-Exp Region 6'!M$61","v":{"v":0,"d":"$0.00"}},{"$f":"'MMA Rev-Exp Region 6'!N$61","v":{"v":0,"d":"$0.00"}},{"v":0,"d":"$0.00"}]
["MMA",null,null,{"$f":"Jurat!I$1","v":0},{"$f":"Jurat!D$33","v":"00:00:00"},"Q1","2017-03-31","Region 6","Operating Expense","Medical Benefits Expense","Other MMA Services","9.2","Hospice FFS",{"$f":"'MMA Rev-Exp Region 6'!D$65","v":{"v":0,"d":"$0.00"}},{"$f":"'MMA Rev-Exp Region 6'!E$65","v":{"v":0,"d":"$0.00"}},{"$f":"'MMA Rev-Exp Region 6'!F$65","v":{"v":0,"d":"$0.00"}},{"$f":"'MMA Rev-Exp Region 6'!G$65","v":{"v":0,"d":"$0.00"}},{"$f":"'MMA Rev-Exp Region 6'!H$65","v":{"v":0,"d":"$0.00"}},{"$f":"'MMA Rev-Exp Region 6'!I$65","v":{"v":0,"d":"$0.00"}},{"$f":"'MMA Rev-Exp Region 6'!J$65","v":{"v":0,"d":"$0.00"}},{"$f":"'MMA Rev-Exp Region 6'!K$65","v":{"v":0,"d":"$0.00"}},{"$f":"'MMA Rev-Exp Region 6'!L$65","v":{"v":0,"d":"$0.00"}},{"$f":"'MMA Rev-Exp Region 6'!M$65","v":{"v":0,"d":"$0.00"}},{"$f":"'MMA Rev-Exp Region 6'!N$65","v":{"v":0,"d":"$0.00"}},{"v":0,"d":"$0.00"}]
["MMA",null,null,{"$f":"Jurat!I$1","v":0},{"$f":"Jurat!D$33","v":"00:00:00"},"Q1","2017-03-31","Region 6","Operating Expense","Medical Benefits Expense","Other MMA Services","9.6","Ending IBNP for Other Services",{"$f":"'MMA Rev-Exp Region 6'!D$69","v":{"v":0,"d":"$0.00"}},{"$f":"'MMA Rev-Exp Region 6'!E$69","v":{"v":0,"d":"$0.00"}},{"$f":"'MMA Rev-Exp Region 6'!F$69","v":{"v":0,"d":"$0.00"}},{"$f":"'MMA Rev-Exp Region 6'!G$69","v":{"v":0,"d":"$0.00"}},{"$f":"'MMA Rev-Exp Region 6'!H$69","v":{"v":0,"d":"$0.00"}},{"$f":"'MMA Rev-Exp Region 6'!I$69","v":{"v":0,"d":"$0.00"}},{"$f":"'MMA Rev-Exp Region 6'!J$69","v":{"v":0,"d":"$0.00"}},{"$f":"'MMA Rev-Exp Region 6'!K$69","v":{"v":0,"d":"$0.00"}},{"$f":"'MMA Rev-Exp Region 6'!L$69","v":{"v":0,"d":"$0.00"}},{"$f":"'MMA Rev-Exp Region 6'!M$69","v":{"v":0,"d":"$0.00"}},{"$f":"'MMA Rev-Exp Region 6'!N$69","v":{"v":0,"d":"$0.00"}},{"v":0,"d":"$0.00"}]
["MMA",null,null,{"$f":"Jurat!I$1","v":0},{"$f":"Jurat!D$33","v":"00:00:00"},"Q1","2017-03-31","Region 6","Operating Expense","Medical Benefits Expense","Expanded Benefits","10.2","Expanded benefits Subcapitation",{"$f":"'MMA Rev-Exp Region 6'!D$73","v":{"v":0,"d":"$0.00"}},{"$f":"'MMA Rev-Exp Region 6'!E$73","v":{"v":0,"d":"$0.00"}},{"$f":"'MMA Rev-Exp Region 6'!F$73","v":{"v":0,"d":"$0.00"}},{"$f":"'MMA Rev-Exp Region 6'!G$73","v":{"v":0,"d":"$0.00"}},{"$f":"'MMA Rev-Exp Region 6'!H$73","v":{"v":0,"d":"$0.00"}},{"$f":"'MMA Rev-Exp Region 6'!I$73","v":{"v":0,"d":"$0.00"}},{"$f":"'MMA Rev-Exp Region 6'!J$73","v":{"v":0,"d":"$0.00"}},{"$f":"'MMA Rev-Exp Region 6'!K$73","v":{"v":0,"d":"$0.00"}},{"$f":"'MMA Rev-Exp Region 6'!L$73","v":{"v":0,"d":"$0.00"}},{"$f":"'MMA Rev-Exp Region 6'!M$73","v":{"v":0,"d":"$0.00"}},{"$f":"'MMA Rev-Exp Region 6'!N$73","v":{"v":0,"d":"$0.00"}},{"v":0,"d":"$0.00"}]
["MMA",null,null,{"$f":"Jurat!I$1","v":0},{"$f":"Jurat!D$33","v":"00:00:00"},"Q1","2017-03-31","Region 6","Operating Expense","Medical Benefits Expense","Other Medical","11.5","TPL & Fraud/Abuse Recoveries",{"$f":"'MMA Rev-Exp Region 6'!D$81","v":{"v":0,"d":"$0.00"}},{"$f":"'MMA Rev-Exp Region 6'!E$81","v":{"v":0,"d":"$0.00"}},{"$f":"'MMA Rev-Exp Region 6'!F$81","v":{"v":0,"d":"$0.00"}},{"$f":"'MMA Rev-Exp Region 6'!G$81","v":{"v":0,"d":"$0.00"}},{"$f":"'MMA Rev-Exp Region 6'!H$81","v":{"v":0,"d":"$0.00"}},{"$f":"'MMA Rev-Exp Region 6'!I$81","v":{"v":0,"d":"$0.00"}},{"$f":"'MMA Rev-Exp Region 6'!J$81","v":{"v":0,"d":"$0.00"}},{"$f":"'MMA Rev-Exp Region 6'!K$81","v":{"v":0,"d":"$0.00"}},{"$f":"'MMA Rev-Exp Region 6'!L$81","v":{"v":0,"d":"$0.00"}},{"$f":"'MMA Rev-Exp Region 6'!M$81","v":{"v":0,"d":"$0.00"}},{"$f":"'MMA Rev-Exp Region 6'!N$81","v":{"v":0,"d":"$0.00"}},{"v":0,"d":"$0.00"}]
["MMA",null,null,{"$f":"Jurat!I$1","v":0},{"$f":"Jurat!D$33","v":"00:00:00"},"Q1","2017-03-31","Region 6","Operating Expense","Medical Benefits Expense","Other Medical","11.8","Reinsurance Premiums",{"$f":"'MMA Rev-Exp Region 6'!D$84","v":{"v":0,"d":"$0.00"}},{"$f":"'MMA Rev-Exp Region 6'!E$84","v":{"v":0,"d":"$0.00"}},{"$f":"'MMA Rev-Exp Region 6'!F$84","v":{"v":0,"d":"$0.00"}},{"$f":"'MMA Rev-Exp Region 6'!G$84","v":{"v":0,"d":"$0.00"}},{"$f":"'MMA Rev-Exp Region 6'!H$84","v":{"v":0,"d":"$0.00"}},{"$f":"'MMA Rev-Exp Region 6'!I$84","v":{"v":0,"d":"$0.00"}},{"$f":"'MMA Rev-Exp Region 6'!J$84","v":{"v":0,"d":"$0.00"}},{"$f":"'MMA Rev-Exp Region 6'!K$84","v":{"v":0,"d":"$0.00"}},{"$f":"'MMA Rev-Exp Region 6'!L$84","v":{"v":0,"d":"$0.00"}},{"$f":"'MMA Rev-Exp Region 6'!M$84","v":{"v":0,"d":"$0.00"}},{"$f":"'MMA Rev-Exp Region 6'!N$84","v":{"v":0,"d":"$0.00"}},{"v":0,"d":"$0.00"}]
["MMA",null,null,{"$f":"Jurat!I$1","v":0},{"$f":"Jurat!D$33","v":"00:00:00"},"Q1","2017-03-31","Region 6","Operating Expense","Administrative Expense","Administrative","12.3","Information Systems",{"$f":"'MMA Rev-Exp Region 6'!D$92","v":{"v":0,"d":"$0.00"}},{"v":0,"d":"$0.00"},{"v":0,"d":"$0.00"},{"v":0,"d":"$0.00"},{"v":0,"d":"$0.00"},{"v":0,"d":"$0.00"},{"v":0,"d":"$0.00"},{"v":0,"d":"$0.00"},{"v":0,"d":"$0.00"},{"v":0,"d":"$0.00"},{"v":0,"d":"$0.00"},{"v":0,"d":"$0.00"}]
["MMA",null,null,{"$f":"Jurat!I$1","v":0},{"$f":"Jurat!D$33","v":"00:00:00"},"Q1","2017-03-31","Region 6","Operating Expense","Administrative Expense","Administrative","12.4","Marketing Expenses",{"$f":"'MMA Rev-Exp Region 6'!D$93","v":{"v":0,"d":"$0.00"}},{"v":0,"d":"$0.00"},{"v":0,"d":"$0.00"},{"v":0,"d":"$0.00"},{"v":0,"d":"$0.00"},{"v":0,"d":"$0.00"},{"v":0,"d":"$0.00"},{"v":0,"d":"$0.00"},{"v":0,"d":"$0.00"},{"v":0,"d":"$0.00"},{"v":0,"d":"$0.00"},{"v":0,"d":"$0.00"}]
["MMA",null,null,{"$f":"Jurat!I$1","v":0},{"$f":"Jurat!D$33","v":"00:00:00"},"Q1","2017-03-31","Region 6","Operating Expense","Taxes & Fees","Taxes & Fees","13.1","State Premium tax",{"$f":"'MMA Rev-Exp Region 6'!D$97","v":{"v":0,"d":"$0.00"}},{"v":0,"d":"$0.00"},{"v":0,"d":"$0.00"},{"v":0,"d":"$0.00"},{"v":0,"d":"$0.00"},{"v":0,"d":"$0.00"},{"v":0,"d":"$0.00"},{"v":0,"d":"$0.00"},{"v":0,"d":"$0.00"},{"v":0,"d":"$0.00"},{"v":0,"d":"$0.00"},{"v":0,"d":"$0.00"}]
["MMA",null,null,{"$f":"Jurat!I$1","v":0},{"$f":"Jurat!D$33","v":"00:00:00"},"Q1","2017-03-31","Region 6","Non-Operating Expense","Income Tax Expense","Income Tax Expense","16.0","Income Tax Expense",{"$f":"'MMA Rev-Exp Region 6'!D$106","v":{"v":0,"d":"$0.00"}},{"v":0,"d":"$0.00"},{"v":0,"d":"$0.00"},{"v":0,"d":"$0.00"},{"v":0,"d":"$0.00"},{"v":0,"d":"$0.00"},{"v":0,"d":"$0.00"},{"v":0,"d":"$0.00"},{"v":0,"d":"$0.00"},{"v":0,"d":"$0.00"},{"v":0,"d":"$0.00"},{"v":0,"d":"$0.00"}]
["MMA",null,null,{"$f":"Jurat!I$1","v":0},{"$f":"Jurat!D$33","v":"00:00:00"},"Q2","2017-06-30","Region 6","Operating Revenue","Kick Payments","Kick Payments - Hep C","1.3","Hepatitis C Kick Payments",{"$f":"'MMA Rev-Exp Region 6'!O$13","v":{"v":0,"d":"$0.00"}},{"$f":"'MMA Rev-Exp Region 6'!P$13","v":{"v":0,"d":"$0.00"}},{"$f":"'MMA Rev-Exp Region 6'!Q$13","v":{"v":0,"d":"$0.00"}},{"$f":"'MMA Rev-Exp Region 6'!R$13","v":{"v":0,"d":"$0.00"}},{"$f":"'MMA Rev-Exp Region 6'!S$13","v":{"v":0,"d":"$0.00"}},{"$f":"'MMA Rev-Exp Region 6'!T$13","v":{"v":0,"d":"$0.00"}},{"$f":"'MMA Rev-Exp Region 6'!U$13","v":{"v":0,"d":"$0.00"}},{"$f":"'MMA Rev-Exp Region 6'!V$13","v":{"v":0,"d":"$0.00"}},{"$f":"'MMA Rev-Exp Region 6'!W$13","v":{"v":0,"d":"$0.00"}},{"$f":"'MMA Rev-Exp Region 6'!X$13","v":{"v":0,"d":"$0.00"}},{"$f":"'MMA Rev-Exp Region 6'!Y$13","v":{"v":0,"d":"$0.00"}},{"v":0,"d":"$0.00"}]
["MMA",null,null,{"$f":"Jurat!I$1","v":0},{"$f":"Jurat!D$33","v":"00:00:00"},"Q2","2017-06-30","Region 6","Operating Revenue","Other Revenue","Other Revenue","1.6","Other Revenue",{"$f":"'MMA Rev-Exp Region 6'!O$16","v":{"v":0,"d":"$0.00"}},{"$f":"'MMA Rev-Exp Region 6'!P$16","v":{"v":0,"d":"$0.00"}},{"$f":"'MMA Rev-Exp Region 6'!Q$16","v":{"v":0,"d":"$0.00"}},{"$f":"'MMA Rev-Exp Region 6'!R$16","v":{"v":0,"d":"$0.00"}},{"$f":"'MMA Rev-Exp Region 6'!S$16","v":{"v":0,"d":"$0.00"}},{"$f":"'MMA Rev-Exp Region 6'!T$16","v":{"v":0,"d":"$0.00"}},{"$f":"'MMA Rev-Exp Region 6'!U$16","v":{"v":0,"d":"$0.00"}},{"$f":"'MMA Rev-Exp Region 6'!V$16","v":{"v":0,"d":"$0.00"}},{"$f":"'MMA Rev-Exp Region 6'!W$16","v":{"v":0,"d":"$0.00"}},{"$f":"'MMA Rev-Exp Region 6'!X$16","v":{"v":0,"d":"$0.00"}},{"$f":"'MMA Rev-Exp Region 6'!Y$16","v":{"v":0,"d":"$0.00"}},{"v":0,"d":"$0.00"}]
["MMA",null,null,{"$f":"Jurat!I$1","v":0},{"$f":"Jurat!D$33","v":"00:00:00"},"Q2","2017-06-30","Region 6","Operating Expense","Medical Benefits Expense","Hospital Services",2.4,"Outpatient FFS: Other than ER ",{"$f":"'MMA Rev-Exp Region 6'!O$23","v":{"v":0,"d":"$0.00"}},{"$f":"'MMA Rev-Exp Region 6'!P$23","v":{"v":0,"d":"$0.00"}},{"$f":"'MMA Rev-Exp Region 6'!Q$23","v":{"v":0,"d":"$0.00"}},{"$f":"'MMA Rev-Exp Region 6'!R$23","v":{"v":0,"d":"$0.00"}},{"$f":"'MMA Rev-Exp Region 6'!S$23","v":{"v":0,"d":"$0.00"}},{"$f":"'MMA Rev-Exp Region 6'!T$23","v":{"v":0,"d":"$0.00"}},{"$f":"'MMA Rev-Exp Region 6'!U$23","v":{"v":0,"d":"$0.00"}},{"$f":"'MMA Rev-Exp Region 6'!V$23","v":{"v":0,"d":"$0.00"}},{"$f":"'MMA Rev-Exp Region 6'!W$23","v":{"v":0,"d":"$0.00"}},{"$f":"'MMA Rev-Exp Region 6'!X$23","v":{"v":0,"d":"$0.00"}},{"$f":"'MMA Rev-Exp Region 6'!Y$23","v":{"v":0,"d":"$0.00"}},{"v":0,"d":"$0.00"}]
["MMA",null,null,{"$f":"Jurat!I$1","v":0},{"$f":"Jurat!D$33","v":"00:00:00"},"Q2","2017-06-30","Region 6","Operating Expense","Medical Benefits Expense","Hospital Services","2.7","Hospital Settlements",{"$f":"'MMA Rev-Exp Region 6'!O$26","v":{"v":0,"d":"$0.00"}},{"$f":"'MMA Rev-Exp Region 6'!P$26","v":{"v":0,"d":"$0.00"}},{"$f":"'MMA Rev-Exp Region 6'!Q$26","v":{"v":0,"d":"$0.00"}},{"$f":"'MMA Rev-Exp Region 6'!R$26","v":{"v":0,"d":"$0.00"}},{"$f":"'MMA Rev-Exp Region 6'!S$26","v":{"v":0,"d":"$0.00"}},{"$f":"'MMA Rev-Exp Region 6'!T$26","v":{"v":0,"d":"$0.00"}},{"$f":"'MMA Rev-Exp Region 6'!U$26","v":{"v":0,"d":"$0.00"}},{"$f":"'MMA Rev-Exp Region 6'!V$26","v":{"v":0,"d":"$0.00"}},{"$f":"'MMA Rev-Exp Region 6'!W$26","v":{"v":0,"d":"$0.00"}},{"$f":"'MMA Rev-Exp Region 6'!X$26","v":{"v":0,"d":"$0.00"}},{"$f":"'MMA Rev-Exp Region 6'!Y$26","v":{"v":0,"d":"$0.00"}},{"v":0,"d":"$0.00"}]
["MMA",null,null,{"$f":"Jurat!I$1","v":0},{"$f":"Jurat!D$33","v":"00:00:00"},"Q2","2017-06-30","Region 6","Operating Expense","Medical Benefits Expense","Professional Services",3.1,"Primary Care FFS",{"$f":"'MMA Rev-Exp Region 6'!O$29","v":{"v":0,"d":"$0.00"}},{"$f":"'MMA Rev-Exp Region 6'!P$29","v":{"v":0,"d":"$0.00"}},{"$f":"'MMA Rev-Exp Region 6'!Q$29","v":{"v":0,"d":"$0.00"}},{"$f":"'MMA Rev-Exp Region 6'!R$29","v":{"v":0,"d":"$0.00"}},{"$f":"'MMA Rev-Exp Region 6'!S$29","v":{"v":0,"d":"$0.00"}},{"$f":"'MMA Rev-Exp Region 6'!T$29","v":{"v":0,"d":"$0.00"}},{"$f":"'MMA Rev-Exp Region 6'!U$29","v":{"v":0,"d":"$0.00"}},{"$f":"'MMA Rev-Exp Region 6'!V$29","v":{"v":0,"d":"$0.00"}},{"$f":"'MMA Rev-Exp Region 6'!W$29","v":{"v":0,"d":"$0.00"}},{"$f":"'MMA Rev-Exp Region 6'!X$29","v":{"v":0,"d":"$0.00"}},{"$f":"'MMA Rev-Exp Region 6'!Y$29","v":{"v":0,"d":"$0.00"}},{"v":0,"d":"$0.00"}]
["MMA",null,null,{"$f":"Jurat!I$1","v":0},{"$f":"Jurat!D$33","v":"00:00:00"},"Q2","2017-06-30","Region 6","Operating Expense","Medical Benefits Expense","Professional Services",3.2,"Specialty Care FFS",{"$f":"'MMA Rev-Exp Region 6'!O$30","v":{"v":0,"d":"$0.00"}},{"$f":"'MMA Rev-Exp Region 6'!P$30","v":{"v":0,"d":"$0.00"}},{"$f":"'MMA Rev-Exp Region 6'!Q$30","v":{"v":0,"d":"$0.00"}},{"$f":"'MMA Rev-Exp Region 6'!R$30","v":{"v":0,"d":"$0.00"}},{"$f":"'MMA Rev-Exp Region 6'!S$30","v":{"v":0,"d":"$0.00"}},{"$f":"'MMA Rev-Exp Region 6'!T$30","v":{"v":0,"d":"$0.00"}},{"$f":"'MMA Rev-Exp Region 6'!U$30","v":{"v":0,"d":"$0.00"}},{"$f":"'MMA Rev-Exp Region 6'!V$30","v":{"v":0,"d":"$0.00"}},{"$f":"'MMA Rev-Exp Region 6'!W$30","v":{"v":0,"d":"$0.00"}},{"$f":"'MMA Rev-Exp Region 6'!X$30","v":{"v":0,"d":"$0.00"}},{"$f":"'MMA Rev-Exp Region 6'!Y$30","v":{"v":0,"d":"$0.00"}},{"v":0,"d":"$0.00"}]
["MMA",null,null,{"$f":"Jurat!I$1","v":0},{"$f":"Jurat!D$33","v":"00:00:00"},"Q2","2017-06-30","Region 6","Operating Expense","Medical Benefits Expense","Professional Services","3.5","Subcapitated Professional Services",{"$f":"'MMA Rev-Exp Region 6'!O$33","v":{"v":0,"d":"$0.00"}},{"$f":"'MMA Rev-Exp Region 6'!P$33","v":{"v":0,"d":"$0.00"}},{"$f":"'MMA Rev-Exp Region 6'!Q$33","v":{"v":0,"d":"$0.00"}},{"$f":"'MMA Rev-Exp Region 6'!R$33","v":{"v":0,"d":"$0.00"}},{"$f":"'MMA Rev-Exp Region 6'!S$33","v":{"v":0,"d":"$0.00"}},{"$f":"'MMA Rev-Exp Region 6'!T$33","v":{"v":0,"d":"$0.00"}},{"$f":"'MMA Rev-Exp Region 6'!U$33","v":{"v":0,"d":"$0.00"}},{"$f":"'MMA Rev-Exp Region 6'!V$33","v":{"v":0,"d":"$0.00"}},{"$f":"'MMA Rev-Exp Region 6'!W$33","v":{"v":0,"d":"$0.00"}},{"$f":"'MMA Rev-Exp Region 6'!X$33","v":{"v":0,"d":"$0.00"}},{"$f":"'MMA Rev-Exp Region 6'!Y$33","v":{"v":0,"d":"$0.00"}},{"v":0,"d":"$0.00"}]
["MMA",null,null,{"$f":"Jurat!I$1","v":0},{"$f":"Jurat!D$33","v":"00:00:00"},"Q2","2017-06-30","Region 6","Operating Expense","Medical Benefits Expense","Maternity Services","4.1.1","Maternity Services",{"$f":"'MMA Rev-Exp Region 6'!O$37","v":{"v":0,"d":"$0.00"}},{"$f":"'MMA Rev-Exp Region 6'!P$37","v":{"v":0,"d":"$0.00"}},{"$f":"'MMA Rev-Exp Region 6'!Q$37","v":{"v":0,"d":"$0.00"}},{"$f":"'MMA Rev-Exp Region 6'!R$37","v":{"v":0,"d":"$0.00"}},{"$f":"'MMA Rev-Exp Region 6'!S$37","v":{"v":0,"d":"$0.00"}},{"$f":"'MMA Rev-Exp Region 6'!T$37","v":{"v":0,"d":"$0.00"}},{"$f":"'MMA Rev-Exp Region 6'!U$37","v":{"v":0,"d":"$0.00"}},{"$f":"'MMA Rev-Exp Region 6'!V$37","v":{"v":0,"d":"$0.00"}},{"$f":"'MMA Rev-Exp Region 6'!W$37","v":{"v":0,"d":"$0.00"}},{"$f":"'MMA Rev-Exp Region 6'!X$37","v":{"v":0,"d":"$0.00"}},{"$f":"'MMA Rev-Exp Region 6'!Y$37","v":{"v":0,"d":"$0.00"}},{"v":0,"d":"$0.00"}]
["MMA",null,null,{"$f":"Jurat!I$1","v":0},{"$f":"Jurat!D$33","v":"00:00:00"},"Q2","2017-06-30","Region 6","Operating Expense","Medical Benefits Expense","Mental Health Services",5.2,"Mental Health & Substance Abuse Subcapitation",{"$f":"'MMA Rev-Exp Region 6'!O$42","v":{"v":0,"d":"$0.00"}},{"$f":"'MMA Rev-Exp Region 6'!P$42","v":{"v":0,"d":"$0.00"}},{"$f":"'MMA Rev-Exp Region 6'!Q$42","v":{"v":0,"d":"$0.00"}},{"$f":"'MMA Rev-Exp Region 6'!R$42","v":{"v":0,"d":"$0.00"}},{"$f":"'MMA Rev-Exp Region 6'!S$42","v":{"v":0,"d":"$0.00"}},{"$f":"'MMA Rev-Exp Region 6'!T$42","v":{"v":0,"d":"$0.00"}},{"$f":"'MMA Rev-Exp Region 6'!U$42","v":{"v":0,"d":"$0.00"}},{"$f":"'MMA Rev-Exp Region 6'!V$42","v":{"v":0,"d":"$0.00"}},{"$f":"'MMA Rev-Exp Region 6'!W$42","v":{"v":0,"d":"$0.00"}},{"$f":"'MMA Rev-Exp Region 6'!X$42","v":{"v":0,"d":"$0.00"}},{"$f":"'MMA Rev-Exp Region 6'!Y$42","v":{"v":0,"d":"$0.00"}},{"v":0,"d":"$0.00"}]
["MMA",null,null,{"$f":"Jurat!I$1","v":0},{"$f":"Jurat!D$33","v":"00:00:00"},"Q2","2017-06-30","Region 6","Operating Expense","Medical Benefits Expense","Dental Services",6.1,"Dental FFS",{"$f":"'MMA Rev-Exp Region 6'!O$46","v":{"v":0,"d":"$0.00"}},{"$f":"'MMA Rev-Exp Region 6'!P$46","v":{"v":0,"d":"$0.00"}},{"$f":"'MMA Rev-Exp Region 6'!Q$46","v":{"v":0,"d":"$0.00"}},{"$f":"'MMA Rev-Exp Region 6'!R$46","v":{"v":0,"d":"$0.00"}},{"$f":"'MMA Rev-Exp Region 6'!S$46","v":{"v":0,"d":"$0.00"}},{"$f":"'MMA Rev-Exp Region 6'!T$46","v":{"v":0,"d":"$0.00"}},{"$f":"'MMA Rev-Exp Region 6'!U$46","v":{"v":0,"d":"$0.00"}},{"$f":"'MMA Rev-Exp Region 6'!V$46","v":{"v":0,"d":"$0.00"}},{"$f":"'MMA Rev-Exp Region 6'!W$46","v":{"v":0,"d":"$0.00"}},{"$f":"'MMA Rev-Exp Region 6'!X$46","v":{"v":0,"d":"$0.00"}},{"$f":"'MMA Rev-Exp Region 6'!Y$46","v":{"v":0,"d":"$0.00"}},{"v":0,"d":"$0.00"}]
["MMA",null,null,{"$f":"Jurat!I$1","v":0},{"$f":"Jurat!D$33","v":"00:00:00"},"Q2","2017-06-30","Region 6","Operating Expense","Medical Benefits Expense","Transportation Services",7.1,"Transportation FFS",{"$f":"'MMA Rev-Exp Region 6'!O$51","v":{"v":0,"d":"$0.00"}},{"$f":"'MMA Rev-Exp Region 6'!P$51","v":{"v":0,"d":"$0.00"}},{"$f":"'MMA Rev-Exp Region 6'!Q$51","v":{"v":0,"d":"$0.00"}},{"$f":"'MMA Rev-Exp Region 6'!R$51","v":{"v":0,"d":"$0.00"}},{"$f":"'MMA Rev-Exp Region 6'!S$51","v":{"v":0,"d":"$0.00"}},{"$f":"'MMA Rev-Exp Region 6'!T$51","v":{"v":0,"d":"$0.00"}},{"$f":"'MMA Rev-Exp Region 6'!U$51","v":{"v":0,"d":"$0.00"}},{"$f":"'MMA Rev-Exp Region 6'!V$51","v":{"v":0,"d":"$0.00"}},{"$f":"'MMA Rev-Exp Region 6'!W$51","v":{"v":0,"d":"$0.00"}},{"$f":"'MMA Rev-Exp Region 6'!X$51","v":{"v":0,"d":"$0.00"}},{"$f":"'MMA Rev-Exp Region 6'!Y$51","v":{"v":0,"d":"$0.00"}},{"v":0,"d":"$0.00"}]
["MMA",null,null,{"$f":"Jurat!I$1","v":0},{"$f":"Jurat!D$33","v":"00:00:00"},"Q2","2017-06-30","Region 6","Operating Expense","Medical Benefits Expense","Transportation Services","7.4","Transportation Settlements",{"$f":"'MMA Rev-Exp Region 6'!O$54","v":{"v":0,"d":"$0.00"}},{"$f":"'MMA Rev-Exp Region 6'!P$54","v":{"v":0,"d":"$0.00"}},{"$f":"'MMA Rev-Exp Region 6'!Q$54","v":{"v":0,"d":"$0.00"}},{"$f":"'MMA Rev-Exp Region 6'!R$54","v":{"v":0,"d":"$0.00"}},{"$f":"'MMA Rev-Exp Region 6'!S$54","v":{"v":0,"d":"$0.00"}},{"$f":"'MMA Rev-Exp Region 6'!T$54","v":{"v":0,"d":"$0.00"}},{"$f":"'MMA Rev-Exp Region 6'!U$54","v":{"v":0,"d":"$0.00"}},{"$f":"'MMA Rev-Exp Region 6'!V$54","v":{"v":0,"d":"$0.00"}},{"$f":"'MMA Rev-Exp Region 6'!W$54","v":{"v":0,"d":"$0.00"}},{"$f":"'MMA Rev-Exp Region 6'!X$54","v":{"v":0,"d":"$0.00"}},{"$f":"'MMA Rev-Exp Region 6'!Y$54","v":{"v":0,"d":"$0.00"}},{"v":0,"d":"$0.00"}]
["MMA",null,null,{"$f":"Jurat!I$1","v":0},{"$f":"Jurat!D$33","v":"00:00:00"},"Q2","2017-06-30","Region 6","Operating Expense","Medical Benefits Expense","Pharmacy Services","8.3","Ending IBNP for Prescription Drugs",{"$f":"'MMA Rev-Exp Region 6'!O$58","v":{"v":0,"d":"$0.00"}},{"$f":"'MMA Rev-Exp Region 6'!P$58","v":{"v":0,"d":"$0.00"}},{"$f":"'MMA Rev-Exp Region 6'!Q$58","v":{"v":0,"d":"$0.00"}},{"$f":"'MMA Rev-Exp Region 6'!R$58","v":{"v":0,"d":"$0.00"}},{"$f":"'MMA Rev-Exp Region 6'!S$58","v":{"v":0,"d":"$0.00"}},{"$f":"'MMA Rev-Exp Region 6'!T$58","v":{"v":0,"d":"$0.00"}},{"$f":"'MMA Rev-Exp Region 6'!U$58","v":{"v":0,"d":"$0.00"}},{"$f":"'MMA Rev-Exp Region 6'!V$58","v":{"v":0,"d":"$0.00"}},{"$f":"'MMA Rev-Exp Region 6'!W$58","v":{"v":0,"d":"$0.00"}},{"$f":"'MMA Rev-Exp Region 6'!X$58","v":{"v":0,"d":"$0.00"}},{"$f":"'MMA Rev-Exp Region 6'!Y$58","v":{"v":0,"d":"$0.00"}},{"v":0,"d":"$0.00"}]
["MMA",null,null,{"$f":"Jurat!I$1","v":0},{"$f":"Jurat!D$33","v":"00:00:00"},"Q2","2017-06-30","Region 6","Operating Expense","Medical Benefits Expense","Pharmacy Services","8.4","Prescription Drug Rebates ",{"$f":"'MMA Rev-Exp Region 6'!O$59","v":{"v":0,"d":"$0.00"}},{"$f":"'MMA Rev-Exp Region 6'!P$59","v":{"v":0,"d":"$0.00"}},{"$f":"'MMA Rev-Exp Region 6'!Q$59","v":{"v":0,"d":"$0.00"}},{"$f":"'MMA Rev-Exp Region 6'!R$59","v":{"v":0,"d":"$0.00"}},{"$f":"'MMA Rev-Exp Region 6'!S$59","v":{"v":0,"d":"$0.00"}},{"$f":"'MMA Rev-Exp Region 6'!T$59","v":{"v":0,"d":"$0.00"}},{"$f":"'MMA Rev-Exp Region 6'!U$59","v":{"v":0,"d":"$0.00"}},{"$f":"'MMA Rev-Exp Region 6'!V$59","v":{"v":0,"d":"$0.00"}},{"$f":"'MMA Rev-Exp Region 6'!W$59","v":{"v":0,"d":"$0.00"}},{"$f":"'MMA Rev-Exp Region 6'!X$59","v":{"v":0,"d":"$0.00"}},{"$f":"'MMA Rev-Exp Region 6'!Y$59","v":{"v":0,"d":"$0.00"}},{"v":0,"d":"$0.00"}]
["MMA",null,null,{"$f":"Jurat!I$1","v":0},{"$f":"Jurat!D$33","v":"00:00:00"},"Q2","2017-06-30","Region 6","Operating Expense","Medical Benefits Expense","Other MMA Services",9.1,"Home Health, Private Duty Nursing, Personal Care FFS",{"$f":"'MMA Rev-Exp Region 6'!O$64","v":{"v":0,"d":"$0.00"}},{"$f":"'MMA Rev-Exp Region 6'!P$64","v":{"v":0,"d":"$0.00"}},{"$f":"'MMA Rev-Exp Region 6'!Q$64","v":{"v":0,"d":"$0.00"}},{"$f":"'MMA Rev-Exp Region 6'!R$64","v":{"v":0,"d":"$0.00"}},{"$f":"'MMA Rev-Exp Region 6'!S$64","v":{"v":0,"d":"$0.00"}},{"$f":"'MMA Rev-Exp Region 6'!T$64","v":{"v":0,"d":"$0.00"}},{"$f":"'MMA Rev-Exp Region 6'!U$64","v":{"v":0,"d":"$0.00"}},{"$f":"'MMA Rev-Exp Region 6'!V$64","v":{"v":0,"d":"$0.00"}},{"$f":"'MMA Rev-Exp Region 6'!W$64","v":{"v":0,"d":"$0.00"}},{"$f":"'MMA Rev-Exp Region 6'!X$64","v":{"v":0,"d":"$0.00"}},{"$f":"'MMA Rev-Exp Region 6'!Y$64","v":{"v":0,"d":"$0.00"}},{"v":0,"d":"$0.00"}]
["MMA",null,null,{"$f":"Jurat!I$1","v":0},{"$f":"Jurat!D$33","v":"00:00:00"},"Q2","2017-06-30","Region 6","Operating Expense","Medical Benefits Expense","Other MMA Services","9.2","Hospice FFS",{"$f":"'MMA Rev-Exp Region 6'!O$65","v":{"v":0,"d":"$0.00"}},{"$f":"'MMA Rev-Exp Region 6'!P$65","v":{"v":0,"d":"$0.00"}},{"$f":"'MMA Rev-Exp Region 6'!Q$65","v":{"v":0,"d":"$0.00"}},{"$f":"'MMA Rev-Exp Region 6'!R$65","v":{"v":0,"d":"$0.00"}},{"$f":"'MMA Rev-Exp Region 6'!S$65","v":{"v":0,"d":"$0.00"}},{"$f":"'MMA Rev-Exp Region 6'!T$65","v":{"v":0,"d":"$0.00"}},{"$f":"'MMA Rev-Exp Region 6'!U$65","v":{"v":0,"d":"$0.00"}},{"$f":"'MMA Rev-Exp Region 6'!V$65","v":{"v":0,"d":"$0.00"}},{"$f":"'MMA Rev-Exp Region 6'!W$65","v":{"v":0,"d":"$0.00"}},{"$f":"'MMA Rev-Exp Region 6'!X$65","v":{"v":0,"d":"$0.00"}},{"$f":"'MMA Rev-Exp Region 6'!Y$65","v":{"v":0,"d":"$0.00"}},{"v":0,"d":"$0.00"}]
["MMA",null,null,{"$f":"Jurat!I$1","v":0},{"$f":"Jurat!D$33","v":"00:00:00"},"Q2","2017-06-30","Region 6","Operating Expense","Medical Benefits Expense","Other MMA Services","9.6","Ending IBNP for Other Services",{"$f":"'MMA Rev-Exp Region 6'!O$69","v":{"v":0,"d":"$0.00"}},{"$f":"'MMA Rev-Exp Region 6'!P$69","v":{"v":0,"d":"$0.00"}},{"$f":"'MMA Rev-Exp Region 6'!Q$69","v":{"v":0,"d":"$0.00"}},{"$f":"'MMA Rev-Exp Region 6'!R$69","v":{"v":0,"d":"$0.00"}},{"$f":"'MMA Rev-Exp Region 6'!S$69","v":{"v":0,"d":"$0.00"}},{"$f":"'MMA Rev-Exp Region 6'!T$69","v":{"v":0,"d":"$0.00"}},{"$f":"'MMA Rev-Exp Region 6'!U$69","v":{"v":0,"d":"$0.00"}},{"$f":"'MMA Rev-Exp Region 6'!V$69","v":{"v":0,"d":"$0.00"}},{"$f":"'MMA Rev-Exp Region 6'!W$69","v":{"v":0,"d":"$0.00"}},{"$f":"'MMA Rev-Exp Region 6'!X$69","v":{"v":0,"d":"$0.00"}},{"$f":"'MMA Rev-Exp Region 6'!Y$69","v":{"v":0,"d":"$0.00"}},{"v":0,"d":"$0.00"}]
["MMA",null,null,{"$f":"Jurat!I$1","v":0},{"$f":"Jurat!D$33","v":"00:00:00"},"Q2","2017-06-30","Region 6","Operating Expense","Medical Benefits Expense","Expanded Benefits","10.2","Expanded benefits Subcapitation",{"$f":"'MMA Rev-Exp Region 6'!O$73","v":{"v":0,"d":"$0.00"}},{"$f":"'MMA Rev-Exp Region 6'!P$73","v":{"v":0,"d":"$0.00"}},{"$f":"'MMA Rev-Exp Region 6'!Q$73","v":{"v":0,"d":"$0.00"}},{"$f":"'MMA Rev-Exp Region 6'!R$73","v":{"v":0,"d":"$0.00"}},{"$f":"'MMA Rev-Exp Region 6'!S$73","v":{"v":0,"d":"$0.00"}},{"$f":"'MMA Rev-Exp Region 6'!T$73","v":{"v":0,"d":"$0.00"}},{"$f":"'MMA Rev-Exp Region 6'!U$73","v":{"v":0,"d":"$0.00"}},{"$f":"'MMA Rev-Exp Region 6'!V$73","v":{"v":0,"d":"$0.00"}},{"$f":"'MMA Rev-Exp Region 6'!W$73","v":{"v":0,"d":"$0.00"}},{"$f":"'MMA Rev-Exp Region 6'!X$73","v":{"v":0,"d":"$0.00"}},{"$f":"'MMA Rev-Exp Region 6'!Y$73","v":{"v":0,"d":"$0.00"}},{"v":0,"d":"$0.00"}]
["MMA",null,null,{"$f":"Jurat!I$1","v":0},{"$f":"Jurat!D$33","v":"00:00:00"},"Q2","2017-06-30","Region 6","Operating Expense","Medical Benefits Expense","Other Medical","11.6.1","Premium Deficiency Reserve",{"$f":"'MMA Rev-Exp Region 6'!O$82","v":{"v":0,"d":"$0.00"}},{"$f":"'MMA Rev-Exp Region 6'!P$82","v":{"v":0,"d":"$0.00"}},{"$f":"'MMA Rev-Exp Region 6'!Q$82","v":{"v":0,"d":"$0.00"}},{"$f":"'MMA Rev-Exp Region 6'!R$82","v":{"v":0,"d":"$0.00"}},{"$f":"'MMA Rev-Exp Region 6'!S$82","v":{"v":0,"d":"$0.00"}},{"$f":"'MMA Rev-Exp Region 6'!T$82","v":{"v":0,"d":"$0.00"}},{"$f":"'MMA Rev-Exp Region 6'!U$82","v":{"v":0,"d":"$0.00"}},{"$f":"'MMA Rev-Exp Region 6'!V$82","v":{"v":0,"d":"$0.00"}},{"$f":"'MMA Rev-Exp Region 6'!W$82","v":{"v":0,"d":"$0.00"}},{"$f":"'MMA Rev-Exp Region 6'!X$82","v":{"v":0,"d":"$0.00"}},{"$f":"'MMA Rev-Exp Region 6'!Y$82","v":{"v":0,"d":"$0.00"}},{"v":0,"d":"$0.00"}]
["MMA",null,null,{"$f":"Jurat!I$1","v":0},{"$f":"Jurat!D$33","v":"00:00:00"},"Q2","2017-06-30","Region 6","Operating Expense","Administrative Expense","Administrative","12.1","Salaries & Benefits",{"$f":"'MMA Rev-Exp Region 6'!O$90","v":{"v":0,"d":"$0.00"}},{"v":0,"d":"$0.00"},{"v":0,"d":"$0.00"},{"v":0,"d":"$0.00"},{"v":0,"d":"$0.00"},{"v":0,"d":"$0.00"},{"v":0,"d":"$0.00"},{"v":0,"d":"$0.00"},{"v":0,"d":"$0.00"},{"v":0,"d":"$0.00"},{"v":0,"d":"$0.00"},{"v":0,"d":"$0.00"}]
["MMA",null,null,{"$f":"Jurat!I$1","v":0},{"$f":"Jurat!D$33","v":"00:00:00"},"Q2","2017-06-30","Region 6","Operating Expense","Administrative Expense","Administrative","12.4","Marketing Expenses",{"$f":"'MMA Rev-Exp Region 6'!O$93","v":{"v":0,"d":"$0.00"}},{"v":0,"d":"$0.00"},{"v":0,"d":"$0.00"},{"v":0,"d":"$0.00"},{"v":0,"d":"$0.00"},{"v":0,"d":"$0.00"},{"v":0,"d":"$0.00"},{"v":0,"d":"$0.00"},{"v":0,"d":"$0.00"},{"v":0,"d":"$0.00"},{"v":0,"d":"$0.00"},{"v":0,"d":"$0.00"}]
["MMA",null,null,{"$f":"Jurat!I$1","v":0},{"$f":"Jurat!D$33","v":"00:00:00"},"Q2","2017-06-30","Region 6","Operating Expense","Administrative Expense","Administrative","12.5","General  Administration",{"$f":"'MMA Rev-Exp Region 6'!O$94","v":{"v":0,"d":"$0.00"}},{"v":0,"d":"$0.00"},{"v":0,"d":"$0.00"},{"v":0,"d":"$0.00"},{"v":0,"d":"$0.00"},{"v":0,"d":"$0.00"},{"v":0,"d":"$0.00"},{"v":0,"d":"$0.00"},{"v":0,"d":"$0.00"},{"v":0,"d":"$0.00"},{"v":0,"d":"$0.00"},{"v":0,"d":"$0.00"}]
["MMA",null,null,{"$f":"Jurat!I$1","v":0},{"$f":"Jurat!D$33","v":"00:00:00"},"Q2","2017-06-30","Region 6","Operating Expense","Taxes & Fees","Taxes & Fees","13.2","Department of Insurance Assessments",{"$f":"'MMA Rev-Exp Region 6'!O$98","v":{"v":0,"d":"$0.00"}},{"v":0,"d":"$0.00"},{"v":0,"d":"$0.00"},{"v":0,"d":"$0.00"},{"v":0,"d":"$0.00"},{"v":0,"d":"$0.00"},{"v":0,"d":"$0.00"},{"v":0,"d":"$0.00"},{"v":0,"d":"$0.00"},{"v":0,"d":"$0.00"},{"v":0,"d":"$0.00"},{"v":0,"d":"$0.00"}]
["MMA",null,null,{"$f":"Jurat!I$1","v":0},{"$f":"Jurat!D$33","v":"00:00:00"},"Q3","2017-09-30","Region 6","Member Months","Member Months","Member Months",null,"Member Months",{"$f":"'MMA Rev-Exp Region 6'!Z$9","v":{"v":0,"d":"$0.00"}},{"$f":"'MMA Rev-Exp Region 6'!AA$9","v":{"v":0,"d":"$0.00"}},{"$f":"'MMA Rev-Exp Region 6'!AB$9","v":{"v":0,"d":"$0.00"}},{"$f":"'MMA Rev-Exp Region 6'!AC$9","v":{"v":0,"d":"$0.00"}},{"$f":"'MMA Rev-Exp Region 6'!AD$9","v":{"v":0,"d":"$0.00"}},{"$f":"'MMA Rev-Exp Region 6'!AE$9","v":{"v":0,"d":"$0.00"}},{"$f":"'MMA Rev-Exp Region 6'!AF$9","v":{"v":0,"d":"$0.00"}},{"$f":"'MMA Rev-Exp Region 6'!AG$9","v":{"v":0,"d":"$0.00"}},{"$f":"'MMA Rev-Exp Region 6'!AH$9","v":{"v":0,"d":"$0.00"}},{"$f":"'MMA Rev-Exp Region 6'!AI$9","v":{"v":0,"d":"$0.00"}},{"$f":"'MMA Rev-Exp Region 6'!AJ$9","v":{"v":0,"d":"$0.00"}},{"v":0,"d":"$0.00"}]
["MMA",null,null,{"$f":"Jurat!I$1","v":0},{"$f":"Jurat!D$33","v":"00:00:00"},"Q3","2017-09-30","Region 6","Operating Revenue","Kick Payments","Kick Payments - Hep C","1.3","Hepatitis C Kick Payments",{"$f":"'MMA Rev-Exp Region 6'!Z$13","v":{"v":0,"d":"$0.00"}},{"$f":"'MMA Rev-Exp Region 6'!AA$13","v":{"v":0,"d":"$0.00"}},{"$f":"'MMA Rev-Exp Region 6'!AB$13","v":{"v":0,"d":"$0.00"}},{"$f":"'MMA Rev-Exp Region 6'!AC$13","v":{"v":0,"d":"$0.00"}},{"$f":"'MMA Rev-Exp Region 6'!AD$13","v":{"v":0,"d":"$0.00"}},{"$f":"'MMA Rev-Exp Region 6'!AE$13","v":{"v":0,"d":"$0.00"}},{"$f":"'MMA Rev-Exp Region 6'!AF$13","v":{"v":0,"d":"$0.00"}},{"$f":"'MMA Rev-Exp Region 6'!AG$13","v":{"v":0,"d":"$0.00"}},{"$f":"'MMA Rev-Exp Region 6'!AH$13","v":{"v":0,"d":"$0.00"}},{"$f":"'MMA Rev-Exp Region 6'!AI$13","v":{"v":0,"d":"$0.00"}},{"$f":"'MMA Rev-Exp Region 6'!AJ$13","v":{"v":0,"d":"$0.00"}},{"v":0,"d":"$0.00"}]
["MMA",null,null,{"$f":"Jurat!I$1","v":0},{"$f":"Jurat!D$33","v":"00:00:00"},"Q3","2017-09-30","Region 6","Operating Revenue","Other Revenue","Other Revenue","1.6","Other Revenue",{"$f":"'MMA Rev-Exp Region 6'!Z$16","v":{"v":0,"d":"$0.00"}},{"$f":"'MMA Rev-Exp Region 6'!AA$16","v":{"v":0,"d":"$0.00"}},{"$f":"'MMA Rev-Exp Region 6'!AB$16","v":{"v":0,"d":"$0.00"}},{"$f":"'MMA Rev-Exp Region 6'!AC$16","v":{"v":0,"d":"$0.00"}},{"$f":"'MMA Rev-Exp Region 6'!AD$16","v":{"v":0,"d":"$0.00"}},{"$f":"'MMA Rev-Exp Region 6'!AE$16","v":{"v":0,"d":"$0.00"}},{"$f":"'MMA Rev-Exp Region 6'!AF$16","v":{"v":0,"d":"$0.00"}},{"$f":"'MMA Rev-Exp Region 6'!AG$16","v":{"v":0,"d":"$0.00"}},{"$f":"'MMA Rev-Exp Region 6'!AH$16","v":{"v":0,"d":"$0.00"}},{"$f":"'MMA Rev-Exp Region 6'!AI$16","v":{"v":0,"d":"$0.00"}},{"$f":"'MMA Rev-Exp Region 6'!AJ$16","v":{"v":0,"d":"$0.00"}},{"v":0,"d":"$0.00"}]
["MMA",null,null,{"$f":"Jurat!I$1","v":0},{"$f":"Jurat!D$33","v":"00:00:00"},"Q3","2017-09-30","Region 6","Operating Expense","Medical Benefits Expense","Hospital Services",2.4,"Outpatient FFS: Other than ER ",{"$f":"'MMA Rev-Exp Region 6'!Z$23","v":{"v":0,"d":"$0.00"}},{"$f":"'MMA Rev-Exp Region 6'!AA$23","v":{"v":0,"d":"$0.00"}},{"$f":"'MMA Rev-Exp Region 6'!AB$23","v":{"v":0,"d":"$0.00"}},{"$f":"'MMA Rev-Exp Region 6'!AC$23","v":{"v":0,"d":"$0.00"}},{"$f":"'MMA Rev-Exp Region 6'!AD$23","v":{"v":0,"d":"$0.00"}},{"$f":"'MMA Rev-Exp Region 6'!AE$23","v":{"v":0,"d":"$0.00"}},{"$f":"'MMA Rev-Exp Region 6'!AF$23","v":{"v":0,"d":"$0.00"}},{"$f":"'MMA Rev-Exp Region 6'!AG$23","v":{"v":0,"d":"$0.00"}},{"$f":"'MMA Rev-Exp Region 6'!AH$23","v":{"v":0,"d":"$0.00"}},{"$f":"'MMA Rev-Exp Region 6'!AI$23","v":{"v":0,"d":"$0.00"}},{"$f":"'MMA Rev-Exp Region 6'!AJ$23","v":{"v":0,"d":"$0.00"}},{"v":0,"d":"$0.00"}]
["MMA",null,null,{"$f":"Jurat!I$1","v":0},{"$f":"Jurat!D$33","v":"00:00:00"},"Q3","2017-09-30","Region 6","Operating Expense","Medical Benefits Expense","Hospital Services","2.7","Hospital Settlements",{"$f":"'MMA Rev-Exp Region 6'!Z$26","v":{"v":0,"d":"$0.00"}},{"$f":"'MMA Rev-Exp Region 6'!AA$26","v":{"v":0,"d":"$0.00"}},{"$f":"'MMA Rev-Exp Region 6'!AB$26","v":{"v":0,"d":"$0.00"}},{"$f":"'MMA Rev-Exp Region 6'!AC$26","v":{"v":0,"d":"$0.00"}},{"$f":"'MMA Rev-Exp Region 6'!AD$26","v":{"v":0,"d":"$0.00"}},{"$f":"'MMA Rev-Exp Region 6'!AE$26","v":{"v":0,"d":"$0.00"}},{"$f":"'MMA Rev-Exp Region 6'!AF$26","v":{"v":0,"d":"$0.00"}},{"$f":"'MMA Rev-Exp Region 6'!AG$26","v":{"v":0,"d":"$0.00"}},{"$f":"'MMA Rev-Exp Region 6'!AH$26","v":{"v":0,"d":"$0.00"}},{"$f":"'MMA Rev-Exp Region 6'!AI$26","v":{"v":0,"d":"$0.00"}},{"$f":"'MMA Rev-Exp Region 6'!AJ$26","v":{"v":0,"d":"$0.00"}},{"v":0,"d":"$0.00"}]
["MMA",null,null,{"$f":"Jurat!I$1","v":0},{"$f":"Jurat!D$33","v":"00:00:00"},"Q3","2017-09-30","Region 6","Operating Expense","Medical Benefits Expense","Professional Services",3.2,"Specialty Care FFS",{"$f":"'MMA Rev-Exp Region 6'!Z$30","v":{"v":0,"d":"$0.00"}},{"$f":"'MMA Rev-Exp Region 6'!AA$30","v":{"v":0,"d":"$0.00"}},{"$f":"'MMA Rev-Exp Region 6'!AB$30","v":{"v":0,"d":"$0.00"}},{"$f":"'MMA Rev-Exp Region 6'!AC$30","v":{"v":0,"d":"$0.00"}},{"$f":"'MMA Rev-Exp Region 6'!AD$30","v":{"v":0,"d":"$0.00"}},{"$f":"'MMA Rev-Exp Region 6'!AE$30","v":{"v":0,"d":"$0.00"}},{"$f":"'MMA Rev-Exp Region 6'!AF$30","v":{"v":0,"d":"$0.00"}},{"$f":"'MMA Rev-Exp Region 6'!AG$30","v":{"v":0,"d":"$0.00"}},{"$f":"'MMA Rev-Exp Region 6'!AH$30","v":{"v":0,"d":"$0.00"}},{"$f":"'MMA Rev-Exp Region 6'!AI$30","v":{"v":0,"d":"$0.00"}},{"$f":"'MMA Rev-Exp Region 6'!AJ$30","v":{"v":0,"d":"$0.00"}},{"v":0,"d":"$0.00"}]
["MMA",null,null,{"$f":"Jurat!I$1","v":0},{"$f":"Jurat!D$33","v":"00:00:00"},"Q3","2017-09-30","Region 6","Operating Expense","Medical Benefits Expense","Professional Services",3.3,"Other Professional FFS",{"$f":"'MMA Rev-Exp Region 6'!Z$31","v":{"v":0,"d":"$0.00"}},{"$f":"'MMA Rev-Exp Region 6'!AA$31","v":{"v":0,"d":"$0.00"}},{"$f":"'MMA Rev-Exp Region 6'!AB$31","v":{"v":0,"d":"$0.00"}},{"$f":"'MMA Rev-Exp Region 6'!AC$31","v":{"v":0,"d":"$0.00"}},{"$f":"'MMA Rev-Exp Region 6'!AD$31","v":{"v":0,"d":"$0.00"}},{"$f":"'MMA Rev-Exp Region 6'!AE$31","v":{"v":0,"d":"$0.00"}},{"$f":"'MMA Rev-Exp Region 6'!AF$31","v":{"v":0,"d":"$0.00"}},{"$f":"'MMA Rev-Exp Region 6'!AG$31","v":{"v":0,"d":"$0.00"}},{"$f":"'MMA Rev-Exp Region 6'!AH$31","v":{"v":0,"d":"$0.00"}},{"$f":"'MMA Rev-Exp Region 6'!AI$31","v":{"v":0,"d":"$0.00"}},{"$f":"'MMA Rev-Exp Region 6'!AJ$31","v":{"v":0,"d":"$0.00"}},{"v":0,"d":"$0.00"}]
["MMA",null,null,{"$f":"Jurat!I$1","v":0},{"$f":"Jurat!D$33","v":"00:00:00"},"Q3","2017-09-30","Region 6","Operating Expense","Medical Benefits Expense","Professional Services","3.6","Ending IBNP for Professional Services",{"$f":"'MMA Rev-Exp Region 6'!Z$34","v":{"v":0,"d":"$0.00"}},{"$f":"'MMA Rev-Exp Region 6'!AA$34","v":{"v":0,"d":"$0.00"}},{"$f":"'MMA Rev-Exp Region 6'!AB$34","v":{"v":0,"d":"$0.00"}},{"$f":"'MMA Rev-Exp Region 6'!AC$34","v":{"v":0,"d":"$0.00"}},{"$f":"'MMA Rev-Exp Region 6'!AD$34","v":{"v":0,"d":"$0.00"}},{"$f":"'MMA Rev-Exp Region 6'!AE$34","v":{"v":0,"d":"$0.00"}},{"$f":"'MMA Rev-Exp Region 6'!AF$34","v":{"v":0,"d":"$0.00"}},{"$f":"'MMA Rev-Exp Region 6'!AG$34","v":{"v":0,"d":"$0.00"}},{"$f":"'MMA Rev-Exp Region 6'!AH$34","v":{"v":0,"d":"$0.00"}},{"$f":"'MMA Rev-Exp Region 6'!AI$34","v":{"v":0,"d":"$0.00"}},{"$f":"'MMA Rev-Exp Region 6'!AJ$34","v":{"v":0,"d":"$0.00"}},{"v":0,"d":"$0.00"}]
["MMA",null,null,{"$f":"Jurat!I$1","v":0},{"$f":"Jurat!D$33","v":"00:00:00"},"Q3","2017-09-30","Region 6","Operating Expense","Medical Benefits Expense","Maternity Services","4.3.1","Maternity Settlements",{"$f":"'MMA Rev-Exp Region 6'!Z$39","v":{"v":0,"d":"$0.00"}},{"$f":"'MMA Rev-Exp Region 6'!AA$39","v":{"v":0,"d":"$0.00"}},{"$f":"'MMA Rev-Exp Region 6'!AB$39","v":{"v":0,"d":"$0.00"}},{"$f":"'MMA Rev-Exp Region 6'!AC$39","v":{"v":0,"d":"$0.00"}},{"$f":"'MMA Rev-Exp Region 6'!AD$39","v":{"v":0,"d":"$0.00"}},{"$f":"'MMA Rev-Exp Region 6'!AE$39","v":{"v":0,"d":"$0.00"}},{"$f":"'MMA Rev-Exp Region 6'!AF$39","v":{"v":0,"d":"$0.00"}},{"$f":"'MMA Rev-Exp Region 6'!AG$39","v":{"v":0,"d":"$0.00"}},{"$f":"'MMA Rev-Exp Region 6'!AH$39","v":{"v":0,"d":"$0.00"}},{"$f":"'MMA Rev-Exp Region 6'!AI$39","v":{"v":0,"d":"$0.00"}},{"$f":"'MMA Rev-Exp Region 6'!AJ$39","v":{"v":0,"d":"$0.00"}},{"v":0,"d":"$0.00"}]
["MMA",null,null,{"$f":"Jurat!I$1","v":0},{"$f":"Jurat!D$33","v":"00:00:00"},"Q3","2017-09-30","Region 6","Operating Expense","Medical Benefits Expense","Mental Health Services",5.3,"Ending IBNP for Mental Health & Substance Abuse",{"$f":"'MMA Rev-Exp Region 6'!Z$43","v":{"v":0,"d":"$0.00"}},{"$f":"'MMA Rev-Exp Region 6'!AA$43","v":{"v":0,"d":"$0.00"}},{"$f":"'MMA Rev-Exp Region 6'!AB$43","v":{"v":0,"d":"$0.00"}},{"$f":"'MMA Rev-Exp Region 6'!AC$43","v":{"v":0,"d":"$0.00"}},{"$f":"'MMA Rev-Exp Region 6'!AD$43","v":{"v":0,"d":"$0.00"}},{"$f":"'MMA Rev-Exp Region 6'!AE$43","v":{"v":0,"d":"$0.00"}},{"$f":"'MMA Rev-Exp Region 6'!AF$43","v":{"v":0,"d":"$0.00"}},{"$f":"'MMA Rev-Exp Region 6'!AG$43","v":{"v":0,"d":"$0.00"}},{"$f":"'MMA Rev-Exp Region 6'!AH$43","v":{"v":0,"d":"$0.00"}},{"$f":"'MMA Rev-Exp Region 6'!AI$43","v":{"v":0,"d":"$0.00"}},{"$f":"'MMA Rev-Exp Region 6'!AJ$43","v":{"v":0,"d":"$0.00"}},{"v":0,"d":"$0.00"}]
["MMA",null,null,{"$f":"Jurat!I$1","v":0},{"$f":"Jurat!D$33","v":"00:00:00"},"Q3","2017-09-30","Region 6","Operating Expense","Medical Benefits Expense","Dental Services",6.1,"Dental FFS",{"$f":"'MMA Rev-Exp Region 6'!Z$46","v":{"v":0,"d":"$0.00"}},{"$f":"'MMA Rev-Exp Region 6'!AA$46","v":{"v":0,"d":"$0.00"}},{"$f":"'MMA Rev-Exp Region 6'!AB$46","v":{"v":0,"d":"$0.00"}},{"$f":"'MMA Rev-Exp Region 6'!AC$46","v":{"v":0,"d":"$0.00"}},{"$f":"'MMA Rev-Exp Region 6'!AD$46","v":{"v":0,"d":"$0.00"}},{"$f":"'MMA Rev-Exp Region 6'!AE$46","v":{"v":0,"d":"$0.00"}},{"$f":"'MMA Rev-Exp Region 6'!AF$46","v":{"v":0,"d":"$0.00"}},{"$f":"'MMA Rev-Exp Region 6'!AG$46","v":{"v":0,"d":"$0.00"}},{"$f":"'MMA Rev-Exp Region 6'!AH$46","v":{"v":0,"d":"$0.00"}},{"$f":"'MMA Rev-Exp Region 6'!AI$46","v":{"v":0,"d":"$0.00"}},{"$f":"'MMA Rev-Exp Region 6'!AJ$46","v":{"v":0,"d":"$0.00"}},{"v":0,"d":"$0.00"}]
["MMA",null,null,{"$f":"Jurat!I$1","v":0},{"$f":"Jurat!D$33","v":"00:00:00"},"Q3","2017-09-30","Region 6","Operating Expense","Medical Benefits Expense","Transportation Services",7.1,"Transportation FFS",{"$f":"'MMA Rev-Exp Region 6'!Z$51","v":{"v":0,"d":"$0.00"}},{"$f":"'MMA Rev-Exp Region 6'!AA$51","v":{"v":0,"d":"$0.00"}},{"$f":"'MMA Rev-Exp Region 6'!AB$51","v":{"v":0,"d":"$0.00"}},{"$f":"'MMA Rev-Exp Region 6'!AC$51","v":{"v":0,"d":"$0.00"}},{"$f":"'MMA Rev-Exp Region 6'!AD$51","v":{"v":0,"d":"$0.00"}},{"$f":"'MMA Rev-Exp Region 6'!AE$51","v":{"v":0,"d":"$0.00"}},{"$f":"'MMA Rev-Exp Region 6'!AF$51","v":{"v":0,"d":"$0.00"}},{"$f":"'MMA Rev-Exp Region 6'!AG$51","v":{"v":0,"d":"$0.00"}},{"$f":"'MMA Rev-Exp Region 6'!AH$51","v":{"v":0,"d":"$0.00"}},{"$f":"'MMA Rev-Exp Region 6'!AI$51","v":{"v":0,"d":"$0.00"}},{"$f":"'MMA Rev-Exp Region 6'!AJ$51","v":{"v":0,"d":"$0.00"}},{"v":0,"d":"$0.00"}]
["MMA",null,null,{"$f":"Jurat!I$1","v":0},{"$f":"Jurat!D$33","v":"00:00:00"},"Q3","2017-09-30","Region 6","Operating Expense","Medical Benefits Expense","Transportation Services","7.4","Transportation Settlements",{"$f":"'MMA Rev-Exp Region 6'!Z$54","v":{"v":0,"d":"$0.00"}},{"$f":"'MMA Rev-Exp Region 6'!AA$54","v":{"v":0,"d":"$0.00"}},{"$f":"'MMA Rev-Exp Region 6'!AB$54","v":{"v":0,"d":"$0.00"}},{"$f":"'MMA Rev-Exp Region 6'!AC$54","v":{"v":0,"d":"$0.00"}},{"$f":"'MMA Rev-Exp Region 6'!AD$54","v":{"v":0,"d":"$0.00"}},{"$f":"'MMA Rev-Exp Region 6'!AE$54","v":{"v":0,"d":"$0.00"}},{"$f":"'MMA Rev-Exp Region 6'!AF$54","v":{"v":0,"d":"$0.00"}},{"$f":"'MMA Rev-Exp Region 6'!AG$54","v":{"v":0,"d":"$0.00"}},{"$f":"'MMA Rev-Exp Region 6'!AH$54","v":{"v":0,"d":"$0.00"}},{"$f":"'MMA Rev-Exp Region 6'!AI$54","v":{"v":0,"d":"$0.00"}},{"$f":"'MMA Rev-Exp Region 6'!AJ$54","v":{"v":0,"d":"$0.00"}},{"v":0,"d":"$0.00"}]
["MMA",null,null,{"$f":"Jurat!I$1","v":0},{"$f":"Jurat!D$33","v":"00:00:00"},"Q3","2017-09-30","Region 6","Operating Expense","Medical Benefits Expense","Pharmacy Services",8.1,"Prescription Drugs FFS",{"$f":"'MMA Rev-Exp Region 6'!Z$56","v":{"v":0,"d":"$0.00"}},{"$f":"'MMA Rev-Exp Region 6'!AA$56","v":{"v":0,"d":"$0.00"}},{"$f":"'MMA Rev-Exp Region 6'!AB$56","v":{"v":0,"d":"$0.00"}},{"$f":"'MMA Rev-Exp Region 6'!AC$56","v":{"v":0,"d":"$0.00"}},{"$f":"'MMA Rev-Exp Region 6'!AD$56","v":{"v":0,"d":"$0.00"}},{"$f":"'MMA Rev-Exp Region 6'!AE$56","v":{"v":0,"d":"$0.00"}},{"$f":"'MMA Rev-Exp Region 6'!AF$56","v":{"v":0,"d":"$0.00"}},{"$f":"'MMA Rev-Exp Region 6'!AG$56","v":{"v":0,"d":"$0.00"}},{"$f":"'MMA Rev-Exp Region 6'!AH$56","v":{"v":0,"d":"$0.00"}},{"$f":"'MMA Rev-Exp Region 6'!AI$56","v":{"v":0,"d":"$0.00"}},{"$f":"'MMA Rev-Exp Region 6'!AJ$56","v":{"v":0,"d":"$0.00"}},{"v":0,"d":"$0.00"}]
["MMA",null,null,{"$f":"Jurat!I$1","v":0},{"$f":"Jurat!D$33","v":"00:00:00"},"Q3","2017-09-30","Region 6","Operating Expense","Medical Benefits Expense","Pharmacy Services","8.4","Prescription Drug Rebates ",{"$f":"'MMA Rev-Exp Region 6'!Z$59","v":{"v":0,"d":"$0.00"}},{"$f":"'MMA Rev-Exp Region 6'!AA$59","v":{"v":0,"d":"$0.00"}},{"$f":"'MMA Rev-Exp Region 6'!AB$59","v":{"v":0,"d":"$0.00"}},{"$f":"'MMA Rev-Exp Region 6'!AC$59","v":{"v":0,"d":"$0.00"}},{"$f":"'MMA Rev-Exp Region 6'!AD$59","v":{"v":0,"d":"$0.00"}},{"$f":"'MMA Rev-Exp Region 6'!AE$59","v":{"v":0,"d":"$0.00"}},{"$f":"'MMA Rev-Exp Region 6'!AF$59","v":{"v":0,"d":"$0.00"}},{"$f":"'MMA Rev-Exp Region 6'!AG$59","v":{"v":0,"d":"$0.00"}},{"$f":"'MMA Rev-Exp Region 6'!AH$59","v":{"v":0,"d":"$0.00"}},{"$f":"'MMA Rev-Exp Region 6'!AI$59","v":{"v":0,"d":"$0.00"}},{"$f":"'MMA Rev-Exp Region 6'!AJ$59","v":{"v":0,"d":"$0.00"}},{"v":0,"d":"$0.00"}]
["MMA",null,null,{"$f":"Jurat!I$1","v":0},{"$f":"Jurat!D$33","v":"00:00:00"},"Q3","2017-09-30","Region 6","Operating Expense","Medical Benefits Expense","Pharmacy Services","8.7","Prescription Drug Settlements",{"$f":"'MMA Rev-Exp Region 6'!Z$62","v":{"v":0,"d":"$0.00"}},{"$f":"'MMA Rev-Exp Region 6'!AA$62","v":{"v":0,"d":"$0.00"}},{"$f":"'MMA Rev-Exp Region 6'!AB$62","v":{"v":0,"d":"$0.00"}},{"$f":"'MMA Rev-Exp Region 6'!AC$62","v":{"v":0,"d":"$0.00"}},{"$f":"'MMA Rev-Exp Region 6'!AD$62","v":{"v":0,"d":"$0.00"}},{"$f":"'MMA Rev-Exp Region 6'!AE$62","v":{"v":0,"d":"$0.00"}},{"$f":"'MMA Rev-Exp Region 6'!AF$62","v":{"v":0,"d":"$0.00"}},{"$f":"'MMA Rev-Exp Region 6'!AG$62","v":{"v":0,"d":"$0.00"}},{"$f":"'MMA Rev-Exp Region 6'!AH$62","v":{"v":0,"d":"$0.00"}},{"$f":"'MMA Rev-Exp Region 6'!AI$62","v":{"v":0,"d":"$0.00"}},{"$f":"'MMA Rev-Exp Region 6'!AJ$62","v":{"v":0,"d":"$0.00"}},{"v":0,"d":"$0.00"}]
["MMA",null,null,{"$f":"Jurat!I$1","v":0},{"$f":"Jurat!D$33","v":"00:00:00"},"Q3","2017-09-30","Region 6","Operating Expense","Medical Benefits Expense","Other MMA Services","9.4","Other State Plan Services FFS",{"$f":"'MMA Rev-Exp Region 6'!Z$67","v":{"v":0,"d":"$0.00"}},{"$f":"'MMA Rev-Exp Region 6'!AA$67","v":{"v":0,"d":"$0.00"}},{"$f":"'MMA Rev-Exp Region 6'!AB$67","v":{"v":0,"d":"$0.00"}},{"$f":"'MMA Rev-Exp Region 6'!AC$67","v":{"v":0,"d":"$0.00"}},{"$f":"'MMA Rev-Exp Region 6'!AD$67","v":{"v":0,"d":"$0.00"}},{"$f":"'MMA Rev-Exp Region 6'!AE$67","v":{"v":0,"d":"$0.00"}},{"$f":"'MMA Rev-Exp Region 6'!AF$67","v":{"v":0,"d":"$0.00"}},{"$f":"'MMA Rev-Exp Region 6'!AG$67","v":{"v":0,"d":"$0.00"}},{"$f":"'MMA Rev-Exp Region 6'!AH$67","v":{"v":0,"d":"$0.00"}},{"$f":"'MMA Rev-Exp Region 6'!AI$67","v":{"v":0,"d":"$0.00"}},{"$f":"'MMA Rev-Exp Region 6'!AJ$67","v":{"v":0,"d":"$0.00"}},{"v":0,"d":"$0.00"}]
["MMA",null,null,{"$f":"Jurat!I$1","v":0},{"$f":"Jurat!D$33","v":"00:00:00"},"Q3","2017-09-30","Region 6","Operating Expense","Medical Benefits Expense","Other MMA Services","9.7","Other Services Settlements",{"$f":"'MMA Rev-Exp Region 6'!Z$70","v":{"v":0,"d":"$0.00"}},{"$f":"'MMA Rev-Exp Region 6'!AA$70","v":{"v":0,"d":"$0.00"}},{"$f":"'MMA Rev-Exp Region 6'!AB$70","v":{"v":0,"d":"$0.00"}},{"$f":"'MMA Rev-Exp Region 6'!AC$70","v":{"v":0,"d":"$0.00"}},{"$f":"'MMA Rev-Exp Region 6'!AD$70","v":{"v":0,"d":"$0.00"}},{"$f":"'MMA Rev-Exp Region 6'!AE$70","v":{"v":0,"d":"$0.00"}},{"$f":"'MMA Rev-Exp Region 6'!AF$70","v":{"v":0,"d":"$0.00"}},{"$f":"'MMA Rev-Exp Region 6'!AG$70","v":{"v":0,"d":"$0.00"}},{"$f":"'MMA Rev-Exp Region 6'!AH$70","v":{"v":0,"d":"$0.00"}},{"$f":"'MMA Rev-Exp Region 6'!AI$70","v":{"v":0,"d":"$0.00"}},{"$f":"'MMA Rev-Exp Region 6'!AJ$70","v":{"v":0,"d":"$0.00"}},{"v":0,"d":"$0.00"}]
["MMA",null,null,{"$f":"Jurat!I$1","v":0},{"$f":"Jurat!D$33","v":"00:00:00"},"Q3","2017-09-30","Region 6","Operating Expense","Medical Benefits Expense","Expanded Benefits","10.2","Expanded benefits Subcapitation",{"$f":"'MMA Rev-Exp Region 6'!Z$73","v":{"v":0,"d":"$0.00"}},{"$f":"'MMA Rev-Exp Region 6'!AA$73","v":{"v":0,"d":"$0.00"}},{"$f":"'MMA Rev-Exp Region 6'!AB$73","v":{"v":0,"d":"$0.00"}},{"$f":"'MMA Rev-Exp Region 6'!AC$73","v":{"v":0,"d":"$0.00"}},{"$f":"'MMA Rev-Exp Region 6'!AD$73","v":{"v":0,"d":"$0.00"}},{"$f":"'MMA Rev-Exp Region 6'!AE$73","v":{"v":0,"d":"$0.00"}},{"$f":"'MMA Rev-Exp Region 6'!AF$73","v":{"v":0,"d":"$0.00"}},{"$f":"'MMA Rev-Exp Region 6'!AG$73","v":{"v":0,"d":"$0.00"}},{"$f":"'MMA Rev-Exp Region 6'!AH$73","v":{"v":0,"d":"$0.00"}},{"$f":"'MMA Rev-Exp Region 6'!AI$73","v":{"v":0,"d":"$0.00"}},{"$f":"'MMA Rev-Exp Region 6'!AJ$73","v":{"v":0,"d":"$0.00"}},{"v":0,"d":"$0.00"}]
["MMA",null,null,{"$f":"Jurat!I$1","v":0},{"$f":"Jurat!D$33","v":"00:00:00"},"Q3","2017-09-30","Region 6","Operating Expense","Medical Benefits Expense","Other Medical","11.6.1","Premium Deficiency Reserve",{"$f":"'MMA Rev-Exp Region 6'!Z$82","v":{"v":0,"d":"$0.00"}},{"$f":"'MMA Rev-Exp Region 6'!AA$82","v":{"v":0,"d":"$0.00"}},{"$f":"'MMA Rev-Exp Region 6'!AB$82","v":{"v":0,"d":"$0.00"}},{"$f":"'MMA Rev-Exp Region 6'!AC$82","v":{"v":0,"d":"$0.00"}},{"$f":"'MMA Rev-Exp Region 6'!AD$82","v":{"v":0,"d":"$0.00"}},{"$f":"'MMA Rev-Exp Region 6'!AE$82","v":{"v":0,"d":"$0.00"}},{"$f":"'MMA Rev-Exp Region 6'!AF$82","v":{"v":0,"d":"$0.00"}},{"$f":"'MMA Rev-Exp Region 6'!AG$82","v":{"v":0,"d":"$0.00"}},{"$f":"'MMA Rev-Exp Region 6'!AH$82","v":{"v":0,"d":"$0.00"}},{"$f":"'MMA Rev-Exp Region 6'!AI$82","v":{"v":0,"d":"$0.00"}},{"$f":"'MMA Rev-Exp Region 6'!AJ$82","v":{"v":0,"d":"$0.00"}},{"v":0,"d":"$0.00"}]
["MMA",null,null,{"$f":"Jurat!I$1","v":0},{"$f":"Jurat!D$33","v":"00:00:00"},"Q3","2017-09-30","Region 6","Operating Expense","Administrative Expense","Administrative","12.1","Salaries & Benefits",{"$f":"'MMA Rev-Exp Region 6'!Z$90","v":{"v":0,"d":"$0.00"}},{"v":0,"d":"$0.00"},{"v":0,"d":"$0.00"},{"v":0,"d":"$0.00"},{"v":0,"d":"$0.00"},{"v":0,"d":"$0.00"},{"v":0,"d":"$0.00"},{"v":0,"d":"$0.00"},{"v":0,"d":"$0.00"},{"v":0,"d":"$0.00"},{"v":0,"d":"$0.00"},{"v":0,"d":"$0.00"}]
["MMA",null,null,{"$f":"Jurat!I$1","v":0},{"$f":"Jurat!D$33","v":"00:00:00"},"Q3","2017-09-30","Region 6","Operating Expense","Administrative Expense","Administrative","12.2","Administrative Services",{"$f":"'MMA Rev-Exp Region 6'!Z$91","v":{"v":0,"d":"$0.00"}},{"v":0,"d":"$0.00"},{"v":0,"d":"$0.00"},{"v":0,"d":"$0.00"},{"v":0,"d":"$0.00"},{"v":0,"d":"$0.00"},{"v":0,"d":"$0.00"},{"v":0,"d":"$0.00"},{"v":0,"d":"$0.00"},{"v":0,"d":"$0.00"},{"v":0,"d":"$0.00"},{"v":0,"d":"$0.00"}]
["MMA",null,null,{"$f":"Jurat!I$1","v":0},{"$f":"Jurat!D$33","v":"00:00:00"},"Q3","2017-09-30","Region 6","Operating Expense","Administrative Expense","Administrative","12.5","General  Administration",{"$f":"'MMA Rev-Exp Region 6'!Z$94","v":{"v":0,"d":"$0.00"}},{"v":0,"d":"$0.00"},{"v":0,"d":"$0.00"},{"v":0,"d":"$0.00"},{"v":0,"d":"$0.00"},{"v":0,"d":"$0.00"},{"v":0,"d":"$0.00"},{"v":0,"d":"$0.00"},{"v":0,"d":"$0.00"},{"v":0,"d":"$0.00"},{"v":0,"d":"$0.00"},{"v":0,"d":"$0.00"}]
["MMA",null,null,{"$f":"Jurat!I$1","v":0},{"$f":"Jurat!D$33","v":"00:00:00"},"Q3","2017-09-30","Region 6","Operating Expense","Taxes & Fees","Taxes & Fees","13.2","Department of Insurance Assessments",{"$f":"'MMA Rev-Exp Region 6'!Z$98","v":{"v":0,"d":"$0.00"}},{"v":0,"d":"$0.00"},{"v":0,"d":"$0.00"},{"v":0,"d":"$0.00"},{"v":0,"d":"$0.00"},{"v":0,"d":"$0.00"},{"v":0,"d":"$0.00"},{"v":0,"d":"$0.00"},{"v":0,"d":"$0.00"},{"v":0,"d":"$0.00"},{"v":0,"d":"$0.00"},{"v":0,"d":"$0.00"}]
["MMA",null,null,{"$f":"Jurat!I$1","v":0},{"$f":"Jurat!D$33","v":"00:00:00"},"Q4","2017-12-31","Region 6","Operating Revenue","Capitation","Capitation",1.1,"Capitation",{"$f":"'MMA Rev-Exp Region 6'!AK$11","v":{"v":0,"d":"$0.00"}},{"$f":"'MMA Rev-Exp Region 6'!AL$11","v":{"v":0,"d":"$0.00"}},{"$f":"'MMA Rev-Exp Region 6'!AM$11","v":{"v":0,"d":"$0.00"}},{"$f":"'MMA Rev-Exp Region 6'!AN$11","v":{"v":0,"d":"$0.00"}},{"$f":"'MMA Rev-Exp Region 6'!AO$11","v":{"v":0,"d":"$0.00"}},{"$f":"'MMA Rev-Exp Region 6'!AP$11","v":{"v":0,"d":"$0.00"}},{"$f":"'MMA Rev-Exp Region 6'!AQ$11","v":{"v":0,"d":"$0.00"}},{"$f":"'MMA Rev-Exp Region 6'!AR$11","v":{"v":0,"d":"$0.00"}},{"$f":"'MMA Rev-Exp Region 6'!AS$11","v":{"v":0,"d":"$0.00"}},{"$f":"'MMA Rev-Exp Region 6'!AT$11","v":{"v":0,"d":"$0.00"}},{"$f":"'MMA Rev-Exp Region 6'!AU$11","v":{"v":0,"d":"$0.00"}},{"v":0,"d":"$0.00"}]
["MMA",null,null,{"$f":"Jurat!I$1","v":0},{"$f":"Jurat!D$33","v":"00:00:00"},"Q4","2017-12-31","Region 6","Operating Revenue","Kick Payments","Kick Payments - Maternity","1.4.1","Maternity Kick Payments",{"$f":"'MMA Rev-Exp Region 6'!AK$14","v":{"v":0,"d":"$0.00"}},{"$f":"'MMA Rev-Exp Region 6'!AL$14","v":{"v":0,"d":"$0.00"}},{"$f":"'MMA Rev-Exp Region 6'!AM$14","v":{"v":0,"d":"$0.00"}},{"$f":"'MMA Rev-Exp Region 6'!AN$14","v":{"v":0,"d":"$0.00"}},{"$f":"'MMA Rev-Exp Region 6'!AO$14","v":{"v":0,"d":"$0.00"}},{"$f":"'MMA Rev-Exp Region 6'!AP$14","v":{"v":0,"d":"$0.00"}},{"$f":"'MMA Rev-Exp Region 6'!AQ$14","v":{"v":0,"d":"$0.00"}},{"$f":"'MMA Rev-Exp Region 6'!AR$14","v":{"v":0,"d":"$0.00"}},{"$f":"'MMA Rev-Exp Region 6'!AS$14","v":{"v":0,"d":"$0.00"}},{"$f":"'MMA Rev-Exp Region 6'!AT$14","v":{"v":0,"d":"$0.00"}},{"$f":"'MMA Rev-Exp Region 6'!AU$14","v":{"v":0,"d":"$0.00"}},{"v":0,"d":"$0.00"}]
["MMA",null,null,{"$f":"Jurat!I$1","v":0},{"$f":"Jurat!D$33","v":"00:00:00"},"Q4","2017-12-31","Region 6","Operating Expense","Medical Benefits Expense","Hospital Services",2.1,"Inpatient FFS",{"$f":"'MMA Rev-Exp Region 6'!AK$20","v":{"v":0,"d":"$0.00"}},{"$f":"'MMA Rev-Exp Region 6'!AL$20","v":{"v":0,"d":"$0.00"}},{"$f":"'MMA Rev-Exp Region 6'!AM$20","v":{"v":0,"d":"$0.00"}},{"$f":"'MMA Rev-Exp Region 6'!AN$20","v":{"v":0,"d":"$0.00"}},{"$f":"'MMA Rev-Exp Region 6'!AO$20","v":{"v":0,"d":"$0.00"}},{"$f":"'MMA Rev-Exp Region 6'!AP$20","v":{"v":0,"d":"$0.00"}},{"$f":"'MMA Rev-Exp Region 6'!AQ$20","v":{"v":0,"d":"$0.00"}},{"$f":"'MMA Rev-Exp Region 6'!AR$20","v":{"v":0,"d":"$0.00"}},{"$f":"'MMA Rev-Exp Region 6'!AS$20","v":{"v":0,"d":"$0.00"}},{"$f":"'MMA Rev-Exp Region 6'!AT$20","v":{"v":0,"d":"$0.00"}},{"$f":"'MMA Rev-Exp Region 6'!AU$20","v":{"v":0,"d":"$0.00"}},{"v":0,"d":"$0.00"}]
["MMA",null,null,{"$f":"Jurat!I$1","v":0},{"$f":"Jurat!D$33","v":"00:00:00"},"Q4","2017-12-31","Region 6","Operating Expense","Medical Benefits Expense","Hospital Services",2.4,"Outpatient FFS: Other than ER ",{"$f":"'MMA Rev-Exp Region 6'!AK$23","v":{"v":0,"d":"$0.00"}},{"$f":"'MMA Rev-Exp Region 6'!AL$23","v":{"v":0,"d":"$0.00"}},{"$f":"'MMA Rev-Exp Region 6'!AM$23","v":{"v":0,"d":"$0.00"}},{"$f":"'MMA Rev-Exp Region 6'!AN$23","v":{"v":0,"d":"$0.00"}},{"$f":"'MMA Rev-Exp Region 6'!AO$23","v":{"v":0,"d":"$0.00"}},{"$f":"'MMA Rev-Exp Region 6'!AP$23","v":{"v":0,"d":"$0.00"}},{"$f":"'MMA Rev-Exp Region 6'!AQ$23","v":{"v":0,"d":"$0.00"}},{"$f":"'MMA Rev-Exp Region 6'!AR$23","v":{"v":0,"d":"$0.00"}},{"$f":"'MMA Rev-Exp Region 6'!AS$23","v":{"v":0,"d":"$0.00"}},{"$f":"'MMA Rev-Exp Region 6'!AT$23","v":{"v":0,"d":"$0.00"}},{"$f":"'MMA Rev-Exp Region 6'!AU$23","v":{"v":0,"d":"$0.00"}},{"v":0,"d":"$0.00"}]
["MMA",null,null,{"$f":"Jurat!I$1","v":0},{"$f":"Jurat!D$33","v":"00:00:00"},"Q4","2017-12-31","Region 6","Operating Expense","Medical Benefits Expense","Hospital Services","2.7","Hospital Settlements",{"$f":"'MMA Rev-Exp Region 6'!AK$26","v":{"v":0,"d":"$0.00"}},{"$f":"'MMA Rev-Exp Region 6'!AL$26","v":{"v":0,"d":"$0.00"}},{"$f":"'MMA Rev-Exp Region 6'!AM$26","v":{"v":0,"d":"$0.00"}},{"$f":"'MMA Rev-Exp Region 6'!AN$26","v":{"v":0,"d":"$0.00"}},{"$f":"'MMA Rev-Exp Region 6'!AO$26","v":{"v":0,"d":"$0.00"}},{"$f":"'MMA Rev-Exp Region 6'!AP$26","v":{"v":0,"d":"$0.00"}},{"$f":"'MMA Rev-Exp Region 6'!AQ$26","v":{"v":0,"d":"$0.00"}},{"$f":"'MMA Rev-Exp Region 6'!AR$26","v":{"v":0,"d":"$0.00"}},{"$f":"'MMA Rev-Exp Region 6'!AS$26","v":{"v":0,"d":"$0.00"}},{"$f":"'MMA Rev-Exp Region 6'!AT$26","v":{"v":0,"d":"$0.00"}},{"$f":"'MMA Rev-Exp Region 6'!AU$26","v":{"v":0,"d":"$0.00"}},{"v":0,"d":"$0.00"}]
["MMA",null,null,{"$f":"Jurat!I$1","v":0},{"$f":"Jurat!D$33","v":"00:00:00"},"Q4","2017-12-31","Region 6","Operating Expense","Medical Benefits Expense","Hospital Services","2.7.1","Transplant Services",{"$f":"'MMA Rev-Exp Region 6'!AK$27","v":{"v":0,"d":"$0.00"}},{"$f":"'MMA Rev-Exp Region 6'!AL$27","v":{"v":0,"d":"$0.00"}},{"$f":"'MMA Rev-Exp Region 6'!AM$27","v":{"v":0,"d":"$0.00"}},{"$f":"'MMA Rev-Exp Region 6'!AN$27","v":{"v":0,"d":"$0.00"}},{"$f":"'MMA Rev-Exp Region 6'!AO$27","v":{"v":0,"d":"$0.00"}},{"$f":"'MMA Rev-Exp Region 6'!AP$27","v":{"v":0,"d":"$0.00"}},{"$f":"'MMA Rev-Exp Region 6'!AQ$27","v":{"v":0,"d":"$0.00"}},{"$f":"'MMA Rev-Exp Region 6'!AR$27","v":{"v":0,"d":"$0.00"}},{"$f":"'MMA Rev-Exp Region 6'!AS$27","v":{"v":0,"d":"$0.00"}},{"$f":"'MMA Rev-Exp Region 6'!AT$27","v":{"v":0,"d":"$0.00"}},{"$f":"'MMA Rev-Exp Region 6'!AU$27","v":{"v":0,"d":"$0.00"}},{"v":0,"d":"$0.00"}]
["MMA",null,null,{"$f":"Jurat!I$1","v":0},{"$f":"Jurat!D$33","v":"00:00:00"},"Q4","2017-12-31","Region 6","Operating Expense","Medical Benefits Expense","Professional Services",3.3,"Other Professional FFS",{"$f":"'MMA Rev-Exp Region 6'!AK$31","v":{"v":0,"d":"$0.00"}},{"$f":"'MMA Rev-Exp Region 6'!AL$31","v":{"v":0,"d":"$0.00"}},{"$f":"'MMA Rev-Exp Region 6'!AM$31","v":{"v":0,"d":"$0.00"}},{"$f":"'MMA Rev-Exp Region 6'!AN$31","v":{"v":0,"d":"$0.00"}},{"$f":"'MMA Rev-Exp Region 6'!AO$31","v":{"v":0,"d":"$0.00"}},{"$f":"'MMA Rev-Exp Region 6'!AP$31","v":{"v":0,"d":"$0.00"}},{"$f":"'MMA Rev-Exp Region 6'!AQ$31","v":{"v":0,"d":"$0.00"}},{"$f":"'MMA Rev-Exp Region 6'!AR$31","v":{"v":0,"d":"$0.00"}},{"$f":"'MMA Rev-Exp Region 6'!AS$31","v":{"v":0,"d":"$0.00"}},{"$f":"'MMA Rev-Exp Region 6'!AT$31","v":{"v":0,"d":"$0.00"}},{"$f":"'MMA Rev-Exp Region 6'!AU$31","v":{"v":0,"d":"$0.00"}},{"v":0,"d":"$0.00"}]
["MMA",null,null,{"$f":"Jurat!I$1","v":0},{"$f":"Jurat!D$33","v":"00:00:00"},"Q4","2017-12-31","Region 6","Operating Expense","Medical Benefits Expense","Professional Services","3.6","Ending IBNP for Professional Services",{"$f":"'MMA Rev-Exp Region 6'!AK$34","v":{"v":0,"d":"$0.00"}},{"$f":"'MMA Rev-Exp Region 6'!AL$34","v":{"v":0,"d":"$0.00"}},{"$f":"'MMA Rev-Exp Region 6'!AM$34","v":{"v":0,"d":"$0.00"}},{"$f":"'MMA Rev-Exp Region 6'!AN$34","v":{"v":0,"d":"$0.00"}},{"$f":"'MMA Rev-Exp Region 6'!AO$34","v":{"v":0,"d":"$0.00"}},{"$f":"'MMA Rev-Exp Region 6'!AP$34","v":{"v":0,"d":"$0.00"}},{"$f":"'MMA Rev-Exp Region 6'!AQ$34","v":{"v":0,"d":"$0.00"}},{"$f":"'MMA Rev-Exp Region 6'!AR$34","v":{"v":0,"d":"$0.00"}},{"$f":"'MMA Rev-Exp Region 6'!AS$34","v":{"v":0,"d":"$0.00"}},{"$f":"'MMA Rev-Exp Region 6'!AT$34","v":{"v":0,"d":"$0.00"}},{"$f":"'MMA Rev-Exp Region 6'!AU$34","v":{"v":0,"d":"$0.00"}},{"v":0,"d":"$0.00"}]
["MMA",null,null,{"$f":"Jurat!I$1","v":0},{"$f":"Jurat!D$33","v":"00:00:00"},"Q4","2017-12-31","Region 6","Operating Expense","Medical Benefits Expense","Maternity Services","4.3.1","Maternity Settlements",{"$f":"'MMA Rev-Exp Region 6'!AK$39","v":{"v":0,"d":"$0.00"}},{"$f":"'MMA Rev-Exp Region 6'!AL$39","v":{"v":0,"d":"$0.00"}},{"$f":"'MMA Rev-Exp Region 6'!AM$39","v":{"v":0,"d":"$0.00"}},{"$f":"'MMA Rev-Exp Region 6'!AN$39","v":{"v":0,"d":"$0.00"}},{"$f":"'MMA Rev-Exp Region 6'!AO$39","v":{"v":0,"d":"$0.00"}},{"$f":"'MMA Rev-Exp Region 6'!AP$39","v":{"v":0,"d":"$0.00"}},{"$f":"'MMA Rev-Exp Region 6'!AQ$39","v":{"v":0,"d":"$0.00"}},{"$f":"'MMA Rev-Exp Region 6'!AR$39","v":{"v":0,"d":"$0.00"}},{"$f":"'MMA Rev-Exp Region 6'!AS$39","v":{"v":0,"d":"$0.00"}},{"$f":"'MMA Rev-Exp Region 6'!AT$39","v":{"v":0,"d":"$0.00"}},{"$f":"'MMA Rev-Exp Region 6'!AU$39","v":{"v":0,"d":"$0.00"}},{"v":0,"d":"$0.00"}]
["MMA",null,null,{"$f":"Jurat!I$1","v":0},{"$f":"Jurat!D$33","v":"00:00:00"},"Q4","2017-12-31","Region 6","Operating Expense","Medical Benefits Expense","Mental Health Services",5.3,"Ending IBNP for Mental Health & Substance Abuse",{"$f":"'MMA Rev-Exp Region 6'!AK$43","v":{"v":0,"d":"$0.00"}},{"$f":"'MMA Rev-Exp Region 6'!AL$43","v":{"v":0,"d":"$0.00"}},{"$f":"'MMA Rev-Exp Region 6'!AM$43","v":{"v":0,"d":"$0.00"}},{"$f":"'MMA Rev-Exp Region 6'!AN$43","v":{"v":0,"d":"$0.00"}},{"$f":"'MMA Rev-Exp Region 6'!AO$43","v":{"v":0,"d":"$0.00"}},{"$f":"'MMA Rev-Exp Region 6'!AP$43","v":{"v":0,"d":"$0.00"}},{"$f":"'MMA Rev-Exp Region 6'!AQ$43","v":{"v":0,"d":"$0.00"}},{"$f":"'MMA Rev-Exp Region 6'!AR$43","v":{"v":0,"d":"$0.00"}},{"$f":"'MMA Rev-Exp Region 6'!AS$43","v":{"v":0,"d":"$0.00"}},{"$f":"'MMA Rev-Exp Region 6'!AT$43","v":{"v":0,"d":"$0.00"}},{"$f":"'MMA Rev-Exp Region 6'!AU$43","v":{"v":0,"d":"$0.00"}},{"v":0,"d":"$0.00"}]
["MMA",null,null,{"$f":"Jurat!I$1","v":0},{"$f":"Jurat!D$33","v":"00:00:00"},"Q4","2017-12-31","Region 6","Operating Expense","Medical Benefits Expense","Dental Services",6.3,"Ending IBNP for Dental Services",{"$f":"'MMA Rev-Exp Region 6'!AK$48","v":{"v":0,"d":"$0.00"}},{"$f":"'MMA Rev-Exp Region 6'!AL$48","v":{"v":0,"d":"$0.00"}},{"$f":"'MMA Rev-Exp Region 6'!AM$48","v":{"v":0,"d":"$0.00"}},{"$f":"'MMA Rev-Exp Region 6'!AN$48","v":{"v":0,"d":"$0.00"}},{"$f":"'MMA Rev-Exp Region 6'!AO$48","v":{"v":0,"d":"$0.00"}},{"$f":"'MMA Rev-Exp Region 6'!AP$48","v":{"v":0,"d":"$0.00"}},{"$f":"'MMA Rev-Exp Region 6'!AQ$48","v":{"v":0,"d":"$0.00"}},{"$f":"'MMA Rev-Exp Region 6'!AR$48","v":{"v":0,"d":"$0.00"}},{"$f":"'MMA Rev-Exp Region 6'!AS$48","v":{"v":0,"d":"$0.00"}},{"$f":"'MMA Rev-Exp Region 6'!AT$48","v":{"v":0,"d":"$0.00"}},{"$f":"'MMA Rev-Exp Region 6'!AU$48","v":{"v":0,"d":"$0.00"}},{"v":0,"d":"$0.00"}]
["MMA",null,null,{"$f":"Jurat!I$1","v":0},{"$f":"Jurat!D$33","v":"00:00:00"},"Q4","2017-12-31","Region 6","Operating Expense","Medical Benefits Expense","Transportation Services",7.2,"Transportation Subcapitation",{"$f":"'MMA Rev-Exp Region 6'!AK$52","v":{"v":0,"d":"$0.00"}},{"$f":"'MMA Rev-Exp Region 6'!AL$52","v":{"v":0,"d":"$0.00"}},{"$f":"'MMA Rev-Exp Region 6'!AM$52","v":{"v":0,"d":"$0.00"}},{"$f":"'MMA Rev-Exp Region 6'!AN$52","v":{"v":0,"d":"$0.00"}},{"$f":"'MMA Rev-Exp Region 6'!AO$52","v":{"v":0,"d":"$0.00"}},{"$f":"'MMA Rev-Exp Region 6'!AP$52","v":{"v":0,"d":"$0.00"}},{"$f":"'MMA Rev-Exp Region 6'!AQ$52","v":{"v":0,"d":"$0.00"}},{"$f":"'MMA Rev-Exp Region 6'!AR$52","v":{"v":0,"d":"$0.00"}},{"$f":"'MMA Rev-Exp Region 6'!AS$52","v":{"v":0,"d":"$0.00"}},{"$f":"'MMA Rev-Exp Region 6'!AT$52","v":{"v":0,"d":"$0.00"}},{"$f":"'MMA Rev-Exp Region 6'!AU$52","v":{"v":0,"d":"$0.00"}},{"v":0,"d":"$0.00"}]
["MMA",null,null,{"$f":"Jurat!I$1","v":0},{"$f":"Jurat!D$33","v":"00:00:00"},"Q4","2017-12-31","Region 6","Operating Expense","Medical Benefits Expense","Transportation Services",7.3,"Ending IBNP for Transportation",{"$f":"'MMA Rev-Exp Region 6'!AK$53","v":{"v":0,"d":"$0.00"}},{"$f":"'MMA Rev-Exp Region 6'!AL$53","v":{"v":0,"d":"$0.00"}},{"$f":"'MMA Rev-Exp Region 6'!AM$53","v":{"v":0,"d":"$0.00"}},{"$f":"'MMA Rev-Exp Region 6'!AN$53","v":{"v":0,"d":"$0.00"}},{"$f":"'MMA Rev-Exp Region 6'!AO$53","v":{"v":0,"d":"$0.00"}},{"$f":"'MMA Rev-Exp Region 6'!AP$53","v":{"v":0,"d":"$0.00"}},{"$f":"'MMA Rev-Exp Region 6'!AQ$53","v":{"v":0,"d":"$0.00"}},{"$f":"'MMA Rev-Exp Region 6'!AR$53","v":{"v":0,"d":"$0.00"}},{"$f":"'MMA Rev-Exp Region 6'!AS$53","v":{"v":0,"d":"$0.00"}},{"$f":"'MMA Rev-Exp Region 6'!AT$53","v":{"v":0,"d":"$0.00"}},{"$f":"'MMA Rev-Exp Region 6'!AU$53","v":{"v":0,"d":"$0.00"}},{"v":0,"d":"$0.00"}]
["MMA",null,null,{"$f":"Jurat!I$1","v":0},{"$f":"Jurat!D$33","v":"00:00:00"},"Q4","2017-12-31","Region 6","Operating Expense","Medical Benefits Expense","Pharmacy Services",8.1,"Prescription Drugs FFS",{"$f":"'MMA Rev-Exp Region 6'!AK$56","v":{"v":0,"d":"$0.00"}},{"$f":"'MMA Rev-Exp Region 6'!AL$56","v":{"v":0,"d":"$0.00"}},{"$f":"'MMA Rev-Exp Region 6'!AM$56","v":{"v":0,"d":"$0.00"}},{"$f":"'MMA Rev-Exp Region 6'!AN$56","v":{"v":0,"d":"$0.00"}},{"$f":"'MMA Rev-Exp Region 6'!AO$56","v":{"v":0,"d":"$0.00"}},{"$f":"'MMA Rev-Exp Region 6'!AP$56","v":{"v":0,"d":"$0.00"}},{"$f":"'MMA Rev-Exp Region 6'!AQ$56","v":{"v":0,"d":"$0.00"}},{"$f":"'MMA Rev-Exp Region 6'!AR$56","v":{"v":0,"d":"$0.00"}},{"$f":"'MMA Rev-Exp Region 6'!AS$56","v":{"v":0,"d":"$0.00"}},{"$f":"'MMA Rev-Exp Region 6'!AT$56","v":{"v":0,"d":"$0.00"}},{"$f":"'MMA Rev-Exp Region 6'!AU$56","v":{"v":0,"d":"$0.00"}},{"v":0,"d":"$0.00"}]
["MMA",null,null,{"$f":"Jurat!I$1","v":0},{"$f":"Jurat!D$33","v":"00:00:00"},"Q4","2017-12-31","Region 6","Operating Expense","Medical Benefits Expense","Pharmacy Services","8.4","Prescription Drug Rebates ",{"$f":"'MMA Rev-Exp Region 6'!AK$59","v":{"v":0,"d":"$0.00"}},{"$f":"'MMA Rev-Exp Region 6'!AL$59","v":{"v":0,"d":"$0.00"}},{"$f":"'MMA Rev-Exp Region 6'!AM$59","v":{"v":0,"d":"$0.00"}},{"$f":"'MMA Rev-Exp Region 6'!AN$59","v":{"v":0,"d":"$0.00"}},{"$f":"'MMA Rev-Exp Region 6'!AO$59","v":{"v":0,"d":"$0.00"}},{"$f":"'MMA Rev-Exp Region 6'!AP$59","v":{"v":0,"d":"$0.00"}},{"$f":"'MMA Rev-Exp Region 6'!AQ$59","v":{"v":0,"d":"$0.00"}},{"$f":"'MMA Rev-Exp Region 6'!AR$59","v":{"v":0,"d":"$0.00"}},{"$f":"'MMA Rev-Exp Region 6'!AS$59","v":{"v":0,"d":"$0.00"}},{"$f":"'MMA Rev-Exp Region 6'!AT$59","v":{"v":0,"d":"$0.00"}},{"$f":"'MMA Rev-Exp Region 6'!AU$59","v":{"v":0,"d":"$0.00"}},{"v":0,"d":"$0.00"}]
["MMA",null,null,{"$f":"Jurat!I$1","v":0},{"$f":"Jurat!D$33","v":"00:00:00"},"Q4","2017-12-31","Region 6","Operating Expense","Medical Benefits Expense","Pharmacy Services","8.7","Prescription Drug Settlements",{"$f":"'MMA Rev-Exp Region 6'!AK$62","v":{"v":0,"d":"$0.00"}},{"$f":"'MMA Rev-Exp Region 6'!AL$62","v":{"v":0,"d":"$0.00"}},{"$f":"'MMA Rev-Exp Region 6'!AM$62","v":{"v":0,"d":"$0.00"}},{"$f":"'MMA Rev-Exp Region 6'!AN$62","v":{"v":0,"d":"$0.00"}},{"$f":"'MMA Rev-Exp Region 6'!AO$62","v":{"v":0,"d":"$0.00"}},{"$f":"'MMA Rev-Exp Region 6'!AP$62","v":{"v":0,"d":"$0.00"}},{"$f":"'MMA Rev-Exp Region 6'!AQ$62","v":{"v":0,"d":"$0.00"}},{"$f":"'MMA Rev-Exp Region 6'!AR$62","v":{"v":0,"d":"$0.00"}},{"$f":"'MMA Rev-Exp Region 6'!AS$62","v":{"v":0,"d":"$0.00"}},{"$f":"'MMA Rev-Exp Region 6'!AT$62","v":{"v":0,"d":"$0.00"}},{"$f":"'MMA Rev-Exp Region 6'!AU$62","v":{"v":0,"d":"$0.00"}},{"v":0,"d":"$0.00"}]
["MMA",null,null,{"$f":"Jurat!I$1","v":0},{"$f":"Jurat!D$33","v":"00:00:00"},"Q4","2017-12-31","Region 6","Operating Expense","Medical Benefits Expense","Other MMA Services","9.4","Other State Plan Services FFS",{"$f":"'MMA Rev-Exp Region 6'!AK$67","v":{"v":0,"d":"$0.00"}},{"$f":"'MMA Rev-Exp Region 6'!AL$67","v":{"v":0,"d":"$0.00"}},{"$f":"'MMA Rev-Exp Region 6'!AM$67","v":{"v":0,"d":"$0.00"}},{"$f":"'MMA Rev-Exp Region 6'!AN$67","v":{"v":0,"d":"$0.00"}},{"$f":"'MMA Rev-Exp Region 6'!AO$67","v":{"v":0,"d":"$0.00"}},{"$f":"'MMA Rev-Exp Region 6'!AP$67","v":{"v":0,"d":"$0.00"}},{"$f":"'MMA Rev-Exp Region 6'!AQ$67","v":{"v":0,"d":"$0.00"}},{"$f":"'MMA Rev-Exp Region 6'!AR$67","v":{"v":0,"d":"$0.00"}},{"$f":"'MMA Rev-Exp Region 6'!AS$67","v":{"v":0,"d":"$0.00"}},{"$f":"'MMA Rev-Exp Region 6'!AT$67","v":{"v":0,"d":"$0.00"}},{"$f":"'MMA Rev-Exp Region 6'!AU$67","v":{"v":0,"d":"$0.00"}},{"v":0,"d":"$0.00"}]
["MMA",null,null,{"$f":"Jurat!I$1","v":0},{"$f":"Jurat!D$33","v":"00:00:00"},"Q4","2017-12-31","Region 6","Operating Expense","Medical Benefits Expense","Other MMA Services","9.7","Other Services Settlements",{"$f":"'MMA Rev-Exp Region 6'!AK$70","v":{"v":0,"d":"$0.00"}},{"$f":"'MMA Rev-Exp Region 6'!AL$70","v":{"v":0,"d":"$0.00"}},{"$f":"'MMA Rev-Exp Region 6'!AM$70","v":{"v":0,"d":"$0.00"}},{"$f":"'MMA Rev-Exp Region 6'!AN$70","v":{"v":0,"d":"$0.00"}},{"$f":"'MMA Rev-Exp Region 6'!AO$70","v":{"v":0,"d":"$0.00"}},{"$f":"'MMA Rev-Exp Region 6'!AP$70","v":{"v":0,"d":"$0.00"}},{"$f":"'MMA Rev-Exp Region 6'!AQ$70","v":{"v":0,"d":"$0.00"}},{"$f":"'MMA Rev-Exp Region 6'!AR$70","v":{"v":0,"d":"$0.00"}},{"$f":"'MMA Rev-Exp Region 6'!AS$70","v":{"v":0,"d":"$0.00"}},{"$f":"'MMA Rev-Exp Region 6'!AT$70","v":{"v":0,"d":"$0.00"}},{"$f":"'MMA Rev-Exp Region 6'!AU$70","v":{"v":0,"d":"$0.00"}},{"v":0,"d":"$0.00"}]
["MMA",null,null,{"$f":"Jurat!I$1","v":0},{"$f":"Jurat!D$33","v":"00:00:00"},"Q4","2017-12-31","Region 6","Operating Expense","Medical Benefits Expense","Expanded Benefits","10.4","Expanded Benefits Settlements",{"$f":"'MMA Rev-Exp Region 6'!AK$75","v":{"v":0,"d":"$0.00"}},{"$f":"'MMA Rev-Exp Region 6'!AL$75","v":{"v":0,"d":"$0.00"}},{"$f":"'MMA Rev-Exp Region 6'!AM$75","v":{"v":0,"d":"$0.00"}},{"$f":"'MMA Rev-Exp Region 6'!AN$75","v":{"v":0,"d":"$0.00"}},{"$f":"'MMA Rev-Exp Region 6'!AO$75","v":{"v":0,"d":"$0.00"}},{"$f":"'MMA Rev-Exp Region 6'!AP$75","v":{"v":0,"d":"$0.00"}},{"$f":"'MMA Rev-Exp Region 6'!AQ$75","v":{"v":0,"d":"$0.00"}},{"$f":"'MMA Rev-Exp Region 6'!AR$75","v":{"v":0,"d":"$0.00"}},{"$f":"'MMA Rev-Exp Region 6'!AS$75","v":{"v":0,"d":"$0.00"}},{"$f":"'MMA Rev-Exp Region 6'!AT$75","v":{"v":0,"d":"$0.00"}},{"$f":"'MMA Rev-Exp Region 6'!AU$75","v":{"v":0,"d":"$0.00"}},{"v":0,"d":"$0.00"}]
["MMA",null,null,{"$f":"Jurat!I$1","v":0},{"$f":"Jurat!D$33","v":"00:00:00"},"Q4","2017-12-31","Region 6","Operating Expense","Medical Benefits Expense","Other Medical","11.8","Reinsurance Premiums",{"$f":"'MMA Rev-Exp Region 6'!AK$84","v":{"v":0,"d":"$0.00"}},{"$f":"'MMA Rev-Exp Region 6'!AL$84","v":{"v":0,"d":"$0.00"}},{"$f":"'MMA Rev-Exp Region 6'!AM$84","v":{"v":0,"d":"$0.00"}},{"$f":"'MMA Rev-Exp Region 6'!AN$84","v":{"v":0,"d":"$0.00"}},{"$f":"'MMA Rev-Exp Region 6'!AO$84","v":{"v":0,"d":"$0.00"}},{"$f":"'MMA Rev-Exp Region 6'!AP$84","v":{"v":0,"d":"$0.00"}},{"$f":"'MMA Rev-Exp Region 6'!AQ$84","v":{"v":0,"d":"$0.00"}},{"$f":"'MMA Rev-Exp Region 6'!AR$84","v":{"v":0,"d":"$0.00"}},{"$f":"'MMA Rev-Exp Region 6'!AS$84","v":{"v":0,"d":"$0.00"}},{"$f":"'MMA Rev-Exp Region 6'!AT$84","v":{"v":0,"d":"$0.00"}},{"$f":"'MMA Rev-Exp Region 6'!AU$84","v":{"v":0,"d":"$0.00"}},{"v":0,"d":"$0.00"}]
["MMA",null,null,{"$f":"Jurat!I$1","v":0},{"$f":"Jurat!D$33","v":"00:00:00"},"Q4","2017-12-31","Region 6","Operating Expense","Administrative Expense","Administrative","12.2","Administrative Services",{"$f":"'MMA Rev-Exp Region 6'!AK$91","v":{"v":0,"d":"$0.00"}},{"v":0,"d":"$0.00"},{"v":0,"d":"$0.00"},{"v":0,"d":"$0.00"},{"v":0,"d":"$0.00"},{"v":0,"d":"$0.00"},{"v":0,"d":"$0.00"},{"v":0,"d":"$0.00"},{"v":0,"d":"$0.00"},{"v":0,"d":"$0.00"},{"v":0,"d":"$0.00"},{"v":0,"d":"$0.00"}]
["MMA",null,null,{"$f":"Jurat!I$1","v":0},{"$f":"Jurat!D$33","v":"00:00:00"},"Q4","2017-12-31","Region 6","Operating Expense","Administrative Expense","Administrative","12.3","Information Systems",{"$f":"'MMA Rev-Exp Region 6'!AK$92","v":{"v":0,"d":"$0.00"}},{"v":0,"d":"$0.00"},{"v":0,"d":"$0.00"},{"v":0,"d":"$0.00"},{"v":0,"d":"$0.00"},{"v":0,"d":"$0.00"},{"v":0,"d":"$0.00"},{"v":0,"d":"$0.00"},{"v":0,"d":"$0.00"},{"v":0,"d":"$0.00"},{"v":0,"d":"$0.00"},{"v":0,"d":"$0.00"}]
["MMA",null,null,{"$f":"Jurat!I$1","v":0},{"$f":"Jurat!D$33","v":"00:00:00"},"Q4","2017-12-31","Region 6","Operating Expense","Administrative Expense","Administrative","12.6","Compliance/Regulatory",{"$f":"'MMA Rev-Exp Region 6'!AK$95","v":{"v":0,"d":"$0.00"}},{"v":0,"d":"$0.00"},{"v":0,"d":"$0.00"},{"v":0,"d":"$0.00"},{"v":0,"d":"$0.00"},{"v":0,"d":"$0.00"},{"v":0,"d":"$0.00"},{"v":0,"d":"$0.00"},{"v":0,"d":"$0.00"},{"v":0,"d":"$0.00"},{"v":0,"d":"$0.00"},{"v":0,"d":"$0.00"}]
["MMA",null,null,{"$f":"Jurat!I$1","v":0},{"$f":"Jurat!D$33","v":"00:00:00"},"Q4","2017-12-31","Region 6","Operating Expense","Taxes & Fees","Taxes & Fees","13.2","Department of Insurance Assessments",{"$f":"'MMA Rev-Exp Region 6'!AK$98","v":{"v":0,"d":"$0.00"}},{"v":0,"d":"$0.00"},{"v":0,"d":"$0.00"},{"v":0,"d":"$0.00"},{"v":0,"d":"$0.00"},{"v":0,"d":"$0.00"},{"v":0,"d":"$0.00"},{"v":0,"d":"$0.00"},{"v":0,"d":"$0.00"},{"v":0,"d":"$0.00"},{"v":0,"d":"$0.00"},{"v":0,"d":"$0.00"}]
["MMA",null,null,{"$f":"Jurat!I$1","v":0},{"$f":"Jurat!D$33","v":"00:00:00"},"Q1","2017-03-31","Region 7","Operating Revenue","Capitation","Capitation",1.1,"Capitation",{"$f":"'MMA Rev-Exp Region 7'!D$11","v":{"v":0,"d":"$0.00"}},{"$f":"'MMA Rev-Exp Region 7'!E$11","v":{"v":0,"d":"$0.00"}},{"$f":"'MMA Rev-Exp Region 7'!F$11","v":{"v":0,"d":"$0.00"}},{"$f":"'MMA Rev-Exp Region 7'!G$11","v":{"v":0,"d":"$0.00"}},{"$f":"'MMA Rev-Exp Region 7'!H$11","v":{"v":0,"d":"$0.00"}},{"$f":"'MMA Rev-Exp Region 7'!I$11","v":{"v":0,"d":"$0.00"}},{"$f":"'MMA Rev-Exp Region 7'!J$11","v":{"v":0,"d":"$0.00"}},{"$f":"'MMA Rev-Exp Region 7'!K$11","v":{"v":0,"d":"$0.00"}},{"$f":"'MMA Rev-Exp Region 7'!L$11","v":{"v":0,"d":"$0.00"}},{"$f":"'MMA Rev-Exp Region 7'!M$11","v":{"v":0,"d":"$0.00"}},{"$f":"'MMA Rev-Exp Region 7'!N$11","v":{"v":0,"d":"$0.00"}},{"v":0,"d":"$0.00"}]
["MMA",null,null,{"$f":"Jurat!I$1","v":0},{"$f":"Jurat!D$33","v":"00:00:00"},"Q1","2017-03-31","Region 7","Operating Revenue","Kick Payments","Kick Payments - Maternity","1.4.1","Maternity Kick Payments",{"$f":"'MMA Rev-Exp Region 7'!D$14","v":{"v":0,"d":"$0.00"}},{"$f":"'MMA Rev-Exp Region 7'!E$14","v":{"v":0,"d":"$0.00"}},{"$f":"'MMA Rev-Exp Region 7'!F$14","v":{"v":0,"d":"$0.00"}},{"$f":"'MMA Rev-Exp Region 7'!G$14","v":{"v":0,"d":"$0.00"}},{"$f":"'MMA Rev-Exp Region 7'!H$14","v":{"v":0,"d":"$0.00"}},{"$f":"'MMA Rev-Exp Region 7'!I$14","v":{"v":0,"d":"$0.00"}},{"$f":"'MMA Rev-Exp Region 7'!J$14","v":{"v":0,"d":"$0.00"}},{"$f":"'MMA Rev-Exp Region 7'!K$14","v":{"v":0,"d":"$0.00"}},{"$f":"'MMA Rev-Exp Region 7'!L$14","v":{"v":0,"d":"$0.00"}},{"$f":"'MMA Rev-Exp Region 7'!M$14","v":{"v":0,"d":"$0.00"}},{"$f":"'MMA Rev-Exp Region 7'!N$14","v":{"v":0,"d":"$0.00"}},{"v":0,"d":"$0.00"}]
["MMA",null,null,{"$f":"Jurat!I$1","v":0},{"$f":"Jurat!D$33","v":"00:00:00"},"Q1","2017-03-31","Region 7","Operating Expense","Medical Benefits Expense","Hospital Services",2.2,"Ending IBNP for Inpatient Hospital Services",{"$f":"'MMA Rev-Exp Region 7'!D$21","v":{"v":0,"d":"$0.00"}},{"$f":"'MMA Rev-Exp Region 7'!E$21","v":{"v":0,"d":"$0.00"}},{"$f":"'MMA Rev-Exp Region 7'!F$21","v":{"v":0,"d":"$0.00"}},{"$f":"'MMA Rev-Exp Region 7'!G$21","v":{"v":0,"d":"$0.00"}},{"$f":"'MMA Rev-Exp Region 7'!H$21","v":{"v":0,"d":"$0.00"}},{"$f":"'MMA Rev-Exp Region 7'!I$21","v":{"v":0,"d":"$0.00"}},{"$f":"'MMA Rev-Exp Region 7'!J$21","v":{"v":0,"d":"$0.00"}},{"$f":"'MMA Rev-Exp Region 7'!K$21","v":{"v":0,"d":"$0.00"}},{"$f":"'MMA Rev-Exp Region 7'!L$21","v":{"v":0,"d":"$0.00"}},{"$f":"'MMA Rev-Exp Region 7'!M$21","v":{"v":0,"d":"$0.00"}},{"$f":"'MMA Rev-Exp Region 7'!N$21","v":{"v":0,"d":"$0.00"}},{"v":0,"d":"$0.00"}]
["MMA",null,null,{"$f":"Jurat!I$1","v":0},{"$f":"Jurat!D$33","v":"00:00:00"},"Q1","2017-03-31","Region 7","Operating Expense","Medical Benefits Expense","Hospital Services",2.5,"Ending IBNP for Outpatient Hospital Services",{"$f":"'MMA Rev-Exp Region 7'!D$24","v":{"v":0,"d":"$0.00"}},{"$f":"'MMA Rev-Exp Region 7'!E$24","v":{"v":0,"d":"$0.00"}},{"$f":"'MMA Rev-Exp Region 7'!F$24","v":{"v":0,"d":"$0.00"}},{"$f":"'MMA Rev-Exp Region 7'!G$24","v":{"v":0,"d":"$0.00"}},{"$f":"'MMA Rev-Exp Region 7'!H$24","v":{"v":0,"d":"$0.00"}},{"$f":"'MMA Rev-Exp Region 7'!I$24","v":{"v":0,"d":"$0.00"}},{"$f":"'MMA Rev-Exp Region 7'!J$24","v":{"v":0,"d":"$0.00"}},{"$f":"'MMA Rev-Exp Region 7'!K$24","v":{"v":0,"d":"$0.00"}},{"$f":"'MMA Rev-Exp Region 7'!L$24","v":{"v":0,"d":"$0.00"}},{"$f":"'MMA Rev-Exp Region 7'!M$24","v":{"v":0,"d":"$0.00"}},{"$f":"'MMA Rev-Exp Region 7'!N$24","v":{"v":0,"d":"$0.00"}},{"v":0,"d":"$0.00"}]
["MMA",null,null,{"$f":"Jurat!I$1","v":0},{"$f":"Jurat!D$33","v":"00:00:00"},"Q1","2017-03-31","Region 7","Operating Expense","Medical Benefits Expense","Hospital Services","2.7.1","Transplant Services",{"$f":"'MMA Rev-Exp Region 7'!D$27","v":{"v":0,"d":"$0.00"}},{"$f":"'MMA Rev-Exp Region 7'!E$27","v":{"v":0,"d":"$0.00"}},{"$f":"'MMA Rev-Exp Region 7'!F$27","v":{"v":0,"d":"$0.00"}},{"$f":"'MMA Rev-Exp Region 7'!G$27","v":{"v":0,"d":"$0.00"}},{"$f":"'MMA Rev-Exp Region 7'!H$27","v":{"v":0,"d":"$0.00"}},{"$f":"'MMA Rev-Exp Region 7'!I$27","v":{"v":0,"d":"$0.00"}},{"$f":"'MMA Rev-Exp Region 7'!J$27","v":{"v":0,"d":"$0.00"}},{"$f":"'MMA Rev-Exp Region 7'!K$27","v":{"v":0,"d":"$0.00"}},{"$f":"'MMA Rev-Exp Region 7'!L$27","v":{"v":0,"d":"$0.00"}},{"$f":"'MMA Rev-Exp Region 7'!M$27","v":{"v":0,"d":"$0.00"}},{"$f":"'MMA Rev-Exp Region 7'!N$27","v":{"v":0,"d":"$0.00"}},{"v":0,"d":"$0.00"}]
["MMA",null,null,{"$f":"Jurat!I$1","v":0},{"$f":"Jurat!D$33","v":"00:00:00"},"Q1","2017-03-31","Region 7","Operating Expense","Medical Benefits Expense","Professional Services",3.1,"Primary Care FFS",{"$f":"'MMA Rev-Exp Region 7'!D$29","v":{"v":0,"d":"$0.00"}},{"$f":"'MMA Rev-Exp Region 7'!E$29","v":{"v":0,"d":"$0.00"}},{"$f":"'MMA Rev-Exp Region 7'!F$29","v":{"v":0,"d":"$0.00"}},{"$f":"'MMA Rev-Exp Region 7'!G$29","v":{"v":0,"d":"$0.00"}},{"$f":"'MMA Rev-Exp Region 7'!H$29","v":{"v":0,"d":"$0.00"}},{"$f":"'MMA Rev-Exp Region 7'!I$29","v":{"v":0,"d":"$0.00"}},{"$f":"'MMA Rev-Exp Region 7'!J$29","v":{"v":0,"d":"$0.00"}},{"$f":"'MMA Rev-Exp Region 7'!K$29","v":{"v":0,"d":"$0.00"}},{"$f":"'MMA Rev-Exp Region 7'!L$29","v":{"v":0,"d":"$0.00"}},{"$f":"'MMA Rev-Exp Region 7'!M$29","v":{"v":0,"d":"$0.00"}},{"$f":"'MMA Rev-Exp Region 7'!N$29","v":{"v":0,"d":"$0.00"}},{"v":0,"d":"$0.00"}]
["MMA",null,null,{"$f":"Jurat!I$1","v":0},{"$f":"Jurat!D$33","v":"00:00:00"},"Q1","2017-03-31","Region 7","Operating Expense","Medical Benefits Expense","Professional Services","3.4","§ 1202 PCP Payments to providers",{"$f":"'MMA Rev-Exp Region 7'!D$32","v":{"v":0,"d":"$0.00"}},{"$f":"'MMA Rev-Exp Region 7'!E$32","v":{"v":0,"d":"$0.00"}},{"$f":"'MMA Rev-Exp Region 7'!F$32","v":{"v":0,"d":"$0.00"}},{"$f":"'MMA Rev-Exp Region 7'!G$32","v":{"v":0,"d":"$0.00"}},{"$f":"'MMA Rev-Exp Region 7'!H$32","v":{"v":0,"d":"$0.00"}},{"$f":"'MMA Rev-Exp Region 7'!I$32","v":{"v":0,"d":"$0.00"}},{"$f":"'MMA Rev-Exp Region 7'!J$32","v":{"v":0,"d":"$0.00"}},{"$f":"'MMA Rev-Exp Region 7'!K$32","v":{"v":0,"d":"$0.00"}},{"$f":"'MMA Rev-Exp Region 7'!L$32","v":{"v":0,"d":"$0.00"}},{"$f":"'MMA Rev-Exp Region 7'!M$32","v":{"v":0,"d":"$0.00"}},{"$f":"'MMA Rev-Exp Region 7'!N$32","v":{"v":0,"d":"$0.00"}},{"v":0,"d":"$0.00"}]
["MMA",null,null,{"$f":"Jurat!I$1","v":0},{"$f":"Jurat!D$33","v":"00:00:00"},"Q1","2017-03-31","Region 7","Operating Expense","Medical Benefits Expense","Maternity Services","4.1.1","Maternity Services",{"$f":"'MMA Rev-Exp Region 7'!D$37","v":{"v":0,"d":"$0.00"}},{"$f":"'MMA Rev-Exp Region 7'!E$37","v":{"v":0,"d":"$0.00"}},{"$f":"'MMA Rev-Exp Region 7'!F$37","v":{"v":0,"d":"$0.00"}},{"$f":"'MMA Rev-Exp Region 7'!G$37","v":{"v":0,"d":"$0.00"}},{"$f":"'MMA Rev-Exp Region 7'!H$37","v":{"v":0,"d":"$0.00"}},{"$f":"'MMA Rev-Exp Region 7'!I$37","v":{"v":0,"d":"$0.00"}},{"$f":"'MMA Rev-Exp Region 7'!J$37","v":{"v":0,"d":"$0.00"}},{"$f":"'MMA Rev-Exp Region 7'!K$37","v":{"v":0,"d":"$0.00"}},{"$f":"'MMA Rev-Exp Region 7'!L$37","v":{"v":0,"d":"$0.00"}},{"$f":"'MMA Rev-Exp Region 7'!M$37","v":{"v":0,"d":"$0.00"}},{"$f":"'MMA Rev-Exp Region 7'!N$37","v":{"v":0,"d":"$0.00"}},{"v":0,"d":"$0.00"}]
["MMA",null,null,{"$f":"Jurat!I$1","v":0},{"$f":"Jurat!D$33","v":"00:00:00"},"Q1","2017-03-31","Region 7","Operating Expense","Medical Benefits Expense","Maternity Services","4.3.1","Maternity Settlements",{"$f":"'MMA Rev-Exp Region 7'!D$39","v":{"v":0,"d":"$0.00"}},{"$f":"'MMA Rev-Exp Region 7'!E$39","v":{"v":0,"d":"$0.00"}},{"$f":"'MMA Rev-Exp Region 7'!F$39","v":{"v":0,"d":"$0.00"}},{"$f":"'MMA Rev-Exp Region 7'!G$39","v":{"v":0,"d":"$0.00"}},{"$f":"'MMA Rev-Exp Region 7'!H$39","v":{"v":0,"d":"$0.00"}},{"$f":"'MMA Rev-Exp Region 7'!I$39","v":{"v":0,"d":"$0.00"}},{"$f":"'MMA Rev-Exp Region 7'!J$39","v":{"v":0,"d":"$0.00"}},{"$f":"'MMA Rev-Exp Region 7'!K$39","v":{"v":0,"d":"$0.00"}},{"$f":"'MMA Rev-Exp Region 7'!L$39","v":{"v":0,"d":"$0.00"}},{"$f":"'MMA Rev-Exp Region 7'!M$39","v":{"v":0,"d":"$0.00"}},{"$f":"'MMA Rev-Exp Region 7'!N$39","v":{"v":0,"d":"$0.00"}},{"v":0,"d":"$0.00"}]
["MMA",null,null,{"$f":"Jurat!I$1","v":0},{"$f":"Jurat!D$33","v":"00:00:00"},"Q1","2017-03-31","Region 7","Operating Expense","Medical Benefits Expense","Mental Health Services",5.3,"Ending IBNP for Mental Health & Substance Abuse",{"$f":"'MMA Rev-Exp Region 7'!D$43","v":{"v":0,"d":"$0.00"}},{"$f":"'MMA Rev-Exp Region 7'!E$43","v":{"v":0,"d":"$0.00"}},{"$f":"'MMA Rev-Exp Region 7'!F$43","v":{"v":0,"d":"$0.00"}},{"$f":"'MMA Rev-Exp Region 7'!G$43","v":{"v":0,"d":"$0.00"}},{"$f":"'MMA Rev-Exp Region 7'!H$43","v":{"v":0,"d":"$0.00"}},{"$f":"'MMA Rev-Exp Region 7'!I$43","v":{"v":0,"d":"$0.00"}},{"$f":"'MMA Rev-Exp Region 7'!J$43","v":{"v":0,"d":"$0.00"}},{"$f":"'MMA Rev-Exp Region 7'!K$43","v":{"v":0,"d":"$0.00"}},{"$f":"'MMA Rev-Exp Region 7'!L$43","v":{"v":0,"d":"$0.00"}},{"$f":"'MMA Rev-Exp Region 7'!M$43","v":{"v":0,"d":"$0.00"}},{"$f":"'MMA Rev-Exp Region 7'!N$43","v":{"v":0,"d":"$0.00"}},{"v":0,"d":"$0.00"}]
["MMA",null,null,{"$f":"Jurat!I$1","v":0},{"$f":"Jurat!D$33","v":"00:00:00"},"Q1","2017-03-31","Region 7","Operating Expense","Medical Benefits Expense","Dental Services",6.3,"Ending IBNP for Dental Services",{"$f":"'MMA Rev-Exp Region 7'!D$48","v":{"v":0,"d":"$0.00"}},{"$f":"'MMA Rev-Exp Region 7'!E$48","v":{"v":0,"d":"$0.00"}},{"$f":"'MMA Rev-Exp Region 7'!F$48","v":{"v":0,"d":"$0.00"}},{"$f":"'MMA Rev-Exp Region 7'!G$48","v":{"v":0,"d":"$0.00"}},{"$f":"'MMA Rev-Exp Region 7'!H$48","v":{"v":0,"d":"$0.00"}},{"$f":"'MMA Rev-Exp Region 7'!I$48","v":{"v":0,"d":"$0.00"}},{"$f":"'MMA Rev-Exp Region 7'!J$48","v":{"v":0,"d":"$0.00"}},{"$f":"'MMA Rev-Exp Region 7'!K$48","v":{"v":0,"d":"$0.00"}},{"$f":"'MMA Rev-Exp Region 7'!L$48","v":{"v":0,"d":"$0.00"}},{"$f":"'MMA Rev-Exp Region 7'!M$48","v":{"v":0,"d":"$0.00"}},{"$f":"'MMA Rev-Exp Region 7'!N$48","v":{"v":0,"d":"$0.00"}},{"v":0,"d":"$0.00"}]
["MMA",null,null,{"$f":"Jurat!I$1","v":0},{"$f":"Jurat!D$33","v":"00:00:00"},"Q1","2017-03-31","Region 7","Operating Expense","Medical Benefits Expense","Transportation Services",7.2,"Transportation Subcapitation",{"$f":"'MMA Rev-Exp Region 7'!D$52","v":{"v":0,"d":"$0.00"}},{"$f":"'MMA Rev-Exp Region 7'!E$52","v":{"v":0,"d":"$0.00"}},{"$f":"'MMA Rev-Exp Region 7'!F$52","v":{"v":0,"d":"$0.00"}},{"$f":"'MMA Rev-Exp Region 7'!G$52","v":{"v":0,"d":"$0.00"}},{"$f":"'MMA Rev-Exp Region 7'!H$52","v":{"v":0,"d":"$0.00"}},{"$f":"'MMA Rev-Exp Region 7'!I$52","v":{"v":0,"d":"$0.00"}},{"$f":"'MMA Rev-Exp Region 7'!J$52","v":{"v":0,"d":"$0.00"}},{"$f":"'MMA Rev-Exp Region 7'!K$52","v":{"v":0,"d":"$0.00"}},{"$f":"'MMA Rev-Exp Region 7'!L$52","v":{"v":0,"d":"$0.00"}},{"$f":"'MMA Rev-Exp Region 7'!M$52","v":{"v":0,"d":"$0.00"}},{"$f":"'MMA Rev-Exp Region 7'!N$52","v":{"v":0,"d":"$0.00"}},{"v":0,"d":"$0.00"}]
["MMA",null,null,{"$f":"Jurat!I$1","v":0},{"$f":"Jurat!D$33","v":"00:00:00"},"Q1","2017-03-31","Region 7","Operating Expense","Medical Benefits Expense","Pharmacy Services",8.1,"Prescription Drugs FFS",{"$f":"'MMA Rev-Exp Region 7'!D$56","v":{"v":0,"d":"$0.00"}},{"$f":"'MMA Rev-Exp Region 7'!E$56","v":{"v":0,"d":"$0.00"}},{"$f":"'MMA Rev-Exp Region 7'!F$56","v":{"v":0,"d":"$0.00"}},{"$f":"'MMA Rev-Exp Region 7'!G$56","v":{"v":0,"d":"$0.00"}},{"$f":"'MMA Rev-Exp Region 7'!H$56","v":{"v":0,"d":"$0.00"}},{"$f":"'MMA Rev-Exp Region 7'!I$56","v":{"v":0,"d":"$0.00"}},{"$f":"'MMA Rev-Exp Region 7'!J$56","v":{"v":0,"d":"$0.00"}},{"$f":"'MMA Rev-Exp Region 7'!K$56","v":{"v":0,"d":"$0.00"}},{"$f":"'MMA Rev-Exp Region 7'!L$56","v":{"v":0,"d":"$0.00"}},{"$f":"'MMA Rev-Exp Region 7'!M$56","v":{"v":0,"d":"$0.00"}},{"$f":"'MMA Rev-Exp Region 7'!N$56","v":{"v":0,"d":"$0.00"}},{"v":0,"d":"$0.00"}]
["MMA",null,null,{"$f":"Jurat!I$1","v":0},{"$f":"Jurat!D$33","v":"00:00:00"},"Q1","2017-03-31","Region 7","Operating Expense","Medical Benefits Expense","Pharmacy Services","8.2","Hepatitis C Prescription Drug FFS",{"$f":"'MMA Rev-Exp Region 7'!D$57","v":{"v":0,"d":"$0.00"}},{"$f":"'MMA Rev-Exp Region 7'!E$57","v":{"v":0,"d":"$0.00"}},{"$f":"'MMA Rev-Exp Region 7'!F$57","v":{"v":0,"d":"$0.00"}},{"$f":"'MMA Rev-Exp Region 7'!G$57","v":{"v":0,"d":"$0.00"}},{"$f":"'MMA Rev-Exp Region 7'!H$57","v":{"v":0,"d":"$0.00"}},{"$f":"'MMA Rev-Exp Region 7'!I$57","v":{"v":0,"d":"$0.00"}},{"$f":"'MMA Rev-Exp Region 7'!J$57","v":{"v":0,"d":"$0.00"}},{"$f":"'MMA Rev-Exp Region 7'!K$57","v":{"v":0,"d":"$0.00"}},{"$f":"'MMA Rev-Exp Region 7'!L$57","v":{"v":0,"d":"$0.00"}},{"$f":"'MMA Rev-Exp Region 7'!M$57","v":{"v":0,"d":"$0.00"}},{"$f":"'MMA Rev-Exp Region 7'!N$57","v":{"v":0,"d":"$0.00"}},{"v":0,"d":"$0.00"}]
["MMA",null,null,{"$f":"Jurat!I$1","v":0},{"$f":"Jurat!D$33","v":"00:00:00"},"Q1","2017-03-31","Region 7","Operating Expense","Medical Benefits Expense","Pharmacy Services","8.5","Ending accrual for Rebates receivable",{"$f":"'MMA Rev-Exp Region 7'!D$60","v":{"v":0,"d":"$0.00"}},{"$f":"'MMA Rev-Exp Region 7'!E$60","v":{"v":0,"d":"$0.00"}},{"$f":"'MMA Rev-Exp Region 7'!F$60","v":{"v":0,"d":"$0.00"}},{"$f":"'MMA Rev-Exp Region 7'!G$60","v":{"v":0,"d":"$0.00"}},{"$f":"'MMA Rev-Exp Region 7'!H$60","v":{"v":0,"d":"$0.00"}},{"$f":"'MMA Rev-Exp Region 7'!I$60","v":{"v":0,"d":"$0.00"}},{"$f":"'MMA Rev-Exp Region 7'!J$60","v":{"v":0,"d":"$0.00"}},{"$f":"'MMA Rev-Exp Region 7'!K$60","v":{"v":0,"d":"$0.00"}},{"$f":"'MMA Rev-Exp Region 7'!L$60","v":{"v":0,"d":"$0.00"}},{"$f":"'MMA Rev-Exp Region 7'!M$60","v":{"v":0,"d":"$0.00"}},{"$f":"'MMA Rev-Exp Region 7'!N$60","v":{"v":0,"d":"$0.00"}},{"v":0,"d":"$0.00"}]
["MMA",null,null,{"$f":"Jurat!I$1","v":0},{"$f":"Jurat!D$33","v":"00:00:00"},"Q1","2017-03-31","Region 7","Operating Expense","Medical Benefits Expense","Other MMA Services","9.2","Hospice FFS",{"$f":"'MMA Rev-Exp Region 7'!D$65","v":{"v":0,"d":"$0.00"}},{"$f":"'MMA Rev-Exp Region 7'!E$65","v":{"v":0,"d":"$0.00"}},{"$f":"'MMA Rev-Exp Region 7'!F$65","v":{"v":0,"d":"$0.00"}},{"$f":"'MMA Rev-Exp Region 7'!G$65","v":{"v":0,"d":"$0.00"}},{"$f":"'MMA Rev-Exp Region 7'!H$65","v":{"v":0,"d":"$0.00"}},{"$f":"'MMA Rev-Exp Region 7'!I$65","v":{"v":0,"d":"$0.00"}},{"$f":"'MMA Rev-Exp Region 7'!J$65","v":{"v":0,"d":"$0.00"}},{"$f":"'MMA Rev-Exp Region 7'!K$65","v":{"v":0,"d":"$0.00"}},{"$f":"'MMA Rev-Exp Region 7'!L$65","v":{"v":0,"d":"$0.00"}},{"$f":"'MMA Rev-Exp Region 7'!M$65","v":{"v":0,"d":"$0.00"}},{"$f":"'MMA Rev-Exp Region 7'!N$65","v":{"v":0,"d":"$0.00"}},{"v":0,"d":"$0.00"}]
["MMA",null,null,{"$f":"Jurat!I$1","v":0},{"$f":"Jurat!D$33","v":"00:00:00"},"Q1","2017-03-31","Region 7","Operating Expense","Medical Benefits Expense","Other MMA Services","9.4","Other State Plan Services FFS",{"$f":"'MMA Rev-Exp Region 7'!D$67","v":{"v":0,"d":"$0.00"}},{"$f":"'MMA Rev-Exp Region 7'!E$67","v":{"v":0,"d":"$0.00"}},{"$f":"'MMA Rev-Exp Region 7'!F$67","v":{"v":0,"d":"$0.00"}},{"$f":"'MMA Rev-Exp Region 7'!G$67","v":{"v":0,"d":"$0.00"}},{"$f":"'MMA Rev-Exp Region 7'!H$67","v":{"v":0,"d":"$0.00"}},{"$f":"'MMA Rev-Exp Region 7'!I$67","v":{"v":0,"d":"$0.00"}},{"$f":"'MMA Rev-Exp Region 7'!J$67","v":{"v":0,"d":"$0.00"}},{"$f":"'MMA Rev-Exp Region 7'!K$67","v":{"v":0,"d":"$0.00"}},{"$f":"'MMA Rev-Exp Region 7'!L$67","v":{"v":0,"d":"$0.00"}},{"$f":"'MMA Rev-Exp Region 7'!M$67","v":{"v":0,"d":"$0.00"}},{"$f":"'MMA Rev-Exp Region 7'!N$67","v":{"v":0,"d":"$0.00"}},{"v":0,"d":"$0.00"}]
["MMA",null,null,{"$f":"Jurat!I$1","v":0},{"$f":"Jurat!D$33","v":"00:00:00"},"Q1","2017-03-31","Region 7","Operating Expense","Medical Benefits Expense","Other MMA Services","9.7","Other Services Settlements",{"$f":"'MMA Rev-Exp Region 7'!D$70","v":{"v":0,"d":"$0.00"}},{"$f":"'MMA Rev-Exp Region 7'!E$70","v":{"v":0,"d":"$0.00"}},{"$f":"'MMA Rev-Exp Region 7'!F$70","v":{"v":0,"d":"$0.00"}},{"$f":"'MMA Rev-Exp Region 7'!G$70","v":{"v":0,"d":"$0.00"}},{"$f":"'MMA Rev-Exp Region 7'!H$70","v":{"v":0,"d":"$0.00"}},{"$f":"'MMA Rev-Exp Region 7'!I$70","v":{"v":0,"d":"$0.00"}},{"$f":"'MMA Rev-Exp Region 7'!J$70","v":{"v":0,"d":"$0.00"}},{"$f":"'MMA Rev-Exp Region 7'!K$70","v":{"v":0,"d":"$0.00"}},{"$f":"'MMA Rev-Exp Region 7'!L$70","v":{"v":0,"d":"$0.00"}},{"$f":"'MMA Rev-Exp Region 7'!M$70","v":{"v":0,"d":"$0.00"}},{"$f":"'MMA Rev-Exp Region 7'!N$70","v":{"v":0,"d":"$0.00"}},{"v":0,"d":"$0.00"}]
["MMA",null,null,{"$f":"Jurat!I$1","v":0},{"$f":"Jurat!D$33","v":"00:00:00"},"Q1","2017-03-31","Region 7","Operating Expense","Medical Benefits Expense","Expanded Benefits","10.4","Expanded Benefits Settlements",{"$f":"'MMA Rev-Exp Region 7'!D$75","v":{"v":0,"d":"$0.00"}},{"$f":"'MMA Rev-Exp Region 7'!E$75","v":{"v":0,"d":"$0.00"}},{"$f":"'MMA Rev-Exp Region 7'!F$75","v":{"v":0,"d":"$0.00"}},{"$f":"'MMA Rev-Exp Region 7'!G$75","v":{"v":0,"d":"$0.00"}},{"$f":"'MMA Rev-Exp Region 7'!H$75","v":{"v":0,"d":"$0.00"}},{"$f":"'MMA Rev-Exp Region 7'!I$75","v":{"v":0,"d":"$0.00"}},{"$f":"'MMA Rev-Exp Region 7'!J$75","v":{"v":0,"d":"$0.00"}},{"$f":"'MMA Rev-Exp Region 7'!K$75","v":{"v":0,"d":"$0.00"}},{"$f":"'MMA Rev-Exp Region 7'!L$75","v":{"v":0,"d":"$0.00"}},{"$f":"'MMA Rev-Exp Region 7'!M$75","v":{"v":0,"d":"$0.00"}},{"$f":"'MMA Rev-Exp Region 7'!N$75","v":{"v":0,"d":"$0.00"}},{"v":0,"d":"$0.00"}]
["MMA",null,null,{"$f":"Jurat!I$1","v":0},{"$f":"Jurat!D$33","v":"00:00:00"},"Q1","2017-03-31","Region 7","Operating Expense","Medical Benefits Expense","Other Medical","11.8","Reinsurance Premiums",{"$f":"'MMA Rev-Exp Region 7'!D$84","v":{"v":0,"d":"$0.00"}},{"$f":"'MMA Rev-Exp Region 7'!E$84","v":{"v":0,"d":"$0.00"}},{"$f":"'MMA Rev-Exp Region 7'!F$84","v":{"v":0,"d":"$0.00"}},{"$f":"'MMA Rev-Exp Region 7'!G$84","v":{"v":0,"d":"$0.00"}},{"$f":"'MMA Rev-Exp Region 7'!H$84","v":{"v":0,"d":"$0.00"}},{"$f":"'MMA Rev-Exp Region 7'!I$84","v":{"v":0,"d":"$0.00"}},{"$f":"'MMA Rev-Exp Region 7'!J$84","v":{"v":0,"d":"$0.00"}},{"$f":"'MMA Rev-Exp Region 7'!K$84","v":{"v":0,"d":"$0.00"}},{"$f":"'MMA Rev-Exp Region 7'!L$84","v":{"v":0,"d":"$0.00"}},{"$f":"'MMA Rev-Exp Region 7'!M$84","v":{"v":0,"d":"$0.00"}},{"$f":"'MMA Rev-Exp Region 7'!N$84","v":{"v":0,"d":"$0.00"}},{"v":0,"d":"$0.00"}]
["MMA",null,null,{"$f":"Jurat!I$1","v":0},{"$f":"Jurat!D$33","v":"00:00:00"},"Q1","2017-03-31","Region 7","Operating Expense","Medical Benefits Expense","Other Medical","11.9","Reinsurance Recoveries",{"$f":"'MMA Rev-Exp Region 7'!D$85","v":{"v":0,"d":"$0.00"}},{"$f":"'MMA Rev-Exp Region 7'!E$85","v":{"v":0,"d":"$0.00"}},{"$f":"'MMA Rev-Exp Region 7'!F$85","v":{"v":0,"d":"$0.00"}},{"$f":"'MMA Rev-Exp Region 7'!G$85","v":{"v":0,"d":"$0.00"}},{"$f":"'MMA Rev-Exp Region 7'!H$85","v":{"v":0,"d":"$0.00"}},{"$f":"'MMA Rev-Exp Region 7'!I$85","v":{"v":0,"d":"$0.00"}},{"$f":"'MMA Rev-Exp Region 7'!J$85","v":{"v":0,"d":"$0.00"}},{"$f":"'MMA Rev-Exp Region 7'!K$85","v":{"v":0,"d":"$0.00"}},{"$f":"'MMA Rev-Exp Region 7'!L$85","v":{"v":0,"d":"$0.00"}},{"$f":"'MMA Rev-Exp Region 7'!M$85","v":{"v":0,"d":"$0.00"}},{"$f":"'MMA Rev-Exp Region 7'!N$85","v":{"v":0,"d":"$0.00"}},{"v":0,"d":"$0.00"}]
["MMA",null,null,{"$f":"Jurat!I$1","v":0},{"$f":"Jurat!D$33","v":"00:00:00"},"Q1","2017-03-31","Region 7","Operating Expense","Administrative Expense","Administrative","12.3","Information Systems",{"$f":"'MMA Rev-Exp Region 7'!D$92","v":{"v":0,"d":"$0.00"}},{"v":0,"d":"$0.00"},{"v":0,"d":"$0.00"},{"v":0,"d":"$0.00"},{"v":0,"d":"$0.00"},{"v":0,"d":"$0.00"},{"v":0,"d":"$0.00"},{"v":0,"d":"$0.00"},{"v":0,"d":"$0.00"},{"v":0,"d":"$0.00"},{"v":0,"d":"$0.00"},{"v":0,"d":"$0.00"}]
["MMA",null,null,{"$f":"Jurat!I$1","v":0},{"$f":"Jurat!D$33","v":"00:00:00"},"Q1","2017-03-31","Region 7","Operating Expense","Administrative Expense","Administrative","12.6","Compliance/Regulatory",{"$f":"'MMA Rev-Exp Region 7'!D$95","v":{"v":0,"d":"$0.00"}},{"v":0,"d":"$0.00"},{"v":0,"d":"$0.00"},{"v":0,"d":"$0.00"},{"v":0,"d":"$0.00"},{"v":0,"d":"$0.00"},{"v":0,"d":"$0.00"},{"v":0,"d":"$0.00"},{"v":0,"d":"$0.00"},{"v":0,"d":"$0.00"},{"v":0,"d":"$0.00"},{"v":0,"d":"$0.00"}]
["MMA",null,null,{"$f":"Jurat!I$1","v":0},{"$f":"Jurat!D$33","v":"00:00:00"},"Q1","2017-03-31","Region 7","Non-Operating Expense","Income Tax Expense","Income Tax Expense","16.0","Income Tax Expense",{"$f":"'MMA Rev-Exp Region 7'!D$106","v":{"v":0,"d":"$0.00"}},{"v":0,"d":"$0.00"},{"v":0,"d":"$0.00"},{"v":0,"d":"$0.00"},{"v":0,"d":"$0.00"},{"v":0,"d":"$0.00"},{"v":0,"d":"$0.00"},{"v":0,"d":"$0.00"},{"v":0,"d":"$0.00"},{"v":0,"d":"$0.00"},{"v":0,"d":"$0.00"},{"v":0,"d":"$0.00"}]
["MMA",null,null,{"$f":"Jurat!I$1","v":0},{"$f":"Jurat!D$33","v":"00:00:00"},"Q2","2017-06-30","Region 7","Operating Revenue","Kick Payments","Kick Payments - Transplant",1.2,"Transplant Kick Payments",{"$f":"'MMA Rev-Exp Region 7'!O$12","v":{"v":0,"d":"$0.00"}},{"$f":"'MMA Rev-Exp Region 7'!P$12","v":{"v":0,"d":"$0.00"}},{"$f":"'MMA Rev-Exp Region 7'!Q$12","v":{"v":0,"d":"$0.00"}},{"$f":"'MMA Rev-Exp Region 7'!R$12","v":{"v":0,"d":"$0.00"}},{"$f":"'MMA Rev-Exp Region 7'!S$12","v":{"v":0,"d":"$0.00"}},{"$f":"'MMA Rev-Exp Region 7'!T$12","v":{"v":0,"d":"$0.00"}},{"$f":"'MMA Rev-Exp Region 7'!U$12","v":{"v":0,"d":"$0.00"}},{"$f":"'MMA Rev-Exp Region 7'!V$12","v":{"v":0,"d":"$0.00"}},{"$f":"'MMA Rev-Exp Region 7'!W$12","v":{"v":0,"d":"$0.00"}},{"$f":"'MMA Rev-Exp Region 7'!X$12","v":{"v":0,"d":"$0.00"}},{"$f":"'MMA Rev-Exp Region 7'!Y$12","v":{"v":0,"d":"$0.00"}},{"v":0,"d":"$0.00"}]
["MMA",null,null,{"$f":"Jurat!I$1","v":0},{"$f":"Jurat!D$33","v":"00:00:00"},"Q2","2017-06-30","Region 7","Operating Revenue","Other Revenue","Other Revenue - 9010","1.5","ACA § 9010 related payments",{"$f":"'MMA Rev-Exp Region 7'!O$15","v":{"v":0,"d":"$0.00"}},{"$f":"'MMA Rev-Exp Region 7'!P$15","v":{"v":0,"d":"$0.00"}},{"$f":"'MMA Rev-Exp Region 7'!Q$15","v":{"v":0,"d":"$0.00"}},{"$f":"'MMA Rev-Exp Region 7'!R$15","v":{"v":0,"d":"$0.00"}},{"$f":"'MMA Rev-Exp Region 7'!S$15","v":{"v":0,"d":"$0.00"}},{"$f":"'MMA Rev-Exp Region 7'!T$15","v":{"v":0,"d":"$0.00"}},{"$f":"'MMA Rev-Exp Region 7'!U$15","v":{"v":0,"d":"$0.00"}},{"$f":"'MMA Rev-Exp Region 7'!V$15","v":{"v":0,"d":"$0.00"}},{"$f":"'MMA Rev-Exp Region 7'!W$15","v":{"v":0,"d":"$0.00"}},{"$f":"'MMA Rev-Exp Region 7'!X$15","v":{"v":0,"d":"$0.00"}},{"$f":"'MMA Rev-Exp Region 7'!Y$15","v":{"v":0,"d":"$0.00"}},{"v":0,"d":"$0.00"}]
["MMA",null,null,{"$f":"Jurat!I$1","v":0},{"$f":"Jurat!D$33","v":"00:00:00"},"Q2","2017-06-30","Region 7","Operating Expense","Medical Benefits Expense","Hospital Services",2.2,"Ending IBNP for Inpatient Hospital Services",{"$f":"'MMA Rev-Exp Region 7'!O$21","v":{"v":0,"d":"$0.00"}},{"$f":"'MMA Rev-Exp Region 7'!P$21","v":{"v":0,"d":"$0.00"}},{"$f":"'MMA Rev-Exp Region 7'!Q$21","v":{"v":0,"d":"$0.00"}},{"$f":"'MMA Rev-Exp Region 7'!R$21","v":{"v":0,"d":"$0.00"}},{"$f":"'MMA Rev-Exp Region 7'!S$21","v":{"v":0,"d":"$0.00"}},{"$f":"'MMA Rev-Exp Region 7'!T$21","v":{"v":0,"d":"$0.00"}},{"$f":"'MMA Rev-Exp Region 7'!U$21","v":{"v":0,"d":"$0.00"}},{"$f":"'MMA Rev-Exp Region 7'!V$21","v":{"v":0,"d":"$0.00"}},{"$f":"'MMA Rev-Exp Region 7'!W$21","v":{"v":0,"d":"$0.00"}},{"$f":"'MMA Rev-Exp Region 7'!X$21","v":{"v":0,"d":"$0.00"}},{"$f":"'MMA Rev-Exp Region 7'!Y$21","v":{"v":0,"d":"$0.00"}},{"v":0,"d":"$0.00"}]
["MMA",null,null,{"$f":"Jurat!I$1","v":0},{"$f":"Jurat!D$33","v":"00:00:00"},"Q2","2017-06-30","Region 7","Operating Expense","Medical Benefits Expense","Hospital Services",2.5,"Ending IBNP for Outpatient Hospital Services",{"$f":"'MMA Rev-Exp Region 7'!O$24","v":{"v":0,"d":"$0.00"}},{"$f":"'MMA Rev-Exp Region 7'!P$24","v":{"v":0,"d":"$0.00"}},{"$f":"'MMA Rev-Exp Region 7'!Q$24","v":{"v":0,"d":"$0.00"}},{"$f":"'MMA Rev-Exp Region 7'!R$24","v":{"v":0,"d":"$0.00"}},{"$f":"'MMA Rev-Exp Region 7'!S$24","v":{"v":0,"d":"$0.00"}},{"$f":"'MMA Rev-Exp Region 7'!T$24","v":{"v":0,"d":"$0.00"}},{"$f":"'MMA Rev-Exp Region 7'!U$24","v":{"v":0,"d":"$0.00"}},{"$f":"'MMA Rev-Exp Region 7'!V$24","v":{"v":0,"d":"$0.00"}},{"$f":"'MMA Rev-Exp Region 7'!W$24","v":{"v":0,"d":"$0.00"}},{"$f":"'MMA Rev-Exp Region 7'!X$24","v":{"v":0,"d":"$0.00"}},{"$f":"'MMA Rev-Exp Region 7'!Y$24","v":{"v":0,"d":"$0.00"}},{"v":0,"d":"$0.00"}]
["MMA",null,null,{"$f":"Jurat!I$1","v":0},{"$f":"Jurat!D$33","v":"00:00:00"},"Q2","2017-06-30","Region 7","Operating Expense","Medical Benefits Expense","Hospital Services","2.6","Subcapitated Hospital Services",{"$f":"'MMA Rev-Exp Region 7'!O$25","v":{"v":0,"d":"$0.00"}},{"$f":"'MMA Rev-Exp Region 7'!P$25","v":{"v":0,"d":"$0.00"}},{"$f":"'MMA Rev-Exp Region 7'!Q$25","v":{"v":0,"d":"$0.00"}},{"$f":"'MMA Rev-Exp Region 7'!R$25","v":{"v":0,"d":"$0.00"}},{"$f":"'MMA Rev-Exp Region 7'!S$25","v":{"v":0,"d":"$0.00"}},{"$f":"'MMA Rev-Exp Region 7'!T$25","v":{"v":0,"d":"$0.00"}},{"$f":"'MMA Rev-Exp Region 7'!U$25","v":{"v":0,"d":"$0.00"}},{"$f":"'MMA Rev-Exp Region 7'!V$25","v":{"v":0,"d":"$0.00"}},{"$f":"'MMA Rev-Exp Region 7'!W$25","v":{"v":0,"d":"$0.00"}},{"$f":"'MMA Rev-Exp Region 7'!X$25","v":{"v":0,"d":"$0.00"}},{"$f":"'MMA Rev-Exp Region 7'!Y$25","v":{"v":0,"d":"$0.00"}},{"v":0,"d":"$0.00"}]
["MMA",null,null,{"$f":"Jurat!I$1","v":0},{"$f":"Jurat!D$33","v":"00:00:00"},"Q2","2017-06-30","Region 7","Operating Expense","Medical Benefits Expense","Professional Services",3.1,"Primary Care FFS",{"$f":"'MMA Rev-Exp Region 7'!O$29","v":{"v":0,"d":"$0.00"}},{"$f":"'MMA Rev-Exp Region 7'!P$29","v":{"v":0,"d":"$0.00"}},{"$f":"'MMA Rev-Exp Region 7'!Q$29","v":{"v":0,"d":"$0.00"}},{"$f":"'MMA Rev-Exp Region 7'!R$29","v":{"v":0,"d":"$0.00"}},{"$f":"'MMA Rev-Exp Region 7'!S$29","v":{"v":0,"d":"$0.00"}},{"$f":"'MMA Rev-Exp Region 7'!T$29","v":{"v":0,"d":"$0.00"}},{"$f":"'MMA Rev-Exp Region 7'!U$29","v":{"v":0,"d":"$0.00"}},{"$f":"'MMA Rev-Exp Region 7'!V$29","v":{"v":0,"d":"$0.00"}},{"$f":"'MMA Rev-Exp Region 7'!W$29","v":{"v":0,"d":"$0.00"}},{"$f":"'MMA Rev-Exp Region 7'!X$29","v":{"v":0,"d":"$0.00"}},{"$f":"'MMA Rev-Exp Region 7'!Y$29","v":{"v":0,"d":"$0.00"}},{"v":0,"d":"$0.00"}]
["MMA",null,null,{"$f":"Jurat!I$1","v":0},{"$f":"Jurat!D$33","v":"00:00:00"},"Q2","2017-06-30","Region 7","Operating Expense","Medical Benefits Expense","Professional Services","3.4","§ 1202 PCP Payments to providers",{"$f":"'MMA Rev-Exp Region 7'!O$32","v":{"v":0,"d":"$0.00"}},{"$f":"'MMA Rev-Exp Region 7'!P$32","v":{"v":0,"d":"$0.00"}},{"$f":"'MMA Rev-Exp Region 7'!Q$32","v":{"v":0,"d":"$0.00"}},{"$f":"'MMA Rev-Exp Region 7'!R$32","v":{"v":0,"d":"$0.00"}},{"$f":"'MMA Rev-Exp Region 7'!S$32","v":{"v":0,"d":"$0.00"}},{"$f":"'MMA Rev-Exp Region 7'!T$32","v":{"v":0,"d":"$0.00"}},{"$f":"'MMA Rev-Exp Region 7'!U$32","v":{"v":0,"d":"$0.00"}},{"$f":"'MMA Rev-Exp Region 7'!V$32","v":{"v":0,"d":"$0.00"}},{"$f":"'MMA Rev-Exp Region 7'!W$32","v":{"v":0,"d":"$0.00"}},{"$f":"'MMA Rev-Exp Region 7'!X$32","v":{"v":0,"d":"$0.00"}},{"$f":"'MMA Rev-Exp Region 7'!Y$32","v":{"v":0,"d":"$0.00"}},{"v":0,"d":"$0.00"}]
["MMA",null,null,{"$f":"Jurat!I$1","v":0},{"$f":"Jurat!D$33","v":"00:00:00"},"Q2","2017-06-30","Region 7","Operating Expense","Medical Benefits Expense","Maternity Services","4.1.1","Maternity Services",{"$f":"'MMA Rev-Exp Region 7'!O$37","v":{"v":0,"d":"$0.00"}},{"$f":"'MMA Rev-Exp Region 7'!P$37","v":{"v":0,"d":"$0.00"}},{"$f":"'MMA Rev-Exp Region 7'!Q$37","v":{"v":0,"d":"$0.00"}},{"$f":"'MMA Rev-Exp Region 7'!R$37","v":{"v":0,"d":"$0.00"}},{"$f":"'MMA Rev-Exp Region 7'!S$37","v":{"v":0,"d":"$0.00"}},{"$f":"'MMA Rev-Exp Region 7'!T$37","v":{"v":0,"d":"$0.00"}},{"$f":"'MMA Rev-Exp Region 7'!U$37","v":{"v":0,"d":"$0.00"}},{"$f":"'MMA Rev-Exp Region 7'!V$37","v":{"v":0,"d":"$0.00"}},{"$f":"'MMA Rev-Exp Region 7'!W$37","v":{"v":0,"d":"$0.00"}},{"$f":"'MMA Rev-Exp Region 7'!X$37","v":{"v":0,"d":"$0.00"}},{"$f":"'MMA Rev-Exp Region 7'!Y$37","v":{"v":0,"d":"$0.00"}},{"v":0,"d":"$0.00"}]
["MMA",null,null,{"$f":"Jurat!I$1","v":0},{"$f":"Jurat!D$33","v":"00:00:00"},"Q2","2017-06-30","Region 7","Operating Expense","Medical Benefits Expense","Mental Health Services",5.1,"Mental Health & Substance Abuse FFS",{"$f":"'MMA Rev-Exp Region 7'!O$41","v":{"v":0,"d":"$0.00"}},{"$f":"'MMA Rev-Exp Region 7'!P$41","v":{"v":0,"d":"$0.00"}},{"$f":"'MMA Rev-Exp Region 7'!Q$41","v":{"v":0,"d":"$0.00"}},{"$f":"'MMA Rev-Exp Region 7'!R$41","v":{"v":0,"d":"$0.00"}},{"$f":"'MMA Rev-Exp Region 7'!S$41","v":{"v":0,"d":"$0.00"}},{"$f":"'MMA Rev-Exp Region 7'!T$41","v":{"v":0,"d":"$0.00"}},{"$f":"'MMA Rev-Exp Region 7'!U$41","v":{"v":0,"d":"$0.00"}},{"$f":"'MMA Rev-Exp Region 7'!V$41","v":{"v":0,"d":"$0.00"}},{"$f":"'MMA Rev-Exp Region 7'!W$41","v":{"v":0,"d":"$0.00"}},{"$f":"'MMA Rev-Exp Region 7'!X$41","v":{"v":0,"d":"$0.00"}},{"$f":"'MMA Rev-Exp Region 7'!Y$41","v":{"v":0,"d":"$0.00"}},{"v":0,"d":"$0.00"}]
["MMA",null,null,{"$f":"Jurat!I$1","v":0},{"$f":"Jurat!D$33","v":"00:00:00"},"Q2","2017-06-30","Region 7","Operating Expense","Medical Benefits Expense","Mental Health Services","5.4","Mental Health Settlements",{"$f":"'MMA Rev-Exp Region 7'!O$44","v":{"v":0,"d":"$0.00"}},{"$f":"'MMA Rev-Exp Region 7'!P$44","v":{"v":0,"d":"$0.00"}},{"$f":"'MMA Rev-Exp Region 7'!Q$44","v":{"v":0,"d":"$0.00"}},{"$f":"'MMA Rev-Exp Region 7'!R$44","v":{"v":0,"d":"$0.00"}},{"$f":"'MMA Rev-Exp Region 7'!S$44","v":{"v":0,"d":"$0.00"}},{"$f":"'MMA Rev-Exp Region 7'!T$44","v":{"v":0,"d":"$0.00"}},{"$f":"'MMA Rev-Exp Region 7'!U$44","v":{"v":0,"d":"$0.00"}},{"$f":"'MMA Rev-Exp Region 7'!V$44","v":{"v":0,"d":"$0.00"}},{"$f":"'MMA Rev-Exp Region 7'!W$44","v":{"v":0,"d":"$0.00"}},{"$f":"'MMA Rev-Exp Region 7'!X$44","v":{"v":0,"d":"$0.00"}},{"$f":"'MMA Rev-Exp Region 7'!Y$44","v":{"v":0,"d":"$0.00"}},{"v":0,"d":"$0.00"}]
["MMA",null,null,{"$f":"Jurat!I$1","v":0},{"$f":"Jurat!D$33","v":"00:00:00"},"Q2","2017-06-30","Region 7","Operating Expense","Medical Benefits Expense","Dental Services",6.2,"Dental Subcapitation",{"$f":"'MMA Rev-Exp Region 7'!O$47","v":{"v":0,"d":"$0.00"}},{"$f":"'MMA Rev-Exp Region 7'!P$47","v":{"v":0,"d":"$0.00"}},{"$f":"'MMA Rev-Exp Region 7'!Q$47","v":{"v":0,"d":"$0.00"}},{"$f":"'MMA Rev-Exp Region 7'!R$47","v":{"v":0,"d":"$0.00"}},{"$f":"'MMA Rev-Exp Region 7'!S$47","v":{"v":0,"d":"$0.00"}},{"$f":"'MMA Rev-Exp Region 7'!T$47","v":{"v":0,"d":"$0.00"}},{"$f":"'MMA Rev-Exp Region 7'!U$47","v":{"v":0,"d":"$0.00"}},{"$f":"'MMA Rev-Exp Region 7'!V$47","v":{"v":0,"d":"$0.00"}},{"$f":"'MMA Rev-Exp Region 7'!W$47","v":{"v":0,"d":"$0.00"}},{"$f":"'MMA Rev-Exp Region 7'!X$47","v":{"v":0,"d":"$0.00"}},{"$f":"'MMA Rev-Exp Region 7'!Y$47","v":{"v":0,"d":"$0.00"}},{"v":0,"d":"$0.00"}]
["MMA",null,null,{"$f":"Jurat!I$1","v":0},{"$f":"Jurat!D$33","v":"00:00:00"},"Q2","2017-06-30","Region 7","Operating Expense","Medical Benefits Expense","Transportation Services",7.2,"Transportation Subcapitation",{"$f":"'MMA Rev-Exp Region 7'!O$52","v":{"v":0,"d":"$0.00"}},{"$f":"'MMA Rev-Exp Region 7'!P$52","v":{"v":0,"d":"$0.00"}},{"$f":"'MMA Rev-Exp Region 7'!Q$52","v":{"v":0,"d":"$0.00"}},{"$f":"'MMA Rev-Exp Region 7'!R$52","v":{"v":0,"d":"$0.00"}},{"$f":"'MMA Rev-Exp Region 7'!S$52","v":{"v":0,"d":"$0.00"}},{"$f":"'MMA Rev-Exp Region 7'!T$52","v":{"v":0,"d":"$0.00"}},{"$f":"'MMA Rev-Exp Region 7'!U$52","v":{"v":0,"d":"$0.00"}},{"$f":"'MMA Rev-Exp Region 7'!V$52","v":{"v":0,"d":"$0.00"}},{"$f":"'MMA Rev-Exp Region 7'!W$52","v":{"v":0,"d":"$0.00"}},{"$f":"'MMA Rev-Exp Region 7'!X$52","v":{"v":0,"d":"$0.00"}},{"$f":"'MMA Rev-Exp Region 7'!Y$52","v":{"v":0,"d":"$0.00"}},{"v":0,"d":"$0.00"}]
["MMA",null,null,{"$f":"Jurat!I$1","v":0},{"$f":"Jurat!D$33","v":"00:00:00"},"Q2","2017-06-30","Region 7","Operating Expense","Medical Benefits Expense","Transportation Services",7.3,"Ending IBNP for Transportation",{"$f":"'MMA Rev-Exp Region 7'!O$53","v":{"v":0,"d":"$0.00"}},{"$f":"'MMA Rev-Exp Region 7'!P$53","v":{"v":0,"d":"$0.00"}},{"$f":"'MMA Rev-Exp Region 7'!Q$53","v":{"v":0,"d":"$0.00"}},{"$f":"'MMA Rev-Exp Region 7'!R$53","v":{"v":0,"d":"$0.00"}},{"$f":"'MMA Rev-Exp Region 7'!S$53","v":{"v":0,"d":"$0.00"}},{"$f":"'MMA Rev-Exp Region 7'!T$53","v":{"v":0,"d":"$0.00"}},{"$f":"'MMA Rev-Exp Region 7'!U$53","v":{"v":0,"d":"$0.00"}},{"$f":"'MMA Rev-Exp Region 7'!V$53","v":{"v":0,"d":"$0.00"}},{"$f":"'MMA Rev-Exp Region 7'!W$53","v":{"v":0,"d":"$0.00"}},{"$f":"'MMA Rev-Exp Region 7'!X$53","v":{"v":0,"d":"$0.00"}},{"$f":"'MMA Rev-Exp Region 7'!Y$53","v":{"v":0,"d":"$0.00"}},{"v":0,"d":"$0.00"}]
["MMA",null,null,{"$f":"Jurat!I$1","v":0},{"$f":"Jurat!D$33","v":"00:00:00"},"Q2","2017-06-30","Region 7","Operating Expense","Medical Benefits Expense","Pharmacy Services","8.2","Hepatitis C Prescription Drug FFS",{"$f":"'MMA Rev-Exp Region 7'!O$57","v":{"v":0,"d":"$0.00"}},{"$f":"'MMA Rev-Exp Region 7'!P$57","v":{"v":0,"d":"$0.00"}},{"$f":"'MMA Rev-Exp Region 7'!Q$57","v":{"v":0,"d":"$0.00"}},{"$f":"'MMA Rev-Exp Region 7'!R$57","v":{"v":0,"d":"$0.00"}},{"$f":"'MMA Rev-Exp Region 7'!S$57","v":{"v":0,"d":"$0.00"}},{"$f":"'MMA Rev-Exp Region 7'!T$57","v":{"v":0,"d":"$0.00"}},{"$f":"'MMA Rev-Exp Region 7'!U$57","v":{"v":0,"d":"$0.00"}},{"$f":"'MMA Rev-Exp Region 7'!V$57","v":{"v":0,"d":"$0.00"}},{"$f":"'MMA Rev-Exp Region 7'!W$57","v":{"v":0,"d":"$0.00"}},{"$f":"'MMA Rev-Exp Region 7'!X$57","v":{"v":0,"d":"$0.00"}},{"$f":"'MMA Rev-Exp Region 7'!Y$57","v":{"v":0,"d":"$0.00"}},{"v":0,"d":"$0.00"}]
["MMA",null,null,{"$f":"Jurat!I$1","v":0},{"$f":"Jurat!D$33","v":"00:00:00"},"Q2","2017-06-30","Region 7","Operating Expense","Medical Benefits Expense","Pharmacy Services","8.5","Ending accrual for Rebates receivable",{"$f":"'MMA Rev-Exp Region 7'!O$60","v":{"v":0,"d":"$0.00"}},{"$f":"'MMA Rev-Exp Region 7'!P$60","v":{"v":0,"d":"$0.00"}},{"$f":"'MMA Rev-Exp Region 7'!Q$60","v":{"v":0,"d":"$0.00"}},{"$f":"'MMA Rev-Exp Region 7'!R$60","v":{"v":0,"d":"$0.00"}},{"$f":"'MMA Rev-Exp Region 7'!S$60","v":{"v":0,"d":"$0.00"}},{"$f":"'MMA Rev-Exp Region 7'!T$60","v":{"v":0,"d":"$0.00"}},{"$f":"'MMA Rev-Exp Region 7'!U$60","v":{"v":0,"d":"$0.00"}},{"$f":"'MMA Rev-Exp Region 7'!V$60","v":{"v":0,"d":"$0.00"}},{"$f":"'MMA Rev-Exp Region 7'!W$60","v":{"v":0,"d":"$0.00"}},{"$f":"'MMA Rev-Exp Region 7'!X$60","v":{"v":0,"d":"$0.00"}},{"$f":"'MMA Rev-Exp Region 7'!Y$60","v":{"v":0,"d":"$0.00"}},{"v":0,"d":"$0.00"}]
["MMA",null,null,{"$f":"Jurat!I$1","v":0},{"$f":"Jurat!D$33","v":"00:00:00"},"Q2","2017-06-30","Region 7","Operating Expense","Medical Benefits Expense","Other MMA Services","9.2","Hospice FFS",{"$f":"'MMA Rev-Exp Region 7'!O$65","v":{"v":0,"d":"$0.00"}},{"$f":"'MMA Rev-Exp Region 7'!P$65","v":{"v":0,"d":"$0.00"}},{"$f":"'MMA Rev-Exp Region 7'!Q$65","v":{"v":0,"d":"$0.00"}},{"$f":"'MMA Rev-Exp Region 7'!R$65","v":{"v":0,"d":"$0.00"}},{"$f":"'MMA Rev-Exp Region 7'!S$65","v":{"v":0,"d":"$0.00"}},{"$f":"'MMA Rev-Exp Region 7'!T$65","v":{"v":0,"d":"$0.00"}},{"$f":"'MMA Rev-Exp Region 7'!U$65","v":{"v":0,"d":"$0.00"}},{"$f":"'MMA Rev-Exp Region 7'!V$65","v":{"v":0,"d":"$0.00"}},{"$f":"'MMA Rev-Exp Region 7'!W$65","v":{"v":0,"d":"$0.00"}},{"$f":"'MMA Rev-Exp Region 7'!X$65","v":{"v":0,"d":"$0.00"}},{"$f":"'MMA Rev-Exp Region 7'!Y$65","v":{"v":0,"d":"$0.00"}},{"v":0,"d":"$0.00"}]
["MMA",null,null,{"$f":"Jurat!I$1","v":0},{"$f":"Jurat!D$33","v":"00:00:00"},"Q2","2017-06-30","Region 7","Operating Expense","Medical Benefits Expense","Other MMA Services","9.5","Other Services Subcapitation",{"$f":"'MMA Rev-Exp Region 7'!O$68","v":{"v":0,"d":"$0.00"}},{"$f":"'MMA Rev-Exp Region 7'!P$68","v":{"v":0,"d":"$0.00"}},{"$f":"'MMA Rev-Exp Region 7'!Q$68","v":{"v":0,"d":"$0.00"}},{"$f":"'MMA Rev-Exp Region 7'!R$68","v":{"v":0,"d":"$0.00"}},{"$f":"'MMA Rev-Exp Region 7'!S$68","v":{"v":0,"d":"$0.00"}},{"$f":"'MMA Rev-Exp Region 7'!T$68","v":{"v":0,"d":"$0.00"}},{"$f":"'MMA Rev-Exp Region 7'!U$68","v":{"v":0,"d":"$0.00"}},{"$f":"'MMA Rev-Exp Region 7'!V$68","v":{"v":0,"d":"$0.00"}},{"$f":"'MMA Rev-Exp Region 7'!W$68","v":{"v":0,"d":"$0.00"}},{"$f":"'MMA Rev-Exp Region 7'!X$68","v":{"v":0,"d":"$0.00"}},{"$f":"'MMA Rev-Exp Region 7'!Y$68","v":{"v":0,"d":"$0.00"}},{"v":0,"d":"$0.00"}]
["MMA",null,null,{"$f":"Jurat!I$1","v":0},{"$f":"Jurat!D$33","v":"00:00:00"},"Q2","2017-06-30","Region 7","Operating Expense","Medical Benefits Expense","Expanded Benefits","10.2","Expanded benefits Subcapitation",{"$f":"'MMA Rev-Exp Region 7'!O$73","v":{"v":0,"d":"$0.00"}},{"$f":"'MMA Rev-Exp Region 7'!P$73","v":{"v":0,"d":"$0.00"}},{"$f":"'MMA Rev-Exp Region 7'!Q$73","v":{"v":0,"d":"$0.00"}},{"$f":"'MMA Rev-Exp Region 7'!R$73","v":{"v":0,"d":"$0.00"}},{"$f":"'MMA Rev-Exp Region 7'!S$73","v":{"v":0,"d":"$0.00"}},{"$f":"'MMA Rev-Exp Region 7'!T$73","v":{"v":0,"d":"$0.00"}},{"$f":"'MMA Rev-Exp Region 7'!U$73","v":{"v":0,"d":"$0.00"}},{"$f":"'MMA Rev-Exp Region 7'!V$73","v":{"v":0,"d":"$0.00"}},{"$f":"'MMA Rev-Exp Region 7'!W$73","v":{"v":0,"d":"$0.00"}},{"$f":"'MMA Rev-Exp Region 7'!X$73","v":{"v":0,"d":"$0.00"}},{"$f":"'MMA Rev-Exp Region 7'!Y$73","v":{"v":0,"d":"$0.00"}},{"v":0,"d":"$0.00"}]
["MMA",null,null,{"$f":"Jurat!I$1","v":0},{"$f":"Jurat!D$33","v":"00:00:00"},"Q2","2017-06-30","Region 7","Operating Expense","Medical Benefits Expense","Other Medical","11.5","TPL & Fraud/Abuse Recoveries",{"$f":"'MMA Rev-Exp Region 7'!O$81","v":{"v":0,"d":"$0.00"}},{"$f":"'MMA Rev-Exp Region 7'!P$81","v":{"v":0,"d":"$0.00"}},{"$f":"'MMA Rev-Exp Region 7'!Q$81","v":{"v":0,"d":"$0.00"}},{"$f":"'MMA Rev-Exp Region 7'!R$81","v":{"v":0,"d":"$0.00"}},{"$f":"'MMA Rev-Exp Region 7'!S$81","v":{"v":0,"d":"$0.00"}},{"$f":"'MMA Rev-Exp Region 7'!T$81","v":{"v":0,"d":"$0.00"}},{"$f":"'MMA Rev-Exp Region 7'!U$81","v":{"v":0,"d":"$0.00"}},{"$f":"'MMA Rev-Exp Region 7'!V$81","v":{"v":0,"d":"$0.00"}},{"$f":"'MMA Rev-Exp Region 7'!W$81","v":{"v":0,"d":"$0.00"}},{"$f":"'MMA Rev-Exp Region 7'!X$81","v":{"v":0,"d":"$0.00"}},{"$f":"'MMA Rev-Exp Region 7'!Y$81","v":{"v":0,"d":"$0.00"}},{"v":0,"d":"$0.00"}]
["MMA",null,null,{"$f":"Jurat!I$1","v":0},{"$f":"Jurat!D$33","v":"00:00:00"},"Q2","2017-06-30","Region 7","Operating Expense","Medical Benefits Expense","Other Medical","11.8","Reinsurance Premiums",{"$f":"'MMA Rev-Exp Region 7'!O$84","v":{"v":0,"d":"$0.00"}},{"$f":"'MMA Rev-Exp Region 7'!P$84","v":{"v":0,"d":"$0.00"}},{"$f":"'MMA Rev-Exp Region 7'!Q$84","v":{"v":0,"d":"$0.00"}},{"$f":"'MMA Rev-Exp Region 7'!R$84","v":{"v":0,"d":"$0.00"}},{"$f":"'MMA Rev-Exp Region 7'!S$84","v":{"v":0,"d":"$0.00"}},{"$f":"'MMA Rev-Exp Region 7'!T$84","v":{"v":0,"d":"$0.00"}},{"$f":"'MMA Rev-Exp Region 7'!U$84","v":{"v":0,"d":"$0.00"}},{"$f":"'MMA Rev-Exp Region 7'!V$84","v":{"v":0,"d":"$0.00"}},{"$f":"'MMA Rev-Exp Region 7'!W$84","v":{"v":0,"d":"$0.00"}},{"$f":"'MMA Rev-Exp Region 7'!X$84","v":{"v":0,"d":"$0.00"}},{"$f":"'MMA Rev-Exp Region 7'!Y$84","v":{"v":0,"d":"$0.00"}},{"v":0,"d":"$0.00"}]
["MMA",null,null,{"$f":"Jurat!I$1","v":0},{"$f":"Jurat!D$33","v":"00:00:00"},"Q2","2017-06-30","Region 7","Operating Expense","Medical Benefits Expense","Other Medical","11.9","Reinsurance Recoveries",{"$f":"'MMA Rev-Exp Region 7'!O$85","v":{"v":0,"d":"$0.00"}},{"$f":"'MMA Rev-Exp Region 7'!P$85","v":{"v":0,"d":"$0.00"}},{"$f":"'MMA Rev-Exp Region 7'!Q$85","v":{"v":0,"d":"$0.00"}},{"$f":"'MMA Rev-Exp Region 7'!R$85","v":{"v":0,"d":"$0.00"}},{"$f":"'MMA Rev-Exp Region 7'!S$85","v":{"v":0,"d":"$0.00"}},{"$f":"'MMA Rev-Exp Region 7'!T$85","v":{"v":0,"d":"$0.00"}},{"$f":"'MMA Rev-Exp Region 7'!U$85","v":{"v":0,"d":"$0.00"}},{"$f":"'MMA Rev-Exp Region 7'!V$85","v":{"v":0,"d":"$0.00"}},{"$f":"'MMA Rev-Exp Region 7'!W$85","v":{"v":0,"d":"$0.00"}},{"$f":"'MMA Rev-Exp Region 7'!X$85","v":{"v":0,"d":"$0.00"}},{"$f":"'MMA Rev-Exp Region 7'!Y$85","v":{"v":0,"d":"$0.00"}},{"v":0,"d":"$0.00"}]
["MMA",null,null,{"$f":"Jurat!I$1","v":0},{"$f":"Jurat!D$33","v":"00:00:00"},"Q2","2017-06-30","Region 7","Operating Expense","Administrative Expense","Administrative","12.3","Information Systems",{"$f":"'MMA Rev-Exp Region 7'!O$92","v":{"v":0,"d":"$0.00"}},{"v":0,"d":"$0.00"},{"v":0,"d":"$0.00"},{"v":0,"d":"$0.00"},{"v":0,"d":"$0.00"},{"v":0,"d":"$0.00"},{"v":0,"d":"$0.00"},{"v":0,"d":"$0.00"},{"v":0,"d":"$0.00"},{"v":0,"d":"$0.00"},{"v":0,"d":"$0.00"},{"v":0,"d":"$0.00"}]
["MMA",null,null,{"$f":"Jurat!I$1","v":0},{"$f":"Jurat!D$33","v":"00:00:00"},"Q2","2017-06-30","Region 7","Operating Expense","Administrative Expense","Administrative","12.6","Compliance/Regulatory",{"$f":"'MMA Rev-Exp Region 7'!O$95","v":{"v":0,"d":"$0.00"}},{"v":0,"d":"$0.00"},{"v":0,"d":"$0.00"},{"v":0,"d":"$0.00"},{"v":0,"d":"$0.00"},{"v":0,"d":"$0.00"},{"v":0,"d":"$0.00"},{"v":0,"d":"$0.00"},{"v":0,"d":"$0.00"},{"v":0,"d":"$0.00"},{"v":0,"d":"$0.00"},{"v":0,"d":"$0.00"}]
["MMA",null,null,{"$f":"Jurat!I$1","v":0},{"$f":"Jurat!D$33","v":"00:00:00"},"Q2","2017-06-30","Region 7","Non-Operating Expense","Income Tax Expense","Income Tax Expense","16.0","Income Tax Expense",{"$f":"'MMA Rev-Exp Region 7'!O$106","v":{"v":0,"d":"$0.00"}},{"v":0,"d":"$0.00"},{"v":0,"d":"$0.00"},{"v":0,"d":"$0.00"},{"v":0,"d":"$0.00"},{"v":0,"d":"$0.00"},{"v":0,"d":"$0.00"},{"v":0,"d":"$0.00"},{"v":0,"d":"$0.00"},{"v":0,"d":"$0.00"},{"v":0,"d":"$0.00"},{"v":0,"d":"$0.00"}]
["MMA",null,null,{"$f":"Jurat!I$1","v":0},{"$f":"Jurat!D$33","v":"00:00:00"},"Q3","2017-09-30","Region 7","Operating Revenue","Kick Payments","Kick Payments - Transplant",1.2,"Transplant Kick Payments",{"$f":"'MMA Rev-Exp Region 7'!Z$12","v":{"v":0,"d":"$0.00"}},{"$f":"'MMA Rev-Exp Region 7'!AA$12","v":{"v":0,"d":"$0.00"}},{"$f":"'MMA Rev-Exp Region 7'!AB$12","v":{"v":0,"d":"$0.00"}},{"$f":"'MMA Rev-Exp Region 7'!AC$12","v":{"v":0,"d":"$0.00"}},{"$f":"'MMA Rev-Exp Region 7'!AD$12","v":{"v":0,"d":"$0.00"}},{"$f":"'MMA Rev-Exp Region 7'!AE$12","v":{"v":0,"d":"$0.00"}},{"$f":"'MMA Rev-Exp Region 7'!AF$12","v":{"v":0,"d":"$0.00"}},{"$f":"'MMA Rev-Exp Region 7'!AG$12","v":{"v":0,"d":"$0.00"}},{"$f":"'MMA Rev-Exp Region 7'!AH$12","v":{"v":0,"d":"$0.00"}},{"$f":"'MMA Rev-Exp Region 7'!AI$12","v":{"v":0,"d":"$0.00"}},{"$f":"'MMA Rev-Exp Region 7'!AJ$12","v":{"v":0,"d":"$0.00"}},{"v":0,"d":"$0.00"}]
["MMA",null,null,{"$f":"Jurat!I$1","v":0},{"$f":"Jurat!D$33","v":"00:00:00"},"Q3","2017-09-30","Region 7","Operating Revenue","Other Revenue","Other Revenue","1.6","Other Revenue",{"$f":"'MMA Rev-Exp Region 7'!Z$16","v":{"v":0,"d":"$0.00"}},{"$f":"'MMA Rev-Exp Region 7'!AA$16","v":{"v":0,"d":"$0.00"}},{"$f":"'MMA Rev-Exp Region 7'!AB$16","v":{"v":0,"d":"$0.00"}},{"$f":"'MMA Rev-Exp Region 7'!AC$16","v":{"v":0,"d":"$0.00"}},{"$f":"'MMA Rev-Exp Region 7'!AD$16","v":{"v":0,"d":"$0.00"}},{"$f":"'MMA Rev-Exp Region 7'!AE$16","v":{"v":0,"d":"$0.00"}},{"$f":"'MMA Rev-Exp Region 7'!AF$16","v":{"v":0,"d":"$0.00"}},{"$f":"'MMA Rev-Exp Region 7'!AG$16","v":{"v":0,"d":"$0.00"}},{"$f":"'MMA Rev-Exp Region 7'!AH$16","v":{"v":0,"d":"$0.00"}},{"$f":"'MMA Rev-Exp Region 7'!AI$16","v":{"v":0,"d":"$0.00"}},{"$f":"'MMA Rev-Exp Region 7'!AJ$16","v":{"v":0,"d":"$0.00"}},{"v":0,"d":"$0.00"}]
["MMA",null,null,{"$f":"Jurat!I$1","v":0},{"$f":"Jurat!D$33","v":"00:00:00"},"Q3","2017-09-30","Region 7","Operating Expense","Medical Benefits Expense","Hospital Services",2.3,"Outpatient FFS: ER",{"$f":"'MMA Rev-Exp Region 7'!Z$22","v":{"v":0,"d":"$0.00"}},{"$f":"'MMA Rev-Exp Region 7'!AA$22","v":{"v":0,"d":"$0.00"}},{"$f":"'MMA Rev-Exp Region 7'!AB$22","v":{"v":0,"d":"$0.00"}},{"$f":"'MMA Rev-Exp Region 7'!AC$22","v":{"v":0,"d":"$0.00"}},{"$f":"'MMA Rev-Exp Region 7'!AD$22","v":{"v":0,"d":"$0.00"}},{"$f":"'MMA Rev-Exp Region 7'!AE$22","v":{"v":0,"d":"$0.00"}},{"$f":"'MMA Rev-Exp Region 7'!AF$22","v":{"v":0,"d":"$0.00"}},{"$f":"'MMA Rev-Exp Region 7'!AG$22","v":{"v":0,"d":"$0.00"}},{"$f":"'MMA Rev-Exp Region 7'!AH$22","v":{"v":0,"d":"$0.00"}},{"$f":"'MMA Rev-Exp Region 7'!AI$22","v":{"v":0,"d":"$0.00"}},{"$f":"'MMA Rev-Exp Region 7'!AJ$22","v":{"v":0,"d":"$0.00"}},{"v":0,"d":"$0.00"}]
["MMA",null,null,{"$f":"Jurat!I$1","v":0},{"$f":"Jurat!D$33","v":"00:00:00"},"Q3","2017-09-30","Region 7","Operating Expense","Medical Benefits Expense","Hospital Services","2.6","Subcapitated Hospital Services",{"$f":"'MMA Rev-Exp Region 7'!Z$25","v":{"v":0,"d":"$0.00"}},{"$f":"'MMA Rev-Exp Region 7'!AA$25","v":{"v":0,"d":"$0.00"}},{"$f":"'MMA Rev-Exp Region 7'!AB$25","v":{"v":0,"d":"$0.00"}},{"$f":"'MMA Rev-Exp Region 7'!AC$25","v":{"v":0,"d":"$0.00"}},{"$f":"'MMA Rev-Exp Region 7'!AD$25","v":{"v":0,"d":"$0.00"}},{"$f":"'MMA Rev-Exp Region 7'!AE$25","v":{"v":0,"d":"$0.00"}},{"$f":"'MMA Rev-Exp Region 7'!AF$25","v":{"v":0,"d":"$0.00"}},{"$f":"'MMA Rev-Exp Region 7'!AG$25","v":{"v":0,"d":"$0.00"}},{"$f":"'MMA Rev-Exp Region 7'!AH$25","v":{"v":0,"d":"$0.00"}},{"$f":"'MMA Rev-Exp Region 7'!AI$25","v":{"v":0,"d":"$0.00"}},{"$f":"'MMA Rev-Exp Region 7'!AJ$25","v":{"v":0,"d":"$0.00"}},{"v":0,"d":"$0.00"}]
["MMA",null,null,{"$f":"Jurat!I$1","v":0},{"$f":"Jurat!D$33","v":"00:00:00"},"Q3","2017-09-30","Region 7","Operating Expense","Medical Benefits Expense","Hospital Services","2.7","Hospital Settlements",{"$f":"'MMA Rev-Exp Region 7'!Z$26","v":{"v":0,"d":"$0.00"}},{"$f":"'MMA Rev-Exp Region 7'!AA$26","v":{"v":0,"d":"$0.00"}},{"$f":"'MMA Rev-Exp Region 7'!AB$26","v":{"v":0,"d":"$0.00"}},{"$f":"'MMA Rev-Exp Region 7'!AC$26","v":{"v":0,"d":"$0.00"}},{"$f":"'MMA Rev-Exp Region 7'!AD$26","v":{"v":0,"d":"$0.00"}},{"$f":"'MMA Rev-Exp Region 7'!AE$26","v":{"v":0,"d":"$0.00"}},{"$f":"'MMA Rev-Exp Region 7'!AF$26","v":{"v":0,"d":"$0.00"}},{"$f":"'MMA Rev-Exp Region 7'!AG$26","v":{"v":0,"d":"$0.00"}},{"$f":"'MMA Rev-Exp Region 7'!AH$26","v":{"v":0,"d":"$0.00"}},{"$f":"'MMA Rev-Exp Region 7'!AI$26","v":{"v":0,"d":"$0.00"}},{"$f":"'MMA Rev-Exp Region 7'!AJ$26","v":{"v":0,"d":"$0.00"}},{"v":0,"d":"$0.00"}]
["MMA",null,null,{"$f":"Jurat!I$1","v":0},{"$f":"Jurat!D$33","v":"00:00:00"},"Q3","2017-09-30","Region 7","Operating Expense","Medical Benefits Expense","Professional Services",3.3,"Other Professional FFS",{"$f":"'MMA Rev-Exp Region 7'!Z$31","v":{"v":0,"d":"$0.00"}},{"$f":"'MMA Rev-Exp Region 7'!AA$31","v":{"v":0,"d":"$0.00"}},{"$f":"'MMA Rev-Exp Region 7'!AB$31","v":{"v":0,"d":"$0.00"}},{"$f":"'MMA Rev-Exp Region 7'!AC$31","v":{"v":0,"d":"$0.00"}},{"$f":"'MMA Rev-Exp Region 7'!AD$31","v":{"v":0,"d":"$0.00"}},{"$f":"'MMA Rev-Exp Region 7'!AE$31","v":{"v":0,"d":"$0.00"}},{"$f":"'MMA Rev-Exp Region 7'!AF$31","v":{"v":0,"d":"$0.00"}},{"$f":"'MMA Rev-Exp Region 7'!AG$31","v":{"v":0,"d":"$0.00"}},{"$f":"'MMA Rev-Exp Region 7'!AH$31","v":{"v":0,"d":"$0.00"}},{"$f":"'MMA Rev-Exp Region 7'!AI$31","v":{"v":0,"d":"$0.00"}},{"$f":"'MMA Rev-Exp Region 7'!AJ$31","v":{"v":0,"d":"$0.00"}},{"v":0,"d":"$0.00"}]
["MMA",null,null,{"$f":"Jurat!I$1","v":0},{"$f":"Jurat!D$33","v":"00:00:00"},"Q3","2017-09-30","Region 7","Operating Expense","Medical Benefits Expense","Professional Services","3.5","Subcapitated Professional Services",{"$f":"'MMA Rev-Exp Region 7'!Z$33","v":{"v":0,"d":"$0.00"}},{"$f":"'MMA Rev-Exp Region 7'!AA$33","v":{"v":0,"d":"$0.00"}},{"$f":"'MMA Rev-Exp Region 7'!AB$33","v":{"v":0,"d":"$0.00"}},{"$f":"'MMA Rev-Exp Region 7'!AC$33","v":{"v":0,"d":"$0.00"}},{"$f":"'MMA Rev-Exp Region 7'!AD$33","v":{"v":0,"d":"$0.00"}},{"$f":"'MMA Rev-Exp Region 7'!AE$33","v":{"v":0,"d":"$0.00"}},{"$f":"'MMA Rev-Exp Region 7'!AF$33","v":{"v":0,"d":"$0.00"}},{"$f":"'MMA Rev-Exp Region 7'!AG$33","v":{"v":0,"d":"$0.00"}},{"$f":"'MMA Rev-Exp Region 7'!AH$33","v":{"v":0,"d":"$0.00"}},{"$f":"'MMA Rev-Exp Region 7'!AI$33","v":{"v":0,"d":"$0.00"}},{"$f":"'MMA Rev-Exp Region 7'!AJ$33","v":{"v":0,"d":"$0.00"}},{"v":0,"d":"$0.00"}]
["MMA",null,null,{"$f":"Jurat!I$1","v":0},{"$f":"Jurat!D$33","v":"00:00:00"},"Q3","2017-09-30","Region 7","Operating Expense","Medical Benefits Expense","Maternity Services","4.1.1","Maternity Services",{"$f":"'MMA Rev-Exp Region 7'!Z$37","v":{"v":0,"d":"$0.00"}},{"$f":"'MMA Rev-Exp Region 7'!AA$37","v":{"v":0,"d":"$0.00"}},{"$f":"'MMA Rev-Exp Region 7'!AB$37","v":{"v":0,"d":"$0.00"}},{"$f":"'MMA Rev-Exp Region 7'!AC$37","v":{"v":0,"d":"$0.00"}},{"$f":"'MMA Rev-Exp Region 7'!AD$37","v":{"v":0,"d":"$0.00"}},{"$f":"'MMA Rev-Exp Region 7'!AE$37","v":{"v":0,"d":"$0.00"}},{"$f":"'MMA Rev-Exp Region 7'!AF$37","v":{"v":0,"d":"$0.00"}},{"$f":"'MMA Rev-Exp Region 7'!AG$37","v":{"v":0,"d":"$0.00"}},{"$f":"'MMA Rev-Exp Region 7'!AH$37","v":{"v":0,"d":"$0.00"}},{"$f":"'MMA Rev-Exp Region 7'!AI$37","v":{"v":0,"d":"$0.00"}},{"$f":"'MMA Rev-Exp Region 7'!AJ$37","v":{"v":0,"d":"$0.00"}},{"v":0,"d":"$0.00"}]
["MMA",null,null,{"$f":"Jurat!I$1","v":0},{"$f":"Jurat!D$33","v":"00:00:00"},"Q3","2017-09-30","Region 7","Operating Expense","Medical Benefits Expense","Mental Health Services",5.1,"Mental Health & Substance Abuse FFS",{"$f":"'MMA Rev-Exp Region 7'!Z$41","v":{"v":0,"d":"$0.00"}},{"$f":"'MMA Rev-Exp Region 7'!AA$41","v":{"v":0,"d":"$0.00"}},{"$f":"'MMA Rev-Exp Region 7'!AB$41","v":{"v":0,"d":"$0.00"}},{"$f":"'MMA Rev-Exp Region 7'!AC$41","v":{"v":0,"d":"$0.00"}},{"$f":"'MMA Rev-Exp Region 7'!AD$41","v":{"v":0,"d":"$0.00"}},{"$f":"'MMA Rev-Exp Region 7'!AE$41","v":{"v":0,"d":"$0.00"}},{"$f":"'MMA Rev-Exp Region 7'!AF$41","v":{"v":0,"d":"$0.00"}},{"$f":"'MMA Rev-Exp Region 7'!AG$41","v":{"v":0,"d":"$0.00"}},{"$f":"'MMA Rev-Exp Region 7'!AH$41","v":{"v":0,"d":"$0.00"}},{"$f":"'MMA Rev-Exp Region 7'!AI$41","v":{"v":0,"d":"$0.00"}},{"$f":"'MMA Rev-Exp Region 7'!AJ$41","v":{"v":0,"d":"$0.00"}},{"v":0,"d":"$0.00"}]
["MMA",null,null,{"$f":"Jurat!I$1","v":0},{"$f":"Jurat!D$33","v":"00:00:00"},"Q3","2017-09-30","Region 7","Operating Expense","Medical Benefits Expense","Dental Services",6.1,"Dental FFS",{"$f":"'MMA Rev-Exp Region 7'!Z$46","v":{"v":0,"d":"$0.00"}},{"$f":"'MMA Rev-Exp Region 7'!AA$46","v":{"v":0,"d":"$0.00"}},{"$f":"'MMA Rev-Exp Region 7'!AB$46","v":{"v":0,"d":"$0.00"}},{"$f":"'MMA Rev-Exp Region 7'!AC$46","v":{"v":0,"d":"$0.00"}},{"$f":"'MMA Rev-Exp Region 7'!AD$46","v":{"v":0,"d":"$0.00"}},{"$f":"'MMA Rev-Exp Region 7'!AE$46","v":{"v":0,"d":"$0.00"}},{"$f":"'MMA Rev-Exp Region 7'!AF$46","v":{"v":0,"d":"$0.00"}},{"$f":"'MMA Rev-Exp Region 7'!AG$46","v":{"v":0,"d":"$0.00"}},{"$f":"'MMA Rev-Exp Region 7'!AH$46","v":{"v":0,"d":"$0.00"}},{"$f":"'MMA Rev-Exp Region 7'!AI$46","v":{"v":0,"d":"$0.00"}},{"$f":"'MMA Rev-Exp Region 7'!AJ$46","v":{"v":0,"d":"$0.00"}},{"v":0,"d":"$0.00"}]
["MMA",null,null,{"$f":"Jurat!I$1","v":0},{"$f":"Jurat!D$33","v":"00:00:00"},"Q3","2017-09-30","Region 7","Operating Expense","Medical Benefits Expense","Dental Services","6.4","Dental Settlements",{"$f":"'MMA Rev-Exp Region 7'!Z$49","v":{"v":0,"d":"$0.00"}},{"$f":"'MMA Rev-Exp Region 7'!AA$49","v":{"v":0,"d":"$0.00"}},{"$f":"'MMA Rev-Exp Region 7'!AB$49","v":{"v":0,"d":"$0.00"}},{"$f":"'MMA Rev-Exp Region 7'!AC$49","v":{"v":0,"d":"$0.00"}},{"$f":"'MMA Rev-Exp Region 7'!AD$49","v":{"v":0,"d":"$0.00"}},{"$f":"'MMA Rev-Exp Region 7'!AE$49","v":{"v":0,"d":"$0.00"}},{"$f":"'MMA Rev-Exp Region 7'!AF$49","v":{"v":0,"d":"$0.00"}},{"$f":"'MMA Rev-Exp Region 7'!AG$49","v":{"v":0,"d":"$0.00"}},{"$f":"'MMA Rev-Exp Region 7'!AH$49","v":{"v":0,"d":"$0.00"}},{"$f":"'MMA Rev-Exp Region 7'!AI$49","v":{"v":0,"d":"$0.00"}},{"$f":"'MMA Rev-Exp Region 7'!AJ$49","v":{"v":0,"d":"$0.00"}},{"v":0,"d":"$0.00"}]
["MMA",null,null,{"$f":"Jurat!I$1","v":0},{"$f":"Jurat!D$33","v":"00:00:00"},"Q3","2017-09-30","Region 7","Operating Expense","Medical Benefits Expense","Transportation Services",7.3,"Ending IBNP for Transportation",{"$f":"'MMA Rev-Exp Region 7'!Z$53","v":{"v":0,"d":"$0.00"}},{"$f":"'MMA Rev-Exp Region 7'!AA$53","v":{"v":0,"d":"$0.00"}},{"$f":"'MMA Rev-Exp Region 7'!AB$53","v":{"v":0,"d":"$0.00"}},{"$f":"'MMA Rev-Exp Region 7'!AC$53","v":{"v":0,"d":"$0.00"}},{"$f":"'MMA Rev-Exp Region 7'!AD$53","v":{"v":0,"d":"$0.00"}},{"$f":"'MMA Rev-Exp Region 7'!AE$53","v":{"v":0,"d":"$0.00"}},{"$f":"'MMA Rev-Exp Region 7'!AF$53","v":{"v":0,"d":"$0.00"}},{"$f":"'MMA Rev-Exp Region 7'!AG$53","v":{"v":0,"d":"$0.00"}},{"$f":"'MMA Rev-Exp Region 7'!AH$53","v":{"v":0,"d":"$0.00"}},{"$f":"'MMA Rev-Exp Region 7'!AI$53","v":{"v":0,"d":"$0.00"}},{"$f":"'MMA Rev-Exp Region 7'!AJ$53","v":{"v":0,"d":"$0.00"}},{"v":0,"d":"$0.00"}]
["MMA",null,null,{"$f":"Jurat!I$1","v":0},{"$f":"Jurat!D$33","v":"00:00:00"},"Q3","2017-09-30","Region 7","Operating Expense","Medical Benefits Expense","Transportation Services","7.4","Transportation Settlements",{"$f":"'MMA Rev-Exp Region 7'!Z$54","v":{"v":0,"d":"$0.00"}},{"$f":"'MMA Rev-Exp Region 7'!AA$54","v":{"v":0,"d":"$0.00"}},{"$f":"'MMA Rev-Exp Region 7'!AB$54","v":{"v":0,"d":"$0.00"}},{"$f":"'MMA Rev-Exp Region 7'!AC$54","v":{"v":0,"d":"$0.00"}},{"$f":"'MMA Rev-Exp Region 7'!AD$54","v":{"v":0,"d":"$0.00"}},{"$f":"'MMA Rev-Exp Region 7'!AE$54","v":{"v":0,"d":"$0.00"}},{"$f":"'MMA Rev-Exp Region 7'!AF$54","v":{"v":0,"d":"$0.00"}},{"$f":"'MMA Rev-Exp Region 7'!AG$54","v":{"v":0,"d":"$0.00"}},{"$f":"'MMA Rev-Exp Region 7'!AH$54","v":{"v":0,"d":"$0.00"}},{"$f":"'MMA Rev-Exp Region 7'!AI$54","v":{"v":0,"d":"$0.00"}},{"$f":"'MMA Rev-Exp Region 7'!AJ$54","v":{"v":0,"d":"$0.00"}},{"v":0,"d":"$0.00"}]
["MMA",null,null,{"$f":"Jurat!I$1","v":0},{"$f":"Jurat!D$33","v":"00:00:00"},"Q3","2017-09-30","Region 7","Operating Expense","Medical Benefits Expense","Pharmacy Services","8.3","Ending IBNP for Prescription Drugs",{"$f":"'MMA Rev-Exp Region 7'!Z$58","v":{"v":0,"d":"$0.00"}},{"$f":"'MMA Rev-Exp Region 7'!AA$58","v":{"v":0,"d":"$0.00"}},{"$f":"'MMA Rev-Exp Region 7'!AB$58","v":{"v":0,"d":"$0.00"}},{"$f":"'MMA Rev-Exp Region 7'!AC$58","v":{"v":0,"d":"$0.00"}},{"$f":"'MMA Rev-Exp Region 7'!AD$58","v":{"v":0,"d":"$0.00"}},{"$f":"'MMA Rev-Exp Region 7'!AE$58","v":{"v":0,"d":"$0.00"}},{"$f":"'MMA Rev-Exp Region 7'!AF$58","v":{"v":0,"d":"$0.00"}},{"$f":"'MMA Rev-Exp Region 7'!AG$58","v":{"v":0,"d":"$0.00"}},{"$f":"'MMA Rev-Exp Region 7'!AH$58","v":{"v":0,"d":"$0.00"}},{"$f":"'MMA Rev-Exp Region 7'!AI$58","v":{"v":0,"d":"$0.00"}},{"$f":"'MMA Rev-Exp Region 7'!AJ$58","v":{"v":0,"d":"$0.00"}},{"v":0,"d":"$0.00"}]
["MMA",null,null,{"$f":"Jurat!I$1","v":0},{"$f":"Jurat!D$33","v":"00:00:00"},"Q3","2017-09-30","Region 7","Operating Expense","Medical Benefits Expense","Pharmacy Services","8.6","Prescription Drugs Subcapitation",{"$f":"'MMA Rev-Exp Region 7'!Z$61","v":{"v":0,"d":"$0.00"}},{"$f":"'MMA Rev-Exp Region 7'!AA$61","v":{"v":0,"d":"$0.00"}},{"$f":"'MMA Rev-Exp Region 7'!AB$61","v":{"v":0,"d":"$0.00"}},{"$f":"'MMA Rev-Exp Region 7'!AC$61","v":{"v":0,"d":"$0.00"}},{"$f":"'MMA Rev-Exp Region 7'!AD$61","v":{"v":0,"d":"$0.00"}},{"$f":"'MMA Rev-Exp Region 7'!AE$61","v":{"v":0,"d":"$0.00"}},{"$f":"'MMA Rev-Exp Region 7'!AF$61","v":{"v":0,"d":"$0.00"}},{"$f":"'MMA Rev-Exp Region 7'!AG$61","v":{"v":0,"d":"$0.00"}},{"$f":"'MMA Rev-Exp Region 7'!AH$61","v":{"v":0,"d":"$0.00"}},{"$f":"'MMA Rev-Exp Region 7'!AI$61","v":{"v":0,"d":"$0.00"}},{"$f":"'MMA Rev-Exp Region 7'!AJ$61","v":{"v":0,"d":"$0.00"}},{"v":0,"d":"$0.00"}]
["MMA",null,null,{"$f":"Jurat!I$1","v":0},{"$f":"Jurat!D$33","v":"00:00:00"},"Q3","2017-09-30","Region 7","Operating Expense","Medical Benefits Expense","Other MMA Services","9.2","Hospice FFS",{"$f":"'MMA Rev-Exp Region 7'!Z$65","v":{"v":0,"d":"$0.00"}},{"$f":"'MMA Rev-Exp Region 7'!AA$65","v":{"v":0,"d":"$0.00"}},{"$f":"'MMA Rev-Exp Region 7'!AB$65","v":{"v":0,"d":"$0.00"}},{"$f":"'MMA Rev-Exp Region 7'!AC$65","v":{"v":0,"d":"$0.00"}},{"$f":"'MMA Rev-Exp Region 7'!AD$65","v":{"v":0,"d":"$0.00"}},{"$f":"'MMA Rev-Exp Region 7'!AE$65","v":{"v":0,"d":"$0.00"}},{"$f":"'MMA Rev-Exp Region 7'!AF$65","v":{"v":0,"d":"$0.00"}},{"$f":"'MMA Rev-Exp Region 7'!AG$65","v":{"v":0,"d":"$0.00"}},{"$f":"'MMA Rev-Exp Region 7'!AH$65","v":{"v":0,"d":"$0.00"}},{"$f":"'MMA Rev-Exp Region 7'!AI$65","v":{"v":0,"d":"$0.00"}},{"$f":"'MMA Rev-Exp Region 7'!AJ$65","v":{"v":0,"d":"$0.00"}},{"v":0,"d":"$0.00"}]
["MMA",null,null,{"$f":"Jurat!I$1","v":0},{"$f":"Jurat!D$33","v":"00:00:00"},"Q3","2017-09-30","Region 7","Operating Expense","Medical Benefits Expense","Other MMA Services","9.5","Other Services Subcapitation",{"$f":"'MMA Rev-Exp Region 7'!Z$68","v":{"v":0,"d":"$0.00"}},{"$f":"'MMA Rev-Exp Region 7'!AA$68","v":{"v":0,"d":"$0.00"}},{"$f":"'MMA Rev-Exp Region 7'!AB$68","v":{"v":0,"d":"$0.00"}},{"$f":"'MMA Rev-Exp Region 7'!AC$68","v":{"v":0,"d":"$0.00"}},{"$f":"'MMA Rev-Exp Region 7'!AD$68","v":{"v":0,"d":"$0.00"}},{"$f":"'MMA Rev-Exp Region 7'!AE$68","v":{"v":0,"d":"$0.00"}},{"$f":"'MMA Rev-Exp Region 7'!AF$68","v":{"v":0,"d":"$0.00"}},{"$f":"'MMA Rev-Exp Region 7'!AG$68","v":{"v":0,"d":"$0.00"}},{"$f":"'MMA Rev-Exp Region 7'!AH$68","v":{"v":0,"d":"$0.00"}},{"$f":"'MMA Rev-Exp Region 7'!AI$68","v":{"v":0,"d":"$0.00"}},{"$f":"'MMA Rev-Exp Region 7'!AJ$68","v":{"v":0,"d":"$0.00"}},{"v":0,"d":"$0.00"}]
["MMA",null,null,{"$f":"Jurat!I$1","v":0},{"$f":"Jurat!D$33","v":"00:00:00"},"Q3","2017-09-30","Region 7","Operating Expense","Medical Benefits Expense","Expanded Benefits","10.2","Expanded benefits Subcapitation",{"$f":"'MMA Rev-Exp Region 7'!Z$73","v":{"v":0,"d":"$0.00"}},{"$f":"'MMA Rev-Exp Region 7'!AA$73","v":{"v":0,"d":"$0.00"}},{"$f":"'MMA Rev-Exp Region 7'!AB$73","v":{"v":0,"d":"$0.00"}},{"$f":"'MMA Rev-Exp Region 7'!AC$73","v":{"v":0,"d":"$0.00"}},{"$f":"'MMA Rev-Exp Region 7'!AD$73","v":{"v":0,"d":"$0.00"}},{"$f":"'MMA Rev-Exp Region 7'!AE$73","v":{"v":0,"d":"$0.00"}},{"$f":"'MMA Rev-Exp Region 7'!AF$73","v":{"v":0,"d":"$0.00"}},{"$f":"'MMA Rev-Exp Region 7'!AG$73","v":{"v":0,"d":"$0.00"}},{"$f":"'MMA Rev-Exp Region 7'!AH$73","v":{"v":0,"d":"$0.00"}},{"$f":"'MMA Rev-Exp Region 7'!AI$73","v":{"v":0,"d":"$0.00"}},{"$f":"'MMA Rev-Exp Region 7'!AJ$73","v":{"v":0,"d":"$0.00"}},{"v":0,"d":"$0.00"}]
["MMA",null,null,{"$f":"Jurat!I$1","v":0},{"$f":"Jurat!D$33","v":"00:00:00"},"Q3","2017-09-30","Region 7","Operating Expense","Medical Benefits Expense","Other Medical","11.5","TPL & Fraud/Abuse Recoveries",{"$f":"'MMA Rev-Exp Region 7'!Z$81","v":{"v":0,"d":"$0.00"}},{"$f":"'MMA Rev-Exp Region 7'!AA$81","v":{"v":0,"d":"$0.00"}},{"$f":"'MMA Rev-Exp Region 7'!AB$81","v":{"v":0,"d":"$0.00"}},{"$f":"'MMA Rev-Exp Region 7'!AC$81","v":{"v":0,"d":"$0.00"}},{"$f":"'MMA Rev-Exp Region 7'!AD$81","v":{"v":0,"d":"$0.00"}},{"$f":"'MMA Rev-Exp Region 7'!AE$81","v":{"v":0,"d":"$0.00"}},{"$f":"'MMA Rev-Exp Region 7'!AF$81","v":{"v":0,"d":"$0.00"}},{"$f":"'MMA Rev-Exp Region 7'!AG$81","v":{"v":0,"d":"$0.00"}},{"$f":"'MMA Rev-Exp Region 7'!AH$81","v":{"v":0,"d":"$0.00"}},{"$f":"'MMA Rev-Exp Region 7'!AI$81","v":{"v":0,"d":"$0.00"}},{"$f":"'MMA Rev-Exp Region 7'!AJ$81","v":{"v":0,"d":"$0.00"}},{"v":0,"d":"$0.00"}]
["MMA",null,null,{"$f":"Jurat!I$1","v":0},{"$f":"Jurat!D$33","v":"00:00:00"},"Q3","2017-09-30","Region 7","Operating Expense","Medical Benefits Expense","Other Medical","11.9","Reinsurance Recoveries",{"$f":"'MMA Rev-Exp Region 7'!Z$85","v":{"v":0,"d":"$0.00"}},{"$f":"'MMA Rev-Exp Region 7'!AA$85","v":{"v":0,"d":"$0.00"}},{"$f":"'MMA Rev-Exp Region 7'!AB$85","v":{"v":0,"d":"$0.00"}},{"$f":"'MMA Rev-Exp Region 7'!AC$85","v":{"v":0,"d":"$0.00"}},{"$f":"'MMA Rev-Exp Region 7'!AD$85","v":{"v":0,"d":"$0.00"}},{"$f":"'MMA Rev-Exp Region 7'!AE$85","v":{"v":0,"d":"$0.00"}},{"$f":"'MMA Rev-Exp Region 7'!AF$85","v":{"v":0,"d":"$0.00"}},{"$f":"'MMA Rev-Exp Region 7'!AG$85","v":{"v":0,"d":"$0.00"}},{"$f":"'MMA Rev-Exp Region 7'!AH$85","v":{"v":0,"d":"$0.00"}},{"$f":"'MMA Rev-Exp Region 7'!AI$85","v":{"v":0,"d":"$0.00"}},{"$f":"'MMA Rev-Exp Region 7'!AJ$85","v":{"v":0,"d":"$0.00"}},{"v":0,"d":"$0.00"}]
["MMA",null,null,{"$f":"Jurat!I$1","v":0},{"$f":"Jurat!D$33","v":"00:00:00"},"Q3","2017-09-30","Region 7","Operating Expense","Administrative Expense","Administrative","12.1","Salaries & Benefits",{"$f":"'MMA Rev-Exp Region 7'!Z$90","v":{"v":0,"d":"$0.00"}},{"v":0,"d":"$0.00"},{"v":0,"d":"$0.00"},{"v":0,"d":"$0.00"},{"v":0,"d":"$0.00"},{"v":0,"d":"$0.00"},{"v":0,"d":"$0.00"},{"v":0,"d":"$0.00"},{"v":0,"d":"$0.00"},{"v":0,"d":"$0.00"},{"v":0,"d":"$0.00"},{"v":0,"d":"$0.00"}]
["MMA",null,null,{"$f":"Jurat!I$1","v":0},{"$f":"Jurat!D$33","v":"00:00:00"},"Q3","2017-09-30","Region 7","Operating Expense","Administrative Expense","Administrative","12.4","Marketing Expenses",{"$f":"'MMA Rev-Exp Region 7'!Z$93","v":{"v":0,"d":"$0.00"}},{"v":0,"d":"$0.00"},{"v":0,"d":"$0.00"},{"v":0,"d":"$0.00"},{"v":0,"d":"$0.00"},{"v":0,"d":"$0.00"},{"v":0,"d":"$0.00"},{"v":0,"d":"$0.00"},{"v":0,"d":"$0.00"},{"v":0,"d":"$0.00"},{"v":0,"d":"$0.00"},{"v":0,"d":"$0.00"}]
["MMA",null,null,{"$f":"Jurat!I$1","v":0},{"$f":"Jurat!D$33","v":"00:00:00"},"Q3","2017-09-30","Region 7","Operating Expense","Taxes & Fees","Taxes & Fees","13.2","Department of Insurance Assessments",{"$f":"'MMA Rev-Exp Region 7'!Z$98","v":{"v":0,"d":"$0.00"}},{"v":0,"d":"$0.00"},{"v":0,"d":"$0.00"},{"v":0,"d":"$0.00"},{"v":0,"d":"$0.00"},{"v":0,"d":"$0.00"},{"v":0,"d":"$0.00"},{"v":0,"d":"$0.00"},{"v":0,"d":"$0.00"},{"v":0,"d":"$0.00"},{"v":0,"d":"$0.00"},{"v":0,"d":"$0.00"}]
["MMA",null,null,{"$f":"Jurat!I$1","v":0},{"$f":"Jurat!D$33","v":"00:00:00"},"Q4","2017-12-31","Region 7","Member Months","Member Months","Member Months",null,"Member Months",{"$f":"'MMA Rev-Exp Region 7'!AK$9","v":{"v":0,"d":"$0.00"}},{"$f":"'MMA Rev-Exp Region 7'!AL$9","v":{"v":0,"d":"$0.00"}},{"$f":"'MMA Rev-Exp Region 7'!AM$9","v":{"v":0,"d":"$0.00"}},{"$f":"'MMA Rev-Exp Region 7'!AN$9","v":{"v":0,"d":"$0.00"}},{"$f":"'MMA Rev-Exp Region 7'!AO$9","v":{"v":0,"d":"$0.00"}},{"$f":"'MMA Rev-Exp Region 7'!AP$9","v":{"v":0,"d":"$0.00"}},{"$f":"'MMA Rev-Exp Region 7'!AQ$9","v":{"v":0,"d":"$0.00"}},{"$f":"'MMA Rev-Exp Region 7'!AR$9","v":{"v":0,"d":"$0.00"}},{"$f":"'MMA Rev-Exp Region 7'!AS$9","v":{"v":0,"d":"$0.00"}},{"$f":"'MMA Rev-Exp Region 7'!AT$9","v":{"v":0,"d":"$0.00"}},{"$f":"'MMA Rev-Exp Region 7'!AU$9","v":{"v":0,"d":"$0.00"}},{"v":0,"d":"$0.00"}]
["MMA",null,null,{"$f":"Jurat!I$1","v":0},{"$f":"Jurat!D$33","v":"00:00:00"},"Q4","2017-12-31","Region 7","Operating Revenue","Kick Payments","Kick Payments - Transplant",1.2,"Transplant Kick Payments",{"$f":"'MMA Rev-Exp Region 7'!AK$12","v":{"v":0,"d":"$0.00"}},{"$f":"'MMA Rev-Exp Region 7'!AL$12","v":{"v":0,"d":"$0.00"}},{"$f":"'MMA Rev-Exp Region 7'!AM$12","v":{"v":0,"d":"$0.00"}},{"$f":"'MMA Rev-Exp Region 7'!AN$12","v":{"v":0,"d":"$0.00"}},{"$f":"'MMA Rev-Exp Region 7'!AO$12","v":{"v":0,"d":"$0.00"}},{"$f":"'MMA Rev-Exp Region 7'!AP$12","v":{"v":0,"d":"$0.00"}},{"$f":"'MMA Rev-Exp Region 7'!AQ$12","v":{"v":0,"d":"$0.00"}},{"$f":"'MMA Rev-Exp Region 7'!AR$12","v":{"v":0,"d":"$0.00"}},{"$f":"'MMA Rev-Exp Region 7'!AS$12","v":{"v":0,"d":"$0.00"}},{"$f":"'MMA Rev-Exp Region 7'!AT$12","v":{"v":0,"d":"$0.00"}},{"$f":"'MMA Rev-Exp Region 7'!AU$12","v":{"v":0,"d":"$0.00"}},{"v":0,"d":"$0.00"}]
["MMA",null,null,{"$f":"Jurat!I$1","v":0},{"$f":"Jurat!D$33","v":"00:00:00"},"Q4","2017-12-31","Region 7","Operating Revenue","Other Revenue","Other Revenue","1.6","Other Revenue",{"$f":"'MMA Rev-Exp Region 7'!AK$16","v":{"v":0,"d":"$0.00"}},{"$f":"'MMA Rev-Exp Region 7'!AL$16","v":{"v":0,"d":"$0.00"}},{"$f":"'MMA Rev-Exp Region 7'!AM$16","v":{"v":0,"d":"$0.00"}},{"$f":"'MMA Rev-Exp Region 7'!AN$16","v":{"v":0,"d":"$0.00"}},{"$f":"'MMA Rev-Exp Region 7'!AO$16","v":{"v":0,"d":"$0.00"}},{"$f":"'MMA Rev-Exp Region 7'!AP$16","v":{"v":0,"d":"$0.00"}},{"$f":"'MMA Rev-Exp Region 7'!AQ$16","v":{"v":0,"d":"$0.00"}},{"$f":"'MMA Rev-Exp Region 7'!AR$16","v":{"v":0,"d":"$0.00"}},{"$f":"'MMA Rev-Exp Region 7'!AS$16","v":{"v":0,"d":"$0.00"}},{"$f":"'MMA Rev-Exp Region 7'!AT$16","v":{"v":0,"d":"$0.00"}},{"$f":"'MMA Rev-Exp Region 7'!AU$16","v":{"v":0,"d":"$0.00"}},{"v":0,"d":"$0.00"}]
["MMA",null,null,{"$f":"Jurat!I$1","v":0},{"$f":"Jurat!D$33","v":"00:00:00"},"Q4","2017-12-31","Region 7","Operating Expense","Medical Benefits Expense","Hospital Services",2.3,"Outpatient FFS: ER",{"$f":"'MMA Rev-Exp Region 7'!AK$22","v":{"v":0,"d":"$0.00"}},{"$f":"'MMA Rev-Exp Region 7'!AL$22","v":{"v":0,"d":"$0.00"}},{"$f":"'MMA Rev-Exp Region 7'!AM$22","v":{"v":0,"d":"$0.00"}},{"$f":"'MMA Rev-Exp Region 7'!AN$22","v":{"v":0,"d":"$0.00"}},{"$f":"'MMA Rev-Exp Region 7'!AO$22","v":{"v":0,"d":"$0.00"}},{"$f":"'MMA Rev-Exp Region 7'!AP$22","v":{"v":0,"d":"$0.00"}},{"$f":"'MMA Rev-Exp Region 7'!AQ$22","v":{"v":0,"d":"$0.00"}},{"$f":"'MMA Rev-Exp Region 7'!AR$22","v":{"v":0,"d":"$0.00"}},{"$f":"'MMA Rev-Exp Region 7'!AS$22","v":{"v":0,"d":"$0.00"}},{"$f":"'MMA Rev-Exp Region 7'!AT$22","v":{"v":0,"d":"$0.00"}},{"$f":"'MMA Rev-Exp Region 7'!AU$22","v":{"v":0,"d":"$0.00"}},{"v":0,"d":"$0.00"}]
["MMA",null,null,{"$f":"Jurat!I$1","v":0},{"$f":"Jurat!D$33","v":"00:00:00"},"Q4","2017-12-31","Region 7","Operating Expense","Medical Benefits Expense","Hospital Services",2.4,"Outpatient FFS: Other than ER ",{"$f":"'MMA Rev-Exp Region 7'!AK$23","v":{"v":0,"d":"$0.00"}},{"$f":"'MMA Rev-Exp Region 7'!AL$23","v":{"v":0,"d":"$0.00"}},{"$f":"'MMA Rev-Exp Region 7'!AM$23","v":{"v":0,"d":"$0.00"}},{"$f":"'MMA Rev-Exp Region 7'!AN$23","v":{"v":0,"d":"$0.00"}},{"$f":"'MMA Rev-Exp Region 7'!AO$23","v":{"v":0,"d":"$0.00"}},{"$f":"'MMA Rev-Exp Region 7'!AP$23","v":{"v":0,"d":"$0.00"}},{"$f":"'MMA Rev-Exp Region 7'!AQ$23","v":{"v":0,"d":"$0.00"}},{"$f":"'MMA Rev-Exp Region 7'!AR$23","v":{"v":0,"d":"$0.00"}},{"$f":"'MMA Rev-Exp Region 7'!AS$23","v":{"v":0,"d":"$0.00"}},{"$f":"'MMA Rev-Exp Region 7'!AT$23","v":{"v":0,"d":"$0.00"}},{"$f":"'MMA Rev-Exp Region 7'!AU$23","v":{"v":0,"d":"$0.00"}},{"v":0,"d":"$0.00"}]
["MMA",null,null,{"$f":"Jurat!I$1","v":0},{"$f":"Jurat!D$33","v":"00:00:00"},"Q4","2017-12-31","Region 7","Operating Expense","Medical Benefits Expense","Hospital Services","2.7","Hospital Settlements",{"$f":"'MMA Rev-Exp Region 7'!AK$26","v":{"v":0,"d":"$0.00"}},{"$f":"'MMA Rev-Exp Region 7'!AL$26","v":{"v":0,"d":"$0.00"}},{"$f":"'MMA Rev-Exp Region 7'!AM$26","v":{"v":0,"d":"$0.00"}},{"$f":"'MMA Rev-Exp Region 7'!AN$26","v":{"v":0,"d":"$0.00"}},{"$f":"'MMA Rev-Exp Region 7'!AO$26","v":{"v":0,"d":"$0.00"}},{"$f":"'MMA Rev-Exp Region 7'!AP$26","v":{"v":0,"d":"$0.00"}},{"$f":"'MMA Rev-Exp Region 7'!AQ$26","v":{"v":0,"d":"$0.00"}},{"$f":"'MMA Rev-Exp Region 7'!AR$26","v":{"v":0,"d":"$0.00"}},{"$f":"'MMA Rev-Exp Region 7'!AS$26","v":{"v":0,"d":"$0.00"}},{"$f":"'MMA Rev-Exp Region 7'!AT$26","v":{"v":0,"d":"$0.00"}},{"$f":"'MMA Rev-Exp Region 7'!AU$26","v":{"v":0,"d":"$0.00"}},{"v":0,"d":"$0.00"}]
["MMA",null,null,{"$f":"Jurat!I$1","v":0},{"$f":"Jurat!D$33","v":"00:00:00"},"Q4","2017-12-31","Region 7","Operating Expense","Medical Benefits Expense","Professional Services",3.2,"Specialty Care FFS",{"$f":"'MMA Rev-Exp Region 7'!AK$30","v":{"v":0,"d":"$0.00"}},{"$f":"'MMA Rev-Exp Region 7'!AL$30","v":{"v":0,"d":"$0.00"}},{"$f":"'MMA Rev-Exp Region 7'!AM$30","v":{"v":0,"d":"$0.00"}},{"$f":"'MMA Rev-Exp Region 7'!AN$30","v":{"v":0,"d":"$0.00"}},{"$f":"'MMA Rev-Exp Region 7'!AO$30","v":{"v":0,"d":"$0.00"}},{"$f":"'MMA Rev-Exp Region 7'!AP$30","v":{"v":0,"d":"$0.00"}},{"$f":"'MMA Rev-Exp Region 7'!AQ$30","v":{"v":0,"d":"$0.00"}},{"$f":"'MMA Rev-Exp Region 7'!AR$30","v":{"v":0,"d":"$0.00"}},{"$f":"'MMA Rev-Exp Region 7'!AS$30","v":{"v":0,"d":"$0.00"}},{"$f":"'MMA Rev-Exp Region 7'!AT$30","v":{"v":0,"d":"$0.00"}},{"$f":"'MMA Rev-Exp Region 7'!AU$30","v":{"v":0,"d":"$0.00"}},{"v":0,"d":"$0.00"}]
["MMA",null,null,{"$f":"Jurat!I$1","v":0},{"$f":"Jurat!D$33","v":"00:00:00"},"Q4","2017-12-31","Region 7","Operating Expense","Medical Benefits Expense","Professional Services","3.6","Ending IBNP for Professional Services",{"$f":"'MMA Rev-Exp Region 7'!AK$34","v":{"v":0,"d":"$0.00"}},{"$f":"'MMA Rev-Exp Region 7'!AL$34","v":{"v":0,"d":"$0.00"}},{"$f":"'MMA Rev-Exp Region 7'!AM$34","v":{"v":0,"d":"$0.00"}},{"$f":"'MMA Rev-Exp Region 7'!AN$34","v":{"v":0,"d":"$0.00"}},{"$f":"'MMA Rev-Exp Region 7'!AO$34","v":{"v":0,"d":"$0.00"}},{"$f":"'MMA Rev-Exp Region 7'!AP$34","v":{"v":0,"d":"$0.00"}},{"$f":"'MMA Rev-Exp Region 7'!AQ$34","v":{"v":0,"d":"$0.00"}},{"$f":"'MMA Rev-Exp Region 7'!AR$34","v":{"v":0,"d":"$0.00"}},{"$f":"'MMA Rev-Exp Region 7'!AS$34","v":{"v":0,"d":"$0.00"}},{"$f":"'MMA Rev-Exp Region 7'!AT$34","v":{"v":0,"d":"$0.00"}},{"$f":"'MMA Rev-Exp Region 7'!AU$34","v":{"v":0,"d":"$0.00"}},{"v":0,"d":"$0.00"}]
["MMA",null,null,{"$f":"Jurat!I$1","v":0},{"$f":"Jurat!D$33","v":"00:00:00"},"Q4","2017-12-31","Region 7","Operating Expense","Medical Benefits Expense","Maternity Services","4.2.1","Ending IBNP for Maternity Services",{"$f":"'MMA Rev-Exp Region 7'!AK$38","v":{"v":0,"d":"$0.00"}},{"$f":"'MMA Rev-Exp Region 7'!AL$38","v":{"v":0,"d":"$0.00"}},{"$f":"'MMA Rev-Exp Region 7'!AM$38","v":{"v":0,"d":"$0.00"}},{"$f":"'MMA Rev-Exp Region 7'!AN$38","v":{"v":0,"d":"$0.00"}},{"$f":"'MMA Rev-Exp Region 7'!AO$38","v":{"v":0,"d":"$0.00"}},{"$f":"'MMA Rev-Exp Region 7'!AP$38","v":{"v":0,"d":"$0.00"}},{"$f":"'MMA Rev-Exp Region 7'!AQ$38","v":{"v":0,"d":"$0.00"}},{"$f":"'MMA Rev-Exp Region 7'!AR$38","v":{"v":0,"d":"$0.00"}},{"$f":"'MMA Rev-Exp Region 7'!AS$38","v":{"v":0,"d":"$0.00"}},{"$f":"'MMA Rev-Exp Region 7'!AT$38","v":{"v":0,"d":"$0.00"}},{"$f":"'MMA Rev-Exp Region 7'!AU$38","v":{"v":0,"d":"$0.00"}},{"v":0,"d":"$0.00"}]
["MMA",null,null,{"$f":"Jurat!I$1","v":0},{"$f":"Jurat!D$33","v":"00:00:00"},"Q4","2017-12-31","Region 7","Operating Expense","Medical Benefits Expense","Mental Health Services",5.1,"Mental Health & Substance Abuse FFS",{"$f":"'MMA Rev-Exp Region 7'!AK$41","v":{"v":0,"d":"$0.00"}},{"$f":"'MMA Rev-Exp Region 7'!AL$41","v":{"v":0,"d":"$0.00"}},{"$f":"'MMA Rev-Exp Region 7'!AM$41","v":{"v":0,"d":"$0.00"}},{"$f":"'MMA Rev-Exp Region 7'!AN$41","v":{"v":0,"d":"$0.00"}},{"$f":"'MMA Rev-Exp Region 7'!AO$41","v":{"v":0,"d":"$0.00"}},{"$f":"'MMA Rev-Exp Region 7'!AP$41","v":{"v":0,"d":"$0.00"}},{"$f":"'MMA Rev-Exp Region 7'!AQ$41","v":{"v":0,"d":"$0.00"}},{"$f":"'MMA Rev-Exp Region 7'!AR$41","v":{"v":0,"d":"$0.00"}},{"$f":"'MMA Rev-Exp Region 7'!AS$41","v":{"v":0,"d":"$0.00"}},{"$f":"'MMA Rev-Exp Region 7'!AT$41","v":{"v":0,"d":"$0.00"}},{"$f":"'MMA Rev-Exp Region 7'!AU$41","v":{"v":0,"d":"$0.00"}},{"v":0,"d":"$0.00"}]
["MMA",null,null,{"$f":"Jurat!I$1","v":0},{"$f":"Jurat!D$33","v":"00:00:00"},"Q4","2017-12-31","Region 7","Operating Expense","Medical Benefits Expense","Dental Services",6.1,"Dental FFS",{"$f":"'MMA Rev-Exp Region 7'!AK$46","v":{"v":0,"d":"$0.00"}},{"$f":"'MMA Rev-Exp Region 7'!AL$46","v":{"v":0,"d":"$0.00"}},{"$f":"'MMA Rev-Exp Region 7'!AM$46","v":{"v":0,"d":"$0.00"}},{"$f":"'MMA Rev-Exp Region 7'!AN$46","v":{"v":0,"d":"$0.00"}},{"$f":"'MMA Rev-Exp Region 7'!AO$46","v":{"v":0,"d":"$0.00"}},{"$f":"'MMA Rev-Exp Region 7'!AP$46","v":{"v":0,"d":"$0.00"}},{"$f":"'MMA Rev-Exp Region 7'!AQ$46","v":{"v":0,"d":"$0.00"}},{"$f":"'MMA Rev-Exp Region 7'!AR$46","v":{"v":0,"d":"$0.00"}},{"$f":"'MMA Rev-Exp Region 7'!AS$46","v":{"v":0,"d":"$0.00"}},{"$f":"'MMA Rev-Exp Region 7'!AT$46","v":{"v":0,"d":"$0.00"}},{"$f":"'MMA Rev-Exp Region 7'!AU$46","v":{"v":0,"d":"$0.00"}},{"v":0,"d":"$0.00"}]
["MMA",null,null,{"$f":"Jurat!I$1","v":0},{"$f":"Jurat!D$33","v":"00:00:00"},"Q4","2017-12-31","Region 7","Operating Expense","Medical Benefits Expense","Dental Services","6.4","Dental Settlements",{"$f":"'MMA Rev-Exp Region 7'!AK$49","v":{"v":0,"d":"$0.00"}},{"$f":"'MMA Rev-Exp Region 7'!AL$49","v":{"v":0,"d":"$0.00"}},{"$f":"'MMA Rev-Exp Region 7'!AM$49","v":{"v":0,"d":"$0.00"}},{"$f":"'MMA Rev-Exp Region 7'!AN$49","v":{"v":0,"d":"$0.00"}},{"$f":"'MMA Rev-Exp Region 7'!AO$49","v":{"v":0,"d":"$0.00"}},{"$f":"'MMA Rev-Exp Region 7'!AP$49","v":{"v":0,"d":"$0.00"}},{"$f":"'MMA Rev-Exp Region 7'!AQ$49","v":{"v":0,"d":"$0.00"}},{"$f":"'MMA Rev-Exp Region 7'!AR$49","v":{"v":0,"d":"$0.00"}},{"$f":"'MMA Rev-Exp Region 7'!AS$49","v":{"v":0,"d":"$0.00"}},{"$f":"'MMA Rev-Exp Region 7'!AT$49","v":{"v":0,"d":"$0.00"}},{"$f":"'MMA Rev-Exp Region 7'!AU$49","v":{"v":0,"d":"$0.00"}},{"v":0,"d":"$0.00"}]
["MMA",null,null,{"$f":"Jurat!I$1","v":0},{"$f":"Jurat!D$33","v":"00:00:00"},"Q4","2017-12-31","Region 7","Operating Expense","Medical Benefits Expense","Transportation Services",7.1,"Transportation FFS",{"$f":"'MMA Rev-Exp Region 7'!AK$51","v":{"v":0,"d":"$0.00"}},{"$f":"'MMA Rev-Exp Region 7'!AL$51","v":{"v":0,"d":"$0.00"}},{"$f":"'MMA Rev-Exp Region 7'!AM$51","v":{"v":0,"d":"$0.00"}},{"$f":"'MMA Rev-Exp Region 7'!AN$51","v":{"v":0,"d":"$0.00"}},{"$f":"'MMA Rev-Exp Region 7'!AO$51","v":{"v":0,"d":"$0.00"}},{"$f":"'MMA Rev-Exp Region 7'!AP$51","v":{"v":0,"d":"$0.00"}},{"$f":"'MMA Rev-Exp Region 7'!AQ$51","v":{"v":0,"d":"$0.00"}},{"$f":"'MMA Rev-Exp Region 7'!AR$51","v":{"v":0,"d":"$0.00"}},{"$f":"'MMA Rev-Exp Region 7'!AS$51","v":{"v":0,"d":"$0.00"}},{"$f":"'MMA Rev-Exp Region 7'!AT$51","v":{"v":0,"d":"$0.00"}},{"$f":"'MMA Rev-Exp Region 7'!AU$51","v":{"v":0,"d":"$0.00"}},{"v":0,"d":"$0.00"}]
["MMA",null,null,{"$f":"Jurat!I$1","v":0},{"$f":"Jurat!D$33","v":"00:00:00"},"Q4","2017-12-31","Region 7","Operating Expense","Medical Benefits Expense","Transportation Services","7.4","Transportation Settlements",{"$f":"'MMA Rev-Exp Region 7'!AK$54","v":{"v":0,"d":"$0.00"}},{"$f":"'MMA Rev-Exp Region 7'!AL$54","v":{"v":0,"d":"$0.00"}},{"$f":"'MMA Rev-Exp Region 7'!AM$54","v":{"v":0,"d":"$0.00"}},{"$f":"'MMA Rev-Exp Region 7'!AN$54","v":{"v":0,"d":"$0.00"}},{"$f":"'MMA Rev-Exp Region 7'!AO$54","v":{"v":0,"d":"$0.00"}},{"$f":"'MMA Rev-Exp Region 7'!AP$54","v":{"v":0,"d":"$0.00"}},{"$f":"'MMA Rev-Exp Region 7'!AQ$54","v":{"v":0,"d":"$0.00"}},{"$f":"'MMA Rev-Exp Region 7'!AR$54","v":{"v":0,"d":"$0.00"}},{"$f":"'MMA Rev-Exp Region 7'!AS$54","v":{"v":0,"d":"$0.00"}},{"$f":"'MMA Rev-Exp Region 7'!AT$54","v":{"v":0,"d":"$0.00"}},{"$f":"'MMA Rev-Exp Region 7'!AU$54","v":{"v":0,"d":"$0.00"}},{"v":0,"d":"$0.00"}]
["MMA",null,null,{"$f":"Jurat!I$1","v":0},{"$f":"Jurat!D$33","v":"00:00:00"},"Q4","2017-12-31","Region 7","Operating Expense","Medical Benefits Expense","Pharmacy Services","8.3","Ending IBNP for Prescription Drugs",{"$f":"'MMA Rev-Exp Region 7'!AK$58","v":{"v":0,"d":"$0.00"}},{"$f":"'MMA Rev-Exp Region 7'!AL$58","v":{"v":0,"d":"$0.00"}},{"$f":"'MMA Rev-Exp Region 7'!AM$58","v":{"v":0,"d":"$0.00"}},{"$f":"'MMA Rev-Exp Region 7'!AN$58","v":{"v":0,"d":"$0.00"}},{"$f":"'MMA Rev-Exp Region 7'!AO$58","v":{"v":0,"d":"$0.00"}},{"$f":"'MMA Rev-Exp Region 7'!AP$58","v":{"v":0,"d":"$0.00"}},{"$f":"'MMA Rev-Exp Region 7'!AQ$58","v":{"v":0,"d":"$0.00"}},{"$f":"'MMA Rev-Exp Region 7'!AR$58","v":{"v":0,"d":"$0.00"}},{"$f":"'MMA Rev-Exp Region 7'!AS$58","v":{"v":0,"d":"$0.00"}},{"$f":"'MMA Rev-Exp Region 7'!AT$58","v":{"v":0,"d":"$0.00"}},{"$f":"'MMA Rev-Exp Region 7'!AU$58","v":{"v":0,"d":"$0.00"}},{"v":0,"d":"$0.00"}]
["MMA",null,null,{"$f":"Jurat!I$1","v":0},{"$f":"Jurat!D$33","v":"00:00:00"},"Q4","2017-12-31","Region 7","Operating Expense","Medical Benefits Expense","Pharmacy Services","8.7","Prescription Drug Settlements",{"$f":"'MMA Rev-Exp Region 7'!AK$62","v":{"v":0,"d":"$0.00"}},{"$f":"'MMA Rev-Exp Region 7'!AL$62","v":{"v":0,"d":"$0.00"}},{"$f":"'MMA Rev-Exp Region 7'!AM$62","v":{"v":0,"d":"$0.00"}},{"$f":"'MMA Rev-Exp Region 7'!AN$62","v":{"v":0,"d":"$0.00"}},{"$f":"'MMA Rev-Exp Region 7'!AO$62","v":{"v":0,"d":"$0.00"}},{"$f":"'MMA Rev-Exp Region 7'!AP$62","v":{"v":0,"d":"$0.00"}},{"$f":"'MMA Rev-Exp Region 7'!AQ$62","v":{"v":0,"d":"$0.00"}},{"$f":"'MMA Rev-Exp Region 7'!AR$62","v":{"v":0,"d":"$0.00"}},{"$f":"'MMA Rev-Exp Region 7'!AS$62","v":{"v":0,"d":"$0.00"}},{"$f":"'MMA Rev-Exp Region 7'!AT$62","v":{"v":0,"d":"$0.00"}},{"$f":"'MMA Rev-Exp Region 7'!AU$62","v":{"v":0,"d":"$0.00"}},{"v":0,"d":"$0.00"}]
["MMA",null,null,{"$f":"Jurat!I$1","v":0},{"$f":"Jurat!D$33","v":"00:00:00"},"Q4","2017-12-31","Region 7","Operating Expense","Medical Benefits Expense","Other MMA Services","9.3","DME FFS",{"$f":"'MMA Rev-Exp Region 7'!AK$66","v":{"v":0,"d":"$0.00"}},{"$f":"'MMA Rev-Exp Region 7'!AL$66","v":{"v":0,"d":"$0.00"}},{"$f":"'MMA Rev-Exp Region 7'!AM$66","v":{"v":0,"d":"$0.00"}},{"$f":"'MMA Rev-Exp Region 7'!AN$66","v":{"v":0,"d":"$0.00"}},{"$f":"'MMA Rev-Exp Region 7'!AO$66","v":{"v":0,"d":"$0.00"}},{"$f":"'MMA Rev-Exp Region 7'!AP$66","v":{"v":0,"d":"$0.00"}},{"$f":"'MMA Rev-Exp Region 7'!AQ$66","v":{"v":0,"d":"$0.00"}},{"$f":"'MMA Rev-Exp Region 7'!AR$66","v":{"v":0,"d":"$0.00"}},{"$f":"'MMA Rev-Exp Region 7'!AS$66","v":{"v":0,"d":"$0.00"}},{"$f":"'MMA Rev-Exp Region 7'!AT$66","v":{"v":0,"d":"$0.00"}},{"$f":"'MMA Rev-Exp Region 7'!AU$66","v":{"v":0,"d":"$0.00"}},{"v":0,"d":"$0.00"}]
["MMA",null,null,{"$f":"Jurat!I$1","v":0},{"$f":"Jurat!D$33","v":"00:00:00"},"Q4","2017-12-31","Region 7","Operating Expense","Medical Benefits Expense","Other MMA Services","9.6","Ending IBNP for Other Services",{"$f":"'MMA Rev-Exp Region 7'!AK$69","v":{"v":0,"d":"$0.00"}},{"$f":"'MMA Rev-Exp Region 7'!AL$69","v":{"v":0,"d":"$0.00"}},{"$f":"'MMA Rev-Exp Region 7'!AM$69","v":{"v":0,"d":"$0.00"}},{"$f":"'MMA Rev-Exp Region 7'!AN$69","v":{"v":0,"d":"$0.00"}},{"$f":"'MMA Rev-Exp Region 7'!AO$69","v":{"v":0,"d":"$0.00"}},{"$f":"'MMA Rev-Exp Region 7'!AP$69","v":{"v":0,"d":"$0.00"}},{"$f":"'MMA Rev-Exp Region 7'!AQ$69","v":{"v":0,"d":"$0.00"}},{"$f":"'MMA Rev-Exp Region 7'!AR$69","v":{"v":0,"d":"$0.00"}},{"$f":"'MMA Rev-Exp Region 7'!AS$69","v":{"v":0,"d":"$0.00"}},{"$f":"'MMA Rev-Exp Region 7'!AT$69","v":{"v":0,"d":"$0.00"}},{"$f":"'MMA Rev-Exp Region 7'!AU$69","v":{"v":0,"d":"$0.00"}},{"v":0,"d":"$0.00"}]
["MMA",null,null,{"$f":"Jurat!I$1","v":0},{"$f":"Jurat!D$33","v":"00:00:00"},"Q4","2017-12-31","Region 7","Operating Expense","Medical Benefits Expense","Expanded Benefits","10.2","Expanded benefits Subcapitation",{"$f":"'MMA Rev-Exp Region 7'!AK$73","v":{"v":0,"d":"$0.00"}},{"$f":"'MMA Rev-Exp Region 7'!AL$73","v":{"v":0,"d":"$0.00"}},{"$f":"'MMA Rev-Exp Region 7'!AM$73","v":{"v":0,"d":"$0.00"}},{"$f":"'MMA Rev-Exp Region 7'!AN$73","v":{"v":0,"d":"$0.00"}},{"$f":"'MMA Rev-Exp Region 7'!AO$73","v":{"v":0,"d":"$0.00"}},{"$f":"'MMA Rev-Exp Region 7'!AP$73","v":{"v":0,"d":"$0.00"}},{"$f":"'MMA Rev-Exp Region 7'!AQ$73","v":{"v":0,"d":"$0.00"}},{"$f":"'MMA Rev-Exp Region 7'!AR$73","v":{"v":0,"d":"$0.00"}},{"$f":"'MMA Rev-Exp Region 7'!AS$73","v":{"v":0,"d":"$0.00"}},{"$f":"'MMA Rev-Exp Region 7'!AT$73","v":{"v":0,"d":"$0.00"}},{"$f":"'MMA Rev-Exp Region 7'!AU$73","v":{"v":0,"d":"$0.00"}},{"v":0,"d":"$0.00"}]
["MMA",null,null,{"$f":"Jurat!I$1","v":0},{"$f":"Jurat!D$33","v":"00:00:00"},"Q4","2017-12-31","Region 7","Operating Expense","Medical Benefits Expense","Other Medical","11.5","TPL & Fraud/Abuse Recoveries",{"$f":"'MMA Rev-Exp Region 7'!AK$81","v":{"v":0,"d":"$0.00"}},{"$f":"'MMA Rev-Exp Region 7'!AL$81","v":{"v":0,"d":"$0.00"}},{"$f":"'MMA Rev-Exp Region 7'!AM$81","v":{"v":0,"d":"$0.00"}},{"$f":"'MMA Rev-Exp Region 7'!AN$81","v":{"v":0,"d":"$0.00"}},{"$f":"'MMA Rev-Exp Region 7'!AO$81","v":{"v":0,"d":"$0.00"}},{"$f":"'MMA Rev-Exp Region 7'!AP$81","v":{"v":0,"d":"$0.00"}},{"$f":"'MMA Rev-Exp Region 7'!AQ$81","v":{"v":0,"d":"$0.00"}},{"$f":"'MMA Rev-Exp Region 7'!AR$81","v":{"v":0,"d":"$0.00"}},{"$f":"'MMA Rev-Exp Region 7'!AS$81","v":{"v":0,"d":"$0.00"}},{"$f":"'MMA Rev-Exp Region 7'!AT$81","v":{"v":0,"d":"$0.00"}},{"$f":"'MMA Rev-Exp Region 7'!AU$81","v":{"v":0,"d":"$0.00"}},{"v":0,"d":"$0.00"}]
["MMA",null,null,{"$f":"Jurat!I$1","v":0},{"$f":"Jurat!D$33","v":"00:00:00"},"Q4","2017-12-31","Region 7","Operating Expense","Medical Benefits Expense","Other Medical","11.6.1","Premium Deficiency Reserve",{"$f":"'MMA Rev-Exp Region 7'!AK$82","v":{"v":0,"d":"$0.00"}},{"$f":"'MMA Rev-Exp Region 7'!AL$82","v":{"v":0,"d":"$0.00"}},{"$f":"'MMA Rev-Exp Region 7'!AM$82","v":{"v":0,"d":"$0.00"}},{"$f":"'MMA Rev-Exp Region 7'!AN$82","v":{"v":0,"d":"$0.00"}},{"$f":"'MMA Rev-Exp Region 7'!AO$82","v":{"v":0,"d":"$0.00"}},{"$f":"'MMA Rev-Exp Region 7'!AP$82","v":{"v":0,"d":"$0.00"}},{"$f":"'MMA Rev-Exp Region 7'!AQ$82","v":{"v":0,"d":"$0.00"}},{"$f":"'MMA Rev-Exp Region 7'!AR$82","v":{"v":0,"d":"$0.00"}},{"$f":"'MMA Rev-Exp Region 7'!AS$82","v":{"v":0,"d":"$0.00"}},{"$f":"'MMA Rev-Exp Region 7'!AT$82","v":{"v":0,"d":"$0.00"}},{"$f":"'MMA Rev-Exp Region 7'!AU$82","v":{"v":0,"d":"$0.00"}},{"v":0,"d":"$0.00"}]
["MMA",null,null,{"$f":"Jurat!I$1","v":0},{"$f":"Jurat!D$33","v":"00:00:00"},"Q4","2017-12-31","Region 7","Operating Expense","Administrative Expense","Administrative","12.1","Salaries & Benefits",{"$f":"'MMA Rev-Exp Region 7'!AK$90","v":{"v":0,"d":"$0.00"}},{"v":0,"d":"$0.00"},{"v":0,"d":"$0.00"},{"v":0,"d":"$0.00"},{"v":0,"d":"$0.00"},{"v":0,"d":"$0.00"},{"v":0,"d":"$0.00"},{"v":0,"d":"$0.00"},{"v":0,"d":"$0.00"},{"v":0,"d":"$0.00"},{"v":0,"d":"$0.00"},{"v":0,"d":"$0.00"}]
["MMA",null,null,{"$f":"Jurat!I$1","v":0},{"$f":"Jurat!D$33","v":"00:00:00"},"Q4","2017-12-31","Region 7","Operating Expense","Administrative Expense","Administrative","12.4","Marketing Expenses",{"$f":"'MMA Rev-Exp Region 7'!AK$93","v":{"v":0,"d":"$0.00"}},{"v":0,"d":"$0.00"},{"v":0,"d":"$0.00"},{"v":0,"d":"$0.00"},{"v":0,"d":"$0.00"},{"v":0,"d":"$0.00"},{"v":0,"d":"$0.00"},{"v":0,"d":"$0.00"},{"v":0,"d":"$0.00"},{"v":0,"d":"$0.00"},{"v":0,"d":"$0.00"},{"v":0,"d":"$0.00"}]
["MMA",null,null,{"$f":"Jurat!I$1","v":0},{"$f":"Jurat!D$33","v":"00:00:00"},"Q4","2017-12-31","Region 7","Operating Expense","Taxes & Fees","Taxes & Fees","13.2","Department of Insurance Assessments",{"$f":"'MMA Rev-Exp Region 7'!AK$98","v":{"v":0,"d":"$0.00"}},{"v":0,"d":"$0.00"},{"v":0,"d":"$0.00"},{"v":0,"d":"$0.00"},{"v":0,"d":"$0.00"},{"v":0,"d":"$0.00"},{"v":0,"d":"$0.00"},{"v":0,"d":"$0.00"},{"v":0,"d":"$0.00"},{"v":0,"d":"$0.00"},{"v":0,"d":"$0.00"},{"v":0,"d":"$0.00"}]
["MMA",null,null,{"$f":"Jurat!I$1","v":0},{"$f":"Jurat!D$33","v":"00:00:00"},"Q1","2017-03-31","Region 8","Member Months","Member Months","Member Months",null,"Member Months",{"$f":"'MMA Rev-Exp Region 8'!D$9","v":{"v":0,"d":"$0.00"}},{"$f":"'MMA Rev-Exp Region 8'!E$9","v":{"v":0,"d":"$0.00"}},{"$f":"'MMA Rev-Exp Region 8'!F$9","v":{"v":0,"d":"$0.00"}},{"$f":"'MMA Rev-Exp Region 8'!G$9","v":{"v":0,"d":"$0.00"}},{"$f":"'MMA Rev-Exp Region 8'!H$9","v":{"v":0,"d":"$0.00"}},{"$f":"'MMA Rev-Exp Region 8'!I$9","v":{"v":0,"d":"$0.00"}},{"$f":"'MMA Rev-Exp Region 8'!J$9","v":{"v":0,"d":"$0.00"}},{"$f":"'MMA Rev-Exp Region 8'!K$9","v":{"v":0,"d":"$0.00"}},{"$f":"'MMA Rev-Exp Region 8'!L$9","v":{"v":0,"d":"$0.00"}},{"$f":"'MMA Rev-Exp Region 8'!M$9","v":{"v":0,"d":"$0.00"}},{"$f":"'MMA Rev-Exp Region 8'!N$9","v":{"v":0,"d":"$0.00"}},{"v":0,"d":"$0.00"}]
["MMA",null,null,{"$f":"Jurat!I$1","v":0},{"$f":"Jurat!D$33","v":"00:00:00"},"Q1","2017-03-31","Region 8","Operating Revenue","Kick Payments","Kick Payments - Maternity","1.4.1","Maternity Kick Payments",{"$f":"'MMA Rev-Exp Region 8'!D$14","v":{"v":0,"d":"$0.00"}},{"$f":"'MMA Rev-Exp Region 8'!E$14","v":{"v":0,"d":"$0.00"}},{"$f":"'MMA Rev-Exp Region 8'!F$14","v":{"v":0,"d":"$0.00"}},{"$f":"'MMA Rev-Exp Region 8'!G$14","v":{"v":0,"d":"$0.00"}},{"$f":"'MMA Rev-Exp Region 8'!H$14","v":{"v":0,"d":"$0.00"}},{"$f":"'MMA Rev-Exp Region 8'!I$14","v":{"v":0,"d":"$0.00"}},{"$f":"'MMA Rev-Exp Region 8'!J$14","v":{"v":0,"d":"$0.00"}},{"$f":"'MMA Rev-Exp Region 8'!K$14","v":{"v":0,"d":"$0.00"}},{"$f":"'MMA Rev-Exp Region 8'!L$14","v":{"v":0,"d":"$0.00"}},{"$f":"'MMA Rev-Exp Region 8'!M$14","v":{"v":0,"d":"$0.00"}},{"$f":"'MMA Rev-Exp Region 8'!N$14","v":{"v":0,"d":"$0.00"}},{"v":0,"d":"$0.00"}]
["MMA",null,null,{"$f":"Jurat!I$1","v":0},{"$f":"Jurat!D$33","v":"00:00:00"},"Q1","2017-03-31","Region 8","Operating Expense","Medical Benefits Expense","Hospital Services",2.1,"Inpatient FFS",{"$f":"'MMA Rev-Exp Region 8'!D$20","v":{"v":0,"d":"$0.00"}},{"$f":"'MMA Rev-Exp Region 8'!E$20","v":{"v":0,"d":"$0.00"}},{"$f":"'MMA Rev-Exp Region 8'!F$20","v":{"v":0,"d":"$0.00"}},{"$f":"'MMA Rev-Exp Region 8'!G$20","v":{"v":0,"d":"$0.00"}},{"$f":"'MMA Rev-Exp Region 8'!H$20","v":{"v":0,"d":"$0.00"}},{"$f":"'MMA Rev-Exp Region 8'!I$20","v":{"v":0,"d":"$0.00"}},{"$f":"'MMA Rev-Exp Region 8'!J$20","v":{"v":0,"d":"$0.00"}},{"$f":"'MMA Rev-Exp Region 8'!K$20","v":{"v":0,"d":"$0.00"}},{"$f":"'MMA Rev-Exp Region 8'!L$20","v":{"v":0,"d":"$0.00"}},{"$f":"'MMA Rev-Exp Region 8'!M$20","v":{"v":0,"d":"$0.00"}},{"$f":"'MMA Rev-Exp Region 8'!N$20","v":{"v":0,"d":"$0.00"}},{"v":0,"d":"$0.00"}]
["MMA",null,null,{"$f":"Jurat!I$1","v":0},{"$f":"Jurat!D$33","v":"00:00:00"},"Q1","2017-03-31","Region 8","Operating Expense","Medical Benefits Expense","Hospital Services",2.4,"Outpatient FFS: Other than ER ",{"$f":"'MMA Rev-Exp Region 8'!D$23","v":{"v":0,"d":"$0.00"}},{"$f":"'MMA Rev-Exp Region 8'!E$23","v":{"v":0,"d":"$0.00"}},{"$f":"'MMA Rev-Exp Region 8'!F$23","v":{"v":0,"d":"$0.00"}},{"$f":"'MMA Rev-Exp Region 8'!G$23","v":{"v":0,"d":"$0.00"}},{"$f":"'MMA Rev-Exp Region 8'!H$23","v":{"v":0,"d":"$0.00"}},{"$f":"'MMA Rev-Exp Region 8'!I$23","v":{"v":0,"d":"$0.00"}},{"$f":"'MMA Rev-Exp Region 8'!J$23","v":{"v":0,"d":"$0.00"}},{"$f":"'MMA Rev-Exp Region 8'!K$23","v":{"v":0,"d":"$0.00"}},{"$f":"'MMA Rev-Exp Region 8'!L$23","v":{"v":0,"d":"$0.00"}},{"$f":"'MMA Rev-Exp Region 8'!M$23","v":{"v":0,"d":"$0.00"}},{"$f":"'MMA Rev-Exp Region 8'!N$23","v":{"v":0,"d":"$0.00"}},{"v":0,"d":"$0.00"}]
["MMA",null,null,{"$f":"Jurat!I$1","v":0},{"$f":"Jurat!D$33","v":"00:00:00"},"Q1","2017-03-31","Region 8","Operating Expense","Medical Benefits Expense","Hospital Services","2.6","Subcapitated Hospital Services",{"$f":"'MMA Rev-Exp Region 8'!D$25","v":{"v":0,"d":"$0.00"}},{"$f":"'MMA Rev-Exp Region 8'!E$25","v":{"v":0,"d":"$0.00"}},{"$f":"'MMA Rev-Exp Region 8'!F$25","v":{"v":0,"d":"$0.00"}},{"$f":"'MMA Rev-Exp Region 8'!G$25","v":{"v":0,"d":"$0.00"}},{"$f":"'MMA Rev-Exp Region 8'!H$25","v":{"v":0,"d":"$0.00"}},{"$f":"'MMA Rev-Exp Region 8'!I$25","v":{"v":0,"d":"$0.00"}},{"$f":"'MMA Rev-Exp Region 8'!J$25","v":{"v":0,"d":"$0.00"}},{"$f":"'MMA Rev-Exp Region 8'!K$25","v":{"v":0,"d":"$0.00"}},{"$f":"'MMA Rev-Exp Region 8'!L$25","v":{"v":0,"d":"$0.00"}},{"$f":"'MMA Rev-Exp Region 8'!M$25","v":{"v":0,"d":"$0.00"}},{"$f":"'MMA Rev-Exp Region 8'!N$25","v":{"v":0,"d":"$0.00"}},{"v":0,"d":"$0.00"}]
["MMA",null,null,{"$f":"Jurat!I$1","v":0},{"$f":"Jurat!D$33","v":"00:00:00"},"Q1","2017-03-31","Region 8","Operating Expense","Medical Benefits Expense","Hospital Services","2.7","Hospital Settlements",{"$f":"'MMA Rev-Exp Region 8'!D$26","v":{"v":0,"d":"$0.00"}},{"$f":"'MMA Rev-Exp Region 8'!E$26","v":{"v":0,"d":"$0.00"}},{"$f":"'MMA Rev-Exp Region 8'!F$26","v":{"v":0,"d":"$0.00"}},{"$f":"'MMA Rev-Exp Region 8'!G$26","v":{"v":0,"d":"$0.00"}},{"$f":"'MMA Rev-Exp Region 8'!H$26","v":{"v":0,"d":"$0.00"}},{"$f":"'MMA Rev-Exp Region 8'!I$26","v":{"v":0,"d":"$0.00"}},{"$f":"'MMA Rev-Exp Region 8'!J$26","v":{"v":0,"d":"$0.00"}},{"$f":"'MMA Rev-Exp Region 8'!K$26","v":{"v":0,"d":"$0.00"}},{"$f":"'MMA Rev-Exp Region 8'!L$26","v":{"v":0,"d":"$0.00"}},{"$f":"'MMA Rev-Exp Region 8'!M$26","v":{"v":0,"d":"$0.00"}},{"$f":"'MMA Rev-Exp Region 8'!N$26","v":{"v":0,"d":"$0.00"}},{"v":0,"d":"$0.00"}]
["MMA",null,null,{"$f":"Jurat!I$1","v":0},{"$f":"Jurat!D$33","v":"00:00:00"},"Q1","2017-03-31","Region 8","Operating Expense","Medical Benefits Expense","Professional Services",3.2,"Specialty Care FFS",{"$f":"'MMA Rev-Exp Region 8'!D$30","v":{"v":0,"d":"$0.00"}},{"$f":"'MMA Rev-Exp Region 8'!E$30","v":{"v":0,"d":"$0.00"}},{"$f":"'MMA Rev-Exp Region 8'!F$30","v":{"v":0,"d":"$0.00"}},{"$f":"'MMA Rev-Exp Region 8'!G$30","v":{"v":0,"d":"$0.00"}},{"$f":"'MMA Rev-Exp Region 8'!H$30","v":{"v":0,"d":"$0.00"}},{"$f":"'MMA Rev-Exp Region 8'!I$30","v":{"v":0,"d":"$0.00"}},{"$f":"'MMA Rev-Exp Region 8'!J$30","v":{"v":0,"d":"$0.00"}},{"$f":"'MMA Rev-Exp Region 8'!K$30","v":{"v":0,"d":"$0.00"}},{"$f":"'MMA Rev-Exp Region 8'!L$30","v":{"v":0,"d":"$0.00"}},{"$f":"'MMA Rev-Exp Region 8'!M$30","v":{"v":0,"d":"$0.00"}},{"$f":"'MMA Rev-Exp Region 8'!N$30","v":{"v":0,"d":"$0.00"}},{"v":0,"d":"$0.00"}]
["MMA",null,null,{"$f":"Jurat!I$1","v":0},{"$f":"Jurat!D$33","v":"00:00:00"},"Q1","2017-03-31","Region 8","Operating Expense","Medical Benefits Expense","Professional Services","3.6","Ending IBNP for Professional Services",{"$f":"'MMA Rev-Exp Region 8'!D$34","v":{"v":0,"d":"$0.00"}},{"$f":"'MMA Rev-Exp Region 8'!E$34","v":{"v":0,"d":"$0.00"}},{"$f":"'MMA Rev-Exp Region 8'!F$34","v":{"v":0,"d":"$0.00"}},{"$f":"'MMA Rev-Exp Region 8'!G$34","v":{"v":0,"d":"$0.00"}},{"$f":"'MMA Rev-Exp Region 8'!H$34","v":{"v":0,"d":"$0.00"}},{"$f":"'MMA Rev-Exp Region 8'!I$34","v":{"v":0,"d":"$0.00"}},{"$f":"'MMA Rev-Exp Region 8'!J$34","v":{"v":0,"d":"$0.00"}},{"$f":"'MMA Rev-Exp Region 8'!K$34","v":{"v":0,"d":"$0.00"}},{"$f":"'MMA Rev-Exp Region 8'!L$34","v":{"v":0,"d":"$0.00"}},{"$f":"'MMA Rev-Exp Region 8'!M$34","v":{"v":0,"d":"$0.00"}},{"$f":"'MMA Rev-Exp Region 8'!N$34","v":{"v":0,"d":"$0.00"}},{"v":0,"d":"$0.00"}]
["MMA",null,null,{"$f":"Jurat!I$1","v":0},{"$f":"Jurat!D$33","v":"00:00:00"},"Q1","2017-03-31","Region 8","Operating Expense","Medical Benefits Expense","Maternity Services","4.2.1","Ending IBNP for Maternity Services",{"$f":"'MMA Rev-Exp Region 8'!D$38","v":{"v":0,"d":"$0.00"}},{"$f":"'MMA Rev-Exp Region 8'!E$38","v":{"v":0,"d":"$0.00"}},{"$f":"'MMA Rev-Exp Region 8'!F$38","v":{"v":0,"d":"$0.00"}},{"$f":"'MMA Rev-Exp Region 8'!G$38","v":{"v":0,"d":"$0.00"}},{"$f":"'MMA Rev-Exp Region 8'!H$38","v":{"v":0,"d":"$0.00"}},{"$f":"'MMA Rev-Exp Region 8'!I$38","v":{"v":0,"d":"$0.00"}},{"$f":"'MMA Rev-Exp Region 8'!J$38","v":{"v":0,"d":"$0.00"}},{"$f":"'MMA Rev-Exp Region 8'!K$38","v":{"v":0,"d":"$0.00"}},{"$f":"'MMA Rev-Exp Region 8'!L$38","v":{"v":0,"d":"$0.00"}},{"$f":"'MMA Rev-Exp Region 8'!M$38","v":{"v":0,"d":"$0.00"}},{"$f":"'MMA Rev-Exp Region 8'!N$38","v":{"v":0,"d":"$0.00"}},{"v":0,"d":"$0.00"}]
["MMA",null,null,{"$f":"Jurat!I$1","v":0},{"$f":"Jurat!D$33","v":"00:00:00"},"Q1","2017-03-31","Region 8","Operating Expense","Medical Benefits Expense","Mental Health Services",5.3,"Ending IBNP for Mental Health & Substance Abuse",{"$f":"'MMA Rev-Exp Region 8'!D$43","v":{"v":0,"d":"$0.00"}},{"$f":"'MMA Rev-Exp Region 8'!E$43","v":{"v":0,"d":"$0.00"}},{"$f":"'MMA Rev-Exp Region 8'!F$43","v":{"v":0,"d":"$0.00"}},{"$f":"'MMA Rev-Exp Region 8'!G$43","v":{"v":0,"d":"$0.00"}},{"$f":"'MMA Rev-Exp Region 8'!H$43","v":{"v":0,"d":"$0.00"}},{"$f":"'MMA Rev-Exp Region 8'!I$43","v":{"v":0,"d":"$0.00"}},{"$f":"'MMA Rev-Exp Region 8'!J$43","v":{"v":0,"d":"$0.00"}},{"$f":"'MMA Rev-Exp Region 8'!K$43","v":{"v":0,"d":"$0.00"}},{"$f":"'MMA Rev-Exp Region 8'!L$43","v":{"v":0,"d":"$0.00"}},{"$f":"'MMA Rev-Exp Region 8'!M$43","v":{"v":0,"d":"$0.00"}},{"$f":"'MMA Rev-Exp Region 8'!N$43","v":{"v":0,"d":"$0.00"}},{"v":0,"d":"$0.00"}]
["MMA",null,null,{"$f":"Jurat!I$1","v":0},{"$f":"Jurat!D$33","v":"00:00:00"},"Q1","2017-03-31","Region 8","Operating Expense","Medical Benefits Expense","Dental Services",6.2,"Dental Subcapitation",{"$f":"'MMA Rev-Exp Region 8'!D$47","v":{"v":0,"d":"$0.00"}},{"$f":"'MMA Rev-Exp Region 8'!E$47","v":{"v":0,"d":"$0.00"}},{"$f":"'MMA Rev-Exp Region 8'!F$47","v":{"v":0,"d":"$0.00"}},{"$f":"'MMA Rev-Exp Region 8'!G$47","v":{"v":0,"d":"$0.00"}},{"$f":"'MMA Rev-Exp Region 8'!H$47","v":{"v":0,"d":"$0.00"}},{"$f":"'MMA Rev-Exp Region 8'!I$47","v":{"v":0,"d":"$0.00"}},{"$f":"'MMA Rev-Exp Region 8'!J$47","v":{"v":0,"d":"$0.00"}},{"$f":"'MMA Rev-Exp Region 8'!K$47","v":{"v":0,"d":"$0.00"}},{"$f":"'MMA Rev-Exp Region 8'!L$47","v":{"v":0,"d":"$0.00"}},{"$f":"'MMA Rev-Exp Region 8'!M$47","v":{"v":0,"d":"$0.00"}},{"$f":"'MMA Rev-Exp Region 8'!N$47","v":{"v":0,"d":"$0.00"}},{"v":0,"d":"$0.00"}]
["MMA",null,null,{"$f":"Jurat!I$1","v":0},{"$f":"Jurat!D$33","v":"00:00:00"},"Q1","2017-03-31","Region 8","Operating Expense","Medical Benefits Expense","Transportation Services",7.1,"Transportation FFS",{"$f":"'MMA Rev-Exp Region 8'!D$51","v":{"v":0,"d":"$0.00"}},{"$f":"'MMA Rev-Exp Region 8'!E$51","v":{"v":0,"d":"$0.00"}},{"$f":"'MMA Rev-Exp Region 8'!F$51","v":{"v":0,"d":"$0.00"}},{"$f":"'MMA Rev-Exp Region 8'!G$51","v":{"v":0,"d":"$0.00"}},{"$f":"'MMA Rev-Exp Region 8'!H$51","v":{"v":0,"d":"$0.00"}},{"$f":"'MMA Rev-Exp Region 8'!I$51","v":{"v":0,"d":"$0.00"}},{"$f":"'MMA Rev-Exp Region 8'!J$51","v":{"v":0,"d":"$0.00"}},{"$f":"'MMA Rev-Exp Region 8'!K$51","v":{"v":0,"d":"$0.00"}},{"$f":"'MMA Rev-Exp Region 8'!L$51","v":{"v":0,"d":"$0.00"}},{"$f":"'MMA Rev-Exp Region 8'!M$51","v":{"v":0,"d":"$0.00"}},{"$f":"'MMA Rev-Exp Region 8'!N$51","v":{"v":0,"d":"$0.00"}},{"v":0,"d":"$0.00"}]
["MMA",null,null,{"$f":"Jurat!I$1","v":0},{"$f":"Jurat!D$33","v":"00:00:00"},"Q1","2017-03-31","Region 8","Operating Expense","Medical Benefits Expense","Transportation Services",7.2,"Transportation Subcapitation",{"$f":"'MMA Rev-Exp Region 8'!D$52","v":{"v":0,"d":"$0.00"}},{"$f":"'MMA Rev-Exp Region 8'!E$52","v":{"v":0,"d":"$0.00"}},{"$f":"'MMA Rev-Exp Region 8'!F$52","v":{"v":0,"d":"$0.00"}},{"$f":"'MMA Rev-Exp Region 8'!G$52","v":{"v":0,"d":"$0.00"}},{"$f":"'MMA Rev-Exp Region 8'!H$52","v":{"v":0,"d":"$0.00"}},{"$f":"'MMA Rev-Exp Region 8'!I$52","v":{"v":0,"d":"$0.00"}},{"$f":"'MMA Rev-Exp Region 8'!J$52","v":{"v":0,"d":"$0.00"}},{"$f":"'MMA Rev-Exp Region 8'!K$52","v":{"v":0,"d":"$0.00"}},{"$f":"'MMA Rev-Exp Region 8'!L$52","v":{"v":0,"d":"$0.00"}},{"$f":"'MMA Rev-Exp Region 8'!M$52","v":{"v":0,"d":"$0.00"}},{"$f":"'MMA Rev-Exp Region 8'!N$52","v":{"v":0,"d":"$0.00"}},{"v":0,"d":"$0.00"}]
["MMA",null,null,{"$f":"Jurat!I$1","v":0},{"$f":"Jurat!D$33","v":"00:00:00"},"Q1","2017-03-31","Region 8","Operating Expense","Medical Benefits Expense","Pharmacy Services",8.1,"Prescription Drugs FFS",{"$f":"'MMA Rev-Exp Region 8'!D$56","v":{"v":0,"d":"$0.00"}},{"$f":"'MMA Rev-Exp Region 8'!E$56","v":{"v":0,"d":"$0.00"}},{"$f":"'MMA Rev-Exp Region 8'!F$56","v":{"v":0,"d":"$0.00"}},{"$f":"'MMA Rev-Exp Region 8'!G$56","v":{"v":0,"d":"$0.00"}},{"$f":"'MMA Rev-Exp Region 8'!H$56","v":{"v":0,"d":"$0.00"}},{"$f":"'MMA Rev-Exp Region 8'!I$56","v":{"v":0,"d":"$0.00"}},{"$f":"'MMA Rev-Exp Region 8'!J$56","v":{"v":0,"d":"$0.00"}},{"$f":"'MMA Rev-Exp Region 8'!K$56","v":{"v":0,"d":"$0.00"}},{"$f":"'MMA Rev-Exp Region 8'!L$56","v":{"v":0,"d":"$0.00"}},{"$f":"'MMA Rev-Exp Region 8'!M$56","v":{"v":0,"d":"$0.00"}},{"$f":"'MMA Rev-Exp Region 8'!N$56","v":{"v":0,"d":"$0.00"}},{"v":0,"d":"$0.00"}]
["MMA",null,null,{"$f":"Jurat!I$1","v":0},{"$f":"Jurat!D$33","v":"00:00:00"},"Q1","2017-03-31","Region 8","Operating Expense","Medical Benefits Expense","Pharmacy Services","8.4","Prescription Drug Rebates ",{"$f":"'MMA Rev-Exp Region 8'!D$59","v":{"v":0,"d":"$0.00"}},{"$f":"'MMA Rev-Exp Region 8'!E$59","v":{"v":0,"d":"$0.00"}},{"$f":"'MMA Rev-Exp Region 8'!F$59","v":{"v":0,"d":"$0.00"}},{"$f":"'MMA Rev-Exp Region 8'!G$59","v":{"v":0,"d":"$0.00"}},{"$f":"'MMA Rev-Exp Region 8'!H$59","v":{"v":0,"d":"$0.00"}},{"$f":"'MMA Rev-Exp Region 8'!I$59","v":{"v":0,"d":"$0.00"}},{"$f":"'MMA Rev-Exp Region 8'!J$59","v":{"v":0,"d":"$0.00"}},{"$f":"'MMA Rev-Exp Region 8'!K$59","v":{"v":0,"d":"$0.00"}},{"$f":"'MMA Rev-Exp Region 8'!L$59","v":{"v":0,"d":"$0.00"}},{"$f":"'MMA Rev-Exp Region 8'!M$59","v":{"v":0,"d":"$0.00"}},{"$f":"'MMA Rev-Exp Region 8'!N$59","v":{"v":0,"d":"$0.00"}},{"v":0,"d":"$0.00"}]
["MMA",null,null,{"$f":"Jurat!I$1","v":0},{"$f":"Jurat!D$33","v":"00:00:00"},"Q1","2017-03-31","Region 8","Operating Expense","Medical Benefits Expense","Pharmacy Services","8.7","Prescription Drug Settlements",{"$f":"'MMA Rev-Exp Region 8'!D$62","v":{"v":0,"d":"$0.00"}},{"$f":"'MMA Rev-Exp Region 8'!E$62","v":{"v":0,"d":"$0.00"}},{"$f":"'MMA Rev-Exp Region 8'!F$62","v":{"v":0,"d":"$0.00"}},{"$f":"'MMA Rev-Exp Region 8'!G$62","v":{"v":0,"d":"$0.00"}},{"$f":"'MMA Rev-Exp Region 8'!H$62","v":{"v":0,"d":"$0.00"}},{"$f":"'MMA Rev-Exp Region 8'!I$62","v":{"v":0,"d":"$0.00"}},{"$f":"'MMA Rev-Exp Region 8'!J$62","v":{"v":0,"d":"$0.00"}},{"$f":"'MMA Rev-Exp Region 8'!K$62","v":{"v":0,"d":"$0.00"}},{"$f":"'MMA Rev-Exp Region 8'!L$62","v":{"v":0,"d":"$0.00"}},{"$f":"'MMA Rev-Exp Region 8'!M$62","v":{"v":0,"d":"$0.00"}},{"$f":"'MMA Rev-Exp Region 8'!N$62","v":{"v":0,"d":"$0.00"}},{"v":0,"d":"$0.00"}]
["MMA",null,null,{"$f":"Jurat!I$1","v":0},{"$f":"Jurat!D$33","v":"00:00:00"},"Q1","2017-03-31","Region 8","Operating Expense","Medical Benefits Expense","Other MMA Services","9.3","DME FFS",{"$f":"'MMA Rev-Exp Region 8'!D$66","v":{"v":0,"d":"$0.00"}},{"$f":"'MMA Rev-Exp Region 8'!E$66","v":{"v":0,"d":"$0.00"}},{"$f":"'MMA Rev-Exp Region 8'!F$66","v":{"v":0,"d":"$0.00"}},{"$f":"'MMA Rev-Exp Region 8'!G$66","v":{"v":0,"d":"$0.00"}},{"$f":"'MMA Rev-Exp Region 8'!H$66","v":{"v":0,"d":"$0.00"}},{"$f":"'MMA Rev-Exp Region 8'!I$66","v":{"v":0,"d":"$0.00"}},{"$f":"'MMA Rev-Exp Region 8'!J$66","v":{"v":0,"d":"$0.00"}},{"$f":"'MMA Rev-Exp Region 8'!K$66","v":{"v":0,"d":"$0.00"}},{"$f":"'MMA Rev-Exp Region 8'!L$66","v":{"v":0,"d":"$0.00"}},{"$f":"'MMA Rev-Exp Region 8'!M$66","v":{"v":0,"d":"$0.00"}},{"$f":"'MMA Rev-Exp Region 8'!N$66","v":{"v":0,"d":"$0.00"}},{"v":0,"d":"$0.00"}]
["MMA",null,null,{"$f":"Jurat!I$1","v":0},{"$f":"Jurat!D$33","v":"00:00:00"},"Q1","2017-03-31","Region 8","Operating Expense","Medical Benefits Expense","Other MMA Services","9.7","Other Services Settlements",{"$f":"'MMA Rev-Exp Region 8'!D$70","v":{"v":0,"d":"$0.00"}},{"$f":"'MMA Rev-Exp Region 8'!E$70","v":{"v":0,"d":"$0.00"}},{"$f":"'MMA Rev-Exp Region 8'!F$70","v":{"v":0,"d":"$0.00"}},{"$f":"'MMA Rev-Exp Region 8'!G$70","v":{"v":0,"d":"$0.00"}},{"$f":"'MMA Rev-Exp Region 8'!H$70","v":{"v":0,"d":"$0.00"}},{"$f":"'MMA Rev-Exp Region 8'!I$70","v":{"v":0,"d":"$0.00"}},{"$f":"'MMA Rev-Exp Region 8'!J$70","v":{"v":0,"d":"$0.00"}},{"$f":"'MMA Rev-Exp Region 8'!K$70","v":{"v":0,"d":"$0.00"}},{"$f":"'MMA Rev-Exp Region 8'!L$70","v":{"v":0,"d":"$0.00"}},{"$f":"'MMA Rev-Exp Region 8'!M$70","v":{"v":0,"d":"$0.00"}},{"$f":"'MMA Rev-Exp Region 8'!N$70","v":{"v":0,"d":"$0.00"}},{"v":0,"d":"$0.00"}]
["MMA",null,null,{"$f":"Jurat!I$1","v":0},{"$f":"Jurat!D$33","v":"00:00:00"},"Q1","2017-03-31","Region 8","Operating Expense","Medical Benefits Expense","Expanded Benefits","10.3","Ending IBNP for Expanded Benefits",{"$f":"'MMA Rev-Exp Region 8'!D$74","v":{"v":0,"d":"$0.00"}},{"$f":"'MMA Rev-Exp Region 8'!E$74","v":{"v":0,"d":"$0.00"}},{"$f":"'MMA Rev-Exp Region 8'!F$74","v":{"v":0,"d":"$0.00"}},{"$f":"'MMA Rev-Exp Region 8'!G$74","v":{"v":0,"d":"$0.00"}},{"$f":"'MMA Rev-Exp Region 8'!H$74","v":{"v":0,"d":"$0.00"}},{"$f":"'MMA Rev-Exp Region 8'!I$74","v":{"v":0,"d":"$0.00"}},{"$f":"'MMA Rev-Exp Region 8'!J$74","v":{"v":0,"d":"$0.00"}},{"$f":"'MMA Rev-Exp Region 8'!K$74","v":{"v":0,"d":"$0.00"}},{"$f":"'MMA Rev-Exp Region 8'!L$74","v":{"v":0,"d":"$0.00"}},{"$f":"'MMA Rev-Exp Region 8'!M$74","v":{"v":0,"d":"$0.00"}},{"$f":"'MMA Rev-Exp Region 8'!N$74","v":{"v":0,"d":"$0.00"}},{"v":0,"d":"$0.00"}]
["MMA",null,null,{"$f":"Jurat!I$1","v":0},{"$f":"Jurat!D$33","v":"00:00:00"},"Q1","2017-03-31","Region 8","Operating Expense","Medical Benefits Expense","Other Medical","11.6.1","Premium Deficiency Reserve",{"$f":"'MMA Rev-Exp Region 8'!D$82","v":{"v":0,"d":"$0.00"}},{"$f":"'MMA Rev-Exp Region 8'!E$82","v":{"v":0,"d":"$0.00"}},{"$f":"'MMA Rev-Exp Region 8'!F$82","v":{"v":0,"d":"$0.00"}},{"$f":"'MMA Rev-Exp Region 8'!G$82","v":{"v":0,"d":"$0.00"}},{"$f":"'MMA Rev-Exp Region 8'!H$82","v":{"v":0,"d":"$0.00"}},{"$f":"'MMA Rev-Exp Region 8'!I$82","v":{"v":0,"d":"$0.00"}},{"$f":"'MMA Rev-Exp Region 8'!J$82","v":{"v":0,"d":"$0.00"}},{"$f":"'MMA Rev-Exp Region 8'!K$82","v":{"v":0,"d":"$0.00"}},{"$f":"'MMA Rev-Exp Region 8'!L$82","v":{"v":0,"d":"$0.00"}},{"$f":"'MMA Rev-Exp Region 8'!M$82","v":{"v":0,"d":"$0.00"}},{"$f":"'MMA Rev-Exp Region 8'!N$82","v":{"v":0,"d":"$0.00"}},{"v":0,"d":"$0.00"}]
["MMA",null,null,{"$f":"Jurat!I$1","v":0},{"$f":"Jurat!D$33","v":"00:00:00"},"Q1","2017-03-31","Region 8","Operating Expense","Medical Benefits Expense","Other Medical","11.8","Reinsurance Premiums",{"$f":"'MMA Rev-Exp Region 8'!D$84","v":{"v":0,"d":"$0.00"}},{"$f":"'MMA Rev-Exp Region 8'!E$84","v":{"v":0,"d":"$0.00"}},{"$f":"'MMA Rev-Exp Region 8'!F$84","v":{"v":0,"d":"$0.00"}},{"$f":"'MMA Rev-Exp Region 8'!G$84","v":{"v":0,"d":"$0.00"}},{"$f":"'MMA Rev-Exp Region 8'!H$84","v":{"v":0,"d":"$0.00"}},{"$f":"'MMA Rev-Exp Region 8'!I$84","v":{"v":0,"d":"$0.00"}},{"$f":"'MMA Rev-Exp Region 8'!J$84","v":{"v":0,"d":"$0.00"}},{"$f":"'MMA Rev-Exp Region 8'!K$84","v":{"v":0,"d":"$0.00"}},{"$f":"'MMA Rev-Exp Region 8'!L$84","v":{"v":0,"d":"$0.00"}},{"$f":"'MMA Rev-Exp Region 8'!M$84","v":{"v":0,"d":"$0.00"}},{"$f":"'MMA Rev-Exp Region 8'!N$84","v":{"v":0,"d":"$0.00"}},{"v":0,"d":"$0.00"}]
["MMA",null,null,{"$f":"Jurat!I$1","v":0},{"$f":"Jurat!D$33","v":"00:00:00"},"Q1","2017-03-31","Region 8","Operating Expense","Administrative Expense","Administrative","12.2","Administrative Services",{"$f":"'MMA Rev-Exp Region 8'!D$91","v":{"v":0,"d":"$0.00"}},{"v":0,"d":"$0.00"},{"v":0,"d":"$0.00"},{"v":0,"d":"$0.00"},{"v":0,"d":"$0.00"},{"v":0,"d":"$0.00"},{"v":0,"d":"$0.00"},{"v":0,"d":"$0.00"},{"v":0,"d":"$0.00"},{"v":0,"d":"$0.00"},{"v":0,"d":"$0.00"},{"v":0,"d":"$0.00"}]
["MMA",null,null,{"$f":"Jurat!I$1","v":0},{"$f":"Jurat!D$33","v":"00:00:00"},"Q1","2017-03-31","Region 8","Operating Expense","Administrative Expense","Administrative","12.6","Compliance/Regulatory",{"$f":"'MMA Rev-Exp Region 8'!D$95","v":{"v":0,"d":"$0.00"}},{"v":0,"d":"$0.00"},{"v":0,"d":"$0.00"},{"v":0,"d":"$0.00"},{"v":0,"d":"$0.00"},{"v":0,"d":"$0.00"},{"v":0,"d":"$0.00"},{"v":0,"d":"$0.00"},{"v":0,"d":"$0.00"},{"v":0,"d":"$0.00"},{"v":0,"d":"$0.00"},{"v":0,"d":"$0.00"}]
["MMA",null,null,{"$f":"Jurat!I$1","v":0},{"$f":"Jurat!D$33","v":"00:00:00"},"Q1","2017-03-31","Region 8","Operating Expense","Taxes & Fees","Taxes & Fees","13.2","Department of Insurance Assessments",{"$f":"'MMA Rev-Exp Region 8'!D$98","v":{"v":0,"d":"$0.00"}},{"v":0,"d":"$0.00"},{"v":0,"d":"$0.00"},{"v":0,"d":"$0.00"},{"v":0,"d":"$0.00"},{"v":0,"d":"$0.00"},{"v":0,"d":"$0.00"},{"v":0,"d":"$0.00"},{"v":0,"d":"$0.00"},{"v":0,"d":"$0.00"},{"v":0,"d":"$0.00"},{"v":0,"d":"$0.00"}]
["MMA",null,null,{"$f":"Jurat!I$1","v":0},{"$f":"Jurat!D$33","v":"00:00:00"},"Q2","2017-06-30","Region 8","Member Months","Member Months","Member Months",null,"Member Months",{"$f":"'MMA Rev-Exp Region 8'!O$9","v":{"v":0,"d":"$0.00"}},{"$f":"'MMA Rev-Exp Region 8'!P$9","v":{"v":0,"d":"$0.00"}},{"$f":"'MMA Rev-Exp Region 8'!Q$9","v":{"v":0,"d":"$0.00"}},{"$f":"'MMA Rev-Exp Region 8'!R$9","v":{"v":0,"d":"$0.00"}},{"$f":"'MMA Rev-Exp Region 8'!S$9","v":{"v":0,"d":"$0.00"}},{"$f":"'MMA Rev-Exp Region 8'!T$9","v":{"v":0,"d":"$0.00"}},{"$f":"'MMA Rev-Exp Region 8'!U$9","v":{"v":0,"d":"$0.00"}},{"$f":"'MMA Rev-Exp Region 8'!V$9","v":{"v":0,"d":"$0.00"}},{"$f":"'MMA Rev-Exp Region 8'!W$9","v":{"v":0,"d":"$0.00"}},{"$f":"'MMA Rev-Exp Region 8'!X$9","v":{"v":0,"d":"$0.00"}},{"$f":"'MMA Rev-Exp Region 8'!Y$9","v":{"v":0,"d":"$0.00"}},{"v":0,"d":"$0.00"}]
["MMA",null,null,{"$f":"Jurat!I$1","v":0},{"$f":"Jurat!D$33","v":"00:00:00"},"Q2","2017-06-30","Region 8","Operating Revenue","Kick Payments","Kick Payments - Maternity","1.4.1","Maternity Kick Payments",{"$f":"'MMA Rev-Exp Region 8'!O$14","v":{"v":0,"d":"$0.00"}},{"$f":"'MMA Rev-Exp Region 8'!P$14","v":{"v":0,"d":"$0.00"}},{"$f":"'MMA Rev-Exp Region 8'!Q$14","v":{"v":0,"d":"$0.00"}},{"$f":"'MMA Rev-Exp Region 8'!R$14","v":{"v":0,"d":"$0.00"}},{"$f":"'MMA Rev-Exp Region 8'!S$14","v":{"v":0,"d":"$0.00"}},{"$f":"'MMA Rev-Exp Region 8'!T$14","v":{"v":0,"d":"$0.00"}},{"$f":"'MMA Rev-Exp Region 8'!U$14","v":{"v":0,"d":"$0.00"}},{"$f":"'MMA Rev-Exp Region 8'!V$14","v":{"v":0,"d":"$0.00"}},{"$f":"'MMA Rev-Exp Region 8'!W$14","v":{"v":0,"d":"$0.00"}},{"$f":"'MMA Rev-Exp Region 8'!X$14","v":{"v":0,"d":"$0.00"}},{"$f":"'MMA Rev-Exp Region 8'!Y$14","v":{"v":0,"d":"$0.00"}},{"v":0,"d":"$0.00"}]
["MMA",null,null,{"$f":"Jurat!I$1","v":0},{"$f":"Jurat!D$33","v":"00:00:00"},"Q2","2017-06-30","Region 8","Operating Expense","Medical Benefits Expense","Hospital Services",2.1,"Inpatient FFS",{"$f":"'MMA Rev-Exp Region 8'!O$20","v":{"v":0,"d":"$0.00"}},{"$f":"'MMA Rev-Exp Region 8'!P$20","v":{"v":0,"d":"$0.00"}},{"$f":"'MMA Rev-Exp Region 8'!Q$20","v":{"v":0,"d":"$0.00"}},{"$f":"'MMA Rev-Exp Region 8'!R$20","v":{"v":0,"d":"$0.00"}},{"$f":"'MMA Rev-Exp Region 8'!S$20","v":{"v":0,"d":"$0.00"}},{"$f":"'MMA Rev-Exp Region 8'!T$20","v":{"v":0,"d":"$0.00"}},{"$f":"'MMA Rev-Exp Region 8'!U$20","v":{"v":0,"d":"$0.00"}},{"$f":"'MMA Rev-Exp Region 8'!V$20","v":{"v":0,"d":"$0.00"}},{"$f":"'MMA Rev-Exp Region 8'!W$20","v":{"v":0,"d":"$0.00"}},{"$f":"'MMA Rev-Exp Region 8'!X$20","v":{"v":0,"d":"$0.00"}},{"$f":"'MMA Rev-Exp Region 8'!Y$20","v":{"v":0,"d":"$0.00"}},{"v":0,"d":"$0.00"}]
["MMA",null,null,{"$f":"Jurat!I$1","v":0},{"$f":"Jurat!D$33","v":"00:00:00"},"Q2","2017-06-30","Region 8","Operating Expense","Medical Benefits Expense","Hospital Services",2.4,"Outpatient FFS: Other than ER ",{"$f":"'MMA Rev-Exp Region 8'!O$23","v":{"v":0,"d":"$0.00"}},{"$f":"'MMA Rev-Exp Region 8'!P$23","v":{"v":0,"d":"$0.00"}},{"$f":"'MMA Rev-Exp Region 8'!Q$23","v":{"v":0,"d":"$0.00"}},{"$f":"'MMA Rev-Exp Region 8'!R$23","v":{"v":0,"d":"$0.00"}},{"$f":"'MMA Rev-Exp Region 8'!S$23","v":{"v":0,"d":"$0.00"}},{"$f":"'MMA Rev-Exp Region 8'!T$23","v":{"v":0,"d":"$0.00"}},{"$f":"'MMA Rev-Exp Region 8'!U$23","v":{"v":0,"d":"$0.00"}},{"$f":"'MMA Rev-Exp Region 8'!V$23","v":{"v":0,"d":"$0.00"}},{"$f":"'MMA Rev-Exp Region 8'!W$23","v":{"v":0,"d":"$0.00"}},{"$f":"'MMA Rev-Exp Region 8'!X$23","v":{"v":0,"d":"$0.00"}},{"$f":"'MMA Rev-Exp Region 8'!Y$23","v":{"v":0,"d":"$0.00"}},{"v":0,"d":"$0.00"}]
["MMA",null,null,{"$f":"Jurat!I$1","v":0},{"$f":"Jurat!D$33","v":"00:00:00"},"Q2","2017-06-30","Region 8","Operating Expense","Medical Benefits Expense","Hospital Services",2.5,"Ending IBNP for Outpatient Hospital Services",{"$f":"'MMA Rev-Exp Region 8'!O$24","v":{"v":0,"d":"$0.00"}},{"$f":"'MMA Rev-Exp Region 8'!P$24","v":{"v":0,"d":"$0.00"}},{"$f":"'MMA Rev-Exp Region 8'!Q$24","v":{"v":0,"d":"$0.00"}},{"$f":"'MMA Rev-Exp Region 8'!R$24","v":{"v":0,"d":"$0.00"}},{"$f":"'MMA Rev-Exp Region 8'!S$24","v":{"v":0,"d":"$0.00"}},{"$f":"'MMA Rev-Exp Region 8'!T$24","v":{"v":0,"d":"$0.00"}},{"$f":"'MMA Rev-Exp Region 8'!U$24","v":{"v":0,"d":"$0.00"}},{"$f":"'MMA Rev-Exp Region 8'!V$24","v":{"v":0,"d":"$0.00"}},{"$f":"'MMA Rev-Exp Region 8'!W$24","v":{"v":0,"d":"$0.00"}},{"$f":"'MMA Rev-Exp Region 8'!X$24","v":{"v":0,"d":"$0.00"}},{"$f":"'MMA Rev-Exp Region 8'!Y$24","v":{"v":0,"d":"$0.00"}},{"v":0,"d":"$0.00"}]
["MMA",null,null,{"$f":"Jurat!I$1","v":0},{"$f":"Jurat!D$33","v":"00:00:00"},"Q2","2017-06-30","Region 8","Operating Expense","Medical Benefits Expense","Hospital Services","2.7.1","Transplant Services",{"$f":"'MMA Rev-Exp Region 8'!O$27","v":{"v":0,"d":"$0.00"}},{"$f":"'MMA Rev-Exp Region 8'!P$27","v":{"v":0,"d":"$0.00"}},{"$f":"'MMA Rev-Exp Region 8'!Q$27","v":{"v":0,"d":"$0.00"}},{"$f":"'MMA Rev-Exp Region 8'!R$27","v":{"v":0,"d":"$0.00"}},{"$f":"'MMA Rev-Exp Region 8'!S$27","v":{"v":0,"d":"$0.00"}},{"$f":"'MMA Rev-Exp Region 8'!T$27","v":{"v":0,"d":"$0.00"}},{"$f":"'MMA Rev-Exp Region 8'!U$27","v":{"v":0,"d":"$0.00"}},{"$f":"'MMA Rev-Exp Region 8'!V$27","v":{"v":0,"d":"$0.00"}},{"$f":"'MMA Rev-Exp Region 8'!W$27","v":{"v":0,"d":"$0.00"}},{"$f":"'MMA Rev-Exp Region 8'!X$27","v":{"v":0,"d":"$0.00"}},{"$f":"'MMA Rev-Exp Region 8'!Y$27","v":{"v":0,"d":"$0.00"}},{"v":0,"d":"$0.00"}]
["MMA",null,null,{"$f":"Jurat!I$1","v":0},{"$f":"Jurat!D$33","v":"00:00:00"},"Q2","2017-06-30","Region 8","Operating Expense","Medical Benefits Expense","Professional Services","3.4","§ 1202 PCP Payments to providers",{"$f":"'MMA Rev-Exp Region 8'!O$32","v":{"v":0,"d":"$0.00"}},{"$f":"'MMA Rev-Exp Region 8'!P$32","v":{"v":0,"d":"$0.00"}},{"$f":"'MMA Rev-Exp Region 8'!Q$32","v":{"v":0,"d":"$0.00"}},{"$f":"'MMA Rev-Exp Region 8'!R$32","v":{"v":0,"d":"$0.00"}},{"$f":"'MMA Rev-Exp Region 8'!S$32","v":{"v":0,"d":"$0.00"}},{"$f":"'MMA Rev-Exp Region 8'!T$32","v":{"v":0,"d":"$0.00"}},{"$f":"'MMA Rev-Exp Region 8'!U$32","v":{"v":0,"d":"$0.00"}},{"$f":"'MMA Rev-Exp Region 8'!V$32","v":{"v":0,"d":"$0.00"}},{"$f":"'MMA Rev-Exp Region 8'!W$32","v":{"v":0,"d":"$0.00"}},{"$f":"'MMA Rev-Exp Region 8'!X$32","v":{"v":0,"d":"$0.00"}},{"$f":"'MMA Rev-Exp Region 8'!Y$32","v":{"v":0,"d":"$0.00"}},{"v":0,"d":"$0.00"}]
["MMA",null,null,{"$f":"Jurat!I$1","v":0},{"$f":"Jurat!D$33","v":"00:00:00"},"Q2","2017-06-30","Region 8","Operating Expense","Medical Benefits Expense","Professional Services","3.6","Ending IBNP for Professional Services",{"$f":"'MMA Rev-Exp Region 8'!O$34","v":{"v":0,"d":"$0.00"}},{"$f":"'MMA Rev-Exp Region 8'!P$34","v":{"v":0,"d":"$0.00"}},{"$f":"'MMA Rev-Exp Region 8'!Q$34","v":{"v":0,"d":"$0.00"}},{"$f":"'MMA Rev-Exp Region 8'!R$34","v":{"v":0,"d":"$0.00"}},{"$f":"'MMA Rev-Exp Region 8'!S$34","v":{"v":0,"d":"$0.00"}},{"$f":"'MMA Rev-Exp Region 8'!T$34","v":{"v":0,"d":"$0.00"}},{"$f":"'MMA Rev-Exp Region 8'!U$34","v":{"v":0,"d":"$0.00"}},{"$f":"'MMA Rev-Exp Region 8'!V$34","v":{"v":0,"d":"$0.00"}},{"$f":"'MMA Rev-Exp Region 8'!W$34","v":{"v":0,"d":"$0.00"}},{"$f":"'MMA Rev-Exp Region 8'!X$34","v":{"v":0,"d":"$0.00"}},{"$f":"'MMA Rev-Exp Region 8'!Y$34","v":{"v":0,"d":"$0.00"}},{"v":0,"d":"$0.00"}]
["MMA",null,null,{"$f":"Jurat!I$1","v":0},{"$f":"Jurat!D$33","v":"00:00:00"},"Q2","2017-06-30","Region 8","Operating Expense","Medical Benefits Expense","Maternity Services","4.2.1","Ending IBNP for Maternity Services",{"$f":"'MMA Rev-Exp Region 8'!O$38","v":{"v":0,"d":"$0.00"}},{"$f":"'MMA Rev-Exp Region 8'!P$38","v":{"v":0,"d":"$0.00"}},{"$f":"'MMA Rev-Exp Region 8'!Q$38","v":{"v":0,"d":"$0.00"}},{"$f":"'MMA Rev-Exp Region 8'!R$38","v":{"v":0,"d":"$0.00"}},{"$f":"'MMA Rev-Exp Region 8'!S$38","v":{"v":0,"d":"$0.00"}},{"$f":"'MMA Rev-Exp Region 8'!T$38","v":{"v":0,"d":"$0.00"}},{"$f":"'MMA Rev-Exp Region 8'!U$38","v":{"v":0,"d":"$0.00"}},{"$f":"'MMA Rev-Exp Region 8'!V$38","v":{"v":0,"d":"$0.00"}},{"$f":"'MMA Rev-Exp Region 8'!W$38","v":{"v":0,"d":"$0.00"}},{"$f":"'MMA Rev-Exp Region 8'!X$38","v":{"v":0,"d":"$0.00"}},{"$f":"'MMA Rev-Exp Region 8'!Y$38","v":{"v":0,"d":"$0.00"}},{"v":0,"d":"$0.00"}]
["MMA",null,null,{"$f":"Jurat!I$1","v":0},{"$f":"Jurat!D$33","v":"00:00:00"},"Q2","2017-06-30","Region 8","Operating Expense","Medical Benefits Expense","Mental Health Services",5.3,"Ending IBNP for Mental Health & Substance Abuse",{"$f":"'MMA Rev-Exp Region 8'!O$43","v":{"v":0,"d":"$0.00"}},{"$f":"'MMA Rev-Exp Region 8'!P$43","v":{"v":0,"d":"$0.00"}},{"$f":"'MMA Rev-Exp Region 8'!Q$43","v":{"v":0,"d":"$0.00"}},{"$f":"'MMA Rev-Exp Region 8'!R$43","v":{"v":0,"d":"$0.00"}},{"$f":"'MMA Rev-Exp Region 8'!S$43","v":{"v":0,"d":"$0.00"}},{"$f":"'MMA Rev-Exp Region 8'!T$43","v":{"v":0,"d":"$0.00"}},{"$f":"'MMA Rev-Exp Region 8'!U$43","v":{"v":0,"d":"$0.00"}},{"$f":"'MMA Rev-Exp Region 8'!V$43","v":{"v":0,"d":"$0.00"}},{"$f":"'MMA Rev-Exp Region 8'!W$43","v":{"v":0,"d":"$0.00"}},{"$f":"'MMA Rev-Exp Region 8'!X$43","v":{"v":0,"d":"$0.00"}},{"$f":"'MMA Rev-Exp Region 8'!Y$43","v":{"v":0,"d":"$0.00"}},{"v":0,"d":"$0.00"}]
["MMA",null,null,{"$f":"Jurat!I$1","v":0},{"$f":"Jurat!D$33","v":"00:00:00"},"Q2","2017-06-30","Region 8","Operating Expense","Medical Benefits Expense","Dental Services",6.2,"Dental Subcapitation",{"$f":"'MMA Rev-Exp Region 8'!O$47","v":{"v":0,"d":"$0.00"}},{"$f":"'MMA Rev-Exp Region 8'!P$47","v":{"v":0,"d":"$0.00"}},{"$f":"'MMA Rev-Exp Region 8'!Q$47","v":{"v":0,"d":"$0.00"}},{"$f":"'MMA Rev-Exp Region 8'!R$47","v":{"v":0,"d":"$0.00"}},{"$f":"'MMA Rev-Exp Region 8'!S$47","v":{"v":0,"d":"$0.00"}},{"$f":"'MMA Rev-Exp Region 8'!T$47","v":{"v":0,"d":"$0.00"}},{"$f":"'MMA Rev-Exp Region 8'!U$47","v":{"v":0,"d":"$0.00"}},{"$f":"'MMA Rev-Exp Region 8'!V$47","v":{"v":0,"d":"$0.00"}},{"$f":"'MMA Rev-Exp Region 8'!W$47","v":{"v":0,"d":"$0.00"}},{"$f":"'MMA Rev-Exp Region 8'!X$47","v":{"v":0,"d":"$0.00"}},{"$f":"'MMA Rev-Exp Region 8'!Y$47","v":{"v":0,"d":"$0.00"}},{"v":0,"d":"$0.00"}]
["MMA",null,null,{"$f":"Jurat!I$1","v":0},{"$f":"Jurat!D$33","v":"00:00:00"},"Q2","2017-06-30","Region 8","Operating Expense","Medical Benefits Expense","Dental Services",6.3,"Ending IBNP for Dental Services",{"$f":"'MMA Rev-Exp Region 8'!O$48","v":{"v":0,"d":"$0.00"}},{"$f":"'MMA Rev-Exp Region 8'!P$48","v":{"v":0,"d":"$0.00"}},{"$f":"'MMA Rev-Exp Region 8'!Q$48","v":{"v":0,"d":"$0.00"}},{"$f":"'MMA Rev-Exp Region 8'!R$48","v":{"v":0,"d":"$0.00"}},{"$f":"'MMA Rev-Exp Region 8'!S$48","v":{"v":0,"d":"$0.00"}},{"$f":"'MMA Rev-Exp Region 8'!T$48","v":{"v":0,"d":"$0.00"}},{"$f":"'MMA Rev-Exp Region 8'!U$48","v":{"v":0,"d":"$0.00"}},{"$f":"'MMA Rev-Exp Region 8'!V$48","v":{"v":0,"d":"$0.00"}},{"$f":"'MMA Rev-Exp Region 8'!W$48","v":{"v":0,"d":"$0.00"}},{"$f":"'MMA Rev-Exp Region 8'!X$48","v":{"v":0,"d":"$0.00"}},{"$f":"'MMA Rev-Exp Region 8'!Y$48","v":{"v":0,"d":"$0.00"}},{"v":0,"d":"$0.00"}]
["MMA",null,null,{"$f":"Jurat!I$1","v":0},{"$f":"Jurat!D$33","v":"00:00:00"},"Q2","2017-06-30","Region 8","Operating Expense","Medical Benefits Expense","Transportation Services",7.2,"Transportation Subcapitation",{"$f":"'MMA Rev-Exp Region 8'!O$52","v":{"v":0,"d":"$0.00"}},{"$f":"'MMA Rev-Exp Region 8'!P$52","v":{"v":0,"d":"$0.00"}},{"$f":"'MMA Rev-Exp Region 8'!Q$52","v":{"v":0,"d":"$0.00"}},{"$f":"'MMA Rev-Exp Region 8'!R$52","v":{"v":0,"d":"$0.00"}},{"$f":"'MMA Rev-Exp Region 8'!S$52","v":{"v":0,"d":"$0.00"}},{"$f":"'MMA Rev-Exp Region 8'!T$52","v":{"v":0,"d":"$0.00"}},{"$f":"'MMA Rev-Exp Region 8'!U$52","v":{"v":0,"d":"$0.00"}},{"$f":"'MMA Rev-Exp Region 8'!V$52","v":{"v":0,"d":"$0.00"}},{"$f":"'MMA Rev-Exp Region 8'!W$52","v":{"v":0,"d":"$0.00"}},{"$f":"'MMA Rev-Exp Region 8'!X$52","v":{"v":0,"d":"$0.00"}},{"$f":"'MMA Rev-Exp Region 8'!Y$52","v":{"v":0,"d":"$0.00"}},{"v":0,"d":"$0.00"}]
["MMA",null,null,{"$f":"Jurat!I$1","v":0},{"$f":"Jurat!D$33","v":"00:00:00"},"Q2","2017-06-30","Region 8","Operating Expense","Medical Benefits Expense","Pharmacy Services",8.1,"Prescription Drugs FFS",{"$f":"'MMA Rev-Exp Region 8'!O$56","v":{"v":0,"d":"$0.00"}},{"$f":"'MMA Rev-Exp Region 8'!P$56","v":{"v":0,"d":"$0.00"}},{"$f":"'MMA Rev-Exp Region 8'!Q$56","v":{"v":0,"d":"$0.00"}},{"$f":"'MMA Rev-Exp Region 8'!R$56","v":{"v":0,"d":"$0.00"}},{"$f":"'MMA Rev-Exp Region 8'!S$56","v":{"v":0,"d":"$0.00"}},{"$f":"'MMA Rev-Exp Region 8'!T$56","v":{"v":0,"d":"$0.00"}},{"$f":"'MMA Rev-Exp Region 8'!U$56","v":{"v":0,"d":"$0.00"}},{"$f":"'MMA Rev-Exp Region 8'!V$56","v":{"v":0,"d":"$0.00"}},{"$f":"'MMA Rev-Exp Region 8'!W$56","v":{"v":0,"d":"$0.00"}},{"$f":"'MMA Rev-Exp Region 8'!X$56","v":{"v":0,"d":"$0.00"}},{"$f":"'MMA Rev-Exp Region 8'!Y$56","v":{"v":0,"d":"$0.00"}},{"v":0,"d":"$0.00"}]
["MMA",null,null,{"$f":"Jurat!I$1","v":0},{"$f":"Jurat!D$33","v":"00:00:00"},"Q2","2017-06-30","Region 8","Operating Expense","Medical Benefits Expense","Pharmacy Services","8.5","Ending accrual for Rebates receivable",{"$f":"'MMA Rev-Exp Region 8'!O$60","v":{"v":0,"d":"$0.00"}},{"$f":"'MMA Rev-Exp Region 8'!P$60","v":{"v":0,"d":"$0.00"}},{"$f":"'MMA Rev-Exp Region 8'!Q$60","v":{"v":0,"d":"$0.00"}},{"$f":"'MMA Rev-Exp Region 8'!R$60","v":{"v":0,"d":"$0.00"}},{"$f":"'MMA Rev-Exp Region 8'!S$60","v":{"v":0,"d":"$0.00"}},{"$f":"'MMA Rev-Exp Region 8'!T$60","v":{"v":0,"d":"$0.00"}},{"$f":"'MMA Rev-Exp Region 8'!U$60","v":{"v":0,"d":"$0.00"}},{"$f":"'MMA Rev-Exp Region 8'!V$60","v":{"v":0,"d":"$0.00"}},{"$f":"'MMA Rev-Exp Region 8'!W$60","v":{"v":0,"d":"$0.00"}},{"$f":"'MMA Rev-Exp Region 8'!X$60","v":{"v":0,"d":"$0.00"}},{"$f":"'MMA Rev-Exp Region 8'!Y$60","v":{"v":0,"d":"$0.00"}},{"v":0,"d":"$0.00"}]
["MMA",null,null,{"$f":"Jurat!I$1","v":0},{"$f":"Jurat!D$33","v":"00:00:00"},"Q2","2017-06-30","Region 8","Operating Expense","Medical Benefits Expense","Other MMA Services",9.1,"Home Health, Private Duty Nursing, Personal Care FFS",{"$f":"'MMA Rev-Exp Region 8'!O$64","v":{"v":0,"d":"$0.00"}},{"$f":"'MMA Rev-Exp Region 8'!P$64","v":{"v":0,"d":"$0.00"}},{"$f":"'MMA Rev-Exp Region 8'!Q$64","v":{"v":0,"d":"$0.00"}},{"$f":"'MMA Rev-Exp Region 8'!R$64","v":{"v":0,"d":"$0.00"}},{"$f":"'MMA Rev-Exp Region 8'!S$64","v":{"v":0,"d":"$0.00"}},{"$f":"'MMA Rev-Exp Region 8'!T$64","v":{"v":0,"d":"$0.00"}},{"$f":"'MMA Rev-Exp Region 8'!U$64","v":{"v":0,"d":"$0.00"}},{"$f":"'MMA Rev-Exp Region 8'!V$64","v":{"v":0,"d":"$0.00"}},{"$f":"'MMA Rev-Exp Region 8'!W$64","v":{"v":0,"d":"$0.00"}},{"$f":"'MMA Rev-Exp Region 8'!X$64","v":{"v":0,"d":"$0.00"}},{"$f":"'MMA Rev-Exp Region 8'!Y$64","v":{"v":0,"d":"$0.00"}},{"v":0,"d":"$0.00"}]
["MMA",null,null,{"$f":"Jurat!I$1","v":0},{"$f":"Jurat!D$33","v":"00:00:00"},"Q2","2017-06-30","Region 8","Operating Expense","Medical Benefits Expense","Other MMA Services","9.4","Other State Plan Services FFS",{"$f":"'MMA Rev-Exp Region 8'!O$67","v":{"v":0,"d":"$0.00"}},{"$f":"'MMA Rev-Exp Region 8'!P$67","v":{"v":0,"d":"$0.00"}},{"$f":"'MMA Rev-Exp Region 8'!Q$67","v":{"v":0,"d":"$0.00"}},{"$f":"'MMA Rev-Exp Region 8'!R$67","v":{"v":0,"d":"$0.00"}},{"$f":"'MMA Rev-Exp Region 8'!S$67","v":{"v":0,"d":"$0.00"}},{"$f":"'MMA Rev-Exp Region 8'!T$67","v":{"v":0,"d":"$0.00"}},{"$f":"'MMA Rev-Exp Region 8'!U$67","v":{"v":0,"d":"$0.00"}},{"$f":"'MMA Rev-Exp Region 8'!V$67","v":{"v":0,"d":"$0.00"}},{"$f":"'MMA Rev-Exp Region 8'!W$67","v":{"v":0,"d":"$0.00"}},{"$f":"'MMA Rev-Exp Region 8'!X$67","v":{"v":0,"d":"$0.00"}},{"$f":"'MMA Rev-Exp Region 8'!Y$67","v":{"v":0,"d":"$0.00"}},{"v":0,"d":"$0.00"}]
["MMA",null,null,{"$f":"Jurat!I$1","v":0},{"$f":"Jurat!D$33","v":"00:00:00"},"Q2","2017-06-30","Region 8","Operating Expense","Medical Benefits Expense","Other MMA Services","9.7","Other Services Settlements",{"$f":"'MMA Rev-Exp Region 8'!O$70","v":{"v":0,"d":"$0.00"}},{"$f":"'MMA Rev-Exp Region 8'!P$70","v":{"v":0,"d":"$0.00"}},{"$f":"'MMA Rev-Exp Region 8'!Q$70","v":{"v":0,"d":"$0.00"}},{"$f":"'MMA Rev-Exp Region 8'!R$70","v":{"v":0,"d":"$0.00"}},{"$f":"'MMA Rev-Exp Region 8'!S$70","v":{"v":0,"d":"$0.00"}},{"$f":"'MMA Rev-Exp Region 8'!T$70","v":{"v":0,"d":"$0.00"}},{"$f":"'MMA Rev-Exp Region 8'!U$70","v":{"v":0,"d":"$0.00"}},{"$f":"'MMA Rev-Exp Region 8'!V$70","v":{"v":0,"d":"$0.00"}},{"$f":"'MMA Rev-Exp Region 8'!W$70","v":{"v":0,"d":"$0.00"}},{"$f":"'MMA Rev-Exp Region 8'!X$70","v":{"v":0,"d":"$0.00"}},{"$f":"'MMA Rev-Exp Region 8'!Y$70","v":{"v":0,"d":"$0.00"}},{"v":0,"d":"$0.00"}]
["MMA",null,null,{"$f":"Jurat!I$1","v":0},{"$f":"Jurat!D$33","v":"00:00:00"},"Q2","2017-06-30","Region 8","Operating Expense","Medical Benefits Expense","Expanded Benefits","10.3","Ending IBNP for Expanded Benefits",{"$f":"'MMA Rev-Exp Region 8'!O$74","v":{"v":0,"d":"$0.00"}},{"$f":"'MMA Rev-Exp Region 8'!P$74","v":{"v":0,"d":"$0.00"}},{"$f":"'MMA Rev-Exp Region 8'!Q$74","v":{"v":0,"d":"$0.00"}},{"$f":"'MMA Rev-Exp Region 8'!R$74","v":{"v":0,"d":"$0.00"}},{"$f":"'MMA Rev-Exp Region 8'!S$74","v":{"v":0,"d":"$0.00"}},{"$f":"'MMA Rev-Exp Region 8'!T$74","v":{"v":0,"d":"$0.00"}},{"$f":"'MMA Rev-Exp Region 8'!U$74","v":{"v":0,"d":"$0.00"}},{"$f":"'MMA Rev-Exp Region 8'!V$74","v":{"v":0,"d":"$0.00"}},{"$f":"'MMA Rev-Exp Region 8'!W$74","v":{"v":0,"d":"$0.00"}},{"$f":"'MMA Rev-Exp Region 8'!X$74","v":{"v":0,"d":"$0.00"}},{"$f":"'MMA Rev-Exp Region 8'!Y$74","v":{"v":0,"d":"$0.00"}},{"v":0,"d":"$0.00"}]
["MMA",null,null,{"$f":"Jurat!I$1","v":0},{"$f":"Jurat!D$33","v":"00:00:00"},"Q2","2017-06-30","Region 8","Operating Expense","Medical Benefits Expense","Expanded Benefits","10.4","Expanded Benefits Settlements",{"$f":"'MMA Rev-Exp Region 8'!O$75","v":{"v":0,"d":"$0.00"}},{"$f":"'MMA Rev-Exp Region 8'!P$75","v":{"v":0,"d":"$0.00"}},{"$f":"'MMA Rev-Exp Region 8'!Q$75","v":{"v":0,"d":"$0.00"}},{"$f":"'MMA Rev-Exp Region 8'!R$75","v":{"v":0,"d":"$0.00"}},{"$f":"'MMA Rev-Exp Region 8'!S$75","v":{"v":0,"d":"$0.00"}},{"$f":"'MMA Rev-Exp Region 8'!T$75","v":{"v":0,"d":"$0.00"}},{"$f":"'MMA Rev-Exp Region 8'!U$75","v":{"v":0,"d":"$0.00"}},{"$f":"'MMA Rev-Exp Region 8'!V$75","v":{"v":0,"d":"$0.00"}},{"$f":"'MMA Rev-Exp Region 8'!W$75","v":{"v":0,"d":"$0.00"}},{"$f":"'MMA Rev-Exp Region 8'!X$75","v":{"v":0,"d":"$0.00"}},{"$f":"'MMA Rev-Exp Region 8'!Y$75","v":{"v":0,"d":"$0.00"}},{"v":0,"d":"$0.00"}]
["MMA",null,null,{"$f":"Jurat!I$1","v":0},{"$f":"Jurat!D$33","v":"00:00:00"},"Q2","2017-06-30","Region 8","Operating Expense","Medical Benefits Expense","Other Medical","11.8","Reinsurance Premiums",{"$f":"'MMA Rev-Exp Region 8'!O$84","v":{"v":0,"d":"$0.00"}},{"$f":"'MMA Rev-Exp Region 8'!P$84","v":{"v":0,"d":"$0.00"}},{"$f":"'MMA Rev-Exp Region 8'!Q$84","v":{"v":0,"d":"$0.00"}},{"$f":"'MMA Rev-Exp Region 8'!R$84","v":{"v":0,"d":"$0.00"}},{"$f":"'MMA Rev-Exp Region 8'!S$84","v":{"v":0,"d":"$0.00"}},{"$f":"'MMA Rev-Exp Region 8'!T$84","v":{"v":0,"d":"$0.00"}},{"$f":"'MMA Rev-Exp Region 8'!U$84","v":{"v":0,"d":"$0.00"}},{"$f":"'MMA Rev-Exp Region 8'!V$84","v":{"v":0,"d":"$0.00"}},{"$f":"'MMA Rev-Exp Region 8'!W$84","v":{"v":0,"d":"$0.00"}},{"$f":"'MMA Rev-Exp Region 8'!X$84","v":{"v":0,"d":"$0.00"}},{"$f":"'MMA Rev-Exp Region 8'!Y$84","v":{"v":0,"d":"$0.00"}},{"v":0,"d":"$0.00"}]
["MMA",null,null,{"$f":"Jurat!I$1","v":0},{"$f":"Jurat!D$33","v":"00:00:00"},"Q2","2017-06-30","Region 8","Operating Expense","Administrative Expense","Administrative","12.2","Administrative Services",{"$f":"'MMA Rev-Exp Region 8'!O$91","v":{"v":0,"d":"$0.00"}},{"v":0,"d":"$0.00"},{"v":0,"d":"$0.00"},{"v":0,"d":"$0.00"},{"v":0,"d":"$0.00"},{"v":0,"d":"$0.00"},{"v":0,"d":"$0.00"},{"v":0,"d":"$0.00"},{"v":0,"d":"$0.00"},{"v":0,"d":"$0.00"},{"v":0,"d":"$0.00"},{"v":0,"d":"$0.00"}]
["MMA",null,null,{"$f":"Jurat!I$1","v":0},{"$f":"Jurat!D$33","v":"00:00:00"},"Q2","2017-06-30","Region 8","Operating Expense","Administrative Expense","Administrative","12.6","Compliance/Regulatory",{"$f":"'MMA Rev-Exp Region 8'!O$95","v":{"v":0,"d":"$0.00"}},{"v":0,"d":"$0.00"},{"v":0,"d":"$0.00"},{"v":0,"d":"$0.00"},{"v":0,"d":"$0.00"},{"v":0,"d":"$0.00"},{"v":0,"d":"$0.00"},{"v":0,"d":"$0.00"},{"v":0,"d":"$0.00"},{"v":0,"d":"$0.00"},{"v":0,"d":"$0.00"},{"v":0,"d":"$0.00"}]
["MMA",null,null,{"$f":"Jurat!I$1","v":0},{"$f":"Jurat!D$33","v":"00:00:00"},"Q2","2017-06-30","Region 8","Operating Expense","Taxes & Fees","Taxes & Fees","13.3","Section 9010 Health Insurance Providers Fee",{"$f":"'MMA Rev-Exp Region 8'!O$99","v":{"v":0,"d":"$0.00"}},{"v":0,"d":"$0.00"},{"v":0,"d":"$0.00"},{"v":0,"d":"$0.00"},{"v":0,"d":"$0.00"},{"v":0,"d":"$0.00"},{"v":0,"d":"$0.00"},{"v":0,"d":"$0.00"},{"v":0,"d":"$0.00"},{"v":0,"d":"$0.00"},{"v":0,"d":"$0.00"},{"v":0,"d":"$0.00"}]
["MMA",null,null,{"$f":"Jurat!I$1","v":0},{"$f":"Jurat!D$33","v":"00:00:00"},"Q3","2017-09-30","Region 8","Operating Revenue","Capitation","Capitation",1.1,"Capitation",{"$f":"'MMA Rev-Exp Region 8'!Z$11","v":{"v":0,"d":"$0.00"}},{"$f":"'MMA Rev-Exp Region 8'!AA$11","v":{"v":0,"d":"$0.00"}},{"$f":"'MMA Rev-Exp Region 8'!AB$11","v":{"v":0,"d":"$0.00"}},{"$f":"'MMA Rev-Exp Region 8'!AC$11","v":{"v":0,"d":"$0.00"}},{"$f":"'MMA Rev-Exp Region 8'!AD$11","v":{"v":0,"d":"$0.00"}},{"$f":"'MMA Rev-Exp Region 8'!AE$11","v":{"v":0,"d":"$0.00"}},{"$f":"'MMA Rev-Exp Region 8'!AF$11","v":{"v":0,"d":"$0.00"}},{"$f":"'MMA Rev-Exp Region 8'!AG$11","v":{"v":0,"d":"$0.00"}},{"$f":"'MMA Rev-Exp Region 8'!AH$11","v":{"v":0,"d":"$0.00"}},{"$f":"'MMA Rev-Exp Region 8'!AI$11","v":{"v":0,"d":"$0.00"}},{"$f":"'MMA Rev-Exp Region 8'!AJ$11","v":{"v":0,"d":"$0.00"}},{"v":0,"d":"$0.00"}]
["MMA",null,null,{"$f":"Jurat!I$1","v":0},{"$f":"Jurat!D$33","v":"00:00:00"},"Q3","2017-09-30","Region 8","Operating Revenue","Kick Payments","Kick Payments - Hep C","1.3","Hepatitis C Kick Payments",{"$f":"'MMA Rev-Exp Region 8'!Z$13","v":{"v":0,"d":"$0.00"}},{"$f":"'MMA Rev-Exp Region 8'!AA$13","v":{"v":0,"d":"$0.00"}},{"$f":"'MMA Rev-Exp Region 8'!AB$13","v":{"v":0,"d":"$0.00"}},{"$f":"'MMA Rev-Exp Region 8'!AC$13","v":{"v":0,"d":"$0.00"}},{"$f":"'MMA Rev-Exp Region 8'!AD$13","v":{"v":0,"d":"$0.00"}},{"$f":"'MMA Rev-Exp Region 8'!AE$13","v":{"v":0,"d":"$0.00"}},{"$f":"'MMA Rev-Exp Region 8'!AF$13","v":{"v":0,"d":"$0.00"}},{"$f":"'MMA Rev-Exp Region 8'!AG$13","v":{"v":0,"d":"$0.00"}},{"$f":"'MMA Rev-Exp Region 8'!AH$13","v":{"v":0,"d":"$0.00"}},{"$f":"'MMA Rev-Exp Region 8'!AI$13","v":{"v":0,"d":"$0.00"}},{"$f":"'MMA Rev-Exp Region 8'!AJ$13","v":{"v":0,"d":"$0.00"}},{"v":0,"d":"$0.00"}]
["MMA",null,null,{"$f":"Jurat!I$1","v":0},{"$f":"Jurat!D$33","v":"00:00:00"},"Q3","2017-09-30","Region 8","Operating Expense","Medical Benefits Expense","Hospital Services",2.1,"Inpatient FFS",{"$f":"'MMA Rev-Exp Region 8'!Z$20","v":{"v":0,"d":"$0.00"}},{"$f":"'MMA Rev-Exp Region 8'!AA$20","v":{"v":0,"d":"$0.00"}},{"$f":"'MMA Rev-Exp Region 8'!AB$20","v":{"v":0,"d":"$0.00"}},{"$f":"'MMA Rev-Exp Region 8'!AC$20","v":{"v":0,"d":"$0.00"}},{"$f":"'MMA Rev-Exp Region 8'!AD$20","v":{"v":0,"d":"$0.00"}},{"$f":"'MMA Rev-Exp Region 8'!AE$20","v":{"v":0,"d":"$0.00"}},{"$f":"'MMA Rev-Exp Region 8'!AF$20","v":{"v":0,"d":"$0.00"}},{"$f":"'MMA Rev-Exp Region 8'!AG$20","v":{"v":0,"d":"$0.00"}},{"$f":"'MMA Rev-Exp Region 8'!AH$20","v":{"v":0,"d":"$0.00"}},{"$f":"'MMA Rev-Exp Region 8'!AI$20","v":{"v":0,"d":"$0.00"}},{"$f":"'MMA Rev-Exp Region 8'!AJ$20","v":{"v":0,"d":"$0.00"}},{"v":0,"d":"$0.00"}]
["MMA",null,null,{"$f":"Jurat!I$1","v":0},{"$f":"Jurat!D$33","v":"00:00:00"},"Q3","2017-09-30","Region 8","Operating Expense","Medical Benefits Expense","Hospital Services",2.2,"Ending IBNP for Inpatient Hospital Services",{"$f":"'MMA Rev-Exp Region 8'!Z$21","v":{"v":0,"d":"$0.00"}},{"$f":"'MMA Rev-Exp Region 8'!AA$21","v":{"v":0,"d":"$0.00"}},{"$f":"'MMA Rev-Exp Region 8'!AB$21","v":{"v":0,"d":"$0.00"}},{"$f":"'MMA Rev-Exp Region 8'!AC$21","v":{"v":0,"d":"$0.00"}},{"$f":"'MMA Rev-Exp Region 8'!AD$21","v":{"v":0,"d":"$0.00"}},{"$f":"'MMA Rev-Exp Region 8'!AE$21","v":{"v":0,"d":"$0.00"}},{"$f":"'MMA Rev-Exp Region 8'!AF$21","v":{"v":0,"d":"$0.00"}},{"$f":"'MMA Rev-Exp Region 8'!AG$21","v":{"v":0,"d":"$0.00"}},{"$f":"'MMA Rev-Exp Region 8'!AH$21","v":{"v":0,"d":"$0.00"}},{"$f":"'MMA Rev-Exp Region 8'!AI$21","v":{"v":0,"d":"$0.00"}},{"$f":"'MMA Rev-Exp Region 8'!AJ$21","v":{"v":0,"d":"$0.00"}},{"v":0,"d":"$0.00"}]
["MMA",null,null,{"$f":"Jurat!I$1","v":0},{"$f":"Jurat!D$33","v":"00:00:00"},"Q3","2017-09-30","Region 8","Operating Expense","Medical Benefits Expense","Hospital Services",2.5,"Ending IBNP for Outpatient Hospital Services",{"$f":"'MMA Rev-Exp Region 8'!Z$24","v":{"v":0,"d":"$0.00"}},{"$f":"'MMA Rev-Exp Region 8'!AA$24","v":{"v":0,"d":"$0.00"}},{"$f":"'MMA Rev-Exp Region 8'!AB$24","v":{"v":0,"d":"$0.00"}},{"$f":"'MMA Rev-Exp Region 8'!AC$24","v":{"v":0,"d":"$0.00"}},{"$f":"'MMA Rev-Exp Region 8'!AD$24","v":{"v":0,"d":"$0.00"}},{"$f":"'MMA Rev-Exp Region 8'!AE$24","v":{"v":0,"d":"$0.00"}},{"$f":"'MMA Rev-Exp Region 8'!AF$24","v":{"v":0,"d":"$0.00"}},{"$f":"'MMA Rev-Exp Region 8'!AG$24","v":{"v":0,"d":"$0.00"}},{"$f":"'MMA Rev-Exp Region 8'!AH$24","v":{"v":0,"d":"$0.00"}},{"$f":"'MMA Rev-Exp Region 8'!AI$24","v":{"v":0,"d":"$0.00"}},{"$f":"'MMA Rev-Exp Region 8'!AJ$24","v":{"v":0,"d":"$0.00"}},{"v":0,"d":"$0.00"}]
["MMA",null,null,{"$f":"Jurat!I$1","v":0},{"$f":"Jurat!D$33","v":"00:00:00"},"Q3","2017-09-30","Region 8","Operating Expense","Medical Benefits Expense","Hospital Services","2.7.1","Transplant Services",{"$f":"'MMA Rev-Exp Region 8'!Z$27","v":{"v":0,"d":"$0.00"}},{"$f":"'MMA Rev-Exp Region 8'!AA$27","v":{"v":0,"d":"$0.00"}},{"$f":"'MMA Rev-Exp Region 8'!AB$27","v":{"v":0,"d":"$0.00"}},{"$f":"'MMA Rev-Exp Region 8'!AC$27","v":{"v":0,"d":"$0.00"}},{"$f":"'MMA Rev-Exp Region 8'!AD$27","v":{"v":0,"d":"$0.00"}},{"$f":"'MMA Rev-Exp Region 8'!AE$27","v":{"v":0,"d":"$0.00"}},{"$f":"'MMA Rev-Exp Region 8'!AF$27","v":{"v":0,"d":"$0.00"}},{"$f":"'MMA Rev-Exp Region 8'!AG$27","v":{"v":0,"d":"$0.00"}},{"$f":"'MMA Rev-Exp Region 8'!AH$27","v":{"v":0,"d":"$0.00"}},{"$f":"'MMA Rev-Exp Region 8'!AI$27","v":{"v":0,"d":"$0.00"}},{"$f":"'MMA Rev-Exp Region 8'!AJ$27","v":{"v":0,"d":"$0.00"}},{"v":0,"d":"$0.00"}]
["MMA",null,null,{"$f":"Jurat!I$1","v":0},{"$f":"Jurat!D$33","v":"00:00:00"},"Q3","2017-09-30","Region 8","Operating Expense","Medical Benefits Expense","Professional Services","3.4","§ 1202 PCP Payments to providers",{"$f":"'MMA Rev-Exp Region 8'!Z$32","v":{"v":0,"d":"$0.00"}},{"$f":"'MMA Rev-Exp Region 8'!AA$32","v":{"v":0,"d":"$0.00"}},{"$f":"'MMA Rev-Exp Region 8'!AB$32","v":{"v":0,"d":"$0.00"}},{"$f":"'MMA Rev-Exp Region 8'!AC$32","v":{"v":0,"d":"$0.00"}},{"$f":"'MMA Rev-Exp Region 8'!AD$32","v":{"v":0,"d":"$0.00"}},{"$f":"'MMA Rev-Exp Region 8'!AE$32","v":{"v":0,"d":"$0.00"}},{"$f":"'MMA Rev-Exp Region 8'!AF$32","v":{"v":0,"d":"$0.00"}},{"$f":"'MMA Rev-Exp Region 8'!AG$32","v":{"v":0,"d":"$0.00"}},{"$f":"'MMA Rev-Exp Region 8'!AH$32","v":{"v":0,"d":"$0.00"}},{"$f":"'MMA Rev-Exp Region 8'!AI$32","v":{"v":0,"d":"$0.00"}},{"$f":"'MMA Rev-Exp Region 8'!AJ$32","v":{"v":0,"d":"$0.00"}},{"v":0,"d":"$0.00"}]
["MMA",null,null,{"$f":"Jurat!I$1","v":0},{"$f":"Jurat!D$33","v":"00:00:00"},"Q3","2017-09-30","Region 8","Operating Expense","Medical Benefits Expense","Professional Services","3.7","Professional Services Settlements",{"$f":"'MMA Rev-Exp Region 8'!Z$35","v":{"v":0,"d":"$0.00"}},{"$f":"'MMA Rev-Exp Region 8'!AA$35","v":{"v":0,"d":"$0.00"}},{"$f":"'MMA Rev-Exp Region 8'!AB$35","v":{"v":0,"d":"$0.00"}},{"$f":"'MMA Rev-Exp Region 8'!AC$35","v":{"v":0,"d":"$0.00"}},{"$f":"'MMA Rev-Exp Region 8'!AD$35","v":{"v":0,"d":"$0.00"}},{"$f":"'MMA Rev-Exp Region 8'!AE$35","v":{"v":0,"d":"$0.00"}},{"$f":"'MMA Rev-Exp Region 8'!AF$35","v":{"v":0,"d":"$0.00"}},{"$f":"'MMA Rev-Exp Region 8'!AG$35","v":{"v":0,"d":"$0.00"}},{"$f":"'MMA Rev-Exp Region 8'!AH$35","v":{"v":0,"d":"$0.00"}},{"$f":"'MMA Rev-Exp Region 8'!AI$35","v":{"v":0,"d":"$0.00"}},{"$f":"'MMA Rev-Exp Region 8'!AJ$35","v":{"v":0,"d":"$0.00"}},{"v":0,"d":"$0.00"}]
["MMA",null,null,{"$f":"Jurat!I$1","v":0},{"$f":"Jurat!D$33","v":"00:00:00"},"Q3","2017-09-30","Region 8","Operating Expense","Medical Benefits Expense","Mental Health Services",5.1,"Mental Health & Substance Abuse FFS",{"$f":"'MMA Rev-Exp Region 8'!Z$41","v":{"v":0,"d":"$0.00"}},{"$f":"'MMA Rev-Exp Region 8'!AA$41","v":{"v":0,"d":"$0.00"}},{"$f":"'MMA Rev-Exp Region 8'!AB$41","v":{"v":0,"d":"$0.00"}},{"$f":"'MMA Rev-Exp Region 8'!AC$41","v":{"v":0,"d":"$0.00"}},{"$f":"'MMA Rev-Exp Region 8'!AD$41","v":{"v":0,"d":"$0.00"}},{"$f":"'MMA Rev-Exp Region 8'!AE$41","v":{"v":0,"d":"$0.00"}},{"$f":"'MMA Rev-Exp Region 8'!AF$41","v":{"v":0,"d":"$0.00"}},{"$f":"'MMA Rev-Exp Region 8'!AG$41","v":{"v":0,"d":"$0.00"}},{"$f":"'MMA Rev-Exp Region 8'!AH$41","v":{"v":0,"d":"$0.00"}},{"$f":"'MMA Rev-Exp Region 8'!AI$41","v":{"v":0,"d":"$0.00"}},{"$f":"'MMA Rev-Exp Region 8'!AJ$41","v":{"v":0,"d":"$0.00"}},{"v":0,"d":"$0.00"}]
["MMA",null,null,{"$f":"Jurat!I$1","v":0},{"$f":"Jurat!D$33","v":"00:00:00"},"Q3","2017-09-30","Region 8","Operating Expense","Medical Benefits Expense","Mental Health Services","5.4","Mental Health Settlements",{"$f":"'MMA Rev-Exp Region 8'!Z$44","v":{"v":0,"d":"$0.00"}},{"$f":"'MMA Rev-Exp Region 8'!AA$44","v":{"v":0,"d":"$0.00"}},{"$f":"'MMA Rev-Exp Region 8'!AB$44","v":{"v":0,"d":"$0.00"}},{"$f":"'MMA Rev-Exp Region 8'!AC$44","v":{"v":0,"d":"$0.00"}},{"$f":"'MMA Rev-Exp Region 8'!AD$44","v":{"v":0,"d":"$0.00"}},{"$f":"'MMA Rev-Exp Region 8'!AE$44","v":{"v":0,"d":"$0.00"}},{"$f":"'MMA Rev-Exp Region 8'!AF$44","v":{"v":0,"d":"$0.00"}},{"$f":"'MMA Rev-Exp Region 8'!AG$44","v":{"v":0,"d":"$0.00"}},{"$f":"'MMA Rev-Exp Region 8'!AH$44","v":{"v":0,"d":"$0.00"}},{"$f":"'MMA Rev-Exp Region 8'!AI$44","v":{"v":0,"d":"$0.00"}},{"$f":"'MMA Rev-Exp Region 8'!AJ$44","v":{"v":0,"d":"$0.00"}},{"v":0,"d":"$0.00"}]
["MMA",null,null,{"$f":"Jurat!I$1","v":0},{"$f":"Jurat!D$33","v":"00:00:00"},"Q3","2017-09-30","Region 8","Operating Expense","Medical Benefits Expense","Dental Services",6.3,"Ending IBNP for Dental Services",{"$f":"'MMA Rev-Exp Region 8'!Z$48","v":{"v":0,"d":"$0.00"}},{"$f":"'MMA Rev-Exp Region 8'!AA$48","v":{"v":0,"d":"$0.00"}},{"$f":"'MMA Rev-Exp Region 8'!AB$48","v":{"v":0,"d":"$0.00"}},{"$f":"'MMA Rev-Exp Region 8'!AC$48","v":{"v":0,"d":"$0.00"}},{"$f":"'MMA Rev-Exp Region 8'!AD$48","v":{"v":0,"d":"$0.00"}},{"$f":"'MMA Rev-Exp Region 8'!AE$48","v":{"v":0,"d":"$0.00"}},{"$f":"'MMA Rev-Exp Region 8'!AF$48","v":{"v":0,"d":"$0.00"}},{"$f":"'MMA Rev-Exp Region 8'!AG$48","v":{"v":0,"d":"$0.00"}},{"$f":"'MMA Rev-Exp Region 8'!AH$48","v":{"v":0,"d":"$0.00"}},{"$f":"'MMA Rev-Exp Region 8'!AI$48","v":{"v":0,"d":"$0.00"}},{"$f":"'MMA Rev-Exp Region 8'!AJ$48","v":{"v":0,"d":"$0.00"}},{"v":0,"d":"$0.00"}]
["MMA",null,null,{"$f":"Jurat!I$1","v":0},{"$f":"Jurat!D$33","v":"00:00:00"},"Q3","2017-09-30","Region 8","Operating Expense","Medical Benefits Expense","Dental Services","6.4","Dental Settlements",{"$f":"'MMA Rev-Exp Region 8'!Z$49","v":{"v":0,"d":"$0.00"}},{"$f":"'MMA Rev-Exp Region 8'!AA$49","v":{"v":0,"d":"$0.00"}},{"$f":"'MMA Rev-Exp Region 8'!AB$49","v":{"v":0,"d":"$0.00"}},{"$f":"'MMA Rev-Exp Region 8'!AC$49","v":{"v":0,"d":"$0.00"}},{"$f":"'MMA Rev-Exp Region 8'!AD$49","v":{"v":0,"d":"$0.00"}},{"$f":"'MMA Rev-Exp Region 8'!AE$49","v":{"v":0,"d":"$0.00"}},{"$f":"'MMA Rev-Exp Region 8'!AF$49","v":{"v":0,"d":"$0.00"}},{"$f":"'MMA Rev-Exp Region 8'!AG$49","v":{"v":0,"d":"$0.00"}},{"$f":"'MMA Rev-Exp Region 8'!AH$49","v":{"v":0,"d":"$0.00"}},{"$f":"'MMA Rev-Exp Region 8'!AI$49","v":{"v":0,"d":"$0.00"}},{"$f":"'MMA Rev-Exp Region 8'!AJ$49","v":{"v":0,"d":"$0.00"}},{"v":0,"d":"$0.00"}]
["MMA",null,null,{"$f":"Jurat!I$1","v":0},{"$f":"Jurat!D$33","v":"00:00:00"},"Q3","2017-09-30","Region 8","Operating Expense","Medical Benefits Expense","Transportation Services",7.2,"Transportation Subcapitation",{"$f":"'MMA Rev-Exp Region 8'!Z$52","v":{"v":0,"d":"$0.00"}},{"$f":"'MMA Rev-Exp Region 8'!AA$52","v":{"v":0,"d":"$0.00"}},{"$f":"'MMA Rev-Exp Region 8'!AB$52","v":{"v":0,"d":"$0.00"}},{"$f":"'MMA Rev-Exp Region 8'!AC$52","v":{"v":0,"d":"$0.00"}},{"$f":"'MMA Rev-Exp Region 8'!AD$52","v":{"v":0,"d":"$0.00"}},{"$f":"'MMA Rev-Exp Region 8'!AE$52","v":{"v":0,"d":"$0.00"}},{"$f":"'MMA Rev-Exp Region 8'!AF$52","v":{"v":0,"d":"$0.00"}},{"$f":"'MMA Rev-Exp Region 8'!AG$52","v":{"v":0,"d":"$0.00"}},{"$f":"'MMA Rev-Exp Region 8'!AH$52","v":{"v":0,"d":"$0.00"}},{"$f":"'MMA Rev-Exp Region 8'!AI$52","v":{"v":0,"d":"$0.00"}},{"$f":"'MMA Rev-Exp Region 8'!AJ$52","v":{"v":0,"d":"$0.00"}},{"v":0,"d":"$0.00"}]
["MMA",null,null,{"$f":"Jurat!I$1","v":0},{"$f":"Jurat!D$33","v":"00:00:00"},"Q3","2017-09-30","Region 8","Operating Expense","Medical Benefits Expense","Pharmacy Services",8.1,"Prescription Drugs FFS",{"$f":"'MMA Rev-Exp Region 8'!Z$56","v":{"v":0,"d":"$0.00"}},{"$f":"'MMA Rev-Exp Region 8'!AA$56","v":{"v":0,"d":"$0.00"}},{"$f":"'MMA Rev-Exp Region 8'!AB$56","v":{"v":0,"d":"$0.00"}},{"$f":"'MMA Rev-Exp Region 8'!AC$56","v":{"v":0,"d":"$0.00"}},{"$f":"'MMA Rev-Exp Region 8'!AD$56","v":{"v":0,"d":"$0.00"}},{"$f":"'MMA Rev-Exp Region 8'!AE$56","v":{"v":0,"d":"$0.00"}},{"$f":"'MMA Rev-Exp Region 8'!AF$56","v":{"v":0,"d":"$0.00"}},{"$f":"'MMA Rev-Exp Region 8'!AG$56","v":{"v":0,"d":"$0.00"}},{"$f":"'MMA Rev-Exp Region 8'!AH$56","v":{"v":0,"d":"$0.00"}},{"$f":"'MMA Rev-Exp Region 8'!AI$56","v":{"v":0,"d":"$0.00"}},{"$f":"'MMA Rev-Exp Region 8'!AJ$56","v":{"v":0,"d":"$0.00"}},{"v":0,"d":"$0.00"}]
["MMA",null,null,{"$f":"Jurat!I$1","v":0},{"$f":"Jurat!D$33","v":"00:00:00"},"Q3","2017-09-30","Region 8","Operating Expense","Medical Benefits Expense","Pharmacy Services","8.5","Ending accrual for Rebates receivable",{"$f":"'MMA Rev-Exp Region 8'!Z$60","v":{"v":0,"d":"$0.00"}},{"$f":"'MMA Rev-Exp Region 8'!AA$60","v":{"v":0,"d":"$0.00"}},{"$f":"'MMA Rev-Exp Region 8'!AB$60","v":{"v":0,"d":"$0.00"}},{"$f":"'MMA Rev-Exp Region 8'!AC$60","v":{"v":0,"d":"$0.00"}},{"$f":"'MMA Rev-Exp Region 8'!AD$60","v":{"v":0,"d":"$0.00"}},{"$f":"'MMA Rev-Exp Region 8'!AE$60","v":{"v":0,"d":"$0.00"}},{"$f":"'MMA Rev-Exp Region 8'!AF$60","v":{"v":0,"d":"$0.00"}},{"$f":"'MMA Rev-Exp Region 8'!AG$60","v":{"v":0,"d":"$0.00"}},{"$f":"'MMA Rev-Exp Region 8'!AH$60","v":{"v":0,"d":"$0.00"}},{"$f":"'MMA Rev-Exp Region 8'!AI$60","v":{"v":0,"d":"$0.00"}},{"$f":"'MMA Rev-Exp Region 8'!AJ$60","v":{"v":0,"d":"$0.00"}},{"v":0,"d":"$0.00"}]
["MMA",null,null,{"$f":"Jurat!I$1","v":0},{"$f":"Jurat!D$33","v":"00:00:00"},"Q3","2017-09-30","Region 8","Operating Expense","Medical Benefits Expense","Other MMA Services",9.1,"Home Health, Private Duty Nursing, Personal Care FFS",{"$f":"'MMA Rev-Exp Region 8'!Z$64","v":{"v":0,"d":"$0.00"}},{"$f":"'MMA Rev-Exp Region 8'!AA$64","v":{"v":0,"d":"$0.00"}},{"$f":"'MMA Rev-Exp Region 8'!AB$64","v":{"v":0,"d":"$0.00"}},{"$f":"'MMA Rev-Exp Region 8'!AC$64","v":{"v":0,"d":"$0.00"}},{"$f":"'MMA Rev-Exp Region 8'!AD$64","v":{"v":0,"d":"$0.00"}},{"$f":"'MMA Rev-Exp Region 8'!AE$64","v":{"v":0,"d":"$0.00"}},{"$f":"'MMA Rev-Exp Region 8'!AF$64","v":{"v":0,"d":"$0.00"}},{"$f":"'MMA Rev-Exp Region 8'!AG$64","v":{"v":0,"d":"$0.00"}},{"$f":"'MMA Rev-Exp Region 8'!AH$64","v":{"v":0,"d":"$0.00"}},{"$f":"'MMA Rev-Exp Region 8'!AI$64","v":{"v":0,"d":"$0.00"}},{"$f":"'MMA Rev-Exp Region 8'!AJ$64","v":{"v":0,"d":"$0.00"}},{"v":0,"d":"$0.00"}]
["MMA",null,null,{"$f":"Jurat!I$1","v":0},{"$f":"Jurat!D$33","v":"00:00:00"},"Q3","2017-09-30","Region 8","Operating Expense","Medical Benefits Expense","Other MMA Services","9.5","Other Services Subcapitation",{"$f":"'MMA Rev-Exp Region 8'!Z$68","v":{"v":0,"d":"$0.00"}},{"$f":"'MMA Rev-Exp Region 8'!AA$68","v":{"v":0,"d":"$0.00"}},{"$f":"'MMA Rev-Exp Region 8'!AB$68","v":{"v":0,"d":"$0.00"}},{"$f":"'MMA Rev-Exp Region 8'!AC$68","v":{"v":0,"d":"$0.00"}},{"$f":"'MMA Rev-Exp Region 8'!AD$68","v":{"v":0,"d":"$0.00"}},{"$f":"'MMA Rev-Exp Region 8'!AE$68","v":{"v":0,"d":"$0.00"}},{"$f":"'MMA Rev-Exp Region 8'!AF$68","v":{"v":0,"d":"$0.00"}},{"$f":"'MMA Rev-Exp Region 8'!AG$68","v":{"v":0,"d":"$0.00"}},{"$f":"'MMA Rev-Exp Region 8'!AH$68","v":{"v":0,"d":"$0.00"}},{"$f":"'MMA Rev-Exp Region 8'!AI$68","v":{"v":0,"d":"$0.00"}},{"$f":"'MMA Rev-Exp Region 8'!AJ$68","v":{"v":0,"d":"$0.00"}},{"v":0,"d":"$0.00"}]
["MMA",null,null,{"$f":"Jurat!I$1","v":0},{"$f":"Jurat!D$33","v":"00:00:00"},"Q3","2017-09-30","Region 8","Operating Expense","Medical Benefits Expense","Expanded Benefits","10.1","Expanded Benefits FFS",{"$f":"'MMA Rev-Exp Region 8'!Z$72","v":{"v":0,"d":"$0.00"}},{"$f":"'MMA Rev-Exp Region 8'!AA$72","v":{"v":0,"d":"$0.00"}},{"$f":"'MMA Rev-Exp Region 8'!AB$72","v":{"v":0,"d":"$0.00"}},{"$f":"'MMA Rev-Exp Region 8'!AC$72","v":{"v":0,"d":"$0.00"}},{"$f":"'MMA Rev-Exp Region 8'!AD$72","v":{"v":0,"d":"$0.00"}},{"$f":"'MMA Rev-Exp Region 8'!AE$72","v":{"v":0,"d":"$0.00"}},{"$f":"'MMA Rev-Exp Region 8'!AF$72","v":{"v":0,"d":"$0.00"}},{"$f":"'MMA Rev-Exp Region 8'!AG$72","v":{"v":0,"d":"$0.00"}},{"$f":"'MMA Rev-Exp Region 8'!AH$72","v":{"v":0,"d":"$0.00"}},{"$f":"'MMA Rev-Exp Region 8'!AI$72","v":{"v":0,"d":"$0.00"}},{"$f":"'MMA Rev-Exp Region 8'!AJ$72","v":{"v":0,"d":"$0.00"}},{"v":0,"d":"$0.00"}]
["MMA",null,null,{"$f":"Jurat!I$1","v":0},{"$f":"Jurat!D$33","v":"00:00:00"},"Q3","2017-09-30","Region 8","Operating Expense","Medical Benefits Expense","Expanded Benefits","10.4","Expanded Benefits Settlements",{"$f":"'MMA Rev-Exp Region 8'!Z$75","v":{"v":0,"d":"$0.00"}},{"$f":"'MMA Rev-Exp Region 8'!AA$75","v":{"v":0,"d":"$0.00"}},{"$f":"'MMA Rev-Exp Region 8'!AB$75","v":{"v":0,"d":"$0.00"}},{"$f":"'MMA Rev-Exp Region 8'!AC$75","v":{"v":0,"d":"$0.00"}},{"$f":"'MMA Rev-Exp Region 8'!AD$75","v":{"v":0,"d":"$0.00"}},{"$f":"'MMA Rev-Exp Region 8'!AE$75","v":{"v":0,"d":"$0.00"}},{"$f":"'MMA Rev-Exp Region 8'!AF$75","v":{"v":0,"d":"$0.00"}},{"$f":"'MMA Rev-Exp Region 8'!AG$75","v":{"v":0,"d":"$0.00"}},{"$f":"'MMA Rev-Exp Region 8'!AH$75","v":{"v":0,"d":"$0.00"}},{"$f":"'MMA Rev-Exp Region 8'!AI$75","v":{"v":0,"d":"$0.00"}},{"$f":"'MMA Rev-Exp Region 8'!AJ$75","v":{"v":0,"d":"$0.00"}},{"v":0,"d":"$0.00"}]
["MMA",null,null,{"$f":"Jurat!I$1","v":0},{"$f":"Jurat!D$33","v":"00:00:00"},"Q3","2017-09-30","Region 8","Operating Expense","Medical Benefits Expense","Other Medical","11.5","TPL & Fraud/Abuse Recoveries",{"$f":"'MMA Rev-Exp Region 8'!Z$81","v":{"v":0,"d":"$0.00"}},{"$f":"'MMA Rev-Exp Region 8'!AA$81","v":{"v":0,"d":"$0.00"}},{"$f":"'MMA Rev-Exp Region 8'!AB$81","v":{"v":0,"d":"$0.00"}},{"$f":"'MMA Rev-Exp Region 8'!AC$81","v":{"v":0,"d":"$0.00"}},{"$f":"'MMA Rev-Exp Region 8'!AD$81","v":{"v":0,"d":"$0.00"}},{"$f":"'MMA Rev-Exp Region 8'!AE$81","v":{"v":0,"d":"$0.00"}},{"$f":"'MMA Rev-Exp Region 8'!AF$81","v":{"v":0,"d":"$0.00"}},{"$f":"'MMA Rev-Exp Region 8'!AG$81","v":{"v":0,"d":"$0.00"}},{"$f":"'MMA Rev-Exp Region 8'!AH$81","v":{"v":0,"d":"$0.00"}},{"$f":"'MMA Rev-Exp Region 8'!AI$81","v":{"v":0,"d":"$0.00"}},{"$f":"'MMA Rev-Exp Region 8'!AJ$81","v":{"v":0,"d":"$0.00"}},{"v":0,"d":"$0.00"}]
["MMA",null,null,{"$f":"Jurat!I$1","v":0},{"$f":"Jurat!D$33","v":"00:00:00"},"Q3","2017-09-30","Region 8","Operating Expense","Administrative Expense","Administrative","12.1","Salaries & Benefits",{"$f":"'MMA Rev-Exp Region 8'!Z$90","v":{"v":0,"d":"$0.00"}},{"v":0,"d":"$0.00"},{"v":0,"d":"$0.00"},{"v":0,"d":"$0.00"},{"v":0,"d":"$0.00"},{"v":0,"d":"$0.00"},{"v":0,"d":"$0.00"},{"v":0,"d":"$0.00"},{"v":0,"d":"$0.00"},{"v":0,"d":"$0.00"},{"v":0,"d":"$0.00"},{"v":0,"d":"$0.00"}]
["MMA",null,null,{"$f":"Jurat!I$1","v":0},{"$f":"Jurat!D$33","v":"00:00:00"},"Q3","2017-09-30","Region 8","Operating Expense","Administrative Expense","Administrative","12.3","Information Systems",{"$f":"'MMA Rev-Exp Region 8'!Z$92","v":{"v":0,"d":"$0.00"}},{"v":0,"d":"$0.00"},{"v":0,"d":"$0.00"},{"v":0,"d":"$0.00"},{"v":0,"d":"$0.00"},{"v":0,"d":"$0.00"},{"v":0,"d":"$0.00"},{"v":0,"d":"$0.00"},{"v":0,"d":"$0.00"},{"v":0,"d":"$0.00"},{"v":0,"d":"$0.00"},{"v":0,"d":"$0.00"}]
["MMA",null,null,{"$f":"Jurat!I$1","v":0},{"$f":"Jurat!D$33","v":"00:00:00"},"Q3","2017-09-30","Region 8","Operating Expense","Administrative Expense","Administrative","12.6","Compliance/Regulatory",{"$f":"'MMA Rev-Exp Region 8'!Z$95","v":{"v":0,"d":"$0.00"}},{"v":0,"d":"$0.00"},{"v":0,"d":"$0.00"},{"v":0,"d":"$0.00"},{"v":0,"d":"$0.00"},{"v":0,"d":"$0.00"},{"v":0,"d":"$0.00"},{"v":0,"d":"$0.00"},{"v":0,"d":"$0.00"},{"v":0,"d":"$0.00"},{"v":0,"d":"$0.00"},{"v":0,"d":"$0.00"}]
["MMA",null,null,{"$f":"Jurat!I$1","v":0},{"$f":"Jurat!D$33","v":"00:00:00"},"Q3","2017-09-30","Region 8","Operating Expense","Taxes & Fees","Taxes & Fees","13.3","Section 9010 Health Insurance Providers Fee",{"$f":"'MMA Rev-Exp Region 8'!Z$99","v":{"v":0,"d":"$0.00"}},{"v":0,"d":"$0.00"},{"v":0,"d":"$0.00"},{"v":0,"d":"$0.00"},{"v":0,"d":"$0.00"},{"v":0,"d":"$0.00"},{"v":0,"d":"$0.00"},{"v":0,"d":"$0.00"},{"v":0,"d":"$0.00"},{"v":0,"d":"$0.00"},{"v":0,"d":"$0.00"},{"v":0,"d":"$0.00"}]
["MMA",null,null,{"$f":"Jurat!I$1","v":0},{"$f":"Jurat!D$33","v":"00:00:00"},"Q4","2017-12-31","Region 8","Operating Revenue","Kick Payments","Kick Payments - Transplant",1.2,"Transplant Kick Payments",{"$f":"'MMA Rev-Exp Region 8'!AK$12","v":{"v":0,"d":"$0.00"}},{"$f":"'MMA Rev-Exp Region 8'!AL$12","v":{"v":0,"d":"$0.00"}},{"$f":"'MMA Rev-Exp Region 8'!AM$12","v":{"v":0,"d":"$0.00"}},{"$f":"'MMA Rev-Exp Region 8'!AN$12","v":{"v":0,"d":"$0.00"}},{"$f":"'MMA Rev-Exp Region 8'!AO$12","v":{"v":0,"d":"$0.00"}},{"$f":"'MMA Rev-Exp Region 8'!AP$12","v":{"v":0,"d":"$0.00"}},{"$f":"'MMA Rev-Exp Region 8'!AQ$12","v":{"v":0,"d":"$0.00"}},{"$f":"'MMA Rev-Exp Region 8'!AR$12","v":{"v":0,"d":"$0.00"}},{"$f":"'MMA Rev-Exp Region 8'!AS$12","v":{"v":0,"d":"$0.00"}},{"$f":"'MMA Rev-Exp Region 8'!AT$12","v":{"v":0,"d":"$0.00"}},{"$f":"'MMA Rev-Exp Region 8'!AU$12","v":{"v":0,"d":"$0.00"}},{"v":0,"d":"$0.00"}]
["MMA",null,null,{"$f":"Jurat!I$1","v":0},{"$f":"Jurat!D$33","v":"00:00:00"},"Q4","2017-12-31","Region 8","Operating Revenue","Other Revenue","Other Revenue - 9010","1.5","ACA § 9010 related payments",{"$f":"'MMA Rev-Exp Region 8'!AK$15","v":{"v":0,"d":"$0.00"}},{"$f":"'MMA Rev-Exp Region 8'!AL$15","v":{"v":0,"d":"$0.00"}},{"$f":"'MMA Rev-Exp Region 8'!AM$15","v":{"v":0,"d":"$0.00"}},{"$f":"'MMA Rev-Exp Region 8'!AN$15","v":{"v":0,"d":"$0.00"}},{"$f":"'MMA Rev-Exp Region 8'!AO$15","v":{"v":0,"d":"$0.00"}},{"$f":"'MMA Rev-Exp Region 8'!AP$15","v":{"v":0,"d":"$0.00"}},{"$f":"'MMA Rev-Exp Region 8'!AQ$15","v":{"v":0,"d":"$0.00"}},{"$f":"'MMA Rev-Exp Region 8'!AR$15","v":{"v":0,"d":"$0.00"}},{"$f":"'MMA Rev-Exp Region 8'!AS$15","v":{"v":0,"d":"$0.00"}},{"$f":"'MMA Rev-Exp Region 8'!AT$15","v":{"v":0,"d":"$0.00"}},{"$f":"'MMA Rev-Exp Region 8'!AU$15","v":{"v":0,"d":"$0.00"}},{"v":0,"d":"$0.00"}]
["MMA",null,null,{"$f":"Jurat!I$1","v":0},{"$f":"Jurat!D$33","v":"00:00:00"},"Q4","2017-12-31","Region 8","Operating Expense","Medical Benefits Expense","Hospital Services",2.2,"Ending IBNP for Inpatient Hospital Services",{"$f":"'MMA Rev-Exp Region 8'!AK$21","v":{"v":0,"d":"$0.00"}},{"$f":"'MMA Rev-Exp Region 8'!AL$21","v":{"v":0,"d":"$0.00"}},{"$f":"'MMA Rev-Exp Region 8'!AM$21","v":{"v":0,"d":"$0.00"}},{"$f":"'MMA Rev-Exp Region 8'!AN$21","v":{"v":0,"d":"$0.00"}},{"$f":"'MMA Rev-Exp Region 8'!AO$21","v":{"v":0,"d":"$0.00"}},{"$f":"'MMA Rev-Exp Region 8'!AP$21","v":{"v":0,"d":"$0.00"}},{"$f":"'MMA Rev-Exp Region 8'!AQ$21","v":{"v":0,"d":"$0.00"}},{"$f":"'MMA Rev-Exp Region 8'!AR$21","v":{"v":0,"d":"$0.00"}},{"$f":"'MMA Rev-Exp Region 8'!AS$21","v":{"v":0,"d":"$0.00"}},{"$f":"'MMA Rev-Exp Region 8'!AT$21","v":{"v":0,"d":"$0.00"}},{"$f":"'MMA Rev-Exp Region 8'!AU$21","v":{"v":0,"d":"$0.00"}},{"v":0,"d":"$0.00"}]
["MMA",null,null,{"$f":"Jurat!I$1","v":0},{"$f":"Jurat!D$33","v":"00:00:00"},"Q4","2017-12-31","Region 8","Operating Expense","Medical Benefits Expense","Hospital Services",2.3,"Outpatient FFS: ER",{"$f":"'MMA Rev-Exp Region 8'!AK$22","v":{"v":0,"d":"$0.00"}},{"$f":"'MMA Rev-Exp Region 8'!AL$22","v":{"v":0,"d":"$0.00"}},{"$f":"'MMA Rev-Exp Region 8'!AM$22","v":{"v":0,"d":"$0.00"}},{"$f":"'MMA Rev-Exp Region 8'!AN$22","v":{"v":0,"d":"$0.00"}},{"$f":"'MMA Rev-Exp Region 8'!AO$22","v":{"v":0,"d":"$0.00"}},{"$f":"'MMA Rev-Exp Region 8'!AP$22","v":{"v":0,"d":"$0.00"}},{"$f":"'MMA Rev-Exp Region 8'!AQ$22","v":{"v":0,"d":"$0.00"}},{"$f":"'MMA Rev-Exp Region 8'!AR$22","v":{"v":0,"d":"$0.00"}},{"$f":"'MMA Rev-Exp Region 8'!AS$22","v":{"v":0,"d":"$0.00"}},{"$f":"'MMA Rev-Exp Region 8'!AT$22","v":{"v":0,"d":"$0.00"}},{"$f":"'MMA Rev-Exp Region 8'!AU$22","v":{"v":0,"d":"$0.00"}},{"v":0,"d":"$0.00"}]
["MMA",null,null,{"$f":"Jurat!I$1","v":0},{"$f":"Jurat!D$33","v":"00:00:00"},"Q4","2017-12-31","Region 8","Operating Expense","Medical Benefits Expense","Hospital Services","2.6","Subcapitated Hospital Services",{"$f":"'MMA Rev-Exp Region 8'!AK$25","v":{"v":0,"d":"$0.00"}},{"$f":"'MMA Rev-Exp Region 8'!AL$25","v":{"v":0,"d":"$0.00"}},{"$f":"'MMA Rev-Exp Region 8'!AM$25","v":{"v":0,"d":"$0.00"}},{"$f":"'MMA Rev-Exp Region 8'!AN$25","v":{"v":0,"d":"$0.00"}},{"$f":"'MMA Rev-Exp Region 8'!AO$25","v":{"v":0,"d":"$0.00"}},{"$f":"'MMA Rev-Exp Region 8'!AP$25","v":{"v":0,"d":"$0.00"}},{"$f":"'MMA Rev-Exp Region 8'!AQ$25","v":{"v":0,"d":"$0.00"}},{"$f":"'MMA Rev-Exp Region 8'!AR$25","v":{"v":0,"d":"$0.00"}},{"$f":"'MMA Rev-Exp Region 8'!AS$25","v":{"v":0,"d":"$0.00"}},{"$f":"'MMA Rev-Exp Region 8'!AT$25","v":{"v":0,"d":"$0.00"}},{"$f":"'MMA Rev-Exp Region 8'!AU$25","v":{"v":0,"d":"$0.00"}},{"v":0,"d":"$0.00"}]
["MMA",null,null,{"$f":"Jurat!I$1","v":0},{"$f":"Jurat!D$33","v":"00:00:00"},"Q4","2017-12-31","Region 8","Operating Expense","Medical Benefits Expense","Professional Services",3.1,"Primary Care FFS",{"$f":"'MMA Rev-Exp Region 8'!AK$29","v":{"v":0,"d":"$0.00"}},{"$f":"'MMA Rev-Exp Region 8'!AL$29","v":{"v":0,"d":"$0.00"}},{"$f":"'MMA Rev-Exp Region 8'!AM$29","v":{"v":0,"d":"$0.00"}},{"$f":"'MMA Rev-Exp Region 8'!AN$29","v":{"v":0,"d":"$0.00"}},{"$f":"'MMA Rev-Exp Region 8'!AO$29","v":{"v":0,"d":"$0.00"}},{"$f":"'MMA Rev-Exp Region 8'!AP$29","v":{"v":0,"d":"$0.00"}},{"$f":"'MMA Rev-Exp Region 8'!AQ$29","v":{"v":0,"d":"$0.00"}},{"$f":"'MMA Rev-Exp Region 8'!AR$29","v":{"v":0,"d":"$0.00"}},{"$f":"'MMA Rev-Exp Region 8'!AS$29","v":{"v":0,"d":"$0.00"}},{"$f":"'MMA Rev-Exp Region 8'!AT$29","v":{"v":0,"d":"$0.00"}},{"$f":"'MMA Rev-Exp Region 8'!AU$29","v":{"v":0,"d":"$0.00"}},{"v":0,"d":"$0.00"}]
["MMA",null,null,{"$f":"Jurat!I$1","v":0},{"$f":"Jurat!D$33","v":"00:00:00"},"Q4","2017-12-31","Region 8","Operating Expense","Medical Benefits Expense","Professional Services","3.4","§ 1202 PCP Payments to providers",{"$f":"'MMA Rev-Exp Region 8'!AK$32","v":{"v":0,"d":"$0.00"}},{"$f":"'MMA Rev-Exp Region 8'!AL$32","v":{"v":0,"d":"$0.00"}},{"$f":"'MMA Rev-Exp Region 8'!AM$32","v":{"v":0,"d":"$0.00"}},{"$f":"'MMA Rev-Exp Region 8'!AN$32","v":{"v":0,"d":"$0.00"}},{"$f":"'MMA Rev-Exp Region 8'!AO$32","v":{"v":0,"d":"$0.00"}},{"$f":"'MMA Rev-Exp Region 8'!AP$32","v":{"v":0,"d":"$0.00"}},{"$f":"'MMA Rev-Exp Region 8'!AQ$32","v":{"v":0,"d":"$0.00"}},{"$f":"'MMA Rev-Exp Region 8'!AR$32","v":{"v":0,"d":"$0.00"}},{"$f":"'MMA Rev-Exp Region 8'!AS$32","v":{"v":0,"d":"$0.00"}},{"$f":"'MMA Rev-Exp Region 8'!AT$32","v":{"v":0,"d":"$0.00"}},{"$f":"'MMA Rev-Exp Region 8'!AU$32","v":{"v":0,"d":"$0.00"}},{"v":0,"d":"$0.00"}]
["MMA",null,null,{"$f":"Jurat!I$1","v":0},{"$f":"Jurat!D$33","v":"00:00:00"},"Q4","2017-12-31","Region 8","Operating Expense","Medical Benefits Expense","Professional Services","3.7","Professional Services Settlements",{"$f":"'MMA Rev-Exp Region 8'!AK$35","v":{"v":0,"d":"$0.00"}},{"$f":"'MMA Rev-Exp Region 8'!AL$35","v":{"v":0,"d":"$0.00"}},{"$f":"'MMA Rev-Exp Region 8'!AM$35","v":{"v":0,"d":"$0.00"}},{"$f":"'MMA Rev-Exp Region 8'!AN$35","v":{"v":0,"d":"$0.00"}},{"$f":"'MMA Rev-Exp Region 8'!AO$35","v":{"v":0,"d":"$0.00"}},{"$f":"'MMA Rev-Exp Region 8'!AP$35","v":{"v":0,"d":"$0.00"}},{"$f":"'MMA Rev-Exp Region 8'!AQ$35","v":{"v":0,"d":"$0.00"}},{"$f":"'MMA Rev-Exp Region 8'!AR$35","v":{"v":0,"d":"$0.00"}},{"$f":"'MMA Rev-Exp Region 8'!AS$35","v":{"v":0,"d":"$0.00"}},{"$f":"'MMA Rev-Exp Region 8'!AT$35","v":{"v":0,"d":"$0.00"}},{"$f":"'MMA Rev-Exp Region 8'!AU$35","v":{"v":0,"d":"$0.00"}},{"v":0,"d":"$0.00"}]
["MMA",null,null,{"$f":"Jurat!I$1","v":0},{"$f":"Jurat!D$33","v":"00:00:00"},"Q4","2017-12-31","Region 8","Operating Expense","Medical Benefits Expense","Mental Health Services",5.1,"Mental Health & Substance Abuse FFS",{"$f":"'MMA Rev-Exp Region 8'!AK$41","v":{"v":0,"d":"$0.00"}},{"$f":"'MMA Rev-Exp Region 8'!AL$41","v":{"v":0,"d":"$0.00"}},{"$f":"'MMA Rev-Exp Region 8'!AM$41","v":{"v":0,"d":"$0.00"}},{"$f":"'MMA Rev-Exp Region 8'!AN$41","v":{"v":0,"d":"$0.00"}},{"$f":"'MMA Rev-Exp Region 8'!AO$41","v":{"v":0,"d":"$0.00"}},{"$f":"'MMA Rev-Exp Region 8'!AP$41","v":{"v":0,"d":"$0.00"}},{"$f":"'MMA Rev-Exp Region 8'!AQ$41","v":{"v":0,"d":"$0.00"}},{"$f":"'MMA Rev-Exp Region 8'!AR$41","v":{"v":0,"d":"$0.00"}},{"$f":"'MMA Rev-Exp Region 8'!AS$41","v":{"v":0,"d":"$0.00"}},{"$f":"'MMA Rev-Exp Region 8'!AT$41","v":{"v":0,"d":"$0.00"}},{"$f":"'MMA Rev-Exp Region 8'!AU$41","v":{"v":0,"d":"$0.00"}},{"v":0,"d":"$0.00"}]
["MMA",null,null,{"$f":"Jurat!I$1","v":0},{"$f":"Jurat!D$33","v":"00:00:00"},"Q4","2017-12-31","Region 8","Operating Expense","Medical Benefits Expense","Mental Health Services","5.4","Mental Health Settlements",{"$f":"'MMA Rev-Exp Region 8'!AK$44","v":{"v":0,"d":"$0.00"}},{"$f":"'MMA Rev-Exp Region 8'!AL$44","v":{"v":0,"d":"$0.00"}},{"$f":"'MMA Rev-Exp Region 8'!AM$44","v":{"v":0,"d":"$0.00"}},{"$f":"'MMA Rev-Exp Region 8'!AN$44","v":{"v":0,"d":"$0.00"}},{"$f":"'MMA Rev-Exp Region 8'!AO$44","v":{"v":0,"d":"$0.00"}},{"$f":"'MMA Rev-Exp Region 8'!AP$44","v":{"v":0,"d":"$0.00"}},{"$f":"'MMA Rev-Exp Region 8'!AQ$44","v":{"v":0,"d":"$0.00"}},{"$f":"'MMA Rev-Exp Region 8'!AR$44","v":{"v":0,"d":"$0.00"}},{"$f":"'MMA Rev-Exp Region 8'!AS$44","v":{"v":0,"d":"$0.00"}},{"$f":"'MMA Rev-Exp Region 8'!AT$44","v":{"v":0,"d":"$0.00"}},{"$f":"'MMA Rev-Exp Region 8'!AU$44","v":{"v":0,"d":"$0.00"}},{"v":0,"d":"$0.00"}]
["MMA",null,null,{"$f":"Jurat!I$1","v":0},{"$f":"Jurat!D$33","v":"00:00:00"},"Q4","2017-12-31","Region 8","Operating Expense","Medical Benefits Expense","Dental Services",6.3,"Ending IBNP for Dental Services",{"$f":"'MMA Rev-Exp Region 8'!AK$48","v":{"v":0,"d":"$0.00"}},{"$f":"'MMA Rev-Exp Region 8'!AL$48","v":{"v":0,"d":"$0.00"}},{"$f":"'MMA Rev-Exp Region 8'!AM$48","v":{"v":0,"d":"$0.00"}},{"$f":"'MMA Rev-Exp Region 8'!AN$48","v":{"v":0,"d":"$0.00"}},{"$f":"'MMA Rev-Exp Region 8'!AO$48","v":{"v":0,"d":"$0.00"}},{"$f":"'MMA Rev-Exp Region 8'!AP$48","v":{"v":0,"d":"$0.00"}},{"$f":"'MMA Rev-Exp Region 8'!AQ$48","v":{"v":0,"d":"$0.00"}},{"$f":"'MMA Rev-Exp Region 8'!AR$48","v":{"v":0,"d":"$0.00"}},{"$f":"'MMA Rev-Exp Region 8'!AS$48","v":{"v":0,"d":"$0.00"}},{"$f":"'MMA Rev-Exp Region 8'!AT$48","v":{"v":0,"d":"$0.00"}},{"$f":"'MMA Rev-Exp Region 8'!AU$48","v":{"v":0,"d":"$0.00"}},{"v":0,"d":"$0.00"}]
["MMA",null,null,{"$f":"Jurat!I$1","v":0},{"$f":"Jurat!D$33","v":"00:00:00"},"Q4","2017-12-31","Region 8","Operating Expense","Medical Benefits Expense","Dental Services","6.4","Dental Settlements",{"$f":"'MMA Rev-Exp Region 8'!AK$49","v":{"v":0,"d":"$0.00"}},{"$f":"'MMA Rev-Exp Region 8'!AL$49","v":{"v":0,"d":"$0.00"}},{"$f":"'MMA Rev-Exp Region 8'!AM$49","v":{"v":0,"d":"$0.00"}},{"$f":"'MMA Rev-Exp Region 8'!AN$49","v":{"v":0,"d":"$0.00"}},{"$f":"'MMA Rev-Exp Region 8'!AO$49","v":{"v":0,"d":"$0.00"}},{"$f":"'MMA Rev-Exp Region 8'!AP$49","v":{"v":0,"d":"$0.00"}},{"$f":"'MMA Rev-Exp Region 8'!AQ$49","v":{"v":0,"d":"$0.00"}},{"$f":"'MMA Rev-Exp Region 8'!AR$49","v":{"v":0,"d":"$0.00"}},{"$f":"'MMA Rev-Exp Region 8'!AS$49","v":{"v":0,"d":"$0.00"}},{"$f":"'MMA Rev-Exp Region 8'!AT$49","v":{"v":0,"d":"$0.00"}},{"$f":"'MMA Rev-Exp Region 8'!AU$49","v":{"v":0,"d":"$0.00"}},{"v":0,"d":"$0.00"}]
["MMA",null,null,{"$f":"Jurat!I$1","v":0},{"$f":"Jurat!D$33","v":"00:00:00"},"Q4","2017-12-31","Region 8","Operating Expense","Medical Benefits Expense","Transportation Services",7.3,"Ending IBNP for Transportation",{"$f":"'MMA Rev-Exp Region 8'!AK$53","v":{"v":0,"d":"$0.00"}},{"$f":"'MMA Rev-Exp Region 8'!AL$53","v":{"v":0,"d":"$0.00"}},{"$f":"'MMA Rev-Exp Region 8'!AM$53","v":{"v":0,"d":"$0.00"}},{"$f":"'MMA Rev-Exp Region 8'!AN$53","v":{"v":0,"d":"$0.00"}},{"$f":"'MMA Rev-Exp Region 8'!AO$53","v":{"v":0,"d":"$0.00"}},{"$f":"'MMA Rev-Exp Region 8'!AP$53","v":{"v":0,"d":"$0.00"}},{"$f":"'MMA Rev-Exp Region 8'!AQ$53","v":{"v":0,"d":"$0.00"}},{"$f":"'MMA Rev-Exp Region 8'!AR$53","v":{"v":0,"d":"$0.00"}},{"$f":"'MMA Rev-Exp Region 8'!AS$53","v":{"v":0,"d":"$0.00"}},{"$f":"'MMA Rev-Exp Region 8'!AT$53","v":{"v":0,"d":"$0.00"}},{"$f":"'MMA Rev-Exp Region 8'!AU$53","v":{"v":0,"d":"$0.00"}},{"v":0,"d":"$0.00"}]
["MMA",null,null,{"$f":"Jurat!I$1","v":0},{"$f":"Jurat!D$33","v":"00:00:00"},"Q4","2017-12-31","Region 8","Operating Expense","Medical Benefits Expense","Pharmacy Services","8.3","Ending IBNP for Prescription Drugs",{"$f":"'MMA Rev-Exp Region 8'!AK$58","v":{"v":0,"d":"$0.00"}},{"$f":"'MMA Rev-Exp Region 8'!AL$58","v":{"v":0,"d":"$0.00"}},{"$f":"'MMA Rev-Exp Region 8'!AM$58","v":{"v":0,"d":"$0.00"}},{"$f":"'MMA Rev-Exp Region 8'!AN$58","v":{"v":0,"d":"$0.00"}},{"$f":"'MMA Rev-Exp Region 8'!AO$58","v":{"v":0,"d":"$0.00"}},{"$f":"'MMA Rev-Exp Region 8'!AP$58","v":{"v":0,"d":"$0.00"}},{"$f":"'MMA Rev-Exp Region 8'!AQ$58","v":{"v":0,"d":"$0.00"}},{"$f":"'MMA Rev-Exp Region 8'!AR$58","v":{"v":0,"d":"$0.00"}},{"$f":"'MMA Rev-Exp Region 8'!AS$58","v":{"v":0,"d":"$0.00"}},{"$f":"'MMA Rev-Exp Region 8'!AT$58","v":{"v":0,"d":"$0.00"}},{"$f":"'MMA Rev-Exp Region 8'!AU$58","v":{"v":0,"d":"$0.00"}},{"v":0,"d":"$0.00"}]
["MMA",null,null,{"$f":"Jurat!I$1","v":0},{"$f":"Jurat!D$33","v":"00:00:00"},"Q4","2017-12-31","Region 8","Operating Expense","Medical Benefits Expense","Pharmacy Services","8.6","Prescription Drugs Subcapitation",{"$f":"'MMA Rev-Exp Region 8'!AK$61","v":{"v":0,"d":"$0.00"}},{"$f":"'MMA Rev-Exp Region 8'!AL$61","v":{"v":0,"d":"$0.00"}},{"$f":"'MMA Rev-Exp Region 8'!AM$61","v":{"v":0,"d":"$0.00"}},{"$f":"'MMA Rev-Exp Region 8'!AN$61","v":{"v":0,"d":"$0.00"}},{"$f":"'MMA Rev-Exp Region 8'!AO$61","v":{"v":0,"d":"$0.00"}},{"$f":"'MMA Rev-Exp Region 8'!AP$61","v":{"v":0,"d":"$0.00"}},{"$f":"'MMA Rev-Exp Region 8'!AQ$61","v":{"v":0,"d":"$0.00"}},{"$f":"'MMA Rev-Exp Region 8'!AR$61","v":{"v":0,"d":"$0.00"}},{"$f":"'MMA Rev-Exp Region 8'!AS$61","v":{"v":0,"d":"$0.00"}},{"$f":"'MMA Rev-Exp Region 8'!AT$61","v":{"v":0,"d":"$0.00"}},{"$f":"'MMA Rev-Exp Region 8'!AU$61","v":{"v":0,"d":"$0.00"}},{"v":0,"d":"$0.00"}]
["MMA",null,null,{"$f":"Jurat!I$1","v":0},{"$f":"Jurat!D$33","v":"00:00:00"},"Q4","2017-12-31","Region 8","Operating Expense","Medical Benefits Expense","Other MMA Services",9.1,"Home Health, Private Duty Nursing, Personal Care FFS",{"$f":"'MMA Rev-Exp Region 8'!AK$64","v":{"v":0,"d":"$0.00"}},{"$f":"'MMA Rev-Exp Region 8'!AL$64","v":{"v":0,"d":"$0.00"}},{"$f":"'MMA Rev-Exp Region 8'!AM$64","v":{"v":0,"d":"$0.00"}},{"$f":"'MMA Rev-Exp Region 8'!AN$64","v":{"v":0,"d":"$0.00"}},{"$f":"'MMA Rev-Exp Region 8'!AO$64","v":{"v":0,"d":"$0.00"}},{"$f":"'MMA Rev-Exp Region 8'!AP$64","v":{"v":0,"d":"$0.00"}},{"$f":"'MMA Rev-Exp Region 8'!AQ$64","v":{"v":0,"d":"$0.00"}},{"$f":"'MMA Rev-Exp Region 8'!AR$64","v":{"v":0,"d":"$0.00"}},{"$f":"'MMA Rev-Exp Region 8'!AS$64","v":{"v":0,"d":"$0.00"}},{"$f":"'MMA Rev-Exp Region 8'!AT$64","v":{"v":0,"d":"$0.00"}},{"$f":"'MMA Rev-Exp Region 8'!AU$64","v":{"v":0,"d":"$0.00"}},{"v":0,"d":"$0.00"}]
["MMA",null,null,{"$f":"Jurat!I$1","v":0},{"$f":"Jurat!D$33","v":"00:00:00"},"Q4","2017-12-31","Region 8","Operating Expense","Medical Benefits Expense","Other MMA Services","9.5","Other Services Subcapitation",{"$f":"'MMA Rev-Exp Region 8'!AK$68","v":{"v":0,"d":"$0.00"}},{"$f":"'MMA Rev-Exp Region 8'!AL$68","v":{"v":0,"d":"$0.00"}},{"$f":"'MMA Rev-Exp Region 8'!AM$68","v":{"v":0,"d":"$0.00"}},{"$f":"'MMA Rev-Exp Region 8'!AN$68","v":{"v":0,"d":"$0.00"}},{"$f":"'MMA Rev-Exp Region 8'!AO$68","v":{"v":0,"d":"$0.00"}},{"$f":"'MMA Rev-Exp Region 8'!AP$68","v":{"v":0,"d":"$0.00"}},{"$f":"'MMA Rev-Exp Region 8'!AQ$68","v":{"v":0,"d":"$0.00"}},{"$f":"'MMA Rev-Exp Region 8'!AR$68","v":{"v":0,"d":"$0.00"}},{"$f":"'MMA Rev-Exp Region 8'!AS$68","v":{"v":0,"d":"$0.00"}},{"$f":"'MMA Rev-Exp Region 8'!AT$68","v":{"v":0,"d":"$0.00"}},{"$f":"'MMA Rev-Exp Region 8'!AU$68","v":{"v":0,"d":"$0.00"}},{"v":0,"d":"$0.00"}]
["MMA",null,null,{"$f":"Jurat!I$1","v":0},{"$f":"Jurat!D$33","v":"00:00:00"},"Q4","2017-12-31","Region 8","Operating Expense","Medical Benefits Expense","Expanded Benefits","10.1","Expanded Benefits FFS",{"$f":"'MMA Rev-Exp Region 8'!AK$72","v":{"v":0,"d":"$0.00"}},{"$f":"'MMA Rev-Exp Region 8'!AL$72","v":{"v":0,"d":"$0.00"}},{"$f":"'MMA Rev-Exp Region 8'!AM$72","v":{"v":0,"d":"$0.00"}},{"$f":"'MMA Rev-Exp Region 8'!AN$72","v":{"v":0,"d":"$0.00"}},{"$f":"'MMA Rev-Exp Region 8'!AO$72","v":{"v":0,"d":"$0.00"}},{"$f":"'MMA Rev-Exp Region 8'!AP$72","v":{"v":0,"d":"$0.00"}},{"$f":"'MMA Rev-Exp Region 8'!AQ$72","v":{"v":0,"d":"$0.00"}},{"$f":"'MMA Rev-Exp Region 8'!AR$72","v":{"v":0,"d":"$0.00"}},{"$f":"'MMA Rev-Exp Region 8'!AS$72","v":{"v":0,"d":"$0.00"}},{"$f":"'MMA Rev-Exp Region 8'!AT$72","v":{"v":0,"d":"$0.00"}},{"$f":"'MMA Rev-Exp Region 8'!AU$72","v":{"v":0,"d":"$0.00"}},{"v":0,"d":"$0.00"}]
["MMA",null,null,{"$f":"Jurat!I$1","v":0},{"$f":"Jurat!D$33","v":"00:00:00"},"Q4","2017-12-31","Region 8","Operating Expense","Medical Benefits Expense","Expanded Benefits","10.2","Expanded benefits Subcapitation",{"$f":"'MMA Rev-Exp Region 8'!AK$73","v":{"v":0,"d":"$0.00"}},{"$f":"'MMA Rev-Exp Region 8'!AL$73","v":{"v":0,"d":"$0.00"}},{"$f":"'MMA Rev-Exp Region 8'!AM$73","v":{"v":0,"d":"$0.00"}},{"$f":"'MMA Rev-Exp Region 8'!AN$73","v":{"v":0,"d":"$0.00"}},{"$f":"'MMA Rev-Exp Region 8'!AO$73","v":{"v":0,"d":"$0.00"}},{"$f":"'MMA Rev-Exp Region 8'!AP$73","v":{"v":0,"d":"$0.00"}},{"$f":"'MMA Rev-Exp Region 8'!AQ$73","v":{"v":0,"d":"$0.00"}},{"$f":"'MMA Rev-Exp Region 8'!AR$73","v":{"v":0,"d":"$0.00"}},{"$f":"'MMA Rev-Exp Region 8'!AS$73","v":{"v":0,"d":"$0.00"}},{"$f":"'MMA Rev-Exp Region 8'!AT$73","v":{"v":0,"d":"$0.00"}},{"$f":"'MMA Rev-Exp Region 8'!AU$73","v":{"v":0,"d":"$0.00"}},{"v":0,"d":"$0.00"}]
["MMA",null,null,{"$f":"Jurat!I$1","v":0},{"$f":"Jurat!D$33","v":"00:00:00"},"Q4","2017-12-31","Region 8","Operating Expense","Medical Benefits Expense","Other Medical","11.5","TPL & Fraud/Abuse Recoveries",{"$f":"'MMA Rev-Exp Region 8'!AK$81","v":{"v":0,"d":"$0.00"}},{"$f":"'MMA Rev-Exp Region 8'!AL$81","v":{"v":0,"d":"$0.00"}},{"$f":"'MMA Rev-Exp Region 8'!AM$81","v":{"v":0,"d":"$0.00"}},{"$f":"'MMA Rev-Exp Region 8'!AN$81","v":{"v":0,"d":"$0.00"}},{"$f":"'MMA Rev-Exp Region 8'!AO$81","v":{"v":0,"d":"$0.00"}},{"$f":"'MMA Rev-Exp Region 8'!AP$81","v":{"v":0,"d":"$0.00"}},{"$f":"'MMA Rev-Exp Region 8'!AQ$81","v":{"v":0,"d":"$0.00"}},{"$f":"'MMA Rev-Exp Region 8'!AR$81","v":{"v":0,"d":"$0.00"}},{"$f":"'MMA Rev-Exp Region 8'!AS$81","v":{"v":0,"d":"$0.00"}},{"$f":"'MMA Rev-Exp Region 8'!AT$81","v":{"v":0,"d":"$0.00"}},{"$f":"'MMA Rev-Exp Region 8'!AU$81","v":{"v":0,"d":"$0.00"}},{"v":0,"d":"$0.00"}]
["MMA",null,null,{"$f":"Jurat!I$1","v":0},{"$f":"Jurat!D$33","v":"00:00:00"},"Q4","2017-12-31","Region 8","Operating Expense","Medical Benefits Expense","Other Medical","11.9","Reinsurance Recoveries",{"$f":"'MMA Rev-Exp Region 8'!AK$85","v":{"v":0,"d":"$0.00"}},{"$f":"'MMA Rev-Exp Region 8'!AL$85","v":{"v":0,"d":"$0.00"}},{"$f":"'MMA Rev-Exp Region 8'!AM$85","v":{"v":0,"d":"$0.00"}},{"$f":"'MMA Rev-Exp Region 8'!AN$85","v":{"v":0,"d":"$0.00"}},{"$f":"'MMA Rev-Exp Region 8'!AO$85","v":{"v":0,"d":"$0.00"}},{"$f":"'MMA Rev-Exp Region 8'!AP$85","v":{"v":0,"d":"$0.00"}},{"$f":"'MMA Rev-Exp Region 8'!AQ$85","v":{"v":0,"d":"$0.00"}},{"$f":"'MMA Rev-Exp Region 8'!AR$85","v":{"v":0,"d":"$0.00"}},{"$f":"'MMA Rev-Exp Region 8'!AS$85","v":{"v":0,"d":"$0.00"}},{"$f":"'MMA Rev-Exp Region 8'!AT$85","v":{"v":0,"d":"$0.00"}},{"$f":"'MMA Rev-Exp Region 8'!AU$85","v":{"v":0,"d":"$0.00"}},{"v":0,"d":"$0.00"}]
["MMA",null,null,{"$f":"Jurat!I$1","v":0},{"$f":"Jurat!D$33","v":"00:00:00"},"Q4","2017-12-31","Region 8","Operating Expense","Administrative Expense","Administrative","12.4","Marketing Expenses",{"$f":"'MMA Rev-Exp Region 8'!AK$93","v":{"v":0,"d":"$0.00"}},{"v":0,"d":"$0.00"},{"v":0,"d":"$0.00"},{"v":0,"d":"$0.00"},{"v":0,"d":"$0.00"},{"v":0,"d":"$0.00"},{"v":0,"d":"$0.00"},{"v":0,"d":"$0.00"},{"v":0,"d":"$0.00"},{"v":0,"d":"$0.00"},{"v":0,"d":"$0.00"},{"v":0,"d":"$0.00"}]
["MMA",null,null,{"$f":"Jurat!I$1","v":0},{"$f":"Jurat!D$33","v":"00:00:00"},"Q4","2017-12-31","Region 8","Operating Expense","Taxes & Fees","Taxes & Fees","13.1","State Premium tax",{"$f":"'MMA Rev-Exp Region 8'!AK$97","v":{"v":0,"d":"$0.00"}},{"v":0,"d":"$0.00"},{"v":0,"d":"$0.00"},{"v":0,"d":"$0.00"},{"v":0,"d":"$0.00"},{"v":0,"d":"$0.00"},{"v":0,"d":"$0.00"},{"v":0,"d":"$0.00"},{"v":0,"d":"$0.00"},{"v":0,"d":"$0.00"},{"v":0,"d":"$0.00"},{"v":0,"d":"$0.00"}]
["MMA",null,null,{"$f":"Jurat!I$1","v":0},{"$f":"Jurat!D$33","v":"00:00:00"},"Q4","2017-12-31","Region 8","Operating Expense","Taxes & Fees","Taxes & Fees","13.3","Section 9010 Health Insurance Providers Fee",{"$f":"'MMA Rev-Exp Region 8'!AK$99","v":{"v":0,"d":"$0.00"}},{"v":0,"d":"$0.00"},{"v":0,"d":"$0.00"},{"v":0,"d":"$0.00"},{"v":0,"d":"$0.00"},{"v":0,"d":"$0.00"},{"v":0,"d":"$0.00"},{"v":0,"d":"$0.00"},{"v":0,"d":"$0.00"},{"v":0,"d":"$0.00"},{"v":0,"d":"$0.00"},{"v":0,"d":"$0.00"}]
["MMA",null,null,{"$f":"Jurat!I$1","v":0},{"$f":"Jurat!D$33","v":"00:00:00"},"Q1","2017-03-31","Region 9","Operating Revenue","Kick Payments","Kick Payments - Transplant",1.2,"Transplant Kick Payments",{"$f":"'MMA Rev-Exp Region 9'!D$12","v":{"v":0,"d":"$0.00"}},{"$f":"'MMA Rev-Exp Region 9'!E$12","v":{"v":0,"d":"$0.00"}},{"$f":"'MMA Rev-Exp Region 9'!F$12","v":{"v":0,"d":"$0.00"}},{"$f":"'MMA Rev-Exp Region 9'!G$12","v":{"v":0,"d":"$0.00"}},{"$f":"'MMA Rev-Exp Region 9'!H$12","v":{"v":0,"d":"$0.00"}},{"$f":"'MMA Rev-Exp Region 9'!I$12","v":{"v":0,"d":"$0.00"}},{"$f":"'MMA Rev-Exp Region 9'!J$12","v":{"v":0,"d":"$0.00"}},{"$f":"'MMA Rev-Exp Region 9'!K$12","v":{"v":0,"d":"$0.00"}},{"$f":"'MMA Rev-Exp Region 9'!L$12","v":{"v":0,"d":"$0.00"}},{"$f":"'MMA Rev-Exp Region 9'!M$12","v":{"v":0,"d":"$0.00"}},{"$f":"'MMA Rev-Exp Region 9'!N$12","v":{"v":0,"d":"$0.00"}},{"v":0,"d":"$0.00"}]
["MMA",null,null,{"$f":"Jurat!I$1","v":0},{"$f":"Jurat!D$33","v":"00:00:00"},"Q1","2017-03-31","Region 9","Operating Revenue","Other Revenue","Other Revenue - 9010","1.5","ACA § 9010 related payments",{"$f":"'MMA Rev-Exp Region 9'!D$15","v":{"v":0,"d":"$0.00"}},{"$f":"'MMA Rev-Exp Region 9'!E$15","v":{"v":0,"d":"$0.00"}},{"$f":"'MMA Rev-Exp Region 9'!F$15","v":{"v":0,"d":"$0.00"}},{"$f":"'MMA Rev-Exp Region 9'!G$15","v":{"v":0,"d":"$0.00"}},{"$f":"'MMA Rev-Exp Region 9'!H$15","v":{"v":0,"d":"$0.00"}},{"$f":"'MMA Rev-Exp Region 9'!I$15","v":{"v":0,"d":"$0.00"}},{"$f":"'MMA Rev-Exp Region 9'!J$15","v":{"v":0,"d":"$0.00"}},{"$f":"'MMA Rev-Exp Region 9'!K$15","v":{"v":0,"d":"$0.00"}},{"$f":"'MMA Rev-Exp Region 9'!L$15","v":{"v":0,"d":"$0.00"}},{"$f":"'MMA Rev-Exp Region 9'!M$15","v":{"v":0,"d":"$0.00"}},{"$f":"'MMA Rev-Exp Region 9'!N$15","v":{"v":0,"d":"$0.00"}},{"v":0,"d":"$0.00"}]
["MMA",null,null,{"$f":"Jurat!I$1","v":0},{"$f":"Jurat!D$33","v":"00:00:00"},"Q1","2017-03-31","Region 9","Operating Revenue","Other Revenue","Other Revenue","1.6","Other Revenue",{"$f":"'MMA Rev-Exp Region 9'!D$16","v":{"v":0,"d":"$0.00"}},{"$f":"'MMA Rev-Exp Region 9'!E$16","v":{"v":0,"d":"$0.00"}},{"$f":"'MMA Rev-Exp Region 9'!F$16","v":{"v":0,"d":"$0.00"}},{"$f":"'MMA Rev-Exp Region 9'!G$16","v":{"v":0,"d":"$0.00"}},{"$f":"'MMA Rev-Exp Region 9'!H$16","v":{"v":0,"d":"$0.00"}},{"$f":"'MMA Rev-Exp Region 9'!I$16","v":{"v":0,"d":"$0.00"}},{"$f":"'MMA Rev-Exp Region 9'!J$16","v":{"v":0,"d":"$0.00"}},{"$f":"'MMA Rev-Exp Region 9'!K$16","v":{"v":0,"d":"$0.00"}},{"$f":"'MMA Rev-Exp Region 9'!L$16","v":{"v":0,"d":"$0.00"}},{"$f":"'MMA Rev-Exp Region 9'!M$16","v":{"v":0,"d":"$0.00"}},{"$f":"'MMA Rev-Exp Region 9'!N$16","v":{"v":0,"d":"$0.00"}},{"v":0,"d":"$0.00"}]
["MMA",null,null,{"$f":"Jurat!I$1","v":0},{"$f":"Jurat!D$33","v":"00:00:00"},"Q1","2017-03-31","Region 9","Operating Expense","Medical Benefits Expense","Hospital Services",2.3,"Outpatient FFS: ER",{"$f":"'MMA Rev-Exp Region 9'!D$22","v":{"v":0,"d":"$0.00"}},{"$f":"'MMA Rev-Exp Region 9'!E$22","v":{"v":0,"d":"$0.00"}},{"$f":"'MMA Rev-Exp Region 9'!F$22","v":{"v":0,"d":"$0.00"}},{"$f":"'MMA Rev-Exp Region 9'!G$22","v":{"v":0,"d":"$0.00"}},{"$f":"'MMA Rev-Exp Region 9'!H$22","v":{"v":0,"d":"$0.00"}},{"$f":"'MMA Rev-Exp Region 9'!I$22","v":{"v":0,"d":"$0.00"}},{"$f":"'MMA Rev-Exp Region 9'!J$22","v":{"v":0,"d":"$0.00"}},{"$f":"'MMA Rev-Exp Region 9'!K$22","v":{"v":0,"d":"$0.00"}},{"$f":"'MMA Rev-Exp Region 9'!L$22","v":{"v":0,"d":"$0.00"}},{"$f":"'MMA Rev-Exp Region 9'!M$22","v":{"v":0,"d":"$0.00"}},{"$f":"'MMA Rev-Exp Region 9'!N$22","v":{"v":0,"d":"$0.00"}},{"v":0,"d":"$0.00"}]
["MMA",null,null,{"$f":"Jurat!I$1","v":0},{"$f":"Jurat!D$33","v":"00:00:00"},"Q1","2017-03-31","Region 9","Operating Expense","Medical Benefits Expense","Hospital Services","2.6","Subcapitated Hospital Services",{"$f":"'MMA Rev-Exp Region 9'!D$25","v":{"v":0,"d":"$0.00"}},{"$f":"'MMA Rev-Exp Region 9'!E$25","v":{"v":0,"d":"$0.00"}},{"$f":"'MMA Rev-Exp Region 9'!F$25","v":{"v":0,"d":"$0.00"}},{"$f":"'MMA Rev-Exp Region 9'!G$25","v":{"v":0,"d":"$0.00"}},{"$f":"'MMA Rev-Exp Region 9'!H$25","v":{"v":0,"d":"$0.00"}},{"$f":"'MMA Rev-Exp Region 9'!I$25","v":{"v":0,"d":"$0.00"}},{"$f":"'MMA Rev-Exp Region 9'!J$25","v":{"v":0,"d":"$0.00"}},{"$f":"'MMA Rev-Exp Region 9'!K$25","v":{"v":0,"d":"$0.00"}},{"$f":"'MMA Rev-Exp Region 9'!L$25","v":{"v":0,"d":"$0.00"}},{"$f":"'MMA Rev-Exp Region 9'!M$25","v":{"v":0,"d":"$0.00"}},{"$f":"'MMA Rev-Exp Region 9'!N$25","v":{"v":0,"d":"$0.00"}},{"v":0,"d":"$0.00"}]
["MMA",null,null,{"$f":"Jurat!I$1","v":0},{"$f":"Jurat!D$33","v":"00:00:00"},"Q1","2017-03-31","Region 9","Operating Expense","Medical Benefits Expense","Professional Services",3.2,"Specialty Care FFS",{"$f":"'MMA Rev-Exp Region 9'!D$30","v":{"v":0,"d":"$0.00"}},{"$f":"'MMA Rev-Exp Region 9'!E$30","v":{"v":0,"d":"$0.00"}},{"$f":"'MMA Rev-Exp Region 9'!F$30","v":{"v":0,"d":"$0.00"}},{"$f":"'MMA Rev-Exp Region 9'!G$30","v":{"v":0,"d":"$0.00"}},{"$f":"'MMA Rev-Exp Region 9'!H$30","v":{"v":0,"d":"$0.00"}},{"$f":"'MMA Rev-Exp Region 9'!I$30","v":{"v":0,"d":"$0.00"}},{"$f":"'MMA Rev-Exp Region 9'!J$30","v":{"v":0,"d":"$0.00"}},{"$f":"'MMA Rev-Exp Region 9'!K$30","v":{"v":0,"d":"$0.00"}},{"$f":"'MMA Rev-Exp Region 9'!L$30","v":{"v":0,"d":"$0.00"}},{"$f":"'MMA Rev-Exp Region 9'!M$30","v":{"v":0,"d":"$0.00"}},{"$f":"'MMA Rev-Exp Region 9'!N$30","v":{"v":0,"d":"$0.00"}},{"v":0,"d":"$0.00"}]
["MMA",null,null,{"$f":"Jurat!I$1","v":0},{"$f":"Jurat!D$33","v":"00:00:00"},"Q1","2017-03-31","Region 9","Operating Expense","Medical Benefits Expense","Professional Services","3.5","Subcapitated Professional Services",{"$f":"'MMA Rev-Exp Region 9'!D$33","v":{"v":0,"d":"$0.00"}},{"$f":"'MMA Rev-Exp Region 9'!E$33","v":{"v":0,"d":"$0.00"}},{"$f":"'MMA Rev-Exp Region 9'!F$33","v":{"v":0,"d":"$0.00"}},{"$f":"'MMA Rev-Exp Region 9'!G$33","v":{"v":0,"d":"$0.00"}},{"$f":"'MMA Rev-Exp Region 9'!H$33","v":{"v":0,"d":"$0.00"}},{"$f":"'MMA Rev-Exp Region 9'!I$33","v":{"v":0,"d":"$0.00"}},{"$f":"'MMA Rev-Exp Region 9'!J$33","v":{"v":0,"d":"$0.00"}},{"$f":"'MMA Rev-Exp Region 9'!K$33","v":{"v":0,"d":"$0.00"}},{"$f":"'MMA Rev-Exp Region 9'!L$33","v":{"v":0,"d":"$0.00"}},{"$f":"'MMA Rev-Exp Region 9'!M$33","v":{"v":0,"d":"$0.00"}},{"$f":"'MMA Rev-Exp Region 9'!N$33","v":{"v":0,"d":"$0.00"}},{"v":0,"d":"$0.00"}]
["MMA",null,null,{"$f":"Jurat!I$1","v":0},{"$f":"Jurat!D$33","v":"00:00:00"},"Q1","2017-03-31","Region 9","Operating Expense","Medical Benefits Expense","Maternity Services","4.2.1","Ending IBNP for Maternity Services",{"$f":"'MMA Rev-Exp Region 9'!D$38","v":{"v":0,"d":"$0.00"}},{"$f":"'MMA Rev-Exp Region 9'!E$38","v":{"v":0,"d":"$0.00"}},{"$f":"'MMA Rev-Exp Region 9'!F$38","v":{"v":0,"d":"$0.00"}},{"$f":"'MMA Rev-Exp Region 9'!G$38","v":{"v":0,"d":"$0.00"}},{"$f":"'MMA Rev-Exp Region 9'!H$38","v":{"v":0,"d":"$0.00"}},{"$f":"'MMA Rev-Exp Region 9'!I$38","v":{"v":0,"d":"$0.00"}},{"$f":"'MMA Rev-Exp Region 9'!J$38","v":{"v":0,"d":"$0.00"}},{"$f":"'MMA Rev-Exp Region 9'!K$38","v":{"v":0,"d":"$0.00"}},{"$f":"'MMA Rev-Exp Region 9'!L$38","v":{"v":0,"d":"$0.00"}},{"$f":"'MMA Rev-Exp Region 9'!M$38","v":{"v":0,"d":"$0.00"}},{"$f":"'MMA Rev-Exp Region 9'!N$38","v":{"v":0,"d":"$0.00"}},{"v":0,"d":"$0.00"}]
["MMA",null,null,{"$f":"Jurat!I$1","v":0},{"$f":"Jurat!D$33","v":"00:00:00"},"Q1","2017-03-31","Region 9","Operating Expense","Medical Benefits Expense","Mental Health Services",5.1,"Mental Health & Substance Abuse FFS",{"$f":"'MMA Rev-Exp Region 9'!D$41","v":{"v":0,"d":"$0.00"}},{"$f":"'MMA Rev-Exp Region 9'!E$41","v":{"v":0,"d":"$0.00"}},{"$f":"'MMA Rev-Exp Region 9'!F$41","v":{"v":0,"d":"$0.00"}},{"$f":"'MMA Rev-Exp Region 9'!G$41","v":{"v":0,"d":"$0.00"}},{"$f":"'MMA Rev-Exp Region 9'!H$41","v":{"v":0,"d":"$0.00"}},{"$f":"'MMA Rev-Exp Region 9'!I$41","v":{"v":0,"d":"$0.00"}},{"$f":"'MMA Rev-Exp Region 9'!J$41","v":{"v":0,"d":"$0.00"}},{"$f":"'MMA Rev-Exp Region 9'!K$41","v":{"v":0,"d":"$0.00"}},{"$f":"'MMA Rev-Exp Region 9'!L$41","v":{"v":0,"d":"$0.00"}},{"$f":"'MMA Rev-Exp Region 9'!M$41","v":{"v":0,"d":"$0.00"}},{"$f":"'MMA Rev-Exp Region 9'!N$41","v":{"v":0,"d":"$0.00"}},{"v":0,"d":"$0.00"}]
["MMA",null,null,{"$f":"Jurat!I$1","v":0},{"$f":"Jurat!D$33","v":"00:00:00"},"Q1","2017-03-31","Region 9","Operating Expense","Medical Benefits Expense","Mental Health Services","5.4","Mental Health Settlements",{"$f":"'MMA Rev-Exp Region 9'!D$44","v":{"v":0,"d":"$0.00"}},{"$f":"'MMA Rev-Exp Region 9'!E$44","v":{"v":0,"d":"$0.00"}},{"$f":"'MMA Rev-Exp Region 9'!F$44","v":{"v":0,"d":"$0.00"}},{"$f":"'MMA Rev-Exp Region 9'!G$44","v":{"v":0,"d":"$0.00"}},{"$f":"'MMA Rev-Exp Region 9'!H$44","v":{"v":0,"d":"$0.00"}},{"$f":"'MMA Rev-Exp Region 9'!I$44","v":{"v":0,"d":"$0.00"}},{"$f":"'MMA Rev-Exp Region 9'!J$44","v":{"v":0,"d":"$0.00"}},{"$f":"'MMA Rev-Exp Region 9'!K$44","v":{"v":0,"d":"$0.00"}},{"$f":"'MMA Rev-Exp Region 9'!L$44","v":{"v":0,"d":"$0.00"}},{"$f":"'MMA Rev-Exp Region 9'!M$44","v":{"v":0,"d":"$0.00"}},{"$f":"'MMA Rev-Exp Region 9'!N$44","v":{"v":0,"d":"$0.00"}},{"v":0,"d":"$0.00"}]
["MMA",null,null,{"$f":"Jurat!I$1","v":0},{"$f":"Jurat!D$33","v":"00:00:00"},"Q1","2017-03-31","Region 9","Operating Expense","Medical Benefits Expense","Dental Services",6.1,"Dental FFS",{"$f":"'MMA Rev-Exp Region 9'!D$46","v":{"v":0,"d":"$0.00"}},{"$f":"'MMA Rev-Exp Region 9'!E$46","v":{"v":0,"d":"$0.00"}},{"$f":"'MMA Rev-Exp Region 9'!F$46","v":{"v":0,"d":"$0.00"}},{"$f":"'MMA Rev-Exp Region 9'!G$46","v":{"v":0,"d":"$0.00"}},{"$f":"'MMA Rev-Exp Region 9'!H$46","v":{"v":0,"d":"$0.00"}},{"$f":"'MMA Rev-Exp Region 9'!I$46","v":{"v":0,"d":"$0.00"}},{"$f":"'MMA Rev-Exp Region 9'!J$46","v":{"v":0,"d":"$0.00"}},{"$f":"'MMA Rev-Exp Region 9'!K$46","v":{"v":0,"d":"$0.00"}},{"$f":"'MMA Rev-Exp Region 9'!L$46","v":{"v":0,"d":"$0.00"}},{"$f":"'MMA Rev-Exp Region 9'!M$46","v":{"v":0,"d":"$0.00"}},{"$f":"'MMA Rev-Exp Region 9'!N$46","v":{"v":0,"d":"$0.00"}},{"v":0,"d":"$0.00"}]
["MMA",null,null,{"$f":"Jurat!I$1","v":0},{"$f":"Jurat!D$33","v":"00:00:00"},"Q1","2017-03-31","Region 9","Operating Expense","Medical Benefits Expense","Dental Services","6.4","Dental Settlements",{"$f":"'MMA Rev-Exp Region 9'!D$49","v":{"v":0,"d":"$0.00"}},{"$f":"'MMA Rev-Exp Region 9'!E$49","v":{"v":0,"d":"$0.00"}},{"$f":"'MMA Rev-Exp Region 9'!F$49","v":{"v":0,"d":"$0.00"}},{"$f":"'MMA Rev-Exp Region 9'!G$49","v":{"v":0,"d":"$0.00"}},{"$f":"'MMA Rev-Exp Region 9'!H$49","v":{"v":0,"d":"$0.00"}},{"$f":"'MMA Rev-Exp Region 9'!I$49","v":{"v":0,"d":"$0.00"}},{"$f":"'MMA Rev-Exp Region 9'!J$49","v":{"v":0,"d":"$0.00"}},{"$f":"'MMA Rev-Exp Region 9'!K$49","v":{"v":0,"d":"$0.00"}},{"$f":"'MMA Rev-Exp Region 9'!L$49","v":{"v":0,"d":"$0.00"}},{"$f":"'MMA Rev-Exp Region 9'!M$49","v":{"v":0,"d":"$0.00"}},{"$f":"'MMA Rev-Exp Region 9'!N$49","v":{"v":0,"d":"$0.00"}},{"v":0,"d":"$0.00"}]
["MMA",null,null,{"$f":"Jurat!I$1","v":0},{"$f":"Jurat!D$33","v":"00:00:00"},"Q1","2017-03-31","Region 9","Operating Expense","Medical Benefits Expense","Transportation Services",7.3,"Ending IBNP for Transportation",{"$f":"'MMA Rev-Exp Region 9'!D$53","v":{"v":0,"d":"$0.00"}},{"$f":"'MMA Rev-Exp Region 9'!E$53","v":{"v":0,"d":"$0.00"}},{"$f":"'MMA Rev-Exp Region 9'!F$53","v":{"v":0,"d":"$0.00"}},{"$f":"'MMA Rev-Exp Region 9'!G$53","v":{"v":0,"d":"$0.00"}},{"$f":"'MMA Rev-Exp Region 9'!H$53","v":{"v":0,"d":"$0.00"}},{"$f":"'MMA Rev-Exp Region 9'!I$53","v":{"v":0,"d":"$0.00"}},{"$f":"'MMA Rev-Exp Region 9'!J$53","v":{"v":0,"d":"$0.00"}},{"$f":"'MMA Rev-Exp Region 9'!K$53","v":{"v":0,"d":"$0.00"}},{"$f":"'MMA Rev-Exp Region 9'!L$53","v":{"v":0,"d":"$0.00"}},{"$f":"'MMA Rev-Exp Region 9'!M$53","v":{"v":0,"d":"$0.00"}},{"$f":"'MMA Rev-Exp Region 9'!N$53","v":{"v":0,"d":"$0.00"}},{"v":0,"d":"$0.00"}]
["MMA",null,null,{"$f":"Jurat!I$1","v":0},{"$f":"Jurat!D$33","v":"00:00:00"},"Q1","2017-03-31","Region 9","Operating Expense","Medical Benefits Expense","Pharmacy Services","8.3","Ending IBNP for Prescription Drugs",{"$f":"'MMA Rev-Exp Region 9'!D$58","v":{"v":0,"d":"$0.00"}},{"$f":"'MMA Rev-Exp Region 9'!E$58","v":{"v":0,"d":"$0.00"}},{"$f":"'MMA Rev-Exp Region 9'!F$58","v":{"v":0,"d":"$0.00"}},{"$f":"'MMA Rev-Exp Region 9'!G$58","v":{"v":0,"d":"$0.00"}},{"$f":"'MMA Rev-Exp Region 9'!H$58","v":{"v":0,"d":"$0.00"}},{"$f":"'MMA Rev-Exp Region 9'!I$58","v":{"v":0,"d":"$0.00"}},{"$f":"'MMA Rev-Exp Region 9'!J$58","v":{"v":0,"d":"$0.00"}},{"$f":"'MMA Rev-Exp Region 9'!K$58","v":{"v":0,"d":"$0.00"}},{"$f":"'MMA Rev-Exp Region 9'!L$58","v":{"v":0,"d":"$0.00"}},{"$f":"'MMA Rev-Exp Region 9'!M$58","v":{"v":0,"d":"$0.00"}},{"$f":"'MMA Rev-Exp Region 9'!N$58","v":{"v":0,"d":"$0.00"}},{"v":0,"d":"$0.00"}]
["MMA",null,null,{"$f":"Jurat!I$1","v":0},{"$f":"Jurat!D$33","v":"00:00:00"},"Q1","2017-03-31","Region 9","Operating Expense","Medical Benefits Expense","Pharmacy Services","8.6","Prescription Drugs Subcapitation",{"$f":"'MMA Rev-Exp Region 9'!D$61","v":{"v":0,"d":"$0.00"}},{"$f":"'MMA Rev-Exp Region 9'!E$61","v":{"v":0,"d":"$0.00"}},{"$f":"'MMA Rev-Exp Region 9'!F$61","v":{"v":0,"d":"$0.00"}},{"$f":"'MMA Rev-Exp Region 9'!G$61","v":{"v":0,"d":"$0.00"}},{"$f":"'MMA Rev-Exp Region 9'!H$61","v":{"v":0,"d":"$0.00"}},{"$f":"'MMA Rev-Exp Region 9'!I$61","v":{"v":0,"d":"$0.00"}},{"$f":"'MMA Rev-Exp Region 9'!J$61","v":{"v":0,"d":"$0.00"}},{"$f":"'MMA Rev-Exp Region 9'!K$61","v":{"v":0,"d":"$0.00"}},{"$f":"'MMA Rev-Exp Region 9'!L$61","v":{"v":0,"d":"$0.00"}},{"$f":"'MMA Rev-Exp Region 9'!M$61","v":{"v":0,"d":"$0.00"}},{"$f":"'MMA Rev-Exp Region 9'!N$61","v":{"v":0,"d":"$0.00"}},{"v":0,"d":"$0.00"}]
["MMA",null,null,{"$f":"Jurat!I$1","v":0},{"$f":"Jurat!D$33","v":"00:00:00"},"Q1","2017-03-31","Region 9","Operating Expense","Medical Benefits Expense","Other MMA Services","9.3","DME FFS",{"$f":"'MMA Rev-Exp Region 9'!D$66","v":{"v":0,"d":"$0.00"}},{"$f":"'MMA Rev-Exp Region 9'!E$66","v":{"v":0,"d":"$0.00"}},{"$f":"'MMA Rev-Exp Region 9'!F$66","v":{"v":0,"d":"$0.00"}},{"$f":"'MMA Rev-Exp Region 9'!G$66","v":{"v":0,"d":"$0.00"}},{"$f":"'MMA Rev-Exp Region 9'!H$66","v":{"v":0,"d":"$0.00"}},{"$f":"'MMA Rev-Exp Region 9'!I$66","v":{"v":0,"d":"$0.00"}},{"$f":"'MMA Rev-Exp Region 9'!J$66","v":{"v":0,"d":"$0.00"}},{"$f":"'MMA Rev-Exp Region 9'!K$66","v":{"v":0,"d":"$0.00"}},{"$f":"'MMA Rev-Exp Region 9'!L$66","v":{"v":0,"d":"$0.00"}},{"$f":"'MMA Rev-Exp Region 9'!M$66","v":{"v":0,"d":"$0.00"}},{"$f":"'MMA Rev-Exp Region 9'!N$66","v":{"v":0,"d":"$0.00"}},{"v":0,"d":"$0.00"}]
["MMA",null,null,{"$f":"Jurat!I$1","v":0},{"$f":"Jurat!D$33","v":"00:00:00"},"Q1","2017-03-31","Region 9","Operating Expense","Medical Benefits Expense","Other MMA Services","9.6","Ending IBNP for Other Services",{"$f":"'MMA Rev-Exp Region 9'!D$69","v":{"v":0,"d":"$0.00"}},{"$f":"'MMA Rev-Exp Region 9'!E$69","v":{"v":0,"d":"$0.00"}},{"$f":"'MMA Rev-Exp Region 9'!F$69","v":{"v":0,"d":"$0.00"}},{"$f":"'MMA Rev-Exp Region 9'!G$69","v":{"v":0,"d":"$0.00"}},{"$f":"'MMA Rev-Exp Region 9'!H$69","v":{"v":0,"d":"$0.00"}},{"$f":"'MMA Rev-Exp Region 9'!I$69","v":{"v":0,"d":"$0.00"}},{"$f":"'MMA Rev-Exp Region 9'!J$69","v":{"v":0,"d":"$0.00"}},{"$f":"'MMA Rev-Exp Region 9'!K$69","v":{"v":0,"d":"$0.00"}},{"$f":"'MMA Rev-Exp Region 9'!L$69","v":{"v":0,"d":"$0.00"}},{"$f":"'MMA Rev-Exp Region 9'!M$69","v":{"v":0,"d":"$0.00"}},{"$f":"'MMA Rev-Exp Region 9'!N$69","v":{"v":0,"d":"$0.00"}},{"v":0,"d":"$0.00"}]
["MMA",null,null,{"$f":"Jurat!I$1","v":0},{"$f":"Jurat!D$33","v":"00:00:00"},"Q1","2017-03-31","Region 9","Operating Expense","Medical Benefits Expense","Expanded Benefits","10.2","Expanded benefits Subcapitation",{"$f":"'MMA Rev-Exp Region 9'!D$73","v":{"v":0,"d":"$0.00"}},{"$f":"'MMA Rev-Exp Region 9'!E$73","v":{"v":0,"d":"$0.00"}},{"$f":"'MMA Rev-Exp Region 9'!F$73","v":{"v":0,"d":"$0.00"}},{"$f":"'MMA Rev-Exp Region 9'!G$73","v":{"v":0,"d":"$0.00"}},{"$f":"'MMA Rev-Exp Region 9'!H$73","v":{"v":0,"d":"$0.00"}},{"$f":"'MMA Rev-Exp Region 9'!I$73","v":{"v":0,"d":"$0.00"}},{"$f":"'MMA Rev-Exp Region 9'!J$73","v":{"v":0,"d":"$0.00"}},{"$f":"'MMA Rev-Exp Region 9'!K$73","v":{"v":0,"d":"$0.00"}},{"$f":"'MMA Rev-Exp Region 9'!L$73","v":{"v":0,"d":"$0.00"}},{"$f":"'MMA Rev-Exp Region 9'!M$73","v":{"v":0,"d":"$0.00"}},{"$f":"'MMA Rev-Exp Region 9'!N$73","v":{"v":0,"d":"$0.00"}},{"v":0,"d":"$0.00"}]
["MMA",null,null,{"$f":"Jurat!I$1","v":0},{"$f":"Jurat!D$33","v":"00:00:00"},"Q1","2017-03-31","Region 9","Operating Expense","Medical Benefits Expense","Expanded Benefits","10.4","Expanded Benefits Settlements",{"$f":"'MMA Rev-Exp Region 9'!D$75","v":{"v":0,"d":"$0.00"}},{"$f":"'MMA Rev-Exp Region 9'!E$75","v":{"v":0,"d":"$0.00"}},{"$f":"'MMA Rev-Exp Region 9'!F$75","v":{"v":0,"d":"$0.00"}},{"$f":"'MMA Rev-Exp Region 9'!G$75","v":{"v":0,"d":"$0.00"}},{"$f":"'MMA Rev-Exp Region 9'!H$75","v":{"v":0,"d":"$0.00"}},{"$f":"'MMA Rev-Exp Region 9'!I$75","v":{"v":0,"d":"$0.00"}},{"$f":"'MMA Rev-Exp Region 9'!J$75","v":{"v":0,"d":"$0.00"}},{"$f":"'MMA Rev-Exp Region 9'!K$75","v":{"v":0,"d":"$0.00"}},{"$f":"'MMA Rev-Exp Region 9'!L$75","v":{"v":0,"d":"$0.00"}},{"$f":"'MMA Rev-Exp Region 9'!M$75","v":{"v":0,"d":"$0.00"}},{"$f":"'MMA Rev-Exp Region 9'!N$75","v":{"v":0,"d":"$0.00"}},{"v":0,"d":"$0.00"}]
["MMA",null,null,{"$f":"Jurat!I$1","v":0},{"$f":"Jurat!D$33","v":"00:00:00"},"Q1","2017-03-31","Region 9","Operating Expense","Medical Benefits Expense","Other Medical","11.5","TPL & Fraud/Abuse Recoveries",{"$f":"'MMA Rev-Exp Region 9'!D$81","v":{"v":0,"d":"$0.00"}},{"$f":"'MMA Rev-Exp Region 9'!E$81","v":{"v":0,"d":"$0.00"}},{"$f":"'MMA Rev-Exp Region 9'!F$81","v":{"v":0,"d":"$0.00"}},{"$f":"'MMA Rev-Exp Region 9'!G$81","v":{"v":0,"d":"$0.00"}},{"$f":"'MMA Rev-Exp Region 9'!H$81","v":{"v":0,"d":"$0.00"}},{"$f":"'MMA Rev-Exp Region 9'!I$81","v":{"v":0,"d":"$0.00"}},{"$f":"'MMA Rev-Exp Region 9'!J$81","v":{"v":0,"d":"$0.00"}},{"$f":"'MMA Rev-Exp Region 9'!K$81","v":{"v":0,"d":"$0.00"}},{"$f":"'MMA Rev-Exp Region 9'!L$81","v":{"v":0,"d":"$0.00"}},{"$f":"'MMA Rev-Exp Region 9'!M$81","v":{"v":0,"d":"$0.00"}},{"$f":"'MMA Rev-Exp Region 9'!N$81","v":{"v":0,"d":"$0.00"}},{"v":0,"d":"$0.00"}]
["MMA",null,null,{"$f":"Jurat!I$1","v":0},{"$f":"Jurat!D$33","v":"00:00:00"},"Q1","2017-03-31","Region 9","Operating Expense","Medical Benefits Expense","Other Medical","11.9","Reinsurance Recoveries",{"$f":"'MMA Rev-Exp Region 9'!D$85","v":{"v":0,"d":"$0.00"}},{"$f":"'MMA Rev-Exp Region 9'!E$85","v":{"v":0,"d":"$0.00"}},{"$f":"'MMA Rev-Exp Region 9'!F$85","v":{"v":0,"d":"$0.00"}},{"$f":"'MMA Rev-Exp Region 9'!G$85","v":{"v":0,"d":"$0.00"}},{"$f":"'MMA Rev-Exp Region 9'!H$85","v":{"v":0,"d":"$0.00"}},{"$f":"'MMA Rev-Exp Region 9'!I$85","v":{"v":0,"d":"$0.00"}},{"$f":"'MMA Rev-Exp Region 9'!J$85","v":{"v":0,"d":"$0.00"}},{"$f":"'MMA Rev-Exp Region 9'!K$85","v":{"v":0,"d":"$0.00"}},{"$f":"'MMA Rev-Exp Region 9'!L$85","v":{"v":0,"d":"$0.00"}},{"$f":"'MMA Rev-Exp Region 9'!M$85","v":{"v":0,"d":"$0.00"}},{"$f":"'MMA Rev-Exp Region 9'!N$85","v":{"v":0,"d":"$0.00"}},{"v":0,"d":"$0.00"}]
["MMA",null,null,{"$f":"Jurat!I$1","v":0},{"$f":"Jurat!D$33","v":"00:00:00"},"Q1","2017-03-31","Region 9","Operating Expense","Administrative Expense","Administrative","12.4","Marketing Expenses",{"$f":"'MMA Rev-Exp Region 9'!D$93","v":{"v":0,"d":"$0.00"}},{"v":0,"d":"$0.00"},{"v":0,"d":"$0.00"},{"v":0,"d":"$0.00"},{"v":0,"d":"$0.00"},{"v":0,"d":"$0.00"},{"v":0,"d":"$0.00"},{"v":0,"d":"$0.00"},{"v":0,"d":"$0.00"},{"v":0,"d":"$0.00"},{"v":0,"d":"$0.00"},{"v":0,"d":"$0.00"}]
["MMA",null,null,{"$f":"Jurat!I$1","v":0},{"$f":"Jurat!D$33","v":"00:00:00"},"Q1","2017-03-31","Region 9","Operating Expense","Taxes & Fees","Taxes & Fees","13.1","State Premium tax",{"$f":"'MMA Rev-Exp Region 9'!D$97","v":{"v":0,"d":"$0.00"}},{"v":0,"d":"$0.00"},{"v":0,"d":"$0.00"},{"v":0,"d":"$0.00"},{"v":0,"d":"$0.00"},{"v":0,"d":"$0.00"},{"v":0,"d":"$0.00"},{"v":0,"d":"$0.00"},{"v":0,"d":"$0.00"},{"v":0,"d":"$0.00"},{"v":0,"d":"$0.00"},{"v":0,"d":"$0.00"}]
["MMA",null,null,{"$f":"Jurat!I$1","v":0},{"$f":"Jurat!D$33","v":"00:00:00"},"Q2","2017-06-30","Region 9","Member Months","Member Months","Member Months",null,"Member Months",{"$f":"'MMA Rev-Exp Region 9'!O$9","v":{"v":0,"d":"$0.00"}},{"$f":"'MMA Rev-Exp Region 9'!P$9","v":{"v":0,"d":"$0.00"}},{"$f":"'MMA Rev-Exp Region 9'!Q$9","v":{"v":0,"d":"$0.00"}},{"$f":"'MMA Rev-Exp Region 9'!R$9","v":{"v":0,"d":"$0.00"}},{"$f":"'MMA Rev-Exp Region 9'!S$9","v":{"v":0,"d":"$0.00"}},{"$f":"'MMA Rev-Exp Region 9'!T$9","v":{"v":0,"d":"$0.00"}},{"$f":"'MMA Rev-Exp Region 9'!U$9","v":{"v":0,"d":"$0.00"}},{"$f":"'MMA Rev-Exp Region 9'!V$9","v":{"v":0,"d":"$0.00"}},{"$f":"'MMA Rev-Exp Region 9'!W$9","v":{"v":0,"d":"$0.00"}},{"$f":"'MMA Rev-Exp Region 9'!X$9","v":{"v":0,"d":"$0.00"}},{"$f":"'MMA Rev-Exp Region 9'!Y$9","v":{"v":0,"d":"$0.00"}},{"v":0,"d":"$0.00"}]
["MMA",null,null,{"$f":"Jurat!I$1","v":0},{"$f":"Jurat!D$33","v":"00:00:00"},"Q2","2017-06-30","Region 9","Operating Revenue","Kick Payments","Kick Payments - Hep C","1.3","Hepatitis C Kick Payments",{"$f":"'MMA Rev-Exp Region 9'!O$13","v":{"v":0,"d":"$0.00"}},{"$f":"'MMA Rev-Exp Region 9'!P$13","v":{"v":0,"d":"$0.00"}},{"$f":"'MMA Rev-Exp Region 9'!Q$13","v":{"v":0,"d":"$0.00"}},{"$f":"'MMA Rev-Exp Region 9'!R$13","v":{"v":0,"d":"$0.00"}},{"$f":"'MMA Rev-Exp Region 9'!S$13","v":{"v":0,"d":"$0.00"}},{"$f":"'MMA Rev-Exp Region 9'!T$13","v":{"v":0,"d":"$0.00"}},{"$f":"'MMA Rev-Exp Region 9'!U$13","v":{"v":0,"d":"$0.00"}},{"$f":"'MMA Rev-Exp Region 9'!V$13","v":{"v":0,"d":"$0.00"}},{"$f":"'MMA Rev-Exp Region 9'!W$13","v":{"v":0,"d":"$0.00"}},{"$f":"'MMA Rev-Exp Region 9'!X$13","v":{"v":0,"d":"$0.00"}},{"$f":"'MMA Rev-Exp Region 9'!Y$13","v":{"v":0,"d":"$0.00"}},{"v":0,"d":"$0.00"}]
["MMA",null,null,{"$f":"Jurat!I$1","v":0},{"$f":"Jurat!D$33","v":"00:00:00"},"Q2","2017-06-30","Region 9","Operating Revenue","Other Revenue","Other Revenue","1.6","Other Revenue",{"$f":"'MMA Rev-Exp Region 9'!O$16","v":{"v":0,"d":"$0.00"}},{"$f":"'MMA Rev-Exp Region 9'!P$16","v":{"v":0,"d":"$0.00"}},{"$f":"'MMA Rev-Exp Region 9'!Q$16","v":{"v":0,"d":"$0.00"}},{"$f":"'MMA Rev-Exp Region 9'!R$16","v":{"v":0,"d":"$0.00"}},{"$f":"'MMA Rev-Exp Region 9'!S$16","v":{"v":0,"d":"$0.00"}},{"$f":"'MMA Rev-Exp Region 9'!T$16","v":{"v":0,"d":"$0.00"}},{"$f":"'MMA Rev-Exp Region 9'!U$16","v":{"v":0,"d":"$0.00"}},{"$f":"'MMA Rev-Exp Region 9'!V$16","v":{"v":0,"d":"$0.00"}},{"$f":"'MMA Rev-Exp Region 9'!W$16","v":{"v":0,"d":"$0.00"}},{"$f":"'MMA Rev-Exp Region 9'!X$16","v":{"v":0,"d":"$0.00"}},{"$f":"'MMA Rev-Exp Region 9'!Y$16","v":{"v":0,"d":"$0.00"}},{"v":0,"d":"$0.00"}]
["MMA",null,null,{"$f":"Jurat!I$1","v":0},{"$f":"Jurat!D$33","v":"00:00:00"},"Q2","2017-06-30","Region 9","Operating Expense","Medical Benefits Expense","Hospital Services",2.1,"Inpatient FFS",{"$f":"'MMA Rev-Exp Region 9'!O$20","v":{"v":0,"d":"$0.00"}},{"$f":"'MMA Rev-Exp Region 9'!P$20","v":{"v":0,"d":"$0.00"}},{"$f":"'MMA Rev-Exp Region 9'!Q$20","v":{"v":0,"d":"$0.00"}},{"$f":"'MMA Rev-Exp Region 9'!R$20","v":{"v":0,"d":"$0.00"}},{"$f":"'MMA Rev-Exp Region 9'!S$20","v":{"v":0,"d":"$0.00"}},{"$f":"'MMA Rev-Exp Region 9'!T$20","v":{"v":0,"d":"$0.00"}},{"$f":"'MMA Rev-Exp Region 9'!U$20","v":{"v":0,"d":"$0.00"}},{"$f":"'MMA Rev-Exp Region 9'!V$20","v":{"v":0,"d":"$0.00"}},{"$f":"'MMA Rev-Exp Region 9'!W$20","v":{"v":0,"d":"$0.00"}},{"$f":"'MMA Rev-Exp Region 9'!X$20","v":{"v":0,"d":"$0.00"}},{"$f":"'MMA Rev-Exp Region 9'!Y$20","v":{"v":0,"d":"$0.00"}},{"v":0,"d":"$0.00"}]
["MMA",null,null,{"$f":"Jurat!I$1","v":0},{"$f":"Jurat!D$33","v":"00:00:00"},"Q2","2017-06-30","Region 9","Operating Expense","Medical Benefits Expense","Hospital Services",2.4,"Outpatient FFS: Other than ER ",{"$f":"'MMA Rev-Exp Region 9'!O$23","v":{"v":0,"d":"$0.00"}},{"$f":"'MMA Rev-Exp Region 9'!P$23","v":{"v":0,"d":"$0.00"}},{"$f":"'MMA Rev-Exp Region 9'!Q$23","v":{"v":0,"d":"$0.00"}},{"$f":"'MMA Rev-Exp Region 9'!R$23","v":{"v":0,"d":"$0.00"}},{"$f":"'MMA Rev-Exp Region 9'!S$23","v":{"v":0,"d":"$0.00"}},{"$f":"'MMA Rev-Exp Region 9'!T$23","v":{"v":0,"d":"$0.00"}},{"$f":"'MMA Rev-Exp Region 9'!U$23","v":{"v":0,"d":"$0.00"}},{"$f":"'MMA Rev-Exp Region 9'!V$23","v":{"v":0,"d":"$0.00"}},{"$f":"'MMA Rev-Exp Region 9'!W$23","v":{"v":0,"d":"$0.00"}},{"$f":"'MMA Rev-Exp Region 9'!X$23","v":{"v":0,"d":"$0.00"}},{"$f":"'MMA Rev-Exp Region 9'!Y$23","v":{"v":0,"d":"$0.00"}},{"v":0,"d":"$0.00"}]
["MMA",null,null,{"$f":"Jurat!I$1","v":0},{"$f":"Jurat!D$33","v":"00:00:00"},"Q2","2017-06-30","Region 9","Operating Expense","Medical Benefits Expense","Hospital Services","2.7","Hospital Settlements",{"$f":"'MMA Rev-Exp Region 9'!O$26","v":{"v":0,"d":"$0.00"}},{"$f":"'MMA Rev-Exp Region 9'!P$26","v":{"v":0,"d":"$0.00"}},{"$f":"'MMA Rev-Exp Region 9'!Q$26","v":{"v":0,"d":"$0.00"}},{"$f":"'MMA Rev-Exp Region 9'!R$26","v":{"v":0,"d":"$0.00"}},{"$f":"'MMA Rev-Exp Region 9'!S$26","v":{"v":0,"d":"$0.00"}},{"$f":"'MMA Rev-Exp Region 9'!T$26","v":{"v":0,"d":"$0.00"}},{"$f":"'MMA Rev-Exp Region 9'!U$26","v":{"v":0,"d":"$0.00"}},{"$f":"'MMA Rev-Exp Region 9'!V$26","v":{"v":0,"d":"$0.00"}},{"$f":"'MMA Rev-Exp Region 9'!W$26","v":{"v":0,"d":"$0.00"}},{"$f":"'MMA Rev-Exp Region 9'!X$26","v":{"v":0,"d":"$0.00"}},{"$f":"'MMA Rev-Exp Region 9'!Y$26","v":{"v":0,"d":"$0.00"}},{"v":0,"d":"$0.00"}]
["MMA",null,null,{"$f":"Jurat!I$1","v":0},{"$f":"Jurat!D$33","v":"00:00:00"},"Q2","2017-06-30","Region 9","Operating Expense","Medical Benefits Expense","Professional Services",3.2,"Specialty Care FFS",{"$f":"'MMA Rev-Exp Region 9'!O$30","v":{"v":0,"d":"$0.00"}},{"$f":"'MMA Rev-Exp Region 9'!P$30","v":{"v":0,"d":"$0.00"}},{"$f":"'MMA Rev-Exp Region 9'!Q$30","v":{"v":0,"d":"$0.00"}},{"$f":"'MMA Rev-Exp Region 9'!R$30","v":{"v":0,"d":"$0.00"}},{"$f":"'MMA Rev-Exp Region 9'!S$30","v":{"v":0,"d":"$0.00"}},{"$f":"'MMA Rev-Exp Region 9'!T$30","v":{"v":0,"d":"$0.00"}},{"$f":"'MMA Rev-Exp Region 9'!U$30","v":{"v":0,"d":"$0.00"}},{"$f":"'MMA Rev-Exp Region 9'!V$30","v":{"v":0,"d":"$0.00"}},{"$f":"'MMA Rev-Exp Region 9'!W$30","v":{"v":0,"d":"$0.00"}},{"$f":"'MMA Rev-Exp Region 9'!X$30","v":{"v":0,"d":"$0.00"}},{"$f":"'MMA Rev-Exp Region 9'!Y$30","v":{"v":0,"d":"$0.00"}},{"v":0,"d":"$0.00"}]
["MMA",null,null,{"$f":"Jurat!I$1","v":0},{"$f":"Jurat!D$33","v":"00:00:00"},"Q2","2017-06-30","Region 9","Operating Expense","Medical Benefits Expense","Professional Services","3.5","Subcapitated Professional Services",{"$f":"'MMA Rev-Exp Region 9'!O$33","v":{"v":0,"d":"$0.00"}},{"$f":"'MMA Rev-Exp Region 9'!P$33","v":{"v":0,"d":"$0.00"}},{"$f":"'MMA Rev-Exp Region 9'!Q$33","v":{"v":0,"d":"$0.00"}},{"$f":"'MMA Rev-Exp Region 9'!R$33","v":{"v":0,"d":"$0.00"}},{"$f":"'MMA Rev-Exp Region 9'!S$33","v":{"v":0,"d":"$0.00"}},{"$f":"'MMA Rev-Exp Region 9'!T$33","v":{"v":0,"d":"$0.00"}},{"$f":"'MMA Rev-Exp Region 9'!U$33","v":{"v":0,"d":"$0.00"}},{"$f":"'MMA Rev-Exp Region 9'!V$33","v":{"v":0,"d":"$0.00"}},{"$f":"'MMA Rev-Exp Region 9'!W$33","v":{"v":0,"d":"$0.00"}},{"$f":"'MMA Rev-Exp Region 9'!X$33","v":{"v":0,"d":"$0.00"}},{"$f":"'MMA Rev-Exp Region 9'!Y$33","v":{"v":0,"d":"$0.00"}},{"v":0,"d":"$0.00"}]
["MMA",null,null,{"$f":"Jurat!I$1","v":0},{"$f":"Jurat!D$33","v":"00:00:00"},"Q2","2017-06-30","Region 9","Operating Expense","Medical Benefits Expense","Maternity Services","4.2.1","Ending IBNP for Maternity Services",{"$f":"'MMA Rev-Exp Region 9'!O$38","v":{"v":0,"d":"$0.00"}},{"$f":"'MMA Rev-Exp Region 9'!P$38","v":{"v":0,"d":"$0.00"}},{"$f":"'MMA Rev-Exp Region 9'!Q$38","v":{"v":0,"d":"$0.00"}},{"$f":"'MMA Rev-Exp Region 9'!R$38","v":{"v":0,"d":"$0.00"}},{"$f":"'MMA Rev-Exp Region 9'!S$38","v":{"v":0,"d":"$0.00"}},{"$f":"'MMA Rev-Exp Region 9'!T$38","v":{"v":0,"d":"$0.00"}},{"$f":"'MMA Rev-Exp Region 9'!U$38","v":{"v":0,"d":"$0.00"}},{"$f":"'MMA Rev-Exp Region 9'!V$38","v":{"v":0,"d":"$0.00"}},{"$f":"'MMA Rev-Exp Region 9'!W$38","v":{"v":0,"d":"$0.00"}},{"$f":"'MMA Rev-Exp Region 9'!X$38","v":{"v":0,"d":"$0.00"}},{"$f":"'MMA Rev-Exp Region 9'!Y$38","v":{"v":0,"d":"$0.00"}},{"v":0,"d":"$0.00"}]
["MMA",null,null,{"$f":"Jurat!I$1","v":0},{"$f":"Jurat!D$33","v":"00:00:00"},"Q2","2017-06-30","Region 9","Operating Expense","Medical Benefits Expense","Mental Health Services",5.2,"Mental Health & Substance Abuse Subcapitation",{"$f":"'MMA Rev-Exp Region 9'!O$42","v":{"v":0,"d":"$0.00"}},{"$f":"'MMA Rev-Exp Region 9'!P$42","v":{"v":0,"d":"$0.00"}},{"$f":"'MMA Rev-Exp Region 9'!Q$42","v":{"v":0,"d":"$0.00"}},{"$f":"'MMA Rev-Exp Region 9'!R$42","v":{"v":0,"d":"$0.00"}},{"$f":"'MMA Rev-Exp Region 9'!S$42","v":{"v":0,"d":"$0.00"}},{"$f":"'MMA Rev-Exp Region 9'!T$42","v":{"v":0,"d":"$0.00"}},{"$f":"'MMA Rev-Exp Region 9'!U$42","v":{"v":0,"d":"$0.00"}},{"$f":"'MMA Rev-Exp Region 9'!V$42","v":{"v":0,"d":"$0.00"}},{"$f":"'MMA Rev-Exp Region 9'!W$42","v":{"v":0,"d":"$0.00"}},{"$f":"'MMA Rev-Exp Region 9'!X$42","v":{"v":0,"d":"$0.00"}},{"$f":"'MMA Rev-Exp Region 9'!Y$42","v":{"v":0,"d":"$0.00"}},{"v":0,"d":"$0.00"}]
["MMA",null,null,{"$f":"Jurat!I$1","v":0},{"$f":"Jurat!D$33","v":"00:00:00"},"Q2","2017-06-30","Region 9","Operating Expense","Medical Benefits Expense","Dental Services",6.1,"Dental FFS",{"$f":"'MMA Rev-Exp Region 9'!O$46","v":{"v":0,"d":"$0.00"}},{"$f":"'MMA Rev-Exp Region 9'!P$46","v":{"v":0,"d":"$0.00"}},{"$f":"'MMA Rev-Exp Region 9'!Q$46","v":{"v":0,"d":"$0.00"}},{"$f":"'MMA Rev-Exp Region 9'!R$46","v":{"v":0,"d":"$0.00"}},{"$f":"'MMA Rev-Exp Region 9'!S$46","v":{"v":0,"d":"$0.00"}},{"$f":"'MMA Rev-Exp Region 9'!T$46","v":{"v":0,"d":"$0.00"}},{"$f":"'MMA Rev-Exp Region 9'!U$46","v":{"v":0,"d":"$0.00"}},{"$f":"'MMA Rev-Exp Region 9'!V$46","v":{"v":0,"d":"$0.00"}},{"$f":"'MMA Rev-Exp Region 9'!W$46","v":{"v":0,"d":"$0.00"}},{"$f":"'MMA Rev-Exp Region 9'!X$46","v":{"v":0,"d":"$0.00"}},{"$f":"'MMA Rev-Exp Region 9'!Y$46","v":{"v":0,"d":"$0.00"}},{"v":0,"d":"$0.00"}]
["MMA",null,null,{"$f":"Jurat!I$1","v":0},{"$f":"Jurat!D$33","v":"00:00:00"},"Q2","2017-06-30","Region 9","Operating Expense","Medical Benefits Expense","Dental Services",6.2,"Dental Subcapitation",{"$f":"'MMA Rev-Exp Region 9'!O$47","v":{"v":0,"d":"$0.00"}},{"$f":"'MMA Rev-Exp Region 9'!P$47","v":{"v":0,"d":"$0.00"}},{"$f":"'MMA Rev-Exp Region 9'!Q$47","v":{"v":0,"d":"$0.00"}},{"$f":"'MMA Rev-Exp Region 9'!R$47","v":{"v":0,"d":"$0.00"}},{"$f":"'MMA Rev-Exp Region 9'!S$47","v":{"v":0,"d":"$0.00"}},{"$f":"'MMA Rev-Exp Region 9'!T$47","v":{"v":0,"d":"$0.00"}},{"$f":"'MMA Rev-Exp Region 9'!U$47","v":{"v":0,"d":"$0.00"}},{"$f":"'MMA Rev-Exp Region 9'!V$47","v":{"v":0,"d":"$0.00"}},{"$f":"'MMA Rev-Exp Region 9'!W$47","v":{"v":0,"d":"$0.00"}},{"$f":"'MMA Rev-Exp Region 9'!X$47","v":{"v":0,"d":"$0.00"}},{"$f":"'MMA Rev-Exp Region 9'!Y$47","v":{"v":0,"d":"$0.00"}},{"v":0,"d":"$0.00"}]
["MMA",null,null,{"$f":"Jurat!I$1","v":0},{"$f":"Jurat!D$33","v":"00:00:00"},"Q2","2017-06-30","Region 9","Operating Expense","Medical Benefits Expense","Transportation Services",7.1,"Transportation FFS",{"$f":"'MMA Rev-Exp Region 9'!O$51","v":{"v":0,"d":"$0.00"}},{"$f":"'MMA Rev-Exp Region 9'!P$51","v":{"v":0,"d":"$0.00"}},{"$f":"'MMA Rev-Exp Region 9'!Q$51","v":{"v":0,"d":"$0.00"}},{"$f":"'MMA Rev-Exp Region 9'!R$51","v":{"v":0,"d":"$0.00"}},{"$f":"'MMA Rev-Exp Region 9'!S$51","v":{"v":0,"d":"$0.00"}},{"$f":"'MMA Rev-Exp Region 9'!T$51","v":{"v":0,"d":"$0.00"}},{"$f":"'MMA Rev-Exp Region 9'!U$51","v":{"v":0,"d":"$0.00"}},{"$f":"'MMA Rev-Exp Region 9'!V$51","v":{"v":0,"d":"$0.00"}},{"$f":"'MMA Rev-Exp Region 9'!W$51","v":{"v":0,"d":"$0.00"}},{"$f":"'MMA Rev-Exp Region 9'!X$51","v":{"v":0,"d":"$0.00"}},{"$f":"'MMA Rev-Exp Region 9'!Y$51","v":{"v":0,"d":"$0.00"}},{"v":0,"d":"$0.00"}]
["MMA",null,null,{"$f":"Jurat!I$1","v":0},{"$f":"Jurat!D$33","v":"00:00:00"},"Q2","2017-06-30","Region 9","Operating Expense","Medical Benefits Expense","Pharmacy Services",8.1,"Prescription Drugs FFS",{"$f":"'MMA Rev-Exp Region 9'!O$56","v":{"v":0,"d":"$0.00"}},{"$f":"'MMA Rev-Exp Region 9'!P$56","v":{"v":0,"d":"$0.00"}},{"$f":"'MMA Rev-Exp Region 9'!Q$56","v":{"v":0,"d":"$0.00"}},{"$f":"'MMA Rev-Exp Region 9'!R$56","v":{"v":0,"d":"$0.00"}},{"$f":"'MMA Rev-Exp Region 9'!S$56","v":{"v":0,"d":"$0.00"}},{"$f":"'MMA Rev-Exp Region 9'!T$56","v":{"v":0,"d":"$0.00"}},{"$f":"'MMA Rev-Exp Region 9'!U$56","v":{"v":0,"d":"$0.00"}},{"$f":"'MMA Rev-Exp Region 9'!V$56","v":{"v":0,"d":"$0.00"}},{"$f":"'MMA Rev-Exp Region 9'!W$56","v":{"v":0,"d":"$0.00"}},{"$f":"'MMA Rev-Exp Region 9'!X$56","v":{"v":0,"d":"$0.00"}},{"$f":"'MMA Rev-Exp Region 9'!Y$56","v":{"v":0,"d":"$0.00"}},{"v":0,"d":"$0.00"}]
["MMA",null,null,{"$f":"Jurat!I$1","v":0},{"$f":"Jurat!D$33","v":"00:00:00"},"Q2","2017-06-30","Region 9","Operating Expense","Medical Benefits Expense","Pharmacy Services","8.3","Ending IBNP for Prescription Drugs",{"$f":"'MMA Rev-Exp Region 9'!O$58","v":{"v":0,"d":"$0.00"}},{"$f":"'MMA Rev-Exp Region 9'!P$58","v":{"v":0,"d":"$0.00"}},{"$f":"'MMA Rev-Exp Region 9'!Q$58","v":{"v":0,"d":"$0.00"}},{"$f":"'MMA Rev-Exp Region 9'!R$58","v":{"v":0,"d":"$0.00"}},{"$f":"'MMA Rev-Exp Region 9'!S$58","v":{"v":0,"d":"$0.00"}},{"$f":"'MMA Rev-Exp Region 9'!T$58","v":{"v":0,"d":"$0.00"}},{"$f":"'MMA Rev-Exp Region 9'!U$58","v":{"v":0,"d":"$0.00"}},{"$f":"'MMA Rev-Exp Region 9'!V$58","v":{"v":0,"d":"$0.00"}},{"$f":"'MMA Rev-Exp Region 9'!W$58","v":{"v":0,"d":"$0.00"}},{"$f":"'MMA Rev-Exp Region 9'!X$58","v":{"v":0,"d":"$0.00"}},{"$f":"'MMA Rev-Exp Region 9'!Y$58","v":{"v":0,"d":"$0.00"}},{"v":0,"d":"$0.00"}]
["MMA",null,null,{"$f":"Jurat!I$1","v":0},{"$f":"Jurat!D$33","v":"00:00:00"},"Q2","2017-06-30","Region 9","Operating Expense","Medical Benefits Expense","Pharmacy Services","8.6","Prescription Drugs Subcapitation",{"$f":"'MMA Rev-Exp Region 9'!O$61","v":{"v":0,"d":"$0.00"}},{"$f":"'MMA Rev-Exp Region 9'!P$61","v":{"v":0,"d":"$0.00"}},{"$f":"'MMA Rev-Exp Region 9'!Q$61","v":{"v":0,"d":"$0.00"}},{"$f":"'MMA Rev-Exp Region 9'!R$61","v":{"v":0,"d":"$0.00"}},{"$f":"'MMA Rev-Exp Region 9'!S$61","v":{"v":0,"d":"$0.00"}},{"$f":"'MMA Rev-Exp Region 9'!T$61","v":{"v":0,"d":"$0.00"}},{"$f":"'MMA Rev-Exp Region 9'!U$61","v":{"v":0,"d":"$0.00"}},{"$f":"'MMA Rev-Exp Region 9'!V$61","v":{"v":0,"d":"$0.00"}},{"$f":"'MMA Rev-Exp Region 9'!W$61","v":{"v":0,"d":"$0.00"}},{"$f":"'MMA Rev-Exp Region 9'!X$61","v":{"v":0,"d":"$0.00"}},{"$f":"'MMA Rev-Exp Region 9'!Y$61","v":{"v":0,"d":"$0.00"}},{"v":0,"d":"$0.00"}]
["MMA",null,null,{"$f":"Jurat!I$1","v":0},{"$f":"Jurat!D$33","v":"00:00:00"},"Q2","2017-06-30","Region 9","Operating Expense","Medical Benefits Expense","Other MMA Services","9.3","DME FFS",{"$f":"'MMA Rev-Exp Region 9'!O$66","v":{"v":0,"d":"$0.00"}},{"$f":"'MMA Rev-Exp Region 9'!P$66","v":{"v":0,"d":"$0.00"}},{"$f":"'MMA Rev-Exp Region 9'!Q$66","v":{"v":0,"d":"$0.00"}},{"$f":"'MMA Rev-Exp Region 9'!R$66","v":{"v":0,"d":"$0.00"}},{"$f":"'MMA Rev-Exp Region 9'!S$66","v":{"v":0,"d":"$0.00"}},{"$f":"'MMA Rev-Exp Region 9'!T$66","v":{"v":0,"d":"$0.00"}},{"$f":"'MMA Rev-Exp Region 9'!U$66","v":{"v":0,"d":"$0.00"}},{"$f":"'MMA Rev-Exp Region 9'!V$66","v":{"v":0,"d":"$0.00"}},{"$f":"'MMA Rev-Exp Region 9'!W$66","v":{"v":0,"d":"$0.00"}},{"$f":"'MMA Rev-Exp Region 9'!X$66","v":{"v":0,"d":"$0.00"}},{"$f":"'MMA Rev-Exp Region 9'!Y$66","v":{"v":0,"d":"$0.00"}},{"v":0,"d":"$0.00"}]
["MMA",null,null,{"$f":"Jurat!I$1","v":0},{"$f":"Jurat!D$33","v":"00:00:00"},"Q2","2017-06-30","Region 9","Operating Expense","Medical Benefits Expense","Other MMA Services","9.6","Ending IBNP for Other Services",{"$f":"'MMA Rev-Exp Region 9'!O$69","v":{"v":0,"d":"$0.00"}},{"$f":"'MMA Rev-Exp Region 9'!P$69","v":{"v":0,"d":"$0.00"}},{"$f":"'MMA Rev-Exp Region 9'!Q$69","v":{"v":0,"d":"$0.00"}},{"$f":"'MMA Rev-Exp Region 9'!R$69","v":{"v":0,"d":"$0.00"}},{"$f":"'MMA Rev-Exp Region 9'!S$69","v":{"v":0,"d":"$0.00"}},{"$f":"'MMA Rev-Exp Region 9'!T$69","v":{"v":0,"d":"$0.00"}},{"$f":"'MMA Rev-Exp Region 9'!U$69","v":{"v":0,"d":"$0.00"}},{"$f":"'MMA Rev-Exp Region 9'!V$69","v":{"v":0,"d":"$0.00"}},{"$f":"'MMA Rev-Exp Region 9'!W$69","v":{"v":0,"d":"$0.00"}},{"$f":"'MMA Rev-Exp Region 9'!X$69","v":{"v":0,"d":"$0.00"}},{"$f":"'MMA Rev-Exp Region 9'!Y$69","v":{"v":0,"d":"$0.00"}},{"v":0,"d":"$0.00"}]
["MMA",null,null,{"$f":"Jurat!I$1","v":0},{"$f":"Jurat!D$33","v":"00:00:00"},"Q2","2017-06-30","Region 9","Operating Expense","Medical Benefits Expense","Expanded Benefits","10.2","Expanded benefits Subcapitation",{"$f":"'MMA Rev-Exp Region 9'!O$73","v":{"v":0,"d":"$0.00"}},{"$f":"'MMA Rev-Exp Region 9'!P$73","v":{"v":0,"d":"$0.00"}},{"$f":"'MMA Rev-Exp Region 9'!Q$73","v":{"v":0,"d":"$0.00"}},{"$f":"'MMA Rev-Exp Region 9'!R$73","v":{"v":0,"d":"$0.00"}},{"$f":"'MMA Rev-Exp Region 9'!S$73","v":{"v":0,"d":"$0.00"}},{"$f":"'MMA Rev-Exp Region 9'!T$73","v":{"v":0,"d":"$0.00"}},{"$f":"'MMA Rev-Exp Region 9'!U$73","v":{"v":0,"d":"$0.00"}},{"$f":"'MMA Rev-Exp Region 9'!V$73","v":{"v":0,"d":"$0.00"}},{"$f":"'MMA Rev-Exp Region 9'!W$73","v":{"v":0,"d":"$0.00"}},{"$f":"'MMA Rev-Exp Region 9'!X$73","v":{"v":0,"d":"$0.00"}},{"$f":"'MMA Rev-Exp Region 9'!Y$73","v":{"v":0,"d":"$0.00"}},{"v":0,"d":"$0.00"}]
["MMA",null,null,{"$f":"Jurat!I$1","v":0},{"$f":"Jurat!D$33","v":"00:00:00"},"Q2","2017-06-30","Region 9","Operating Expense","Medical Benefits Expense","Expanded Benefits","10.3","Ending IBNP for Expanded Benefits",{"$f":"'MMA Rev-Exp Region 9'!O$74","v":{"v":0,"d":"$0.00"}},{"$f":"'MMA Rev-Exp Region 9'!P$74","v":{"v":0,"d":"$0.00"}},{"$f":"'MMA Rev-Exp Region 9'!Q$74","v":{"v":0,"d":"$0.00"}},{"$f":"'MMA Rev-Exp Region 9'!R$74","v":{"v":0,"d":"$0.00"}},{"$f":"'MMA Rev-Exp Region 9'!S$74","v":{"v":0,"d":"$0.00"}},{"$f":"'MMA Rev-Exp Region 9'!T$74","v":{"v":0,"d":"$0.00"}},{"$f":"'MMA Rev-Exp Region 9'!U$74","v":{"v":0,"d":"$0.00"}},{"$f":"'MMA Rev-Exp Region 9'!V$74","v":{"v":0,"d":"$0.00"}},{"$f":"'MMA Rev-Exp Region 9'!W$74","v":{"v":0,"d":"$0.00"}},{"$f":"'MMA Rev-Exp Region 9'!X$74","v":{"v":0,"d":"$0.00"}},{"$f":"'MMA Rev-Exp Region 9'!Y$74","v":{"v":0,"d":"$0.00"}},{"v":0,"d":"$0.00"}]
["MMA",null,null,{"$f":"Jurat!I$1","v":0},{"$f":"Jurat!D$33","v":"00:00:00"},"Q2","2017-06-30","Region 9","Operating Expense","Medical Benefits Expense","Other Medical","11.6.1","Premium Deficiency Reserve",{"$f":"'MMA Rev-Exp Region 9'!O$82","v":{"v":0,"d":"$0.00"}},{"$f":"'MMA Rev-Exp Region 9'!P$82","v":{"v":0,"d":"$0.00"}},{"$f":"'MMA Rev-Exp Region 9'!Q$82","v":{"v":0,"d":"$0.00"}},{"$f":"'MMA Rev-Exp Region 9'!R$82","v":{"v":0,"d":"$0.00"}},{"$f":"'MMA Rev-Exp Region 9'!S$82","v":{"v":0,"d":"$0.00"}},{"$f":"'MMA Rev-Exp Region 9'!T$82","v":{"v":0,"d":"$0.00"}},{"$f":"'MMA Rev-Exp Region 9'!U$82","v":{"v":0,"d":"$0.00"}},{"$f":"'MMA Rev-Exp Region 9'!V$82","v":{"v":0,"d":"$0.00"}},{"$f":"'MMA Rev-Exp Region 9'!W$82","v":{"v":0,"d":"$0.00"}},{"$f":"'MMA Rev-Exp Region 9'!X$82","v":{"v":0,"d":"$0.00"}},{"$f":"'MMA Rev-Exp Region 9'!Y$82","v":{"v":0,"d":"$0.00"}},{"v":0,"d":"$0.00"}]
["MMA",null,null,{"$f":"Jurat!I$1","v":0},{"$f":"Jurat!D$33","v":"00:00:00"},"Q2","2017-06-30","Region 9","Operating Expense","Administrative Expense","Administrative","12.2","Administrative Services",{"$f":"'MMA Rev-Exp Region 9'!O$91","v":{"v":0,"d":"$0.00"}},{"v":0,"d":"$0.00"},{"v":0,"d":"$0.00"},{"v":0,"d":"$0.00"},{"v":0,"d":"$0.00"},{"v":0,"d":"$0.00"},{"v":0,"d":"$0.00"},{"v":0,"d":"$0.00"},{"v":0,"d":"$0.00"},{"v":0,"d":"$0.00"},{"v":0,"d":"$0.00"},{"v":0,"d":"$0.00"}]
["MMA",null,null,{"$f":"Jurat!I$1","v":0},{"$f":"Jurat!D$33","v":"00:00:00"},"Q2","2017-06-30","Region 9","Operating Expense","Administrative Expense","Administrative","12.4","Marketing Expenses",{"$f":"'MMA Rev-Exp Region 9'!O$93","v":{"v":0,"d":"$0.00"}},{"v":0,"d":"$0.00"},{"v":0,"d":"$0.00"},{"v":0,"d":"$0.00"},{"v":0,"d":"$0.00"},{"v":0,"d":"$0.00"},{"v":0,"d":"$0.00"},{"v":0,"d":"$0.00"},{"v":0,"d":"$0.00"},{"v":0,"d":"$0.00"},{"v":0,"d":"$0.00"},{"v":0,"d":"$0.00"}]
["MMA",null,null,{"$f":"Jurat!I$1","v":0},{"$f":"Jurat!D$33","v":"00:00:00"},"Q2","2017-06-30","Region 9","Operating Expense","Taxes & Fees","Taxes & Fees","13.1","State Premium tax",{"$f":"'MMA Rev-Exp Region 9'!O$97","v":{"v":0,"d":"$0.00"}},{"v":0,"d":"$0.00"},{"v":0,"d":"$0.00"},{"v":0,"d":"$0.00"},{"v":0,"d":"$0.00"},{"v":0,"d":"$0.00"},{"v":0,"d":"$0.00"},{"v":0,"d":"$0.00"},{"v":0,"d":"$0.00"},{"v":0,"d":"$0.00"},{"v":0,"d":"$0.00"},{"v":0,"d":"$0.00"}]
["MMA",null,null,{"$f":"Jurat!I$1","v":0},{"$f":"Jurat!D$33","v":"00:00:00"},"Q3","2017-09-30","Region 9","Member Months","Member Months","Member Months",null,"Member Months",{"$f":"'MMA Rev-Exp Region 9'!Z$9","v":{"v":0,"d":"$0.00"}},{"$f":"'MMA Rev-Exp Region 9'!AA$9","v":{"v":0,"d":"$0.00"}},{"$f":"'MMA Rev-Exp Region 9'!AB$9","v":{"v":0,"d":"$0.00"}},{"$f":"'MMA Rev-Exp Region 9'!AC$9","v":{"v":0,"d":"$0.00"}},{"$f":"'MMA Rev-Exp Region 9'!AD$9","v":{"v":0,"d":"$0.00"}},{"$f":"'MMA Rev-Exp Region 9'!AE$9","v":{"v":0,"d":"$0.00"}},{"$f":"'MMA Rev-Exp Region 9'!AF$9","v":{"v":0,"d":"$0.00"}},{"$f":"'MMA Rev-Exp Region 9'!AG$9","v":{"v":0,"d":"$0.00"}},{"$f":"'MMA Rev-Exp Region 9'!AH$9","v":{"v":0,"d":"$0.00"}},{"$f":"'MMA Rev-Exp Region 9'!AI$9","v":{"v":0,"d":"$0.00"}},{"$f":"'MMA Rev-Exp Region 9'!AJ$9","v":{"v":0,"d":"$0.00"}},{"v":0,"d":"$0.00"}]
["MMA",null,null,{"$f":"Jurat!I$1","v":0},{"$f":"Jurat!D$33","v":"00:00:00"},"Q3","2017-09-30","Region 9","Operating Revenue","Kick Payments","Kick Payments - Hep C","1.3","Hepatitis C Kick Payments",{"$f":"'MMA Rev-Exp Region 9'!Z$13","v":{"v":0,"d":"$0.00"}},{"$f":"'MMA Rev-Exp Region 9'!AA$13","v":{"v":0,"d":"$0.00"}},{"$f":"'MMA Rev-Exp Region 9'!AB$13","v":{"v":0,"d":"$0.00"}},{"$f":"'MMA Rev-Exp Region 9'!AC$13","v":{"v":0,"d":"$0.00"}},{"$f":"'MMA Rev-Exp Region 9'!AD$13","v":{"v":0,"d":"$0.00"}},{"$f":"'MMA Rev-Exp Region 9'!AE$13","v":{"v":0,"d":"$0.00"}},{"$f":"'MMA Rev-Exp Region 9'!AF$13","v":{"v":0,"d":"$0.00"}},{"$f":"'MMA Rev-Exp Region 9'!AG$13","v":{"v":0,"d":"$0.00"}},{"$f":"'MMA Rev-Exp Region 9'!AH$13","v":{"v":0,"d":"$0.00"}},{"$f":"'MMA Rev-Exp Region 9'!AI$13","v":{"v":0,"d":"$0.00"}},{"$f":"'MMA Rev-Exp Region 9'!AJ$13","v":{"v":0,"d":"$0.00"}},{"v":0,"d":"$0.00"}]
["MMA",null,null,{"$f":"Jurat!I$1","v":0},{"$f":"Jurat!D$33","v":"00:00:00"},"Q3","2017-09-30","Region 9","Operating Revenue","Kick Payments","Kick Payments - Maternity","1.4.1","Maternity Kick Payments",{"$f":"'MMA Rev-Exp Region 9'!Z$14","v":{"v":0,"d":"$0.00"}},{"$f":"'MMA Rev-Exp Region 9'!AA$14","v":{"v":0,"d":"$0.00"}},{"$f":"'MMA Rev-Exp Region 9'!AB$14","v":{"v":0,"d":"$0.00"}},{"$f":"'MMA Rev-Exp Region 9'!AC$14","v":{"v":0,"d":"$0.00"}},{"$f":"'MMA Rev-Exp Region 9'!AD$14","v":{"v":0,"d":"$0.00"}},{"$f":"'MMA Rev-Exp Region 9'!AE$14","v":{"v":0,"d":"$0.00"}},{"$f":"'MMA Rev-Exp Region 9'!AF$14","v":{"v":0,"d":"$0.00"}},{"$f":"'MMA Rev-Exp Region 9'!AG$14","v":{"v":0,"d":"$0.00"}},{"$f":"'MMA Rev-Exp Region 9'!AH$14","v":{"v":0,"d":"$0.00"}},{"$f":"'MMA Rev-Exp Region 9'!AI$14","v":{"v":0,"d":"$0.00"}},{"$f":"'MMA Rev-Exp Region 9'!AJ$14","v":{"v":0,"d":"$0.00"}},{"v":0,"d":"$0.00"}]
["MMA",null,null,{"$f":"Jurat!I$1","v":0},{"$f":"Jurat!D$33","v":"00:00:00"},"Q3","2017-09-30","Region 9","Operating Expense","Medical Benefits Expense","Hospital Services",2.1,"Inpatient FFS",{"$f":"'MMA Rev-Exp Region 9'!Z$20","v":{"v":0,"d":"$0.00"}},{"$f":"'MMA Rev-Exp Region 9'!AA$20","v":{"v":0,"d":"$0.00"}},{"$f":"'MMA Rev-Exp Region 9'!AB$20","v":{"v":0,"d":"$0.00"}},{"$f":"'MMA Rev-Exp Region 9'!AC$20","v":{"v":0,"d":"$0.00"}},{"$f":"'MMA Rev-Exp Region 9'!AD$20","v":{"v":0,"d":"$0.00"}},{"$f":"'MMA Rev-Exp Region 9'!AE$20","v":{"v":0,"d":"$0.00"}},{"$f":"'MMA Rev-Exp Region 9'!AF$20","v":{"v":0,"d":"$0.00"}},{"$f":"'MMA Rev-Exp Region 9'!AG$20","v":{"v":0,"d":"$0.00"}},{"$f":"'MMA Rev-Exp Region 9'!AH$20","v":{"v":0,"d":"$0.00"}},{"$f":"'MMA Rev-Exp Region 9'!AI$20","v":{"v":0,"d":"$0.00"}},{"$f":"'MMA Rev-Exp Region 9'!AJ$20","v":{"v":0,"d":"$0.00"}},{"v":0,"d":"$0.00"}]
["MMA",null,null,{"$f":"Jurat!I$1","v":0},{"$f":"Jurat!D$33","v":"00:00:00"},"Q3","2017-09-30","Region 9","Operating Expense","Medical Benefits Expense","Hospital Services",2.4,"Outpatient FFS: Other than ER ",{"$f":"'MMA Rev-Exp Region 9'!Z$23","v":{"v":0,"d":"$0.00"}},{"$f":"'MMA Rev-Exp Region 9'!AA$23","v":{"v":0,"d":"$0.00"}},{"$f":"'MMA Rev-Exp Region 9'!AB$23","v":{"v":0,"d":"$0.00"}},{"$f":"'MMA Rev-Exp Region 9'!AC$23","v":{"v":0,"d":"$0.00"}},{"$f":"'MMA Rev-Exp Region 9'!AD$23","v":{"v":0,"d":"$0.00"}},{"$f":"'MMA Rev-Exp Region 9'!AE$23","v":{"v":0,"d":"$0.00"}},{"$f":"'MMA Rev-Exp Region 9'!AF$23","v":{"v":0,"d":"$0.00"}},{"$f":"'MMA Rev-Exp Region 9'!AG$23","v":{"v":0,"d":"$0.00"}},{"$f":"'MMA Rev-Exp Region 9'!AH$23","v":{"v":0,"d":"$0.00"}},{"$f":"'MMA Rev-Exp Region 9'!AI$23","v":{"v":0,"d":"$0.00"}},{"$f":"'MMA Rev-Exp Region 9'!AJ$23","v":{"v":0,"d":"$0.00"}},{"v":0,"d":"$0.00"}]
["MMA",null,null,{"$f":"Jurat!I$1","v":0},{"$f":"Jurat!D$33","v":"00:00:00"},"Q3","2017-09-30","Region 9","Operating Expense","Medical Benefits Expense","Hospital Services","2.7.1","Transplant Services",{"$f":"'MMA Rev-Exp Region 9'!Z$27","v":{"v":0,"d":"$0.00"}},{"$f":"'MMA Rev-Exp Region 9'!AA$27","v":{"v":0,"d":"$0.00"}},{"$f":"'MMA Rev-Exp Region 9'!AB$27","v":{"v":0,"d":"$0.00"}},{"$f":"'MMA Rev-Exp Region 9'!AC$27","v":{"v":0,"d":"$0.00"}},{"$f":"'MMA Rev-Exp Region 9'!AD$27","v":{"v":0,"d":"$0.00"}},{"$f":"'MMA Rev-Exp Region 9'!AE$27","v":{"v":0,"d":"$0.00"}},{"$f":"'MMA Rev-Exp Region 9'!AF$27","v":{"v":0,"d":"$0.00"}},{"$f":"'MMA Rev-Exp Region 9'!AG$27","v":{"v":0,"d":"$0.00"}},{"$f":"'MMA Rev-Exp Region 9'!AH$27","v":{"v":0,"d":"$0.00"}},{"$f":"'MMA Rev-Exp Region 9'!AI$27","v":{"v":0,"d":"$0.00"}},{"$f":"'MMA Rev-Exp Region 9'!AJ$27","v":{"v":0,"d":"$0.00"}},{"v":0,"d":"$0.00"}]
["MMA",null,null,{"$f":"Jurat!I$1","v":0},{"$f":"Jurat!D$33","v":"00:00:00"},"Q3","2017-09-30","Region 9","Operating Expense","Medical Benefits Expense","Professional Services",3.3,"Other Professional FFS",{"$f":"'MMA Rev-Exp Region 9'!Z$31","v":{"v":0,"d":"$0.00"}},{"$f":"'MMA Rev-Exp Region 9'!AA$31","v":{"v":0,"d":"$0.00"}},{"$f":"'MMA Rev-Exp Region 9'!AB$31","v":{"v":0,"d":"$0.00"}},{"$f":"'MMA Rev-Exp Region 9'!AC$31","v":{"v":0,"d":"$0.00"}},{"$f":"'MMA Rev-Exp Region 9'!AD$31","v":{"v":0,"d":"$0.00"}},{"$f":"'MMA Rev-Exp Region 9'!AE$31","v":{"v":0,"d":"$0.00"}},{"$f":"'MMA Rev-Exp Region 9'!AF$31","v":{"v":0,"d":"$0.00"}},{"$f":"'MMA Rev-Exp Region 9'!AG$31","v":{"v":0,"d":"$0.00"}},{"$f":"'MMA Rev-Exp Region 9'!AH$31","v":{"v":0,"d":"$0.00"}},{"$f":"'MMA Rev-Exp Region 9'!AI$31","v":{"v":0,"d":"$0.00"}},{"$f":"'MMA Rev-Exp Region 9'!AJ$31","v":{"v":0,"d":"$0.00"}},{"v":0,"d":"$0.00"}]
["MMA",null,null,{"$f":"Jurat!I$1","v":0},{"$f":"Jurat!D$33","v":"00:00:00"},"Q3","2017-09-30","Region 9","Operating Expense","Medical Benefits Expense","Professional Services","3.6","Ending IBNP for Professional Services",{"$f":"'MMA Rev-Exp Region 9'!Z$34","v":{"v":0,"d":"$0.00"}},{"$f":"'MMA Rev-Exp Region 9'!AA$34","v":{"v":0,"d":"$0.00"}},{"$f":"'MMA Rev-Exp Region 9'!AB$34","v":{"v":0,"d":"$0.00"}},{"$f":"'MMA Rev-Exp Region 9'!AC$34","v":{"v":0,"d":"$0.00"}},{"$f":"'MMA Rev-Exp Region 9'!AD$34","v":{"v":0,"d":"$0.00"}},{"$f":"'MMA Rev-Exp Region 9'!AE$34","v":{"v":0,"d":"$0.00"}},{"$f":"'MMA Rev-Exp Region 9'!AF$34","v":{"v":0,"d":"$0.00"}},{"$f":"'MMA Rev-Exp Region 9'!AG$34","v":{"v":0,"d":"$0.00"}},{"$f":"'MMA Rev-Exp Region 9'!AH$34","v":{"v":0,"d":"$0.00"}},{"$f":"'MMA Rev-Exp Region 9'!AI$34","v":{"v":0,"d":"$0.00"}},{"$f":"'MMA Rev-Exp Region 9'!AJ$34","v":{"v":0,"d":"$0.00"}},{"v":0,"d":"$0.00"}]
["MMA",null,null,{"$f":"Jurat!I$1","v":0},{"$f":"Jurat!D$33","v":"00:00:00"},"Q3","2017-09-30","Region 9","Operating Expense","Medical Benefits Expense","Maternity Services","4.2.1","Ending IBNP for Maternity Services",{"$f":"'MMA Rev-Exp Region 9'!Z$38","v":{"v":0,"d":"$0.00"}},{"$f":"'MMA Rev-Exp Region 9'!AA$38","v":{"v":0,"d":"$0.00"}},{"$f":"'MMA Rev-Exp Region 9'!AB$38","v":{"v":0,"d":"$0.00"}},{"$f":"'MMA Rev-Exp Region 9'!AC$38","v":{"v":0,"d":"$0.00"}},{"$f":"'MMA Rev-Exp Region 9'!AD$38","v":{"v":0,"d":"$0.00"}},{"$f":"'MMA Rev-Exp Region 9'!AE$38","v":{"v":0,"d":"$0.00"}},{"$f":"'MMA Rev-Exp Region 9'!AF$38","v":{"v":0,"d":"$0.00"}},{"$f":"'MMA Rev-Exp Region 9'!AG$38","v":{"v":0,"d":"$0.00"}},{"$f":"'MMA Rev-Exp Region 9'!AH$38","v":{"v":0,"d":"$0.00"}},{"$f":"'MMA Rev-Exp Region 9'!AI$38","v":{"v":0,"d":"$0.00"}},{"$f":"'MMA Rev-Exp Region 9'!AJ$38","v":{"v":0,"d":"$0.00"}},{"v":0,"d":"$0.00"}]
["MMA",null,null,{"$f":"Jurat!I$1","v":0},{"$f":"Jurat!D$33","v":"00:00:00"},"Q3","2017-09-30","Region 9","Operating Expense","Medical Benefits Expense","Mental Health Services",5.2,"Mental Health & Substance Abuse Subcapitation",{"$f":"'MMA Rev-Exp Region 9'!Z$42","v":{"v":0,"d":"$0.00"}},{"$f":"'MMA Rev-Exp Region 9'!AA$42","v":{"v":0,"d":"$0.00"}},{"$f":"'MMA Rev-Exp Region 9'!AB$42","v":{"v":0,"d":"$0.00"}},{"$f":"'MMA Rev-Exp Region 9'!AC$42","v":{"v":0,"d":"$0.00"}},{"$f":"'MMA Rev-Exp Region 9'!AD$42","v":{"v":0,"d":"$0.00"}},{"$f":"'MMA Rev-Exp Region 9'!AE$42","v":{"v":0,"d":"$0.00"}},{"$f":"'MMA Rev-Exp Region 9'!AF$42","v":{"v":0,"d":"$0.00"}},{"$f":"'MMA Rev-Exp Region 9'!AG$42","v":{"v":0,"d":"$0.00"}},{"$f":"'MMA Rev-Exp Region 9'!AH$42","v":{"v":0,"d":"$0.00"}},{"$f":"'MMA Rev-Exp Region 9'!AI$42","v":{"v":0,"d":"$0.00"}},{"$f":"'MMA Rev-Exp Region 9'!AJ$42","v":{"v":0,"d":"$0.00"}},{"v":0,"d":"$0.00"}]
["MMA",null,null,{"$f":"Jurat!I$1","v":0},{"$f":"Jurat!D$33","v":"00:00:00"},"Q3","2017-09-30","Region 9","Operating Expense","Medical Benefits Expense","Mental Health Services",5.3,"Ending IBNP for Mental Health & Substance Abuse",{"$f":"'MMA Rev-Exp Region 9'!Z$43","v":{"v":0,"d":"$0.00"}},{"$f":"'MMA Rev-Exp Region 9'!AA$43","v":{"v":0,"d":"$0.00"}},{"$f":"'MMA Rev-Exp Region 9'!AB$43","v":{"v":0,"d":"$0.00"}},{"$f":"'MMA Rev-Exp Region 9'!AC$43","v":{"v":0,"d":"$0.00"}},{"$f":"'MMA Rev-Exp Region 9'!AD$43","v":{"v":0,"d":"$0.00"}},{"$f":"'MMA Rev-Exp Region 9'!AE$43","v":{"v":0,"d":"$0.00"}},{"$f":"'MMA Rev-Exp Region 9'!AF$43","v":{"v":0,"d":"$0.00"}},{"$f":"'MMA Rev-Exp Region 9'!AG$43","v":{"v":0,"d":"$0.00"}},{"$f":"'MMA Rev-Exp Region 9'!AH$43","v":{"v":0,"d":"$0.00"}},{"$f":"'MMA Rev-Exp Region 9'!AI$43","v":{"v":0,"d":"$0.00"}},{"$f":"'MMA Rev-Exp Region 9'!AJ$43","v":{"v":0,"d":"$0.00"}},{"v":0,"d":"$0.00"}]
["MMA",null,null,{"$f":"Jurat!I$1","v":0},{"$f":"Jurat!D$33","v":"00:00:00"},"Q3","2017-09-30","Region 9","Operating Expense","Medical Benefits Expense","Dental Services",6.2,"Dental Subcapitation",{"$f":"'MMA Rev-Exp Region 9'!Z$47","v":{"v":0,"d":"$0.00"}},{"$f":"'MMA Rev-Exp Region 9'!AA$47","v":{"v":0,"d":"$0.00"}},{"$f":"'MMA Rev-Exp Region 9'!AB$47","v":{"v":0,"d":"$0.00"}},{"$f":"'MMA Rev-Exp Region 9'!AC$47","v":{"v":0,"d":"$0.00"}},{"$f":"'MMA Rev-Exp Region 9'!AD$47","v":{"v":0,"d":"$0.00"}},{"$f":"'MMA Rev-Exp Region 9'!AE$47","v":{"v":0,"d":"$0.00"}},{"$f":"'MMA Rev-Exp Region 9'!AF$47","v":{"v":0,"d":"$0.00"}},{"$f":"'MMA Rev-Exp Region 9'!AG$47","v":{"v":0,"d":"$0.00"}},{"$f":"'MMA Rev-Exp Region 9'!AH$47","v":{"v":0,"d":"$0.00"}},{"$f":"'MMA Rev-Exp Region 9'!AI$47","v":{"v":0,"d":"$0.00"}},{"$f":"'MMA Rev-Exp Region 9'!AJ$47","v":{"v":0,"d":"$0.00"}},{"v":0,"d":"$0.00"}]
["MMA",null,null,{"$f":"Jurat!I$1","v":0},{"$f":"Jurat!D$33","v":"00:00:00"},"Q3","2017-09-30","Region 9","Operating Expense","Medical Benefits Expense","Transportation Services",7.1,"Transportation FFS",{"$f":"'MMA Rev-Exp Region 9'!Z$51","v":{"v":0,"d":"$0.00"}},{"$f":"'MMA Rev-Exp Region 9'!AA$51","v":{"v":0,"d":"$0.00"}},{"$f":"'MMA Rev-Exp Region 9'!AB$51","v":{"v":0,"d":"$0.00"}},{"$f":"'MMA Rev-Exp Region 9'!AC$51","v":{"v":0,"d":"$0.00"}},{"$f":"'MMA Rev-Exp Region 9'!AD$51","v":{"v":0,"d":"$0.00"}},{"$f":"'MMA Rev-Exp Region 9'!AE$51","v":{"v":0,"d":"$0.00"}},{"$f":"'MMA Rev-Exp Region 9'!AF$51","v":{"v":0,"d":"$0.00"}},{"$f":"'MMA Rev-Exp Region 9'!AG$51","v":{"v":0,"d":"$0.00"}},{"$f":"'MMA Rev-Exp Region 9'!AH$51","v":{"v":0,"d":"$0.00"}},{"$f":"'MMA Rev-Exp Region 9'!AI$51","v":{"v":0,"d":"$0.00"}},{"$f":"'MMA Rev-Exp Region 9'!AJ$51","v":{"v":0,"d":"$0.00"}},{"v":0,"d":"$0.00"}]
["MMA",null,null,{"$f":"Jurat!I$1","v":0},{"$f":"Jurat!D$33","v":"00:00:00"},"Q3","2017-09-30","Region 9","Operating Expense","Medical Benefits Expense","Pharmacy Services",8.1,"Prescription Drugs FFS",{"$f":"'MMA Rev-Exp Region 9'!Z$56","v":{"v":0,"d":"$0.00"}},{"$f":"'MMA Rev-Exp Region 9'!AA$56","v":{"v":0,"d":"$0.00"}},{"$f":"'MMA Rev-Exp Region 9'!AB$56","v":{"v":0,"d":"$0.00"}},{"$f":"'MMA Rev-Exp Region 9'!AC$56","v":{"v":0,"d":"$0.00"}},{"$f":"'MMA Rev-Exp Region 9'!AD$56","v":{"v":0,"d":"$0.00"}},{"$f":"'MMA Rev-Exp Region 9'!AE$56","v":{"v":0,"d":"$0.00"}},{"$f":"'MMA Rev-Exp Region 9'!AF$56","v":{"v":0,"d":"$0.00"}},{"$f":"'MMA Rev-Exp Region 9'!AG$56","v":{"v":0,"d":"$0.00"}},{"$f":"'MMA Rev-Exp Region 9'!AH$56","v":{"v":0,"d":"$0.00"}},{"$f":"'MMA Rev-Exp Region 9'!AI$56","v":{"v":0,"d":"$0.00"}},{"$f":"'MMA Rev-Exp Region 9'!AJ$56","v":{"v":0,"d":"$0.00"}},{"v":0,"d":"$0.00"}]
["MMA",null,null,{"$f":"Jurat!I$1","v":0},{"$f":"Jurat!D$33","v":"00:00:00"},"Q3","2017-09-30","Region 9","Operating Expense","Medical Benefits Expense","Pharmacy Services","8.4","Prescription Drug Rebates ",{"$f":"'MMA Rev-Exp Region 9'!Z$59","v":{"v":0,"d":"$0.00"}},{"$f":"'MMA Rev-Exp Region 9'!AA$59","v":{"v":0,"d":"$0.00"}},{"$f":"'MMA Rev-Exp Region 9'!AB$59","v":{"v":0,"d":"$0.00"}},{"$f":"'MMA Rev-Exp Region 9'!AC$59","v":{"v":0,"d":"$0.00"}},{"$f":"'MMA Rev-Exp Region 9'!AD$59","v":{"v":0,"d":"$0.00"}},{"$f":"'MMA Rev-Exp Region 9'!AE$59","v":{"v":0,"d":"$0.00"}},{"$f":"'MMA Rev-Exp Region 9'!AF$59","v":{"v":0,"d":"$0.00"}},{"$f":"'MMA Rev-Exp Region 9'!AG$59","v":{"v":0,"d":"$0.00"}},{"$f":"'MMA Rev-Exp Region 9'!AH$59","v":{"v":0,"d":"$0.00"}},{"$f":"'MMA Rev-Exp Region 9'!AI$59","v":{"v":0,"d":"$0.00"}},{"$f":"'MMA Rev-Exp Region 9'!AJ$59","v":{"v":0,"d":"$0.00"}},{"v":0,"d":"$0.00"}]
["MMA",null,null,{"$f":"Jurat!I$1","v":0},{"$f":"Jurat!D$33","v":"00:00:00"},"Q3","2017-09-30","Region 9","Operating Expense","Medical Benefits Expense","Other MMA Services",9.1,"Home Health, Private Duty Nursing, Personal Care FFS",{"$f":"'MMA Rev-Exp Region 9'!Z$64","v":{"v":0,"d":"$0.00"}},{"$f":"'MMA Rev-Exp Region 9'!AA$64","v":{"v":0,"d":"$0.00"}},{"$f":"'MMA Rev-Exp Region 9'!AB$64","v":{"v":0,"d":"$0.00"}},{"$f":"'MMA Rev-Exp Region 9'!AC$64","v":{"v":0,"d":"$0.00"}},{"$f":"'MMA Rev-Exp Region 9'!AD$64","v":{"v":0,"d":"$0.00"}},{"$f":"'MMA Rev-Exp Region 9'!AE$64","v":{"v":0,"d":"$0.00"}},{"$f":"'MMA Rev-Exp Region 9'!AF$64","v":{"v":0,"d":"$0.00"}},{"$f":"'MMA Rev-Exp Region 9'!AG$64","v":{"v":0,"d":"$0.00"}},{"$f":"'MMA Rev-Exp Region 9'!AH$64","v":{"v":0,"d":"$0.00"}},{"$f":"'MMA Rev-Exp Region 9'!AI$64","v":{"v":0,"d":"$0.00"}},{"$f":"'MMA Rev-Exp Region 9'!AJ$64","v":{"v":0,"d":"$0.00"}},{"v":0,"d":"$0.00"}]
["MMA",null,null,{"$f":"Jurat!I$1","v":0},{"$f":"Jurat!D$33","v":"00:00:00"},"Q3","2017-09-30","Region 9","Operating Expense","Medical Benefits Expense","Other MMA Services","9.2","Hospice FFS",{"$f":"'MMA Rev-Exp Region 9'!Z$65","v":{"v":0,"d":"$0.00"}},{"$f":"'MMA Rev-Exp Region 9'!AA$65","v":{"v":0,"d":"$0.00"}},{"$f":"'MMA Rev-Exp Region 9'!AB$65","v":{"v":0,"d":"$0.00"}},{"$f":"'MMA Rev-Exp Region 9'!AC$65","v":{"v":0,"d":"$0.00"}},{"$f":"'MMA Rev-Exp Region 9'!AD$65","v":{"v":0,"d":"$0.00"}},{"$f":"'MMA Rev-Exp Region 9'!AE$65","v":{"v":0,"d":"$0.00"}},{"$f":"'MMA Rev-Exp Region 9'!AF$65","v":{"v":0,"d":"$0.00"}},{"$f":"'MMA Rev-Exp Region 9'!AG$65","v":{"v":0,"d":"$0.00"}},{"$f":"'MMA Rev-Exp Region 9'!AH$65","v":{"v":0,"d":"$0.00"}},{"$f":"'MMA Rev-Exp Region 9'!AI$65","v":{"v":0,"d":"$0.00"}},{"$f":"'MMA Rev-Exp Region 9'!AJ$65","v":{"v":0,"d":"$0.00"}},{"v":0,"d":"$0.00"}]
["MMA",null,null,{"$f":"Jurat!I$1","v":0},{"$f":"Jurat!D$33","v":"00:00:00"},"Q3","2017-09-30","Region 9","Operating Expense","Medical Benefits Expense","Other MMA Services","9.6","Ending IBNP for Other Services",{"$f":"'MMA Rev-Exp Region 9'!Z$69","v":{"v":0,"d":"$0.00"}},{"$f":"'MMA Rev-Exp Region 9'!AA$69","v":{"v":0,"d":"$0.00"}},{"$f":"'MMA Rev-Exp Region 9'!AB$69","v":{"v":0,"d":"$0.00"}},{"$f":"'MMA Rev-Exp Region 9'!AC$69","v":{"v":0,"d":"$0.00"}},{"$f":"'MMA Rev-Exp Region 9'!AD$69","v":{"v":0,"d":"$0.00"}},{"$f":"'MMA Rev-Exp Region 9'!AE$69","v":{"v":0,"d":"$0.00"}},{"$f":"'MMA Rev-Exp Region 9'!AF$69","v":{"v":0,"d":"$0.00"}},{"$f":"'MMA Rev-Exp Region 9'!AG$69","v":{"v":0,"d":"$0.00"}},{"$f":"'MMA Rev-Exp Region 9'!AH$69","v":{"v":0,"d":"$0.00"}},{"$f":"'MMA Rev-Exp Region 9'!AI$69","v":{"v":0,"d":"$0.00"}},{"$f":"'MMA Rev-Exp Region 9'!AJ$69","v":{"v":0,"d":"$0.00"}},{"v":0,"d":"$0.00"}]
["MMA",null,null,{"$f":"Jurat!I$1","v":0},{"$f":"Jurat!D$33","v":"00:00:00"},"Q3","2017-09-30","Region 9","Operating Expense","Medical Benefits Expense","Other MMA Services","9.7","Other Services Settlements",{"$f":"'MMA Rev-Exp Region 9'!Z$70","v":{"v":0,"d":"$0.00"}},{"$f":"'MMA Rev-Exp Region 9'!AA$70","v":{"v":0,"d":"$0.00"}},{"$f":"'MMA Rev-Exp Region 9'!AB$70","v":{"v":0,"d":"$0.00"}},{"$f":"'MMA Rev-Exp Region 9'!AC$70","v":{"v":0,"d":"$0.00"}},{"$f":"'MMA Rev-Exp Region 9'!AD$70","v":{"v":0,"d":"$0.00"}},{"$f":"'MMA Rev-Exp Region 9'!AE$70","v":{"v":0,"d":"$0.00"}},{"$f":"'MMA Rev-Exp Region 9'!AF$70","v":{"v":0,"d":"$0.00"}},{"$f":"'MMA Rev-Exp Region 9'!AG$70","v":{"v":0,"d":"$0.00"}},{"$f":"'MMA Rev-Exp Region 9'!AH$70","v":{"v":0,"d":"$0.00"}},{"$f":"'MMA Rev-Exp Region 9'!AI$70","v":{"v":0,"d":"$0.00"}},{"$f":"'MMA Rev-Exp Region 9'!AJ$70","v":{"v":0,"d":"$0.00"}},{"v":0,"d":"$0.00"}]
["MMA",null,null,{"$f":"Jurat!I$1","v":0},{"$f":"Jurat!D$33","v":"00:00:00"},"Q3","2017-09-30","Region 9","Operating Expense","Medical Benefits Expense","Expanded Benefits","10.3","Ending IBNP for Expanded Benefits",{"$f":"'MMA Rev-Exp Region 9'!Z$74","v":{"v":0,"d":"$0.00"}},{"$f":"'MMA Rev-Exp Region 9'!AA$74","v":{"v":0,"d":"$0.00"}},{"$f":"'MMA Rev-Exp Region 9'!AB$74","v":{"v":0,"d":"$0.00"}},{"$f":"'MMA Rev-Exp Region 9'!AC$74","v":{"v":0,"d":"$0.00"}},{"$f":"'MMA Rev-Exp Region 9'!AD$74","v":{"v":0,"d":"$0.00"}},{"$f":"'MMA Rev-Exp Region 9'!AE$74","v":{"v":0,"d":"$0.00"}},{"$f":"'MMA Rev-Exp Region 9'!AF$74","v":{"v":0,"d":"$0.00"}},{"$f":"'MMA Rev-Exp Region 9'!AG$74","v":{"v":0,"d":"$0.00"}},{"$f":"'MMA Rev-Exp Region 9'!AH$74","v":{"v":0,"d":"$0.00"}},{"$f":"'MMA Rev-Exp Region 9'!AI$74","v":{"v":0,"d":"$0.00"}},{"$f":"'MMA Rev-Exp Region 9'!AJ$74","v":{"v":0,"d":"$0.00"}},{"v":0,"d":"$0.00"}]
["MMA",null,null,{"$f":"Jurat!I$1","v":0},{"$f":"Jurat!D$33","v":"00:00:00"},"Q3","2017-09-30","Region 9","Operating Expense","Medical Benefits Expense","Other Medical","11.6.1","Premium Deficiency Reserve",{"$f":"'MMA Rev-Exp Region 9'!Z$82","v":{"v":0,"d":"$0.00"}},{"$f":"'MMA Rev-Exp Region 9'!AA$82","v":{"v":0,"d":"$0.00"}},{"$f":"'MMA Rev-Exp Region 9'!AB$82","v":{"v":0,"d":"$0.00"}},{"$f":"'MMA Rev-Exp Region 9'!AC$82","v":{"v":0,"d":"$0.00"}},{"$f":"'MMA Rev-Exp Region 9'!AD$82","v":{"v":0,"d":"$0.00"}},{"$f":"'MMA Rev-Exp Region 9'!AE$82","v":{"v":0,"d":"$0.00"}},{"$f":"'MMA Rev-Exp Region 9'!AF$82","v":{"v":0,"d":"$0.00"}},{"$f":"'MMA Rev-Exp Region 9'!AG$82","v":{"v":0,"d":"$0.00"}},{"$f":"'MMA Rev-Exp Region 9'!AH$82","v":{"v":0,"d":"$0.00"}},{"$f":"'MMA Rev-Exp Region 9'!AI$82","v":{"v":0,"d":"$0.00"}},{"$f":"'MMA Rev-Exp Region 9'!AJ$82","v":{"v":0,"d":"$0.00"}},{"v":0,"d":"$0.00"}]
["MMA",null,null,{"$f":"Jurat!I$1","v":0},{"$f":"Jurat!D$33","v":"00:00:00"},"Q3","2017-09-30","Region 9","Operating Expense","Administrative Expense","Administrative","12.2","Administrative Services",{"$f":"'MMA Rev-Exp Region 9'!Z$91","v":{"v":0,"d":"$0.00"}},{"v":0,"d":"$0.00"},{"v":0,"d":"$0.00"},{"v":0,"d":"$0.00"},{"v":0,"d":"$0.00"},{"v":0,"d":"$0.00"},{"v":0,"d":"$0.00"},{"v":0,"d":"$0.00"},{"v":0,"d":"$0.00"},{"v":0,"d":"$0.00"},{"v":0,"d":"$0.00"},{"v":0,"d":"$0.00"}]
["MMA",null,null,{"$f":"Jurat!I$1","v":0},{"$f":"Jurat!D$33","v":"00:00:00"},"Q3","2017-09-30","Region 9","Operating Expense","Administrative Expense","Administrative","12.5","General  Administration",{"$f":"'MMA Rev-Exp Region 9'!Z$94","v":{"v":0,"d":"$0.00"}},{"v":0,"d":"$0.00"},{"v":0,"d":"$0.00"},{"v":0,"d":"$0.00"},{"v":0,"d":"$0.00"},{"v":0,"d":"$0.00"},{"v":0,"d":"$0.00"},{"v":0,"d":"$0.00"},{"v":0,"d":"$0.00"},{"v":0,"d":"$0.00"},{"v":0,"d":"$0.00"},{"v":0,"d":"$0.00"}]
["MMA",null,null,{"$f":"Jurat!I$1","v":0},{"$f":"Jurat!D$33","v":"00:00:00"},"Q3","2017-09-30","Region 9","Operating Expense","Taxes & Fees","Taxes & Fees","13.3","Section 9010 Health Insurance Providers Fee",{"$f":"'MMA Rev-Exp Region 9'!Z$99","v":{"v":0,"d":"$0.00"}},{"v":0,"d":"$0.00"},{"v":0,"d":"$0.00"},{"v":0,"d":"$0.00"},{"v":0,"d":"$0.00"},{"v":0,"d":"$0.00"},{"v":0,"d":"$0.00"},{"v":0,"d":"$0.00"},{"v":0,"d":"$0.00"},{"v":0,"d":"$0.00"},{"v":0,"d":"$0.00"},{"v":0,"d":"$0.00"}]
["MMA",null,null,{"$f":"Jurat!I$1","v":0},{"$f":"Jurat!D$33","v":"00:00:00"},"Q4","2017-12-31","Region 9","Operating Revenue","Capitation","Capitation",1.1,"Capitation",{"$f":"'MMA Rev-Exp Region 9'!AK$11","v":{"v":0,"d":"$0.00"}},{"$f":"'MMA Rev-Exp Region 9'!AL$11","v":{"v":0,"d":"$0.00"}},{"$f":"'MMA Rev-Exp Region 9'!AM$11","v":{"v":0,"d":"$0.00"}},{"$f":"'MMA Rev-Exp Region 9'!AN$11","v":{"v":0,"d":"$0.00"}},{"$f":"'MMA Rev-Exp Region 9'!AO$11","v":{"v":0,"d":"$0.00"}},{"$f":"'MMA Rev-Exp Region 9'!AP$11","v":{"v":0,"d":"$0.00"}},{"$f":"'MMA Rev-Exp Region 9'!AQ$11","v":{"v":0,"d":"$0.00"}},{"$f":"'MMA Rev-Exp Region 9'!AR$11","v":{"v":0,"d":"$0.00"}},{"$f":"'MMA Rev-Exp Region 9'!AS$11","v":{"v":0,"d":"$0.00"}},{"$f":"'MMA Rev-Exp Region 9'!AT$11","v":{"v":0,"d":"$0.00"}},{"$f":"'MMA Rev-Exp Region 9'!AU$11","v":{"v":0,"d":"$0.00"}},{"v":0,"d":"$0.00"}]
["MMA",null,null,{"$f":"Jurat!I$1","v":0},{"$f":"Jurat!D$33","v":"00:00:00"},"Q4","2017-12-31","Region 9","Operating Revenue","Kick Payments","Kick Payments - Maternity","1.4.1","Maternity Kick Payments",{"$f":"'MMA Rev-Exp Region 9'!AK$14","v":{"v":0,"d":"$0.00"}},{"$f":"'MMA Rev-Exp Region 9'!AL$14","v":{"v":0,"d":"$0.00"}},{"$f":"'MMA Rev-Exp Region 9'!AM$14","v":{"v":0,"d":"$0.00"}},{"$f":"'MMA Rev-Exp Region 9'!AN$14","v":{"v":0,"d":"$0.00"}},{"$f":"'MMA Rev-Exp Region 9'!AO$14","v":{"v":0,"d":"$0.00"}},{"$f":"'MMA Rev-Exp Region 9'!AP$14","v":{"v":0,"d":"$0.00"}},{"$f":"'MMA Rev-Exp Region 9'!AQ$14","v":{"v":0,"d":"$0.00"}},{"$f":"'MMA Rev-Exp Region 9'!AR$14","v":{"v":0,"d":"$0.00"}},{"$f":"'MMA Rev-Exp Region 9'!AS$14","v":{"v":0,"d":"$0.00"}},{"$f":"'MMA Rev-Exp Region 9'!AT$14","v":{"v":0,"d":"$0.00"}},{"$f":"'MMA Rev-Exp Region 9'!AU$14","v":{"v":0,"d":"$0.00"}},{"v":0,"d":"$0.00"}]
["MMA",null,null,{"$f":"Jurat!I$1","v":0},{"$f":"Jurat!D$33","v":"00:00:00"},"Q4","2017-12-31","Region 9","Operating Revenue","Other Revenue","Other Revenue - 9010","1.5","ACA § 9010 related payments",{"$f":"'MMA Rev-Exp Region 9'!AK$15","v":{"v":0,"d":"$0.00"}},{"$f":"'MMA Rev-Exp Region 9'!AL$15","v":{"v":0,"d":"$0.00"}},{"$f":"'MMA Rev-Exp Region 9'!AM$15","v":{"v":0,"d":"$0.00"}},{"$f":"'MMA Rev-Exp Region 9'!AN$15","v":{"v":0,"d":"$0.00"}},{"$f":"'MMA Rev-Exp Region 9'!AO$15","v":{"v":0,"d":"$0.00"}},{"$f":"'MMA Rev-Exp Region 9'!AP$15","v":{"v":0,"d":"$0.00"}},{"$f":"'MMA Rev-Exp Region 9'!AQ$15","v":{"v":0,"d":"$0.00"}},{"$f":"'MMA Rev-Exp Region 9'!AR$15","v":{"v":0,"d":"$0.00"}},{"$f":"'MMA Rev-Exp Region 9'!AS$15","v":{"v":0,"d":"$0.00"}},{"$f":"'MMA Rev-Exp Region 9'!AT$15","v":{"v":0,"d":"$0.00"}},{"$f":"'MMA Rev-Exp Region 9'!AU$15","v":{"v":0,"d":"$0.00"}},{"v":0,"d":"$0.00"}]
["MMA",null,null,{"$f":"Jurat!I$1","v":0},{"$f":"Jurat!D$33","v":"00:00:00"},"Q4","2017-12-31","Region 9","Operating Expense","Medical Benefits Expense","Hospital Services",2.1,"Inpatient FFS",{"$f":"'MMA Rev-Exp Region 9'!AK$20","v":{"v":0,"d":"$0.00"}},{"$f":"'MMA Rev-Exp Region 9'!AL$20","v":{"v":0,"d":"$0.00"}},{"$f":"'MMA Rev-Exp Region 9'!AM$20","v":{"v":0,"d":"$0.00"}},{"$f":"'MMA Rev-Exp Region 9'!AN$20","v":{"v":0,"d":"$0.00"}},{"$f":"'MMA Rev-Exp Region 9'!AO$20","v":{"v":0,"d":"$0.00"}},{"$f":"'MMA Rev-Exp Region 9'!AP$20","v":{"v":0,"d":"$0.00"}},{"$f":"'MMA Rev-Exp Region 9'!AQ$20","v":{"v":0,"d":"$0.00"}},{"$f":"'MMA Rev-Exp Region 9'!AR$20","v":{"v":0,"d":"$0.00"}},{"$f":"'MMA Rev-Exp Region 9'!AS$20","v":{"v":0,"d":"$0.00"}},{"$f":"'MMA Rev-Exp Region 9'!AT$20","v":{"v":0,"d":"$0.00"}},{"$f":"'MMA Rev-Exp Region 9'!AU$20","v":{"v":0,"d":"$0.00"}},{"v":0,"d":"$0.00"}]
["MMA",null,null,{"$f":"Jurat!I$1","v":0},{"$f":"Jurat!D$33","v":"00:00:00"},"Q4","2017-12-31","Region 9","Operating Expense","Medical Benefits Expense","Hospital Services",2.4,"Outpatient FFS: Other than ER ",{"$f":"'MMA Rev-Exp Region 9'!AK$23","v":{"v":0,"d":"$0.00"}},{"$f":"'MMA Rev-Exp Region 9'!AL$23","v":{"v":0,"d":"$0.00"}},{"$f":"'MMA Rev-Exp Region 9'!AM$23","v":{"v":0,"d":"$0.00"}},{"$f":"'MMA Rev-Exp Region 9'!AN$23","v":{"v":0,"d":"$0.00"}},{"$f":"'MMA Rev-Exp Region 9'!AO$23","v":{"v":0,"d":"$0.00"}},{"$f":"'MMA Rev-Exp Region 9'!AP$23","v":{"v":0,"d":"$0.00"}},{"$f":"'MMA Rev-Exp Region 9'!AQ$23","v":{"v":0,"d":"$0.00"}},{"$f":"'MMA Rev-Exp Region 9'!AR$23","v":{"v":0,"d":"$0.00"}},{"$f":"'MMA Rev-Exp Region 9'!AS$23","v":{"v":0,"d":"$0.00"}},{"$f":"'MMA Rev-Exp Region 9'!AT$23","v":{"v":0,"d":"$0.00"}},{"$f":"'MMA Rev-Exp Region 9'!AU$23","v":{"v":0,"d":"$0.00"}},{"v":0,"d":"$0.00"}]
["MMA",null,null,{"$f":"Jurat!I$1","v":0},{"$f":"Jurat!D$33","v":"00:00:00"},"Q4","2017-12-31","Region 9","Operating Expense","Medical Benefits Expense","Hospital Services","2.7.1","Transplant Services",{"$f":"'MMA Rev-Exp Region 9'!AK$27","v":{"v":0,"d":"$0.00"}},{"$f":"'MMA Rev-Exp Region 9'!AL$27","v":{"v":0,"d":"$0.00"}},{"$f":"'MMA Rev-Exp Region 9'!AM$27","v":{"v":0,"d":"$0.00"}},{"$f":"'MMA Rev-Exp Region 9'!AN$27","v":{"v":0,"d":"$0.00"}},{"$f":"'MMA Rev-Exp Region 9'!AO$27","v":{"v":0,"d":"$0.00"}},{"$f":"'MMA Rev-Exp Region 9'!AP$27","v":{"v":0,"d":"$0.00"}},{"$f":"'MMA Rev-Exp Region 9'!AQ$27","v":{"v":0,"d":"$0.00"}},{"$f":"'MMA Rev-Exp Region 9'!AR$27","v":{"v":0,"d":"$0.00"}},{"$f":"'MMA Rev-Exp Region 9'!AS$27","v":{"v":0,"d":"$0.00"}},{"$f":"'MMA Rev-Exp Region 9'!AT$27","v":{"v":0,"d":"$0.00"}},{"$f":"'MMA Rev-Exp Region 9'!AU$27","v":{"v":0,"d":"$0.00"}},{"v":0,"d":"$0.00"}]
["MMA",null,null,{"$f":"Jurat!I$1","v":0},{"$f":"Jurat!D$33","v":"00:00:00"},"Q4","2017-12-31","Region 9","Operating Expense","Medical Benefits Expense","Professional Services",3.3,"Other Professional FFS",{"$f":"'MMA Rev-Exp Region 9'!AK$31","v":{"v":0,"d":"$0.00"}},{"$f":"'MMA Rev-Exp Region 9'!AL$31","v":{"v":0,"d":"$0.00"}},{"$f":"'MMA Rev-Exp Region 9'!AM$31","v":{"v":0,"d":"$0.00"}},{"$f":"'MMA Rev-Exp Region 9'!AN$31","v":{"v":0,"d":"$0.00"}},{"$f":"'MMA Rev-Exp Region 9'!AO$31","v":{"v":0,"d":"$0.00"}},{"$f":"'MMA Rev-Exp Region 9'!AP$31","v":{"v":0,"d":"$0.00"}},{"$f":"'MMA Rev-Exp Region 9'!AQ$31","v":{"v":0,"d":"$0.00"}},{"$f":"'MMA Rev-Exp Region 9'!AR$31","v":{"v":0,"d":"$0.00"}},{"$f":"'MMA Rev-Exp Region 9'!AS$31","v":{"v":0,"d":"$0.00"}},{"$f":"'MMA Rev-Exp Region 9'!AT$31","v":{"v":0,"d":"$0.00"}},{"$f":"'MMA Rev-Exp Region 9'!AU$31","v":{"v":0,"d":"$0.00"}},{"v":0,"d":"$0.00"}]
["MMA",null,null,{"$f":"Jurat!I$1","v":0},{"$f":"Jurat!D$33","v":"00:00:00"},"Q4","2017-12-31","Region 9","Operating Expense","Medical Benefits Expense","Professional Services","3.7","Professional Services Settlements",{"$f":"'MMA Rev-Exp Region 9'!AK$35","v":{"v":0,"d":"$0.00"}},{"$f":"'MMA Rev-Exp Region 9'!AL$35","v":{"v":0,"d":"$0.00"}},{"$f":"'MMA Rev-Exp Region 9'!AM$35","v":{"v":0,"d":"$0.00"}},{"$f":"'MMA Rev-Exp Region 9'!AN$35","v":{"v":0,"d":"$0.00"}},{"$f":"'MMA Rev-Exp Region 9'!AO$35","v":{"v":0,"d":"$0.00"}},{"$f":"'MMA Rev-Exp Region 9'!AP$35","v":{"v":0,"d":"$0.00"}},{"$f":"'MMA Rev-Exp Region 9'!AQ$35","v":{"v":0,"d":"$0.00"}},{"$f":"'MMA Rev-Exp Region 9'!AR$35","v":{"v":0,"d":"$0.00"}},{"$f":"'MMA Rev-Exp Region 9'!AS$35","v":{"v":0,"d":"$0.00"}},{"$f":"'MMA Rev-Exp Region 9'!AT$35","v":{"v":0,"d":"$0.00"}},{"$f":"'MMA Rev-Exp Region 9'!AU$35","v":{"v":0,"d":"$0.00"}},{"v":0,"d":"$0.00"}]
["MMA",null,null,{"$f":"Jurat!I$1","v":0},{"$f":"Jurat!D$33","v":"00:00:00"},"Q4","2017-12-31","Region 9","Operating Expense","Medical Benefits Expense","Maternity Services","4.3.1","Maternity Settlements",{"$f":"'MMA Rev-Exp Region 9'!AK$39","v":{"v":0,"d":"$0.00"}},{"$f":"'MMA Rev-Exp Region 9'!AL$39","v":{"v":0,"d":"$0.00"}},{"$f":"'MMA Rev-Exp Region 9'!AM$39","v":{"v":0,"d":"$0.00"}},{"$f":"'MMA Rev-Exp Region 9'!AN$39","v":{"v":0,"d":"$0.00"}},{"$f":"'MMA Rev-Exp Region 9'!AO$39","v":{"v":0,"d":"$0.00"}},{"$f":"'MMA Rev-Exp Region 9'!AP$39","v":{"v":0,"d":"$0.00"}},{"$f":"'MMA Rev-Exp Region 9'!AQ$39","v":{"v":0,"d":"$0.00"}},{"$f":"'MMA Rev-Exp Region 9'!AR$39","v":{"v":0,"d":"$0.00"}},{"$f":"'MMA Rev-Exp Region 9'!AS$39","v":{"v":0,"d":"$0.00"}},{"$f":"'MMA Rev-Exp Region 9'!AT$39","v":{"v":0,"d":"$0.00"}},{"$f":"'MMA Rev-Exp Region 9'!AU$39","v":{"v":0,"d":"$0.00"}},{"v":0,"d":"$0.00"}]
["MMA",null,null,{"$f":"Jurat!I$1","v":0},{"$f":"Jurat!D$33","v":"00:00:00"},"Q4","2017-12-31","Region 9","Operating Expense","Medical Benefits Expense","Mental Health Services",5.3,"Ending IBNP for Mental Health & Substance Abuse",{"$f":"'MMA Rev-Exp Region 9'!AK$43","v":{"v":0,"d":"$0.00"}},{"$f":"'MMA Rev-Exp Region 9'!AL$43","v":{"v":0,"d":"$0.00"}},{"$f":"'MMA Rev-Exp Region 9'!AM$43","v":{"v":0,"d":"$0.00"}},{"$f":"'MMA Rev-Exp Region 9'!AN$43","v":{"v":0,"d":"$0.00"}},{"$f":"'MMA Rev-Exp Region 9'!AO$43","v":{"v":0,"d":"$0.00"}},{"$f":"'MMA Rev-Exp Region 9'!AP$43","v":{"v":0,"d":"$0.00"}},{"$f":"'MMA Rev-Exp Region 9'!AQ$43","v":{"v":0,"d":"$0.00"}},{"$f":"'MMA Rev-Exp Region 9'!AR$43","v":{"v":0,"d":"$0.00"}},{"$f":"'MMA Rev-Exp Region 9'!AS$43","v":{"v":0,"d":"$0.00"}},{"$f":"'MMA Rev-Exp Region 9'!AT$43","v":{"v":0,"d":"$0.00"}},{"$f":"'MMA Rev-Exp Region 9'!AU$43","v":{"v":0,"d":"$0.00"}},{"v":0,"d":"$0.00"}]
["MMA",null,null,{"$f":"Jurat!I$1","v":0},{"$f":"Jurat!D$33","v":"00:00:00"},"Q4","2017-12-31","Region 9","Operating Expense","Medical Benefits Expense","Mental Health Services","5.4","Mental Health Settlements",{"$f":"'MMA Rev-Exp Region 9'!AK$44","v":{"v":0,"d":"$0.00"}},{"$f":"'MMA Rev-Exp Region 9'!AL$44","v":{"v":0,"d":"$0.00"}},{"$f":"'MMA Rev-Exp Region 9'!AM$44","v":{"v":0,"d":"$0.00"}},{"$f":"'MMA Rev-Exp Region 9'!AN$44","v":{"v":0,"d":"$0.00"}},{"$f":"'MMA Rev-Exp Region 9'!AO$44","v":{"v":0,"d":"$0.00"}},{"$f":"'MMA Rev-Exp Region 9'!AP$44","v":{"v":0,"d":"$0.00"}},{"$f":"'MMA Rev-Exp Region 9'!AQ$44","v":{"v":0,"d":"$0.00"}},{"$f":"'MMA Rev-Exp Region 9'!AR$44","v":{"v":0,"d":"$0.00"}},{"$f":"'MMA Rev-Exp Region 9'!AS$44","v":{"v":0,"d":"$0.00"}},{"$f":"'MMA Rev-Exp Region 9'!AT$44","v":{"v":0,"d":"$0.00"}},{"$f":"'MMA Rev-Exp Region 9'!AU$44","v":{"v":0,"d":"$0.00"}},{"v":0,"d":"$0.00"}]
["MMA",null,null,{"$f":"Jurat!I$1","v":0},{"$f":"Jurat!D$33","v":"00:00:00"},"Q4","2017-12-31","Region 9","Operating Expense","Medical Benefits Expense","Dental Services","6.4","Dental Settlements",{"$f":"'MMA Rev-Exp Region 9'!AK$49","v":{"v":0,"d":"$0.00"}},{"$f":"'MMA Rev-Exp Region 9'!AL$49","v":{"v":0,"d":"$0.00"}},{"$f":"'MMA Rev-Exp Region 9'!AM$49","v":{"v":0,"d":"$0.00"}},{"$f":"'MMA Rev-Exp Region 9'!AN$49","v":{"v":0,"d":"$0.00"}},{"$f":"'MMA Rev-Exp Region 9'!AO$49","v":{"v":0,"d":"$0.00"}},{"$f":"'MMA Rev-Exp Region 9'!AP$49","v":{"v":0,"d":"$0.00"}},{"$f":"'MMA Rev-Exp Region 9'!AQ$49","v":{"v":0,"d":"$0.00"}},{"$f":"'MMA Rev-Exp Region 9'!AR$49","v":{"v":0,"d":"$0.00"}},{"$f":"'MMA Rev-Exp Region 9'!AS$49","v":{"v":0,"d":"$0.00"}},{"$f":"'MMA Rev-Exp Region 9'!AT$49","v":{"v":0,"d":"$0.00"}},{"$f":"'MMA Rev-Exp Region 9'!AU$49","v":{"v":0,"d":"$0.00"}},{"v":0,"d":"$0.00"}]
["MMA",null,null,{"$f":"Jurat!I$1","v":0},{"$f":"Jurat!D$33","v":"00:00:00"},"Q4","2017-12-31","Region 9","Operating Expense","Medical Benefits Expense","Transportation Services",7.2,"Transportation Subcapitation",{"$f":"'MMA Rev-Exp Region 9'!AK$52","v":{"v":0,"d":"$0.00"}},{"$f":"'MMA Rev-Exp Region 9'!AL$52","v":{"v":0,"d":"$0.00"}},{"$f":"'MMA Rev-Exp Region 9'!AM$52","v":{"v":0,"d":"$0.00"}},{"$f":"'MMA Rev-Exp Region 9'!AN$52","v":{"v":0,"d":"$0.00"}},{"$f":"'MMA Rev-Exp Region 9'!AO$52","v":{"v":0,"d":"$0.00"}},{"$f":"'MMA Rev-Exp Region 9'!AP$52","v":{"v":0,"d":"$0.00"}},{"$f":"'MMA Rev-Exp Region 9'!AQ$52","v":{"v":0,"d":"$0.00"}},{"$f":"'MMA Rev-Exp Region 9'!AR$52","v":{"v":0,"d":"$0.00"}},{"$f":"'MMA Rev-Exp Region 9'!AS$52","v":{"v":0,"d":"$0.00"}},{"$f":"'MMA Rev-Exp Region 9'!AT$52","v":{"v":0,"d":"$0.00"}},{"$f":"'MMA Rev-Exp Region 9'!AU$52","v":{"v":0,"d":"$0.00"}},{"v":0,"d":"$0.00"}]
["MMA",null,null,{"$f":"Jurat!I$1","v":0},{"$f":"Jurat!D$33","v":"00:00:00"},"Q4","2017-12-31","Region 9","Operating Expense","Medical Benefits Expense","Pharmacy Services",8.1,"Prescription Drugs FFS",{"$f":"'MMA Rev-Exp Region 9'!AK$56","v":{"v":0,"d":"$0.00"}},{"$f":"'MMA Rev-Exp Region 9'!AL$56","v":{"v":0,"d":"$0.00"}},{"$f":"'MMA Rev-Exp Region 9'!AM$56","v":{"v":0,"d":"$0.00"}},{"$f":"'MMA Rev-Exp Region 9'!AN$56","v":{"v":0,"d":"$0.00"}},{"$f":"'MMA Rev-Exp Region 9'!AO$56","v":{"v":0,"d":"$0.00"}},{"$f":"'MMA Rev-Exp Region 9'!AP$56","v":{"v":0,"d":"$0.00"}},{"$f":"'MMA Rev-Exp Region 9'!AQ$56","v":{"v":0,"d":"$0.00"}},{"$f":"'MMA Rev-Exp Region 9'!AR$56","v":{"v":0,"d":"$0.00"}},{"$f":"'MMA Rev-Exp Region 9'!AS$56","v":{"v":0,"d":"$0.00"}},{"$f":"'MMA Rev-Exp Region 9'!AT$56","v":{"v":0,"d":"$0.00"}},{"$f":"'MMA Rev-Exp Region 9'!AU$56","v":{"v":0,"d":"$0.00"}},{"v":0,"d":"$0.00"}]
["MMA",null,null,{"$f":"Jurat!I$1","v":0},{"$f":"Jurat!D$33","v":"00:00:00"},"Q4","2017-12-31","Region 9","Operating Expense","Medical Benefits Expense","Pharmacy Services","8.4","Prescription Drug Rebates ",{"$f":"'MMA Rev-Exp Region 9'!AK$59","v":{"v":0,"d":"$0.00"}},{"$f":"'MMA Rev-Exp Region 9'!AL$59","v":{"v":0,"d":"$0.00"}},{"$f":"'MMA Rev-Exp Region 9'!AM$59","v":{"v":0,"d":"$0.00"}},{"$f":"'MMA Rev-Exp Region 9'!AN$59","v":{"v":0,"d":"$0.00"}},{"$f":"'MMA Rev-Exp Region 9'!AO$59","v":{"v":0,"d":"$0.00"}},{"$f":"'MMA Rev-Exp Region 9'!AP$59","v":{"v":0,"d":"$0.00"}},{"$f":"'MMA Rev-Exp Region 9'!AQ$59","v":{"v":0,"d":"$0.00"}},{"$f":"'MMA Rev-Exp Region 9'!AR$59","v":{"v":0,"d":"$0.00"}},{"$f":"'MMA Rev-Exp Region 9'!AS$59","v":{"v":0,"d":"$0.00"}},{"$f":"'MMA Rev-Exp Region 9'!AT$59","v":{"v":0,"d":"$0.00"}},{"$f":"'MMA Rev-Exp Region 9'!AU$59","v":{"v":0,"d":"$0.00"}},{"v":0,"d":"$0.00"}]
["MMA",null,null,{"$f":"Jurat!I$1","v":0},{"$f":"Jurat!D$33","v":"00:00:00"},"Q4","2017-12-31","Region 9","Operating Expense","Medical Benefits Expense","Other MMA Services",9.1,"Home Health, Private Duty Nursing, Personal Care FFS",{"$f":"'MMA Rev-Exp Region 9'!AK$64","v":{"v":0,"d":"$0.00"}},{"$f":"'MMA Rev-Exp Region 9'!AL$64","v":{"v":0,"d":"$0.00"}},{"$f":"'MMA Rev-Exp Region 9'!AM$64","v":{"v":0,"d":"$0.00"}},{"$f":"'MMA Rev-Exp Region 9'!AN$64","v":{"v":0,"d":"$0.00"}},{"$f":"'MMA Rev-Exp Region 9'!AO$64","v":{"v":0,"d":"$0.00"}},{"$f":"'MMA Rev-Exp Region 9'!AP$64","v":{"v":0,"d":"$0.00"}},{"$f":"'MMA Rev-Exp Region 9'!AQ$64","v":{"v":0,"d":"$0.00"}},{"$f":"'MMA Rev-Exp Region 9'!AR$64","v":{"v":0,"d":"$0.00"}},{"$f":"'MMA Rev-Exp Region 9'!AS$64","v":{"v":0,"d":"$0.00"}},{"$f":"'MMA Rev-Exp Region 9'!AT$64","v":{"v":0,"d":"$0.00"}},{"$f":"'MMA Rev-Exp Region 9'!AU$64","v":{"v":0,"d":"$0.00"}},{"v":0,"d":"$0.00"}]
["MMA",null,null,{"$f":"Jurat!I$1","v":0},{"$f":"Jurat!D$33","v":"00:00:00"},"Q4","2017-12-31","Region 9","Operating Expense","Medical Benefits Expense","Other MMA Services","9.4","Other State Plan Services FFS",{"$f":"'MMA Rev-Exp Region 9'!AK$67","v":{"v":0,"d":"$0.00"}},{"$f":"'MMA Rev-Exp Region 9'!AL$67","v":{"v":0,"d":"$0.00"}},{"$f":"'MMA Rev-Exp Region 9'!AM$67","v":{"v":0,"d":"$0.00"}},{"$f":"'MMA Rev-Exp Region 9'!AN$67","v":{"v":0,"d":"$0.00"}},{"$f":"'MMA Rev-Exp Region 9'!AO$67","v":{"v":0,"d":"$0.00"}},{"$f":"'MMA Rev-Exp Region 9'!AP$67","v":{"v":0,"d":"$0.00"}},{"$f":"'MMA Rev-Exp Region 9'!AQ$67","v":{"v":0,"d":"$0.00"}},{"$f":"'MMA Rev-Exp Region 9'!AR$67","v":{"v":0,"d":"$0.00"}},{"$f":"'MMA Rev-Exp Region 9'!AS$67","v":{"v":0,"d":"$0.00"}},{"$f":"'MMA Rev-Exp Region 9'!AT$67","v":{"v":0,"d":"$0.00"}},{"$f":"'MMA Rev-Exp Region 9'!AU$67","v":{"v":0,"d":"$0.00"}},{"v":0,"d":"$0.00"}]
["MMA",null,null,{"$f":"Jurat!I$1","v":0},{"$f":"Jurat!D$33","v":"00:00:00"},"Q4","2017-12-31","Region 9","Operating Expense","Medical Benefits Expense","Other MMA Services","9.7","Other Services Settlements",{"$f":"'MMA Rev-Exp Region 9'!AK$70","v":{"v":0,"d":"$0.00"}},{"$f":"'MMA Rev-Exp Region 9'!AL$70","v":{"v":0,"d":"$0.00"}},{"$f":"'MMA Rev-Exp Region 9'!AM$70","v":{"v":0,"d":"$0.00"}},{"$f":"'MMA Rev-Exp Region 9'!AN$70","v":{"v":0,"d":"$0.00"}},{"$f":"'MMA Rev-Exp Region 9'!AO$70","v":{"v":0,"d":"$0.00"}},{"$f":"'MMA Rev-Exp Region 9'!AP$70","v":{"v":0,"d":"$0.00"}},{"$f":"'MMA Rev-Exp Region 9'!AQ$70","v":{"v":0,"d":"$0.00"}},{"$f":"'MMA Rev-Exp Region 9'!AR$70","v":{"v":0,"d":"$0.00"}},{"$f":"'MMA Rev-Exp Region 9'!AS$70","v":{"v":0,"d":"$0.00"}},{"$f":"'MMA Rev-Exp Region 9'!AT$70","v":{"v":0,"d":"$0.00"}},{"$f":"'MMA Rev-Exp Region 9'!AU$70","v":{"v":0,"d":"$0.00"}},{"v":0,"d":"$0.00"}]
["MMA",null,null,{"$f":"Jurat!I$1","v":0},{"$f":"Jurat!D$33","v":"00:00:00"},"Q4","2017-12-31","Region 9","Operating Expense","Medical Benefits Expense","Expanded Benefits","10.1","Expanded Benefits FFS",{"$f":"'MMA Rev-Exp Region 9'!AK$72","v":{"v":0,"d":"$0.00"}},{"$f":"'MMA Rev-Exp Region 9'!AL$72","v":{"v":0,"d":"$0.00"}},{"$f":"'MMA Rev-Exp Region 9'!AM$72","v":{"v":0,"d":"$0.00"}},{"$f":"'MMA Rev-Exp Region 9'!AN$72","v":{"v":0,"d":"$0.00"}},{"$f":"'MMA Rev-Exp Region 9'!AO$72","v":{"v":0,"d":"$0.00"}},{"$f":"'MMA Rev-Exp Region 9'!AP$72","v":{"v":0,"d":"$0.00"}},{"$f":"'MMA Rev-Exp Region 9'!AQ$72","v":{"v":0,"d":"$0.00"}},{"$f":"'MMA Rev-Exp Region 9'!AR$72","v":{"v":0,"d":"$0.00"}},{"$f":"'MMA Rev-Exp Region 9'!AS$72","v":{"v":0,"d":"$0.00"}},{"$f":"'MMA Rev-Exp Region 9'!AT$72","v":{"v":0,"d":"$0.00"}},{"$f":"'MMA Rev-Exp Region 9'!AU$72","v":{"v":0,"d":"$0.00"}},{"v":0,"d":"$0.00"}]
["MMA",null,null,{"$f":"Jurat!I$1","v":0},{"$f":"Jurat!D$33","v":"00:00:00"},"Q4","2017-12-31","Region 9","Operating Expense","Medical Benefits Expense","Expanded Benefits","10.4","Expanded Benefits Settlements",{"$f":"'MMA Rev-Exp Region 9'!AK$75","v":{"v":0,"d":"$0.00"}},{"$f":"'MMA Rev-Exp Region 9'!AL$75","v":{"v":0,"d":"$0.00"}},{"$f":"'MMA Rev-Exp Region 9'!AM$75","v":{"v":0,"d":"$0.00"}},{"$f":"'MMA Rev-Exp Region 9'!AN$75","v":{"v":0,"d":"$0.00"}},{"$f":"'MMA Rev-Exp Region 9'!AO$75","v":{"v":0,"d":"$0.00"}},{"$f":"'MMA Rev-Exp Region 9'!AP$75","v":{"v":0,"d":"$0.00"}},{"$f":"'MMA Rev-Exp Region 9'!AQ$75","v":{"v":0,"d":"$0.00"}},{"$f":"'MMA Rev-Exp Region 9'!AR$75","v":{"v":0,"d":"$0.00"}},{"$f":"'MMA Rev-Exp Region 9'!AS$75","v":{"v":0,"d":"$0.00"}},{"$f":"'MMA Rev-Exp Region 9'!AT$75","v":{"v":0,"d":"$0.00"}},{"$f":"'MMA Rev-Exp Region 9'!AU$75","v":{"v":0,"d":"$0.00"}},{"v":0,"d":"$0.00"}]
["MMA",null,null,{"$f":"Jurat!I$1","v":0},{"$f":"Jurat!D$33","v":"00:00:00"},"Q4","2017-12-31","Region 9","Operating Expense","Medical Benefits Expense","Other Medical","11.8","Reinsurance Premiums",{"$f":"'MMA Rev-Exp Region 9'!AK$84","v":{"v":0,"d":"$0.00"}},{"$f":"'MMA Rev-Exp Region 9'!AL$84","v":{"v":0,"d":"$0.00"}},{"$f":"'MMA Rev-Exp Region 9'!AM$84","v":{"v":0,"d":"$0.00"}},{"$f":"'MMA Rev-Exp Region 9'!AN$84","v":{"v":0,"d":"$0.00"}},{"$f":"'MMA Rev-Exp Region 9'!AO$84","v":{"v":0,"d":"$0.00"}},{"$f":"'MMA Rev-Exp Region 9'!AP$84","v":{"v":0,"d":"$0.00"}},{"$f":"'MMA Rev-Exp Region 9'!AQ$84","v":{"v":0,"d":"$0.00"}},{"$f":"'MMA Rev-Exp Region 9'!AR$84","v":{"v":0,"d":"$0.00"}},{"$f":"'MMA Rev-Exp Region 9'!AS$84","v":{"v":0,"d":"$0.00"}},{"$f":"'MMA Rev-Exp Region 9'!AT$84","v":{"v":0,"d":"$0.00"}},{"$f":"'MMA Rev-Exp Region 9'!AU$84","v":{"v":0,"d":"$0.00"}},{"v":0,"d":"$0.00"}]
["MMA",null,null,{"$f":"Jurat!I$1","v":0},{"$f":"Jurat!D$33","v":"00:00:00"},"Q4","2017-12-31","Region 9","Operating Expense","Administrative Expense","Administrative","12.2","Administrative Services",{"$f":"'MMA Rev-Exp Region 9'!AK$91","v":{"v":0,"d":"$0.00"}},{"v":0,"d":"$0.00"},{"v":0,"d":"$0.00"},{"v":0,"d":"$0.00"},{"v":0,"d":"$0.00"},{"v":0,"d":"$0.00"},{"v":0,"d":"$0.00"},{"v":0,"d":"$0.00"},{"v":0,"d":"$0.00"},{"v":0,"d":"$0.00"},{"v":0,"d":"$0.00"},{"v":0,"d":"$0.00"}]
["MMA",null,null,{"$f":"Jurat!I$1","v":0},{"$f":"Jurat!D$33","v":"00:00:00"},"Q4","2017-12-31","Region 9","Operating Expense","Administrative Expense","Administrative","12.5","General  Administration",{"$f":"'MMA Rev-Exp Region 9'!AK$94","v":{"v":0,"d":"$0.00"}},{"v":0,"d":"$0.00"},{"v":0,"d":"$0.00"},{"v":0,"d":"$0.00"},{"v":0,"d":"$0.00"},{"v":0,"d":"$0.00"},{"v":0,"d":"$0.00"},{"v":0,"d":"$0.00"},{"v":0,"d":"$0.00"},{"v":0,"d":"$0.00"},{"v":0,"d":"$0.00"},{"v":0,"d":"$0.00"}]
["MMA",null,null,{"$f":"Jurat!I$1","v":0},{"$f":"Jurat!D$33","v":"00:00:00"},"Q4","2017-12-31","Region 9","Operating Expense","Taxes & Fees","Taxes & Fees","13.3","Section 9010 Health Insurance Providers Fee",{"$f":"'MMA Rev-Exp Region 9'!AK$99","v":{"v":0,"d":"$0.00"}},{"v":0,"d":"$0.00"},{"v":0,"d":"$0.00"},{"v":0,"d":"$0.00"},{"v":0,"d":"$0.00"},{"v":0,"d":"$0.00"},{"v":0,"d":"$0.00"},{"v":0,"d":"$0.00"},{"v":0,"d":"$0.00"},{"v":0,"d":"$0.00"},{"v":0,"d":"$0.00"},{"v":0,"d":"$0.00"}]
["MMA",null,null,{"$f":"Jurat!I$1","v":0},{"$f":"Jurat!D$33","v":"00:00:00"},"Q1","2017-03-31","Region 10","Operating Revenue","Capitation","Capitation",1.1,"Capitation",{"$f":"'MMA Rev-Exp Region 10'!D$11","v":{"v":0,"d":"$0.00"}},{"$f":"'MMA Rev-Exp Region 10'!E$11","v":{"v":0,"d":"$0.00"}},{"$f":"'MMA Rev-Exp Region 10'!F$11","v":{"v":0,"d":"$0.00"}},{"$f":"'MMA Rev-Exp Region 10'!G$11","v":{"v":0,"d":"$0.00"}},{"$f":"'MMA Rev-Exp Region 10'!H$11","v":{"v":0,"d":"$0.00"}},{"$f":"'MMA Rev-Exp Region 10'!I$11","v":{"v":0,"d":"$0.00"}},{"$f":"'MMA Rev-Exp Region 10'!J$11","v":{"v":0,"d":"$0.00"}},{"$f":"'MMA Rev-Exp Region 10'!K$11","v":{"v":0,"d":"$0.00"}},{"$f":"'MMA Rev-Exp Region 10'!L$11","v":{"v":0,"d":"$0.00"}},{"$f":"'MMA Rev-Exp Region 10'!M$11","v":{"v":0,"d":"$0.00"}},{"$f":"'MMA Rev-Exp Region 10'!N$11","v":{"v":0,"d":"$0.00"}},{"v":0,"d":"$0.00"}]
["MMA",null,null,{"$f":"Jurat!I$1","v":0},{"$f":"Jurat!D$33","v":"00:00:00"},"Q1","2017-03-31","Region 10","Operating Revenue","Kick Payments","Kick Payments - Maternity","1.4.1","Maternity Kick Payments",{"$f":"'MMA Rev-Exp Region 10'!D$14","v":{"v":0,"d":"$0.00"}},{"$f":"'MMA Rev-Exp Region 10'!E$14","v":{"v":0,"d":"$0.00"}},{"$f":"'MMA Rev-Exp Region 10'!F$14","v":{"v":0,"d":"$0.00"}},{"$f":"'MMA Rev-Exp Region 10'!G$14","v":{"v":0,"d":"$0.00"}},{"$f":"'MMA Rev-Exp Region 10'!H$14","v":{"v":0,"d":"$0.00"}},{"$f":"'MMA Rev-Exp Region 10'!I$14","v":{"v":0,"d":"$0.00"}},{"$f":"'MMA Rev-Exp Region 10'!J$14","v":{"v":0,"d":"$0.00"}},{"$f":"'MMA Rev-Exp Region 10'!K$14","v":{"v":0,"d":"$0.00"}},{"$f":"'MMA Rev-Exp Region 10'!L$14","v":{"v":0,"d":"$0.00"}},{"$f":"'MMA Rev-Exp Region 10'!M$14","v":{"v":0,"d":"$0.00"}},{"$f":"'MMA Rev-Exp Region 10'!N$14","v":{"v":0,"d":"$0.00"}},{"v":0,"d":"$0.00"}]
["MMA",null,null,{"$f":"Jurat!I$1","v":0},{"$f":"Jurat!D$33","v":"00:00:00"},"Q1","2017-03-31","Region 10","Operating Revenue","Other Revenue","Other Revenue - 9010","1.5","ACA § 9010 related payments",{"$f":"'MMA Rev-Exp Region 10'!D$15","v":{"v":0,"d":"$0.00"}},{"$f":"'MMA Rev-Exp Region 10'!E$15","v":{"v":0,"d":"$0.00"}},{"$f":"'MMA Rev-Exp Region 10'!F$15","v":{"v":0,"d":"$0.00"}},{"$f":"'MMA Rev-Exp Region 10'!G$15","v":{"v":0,"d":"$0.00"}},{"$f":"'MMA Rev-Exp Region 10'!H$15","v":{"v":0,"d":"$0.00"}},{"$f":"'MMA Rev-Exp Region 10'!I$15","v":{"v":0,"d":"$0.00"}},{"$f":"'MMA Rev-Exp Region 10'!J$15","v":{"v":0,"d":"$0.00"}},{"$f":"'MMA Rev-Exp Region 10'!K$15","v":{"v":0,"d":"$0.00"}},{"$f":"'MMA Rev-Exp Region 10'!L$15","v":{"v":0,"d":"$0.00"}},{"$f":"'MMA Rev-Exp Region 10'!M$15","v":{"v":0,"d":"$0.00"}},{"$f":"'MMA Rev-Exp Region 10'!N$15","v":{"v":0,"d":"$0.00"}},{"v":0,"d":"$0.00"}]
["MMA",null,null,{"$f":"Jurat!I$1","v":0},{"$f":"Jurat!D$33","v":"00:00:00"},"Q1","2017-03-31","Region 10","Operating Expense","Medical Benefits Expense","Hospital Services",2.2,"Ending IBNP for Inpatient Hospital Services",{"$f":"'MMA Rev-Exp Region 10'!D$21","v":{"v":0,"d":"$0.00"}},{"$f":"'MMA Rev-Exp Region 10'!E$21","v":{"v":0,"d":"$0.00"}},{"$f":"'MMA Rev-Exp Region 10'!F$21","v":{"v":0,"d":"$0.00"}},{"$f":"'MMA Rev-Exp Region 10'!G$21","v":{"v":0,"d":"$0.00"}},{"$f":"'MMA Rev-Exp Region 10'!H$21","v":{"v":0,"d":"$0.00"}},{"$f":"'MMA Rev-Exp Region 10'!I$21","v":{"v":0,"d":"$0.00"}},{"$f":"'MMA Rev-Exp Region 10'!J$21","v":{"v":0,"d":"$0.00"}},{"$f":"'MMA Rev-Exp Region 10'!K$21","v":{"v":0,"d":"$0.00"}},{"$f":"'MMA Rev-Exp Region 10'!L$21","v":{"v":0,"d":"$0.00"}},{"$f":"'MMA Rev-Exp Region 10'!M$21","v":{"v":0,"d":"$0.00"}},{"$f":"'MMA Rev-Exp Region 10'!N$21","v":{"v":0,"d":"$0.00"}},{"v":0,"d":"$0.00"}]
["MMA",null,null,{"$f":"Jurat!I$1","v":0},{"$f":"Jurat!D$33","v":"00:00:00"},"Q1","2017-03-31","Region 10","Operating Expense","Medical Benefits Expense","Hospital Services","2.6","Subcapitated Hospital Services",{"$f":"'MMA Rev-Exp Region 10'!D$25","v":{"v":0,"d":"$0.00"}},{"$f":"'MMA Rev-Exp Region 10'!E$25","v":{"v":0,"d":"$0.00"}},{"$f":"'MMA Rev-Exp Region 10'!F$25","v":{"v":0,"d":"$0.00"}},{"$f":"'MMA Rev-Exp Region 10'!G$25","v":{"v":0,"d":"$0.00"}},{"$f":"'MMA Rev-Exp Region 10'!H$25","v":{"v":0,"d":"$0.00"}},{"$f":"'MMA Rev-Exp Region 10'!I$25","v":{"v":0,"d":"$0.00"}},{"$f":"'MMA Rev-Exp Region 10'!J$25","v":{"v":0,"d":"$0.00"}},{"$f":"'MMA Rev-Exp Region 10'!K$25","v":{"v":0,"d":"$0.00"}},{"$f":"'MMA Rev-Exp Region 10'!L$25","v":{"v":0,"d":"$0.00"}},{"$f":"'MMA Rev-Exp Region 10'!M$25","v":{"v":0,"d":"$0.00"}},{"$f":"'MMA Rev-Exp Region 10'!N$25","v":{"v":0,"d":"$0.00"}},{"v":0,"d":"$0.00"}]
["MMA",null,null,{"$f":"Jurat!I$1","v":0},{"$f":"Jurat!D$33","v":"00:00:00"},"Q1","2017-03-31","Region 10","Operating Expense","Medical Benefits Expense","Professional Services",3.1,"Primary Care FFS",{"$f":"'MMA Rev-Exp Region 10'!D$29","v":{"v":0,"d":"$0.00"}},{"$f":"'MMA Rev-Exp Region 10'!E$29","v":{"v":0,"d":"$0.00"}},{"$f":"'MMA Rev-Exp Region 10'!F$29","v":{"v":0,"d":"$0.00"}},{"$f":"'MMA Rev-Exp Region 10'!G$29","v":{"v":0,"d":"$0.00"}},{"$f":"'MMA Rev-Exp Region 10'!H$29","v":{"v":0,"d":"$0.00"}},{"$f":"'MMA Rev-Exp Region 10'!I$29","v":{"v":0,"d":"$0.00"}},{"$f":"'MMA Rev-Exp Region 10'!J$29","v":{"v":0,"d":"$0.00"}},{"$f":"'MMA Rev-Exp Region 10'!K$29","v":{"v":0,"d":"$0.00"}},{"$f":"'MMA Rev-Exp Region 10'!L$29","v":{"v":0,"d":"$0.00"}},{"$f":"'MMA Rev-Exp Region 10'!M$29","v":{"v":0,"d":"$0.00"}},{"$f":"'MMA Rev-Exp Region 10'!N$29","v":{"v":0,"d":"$0.00"}},{"v":0,"d":"$0.00"}]
["MMA",null,null,{"$f":"Jurat!I$1","v":0},{"$f":"Jurat!D$33","v":"00:00:00"},"Q1","2017-03-31","Region 10","Operating Expense","Medical Benefits Expense","Professional Services",3.3,"Other Professional FFS",{"$f":"'MMA Rev-Exp Region 10'!D$31","v":{"v":0,"d":"$0.00"}},{"$f":"'MMA Rev-Exp Region 10'!E$31","v":{"v":0,"d":"$0.00"}},{"$f":"'MMA Rev-Exp Region 10'!F$31","v":{"v":0,"d":"$0.00"}},{"$f":"'MMA Rev-Exp Region 10'!G$31","v":{"v":0,"d":"$0.00"}},{"$f":"'MMA Rev-Exp Region 10'!H$31","v":{"v":0,"d":"$0.00"}},{"$f":"'MMA Rev-Exp Region 10'!I$31","v":{"v":0,"d":"$0.00"}},{"$f":"'MMA Rev-Exp Region 10'!J$31","v":{"v":0,"d":"$0.00"}},{"$f":"'MMA Rev-Exp Region 10'!K$31","v":{"v":0,"d":"$0.00"}},{"$f":"'MMA Rev-Exp Region 10'!L$31","v":{"v":0,"d":"$0.00"}},{"$f":"'MMA Rev-Exp Region 10'!M$31","v":{"v":0,"d":"$0.00"}},{"$f":"'MMA Rev-Exp Region 10'!N$31","v":{"v":0,"d":"$0.00"}},{"v":0,"d":"$0.00"}]
["MMA",null,null,{"$f":"Jurat!I$1","v":0},{"$f":"Jurat!D$33","v":"00:00:00"},"Q1","2017-03-31","Region 10","Operating Expense","Medical Benefits Expense","Professional Services","3.7","Professional Services Settlements",{"$f":"'MMA Rev-Exp Region 10'!D$35","v":{"v":0,"d":"$0.00"}},{"$f":"'MMA Rev-Exp Region 10'!E$35","v":{"v":0,"d":"$0.00"}},{"$f":"'MMA Rev-Exp Region 10'!F$35","v":{"v":0,"d":"$0.00"}},{"$f":"'MMA Rev-Exp Region 10'!G$35","v":{"v":0,"d":"$0.00"}},{"$f":"'MMA Rev-Exp Region 10'!H$35","v":{"v":0,"d":"$0.00"}},{"$f":"'MMA Rev-Exp Region 10'!I$35","v":{"v":0,"d":"$0.00"}},{"$f":"'MMA Rev-Exp Region 10'!J$35","v":{"v":0,"d":"$0.00"}},{"$f":"'MMA Rev-Exp Region 10'!K$35","v":{"v":0,"d":"$0.00"}},{"$f":"'MMA Rev-Exp Region 10'!L$35","v":{"v":0,"d":"$0.00"}},{"$f":"'MMA Rev-Exp Region 10'!M$35","v":{"v":0,"d":"$0.00"}},{"$f":"'MMA Rev-Exp Region 10'!N$35","v":{"v":0,"d":"$0.00"}},{"v":0,"d":"$0.00"}]
["MMA",null,null,{"$f":"Jurat!I$1","v":0},{"$f":"Jurat!D$33","v":"00:00:00"},"Q1","2017-03-31","Region 10","Operating Expense","Medical Benefits Expense","Maternity Services","4.3.1","Maternity Settlements",{"$f":"'MMA Rev-Exp Region 10'!D$39","v":{"v":0,"d":"$0.00"}},{"$f":"'MMA Rev-Exp Region 10'!E$39","v":{"v":0,"d":"$0.00"}},{"$f":"'MMA Rev-Exp Region 10'!F$39","v":{"v":0,"d":"$0.00"}},{"$f":"'MMA Rev-Exp Region 10'!G$39","v":{"v":0,"d":"$0.00"}},{"$f":"'MMA Rev-Exp Region 10'!H$39","v":{"v":0,"d":"$0.00"}},{"$f":"'MMA Rev-Exp Region 10'!I$39","v":{"v":0,"d":"$0.00"}},{"$f":"'MMA Rev-Exp Region 10'!J$39","v":{"v":0,"d":"$0.00"}},{"$f":"'MMA Rev-Exp Region 10'!K$39","v":{"v":0,"d":"$0.00"}},{"$f":"'MMA Rev-Exp Region 10'!L$39","v":{"v":0,"d":"$0.00"}},{"$f":"'MMA Rev-Exp Region 10'!M$39","v":{"v":0,"d":"$0.00"}},{"$f":"'MMA Rev-Exp Region 10'!N$39","v":{"v":0,"d":"$0.00"}},{"v":0,"d":"$0.00"}]
["MMA",null,null,{"$f":"Jurat!I$1","v":0},{"$f":"Jurat!D$33","v":"00:00:00"},"Q1","2017-03-31","Region 10","Operating Expense","Medical Benefits Expense","Mental Health Services",5.1,"Mental Health & Substance Abuse FFS",{"$f":"'MMA Rev-Exp Region 10'!D$41","v":{"v":0,"d":"$0.00"}},{"$f":"'MMA Rev-Exp Region 10'!E$41","v":{"v":0,"d":"$0.00"}},{"$f":"'MMA Rev-Exp Region 10'!F$41","v":{"v":0,"d":"$0.00"}},{"$f":"'MMA Rev-Exp Region 10'!G$41","v":{"v":0,"d":"$0.00"}},{"$f":"'MMA Rev-Exp Region 10'!H$41","v":{"v":0,"d":"$0.00"}},{"$f":"'MMA Rev-Exp Region 10'!I$41","v":{"v":0,"d":"$0.00"}},{"$f":"'MMA Rev-Exp Region 10'!J$41","v":{"v":0,"d":"$0.00"}},{"$f":"'MMA Rev-Exp Region 10'!K$41","v":{"v":0,"d":"$0.00"}},{"$f":"'MMA Rev-Exp Region 10'!L$41","v":{"v":0,"d":"$0.00"}},{"$f":"'MMA Rev-Exp Region 10'!M$41","v":{"v":0,"d":"$0.00"}},{"$f":"'MMA Rev-Exp Region 10'!N$41","v":{"v":0,"d":"$0.00"}},{"v":0,"d":"$0.00"}]
["MMA",null,null,{"$f":"Jurat!I$1","v":0},{"$f":"Jurat!D$33","v":"00:00:00"},"Q1","2017-03-31","Region 10","Operating Expense","Medical Benefits Expense","Mental Health Services","5.4","Mental Health Settlements",{"$f":"'MMA Rev-Exp Region 10'!D$44","v":{"v":0,"d":"$0.00"}},{"$f":"'MMA Rev-Exp Region 10'!E$44","v":{"v":0,"d":"$0.00"}},{"$f":"'MMA Rev-Exp Region 10'!F$44","v":{"v":0,"d":"$0.00"}},{"$f":"'MMA Rev-Exp Region 10'!G$44","v":{"v":0,"d":"$0.00"}},{"$f":"'MMA Rev-Exp Region 10'!H$44","v":{"v":0,"d":"$0.00"}},{"$f":"'MMA Rev-Exp Region 10'!I$44","v":{"v":0,"d":"$0.00"}},{"$f":"'MMA Rev-Exp Region 10'!J$44","v":{"v":0,"d":"$0.00"}},{"$f":"'MMA Rev-Exp Region 10'!K$44","v":{"v":0,"d":"$0.00"}},{"$f":"'MMA Rev-Exp Region 10'!L$44","v":{"v":0,"d":"$0.00"}},{"$f":"'MMA Rev-Exp Region 10'!M$44","v":{"v":0,"d":"$0.00"}},{"$f":"'MMA Rev-Exp Region 10'!N$44","v":{"v":0,"d":"$0.00"}},{"v":0,"d":"$0.00"}]
["MMA",null,null,{"$f":"Jurat!I$1","v":0},{"$f":"Jurat!D$33","v":"00:00:00"},"Q1","2017-03-31","Region 10","Operating Expense","Medical Benefits Expense","Dental Services",6.3,"Ending IBNP for Dental Services",{"$f":"'MMA Rev-Exp Region 10'!D$48","v":{"v":0,"d":"$0.00"}},{"$f":"'MMA Rev-Exp Region 10'!E$48","v":{"v":0,"d":"$0.00"}},{"$f":"'MMA Rev-Exp Region 10'!F$48","v":{"v":0,"d":"$0.00"}},{"$f":"'MMA Rev-Exp Region 10'!G$48","v":{"v":0,"d":"$0.00"}},{"$f":"'MMA Rev-Exp Region 10'!H$48","v":{"v":0,"d":"$0.00"}},{"$f":"'MMA Rev-Exp Region 10'!I$48","v":{"v":0,"d":"$0.00"}},{"$f":"'MMA Rev-Exp Region 10'!J$48","v":{"v":0,"d":"$0.00"}},{"$f":"'MMA Rev-Exp Region 10'!K$48","v":{"v":0,"d":"$0.00"}},{"$f":"'MMA Rev-Exp Region 10'!L$48","v":{"v":0,"d":"$0.00"}},{"$f":"'MMA Rev-Exp Region 10'!M$48","v":{"v":0,"d":"$0.00"}},{"$f":"'MMA Rev-Exp Region 10'!N$48","v":{"v":0,"d":"$0.00"}},{"v":0,"d":"$0.00"}]
["MMA",null,null,{"$f":"Jurat!I$1","v":0},{"$f":"Jurat!D$33","v":"00:00:00"},"Q1","2017-03-31","Region 10","Operating Expense","Medical Benefits Expense","Transportation Services",7.3,"Ending IBNP for Transportation",{"$f":"'MMA Rev-Exp Region 10'!D$53","v":{"v":0,"d":"$0.00"}},{"$f":"'MMA Rev-Exp Region 10'!E$53","v":{"v":0,"d":"$0.00"}},{"$f":"'MMA Rev-Exp Region 10'!F$53","v":{"v":0,"d":"$0.00"}},{"$f":"'MMA Rev-Exp Region 10'!G$53","v":{"v":0,"d":"$0.00"}},{"$f":"'MMA Rev-Exp Region 10'!H$53","v":{"v":0,"d":"$0.00"}},{"$f":"'MMA Rev-Exp Region 10'!I$53","v":{"v":0,"d":"$0.00"}},{"$f":"'MMA Rev-Exp Region 10'!J$53","v":{"v":0,"d":"$0.00"}},{"$f":"'MMA Rev-Exp Region 10'!K$53","v":{"v":0,"d":"$0.00"}},{"$f":"'MMA Rev-Exp Region 10'!L$53","v":{"v":0,"d":"$0.00"}},{"$f":"'MMA Rev-Exp Region 10'!M$53","v":{"v":0,"d":"$0.00"}},{"$f":"'MMA Rev-Exp Region 10'!N$53","v":{"v":0,"d":"$0.00"}},{"v":0,"d":"$0.00"}]
["MMA",null,null,{"$f":"Jurat!I$1","v":0},{"$f":"Jurat!D$33","v":"00:00:00"},"Q1","2017-03-31","Region 10","Operating Expense","Medical Benefits Expense","Pharmacy Services","8.2","Hepatitis C Prescription Drug FFS",{"$f":"'MMA Rev-Exp Region 10'!D$57","v":{"v":0,"d":"$0.00"}},{"$f":"'MMA Rev-Exp Region 10'!E$57","v":{"v":0,"d":"$0.00"}},{"$f":"'MMA Rev-Exp Region 10'!F$57","v":{"v":0,"d":"$0.00"}},{"$f":"'MMA Rev-Exp Region 10'!G$57","v":{"v":0,"d":"$0.00"}},{"$f":"'MMA Rev-Exp Region 10'!H$57","v":{"v":0,"d":"$0.00"}},{"$f":"'MMA Rev-Exp Region 10'!I$57","v":{"v":0,"d":"$0.00"}},{"$f":"'MMA Rev-Exp Region 10'!J$57","v":{"v":0,"d":"$0.00"}},{"$f":"'MMA Rev-Exp Region 10'!K$57","v":{"v":0,"d":"$0.00"}},{"$f":"'MMA Rev-Exp Region 10'!L$57","v":{"v":0,"d":"$0.00"}},{"$f":"'MMA Rev-Exp Region 10'!M$57","v":{"v":0,"d":"$0.00"}},{"$f":"'MMA Rev-Exp Region 10'!N$57","v":{"v":0,"d":"$0.00"}},{"v":0,"d":"$0.00"}]
["MMA",null,null,{"$f":"Jurat!I$1","v":0},{"$f":"Jurat!D$33","v":"00:00:00"},"Q1","2017-03-31","Region 10","Operating Expense","Medical Benefits Expense","Pharmacy Services","8.4","Prescription Drug Rebates ",{"$f":"'MMA Rev-Exp Region 10'!D$59","v":{"v":0,"d":"$0.00"}},{"$f":"'MMA Rev-Exp Region 10'!E$59","v":{"v":0,"d":"$0.00"}},{"$f":"'MMA Rev-Exp Region 10'!F$59","v":{"v":0,"d":"$0.00"}},{"$f":"'MMA Rev-Exp Region 10'!G$59","v":{"v":0,"d":"$0.00"}},{"$f":"'MMA Rev-Exp Region 10'!H$59","v":{"v":0,"d":"$0.00"}},{"$f":"'MMA Rev-Exp Region 10'!I$59","v":{"v":0,"d":"$0.00"}},{"$f":"'MMA Rev-Exp Region 10'!J$59","v":{"v":0,"d":"$0.00"}},{"$f":"'MMA Rev-Exp Region 10'!K$59","v":{"v":0,"d":"$0.00"}},{"$f":"'MMA Rev-Exp Region 10'!L$59","v":{"v":0,"d":"$0.00"}},{"$f":"'MMA Rev-Exp Region 10'!M$59","v":{"v":0,"d":"$0.00"}},{"$f":"'MMA Rev-Exp Region 10'!N$59","v":{"v":0,"d":"$0.00"}},{"v":0,"d":"$0.00"}]
["MMA",null,null,{"$f":"Jurat!I$1","v":0},{"$f":"Jurat!D$33","v":"00:00:00"},"Q1","2017-03-31","Region 10","Operating Expense","Medical Benefits Expense","Other MMA Services",9.1,"Home Health, Private Duty Nursing, Personal Care FFS",{"$f":"'MMA Rev-Exp Region 10'!D$64","v":{"v":0,"d":"$0.00"}},{"$f":"'MMA Rev-Exp Region 10'!E$64","v":{"v":0,"d":"$0.00"}},{"$f":"'MMA Rev-Exp Region 10'!F$64","v":{"v":0,"d":"$0.00"}},{"$f":"'MMA Rev-Exp Region 10'!G$64","v":{"v":0,"d":"$0.00"}},{"$f":"'MMA Rev-Exp Region 10'!H$64","v":{"v":0,"d":"$0.00"}},{"$f":"'MMA Rev-Exp Region 10'!I$64","v":{"v":0,"d":"$0.00"}},{"$f":"'MMA Rev-Exp Region 10'!J$64","v":{"v":0,"d":"$0.00"}},{"$f":"'MMA Rev-Exp Region 10'!K$64","v":{"v":0,"d":"$0.00"}},{"$f":"'MMA Rev-Exp Region 10'!L$64","v":{"v":0,"d":"$0.00"}},{"$f":"'MMA Rev-Exp Region 10'!M$64","v":{"v":0,"d":"$0.00"}},{"$f":"'MMA Rev-Exp Region 10'!N$64","v":{"v":0,"d":"$0.00"}},{"v":0,"d":"$0.00"}]
["MMA",null,null,{"$f":"Jurat!I$1","v":0},{"$f":"Jurat!D$33","v":"00:00:00"},"Q1","2017-03-31","Region 10","Operating Expense","Medical Benefits Expense","Other MMA Services","9.4","Other State Plan Services FFS",{"$f":"'MMA Rev-Exp Region 10'!D$67","v":{"v":0,"d":"$0.00"}},{"$f":"'MMA Rev-Exp Region 10'!E$67","v":{"v":0,"d":"$0.00"}},{"$f":"'MMA Rev-Exp Region 10'!F$67","v":{"v":0,"d":"$0.00"}},{"$f":"'MMA Rev-Exp Region 10'!G$67","v":{"v":0,"d":"$0.00"}},{"$f":"'MMA Rev-Exp Region 10'!H$67","v":{"v":0,"d":"$0.00"}},{"$f":"'MMA Rev-Exp Region 10'!I$67","v":{"v":0,"d":"$0.00"}},{"$f":"'MMA Rev-Exp Region 10'!J$67","v":{"v":0,"d":"$0.00"}},{"$f":"'MMA Rev-Exp Region 10'!K$67","v":{"v":0,"d":"$0.00"}},{"$f":"'MMA Rev-Exp Region 10'!L$67","v":{"v":0,"d":"$0.00"}},{"$f":"'MMA Rev-Exp Region 10'!M$67","v":{"v":0,"d":"$0.00"}},{"$f":"'MMA Rev-Exp Region 10'!N$67","v":{"v":0,"d":"$0.00"}},{"v":0,"d":"$0.00"}]
["MMA",null,null,{"$f":"Jurat!I$1","v":0},{"$f":"Jurat!D$33","v":"00:00:00"},"Q1","2017-03-31","Region 10","Operating Expense","Medical Benefits Expense","Other MMA Services","9.5","Other Services Subcapitation",{"$f":"'MMA Rev-Exp Region 10'!D$68","v":{"v":0,"d":"$0.00"}},{"$f":"'MMA Rev-Exp Region 10'!E$68","v":{"v":0,"d":"$0.00"}},{"$f":"'MMA Rev-Exp Region 10'!F$68","v":{"v":0,"d":"$0.00"}},{"$f":"'MMA Rev-Exp Region 10'!G$68","v":{"v":0,"d":"$0.00"}},{"$f":"'MMA Rev-Exp Region 10'!H$68","v":{"v":0,"d":"$0.00"}},{"$f":"'MMA Rev-Exp Region 10'!I$68","v":{"v":0,"d":"$0.00"}},{"$f":"'MMA Rev-Exp Region 10'!J$68","v":{"v":0,"d":"$0.00"}},{"$f":"'MMA Rev-Exp Region 10'!K$68","v":{"v":0,"d":"$0.00"}},{"$f":"'MMA Rev-Exp Region 10'!L$68","v":{"v":0,"d":"$0.00"}},{"$f":"'MMA Rev-Exp Region 10'!M$68","v":{"v":0,"d":"$0.00"}},{"$f":"'MMA Rev-Exp Region 10'!N$68","v":{"v":0,"d":"$0.00"}},{"v":0,"d":"$0.00"}]
["MMA",null,null,{"$f":"Jurat!I$1","v":0},{"$f":"Jurat!D$33","v":"00:00:00"},"Q1","2017-03-31","Region 10","Operating Expense","Medical Benefits Expense","Expanded Benefits","10.1","Expanded Benefits FFS",{"$f":"'MMA Rev-Exp Region 10'!D$72","v":{"v":0,"d":"$0.00"}},{"$f":"'MMA Rev-Exp Region 10'!E$72","v":{"v":0,"d":"$0.00"}},{"$f":"'MMA Rev-Exp Region 10'!F$72","v":{"v":0,"d":"$0.00"}},{"$f":"'MMA Rev-Exp Region 10'!G$72","v":{"v":0,"d":"$0.00"}},{"$f":"'MMA Rev-Exp Region 10'!H$72","v":{"v":0,"d":"$0.00"}},{"$f":"'MMA Rev-Exp Region 10'!I$72","v":{"v":0,"d":"$0.00"}},{"$f":"'MMA Rev-Exp Region 10'!J$72","v":{"v":0,"d":"$0.00"}},{"$f":"'MMA Rev-Exp Region 10'!K$72","v":{"v":0,"d":"$0.00"}},{"$f":"'MMA Rev-Exp Region 10'!L$72","v":{"v":0,"d":"$0.00"}},{"$f":"'MMA Rev-Exp Region 10'!M$72","v":{"v":0,"d":"$0.00"}},{"$f":"'MMA Rev-Exp Region 10'!N$72","v":{"v":0,"d":"$0.00"}},{"v":0,"d":"$0.00"}]
["MMA",null,null,{"$f":"Jurat!I$1","v":0},{"$f":"Jurat!D$33","v":"00:00:00"},"Q1","2017-03-31","Region 10","Operating Expense","Medical Benefits Expense","Expanded Benefits","10.4","Expanded Benefits Settlements",{"$f":"'MMA Rev-Exp Region 10'!D$75","v":{"v":0,"d":"$0.00"}},{"$f":"'MMA Rev-Exp Region 10'!E$75","v":{"v":0,"d":"$0.00"}},{"$f":"'MMA Rev-Exp Region 10'!F$75","v":{"v":0,"d":"$0.00"}},{"$f":"'MMA Rev-Exp Region 10'!G$75","v":{"v":0,"d":"$0.00"}},{"$f":"'MMA Rev-Exp Region 10'!H$75","v":{"v":0,"d":"$0.00"}},{"$f":"'MMA Rev-Exp Region 10'!I$75","v":{"v":0,"d":"$0.00"}},{"$f":"'MMA Rev-Exp Region 10'!J$75","v":{"v":0,"d":"$0.00"}},{"$f":"'MMA Rev-Exp Region 10'!K$75","v":{"v":0,"d":"$0.00"}},{"$f":"'MMA Rev-Exp Region 10'!L$75","v":{"v":0,"d":"$0.00"}},{"$f":"'MMA Rev-Exp Region 10'!M$75","v":{"v":0,"d":"$0.00"}},{"$f":"'MMA Rev-Exp Region 10'!N$75","v":{"v":0,"d":"$0.00"}},{"v":0,"d":"$0.00"}]
["MMA",null,null,{"$f":"Jurat!I$1","v":0},{"$f":"Jurat!D$33","v":"00:00:00"},"Q1","2017-03-31","Region 10","Operating Expense","Medical Benefits Expense","Other Medical","11.9","Reinsurance Recoveries",{"$f":"'MMA Rev-Exp Region 10'!D$85","v":{"v":0,"d":"$0.00"}},{"$f":"'MMA Rev-Exp Region 10'!E$85","v":{"v":0,"d":"$0.00"}},{"$f":"'MMA Rev-Exp Region 10'!F$85","v":{"v":0,"d":"$0.00"}},{"$f":"'MMA Rev-Exp Region 10'!G$85","v":{"v":0,"d":"$0.00"}},{"$f":"'MMA Rev-Exp Region 10'!H$85","v":{"v":0,"d":"$0.00"}},{"$f":"'MMA Rev-Exp Region 10'!I$85","v":{"v":0,"d":"$0.00"}},{"$f":"'MMA Rev-Exp Region 10'!J$85","v":{"v":0,"d":"$0.00"}},{"$f":"'MMA Rev-Exp Region 10'!K$85","v":{"v":0,"d":"$0.00"}},{"$f":"'MMA Rev-Exp Region 10'!L$85","v":{"v":0,"d":"$0.00"}},{"$f":"'MMA Rev-Exp Region 10'!M$85","v":{"v":0,"d":"$0.00"}},{"$f":"'MMA Rev-Exp Region 10'!N$85","v":{"v":0,"d":"$0.00"}},{"v":0,"d":"$0.00"}]
["MMA",null,null,{"$f":"Jurat!I$1","v":0},{"$f":"Jurat!D$33","v":"00:00:00"},"Q1","2017-03-31","Region 10","Operating Expense","Administrative Expense","Administrative","12.3","Information Systems",{"$f":"'MMA Rev-Exp Region 10'!D$92","v":{"v":0,"d":"$0.00"}},{"v":0,"d":"$0.00"},{"v":0,"d":"$0.00"},{"v":0,"d":"$0.00"},{"v":0,"d":"$0.00"},{"v":0,"d":"$0.00"},{"v":0,"d":"$0.00"},{"v":0,"d":"$0.00"},{"v":0,"d":"$0.00"},{"v":0,"d":"$0.00"},{"v":0,"d":"$0.00"},{"v":0,"d":"$0.00"}]
["MMA",null,null,{"$f":"Jurat!I$1","v":0},{"$f":"Jurat!D$33","v":"00:00:00"},"Q1","2017-03-31","Region 10","Operating Expense","Taxes & Fees","Taxes & Fees","13.1","State Premium tax",{"$f":"'MMA Rev-Exp Region 10'!D$97","v":{"v":0,"d":"$0.00"}},{"v":0,"d":"$0.00"},{"v":0,"d":"$0.00"},{"v":0,"d":"$0.00"},{"v":0,"d":"$0.00"},{"v":0,"d":"$0.00"},{"v":0,"d":"$0.00"},{"v":0,"d":"$0.00"},{"v":0,"d":"$0.00"},{"v":0,"d":"$0.00"},{"v":0,"d":"$0.00"},{"v":0,"d":"$0.00"}]
["MMA",null,null,{"$f":"Jurat!I$1","v":0},{"$f":"Jurat!D$33","v":"00:00:00"},"Q1","2017-03-31","Region 10","Non-Operating Expense","Income Tax Expense","Income Tax Expense","16.0","Income Tax Expense",{"$f":"'MMA Rev-Exp Region 10'!D$106","v":{"v":0,"d":"$0.00"}},{"v":0,"d":"$0.00"},{"v":0,"d":"$0.00"},{"v":0,"d":"$0.00"},{"v":0,"d":"$0.00"},{"v":0,"d":"$0.00"},{"v":0,"d":"$0.00"},{"v":0,"d":"$0.00"},{"v":0,"d":"$0.00"},{"v":0,"d":"$0.00"},{"v":0,"d":"$0.00"},{"v":0,"d":"$0.00"}]
["MMA",null,null,{"$f":"Jurat!I$1","v":0},{"$f":"Jurat!D$33","v":"00:00:00"},"Q2","2017-06-30","Region 10","Member Months","Member Months","Member Months",null,"Member Months",{"$f":"'MMA Rev-Exp Region 10'!O$9","v":{"v":0,"d":"$0.00"}},{"$f":"'MMA Rev-Exp Region 10'!P$9","v":{"v":0,"d":"$0.00"}},{"$f":"'MMA Rev-Exp Region 10'!Q$9","v":{"v":0,"d":"$0.00"}},{"$f":"'MMA Rev-Exp Region 10'!R$9","v":{"v":0,"d":"$0.00"}},{"$f":"'MMA Rev-Exp Region 10'!S$9","v":{"v":0,"d":"$0.00"}},{"$f":"'MMA Rev-Exp Region 10'!T$9","v":{"v":0,"d":"$0.00"}},{"$f":"'MMA Rev-Exp Region 10'!U$9","v":{"v":0,"d":"$0.00"}},{"$f":"'MMA Rev-Exp Region 10'!V$9","v":{"v":0,"d":"$0.00"}},{"$f":"'MMA Rev-Exp Region 10'!W$9","v":{"v":0,"d":"$0.00"}},{"$f":"'MMA Rev-Exp Region 10'!X$9","v":{"v":0,"d":"$0.00"}},{"$f":"'MMA Rev-Exp Region 10'!Y$9","v":{"v":0,"d":"$0.00"}},{"v":0,"d":"$0.00"}]
["MMA",null,null,{"$f":"Jurat!I$1","v":0},{"$f":"Jurat!D$33","v":"00:00:00"},"Q2","2017-06-30","Region 10","Operating Revenue","Kick Payments","Kick Payments - Transplant",1.2,"Transplant Kick Payments",{"$f":"'MMA Rev-Exp Region 10'!O$12","v":{"v":0,"d":"$0.00"}},{"$f":"'MMA Rev-Exp Region 10'!P$12","v":{"v":0,"d":"$0.00"}},{"$f":"'MMA Rev-Exp Region 10'!Q$12","v":{"v":0,"d":"$0.00"}},{"$f":"'MMA Rev-Exp Region 10'!R$12","v":{"v":0,"d":"$0.00"}},{"$f":"'MMA Rev-Exp Region 10'!S$12","v":{"v":0,"d":"$0.00"}},{"$f":"'MMA Rev-Exp Region 10'!T$12","v":{"v":0,"d":"$0.00"}},{"$f":"'MMA Rev-Exp Region 10'!U$12","v":{"v":0,"d":"$0.00"}},{"$f":"'MMA Rev-Exp Region 10'!V$12","v":{"v":0,"d":"$0.00"}},{"$f":"'MMA Rev-Exp Region 10'!W$12","v":{"v":0,"d":"$0.00"}},{"$f":"'MMA Rev-Exp Region 10'!X$12","v":{"v":0,"d":"$0.00"}},{"$f":"'MMA Rev-Exp Region 10'!Y$12","v":{"v":0,"d":"$0.00"}},{"v":0,"d":"$0.00"}]
["MMA",null,null,{"$f":"Jurat!I$1","v":0},{"$f":"Jurat!D$33","v":"00:00:00"},"Q2","2017-06-30","Region 10","Operating Revenue","Other Revenue","Other Revenue - 9010","1.5","ACA § 9010 related payments",{"$f":"'MMA Rev-Exp Region 10'!O$15","v":{"v":0,"d":"$0.00"}},{"$f":"'MMA Rev-Exp Region 10'!P$15","v":{"v":0,"d":"$0.00"}},{"$f":"'MMA Rev-Exp Region 10'!Q$15","v":{"v":0,"d":"$0.00"}},{"$f":"'MMA Rev-Exp Region 10'!R$15","v":{"v":0,"d":"$0.00"}},{"$f":"'MMA Rev-Exp Region 10'!S$15","v":{"v":0,"d":"$0.00"}},{"$f":"'MMA Rev-Exp Region 10'!T$15","v":{"v":0,"d":"$0.00"}},{"$f":"'MMA Rev-Exp Region 10'!U$15","v":{"v":0,"d":"$0.00"}},{"$f":"'MMA Rev-Exp Region 10'!V$15","v":{"v":0,"d":"$0.00"}},{"$f":"'MMA Rev-Exp Region 10'!W$15","v":{"v":0,"d":"$0.00"}},{"$f":"'MMA Rev-Exp Region 10'!X$15","v":{"v":0,"d":"$0.00"}},{"$f":"'MMA Rev-Exp Region 10'!Y$15","v":{"v":0,"d":"$0.00"}},{"v":0,"d":"$0.00"}]
["MMA",null,null,{"$f":"Jurat!I$1","v":0},{"$f":"Jurat!D$33","v":"00:00:00"},"Q2","2017-06-30","Region 10","Operating Expense","Medical Benefits Expense","Hospital Services",2.2,"Ending IBNP for Inpatient Hospital Services",{"$f":"'MMA Rev-Exp Region 10'!O$21","v":{"v":0,"d":"$0.00"}},{"$f":"'MMA Rev-Exp Region 10'!P$21","v":{"v":0,"d":"$0.00"}},{"$f":"'MMA Rev-Exp Region 10'!Q$21","v":{"v":0,"d":"$0.00"}},{"$f":"'MMA Rev-Exp Region 10'!R$21","v":{"v":0,"d":"$0.00"}},{"$f":"'MMA Rev-Exp Region 10'!S$21","v":{"v":0,"d":"$0.00"}},{"$f":"'MMA Rev-Exp Region 10'!T$21","v":{"v":0,"d":"$0.00"}},{"$f":"'MMA Rev-Exp Region 10'!U$21","v":{"v":0,"d":"$0.00"}},{"$f":"'MMA Rev-Exp Region 10'!V$21","v":{"v":0,"d":"$0.00"}},{"$f":"'MMA Rev-Exp Region 10'!W$21","v":{"v":0,"d":"$0.00"}},{"$f":"'MMA Rev-Exp Region 10'!X$21","v":{"v":0,"d":"$0.00"}},{"$f":"'MMA Rev-Exp Region 10'!Y$21","v":{"v":0,"d":"$0.00"}},{"v":0,"d":"$0.00"}]
["MMA",null,null,{"$f":"Jurat!I$1","v":0},{"$f":"Jurat!D$33","v":"00:00:00"},"Q2","2017-06-30","Region 10","Operating Expense","Medical Benefits Expense","Hospital Services","2.6","Subcapitated Hospital Services",{"$f":"'MMA Rev-Exp Region 10'!O$25","v":{"v":0,"d":"$0.00"}},{"$f":"'MMA Rev-Exp Region 10'!P$25","v":{"v":0,"d":"$0.00"}},{"$f":"'MMA Rev-Exp Region 10'!Q$25","v":{"v":0,"d":"$0.00"}},{"$f":"'MMA Rev-Exp Region 10'!R$25","v":{"v":0,"d":"$0.00"}},{"$f":"'MMA Rev-Exp Region 10'!S$25","v":{"v":0,"d":"$0.00"}},{"$f":"'MMA Rev-Exp Region 10'!T$25","v":{"v":0,"d":"$0.00"}},{"$f":"'MMA Rev-Exp Region 10'!U$25","v":{"v":0,"d":"$0.00"}},{"$f":"'MMA Rev-Exp Region 10'!V$25","v":{"v":0,"d":"$0.00"}},{"$f":"'MMA Rev-Exp Region 10'!W$25","v":{"v":0,"d":"$0.00"}},{"$f":"'MMA Rev-Exp Region 10'!X$25","v":{"v":0,"d":"$0.00"}},{"$f":"'MMA Rev-Exp Region 10'!Y$25","v":{"v":0,"d":"$0.00"}},{"v":0,"d":"$0.00"}]
["MMA",null,null,{"$f":"Jurat!I$1","v":0},{"$f":"Jurat!D$33","v":"00:00:00"},"Q2","2017-06-30","Region 10","Operating Expense","Medical Benefits Expense","Professional Services",3.1,"Primary Care FFS",{"$f":"'MMA Rev-Exp Region 10'!O$29","v":{"v":0,"d":"$0.00"}},{"$f":"'MMA Rev-Exp Region 10'!P$29","v":{"v":0,"d":"$0.00"}},{"$f":"'MMA Rev-Exp Region 10'!Q$29","v":{"v":0,"d":"$0.00"}},{"$f":"'MMA Rev-Exp Region 10'!R$29","v":{"v":0,"d":"$0.00"}},{"$f":"'MMA Rev-Exp Region 10'!S$29","v":{"v":0,"d":"$0.00"}},{"$f":"'MMA Rev-Exp Region 10'!T$29","v":{"v":0,"d":"$0.00"}},{"$f":"'MMA Rev-Exp Region 10'!U$29","v":{"v":0,"d":"$0.00"}},{"$f":"'MMA Rev-Exp Region 10'!V$29","v":{"v":0,"d":"$0.00"}},{"$f":"'MMA Rev-Exp Region 10'!W$29","v":{"v":0,"d":"$0.00"}},{"$f":"'MMA Rev-Exp Region 10'!X$29","v":{"v":0,"d":"$0.00"}},{"$f":"'MMA Rev-Exp Region 10'!Y$29","v":{"v":0,"d":"$0.00"}},{"v":0,"d":"$0.00"}]
["MMA",null,null,{"$f":"Jurat!I$1","v":0},{"$f":"Jurat!D$33","v":"00:00:00"},"Q2","2017-06-30","Region 10","Operating Expense","Medical Benefits Expense","Professional Services","3.5","Subcapitated Professional Services",{"$f":"'MMA Rev-Exp Region 10'!O$33","v":{"v":0,"d":"$0.00"}},{"$f":"'MMA Rev-Exp Region 10'!P$33","v":{"v":0,"d":"$0.00"}},{"$f":"'MMA Rev-Exp Region 10'!Q$33","v":{"v":0,"d":"$0.00"}},{"$f":"'MMA Rev-Exp Region 10'!R$33","v":{"v":0,"d":"$0.00"}},{"$f":"'MMA Rev-Exp Region 10'!S$33","v":{"v":0,"d":"$0.00"}},{"$f":"'MMA Rev-Exp Region 10'!T$33","v":{"v":0,"d":"$0.00"}},{"$f":"'MMA Rev-Exp Region 10'!U$33","v":{"v":0,"d":"$0.00"}},{"$f":"'MMA Rev-Exp Region 10'!V$33","v":{"v":0,"d":"$0.00"}},{"$f":"'MMA Rev-Exp Region 10'!W$33","v":{"v":0,"d":"$0.00"}},{"$f":"'MMA Rev-Exp Region 10'!X$33","v":{"v":0,"d":"$0.00"}},{"$f":"'MMA Rev-Exp Region 10'!Y$33","v":{"v":0,"d":"$0.00"}},{"v":0,"d":"$0.00"}]
["MMA",null,null,{"$f":"Jurat!I$1","v":0},{"$f":"Jurat!D$33","v":"00:00:00"},"Q2","2017-06-30","Region 10","Operating Expense","Medical Benefits Expense","Maternity Services","4.1.1","Maternity Services",{"$f":"'MMA Rev-Exp Region 10'!O$37","v":{"v":0,"d":"$0.00"}},{"$f":"'MMA Rev-Exp Region 10'!P$37","v":{"v":0,"d":"$0.00"}},{"$f":"'MMA Rev-Exp Region 10'!Q$37","v":{"v":0,"d":"$0.00"}},{"$f":"'MMA Rev-Exp Region 10'!R$37","v":{"v":0,"d":"$0.00"}},{"$f":"'MMA Rev-Exp Region 10'!S$37","v":{"v":0,"d":"$0.00"}},{"$f":"'MMA Rev-Exp Region 10'!T$37","v":{"v":0,"d":"$0.00"}},{"$f":"'MMA Rev-Exp Region 10'!U$37","v":{"v":0,"d":"$0.00"}},{"$f":"'MMA Rev-Exp Region 10'!V$37","v":{"v":0,"d":"$0.00"}},{"$f":"'MMA Rev-Exp Region 10'!W$37","v":{"v":0,"d":"$0.00"}},{"$f":"'MMA Rev-Exp Region 10'!X$37","v":{"v":0,"d":"$0.00"}},{"$f":"'MMA Rev-Exp Region 10'!Y$37","v":{"v":0,"d":"$0.00"}},{"v":0,"d":"$0.00"}]
["MMA",null,null,{"$f":"Jurat!I$1","v":0},{"$f":"Jurat!D$33","v":"00:00:00"},"Q2","2017-06-30","Region 10","Operating Expense","Medical Benefits Expense","Mental Health Services",5.1,"Mental Health & Substance Abuse FFS",{"$f":"'MMA Rev-Exp Region 10'!O$41","v":{"v":0,"d":"$0.00"}},{"$f":"'MMA Rev-Exp Region 10'!P$41","v":{"v":0,"d":"$0.00"}},{"$f":"'MMA Rev-Exp Region 10'!Q$41","v":{"v":0,"d":"$0.00"}},{"$f":"'MMA Rev-Exp Region 10'!R$41","v":{"v":0,"d":"$0.00"}},{"$f":"'MMA Rev-Exp Region 10'!S$41","v":{"v":0,"d":"$0.00"}},{"$f":"'MMA Rev-Exp Region 10'!T$41","v":{"v":0,"d":"$0.00"}},{"$f":"'MMA Rev-Exp Region 10'!U$41","v":{"v":0,"d":"$0.00"}},{"$f":"'MMA Rev-Exp Region 10'!V$41","v":{"v":0,"d":"$0.00"}},{"$f":"'MMA Rev-Exp Region 10'!W$41","v":{"v":0,"d":"$0.00"}},{"$f":"'MMA Rev-Exp Region 10'!X$41","v":{"v":0,"d":"$0.00"}},{"$f":"'MMA Rev-Exp Region 10'!Y$41","v":{"v":0,"d":"$0.00"}},{"v":0,"d":"$0.00"}]
["MMA",null,null,{"$f":"Jurat!I$1","v":0},{"$f":"Jurat!D$33","v":"00:00:00"},"Q2","2017-06-30","Region 10","Operating Expense","Medical Benefits Expense","Mental Health Services",5.3,"Ending IBNP for Mental Health & Substance Abuse",{"$f":"'MMA Rev-Exp Region 10'!O$43","v":{"v":0,"d":"$0.00"}},{"$f":"'MMA Rev-Exp Region 10'!P$43","v":{"v":0,"d":"$0.00"}},{"$f":"'MMA Rev-Exp Region 10'!Q$43","v":{"v":0,"d":"$0.00"}},{"$f":"'MMA Rev-Exp Region 10'!R$43","v":{"v":0,"d":"$0.00"}},{"$f":"'MMA Rev-Exp Region 10'!S$43","v":{"v":0,"d":"$0.00"}},{"$f":"'MMA Rev-Exp Region 10'!T$43","v":{"v":0,"d":"$0.00"}},{"$f":"'MMA Rev-Exp Region 10'!U$43","v":{"v":0,"d":"$0.00"}},{"$f":"'MMA Rev-Exp Region 10'!V$43","v":{"v":0,"d":"$0.00"}},{"$f":"'MMA Rev-Exp Region 10'!W$43","v":{"v":0,"d":"$0.00"}},{"$f":"'MMA Rev-Exp Region 10'!X$43","v":{"v":0,"d":"$0.00"}},{"$f":"'MMA Rev-Exp Region 10'!Y$43","v":{"v":0,"d":"$0.00"}},{"v":0,"d":"$0.00"}]
["MMA",null,null,{"$f":"Jurat!I$1","v":0},{"$f":"Jurat!D$33","v":"00:00:00"},"Q2","2017-06-30","Region 10","Operating Expense","Medical Benefits Expense","Mental Health Services","5.4","Mental Health Settlements",{"$f":"'MMA Rev-Exp Region 10'!O$44","v":{"v":0,"d":"$0.00"}},{"$f":"'MMA Rev-Exp Region 10'!P$44","v":{"v":0,"d":"$0.00"}},{"$f":"'MMA Rev-Exp Region 10'!Q$44","v":{"v":0,"d":"$0.00"}},{"$f":"'MMA Rev-Exp Region 10'!R$44","v":{"v":0,"d":"$0.00"}},{"$f":"'MMA Rev-Exp Region 10'!S$44","v":{"v":0,"d":"$0.00"}},{"$f":"'MMA Rev-Exp Region 10'!T$44","v":{"v":0,"d":"$0.00"}},{"$f":"'MMA Rev-Exp Region 10'!U$44","v":{"v":0,"d":"$0.00"}},{"$f":"'MMA Rev-Exp Region 10'!V$44","v":{"v":0,"d":"$0.00"}},{"$f":"'MMA Rev-Exp Region 10'!W$44","v":{"v":0,"d":"$0.00"}},{"$f":"'MMA Rev-Exp Region 10'!X$44","v":{"v":0,"d":"$0.00"}},{"$f":"'MMA Rev-Exp Region 10'!Y$44","v":{"v":0,"d":"$0.00"}},{"v":0,"d":"$0.00"}]
["MMA",null,null,{"$f":"Jurat!I$1","v":0},{"$f":"Jurat!D$33","v":"00:00:00"},"Q2","2017-06-30","Region 10","Operating Expense","Medical Benefits Expense","Dental Services",6.3,"Ending IBNP for Dental Services",{"$f":"'MMA Rev-Exp Region 10'!O$48","v":{"v":0,"d":"$0.00"}},{"$f":"'MMA Rev-Exp Region 10'!P$48","v":{"v":0,"d":"$0.00"}},{"$f":"'MMA Rev-Exp Region 10'!Q$48","v":{"v":0,"d":"$0.00"}},{"$f":"'MMA Rev-Exp Region 10'!R$48","v":{"v":0,"d":"$0.00"}},{"$f":"'MMA Rev-Exp Region 10'!S$48","v":{"v":0,"d":"$0.00"}},{"$f":"'MMA Rev-Exp Region 10'!T$48","v":{"v":0,"d":"$0.00"}},{"$f":"'MMA Rev-Exp Region 10'!U$48","v":{"v":0,"d":"$0.00"}},{"$f":"'MMA Rev-Exp Region 10'!V$48","v":{"v":0,"d":"$0.00"}},{"$f":"'MMA Rev-Exp Region 10'!W$48","v":{"v":0,"d":"$0.00"}},{"$f":"'MMA Rev-Exp Region 10'!X$48","v":{"v":0,"d":"$0.00"}},{"$f":"'MMA Rev-Exp Region 10'!Y$48","v":{"v":0,"d":"$0.00"}},{"v":0,"d":"$0.00"}]
["MMA",null,null,{"$f":"Jurat!I$1","v":0},{"$f":"Jurat!D$33","v":"00:00:00"},"Q2","2017-06-30","Region 10","Operating Expense","Medical Benefits Expense","Transportation Services",7.3,"Ending IBNP for Transportation",{"$f":"'MMA Rev-Exp Region 10'!O$53","v":{"v":0,"d":"$0.00"}},{"$f":"'MMA Rev-Exp Region 10'!P$53","v":{"v":0,"d":"$0.00"}},{"$f":"'MMA Rev-Exp Region 10'!Q$53","v":{"v":0,"d":"$0.00"}},{"$f":"'MMA Rev-Exp Region 10'!R$53","v":{"v":0,"d":"$0.00"}},{"$f":"'MMA Rev-Exp Region 10'!S$53","v":{"v":0,"d":"$0.00"}},{"$f":"'MMA Rev-Exp Region 10'!T$53","v":{"v":0,"d":"$0.00"}},{"$f":"'MMA Rev-Exp Region 10'!U$53","v":{"v":0,"d":"$0.00"}},{"$f":"'MMA Rev-Exp Region 10'!V$53","v":{"v":0,"d":"$0.00"}},{"$f":"'MMA Rev-Exp Region 10'!W$53","v":{"v":0,"d":"$0.00"}},{"$f":"'MMA Rev-Exp Region 10'!X$53","v":{"v":0,"d":"$0.00"}},{"$f":"'MMA Rev-Exp Region 10'!Y$53","v":{"v":0,"d":"$0.00"}},{"v":0,"d":"$0.00"}]
["MMA",null,null,{"$f":"Jurat!I$1","v":0},{"$f":"Jurat!D$33","v":"00:00:00"},"Q2","2017-06-30","Region 10","Operating Expense","Medical Benefits Expense","Pharmacy Services","8.2","Hepatitis C Prescription Drug FFS",{"$f":"'MMA Rev-Exp Region 10'!O$57","v":{"v":0,"d":"$0.00"}},{"$f":"'MMA Rev-Exp Region 10'!P$57","v":{"v":0,"d":"$0.00"}},{"$f":"'MMA Rev-Exp Region 10'!Q$57","v":{"v":0,"d":"$0.00"}},{"$f":"'MMA Rev-Exp Region 10'!R$57","v":{"v":0,"d":"$0.00"}},{"$f":"'MMA Rev-Exp Region 10'!S$57","v":{"v":0,"d":"$0.00"}},{"$f":"'MMA Rev-Exp Region 10'!T$57","v":{"v":0,"d":"$0.00"}},{"$f":"'MMA Rev-Exp Region 10'!U$57","v":{"v":0,"d":"$0.00"}},{"$f":"'MMA Rev-Exp Region 10'!V$57","v":{"v":0,"d":"$0.00"}},{"$f":"'MMA Rev-Exp Region 10'!W$57","v":{"v":0,"d":"$0.00"}},{"$f":"'MMA Rev-Exp Region 10'!X$57","v":{"v":0,"d":"$0.00"}},{"$f":"'MMA Rev-Exp Region 10'!Y$57","v":{"v":0,"d":"$0.00"}},{"v":0,"d":"$0.00"}]
["MMA",null,null,{"$f":"Jurat!I$1","v":0},{"$f":"Jurat!D$33","v":"00:00:00"},"Q2","2017-06-30","Region 10","Operating Expense","Medical Benefits Expense","Pharmacy Services","8.6","Prescription Drugs Subcapitation",{"$f":"'MMA Rev-Exp Region 10'!O$61","v":{"v":0,"d":"$0.00"}},{"$f":"'MMA Rev-Exp Region 10'!P$61","v":{"v":0,"d":"$0.00"}},{"$f":"'MMA Rev-Exp Region 10'!Q$61","v":{"v":0,"d":"$0.00"}},{"$f":"'MMA Rev-Exp Region 10'!R$61","v":{"v":0,"d":"$0.00"}},{"$f":"'MMA Rev-Exp Region 10'!S$61","v":{"v":0,"d":"$0.00"}},{"$f":"'MMA Rev-Exp Region 10'!T$61","v":{"v":0,"d":"$0.00"}},{"$f":"'MMA Rev-Exp Region 10'!U$61","v":{"v":0,"d":"$0.00"}},{"$f":"'MMA Rev-Exp Region 10'!V$61","v":{"v":0,"d":"$0.00"}},{"$f":"'MMA Rev-Exp Region 10'!W$61","v":{"v":0,"d":"$0.00"}},{"$f":"'MMA Rev-Exp Region 10'!X$61","v":{"v":0,"d":"$0.00"}},{"$f":"'MMA Rev-Exp Region 10'!Y$61","v":{"v":0,"d":"$0.00"}},{"v":0,"d":"$0.00"}]
["MMA",null,null,{"$f":"Jurat!I$1","v":0},{"$f":"Jurat!D$33","v":"00:00:00"},"Q2","2017-06-30","Region 10","Operating Expense","Medical Benefits Expense","Other MMA Services","9.2","Hospice FFS",{"$f":"'MMA Rev-Exp Region 10'!O$65","v":{"v":0,"d":"$0.00"}},{"$f":"'MMA Rev-Exp Region 10'!P$65","v":{"v":0,"d":"$0.00"}},{"$f":"'MMA Rev-Exp Region 10'!Q$65","v":{"v":0,"d":"$0.00"}},{"$f":"'MMA Rev-Exp Region 10'!R$65","v":{"v":0,"d":"$0.00"}},{"$f":"'MMA Rev-Exp Region 10'!S$65","v":{"v":0,"d":"$0.00"}},{"$f":"'MMA Rev-Exp Region 10'!T$65","v":{"v":0,"d":"$0.00"}},{"$f":"'MMA Rev-Exp Region 10'!U$65","v":{"v":0,"d":"$0.00"}},{"$f":"'MMA Rev-Exp Region 10'!V$65","v":{"v":0,"d":"$0.00"}},{"$f":"'MMA Rev-Exp Region 10'!W$65","v":{"v":0,"d":"$0.00"}},{"$f":"'MMA Rev-Exp Region 10'!X$65","v":{"v":0,"d":"$0.00"}},{"$f":"'MMA Rev-Exp Region 10'!Y$65","v":{"v":0,"d":"$0.00"}},{"v":0,"d":"$0.00"}]
["MMA",null,null,{"$f":"Jurat!I$1","v":0},{"$f":"Jurat!D$33","v":"00:00:00"},"Q2","2017-06-30","Region 10","Operating Expense","Medical Benefits Expense","Other MMA Services","9.5","Other Services Subcapitation",{"$f":"'MMA Rev-Exp Region 10'!O$68","v":{"v":0,"d":"$0.00"}},{"$f":"'MMA Rev-Exp Region 10'!P$68","v":{"v":0,"d":"$0.00"}},{"$f":"'MMA Rev-Exp Region 10'!Q$68","v":{"v":0,"d":"$0.00"}},{"$f":"'MMA Rev-Exp Region 10'!R$68","v":{"v":0,"d":"$0.00"}},{"$f":"'MMA Rev-Exp Region 10'!S$68","v":{"v":0,"d":"$0.00"}},{"$f":"'MMA Rev-Exp Region 10'!T$68","v":{"v":0,"d":"$0.00"}},{"$f":"'MMA Rev-Exp Region 10'!U$68","v":{"v":0,"d":"$0.00"}},{"$f":"'MMA Rev-Exp Region 10'!V$68","v":{"v":0,"d":"$0.00"}},{"$f":"'MMA Rev-Exp Region 10'!W$68","v":{"v":0,"d":"$0.00"}},{"$f":"'MMA Rev-Exp Region 10'!X$68","v":{"v":0,"d":"$0.00"}},{"$f":"'MMA Rev-Exp Region 10'!Y$68","v":{"v":0,"d":"$0.00"}},{"v":0,"d":"$0.00"}]
["MMA",null,null,{"$f":"Jurat!I$1","v":0},{"$f":"Jurat!D$33","v":"00:00:00"},"Q2","2017-06-30","Region 10","Operating Expense","Medical Benefits Expense","Other MMA Services","9.6","Ending IBNP for Other Services",{"$f":"'MMA Rev-Exp Region 10'!O$69","v":{"v":0,"d":"$0.00"}},{"$f":"'MMA Rev-Exp Region 10'!P$69","v":{"v":0,"d":"$0.00"}},{"$f":"'MMA Rev-Exp Region 10'!Q$69","v":{"v":0,"d":"$0.00"}},{"$f":"'MMA Rev-Exp Region 10'!R$69","v":{"v":0,"d":"$0.00"}},{"$f":"'MMA Rev-Exp Region 10'!S$69","v":{"v":0,"d":"$0.00"}},{"$f":"'MMA Rev-Exp Region 10'!T$69","v":{"v":0,"d":"$0.00"}},{"$f":"'MMA Rev-Exp Region 10'!U$69","v":{"v":0,"d":"$0.00"}},{"$f":"'MMA Rev-Exp Region 10'!V$69","v":{"v":0,"d":"$0.00"}},{"$f":"'MMA Rev-Exp Region 10'!W$69","v":{"v":0,"d":"$0.00"}},{"$f":"'MMA Rev-Exp Region 10'!X$69","v":{"v":0,"d":"$0.00"}},{"$f":"'MMA Rev-Exp Region 10'!Y$69","v":{"v":0,"d":"$0.00"}},{"v":0,"d":"$0.00"}]
["MMA",null,null,{"$f":"Jurat!I$1","v":0},{"$f":"Jurat!D$33","v":"00:00:00"},"Q2","2017-06-30","Region 10","Operating Expense","Medical Benefits Expense","Expanded Benefits","10.2","Expanded benefits Subcapitation",{"$f":"'MMA Rev-Exp Region 10'!O$73","v":{"v":0,"d":"$0.00"}},{"$f":"'MMA Rev-Exp Region 10'!P$73","v":{"v":0,"d":"$0.00"}},{"$f":"'MMA Rev-Exp Region 10'!Q$73","v":{"v":0,"d":"$0.00"}},{"$f":"'MMA Rev-Exp Region 10'!R$73","v":{"v":0,"d":"$0.00"}},{"$f":"'MMA Rev-Exp Region 10'!S$73","v":{"v":0,"d":"$0.00"}},{"$f":"'MMA Rev-Exp Region 10'!T$73","v":{"v":0,"d":"$0.00"}},{"$f":"'MMA Rev-Exp Region 10'!U$73","v":{"v":0,"d":"$0.00"}},{"$f":"'MMA Rev-Exp Region 10'!V$73","v":{"v":0,"d":"$0.00"}},{"$f":"'MMA Rev-Exp Region 10'!W$73","v":{"v":0,"d":"$0.00"}},{"$f":"'MMA Rev-Exp Region 10'!X$73","v":{"v":0,"d":"$0.00"}},{"$f":"'MMA Rev-Exp Region 10'!Y$73","v":{"v":0,"d":"$0.00"}},{"v":0,"d":"$0.00"}]
["MMA",null,null,{"$f":"Jurat!I$1","v":0},{"$f":"Jurat!D$33","v":"00:00:00"},"Q2","2017-06-30","Region 10","Operating Expense","Medical Benefits Expense","Other Medical","11.5","TPL & Fraud/Abuse Recoveries",{"$f":"'MMA Rev-Exp Region 10'!O$81","v":{"v":0,"d":"$0.00"}},{"$f":"'MMA Rev-Exp Region 10'!P$81","v":{"v":0,"d":"$0.00"}},{"$f":"'MMA Rev-Exp Region 10'!Q$81","v":{"v":0,"d":"$0.00"}},{"$f":"'MMA Rev-Exp Region 10'!R$81","v":{"v":0,"d":"$0.00"}},{"$f":"'MMA Rev-Exp Region 10'!S$81","v":{"v":0,"d":"$0.00"}},{"$f":"'MMA Rev-Exp Region 10'!T$81","v":{"v":0,"d":"$0.00"}},{"$f":"'MMA Rev-Exp Region 10'!U$81","v":{"v":0,"d":"$0.00"}},{"$f":"'MMA Rev-Exp Region 10'!V$81","v":{"v":0,"d":"$0.00"}},{"$f":"'MMA Rev-Exp Region 10'!W$81","v":{"v":0,"d":"$0.00"}},{"$f":"'MMA Rev-Exp Region 10'!X$81","v":{"v":0,"d":"$0.00"}},{"$f":"'MMA Rev-Exp Region 10'!Y$81","v":{"v":0,"d":"$0.00"}},{"v":0,"d":"$0.00"}]
["MMA",null,null,{"$f":"Jurat!I$1","v":0},{"$f":"Jurat!D$33","v":"00:00:00"},"Q2","2017-06-30","Region 10","Operating Expense","Medical Benefits Expense","Other Medical","11.9","Reinsurance Recoveries",{"$f":"'MMA Rev-Exp Region 10'!O$85","v":{"v":0,"d":"$0.00"}},{"$f":"'MMA Rev-Exp Region 10'!P$85","v":{"v":0,"d":"$0.00"}},{"$f":"'MMA Rev-Exp Region 10'!Q$85","v":{"v":0,"d":"$0.00"}},{"$f":"'MMA Rev-Exp Region 10'!R$85","v":{"v":0,"d":"$0.00"}},{"$f":"'MMA Rev-Exp Region 10'!S$85","v":{"v":0,"d":"$0.00"}},{"$f":"'MMA Rev-Exp Region 10'!T$85","v":{"v":0,"d":"$0.00"}},{"$f":"'MMA Rev-Exp Region 10'!U$85","v":{"v":0,"d":"$0.00"}},{"$f":"'MMA Rev-Exp Region 10'!V$85","v":{"v":0,"d":"$0.00"}},{"$f":"'MMA Rev-Exp Region 10'!W$85","v":{"v":0,"d":"$0.00"}},{"$f":"'MMA Rev-Exp Region 10'!X$85","v":{"v":0,"d":"$0.00"}},{"$f":"'MMA Rev-Exp Region 10'!Y$85","v":{"v":0,"d":"$0.00"}},{"v":0,"d":"$0.00"}]
["MMA",null,null,{"$f":"Jurat!I$1","v":0},{"$f":"Jurat!D$33","v":"00:00:00"},"Q2","2017-06-30","Region 10","Operating Expense","Administrative Expense","Administrative","12.3","Information Systems",{"$f":"'MMA Rev-Exp Region 10'!O$92","v":{"v":0,"d":"$0.00"}},{"v":0,"d":"$0.00"},{"v":0,"d":"$0.00"},{"v":0,"d":"$0.00"},{"v":0,"d":"$0.00"},{"v":0,"d":"$0.00"},{"v":0,"d":"$0.00"},{"v":0,"d":"$0.00"},{"v":0,"d":"$0.00"},{"v":0,"d":"$0.00"},{"v":0,"d":"$0.00"},{"v":0,"d":"$0.00"}]
["MMA",null,null,{"$f":"Jurat!I$1","v":0},{"$f":"Jurat!D$33","v":"00:00:00"},"Q2","2017-06-30","Region 10","Operating Expense","Taxes & Fees","Taxes & Fees","13.1","State Premium tax",{"$f":"'MMA Rev-Exp Region 10'!O$97","v":{"v":0,"d":"$0.00"}},{"v":0,"d":"$0.00"},{"v":0,"d":"$0.00"},{"v":0,"d":"$0.00"},{"v":0,"d":"$0.00"},{"v":0,"d":"$0.00"},{"v":0,"d":"$0.00"},{"v":0,"d":"$0.00"},{"v":0,"d":"$0.00"},{"v":0,"d":"$0.00"},{"v":0,"d":"$0.00"},{"v":0,"d":"$0.00"}]
["MMA",null,null,{"$f":"Jurat!I$1","v":0},{"$f":"Jurat!D$33","v":"00:00:00"},"Q2","2017-06-30","Region 10","Non-Operating Expense","Income Tax Expense","Income Tax Expense","16.0","Income Tax Expense",{"$f":"'MMA Rev-Exp Region 10'!O$106","v":{"v":0,"d":"$0.00"}},{"v":0,"d":"$0.00"},{"v":0,"d":"$0.00"},{"v":0,"d":"$0.00"},{"v":0,"d":"$0.00"},{"v":0,"d":"$0.00"},{"v":0,"d":"$0.00"},{"v":0,"d":"$0.00"},{"v":0,"d":"$0.00"},{"v":0,"d":"$0.00"},{"v":0,"d":"$0.00"},{"v":0,"d":"$0.00"}]
["MMA",null,null,{"$f":"Jurat!I$1","v":0},{"$f":"Jurat!D$33","v":"00:00:00"},"Q3","2017-09-30","Region 10","Operating Revenue","Kick Payments","Kick Payments - Transplant",1.2,"Transplant Kick Payments",{"$f":"'MMA Rev-Exp Region 10'!Z$12","v":{"v":0,"d":"$0.00"}},{"$f":"'MMA Rev-Exp Region 10'!AA$12","v":{"v":0,"d":"$0.00"}},{"$f":"'MMA Rev-Exp Region 10'!AB$12","v":{"v":0,"d":"$0.00"}},{"$f":"'MMA Rev-Exp Region 10'!AC$12","v":{"v":0,"d":"$0.00"}},{"$f":"'MMA Rev-Exp Region 10'!AD$12","v":{"v":0,"d":"$0.00"}},{"$f":"'MMA Rev-Exp Region 10'!AE$12","v":{"v":0,"d":"$0.00"}},{"$f":"'MMA Rev-Exp Region 10'!AF$12","v":{"v":0,"d":"$0.00"}},{"$f":"'MMA Rev-Exp Region 10'!AG$12","v":{"v":0,"d":"$0.00"}},{"$f":"'MMA Rev-Exp Region 10'!AH$12","v":{"v":0,"d":"$0.00"}},{"$f":"'MMA Rev-Exp Region 10'!AI$12","v":{"v":0,"d":"$0.00"}},{"$f":"'MMA Rev-Exp Region 10'!AJ$12","v":{"v":0,"d":"$0.00"}},{"v":0,"d":"$0.00"}]
["MMA",null,null,{"$f":"Jurat!I$1","v":0},{"$f":"Jurat!D$33","v":"00:00:00"},"Q3","2017-09-30","Region 10","Operating Revenue","Kick Payments","Kick Payments - Hep C","1.3","Hepatitis C Kick Payments",{"$f":"'MMA Rev-Exp Region 10'!Z$13","v":{"v":0,"d":"$0.00"}},{"$f":"'MMA Rev-Exp Region 10'!AA$13","v":{"v":0,"d":"$0.00"}},{"$f":"'MMA Rev-Exp Region 10'!AB$13","v":{"v":0,"d":"$0.00"}},{"$f":"'MMA Rev-Exp Region 10'!AC$13","v":{"v":0,"d":"$0.00"}},{"$f":"'MMA Rev-Exp Region 10'!AD$13","v":{"v":0,"d":"$0.00"}},{"$f":"'MMA Rev-Exp Region 10'!AE$13","v":{"v":0,"d":"$0.00"}},{"$f":"'MMA Rev-Exp Region 10'!AF$13","v":{"v":0,"d":"$0.00"}},{"$f":"'MMA Rev-Exp Region 10'!AG$13","v":{"v":0,"d":"$0.00"}},{"$f":"'MMA Rev-Exp Region 10'!AH$13","v":{"v":0,"d":"$0.00"}},{"$f":"'MMA Rev-Exp Region 10'!AI$13","v":{"v":0,"d":"$0.00"}},{"$f":"'MMA Rev-Exp Region 10'!AJ$13","v":{"v":0,"d":"$0.00"}},{"v":0,"d":"$0.00"}]
["MMA",null,null,{"$f":"Jurat!I$1","v":0},{"$f":"Jurat!D$33","v":"00:00:00"},"Q3","2017-09-30","Region 10","Operating Revenue","Other Revenue","Other Revenue","1.6","Other Revenue",{"$f":"'MMA Rev-Exp Region 10'!Z$16","v":{"v":0,"d":"$0.00"}},{"$f":"'MMA Rev-Exp Region 10'!AA$16","v":{"v":0,"d":"$0.00"}},{"$f":"'MMA Rev-Exp Region 10'!AB$16","v":{"v":0,"d":"$0.00"}},{"$f":"'MMA Rev-Exp Region 10'!AC$16","v":{"v":0,"d":"$0.00"}},{"$f":"'MMA Rev-Exp Region 10'!AD$16","v":{"v":0,"d":"$0.00"}},{"$f":"'MMA Rev-Exp Region 10'!AE$16","v":{"v":0,"d":"$0.00"}},{"$f":"'MMA Rev-Exp Region 10'!AF$16","v":{"v":0,"d":"$0.00"}},{"$f":"'MMA Rev-Exp Region 10'!AG$16","v":{"v":0,"d":"$0.00"}},{"$f":"'MMA Rev-Exp Region 10'!AH$16","v":{"v":0,"d":"$0.00"}},{"$f":"'MMA Rev-Exp Region 10'!AI$16","v":{"v":0,"d":"$0.00"}},{"$f":"'MMA Rev-Exp Region 10'!AJ$16","v":{"v":0,"d":"$0.00"}},{"v":0,"d":"$0.00"}]
["MMA",null,null,{"$f":"Jurat!I$1","v":0},{"$f":"Jurat!D$33","v":"00:00:00"},"Q3","2017-09-30","Region 10","Operating Expense","Medical Benefits Expense","Hospital Services",2.4,"Outpatient FFS: Other than ER ",{"$f":"'MMA Rev-Exp Region 10'!Z$23","v":{"v":0,"d":"$0.00"}},{"$f":"'MMA Rev-Exp Region 10'!AA$23","v":{"v":0,"d":"$0.00"}},{"$f":"'MMA Rev-Exp Region 10'!AB$23","v":{"v":0,"d":"$0.00"}},{"$f":"'MMA Rev-Exp Region 10'!AC$23","v":{"v":0,"d":"$0.00"}},{"$f":"'MMA Rev-Exp Region 10'!AD$23","v":{"v":0,"d":"$0.00"}},{"$f":"'MMA Rev-Exp Region 10'!AE$23","v":{"v":0,"d":"$0.00"}},{"$f":"'MMA Rev-Exp Region 10'!AF$23","v":{"v":0,"d":"$0.00"}},{"$f":"'MMA Rev-Exp Region 10'!AG$23","v":{"v":0,"d":"$0.00"}},{"$f":"'MMA Rev-Exp Region 10'!AH$23","v":{"v":0,"d":"$0.00"}},{"$f":"'MMA Rev-Exp Region 10'!AI$23","v":{"v":0,"d":"$0.00"}},{"$f":"'MMA Rev-Exp Region 10'!AJ$23","v":{"v":0,"d":"$0.00"}},{"v":0,"d":"$0.00"}]
["MMA",null,null,{"$f":"Jurat!I$1","v":0},{"$f":"Jurat!D$33","v":"00:00:00"},"Q3","2017-09-30","Region 10","Operating Expense","Medical Benefits Expense","Hospital Services","2.6","Subcapitated Hospital Services",{"$f":"'MMA Rev-Exp Region 10'!Z$25","v":{"v":0,"d":"$0.00"}},{"$f":"'MMA Rev-Exp Region 10'!AA$25","v":{"v":0,"d":"$0.00"}},{"$f":"'MMA Rev-Exp Region 10'!AB$25","v":{"v":0,"d":"$0.00"}},{"$f":"'MMA Rev-Exp Region 10'!AC$25","v":{"v":0,"d":"$0.00"}},{"$f":"'MMA Rev-Exp Region 10'!AD$25","v":{"v":0,"d":"$0.00"}},{"$f":"'MMA Rev-Exp Region 10'!AE$25","v":{"v":0,"d":"$0.00"}},{"$f":"'MMA Rev-Exp Region 10'!AF$25","v":{"v":0,"d":"$0.00"}},{"$f":"'MMA Rev-Exp Region 10'!AG$25","v":{"v":0,"d":"$0.00"}},{"$f":"'MMA Rev-Exp Region 10'!AH$25","v":{"v":0,"d":"$0.00"}},{"$f":"'MMA Rev-Exp Region 10'!AI$25","v":{"v":0,"d":"$0.00"}},{"$f":"'MMA Rev-Exp Region 10'!AJ$25","v":{"v":0,"d":"$0.00"}},{"v":0,"d":"$0.00"}]
["MMA",null,null,{"$f":"Jurat!I$1","v":0},{"$f":"Jurat!D$33","v":"00:00:00"},"Q3","2017-09-30","Region 10","Operating Expense","Medical Benefits Expense","Professional Services",3.1,"Primary Care FFS",{"$f":"'MMA Rev-Exp Region 10'!Z$29","v":{"v":0,"d":"$0.00"}},{"$f":"'MMA Rev-Exp Region 10'!AA$29","v":{"v":0,"d":"$0.00"}},{"$f":"'MMA Rev-Exp Region 10'!AB$29","v":{"v":0,"d":"$0.00"}},{"$f":"'MMA Rev-Exp Region 10'!AC$29","v":{"v":0,"d":"$0.00"}},{"$f":"'MMA Rev-Exp Region 10'!AD$29","v":{"v":0,"d":"$0.00"}},{"$f":"'MMA Rev-Exp Region 10'!AE$29","v":{"v":0,"d":"$0.00"}},{"$f":"'MMA Rev-Exp Region 10'!AF$29","v":{"v":0,"d":"$0.00"}},{"$f":"'MMA Rev-Exp Region 10'!AG$29","v":{"v":0,"d":"$0.00"}},{"$f":"'MMA Rev-Exp Region 10'!AH$29","v":{"v":0,"d":"$0.00"}},{"$f":"'MMA Rev-Exp Region 10'!AI$29","v":{"v":0,"d":"$0.00"}},{"$f":"'MMA Rev-Exp Region 10'!AJ$29","v":{"v":0,"d":"$0.00"}},{"v":0,"d":"$0.00"}]
["MMA",null,null,{"$f":"Jurat!I$1","v":0},{"$f":"Jurat!D$33","v":"00:00:00"},"Q3","2017-09-30","Region 10","Operating Expense","Medical Benefits Expense","Professional Services","3.5","Subcapitated Professional Services",{"$f":"'MMA Rev-Exp Region 10'!Z$33","v":{"v":0,"d":"$0.00"}},{"$f":"'MMA Rev-Exp Region 10'!AA$33","v":{"v":0,"d":"$0.00"}},{"$f":"'MMA Rev-Exp Region 10'!AB$33","v":{"v":0,"d":"$0.00"}},{"$f":"'MMA Rev-Exp Region 10'!AC$33","v":{"v":0,"d":"$0.00"}},{"$f":"'MMA Rev-Exp Region 10'!AD$33","v":{"v":0,"d":"$0.00"}},{"$f":"'MMA Rev-Exp Region 10'!AE$33","v":{"v":0,"d":"$0.00"}},{"$f":"'MMA Rev-Exp Region 10'!AF$33","v":{"v":0,"d":"$0.00"}},{"$f":"'MMA Rev-Exp Region 10'!AG$33","v":{"v":0,"d":"$0.00"}},{"$f":"'MMA Rev-Exp Region 10'!AH$33","v":{"v":0,"d":"$0.00"}},{"$f":"'MMA Rev-Exp Region 10'!AI$33","v":{"v":0,"d":"$0.00"}},{"$f":"'MMA Rev-Exp Region 10'!AJ$33","v":{"v":0,"d":"$0.00"}},{"v":0,"d":"$0.00"}]
["MMA",null,null,{"$f":"Jurat!I$1","v":0},{"$f":"Jurat!D$33","v":"00:00:00"},"Q3","2017-09-30","Region 10","Operating Expense","Medical Benefits Expense","Maternity Services","4.1.1","Maternity Services",{"$f":"'MMA Rev-Exp Region 10'!Z$37","v":{"v":0,"d":"$0.00"}},{"$f":"'MMA Rev-Exp Region 10'!AA$37","v":{"v":0,"d":"$0.00"}},{"$f":"'MMA Rev-Exp Region 10'!AB$37","v":{"v":0,"d":"$0.00"}},{"$f":"'MMA Rev-Exp Region 10'!AC$37","v":{"v":0,"d":"$0.00"}},{"$f":"'MMA Rev-Exp Region 10'!AD$37","v":{"v":0,"d":"$0.00"}},{"$f":"'MMA Rev-Exp Region 10'!AE$37","v":{"v":0,"d":"$0.00"}},{"$f":"'MMA Rev-Exp Region 10'!AF$37","v":{"v":0,"d":"$0.00"}},{"$f":"'MMA Rev-Exp Region 10'!AG$37","v":{"v":0,"d":"$0.00"}},{"$f":"'MMA Rev-Exp Region 10'!AH$37","v":{"v":0,"d":"$0.00"}},{"$f":"'MMA Rev-Exp Region 10'!AI$37","v":{"v":0,"d":"$0.00"}},{"$f":"'MMA Rev-Exp Region 10'!AJ$37","v":{"v":0,"d":"$0.00"}},{"v":0,"d":"$0.00"}]
["MMA",null,null,{"$f":"Jurat!I$1","v":0},{"$f":"Jurat!D$33","v":"00:00:00"},"Q3","2017-09-30","Region 10","Operating Expense","Medical Benefits Expense","Maternity Services","4.2.1","Ending IBNP for Maternity Services",{"$f":"'MMA Rev-Exp Region 10'!Z$38","v":{"v":0,"d":"$0.00"}},{"$f":"'MMA Rev-Exp Region 10'!AA$38","v":{"v":0,"d":"$0.00"}},{"$f":"'MMA Rev-Exp Region 10'!AB$38","v":{"v":0,"d":"$0.00"}},{"$f":"'MMA Rev-Exp Region 10'!AC$38","v":{"v":0,"d":"$0.00"}},{"$f":"'MMA Rev-Exp Region 10'!AD$38","v":{"v":0,"d":"$0.00"}},{"$f":"'MMA Rev-Exp Region 10'!AE$38","v":{"v":0,"d":"$0.00"}},{"$f":"'MMA Rev-Exp Region 10'!AF$38","v":{"v":0,"d":"$0.00"}},{"$f":"'MMA Rev-Exp Region 10'!AG$38","v":{"v":0,"d":"$0.00"}},{"$f":"'MMA Rev-Exp Region 10'!AH$38","v":{"v":0,"d":"$0.00"}},{"$f":"'MMA Rev-Exp Region 10'!AI$38","v":{"v":0,"d":"$0.00"}},{"$f":"'MMA Rev-Exp Region 10'!AJ$38","v":{"v":0,"d":"$0.00"}},{"v":0,"d":"$0.00"}]
["MMA",null,null,{"$f":"Jurat!I$1","v":0},{"$f":"Jurat!D$33","v":"00:00:00"},"Q3","2017-09-30","Region 10","Operating Expense","Medical Benefits Expense","Mental Health Services",5.2,"Mental Health & Substance Abuse Subcapitation",{"$f":"'MMA Rev-Exp Region 10'!Z$42","v":{"v":0,"d":"$0.00"}},{"$f":"'MMA Rev-Exp Region 10'!AA$42","v":{"v":0,"d":"$0.00"}},{"$f":"'MMA Rev-Exp Region 10'!AB$42","v":{"v":0,"d":"$0.00"}},{"$f":"'MMA Rev-Exp Region 10'!AC$42","v":{"v":0,"d":"$0.00"}},{"$f":"'MMA Rev-Exp Region 10'!AD$42","v":{"v":0,"d":"$0.00"}},{"$f":"'MMA Rev-Exp Region 10'!AE$42","v":{"v":0,"d":"$0.00"}},{"$f":"'MMA Rev-Exp Region 10'!AF$42","v":{"v":0,"d":"$0.00"}},{"$f":"'MMA Rev-Exp Region 10'!AG$42","v":{"v":0,"d":"$0.00"}},{"$f":"'MMA Rev-Exp Region 10'!AH$42","v":{"v":0,"d":"$0.00"}},{"$f":"'MMA Rev-Exp Region 10'!AI$42","v":{"v":0,"d":"$0.00"}},{"$f":"'MMA Rev-Exp Region 10'!AJ$42","v":{"v":0,"d":"$0.00"}},{"v":0,"d":"$0.00"}]
["MMA",null,null,{"$f":"Jurat!I$1","v":0},{"$f":"Jurat!D$33","v":"00:00:00"},"Q3","2017-09-30","Region 10","Operating Expense","Medical Benefits Expense","Dental Services",6.1,"Dental FFS",{"$f":"'MMA Rev-Exp Region 10'!Z$46","v":{"v":0,"d":"$0.00"}},{"$f":"'MMA Rev-Exp Region 10'!AA$46","v":{"v":0,"d":"$0.00"}},{"$f":"'MMA Rev-Exp Region 10'!AB$46","v":{"v":0,"d":"$0.00"}},{"$f":"'MMA Rev-Exp Region 10'!AC$46","v":{"v":0,"d":"$0.00"}},{"$f":"'MMA Rev-Exp Region 10'!AD$46","v":{"v":0,"d":"$0.00"}},{"$f":"'MMA Rev-Exp Region 10'!AE$46","v":{"v":0,"d":"$0.00"}},{"$f":"'MMA Rev-Exp Region 10'!AF$46","v":{"v":0,"d":"$0.00"}},{"$f":"'MMA Rev-Exp Region 10'!AG$46","v":{"v":0,"d":"$0.00"}},{"$f":"'MMA Rev-Exp Region 10'!AH$46","v":{"v":0,"d":"$0.00"}},{"$f":"'MMA Rev-Exp Region 10'!AI$46","v":{"v":0,"d":"$0.00"}},{"$f":"'MMA Rev-Exp Region 10'!AJ$46","v":{"v":0,"d":"$0.00"}},{"v":0,"d":"$0.00"}]
["MMA",null,null,{"$f":"Jurat!I$1","v":0},{"$f":"Jurat!D$33","v":"00:00:00"},"Q3","2017-09-30","Region 10","Operating Expense","Medical Benefits Expense","Transportation Services",7.1,"Transportation FFS",{"$f":"'MMA Rev-Exp Region 10'!Z$51","v":{"v":0,"d":"$0.00"}},{"$f":"'MMA Rev-Exp Region 10'!AA$51","v":{"v":0,"d":"$0.00"}},{"$f":"'MMA Rev-Exp Region 10'!AB$51","v":{"v":0,"d":"$0.00"}},{"$f":"'MMA Rev-Exp Region 10'!AC$51","v":{"v":0,"d":"$0.00"}},{"$f":"'MMA Rev-Exp Region 10'!AD$51","v":{"v":0,"d":"$0.00"}},{"$f":"'MMA Rev-Exp Region 10'!AE$51","v":{"v":0,"d":"$0.00"}},{"$f":"'MMA Rev-Exp Region 10'!AF$51","v":{"v":0,"d":"$0.00"}},{"$f":"'MMA Rev-Exp Region 10'!AG$51","v":{"v":0,"d":"$0.00"}},{"$f":"'MMA Rev-Exp Region 10'!AH$51","v":{"v":0,"d":"$0.00"}},{"$f":"'MMA Rev-Exp Region 10'!AI$51","v":{"v":0,"d":"$0.00"}},{"$f":"'MMA Rev-Exp Region 10'!AJ$51","v":{"v":0,"d":"$0.00"}},{"v":0,"d":"$0.00"}]
["MMA",null,null,{"$f":"Jurat!I$1","v":0},{"$f":"Jurat!D$33","v":"00:00:00"},"Q3","2017-09-30","Region 10","Operating Expense","Medical Benefits Expense","Transportation Services",7.3,"Ending IBNP for Transportation",{"$f":"'MMA Rev-Exp Region 10'!Z$53","v":{"v":0,"d":"$0.00"}},{"$f":"'MMA Rev-Exp Region 10'!AA$53","v":{"v":0,"d":"$0.00"}},{"$f":"'MMA Rev-Exp Region 10'!AB$53","v":{"v":0,"d":"$0.00"}},{"$f":"'MMA Rev-Exp Region 10'!AC$53","v":{"v":0,"d":"$0.00"}},{"$f":"'MMA Rev-Exp Region 10'!AD$53","v":{"v":0,"d":"$0.00"}},{"$f":"'MMA Rev-Exp Region 10'!AE$53","v":{"v":0,"d":"$0.00"}},{"$f":"'MMA Rev-Exp Region 10'!AF$53","v":{"v":0,"d":"$0.00"}},{"$f":"'MMA Rev-Exp Region 10'!AG$53","v":{"v":0,"d":"$0.00"}},{"$f":"'MMA Rev-Exp Region 10'!AH$53","v":{"v":0,"d":"$0.00"}},{"$f":"'MMA Rev-Exp Region 10'!AI$53","v":{"v":0,"d":"$0.00"}},{"$f":"'MMA Rev-Exp Region 10'!AJ$53","v":{"v":0,"d":"$0.00"}},{"v":0,"d":"$0.00"}]
["MMA",null,null,{"$f":"Jurat!I$1","v":0},{"$f":"Jurat!D$33","v":"00:00:00"},"Q3","2017-09-30","Region 10","Operating Expense","Medical Benefits Expense","Pharmacy Services","8.2","Hepatitis C Prescription Drug FFS",{"$f":"'MMA Rev-Exp Region 10'!Z$57","v":{"v":0,"d":"$0.00"}},{"$f":"'MMA Rev-Exp Region 10'!AA$57","v":{"v":0,"d":"$0.00"}},{"$f":"'MMA Rev-Exp Region 10'!AB$57","v":{"v":0,"d":"$0.00"}},{"$f":"'MMA Rev-Exp Region 10'!AC$57","v":{"v":0,"d":"$0.00"}},{"$f":"'MMA Rev-Exp Region 10'!AD$57","v":{"v":0,"d":"$0.00"}},{"$f":"'MMA Rev-Exp Region 10'!AE$57","v":{"v":0,"d":"$0.00"}},{"$f":"'MMA Rev-Exp Region 10'!AF$57","v":{"v":0,"d":"$0.00"}},{"$f":"'MMA Rev-Exp Region 10'!AG$57","v":{"v":0,"d":"$0.00"}},{"$f":"'MMA Rev-Exp Region 10'!AH$57","v":{"v":0,"d":"$0.00"}},{"$f":"'MMA Rev-Exp Region 10'!AI$57","v":{"v":0,"d":"$0.00"}},{"$f":"'MMA Rev-Exp Region 10'!AJ$57","v":{"v":0,"d":"$0.00"}},{"v":0,"d":"$0.00"}]
["MMA",null,null,{"$f":"Jurat!I$1","v":0},{"$f":"Jurat!D$33","v":"00:00:00"},"Q3","2017-09-30","Region 10","Operating Expense","Medical Benefits Expense","Pharmacy Services","8.6","Prescription Drugs Subcapitation",{"$f":"'MMA Rev-Exp Region 10'!Z$61","v":{"v":0,"d":"$0.00"}},{"$f":"'MMA Rev-Exp Region 10'!AA$61","v":{"v":0,"d":"$0.00"}},{"$f":"'MMA Rev-Exp Region 10'!AB$61","v":{"v":0,"d":"$0.00"}},{"$f":"'MMA Rev-Exp Region 10'!AC$61","v":{"v":0,"d":"$0.00"}},{"$f":"'MMA Rev-Exp Region 10'!AD$61","v":{"v":0,"d":"$0.00"}},{"$f":"'MMA Rev-Exp Region 10'!AE$61","v":{"v":0,"d":"$0.00"}},{"$f":"'MMA Rev-Exp Region 10'!AF$61","v":{"v":0,"d":"$0.00"}},{"$f":"'MMA Rev-Exp Region 10'!AG$61","v":{"v":0,"d":"$0.00"}},{"$f":"'MMA Rev-Exp Region 10'!AH$61","v":{"v":0,"d":"$0.00"}},{"$f":"'MMA Rev-Exp Region 10'!AI$61","v":{"v":0,"d":"$0.00"}},{"$f":"'MMA Rev-Exp Region 10'!AJ$61","v":{"v":0,"d":"$0.00"}},{"v":0,"d":"$0.00"}]
["MMA",null,null,{"$f":"Jurat!I$1","v":0},{"$f":"Jurat!D$33","v":"00:00:00"},"Q3","2017-09-30","Region 10","Operating Expense","Medical Benefits Expense","Other MMA Services","9.2","Hospice FFS",{"$f":"'MMA Rev-Exp Region 10'!Z$65","v":{"v":0,"d":"$0.00"}},{"$f":"'MMA Rev-Exp Region 10'!AA$65","v":{"v":0,"d":"$0.00"}},{"$f":"'MMA Rev-Exp Region 10'!AB$65","v":{"v":0,"d":"$0.00"}},{"$f":"'MMA Rev-Exp Region 10'!AC$65","v":{"v":0,"d":"$0.00"}},{"$f":"'MMA Rev-Exp Region 10'!AD$65","v":{"v":0,"d":"$0.00"}},{"$f":"'MMA Rev-Exp Region 10'!AE$65","v":{"v":0,"d":"$0.00"}},{"$f":"'MMA Rev-Exp Region 10'!AF$65","v":{"v":0,"d":"$0.00"}},{"$f":"'MMA Rev-Exp Region 10'!AG$65","v":{"v":0,"d":"$0.00"}},{"$f":"'MMA Rev-Exp Region 10'!AH$65","v":{"v":0,"d":"$0.00"}},{"$f":"'MMA Rev-Exp Region 10'!AI$65","v":{"v":0,"d":"$0.00"}},{"$f":"'MMA Rev-Exp Region 10'!AJ$65","v":{"v":0,"d":"$0.00"}},{"v":0,"d":"$0.00"}]
["MMA",null,null,{"$f":"Jurat!I$1","v":0},{"$f":"Jurat!D$33","v":"00:00:00"},"Q3","2017-09-30","Region 10","Operating Expense","Medical Benefits Expense","Other MMA Services","9.3","DME FFS",{"$f":"'MMA Rev-Exp Region 10'!Z$66","v":{"v":0,"d":"$0.00"}},{"$f":"'MMA Rev-Exp Region 10'!AA$66","v":{"v":0,"d":"$0.00"}},{"$f":"'MMA Rev-Exp Region 10'!AB$66","v":{"v":0,"d":"$0.00"}},{"$f":"'MMA Rev-Exp Region 10'!AC$66","v":{"v":0,"d":"$0.00"}},{"$f":"'MMA Rev-Exp Region 10'!AD$66","v":{"v":0,"d":"$0.00"}},{"$f":"'MMA Rev-Exp Region 10'!AE$66","v":{"v":0,"d":"$0.00"}},{"$f":"'MMA Rev-Exp Region 10'!AF$66","v":{"v":0,"d":"$0.00"}},{"$f":"'MMA Rev-Exp Region 10'!AG$66","v":{"v":0,"d":"$0.00"}},{"$f":"'MMA Rev-Exp Region 10'!AH$66","v":{"v":0,"d":"$0.00"}},{"$f":"'MMA Rev-Exp Region 10'!AI$66","v":{"v":0,"d":"$0.00"}},{"$f":"'MMA Rev-Exp Region 10'!AJ$66","v":{"v":0,"d":"$0.00"}},{"v":0,"d":"$0.00"}]
["MMA",null,null,{"$f":"Jurat!I$1","v":0},{"$f":"Jurat!D$33","v":"00:00:00"},"Q3","2017-09-30","Region 10","Operating Expense","Medical Benefits Expense","Other MMA Services","9.6","Ending IBNP for Other Services",{"$f":"'MMA Rev-Exp Region 10'!Z$69","v":{"v":0,"d":"$0.00"}},{"$f":"'MMA Rev-Exp Region 10'!AA$69","v":{"v":0,"d":"$0.00"}},{"$f":"'MMA Rev-Exp Region 10'!AB$69","v":{"v":0,"d":"$0.00"}},{"$f":"'MMA Rev-Exp Region 10'!AC$69","v":{"v":0,"d":"$0.00"}},{"$f":"'MMA Rev-Exp Region 10'!AD$69","v":{"v":0,"d":"$0.00"}},{"$f":"'MMA Rev-Exp Region 10'!AE$69","v":{"v":0,"d":"$0.00"}},{"$f":"'MMA Rev-Exp Region 10'!AF$69","v":{"v":0,"d":"$0.00"}},{"$f":"'MMA Rev-Exp Region 10'!AG$69","v":{"v":0,"d":"$0.00"}},{"$f":"'MMA Rev-Exp Region 10'!AH$69","v":{"v":0,"d":"$0.00"}},{"$f":"'MMA Rev-Exp Region 10'!AI$69","v":{"v":0,"d":"$0.00"}},{"$f":"'MMA Rev-Exp Region 10'!AJ$69","v":{"v":0,"d":"$0.00"}},{"v":0,"d":"$0.00"}]
["MMA",null,null,{"$f":"Jurat!I$1","v":0},{"$f":"Jurat!D$33","v":"00:00:00"},"Q3","2017-09-30","Region 10","Operating Expense","Medical Benefits Expense","Expanded Benefits","10.2","Expanded benefits Subcapitation",{"$f":"'MMA Rev-Exp Region 10'!Z$73","v":{"v":0,"d":"$0.00"}},{"$f":"'MMA Rev-Exp Region 10'!AA$73","v":{"v":0,"d":"$0.00"}},{"$f":"'MMA Rev-Exp Region 10'!AB$73","v":{"v":0,"d":"$0.00"}},{"$f":"'MMA Rev-Exp Region 10'!AC$73","v":{"v":0,"d":"$0.00"}},{"$f":"'MMA Rev-Exp Region 10'!AD$73","v":{"v":0,"d":"$0.00"}},{"$f":"'MMA Rev-Exp Region 10'!AE$73","v":{"v":0,"d":"$0.00"}},{"$f":"'MMA Rev-Exp Region 10'!AF$73","v":{"v":0,"d":"$0.00"}},{"$f":"'MMA Rev-Exp Region 10'!AG$73","v":{"v":0,"d":"$0.00"}},{"$f":"'MMA Rev-Exp Region 10'!AH$73","v":{"v":0,"d":"$0.00"}},{"$f":"'MMA Rev-Exp Region 10'!AI$73","v":{"v":0,"d":"$0.00"}},{"$f":"'MMA Rev-Exp Region 10'!AJ$73","v":{"v":0,"d":"$0.00"}},{"v":0,"d":"$0.00"}]
["MMA",null,null,{"$f":"Jurat!I$1","v":0},{"$f":"Jurat!D$33","v":"00:00:00"},"Q3","2017-09-30","Region 10","Operating Expense","Medical Benefits Expense","Other Medical","11.6.1","Premium Deficiency Reserve",{"$f":"'MMA Rev-Exp Region 10'!Z$82","v":{"v":0,"d":"$0.00"}},{"$f":"'MMA Rev-Exp Region 10'!AA$82","v":{"v":0,"d":"$0.00"}},{"$f":"'MMA Rev-Exp Region 10'!AB$82","v":{"v":0,"d":"$0.00"}},{"$f":"'MMA Rev-Exp Region 10'!AC$82","v":{"v":0,"d":"$0.00"}},{"$f":"'MMA Rev-Exp Region 10'!AD$82","v":{"v":0,"d":"$0.00"}},{"$f":"'MMA Rev-Exp Region 10'!AE$82","v":{"v":0,"d":"$0.00"}},{"$f":"'MMA Rev-Exp Region 10'!AF$82","v":{"v":0,"d":"$0.00"}},{"$f":"'MMA Rev-Exp Region 10'!AG$82","v":{"v":0,"d":"$0.00"}},{"$f":"'MMA Rev-Exp Region 10'!AH$82","v":{"v":0,"d":"$0.00"}},{"$f":"'MMA Rev-Exp Region 10'!AI$82","v":{"v":0,"d":"$0.00"}},{"$f":"'MMA Rev-Exp Region 10'!AJ$82","v":{"v":0,"d":"$0.00"}},{"v":0,"d":"$0.00"}]
["MMA",null,null,{"$f":"Jurat!I$1","v":0},{"$f":"Jurat!D$33","v":"00:00:00"},"Q3","2017-09-30","Region 10","Operating Expense","Administrative Expense","Administrative","12.1","Salaries & Benefits",{"$f":"'MMA Rev-Exp Region 10'!Z$90","v":{"v":0,"d":"$0.00"}},{"v":0,"d":"$0.00"},{"v":0,"d":"$0.00"},{"v":0,"d":"$0.00"},{"v":0,"d":"$0.00"},{"v":0,"d":"$0.00"},{"v":0,"d":"$0.00"},{"v":0,"d":"$0.00"},{"v":0,"d":"$0.00"},{"v":0,"d":"$0.00"},{"v":0,"d":"$0.00"},{"v":0,"d":"$0.00"}]
["MMA",null,null,{"$f":"Jurat!I$1","v":0},{"$f":"Jurat!D$33","v":"00:00:00"},"Q3","2017-09-30","Region 10","Operating Expense","Administrative Expense","Administrative","12.4","Marketing Expenses",{"$f":"'MMA Rev-Exp Region 10'!Z$93","v":{"v":0,"d":"$0.00"}},{"v":0,"d":"$0.00"},{"v":0,"d":"$0.00"},{"v":0,"d":"$0.00"},{"v":0,"d":"$0.00"},{"v":0,"d":"$0.00"},{"v":0,"d":"$0.00"},{"v":0,"d":"$0.00"},{"v":0,"d":"$0.00"},{"v":0,"d":"$0.00"},{"v":0,"d":"$0.00"},{"v":0,"d":"$0.00"}]
["MMA",null,null,{"$f":"Jurat!I$1","v":0},{"$f":"Jurat!D$33","v":"00:00:00"},"Q3","2017-09-30","Region 10","Operating Expense","Taxes & Fees","Taxes & Fees","13.1","State Premium tax",{"$f":"'MMA Rev-Exp Region 10'!Z$97","v":{"v":0,"d":"$0.00"}},{"v":0,"d":"$0.00"},{"v":0,"d":"$0.00"},{"v":0,"d":"$0.00"},{"v":0,"d":"$0.00"},{"v":0,"d":"$0.00"},{"v":0,"d":"$0.00"},{"v":0,"d":"$0.00"},{"v":0,"d":"$0.00"},{"v":0,"d":"$0.00"},{"v":0,"d":"$0.00"},{"v":0,"d":"$0.00"}]
["MMA",null,null,{"$f":"Jurat!I$1","v":0},{"$f":"Jurat!D$33","v":"00:00:00"},"Q3","2017-09-30","Region 10","Non-Operating Expense","Income Tax Expense","Income Tax Expense","16.0","Income Tax Expense",{"$f":"'MMA Rev-Exp Region 10'!Z$106","v":{"v":0,"d":"$0.00"}},{"v":0,"d":"$0.00"},{"v":0,"d":"$0.00"},{"v":0,"d":"$0.00"},{"v":0,"d":"$0.00"},{"v":0,"d":"$0.00"},{"v":0,"d":"$0.00"},{"v":0,"d":"$0.00"},{"v":0,"d":"$0.00"},{"v":0,"d":"$0.00"},{"v":0,"d":"$0.00"},{"v":0,"d":"$0.00"}]
["MMA",null,null,{"$f":"Jurat!I$1","v":0},{"$f":"Jurat!D$33","v":"00:00:00"},"Q4","2017-12-31","Region 10","Member Months","Member Months","Member Months",null,"Member Months",{"$f":"'MMA Rev-Exp Region 10'!AK$9","v":{"v":0,"d":"$0.00"}},{"$f":"'MMA Rev-Exp Region 10'!AL$9","v":{"v":0,"d":"$0.00"}},{"$f":"'MMA Rev-Exp Region 10'!AM$9","v":{"v":0,"d":"$0.00"}},{"$f":"'MMA Rev-Exp Region 10'!AN$9","v":{"v":0,"d":"$0.00"}},{"$f":"'MMA Rev-Exp Region 10'!AO$9","v":{"v":0,"d":"$0.00"}},{"$f":"'MMA Rev-Exp Region 10'!AP$9","v":{"v":0,"d":"$0.00"}},{"$f":"'MMA Rev-Exp Region 10'!AQ$9","v":{"v":0,"d":"$0.00"}},{"$f":"'MMA Rev-Exp Region 10'!AR$9","v":{"v":0,"d":"$0.00"}},{"$f":"'MMA Rev-Exp Region 10'!AS$9","v":{"v":0,"d":"$0.00"}},{"$f":"'MMA Rev-Exp Region 10'!AT$9","v":{"v":0,"d":"$0.00"}},{"$f":"'MMA Rev-Exp Region 10'!AU$9","v":{"v":0,"d":"$0.00"}},{"v":0,"d":"$0.00"}]
["MMA",null,null,{"$f":"Jurat!I$1","v":0},{"$f":"Jurat!D$33","v":"00:00:00"},"Q4","2017-12-31","Region 10","Operating Revenue","Kick Payments","Kick Payments - Hep C","1.3","Hepatitis C Kick Payments",{"$f":"'MMA Rev-Exp Region 10'!AK$13","v":{"v":0,"d":"$0.00"}},{"$f":"'MMA Rev-Exp Region 10'!AL$13","v":{"v":0,"d":"$0.00"}},{"$f":"'MMA Rev-Exp Region 10'!AM$13","v":{"v":0,"d":"$0.00"}},{"$f":"'MMA Rev-Exp Region 10'!AN$13","v":{"v":0,"d":"$0.00"}},{"$f":"'MMA Rev-Exp Region 10'!AO$13","v":{"v":0,"d":"$0.00"}},{"$f":"'MMA Rev-Exp Region 10'!AP$13","v":{"v":0,"d":"$0.00"}},{"$f":"'MMA Rev-Exp Region 10'!AQ$13","v":{"v":0,"d":"$0.00"}},{"$f":"'MMA Rev-Exp Region 10'!AR$13","v":{"v":0,"d":"$0.00"}},{"$f":"'MMA Rev-Exp Region 10'!AS$13","v":{"v":0,"d":"$0.00"}},{"$f":"'MMA Rev-Exp Region 10'!AT$13","v":{"v":0,"d":"$0.00"}},{"$f":"'MMA Rev-Exp Region 10'!AU$13","v":{"v":0,"d":"$0.00"}},{"v":0,"d":"$0.00"}]
["MMA",null,null,{"$f":"Jurat!I$1","v":0},{"$f":"Jurat!D$33","v":"00:00:00"},"Q4","2017-12-31","Region 10","Operating Revenue","Other Revenue","Other Revenue","1.6","Other Revenue",{"$f":"'MMA Rev-Exp Region 10'!AK$16","v":{"v":0,"d":"$0.00"}},{"$f":"'MMA Rev-Exp Region 10'!AL$16","v":{"v":0,"d":"$0.00"}},{"$f":"'MMA Rev-Exp Region 10'!AM$16","v":{"v":0,"d":"$0.00"}},{"$f":"'MMA Rev-Exp Region 10'!AN$16","v":{"v":0,"d":"$0.00"}},{"$f":"'MMA Rev-Exp Region 10'!AO$16","v":{"v":0,"d":"$0.00"}},{"$f":"'MMA Rev-Exp Region 10'!AP$16","v":{"v":0,"d":"$0.00"}},{"$f":"'MMA Rev-Exp Region 10'!AQ$16","v":{"v":0,"d":"$0.00"}},{"$f":"'MMA Rev-Exp Region 10'!AR$16","v":{"v":0,"d":"$0.00"}},{"$f":"'MMA Rev-Exp Region 10'!AS$16","v":{"v":0,"d":"$0.00"}},{"$f":"'MMA Rev-Exp Region 10'!AT$16","v":{"v":0,"d":"$0.00"}},{"$f":"'MMA Rev-Exp Region 10'!AU$16","v":{"v":0,"d":"$0.00"}},{"v":0,"d":"$0.00"}]
["MMA",null,null,{"$f":"Jurat!I$1","v":0},{"$f":"Jurat!D$33","v":"00:00:00"},"Q4","2017-12-31","Region 10","Operating Expense","Medical Benefits Expense","Hospital Services",2.4,"Outpatient FFS: Other than ER ",{"$f":"'MMA Rev-Exp Region 10'!AK$23","v":{"v":0,"d":"$0.00"}},{"$f":"'MMA Rev-Exp Region 10'!AL$23","v":{"v":0,"d":"$0.00"}},{"$f":"'MMA Rev-Exp Region 10'!AM$23","v":{"v":0,"d":"$0.00"}},{"$f":"'MMA Rev-Exp Region 10'!AN$23","v":{"v":0,"d":"$0.00"}},{"$f":"'MMA Rev-Exp Region 10'!AO$23","v":{"v":0,"d":"$0.00"}},{"$f":"'MMA Rev-Exp Region 10'!AP$23","v":{"v":0,"d":"$0.00"}},{"$f":"'MMA Rev-Exp Region 10'!AQ$23","v":{"v":0,"d":"$0.00"}},{"$f":"'MMA Rev-Exp Region 10'!AR$23","v":{"v":0,"d":"$0.00"}},{"$f":"'MMA Rev-Exp Region 10'!AS$23","v":{"v":0,"d":"$0.00"}},{"$f":"'MMA Rev-Exp Region 10'!AT$23","v":{"v":0,"d":"$0.00"}},{"$f":"'MMA Rev-Exp Region 10'!AU$23","v":{"v":0,"d":"$0.00"}},{"v":0,"d":"$0.00"}]
["MMA",null,null,{"$f":"Jurat!I$1","v":0},{"$f":"Jurat!D$33","v":"00:00:00"},"Q4","2017-12-31","Region 10","Operating Expense","Medical Benefits Expense","Hospital Services","2.7","Hospital Settlements",{"$f":"'MMA Rev-Exp Region 10'!AK$26","v":{"v":0,"d":"$0.00"}},{"$f":"'MMA Rev-Exp Region 10'!AL$26","v":{"v":0,"d":"$0.00"}},{"$f":"'MMA Rev-Exp Region 10'!AM$26","v":{"v":0,"d":"$0.00"}},{"$f":"'MMA Rev-Exp Region 10'!AN$26","v":{"v":0,"d":"$0.00"}},{"$f":"'MMA Rev-Exp Region 10'!AO$26","v":{"v":0,"d":"$0.00"}},{"$f":"'MMA Rev-Exp Region 10'!AP$26","v":{"v":0,"d":"$0.00"}},{"$f":"'MMA Rev-Exp Region 10'!AQ$26","v":{"v":0,"d":"$0.00"}},{"$f":"'MMA Rev-Exp Region 10'!AR$26","v":{"v":0,"d":"$0.00"}},{"$f":"'MMA Rev-Exp Region 10'!AS$26","v":{"v":0,"d":"$0.00"}},{"$f":"'MMA Rev-Exp Region 10'!AT$26","v":{"v":0,"d":"$0.00"}},{"$f":"'MMA Rev-Exp Region 10'!AU$26","v":{"v":0,"d":"$0.00"}},{"v":0,"d":"$0.00"}]
["MMA",null,null,{"$f":"Jurat!I$1","v":0},{"$f":"Jurat!D$33","v":"00:00:00"},"Q4","2017-12-31","Region 10","Operating Expense","Medical Benefits Expense","Professional Services",3.3,"Other Professional FFS",{"$f":"'MMA Rev-Exp Region 10'!AK$31","v":{"v":0,"d":"$0.00"}},{"$f":"'MMA Rev-Exp Region 10'!AL$31","v":{"v":0,"d":"$0.00"}},{"$f":"'MMA Rev-Exp Region 10'!AM$31","v":{"v":0,"d":"$0.00"}},{"$f":"'MMA Rev-Exp Region 10'!AN$31","v":{"v":0,"d":"$0.00"}},{"$f":"'MMA Rev-Exp Region 10'!AO$31","v":{"v":0,"d":"$0.00"}},{"$f":"'MMA Rev-Exp Region 10'!AP$31","v":{"v":0,"d":"$0.00"}},{"$f":"'MMA Rev-Exp Region 10'!AQ$31","v":{"v":0,"d":"$0.00"}},{"$f":"'MMA Rev-Exp Region 10'!AR$31","v":{"v":0,"d":"$0.00"}},{"$f":"'MMA Rev-Exp Region 10'!AS$31","v":{"v":0,"d":"$0.00"}},{"$f":"'MMA Rev-Exp Region 10'!AT$31","v":{"v":0,"d":"$0.00"}},{"$f":"'MMA Rev-Exp Region 10'!AU$31","v":{"v":0,"d":"$0.00"}},{"v":0,"d":"$0.00"}]
["MMA",null,null,{"$f":"Jurat!I$1","v":0},{"$f":"Jurat!D$33","v":"00:00:00"},"Q4","2017-12-31","Region 10","Operating Expense","Medical Benefits Expense","Professional Services","3.6","Ending IBNP for Professional Services",{"$f":"'MMA Rev-Exp Region 10'!AK$34","v":{"v":0,"d":"$0.00"}},{"$f":"'MMA Rev-Exp Region 10'!AL$34","v":{"v":0,"d":"$0.00"}},{"$f":"'MMA Rev-Exp Region 10'!AM$34","v":{"v":0,"d":"$0.00"}},{"$f":"'MMA Rev-Exp Region 10'!AN$34","v":{"v":0,"d":"$0.00"}},{"$f":"'MMA Rev-Exp Region 10'!AO$34","v":{"v":0,"d":"$0.00"}},{"$f":"'MMA Rev-Exp Region 10'!AP$34","v":{"v":0,"d":"$0.00"}},{"$f":"'MMA Rev-Exp Region 10'!AQ$34","v":{"v":0,"d":"$0.00"}},{"$f":"'MMA Rev-Exp Region 10'!AR$34","v":{"v":0,"d":"$0.00"}},{"$f":"'MMA Rev-Exp Region 10'!AS$34","v":{"v":0,"d":"$0.00"}},{"$f":"'MMA Rev-Exp Region 10'!AT$34","v":{"v":0,"d":"$0.00"}},{"$f":"'MMA Rev-Exp Region 10'!AU$34","v":{"v":0,"d":"$0.00"}},{"v":0,"d":"$0.00"}]
["MMA",null,null,{"$f":"Jurat!I$1","v":0},{"$f":"Jurat!D$33","v":"00:00:00"},"Q4","2017-12-31","Region 10","Operating Expense","Medical Benefits Expense","Maternity Services","4.1.1","Maternity Services",{"$f":"'MMA Rev-Exp Region 10'!AK$37","v":{"v":0,"d":"$0.00"}},{"$f":"'MMA Rev-Exp Region 10'!AL$37","v":{"v":0,"d":"$0.00"}},{"$f":"'MMA Rev-Exp Region 10'!AM$37","v":{"v":0,"d":"$0.00"}},{"$f":"'MMA Rev-Exp Region 10'!AN$37","v":{"v":0,"d":"$0.00"}},{"$f":"'MMA Rev-Exp Region 10'!AO$37","v":{"v":0,"d":"$0.00"}},{"$f":"'MMA Rev-Exp Region 10'!AP$37","v":{"v":0,"d":"$0.00"}},{"$f":"'MMA Rev-Exp Region 10'!AQ$37","v":{"v":0,"d":"$0.00"}},{"$f":"'MMA Rev-Exp Region 10'!AR$37","v":{"v":0,"d":"$0.00"}},{"$f":"'MMA Rev-Exp Region 10'!AS$37","v":{"v":0,"d":"$0.00"}},{"$f":"'MMA Rev-Exp Region 10'!AT$37","v":{"v":0,"d":"$0.00"}},{"$f":"'MMA Rev-Exp Region 10'!AU$37","v":{"v":0,"d":"$0.00"}},{"v":0,"d":"$0.00"}]
["MMA",null,null,{"$f":"Jurat!I$1","v":0},{"$f":"Jurat!D$33","v":"00:00:00"},"Q4","2017-12-31","Region 10","Operating Expense","Medical Benefits Expense","Maternity Services","4.2.1","Ending IBNP for Maternity Services",{"$f":"'MMA Rev-Exp Region 10'!AK$38","v":{"v":0,"d":"$0.00"}},{"$f":"'MMA Rev-Exp Region 10'!AL$38","v":{"v":0,"d":"$0.00"}},{"$f":"'MMA Rev-Exp Region 10'!AM$38","v":{"v":0,"d":"$0.00"}},{"$f":"'MMA Rev-Exp Region 10'!AN$38","v":{"v":0,"d":"$0.00"}},{"$f":"'MMA Rev-Exp Region 10'!AO$38","v":{"v":0,"d":"$0.00"}},{"$f":"'MMA Rev-Exp Region 10'!AP$38","v":{"v":0,"d":"$0.00"}},{"$f":"'MMA Rev-Exp Region 10'!AQ$38","v":{"v":0,"d":"$0.00"}},{"$f":"'MMA Rev-Exp Region 10'!AR$38","v":{"v":0,"d":"$0.00"}},{"$f":"'MMA Rev-Exp Region 10'!AS$38","v":{"v":0,"d":"$0.00"}},{"$f":"'MMA Rev-Exp Region 10'!AT$38","v":{"v":0,"d":"$0.00"}},{"$f":"'MMA Rev-Exp Region 10'!AU$38","v":{"v":0,"d":"$0.00"}},{"v":0,"d":"$0.00"}]
["MMA",null,null,{"$f":"Jurat!I$1","v":0},{"$f":"Jurat!D$33","v":"00:00:00"},"Q4","2017-12-31","Region 10","Operating Expense","Medical Benefits Expense","Mental Health Services",5.2,"Mental Health & Substance Abuse Subcapitation",{"$f":"'MMA Rev-Exp Region 10'!AK$42","v":{"v":0,"d":"$0.00"}},{"$f":"'MMA Rev-Exp Region 10'!AL$42","v":{"v":0,"d":"$0.00"}},{"$f":"'MMA Rev-Exp Region 10'!AM$42","v":{"v":0,"d":"$0.00"}},{"$f":"'MMA Rev-Exp Region 10'!AN$42","v":{"v":0,"d":"$0.00"}},{"$f":"'MMA Rev-Exp Region 10'!AO$42","v":{"v":0,"d":"$0.00"}},{"$f":"'MMA Rev-Exp Region 10'!AP$42","v":{"v":0,"d":"$0.00"}},{"$f":"'MMA Rev-Exp Region 10'!AQ$42","v":{"v":0,"d":"$0.00"}},{"$f":"'MMA Rev-Exp Region 10'!AR$42","v":{"v":0,"d":"$0.00"}},{"$f":"'MMA Rev-Exp Region 10'!AS$42","v":{"v":0,"d":"$0.00"}},{"$f":"'MMA Rev-Exp Region 10'!AT$42","v":{"v":0,"d":"$0.00"}},{"$f":"'MMA Rev-Exp Region 10'!AU$42","v":{"v":0,"d":"$0.00"}},{"v":0,"d":"$0.00"}]
["MMA",null,null,{"$f":"Jurat!I$1","v":0},{"$f":"Jurat!D$33","v":"00:00:00"},"Q4","2017-12-31","Region 10","Operating Expense","Medical Benefits Expense","Dental Services",6.1,"Dental FFS",{"$f":"'MMA Rev-Exp Region 10'!AK$46","v":{"v":0,"d":"$0.00"}},{"$f":"'MMA Rev-Exp Region 10'!AL$46","v":{"v":0,"d":"$0.00"}},{"$f":"'MMA Rev-Exp Region 10'!AM$46","v":{"v":0,"d":"$0.00"}},{"$f":"'MMA Rev-Exp Region 10'!AN$46","v":{"v":0,"d":"$0.00"}},{"$f":"'MMA Rev-Exp Region 10'!AO$46","v":{"v":0,"d":"$0.00"}},{"$f":"'MMA Rev-Exp Region 10'!AP$46","v":{"v":0,"d":"$0.00"}},{"$f":"'MMA Rev-Exp Region 10'!AQ$46","v":{"v":0,"d":"$0.00"}},{"$f":"'MMA Rev-Exp Region 10'!AR$46","v":{"v":0,"d":"$0.00"}},{"$f":"'MMA Rev-Exp Region 10'!AS$46","v":{"v":0,"d":"$0.00"}},{"$f":"'MMA Rev-Exp Region 10'!AT$46","v":{"v":0,"d":"$0.00"}},{"$f":"'MMA Rev-Exp Region 10'!AU$46","v":{"v":0,"d":"$0.00"}},{"v":0,"d":"$0.00"}]
["MMA",null,null,{"$f":"Jurat!I$1","v":0},{"$f":"Jurat!D$33","v":"00:00:00"},"Q4","2017-12-31","Region 10","Operating Expense","Medical Benefits Expense","Transportation Services",7.1,"Transportation FFS",{"$f":"'MMA Rev-Exp Region 10'!AK$51","v":{"v":0,"d":"$0.00"}},{"$f":"'MMA Rev-Exp Region 10'!AL$51","v":{"v":0,"d":"$0.00"}},{"$f":"'MMA Rev-Exp Region 10'!AM$51","v":{"v":0,"d":"$0.00"}},{"$f":"'MMA Rev-Exp Region 10'!AN$51","v":{"v":0,"d":"$0.00"}},{"$f":"'MMA Rev-Exp Region 10'!AO$51","v":{"v":0,"d":"$0.00"}},{"$f":"'MMA Rev-Exp Region 10'!AP$51","v":{"v":0,"d":"$0.00"}},{"$f":"'MMA Rev-Exp Region 10'!AQ$51","v":{"v":0,"d":"$0.00"}},{"$f":"'MMA Rev-Exp Region 10'!AR$51","v":{"v":0,"d":"$0.00"}},{"$f":"'MMA Rev-Exp Region 10'!AS$51","v":{"v":0,"d":"$0.00"}},{"$f":"'MMA Rev-Exp Region 10'!AT$51","v":{"v":0,"d":"$0.00"}},{"$f":"'MMA Rev-Exp Region 10'!AU$51","v":{"v":0,"d":"$0.00"}},{"v":0,"d":"$0.00"}]
["MMA",null,null,{"$f":"Jurat!I$1","v":0},{"$f":"Jurat!D$33","v":"00:00:00"},"Q4","2017-12-31","Region 10","Operating Expense","Medical Benefits Expense","Transportation Services","7.4","Transportation Settlements",{"$f":"'MMA Rev-Exp Region 10'!AK$54","v":{"v":0,"d":"$0.00"}},{"$f":"'MMA Rev-Exp Region 10'!AL$54","v":{"v":0,"d":"$0.00"}},{"$f":"'MMA Rev-Exp Region 10'!AM$54","v":{"v":0,"d":"$0.00"}},{"$f":"'MMA Rev-Exp Region 10'!AN$54","v":{"v":0,"d":"$0.00"}},{"$f":"'MMA Rev-Exp Region 10'!AO$54","v":{"v":0,"d":"$0.00"}},{"$f":"'MMA Rev-Exp Region 10'!AP$54","v":{"v":0,"d":"$0.00"}},{"$f":"'MMA Rev-Exp Region 10'!AQ$54","v":{"v":0,"d":"$0.00"}},{"$f":"'MMA Rev-Exp Region 10'!AR$54","v":{"v":0,"d":"$0.00"}},{"$f":"'MMA Rev-Exp Region 10'!AS$54","v":{"v":0,"d":"$0.00"}},{"$f":"'MMA Rev-Exp Region 10'!AT$54","v":{"v":0,"d":"$0.00"}},{"$f":"'MMA Rev-Exp Region 10'!AU$54","v":{"v":0,"d":"$0.00"}},{"v":0,"d":"$0.00"}]
["MMA",null,null,{"$f":"Jurat!I$1","v":0},{"$f":"Jurat!D$33","v":"00:00:00"},"Q4","2017-12-31","Region 10","Operating Expense","Medical Benefits Expense","Pharmacy Services","8.4","Prescription Drug Rebates ",{"$f":"'MMA Rev-Exp Region 10'!AK$59","v":{"v":0,"d":"$0.00"}},{"$f":"'MMA Rev-Exp Region 10'!AL$59","v":{"v":0,"d":"$0.00"}},{"$f":"'MMA Rev-Exp Region 10'!AM$59","v":{"v":0,"d":"$0.00"}},{"$f":"'MMA Rev-Exp Region 10'!AN$59","v":{"v":0,"d":"$0.00"}},{"$f":"'MMA Rev-Exp Region 10'!AO$59","v":{"v":0,"d":"$0.00"}},{"$f":"'MMA Rev-Exp Region 10'!AP$59","v":{"v":0,"d":"$0.00"}},{"$f":"'MMA Rev-Exp Region 10'!AQ$59","v":{"v":0,"d":"$0.00"}},{"$f":"'MMA Rev-Exp Region 10'!AR$59","v":{"v":0,"d":"$0.00"}},{"$f":"'MMA Rev-Exp Region 10'!AS$59","v":{"v":0,"d":"$0.00"}},{"$f":"'MMA Rev-Exp Region 10'!AT$59","v":{"v":0,"d":"$0.00"}},{"$f":"'MMA Rev-Exp Region 10'!AU$59","v":{"v":0,"d":"$0.00"}},{"v":0,"d":"$0.00"}]
["MMA",null,null,{"$f":"Jurat!I$1","v":0},{"$f":"Jurat!D$33","v":"00:00:00"},"Q4","2017-12-31","Region 10","Operating Expense","Medical Benefits Expense","Pharmacy Services","8.7","Prescription Drug Settlements",{"$f":"'MMA Rev-Exp Region 10'!AK$62","v":{"v":0,"d":"$0.00"}},{"$f":"'MMA Rev-Exp Region 10'!AL$62","v":{"v":0,"d":"$0.00"}},{"$f":"'MMA Rev-Exp Region 10'!AM$62","v":{"v":0,"d":"$0.00"}},{"$f":"'MMA Rev-Exp Region 10'!AN$62","v":{"v":0,"d":"$0.00"}},{"$f":"'MMA Rev-Exp Region 10'!AO$62","v":{"v":0,"d":"$0.00"}},{"$f":"'MMA Rev-Exp Region 10'!AP$62","v":{"v":0,"d":"$0.00"}},{"$f":"'MMA Rev-Exp Region 10'!AQ$62","v":{"v":0,"d":"$0.00"}},{"$f":"'MMA Rev-Exp Region 10'!AR$62","v":{"v":0,"d":"$0.00"}},{"$f":"'MMA Rev-Exp Region 10'!AS$62","v":{"v":0,"d":"$0.00"}},{"$f":"'MMA Rev-Exp Region 10'!AT$62","v":{"v":0,"d":"$0.00"}},{"$f":"'MMA Rev-Exp Region 10'!AU$62","v":{"v":0,"d":"$0.00"}},{"v":0,"d":"$0.00"}]
["MMA",null,null,{"$f":"Jurat!I$1","v":0},{"$f":"Jurat!D$33","v":"00:00:00"},"Q4","2017-12-31","Region 10","Operating Expense","Medical Benefits Expense","Other MMA Services","9.3","DME FFS",{"$f":"'MMA Rev-Exp Region 10'!AK$66","v":{"v":0,"d":"$0.00"}},{"$f":"'MMA Rev-Exp Region 10'!AL$66","v":{"v":0,"d":"$0.00"}},{"$f":"'MMA Rev-Exp Region 10'!AM$66","v":{"v":0,"d":"$0.00"}},{"$f":"'MMA Rev-Exp Region 10'!AN$66","v":{"v":0,"d":"$0.00"}},{"$f":"'MMA Rev-Exp Region 10'!AO$66","v":{"v":0,"d":"$0.00"}},{"$f":"'MMA Rev-Exp Region 10'!AP$66","v":{"v":0,"d":"$0.00"}},{"$f":"'MMA Rev-Exp Region 10'!AQ$66","v":{"v":0,"d":"$0.00"}},{"$f":"'MMA Rev-Exp Region 10'!AR$66","v":{"v":0,"d":"$0.00"}},{"$f":"'MMA Rev-Exp Region 10'!AS$66","v":{"v":0,"d":"$0.00"}},{"$f":"'MMA Rev-Exp Region 10'!AT$66","v":{"v":0,"d":"$0.00"}},{"$f":"'MMA Rev-Exp Region 10'!AU$66","v":{"v":0,"d":"$0.00"}},{"v":0,"d":"$0.00"}]
["MMA",null,null,{"$f":"Jurat!I$1","v":0},{"$f":"Jurat!D$33","v":"00:00:00"},"Q4","2017-12-31","Region 10","Operating Expense","Medical Benefits Expense","Other MMA Services","9.4","Other State Plan Services FFS",{"$f":"'MMA Rev-Exp Region 10'!AK$67","v":{"v":0,"d":"$0.00"}},{"$f":"'MMA Rev-Exp Region 10'!AL$67","v":{"v":0,"d":"$0.00"}},{"$f":"'MMA Rev-Exp Region 10'!AM$67","v":{"v":0,"d":"$0.00"}},{"$f":"'MMA Rev-Exp Region 10'!AN$67","v":{"v":0,"d":"$0.00"}},{"$f":"'MMA Rev-Exp Region 10'!AO$67","v":{"v":0,"d":"$0.00"}},{"$f":"'MMA Rev-Exp Region 10'!AP$67","v":{"v":0,"d":"$0.00"}},{"$f":"'MMA Rev-Exp Region 10'!AQ$67","v":{"v":0,"d":"$0.00"}},{"$f":"'MMA Rev-Exp Region 10'!AR$67","v":{"v":0,"d":"$0.00"}},{"$f":"'MMA Rev-Exp Region 10'!AS$67","v":{"v":0,"d":"$0.00"}},{"$f":"'MMA Rev-Exp Region 10'!AT$67","v":{"v":0,"d":"$0.00"}},{"$f":"'MMA Rev-Exp Region 10'!AU$67","v":{"v":0,"d":"$0.00"}},{"v":0,"d":"$0.00"}]
["MMA",null,null,{"$f":"Jurat!I$1","v":0},{"$f":"Jurat!D$33","v":"00:00:00"},"Q4","2017-12-31","Region 10","Operating Expense","Medical Benefits Expense","Other MMA Services","9.6","Ending IBNP for Other Services",{"$f":"'MMA Rev-Exp Region 10'!AK$69","v":{"v":0,"d":"$0.00"}},{"$f":"'MMA Rev-Exp Region 10'!AL$69","v":{"v":0,"d":"$0.00"}},{"$f":"'MMA Rev-Exp Region 10'!AM$69","v":{"v":0,"d":"$0.00"}},{"$f":"'MMA Rev-Exp Region 10'!AN$69","v":{"v":0,"d":"$0.00"}},{"$f":"'MMA Rev-Exp Region 10'!AO$69","v":{"v":0,"d":"$0.00"}},{"$f":"'MMA Rev-Exp Region 10'!AP$69","v":{"v":0,"d":"$0.00"}},{"$f":"'MMA Rev-Exp Region 10'!AQ$69","v":{"v":0,"d":"$0.00"}},{"$f":"'MMA Rev-Exp Region 10'!AR$69","v":{"v":0,"d":"$0.00"}},{"$f":"'MMA Rev-Exp Region 10'!AS$69","v":{"v":0,"d":"$0.00"}},{"$f":"'MMA Rev-Exp Region 10'!AT$69","v":{"v":0,"d":"$0.00"}},{"$f":"'MMA Rev-Exp Region 10'!AU$69","v":{"v":0,"d":"$0.00"}},{"v":0,"d":"$0.00"}]
["MMA",null,null,{"$f":"Jurat!I$1","v":0},{"$f":"Jurat!D$33","v":"00:00:00"},"Q4","2017-12-31","Region 10","Operating Expense","Medical Benefits Expense","Expanded Benefits","10.2","Expanded benefits Subcapitation",{"$f":"'MMA Rev-Exp Region 10'!AK$73","v":{"v":0,"d":"$0.00"}},{"$f":"'MMA Rev-Exp Region 10'!AL$73","v":{"v":0,"d":"$0.00"}},{"$f":"'MMA Rev-Exp Region 10'!AM$73","v":{"v":0,"d":"$0.00"}},{"$f":"'MMA Rev-Exp Region 10'!AN$73","v":{"v":0,"d":"$0.00"}},{"$f":"'MMA Rev-Exp Region 10'!AO$73","v":{"v":0,"d":"$0.00"}},{"$f":"'MMA Rev-Exp Region 10'!AP$73","v":{"v":0,"d":"$0.00"}},{"$f":"'MMA Rev-Exp Region 10'!AQ$73","v":{"v":0,"d":"$0.00"}},{"$f":"'MMA Rev-Exp Region 10'!AR$73","v":{"v":0,"d":"$0.00"}},{"$f":"'MMA Rev-Exp Region 10'!AS$73","v":{"v":0,"d":"$0.00"}},{"$f":"'MMA Rev-Exp Region 10'!AT$73","v":{"v":0,"d":"$0.00"}},{"$f":"'MMA Rev-Exp Region 10'!AU$73","v":{"v":0,"d":"$0.00"}},{"v":0,"d":"$0.00"}]
["MMA",null,null,{"$f":"Jurat!I$1","v":0},{"$f":"Jurat!D$33","v":"00:00:00"},"Q4","2017-12-31","Region 10","Operating Expense","Medical Benefits Expense","Other Medical","11.6.1","Premium Deficiency Reserve",{"$f":"'MMA Rev-Exp Region 10'!AK$82","v":{"v":0,"d":"$0.00"}},{"$f":"'MMA Rev-Exp Region 10'!AL$82","v":{"v":0,"d":"$0.00"}},{"$f":"'MMA Rev-Exp Region 10'!AM$82","v":{"v":0,"d":"$0.00"}},{"$f":"'MMA Rev-Exp Region 10'!AN$82","v":{"v":0,"d":"$0.00"}},{"$f":"'MMA Rev-Exp Region 10'!AO$82","v":{"v":0,"d":"$0.00"}},{"$f":"'MMA Rev-Exp Region 10'!AP$82","v":{"v":0,"d":"$0.00"}},{"$f":"'MMA Rev-Exp Region 10'!AQ$82","v":{"v":0,"d":"$0.00"}},{"$f":"'MMA Rev-Exp Region 10'!AR$82","v":{"v":0,"d":"$0.00"}},{"$f":"'MMA Rev-Exp Region 10'!AS$82","v":{"v":0,"d":"$0.00"}},{"$f":"'MMA Rev-Exp Region 10'!AT$82","v":{"v":0,"d":"$0.00"}},{"$f":"'MMA Rev-Exp Region 10'!AU$82","v":{"v":0,"d":"$0.00"}},{"v":0,"d":"$0.00"}]
["MMA",null,null,{"$f":"Jurat!I$1","v":0},{"$f":"Jurat!D$33","v":"00:00:00"},"Q4","2017-12-31","Region 10","Operating Expense","Administrative Expense","Administrative","12.1","Salaries & Benefits",{"$f":"'MMA Rev-Exp Region 10'!AK$90","v":{"v":0,"d":"$0.00"}},{"v":0,"d":"$0.00"},{"v":0,"d":"$0.00"},{"v":0,"d":"$0.00"},{"v":0,"d":"$0.00"},{"v":0,"d":"$0.00"},{"v":0,"d":"$0.00"},{"v":0,"d":"$0.00"},{"v":0,"d":"$0.00"},{"v":0,"d":"$0.00"},{"v":0,"d":"$0.00"},{"v":0,"d":"$0.00"}]
["MMA",null,null,{"$f":"Jurat!I$1","v":0},{"$f":"Jurat!D$33","v":"00:00:00"},"Q4","2017-12-31","Region 10","Operating Expense","Administrative Expense","Administrative","12.5","General  Administration",{"$f":"'MMA Rev-Exp Region 10'!AK$94","v":{"v":0,"d":"$0.00"}},{"v":0,"d":"$0.00"},{"v":0,"d":"$0.00"},{"v":0,"d":"$0.00"},{"v":0,"d":"$0.00"},{"v":0,"d":"$0.00"},{"v":0,"d":"$0.00"},{"v":0,"d":"$0.00"},{"v":0,"d":"$0.00"},{"v":0,"d":"$0.00"},{"v":0,"d":"$0.00"},{"v":0,"d":"$0.00"}]
["MMA",null,null,{"$f":"Jurat!I$1","v":0},{"$f":"Jurat!D$33","v":"00:00:00"},"Q4","2017-12-31","Region 10","Operating Expense","Taxes & Fees","Taxes & Fees","13.2","Department of Insurance Assessments",{"$f":"'MMA Rev-Exp Region 10'!AK$98","v":{"v":0,"d":"$0.00"}},{"v":0,"d":"$0.00"},{"v":0,"d":"$0.00"},{"v":0,"d":"$0.00"},{"v":0,"d":"$0.00"},{"v":0,"d":"$0.00"},{"v":0,"d":"$0.00"},{"v":0,"d":"$0.00"},{"v":0,"d":"$0.00"},{"v":0,"d":"$0.00"},{"v":0,"d":"$0.00"},{"v":0,"d":"$0.00"}]
["MMA",null,null,{"$f":"Jurat!I$1","v":0},{"$f":"Jurat!D$33","v":"00:00:00"},"Q1","2017-03-31","Region 11","Member Months","Member Months","Member Months",null,"Member Months",{"$f":"'MMA Rev-Exp Region 11'!D$9","v":{"v":0,"d":"$0.00"}},{"$f":"'MMA Rev-Exp Region 11'!E$9","v":{"v":0,"d":"$0.00"}},{"$f":"'MMA Rev-Exp Region 11'!F$9","v":{"v":0,"d":"$0.00"}},{"$f":"'MMA Rev-Exp Region 11'!G$9","v":{"v":0,"d":"$0.00"}},{"$f":"'MMA Rev-Exp Region 11'!H$9","v":{"v":0,"d":"$0.00"}},{"$f":"'MMA Rev-Exp Region 11'!I$9","v":{"v":0,"d":"$0.00"}},{"$f":"'MMA Rev-Exp Region 11'!J$9","v":{"v":0,"d":"$0.00"}},{"$f":"'MMA Rev-Exp Region 11'!K$9","v":{"v":0,"d":"$0.00"}},{"$f":"'MMA Rev-Exp Region 11'!L$9","v":{"v":0,"d":"$0.00"}},{"$f":"'MMA Rev-Exp Region 11'!M$9","v":{"v":0,"d":"$0.00"}},{"$f":"'MMA Rev-Exp Region 11'!N$9","v":{"v":0,"d":"$0.00"}},{"v":0,"d":"$0.00"}]
["MMA",null,null,{"$f":"Jurat!I$1","v":0},{"$f":"Jurat!D$33","v":"00:00:00"},"Q1","2017-03-31","Region 11","Operating Revenue","Capitation","Capitation",1.1,"Capitation",{"$f":"'MMA Rev-Exp Region 11'!D$11","v":{"v":0,"d":"$0.00"}},{"$f":"'MMA Rev-Exp Region 11'!E$11","v":{"v":0,"d":"$0.00"}},{"$f":"'MMA Rev-Exp Region 11'!F$11","v":{"v":0,"d":"$0.00"}},{"$f":"'MMA Rev-Exp Region 11'!G$11","v":{"v":0,"d":"$0.00"}},{"$f":"'MMA Rev-Exp Region 11'!H$11","v":{"v":0,"d":"$0.00"}},{"$f":"'MMA Rev-Exp Region 11'!I$11","v":{"v":0,"d":"$0.00"}},{"$f":"'MMA Rev-Exp Region 11'!J$11","v":{"v":0,"d":"$0.00"}},{"$f":"'MMA Rev-Exp Region 11'!K$11","v":{"v":0,"d":"$0.00"}},{"$f":"'MMA Rev-Exp Region 11'!L$11","v":{"v":0,"d":"$0.00"}},{"$f":"'MMA Rev-Exp Region 11'!M$11","v":{"v":0,"d":"$0.00"}},{"$f":"'MMA Rev-Exp Region 11'!N$11","v":{"v":0,"d":"$0.00"}},{"v":0,"d":"$0.00"}]
["MMA",null,null,{"$f":"Jurat!I$1","v":0},{"$f":"Jurat!D$33","v":"00:00:00"},"Q1","2017-03-31","Region 11","Operating Revenue","Other Revenue","Other Revenue - 9010","1.5","ACA § 9010 related payments",{"$f":"'MMA Rev-Exp Region 11'!D$15","v":{"v":0,"d":"$0.00"}},{"$f":"'MMA Rev-Exp Region 11'!E$15","v":{"v":0,"d":"$0.00"}},{"$f":"'MMA Rev-Exp Region 11'!F$15","v":{"v":0,"d":"$0.00"}},{"$f":"'MMA Rev-Exp Region 11'!G$15","v":{"v":0,"d":"$0.00"}},{"$f":"'MMA Rev-Exp Region 11'!H$15","v":{"v":0,"d":"$0.00"}},{"$f":"'MMA Rev-Exp Region 11'!I$15","v":{"v":0,"d":"$0.00"}},{"$f":"'MMA Rev-Exp Region 11'!J$15","v":{"v":0,"d":"$0.00"}},{"$f":"'MMA Rev-Exp Region 11'!K$15","v":{"v":0,"d":"$0.00"}},{"$f":"'MMA Rev-Exp Region 11'!L$15","v":{"v":0,"d":"$0.00"}},{"$f":"'MMA Rev-Exp Region 11'!M$15","v":{"v":0,"d":"$0.00"}},{"$f":"'MMA Rev-Exp Region 11'!N$15","v":{"v":0,"d":"$0.00"}},{"v":0,"d":"$0.00"}]
["MMA",null,null,{"$f":"Jurat!I$1","v":0},{"$f":"Jurat!D$33","v":"00:00:00"},"Q1","2017-03-31","Region 11","Operating Expense","Medical Benefits Expense","Hospital Services",2.1,"Inpatient FFS",{"$f":"'MMA Rev-Exp Region 11'!D$20","v":{"v":0,"d":"$0.00"}},{"$f":"'MMA Rev-Exp Region 11'!E$20","v":{"v":0,"d":"$0.00"}},{"$f":"'MMA Rev-Exp Region 11'!F$20","v":{"v":0,"d":"$0.00"}},{"$f":"'MMA Rev-Exp Region 11'!G$20","v":{"v":0,"d":"$0.00"}},{"$f":"'MMA Rev-Exp Region 11'!H$20","v":{"v":0,"d":"$0.00"}},{"$f":"'MMA Rev-Exp Region 11'!I$20","v":{"v":0,"d":"$0.00"}},{"$f":"'MMA Rev-Exp Region 11'!J$20","v":{"v":0,"d":"$0.00"}},{"$f":"'MMA Rev-Exp Region 11'!K$20","v":{"v":0,"d":"$0.00"}},{"$f":"'MMA Rev-Exp Region 11'!L$20","v":{"v":0,"d":"$0.00"}},{"$f":"'MMA Rev-Exp Region 11'!M$20","v":{"v":0,"d":"$0.00"}},{"$f":"'MMA Rev-Exp Region 11'!N$20","v":{"v":0,"d":"$0.00"}},{"v":0,"d":"$0.00"}]
["MMA",null,null,{"$f":"Jurat!I$1","v":0},{"$f":"Jurat!D$33","v":"00:00:00"},"Q1","2017-03-31","Region 11","Operating Expense","Medical Benefits Expense","Hospital Services",2.4,"Outpatient FFS: Other than ER ",{"$f":"'MMA Rev-Exp Region 11'!D$23","v":{"v":0,"d":"$0.00"}},{"$f":"'MMA Rev-Exp Region 11'!E$23","v":{"v":0,"d":"$0.00"}},{"$f":"'MMA Rev-Exp Region 11'!F$23","v":{"v":0,"d":"$0.00"}},{"$f":"'MMA Rev-Exp Region 11'!G$23","v":{"v":0,"d":"$0.00"}},{"$f":"'MMA Rev-Exp Region 11'!H$23","v":{"v":0,"d":"$0.00"}},{"$f":"'MMA Rev-Exp Region 11'!I$23","v":{"v":0,"d":"$0.00"}},{"$f":"'MMA Rev-Exp Region 11'!J$23","v":{"v":0,"d":"$0.00"}},{"$f":"'MMA Rev-Exp Region 11'!K$23","v":{"v":0,"d":"$0.00"}},{"$f":"'MMA Rev-Exp Region 11'!L$23","v":{"v":0,"d":"$0.00"}},{"$f":"'MMA Rev-Exp Region 11'!M$23","v":{"v":0,"d":"$0.00"}},{"$f":"'MMA Rev-Exp Region 11'!N$23","v":{"v":0,"d":"$0.00"}},{"v":0,"d":"$0.00"}]
["MMA",null,null,{"$f":"Jurat!I$1","v":0},{"$f":"Jurat!D$33","v":"00:00:00"},"Q1","2017-03-31","Region 11","Operating Expense","Medical Benefits Expense","Hospital Services","2.7","Hospital Settlements",{"$f":"'MMA Rev-Exp Region 11'!D$26","v":{"v":0,"d":"$0.00"}},{"$f":"'MMA Rev-Exp Region 11'!E$26","v":{"v":0,"d":"$0.00"}},{"$f":"'MMA Rev-Exp Region 11'!F$26","v":{"v":0,"d":"$0.00"}},{"$f":"'MMA Rev-Exp Region 11'!G$26","v":{"v":0,"d":"$0.00"}},{"$f":"'MMA Rev-Exp Region 11'!H$26","v":{"v":0,"d":"$0.00"}},{"$f":"'MMA Rev-Exp Region 11'!I$26","v":{"v":0,"d":"$0.00"}},{"$f":"'MMA Rev-Exp Region 11'!J$26","v":{"v":0,"d":"$0.00"}},{"$f":"'MMA Rev-Exp Region 11'!K$26","v":{"v":0,"d":"$0.00"}},{"$f":"'MMA Rev-Exp Region 11'!L$26","v":{"v":0,"d":"$0.00"}},{"$f":"'MMA Rev-Exp Region 11'!M$26","v":{"v":0,"d":"$0.00"}},{"$f":"'MMA Rev-Exp Region 11'!N$26","v":{"v":0,"d":"$0.00"}},{"v":0,"d":"$0.00"}]
["MMA",null,null,{"$f":"Jurat!I$1","v":0},{"$f":"Jurat!D$33","v":"00:00:00"},"Q1","2017-03-31","Region 11","Operating Expense","Medical Benefits Expense","Professional Services",3.3,"Other Professional FFS",{"$f":"'MMA Rev-Exp Region 11'!D$31","v":{"v":0,"d":"$0.00"}},{"$f":"'MMA Rev-Exp Region 11'!E$31","v":{"v":0,"d":"$0.00"}},{"$f":"'MMA Rev-Exp Region 11'!F$31","v":{"v":0,"d":"$0.00"}},{"$f":"'MMA Rev-Exp Region 11'!G$31","v":{"v":0,"d":"$0.00"}},{"$f":"'MMA Rev-Exp Region 11'!H$31","v":{"v":0,"d":"$0.00"}},{"$f":"'MMA Rev-Exp Region 11'!I$31","v":{"v":0,"d":"$0.00"}},{"$f":"'MMA Rev-Exp Region 11'!J$31","v":{"v":0,"d":"$0.00"}},{"$f":"'MMA Rev-Exp Region 11'!K$31","v":{"v":0,"d":"$0.00"}},{"$f":"'MMA Rev-Exp Region 11'!L$31","v":{"v":0,"d":"$0.00"}},{"$f":"'MMA Rev-Exp Region 11'!M$31","v":{"v":0,"d":"$0.00"}},{"$f":"'MMA Rev-Exp Region 11'!N$31","v":{"v":0,"d":"$0.00"}},{"v":0,"d":"$0.00"}]
["MMA",null,null,{"$f":"Jurat!I$1","v":0},{"$f":"Jurat!D$33","v":"00:00:00"},"Q1","2017-03-31","Region 11","Operating Expense","Medical Benefits Expense","Professional Services","3.6","Ending IBNP for Professional Services",{"$f":"'MMA Rev-Exp Region 11'!D$34","v":{"v":0,"d":"$0.00"}},{"$f":"'MMA Rev-Exp Region 11'!E$34","v":{"v":0,"d":"$0.00"}},{"$f":"'MMA Rev-Exp Region 11'!F$34","v":{"v":0,"d":"$0.00"}},{"$f":"'MMA Rev-Exp Region 11'!G$34","v":{"v":0,"d":"$0.00"}},{"$f":"'MMA Rev-Exp Region 11'!H$34","v":{"v":0,"d":"$0.00"}},{"$f":"'MMA Rev-Exp Region 11'!I$34","v":{"v":0,"d":"$0.00"}},{"$f":"'MMA Rev-Exp Region 11'!J$34","v":{"v":0,"d":"$0.00"}},{"$f":"'MMA Rev-Exp Region 11'!K$34","v":{"v":0,"d":"$0.00"}},{"$f":"'MMA Rev-Exp Region 11'!L$34","v":{"v":0,"d":"$0.00"}},{"$f":"'MMA Rev-Exp Region 11'!M$34","v":{"v":0,"d":"$0.00"}},{"$f":"'MMA Rev-Exp Region 11'!N$34","v":{"v":0,"d":"$0.00"}},{"v":0,"d":"$0.00"}]
["MMA",null,null,{"$f":"Jurat!I$1","v":0},{"$f":"Jurat!D$33","v":"00:00:00"},"Q1","2017-03-31","Region 11","Operating Expense","Medical Benefits Expense","Maternity Services","4.2.1","Ending IBNP for Maternity Services",{"$f":"'MMA Rev-Exp Region 11'!D$38","v":{"v":0,"d":"$0.00"}},{"$f":"'MMA Rev-Exp Region 11'!E$38","v":{"v":0,"d":"$0.00"}},{"$f":"'MMA Rev-Exp Region 11'!F$38","v":{"v":0,"d":"$0.00"}},{"$f":"'MMA Rev-Exp Region 11'!G$38","v":{"v":0,"d":"$0.00"}},{"$f":"'MMA Rev-Exp Region 11'!H$38","v":{"v":0,"d":"$0.00"}},{"$f":"'MMA Rev-Exp Region 11'!I$38","v":{"v":0,"d":"$0.00"}},{"$f":"'MMA Rev-Exp Region 11'!J$38","v":{"v":0,"d":"$0.00"}},{"$f":"'MMA Rev-Exp Region 11'!K$38","v":{"v":0,"d":"$0.00"}},{"$f":"'MMA Rev-Exp Region 11'!L$38","v":{"v":0,"d":"$0.00"}},{"$f":"'MMA Rev-Exp Region 11'!M$38","v":{"v":0,"d":"$0.00"}},{"$f":"'MMA Rev-Exp Region 11'!N$38","v":{"v":0,"d":"$0.00"}},{"v":0,"d":"$0.00"}]
["MMA",null,null,{"$f":"Jurat!I$1","v":0},{"$f":"Jurat!D$33","v":"00:00:00"},"Q1","2017-03-31","Region 11","Operating Expense","Medical Benefits Expense","Maternity Services","4.3.1","Maternity Settlements",{"$f":"'MMA Rev-Exp Region 11'!D$39","v":{"v":0,"d":"$0.00"}},{"$f":"'MMA Rev-Exp Region 11'!E$39","v":{"v":0,"d":"$0.00"}},{"$f":"'MMA Rev-Exp Region 11'!F$39","v":{"v":0,"d":"$0.00"}},{"$f":"'MMA Rev-Exp Region 11'!G$39","v":{"v":0,"d":"$0.00"}},{"$f":"'MMA Rev-Exp Region 11'!H$39","v":{"v":0,"d":"$0.00"}},{"$f":"'MMA Rev-Exp Region 11'!I$39","v":{"v":0,"d":"$0.00"}},{"$f":"'MMA Rev-Exp Region 11'!J$39","v":{"v":0,"d":"$0.00"}},{"$f":"'MMA Rev-Exp Region 11'!K$39","v":{"v":0,"d":"$0.00"}},{"$f":"'MMA Rev-Exp Region 11'!L$39","v":{"v":0,"d":"$0.00"}},{"$f":"'MMA Rev-Exp Region 11'!M$39","v":{"v":0,"d":"$0.00"}},{"$f":"'MMA Rev-Exp Region 11'!N$39","v":{"v":0,"d":"$0.00"}},{"v":0,"d":"$0.00"}]
["MMA",null,null,{"$f":"Jurat!I$1","v":0},{"$f":"Jurat!D$33","v":"00:00:00"},"Q1","2017-03-31","Region 11","Operating Expense","Medical Benefits Expense","Mental Health Services",5.3,"Ending IBNP for Mental Health & Substance Abuse",{"$f":"'MMA Rev-Exp Region 11'!D$43","v":{"v":0,"d":"$0.00"}},{"$f":"'MMA Rev-Exp Region 11'!E$43","v":{"v":0,"d":"$0.00"}},{"$f":"'MMA Rev-Exp Region 11'!F$43","v":{"v":0,"d":"$0.00"}},{"$f":"'MMA Rev-Exp Region 11'!G$43","v":{"v":0,"d":"$0.00"}},{"$f":"'MMA Rev-Exp Region 11'!H$43","v":{"v":0,"d":"$0.00"}},{"$f":"'MMA Rev-Exp Region 11'!I$43","v":{"v":0,"d":"$0.00"}},{"$f":"'MMA Rev-Exp Region 11'!J$43","v":{"v":0,"d":"$0.00"}},{"$f":"'MMA Rev-Exp Region 11'!K$43","v":{"v":0,"d":"$0.00"}},{"$f":"'MMA Rev-Exp Region 11'!L$43","v":{"v":0,"d":"$0.00"}},{"$f":"'MMA Rev-Exp Region 11'!M$43","v":{"v":0,"d":"$0.00"}},{"$f":"'MMA Rev-Exp Region 11'!N$43","v":{"v":0,"d":"$0.00"}},{"v":0,"d":"$0.00"}]
["MMA",null,null,{"$f":"Jurat!I$1","v":0},{"$f":"Jurat!D$33","v":"00:00:00"},"Q1","2017-03-31","Region 11","Operating Expense","Medical Benefits Expense","Dental Services",6.2,"Dental Subcapitation",{"$f":"'MMA Rev-Exp Region 11'!D$47","v":{"v":0,"d":"$0.00"}},{"$f":"'MMA Rev-Exp Region 11'!E$47","v":{"v":0,"d":"$0.00"}},{"$f":"'MMA Rev-Exp Region 11'!F$47","v":{"v":0,"d":"$0.00"}},{"$f":"'MMA Rev-Exp Region 11'!G$47","v":{"v":0,"d":"$0.00"}},{"$f":"'MMA Rev-Exp Region 11'!H$47","v":{"v":0,"d":"$0.00"}},{"$f":"'MMA Rev-Exp Region 11'!I$47","v":{"v":0,"d":"$0.00"}},{"$f":"'MMA Rev-Exp Region 11'!J$47","v":{"v":0,"d":"$0.00"}},{"$f":"'MMA Rev-Exp Region 11'!K$47","v":{"v":0,"d":"$0.00"}},{"$f":"'MMA Rev-Exp Region 11'!L$47","v":{"v":0,"d":"$0.00"}},{"$f":"'MMA Rev-Exp Region 11'!M$47","v":{"v":0,"d":"$0.00"}},{"$f":"'MMA Rev-Exp Region 11'!N$47","v":{"v":0,"d":"$0.00"}},{"v":0,"d":"$0.00"}]
["MMA",null,null,{"$f":"Jurat!I$1","v":0},{"$f":"Jurat!D$33","v":"00:00:00"},"Q1","2017-03-31","Region 11","Operating Expense","Medical Benefits Expense","Transportation Services",7.1,"Transportation FFS",{"$f":"'MMA Rev-Exp Region 11'!D$51","v":{"v":0,"d":"$0.00"}},{"$f":"'MMA Rev-Exp Region 11'!E$51","v":{"v":0,"d":"$0.00"}},{"$f":"'MMA Rev-Exp Region 11'!F$51","v":{"v":0,"d":"$0.00"}},{"$f":"'MMA Rev-Exp Region 11'!G$51","v":{"v":0,"d":"$0.00"}},{"$f":"'MMA Rev-Exp Region 11'!H$51","v":{"v":0,"d":"$0.00"}},{"$f":"'MMA Rev-Exp Region 11'!I$51","v":{"v":0,"d":"$0.00"}},{"$f":"'MMA Rev-Exp Region 11'!J$51","v":{"v":0,"d":"$0.00"}},{"$f":"'MMA Rev-Exp Region 11'!K$51","v":{"v":0,"d":"$0.00"}},{"$f":"'MMA Rev-Exp Region 11'!L$51","v":{"v":0,"d":"$0.00"}},{"$f":"'MMA Rev-Exp Region 11'!M$51","v":{"v":0,"d":"$0.00"}},{"$f":"'MMA Rev-Exp Region 11'!N$51","v":{"v":0,"d":"$0.00"}},{"v":0,"d":"$0.00"}]
["MMA",null,null,{"$f":"Jurat!I$1","v":0},{"$f":"Jurat!D$33","v":"00:00:00"},"Q1","2017-03-31","Region 11","Operating Expense","Medical Benefits Expense","Transportation Services","7.4","Transportation Settlements",{"$f":"'MMA Rev-Exp Region 11'!D$54","v":{"v":0,"d":"$0.00"}},{"$f":"'MMA Rev-Exp Region 11'!E$54","v":{"v":0,"d":"$0.00"}},{"$f":"'MMA Rev-Exp Region 11'!F$54","v":{"v":0,"d":"$0.00"}},{"$f":"'MMA Rev-Exp Region 11'!G$54","v":{"v":0,"d":"$0.00"}},{"$f":"'MMA Rev-Exp Region 11'!H$54","v":{"v":0,"d":"$0.00"}},{"$f":"'MMA Rev-Exp Region 11'!I$54","v":{"v":0,"d":"$0.00"}},{"$f":"'MMA Rev-Exp Region 11'!J$54","v":{"v":0,"d":"$0.00"}},{"$f":"'MMA Rev-Exp Region 11'!K$54","v":{"v":0,"d":"$0.00"}},{"$f":"'MMA Rev-Exp Region 11'!L$54","v":{"v":0,"d":"$0.00"}},{"$f":"'MMA Rev-Exp Region 11'!M$54","v":{"v":0,"d":"$0.00"}},{"$f":"'MMA Rev-Exp Region 11'!N$54","v":{"v":0,"d":"$0.00"}},{"v":0,"d":"$0.00"}]
["MMA",null,null,{"$f":"Jurat!I$1","v":0},{"$f":"Jurat!D$33","v":"00:00:00"},"Q1","2017-03-31","Region 11","Operating Expense","Medical Benefits Expense","Pharmacy Services","8.4","Prescription Drug Rebates ",{"$f":"'MMA Rev-Exp Region 11'!D$59","v":{"v":0,"d":"$0.00"}},{"$f":"'MMA Rev-Exp Region 11'!E$59","v":{"v":0,"d":"$0.00"}},{"$f":"'MMA Rev-Exp Region 11'!F$59","v":{"v":0,"d":"$0.00"}},{"$f":"'MMA Rev-Exp Region 11'!G$59","v":{"v":0,"d":"$0.00"}},{"$f":"'MMA Rev-Exp Region 11'!H$59","v":{"v":0,"d":"$0.00"}},{"$f":"'MMA Rev-Exp Region 11'!I$59","v":{"v":0,"d":"$0.00"}},{"$f":"'MMA Rev-Exp Region 11'!J$59","v":{"v":0,"d":"$0.00"}},{"$f":"'MMA Rev-Exp Region 11'!K$59","v":{"v":0,"d":"$0.00"}},{"$f":"'MMA Rev-Exp Region 11'!L$59","v":{"v":0,"d":"$0.00"}},{"$f":"'MMA Rev-Exp Region 11'!M$59","v":{"v":0,"d":"$0.00"}},{"$f":"'MMA Rev-Exp Region 11'!N$59","v":{"v":0,"d":"$0.00"}},{"v":0,"d":"$0.00"}]
["MMA",null,null,{"$f":"Jurat!I$1","v":0},{"$f":"Jurat!D$33","v":"00:00:00"},"Q1","2017-03-31","Region 11","Operating Expense","Medical Benefits Expense","Pharmacy Services","8.7","Prescription Drug Settlements",{"$f":"'MMA Rev-Exp Region 11'!D$62","v":{"v":0,"d":"$0.00"}},{"$f":"'MMA Rev-Exp Region 11'!E$62","v":{"v":0,"d":"$0.00"}},{"$f":"'MMA Rev-Exp Region 11'!F$62","v":{"v":0,"d":"$0.00"}},{"$f":"'MMA Rev-Exp Region 11'!G$62","v":{"v":0,"d":"$0.00"}},{"$f":"'MMA Rev-Exp Region 11'!H$62","v":{"v":0,"d":"$0.00"}},{"$f":"'MMA Rev-Exp Region 11'!I$62","v":{"v":0,"d":"$0.00"}},{"$f":"'MMA Rev-Exp Region 11'!J$62","v":{"v":0,"d":"$0.00"}},{"$f":"'MMA Rev-Exp Region 11'!K$62","v":{"v":0,"d":"$0.00"}},{"$f":"'MMA Rev-Exp Region 11'!L$62","v":{"v":0,"d":"$0.00"}},{"$f":"'MMA Rev-Exp Region 11'!M$62","v":{"v":0,"d":"$0.00"}},{"$f":"'MMA Rev-Exp Region 11'!N$62","v":{"v":0,"d":"$0.00"}},{"v":0,"d":"$0.00"}]
["MMA",null,null,{"$f":"Jurat!I$1","v":0},{"$f":"Jurat!D$33","v":"00:00:00"},"Q1","2017-03-31","Region 11","Operating Expense","Medical Benefits Expense","Other MMA Services",9.1,"Home Health, Private Duty Nursing, Personal Care FFS",{"$f":"'MMA Rev-Exp Region 11'!D$64","v":{"v":0,"d":"$0.00"}},{"$f":"'MMA Rev-Exp Region 11'!E$64","v":{"v":0,"d":"$0.00"}},{"$f":"'MMA Rev-Exp Region 11'!F$64","v":{"v":0,"d":"$0.00"}},{"$f":"'MMA Rev-Exp Region 11'!G$64","v":{"v":0,"d":"$0.00"}},{"$f":"'MMA Rev-Exp Region 11'!H$64","v":{"v":0,"d":"$0.00"}},{"$f":"'MMA Rev-Exp Region 11'!I$64","v":{"v":0,"d":"$0.00"}},{"$f":"'MMA Rev-Exp Region 11'!J$64","v":{"v":0,"d":"$0.00"}},{"$f":"'MMA Rev-Exp Region 11'!K$64","v":{"v":0,"d":"$0.00"}},{"$f":"'MMA Rev-Exp Region 11'!L$64","v":{"v":0,"d":"$0.00"}},{"$f":"'MMA Rev-Exp Region 11'!M$64","v":{"v":0,"d":"$0.00"}},{"$f":"'MMA Rev-Exp Region 11'!N$64","v":{"v":0,"d":"$0.00"}},{"v":0,"d":"$0.00"}]
["MMA",null,null,{"$f":"Jurat!I$1","v":0},{"$f":"Jurat!D$33","v":"00:00:00"},"Q1","2017-03-31","Region 11","Operating Expense","Medical Benefits Expense","Other MMA Services","9.4","Other State Plan Services FFS",{"$f":"'MMA Rev-Exp Region 11'!D$67","v":{"v":0,"d":"$0.00"}},{"$f":"'MMA Rev-Exp Region 11'!E$67","v":{"v":0,"d":"$0.00"}},{"$f":"'MMA Rev-Exp Region 11'!F$67","v":{"v":0,"d":"$0.00"}},{"$f":"'MMA Rev-Exp Region 11'!G$67","v":{"v":0,"d":"$0.00"}},{"$f":"'MMA Rev-Exp Region 11'!H$67","v":{"v":0,"d":"$0.00"}},{"$f":"'MMA Rev-Exp Region 11'!I$67","v":{"v":0,"d":"$0.00"}},{"$f":"'MMA Rev-Exp Region 11'!J$67","v":{"v":0,"d":"$0.00"}},{"$f":"'MMA Rev-Exp Region 11'!K$67","v":{"v":0,"d":"$0.00"}},{"$f":"'MMA Rev-Exp Region 11'!L$67","v":{"v":0,"d":"$0.00"}},{"$f":"'MMA Rev-Exp Region 11'!M$67","v":{"v":0,"d":"$0.00"}},{"$f":"'MMA Rev-Exp Region 11'!N$67","v":{"v":0,"d":"$0.00"}},{"v":0,"d":"$0.00"}]
["MMA",null,null,{"$f":"Jurat!I$1","v":0},{"$f":"Jurat!D$33","v":"00:00:00"},"Q1","2017-03-31","Region 11","Operating Expense","Medical Benefits Expense","Other MMA Services","9.7","Other Services Settlements",{"$f":"'MMA Rev-Exp Region 11'!D$70","v":{"v":0,"d":"$0.00"}},{"$f":"'MMA Rev-Exp Region 11'!E$70","v":{"v":0,"d":"$0.00"}},{"$f":"'MMA Rev-Exp Region 11'!F$70","v":{"v":0,"d":"$0.00"}},{"$f":"'MMA Rev-Exp Region 11'!G$70","v":{"v":0,"d":"$0.00"}},{"$f":"'MMA Rev-Exp Region 11'!H$70","v":{"v":0,"d":"$0.00"}},{"$f":"'MMA Rev-Exp Region 11'!I$70","v":{"v":0,"d":"$0.00"}},{"$f":"'MMA Rev-Exp Region 11'!J$70","v":{"v":0,"d":"$0.00"}},{"$f":"'MMA Rev-Exp Region 11'!K$70","v":{"v":0,"d":"$0.00"}},{"$f":"'MMA Rev-Exp Region 11'!L$70","v":{"v":0,"d":"$0.00"}},{"$f":"'MMA Rev-Exp Region 11'!M$70","v":{"v":0,"d":"$0.00"}},{"$f":"'MMA Rev-Exp Region 11'!N$70","v":{"v":0,"d":"$0.00"}},{"v":0,"d":"$0.00"}]
["MMA",null,null,{"$f":"Jurat!I$1","v":0},{"$f":"Jurat!D$33","v":"00:00:00"},"Q1","2017-03-31","Region 11","Operating Expense","Medical Benefits Expense","Expanded Benefits","10.4","Expanded Benefits Settlements",{"$f":"'MMA Rev-Exp Region 11'!D$75","v":{"v":0,"d":"$0.00"}},{"$f":"'MMA Rev-Exp Region 11'!E$75","v":{"v":0,"d":"$0.00"}},{"$f":"'MMA Rev-Exp Region 11'!F$75","v":{"v":0,"d":"$0.00"}},{"$f":"'MMA Rev-Exp Region 11'!G$75","v":{"v":0,"d":"$0.00"}},{"$f":"'MMA Rev-Exp Region 11'!H$75","v":{"v":0,"d":"$0.00"}},{"$f":"'MMA Rev-Exp Region 11'!I$75","v":{"v":0,"d":"$0.00"}},{"$f":"'MMA Rev-Exp Region 11'!J$75","v":{"v":0,"d":"$0.00"}},{"$f":"'MMA Rev-Exp Region 11'!K$75","v":{"v":0,"d":"$0.00"}},{"$f":"'MMA Rev-Exp Region 11'!L$75","v":{"v":0,"d":"$0.00"}},{"$f":"'MMA Rev-Exp Region 11'!M$75","v":{"v":0,"d":"$0.00"}},{"$f":"'MMA Rev-Exp Region 11'!N$75","v":{"v":0,"d":"$0.00"}},{"v":0,"d":"$0.00"}]
["MMA",null,null,{"$f":"Jurat!I$1","v":0},{"$f":"Jurat!D$33","v":"00:00:00"},"Q1","2017-03-31","Region 11","Operating Expense","Medical Benefits Expense","Other Medical","11.8","Reinsurance Premiums",{"$f":"'MMA Rev-Exp Region 11'!D$84","v":{"v":0,"d":"$0.00"}},{"$f":"'MMA Rev-Exp Region 11'!E$84","v":{"v":0,"d":"$0.00"}},{"$f":"'MMA Rev-Exp Region 11'!F$84","v":{"v":0,"d":"$0.00"}},{"$f":"'MMA Rev-Exp Region 11'!G$84","v":{"v":0,"d":"$0.00"}},{"$f":"'MMA Rev-Exp Region 11'!H$84","v":{"v":0,"d":"$0.00"}},{"$f":"'MMA Rev-Exp Region 11'!I$84","v":{"v":0,"d":"$0.00"}},{"$f":"'MMA Rev-Exp Region 11'!J$84","v":{"v":0,"d":"$0.00"}},{"$f":"'MMA Rev-Exp Region 11'!K$84","v":{"v":0,"d":"$0.00"}},{"$f":"'MMA Rev-Exp Region 11'!L$84","v":{"v":0,"d":"$0.00"}},{"$f":"'MMA Rev-Exp Region 11'!M$84","v":{"v":0,"d":"$0.00"}},{"$f":"'MMA Rev-Exp Region 11'!N$84","v":{"v":0,"d":"$0.00"}},{"v":0,"d":"$0.00"}]
["MMA",null,null,{"$f":"Jurat!I$1","v":0},{"$f":"Jurat!D$33","v":"00:00:00"},"Q1","2017-03-31","Region 11","Operating Expense","Administrative Expense","Administrative","12.1","Salaries & Benefits",{"$f":"'MMA Rev-Exp Region 11'!D$90","v":{"v":0,"d":"$0.00"}},{"v":0,"d":"$0.00"},{"v":0,"d":"$0.00"},{"v":0,"d":"$0.00"},{"v":0,"d":"$0.00"},{"v":0,"d":"$0.00"},{"v":0,"d":"$0.00"},{"v":0,"d":"$0.00"},{"v":0,"d":"$0.00"},{"v":0,"d":"$0.00"},{"v":0,"d":"$0.00"},{"v":0,"d":"$0.00"}]
["MMA",null,null,{"$f":"Jurat!I$1","v":0},{"$f":"Jurat!D$33","v":"00:00:00"},"Q1","2017-03-31","Region 11","Operating Expense","Administrative Expense","Administrative","12.5","General  Administration",{"$f":"'MMA Rev-Exp Region 11'!D$94","v":{"v":0,"d":"$0.00"}},{"v":0,"d":"$0.00"},{"v":0,"d":"$0.00"},{"v":0,"d":"$0.00"},{"v":0,"d":"$0.00"},{"v":0,"d":"$0.00"},{"v":0,"d":"$0.00"},{"v":0,"d":"$0.00"},{"v":0,"d":"$0.00"},{"v":0,"d":"$0.00"},{"v":0,"d":"$0.00"},{"v":0,"d":"$0.00"}]
["MMA",null,null,{"$f":"Jurat!I$1","v":0},{"$f":"Jurat!D$33","v":"00:00:00"},"Q1","2017-03-31","Region 11","Operating Expense","Taxes & Fees","Taxes & Fees","13.2","Department of Insurance Assessments",{"$f":"'MMA Rev-Exp Region 11'!D$98","v":{"v":0,"d":"$0.00"}},{"v":0,"d":"$0.00"},{"v":0,"d":"$0.00"},{"v":0,"d":"$0.00"},{"v":0,"d":"$0.00"},{"v":0,"d":"$0.00"},{"v":0,"d":"$0.00"},{"v":0,"d":"$0.00"},{"v":0,"d":"$0.00"},{"v":0,"d":"$0.00"},{"v":0,"d":"$0.00"},{"v":0,"d":"$0.00"}]
["MMA",null,null,{"$f":"Jurat!I$1","v":0},{"$f":"Jurat!D$33","v":"00:00:00"},"Q1","2017-03-31","Region 11","Operating Expense","Taxes & Fees","Taxes & Fees","13.3","Section 9010 Health Insurance Providers Fee",{"$f":"'MMA Rev-Exp Region 11'!D$99","v":{"v":0,"d":"$0.00"}},{"v":0,"d":"$0.00"},{"v":0,"d":"$0.00"},{"v":0,"d":"$0.00"},{"v":0,"d":"$0.00"},{"v":0,"d":"$0.00"},{"v":0,"d":"$0.00"},{"v":0,"d":"$0.00"},{"v":0,"d":"$0.00"},{"v":0,"d":"$0.00"},{"v":0,"d":"$0.00"},{"v":0,"d":"$0.00"}]
["MMA",null,null,{"$f":"Jurat!I$1","v":0},{"$f":"Jurat!D$33","v":"00:00:00"},"Q2","2017-06-30","Region 11","Operating Revenue","Capitation","Capitation",1.1,"Capitation",{"$f":"'MMA Rev-Exp Region 11'!O$11","v":{"v":0,"d":"$0.00"}},{"$f":"'MMA Rev-Exp Region 11'!P$11","v":{"v":0,"d":"$0.00"}},{"$f":"'MMA Rev-Exp Region 11'!Q$11","v":{"v":0,"d":"$0.00"}},{"$f":"'MMA Rev-Exp Region 11'!R$11","v":{"v":0,"d":"$0.00"}},{"$f":"'MMA Rev-Exp Region 11'!S$11","v":{"v":0,"d":"$0.00"}},{"$f":"'MMA Rev-Exp Region 11'!T$11","v":{"v":0,"d":"$0.00"}},{"$f":"'MMA Rev-Exp Region 11'!U$11","v":{"v":0,"d":"$0.00"}},{"$f":"'MMA Rev-Exp Region 11'!V$11","v":{"v":0,"d":"$0.00"}},{"$f":"'MMA Rev-Exp Region 11'!W$11","v":{"v":0,"d":"$0.00"}},{"$f":"'MMA Rev-Exp Region 11'!X$11","v":{"v":0,"d":"$0.00"}},{"$f":"'MMA Rev-Exp Region 11'!Y$11","v":{"v":0,"d":"$0.00"}},{"v":0,"d":"$0.00"}]
["MMA",null,null,{"$f":"Jurat!I$1","v":0},{"$f":"Jurat!D$33","v":"00:00:00"},"Q2","2017-06-30","Region 11","Operating Revenue","Kick Payments","Kick Payments - Maternity","1.4.1","Maternity Kick Payments",{"$f":"'MMA Rev-Exp Region 11'!O$14","v":{"v":0,"d":"$0.00"}},{"$f":"'MMA Rev-Exp Region 11'!P$14","v":{"v":0,"d":"$0.00"}},{"$f":"'MMA Rev-Exp Region 11'!Q$14","v":{"v":0,"d":"$0.00"}},{"$f":"'MMA Rev-Exp Region 11'!R$14","v":{"v":0,"d":"$0.00"}},{"$f":"'MMA Rev-Exp Region 11'!S$14","v":{"v":0,"d":"$0.00"}},{"$f":"'MMA Rev-Exp Region 11'!T$14","v":{"v":0,"d":"$0.00"}},{"$f":"'MMA Rev-Exp Region 11'!U$14","v":{"v":0,"d":"$0.00"}},{"$f":"'MMA Rev-Exp Region 11'!V$14","v":{"v":0,"d":"$0.00"}},{"$f":"'MMA Rev-Exp Region 11'!W$14","v":{"v":0,"d":"$0.00"}},{"$f":"'MMA Rev-Exp Region 11'!X$14","v":{"v":0,"d":"$0.00"}},{"$f":"'MMA Rev-Exp Region 11'!Y$14","v":{"v":0,"d":"$0.00"}},{"v":0,"d":"$0.00"}]
["MMA",null,null,{"$f":"Jurat!I$1","v":0},{"$f":"Jurat!D$33","v":"00:00:00"},"Q2","2017-06-30","Region 11","Operating Expense","Medical Benefits Expense","Hospital Services",2.2,"Ending IBNP for Inpatient Hospital Services",{"$f":"'MMA Rev-Exp Region 11'!O$21","v":{"v":0,"d":"$0.00"}},{"$f":"'MMA Rev-Exp Region 11'!P$21","v":{"v":0,"d":"$0.00"}},{"$f":"'MMA Rev-Exp Region 11'!Q$21","v":{"v":0,"d":"$0.00"}},{"$f":"'MMA Rev-Exp Region 11'!R$21","v":{"v":0,"d":"$0.00"}},{"$f":"'MMA Rev-Exp Region 11'!S$21","v":{"v":0,"d":"$0.00"}},{"$f":"'MMA Rev-Exp Region 11'!T$21","v":{"v":0,"d":"$0.00"}},{"$f":"'MMA Rev-Exp Region 11'!U$21","v":{"v":0,"d":"$0.00"}},{"$f":"'MMA Rev-Exp Region 11'!V$21","v":{"v":0,"d":"$0.00"}},{"$f":"'MMA Rev-Exp Region 11'!W$21","v":{"v":0,"d":"$0.00"}},{"$f":"'MMA Rev-Exp Region 11'!X$21","v":{"v":0,"d":"$0.00"}},{"$f":"'MMA Rev-Exp Region 11'!Y$21","v":{"v":0,"d":"$0.00"}},{"v":0,"d":"$0.00"}]
["MMA",null,null,{"$f":"Jurat!I$1","v":0},{"$f":"Jurat!D$33","v":"00:00:00"},"Q2","2017-06-30","Region 11","Operating Expense","Medical Benefits Expense","Hospital Services",2.5,"Ending IBNP for Outpatient Hospital Services",{"$f":"'MMA Rev-Exp Region 11'!O$24","v":{"v":0,"d":"$0.00"}},{"$f":"'MMA Rev-Exp Region 11'!P$24","v":{"v":0,"d":"$0.00"}},{"$f":"'MMA Rev-Exp Region 11'!Q$24","v":{"v":0,"d":"$0.00"}},{"$f":"'MMA Rev-Exp Region 11'!R$24","v":{"v":0,"d":"$0.00"}},{"$f":"'MMA Rev-Exp Region 11'!S$24","v":{"v":0,"d":"$0.00"}},{"$f":"'MMA Rev-Exp Region 11'!T$24","v":{"v":0,"d":"$0.00"}},{"$f":"'MMA Rev-Exp Region 11'!U$24","v":{"v":0,"d":"$0.00"}},{"$f":"'MMA Rev-Exp Region 11'!V$24","v":{"v":0,"d":"$0.00"}},{"$f":"'MMA Rev-Exp Region 11'!W$24","v":{"v":0,"d":"$0.00"}},{"$f":"'MMA Rev-Exp Region 11'!X$24","v":{"v":0,"d":"$0.00"}},{"$f":"'MMA Rev-Exp Region 11'!Y$24","v":{"v":0,"d":"$0.00"}},{"v":0,"d":"$0.00"}]
["MMA",null,null,{"$f":"Jurat!I$1","v":0},{"$f":"Jurat!D$33","v":"00:00:00"},"Q2","2017-06-30","Region 11","Operating Expense","Medical Benefits Expense","Hospital Services","2.7","Hospital Settlements",{"$f":"'MMA Rev-Exp Region 11'!O$26","v":{"v":0,"d":"$0.00"}},{"$f":"'MMA Rev-Exp Region 11'!P$26","v":{"v":0,"d":"$0.00"}},{"$f":"'MMA Rev-Exp Region 11'!Q$26","v":{"v":0,"d":"$0.00"}},{"$f":"'MMA Rev-Exp Region 11'!R$26","v":{"v":0,"d":"$0.00"}},{"$f":"'MMA Rev-Exp Region 11'!S$26","v":{"v":0,"d":"$0.00"}},{"$f":"'MMA Rev-Exp Region 11'!T$26","v":{"v":0,"d":"$0.00"}},{"$f":"'MMA Rev-Exp Region 11'!U$26","v":{"v":0,"d":"$0.00"}},{"$f":"'MMA Rev-Exp Region 11'!V$26","v":{"v":0,"d":"$0.00"}},{"$f":"'MMA Rev-Exp Region 11'!W$26","v":{"v":0,"d":"$0.00"}},{"$f":"'MMA Rev-Exp Region 11'!X$26","v":{"v":0,"d":"$0.00"}},{"$f":"'MMA Rev-Exp Region 11'!Y$26","v":{"v":0,"d":"$0.00"}},{"v":0,"d":"$0.00"}]
["MMA",null,null,{"$f":"Jurat!I$1","v":0},{"$f":"Jurat!D$33","v":"00:00:00"},"Q2","2017-06-30","Region 11","Operating Expense","Medical Benefits Expense","Professional Services",3.3,"Other Professional FFS",{"$f":"'MMA Rev-Exp Region 11'!O$31","v":{"v":0,"d":"$0.00"}},{"$f":"'MMA Rev-Exp Region 11'!P$31","v":{"v":0,"d":"$0.00"}},{"$f":"'MMA Rev-Exp Region 11'!Q$31","v":{"v":0,"d":"$0.00"}},{"$f":"'MMA Rev-Exp Region 11'!R$31","v":{"v":0,"d":"$0.00"}},{"$f":"'MMA Rev-Exp Region 11'!S$31","v":{"v":0,"d":"$0.00"}},{"$f":"'MMA Rev-Exp Region 11'!T$31","v":{"v":0,"d":"$0.00"}},{"$f":"'MMA Rev-Exp Region 11'!U$31","v":{"v":0,"d":"$0.00"}},{"$f":"'MMA Rev-Exp Region 11'!V$31","v":{"v":0,"d":"$0.00"}},{"$f":"'MMA Rev-Exp Region 11'!W$31","v":{"v":0,"d":"$0.00"}},{"$f":"'MMA Rev-Exp Region 11'!X$31","v":{"v":0,"d":"$0.00"}},{"$f":"'MMA Rev-Exp Region 11'!Y$31","v":{"v":0,"d":"$0.00"}},{"v":0,"d":"$0.00"}]
["MMA",null,null,{"$f":"Jurat!I$1","v":0},{"$f":"Jurat!D$33","v":"00:00:00"},"Q2","2017-06-30","Region 11","Operating Expense","Medical Benefits Expense","Professional Services","3.6","Ending IBNP for Professional Services",{"$f":"'MMA Rev-Exp Region 11'!O$34","v":{"v":0,"d":"$0.00"}},{"$f":"'MMA Rev-Exp Region 11'!P$34","v":{"v":0,"d":"$0.00"}},{"$f":"'MMA Rev-Exp Region 11'!Q$34","v":{"v":0,"d":"$0.00"}},{"$f":"'MMA Rev-Exp Region 11'!R$34","v":{"v":0,"d":"$0.00"}},{"$f":"'MMA Rev-Exp Region 11'!S$34","v":{"v":0,"d":"$0.00"}},{"$f":"'MMA Rev-Exp Region 11'!T$34","v":{"v":0,"d":"$0.00"}},{"$f":"'MMA Rev-Exp Region 11'!U$34","v":{"v":0,"d":"$0.00"}},{"$f":"'MMA Rev-Exp Region 11'!V$34","v":{"v":0,"d":"$0.00"}},{"$f":"'MMA Rev-Exp Region 11'!W$34","v":{"v":0,"d":"$0.00"}},{"$f":"'MMA Rev-Exp Region 11'!X$34","v":{"v":0,"d":"$0.00"}},{"$f":"'MMA Rev-Exp Region 11'!Y$34","v":{"v":0,"d":"$0.00"}},{"v":0,"d":"$0.00"}]
["MMA",null,null,{"$f":"Jurat!I$1","v":0},{"$f":"Jurat!D$33","v":"00:00:00"},"Q2","2017-06-30","Region 11","Operating Expense","Medical Benefits Expense","Professional Services","3.7","Professional Services Settlements",{"$f":"'MMA Rev-Exp Region 11'!O$35","v":{"v":0,"d":"$0.00"}},{"$f":"'MMA Rev-Exp Region 11'!P$35","v":{"v":0,"d":"$0.00"}},{"$f":"'MMA Rev-Exp Region 11'!Q$35","v":{"v":0,"d":"$0.00"}},{"$f":"'MMA Rev-Exp Region 11'!R$35","v":{"v":0,"d":"$0.00"}},{"$f":"'MMA Rev-Exp Region 11'!S$35","v":{"v":0,"d":"$0.00"}},{"$f":"'MMA Rev-Exp Region 11'!T$35","v":{"v":0,"d":"$0.00"}},{"$f":"'MMA Rev-Exp Region 11'!U$35","v":{"v":0,"d":"$0.00"}},{"$f":"'MMA Rev-Exp Region 11'!V$35","v":{"v":0,"d":"$0.00"}},{"$f":"'MMA Rev-Exp Region 11'!W$35","v":{"v":0,"d":"$0.00"}},{"$f":"'MMA Rev-Exp Region 11'!X$35","v":{"v":0,"d":"$0.00"}},{"$f":"'MMA Rev-Exp Region 11'!Y$35","v":{"v":0,"d":"$0.00"}},{"v":0,"d":"$0.00"}]
["MMA",null,null,{"$f":"Jurat!I$1","v":0},{"$f":"Jurat!D$33","v":"00:00:00"},"Q2","2017-06-30","Region 11","Operating Expense","Medical Benefits Expense","Maternity Services","4.3.1","Maternity Settlements",{"$f":"'MMA Rev-Exp Region 11'!O$39","v":{"v":0,"d":"$0.00"}},{"$f":"'MMA Rev-Exp Region 11'!P$39","v":{"v":0,"d":"$0.00"}},{"$f":"'MMA Rev-Exp Region 11'!Q$39","v":{"v":0,"d":"$0.00"}},{"$f":"'MMA Rev-Exp Region 11'!R$39","v":{"v":0,"d":"$0.00"}},{"$f":"'MMA Rev-Exp Region 11'!S$39","v":{"v":0,"d":"$0.00"}},{"$f":"'MMA Rev-Exp Region 11'!T$39","v":{"v":0,"d":"$0.00"}},{"$f":"'MMA Rev-Exp Region 11'!U$39","v":{"v":0,"d":"$0.00"}},{"$f":"'MMA Rev-Exp Region 11'!V$39","v":{"v":0,"d":"$0.00"}},{"$f":"'MMA Rev-Exp Region 11'!W$39","v":{"v":0,"d":"$0.00"}},{"$f":"'MMA Rev-Exp Region 11'!X$39","v":{"v":0,"d":"$0.00"}},{"$f":"'MMA Rev-Exp Region 11'!Y$39","v":{"v":0,"d":"$0.00"}},{"v":0,"d":"$0.00"}]
["MMA",null,null,{"$f":"Jurat!I$1","v":0},{"$f":"Jurat!D$33","v":"00:00:00"},"Q2","2017-06-30","Region 11","Operating Expense","Medical Benefits Expense","Mental Health Services",5.3,"Ending IBNP for Mental Health & Substance Abuse",{"$f":"'MMA Rev-Exp Region 11'!O$43","v":{"v":0,"d":"$0.00"}},{"$f":"'MMA Rev-Exp Region 11'!P$43","v":{"v":0,"d":"$0.00"}},{"$f":"'MMA Rev-Exp Region 11'!Q$43","v":{"v":0,"d":"$0.00"}},{"$f":"'MMA Rev-Exp Region 11'!R$43","v":{"v":0,"d":"$0.00"}},{"$f":"'MMA Rev-Exp Region 11'!S$43","v":{"v":0,"d":"$0.00"}},{"$f":"'MMA Rev-Exp Region 11'!T$43","v":{"v":0,"d":"$0.00"}},{"$f":"'MMA Rev-Exp Region 11'!U$43","v":{"v":0,"d":"$0.00"}},{"$f":"'MMA Rev-Exp Region 11'!V$43","v":{"v":0,"d":"$0.00"}},{"$f":"'MMA Rev-Exp Region 11'!W$43","v":{"v":0,"d":"$0.00"}},{"$f":"'MMA Rev-Exp Region 11'!X$43","v":{"v":0,"d":"$0.00"}},{"$f":"'MMA Rev-Exp Region 11'!Y$43","v":{"v":0,"d":"$0.00"}},{"v":0,"d":"$0.00"}]
["MMA",null,null,{"$f":"Jurat!I$1","v":0},{"$f":"Jurat!D$33","v":"00:00:00"},"Q2","2017-06-30","Region 11","Operating Expense","Medical Benefits Expense","Dental Services",6.3,"Ending IBNP for Dental Services",{"$f":"'MMA Rev-Exp Region 11'!O$48","v":{"v":0,"d":"$0.00"}},{"$f":"'MMA Rev-Exp Region 11'!P$48","v":{"v":0,"d":"$0.00"}},{"$f":"'MMA Rev-Exp Region 11'!Q$48","v":{"v":0,"d":"$0.00"}},{"$f":"'MMA Rev-Exp Region 11'!R$48","v":{"v":0,"d":"$0.00"}},{"$f":"'MMA Rev-Exp Region 11'!S$48","v":{"v":0,"d":"$0.00"}},{"$f":"'MMA Rev-Exp Region 11'!T$48","v":{"v":0,"d":"$0.00"}},{"$f":"'MMA Rev-Exp Region 11'!U$48","v":{"v":0,"d":"$0.00"}},{"$f":"'MMA Rev-Exp Region 11'!V$48","v":{"v":0,"d":"$0.00"}},{"$f":"'MMA Rev-Exp Region 11'!W$48","v":{"v":0,"d":"$0.00"}},{"$f":"'MMA Rev-Exp Region 11'!X$48","v":{"v":0,"d":"$0.00"}},{"$f":"'MMA Rev-Exp Region 11'!Y$48","v":{"v":0,"d":"$0.00"}},{"v":0,"d":"$0.00"}]
["MMA",null,null,{"$f":"Jurat!I$1","v":0},{"$f":"Jurat!D$33","v":"00:00:00"},"Q2","2017-06-30","Region 11","Operating Expense","Medical Benefits Expense","Transportation Services",7.2,"Transportation Subcapitation",{"$f":"'MMA Rev-Exp Region 11'!O$52","v":{"v":0,"d":"$0.00"}},{"$f":"'MMA Rev-Exp Region 11'!P$52","v":{"v":0,"d":"$0.00"}},{"$f":"'MMA Rev-Exp Region 11'!Q$52","v":{"v":0,"d":"$0.00"}},{"$f":"'MMA Rev-Exp Region 11'!R$52","v":{"v":0,"d":"$0.00"}},{"$f":"'MMA Rev-Exp Region 11'!S$52","v":{"v":0,"d":"$0.00"}},{"$f":"'MMA Rev-Exp Region 11'!T$52","v":{"v":0,"d":"$0.00"}},{"$f":"'MMA Rev-Exp Region 11'!U$52","v":{"v":0,"d":"$0.00"}},{"$f":"'MMA Rev-Exp Region 11'!V$52","v":{"v":0,"d":"$0.00"}},{"$f":"'MMA Rev-Exp Region 11'!W$52","v":{"v":0,"d":"$0.00"}},{"$f":"'MMA Rev-Exp Region 11'!X$52","v":{"v":0,"d":"$0.00"}},{"$f":"'MMA Rev-Exp Region 11'!Y$52","v":{"v":0,"d":"$0.00"}},{"v":0,"d":"$0.00"}]
["MMA",null,null,{"$f":"Jurat!I$1","v":0},{"$f":"Jurat!D$33","v":"00:00:00"},"Q2","2017-06-30","Region 11","Operating Expense","Medical Benefits Expense","Pharmacy Services","8.2","Hepatitis C Prescription Drug FFS",{"$f":"'MMA Rev-Exp Region 11'!O$57","v":{"v":0,"d":"$0.00"}},{"$f":"'MMA Rev-Exp Region 11'!P$57","v":{"v":0,"d":"$0.00"}},{"$f":"'MMA Rev-Exp Region 11'!Q$57","v":{"v":0,"d":"$0.00"}},{"$f":"'MMA Rev-Exp Region 11'!R$57","v":{"v":0,"d":"$0.00"}},{"$f":"'MMA Rev-Exp Region 11'!S$57","v":{"v":0,"d":"$0.00"}},{"$f":"'MMA Rev-Exp Region 11'!T$57","v":{"v":0,"d":"$0.00"}},{"$f":"'MMA Rev-Exp Region 11'!U$57","v":{"v":0,"d":"$0.00"}},{"$f":"'MMA Rev-Exp Region 11'!V$57","v":{"v":0,"d":"$0.00"}},{"$f":"'MMA Rev-Exp Region 11'!W$57","v":{"v":0,"d":"$0.00"}},{"$f":"'MMA Rev-Exp Region 11'!X$57","v":{"v":0,"d":"$0.00"}},{"$f":"'MMA Rev-Exp Region 11'!Y$57","v":{"v":0,"d":"$0.00"}},{"v":0,"d":"$0.00"}]
["MMA",null,null,{"$f":"Jurat!I$1","v":0},{"$f":"Jurat!D$33","v":"00:00:00"},"Q2","2017-06-30","Region 11","Operating Expense","Medical Benefits Expense","Pharmacy Services","8.5","Ending accrual for Rebates receivable",{"$f":"'MMA Rev-Exp Region 11'!O$60","v":{"v":0,"d":"$0.00"}},{"$f":"'MMA Rev-Exp Region 11'!P$60","v":{"v":0,"d":"$0.00"}},{"$f":"'MMA Rev-Exp Region 11'!Q$60","v":{"v":0,"d":"$0.00"}},{"$f":"'MMA Rev-Exp Region 11'!R$60","v":{"v":0,"d":"$0.00"}},{"$f":"'MMA Rev-Exp Region 11'!S$60","v":{"v":0,"d":"$0.00"}},{"$f":"'MMA Rev-Exp Region 11'!T$60","v":{"v":0,"d":"$0.00"}},{"$f":"'MMA Rev-Exp Region 11'!U$60","v":{"v":0,"d":"$0.00"}},{"$f":"'MMA Rev-Exp Region 11'!V$60","v":{"v":0,"d":"$0.00"}},{"$f":"'MMA Rev-Exp Region 11'!W$60","v":{"v":0,"d":"$0.00"}},{"$f":"'MMA Rev-Exp Region 11'!X$60","v":{"v":0,"d":"$0.00"}},{"$f":"'MMA Rev-Exp Region 11'!Y$60","v":{"v":0,"d":"$0.00"}},{"v":0,"d":"$0.00"}]
["MMA",null,null,{"$f":"Jurat!I$1","v":0},{"$f":"Jurat!D$33","v":"00:00:00"},"Q2","2017-06-30","Region 11","Operating Expense","Medical Benefits Expense","Pharmacy Services","8.6","Prescription Drugs Subcapitation",{"$f":"'MMA Rev-Exp Region 11'!O$61","v":{"v":0,"d":"$0.00"}},{"$f":"'MMA Rev-Exp Region 11'!P$61","v":{"v":0,"d":"$0.00"}},{"$f":"'MMA Rev-Exp Region 11'!Q$61","v":{"v":0,"d":"$0.00"}},{"$f":"'MMA Rev-Exp Region 11'!R$61","v":{"v":0,"d":"$0.00"}},{"$f":"'MMA Rev-Exp Region 11'!S$61","v":{"v":0,"d":"$0.00"}},{"$f":"'MMA Rev-Exp Region 11'!T$61","v":{"v":0,"d":"$0.00"}},{"$f":"'MMA Rev-Exp Region 11'!U$61","v":{"v":0,"d":"$0.00"}},{"$f":"'MMA Rev-Exp Region 11'!V$61","v":{"v":0,"d":"$0.00"}},{"$f":"'MMA Rev-Exp Region 11'!W$61","v":{"v":0,"d":"$0.00"}},{"$f":"'MMA Rev-Exp Region 11'!X$61","v":{"v":0,"d":"$0.00"}},{"$f":"'MMA Rev-Exp Region 11'!Y$61","v":{"v":0,"d":"$0.00"}},{"v":0,"d":"$0.00"}]
["MMA",null,null,{"$f":"Jurat!I$1","v":0},{"$f":"Jurat!D$33","v":"00:00:00"},"Q2","2017-06-30","Region 11","Operating Expense","Medical Benefits Expense","Other MMA Services",9.1,"Home Health, Private Duty Nursing, Personal Care FFS",{"$f":"'MMA Rev-Exp Region 11'!O$64","v":{"v":0,"d":"$0.00"}},{"$f":"'MMA Rev-Exp Region 11'!P$64","v":{"v":0,"d":"$0.00"}},{"$f":"'MMA Rev-Exp Region 11'!Q$64","v":{"v":0,"d":"$0.00"}},{"$f":"'MMA Rev-Exp Region 11'!R$64","v":{"v":0,"d":"$0.00"}},{"$f":"'MMA Rev-Exp Region 11'!S$64","v":{"v":0,"d":"$0.00"}},{"$f":"'MMA Rev-Exp Region 11'!T$64","v":{"v":0,"d":"$0.00"}},{"$f":"'MMA Rev-Exp Region 11'!U$64","v":{"v":0,"d":"$0.00"}},{"$f":"'MMA Rev-Exp Region 11'!V$64","v":{"v":0,"d":"$0.00"}},{"$f":"'MMA Rev-Exp Region 11'!W$64","v":{"v":0,"d":"$0.00"}},{"$f":"'MMA Rev-Exp Region 11'!X$64","v":{"v":0,"d":"$0.00"}},{"$f":"'MMA Rev-Exp Region 11'!Y$64","v":{"v":0,"d":"$0.00"}},{"v":0,"d":"$0.00"}]
["MMA",null,null,{"$f":"Jurat!I$1","v":0},{"$f":"Jurat!D$33","v":"00:00:00"},"Q2","2017-06-30","Region 11","Operating Expense","Medical Benefits Expense","Other MMA Services","9.4","Other State Plan Services FFS",{"$f":"'MMA Rev-Exp Region 11'!O$67","v":{"v":0,"d":"$0.00"}},{"$f":"'MMA Rev-Exp Region 11'!P$67","v":{"v":0,"d":"$0.00"}},{"$f":"'MMA Rev-Exp Region 11'!Q$67","v":{"v":0,"d":"$0.00"}},{"$f":"'MMA Rev-Exp Region 11'!R$67","v":{"v":0,"d":"$0.00"}},{"$f":"'MMA Rev-Exp Region 11'!S$67","v":{"v":0,"d":"$0.00"}},{"$f":"'MMA Rev-Exp Region 11'!T$67","v":{"v":0,"d":"$0.00"}},{"$f":"'MMA Rev-Exp Region 11'!U$67","v":{"v":0,"d":"$0.00"}},{"$f":"'MMA Rev-Exp Region 11'!V$67","v":{"v":0,"d":"$0.00"}},{"$f":"'MMA Rev-Exp Region 11'!W$67","v":{"v":0,"d":"$0.00"}},{"$f":"'MMA Rev-Exp Region 11'!X$67","v":{"v":0,"d":"$0.00"}},{"$f":"'MMA Rev-Exp Region 11'!Y$67","v":{"v":0,"d":"$0.00"}},{"v":0,"d":"$0.00"}]
["MMA",null,null,{"$f":"Jurat!I$1","v":0},{"$f":"Jurat!D$33","v":"00:00:00"},"Q2","2017-06-30","Region 11","Operating Expense","Medical Benefits Expense","Other MMA Services","9.7","Other Services Settlements",{"$f":"'MMA Rev-Exp Region 11'!O$70","v":{"v":0,"d":"$0.00"}},{"$f":"'MMA Rev-Exp Region 11'!P$70","v":{"v":0,"d":"$0.00"}},{"$f":"'MMA Rev-Exp Region 11'!Q$70","v":{"v":0,"d":"$0.00"}},{"$f":"'MMA Rev-Exp Region 11'!R$70","v":{"v":0,"d":"$0.00"}},{"$f":"'MMA Rev-Exp Region 11'!S$70","v":{"v":0,"d":"$0.00"}},{"$f":"'MMA Rev-Exp Region 11'!T$70","v":{"v":0,"d":"$0.00"}},{"$f":"'MMA Rev-Exp Region 11'!U$70","v":{"v":0,"d":"$0.00"}},{"$f":"'MMA Rev-Exp Region 11'!V$70","v":{"v":0,"d":"$0.00"}},{"$f":"'MMA Rev-Exp Region 11'!W$70","v":{"v":0,"d":"$0.00"}},{"$f":"'MMA Rev-Exp Region 11'!X$70","v":{"v":0,"d":"$0.00"}},{"$f":"'MMA Rev-Exp Region 11'!Y$70","v":{"v":0,"d":"$0.00"}},{"v":0,"d":"$0.00"}]
["MMA",null,null,{"$f":"Jurat!I$1","v":0},{"$f":"Jurat!D$33","v":"00:00:00"},"Q2","2017-06-30","Region 11","Operating Expense","Medical Benefits Expense","Expanded Benefits","10.4","Expanded Benefits Settlements",{"$f":"'MMA Rev-Exp Region 11'!O$75","v":{"v":0,"d":"$0.00"}},{"$f":"'MMA Rev-Exp Region 11'!P$75","v":{"v":0,"d":"$0.00"}},{"$f":"'MMA Rev-Exp Region 11'!Q$75","v":{"v":0,"d":"$0.00"}},{"$f":"'MMA Rev-Exp Region 11'!R$75","v":{"v":0,"d":"$0.00"}},{"$f":"'MMA Rev-Exp Region 11'!S$75","v":{"v":0,"d":"$0.00"}},{"$f":"'MMA Rev-Exp Region 11'!T$75","v":{"v":0,"d":"$0.00"}},{"$f":"'MMA Rev-Exp Region 11'!U$75","v":{"v":0,"d":"$0.00"}},{"$f":"'MMA Rev-Exp Region 11'!V$75","v":{"v":0,"d":"$0.00"}},{"$f":"'MMA Rev-Exp Region 11'!W$75","v":{"v":0,"d":"$0.00"}},{"$f":"'MMA Rev-Exp Region 11'!X$75","v":{"v":0,"d":"$0.00"}},{"$f":"'MMA Rev-Exp Region 11'!Y$75","v":{"v":0,"d":"$0.00"}},{"v":0,"d":"$0.00"}]
["MMA",null,null,{"$f":"Jurat!I$1","v":0},{"$f":"Jurat!D$33","v":"00:00:00"},"Q2","2017-06-30","Region 11","Operating Expense","Medical Benefits Expense","Other Medical","11.8","Reinsurance Premiums",{"$f":"'MMA Rev-Exp Region 11'!O$84","v":{"v":0,"d":"$0.00"}},{"$f":"'MMA Rev-Exp Region 11'!P$84","v":{"v":0,"d":"$0.00"}},{"$f":"'MMA Rev-Exp Region 11'!Q$84","v":{"v":0,"d":"$0.00"}},{"$f":"'MMA Rev-Exp Region 11'!R$84","v":{"v":0,"d":"$0.00"}},{"$f":"'MMA Rev-Exp Region 11'!S$84","v":{"v":0,"d":"$0.00"}},{"$f":"'MMA Rev-Exp Region 11'!T$84","v":{"v":0,"d":"$0.00"}},{"$f":"'MMA Rev-Exp Region 11'!U$84","v":{"v":0,"d":"$0.00"}},{"$f":"'MMA Rev-Exp Region 11'!V$84","v":{"v":0,"d":"$0.00"}},{"$f":"'MMA Rev-Exp Region 11'!W$84","v":{"v":0,"d":"$0.00"}},{"$f":"'MMA Rev-Exp Region 11'!X$84","v":{"v":0,"d":"$0.00"}},{"$f":"'MMA Rev-Exp Region 11'!Y$84","v":{"v":0,"d":"$0.00"}},{"v":0,"d":"$0.00"}]
["MMA",null,null,{"$f":"Jurat!I$1","v":0},{"$f":"Jurat!D$33","v":"00:00:00"},"Q2","2017-06-30","Region 11","Operating Expense","Administrative Expense","Administrative","12.3","Information Systems",{"$f":"'MMA Rev-Exp Region 11'!O$92","v":{"v":0,"d":"$0.00"}},{"v":0,"d":"$0.00"},{"v":0,"d":"$0.00"},{"v":0,"d":"$0.00"},{"v":0,"d":"$0.00"},{"v":0,"d":"$0.00"},{"v":0,"d":"$0.00"},{"v":0,"d":"$0.00"},{"v":0,"d":"$0.00"},{"v":0,"d":"$0.00"},{"v":0,"d":"$0.00"},{"v":0,"d":"$0.00"}]
["MMA",null,null,{"$f":"Jurat!I$1","v":0},{"$f":"Jurat!D$33","v":"00:00:00"},"Q2","2017-06-30","Region 11","Operating Expense","Administrative Expense","Administrative","12.6","Compliance/Regulatory",{"$f":"'MMA Rev-Exp Region 11'!O$95","v":{"v":0,"d":"$0.00"}},{"v":0,"d":"$0.00"},{"v":0,"d":"$0.00"},{"v":0,"d":"$0.00"},{"v":0,"d":"$0.00"},{"v":0,"d":"$0.00"},{"v":0,"d":"$0.00"},{"v":0,"d":"$0.00"},{"v":0,"d":"$0.00"},{"v":0,"d":"$0.00"},{"v":0,"d":"$0.00"},{"v":0,"d":"$0.00"}]
["MMA",null,null,{"$f":"Jurat!I$1","v":0},{"$f":"Jurat!D$33","v":"00:00:00"},"Q2","2017-06-30","Region 11","Operating Expense","Taxes & Fees","Taxes & Fees","13.3","Section 9010 Health Insurance Providers Fee",{"$f":"'MMA Rev-Exp Region 11'!O$99","v":{"v":0,"d":"$0.00"}},{"v":0,"d":"$0.00"},{"v":0,"d":"$0.00"},{"v":0,"d":"$0.00"},{"v":0,"d":"$0.00"},{"v":0,"d":"$0.00"},{"v":0,"d":"$0.00"},{"v":0,"d":"$0.00"},{"v":0,"d":"$0.00"},{"v":0,"d":"$0.00"},{"v":0,"d":"$0.00"},{"v":0,"d":"$0.00"}]
["MMA",null,null,{"$f":"Jurat!I$1","v":0},{"$f":"Jurat!D$33","v":"00:00:00"},"Q3","2017-09-30","Region 11","Member Months","Member Months","Member Months",null,"Member Months",{"$f":"'MMA Rev-Exp Region 11'!Z$9","v":{"v":0,"d":"$0.00"}},{"$f":"'MMA Rev-Exp Region 11'!AA$9","v":{"v":0,"d":"$0.00"}},{"$f":"'MMA Rev-Exp Region 11'!AB$9","v":{"v":0,"d":"$0.00"}},{"$f":"'MMA Rev-Exp Region 11'!AC$9","v":{"v":0,"d":"$0.00"}},{"$f":"'MMA Rev-Exp Region 11'!AD$9","v":{"v":0,"d":"$0.00"}},{"$f":"'MMA Rev-Exp Region 11'!AE$9","v":{"v":0,"d":"$0.00"}},{"$f":"'MMA Rev-Exp Region 11'!AF$9","v":{"v":0,"d":"$0.00"}},{"$f":"'MMA Rev-Exp Region 11'!AG$9","v":{"v":0,"d":"$0.00"}},{"$f":"'MMA Rev-Exp Region 11'!AH$9","v":{"v":0,"d":"$0.00"}},{"$f":"'MMA Rev-Exp Region 11'!AI$9","v":{"v":0,"d":"$0.00"}},{"$f":"'MMA Rev-Exp Region 11'!AJ$9","v":{"v":0,"d":"$0.00"}},{"v":0,"d":"$0.00"}]
["MMA",null,null,{"$f":"Jurat!I$1","v":0},{"$f":"Jurat!D$33","v":"00:00:00"},"Q3","2017-09-30","Region 11","Operating Revenue","Capitation","Capitation",1.1,"Capitation",{"$f":"'MMA Rev-Exp Region 11'!Z$11","v":{"v":0,"d":"$0.00"}},{"$f":"'MMA Rev-Exp Region 11'!AA$11","v":{"v":0,"d":"$0.00"}},{"$f":"'MMA Rev-Exp Region 11'!AB$11","v":{"v":0,"d":"$0.00"}},{"$f":"'MMA Rev-Exp Region 11'!AC$11","v":{"v":0,"d":"$0.00"}},{"$f":"'MMA Rev-Exp Region 11'!AD$11","v":{"v":0,"d":"$0.00"}},{"$f":"'MMA Rev-Exp Region 11'!AE$11","v":{"v":0,"d":"$0.00"}},{"$f":"'MMA Rev-Exp Region 11'!AF$11","v":{"v":0,"d":"$0.00"}},{"$f":"'MMA Rev-Exp Region 11'!AG$11","v":{"v":0,"d":"$0.00"}},{"$f":"'MMA Rev-Exp Region 11'!AH$11","v":{"v":0,"d":"$0.00"}},{"$f":"'MMA Rev-Exp Region 11'!AI$11","v":{"v":0,"d":"$0.00"}},{"$f":"'MMA Rev-Exp Region 11'!AJ$11","v":{"v":0,"d":"$0.00"}},{"v":0,"d":"$0.00"}]
["MMA",null,null,{"$f":"Jurat!I$1","v":0},{"$f":"Jurat!D$33","v":"00:00:00"},"Q3","2017-09-30","Region 11","Operating Revenue","Other Revenue","Other Revenue - 9010","1.5","ACA § 9010 related payments",{"$f":"'MMA Rev-Exp Region 11'!Z$15","v":{"v":0,"d":"$0.00"}},{"$f":"'MMA Rev-Exp Region 11'!AA$15","v":{"v":0,"d":"$0.00"}},{"$f":"'MMA Rev-Exp Region 11'!AB$15","v":{"v":0,"d":"$0.00"}},{"$f":"'MMA Rev-Exp Region 11'!AC$15","v":{"v":0,"d":"$0.00"}},{"$f":"'MMA Rev-Exp Region 11'!AD$15","v":{"v":0,"d":"$0.00"}},{"$f":"'MMA Rev-Exp Region 11'!AE$15","v":{"v":0,"d":"$0.00"}},{"$f":"'MMA Rev-Exp Region 11'!AF$15","v":{"v":0,"d":"$0.00"}},{"$f":"'MMA Rev-Exp Region 11'!AG$15","v":{"v":0,"d":"$0.00"}},{"$f":"'MMA Rev-Exp Region 11'!AH$15","v":{"v":0,"d":"$0.00"}},{"$f":"'MMA Rev-Exp Region 11'!AI$15","v":{"v":0,"d":"$0.00"}},{"$f":"'MMA Rev-Exp Region 11'!AJ$15","v":{"v":0,"d":"$0.00"}},{"v":0,"d":"$0.00"}]
["MMA",null,null,{"$f":"Jurat!I$1","v":0},{"$f":"Jurat!D$33","v":"00:00:00"},"Q3","2017-09-30","Region 11","Operating Expense","Medical Benefits Expense","Hospital Services",2.2,"Ending IBNP for Inpatient Hospital Services",{"$f":"'MMA Rev-Exp Region 11'!Z$21","v":{"v":0,"d":"$0.00"}},{"$f":"'MMA Rev-Exp Region 11'!AA$21","v":{"v":0,"d":"$0.00"}},{"$f":"'MMA Rev-Exp Region 11'!AB$21","v":{"v":0,"d":"$0.00"}},{"$f":"'MMA Rev-Exp Region 11'!AC$21","v":{"v":0,"d":"$0.00"}},{"$f":"'MMA Rev-Exp Region 11'!AD$21","v":{"v":0,"d":"$0.00"}},{"$f":"'MMA Rev-Exp Region 11'!AE$21","v":{"v":0,"d":"$0.00"}},{"$f":"'MMA Rev-Exp Region 11'!AF$21","v":{"v":0,"d":"$0.00"}},{"$f":"'MMA Rev-Exp Region 11'!AG$21","v":{"v":0,"d":"$0.00"}},{"$f":"'MMA Rev-Exp Region 11'!AH$21","v":{"v":0,"d":"$0.00"}},{"$f":"'MMA Rev-Exp Region 11'!AI$21","v":{"v":0,"d":"$0.00"}},{"$f":"'MMA Rev-Exp Region 11'!AJ$21","v":{"v":0,"d":"$0.00"}},{"v":0,"d":"$0.00"}]
["MMA",null,null,{"$f":"Jurat!I$1","v":0},{"$f":"Jurat!D$33","v":"00:00:00"},"Q3","2017-09-30","Region 11","Operating Expense","Medical Benefits Expense","Hospital Services",2.5,"Ending IBNP for Outpatient Hospital Services",{"$f":"'MMA Rev-Exp Region 11'!Z$24","v":{"v":0,"d":"$0.00"}},{"$f":"'MMA Rev-Exp Region 11'!AA$24","v":{"v":0,"d":"$0.00"}},{"$f":"'MMA Rev-Exp Region 11'!AB$24","v":{"v":0,"d":"$0.00"}},{"$f":"'MMA Rev-Exp Region 11'!AC$24","v":{"v":0,"d":"$0.00"}},{"$f":"'MMA Rev-Exp Region 11'!AD$24","v":{"v":0,"d":"$0.00"}},{"$f":"'MMA Rev-Exp Region 11'!AE$24","v":{"v":0,"d":"$0.00"}},{"$f":"'MMA Rev-Exp Region 11'!AF$24","v":{"v":0,"d":"$0.00"}},{"$f":"'MMA Rev-Exp Region 11'!AG$24","v":{"v":0,"d":"$0.00"}},{"$f":"'MMA Rev-Exp Region 11'!AH$24","v":{"v":0,"d":"$0.00"}},{"$f":"'MMA Rev-Exp Region 11'!AI$24","v":{"v":0,"d":"$0.00"}},{"$f":"'MMA Rev-Exp Region 11'!AJ$24","v":{"v":0,"d":"$0.00"}},{"v":0,"d":"$0.00"}]
["MMA",null,null,{"$f":"Jurat!I$1","v":0},{"$f":"Jurat!D$33","v":"00:00:00"},"Q3","2017-09-30","Region 11","Operating Expense","Medical Benefits Expense","Professional Services",3.1,"Primary Care FFS",{"$f":"'MMA Rev-Exp Region 11'!Z$29","v":{"v":0,"d":"$0.00"}},{"$f":"'MMA Rev-Exp Region 11'!AA$29","v":{"v":0,"d":"$0.00"}},{"$f":"'MMA Rev-Exp Region 11'!AB$29","v":{"v":0,"d":"$0.00"}},{"$f":"'MMA Rev-Exp Region 11'!AC$29","v":{"v":0,"d":"$0.00"}},{"$f":"'MMA Rev-Exp Region 11'!AD$29","v":{"v":0,"d":"$0.00"}},{"$f":"'MMA Rev-Exp Region 11'!AE$29","v":{"v":0,"d":"$0.00"}},{"$f":"'MMA Rev-Exp Region 11'!AF$29","v":{"v":0,"d":"$0.00"}},{"$f":"'MMA Rev-Exp Region 11'!AG$29","v":{"v":0,"d":"$0.00"}},{"$f":"'MMA Rev-Exp Region 11'!AH$29","v":{"v":0,"d":"$0.00"}},{"$f":"'MMA Rev-Exp Region 11'!AI$29","v":{"v":0,"d":"$0.00"}},{"$f":"'MMA Rev-Exp Region 11'!AJ$29","v":{"v":0,"d":"$0.00"}},{"v":0,"d":"$0.00"}]
["MMA",null,null,{"$f":"Jurat!I$1","v":0},{"$f":"Jurat!D$33","v":"00:00:00"},"Q3","2017-09-30","Region 11","Operating Expense","Medical Benefits Expense","Professional Services","3.4","§ 1202 PCP Payments to providers",{"$f":"'MMA Rev-Exp Region 11'!Z$32","v":{"v":0,"d":"$0.00"}},{"$f":"'MMA Rev-Exp Region 11'!AA$32","v":{"v":0,"d":"$0.00"}},{"$f":"'MMA Rev-Exp Region 11'!AB$32","v":{"v":0,"d":"$0.00"}},{"$f":"'MMA Rev-Exp Region 11'!AC$32","v":{"v":0,"d":"$0.00"}},{"$f":"'MMA Rev-Exp Region 11'!AD$32","v":{"v":0,"d":"$0.00"}},{"$f":"'MMA Rev-Exp Region 11'!AE$32","v":{"v":0,"d":"$0.00"}},{"$f":"'MMA Rev-Exp Region 11'!AF$32","v":{"v":0,"d":"$0.00"}},{"$f":"'MMA Rev-Exp Region 11'!AG$32","v":{"v":0,"d":"$0.00"}},{"$f":"'MMA Rev-Exp Region 11'!AH$32","v":{"v":0,"d":"$0.00"}},{"$f":"'MMA Rev-Exp Region 11'!AI$32","v":{"v":0,"d":"$0.00"}},{"$f":"'MMA Rev-Exp Region 11'!AJ$32","v":{"v":0,"d":"$0.00"}},{"v":0,"d":"$0.00"}]
["MMA",null,null,{"$f":"Jurat!I$1","v":0},{"$f":"Jurat!D$33","v":"00:00:00"},"Q3","2017-09-30","Region 11","Operating Expense","Medical Benefits Expense","Professional Services","3.7","Professional Services Settlements",{"$f":"'MMA Rev-Exp Region 11'!Z$35","v":{"v":0,"d":"$0.00"}},{"$f":"'MMA Rev-Exp Region 11'!AA$35","v":{"v":0,"d":"$0.00"}},{"$f":"'MMA Rev-Exp Region 11'!AB$35","v":{"v":0,"d":"$0.00"}},{"$f":"'MMA Rev-Exp Region 11'!AC$35","v":{"v":0,"d":"$0.00"}},{"$f":"'MMA Rev-Exp Region 11'!AD$35","v":{"v":0,"d":"$0.00"}},{"$f":"'MMA Rev-Exp Region 11'!AE$35","v":{"v":0,"d":"$0.00"}},{"$f":"'MMA Rev-Exp Region 11'!AF$35","v":{"v":0,"d":"$0.00"}},{"$f":"'MMA Rev-Exp Region 11'!AG$35","v":{"v":0,"d":"$0.00"}},{"$f":"'MMA Rev-Exp Region 11'!AH$35","v":{"v":0,"d":"$0.00"}},{"$f":"'MMA Rev-Exp Region 11'!AI$35","v":{"v":0,"d":"$0.00"}},{"$f":"'MMA Rev-Exp Region 11'!AJ$35","v":{"v":0,"d":"$0.00"}},{"v":0,"d":"$0.00"}]
["MMA",null,null,{"$f":"Jurat!I$1","v":0},{"$f":"Jurat!D$33","v":"00:00:00"},"Q3","2017-09-30","Region 11","Operating Expense","Medical Benefits Expense","Maternity Services","4.1.1","Maternity Services",{"$f":"'MMA Rev-Exp Region 11'!Z$37","v":{"v":0,"d":"$0.00"}},{"$f":"'MMA Rev-Exp Region 11'!AA$37","v":{"v":0,"d":"$0.00"}},{"$f":"'MMA Rev-Exp Region 11'!AB$37","v":{"v":0,"d":"$0.00"}},{"$f":"'MMA Rev-Exp Region 11'!AC$37","v":{"v":0,"d":"$0.00"}},{"$f":"'MMA Rev-Exp Region 11'!AD$37","v":{"v":0,"d":"$0.00"}},{"$f":"'MMA Rev-Exp Region 11'!AE$37","v":{"v":0,"d":"$0.00"}},{"$f":"'MMA Rev-Exp Region 11'!AF$37","v":{"v":0,"d":"$0.00"}},{"$f":"'MMA Rev-Exp Region 11'!AG$37","v":{"v":0,"d":"$0.00"}},{"$f":"'MMA Rev-Exp Region 11'!AH$37","v":{"v":0,"d":"$0.00"}},{"$f":"'MMA Rev-Exp Region 11'!AI$37","v":{"v":0,"d":"$0.00"}},{"$f":"'MMA Rev-Exp Region 11'!AJ$37","v":{"v":0,"d":"$0.00"}},{"v":0,"d":"$0.00"}]
["MMA",null,null,{"$f":"Jurat!I$1","v":0},{"$f":"Jurat!D$33","v":"00:00:00"},"Q3","2017-09-30","Region 11","Operating Expense","Medical Benefits Expense","Mental Health Services",5.1,"Mental Health & Substance Abuse FFS",{"$f":"'MMA Rev-Exp Region 11'!Z$41","v":{"v":0,"d":"$0.00"}},{"$f":"'MMA Rev-Exp Region 11'!AA$41","v":{"v":0,"d":"$0.00"}},{"$f":"'MMA Rev-Exp Region 11'!AB$41","v":{"v":0,"d":"$0.00"}},{"$f":"'MMA Rev-Exp Region 11'!AC$41","v":{"v":0,"d":"$0.00"}},{"$f":"'MMA Rev-Exp Region 11'!AD$41","v":{"v":0,"d":"$0.00"}},{"$f":"'MMA Rev-Exp Region 11'!AE$41","v":{"v":0,"d":"$0.00"}},{"$f":"'MMA Rev-Exp Region 11'!AF$41","v":{"v":0,"d":"$0.00"}},{"$f":"'MMA Rev-Exp Region 11'!AG$41","v":{"v":0,"d":"$0.00"}},{"$f":"'MMA Rev-Exp Region 11'!AH$41","v":{"v":0,"d":"$0.00"}},{"$f":"'MMA Rev-Exp Region 11'!AI$41","v":{"v":0,"d":"$0.00"}},{"$f":"'MMA Rev-Exp Region 11'!AJ$41","v":{"v":0,"d":"$0.00"}},{"v":0,"d":"$0.00"}]
["MMA",null,null,{"$f":"Jurat!I$1","v":0},{"$f":"Jurat!D$33","v":"00:00:00"},"Q3","2017-09-30","Region 11","Operating Expense","Medical Benefits Expense","Mental Health Services","5.4","Mental Health Settlements",{"$f":"'MMA Rev-Exp Region 11'!Z$44","v":{"v":0,"d":"$0.00"}},{"$f":"'MMA Rev-Exp Region 11'!AA$44","v":{"v":0,"d":"$0.00"}},{"$f":"'MMA Rev-Exp Region 11'!AB$44","v":{"v":0,"d":"$0.00"}},{"$f":"'MMA Rev-Exp Region 11'!AC$44","v":{"v":0,"d":"$0.00"}},{"$f":"'MMA Rev-Exp Region 11'!AD$44","v":{"v":0,"d":"$0.00"}},{"$f":"'MMA Rev-Exp Region 11'!AE$44","v":{"v":0,"d":"$0.00"}},{"$f":"'MMA Rev-Exp Region 11'!AF$44","v":{"v":0,"d":"$0.00"}},{"$f":"'MMA Rev-Exp Region 11'!AG$44","v":{"v":0,"d":"$0.00"}},{"$f":"'MMA Rev-Exp Region 11'!AH$44","v":{"v":0,"d":"$0.00"}},{"$f":"'MMA Rev-Exp Region 11'!AI$44","v":{"v":0,"d":"$0.00"}},{"$f":"'MMA Rev-Exp Region 11'!AJ$44","v":{"v":0,"d":"$0.00"}},{"v":0,"d":"$0.00"}]
["MMA",null,null,{"$f":"Jurat!I$1","v":0},{"$f":"Jurat!D$33","v":"00:00:00"},"Q3","2017-09-30","Region 11","Operating Expense","Medical Benefits Expense","Dental Services",6.3,"Ending IBNP for Dental Services",{"$f":"'MMA Rev-Exp Region 11'!Z$48","v":{"v":0,"d":"$0.00"}},{"$f":"'MMA Rev-Exp Region 11'!AA$48","v":{"v":0,"d":"$0.00"}},{"$f":"'MMA Rev-Exp Region 11'!AB$48","v":{"v":0,"d":"$0.00"}},{"$f":"'MMA Rev-Exp Region 11'!AC$48","v":{"v":0,"d":"$0.00"}},{"$f":"'MMA Rev-Exp Region 11'!AD$48","v":{"v":0,"d":"$0.00"}},{"$f":"'MMA Rev-Exp Region 11'!AE$48","v":{"v":0,"d":"$0.00"}},{"$f":"'MMA Rev-Exp Region 11'!AF$48","v":{"v":0,"d":"$0.00"}},{"$f":"'MMA Rev-Exp Region 11'!AG$48","v":{"v":0,"d":"$0.00"}},{"$f":"'MMA Rev-Exp Region 11'!AH$48","v":{"v":0,"d":"$0.00"}},{"$f":"'MMA Rev-Exp Region 11'!AI$48","v":{"v":0,"d":"$0.00"}},{"$f":"'MMA Rev-Exp Region 11'!AJ$48","v":{"v":0,"d":"$0.00"}},{"v":0,"d":"$0.00"}]
["MMA",null,null,{"$f":"Jurat!I$1","v":0},{"$f":"Jurat!D$33","v":"00:00:00"},"Q3","2017-09-30","Region 11","Operating Expense","Medical Benefits Expense","Transportation Services",7.2,"Transportation Subcapitation",{"$f":"'MMA Rev-Exp Region 11'!Z$52","v":{"v":0,"d":"$0.00"}},{"$f":"'MMA Rev-Exp Region 11'!AA$52","v":{"v":0,"d":"$0.00"}},{"$f":"'MMA Rev-Exp Region 11'!AB$52","v":{"v":0,"d":"$0.00"}},{"$f":"'MMA Rev-Exp Region 11'!AC$52","v":{"v":0,"d":"$0.00"}},{"$f":"'MMA Rev-Exp Region 11'!AD$52","v":{"v":0,"d":"$0.00"}},{"$f":"'MMA Rev-Exp Region 11'!AE$52","v":{"v":0,"d":"$0.00"}},{"$f":"'MMA Rev-Exp Region 11'!AF$52","v":{"v":0,"d":"$0.00"}},{"$f":"'MMA Rev-Exp Region 11'!AG$52","v":{"v":0,"d":"$0.00"}},{"$f":"'MMA Rev-Exp Region 11'!AH$52","v":{"v":0,"d":"$0.00"}},{"$f":"'MMA Rev-Exp Region 11'!AI$52","v":{"v":0,"d":"$0.00"}},{"$f":"'MMA Rev-Exp Region 11'!AJ$52","v":{"v":0,"d":"$0.00"}},{"v":0,"d":"$0.00"}]
["MMA",null,null,{"$f":"Jurat!I$1","v":0},{"$f":"Jurat!D$33","v":"00:00:00"},"Q3","2017-09-30","Region 11","Operating Expense","Medical Benefits Expense","Pharmacy Services","8.2","Hepatitis C Prescription Drug FFS",{"$f":"'MMA Rev-Exp Region 11'!Z$57","v":{"v":0,"d":"$0.00"}},{"$f":"'MMA Rev-Exp Region 11'!AA$57","v":{"v":0,"d":"$0.00"}},{"$f":"'MMA Rev-Exp Region 11'!AB$57","v":{"v":0,"d":"$0.00"}},{"$f":"'MMA Rev-Exp Region 11'!AC$57","v":{"v":0,"d":"$0.00"}},{"$f":"'MMA Rev-Exp Region 11'!AD$57","v":{"v":0,"d":"$0.00"}},{"$f":"'MMA Rev-Exp Region 11'!AE$57","v":{"v":0,"d":"$0.00"}},{"$f":"'MMA Rev-Exp Region 11'!AF$57","v":{"v":0,"d":"$0.00"}},{"$f":"'MMA Rev-Exp Region 11'!AG$57","v":{"v":0,"d":"$0.00"}},{"$f":"'MMA Rev-Exp Region 11'!AH$57","v":{"v":0,"d":"$0.00"}},{"$f":"'MMA Rev-Exp Region 11'!AI$57","v":{"v":0,"d":"$0.00"}},{"$f":"'MMA Rev-Exp Region 11'!AJ$57","v":{"v":0,"d":"$0.00"}},{"v":0,"d":"$0.00"}]
["MMA",null,null,{"$f":"Jurat!I$1","v":0},{"$f":"Jurat!D$33","v":"00:00:00"},"Q3","2017-09-30","Region 11","Operating Expense","Medical Benefits Expense","Pharmacy Services","8.5","Ending accrual for Rebates receivable",{"$f":"'MMA Rev-Exp Region 11'!Z$60","v":{"v":0,"d":"$0.00"}},{"$f":"'MMA Rev-Exp Region 11'!AA$60","v":{"v":0,"d":"$0.00"}},{"$f":"'MMA Rev-Exp Region 11'!AB$60","v":{"v":0,"d":"$0.00"}},{"$f":"'MMA Rev-Exp Region 11'!AC$60","v":{"v":0,"d":"$0.00"}},{"$f":"'MMA Rev-Exp Region 11'!AD$60","v":{"v":0,"d":"$0.00"}},{"$f":"'MMA Rev-Exp Region 11'!AE$60","v":{"v":0,"d":"$0.00"}},{"$f":"'MMA Rev-Exp Region 11'!AF$60","v":{"v":0,"d":"$0.00"}},{"$f":"'MMA Rev-Exp Region 11'!AG$60","v":{"v":0,"d":"$0.00"}},{"$f":"'MMA Rev-Exp Region 11'!AH$60","v":{"v":0,"d":"$0.00"}},{"$f":"'MMA Rev-Exp Region 11'!AI$60","v":{"v":0,"d":"$0.00"}},{"$f":"'MMA Rev-Exp Region 11'!AJ$60","v":{"v":0,"d":"$0.00"}},{"v":0,"d":"$0.00"}]
["MMA",null,null,{"$f":"Jurat!I$1","v":0},{"$f":"Jurat!D$33","v":"00:00:00"},"Q3","2017-09-30","Region 11","Operating Expense","Medical Benefits Expense","Other MMA Services",9.1,"Home Health, Private Duty Nursing, Personal Care FFS",{"$f":"'MMA Rev-Exp Region 11'!Z$64","v":{"v":0,"d":"$0.00"}},{"$f":"'MMA Rev-Exp Region 11'!AA$64","v":{"v":0,"d":"$0.00"}},{"$f":"'MMA Rev-Exp Region 11'!AB$64","v":{"v":0,"d":"$0.00"}},{"$f":"'MMA Rev-Exp Region 11'!AC$64","v":{"v":0,"d":"$0.00"}},{"$f":"'MMA Rev-Exp Region 11'!AD$64","v":{"v":0,"d":"$0.00"}},{"$f":"'MMA Rev-Exp Region 11'!AE$64","v":{"v":0,"d":"$0.00"}},{"$f":"'MMA Rev-Exp Region 11'!AF$64","v":{"v":0,"d":"$0.00"}},{"$f":"'MMA Rev-Exp Region 11'!AG$64","v":{"v":0,"d":"$0.00"}},{"$f":"'MMA Rev-Exp Region 11'!AH$64","v":{"v":0,"d":"$0.00"}},{"$f":"'MMA Rev-Exp Region 11'!AI$64","v":{"v":0,"d":"$0.00"}},{"$f":"'MMA Rev-Exp Region 11'!AJ$64","v":{"v":0,"d":"$0.00"}},{"v":0,"d":"$0.00"}]
["MMA",null,null,{"$f":"Jurat!I$1","v":0},{"$f":"Jurat!D$33","v":"00:00:00"},"Q3","2017-09-30","Region 11","Operating Expense","Medical Benefits Expense","Other MMA Services","9.2","Hospice FFS",{"$f":"'MMA Rev-Exp Region 11'!Z$65","v":{"v":0,"d":"$0.00"}},{"$f":"'MMA Rev-Exp Region 11'!AA$65","v":{"v":0,"d":"$0.00"}},{"$f":"'MMA Rev-Exp Region 11'!AB$65","v":{"v":0,"d":"$0.00"}},{"$f":"'MMA Rev-Exp Region 11'!AC$65","v":{"v":0,"d":"$0.00"}},{"$f":"'MMA Rev-Exp Region 11'!AD$65","v":{"v":0,"d":"$0.00"}},{"$f":"'MMA Rev-Exp Region 11'!AE$65","v":{"v":0,"d":"$0.00"}},{"$f":"'MMA Rev-Exp Region 11'!AF$65","v":{"v":0,"d":"$0.00"}},{"$f":"'MMA Rev-Exp Region 11'!AG$65","v":{"v":0,"d":"$0.00"}},{"$f":"'MMA Rev-Exp Region 11'!AH$65","v":{"v":0,"d":"$0.00"}},{"$f":"'MMA Rev-Exp Region 11'!AI$65","v":{"v":0,"d":"$0.00"}},{"$f":"'MMA Rev-Exp Region 11'!AJ$65","v":{"v":0,"d":"$0.00"}},{"v":0,"d":"$0.00"}]
["MMA",null,null,{"$f":"Jurat!I$1","v":0},{"$f":"Jurat!D$33","v":"00:00:00"},"Q3","2017-09-30","Region 11","Operating Expense","Medical Benefits Expense","Other MMA Services","9.5","Other Services Subcapitation",{"$f":"'MMA Rev-Exp Region 11'!Z$68","v":{"v":0,"d":"$0.00"}},{"$f":"'MMA Rev-Exp Region 11'!AA$68","v":{"v":0,"d":"$0.00"}},{"$f":"'MMA Rev-Exp Region 11'!AB$68","v":{"v":0,"d":"$0.00"}},{"$f":"'MMA Rev-Exp Region 11'!AC$68","v":{"v":0,"d":"$0.00"}},{"$f":"'MMA Rev-Exp Region 11'!AD$68","v":{"v":0,"d":"$0.00"}},{"$f":"'MMA Rev-Exp Region 11'!AE$68","v":{"v":0,"d":"$0.00"}},{"$f":"'MMA Rev-Exp Region 11'!AF$68","v":{"v":0,"d":"$0.00"}},{"$f":"'MMA Rev-Exp Region 11'!AG$68","v":{"v":0,"d":"$0.00"}},{"$f":"'MMA Rev-Exp Region 11'!AH$68","v":{"v":0,"d":"$0.00"}},{"$f":"'MMA Rev-Exp Region 11'!AI$68","v":{"v":0,"d":"$0.00"}},{"$f":"'MMA Rev-Exp Region 11'!AJ$68","v":{"v":0,"d":"$0.00"}},{"v":0,"d":"$0.00"}]
["MMA",null,null,{"$f":"Jurat!I$1","v":0},{"$f":"Jurat!D$33","v":"00:00:00"},"Q3","2017-09-30","Region 11","Operating Expense","Medical Benefits Expense","Expanded Benefits","10.2","Expanded benefits Subcapitation",{"$f":"'MMA Rev-Exp Region 11'!Z$73","v":{"v":0,"d":"$0.00"}},{"$f":"'MMA Rev-Exp Region 11'!AA$73","v":{"v":0,"d":"$0.00"}},{"$f":"'MMA Rev-Exp Region 11'!AB$73","v":{"v":0,"d":"$0.00"}},{"$f":"'MMA Rev-Exp Region 11'!AC$73","v":{"v":0,"d":"$0.00"}},{"$f":"'MMA Rev-Exp Region 11'!AD$73","v":{"v":0,"d":"$0.00"}},{"$f":"'MMA Rev-Exp Region 11'!AE$73","v":{"v":0,"d":"$0.00"}},{"$f":"'MMA Rev-Exp Region 11'!AF$73","v":{"v":0,"d":"$0.00"}},{"$f":"'MMA Rev-Exp Region 11'!AG$73","v":{"v":0,"d":"$0.00"}},{"$f":"'MMA Rev-Exp Region 11'!AH$73","v":{"v":0,"d":"$0.00"}},{"$f":"'MMA Rev-Exp Region 11'!AI$73","v":{"v":0,"d":"$0.00"}},{"$f":"'MMA Rev-Exp Region 11'!AJ$73","v":{"v":0,"d":"$0.00"}},{"v":0,"d":"$0.00"}]
["MMA",null,null,{"$f":"Jurat!I$1","v":0},{"$f":"Jurat!D$33","v":"00:00:00"},"Q3","2017-09-30","Region 11","Operating Expense","Medical Benefits Expense","Expanded Benefits","10.4","Expanded Benefits Settlements",{"$f":"'MMA Rev-Exp Region 11'!Z$75","v":{"v":0,"d":"$0.00"}},{"$f":"'MMA Rev-Exp Region 11'!AA$75","v":{"v":0,"d":"$0.00"}},{"$f":"'MMA Rev-Exp Region 11'!AB$75","v":{"v":0,"d":"$0.00"}},{"$f":"'MMA Rev-Exp Region 11'!AC$75","v":{"v":0,"d":"$0.00"}},{"$f":"'MMA Rev-Exp Region 11'!AD$75","v":{"v":0,"d":"$0.00"}},{"$f":"'MMA Rev-Exp Region 11'!AE$75","v":{"v":0,"d":"$0.00"}},{"$f":"'MMA Rev-Exp Region 11'!AF$75","v":{"v":0,"d":"$0.00"}},{"$f":"'MMA Rev-Exp Region 11'!AG$75","v":{"v":0,"d":"$0.00"}},{"$f":"'MMA Rev-Exp Region 11'!AH$75","v":{"v":0,"d":"$0.00"}},{"$f":"'MMA Rev-Exp Region 11'!AI$75","v":{"v":0,"d":"$0.00"}},{"$f":"'MMA Rev-Exp Region 11'!AJ$75","v":{"v":0,"d":"$0.00"}},{"v":0,"d":"$0.00"}]
["MMA",null,null,{"$f":"Jurat!I$1","v":0},{"$f":"Jurat!D$33","v":"00:00:00"},"Q3","2017-09-30","Region 11","Operating Expense","Medical Benefits Expense","Other Medical","11.8","Reinsurance Premiums",{"$f":"'MMA Rev-Exp Region 11'!Z$84","v":{"v":0,"d":"$0.00"}},{"$f":"'MMA Rev-Exp Region 11'!AA$84","v":{"v":0,"d":"$0.00"}},{"$f":"'MMA Rev-Exp Region 11'!AB$84","v":{"v":0,"d":"$0.00"}},{"$f":"'MMA Rev-Exp Region 11'!AC$84","v":{"v":0,"d":"$0.00"}},{"$f":"'MMA Rev-Exp Region 11'!AD$84","v":{"v":0,"d":"$0.00"}},{"$f":"'MMA Rev-Exp Region 11'!AE$84","v":{"v":0,"d":"$0.00"}},{"$f":"'MMA Rev-Exp Region 11'!AF$84","v":{"v":0,"d":"$0.00"}},{"$f":"'MMA Rev-Exp Region 11'!AG$84","v":{"v":0,"d":"$0.00"}},{"$f":"'MMA Rev-Exp Region 11'!AH$84","v":{"v":0,"d":"$0.00"}},{"$f":"'MMA Rev-Exp Region 11'!AI$84","v":{"v":0,"d":"$0.00"}},{"$f":"'MMA Rev-Exp Region 11'!AJ$84","v":{"v":0,"d":"$0.00"}},{"v":0,"d":"$0.00"}]
["MMA",null,null,{"$f":"Jurat!I$1","v":0},{"$f":"Jurat!D$33","v":"00:00:00"},"Q3","2017-09-30","Region 11","Operating Expense","Administrative Expense","Administrative","12.3","Information Systems",{"$f":"'MMA Rev-Exp Region 11'!Z$92","v":{"v":0,"d":"$0.00"}},{"v":0,"d":"$0.00"},{"v":0,"d":"$0.00"},{"v":0,"d":"$0.00"},{"v":0,"d":"$0.00"},{"v":0,"d":"$0.00"},{"v":0,"d":"$0.00"},{"v":0,"d":"$0.00"},{"v":0,"d":"$0.00"},{"v":0,"d":"$0.00"},{"v":0,"d":"$0.00"},{"v":0,"d":"$0.00"}]
["MMA",null,null,{"$f":"Jurat!I$1","v":0},{"$f":"Jurat!D$33","v":"00:00:00"},"Q3","2017-09-30","Region 11","Operating Expense","Administrative Expense","Administrative","12.6","Compliance/Regulatory",{"$f":"'MMA Rev-Exp Region 11'!Z$95","v":{"v":0,"d":"$0.00"}},{"v":0,"d":"$0.00"},{"v":0,"d":"$0.00"},{"v":0,"d":"$0.00"},{"v":0,"d":"$0.00"},{"v":0,"d":"$0.00"},{"v":0,"d":"$0.00"},{"v":0,"d":"$0.00"},{"v":0,"d":"$0.00"},{"v":0,"d":"$0.00"},{"v":0,"d":"$0.00"},{"v":0,"d":"$0.00"}]
["MMA",null,null,{"$f":"Jurat!I$1","v":0},{"$f":"Jurat!D$33","v":"00:00:00"},"Q3","2017-09-30","Region 11","Operating Expense","Taxes & Fees","Taxes & Fees","13.1","State Premium tax",{"$f":"'MMA Rev-Exp Region 11'!Z$97","v":{"v":0,"d":"$0.00"}},{"v":0,"d":"$0.00"},{"v":0,"d":"$0.00"},{"v":0,"d":"$0.00"},{"v":0,"d":"$0.00"},{"v":0,"d":"$0.00"},{"v":0,"d":"$0.00"},{"v":0,"d":"$0.00"},{"v":0,"d":"$0.00"},{"v":0,"d":"$0.00"},{"v":0,"d":"$0.00"},{"v":0,"d":"$0.00"}]
["MMA",null,null,{"$f":"Jurat!I$1","v":0},{"$f":"Jurat!D$33","v":"00:00:00"},"Q3","2017-09-30","Region 11","Non-Operating Expense","Income Tax Expense","Income Tax Expense","16.0","Income Tax Expense",{"$f":"'MMA Rev-Exp Region 11'!Z$106","v":{"v":0,"d":"$0.00"}},{"v":0,"d":"$0.00"},{"v":0,"d":"$0.00"},{"v":0,"d":"$0.00"},{"v":0,"d":"$0.00"},{"v":0,"d":"$0.00"},{"v":0,"d":"$0.00"},{"v":0,"d":"$0.00"},{"v":0,"d":"$0.00"},{"v":0,"d":"$0.00"},{"v":0,"d":"$0.00"},{"v":0,"d":"$0.00"}]
["MMA",null,null,{"$f":"Jurat!I$1","v":0},{"$f":"Jurat!D$33","v":"00:00:00"},"Q4","2017-12-31","Region 11","Operating Revenue","Kick Payments","Kick Payments - Transplant",1.2,"Transplant Kick Payments",{"$f":"'MMA Rev-Exp Region 11'!AK$12","v":{"v":0,"d":"$0.00"}},{"$f":"'MMA Rev-Exp Region 11'!AL$12","v":{"v":0,"d":"$0.00"}},{"$f":"'MMA Rev-Exp Region 11'!AM$12","v":{"v":0,"d":"$0.00"}},{"$f":"'MMA Rev-Exp Region 11'!AN$12","v":{"v":0,"d":"$0.00"}},{"$f":"'MMA Rev-Exp Region 11'!AO$12","v":{"v":0,"d":"$0.00"}},{"$f":"'MMA Rev-Exp Region 11'!AP$12","v":{"v":0,"d":"$0.00"}},{"$f":"'MMA Rev-Exp Region 11'!AQ$12","v":{"v":0,"d":"$0.00"}},{"$f":"'MMA Rev-Exp Region 11'!AR$12","v":{"v":0,"d":"$0.00"}},{"$f":"'MMA Rev-Exp Region 11'!AS$12","v":{"v":0,"d":"$0.00"}},{"$f":"'MMA Rev-Exp Region 11'!AT$12","v":{"v":0,"d":"$0.00"}},{"$f":"'MMA Rev-Exp Region 11'!AU$12","v":{"v":0,"d":"$0.00"}},{"v":0,"d":"$0.00"}]
["MMA",null,null,{"$f":"Jurat!I$1","v":0},{"$f":"Jurat!D$33","v":"00:00:00"},"Q4","2017-12-31","Region 11","Operating Revenue","Other Revenue","Other Revenue","1.6","Other Revenue",{"$f":"'MMA Rev-Exp Region 11'!AK$16","v":{"v":0,"d":"$0.00"}},{"$f":"'MMA Rev-Exp Region 11'!AL$16","v":{"v":0,"d":"$0.00"}},{"$f":"'MMA Rev-Exp Region 11'!AM$16","v":{"v":0,"d":"$0.00"}},{"$f":"'MMA Rev-Exp Region 11'!AN$16","v":{"v":0,"d":"$0.00"}},{"$f":"'MMA Rev-Exp Region 11'!AO$16","v":{"v":0,"d":"$0.00"}},{"$f":"'MMA Rev-Exp Region 11'!AP$16","v":{"v":0,"d":"$0.00"}},{"$f":"'MMA Rev-Exp Region 11'!AQ$16","v":{"v":0,"d":"$0.00"}},{"$f":"'MMA Rev-Exp Region 11'!AR$16","v":{"v":0,"d":"$0.00"}},{"$f":"'MMA Rev-Exp Region 11'!AS$16","v":{"v":0,"d":"$0.00"}},{"$f":"'MMA Rev-Exp Region 11'!AT$16","v":{"v":0,"d":"$0.00"}},{"$f":"'MMA Rev-Exp Region 11'!AU$16","v":{"v":0,"d":"$0.00"}},{"v":0,"d":"$0.00"}]
["MMA",null,null,{"$f":"Jurat!I$1","v":0},{"$f":"Jurat!D$33","v":"00:00:00"},"Q4","2017-12-31","Region 11","Operating Expense","Medical Benefits Expense","Hospital Services",2.2,"Ending IBNP for Inpatient Hospital Services",{"$f":"'MMA Rev-Exp Region 11'!AK$21","v":{"v":0,"d":"$0.00"}},{"$f":"'MMA Rev-Exp Region 11'!AL$21","v":{"v":0,"d":"$0.00"}},{"$f":"'MMA Rev-Exp Region 11'!AM$21","v":{"v":0,"d":"$0.00"}},{"$f":"'MMA Rev-Exp Region 11'!AN$21","v":{"v":0,"d":"$0.00"}},{"$f":"'MMA Rev-Exp Region 11'!AO$21","v":{"v":0,"d":"$0.00"}},{"$f":"'MMA Rev-Exp Region 11'!AP$21","v":{"v":0,"d":"$0.00"}},{"$f":"'MMA Rev-Exp Region 11'!AQ$21","v":{"v":0,"d":"$0.00"}},{"$f":"'MMA Rev-Exp Region 11'!AR$21","v":{"v":0,"d":"$0.00"}},{"$f":"'MMA Rev-Exp Region 11'!AS$21","v":{"v":0,"d":"$0.00"}},{"$f":"'MMA Rev-Exp Region 11'!AT$21","v":{"v":0,"d":"$0.00"}},{"$f":"'MMA Rev-Exp Region 11'!AU$21","v":{"v":0,"d":"$0.00"}},{"v":0,"d":"$0.00"}]
["MMA",null,null,{"$f":"Jurat!I$1","v":0},{"$f":"Jurat!D$33","v":"00:00:00"},"Q4","2017-12-31","Region 11","Operating Expense","Medical Benefits Expense","Hospital Services",2.5,"Ending IBNP for Outpatient Hospital Services",{"$f":"'MMA Rev-Exp Region 11'!AK$24","v":{"v":0,"d":"$0.00"}},{"$f":"'MMA Rev-Exp Region 11'!AL$24","v":{"v":0,"d":"$0.00"}},{"$f":"'MMA Rev-Exp Region 11'!AM$24","v":{"v":0,"d":"$0.00"}},{"$f":"'MMA Rev-Exp Region 11'!AN$24","v":{"v":0,"d":"$0.00"}},{"$f":"'MMA Rev-Exp Region 11'!AO$24","v":{"v":0,"d":"$0.00"}},{"$f":"'MMA Rev-Exp Region 11'!AP$24","v":{"v":0,"d":"$0.00"}},{"$f":"'MMA Rev-Exp Region 11'!AQ$24","v":{"v":0,"d":"$0.00"}},{"$f":"'MMA Rev-Exp Region 11'!AR$24","v":{"v":0,"d":"$0.00"}},{"$f":"'MMA Rev-Exp Region 11'!AS$24","v":{"v":0,"d":"$0.00"}},{"$f":"'MMA Rev-Exp Region 11'!AT$24","v":{"v":0,"d":"$0.00"}},{"$f":"'MMA Rev-Exp Region 11'!AU$24","v":{"v":0,"d":"$0.00"}},{"v":0,"d":"$0.00"}]
["MMA",null,null,{"$f":"Jurat!I$1","v":0},{"$f":"Jurat!D$33","v":"00:00:00"},"Q4","2017-12-31","Region 11","Operating Expense","Medical Benefits Expense","Professional Services",3.1,"Primary Care FFS",{"$f":"'MMA Rev-Exp Region 11'!AK$29","v":{"v":0,"d":"$0.00"}},{"$f":"'MMA Rev-Exp Region 11'!AL$29","v":{"v":0,"d":"$0.00"}},{"$f":"'MMA Rev-Exp Region 11'!AM$29","v":{"v":0,"d":"$0.00"}},{"$f":"'MMA Rev-Exp Region 11'!AN$29","v":{"v":0,"d":"$0.00"}},{"$f":"'MMA Rev-Exp Region 11'!AO$29","v":{"v":0,"d":"$0.00"}},{"$f":"'MMA Rev-Exp Region 11'!AP$29","v":{"v":0,"d":"$0.00"}},{"$f":"'MMA Rev-Exp Region 11'!AQ$29","v":{"v":0,"d":"$0.00"}},{"$f":"'MMA Rev-Exp Region 11'!AR$29","v":{"v":0,"d":"$0.00"}},{"$f":"'MMA Rev-Exp Region 11'!AS$29","v":{"v":0,"d":"$0.00"}},{"$f":"'MMA Rev-Exp Region 11'!AT$29","v":{"v":0,"d":"$0.00"}},{"$f":"'MMA Rev-Exp Region 11'!AU$29","v":{"v":0,"d":"$0.00"}},{"v":0,"d":"$0.00"}]
["MMA",null,null,{"$f":"Jurat!I$1","v":0},{"$f":"Jurat!D$33","v":"00:00:00"},"Q4","2017-12-31","Region 11","Operating Expense","Medical Benefits Expense","Professional Services","3.4","§ 1202 PCP Payments to providers",{"$f":"'MMA Rev-Exp Region 11'!AK$32","v":{"v":0,"d":"$0.00"}},{"$f":"'MMA Rev-Exp Region 11'!AL$32","v":{"v":0,"d":"$0.00"}},{"$f":"'MMA Rev-Exp Region 11'!AM$32","v":{"v":0,"d":"$0.00"}},{"$f":"'MMA Rev-Exp Region 11'!AN$32","v":{"v":0,"d":"$0.00"}},{"$f":"'MMA Rev-Exp Region 11'!AO$32","v":{"v":0,"d":"$0.00"}},{"$f":"'MMA Rev-Exp Region 11'!AP$32","v":{"v":0,"d":"$0.00"}},{"$f":"'MMA Rev-Exp Region 11'!AQ$32","v":{"v":0,"d":"$0.00"}},{"$f":"'MMA Rev-Exp Region 11'!AR$32","v":{"v":0,"d":"$0.00"}},{"$f":"'MMA Rev-Exp Region 11'!AS$32","v":{"v":0,"d":"$0.00"}},{"$f":"'MMA Rev-Exp Region 11'!AT$32","v":{"v":0,"d":"$0.00"}},{"$f":"'MMA Rev-Exp Region 11'!AU$32","v":{"v":0,"d":"$0.00"}},{"v":0,"d":"$0.00"}]
["MMA",null,null,{"$f":"Jurat!I$1","v":0},{"$f":"Jurat!D$33","v":"00:00:00"},"Q4","2017-12-31","Region 11","Operating Expense","Medical Benefits Expense","Professional Services","3.5","Subcapitated Professional Services",{"$f":"'MMA Rev-Exp Region 11'!AK$33","v":{"v":0,"d":"$0.00"}},{"$f":"'MMA Rev-Exp Region 11'!AL$33","v":{"v":0,"d":"$0.00"}},{"$f":"'MMA Rev-Exp Region 11'!AM$33","v":{"v":0,"d":"$0.00"}},{"$f":"'MMA Rev-Exp Region 11'!AN$33","v":{"v":0,"d":"$0.00"}},{"$f":"'MMA Rev-Exp Region 11'!AO$33","v":{"v":0,"d":"$0.00"}},{"$f":"'MMA Rev-Exp Region 11'!AP$33","v":{"v":0,"d":"$0.00"}},{"$f":"'MMA Rev-Exp Region 11'!AQ$33","v":{"v":0,"d":"$0.00"}},{"$f":"'MMA Rev-Exp Region 11'!AR$33","v":{"v":0,"d":"$0.00"}},{"$f":"'MMA Rev-Exp Region 11'!AS$33","v":{"v":0,"d":"$0.00"}},{"$f":"'MMA Rev-Exp Region 11'!AT$33","v":{"v":0,"d":"$0.00"}},{"$f":"'MMA Rev-Exp Region 11'!AU$33","v":{"v":0,"d":"$0.00"}},{"v":0,"d":"$0.00"}]
["MMA",null,null,{"$f":"Jurat!I$1","v":0},{"$f":"Jurat!D$33","v":"00:00:00"},"Q4","2017-12-31","Region 11","Operating Expense","Medical Benefits Expense","Maternity Services","4.1.1","Maternity Services",{"$f":"'MMA Rev-Exp Region 11'!AK$37","v":{"v":0,"d":"$0.00"}},{"$f":"'MMA Rev-Exp Region 11'!AL$37","v":{"v":0,"d":"$0.00"}},{"$f":"'MMA Rev-Exp Region 11'!AM$37","v":{"v":0,"d":"$0.00"}},{"$f":"'MMA Rev-Exp Region 11'!AN$37","v":{"v":0,"d":"$0.00"}},{"$f":"'MMA Rev-Exp Region 11'!AO$37","v":{"v":0,"d":"$0.00"}},{"$f":"'MMA Rev-Exp Region 11'!AP$37","v":{"v":0,"d":"$0.00"}},{"$f":"'MMA Rev-Exp Region 11'!AQ$37","v":{"v":0,"d":"$0.00"}},{"$f":"'MMA Rev-Exp Region 11'!AR$37","v":{"v":0,"d":"$0.00"}},{"$f":"'MMA Rev-Exp Region 11'!AS$37","v":{"v":0,"d":"$0.00"}},{"$f":"'MMA Rev-Exp Region 11'!AT$37","v":{"v":0,"d":"$0.00"}},{"$f":"'MMA Rev-Exp Region 11'!AU$37","v":{"v":0,"d":"$0.00"}},{"v":0,"d":"$0.00"}]
["MMA",null,null,{"$f":"Jurat!I$1","v":0},{"$f":"Jurat!D$33","v":"00:00:00"},"Q4","2017-12-31","Region 11","Operating Expense","Medical Benefits Expense","Mental Health Services",5.1,"Mental Health & Substance Abuse FFS",{"$f":"'MMA Rev-Exp Region 11'!AK$41","v":{"v":0,"d":"$0.00"}},{"$f":"'MMA Rev-Exp Region 11'!AL$41","v":{"v":0,"d":"$0.00"}},{"$f":"'MMA Rev-Exp Region 11'!AM$41","v":{"v":0,"d":"$0.00"}},{"$f":"'MMA Rev-Exp Region 11'!AN$41","v":{"v":0,"d":"$0.00"}},{"$f":"'MMA Rev-Exp Region 11'!AO$41","v":{"v":0,"d":"$0.00"}},{"$f":"'MMA Rev-Exp Region 11'!AP$41","v":{"v":0,"d":"$0.00"}},{"$f":"'MMA Rev-Exp Region 11'!AQ$41","v":{"v":0,"d":"$0.00"}},{"$f":"'MMA Rev-Exp Region 11'!AR$41","v":{"v":0,"d":"$0.00"}},{"$f":"'MMA Rev-Exp Region 11'!AS$41","v":{"v":0,"d":"$0.00"}},{"$f":"'MMA Rev-Exp Region 11'!AT$41","v":{"v":0,"d":"$0.00"}},{"$f":"'MMA Rev-Exp Region 11'!AU$41","v":{"v":0,"d":"$0.00"}},{"v":0,"d":"$0.00"}]
["MMA",null,null,{"$f":"Jurat!I$1","v":0},{"$f":"Jurat!D$33","v":"00:00:00"},"Q4","2017-12-31","Region 11","Operating Expense","Medical Benefits Expense","Dental Services",6.1,"Dental FFS",{"$f":"'MMA Rev-Exp Region 11'!AK$46","v":{"v":0,"d":"$0.00"}},{"$f":"'MMA Rev-Exp Region 11'!AL$46","v":{"v":0,"d":"$0.00"}},{"$f":"'MMA Rev-Exp Region 11'!AM$46","v":{"v":0,"d":"$0.00"}},{"$f":"'MMA Rev-Exp Region 11'!AN$46","v":{"v":0,"d":"$0.00"}},{"$f":"'MMA Rev-Exp Region 11'!AO$46","v":{"v":0,"d":"$0.00"}},{"$f":"'MMA Rev-Exp Region 11'!AP$46","v":{"v":0,"d":"$0.00"}},{"$f":"'MMA Rev-Exp Region 11'!AQ$46","v":{"v":0,"d":"$0.00"}},{"$f":"'MMA Rev-Exp Region 11'!AR$46","v":{"v":0,"d":"$0.00"}},{"$f":"'MMA Rev-Exp Region 11'!AS$46","v":{"v":0,"d":"$0.00"}},{"$f":"'MMA Rev-Exp Region 11'!AT$46","v":{"v":0,"d":"$0.00"}},{"$f":"'MMA Rev-Exp Region 11'!AU$46","v":{"v":0,"d":"$0.00"}},{"v":0,"d":"$0.00"}]
["MMA",null,null,{"$f":"Jurat!I$1","v":0},{"$f":"Jurat!D$33","v":"00:00:00"},"Q4","2017-12-31","Region 11","Operating Expense","Medical Benefits Expense","Dental Services","6.4","Dental Settlements",{"$f":"'MMA Rev-Exp Region 11'!AK$49","v":{"v":0,"d":"$0.00"}},{"$f":"'MMA Rev-Exp Region 11'!AL$49","v":{"v":0,"d":"$0.00"}},{"$f":"'MMA Rev-Exp Region 11'!AM$49","v":{"v":0,"d":"$0.00"}},{"$f":"'MMA Rev-Exp Region 11'!AN$49","v":{"v":0,"d":"$0.00"}},{"$f":"'MMA Rev-Exp Region 11'!AO$49","v":{"v":0,"d":"$0.00"}},{"$f":"'MMA Rev-Exp Region 11'!AP$49","v":{"v":0,"d":"$0.00"}},{"$f":"'MMA Rev-Exp Region 11'!AQ$49","v":{"v":0,"d":"$0.00"}},{"$f":"'MMA Rev-Exp Region 11'!AR$49","v":{"v":0,"d":"$0.00"}},{"$f":"'MMA Rev-Exp Region 11'!AS$49","v":{"v":0,"d":"$0.00"}},{"$f":"'MMA Rev-Exp Region 11'!AT$49","v":{"v":0,"d":"$0.00"}},{"$f":"'MMA Rev-Exp Region 11'!AU$49","v":{"v":0,"d":"$0.00"}},{"v":0,"d":"$0.00"}]
["MMA",null,null,{"$f":"Jurat!I$1","v":0},{"$f":"Jurat!D$33","v":"00:00:00"},"Q4","2017-12-31","Region 11","Operating Expense","Medical Benefits Expense","Transportation Services",7.3,"Ending IBNP for Transportation",{"$f":"'MMA Rev-Exp Region 11'!AK$53","v":{"v":0,"d":"$0.00"}},{"$f":"'MMA Rev-Exp Region 11'!AL$53","v":{"v":0,"d":"$0.00"}},{"$f":"'MMA Rev-Exp Region 11'!AM$53","v":{"v":0,"d":"$0.00"}},{"$f":"'MMA Rev-Exp Region 11'!AN$53","v":{"v":0,"d":"$0.00"}},{"$f":"'MMA Rev-Exp Region 11'!AO$53","v":{"v":0,"d":"$0.00"}},{"$f":"'MMA Rev-Exp Region 11'!AP$53","v":{"v":0,"d":"$0.00"}},{"$f":"'MMA Rev-Exp Region 11'!AQ$53","v":{"v":0,"d":"$0.00"}},{"$f":"'MMA Rev-Exp Region 11'!AR$53","v":{"v":0,"d":"$0.00"}},{"$f":"'MMA Rev-Exp Region 11'!AS$53","v":{"v":0,"d":"$0.00"}},{"$f":"'MMA Rev-Exp Region 11'!AT$53","v":{"v":0,"d":"$0.00"}},{"$f":"'MMA Rev-Exp Region 11'!AU$53","v":{"v":0,"d":"$0.00"}},{"v":0,"d":"$0.00"}]
["MMA",null,null,{"$f":"Jurat!I$1","v":0},{"$f":"Jurat!D$33","v":"00:00:00"},"Q4","2017-12-31","Region 11","Operating Expense","Medical Benefits Expense","Pharmacy Services","8.2","Hepatitis C Prescription Drug FFS",{"$f":"'MMA Rev-Exp Region 11'!AK$57","v":{"v":0,"d":"$0.00"}},{"$f":"'MMA Rev-Exp Region 11'!AL$57","v":{"v":0,"d":"$0.00"}},{"$f":"'MMA Rev-Exp Region 11'!AM$57","v":{"v":0,"d":"$0.00"}},{"$f":"'MMA Rev-Exp Region 11'!AN$57","v":{"v":0,"d":"$0.00"}},{"$f":"'MMA Rev-Exp Region 11'!AO$57","v":{"v":0,"d":"$0.00"}},{"$f":"'MMA Rev-Exp Region 11'!AP$57","v":{"v":0,"d":"$0.00"}},{"$f":"'MMA Rev-Exp Region 11'!AQ$57","v":{"v":0,"d":"$0.00"}},{"$f":"'MMA Rev-Exp Region 11'!AR$57","v":{"v":0,"d":"$0.00"}},{"$f":"'MMA Rev-Exp Region 11'!AS$57","v":{"v":0,"d":"$0.00"}},{"$f":"'MMA Rev-Exp Region 11'!AT$57","v":{"v":0,"d":"$0.00"}},{"$f":"'MMA Rev-Exp Region 11'!AU$57","v":{"v":0,"d":"$0.00"}},{"v":0,"d":"$0.00"}]
["MMA",null,null,{"$f":"Jurat!I$1","v":0},{"$f":"Jurat!D$33","v":"00:00:00"},"Q4","2017-12-31","Region 11","Operating Expense","Medical Benefits Expense","Pharmacy Services","8.5","Ending accrual for Rebates receivable",{"$f":"'MMA Rev-Exp Region 11'!AK$60","v":{"v":0,"d":"$0.00"}},{"$f":"'MMA Rev-Exp Region 11'!AL$60","v":{"v":0,"d":"$0.00"}},{"$f":"'MMA Rev-Exp Region 11'!AM$60","v":{"v":0,"d":"$0.00"}},{"$f":"'MMA Rev-Exp Region 11'!AN$60","v":{"v":0,"d":"$0.00"}},{"$f":"'MMA Rev-Exp Region 11'!AO$60","v":{"v":0,"d":"$0.00"}},{"$f":"'MMA Rev-Exp Region 11'!AP$60","v":{"v":0,"d":"$0.00"}},{"$f":"'MMA Rev-Exp Region 11'!AQ$60","v":{"v":0,"d":"$0.00"}},{"$f":"'MMA Rev-Exp Region 11'!AR$60","v":{"v":0,"d":"$0.00"}},{"$f":"'MMA Rev-Exp Region 11'!AS$60","v":{"v":0,"d":"$0.00"}},{"$f":"'MMA Rev-Exp Region 11'!AT$60","v":{"v":0,"d":"$0.00"}},{"$f":"'MMA Rev-Exp Region 11'!AU$60","v":{"v":0,"d":"$0.00"}},{"v":0,"d":"$0.00"}]
["MMA",null,null,{"$f":"Jurat!I$1","v":0},{"$f":"Jurat!D$33","v":"00:00:00"},"Q4","2017-12-31","Region 11","Operating Expense","Medical Benefits Expense","Pharmacy Services","8.6","Prescription Drugs Subcapitation",{"$f":"'MMA Rev-Exp Region 11'!AK$61","v":{"v":0,"d":"$0.00"}},{"$f":"'MMA Rev-Exp Region 11'!AL$61","v":{"v":0,"d":"$0.00"}},{"$f":"'MMA Rev-Exp Region 11'!AM$61","v":{"v":0,"d":"$0.00"}},{"$f":"'MMA Rev-Exp Region 11'!AN$61","v":{"v":0,"d":"$0.00"}},{"$f":"'MMA Rev-Exp Region 11'!AO$61","v":{"v":0,"d":"$0.00"}},{"$f":"'MMA Rev-Exp Region 11'!AP$61","v":{"v":0,"d":"$0.00"}},{"$f":"'MMA Rev-Exp Region 11'!AQ$61","v":{"v":0,"d":"$0.00"}},{"$f":"'MMA Rev-Exp Region 11'!AR$61","v":{"v":0,"d":"$0.00"}},{"$f":"'MMA Rev-Exp Region 11'!AS$61","v":{"v":0,"d":"$0.00"}},{"$f":"'MMA Rev-Exp Region 11'!AT$61","v":{"v":0,"d":"$0.00"}},{"$f":"'MMA Rev-Exp Region 11'!AU$61","v":{"v":0,"d":"$0.00"}},{"v":0,"d":"$0.00"}]
["MMA",null,null,{"$f":"Jurat!I$1","v":0},{"$f":"Jurat!D$33","v":"00:00:00"},"Q4","2017-12-31","Region 11","Operating Expense","Medical Benefits Expense","Other MMA Services","9.2","Hospice FFS",{"$f":"'MMA Rev-Exp Region 11'!AK$65","v":{"v":0,"d":"$0.00"}},{"$f":"'MMA Rev-Exp Region 11'!AL$65","v":{"v":0,"d":"$0.00"}},{"$f":"'MMA Rev-Exp Region 11'!AM$65","v":{"v":0,"d":"$0.00"}},{"$f":"'MMA Rev-Exp Region 11'!AN$65","v":{"v":0,"d":"$0.00"}},{"$f":"'MMA Rev-Exp Region 11'!AO$65","v":{"v":0,"d":"$0.00"}},{"$f":"'MMA Rev-Exp Region 11'!AP$65","v":{"v":0,"d":"$0.00"}},{"$f":"'MMA Rev-Exp Region 11'!AQ$65","v":{"v":0,"d":"$0.00"}},{"$f":"'MMA Rev-Exp Region 11'!AR$65","v":{"v":0,"d":"$0.00"}},{"$f":"'MMA Rev-Exp Region 11'!AS$65","v":{"v":0,"d":"$0.00"}},{"$f":"'MMA Rev-Exp Region 11'!AT$65","v":{"v":0,"d":"$0.00"}},{"$f":"'MMA Rev-Exp Region 11'!AU$65","v":{"v":0,"d":"$0.00"}},{"v":0,"d":"$0.00"}]
["MMA",null,null,{"$f":"Jurat!I$1","v":0},{"$f":"Jurat!D$33","v":"00:00:00"},"Q4","2017-12-31","Region 11","Operating Expense","Medical Benefits Expense","Other MMA Services","9.5","Other Services Subcapitation",{"$f":"'MMA Rev-Exp Region 11'!AK$68","v":{"v":0,"d":"$0.00"}},{"$f":"'MMA Rev-Exp Region 11'!AL$68","v":{"v":0,"d":"$0.00"}},{"$f":"'MMA Rev-Exp Region 11'!AM$68","v":{"v":0,"d":"$0.00"}},{"$f":"'MMA Rev-Exp Region 11'!AN$68","v":{"v":0,"d":"$0.00"}},{"$f":"'MMA Rev-Exp Region 11'!AO$68","v":{"v":0,"d":"$0.00"}},{"$f":"'MMA Rev-Exp Region 11'!AP$68","v":{"v":0,"d":"$0.00"}},{"$f":"'MMA Rev-Exp Region 11'!AQ$68","v":{"v":0,"d":"$0.00"}},{"$f":"'MMA Rev-Exp Region 11'!AR$68","v":{"v":0,"d":"$0.00"}},{"$f":"'MMA Rev-Exp Region 11'!AS$68","v":{"v":0,"d":"$0.00"}},{"$f":"'MMA Rev-Exp Region 11'!AT$68","v":{"v":0,"d":"$0.00"}},{"$f":"'MMA Rev-Exp Region 11'!AU$68","v":{"v":0,"d":"$0.00"}},{"v":0,"d":"$0.00"}]
["MMA",null,null,{"$f":"Jurat!I$1","v":0},{"$f":"Jurat!D$33","v":"00:00:00"},"Q4","2017-12-31","Region 11","Operating Expense","Medical Benefits Expense","Expanded Benefits","10.2","Expanded benefits Subcapitation",{"$f":"'MMA Rev-Exp Region 11'!AK$73","v":{"v":0,"d":"$0.00"}},{"$f":"'MMA Rev-Exp Region 11'!AL$73","v":{"v":0,"d":"$0.00"}},{"$f":"'MMA Rev-Exp Region 11'!AM$73","v":{"v":0,"d":"$0.00"}},{"$f":"'MMA Rev-Exp Region 11'!AN$73","v":{"v":0,"d":"$0.00"}},{"$f":"'MMA Rev-Exp Region 11'!AO$73","v":{"v":0,"d":"$0.00"}},{"$f":"'MMA Rev-Exp Region 11'!AP$73","v":{"v":0,"d":"$0.00"}},{"$f":"'MMA Rev-Exp Region 11'!AQ$73","v":{"v":0,"d":"$0.00"}},{"$f":"'MMA Rev-Exp Region 11'!AR$73","v":{"v":0,"d":"$0.00"}},{"$f":"'MMA Rev-Exp Region 11'!AS$73","v":{"v":0,"d":"$0.00"}},{"$f":"'MMA Rev-Exp Region 11'!AT$73","v":{"v":0,"d":"$0.00"}},{"$f":"'MMA Rev-Exp Region 11'!AU$73","v":{"v":0,"d":"$0.00"}},{"v":0,"d":"$0.00"}]
["MMA",null,null,{"$f":"Jurat!I$1","v":0},{"$f":"Jurat!D$33","v":"00:00:00"},"Q4","2017-12-31","Region 11","Operating Expense","Medical Benefits Expense","Other Medical","11.5","TPL & Fraud/Abuse Recoveries",{"$f":"'MMA Rev-Exp Region 11'!AK$81","v":{"v":0,"d":"$0.00"}},{"$f":"'MMA Rev-Exp Region 11'!AL$81","v":{"v":0,"d":"$0.00"}},{"$f":"'MMA Rev-Exp Region 11'!AM$81","v":{"v":0,"d":"$0.00"}},{"$f":"'MMA Rev-Exp Region 11'!AN$81","v":{"v":0,"d":"$0.00"}},{"$f":"'MMA Rev-Exp Region 11'!AO$81","v":{"v":0,"d":"$0.00"}},{"$f":"'MMA Rev-Exp Region 11'!AP$81","v":{"v":0,"d":"$0.00"}},{"$f":"'MMA Rev-Exp Region 11'!AQ$81","v":{"v":0,"d":"$0.00"}},{"$f":"'MMA Rev-Exp Region 11'!AR$81","v":{"v":0,"d":"$0.00"}},{"$f":"'MMA Rev-Exp Region 11'!AS$81","v":{"v":0,"d":"$0.00"}},{"$f":"'MMA Rev-Exp Region 11'!AT$81","v":{"v":0,"d":"$0.00"}},{"$f":"'MMA Rev-Exp Region 11'!AU$81","v":{"v":0,"d":"$0.00"}},{"v":0,"d":"$0.00"}]
["MMA",null,null,{"$f":"Jurat!I$1","v":0},{"$f":"Jurat!D$33","v":"00:00:00"},"Q4","2017-12-31","Region 11","Operating Expense","Administrative Expense","Administrative","12.1","Salaries & Benefits",{"$f":"'MMA Rev-Exp Region 11'!AK$90","v":{"v":0,"d":"$0.00"}},{"v":0,"d":"$0.00"},{"v":0,"d":"$0.00"},{"v":0,"d":"$0.00"},{"v":0,"d":"$0.00"},{"v":0,"d":"$0.00"},{"v":0,"d":"$0.00"},{"v":0,"d":"$0.00"},{"v":0,"d":"$0.00"},{"v":0,"d":"$0.00"},{"v":0,"d":"$0.00"},{"v":0,"d":"$0.00"}]
["MMA",null,null,{"$f":"Jurat!I$1","v":0},{"$f":"Jurat!D$33","v":"00:00:00"},"Q4","2017-12-31","Region 11","Operating Expense","Administrative Expense","Administrative","12.4","Marketing Expenses",{"$f":"'MMA Rev-Exp Region 11'!AK$93","v":{"v":0,"d":"$0.00"}},{"v":0,"d":"$0.00"},{"v":0,"d":"$0.00"},{"v":0,"d":"$0.00"},{"v":0,"d":"$0.00"},{"v":0,"d":"$0.00"},{"v":0,"d":"$0.00"},{"v":0,"d":"$0.00"},{"v":0,"d":"$0.00"},{"v":0,"d":"$0.00"},{"v":0,"d":"$0.00"},{"v":0,"d":"$0.00"}]
["MMA",null,null,{"$f":"Jurat!I$1","v":0},{"$f":"Jurat!D$33","v":"00:00:00"},"Q4","2017-12-31","Region 11","Operating Expense","Administrative Expense","Administrative","12.6","Compliance/Regulatory",{"$f":"'MMA Rev-Exp Region 11'!AK$95","v":{"v":0,"d":"$0.00"}},{"v":0,"d":"$0.00"},{"v":0,"d":"$0.00"},{"v":0,"d":"$0.00"},{"v":0,"d":"$0.00"},{"v":0,"d":"$0.00"},{"v":0,"d":"$0.00"},{"v":0,"d":"$0.00"},{"v":0,"d":"$0.00"},{"v":0,"d":"$0.00"},{"v":0,"d":"$0.00"},{"v":0,"d":"$0.00"}]
["MMA",null,null,{"$f":"Jurat!I$1","v":0},{"$f":"Jurat!D$33","v":"00:00:00"},"Q4","2017-12-31","Region 11","Operating Expense","Taxes & Fees","Taxes & Fees","13.1","State Premium tax",{"$f":"'MMA Rev-Exp Region 11'!AK$97","v":{"v":0,"d":"$0.00"}},{"v":0,"d":"$0.00"},{"v":0,"d":"$0.00"},{"v":0,"d":"$0.00"},{"v":0,"d":"$0.00"},{"v":0,"d":"$0.00"},{"v":0,"d":"$0.00"},{"v":0,"d":"$0.00"},{"v":0,"d":"$0.00"},{"v":0,"d":"$0.00"},{"v":0,"d":"$0.00"},{"v":0,"d":"$0.00"}]
["MMA",null,null,{"$f":"Jurat!I$1","v":0},{"$f":"Jurat!D$33","v":"00:00:00"},"Q4","2017-12-31","Region 11","Non-Operating Expense","Income Tax Expense","Income Tax Expense","16.0","Income Tax Expense",{"$f":"'MMA Rev-Exp Region 11'!AK$106","v":{"v":0,"d":"$0.00"}},{"v":0,"d":"$0.00"},{"v":0,"d":"$0.00"},{"v":0,"d":"$0.00"},{"v":0,"d":"$0.00"},{"v":0,"d":"$0.00"},{"v":0,"d":"$0.00"},{"v":0,"d":"$0.00"},{"v":0,"d":"$0.00"},{"v":0,"d":"$0.00"},{"v":0,"d":"$0.00"},{"v":0,"d":"$0.00"}]
["MMA",null,null,{"$f":"Jurat!I$1","v":0},{"$f":"Jurat!D$33","v":"00:00:00"},"PY","1917-01-01","Region 11","Operating Revenue","Kick Payments","Kick Payments - Transplant",1.2,"Transplant Kick Payments",{"v":0,"d":"$0.00"},{"v":0,"d":"$0.00"},{"v":0,"d":"$0.00"},{"v":0,"d":"$0.00"},{"v":0,"d":"$0.00"},{"v":0,"d":"$0.00"},{"v":0,"d":"$0.00"},{"v":0,"d":"$0.00"},{"v":0,"d":"$0.00"},{"v":0,"d":"$0.00"},{"v":0,"d":"$0.00"},{"$f":"'MMA Rev-Exp Region 11'!AV$12","v":{"v":0,"d":"$0.00"}}]
["MMA",null,null,{"$f":"Jurat!I$1","v":0},{"$f":"Jurat!D$33","v":"00:00:00"},"PY","1917-01-01","Region 11","Operating Revenue","Other Revenue","Other Revenue","1.6","Other Revenue",{"v":0,"d":"$0.00"},{"v":0,"d":"$0.00"},{"v":0,"d":"$0.00"},{"v":0,"d":"$0.00"},{"v":0,"d":"$0.00"},{"v":0,"d":"$0.00"},{"v":0,"d":"$0.00"},{"v":0,"d":"$0.00"},{"v":0,"d":"$0.00"},{"v":0,"d":"$0.00"},{"v":0,"d":"$0.00"},{"$f":"'MMA Rev-Exp Region 11'!AV$16","v":{"v":0,"d":"$0.00"}}]
["MMA",null,null,{"$f":"Jurat!I$1","v":0},{"$f":"Jurat!D$33","v":"00:00:00"},"PY","1917-01-01","Region 11","Operating Expense","Medical Benefits Expense","Hospital Services",2.3,"Outpatient FFS: ER",{"v":0,"d":"$0.00"},{"v":0,"d":"$0.00"},{"v":0,"d":"$0.00"},{"v":0,"d":"$0.00"},{"v":0,"d":"$0.00"},{"v":0,"d":"$0.00"},{"v":0,"d":"$0.00"},{"v":0,"d":"$0.00"},{"v":0,"d":"$0.00"},{"v":0,"d":"$0.00"},{"v":0,"d":"$0.00"},{"$f":"'MMA Rev-Exp Region 11'!AV$22","v":{"v":0,"d":"$0.00"}}]
["MMA",null,null,{"$f":"Jurat!I$1","v":0},{"$f":"Jurat!D$33","v":"00:00:00"},"PY","1917-01-01","Region 11","Operating Expense","Medical Benefits Expense","Hospital Services","2.7","Hospital Settlements",{"v":0,"d":"$0.00"},{"v":0,"d":"$0.00"},{"v":0,"d":"$0.00"},{"v":0,"d":"$0.00"},{"v":0,"d":"$0.00"},{"v":0,"d":"$0.00"},{"v":0,"d":"$0.00"},{"v":0,"d":"$0.00"},{"v":0,"d":"$0.00"},{"v":0,"d":"$0.00"},{"v":0,"d":"$0.00"},{"$f":"'MMA Rev-Exp Region 11'!AV$26","v":{"v":0,"d":"$0.00"}}]
["MMA",null,null,{"$f":"Jurat!I$1","v":0},{"$f":"Jurat!D$33","v":"00:00:00"},"PY","1917-01-01","Region 11","Operating Expense","Medical Benefits Expense","Professional Services",3.2,"Specialty Care FFS",{"v":0,"d":"$0.00"},{"v":0,"d":"$0.00"},{"v":0,"d":"$0.00"},{"v":0,"d":"$0.00"},{"v":0,"d":"$0.00"},{"v":0,"d":"$0.00"},{"v":0,"d":"$0.00"},{"v":0,"d":"$0.00"},{"v":0,"d":"$0.00"},{"v":0,"d":"$0.00"},{"v":0,"d":"$0.00"},{"$f":"'MMA Rev-Exp Region 11'!AV$30","v":{"v":0,"d":"$0.00"}}]
["MMA",null,null,{"$f":"Jurat!I$1","v":0},{"$f":"Jurat!D$33","v":"00:00:00"},"PY","1917-01-01","Region 11","Operating Expense","Medical Benefits Expense","Professional Services","3.5","Subcapitated Professional Services",{"v":0,"d":"$0.00"},{"v":0,"d":"$0.00"},{"v":0,"d":"$0.00"},{"v":0,"d":"$0.00"},{"v":0,"d":"$0.00"},{"v":0,"d":"$0.00"},{"v":0,"d":"$0.00"},{"v":0,"d":"$0.00"},{"v":0,"d":"$0.00"},{"v":0,"d":"$0.00"},{"v":0,"d":"$0.00"},{"$f":"'MMA Rev-Exp Region 11'!AV$33","v":{"v":0,"d":"$0.00"}}]
["MMA",null,null,{"$f":"Jurat!I$1","v":0},{"$f":"Jurat!D$33","v":"00:00:00"},"PY","1917-01-01","Region 11","Operating Expense","Medical Benefits Expense","Professional Services","3.6","Ending IBNP for Professional Services",{"v":0,"d":"$0.00"},{"v":0,"d":"$0.00"},{"v":0,"d":"$0.00"},{"v":0,"d":"$0.00"},{"v":0,"d":"$0.00"},{"v":0,"d":"$0.00"},{"v":0,"d":"$0.00"},{"v":0,"d":"$0.00"},{"v":0,"d":"$0.00"},{"v":0,"d":"$0.00"},{"v":0,"d":"$0.00"},{"$f":"'MMA Rev-Exp Region 11'!AV$34","v":{"v":0,"d":"$0.00"}}]
["MMA",null,null,{"$f":"Jurat!I$1","v":0},{"$f":"Jurat!D$33","v":"00:00:00"},"PY","1917-01-01","Region 11","Operating Expense","Medical Benefits Expense","Maternity Services","4.1.1","Maternity Services",{"v":0,"d":"$0.00"},{"v":0,"d":"$0.00"},{"v":0,"d":"$0.00"},{"v":0,"d":"$0.00"},{"v":0,"d":"$0.00"},{"v":0,"d":"$0.00"},{"v":0,"d":"$0.00"},{"v":0,"d":"$0.00"},{"v":0,"d":"$0.00"},{"v":0,"d":"$0.00"},{"v":0,"d":"$0.00"},{"$f":"'MMA Rev-Exp Region 11'!AV$37","v":{"v":0,"d":"$0.00"}}]
["MMA",null,null,{"$f":"Jurat!I$1","v":0},{"$f":"Jurat!D$33","v":"00:00:00"},"PY","1917-01-01","Region 11","Operating Expense","Medical Benefits Expense","Mental Health Services",5.2,"Mental Health & Substance Abuse Subcapitation",{"v":0,"d":"$0.00"},{"v":0,"d":"$0.00"},{"v":0,"d":"$0.00"},{"v":0,"d":"$0.00"},{"v":0,"d":"$0.00"},{"v":0,"d":"$0.00"},{"v":0,"d":"$0.00"},{"v":0,"d":"$0.00"},{"v":0,"d":"$0.00"},{"v":0,"d":"$0.00"},{"v":0,"d":"$0.00"},{"$f":"'MMA Rev-Exp Region 11'!AV$42","v":{"v":0,"d":"$0.00"}}]
["MMA",null,null,{"$f":"Jurat!I$1","v":0},{"$f":"Jurat!D$33","v":"00:00:00"},"PY","1917-01-01","Region 11","Operating Expense","Medical Benefits Expense","Dental Services",6.1,"Dental FFS",{"v":0,"d":"$0.00"},{"v":0,"d":"$0.00"},{"v":0,"d":"$0.00"},{"v":0,"d":"$0.00"},{"v":0,"d":"$0.00"},{"v":0,"d":"$0.00"},{"v":0,"d":"$0.00"},{"v":0,"d":"$0.00"},{"v":0,"d":"$0.00"},{"v":0,"d":"$0.00"},{"v":0,"d":"$0.00"},{"$f":"'MMA Rev-Exp Region 11'!AV$46","v":{"v":0,"d":"$0.00"}}]
["MMA",null,null,{"$f":"Jurat!I$1","v":0},{"$f":"Jurat!D$33","v":"00:00:00"},"PY","1917-01-01","Region 11","Operating Expense","Medical Benefits Expense","Dental Services","6.4","Dental Settlements",{"v":0,"d":"$0.00"},{"v":0,"d":"$0.00"},{"v":0,"d":"$0.00"},{"v":0,"d":"$0.00"},{"v":0,"d":"$0.00"},{"v":0,"d":"$0.00"},{"v":0,"d":"$0.00"},{"v":0,"d":"$0.00"},{"v":0,"d":"$0.00"},{"v":0,"d":"$0.00"},{"v":0,"d":"$0.00"},{"$f":"'MMA Rev-Exp Region 11'!AV$49","v":{"v":0,"d":"$0.00"}}]
["MMA",null,null,{"$f":"Jurat!I$1","v":0},{"$f":"Jurat!D$33","v":"00:00:00"},"PY","1917-01-01","Region 11","Operating Expense","Medical Benefits Expense","Transportation Services","7.4","Transportation Settlements",{"v":0,"d":"$0.00"},{"v":0,"d":"$0.00"},{"v":0,"d":"$0.00"},{"v":0,"d":"$0.00"},{"v":0,"d":"$0.00"},{"v":0,"d":"$0.00"},{"v":0,"d":"$0.00"},{"v":0,"d":"$0.00"},{"v":0,"d":"$0.00"},{"v":0,"d":"$0.00"},{"v":0,"d":"$0.00"},{"$f":"'MMA Rev-Exp Region 11'!AV$54","v":{"v":0,"d":"$0.00"}}]
["MMA",null,null,{"$f":"Jurat!I$1","v":0},{"$f":"Jurat!D$33","v":"00:00:00"},"PY","1917-01-01","Region 11","Operating Expense","Medical Benefits Expense","Pharmacy Services","8.3","Ending IBNP for Prescription Drugs",{"v":0,"d":"$0.00"},{"v":0,"d":"$0.00"},{"v":0,"d":"$0.00"},{"v":0,"d":"$0.00"},{"v":0,"d":"$0.00"},{"v":0,"d":"$0.00"},{"v":0,"d":"$0.00"},{"v":0,"d":"$0.00"},{"v":0,"d":"$0.00"},{"v":0,"d":"$0.00"},{"v":0,"d":"$0.00"},{"$f":"'MMA Rev-Exp Region 11'!AV$58","v":{"v":0,"d":"$0.00"}}]
["MMA",null,null,{"$f":"Jurat!I$1","v":0},{"$f":"Jurat!D$33","v":"00:00:00"},"PY","1917-01-01","Region 11","Operating Expense","Medical Benefits Expense","Pharmacy Services","8.6","Prescription Drugs Subcapitation",{"v":0,"d":"$0.00"},{"v":0,"d":"$0.00"},{"v":0,"d":"$0.00"},{"v":0,"d":"$0.00"},{"v":0,"d":"$0.00"},{"v":0,"d":"$0.00"},{"v":0,"d":"$0.00"},{"v":0,"d":"$0.00"},{"v":0,"d":"$0.00"},{"v":0,"d":"$0.00"},{"v":0,"d":"$0.00"},{"$f":"'MMA Rev-Exp Region 11'!AV$61","v":{"v":0,"d":"$0.00"}}]
["MMA",null,null,{"$f":"Jurat!I$1","v":0},{"$f":"Jurat!D$33","v":"00:00:00"},"PY","1917-01-01","Region 11","Operating Expense","Medical Benefits Expense","Pharmacy Services","8.7","Prescription Drug Settlements",{"v":0,"d":"$0.00"},{"v":0,"d":"$0.00"},{"v":0,"d":"$0.00"},{"v":0,"d":"$0.00"},{"v":0,"d":"$0.00"},{"v":0,"d":"$0.00"},{"v":0,"d":"$0.00"},{"v":0,"d":"$0.00"},{"v":0,"d":"$0.00"},{"v":0,"d":"$0.00"},{"v":0,"d":"$0.00"},{"$f":"'MMA Rev-Exp Region 11'!AV$62","v":{"v":0,"d":"$0.00"}}]
["MMA",null,null,{"$f":"Jurat!I$1","v":0},{"$f":"Jurat!D$33","v":"00:00:00"},"PY","1917-01-01","Region 11","Operating Expense","Medical Benefits Expense","Other MMA Services","9.4","Other State Plan Services FFS",{"v":0,"d":"$0.00"},{"v":0,"d":"$0.00"},{"v":0,"d":"$0.00"},{"v":0,"d":"$0.00"},{"v":0,"d":"$0.00"},{"v":0,"d":"$0.00"},{"v":0,"d":"$0.00"},{"v":0,"d":"$0.00"},{"v":0,"d":"$0.00"},{"v":0,"d":"$0.00"},{"v":0,"d":"$0.00"},{"$f":"'MMA Rev-Exp Region 11'!AV$67","v":{"v":0,"d":"$0.00"}}]
["MMA",null,null,{"$f":"Jurat!I$1","v":0},{"$f":"Jurat!D$33","v":"00:00:00"},"PY","1917-01-01","Region 11","Operating Expense","Medical Benefits Expense","Other MMA Services","9.6","Ending IBNP for Other Services",{"v":0,"d":"$0.00"},{"v":0,"d":"$0.00"},{"v":0,"d":"$0.00"},{"v":0,"d":"$0.00"},{"v":0,"d":"$0.00"},{"v":0,"d":"$0.00"},{"v":0,"d":"$0.00"},{"v":0,"d":"$0.00"},{"v":0,"d":"$0.00"},{"v":0,"d":"$0.00"},{"v":0,"d":"$0.00"},{"$f":"'MMA Rev-Exp Region 11'!AV$69","v":{"v":0,"d":"$0.00"}}]
["MMA",null,null,{"$f":"Jurat!I$1","v":0},{"$f":"Jurat!D$33","v":"00:00:00"},"PY","1917-01-01","Region 11","Operating Expense","Medical Benefits Expense","Expanded Benefits","10.2","Expanded benefits Subcapitation",{"v":0,"d":"$0.00"},{"v":0,"d":"$0.00"},{"v":0,"d":"$0.00"},{"v":0,"d":"$0.00"},{"v":0,"d":"$0.00"},{"v":0,"d":"$0.00"},{"v":0,"d":"$0.00"},{"v":0,"d":"$0.00"},{"v":0,"d":"$0.00"},{"v":0,"d":"$0.00"},{"v":0,"d":"$0.00"},{"$f":"'MMA Rev-Exp Region 11'!AV$73","v":{"v":0,"d":"$0.00"}}]
["MMA",null,null,{"$f":"Jurat!I$1","v":0},{"$f":"Jurat!D$33","v":"00:00:00"},"PY","1917-01-01","Region 11","Operating Expense","Medical Benefits Expense","Other Medical","11.5","TPL & Fraud/Abuse Recoveries",{"v":0,"d":"$0.00"},{"v":0,"d":"$0.00"},{"v":0,"d":"$0.00"},{"v":0,"d":"$0.00"},{"v":0,"d":"$0.00"},{"v":0,"d":"$0.00"},{"v":0,"d":"$0.00"},{"v":0,"d":"$0.00"},{"v":0,"d":"$0.00"},{"v":0,"d":"$0.00"},{"v":0,"d":"$0.00"},{"$f":"'MMA Rev-Exp Region 11'!AV$81","v":{"v":0,"d":"$0.00"}}]
["MMA",null,null,{"$f":"Jurat!I$1","v":0},{"$f":"Jurat!D$33","v":"00:00:00"},"PY","1917-01-01","Region 11","Operating Expense","Administrative Expense","Administrative","12.1","Salaries & Benefits",{"v":0,"d":"$0.00"},{"v":0,"d":"$0.00"},{"v":0,"d":"$0.00"},{"v":0,"d":"$0.00"},{"v":0,"d":"$0.00"},{"v":0,"d":"$0.00"},{"v":0,"d":"$0.00"},{"v":0,"d":"$0.00"},{"v":0,"d":"$0.00"},{"v":0,"d":"$0.00"},{"v":0,"d":"$0.00"},{"$f":"'MMA Rev-Exp Region 11'!AV$90","v":{"v":0,"d":"$0.00"}}]
["MMA",null,null,{"$f":"Jurat!I$1","v":0},{"$f":"Jurat!D$33","v":"00:00:00"},"PY","1917-01-01","Region 11","Operating Expense","Administrative Expense","Administrative","12.4","Marketing Expenses",{"v":0,"d":"$0.00"},{"v":0,"d":"$0.00"},{"v":0,"d":"$0.00"},{"v":0,"d":"$0.00"},{"v":0,"d":"$0.00"},{"v":0,"d":"$0.00"},{"v":0,"d":"$0.00"},{"v":0,"d":"$0.00"},{"v":0,"d":"$0.00"},{"v":0,"d":"$0.00"},{"v":0,"d":"$0.00"},{"$f":"'MMA Rev-Exp Region 11'!AV$93","v":{"v":0,"d":"$0.00"}}]
["MMA",null,null,{"$f":"Jurat!I$1","v":0},{"$f":"Jurat!D$33","v":"00:00:00"},"PY","1917-01-01","Region 11","Operating Expense","Taxes & Fees","Taxes & Fees","13.1","State Premium tax",{"v":0,"d":"$0.00"},{"v":0,"d":"$0.00"},{"v":0,"d":"$0.00"},{"v":0,"d":"$0.00"},{"v":0,"d":"$0.00"},{"v":0,"d":"$0.00"},{"v":0,"d":"$0.00"},{"v":0,"d":"$0.00"},{"v":0,"d":"$0.00"},{"v":0,"d":"$0.00"},{"v":0,"d":"$0.00"},{"$f":"'MMA Rev-Exp Region 11'!AV$97","v":{"v":0,"d":"$0.00"}}]
["MMA",null,null,{"$f":"Jurat!I$1","v":0},{"$f":"Jurat!D$33","v":"00:00:00"},"PY","1917-01-01","Region 11","Operating Expense","Taxes & Fees","Taxes & Fees","13.2","Department of Insurance Assessments",{"v":0,"d":"$0.00"},{"v":0,"d":"$0.00"},{"v":0,"d":"$0.00"},{"v":0,"d":"$0.00"},{"v":0,"d":"$0.00"},{"v":0,"d":"$0.00"},{"v":0,"d":"$0.00"},{"v":0,"d":"$0.00"},{"v":0,"d":"$0.00"},{"v":0,"d":"$0.00"},{"v":0,"d":"$0.00"},{"$f":"'MMA Rev-Exp Region 11'!AV$98","v":{"v":0,"d":"$0.00"}}]
["MMA",null,null,{"$f":"Jurat!I$1","v":0},{"$f":"Jurat!D$33","v":"00:00:00"},"PY","1917-01-01","Region 10","Member Months","Member Months","Member Months",null,"Member Months",{"v":0,"d":"$0.00"},{"v":0,"d":"$0.00"},{"v":0,"d":"$0.00"},{"v":0,"d":"$0.00"},{"v":0,"d":"$0.00"},{"v":0,"d":"$0.00"},{"v":0,"d":"$0.00"},{"v":0,"d":"$0.00"},{"v":0,"d":"$0.00"},{"v":0,"d":"$0.00"},{"v":0,"d":"$0.00"},{"$f":"'MMA Rev-Exp Region 10'!AV$9","v":{"v":0,"d":"$0.00"}}]
["MMA",null,null,{"$f":"Jurat!I$1","v":0},{"$f":"Jurat!D$33","v":"00:00:00"},"PY","1917-01-01","Region 10","Operating Revenue","Kick Payments","Kick Payments - Hep C","1.3","Hepatitis C Kick Payments",{"v":0,"d":"$0.00"},{"v":0,"d":"$0.00"},{"v":0,"d":"$0.00"},{"v":0,"d":"$0.00"},{"v":0,"d":"$0.00"},{"v":0,"d":"$0.00"},{"v":0,"d":"$0.00"},{"v":0,"d":"$0.00"},{"v":0,"d":"$0.00"},{"v":0,"d":"$0.00"},{"v":0,"d":"$0.00"},{"$f":"'MMA Rev-Exp Region 10'!AV$13","v":{"v":0,"d":"$0.00"}}]
["MMA",null,null,{"$f":"Jurat!I$1","v":0},{"$f":"Jurat!D$33","v":"00:00:00"},"PY","1917-01-01","Region 10","Operating Revenue","Other Revenue","Other Revenue","1.6","Other Revenue",{"v":0,"d":"$0.00"},{"v":0,"d":"$0.00"},{"v":0,"d":"$0.00"},{"v":0,"d":"$0.00"},{"v":0,"d":"$0.00"},{"v":0,"d":"$0.00"},{"v":0,"d":"$0.00"},{"v":0,"d":"$0.00"},{"v":0,"d":"$0.00"},{"v":0,"d":"$0.00"},{"v":0,"d":"$0.00"},{"$f":"'MMA Rev-Exp Region 10'!AV$16","v":{"v":0,"d":"$0.00"}}]
["MMA",null,null,{"$f":"Jurat!I$1","v":0},{"$f":"Jurat!D$33","v":"00:00:00"},"PY","1917-01-01","Region 10","Operating Expense","Medical Benefits Expense","Hospital Services",2.3,"Outpatient FFS: ER",{"v":0,"d":"$0.00"},{"v":0,"d":"$0.00"},{"v":0,"d":"$0.00"},{"v":0,"d":"$0.00"},{"v":0,"d":"$0.00"},{"v":0,"d":"$0.00"},{"v":0,"d":"$0.00"},{"v":0,"d":"$0.00"},{"v":0,"d":"$0.00"},{"v":0,"d":"$0.00"},{"v":0,"d":"$0.00"},{"$f":"'MMA Rev-Exp Region 10'!AV$22","v":{"v":0,"d":"$0.00"}}]
["MMA",null,null,{"$f":"Jurat!I$1","v":0},{"$f":"Jurat!D$33","v":"00:00:00"},"PY","1917-01-01","Region 10","Operating Expense","Medical Benefits Expense","Hospital Services","2.7","Hospital Settlements",{"v":0,"d":"$0.00"},{"v":0,"d":"$0.00"},{"v":0,"d":"$0.00"},{"v":0,"d":"$0.00"},{"v":0,"d":"$0.00"},{"v":0,"d":"$0.00"},{"v":0,"d":"$0.00"},{"v":0,"d":"$0.00"},{"v":0,"d":"$0.00"},{"v":0,"d":"$0.00"},{"v":0,"d":"$0.00"},{"$f":"'MMA Rev-Exp Region 10'!AV$26","v":{"v":0,"d":"$0.00"}}]
["MMA",null,null,{"$f":"Jurat!I$1","v":0},{"$f":"Jurat!D$33","v":"00:00:00"},"PY","1917-01-01","Region 10","Operating Expense","Medical Benefits Expense","Professional Services",3.2,"Specialty Care FFS",{"v":0,"d":"$0.00"},{"v":0,"d":"$0.00"},{"v":0,"d":"$0.00"},{"v":0,"d":"$0.00"},{"v":0,"d":"$0.00"},{"v":0,"d":"$0.00"},{"v":0,"d":"$0.00"},{"v":0,"d":"$0.00"},{"v":0,"d":"$0.00"},{"v":0,"d":"$0.00"},{"v":0,"d":"$0.00"},{"$f":"'MMA Rev-Exp Region 10'!AV$30","v":{"v":0,"d":"$0.00"}}]
["MMA",null,null,{"$f":"Jurat!I$1","v":0},{"$f":"Jurat!D$33","v":"00:00:00"},"PY","1917-01-01","Region 10","Operating Expense","Medical Benefits Expense","Professional Services",3.3,"Other Professional FFS",{"v":0,"d":"$0.00"},{"v":0,"d":"$0.00"},{"v":0,"d":"$0.00"},{"v":0,"d":"$0.00"},{"v":0,"d":"$0.00"},{"v":0,"d":"$0.00"},{"v":0,"d":"$0.00"},{"v":0,"d":"$0.00"},{"v":0,"d":"$0.00"},{"v":0,"d":"$0.00"},{"v":0,"d":"$0.00"},{"$f":"'MMA Rev-Exp Region 10'!AV$31","v":{"v":0,"d":"$0.00"}}]
["MMA",null,null,{"$f":"Jurat!I$1","v":0},{"$f":"Jurat!D$33","v":"00:00:00"},"PY","1917-01-01","Region 10","Operating Expense","Medical Benefits Expense","Professional Services","3.6","Ending IBNP for Professional Services",{"v":0,"d":"$0.00"},{"v":0,"d":"$0.00"},{"v":0,"d":"$0.00"},{"v":0,"d":"$0.00"},{"v":0,"d":"$0.00"},{"v":0,"d":"$0.00"},{"v":0,"d":"$0.00"},{"v":0,"d":"$0.00"},{"v":0,"d":"$0.00"},{"v":0,"d":"$0.00"},{"v":0,"d":"$0.00"},{"$f":"'MMA Rev-Exp Region 10'!AV$34","v":{"v":0,"d":"$0.00"}}]
["MMA",null,null,{"$f":"Jurat!I$1","v":0},{"$f":"Jurat!D$33","v":"00:00:00"},"PY","1917-01-01","Region 10","Operating Expense","Medical Benefits Expense","Maternity Services","4.2.1","Ending IBNP for Maternity Services",{"v":0,"d":"$0.00"},{"v":0,"d":"$0.00"},{"v":0,"d":"$0.00"},{"v":0,"d":"$0.00"},{"v":0,"d":"$0.00"},{"v":0,"d":"$0.00"},{"v":0,"d":"$0.00"},{"v":0,"d":"$0.00"},{"v":0,"d":"$0.00"},{"v":0,"d":"$0.00"},{"v":0,"d":"$0.00"},{"$f":"'MMA Rev-Exp Region 10'!AV$38","v":{"v":0,"d":"$0.00"}}]
["MMA",null,null,{"$f":"Jurat!I$1","v":0},{"$f":"Jurat!D$33","v":"00:00:00"},"PY","1917-01-01","Region 10","Operating Expense","Medical Benefits Expense","Mental Health Services",5.3,"Ending IBNP for Mental Health & Substance Abuse",{"v":0,"d":"$0.00"},{"v":0,"d":"$0.00"},{"v":0,"d":"$0.00"},{"v":0,"d":"$0.00"},{"v":0,"d":"$0.00"},{"v":0,"d":"$0.00"},{"v":0,"d":"$0.00"},{"v":0,"d":"$0.00"},{"v":0,"d":"$0.00"},{"v":0,"d":"$0.00"},{"v":0,"d":"$0.00"},{"$f":"'MMA Rev-Exp Region 10'!AV$43","v":{"v":0,"d":"$0.00"}}]
["MMA",null,null,{"$f":"Jurat!I$1","v":0},{"$f":"Jurat!D$33","v":"00:00:00"},"PY","1917-01-01","Region 10","Operating Expense","Medical Benefits Expense","Dental Services",6.2,"Dental Subcapitation",{"v":0,"d":"$0.00"},{"v":0,"d":"$0.00"},{"v":0,"d":"$0.00"},{"v":0,"d":"$0.00"},{"v":0,"d":"$0.00"},{"v":0,"d":"$0.00"},{"v":0,"d":"$0.00"},{"v":0,"d":"$0.00"},{"v":0,"d":"$0.00"},{"v":0,"d":"$0.00"},{"v":0,"d":"$0.00"},{"$f":"'MMA Rev-Exp Region 10'!AV$47","v":{"v":0,"d":"$0.00"}}]
["MMA",null,null,{"$f":"Jurat!I$1","v":0},{"$f":"Jurat!D$33","v":"00:00:00"},"PY","1917-01-01","Region 10","Operating Expense","Medical Benefits Expense","Dental Services","6.4","Dental Settlements",{"v":0,"d":"$0.00"},{"v":0,"d":"$0.00"},{"v":0,"d":"$0.00"},{"v":0,"d":"$0.00"},{"v":0,"d":"$0.00"},{"v":0,"d":"$0.00"},{"v":0,"d":"$0.00"},{"v":0,"d":"$0.00"},{"v":0,"d":"$0.00"},{"v":0,"d":"$0.00"},{"v":0,"d":"$0.00"},{"$f":"'MMA Rev-Exp Region 10'!AV$49","v":{"v":0,"d":"$0.00"}}]
["MMA",null,null,{"$f":"Jurat!I$1","v":0},{"$f":"Jurat!D$33","v":"00:00:00"},"PY","1917-01-01","Region 10","Operating Expense","Medical Benefits Expense","Transportation Services","7.4","Transportation Settlements",{"v":0,"d":"$0.00"},{"v":0,"d":"$0.00"},{"v":0,"d":"$0.00"},{"v":0,"d":"$0.00"},{"v":0,"d":"$0.00"},{"v":0,"d":"$0.00"},{"v":0,"d":"$0.00"},{"v":0,"d":"$0.00"},{"v":0,"d":"$0.00"},{"v":0,"d":"$0.00"},{"v":0,"d":"$0.00"},{"$f":"'MMA Rev-Exp Region 10'!AV$54","v":{"v":0,"d":"$0.00"}}]
["MMA",null,null,{"$f":"Jurat!I$1","v":0},{"$f":"Jurat!D$33","v":"00:00:00"},"PY","1917-01-01","Region 10","Operating Expense","Medical Benefits Expense","Pharmacy Services","8.3","Ending IBNP for Prescription Drugs",{"v":0,"d":"$0.00"},{"v":0,"d":"$0.00"},{"v":0,"d":"$0.00"},{"v":0,"d":"$0.00"},{"v":0,"d":"$0.00"},{"v":0,"d":"$0.00"},{"v":0,"d":"$0.00"},{"v":0,"d":"$0.00"},{"v":0,"d":"$0.00"},{"v":0,"d":"$0.00"},{"v":0,"d":"$0.00"},{"$f":"'MMA Rev-Exp Region 10'!AV$58","v":{"v":0,"d":"$0.00"}}]
["MMA",null,null,{"$f":"Jurat!I$1","v":0},{"$f":"Jurat!D$33","v":"00:00:00"},"PY","1917-01-01","Region 10","Operating Expense","Medical Benefits Expense","Pharmacy Services","8.4","Prescription Drug Rebates ",{"v":0,"d":"$0.00"},{"v":0,"d":"$0.00"},{"v":0,"d":"$0.00"},{"v":0,"d":"$0.00"},{"v":0,"d":"$0.00"},{"v":0,"d":"$0.00"},{"v":0,"d":"$0.00"},{"v":0,"d":"$0.00"},{"v":0,"d":"$0.00"},{"v":0,"d":"$0.00"},{"v":0,"d":"$0.00"},{"$f":"'MMA Rev-Exp Region 10'!AV$59","v":{"v":0,"d":"$0.00"}}]
["MMA",null,null,{"$f":"Jurat!I$1","v":0},{"$f":"Jurat!D$33","v":"00:00:00"},"PY","1917-01-01","Region 10","Operating Expense","Medical Benefits Expense","Pharmacy Services","8.7","Prescription Drug Settlements",{"v":0,"d":"$0.00"},{"v":0,"d":"$0.00"},{"v":0,"d":"$0.00"},{"v":0,"d":"$0.00"},{"v":0,"d":"$0.00"},{"v":0,"d":"$0.00"},{"v":0,"d":"$0.00"},{"v":0,"d":"$0.00"},{"v":0,"d":"$0.00"},{"v":0,"d":"$0.00"},{"v":0,"d":"$0.00"},{"$f":"'MMA Rev-Exp Region 10'!AV$62","v":{"v":0,"d":"$0.00"}}]
["MMA",null,null,{"$f":"Jurat!I$1","v":0},{"$f":"Jurat!D$33","v":"00:00:00"},"PY","1917-01-01","Region 10","Operating Expense","Medical Benefits Expense","Other MMA Services","9.3","DME FFS",{"v":0,"d":"$0.00"},{"v":0,"d":"$0.00"},{"v":0,"d":"$0.00"},{"v":0,"d":"$0.00"},{"v":0,"d":"$0.00"},{"v":0,"d":"$0.00"},{"v":0,"d":"$0.00"},{"v":0,"d":"$0.00"},{"v":0,"d":"$0.00"},{"v":0,"d":"$0.00"},{"v":0,"d":"$0.00"},{"$f":"'MMA Rev-Exp Region 10'!AV$66","v":{"v":0,"d":"$0.00"}}]
["MMA",null,null,{"$f":"Jurat!I$1","v":0},{"$f":"Jurat!D$33","v":"00:00:00"},"PY","1917-01-01","Region 10","Operating Expense","Medical Benefits Expense","Other MMA Services","9.7","Other Services Settlements",{"v":0,"d":"$0.00"},{"v":0,"d":"$0.00"},{"v":0,"d":"$0.00"},{"v":0,"d":"$0.00"},{"v":0,"d":"$0.00"},{"v":0,"d":"$0.00"},{"v":0,"d":"$0.00"},{"v":0,"d":"$0.00"},{"v":0,"d":"$0.00"},{"v":0,"d":"$0.00"},{"v":0,"d":"$0.00"},{"$f":"'MMA Rev-Exp Region 10'!AV$70","v":{"v":0,"d":"$0.00"}}]
["MMA",null,null,{"$f":"Jurat!I$1","v":0},{"$f":"Jurat!D$33","v":"00:00:00"},"PY","1917-01-01","Region 10","Operating Expense","Medical Benefits Expense","Expanded Benefits","10.3","Ending IBNP for Expanded Benefits",{"v":0,"d":"$0.00"},{"v":0,"d":"$0.00"},{"v":0,"d":"$0.00"},{"v":0,"d":"$0.00"},{"v":0,"d":"$0.00"},{"v":0,"d":"$0.00"},{"v":0,"d":"$0.00"},{"v":0,"d":"$0.00"},{"v":0,"d":"$0.00"},{"v":0,"d":"$0.00"},{"v":0,"d":"$0.00"},{"$f":"'MMA Rev-Exp Region 10'!AV$74","v":{"v":0,"d":"$0.00"}}]
["MMA",null,null,{"$f":"Jurat!I$1","v":0},{"$f":"Jurat!D$33","v":"00:00:00"},"PY","1917-01-01","Region 10","Operating Expense","Medical Benefits Expense","Other Medical","11.6.1","Premium Deficiency Reserve",{"v":0,"d":"$0.00"},{"v":0,"d":"$0.00"},{"v":0,"d":"$0.00"},{"v":0,"d":"$0.00"},{"v":0,"d":"$0.00"},{"v":0,"d":"$0.00"},{"v":0,"d":"$0.00"},{"v":0,"d":"$0.00"},{"v":0,"d":"$0.00"},{"v":0,"d":"$0.00"},{"v":0,"d":"$0.00"},{"$f":"'MMA Rev-Exp Region 10'!AV$82","v":{"v":0,"d":"$0.00"}}]
["MMA",null,null,{"$f":"Jurat!I$1","v":0},{"$f":"Jurat!D$33","v":"00:00:00"},"PY","1917-01-01","Region 10","Operating Expense","Administrative Expense","Administrative","12.1","Salaries & Benefits",{"v":0,"d":"$0.00"},{"v":0,"d":"$0.00"},{"v":0,"d":"$0.00"},{"v":0,"d":"$0.00"},{"v":0,"d":"$0.00"},{"v":0,"d":"$0.00"},{"v":0,"d":"$0.00"},{"v":0,"d":"$0.00"},{"v":0,"d":"$0.00"},{"v":0,"d":"$0.00"},{"v":0,"d":"$0.00"},{"$f":"'MMA Rev-Exp Region 10'!AV$90","v":{"v":0,"d":"$0.00"}}]
["MMA",null,null,{"$f":"Jurat!I$1","v":0},{"$f":"Jurat!D$33","v":"00:00:00"},"PY","1917-01-01","Region 10","Operating Expense","Administrative Expense","Administrative","12.4","Marketing Expenses",{"v":0,"d":"$0.00"},{"v":0,"d":"$0.00"},{"v":0,"d":"$0.00"},{"v":0,"d":"$0.00"},{"v":0,"d":"$0.00"},{"v":0,"d":"$0.00"},{"v":0,"d":"$0.00"},{"v":0,"d":"$0.00"},{"v":0,"d":"$0.00"},{"v":0,"d":"$0.00"},{"v":0,"d":"$0.00"},{"$f":"'MMA Rev-Exp Region 10'!AV$93","v":{"v":0,"d":"$0.00"}}]
["MMA",null,null,{"$f":"Jurat!I$1","v":0},{"$f":"Jurat!D$33","v":"00:00:00"},"PY","1917-01-01","Region 10","Operating Expense","Administrative Expense","Administrative","12.5","General  Administration",{"v":0,"d":"$0.00"},{"v":0,"d":"$0.00"},{"v":0,"d":"$0.00"},{"v":0,"d":"$0.00"},{"v":0,"d":"$0.00"},{"v":0,"d":"$0.00"},{"v":0,"d":"$0.00"},{"v":0,"d":"$0.00"},{"v":0,"d":"$0.00"},{"v":0,"d":"$0.00"},{"v":0,"d":"$0.00"},{"$f":"'MMA Rev-Exp Region 10'!AV$94","v":{"v":0,"d":"$0.00"}}]
["MMA",null,null,{"$f":"Jurat!I$1","v":0},{"$f":"Jurat!D$33","v":"00:00:00"},"PY","1917-01-01","Region 10","Operating Expense","Taxes & Fees","Taxes & Fees","13.2","Department of Insurance Assessments",{"v":0,"d":"$0.00"},{"v":0,"d":"$0.00"},{"v":0,"d":"$0.00"},{"v":0,"d":"$0.00"},{"v":0,"d":"$0.00"},{"v":0,"d":"$0.00"},{"v":0,"d":"$0.00"},{"v":0,"d":"$0.00"},{"v":0,"d":"$0.00"},{"v":0,"d":"$0.00"},{"v":0,"d":"$0.00"},{"$f":"'MMA Rev-Exp Region 10'!AV$98","v":{"v":0,"d":"$0.00"}}]
["MMA",null,null,{"$f":"Jurat!I$1","v":0},{"$f":"Jurat!D$33","v":"00:00:00"},"PY","1917-01-01","Region 9","Member Months","Member Months","Member Months",null,"Member Months",{"v":0,"d":"$0.00"},{"v":0,"d":"$0.00"},{"v":0,"d":"$0.00"},{"v":0,"d":"$0.00"},{"v":0,"d":"$0.00"},{"v":0,"d":"$0.00"},{"v":0,"d":"$0.00"},{"v":0,"d":"$0.00"},{"v":0,"d":"$0.00"},{"v":0,"d":"$0.00"},{"v":0,"d":"$0.00"},{"$f":"'MMA Rev-Exp Region 9'!AV$9","v":{"v":0,"d":"$0.00"}}]
["MMA",null,null,{"$f":"Jurat!I$1","v":0},{"$f":"Jurat!D$33","v":"00:00:00"},"PY","1917-01-01","Region 9","Operating Revenue","Kick Payments","Kick Payments - Maternity","1.4.1","Maternity Kick Payments",{"v":0,"d":"$0.00"},{"v":0,"d":"$0.00"},{"v":0,"d":"$0.00"},{"v":0,"d":"$0.00"},{"v":0,"d":"$0.00"},{"v":0,"d":"$0.00"},{"v":0,"d":"$0.00"},{"v":0,"d":"$0.00"},{"v":0,"d":"$0.00"},{"v":0,"d":"$0.00"},{"v":0,"d":"$0.00"},{"$f":"'MMA Rev-Exp Region 9'!AV$14","v":{"v":0,"d":"$0.00"}}]
["MMA",null,null,{"$f":"Jurat!I$1","v":0},{"$f":"Jurat!D$33","v":"00:00:00"},"PY","1917-01-01","Region 9","Operating Expense","Medical Benefits Expense","Hospital Services",2.1,"Inpatient FFS",{"v":0,"d":"$0.00"},{"v":0,"d":"$0.00"},{"v":0,"d":"$0.00"},{"v":0,"d":"$0.00"},{"v":0,"d":"$0.00"},{"v":0,"d":"$0.00"},{"v":0,"d":"$0.00"},{"v":0,"d":"$0.00"},{"v":0,"d":"$0.00"},{"v":0,"d":"$0.00"},{"v":0,"d":"$0.00"},{"$f":"'MMA Rev-Exp Region 9'!AV$20","v":{"v":0,"d":"$0.00"}}]
["MMA",null,null,{"$f":"Jurat!I$1","v":0},{"$f":"Jurat!D$33","v":"00:00:00"},"PY","1917-01-01","Region 9","Operating Expense","Medical Benefits Expense","Hospital Services",2.5,"Ending IBNP for Outpatient Hospital Services",{"v":0,"d":"$0.00"},{"v":0,"d":"$0.00"},{"v":0,"d":"$0.00"},{"v":0,"d":"$0.00"},{"v":0,"d":"$0.00"},{"v":0,"d":"$0.00"},{"v":0,"d":"$0.00"},{"v":0,"d":"$0.00"},{"v":0,"d":"$0.00"},{"v":0,"d":"$0.00"},{"v":0,"d":"$0.00"},{"$f":"'MMA Rev-Exp Region 9'!AV$24","v":{"v":0,"d":"$0.00"}}]
["MMA",null,null,{"$f":"Jurat!I$1","v":0},{"$f":"Jurat!D$33","v":"00:00:00"},"PY","1917-01-01","Region 9","Operating Expense","Medical Benefits Expense","Hospital Services","2.7.1","Transplant Services",{"v":0,"d":"$0.00"},{"v":0,"d":"$0.00"},{"v":0,"d":"$0.00"},{"v":0,"d":"$0.00"},{"v":0,"d":"$0.00"},{"v":0,"d":"$0.00"},{"v":0,"d":"$0.00"},{"v":0,"d":"$0.00"},{"v":0,"d":"$0.00"},{"v":0,"d":"$0.00"},{"v":0,"d":"$0.00"},{"$f":"'MMA Rev-Exp Region 9'!AV$27","v":{"v":0,"d":"$0.00"}}]
["MMA",null,null,{"$f":"Jurat!I$1","v":0},{"$f":"Jurat!D$33","v":"00:00:00"},"PY","1917-01-01","Region 9","Operating Expense","Medical Benefits Expense","Professional Services",3.1,"Primary Care FFS",{"v":0,"d":"$0.00"},{"v":0,"d":"$0.00"},{"v":0,"d":"$0.00"},{"v":0,"d":"$0.00"},{"v":0,"d":"$0.00"},{"v":0,"d":"$0.00"},{"v":0,"d":"$0.00"},{"v":0,"d":"$0.00"},{"v":0,"d":"$0.00"},{"v":0,"d":"$0.00"},{"v":0,"d":"$0.00"},{"$f":"'MMA Rev-Exp Region 9'!AV$29","v":{"v":0,"d":"$0.00"}}]
["MMA",null,null,{"$f":"Jurat!I$1","v":0},{"$f":"Jurat!D$33","v":"00:00:00"},"PY","1917-01-01","Region 9","Operating Expense","Medical Benefits Expense","Professional Services",3.3,"Other Professional FFS",{"v":0,"d":"$0.00"},{"v":0,"d":"$0.00"},{"v":0,"d":"$0.00"},{"v":0,"d":"$0.00"},{"v":0,"d":"$0.00"},{"v":0,"d":"$0.00"},{"v":0,"d":"$0.00"},{"v":0,"d":"$0.00"},{"v":0,"d":"$0.00"},{"v":0,"d":"$0.00"},{"v":0,"d":"$0.00"},{"$f":"'MMA Rev-Exp Region 9'!AV$31","v":{"v":0,"d":"$0.00"}}]
["MMA",null,null,{"$f":"Jurat!I$1","v":0},{"$f":"Jurat!D$33","v":"00:00:00"},"PY","1917-01-01","Region 9","Operating Expense","Medical Benefits Expense","Professional Services","3.6","Ending IBNP for Professional Services",{"v":0,"d":"$0.00"},{"v":0,"d":"$0.00"},{"v":0,"d":"$0.00"},{"v":0,"d":"$0.00"},{"v":0,"d":"$0.00"},{"v":0,"d":"$0.00"},{"v":0,"d":"$0.00"},{"v":0,"d":"$0.00"},{"v":0,"d":"$0.00"},{"v":0,"d":"$0.00"},{"v":0,"d":"$0.00"},{"$f":"'MMA Rev-Exp Region 9'!AV$34","v":{"v":0,"d":"$0.00"}}]
["MMA",null,null,{"$f":"Jurat!I$1","v":0},{"$f":"Jurat!D$33","v":"00:00:00"},"PY","1917-01-01","Region 9","Operating Expense","Medical Benefits Expense","Maternity Services","4.2.1","Ending IBNP for Maternity Services",{"v":0,"d":"$0.00"},{"v":0,"d":"$0.00"},{"v":0,"d":"$0.00"},{"v":0,"d":"$0.00"},{"v":0,"d":"$0.00"},{"v":0,"d":"$0.00"},{"v":0,"d":"$0.00"},{"v":0,"d":"$0.00"},{"v":0,"d":"$0.00"},{"v":0,"d":"$0.00"},{"v":0,"d":"$0.00"},{"$f":"'MMA Rev-Exp Region 9'!AV$38","v":{"v":0,"d":"$0.00"}}]
["MMA",null,null,{"$f":"Jurat!I$1","v":0},{"$f":"Jurat!D$33","v":"00:00:00"},"PY","1917-01-01","Region 9","Operating Expense","Medical Benefits Expense","Mental Health Services",5.3,"Ending IBNP for Mental Health & Substance Abuse",{"v":0,"d":"$0.00"},{"v":0,"d":"$0.00"},{"v":0,"d":"$0.00"},{"v":0,"d":"$0.00"},{"v":0,"d":"$0.00"},{"v":0,"d":"$0.00"},{"v":0,"d":"$0.00"},{"v":0,"d":"$0.00"},{"v":0,"d":"$0.00"},{"v":0,"d":"$0.00"},{"v":0,"d":"$0.00"},{"$f":"'MMA Rev-Exp Region 9'!AV$43","v":{"v":0,"d":"$0.00"}}]
["MMA",null,null,{"$f":"Jurat!I$1","v":0},{"$f":"Jurat!D$33","v":"00:00:00"},"PY","1917-01-01","Region 9","Operating Expense","Medical Benefits Expense","Dental Services",6.2,"Dental Subcapitation",{"v":0,"d":"$0.00"},{"v":0,"d":"$0.00"},{"v":0,"d":"$0.00"},{"v":0,"d":"$0.00"},{"v":0,"d":"$0.00"},{"v":0,"d":"$0.00"},{"v":0,"d":"$0.00"},{"v":0,"d":"$0.00"},{"v":0,"d":"$0.00"},{"v":0,"d":"$0.00"},{"v":0,"d":"$0.00"},{"$f":"'MMA Rev-Exp Region 9'!AV$47","v":{"v":0,"d":"$0.00"}}]
["MMA",null,null,{"$f":"Jurat!I$1","v":0},{"$f":"Jurat!D$33","v":"00:00:00"},"PY","1917-01-01","Region 9","Operating Expense","Medical Benefits Expense","Transportation Services",7.2,"Transportation Subcapitation",{"v":0,"d":"$0.00"},{"v":0,"d":"$0.00"},{"v":0,"d":"$0.00"},{"v":0,"d":"$0.00"},{"v":0,"d":"$0.00"},{"v":0,"d":"$0.00"},{"v":0,"d":"$0.00"},{"v":0,"d":"$0.00"},{"v":0,"d":"$0.00"},{"v":0,"d":"$0.00"},{"v":0,"d":"$0.00"},{"$f":"'MMA Rev-Exp Region 9'!AV$52","v":{"v":0,"d":"$0.00"}}]
["MMA",null,null,{"$f":"Jurat!I$1","v":0},{"$f":"Jurat!D$33","v":"00:00:00"},"PY","1917-01-01","Region 9","Operating Expense","Medical Benefits Expense","Pharmacy Services",8.1,"Prescription Drugs FFS",{"v":0,"d":"$0.00"},{"v":0,"d":"$0.00"},{"v":0,"d":"$0.00"},{"v":0,"d":"$0.00"},{"v":0,"d":"$0.00"},{"v":0,"d":"$0.00"},{"v":0,"d":"$0.00"},{"v":0,"d":"$0.00"},{"v":0,"d":"$0.00"},{"v":0,"d":"$0.00"},{"v":0,"d":"$0.00"},{"$f":"'MMA Rev-Exp Region 9'!AV$56","v":{"v":0,"d":"$0.00"}}]
["MMA",null,null,{"$f":"Jurat!I$1","v":0},{"$f":"Jurat!D$33","v":"00:00:00"},"PY","1917-01-01","Region 9","Operating Expense","Medical Benefits Expense","Pharmacy Services","8.4","Prescription Drug Rebates ",{"v":0,"d":"$0.00"},{"v":0,"d":"$0.00"},{"v":0,"d":"$0.00"},{"v":0,"d":"$0.00"},{"v":0,"d":"$0.00"},{"v":0,"d":"$0.00"},{"v":0,"d":"$0.00"},{"v":0,"d":"$0.00"},{"v":0,"d":"$0.00"},{"v":0,"d":"$0.00"},{"v":0,"d":"$0.00"},{"$f":"'MMA Rev-Exp Region 9'!AV$59","v":{"v":0,"d":"$0.00"}}]
["MMA",null,null,{"$f":"Jurat!I$1","v":0},{"$f":"Jurat!D$33","v":"00:00:00"},"PY","1917-01-01","Region 9","Operating Expense","Medical Benefits Expense","Pharmacy Services","8.6","Prescription Drugs Subcapitation",{"v":0,"d":"$0.00"},{"v":0,"d":"$0.00"},{"v":0,"d":"$0.00"},{"v":0,"d":"$0.00"},{"v":0,"d":"$0.00"},{"v":0,"d":"$0.00"},{"v":0,"d":"$0.00"},{"v":0,"d":"$0.00"},{"v":0,"d":"$0.00"},{"v":0,"d":"$0.00"},{"v":0,"d":"$0.00"},{"$f":"'MMA Rev-Exp Region 9'!AV$61","v":{"v":0,"d":"$0.00"}}]
["MMA",null,null,{"$f":"Jurat!I$1","v":0},{"$f":"Jurat!D$33","v":"00:00:00"},"PY","1917-01-01","Region 9","Operating Expense","Medical Benefits Expense","Pharmacy Services","8.7","Prescription Drug Settlements",{"v":0,"d":"$0.00"},{"v":0,"d":"$0.00"},{"v":0,"d":"$0.00"},{"v":0,"d":"$0.00"},{"v":0,"d":"$0.00"},{"v":0,"d":"$0.00"},{"v":0,"d":"$0.00"},{"v":0,"d":"$0.00"},{"v":0,"d":"$0.00"},{"v":0,"d":"$0.00"},{"v":0,"d":"$0.00"},{"$f":"'MMA Rev-Exp Region 9'!AV$62","v":{"v":0,"d":"$0.00"}}]
["MMA",null,null,{"$f":"Jurat!I$1","v":0},{"$f":"Jurat!D$33","v":"00:00:00"},"PY","1917-01-01","Region 9","Operating Expense","Medical Benefits Expense","Other MMA Services","9.4","Other State Plan Services FFS",{"v":0,"d":"$0.00"},{"v":0,"d":"$0.00"},{"v":0,"d":"$0.00"},{"v":0,"d":"$0.00"},{"v":0,"d":"$0.00"},{"v":0,"d":"$0.00"},{"v":0,"d":"$0.00"},{"v":0,"d":"$0.00"},{"v":0,"d":"$0.00"},{"v":0,"d":"$0.00"},{"v":0,"d":"$0.00"},{"$f":"'MMA Rev-Exp Region 9'!AV$67","v":{"v":0,"d":"$0.00"}}]
["MMA",null,null,{"$f":"Jurat!I$1","v":0},{"$f":"Jurat!D$33","v":"00:00:00"},"PY","1917-01-01","Region 9","Operating Expense","Medical Benefits Expense","Other MMA Services","9.7","Other Services Settlements",{"v":0,"d":"$0.00"},{"v":0,"d":"$0.00"},{"v":0,"d":"$0.00"},{"v":0,"d":"$0.00"},{"v":0,"d":"$0.00"},{"v":0,"d":"$0.00"},{"v":0,"d":"$0.00"},{"v":0,"d":"$0.00"},{"v":0,"d":"$0.00"},{"v":0,"d":"$0.00"},{"v":0,"d":"$0.00"},{"$f":"'MMA Rev-Exp Region 9'!AV$70","v":{"v":0,"d":"$0.00"}}]
["MMA",null,null,{"$f":"Jurat!I$1","v":0},{"$f":"Jurat!D$33","v":"00:00:00"},"PY","1917-01-01","Region 9","Operating Expense","Medical Benefits Expense","Expanded Benefits","10.3","Ending IBNP for Expanded Benefits",{"v":0,"d":"$0.00"},{"v":0,"d":"$0.00"},{"v":0,"d":"$0.00"},{"v":0,"d":"$0.00"},{"v":0,"d":"$0.00"},{"v":0,"d":"$0.00"},{"v":0,"d":"$0.00"},{"v":0,"d":"$0.00"},{"v":0,"d":"$0.00"},{"v":0,"d":"$0.00"},{"v":0,"d":"$0.00"},{"$f":"'MMA Rev-Exp Region 9'!AV$74","v":{"v":0,"d":"$0.00"}}]
["MMA",null,null,{"$f":"Jurat!I$1","v":0},{"$f":"Jurat!D$33","v":"00:00:00"},"PY","1917-01-01","Region 9","Operating Expense","Medical Benefits Expense","Other Medical","11.8","Reinsurance Premiums",{"v":0,"d":"$0.00"},{"v":0,"d":"$0.00"},{"v":0,"d":"$0.00"},{"v":0,"d":"$0.00"},{"v":0,"d":"$0.00"},{"v":0,"d":"$0.00"},{"v":0,"d":"$0.00"},{"v":0,"d":"$0.00"},{"v":0,"d":"$0.00"},{"v":0,"d":"$0.00"},{"v":0,"d":"$0.00"},{"$f":"'MMA Rev-Exp Region 9'!AV$84","v":{"v":0,"d":"$0.00"}}]
["MMA",null,null,{"$f":"Jurat!I$1","v":0},{"$f":"Jurat!D$33","v":"00:00:00"},"PY","1917-01-01","Region 9","Operating Expense","Administrative Expense","Administrative","12.2","Administrative Services",{"v":0,"d":"$0.00"},{"v":0,"d":"$0.00"},{"v":0,"d":"$0.00"},{"v":0,"d":"$0.00"},{"v":0,"d":"$0.00"},{"v":0,"d":"$0.00"},{"v":0,"d":"$0.00"},{"v":0,"d":"$0.00"},{"v":0,"d":"$0.00"},{"v":0,"d":"$0.00"},{"v":0,"d":"$0.00"},{"$f":"'MMA Rev-Exp Region 9'!AV$91","v":{"v":0,"d":"$0.00"}}]
["MMA",null,null,{"$f":"Jurat!I$1","v":0},{"$f":"Jurat!D$33","v":"00:00:00"},"PY","1917-01-01","Region 9","Operating Expense","Administrative Expense","Administrative","12.5","General  Administration",{"v":0,"d":"$0.00"},{"v":0,"d":"$0.00"},{"v":0,"d":"$0.00"},{"v":0,"d":"$0.00"},{"v":0,"d":"$0.00"},{"v":0,"d":"$0.00"},{"v":0,"d":"$0.00"},{"v":0,"d":"$0.00"},{"v":0,"d":"$0.00"},{"v":0,"d":"$0.00"},{"v":0,"d":"$0.00"},{"$f":"'MMA Rev-Exp Region 9'!AV$94","v":{"v":0,"d":"$0.00"}}]
["MMA",null,null,{"$f":"Jurat!I$1","v":0},{"$f":"Jurat!D$33","v":"00:00:00"},"PY","1917-01-01","Region 9","Operating Expense","Administrative Expense","Administrative","12.6","Compliance/Regulatory",{"v":0,"d":"$0.00"},{"v":0,"d":"$0.00"},{"v":0,"d":"$0.00"},{"v":0,"d":"$0.00"},{"v":0,"d":"$0.00"},{"v":0,"d":"$0.00"},{"v":0,"d":"$0.00"},{"v":0,"d":"$0.00"},{"v":0,"d":"$0.00"},{"v":0,"d":"$0.00"},{"v":0,"d":"$0.00"},{"$f":"'MMA Rev-Exp Region 9'!AV$95","v":{"v":0,"d":"$0.00"}}]
["MMA",null,null,{"$f":"Jurat!I$1","v":0},{"$f":"Jurat!D$33","v":"00:00:00"},"PY","1917-01-01","Region 9","Operating Expense","Taxes & Fees","Taxes & Fees","13.3","Section 9010 Health Insurance Providers Fee",{"v":0,"d":"$0.00"},{"v":0,"d":"$0.00"},{"v":0,"d":"$0.00"},{"v":0,"d":"$0.00"},{"v":0,"d":"$0.00"},{"v":0,"d":"$0.00"},{"v":0,"d":"$0.00"},{"v":0,"d":"$0.00"},{"v":0,"d":"$0.00"},{"v":0,"d":"$0.00"},{"v":0,"d":"$0.00"},{"$f":"'MMA Rev-Exp Region 9'!AV$99","v":{"v":0,"d":"$0.00"}}]
["MMA",null,null,{"$f":"Jurat!I$1","v":0},{"$f":"Jurat!D$33","v":"00:00:00"},"PY","1917-01-01","Region 8","Operating Revenue","Capitation","Capitation",1.1,"Capitation",{"v":0,"d":"$0.00"},{"v":0,"d":"$0.00"},{"v":0,"d":"$0.00"},{"v":0,"d":"$0.00"},{"v":0,"d":"$0.00"},{"v":0,"d":"$0.00"},{"v":0,"d":"$0.00"},{"v":0,"d":"$0.00"},{"v":0,"d":"$0.00"},{"v":0,"d":"$0.00"},{"v":0,"d":"$0.00"},{"$f":"'MMA Rev-Exp Region 8'!AV$11","v":{"v":0,"d":"$0.00"}}]
["MMA",null,null,{"$f":"Jurat!I$1","v":0},{"$f":"Jurat!D$33","v":"00:00:00"},"PY","1917-01-01","Region 8","Operating Revenue","Kick Payments","Kick Payments - Maternity","1.4.1","Maternity Kick Payments",{"v":0,"d":"$0.00"},{"v":0,"d":"$0.00"},{"v":0,"d":"$0.00"},{"v":0,"d":"$0.00"},{"v":0,"d":"$0.00"},{"v":0,"d":"$0.00"},{"v":0,"d":"$0.00"},{"v":0,"d":"$0.00"},{"v":0,"d":"$0.00"},{"v":0,"d":"$0.00"},{"v":0,"d":"$0.00"},{"$f":"'MMA Rev-Exp Region 8'!AV$14","v":{"v":0,"d":"$0.00"}}]
["MMA",null,null,{"$f":"Jurat!I$1","v":0},{"$f":"Jurat!D$33","v":"00:00:00"},"PY","1917-01-01","Region 8","Operating Expense","Medical Benefits Expense","Hospital Services",2.1,"Inpatient FFS",{"v":0,"d":"$0.00"},{"v":0,"d":"$0.00"},{"v":0,"d":"$0.00"},{"v":0,"d":"$0.00"},{"v":0,"d":"$0.00"},{"v":0,"d":"$0.00"},{"v":0,"d":"$0.00"},{"v":0,"d":"$0.00"},{"v":0,"d":"$0.00"},{"v":0,"d":"$0.00"},{"v":0,"d":"$0.00"},{"$f":"'MMA Rev-Exp Region 8'!AV$20","v":{"v":0,"d":"$0.00"}}]
["MMA",null,null,{"$f":"Jurat!I$1","v":0},{"$f":"Jurat!D$33","v":"00:00:00"},"PY","1917-01-01","Region 8","Operating Expense","Medical Benefits Expense","Hospital Services",2.5,"Ending IBNP for Outpatient Hospital Services",{"v":0,"d":"$0.00"},{"v":0,"d":"$0.00"},{"v":0,"d":"$0.00"},{"v":0,"d":"$0.00"},{"v":0,"d":"$0.00"},{"v":0,"d":"$0.00"},{"v":0,"d":"$0.00"},{"v":0,"d":"$0.00"},{"v":0,"d":"$0.00"},{"v":0,"d":"$0.00"},{"v":0,"d":"$0.00"},{"$f":"'MMA Rev-Exp Region 8'!AV$24","v":{"v":0,"d":"$0.00"}}]
["MMA",null,null,{"$f":"Jurat!I$1","v":0},{"$f":"Jurat!D$33","v":"00:00:00"},"PY","1917-01-01","Region 8","Operating Expense","Medical Benefits Expense","Hospital Services","2.7.1","Transplant Services",{"v":0,"d":"$0.00"},{"v":0,"d":"$0.00"},{"v":0,"d":"$0.00"},{"v":0,"d":"$0.00"},{"v":0,"d":"$0.00"},{"v":0,"d":"$0.00"},{"v":0,"d":"$0.00"},{"v":0,"d":"$0.00"},{"v":0,"d":"$0.00"},{"v":0,"d":"$0.00"},{"v":0,"d":"$0.00"},{"$f":"'MMA Rev-Exp Region 8'!AV$27","v":{"v":0,"d":"$0.00"}}]
["MMA",null,null,{"$f":"Jurat!I$1","v":0},{"$f":"Jurat!D$33","v":"00:00:00"},"PY","1917-01-01","Region 8","Operating Expense","Medical Benefits Expense","Professional Services",3.3,"Other Professional FFS",{"v":0,"d":"$0.00"},{"v":0,"d":"$0.00"},{"v":0,"d":"$0.00"},{"v":0,"d":"$0.00"},{"v":0,"d":"$0.00"},{"v":0,"d":"$0.00"},{"v":0,"d":"$0.00"},{"v":0,"d":"$0.00"},{"v":0,"d":"$0.00"},{"v":0,"d":"$0.00"},{"v":0,"d":"$0.00"},{"$f":"'MMA Rev-Exp Region 8'!AV$31","v":{"v":0,"d":"$0.00"}}]
["MMA",null,null,{"$f":"Jurat!I$1","v":0},{"$f":"Jurat!D$33","v":"00:00:00"},"PY","1917-01-01","Region 8","Operating Expense","Medical Benefits Expense","Professional Services","3.4","§ 1202 PCP Payments to providers",{"v":0,"d":"$0.00"},{"v":0,"d":"$0.00"},{"v":0,"d":"$0.00"},{"v":0,"d":"$0.00"},{"v":0,"d":"$0.00"},{"v":0,"d":"$0.00"},{"v":0,"d":"$0.00"},{"v":0,"d":"$0.00"},{"v":0,"d":"$0.00"},{"v":0,"d":"$0.00"},{"v":0,"d":"$0.00"},{"$f":"'MMA Rev-Exp Region 8'!AV$32","v":{"v":0,"d":"$0.00"}}]
["MMA",null,null,{"$f":"Jurat!I$1","v":0},{"$f":"Jurat!D$33","v":"00:00:00"},"PY","1917-01-01","Region 8","Operating Expense","Medical Benefits Expense","Professional Services","3.7","Professional Services Settlements",{"v":0,"d":"$0.00"},{"v":0,"d":"$0.00"},{"v":0,"d":"$0.00"},{"v":0,"d":"$0.00"},{"v":0,"d":"$0.00"},{"v":0,"d":"$0.00"},{"v":0,"d":"$0.00"},{"v":0,"d":"$0.00"},{"v":0,"d":"$0.00"},{"v":0,"d":"$0.00"},{"v":0,"d":"$0.00"},{"$f":"'MMA Rev-Exp Region 8'!AV$35","v":{"v":0,"d":"$0.00"}}]
["MMA",null,null,{"$f":"Jurat!I$1","v":0},{"$f":"Jurat!D$33","v":"00:00:00"},"PY","1917-01-01","Region 8","Operating Expense","Medical Benefits Expense","Mental Health Services",5.1,"Mental Health & Substance Abuse FFS",{"v":0,"d":"$0.00"},{"v":0,"d":"$0.00"},{"v":0,"d":"$0.00"},{"v":0,"d":"$0.00"},{"v":0,"d":"$0.00"},{"v":0,"d":"$0.00"},{"v":0,"d":"$0.00"},{"v":0,"d":"$0.00"},{"v":0,"d":"$0.00"},{"v":0,"d":"$0.00"},{"v":0,"d":"$0.00"},{"$f":"'MMA Rev-Exp Region 8'!AV$41","v":{"v":0,"d":"$0.00"}}]
["MMA",null,null,{"$f":"Jurat!I$1","v":0},{"$f":"Jurat!D$33","v":"00:00:00"},"PY","1917-01-01","Region 8","Operating Expense","Medical Benefits Expense","Mental Health Services",5.3,"Ending IBNP for Mental Health & Substance Abuse",{"v":0,"d":"$0.00"},{"v":0,"d":"$0.00"},{"v":0,"d":"$0.00"},{"v":0,"d":"$0.00"},{"v":0,"d":"$0.00"},{"v":0,"d":"$0.00"},{"v":0,"d":"$0.00"},{"v":0,"d":"$0.00"},{"v":0,"d":"$0.00"},{"v":0,"d":"$0.00"},{"v":0,"d":"$0.00"},{"$f":"'MMA Rev-Exp Region 8'!AV$43","v":{"v":0,"d":"$0.00"}}]
["MMA",null,null,{"$f":"Jurat!I$1","v":0},{"$f":"Jurat!D$33","v":"00:00:00"},"PY","1917-01-01","Region 8","Operating Expense","Medical Benefits Expense","Dental Services",6.2,"Dental Subcapitation",{"v":0,"d":"$0.00"},{"v":0,"d":"$0.00"},{"v":0,"d":"$0.00"},{"v":0,"d":"$0.00"},{"v":0,"d":"$0.00"},{"v":0,"d":"$0.00"},{"v":0,"d":"$0.00"},{"v":0,"d":"$0.00"},{"v":0,"d":"$0.00"},{"v":0,"d":"$0.00"},{"v":0,"d":"$0.00"},{"$f":"'MMA Rev-Exp Region 8'!AV$47","v":{"v":0,"d":"$0.00"}}]
["MMA",null,null,{"$f":"Jurat!I$1","v":0},{"$f":"Jurat!D$33","v":"00:00:00"},"PY","1917-01-01","Region 8","Operating Expense","Medical Benefits Expense","Transportation Services",7.2,"Transportation Subcapitation",{"v":0,"d":"$0.00"},{"v":0,"d":"$0.00"},{"v":0,"d":"$0.00"},{"v":0,"d":"$0.00"},{"v":0,"d":"$0.00"},{"v":0,"d":"$0.00"},{"v":0,"d":"$0.00"},{"v":0,"d":"$0.00"},{"v":0,"d":"$0.00"},{"v":0,"d":"$0.00"},{"v":0,"d":"$0.00"},{"$f":"'MMA Rev-Exp Region 8'!AV$52","v":{"v":0,"d":"$0.00"}}]
["MMA",null,null,{"$f":"Jurat!I$1","v":0},{"$f":"Jurat!D$33","v":"00:00:00"},"PY","1917-01-01","Region 8","Operating Expense","Medical Benefits Expense","Pharmacy Services",8.1,"Prescription Drugs FFS",{"v":0,"d":"$0.00"},{"v":0,"d":"$0.00"},{"v":0,"d":"$0.00"},{"v":0,"d":"$0.00"},{"v":0,"d":"$0.00"},{"v":0,"d":"$0.00"},{"v":0,"d":"$0.00"},{"v":0,"d":"$0.00"},{"v":0,"d":"$0.00"},{"v":0,"d":"$0.00"},{"v":0,"d":"$0.00"},{"$f":"'MMA Rev-Exp Region 8'!AV$56","v":{"v":0,"d":"$0.00"}}]
["MMA",null,null,{"$f":"Jurat!I$1","v":0},{"$f":"Jurat!D$33","v":"00:00:00"},"PY","1917-01-01","Region 8","Operating Expense","Medical Benefits Expense","Pharmacy Services","8.2","Hepatitis C Prescription Drug FFS",{"v":0,"d":"$0.00"},{"v":0,"d":"$0.00"},{"v":0,"d":"$0.00"},{"v":0,"d":"$0.00"},{"v":0,"d":"$0.00"},{"v":0,"d":"$0.00"},{"v":0,"d":"$0.00"},{"v":0,"d":"$0.00"},{"v":0,"d":"$0.00"},{"v":0,"d":"$0.00"},{"v":0,"d":"$0.00"},{"$f":"'MMA Rev-Exp Region 8'!AV$57","v":{"v":0,"d":"$0.00"}}]
["MMA",null,null,{"$f":"Jurat!I$1","v":0},{"$f":"Jurat!D$33","v":"00:00:00"},"PY","1917-01-01","Region 8","Operating Expense","Medical Benefits Expense","Pharmacy Services","8.5","Ending accrual for Rebates receivable",{"v":0,"d":"$0.00"},{"v":0,"d":"$0.00"},{"v":0,"d":"$0.00"},{"v":0,"d":"$0.00"},{"v":0,"d":"$0.00"},{"v":0,"d":"$0.00"},{"v":0,"d":"$0.00"},{"v":0,"d":"$0.00"},{"v":0,"d":"$0.00"},{"v":0,"d":"$0.00"},{"v":0,"d":"$0.00"},{"$f":"'MMA Rev-Exp Region 8'!AV$60","v":{"v":0,"d":"$0.00"}}]
["MMA",null,null,{"$f":"Jurat!I$1","v":0},{"$f":"Jurat!D$33","v":"00:00:00"},"PY","1917-01-01","Region 8","Operating Expense","Medical Benefits Expense","Other MMA Services",9.1,"Home Health, Private Duty Nursing, Personal Care FFS",{"v":0,"d":"$0.00"},{"v":0,"d":"$0.00"},{"v":0,"d":"$0.00"},{"v":0,"d":"$0.00"},{"v":0,"d":"$0.00"},{"v":0,"d":"$0.00"},{"v":0,"d":"$0.00"},{"v":0,"d":"$0.00"},{"v":0,"d":"$0.00"},{"v":0,"d":"$0.00"},{"v":0,"d":"$0.00"},{"$f":"'MMA Rev-Exp Region 8'!AV$64","v":{"v":0,"d":"$0.00"}}]
["MMA",null,null,{"$f":"Jurat!I$1","v":0},{"$f":"Jurat!D$33","v":"00:00:00"},"PY","1917-01-01","Region 8","Operating Expense","Medical Benefits Expense","Other MMA Services","9.5","Other Services Subcapitation",{"v":0,"d":"$0.00"},{"v":0,"d":"$0.00"},{"v":0,"d":"$0.00"},{"v":0,"d":"$0.00"},{"v":0,"d":"$0.00"},{"v":0,"d":"$0.00"},{"v":0,"d":"$0.00"},{"v":0,"d":"$0.00"},{"v":0,"d":"$0.00"},{"v":0,"d":"$0.00"},{"v":0,"d":"$0.00"},{"$f":"'MMA Rev-Exp Region 8'!AV$68","v":{"v":0,"d":"$0.00"}}]
["MMA",null,null,{"$f":"Jurat!I$1","v":0},{"$f":"Jurat!D$33","v":"00:00:00"},"PY","1917-01-01","Region 8","Operating Expense","Medical Benefits Expense","Other MMA Services","9.7","Other Services Settlements",{"v":0,"d":"$0.00"},{"v":0,"d":"$0.00"},{"v":0,"d":"$0.00"},{"v":0,"d":"$0.00"},{"v":0,"d":"$0.00"},{"v":0,"d":"$0.00"},{"v":0,"d":"$0.00"},{"v":0,"d":"$0.00"},{"v":0,"d":"$0.00"},{"v":0,"d":"$0.00"},{"v":0,"d":"$0.00"},{"$f":"'MMA Rev-Exp Region 8'!AV$70","v":{"v":0,"d":"$0.00"}}]
["MMA",null,null,{"$f":"Jurat!I$1","v":0},{"$f":"Jurat!D$33","v":"00:00:00"},"PY","1917-01-01","Region 8","Operating Expense","Medical Benefits Expense","Expanded Benefits","10.3","Ending IBNP for Expanded Benefits",{"v":0,"d":"$0.00"},{"v":0,"d":"$0.00"},{"v":0,"d":"$0.00"},{"v":0,"d":"$0.00"},{"v":0,"d":"$0.00"},{"v":0,"d":"$0.00"},{"v":0,"d":"$0.00"},{"v":0,"d":"$0.00"},{"v":0,"d":"$0.00"},{"v":0,"d":"$0.00"},{"v":0,"d":"$0.00"},{"$f":"'MMA Rev-Exp Region 8'!AV$74","v":{"v":0,"d":"$0.00"}}]
["MMA",null,null,{"$f":"Jurat!I$1","v":0},{"$f":"Jurat!D$33","v":"00:00:00"},"PY","1917-01-01","Region 8","Operating Expense","Medical Benefits Expense","Other Medical","11.8","Reinsurance Premiums",{"v":0,"d":"$0.00"},{"v":0,"d":"$0.00"},{"v":0,"d":"$0.00"},{"v":0,"d":"$0.00"},{"v":0,"d":"$0.00"},{"v":0,"d":"$0.00"},{"v":0,"d":"$0.00"},{"v":0,"d":"$0.00"},{"v":0,"d":"$0.00"},{"v":0,"d":"$0.00"},{"v":0,"d":"$0.00"},{"$f":"'MMA Rev-Exp Region 8'!AV$84","v":{"v":0,"d":"$0.00"}}]
["MMA",null,null,{"$f":"Jurat!I$1","v":0},{"$f":"Jurat!D$33","v":"00:00:00"},"PY","1917-01-01","Region 8","Operating Expense","Administrative Expense","Administrative","12.2","Administrative Services",{"v":0,"d":"$0.00"},{"v":0,"d":"$0.00"},{"v":0,"d":"$0.00"},{"v":0,"d":"$0.00"},{"v":0,"d":"$0.00"},{"v":0,"d":"$0.00"},{"v":0,"d":"$0.00"},{"v":0,"d":"$0.00"},{"v":0,"d":"$0.00"},{"v":0,"d":"$0.00"},{"v":0,"d":"$0.00"},{"$f":"'MMA Rev-Exp Region 8'!AV$91","v":{"v":0,"d":"$0.00"}}]
["MMA",null,null,{"$f":"Jurat!I$1","v":0},{"$f":"Jurat!D$33","v":"00:00:00"},"PY","1917-01-01","Region 8","Operating Expense","Administrative Expense","Administrative","12.3","Information Systems",{"v":0,"d":"$0.00"},{"v":0,"d":"$0.00"},{"v":0,"d":"$0.00"},{"v":0,"d":"$0.00"},{"v":0,"d":"$0.00"},{"v":0,"d":"$0.00"},{"v":0,"d":"$0.00"},{"v":0,"d":"$0.00"},{"v":0,"d":"$0.00"},{"v":0,"d":"$0.00"},{"v":0,"d":"$0.00"},{"$f":"'MMA Rev-Exp Region 8'!AV$92","v":{"v":0,"d":"$0.00"}}]
["MMA",null,null,{"$f":"Jurat!I$1","v":0},{"$f":"Jurat!D$33","v":"00:00:00"},"PY","1917-01-01","Region 8","Operating Expense","Administrative Expense","Administrative","12.6","Compliance/Regulatory",{"v":0,"d":"$0.00"},{"v":0,"d":"$0.00"},{"v":0,"d":"$0.00"},{"v":0,"d":"$0.00"},{"v":0,"d":"$0.00"},{"v":0,"d":"$0.00"},{"v":0,"d":"$0.00"},{"v":0,"d":"$0.00"},{"v":0,"d":"$0.00"},{"v":0,"d":"$0.00"},{"v":0,"d":"$0.00"},{"$f":"'MMA Rev-Exp Region 8'!AV$95","v":{"v":0,"d":"$0.00"}}]
["MMA",null,null,{"$f":"Jurat!I$1","v":0},{"$f":"Jurat!D$33","v":"00:00:00"},"PY","1917-01-01","Region 8","Operating Expense","Taxes & Fees","Taxes & Fees","13.3","Section 9010 Health Insurance Providers Fee",{"v":0,"d":"$0.00"},{"v":0,"d":"$0.00"},{"v":0,"d":"$0.00"},{"v":0,"d":"$0.00"},{"v":0,"d":"$0.00"},{"v":0,"d":"$0.00"},{"v":0,"d":"$0.00"},{"v":0,"d":"$0.00"},{"v":0,"d":"$0.00"},{"v":0,"d":"$0.00"},{"v":0,"d":"$0.00"},{"$f":"'MMA Rev-Exp Region 8'!AV$99","v":{"v":0,"d":"$0.00"}}]
["MMA",null,null,{"$f":"Jurat!I$1","v":0},{"$f":"Jurat!D$33","v":"00:00:00"},"PY","1917-01-01","Region 7","Operating Revenue","Kick Payments","Kick Payments - Transplant",1.2,"Transplant Kick Payments",{"v":0,"d":"$0.00"},{"v":0,"d":"$0.00"},{"v":0,"d":"$0.00"},{"v":0,"d":"$0.00"},{"v":0,"d":"$0.00"},{"v":0,"d":"$0.00"},{"v":0,"d":"$0.00"},{"v":0,"d":"$0.00"},{"v":0,"d":"$0.00"},{"v":0,"d":"$0.00"},{"v":0,"d":"$0.00"},{"$f":"'MMA Rev-Exp Region 7'!AV$12","v":{"v":0,"d":"$0.00"}}]
["MMA",null,null,{"$f":"Jurat!I$1","v":0},{"$f":"Jurat!D$33","v":"00:00:00"},"PY","1917-01-01","Region 7","Operating Revenue","Other Revenue","Other Revenue - 9010","1.5","ACA § 9010 related payments",{"v":0,"d":"$0.00"},{"v":0,"d":"$0.00"},{"v":0,"d":"$0.00"},{"v":0,"d":"$0.00"},{"v":0,"d":"$0.00"},{"v":0,"d":"$0.00"},{"v":0,"d":"$0.00"},{"v":0,"d":"$0.00"},{"v":0,"d":"$0.00"},{"v":0,"d":"$0.00"},{"v":0,"d":"$0.00"},{"$f":"'MMA Rev-Exp Region 7'!AV$15","v":{"v":0,"d":"$0.00"}}]
["MMA",null,null,{"$f":"Jurat!I$1","v":0},{"$f":"Jurat!D$33","v":"00:00:00"},"PY","1917-01-01","Region 7","Operating Expense","Medical Benefits Expense","Hospital Services",2.3,"Outpatient FFS: ER",{"v":0,"d":"$0.00"},{"v":0,"d":"$0.00"},{"v":0,"d":"$0.00"},{"v":0,"d":"$0.00"},{"v":0,"d":"$0.00"},{"v":0,"d":"$0.00"},{"v":0,"d":"$0.00"},{"v":0,"d":"$0.00"},{"v":0,"d":"$0.00"},{"v":0,"d":"$0.00"},{"v":0,"d":"$0.00"},{"$f":"'MMA Rev-Exp Region 7'!AV$22","v":{"v":0,"d":"$0.00"}}]
["MMA",null,null,{"$f":"Jurat!I$1","v":0},{"$f":"Jurat!D$33","v":"00:00:00"},"PY","1917-01-01","Region 7","Operating Expense","Medical Benefits Expense","Hospital Services",2.4,"Outpatient FFS: Other than ER ",{"v":0,"d":"$0.00"},{"v":0,"d":"$0.00"},{"v":0,"d":"$0.00"},{"v":0,"d":"$0.00"},{"v":0,"d":"$0.00"},{"v":0,"d":"$0.00"},{"v":0,"d":"$0.00"},{"v":0,"d":"$0.00"},{"v":0,"d":"$0.00"},{"v":0,"d":"$0.00"},{"v":0,"d":"$0.00"},{"$f":"'MMA Rev-Exp Region 7'!AV$23","v":{"v":0,"d":"$0.00"}}]
["MMA",null,null,{"$f":"Jurat!I$1","v":0},{"$f":"Jurat!D$33","v":"00:00:00"},"PY","1917-01-01","Region 7","Operating Expense","Medical Benefits Expense","Hospital Services","2.7.1","Transplant Services",{"v":0,"d":"$0.00"},{"v":0,"d":"$0.00"},{"v":0,"d":"$0.00"},{"v":0,"d":"$0.00"},{"v":0,"d":"$0.00"},{"v":0,"d":"$0.00"},{"v":0,"d":"$0.00"},{"v":0,"d":"$0.00"},{"v":0,"d":"$0.00"},{"v":0,"d":"$0.00"},{"v":0,"d":"$0.00"},{"$f":"'MMA Rev-Exp Region 7'!AV$27","v":{"v":0,"d":"$0.00"}}]
["MMA",null,null,{"$f":"Jurat!I$1","v":0},{"$f":"Jurat!D$33","v":"00:00:00"},"PY","1917-01-01","Region 7","Operating Expense","Medical Benefits Expense","Professional Services",3.1,"Primary Care FFS",{"v":0,"d":"$0.00"},{"v":0,"d":"$0.00"},{"v":0,"d":"$0.00"},{"v":0,"d":"$0.00"},{"v":0,"d":"$0.00"},{"v":0,"d":"$0.00"},{"v":0,"d":"$0.00"},{"v":0,"d":"$0.00"},{"v":0,"d":"$0.00"},{"v":0,"d":"$0.00"},{"v":0,"d":"$0.00"},{"$f":"'MMA Rev-Exp Region 7'!AV$29","v":{"v":0,"d":"$0.00"}}]
["MMA",null,null,{"$f":"Jurat!I$1","v":0},{"$f":"Jurat!D$33","v":"00:00:00"},"PY","1917-01-01","Region 7","Operating Expense","Medical Benefits Expense","Professional Services","3.4","§ 1202 PCP Payments to providers",{"v":0,"d":"$0.00"},{"v":0,"d":"$0.00"},{"v":0,"d":"$0.00"},{"v":0,"d":"$0.00"},{"v":0,"d":"$0.00"},{"v":0,"d":"$0.00"},{"v":0,"d":"$0.00"},{"v":0,"d":"$0.00"},{"v":0,"d":"$0.00"},{"v":0,"d":"$0.00"},{"v":0,"d":"$0.00"},{"$f":"'MMA Rev-Exp Region 7'!AV$32","v":{"v":0,"d":"$0.00"}}]
["MMA",null,null,{"$f":"Jurat!I$1","v":0},{"$f":"Jurat!D$33","v":"00:00:00"},"PY","1917-01-01","Region 7","Operating Expense","Medical Benefits Expense","Professional Services","3.7","Professional Services Settlements",{"v":0,"d":"$0.00"},{"v":0,"d":"$0.00"},{"v":0,"d":"$0.00"},{"v":0,"d":"$0.00"},{"v":0,"d":"$0.00"},{"v":0,"d":"$0.00"},{"v":0,"d":"$0.00"},{"v":0,"d":"$0.00"},{"v":0,"d":"$0.00"},{"v":0,"d":"$0.00"},{"v":0,"d":"$0.00"},{"$f":"'MMA Rev-Exp Region 7'!AV$35","v":{"v":0,"d":"$0.00"}}]
["MMA",null,null,{"$f":"Jurat!I$1","v":0},{"$f":"Jurat!D$33","v":"00:00:00"},"PY","1917-01-01","Region 7","Operating Expense","Medical Benefits Expense","Mental Health Services",5.1,"Mental Health & Substance Abuse FFS",{"v":0,"d":"$0.00"},{"v":0,"d":"$0.00"},{"v":0,"d":"$0.00"},{"v":0,"d":"$0.00"},{"v":0,"d":"$0.00"},{"v":0,"d":"$0.00"},{"v":0,"d":"$0.00"},{"v":0,"d":"$0.00"},{"v":0,"d":"$0.00"},{"v":0,"d":"$0.00"},{"v":0,"d":"$0.00"},{"$f":"'MMA Rev-Exp Region 7'!AV$41","v":{"v":0,"d":"$0.00"}}]
["MMA",null,null,{"$f":"Jurat!I$1","v":0},{"$f":"Jurat!D$33","v":"00:00:00"},"PY","1917-01-01","Region 7","Operating Expense","Medical Benefits Expense","Mental Health Services","5.4","Mental Health Settlements",{"v":0,"d":"$0.00"},{"v":0,"d":"$0.00"},{"v":0,"d":"$0.00"},{"v":0,"d":"$0.00"},{"v":0,"d":"$0.00"},{"v":0,"d":"$0.00"},{"v":0,"d":"$0.00"},{"v":0,"d":"$0.00"},{"v":0,"d":"$0.00"},{"v":0,"d":"$0.00"},{"v":0,"d":"$0.00"},{"$f":"'MMA Rev-Exp Region 7'!AV$44","v":{"v":0,"d":"$0.00"}}]
["MMA",null,null,{"$f":"Jurat!I$1","v":0},{"$f":"Jurat!D$33","v":"00:00:00"},"PY","1917-01-01","Region 7","Operating Expense","Medical Benefits Expense","Dental Services","6.4","Dental Settlements",{"v":0,"d":"$0.00"},{"v":0,"d":"$0.00"},{"v":0,"d":"$0.00"},{"v":0,"d":"$0.00"},{"v":0,"d":"$0.00"},{"v":0,"d":"$0.00"},{"v":0,"d":"$0.00"},{"v":0,"d":"$0.00"},{"v":0,"d":"$0.00"},{"v":0,"d":"$0.00"},{"v":0,"d":"$0.00"},{"$f":"'MMA Rev-Exp Region 7'!AV$49","v":{"v":0,"d":"$0.00"}}]
["MMA",null,null,{"$f":"Jurat!I$1","v":0},{"$f":"Jurat!D$33","v":"00:00:00"},"PY","1917-01-01","Region 7","Operating Expense","Medical Benefits Expense","Transportation Services",7.3,"Ending IBNP for Transportation",{"v":0,"d":"$0.00"},{"v":0,"d":"$0.00"},{"v":0,"d":"$0.00"},{"v":0,"d":"$0.00"},{"v":0,"d":"$0.00"},{"v":0,"d":"$0.00"},{"v":0,"d":"$0.00"},{"v":0,"d":"$0.00"},{"v":0,"d":"$0.00"},{"v":0,"d":"$0.00"},{"v":0,"d":"$0.00"},{"$f":"'MMA Rev-Exp Region 7'!AV$53","v":{"v":0,"d":"$0.00"}}]
["MMA",null,null,{"$f":"Jurat!I$1","v":0},{"$f":"Jurat!D$33","v":"00:00:00"},"PY","1917-01-01","Region 7","Operating Expense","Medical Benefits Expense","Pharmacy Services",8.1,"Prescription Drugs FFS",{"v":0,"d":"$0.00"},{"v":0,"d":"$0.00"},{"v":0,"d":"$0.00"},{"v":0,"d":"$0.00"},{"v":0,"d":"$0.00"},{"v":0,"d":"$0.00"},{"v":0,"d":"$0.00"},{"v":0,"d":"$0.00"},{"v":0,"d":"$0.00"},{"v":0,"d":"$0.00"},{"v":0,"d":"$0.00"},{"$f":"'MMA Rev-Exp Region 7'!AV$56","v":{"v":0,"d":"$0.00"}}]
["MMA",null,null,{"$f":"Jurat!I$1","v":0},{"$f":"Jurat!D$33","v":"00:00:00"},"PY","1917-01-01","Region 7","Operating Expense","Medical Benefits Expense","Pharmacy Services","8.2","Hepatitis C Prescription Drug FFS",{"v":0,"d":"$0.00"},{"v":0,"d":"$0.00"},{"v":0,"d":"$0.00"},{"v":0,"d":"$0.00"},{"v":0,"d":"$0.00"},{"v":0,"d":"$0.00"},{"v":0,"d":"$0.00"},{"v":0,"d":"$0.00"},{"v":0,"d":"$0.00"},{"v":0,"d":"$0.00"},{"v":0,"d":"$0.00"},{"$f":"'MMA Rev-Exp Region 7'!AV$57","v":{"v":0,"d":"$0.00"}}]
["MMA",null,null,{"$f":"Jurat!I$1","v":0},{"$f":"Jurat!D$33","v":"00:00:00"},"PY","1917-01-01","Region 7","Operating Expense","Medical Benefits Expense","Pharmacy Services","8.5","Ending accrual for Rebates receivable",{"v":0,"d":"$0.00"},{"v":0,"d":"$0.00"},{"v":0,"d":"$0.00"},{"v":0,"d":"$0.00"},{"v":0,"d":"$0.00"},{"v":0,"d":"$0.00"},{"v":0,"d":"$0.00"},{"v":0,"d":"$0.00"},{"v":0,"d":"$0.00"},{"v":0,"d":"$0.00"},{"v":0,"d":"$0.00"},{"$f":"'MMA Rev-Exp Region 7'!AV$60","v":{"v":0,"d":"$0.00"}}]
["MMA",null,null,{"$f":"Jurat!I$1","v":0},{"$f":"Jurat!D$33","v":"00:00:00"},"PY","1917-01-01","Region 7","Operating Expense","Medical Benefits Expense","Other MMA Services",9.1,"Home Health, Private Duty Nursing, Personal Care FFS",{"v":0,"d":"$0.00"},{"v":0,"d":"$0.00"},{"v":0,"d":"$0.00"},{"v":0,"d":"$0.00"},{"v":0,"d":"$0.00"},{"v":0,"d":"$0.00"},{"v":0,"d":"$0.00"},{"v":0,"d":"$0.00"},{"v":0,"d":"$0.00"},{"v":0,"d":"$0.00"},{"v":0,"d":"$0.00"},{"$f":"'MMA Rev-Exp Region 7'!AV$64","v":{"v":0,"d":"$0.00"}}]
["MMA",null,null,{"$f":"Jurat!I$1","v":0},{"$f":"Jurat!D$33","v":"00:00:00"},"PY","1917-01-01","Region 7","Operating Expense","Medical Benefits Expense","Other MMA Services","9.5","Other Services Subcapitation",{"v":0,"d":"$0.00"},{"v":0,"d":"$0.00"},{"v":0,"d":"$0.00"},{"v":0,"d":"$0.00"},{"v":0,"d":"$0.00"},{"v":0,"d":"$0.00"},{"v":0,"d":"$0.00"},{"v":0,"d":"$0.00"},{"v":0,"d":"$0.00"},{"v":0,"d":"$0.00"},{"v":0,"d":"$0.00"},{"$f":"'MMA Rev-Exp Region 7'!AV$68","v":{"v":0,"d":"$0.00"}}]
["MMA",null,null,{"$f":"Jurat!I$1","v":0},{"$f":"Jurat!D$33","v":"00:00:00"},"PY","1917-01-01","Region 7","Operating Expense","Medical Benefits Expense","Expanded Benefits","10.1","Expanded Benefits FFS",{"v":0,"d":"$0.00"},{"v":0,"d":"$0.00"},{"v":0,"d":"$0.00"},{"v":0,"d":"$0.00"},{"v":0,"d":"$0.00"},{"v":0,"d":"$0.00"},{"v":0,"d":"$0.00"},{"v":0,"d":"$0.00"},{"v":0,"d":"$0.00"},{"v":0,"d":"$0.00"},{"v":0,"d":"$0.00"},{"$f":"'MMA Rev-Exp Region 7'!AV$72","v":{"v":0,"d":"$0.00"}}]
["MMA",null,null,{"$f":"Jurat!I$1","v":0},{"$f":"Jurat!D$33","v":"00:00:00"},"PY","1917-01-01","Region 7","Operating Expense","Medical Benefits Expense","Other Medical","11.5","TPL & Fraud/Abuse Recoveries",{"v":0,"d":"$0.00"},{"v":0,"d":"$0.00"},{"v":0,"d":"$0.00"},{"v":0,"d":"$0.00"},{"v":0,"d":"$0.00"},{"v":0,"d":"$0.00"},{"v":0,"d":"$0.00"},{"v":0,"d":"$0.00"},{"v":0,"d":"$0.00"},{"v":0,"d":"$0.00"},{"v":0,"d":"$0.00"},{"$f":"'MMA Rev-Exp Region 7'!AV$81","v":{"v":0,"d":"$0.00"}}]
["MMA",null,null,{"$f":"Jurat!I$1","v":0},{"$f":"Jurat!D$33","v":"00:00:00"},"PY","1917-01-01","Region 7","Operating Expense","Medical Benefits Expense","Other Medical","11.9","Reinsurance Recoveries",{"v":0,"d":"$0.00"},{"v":0,"d":"$0.00"},{"v":0,"d":"$0.00"},{"v":0,"d":"$0.00"},{"v":0,"d":"$0.00"},{"v":0,"d":"$0.00"},{"v":0,"d":"$0.00"},{"v":0,"d":"$0.00"},{"v":0,"d":"$0.00"},{"v":0,"d":"$0.00"},{"v":0,"d":"$0.00"},{"$f":"'MMA Rev-Exp Region 7'!AV$85","v":{"v":0,"d":"$0.00"}}]
["MMA",null,null,{"$f":"Jurat!I$1","v":0},{"$f":"Jurat!D$33","v":"00:00:00"},"PY","1917-01-01","Region 7","Operating Expense","Administrative Expense","Administrative","12.3","Information Systems",{"v":0,"d":"$0.00"},{"v":0,"d":"$0.00"},{"v":0,"d":"$0.00"},{"v":0,"d":"$0.00"},{"v":0,"d":"$0.00"},{"v":0,"d":"$0.00"},{"v":0,"d":"$0.00"},{"v":0,"d":"$0.00"},{"v":0,"d":"$0.00"},{"v":0,"d":"$0.00"},{"v":0,"d":"$0.00"},{"$f":"'MMA Rev-Exp Region 7'!AV$92","v":{"v":0,"d":"$0.00"}}]
["MMA",null,null,{"$f":"Jurat!I$1","v":0},{"$f":"Jurat!D$33","v":"00:00:00"},"PY","1917-01-01","Region 7","Operating Expense","Administrative Expense","Administrative","12.4","Marketing Expenses",{"v":0,"d":"$0.00"},{"v":0,"d":"$0.00"},{"v":0,"d":"$0.00"},{"v":0,"d":"$0.00"},{"v":0,"d":"$0.00"},{"v":0,"d":"$0.00"},{"v":0,"d":"$0.00"},{"v":0,"d":"$0.00"},{"v":0,"d":"$0.00"},{"v":0,"d":"$0.00"},{"v":0,"d":"$0.00"},{"$f":"'MMA Rev-Exp Region 7'!AV$93","v":{"v":0,"d":"$0.00"}}]
["MMA",null,null,{"$f":"Jurat!I$1","v":0},{"$f":"Jurat!D$33","v":"00:00:00"},"PY","1917-01-01","Region 7","Operating Expense","Administrative Expense","Administrative","12.6","Compliance/Regulatory",{"v":0,"d":"$0.00"},{"v":0,"d":"$0.00"},{"v":0,"d":"$0.00"},{"v":0,"d":"$0.00"},{"v":0,"d":"$0.00"},{"v":0,"d":"$0.00"},{"v":0,"d":"$0.00"},{"v":0,"d":"$0.00"},{"v":0,"d":"$0.00"},{"v":0,"d":"$0.00"},{"v":0,"d":"$0.00"},{"$f":"'MMA Rev-Exp Region 7'!AV$95","v":{"v":0,"d":"$0.00"}}]
["MMA",null,null,{"$f":"Jurat!I$1","v":0},{"$f":"Jurat!D$33","v":"00:00:00"},"PY","1917-01-01","Region 7","Non-Operating Expense","Income Tax Expense","Income Tax Expense","16.0","Income Tax Expense",{"v":0,"d":"$0.00"},{"v":0,"d":"$0.00"},{"v":0,"d":"$0.00"},{"v":0,"d":"$0.00"},{"v":0,"d":"$0.00"},{"v":0,"d":"$0.00"},{"v":0,"d":"$0.00"},{"v":0,"d":"$0.00"},{"v":0,"d":"$0.00"},{"v":0,"d":"$0.00"},{"v":0,"d":"$0.00"},{"$f":"'MMA Rev-Exp Region 7'!AV$106","v":{"v":0,"d":"$0.00"}}]
["MMA",null,null,{"$f":"Jurat!I$1","v":0},{"$f":"Jurat!D$33","v":"00:00:00"},"PY","1917-01-01","Region 6","Operating Revenue","Kick Payments","Kick Payments - Transplant",1.2,"Transplant Kick Payments",{"v":0,"d":"$0.00"},{"v":0,"d":"$0.00"},{"v":0,"d":"$0.00"},{"v":0,"d":"$0.00"},{"v":0,"d":"$0.00"},{"v":0,"d":"$0.00"},{"v":0,"d":"$0.00"},{"v":0,"d":"$0.00"},{"v":0,"d":"$0.00"},{"v":0,"d":"$0.00"},{"v":0,"d":"$0.00"},{"$f":"'MMA Rev-Exp Region 6'!AV$12","v":{"v":0,"d":"$0.00"}}]
["MMA",null,null,{"$f":"Jurat!I$1","v":0},{"$f":"Jurat!D$33","v":"00:00:00"},"PY","1917-01-01","Region 6","Operating Revenue","Other Revenue","Other Revenue - 9010","1.5","ACA § 9010 related payments",{"v":0,"d":"$0.00"},{"v":0,"d":"$0.00"},{"v":0,"d":"$0.00"},{"v":0,"d":"$0.00"},{"v":0,"d":"$0.00"},{"v":0,"d":"$0.00"},{"v":0,"d":"$0.00"},{"v":0,"d":"$0.00"},{"v":0,"d":"$0.00"},{"v":0,"d":"$0.00"},{"v":0,"d":"$0.00"},{"$f":"'MMA Rev-Exp Region 6'!AV$15","v":{"v":0,"d":"$0.00"}}]
["MMA",null,null,{"$f":"Jurat!I$1","v":0},{"$f":"Jurat!D$33","v":"00:00:00"},"PY","1917-01-01","Region 6","Operating Expense","Medical Benefits Expense","Hospital Services",2.3,"Outpatient FFS: ER",{"v":0,"d":"$0.00"},{"v":0,"d":"$0.00"},{"v":0,"d":"$0.00"},{"v":0,"d":"$0.00"},{"v":0,"d":"$0.00"},{"v":0,"d":"$0.00"},{"v":0,"d":"$0.00"},{"v":0,"d":"$0.00"},{"v":0,"d":"$0.00"},{"v":0,"d":"$0.00"},{"v":0,"d":"$0.00"},{"$f":"'MMA Rev-Exp Region 6'!AV$22","v":{"v":0,"d":"$0.00"}}]
["MMA",null,null,{"$f":"Jurat!I$1","v":0},{"$f":"Jurat!D$33","v":"00:00:00"},"PY","1917-01-01","Region 6","Operating Expense","Medical Benefits Expense","Hospital Services","2.6","Subcapitated Hospital Services",{"v":0,"d":"$0.00"},{"v":0,"d":"$0.00"},{"v":0,"d":"$0.00"},{"v":0,"d":"$0.00"},{"v":0,"d":"$0.00"},{"v":0,"d":"$0.00"},{"v":0,"d":"$0.00"},{"v":0,"d":"$0.00"},{"v":0,"d":"$0.00"},{"v":0,"d":"$0.00"},{"v":0,"d":"$0.00"},{"$f":"'MMA Rev-Exp Region 6'!AV$25","v":{"v":0,"d":"$0.00"}}]
["MMA",null,null,{"$f":"Jurat!I$1","v":0},{"$f":"Jurat!D$33","v":"00:00:00"},"PY","1917-01-01","Region 6","Operating Expense","Medical Benefits Expense","Professional Services",3.1,"Primary Care FFS",{"v":0,"d":"$0.00"},{"v":0,"d":"$0.00"},{"v":0,"d":"$0.00"},{"v":0,"d":"$0.00"},{"v":0,"d":"$0.00"},{"v":0,"d":"$0.00"},{"v":0,"d":"$0.00"},{"v":0,"d":"$0.00"},{"v":0,"d":"$0.00"},{"v":0,"d":"$0.00"},{"v":0,"d":"$0.00"},{"$f":"'MMA Rev-Exp Region 6'!AV$29","v":{"v":0,"d":"$0.00"}}]
["MMA",null,null,{"$f":"Jurat!I$1","v":0},{"$f":"Jurat!D$33","v":"00:00:00"},"PY","1917-01-01","Region 6","Operating Expense","Medical Benefits Expense","Professional Services",3.2,"Specialty Care FFS",{"v":0,"d":"$0.00"},{"v":0,"d":"$0.00"},{"v":0,"d":"$0.00"},{"v":0,"d":"$0.00"},{"v":0,"d":"$0.00"},{"v":0,"d":"$0.00"},{"v":0,"d":"$0.00"},{"v":0,"d":"$0.00"},{"v":0,"d":"$0.00"},{"v":0,"d":"$0.00"},{"v":0,"d":"$0.00"},{"$f":"'MMA Rev-Exp Region 6'!AV$30","v":{"v":0,"d":"$0.00"}}]
["MMA",null,null,{"$f":"Jurat!I$1","v":0},{"$f":"Jurat!D$33","v":"00:00:00"},"PY","1917-01-01","Region 6","Operating Expense","Medical Benefits Expense","Professional Services","3.6","Ending IBNP for Professional Services",{"v":0,"d":"$0.00"},{"v":0,"d":"$0.00"},{"v":0,"d":"$0.00"},{"v":0,"d":"$0.00"},{"v":0,"d":"$0.00"},{"v":0,"d":"$0.00"},{"v":0,"d":"$0.00"},{"v":0,"d":"$0.00"},{"v":0,"d":"$0.00"},{"v":0,"d":"$0.00"},{"v":0,"d":"$0.00"},{"$f":"'MMA Rev-Exp Region 6'!AV$34","v":{"v":0,"d":"$0.00"}}]
["MMA",null,null,{"$f":"Jurat!I$1","v":0},{"$f":"Jurat!D$33","v":"00:00:00"},"PY","1917-01-01","Region 6","Operating Expense","Medical Benefits Expense","Maternity Services","4.1.1","Maternity Services",{"v":0,"d":"$0.00"},{"v":0,"d":"$0.00"},{"v":0,"d":"$0.00"},{"v":0,"d":"$0.00"},{"v":0,"d":"$0.00"},{"v":0,"d":"$0.00"},{"v":0,"d":"$0.00"},{"v":0,"d":"$0.00"},{"v":0,"d":"$0.00"},{"v":0,"d":"$0.00"},{"v":0,"d":"$0.00"},{"$f":"'MMA Rev-Exp Region 6'!AV$37","v":{"v":0,"d":"$0.00"}}]
["MMA",null,null,{"$f":"Jurat!I$1","v":0},{"$f":"Jurat!D$33","v":"00:00:00"},"PY","1917-01-01","Region 6","Operating Expense","Medical Benefits Expense","Mental Health Services",5.1,"Mental Health & Substance Abuse FFS",{"v":0,"d":"$0.00"},{"v":0,"d":"$0.00"},{"v":0,"d":"$0.00"},{"v":0,"d":"$0.00"},{"v":0,"d":"$0.00"},{"v":0,"d":"$0.00"},{"v":0,"d":"$0.00"},{"v":0,"d":"$0.00"},{"v":0,"d":"$0.00"},{"v":0,"d":"$0.00"},{"v":0,"d":"$0.00"},{"$f":"'MMA Rev-Exp Region 6'!AV$41","v":{"v":0,"d":"$0.00"}}]
["MMA",null,null,{"$f":"Jurat!I$1","v":0},{"$f":"Jurat!D$33","v":"00:00:00"},"PY","1917-01-01","Region 6","Operating Expense","Medical Benefits Expense","Mental Health Services","5.4","Mental Health Settlements",{"v":0,"d":"$0.00"},{"v":0,"d":"$0.00"},{"v":0,"d":"$0.00"},{"v":0,"d":"$0.00"},{"v":0,"d":"$0.00"},{"v":0,"d":"$0.00"},{"v":0,"d":"$0.00"},{"v":0,"d":"$0.00"},{"v":0,"d":"$0.00"},{"v":0,"d":"$0.00"},{"v":0,"d":"$0.00"},{"$f":"'MMA Rev-Exp Region 6'!AV$44","v":{"v":0,"d":"$0.00"}}]
["MMA",null,null,{"$f":"Jurat!I$1","v":0},{"$f":"Jurat!D$33","v":"00:00:00"},"PY","1917-01-01","Region 6","Operating Expense","Medical Benefits Expense","Dental Services","6.4","Dental Settlements",{"v":0,"d":"$0.00"},{"v":0,"d":"$0.00"},{"v":0,"d":"$0.00"},{"v":0,"d":"$0.00"},{"v":0,"d":"$0.00"},{"v":0,"d":"$0.00"},{"v":0,"d":"$0.00"},{"v":0,"d":"$0.00"},{"v":0,"d":"$0.00"},{"v":0,"d":"$0.00"},{"v":0,"d":"$0.00"},{"$f":"'MMA Rev-Exp Region 6'!AV$49","v":{"v":0,"d":"$0.00"}}]
["MMA",null,null,{"$f":"Jurat!I$1","v":0},{"$f":"Jurat!D$33","v":"00:00:00"},"PY","1917-01-01","Region 6","Operating Expense","Medical Benefits Expense","Transportation Services",7.3,"Ending IBNP for Transportation",{"v":0,"d":"$0.00"},{"v":0,"d":"$0.00"},{"v":0,"d":"$0.00"},{"v":0,"d":"$0.00"},{"v":0,"d":"$0.00"},{"v":0,"d":"$0.00"},{"v":0,"d":"$0.00"},{"v":0,"d":"$0.00"},{"v":0,"d":"$0.00"},{"v":0,"d":"$0.00"},{"v":0,"d":"$0.00"},{"$f":"'MMA Rev-Exp Region 6'!AV$53","v":{"v":0,"d":"$0.00"}}]
["MMA",null,null,{"$f":"Jurat!I$1","v":0},{"$f":"Jurat!D$33","v":"00:00:00"},"PY","1917-01-01","Region 6","Operating Expense","Medical Benefits Expense","Pharmacy Services","8.2","Hepatitis C Prescription Drug FFS",{"v":0,"d":"$0.00"},{"v":0,"d":"$0.00"},{"v":0,"d":"$0.00"},{"v":0,"d":"$0.00"},{"v":0,"d":"$0.00"},{"v":0,"d":"$0.00"},{"v":0,"d":"$0.00"},{"v":0,"d":"$0.00"},{"v":0,"d":"$0.00"},{"v":0,"d":"$0.00"},{"v":0,"d":"$0.00"},{"$f":"'MMA Rev-Exp Region 6'!AV$57","v":{"v":0,"d":"$0.00"}}]
["MMA",null,null,{"$f":"Jurat!I$1","v":0},{"$f":"Jurat!D$33","v":"00:00:00"},"PY","1917-01-01","Region 6","Operating Expense","Medical Benefits Expense","Pharmacy Services","8.3","Ending IBNP for Prescription Drugs",{"v":0,"d":"$0.00"},{"v":0,"d":"$0.00"},{"v":0,"d":"$0.00"},{"v":0,"d":"$0.00"},{"v":0,"d":"$0.00"},{"v":0,"d":"$0.00"},{"v":0,"d":"$0.00"},{"v":0,"d":"$0.00"},{"v":0,"d":"$0.00"},{"v":0,"d":"$0.00"},{"v":0,"d":"$0.00"},{"$f":"'MMA Rev-Exp Region 6'!AV$58","v":{"v":0,"d":"$0.00"}}]
["MMA",null,null,{"$f":"Jurat!I$1","v":0},{"$f":"Jurat!D$33","v":"00:00:00"},"PY","1917-01-01","Region 6","Operating Expense","Medical Benefits Expense","Pharmacy Services","8.6","Prescription Drugs Subcapitation",{"v":0,"d":"$0.00"},{"v":0,"d":"$0.00"},{"v":0,"d":"$0.00"},{"v":0,"d":"$0.00"},{"v":0,"d":"$0.00"},{"v":0,"d":"$0.00"},{"v":0,"d":"$0.00"},{"v":0,"d":"$0.00"},{"v":0,"d":"$0.00"},{"v":0,"d":"$0.00"},{"v":0,"d":"$0.00"},{"$f":"'MMA Rev-Exp Region 6'!AV$61","v":{"v":0,"d":"$0.00"}}]
["MMA",null,null,{"$f":"Jurat!I$1","v":0},{"$f":"Jurat!D$33","v":"00:00:00"},"PY","1917-01-01","Region 6","Operating Expense","Medical Benefits Expense","Other MMA Services","9.2","Hospice FFS",{"v":0,"d":"$0.00"},{"v":0,"d":"$0.00"},{"v":0,"d":"$0.00"},{"v":0,"d":"$0.00"},{"v":0,"d":"$0.00"},{"v":0,"d":"$0.00"},{"v":0,"d":"$0.00"},{"v":0,"d":"$0.00"},{"v":0,"d":"$0.00"},{"v":0,"d":"$0.00"},{"v":0,"d":"$0.00"},{"$f":"'MMA Rev-Exp Region 6'!AV$65","v":{"v":0,"d":"$0.00"}}]
["MMA",null,null,{"$f":"Jurat!I$1","v":0},{"$f":"Jurat!D$33","v":"00:00:00"},"PY","1917-01-01","Region 6","Operating Expense","Medical Benefits Expense","Other MMA Services","9.5","Other Services Subcapitation",{"v":0,"d":"$0.00"},{"v":0,"d":"$0.00"},{"v":0,"d":"$0.00"},{"v":0,"d":"$0.00"},{"v":0,"d":"$0.00"},{"v":0,"d":"$0.00"},{"v":0,"d":"$0.00"},{"v":0,"d":"$0.00"},{"v":0,"d":"$0.00"},{"v":0,"d":"$0.00"},{"v":0,"d":"$0.00"},{"$f":"'MMA Rev-Exp Region 6'!AV$68","v":{"v":0,"d":"$0.00"}}]
["MMA",null,null,{"$f":"Jurat!I$1","v":0},{"$f":"Jurat!D$33","v":"00:00:00"},"PY","1917-01-01","Region 6","Operating Expense","Medical Benefits Expense","Expanded Benefits","10.1","Expanded Benefits FFS",{"v":0,"d":"$0.00"},{"v":0,"d":"$0.00"},{"v":0,"d":"$0.00"},{"v":0,"d":"$0.00"},{"v":0,"d":"$0.00"},{"v":0,"d":"$0.00"},{"v":0,"d":"$0.00"},{"v":0,"d":"$0.00"},{"v":0,"d":"$0.00"},{"v":0,"d":"$0.00"},{"v":0,"d":"$0.00"},{"$f":"'MMA Rev-Exp Region 6'!AV$72","v":{"v":0,"d":"$0.00"}}]
["MMA",null,null,{"$f":"Jurat!I$1","v":0},{"$f":"Jurat!D$33","v":"00:00:00"},"PY","1917-01-01","Region 6","Operating Expense","Medical Benefits Expense","Other Medical","11.5","TPL & Fraud/Abuse Recoveries",{"v":0,"d":"$0.00"},{"v":0,"d":"$0.00"},{"v":0,"d":"$0.00"},{"v":0,"d":"$0.00"},{"v":0,"d":"$0.00"},{"v":0,"d":"$0.00"},{"v":0,"d":"$0.00"},{"v":0,"d":"$0.00"},{"v":0,"d":"$0.00"},{"v":0,"d":"$0.00"},{"v":0,"d":"$0.00"},{"$f":"'MMA Rev-Exp Region 6'!AV$81","v":{"v":0,"d":"$0.00"}}]
["MMA",null,null,{"$f":"Jurat!I$1","v":0},{"$f":"Jurat!D$33","v":"00:00:00"},"PY","1917-01-01","Region 6","Operating Expense","Medical Benefits Expense","Other Medical","11.9","Reinsurance Recoveries",{"v":0,"d":"$0.00"},{"v":0,"d":"$0.00"},{"v":0,"d":"$0.00"},{"v":0,"d":"$0.00"},{"v":0,"d":"$0.00"},{"v":0,"d":"$0.00"},{"v":0,"d":"$0.00"},{"v":0,"d":"$0.00"},{"v":0,"d":"$0.00"},{"v":0,"d":"$0.00"},{"v":0,"d":"$0.00"},{"$f":"'MMA Rev-Exp Region 6'!AV$85","v":{"v":0,"d":"$0.00"}}]
["MMA",null,null,{"$f":"Jurat!I$1","v":0},{"$f":"Jurat!D$33","v":"00:00:00"},"PY","1917-01-01","Region 6","Operating Expense","Administrative Expense","Administrative","12.1","Salaries & Benefits",{"v":0,"d":"$0.00"},{"v":0,"d":"$0.00"},{"v":0,"d":"$0.00"},{"v":0,"d":"$0.00"},{"v":0,"d":"$0.00"},{"v":0,"d":"$0.00"},{"v":0,"d":"$0.00"},{"v":0,"d":"$0.00"},{"v":0,"d":"$0.00"},{"v":0,"d":"$0.00"},{"v":0,"d":"$0.00"},{"$f":"'MMA Rev-Exp Region 6'!AV$90","v":{"v":0,"d":"$0.00"}}]
["MMA",null,null,{"$f":"Jurat!I$1","v":0},{"$f":"Jurat!D$33","v":"00:00:00"},"PY","1917-01-01","Region 6","Operating Expense","Administrative Expense","Administrative","12.4","Marketing Expenses",{"v":0,"d":"$0.00"},{"v":0,"d":"$0.00"},{"v":0,"d":"$0.00"},{"v":0,"d":"$0.00"},{"v":0,"d":"$0.00"},{"v":0,"d":"$0.00"},{"v":0,"d":"$0.00"},{"v":0,"d":"$0.00"},{"v":0,"d":"$0.00"},{"v":0,"d":"$0.00"},{"v":0,"d":"$0.00"},{"$f":"'MMA Rev-Exp Region 6'!AV$93","v":{"v":0,"d":"$0.00"}}]
["MMA",null,null,{"$f":"Jurat!I$1","v":0},{"$f":"Jurat!D$33","v":"00:00:00"},"PY","1917-01-01","Region 6","Operating Expense","Taxes & Fees","Taxes & Fees","13.1","State Premium tax",{"v":0,"d":"$0.00"},{"v":0,"d":"$0.00"},{"v":0,"d":"$0.00"},{"v":0,"d":"$0.00"},{"v":0,"d":"$0.00"},{"v":0,"d":"$0.00"},{"v":0,"d":"$0.00"},{"v":0,"d":"$0.00"},{"v":0,"d":"$0.00"},{"v":0,"d":"$0.00"},{"v":0,"d":"$0.00"},{"$f":"'MMA Rev-Exp Region 6'!AV$97","v":{"v":0,"d":"$0.00"}}]
["MMA",null,null,{"$f":"Jurat!I$1","v":0},{"$f":"Jurat!D$33","v":"00:00:00"},"PY","1917-01-01","Region 5","Member Months","Member Months","Member Months",null,"Member Months",{"v":0,"d":"$0.00"},{"v":0,"d":"$0.00"},{"v":0,"d":"$0.00"},{"v":0,"d":"$0.00"},{"v":0,"d":"$0.00"},{"v":0,"d":"$0.00"},{"v":0,"d":"$0.00"},{"v":0,"d":"$0.00"},{"v":0,"d":"$0.00"},{"v":0,"d":"$0.00"},{"v":0,"d":"$0.00"},{"$f":"'MMA Rev-Exp Region 5'!AV$9","v":{"v":0,"d":"$0.00"}}]
["MMA",null,null,{"$f":"Jurat!I$1","v":0},{"$f":"Jurat!D$33","v":"00:00:00"},"PY","1917-01-01","Region 5","Operating Revenue","Kick Payments","Kick Payments - Hep C","1.3","Hepatitis C Kick Payments",{"v":0,"d":"$0.00"},{"v":0,"d":"$0.00"},{"v":0,"d":"$0.00"},{"v":0,"d":"$0.00"},{"v":0,"d":"$0.00"},{"v":0,"d":"$0.00"},{"v":0,"d":"$0.00"},{"v":0,"d":"$0.00"},{"v":0,"d":"$0.00"},{"v":0,"d":"$0.00"},{"v":0,"d":"$0.00"},{"$f":"'MMA Rev-Exp Region 5'!AV$13","v":{"v":0,"d":"$0.00"}}]
["MMA",null,null,{"$f":"Jurat!I$1","v":0},{"$f":"Jurat!D$33","v":"00:00:00"},"PY","1917-01-01","Region 5","Operating Revenue","Other Revenue","Other Revenue - 9010","1.5","ACA § 9010 related payments",{"v":0,"d":"$0.00"},{"v":0,"d":"$0.00"},{"v":0,"d":"$0.00"},{"v":0,"d":"$0.00"},{"v":0,"d":"$0.00"},{"v":0,"d":"$0.00"},{"v":0,"d":"$0.00"},{"v":0,"d":"$0.00"},{"v":0,"d":"$0.00"},{"v":0,"d":"$0.00"},{"v":0,"d":"$0.00"},{"$f":"'MMA Rev-Exp Region 5'!AV$15","v":{"v":0,"d":"$0.00"}}]
["MMA",null,null,{"$f":"Jurat!I$1","v":0},{"$f":"Jurat!D$33","v":"00:00:00"},"PY","1917-01-01","Region 5","Operating Expense","Medical Benefits Expense","Hospital Services",2.3,"Outpatient FFS: ER",{"v":0,"d":"$0.00"},{"v":0,"d":"$0.00"},{"v":0,"d":"$0.00"},{"v":0,"d":"$0.00"},{"v":0,"d":"$0.00"},{"v":0,"d":"$0.00"},{"v":0,"d":"$0.00"},{"v":0,"d":"$0.00"},{"v":0,"d":"$0.00"},{"v":0,"d":"$0.00"},{"v":0,"d":"$0.00"},{"$f":"'MMA Rev-Exp Region 5'!AV$22","v":{"v":0,"d":"$0.00"}}]
["MMA",null,null,{"$f":"Jurat!I$1","v":0},{"$f":"Jurat!D$33","v":"00:00:00"},"PY","1917-01-01","Region 5","Operating Expense","Medical Benefits Expense","Hospital Services","2.6","Subcapitated Hospital Services",{"v":0,"d":"$0.00"},{"v":0,"d":"$0.00"},{"v":0,"d":"$0.00"},{"v":0,"d":"$0.00"},{"v":0,"d":"$0.00"},{"v":0,"d":"$0.00"},{"v":0,"d":"$0.00"},{"v":0,"d":"$0.00"},{"v":0,"d":"$0.00"},{"v":0,"d":"$0.00"},{"v":0,"d":"$0.00"},{"$f":"'MMA Rev-Exp Region 5'!AV$25","v":{"v":0,"d":"$0.00"}}]
["MMA",null,null,{"$f":"Jurat!I$1","v":0},{"$f":"Jurat!D$33","v":"00:00:00"},"PY","1917-01-01","Region 5","Operating Expense","Medical Benefits Expense","Hospital Services","2.7","Hospital Settlements",{"v":0,"d":"$0.00"},{"v":0,"d":"$0.00"},{"v":0,"d":"$0.00"},{"v":0,"d":"$0.00"},{"v":0,"d":"$0.00"},{"v":0,"d":"$0.00"},{"v":0,"d":"$0.00"},{"v":0,"d":"$0.00"},{"v":0,"d":"$0.00"},{"v":0,"d":"$0.00"},{"v":0,"d":"$0.00"},{"$f":"'MMA Rev-Exp Region 5'!AV$26","v":{"v":0,"d":"$0.00"}}]
["MMA",null,null,{"$f":"Jurat!I$1","v":0},{"$f":"Jurat!D$33","v":"00:00:00"},"PY","1917-01-01","Region 5","Operating Expense","Medical Benefits Expense","Professional Services",3.2,"Specialty Care FFS",{"v":0,"d":"$0.00"},{"v":0,"d":"$0.00"},{"v":0,"d":"$0.00"},{"v":0,"d":"$0.00"},{"v":0,"d":"$0.00"},{"v":0,"d":"$0.00"},{"v":0,"d":"$0.00"},{"v":0,"d":"$0.00"},{"v":0,"d":"$0.00"},{"v":0,"d":"$0.00"},{"v":0,"d":"$0.00"},{"$f":"'MMA Rev-Exp Region 5'!AV$30","v":{"v":0,"d":"$0.00"}}]
["MMA",null,null,{"$f":"Jurat!I$1","v":0},{"$f":"Jurat!D$33","v":"00:00:00"},"PY","1917-01-01","Region 5","Operating Expense","Medical Benefits Expense","Professional Services","3.5","Subcapitated Professional Services",{"v":0,"d":"$0.00"},{"v":0,"d":"$0.00"},{"v":0,"d":"$0.00"},{"v":0,"d":"$0.00"},{"v":0,"d":"$0.00"},{"v":0,"d":"$0.00"},{"v":0,"d":"$0.00"},{"v":0,"d":"$0.00"},{"v":0,"d":"$0.00"},{"v":0,"d":"$0.00"},{"v":0,"d":"$0.00"},{"$f":"'MMA Rev-Exp Region 5'!AV$33","v":{"v":0,"d":"$0.00"}}]
["MMA",null,null,{"$f":"Jurat!I$1","v":0},{"$f":"Jurat!D$33","v":"00:00:00"},"PY","1917-01-01","Region 5","Operating Expense","Medical Benefits Expense","Maternity Services","4.2.1","Ending IBNP for Maternity Services",{"v":0,"d":"$0.00"},{"v":0,"d":"$0.00"},{"v":0,"d":"$0.00"},{"v":0,"d":"$0.00"},{"v":0,"d":"$0.00"},{"v":0,"d":"$0.00"},{"v":0,"d":"$0.00"},{"v":0,"d":"$0.00"},{"v":0,"d":"$0.00"},{"v":0,"d":"$0.00"},{"v":0,"d":"$0.00"},{"$f":"'MMA Rev-Exp Region 5'!AV$38","v":{"v":0,"d":"$0.00"}}]
["MMA",null,null,{"$f":"Jurat!I$1","v":0},{"$f":"Jurat!D$33","v":"00:00:00"},"PY","1917-01-01","Region 5","Operating Expense","Medical Benefits Expense","Mental Health Services",5.2,"Mental Health & Substance Abuse Subcapitation",{"v":0,"d":"$0.00"},{"v":0,"d":"$0.00"},{"v":0,"d":"$0.00"},{"v":0,"d":"$0.00"},{"v":0,"d":"$0.00"},{"v":0,"d":"$0.00"},{"v":0,"d":"$0.00"},{"v":0,"d":"$0.00"},{"v":0,"d":"$0.00"},{"v":0,"d":"$0.00"},{"v":0,"d":"$0.00"},{"$f":"'MMA Rev-Exp Region 5'!AV$42","v":{"v":0,"d":"$0.00"}}]
["MMA",null,null,{"$f":"Jurat!I$1","v":0},{"$f":"Jurat!D$33","v":"00:00:00"},"PY","1917-01-01","Region 5","Operating Expense","Medical Benefits Expense","Dental Services",6.2,"Dental Subcapitation",{"v":0,"d":"$0.00"},{"v":0,"d":"$0.00"},{"v":0,"d":"$0.00"},{"v":0,"d":"$0.00"},{"v":0,"d":"$0.00"},{"v":0,"d":"$0.00"},{"v":0,"d":"$0.00"},{"v":0,"d":"$0.00"},{"v":0,"d":"$0.00"},{"v":0,"d":"$0.00"},{"v":0,"d":"$0.00"},{"$f":"'MMA Rev-Exp Region 5'!AV$47","v":{"v":0,"d":"$0.00"}}]
["MMA",null,null,{"$f":"Jurat!I$1","v":0},{"$f":"Jurat!D$33","v":"00:00:00"},"PY","1917-01-01","Region 5","Operating Expense","Medical Benefits Expense","Dental Services","6.4","Dental Settlements",{"v":0,"d":"$0.00"},{"v":0,"d":"$0.00"},{"v":0,"d":"$0.00"},{"v":0,"d":"$0.00"},{"v":0,"d":"$0.00"},{"v":0,"d":"$0.00"},{"v":0,"d":"$0.00"},{"v":0,"d":"$0.00"},{"v":0,"d":"$0.00"},{"v":0,"d":"$0.00"},{"v":0,"d":"$0.00"},{"$f":"'MMA Rev-Exp Region 5'!AV$49","v":{"v":0,"d":"$0.00"}}]
["MMA",null,null,{"$f":"Jurat!I$1","v":0},{"$f":"Jurat!D$33","v":"00:00:00"},"PY","1917-01-01","Region 5","Operating Expense","Medical Benefits Expense","Transportation Services",7.3,"Ending IBNP for Transportation",{"v":0,"d":"$0.00"},{"v":0,"d":"$0.00"},{"v":0,"d":"$0.00"},{"v":0,"d":"$0.00"},{"v":0,"d":"$0.00"},{"v":0,"d":"$0.00"},{"v":0,"d":"$0.00"},{"v":0,"d":"$0.00"},{"v":0,"d":"$0.00"},{"v":0,"d":"$0.00"},{"v":0,"d":"$0.00"},{"$f":"'MMA Rev-Exp Region 5'!AV$53","v":{"v":0,"d":"$0.00"}}]
["MMA",null,null,{"$f":"Jurat!I$1","v":0},{"$f":"Jurat!D$33","v":"00:00:00"},"PY","1917-01-01","Region 5","Operating Expense","Medical Benefits Expense","Transportation Services","7.4","Transportation Settlements",{"v":0,"d":"$0.00"},{"v":0,"d":"$0.00"},{"v":0,"d":"$0.00"},{"v":0,"d":"$0.00"},{"v":0,"d":"$0.00"},{"v":0,"d":"$0.00"},{"v":0,"d":"$0.00"},{"v":0,"d":"$0.00"},{"v":0,"d":"$0.00"},{"v":0,"d":"$0.00"},{"v":0,"d":"$0.00"},{"$f":"'MMA Rev-Exp Region 5'!AV$54","v":{"v":0,"d":"$0.00"}}]
["MMA",null,null,{"$f":"Jurat!I$1","v":0},{"$f":"Jurat!D$33","v":"00:00:00"},"PY","1917-01-01","Region 5","Operating Expense","Medical Benefits Expense","Pharmacy Services","8.3","Ending IBNP for Prescription Drugs",{"v":0,"d":"$0.00"},{"v":0,"d":"$0.00"},{"v":0,"d":"$0.00"},{"v":0,"d":"$0.00"},{"v":0,"d":"$0.00"},{"v":0,"d":"$0.00"},{"v":0,"d":"$0.00"},{"v":0,"d":"$0.00"},{"v":0,"d":"$0.00"},{"v":0,"d":"$0.00"},{"v":0,"d":"$0.00"},{"$f":"'MMA Rev-Exp Region 5'!AV$58","v":{"v":0,"d":"$0.00"}}]
["MMA",null,null,{"$f":"Jurat!I$1","v":0},{"$f":"Jurat!D$33","v":"00:00:00"},"PY","1917-01-01","Region 5","Operating Expense","Medical Benefits Expense","Pharmacy Services","8.6","Prescription Drugs Subcapitation",{"v":0,"d":"$0.00"},{"v":0,"d":"$0.00"},{"v":0,"d":"$0.00"},{"v":0,"d":"$0.00"},{"v":0,"d":"$0.00"},{"v":0,"d":"$0.00"},{"v":0,"d":"$0.00"},{"v":0,"d":"$0.00"},{"v":0,"d":"$0.00"},{"v":0,"d":"$0.00"},{"v":0,"d":"$0.00"},{"$f":"'MMA Rev-Exp Region 5'!AV$61","v":{"v":0,"d":"$0.00"}}]
["MMA",null,null,{"$f":"Jurat!I$1","v":0},{"$f":"Jurat!D$33","v":"00:00:00"},"PY","1917-01-01","Region 5","Operating Expense","Medical Benefits Expense","Other MMA Services","9.3","DME FFS",{"v":0,"d":"$0.00"},{"v":0,"d":"$0.00"},{"v":0,"d":"$0.00"},{"v":0,"d":"$0.00"},{"v":0,"d":"$0.00"},{"v":0,"d":"$0.00"},{"v":0,"d":"$0.00"},{"v":0,"d":"$0.00"},{"v":0,"d":"$0.00"},{"v":0,"d":"$0.00"},{"v":0,"d":"$0.00"},{"$f":"'MMA Rev-Exp Region 5'!AV$66","v":{"v":0,"d":"$0.00"}}]
["MMA",null,null,{"$f":"Jurat!I$1","v":0},{"$f":"Jurat!D$33","v":"00:00:00"},"PY","1917-01-01","Region 5","Operating Expense","Medical Benefits Expense","Other MMA Services","9.6","Ending IBNP for Other Services",{"v":0,"d":"$0.00"},{"v":0,"d":"$0.00"},{"v":0,"d":"$0.00"},{"v":0,"d":"$0.00"},{"v":0,"d":"$0.00"},{"v":0,"d":"$0.00"},{"v":0,"d":"$0.00"},{"v":0,"d":"$0.00"},{"v":0,"d":"$0.00"},{"v":0,"d":"$0.00"},{"v":0,"d":"$0.00"},{"$f":"'MMA Rev-Exp Region 5'!AV$69","v":{"v":0,"d":"$0.00"}}]
["MMA",null,null,{"$f":"Jurat!I$1","v":0},{"$f":"Jurat!D$33","v":"00:00:00"},"PY","1917-01-01","Region 5","Operating Expense","Medical Benefits Expense","Expanded Benefits","10.3","Ending IBNP for Expanded Benefits",{"v":0,"d":"$0.00"},{"v":0,"d":"$0.00"},{"v":0,"d":"$0.00"},{"v":0,"d":"$0.00"},{"v":0,"d":"$0.00"},{"v":0,"d":"$0.00"},{"v":0,"d":"$0.00"},{"v":0,"d":"$0.00"},{"v":0,"d":"$0.00"},{"v":0,"d":"$0.00"},{"v":0,"d":"$0.00"},{"$f":"'MMA Rev-Exp Region 5'!AV$74","v":{"v":0,"d":"$0.00"}}]
["MMA",null,null,{"$f":"Jurat!I$1","v":0},{"$f":"Jurat!D$33","v":"00:00:00"},"PY","1917-01-01","Region 5","Operating Expense","Medical Benefits Expense","Other Medical","11.6.1","Premium Deficiency Reserve",{"v":0,"d":"$0.00"},{"v":0,"d":"$0.00"},{"v":0,"d":"$0.00"},{"v":0,"d":"$0.00"},{"v":0,"d":"$0.00"},{"v":0,"d":"$0.00"},{"v":0,"d":"$0.00"},{"v":0,"d":"$0.00"},{"v":0,"d":"$0.00"},{"v":0,"d":"$0.00"},{"v":0,"d":"$0.00"},{"$f":"'MMA Rev-Exp Region 5'!AV$82","v":{"v":0,"d":"$0.00"}}]
["MMA",null,null,{"$f":"Jurat!I$1","v":0},{"$f":"Jurat!D$33","v":"00:00:00"},"PY","1917-01-01","Region 5","Operating Expense","Medical Benefits Expense","Other Medical","11.8","Reinsurance Premiums",{"v":0,"d":"$0.00"},{"v":0,"d":"$0.00"},{"v":0,"d":"$0.00"},{"v":0,"d":"$0.00"},{"v":0,"d":"$0.00"},{"v":0,"d":"$0.00"},{"v":0,"d":"$0.00"},{"v":0,"d":"$0.00"},{"v":0,"d":"$0.00"},{"v":0,"d":"$0.00"},{"v":0,"d":"$0.00"},{"$f":"'MMA Rev-Exp Region 5'!AV$84","v":{"v":0,"d":"$0.00"}}]
["MMA",null,null,{"$f":"Jurat!I$1","v":0},{"$f":"Jurat!D$33","v":"00:00:00"},"PY","1917-01-01","Region 5","Operating Expense","Administrative Expense","Administrative","12.1","Salaries & Benefits",{"v":0,"d":"$0.00"},{"v":0,"d":"$0.00"},{"v":0,"d":"$0.00"},{"v":0,"d":"$0.00"},{"v":0,"d":"$0.00"},{"v":0,"d":"$0.00"},{"v":0,"d":"$0.00"},{"v":0,"d":"$0.00"},{"v":0,"d":"$0.00"},{"v":0,"d":"$0.00"},{"v":0,"d":"$0.00"},{"$f":"'MMA Rev-Exp Region 5'!AV$90","v":{"v":0,"d":"$0.00"}}]
["MMA",null,null,{"$f":"Jurat!I$1","v":0},{"$f":"Jurat!D$33","v":"00:00:00"},"PY","1917-01-01","Region 5","Operating Expense","Administrative Expense","Administrative","12.4","Marketing Expenses",{"v":0,"d":"$0.00"},{"v":0,"d":"$0.00"},{"v":0,"d":"$0.00"},{"v":0,"d":"$0.00"},{"v":0,"d":"$0.00"},{"v":0,"d":"$0.00"},{"v":0,"d":"$0.00"},{"v":0,"d":"$0.00"},{"v":0,"d":"$0.00"},{"v":0,"d":"$0.00"},{"v":0,"d":"$0.00"},{"$f":"'MMA Rev-Exp Region 5'!AV$93","v":{"v":0,"d":"$0.00"}}]
["MMA",null,null,{"$f":"Jurat!I$1","v":0},{"$f":"Jurat!D$33","v":"00:00:00"},"PY","1917-01-01","Region 5","Operating Expense","Taxes & Fees","Taxes & Fees","13.1","State Premium tax",{"v":0,"d":"$0.00"},{"v":0,"d":"$0.00"},{"v":0,"d":"$0.00"},{"v":0,"d":"$0.00"},{"v":0,"d":"$0.00"},{"v":0,"d":"$0.00"},{"v":0,"d":"$0.00"},{"v":0,"d":"$0.00"},{"v":0,"d":"$0.00"},{"v":0,"d":"$0.00"},{"v":0,"d":"$0.00"},{"$f":"'MMA Rev-Exp Region 5'!AV$97","v":{"v":0,"d":"$0.00"}}]
["MMA",null,null,{"$f":"Jurat!I$1","v":0},{"$f":"Jurat!D$33","v":"00:00:00"},"PY","1917-01-01","Region 4","Member Months","Member Months","Member Months",null,"Member Months",{"v":0,"d":"$0.00"},{"v":0,"d":"$0.00"},{"v":0,"d":"$0.00"},{"v":0,"d":"$0.00"},{"v":0,"d":"$0.00"},{"v":0,"d":"$0.00"},{"v":0,"d":"$0.00"},{"v":0,"d":"$0.00"},{"v":0,"d":"$0.00"},{"v":0,"d":"$0.00"},{"v":0,"d":"$0.00"},{"$f":"'MMA Rev-Exp Region 4'!AV$9","v":{"v":0,"d":"$0.00"}}]
["MMA",null,null,{"$f":"Jurat!I$1","v":0},{"$f":"Jurat!D$33","v":"00:00:00"},"PY","1917-01-01","Region 4","Operating Revenue","Kick Payments","Kick Payments - Hep C","1.3","Hepatitis C Kick Payments",{"v":0,"d":"$0.00"},{"v":0,"d":"$0.00"},{"v":0,"d":"$0.00"},{"v":0,"d":"$0.00"},{"v":0,"d":"$0.00"},{"v":0,"d":"$0.00"},{"v":0,"d":"$0.00"},{"v":0,"d":"$0.00"},{"v":0,"d":"$0.00"},{"v":0,"d":"$0.00"},{"v":0,"d":"$0.00"},{"$f":"'MMA Rev-Exp Region 4'!AV$13","v":{"v":0,"d":"$0.00"}}]
["MMA",null,null,{"$f":"Jurat!I$1","v":0},{"$f":"Jurat!D$33","v":"00:00:00"},"PY","1917-01-01","Region 4","Operating Expense","Medical Benefits Expense","Hospital Services",2.1,"Inpatient FFS",{"v":0,"d":"$0.00"},{"v":0,"d":"$0.00"},{"v":0,"d":"$0.00"},{"v":0,"d":"$0.00"},{"v":0,"d":"$0.00"},{"v":0,"d":"$0.00"},{"v":0,"d":"$0.00"},{"v":0,"d":"$0.00"},{"v":0,"d":"$0.00"},{"v":0,"d":"$0.00"},{"v":0,"d":"$0.00"},{"$f":"'MMA Rev-Exp Region 4'!AV$20","v":{"v":0,"d":"$0.00"}}]
["MMA",null,null,{"$f":"Jurat!I$1","v":0},{"$f":"Jurat!D$33","v":"00:00:00"},"PY","1917-01-01","Region 4","Operating Expense","Medical Benefits Expense","Hospital Services",2.4,"Outpatient FFS: Other than ER ",{"v":0,"d":"$0.00"},{"v":0,"d":"$0.00"},{"v":0,"d":"$0.00"},{"v":0,"d":"$0.00"},{"v":0,"d":"$0.00"},{"v":0,"d":"$0.00"},{"v":0,"d":"$0.00"},{"v":0,"d":"$0.00"},{"v":0,"d":"$0.00"},{"v":0,"d":"$0.00"},{"v":0,"d":"$0.00"},{"$f":"'MMA Rev-Exp Region 4'!AV$23","v":{"v":0,"d":"$0.00"}}]
["MMA",null,null,{"$f":"Jurat!I$1","v":0},{"$f":"Jurat!D$33","v":"00:00:00"},"PY","1917-01-01","Region 4","Operating Expense","Medical Benefits Expense","Hospital Services","2.7","Hospital Settlements",{"v":0,"d":"$0.00"},{"v":0,"d":"$0.00"},{"v":0,"d":"$0.00"},{"v":0,"d":"$0.00"},{"v":0,"d":"$0.00"},{"v":0,"d":"$0.00"},{"v":0,"d":"$0.00"},{"v":0,"d":"$0.00"},{"v":0,"d":"$0.00"},{"v":0,"d":"$0.00"},{"v":0,"d":"$0.00"},{"$f":"'MMA Rev-Exp Region 4'!AV$26","v":{"v":0,"d":"$0.00"}}]
["MMA",null,null,{"$f":"Jurat!I$1","v":0},{"$f":"Jurat!D$33","v":"00:00:00"},"PY","1917-01-01","Region 4","Operating Expense","Medical Benefits Expense","Professional Services",3.1,"Primary Care FFS",{"v":0,"d":"$0.00"},{"v":0,"d":"$0.00"},{"v":0,"d":"$0.00"},{"v":0,"d":"$0.00"},{"v":0,"d":"$0.00"},{"v":0,"d":"$0.00"},{"v":0,"d":"$0.00"},{"v":0,"d":"$0.00"},{"v":0,"d":"$0.00"},{"v":0,"d":"$0.00"},{"v":0,"d":"$0.00"},{"$f":"'MMA Rev-Exp Region 4'!AV$29","v":{"v":0,"d":"$0.00"}}]
["MMA",null,null,{"$f":"Jurat!I$1","v":0},{"$f":"Jurat!D$33","v":"00:00:00"},"PY","1917-01-01","Region 4","Operating Expense","Medical Benefits Expense","Professional Services",3.2,"Specialty Care FFS",{"v":0,"d":"$0.00"},{"v":0,"d":"$0.00"},{"v":0,"d":"$0.00"},{"v":0,"d":"$0.00"},{"v":0,"d":"$0.00"},{"v":0,"d":"$0.00"},{"v":0,"d":"$0.00"},{"v":0,"d":"$0.00"},{"v":0,"d":"$0.00"},{"v":0,"d":"$0.00"},{"v":0,"d":"$0.00"},{"$f":"'MMA Rev-Exp Region 4'!AV$30","v":{"v":0,"d":"$0.00"}}]
["MMA",null,null,{"$f":"Jurat!I$1","v":0},{"$f":"Jurat!D$33","v":"00:00:00"},"PY","1917-01-01","Region 4","Operating Expense","Medical Benefits Expense","Professional Services","3.6","Ending IBNP for Professional Services",{"v":0,"d":"$0.00"},{"v":0,"d":"$0.00"},{"v":0,"d":"$0.00"},{"v":0,"d":"$0.00"},{"v":0,"d":"$0.00"},{"v":0,"d":"$0.00"},{"v":0,"d":"$0.00"},{"v":0,"d":"$0.00"},{"v":0,"d":"$0.00"},{"v":0,"d":"$0.00"},{"v":0,"d":"$0.00"},{"$f":"'MMA Rev-Exp Region 4'!AV$34","v":{"v":0,"d":"$0.00"}}]
["MMA",null,null,{"$f":"Jurat!I$1","v":0},{"$f":"Jurat!D$33","v":"00:00:00"},"PY","1917-01-01","Region 4","Operating Expense","Medical Benefits Expense","Maternity Services","4.2.1","Ending IBNP for Maternity Services",{"v":0,"d":"$0.00"},{"v":0,"d":"$0.00"},{"v":0,"d":"$0.00"},{"v":0,"d":"$0.00"},{"v":0,"d":"$0.00"},{"v":0,"d":"$0.00"},{"v":0,"d":"$0.00"},{"v":0,"d":"$0.00"},{"v":0,"d":"$0.00"},{"v":0,"d":"$0.00"},{"v":0,"d":"$0.00"},{"$f":"'MMA Rev-Exp Region 4'!AV$38","v":{"v":0,"d":"$0.00"}}]
["MMA",null,null,{"$f":"Jurat!I$1","v":0},{"$f":"Jurat!D$33","v":"00:00:00"},"PY","1917-01-01","Region 4","Operating Expense","Medical Benefits Expense","Mental Health Services",5.2,"Mental Health & Substance Abuse Subcapitation",{"v":0,"d":"$0.00"},{"v":0,"d":"$0.00"},{"v":0,"d":"$0.00"},{"v":0,"d":"$0.00"},{"v":0,"d":"$0.00"},{"v":0,"d":"$0.00"},{"v":0,"d":"$0.00"},{"v":0,"d":"$0.00"},{"v":0,"d":"$0.00"},{"v":0,"d":"$0.00"},{"v":0,"d":"$0.00"},{"$f":"'MMA Rev-Exp Region 4'!AV$42","v":{"v":0,"d":"$0.00"}}]
["MMA",null,null,{"$f":"Jurat!I$1","v":0},{"$f":"Jurat!D$33","v":"00:00:00"},"PY","1917-01-01","Region 4","Operating Expense","Medical Benefits Expense","Dental Services",6.2,"Dental Subcapitation",{"v":0,"d":"$0.00"},{"v":0,"d":"$0.00"},{"v":0,"d":"$0.00"},{"v":0,"d":"$0.00"},{"v":0,"d":"$0.00"},{"v":0,"d":"$0.00"},{"v":0,"d":"$0.00"},{"v":0,"d":"$0.00"},{"v":0,"d":"$0.00"},{"v":0,"d":"$0.00"},{"v":0,"d":"$0.00"},{"$f":"'MMA Rev-Exp Region 4'!AV$47","v":{"v":0,"d":"$0.00"}}]
["MMA",null,null,{"$f":"Jurat!I$1","v":0},{"$f":"Jurat!D$33","v":"00:00:00"},"PY","1917-01-01","Region 4","Operating Expense","Medical Benefits Expense","Transportation Services",7.1,"Transportation FFS",{"v":0,"d":"$0.00"},{"v":0,"d":"$0.00"},{"v":0,"d":"$0.00"},{"v":0,"d":"$0.00"},{"v":0,"d":"$0.00"},{"v":0,"d":"$0.00"},{"v":0,"d":"$0.00"},{"v":0,"d":"$0.00"},{"v":0,"d":"$0.00"},{"v":0,"d":"$0.00"},{"v":0,"d":"$0.00"},{"$f":"'MMA Rev-Exp Region 4'!AV$51","v":{"v":0,"d":"$0.00"}}]
["MMA",null,null,{"$f":"Jurat!I$1","v":0},{"$f":"Jurat!D$33","v":"00:00:00"},"PY","1917-01-01","Region 4","Operating Expense","Medical Benefits Expense","Transportation Services","7.4","Transportation Settlements",{"v":0,"d":"$0.00"},{"v":0,"d":"$0.00"},{"v":0,"d":"$0.00"},{"v":0,"d":"$0.00"},{"v":0,"d":"$0.00"},{"v":0,"d":"$0.00"},{"v":0,"d":"$0.00"},{"v":0,"d":"$0.00"},{"v":0,"d":"$0.00"},{"v":0,"d":"$0.00"},{"v":0,"d":"$0.00"},{"$f":"'MMA Rev-Exp Region 4'!AV$54","v":{"v":0,"d":"$0.00"}}]
["MMA",null,null,{"$f":"Jurat!I$1","v":0},{"$f":"Jurat!D$33","v":"00:00:00"},"PY","1917-01-01","Region 4","Operating Expense","Medical Benefits Expense","Pharmacy Services",8.1,"Prescription Drugs FFS",{"v":0,"d":"$0.00"},{"v":0,"d":"$0.00"},{"v":0,"d":"$0.00"},{"v":0,"d":"$0.00"},{"v":0,"d":"$0.00"},{"v":0,"d":"$0.00"},{"v":0,"d":"$0.00"},{"v":0,"d":"$0.00"},{"v":0,"d":"$0.00"},{"v":0,"d":"$0.00"},{"v":0,"d":"$0.00"},{"$f":"'MMA Rev-Exp Region 4'!AV$56","v":{"v":0,"d":"$0.00"}}]
["MMA",null,null,{"$f":"Jurat!I$1","v":0},{"$f":"Jurat!D$33","v":"00:00:00"},"PY","1917-01-01","Region 4","Operating Expense","Medical Benefits Expense","Pharmacy Services","8.4","Prescription Drug Rebates ",{"v":0,"d":"$0.00"},{"v":0,"d":"$0.00"},{"v":0,"d":"$0.00"},{"v":0,"d":"$0.00"},{"v":0,"d":"$0.00"},{"v":0,"d":"$0.00"},{"v":0,"d":"$0.00"},{"v":0,"d":"$0.00"},{"v":0,"d":"$0.00"},{"v":0,"d":"$0.00"},{"v":0,"d":"$0.00"},{"$f":"'MMA Rev-Exp Region 4'!AV$59","v":{"v":0,"d":"$0.00"}}]
["MMA",null,null,{"$f":"Jurat!I$1","v":0},{"$f":"Jurat!D$33","v":"00:00:00"},"PY","1917-01-01","Region 4","Operating Expense","Medical Benefits Expense","Pharmacy Services","8.7","Prescription Drug Settlements",{"v":0,"d":"$0.00"},{"v":0,"d":"$0.00"},{"v":0,"d":"$0.00"},{"v":0,"d":"$0.00"},{"v":0,"d":"$0.00"},{"v":0,"d":"$0.00"},{"v":0,"d":"$0.00"},{"v":0,"d":"$0.00"},{"v":0,"d":"$0.00"},{"v":0,"d":"$0.00"},{"v":0,"d":"$0.00"},{"$f":"'MMA Rev-Exp Region 4'!AV$62","v":{"v":0,"d":"$0.00"}}]
["MMA",null,null,{"$f":"Jurat!I$1","v":0},{"$f":"Jurat!D$33","v":"00:00:00"},"PY","1917-01-01","Region 4","Operating Expense","Medical Benefits Expense","Other MMA Services","9.3","DME FFS",{"v":0,"d":"$0.00"},{"v":0,"d":"$0.00"},{"v":0,"d":"$0.00"},{"v":0,"d":"$0.00"},{"v":0,"d":"$0.00"},{"v":0,"d":"$0.00"},{"v":0,"d":"$0.00"},{"v":0,"d":"$0.00"},{"v":0,"d":"$0.00"},{"v":0,"d":"$0.00"},{"v":0,"d":"$0.00"},{"$f":"'MMA Rev-Exp Region 4'!AV$66","v":{"v":0,"d":"$0.00"}}]
["MMA",null,null,{"$f":"Jurat!I$1","v":0},{"$f":"Jurat!D$33","v":"00:00:00"},"PY","1917-01-01","Region 4","Operating Expense","Medical Benefits Expense","Other MMA Services","9.6","Ending IBNP for Other Services",{"v":0,"d":"$0.00"},{"v":0,"d":"$0.00"},{"v":0,"d":"$0.00"},{"v":0,"d":"$0.00"},{"v":0,"d":"$0.00"},{"v":0,"d":"$0.00"},{"v":0,"d":"$0.00"},{"v":0,"d":"$0.00"},{"v":0,"d":"$0.00"},{"v":0,"d":"$0.00"},{"v":0,"d":"$0.00"},{"$f":"'MMA Rev-Exp Region 4'!AV$69","v":{"v":0,"d":"$0.00"}}]
["MMA",null,null,{"$f":"Jurat!I$1","v":0},{"$f":"Jurat!D$33","v":"00:00:00"},"PY","1917-01-01","Region 4","Operating Expense","Medical Benefits Expense","Expanded Benefits","10.3","Ending IBNP for Expanded Benefits",{"v":0,"d":"$0.00"},{"v":0,"d":"$0.00"},{"v":0,"d":"$0.00"},{"v":0,"d":"$0.00"},{"v":0,"d":"$0.00"},{"v":0,"d":"$0.00"},{"v":0,"d":"$0.00"},{"v":0,"d":"$0.00"},{"v":0,"d":"$0.00"},{"v":0,"d":"$0.00"},{"v":0,"d":"$0.00"},{"$f":"'MMA Rev-Exp Region 4'!AV$74","v":{"v":0,"d":"$0.00"}}]
["MMA",null,null,{"$f":"Jurat!I$1","v":0},{"$f":"Jurat!D$33","v":"00:00:00"},"PY","1917-01-01","Region 4","Operating Expense","Medical Benefits Expense","Other Medical","11.6.1","Premium Deficiency Reserve",{"v":0,"d":"$0.00"},{"v":0,"d":"$0.00"},{"v":0,"d":"$0.00"},{"v":0,"d":"$0.00"},{"v":0,"d":"$0.00"},{"v":0,"d":"$0.00"},{"v":0,"d":"$0.00"},{"v":0,"d":"$0.00"},{"v":0,"d":"$0.00"},{"v":0,"d":"$0.00"},{"v":0,"d":"$0.00"},{"$f":"'MMA Rev-Exp Region 4'!AV$82","v":{"v":0,"d":"$0.00"}}]
["MMA",null,null,{"$f":"Jurat!I$1","v":0},{"$f":"Jurat!D$33","v":"00:00:00"},"PY","1917-01-01","Region 4","Operating Expense","Medical Benefits Expense","Other Medical","11.8","Reinsurance Premiums",{"v":0,"d":"$0.00"},{"v":0,"d":"$0.00"},{"v":0,"d":"$0.00"},{"v":0,"d":"$0.00"},{"v":0,"d":"$0.00"},{"v":0,"d":"$0.00"},{"v":0,"d":"$0.00"},{"v":0,"d":"$0.00"},{"v":0,"d":"$0.00"},{"v":0,"d":"$0.00"},{"v":0,"d":"$0.00"},{"$f":"'MMA Rev-Exp Region 4'!AV$84","v":{"v":0,"d":"$0.00"}}]
["MMA",null,null,{"$f":"Jurat!I$1","v":0},{"$f":"Jurat!D$33","v":"00:00:00"},"PY","1917-01-01","Region 4","Operating Expense","Administrative Expense","Administrative","12.2","Administrative Services",{"v":0,"d":"$0.00"},{"v":0,"d":"$0.00"},{"v":0,"d":"$0.00"},{"v":0,"d":"$0.00"},{"v":0,"d":"$0.00"},{"v":0,"d":"$0.00"},{"v":0,"d":"$0.00"},{"v":0,"d":"$0.00"},{"v":0,"d":"$0.00"},{"v":0,"d":"$0.00"},{"v":0,"d":"$0.00"},{"$f":"'MMA Rev-Exp Region 4'!AV$91","v":{"v":0,"d":"$0.00"}}]
["MMA",null,null,{"$f":"Jurat!I$1","v":0},{"$f":"Jurat!D$33","v":"00:00:00"},"PY","1917-01-01","Region 4","Operating Expense","Administrative Expense","Administrative","12.5","General  Administration",{"v":0,"d":"$0.00"},{"v":0,"d":"$0.00"},{"v":0,"d":"$0.00"},{"v":0,"d":"$0.00"},{"v":0,"d":"$0.00"},{"v":0,"d":"$0.00"},{"v":0,"d":"$0.00"},{"v":0,"d":"$0.00"},{"v":0,"d":"$0.00"},{"v":0,"d":"$0.00"},{"v":0,"d":"$0.00"},{"$f":"'MMA Rev-Exp Region 4'!AV$94","v":{"v":0,"d":"$0.00"}}]
["MMA",null,null,{"$f":"Jurat!I$1","v":0},{"$f":"Jurat!D$33","v":"00:00:00"},"PY","1917-01-01","Region 4","Operating Expense","Taxes & Fees","Taxes & Fees","13.3","Section 9010 Health Insurance Providers Fee",{"v":0,"d":"$0.00"},{"v":0,"d":"$0.00"},{"v":0,"d":"$0.00"},{"v":0,"d":"$0.00"},{"v":0,"d":"$0.00"},{"v":0,"d":"$0.00"},{"v":0,"d":"$0.00"},{"v":0,"d":"$0.00"},{"v":0,"d":"$0.00"},{"v":0,"d":"$0.00"},{"v":0,"d":"$0.00"},{"$f":"'MMA Rev-Exp Region 4'!AV$99","v":{"v":0,"d":"$0.00"}}]
["MMA",null,null,{"$f":"Jurat!I$1","v":0},{"$f":"Jurat!D$33","v":"00:00:00"},"PY","1917-01-01","Region 3","Member Months","Member Months","Member Months",null,"Member Months",{"v":0,"d":"$0.00"},{"v":0,"d":"$0.00"},{"v":0,"d":"$0.00"},{"v":0,"d":"$0.00"},{"v":0,"d":"$0.00"},{"v":0,"d":"$0.00"},{"v":0,"d":"$0.00"},{"v":0,"d":"$0.00"},{"v":0,"d":"$0.00"},{"v":0,"d":"$0.00"},{"v":0,"d":"$0.00"},{"$f":"'MMA Rev-Exp Region 3'!AV$9","v":{"v":0,"d":"$0.00"}}]
["MMA",null,null,{"$f":"Jurat!I$1","v":0},{"$f":"Jurat!D$33","v":"00:00:00"},"PY","1917-01-01","Region 3","Operating Revenue","Kick Payments","Kick Payments - Hep C","1.3","Hepatitis C Kick Payments",{"v":0,"d":"$0.00"},{"v":0,"d":"$0.00"},{"v":0,"d":"$0.00"},{"v":0,"d":"$0.00"},{"v":0,"d":"$0.00"},{"v":0,"d":"$0.00"},{"v":0,"d":"$0.00"},{"v":0,"d":"$0.00"},{"v":0,"d":"$0.00"},{"v":0,"d":"$0.00"},{"v":0,"d":"$0.00"},{"$f":"'MMA Rev-Exp Region 3'!AV$13","v":{"v":0,"d":"$0.00"}}]
["MMA",null,null,{"$f":"Jurat!I$1","v":0},{"$f":"Jurat!D$33","v":"00:00:00"},"PY","1917-01-01","Region 3","Operating Expense","Medical Benefits Expense","Hospital Services",2.1,"Inpatient FFS",{"v":0,"d":"$0.00"},{"v":0,"d":"$0.00"},{"v":0,"d":"$0.00"},{"v":0,"d":"$0.00"},{"v":0,"d":"$0.00"},{"v":0,"d":"$0.00"},{"v":0,"d":"$0.00"},{"v":0,"d":"$0.00"},{"v":0,"d":"$0.00"},{"v":0,"d":"$0.00"},{"v":0,"d":"$0.00"},{"$f":"'MMA Rev-Exp Region 3'!AV$20","v":{"v":0,"d":"$0.00"}}]
["MMA",null,null,{"$f":"Jurat!I$1","v":0},{"$f":"Jurat!D$33","v":"00:00:00"},"PY","1917-01-01","Region 3","Operating Expense","Medical Benefits Expense","Hospital Services",2.4,"Outpatient FFS: Other than ER ",{"v":0,"d":"$0.00"},{"v":0,"d":"$0.00"},{"v":0,"d":"$0.00"},{"v":0,"d":"$0.00"},{"v":0,"d":"$0.00"},{"v":0,"d":"$0.00"},{"v":0,"d":"$0.00"},{"v":0,"d":"$0.00"},{"v":0,"d":"$0.00"},{"v":0,"d":"$0.00"},{"v":0,"d":"$0.00"},{"$f":"'MMA Rev-Exp Region 3'!AV$23","v":{"v":0,"d":"$0.00"}}]
["MMA",null,null,{"$f":"Jurat!I$1","v":0},{"$f":"Jurat!D$33","v":"00:00:00"},"PY","1917-01-01","Region 3","Operating Expense","Medical Benefits Expense","Hospital Services",2.5,"Ending IBNP for Outpatient Hospital Services",{"v":0,"d":"$0.00"},{"v":0,"d":"$0.00"},{"v":0,"d":"$0.00"},{"v":0,"d":"$0.00"},{"v":0,"d":"$0.00"},{"v":0,"d":"$0.00"},{"v":0,"d":"$0.00"},{"v":0,"d":"$0.00"},{"v":0,"d":"$0.00"},{"v":0,"d":"$0.00"},{"v":0,"d":"$0.00"},{"$f":"'MMA Rev-Exp Region 3'!AV$24","v":{"v":0,"d":"$0.00"}}]
["MMA",null,null,{"$f":"Jurat!I$1","v":0},{"$f":"Jurat!D$33","v":"00:00:00"},"PY","1917-01-01","Region 3","Operating Expense","Medical Benefits Expense","Hospital Services","2.7.1","Transplant Services",{"v":0,"d":"$0.00"},{"v":0,"d":"$0.00"},{"v":0,"d":"$0.00"},{"v":0,"d":"$0.00"},{"v":0,"d":"$0.00"},{"v":0,"d":"$0.00"},{"v":0,"d":"$0.00"},{"v":0,"d":"$0.00"},{"v":0,"d":"$0.00"},{"v":0,"d":"$0.00"},{"v":0,"d":"$0.00"},{"$f":"'MMA Rev-Exp Region 3'!AV$27","v":{"v":0,"d":"$0.00"}}]
["MMA",null,null,{"$f":"Jurat!I$1","v":0},{"$f":"Jurat!D$33","v":"00:00:00"},"PY","1917-01-01","Region 3","Operating Expense","Medical Benefits Expense","Professional Services",3.3,"Other Professional FFS",{"v":0,"d":"$0.00"},{"v":0,"d":"$0.00"},{"v":0,"d":"$0.00"},{"v":0,"d":"$0.00"},{"v":0,"d":"$0.00"},{"v":0,"d":"$0.00"},{"v":0,"d":"$0.00"},{"v":0,"d":"$0.00"},{"v":0,"d":"$0.00"},{"v":0,"d":"$0.00"},{"v":0,"d":"$0.00"},{"$f":"'MMA Rev-Exp Region 3'!AV$31","v":{"v":0,"d":"$0.00"}}]
["MMA",null,null,{"$f":"Jurat!I$1","v":0},{"$f":"Jurat!D$33","v":"00:00:00"},"PY","1917-01-01","Region 3","Operating Expense","Medical Benefits Expense","Professional Services","3.7","Professional Services Settlements",{"v":0,"d":"$0.00"},{"v":0,"d":"$0.00"},{"v":0,"d":"$0.00"},{"v":0,"d":"$0.00"},{"v":0,"d":"$0.00"},{"v":0,"d":"$0.00"},{"v":0,"d":"$0.00"},{"v":0,"d":"$0.00"},{"v":0,"d":"$0.00"},{"v":0,"d":"$0.00"},{"v":0,"d":"$0.00"},{"$f":"'MMA Rev-Exp Region 3'!AV$35","v":{"v":0,"d":"$0.00"}}]
["MMA",null,null,{"$f":"Jurat!I$1","v":0},{"$f":"Jurat!D$33","v":"00:00:00"},"PY","1917-01-01","Region 3","Operating Expense","Medical Benefits Expense","Maternity Services","4.3.1","Maternity Settlements",{"v":0,"d":"$0.00"},{"v":0,"d":"$0.00"},{"v":0,"d":"$0.00"},{"v":0,"d":"$0.00"},{"v":0,"d":"$0.00"},{"v":0,"d":"$0.00"},{"v":0,"d":"$0.00"},{"v":0,"d":"$0.00"},{"v":0,"d":"$0.00"},{"v":0,"d":"$0.00"},{"v":0,"d":"$0.00"},{"$f":"'MMA Rev-Exp Region 3'!AV$39","v":{"v":0,"d":"$0.00"}}]
["MMA",null,null,{"$f":"Jurat!I$1","v":0},{"$f":"Jurat!D$33","v":"00:00:00"},"PY","1917-01-01","Region 3","Operating Expense","Medical Benefits Expense","Mental Health Services",5.2,"Mental Health & Substance Abuse Subcapitation",{"v":0,"d":"$0.00"},{"v":0,"d":"$0.00"},{"v":0,"d":"$0.00"},{"v":0,"d":"$0.00"},{"v":0,"d":"$0.00"},{"v":0,"d":"$0.00"},{"v":0,"d":"$0.00"},{"v":0,"d":"$0.00"},{"v":0,"d":"$0.00"},{"v":0,"d":"$0.00"},{"v":0,"d":"$0.00"},{"$f":"'MMA Rev-Exp Region 3'!AV$42","v":{"v":0,"d":"$0.00"}}]
["MMA",null,null,{"$f":"Jurat!I$1","v":0},{"$f":"Jurat!D$33","v":"00:00:00"},"PY","1917-01-01","Region 3","Operating Expense","Medical Benefits Expense","Mental Health Services",5.3,"Ending IBNP for Mental Health & Substance Abuse",{"v":0,"d":"$0.00"},{"v":0,"d":"$0.00"},{"v":0,"d":"$0.00"},{"v":0,"d":"$0.00"},{"v":0,"d":"$0.00"},{"v":0,"d":"$0.00"},{"v":0,"d":"$0.00"},{"v":0,"d":"$0.00"},{"v":0,"d":"$0.00"},{"v":0,"d":"$0.00"},{"v":0,"d":"$0.00"},{"$f":"'MMA Rev-Exp Region 3'!AV$43","v":{"v":0,"d":"$0.00"}}]
["MMA",null,null,{"$f":"Jurat!I$1","v":0},{"$f":"Jurat!D$33","v":"00:00:00"},"PY","1917-01-01","Region 3","Operating Expense","Medical Benefits Expense","Mental Health Services","5.4","Mental Health Settlements",{"v":0,"d":"$0.00"},{"v":0,"d":"$0.00"},{"v":0,"d":"$0.00"},{"v":0,"d":"$0.00"},{"v":0,"d":"$0.00"},{"v":0,"d":"$0.00"},{"v":0,"d":"$0.00"},{"v":0,"d":"$0.00"},{"v":0,"d":"$0.00"},{"v":0,"d":"$0.00"},{"v":0,"d":"$0.00"},{"$f":"'MMA Rev-Exp Region 3'!AV$44","v":{"v":0,"d":"$0.00"}}]
["MMA",null,null,{"$f":"Jurat!I$1","v":0},{"$f":"Jurat!D$33","v":"00:00:00"},"PY","1917-01-01","Region 3","Operating Expense","Medical Benefits Expense","Dental Services",6.1,"Dental FFS",{"v":0,"d":"$0.00"},{"v":0,"d":"$0.00"},{"v":0,"d":"$0.00"},{"v":0,"d":"$0.00"},{"v":0,"d":"$0.00"},{"v":0,"d":"$0.00"},{"v":0,"d":"$0.00"},{"v":0,"d":"$0.00"},{"v":0,"d":"$0.00"},{"v":0,"d":"$0.00"},{"v":0,"d":"$0.00"},{"$f":"'MMA Rev-Exp Region 3'!AV$46","v":{"v":0,"d":"$0.00"}}]
["MMA",null,null,{"$f":"Jurat!I$1","v":0},{"$f":"Jurat!D$33","v":"00:00:00"},"PY","1917-01-01","Region 3","Operating Expense","Medical Benefits Expense","Dental Services",6.2,"Dental Subcapitation",{"v":0,"d":"$0.00"},{"v":0,"d":"$0.00"},{"v":0,"d":"$0.00"},{"v":0,"d":"$0.00"},{"v":0,"d":"$0.00"},{"v":0,"d":"$0.00"},{"v":0,"d":"$0.00"},{"v":0,"d":"$0.00"},{"v":0,"d":"$0.00"},{"v":0,"d":"$0.00"},{"v":0,"d":"$0.00"},{"$f":"'MMA Rev-Exp Region 3'!AV$47","v":{"v":0,"d":"$0.00"}}]
["MMA",null,null,{"$f":"Jurat!I$1","v":0},{"$f":"Jurat!D$33","v":"00:00:00"},"PY","1917-01-01","Region 3","Operating Expense","Medical Benefits Expense","Dental Services",6.3,"Ending IBNP for Dental Services",{"v":0,"d":"$0.00"},{"v":0,"d":"$0.00"},{"v":0,"d":"$0.00"},{"v":0,"d":"$0.00"},{"v":0,"d":"$0.00"},{"v":0,"d":"$0.00"},{"v":0,"d":"$0.00"},{"v":0,"d":"$0.00"},{"v":0,"d":"$0.00"},{"v":0,"d":"$0.00"},{"v":0,"d":"$0.00"},{"$f":"'MMA Rev-Exp Region 3'!AV$48","v":{"v":0,"d":"$0.00"}}]
["MMA",null,null,{"$f":"Jurat!I$1","v":0},{"$f":"Jurat!D$33","v":"00:00:00"},"PY","1917-01-01","Region 3","Operating Expense","Medical Benefits Expense","Dental Services","6.4","Dental Settlements",{"v":0,"d":"$0.00"},{"v":0,"d":"$0.00"},{"v":0,"d":"$0.00"},{"v":0,"d":"$0.00"},{"v":0,"d":"$0.00"},{"v":0,"d":"$0.00"},{"v":0,"d":"$0.00"},{"v":0,"d":"$0.00"},{"v":0,"d":"$0.00"},{"v":0,"d":"$0.00"},{"v":0,"d":"$0.00"},{"$f":"'MMA Rev-Exp Region 3'!AV$49","v":{"v":0,"d":"$0.00"}}]
["MMA",null,null,{"$f":"Jurat!I$1","v":0},{"$f":"Jurat!D$33","v":"00:00:00"},"PY","1917-01-01","Region 3","Operating Expense","Medical Benefits Expense","Transportation Services",7.1,"Transportation FFS",{"v":0,"d":"$0.00"},{"v":0,"d":"$0.00"},{"v":0,"d":"$0.00"},{"v":0,"d":"$0.00"},{"v":0,"d":"$0.00"},{"v":0,"d":"$0.00"},{"v":0,"d":"$0.00"},{"v":0,"d":"$0.00"},{"v":0,"d":"$0.00"},{"v":0,"d":"$0.00"},{"v":0,"d":"$0.00"},{"$f":"'MMA Rev-Exp Region 3'!AV$51","v":{"v":0,"d":"$0.00"}}]
["MMA",null,null,{"$f":"Jurat!I$1","v":0},{"$f":"Jurat!D$33","v":"00:00:00"},"PY","1917-01-01","Region 3","Operating Expense","Medical Benefits Expense","Transportation Services",7.2,"Transportation Subcapitation",{"v":0,"d":"$0.00"},{"v":0,"d":"$0.00"},{"v":0,"d":"$0.00"},{"v":0,"d":"$0.00"},{"v":0,"d":"$0.00"},{"v":0,"d":"$0.00"},{"v":0,"d":"$0.00"},{"v":0,"d":"$0.00"},{"v":0,"d":"$0.00"},{"v":0,"d":"$0.00"},{"v":0,"d":"$0.00"},{"$f":"'MMA Rev-Exp Region 3'!AV$52","v":{"v":0,"d":"$0.00"}}]
["MMA",null,null,{"$f":"Jurat!I$1","v":0},{"$f":"Jurat!D$33","v":"00:00:00"},"PY","1917-01-01","Region 3","Operating Expense","Medical Benefits Expense","Transportation Services",7.3,"Ending IBNP for Transportation",{"v":0,"d":"$0.00"},{"v":0,"d":"$0.00"},{"v":0,"d":"$0.00"},{"v":0,"d":"$0.00"},{"v":0,"d":"$0.00"},{"v":0,"d":"$0.00"},{"v":0,"d":"$0.00"},{"v":0,"d":"$0.00"},{"v":0,"d":"$0.00"},{"v":0,"d":"$0.00"},{"v":0,"d":"$0.00"},{"$f":"'MMA Rev-Exp Region 3'!AV$53","v":{"v":0,"d":"$0.00"}}]
["MMA",null,null,{"$f":"Jurat!I$1","v":0},{"$f":"Jurat!D$33","v":"00:00:00"},"PY","1917-01-01","Region 3","Operating Expense","Medical Benefits Expense","Transportation Services","7.4","Transportation Settlements",{"v":0,"d":"$0.00"},{"v":0,"d":"$0.00"},{"v":0,"d":"$0.00"},{"v":0,"d":"$0.00"},{"v":0,"d":"$0.00"},{"v":0,"d":"$0.00"},{"v":0,"d":"$0.00"},{"v":0,"d":"$0.00"},{"v":0,"d":"$0.00"},{"v":0,"d":"$0.00"},{"v":0,"d":"$0.00"},{"$f":"'MMA Rev-Exp Region 3'!AV$54","v":{"v":0,"d":"$0.00"}}]
["MMA",null,null,{"$f":"Jurat!I$1","v":0},{"$f":"Jurat!D$33","v":"00:00:00"},"PY","1917-01-01","Region 3","Operating Expense","Medical Benefits Expense","Pharmacy Services",8.1,"Prescription Drugs FFS",{"v":0,"d":"$0.00"},{"v":0,"d":"$0.00"},{"v":0,"d":"$0.00"},{"v":0,"d":"$0.00"},{"v":0,"d":"$0.00"},{"v":0,"d":"$0.00"},{"v":0,"d":"$0.00"},{"v":0,"d":"$0.00"},{"v":0,"d":"$0.00"},{"v":0,"d":"$0.00"},{"v":0,"d":"$0.00"},{"$f":"'MMA Rev-Exp Region 3'!AV$56","v":{"v":0,"d":"$0.00"}}]
["MMA",null,null,{"$f":"Jurat!I$1","v":0},{"$f":"Jurat!D$33","v":"00:00:00"},"PY","1917-01-01","Region 3","Operating Expense","Medical Benefits Expense","Pharmacy Services","8.2","Hepatitis C Prescription Drug FFS",{"v":0,"d":"$0.00"},{"v":0,"d":"$0.00"},{"v":0,"d":"$0.00"},{"v":0,"d":"$0.00"},{"v":0,"d":"$0.00"},{"v":0,"d":"$0.00"},{"v":0,"d":"$0.00"},{"v":0,"d":"$0.00"},{"v":0,"d":"$0.00"},{"v":0,"d":"$0.00"},{"v":0,"d":"$0.00"},{"$f":"'MMA Rev-Exp Region 3'!AV$57","v":{"v":0,"d":"$0.00"}}]
["MMA",null,null,{"$f":"Jurat!I$1","v":0},{"$f":"Jurat!D$33","v":"00:00:00"},"PY","1917-01-01","Region 3","Operating Expense","Medical Benefits Expense","Pharmacy Services","8.3","Ending IBNP for Prescription Drugs",{"v":0,"d":"$0.00"},{"v":0,"d":"$0.00"},{"v":0,"d":"$0.00"},{"v":0,"d":"$0.00"},{"v":0,"d":"$0.00"},{"v":0,"d":"$0.00"},{"v":0,"d":"$0.00"},{"v":0,"d":"$0.00"},{"v":0,"d":"$0.00"},{"v":0,"d":"$0.00"},{"v":0,"d":"$0.00"},{"$f":"'MMA Rev-Exp Region 3'!AV$58","v":{"v":0,"d":"$0.00"}}]
["MMA",null,null,{"$f":"Jurat!I$1","v":0},{"$f":"Jurat!D$33","v":"00:00:00"},"PY","1917-01-01","Region 3","Operating Expense","Medical Benefits Expense","Pharmacy Services","8.4","Prescription Drug Rebates ",{"v":0,"d":"$0.00"},{"v":0,"d":"$0.00"},{"v":0,"d":"$0.00"},{"v":0,"d":"$0.00"},{"v":0,"d":"$0.00"},{"v":0,"d":"$0.00"},{"v":0,"d":"$0.00"},{"v":0,"d":"$0.00"},{"v":0,"d":"$0.00"},{"v":0,"d":"$0.00"},{"v":0,"d":"$0.00"},{"$f":"'MMA Rev-Exp Region 3'!AV$59","v":{"v":0,"d":"$0.00"}}]
["MMA",null,null,{"$f":"Jurat!I$1","v":0},{"$f":"Jurat!D$33","v":"00:00:00"},"PY","1917-01-01","Region 3","Operating Expense","Medical Benefits Expense","Pharmacy Services","8.5","Ending accrual for Rebates receivable",{"v":0,"d":"$0.00"},{"v":0,"d":"$0.00"},{"v":0,"d":"$0.00"},{"v":0,"d":"$0.00"},{"v":0,"d":"$0.00"},{"v":0,"d":"$0.00"},{"v":0,"d":"$0.00"},{"v":0,"d":"$0.00"},{"v":0,"d":"$0.00"},{"v":0,"d":"$0.00"},{"v":0,"d":"$0.00"},{"$f":"'MMA Rev-Exp Region 3'!AV$60","v":{"v":0,"d":"$0.00"}}]
["MMA",null,null,{"$f":"Jurat!I$1","v":0},{"$f":"Jurat!D$33","v":"00:00:00"},"PY","1917-01-01","Region 3","Operating Expense","Medical Benefits Expense","Pharmacy Services","8.6","Prescription Drugs Subcapitation",{"v":0,"d":"$0.00"},{"v":0,"d":"$0.00"},{"v":0,"d":"$0.00"},{"v":0,"d":"$0.00"},{"v":0,"d":"$0.00"},{"v":0,"d":"$0.00"},{"v":0,"d":"$0.00"},{"v":0,"d":"$0.00"},{"v":0,"d":"$0.00"},{"v":0,"d":"$0.00"},{"v":0,"d":"$0.00"},{"$f":"'MMA Rev-Exp Region 3'!AV$61","v":{"v":0,"d":"$0.00"}}]
["MMA",null,null,{"$f":"Jurat!I$1","v":0},{"$f":"Jurat!D$33","v":"00:00:00"},"PY","1917-01-01","Region 3","Operating Expense","Medical Benefits Expense","Pharmacy Services","8.7","Prescription Drug Settlements",{"v":0,"d":"$0.00"},{"v":0,"d":"$0.00"},{"v":0,"d":"$0.00"},{"v":0,"d":"$0.00"},{"v":0,"d":"$0.00"},{"v":0,"d":"$0.00"},{"v":0,"d":"$0.00"},{"v":0,"d":"$0.00"},{"v":0,"d":"$0.00"},{"v":0,"d":"$0.00"},{"v":0,"d":"$0.00"},{"$f":"'MMA Rev-Exp Region 3'!AV$62","v":{"v":0,"d":"$0.00"}}]
["MMA",null,null,{"$f":"Jurat!I$1","v":0},{"$f":"Jurat!D$33","v":"00:00:00"},"PY","1917-01-01","Region 3","Operating Expense","Medical Benefits Expense","Other MMA Services",9.1,"Home Health, Private Duty Nursing, Personal Care FFS",{"v":0,"d":"$0.00"},{"v":0,"d":"$0.00"},{"v":0,"d":"$0.00"},{"v":0,"d":"$0.00"},{"v":0,"d":"$0.00"},{"v":0,"d":"$0.00"},{"v":0,"d":"$0.00"},{"v":0,"d":"$0.00"},{"v":0,"d":"$0.00"},{"v":0,"d":"$0.00"},{"v":0,"d":"$0.00"},{"$f":"'MMA Rev-Exp Region 3'!AV$64","v":{"v":0,"d":"$0.00"}}]
["MMA",null,null,{"$f":"Jurat!I$1","v":0},{"$f":"Jurat!D$33","v":"00:00:00"},"PY","1917-01-01","Region 3","Operating Expense","Medical Benefits Expense","Other MMA Services","9.2","Hospice FFS",{"v":0,"d":"$0.00"},{"v":0,"d":"$0.00"},{"v":0,"d":"$0.00"},{"v":0,"d":"$0.00"},{"v":0,"d":"$0.00"},{"v":0,"d":"$0.00"},{"v":0,"d":"$0.00"},{"v":0,"d":"$0.00"},{"v":0,"d":"$0.00"},{"v":0,"d":"$0.00"},{"v":0,"d":"$0.00"},{"$f":"'MMA Rev-Exp Region 3'!AV$65","v":{"v":0,"d":"$0.00"}}]
["MMA",null,null,{"$f":"Jurat!I$1","v":0},{"$f":"Jurat!D$33","v":"00:00:00"},"PY","1917-01-01","Region 3","Operating Expense","Medical Benefits Expense","Other MMA Services","9.3","DME FFS",{"v":0,"d":"$0.00"},{"v":0,"d":"$0.00"},{"v":0,"d":"$0.00"},{"v":0,"d":"$0.00"},{"v":0,"d":"$0.00"},{"v":0,"d":"$0.00"},{"v":0,"d":"$0.00"},{"v":0,"d":"$0.00"},{"v":0,"d":"$0.00"},{"v":0,"d":"$0.00"},{"v":0,"d":"$0.00"},{"$f":"'MMA Rev-Exp Region 3'!AV$66","v":{"v":0,"d":"$0.00"}}]
["MMA",null,null,{"$f":"Jurat!I$1","v":0},{"$f":"Jurat!D$33","v":"00:00:00"},"PY","1917-01-01","Region 3","Operating Expense","Medical Benefits Expense","Other MMA Services","9.4","Other State Plan Services FFS",{"v":0,"d":"$0.00"},{"v":0,"d":"$0.00"},{"v":0,"d":"$0.00"},{"v":0,"d":"$0.00"},{"v":0,"d":"$0.00"},{"v":0,"d":"$0.00"},{"v":0,"d":"$0.00"},{"v":0,"d":"$0.00"},{"v":0,"d":"$0.00"},{"v":0,"d":"$0.00"},{"v":0,"d":"$0.00"},{"$f":"'MMA Rev-Exp Region 3'!AV$67","v":{"v":0,"d":"$0.00"}}]
["MMA",null,null,{"$f":"Jurat!I$1","v":0},{"$f":"Jurat!D$33","v":"00:00:00"},"PY","1917-01-01","Region 3","Operating Expense","Medical Benefits Expense","Other MMA Services","9.5","Other Services Subcapitation",{"v":0,"d":"$0.00"},{"v":0,"d":"$0.00"},{"v":0,"d":"$0.00"},{"v":0,"d":"$0.00"},{"v":0,"d":"$0.00"},{"v":0,"d":"$0.00"},{"v":0,"d":"$0.00"},{"v":0,"d":"$0.00"},{"v":0,"d":"$0.00"},{"v":0,"d":"$0.00"},{"v":0,"d":"$0.00"},{"$f":"'MMA Rev-Exp Region 3'!AV$68","v":{"v":0,"d":"$0.00"}}]
["MMA",null,null,{"$f":"Jurat!I$1","v":0},{"$f":"Jurat!D$33","v":"00:00:00"},"PY","1917-01-01","Region 3","Operating Expense","Medical Benefits Expense","Other MMA Services","9.6","Ending IBNP for Other Services",{"v":0,"d":"$0.00"},{"v":0,"d":"$0.00"},{"v":0,"d":"$0.00"},{"v":0,"d":"$0.00"},{"v":0,"d":"$0.00"},{"v":0,"d":"$0.00"},{"v":0,"d":"$0.00"},{"v":0,"d":"$0.00"},{"v":0,"d":"$0.00"},{"v":0,"d":"$0.00"},{"v":0,"d":"$0.00"},{"$f":"'MMA Rev-Exp Region 3'!AV$69","v":{"v":0,"d":"$0.00"}}]
["MMA",null,null,{"$f":"Jurat!I$1","v":0},{"$f":"Jurat!D$33","v":"00:00:00"},"PY","1917-01-01","Region 3","Operating Expense","Medical Benefits Expense","Other MMA Services","9.7","Other Services Settlements",{"v":0,"d":"$0.00"},{"v":0,"d":"$0.00"},{"v":0,"d":"$0.00"},{"v":0,"d":"$0.00"},{"v":0,"d":"$0.00"},{"v":0,"d":"$0.00"},{"v":0,"d":"$0.00"},{"v":0,"d":"$0.00"},{"v":0,"d":"$0.00"},{"v":0,"d":"$0.00"},{"v":0,"d":"$0.00"},{"$f":"'MMA Rev-Exp Region 3'!AV$70","v":{"v":0,"d":"$0.00"}}]
["MMA",null,null,{"$f":"Jurat!I$1","v":0},{"$f":"Jurat!D$33","v":"00:00:00"},"PY","1917-01-01","Region 3","Operating Expense","Medical Benefits Expense","Expanded Benefits","10.1","Expanded Benefits FFS",{"v":0,"d":"$0.00"},{"v":0,"d":"$0.00"},{"v":0,"d":"$0.00"},{"v":0,"d":"$0.00"},{"v":0,"d":"$0.00"},{"v":0,"d":"$0.00"},{"v":0,"d":"$0.00"},{"v":0,"d":"$0.00"},{"v":0,"d":"$0.00"},{"v":0,"d":"$0.00"},{"v":0,"d":"$0.00"},{"$f":"'MMA Rev-Exp Region 3'!AV$72","v":{"v":0,"d":"$0.00"}}]
["MMA",null,null,{"$f":"Jurat!I$1","v":0},{"$f":"Jurat!D$33","v":"00:00:00"},"PY","1917-01-01","Region 3","Operating Expense","Medical Benefits Expense","Expanded Benefits","10.2","Expanded benefits Subcapitation",{"v":0,"d":"$0.00"},{"v":0,"d":"$0.00"},{"v":0,"d":"$0.00"},{"v":0,"d":"$0.00"},{"v":0,"d":"$0.00"},{"v":0,"d":"$0.00"},{"v":0,"d":"$0.00"},{"v":0,"d":"$0.00"},{"v":0,"d":"$0.00"},{"v":0,"d":"$0.00"},{"v":0,"d":"$0.00"},{"$f":"'MMA Rev-Exp Region 3'!AV$73","v":{"v":0,"d":"$0.00"}}]
["MMA",null,null,{"$f":"Jurat!I$1","v":0},{"$f":"Jurat!D$33","v":"00:00:00"},"PY","1917-01-01","Region 3","Operating Expense","Medical Benefits Expense","Expanded Benefits","10.3","Ending IBNP for Expanded Benefits",{"v":0,"d":"$0.00"},{"v":0,"d":"$0.00"},{"v":0,"d":"$0.00"},{"v":0,"d":"$0.00"},{"v":0,"d":"$0.00"},{"v":0,"d":"$0.00"},{"v":0,"d":"$0.00"},{"v":0,"d":"$0.00"},{"v":0,"d":"$0.00"},{"v":0,"d":"$0.00"},{"v":0,"d":"$0.00"},{"$f":"'MMA Rev-Exp Region 3'!AV$74","v":{"v":0,"d":"$0.00"}}]
["MMA",null,null,{"$f":"Jurat!I$1","v":0},{"$f":"Jurat!D$33","v":"00:00:00"},"PY","1917-01-01","Region 3","Operating Expense","Medical Benefits Expense","Expanded Benefits","10.4","Expanded Benefits Settlements",{"v":0,"d":"$0.00"},{"v":0,"d":"$0.00"},{"v":0,"d":"$0.00"},{"v":0,"d":"$0.00"},{"v":0,"d":"$0.00"},{"v":0,"d":"$0.00"},{"v":0,"d":"$0.00"},{"v":0,"d":"$0.00"},{"v":0,"d":"$0.00"},{"v":0,"d":"$0.00"},{"v":0,"d":"$0.00"},{"$f":"'MMA Rev-Exp Region 3'!AV$75","v":{"v":0,"d":"$0.00"}}]
["MMA",null,null,{"$f":"Jurat!I$1","v":0},{"$f":"Jurat!D$33","v":"00:00:00"},"PY","1917-01-01","Region 3","Operating Expense","Medical Benefits Expense","Other Medical","11.5","TPL & Fraud/Abuse Recoveries",{"v":0,"d":"$0.00"},{"v":0,"d":"$0.00"},{"v":0,"d":"$0.00"},{"v":0,"d":"$0.00"},{"v":0,"d":"$0.00"},{"v":0,"d":"$0.00"},{"v":0,"d":"$0.00"},{"v":0,"d":"$0.00"},{"v":0,"d":"$0.00"},{"v":0,"d":"$0.00"},{"v":0,"d":"$0.00"},{"$f":"'MMA Rev-Exp Region 3'!AV$81","v":{"v":0,"d":"$0.00"}}]
["MMA",null,null,{"$f":"Jurat!I$1","v":0},{"$f":"Jurat!D$33","v":"00:00:00"},"PY","1917-01-01","Region 3","Operating Expense","Medical Benefits Expense","Other Medical","11.6.1","Premium Deficiency Reserve",{"v":0,"d":"$0.00"},{"v":0,"d":"$0.00"},{"v":0,"d":"$0.00"},{"v":0,"d":"$0.00"},{"v":0,"d":"$0.00"},{"v":0,"d":"$0.00"},{"v":0,"d":"$0.00"},{"v":0,"d":"$0.00"},{"v":0,"d":"$0.00"},{"v":0,"d":"$0.00"},{"v":0,"d":"$0.00"},{"$f":"'MMA Rev-Exp Region 3'!AV$82","v":{"v":0,"d":"$0.00"}}]
["MMA",null,null,{"$f":"Jurat!I$1","v":0},{"$f":"Jurat!D$33","v":"00:00:00"},"PY","1917-01-01","Region 3","Operating Expense","Medical Benefits Expense","Other Medical","11.8","Reinsurance Premiums",{"v":0,"d":"$0.00"},{"v":0,"d":"$0.00"},{"v":0,"d":"$0.00"},{"v":0,"d":"$0.00"},{"v":0,"d":"$0.00"},{"v":0,"d":"$0.00"},{"v":0,"d":"$0.00"},{"v":0,"d":"$0.00"},{"v":0,"d":"$0.00"},{"v":0,"d":"$0.00"},{"v":0,"d":"$0.00"},{"$f":"'MMA Rev-Exp Region 3'!AV$84","v":{"v":0,"d":"$0.00"}}]
["MMA",null,null,{"$f":"Jurat!I$1","v":0},{"$f":"Jurat!D$33","v":"00:00:00"},"PY","1917-01-01","Region 3","Operating Expense","Medical Benefits Expense","Other Medical","11.9","Reinsurance Recoveries",{"v":0,"d":"$0.00"},{"v":0,"d":"$0.00"},{"v":0,"d":"$0.00"},{"v":0,"d":"$0.00"},{"v":0,"d":"$0.00"},{"v":0,"d":"$0.00"},{"v":0,"d":"$0.00"},{"v":0,"d":"$0.00"},{"v":0,"d":"$0.00"},{"v":0,"d":"$0.00"},{"v":0,"d":"$0.00"},{"$f":"'MMA Rev-Exp Region 3'!AV$85","v":{"v":0,"d":"$0.00"}}]
["MMA",null,null,{"$f":"Jurat!I$1","v":0},{"$f":"Jurat!D$33","v":"00:00:00"},"PY","1917-01-01","Region 3","Operating Expense","Administrative Expense","Administrative","12.1","Salaries & Benefits",{"v":0,"d":"$0.00"},{"v":0,"d":"$0.00"},{"v":0,"d":"$0.00"},{"v":0,"d":"$0.00"},{"v":0,"d":"$0.00"},{"v":0,"d":"$0.00"},{"v":0,"d":"$0.00"},{"v":0,"d":"$0.00"},{"v":0,"d":"$0.00"},{"v":0,"d":"$0.00"},{"v":0,"d":"$0.00"},{"$f":"'MMA Rev-Exp Region 3'!AV$90","v":{"v":0,"d":"$0.00"}}]
["MMA",null,null,{"$f":"Jurat!I$1","v":0},{"$f":"Jurat!D$33","v":"00:00:00"},"PY","1917-01-01","Region 3","Operating Expense","Administrative Expense","Administrative","12.2","Administrative Services",{"v":0,"d":"$0.00"},{"v":0,"d":"$0.00"},{"v":0,"d":"$0.00"},{"v":0,"d":"$0.00"},{"v":0,"d":"$0.00"},{"v":0,"d":"$0.00"},{"v":0,"d":"$0.00"},{"v":0,"d":"$0.00"},{"v":0,"d":"$0.00"},{"v":0,"d":"$0.00"},{"v":0,"d":"$0.00"},{"$f":"'MMA Rev-Exp Region 3'!AV$91","v":{"v":0,"d":"$0.00"}}]
["MMA",null,null,{"$f":"Jurat!I$1","v":0},{"$f":"Jurat!D$33","v":"00:00:00"},"PY","1917-01-01","Region 3","Operating Expense","Administrative Expense","Administrative","12.3","Information Systems",{"v":0,"d":"$0.00"},{"v":0,"d":"$0.00"},{"v":0,"d":"$0.00"},{"v":0,"d":"$0.00"},{"v":0,"d":"$0.00"},{"v":0,"d":"$0.00"},{"v":0,"d":"$0.00"},{"v":0,"d":"$0.00"},{"v":0,"d":"$0.00"},{"v":0,"d":"$0.00"},{"v":0,"d":"$0.00"},{"$f":"'MMA Rev-Exp Region 3'!AV$92","v":{"v":0,"d":"$0.00"}}]
["MMA",null,null,{"$f":"Jurat!I$1","v":0},{"$f":"Jurat!D$33","v":"00:00:00"},"PY","1917-01-01","Region 3","Operating Expense","Administrative Expense","Administrative","12.4","Marketing Expenses",{"v":0,"d":"$0.00"},{"v":0,"d":"$0.00"},{"v":0,"d":"$0.00"},{"v":0,"d":"$0.00"},{"v":0,"d":"$0.00"},{"v":0,"d":"$0.00"},{"v":0,"d":"$0.00"},{"v":0,"d":"$0.00"},{"v":0,"d":"$0.00"},{"v":0,"d":"$0.00"},{"v":0,"d":"$0.00"},{"$f":"'MMA Rev-Exp Region 3'!AV$93","v":{"v":0,"d":"$0.00"}}]
["MMA",null,null,{"$f":"Jurat!I$1","v":0},{"$f":"Jurat!D$33","v":"00:00:00"},"PY","1917-01-01","Region 3","Operating Expense","Administrative Expense","Administrative","12.5","General  Administration",{"v":0,"d":"$0.00"},{"v":0,"d":"$0.00"},{"v":0,"d":"$0.00"},{"v":0,"d":"$0.00"},{"v":0,"d":"$0.00"},{"v":0,"d":"$0.00"},{"v":0,"d":"$0.00"},{"v":0,"d":"$0.00"},{"v":0,"d":"$0.00"},{"v":0,"d":"$0.00"},{"v":0,"d":"$0.00"},{"$f":"'MMA Rev-Exp Region 3'!AV$94","v":{"v":0,"d":"$0.00"}}]
["MMA",null,null,{"$f":"Jurat!I$1","v":0},{"$f":"Jurat!D$33","v":"00:00:00"},"PY","1917-01-01","Region 3","Operating Expense","Administrative Expense","Administrative","12.6","Compliance/Regulatory",{"v":0,"d":"$0.00"},{"v":0,"d":"$0.00"},{"v":0,"d":"$0.00"},{"v":0,"d":"$0.00"},{"v":0,"d":"$0.00"},{"v":0,"d":"$0.00"},{"v":0,"d":"$0.00"},{"v":0,"d":"$0.00"},{"v":0,"d":"$0.00"},{"v":0,"d":"$0.00"},{"v":0,"d":"$0.00"},{"$f":"'MMA Rev-Exp Region 3'!AV$95","v":{"v":0,"d":"$0.00"}}]
["MMA",null,null,{"$f":"Jurat!I$1","v":0},{"$f":"Jurat!D$33","v":"00:00:00"},"PY","1917-01-01","Region 3","Operating Expense","Taxes & Fees","Taxes & Fees","13.1","State Premium tax",{"v":0,"d":"$0.00"},{"v":0,"d":"$0.00"},{"v":0,"d":"$0.00"},{"v":0,"d":"$0.00"},{"v":0,"d":"$0.00"},{"v":0,"d":"$0.00"},{"v":0,"d":"$0.00"},{"v":0,"d":"$0.00"},{"v":0,"d":"$0.00"},{"v":0,"d":"$0.00"},{"v":0,"d":"$0.00"},{"$f":"'MMA Rev-Exp Region 3'!AV$97","v":{"v":0,"d":"$0.00"}}]
["MMA",null,null,{"$f":"Jurat!I$1","v":0},{"$f":"Jurat!D$33","v":"00:00:00"},"PY","1917-01-01","Region 3","Operating Expense","Taxes & Fees","Taxes & Fees","13.2","Department of Insurance Assessments",{"v":0,"d":"$0.00"},{"v":0,"d":"$0.00"},{"v":0,"d":"$0.00"},{"v":0,"d":"$0.00"},{"v":0,"d":"$0.00"},{"v":0,"d":"$0.00"},{"v":0,"d":"$0.00"},{"v":0,"d":"$0.00"},{"v":0,"d":"$0.00"},{"v":0,"d":"$0.00"},{"v":0,"d":"$0.00"},{"$f":"'MMA Rev-Exp Region 3'!AV$98","v":{"v":0,"d":"$0.00"}}]
["MMA",null,null,{"$f":"Jurat!I$1","v":0},{"$f":"Jurat!D$33","v":"00:00:00"},"PY","1917-01-01","Region 3","Operating Expense","Taxes & Fees","Taxes & Fees","13.3","Section 9010 Health Insurance Providers Fee",{"v":0,"d":"$0.00"},{"v":0,"d":"$0.00"},{"v":0,"d":"$0.00"},{"v":0,"d":"$0.00"},{"v":0,"d":"$0.00"},{"v":0,"d":"$0.00"},{"v":0,"d":"$0.00"},{"v":0,"d":"$0.00"},{"v":0,"d":"$0.00"},{"v":0,"d":"$0.00"},{"v":0,"d":"$0.00"},{"$f":"'MMA Rev-Exp Region 3'!AV$99","v":{"v":0,"d":"$0.00"}}]
["MMA",null,null,{"$f":"Jurat!I$1","v":0},{"$f":"Jurat!D$33","v":"00:00:00"},"PY","1917-01-01","Region 3","Non-Operating Expense","Income Tax Expense","Income Tax Expense","16.0","Income Tax Expense",{"v":0,"d":"$0.00"},{"v":0,"d":"$0.00"},{"v":0,"d":"$0.00"},{"v":0,"d":"$0.00"},{"v":0,"d":"$0.00"},{"v":0,"d":"$0.00"},{"v":0,"d":"$0.00"},{"v":0,"d":"$0.00"},{"v":0,"d":"$0.00"},{"v":0,"d":"$0.00"},{"v":0,"d":"$0.00"},{"$f":"'MMA Rev-Exp Region 3'!AV$106","v":{"v":0,"d":"$0.00"}}]
["MMA",null,null,{"$f":"Jurat!I$1","v":0},{"$f":"Jurat!D$33","v":"00:00:00"},"PY","1917-01-01","Region 2","Member Months","Member Months","Member Months",null,"Member Months",{"v":0,"d":"$0.00"},{"v":0,"d":"$0.00"},{"v":0,"d":"$0.00"},{"v":0,"d":"$0.00"},{"v":0,"d":"$0.00"},{"v":0,"d":"$0.00"},{"v":0,"d":"$0.00"},{"v":0,"d":"$0.00"},{"v":0,"d":"$0.00"},{"v":0,"d":"$0.00"},{"v":0,"d":"$0.00"},{"$f":"'MMA Rev-Exp Region 2'!AV$9","v":{"v":0,"d":"$0.00"}}]
["MMA",null,null,{"$f":"Jurat!I$1","v":0},{"$f":"Jurat!D$33","v":"00:00:00"},"PY","1917-01-01","Region 2","Operating Revenue","Capitation","Capitation",1.1,"Capitation",{"v":0,"d":"$0.00"},{"v":0,"d":"$0.00"},{"v":0,"d":"$0.00"},{"v":0,"d":"$0.00"},{"v":0,"d":"$0.00"},{"v":0,"d":"$0.00"},{"v":0,"d":"$0.00"},{"v":0,"d":"$0.00"},{"v":0,"d":"$0.00"},{"v":0,"d":"$0.00"},{"v":0,"d":"$0.00"},{"$f":"'MMA Rev-Exp Region 2'!AV$11","v":{"v":0,"d":"$0.00"}}]
["MMA",null,null,{"$f":"Jurat!I$1","v":0},{"$f":"Jurat!D$33","v":"00:00:00"},"PY","1917-01-01","Region 2","Operating Revenue","Kick Payments","Kick Payments - Transplant",1.2,"Transplant Kick Payments",{"v":0,"d":"$0.00"},{"v":0,"d":"$0.00"},{"v":0,"d":"$0.00"},{"v":0,"d":"$0.00"},{"v":0,"d":"$0.00"},{"v":0,"d":"$0.00"},{"v":0,"d":"$0.00"},{"v":0,"d":"$0.00"},{"v":0,"d":"$0.00"},{"v":0,"d":"$0.00"},{"v":0,"d":"$0.00"},{"$f":"'MMA Rev-Exp Region 2'!AV$12","v":{"v":0,"d":"$0.00"}}]
["MMA",null,null,{"$f":"Jurat!I$1","v":0},{"$f":"Jurat!D$33","v":"00:00:00"},"PY","1917-01-01","Region 2","Operating Revenue","Kick Payments","Kick Payments - Hep C","1.3","Hepatitis C Kick Payments",{"v":0,"d":"$0.00"},{"v":0,"d":"$0.00"},{"v":0,"d":"$0.00"},{"v":0,"d":"$0.00"},{"v":0,"d":"$0.00"},{"v":0,"d":"$0.00"},{"v":0,"d":"$0.00"},{"v":0,"d":"$0.00"},{"v":0,"d":"$0.00"},{"v":0,"d":"$0.00"},{"v":0,"d":"$0.00"},{"$f":"'MMA Rev-Exp Region 2'!AV$13","v":{"v":0,"d":"$0.00"}}]
["MMA",null,null,{"$f":"Jurat!I$1","v":0},{"$f":"Jurat!D$33","v":"00:00:00"},"PY","1917-01-01","Region 2","Operating Revenue","Kick Payments","Kick Payments - Maternity","1.4.1","Maternity Kick Payments",{"v":0,"d":"$0.00"},{"v":0,"d":"$0.00"},{"v":0,"d":"$0.00"},{"v":0,"d":"$0.00"},{"v":0,"d":"$0.00"},{"v":0,"d":"$0.00"},{"v":0,"d":"$0.00"},{"v":0,"d":"$0.00"},{"v":0,"d":"$0.00"},{"v":0,"d":"$0.00"},{"v":0,"d":"$0.00"},{"$f":"'MMA Rev-Exp Region 2'!AV$14","v":{"v":0,"d":"$0.00"}}]
["MMA",null,null,{"$f":"Jurat!I$1","v":0},{"$f":"Jurat!D$33","v":"00:00:00"},"PY","1917-01-01","Region 2","Operating Revenue","Other Revenue","Other Revenue - 9010","1.5","ACA § 9010 related payments",{"v":0,"d":"$0.00"},{"v":0,"d":"$0.00"},{"v":0,"d":"$0.00"},{"v":0,"d":"$0.00"},{"v":0,"d":"$0.00"},{"v":0,"d":"$0.00"},{"v":0,"d":"$0.00"},{"v":0,"d":"$0.00"},{"v":0,"d":"$0.00"},{"v":0,"d":"$0.00"},{"v":0,"d":"$0.00"},{"$f":"'MMA Rev-Exp Region 2'!AV$15","v":{"v":0,"d":"$0.00"}}]
["MMA",null,null,{"$f":"Jurat!I$1","v":0},{"$f":"Jurat!D$33","v":"00:00:00"},"PY","1917-01-01","Region 2","Operating Revenue","Other Revenue","Other Revenue","1.6","Other Revenue",{"v":0,"d":"$0.00"},{"v":0,"d":"$0.00"},{"v":0,"d":"$0.00"},{"v":0,"d":"$0.00"},{"v":0,"d":"$0.00"},{"v":0,"d":"$0.00"},{"v":0,"d":"$0.00"},{"v":0,"d":"$0.00"},{"v":0,"d":"$0.00"},{"v":0,"d":"$0.00"},{"v":0,"d":"$0.00"},{"$f":"'MMA Rev-Exp Region 2'!AV$16","v":{"v":0,"d":"$0.00"}}]
["MMA",null,null,{"$f":"Jurat!I$1","v":0},{"$f":"Jurat!D$33","v":"00:00:00"},"PY","1917-01-01","Region 2","Operating Expense","Medical Benefits Expense","Hospital Services",2.1,"Inpatient FFS",{"v":0,"d":"$0.00"},{"v":0,"d":"$0.00"},{"v":0,"d":"$0.00"},{"v":0,"d":"$0.00"},{"v":0,"d":"$0.00"},{"v":0,"d":"$0.00"},{"v":0,"d":"$0.00"},{"v":0,"d":"$0.00"},{"v":0,"d":"$0.00"},{"v":0,"d":"$0.00"},{"v":0,"d":"$0.00"},{"$f":"'MMA Rev-Exp Region 2'!AV$20","v":{"v":0,"d":"$0.00"}}]
["MMA",null,null,{"$f":"Jurat!I$1","v":0},{"$f":"Jurat!D$33","v":"00:00:00"},"PY","1917-01-01","Region 2","Operating Expense","Medical Benefits Expense","Hospital Services",2.2,"Ending IBNP for Inpatient Hospital Services",{"v":0,"d":"$0.00"},{"v":0,"d":"$0.00"},{"v":0,"d":"$0.00"},{"v":0,"d":"$0.00"},{"v":0,"d":"$0.00"},{"v":0,"d":"$0.00"},{"v":0,"d":"$0.00"},{"v":0,"d":"$0.00"},{"v":0,"d":"$0.00"},{"v":0,"d":"$0.00"},{"v":0,"d":"$0.00"},{"$f":"'MMA Rev-Exp Region 2'!AV$21","v":{"v":0,"d":"$0.00"}}]
["MMA",null,null,{"$f":"Jurat!I$1","v":0},{"$f":"Jurat!D$33","v":"00:00:00"},"PY","1917-01-01","Region 2","Operating Expense","Medical Benefits Expense","Hospital Services",2.3,"Outpatient FFS: ER",{"v":0,"d":"$0.00"},{"v":0,"d":"$0.00"},{"v":0,"d":"$0.00"},{"v":0,"d":"$0.00"},{"v":0,"d":"$0.00"},{"v":0,"d":"$0.00"},{"v":0,"d":"$0.00"},{"v":0,"d":"$0.00"},{"v":0,"d":"$0.00"},{"v":0,"d":"$0.00"},{"v":0,"d":"$0.00"},{"$f":"'MMA Rev-Exp Region 2'!AV$22","v":{"v":0,"d":"$0.00"}}]
["MMA",null,null,{"$f":"Jurat!I$1","v":0},{"$f":"Jurat!D$33","v":"00:00:00"},"PY","1917-01-01","Region 2","Operating Expense","Medical Benefits Expense","Hospital Services",2.4,"Outpatient FFS: Other than ER ",{"v":0,"d":"$0.00"},{"v":0,"d":"$0.00"},{"v":0,"d":"$0.00"},{"v":0,"d":"$0.00"},{"v":0,"d":"$0.00"},{"v":0,"d":"$0.00"},{"v":0,"d":"$0.00"},{"v":0,"d":"$0.00"},{"v":0,"d":"$0.00"},{"v":0,"d":"$0.00"},{"v":0,"d":"$0.00"},{"$f":"'MMA Rev-Exp Region 2'!AV$23","v":{"v":0,"d":"$0.00"}}]
["MMA",null,null,{"$f":"Jurat!I$1","v":0},{"$f":"Jurat!D$33","v":"00:00:00"},"PY","1917-01-01","Region 2","Operating Expense","Medical Benefits Expense","Hospital Services",2.5,"Ending IBNP for Outpatient Hospital Services",{"v":0,"d":"$0.00"},{"v":0,"d":"$0.00"},{"v":0,"d":"$0.00"},{"v":0,"d":"$0.00"},{"v":0,"d":"$0.00"},{"v":0,"d":"$0.00"},{"v":0,"d":"$0.00"},{"v":0,"d":"$0.00"},{"v":0,"d":"$0.00"},{"v":0,"d":"$0.00"},{"v":0,"d":"$0.00"},{"$f":"'MMA Rev-Exp Region 2'!AV$24","v":{"v":0,"d":"$0.00"}}]
["MMA",null,null,{"$f":"Jurat!I$1","v":0},{"$f":"Jurat!D$33","v":"00:00:00"},"PY","1917-01-01","Region 2","Operating Expense","Medical Benefits Expense","Hospital Services","2.6","Subcapitated Hospital Services",{"v":0,"d":"$0.00"},{"v":0,"d":"$0.00"},{"v":0,"d":"$0.00"},{"v":0,"d":"$0.00"},{"v":0,"d":"$0.00"},{"v":0,"d":"$0.00"},{"v":0,"d":"$0.00"},{"v":0,"d":"$0.00"},{"v":0,"d":"$0.00"},{"v":0,"d":"$0.00"},{"v":0,"d":"$0.00"},{"$f":"'MMA Rev-Exp Region 2'!AV$25","v":{"v":0,"d":"$0.00"}}]
["MMA",null,null,{"$f":"Jurat!I$1","v":0},{"$f":"Jurat!D$33","v":"00:00:00"},"PY","1917-01-01","Region 2","Operating Expense","Medical Benefits Expense","Hospital Services","2.7","Hospital Settlements",{"v":0,"d":"$0.00"},{"v":0,"d":"$0.00"},{"v":0,"d":"$0.00"},{"v":0,"d":"$0.00"},{"v":0,"d":"$0.00"},{"v":0,"d":"$0.00"},{"v":0,"d":"$0.00"},{"v":0,"d":"$0.00"},{"v":0,"d":"$0.00"},{"v":0,"d":"$0.00"},{"v":0,"d":"$0.00"},{"$f":"'MMA Rev-Exp Region 2'!AV$26","v":{"v":0,"d":"$0.00"}}]
["MMA",null,null,{"$f":"Jurat!I$1","v":0},{"$f":"Jurat!D$33","v":"00:00:00"},"PY","1917-01-01","Region 2","Operating Expense","Medical Benefits Expense","Hospital Services","2.7.1","Transplant Services",{"v":0,"d":"$0.00"},{"v":0,"d":"$0.00"},{"v":0,"d":"$0.00"},{"v":0,"d":"$0.00"},{"v":0,"d":"$0.00"},{"v":0,"d":"$0.00"},{"v":0,"d":"$0.00"},{"v":0,"d":"$0.00"},{"v":0,"d":"$0.00"},{"v":0,"d":"$0.00"},{"v":0,"d":"$0.00"},{"$f":"'MMA Rev-Exp Region 2'!AV$27","v":{"v":0,"d":"$0.00"}}]
["MMA",null,null,{"$f":"Jurat!I$1","v":0},{"$f":"Jurat!D$33","v":"00:00:00"},"PY","1917-01-01","Region 2","Operating Expense","Medical Benefits Expense","Professional Services",3.1,"Primary Care FFS",{"v":0,"d":"$0.00"},{"v":0,"d":"$0.00"},{"v":0,"d":"$0.00"},{"v":0,"d":"$0.00"},{"v":0,"d":"$0.00"},{"v":0,"d":"$0.00"},{"v":0,"d":"$0.00"},{"v":0,"d":"$0.00"},{"v":0,"d":"$0.00"},{"v":0,"d":"$0.00"},{"v":0,"d":"$0.00"},{"$f":"'MMA Rev-Exp Region 2'!AV$29","v":{"v":0,"d":"$0.00"}}]
["MMA",null,null,{"$f":"Jurat!I$1","v":0},{"$f":"Jurat!D$33","v":"00:00:00"},"PY","1917-01-01","Region 2","Operating Expense","Medical Benefits Expense","Professional Services",3.2,"Specialty Care FFS",{"v":0,"d":"$0.00"},{"v":0,"d":"$0.00"},{"v":0,"d":"$0.00"},{"v":0,"d":"$0.00"},{"v":0,"d":"$0.00"},{"v":0,"d":"$0.00"},{"v":0,"d":"$0.00"},{"v":0,"d":"$0.00"},{"v":0,"d":"$0.00"},{"v":0,"d":"$0.00"},{"v":0,"d":"$0.00"},{"$f":"'MMA Rev-Exp Region 2'!AV$30","v":{"v":0,"d":"$0.00"}}]
["MMA",null,null,{"$f":"Jurat!I$1","v":0},{"$f":"Jurat!D$33","v":"00:00:00"},"PY","1917-01-01","Region 2","Operating Expense","Medical Benefits Expense","Professional Services",3.3,"Other Professional FFS",{"v":0,"d":"$0.00"},{"v":0,"d":"$0.00"},{"v":0,"d":"$0.00"},{"v":0,"d":"$0.00"},{"v":0,"d":"$0.00"},{"v":0,"d":"$0.00"},{"v":0,"d":"$0.00"},{"v":0,"d":"$0.00"},{"v":0,"d":"$0.00"},{"v":0,"d":"$0.00"},{"v":0,"d":"$0.00"},{"$f":"'MMA Rev-Exp Region 2'!AV$31","v":{"v":0,"d":"$0.00"}}]
["MMA",null,null,{"$f":"Jurat!I$1","v":0},{"$f":"Jurat!D$33","v":"00:00:00"},"PY","1917-01-01","Region 2","Operating Expense","Medical Benefits Expense","Professional Services","3.4","§ 1202 PCP Payments to providers",{"v":0,"d":"$0.00"},{"v":0,"d":"$0.00"},{"v":0,"d":"$0.00"},{"v":0,"d":"$0.00"},{"v":0,"d":"$0.00"},{"v":0,"d":"$0.00"},{"v":0,"d":"$0.00"},{"v":0,"d":"$0.00"},{"v":0,"d":"$0.00"},{"v":0,"d":"$0.00"},{"v":0,"d":"$0.00"},{"$f":"'MMA Rev-Exp Region 2'!AV$32","v":{"v":0,"d":"$0.00"}}]
["MMA",null,null,{"$f":"Jurat!I$1","v":0},{"$f":"Jurat!D$33","v":"00:00:00"},"PY","1917-01-01","Region 2","Operating Expense","Medical Benefits Expense","Professional Services","3.5","Subcapitated Professional Services",{"v":0,"d":"$0.00"},{"v":0,"d":"$0.00"},{"v":0,"d":"$0.00"},{"v":0,"d":"$0.00"},{"v":0,"d":"$0.00"},{"v":0,"d":"$0.00"},{"v":0,"d":"$0.00"},{"v":0,"d":"$0.00"},{"v":0,"d":"$0.00"},{"v":0,"d":"$0.00"},{"v":0,"d":"$0.00"},{"$f":"'MMA Rev-Exp Region 2'!AV$33","v":{"v":0,"d":"$0.00"}}]
["MMA",null,null,{"$f":"Jurat!I$1","v":0},{"$f":"Jurat!D$33","v":"00:00:00"},"PY","1917-01-01","Region 2","Operating Expense","Medical Benefits Expense","Professional Services","3.6","Ending IBNP for Professional Services",{"v":0,"d":"$0.00"},{"v":0,"d":"$0.00"},{"v":0,"d":"$0.00"},{"v":0,"d":"$0.00"},{"v":0,"d":"$0.00"},{"v":0,"d":"$0.00"},{"v":0,"d":"$0.00"},{"v":0,"d":"$0.00"},{"v":0,"d":"$0.00"},{"v":0,"d":"$0.00"},{"v":0,"d":"$0.00"},{"$f":"'MMA Rev-Exp Region 2'!AV$34","v":{"v":0,"d":"$0.00"}}]
["MMA",null,null,{"$f":"Jurat!I$1","v":0},{"$f":"Jurat!D$33","v":"00:00:00"},"PY","1917-01-01","Region 2","Operating Expense","Medical Benefits Expense","Professional Services","3.7","Professional Services Settlements",{"v":0,"d":"$0.00"},{"v":0,"d":"$0.00"},{"v":0,"d":"$0.00"},{"v":0,"d":"$0.00"},{"v":0,"d":"$0.00"},{"v":0,"d":"$0.00"},{"v":0,"d":"$0.00"},{"v":0,"d":"$0.00"},{"v":0,"d":"$0.00"},{"v":0,"d":"$0.00"},{"v":0,"d":"$0.00"},{"$f":"'MMA Rev-Exp Region 2'!AV$35","v":{"v":0,"d":"$0.00"}}]
["MMA",null,null,{"$f":"Jurat!I$1","v":0},{"$f":"Jurat!D$33","v":"00:00:00"},"PY","1917-01-01","Region 2","Operating Expense","Medical Benefits Expense","Maternity Services","4.1.1","Maternity Services",{"v":0,"d":"$0.00"},{"v":0,"d":"$0.00"},{"v":0,"d":"$0.00"},{"v":0,"d":"$0.00"},{"v":0,"d":"$0.00"},{"v":0,"d":"$0.00"},{"v":0,"d":"$0.00"},{"v":0,"d":"$0.00"},{"v":0,"d":"$0.00"},{"v":0,"d":"$0.00"},{"v":0,"d":"$0.00"},{"$f":"'MMA Rev-Exp Region 2'!AV$37","v":{"v":0,"d":"$0.00"}}]
["MMA",null,null,{"$f":"Jurat!I$1","v":0},{"$f":"Jurat!D$33","v":"00:00:00"},"PY","1917-01-01","Region 2","Operating Expense","Medical Benefits Expense","Maternity Services","4.2.1","Ending IBNP for Maternity Services",{"v":0,"d":"$0.00"},{"v":0,"d":"$0.00"},{"v":0,"d":"$0.00"},{"v":0,"d":"$0.00"},{"v":0,"d":"$0.00"},{"v":0,"d":"$0.00"},{"v":0,"d":"$0.00"},{"v":0,"d":"$0.00"},{"v":0,"d":"$0.00"},{"v":0,"d":"$0.00"},{"v":0,"d":"$0.00"},{"$f":"'MMA Rev-Exp Region 2'!AV$38","v":{"v":0,"d":"$0.00"}}]
["MMA",null,null,{"$f":"Jurat!I$1","v":0},{"$f":"Jurat!D$33","v":"00:00:00"},"PY","1917-01-01","Region 2","Operating Expense","Medical Benefits Expense","Maternity Services","4.3.1","Maternity Settlements",{"v":0,"d":"$0.00"},{"v":0,"d":"$0.00"},{"v":0,"d":"$0.00"},{"v":0,"d":"$0.00"},{"v":0,"d":"$0.00"},{"v":0,"d":"$0.00"},{"v":0,"d":"$0.00"},{"v":0,"d":"$0.00"},{"v":0,"d":"$0.00"},{"v":0,"d":"$0.00"},{"v":0,"d":"$0.00"},{"$f":"'MMA Rev-Exp Region 2'!AV$39","v":{"v":0,"d":"$0.00"}}]
["MMA",null,null,{"$f":"Jurat!I$1","v":0},{"$f":"Jurat!D$33","v":"00:00:00"},"PY","1917-01-01","Region 2","Operating Expense","Medical Benefits Expense","Mental Health Services",5.1,"Mental Health & Substance Abuse FFS",{"v":0,"d":"$0.00"},{"v":0,"d":"$0.00"},{"v":0,"d":"$0.00"},{"v":0,"d":"$0.00"},{"v":0,"d":"$0.00"},{"v":0,"d":"$0.00"},{"v":0,"d":"$0.00"},{"v":0,"d":"$0.00"},{"v":0,"d":"$0.00"},{"v":0,"d":"$0.00"},{"v":0,"d":"$0.00"},{"$f":"'MMA Rev-Exp Region 2'!AV$41","v":{"v":0,"d":"$0.00"}}]
["MMA",null,null,{"$f":"Jurat!I$1","v":0},{"$f":"Jurat!D$33","v":"00:00:00"},"PY","1917-01-01","Region 2","Operating Expense","Medical Benefits Expense","Mental Health Services",5.2,"Mental Health & Substance Abuse Subcapitation",{"v":0,"d":"$0.00"},{"v":0,"d":"$0.00"},{"v":0,"d":"$0.00"},{"v":0,"d":"$0.00"},{"v":0,"d":"$0.00"},{"v":0,"d":"$0.00"},{"v":0,"d":"$0.00"},{"v":0,"d":"$0.00"},{"v":0,"d":"$0.00"},{"v":0,"d":"$0.00"},{"v":0,"d":"$0.00"},{"$f":"'MMA Rev-Exp Region 2'!AV$42","v":{"v":0,"d":"$0.00"}}]
["MMA",null,null,{"$f":"Jurat!I$1","v":0},{"$f":"Jurat!D$33","v":"00:00:00"},"PY","1917-01-01","Region 2","Operating Expense","Medical Benefits Expense","Mental Health Services",5.3,"Ending IBNP for Mental Health & Substance Abuse",{"v":0,"d":"$0.00"},{"v":0,"d":"$0.00"},{"v":0,"d":"$0.00"},{"v":0,"d":"$0.00"},{"v":0,"d":"$0.00"},{"v":0,"d":"$0.00"},{"v":0,"d":"$0.00"},{"v":0,"d":"$0.00"},{"v":0,"d":"$0.00"},{"v":0,"d":"$0.00"},{"v":0,"d":"$0.00"},{"$f":"'MMA Rev-Exp Region 2'!AV$43","v":{"v":0,"d":"$0.00"}}]
["MMA",null,null,{"$f":"Jurat!I$1","v":0},{"$f":"Jurat!D$33","v":"00:00:00"},"PY","1917-01-01","Region 2","Operating Expense","Medical Benefits Expense","Mental Health Services","5.4","Mental Health Settlements",{"v":0,"d":"$0.00"},{"v":0,"d":"$0.00"},{"v":0,"d":"$0.00"},{"v":0,"d":"$0.00"},{"v":0,"d":"$0.00"},{"v":0,"d":"$0.00"},{"v":0,"d":"$0.00"},{"v":0,"d":"$0.00"},{"v":0,"d":"$0.00"},{"v":0,"d":"$0.00"},{"v":0,"d":"$0.00"},{"$f":"'MMA Rev-Exp Region 2'!AV$44","v":{"v":0,"d":"$0.00"}}]
["MMA",null,null,{"$f":"Jurat!I$1","v":0},{"$f":"Jurat!D$33","v":"00:00:00"},"PY","1917-01-01","Region 2","Operating Expense","Medical Benefits Expense","Dental Services",6.1,"Dental FFS",{"v":0,"d":"$0.00"},{"v":0,"d":"$0.00"},{"v":0,"d":"$0.00"},{"v":0,"d":"$0.00"},{"v":0,"d":"$0.00"},{"v":0,"d":"$0.00"},{"v":0,"d":"$0.00"},{"v":0,"d":"$0.00"},{"v":0,"d":"$0.00"},{"v":0,"d":"$0.00"},{"v":0,"d":"$0.00"},{"$f":"'MMA Rev-Exp Region 2'!AV$46","v":{"v":0,"d":"$0.00"}}]
["MMA",null,null,{"$f":"Jurat!I$1","v":0},{"$f":"Jurat!D$33","v":"00:00:00"},"PY","1917-01-01","Region 2","Operating Expense","Medical Benefits Expense","Dental Services",6.2,"Dental Subcapitation",{"v":0,"d":"$0.00"},{"v":0,"d":"$0.00"},{"v":0,"d":"$0.00"},{"v":0,"d":"$0.00"},{"v":0,"d":"$0.00"},{"v":0,"d":"$0.00"},{"v":0,"d":"$0.00"},{"v":0,"d":"$0.00"},{"v":0,"d":"$0.00"},{"v":0,"d":"$0.00"},{"v":0,"d":"$0.00"},{"$f":"'MMA Rev-Exp Region 2'!AV$47","v":{"v":0,"d":"$0.00"}}]
["MMA",null,null,{"$f":"Jurat!I$1","v":0},{"$f":"Jurat!D$33","v":"00:00:00"},"PY","1917-01-01","Region 2","Operating Expense","Medical Benefits Expense","Dental Services",6.3,"Ending IBNP for Dental Services",{"v":0,"d":"$0.00"},{"v":0,"d":"$0.00"},{"v":0,"d":"$0.00"},{"v":0,"d":"$0.00"},{"v":0,"d":"$0.00"},{"v":0,"d":"$0.00"},{"v":0,"d":"$0.00"},{"v":0,"d":"$0.00"},{"v":0,"d":"$0.00"},{"v":0,"d":"$0.00"},{"v":0,"d":"$0.00"},{"$f":"'MMA Rev-Exp Region 2'!AV$48","v":{"v":0,"d":"$0.00"}}]
["MMA",null,null,{"$f":"Jurat!I$1","v":0},{"$f":"Jurat!D$33","v":"00:00:00"},"PY","1917-01-01","Region 2","Operating Expense","Medical Benefits Expense","Dental Services","6.4","Dental Settlements",{"v":0,"d":"$0.00"},{"v":0,"d":"$0.00"},{"v":0,"d":"$0.00"},{"v":0,"d":"$0.00"},{"v":0,"d":"$0.00"},{"v":0,"d":"$0.00"},{"v":0,"d":"$0.00"},{"v":0,"d":"$0.00"},{"v":0,"d":"$0.00"},{"v":0,"d":"$0.00"},{"v":0,"d":"$0.00"},{"$f":"'MMA Rev-Exp Region 2'!AV$49","v":{"v":0,"d":"$0.00"}}]
["MMA",null,null,{"$f":"Jurat!I$1","v":0},{"$f":"Jurat!D$33","v":"00:00:00"},"PY","1917-01-01","Region 2","Operating Expense","Medical Benefits Expense","Transportation Services",7.1,"Transportation FFS",{"v":0,"d":"$0.00"},{"v":0,"d":"$0.00"},{"v":0,"d":"$0.00"},{"v":0,"d":"$0.00"},{"v":0,"d":"$0.00"},{"v":0,"d":"$0.00"},{"v":0,"d":"$0.00"},{"v":0,"d":"$0.00"},{"v":0,"d":"$0.00"},{"v":0,"d":"$0.00"},{"v":0,"d":"$0.00"},{"$f":"'MMA Rev-Exp Region 2'!AV$51","v":{"v":0,"d":"$0.00"}}]
["MMA",null,null,{"$f":"Jurat!I$1","v":0},{"$f":"Jurat!D$33","v":"00:00:00"},"PY","1917-01-01","Region 2","Operating Expense","Medical Benefits Expense","Transportation Services",7.2,"Transportation Subcapitation",{"v":0,"d":"$0.00"},{"v":0,"d":"$0.00"},{"v":0,"d":"$0.00"},{"v":0,"d":"$0.00"},{"v":0,"d":"$0.00"},{"v":0,"d":"$0.00"},{"v":0,"d":"$0.00"},{"v":0,"d":"$0.00"},{"v":0,"d":"$0.00"},{"v":0,"d":"$0.00"},{"v":0,"d":"$0.00"},{"$f":"'MMA Rev-Exp Region 2'!AV$52","v":{"v":0,"d":"$0.00"}}]
["MMA",null,null,{"$f":"Jurat!I$1","v":0},{"$f":"Jurat!D$33","v":"00:00:00"},"PY","1917-01-01","Region 2","Operating Expense","Medical Benefits Expense","Transportation Services",7.3,"Ending IBNP for Transportation",{"v":0,"d":"$0.00"},{"v":0,"d":"$0.00"},{"v":0,"d":"$0.00"},{"v":0,"d":"$0.00"},{"v":0,"d":"$0.00"},{"v":0,"d":"$0.00"},{"v":0,"d":"$0.00"},{"v":0,"d":"$0.00"},{"v":0,"d":"$0.00"},{"v":0,"d":"$0.00"},{"v":0,"d":"$0.00"},{"$f":"'MMA Rev-Exp Region 2'!AV$53","v":{"v":0,"d":"$0.00"}}]
["MMA",null,null,{"$f":"Jurat!I$1","v":0},{"$f":"Jurat!D$33","v":"00:00:00"},"PY","1917-01-01","Region 2","Operating Expense","Medical Benefits Expense","Transportation Services","7.4","Transportation Settlements",{"v":0,"d":"$0.00"},{"v":0,"d":"$0.00"},{"v":0,"d":"$0.00"},{"v":0,"d":"$0.00"},{"v":0,"d":"$0.00"},{"v":0,"d":"$0.00"},{"v":0,"d":"$0.00"},{"v":0,"d":"$0.00"},{"v":0,"d":"$0.00"},{"v":0,"d":"$0.00"},{"v":0,"d":"$0.00"},{"$f":"'MMA Rev-Exp Region 2'!AV$54","v":{"v":0,"d":"$0.00"}}]
["MMA",null,null,{"$f":"Jurat!I$1","v":0},{"$f":"Jurat!D$33","v":"00:00:00"},"PY","1917-01-01","Region 2","Operating Expense","Medical Benefits Expense","Pharmacy Services",8.1,"Prescription Drugs FFS",{"v":0,"d":"$0.00"},{"v":0,"d":"$0.00"},{"v":0,"d":"$0.00"},{"v":0,"d":"$0.00"},{"v":0,"d":"$0.00"},{"v":0,"d":"$0.00"},{"v":0,"d":"$0.00"},{"v":0,"d":"$0.00"},{"v":0,"d":"$0.00"},{"v":0,"d":"$0.00"},{"v":0,"d":"$0.00"},{"$f":"'MMA Rev-Exp Region 2'!AV$56","v":{"v":0,"d":"$0.00"}}]
["MMA",null,null,{"$f":"Jurat!I$1","v":0},{"$f":"Jurat!D$33","v":"00:00:00"},"PY","1917-01-01","Region 2","Operating Expense","Medical Benefits Expense","Pharmacy Services","8.2","Hepatitis C Prescription Drug FFS",{"v":0,"d":"$0.00"},{"v":0,"d":"$0.00"},{"v":0,"d":"$0.00"},{"v":0,"d":"$0.00"},{"v":0,"d":"$0.00"},{"v":0,"d":"$0.00"},{"v":0,"d":"$0.00"},{"v":0,"d":"$0.00"},{"v":0,"d":"$0.00"},{"v":0,"d":"$0.00"},{"v":0,"d":"$0.00"},{"$f":"'MMA Rev-Exp Region 2'!AV$57","v":{"v":0,"d":"$0.00"}}]
["MMA",null,null,{"$f":"Jurat!I$1","v":0},{"$f":"Jurat!D$33","v":"00:00:00"},"PY","1917-01-01","Region 2","Operating Expense","Medical Benefits Expense","Pharmacy Services","8.3","Ending IBNP for Prescription Drugs",{"v":0,"d":"$0.00"},{"v":0,"d":"$0.00"},{"v":0,"d":"$0.00"},{"v":0,"d":"$0.00"},{"v":0,"d":"$0.00"},{"v":0,"d":"$0.00"},{"v":0,"d":"$0.00"},{"v":0,"d":"$0.00"},{"v":0,"d":"$0.00"},{"v":0,"d":"$0.00"},{"v":0,"d":"$0.00"},{"$f":"'MMA Rev-Exp Region 2'!AV$58","v":{"v":0,"d":"$0.00"}}]
["MMA",null,null,{"$f":"Jurat!I$1","v":0},{"$f":"Jurat!D$33","v":"00:00:00"},"PY","1917-01-01","Region 2","Operating Expense","Medical Benefits Expense","Pharmacy Services","8.4","Prescription Drug Rebates ",{"v":0,"d":"$0.00"},{"v":0,"d":"$0.00"},{"v":0,"d":"$0.00"},{"v":0,"d":"$0.00"},{"v":0,"d":"$0.00"},{"v":0,"d":"$0.00"},{"v":0,"d":"$0.00"},{"v":0,"d":"$0.00"},{"v":0,"d":"$0.00"},{"v":0,"d":"$0.00"},{"v":0,"d":"$0.00"},{"$f":"'MMA Rev-Exp Region 2'!AV$59","v":{"v":0,"d":"$0.00"}}]
["MMA",null,null,{"$f":"Jurat!I$1","v":0},{"$f":"Jurat!D$33","v":"00:00:00"},"PY","1917-01-01","Region 2","Operating Expense","Medical Benefits Expense","Pharmacy Services","8.5","Ending accrual for Rebates receivable",{"v":0,"d":"$0.00"},{"v":0,"d":"$0.00"},{"v":0,"d":"$0.00"},{"v":0,"d":"$0.00"},{"v":0,"d":"$0.00"},{"v":0,"d":"$0.00"},{"v":0,"d":"$0.00"},{"v":0,"d":"$0.00"},{"v":0,"d":"$0.00"},{"v":0,"d":"$0.00"},{"v":0,"d":"$0.00"},{"$f":"'MMA Rev-Exp Region 2'!AV$60","v":{"v":0,"d":"$0.00"}}]
["MMA",null,null,{"$f":"Jurat!I$1","v":0},{"$f":"Jurat!D$33","v":"00:00:00"},"PY","1917-01-01","Region 2","Operating Expense","Medical Benefits Expense","Pharmacy Services","8.6","Prescription Drugs Subcapitation",{"v":0,"d":"$0.00"},{"v":0,"d":"$0.00"},{"v":0,"d":"$0.00"},{"v":0,"d":"$0.00"},{"v":0,"d":"$0.00"},{"v":0,"d":"$0.00"},{"v":0,"d":"$0.00"},{"v":0,"d":"$0.00"},{"v":0,"d":"$0.00"},{"v":0,"d":"$0.00"},{"v":0,"d":"$0.00"},{"$f":"'MMA Rev-Exp Region 2'!AV$61","v":{"v":0,"d":"$0.00"}}]
["MMA",null,null,{"$f":"Jurat!I$1","v":0},{"$f":"Jurat!D$33","v":"00:00:00"},"PY","1917-01-01","Region 2","Operating Expense","Medical Benefits Expense","Pharmacy Services","8.7","Prescription Drug Settlements",{"v":0,"d":"$0.00"},{"v":0,"d":"$0.00"},{"v":0,"d":"$0.00"},{"v":0,"d":"$0.00"},{"v":0,"d":"$0.00"},{"v":0,"d":"$0.00"},{"v":0,"d":"$0.00"},{"v":0,"d":"$0.00"},{"v":0,"d":"$0.00"},{"v":0,"d":"$0.00"},{"v":0,"d":"$0.00"},{"$f":"'MMA Rev-Exp Region 2'!AV$62","v":{"v":0,"d":"$0.00"}}]
["MMA",null,null,{"$f":"Jurat!I$1","v":0},{"$f":"Jurat!D$33","v":"00:00:00"},"PY","1917-01-01","Region 2","Operating Expense","Medical Benefits Expense","Other MMA Services",9.1,"Home Health, Private Duty Nursing, Personal Care FFS",{"v":0,"d":"$0.00"},{"v":0,"d":"$0.00"},{"v":0,"d":"$0.00"},{"v":0,"d":"$0.00"},{"v":0,"d":"$0.00"},{"v":0,"d":"$0.00"},{"v":0,"d":"$0.00"},{"v":0,"d":"$0.00"},{"v":0,"d":"$0.00"},{"v":0,"d":"$0.00"},{"v":0,"d":"$0.00"},{"$f":"'MMA Rev-Exp Region 2'!AV$64","v":{"v":0,"d":"$0.00"}}]
["MMA",null,null,{"$f":"Jurat!I$1","v":0},{"$f":"Jurat!D$33","v":"00:00:00"},"PY","1917-01-01","Region 2","Operating Expense","Medical Benefits Expense","Other MMA Services","9.2","Hospice FFS",{"v":0,"d":"$0.00"},{"v":0,"d":"$0.00"},{"v":0,"d":"$0.00"},{"v":0,"d":"$0.00"},{"v":0,"d":"$0.00"},{"v":0,"d":"$0.00"},{"v":0,"d":"$0.00"},{"v":0,"d":"$0.00"},{"v":0,"d":"$0.00"},{"v":0,"d":"$0.00"},{"v":0,"d":"$0.00"},{"$f":"'MMA Rev-Exp Region 2'!AV$65","v":{"v":0,"d":"$0.00"}}]
["MMA",null,null,{"$f":"Jurat!I$1","v":0},{"$f":"Jurat!D$33","v":"00:00:00"},"PY","1917-01-01","Region 2","Operating Expense","Medical Benefits Expense","Other MMA Services","9.3","DME FFS",{"v":0,"d":"$0.00"},{"v":0,"d":"$0.00"},{"v":0,"d":"$0.00"},{"v":0,"d":"$0.00"},{"v":0,"d":"$0.00"},{"v":0,"d":"$0.00"},{"v":0,"d":"$0.00"},{"v":0,"d":"$0.00"},{"v":0,"d":"$0.00"},{"v":0,"d":"$0.00"},{"v":0,"d":"$0.00"},{"$f":"'MMA Rev-Exp Region 2'!AV$66","v":{"v":0,"d":"$0.00"}}]
["MMA",null,null,{"$f":"Jurat!I$1","v":0},{"$f":"Jurat!D$33","v":"00:00:00"},"PY","1917-01-01","Region 2","Operating Expense","Medical Benefits Expense","Other MMA Services","9.4","Other State Plan Services FFS",{"v":0,"d":"$0.00"},{"v":0,"d":"$0.00"},{"v":0,"d":"$0.00"},{"v":0,"d":"$0.00"},{"v":0,"d":"$0.00"},{"v":0,"d":"$0.00"},{"v":0,"d":"$0.00"},{"v":0,"d":"$0.00"},{"v":0,"d":"$0.00"},{"v":0,"d":"$0.00"},{"v":0,"d":"$0.00"},{"$f":"'MMA Rev-Exp Region 2'!AV$67","v":{"v":0,"d":"$0.00"}}]
["MMA",null,null,{"$f":"Jurat!I$1","v":0},{"$f":"Jurat!D$33","v":"00:00:00"},"PY","1917-01-01","Region 2","Operating Expense","Medical Benefits Expense","Other MMA Services","9.5","Other Services Subcapitation",{"v":0,"d":"$0.00"},{"v":0,"d":"$0.00"},{"v":0,"d":"$0.00"},{"v":0,"d":"$0.00"},{"v":0,"d":"$0.00"},{"v":0,"d":"$0.00"},{"v":0,"d":"$0.00"},{"v":0,"d":"$0.00"},{"v":0,"d":"$0.00"},{"v":0,"d":"$0.00"},{"v":0,"d":"$0.00"},{"$f":"'MMA Rev-Exp Region 2'!AV$68","v":{"v":0,"d":"$0.00"}}]
["MMA",null,null,{"$f":"Jurat!I$1","v":0},{"$f":"Jurat!D$33","v":"00:00:00"},"PY","1917-01-01","Region 2","Operating Expense","Medical Benefits Expense","Other MMA Services","9.6","Ending IBNP for Other Services",{"v":0,"d":"$0.00"},{"v":0,"d":"$0.00"},{"v":0,"d":"$0.00"},{"v":0,"d":"$0.00"},{"v":0,"d":"$0.00"},{"v":0,"d":"$0.00"},{"v":0,"d":"$0.00"},{"v":0,"d":"$0.00"},{"v":0,"d":"$0.00"},{"v":0,"d":"$0.00"},{"v":0,"d":"$0.00"},{"$f":"'MMA Rev-Exp Region 2'!AV$69","v":{"v":0,"d":"$0.00"}}]
["MMA",null,null,{"$f":"Jurat!I$1","v":0},{"$f":"Jurat!D$33","v":"00:00:00"},"PY","1917-01-01","Region 2","Operating Expense","Medical Benefits Expense","Other MMA Services","9.7","Other Services Settlements",{"v":0,"d":"$0.00"},{"v":0,"d":"$0.00"},{"v":0,"d":"$0.00"},{"v":0,"d":"$0.00"},{"v":0,"d":"$0.00"},{"v":0,"d":"$0.00"},{"v":0,"d":"$0.00"},{"v":0,"d":"$0.00"},{"v":0,"d":"$0.00"},{"v":0,"d":"$0.00"},{"v":0,"d":"$0.00"},{"$f":"'MMA Rev-Exp Region 2'!AV$70","v":{"v":0,"d":"$0.00"}}]
["MMA",null,null,{"$f":"Jurat!I$1","v":0},{"$f":"Jurat!D$33","v":"00:00:00"},"PY","1917-01-01","Region 2","Operating Expense","Medical Benefits Expense","Expanded Benefits","10.1","Expanded Benefits FFS",{"v":0,"d":"$0.00"},{"v":0,"d":"$0.00"},{"v":0,"d":"$0.00"},{"v":0,"d":"$0.00"},{"v":0,"d":"$0.00"},{"v":0,"d":"$0.00"},{"v":0,"d":"$0.00"},{"v":0,"d":"$0.00"},{"v":0,"d":"$0.00"},{"v":0,"d":"$0.00"},{"v":0,"d":"$0.00"},{"$f":"'MMA Rev-Exp Region 2'!AV$72","v":{"v":0,"d":"$0.00"}}]
["MMA",null,null,{"$f":"Jurat!I$1","v":0},{"$f":"Jurat!D$33","v":"00:00:00"},"PY","1917-01-01","Region 2","Operating Expense","Medical Benefits Expense","Expanded Benefits","10.2","Expanded benefits Subcapitation",{"v":0,"d":"$0.00"},{"v":0,"d":"$0.00"},{"v":0,"d":"$0.00"},{"v":0,"d":"$0.00"},{"v":0,"d":"$0.00"},{"v":0,"d":"$0.00"},{"v":0,"d":"$0.00"},{"v":0,"d":"$0.00"},{"v":0,"d":"$0.00"},{"v":0,"d":"$0.00"},{"v":0,"d":"$0.00"},{"$f":"'MMA Rev-Exp Region 2'!AV$73","v":{"v":0,"d":"$0.00"}}]
["MMA",null,null,{"$f":"Jurat!I$1","v":0},{"$f":"Jurat!D$33","v":"00:00:00"},"PY","1917-01-01","Region 2","Operating Expense","Medical Benefits Expense","Expanded Benefits","10.3","Ending IBNP for Expanded Benefits",{"v":0,"d":"$0.00"},{"v":0,"d":"$0.00"},{"v":0,"d":"$0.00"},{"v":0,"d":"$0.00"},{"v":0,"d":"$0.00"},{"v":0,"d":"$0.00"},{"v":0,"d":"$0.00"},{"v":0,"d":"$0.00"},{"v":0,"d":"$0.00"},{"v":0,"d":"$0.00"},{"v":0,"d":"$0.00"},{"$f":"'MMA Rev-Exp Region 2'!AV$74","v":{"v":0,"d":"$0.00"}}]
["MMA",null,null,{"$f":"Jurat!I$1","v":0},{"$f":"Jurat!D$33","v":"00:00:00"},"PY","1917-01-01","Region 2","Operating Expense","Medical Benefits Expense","Expanded Benefits","10.4","Expanded Benefits Settlements",{"v":0,"d":"$0.00"},{"v":0,"d":"$0.00"},{"v":0,"d":"$0.00"},{"v":0,"d":"$0.00"},{"v":0,"d":"$0.00"},{"v":0,"d":"$0.00"},{"v":0,"d":"$0.00"},{"v":0,"d":"$0.00"},{"v":0,"d":"$0.00"},{"v":0,"d":"$0.00"},{"v":0,"d":"$0.00"},{"$f":"'MMA Rev-Exp Region 2'!AV$75","v":{"v":0,"d":"$0.00"}}]
["MMA",null,null,{"$f":"Jurat!I$1","v":0},{"$f":"Jurat!D$33","v":"00:00:00"},"PY","1917-01-01","Region 2","Operating Expense","Medical Benefits Expense","Other Medical","11.5","TPL & Fraud/Abuse Recoveries",{"v":0,"d":"$0.00"},{"v":0,"d":"$0.00"},{"v":0,"d":"$0.00"},{"v":0,"d":"$0.00"},{"v":0,"d":"$0.00"},{"v":0,"d":"$0.00"},{"v":0,"d":"$0.00"},{"v":0,"d":"$0.00"},{"v":0,"d":"$0.00"},{"v":0,"d":"$0.00"},{"v":0,"d":"$0.00"},{"$f":"'MMA Rev-Exp Region 2'!AV$81","v":{"v":0,"d":"$0.00"}}]
["MMA",null,null,{"$f":"Jurat!I$1","v":0},{"$f":"Jurat!D$33","v":"00:00:00"},"PY","1917-01-01","Region 2","Operating Expense","Medical Benefits Expense","Other Medical","11.6.1","Premium Deficiency Reserve",{"v":0,"d":"$0.00"},{"v":0,"d":"$0.00"},{"v":0,"d":"$0.00"},{"v":0,"d":"$0.00"},{"v":0,"d":"$0.00"},{"v":0,"d":"$0.00"},{"v":0,"d":"$0.00"},{"v":0,"d":"$0.00"},{"v":0,"d":"$0.00"},{"v":0,"d":"$0.00"},{"v":0,"d":"$0.00"},{"$f":"'MMA Rev-Exp Region 2'!AV$82","v":{"v":0,"d":"$0.00"}}]
["MMA",null,null,{"$f":"Jurat!I$1","v":0},{"$f":"Jurat!D$33","v":"00:00:00"},"PY","1917-01-01","Region 2","Operating Expense","Medical Benefits Expense","Other Medical","11.8","Reinsurance Premiums",{"v":0,"d":"$0.00"},{"v":0,"d":"$0.00"},{"v":0,"d":"$0.00"},{"v":0,"d":"$0.00"},{"v":0,"d":"$0.00"},{"v":0,"d":"$0.00"},{"v":0,"d":"$0.00"},{"v":0,"d":"$0.00"},{"v":0,"d":"$0.00"},{"v":0,"d":"$0.00"},{"v":0,"d":"$0.00"},{"$f":"'MMA Rev-Exp Region 2'!AV$84","v":{"v":0,"d":"$0.00"}}]
["MMA",null,null,{"$f":"Jurat!I$1","v":0},{"$f":"Jurat!D$33","v":"00:00:00"},"PY","1917-01-01","Region 2","Operating Expense","Medical Benefits Expense","Other Medical","11.9","Reinsurance Recoveries",{"v":0,"d":"$0.00"},{"v":0,"d":"$0.00"},{"v":0,"d":"$0.00"},{"v":0,"d":"$0.00"},{"v":0,"d":"$0.00"},{"v":0,"d":"$0.00"},{"v":0,"d":"$0.00"},{"v":0,"d":"$0.00"},{"v":0,"d":"$0.00"},{"v":0,"d":"$0.00"},{"v":0,"d":"$0.00"},{"$f":"'MMA Rev-Exp Region 2'!AV$85","v":{"v":0,"d":"$0.00"}}]
["MMA",null,null,{"$f":"Jurat!I$1","v":0},{"$f":"Jurat!D$33","v":"00:00:00"},"PY","1917-01-01","Region 2","Operating Expense","Administrative Expense","Administrative","12.1","Salaries & Benefits",{"v":0,"d":"$0.00"},{"v":0,"d":"$0.00"},{"v":0,"d":"$0.00"},{"v":0,"d":"$0.00"},{"v":0,"d":"$0.00"},{"v":0,"d":"$0.00"},{"v":0,"d":"$0.00"},{"v":0,"d":"$0.00"},{"v":0,"d":"$0.00"},{"v":0,"d":"$0.00"},{"v":0,"d":"$0.00"},{"$f":"'MMA Rev-Exp Region 2'!AV$90","v":{"v":0,"d":"$0.00"}}]
["MMA",null,null,{"$f":"Jurat!I$1","v":0},{"$f":"Jurat!D$33","v":"00:00:00"},"PY","1917-01-01","Region 2","Operating Expense","Administrative Expense","Administrative","12.2","Administrative Services",{"v":0,"d":"$0.00"},{"v":0,"d":"$0.00"},{"v":0,"d":"$0.00"},{"v":0,"d":"$0.00"},{"v":0,"d":"$0.00"},{"v":0,"d":"$0.00"},{"v":0,"d":"$0.00"},{"v":0,"d":"$0.00"},{"v":0,"d":"$0.00"},{"v":0,"d":"$0.00"},{"v":0,"d":"$0.00"},{"$f":"'MMA Rev-Exp Region 2'!AV$91","v":{"v":0,"d":"$0.00"}}]
["MMA",null,null,{"$f":"Jurat!I$1","v":0},{"$f":"Jurat!D$33","v":"00:00:00"},"PY","1917-01-01","Region 2","Operating Expense","Administrative Expense","Administrative","12.3","Information Systems",{"v":0,"d":"$0.00"},{"v":0,"d":"$0.00"},{"v":0,"d":"$0.00"},{"v":0,"d":"$0.00"},{"v":0,"d":"$0.00"},{"v":0,"d":"$0.00"},{"v":0,"d":"$0.00"},{"v":0,"d":"$0.00"},{"v":0,"d":"$0.00"},{"v":0,"d":"$0.00"},{"v":0,"d":"$0.00"},{"$f":"'MMA Rev-Exp Region 2'!AV$92","v":{"v":0,"d":"$0.00"}}]
["MMA",null,null,{"$f":"Jurat!I$1","v":0},{"$f":"Jurat!D$33","v":"00:00:00"},"PY","1917-01-01","Region 2","Operating Expense","Administrative Expense","Administrative","12.4","Marketing Expenses",{"v":0,"d":"$0.00"},{"v":0,"d":"$0.00"},{"v":0,"d":"$0.00"},{"v":0,"d":"$0.00"},{"v":0,"d":"$0.00"},{"v":0,"d":"$0.00"},{"v":0,"d":"$0.00"},{"v":0,"d":"$0.00"},{"v":0,"d":"$0.00"},{"v":0,"d":"$0.00"},{"v":0,"d":"$0.00"},{"$f":"'MMA Rev-Exp Region 2'!AV$93","v":{"v":0,"d":"$0.00"}}]
["MMA",null,null,{"$f":"Jurat!I$1","v":0},{"$f":"Jurat!D$33","v":"00:00:00"},"PY","1917-01-01","Region 2","Operating Expense","Administrative Expense","Administrative","12.5","General  Administration",{"v":0,"d":"$0.00"},{"v":0,"d":"$0.00"},{"v":0,"d":"$0.00"},{"v":0,"d":"$0.00"},{"v":0,"d":"$0.00"},{"v":0,"d":"$0.00"},{"v":0,"d":"$0.00"},{"v":0,"d":"$0.00"},{"v":0,"d":"$0.00"},{"v":0,"d":"$0.00"},{"v":0,"d":"$0.00"},{"$f":"'MMA Rev-Exp Region 2'!AV$94","v":{"v":0,"d":"$0.00"}}]
["MMA",null,null,{"$f":"Jurat!I$1","v":0},{"$f":"Jurat!D$33","v":"00:00:00"},"PY","1917-01-01","Region 2","Operating Expense","Administrative Expense","Administrative","12.6","Compliance/Regulatory",{"v":0,"d":"$0.00"},{"v":0,"d":"$0.00"},{"v":0,"d":"$0.00"},{"v":0,"d":"$0.00"},{"v":0,"d":"$0.00"},{"v":0,"d":"$0.00"},{"v":0,"d":"$0.00"},{"v":0,"d":"$0.00"},{"v":0,"d":"$0.00"},{"v":0,"d":"$0.00"},{"v":0,"d":"$0.00"},{"$f":"'MMA Rev-Exp Region 2'!AV$95","v":{"v":0,"d":"$0.00"}}]
["MMA",null,null,{"$f":"Jurat!I$1","v":0},{"$f":"Jurat!D$33","v":"00:00:00"},"PY","1917-01-01","Region 2","Operating Expense","Taxes & Fees","Taxes & Fees","13.1","State Premium tax",{"v":0,"d":"$0.00"},{"v":0,"d":"$0.00"},{"v":0,"d":"$0.00"},{"v":0,"d":"$0.00"},{"v":0,"d":"$0.00"},{"v":0,"d":"$0.00"},{"v":0,"d":"$0.00"},{"v":0,"d":"$0.00"},{"v":0,"d":"$0.00"},{"v":0,"d":"$0.00"},{"v":0,"d":"$0.00"},{"$f":"'MMA Rev-Exp Region 2'!AV$97","v":{"v":0,"d":"$0.00"}}]
["MMA",null,null,{"$f":"Jurat!I$1","v":0},{"$f":"Jurat!D$33","v":"00:00:00"},"PY","1917-01-01","Region 2","Operating Expense","Taxes & Fees","Taxes & Fees","13.2","Department of Insurance Assessments",{"v":0,"d":"$0.00"},{"v":0,"d":"$0.00"},{"v":0,"d":"$0.00"},{"v":0,"d":"$0.00"},{"v":0,"d":"$0.00"},{"v":0,"d":"$0.00"},{"v":0,"d":"$0.00"},{"v":0,"d":"$0.00"},{"v":0,"d":"$0.00"},{"v":0,"d":"$0.00"},{"v":0,"d":"$0.00"},{"$f":"'MMA Rev-Exp Region 2'!AV$98","v":{"v":0,"d":"$0.00"}}]
["MMA",null,null,{"$f":"Jurat!I$1","v":0},{"$f":"Jurat!D$33","v":"00:00:00"},"PY","1917-01-01","Region 2","Operating Expense","Taxes & Fees","Taxes & Fees","13.3","Section 9010 Health Insurance Providers Fee",{"v":0,"d":"$0.00"},{"v":0,"d":"$0.00"},{"v":0,"d":"$0.00"},{"v":0,"d":"$0.00"},{"v":0,"d":"$0.00"},{"v":0,"d":"$0.00"},{"v":0,"d":"$0.00"},{"v":0,"d":"$0.00"},{"v":0,"d":"$0.00"},{"v":0,"d":"$0.00"},{"v":0,"d":"$0.00"},{"$f":"'MMA Rev-Exp Region 2'!AV$99","v":{"v":0,"d":"$0.00"}}]
["MMA",null,null,{"$f":"Jurat!I$1","v":0},{"$f":"Jurat!D$33","v":"00:00:00"},"PY","1917-01-01","Region 2","Non-Operating Expense","Income Tax Expense","Income Tax Expense","16.0","Income Tax Expense",{"v":0,"d":"$0.00"},{"v":0,"d":"$0.00"},{"v":0,"d":"$0.00"},{"v":0,"d":"$0.00"},{"v":0,"d":"$0.00"},{"v":0,"d":"$0.00"},{"v":0,"d":"$0.00"},{"v":0,"d":"$0.00"},{"v":0,"d":"$0.00"},{"v":0,"d":"$0.00"},{"v":0,"d":"$0.00"},{"$f":"'MMA Rev-Exp Region 2'!AV$106","v":{"v":0,"d":"$0.00"}}]
["MMA",null,null,{"$f":"Jurat!I$1","v":0},{"$f":"Jurat!D$33","v":"00:00:00"},"PY","1917-01-01","Region 1","Member Months","Member Months","Member Months",null,"Member Months",{"v":0,"d":"$0.00"},{"v":0,"d":"$0.00"},{"v":0,"d":"$0.00"},{"v":0,"d":"$0.00"},{"v":0,"d":"$0.00"},{"v":0,"d":"$0.00"},{"v":0,"d":"$0.00"},{"v":0,"d":"$0.00"},{"v":0,"d":"$0.00"},{"v":0,"d":"$0.00"},{"v":0,"d":"$0.00"},{"$f":"'MMA Rev-Exp Region 1'!AV$9","v":{"v":0,"d":"$0.00"}}]
["MMA",null,null,{"$f":"Jurat!I$1","v":0},{"$f":"Jurat!D$33","v":"00:00:00"},"PY","1917-01-01","Region 1","Operating Revenue","Capitation","Capitation",1.1,"Capitation",{"v":0,"d":"$0.00"},{"v":0,"d":"$0.00"},{"v":0,"d":"$0.00"},{"v":0,"d":"$0.00"},{"v":0,"d":"$0.00"},{"v":0,"d":"$0.00"},{"v":0,"d":"$0.00"},{"v":0,"d":"$0.00"},{"v":0,"d":"$0.00"},{"v":0,"d":"$0.00"},{"v":0,"d":"$0.00"},{"$f":"'MMA Rev-Exp Region 1'!AV$11","v":{"v":0,"d":"$0.00"}}]
["MMA",null,null,{"$f":"Jurat!I$1","v":0},{"$f":"Jurat!D$33","v":"00:00:00"},"PY","1917-01-01","Region 1","Operating Revenue","Kick Payments","Kick Payments - Transplant",1.2,"Transplant Kick Payments",{"v":0,"d":"$0.00"},{"v":0,"d":"$0.00"},{"v":0,"d":"$0.00"},{"v":0,"d":"$0.00"},{"v":0,"d":"$0.00"},{"v":0,"d":"$0.00"},{"v":0,"d":"$0.00"},{"v":0,"d":"$0.00"},{"v":0,"d":"$0.00"},{"v":0,"d":"$0.00"},{"v":0,"d":"$0.00"},{"$f":"'MMA Rev-Exp Region 1'!AV$12","v":{"v":0,"d":"$0.00"}}]
["MMA",null,null,{"$f":"Jurat!I$1","v":0},{"$f":"Jurat!D$33","v":"00:00:00"},"PY","1917-01-01","Region 1","Operating Revenue","Kick Payments","Kick Payments - Hep C","1.3","Hepatitis C Kick Payments",{"v":0,"d":"$0.00"},{"v":0,"d":"$0.00"},{"v":0,"d":"$0.00"},{"v":0,"d":"$0.00"},{"v":0,"d":"$0.00"},{"v":0,"d":"$0.00"},{"v":0,"d":"$0.00"},{"v":0,"d":"$0.00"},{"v":0,"d":"$0.00"},{"v":0,"d":"$0.00"},{"v":0,"d":"$0.00"},{"$f":"'MMA Rev-Exp Region 1'!AV$13","v":{"v":0,"d":"$0.00"}}]
["MMA",null,null,{"$f":"Jurat!I$1","v":0},{"$f":"Jurat!D$33","v":"00:00:00"},"PY","1917-01-01","Region 1","Operating Revenue","Kick Payments","Kick Payments - Maternity","1.4.1","Maternity Kick Payments",{"v":0,"d":"$0.00"},{"v":0,"d":"$0.00"},{"v":0,"d":"$0.00"},{"v":0,"d":"$0.00"},{"v":0,"d":"$0.00"},{"v":0,"d":"$0.00"},{"v":0,"d":"$0.00"},{"v":0,"d":"$0.00"},{"v":0,"d":"$0.00"},{"v":0,"d":"$0.00"},{"v":0,"d":"$0.00"},{"$f":"'MMA Rev-Exp Region 1'!AV$14","v":{"v":0,"d":"$0.00"}}]
["MMA",null,null,{"$f":"Jurat!I$1","v":0},{"$f":"Jurat!D$33","v":"00:00:00"},"PY","1917-01-01","Region 1","Operating Revenue","Other Revenue","Other Revenue - 9010","1.5","ACA § 9010 related payments",{"v":0,"d":"$0.00"},{"v":0,"d":"$0.00"},{"v":0,"d":"$0.00"},{"v":0,"d":"$0.00"},{"v":0,"d":"$0.00"},{"v":0,"d":"$0.00"},{"v":0,"d":"$0.00"},{"v":0,"d":"$0.00"},{"v":0,"d":"$0.00"},{"v":0,"d":"$0.00"},{"v":0,"d":"$0.00"},{"$f":"'MMA Rev-Exp Region 1'!AV$15","v":{"v":0,"d":"$0.00"}}]
["MMA",null,null,{"$f":"Jurat!I$1","v":0},{"$f":"Jurat!D$33","v":"00:00:00"},"PY","1917-01-01","Region 1","Operating Revenue","Other Revenue","Other Revenue","1.6","Other Revenue",{"v":0,"d":"$0.00"},{"v":0,"d":"$0.00"},{"v":0,"d":"$0.00"},{"v":0,"d":"$0.00"},{"v":0,"d":"$0.00"},{"v":0,"d":"$0.00"},{"v":0,"d":"$0.00"},{"v":0,"d":"$0.00"},{"v":0,"d":"$0.00"},{"v":0,"d":"$0.00"},{"v":0,"d":"$0.00"},{"$f":"'MMA Rev-Exp Region 1'!AV$16","v":{"v":0,"d":"$0.00"}}]
["MMA",null,null,{"$f":"Jurat!I$1","v":0},{"$f":"Jurat!D$33","v":"00:00:00"},"PY","1917-01-01","Region 1","Operating Expense","Medical Benefits Expense","Hospital Services",2.1,"Inpatient FFS",{"v":0,"d":"$0.00"},{"v":0,"d":"$0.00"},{"v":0,"d":"$0.00"},{"v":0,"d":"$0.00"},{"v":0,"d":"$0.00"},{"v":0,"d":"$0.00"},{"v":0,"d":"$0.00"},{"v":0,"d":"$0.00"},{"v":0,"d":"$0.00"},{"v":0,"d":"$0.00"},{"v":0,"d":"$0.00"},{"$f":"'MMA Rev-Exp Region 1'!AV$20","v":{"v":0,"d":"$0.00"}}]
["MMA",null,null,{"$f":"Jurat!I$1","v":0},{"$f":"Jurat!D$33","v":"00:00:00"},"PY","1917-01-01","Region 1","Operating Expense","Medical Benefits Expense","Hospital Services",2.2,"Ending IBNP for Inpatient Hospital Services",{"v":0,"d":"$0.00"},{"v":0,"d":"$0.00"},{"v":0,"d":"$0.00"},{"v":0,"d":"$0.00"},{"v":0,"d":"$0.00"},{"v":0,"d":"$0.00"},{"v":0,"d":"$0.00"},{"v":0,"d":"$0.00"},{"v":0,"d":"$0.00"},{"v":0,"d":"$0.00"},{"v":0,"d":"$0.00"},{"$f":"'MMA Rev-Exp Region 1'!AV$21","v":{"v":0,"d":"$0.00"}}]
["MMA",null,null,{"$f":"Jurat!I$1","v":0},{"$f":"Jurat!D$33","v":"00:00:00"},"PY","1917-01-01","Region 1","Operating Expense","Medical Benefits Expense","Hospital Services",2.3,"Outpatient FFS: ER",{"v":0,"d":"$0.00"},{"v":0,"d":"$0.00"},{"v":0,"d":"$0.00"},{"v":0,"d":"$0.00"},{"v":0,"d":"$0.00"},{"v":0,"d":"$0.00"},{"v":0,"d":"$0.00"},{"v":0,"d":"$0.00"},{"v":0,"d":"$0.00"},{"v":0,"d":"$0.00"},{"v":0,"d":"$0.00"},{"$f":"'MMA Rev-Exp Region 1'!AV$22","v":{"v":0,"d":"$0.00"}}]
["MMA",null,null,{"$f":"Jurat!I$1","v":0},{"$f":"Jurat!D$33","v":"00:00:00"},"PY","1917-01-01","Region 1","Operating Expense","Medical Benefits Expense","Hospital Services",2.4,"Outpatient FFS: Other than ER ",{"v":0,"d":"$0.00"},{"v":0,"d":"$0.00"},{"v":0,"d":"$0.00"},{"v":0,"d":"$0.00"},{"v":0,"d":"$0.00"},{"v":0,"d":"$0.00"},{"v":0,"d":"$0.00"},{"v":0,"d":"$0.00"},{"v":0,"d":"$0.00"},{"v":0,"d":"$0.00"},{"v":0,"d":"$0.00"},{"$f":"'MMA Rev-Exp Region 1'!AV$23","v":{"v":0,"d":"$0.00"}}]
["MMA",null,null,{"$f":"Jurat!I$1","v":0},{"$f":"Jurat!D$33","v":"00:00:00"},"PY","1917-01-01","Region 1","Operating Expense","Medical Benefits Expense","Hospital Services",2.5,"Ending IBNP for Outpatient Hospital Services",{"v":0,"d":"$0.00"},{"v":0,"d":"$0.00"},{"v":0,"d":"$0.00"},{"v":0,"d":"$0.00"},{"v":0,"d":"$0.00"},{"v":0,"d":"$0.00"},{"v":0,"d":"$0.00"},{"v":0,"d":"$0.00"},{"v":0,"d":"$0.00"},{"v":0,"d":"$0.00"},{"v":0,"d":"$0.00"},{"$f":"'MMA Rev-Exp Region 1'!AV$24","v":{"v":0,"d":"$0.00"}}]
["MMA",null,null,{"$f":"Jurat!I$1","v":0},{"$f":"Jurat!D$33","v":"00:00:00"},"PY","1917-01-01","Region 1","Operating Expense","Medical Benefits Expense","Hospital Services","2.6","Subcapitated Hospital Services",{"v":0,"d":"$0.00"},{"v":0,"d":"$0.00"},{"v":0,"d":"$0.00"},{"v":0,"d":"$0.00"},{"v":0,"d":"$0.00"},{"v":0,"d":"$0.00"},{"v":0,"d":"$0.00"},{"v":0,"d":"$0.00"},{"v":0,"d":"$0.00"},{"v":0,"d":"$0.00"},{"v":0,"d":"$0.00"},{"$f":"'MMA Rev-Exp Region 1'!AV$25","v":{"v":0,"d":"$0.00"}}]
["MMA",null,null,{"$f":"Jurat!I$1","v":0},{"$f":"Jurat!D$33","v":"00:00:00"},"PY","1917-01-01","Region 1","Operating Expense","Medical Benefits Expense","Hospital Services","2.7","Hospital Settlements",{"v":0,"d":"$0.00"},{"v":0,"d":"$0.00"},{"v":0,"d":"$0.00"},{"v":0,"d":"$0.00"},{"v":0,"d":"$0.00"},{"v":0,"d":"$0.00"},{"v":0,"d":"$0.00"},{"v":0,"d":"$0.00"},{"v":0,"d":"$0.00"},{"v":0,"d":"$0.00"},{"v":0,"d":"$0.00"},{"$f":"'MMA Rev-Exp Region 1'!AV$26","v":{"v":0,"d":"$0.00"}}]
["MMA",null,null,{"$f":"Jurat!I$1","v":0},{"$f":"Jurat!D$33","v":"00:00:00"},"PY","1917-01-01","Region 1","Operating Expense","Medical Benefits Expense","Hospital Services","2.7.1","Transplant Services",{"v":0,"d":"$0.00"},{"v":0,"d":"$0.00"},{"v":0,"d":"$0.00"},{"v":0,"d":"$0.00"},{"v":0,"d":"$0.00"},{"v":0,"d":"$0.00"},{"v":0,"d":"$0.00"},{"v":0,"d":"$0.00"},{"v":0,"d":"$0.00"},{"v":0,"d":"$0.00"},{"v":0,"d":"$0.00"},{"$f":"'MMA Rev-Exp Region 1'!AV$27","v":{"v":0,"d":"$0.00"}}]
["MMA",null,null,{"$f":"Jurat!I$1","v":0},{"$f":"Jurat!D$33","v":"00:00:00"},"PY","1917-01-01","Region 1","Operating Expense","Medical Benefits Expense","Professional Services",3.1,"Primary Care FFS",{"v":0,"d":"$0.00"},{"v":0,"d":"$0.00"},{"v":0,"d":"$0.00"},{"v":0,"d":"$0.00"},{"v":0,"d":"$0.00"},{"v":0,"d":"$0.00"},{"v":0,"d":"$0.00"},{"v":0,"d":"$0.00"},{"v":0,"d":"$0.00"},{"v":0,"d":"$0.00"},{"v":0,"d":"$0.00"},{"$f":"'MMA Rev-Exp Region 1'!AV$29","v":{"v":0,"d":"$0.00"}}]
["MMA",null,null,{"$f":"Jurat!I$1","v":0},{"$f":"Jurat!D$33","v":"00:00:00"},"PY","1917-01-01","Region 1","Operating Expense","Medical Benefits Expense","Professional Services",3.2,"Specialty Care FFS",{"v":0,"d":"$0.00"},{"v":0,"d":"$0.00"},{"v":0,"d":"$0.00"},{"v":0,"d":"$0.00"},{"v":0,"d":"$0.00"},{"v":0,"d":"$0.00"},{"v":0,"d":"$0.00"},{"v":0,"d":"$0.00"},{"v":0,"d":"$0.00"},{"v":0,"d":"$0.00"},{"v":0,"d":"$0.00"},{"$f":"'MMA Rev-Exp Region 1'!AV$30","v":{"v":0,"d":"$0.00"}}]
["MMA",null,null,{"$f":"Jurat!I$1","v":0},{"$f":"Jurat!D$33","v":"00:00:00"},"PY","1917-01-01","Region 1","Operating Expense","Medical Benefits Expense","Professional Services",3.3,"Other Professional FFS",{"v":0,"d":"$0.00"},{"v":0,"d":"$0.00"},{"v":0,"d":"$0.00"},{"v":0,"d":"$0.00"},{"v":0,"d":"$0.00"},{"v":0,"d":"$0.00"},{"v":0,"d":"$0.00"},{"v":0,"d":"$0.00"},{"v":0,"d":"$0.00"},{"v":0,"d":"$0.00"},{"v":0,"d":"$0.00"},{"$f":"'MMA Rev-Exp Region 1'!AV$31","v":{"v":0,"d":"$0.00"}}]
["MMA",null,null,{"$f":"Jurat!I$1","v":0},{"$f":"Jurat!D$33","v":"00:00:00"},"PY","1917-01-01","Region 1","Operating Expense","Medical Benefits Expense","Professional Services","3.4","§ 1202 PCP Payments to providers",{"v":0,"d":"$0.00"},{"v":0,"d":"$0.00"},{"v":0,"d":"$0.00"},{"v":0,"d":"$0.00"},{"v":0,"d":"$0.00"},{"v":0,"d":"$0.00"},{"v":0,"d":"$0.00"},{"v":0,"d":"$0.00"},{"v":0,"d":"$0.00"},{"v":0,"d":"$0.00"},{"v":0,"d":"$0.00"},{"$f":"'MMA Rev-Exp Region 1'!AV$32","v":{"v":0,"d":"$0.00"}}]
["MMA",null,null,{"$f":"Jurat!I$1","v":0},{"$f":"Jurat!D$33","v":"00:00:00"},"PY","1917-01-01","Region 1","Operating Expense","Medical Benefits Expense","Professional Services","3.5","Subcapitated Professional Services",{"v":0,"d":"$0.00"},{"v":0,"d":"$0.00"},{"v":0,"d":"$0.00"},{"v":0,"d":"$0.00"},{"v":0,"d":"$0.00"},{"v":0,"d":"$0.00"},{"v":0,"d":"$0.00"},{"v":0,"d":"$0.00"},{"v":0,"d":"$0.00"},{"v":0,"d":"$0.00"},{"v":0,"d":"$0.00"},{"$f":"'MMA Rev-Exp Region 1'!AV$33","v":{"v":0,"d":"$0.00"}}]
["MMA",null,null,{"$f":"Jurat!I$1","v":0},{"$f":"Jurat!D$33","v":"00:00:00"},"PY","1917-01-01","Region 1","Operating Expense","Medical Benefits Expense","Professional Services","3.6","Ending IBNP for Professional Services",{"v":0,"d":"$0.00"},{"v":0,"d":"$0.00"},{"v":0,"d":"$0.00"},{"v":0,"d":"$0.00"},{"v":0,"d":"$0.00"},{"v":0,"d":"$0.00"},{"v":0,"d":"$0.00"},{"v":0,"d":"$0.00"},{"v":0,"d":"$0.00"},{"v":0,"d":"$0.00"},{"v":0,"d":"$0.00"},{"$f":"'MMA Rev-Exp Region 1'!AV$34","v":{"v":0,"d":"$0.00"}}]
["MMA",null,null,{"$f":"Jurat!I$1","v":0},{"$f":"Jurat!D$33","v":"00:00:00"},"PY","1917-01-01","Region 1","Operating Expense","Medical Benefits Expense","Professional Services","3.7","Professional Services Settlements",{"v":0,"d":"$0.00"},{"v":0,"d":"$0.00"},{"v":0,"d":"$0.00"},{"v":0,"d":"$0.00"},{"v":0,"d":"$0.00"},{"v":0,"d":"$0.00"},{"v":0,"d":"$0.00"},{"v":0,"d":"$0.00"},{"v":0,"d":"$0.00"},{"v":0,"d":"$0.00"},{"v":0,"d":"$0.00"},{"$f":"'MMA Rev-Exp Region 1'!AV$35","v":{"v":0,"d":"$0.00"}}]
["MMA",null,null,{"$f":"Jurat!I$1","v":0},{"$f":"Jurat!D$33","v":"00:00:00"},"PY","1917-01-01","Region 1","Operating Expense","Medical Benefits Expense","Maternity Services","4.1.1","Maternity Services",{"v":0,"d":"$0.00"},{"v":0,"d":"$0.00"},{"v":0,"d":"$0.00"},{"v":0,"d":"$0.00"},{"v":0,"d":"$0.00"},{"v":0,"d":"$0.00"},{"v":0,"d":"$0.00"},{"v":0,"d":"$0.00"},{"v":0,"d":"$0.00"},{"v":0,"d":"$0.00"},{"v":0,"d":"$0.00"},{"$f":"'MMA Rev-Exp Region 1'!AV$37","v":{"v":0,"d":"$0.00"}}]
["MMA",null,null,{"$f":"Jurat!I$1","v":0},{"$f":"Jurat!D$33","v":"00:00:00"},"PY","1917-01-01","Region 1","Operating Expense","Medical Benefits Expense","Maternity Services","4.2.1","Ending IBNP for Maternity Services",{"v":0,"d":"$0.00"},{"v":0,"d":"$0.00"},{"v":0,"d":"$0.00"},{"v":0,"d":"$0.00"},{"v":0,"d":"$0.00"},{"v":0,"d":"$0.00"},{"v":0,"d":"$0.00"},{"v":0,"d":"$0.00"},{"v":0,"d":"$0.00"},{"v":0,"d":"$0.00"},{"v":0,"d":"$0.00"},{"$f":"'MMA Rev-Exp Region 1'!AV$38","v":{"v":0,"d":"$0.00"}}]
["MMA",null,null,{"$f":"Jurat!I$1","v":0},{"$f":"Jurat!D$33","v":"00:00:00"},"PY","1917-01-01","Region 1","Operating Expense","Medical Benefits Expense","Maternity Services","4.3.1","Maternity Settlements",{"v":0,"d":"$0.00"},{"v":0,"d":"$0.00"},{"v":0,"d":"$0.00"},{"v":0,"d":"$0.00"},{"v":0,"d":"$0.00"},{"v":0,"d":"$0.00"},{"v":0,"d":"$0.00"},{"v":0,"d":"$0.00"},{"v":0,"d":"$0.00"},{"v":0,"d":"$0.00"},{"v":0,"d":"$0.00"},{"$f":"'MMA Rev-Exp Region 1'!AV$39","v":{"v":0,"d":"$0.00"}}]
["MMA",null,null,{"$f":"Jurat!I$1","v":0},{"$f":"Jurat!D$33","v":"00:00:00"},"PY","1917-01-01","Region 1","Operating Expense","Medical Benefits Expense","Mental Health Services",5.1,"Mental Health & Substance Abuse FFS",{"v":0,"d":"$0.00"},{"v":0,"d":"$0.00"},{"v":0,"d":"$0.00"},{"v":0,"d":"$0.00"},{"v":0,"d":"$0.00"},{"v":0,"d":"$0.00"},{"v":0,"d":"$0.00"},{"v":0,"d":"$0.00"},{"v":0,"d":"$0.00"},{"v":0,"d":"$0.00"},{"v":0,"d":"$0.00"},{"$f":"'MMA Rev-Exp Region 1'!AV$41","v":{"v":0,"d":"$0.00"}}]
["MMA",null,null,{"$f":"Jurat!I$1","v":0},{"$f":"Jurat!D$33","v":"00:00:00"},"PY","1917-01-01","Region 1","Operating Expense","Medical Benefits Expense","Mental Health Services",5.2,"Mental Health & Substance Abuse Subcapitation",{"v":0,"d":"$0.00"},{"v":0,"d":"$0.00"},{"v":0,"d":"$0.00"},{"v":0,"d":"$0.00"},{"v":0,"d":"$0.00"},{"v":0,"d":"$0.00"},{"v":0,"d":"$0.00"},{"v":0,"d":"$0.00"},{"v":0,"d":"$0.00"},{"v":0,"d":"$0.00"},{"v":0,"d":"$0.00"},{"$f":"'MMA Rev-Exp Region 1'!AV$42","v":{"v":0,"d":"$0.00"}}]
["MMA",null,null,{"$f":"Jurat!I$1","v":0},{"$f":"Jurat!D$33","v":"00:00:00"},"PY","1917-01-01","Region 1","Operating Expense","Medical Benefits Expense","Mental Health Services",5.3,"Ending IBNP for Mental Health & Substance Abuse",{"v":0,"d":"$0.00"},{"v":0,"d":"$0.00"},{"v":0,"d":"$0.00"},{"v":0,"d":"$0.00"},{"v":0,"d":"$0.00"},{"v":0,"d":"$0.00"},{"v":0,"d":"$0.00"},{"v":0,"d":"$0.00"},{"v":0,"d":"$0.00"},{"v":0,"d":"$0.00"},{"v":0,"d":"$0.00"},{"$f":"'MMA Rev-Exp Region 1'!AV$43","v":{"v":0,"d":"$0.00"}}]
["MMA",null,null,{"$f":"Jurat!I$1","v":0},{"$f":"Jurat!D$33","v":"00:00:00"},"PY","1917-01-01","Region 1","Operating Expense","Medical Benefits Expense","Mental Health Services","5.4","Mental Health Settlements",{"v":0,"d":"$0.00"},{"v":0,"d":"$0.00"},{"v":0,"d":"$0.00"},{"v":0,"d":"$0.00"},{"v":0,"d":"$0.00"},{"v":0,"d":"$0.00"},{"v":0,"d":"$0.00"},{"v":0,"d":"$0.00"},{"v":0,"d":"$0.00"},{"v":0,"d":"$0.00"},{"v":0,"d":"$0.00"},{"$f":"'MMA Rev-Exp Region 1'!AV$44","v":{"v":0,"d":"$0.00"}}]
["MMA",null,null,{"$f":"Jurat!I$1","v":0},{"$f":"Jurat!D$33","v":"00:00:00"},"PY","1917-01-01","Region 1","Operating Expense","Medical Benefits Expense","Dental Services",6.1,"Dental FFS",{"v":0,"d":"$0.00"},{"v":0,"d":"$0.00"},{"v":0,"d":"$0.00"},{"v":0,"d":"$0.00"},{"v":0,"d":"$0.00"},{"v":0,"d":"$0.00"},{"v":0,"d":"$0.00"},{"v":0,"d":"$0.00"},{"v":0,"d":"$0.00"},{"v":0,"d":"$0.00"},{"v":0,"d":"$0.00"},{"$f":"'MMA Rev-Exp Region 1'!AV$46","v":{"v":0,"d":"$0.00"}}]
["MMA",null,null,{"$f":"Jurat!I$1","v":0},{"$f":"Jurat!D$33","v":"00:00:00"},"PY","1917-01-01","Region 1","Operating Expense","Medical Benefits Expense","Dental Services",6.2,"Dental Subcapitation",{"v":0,"d":"$0.00"},{"v":0,"d":"$0.00"},{"v":0,"d":"$0.00"},{"v":0,"d":"$0.00"},{"v":0,"d":"$0.00"},{"v":0,"d":"$0.00"},{"v":0,"d":"$0.00"},{"v":0,"d":"$0.00"},{"v":0,"d":"$0.00"},{"v":0,"d":"$0.00"},{"v":0,"d":"$0.00"},{"$f":"'MMA Rev-Exp Region 1'!AV$47","v":{"v":0,"d":"$0.00"}}]
["MMA",null,null,{"$f":"Jurat!I$1","v":0},{"$f":"Jurat!D$33","v":"00:00:00"},"PY","1917-01-01","Region 1","Operating Expense","Medical Benefits Expense","Dental Services",6.3,"Ending IBNP for Dental Services",{"v":0,"d":"$0.00"},{"v":0,"d":"$0.00"},{"v":0,"d":"$0.00"},{"v":0,"d":"$0.00"},{"v":0,"d":"$0.00"},{"v":0,"d":"$0.00"},{"v":0,"d":"$0.00"},{"v":0,"d":"$0.00"},{"v":0,"d":"$0.00"},{"v":0,"d":"$0.00"},{"v":0,"d":"$0.00"},{"$f":"'MMA Rev-Exp Region 1'!AV$48","v":{"v":0,"d":"$0.00"}}]
["MMA",null,null,{"$f":"Jurat!I$1","v":0},{"$f":"Jurat!D$33","v":"00:00:00"},"PY","1917-01-01","Region 1","Operating Expense","Medical Benefits Expense","Dental Services","6.4","Dental Settlements",{"v":0,"d":"$0.00"},{"v":0,"d":"$0.00"},{"v":0,"d":"$0.00"},{"v":0,"d":"$0.00"},{"v":0,"d":"$0.00"},{"v":0,"d":"$0.00"},{"v":0,"d":"$0.00"},{"v":0,"d":"$0.00"},{"v":0,"d":"$0.00"},{"v":0,"d":"$0.00"},{"v":0,"d":"$0.00"},{"$f":"'MMA Rev-Exp Region 1'!AV$49","v":{"v":0,"d":"$0.00"}}]
["MMA",null,null,{"$f":"Jurat!I$1","v":0},{"$f":"Jurat!D$33","v":"00:00:00"},"PY","1917-01-01","Region 1","Operating Expense","Medical Benefits Expense","Transportation Services",7.1,"Transportation FFS",{"v":0,"d":"$0.00"},{"v":0,"d":"$0.00"},{"v":0,"d":"$0.00"},{"v":0,"d":"$0.00"},{"v":0,"d":"$0.00"},{"v":0,"d":"$0.00"},{"v":0,"d":"$0.00"},{"v":0,"d":"$0.00"},{"v":0,"d":"$0.00"},{"v":0,"d":"$0.00"},{"v":0,"d":"$0.00"},{"$f":"'MMA Rev-Exp Region 1'!AV$51","v":{"v":0,"d":"$0.00"}}]
["MMA",null,null,{"$f":"Jurat!I$1","v":0},{"$f":"Jurat!D$33","v":"00:00:00"},"PY","1917-01-01","Region 1","Operating Expense","Medical Benefits Expense","Transportation Services",7.2,"Transportation Subcapitation",{"v":0,"d":"$0.00"},{"v":0,"d":"$0.00"},{"v":0,"d":"$0.00"},{"v":0,"d":"$0.00"},{"v":0,"d":"$0.00"},{"v":0,"d":"$0.00"},{"v":0,"d":"$0.00"},{"v":0,"d":"$0.00"},{"v":0,"d":"$0.00"},{"v":0,"d":"$0.00"},{"v":0,"d":"$0.00"},{"$f":"'MMA Rev-Exp Region 1'!AV$52","v":{"v":0,"d":"$0.00"}}]
["MMA",null,null,{"$f":"Jurat!I$1","v":0},{"$f":"Jurat!D$33","v":"00:00:00"},"PY","1917-01-01","Region 1","Operating Expense","Medical Benefits Expense","Transportation Services",7.3,"Ending IBNP for Transportation",{"v":0,"d":"$0.00"},{"v":0,"d":"$0.00"},{"v":0,"d":"$0.00"},{"v":0,"d":"$0.00"},{"v":0,"d":"$0.00"},{"v":0,"d":"$0.00"},{"v":0,"d":"$0.00"},{"v":0,"d":"$0.00"},{"v":0,"d":"$0.00"},{"v":0,"d":"$0.00"},{"v":0,"d":"$0.00"},{"$f":"'MMA Rev-Exp Region 1'!AV$53","v":{"v":0,"d":"$0.00"}}]
["MMA",null,null,{"$f":"Jurat!I$1","v":0},{"$f":"Jurat!D$33","v":"00:00:00"},"PY","1917-01-01","Region 1","Operating Expense","Medical Benefits Expense","Transportation Services","7.4","Transportation Settlements",{"v":0,"d":"$0.00"},{"v":0,"d":"$0.00"},{"v":0,"d":"$0.00"},{"v":0,"d":"$0.00"},{"v":0,"d":"$0.00"},{"v":0,"d":"$0.00"},{"v":0,"d":"$0.00"},{"v":0,"d":"$0.00"},{"v":0,"d":"$0.00"},{"v":0,"d":"$0.00"},{"v":0,"d":"$0.00"},{"$f":"'MMA Rev-Exp Region 1'!AV$54","v":{"v":0,"d":"$0.00"}}]
["MMA",null,null,{"$f":"Jurat!I$1","v":0},{"$f":"Jurat!D$33","v":"00:00:00"},"PY","1917-01-01","Region 1","Operating Expense","Medical Benefits Expense","Pharmacy Services",8.1,"Prescription Drugs FFS",{"v":0,"d":"$0.00"},{"v":0,"d":"$0.00"},{"v":0,"d":"$0.00"},{"v":0,"d":"$0.00"},{"v":0,"d":"$0.00"},{"v":0,"d":"$0.00"},{"v":0,"d":"$0.00"},{"v":0,"d":"$0.00"},{"v":0,"d":"$0.00"},{"v":0,"d":"$0.00"},{"v":0,"d":"$0.00"},{"$f":"'MMA Rev-Exp Region 1'!AV$56","v":{"v":0,"d":"$0.00"}}]
["MMA",null,null,{"$f":"Jurat!I$1","v":0},{"$f":"Jurat!D$33","v":"00:00:00"},"PY","1917-01-01","Region 1","Operating Expense","Medical Benefits Expense","Pharmacy Services","8.2","Hepatitis C Prescription Drug FFS",{"v":0,"d":"$0.00"},{"v":0,"d":"$0.00"},{"v":0,"d":"$0.00"},{"v":0,"d":"$0.00"},{"v":0,"d":"$0.00"},{"v":0,"d":"$0.00"},{"v":0,"d":"$0.00"},{"v":0,"d":"$0.00"},{"v":0,"d":"$0.00"},{"v":0,"d":"$0.00"},{"v":0,"d":"$0.00"},{"$f":"'MMA Rev-Exp Region 1'!AV$57","v":{"v":0,"d":"$0.00"}}]
["MMA",null,null,{"$f":"Jurat!I$1","v":0},{"$f":"Jurat!D$33","v":"00:00:00"},"PY","1917-01-01","Region 1","Operating Expense","Medical Benefits Expense","Pharmacy Services","8.3","Ending IBNP for Prescription Drugs",{"v":0,"d":"$0.00"},{"v":0,"d":"$0.00"},{"v":0,"d":"$0.00"},{"v":0,"d":"$0.00"},{"v":0,"d":"$0.00"},{"v":0,"d":"$0.00"},{"v":0,"d":"$0.00"},{"v":0,"d":"$0.00"},{"v":0,"d":"$0.00"},{"v":0,"d":"$0.00"},{"v":0,"d":"$0.00"},{"$f":"'MMA Rev-Exp Region 1'!AV$58","v":{"v":0,"d":"$0.00"}}]
["MMA",null,null,{"$f":"Jurat!I$1","v":0},{"$f":"Jurat!D$33","v":"00:00:00"},"PY","1917-01-01","Region 1","Operating Expense","Medical Benefits Expense","Pharmacy Services","8.4","Prescription Drug Rebates ",{"v":0,"d":"$0.00"},{"v":0,"d":"$0.00"},{"v":0,"d":"$0.00"},{"v":0,"d":"$0.00"},{"v":0,"d":"$0.00"},{"v":0,"d":"$0.00"},{"v":0,"d":"$0.00"},{"v":0,"d":"$0.00"},{"v":0,"d":"$0.00"},{"v":0,"d":"$0.00"},{"v":0,"d":"$0.00"},{"$f":"'MMA Rev-Exp Region 1'!AV$59","v":{"v":0,"d":"$0.00"}}]
["MMA",null,null,{"$f":"Jurat!I$1","v":0},{"$f":"Jurat!D$33","v":"00:00:00"},"PY","1917-01-01","Region 1","Operating Expense","Medical Benefits Expense","Pharmacy Services","8.5","Ending accrual for Rebates receivable",{"v":0,"d":"$0.00"},{"v":0,"d":"$0.00"},{"v":0,"d":"$0.00"},{"v":0,"d":"$0.00"},{"v":0,"d":"$0.00"},{"v":0,"d":"$0.00"},{"v":0,"d":"$0.00"},{"v":0,"d":"$0.00"},{"v":0,"d":"$0.00"},{"v":0,"d":"$0.00"},{"v":0,"d":"$0.00"},{"$f":"'MMA Rev-Exp Region 1'!AV$60","v":{"v":0,"d":"$0.00"}}]
["MMA",null,null,{"$f":"Jurat!I$1","v":0},{"$f":"Jurat!D$33","v":"00:00:00"},"PY","1917-01-01","Region 1","Operating Expense","Medical Benefits Expense","Pharmacy Services","8.6","Prescription Drugs Subcapitation",{"v":0,"d":"$0.00"},{"v":0,"d":"$0.00"},{"v":0,"d":"$0.00"},{"v":0,"d":"$0.00"},{"v":0,"d":"$0.00"},{"v":0,"d":"$0.00"},{"v":0,"d":"$0.00"},{"v":0,"d":"$0.00"},{"v":0,"d":"$0.00"},{"v":0,"d":"$0.00"},{"v":0,"d":"$0.00"},{"$f":"'MMA Rev-Exp Region 1'!AV$61","v":{"v":0,"d":"$0.00"}}]
["MMA",null,null,{"$f":"Jurat!I$1","v":0},{"$f":"Jurat!D$33","v":"00:00:00"},"PY","1917-01-01","Region 1","Operating Expense","Medical Benefits Expense","Pharmacy Services","8.7","Prescription Drug Settlements",{"v":0,"d":"$0.00"},{"v":0,"d":"$0.00"},{"v":0,"d":"$0.00"},{"v":0,"d":"$0.00"},{"v":0,"d":"$0.00"},{"v":0,"d":"$0.00"},{"v":0,"d":"$0.00"},{"v":0,"d":"$0.00"},{"v":0,"d":"$0.00"},{"v":0,"d":"$0.00"},{"v":0,"d":"$0.00"},{"$f":"'MMA Rev-Exp Region 1'!AV$62","v":{"v":0,"d":"$0.00"}}]
["MMA",null,null,{"$f":"Jurat!I$1","v":0},{"$f":"Jurat!D$33","v":"00:00:00"},"PY","1917-01-01","Region 1","Operating Expense","Medical Benefits Expense","Other MMA Services",9.1,"Home Health, Private Duty Nursing, Personal Care FFS",{"v":0,"d":"$0.00"},{"v":0,"d":"$0.00"},{"v":0,"d":"$0.00"},{"v":0,"d":"$0.00"},{"v":0,"d":"$0.00"},{"v":0,"d":"$0.00"},{"v":0,"d":"$0.00"},{"v":0,"d":"$0.00"},{"v":0,"d":"$0.00"},{"v":0,"d":"$0.00"},{"v":0,"d":"$0.00"},{"$f":"'MMA Rev-Exp Region 1'!AV$64","v":{"v":0,"d":"$0.00"}}]
["MMA",null,null,{"$f":"Jurat!I$1","v":0},{"$f":"Jurat!D$33","v":"00:00:00"},"PY","1917-01-01","Region 1","Operating Expense","Medical Benefits Expense","Other MMA Services","9.2","Hospice FFS",{"v":0,"d":"$0.00"},{"v":0,"d":"$0.00"},{"v":0,"d":"$0.00"},{"v":0,"d":"$0.00"},{"v":0,"d":"$0.00"},{"v":0,"d":"$0.00"},{"v":0,"d":"$0.00"},{"v":0,"d":"$0.00"},{"v":0,"d":"$0.00"},{"v":0,"d":"$0.00"},{"v":0,"d":"$0.00"},{"$f":"'MMA Rev-Exp Region 1'!AV$65","v":{"v":0,"d":"$0.00"}}]
["MMA",null,null,{"$f":"Jurat!I$1","v":0},{"$f":"Jurat!D$33","v":"00:00:00"},"PY","1917-01-01","Region 1","Operating Expense","Medical Benefits Expense","Other MMA Services","9.3","DME FFS",{"v":0,"d":"$0.00"},{"v":0,"d":"$0.00"},{"v":0,"d":"$0.00"},{"v":0,"d":"$0.00"},{"v":0,"d":"$0.00"},{"v":0,"d":"$0.00"},{"v":0,"d":"$0.00"},{"v":0,"d":"$0.00"},{"v":0,"d":"$0.00"},{"v":0,"d":"$0.00"},{"v":0,"d":"$0.00"},{"$f":"'MMA Rev-Exp Region 1'!AV$66","v":{"v":0,"d":"$0.00"}}]
["MMA",null,null,{"$f":"Jurat!I$1","v":0},{"$f":"Jurat!D$33","v":"00:00:00"},"PY","1917-01-01","Region 1","Operating Expense","Medical Benefits Expense","Other MMA Services","9.4","Other State Plan Services FFS",{"v":0,"d":"$0.00"},{"v":0,"d":"$0.00"},{"v":0,"d":"$0.00"},{"v":0,"d":"$0.00"},{"v":0,"d":"$0.00"},{"v":0,"d":"$0.00"},{"v":0,"d":"$0.00"},{"v":0,"d":"$0.00"},{"v":0,"d":"$0.00"},{"v":0,"d":"$0.00"},{"v":0,"d":"$0.00"},{"$f":"'MMA Rev-Exp Region 1'!AV$67","v":{"v":0,"d":"$0.00"}}]
["MMA",null,null,{"$f":"Jurat!I$1","v":0},{"$f":"Jurat!D$33","v":"00:00:00"},"PY","1917-01-01","Region 1","Operating Expense","Medical Benefits Expense","Other MMA Services","9.5","Other Services Subcapitation",{"v":0,"d":"$0.00"},{"v":0,"d":"$0.00"},{"v":0,"d":"$0.00"},{"v":0,"d":"$0.00"},{"v":0,"d":"$0.00"},{"v":0,"d":"$0.00"},{"v":0,"d":"$0.00"},{"v":0,"d":"$0.00"},{"v":0,"d":"$0.00"},{"v":0,"d":"$0.00"},{"v":0,"d":"$0.00"},{"$f":"'MMA Rev-Exp Region 1'!AV$68","v":{"v":0,"d":"$0.00"}}]
["MMA",null,null,{"$f":"Jurat!I$1","v":0},{"$f":"Jurat!D$33","v":"00:00:00"},"PY","1917-01-01","Region 1","Operating Expense","Medical Benefits Expense","Other MMA Services","9.6","Ending IBNP for Other Services",{"v":0,"d":"$0.00"},{"v":0,"d":"$0.00"},{"v":0,"d":"$0.00"},{"v":0,"d":"$0.00"},{"v":0,"d":"$0.00"},{"v":0,"d":"$0.00"},{"v":0,"d":"$0.00"},{"v":0,"d":"$0.00"},{"v":0,"d":"$0.00"},{"v":0,"d":"$0.00"},{"v":0,"d":"$0.00"},{"$f":"'MMA Rev-Exp Region 1'!AV$69","v":{"v":0,"d":"$0.00"}}]
["MMA",null,null,{"$f":"Jurat!I$1","v":0},{"$f":"Jurat!D$33","v":"00:00:00"},"PY","1917-01-01","Region 1","Operating Expense","Medical Benefits Expense","Other MMA Services","9.7","Other Services Settlements",{"v":0,"d":"$0.00"},{"v":0,"d":"$0.00"},{"v":0,"d":"$0.00"},{"v":0,"d":"$0.00"},{"v":0,"d":"$0.00"},{"v":0,"d":"$0.00"},{"v":0,"d":"$0.00"},{"v":0,"d":"$0.00"},{"v":0,"d":"$0.00"},{"v":0,"d":"$0.00"},{"v":0,"d":"$0.00"},{"$f":"'MMA Rev-Exp Region 1'!AV$70","v":{"v":0,"d":"$0.00"}}]
["MMA",null,null,{"$f":"Jurat!I$1","v":0},{"$f":"Jurat!D$33","v":"00:00:00"},"PY","1917-01-01","Region 1","Operating Expense","Medical Benefits Expense","Expanded Benefits","10.1","Expanded Benefits FFS",{"v":0,"d":"$0.00"},{"v":0,"d":"$0.00"},{"v":0,"d":"$0.00"},{"v":0,"d":"$0.00"},{"v":0,"d":"$0.00"},{"v":0,"d":"$0.00"},{"v":0,"d":"$0.00"},{"v":0,"d":"$0.00"},{"v":0,"d":"$0.00"},{"v":0,"d":"$0.00"},{"v":0,"d":"$0.00"},{"$f":"'MMA Rev-Exp Region 1'!AV$72","v":{"v":0,"d":"$0.00"}}]
["MMA",null,null,{"$f":"Jurat!I$1","v":0},{"$f":"Jurat!D$33","v":"00:00:00"},"PY","1917-01-01","Region 1","Operating Expense","Medical Benefits Expense","Expanded Benefits","10.2","Expanded benefits Subcapitation",{"v":0,"d":"$0.00"},{"v":0,"d":"$0.00"},{"v":0,"d":"$0.00"},{"v":0,"d":"$0.00"},{"v":0,"d":"$0.00"},{"v":0,"d":"$0.00"},{"v":0,"d":"$0.00"},{"v":0,"d":"$0.00"},{"v":0,"d":"$0.00"},{"v":0,"d":"$0.00"},{"v":0,"d":"$0.00"},{"$f":"'MMA Rev-Exp Region 1'!AV$73","v":{"v":0,"d":"$0.00"}}]
["MMA",null,null,{"$f":"Jurat!I$1","v":0},{"$f":"Jurat!D$33","v":"00:00:00"},"PY","1917-01-01","Region 1","Operating Expense","Medical Benefits Expense","Expanded Benefits","10.3","Ending IBNP for Expanded Benefits",{"v":0,"d":"$0.00"},{"v":0,"d":"$0.00"},{"v":0,"d":"$0.00"},{"v":0,"d":"$0.00"},{"v":0,"d":"$0.00"},{"v":0,"d":"$0.00"},{"v":0,"d":"$0.00"},{"v":0,"d":"$0.00"},{"v":0,"d":"$0.00"},{"v":0,"d":"$0.00"},{"v":0,"d":"$0.00"},{"$f":"'MMA Rev-Exp Region 1'!AV$74","v":{"v":0,"d":"$0.00"}}]
["MMA",null,null,{"$f":"Jurat!I$1","v":0},{"$f":"Jurat!D$33","v":"00:00:00"},"PY","1917-01-01","Region 1","Operating Expense","Medical Benefits Expense","Expanded Benefits","10.4","Expanded Benefits Settlements",{"v":0,"d":"$0.00"},{"v":0,"d":"$0.00"},{"v":0,"d":"$0.00"},{"v":0,"d":"$0.00"},{"v":0,"d":"$0.00"},{"v":0,"d":"$0.00"},{"v":0,"d":"$0.00"},{"v":0,"d":"$0.00"},{"v":0,"d":"$0.00"},{"v":0,"d":"$0.00"},{"v":0,"d":"$0.00"},{"$f":"'MMA Rev-Exp Region 1'!AV$75","v":{"v":0,"d":"$0.00"}}]
["MMA",null,null,{"$f":"Jurat!I$1","v":0},{"$f":"Jurat!D$33","v":"00:00:00"},"PY","1917-01-01","Region 1","Operating Expense","Medical Benefits Expense","Other Medical","11.5","TPL & Fraud/Abuse Recoveries",{"v":0,"d":"$0.00"},{"v":0,"d":"$0.00"},{"v":0,"d":"$0.00"},{"v":0,"d":"$0.00"},{"v":0,"d":"$0.00"},{"v":0,"d":"$0.00"},{"v":0,"d":"$0.00"},{"v":0,"d":"$0.00"},{"v":0,"d":"$0.00"},{"v":0,"d":"$0.00"},{"v":0,"d":"$0.00"},{"$f":"'MMA Rev-Exp Region 1'!AV$81","v":{"v":0,"d":"$0.00"}}]
["MMA",null,null,{"$f":"Jurat!I$1","v":0},{"$f":"Jurat!D$33","v":"00:00:00"},"PY","1917-01-01","Region 1","Operating Expense","Medical Benefits Expense","Other Medical","11.6.1","Premium Deficiency Reserve",{"v":0,"d":"$0.00"},{"v":0,"d":"$0.00"},{"v":0,"d":"$0.00"},{"v":0,"d":"$0.00"},{"v":0,"d":"$0.00"},{"v":0,"d":"$0.00"},{"v":0,"d":"$0.00"},{"v":0,"d":"$0.00"},{"v":0,"d":"$0.00"},{"v":0,"d":"$0.00"},{"v":0,"d":"$0.00"},{"$f":"'MMA Rev-Exp Region 1'!AV$82","v":{"v":0,"d":"$0.00"}}]
["MMA",null,null,{"$f":"Jurat!I$1","v":0},{"$f":"Jurat!D$33","v":"00:00:00"},"PY","1917-01-01","Region 1","Operating Expense","Medical Benefits Expense","Other Medical","11.8","Reinsurance Premiums",{"v":0,"d":"$0.00"},{"v":0,"d":"$0.00"},{"v":0,"d":"$0.00"},{"v":0,"d":"$0.00"},{"v":0,"d":"$0.00"},{"v":0,"d":"$0.00"},{"v":0,"d":"$0.00"},{"v":0,"d":"$0.00"},{"v":0,"d":"$0.00"},{"v":0,"d":"$0.00"},{"v":0,"d":"$0.00"},{"$f":"'MMA Rev-Exp Region 1'!AV$84","v":{"v":0,"d":"$0.00"}}]
["MMA",null,null,{"$f":"Jurat!I$1","v":0},{"$f":"Jurat!D$33","v":"00:00:00"},"PY","1917-01-01","Region 1","Operating Expense","Medical Benefits Expense","Other Medical","11.9","Reinsurance Recoveries",{"v":0,"d":"$0.00"},{"v":0,"d":"$0.00"},{"v":0,"d":"$0.00"},{"v":0,"d":"$0.00"},{"v":0,"d":"$0.00"},{"v":0,"d":"$0.00"},{"v":0,"d":"$0.00"},{"v":0,"d":"$0.00"},{"v":0,"d":"$0.00"},{"v":0,"d":"$0.00"},{"v":0,"d":"$0.00"},{"$f":"'MMA Rev-Exp Region 1'!AV$85","v":{"v":0,"d":"$0.00"}}]
["MMA",null,null,{"$f":"Jurat!I$1","v":0},{"$f":"Jurat!D$33","v":"00:00:00"},"PY","1917-01-01","Region 1","Operating Expense","Administrative Expense","Administrative","12.1","Salaries & Benefits",{"v":0,"d":"$0.00"},{"v":0,"d":"$0.00"},{"v":0,"d":"$0.00"},{"v":0,"d":"$0.00"},{"v":0,"d":"$0.00"},{"v":0,"d":"$0.00"},{"v":0,"d":"$0.00"},{"v":0,"d":"$0.00"},{"v":0,"d":"$0.00"},{"v":0,"d":"$0.00"},{"v":0,"d":"$0.00"},{"$f":"'MMA Rev-Exp Region 1'!AV$90","v":{"v":0,"d":"$0.00"}}]
["MMA",null,null,{"$f":"Jurat!I$1","v":0},{"$f":"Jurat!D$33","v":"00:00:00"},"PY","1917-01-01","Region 1","Operating Expense","Administrative Expense","Administrative","12.2","Administrative Services",{"v":0,"d":"$0.00"},{"v":0,"d":"$0.00"},{"v":0,"d":"$0.00"},{"v":0,"d":"$0.00"},{"v":0,"d":"$0.00"},{"v":0,"d":"$0.00"},{"v":0,"d":"$0.00"},{"v":0,"d":"$0.00"},{"v":0,"d":"$0.00"},{"v":0,"d":"$0.00"},{"v":0,"d":"$0.00"},{"$f":"'MMA Rev-Exp Region 1'!AV$91","v":{"v":0,"d":"$0.00"}}]
["MMA",null,null,{"$f":"Jurat!I$1","v":0},{"$f":"Jurat!D$33","v":"00:00:00"},"PY","1917-01-01","Region 1","Operating Expense","Administrative Expense","Administrative","12.3","Information Systems",{"v":0,"d":"$0.00"},{"v":0,"d":"$0.00"},{"v":0,"d":"$0.00"},{"v":0,"d":"$0.00"},{"v":0,"d":"$0.00"},{"v":0,"d":"$0.00"},{"v":0,"d":"$0.00"},{"v":0,"d":"$0.00"},{"v":0,"d":"$0.00"},{"v":0,"d":"$0.00"},{"v":0,"d":"$0.00"},{"$f":"'MMA Rev-Exp Region 1'!AV$92","v":{"v":0,"d":"$0.00"}}]
["MMA",null,null,{"$f":"Jurat!I$1","v":0},{"$f":"Jurat!D$33","v":"00:00:00"},"PY","1917-01-01","Region 1","Operating Expense","Administrative Expense","Administrative","12.4","Marketing Expenses",{"v":0,"d":"$0.00"},{"v":0,"d":"$0.00"},{"v":0,"d":"$0.00"},{"v":0,"d":"$0.00"},{"v":0,"d":"$0.00"},{"v":0,"d":"$0.00"},{"v":0,"d":"$0.00"},{"v":0,"d":"$0.00"},{"v":0,"d":"$0.00"},{"v":0,"d":"$0.00"},{"v":0,"d":"$0.00"},{"$f":"'MMA Rev-Exp Region 1'!AV$93","v":{"v":0,"d":"$0.00"}}]
["MMA",null,null,{"$f":"Jurat!I$1","v":0},{"$f":"Jurat!D$33","v":"00:00:00"},"PY","1917-01-01","Region 1","Operating Expense","Administrative Expense","Administrative","12.5","General  Administration",{"v":0,"d":"$0.00"},{"v":0,"d":"$0.00"},{"v":0,"d":"$0.00"},{"v":0,"d":"$0.00"},{"v":0,"d":"$0.00"},{"v":0,"d":"$0.00"},{"v":0,"d":"$0.00"},{"v":0,"d":"$0.00"},{"v":0,"d":"$0.00"},{"v":0,"d":"$0.00"},{"v":0,"d":"$0.00"},{"$f":"'MMA Rev-Exp Region 1'!AV$94","v":{"v":0,"d":"$0.00"}}]
["MMA",null,null,{"$f":"Jurat!I$1","v":0},{"$f":"Jurat!D$33","v":"00:00:00"},"PY","1917-01-01","Region 1","Operating Expense","Administrative Expense","Administrative","12.6","Compliance/Regulatory",{"v":0,"d":"$0.00"},{"v":0,"d":"$0.00"},{"v":0,"d":"$0.00"},{"v":0,"d":"$0.00"},{"v":0,"d":"$0.00"},{"v":0,"d":"$0.00"},{"v":0,"d":"$0.00"},{"v":0,"d":"$0.00"},{"v":0,"d":"$0.00"},{"v":0,"d":"$0.00"},{"v":0,"d":"$0.00"},{"$f":"'MMA Rev-Exp Region 1'!AV$95","v":{"v":0,"d":"$0.00"}}]
["MMA",null,null,{"$f":"Jurat!I$1","v":0},{"$f":"Jurat!D$33","v":"00:00:00"},"PY","1917-01-01","Region 1","Operating Expense","Taxes & Fees","Taxes & Fees","13.1","State Premium tax",{"v":0,"d":"$0.00"},{"v":0,"d":"$0.00"},{"v":0,"d":"$0.00"},{"v":0,"d":"$0.00"},{"v":0,"d":"$0.00"},{"v":0,"d":"$0.00"},{"v":0,"d":"$0.00"},{"v":0,"d":"$0.00"},{"v":0,"d":"$0.00"},{"v":0,"d":"$0.00"},{"v":0,"d":"$0.00"},{"$f":"'MMA Rev-Exp Region 1'!AV$97","v":{"v":0,"d":"$0.00"}}]
["MMA",null,null,{"$f":"Jurat!I$1","v":0},{"$f":"Jurat!D$33","v":"00:00:00"},"PY","1917-01-01","Region 1","Operating Expense","Taxes & Fees","Taxes & Fees","13.2","Department of Insurance Assessments",{"v":0,"d":"$0.00"},{"v":0,"d":"$0.00"},{"v":0,"d":"$0.00"},{"v":0,"d":"$0.00"},{"v":0,"d":"$0.00"},{"v":0,"d":"$0.00"},{"v":0,"d":"$0.00"},{"v":0,"d":"$0.00"},{"v":0,"d":"$0.00"},{"v":0,"d":"$0.00"},{"v":0,"d":"$0.00"},{"$f":"'MMA Rev-Exp Region 1'!AV$98","v":{"v":0,"d":"$0.00"}}]
["MMA",null,null,{"$f":"Jurat!I$1","v":0},{"$f":"Jurat!D$33","v":"00:00:00"},"PY","1917-01-01","Region 1","Operating Expense","Taxes & Fees","Taxes & Fees","13.3","Section 9010 Health Insurance Providers Fee",{"v":0,"d":"$0.00"},{"v":0,"d":"$0.00"},{"v":0,"d":"$0.00"},{"v":0,"d":"$0.00"},{"v":0,"d":"$0.00"},{"v":0,"d":"$0.00"},{"v":0,"d":"$0.00"},{"v":0,"d":"$0.00"},{"v":0,"d":"$0.00"},{"v":0,"d":"$0.00"},{"v":0,"d":"$0.00"},{"$f":"'MMA Rev-Exp Region 1'!AV$99","v":{"v":0,"d":"$0.00"}}]
["MMA",null,null,{"$f":"Jurat!I$1","v":0},{"$f":"Jurat!D$33","v":"00:00:00"},"PY","1917-01-01","Region 1","Non-Operating Expense","Income Tax Expense","Income Tax Expense","16.0","Income Tax Expense",{"v":0,"d":"$0.00"},{"v":0,"d":"$0.00"},{"v":0,"d":"$0.00"},{"v":0,"d":"$0.00"},{"v":0,"d":"$0.00"},{"v":0,"d":"$0.00"},{"v":0,"d":"$0.00"},{"v":0,"d":"$0.00"},{"v":0,"d":"$0.00"},{"v":0,"d":"$0.00"},{"v":0,"d":"$0.00"},{"$f":"'MMA Rev-Exp Region 1'!AV$106","v":{"v":0,"d":"$0.00"}}]
["MMA",null,null,{"$f":"Jurat!I$1","v":0},{"$f":"Jurat!D$33","v":"00:00:00"},"PY","1917-01-01","Summary","Member Months","Member Months","Member Months",null,"Member Months",{"v":0,"d":"$0.00"},{"v":0,"d":"$0.00"},{"v":0,"d":"$0.00"},{"v":0,"d":"$0.00"},{"v":0,"d":"$0.00"},{"v":0,"d":"$0.00"},{"v":0,"d":"$0.00"},{"v":0,"d":"$0.00"},{"v":0,"d":"$0.00"},{"v":0,"d":"$0.00"},{"v":0,"d":"$0.00"},{"$f":"'MMA Rev-Exp Summary'!AV$9","v":{"v":0,"d":"$0.00"}}]
["MMA",null,null,{"$f":"Jurat!I$1","v":0},{"$f":"Jurat!D$33","v":"00:00:00"},"PY","1917-01-01","Summary","Operating Revenue","Capitation","Capitation",1.1,"Capitation",{"v":0,"d":"$0.00"},{"v":0,"d":"$0.00"},{"v":0,"d":"$0.00"},{"v":0,"d":"$0.00"},{"v":0,"d":"$0.00"},{"v":0,"d":"$0.00"},{"v":0,"d":"$0.00"},{"v":0,"d":"$0.00"},{"v":0,"d":"$0.00"},{"v":0,"d":"$0.00"},{"v":0,"d":"$0.00"},{"$f":"'MMA Rev-Exp Summary'!AV$11","v":{"v":0,"d":"$0.00"}}]
["MMA",null,null,{"$f":"Jurat!I$1","v":0},{"$f":"Jurat!D$33","v":"00:00:00"},"PY","1917-01-01","Summary","Operating Revenue","Kick Payments","Kick Payments - Transplant",1.2,"Transplant Kick Payments",{"v":0,"d":"$0.00"},{"v":0,"d":"$0.00"},{"v":0,"d":"$0.00"},{"v":0,"d":"$0.00"},{"v":0,"d":"$0.00"},{"v":0,"d":"$0.00"},{"v":0,"d":"$0.00"},{"v":0,"d":"$0.00"},{"v":0,"d":"$0.00"},{"v":0,"d":"$0.00"},{"v":0,"d":"$0.00"},{"$f":"'MMA Rev-Exp Summary'!AV$12","v":{"v":0,"d":"$0.00"}}]
["MMA",null,null,{"$f":"Jurat!I$1","v":0},{"$f":"Jurat!D$33","v":"00:00:00"},"PY","1917-01-01","Summary","Operating Revenue","Kick Payments","Kick Payments - Hep C","1.3","Hepatitis C Kick Payments",{"v":0,"d":"$0.00"},{"v":0,"d":"$0.00"},{"v":0,"d":"$0.00"},{"v":0,"d":"$0.00"},{"v":0,"d":"$0.00"},{"v":0,"d":"$0.00"},{"v":0,"d":"$0.00"},{"v":0,"d":"$0.00"},{"v":0,"d":"$0.00"},{"v":0,"d":"$0.00"},{"v":0,"d":"$0.00"},{"$f":"'MMA Rev-Exp Summary'!AV$13","v":{"v":0,"d":"$0.00"}}]
["MMA",null,null,{"$f":"Jurat!I$1","v":0},{"$f":"Jurat!D$33","v":"00:00:00"},"PY","1917-01-01","Summary","Operating Revenue","Kick Payments","Kick Payments - Maternity","1.4.1","Maternity Kick Payments",{"v":0,"d":"$0.00"},{"v":0,"d":"$0.00"},{"v":0,"d":"$0.00"},{"v":0,"d":"$0.00"},{"v":0,"d":"$0.00"},{"v":0,"d":"$0.00"},{"v":0,"d":"$0.00"},{"v":0,"d":"$0.00"},{"v":0,"d":"$0.00"},{"v":0,"d":"$0.00"},{"v":0,"d":"$0.00"},{"$f":"'MMA Rev-Exp Summary'!AV$14","v":{"v":0,"d":"$0.00"}}]
["MMA",null,null,{"$f":"Jurat!I$1","v":0},{"$f":"Jurat!D$33","v":"00:00:00"},"PY","1917-01-01","Summary","Operating Revenue","Other Revenue","Other Revenue - 9010","1.5","ACA § 9010 related payments",{"v":0,"d":"$0.00"},{"v":0,"d":"$0.00"},{"v":0,"d":"$0.00"},{"v":0,"d":"$0.00"},{"v":0,"d":"$0.00"},{"v":0,"d":"$0.00"},{"v":0,"d":"$0.00"},{"v":0,"d":"$0.00"},{"v":0,"d":"$0.00"},{"v":0,"d":"$0.00"},{"v":0,"d":"$0.00"},{"$f":"'MMA Rev-Exp Summary'!AV$15","v":{"v":0,"d":"$0.00"}}]
["MMA",null,null,{"$f":"Jurat!I$1","v":0},{"$f":"Jurat!D$33","v":"00:00:00"},"PY","1917-01-01","Summary","Operating Revenue","Other Revenue","Other Revenue","1.6","Other Revenue",{"v":0,"d":"$0.00"},{"v":0,"d":"$0.00"},{"v":0,"d":"$0.00"},{"v":0,"d":"$0.00"},{"v":0,"d":"$0.00"},{"v":0,"d":"$0.00"},{"v":0,"d":"$0.00"},{"v":0,"d":"$0.00"},{"v":0,"d":"$0.00"},{"v":0,"d":"$0.00"},{"v":0,"d":"$0.00"},{"$f":"'MMA Rev-Exp Summary'!AV$16","v":{"v":0,"d":"$0.00"}}]
["MMA",null,null,{"$f":"Jurat!I$1","v":0},{"$f":"Jurat!D$33","v":"00:00:00"},"PY","1917-01-01","Summary","Operating Expense","Medical Benefits Expense","Hospital Services",2.1,"Inpatient FFS",{"v":0,"d":"$0.00"},{"v":0,"d":"$0.00"},{"v":0,"d":"$0.00"},{"v":0,"d":"$0.00"},{"v":0,"d":"$0.00"},{"v":0,"d":"$0.00"},{"v":0,"d":"$0.00"},{"v":0,"d":"$0.00"},{"v":0,"d":"$0.00"},{"v":0,"d":"$0.00"},{"v":0,"d":"$0.00"},{"$f":"'MMA Rev-Exp Summary'!AV$20","v":{"v":0,"d":"$0.00"}}]
["MMA",null,null,{"$f":"Jurat!I$1","v":0},{"$f":"Jurat!D$33","v":"00:00:00"},"PY","1917-01-01","Summary","Operating Expense","Medical Benefits Expense","Hospital Services",2.2,"Ending IBNP for Inpatient Hospital Services",{"v":0,"d":"$0.00"},{"v":0,"d":"$0.00"},{"v":0,"d":"$0.00"},{"v":0,"d":"$0.00"},{"v":0,"d":"$0.00"},{"v":0,"d":"$0.00"},{"v":0,"d":"$0.00"},{"v":0,"d":"$0.00"},{"v":0,"d":"$0.00"},{"v":0,"d":"$0.00"},{"v":0,"d":"$0.00"},{"$f":"'MMA Rev-Exp Summary'!AV$21","v":{"v":0,"d":"$0.00"}}]
["MMA",null,null,{"$f":"Jurat!I$1","v":0},{"$f":"Jurat!D$33","v":"00:00:00"},"PY","1917-01-01","Summary","Operating Expense","Medical Benefits Expense","Hospital Services",2.3,"Outpatient FFS: ER",{"v":0,"d":"$0.00"},{"v":0,"d":"$0.00"},{"v":0,"d":"$0.00"},{"v":0,"d":"$0.00"},{"v":0,"d":"$0.00"},{"v":0,"d":"$0.00"},{"v":0,"d":"$0.00"},{"v":0,"d":"$0.00"},{"v":0,"d":"$0.00"},{"v":0,"d":"$0.00"},{"v":0,"d":"$0.00"},{"$f":"'MMA Rev-Exp Summary'!AV$22","v":{"v":0,"d":"$0.00"}}]
["MMA",null,null,{"$f":"Jurat!I$1","v":0},{"$f":"Jurat!D$33","v":"00:00:00"},"PY","1917-01-01","Summary","Operating Expense","Medical Benefits Expense","Hospital Services",2.4,"Outpatient FFS: Other than ER ",{"v":0,"d":"$0.00"},{"v":0,"d":"$0.00"},{"v":0,"d":"$0.00"},{"v":0,"d":"$0.00"},{"v":0,"d":"$0.00"},{"v":0,"d":"$0.00"},{"v":0,"d":"$0.00"},{"v":0,"d":"$0.00"},{"v":0,"d":"$0.00"},{"v":0,"d":"$0.00"},{"v":0,"d":"$0.00"},{"$f":"'MMA Rev-Exp Summary'!AV$23","v":{"v":0,"d":"$0.00"}}]
["MMA",null,null,{"$f":"Jurat!I$1","v":0},{"$f":"Jurat!D$33","v":"00:00:00"},"PY","1917-01-01","Summary","Operating Expense","Medical Benefits Expense","Hospital Services",2.5,"Ending IBNP for Outpatient Hospital Services",{"v":0,"d":"$0.00"},{"v":0,"d":"$0.00"},{"v":0,"d":"$0.00"},{"v":0,"d":"$0.00"},{"v":0,"d":"$0.00"},{"v":0,"d":"$0.00"},{"v":0,"d":"$0.00"},{"v":0,"d":"$0.00"},{"v":0,"d":"$0.00"},{"v":0,"d":"$0.00"},{"v":0,"d":"$0.00"},{"$f":"'MMA Rev-Exp Summary'!AV$24","v":{"v":0,"d":"$0.00"}}]
["MMA",null,null,{"$f":"Jurat!I$1","v":0},{"$f":"Jurat!D$33","v":"00:00:00"},"PY","1917-01-01","Summary","Operating Expense","Medical Benefits Expense","Hospital Services","2.6","Subcapitated Hospital Services",{"v":0,"d":"$0.00"},{"v":0,"d":"$0.00"},{"v":0,"d":"$0.00"},{"v":0,"d":"$0.00"},{"v":0,"d":"$0.00"},{"v":0,"d":"$0.00"},{"v":0,"d":"$0.00"},{"v":0,"d":"$0.00"},{"v":0,"d":"$0.00"},{"v":0,"d":"$0.00"},{"v":0,"d":"$0.00"},{"$f":"'MMA Rev-Exp Summary'!AV$25","v":{"v":0,"d":"$0.00"}}]
["MMA",null,null,{"$f":"Jurat!I$1","v":0},{"$f":"Jurat!D$33","v":"00:00:00"},"PY","1917-01-01","Summary","Operating Expense","Medical Benefits Expense","Hospital Services","2.7","Hospital Settlements",{"v":0,"d":"$0.00"},{"v":0,"d":"$0.00"},{"v":0,"d":"$0.00"},{"v":0,"d":"$0.00"},{"v":0,"d":"$0.00"},{"v":0,"d":"$0.00"},{"v":0,"d":"$0.00"},{"v":0,"d":"$0.00"},{"v":0,"d":"$0.00"},{"v":0,"d":"$0.00"},{"v":0,"d":"$0.00"},{"$f":"'MMA Rev-Exp Summary'!AV$26","v":{"v":0,"d":"$0.00"}}]
["MMA",null,null,{"$f":"Jurat!I$1","v":0},{"$f":"Jurat!D$33","v":"00:00:00"},"PY","1917-01-01","Summary","Operating Expense","Medical Benefits Expense","Hospital Services","2.7.1","Transplant Services",{"v":0,"d":"$0.00"},{"v":0,"d":"$0.00"},{"v":0,"d":"$0.00"},{"v":0,"d":"$0.00"},{"v":0,"d":"$0.00"},{"v":0,"d":"$0.00"},{"v":0,"d":"$0.00"},{"v":0,"d":"$0.00"},{"v":0,"d":"$0.00"},{"v":0,"d":"$0.00"},{"v":0,"d":"$0.00"},{"$f":"'MMA Rev-Exp Summary'!AV$27","v":{"v":0,"d":"$0.00"}}]
["MMA",null,null,{"$f":"Jurat!I$1","v":0},{"$f":"Jurat!D$33","v":"00:00:00"},"PY","1917-01-01","Summary","Operating Expense","Medical Benefits Expense","Professional Services",3.1,"Primary Care FFS",{"v":0,"d":"$0.00"},{"v":0,"d":"$0.00"},{"v":0,"d":"$0.00"},{"v":0,"d":"$0.00"},{"v":0,"d":"$0.00"},{"v":0,"d":"$0.00"},{"v":0,"d":"$0.00"},{"v":0,"d":"$0.00"},{"v":0,"d":"$0.00"},{"v":0,"d":"$0.00"},{"v":0,"d":"$0.00"},{"$f":"'MMA Rev-Exp Summary'!AV$29","v":{"v":0,"d":"$0.00"}}]
["MMA",null,null,{"$f":"Jurat!I$1","v":0},{"$f":"Jurat!D$33","v":"00:00:00"},"PY","1917-01-01","Summary","Operating Expense","Medical Benefits Expense","Professional Services",3.2,"Specialty Care FFS",{"v":0,"d":"$0.00"},{"v":0,"d":"$0.00"},{"v":0,"d":"$0.00"},{"v":0,"d":"$0.00"},{"v":0,"d":"$0.00"},{"v":0,"d":"$0.00"},{"v":0,"d":"$0.00"},{"v":0,"d":"$0.00"},{"v":0,"d":"$0.00"},{"v":0,"d":"$0.00"},{"v":0,"d":"$0.00"},{"$f":"'MMA Rev-Exp Summary'!AV$30","v":{"v":0,"d":"$0.00"}}]
["MMA",null,null,{"$f":"Jurat!I$1","v":0},{"$f":"Jurat!D$33","v":"00:00:00"},"PY","1917-01-01","Summary","Operating Expense","Medical Benefits Expense","Professional Services",3.3,"Other Professional FFS",{"v":0,"d":"$0.00"},{"v":0,"d":"$0.00"},{"v":0,"d":"$0.00"},{"v":0,"d":"$0.00"},{"v":0,"d":"$0.00"},{"v":0,"d":"$0.00"},{"v":0,"d":"$0.00"},{"v":0,"d":"$0.00"},{"v":0,"d":"$0.00"},{"v":0,"d":"$0.00"},{"v":0,"d":"$0.00"},{"$f":"'MMA Rev-Exp Summary'!AV$31","v":{"v":0,"d":"$0.00"}}]
["MMA",null,null,{"$f":"Jurat!I$1","v":0},{"$f":"Jurat!D$33","v":"00:00:00"},"PY","1917-01-01","Summary","Operating Expense","Medical Benefits Expense","Professional Services","3.4","§ 1202 PCP Payments to providers",{"v":0,"d":"$0.00"},{"v":0,"d":"$0.00"},{"v":0,"d":"$0.00"},{"v":0,"d":"$0.00"},{"v":0,"d":"$0.00"},{"v":0,"d":"$0.00"},{"v":0,"d":"$0.00"},{"v":0,"d":"$0.00"},{"v":0,"d":"$0.00"},{"v":0,"d":"$0.00"},{"v":0,"d":"$0.00"},{"$f":"'MMA Rev-Exp Summary'!AV$32","v":{"v":0,"d":"$0.00"}}]
["MMA",null,null,{"$f":"Jurat!I$1","v":0},{"$f":"Jurat!D$33","v":"00:00:00"},"PY","1917-01-01","Summary","Operating Expense","Medical Benefits Expense","Professional Services","3.5","Subcapitated Professional Services",{"v":0,"d":"$0.00"},{"v":0,"d":"$0.00"},{"v":0,"d":"$0.00"},{"v":0,"d":"$0.00"},{"v":0,"d":"$0.00"},{"v":0,"d":"$0.00"},{"v":0,"d":"$0.00"},{"v":0,"d":"$0.00"},{"v":0,"d":"$0.00"},{"v":0,"d":"$0.00"},{"v":0,"d":"$0.00"},{"$f":"'MMA Rev-Exp Summary'!AV$33","v":{"v":0,"d":"$0.00"}}]
["MMA",null,null,{"$f":"Jurat!I$1","v":0},{"$f":"Jurat!D$33","v":"00:00:00"},"PY","1917-01-01","Summary","Operating Expense","Medical Benefits Expense","Professional Services","3.6","Ending IBNP for Professional Services",{"v":0,"d":"$0.00"},{"v":0,"d":"$0.00"},{"v":0,"d":"$0.00"},{"v":0,"d":"$0.00"},{"v":0,"d":"$0.00"},{"v":0,"d":"$0.00"},{"v":0,"d":"$0.00"},{"v":0,"d":"$0.00"},{"v":0,"d":"$0.00"},{"v":0,"d":"$0.00"},{"v":0,"d":"$0.00"},{"$f":"'MMA Rev-Exp Summary'!AV$34","v":{"v":0,"d":"$0.00"}}]
["MMA",null,null,{"$f":"Jurat!I$1","v":0},{"$f":"Jurat!D$33","v":"00:00:00"},"PY","1917-01-01","Summary","Operating Expense","Medical Benefits Expense","Professional Services","3.7","Professional Services Settlements",{"v":0,"d":"$0.00"},{"v":0,"d":"$0.00"},{"v":0,"d":"$0.00"},{"v":0,"d":"$0.00"},{"v":0,"d":"$0.00"},{"v":0,"d":"$0.00"},{"v":0,"d":"$0.00"},{"v":0,"d":"$0.00"},{"v":0,"d":"$0.00"},{"v":0,"d":"$0.00"},{"v":0,"d":"$0.00"},{"$f":"'MMA Rev-Exp Summary'!AV$35","v":{"v":0,"d":"$0.00"}}]
["MMA",null,null,{"$f":"Jurat!I$1","v":0},{"$f":"Jurat!D$33","v":"00:00:00"},"PY","1917-01-01","Summary","Operating Expense","Medical Benefits Expense","Maternity Services","4.1.1","Maternity Services",{"v":0,"d":"$0.00"},{"v":0,"d":"$0.00"},{"v":0,"d":"$0.00"},{"v":0,"d":"$0.00"},{"v":0,"d":"$0.00"},{"v":0,"d":"$0.00"},{"v":0,"d":"$0.00"},{"v":0,"d":"$0.00"},{"v":0,"d":"$0.00"},{"v":0,"d":"$0.00"},{"v":0,"d":"$0.00"},{"$f":"'MMA Rev-Exp Summary'!AV$37","v":{"v":0,"d":"$0.00"}}]
["MMA",null,null,{"$f":"Jurat!I$1","v":0},{"$f":"Jurat!D$33","v":"00:00:00"},"PY","1917-01-01","Summary","Operating Expense","Medical Benefits Expense","Maternity Services","4.2.1","Ending IBNP for Maternity Services",{"v":0,"d":"$0.00"},{"v":0,"d":"$0.00"},{"v":0,"d":"$0.00"},{"v":0,"d":"$0.00"},{"v":0,"d":"$0.00"},{"v":0,"d":"$0.00"},{"v":0,"d":"$0.00"},{"v":0,"d":"$0.00"},{"v":0,"d":"$0.00"},{"v":0,"d":"$0.00"},{"v":0,"d":"$0.00"},{"$f":"'MMA Rev-Exp Summary'!AV$38","v":{"v":0,"d":"$0.00"}}]
["MMA",null,null,{"$f":"Jurat!I$1","v":0},{"$f":"Jurat!D$33","v":"00:00:00"},"PY","1917-01-01","Summary","Operating Expense","Medical Benefits Expense","Maternity Services","4.3.1","Maternity Settlements",{"v":0,"d":"$0.00"},{"v":0,"d":"$0.00"},{"v":0,"d":"$0.00"},{"v":0,"d":"$0.00"},{"v":0,"d":"$0.00"},{"v":0,"d":"$0.00"},{"v":0,"d":"$0.00"},{"v":0,"d":"$0.00"},{"v":0,"d":"$0.00"},{"v":0,"d":"$0.00"},{"v":0,"d":"$0.00"},{"$f":"'MMA Rev-Exp Summary'!AV$39","v":{"v":0,"d":"$0.00"}}]
["MMA",null,null,{"$f":"Jurat!I$1","v":0},{"$f":"Jurat!D$33","v":"00:00:00"},"PY","1917-01-01","Summary","Operating Expense","Medical Benefits Expense","Mental Health Services",5.1,"Mental Health & Substance Abuse FFS",{"v":0,"d":"$0.00"},{"v":0,"d":"$0.00"},{"v":0,"d":"$0.00"},{"v":0,"d":"$0.00"},{"v":0,"d":"$0.00"},{"v":0,"d":"$0.00"},{"v":0,"d":"$0.00"},{"v":0,"d":"$0.00"},{"v":0,"d":"$0.00"},{"v":0,"d":"$0.00"},{"v":0,"d":"$0.00"},{"$f":"'MMA Rev-Exp Summary'!AV$41","v":{"v":0,"d":"$0.00"}}]
["MMA",null,null,{"$f":"Jurat!I$1","v":0},{"$f":"Jurat!D$33","v":"00:00:00"},"PY","1917-01-01","Summary","Operating Expense","Medical Benefits Expense","Mental Health Services",5.2,"Mental Health & Substance Abuse Subcapitation",{"v":0,"d":"$0.00"},{"v":0,"d":"$0.00"},{"v":0,"d":"$0.00"},{"v":0,"d":"$0.00"},{"v":0,"d":"$0.00"},{"v":0,"d":"$0.00"},{"v":0,"d":"$0.00"},{"v":0,"d":"$0.00"},{"v":0,"d":"$0.00"},{"v":0,"d":"$0.00"},{"v":0,"d":"$0.00"},{"$f":"'MMA Rev-Exp Summary'!AV$42","v":{"v":0,"d":"$0.00"}}]
["MMA",null,null,{"$f":"Jurat!I$1","v":0},{"$f":"Jurat!D$33","v":"00:00:00"},"PY","1917-01-01","Summary","Operating Expense","Medical Benefits Expense","Mental Health Services",5.3,"Ending IBNP for Mental Health & Substance Abuse",{"v":0,"d":"$0.00"},{"v":0,"d":"$0.00"},{"v":0,"d":"$0.00"},{"v":0,"d":"$0.00"},{"v":0,"d":"$0.00"},{"v":0,"d":"$0.00"},{"v":0,"d":"$0.00"},{"v":0,"d":"$0.00"},{"v":0,"d":"$0.00"},{"v":0,"d":"$0.00"},{"v":0,"d":"$0.00"},{"$f":"'MMA Rev-Exp Summary'!AV$43","v":{"v":0,"d":"$0.00"}}]
["MMA",null,null,{"$f":"Jurat!I$1","v":0},{"$f":"Jurat!D$33","v":"00:00:00"},"PY","1917-01-01","Summary","Operating Expense","Medical Benefits Expense","Mental Health Services","5.4","Mental Health Settlements",{"v":0,"d":"$0.00"},{"v":0,"d":"$0.00"},{"v":0,"d":"$0.00"},{"v":0,"d":"$0.00"},{"v":0,"d":"$0.00"},{"v":0,"d":"$0.00"},{"v":0,"d":"$0.00"},{"v":0,"d":"$0.00"},{"v":0,"d":"$0.00"},{"v":0,"d":"$0.00"},{"v":0,"d":"$0.00"},{"$f":"'MMA Rev-Exp Summary'!AV$44","v":{"v":0,"d":"$0.00"}}]
["MMA",null,null,{"$f":"Jurat!I$1","v":0},{"$f":"Jurat!D$33","v":"00:00:00"},"PY","1917-01-01","Summary","Operating Expense","Medical Benefits Expense","Dental Services",6.1,"Dental FFS",{"v":0,"d":"$0.00"},{"v":0,"d":"$0.00"},{"v":0,"d":"$0.00"},{"v":0,"d":"$0.00"},{"v":0,"d":"$0.00"},{"v":0,"d":"$0.00"},{"v":0,"d":"$0.00"},{"v":0,"d":"$0.00"},{"v":0,"d":"$0.00"},{"v":0,"d":"$0.00"},{"v":0,"d":"$0.00"},{"$f":"'MMA Rev-Exp Summary'!AV$46","v":{"v":0,"d":"$0.00"}}]
["MMA",null,null,{"$f":"Jurat!I$1","v":0},{"$f":"Jurat!D$33","v":"00:00:00"},"PY","1917-01-01","Summary","Operating Expense","Medical Benefits Expense","Dental Services",6.2,"Dental Subcapitation",{"v":0,"d":"$0.00"},{"v":0,"d":"$0.00"},{"v":0,"d":"$0.00"},{"v":0,"d":"$0.00"},{"v":0,"d":"$0.00"},{"v":0,"d":"$0.00"},{"v":0,"d":"$0.00"},{"v":0,"d":"$0.00"},{"v":0,"d":"$0.00"},{"v":0,"d":"$0.00"},{"v":0,"d":"$0.00"},{"$f":"'MMA Rev-Exp Summary'!AV$47","v":{"v":0,"d":"$0.00"}}]
["MMA",null,null,{"$f":"Jurat!I$1","v":0},{"$f":"Jurat!D$33","v":"00:00:00"},"PY","1917-01-01","Summary","Operating Expense","Medical Benefits Expense","Dental Services",6.3,"Ending IBNP for Dental Services",{"v":0,"d":"$0.00"},{"v":0,"d":"$0.00"},{"v":0,"d":"$0.00"},{"v":0,"d":"$0.00"},{"v":0,"d":"$0.00"},{"v":0,"d":"$0.00"},{"v":0,"d":"$0.00"},{"v":0,"d":"$0.00"},{"v":0,"d":"$0.00"},{"v":0,"d":"$0.00"},{"v":0,"d":"$0.00"},{"$f":"'MMA Rev-Exp Summary'!AV$48","v":{"v":0,"d":"$0.00"}}]
["MMA",null,null,{"$f":"Jurat!I$1","v":0},{"$f":"Jurat!D$33","v":"00:00:00"},"PY","1917-01-01","Summary","Operating Expense","Medical Benefits Expense","Dental Services","6.4","Dental Settlements",{"v":0,"d":"$0.00"},{"v":0,"d":"$0.00"},{"v":0,"d":"$0.00"},{"v":0,"d":"$0.00"},{"v":0,"d":"$0.00"},{"v":0,"d":"$0.00"},{"v":0,"d":"$0.00"},{"v":0,"d":"$0.00"},{"v":0,"d":"$0.00"},{"v":0,"d":"$0.00"},{"v":0,"d":"$0.00"},{"$f":"'MMA Rev-Exp Summary'!AV$49","v":{"v":0,"d":"$0.00"}}]
["MMA",null,null,{"$f":"Jurat!I$1","v":0},{"$f":"Jurat!D$33","v":"00:00:00"},"PY","1917-01-01","Summary","Operating Expense","Medical Benefits Expense","Transportation Services",7.1,"Transportation FFS",{"v":0,"d":"$0.00"},{"v":0,"d":"$0.00"},{"v":0,"d":"$0.00"},{"v":0,"d":"$0.00"},{"v":0,"d":"$0.00"},{"v":0,"d":"$0.00"},{"v":0,"d":"$0.00"},{"v":0,"d":"$0.00"},{"v":0,"d":"$0.00"},{"v":0,"d":"$0.00"},{"v":0,"d":"$0.00"},{"$f":"'MMA Rev-Exp Summary'!AV$51","v":{"v":0,"d":"$0.00"}}]
["MMA",null,null,{"$f":"Jurat!I$1","v":0},{"$f":"Jurat!D$33","v":"00:00:00"},"PY","1917-01-01","Summary","Operating Expense","Medical Benefits Expense","Transportation Services",7.2,"Transportation Subcapitation",{"v":0,"d":"$0.00"},{"v":0,"d":"$0.00"},{"v":0,"d":"$0.00"},{"v":0,"d":"$0.00"},{"v":0,"d":"$0.00"},{"v":0,"d":"$0.00"},{"v":0,"d":"$0.00"},{"v":0,"d":"$0.00"},{"v":0,"d":"$0.00"},{"v":0,"d":"$0.00"},{"v":0,"d":"$0.00"},{"$f":"'MMA Rev-Exp Summary'!AV$52","v":{"v":0,"d":"$0.00"}}]
["MMA",null,null,{"$f":"Jurat!I$1","v":0},{"$f":"Jurat!D$33","v":"00:00:00"},"PY","1917-01-01","Summary","Operating Expense","Medical Benefits Expense","Transportation Services",7.3,"Ending IBNP for Transportation",{"v":0,"d":"$0.00"},{"v":0,"d":"$0.00"},{"v":0,"d":"$0.00"},{"v":0,"d":"$0.00"},{"v":0,"d":"$0.00"},{"v":0,"d":"$0.00"},{"v":0,"d":"$0.00"},{"v":0,"d":"$0.00"},{"v":0,"d":"$0.00"},{"v":0,"d":"$0.00"},{"v":0,"d":"$0.00"},{"$f":"'MMA Rev-Exp Summary'!AV$53","v":{"v":0,"d":"$0.00"}}]
["MMA",null,null,{"$f":"Jurat!I$1","v":0},{"$f":"Jurat!D$33","v":"00:00:00"},"PY","1917-01-01","Summary","Operating Expense","Medical Benefits Expense","Transportation Services","7.4","Transportation Settlements",{"v":0,"d":"$0.00"},{"v":0,"d":"$0.00"},{"v":0,"d":"$0.00"},{"v":0,"d":"$0.00"},{"v":0,"d":"$0.00"},{"v":0,"d":"$0.00"},{"v":0,"d":"$0.00"},{"v":0,"d":"$0.00"},{"v":0,"d":"$0.00"},{"v":0,"d":"$0.00"},{"v":0,"d":"$0.00"},{"$f":"'MMA Rev-Exp Summary'!AV$54","v":{"v":0,"d":"$0.00"}}]
["MMA",null,null,{"$f":"Jurat!I$1","v":0},{"$f":"Jurat!D$33","v":"00:00:00"},"PY","1917-01-01","Summary","Operating Expense","Medical Benefits Expense","Pharmacy Services",8.1,"Prescription Drugs FFS",{"v":0,"d":"$0.00"},{"v":0,"d":"$0.00"},{"v":0,"d":"$0.00"},{"v":0,"d":"$0.00"},{"v":0,"d":"$0.00"},{"v":0,"d":"$0.00"},{"v":0,"d":"$0.00"},{"v":0,"d":"$0.00"},{"v":0,"d":"$0.00"},{"v":0,"d":"$0.00"},{"v":0,"d":"$0.00"},{"$f":"'MMA Rev-Exp Summary'!AV$56","v":{"v":0,"d":"$0.00"}}]
["MMA",null,null,{"$f":"Jurat!I$1","v":0},{"$f":"Jurat!D$33","v":"00:00:00"},"PY","1917-01-01","Summary","Operating Expense","Medical Benefits Expense","Pharmacy Services","8.2","Hepatitis C Prescription Drug FFS",{"v":0,"d":"$0.00"},{"v":0,"d":"$0.00"},{"v":0,"d":"$0.00"},{"v":0,"d":"$0.00"},{"v":0,"d":"$0.00"},{"v":0,"d":"$0.00"},{"v":0,"d":"$0.00"},{"v":0,"d":"$0.00"},{"v":0,"d":"$0.00"},{"v":0,"d":"$0.00"},{"v":0,"d":"$0.00"},{"$f":"'MMA Rev-Exp Summary'!AV$57","v":{"v":0,"d":"$0.00"}}]
["MMA",null,null,{"$f":"Jurat!I$1","v":0},{"$f":"Jurat!D$33","v":"00:00:00"},"PY","1917-01-01","Summary","Operating Expense","Medical Benefits Expense","Pharmacy Services","8.3","Ending IBNP for Prescription Drugs",{"v":0,"d":"$0.00"},{"v":0,"d":"$0.00"},{"v":0,"d":"$0.00"},{"v":0,"d":"$0.00"},{"v":0,"d":"$0.00"},{"v":0,"d":"$0.00"},{"v":0,"d":"$0.00"},{"v":0,"d":"$0.00"},{"v":0,"d":"$0.00"},{"v":0,"d":"$0.00"},{"v":0,"d":"$0.00"},{"$f":"'MMA Rev-Exp Summary'!AV$58","v":{"v":0,"d":"$0.00"}}]
["MMA",null,null,{"$f":"Jurat!I$1","v":0},{"$f":"Jurat!D$33","v":"00:00:00"},"PY","1917-01-01","Summary","Operating Expense","Medical Benefits Expense","Pharmacy Services","8.4","Prescription Drug Rebates ",{"v":0,"d":"$0.00"},{"v":0,"d":"$0.00"},{"v":0,"d":"$0.00"},{"v":0,"d":"$0.00"},{"v":0,"d":"$0.00"},{"v":0,"d":"$0.00"},{"v":0,"d":"$0.00"},{"v":0,"d":"$0.00"},{"v":0,"d":"$0.00"},{"v":0,"d":"$0.00"},{"v":0,"d":"$0.00"},{"$f":"'MMA Rev-Exp Summary'!AV$59","v":{"v":0,"d":"$0.00"}}]
["MMA",null,null,{"$f":"Jurat!I$1","v":0},{"$f":"Jurat!D$33","v":"00:00:00"},"PY","1917-01-01","Summary","Operating Expense","Medical Benefits Expense","Pharmacy Services","8.5","Ending accrual for Rebates receivable",{"v":0,"d":"$0.00"},{"v":0,"d":"$0.00"},{"v":0,"d":"$0.00"},{"v":0,"d":"$0.00"},{"v":0,"d":"$0.00"},{"v":0,"d":"$0.00"},{"v":0,"d":"$0.00"},{"v":0,"d":"$0.00"},{"v":0,"d":"$0.00"},{"v":0,"d":"$0.00"},{"v":0,"d":"$0.00"},{"$f":"'MMA Rev-Exp Summary'!AV$60","v":{"v":0,"d":"$0.00"}}]
["MMA",null,null,{"$f":"Jurat!I$1","v":0},{"$f":"Jurat!D$33","v":"00:00:00"},"PY","1917-01-01","Summary","Operating Expense","Medical Benefits Expense","Pharmacy Services","8.6","Prescription Drugs Subcapitation",{"v":0,"d":"$0.00"},{"v":0,"d":"$0.00"},{"v":0,"d":"$0.00"},{"v":0,"d":"$0.00"},{"v":0,"d":"$0.00"},{"v":0,"d":"$0.00"},{"v":0,"d":"$0.00"},{"v":0,"d":"$0.00"},{"v":0,"d":"$0.00"},{"v":0,"d":"$0.00"},{"v":0,"d":"$0.00"},{"$f":"'MMA Rev-Exp Summary'!AV$61","v":{"v":0,"d":"$0.00"}}]
["MMA",null,null,{"$f":"Jurat!I$1","v":0},{"$f":"Jurat!D$33","v":"00:00:00"},"PY","1917-01-01","Summary","Operating Expense","Medical Benefits Expense","Pharmacy Services","8.7","Prescription Drug Settlements",{"v":0,"d":"$0.00"},{"v":0,"d":"$0.00"},{"v":0,"d":"$0.00"},{"v":0,"d":"$0.00"},{"v":0,"d":"$0.00"},{"v":0,"d":"$0.00"},{"v":0,"d":"$0.00"},{"v":0,"d":"$0.00"},{"v":0,"d":"$0.00"},{"v":0,"d":"$0.00"},{"v":0,"d":"$0.00"},{"$f":"'MMA Rev-Exp Summary'!AV$62","v":{"v":0,"d":"$0.00"}}]
["MMA",null,null,{"$f":"Jurat!I$1","v":0},{"$f":"Jurat!D$33","v":"00:00:00"},"PY","1917-01-01","Summary","Operating Expense","Medical Benefits Expense","Other MMA Services",9.1,"Home Health, Private Duty Nursing, Personal Care FFS",{"v":0,"d":"$0.00"},{"v":0,"d":"$0.00"},{"v":0,"d":"$0.00"},{"v":0,"d":"$0.00"},{"v":0,"d":"$0.00"},{"v":0,"d":"$0.00"},{"v":0,"d":"$0.00"},{"v":0,"d":"$0.00"},{"v":0,"d":"$0.00"},{"v":0,"d":"$0.00"},{"v":0,"d":"$0.00"},{"$f":"'MMA Rev-Exp Summary'!AV$64","v":{"v":0,"d":"$0.00"}}]
["MMA",null,null,{"$f":"Jurat!I$1","v":0},{"$f":"Jurat!D$33","v":"00:00:00"},"PY","1917-01-01","Summary","Operating Expense","Medical Benefits Expense","Other MMA Services","9.2","Hospice FFS",{"v":0,"d":"$0.00"},{"v":0,"d":"$0.00"},{"v":0,"d":"$0.00"},{"v":0,"d":"$0.00"},{"v":0,"d":"$0.00"},{"v":0,"d":"$0.00"},{"v":0,"d":"$0.00"},{"v":0,"d":"$0.00"},{"v":0,"d":"$0.00"},{"v":0,"d":"$0.00"},{"v":0,"d":"$0.00"},{"$f":"'MMA Rev-Exp Summary'!AV$65","v":{"v":0,"d":"$0.00"}}]
["MMA",null,null,{"$f":"Jurat!I$1","v":0},{"$f":"Jurat!D$33","v":"00:00:00"},"PY","1917-01-01","Summary","Operating Expense","Medical Benefits Expense","Other MMA Services","9.3","DME FFS",{"v":0,"d":"$0.00"},{"v":0,"d":"$0.00"},{"v":0,"d":"$0.00"},{"v":0,"d":"$0.00"},{"v":0,"d":"$0.00"},{"v":0,"d":"$0.00"},{"v":0,"d":"$0.00"},{"v":0,"d":"$0.00"},{"v":0,"d":"$0.00"},{"v":0,"d":"$0.00"},{"v":0,"d":"$0.00"},{"$f":"'MMA Rev-Exp Summary'!AV$66","v":{"v":0,"d":"$0.00"}}]
["MMA",null,null,{"$f":"Jurat!I$1","v":0},{"$f":"Jurat!D$33","v":"00:00:00"},"PY","1917-01-01","Summary","Operating Expense","Medical Benefits Expense","Other MMA Services","9.4","Other State Plan Services FFS",{"v":0,"d":"$0.00"},{"v":0,"d":"$0.00"},{"v":0,"d":"$0.00"},{"v":0,"d":"$0.00"},{"v":0,"d":"$0.00"},{"v":0,"d":"$0.00"},{"v":0,"d":"$0.00"},{"v":0,"d":"$0.00"},{"v":0,"d":"$0.00"},{"v":0,"d":"$0.00"},{"v":0,"d":"$0.00"},{"$f":"'MMA Rev-Exp Summary'!AV$67","v":{"v":0,"d":"$0.00"}}]
["MMA",null,null,{"$f":"Jurat!I$1","v":0},{"$f":"Jurat!D$33","v":"00:00:00"},"PY","1917-01-01","Summary","Operating Expense","Medical Benefits Expense","Other MMA Services","9.5","Other Services Subcapitation",{"v":0,"d":"$0.00"},{"v":0,"d":"$0.00"},{"v":0,"d":"$0.00"},{"v":0,"d":"$0.00"},{"v":0,"d":"$0.00"},{"v":0,"d":"$0.00"},{"v":0,"d":"$0.00"},{"v":0,"d":"$0.00"},{"v":0,"d":"$0.00"},{"v":0,"d":"$0.00"},{"v":0,"d":"$0.00"},{"$f":"'MMA Rev-Exp Summary'!AV$68","v":{"v":0,"d":"$0.00"}}]
["MMA",null,null,{"$f":"Jurat!I$1","v":0},{"$f":"Jurat!D$33","v":"00:00:00"},"PY","1917-01-01","Summary","Operating Expense","Medical Benefits Expense","Other MMA Services","9.6","Ending IBNP for Other Services",{"v":0,"d":"$0.00"},{"v":0,"d":"$0.00"},{"v":0,"d":"$0.00"},{"v":0,"d":"$0.00"},{"v":0,"d":"$0.00"},{"v":0,"d":"$0.00"},{"v":0,"d":"$0.00"},{"v":0,"d":"$0.00"},{"v":0,"d":"$0.00"},{"v":0,"d":"$0.00"},{"v":0,"d":"$0.00"},{"$f":"'MMA Rev-Exp Summary'!AV$69","v":{"v":0,"d":"$0.00"}}]
["MMA",null,null,{"$f":"Jurat!I$1","v":0},{"$f":"Jurat!D$33","v":"00:00:00"},"PY","1917-01-01","Summary","Operating Expense","Medical Benefits Expense","Other MMA Services","9.7","Other Services Settlements",{"v":0,"d":"$0.00"},{"v":0,"d":"$0.00"},{"v":0,"d":"$0.00"},{"v":0,"d":"$0.00"},{"v":0,"d":"$0.00"},{"v":0,"d":"$0.00"},{"v":0,"d":"$0.00"},{"v":0,"d":"$0.00"},{"v":0,"d":"$0.00"},{"v":0,"d":"$0.00"},{"v":0,"d":"$0.00"},{"$f":"'MMA Rev-Exp Summary'!AV$70","v":{"v":0,"d":"$0.00"}}]
["MMA",null,null,{"$f":"Jurat!I$1","v":0},{"$f":"Jurat!D$33","v":"00:00:00"},"PY","1917-01-01","Summary","Operating Expense","Medical Benefits Expense","Expanded Benefits","10.1","Expanded Benefits FFS",{"v":0,"d":"$0.00"},{"v":0,"d":"$0.00"},{"v":0,"d":"$0.00"},{"v":0,"d":"$0.00"},{"v":0,"d":"$0.00"},{"v":0,"d":"$0.00"},{"v":0,"d":"$0.00"},{"v":0,"d":"$0.00"},{"v":0,"d":"$0.00"},{"v":0,"d":"$0.00"},{"v":0,"d":"$0.00"},{"$f":"'MMA Rev-Exp Summary'!AV$72","v":{"v":0,"d":"$0.00"}}]
["MMA",null,null,{"$f":"Jurat!I$1","v":0},{"$f":"Jurat!D$33","v":"00:00:00"},"PY","1917-01-01","Summary","Operating Expense","Medical Benefits Expense","Expanded Benefits","10.2","Expanded benefits Subcapitation",{"v":0,"d":"$0.00"},{"v":0,"d":"$0.00"},{"v":0,"d":"$0.00"},{"v":0,"d":"$0.00"},{"v":0,"d":"$0.00"},{"v":0,"d":"$0.00"},{"v":0,"d":"$0.00"},{"v":0,"d":"$0.00"},{"v":0,"d":"$0.00"},{"v":0,"d":"$0.00"},{"v":0,"d":"$0.00"},{"$f":"'MMA Rev-Exp Summary'!AV$73","v":{"v":0,"d":"$0.00"}}]
["MMA",null,null,{"$f":"Jurat!I$1","v":0},{"$f":"Jurat!D$33","v":"00:00:00"},"PY","1917-01-01","Summary","Operating Expense","Medical Benefits Expense","Expanded Benefits","10.3","Ending IBNP for Expanded Benefits",{"v":0,"d":"$0.00"},{"v":0,"d":"$0.00"},{"v":0,"d":"$0.00"},{"v":0,"d":"$0.00"},{"v":0,"d":"$0.00"},{"v":0,"d":"$0.00"},{"v":0,"d":"$0.00"},{"v":0,"d":"$0.00"},{"v":0,"d":"$0.00"},{"v":0,"d":"$0.00"},{"v":0,"d":"$0.00"},{"$f":"'MMA Rev-Exp Summary'!AV$74","v":{"v":0,"d":"$0.00"}}]
["MMA",null,null,{"$f":"Jurat!I$1","v":0},{"$f":"Jurat!D$33","v":"00:00:00"},"PY","1917-01-01","Summary","Operating Expense","Medical Benefits Expense","Expanded Benefits","10.4","Expanded Benefits Settlements",{"v":0,"d":"$0.00"},{"v":0,"d":"$0.00"},{"v":0,"d":"$0.00"},{"v":0,"d":"$0.00"},{"v":0,"d":"$0.00"},{"v":0,"d":"$0.00"},{"v":0,"d":"$0.00"},{"v":0,"d":"$0.00"},{"v":0,"d":"$0.00"},{"v":0,"d":"$0.00"},{"v":0,"d":"$0.00"},{"$f":"'MMA Rev-Exp Summary'!AV$75","v":{"v":0,"d":"$0.00"}}]
["MMA",null,null,{"$f":"Jurat!I$1","v":0},{"$f":"Jurat!D$33","v":"00:00:00"},"PY","1917-01-01","Summary","Operating Expense","Medical Benefits Expense","Other Medical","11.5","TPL & Fraud/Abuse Recoveries",{"v":0,"d":"$0.00"},{"v":0,"d":"$0.00"},{"v":0,"d":"$0.00"},{"v":0,"d":"$0.00"},{"v":0,"d":"$0.00"},{"v":0,"d":"$0.00"},{"v":0,"d":"$0.00"},{"v":0,"d":"$0.00"},{"v":0,"d":"$0.00"},{"v":0,"d":"$0.00"},{"v":0,"d":"$0.00"},{"$f":"'MMA Rev-Exp Summary'!AV$81","v":{"v":0,"d":"$0.00"}}]
["MMA",null,null,{"$f":"Jurat!I$1","v":0},{"$f":"Jurat!D$33","v":"00:00:00"},"PY","1917-01-01","Summary","Operating Expense","Medical Benefits Expense","Other Medical","11.6.1","Premium Deficiency Reserve",{"v":0,"d":"$0.00"},{"v":0,"d":"$0.00"},{"v":0,"d":"$0.00"},{"v":0,"d":"$0.00"},{"v":0,"d":"$0.00"},{"v":0,"d":"$0.00"},{"v":0,"d":"$0.00"},{"v":0,"d":"$0.00"},{"v":0,"d":"$0.00"},{"v":0,"d":"$0.00"},{"v":0,"d":"$0.00"},{"$f":"'MMA Rev-Exp Summary'!AV$82","v":{"v":0,"d":"$0.00"}}]
["MMA",null,null,{"$f":"Jurat!I$1","v":0},{"$f":"Jurat!D$33","v":"00:00:00"},"PY","1917-01-01","Summary","Operating Expense","Medical Benefits Expense","Other Medical","11.8","Reinsurance Premiums",{"v":0,"d":"$0.00"},{"v":0,"d":"$0.00"},{"v":0,"d":"$0.00"},{"v":0,"d":"$0.00"},{"v":0,"d":"$0.00"},{"v":0,"d":"$0.00"},{"v":0,"d":"$0.00"},{"v":0,"d":"$0.00"},{"v":0,"d":"$0.00"},{"v":0,"d":"$0.00"},{"v":0,"d":"$0.00"},{"$f":"'MMA Rev-Exp Summary'!AV$84","v":{"v":0,"d":"$0.00"}}]
["MMA",null,null,{"$f":"Jurat!I$1","v":0},{"$f":"Jurat!D$33","v":"00:00:00"},"PY","1917-01-01","Summary","Operating Expense","Medical Benefits Expense","Other Medical","11.9","Reinsurance Recoveries",{"v":0,"d":"$0.00"},{"v":0,"d":"$0.00"},{"v":0,"d":"$0.00"},{"v":0,"d":"$0.00"},{"v":0,"d":"$0.00"},{"v":0,"d":"$0.00"},{"v":0,"d":"$0.00"},{"v":0,"d":"$0.00"},{"v":0,"d":"$0.00"},{"v":0,"d":"$0.00"},{"v":0,"d":"$0.00"},{"$f":"'MMA Rev-Exp Summary'!AV$85","v":{"v":0,"d":"$0.00"}}]
["MMA",null,null,{"$f":"Jurat!I$1","v":0},{"$f":"Jurat!D$33","v":"00:00:00"},"PY","1917-01-01","Summary","Operating Expense","Administrative Expense","Administrative","12.1","Salaries & Benefits",{"v":0,"d":"$0.00"},{"v":0,"d":"$0.00"},{"v":0,"d":"$0.00"},{"v":0,"d":"$0.00"},{"v":0,"d":"$0.00"},{"v":0,"d":"$0.00"},{"v":0,"d":"$0.00"},{"v":0,"d":"$0.00"},{"v":0,"d":"$0.00"},{"v":0,"d":"$0.00"},{"v":0,"d":"$0.00"},{"$f":"'MMA Rev-Exp Summary'!AV$90","v":{"v":0,"d":"$0.00"}}]
["MMA",null,null,{"$f":"Jurat!I$1","v":0},{"$f":"Jurat!D$33","v":"00:00:00"},"PY","1917-01-01","Summary","Operating Expense","Administrative Expense","Administrative","12.2","Administrative Services",{"v":0,"d":"$0.00"},{"v":0,"d":"$0.00"},{"v":0,"d":"$0.00"},{"v":0,"d":"$0.00"},{"v":0,"d":"$0.00"},{"v":0,"d":"$0.00"},{"v":0,"d":"$0.00"},{"v":0,"d":"$0.00"},{"v":0,"d":"$0.00"},{"v":0,"d":"$0.00"},{"v":0,"d":"$0.00"},{"$f":"'MMA Rev-Exp Summary'!AV$91","v":{"v":0,"d":"$0.00"}}]
["MMA",null,null,{"$f":"Jurat!I$1","v":0},{"$f":"Jurat!D$33","v":"00:00:00"},"PY","1917-01-01","Summary","Operating Expense","Administrative Expense","Administrative","12.3","Information Systems",{"v":0,"d":"$0.00"},{"v":0,"d":"$0.00"},{"v":0,"d":"$0.00"},{"v":0,"d":"$0.00"},{"v":0,"d":"$0.00"},{"v":0,"d":"$0.00"},{"v":0,"d":"$0.00"},{"v":0,"d":"$0.00"},{"v":0,"d":"$0.00"},{"v":0,"d":"$0.00"},{"v":0,"d":"$0.00"},{"$f":"'MMA Rev-Exp Summary'!AV$92","v":{"v":0,"d":"$0.00"}}]
["MMA",null,null,{"$f":"Jurat!I$1","v":0},{"$f":"Jurat!D$33","v":"00:00:00"},"PY","1917-01-01","Summary","Operating Expense","Administrative Expense","Administrative","12.4","Marketing Expenses",{"v":0,"d":"$0.00"},{"v":0,"d":"$0.00"},{"v":0,"d":"$0.00"},{"v":0,"d":"$0.00"},{"v":0,"d":"$0.00"},{"v":0,"d":"$0.00"},{"v":0,"d":"$0.00"},{"v":0,"d":"$0.00"},{"v":0,"d":"$0.00"},{"v":0,"d":"$0.00"},{"v":0,"d":"$0.00"},{"$f":"'MMA Rev-Exp Summary'!AV$93","v":{"v":0,"d":"$0.00"}}]
["MMA",null,null,{"$f":"Jurat!I$1","v":0},{"$f":"Jurat!D$33","v":"00:00:00"},"PY","1917-01-01","Summary","Operating Expense","Administrative Expense","Administrative","12.5","General  Administration",{"v":0,"d":"$0.00"},{"v":0,"d":"$0.00"},{"v":0,"d":"$0.00"},{"v":0,"d":"$0.00"},{"v":0,"d":"$0.00"},{"v":0,"d":"$0.00"},{"v":0,"d":"$0.00"},{"v":0,"d":"$0.00"},{"v":0,"d":"$0.00"},{"v":0,"d":"$0.00"},{"v":0,"d":"$0.00"},{"$f":"'MMA Rev-Exp Summary'!AV$94","v":{"v":0,"d":"$0.00"}}]
["MMA",null,null,{"$f":"Jurat!I$1","v":0},{"$f":"Jurat!D$33","v":"00:00:00"},"PY","1917-01-01","Summary","Operating Expense","Administrative Expense","Administrative","12.6","Compliance/Regulatory",{"v":0,"d":"$0.00"},{"v":0,"d":"$0.00"},{"v":0,"d":"$0.00"},{"v":0,"d":"$0.00"},{"v":0,"d":"$0.00"},{"v":0,"d":"$0.00"},{"v":0,"d":"$0.00"},{"v":0,"d":"$0.00"},{"v":0,"d":"$0.00"},{"v":0,"d":"$0.00"},{"v":0,"d":"$0.00"},{"$f":"'MMA Rev-Exp Summary'!AV$95","v":{"v":0,"d":"$0.00"}}]
["MMA",null,null,{"$f":"Jurat!I$1","v":0},{"$f":"Jurat!D$33","v":"00:00:00"},"PY","1917-01-01","Summary","Operating Expense","Taxes & Fees","Taxes & Fees","13.1","State Premium tax",{"v":0,"d":"$0.00"},{"v":0,"d":"$0.00"},{"v":0,"d":"$0.00"},{"v":0,"d":"$0.00"},{"v":0,"d":"$0.00"},{"v":0,"d":"$0.00"},{"v":0,"d":"$0.00"},{"v":0,"d":"$0.00"},{"v":0,"d":"$0.00"},{"v":0,"d":"$0.00"},{"v":0,"d":"$0.00"},{"$f":"'MMA Rev-Exp Summary'!AV$97","v":{"v":0,"d":"$0.00"}}]
["MMA",null,null,{"$f":"Jurat!I$1","v":0},{"$f":"Jurat!D$33","v":"00:00:00"},"PY","1917-01-01","Summary","Operating Expense","Taxes & Fees","Taxes & Fees","13.2","Department of Insurance Assessments",{"v":0,"d":"$0.00"},{"v":0,"d":"$0.00"},{"v":0,"d":"$0.00"},{"v":0,"d":"$0.00"},{"v":0,"d":"$0.00"},{"v":0,"d":"$0.00"},{"v":0,"d":"$0.00"},{"v":0,"d":"$0.00"},{"v":0,"d":"$0.00"},{"v":0,"d":"$0.00"},{"v":0,"d":"$0.00"},{"$f":"'MMA Rev-Exp Summary'!AV$98","v":{"v":0,"d":"$0.00"}}]
["MMA",null,null,{"$f":"Jurat!I$1","v":0},{"$f":"Jurat!D$33","v":"00:00:00"},"PY","1917-01-01","Summary","Operating Expense","Taxes & Fees","Taxes & Fees","13.3","Section 9010 Health Insurance Providers Fee",{"v":0,"d":"$0.00"},{"v":0,"d":"$0.00"},{"v":0,"d":"$0.00"},{"v":0,"d":"$0.00"},{"v":0,"d":"$0.00"},{"v":0,"d":"$0.00"},{"v":0,"d":"$0.00"},{"v":0,"d":"$0.00"},{"v":0,"d":"$0.00"},{"v":0,"d":"$0.00"},{"v":0,"d":"$0.00"},{"$f":"'MMA Rev-Exp Summary'!AV$99","v":{"v":0,"d":"$0.00"}}]
["MMA",null,null,{"$f":"Jurat!I$1","v":0},{"$f":"Jurat!D$33","v":"00:00:00"},"PY","1917-01-01","Summary","Non-Operating Expense","Income Tax Expense","Income Tax Expense","16.0","Income Tax Expense",{"v":0,"d":"$0.00"},{"v":0,"d":"$0.00"},{"v":0,"d":"$0.00"},{"v":0,"d":"$0.00"},{"v":0,"d":"$0.00"},{"v":0,"d":"$0.00"},{"v":0,"d":"$0.00"},{"v":0,"d":"$0.00"},{"v":0,"d":"$0.00"},{"v":0,"d":"$0.00"},{"v":0,"d":"$0.00"},{"$f":"'MMA Rev-Exp Summary'!AV$106","v":{"v":0,"d":"$0.00"}}]

{"sheet":"MMA Ratio","index":44,"n_rows":181,"n_cols":23,"rows_kept":181,"hidden":true}
["Contract","Plan ID","Plan Name","Reporting Year","Reporting Quarter","Quarter Ending","Ratio","Period","Region","Total","TANF Non-SMI","TANF SMI","SSI Medicaid Only Non-SMI","SSI Medicaid Only SMI","Dual Eligible","Child Welfare","HIV/AIDS Dual Eligible","HIV/AIDS Medicaid Only","LTC Dual Eligible","LTC Medicaid Only","File Name ","File Date","Status"]
["MMA",null,null,{"$f":"Jurat!I$1","v":0},{"$f":"Jurat!D$33","v":"00:00:00"},"2017-03-31","MLR","Quarter","Summary",{"$f":"IFERROR(('MMA Rev-Exp Summary'!D$87-'MMA Rev-Exp Summary'!D$76)/('MMA Rev-Exp Summary'!D$17-'MMA Rev-Exp Summary'!D$15), 0)","v":{"v":0,"d":"0.0%"}},{"$f":"IFERROR(('MMA Rev-Exp Summary'!E$87-'MMA Rev-Exp Summary'!E$76)/('MMA Rev-Exp Summary'!E$17-'MMA Rev-Exp Summary'!E$15), 0)","v":{"v":0,"d":"0.0%"}},{"$f":"IFERROR(('MMA Rev-Exp Summary'!F$87-'MMA Rev-Exp Summary'!F$76)/('MMA Rev-Exp Summary'!F$17-'MMA Rev-Exp Summary'!F$15), 0)","v":{"v":0,"d":"0.0%"}},{"$f":"IFERROR(('MMA Rev-Exp Summary'!G$87-'MMA Rev-Exp Summary'!G$76)/('MMA Rev-Exp Summary'!G$17-'MMA Rev-Exp Summary'!G$15), 0)","v":{"v":0,"d":"0.0%"}},{"$f":"IFERROR(('MMA Rev-Exp Summary'!H$87-'MMA Rev-Exp Summary'!H$76)/('MMA Rev-Exp Summary'!H$17-'MMA Rev-Exp Summary'!H$15), 0)","v":{"v":0,"d":"0.0%"}},{"$f":"IFERROR(('MMA Rev-Exp Summary'!I$87-'MMA Rev-Exp Summary'!I$76)/('MMA Rev-Exp Summary'!I$17-'MMA Rev-Exp Summary'!I$15), 0)","v":{"v":0,"d":"0.0%"}},{"$f":"IFERROR(('MMA Rev-Exp Summary'!J$87-'MMA Rev-Exp Summary'!J$76)/('MMA Rev-Exp Summary'!J$17-'MMA Rev-Exp Summary'!J$15), 0)","v":{"v":0,"d":"0.0%"}},{"$f":"IFERROR(('MMA Rev-Exp Summary'!K$87-'MMA Rev-Exp Summary'!K$76)/('MMA Rev-Exp Summary'!K$17-'MMA Rev-Exp Summary'!K$15), 0)","v":{"v":0,"d":"0.0%"}},{"$f":"IFERROR(('MMA Rev-Exp Summary'!L$87-'MMA Rev-Exp Summary'!L$76)/('MMA Rev-Exp Summary'!L$17-'MMA Rev-Exp Summary'!L$15), 0)","v":{"v":0,"d":"0.0%"}},{"$f":"IFERROR(('MMA Rev-Exp Summary'!M$87-'MMA Rev-Exp Summary'!M$76)/('MMA Rev-Exp Summary'!M$17-'MMA Rev-Exp Summary'!M$15), 0)","v":{"v":0,"d":"0.0%"}},{"$f":"IFERROR(('MMA Rev-Exp Summary'!N$87-'MMA Rev-Exp Summary'!N$76)/('MMA Rev-Exp Summary'!N$17-'MMA Rev-Exp Summary'!N$15), 0)","v":{"v":0,"d":"0.0%"}}]
["MMA",null,null,{"$f":"Jurat!I$1","v":0},{"$f":"Jurat!D$33","v":"00:00:00"},"2017-06-30","MLR","Quarter","Summary",{"$f":"IFERROR(('MMA Rev-Exp Summary'!O$87-'MMA Rev-Exp Summary'!O$76)/('MMA Rev-Exp Summary'!O$17-'MMA Rev-Exp Summary'!O$15), 0)","v":{"v":0,"d":"0.0%"}},{"$f":"IFERROR(('MMA Rev-Exp Summary'!$P$87-'MMA Rev-Exp Summary'!$P$76)/('MMA Rev-Exp Summary'!$P$17-'MMA Rev-Exp Summary'!$P$15), 0)","v":{"v":0,"d":"0.0%"}},{"$f":"IFERROR(('MMA Rev-Exp Summary'!$Q$87-'MMA Rev-Exp Summary'!$Q$76)/('MMA Rev-Exp Summary'!$Q$17-'MMA Rev-Exp Summary'!$Q$15), 0)","v":{"v":0,"d":"0.0%"}},{"$f":"IFERROR(('MMA Rev-Exp Summary'!$R$87-'MMA Rev-Exp Summary'!$R$76)/('MMA Rev-Exp Summary'!$R$17-'MMA Rev-Exp Summary'!$R$15), 0)","v":{"v":0,"d":"0.0%"}},{"$f":"IFERROR(('MMA Rev-Exp Summary'!$S$87-'MMA Rev-Exp Summary'!$S$76)/('MMA Rev-Exp Summary'!$S$17-'MMA Rev-Exp Summary'!$S$15), 0)","v":{"v":0,"d":"0.0%"}},{"$f":"IFERROR(('MMA Rev-Exp Summary'!$T$87-'MMA Rev-Exp Summary'!$T$76)/('MMA Rev-Exp Summary'!$T$17-'MMA Rev-Exp Summary'!$T$15), 0)","v":{"v":0,"d":"0.0%"}},{"$f":"IFERROR(('MMA Rev-Exp Summary'!$U$87-'MMA Rev-Exp Summary'!$U$76)/('MMA Rev-Exp Summary'!$U$17-'MMA Rev-Exp Summary'!$U$15), 0)","v":{"v":0,"d":"0.0%"}},{"$f":"IFERROR(('MMA Rev-Exp Summary'!$V$87-'MMA Rev-Exp Summary'!$V$76)/('MMA Rev-Exp Summary'!$V$17-'MMA Rev-Exp Summary'!$V$15), 0)","v":{"v":0,"d":"0.0%"}},{"$f":"IFERROR(('MMA Rev-Exp Summary'!$W$87-'MMA Rev-Exp Summary'!$W$76)/('MMA Rev-Exp Summary'!$W$17-'MMA Rev-Exp Summary'!$W$15), 0)","v":{"v":0,"d":"0.0%"}},{"$f":"IFERROR(('MMA Rev-Exp Summary'!$X$87-'MMA Rev-Exp Summary'!$X$76)/('MMA Rev-Exp Summary'!$X$17-'MMA Rev-Exp Summary'!$X$15), 0)","v":{"v":0,"d":"0.0%"}},{"$f":"IFERROR(('MMA Rev-Exp Summary'!$Y$87-'MMA Rev-Exp Summary'!$Y$76)/('MMA Rev-Exp Summary'!$Y$17-'MMA Rev-Exp Summary'!$Y$15), 0)","v":{"v":0,"d":"0.0%"}}]
["MMA",null,null,{"$f":"Jurat!I$1","v":0},{"$f":"Jurat!D$33","v":"00:00:00"},"2017-09-30","MLR","Quarter","Summary",{"$f":"IFERROR(('MMA Rev-Exp Summary'!$Z$87-'MMA Rev-Exp Summary'!$Z$76)/('MMA Rev-Exp Summary'!$Z$17-'MMA Rev-Exp Summary'!$Z$15), 0)","v":{"v":0,"d":"0.0%"}},{"$f":"IFERROR(('MMA Rev-Exp Summary'!$AA$87-'MMA Rev-Exp Summary'!$AA$76)/('MMA Rev-Exp Summary'!$AA$17-'MMA Rev-Exp Summary'!$AA$15), 0)","v":{"v":0,"d":"0.0%"}},{"$f":"IFERROR(('MMA Rev-Exp Summary'!$AB$87-'MMA Rev-Exp Summary'!$AB$76)/('MMA Rev-Exp Summary'!$AB$17-'MMA Rev-Exp Summary'!$AB$15), 0)","v":{"v":0,"d":"0.0%"}},{"$f":"IFERROR(('MMA Rev-Exp Summary'!$AC$87-'MMA Rev-Exp Summary'!$AC$76)/('MMA Rev-Exp Summary'!$AC$17-'MMA Rev-Exp Summary'!$AC$15), 0)","v":{"v":0,"d":"0.0%"}},{"$f":"IFERROR(('MMA Rev-Exp Summary'!$AD$87-'MMA Rev-Exp Summary'!$AD$76)/('MMA Rev-Exp Summary'!$AD$17-'MMA Rev-Exp Summary'!$AD$15), 0)","v":{"v":0,"d":"0.0%"}},{"$f":"IFERROR(('MMA Rev-Exp Summary'!$AE$87-'MMA Rev-Exp Summary'!$AE$76)/('MMA Rev-Exp Summary'!$AE$17-'MMA Rev-Exp Summary'!$AE$15), 0)","v":{"v":0,"d":"0.0%"}},{"$f":"IFERROR(('MMA Rev-Exp Summary'!$AF$87-'MMA Rev-Exp Summary'!$AF$76)/('MMA Rev-Exp Summary'!$AF$17-'MMA Rev-Exp Summary'!$AF$15), 0)","v":{"v":0,"d":"0.0%"}},{"$f":"IFERROR(('MMA Rev-Exp Summary'!$AG$87-'MMA Rev-Exp Summary'!$AG$76)/('MMA Rev-Exp Summary'!$AG$17-'MMA Rev-Exp Summary'!$AG$15), 0)","v":{"v":0,"d":"0.0%"}},{"$f":"IFERROR(('MMA Rev-Exp Summary'!$AH$87-'MMA Rev-Exp Summary'!$AH$76)/('MMA Rev-Exp Summary'!$AH$17-'MMA Rev-Exp Summary'!$AH$15), 0)","v":{"v":0,"d":"0.0%"}},{"$f":"IFERROR(('MMA Rev-Exp Summary'!$AI$87-'MMA Rev-Exp Summary'!$AI$76)/('MMA Rev-Exp Summary'!$AI$17-'MMA Rev-Exp Summary'!$AI$15), 0)","v":{"v":0,"d":"0.0%"}},{"$f":"IFERROR(('MMA Rev-Exp Summary'!$AJ$87-'MMA Rev-Exp Summary'!$AJ$76)/('MMA Rev-Exp Summary'!$AJ$17-'MMA Rev-Exp Summary'!$AJ$15), 0)","v":{"v":0,"d":"0.0%"}}]
["MMA",null,null,{"$f":"Jurat!I$1","v":0},{"$f":"Jurat!D$33","v":"00:00:00"},"2017-12-31","MLR","Quarter","Summary",{"$f":"IFERROR(('MMA Rev-Exp Summary'!$AK$87-'MMA Rev-Exp Summary'!$AK$76)/('MMA Rev-Exp Summary'!$AK$17-'MMA Rev-Exp Summary'!$AK$15), 0)","v":{"v":0,"d":"0.0%"}},{"$f":"IFERROR(('MMA Rev-Exp Summary'!$AL$87-'MMA Rev-Exp Summary'!$AL$76)/('MMA Rev-Exp Summary'!$AL$17-'MMA Rev-Exp Summary'!$AL$15), 0)","v":{"v":0,"d":"0.0%"}},{"$f":"IFERROR(('MMA Rev-Exp Summary'!$AM$87-'MMA Rev-Exp Summary'!$AM$76)/('MMA Rev-Exp Summary'!$AM$17-'MMA Rev-Exp Summary'!$AM$15), 0)","v":{"v":0,"d":"0.0%"}},{"$f":"IFERROR(('MMA Rev-Exp Summary'!$AN$87-'MMA Rev-Exp Summary'!$AN$76)/('MMA Rev-Exp Summary'!$AN$17-'MMA Rev-Exp Summary'!$AN$15), 0)","v":{"v":0,"d":"0.0%"}},{"$f":"IFERROR(('MMA Rev-Exp Summary'!$AO$87-'MMA Rev-Exp Summary'!$AO$76)/('MMA Rev-Exp Summary'!$AO$17-'MMA Rev-Exp Summary'!$AO$15), 0)","v":{"v":0,"d":"0.0%"}},{"$f":"IFERROR(('MMA Rev-Exp Summary'!$AP$87-'MMA Rev-Exp Summary'!$AP$76)/('MMA Rev-Exp Summary'!$AP$17-'MMA Rev-Exp Summary'!$AP$15), 0)","v":{"v":0,"d":"0.0%"}},{"$f":"IFERROR(('MMA Rev-Exp Summary'!$AQ$87-'MMA Rev-Exp Summary'!$AQ$76)/('MMA Rev-Exp Summary'!$AQ$17-'MMA Rev-Exp Summary'!$AQ$15), 0)","v":{"v":0,"d":"0.0%"}},{"$f":"IFERROR(('MMA Rev-Exp Summary'!$AR$87-'MMA Rev-Exp Summary'!$AR$76)/('MMA Rev-Exp Summary'!$AR$17-'MMA Rev-Exp Summary'!$AR$15), 0)","v":{"v":0,"d":"0.0%"}},{"$f":"IFERROR(('MMA Rev-Exp Summary'!$AS$87-'MMA Rev-Exp Summary'!$AS$76)/('MMA Rev-Exp Summary'!$AS$17-'MMA Rev-Exp Summary'!$AS$15), 0)","v":{"v":0,"d":"0.0%"}},{"$f":"IFERROR(('MMA Rev-Exp Summary'!$AT$87-'MMA Rev-Exp Summary'!$AT$76)/('MMA Rev-Exp Summary'!$AT$17-'MMA Rev-Exp Summary'!$AT$15), 0)","v":{"v":0,"d":"0.0%"}},{"$f":"IFERROR(('MMA Rev-Exp Summary'!$AU$87-'MMA Rev-Exp Summary'!$AU$76)/('MMA Rev-Exp Summary'!$AU$17-'MMA Rev-Exp Summary'!$AU$15), 0)","v":{"v":0,"d":"0.0%"}}]
["MMA",null,null,{"$f":"Jurat!I$1","v":0},{"$f":"Jurat!D$33","v":"00:00:00"},{"$f":"E6","v":"00:00:00"},"MLR","YTD","Summary",{"$f":"IFERROR(('MMA Rev-Exp Summary'!$AW$87-'MMA Rev-Exp Summary'!$AW$76)/('MMA Rev-Exp Summary'!$AW$17-'MMA Rev-Exp Summary'!$AW$15), 0)","v":{"v":0,"d":"0.0%"}},{"$f":"IFERROR(('MMA Rev-Exp Summary'!$AX$87-'MMA Rev-Exp Summary'!$AX$76)/('MMA Rev-Exp Summary'!$AX$17-'MMA Rev-Exp Summary'!$AX$15), 0)","v":{"v":0,"d":"0.0%"}},{"$f":"IFERROR(('MMA Rev-Exp Summary'!$AY$87-'MMA Rev-Exp Summary'!$AY$76)/('MMA Rev-Exp Summary'!$AY$17-'MMA Rev-Exp Summary'!$AY$15), 0)","v":{"v":0,"d":"0.0%"}},{"$f":"IFERROR(('MMA Rev-Exp Summary'!$AZ$87-'MMA Rev-Exp Summary'!$AZ$76)/('MMA Rev-Exp Summary'!$AZ$17-'MMA Rev-Exp Summary'!$AZ$15), 0)","v":{"v":0,"d":"0.0%"}},{"$f":"IFERROR(('MMA Rev-Exp Summary'!$BA$87-'MMA Rev-Exp Summary'!$BA$76)/('MMA Rev-Exp Summary'!$BA$17-'MMA Rev-Exp Summary'!$BA$15), 0)","v":{"v":0,"d":"0.0%"}},{"$f":"IFERROR(('MMA Rev-Exp Summary'!$BB$87-'MMA Rev-Exp Summary'!$BB$76)/('MMA Rev-Exp Summary'!$BB$17-'MMA Rev-Exp Summary'!$BB$15), 0)","v":{"v":0,"d":"0.0%"}},{"$f":"IFERROR(('MMA Rev-Exp Summary'!$BC$87-'MMA Rev-Exp Summary'!$BC$76)/('MMA Rev-Exp Summary'!$BC$17-'MMA Rev-Exp Summary'!$BC$15), 0)","v":{"v":0,"d":"0.0%"}},{"$f":"IFERROR(('MMA Rev-Exp Summary'!$BD$87-'MMA Rev-Exp Summary'!$BD$76)/('MMA Rev-Exp Summary'!$BD$17-'MMA Rev-Exp Summary'!$BD$15), 0)","v":{"v":0,"d":"0.0%"}},{"$f":"IFERROR(('MMA Rev-Exp Summary'!$BE$87-'MMA Rev-Exp Summary'!$BE$76)/('MMA Rev-Exp Summary'!$BE$17-'MMA Rev-Exp Summary'!$BE$15), 0)","v":{"v":0,"d":"0.0%"}},{"$f":"IFERROR(('MMA Rev-Exp Summary'!$BF$87-'MMA Rev-Exp Summary'!$BF$76)/('MMA Rev-Exp Summary'!$BF$17-'MMA Rev-Exp Summary'!$BF$15), 0)","v":{"v":0,"d":"0.0%"}},{"$f":"IFERROR(('MMA Rev-Exp Summary'!$BG$87-'MMA Rev-Exp Summary'!$BG$76)/('MMA Rev-Exp Summary'!$BG$17-'MMA Rev-Exp Summary'!$BG$15), 0)","v":{"v":0,"d":"0.0%"}}]
["MMA",null,null,{"$f":"Jurat!I$1","v":0},{"$f":"Jurat!D$33","v":"00:00:00"},"2017-03-31","Admin","Quarter","Summary",{"$f":"IFERROR('MMA Rev-Exp Summary'!$D$96/('MMA Rev-Exp Summary'!$D$17-'MMA Rev-Exp Summary'!$D$15), 0)","v":{"v":0,"d":"0.0%"}}]
["MMA",null,null,{"$f":"Jurat!I$1","v":0},{"$f":"Jurat!D$33","v":"00:00:00"},"2017-06-30","Admin","Quarter","Summary",{"$f":"IFERROR('MMA Rev-Exp Summary'!$O$96/('MMA Rev-Exp Summary'!$O$17-'MMA Rev-Exp Summary'!$O$15), 0)","v":{"v":0,"d":"0.0%"}}]
["MMA",null,null,{"$f":"Jurat!I$1","v":0},{"$f":"Jurat!D$33","v":"00:00:00"},"2017-09-30","Admin","Quarter","Summary",{"$f":"IFERROR('MMA Rev-Exp Summary'!$Z$96/('MMA Rev-Exp Summary'!$Z$17-'MMA Rev-Exp Summary'!$Z$15), 0)","v":{"v":0,"d":"0.0%"}}]
["MMA",null,null,{"$f":"Jurat!I$1","v":0},{"$f":"Jurat!D$33","v":"00:00:00"},"2017-12-31","Admin","Quarter","Summary",{"$f":"IFERROR('MMA Rev-Exp Summary'!$AK$96/('MMA Rev-Exp Summary'!$AK$17-'MMA Rev-Exp Summary'!$AK$15), 0)","v":{"v":0,"d":"0.0%"}}]
["MMA",null,null,{"$f":"Jurat!I$1","v":0},{"$f":"Jurat!D$33","v":"00:00:00"},{"$f":"E11","v":"00:00:00"},"Admin","YTD","Summary",{"$f":"IFERROR('MMA Rev-Exp Summary'!$AW$96/('MMA Rev-Exp Summary'!$AW$17-'MMA Rev-Exp Summary'!$AW$15), 0)","v":{"v":0,"d":"0.0%"}}]
["MMA",null,null,{"$f":"Jurat!I$1","v":0},{"$f":"Jurat!D$33","v":"00:00:00"},"2017-03-31","Margin","Quarter","Summary",{"$f":"IFERROR(('MMA Rev-Exp Summary'!$D$105-'MMA Rev-Exp Summary'!$D$15+'MMA Rev-Exp Summary'!$D$99)/('MMA Rev-Exp Summary'!$D$17-'MMA Rev-Exp Summary'!$D$15), 0)","v":{"v":0,"d":"0.0%"}}]
["MMA",null,null,{"$f":"Jurat!I$1","v":0},{"$f":"Jurat!D$33","v":"00:00:00"},"2017-06-30","Margin","Quarter","Summary",{"$f":"IFERROR(('MMA Rev-Exp Summary'!$O$105-'MMA Rev-Exp Summary'!$O$15+'MMA Rev-Exp Summary'!$O$99)/('MMA Rev-Exp Summary'!$O$17-'MMA Rev-Exp Summary'!$O$15), 0)","v":{"v":0,"d":"0.0%"}}]
["MMA",null,null,{"$f":"Jurat!I$1","v":0},{"$f":"Jurat!D$33","v":"00:00:00"},"2017-09-30","Margin","Quarter","Summary",{"$f":"IFERROR(('MMA Rev-Exp Summary'!$Z$105-'MMA Rev-Exp Summary'!$Z$15+'MMA Rev-Exp Summary'!$Z$99)/('MMA Rev-Exp Summary'!$Z$17-'MMA Rev-Exp Summary'!$Z$15), 0)","v":{"v":0,"d":"0.0%"}}]
["MMA",null,null,{"$f":"Jurat!I$1","v":0},{"$f":"Jurat!D$33","v":"00:00:00"},"2017-12-31","Margin","Quarter","Summary",{"$f":"IFERROR(('MMA Rev-Exp Summary'!$AK$105-'MMA Rev-Exp Summary'!$AK$15+'MMA Rev-Exp Summary'!$AK$99)/('MMA Rev-Exp Summary'!$AK$17-'MMA Rev-Exp Summary'!$AK$15), 0)","v":{"v":0,"d":"0.0%"}}]
["MMA",null,null,{"$f":"Jurat!I$1","v":0},{"$f":"Jurat!D$33","v":"00:00:00"},{"$f":"E16","v":"00:00:00"},"Margin","YTD","Summary",{"$f":"IFERROR(('MMA Rev-Exp Summary'!$AW$105-'MMA Rev-Exp Summary'!$AW$15+'MMA Rev-Exp Summary'!$AW$99)/('MMA Rev-Exp Summary'!$AW$17-'MMA Rev-Exp Summary'!$AW$15), 0)","v":{"v":0,"d":"0.0%"}}]
["MMA",null,null,{"$f":"Jurat!I$1","v":0},{"$f":"Jurat!D$33","v":"00:00:00"},"2017-03-31","MLR","Quarter","Region 1",{"$f":"IFERROR(('MMA Rev-Exp Region 1'!D$87-'MMA Rev-Exp Region 1'!D$76)/('MMA Rev-Exp Region 1'!D$17-'MMA Rev-Exp Region 1'!D$15), 0)","v":{"v":0,"d":"0.0%"}},{"$f":"IFERROR(('MMA Rev-Exp Region 1'!E$87-'MMA Rev-Exp Region 1'!E$76)/('MMA Rev-Exp Region 1'!E$17-'MMA Rev-Exp Region 1'!E$15), 0)","v":{"v":0,"d":"0.0%"}},{"$f":"IFERROR(('MMA Rev-Exp Region 1'!F$87-'MMA Rev-Exp Region 1'!F$76)/('MMA Rev-Exp Region 1'!F$17-'MMA Rev-Exp Region 1'!F$15), 0)","v":{"v":0,"d":"0.0%"}},{"$f":"IFERROR(('MMA Rev-Exp Region 1'!G$87-'MMA Rev-Exp Region 1'!G$76)/('MMA Rev-Exp Region 1'!G$17-'MMA Rev-Exp Region 1'!G$15), 0)","v":{"v":0,"d":"0.0%"}},{"$f":"IFERROR(('MMA Rev-Exp Region 1'!H$87-'MMA Rev-Exp Region 1'!H$76)/('MMA Rev-Exp Region 1'!H$17-'MMA Rev-Exp Region 1'!H$15), 0)","v":{"v":0,"d":"0.0%"}},{"$f":"IFERROR(('MMA Rev-Exp Region 1'!I$87-'MMA Rev-Exp Region 1'!I$76)/('MMA Rev-Exp Region 1'!I$17-'MMA Rev-Exp Region 1'!I$15), 0)","v":{"v":0,"d":"0.0%"}},{"$f":"IFERROR(('MMA Rev-Exp Region 1'!J$87-'MMA Rev-Exp Region 1'!J$76)/('MMA Rev-Exp Region 1'!J$17-'MMA Rev-Exp Region 1'!J$15), 0)","v":{"v":0,"d":"0.0%"}},{"$f":"IFERROR(('MMA Rev-Exp Region 1'!K$87-'MMA Rev-Exp Region 1'!K$76)/('MMA Rev-Exp Region 1'!K$17-'MMA Rev-Exp Region 1'!K$15), 0)","v":{"v":0,"d":"0.0%"}},{"$f":"IFERROR(('MMA Rev-Exp Region 1'!L$87-'MMA Rev-Exp Region 1'!L$76)/('MMA Rev-Exp Region 1'!L$17-'MMA Rev-Exp Region 1'!L$15), 0)","v":{"v":0,"d":"0.0%"}},{"$f":"IFERROR(('MMA Rev-Exp Region 1'!M$87-'MMA Rev-Exp Region 1'!M$76)/('MMA Rev-Exp Region 1'!M$17-'MMA Rev-Exp Region 1'!M$15), 0)","v":{"v":0,"d":"0.0%"}},{"$f":"IFERROR(('MMA Rev-Exp Region 1'!N$87-'MMA Rev-Exp Region 1'!N$76)/('MMA Rev-Exp Region 1'!N$17-'MMA Rev-Exp Region 1'!N$15), 0)","v":{"v":0,"d":"0.0%"}}]
["MMA",null,null,{"$f":"Jurat!I$1","v":0},{"$f":"Jurat!D$33","v":"00:00:00"},"2017-06-30","MLR","Quarter","Region 1",{"$f":"IFERROR(('MMA Rev-Exp Region 1'!O$87-'MMA Rev-Exp Region 1'!O$76)/('MMA Rev-Exp Region 1'!O$17-'MMA Rev-Exp Region 1'!O$15), 0)","v":{"v":0,"d":"0.0%"}},{"$f":"IFERROR(('MMA Rev-Exp Region 1'!$P$87-'MMA Rev-Exp Region 1'!$P$76)/('MMA Rev-Exp Region 1'!$P$17-'MMA Rev-Exp Region 1'!$P$15), 0)","v":{"v":0,"d":"0.0%"}},{"$f":"IFERROR(('MMA Rev-Exp Region 1'!$Q$87-'MMA Rev-Exp Region 1'!$Q$76)/('MMA Rev-Exp Region 1'!$Q$17-'MMA Rev-Exp Region 1'!$Q$15), 0)","v":{"v":0,"d":"0.0%"}},{"$f":"IFERROR(('MMA Rev-Exp Region 1'!$R$87-'MMA Rev-Exp Region 1'!$R$76)/('MMA Rev-Exp Region 1'!$R$17-'MMA Rev-Exp Region 1'!$R$15), 0)","v":{"v":0,"d":"0.0%"}},{"$f":"IFERROR(('MMA Rev-Exp Region 1'!$S$87-'MMA Rev-Exp Region 1'!$S$76)/('MMA Rev-Exp Region 1'!$S$17-'MMA Rev-Exp Region 1'!$S$15), 0)","v":{"v":0,"d":"0.0%"}},{"$f":"IFERROR(('MMA Rev-Exp Region 1'!$T$87-'MMA Rev-Exp Region 1'!$T$76)/('MMA Rev-Exp Region 1'!$T$17-'MMA Rev-Exp Region 1'!$T$15), 0)","v":{"v":0,"d":"0.0%"}},{"$f":"IFERROR(('MMA Rev-Exp Region 1'!$U$87-'MMA Rev-Exp Region 1'!$U$76)/('MMA Rev-Exp Region 1'!$U$17-'MMA Rev-Exp Region 1'!$U$15), 0)","v":{"v":0,"d":"0.0%"}},{"$f":"IFERROR(('MMA Rev-Exp Region 1'!$V$87-'MMA Rev-Exp Region 1'!$V$76)/('MMA Rev-Exp Region 1'!$V$17-'MMA Rev-Exp Region 1'!$V$15), 0)","v":{"v":0,"d":"0.0%"}},{"$f":"IFERROR(('MMA Rev-Exp Region 1'!$W$87-'MMA Rev-Exp Region 1'!$W$76)/('MMA Rev-Exp Region 1'!$W$17-'MMA Rev-Exp Region 1'!$W$15), 0)","v":{"v":0,"d":"0.0%"}},{"$f":"IFERROR(('MMA Rev-Exp Region 1'!$X$87-'MMA Rev-Exp Region 1'!$X$76)/('MMA Rev-Exp Region 1'!$X$17-'MMA Rev-Exp Region 1'!$X$15), 0)","v":{"v":0,"d":"0.0%"}},{"$f":"IFERROR(('MMA Rev-Exp Region 1'!$Y$87-'MMA Rev-Exp Region 1'!$Y$76)/('MMA Rev-Exp Region 1'!$Y$17-'MMA Rev-Exp Region 1'!$Y$15), 0)","v":{"v":0,"d":"0.0%"}}]
["MMA",null,null,{"$f":"Jurat!I$1","v":0},{"$f":"Jurat!D$33","v":"00:00:00"},"2017-09-30","MLR","Quarter","Region 1",{"$f":"IFERROR(('MMA Rev-Exp Region 1'!$Z$87-'MMA Rev-Exp Region 1'!$Z$76)/('MMA Rev-Exp Region 1'!$Z$17-'MMA Rev-Exp Region 1'!$Z$15), 0)","v":{"v":0,"d":"0.0%"}},{"$f":"IFERROR(('MMA Rev-Exp Region 1'!$AA$87-'MMA Rev-Exp Region 1'!$AA$76)/('MMA Rev-Exp Region 1'!$AA$17-'MMA Rev-Exp Region 1'!$AA$15), 0)","v":{"v":0,"d":"0.0%"}},{"$f":"IFERROR(('MMA Rev-Exp Region 1'!$AB$87-'MMA Rev-Exp Region 1'!$AB$76)/('MMA Rev-Exp Region 1'!$AB$17-'MMA Rev-Exp Region 1'!$AB$15), 0)","v":{"v":0,"d":"0.0%"}},{"$f":"IFERROR(('MMA Rev-Exp Region 1'!$AC$87-'MMA Rev-Exp Region 1'!$AC$76)/('MMA Rev-Exp Region 1'!$AC$17-'MMA Rev-Exp Region 1'!$AC$15), 0)","v":{"v":0,"d":"0.0%"}},{"$f":"IFERROR(('MMA Rev-Exp Region 1'!$AD$87-'MMA Rev-Exp Region 1'!$AD$76)/('MMA Rev-Exp Region 1'!$AD$17-'MMA Rev-Exp Region 1'!$AD$15), 0)","v":{"v":0,"d":"0.0%"}},{"$f":"IFERROR(('MMA Rev-Exp Region 1'!$AE$87-'MMA Rev-Exp Region 1'!$AE$76)/('MMA Rev-Exp Region 1'!$AE$17-'MMA Rev-Exp Region 1'!$AE$15), 0)","v":{"v":0,"d":"0.0%"}},{"$f":"IFERROR(('MMA Rev-Exp Region 1'!$AF$87-'MMA Rev-Exp Region 1'!$AF$76)/('MMA Rev-Exp Region 1'!$AF$17-'MMA Rev-Exp Region 1'!$AF$15), 0)","v":{"v":0,"d":"0.0%"}},{"$f":"IFERROR(('MMA Rev-Exp Region 1'!$AG$87-'MMA Rev-Exp Region 1'!$AG$76)/('MMA Rev-Exp Region 1'!$AG$17-'MMA Rev-Exp Region 1'!$AG$15), 0)","v":{"v":0,"d":"0.0%"}},{"$f":"IFERROR(('MMA Rev-Exp Region 1'!$AH$87-'MMA Rev-Exp Region 1'!$AH$76)/('MMA Rev-Exp Region 1'!$AH$17-'MMA Rev-Exp Region 1'!$AH$15), 0)","v":{"v":0,"d":"0.0%"}},{"$f":"IFERROR(('MMA Rev-Exp Region 1'!$AI$87-'MMA Rev-Exp Region 1'!$AI$76)/('MMA Rev-Exp Region 1'!$AI$17-'MMA Rev-Exp Region 1'!$AI$15), 0)","v":{"v":0,"d":"0.0%"}},{"$f":"IFERROR(('MMA Rev-Exp Region 1'!$AJ$87-'MMA Rev-Exp Region 1'!$AJ$76)/('MMA Rev-Exp Region 1'!$AJ$17-'MMA Rev-Exp Region 1'!$AJ$15), 0)","v":{"v":0,"d":"0.0%"}}]
["MMA",null,null,{"$f":"Jurat!I$1","v":0},{"$f":"Jurat!D$33","v":"00:00:00"},"2017-12-31","MLR","Quarter","Region 1",{"$f":"IFERROR(('MMA Rev-Exp Region 1'!$AK$87-'MMA Rev-Exp Region 1'!$AK$76)/('MMA Rev-Exp Region 1'!$AK$17-'MMA Rev-Exp Region 1'!$AK$15), 0)","v":{"v":0,"d":"0.0%"}},{"$f":"IFERROR(('MMA Rev-Exp Region 1'!$AL$87-'MMA Rev-Exp Region 1'!$AL$76)/('MMA Rev-Exp Region 1'!$AL$17-'MMA Rev-Exp Region 1'!$AL$15), 0)","v":{"v":0,"d":"0.0%"}},{"$f":"IFERROR(('MMA Rev-Exp Region 1'!$AM$87-'MMA Rev-Exp Region 1'!$AM$76)/('MMA Rev-Exp Region 1'!$AM$17-'MMA Rev-Exp Region 1'!$AM$15), 0)","v":{"v":0,"d":"0.0%"}},{"$f":"IFERROR(('MMA Rev-Exp Region 1'!$AN$87-'MMA Rev-Exp Region 1'!$AN$76)/('MMA Rev-Exp Region 1'!$AN$17-'MMA Rev-Exp Region 1'!$AN$15), 0)","v":{"v":0,"d":"0.0%"}},{"$f":"IFERROR(('MMA Rev-Exp Region 1'!$AO$87-'MMA Rev-Exp Region 1'!$AO$76)/('MMA Rev-Exp Region 1'!$AO$17-'MMA Rev-Exp Region 1'!$AO$15), 0)","v":{"v":0,"d":"0.0%"}},{"$f":"IFERROR(('MMA Rev-Exp Region 1'!$AP$87-'MMA Rev-Exp Region 1'!$AP$76)/('MMA Rev-Exp Region 1'!$AP$17-'MMA Rev-Exp Region 1'!$AP$15), 0)","v":{"v":0,"d":"0.0%"}},{"$f":"IFERROR(('MMA Rev-Exp Region 1'!$AQ$87-'MMA Rev-Exp Region 1'!$AQ$76)/('MMA Rev-Exp Region 1'!$AQ$17-'MMA Rev-Exp Region 1'!$AQ$15), 0)","v":{"v":0,"d":"0.0%"}},{"$f":"IFERROR(('MMA Rev-Exp Region 1'!$AR$87-'MMA Rev-Exp Region 1'!$AR$76)/('MMA Rev-Exp Region 1'!$AR$17-'MMA Rev-Exp Region 1'!$AR$15), 0)","v":{"v":0,"d":"0.0%"}},{"$f":"IFERROR(('MMA Rev-Exp Region 1'!$AS$87-'MMA Rev-Exp Region 1'!$AS$76)/('MMA Rev-Exp Region 1'!$AS$17-'MMA Rev-Exp Region 1'!$AS$15), 0)","v":{"v":0,"d":"0.0%"}},{"$f":"IFERROR(('MMA Rev-Exp Region 1'!$AT$87-'MMA Rev-Exp Region 1'!$AT$76)/('MMA Rev-Exp Region 1'!$AT$17-'MMA Rev-Exp Region 1'!$AT$15), 0)","v":{"v":0,"d":"0.0%"}},{"$f":"IFERROR(('MMA Rev-Exp Region 1'!$AU$87-'MMA Rev-Exp Region 1'!$AU$76)/('MMA Rev-Exp Region 1'!$AU$17-'MMA Rev-Exp Region 1'!$AU$15), 0)","v":{"v":0,"d":"0.0%"}}]
["MMA",null,null,{"$f":"Jurat!I$1","v":0},{"$f":"Jurat!D$33","v":"00:00:00"},{"$f":"E21","v":"00:00:00"},"MLR","YTD","Region 1",{"$f":"IFERROR(('MMA Rev-Exp Region 1'!$AW$87-'MMA Rev-Exp Region 1'!$AW$76)/('MMA Rev-Exp Region 1'!$AW$17-'MMA Rev-Exp Region 1'!$AW$15), 0)","v":{"v":0,"d":"0.0%"}},{"$f":"IFERROR(('MMA Rev-Exp Region 1'!$AX$87-'MMA Rev-Exp Region 1'!$AX$76)/('MMA Rev-Exp Region 1'!$AX$17-'MMA Rev-Exp Region 1'!$AX$15), 0)","v":{"v":0,"d":"0.0%"}},{"$f":"IFERROR(('MMA Rev-Exp Region 1'!$AY$87-'MMA Rev-Exp Region 1'!$AY$76)/('MMA Rev-Exp Region 1'!$AY$17-'MMA Rev-Exp Region 1'!$AY$15), 0)","v":{"v":0,"d":"0.0%"}},{"$f":"IFERROR(('MMA Rev-Exp Region 1'!$AZ$87-'MMA Rev-Exp Region 1'!$AZ$76)/('MMA Rev-Exp Region 1'!$AZ$17-'MMA Rev-Exp Region 1'!$AZ$15), 0)","v":{"v":0,"d":"0.0%"}},{"$f":"IFERROR(('MMA Rev-Exp Region 1'!$BA$87-'MMA Rev-Exp Region 1'!$BA$76)/('MMA Rev-Exp Region 1'!$BA$17-'MMA Rev-Exp Region 1'!$BA$15), 0)","v":{"v":0,"d":"0.0%"}},{"$f":"IFERROR(('MMA Rev-Exp Region 1'!$BB$87-'MMA Rev-Exp Region 1'!$BB$76)/('MMA Rev-Exp Region 1'!$BB$17-'MMA Rev-Exp Region 1'!$BB$15), 0)","v":{"v":0,"d":"0.0%"}},{"$f":"IFERROR(('MMA Rev-Exp Region 1'!$BC$87-'MMA Rev-Exp Region 1'!$BC$76)/('MMA Rev-Exp Region 1'!$BC$17-'MMA Rev-Exp Region 1'!$BC$15), 0)","v":{"v":0,"d":"0.0%"}},{"$f":"IFERROR(('MMA Rev-Exp Region 1'!$BD$87-'MMA Rev-Exp Region 1'!$BD$76)/('MMA Rev-Exp Region 1'!$BD$17-'MMA Rev-Exp Region 1'!$BD$15), 0)","v":{"v":0,"d":"0.0%"}},{"$f":"IFERROR(('MMA Rev-Exp Region 1'!$BE$87-'MMA Rev-Exp Region 1'!$BE$76)/('MMA Rev-Exp Region 1'!$BE$17-'MMA Rev-Exp Region 1'!$BE$15), 0)","v":{"v":0,"d":"0.0%"}},{"$f":"IFERROR(('MMA Rev-Exp Region 1'!$BF$87-'MMA Rev-Exp Region 1'!$BF$76)/('MMA Rev-Exp Region 1'!$BF$17-'MMA Rev-Exp Region 1'!$BF$15), 0)","v":{"v":0,"d":"0.0%"}},{"$f":"IFERROR(('MMA Rev-Exp Region 1'!$BG$87-'MMA Rev-Exp Region 1'!$BG$76)/('MMA Rev-Exp Region 1'!$BG$17-'MMA Rev-Exp Region 1'!$BG$15), 0)","v":{"v":0,"d":"0.0%"}}]
["MMA",null,null,{"$f":"Jurat!I$1","v":0},{"$f":"Jurat!D$33","v":"00:00:00"},"2017-03-31","Admin","Quarter","Region 1",{"$f":"IFERROR('MMA Rev-Exp Region 1'!$D$96/('MMA Rev-Exp Region 1'!$D$17-'MMA Rev-Exp Region 1'!$D$15), 0)","v":{"v":0,"d":"0.0%"}}]
["MMA",null,null,{"$f":"Jurat!I$1","v":0},{"$f":"Jurat!D$33","v":"00:00:00"},"2017-06-30","Admin","Quarter","Region 1",{"$f":"IFERROR('MMA Rev-Exp Region 1'!$O$96/('MMA Rev-Exp Region 1'!$O$17-'MMA Rev-Exp Region 1'!$O$15), 0)","v":{"v":0,"d":"0.0%"}}]
["MMA",null,null,{"$f":"Jurat!I$1","v":0},{"$f":"Jurat!D$33","v":"00:00:00"},"2017-09-30","Admin","Quarter","Region 1",{"$f":"IFERROR('MMA Rev-Exp Region 1'!$Z$96/('MMA Rev-Exp Region 1'!$Z$17-'MMA Rev-Exp Region 1'!$Z$15), 0)","v":{"v":0,"d":"0.0%"}}]
["MMA",null,null,{"$f":"Jurat!I$1","v":0},{"$f":"Jurat!D$33","v":"00:00:00"},"2017-12-31","Admin","Quarter","Region 1",{"$f":"IFERROR('MMA Rev-Exp Region 1'!$AK$96/('MMA Rev-Exp Region 1'!$AK$17-'MMA Rev-Exp Region 1'!$AK$15), 0)","v":{"v":0,"d":"0.0%"}}]
["MMA",null,null,{"$f":"Jurat!I$1","v":0},{"$f":"Jurat!D$33","v":"00:00:00"},{"$f":"E26","v":"00:00:00"},"Admin","YTD","Region 1",{"$f":"IFERROR('MMA Rev-Exp Region 1'!$AW$96/('MMA Rev-Exp Region 1'!$AW$17-'MMA Rev-Exp Region 1'!$AW$15), 0)","v":{"v":0,"d":"0.0%"}}]
["MMA",null,null,{"$f":"Jurat!I$1","v":0},{"$f":"Jurat!D$33","v":"00:00:00"},"2017-03-31","Margin","Quarter","Region 1",{"$f":"IFERROR(('MMA Rev-Exp Region 1'!$D$105-'MMA Rev-Exp Region 1'!$D$15+'MMA Rev-Exp Region 1'!$D$99)/('MMA Rev-Exp Region 1'!$D$17-'MMA Rev-Exp Region 1'!$D$15), 0)","v":{"v":0,"d":"0.0%"}}]
["MMA",null,null,{"$f":"Jurat!I$1","v":0},{"$f":"Jurat!D$33","v":"00:00:00"},"2017-06-30","Margin","Quarter","Region 1",{"$f":"IFERROR(('MMA Rev-Exp Region 1'!$O$105-'MMA Rev-Exp Region 1'!$O$15+'MMA Rev-Exp Region 1'!$O$99)/('MMA Rev-Exp Region 1'!$O$17-'MMA Rev-Exp Region 1'!$O$15), 0)","v":{"v":0,"d":"0.0%"}}]
["MMA",null,null,{"$f":"Jurat!I$1","v":0},{"$f":"Jurat!D$33","v":"00:00:00"},"2017-09-30","Margin","Quarter","Region 1",{"$f":"IFERROR(('MMA Rev-Exp Region 1'!$Z$105-'MMA Rev-Exp Region 1'!$Z$15+'MMA Rev-Exp Region 1'!$Z$99)/('MMA Rev-Exp Region 1'!$Z$17-'MMA Rev-Exp Region 1'!$Z$15), 0)","v":{"v":0,"d":"0.0%"}}]
["MMA",null,null,{"$f":"Jurat!I$1","v":0},{"$f":"Jurat!D$33","v":"00:00:00"},"2017-12-31","Margin","Quarter","Region 1",{"$f":"IFERROR(('MMA Rev-Exp Region 1'!$AK$105-'MMA Rev-Exp Region 1'!$AK$15+'MMA Rev-Exp Region 1'!$AK$99)/('MMA Rev-Exp Region 1'!$AK$17-'MMA Rev-Exp Region 1'!$AK$15), 0)","v":{"v":0,"d":"0.0%"}}]
["MMA",null,null,{"$f":"Jurat!I$1","v":0},{"$f":"Jurat!D$33","v":"00:00:00"},{"$f":"E31","v":"00:00:00"},"Margin","YTD","Region 1",{"$f":"IFERROR(('MMA Rev-Exp Region 1'!$AW$105-'MMA Rev-Exp Region 1'!$AW$15+'MMA Rev-Exp Region 1'!$AW$99)/('MMA Rev-Exp Region 1'!$AW$17-'MMA Rev-Exp Region 1'!$AW$15), 0)","v":{"v":0,"d":"0.0%"}}]
["MMA",null,null,{"$f":"Jurat!I$1","v":0},{"$f":"Jurat!D$33","v":"00:00:00"},"2017-03-31","MLR","Quarter","Region 2",{"$f":"IFERROR(('MMA Rev-Exp Region 2'!D$87-'MMA Rev-Exp Region 2'!D$76)/('MMA Rev-Exp Region 2'!D$17-'MMA Rev-Exp Region 2'!D$15), 0)","v":{"v":0,"d":"0.0%"}},{"$f":"IFERROR(('MMA Rev-Exp Region 2'!E$87-'MMA Rev-Exp Region 2'!E$76)/('MMA Rev-Exp Region 2'!E$17-'MMA Rev-Exp Region 2'!E$15), 0)","v":{"v":0,"d":"0.0%"}},{"$f":"IFERROR(('MMA Rev-Exp Region 2'!F$87-'MMA Rev-Exp Region 2'!F$76)/('MMA Rev-Exp Region 2'!F$17-'MMA Rev-Exp Region 2'!F$15), 0)","v":{"v":0,"d":"0.0%"}},{"$f":"IFERROR(('MMA Rev-Exp Region 2'!G$87-'MMA Rev-Exp Region 2'!G$76)/('MMA Rev-Exp Region 2'!G$17-'MMA Rev-Exp Region 2'!G$15), 0)","v":{"v":0,"d":"0.0%"}},{"$f":"IFERROR(('MMA Rev-Exp Region 2'!H$87-'MMA Rev-Exp Region 2'!H$76)/('MMA Rev-Exp Region 2'!H$17-'MMA Rev-Exp Region 2'!H$15), 0)","v":{"v":0,"d":"0.0%"}},{"$f":"IFERROR(('MMA Rev-Exp Region 2'!I$87-'MMA Rev-Exp Region 2'!I$76)/('MMA Rev-Exp Region 2'!I$17-'MMA Rev-Exp Region 2'!I$15), 0)","v":{"v":0,"d":"0.0%"}},{"$f":"IFERROR(('MMA Rev-Exp Region 2'!J$87-'MMA Rev-Exp Region 2'!J$76)/('MMA Rev-Exp Region 2'!J$17-'MMA Rev-Exp Region 2'!J$15), 0)","v":{"v":0,"d":"0.0%"}},{"$f":"IFERROR(('MMA Rev-Exp Region 2'!K$87-'MMA Rev-Exp Region 2'!K$76)/('MMA Rev-Exp Region 2'!K$17-'MMA Rev-Exp Region 2'!K$15), 0)","v":{"v":0,"d":"0.0%"}},{"$f":"IFERROR(('MMA Rev-Exp Region 2'!L$87-'MMA Rev-Exp Region 2'!L$76)/('MMA Rev-Exp Region 2'!L$17-'MMA Rev-Exp Region 2'!L$15), 0)","v":{"v":0,"d":"0.0%"}},{"$f":"IFERROR(('MMA Rev-Exp Region 2'!M$87-'MMA Rev-Exp Region 2'!M$76)/('MMA Rev-Exp Region 2'!M$17-'MMA Rev-Exp Region 2'!M$15), 0)","v":{"v":0,"d":"0.0%"}},{"$f":"IFERROR(('MMA Rev-Exp Region 2'!N$87-'MMA Rev-Exp Region 2'!N$76)/('MMA Rev-Exp Region 2'!N$17-'MMA Rev-Exp Region 2'!N$15), 0)","v":{"v":0,"d":"0.0%"}}]
["MMA",null,null,{"$f":"Jurat!I$1","v":0},{"$f":"Jurat!D$33","v":"00:00:00"},"2017-06-30","MLR","Quarter","Region 2",{"$f":"IFERROR(('MMA Rev-Exp Region 2'!O$87-'MMA Rev-Exp Region 2'!O$76)/('MMA Rev-Exp Region 2'!O$17-'MMA Rev-Exp Region 2'!O$15), 0)","v":{"v":0,"d":"0.0%"}},{"$f":"IFERROR(('MMA Rev-Exp Region 2'!$P$87-'MMA Rev-Exp Region 2'!$P$76)/('MMA Rev-Exp Region 2'!$P$17-'MMA Rev-Exp Region 2'!$P$15), 0)","v":{"v":0,"d":"0.0%"}},{"$f":"IFERROR(('MMA Rev-Exp Region 2'!$Q$87-'MMA Rev-Exp Region 2'!$Q$76)/('MMA Rev-Exp Region 2'!$Q$17-'MMA Rev-Exp Region 2'!$Q$15), 0)","v":{"v":0,"d":"0.0%"}},{"$f":"IFERROR(('MMA Rev-Exp Region 2'!$R$87-'MMA Rev-Exp Region 2'!$R$76)/('MMA Rev-Exp Region 2'!$R$17-'MMA Rev-Exp Region 2'!$R$15), 0)","v":{"v":0,"d":"0.0%"}},{"$f":"IFERROR(('MMA Rev-Exp Region 2'!$S$87-'MMA Rev-Exp Region 2'!$S$76)/('MMA Rev-Exp Region 2'!$S$17-'MMA Rev-Exp Region 2'!$S$15), 0)","v":{"v":0,"d":"0.0%"}},{"$f":"IFERROR(('MMA Rev-Exp Region 2'!$T$87-'MMA Rev-Exp Region 2'!$T$76)/('MMA Rev-Exp Region 2'!$T$17-'MMA Rev-Exp Region 2'!$T$15), 0)","v":{"v":0,"d":"0.0%"}},{"$f":"IFERROR(('MMA Rev-Exp Region 2'!$U$87-'MMA Rev-Exp Region 2'!$U$76)/('MMA Rev-Exp Region 2'!$U$17-'MMA Rev-Exp Region 2'!$U$15), 0)","v":{"v":0,"d":"0.0%"}},{"$f":"IFERROR(('MMA Rev-Exp Region 2'!$V$87-'MMA Rev-Exp Region 2'!$V$76)/('MMA Rev-Exp Region 2'!$V$17-'MMA Rev-Exp Region 2'!$V$15), 0)","v":{"v":0,"d":"0.0%"}},{"$f":"IFERROR(('MMA Rev-Exp Region 2'!$W$87-'MMA Rev-Exp Region 2'!$W$76)/('MMA Rev-Exp Region 2'!$W$17-'MMA Rev-Exp Region 2'!$W$15), 0)","v":{"v":0,"d":"0.0%"}},{"$f":"IFERROR(('MMA Rev-Exp Region 2'!$X$87-'MMA Rev-Exp Region 2'!$X$76)/('MMA Rev-Exp Region 2'!$X$17-'MMA Rev-Exp Region 2'!$X$15), 0)","v":{"v":0,"d":"0.0%"}},{"$f":"IFERROR(('MMA Rev-Exp Region 2'!$Y$87-'MMA Rev-Exp Region 2'!$Y$76)/('MMA Rev-Exp Region 2'!$Y$17-'MMA Rev-Exp Region 2'!$Y$15), 0)","v":{"v":0,"d":"0.0%"}}]
["MMA",null,null,{"$f":"Jurat!I$1","v":0},{"$f":"Jurat!D$33","v":"00:00:00"},"2017-09-30","MLR","Quarter","Region 2",{"$f":"IFERROR(('MMA Rev-Exp Region 2'!$Z$87-'MMA Rev-Exp Region 2'!$Z$76)/('MMA Rev-Exp Region 2'!$Z$17-'MMA Rev-Exp Region 2'!$Z$15), 0)","v":{"v":0,"d":"0.0%"}},{"$f":"IFERROR(('MMA Rev-Exp Region 2'!$AA$87-'MMA Rev-Exp Region 2'!$AA$76)/('MMA Rev-Exp Region 2'!$AA$17-'MMA Rev-Exp Region 2'!$AA$15), 0)","v":{"v":0,"d":"0.0%"}},{"$f":"IFERROR(('MMA Rev-Exp Region 2'!$AB$87-'MMA Rev-Exp Region 2'!$AB$76)/('MMA Rev-Exp Region 2'!$AB$17-'MMA Rev-Exp Region 2'!$AB$15), 0)","v":{"v":0,"d":"0.0%"}},{"$f":"IFERROR(('MMA Rev-Exp Region 2'!$AC$87-'MMA Rev-Exp Region 2'!$AC$76)/('MMA Rev-Exp Region 2'!$AC$17-'MMA Rev-Exp Region 2'!$AC$15), 0)","v":{"v":0,"d":"0.0%"}},{"$f":"IFERROR(('MMA Rev-Exp Region 2'!$AD$87-'MMA Rev-Exp Region 2'!$AD$76)/('MMA Rev-Exp Region 2'!$AD$17-'MMA Rev-Exp Region 2'!$AD$15), 0)","v":{"v":0,"d":"0.0%"}},{"$f":"IFERROR(('MMA Rev-Exp Region 2'!$AE$87-'MMA Rev-Exp Region 2'!$AE$76)/('MMA Rev-Exp Region 2'!$AE$17-'MMA Rev-Exp Region 2'!$AE$15), 0)","v":{"v":0,"d":"0.0%"}},{"$f":"IFERROR(('MMA Rev-Exp Region 2'!$AF$87-'MMA Rev-Exp Region 2'!$AF$76)/('MMA Rev-Exp Region 2'!$AF$17-'MMA Rev-Exp Region 2'!$AF$15), 0)","v":{"v":0,"d":"0.0%"}},{"$f":"IFERROR(('MMA Rev-Exp Region 2'!$AG$87-'MMA Rev-Exp Region 2'!$AG$76)/('MMA Rev-Exp Region 2'!$AG$17-'MMA Rev-Exp Region 2'!$AG$15), 0)","v":{"v":0,"d":"0.0%"}},{"$f":"IFERROR(('MMA Rev-Exp Region 2'!$AH$87-'MMA Rev-Exp Region 2'!$AH$76)/('MMA Rev-Exp Region 2'!$AH$17-'MMA Rev-Exp Region 2'!$AH$15), 0)","v":{"v":0,"d":"0.0%"}},{"$f":"IFERROR(('MMA Rev-Exp Region 2'!$AI$87-'MMA Rev-Exp Region 2'!$AI$76)/('MMA Rev-Exp Region 2'!$AI$17-'MMA Rev-Exp Region 2'!$AI$15), 0)","v":{"v":0,"d":"0.0%"}},{"$f":"IFERROR(('MMA Rev-Exp Region 2'!$AJ$87-'MMA Rev-Exp Region 2'!$AJ$76)/('MMA Rev-Exp Region 2'!$AJ$17-'MMA Rev-Exp Region 2'!$AJ$15), 0)","v":{"v":0,"d":"0.0%"}}]
["MMA",null,null,{"$f":"Jurat!I$1","v":0},{"$f":"Jurat!D$33","v":"00:00:00"},"2017-12-31","MLR","Quarter","Region 2",{"$f":"IFERROR(('MMA Rev-Exp Region 2'!$AK$87-'MMA Rev-Exp Region 2'!$AK$76)/('MMA Rev-Exp Region 2'!$AK$17-'MMA Rev-Exp Region 2'!$AK$15), 0)","v":{"v":0,"d":"0.0%"}},{"$f":"IFERROR(('MMA Rev-Exp Region 2'!$AL$87-'MMA Rev-Exp Region 2'!$AL$76)/('MMA Rev-Exp Region 2'!$AL$17-'MMA Rev-Exp Region 2'!$AL$15), 0)","v":{"v":0,"d":"0.0%"}},{"$f":"IFERROR(('MMA Rev-Exp Region 2'!$AM$87-'MMA Rev-Exp Region 2'!$AM$76)/('MMA Rev-Exp Region 2'!$AM$17-'MMA Rev-Exp Region 2'!$AM$15), 0)","v":{"v":0,"d":"0.0%"}},{"$f":"IFERROR(('MMA Rev-Exp Region 2'!$AN$87-'MMA Rev-Exp Region 2'!$AN$76)/('MMA Rev-Exp Region 2'!$AN$17-'MMA Rev-Exp Region 2'!$AN$15), 0)","v":{"v":0,"d":"0.0%"}},{"$f":"IFERROR(('MMA Rev-Exp Region 2'!$AO$87-'MMA Rev-Exp Region 2'!$AO$76)/('MMA Rev-Exp Region 2'!$AO$17-'MMA Rev-Exp Region 2'!$AO$15), 0)","v":{"v":0,"d":"0.0%"}},{"$f":"IFERROR(('MMA Rev-Exp Region 2'!$AP$87-'MMA Rev-Exp Region 2'!$AP$76)/('MMA Rev-Exp Region 2'!$AP$17-'MMA Rev-Exp Region 2'!$AP$15), 0)","v":{"v":0,"d":"0.0%"}},{"$f":"IFERROR(('MMA Rev-Exp Region 2'!$AQ$87-'MMA Rev-Exp Region 2'!$AQ$76)/('MMA Rev-Exp Region 2'!$AQ$17-'MMA Rev-Exp Region 2'!$AQ$15), 0)","v":{"v":0,"d":"0.0%"}},{"$f":"IFERROR(('MMA Rev-Exp Region 2'!$AR$87-'MMA Rev-Exp Region 2'!$AR$76)/('MMA Rev-Exp Region 2'!$AR$17-'MMA Rev-Exp Region 2'!$AR$15), 0)","v":{"v":0,"d":"0.0%"}},{"$f":"IFERROR(('MMA Rev-Exp Region 2'!$AS$87-'MMA Rev-Exp Region 2'!$AS$76)/('MMA Rev-Exp Region 2'!$AS$17-'MMA Rev-Exp Region 2'!$AS$15), 0)","v":{"v":0,"d":"0.0%"}},{"$f":"IFERROR(('MMA Rev-Exp Region 2'!$AT$87-'MMA Rev-Exp Region 2'!$AT$76)/('MMA Rev-Exp Region 2'!$AT$17-'MMA Rev-Exp Region 2'!$AT$15), 0)","v":{"v":0,"d":"0.0%"}},{"$f":"IFERROR(('MMA Rev-Exp Region 2'!$AU$87-'MMA Rev-Exp Region 2'!$AU$76)/('MMA Rev-Exp Region 2'!$AU$17-'MMA Rev-Exp Region 2'!$AU$15), 0)","v":{"v":0,"d":"0.0%"}}]
["MMA",null,null,{"$f":"Jurat!I$1","v":0},{"$f":"Jurat!D$33","v":"00:00:00"},{"$f":"E36","v":"00:00:00"},"MLR","YTD","Region 2",{"$f":"IFERROR(('MMA Rev-Exp Region 2'!$AW$87-'MMA Rev-Exp Region 2'!$AW$76)/('MMA Rev-Exp Region 2'!$AW$17-'MMA Rev-Exp Region 2'!$AW$15), 0)","v":{"v":0,"d":"0.0%"}},{"$f":"IFERROR(('MMA Rev-Exp Region 2'!$AX$87-'MMA Rev-Exp Region 2'!$AX$76)/('MMA Rev-Exp Region 2'!$AX$17-'MMA Rev-Exp Region 2'!$AX$15), 0)","v":{"v":0,"d":"0.0%"}},{"$f":"IFERROR(('MMA Rev-Exp Region 2'!$AY$87-'MMA Rev-Exp Region 2'!$AY$76)/('MMA Rev-Exp Region 2'!$AY$17-'MMA Rev-Exp Region 2'!$AY$15), 0)","v":{"v":0,"d":"0.0%"}},{"$f":"IFERROR(('MMA Rev-Exp Region 2'!$AZ$87-'MMA Rev-Exp Region 2'!$AZ$76)/('MMA Rev-Exp Region 2'!$AZ$17-'MMA Rev-Exp Region 2'!$AZ$15), 0)","v":{"v":0,"d":"0.0%"}},{"$f":"IFERROR(('MMA Rev-Exp Region 2'!$BA$87-'MMA Rev-Exp Region 2'!$BA$76)/('MMA Rev-Exp Region 2'!$BA$17-'MMA Rev-Exp Region 2'!$BA$15), 0)","v":{"v":0,"d":"0.0%"}},{"$f":"IFERROR(('MMA Rev-Exp Region 2'!$BB$87-'MMA Rev-Exp Region 2'!$BB$76)/('MMA Rev-Exp Region 2'!$BB$17-'MMA Rev-Exp Region 2'!$BB$15), 0)","v":{"v":0,"d":"0.0%"}},{"$f":"IFERROR(('MMA Rev-Exp Region 2'!$BC$87-'MMA Rev-Exp Region 2'!$BC$76)/('MMA Rev-Exp Region 2'!$BC$17-'MMA Rev-Exp Region 2'!$BC$15), 0)","v":{"v":0,"d":"0.0%"}},{"$f":"IFERROR(('MMA Rev-Exp Region 2'!$BD$87-'MMA Rev-Exp Region 2'!$BD$76)/('MMA Rev-Exp Region 2'!$BD$17-'MMA Rev-Exp Region 2'!$BD$15), 0)","v":{"v":0,"d":"0.0%"}},{"$f":"IFERROR(('MMA Rev-Exp Region 2'!$BE$87-'MMA Rev-Exp Region 2'!$BE$76)/('MMA Rev-Exp Region 2'!$BE$17-'MMA Rev-Exp Region 2'!$BE$15), 0)","v":{"v":0,"d":"0.0%"}},{"$f":"IFERROR(('MMA Rev-Exp Region 2'!$BF$87-'MMA Rev-Exp Region 2'!$BF$76)/('MMA Rev-Exp Region 2'!$BF$17-'MMA Rev-Exp Region 2'!$BF$15), 0)","v":{"v":0,"d":"0.0%"}},{"$f":"IFERROR(('MMA Rev-Exp Region 2'!$BG$87-'MMA Rev-Exp Region 2'!$BG$76)/('MMA Rev-Exp Region 2'!$BG$17-'MMA Rev-Exp Region 2'!$BG$15), 0)","v":{"v":0,"d":"0.0%"}}]
["MMA",null,null,{"$f":"Jurat!I$1","v":0},{"$f":"Jurat!D$33","v":"00:00:00"},"2017-03-31","Admin","Quarter","Region 2",{"$f":"IFERROR('MMA Rev-Exp Region 2'!$D$96/('MMA Rev-Exp Region 2'!$D$17-'MMA Rev-Exp Region 2'!$D$15), 0)","v":{"v":0,"d":"0.0%"}}]
["MMA",null,null,{"$f":"Jurat!I$1","v":0},{"$f":"Jurat!D$33","v":"00:00:00"},"2017-06-30","Admin","Quarter","Region 2",{"$f":"IFERROR('MMA Rev-Exp Region 2'!$O$96/('MMA Rev-Exp Region 2'!$O$17-'MMA Rev-Exp Region 2'!$O$15), 0)","v":{"v":0,"d":"0.0%"}}]
["MMA",null,null,{"$f":"Jurat!I$1","v":0},{"$f":"Jurat!D$33","v":"00:00:00"},"2017-09-30","Admin","Quarter","Region 2",{"$f":"IFERROR('MMA Rev-Exp Region 2'!$Z$96/('MMA Rev-Exp Region 2'!$Z$17-'MMA Rev-Exp Region 2'!$Z$15), 0)","v":{"v":0,"d":"0.0%"}}]
["MMA",null,null,{"$f":"Jurat!I$1","v":0},{"$f":"Jurat!D$33","v":"00:00:00"},"2017-12-31","Admin","Quarter","Region 2",{"$f":"IFERROR('MMA Rev-Exp Region 2'!$AK$96/('MMA Rev-Exp Region 2'!$AK$17-'MMA Rev-Exp Region 2'!$AK$15), 0)","v":{"v":0,"d":"0.0%"}}]
["MMA",null,null,{"$f":"Jurat!I$1","v":0},{"$f":"Jurat!D$33","v":"00:00:00"},{"$f":"E41","v":"00:00:00"},"Admin","YTD","Region 2",{"$f":"IFERROR('MMA Rev-Exp Region 2'!$AW$96/('MMA Rev-Exp Region 2'!$AW$17-'MMA Rev-Exp Region 2'!$AW$15), 0)","v":{"v":0,"d":"0.0%"}}]
["MMA",null,null,{"$f":"Jurat!I$1","v":0},{"$f":"Jurat!D$33","v":"00:00:00"},"2017-03-31","Margin","Quarter","Region 2",{"$f":"IFERROR(('MMA Rev-Exp Region 2'!$D$105-'MMA Rev-Exp Region 2'!$D$15+'MMA Rev-Exp Region 2'!$D$99)/('MMA Rev-Exp Region 2'!$D$17-'MMA Rev-Exp Region 2'!$D$15), 0)","v":{"v":0,"d":"0.0%"}}]
["MMA",null,null,{"$f":"Jurat!I$1","v":0},{"$f":"Jurat!D$33","v":"00:00:00"},"2017-06-30","Margin","Quarter","Region 2",{"$f":"IFERROR(('MMA Rev-Exp Region 2'!$O$105-'MMA Rev-Exp Region 2'!$O$15+'MMA Rev-Exp Region 2'!$O$99)/('MMA Rev-Exp Region 2'!$O$17-'MMA Rev-Exp Region 2'!$O$15), 0)","v":{"v":0,"d":"0.0%"}}]
["MMA",null,null,{"$f":"Jurat!I$1","v":0},{"$f":"Jurat!D$33","v":"00:00:00"},"2017-09-30","Margin","Quarter","Region 2",{"$f":"IFERROR(('MMA Rev-Exp Region 2'!$Z$105-'MMA Rev-Exp Region 2'!$Z$15+'MMA Rev-Exp Region 2'!$Z$99)/('MMA Rev-Exp Region 2'!$Z$17-'MMA Rev-Exp Region 2'!$Z$15), 0)","v":{"v":0,"d":"0.0%"}}]
["MMA",null,null,{"$f":"Jurat!I$1","v":0},{"$f":"Jurat!D$33","v":"00:00:00"},"2017-12-31","Margin","Quarter","Region 2",{"$f":"IFERROR(('MMA Rev-Exp Region 2'!$AK$105-'MMA Rev-Exp Region 2'!$AK$15+'MMA Rev-Exp Region 2'!$AK$99)/('MMA Rev-Exp Region 2'!$AK$17-'MMA Rev-Exp Region 2'!$AK$15), 0)","v":{"v":0,"d":"0.0%"}}]
["MMA",null,null,{"$f":"Jurat!I$1","v":0},{"$f":"Jurat!D$33","v":"00:00:00"},{"$f":"E46","v":"00:00:00"},"Margin","YTD","Region 2",{"$f":"IFERROR(('MMA Rev-Exp Region 2'!$AW$105-'MMA Rev-Exp Region 2'!$AW$15+'MMA Rev-Exp Region 2'!$AW$99)/('MMA Rev-Exp Region 2'!$AW$17-'MMA Rev-Exp Region 2'!$AW$15), 0)","v":{"v":0,"d":"0.0%"}}]
["MMA",null,null,{"$f":"Jurat!I$1","v":0},{"$f":"Jurat!D$33","v":"00:00:00"},"2017-03-31","MLR","Quarter","Region 3",{"$f":"IFERROR(('MMA Rev-Exp Region 3'!D$87-'MMA Rev-Exp Region 3'!D$76)/('MMA Rev-Exp Region 3'!D$17-'MMA Rev-Exp Region 3'!D$15), 0)","v":{"v":0,"d":"0.0%"}},{"$f":"IFERROR(('MMA Rev-Exp Region 3'!E$87-'MMA Rev-Exp Region 3'!E$76)/('MMA Rev-Exp Region 3'!E$17-'MMA Rev-Exp Region 3'!E$15), 0)","v":{"v":0,"d":"0.0%"}},{"$f":"IFERROR(('MMA Rev-Exp Region 3'!F$87-'MMA Rev-Exp Region 3'!F$76)/('MMA Rev-Exp Region 3'!F$17-'MMA Rev-Exp Region 3'!F$15), 0)","v":{"v":0,"d":"0.0%"}},{"$f":"IFERROR(('MMA Rev-Exp Region 3'!G$87-'MMA Rev-Exp Region 3'!G$76)/('MMA Rev-Exp Region 3'!G$17-'MMA Rev-Exp Region 3'!G$15), 0)","v":{"v":0,"d":"0.0%"}},{"$f":"IFERROR(('MMA Rev-Exp Region 3'!H$87-'MMA Rev-Exp Region 3'!H$76)/('MMA Rev-Exp Region 3'!H$17-'MMA Rev-Exp Region 3'!H$15), 0)","v":{"v":0,"d":"0.0%"}},{"$f":"IFERROR(('MMA Rev-Exp Region 3'!I$87-'MMA Rev-Exp Region 3'!I$76)/('MMA Rev-Exp Region 3'!I$17-'MMA Rev-Exp Region 3'!I$15), 0)","v":{"v":0,"d":"0.0%"}},{"$f":"IFERROR(('MMA Rev-Exp Region 3'!J$87-'MMA Rev-Exp Region 3'!J$76)/('MMA Rev-Exp Region 3'!J$17-'MMA Rev-Exp Region 3'!J$15), 0)","v":{"v":0,"d":"0.0%"}},{"$f":"IFERROR(('MMA Rev-Exp Region 3'!K$87-'MMA Rev-Exp Region 3'!K$76)/('MMA Rev-Exp Region 3'!K$17-'MMA Rev-Exp Region 3'!K$15), 0)","v":{"v":0,"d":"0.0%"}},{"$f":"IFERROR(('MMA Rev-Exp Region 3'!L$87-'MMA Rev-Exp Region 3'!L$76)/('MMA Rev-Exp Region 3'!L$17-'MMA Rev-Exp Region 3'!L$15), 0)","v":{"v":0,"d":"0.0%"}},{"$f":"IFERROR(('MMA Rev-Exp Region 3'!M$87-'MMA Rev-Exp Region 3'!M$76)/('MMA Rev-Exp Region 3'!M$17-'MMA Rev-Exp Region 3'!M$15), 0)","v":{"v":0,"d":"0.0%"}},{"$f":"IFERROR(('MMA Rev-Exp Region 3'!N$87-'MMA Rev-Exp Region 3'!N$76)/('MMA Rev-Exp Region 3'!N$17-'MMA Rev-Exp Region 3'!N$15), 0)","v":{"v":0,"d":"0.0%"}}]
["MMA",null,null,{"$f":"Jurat!I$1","v":0},{"$f":"Jurat!D$33","v":"00:00:00"},"2017-06-30","MLR","Quarter","Region 3",{"$f":"IFERROR(('MMA Rev-Exp Region 3'!O$87-'MMA Rev-Exp Region 3'!O$76)/('MMA Rev-Exp Region 3'!O$17-'MMA Rev-Exp Region 3'!O$15), 0)","v":{"v":0,"d":"0.0%"}},{"$f":"IFERROR(('MMA Rev-Exp Region 3'!$P$87-'MMA Rev-Exp Region 3'!$P$76)/('MMA Rev-Exp Region 3'!$P$17-'MMA Rev-Exp Region 3'!$P$15), 0)","v":{"v":0,"d":"0.0%"}},{"$f":"IFERROR(('MMA Rev-Exp Region 3'!$Q$87-'MMA Rev-Exp Region 3'!$Q$76)/('MMA Rev-Exp Region 3'!$Q$17-'MMA Rev-Exp Region 3'!$Q$15), 0)","v":{"v":0,"d":"0.0%"}},{"$f":"IFERROR(('MMA Rev-Exp Region 3'!$R$87-'MMA Rev-Exp Region 3'!$R$76)/('MMA Rev-Exp Region 3'!$R$17-'MMA Rev-Exp Region 3'!$R$15), 0)","v":{"v":0,"d":"0.0%"}},{"$f":"IFERROR(('MMA Rev-Exp Region 3'!$S$87-'MMA Rev-Exp Region 3'!$S$76)/('MMA Rev-Exp Region 3'!$S$17-'MMA Rev-Exp Region 3'!$S$15), 0)","v":{"v":0,"d":"0.0%"}},{"$f":"IFERROR(('MMA Rev-Exp Region 3'!$T$87-'MMA Rev-Exp Region 3'!$T$76)/('MMA Rev-Exp Region 3'!$T$17-'MMA Rev-Exp Region 3'!$T$15), 0)","v":{"v":0,"d":"0.0%"}},{"$f":"IFERROR(('MMA Rev-Exp Region 3'!$U$87-'MMA Rev-Exp Region 3'!$U$76)/('MMA Rev-Exp Region 3'!$U$17-'MMA Rev-Exp Region 3'!$U$15), 0)","v":{"v":0,"d":"0.0%"}},{"$f":"IFERROR(('MMA Rev-Exp Region 3'!$V$87-'MMA Rev-Exp Region 3'!$V$76)/('MMA Rev-Exp Region 3'!$V$17-'MMA Rev-Exp Region 3'!$V$15), 0)","v":{"v":0,"d":"0.0%"}},{"$f":"IFERROR(('MMA Rev-Exp Region 3'!$W$87-'MMA Rev-Exp Region 3'!$W$76)/('MMA Rev-Exp Region 3'!$W$17-'MMA Rev-Exp Region 3'!$W$15), 0)","v":{"v":0,"d":"0.0%"}},{"$f":"IFERROR(('MMA Rev-Exp Region 3'!$X$87-'MMA Rev-Exp Region 3'!$X$76)/('MMA Rev-Exp Region 3'!$X$17-'MMA Rev-Exp Region 3'!$X$15), 0)","v":{"v":0,"d":"0.0%"}},{"$f":"IFERROR(('MMA Rev-Exp Region 3'!$Y$87-'MMA Rev-Exp Region 3'!$Y$76)/('MMA Rev-Exp Region 3'!$Y$17-'MMA Rev-Exp Region 3'!$Y$15), 0)","v":{"v":0,"d":"0.0%"}}]
["MMA",null,null,{"$f":"Jurat!I$1","v":0},{"$f":"Jurat!D$33","v":"00:00:00"},"2017-09-30","MLR","Quarter","Region 3",{"$f":"IFERROR(('MMA Rev-Exp Region 3'!$Z$87-'MMA Rev-Exp Region 3'!$Z$76)/('MMA Rev-Exp Region 3'!$Z$17-'MMA Rev-Exp Region 3'!$Z$15), 0)","v":{"v":0,"d":"0.0%"}},{"$f":"IFERROR(('MMA Rev-Exp Region 3'!$AA$87-'MMA Rev-Exp Region 3'!$AA$76)/('MMA Rev-Exp Region 3'!$AA$17-'MMA Rev-Exp Region 3'!$AA$15), 0)","v":{"v":0,"d":"0.0%"}},{"$f":"IFERROR(('MMA Rev-Exp Region 3'!$AB$87-'MMA Rev-Exp Region 3'!$AB$76)/('MMA Rev-Exp Region 3'!$AB$17-'MMA Rev-Exp Region 3'!$AB$15), 0)","v":{"v":0,"d":"0.0%"}},{"$f":"IFERROR(('MMA Rev-Exp Region 3'!$AC$87-'MMA Rev-Exp Region 3'!$AC$76)/('MMA Rev-Exp Region 3'!$AC$17-'MMA Rev-Exp Region 3'!$AC$15), 0)","v":{"v":0,"d":"0.0%"}},{"$f":"IFERROR(('MMA Rev-Exp Region 3'!$AD$87-'MMA Rev-Exp Region 3'!$AD$76)/('MMA Rev-Exp Region 3'!$AD$17-'MMA Rev-Exp Region 3'!$AD$15), 0)","v":{"v":0,"d":"0.0%"}},{"$f":"IFERROR(('MMA Rev-Exp Region 3'!$AE$87-'MMA Rev-Exp Region 3'!$AE$76)/('MMA Rev-Exp Region 3'!$AE$17-'MMA Rev-Exp Region 3'!$AE$15), 0)","v":{"v":0,"d":"0.0%"}},{"$f":"IFERROR(('MMA Rev-Exp Region 3'!$AF$87-'MMA Rev-Exp Region 3'!$AF$76)/('MMA Rev-Exp Region 3'!$AF$17-'MMA Rev-Exp Region 3'!$AF$15), 0)","v":{"v":0,"d":"0.0%"}},{"$f":"IFERROR(('MMA Rev-Exp Region 3'!$AG$87-'MMA Rev-Exp Region 3'!$AG$76)/('MMA Rev-Exp Region 3'!$AG$17-'MMA Rev-Exp Region 3'!$AG$15), 0)","v":{"v":0,"d":"0.0%"}},{"$f":"IFERROR(('MMA Rev-Exp Region 3'!$AH$87-'MMA Rev-Exp Region 3'!$AH$76)/('MMA Rev-Exp Region 3'!$AH$17-'MMA Rev-Exp Region 3'!$AH$15), 0)","v":{"v":0,"d":"0.0%"}},{"$f":"IFERROR(('MMA Rev-Exp Region 3'!$AI$87-'MMA Rev-Exp Region 3'!$AI$76)/('MMA Rev-Exp Region 3'!$AI$17-'MMA Rev-Exp Region 3'!$AI$15), 0)","v":{"v":0,"d":"0.0%"}},{"$f":"IFERROR(('MMA Rev-Exp Region 3'!$AJ$87-'MMA Rev-Exp Region 3'!$AJ$76)/('MMA Rev-Exp Region 3'!$AJ$17-'MMA Rev-Exp Region 3'!$AJ$15), 0)","v":{"v":0,"d":"0.0%"}}]
["MMA",null,null,{"$f":"Jurat!I$1","v":0},{"$f":"Jurat!D$33","v":"00:00:00"},"2017-12-31","MLR","Quarter","Region 3",{"$f":"IFERROR(('MMA Rev-Exp Region 3'!$AK$87-'MMA Rev-Exp Region 3'!$AK$76)/('MMA Rev-Exp Region 3'!$AK$17-'MMA Rev-Exp Region 3'!$AK$15), 0)","v":{"v":0,"d":"0.0%"}},{"$f":"IFERROR(('MMA Rev-Exp Region 3'!$AL$87-'MMA Rev-Exp Region 3'!$AL$76)/('MMA Rev-Exp Region 3'!$AL$17-'MMA Rev-Exp Region 3'!$AL$15), 0)","v":{"v":0,"d":"0.0%"}},{"$f":"IFERROR(('MMA Rev-Exp Region 3'!$AM$87-'MMA Rev-Exp Region 3'!$AM$76)/('MMA Rev-Exp Region 3'!$AM$17-'MMA Rev-Exp Region 3'!$AM$15), 0)","v":{"v":0,"d":"0.0%"}},{"$f":"IFERROR(('MMA Rev-Exp Region 3'!$AN$87-'MMA Rev-Exp Region 3'!$AN$76)/('MMA Rev-Exp Region 3'!$AN$17-'MMA Rev-Exp Region 3'!$AN$15), 0)","v":{"v":0,"d":"0.0%"}},{"$f":"IFERROR(('MMA Rev-Exp Region 3'!$AO$87-'MMA Rev-Exp Region 3'!$AO$76)/('MMA Rev-Exp Region 3'!$AO$17-'MMA Rev-Exp Region 3'!$AO$15), 0)","v":{"v":0,"d":"0.0%"}},{"$f":"IFERROR(('MMA Rev-Exp Region 3'!$AP$87-'MMA Rev-Exp Region 3'!$AP$76)/('MMA Rev-Exp Region 3'!$AP$17-'MMA Rev-Exp Region 3'!$AP$15), 0)","v":{"v":0,"d":"0.0%"}},{"$f":"IFERROR(('MMA Rev-Exp Region 3'!$AQ$87-'MMA Rev-Exp Region 3'!$AQ$76)/('MMA Rev-Exp Region 3'!$AQ$17-'MMA Rev-Exp Region 3'!$AQ$15), 0)","v":{"v":0,"d":"0.0%"}},{"$f":"IFERROR(('MMA Rev-Exp Region 3'!$AR$87-'MMA Rev-Exp Region 3'!$AR$76)/('MMA Rev-Exp Region 3'!$AR$17-'MMA Rev-Exp Region 3'!$AR$15), 0)","v":{"v":0,"d":"0.0%"}},{"$f":"IFERROR(('MMA Rev-Exp Region 3'!$AS$87-'MMA Rev-Exp Region 3'!$AS$76)/('MMA Rev-Exp Region 3'!$AS$17-'MMA Rev-Exp Region 3'!$AS$15), 0)","v":{"v":0,"d":"0.0%"}},{"$f":"IFERROR(('MMA Rev-Exp Region 3'!$AT$87-'MMA Rev-Exp Region 3'!$AT$76)/('MMA Rev-Exp Region 3'!$AT$17-'MMA Rev-Exp Region 3'!$AT$15), 0)","v":{"v":0,"d":"0.0%"}},{"$f":"IFERROR(('MMA Rev-Exp Region 3'!$AU$87-'MMA Rev-Exp Region 3'!$AU$76)/('MMA Rev-Exp Region 3'!$AU$17-'MMA Rev-Exp Region 3'!$AU$15), 0)","v":{"v":0,"d":"0.0%"}}]
["MMA",null,null,{"$f":"Jurat!I$1","v":0},{"$f":"Jurat!D$33","v":"00:00:00"},{"$f":"E51","v":"00:00:00"},"MLR","YTD","Region 3",{"$f":"IFERROR(('MMA Rev-Exp Region 3'!$AW$87-'MMA Rev-Exp Region 3'!$AW$76)/('MMA Rev-Exp Region 3'!$AW$17-'MMA Rev-Exp Region 3'!$AW$15), 0)","v":{"v":0,"d":"0.0%"}},{"$f":"IFERROR(('MMA Rev-Exp Region 3'!$AX$87-'MMA Rev-Exp Region 3'!$AX$76)/('MMA Rev-Exp Region 3'!$AX$17-'MMA Rev-Exp Region 3'!$AX$15), 0)","v":{"v":0,"d":"0.0%"}},{"$f":"IFERROR(('MMA Rev-Exp Region 3'!$AY$87-'MMA Rev-Exp Region 3'!$AY$76)/('MMA Rev-Exp Region 3'!$AY$17-'MMA Rev-Exp Region 3'!$AY$15), 0)","v":{"v":0,"d":"0.0%"}},{"$f":"IFERROR(('MMA Rev-Exp Region 3'!$AZ$87-'MMA Rev-Exp Region 3'!$AZ$76)/('MMA Rev-Exp Region 3'!$AZ$17-'MMA Rev-Exp Region 3'!$AZ$15), 0)","v":{"v":0,"d":"0.0%"}},{"$f":"IFERROR(('MMA Rev-Exp Region 3'!$BA$87-'MMA Rev-Exp Region 3'!$BA$76)/('MMA Rev-Exp Region 3'!$BA$17-'MMA Rev-Exp Region 3'!$BA$15), 0)","v":{"v":0,"d":"0.0%"}},{"$f":"IFERROR(('MMA Rev-Exp Region 3'!$BB$87-'MMA Rev-Exp Region 3'!$BB$76)/('MMA Rev-Exp Region 3'!$BB$17-'MMA Rev-Exp Region 3'!$BB$15), 0)","v":{"v":0,"d":"0.0%"}},{"$f":"IFERROR(('MMA Rev-Exp Region 3'!$BC$87-'MMA Rev-Exp Region 3'!$BC$76)/('MMA Rev-Exp Region 3'!$BC$17-'MMA Rev-Exp Region 3'!$BC$15), 0)","v":{"v":0,"d":"0.0%"}},{"$f":"IFERROR(('MMA Rev-Exp Region 3'!$BD$87-'MMA Rev-Exp Region 3'!$BD$76)/('MMA Rev-Exp Region 3'!$BD$17-'MMA Rev-Exp Region 3'!$BD$15), 0)","v":{"v":0,"d":"0.0%"}},{"$f":"IFERROR(('MMA Rev-Exp Region 3'!$BE$87-'MMA Rev-Exp Region 3'!$BE$76)/('MMA Rev-Exp Region 3'!$BE$17-'MMA Rev-Exp Region 3'!$BE$15), 0)","v":{"v":0,"d":"0.0%"}},{"$f":"IFERROR(('MMA Rev-Exp Region 3'!$BF$87-'MMA Rev-Exp Region 3'!$BF$76)/('MMA Rev-Exp Region 3'!$BF$17-'MMA Rev-Exp Region 3'!$BF$15), 0)","v":{"v":0,"d":"0.0%"}},{"$f":"IFERROR(('MMA Rev-Exp Region 3'!$BG$87-'MMA Rev-Exp Region 3'!$BG$76)/('MMA Rev-Exp Region 3'!$BG$17-'MMA Rev-Exp Region 3'!$BG$15), 0)","v":{"v":0,"d":"0.0%"}}]
["MMA",null,null,{"$f":"Jurat!I$1","v":0},{"$f":"Jurat!D$33","v":"00:00:00"},"2017-03-31","Admin","Quarter","Region 3",{"$f":"IFERROR('MMA Rev-Exp Region 3'!$D$96/('MMA Rev-Exp Region 3'!$D$17-'MMA Rev-Exp Region 3'!$D$15), 0)","v":{"v":0,"d":"0.0%"}}]
["MMA",null,null,{"$f":"Jurat!I$1","v":0},{"$f":"Jurat!D$33","v":"00:00:00"},"2017-06-30","Admin","Quarter","Region 3",{"$f":"IFERROR('MMA Rev-Exp Region 3'!$O$96/('MMA Rev-Exp Region 3'!$O$17-'MMA Rev-Exp Region 3'!$O$15), 0)","v":{"v":0,"d":"0.0%"}}]
["MMA",null,null,{"$f":"Jurat!I$1","v":0},{"$f":"Jurat!D$33","v":"00:00:00"},"2017-09-30","Admin","Quarter","Region 3",{"$f":"IFERROR('MMA Rev-Exp Region 3'!$Z$96/('MMA Rev-Exp Region 3'!$Z$17-'MMA Rev-Exp Region 3'!$Z$15), 0)","v":{"v":0,"d":"0.0%"}}]
["MMA",null,null,{"$f":"Jurat!I$1","v":0},{"$f":"Jurat!D$33","v":"00:00:00"},"2017-12-31","Admin","Quarter","Region 3",{"$f":"IFERROR('MMA Rev-Exp Region 3'!$AK$96/('MMA Rev-Exp Region 3'!$AK$17-'MMA Rev-Exp Region 3'!$AK$15), 0)","v":{"v":0,"d":"0.0%"}}]
["MMA",null,null,{"$f":"Jurat!I$1","v":0},{"$f":"Jurat!D$33","v":"00:00:00"},{"$f":"E56","v":"00:00:00"},"Admin","YTD","Region 3",{"$f":"IFERROR('MMA Rev-Exp Region 3'!$AW$96/('MMA Rev-Exp Region 3'!$AW$17-'MMA Rev-Exp Region 3'!$AW$15), 0)","v":{"v":0,"d":"0.0%"}}]
["MMA",null,null,{"$f":"Jurat!I$1","v":0},{"$f":"Jurat!D$33","v":"00:00:00"},"2017-03-31","Margin","Quarter","Region 3",{"$f":"IFERROR(('MMA Rev-Exp Region 3'!$D$105-'MMA Rev-Exp Region 3'!$D$15+'MMA Rev-Exp Region 3'!$D$99)/('MMA Rev-Exp Region 3'!$D$17-'MMA Rev-Exp Region 3'!$D$15), 0)","v":{"v":0,"d":"0.0%"}}]
["MMA",null,null,{"$f":"Jurat!I$1","v":0},{"$f":"Jurat!D$33","v":"00:00:00"},"2017-06-30","Margin","Quarter","Region 3",{"$f":"IFERROR(('MMA Rev-Exp Region 3'!$O$105-'MMA Rev-Exp Region 3'!$O$15+'MMA Rev-Exp Region 3'!$O$99)/('MMA Rev-Exp Region 3'!$O$17-'MMA Rev-Exp Region 3'!$O$15), 0)","v":{"v":0,"d":"0.0%"}}]
["MMA",null,null,{"$f":"Jurat!I$1","v":0},{"$f":"Jurat!D$33","v":"00:00:00"},"2017-09-30","Margin","Quarter","Region 3",{"$f":"IFERROR(('MMA Rev-Exp Region 3'!$Z$105-'MMA Rev-Exp Region 3'!$Z$15+'MMA Rev-Exp Region 3'!$Z$99)/('MMA Rev-Exp Region 3'!$Z$17-'MMA Rev-Exp Region 3'!$Z$15), 0)","v":{"v":0,"d":"0.0%"}}]
["MMA",null,null,{"$f":"Jurat!I$1","v":0},{"$f":"Jurat!D$33","v":"00:00:00"},"2017-12-31","Margin","Quarter","Region 3",{"$f":"IFERROR(('MMA Rev-Exp Region 3'!$AK$105-'MMA Rev-Exp Region 3'!$AK$15+'MMA Rev-Exp Region 3'!$AK$99)/('MMA Rev-Exp Region 3'!$AK$17-'MMA Rev-Exp Region 3'!$AK$15), 0)","v":{"v":0,"d":"0.0%"}}]
["MMA",null,null,{"$f":"Jurat!I$1","v":0},{"$f":"Jurat!D$33","v":"00:00:00"},{"$f":"E61","v":"00:00:00"},"Margin","YTD","Region 3",{"$f":"IFERROR(('MMA Rev-Exp Region 3'!$AW$105-'MMA Rev-Exp Region 3'!$AW$15+'MMA Rev-Exp Region 3'!$AW$99)/('MMA Rev-Exp Region 3'!$AW$17-'MMA Rev-Exp Region 3'!$AW$15), 0)","v":{"v":0,"d":"0.0%"}}]
["MMA",null,null,{"$f":"Jurat!I$1","v":0},{"$f":"Jurat!D$33","v":"00:00:00"},"2017-03-31","MLR","Quarter","Region 4",{"$f":"IFERROR(('MMA Rev-Exp Region 4'!D$87-'MMA Rev-Exp Region 4'!D$76)/('MMA Rev-Exp Region 4'!D$17-'MMA Rev-Exp Region 4'!D$15), 0)","v":{"v":0,"d":"0.0%"}},{"$f":"IFERROR(('MMA Rev-Exp Region 4'!E$87-'MMA Rev-Exp Region 4'!E$76)/('MMA Rev-Exp Region 4'!E$17-'MMA Rev-Exp Region 4'!E$15), 0)","v":{"v":0,"d":"0.0%"}},{"$f":"IFERROR(('MMA Rev-Exp Region 4'!F$87-'MMA Rev-Exp Region 4'!F$76)/('MMA Rev-Exp Region 4'!F$17-'MMA Rev-Exp Region 4'!F$15), 0)","v":{"v":0,"d":"0.0%"}},{"$f":"IFERROR(('MMA Rev-Exp Region 4'!G$87-'MMA Rev-Exp Region 4'!G$76)/('MMA Rev-Exp Region 4'!G$17-'MMA Rev-Exp Region 4'!G$15), 0)","v":{"v":0,"d":"0.0%"}},{"$f":"IFERROR(('MMA Rev-Exp Region 4'!H$87-'MMA Rev-Exp Region 4'!H$76)/('MMA Rev-Exp Region 4'!H$17-'MMA Rev-Exp Region 4'!H$15), 0)","v":{"v":0,"d":"0.0%"}},{"$f":"IFERROR(('MMA Rev-Exp Region 4'!I$87-'MMA Rev-Exp Region 4'!I$76)/('MMA Rev-Exp Region 4'!I$17-'MMA Rev-Exp Region 4'!I$15), 0)","v":{"v":0,"d":"0.0%"}},{"$f":"IFERROR(('MMA Rev-Exp Region 4'!J$87-'MMA Rev-Exp Region 4'!J$76)/('MMA Rev-Exp Region 4'!J$17-'MMA Rev-Exp Region 4'!J$15), 0)","v":{"v":0,"d":"0.0%"}},{"$f":"IFERROR(('MMA Rev-Exp Region 4'!K$87-'MMA Rev-Exp Region 4'!K$76)/('MMA Rev-Exp Region 4'!K$17-'MMA Rev-Exp Region 4'!K$15), 0)","v":{"v":0,"d":"0.0%"}},{"$f":"IFERROR(('MMA Rev-Exp Region 4'!L$87-'MMA Rev-Exp Region 4'!L$76)/('MMA Rev-Exp Region 4'!L$17-'MMA Rev-Exp Region 4'!L$15), 0)","v":{"v":0,"d":"0.0%"}},{"$f":"IFERROR(('MMA Rev-Exp Region 4'!M$87-'MMA Rev-Exp Region 4'!M$76)/('MMA Rev-Exp Region 4'!M$17-'MMA Rev-Exp Region 4'!M$15), 0)","v":{"v":0,"d":"0.0%"}},{"$f":"IFERROR(('MMA Rev-Exp Region 4'!N$87-'MMA Rev-Exp Region 4'!N$76)/('MMA Rev-Exp Region 4'!N$17-'MMA Rev-Exp Region 4'!N$15), 0)","v":{"v":0,"d":"0.0%"}}]
["MMA",null,null,{"$f":"Jurat!I$1","v":0},{"$f":"Jurat!D$33","v":"00:00:00"},"2017-06-30","MLR","Quarter","Region 4",{"$f":"IFERROR(('MMA Rev-Exp Region 4'!O$87-'MMA Rev-Exp Region 4'!O$76)/('MMA Rev-Exp Region 4'!O$17-'MMA Rev-Exp Region 4'!O$15), 0)","v":{"v":0,"d":"0.0%"}},{"$f":"IFERROR(('MMA Rev-Exp Region 4'!$P$87-'MMA Rev-Exp Region 4'!$P$76)/('MMA Rev-Exp Region 4'!$P$17-'MMA Rev-Exp Region 4'!$P$15), 0)","v":{"v":0,"d":"0.0%"}},{"$f":"IFERROR(('MMA Rev-Exp Region 4'!$Q$87-'MMA Rev-Exp Region 4'!$Q$76)/('MMA Rev-Exp Region 4'!$Q$17-'MMA Rev-Exp Region 4'!$Q$15), 0)","v":{"v":0,"d":"0.0%"}},{"$f":"IFERROR(('MMA Rev-Exp Region 4'!$R$87-'MMA Rev-Exp Region 4'!$R$76)/('MMA Rev-Exp Region 4'!$R$17-'MMA Rev-Exp Region 4'!$R$15), 0)","v":{"v":0,"d":"0.0%"}},{"$f":"IFERROR(('MMA Rev-Exp Region 4'!$S$87-'MMA Rev-Exp Region 4'!$S$76)/('MMA Rev-Exp Region 4'!$S$17-'MMA Rev-Exp Region 4'!$S$15), 0)","v":{"v":0,"d":"0.0%"}},{"$f":"IFERROR(('MMA Rev-Exp Region 4'!$T$87-'MMA Rev-Exp Region 4'!$T$76)/('MMA Rev-Exp Region 4'!$T$17-'MMA Rev-Exp Region 4'!$T$15), 0)","v":{"v":0,"d":"0.0%"}},{"$f":"IFERROR(('MMA Rev-Exp Region 4'!$U$87-'MMA Rev-Exp Region 4'!$U$76)/('MMA Rev-Exp Region 4'!$U$17-'MMA Rev-Exp Region 4'!$U$15), 0)","v":{"v":0,"d":"0.0%"}},{"$f":"IFERROR(('MMA Rev-Exp Region 4'!$V$87-'MMA Rev-Exp Region 4'!$V$76)/('MMA Rev-Exp Region 4'!$V$17-'MMA Rev-Exp Region 4'!$V$15), 0)","v":{"v":0,"d":"0.0%"}},{"$f":"IFERROR(('MMA Rev-Exp Region 4'!$W$87-'MMA Rev-Exp Region 4'!$W$76)/('MMA Rev-Exp Region 4'!$W$17-'MMA Rev-Exp Region 4'!$W$15), 0)","v":{"v":0,"d":"0.0%"}},{"$f":"IFERROR(('MMA Rev-Exp Region 4'!$X$87-'MMA Rev-Exp Region 4'!$X$76)/('MMA Rev-Exp Region 4'!$X$17-'MMA Rev-Exp Region 4'!$X$15), 0)","v":{"v":0,"d":"0.0%"}},{"$f":"IFERROR(('MMA Rev-Exp Region 4'!$Y$87-'MMA Rev-Exp Region 4'!$Y$76)/('MMA Rev-Exp Region 4'!$Y$17-'MMA Rev-Exp Region 4'!$Y$15), 0)","v":{"v":0,"d":"0.0%"}}]
["MMA",null,null,{"$f":"Jurat!I$1","v":0},{"$f":"Jurat!D$33","v":"00:00:00"},"2017-09-30","MLR","Quarter","Region 4",{"$f":"IFERROR(('MMA Rev-Exp Region 4'!$Z$87-'MMA Rev-Exp Region 4'!$Z$76)/('MMA Rev-Exp Region 4'!$Z$17-'MMA Rev-Exp Region 4'!$Z$15), 0)","v":{"v":0,"d":"0.0%"}},{"$f":"IFERROR(('MMA Rev-Exp Region 4'!$AA$87-'MMA Rev-Exp Region 4'!$AA$76)/('MMA Rev-Exp Region 4'!$AA$17-'MMA Rev-Exp Region 4'!$AA$15), 0)","v":{"v":0,"d":"0.0%"}},{"$f":"IFERROR(('MMA Rev-Exp Region 4'!$AB$87-'MMA Rev-Exp Region 4'!$AB$76)/('MMA Rev-Exp Region 4'!$AB$17-'MMA Rev-Exp Region 4'!$AB$15), 0)","v":{"v":0,"d":"0.0%"}},{"$f":"IFERROR(('MMA Rev-Exp Region 4'!$AC$87-'MMA Rev-Exp Region 4'!$AC$76)/('MMA Rev-Exp Region 4'!$AC$17-'MMA Rev-Exp Region 4'!$AC$15), 0)","v":{"v":0,"d":"0.0%"}},{"$f":"IFERROR(('MMA Rev-Exp Region 4'!$AD$87-'MMA Rev-Exp Region 4'!$AD$76)/('MMA Rev-Exp Region 4'!$AD$17-'MMA Rev-Exp Region 4'!$AD$15), 0)","v":{"v":0,"d":"0.0%"}},{"$f":"IFERROR(('MMA Rev-Exp Region 4'!$AE$87-'MMA Rev-Exp Region 4'!$AE$76)/('MMA Rev-Exp Region 4'!$AE$17-'MMA Rev-Exp Region 4'!$AE$15), 0)","v":{"v":0,"d":"0.0%"}},{"$f":"IFERROR(('MMA Rev-Exp Region 4'!$AF$87-'MMA Rev-Exp Region 4'!$AF$76)/('MMA Rev-Exp Region 4'!$AF$17-'MMA Rev-Exp Region 4'!$AF$15), 0)","v":{"v":0,"d":"0.0%"}},{"$f":"IFERROR(('MMA Rev-Exp Region 4'!$AG$87-'MMA Rev-Exp Region 4'!$AG$76)/('MMA Rev-Exp Region 4'!$AG$17-'MMA Rev-Exp Region 4'!$AG$15), 0)","v":{"v":0,"d":"0.0%"}},{"$f":"IFERROR(('MMA Rev-Exp Region 4'!$AH$87-'MMA Rev-Exp Region 4'!$AH$76)/('MMA Rev-Exp Region 4'!$AH$17-'MMA Rev-Exp Region 4'!$AH$15), 0)","v":{"v":0,"d":"0.0%"}},{"$f":"IFERROR(('MMA Rev-Exp Region 4'!$AI$87-'MMA Rev-Exp Region 4'!$AI$76)/('MMA Rev-Exp Region 4'!$AI$17-'MMA Rev-Exp Region 4'!$AI$15), 0)","v":{"v":0,"d":"0.0%"}},{"$f":"IFERROR(('MMA Rev-Exp Region 4'!$AJ$87-'MMA Rev-Exp Region 4'!$AJ$76)/('MMA Rev-Exp Region 4'!$AJ$17-'MMA Rev-Exp Region 4'!$AJ$15), 0)","v":{"v":0,"d":"0.0%"}}]
["MMA",null,null,{"$f":"Jurat!I$1","v":0},{"$f":"Jurat!D$33","v":"00:00:00"},"2017-12-31","MLR","Quarter","Region 4",{"$f":"IFERROR(('MMA Rev-Exp Region 4'!$AK$87-'MMA Rev-Exp Region 4'!$AK$76)/('MMA Rev-Exp Region 4'!$AK$17-'MMA Rev-Exp Region 4'!$AK$15), 0)","v":{"v":0,"d":"0.0%"}},{"$f":"IFERROR(('MMA Rev-Exp Region 4'!$AL$87-'MMA Rev-Exp Region 4'!$AL$76)/('MMA Rev-Exp Region 4'!$AL$17-'MMA Rev-Exp Region 4'!$AL$15), 0)","v":{"v":0,"d":"0.0%"}},{"$f":"IFERROR(('MMA Rev-Exp Region 4'!$AM$87-'MMA Rev-Exp Region 4'!$AM$76)/('MMA Rev-Exp Region 4'!$AM$17-'MMA Rev-Exp Region 4'!$AM$15), 0)","v":{"v":0,"d":"0.0%"}},{"$f":"IFERROR(('MMA Rev-Exp Region 4'!$AN$87-'MMA Rev-Exp Region 4'!$AN$76)/('MMA Rev-Exp Region 4'!$AN$17-'MMA Rev-Exp Region 4'!$AN$15), 0)","v":{"v":0,"d":"0.0%"}},{"$f":"IFERROR(('MMA Rev-Exp Region 4'!$AO$87-'MMA Rev-Exp Region 4'!$AO$76)/('MMA Rev-Exp Region 4'!$AO$17-'MMA Rev-Exp Region 4'!$AO$15), 0)","v":{"v":0,"d":"0.0%"}},{"$f":"IFERROR(('MMA Rev-Exp Region 4'!$AP$87-'MMA Rev-Exp Region 4'!$AP$76)/('MMA Rev-Exp Region 4'!$AP$17-'MMA Rev-Exp Region 4'!$AP$15), 0)","v":{"v":0,"d":"0.0%"}},{"$f":"IFERROR(('MMA Rev-Exp Region 4'!$AQ$87-'MMA Rev-Exp Region 4'!$AQ$76)/('MMA Rev-Exp Region 4'!$AQ$17-'MMA Rev-Exp Region 4'!$AQ$15), 0)","v":{"v":0,"d":"0.0%"}},{"$f":"IFERROR(('MMA Rev-Exp Region 4'!$AR$87-'MMA Rev-Exp Region 4'!$AR$76)/('MMA Rev-Exp Region 4'!$AR$17-'MMA Rev-Exp Region 4'!$AR$15), 0)","v":{"v":0,"d":"0.0%"}},{"$f":"IFERROR(('MMA Rev-Exp Region 4'!$AS$87-'MMA Rev-Exp Region 4'!$AS$76)/('MMA Rev-Exp Region 4'!$AS$17-'MMA Rev-Exp Region 4'!$AS$15), 0)","v":{"v":0,"d":"0.0%"}},{"$f":"IFERROR(('MMA Rev-Exp Region 4'!$AT$87-'MMA Rev-Exp Region 4'!$AT$76)/('MMA Rev-Exp Region 4'!$AT$17-'MMA Rev-Exp Region 4'!$AT$15), 0)","v":{"v":0,"d":"0.0%"}},{"$f":"IFERROR(('MMA Rev-Exp Region 4'!$AU$87-'MMA Rev-Exp Region 4'!$AU$76)/('MMA Rev-Exp Region 4'!$AU$17-'MMA Rev-Exp Region 4'!$AU$15), 0)","v":{"v":0,"d":"0.0%"}}]
["MMA",null,null,{"$f":"Jurat!I$1","v":0},{"$f":"Jurat!D$33","v":"00:00:00"},{"$f":"E66","v":"00:00:00"},"MLR","YTD","Region 4",{"$f":"IFERROR(('MMA Rev-Exp Region 4'!$AW$87-'MMA Rev-Exp Region 4'!$AW$76)/('MMA Rev-Exp Region 4'!$AW$17-'MMA Rev-Exp Region 4'!$AW$15), 0)","v":{"v":0,"d":"0.0%"}},{"$f":"IFERROR(('MMA Rev-Exp Region 4'!$AX$87-'MMA Rev-Exp Region 4'!$AX$76)/('MMA Rev-Exp Region 4'!$AX$17-'MMA Rev-Exp Region 4'!$AX$15), 0)","v":{"v":0,"d":"0.0%"}},{"$f":"IFERROR(('MMA Rev-Exp Region 4'!$AY$87-'MMA Rev-Exp Region 4'!$AY$76)/('MMA Rev-Exp Region 4'!$AY$17-'MMA Rev-Exp Region 4'!$AY$15), 0)","v":{"v":0,"d":"0.0%"}},{"$f":"IFERROR(('MMA Rev-Exp Region 4'!$AZ$87-'MMA Rev-Exp Region 4'!$AZ$76)/('MMA Rev-Exp Region 4'!$AZ$17-'MMA Rev-Exp Region 4'!$AZ$15), 0)","v":{"v":0,"d":"0.0%"}},{"$f":"IFERROR(('MMA Rev-Exp Region 4'!$BA$87-'MMA Rev-Exp Region 4'!$BA$76)/('MMA Rev-Exp Region 4'!$BA$17-'MMA Rev-Exp Region 4'!$BA$15), 0)","v":{"v":0,"d":"0.0%"}},{"$f":"IFERROR(('MMA Rev-Exp Region 4'!$BB$87-'MMA Rev-Exp Region 4'!$BB$76)/('MMA Rev-Exp Region 4'!$BB$17-'MMA Rev-Exp Region 4'!$BB$15), 0)","v":{"v":0,"d":"0.0%"}},{"$f":"IFERROR(('MMA Rev-Exp Region 4'!$BC$87-'MMA Rev-Exp Region 4'!$BC$76)/('MMA Rev-Exp Region 4'!$BC$17-'MMA Rev-Exp Region 4'!$BC$15), 0)","v":{"v":0,"d":"0.0%"}},{"$f":"IFERROR(('MMA Rev-Exp Region 4'!$BD$87-'MMA Rev-Exp Region 4'!$BD$76)/('MMA Rev-Exp Region 4'!$BD$17-'MMA Rev-Exp Region 4'!$BD$15), 0)","v":{"v":0,"d":"0.0%"}},{"$f":"IFERROR(('MMA Rev-Exp Region 4'!$BE$87-'MMA Rev-Exp Region 4'!$BE$76)/('MMA Rev-Exp Region 4'!$BE$17-'MMA Rev-Exp Region 4'!$BE$15), 0)","v":{"v":0,"d":"0.0%"}},{"$f":"IFERROR(('MMA Rev-Exp Region 4'!$BF$87-'MMA Rev-Exp Region 4'!$BF$76)/('MMA Rev-Exp Region 4'!$BF$17-'MMA Rev-Exp Region 4'!$BF$15), 0)","v":{"v":0,"d":"0.0%"}},{"$f":"IFERROR(('MMA Rev-Exp Region 4'!$BG$87-'MMA Rev-Exp Region 4'!$BG$76)/('MMA Rev-Exp Region 4'!$BG$17-'MMA Rev-Exp Region 4'!$BG$15), 0)","v":{"v":0,"d":"0.0%"}}]
["MMA",null,null,{"$f":"Jurat!I$1","v":0},{"$f":"Jurat!D$33","v":"00:00:00"},"2017-03-31","Admin","Quarter","Region 4",{"$f":"IFERROR('MMA Rev-Exp Region 4'!$D$96/('MMA Rev-Exp Region 4'!$D$17-'MMA Rev-Exp Region 4'!$D$15), 0)","v":{"v":0,"d":"0.0%"}}]
["MMA",null,null,{"$f":"Jurat!I$1","v":0},{"$f":"Jurat!D$33","v":"00:00:00"},"2017-06-30","Admin","Quarter","Region 4",{"$f":"IFERROR('MMA Rev-Exp Region 4'!$O$96/('MMA Rev-Exp Region 4'!$O$17-'MMA Rev-Exp Region 4'!$O$15), 0)","v":{"v":0,"d":"0.0%"}}]
["MMA",null,null,{"$f":"Jurat!I$1","v":0},{"$f":"Jurat!D$33","v":"00:00:00"},"2017-09-30","Admin","Quarter","Region 4",{"$f":"IFERROR('MMA Rev-Exp Region 4'!$Z$96/('MMA Rev-Exp Region 4'!$Z$17-'MMA Rev-Exp Region 4'!$Z$15), 0)","v":{"v":0,"d":"0.0%"}}]
["MMA",null,null,{"$f":"Jurat!I$1","v":0},{"$f":"Jurat!D$33","v":"00:00:00"},"2017-12-31","Admin","Quarter","Region 4",{"$f":"IFERROR('MMA Rev-Exp Region 4'!$AK$96/('MMA Rev-Exp Region 4'!$AK$17-'MMA Rev-Exp Region 4'!$AK$15), 0)","v":{"v":0,"d":"0.0%"}}]
["MMA",null,null,{"$f":"Jurat!I$1","v":0},{"$f":"Jurat!D$33","v":"00:00:00"},{"$f":"E71","v":"00:00:00"},"Admin","YTD","Region 4",{"$f":"IFERROR('MMA Rev-Exp Region 4'!$AW$96/('MMA Rev-Exp Region 4'!$AW$17-'MMA Rev-Exp Region 4'!$AW$15), 0)","v":{"v":0,"d":"0.0%"}}]
["MMA",null,null,{"$f":"Jurat!I$1","v":0},{"$f":"Jurat!D$33","v":"00:00:00"},"2017-03-31","Margin","Quarter","Region 4",{"$f":"IFERROR(('MMA Rev-Exp Region 4'!$D$105-'MMA Rev-Exp Region 4'!$D$15+'MMA Rev-Exp Region 4'!$D$99)/('MMA Rev-Exp Region 4'!$D$17-'MMA Rev-Exp Region 4'!$D$15), 0)","v":{"v":0,"d":"0.0%"}}]
["MMA",null,null,{"$f":"Jurat!I$1","v":0},{"$f":"Jurat!D$33","v":"00:00:00"},"2017-06-30","Margin","Quarter","Region 4",{"$f":"IFERROR(('MMA Rev-Exp Region 4'!$O$105-'MMA Rev-Exp Region 4'!$O$15+'MMA Rev-Exp Region 4'!$O$99)/('MMA Rev-Exp Region 4'!$O$17-'MMA Rev-Exp Region 4'!$O$15), 0)","v":{"v":0,"d":"0.0%"}}]
["MMA",null,null,{"$f":"Jurat!I$1","v":0},{"$f":"Jurat!D$33","v":"00:00:00"},"2017-09-30","Margin","Quarter","Region 4",{"$f":"IFERROR(('MMA Rev-Exp Region 4'!$Z$105-'MMA Rev-Exp Region 4'!$Z$15+'MMA Rev-Exp Region 4'!$Z$99)/('MMA Rev-Exp Region 4'!$Z$17-'MMA Rev-Exp Region 4'!$Z$15), 0)","v":{"v":0,"d":"0.0%"}}]
["MMA",null,null,{"$f":"Jurat!I$1","v":0},{"$f":"Jurat!D$33","v":"00:00:00"},"2017-12-31","Margin","Quarter","Region 4",{"$f":"IFERROR(('MMA Rev-Exp Region 4'!$AK$105-'MMA Rev-Exp Region 4'!$AK$15+'MMA Rev-Exp Region 4'!$AK$99)/('MMA Rev-Exp Region 4'!$AK$17-'MMA Rev-Exp Region 4'!$AK$15), 0)","v":{"v":0,"d":"0.0%"}}]
["MMA",null,null,{"$f":"Jurat!I$1","v":0},{"$f":"Jurat!D$33","v":"00:00:00"},{"$f":"E76","v":"00:00:00"},"Margin","YTD","Region 4",{"$f":"IFERROR(('MMA Rev-Exp Region 4'!$AW$105-'MMA Rev-Exp Region 4'!$AW$15+'MMA Rev-Exp Region 4'!$AW$99)/('MMA Rev-Exp Region 4'!$AW$17-'MMA Rev-Exp Region 4'!$AW$15), 0)","v":{"v":0,"d":"0.0%"}}]
["MMA",null,null,{"$f":"Jurat!I$1","v":0},{"$f":"Jurat!D$33","v":"00:00:00"},"2017-03-31","MLR","Quarter","Region 5",{"$f":"IFERROR(('MMA Rev-Exp Region 5'!D$87-'MMA Rev-Exp Region 5'!D$76)/('MMA Rev-Exp Region 5'!D$17-'MMA Rev-Exp Region 5'!D$15), 0)","v":{"v":0,"d":"0.0%"}},{"$f":"IFERROR(('MMA Rev-Exp Region 5'!E$87-'MMA Rev-Exp Region 5'!E$76)/('MMA Rev-Exp Region 5'!E$17-'MMA Rev-Exp Region 5'!E$15), 0)","v":{"v":0,"d":"0.0%"}},{"$f":"IFERROR(('MMA Rev-Exp Region 5'!F$87-'MMA Rev-Exp Region 5'!F$76)/('MMA Rev-Exp Region 5'!F$17-'MMA Rev-Exp Region 5'!F$15), 0)","v":{"v":0,"d":"0.0%"}},{"$f":"IFERROR(('MMA Rev-Exp Region 5'!G$87-'MMA Rev-Exp Region 5'!G$76)/('MMA Rev-Exp Region 5'!G$17-'MMA Rev-Exp Region 5'!G$15), 0)","v":{"v":0,"d":"0.0%"}},{"$f":"IFERROR(('MMA Rev-Exp Region 5'!H$87-'MMA Rev-Exp Region 5'!H$76)/('MMA Rev-Exp Region 5'!H$17-'MMA Rev-Exp Region 5'!H$15), 0)","v":{"v":0,"d":"0.0%"}},{"$f":"IFERROR(('MMA Rev-Exp Region 5'!I$87-'MMA Rev-Exp Region 5'!I$76)/('MMA Rev-Exp Region 5'!I$17-'MMA Rev-Exp Region 5'!I$15), 0)","v":{"v":0,"d":"0.0%"}},{"$f":"IFERROR(('MMA Rev-Exp Region 5'!J$87-'MMA Rev-Exp Region 5'!J$76)/('MMA Rev-Exp Region 5'!J$17-'MMA Rev-Exp Region 5'!J$15), 0)","v":{"v":0,"d":"0.0%"}},{"$f":"IFERROR(('MMA Rev-Exp Region 5'!K$87-'MMA Rev-Exp Region 5'!K$76)/('MMA Rev-Exp Region 5'!K$17-'MMA Rev-Exp Region 5'!K$15), 0)","v":{"v":0,"d":"0.0%"}},{"$f":"IFERROR(('MMA Rev-Exp Region 5'!L$87-'MMA Rev-Exp Region 5'!L$76)/('MMA Rev-Exp Region 5'!L$17-'MMA Rev-Exp Region 5'!L$15), 0)","v":{"v":0,"d":"0.0%"}},{"$f":"IFERROR(('MMA Rev-Exp Region 5'!M$87-'MMA Rev-Exp Region 5'!M$76)/('MMA Rev-Exp Region 5'!M$17-'MMA Rev-Exp Region 5'!M$15), 0)","v":{"v":0,"d":"0.0%"}},{"$f":"IFERROR(('MMA Rev-Exp Region 5'!N$87-'MMA Rev-Exp Region 5'!N$76)/('MMA Rev-Exp Region 5'!N$17-'MMA Rev-Exp Region 5'!N$15), 0)","v":{"v":0,"d":"0.0%"}}]
["MMA",null,null,{"$f":"Jurat!I$1","v":0},{"$f":"Jurat!D$33","v":"00:00:00"},"2017-06-30","MLR","Quarter","Region 5",{"$f":"IFERROR(('MMA Rev-Exp Region 5'!O$87-'MMA Rev-Exp Region 5'!O$76)/('MMA Rev-Exp Region 5'!O$17-'MMA Rev-Exp Region 5'!O$15), 0)","v":{"v":0,"d":"0.0%"}},{"$f":"IFERROR(('MMA Rev-Exp Region 5'!$P$87-'MMA Rev-Exp Region 5'!$P$76)/('MMA Rev-Exp Region 5'!$P$17-'MMA Rev-Exp Region 5'!$P$15), 0)","v":{"v":0,"d":"0.0%"}},{"$f":"IFERROR(('MMA Rev-Exp Region 5'!$Q$87-'MMA Rev-Exp Region 5'!$Q$76)/('MMA Rev-Exp Region 5'!$Q$17-'MMA Rev-Exp Region 5'!$Q$15), 0)","v":{"v":0,"d":"0.0%"}},{"$f":"IFERROR(('MMA Rev-Exp Region 5'!$R$87-'MMA Rev-Exp Region 5'!$R$76)/('MMA Rev-Exp Region 5'!$R$17-'MMA Rev-Exp Region 5'!$R$15), 0)","v":{"v":0,"d":"0.0%"}},{"$f":"IFERROR(('MMA Rev-Exp Region 5'!$S$87-'MMA Rev-Exp Region 5'!$S$76)/('MMA Rev-Exp Region 5'!$S$17-'MMA Rev-Exp Region 5'!$S$15), 0)","v":{"v":0,"d":"0.0%"}},{"$f":"IFERROR(('MMA Rev-Exp Region 5'!$T$87-'MMA Rev-Exp Region 5'!$T$76)/('MMA Rev-Exp Region 5'!$T$17-'MMA Rev-Exp Region 5'!$T$15), 0)","v":{"v":0,"d":"0.0%"}},{"$f":"IFERROR(('MMA Rev-Exp Region 5'!$U$87-'MMA Rev-Exp Region 5'!$U$76)/('MMA Rev-Exp Region 5'!$U$17-'MMA Rev-Exp Region 5'!$U$15), 0)","v":{"v":0,"d":"0.0%"}},{"$f":"IFERROR(('MMA Rev-Exp Region 5'!$V$87-'MMA Rev-Exp Region 5'!$V$76)/('MMA Rev-Exp Region 5'!$V$17-'MMA Rev-Exp Region 5'!$V$15), 0)","v":{"v":0,"d":"0.0%"}},{"$f":"IFERROR(('MMA Rev-Exp Region 5'!$W$87-'MMA Rev-Exp Region 5'!$W$76)/('MMA Rev-Exp Region 5'!$W$17-'MMA Rev-Exp Region 5'!$W$15), 0)","v":{"v":0,"d":"0.0%"}},{"$f":"IFERROR(('MMA Rev-Exp Region 5'!$X$87-'MMA Rev-Exp Region 5'!$X$76)/('MMA Rev-Exp Region 5'!$X$17-'MMA Rev-Exp Region 5'!$X$15), 0)","v":{"v":0,"d":"0.0%"}},{"$f":"IFERROR(('MMA Rev-Exp Region 5'!$Y$87-'MMA Rev-Exp Region 5'!$Y$76)/('MMA Rev-Exp Region 5'!$Y$17-'MMA Rev-Exp Region 5'!$Y$15), 0)","v":{"v":0,"d":"0.0%"}}]
["MMA",null,null,{"$f":"Jurat!I$1","v":0},{"$f":"Jurat!D$33","v":"00:00:00"},"2017-09-30","MLR","Quarter","Region 5",{"$f":"IFERROR(('MMA Rev-Exp Region 5'!$Z$87-'MMA Rev-Exp Region 5'!$Z$76)/('MMA Rev-Exp Region 5'!$Z$17-'MMA Rev-Exp Region 5'!$Z$15), 0)","v":{"v":0,"d":"0.0%"}},{"$f":"IFERROR(('MMA Rev-Exp Region 5'!$AA$87-'MMA Rev-Exp Region 5'!$AA$76)/('MMA Rev-Exp Region 5'!$AA$17-'MMA Rev-Exp Region 5'!$AA$15), 0)","v":{"v":0,"d":"0.0%"}},{"$f":"IFERROR(('MMA Rev-Exp Region 5'!$AB$87-'MMA Rev-Exp Region 5'!$AB$76)/('MMA Rev-Exp Region 5'!$AB$17-'MMA Rev-Exp Region 5'!$AB$15), 0)","v":{"v":0,"d":"0.0%"}},{"$f":"IFERROR(('MMA Rev-Exp Region 5'!$AC$87-'MMA Rev-Exp Region 5'!$AC$76)/('MMA Rev-Exp Region 5'!$AC$17-'MMA Rev-Exp Region 5'!$AC$15), 0)","v":{"v":0,"d":"0.0%"}},{"$f":"IFERROR(('MMA Rev-Exp Region 5'!$AD$87-'MMA Rev-Exp Region 5'!$AD$76)/('MMA Rev-Exp Region 5'!$AD$17-'MMA Rev-Exp Region 5'!$AD$15), 0)","v":{"v":0,"d":"0.0%"}},{"$f":"IFERROR(('MMA Rev-Exp Region 5'!$AE$87-'MMA Rev-Exp Region 5'!$AE$76)/('MMA Rev-Exp Region 5'!$AE$17-'MMA Rev-Exp Region 5'!$AE$15), 0)","v":{"v":0,"d":"0.0%"}},{"$f":"IFERROR(('MMA Rev-Exp Region 5'!$AF$87-'MMA Rev-Exp Region 5'!$AF$76)/('MMA Rev-Exp Region 5'!$AF$17-'MMA Rev-Exp Region 5'!$AF$15), 0)","v":{"v":0,"d":"0.0%"}},{"$f":"IFERROR(('MMA Rev-Exp Region 5'!$AG$87-'MMA Rev-Exp Region 5'!$AG$76)/('MMA Rev-Exp Region 5'!$AG$17-'MMA Rev-Exp Region 5'!$AG$15), 0)","v":{"v":0,"d":"0.0%"}},{"$f":"IFERROR(('MMA Rev-Exp Region 5'!$AH$87-'MMA Rev-Exp Region 5'!$AH$76)/('MMA Rev-Exp Region 5'!$AH$17-'MMA Rev-Exp Region 5'!$AH$15), 0)","v":{"v":0,"d":"0.0%"}},{"$f":"IFERROR(('MMA Rev-Exp Region 5'!$AI$87-'MMA Rev-Exp Region 5'!$AI$76)/('MMA Rev-Exp Region 5'!$AI$17-'MMA Rev-Exp Region 5'!$AI$15), 0)","v":{"v":0,"d":"0.0%"}},{"$f":"IFERROR(('MMA Rev-Exp Region 5'!$AJ$87-'MMA Rev-Exp Region 5'!$AJ$76)/('MMA Rev-Exp Region 5'!$AJ$17-'MMA Rev-Exp Region 5'!$AJ$15), 0)","v":{"v":0,"d":"0.0%"}}]
["MMA",null,null,{"$f":"Jurat!I$1","v":0},{"$f":"Jurat!D$33","v":"00:00:00"},"2017-12-31","MLR","Quarter","Region 5",{"$f":"IFERROR(('MMA Rev-Exp Region 5'!$AK$87-'MMA Rev-Exp Region 5'!$AK$76)/('MMA Rev-Exp Region 5'!$AK$17-'MMA Rev-Exp Region 5'!$AK$15), 0)","v":{"v":0,"d":"0.0%"}},{"$f":"IFERROR(('MMA Rev-Exp Region 5'!$AL$87-'MMA Rev-Exp Region 5'!$AL$76)/('MMA Rev-Exp Region 5'!$AL$17-'MMA Rev-Exp Region 5'!$AL$15), 0)","v":{"v":0,"d":"0.0%"}},{"$f":"IFERROR(('MMA Rev-Exp Region 5'!$AM$87-'MMA Rev-Exp Region 5'!$AM$76)/('MMA Rev-Exp Region 5'!$AM$17-'MMA Rev-Exp Region 5'!$AM$15), 0)","v":{"v":0,"d":"0.0%"}},{"$f":"IFERROR(('MMA Rev-Exp Region 5'!$AN$87-'MMA Rev-Exp Region 5'!$AN$76)/('MMA Rev-Exp Region 5'!$AN$17-'MMA Rev-Exp Region 5'!$AN$15), 0)","v":{"v":0,"d":"0.0%"}},{"$f":"IFERROR(('MMA Rev-Exp Region 5'!$AO$87-'MMA Rev-Exp Region 5'!$AO$76)/('MMA Rev-Exp Region 5'!$AO$17-'MMA Rev-Exp Region 5'!$AO$15), 0)","v":{"v":0,"d":"0.0%"}},{"$f":"IFERROR(('MMA Rev-Exp Region 5'!$AP$87-'MMA Rev-Exp Region 5'!$AP$76)/('MMA Rev-Exp Region 5'!$AP$17-'MMA Rev-Exp Region 5'!$AP$15), 0)","v":{"v":0,"d":"0.0%"}},{"$f":"IFERROR(('MMA Rev-Exp Region 5'!$AQ$87-'MMA Rev-Exp Region 5'!$AQ$76)/('MMA Rev-Exp Region 5'!$AQ$17-'MMA Rev-Exp Region 5'!$AQ$15), 0)","v":{"v":0,"d":"0.0%"}},{"$f":"IFERROR(('MMA Rev-Exp Region 5'!$AR$87-'MMA Rev-Exp Region 5'!$AR$76)/('MMA Rev-Exp Region 5'!$AR$17-'MMA Rev-Exp Region 5'!$AR$15), 0)","v":{"v":0,"d":"0.0%"}},{"$f":"IFERROR(('MMA Rev-Exp Region 5'!$AS$87-'MMA Rev-Exp Region 5'!$AS$76)/('MMA Rev-Exp Region 5'!$AS$17-'MMA Rev-Exp Region 5'!$AS$15), 0)","v":{"v":0,"d":"0.0%"}},{"$f":"IFERROR(('MMA Rev-Exp Region 5'!$AT$87-'MMA Rev-Exp Region 5'!$AT$76)/('MMA Rev-Exp Region 5'!$AT$17-'MMA Rev-Exp Region 5'!$AT$15), 0)","v":{"v":0,"d":"0.0%"}},{"$f":"IFERROR(('MMA Rev-Exp Region 5'!$AU$87-'MMA Rev-Exp Region 5'!$AU$76)/('MMA Rev-Exp Region 5'!$AU$17-'MMA Rev-Exp Region 5'!$AU$15), 0)","v":{"v":0,"d":"0.0%"}}]
["MMA",null,null,{"$f":"Jurat!I$1","v":0},{"$f":"Jurat!D$33","v":"00:00:00"},{"$f":"E81","v":"00:00:00"},"MLR","YTD","Region 5",{"$f":"IFERROR(('MMA Rev-Exp Region 5'!$AW$87-'MMA Rev-Exp Region 5'!$AW$76)/('MMA Rev-Exp Region 5'!$AW$17-'MMA Rev-Exp Region 5'!$AW$15), 0)","v":{"v":0,"d":"0.0%"}},{"$f":"IFERROR(('MMA Rev-Exp Region 5'!$AX$87-'MMA Rev-Exp Region 5'!$AX$76)/('MMA Rev-Exp Region 5'!$AX$17-'MMA Rev-Exp Region 5'!$AX$15), 0)","v":{"v":0,"d":"0.0%"}},{"$f":"IFERROR(('MMA Rev-Exp Region 5'!$AY$87-'MMA Rev-Exp Region 5'!$AY$76)/('MMA Rev-Exp Region 5'!$AY$17-'MMA Rev-Exp Region 5'!$AY$15), 0)","v":{"v":0,"d":"0.0%"}},{"$f":"IFERROR(('MMA Rev-Exp Region 5'!$AZ$87-'MMA Rev-Exp Region 5'!$AZ$76)/('MMA Rev-Exp Region 5'!$AZ$17-'MMA Rev-Exp Region 5'!$AZ$15), 0)","v":{"v":0,"d":"0.0%"}},{"$f":"IFERROR(('MMA Rev-Exp Region 5'!$BA$87-'MMA Rev-Exp Region 5'!$BA$76)/('MMA Rev-Exp Region 5'!$BA$17-'MMA Rev-Exp Region 5'!$BA$15), 0)","v":{"v":0,"d":"0.0%"}},{"$f":"IFERROR(('MMA Rev-Exp Region 5'!$BB$87-'MMA Rev-Exp Region 5'!$BB$76)/('MMA Rev-Exp Region 5'!$BB$17-'MMA Rev-Exp Region 5'!$BB$15), 0)","v":{"v":0,"d":"0.0%"}},{"$f":"IFERROR(('MMA Rev-Exp Region 5'!$BC$87-'MMA Rev-Exp Region 5'!$BC$76)/('MMA Rev-Exp Region 5'!$BC$17-'MMA Rev-Exp Region 5'!$BC$15), 0)","v":{"v":0,"d":"0.0%"}},{"$f":"IFERROR(('MMA Rev-Exp Region 5'!$BD$87-'MMA Rev-Exp Region 5'!$BD$76)/('MMA Rev-Exp Region 5'!$BD$17-'MMA Rev-Exp Region 5'!$BD$15), 0)","v":{"v":0,"d":"0.0%"}},{"$f":"IFERROR(('MMA Rev-Exp Region 5'!$BE$87-'MMA Rev-Exp Region 5'!$BE$76)/('MMA Rev-Exp Region 5'!$BE$17-'MMA Rev-Exp Region 5'!$BE$15), 0)","v":{"v":0,"d":"0.0%"}},{"$f":"IFERROR(('MMA Rev-Exp Region 5'!$BF$87-'MMA Rev-Exp Region 5'!$BF$76)/('MMA Rev-Exp Region 5'!$BF$17-'MMA Rev-Exp Region 5'!$BF$15), 0)","v":{"v":0,"d":"0.0%"}},{"$f":"IFERROR(('MMA Rev-Exp Region 5'!$BG$87-'MMA Rev-Exp Region 5'!$BG$76)/('MMA Rev-Exp Region 5'!$BG$17-'MMA Rev-Exp Region 5'!$BG$15), 0)","v":{"v":0,"d":"0.0%"}}]
["MMA",null,null,{"$f":"Jurat!I$1","v":0},{"$f":"Jurat!D$33","v":"00:00:00"},"2017-03-31","Admin","Quarter","Region 5",{"$f":"IFERROR('MMA Rev-Exp Region 5'!$D$96/('MMA Rev-Exp Region 5'!$D$17-'MMA Rev-Exp Region 5'!$D$15), 0)","v":{"v":0,"d":"0.0%"}}]
["MMA",null,null,{"$f":"Jurat!I$1","v":0},{"$f":"Jurat!D$33","v":"00:00:00"},"2017-06-30","Admin","Quarter","Region 5",{"$f":"IFERROR('MMA Rev-Exp Region 5'!$O$96/('MMA Rev-Exp Region 5'!$O$17-'MMA Rev-Exp Region 5'!$O$15), 0)","v":{"v":0,"d":"0.0%"}}]
["MMA",null,null,{"$f":"Jurat!I$1","v":0},{"$f":"Jurat!D$33","v":"00:00:00"},"2017-09-30","Admin","Quarter","Region 5",{"$f":"IFERROR('MMA Rev-Exp Region 5'!$Z$96/('MMA Rev-Exp Region 5'!$Z$17-'MMA Rev-Exp Region 5'!$Z$15), 0)","v":{"v":0,"d":"0.0%"}}]
["MMA",null,null,{"$f":"Jurat!I$1","v":0},{"$f":"Jurat!D$33","v":"00:00:00"},"2017-12-31","Admin","Quarter","Region 5",{"$f":"IFERROR('MMA Rev-Exp Region 5'!$AK$96/('MMA Rev-Exp Region 5'!$AK$17-'MMA Rev-Exp Region 5'!$AK$15), 0)","v":{"v":0,"d":"0.0%"}}]
["MMA",null,null,{"$f":"Jurat!I$1","v":0},{"$f":"Jurat!D$33","v":"00:00:00"},{"$f":"E86","v":"00:00:00"},"Admin","YTD","Region 5",{"$f":"IFERROR('MMA Rev-Exp Region 5'!$AW$96/('MMA Rev-Exp Region 5'!$AW$17-'MMA Rev-Exp Region 5'!$AW$15), 0)","v":{"v":0,"d":"0.0%"}}]
["MMA",null,null,{"$f":"Jurat!I$1","v":0},{"$f":"Jurat!D$33","v":"00:00:00"},"2017-03-31","Margin","Quarter","Region 5",{"$f":"IFERROR(('MMA Rev-Exp Region 5'!$D$105-'MMA Rev-Exp Region 5'!$D$15+'MMA Rev-Exp Region 5'!$D$99)/('MMA Rev-Exp Region 5'!$D$17-'MMA Rev-Exp Region 5'!$D$15), 0)","v":{"v":0,"d":"0.0%"}}]
["MMA",null,null,{"$f":"Jurat!I$1","v":0},{"$f":"Jurat!D$33","v":"00:00:00"},"2017-06-30","Margin","Quarter","Region 5",{"$f":"IFERROR(('MMA Rev-Exp Region 5'!$O$105-'MMA Rev-Exp Region 5'!$O$15+'MMA Rev-Exp Region 5'!$O$99)/('MMA Rev-Exp Region 5'!$O$17-'MMA Rev-Exp Region 5'!$O$15), 0)","v":{"v":0,"d":"0.0%"}}]
["MMA",null,null,{"$f":"Jurat!I$1","v":0},{"$f":"Jurat!D$33","v":"00:00:00"},"2017-09-30","Margin","Quarter","Region 5",{"$f":"IFERROR(('MMA Rev-Exp Region 5'!$Z$105-'MMA Rev-Exp Region 5'!$Z$15+'MMA Rev-Exp Region 5'!$Z$99)/('MMA Rev-Exp Region 5'!$Z$17-'MMA Rev-Exp Region 5'!$Z$15), 0)","v":{"v":0,"d":"0.0%"}}]
["MMA",null,null,{"$f":"Jurat!I$1","v":0},{"$f":"Jurat!D$33","v":"00:00:00"},"2017-12-31","Margin","Quarter","Region 5",{"$f":"IFERROR(('MMA Rev-Exp Region 5'!$AK$105-'MMA Rev-Exp Region 5'!$AK$15+'MMA Rev-Exp Region 5'!$AK$99)/('MMA Rev-Exp Region 5'!$AK$17-'MMA Rev-Exp Region 5'!$AK$15), 0)","v":{"v":0,"d":"0.0%"}}]
["MMA",null,null,{"$f":"Jurat!I$1","v":0},{"$f":"Jurat!D$33","v":"00:00:00"},{"$f":"E91","v":"00:00:00"},"Margin","YTD","Region 5",{"$f":"IFERROR(('MMA Rev-Exp Region 5'!$AW$105-'MMA Rev-Exp Region 5'!$AW$15+'MMA Rev-Exp Region 5'!$AW$99)/('MMA Rev-Exp Region 5'!$AW$17-'MMA Rev-Exp Region 5'!$AW$15), 0)","v":{"v":0,"d":"0.0%"}}]
["MMA",null,null,{"$f":"Jurat!I$1","v":0},{"$f":"Jurat!D$33","v":"00:00:00"},"2017-03-31","MLR","Quarter","Region 6",{"$f":"IFERROR(('MMA Rev-Exp Region 6'!D$87-'MMA Rev-Exp Region 6'!D$76)/('MMA Rev-Exp Region 6'!D$17-'MMA Rev-Exp Region 6'!D$15), 0)","v":{"v":0,"d":"0.0%"}},{"$f":"IFERROR(('MMA Rev-Exp Region 6'!E$87-'MMA Rev-Exp Region 6'!E$76)/('MMA Rev-Exp Region 6'!E$17-'MMA Rev-Exp Region 6'!E$15), 0)","v":{"v":0,"d":"0.0%"}},{"$f":"IFERROR(('MMA Rev-Exp Region 6'!F$87-'MMA Rev-Exp Region 6'!F$76)/('MMA Rev-Exp Region 6'!F$17-'MMA Rev-Exp Region 6'!F$15), 0)","v":{"v":0,"d":"0.0%"}},{"$f":"IFERROR(('MMA Rev-Exp Region 6'!G$87-'MMA Rev-Exp Region 6'!G$76)/('MMA Rev-Exp Region 6'!G$17-'MMA Rev-Exp Region 6'!G$15), 0)","v":{"v":0,"d":"0.0%"}},{"$f":"IFERROR(('MMA Rev-Exp Region 6'!H$87-'MMA Rev-Exp Region 6'!H$76)/('MMA Rev-Exp Region 6'!H$17-'MMA Rev-Exp Region 6'!H$15), 0)","v":{"v":0,"d":"0.0%"}},{"$f":"IFERROR(('MMA Rev-Exp Region 6'!I$87-'MMA Rev-Exp Region 6'!I$76)/('MMA Rev-Exp Region 6'!I$17-'MMA Rev-Exp Region 6'!I$15), 0)","v":{"v":0,"d":"0.0%"}},{"$f":"IFERROR(('MMA Rev-Exp Region 6'!J$87-'MMA Rev-Exp Region 6'!J$76)/('MMA Rev-Exp Region 6'!J$17-'MMA Rev-Exp Region 6'!J$15), 0)","v":{"v":0,"d":"0.0%"}},{"$f":"IFERROR(('MMA Rev-Exp Region 6'!K$87-'MMA Rev-Exp Region 6'!K$76)/('MMA Rev-Exp Region 6'!K$17-'MMA Rev-Exp Region 6'!K$15), 0)","v":{"v":0,"d":"0.0%"}},{"$f":"IFERROR(('MMA Rev-Exp Region 6'!L$87-'MMA Rev-Exp Region 6'!L$76)/('MMA Rev-Exp Region 6'!L$17-'MMA Rev-Exp Region 6'!L$15), 0)","v":{"v":0,"d":"0.0%"}},{"$f":"IFERROR(('MMA Rev-Exp Region 6'!M$87-'MMA Rev-Exp Region 6'!M$76)/('MMA Rev-Exp Region 6'!M$17-'MMA Rev-Exp Region 6'!M$15), 0)","v":{"v":0,"d":"0.0%"}},{"$f":"IFERROR(('MMA Rev-Exp Region 6'!N$87-'MMA Rev-Exp Region 6'!N$76)/('MMA Rev-Exp Region 6'!N$17-'MMA Rev-Exp Region 6'!N$15), 0)","v":{"v":0,"d":"0.0%"}}]
["MMA",null,null,{"$f":"Jurat!I$1","v":0},{"$f":"Jurat!D$33","v":"00:00:00"},"2017-06-30","MLR","Quarter","Region 6",{"$f":"IFERROR(('MMA Rev-Exp Region 6'!O$87-'MMA Rev-Exp Region 6'!O$76)/('MMA Rev-Exp Region 6'!O$17-'MMA Rev-Exp Region 6'!O$15), 0)","v":{"v":0,"d":"0.0%"}},{"$f":"IFERROR(('MMA Rev-Exp Region 6'!$P$87-'MMA Rev-Exp Region 6'!$P$76)/('MMA Rev-Exp Region 6'!$P$17-'MMA Rev-Exp Region 6'!$P$15), 0)","v":{"v":0,"d":"0.0%"}},{"$f":"IFERROR(('MMA Rev-Exp Region 6'!$Q$87-'MMA Rev-Exp Region 6'!$Q$76)/('MMA Rev-Exp Region 6'!$Q$17-'MMA Rev-Exp Region 6'!$Q$15), 0)","v":{"v":0,"d":"0.0%"}},{"$f":"IFERROR(('MMA Rev-Exp Region 6'!$R$87-'MMA Rev-Exp Region 6'!$R$76)/('MMA Rev-Exp Region 6'!$R$17-'MMA Rev-Exp Region 6'!$R$15), 0)","v":{"v":0,"d":"0.0%"}},{"$f":"IFERROR(('MMA Rev-Exp Region 6'!$S$87-'MMA Rev-Exp Region 6'!$S$76)/('MMA Rev-Exp Region 6'!$S$17-'MMA Rev-Exp Region 6'!$S$15), 0)","v":{"v":0,"d":"0.0%"}},{"$f":"IFERROR(('MMA Rev-Exp Region 6'!$T$87-'MMA Rev-Exp Region 6'!$T$76)/('MMA Rev-Exp Region 6'!$T$17-'MMA Rev-Exp Region 6'!$T$15), 0)","v":{"v":0,"d":"0.0%"}},{"$f":"IFERROR(('MMA Rev-Exp Region 6'!$U$87-'MMA Rev-Exp Region 6'!$U$76)/('MMA Rev-Exp Region 6'!$U$17-'MMA Rev-Exp Region 6'!$U$15), 0)","v":{"v":0,"d":"0.0%"}},{"$f":"IFERROR(('MMA Rev-Exp Region 6'!$V$87-'MMA Rev-Exp Region 6'!$V$76)/('MMA Rev-Exp Region 6'!$V$17-'MMA Rev-Exp Region 6'!$V$15), 0)","v":{"v":0,"d":"0.0%"}},{"$f":"IFERROR(('MMA Rev-Exp Region 6'!$W$87-'MMA Rev-Exp Region 6'!$W$76)/('MMA Rev-Exp Region 6'!$W$17-'MMA Rev-Exp Region 6'!$W$15), 0)","v":{"v":0,"d":"0.0%"}},{"$f":"IFERROR(('MMA Rev-Exp Region 6'!$X$87-'MMA Rev-Exp Region 6'!$X$76)/('MMA Rev-Exp Region 6'!$X$17-'MMA Rev-Exp Region 6'!$X$15), 0)","v":{"v":0,"d":"0.0%"}},{"$f":"IFERROR(('MMA Rev-Exp Region 6'!$Y$87-'MMA Rev-Exp Region 6'!$Y$76)/('MMA Rev-Exp Region 6'!$Y$17-'MMA Rev-Exp Region 6'!$Y$15), 0)","v":{"v":0,"d":"0.0%"}}]
["MMA",null,null,{"$f":"Jurat!I$1","v":0},{"$f":"Jurat!D$33","v":"00:00:00"},"2017-09-30","MLR","Quarter","Region 6",{"$f":"IFERROR(('MMA Rev-Exp Region 6'!$Z$87-'MMA Rev-Exp Region 6'!$Z$76)/('MMA Rev-Exp Region 6'!$Z$17-'MMA Rev-Exp Region 6'!$Z$15), 0)","v":{"v":0,"d":"0.0%"}},{"$f":"IFERROR(('MMA Rev-Exp Region 6'!$AA$87-'MMA Rev-Exp Region 6'!$AA$76)/('MMA Rev-Exp Region 6'!$AA$17-'MMA Rev-Exp Region 6'!$AA$15), 0)","v":{"v":0,"d":"0.0%"}},{"$f":"IFERROR(('MMA Rev-Exp Region 6'!$AB$87-'MMA Rev-Exp Region 6'!$AB$76)/('MMA Rev-Exp Region 6'!$AB$17-'MMA Rev-Exp Region 6'!$AB$15), 0)","v":{"v":0,"d":"0.0%"}},{"$f":"IFERROR(('MMA Rev-Exp Region 6'!$AC$87-'MMA Rev-Exp Region 6'!$AC$76)/('MMA Rev-Exp Region 6'!$AC$17-'MMA Rev-Exp Region 6'!$AC$15), 0)","v":{"v":0,"d":"0.0%"}},{"$f":"IFERROR(('MMA Rev-Exp Region 6'!$AD$87-'MMA Rev-Exp Region 6'!$AD$76)/('MMA Rev-Exp Region 6'!$AD$17-'MMA Rev-Exp Region 6'!$AD$15), 0)","v":{"v":0,"d":"0.0%"}},{"$f":"IFERROR(('MMA Rev-Exp Region 6'!$AE$87-'MMA Rev-Exp Region 6'!$AE$76)/('MMA Rev-Exp Region 6'!$AE$17-'MMA Rev-Exp Region 6'!$AE$15), 0)","v":{"v":0,"d":"0.0%"}},{"$f":"IFERROR(('MMA Rev-Exp Region 6'!$AF$87-'MMA Rev-Exp Region 6'!$AF$76)/('MMA Rev-Exp Region 6'!$AF$17-'MMA Rev-Exp Region 6'!$AF$15), 0)","v":{"v":0,"d":"0.0%"}},{"$f":"IFERROR(('MMA Rev-Exp Region 6'!$AG$87-'MMA Rev-Exp Region 6'!$AG$76)/('MMA Rev-Exp Region 6'!$AG$17-'MMA Rev-Exp Region 6'!$AG$15), 0)","v":{"v":0,"d":"0.0%"}},{"$f":"IFERROR(('MMA Rev-Exp Region 6'!$AH$87-'MMA Rev-Exp Region 6'!$AH$76)/('MMA Rev-Exp Region 6'!$AH$17-'MMA Rev-Exp Region 6'!$AH$15), 0)","v":{"v":0,"d":"0.0%"}},{"$f":"IFERROR(('MMA Rev-Exp Region 6'!$AI$87-'MMA Rev-Exp Region 6'!$AI$76)/('MMA Rev-Exp Region 6'!$AI$17-'MMA Rev-Exp Region 6'!$AI$15), 0)","v":{"v":0,"d":"0.0%"}},{"$f":"IFERROR(('MMA Rev-Exp Region 6'!$AJ$87-'MMA Rev-Exp Region 6'!$AJ$76)/('MMA Rev-Exp Region 6'!$AJ$17-'MMA Rev-Exp Region 6'!$AJ$15), 0)","v":{"v":0,"d":"0.0%"}}]
["MMA",null,null,{"$f":"Jurat!I$1","v":0},{"$f":"Jurat!D$33","v":"00:00:00"},"2017-12-31","MLR","Quarter","Region 6",{"$f":"IFERROR(('MMA Rev-Exp Region 6'!$AK$87-'MMA Rev-Exp Region 6'!$AK$76)/('MMA Rev-Exp Region 6'!$AK$17-'MMA Rev-Exp Region 6'!$AK$15), 0)","v":{"v":0,"d":"0.0%"}},{"$f":"IFERROR(('MMA Rev-Exp Region 6'!$AL$87-'MMA Rev-Exp Region 6'!$AL$76)/('MMA Rev-Exp Region 6'!$AL$17-'MMA Rev-Exp Region 6'!$AL$15), 0)","v":{"v":0,"d":"0.0%"}},{"$f":"IFERROR(('MMA Rev-Exp Region 6'!$AM$87-'MMA Rev-Exp Region 6'!$AM$76)/('MMA Rev-Exp Region 6'!$AM$17-'MMA Rev-Exp Region 6'!$AM$15), 0)","v":{"v":0,"d":"0.0%"}},{"$f":"IFERROR(('MMA Rev-Exp Region 6'!$AN$87-'MMA Rev-Exp Region 6'!$AN$76)/('MMA Rev-Exp Region 6'!$AN$17-'MMA Rev-Exp Region 6'!$AN$15), 0)","v":{"v":0,"d":"0.0%"}},{"$f":"IFERROR(('MMA Rev-Exp Region 6'!$AO$87-'MMA Rev-Exp Region 6'!$AO$76)/('MMA Rev-Exp Region 6'!$AO$17-'MMA Rev-Exp Region 6'!$AO$15), 0)","v":{"v":0,"d":"0.0%"}},{"$f":"IFERROR(('MMA Rev-Exp Region 6'!$AP$87-'MMA Rev-Exp Region 6'!$AP$76)/('MMA Rev-Exp Region 6'!$AP$17-'MMA Rev-Exp Region 6'!$AP$15), 0)","v":{"v":0,"d":"0.0%"}},{"$f":"IFERROR(('MMA Rev-Exp Region 6'!$AQ$87-'MMA Rev-Exp Region 6'!$AQ$76)/('MMA Rev-Exp Region 6'!$AQ$17-'MMA Rev-Exp Region 6'!$AQ$15), 0)","v":{"v":0,"d":"0.0%"}},{"$f":"IFERROR(('MMA Rev-Exp Region 6'!$AR$87-'MMA Rev-Exp Region 6'!$AR$76)/('MMA Rev-Exp Region 6'!$AR$17-'MMA Rev-Exp Region 6'!$AR$15), 0)","v":{"v":0,"d":"0.0%"}},{"$f":"IFERROR(('MMA Rev-Exp Region 6'!$AS$87-'MMA Rev-Exp Region 6'!$AS$76)/('MMA Rev-Exp Region 6'!$AS$17-'MMA Rev-Exp Region 6'!$AS$15), 0)","v":{"v":0,"d":"0.0%"}},{"$f":"IFERROR(('MMA Rev-Exp Region 6'!$AT$87-'MMA Rev-Exp Region 6'!$AT$76)/('MMA Rev-Exp Region 6'!$AT$17-'MMA Rev-Exp Region 6'!$AT$15), 0)","v":{"v":0,"d":"0.0%"}},{"$f":"IFERROR(('MMA Rev-Exp Region 6'!$AU$87-'MMA Rev-Exp Region 6'!$AU$76)/('MMA Rev-Exp Region 6'!$AU$17-'MMA Rev-Exp Region 6'!$AU$15), 0)","v":{"v":0,"d":"0.0%"}}]
["MMA",null,null,{"$f":"Jurat!I$1","v":0},{"$f":"Jurat!D$33","v":"00:00:00"},{"$f":"E96","v":"00:00:00"},"MLR","YTD","Region 6",{"$f":"IFERROR(('MMA Rev-Exp Region 6'!$AW$87-'MMA Rev-Exp Region 6'!$AW$76)/('MMA Rev-Exp Region 6'!$AW$17-'MMA Rev-Exp Region 6'!$AW$15), 0)","v":{"v":0,"d":"0.0%"}},{"$f":"IFERROR(('MMA Rev-Exp Region 6'!$AX$87-'MMA Rev-Exp Region 6'!$AX$76)/('MMA Rev-Exp Region 6'!$AX$17-'MMA Rev-Exp Region 6'!$AX$15), 0)","v":{"v":0,"d":"0.0%"}},{"$f":"IFERROR(('MMA Rev-Exp Region 6'!$AY$87-'MMA Rev-Exp Region 6'!$AY$76)/('MMA Rev-Exp Region 6'!$AY$17-'MMA Rev-Exp Region 6'!$AY$15), 0)","v":{"v":0,"d":"0.0%"}},{"$f":"IFERROR(('MMA Rev-Exp Region 6'!$AZ$87-'MMA Rev-Exp Region 6'!$AZ$76)/('MMA Rev-Exp Region 6'!$AZ$17-'MMA Rev-Exp Region 6'!$AZ$15), 0)","v":{"v":0,"d":"0.0%"}},{"$f":"IFERROR(('MMA Rev-Exp Region 6'!$BA$87-'MMA Rev-Exp Region 6'!$BA$76)/('MMA Rev-Exp Region 6'!$BA$17-'MMA Rev-Exp Region 6'!$BA$15), 0)","v":{"v":0,"d":"0.0%"}},{"$f":"IFERROR(('MMA Rev-Exp Region 6'!$BB$87-'MMA Rev-Exp Region 6'!$BB$76)/('MMA Rev-Exp Region 6'!$BB$17-'MMA Rev-Exp Region 6'!$BB$15), 0)","v":{"v":0,"d":"0.0%"}},{"$f":"IFERROR(('MMA Rev-Exp Region 6'!$BC$87-'MMA Rev-Exp Region 6'!$BC$76)/('MMA Rev-Exp Region 6'!$BC$17-'MMA Rev-Exp Region 6'!$BC$15), 0)","v":{"v":0,"d":"0.0%"}},{"$f":"IFERROR(('MMA Rev-Exp Region 6'!$BD$87-'MMA Rev-Exp Region 6'!$BD$76)/('MMA Rev-Exp Region 6'!$BD$17-'MMA Rev-Exp Region 6'!$BD$15), 0)","v":{"v":0,"d":"0.0%"}},{"$f":"IFERROR(('MMA Rev-Exp Region 6'!$BE$87-'MMA Rev-Exp Region 6'!$BE$76)/('MMA Rev-Exp Region 6'!$BE$17-'MMA Rev-Exp Region 6'!$BE$15), 0)","v":{"v":0,"d":"0.0%"}},{"$f":"IFERROR(('MMA Rev-Exp Region 6'!$BF$87-'MMA Rev-Exp Region 6'!$BF$76)/('MMA Rev-Exp Region 6'!$BF$17-'MMA Rev-Exp Region 6'!$BF$15), 0)","v":{"v":0,"d":"0.0%"}},{"$f":"IFERROR(('MMA Rev-Exp Region 6'!$BG$87-'MMA Rev-Exp Region 6'!$BG$76)/('MMA Rev-Exp Region 6'!$BG$17-'MMA Rev-Exp Region 6'!$BG$15), 0)","v":{"v":0,"d":"0.0%"}}]
["MMA",null,null,{"$f":"Jurat!I$1","v":0},{"$f":"Jurat!D$33","v":"00:00:00"},"2017-03-31","Admin","Quarter","Region 6",{"$f":"IFERROR('MMA Rev-Exp Region 6'!$D$96/('MMA Rev-Exp Region 6'!$D$17-'MMA Rev-Exp Region 6'!$D$15), 0)","v":{"v":0,"d":"0.0%"}}]
["MMA",null,null,{"$f":"Jurat!I$1","v":0},{"$f":"Jurat!D$33","v":"00:00:00"},"2017-06-30","Admin","Quarter","Region 6",{"$f":"IFERROR('MMA Rev-Exp Region 6'!$O$96/('MMA Rev-Exp Region 6'!$O$17-'MMA Rev-Exp Region 6'!$O$15), 0)","v":{"v":0,"d":"0.0%"}}]
["MMA",null,null,{"$f":"Jurat!I$1","v":0},{"$f":"Jurat!D$33","v":"00:00:00"},"2017-09-30","Admin","Quarter","Region 6",{"$f":"IFERROR('MMA Rev-Exp Region 6'!$Z$96/('MMA Rev-Exp Region 6'!$Z$17-'MMA Rev-Exp Region 6'!$Z$15), 0)","v":{"v":0,"d":"0.0%"}}]
["MMA",null,null,{"$f":"Jurat!I$1","v":0},{"$f":"Jurat!D$33","v":"00:00:00"},"2017-12-31","Admin","Quarter","Region 6",{"$f":"IFERROR('MMA Rev-Exp Region 6'!$AK$96/('MMA Rev-Exp Region 6'!$AK$17-'MMA Rev-Exp Region 6'!$AK$15), 0)","v":{"v":0,"d":"0.0%"}}]
["MMA",null,null,{"$f":"Jurat!I$1","v":0},{"$f":"Jurat!D$33","v":"00:00:00"},{"$f":"E101","v":"00:00:00"},"Admin","YTD","Region 6",{"$f":"IFERROR('MMA Rev-Exp Region 6'!$AW$96/('MMA Rev-Exp Region 6'!$AW$17-'MMA Rev-Exp Region 6'!$AW$15), 0)","v":{"v":0,"d":"0.0%"}}]
["MMA",null,null,{"$f":"Jurat!I$1","v":0},{"$f":"Jurat!D$33","v":"00:00:00"},"2017-03-31","Margin","Quarter","Region 6",{"$f":"IFERROR(('MMA Rev-Exp Region 6'!$D$105-'MMA Rev-Exp Region 6'!$D$15+'MMA Rev-Exp Region 6'!$D$99)/('MMA Rev-Exp Region 6'!$D$17-'MMA Rev-Exp Region 6'!$D$15), 0)","v":{"v":0,"d":"0.0%"}}]
["MMA",null,null,{"$f":"Jurat!I$1","v":0},{"$f":"Jurat!D$33","v":"00:00:00"},"2017-06-30","Margin","Quarter","Region 6",{"$f":"IFERROR(('MMA Rev-Exp Region 6'!$O$105-'MMA Rev-Exp Region 6'!$O$15+'MMA Rev-Exp Region 6'!$O$99)/('MMA Rev-Exp Region 6'!$O$17-'MMA Rev-Exp Region 6'!$O$15), 0)","v":{"v":0,"d":"0.0%"}}]
["MMA",null,null,{"$f":"Jurat!I$1","v":0},{"$f":"Jurat!D$33","v":"00:00:00"},"2017-09-30","Margin","Quarter","Region 6",{"$f":"IFERROR(('MMA Rev-Exp Region 6'!$Z$105-'MMA Rev-Exp Region 6'!$Z$15+'MMA Rev-Exp Region 6'!$Z$99)/('MMA Rev-Exp Region 6'!$Z$17-'MMA Rev-Exp Region 6'!$Z$15), 0)","v":{"v":0,"d":"0.0%"}}]
["MMA",null,null,{"$f":"Jurat!I$1","v":0},{"$f":"Jurat!D$33","v":"00:00:00"},"2017-12-31","Margin","Quarter","Region 6",{"$f":"IFERROR(('MMA Rev-Exp Region 6'!$AK$105-'MMA Rev-Exp Region 6'!$AK$15+'MMA Rev-Exp Region 6'!$AK$99)/('MMA Rev-Exp Region 6'!$AK$17-'MMA Rev-Exp Region 6'!$AK$15), 0)","v":{"v":0,"d":"0.0%"}}]
["MMA",null,null,{"$f":"Jurat!I$1","v":0},{"$f":"Jurat!D$33","v":"00:00:00"},{"$f":"E106","v":"00:00:00"},"Margin","YTD","Region 6",{"$f":"IFERROR(('MMA Rev-Exp Region 6'!$AW$105-'MMA Rev-Exp Region 6'!$AW$15+'MMA Rev-Exp Region 6'!$AW$99)/('MMA Rev-Exp Region 6'!$AW$17-'MMA Rev-Exp Region 6'!$AW$15), 0)","v":{"v":0,"d":"0.0%"}}]
["MMA",null,null,{"$f":"Jurat!I$1","v":0},{"$f":"Jurat!D$33","v":"00:00:00"},"2017-03-31","MLR","Quarter","Region 7",{"$f":"IFERROR(('MMA Rev-Exp Region 7'!D$87-'MMA Rev-Exp Region 7'!D$76)/('MMA Rev-Exp Region 7'!D$17-'MMA Rev-Exp Region 7'!D$15), 0)","v":{"v":0,"d":"0.0%"}},{"$f":"IFERROR(('MMA Rev-Exp Region 7'!E$87-'MMA Rev-Exp Region 7'!E$76)/('MMA Rev-Exp Region 7'!E$17-'MMA Rev-Exp Region 7'!E$15), 0)","v":{"v":0,"d":"0.0%"}},{"$f":"IFERROR(('MMA Rev-Exp Region 7'!F$87-'MMA Rev-Exp Region 7'!F$76)/('MMA Rev-Exp Region 7'!F$17-'MMA Rev-Exp Region 7'!F$15), 0)","v":{"v":0,"d":"0.0%"}},{"$f":"IFERROR(('MMA Rev-Exp Region 7'!G$87-'MMA Rev-Exp Region 7'!G$76)/('MMA Rev-Exp Region 7'!G$17-'MMA Rev-Exp Region 7'!G$15), 0)","v":{"v":0,"d":"0.0%"}},{"$f":"IFERROR(('MMA Rev-Exp Region 7'!H$87-'MMA Rev-Exp Region 7'!H$76)/('MMA Rev-Exp Region 7'!H$17-'MMA Rev-Exp Region 7'!H$15), 0)","v":{"v":0,"d":"0.0%"}},{"$f":"IFERROR(('MMA Rev-Exp Region 7'!I$87-'MMA Rev-Exp Region 7'!I$76)/('MMA Rev-Exp Region 7'!I$17-'MMA Rev-Exp Region 7'!I$15), 0)","v":{"v":0,"d":"0.0%"}},{"$f":"IFERROR(('MMA Rev-Exp Region 7'!J$87-'MMA Rev-Exp Region 7'!J$76)/('MMA Rev-Exp Region 7'!J$17-'MMA Rev-Exp Region 7'!J$15), 0)","v":{"v":0,"d":"0.0%"}},{"$f":"IFERROR(('MMA Rev-Exp Region 7'!K$87-'MMA Rev-Exp Region 7'!K$76)/('MMA Rev-Exp Region 7'!K$17-'MMA Rev-Exp Region 7'!K$15), 0)","v":{"v":0,"d":"0.0%"}},{"$f":"IFERROR(('MMA Rev-Exp Region 7'!L$87-'MMA Rev-Exp Region 7'!L$76)/('MMA Rev-Exp Region 7'!L$17-'MMA Rev-Exp Region 7'!L$15), 0)","v":{"v":0,"d":"0.0%"}},{"$f":"IFERROR(('MMA Rev-Exp Region 7'!M$87-'MMA Rev-Exp Region 7'!M$76)/('MMA Rev-Exp Region 7'!M$17-'MMA Rev-Exp Region 7'!M$15), 0)","v":{"v":0,"d":"0.0%"}},{"$f":"IFERROR(('MMA Rev-Exp Region 7'!N$87-'MMA Rev-Exp Region 7'!N$76)/('MMA Rev-Exp Region 7'!N$17-'MMA Rev-Exp Region 7'!N$15), 0)","v":{"v":0,"d":"0.0%"}}]
["MMA",null,null,{"$f":"Jurat!I$1","v":0},{"$f":"Jurat!D$33","v":"00:00:00"},"2017-06-30","MLR","Quarter","Region 7",{"$f":"IFERROR(('MMA Rev-Exp Region 7'!O$87-'MMA Rev-Exp Region 7'!O$76)/('MMA Rev-Exp Region 7'!O$17-'MMA Rev-Exp Region 7'!O$15), 0)","v":{"v":0,"d":"0.0%"}},{"$f":"IFERROR(('MMA Rev-Exp Region 7'!$P$87-'MMA Rev-Exp Region 7'!$P$76)/('MMA Rev-Exp Region 7'!$P$17-'MMA Rev-Exp Region 7'!$P$15), 0)","v":{"v":0,"d":"0.0%"}},{"$f":"IFERROR(('MMA Rev-Exp Region 7'!$Q$87-'MMA Rev-Exp Region 7'!$Q$76)/('MMA Rev-Exp Region 7'!$Q$17-'MMA Rev-Exp Region 7'!$Q$15), 0)","v":{"v":0,"d":"0.0%"}},{"$f":"IFERROR(('MMA Rev-Exp Region 7'!$R$87-'MMA Rev-Exp Region 7'!$R$76)/('MMA Rev-Exp Region 7'!$R$17-'MMA Rev-Exp Region 7'!$R$15), 0)","v":{"v":0,"d":"0.0%"}},{"$f":"IFERROR(('MMA Rev-Exp Region 7'!$S$87-'MMA Rev-Exp Region 7'!$S$76)/('MMA Rev-Exp Region 7'!$S$17-'MMA Rev-Exp Region 7'!$S$15), 0)","v":{"v":0,"d":"0.0%"}},{"$f":"IFERROR(('MMA Rev-Exp Region 7'!$T$87-'MMA Rev-Exp Region 7'!$T$76)/('MMA Rev-Exp Region 7'!$T$17-'MMA Rev-Exp Region 7'!$T$15), 0)","v":{"v":0,"d":"0.0%"}},{"$f":"IFERROR(('MMA Rev-Exp Region 7'!$U$87-'MMA Rev-Exp Region 7'!$U$76)/('MMA Rev-Exp Region 7'!$U$17-'MMA Rev-Exp Region 7'!$U$15), 0)","v":{"v":0,"d":"0.0%"}},{"$f":"IFERROR(('MMA Rev-Exp Region 7'!$V$87-'MMA Rev-Exp Region 7'!$V$76)/('MMA Rev-Exp Region 7'!$V$17-'MMA Rev-Exp Region 7'!$V$15), 0)","v":{"v":0,"d":"0.0%"}},{"$f":"IFERROR(('MMA Rev-Exp Region 7'!$W$87-'MMA Rev-Exp Region 7'!$W$76)/('MMA Rev-Exp Region 7'!$W$17-'MMA Rev-Exp Region 7'!$W$15), 0)","v":{"v":0,"d":"0.0%"}},{"$f":"IFERROR(('MMA Rev-Exp Region 7'!$X$87-'MMA Rev-Exp Region 7'!$X$76)/('MMA Rev-Exp Region 7'!$X$17-'MMA Rev-Exp Region 7'!$X$15), 0)","v":{"v":0,"d":"0.0%"}},{"$f":"IFERROR(('MMA Rev-Exp Region 7'!$Y$87-'MMA Rev-Exp Region 7'!$Y$76)/('MMA Rev-Exp Region 7'!$Y$17-'MMA Rev-Exp Region 7'!$Y$15), 0)","v":{"v":0,"d":"0.0%"}}]
["MMA",null,null,{"$f":"Jurat!I$1","v":0},{"$f":"Jurat!D$33","v":"00:00:00"},"2017-09-30","MLR","Quarter","Region 7",{"$f":"IFERROR(('MMA Rev-Exp Region 7'!$Z$87-'MMA Rev-Exp Region 7'!$Z$76)/('MMA Rev-Exp Region 7'!$Z$17-'MMA Rev-Exp Region 7'!$Z$15), 0)","v":{"v":0,"d":"0.0%"}},{"$f":"IFERROR(('MMA Rev-Exp Region 7'!$AA$87-'MMA Rev-Exp Region 7'!$AA$76)/('MMA Rev-Exp Region 7'!$AA$17-'MMA Rev-Exp Region 7'!$AA$15), 0)","v":{"v":0,"d":"0.0%"}},{"$f":"IFERROR(('MMA Rev-Exp Region 7'!$AB$87-'MMA Rev-Exp Region 7'!$AB$76)/('MMA Rev-Exp Region 7'!$AB$17-'MMA Rev-Exp Region 7'!$AB$15), 0)","v":{"v":0,"d":"0.0%"}},{"$f":"IFERROR(('MMA Rev-Exp Region 7'!$AC$87-'MMA Rev-Exp Region 7'!$AC$76)/('MMA Rev-Exp Region 7'!$AC$17-'MMA Rev-Exp Region 7'!$AC$15), 0)","v":{"v":0,"d":"0.0%"}},{"$f":"IFERROR(('MMA Rev-Exp Region 7'!$AD$87-'MMA Rev-Exp Region 7'!$AD$76)/('MMA Rev-Exp Region 7'!$AD$17-'MMA Rev-Exp Region 7'!$AD$15), 0)","v":{"v":0,"d":"0.0%"}},{"$f":"IFERROR(('MMA Rev-Exp Region 7'!$AE$87-'MMA Rev-Exp Region 7'!$AE$76)/('MMA Rev-Exp Region 7'!$AE$17-'MMA Rev-Exp Region 7'!$AE$15), 0)","v":{"v":0,"d":"0.0%"}},{"$f":"IFERROR(('MMA Rev-Exp Region 7'!$AF$87-'MMA Rev-Exp Region 7'!$AF$76)/('MMA Rev-Exp Region 7'!$AF$17-'MMA Rev-Exp Region 7'!$AF$15), 0)","v":{"v":0,"d":"0.0%"}},{"$f":"IFERROR(('MMA Rev-Exp Region 7'!$AG$87-'MMA Rev-Exp Region 7'!$AG$76)/('MMA Rev-Exp Region 7'!$AG$17-'MMA Rev-Exp Region 7'!$AG$15), 0)","v":{"v":0,"d":"0.0%"}},{"$f":"IFERROR(('MMA Rev-Exp Region 7'!$AH$87-'MMA Rev-Exp Region 7'!$AH$76)/('MMA Rev-Exp Region 7'!$AH$17-'MMA Rev-Exp Region 7'!$AH$15), 0)","v":{"v":0,"d":"0.0%"}},{"$f":"IFERROR(('MMA Rev-Exp Region 7'!$AI$87-'MMA Rev-Exp Region 7'!$AI$76)/('MMA Rev-Exp Region 7'!$AI$17-'MMA Rev-Exp Region 7'!$AI$15), 0)","v":{"v":0,"d":"0.0%"}},{"$f":"IFERROR(('MMA Rev-Exp Region 7'!$AJ$87-'MMA Rev-Exp Region 7'!$AJ$76)/('MMA Rev-Exp Region 7'!$AJ$17-'MMA Rev-Exp Region 7'!$AJ$15), 0)","v":{"v":0,"d":"0.0%"}}]
["MMA",null,null,{"$f":"Jurat!I$1","v":0},{"$f":"Jurat!D$33","v":"00:00:00"},"2017-12-31","MLR","Quarter","Region 7",{"$f":"IFERROR(('MMA Rev-Exp Region 7'!$AK$87-'MMA Rev-Exp Region 7'!$AK$76)/('MMA Rev-Exp Region 7'!$AK$17-'MMA Rev-Exp Region 7'!$AK$15), 0)","v":{"v":0,"d":"0.0%"}},{"$f":"IFERROR(('MMA Rev-Exp Region 7'!$AL$87-'MMA Rev-Exp Region 7'!$AL$76)/('MMA Rev-Exp Region 7'!$AL$17-'MMA Rev-Exp Region 7'!$AL$15), 0)","v":{"v":0,"d":"0.0%"}},{"$f":"IFERROR(('MMA Rev-Exp Region 7'!$AM$87-'MMA Rev-Exp Region 7'!$AM$76)/('MMA Rev-Exp Region 7'!$AM$17-'MMA Rev-Exp Region 7'!$AM$15), 0)","v":{"v":0,"d":"0.0%"}},{"$f":"IFERROR(('MMA Rev-Exp Region 7'!$AN$87-'MMA Rev-Exp Region 7'!$AN$76)/('MMA Rev-Exp Region 7'!$AN$17-'MMA Rev-Exp Region 7'!$AN$15), 0)","v":{"v":0,"d":"0.0%"}},{"$f":"IFERROR(('MMA Rev-Exp Region 7'!$AO$87-'MMA Rev-Exp Region 7'!$AO$76)/('MMA Rev-Exp Region 7'!$AO$17-'MMA Rev-Exp Region 7'!$AO$15), 0)","v":{"v":0,"d":"0.0%"}},{"$f":"IFERROR(('MMA Rev-Exp Region 7'!$AP$87-'MMA Rev-Exp Region 7'!$AP$76)/('MMA Rev-Exp Region 7'!$AP$17-'MMA Rev-Exp Region 7'!$AP$15), 0)","v":{"v":0,"d":"0.0%"}},{"$f":"IFERROR(('MMA Rev-Exp Region 7'!$AQ$87-'MMA Rev-Exp Region 7'!$AQ$76)/('MMA Rev-Exp Region 7'!$AQ$17-'MMA Rev-Exp Region 7'!$AQ$15), 0)","v":{"v":0,"d":"0.0%"}},{"$f":"IFERROR(('MMA Rev-Exp Region 7'!$AR$87-'MMA Rev-Exp Region 7'!$AR$76)/('MMA Rev-Exp Region 7'!$AR$17-'MMA Rev-Exp Region 7'!$AR$15), 0)","v":{"v":0,"d":"0.0%"}},{"$f":"IFERROR(('MMA Rev-Exp Region 7'!$AS$87-'MMA Rev-Exp Region 7'!$AS$76)/('MMA Rev-Exp Region 7'!$AS$17-'MMA Rev-Exp Region 7'!$AS$15), 0)","v":{"v":0,"d":"0.0%"}},{"$f":"IFERROR(('MMA Rev-Exp Region 7'!$AT$87-'MMA Rev-Exp Region 7'!$AT$76)/('MMA Rev-Exp Region 7'!$AT$17-'MMA Rev-Exp Region 7'!$AT$15), 0)","v":{"v":0,"d":"0.0%"}},{"$f":"IFERROR(('MMA Rev-Exp Region 7'!$AU$87-'MMA Rev-Exp Region 7'!$AU$76)/('MMA Rev-Exp Region 7'!$AU$17-'MMA Rev-Exp Region 7'!$AU$15), 0)","v":{"v":0,"d":"0.0%"}}]
["MMA",null,null,{"$f":"Jurat!I$1","v":0},{"$f":"Jurat!D$33","v":"00:00:00"},{"$f":"E111","v":"00:00:00"},"MLR","YTD","Region 7",{"$f":"IFERROR(('MMA Rev-Exp Region 7'!$AW$87-'MMA Rev-Exp Region 7'!$AW$76)/('MMA Rev-Exp Region 7'!$AW$17-'MMA Rev-Exp Region 7'!$AW$15), 0)","v":{"v":0,"d":"0.0%"}},{"$f":"IFERROR(('MMA Rev-Exp Region 7'!$AX$87-'MMA Rev-Exp Region 7'!$AX$76)/('MMA Rev-Exp Region 7'!$AX$17-'MMA Rev-Exp Region 7'!$AX$15), 0)","v":{"v":0,"d":"0.0%"}},{"$f":"IFERROR(('MMA Rev-Exp Region 7'!$AY$87-'MMA Rev-Exp Region 7'!$AY$76)/('MMA Rev-Exp Region 7'!$AY$17-'MMA Rev-Exp Region 7'!$AY$15), 0)","v":{"v":0,"d":"0.0%"}},{"$f":"IFERROR(('MMA Rev-Exp Region 7'!$AZ$87-'MMA Rev-Exp Region 7'!$AZ$76)/('MMA Rev-Exp Region 7'!$AZ$17-'MMA Rev-Exp Region 7'!$AZ$15), 0)","v":{"v":0,"d":"0.0%"}},{"$f":"IFERROR(('MMA Rev-Exp Region 7'!$BA$87-'MMA Rev-Exp Region 7'!$BA$76)/('MMA Rev-Exp Region 7'!$BA$17-'MMA Rev-Exp Region 7'!$BA$15), 0)","v":{"v":0,"d":"0.0%"}},{"$f":"IFERROR(('MMA Rev-Exp Region 7'!$BB$87-'MMA Rev-Exp Region 7'!$BB$76)/('MMA Rev-Exp Region 7'!$BB$17-'MMA Rev-Exp Region 7'!$BB$15), 0)","v":{"v":0,"d":"0.0%"}},{"$f":"IFERROR(('MMA Rev-Exp Region 7'!$BC$87-'MMA Rev-Exp Region 7'!$BC$76)/('MMA Rev-Exp Region 7'!$BC$17-'MMA Rev-Exp Region 7'!$BC$15), 0)","v":{"v":0,"d":"0.0%"}},{"$f":"IFERROR(('MMA Rev-Exp Region 7'!$BD$87-'MMA Rev-Exp Region 7'!$BD$76)/('MMA Rev-Exp Region 7'!$BD$17-'MMA Rev-Exp Region 7'!$BD$15), 0)","v":{"v":0,"d":"0.0%"}},{"$f":"IFERROR(('MMA Rev-Exp Region 7'!$BE$87-'MMA Rev-Exp Region 7'!$BE$76)/('MMA Rev-Exp Region 7'!$BE$17-'MMA Rev-Exp Region 7'!$BE$15), 0)","v":{"v":0,"d":"0.0%"}},{"$f":"IFERROR(('MMA Rev-Exp Region 7'!$BF$87-'MMA Rev-Exp Region 7'!$BF$76)/('MMA Rev-Exp Region 7'!$BF$17-'MMA Rev-Exp Region 7'!$BF$15), 0)","v":{"v":0,"d":"0.0%"}},{"$f":"IFERROR(('MMA Rev-Exp Region 7'!$BG$87-'MMA Rev-Exp Region 7'!$BG$76)/('MMA Rev-Exp Region 7'!$BG$17-'MMA Rev-Exp Region 7'!$BG$15), 0)","v":{"v":0,"d":"0.0%"}}]
["MMA",null,null,{"$f":"Jurat!I$1","v":0},{"$f":"Jurat!D$33","v":"00:00:00"},"2017-03-31","Admin","Quarter","Region 7",{"$f":"IFERROR('MMA Rev-Exp Region 7'!$D$96/('MMA Rev-Exp Region 7'!$D$17-'MMA Rev-Exp Region 7'!$D$15), 0)","v":{"v":0,"d":"0.0%"}}]
["MMA",null,null,{"$f":"Jurat!I$1","v":0},{"$f":"Jurat!D$33","v":"00:00:00"},"2017-06-30","Admin","Quarter","Region 7",{"$f":"IFERROR('MMA Rev-Exp Region 7'!$O$96/('MMA Rev-Exp Region 7'!$O$17-'MMA Rev-Exp Region 7'!$O$15), 0)","v":{"v":0,"d":"0.0%"}}]
["MMA",null,null,{"$f":"Jurat!I$1","v":0},{"$f":"Jurat!D$33","v":"00:00:00"},"2017-09-30","Admin","Quarter","Region 7",{"$f":"IFERROR('MMA Rev-Exp Region 7'!$Z$96/('MMA Rev-Exp Region 7'!$Z$17-'MMA Rev-Exp Region 7'!$Z$15), 0)","v":{"v":0,"d":"0.0%"}}]
["MMA",null,null,{"$f":"Jurat!I$1","v":0},{"$f":"Jurat!D$33","v":"00:00:00"},"2017-12-31","Admin","Quarter","Region 7",{"$f":"IFERROR('MMA Rev-Exp Region 7'!$AK$96/('MMA Rev-Exp Region 7'!$AK$17-'MMA Rev-Exp Region 7'!$AK$15), 0)","v":{"v":0,"d":"0.0%"}}]
["MMA",null,null,{"$f":"Jurat!I$1","v":0},{"$f":"Jurat!D$33","v":"00:00:00"},{"$f":"E116","v":"00:00:00"},"Admin","YTD","Region 7",{"$f":"IFERROR('MMA Rev-Exp Region 7'!$AW$96/('MMA Rev-Exp Region 7'!$AW$17-'MMA Rev-Exp Region 7'!$AW$15), 0)","v":{"v":0,"d":"0.0%"}}]
["MMA",null,null,{"$f":"Jurat!I$1","v":0},{"$f":"Jurat!D$33","v":"00:00:00"},"2017-03-31","Margin","Quarter","Region 7",{"$f":"IFERROR(('MMA Rev-Exp Region 7'!$D$105-'MMA Rev-Exp Region 7'!$D$15+'MMA Rev-Exp Region 7'!$D$99)/('MMA Rev-Exp Region 7'!$D$17-'MMA Rev-Exp Region 7'!$D$15), 0)","v":{"v":0,"d":"0.0%"}}]
["MMA",null,null,{"$f":"Jurat!I$1","v":0},{"$f":"Jurat!D$33","v":"00:00:00"},"2017-06-30","Margin","Quarter","Region 7",{"$f":"IFERROR(('MMA Rev-Exp Region 7'!$O$105-'MMA Rev-Exp Region 7'!$O$15+'MMA Rev-Exp Region 7'!$O$99)/('MMA Rev-Exp Region 7'!$O$17-'MMA Rev-Exp Region 7'!$O$15), 0)","v":{"v":0,"d":"0.0%"}}]
["MMA",null,null,{"$f":"Jurat!I$1","v":0},{"$f":"Jurat!D$33","v":"00:00:00"},"2017-09-30","Margin","Quarter","Region 7",{"$f":"IFERROR(('MMA Rev-Exp Region 7'!$Z$105-'MMA Rev-Exp Region 7'!$Z$15+'MMA Rev-Exp Region 7'!$Z$99)/('MMA Rev-Exp Region 7'!$Z$17-'MMA Rev-Exp Region 7'!$Z$15), 0)","v":{"v":0,"d":"0.0%"}}]
["MMA",null,null,{"$f":"Jurat!I$1","v":0},{"$f":"Jurat!D$33","v":"00:00:00"},"2017-12-31","Margin","Quarter","Region 7",{"$f":"IFERROR(('MMA Rev-Exp Region 7'!$AK$105-'MMA Rev-Exp Region 7'!$AK$15+'MMA Rev-Exp Region 7'!$AK$99)/('MMA Rev-Exp Region 7'!$AK$17-'MMA Rev-Exp Region 7'!$AK$15), 0)","v":{"v":0,"d":"0.0%"}}]
["MMA",null,null,{"$f":"Jurat!I$1","v":0},{"$f":"Jurat!D$33","v":"00:00:00"},{"$f":"E121","v":"00:00:00"},"Margin","YTD","Region 7",{"$f":"IFERROR(('MMA Rev-Exp Region 7'!$AW$105-'MMA Rev-Exp Region 7'!$AW$15+'MMA Rev-Exp Region 7'!$AW$99)/('MMA Rev-Exp Region 7'!$AW$17-'MMA Rev-Exp Region 7'!$AW$15), 0)","v":{"v":0,"d":"0.0%"}}]
["MMA",null,null,{"$f":"Jurat!I$1","v":0},{"$f":"Jurat!D$33","v":"00:00:00"},"2017-03-31","MLR","Quarter","Region 8",{"$f":"IFERROR(('MMA Rev-Exp Region 8'!D$87-'MMA Rev-Exp Region 8'!D$76)/('MMA Rev-Exp Region 8'!D$17-'MMA Rev-Exp Region 8'!D$15), 0)","v":{"v":0,"d":"0.0%"}},{"$f":"IFERROR(('MMA Rev-Exp Region 8'!E$87-'MMA Rev-Exp Region 8'!E$76)/('MMA Rev-Exp Region 8'!E$17-'MMA Rev-Exp Region 8'!E$15), 0)","v":{"v":0,"d":"0.0%"}},{"$f":"IFERROR(('MMA Rev-Exp Region 8'!F$87-'MMA Rev-Exp Region 8'!F$76)/('MMA Rev-Exp Region 8'!F$17-'MMA Rev-Exp Region 8'!F$15), 0)","v":{"v":0,"d":"0.0%"}},{"$f":"IFERROR(('MMA Rev-Exp Region 8'!G$87-'MMA Rev-Exp Region 8'!G$76)/('MMA Rev-Exp Region 8'!G$17-'MMA Rev-Exp Region 8'!G$15), 0)","v":{"v":0,"d":"0.0%"}},{"$f":"IFERROR(('MMA Rev-Exp Region 8'!H$87-'MMA Rev-Exp Region 8'!H$76)/('MMA Rev-Exp Region 8'!H$17-'MMA Rev-Exp Region 8'!H$15), 0)","v":{"v":0,"d":"0.0%"}},{"$f":"IFERROR(('MMA Rev-Exp Region 8'!I$87-'MMA Rev-Exp Region 8'!I$76)/('MMA Rev-Exp Region 8'!I$17-'MMA Rev-Exp Region 8'!I$15), 0)","v":{"v":0,"d":"0.0%"}},{"$f":"IFERROR(('MMA Rev-Exp Region 8'!J$87-'MMA Rev-Exp Region 8'!J$76)/('MMA Rev-Exp Region 8'!J$17-'MMA Rev-Exp Region 8'!J$15), 0)","v":{"v":0,"d":"0.0%"}},{"$f":"IFERROR(('MMA Rev-Exp Region 8'!K$87-'MMA Rev-Exp Region 8'!K$76)/('MMA Rev-Exp Region 8'!K$17-'MMA Rev-Exp Region 8'!K$15), 0)","v":{"v":0,"d":"0.0%"}},{"$f":"IFERROR(('MMA Rev-Exp Region 8'!L$87-'MMA Rev-Exp Region 8'!L$76)/('MMA Rev-Exp Region 8'!L$17-'MMA Rev-Exp Region 8'!L$15), 0)","v":{"v":0,"d":"0.0%"}},{"$f":"IFERROR(('MMA Rev-Exp Region 8'!M$87-'MMA Rev-Exp Region 8'!M$76)/('MMA Rev-Exp Region 8'!M$17-'MMA Rev-Exp Region 8'!M$15), 0)","v":{"v":0,"d":"0.0%"}},{"$f":"IFERROR(('MMA Rev-Exp Region 8'!N$87-'MMA Rev-Exp Region 8'!N$76)/('MMA Rev-Exp Region 8'!N$17-'MMA Rev-Exp Region 8'!N$15), 0)","v":{"v":0,"d":"0.0%"}}]
["MMA",null,null,{"$f":"Jurat!I$1","v":0},{"$f":"Jurat!D$33","v":"00:00:00"},"2017-06-30","MLR","Quarter","Region 8",{"$f":"IFERROR(('MMA Rev-Exp Region 8'!O$87-'MMA Rev-Exp Region 8'!O$76)/('MMA Rev-Exp Region 8'!O$17-'MMA Rev-Exp Region 8'!O$15), 0)","v":{"v":0,"d":"0.0%"}},{"$f":"IFERROR(('MMA Rev-Exp Region 8'!$P$87-'MMA Rev-Exp Region 8'!$P$76)/('MMA Rev-Exp Region 8'!$P$17-'MMA Rev-Exp Region 8'!$P$15), 0)","v":{"v":0,"d":"0.0%"}},{"$f":"IFERROR(('MMA Rev-Exp Region 8'!$Q$87-'MMA Rev-Exp Region 8'!$Q$76)/('MMA Rev-Exp Region 8'!$Q$17-'MMA Rev-Exp Region 8'!$Q$15), 0)","v":{"v":0,"d":"0.0%"}},{"$f":"IFERROR(('MMA Rev-Exp Region 8'!$R$87-'MMA Rev-Exp Region 8'!$R$76)/('MMA Rev-Exp Region 8'!$R$17-'MMA Rev-Exp Region 8'!$R$15), 0)","v":{"v":0,"d":"0.0%"}},{"$f":"IFERROR(('MMA Rev-Exp Region 8'!$S$87-'MMA Rev-Exp Region 8'!$S$76)/('MMA Rev-Exp Region 8'!$S$17-'MMA Rev-Exp Region 8'!$S$15), 0)","v":{"v":0,"d":"0.0%"}},{"$f":"IFERROR(('MMA Rev-Exp Region 8'!$T$87-'MMA Rev-Exp Region 8'!$T$76)/('MMA Rev-Exp Region 8'!$T$17-'MMA Rev-Exp Region 8'!$T$15), 0)","v":{"v":0,"d":"0.0%"}},{"$f":"IFERROR(('MMA Rev-Exp Region 8'!$U$87-'MMA Rev-Exp Region 8'!$U$76)/('MMA Rev-Exp Region 8'!$U$17-'MMA Rev-Exp Region 8'!$U$15), 0)","v":{"v":0,"d":"0.0%"}},{"$f":"IFERROR(('MMA Rev-Exp Region 8'!$V$87-'MMA Rev-Exp Region 8'!$V$76)/('MMA Rev-Exp Region 8'!$V$17-'MMA Rev-Exp Region 8'!$V$15), 0)","v":{"v":0,"d":"0.0%"}},{"$f":"IFERROR(('MMA Rev-Exp Region 8'!$W$87-'MMA Rev-Exp Region 8'!$W$76)/('MMA Rev-Exp Region 8'!$W$17-'MMA Rev-Exp Region 8'!$W$15), 0)","v":{"v":0,"d":"0.0%"}},{"$f":"IFERROR(('MMA Rev-Exp Region 8'!$X$87-'MMA Rev-Exp Region 8'!$X$76)/('MMA Rev-Exp Region 8'!$X$17-'MMA Rev-Exp Region 8'!$X$15), 0)","v":{"v":0,"d":"0.0%"}},{"$f":"IFERROR(('MMA Rev-Exp Region 8'!$Y$87-'MMA Rev-Exp Region 8'!$Y$76)/('MMA Rev-Exp Region 8'!$Y$17-'MMA Rev-Exp Region 8'!$Y$15), 0)","v":{"v":0,"d":"0.0%"}}]
["MMA",null,null,{"$f":"Jurat!I$1","v":0},{"$f":"Jurat!D$33","v":"00:00:00"},"2017-09-30","MLR","Quarter","Region 8",{"$f":"IFERROR(('MMA Rev-Exp Region 8'!$Z$87-'MMA Rev-Exp Region 8'!$Z$76)/('MMA Rev-Exp Region 8'!$Z$17-'MMA Rev-Exp Region 8'!$Z$15), 0)","v":{"v":0,"d":"0.0%"}},{"$f":"IFERROR(('MMA Rev-Exp Region 8'!$AA$87-'MMA Rev-Exp Region 8'!$AA$76)/('MMA Rev-Exp Region 8'!$AA$17-'MMA Rev-Exp Region 8'!$AA$15), 0)","v":{"v":0,"d":"0.0%"}},{"$f":"IFERROR(('MMA Rev-Exp Region 8'!$AB$87-'MMA Rev-Exp Region 8'!$AB$76)/('MMA Rev-Exp Region 8'!$AB$17-'MMA Rev-Exp Region 8'!$AB$15), 0)","v":{"v":0,"d":"0.0%"}},{"$f":"IFERROR(('MMA Rev-Exp Region 8'!$AC$87-'MMA Rev-Exp Region 8'!$AC$76)/('MMA Rev-Exp Region 8'!$AC$17-'MMA Rev-Exp Region 8'!$AC$15), 0)","v":{"v":0,"d":"0.0%"}},{"$f":"IFERROR(('MMA Rev-Exp Region 8'!$AD$87-'MMA Rev-Exp Region 8'!$AD$76)/('MMA Rev-Exp Region 8'!$AD$17-'MMA Rev-Exp Region 8'!$AD$15), 0)","v":{"v":0,"d":"0.0%"}},{"$f":"IFERROR(('MMA Rev-Exp Region 8'!$AE$87-'MMA Rev-Exp Region 8'!$AE$76)/('MMA Rev-Exp Region 8'!$AE$17-'MMA Rev-Exp Region 8'!$AE$15), 0)","v":{"v":0,"d":"0.0%"}},{"$f":"IFERROR(('MMA Rev-Exp Region 8'!$AF$87-'MMA Rev-Exp Region 8'!$AF$76)/('MMA Rev-Exp Region 8'!$AF$17-'MMA Rev-Exp Region 8'!$AF$15), 0)","v":{"v":0,"d":"0.0%"}},{"$f":"IFERROR(('MMA Rev-Exp Region 8'!$AG$87-'MMA Rev-Exp Region 8'!$AG$76)/('MMA Rev-Exp Region 8'!$AG$17-'MMA Rev-Exp Region 8'!$AG$15), 0)","v":{"v":0,"d":"0.0%"}},{"$f":"IFERROR(('MMA Rev-Exp Region 8'!$AH$87-'MMA Rev-Exp Region 8'!$AH$76)/('MMA Rev-Exp Region 8'!$AH$17-'MMA Rev-Exp Region 8'!$AH$15), 0)","v":{"v":0,"d":"0.0%"}},{"$f":"IFERROR(('MMA Rev-Exp Region 8'!$AI$87-'MMA Rev-Exp Region 8'!$AI$76)/('MMA Rev-Exp Region 8'!$AI$17-'MMA Rev-Exp Region 8'!$AI$15), 0)","v":{"v":0,"d":"0.0%"}},{"$f":"IFERROR(('MMA Rev-Exp Region 8'!$AJ$87-'MMA Rev-Exp Region 8'!$AJ$76)/('MMA Rev-Exp Region 8'!$AJ$17-'MMA Rev-Exp Region 8'!$AJ$15), 0)","v":{"v":0,"d":"0.0%"}}]
["MMA",null,null,{"$f":"Jurat!I$1","v":0},{"$f":"Jurat!D$33","v":"00:00:00"},"2017-12-31","MLR","Quarter","Region 8",{"$f":"IFERROR(('MMA Rev-Exp Region 8'!$AK$87-'MMA Rev-Exp Region 8'!$AK$76)/('MMA Rev-Exp Region 8'!$AK$17-'MMA Rev-Exp Region 8'!$AK$15), 0)","v":{"v":0,"d":"0.0%"}},{"$f":"IFERROR(('MMA Rev-Exp Region 8'!$AL$87-'MMA Rev-Exp Region 8'!$AL$76)/('MMA Rev-Exp Region 8'!$AL$17-'MMA Rev-Exp Region 8'!$AL$15), 0)","v":{"v":0,"d":"0.0%"}},{"$f":"IFERROR(('MMA Rev-Exp Region 8'!$AM$87-'MMA Rev-Exp Region 8'!$AM$76)/('MMA Rev-Exp Region 8'!$AM$17-'MMA Rev-Exp Region 8'!$AM$15), 0)","v":{"v":0,"d":"0.0%"}},{"$f":"IFERROR(('MMA Rev-Exp Region 8'!$AN$87-'MMA Rev-Exp Region 8'!$AN$76)/('MMA Rev-Exp Region 8'!$AN$17-'MMA Rev-Exp Region 8'!$AN$15), 0)","v":{"v":0,"d":"0.0%"}},{"$f":"IFERROR(('MMA Rev-Exp Region 8'!$AO$87-'MMA Rev-Exp Region 8'!$AO$76)/('MMA Rev-Exp Region 8'!$AO$17-'MMA Rev-Exp Region 8'!$AO$15), 0)","v":{"v":0,"d":"0.0%"}},{"$f":"IFERROR(('MMA Rev-Exp Region 8'!$AP$87-'MMA Rev-Exp Region 8'!$AP$76)/('MMA Rev-Exp Region 8'!$AP$17-'MMA Rev-Exp Region 8'!$AP$15), 0)","v":{"v":0,"d":"0.0%"}},{"$f":"IFERROR(('MMA Rev-Exp Region 8'!$AQ$87-'MMA Rev-Exp Region 8'!$AQ$76)/('MMA Rev-Exp Region 8'!$AQ$17-'MMA Rev-Exp Region 8'!$AQ$15), 0)","v":{"v":0,"d":"0.0%"}},{"$f":"IFERROR(('MMA Rev-Exp Region 8'!$AR$87-'MMA Rev-Exp Region 8'!$AR$76)/('MMA Rev-Exp Region 8'!$AR$17-'MMA Rev-Exp Region 8'!$AR$15), 0)","v":{"v":0,"d":"0.0%"}},{"$f":"IFERROR(('MMA Rev-Exp Region 8'!$AS$87-'MMA Rev-Exp Region 8'!$AS$76)/('MMA Rev-Exp Region 8'!$AS$17-'MMA Rev-Exp Region 8'!$AS$15), 0)","v":{"v":0,"d":"0.0%"}},{"$f":"IFERROR(('MMA Rev-Exp Region 8'!$AT$87-'MMA Rev-Exp Region 8'!$AT$76)/('MMA Rev-Exp Region 8'!$AT$17-'MMA Rev-Exp Region 8'!$AT$15), 0)","v":{"v":0,"d":"0.0%"}},{"$f":"IFERROR(('MMA Rev-Exp Region 8'!$AU$87-'MMA Rev-Exp Region 8'!$AU$76)/('MMA Rev-Exp Region 8'!$AU$17-'MMA Rev-Exp Region 8'!$AU$15), 0)","v":{"v":0,"d":"0.0%"}}]
["MMA",null,null,{"$f":"Jurat!I$1","v":0},{"$f":"Jurat!D$33","v":"00:00:00"},{"$f":"E126","v":"00:00:00"},"MLR","YTD","Region 8",{"$f":"IFERROR(('MMA Rev-Exp Region 8'!$AW$87-'MMA Rev-Exp Region 8'!$AW$76)/('MMA Rev-Exp Region 8'!$AW$17-'MMA Rev-Exp Region 8'!$AW$15), 0)","v":{"v":0,"d":"0.0%"}},{"$f":"IFERROR(('MMA Rev-Exp Region 8'!$AX$87-'MMA Rev-Exp Region 8'!$AX$76)/('MMA Rev-Exp Region 8'!$AX$17-'MMA Rev-Exp Region 8'!$AX$15), 0)","v":{"v":0,"d":"0.0%"}},{"$f":"IFERROR(('MMA Rev-Exp Region 8'!$AY$87-'MMA Rev-Exp Region 8'!$AY$76)/('MMA Rev-Exp Region 8'!$AY$17-'MMA Rev-Exp Region 8'!$AY$15), 0)","v":{"v":0,"d":"0.0%"}},{"$f":"IFERROR(('MMA Rev-Exp Region 8'!$AZ$87-'MMA Rev-Exp Region 8'!$AZ$76)/('MMA Rev-Exp Region 8'!$AZ$17-'MMA Rev-Exp Region 8'!$AZ$15), 0)","v":{"v":0,"d":"0.0%"}},{"$f":"IFERROR(('MMA Rev-Exp Region 8'!$BA$87-'MMA Rev-Exp Region 8'!$BA$76)/('MMA Rev-Exp Region 8'!$BA$17-'MMA Rev-Exp Region 8'!$BA$15), 0)","v":{"v":0,"d":"0.0%"}},{"$f":"IFERROR(('MMA Rev-Exp Region 8'!$BB$87-'MMA Rev-Exp Region 8'!$BB$76)/('MMA Rev-Exp Region 8'!$BB$17-'MMA Rev-Exp Region 8'!$BB$15), 0)","v":{"v":0,"d":"0.0%"}},{"$f":"IFERROR(('MMA Rev-Exp Region 8'!$BC$87-'MMA Rev-Exp Region 8'!$BC$76)/('MMA Rev-Exp Region 8'!$BC$17-'MMA Rev-Exp Region 8'!$BC$15), 0)","v":{"v":0,"d":"0.0%"}},{"$f":"IFERROR(('MMA Rev-Exp Region 8'!$BD$87-'MMA Rev-Exp Region 8'!$BD$76)/('MMA Rev-Exp Region 8'!$BD$17-'MMA Rev-Exp Region 8'!$BD$15), 0)","v":{"v":0,"d":"0.0%"}},{"$f":"IFERROR(('MMA Rev-Exp Region 8'!$BE$87-'MMA Rev-Exp Region 8'!$BE$76)/('MMA Rev-Exp Region 8'!$BE$17-'MMA Rev-Exp Region 8'!$BE$15), 0)","v":{"v":0,"d":"0.0%"}},{"$f":"IFERROR(('MMA Rev-Exp Region 8'!$BF$87-'MMA Rev-Exp Region 8'!$BF$76)/('MMA Rev-Exp Region 8'!$BF$17-'MMA Rev-Exp Region 8'!$BF$15), 0)","v":{"v":0,"d":"0.0%"}},{"$f":"IFERROR(('MMA Rev-Exp Region 8'!$BG$87-'MMA Rev-Exp Region 8'!$BG$76)/('MMA Rev-Exp Region 8'!$BG$17-'MMA Rev-Exp Region 8'!$BG$15), 0)","v":{"v":0,"d":"0.0%"}}]
["MMA",null,null,{"$f":"Jurat!I$1","v":0},{"$f":"Jurat!D$33","v":"00:00:00"},"2017-03-31","Admin","Quarter","Region 8",{"$f":"IFERROR('MMA Rev-Exp Region 8'!$D$96/('MMA Rev-Exp Region 8'!$D$17-'MMA Rev-Exp Region 8'!$D$15), 0)","v":{"v":0,"d":"0.0%"}}]
["MMA",null,null,{"$f":"Jurat!I$1","v":0},{"$f":"Jurat!D$33","v":"00:00:00"},"2017-06-30","Admin","Quarter","Region 8",{"$f":"IFERROR('MMA Rev-Exp Region 8'!$O$96/('MMA Rev-Exp Region 8'!$O$17-'MMA Rev-Exp Region 8'!$O$15), 0)","v":{"v":0,"d":"0.0%"}}]
["MMA",null,null,{"$f":"Jurat!I$1","v":0},{"$f":"Jurat!D$33","v":"00:00:00"},"2017-09-30","Admin","Quarter","Region 8",{"$f":"IFERROR('MMA Rev-Exp Region 8'!$Z$96/('MMA Rev-Exp Region 8'!$Z$17-'MMA Rev-Exp Region 8'!$Z$15), 0)","v":{"v":0,"d":"0.0%"}}]
["MMA",null,null,{"$f":"Jurat!I$1","v":0},{"$f":"Jurat!D$33","v":"00:00:00"},"2017-12-31","Admin","Quarter","Region 8",{"$f":"IFERROR('MMA Rev-Exp Region 8'!$AK$96/('MMA Rev-Exp Region 8'!$AK$17-'MMA Rev-Exp Region 8'!$AK$15), 0)","v":{"v":0,"d":"0.0%"}}]
["MMA",null,null,{"$f":"Jurat!I$1","v":0},{"$f":"Jurat!D$33","v":"00:00:00"},{"$f":"E131","v":"00:00:00"},"Admin","YTD","Region 8",{"$f":"IFERROR('MMA Rev-Exp Region 8'!$AW$96/('MMA Rev-Exp Region 8'!$AW$17-'MMA Rev-Exp Region 8'!$AW$15), 0)","v":{"v":0,"d":"0.0%"}}]
["MMA",null,null,{"$f":"Jurat!I$1","v":0},{"$f":"Jurat!D$33","v":"00:00:00"},"2017-03-31","Margin","Quarter","Region 8",{"$f":"IFERROR(('MMA Rev-Exp Region 8'!$D$105-'MMA Rev-Exp Region 8'!$D$15+'MMA Rev-Exp Region 8'!$D$99)/('MMA Rev-Exp Region 8'!$D$17-'MMA Rev-Exp Region 8'!$D$15), 0)","v":{"v":0,"d":"0.0%"}}]
["MMA",null,null,{"$f":"Jurat!I$1","v":0},{"$f":"Jurat!D$33","v":"00:00:00"},"2017-06-30","Margin","Quarter","Region 8",{"$f":"IFERROR(('MMA Rev-Exp Region 8'!$O$105-'MMA Rev-Exp Region 8'!$O$15+'MMA Rev-Exp Region 8'!$O$99)/('MMA Rev-Exp Region 8'!$O$17-'MMA Rev-Exp Region 8'!$O$15), 0)","v":{"v":0,"d":"0.0%"}}]
["MMA",null,null,{"$f":"Jurat!I$1","v":0},{"$f":"Jurat!D$33","v":"00:00:00"},"2017-09-30","Margin","Quarter","Region 8",{"$f":"IFERROR(('MMA Rev-Exp Region 8'!$Z$105-'MMA Rev-Exp Region 8'!$Z$15+'MMA Rev-Exp Region 8'!$Z$99)/('MMA Rev-Exp Region 8'!$Z$17-'MMA Rev-Exp Region 8'!$Z$15), 0)","v":{"v":0,"d":"0.0%"}}]
["MMA",null,null,{"$f":"Jurat!I$1","v":0},{"$f":"Jurat!D$33","v":"00:00:00"},"2017-12-31","Margin","Quarter","Region 8",{"$f":"IFERROR(('MMA Rev-Exp Region 8'!$AK$105-'MMA Rev-Exp Region 8'!$AK$15+'MMA Rev-Exp Region 8'!$AK$99)/('MMA Rev-Exp Region 8'!$AK$17-'MMA Rev-Exp Region 8'!$AK$15), 0)","v":{"v":0,"d":"0.0%"}}]
["MMA",null,null,{"$f":"Jurat!I$1","v":0},{"$f":"Jurat!D$33","v":"00:00:00"},{"$f":"E136","v":"00:00:00"},"Margin","YTD","Region 8",{"$f":"IFERROR(('MMA Rev-Exp Region 8'!$AW$105-'MMA Rev-Exp Region 8'!$AW$15+'MMA Rev-Exp Region 8'!$AW$99)/('MMA Rev-Exp Region 8'!$AW$17-'MMA Rev-Exp Region 8'!$AW$15), 0)","v":{"v":0,"d":"0.0%"}}]
["MMA",null,null,{"$f":"Jurat!I$1","v":0},{"$f":"Jurat!D$33","v":"00:00:00"},"2017-03-31","MLR","Quarter","Region 9",{"$f":"IFERROR(('MMA Rev-Exp Region 9'!D$87-'MMA Rev-Exp Region 9'!D$76)/('MMA Rev-Exp Region 9'!D$17-'MMA Rev-Exp Region 9'!D$15), 0)","v":{"v":0,"d":"0.0%"}},{"$f":"IFERROR(('MMA Rev-Exp Region 9'!E$87-'MMA Rev-Exp Region 9'!E$76)/('MMA Rev-Exp Region 9'!E$17-'MMA Rev-Exp Region 9'!E$15), 0)","v":{"v":0,"d":"0.0%"}},{"$f":"IFERROR(('MMA Rev-Exp Region 9'!F$87-'MMA Rev-Exp Region 9'!F$76)/('MMA Rev-Exp Region 9'!F$17-'MMA Rev-Exp Region 9'!F$15), 0)","v":{"v":0,"d":"0.0%"}},{"$f":"IFERROR(('MMA Rev-Exp Region 9'!G$87-'MMA Rev-Exp Region 9'!G$76)/('MMA Rev-Exp Region 9'!G$17-'MMA Rev-Exp Region 9'!G$15), 0)","v":{"v":0,"d":"0.0%"}},{"$f":"IFERROR(('MMA Rev-Exp Region 9'!H$87-'MMA Rev-Exp Region 9'!H$76)/('MMA Rev-Exp Region 9'!H$17-'MMA Rev-Exp Region 9'!H$15), 0)","v":{"v":0,"d":"0.0%"}},{"$f":"IFERROR(('MMA Rev-Exp Region 9'!I$87-'MMA Rev-Exp Region 9'!I$76)/('MMA Rev-Exp Region 9'!I$17-'MMA Rev-Exp Region 9'!I$15), 0)","v":{"v":0,"d":"0.0%"}},{"$f":"IFERROR(('MMA Rev-Exp Region 9'!J$87-'MMA Rev-Exp Region 9'!J$76)/('MMA Rev-Exp Region 9'!J$17-'MMA Rev-Exp Region 9'!J$15), 0)","v":{"v":0,"d":"0.0%"}},{"$f":"IFERROR(('MMA Rev-Exp Region 9'!K$87-'MMA Rev-Exp Region 9'!K$76)/('MMA Rev-Exp Region 9'!K$17-'MMA Rev-Exp Region 9'!K$15), 0)","v":{"v":0,"d":"0.0%"}},{"$f":"IFERROR(('MMA Rev-Exp Region 9'!L$87-'MMA Rev-Exp Region 9'!L$76)/('MMA Rev-Exp Region 9'!L$17-'MMA Rev-Exp Region 9'!L$15), 0)","v":{"v":0,"d":"0.0%"}},{"$f":"IFERROR(('MMA Rev-Exp Region 9'!M$87-'MMA Rev-Exp Region 9'!M$76)/('MMA Rev-Exp Region 9'!M$17-'MMA Rev-Exp Region 9'!M$15), 0)","v":{"v":0,"d":"0.0%"}},{"$f":"IFERROR(('MMA Rev-Exp Region 9'!N$87-'MMA Rev-Exp Region 9'!N$76)/('MMA Rev-Exp Region 9'!N$17-'MMA Rev-Exp Region 9'!N$15), 0)","v":{"v":0,"d":"0.0%"}}]
["MMA",null,null,{"$f":"Jurat!I$1","v":0},{"$f":"Jurat!D$33","v":"00:00:00"},"2017-06-30","MLR","Quarter","Region 9",{"$f":"IFERROR(('MMA Rev-Exp Region 9'!O$87-'MMA Rev-Exp Region 9'!O$76)/('MMA Rev-Exp Region 9'!O$17-'MMA Rev-Exp Region 9'!O$15), 0)","v":{"v":0,"d":"0.0%"}},{"$f":"IFERROR(('MMA Rev-Exp Region 9'!$P$87-'MMA Rev-Exp Region 9'!$P$76)/('MMA Rev-Exp Region 9'!$P$17-'MMA Rev-Exp Region 9'!$P$15), 0)","v":{"v":0,"d":"0.0%"}},{"$f":"IFERROR(('MMA Rev-Exp Region 9'!$Q$87-'MMA Rev-Exp Region 9'!$Q$76)/('MMA Rev-Exp Region 9'!$Q$17-'MMA Rev-Exp Region 9'!$Q$15), 0)","v":{"v":0,"d":"0.0%"}},{"$f":"IFERROR(('MMA Rev-Exp Region 9'!$R$87-'MMA Rev-Exp Region 9'!$R$76)/('MMA Rev-Exp Region 9'!$R$17-'MMA Rev-Exp Region 9'!$R$15), 0)","v":{"v":0,"d":"0.0%"}},{"$f":"IFERROR(('MMA Rev-Exp Region 9'!$S$87-'MMA Rev-Exp Region 9'!$S$76)/('MMA Rev-Exp Region 9'!$S$17-'MMA Rev-Exp Region 9'!$S$15), 0)","v":{"v":0,"d":"0.0%"}},{"$f":"IFERROR(('MMA Rev-Exp Region 9'!$T$87-'MMA Rev-Exp Region 9'!$T$76)/('MMA Rev-Exp Region 9'!$T$17-'MMA Rev-Exp Region 9'!$T$15), 0)","v":{"v":0,"d":"0.0%"}},{"$f":"IFERROR(('MMA Rev-Exp Region 9'!$U$87-'MMA Rev-Exp Region 9'!$U$76)/('MMA Rev-Exp Region 9'!$U$17-'MMA Rev-Exp Region 9'!$U$15), 0)","v":{"v":0,"d":"0.0%"}},{"$f":"IFERROR(('MMA Rev-Exp Region 9'!$V$87-'MMA Rev-Exp Region 9'!$V$76)/('MMA Rev-Exp Region 9'!$V$17-'MMA Rev-Exp Region 9'!$V$15), 0)","v":{"v":0,"d":"0.0%"}},{"$f":"IFERROR(('MMA Rev-Exp Region 9'!$W$87-'MMA Rev-Exp Region 9'!$W$76)/('MMA Rev-Exp Region 9'!$W$17-'MMA Rev-Exp Region 9'!$W$15), 0)","v":{"v":0,"d":"0.0%"}},{"$f":"IFERROR(('MMA Rev-Exp Region 9'!$X$87-'MMA Rev-Exp Region 9'!$X$76)/('MMA Rev-Exp Region 9'!$X$17-'MMA Rev-Exp Region 9'!$X$15), 0)","v":{"v":0,"d":"0.0%"}},{"$f":"IFERROR(('MMA Rev-Exp Region 9'!$Y$87-'MMA Rev-Exp Region 9'!$Y$76)/('MMA Rev-Exp Region 9'!$Y$17-'MMA Rev-Exp Region 9'!$Y$15), 0)","v":{"v":0,"d":"0.0%"}}]
["MMA",null,null,{"$f":"Jurat!I$1","v":0},{"$f":"Jurat!D$33","v":"00:00:00"},"2017-09-30","MLR","Quarter","Region 9",{"$f":"IFERROR(('MMA Rev-Exp Region 9'!$Z$87-'MMA Rev-Exp Region 9'!$Z$76)/('MMA Rev-Exp Region 9'!$Z$17-'MMA Rev-Exp Region 9'!$Z$15), 0)","v":{"v":0,"d":"0.0%"}},{"$f":"IFERROR(('MMA Rev-Exp Region 9'!$AA$87-'MMA Rev-Exp Region 9'!$AA$76)/('MMA Rev-Exp Region 9'!$AA$17-'MMA Rev-Exp Region 9'!$AA$15), 0)","v":{"v":0,"d":"0.0%"}},{"$f":"IFERROR(('MMA Rev-Exp Region 9'!$AB$87-'MMA Rev-Exp Region 9'!$AB$76)/('MMA Rev-Exp Region 9'!$AB$17-'MMA Rev-Exp Region 9'!$AB$15), 0)","v":{"v":0,"d":"0.0%"}},{"$f":"IFERROR(('MMA Rev-Exp Region 9'!$AC$87-'MMA Rev-Exp Region 9'!$AC$76)/('MMA Rev-Exp Region 9'!$AC$17-'MMA Rev-Exp Region 9'!$AC$15), 0)","v":{"v":0,"d":"0.0%"}},{"$f":"IFERROR(('MMA Rev-Exp Region 9'!$AD$87-'MMA Rev-Exp Region 9'!$AD$76)/('MMA Rev-Exp Region 9'!$AD$17-'MMA Rev-Exp Region 9'!$AD$15), 0)","v":{"v":0,"d":"0.0%"}},{"$f":"IFERROR(('MMA Rev-Exp Region 9'!$AE$87-'MMA Rev-Exp Region 9'!$AE$76)/('MMA Rev-Exp Region 9'!$AE$17-'MMA Rev-Exp Region 9'!$AE$15), 0)","v":{"v":0,"d":"0.0%"}},{"$f":"IFERROR(('MMA Rev-Exp Region 9'!$AF$87-'MMA Rev-Exp Region 9'!$AF$76)/('MMA Rev-Exp Region 9'!$AF$17-'MMA Rev-Exp Region 9'!$AF$15), 0)","v":{"v":0,"d":"0.0%"}},{"$f":"IFERROR(('MMA Rev-Exp Region 9'!$AG$87-'MMA Rev-Exp Region 9'!$AG$76)/('MMA Rev-Exp Region 9'!$AG$17-'MMA Rev-Exp Region 9'!$AG$15), 0)","v":{"v":0,"d":"0.0%"}},{"$f":"IFERROR(('MMA Rev-Exp Region 9'!$AH$87-'MMA Rev-Exp Region 9'!$AH$76)/('MMA Rev-Exp Region 9'!$AH$17-'MMA Rev-Exp Region 9'!$AH$15), 0)","v":{"v":0,"d":"0.0%"}},{"$f":"IFERROR(('MMA Rev-Exp Region 9'!$AI$87-'MMA Rev-Exp Region 9'!$AI$76)/('MMA Rev-Exp Region 9'!$AI$17-'MMA Rev-Exp Region 9'!$AI$15), 0)","v":{"v":0,"d":"0.0%"}},{"$f":"IFERROR(('MMA Rev-Exp Region 9'!$AJ$87-'MMA Rev-Exp Region 9'!$AJ$76)/('MMA Rev-Exp Region 9'!$AJ$17-'MMA Rev-Exp Region 9'!$AJ$15), 0)","v":{"v":0,"d":"0.0%"}}]
["MMA",null,null,{"$f":"Jurat!I$1","v":0},{"$f":"Jurat!D$33","v":"00:00:00"},"2017-12-31","MLR","Quarter","Region 9",{"$f":"IFERROR(('MMA Rev-Exp Region 9'!$AK$87-'MMA Rev-Exp Region 9'!$AK$76)/('MMA Rev-Exp Region 9'!$AK$17-'MMA Rev-Exp Region 9'!$AK$15), 0)","v":{"v":0,"d":"0.0%"}},{"$f":"IFERROR(('MMA Rev-Exp Region 9'!$AL$87-'MMA Rev-Exp Region 9'!$AL$76)/('MMA Rev-Exp Region 9'!$AL$17-'MMA Rev-Exp Region 9'!$AL$15), 0)","v":{"v":0,"d":"0.0%"}},{"$f":"IFERROR(('MMA Rev-Exp Region 9'!$AM$87-'MMA Rev-Exp Region 9'!$AM$76)/('MMA Rev-Exp Region 9'!$AM$17-'MMA Rev-Exp Region 9'!$AM$15), 0)","v":{"v":0,"d":"0.0%"}},{"$f":"IFERROR(('MMA Rev-Exp Region 9'!$AN$87-'MMA Rev-Exp Region 9'!$AN$76)/('MMA Rev-Exp Region 9'!$AN$17-'MMA Rev-Exp Region 9'!$AN$15), 0)","v":{"v":0,"d":"0.0%"}},{"$f":"IFERROR(('MMA Rev-Exp Region 9'!$AO$87-'MMA Rev-Exp Region 9'!$AO$76)/('MMA Rev-Exp Region 9'!$AO$17-'MMA Rev-Exp Region 9'!$AO$15), 0)","v":{"v":0,"d":"0.0%"}},{"$f":"IFERROR(('MMA Rev-Exp Region 9'!$AP$87-'MMA Rev-Exp Region 9'!$AP$76)/('MMA Rev-Exp Region 9'!$AP$17-'MMA Rev-Exp Region 9'!$AP$15), 0)","v":{"v":0,"d":"0.0%"}},{"$f":"IFERROR(('MMA Rev-Exp Region 9'!$AQ$87-'MMA Rev-Exp Region 9'!$AQ$76)/('MMA Rev-Exp Region 9'!$AQ$17-'MMA Rev-Exp Region 9'!$AQ$15), 0)","v":{"v":0,"d":"0.0%"}},{"$f":"IFERROR(('MMA Rev-Exp Region 9'!$AR$87-'MMA Rev-Exp Region 9'!$AR$76)/('MMA Rev-Exp Region 9'!$AR$17-'MMA Rev-Exp Region 9'!$AR$15), 0)","v":{"v":0,"d":"0.0%"}},{"$f":"IFERROR(('MMA Rev-Exp Region 9'!$AS$87-'MMA Rev-Exp Region 9'!$AS$76)/('MMA Rev-Exp Region 9'!$AS$17-'MMA Rev-Exp Region 9'!$AS$15), 0)","v":{"v":0,"d":"0.0%"}},{"$f":"IFERROR(('MMA Rev-Exp Region 9'!$AT$87-'MMA Rev-Exp Region 9'!$AT$76)/('MMA Rev-Exp Region 9'!$AT$17-'MMA Rev-Exp Region 9'!$AT$15), 0)","v":{"v":0,"d":"0.0%"}},{"$f":"IFERROR(('MMA Rev-Exp Region 9'!$AU$87-'MMA Rev-Exp Region 9'!$AU$76)/('MMA Rev-Exp Region 9'!$AU$17-'MMA Rev-Exp Region 9'!$AU$15), 0)","v":{"v":0,"d":"0.0%"}}]
["MMA",null,null,{"$f":"Jurat!I$1","v":0},{"$f":"Jurat!D$33","v":"00:00:00"},{"$f":"E141","v":"00:00:00"},"MLR","YTD","Region 9",{"$f":"IFERROR(('MMA Rev-Exp Region 9'!$AW$87-'MMA Rev-Exp Region 9'!$AW$76)/('MMA Rev-Exp Region 9'!$AW$17-'MMA Rev-Exp Region 9'!$AW$15), 0)","v":{"v":0,"d":"0.0%"}},{"$f":"IFERROR(('MMA Rev-Exp Region 9'!$AX$87-'MMA Rev-Exp Region 9'!$AX$76)/('MMA Rev-Exp Region 9'!$AX$17-'MMA Rev-Exp Region 9'!$AX$15), 0)","v":{"v":0,"d":"0.0%"}},{"$f":"IFERROR(('MMA Rev-Exp Region 9'!$AY$87-'MMA Rev-Exp Region 9'!$AY$76)/('MMA Rev-Exp Region 9'!$AY$17-'MMA Rev-Exp Region 9'!$AY$15), 0)","v":{"v":0,"d":"0.0%"}},{"$f":"IFERROR(('MMA Rev-Exp Region 9'!$AZ$87-'MMA Rev-Exp Region 9'!$AZ$76)/('MMA Rev-Exp Region 9'!$AZ$17-'MMA Rev-Exp Region 9'!$AZ$15), 0)","v":{"v":0,"d":"0.0%"}},{"$f":"IFERROR(('MMA Rev-Exp Region 9'!$BA$87-'MMA Rev-Exp Region 9'!$BA$76)/('MMA Rev-Exp Region 9'!$BA$17-'MMA Rev-Exp Region 9'!$BA$15), 0)","v":{"v":0,"d":"0.0%"}},{"$f":"IFERROR(('MMA Rev-Exp Region 9'!$BB$87-'MMA Rev-Exp Region 9'!$BB$76)/('MMA Rev-Exp Region 9'!$BB$17-'MMA Rev-Exp Region 9'!$BB$15), 0)","v":{"v":0,"d":"0.0%"}},{"$f":"IFERROR(('MMA Rev-Exp Region 9'!$BC$87-'MMA Rev-Exp Region 9'!$BC$76)/('MMA Rev-Exp Region 9'!$BC$17-'MMA Rev-Exp Region 9'!$BC$15), 0)","v":{"v":0,"d":"0.0%"}},{"$f":"IFERROR(('MMA Rev-Exp Region 9'!$BD$87-'MMA Rev-Exp Region 9'!$BD$76)/('MMA Rev-Exp Region 9'!$BD$17-'MMA Rev-Exp Region 9'!$BD$15), 0)","v":{"v":0,"d":"0.0%"}},{"$f":"IFERROR(('MMA Rev-Exp Region 9'!$BE$87-'MMA Rev-Exp Region 9'!$BE$76)/('MMA Rev-Exp Region 9'!$BE$17-'MMA Rev-Exp Region 9'!$BE$15), 0)","v":{"v":0,"d":"0.0%"}},{"$f":"IFERROR(('MMA Rev-Exp Region 9'!$BF$87-'MMA Rev-Exp Region 9'!$BF$76)/('MMA Rev-Exp Region 9'!$BF$17-'MMA Rev-Exp Region 9'!$BF$15), 0)","v":{"v":0,"d":"0.0%"}},{"$f":"IFERROR(('MMA Rev-Exp Region 9'!$BG$87-'MMA Rev-Exp Region 9'!$BG$76)/('MMA Rev-Exp Region 9'!$BG$17-'MMA Rev-Exp Region 9'!$BG$15), 0)","v":{"v":0,"d":"0.0%"}}]
["MMA",null,null,{"$f":"Jurat!I$1","v":0},{"$f":"Jurat!D$33","v":"00:00:00"},"2017-03-31","Admin","Quarter","Region 9",{"$f":"IFERROR('MMA Rev-Exp Region 9'!$D$96/('MMA Rev-Exp Region 9'!$D$17-'MMA Rev-Exp Region 9'!$D$15), 0)","v":{"v":0,"d":"0.0%"}}]
["MMA",null,null,{"$f":"Jurat!I$1","v":0},{"$f":"Jurat!D$33","v":"00:00:00"},"2017-06-30","Admin","Quarter","Region 9",{"$f":"IFERROR('MMA Rev-Exp Region 9'!$O$96/('MMA Rev-Exp Region 9'!$O$17-'MMA Rev-Exp Region 9'!$O$15), 0)","v":{"v":0,"d":"0.0%"}}]
["MMA",null,null,{"$f":"Jurat!I$1","v":0},{"$f":"Jurat!D$33","v":"00:00:00"},"2017-09-30","Admin","Quarter","Region 9",{"$f":"IFERROR('MMA Rev-Exp Region 9'!$Z$96/('MMA Rev-Exp Region 9'!$Z$17-'MMA Rev-Exp Region 9'!$Z$15), 0)","v":{"v":0,"d":"0.0%"}}]
["MMA",null,null,{"$f":"Jurat!I$1","v":0},{"$f":"Jurat!D$33","v":"00:00:00"},"2017-12-31","Admin","Quarter","Region 9",{"$f":"IFERROR('MMA Rev-Exp Region 9'!$AK$96/('MMA Rev-Exp Region 9'!$AK$17-'MMA Rev-Exp Region 9'!$AK$15), 0)","v":{"v":0,"d":"0.0%"}}]
["MMA",null,null,{"$f":"Jurat!I$1","v":0},{"$f":"Jurat!D$33","v":"00:00:00"},{"$f":"E146","v":"00:00:00"},"Admin","YTD","Region 9",{"$f":"IFERROR('MMA Rev-Exp Region 9'!$AW$96/('MMA Rev-Exp Region 9'!$AW$17-'MMA Rev-Exp Region 9'!$AW$15), 0)","v":{"v":0,"d":"0.0%"}}]
["MMA",null,null,{"$f":"Jurat!I$1","v":0},{"$f":"Jurat!D$33","v":"00:00:00"},"2017-03-31","Margin","Quarter","Region 9",{"$f":"IFERROR(('MMA Rev-Exp Region 9'!$D$105-'MMA Rev-Exp Region 9'!$D$15+'MMA Rev-Exp Region 9'!$D$99)/('MMA Rev-Exp Region 9'!$D$17-'MMA Rev-Exp Region 9'!$D$15), 0)","v":{"v":0,"d":"0.0%"}}]
["MMA",null,null,{"$f":"Jurat!I$1","v":0},{"$f":"Jurat!D$33","v":"00:00:00"},"2017-06-30","Margin","Quarter","Region 9",{"$f":"IFERROR(('MMA Rev-Exp Region 9'!$O$105-'MMA Rev-Exp Region 9'!$O$15+'MMA Rev-Exp Region 9'!$O$99)/('MMA Rev-Exp Region 9'!$O$17-'MMA Rev-Exp Region 9'!$O$15), 0)","v":{"v":0,"d":"0.0%"}}]
["MMA",null,null,{"$f":"Jurat!I$1","v":0},{"$f":"Jurat!D$33","v":"00:00:00"},"2017-09-30","Margin","Quarter","Region 9",{"$f":"IFERROR(('MMA Rev-Exp Region 9'!$Z$105-'MMA Rev-Exp Region 9'!$Z$15+'MMA Rev-Exp Region 9'!$Z$99)/('MMA Rev-Exp Region 9'!$Z$17-'MMA Rev-Exp Region 9'!$Z$15), 0)","v":{"v":0,"d":"0.0%"}}]
["MMA",null,null,{"$f":"Jurat!I$1","v":0},{"$f":"Jurat!D$33","v":"00:00:00"},"2017-12-31","Margin","Quarter","Region 9",{"$f":"IFERROR(('MMA Rev-Exp Region 9'!$AK$105-'MMA Rev-Exp Region 9'!$AK$15+'MMA Rev-Exp Region 9'!$AK$99)/('MMA Rev-Exp Region 9'!$AK$17-'MMA Rev-Exp Region 9'!$AK$15), 0)","v":{"v":0,"d":"0.0%"}}]
["MMA",null,null,{"$f":"Jurat!I$1","v":0},{"$f":"Jurat!D$33","v":"00:00:00"},{"$f":"E151","v":"00:00:00"},"Margin","YTD","Region 9",{"$f":"IFERROR(('MMA Rev-Exp Region 9'!$AW$105-'MMA Rev-Exp Region 9'!$AW$15+'MMA Rev-Exp Region 9'!$AW$99)/('MMA Rev-Exp Region 9'!$AW$17-'MMA Rev-Exp Region 9'!$AW$15), 0)","v":{"v":0,"d":"0.0%"}}]
["MMA",null,null,{"$f":"Jurat!I$1","v":0},{"$f":"Jurat!D$33","v":"00:00:00"},"2017-03-31","MLR","Quarter","Region 10",{"$f":"IFERROR(('MMA Rev-Exp Region 10'!D$87-'MMA Rev-Exp Region 10'!D$76)/('MMA Rev-Exp Region 10'!D$17-'MMA Rev-Exp Region 10'!D$15), 0)","v":{"v":0,"d":"0.0%"}},{"$f":"IFERROR(('MMA Rev-Exp Region 10'!E$87-'MMA Rev-Exp Region 10'!E$76)/('MMA Rev-Exp Region 10'!E$17-'MMA Rev-Exp Region 10'!E$15), 0)","v":{"v":0,"d":"0.0%"}},{"$f":"IFERROR(('MMA Rev-Exp Region 10'!F$87-'MMA Rev-Exp Region 10'!F$76)/('MMA Rev-Exp Region 10'!F$17-'MMA Rev-Exp Region 10'!F$15), 0)","v":{"v":0,"d":"0.0%"}},{"$f":"IFERROR(('MMA Rev-Exp Region 10'!G$87-'MMA Rev-Exp Region 10'!G$76)/('MMA Rev-Exp Region 10'!G$17-'MMA Rev-Exp Region 10'!G$15), 0)","v":{"v":0,"d":"0.0%"}},{"$f":"IFERROR(('MMA Rev-Exp Region 10'!H$87-'MMA Rev-Exp Region 10'!H$76)/('MMA Rev-Exp Region 10'!H$17-'MMA Rev-Exp Region 10'!H$15), 0)","v":{"v":0,"d":"0.0%"}},{"$f":"IFERROR(('MMA Rev-Exp Region 10'!I$87-'MMA Rev-Exp Region 10'!I$76)/('MMA Rev-Exp Region 10'!I$17-'MMA Rev-Exp Region 10'!I$15), 0)","v":{"v":0,"d":"0.0%"}},{"$f":"IFERROR(('MMA Rev-Exp Region 10'!J$87-'MMA Rev-Exp Region 10'!J$76)/('MMA Rev-Exp Region 10'!J$17-'MMA Rev-Exp Region 10'!J$15), 0)","v":{"v":0,"d":"0.0%"}},{"$f":"IFERROR(('MMA Rev-Exp Region 10'!K$87-'MMA Rev-Exp Region 10'!K$76)/('MMA Rev-Exp Region 10'!K$17-'MMA Rev-Exp Region 10'!K$15), 0)","v":{"v":0,"d":"0.0%"}},{"$f":"IFERROR(('MMA Rev-Exp Region 10'!L$87-'MMA Rev-Exp Region 10'!L$76)/('MMA Rev-Exp Region 10'!L$17-'MMA Rev-Exp Region 10'!L$15), 0)","v":{"v":0,"d":"0.0%"}},{"$f":"IFERROR(('MMA Rev-Exp Region 10'!M$87-'MMA Rev-Exp Region 10'!M$76)/('MMA Rev-Exp Region 10'!M$17-'MMA Rev-Exp Region 10'!M$15), 0)","v":{"v":0,"d":"0.0%"}},{"$f":"IFERROR(('MMA Rev-Exp Region 10'!N$87-'MMA Rev-Exp Region 10'!N$76)/('MMA Rev-Exp Region 10'!N$17-'MMA Rev-Exp Region 10'!N$15), 0)","v":{"v":0,"d":"0.0%"}}]
["MMA",null,null,{"$f":"Jurat!I$1","v":0},{"$f":"Jurat!D$33","v":"00:00:00"},"2017-06-30","MLR","Quarter","Region 10",{"$f":"IFERROR(('MMA Rev-Exp Region 10'!O$87-'MMA Rev-Exp Region 10'!O$76)/('MMA Rev-Exp Region 10'!O$17-'MMA Rev-Exp Region 10'!O$15), 0)","v":{"v":0,"d":"0.0%"}},{"$f":"IFERROR(('MMA Rev-Exp Region 10'!$P$87-'MMA Rev-Exp Region 10'!$P$76)/('MMA Rev-Exp Region 10'!$P$17-'MMA Rev-Exp Region 10'!$P$15), 0)","v":{"v":0,"d":"0.0%"}},{"$f":"IFERROR(('MMA Rev-Exp Region 10'!$Q$87-'MMA Rev-Exp Region 10'!$Q$76)/('MMA Rev-Exp Region 10'!$Q$17-'MMA Rev-Exp Region 10'!$Q$15), 0)","v":{"v":0,"d":"0.0%"}},{"$f":"IFERROR(('MMA Rev-Exp Region 10'!$R$87-'MMA Rev-Exp Region 10'!$R$76)/('MMA Rev-Exp Region 10'!$R$17-'MMA Rev-Exp Region 10'!$R$15), 0)","v":{"v":0,"d":"0.0%"}},{"$f":"IFERROR(('MMA Rev-Exp Region 10'!$S$87-'MMA Rev-Exp Region 10'!$S$76)/('MMA Rev-Exp Region 10'!$S$17-'MMA Rev-Exp Region 10'!$S$15), 0)","v":{"v":0,"d":"0.0%"}},{"$f":"IFERROR(('MMA Rev-Exp Region 10'!$T$87-'MMA Rev-Exp Region 10'!$T$76)/('MMA Rev-Exp Region 10'!$T$17-'MMA Rev-Exp Region 10'!$T$15), 0)","v":{"v":0,"d":"0.0%"}},{"$f":"IFERROR(('MMA Rev-Exp Region 10'!$U$87-'MMA Rev-Exp Region 10'!$U$76)/('MMA Rev-Exp Region 10'!$U$17-'MMA Rev-Exp Region 10'!$U$15), 0)","v":{"v":0,"d":"0.0%"}},{"$f":"IFERROR(('MMA Rev-Exp Region 10'!$V$87-'MMA Rev-Exp Region 10'!$V$76)/('MMA Rev-Exp Region 10'!$V$17-'MMA Rev-Exp Region 10'!$V$15), 0)","v":{"v":0,"d":"0.0%"}},{"$f":"IFERROR(('MMA Rev-Exp Region 10'!$W$87-'MMA Rev-Exp Region 10'!$W$76)/('MMA Rev-Exp Region 10'!$W$17-'MMA Rev-Exp Region 10'!$W$15), 0)","v":{"v":0,"d":"0.0%"}},{"$f":"IFERROR(('MMA Rev-Exp Region 10'!$X$87-'MMA Rev-Exp Region 10'!$X$76)/('MMA Rev-Exp Region 10'!$X$17-'MMA Rev-Exp Region 10'!$X$15), 0)","v":{"v":0,"d":"0.0%"}},{"$f":"IFERROR(('MMA Rev-Exp Region 10'!$Y$87-'MMA Rev-Exp Region 10'!$Y$76)/('MMA Rev-Exp Region 10'!$Y$17-'MMA Rev-Exp Region 10'!$Y$15), 0)","v":{"v":0,"d":"0.0%"}}]
["MMA",null,null,{"$f":"Jurat!I$1","v":0},{"$f":"Jurat!D$33","v":"00:00:00"},"2017-09-30","MLR","Quarter","Region 10",{"$f":"IFERROR(('MMA Rev-Exp Region 10'!$Z$87-'MMA Rev-Exp Region 10'!$Z$76)/('MMA Rev-Exp Region 10'!$Z$17-'MMA Rev-Exp Region 10'!$Z$15), 0)","v":{"v":0,"d":"0.0%"}},{"$f":"IFERROR(('MMA Rev-Exp Region 10'!$AA$87-'MMA Rev-Exp Region 10'!$AA$76)/('MMA Rev-Exp Region 10'!$AA$17-'MMA Rev-Exp Region 10'!$AA$15), 0)","v":{"v":0,"d":"0.0%"}},{"$f":"IFERROR(('MMA Rev-Exp Region 10'!$AB$87-'MMA Rev-Exp Region 10'!$AB$76)/('MMA Rev-Exp Region 10'!$AB$17-'MMA Rev-Exp Region 10'!$AB$15), 0)","v":{"v":0,"d":"0.0%"}},{"$f":"IFERROR(('MMA Rev-Exp Region 10'!$AC$87-'MMA Rev-Exp Region 10'!$AC$76)/('MMA Rev-Exp Region 10'!$AC$17-'MMA Rev-Exp Region 10'!$AC$15), 0)","v":{"v":0,"d":"0.0%"}},{"$f":"IFERROR(('MMA Rev-Exp Region 10'!$AD$87-'MMA Rev-Exp Region 10'!$AD$76)/('MMA Rev-Exp Region 10'!$AD$17-'MMA Rev-Exp Region 10'!$AD$15), 0)","v":{"v":0,"d":"0.0%"}},{"$f":"IFERROR(('MMA Rev-Exp Region 10'!$AE$87-'MMA Rev-Exp Region 10'!$AE$76)/('MMA Rev-Exp Region 10'!$AE$17-'MMA Rev-Exp Region 10'!$AE$15), 0)","v":{"v":0,"d":"0.0%"}},{"$f":"IFERROR(('MMA Rev-Exp Region 10'!$AF$87-'MMA Rev-Exp Region 10'!$AF$76)/('MMA Rev-Exp Region 10'!$AF$17-'MMA Rev-Exp Region 10'!$AF$15), 0)","v":{"v":0,"d":"0.0%"}},{"$f":"IFERROR(('MMA Rev-Exp Region 10'!$AG$87-'MMA Rev-Exp Region 10'!$AG$76)/('MMA Rev-Exp Region 10'!$AG$17-'MMA Rev-Exp Region 10'!$AG$15), 0)","v":{"v":0,"d":"0.0%"}},{"$f":"IFERROR(('MMA Rev-Exp Region 10'!$AH$87-'MMA Rev-Exp Region 10'!$AH$76)/('MMA Rev-Exp Region 10'!$AH$17-'MMA Rev-Exp Region 10'!$AH$15), 0)","v":{"v":0,"d":"0.0%"}},{"$f":"IFERROR(('MMA Rev-Exp Region 10'!$AI$87-'MMA Rev-Exp Region 10'!$AI$76)/('MMA Rev-Exp Region 10'!$AI$17-'MMA Rev-Exp Region 10'!$AI$15), 0)","v":{"v":0,"d":"0.0%"}},{"$f":"IFERROR(('MMA Rev-Exp Region 10'!$AJ$87-'MMA Rev-Exp Region 10'!$AJ$76)/('MMA Rev-Exp Region 10'!$AJ$17-'MMA Rev-Exp Region 10'!$AJ$15), 0)","v":{"v":0,"d":"0.0%"}}]
["MMA",null,null,{"$f":"Jurat!I$1","v":0},{"$f":"Jurat!D$33","v":"00:00:00"},"2017-12-31","MLR","Quarter","Region 10",{"$f":"IFERROR(('MMA Rev-Exp Region 10'!$AK$87-'MMA Rev-Exp Region 10'!$AK$76)/('MMA Rev-Exp Region 10'!$AK$17-'MMA Rev-Exp Region 10'!$AK$15), 0)","v":{"v":0,"d":"0.0%"}},{"$f":"IFERROR(('MMA Rev-Exp Region 10'!$AL$87-'MMA Rev-Exp Region 10'!$AL$76)/('MMA Rev-Exp Region 10'!$AL$17-'MMA Rev-Exp Region 10'!$AL$15), 0)","v":{"v":0,"d":"0.0%"}},{"$f":"IFERROR(('MMA Rev-Exp Region 10'!$AM$87-'MMA Rev-Exp Region 10'!$AM$76)/('MMA Rev-Exp Region 10'!$AM$17-'MMA Rev-Exp Region 10'!$AM$15), 0)","v":{"v":0,"d":"0.0%"}},{"$f":"IFERROR(('MMA Rev-Exp Region 10'!$AN$87-'MMA Rev-Exp Region 10'!$AN$76)/('MMA Rev-Exp Region 10'!$AN$17-'MMA Rev-Exp Region 10'!$AN$15), 0)","v":{"v":0,"d":"0.0%"}},{"$f":"IFERROR(('MMA Rev-Exp Region 10'!$AO$87-'MMA Rev-Exp Region 10'!$AO$76)/('MMA Rev-Exp Region 10'!$AO$17-'MMA Rev-Exp Region 10'!$AO$15), 0)","v":{"v":0,"d":"0.0%"}},{"$f":"IFERROR(('MMA Rev-Exp Region 10'!$AP$87-'MMA Rev-Exp Region 10'!$AP$76)/('MMA Rev-Exp Region 10'!$AP$17-'MMA Rev-Exp Region 10'!$AP$15), 0)","v":{"v":0,"d":"0.0%"}},{"$f":"IFERROR(('MMA Rev-Exp Region 10'!$AQ$87-'MMA Rev-Exp Region 10'!$AQ$76)/('MMA Rev-Exp Region 10'!$AQ$17-'MMA Rev-Exp Region 10'!$AQ$15), 0)","v":{"v":0,"d":"0.0%"}},{"$f":"IFERROR(('MMA Rev-Exp Region 10'!$AR$87-'MMA Rev-Exp Region 10'!$AR$76)/('MMA Rev-Exp Region 10'!$AR$17-'MMA Rev-Exp Region 10'!$AR$15), 0)","v":{"v":0,"d":"0.0%"}},{"$f":"IFERROR(('MMA Rev-Exp Region 10'!$AS$87-'MMA Rev-Exp Region 10'!$AS$76)/('MMA Rev-Exp Region 10'!$AS$17-'MMA Rev-Exp Region 10'!$AS$15), 0)","v":{"v":0,"d":"0.0%"}},{"$f":"IFERROR(('MMA Rev-Exp Region 10'!$AT$87-'MMA Rev-Exp Region 10'!$AT$76)/('MMA Rev-Exp Region 10'!$AT$17-'MMA Rev-Exp Region 10'!$AT$15), 0)","v":{"v":0,"d":"0.0%"}},{"$f":"IFERROR(('MMA Rev-Exp Region 10'!$AU$87-'MMA Rev-Exp Region 10'!$AU$76)/('MMA Rev-Exp Region 10'!$AU$17-'MMA Rev-Exp Region 10'!$AU$15), 0)","v":{"v":0,"d":"0.0%"}}]
["MMA",null,null,{"$f":"Jurat!I$1","v":0},{"$f":"Jurat!D$33","v":"00:00:00"},{"$f":"E156","v":"00:00:00"},"MLR","YTD","Region 10",{"$f":"IFERROR(('MMA Rev-Exp Region 10'!$AW$87-'MMA Rev-Exp Region 10'!$AW$76)/('MMA Rev-Exp Region 10'!$AW$17-'MMA Rev-Exp Region 10'!$AW$15), 0)","v":{"v":0,"d":"0.0%"}},{"$f":"IFERROR(('MMA Rev-Exp Region 10'!$AX$87-'MMA Rev-Exp Region 10'!$AX$76)/('MMA Rev-Exp Region 10'!$AX$17-'MMA Rev-Exp Region 10'!$AX$15), 0)","v":{"v":0,"d":"0.0%"}},{"$f":"IFERROR(('MMA Rev-Exp Region 10'!$AY$87-'MMA Rev-Exp Region 10'!$AY$76)/('MMA Rev-Exp Region 10'!$AY$17-'MMA Rev-Exp Region 10'!$AY$15), 0)","v":{"v":0,"d":"0.0%"}},{"$f":"IFERROR(('MMA Rev-Exp Region 10'!$AZ$87-'MMA Rev-Exp Region 10'!$AZ$76)/('MMA Rev-Exp Region 10'!$AZ$17-'MMA Rev-Exp Region 10'!$AZ$15), 0)","v":{"v":0,"d":"0.0%"}},{"$f":"IFERROR(('MMA Rev-Exp Region 10'!$BA$87-'MMA Rev-Exp Region 10'!$BA$76)/('MMA Rev-Exp Region 10'!$BA$17-'MMA Rev-Exp Region 10'!$BA$15), 0)","v":{"v":0,"d":"0.0%"}},{"$f":"IFERROR(('MMA Rev-Exp Region 10'!$BB$87-'MMA Rev-Exp Region 10'!$BB$76)/('MMA Rev-Exp Region 10'!$BB$17-'MMA Rev-Exp Region 10'!$BB$15), 0)","v":{"v":0,"d":"0.0%"}},{"$f":"IFERROR(('MMA Rev-Exp Region 10'!$BC$87-'MMA Rev-Exp Region 10'!$BC$76)/('MMA Rev-Exp Region 10'!$BC$17-'MMA Rev-Exp Region 10'!$BC$15), 0)","v":{"v":0,"d":"0.0%"}},{"$f":"IFERROR(('MMA Rev-Exp Region 10'!$BD$87-'MMA Rev-Exp Region 10'!$BD$76)/('MMA Rev-Exp Region 10'!$BD$17-'MMA Rev-Exp Region 10'!$BD$15), 0)","v":{"v":0,"d":"0.0%"}},{"$f":"IFERROR(('MMA Rev-Exp Region 10'!$BE$87-'MMA Rev-Exp Region 10'!$BE$76)/('MMA Rev-Exp Region 10'!$BE$17-'MMA Rev-Exp Region 10'!$BE$15), 0)","v":{"v":0,"d":"0.0%"}},{"$f":"IFERROR(('MMA Rev-Exp Region 10'!$BF$87-'MMA Rev-Exp Region 10'!$BF$76)/('MMA Rev-Exp Region 10'!$BF$17-'MMA Rev-Exp Region 10'!$BF$15), 0)","v":{"v":0,"d":"0.0%"}},{"$f":"IFERROR(('MMA Rev-Exp Region 10'!$BG$87-'MMA Rev-Exp Region 10'!$BG$76)/('MMA Rev-Exp Region 10'!$BG$17-'MMA Rev-Exp Region 10'!$BG$15), 0)","v":{"v":0,"d":"0.0%"}}]
["MMA",null,null,{"$f":"Jurat!I$1","v":0},{"$f":"Jurat!D$33","v":"00:00:00"},"2017-03-31","Admin","Quarter","Region 10",{"$f":"IFERROR('MMA Rev-Exp Region 10'!$D$96/('MMA Rev-Exp Region 10'!$D$17-'MMA Rev-Exp Region 10'!$D$15), 0)","v":{"v":0,"d":"0.0%"}}]
["MMA",null,null,{"$f":"Jurat!I$1","v":0},{"$f":"Jurat!D$33","v":"00:00:00"},"2017-06-30","Admin","Quarter","Region 10",{"$f":"IFERROR('MMA Rev-Exp Region 10'!$O$96/('MMA Rev-Exp Region 10'!$O$17-'MMA Rev-Exp Region 10'!$O$15), 0)","v":{"v":0,"d":"0.0%"}}]
["MMA",null,null,{"$f":"Jurat!I$1","v":0},{"$f":"Jurat!D$33","v":"00:00:00"},"2017-09-30","Admin","Quarter","Region 10",{"$f":"IFERROR('MMA Rev-Exp Region 10'!$Z$96/('MMA Rev-Exp Region 10'!$Z$17-'MMA Rev-Exp Region 10'!$Z$15), 0)","v":{"v":0,"d":"0.0%"}}]
["MMA",null,null,{"$f":"Jurat!I$1","v":0},{"$f":"Jurat!D$33","v":"00:00:00"},"2017-12-31","Admin","Quarter","Region 10",{"$f":"IFERROR('MMA Rev-Exp Region 10'!$AK$96/('MMA Rev-Exp Region 10'!$AK$17-'MMA Rev-Exp Region 10'!$AK$15), 0)","v":{"v":0,"d":"0.0%"}}]
["MMA",null,null,{"$f":"Jurat!I$1","v":0},{"$f":"Jurat!D$33","v":"00:00:00"},{"$f":"E161","v":"00:00:00"},"Admin","YTD","Region 10",{"$f":"IFERROR('MMA Rev-Exp Region 10'!$AW$96/('MMA Rev-Exp Region 10'!$AW$17-'MMA Rev-Exp Region 10'!$AW$15), 0)","v":{"v":0,"d":"0.0%"}}]
["MMA",null,null,{"$f":"Jurat!I$1","v":0},{"$f":"Jurat!D$33","v":"00:00:00"},"2017-03-31","Margin","Quarter","Region 10",{"$f":"IFERROR(('MMA Rev-Exp Region 10'!$D$105-'MMA Rev-Exp Region 10'!$D$15+'MMA Rev-Exp Region 10'!$D$99)/('MMA Rev-Exp Region 10'!$D$17-'MMA Rev-Exp Region 10'!$D$15), 0)","v":{"v":0,"d":"0.0%"}}]
["MMA",null,null,{"$f":"Jurat!I$1","v":0},{"$f":"Jurat!D$33","v":"00:00:00"},"2017-06-30","Margin","Quarter","Region 10",{"$f":"IFERROR(('MMA Rev-Exp Region 10'!$O$105-'MMA Rev-Exp Region 10'!$O$15+'MMA Rev-Exp Region 10'!$O$99)/('MMA Rev-Exp Region 10'!$O$17-'MMA Rev-Exp Region 10'!$O$15), 0)","v":{"v":0,"d":"0.0%"}}]
["MMA",null,null,{"$f":"Jurat!I$1","v":0},{"$f":"Jurat!D$33","v":"00:00:00"},"2017-09-30","Margin","Quarter","Region 10",{"$f":"IFERROR(('MMA Rev-Exp Region 10'!$Z$105-'MMA Rev-Exp Region 10'!$Z$15+'MMA Rev-Exp Region 10'!$Z$99)/('MMA Rev-Exp Region 10'!$Z$17-'MMA Rev-Exp Region 10'!$Z$15), 0)","v":{"v":0,"d":"0.0%"}}]
["MMA",null,null,{"$f":"Jurat!I$1","v":0},{"$f":"Jurat!D$33","v":"00:00:00"},"2017-12-31","Margin","Quarter","Region 10",{"$f":"IFERROR(('MMA Rev-Exp Region 10'!$AK$105-'MMA Rev-Exp Region 10'!$AK$15+'MMA Rev-Exp Region 10'!$AK$99)/('MMA Rev-Exp Region 10'!$AK$17-'MMA Rev-Exp Region 10'!$AK$15), 0)","v":{"v":0,"d":"0.0%"}}]
["MMA",null,null,{"$f":"Jurat!I$1","v":0},{"$f":"Jurat!D$33","v":"00:00:00"},{"$f":"E166","v":"00:00:00"},"Margin","YTD","Region 10",{"$f":"IFERROR(('MMA Rev-Exp Region 10'!$AW$105-'MMA Rev-Exp Region 10'!$AW$15+'MMA Rev-Exp Region 10'!$AW$99)/('MMA Rev-Exp Region 10'!$AW$17-'MMA Rev-Exp Region 10'!$AW$15), 0)","v":{"v":0,"d":"0.0%"}}]
["MMA",null,null,{"$f":"Jurat!I$1","v":0},{"$f":"Jurat!D$33","v":"00:00:00"},"2017-03-31","MLR","Quarter","Region 11",{"$f":"IFERROR(('MMA Rev-Exp Region 11'!D$87-'MMA Rev-Exp Region 11'!D$76)/('MMA Rev-Exp Region 11'!D$17-'MMA Rev-Exp Region 11'!D$15), 0)","v":{"v":0,"d":"0.0%"}},{"$f":"IFERROR(('MMA Rev-Exp Region 11'!E$87-'MMA Rev-Exp Region 11'!E$76)/('MMA Rev-Exp Region 11'!E$17-'MMA Rev-Exp Region 11'!E$15), 0)","v":{"v":0,"d":"0.0%"}},{"$f":"IFERROR(('MMA Rev-Exp Region 11'!F$87-'MMA Rev-Exp Region 11'!F$76)/('MMA Rev-Exp Region 11'!F$17-'MMA Rev-Exp Region 11'!F$15), 0)","v":{"v":0,"d":"0.0%"}},{"$f":"IFERROR(('MMA Rev-Exp Region 11'!G$87-'MMA Rev-Exp Region 11'!G$76)/('MMA Rev-Exp Region 11'!G$17-'MMA Rev-Exp Region 11'!G$15), 0)","v":{"v":0,"d":"0.0%"}},{"$f":"IFERROR(('MMA Rev-Exp Region 11'!H$87-'MMA Rev-Exp Region 11'!H$76)/('MMA Rev-Exp Region 11'!H$17-'MMA Rev-Exp Region 11'!H$15), 0)","v":{"v":0,"d":"0.0%"}},{"$f":"IFERROR(('MMA Rev-Exp Region 11'!I$87-'MMA Rev-Exp Region 11'!I$76)/('MMA Rev-Exp Region 11'!I$17-'MMA Rev-Exp Region 11'!I$15), 0)","v":{"v":0,"d":"0.0%"}},{"$f":"IFERROR(('MMA Rev-Exp Region 11'!J$87-'MMA Rev-Exp Region 11'!J$76)/('MMA Rev-Exp Region 11'!J$17-'MMA Rev-Exp Region 11'!J$15), 0)","v":{"v":0,"d":"0.0%"}},{"$f":"IFERROR(('MMA Rev-Exp Region 11'!K$87-'MMA Rev-Exp Region 11'!K$76)/('MMA Rev-Exp Region 11'!K$17-'MMA Rev-Exp Region 11'!K$15), 0)","v":{"v":0,"d":"0.0%"}},{"$f":"IFERROR(('MMA Rev-Exp Region 11'!L$87-'MMA Rev-Exp Region 11'!L$76)/('MMA Rev-Exp Region 11'!L$17-'MMA Rev-Exp Region 11'!L$15), 0)","v":{"v":0,"d":"0.0%"}},{"$f":"IFERROR(('MMA Rev-Exp Region 11'!M$87-'MMA Rev-Exp Region 11'!M$76)/('MMA Rev-Exp Region 11'!M$17-'MMA Rev-Exp Region 11'!M$15), 0)","v":{"v":0,"d":"0.0%"}},{"$f":"IFERROR(('MMA Rev-Exp Region 11'!N$87-'MMA Rev-Exp Region 11'!N$76)/('MMA Rev-Exp Region 11'!N$17-'MMA Rev-Exp Region 11'!N$15), 0)","v":{"v":0,"d":"0.0%"}}]
["MMA",null,null,{"$f":"Jurat!I$1","v":0},{"$f":"Jurat!D$33","v":"00:00:00"},"2017-06-30","MLR","Quarter","Region 11",{"$f":"IFERROR(('MMA Rev-Exp Region 11'!O$87-'MMA Rev-Exp Region 11'!O$76)/('MMA Rev-Exp Region 11'!O$17-'MMA Rev-Exp Region 11'!O$15), 0)","v":{"v":0,"d":"0.0%"}},{"$f":"IFERROR(('MMA Rev-Exp Region 11'!$P$87-'MMA Rev-Exp Region 11'!$P$76)/('MMA Rev-Exp Region 11'!$P$17-'MMA Rev-Exp Region 11'!$P$15), 0)","v":{"v":0,"d":"0.0%"}},{"$f":"IFERROR(('MMA Rev-Exp Region 11'!$Q$87-'MMA Rev-Exp Region 11'!$Q$76)/('MMA Rev-Exp Region 11'!$Q$17-'MMA Rev-Exp Region 11'!$Q$15), 0)","v":{"v":0,"d":"0.0%"}},{"$f":"IFERROR(('MMA Rev-Exp Region 11'!$R$87-'MMA Rev-Exp Region 11'!$R$76)/('MMA Rev-Exp Region 11'!$R$17-'MMA Rev-Exp Region 11'!$R$15), 0)","v":{"v":0,"d":"0.0%"}},{"$f":"IFERROR(('MMA Rev-Exp Region 11'!$S$87-'MMA Rev-Exp Region 11'!$S$76)/('MMA Rev-Exp Region 11'!$S$17-'MMA Rev-Exp Region 11'!$S$15), 0)","v":{"v":0,"d":"0.0%"}},{"$f":"IFERROR(('MMA Rev-Exp Region 11'!$T$87-'MMA Rev-Exp Region 11'!$T$76)/('MMA Rev-Exp Region 11'!$T$17-'MMA Rev-Exp Region 11'!$T$15), 0)","v":{"v":0,"d":"0.0%"}},{"$f":"IFERROR(('MMA Rev-Exp Region 11'!$U$87-'MMA Rev-Exp Region 11'!$U$76)/('MMA Rev-Exp Region 11'!$U$17-'MMA Rev-Exp Region 11'!$U$15), 0)","v":{"v":0,"d":"0.0%"}},{"$f":"IFERROR(('MMA Rev-Exp Region 11'!$V$87-'MMA Rev-Exp Region 11'!$V$76)/('MMA Rev-Exp Region 11'!$V$17-'MMA Rev-Exp Region 11'!$V$15), 0)","v":{"v":0,"d":"0.0%"}},{"$f":"IFERROR(('MMA Rev-Exp Region 11'!$W$87-'MMA Rev-Exp Region 11'!$W$76)/('MMA Rev-Exp Region 11'!$W$17-'MMA Rev-Exp Region 11'!$W$15), 0)","v":{"v":0,"d":"0.0%"}},{"$f":"IFERROR(('MMA Rev-Exp Region 11'!$X$87-'MMA Rev-Exp Region 11'!$X$76)/('MMA Rev-Exp Region 11'!$X$17-'MMA Rev-Exp Region 11'!$X$15), 0)","v":{"v":0,"d":"0.0%"}},{"$f":"IFERROR(('MMA Rev-Exp Region 11'!$Y$87-'MMA Rev-Exp Region 11'!$Y$76)/('MMA Rev-Exp Region 11'!$Y$17-'MMA Rev-Exp Region 11'!$Y$15), 0)","v":{"v":0,"d":"0.0%"}}]
["MMA",null,null,{"$f":"Jurat!I$1","v":0},{"$f":"Jurat!D$33","v":"00:00:00"},"2017-09-30","MLR","Quarter","Region 11",{"$f":"IFERROR(('MMA Rev-Exp Region 11'!$Z$87-'MMA Rev-Exp Region 11'!$Z$76)/('MMA Rev-Exp Region 11'!$Z$17-'MMA Rev-Exp Region 11'!$Z$15), 0)","v":{"v":0,"d":"0.0%"}},{"$f":"IFERROR(('MMA Rev-Exp Region 11'!$AA$87-'MMA Rev-Exp Region 11'!$AA$76)/('MMA Rev-Exp Region 11'!$AA$17-'MMA Rev-Exp Region 11'!$AA$15), 0)","v":{"v":0,"d":"0.0%"}},{"$f":"IFERROR(('MMA Rev-Exp Region 11'!$AB$87-'MMA Rev-Exp Region 11'!$AB$76)/('MMA Rev-Exp Region 11'!$AB$17-'MMA Rev-Exp Region 11'!$AB$15), 0)","v":{"v":0,"d":"0.0%"}},{"$f":"IFERROR(('MMA Rev-Exp Region 11'!$AC$87-'MMA Rev-Exp Region 11'!$AC$76)/('MMA Rev-Exp Region 11'!$AC$17-'MMA Rev-Exp Region 11'!$AC$15), 0)","v":{"v":0,"d":"0.0%"}},{"$f":"IFERROR(('MMA Rev-Exp Region 11'!$AD$87-'MMA Rev-Exp Region 11'!$AD$76)/('MMA Rev-Exp Region 11'!$AD$17-'MMA Rev-Exp Region 11'!$AD$15), 0)","v":{"v":0,"d":"0.0%"}},{"$f":"IFERROR(('MMA Rev-Exp Region 11'!$AE$87-'MMA Rev-Exp Region 11'!$AE$76)/('MMA Rev-Exp Region 11'!$AE$17-'MMA Rev-Exp Region 11'!$AE$15), 0)","v":{"v":0,"d":"0.0%"}},{"$f":"IFERROR(('MMA Rev-Exp Region 11'!$AF$87-'MMA Rev-Exp Region 11'!$AF$76)/('MMA Rev-Exp Region 11'!$AF$17-'MMA Rev-Exp Region 11'!$AF$15), 0)","v":{"v":0,"d":"0.0%"}},{"$f":"IFERROR(('MMA Rev-Exp Region 11'!$AG$87-'MMA Rev-Exp Region 11'!$AG$76)/('MMA Rev-Exp Region 11'!$AG$17-'MMA Rev-Exp Region 11'!$AG$15), 0)","v":{"v":0,"d":"0.0%"}},{"$f":"IFERROR(('MMA Rev-Exp Region 11'!$AH$87-'MMA Rev-Exp Region 11'!$AH$76)/('MMA Rev-Exp Region 11'!$AH$17-'MMA Rev-Exp Region 11'!$AH$15), 0)","v":{"v":0,"d":"0.0%"}},{"$f":"IFERROR(('MMA Rev-Exp Region 11'!$AI$87-'MMA Rev-Exp Region 11'!$AI$76)/('MMA Rev-Exp Region 11'!$AI$17-'MMA Rev-Exp Region 11'!$AI$15), 0)","v":{"v":0,"d":"0.0%"}},{"$f":"IFERROR(('MMA Rev-Exp Region 11'!$AJ$87-'MMA Rev-Exp Region 11'!$AJ$76)/('MMA Rev-Exp Region 11'!$AJ$17-'MMA Rev-Exp Region 11'!$AJ$15), 0)","v":{"v":0,"d":"0.0%"}}]
["MMA",null,null,{"$f":"Jurat!I$1","v":0},{"$f":"Jurat!D$33","v":"00:00:00"},"2017-12-31","MLR","Quarter","Region 11",{"$f":"IFERROR(('MMA Rev-Exp Region 11'!$AK$87-'MMA Rev-Exp Region 11'!$AK$76)/('MMA Rev-Exp Region 11'!$AK$17-'MMA Rev-Exp Region 11'!$AK$15), 0)","v":{"v":0,"d":"0.0%"}},{"$f":"IFERROR(('MMA Rev-Exp Region 11'!$AL$87-'MMA Rev-Exp Region 11'!$AL$76)/('MMA Rev-Exp Region 11'!$AL$17-'MMA Rev-Exp Region 11'!$AL$15), 0)","v":{"v":0,"d":"0.0%"}},{"$f":"IFERROR(('MMA Rev-Exp Region 11'!$AM$87-'MMA Rev-Exp Region 11'!$AM$76)/('MMA Rev-Exp Region 11'!$AM$17-'MMA Rev-Exp Region 11'!$AM$15), 0)","v":{"v":0,"d":"0.0%"}},{"$f":"IFERROR(('MMA Rev-Exp Region 11'!$AN$87-'MMA Rev-Exp Region 11'!$AN$76)/('MMA Rev-Exp Region 11'!$AN$17-'MMA Rev-Exp Region 11'!$AN$15), 0)","v":{"v":0,"d":"0.0%"}},{"$f":"IFERROR(('MMA Rev-Exp Region 11'!$AO$87-'MMA Rev-Exp Region 11'!$AO$76)/('MMA Rev-Exp Region 11'!$AO$17-'MMA Rev-Exp Region 11'!$AO$15), 0)","v":{"v":0,"d":"0.0%"}},{"$f":"IFERROR(('MMA Rev-Exp Region 11'!$AP$87-'MMA Rev-Exp Region 11'!$AP$76)/('MMA Rev-Exp Region 11'!$AP$17-'MMA Rev-Exp Region 11'!$AP$15), 0)","v":{"v":0,"d":"0.0%"}},{"$f":"IFERROR(('MMA Rev-Exp Region 11'!$AQ$87-'MMA Rev-Exp Region 11'!$AQ$76)/('MMA Rev-Exp Region 11'!$AQ$17-'MMA Rev-Exp Region 11'!$AQ$15), 0)","v":{"v":0,"d":"0.0%"}},{"$f":"IFERROR(('MMA Rev-Exp Region 11'!$AR$87-'MMA Rev-Exp Region 11'!$AR$76)/('MMA Rev-Exp Region 11'!$AR$17-'MMA Rev-Exp Region 11'!$AR$15), 0)","v":{"v":0,"d":"0.0%"}},{"$f":"IFERROR(('MMA Rev-Exp Region 11'!$AS$87-'MMA Rev-Exp Region 11'!$AS$76)/('MMA Rev-Exp Region 11'!$AS$17-'MMA Rev-Exp Region 11'!$AS$15), 0)","v":{"v":0,"d":"0.0%"}},{"$f":"IFERROR(('MMA Rev-Exp Region 11'!$AT$87-'MMA Rev-Exp Region 11'!$AT$76)/('MMA Rev-Exp Region 11'!$AT$17-'MMA Rev-Exp Region 11'!$AT$15), 0)","v":{"v":0,"d":"0.0%"}},{"$f":"IFERROR(('MMA Rev-Exp Region 11'!$AU$87-'MMA Rev-Exp Region 11'!$AU$76)/('MMA Rev-Exp Region 11'!$AU$17-'MMA Rev-Exp Region 11'!$AU$15), 0)","v":{"v":0,"d":"0.0%"}}]
["MMA",null,null,{"$f":"Jurat!I$1","v":0},{"$f":"Jurat!D$33","v":"00:00:00"},{"$f":"E171","v":"00:00:00"},"MLR","YTD","Region 11",{"$f":"IFERROR(('MMA Rev-Exp Region 11'!$AW$87-'MMA Rev-Exp Region 11'!$AW$76)/('MMA Rev-Exp Region 11'!$AW$17-'MMA Rev-Exp Region 11'!$AW$15), 0)","v":{"v":0,"d":"0.0%"}},{"$f":"IFERROR(('MMA Rev-Exp Region 11'!$AX$87-'MMA Rev-Exp Region 11'!$AX$76)/('MMA Rev-Exp Region 11'!$AX$17-'MMA Rev-Exp Region 11'!$AX$15), 0)","v":{"v":0,"d":"0.0%"}},{"$f":"IFERROR(('MMA Rev-Exp Region 11'!$AY$87-'MMA Rev-Exp Region 11'!$AY$76)/('MMA Rev-Exp Region 11'!$AY$17-'MMA Rev-Exp Region 11'!$AY$15), 0)","v":{"v":0,"d":"0.0%"}},{"$f":"IFERROR(('MMA Rev-Exp Region 11'!$AZ$87-'MMA Rev-Exp Region 11'!$AZ$76)/('MMA Rev-Exp Region 11'!$AZ$17-'MMA Rev-Exp Region 11'!$AZ$15), 0)","v":{"v":0,"d":"0.0%"}},{"$f":"IFERROR(('MMA Rev-Exp Region 11'!$BA$87-'MMA Rev-Exp Region 11'!$BA$76)/('MMA Rev-Exp Region 11'!$BA$17-'MMA Rev-Exp Region 11'!$BA$15), 0)","v":{"v":0,"d":"0.0%"}},{"$f":"IFERROR(('MMA Rev-Exp Region 11'!$BB$87-'MMA Rev-Exp Region 11'!$BB$76)/('MMA Rev-Exp Region 11'!$BB$17-'MMA Rev-Exp Region 11'!$BB$15), 0)","v":{"v":0,"d":"0.0%"}},{"$f":"IFERROR(('MMA Rev-Exp Region 11'!$BC$87-'MMA Rev-Exp Region 11'!$BC$76)/('MMA Rev-Exp Region 11'!$BC$17-'MMA Rev-Exp Region 11'!$BC$15), 0)","v":{"v":0,"d":"0.0%"}},{"$f":"IFERROR(('MMA Rev-Exp Region 11'!$BD$87-'MMA Rev-Exp Region 11'!$BD$76)/('MMA Rev-Exp Region 11'!$BD$17-'MMA Rev-Exp Region 11'!$BD$15), 0)","v":{"v":0,"d":"0.0%"}},{"$f":"IFERROR(('MMA Rev-Exp Region 11'!$BE$87-'MMA Rev-Exp Region 11'!$BE$76)/('MMA Rev-Exp Region 11'!$BE$17-'MMA Rev-Exp Region 11'!$BE$15), 0)","v":{"v":0,"d":"0.0%"}},{"$f":"IFERROR(('MMA Rev-Exp Region 11'!$BF$87-'MMA Rev-Exp Region 11'!$BF$76)/('MMA Rev-Exp Region 11'!$BF$17-'MMA Rev-Exp Region 11'!$BF$15), 0)","v":{"v":0,"d":"0.0%"}},{"$f":"IFERROR(('MMA Rev-Exp Region 11'!$BG$87-'MMA Rev-Exp Region 11'!$BG$76)/('MMA Rev-Exp Region 11'!$BG$17-'MMA Rev-Exp Region 11'!$BG$15), 0)","v":{"v":0,"d":"0.0%"}}]
["MMA",null,null,{"$f":"Jurat!I$1","v":0},{"$f":"Jurat!D$33","v":"00:00:00"},"2017-03-31","Admin","Quarter","Region 11",{"$f":"IFERROR('MMA Rev-Exp Region 11'!$D$96/('MMA Rev-Exp Region 11'!$D$17-'MMA Rev-Exp Region 11'!$D$15), 0)","v":{"v":0,"d":"0.0%"}}]
["MMA",null,null,{"$f":"Jurat!I$1","v":0},{"$f":"Jurat!D$33","v":"00:00:00"},"2017-06-30","Admin","Quarter","Region 11",{"$f":"IFERROR('MMA Rev-Exp Region 11'!$O$96/('MMA Rev-Exp Region 11'!$O$17-'MMA Rev-Exp Region 11'!$O$15), 0)","v":{"v":0,"d":"0.0%"}}]
["MMA",null,null,{"$f":"Jurat!I$1","v":0},{"$f":"Jurat!D$33","v":"00:00:00"},"2017-09-30","Admin","Quarter","Region 11",{"$f":"IFERROR('MMA Rev-Exp Region 11'!$Z$96/('MMA Rev-Exp Region 11'!$Z$17-'MMA Rev-Exp Region 11'!$Z$15), 0)","v":{"v":0,"d":"0.0%"}}]
["MMA",null,null,{"$f":"Jurat!I$1","v":0},{"$f":"Jurat!D$33","v":"00:00:00"},"2017-12-31","Admin","Quarter","Region 11",{"$f":"IFERROR('MMA Rev-Exp Region 11'!$AK$96/('MMA Rev-Exp Region 11'!$AK$17-'MMA Rev-Exp Region 11'!$AK$15), 0)","v":{"v":0,"d":"0.0%"}}]
["MMA",null,null,{"$f":"Jurat!I$1","v":0},{"$f":"Jurat!D$33","v":"00:00:00"},{"$f":"E176","v":"00:00:00"},"Admin","YTD","Region 11",{"$f":"IFERROR('MMA Rev-Exp Region 11'!$AW$96/('MMA Rev-Exp Region 11'!$AW$17-'MMA Rev-Exp Region 11'!$AW$15), 0)","v":{"v":0,"d":"0.0%"}}]
["MMA",null,null,{"$f":"Jurat!I$1","v":0},{"$f":"Jurat!D$33","v":"00:00:00"},"2017-03-31","Margin","Quarter","Region 11",{"$f":"IFERROR(('MMA Rev-Exp Region 11'!$D$105-'MMA Rev-Exp Region 11'!$D$15+'MMA Rev-Exp Region 11'!$D$99)/('MMA Rev-Exp Region 11'!$D$17-'MMA Rev-Exp Region 11'!$D$15), 0)","v":{"v":0,"d":"0.0%"}}]
["MMA",null,null,{"$f":"Jurat!I$1","v":0},{"$f":"Jurat!D$33","v":"00:00:00"},"2017-06-30","Margin","Quarter","Region 11",{"$f":"IFERROR(('MMA Rev-Exp Region 11'!$O$105-'MMA Rev-Exp Region 11'!$O$15+'MMA Rev-Exp Region 11'!$O$99)/('MMA Rev-Exp Region 11'!$O$17-'MMA Rev-Exp Region 11'!$O$15), 0)","v":{"v":0,"d":"0.0%"}}]
["MMA",null,null,{"$f":"Jurat!I$1","v":0},{"$f":"Jurat!D$33","v":"00:00:00"},"2017-09-30","Margin","Quarter","Region 11",{"$f":"IFERROR(('MMA Rev-Exp Region 11'!$Z$105-'MMA Rev-Exp Region 11'!$Z$15+'MMA Rev-Exp Region 11'!$Z$99)/('MMA Rev-Exp Region 11'!$Z$17-'MMA Rev-Exp Region 11'!$Z$15), 0)","v":{"v":0,"d":"0.0%"}}]
["MMA",null,null,{"$f":"Jurat!I$1","v":0},{"$f":"Jurat!D$33","v":"00:00:00"},"2017-12-31","Margin","Quarter","Region 11",{"$f":"IFERROR(('MMA Rev-Exp Region 11'!$AK$105-'MMA Rev-Exp Region 11'!$AK$15+'MMA Rev-Exp Region 11'!$AK$99)/('MMA Rev-Exp Region 11'!$AK$17-'MMA Rev-Exp Region 11'!$AK$15), 0)","v":{"v":0,"d":"0.0%"}}]
["MMA",null,null,{"$f":"Jurat!I$1","v":0},{"$f":"Jurat!D$33","v":"00:00:00"},{"$f":"E181","v":"00:00:00"},"Margin","YTD","Region 11",{"$f":"IFERROR(('MMA Rev-Exp Region 11'!$AW$105-'MMA Rev-Exp Region 11'!$AW$15+'MMA Rev-Exp Region 11'!$AW$99)/('MMA Rev-Exp Region 11'!$AW$17-'MMA Rev-Exp Region 11'!$AW$15), 0)","v":{"v":0,"d":"0.0%"}}]

{"sheet":"MMA PMPM","index":45,"n_rows":3265,"n_cols":27,"rows_kept":3265,"hidden":true}
["Contract","Plan ID","Plan Name","Reporting Year","Reporting Quarter","Calendar Quarter","Quarter Ending","Region","Transaction Class","Transaction Type","Transaction Category","Report Line","Report Description","Total","TANF Non-SMI","TANF SMI","SSI Medicaid Only Non-SMI","SSI Medicaid Only SMI","Dual Eligible","Child Welfare","HIV/AIDS Dual Eligible","HIV/AIDS Medicaid Only","LTC Dual Eligible","LTC Medicaid Only","File Name","File Date","Status"]
["MMA",null,null,{"$f":"Jurat!I$1","v":0},{"$f":"Jurat!D$33","v":"00:00:00"},"Q1","2017-03-31","Summary","Operating Revenue","Capitation","Capitation",1.1,"Capitation",{"$f":"IFERROR('MMA Rev-Exp Summary'!$D$11/'MMA Rev-Exp Summary'!$D$9, 0)","v":{"v":0,"d":"$0.00"}},{"$f":"IFERROR('MMA Rev-Exp Summary'!$E$11/'MMA Rev-Exp Summary'!$E$9, 0)","v":{"v":0,"d":"$0.00"}},{"$f":"IFERROR('MMA Rev-Exp Summary'!$F$11/'MMA Rev-Exp Summary'!$F$9, 0)","v":{"v":0,"d":"$0.00"}},{"$f":"IFERROR('MMA Rev-Exp Summary'!$G$11/'MMA Rev-Exp Summary'!$G$9, 0)","v":{"v":0,"d":"$0.00"}},{"$f":"IFERROR('MMA Rev-Exp Summary'!$H$11/'MMA Rev-Exp Summary'!$H$9, 0)","v":{"v":0,"d":"$0.00"}},{"$f":"IFERROR('MMA Rev-Exp Summary'!$I$11/'MMA Rev-Exp Summary'!$I$9, 0)","v":{"v":0,"d":"$0.00"}},{"$f":"IFERROR('MMA Rev-Exp Summary'!$J$11/'MMA Rev-Exp Summary'!$J$9, 0)","v":{"v":0,"d":"$0.00"}},{"$f":"IFERROR('MMA Rev-Exp Summary'!$K$11/'MMA Rev-Exp Summary'!$K$9, 0)","v":{"v":0,"d":"$0.00"}},{"$f":"IFERROR('MMA Rev-Exp Summary'!$L$11/'MMA Rev-Exp Summary'!$L$9, 0)","v":{"v":0,"d":"$0.00"}},{"$f":"IFERROR('MMA Rev-Exp Summary'!$M$11/'MMA Rev-Exp Summary'!$M$9, 0)","v":{"v":0,"d":"$0.00"}},{"$f":"IFERROR('MMA Rev-Exp Summary'!$N$11/'MMA Rev-Exp Summary'!$N$9, 0)","v":{"v":0,"d":"$0.00"}}]
["MMA",null,null,{"$f":"Jurat!I$1","v":0},{"$f":"Jurat!D$33","v":"00:00:00"},"Q1","2017-03-31","Summary","Operating Revenue","Kick Payments","Kick Payments - Transplant",1.2,"Transplant Kick Payments",{"$f":"IFERROR('MMA Rev-Exp Summary'!$D$12/'MMA Rev-Exp Summary'!$D$9, 0)","v":{"v":0,"d":"$0.00"}},{"$f":"IFERROR('MMA Rev-Exp Summary'!$E$12/'MMA Rev-Exp Summary'!$E$9, 0)","v":{"v":0,"d":"$0.00"}},{"$f":"IFERROR('MMA Rev-Exp Summary'!$F$12/'MMA Rev-Exp Summary'!$F$9, 0)","v":{"v":0,"d":"$0.00"}},{"$f":"IFERROR('MMA Rev-Exp Summary'!$G$12/'MMA Rev-Exp Summary'!$G$9, 0)","v":{"v":0,"d":"$0.00"}},{"$f":"IFERROR('MMA Rev-Exp Summary'!$H$12/'MMA Rev-Exp Summary'!$H$9, 0)","v":{"v":0,"d":"$0.00"}},{"$f":"IFERROR('MMA Rev-Exp Summary'!$I$12/'MMA Rev-Exp Summary'!$I$9, 0)","v":{"v":0,"d":"$0.00"}},{"$f":"IFERROR('MMA Rev-Exp Summary'!$J$12/'MMA Rev-Exp Summary'!$J$9, 0)","v":{"v":0,"d":"$0.00"}},{"$f":"IFERROR('MMA Rev-Exp Summary'!$K$12/'MMA Rev-Exp Summary'!$K$9, 0)","v":{"v":0,"d":"$0.00"}},{"$f":"IFERROR('MMA Rev-Exp Summary'!$L$12/'MMA Rev-Exp Summary'!$L$9, 0)","v":{"v":0,"d":"$0.00"}},{"$f":"IFERROR('MMA Rev-Exp Summary'!$M$12/'MMA Rev-Exp Summary'!$M$9, 0)","v":{"v":0,"d":"$0.00"}},{"$f":"IFERROR('MMA Rev-Exp Summary'!$N$12/'MMA Rev-Exp Summary'!$N$9, 0)","v":{"v":0,"d":"$0.00"}}]
["MMA",null,null,{"$f":"Jurat!I$1","v":0},{"$f":"Jurat!D$33","v":"00:00:00"},"Q1","2017-03-31","Summary","Operating Revenue","Kick Payments","Kick Payments - Hep C","1.3","Hepatitis C Kick Payments",{"$f":"IFERROR('MMA Rev-Exp Summary'!$D$13/'MMA Rev-Exp Summary'!$D$9, 0)","v":{"v":0,"d":"$0.00"}},{"$f":"IFERROR('MMA Rev-Exp Summary'!$E$13/'MMA Rev-Exp Summary'!$E$9, 0)","v":{"v":0,"d":"$0.00"}},{"$f":"IFERROR('MMA Rev-Exp Summary'!$F$13/'MMA Rev-Exp Summary'!$F$9, 0)","v":{"v":0,"d":"$0.00"}},{"$f":"IFERROR('MMA Rev-Exp Summary'!$G$13/'MMA Rev-Exp Summary'!$G$9, 0)","v":{"v":0,"d":"$0.00"}},{"$f":"IFERROR('MMA Rev-Exp Summary'!$H$13/'MMA Rev-Exp Summary'!$H$9, 0)","v":{"v":0,"d":"$0.00"}},{"$f":"IFERROR('MMA Rev-Exp Summary'!$I$13/'MMA Rev-Exp Summary'!$I$9, 0)","v":{"v":0,"d":"$0.00"}},{"$f":"IFERROR('MMA Rev-Exp Summary'!$J$13/'MMA Rev-Exp Summary'!$J$9, 0)","v":{"v":0,"d":"$0.00"}},{"$f":"IFERROR('MMA Rev-Exp Summary'!$K$13/'MMA Rev-Exp Summary'!$K$9, 0)","v":{"v":0,"d":"$0.00"}},{"$f":"IFERROR('MMA Rev-Exp Summary'!$L$13/'MMA Rev-Exp Summary'!$L$9, 0)","v":{"v":0,"d":"$0.00"}},{"$f":"IFERROR('MMA Rev-Exp Summary'!$M$13/'MMA Rev-Exp Summary'!$M$9, 0)","v":{"v":0,"d":"$0.00"}},{"$f":"IFERROR('MMA Rev-Exp Summary'!$N$13/'MMA Rev-Exp Summary'!$N$9, 0)","v":{"v":0,"d":"$0.00"}}]
["MMA",null,null,{"$f":"Jurat!I$1","v":0},{"$f":"Jurat!D$33","v":"00:00:00"},"Q1","2017-03-31","Summary","Operating Revenue","Kick Payments","Kick Payments - Maternity","1.4.1","Maternity Kick Payments",{"$f":"IFERROR('MMA Rev-Exp Summary'!$D$14/'MMA Rev-Exp Summary'!$D$9, 0)","v":{"v":0,"d":"$0.00"}},{"$f":"IFERROR('MMA Rev-Exp Summary'!$E$14/'MMA Rev-Exp Summary'!$E$9, 0)","v":{"v":0,"d":"$0.00"}},{"$f":"IFERROR('MMA Rev-Exp Summary'!$F$14/'MMA Rev-Exp Summary'!$F$9, 0)","v":{"v":0,"d":"$0.00"}},{"$f":"IFERROR('MMA Rev-Exp Summary'!$G$14/'MMA Rev-Exp Summary'!$G$9, 0)","v":{"v":0,"d":"$0.00"}},{"$f":"IFERROR('MMA Rev-Exp Summary'!$H$14/'MMA Rev-Exp Summary'!$H$9, 0)","v":{"v":0,"d":"$0.00"}},{"$f":"IFERROR('MMA Rev-Exp Summary'!$I$14/'MMA Rev-Exp Summary'!$I$9, 0)","v":{"v":0,"d":"$0.00"}},{"$f":"IFERROR('MMA Rev-Exp Summary'!$J$14/'MMA Rev-Exp Summary'!$J$9, 0)","v":{"v":0,"d":"$0.00"}},{"$f":"IFERROR('MMA Rev-Exp Summary'!$K$14/'MMA Rev-Exp Summary'!$K$9, 0)","v":{"v":0,"d":"$0.00"}},{"$f":"IFERROR('MMA Rev-Exp Summary'!$L$14/'MMA Rev-Exp Summary'!$L$9, 0)","v":{"v":0,"d":"$0.00"}},{"$f":"IFERROR('MMA Rev-Exp Summary'!$M$14/'MMA Rev-Exp Summary'!$M$9, 0)","v":{"v":0,"d":"$0.00"}},{"$f":"IFERROR('MMA Rev-Exp Summary'!$N$14/'MMA Rev-Exp Summary'!$N$9, 0)","v":{"v":0,"d":"$0.00"}}]
["MMA",null,null,{"$f":"Jurat!I$1","v":0},{"$f":"Jurat!D$33","v":"00:00:00"},"Q1","2017-03-31","Summary","Operating Revenue","Other Revenue","Other Revenue - 9010","1.5","ACA § 9010 related payments",{"$f":"IFERROR('MMA Rev-Exp Summary'!$D$15/'MMA Rev-Exp Summary'!$D$9, 0)","v":{"v":0,"d":"$0.00"}},{"$f":"IFERROR('MMA Rev-Exp Summary'!$E$15/'MMA Rev-Exp Summary'!$E$9, 0)","v":{"v":0,"d":"$0.00"}},{"$f":"IFERROR('MMA Rev-Exp Summary'!$F$15/'MMA Rev-Exp Summary'!$F$9, 0)","v":{"v":0,"d":"$0.00"}},{"$f":"IFERROR('MMA Rev-Exp Summary'!$G$15/'MMA Rev-Exp Summary'!$G$9, 0)","v":{"v":0,"d":"$0.00"}},{"$f":"IFERROR('MMA Rev-Exp Summary'!$H$15/'MMA Rev-Exp Summary'!$H$9, 0)","v":{"v":0,"d":"$0.00"}},{"$f":"IFERROR('MMA Rev-Exp Summary'!$I$15/'MMA Rev-Exp Summary'!$I$9, 0)","v":{"v":0,"d":"$0.00"}},{"$f":"IFERROR('MMA Rev-Exp Summary'!$J$15/'MMA Rev-Exp Summary'!$J$9, 0)","v":{"v":0,"d":"$0.00"}},{"$f":"IFERROR('MMA Rev-Exp Summary'!$K$15/'MMA Rev-Exp Summary'!$K$9, 0)","v":{"v":0,"d":"$0.00"}},{"$f":"IFERROR('MMA Rev-Exp Summary'!$L$15/'MMA Rev-Exp Summary'!$L$9, 0)","v":{"v":0,"d":"$0.00"}},{"$f":"IFERROR('MMA Rev-Exp Summary'!$M$15/'MMA Rev-Exp Summary'!$M$9, 0)","v":{"v":0,"d":"$0.00"}},{"$f":"IFERROR('MMA Rev-Exp Summary'!$N$15/'MMA Rev-Exp Summary'!$N$9, 0)","v":{"v":0,"d":"$0.00"}}]
["MMA",null,null,{"$f":"Jurat!I$1","v":0},{"$f":"Jurat!D$33","v":"00:00:00"},"Q1","2017-03-31","Summary","Operating Revenue","Other Revenue","Other Revenue","1.6","Other Revenue",{"$f":"IFERROR('MMA Rev-Exp Summary'!$D$16/'MMA Rev-Exp Summary'!$D$9, 0)","v":{"v":0,"d":"$0.00"}},{"$f":"IFERROR('MMA Rev-Exp Summary'!$E$16/'MMA Rev-Exp Summary'!$E$9, 0)","v":{"v":0,"d":"$0.00"}},{"$f":"IFERROR('MMA Rev-Exp Summary'!$F$16/'MMA Rev-Exp Summary'!$F$9, 0)","v":{"v":0,"d":"$0.00"}},{"$f":"IFERROR('MMA Rev-Exp Summary'!$G$16/'MMA Rev-Exp Summary'!$G$9, 0)","v":{"v":0,"d":"$0.00"}},{"$f":"IFERROR('MMA Rev-Exp Summary'!$H$16/'MMA Rev-Exp Summary'!$H$9, 0)","v":{"v":0,"d":"$0.00"}},{"$f":"IFERROR('MMA Rev-Exp Summary'!$I$16/'MMA Rev-Exp Summary'!$I$9, 0)","v":{"v":0,"d":"$0.00"}},{"$f":"IFERROR('MMA Rev-Exp Summary'!$J$16/'MMA Rev-Exp Summary'!$J$9, 0)","v":{"v":0,"d":"$0.00"}},{"$f":"IFERROR('MMA Rev-Exp Summary'!$K$16/'MMA Rev-Exp Summary'!$K$9, 0)","v":{"v":0,"d":"$0.00"}},{"$f":"IFERROR('MMA Rev-Exp Summary'!$L$16/'MMA Rev-Exp Summary'!$L$9, 0)","v":{"v":0,"d":"$0.00"}},{"$f":"IFERROR('MMA Rev-Exp Summary'!$M$16/'MMA Rev-Exp Summary'!$M$9, 0)","v":{"v":0,"d":"$0.00"}},{"$f":"IFERROR('MMA Rev-Exp Summary'!$N$16/'MMA Rev-Exp Summary'!$N$9, 0)","v":{"v":0,"d":"$0.00"}}]
["MMA",null,null,{"$f":"Jurat!I$1","v":0},{"$f":"Jurat!D$33","v":"00:00:00"},"Q1","2017-03-31","Summary","Operating Expense","Medical Benefits Expense","Hospital Services",2.1,"Inpatient FFS",{"$f":"IFERROR('MMA Rev-Exp Summary'!$D$20/'MMA Rev-Exp Summary'!$D$9, 0)","v":{"v":0,"d":"$0.00"}},{"$f":"IFERROR('MMA Rev-Exp Summary'!$E$20/'MMA Rev-Exp Summary'!$E$9, 0)","v":{"v":0,"d":"$0.00"}},{"$f":"IFERROR('MMA Rev-Exp Summary'!$F$20/'MMA Rev-Exp Summary'!$F$9, 0)","v":{"v":0,"d":"$0.00"}},{"$f":"IFERROR('MMA Rev-Exp Summary'!$G$20/'MMA Rev-Exp Summary'!$G$9, 0)","v":{"v":0,"d":"$0.00"}},{"$f":"IFERROR('MMA Rev-Exp Summary'!$H$20/'MMA Rev-Exp Summary'!$H$9, 0)","v":{"v":0,"d":"$0.00"}},{"$f":"IFERROR('MMA Rev-Exp Summary'!$I$20/'MMA Rev-Exp Summary'!$I$9, 0)","v":{"v":0,"d":"$0.00"}},{"$f":"IFERROR('MMA Rev-Exp Summary'!$J$20/'MMA Rev-Exp Summary'!$J$9, 0)","v":{"v":0,"d":"$0.00"}},{"$f":"IFERROR('MMA Rev-Exp Summary'!$K$20/'MMA Rev-Exp Summary'!$K$9, 0)","v":{"v":0,"d":"$0.00"}},{"$f":"IFERROR('MMA Rev-Exp Summary'!$L$20/'MMA Rev-Exp Summary'!$L$9, 0)","v":{"v":0,"d":"$0.00"}},{"$f":"IFERROR('MMA Rev-Exp Summary'!$M$20/'MMA Rev-Exp Summary'!$M$9, 0)","v":{"v":0,"d":"$0.00"}},{"$f":"IFERROR('MMA Rev-Exp Summary'!$N$20/'MMA Rev-Exp Summary'!$N$9, 0)","v":{"v":0,"d":"$0.00"}}]
["MMA",null,null,{"$f":"Jurat!I$1","v":0},{"$f":"Jurat!D$33","v":"00:00:00"},"Q1","2017-03-31","Summary","Operating Expense","Medical Benefits Expense","Hospital Services",2.2,"Ending IBNP for Inpatient Hospital Services",{"$f":"IFERROR('MMA Rev-Exp Summary'!$D$21/'MMA Rev-Exp Summary'!$D$9, 0)","v":{"v":0,"d":"$0.00"}},{"$f":"IFERROR('MMA Rev-Exp Summary'!$E$21/'MMA Rev-Exp Summary'!$E$9, 0)","v":{"v":0,"d":"$0.00"}},{"$f":"IFERROR('MMA Rev-Exp Summary'!$F$21/'MMA Rev-Exp Summary'!$F$9, 0)","v":{"v":0,"d":"$0.00"}},{"$f":"IFERROR('MMA Rev-Exp Summary'!$G$21/'MMA Rev-Exp Summary'!$G$9, 0)","v":{"v":0,"d":"$0.00"}},{"$f":"IFERROR('MMA Rev-Exp Summary'!$H$21/'MMA Rev-Exp Summary'!$H$9, 0)","v":{"v":0,"d":"$0.00"}},{"$f":"IFERROR('MMA Rev-Exp Summary'!$I$21/'MMA Rev-Exp Summary'!$I$9, 0)","v":{"v":0,"d":"$0.00"}},{"$f":"IFERROR('MMA Rev-Exp Summary'!$J$21/'MMA Rev-Exp Summary'!$J$9, 0)","v":{"v":0,"d":"$0.00"}},{"$f":"IFERROR('MMA Rev-Exp Summary'!$K$21/'MMA Rev-Exp Summary'!$K$9, 0)","v":{"v":0,"d":"$0.00"}},{"$f":"IFERROR('MMA Rev-Exp Summary'!$L$21/'MMA Rev-Exp Summary'!$L$9, 0)","v":{"v":0,"d":"$0.00"}},{"$f":"IFERROR('MMA Rev-Exp Summary'!$M$21/'MMA Rev-Exp Summary'!$M$9, 0)","v":{"v":0,"d":"$0.00"}},{"$f":"IFERROR('MMA Rev-Exp Summary'!$N$21/'MMA Rev-Exp Summary'!$N$9, 0)","v":{"v":0,"d":"$0.00"}}]
["MMA",null,null,{"$f":"Jurat!I$1","v":0},{"$f":"Jurat!D$33","v":"00:00:00"},"Q1","2017-03-31","Summary","Operating Expense","Medical Benefits Expense","Hospital Services",2.3,"Outpatient FFS: ER",{"$f":"IFERROR('MMA Rev-Exp Summary'!$D$22/'MMA Rev-Exp Summary'!$D$9, 0)","v":{"v":0,"d":"$0.00"}},{"$f":"IFERROR('MMA Rev-Exp Summary'!$E$22/'MMA Rev-Exp Summary'!$E$9, 0)","v":{"v":0,"d":"$0.00"}},{"$f":"IFERROR('MMA Rev-Exp Summary'!$F$22/'MMA Rev-Exp Summary'!$F$9, 0)","v":{"v":0,"d":"$0.00"}},{"$f":"IFERROR('MMA Rev-Exp Summary'!$G$22/'MMA Rev-Exp Summary'!$G$9, 0)","v":{"v":0,"d":"$0.00"}},{"$f":"IFERROR('MMA Rev-Exp Summary'!$H$22/'MMA Rev-Exp Summary'!$H$9, 0)","v":{"v":0,"d":"$0.00"}},{"$f":"IFERROR('MMA Rev-Exp Summary'!$I$22/'MMA Rev-Exp Summary'!$I$9, 0)","v":{"v":0,"d":"$0.00"}},{"$f":"IFERROR('MMA Rev-Exp Summary'!$J$22/'MMA Rev-Exp Summary'!$J$9, 0)","v":{"v":0,"d":"$0.00"}},{"$f":"IFERROR('MMA Rev-Exp Summary'!$K$22/'MMA Rev-Exp Summary'!$K$9, 0)","v":{"v":0,"d":"$0.00"}},{"$f":"IFERROR('MMA Rev-Exp Summary'!$L$22/'MMA Rev-Exp Summary'!$L$9, 0)","v":{"v":0,"d":"$0.00"}},{"$f":"IFERROR('MMA Rev-Exp Summary'!$M$22/'MMA Rev-Exp Summary'!$M$9, 0)","v":{"v":0,"d":"$0.00"}},{"$f":"IFERROR('MMA Rev-Exp Summary'!$N$22/'MMA Rev-Exp Summary'!$N$9, 0)","v":{"v":0,"d":"$0.00"}}]
["MMA",null,null,{"$f":"Jurat!I$1","v":0},{"$f":"Jurat!D$33","v":"00:00:00"},"Q1","2017-03-31","Summary","Operating Expense","Medical Benefits Expense","Hospital Services",2.4,"Outpatient FFS: Other than ER ",{"$f":"IFERROR('MMA Rev-Exp Summary'!$D$23/'MMA Rev-Exp Summary'!$D$9, 0)","v":{"v":0,"d":"$0.00"}},{"$f":"IFERROR('MMA Rev-Exp Summary'!$E$23/'MMA Rev-Exp Summary'!$E$9, 0)","v":{"v":0,"d":"$0.00"}},{"$f":"IFERROR('MMA Rev-Exp Summary'!$F$23/'MMA Rev-Exp Summary'!$F$9, 0)","v":{"v":0,"d":"$0.00"}},{"$f":"IFERROR('MMA Rev-Exp Summary'!$G$23/'MMA Rev-Exp Summary'!$G$9, 0)","v":{"v":0,"d":"$0.00"}},{"$f":"IFERROR('MMA Rev-Exp Summary'!$H$23/'MMA Rev-Exp Summary'!$H$9, 0)","v":{"v":0,"d":"$0.00"}},{"$f":"IFERROR('MMA Rev-Exp Summary'!$I$23/'MMA Rev-Exp Summary'!$I$9, 0)","v":{"v":0,"d":"$0.00"}},{"$f":"IFERROR('MMA Rev-Exp Summary'!$J$23/'MMA Rev-Exp Summary'!$J$9, 0)","v":{"v":0,"d":"$0.00"}},{"$f":"IFERROR('MMA Rev-Exp Summary'!$K$23/'MMA Rev-Exp Summary'!$K$9, 0)","v":{"v":0,"d":"$0.00"}},{"$f":"IFERROR('MMA Rev-Exp Summary'!$L$23/'MMA Rev-Exp Summary'!$L$9, 0)","v":{"v":0,"d":"$0.00"}},{"$f":"IFERROR('MMA Rev-Exp Summary'!$M$23/'MMA Rev-Exp Summary'!$M$9, 0)","v":{"v":0,"d":"$0.00"}},{"$f":"IFERROR('MMA Rev-Exp Summary'!$N$23/'MMA Rev-Exp Summary'!$N$9, 0)","v":{"v":0,"d":"$0.00"}}]
["MMA",null,null,{"$f":"Jurat!I$1","v":0},{"$f":"Jurat!D$33","v":"00:00:00"},"Q1","2017-03-31","Summary","Operating Expense","Medical Benefits Expense","Hospital Services",2.5,"Ending IBNP for Outpatient Hospital Services",{"$f":"IFERROR('MMA Rev-Exp Summary'!$D$24/'MMA Rev-Exp Summary'!$D$9, 0)","v":{"v":0,"d":"$0.00"}},{"$f":"IFERROR('MMA Rev-Exp Summary'!$E$24/'MMA Rev-Exp Summary'!$E$9, 0)","v":{"v":0,"d":"$0.00"}},{"$f":"IFERROR('MMA Rev-Exp Summary'!$F$24/'MMA Rev-Exp Summary'!$F$9, 0)","v":{"v":0,"d":"$0.00"}},{"$f":"IFERROR('MMA Rev-Exp Summary'!$G$24/'MMA Rev-Exp Summary'!$G$9, 0)","v":{"v":0,"d":"$0.00"}},{"$f":"IFERROR('MMA Rev-Exp Summary'!$H$24/'MMA Rev-Exp Summary'!$H$9, 0)","v":{"v":0,"d":"$0.00"}},{"$f":"IFERROR('MMA Rev-Exp Summary'!$I$24/'MMA Rev-Exp Summary'!$I$9, 0)","v":{"v":0,"d":"$0.00"}},{"$f":"IFERROR('MMA Rev-Exp Summary'!$J$24/'MMA Rev-Exp Summary'!$J$9, 0)","v":{"v":0,"d":"$0.00"}},{"$f":"IFERROR('MMA Rev-Exp Summary'!$K$24/'MMA Rev-Exp Summary'!$K$9, 0)","v":{"v":0,"d":"$0.00"}},{"$f":"IFERROR('MMA Rev-Exp Summary'!$L$24/'MMA Rev-Exp Summary'!$L$9, 0)","v":{"v":0,"d":"$0.00"}},{"$f":"IFERROR('MMA Rev-Exp Summary'!$M$24/'MMA Rev-Exp Summary'!$M$9, 0)","v":{"v":0,"d":"$0.00"}},{"$f":"IFERROR('MMA Rev-Exp Summary'!$N$24/'MMA Rev-Exp Summary'!$N$9, 0)","v":{"v":0,"d":"$0.00"}}]
["MMA",null,null,{"$f":"Jurat!I$1","v":0},{"$f":"Jurat!D$33","v":"00:00:00"},"Q1","2017-03-31","Summary","Operating Expense","Medical Benefits Expense","Hospital Services","2.6","Subcapitated Hospital Services",{"$f":"IFERROR('MMA Rev-Exp Summary'!$D$25/'MMA Rev-Exp Summary'!$D$9, 0)","v":{"v":0,"d":"$0.00"}},{"$f":"IFERROR('MMA Rev-Exp Summary'!$E$25/'MMA Rev-Exp Summary'!$E$9, 0)","v":{"v":0,"d":"$0.00"}},{"$f":"IFERROR('MMA Rev-Exp Summary'!$F$25/'MMA Rev-Exp Summary'!$F$9, 0)","v":{"v":0,"d":"$0.00"}},{"$f":"IFERROR('MMA Rev-Exp Summary'!$G$25/'MMA Rev-Exp Summary'!$G$9, 0)","v":{"v":0,"d":"$0.00"}},{"$f":"IFERROR('MMA Rev-Exp Summary'!$H$25/'MMA Rev-Exp Summary'!$H$9, 0)","v":{"v":0,"d":"$0.00"}},{"$f":"IFERROR('MMA Rev-Exp Summary'!$I$25/'MMA Rev-Exp Summary'!$I$9, 0)","v":{"v":0,"d":"$0.00"}},{"$f":"IFERROR('MMA Rev-Exp Summary'!$J$25/'MMA Rev-Exp Summary'!$J$9, 0)","v":{"v":0,"d":"$0.00"}},{"$f":"IFERROR('MMA Rev-Exp Summary'!$K$25/'MMA Rev-Exp Summary'!$K$9, 0)","v":{"v":0,"d":"$0.00"}},{"$f":"IFERROR('MMA Rev-Exp Summary'!$L$25/'MMA Rev-Exp Summary'!$L$9, 0)","v":{"v":0,"d":"$0.00"}},{"$f":"IFERROR('MMA Rev-Exp Summary'!$M$25/'MMA Rev-Exp Summary'!$M$9, 0)","v":{"v":0,"d":"$0.00"}},{"$f":"IFERROR('MMA Rev-Exp Summary'!$N$25/'MMA Rev-Exp Summary'!$N$9, 0)","v":{"v":0,"d":"$0.00"}}]
["MMA",null,null,{"$f":"Jurat!I$1","v":0},{"$f":"Jurat!D$33","v":"00:00:00"},"Q1","2017-03-31","Summary","Operating Expense","Medical Benefits Expense","Hospital Services","2.7","Hospital Settlements",{"$f":"IFERROR('MMA Rev-Exp Summary'!$D$26/'MMA Rev-Exp Summary'!$D$9, 0)","v":{"v":0,"d":"$0.00"}},{"$f":"IFERROR('MMA Rev-Exp Summary'!$E$26/'MMA Rev-Exp Summary'!$E$9, 0)","v":{"v":0,"d":"$0.00"}},{"$f":"IFERROR('MMA Rev-Exp Summary'!$F$26/'MMA Rev-Exp Summary'!$F$9, 0)","v":{"v":0,"d":"$0.00"}},{"$f":"IFERROR('MMA Rev-Exp Summary'!$G$26/'MMA Rev-Exp Summary'!$G$9, 0)","v":{"v":0,"d":"$0.00"}},{"$f":"IFERROR('MMA Rev-Exp Summary'!$H$26/'MMA Rev-Exp Summary'!$H$9, 0)","v":{"v":0,"d":"$0.00"}},{"$f":"IFERROR('MMA Rev-Exp Summary'!$I$26/'MMA Rev-Exp Summary'!$I$9, 0)","v":{"v":0,"d":"$0.00"}},{"$f":"IFERROR('MMA Rev-Exp Summary'!$J$26/'MMA Rev-Exp Summary'!$J$9, 0)","v":{"v":0,"d":"$0.00"}},{"$f":"IFERROR('MMA Rev-Exp Summary'!$K$26/'MMA Rev-Exp Summary'!$K$9, 0)","v":{"v":0,"d":"$0.00"}},{"$f":"IFERROR('MMA Rev-Exp Summary'!$L$26/'MMA Rev-Exp Summary'!$L$9, 0)","v":{"v":0,"d":"$0.00"}},{"$f":"IFERROR('MMA Rev-Exp Summary'!$M$26/'MMA Rev-Exp Summary'!$M$9, 0)","v":{"v":0,"d":"$0.00"}},{"$f":"IFERROR('MMA Rev-Exp Summary'!$N$26/'MMA Rev-Exp Summary'!$N$9, 0)","v":{"v":0,"d":"$0.00"}}]
["MMA",null,null,{"$f":"Jurat!I$1","v":0},{"$f":"Jurat!D$33","v":"00:00:00"},"Q1","2017-03-31","Summary","Operating Expense","Medical Benefits Expense","Hospital Services","2.7.1","Transplant Services",{"$f":"IFERROR('MMA Rev-Exp Summary'!$D$27/'MMA Rev-Exp Summary'!$D$9, 0)","v":{"v":0,"d":"$0.00"}},{"$f":"IFERROR('MMA Rev-Exp Summary'!$E$27/'MMA Rev-Exp Summary'!$E$9, 0)","v":{"v":0,"d":"$0.00"}},{"$f":"IFERROR('MMA Rev-Exp Summary'!$F$27/'MMA Rev-Exp Summary'!$F$9, 0)","v":{"v":0,"d":"$0.00"}},{"$f":"IFERROR('MMA Rev-Exp Summary'!$G$27/'MMA Rev-Exp Summary'!$G$9, 0)","v":{"v":0,"d":"$0.00"}},{"$f":"IFERROR('MMA Rev-Exp Summary'!$H$27/'MMA Rev-Exp Summary'!$H$9, 0)","v":{"v":0,"d":"$0.00"}},{"$f":"IFERROR('MMA Rev-Exp Summary'!$I$27/'MMA Rev-Exp Summary'!$I$9, 0)","v":{"v":0,"d":"$0.00"}},{"$f":"IFERROR('MMA Rev-Exp Summary'!$J$27/'MMA Rev-Exp Summary'!$J$9, 0)","v":{"v":0,"d":"$0.00"}},{"$f":"IFERROR('MMA Rev-Exp Summary'!$K$27/'MMA Rev-Exp Summary'!$K$9, 0)","v":{"v":0,"d":"$0.00"}},{"$f":"IFERROR('MMA Rev-Exp Summary'!$L$27/'MMA Rev-Exp Summary'!$L$9, 0)","v":{"v":0,"d":"$0.00"}},{"$f":"IFERROR('MMA Rev-Exp Summary'!$M$27/'MMA Rev-Exp Summary'!$M$9, 0)","v":{"v":0,"d":"$0.00"}},{"$f":"IFERROR('MMA Rev-Exp Summary'!$N$27/'MMA Rev-Exp Summary'!$N$9, 0)","v":{"v":0,"d":"$0.00"}}]
["MMA",null,null,{"$f":"Jurat!I$1","v":0},{"$f":"Jurat!D$33","v":"00:00:00"},"Q1","2017-03-31","Summary","Operating Expense","Medical Benefits Expense","Professional Services",3.1,"Primary Care FFS",{"$f":"IFERROR('MMA Rev-Exp Summary'!$D$29/'MMA Rev-Exp Summary'!$D$9, 0)","v":{"v":0,"d":"$0.00"}},{"$f":"IFERROR('MMA Rev-Exp Summary'!$E$29/'MMA Rev-Exp Summary'!$E$9, 0)","v":{"v":0,"d":"$0.00"}},{"$f":"IFERROR('MMA Rev-Exp Summary'!$F$29/'MMA Rev-Exp Summary'!$F$9, 0)","v":{"v":0,"d":"$0.00"}},{"$f":"IFERROR('MMA Rev-Exp Summary'!$G$29/'MMA Rev-Exp Summary'!$G$9, 0)","v":{"v":0,"d":"$0.00"}},{"$f":"IFERROR('MMA Rev-Exp Summary'!$H$29/'MMA Rev-Exp Summary'!$H$9, 0)","v":{"v":0,"d":"$0.00"}},{"$f":"IFERROR('MMA Rev-Exp Summary'!$I$29/'MMA Rev-Exp Summary'!$I$9, 0)","v":{"v":0,"d":"$0.00"}},{"$f":"IFERROR('MMA Rev-Exp Summary'!$J$29/'MMA Rev-Exp Summary'!$J$9, 0)","v":{"v":0,"d":"$0.00"}},{"$f":"IFERROR('MMA Rev-Exp Summary'!$K$29/'MMA Rev-Exp Summary'!$K$9, 0)","v":{"v":0,"d":"$0.00"}},{"$f":"IFERROR('MMA Rev-Exp Summary'!$L$29/'MMA Rev-Exp Summary'!$L$9, 0)","v":{"v":0,"d":"$0.00"}},{"$f":"IFERROR('MMA Rev-Exp Summary'!$M$29/'MMA Rev-Exp Summary'!$M$9, 0)","v":{"v":0,"d":"$0.00"}},{"$f":"IFERROR('MMA Rev-Exp Summary'!$N$29/'MMA Rev-Exp Summary'!$N$9, 0)","v":{"v":0,"d":"$0.00"}}]
["MMA",null,null,{"$f":"Jurat!I$1","v":0},{"$f":"Jurat!D$33","v":"00:00:00"},"Q1","2017-03-31","Summary","Operating Expense","Medical Benefits Expense","Professional Services",3.2,"Specialty Care FFS",{"$f":"IFERROR('MMA Rev-Exp Summary'!$D$30/'MMA Rev-Exp Summary'!$D$9, 0)","v":{"v":0,"d":"$0.00"}},{"$f":"IFERROR('MMA Rev-Exp Summary'!$E$30/'MMA Rev-Exp Summary'!$E$9, 0)","v":{"v":0,"d":"$0.00"}},{"$f":"IFERROR('MMA Rev-Exp Summary'!$F$30/'MMA Rev-Exp Summary'!$F$9, 0)","v":{"v":0,"d":"$0.00"}},{"$f":"IFERROR('MMA Rev-Exp Summary'!$G$30/'MMA Rev-Exp Summary'!$G$9, 0)","v":{"v":0,"d":"$0.00"}},{"$f":"IFERROR('MMA Rev-Exp Summary'!$H$30/'MMA Rev-Exp Summary'!$H$9, 0)","v":{"v":0,"d":"$0.00"}},{"$f":"IFERROR('MMA Rev-Exp Summary'!$I$30/'MMA Rev-Exp Summary'!$I$9, 0)","v":{"v":0,"d":"$0.00"}},{"$f":"IFERROR('MMA Rev-Exp Summary'!$J$30/'MMA Rev-Exp Summary'!$J$9, 0)","v":{"v":0,"d":"$0.00"}},{"$f":"IFERROR('MMA Rev-Exp Summary'!$K$30/'MMA Rev-Exp Summary'!$K$9, 0)","v":{"v":0,"d":"$0.00"}},{"$f":"IFERROR('MMA Rev-Exp Summary'!$L$30/'MMA Rev-Exp Summary'!$L$9, 0)","v":{"v":0,"d":"$0.00"}},{"$f":"IFERROR('MMA Rev-Exp Summary'!$M$30/'MMA Rev-Exp Summary'!$M$9, 0)","v":{"v":0,"d":"$0.00"}},{"$f":"IFERROR('MMA Rev-Exp Summary'!$N$30/'MMA Rev-Exp Summary'!$N$9, 0)","v":{"v":0,"d":"$0.00"}}]
["MMA",null,null,{"$f":"Jurat!I$1","v":0},{"$f":"Jurat!D$33","v":"00:00:00"},"Q1","2017-03-31","Summary","Operating Expense","Medical Benefits Expense","Professional Services",3.3,"Other Professional FFS",{"$f":"IFERROR('MMA Rev-Exp Summary'!$D$31/'MMA Rev-Exp Summary'!$D$9, 0)","v":{"v":0,"d":"$0.00"}},{"$f":"IFERROR('MMA Rev-Exp Summary'!$E$31/'MMA Rev-Exp Summary'!$E$9, 0)","v":{"v":0,"d":"$0.00"}},{"$f":"IFERROR('MMA Rev-Exp Summary'!$F$31/'MMA Rev-Exp Summary'!$F$9, 0)","v":{"v":0,"d":"$0.00"}},{"$f":"IFERROR('MMA Rev-Exp Summary'!$G$31/'MMA Rev-Exp Summary'!$G$9, 0)","v":{"v":0,"d":"$0.00"}},{"$f":"IFERROR('MMA Rev-Exp Summary'!$H$31/'MMA Rev-Exp Summary'!$H$9, 0)","v":{"v":0,"d":"$0.00"}},{"$f":"IFERROR('MMA Rev-Exp Summary'!$I$31/'MMA Rev-Exp Summary'!$I$9, 0)","v":{"v":0,"d":"$0.00"}},{"$f":"IFERROR('MMA Rev-Exp Summary'!$J$31/'MMA Rev-Exp Summary'!$J$9, 0)","v":{"v":0,"d":"$0.00"}},{"$f":"IFERROR('MMA Rev-Exp Summary'!$K$31/'MMA Rev-Exp Summary'!$K$9, 0)","v":{"v":0,"d":"$0.00"}},{"$f":"IFERROR('MMA Rev-Exp Summary'!$L$31/'MMA Rev-Exp Summary'!$L$9, 0)","v":{"v":0,"d":"$0.00"}},{"$f":"IFERROR('MMA Rev-Exp Summary'!$M$31/'MMA Rev-Exp Summary'!$M$9, 0)","v":{"v":0,"d":"$0.00"}},{"$f":"IFERROR('MMA Rev-Exp Summary'!$N$31/'MMA Rev-Exp Summary'!$N$9, 0)","v":{"v":0,"d":"$0.00"}}]
["MMA",null,null,{"$f":"Jurat!I$1","v":0},{"$f":"Jurat!D$33","v":"00:00:00"},"Q1","2017-03-31","Summary","Operating Expense","Medical Benefits Expense","Professional Services","3.4","§ 1202 PCP Payments to providers",{"$f":"IFERROR('MMA Rev-Exp Summary'!$D$32/'MMA Rev-Exp Summary'!$D$9, 0)","v":{"v":0,"d":"$0.00"}},{"$f":"IFERROR('MMA Rev-Exp Summary'!$E$32/'MMA Rev-Exp Summary'!$E$9, 0)","v":{"v":0,"d":"$0.00"}},{"$f":"IFERROR('MMA Rev-Exp Summary'!$F$32/'MMA Rev-Exp Summary'!$F$9, 0)","v":{"v":0,"d":"$0.00"}},{"$f":"IFERROR('MMA Rev-Exp Summary'!$G$32/'MMA Rev-Exp Summary'!$G$9, 0)","v":{"v":0,"d":"$0.00"}},{"$f":"IFERROR('MMA Rev-Exp Summary'!$H$32/'MMA Rev-Exp Summary'!$H$9, 0)","v":{"v":0,"d":"$0.00"}},{"$f":"IFERROR('MMA Rev-Exp Summary'!$I$32/'MMA Rev-Exp Summary'!$I$9, 0)","v":{"v":0,"d":"$0.00"}},{"$f":"IFERROR('MMA Rev-Exp Summary'!$J$32/'MMA Rev-Exp Summary'!$J$9, 0)","v":{"v":0,"d":"$0.00"}},{"$f":"IFERROR('MMA Rev-Exp Summary'!$K$32/'MMA Rev-Exp Summary'!$K$9, 0)","v":{"v":0,"d":"$0.00"}},{"$f":"IFERROR('MMA Rev-Exp Summary'!$L$32/'MMA Rev-Exp Summary'!$L$9, 0)","v":{"v":0,"d":"$0.00"}},{"$f":"IFERROR('MMA Rev-Exp Summary'!$M$32/'MMA Rev-Exp Summary'!$M$9, 0)","v":{"v":0,"d":"$0.00"}},{"$f":"IFERROR('MMA Rev-Exp Summary'!$N$32/'MMA Rev-Exp Summary'!$N$9, 0)","v":{"v":0,"d":"$0.00"}}]
["MMA",null,null,{"$f":"Jurat!I$1","v":0},{"$f":"Jurat!D$33","v":"00:00:00"},"Q1","2017-03-31","Summary","Operating Expense","Medical Benefits Expense","Professional Services","3.5","Subcapitated Professional Services",{"$f":"IFERROR('MMA Rev-Exp Summary'!$D$33/'MMA Rev-Exp Summary'!$D$9, 0)","v":{"v":0,"d":"$0.00"}},{"$f":"IFERROR('MMA Rev-Exp Summary'!$E$33/'MMA Rev-Exp Summary'!$E$9, 0)","v":{"v":0,"d":"$0.00"}},{"$f":"IFERROR('MMA Rev-Exp Summary'!$F$33/'MMA Rev-Exp Summary'!$F$9, 0)","v":{"v":0,"d":"$0.00"}},{"$f":"IFERROR('MMA Rev-Exp Summary'!$G$33/'MMA Rev-Exp Summary'!$G$9, 0)","v":{"v":0,"d":"$0.00"}},{"$f":"IFERROR('MMA Rev-Exp Summary'!$H$33/'MMA Rev-Exp Summary'!$H$9, 0)","v":{"v":0,"d":"$0.00"}},{"$f":"IFERROR('MMA Rev-Exp Summary'!$I$33/'MMA Rev-Exp Summary'!$I$9, 0)","v":{"v":0,"d":"$0.00"}},{"$f":"IFERROR('MMA Rev-Exp Summary'!$J$33/'MMA Rev-Exp Summary'!$J$9, 0)","v":{"v":0,"d":"$0.00"}},{"$f":"IFERROR('MMA Rev-Exp Summary'!$K$33/'MMA Rev-Exp Summary'!$K$9, 0)","v":{"v":0,"d":"$0.00"}},{"$f":"IFERROR('MMA Rev-Exp Summary'!$L$33/'MMA Rev-Exp Summary'!$L$9, 0)","v":{"v":0,"d":"$0.00"}},{"$f":"IFERROR('MMA Rev-Exp Summary'!$M$33/'MMA Rev-Exp Summary'!$M$9, 0)","v":{"v":0,"d":"$0.00"}},{"$f":"IFERROR('MMA Rev-Exp Summary'!$N$33/'MMA Rev-Exp Summary'!$N$9, 0)","v":{"v":0,"d":"$0.00"}}]
["MMA",null,null,{"$f":"Jurat!I$1","v":0},{"$f":"Jurat!D$33","v":"00:00:00"},"Q1","2017-03-31","Summary","Operating Expense","Medical Benefits Expense","Professional Services","3.6","Ending IBNP for Professional Services",{"$f":"IFERROR('MMA Rev-Exp Summary'!$D$34/'MMA Rev-Exp Summary'!$D$9, 0)","v":{"v":0,"d":"$0.00"}},{"$f":"IFERROR('MMA Rev-Exp Summary'!$E$34/'MMA Rev-Exp Summary'!$E$9, 0)","v":{"v":0,"d":"$0.00"}},{"$f":"IFERROR('MMA Rev-Exp Summary'!$F$34/'MMA Rev-Exp Summary'!$F$9, 0)","v":{"v":0,"d":"$0.00"}},{"$f":"IFERROR('MMA Rev-Exp Summary'!$G$34/'MMA Rev-Exp Summary'!$G$9, 0)","v":{"v":0,"d":"$0.00"}},{"$f":"IFERROR('MMA Rev-Exp Summary'!$H$34/'MMA Rev-Exp Summary'!$H$9, 0)","v":{"v":0,"d":"$0.00"}},{"$f":"IFERROR('MMA Rev-Exp Summary'!$I$34/'MMA Rev-Exp Summary'!$I$9, 0)","v":{"v":0,"d":"$0.00"}},{"$f":"IFERROR('MMA Rev-Exp Summary'!$J$34/'MMA Rev-Exp Summary'!$J$9, 0)","v":{"v":0,"d":"$0.00"}},{"$f":"IFERROR('MMA Rev-Exp Summary'!$K$34/'MMA Rev-Exp Summary'!$K$9, 0)","v":{"v":0,"d":"$0.00"}},{"$f":"IFERROR('MMA Rev-Exp Summary'!$L$34/'MMA Rev-Exp Summary'!$L$9, 0)","v":{"v":0,"d":"$0.00"}},{"$f":"IFERROR('MMA Rev-Exp Summary'!$M$34/'MMA Rev-Exp Summary'!$M$9, 0)","v":{"v":0,"d":"$0.00"}},{"$f":"IFERROR('MMA Rev-Exp Summary'!$N$34/'MMA Rev-Exp Summary'!$N$9, 0)","v":{"v":0,"d":"$0.00"}}]
["MMA",null,null,{"$f":"Jurat!I$1","v":0},{"$f":"Jurat!D$33","v":"00:00:00"},"Q1","2017-03-31","Summary","Operating Expense","Medical Benefits Expense","Professional Services","3.7","Professional Services Settlements",{"$f":"IFERROR('MMA Rev-Exp Summary'!$D$35/'MMA Rev-Exp Summary'!$D$9, 0)","v":{"v":0,"d":"$0.00"}},{"$f":"IFERROR('MMA Rev-Exp Summary'!$E$35/'MMA Rev-Exp Summary'!$E$9, 0)","v":{"v":0,"d":"$0.00"}},{"$f":"IFERROR('MMA Rev-Exp Summary'!$F$35/'MMA Rev-Exp Summary'!$F$9, 0)","v":{"v":0,"d":"$0.00"}},{"$f":"IFERROR('MMA Rev-Exp Summary'!$G$35/'MMA Rev-Exp Summary'!$G$9, 0)","v":{"v":0,"d":"$0.00"}},{"$f":"IFERROR('MMA Rev-Exp Summary'!$H$35/'MMA Rev-Exp Summary'!$H$9, 0)","v":{"v":0,"d":"$0.00"}},{"$f":"IFERROR('MMA Rev-Exp Summary'!$I$35/'MMA Rev-Exp Summary'!$I$9, 0)","v":{"v":0,"d":"$0.00"}},{"$f":"IFERROR('MMA Rev-Exp Summary'!$J$35/'MMA Rev-Exp Summary'!$J$9, 0)","v":{"v":0,"d":"$0.00"}},{"$f":"IFERROR('MMA Rev-Exp Summary'!$K$35/'MMA Rev-Exp Summary'!$K$9, 0)","v":{"v":0,"d":"$0.00"}},{"$f":"IFERROR('MMA Rev-Exp Summary'!$L$35/'MMA Rev-Exp Summary'!$L$9, 0)","v":{"v":0,"d":"$0.00"}},{"$f":"IFERROR('MMA Rev-Exp Summary'!$M$35/'MMA Rev-Exp Summary'!$M$9, 0)","v":{"v":0,"d":"$0.00"}},{"$f":"IFERROR('MMA Rev-Exp Summary'!$N$35/'MMA Rev-Exp Summary'!$N$9, 0)","v":{"v":0,"d":"$0.00"}}]
["MMA",null,null,{"$f":"Jurat!I$1","v":0},{"$f":"Jurat!D$33","v":"00:00:00"},"Q1","2017-03-31","Summary","Operating Expense","Medical Benefits Expense","Maternity Services","4.1.1","Maternity Services",{"$f":"IFERROR('MMA Rev-Exp Summary'!$D$37/'MMA Rev-Exp Summary'!$D$9, 0)","v":{"v":0,"d":"$0.00"}},{"$f":"IFERROR('MMA Rev-Exp Summary'!$E$37/'MMA Rev-Exp Summary'!$E$9, 0)","v":{"v":0,"d":"$0.00"}},{"$f":"IFERROR('MMA Rev-Exp Summary'!$F$37/'MMA Rev-Exp Summary'!$F$9, 0)","v":{"v":0,"d":"$0.00"}},{"$f":"IFERROR('MMA Rev-Exp Summary'!$G$37/'MMA Rev-Exp Summary'!$G$9, 0)","v":{"v":0,"d":"$0.00"}},{"$f":"IFERROR('MMA Rev-Exp Summary'!$H$37/'MMA Rev-Exp Summary'!$H$9, 0)","v":{"v":0,"d":"$0.00"}},{"$f":"IFERROR('MMA Rev-Exp Summary'!$I$37/'MMA Rev-Exp Summary'!$I$9, 0)","v":{"v":0,"d":"$0.00"}},{"$f":"IFERROR('MMA Rev-Exp Summary'!$J$37/'MMA Rev-Exp Summary'!$J$9, 0)","v":{"v":0,"d":"$0.00"}},{"$f":"IFERROR('MMA Rev-Exp Summary'!$K$37/'MMA Rev-Exp Summary'!$K$9, 0)","v":{"v":0,"d":"$0.00"}},{"$f":"IFERROR('MMA Rev-Exp Summary'!$L$37/'MMA Rev-Exp Summary'!$L$9, 0)","v":{"v":0,"d":"$0.00"}},{"$f":"IFERROR('MMA Rev-Exp Summary'!$M$37/'MMA Rev-Exp Summary'!$M$9, 0)","v":{"v":0,"d":"$0.00"}},{"$f":"IFERROR('MMA Rev-Exp Summary'!$N$37/'MMA Rev-Exp Summary'!$N$9, 0)","v":{"v":0,"d":"$0.00"}}]
["MMA",null,null,{"$f":"Jurat!I$1","v":0},{"$f":"Jurat!D$33","v":"00:00:00"},"Q1","2017-03-31","Summary","Operating Expense","Medical Benefits Expense","Maternity Services","4.2.1","Ending IBNP for Maternity Services",{"$f":"IFERROR('MMA Rev-Exp Summary'!$D$38/'MMA Rev-Exp Summary'!$D$9, 0)","v":{"v":0,"d":"$0.00"}},{"$f":"IFERROR('MMA Rev-Exp Summary'!$E$38/'MMA Rev-Exp Summary'!$E$9, 0)","v":{"v":0,"d":"$0.00"}},{"$f":"IFERROR('MMA Rev-Exp Summary'!$F$38/'MMA Rev-Exp Summary'!$F$9, 0)","v":{"v":0,"d":"$0.00"}},{"$f":"IFERROR('MMA Rev-Exp Summary'!$G$38/'MMA Rev-Exp Summary'!$G$9, 0)","v":{"v":0,"d":"$0.00"}},{"$f":"IFERROR('MMA Rev-Exp Summary'!$H$38/'MMA Rev-Exp Summary'!$H$9, 0)","v":{"v":0,"d":"$0.00"}},{"$f":"IFERROR('MMA Rev-Exp Summary'!$I$38/'MMA Rev-Exp Summary'!$I$9, 0)","v":{"v":0,"d":"$0.00"}},{"$f":"IFERROR('MMA Rev-Exp Summary'!$J$38/'MMA Rev-Exp Summary'!$J$9, 0)","v":{"v":0,"d":"$0.00"}},{"$f":"IFERROR('MMA Rev-Exp Summary'!$K$38/'MMA Rev-Exp Summary'!$K$9, 0)","v":{"v":0,"d":"$0.00"}},{"$f":"IFERROR('MMA Rev-Exp Summary'!$L$38/'MMA Rev-Exp Summary'!$L$9, 0)","v":{"v":0,"d":"$0.00"}},{"$f":"IFERROR('MMA Rev-Exp Summary'!$M$38/'MMA Rev-Exp Summary'!$M$9, 0)","v":{"v":0,"d":"$0.00"}},{"$f":"IFERROR('MMA Rev-Exp Summary'!$N$38/'MMA Rev-Exp Summary'!$N$9, 0)","v":{"v":0,"d":"$0.00"}}]
["MMA",null,null,{"$f":"Jurat!I$1","v":0},{"$f":"Jurat!D$33","v":"00:00:00"},"Q1","2017-03-31","Summary","Operating Expense","Medical Benefits Expense","Maternity Services","4.3.1","Maternity Settlements",{"$f":"IFERROR('MMA Rev-Exp Summary'!$D$39/'MMA Rev-Exp Summary'!$D$9, 0)","v":{"v":0,"d":"$0.00"}},{"$f":"IFERROR('MMA Rev-Exp Summary'!$E$39/'MMA Rev-Exp Summary'!$E$9, 0)","v":{"v":0,"d":"$0.00"}},{"$f":"IFERROR('MMA Rev-Exp Summary'!$F$39/'MMA Rev-Exp Summary'!$F$9, 0)","v":{"v":0,"d":"$0.00"}},{"$f":"IFERROR('MMA Rev-Exp Summary'!$G$39/'MMA Rev-Exp Summary'!$G$9, 0)","v":{"v":0,"d":"$0.00"}},{"$f":"IFERROR('MMA Rev-Exp Summary'!$H$39/'MMA Rev-Exp Summary'!$H$9, 0)","v":{"v":0,"d":"$0.00"}},{"$f":"IFERROR('MMA Rev-Exp Summary'!$I$39/'MMA Rev-Exp Summary'!$I$9, 0)","v":{"v":0,"d":"$0.00"}},{"$f":"IFERROR('MMA Rev-Exp Summary'!$J$39/'MMA Rev-Exp Summary'!$J$9, 0)","v":{"v":0,"d":"$0.00"}},{"$f":"IFERROR('MMA Rev-Exp Summary'!$K$39/'MMA Rev-Exp Summary'!$K$9, 0)","v":{"v":0,"d":"$0.00"}},{"$f":"IFERROR('MMA Rev-Exp Summary'!$L$39/'MMA Rev-Exp Summary'!$L$9, 0)","v":{"v":0,"d":"$0.00"}},{"$f":"IFERROR('MMA Rev-Exp Summary'!$M$39/'MMA Rev-Exp Summary'!$M$9, 0)","v":{"v":0,"d":"$0.00"}},{"$f":"IFERROR('MMA Rev-Exp Summary'!$N$39/'MMA Rev-Exp Summary'!$N$9, 0)","v":{"v":0,"d":"$0.00"}}]
["MMA",null,null,{"$f":"Jurat!I$1","v":0},{"$f":"Jurat!D$33","v":"00:00:00"},"Q1","2017-03-31","Summary","Operating Expense","Medical Benefits Expense","Mental Health Services",5.1,"Mental Health & Substance Abuse FFS",{"$f":"IFERROR('MMA Rev-Exp Summary'!$D$41/'MMA Rev-Exp Summary'!$D$9, 0)","v":{"v":0,"d":"$0.00"}},{"$f":"IFERROR('MMA Rev-Exp Summary'!$E$41/'MMA Rev-Exp Summary'!$E$9, 0)","v":{"v":0,"d":"$0.00"}},{"$f":"IFERROR('MMA Rev-Exp Summary'!$F$41/'MMA Rev-Exp Summary'!$F$9, 0)","v":{"v":0,"d":"$0.00"}},{"$f":"IFERROR('MMA Rev-Exp Summary'!$G$41/'MMA Rev-Exp Summary'!$G$9, 0)","v":{"v":0,"d":"$0.00"}},{"$f":"IFERROR('MMA Rev-Exp Summary'!$H$41/'MMA Rev-Exp Summary'!$H$9, 0)","v":{"v":0,"d":"$0.00"}},{"$f":"IFERROR('MMA Rev-Exp Summary'!$I$41/'MMA Rev-Exp Summary'!$I$9, 0)","v":{"v":0,"d":"$0.00"}},{"$f":"IFERROR('MMA Rev-Exp Summary'!$J$41/'MMA Rev-Exp Summary'!$J$9, 0)","v":{"v":0,"d":"$0.00"}},{"$f":"IFERROR('MMA Rev-Exp Summary'!$K$41/'MMA Rev-Exp Summary'!$K$9, 0)","v":{"v":0,"d":"$0.00"}},{"$f":"IFERROR('MMA Rev-Exp Summary'!$L$41/'MMA Rev-Exp Summary'!$L$9, 0)","v":{"v":0,"d":"$0.00"}},{"$f":"IFERROR('MMA Rev-Exp Summary'!$M$41/'MMA Rev-Exp Summary'!$M$9, 0)","v":{"v":0,"d":"$0.00"}},{"$f":"IFERROR('MMA Rev-Exp Summary'!$N$41/'MMA Rev-Exp Summary'!$N$9, 0)","v":{"v":0,"d":"$0.00"}}]
["MMA",null,null,{"$f":"Jurat!I$1","v":0},{"$f":"Jurat!D$33","v":"00:00:00"},"Q1","2017-03-31","Summary","Operating Expense","Medical Benefits Expense","Mental Health Services",5.2,"Mental Health & Substance Abuse Subcapitation",{"$f":"IFERROR('MMA Rev-Exp Summary'!$D$42/'MMA Rev-Exp Summary'!$D$9, 0)","v":{"v":0,"d":"$0.00"}},{"$f":"IFERROR('MMA Rev-Exp Summary'!$E$42/'MMA Rev-Exp Summary'!$E$9, 0)","v":{"v":0,"d":"$0.00"}},{"$f":"IFERROR('MMA Rev-Exp Summary'!$F$42/'MMA Rev-Exp Summary'!$F$9, 0)","v":{"v":0,"d":"$0.00"}},{"$f":"IFERROR('MMA Rev-Exp Summary'!$G$42/'MMA Rev-Exp Summary'!$G$9, 0)","v":{"v":0,"d":"$0.00"}},{"$f":"IFERROR('MMA Rev-Exp Summary'!$H$42/'MMA Rev-Exp Summary'!$H$9, 0)","v":{"v":0,"d":"$0.00"}},{"$f":"IFERROR('MMA Rev-Exp Summary'!$I$42/'MMA Rev-Exp Summary'!$I$9, 0)","v":{"v":0,"d":"$0.00"}},{"$f":"IFERROR('MMA Rev-Exp Summary'!$J$42/'MMA Rev-Exp Summary'!$J$9, 0)","v":{"v":0,"d":"$0.00"}},{"$f":"IFERROR('MMA Rev-Exp Summary'!$K$42/'MMA Rev-Exp Summary'!$K$9, 0)","v":{"v":0,"d":"$0.00"}},{"$f":"IFERROR('MMA Rev-Exp Summary'!$L$42/'MMA Rev-Exp Summary'!$L$9, 0)","v":{"v":0,"d":"$0.00"}},{"$f":"IFERROR('MMA Rev-Exp Summary'!$M$42/'MMA Rev-Exp Summary'!$M$9, 0)","v":{"v":0,"d":"$0.00"}},{"$f":"IFERROR('MMA Rev-Exp Summary'!$N$42/'MMA Rev-Exp Summary'!$N$9, 0)","v":{"v":0,"d":"$0.00"}}]
["MMA",null,null,{"$f":"Jurat!I$1","v":0},{"$f":"Jurat!D$33","v":"00:00:00"},"Q1","2017-03-31","Summary","Operating Expense","Medical Benefits Expense","Mental Health Services",5.3,"Ending IBNP for Mental Health & Substance Abuse",{"$f":"IFERROR('MMA Rev-Exp Summary'!$D$43/'MMA Rev-Exp Summary'!$D$9, 0)","v":{"v":0,"d":"$0.00"}},{"$f":"IFERROR('MMA Rev-Exp Summary'!$E$43/'MMA Rev-Exp Summary'!$E$9, 0)","v":{"v":0,"d":"$0.00"}},{"$f":"IFERROR('MMA Rev-Exp Summary'!$F$43/'MMA Rev-Exp Summary'!$F$9, 0)","v":{"v":0,"d":"$0.00"}},{"$f":"IFERROR('MMA Rev-Exp Summary'!$G$43/'MMA Rev-Exp Summary'!$G$9, 0)","v":{"v":0,"d":"$0.00"}},{"$f":"IFERROR('MMA Rev-Exp Summary'!$H$43/'MMA Rev-Exp Summary'!$H$9, 0)","v":{"v":0,"d":"$0.00"}},{"$f":"IFERROR('MMA Rev-Exp Summary'!$I$43/'MMA Rev-Exp Summary'!$I$9, 0)","v":{"v":0,"d":"$0.00"}},{"$f":"IFERROR('MMA Rev-Exp Summary'!$J$43/'MMA Rev-Exp Summary'!$J$9, 0)","v":{"v":0,"d":"$0.00"}},{"$f":"IFERROR('MMA Rev-Exp Summary'!$K$43/'MMA Rev-Exp Summary'!$K$9, 0)","v":{"v":0,"d":"$0.00"}},{"$f":"IFERROR('MMA Rev-Exp Summary'!$L$43/'MMA Rev-Exp Summary'!$L$9, 0)","v":{"v":0,"d":"$0.00"}},{"$f":"IFERROR('MMA Rev-Exp Summary'!$M$43/'MMA Rev-Exp Summary'!$M$9, 0)","v":{"v":0,"d":"$0.00"}},{"$f":"IFERROR('MMA Rev-Exp Summary'!$N$43/'MMA Rev-Exp Summary'!$N$9, 0)","v":{"v":0,"d":"$0.00"}}]
["MMA",null,null,{"$f":"Jurat!I$1","v":0},{"$f":"Jurat!D$33","v":"00:00:00"},"Q1","2017-03-31","Summary","Operating Expense","Medical Benefits Expense","Mental Health Services","5.4","Mental Health Settlements",{"$f":"IFERROR('MMA Rev-Exp Summary'!$D$44/'MMA Rev-Exp Summary'!$D$9, 0)","v":{"v":0,"d":"$0.00"}},{"$f":"IFERROR('MMA Rev-Exp Summary'!$E$44/'MMA Rev-Exp Summary'!$E$9, 0)","v":{"v":0,"d":"$0.00"}},{"$f":"IFERROR('MMA Rev-Exp Summary'!$F$44/'MMA Rev-Exp Summary'!$F$9, 0)","v":{"v":0,"d":"$0.00"}},{"$f":"IFERROR('MMA Rev-Exp Summary'!$G$44/'MMA Rev-Exp Summary'!$G$9, 0)","v":{"v":0,"d":"$0.00"}},{"$f":"IFERROR('MMA Rev-Exp Summary'!$H$44/'MMA Rev-Exp Summary'!$H$9, 0)","v":{"v":0,"d":"$0.00"}},{"$f":"IFERROR('MMA Rev-Exp Summary'!$I$44/'MMA Rev-Exp Summary'!$I$9, 0)","v":{"v":0,"d":"$0.00"}},{"$f":"IFERROR('MMA Rev-Exp Summary'!$J$44/'MMA Rev-Exp Summary'!$J$9, 0)","v":{"v":0,"d":"$0.00"}},{"$f":"IFERROR('MMA Rev-Exp Summary'!$K$44/'MMA Rev-Exp Summary'!$K$9, 0)","v":{"v":0,"d":"$0.00"}},{"$f":"IFERROR('MMA Rev-Exp Summary'!$L$44/'MMA Rev-Exp Summary'!$L$9, 0)","v":{"v":0,"d":"$0.00"}},{"$f":"IFERROR('MMA Rev-Exp Summary'!$M$44/'MMA Rev-Exp Summary'!$M$9, 0)","v":{"v":0,"d":"$0.00"}},{"$f":"IFERROR('MMA Rev-Exp Summary'!$N$44/'MMA Rev-Exp Summary'!$N$9, 0)","v":{"v":0,"d":"$0.00"}}]
["MMA",null,null,{"$f":"Jurat!I$1","v":0},{"$f":"Jurat!D$33","v":"00:00:00"},"Q1","2017-03-31","Summary","Operating Expense","Medical Benefits Expense","Dental Services",6.1,"Dental FFS",{"$f":"IFERROR('MMA Rev-Exp Summary'!$D$46/'MMA Rev-Exp Summary'!$D$9, 0)","v":{"v":0,"d":"$0.00"}},{"$f":"IFERROR('MMA Rev-Exp Summary'!$E$46/'MMA Rev-Exp Summary'!$E$9, 0)","v":{"v":0,"d":"$0.00"}},{"$f":"IFERROR('MMA Rev-Exp Summary'!$F$46/'MMA Rev-Exp Summary'!$F$9, 0)","v":{"v":0,"d":"$0.00"}},{"$f":"IFERROR('MMA Rev-Exp Summary'!$G$46/'MMA Rev-Exp Summary'!$G$9, 0)","v":{"v":0,"d":"$0.00"}},{"$f":"IFERROR('MMA Rev-Exp Summary'!$H$46/'MMA Rev-Exp Summary'!$H$9, 0)","v":{"v":0,"d":"$0.00"}},{"$f":"IFERROR('MMA Rev-Exp Summary'!$I$46/'MMA Rev-Exp Summary'!$I$9, 0)","v":{"v":0,"d":"$0.00"}},{"$f":"IFERROR('MMA Rev-Exp Summary'!$J$46/'MMA Rev-Exp Summary'!$J$9, 0)","v":{"v":0,"d":"$0.00"}},{"$f":"IFERROR('MMA Rev-Exp Summary'!$K$46/'MMA Rev-Exp Summary'!$K$9, 0)","v":{"v":0,"d":"$0.00"}},{"$f":"IFERROR('MMA Rev-Exp Summary'!$L$46/'MMA Rev-Exp Summary'!$L$9, 0)","v":{"v":0,"d":"$0.00"}},{"$f":"IFERROR('MMA Rev-Exp Summary'!$M$46/'MMA Rev-Exp Summary'!$M$9, 0)","v":{"v":0,"d":"$0.00"}},{"$f":"IFERROR('MMA Rev-Exp Summary'!$N$46/'MMA Rev-Exp Summary'!$N$9, 0)","v":{"v":0,"d":"$0.00"}}]
["MMA",null,null,{"$f":"Jurat!I$1","v":0},{"$f":"Jurat!D$33","v":"00:00:00"},"Q1","2017-03-31","Summary","Operating Expense","Medical Benefits Expense","Dental Services",6.2,"Dental Subcapitation",{"$f":"IFERROR('MMA Rev-Exp Summary'!$D$47/'MMA Rev-Exp Summary'!$D$9, 0)","v":{"v":0,"d":"$0.00"}},{"$f":"IFERROR('MMA Rev-Exp Summary'!$E$47/'MMA Rev-Exp Summary'!$E$9, 0)","v":{"v":0,"d":"$0.00"}},{"$f":"IFERROR('MMA Rev-Exp Summary'!$F$47/'MMA Rev-Exp Summary'!$F$9, 0)","v":{"v":0,"d":"$0.00"}},{"$f":"IFERROR('MMA Rev-Exp Summary'!$G$47/'MMA Rev-Exp Summary'!$G$9, 0)","v":{"v":0,"d":"$0.00"}},{"$f":"IFERROR('MMA Rev-Exp Summary'!$H$47/'MMA Rev-Exp Summary'!$H$9, 0)","v":{"v":0,"d":"$0.00"}},{"$f":"IFERROR('MMA Rev-Exp Summary'!$I$47/'MMA Rev-Exp Summary'!$I$9, 0)","v":{"v":0,"d":"$0.00"}},{"$f":"IFERROR('MMA Rev-Exp Summary'!$J$47/'MMA Rev-Exp Summary'!$J$9, 0)","v":{"v":0,"d":"$0.00"}},{"$f":"IFERROR('MMA Rev-Exp Summary'!$K$47/'MMA Rev-Exp Summary'!$K$9, 0)","v":{"v":0,"d":"$0.00"}},{"$f":"IFERROR('MMA Rev-Exp Summary'!$L$47/'MMA Rev-Exp Summary'!$L$9, 0)","v":{"v":0,"d":"$0.00"}},{"$f":"IFERROR('MMA Rev-Exp Summary'!$M$47/'MMA Rev-Exp Summary'!$M$9, 0)","v":{"v":0,"d":"$0.00"}},{"$f":"IFERROR('MMA Rev-Exp Summary'!$N$47/'MMA Rev-Exp Summary'!$N$9, 0)","v":{"v":0,"d":"$0.00"}}]
["MMA",null,null,{"$f":"Jurat!I$1","v":0},{"$f":"Jurat!D$33","v":"00:00:00"},"Q1","2017-03-31","Summary","Operating Expense","Medical Benefits Expense","Dental Services",6.3,"Ending IBNP for Dental Services",{"$f":"IFERROR('MMA Rev-Exp Summary'!$D$48/'MMA Rev-Exp Summary'!$D$9, 0)","v":{"v":0,"d":"$0.00"}},{"$f":"IFERROR('MMA Rev-Exp Summary'!$E$48/'MMA Rev-Exp Summary'!$E$9, 0)","v":{"v":0,"d":"$0.00"}},{"$f":"IFERROR('MMA Rev-Exp Summary'!$F$48/'MMA Rev-Exp Summary'!$F$9, 0)","v":{"v":0,"d":"$0.00"}},{"$f":"IFERROR('MMA Rev-Exp Summary'!$G$48/'MMA Rev-Exp Summary'!$G$9, 0)","v":{"v":0,"d":"$0.00"}},{"$f":"IFERROR('MMA Rev-Exp Summary'!$H$48/'MMA Rev-Exp Summary'!$H$9, 0)","v":{"v":0,"d":"$0.00"}},{"$f":"IFERROR('MMA Rev-Exp Summary'!$I$48/'MMA Rev-Exp Summary'!$I$9, 0)","v":{"v":0,"d":"$0.00"}},{"$f":"IFERROR('MMA Rev-Exp Summary'!$J$48/'MMA Rev-Exp Summary'!$J$9, 0)","v":{"v":0,"d":"$0.00"}},{"$f":"IFERROR('MMA Rev-Exp Summary'!$K$48/'MMA Rev-Exp Summary'!$K$9, 0)","v":{"v":0,"d":"$0.00"}},{"$f":"IFERROR('MMA Rev-Exp Summary'!$L$48/'MMA Rev-Exp Summary'!$L$9, 0)","v":{"v":0,"d":"$0.00"}},{"$f":"IFERROR('MMA Rev-Exp Summary'!$M$48/'MMA Rev-Exp Summary'!$M$9, 0)","v":{"v":0,"d":"$0.00"}},{"$f":"IFERROR('MMA Rev-Exp Summary'!$N$48/'MMA Rev-Exp Summary'!$N$9, 0)","v":{"v":0,"d":"$0.00"}}]
["MMA",null,null,{"$f":"Jurat!I$1","v":0},{"$f":"Jurat!D$33","v":"00:00:00"},"Q1","2017-03-31","Summary","Operating Expense","Medical Benefits Expense","Dental Services","6.4","Dental Settlements",{"$f":"IFERROR('MMA Rev-Exp Summary'!$D$49/'MMA Rev-Exp Summary'!$D$9, 0)","v":{"v":0,"d":"$0.00"}},{"$f":"IFERROR('MMA Rev-Exp Summary'!$E$49/'MMA Rev-Exp Summary'!$E$9, 0)","v":{"v":0,"d":"$0.00"}},{"$f":"IFERROR('MMA Rev-Exp Summary'!$F$49/'MMA Rev-Exp Summary'!$F$9, 0)","v":{"v":0,"d":"$0.00"}},{"$f":"IFERROR('MMA Rev-Exp Summary'!$G$49/'MMA Rev-Exp Summary'!$G$9, 0)","v":{"v":0,"d":"$0.00"}},{"$f":"IFERROR('MMA Rev-Exp Summary'!$H$49/'MMA Rev-Exp Summary'!$H$9, 0)","v":{"v":0,"d":"$0.00"}},{"$f":"IFERROR('MMA Rev-Exp Summary'!$I$49/'MMA Rev-Exp Summary'!$I$9, 0)","v":{"v":0,"d":"$0.00"}},{"$f":"IFERROR('MMA Rev-Exp Summary'!$J$49/'MMA Rev-Exp Summary'!$J$9, 0)","v":{"v":0,"d":"$0.00"}},{"$f":"IFERROR('MMA Rev-Exp Summary'!$K$49/'MMA Rev-Exp Summary'!$K$9, 0)","v":{"v":0,"d":"$0.00"}},{"$f":"IFERROR('MMA Rev-Exp Summary'!$L$49/'MMA Rev-Exp Summary'!$L$9, 0)","v":{"v":0,"d":"$0.00"}},{"$f":"IFERROR('MMA Rev-Exp Summary'!$M$49/'MMA Rev-Exp Summary'!$M$9, 0)","v":{"v":0,"d":"$0.00"}},{"$f":"IFERROR('MMA Rev-Exp Summary'!$N$49/'MMA Rev-Exp Summary'!$N$9, 0)","v":{"v":0,"d":"$0.00"}}]
["MMA",null,null,{"$f":"Jurat!I$1","v":0},{"$f":"Jurat!D$33","v":"00:00:00"},"Q1","2017-03-31","Summary","Operating Expense","Medical Benefits Expense","Transportation Services",7.1,"Transportation FFS",{"$f":"IFERROR('MMA Rev-Exp Summary'!$D$51/'MMA Rev-Exp Summary'!$D$9, 0)","v":{"v":0,"d":"$0.00"}},{"$f":"IFERROR('MMA Rev-Exp Summary'!$E$51/'MMA Rev-Exp Summary'!$E$9, 0)","v":{"v":0,"d":"$0.00"}},{"$f":"IFERROR('MMA Rev-Exp Summary'!$F$51/'MMA Rev-Exp Summary'!$F$9, 0)","v":{"v":0,"d":"$0.00"}},{"$f":"IFERROR('MMA Rev-Exp Summary'!$G$51/'MMA Rev-Exp Summary'!$G$9, 0)","v":{"v":0,"d":"$0.00"}},{"$f":"IFERROR('MMA Rev-Exp Summary'!$H$51/'MMA Rev-Exp Summary'!$H$9, 0)","v":{"v":0,"d":"$0.00"}},{"$f":"IFERROR('MMA Rev-Exp Summary'!$I$51/'MMA Rev-Exp Summary'!$I$9, 0)","v":{"v":0,"d":"$0.00"}},{"$f":"IFERROR('MMA Rev-Exp Summary'!$J$51/'MMA Rev-Exp Summary'!$J$9, 0)","v":{"v":0,"d":"$0.00"}},{"$f":"IFERROR('MMA Rev-Exp Summary'!$K$51/'MMA Rev-Exp Summary'!$K$9, 0)","v":{"v":0,"d":"$0.00"}},{"$f":"IFERROR('MMA Rev-Exp Summary'!$L$51/'MMA Rev-Exp Summary'!$L$9, 0)","v":{"v":0,"d":"$0.00"}},{"$f":"IFERROR('MMA Rev-Exp Summary'!$M$51/'MMA Rev-Exp Summary'!$M$9, 0)","v":{"v":0,"d":"$0.00"}},{"$f":"IFERROR('MMA Rev-Exp Summary'!$N$51/'MMA Rev-Exp Summary'!$N$9, 0)","v":{"v":0,"d":"$0.00"}}]
["MMA",null,null,{"$f":"Jurat!I$1","v":0},{"$f":"Jurat!D$33","v":"00:00:00"},"Q1","2017-03-31","Summary","Operating Expense","Medical Benefits Expense","Transportation Services",7.2,"Transportation Subcapitation",{"$f":"IFERROR('MMA Rev-Exp Summary'!$D$52/'MMA Rev-Exp Summary'!$D$9, 0)","v":{"v":0,"d":"$0.00"}},{"$f":"IFERROR('MMA Rev-Exp Summary'!$E$52/'MMA Rev-Exp Summary'!$E$9, 0)","v":{"v":0,"d":"$0.00"}},{"$f":"IFERROR('MMA Rev-Exp Summary'!$F$52/'MMA Rev-Exp Summary'!$F$9, 0)","v":{"v":0,"d":"$0.00"}},{"$f":"IFERROR('MMA Rev-Exp Summary'!$G$52/'MMA Rev-Exp Summary'!$G$9, 0)","v":{"v":0,"d":"$0.00"}},{"$f":"IFERROR('MMA Rev-Exp Summary'!$H$52/'MMA Rev-Exp Summary'!$H$9, 0)","v":{"v":0,"d":"$0.00"}},{"$f":"IFERROR('MMA Rev-Exp Summary'!$I$52/'MMA Rev-Exp Summary'!$I$9, 0)","v":{"v":0,"d":"$0.00"}},{"$f":"IFERROR('MMA Rev-Exp Summary'!$J$52/'MMA Rev-Exp Summary'!$J$9, 0)","v":{"v":0,"d":"$0.00"}},{"$f":"IFERROR('MMA Rev-Exp Summary'!$K$52/'MMA Rev-Exp Summary'!$K$9, 0)","v":{"v":0,"d":"$0.00"}},{"$f":"IFERROR('MMA Rev-Exp Summary'!$L$52/'MMA Rev-Exp Summary'!$L$9, 0)","v":{"v":0,"d":"$0.00"}},{"$f":"IFERROR('MMA Rev-Exp Summary'!$M$52/'MMA Rev-Exp Summary'!$M$9, 0)","v":{"v":0,"d":"$0.00"}},{"$f":"IFERROR('MMA Rev-Exp Summary'!$N$52/'MMA Rev-Exp Summary'!$N$9, 0)","v":{"v":0,"d":"$0.00"}}]
["MMA",null,null,{"$f":"Jurat!I$1","v":0},{"$f":"Jurat!D$33","v":"00:00:00"},"Q1","2017-03-31","Summary","Operating Expense","Medical Benefits Expense","Transportation Services",7.3,"Ending IBNP for Transportation",{"$f":"IFERROR('MMA Rev-Exp Summary'!$D$53/'MMA Rev-Exp Summary'!$D$9, 0)","v":{"v":0,"d":"$0.00"}},{"$f":"IFERROR('MMA Rev-Exp Summary'!$E$53/'MMA Rev-Exp Summary'!$E$9, 0)","v":{"v":0,"d":"$0.00"}},{"$f":"IFERROR('MMA Rev-Exp Summary'!$F$53/'MMA Rev-Exp Summary'!$F$9, 0)","v":{"v":0,"d":"$0.00"}},{"$f":"IFERROR('MMA Rev-Exp Summary'!$G$53/'MMA Rev-Exp Summary'!$G$9, 0)","v":{"v":0,"d":"$0.00"}},{"$f":"IFERROR('MMA Rev-Exp Summary'!$H$53/'MMA Rev-Exp Summary'!$H$9, 0)","v":{"v":0,"d":"$0.00"}},{"$f":"IFERROR('MMA Rev-Exp Summary'!$I$53/'MMA Rev-Exp Summary'!$I$9, 0)","v":{"v":0,"d":"$0.00"}},{"$f":"IFERROR('MMA Rev-Exp Summary'!$J$53/'MMA Rev-Exp Summary'!$J$9, 0)","v":{"v":0,"d":"$0.00"}},{"$f":"IFERROR('MMA Rev-Exp Summary'!$K$53/'MMA Rev-Exp Summary'!$K$9, 0)","v":{"v":0,"d":"$0.00"}},{"$f":"IFERROR('MMA Rev-Exp Summary'!$L$53/'MMA Rev-Exp Summary'!$L$9, 0)","v":{"v":0,"d":"$0.00"}},{"$f":"IFERROR('MMA Rev-Exp Summary'!$M$53/'MMA Rev-Exp Summary'!$M$9, 0)","v":{"v":0,"d":"$0.00"}},{"$f":"IFERROR('MMA Rev-Exp Summary'!$N$53/'MMA Rev-Exp Summary'!$N$9, 0)","v":{"v":0,"d":"$0.00"}}]
["MMA",null,null,{"$f":"Jurat!I$1","v":0},{"$f":"Jurat!D$33","v":"00:00:00"},"Q1","2017-03-31","Summary","Operating Expense","Medical Benefits Expense","Transportation Services","7.4","Transportation Settlements",{"$f":"IFERROR('MMA Rev-Exp Summary'!$D$54/'MMA Rev-Exp Summary'!$D$9, 0)","v":{"v":0,"d":"$0.00"}},{"$f":"IFERROR('MMA Rev-Exp Summary'!$E$54/'MMA Rev-Exp Summary'!$E$9, 0)","v":{"v":0,"d":"$0.00"}},{"$f":"IFERROR('MMA Rev-Exp Summary'!$F$54/'MMA Rev-Exp Summary'!$F$9, 0)","v":{"v":0,"d":"$0.00"}},{"$f":"IFERROR('MMA Rev-Exp Summary'!$G$54/'MMA Rev-Exp Summary'!$G$9, 0)","v":{"v":0,"d":"$0.00"}},{"$f":"IFERROR('MMA Rev-Exp Summary'!$H$54/'MMA Rev-Exp Summary'!$H$9, 0)","v":{"v":0,"d":"$0.00"}},{"$f":"IFERROR('MMA Rev-Exp Summary'!$I$54/'MMA Rev-Exp Summary'!$I$9, 0)","v":{"v":0,"d":"$0.00"}},{"$f":"IFERROR('MMA Rev-Exp Summary'!$J$54/'MMA Rev-Exp Summary'!$J$9, 0)","v":{"v":0,"d":"$0.00"}},{"$f":"IFERROR('MMA Rev-Exp Summary'!$K$54/'MMA Rev-Exp Summary'!$K$9, 0)","v":{"v":0,"d":"$0.00"}},{"$f":"IFERROR('MMA Rev-Exp Summary'!$L$54/'MMA Rev-Exp Summary'!$L$9, 0)","v":{"v":0,"d":"$0.00"}},{"$f":"IFERROR('MMA Rev-Exp Summary'!$M$54/'MMA Rev-Exp Summary'!$M$9, 0)","v":{"v":0,"d":"$0.00"}},{"$f":"IFERROR('MMA Rev-Exp Summary'!$N$54/'MMA Rev-Exp Summary'!$N$9, 0)","v":{"v":0,"d":"$0.00"}}]
["MMA",null,null,{"$f":"Jurat!I$1","v":0},{"$f":"Jurat!D$33","v":"00:00:00"},"Q1","2017-03-31","Summary","Operating Expense","Medical Benefits Expense","Pharmacy Services",8.1,"Prescription Drugs FFS",{"$f":"IFERROR('MMA Rev-Exp Summary'!$D$56/'MMA Rev-Exp Summary'!$D$9, 0)","v":{"v":0,"d":"$0.00"}},{"$f":"IFERROR('MMA Rev-Exp Summary'!$E$56/'MMA Rev-Exp Summary'!$E$9, 0)","v":{"v":0,"d":"$0.00"}},{"$f":"IFERROR('MMA Rev-Exp Summary'!$F$56/'MMA Rev-Exp Summary'!$F$9, 0)","v":{"v":0,"d":"$0.00"}},{"$f":"IFERROR('MMA Rev-Exp Summary'!$G$56/'MMA Rev-Exp Summary'!$G$9, 0)","v":{"v":0,"d":"$0.00"}},{"$f":"IFERROR('MMA Rev-Exp Summary'!$H$56/'MMA Rev-Exp Summary'!$H$9, 0)","v":{"v":0,"d":"$0.00"}},{"$f":"IFERROR('MMA Rev-Exp Summary'!$I$56/'MMA Rev-Exp Summary'!$I$9, 0)","v":{"v":0,"d":"$0.00"}},{"$f":"IFERROR('MMA Rev-Exp Summary'!$J$56/'MMA Rev-Exp Summary'!$J$9, 0)","v":{"v":0,"d":"$0.00"}},{"$f":"IFERROR('MMA Rev-Exp Summary'!$K$56/'MMA Rev-Exp Summary'!$K$9, 0)","v":{"v":0,"d":"$0.00"}},{"$f":"IFERROR('MMA Rev-Exp Summary'!$L$56/'MMA Rev-Exp Summary'!$L$9, 0)","v":{"v":0,"d":"$0.00"}},{"$f":"IFERROR('MMA Rev-Exp Summary'!$M$56/'MMA Rev-Exp Summary'!$M$9, 0)","v":{"v":0,"d":"$0.00"}},{"$f":"IFERROR('MMA Rev-Exp Summary'!$N$56/'MMA Rev-Exp Summary'!$N$9, 0)","v":{"v":0,"d":"$0.00"}}]
["MMA",null,null,{"$f":"Jurat!I$1","v":0},{"$f":"Jurat!D$33","v":"00:00:00"},"Q1","2017-03-31","Summary","Operating Expense","Medical Benefits Expense","Pharmacy Services","8.2","Hepatitis C Prescription Drug FFS",{"$f":"IFERROR('MMA Rev-Exp Summary'!$D$57/'MMA Rev-Exp Summary'!$D$9, 0)","v":{"v":0,"d":"$0.00"}},{"$f":"IFERROR('MMA Rev-Exp Summary'!$E$57/'MMA Rev-Exp Summary'!$E$9, 0)","v":{"v":0,"d":"$0.00"}},{"$f":"IFERROR('MMA Rev-Exp Summary'!$F$57/'MMA Rev-Exp Summary'!$F$9, 0)","v":{"v":0,"d":"$0.00"}},{"$f":"IFERROR('MMA Rev-Exp Summary'!$G$57/'MMA Rev-Exp Summary'!$G$9, 0)","v":{"v":0,"d":"$0.00"}},{"$f":"IFERROR('MMA Rev-Exp Summary'!$H$57/'MMA Rev-Exp Summary'!$H$9, 0)","v":{"v":0,"d":"$0.00"}},{"$f":"IFERROR('MMA Rev-Exp Summary'!$I$57/'MMA Rev-Exp Summary'!$I$9, 0)","v":{"v":0,"d":"$0.00"}},{"$f":"IFERROR('MMA Rev-Exp Summary'!$J$57/'MMA Rev-Exp Summary'!$J$9, 0)","v":{"v":0,"d":"$0.00"}},{"$f":"IFERROR('MMA Rev-Exp Summary'!$K$57/'MMA Rev-Exp Summary'!$K$9, 0)","v":{"v":0,"d":"$0.00"}},{"$f":"IFERROR('MMA Rev-Exp Summary'!$L$57/'MMA Rev-Exp Summary'!$L$9, 0)","v":{"v":0,"d":"$0.00"}},{"$f":"IFERROR('MMA Rev-Exp Summary'!$M$57/'MMA Rev-Exp Summary'!$M$9, 0)","v":{"v":0,"d":"$0.00"}},{"$f":"IFERROR('MMA Rev-Exp Summary'!$N$57/'MMA Rev-Exp Summary'!$N$9, 0)","v":{"v":0,"d":"$0.00"}}]
["MMA",null,null,{"$f":"Jurat!I$1","v":0},{"$f":"Jurat!D$33","v":"00:00:00"},"Q1","2017-03-31","Summary","Operating Expense","Medical Benefits Expense","Pharmacy Services","8.3","Ending IBNP for Prescription Drugs",{"$f":"IFERROR('MMA Rev-Exp Summary'!$D$58/'MMA Rev-Exp Summary'!$D$9, 0)","v":{"v":0,"d":"$0.00"}},{"$f":"IFERROR('MMA Rev-Exp Summary'!$E$58/'MMA Rev-Exp Summary'!$E$9, 0)","v":{"v":0,"d":"$0.00"}},{"$f":"IFERROR('MMA Rev-Exp Summary'!$F$58/'MMA Rev-Exp Summary'!$F$9, 0)","v":{"v":0,"d":"$0.00"}},{"$f":"IFERROR('MMA Rev-Exp Summary'!$G$58/'MMA Rev-Exp Summary'!$G$9, 0)","v":{"v":0,"d":"$0.00"}},{"$f":"IFERROR('MMA Rev-Exp Summary'!$H$58/'MMA Rev-Exp Summary'!$H$9, 0)","v":{"v":0,"d":"$0.00"}},{"$f":"IFERROR('MMA Rev-Exp Summary'!$I$58/'MMA Rev-Exp Summary'!$I$9, 0)","v":{"v":0,"d":"$0.00"}},{"$f":"IFERROR('MMA Rev-Exp Summary'!$J$58/'MMA Rev-Exp Summary'!$J$9, 0)","v":{"v":0,"d":"$0.00"}},{"$f":"IFERROR('MMA Rev-Exp Summary'!$K$58/'MMA Rev-Exp Summary'!$K$9, 0)","v":{"v":0,"d":"$0.00"}},{"$f":"IFERROR('MMA Rev-Exp Summary'!$L$58/'MMA Rev-Exp Summary'!$L$9, 0)","v":{"v":0,"d":"$0.00"}},{"$f":"IFERROR('MMA Rev-Exp Summary'!$M$58/'MMA Rev-Exp Summary'!$M$9, 0)","v":{"v":0,"d":"$0.00"}},{"$f":"IFERROR('MMA Rev-Exp Summary'!$N$58/'MMA Rev-Exp Summary'!$N$9, 0)","v":{"v":0,"d":"$0.00"}}]
["MMA",null,null,{"$f":"Jurat!I$1","v":0},{"$f":"Jurat!D$33","v":"00:00:00"},"Q1","2017-03-31","Summary","Operating Expense","Medical Benefits Expense","Pharmacy Services","8.4","Prescription Drug Rebates ",{"$f":"IFERROR('MMA Rev-Exp Summary'!$D$59/'MMA Rev-Exp Summary'!$D$9, 0)","v":{"v":0,"d":"$0.00"}},{"$f":"IFERROR('MMA Rev-Exp Summary'!$E$59/'MMA Rev-Exp Summary'!$E$9, 0)","v":{"v":0,"d":"$0.00"}},{"$f":"IFERROR('MMA Rev-Exp Summary'!$F$59/'MMA Rev-Exp Summary'!$F$9, 0)","v":{"v":0,"d":"$0.00"}},{"$f":"IFERROR('MMA Rev-Exp Summary'!$G$59/'MMA Rev-Exp Summary'!$G$9, 0)","v":{"v":0,"d":"$0.00"}},{"$f":"IFERROR('MMA Rev-Exp Summary'!$H$59/'MMA Rev-Exp Summary'!$H$9, 0)","v":{"v":0,"d":"$0.00"}},{"$f":"IFERROR('MMA Rev-Exp Summary'!$I$59/'MMA Rev-Exp Summary'!$I$9, 0)","v":{"v":0,"d":"$0.00"}},{"$f":"IFERROR('MMA Rev-Exp Summary'!$J$59/'MMA Rev-Exp Summary'!$J$9, 0)","v":{"v":0,"d":"$0.00"}},{"$f":"IFERROR('MMA Rev-Exp Summary'!$K$59/'MMA Rev-Exp Summary'!$K$9, 0)","v":{"v":0,"d":"$0.00"}},{"$f":"IFERROR('MMA Rev-Exp Summary'!$L$59/'MMA Rev-Exp Summary'!$L$9, 0)","v":{"v":0,"d":"$0.00"}},{"$f":"IFERROR('MMA Rev-Exp Summary'!$M$59/'MMA Rev-Exp Summary'!$M$9, 0)","v":{"v":0,"d":"$0.00"}},{"$f":"IFERROR('MMA Rev-Exp Summary'!$N$59/'MMA Rev-Exp Summary'!$N$9, 0)","v":{"v":0,"d":"$0.00"}}]
["MMA",null,null,{"$f":"Jurat!I$1","v":0},{"$f":"Jurat!D$33","v":"00:00:00"},"Q1","2017-03-31","Summary","Operating Expense","Medical Benefits Expense","Pharmacy Services","8.5","Ending accrual for Rebates receivable",{"$f":"IFERROR('MMA Rev-Exp Summary'!$D$60/'MMA Rev-Exp Summary'!$D$9, 0)","v":{"v":0,"d":"$0.00"}},{"$f":"IFERROR('MMA Rev-Exp Summary'!$E$60/'MMA Rev-Exp Summary'!$E$9, 0)","v":{"v":0,"d":"$0.00"}},{"$f":"IFERROR('MMA Rev-Exp Summary'!$F$60/'MMA Rev-Exp Summary'!$F$9, 0)","v":{"v":0,"d":"$0.00"}},{"$f":"IFERROR('MMA Rev-Exp Summary'!$G$60/'MMA Rev-Exp Summary'!$G$9, 0)","v":{"v":0,"d":"$0.00"}},{"$f":"IFERROR('MMA Rev-Exp Summary'!$H$60/'MMA Rev-Exp Summary'!$H$9, 0)","v":{"v":0,"d":"$0.00"}},{"$f":"IFERROR('MMA Rev-Exp Summary'!$I$60/'MMA Rev-Exp Summary'!$I$9, 0)","v":{"v":0,"d":"$0.00"}},{"$f":"IFERROR('MMA Rev-Exp Summary'!$J$60/'MMA Rev-Exp Summary'!$J$9, 0)","v":{"v":0,"d":"$0.00"}},{"$f":"IFERROR('MMA Rev-Exp Summary'!$K$60/'MMA Rev-Exp Summary'!$K$9, 0)","v":{"v":0,"d":"$0.00"}},{"$f":"IFERROR('MMA Rev-Exp Summary'!$L$60/'MMA Rev-Exp Summary'!$L$9, 0)","v":{"v":0,"d":"$0.00"}},{"$f":"IFERROR('MMA Rev-Exp Summary'!$M$60/'MMA Rev-Exp Summary'!$M$9, 0)","v":{"v":0,"d":"$0.00"}},{"$f":"IFERROR('MMA Rev-Exp Summary'!$N$60/'MMA Rev-Exp Summary'!$N$9, 0)","v":{"v":0,"d":"$0.00"}}]
["MMA",null,null,{"$f":"Jurat!I$1","v":0},{"$f":"Jurat!D$33","v":"00:00:00"},"Q1","2017-03-31","Summary","Operating Expense","Medical Benefits Expense","Pharmacy Services","8.6","Prescription Drugs Subcapitation",{"$f":"IFERROR('MMA Rev-Exp Summary'!$D$61/'MMA Rev-Exp Summary'!$D$9, 0)","v":{"v":0,"d":"$0.00"}},{"$f":"IFERROR('MMA Rev-Exp Summary'!$E$61/'MMA Rev-Exp Summary'!$E$9, 0)","v":{"v":0,"d":"$0.00"}},{"$f":"IFERROR('MMA Rev-Exp Summary'!$F$61/'MMA Rev-Exp Summary'!$F$9, 0)","v":{"v":0,"d":"$0.00"}},{"$f":"IFERROR('MMA Rev-Exp Summary'!$G$61/'MMA Rev-Exp Summary'!$G$9, 0)","v":{"v":0,"d":"$0.00"}},{"$f":"IFERROR('MMA Rev-Exp Summary'!$H$61/'MMA Rev-Exp Summary'!$H$9, 0)","v":{"v":0,"d":"$0.00"}},{"$f":"IFERROR('MMA Rev-Exp Summary'!$I$61/'MMA Rev-Exp Summary'!$I$9, 0)","v":{"v":0,"d":"$0.00"}},{"$f":"IFERROR('MMA Rev-Exp Summary'!$J$61/'MMA Rev-Exp Summary'!$J$9, 0)","v":{"v":0,"d":"$0.00"}},{"$f":"IFERROR('MMA Rev-Exp Summary'!$K$61/'MMA Rev-Exp Summary'!$K$9, 0)","v":{"v":0,"d":"$0.00"}},{"$f":"IFERROR('MMA Rev-Exp Summary'!$L$61/'MMA Rev-Exp Summary'!$L$9, 0)","v":{"v":0,"d":"$0.00"}},{"$f":"IFERROR('MMA Rev-Exp Summary'!$M$61/'MMA Rev-Exp Summary'!$M$9, 0)","v":{"v":0,"d":"$0.00"}},{"$f":"IFERROR('MMA Rev-Exp Summary'!$N$61/'MMA Rev-Exp Summary'!$N$9, 0)","v":{"v":0,"d":"$0.00"}}]
["MMA",null,null,{"$f":"Jurat!I$1","v":0},{"$f":"Jurat!D$33","v":"00:00:00"},"Q1","2017-03-31","Summary","Operating Expense","Medical Benefits Expense","Pharmacy Services","8.7","Prescription Drug Settlements",{"$f":"IFERROR('MMA Rev-Exp Summary'!$D$62/'MMA Rev-Exp Summary'!$D$9, 0)","v":{"v":0,"d":"$0.00"}},{"$f":"IFERROR('MMA Rev-Exp Summary'!$E$62/'MMA Rev-Exp Summary'!$E$9, 0)","v":{"v":0,"d":"$0.00"}},{"$f":"IFERROR('MMA Rev-Exp Summary'!$F$62/'MMA Rev-Exp Summary'!$F$9, 0)","v":{"v":0,"d":"$0.00"}},{"$f":"IFERROR('MMA Rev-Exp Summary'!$G$62/'MMA Rev-Exp Summary'!$G$9, 0)","v":{"v":0,"d":"$0.00"}},{"$f":"IFERROR('MMA Rev-Exp Summary'!$H$62/'MMA Rev-Exp Summary'!$H$9, 0)","v":{"v":0,"d":"$0.00"}},{"$f":"IFERROR('MMA Rev-Exp Summary'!$I$62/'MMA Rev-Exp Summary'!$I$9, 0)","v":{"v":0,"d":"$0.00"}},{"$f":"IFERROR('MMA Rev-Exp Summary'!$J$62/'MMA Rev-Exp Summary'!$J$9, 0)","v":{"v":0,"d":"$0.00"}},{"$f":"IFERROR('MMA Rev-Exp Summary'!$K$62/'MMA Rev-Exp Summary'!$K$9, 0)","v":{"v":0,"d":"$0.00"}},{"$f":"IFERROR('MMA Rev-Exp Summary'!$L$62/'MMA Rev-Exp Summary'!$L$9, 0)","v":{"v":0,"d":"$0.00"}},{"$f":"IFERROR('MMA Rev-Exp Summary'!$M$62/'MMA Rev-Exp Summary'!$M$9, 0)","v":{"v":0,"d":"$0.00"}},{"$f":"IFERROR('MMA Rev-Exp Summary'!$N$62/'MMA Rev-Exp Summary'!$N$9, 0)","v":{"v":0,"d":"$0.00"}}]
["MMA",null,null,{"$f":"Jurat!I$1","v":0},{"$f":"Jurat!D$33","v":"00:00:00"},"Q1","2017-03-31","Summary","Operating Expense","Medical Benefits Expense","Other MMA Services",9.1,"Home Health, Private Duty Nursing, Personal Care FFS",{"$f":"IFERROR('MMA Rev-Exp Summary'!$D$64/'MMA Rev-Exp Summary'!$D$9, 0)","v":{"v":0,"d":"$0.00"}},{"$f":"IFERROR('MMA Rev-Exp Summary'!$E$64/'MMA Rev-Exp Summary'!$E$9, 0)","v":{"v":0,"d":"$0.00"}},{"$f":"IFERROR('MMA Rev-Exp Summary'!$F$64/'MMA Rev-Exp Summary'!$F$9, 0)","v":{"v":0,"d":"$0.00"}},{"$f":"IFERROR('MMA Rev-Exp Summary'!$G$64/'MMA Rev-Exp Summary'!$G$9, 0)","v":{"v":0,"d":"$0.00"}},{"$f":"IFERROR('MMA Rev-Exp Summary'!$H$64/'MMA Rev-Exp Summary'!$H$9, 0)","v":{"v":0,"d":"$0.00"}},{"$f":"IFERROR('MMA Rev-Exp Summary'!$I$64/'MMA Rev-Exp Summary'!$I$9, 0)","v":{"v":0,"d":"$0.00"}},{"$f":"IFERROR('MMA Rev-Exp Summary'!$J$64/'MMA Rev-Exp Summary'!$J$9, 0)","v":{"v":0,"d":"$0.00"}},{"$f":"IFERROR('MMA Rev-Exp Summary'!$K$64/'MMA Rev-Exp Summary'!$K$9, 0)","v":{"v":0,"d":"$0.00"}},{"$f":"IFERROR('MMA Rev-Exp Summary'!$L$64/'MMA Rev-Exp Summary'!$L$9, 0)","v":{"v":0,"d":"$0.00"}},{"$f":"IFERROR('MMA Rev-Exp Summary'!$M$64/'MMA Rev-Exp Summary'!$M$9, 0)","v":{"v":0,"d":"$0.00"}},{"$f":"IFERROR('MMA Rev-Exp Summary'!$N$64/'MMA Rev-Exp Summary'!$N$9, 0)","v":{"v":0,"d":"$0.00"}}]
["MMA",null,null,{"$f":"Jurat!I$1","v":0},{"$f":"Jurat!D$33","v":"00:00:00"},"Q1","2017-03-31","Summary","Operating Expense","Medical Benefits Expense","Other MMA Services","9.2","Hospice FFS",{"$f":"IFERROR('MMA Rev-Exp Summary'!$D$65/'MMA Rev-Exp Summary'!$D$9, 0)","v":{"v":0,"d":"$0.00"}},{"$f":"IFERROR('MMA Rev-Exp Summary'!$E$65/'MMA Rev-Exp Summary'!$E$9, 0)","v":{"v":0,"d":"$0.00"}},{"$f":"IFERROR('MMA Rev-Exp Summary'!$F$65/'MMA Rev-Exp Summary'!$F$9, 0)","v":{"v":0,"d":"$0.00"}},{"$f":"IFERROR('MMA Rev-Exp Summary'!$G$65/'MMA Rev-Exp Summary'!$G$9, 0)","v":{"v":0,"d":"$0.00"}},{"$f":"IFERROR('MMA Rev-Exp Summary'!$H$65/'MMA Rev-Exp Summary'!$H$9, 0)","v":{"v":0,"d":"$0.00"}},{"$f":"IFERROR('MMA Rev-Exp Summary'!$I$65/'MMA Rev-Exp Summary'!$I$9, 0)","v":{"v":0,"d":"$0.00"}},{"$f":"IFERROR('MMA Rev-Exp Summary'!$J$65/'MMA Rev-Exp Summary'!$J$9, 0)","v":{"v":0,"d":"$0.00"}},{"$f":"IFERROR('MMA Rev-Exp Summary'!$K$65/'MMA Rev-Exp Summary'!$K$9, 0)","v":{"v":0,"d":"$0.00"}},{"$f":"IFERROR('MMA Rev-Exp Summary'!$L$65/'MMA Rev-Exp Summary'!$L$9, 0)","v":{"v":0,"d":"$0.00"}},{"$f":"IFERROR('MMA Rev-Exp Summary'!$M$65/'MMA Rev-Exp Summary'!$M$9, 0)","v":{"v":0,"d":"$0.00"}},{"$f":"IFERROR('MMA Rev-Exp Summary'!$N$65/'MMA Rev-Exp Summary'!$N$9, 0)","v":{"v":0,"d":"$0.00"}}]
["MMA",null,null,{"$f":"Jurat!I$1","v":0},{"$f":"Jurat!D$33","v":"00:00:00"},"Q1","2017-03-31","Summary","Operating Expense","Medical Benefits Expense","Other MMA Services","9.3","DME FFS",{"$f":"IFERROR('MMA Rev-Exp Summary'!$D$66/'MMA Rev-Exp Summary'!$D$9, 0)","v":{"v":0,"d":"$0.00"}},{"$f":"IFERROR('MMA Rev-Exp Summary'!$E$66/'MMA Rev-Exp Summary'!$E$9, 0)","v":{"v":0,"d":"$0.00"}},{"$f":"IFERROR('MMA Rev-Exp Summary'!$F$66/'MMA Rev-Exp Summary'!$F$9, 0)","v":{"v":0,"d":"$0.00"}},{"$f":"IFERROR('MMA Rev-Exp Summary'!$G$66/'MMA Rev-Exp Summary'!$G$9, 0)","v":{"v":0,"d":"$0.00"}},{"$f":"IFERROR('MMA Rev-Exp Summary'!$H$66/'MMA Rev-Exp Summary'!$H$9, 0)","v":{"v":0,"d":"$0.00"}},{"$f":"IFERROR('MMA Rev-Exp Summary'!$I$66/'MMA Rev-Exp Summary'!$I$9, 0)","v":{"v":0,"d":"$0.00"}},{"$f":"IFERROR('MMA Rev-Exp Summary'!$J$66/'MMA Rev-Exp Summary'!$J$9, 0)","v":{"v":0,"d":"$0.00"}},{"$f":"IFERROR('MMA Rev-Exp Summary'!$K$66/'MMA Rev-Exp Summary'!$K$9, 0)","v":{"v":0,"d":"$0.00"}},{"$f":"IFERROR('MMA Rev-Exp Summary'!$L$66/'MMA Rev-Exp Summary'!$L$9, 0)","v":{"v":0,"d":"$0.00"}},{"$f":"IFERROR('MMA Rev-Exp Summary'!$M$66/'MMA Rev-Exp Summary'!$M$9, 0)","v":{"v":0,"d":"$0.00"}},{"$f":"IFERROR('MMA Rev-Exp Summary'!$N$66/'MMA Rev-Exp Summary'!$N$9, 0)","v":{"v":0,"d":"$0.00"}}]
["MMA",null,null,{"$f":"Jurat!I$1","v":0},{"$f":"Jurat!D$33","v":"00:00:00"},"Q1","2017-03-31","Summary","Operating Expense","Medical Benefits Expense","Other MMA Services","9.4","Other State Plan Services FFS",{"$f":"IFERROR('MMA Rev-Exp Summary'!$D$67/'MMA Rev-Exp Summary'!$D$9, 0)","v":{"v":0,"d":"$0.00"}},{"$f":"IFERROR('MMA Rev-Exp Summary'!$E$67/'MMA Rev-Exp Summary'!$E$9, 0)","v":{"v":0,"d":"$0.00"}},{"$f":"IFERROR('MMA Rev-Exp Summary'!$F$67/'MMA Rev-Exp Summary'!$F$9, 0)","v":{"v":0,"d":"$0.00"}},{"$f":"IFERROR('MMA Rev-Exp Summary'!$G$67/'MMA Rev-Exp Summary'!$G$9, 0)","v":{"v":0,"d":"$0.00"}},{"$f":"IFERROR('MMA Rev-Exp Summary'!$H$67/'MMA Rev-Exp Summary'!$H$9, 0)","v":{"v":0,"d":"$0.00"}},{"$f":"IFERROR('MMA Rev-Exp Summary'!$I$67/'MMA Rev-Exp Summary'!$I$9, 0)","v":{"v":0,"d":"$0.00"}},{"$f":"IFERROR('MMA Rev-Exp Summary'!$J$67/'MMA Rev-Exp Summary'!$J$9, 0)","v":{"v":0,"d":"$0.00"}},{"$f":"IFERROR('MMA Rev-Exp Summary'!$K$67/'MMA Rev-Exp Summary'!$K$9, 0)","v":{"v":0,"d":"$0.00"}},{"$f":"IFERROR('MMA Rev-Exp Summary'!$L$67/'MMA Rev-Exp Summary'!$L$9, 0)","v":{"v":0,"d":"$0.00"}},{"$f":"IFERROR('MMA Rev-Exp Summary'!$M$67/'MMA Rev-Exp Summary'!$M$9, 0)","v":{"v":0,"d":"$0.00"}},{"$f":"IFERROR('MMA Rev-Exp Summary'!$N$67/'MMA Rev-Exp Summary'!$N$9, 0)","v":{"v":0,"d":"$0.00"}}]
["MMA",null,null,{"$f":"Jurat!I$1","v":0},{"$f":"Jurat!D$33","v":"00:00:00"},"Q1","2017-03-31","Summary","Operating Expense","Medical Benefits Expense","Other MMA Services","9.5","Other Services Subcapitation",{"$f":"IFERROR('MMA Rev-Exp Summary'!$D$68/'MMA Rev-Exp Summary'!$D$9, 0)","v":{"v":0,"d":"$0.00"}},{"$f":"IFERROR('MMA Rev-Exp Summary'!$E$68/'MMA Rev-Exp Summary'!$E$9, 0)","v":{"v":0,"d":"$0.00"}},{"$f":"IFERROR('MMA Rev-Exp Summary'!$F$68/'MMA Rev-Exp Summary'!$F$9, 0)","v":{"v":0,"d":"$0.00"}},{"$f":"IFERROR('MMA Rev-Exp Summary'!$G$68/'MMA Rev-Exp Summary'!$G$9, 0)","v":{"v":0,"d":"$0.00"}},{"$f":"IFERROR('MMA Rev-Exp Summary'!$H$68/'MMA Rev-Exp Summary'!$H$9, 0)","v":{"v":0,"d":"$0.00"}},{"$f":"IFERROR('MMA Rev-Exp Summary'!$I$68/'MMA Rev-Exp Summary'!$I$9, 0)","v":{"v":0,"d":"$0.00"}},{"$f":"IFERROR('MMA Rev-Exp Summary'!$J$68/'MMA Rev-Exp Summary'!$J$9, 0)","v":{"v":0,"d":"$0.00"}},{"$f":"IFERROR('MMA Rev-Exp Summary'!$K$68/'MMA Rev-Exp Summary'!$K$9, 0)","v":{"v":0,"d":"$0.00"}},{"$f":"IFERROR('MMA Rev-Exp Summary'!$L$68/'MMA Rev-Exp Summary'!$L$9, 0)","v":{"v":0,"d":"$0.00"}},{"$f":"IFERROR('MMA Rev-Exp Summary'!$M$68/'MMA Rev-Exp Summary'!$M$9, 0)","v":{"v":0,"d":"$0.00"}},{"$f":"IFERROR('MMA Rev-Exp Summary'!$N$68/'MMA Rev-Exp Summary'!$N$9, 0)","v":{"v":0,"d":"$0.00"}}]
["MMA",null,null,{"$f":"Jurat!I$1","v":0},{"$f":"Jurat!D$33","v":"00:00:00"},"Q1","2017-03-31","Summary","Operating Expense","Medical Benefits Expense","Other MMA Services","9.6","Ending IBNP for Other Services",{"$f":"IFERROR('MMA Rev-Exp Summary'!$D$69/'MMA Rev-Exp Summary'!$D$9, 0)","v":{"v":0,"d":"$0.00"}},{"$f":"IFERROR('MMA Rev-Exp Summary'!$E$69/'MMA Rev-Exp Summary'!$E$9, 0)","v":{"v":0,"d":"$0.00"}},{"$f":"IFERROR('MMA Rev-Exp Summary'!$F$69/'MMA Rev-Exp Summary'!$F$9, 0)","v":{"v":0,"d":"$0.00"}},{"$f":"IFERROR('MMA Rev-Exp Summary'!$G$69/'MMA Rev-Exp Summary'!$G$9, 0)","v":{"v":0,"d":"$0.00"}},{"$f":"IFERROR('MMA Rev-Exp Summary'!$H$69/'MMA Rev-Exp Summary'!$H$9, 0)","v":{"v":0,"d":"$0.00"}},{"$f":"IFERROR('MMA Rev-Exp Summary'!$I$69/'MMA Rev-Exp Summary'!$I$9, 0)","v":{"v":0,"d":"$0.00"}},{"$f":"IFERROR('MMA Rev-Exp Summary'!$J$69/'MMA Rev-Exp Summary'!$J$9, 0)","v":{"v":0,"d":"$0.00"}},{"$f":"IFERROR('MMA Rev-Exp Summary'!$K$69/'MMA Rev-Exp Summary'!$K$9, 0)","v":{"v":0,"d":"$0.00"}},{"$f":"IFERROR('MMA Rev-Exp Summary'!$L$69/'MMA Rev-Exp Summary'!$L$9, 0)","v":{"v":0,"d":"$0.00"}},{"$f":"IFERROR('MMA Rev-Exp Summary'!$M$69/'MMA Rev-Exp Summary'!$M$9, 0)","v":{"v":0,"d":"$0.00"}},{"$f":"IFERROR('MMA Rev-Exp Summary'!$N$69/'MMA Rev-Exp Summary'!$N$9, 0)","v":{"v":0,"d":"$0.00"}}]
["MMA",null,null,{"$f":"Jurat!I$1","v":0},{"$f":"Jurat!D$33","v":"00:00:00"},"Q1","2017-03-31","Summary","Operating Expense","Medical Benefits Expense","Other MMA Services","9.7","Other Services Settlements",{"$f":"IFERROR('MMA Rev-Exp Summary'!$D$70/'MMA Rev-Exp Summary'!$D$9, 0)","v":{"v":0,"d":"$0.00"}},{"$f":"IFERROR('MMA Rev-Exp Summary'!$E$70/'MMA Rev-Exp Summary'!$E$9, 0)","v":{"v":0,"d":"$0.00"}},{"$f":"IFERROR('MMA Rev-Exp Summary'!$F$70/'MMA Rev-Exp Summary'!$F$9, 0)","v":{"v":0,"d":"$0.00"}},{"$f":"IFERROR('MMA Rev-Exp Summary'!$G$70/'MMA Rev-Exp Summary'!$G$9, 0)","v":{"v":0,"d":"$0.00"}},{"$f":"IFERROR('MMA Rev-Exp Summary'!$H$70/'MMA Rev-Exp Summary'!$H$9, 0)","v":{"v":0,"d":"$0.00"}},{"$f":"IFERROR('MMA Rev-Exp Summary'!$I$70/'MMA Rev-Exp Summary'!$I$9, 0)","v":{"v":0,"d":"$0.00"}},{"$f":"IFERROR('MMA Rev-Exp Summary'!$J$70/'MMA Rev-Exp Summary'!$J$9, 0)","v":{"v":0,"d":"$0.00"}},{"$f":"IFERROR('MMA Rev-Exp Summary'!$K$70/'MMA Rev-Exp Summary'!$K$9, 0)","v":{"v":0,"d":"$0.00"}},{"$f":"IFERROR('MMA Rev-Exp Summary'!$L$70/'MMA Rev-Exp Summary'!$L$9, 0)","v":{"v":0,"d":"$0.00"}},{"$f":"IFERROR('MMA Rev-Exp Summary'!$M$70/'MMA Rev-Exp Summary'!$M$9, 0)","v":{"v":0,"d":"$0.00"}},{"$f":"IFERROR('MMA Rev-Exp Summary'!$N$70/'MMA Rev-Exp Summary'!$N$9, 0)","v":{"v":0,"d":"$0.00"}}]
["MMA",null,null,{"$f":"Jurat!I$1","v":0},{"$f":"Jurat!D$33","v":"00:00:00"},"Q1","2017-03-31","Summary","Operating Expense","Medical Benefits Expense","Expanded Benefits","10.1","Expanded Benefits FFS",{"$f":"IFERROR('MMA Rev-Exp Summary'!$D$72/'MMA Rev-Exp Summary'!$D$9, 0)","v":{"v":0,"d":"$0.00"}},{"$f":"IFERROR('MMA Rev-Exp Summary'!$E$72/'MMA Rev-Exp Summary'!$E$9, 0)","v":{"v":0,"d":"$0.00"}},{"$f":"IFERROR('MMA Rev-Exp Summary'!$F$72/'MMA Rev-Exp Summary'!$F$9, 0)","v":{"v":0,"d":"$0.00"}},{"$f":"IFERROR('MMA Rev-Exp Summary'!$G$72/'MMA Rev-Exp Summary'!$G$9, 0)","v":{"v":0,"d":"$0.00"}},{"$f":"IFERROR('MMA Rev-Exp Summary'!$H$72/'MMA Rev-Exp Summary'!$H$9, 0)","v":{"v":0,"d":"$0.00"}},{"$f":"IFERROR('MMA Rev-Exp Summary'!$I$72/'MMA Rev-Exp Summary'!$I$9, 0)","v":{"v":0,"d":"$0.00"}},{"$f":"IFERROR('MMA Rev-Exp Summary'!$J$72/'MMA Rev-Exp Summary'!$J$9, 0)","v":{"v":0,"d":"$0.00"}},{"$f":"IFERROR('MMA Rev-Exp Summary'!$K$72/'MMA Rev-Exp Summary'!$K$9, 0)","v":{"v":0,"d":"$0.00"}},{"$f":"IFERROR('MMA Rev-Exp Summary'!$L$72/'MMA Rev-Exp Summary'!$L$9, 0)","v":{"v":0,"d":"$0.00"}},{"$f":"IFERROR('MMA Rev-Exp Summary'!$M$72/'MMA Rev-Exp Summary'!$M$9, 0)","v":{"v":0,"d":"$0.00"}},{"$f":"IFERROR('MMA Rev-Exp Summary'!$N$72/'MMA Rev-Exp Summary'!$N$9, 0)","v":{"v":0,"d":"$0.00"}}]
["MMA",null,null,{"$f":"Jurat!I$1","v":0},{"$f":"Jurat!D$33","v":"00:00:00"},"Q1","2017-03-31","Summary","Operating Expense","Medical Benefits Expense","Expanded Benefits","10.2","Expanded benefits Subcapitation",{"$f":"IFERROR('MMA Rev-Exp Summary'!$D$73/'MMA Rev-Exp Summary'!$D$9, 0)","v":{"v":0,"d":"$0.00"}},{"$f":"IFERROR('MMA Rev-Exp Summary'!$E$73/'MMA Rev-Exp Summary'!$E$9, 0)","v":{"v":0,"d":"$0.00"}},{"$f":"IFERROR('MMA Rev-Exp Summary'!$F$73/'MMA Rev-Exp Summary'!$F$9, 0)","v":{"v":0,"d":"$0.00"}},{"$f":"IFERROR('MMA Rev-Exp Summary'!$G$73/'MMA Rev-Exp Summary'!$G$9, 0)","v":{"v":0,"d":"$0.00"}},{"$f":"IFERROR('MMA Rev-Exp Summary'!$H$73/'MMA Rev-Exp Summary'!$H$9, 0)","v":{"v":0,"d":"$0.00"}},{"$f":"IFERROR('MMA Rev-Exp Summary'!$I$73/'MMA Rev-Exp Summary'!$I$9, 0)","v":{"v":0,"d":"$0.00"}},{"$f":"IFERROR('MMA Rev-Exp Summary'!$J$73/'MMA Rev-Exp Summary'!$J$9, 0)","v":{"v":0,"d":"$0.00"}},{"$f":"IFERROR('MMA Rev-Exp Summary'!$K$73/'MMA Rev-Exp Summary'!$K$9, 0)","v":{"v":0,"d":"$0.00"}},{"$f":"IFERROR('MMA Rev-Exp Summary'!$L$73/'MMA Rev-Exp Summary'!$L$9, 0)","v":{"v":0,"d":"$0.00"}},{"$f":"IFERROR('MMA Rev-Exp Summary'!$M$73/'MMA Rev-Exp Summary'!$M$9, 0)","v":{"v":0,"d":"$0.00"}},{"$f":"IFERROR('MMA Rev-Exp Summary'!$N$73/'MMA Rev-Exp Summary'!$N$9, 0)","v":{"v":0,"d":"$0.00"}}]
["MMA",null,null,{"$f":"Jurat!I$1","v":0},{"$f":"Jurat!D$33","v":"00:00:00"},"Q1","2017-03-31","Summary","Operating Expense","Medical Benefits Expense","Expanded Benefits","10.3","Ending IBNP for Expanded Benefits",{"$f":"IFERROR('MMA Rev-Exp Summary'!$D$74/'MMA Rev-Exp Summary'!$D$9, 0)","v":{"v":0,"d":"$0.00"}},{"$f":"IFERROR('MMA Rev-Exp Summary'!$E$74/'MMA Rev-Exp Summary'!$E$9, 0)","v":{"v":0,"d":"$0.00"}},{"$f":"IFERROR('MMA Rev-Exp Summary'!$F$74/'MMA Rev-Exp Summary'!$F$9, 0)","v":{"v":0,"d":"$0.00"}},{"$f":"IFERROR('MMA Rev-Exp Summary'!$G$74/'MMA Rev-Exp Summary'!$G$9, 0)","v":{"v":0,"d":"$0.00"}},{"$f":"IFERROR('MMA Rev-Exp Summary'!$H$74/'MMA Rev-Exp Summary'!$H$9, 0)","v":{"v":0,"d":"$0.00"}},{"$f":"IFERROR('MMA Rev-Exp Summary'!$I$74/'MMA Rev-Exp Summary'!$I$9, 0)","v":{"v":0,"d":"$0.00"}},{"$f":"IFERROR('MMA Rev-Exp Summary'!$J$74/'MMA Rev-Exp Summary'!$J$9, 0)","v":{"v":0,"d":"$0.00"}},{"$f":"IFERROR('MMA Rev-Exp Summary'!$K$74/'MMA Rev-Exp Summary'!$K$9, 0)","v":{"v":0,"d":"$0.00"}},{"$f":"IFERROR('MMA Rev-Exp Summary'!$L$74/'MMA Rev-Exp Summary'!$L$9, 0)","v":{"v":0,"d":"$0.00"}},{"$f":"IFERROR('MMA Rev-Exp Summary'!$M$74/'MMA Rev-Exp Summary'!$M$9, 0)","v":{"v":0,"d":"$0.00"}},{"$f":"IFERROR('MMA Rev-Exp Summary'!$N$74/'MMA Rev-Exp Summary'!$N$9, 0)","v":{"v":0,"d":"$0.00"}}]
["MMA",null,null,{"$f":"Jurat!I$1","v":0},{"$f":"Jurat!D$33","v":"00:00:00"},"Q1","2017-03-31","Summary","Operating Expense","Medical Benefits Expense","Expanded Benefits","10.4","Expanded Benefits Settlements",{"$f":"IFERROR('MMA Rev-Exp Summary'!$D$75/'MMA Rev-Exp Summary'!$D$9, 0)","v":{"v":0,"d":"$0.00"}},{"$f":"IFERROR('MMA Rev-Exp Summary'!$E$75/'MMA Rev-Exp Summary'!$E$9, 0)","v":{"v":0,"d":"$0.00"}},{"$f":"IFERROR('MMA Rev-Exp Summary'!$F$75/'MMA Rev-Exp Summary'!$F$9, 0)","v":{"v":0,"d":"$0.00"}},{"$f":"IFERROR('MMA Rev-Exp Summary'!$G$75/'MMA Rev-Exp Summary'!$G$9, 0)","v":{"v":0,"d":"$0.00"}},{"$f":"IFERROR('MMA Rev-Exp Summary'!$H$75/'MMA Rev-Exp Summary'!$H$9, 0)","v":{"v":0,"d":"$0.00"}},{"$f":"IFERROR('MMA Rev-Exp Summary'!$I$75/'MMA Rev-Exp Summary'!$I$9, 0)","v":{"v":0,"d":"$0.00"}},{"$f":"IFERROR('MMA Rev-Exp Summary'!$J$75/'MMA Rev-Exp Summary'!$J$9, 0)","v":{"v":0,"d":"$0.00"}},{"$f":"IFERROR('MMA Rev-Exp Summary'!$K$75/'MMA Rev-Exp Summary'!$K$9, 0)","v":{"v":0,"d":"$0.00"}},{"$f":"IFERROR('MMA Rev-Exp Summary'!$L$75/'MMA Rev-Exp Summary'!$L$9, 0)","v":{"v":0,"d":"$0.00"}},{"$f":"IFERROR('MMA Rev-Exp Summary'!$M$75/'MMA Rev-Exp Summary'!$M$9, 0)","v":{"v":0,"d":"$0.00"}},{"$f":"IFERROR('MMA Rev-Exp Summary'!$N$75/'MMA Rev-Exp Summary'!$N$9, 0)","v":{"v":0,"d":"$0.00"}}]
["MMA",null,null,{"$f":"Jurat!I$1","v":0},{"$f":"Jurat!D$33","v":"00:00:00"},"Q1","2017-03-31","Summary","Operating Expense","Medical Benefits Expense","Other Medical","11.5","TPL & Fraud/Abuse Recoveries",{"$f":"IFERROR('MMA Rev-Exp Summary'!$D$81/'MMA Rev-Exp Summary'!$D$9, 0)","v":{"v":0,"d":"$0.00"}},{"$f":"IFERROR('MMA Rev-Exp Summary'!$E$81/'MMA Rev-Exp Summary'!$E$9, 0)","v":{"v":0,"d":"$0.00"}},{"$f":"IFERROR('MMA Rev-Exp Summary'!$F$81/'MMA Rev-Exp Summary'!$F$9, 0)","v":{"v":0,"d":"$0.00"}},{"$f":"IFERROR('MMA Rev-Exp Summary'!$G$81/'MMA Rev-Exp Summary'!$G$9, 0)","v":{"v":0,"d":"$0.00"}},{"$f":"IFERROR('MMA Rev-Exp Summary'!$H$81/'MMA Rev-Exp Summary'!$H$9, 0)","v":{"v":0,"d":"$0.00"}},{"$f":"IFERROR('MMA Rev-Exp Summary'!$I$81/'MMA Rev-Exp Summary'!$I$9, 0)","v":{"v":0,"d":"$0.00"}},{"$f":"IFERROR('MMA Rev-Exp Summary'!$J$81/'MMA Rev-Exp Summary'!$J$9, 0)","v":{"v":0,"d":"$0.00"}},{"$f":"IFERROR('MMA Rev-Exp Summary'!$K$81/'MMA Rev-Exp Summary'!$K$9, 0)","v":{"v":0,"d":"$0.00"}},{"$f":"IFERROR('MMA Rev-Exp Summary'!$L$81/'MMA Rev-Exp Summary'!$L$9, 0)","v":{"v":0,"d":"$0.00"}},{"$f":"IFERROR('MMA Rev-Exp Summary'!$M$81/'MMA Rev-Exp Summary'!$M$9, 0)","v":{"v":0,"d":"$0.00"}},{"$f":"IFERROR('MMA Rev-Exp Summary'!$N$81/'MMA Rev-Exp Summary'!$N$9, 0)","v":{"v":0,"d":"$0.00"}}]
["MMA",null,null,{"$f":"Jurat!I$1","v":0},{"$f":"Jurat!D$33","v":"00:00:00"},"Q1","2017-03-31","Summary","Operating Expense","Medical Benefits Expense","Other Medical","11.6.1","Premium Deficiency Reserve",{"$f":"IFERROR('MMA Rev-Exp Summary'!$D$82/'MMA Rev-Exp Summary'!$D$9, 0)","v":{"v":0,"d":"$0.00"}},{"$f":"IFERROR('MMA Rev-Exp Summary'!$E$82/'MMA Rev-Exp Summary'!$E$9, 0)","v":{"v":0,"d":"$0.00"}},{"$f":"IFERROR('MMA Rev-Exp Summary'!$F$82/'MMA Rev-Exp Summary'!$F$9, 0)","v":{"v":0,"d":"$0.00"}},{"$f":"IFERROR('MMA Rev-Exp Summary'!$G$82/'MMA Rev-Exp Summary'!$G$9, 0)","v":{"v":0,"d":"$0.00"}},{"$f":"IFERROR('MMA Rev-Exp Summary'!$H$82/'MMA Rev-Exp Summary'!$H$9, 0)","v":{"v":0,"d":"$0.00"}},{"$f":"IFERROR('MMA Rev-Exp Summary'!$I$82/'MMA Rev-Exp Summary'!$I$9, 0)","v":{"v":0,"d":"$0.00"}},{"$f":"IFERROR('MMA Rev-Exp Summary'!$J$82/'MMA Rev-Exp Summary'!$J$9, 0)","v":{"v":0,"d":"$0.00"}},{"$f":"IFERROR('MMA Rev-Exp Summary'!$K$82/'MMA Rev-Exp Summary'!$K$9, 0)","v":{"v":0,"d":"$0.00"}},{"$f":"IFERROR('MMA Rev-Exp Summary'!$L$82/'MMA Rev-Exp Summary'!$L$9, 0)","v":{"v":0,"d":"$0.00"}},{"$f":"IFERROR('MMA Rev-Exp Summary'!$M$82/'MMA Rev-Exp Summary'!$M$9, 0)","v":{"v":0,"d":"$0.00"}},{"$f":"IFERROR('MMA Rev-Exp Summary'!$N$82/'MMA Rev-Exp Summary'!$N$9, 0)","v":{"v":0,"d":"$0.00"}}]
["MMA",null,null,{"$f":"Jurat!I$1","v":0},{"$f":"Jurat!D$33","v":"00:00:00"},"Q1","2017-03-31","Summary","Operating Expense","Medical Benefits Expense","Other Medical","11.8","Reinsurance Premiums",{"$f":"IFERROR('MMA Rev-Exp Summary'!$D$84/'MMA Rev-Exp Summary'!$D$9, 0)","v":{"v":0,"d":"$0.00"}},{"$f":"IFERROR('MMA Rev-Exp Summary'!$E$84/'MMA Rev-Exp Summary'!$E$9, 0)","v":{"v":0,"d":"$0.00"}},{"$f":"IFERROR('MMA Rev-Exp Summary'!$F$84/'MMA Rev-Exp Summary'!$F$9, 0)","v":{"v":0,"d":"$0.00"}},{"$f":"IFERROR('MMA Rev-Exp Summary'!$G$84/'MMA Rev-Exp Summary'!$G$9, 0)","v":{"v":0,"d":"$0.00"}},{"$f":"IFERROR('MMA Rev-Exp Summary'!$H$84/'MMA Rev-Exp Summary'!$H$9, 0)","v":{"v":0,"d":"$0.00"}},{"$f":"IFERROR('MMA Rev-Exp Summary'!$I$84/'MMA Rev-Exp Summary'!$I$9, 0)","v":{"v":0,"d":"$0.00"}},{"$f":"IFERROR('MMA Rev-Exp Summary'!$J$84/'MMA Rev-Exp Summary'!$J$9, 0)","v":{"v":0,"d":"$0.00"}},{"$f":"IFERROR('MMA Rev-Exp Summary'!$K$84/'MMA Rev-Exp Summary'!$K$9, 0)","v":{"v":0,"d":"$0.00"}},{"$f":"IFERROR('MMA Rev-Exp Summary'!$L$84/'MMA Rev-Exp Summary'!$L$9, 0)","v":{"v":0,"d":"$0.00"}},{"$f":"IFERROR('MMA Rev-Exp Summary'!$M$84/'MMA Rev-Exp Summary'!$M$9, 0)","v":{"v":0,"d":"$0.00"}},{"$f":"IFERROR('MMA Rev-Exp Summary'!$N$84/'MMA Rev-Exp Summary'!$N$9, 0)","v":{"v":0,"d":"$0.00"}}]
["MMA",null,null,{"$f":"Jurat!I$1","v":0},{"$f":"Jurat!D$33","v":"00:00:00"},"Q1","2017-03-31","Summary","Operating Expense","Medical Benefits Expense","Other Medical","11.9","Reinsurance Recoveries",{"$f":"IFERROR('MMA Rev-Exp Summary'!$D$85/'MMA Rev-Exp Summary'!$D$9, 0)","v":{"v":0,"d":"$0.00"}},{"$f":"IFERROR('MMA Rev-Exp Summary'!$E$85/'MMA Rev-Exp Summary'!$E$9, 0)","v":{"v":0,"d":"$0.00"}},{"$f":"IFERROR('MMA Rev-Exp Summary'!$F$85/'MMA Rev-Exp Summary'!$F$9, 0)","v":{"v":0,"d":"$0.00"}},{"$f":"IFERROR('MMA Rev-Exp Summary'!$G$85/'MMA Rev-Exp Summary'!$G$9, 0)","v":{"v":0,"d":"$0.00"}},{"$f":"IFERROR('MMA Rev-Exp Summary'!$H$85/'MMA Rev-Exp Summary'!$H$9, 0)","v":{"v":0,"d":"$0.00"}},{"$f":"IFERROR('MMA Rev-Exp Summary'!$I$85/'MMA Rev-Exp Summary'!$I$9, 0)","v":{"v":0,"d":"$0.00"}},{"$f":"IFERROR('MMA Rev-Exp Summary'!$J$85/'MMA Rev-Exp Summary'!$J$9, 0)","v":{"v":0,"d":"$0.00"}},{"$f":"IFERROR('MMA Rev-Exp Summary'!$K$85/'MMA Rev-Exp Summary'!$K$9, 0)","v":{"v":0,"d":"$0.00"}},{"$f":"IFERROR('MMA Rev-Exp Summary'!$L$85/'MMA Rev-Exp Summary'!$L$9, 0)","v":{"v":0,"d":"$0.00"}},{"$f":"IFERROR('MMA Rev-Exp Summary'!$M$85/'MMA Rev-Exp Summary'!$M$9, 0)","v":{"v":0,"d":"$0.00"}},{"$f":"IFERROR('MMA Rev-Exp Summary'!$N$85/'MMA Rev-Exp Summary'!$N$9, 0)","v":{"v":0,"d":"$0.00"}}]
["MMA",null,null,{"$f":"Jurat!I$1","v":0},{"$f":"Jurat!D$33","v":"00:00:00"},"Q1","2017-03-31","Summary","Operating Expense","Administrative Expense","Administrative","12.1","Salaries & Benefits",{"$f":"IFERROR('MMA Rev-Exp Summary'!$D$90/'MMA Rev-Exp Summary'!$D$9, 0)","v":{"v":0,"d":"$0.00"}},{"$f":"IFERROR('MMA Rev-Exp Summary'!$E$90/'MMA Rev-Exp Summary'!$D$9, 0)","v":{"v":0,"d":"$0.00"}},{"$f":"IFERROR('MMA Rev-Exp Summary'!$F$90/'MMA Rev-Exp Summary'!$D$9, 0)","v":{"v":0,"d":"$0.00"}},{"$f":"IFERROR('MMA Rev-Exp Summary'!$G$90/'MMA Rev-Exp Summary'!$G$9, 0)","v":{"v":0,"d":"$0.00"}},{"$f":"IFERROR('MMA Rev-Exp Summary'!$H$90/'MMA Rev-Exp Summary'!$H$9, 0)","v":{"v":0,"d":"$0.00"}},{"$f":"IFERROR('MMA Rev-Exp Summary'!$I$90/'MMA Rev-Exp Summary'!$I$9, 0)","v":{"v":0,"d":"$0.00"}},{"$f":"IFERROR('MMA Rev-Exp Summary'!$J$90/'MMA Rev-Exp Summary'!$J$9, 0)","v":{"v":0,"d":"$0.00"}},{"$f":"IFERROR('MMA Rev-Exp Summary'!$K$90/'MMA Rev-Exp Summary'!$K$9, 0)","v":{"v":0,"d":"$0.00"}},{"$f":"IFERROR('MMA Rev-Exp Summary'!$L$90/'MMA Rev-Exp Summary'!$L$9, 0)","v":{"v":0,"d":"$0.00"}},{"$f":"IFERROR('MMA Rev-Exp Summary'!$M$90/'MMA Rev-Exp Summary'!$M$9, 0)","v":{"v":0,"d":"$0.00"}},{"$f":"IFERROR('MMA Rev-Exp Summary'!$N$90/'MMA Rev-Exp Summary'!$N$9, 0)","v":{"v":0,"d":"$0.00"}}]
["MMA",null,null,{"$f":"Jurat!I$1","v":0},{"$f":"Jurat!D$33","v":"00:00:00"},"Q1","2017-03-31","Summary","Operating Expense","Administrative Expense","Administrative","12.2","Administrative Services",{"$f":"IFERROR('MMA Rev-Exp Summary'!$D$91/'MMA Rev-Exp Summary'!$D$9, 0)","v":{"v":0,"d":"$0.00"}},{"$f":"IFERROR('MMA Rev-Exp Summary'!$E$91/'MMA Rev-Exp Summary'!$D$9, 0)","v":{"v":0,"d":"$0.00"}},{"$f":"IFERROR('MMA Rev-Exp Summary'!$F$91/'MMA Rev-Exp Summary'!$D$9, 0)","v":{"v":0,"d":"$0.00"}},{"$f":"IFERROR('MMA Rev-Exp Summary'!$G$91/'MMA Rev-Exp Summary'!$G$9, 0)","v":{"v":0,"d":"$0.00"}},{"$f":"IFERROR('MMA Rev-Exp Summary'!$H$91/'MMA Rev-Exp Summary'!$H$9, 0)","v":{"v":0,"d":"$0.00"}},{"$f":"IFERROR('MMA Rev-Exp Summary'!$I$91/'MMA Rev-Exp Summary'!$I$9, 0)","v":{"v":0,"d":"$0.00"}},{"$f":"IFERROR('MMA Rev-Exp Summary'!$J$91/'MMA Rev-Exp Summary'!$J$9, 0)","v":{"v":0,"d":"$0.00"}},{"$f":"IFERROR('MMA Rev-Exp Summary'!$K$91/'MMA Rev-Exp Summary'!$K$9, 0)","v":{"v":0,"d":"$0.00"}},{"$f":"IFERROR('MMA Rev-Exp Summary'!$L$91/'MMA Rev-Exp Summary'!$L$9, 0)","v":{"v":0,"d":"$0.00"}},{"$f":"IFERROR('MMA Rev-Exp Summary'!$M$91/'MMA Rev-Exp Summary'!$M$9, 0)","v":{"v":0,"d":"$0.00"}},{"$f":"IFERROR('MMA Rev-Exp Summary'!$N$91/'MMA Rev-Exp Summary'!$N$9, 0)","v":{"v":0,"d":"$0.00"}}]
["MMA",null,null,{"$f":"Jurat!I$1","v":0},{"$f":"Jurat!D$33","v":"00:00:00"},"Q1","2017-03-31","Summary","Operating Expense","Administrative Expense","Administrative","12.3","Information Systems",{"$f":"IFERROR('MMA Rev-Exp Summary'!$D$92/'MMA Rev-Exp Summary'!$D$9, 0)","v":{"v":0,"d":"$0.00"}},{"$f":"IFERROR('MMA Rev-Exp Summary'!$E$92/'MMA Rev-Exp Summary'!$D$9, 0)","v":{"v":0,"d":"$0.00"}},{"$f":"IFERROR('MMA Rev-Exp Summary'!$F$92/'MMA Rev-Exp Summary'!$D$9, 0)","v":{"v":0,"d":"$0.00"}},{"$f":"IFERROR('MMA Rev-Exp Summary'!$G$92/'MMA Rev-Exp Summary'!$G$9, 0)","v":{"v":0,"d":"$0.00"}},{"$f":"IFERROR('MMA Rev-Exp Summary'!$H$92/'MMA Rev-Exp Summary'!$H$9, 0)","v":{"v":0,"d":"$0.00"}},{"$f":"IFERROR('MMA Rev-Exp Summary'!$I$92/'MMA Rev-Exp Summary'!$I$9, 0)","v":{"v":0,"d":"$0.00"}},{"$f":"IFERROR('MMA Rev-Exp Summary'!$J$92/'MMA Rev-Exp Summary'!$J$9, 0)","v":{"v":0,"d":"$0.00"}},{"$f":"IFERROR('MMA Rev-Exp Summary'!$K$92/'MMA Rev-Exp Summary'!$K$9, 0)","v":{"v":0,"d":"$0.00"}},{"$f":"IFERROR('MMA Rev-Exp Summary'!$L$92/'MMA Rev-Exp Summary'!$L$9, 0)","v":{"v":0,"d":"$0.00"}},{"$f":"IFERROR('MMA Rev-Exp Summary'!$M$92/'MMA Rev-Exp Summary'!$M$9, 0)","v":{"v":0,"d":"$0.00"}},{"$f":"IFERROR('MMA Rev-Exp Summary'!$N$92/'MMA Rev-Exp Summary'!$N$9, 0)","v":{"v":0,"d":"$0.00"}}]
["MMA",null,null,{"$f":"Jurat!I$1","v":0},{"$f":"Jurat!D$33","v":"00:00:00"},"Q1","2017-03-31","Summary","Operating Expense","Administrative Expense","Administrative","12.4","Marketing Expenses",{"$f":"IFERROR('MMA Rev-Exp Summary'!$D$93/'MMA Rev-Exp Summary'!$D$9, 0)","v":{"v":0,"d":"$0.00"}},{"$f":"IFERROR('MMA Rev-Exp Summary'!$E$93/'MMA Rev-Exp Summary'!$D$9, 0)","v":{"v":0,"d":"$0.00"}},{"$f":"IFERROR('MMA Rev-Exp Summary'!$F$93/'MMA Rev-Exp Summary'!$D$9, 0)","v":{"v":0,"d":"$0.00"}},{"$f":"IFERROR('MMA Rev-Exp Summary'!$G$93/'MMA Rev-Exp Summary'!$G$9, 0)","v":{"v":0,"d":"$0.00"}},{"$f":"IFERROR('MMA Rev-Exp Summary'!$H$93/'MMA Rev-Exp Summary'!$H$9, 0)","v":{"v":0,"d":"$0.00"}},{"$f":"IFERROR('MMA Rev-Exp Summary'!$I$93/'MMA Rev-Exp Summary'!$I$9, 0)","v":{"v":0,"d":"$0.00"}},{"$f":"IFERROR('MMA Rev-Exp Summary'!$J$93/'MMA Rev-Exp Summary'!$J$9, 0)","v":{"v":0,"d":"$0.00"}},{"$f":"IFERROR('MMA Rev-Exp Summary'!$K$93/'MMA Rev-Exp Summary'!$K$9, 0)","v":{"v":0,"d":"$0.00"}},{"$f":"IFERROR('MMA Rev-Exp Summary'!$L$93/'MMA Rev-Exp Summary'!$L$9, 0)","v":{"v":0,"d":"$0.00"}},{"$f":"IFERROR('MMA Rev-Exp Summary'!$M$93/'MMA Rev-Exp Summary'!$M$9, 0)","v":{"v":0,"d":"$0.00"}},{"$f":"IFERROR('MMA Rev-Exp Summary'!$N$93/'MMA Rev-Exp Summary'!$N$9, 0)","v":{"v":0,"d":"$0.00"}}]
["MMA",null,null,{"$f":"Jurat!I$1","v":0},{"$f":"Jurat!D$33","v":"00:00:00"},"Q1","2017-03-31","Summary","Operating Expense","Administrative Expense","Administrative","12.5","General  Administration",{"$f":"IFERROR('MMA Rev-Exp Summary'!$D$94/'MMA Rev-Exp Summary'!$D$9, 0)","v":{"v":0,"d":"$0.00"}},{"$f":"IFERROR('MMA Rev-Exp Summary'!$E$94/'MMA Rev-Exp Summary'!$D$9, 0)","v":{"v":0,"d":"$0.00"}},{"$f":"IFERROR('MMA Rev-Exp Summary'!$F$94/'MMA Rev-Exp Summary'!$D$9, 0)","v":{"v":0,"d":"$0.00"}},{"$f":"IFERROR('MMA Rev-Exp Summary'!$G$94/'MMA Rev-Exp Summary'!$G$9, 0)","v":{"v":0,"d":"$0.00"}},{"$f":"IFERROR('MMA Rev-Exp Summary'!$H$94/'MMA Rev-Exp Summary'!$H$9, 0)","v":{"v":0,"d":"$0.00"}},{"$f":"IFERROR('MMA Rev-Exp Summary'!$I$94/'MMA Rev-Exp Summary'!$I$9, 0)","v":{"v":0,"d":"$0.00"}},{"$f":"IFERROR('MMA Rev-Exp Summary'!$J$94/'MMA Rev-Exp Summary'!$J$9, 0)","v":{"v":0,"d":"$0.00"}},{"$f":"IFERROR('MMA Rev-Exp Summary'!$K$94/'MMA Rev-Exp Summary'!$K$9, 0)","v":{"v":0,"d":"$0.00"}},{"$f":"IFERROR('MMA Rev-Exp Summary'!$L$94/'MMA Rev-Exp Summary'!$L$9, 0)","v":{"v":0,"d":"$0.00"}},{"$f":"IFERROR('MMA Rev-Exp Summary'!$M$94/'MMA Rev-Exp Summary'!$M$9, 0)","v":{"v":0,"d":"$0.00"}},{"$f":"IFERROR('MMA Rev-Exp Summary'!$N$94/'MMA Rev-Exp Summary'!$N$9, 0)","v":{"v":0,"d":"$0.00"}}]
["MMA",null,null,{"$f":"Jurat!I$1","v":0},{"$f":"Jurat!D$33","v":"00:00:00"},"Q1","2017-03-31","Summary","Operating Expense","Administrative Expense","Administrative","12.6","Compliance/Regulatory",{"$f":"IFERROR('MMA Rev-Exp Summary'!$D$95/'MMA Rev-Exp Summary'!$D$9, 0)","v":{"v":0,"d":"$0.00"}},{"$f":"IFERROR('MMA Rev-Exp Summary'!$E$95/'MMA Rev-Exp Summary'!$D$9, 0)","v":{"v":0,"d":"$0.00"}},{"$f":"IFERROR('MMA Rev-Exp Summary'!$F$95/'MMA Rev-Exp Summary'!$D$9, 0)","v":{"v":0,"d":"$0.00"}},{"$f":"IFERROR('MMA Rev-Exp Summary'!$G$95/'MMA Rev-Exp Summary'!$G$9, 0)","v":{"v":0,"d":"$0.00"}},{"$f":"IFERROR('MMA Rev-Exp Summary'!$H$95/'MMA Rev-Exp Summary'!$H$9, 0)","v":{"v":0,"d":"$0.00"}},{"$f":"IFERROR('MMA Rev-Exp Summary'!$I$95/'MMA Rev-Exp Summary'!$I$9, 0)","v":{"v":0,"d":"$0.00"}},{"$f":"IFERROR('MMA Rev-Exp Summary'!$J$95/'MMA Rev-Exp Summary'!$J$9, 0)","v":{"v":0,"d":"$0.00"}},{"$f":"IFERROR('MMA Rev-Exp Summary'!$K$95/'MMA Rev-Exp Summary'!$K$9, 0)","v":{"v":0,"d":"$0.00"}},{"$f":"IFERROR('MMA Rev-Exp Summary'!$L$95/'MMA Rev-Exp Summary'!$L$9, 0)","v":{"v":0,"d":"$0.00"}},{"$f":"IFERROR('MMA Rev-Exp Summary'!$M$95/'MMA Rev-Exp Summary'!$M$9, 0)","v":{"v":0,"d":"$0.00"}},{"$f":"IFERROR('MMA Rev-Exp Summary'!$N$95/'MMA Rev-Exp Summary'!$N$9, 0)","v":{"v":0,"d":"$0.00"}}]
["MMA",null,null,{"$f":"Jurat!I$1","v":0},{"$f":"Jurat!D$33","v":"00:00:00"},"Q1","2017-03-31","Summary","Operating Expense","Taxes & Fees","Taxes & Fees","13.1","State Premium tax",{"$f":"IFERROR('MMA Rev-Exp Summary'!$D$97/'MMA Rev-Exp Summary'!$D$9, 0)","v":{"v":0,"d":"$0.00"}}]
["MMA",null,null,{"$f":"Jurat!I$1","v":0},{"$f":"Jurat!D$33","v":"00:00:00"},"Q1","2017-03-31","Summary","Operating Expense","Taxes & Fees","Taxes & Fees","13.2","Department of Insurance Assessments",{"$f":"IFERROR('MMA Rev-Exp Summary'!$D$98/'MMA Rev-Exp Summary'!$D$9, 0)","v":{"v":0,"d":"$0.00"}}]
["MMA",null,null,{"$f":"Jurat!I$1","v":0},{"$f":"Jurat!D$33","v":"00:00:00"},"Q1","2017-03-31","Summary","Operating Expense","Taxes & Fees","Taxes & Fees","13.3","Section 9010 Health Insurance Providers Fee",{"$f":"IFERROR('MMA Rev-Exp Summary'!$D$99/'MMA Rev-Exp Summary'!$D$9, 0)","v":{"v":0,"d":"$0.00"}}]
["MMA",null,null,{"$f":"Jurat!I$1","v":0},{"$f":"Jurat!D$33","v":"00:00:00"},"Q1","2017-03-31","Summary","Non-Operating Expense","Income Tax Expense","Income Tax Expense","16.0","Income Tax Expense",{"$f":"IFERROR('MMA Rev-Exp Summary'!$D$106/'MMA Rev-Exp Summary'!$D$9, 0)","v":{"v":0,"d":"$0.00"}}]
["MMA",null,null,{"$f":"Jurat!I$1","v":0},{"$f":"Jurat!D$33","v":"00:00:00"},"Q2","2017-06-30","Summary","Operating Revenue","Capitation","Capitation",1.1,"Capitation",{"$f":"IFERROR('MMA Rev-Exp Summary'!$O$11/'MMA Rev-Exp Summary'!$O$9, 0)","v":{"v":0,"d":"$0.00"}},{"$f":"IFERROR('MMA Rev-Exp Summary'!$P$11/'MMA Rev-Exp Summary'!$P$9, 0)","v":{"v":0,"d":"$0.00"}},{"$f":"IFERROR('MMA Rev-Exp Summary'!$Q$11/'MMA Rev-Exp Summary'!$Q$9, 0)","v":{"v":0,"d":"$0.00"}},{"$f":"IFERROR('MMA Rev-Exp Summary'!$R$11/'MMA Rev-Exp Summary'!$R$9, 0)","v":{"v":0,"d":"$0.00"}},{"$f":"IFERROR('MMA Rev-Exp Summary'!$S$11/'MMA Rev-Exp Summary'!$S$9, 0)","v":{"v":0,"d":"$0.00"}},{"$f":"IFERROR('MMA Rev-Exp Summary'!$T$11/'MMA Rev-Exp Summary'!$T$9, 0)","v":{"v":0,"d":"$0.00"}},{"$f":"IFERROR('MMA Rev-Exp Summary'!$U$11/'MMA Rev-Exp Summary'!$U$9, 0)","v":{"v":0,"d":"$0.00"}},{"$f":"IFERROR('MMA Rev-Exp Summary'!$V$11/'MMA Rev-Exp Summary'!$V$9, 0)","v":{"v":0,"d":"$0.00"}},{"$f":"IFERROR('MMA Rev-Exp Summary'!$W$11/'MMA Rev-Exp Summary'!$W$9, 0)","v":{"v":0,"d":"$0.00"}},{"$f":"IFERROR('MMA Rev-Exp Summary'!$X$11/'MMA Rev-Exp Summary'!$X$9, 0)","v":{"v":0,"d":"$0.00"}},{"$f":"IFERROR('MMA Rev-Exp Summary'!$Y$11/'MMA Rev-Exp Summary'!$Y$9, 0)","v":{"v":0,"d":"$0.00"}}]
["MMA",null,null,{"$f":"Jurat!I$1","v":0},{"$f":"Jurat!D$33","v":"00:00:00"},"Q2","2017-06-30","Summary","Operating Revenue","Kick Payments","Kick Payments - Transplant",1.2,"Transplant Kick Payments",{"$f":"IFERROR('MMA Rev-Exp Summary'!$O$12/'MMA Rev-Exp Summary'!$O$9, 0)","v":{"v":0,"d":"$0.00"}},{"$f":"IFERROR('MMA Rev-Exp Summary'!$P$12/'MMA Rev-Exp Summary'!$P$9, 0)","v":{"v":0,"d":"$0.00"}},{"$f":"IFERROR('MMA Rev-Exp Summary'!$Q$12/'MMA Rev-Exp Summary'!$Q$9, 0)","v":{"v":0,"d":"$0.00"}},{"$f":"IFERROR('MMA Rev-Exp Summary'!$R$12/'MMA Rev-Exp Summary'!$R$9, 0)","v":{"v":0,"d":"$0.00"}},{"$f":"IFERROR('MMA Rev-Exp Summary'!$S$12/'MMA Rev-Exp Summary'!$S$9, 0)","v":{"v":0,"d":"$0.00"}},{"$f":"IFERROR('MMA Rev-Exp Summary'!$T$12/'MMA Rev-Exp Summary'!$T$9, 0)","v":{"v":0,"d":"$0.00"}},{"$f":"IFERROR('MMA Rev-Exp Summary'!$U$12/'MMA Rev-Exp Summary'!$U$9, 0)","v":{"v":0,"d":"$0.00"}},{"$f":"IFERROR('MMA Rev-Exp Summary'!$V$12/'MMA Rev-Exp Summary'!$V$9, 0)","v":{"v":0,"d":"$0.00"}},{"$f":"IFERROR('MMA Rev-Exp Summary'!$W$12/'MMA Rev-Exp Summary'!$W$9, 0)","v":{"v":0,"d":"$0.00"}},{"$f":"IFERROR('MMA Rev-Exp Summary'!$X$12/'MMA Rev-Exp Summary'!$X$9, 0)","v":{"v":0,"d":"$0.00"}},{"$f":"IFERROR('MMA Rev-Exp Summary'!$Y$12/'MMA Rev-Exp Summary'!$Y$9, 0)","v":{"v":0,"d":"$0.00"}}]
["MMA",null,null,{"$f":"Jurat!I$1","v":0},{"$f":"Jurat!D$33","v":"00:00:00"},"Q2","2017-06-30","Summary","Operating Revenue","Kick Payments","Kick Payments - Hep C","1.3","Hepatitis C Kick Payments",{"$f":"IFERROR('MMA Rev-Exp Summary'!$O$13/'MMA Rev-Exp Summary'!$O$9, 0)","v":{"v":0,"d":"$0.00"}},{"$f":"IFERROR('MMA Rev-Exp Summary'!$P$13/'MMA Rev-Exp Summary'!$P$9, 0)","v":{"v":0,"d":"$0.00"}},{"$f":"IFERROR('MMA Rev-Exp Summary'!$Q$13/'MMA Rev-Exp Summary'!$Q$9, 0)","v":{"v":0,"d":"$0.00"}},{"$f":"IFERROR('MMA Rev-Exp Summary'!$R$13/'MMA Rev-Exp Summary'!$R$9, 0)","v":{"v":0,"d":"$0.00"}},{"$f":"IFERROR('MMA Rev-Exp Summary'!$S$13/'MMA Rev-Exp Summary'!$S$9, 0)","v":{"v":0,"d":"$0.00"}},{"$f":"IFERROR('MMA Rev-Exp Summary'!$T$13/'MMA Rev-Exp Summary'!$T$9, 0)","v":{"v":0,"d":"$0.00"}},{"$f":"IFERROR('MMA Rev-Exp Summary'!$U$13/'MMA Rev-Exp Summary'!$U$9, 0)","v":{"v":0,"d":"$0.00"}},{"$f":"IFERROR('MMA Rev-Exp Summary'!$V$13/'MMA Rev-Exp Summary'!$V$9, 0)","v":{"v":0,"d":"$0.00"}},{"$f":"IFERROR('MMA Rev-Exp Summary'!$W$13/'MMA Rev-Exp Summary'!$W$9, 0)","v":{"v":0,"d":"$0.00"}},{"$f":"IFERROR('MMA Rev-Exp Summary'!$X$13/'MMA Rev-Exp Summary'!$X$9, 0)","v":{"v":0,"d":"$0.00"}},{"$f":"IFERROR('MMA Rev-Exp Summary'!$Y$13/'MMA Rev-Exp Summary'!$Y$9, 0)","v":{"v":0,"d":"$0.00"}}]
["MMA",null,null,{"$f":"Jurat!I$1","v":0},{"$f":"Jurat!D$33","v":"00:00:00"},"Q2","2017-06-30","Summary","Operating Revenue","Kick Payments","Kick Payments - Maternity","1.4.1","Maternity Kick Payments",{"$f":"IFERROR('MMA Rev-Exp Summary'!$O$14/'MMA Rev-Exp Summary'!$O$9, 0)","v":{"v":0,"d":"$0.00"}},{"$f":"IFERROR('MMA Rev-Exp Summary'!$P$14/'MMA Rev-Exp Summary'!$P$9, 0)","v":{"v":0,"d":"$0.00"}},{"$f":"IFERROR('MMA Rev-Exp Summary'!$Q$14/'MMA Rev-Exp Summary'!$Q$9, 0)","v":{"v":0,"d":"$0.00"}},{"$f":"IFERROR('MMA Rev-Exp Summary'!$R$14/'MMA Rev-Exp Summary'!$R$9, 0)","v":{"v":0,"d":"$0.00"}},{"$f":"IFERROR('MMA Rev-Exp Summary'!$S$14/'MMA Rev-Exp Summary'!$S$9, 0)","v":{"v":0,"d":"$0.00"}},{"$f":"IFERROR('MMA Rev-Exp Summary'!$T$14/'MMA Rev-Exp Summary'!$T$9, 0)","v":{"v":0,"d":"$0.00"}},{"$f":"IFERROR('MMA Rev-Exp Summary'!$U$14/'MMA Rev-Exp Summary'!$U$9, 0)","v":{"v":0,"d":"$0.00"}},{"$f":"IFERROR('MMA Rev-Exp Summary'!$V$14/'MMA Rev-Exp Summary'!$V$9, 0)","v":{"v":0,"d":"$0.00"}},{"$f":"IFERROR('MMA Rev-Exp Summary'!$W$14/'MMA Rev-Exp Summary'!$W$9, 0)","v":{"v":0,"d":"$0.00"}},{"$f":"IFERROR('MMA Rev-Exp Summary'!$X$14/'MMA Rev-Exp Summary'!$X$9, 0)","v":{"v":0,"d":"$0.00"}},{"$f":"IFERROR('MMA Rev-Exp Summary'!$Y$14/'MMA Rev-Exp Summary'!$Y$9, 0)","v":{"v":0,"d":"$0.00"}}]
["MMA",null,null,{"$f":"Jurat!I$1","v":0},{"$f":"Jurat!D$33","v":"00:00:00"},"Q2","2017-06-30","Summary","Operating Revenue","Other Revenue","Other Revenue - 9010","1.5","ACA § 9010 related payments",{"$f":"IFERROR('MMA Rev-Exp Summary'!$O$15/'MMA Rev-Exp Summary'!$O$9, 0)","v":{"v":0,"d":"$0.00"}},{"$f":"IFERROR('MMA Rev-Exp Summary'!$P$15/'MMA Rev-Exp Summary'!$P$9, 0)","v":{"v":0,"d":"$0.00"}},{"$f":"IFERROR('MMA Rev-Exp Summary'!$Q$15/'MMA Rev-Exp Summary'!$Q$9, 0)","v":{"v":0,"d":"$0.00"}},{"$f":"IFERROR('MMA Rev-Exp Summary'!$R$15/'MMA Rev-Exp Summary'!$R$9, 0)","v":{"v":0,"d":"$0.00"}},{"$f":"IFERROR('MMA Rev-Exp Summary'!$S$15/'MMA Rev-Exp Summary'!$S$9, 0)","v":{"v":0,"d":"$0.00"}},{"$f":"IFERROR('MMA Rev-Exp Summary'!$T$15/'MMA Rev-Exp Summary'!$T$9, 0)","v":{"v":0,"d":"$0.00"}},{"$f":"IFERROR('MMA Rev-Exp Summary'!$U$15/'MMA Rev-Exp Summary'!$U$9, 0)","v":{"v":0,"d":"$0.00"}},{"$f":"IFERROR('MMA Rev-Exp Summary'!$V$15/'MMA Rev-Exp Summary'!$V$9, 0)","v":{"v":0,"d":"$0.00"}},{"$f":"IFERROR('MMA Rev-Exp Summary'!$W$15/'MMA Rev-Exp Summary'!$W$9, 0)","v":{"v":0,"d":"$0.00"}},{"$f":"IFERROR('MMA Rev-Exp Summary'!$X$15/'MMA Rev-Exp Summary'!$X$9, 0)","v":{"v":0,"d":"$0.00"}},{"$f":"IFERROR('MMA Rev-Exp Summary'!$Y$15/'MMA Rev-Exp Summary'!$Y$9, 0)","v":{"v":0,"d":"$0.00"}}]
["MMA",null,null,{"$f":"Jurat!I$1","v":0},{"$f":"Jurat!D$33","v":"00:00:00"},"Q2","2017-06-30","Summary","Operating Revenue","Other Revenue","Other Revenue","1.6","Other Revenue",{"$f":"IFERROR('MMA Rev-Exp Summary'!$O$16/'MMA Rev-Exp Summary'!$O$9, 0)","v":{"v":0,"d":"$0.00"}},{"$f":"IFERROR('MMA Rev-Exp Summary'!$P$16/'MMA Rev-Exp Summary'!$P$9, 0)","v":{"v":0,"d":"$0.00"}},{"$f":"IFERROR('MMA Rev-Exp Summary'!$Q$16/'MMA Rev-Exp Summary'!$Q$9, 0)","v":{"v":0,"d":"$0.00"}},{"$f":"IFERROR('MMA Rev-Exp Summary'!$R$16/'MMA Rev-Exp Summary'!$R$9, 0)","v":{"v":0,"d":"$0.00"}},{"$f":"IFERROR('MMA Rev-Exp Summary'!$S$16/'MMA Rev-Exp Summary'!$S$9, 0)","v":{"v":0,"d":"$0.00"}},{"$f":"IFERROR('MMA Rev-Exp Summary'!$T$16/'MMA Rev-Exp Summary'!$T$9, 0)","v":{"v":0,"d":"$0.00"}},{"$f":"IFERROR('MMA Rev-Exp Summary'!$U$16/'MMA Rev-Exp Summary'!$U$9, 0)","v":{"v":0,"d":"$0.00"}},{"$f":"IFERROR('MMA Rev-Exp Summary'!$V$16/'MMA Rev-Exp Summary'!$V$9, 0)","v":{"v":0,"d":"$0.00"}},{"$f":"IFERROR('MMA Rev-Exp Summary'!$W$16/'MMA Rev-Exp Summary'!$W$9, 0)","v":{"v":0,"d":"$0.00"}},{"$f":"IFERROR('MMA Rev-Exp Summary'!$X$16/'MMA Rev-Exp Summary'!$X$9, 0)","v":{"v":0,"d":"$0.00"}},{"$f":"IFERROR('MMA Rev-Exp Summary'!$Y$16/'MMA Rev-Exp Summary'!$Y$9, 0)","v":{"v":0,"d":"$0.00"}}]
["MMA",null,null,{"$f":"Jurat!I$1","v":0},{"$f":"Jurat!D$33","v":"00:00:00"},"Q2","2017-06-30","Summary","Operating Expense","Medical Benefits Expense","Hospital Services",2.1,"Inpatient FFS",{"$f":"IFERROR('MMA Rev-Exp Summary'!$O$20/'MMA Rev-Exp Summary'!$O$9, 0)","v":{"v":0,"d":"$0.00"}},{"$f":"IFERROR('MMA Rev-Exp Summary'!$P$20/'MMA Rev-Exp Summary'!$P$9, 0)","v":{"v":0,"d":"$0.00"}},{"$f":"IFERROR('MMA Rev-Exp Summary'!$Q$20/'MMA Rev-Exp Summary'!$Q$9, 0)","v":{"v":0,"d":"$0.00"}},{"$f":"IFERROR('MMA Rev-Exp Summary'!$R$20/'MMA Rev-Exp Summary'!$R$9, 0)","v":{"v":0,"d":"$0.00"}},{"$f":"IFERROR('MMA Rev-Exp Summary'!$S$20/'MMA Rev-Exp Summary'!$S$9, 0)","v":{"v":0,"d":"$0.00"}},{"$f":"IFERROR('MMA Rev-Exp Summary'!$T$20/'MMA Rev-Exp Summary'!$T$9, 0)","v":{"v":0,"d":"$0.00"}},{"$f":"IFERROR('MMA Rev-Exp Summary'!$U$20/'MMA Rev-Exp Summary'!$U$9, 0)","v":{"v":0,"d":"$0.00"}},{"$f":"IFERROR('MMA Rev-Exp Summary'!$V$20/'MMA Rev-Exp Summary'!$V$9, 0)","v":{"v":0,"d":"$0.00"}},{"$f":"IFERROR('MMA Rev-Exp Summary'!$W$20/'MMA Rev-Exp Summary'!$W$9, 0)","v":{"v":0,"d":"$0.00"}},{"$f":"IFERROR('MMA Rev-Exp Summary'!$X$20/'MMA Rev-Exp Summary'!$X$9, 0)","v":{"v":0,"d":"$0.00"}},{"$f":"IFERROR('MMA Rev-Exp Summary'!$Y$20/'MMA Rev-Exp Summary'!$Y$9, 0)","v":{"v":0,"d":"$0.00"}}]
["MMA",null,null,{"$f":"Jurat!I$1","v":0},{"$f":"Jurat!D$33","v":"00:00:00"},"Q2","2017-06-30","Summary","Operating Expense","Medical Benefits Expense","Hospital Services",2.2,"Ending IBNP for Inpatient Hospital Services",{"$f":"IFERROR('MMA Rev-Exp Summary'!$O$21/'MMA Rev-Exp Summary'!$O$9, 0)","v":{"v":0,"d":"$0.00"}},{"$f":"IFERROR('MMA Rev-Exp Summary'!$P$21/'MMA Rev-Exp Summary'!$P$9, 0)","v":{"v":0,"d":"$0.00"}},{"$f":"IFERROR('MMA Rev-Exp Summary'!$Q$21/'MMA Rev-Exp Summary'!$Q$9, 0)","v":{"v":0,"d":"$0.00"}},{"$f":"IFERROR('MMA Rev-Exp Summary'!$R$21/'MMA Rev-Exp Summary'!$R$9, 0)","v":{"v":0,"d":"$0.00"}},{"$f":"IFERROR('MMA Rev-Exp Summary'!$S$21/'MMA Rev-Exp Summary'!$S$9, 0)","v":{"v":0,"d":"$0.00"}},{"$f":"IFERROR('MMA Rev-Exp Summary'!$T$21/'MMA Rev-Exp Summary'!$T$9, 0)","v":{"v":0,"d":"$0.00"}},{"$f":"IFERROR('MMA Rev-Exp Summary'!$U$21/'MMA Rev-Exp Summary'!$U$9, 0)","v":{"v":0,"d":"$0.00"}},{"$f":"IFERROR('MMA Rev-Exp Summary'!$V$21/'MMA Rev-Exp Summary'!$V$9, 0)","v":{"v":0,"d":"$0.00"}},{"$f":"IFERROR('MMA Rev-Exp Summary'!$W$21/'MMA Rev-Exp Summary'!$W$9, 0)","v":{"v":0,"d":"$0.00"}},{"$f":"IFERROR('MMA Rev-Exp Summary'!$X$21/'MMA Rev-Exp Summary'!$X$9, 0)","v":{"v":0,"d":"$0.00"}},{"$f":"IFERROR('MMA Rev-Exp Summary'!$Y$21/'MMA Rev-Exp Summary'!$Y$9, 0)","v":{"v":0,"d":"$0.00"}}]
["MMA",null,null,{"$f":"Jurat!I$1","v":0},{"$f":"Jurat!D$33","v":"00:00:00"},"Q2","2017-06-30","Summary","Operating Expense","Medical Benefits Expense","Hospital Services",2.3,"Outpatient FFS: ER",{"$f":"IFERROR('MMA Rev-Exp Summary'!$O$22/'MMA Rev-Exp Summary'!$O$9, 0)","v":{"v":0,"d":"$0.00"}},{"$f":"IFERROR('MMA Rev-Exp Summary'!$P$22/'MMA Rev-Exp Summary'!$P$9, 0)","v":{"v":0,"d":"$0.00"}},{"$f":"IFERROR('MMA Rev-Exp Summary'!$Q$22/'MMA Rev-Exp Summary'!$Q$9, 0)","v":{"v":0,"d":"$0.00"}},{"$f":"IFERROR('MMA Rev-Exp Summary'!$R$22/'MMA Rev-Exp Summary'!$R$9, 0)","v":{"v":0,"d":"$0.00"}},{"$f":"IFERROR('MMA Rev-Exp Summary'!$S$22/'MMA Rev-Exp Summary'!$S$9, 0)","v":{"v":0,"d":"$0.00"}},{"$f":"IFERROR('MMA Rev-Exp Summary'!$T$22/'MMA Rev-Exp Summary'!$T$9, 0)","v":{"v":0,"d":"$0.00"}},{"$f":"IFERROR('MMA Rev-Exp Summary'!$U$22/'MMA Rev-Exp Summary'!$U$9, 0)","v":{"v":0,"d":"$0.00"}},{"$f":"IFERROR('MMA Rev-Exp Summary'!$V$22/'MMA Rev-Exp Summary'!$V$9, 0)","v":{"v":0,"d":"$0.00"}},{"$f":"IFERROR('MMA Rev-Exp Summary'!$W$22/'MMA Rev-Exp Summary'!$W$9, 0)","v":{"v":0,"d":"$0.00"}},{"$f":"IFERROR('MMA Rev-Exp Summary'!$X$22/'MMA Rev-Exp Summary'!$X$9, 0)","v":{"v":0,"d":"$0.00"}},{"$f":"IFERROR('MMA Rev-Exp Summary'!$Y$22/'MMA Rev-Exp Summary'!$Y$9, 0)","v":{"v":0,"d":"$0.00"}}]
["MMA",null,null,{"$f":"Jurat!I$1","v":0},{"$f":"Jurat!D$33","v":"00:00:00"},"Q2","2017-06-30","Summary","Operating Expense","Medical Benefits Expense","Hospital Services",2.4,"Outpatient FFS: Other than ER ",{"$f":"IFERROR('MMA Rev-Exp Summary'!$O$23/'MMA Rev-Exp Summary'!$O$9, 0)","v":{"v":0,"d":"$0.00"}},{"$f":"IFERROR('MMA Rev-Exp Summary'!$P$23/'MMA Rev-Exp Summary'!$P$9, 0)","v":{"v":0,"d":"$0.00"}},{"$f":"IFERROR('MMA Rev-Exp Summary'!$Q$23/'MMA Rev-Exp Summary'!$Q$9, 0)","v":{"v":0,"d":"$0.00"}},{"$f":"IFERROR('MMA Rev-Exp Summary'!$R$23/'MMA Rev-Exp Summary'!$R$9, 0)","v":{"v":0,"d":"$0.00"}},{"$f":"IFERROR('MMA Rev-Exp Summary'!$S$23/'MMA Rev-Exp Summary'!$S$9, 0)","v":{"v":0,"d":"$0.00"}},{"$f":"IFERROR('MMA Rev-Exp Summary'!$T$23/'MMA Rev-Exp Summary'!$T$9, 0)","v":{"v":0,"d":"$0.00"}},{"$f":"IFERROR('MMA Rev-Exp Summary'!$U$23/'MMA Rev-Exp Summary'!$U$9, 0)","v":{"v":0,"d":"$0.00"}},{"$f":"IFERROR('MMA Rev-Exp Summary'!$V$23/'MMA Rev-Exp Summary'!$V$9, 0)","v":{"v":0,"d":"$0.00"}},{"$f":"IFERROR('MMA Rev-Exp Summary'!$W$23/'MMA Rev-Exp Summary'!$W$9, 0)","v":{"v":0,"d":"$0.00"}},{"$f":"IFERROR('MMA Rev-Exp Summary'!$X$23/'MMA Rev-Exp Summary'!$X$9, 0)","v":{"v":0,"d":"$0.00"}},{"$f":"IFERROR('MMA Rev-Exp Summary'!$Y$23/'MMA Rev-Exp Summary'!$Y$9, 0)","v":{"v":0,"d":"$0.00"}}]
["MMA",null,null,{"$f":"Jurat!I$1","v":0},{"$f":"Jurat!D$33","v":"00:00:00"},"Q2","2017-06-30","Summary","Operating Expense","Medical Benefits Expense","Hospital Services",2.5,"Ending IBNP for Outpatient Hospital Services",{"$f":"IFERROR('MMA Rev-Exp Summary'!$O$24/'MMA Rev-Exp Summary'!$O$9, 0)","v":{"v":0,"d":"$0.00"}},{"$f":"IFERROR('MMA Rev-Exp Summary'!$P$24/'MMA Rev-Exp Summary'!$P$9, 0)","v":{"v":0,"d":"$0.00"}},{"$f":"IFERROR('MMA Rev-Exp Summary'!$Q$24/'MMA Rev-Exp Summary'!$Q$9, 0)","v":{"v":0,"d":"$0.00"}},{"$f":"IFERROR('MMA Rev-Exp Summary'!$R$24/'MMA Rev-Exp Summary'!$R$9, 0)","v":{"v":0,"d":"$0.00"}},{"$f":"IFERROR('MMA Rev-Exp Summary'!$S$24/'MMA Rev-Exp Summary'!$S$9, 0)","v":{"v":0,"d":"$0.00"}},{"$f":"IFERROR('MMA Rev-Exp Summary'!$T$24/'MMA Rev-Exp Summary'!$T$9, 0)","v":{"v":0,"d":"$0.00"}},{"$f":"IFERROR('MMA Rev-Exp Summary'!$U$24/'MMA Rev-Exp Summary'!$U$9, 0)","v":{"v":0,"d":"$0.00"}},{"$f":"IFERROR('MMA Rev-Exp Summary'!$V$24/'MMA Rev-Exp Summary'!$V$9, 0)","v":{"v":0,"d":"$0.00"}},{"$f":"IFERROR('MMA Rev-Exp Summary'!$W$24/'MMA Rev-Exp Summary'!$W$9, 0)","v":{"v":0,"d":"$0.00"}},{"$f":"IFERROR('MMA Rev-Exp Summary'!$X$24/'MMA Rev-Exp Summary'!$X$9, 0)","v":{"v":0,"d":"$0.00"}},{"$f":"IFERROR('MMA Rev-Exp Summary'!$Y$24/'MMA Rev-Exp Summary'!$Y$9, 0)","v":{"v":0,"d":"$0.00"}}]
["MMA",null,null,{"$f":"Jurat!I$1","v":0},{"$f":"Jurat!D$33","v":"00:00:00"},"Q2","2017-06-30","Summary","Operating Expense","Medical Benefits Expense","Hospital Services","2.6","Subcapitated Hospital Services",{"$f":"IFERROR('MMA Rev-Exp Summary'!$O$25/'MMA Rev-Exp Summary'!$O$9, 0)","v":{"v":0,"d":"$0.00"}},{"$f":"IFERROR('MMA Rev-Exp Summary'!$P$25/'MMA Rev-Exp Summary'!$P$9, 0)","v":{"v":0,"d":"$0.00"}},{"$f":"IFERROR('MMA Rev-Exp Summary'!$Q$25/'MMA Rev-Exp Summary'!$Q$9, 0)","v":{"v":0,"d":"$0.00"}},{"$f":"IFERROR('MMA Rev-Exp Summary'!$R$25/'MMA Rev-Exp Summary'!$R$9, 0)","v":{"v":0,"d":"$0.00"}},{"$f":"IFERROR('MMA Rev-Exp Summary'!$S$25/'MMA Rev-Exp Summary'!$S$9, 0)","v":{"v":0,"d":"$0.00"}},{"$f":"IFERROR('MMA Rev-Exp Summary'!$T$25/'MMA Rev-Exp Summary'!$T$9, 0)","v":{"v":0,"d":"$0.00"}},{"$f":"IFERROR('MMA Rev-Exp Summary'!$U$25/'MMA Rev-Exp Summary'!$U$9, 0)","v":{"v":0,"d":"$0.00"}},{"$f":"IFERROR('MMA Rev-Exp Summary'!$V$25/'MMA Rev-Exp Summary'!$V$9, 0)","v":{"v":0,"d":"$0.00"}},{"$f":"IFERROR('MMA Rev-Exp Summary'!$W$25/'MMA Rev-Exp Summary'!$W$9, 0)","v":{"v":0,"d":"$0.00"}},{"$f":"IFERROR('MMA Rev-Exp Summary'!$X$25/'MMA Rev-Exp Summary'!$X$9, 0)","v":{"v":0,"d":"$0.00"}},{"$f":"IFERROR('MMA Rev-Exp Summary'!$Y$25/'MMA Rev-Exp Summary'!$Y$9, 0)","v":{"v":0,"d":"$0.00"}}]
["MMA",null,null,{"$f":"Jurat!I$1","v":0},{"$f":"Jurat!D$33","v":"00:00:00"},"Q2","2017-06-30","Summary","Operating Expense","Medical Benefits Expense","Hospital Services","2.7","Hospital Settlements",{"$f":"IFERROR('MMA Rev-Exp Summary'!$O$26/'MMA Rev-Exp Summary'!$O$9, 0)","v":{"v":0,"d":"$0.00"}},{"$f":"IFERROR('MMA Rev-Exp Summary'!$P$26/'MMA Rev-Exp Summary'!$P$9, 0)","v":{"v":0,"d":"$0.00"}},{"$f":"IFERROR('MMA Rev-Exp Summary'!$Q$26/'MMA Rev-Exp Summary'!$Q$9, 0)","v":{"v":0,"d":"$0.00"}},{"$f":"IFERROR('MMA Rev-Exp Summary'!$R$26/'MMA Rev-Exp Summary'!$R$9, 0)","v":{"v":0,"d":"$0.00"}},{"$f":"IFERROR('MMA Rev-Exp Summary'!$S$26/'MMA Rev-Exp Summary'!$S$9, 0)","v":{"v":0,"d":"$0.00"}},{"$f":"IFERROR('MMA Rev-Exp Summary'!$T$26/'MMA Rev-Exp Summary'!$T$9, 0)","v":{"v":0,"d":"$0.00"}},{"$f":"IFERROR('MMA Rev-Exp Summary'!$U$26/'MMA Rev-Exp Summary'!$U$9, 0)","v":{"v":0,"d":"$0.00"}},{"$f":"IFERROR('MMA Rev-Exp Summary'!$V$26/'MMA Rev-Exp Summary'!$V$9, 0)","v":{"v":0,"d":"$0.00"}},{"$f":"IFERROR('MMA Rev-Exp Summary'!$W$26/'MMA Rev-Exp Summary'!$W$9, 0)","v":{"v":0,"d":"$0.00"}},{"$f":"IFERROR('MMA Rev-Exp Summary'!$X$26/'MMA Rev-Exp Summary'!$X$9, 0)","v":{"v":0,"d":"$0.00"}},{"$f":"IFERROR('MMA Rev-Exp Summary'!$Y$26/'MMA Rev-Exp Summary'!$Y$9, 0)","v":{"v":0,"d":"$0.00"}}]
["MMA",null,null,{"$f":"Jurat!I$1","v":0},{"$f":"Jurat!D$33","v":"00:00:00"},"Q2","2017-06-30","Summary","Operating Expense","Medical Benefits Expense","Hospital Services","2.7.1","Transplant Services",{"$f":"IFERROR('MMA Rev-Exp Summary'!$O$27/'MMA Rev-Exp Summary'!$O$9, 0)","v":{"v":0,"d":"$0.00"}},{"$f":"IFERROR('MMA Rev-Exp Summary'!$P$27/'MMA Rev-Exp Summary'!$P$9, 0)","v":{"v":0,"d":"$0.00"}},{"$f":"IFERROR('MMA Rev-Exp Summary'!$Q$27/'MMA Rev-Exp Summary'!$Q$9, 0)","v":{"v":0,"d":"$0.00"}},{"$f":"IFERROR('MMA Rev-Exp Summary'!$R$27/'MMA Rev-Exp Summary'!$R$9, 0)","v":{"v":0,"d":"$0.00"}},{"$f":"IFERROR('MMA Rev-Exp Summary'!$S$27/'MMA Rev-Exp Summary'!$S$9, 0)","v":{"v":0,"d":"$0.00"}},{"$f":"IFERROR('MMA Rev-Exp Summary'!$T$27/'MMA Rev-Exp Summary'!$T$9, 0)","v":{"v":0,"d":"$0.00"}},{"$f":"IFERROR('MMA Rev-Exp Summary'!$U$27/'MMA Rev-Exp Summary'!$U$9, 0)","v":{"v":0,"d":"$0.00"}},{"$f":"IFERROR('MMA Rev-Exp Summary'!$V$27/'MMA Rev-Exp Summary'!$V$9, 0)","v":{"v":0,"d":"$0.00"}},{"$f":"IFERROR('MMA Rev-Exp Summary'!$W$27/'MMA Rev-Exp Summary'!$W$9, 0)","v":{"v":0,"d":"$0.00"}},{"$f":"IFERROR('MMA Rev-Exp Summary'!$X$27/'MMA Rev-Exp Summary'!$X$9, 0)","v":{"v":0,"d":"$0.00"}},{"$f":"IFERROR('MMA Rev-Exp Summary'!$Y$27/'MMA Rev-Exp Summary'!$Y$9, 0)","v":{"v":0,"d":"$0.00"}}]
["MMA",null,null,{"$f":"Jurat!I$1","v":0},{"$f":"Jurat!D$33","v":"00:00:00"},"Q2","2017-06-30","Summary","Operating Expense","Medical Benefits Expense","Professional Services",3.1,"Primary Care FFS",{"$f":"IFERROR('MMA Rev-Exp Summary'!$O$29/'MMA Rev-Exp Summary'!$O$9, 0)","v":{"v":0,"d":"$0.00"}},{"$f":"IFERROR('MMA Rev-Exp Summary'!$P$29/'MMA Rev-Exp Summary'!$P$9, 0)","v":{"v":0,"d":"$0.00"}},{"$f":"IFERROR('MMA Rev-Exp Summary'!$Q$29/'MMA Rev-Exp Summary'!$Q$9, 0)","v":{"v":0,"d":"$0.00"}},{"$f":"IFERROR('MMA Rev-Exp Summary'!$R$29/'MMA Rev-Exp Summary'!$R$9, 0)","v":{"v":0,"d":"$0.00"}},{"$f":"IFERROR('MMA Rev-Exp Summary'!$S$29/'MMA Rev-Exp Summary'!$S$9, 0)","v":{"v":0,"d":"$0.00"}},{"$f":"IFERROR('MMA Rev-Exp Summary'!$T$29/'MMA Rev-Exp Summary'!$T$9, 0)","v":{"v":0,"d":"$0.00"}},{"$f":"IFERROR('MMA Rev-Exp Summary'!$U$29/'MMA Rev-Exp Summary'!$U$9, 0)","v":{"v":0,"d":"$0.00"}},{"$f":"IFERROR('MMA Rev-Exp Summary'!$V$29/'MMA Rev-Exp Summary'!$V$9, 0)","v":{"v":0,"d":"$0.00"}},{"$f":"IFERROR('MMA Rev-Exp Summary'!$W$29/'MMA Rev-Exp Summary'!$W$9, 0)","v":{"v":0,"d":"$0.00"}},{"$f":"IFERROR('MMA Rev-Exp Summary'!$X$29/'MMA Rev-Exp Summary'!$X$9, 0)","v":{"v":0,"d":"$0.00"}},{"$f":"IFERROR('MMA Rev-Exp Summary'!$Y$29/'MMA Rev-Exp Summary'!$Y$9, 0)","v":{"v":0,"d":"$0.00"}}]
["MMA",null,null,{"$f":"Jurat!I$1","v":0},{"$f":"Jurat!D$33","v":"00:00:00"},"Q2","2017-06-30","Summary","Operating Expense","Medical Benefits Expense","Professional Services",3.2,"Specialty Care FFS",{"$f":"IFERROR('MMA Rev-Exp Summary'!$O$30/'MMA Rev-Exp Summary'!$O$9, 0)","v":{"v":0,"d":"$0.00"}},{"$f":"IFERROR('MMA Rev-Exp Summary'!$P$30/'MMA Rev-Exp Summary'!$P$9, 0)","v":{"v":0,"d":"$0.00"}},{"$f":"IFERROR('MMA Rev-Exp Summary'!$Q$30/'MMA Rev-Exp Summary'!$Q$9, 0)","v":{"v":0,"d":"$0.00"}},{"$f":"IFERROR('MMA Rev-Exp Summary'!$R$30/'MMA Rev-Exp Summary'!$R$9, 0)","v":{"v":0,"d":"$0.00"}},{"$f":"IFERROR('MMA Rev-Exp Summary'!$S$30/'MMA Rev-Exp Summary'!$S$9, 0)","v":{"v":0,"d":"$0.00"}},{"$f":"IFERROR('MMA Rev-Exp Summary'!$T$30/'MMA Rev-Exp Summary'!$T$9, 0)","v":{"v":0,"d":"$0.00"}},{"$f":"IFERROR('MMA Rev-Exp Summary'!$U$30/'MMA Rev-Exp Summary'!$U$9, 0)","v":{"v":0,"d":"$0.00"}},{"$f":"IFERROR('MMA Rev-Exp Summary'!$V$30/'MMA Rev-Exp Summary'!$V$9, 0)","v":{"v":0,"d":"$0.00"}},{"$f":"IFERROR('MMA Rev-Exp Summary'!$W$30/'MMA Rev-Exp Summary'!$W$9, 0)","v":{"v":0,"d":"$0.00"}},{"$f":"IFERROR('MMA Rev-Exp Summary'!$X$30/'MMA Rev-Exp Summary'!$X$9, 0)","v":{"v":0,"d":"$0.00"}},{"$f":"IFERROR('MMA Rev-Exp Summary'!$Y$30/'MMA Rev-Exp Summary'!$Y$9, 0)","v":{"v":0,"d":"$0.00"}}]
["MMA",null,null,{"$f":"Jurat!I$1","v":0},{"$f":"Jurat!D$33","v":"00:00:00"},"Q2","2017-06-30","Summary","Operating Expense","Medical Benefits Expense","Professional Services",3.3,"Other Professional FFS",{"$f":"IFERROR('MMA Rev-Exp Summary'!$O$31/'MMA Rev-Exp Summary'!$O$9, 0)","v":{"v":0,"d":"$0.00"}},{"$f":"IFERROR('MMA Rev-Exp Summary'!$P$31/'MMA Rev-Exp Summary'!$P$9, 0)","v":{"v":0,"d":"$0.00"}},{"$f":"IFERROR('MMA Rev-Exp Summary'!$Q$31/'MMA Rev-Exp Summary'!$Q$9, 0)","v":{"v":0,"d":"$0.00"}},{"$f":"IFERROR('MMA Rev-Exp Summary'!$R$31/'MMA Rev-Exp Summary'!$R$9, 0)","v":{"v":0,"d":"$0.00"}},{"$f":"IFERROR('MMA Rev-Exp Summary'!$S$31/'MMA Rev-Exp Summary'!$S$9, 0)","v":{"v":0,"d":"$0.00"}},{"$f":"IFERROR('MMA Rev-Exp Summary'!$T$31/'MMA Rev-Exp Summary'!$T$9, 0)","v":{"v":0,"d":"$0.00"}},{"$f":"IFERROR('MMA Rev-Exp Summary'!$U$31/'MMA Rev-Exp Summary'!$U$9, 0)","v":{"v":0,"d":"$0.00"}},{"$f":"IFERROR('MMA Rev-Exp Summary'!$V$31/'MMA Rev-Exp Summary'!$V$9, 0)","v":{"v":0,"d":"$0.00"}},{"$f":"IFERROR('MMA Rev-Exp Summary'!$W$31/'MMA Rev-Exp Summary'!$W$9, 0)","v":{"v":0,"d":"$0.00"}},{"$f":"IFERROR('MMA Rev-Exp Summary'!$X$31/'MMA Rev-Exp Summary'!$X$9, 0)","v":{"v":0,"d":"$0.00"}},{"$f":"IFERROR('MMA Rev-Exp Summary'!$Y$31/'MMA Rev-Exp Summary'!$Y$9, 0)","v":{"v":0,"d":"$0.00"}}]
["MMA",null,null,{"$f":"Jurat!I$1","v":0},{"$f":"Jurat!D$33","v":"00:00:00"},"Q2","2017-06-30","Summary","Operating Expense","Medical Benefits Expense","Professional Services","3.4","§ 1202 PCP Payments to providers",{"$f":"IFERROR('MMA Rev-Exp Summary'!$O$32/'MMA Rev-Exp Summary'!$O$9, 0)","v":{"v":0,"d":"$0.00"}},{"$f":"IFERROR('MMA Rev-Exp Summary'!$P$32/'MMA Rev-Exp Summary'!$P$9, 0)","v":{"v":0,"d":"$0.00"}},{"$f":"IFERROR('MMA Rev-Exp Summary'!$Q$32/'MMA Rev-Exp Summary'!$Q$9, 0)","v":{"v":0,"d":"$0.00"}},{"$f":"IFERROR('MMA Rev-Exp Summary'!$R$32/'MMA Rev-Exp Summary'!$R$9, 0)","v":{"v":0,"d":"$0.00"}},{"$f":"IFERROR('MMA Rev-Exp Summary'!$S$32/'MMA Rev-Exp Summary'!$S$9, 0)","v":{"v":0,"d":"$0.00"}},{"$f":"IFERROR('MMA Rev-Exp Summary'!$T$32/'MMA Rev-Exp Summary'!$T$9, 0)","v":{"v":0,"d":"$0.00"}},{"$f":"IFERROR('MMA Rev-Exp Summary'!$U$32/'MMA Rev-Exp Summary'!$U$9, 0)","v":{"v":0,"d":"$0.00"}},{"$f":"IFERROR('MMA Rev-Exp Summary'!$V$32/'MMA Rev-Exp Summary'!$V$9, 0)","v":{"v":0,"d":"$0.00"}},{"$f":"IFERROR('MMA Rev-Exp Summary'!$W$32/'MMA Rev-Exp Summary'!$W$9, 0)","v":{"v":0,"d":"$0.00"}},{"$f":"IFERROR('MMA Rev-Exp Summary'!$X$32/'MMA Rev-Exp Summary'!$X$9, 0)","v":{"v":0,"d":"$0.00"}},{"$f":"IFERROR('MMA Rev-Exp Summary'!$Y$32/'MMA Rev-Exp Summary'!$Y$9, 0)","v":{"v":0,"d":"$0.00"}}]
["MMA",null,null,{"$f":"Jurat!I$1","v":0},{"$f":"Jurat!D$33","v":"00:00:00"},"Q2","2017-06-30","Summary","Operating Expense","Medical Benefits Expense","Professional Services","3.5","Subcapitated Professional Services",{"$f":"IFERROR('MMA Rev-Exp Summary'!$O$33/'MMA Rev-Exp Summary'!$O$9, 0)","v":{"v":0,"d":"$0.00"}},{"$f":"IFERROR('MMA Rev-Exp Summary'!$P$33/'MMA Rev-Exp Summary'!$P$9, 0)","v":{"v":0,"d":"$0.00"}},{"$f":"IFERROR('MMA Rev-Exp Summary'!$Q$33/'MMA Rev-Exp Summary'!$Q$9, 0)","v":{"v":0,"d":"$0.00"}},{"$f":"IFERROR('MMA Rev-Exp Summary'!$R$33/'MMA Rev-Exp Summary'!$R$9, 0)","v":{"v":0,"d":"$0.00"}},{"$f":"IFERROR('MMA Rev-Exp Summary'!$S$33/'MMA Rev-Exp Summary'!$S$9, 0)","v":{"v":0,"d":"$0.00"}},{"$f":"IFERROR('MMA Rev-Exp Summary'!$T$33/'MMA Rev-Exp Summary'!$T$9, 0)","v":{"v":0,"d":"$0.00"}},{"$f":"IFERROR('MMA Rev-Exp Summary'!$U$33/'MMA Rev-Exp Summary'!$U$9, 0)","v":{"v":0,"d":"$0.00"}},{"$f":"IFERROR('MMA Rev-Exp Summary'!$V$33/'MMA Rev-Exp Summary'!$V$9, 0)","v":{"v":0,"d":"$0.00"}},{"$f":"IFERROR('MMA Rev-Exp Summary'!$W$33/'MMA Rev-Exp Summary'!$W$9, 0)","v":{"v":0,"d":"$0.00"}},{"$f":"IFERROR('MMA Rev-Exp Summary'!$X$33/'MMA Rev-Exp Summary'!$X$9, 0)","v":{"v":0,"d":"$0.00"}},{"$f":"IFERROR('MMA Rev-Exp Summary'!$Y$33/'MMA Rev-Exp Summary'!$Y$9, 0)","v":{"v":0,"d":"$0.00"}}]
["MMA",null,null,{"$f":"Jurat!I$1","v":0},{"$f":"Jurat!D$33","v":"00:00:00"},"Q2","2017-06-30","Summary","Operating Expense","Medical Benefits Expense","Professional Services","3.6","Ending IBNP for Professional Services",{"$f":"IFERROR('MMA Rev-Exp Summary'!$O$34/'MMA Rev-Exp Summary'!$O$9, 0)","v":{"v":0,"d":"$0.00"}},{"$f":"IFERROR('MMA Rev-Exp Summary'!$P$34/'MMA Rev-Exp Summary'!$P$9, 0)","v":{"v":0,"d":"$0.00"}},{"$f":"IFERROR('MMA Rev-Exp Summary'!$Q$34/'MMA Rev-Exp Summary'!$Q$9, 0)","v":{"v":0,"d":"$0.00"}},{"$f":"IFERROR('MMA Rev-Exp Summary'!$R$34/'MMA Rev-Exp Summary'!$R$9, 0)","v":{"v":0,"d":"$0.00"}},{"$f":"IFERROR('MMA Rev-Exp Summary'!$S$34/'MMA Rev-Exp Summary'!$S$9, 0)","v":{"v":0,"d":"$0.00"}},{"$f":"IFERROR('MMA Rev-Exp Summary'!$T$34/'MMA Rev-Exp Summary'!$T$9, 0)","v":{"v":0,"d":"$0.00"}},{"$f":"IFERROR('MMA Rev-Exp Summary'!$U$34/'MMA Rev-Exp Summary'!$U$9, 0)","v":{"v":0,"d":"$0.00"}},{"$f":"IFERROR('MMA Rev-Exp Summary'!$V$34/'MMA Rev-Exp Summary'!$V$9, 0)","v":{"v":0,"d":"$0.00"}},{"$f":"IFERROR('MMA Rev-Exp Summary'!$W$34/'MMA Rev-Exp Summary'!$W$9, 0)","v":{"v":0,"d":"$0.00"}},{"$f":"IFERROR('MMA Rev-Exp Summary'!$X$34/'MMA Rev-Exp Summary'!$X$9, 0)","v":{"v":0,"d":"$0.00"}},{"$f":"IFERROR('MMA Rev-Exp Summary'!$Y$34/'MMA Rev-Exp Summary'!$Y$9, 0)","v":{"v":0,"d":"$0.00"}}]
["MMA",null,null,{"$f":"Jurat!I$1","v":0},{"$f":"Jurat!D$33","v":"00:00:00"},"Q2","2017-06-30","Summary","Operating Expense","Medical Benefits Expense","Professional Services","3.7","Professional Services Settlements",{"$f":"IFERROR('MMA Rev-Exp Summary'!$O$35/'MMA Rev-Exp Summary'!$O$9, 0)","v":{"v":0,"d":"$0.00"}},{"$f":"IFERROR('MMA Rev-Exp Summary'!$P$35/'MMA Rev-Exp Summary'!$P$9, 0)","v":{"v":0,"d":"$0.00"}},{"$f":"IFERROR('MMA Rev-Exp Summary'!$Q$35/'MMA Rev-Exp Summary'!$Q$9, 0)","v":{"v":0,"d":"$0.00"}},{"$f":"IFERROR('MMA Rev-Exp Summary'!$R$35/'MMA Rev-Exp Summary'!$R$9, 0)","v":{"v":0,"d":"$0.00"}},{"$f":"IFERROR('MMA Rev-Exp Summary'!$S$35/'MMA Rev-Exp Summary'!$S$9, 0)","v":{"v":0,"d":"$0.00"}},{"$f":"IFERROR('MMA Rev-Exp Summary'!$T$35/'MMA Rev-Exp Summary'!$T$9, 0)","v":{"v":0,"d":"$0.00"}},{"$f":"IFERROR('MMA Rev-Exp Summary'!$U$35/'MMA Rev-Exp Summary'!$U$9, 0)","v":{"v":0,"d":"$0.00"}},{"$f":"IFERROR('MMA Rev-Exp Summary'!$V$35/'MMA Rev-Exp Summary'!$V$9, 0)","v":{"v":0,"d":"$0.00"}},{"$f":"IFERROR('MMA Rev-Exp Summary'!$W$35/'MMA Rev-Exp Summary'!$W$9, 0)","v":{"v":0,"d":"$0.00"}},{"$f":"IFERROR('MMA Rev-Exp Summary'!$X$35/'MMA Rev-Exp Summary'!$X$9, 0)","v":{"v":0,"d":"$0.00"}},{"$f":"IFERROR('MMA Rev-Exp Summary'!$Y$35/'MMA Rev-Exp Summary'!$Y$9, 0)","v":{"v":0,"d":"$0.00"}}]
["MMA",null,null,{"$f":"Jurat!I$1","v":0},{"$f":"Jurat!D$33","v":"00:00:00"},"Q2","2017-06-30","Summary","Operating Expense","Medical Benefits Expense","Maternity Services","4.1.1","Maternity Services",{"$f":"IFERROR('MMA Rev-Exp Summary'!$O$37/'MMA Rev-Exp Summary'!$O$9, 0)","v":{"v":0,"d":"$0.00"}},{"$f":"IFERROR('MMA Rev-Exp Summary'!$P$37/'MMA Rev-Exp Summary'!$P$9, 0)","v":{"v":0,"d":"$0.00"}},{"$f":"IFERROR('MMA Rev-Exp Summary'!$Q$37/'MMA Rev-Exp Summary'!$Q$9, 0)","v":{"v":0,"d":"$0.00"}},{"$f":"IFERROR('MMA Rev-Exp Summary'!$R$37/'MMA Rev-Exp Summary'!$R$9, 0)","v":{"v":0,"d":"$0.00"}},{"$f":"IFERROR('MMA Rev-Exp Summary'!$S$37/'MMA Rev-Exp Summary'!$S$9, 0)","v":{"v":0,"d":"$0.00"}},{"$f":"IFERROR('MMA Rev-Exp Summary'!$T$37/'MMA Rev-Exp Summary'!$T$9, 0)","v":{"v":0,"d":"$0.00"}},{"$f":"IFERROR('MMA Rev-Exp Summary'!$U$37/'MMA Rev-Exp Summary'!$U$9, 0)","v":{"v":0,"d":"$0.00"}},{"$f":"IFERROR('MMA Rev-Exp Summary'!$V$37/'MMA Rev-Exp Summary'!$V$9, 0)","v":{"v":0,"d":"$0.00"}},{"$f":"IFERROR('MMA Rev-Exp Summary'!$W$37/'MMA Rev-Exp Summary'!$W$9, 0)","v":{"v":0,"d":"$0.00"}},{"$f":"IFERROR('MMA Rev-Exp Summary'!$X$37/'MMA Rev-Exp Summary'!$X$9, 0)","v":{"v":0,"d":"$0.00"}},{"$f":"IFERROR('MMA Rev-Exp Summary'!$Y$37/'MMA Rev-Exp Summary'!$Y$9, 0)","v":{"v":0,"d":"$0.00"}}]
["MMA",null,null,{"$f":"Jurat!I$1","v":0},{"$f":"Jurat!D$33","v":"00:00:00"},"Q2","2017-06-30","Summary","Operating Expense","Medical Benefits Expense","Maternity Services","4.2.1","Ending IBNP for Maternity Services",{"$f":"IFERROR('MMA Rev-Exp Summary'!$O$38/'MMA Rev-Exp Summary'!$O$9, 0)","v":{"v":0,"d":"$0.00"}},{"$f":"IFERROR('MMA Rev-Exp Summary'!$P$38/'MMA Rev-Exp Summary'!$P$9, 0)","v":{"v":0,"d":"$0.00"}},{"$f":"IFERROR('MMA Rev-Exp Summary'!$Q$38/'MMA Rev-Exp Summary'!$Q$9, 0)","v":{"v":0,"d":"$0.00"}},{"$f":"IFERROR('MMA Rev-Exp Summary'!$R$38/'MMA Rev-Exp Summary'!$R$9, 0)","v":{"v":0,"d":"$0.00"}},{"$f":"IFERROR('MMA Rev-Exp Summary'!$S$38/'MMA Rev-Exp Summary'!$S$9, 0)","v":{"v":0,"d":"$0.00"}},{"$f":"IFERROR('MMA Rev-Exp Summary'!$T$38/'MMA Rev-Exp Summary'!$T$9, 0)","v":{"v":0,"d":"$0.00"}},{"$f":"IFERROR('MMA Rev-Exp Summary'!$U$38/'MMA Rev-Exp Summary'!$U$9, 0)","v":{"v":0,"d":"$0.00"}},{"$f":"IFERROR('MMA Rev-Exp Summary'!$V$38/'MMA Rev-Exp Summary'!$V$9, 0)","v":{"v":0,"d":"$0.00"}},{"$f":"IFERROR('MMA Rev-Exp Summary'!$W$38/'MMA Rev-Exp Summary'!$W$9, 0)","v":{"v":0,"d":"$0.00"}},{"$f":"IFERROR('MMA Rev-Exp Summary'!$X$38/'MMA Rev-Exp Summary'!$X$9, 0)","v":{"v":0,"d":"$0.00"}},{"$f":"IFERROR('MMA Rev-Exp Summary'!$Y$38/'MMA Rev-Exp Summary'!$Y$9, 0)","v":{"v":0,"d":"$0.00"}}]
["MMA",null,null,{"$f":"Jurat!I$1","v":0},{"$f":"Jurat!D$33","v":"00:00:00"},"Q2","2017-06-30","Summary","Operating Expense","Medical Benefits Expense","Maternity Services","4.3.1","Maternity Settlements",{"$f":"IFERROR('MMA Rev-Exp Summary'!$O$39/'MMA Rev-Exp Summary'!$O$9, 0)","v":{"v":0,"d":"$0.00"}},{"$f":"IFERROR('MMA Rev-Exp Summary'!$P$39/'MMA Rev-Exp Summary'!$P$9, 0)","v":{"v":0,"d":"$0.00"}},{"$f":"IFERROR('MMA Rev-Exp Summary'!$Q$39/'MMA Rev-Exp Summary'!$Q$9, 0)","v":{"v":0,"d":"$0.00"}},{"$f":"IFERROR('MMA Rev-Exp Summary'!$R$39/'MMA Rev-Exp Summary'!$R$9, 0)","v":{"v":0,"d":"$0.00"}},{"$f":"IFERROR('MMA Rev-Exp Summary'!$S$39/'MMA Rev-Exp Summary'!$S$9, 0)","v":{"v":0,"d":"$0.00"}},{"$f":"IFERROR('MMA Rev-Exp Summary'!$T$39/'MMA Rev-Exp Summary'!$T$9, 0)","v":{"v":0,"d":"$0.00"}},{"$f":"IFERROR('MMA Rev-Exp Summary'!$U$39/'MMA Rev-Exp Summary'!$U$9, 0)","v":{"v":0,"d":"$0.00"}},{"$f":"IFERROR('MMA Rev-Exp Summary'!$V$39/'MMA Rev-Exp Summary'!$V$9, 0)","v":{"v":0,"d":"$0.00"}},{"$f":"IFERROR('MMA Rev-Exp Summary'!$W$39/'MMA Rev-Exp Summary'!$W$9, 0)","v":{"v":0,"d":"$0.00"}},{"$f":"IFERROR('MMA Rev-Exp Summary'!$X$39/'MMA Rev-Exp Summary'!$X$9, 0)","v":{"v":0,"d":"$0.00"}},{"$f":"IFERROR('MMA Rev-Exp Summary'!$Y$39/'MMA Rev-Exp Summary'!$Y$9, 0)","v":{"v":0,"d":"$0.00"}}]
["MMA",null,null,{"$f":"Jurat!I$1","v":0},{"$f":"Jurat!D$33","v":"00:00:00"},"Q2","2017-06-30","Summary","Operating Expense","Medical Benefits Expense","Mental Health Services",5.1,"Mental Health & Substance Abuse FFS",{"$f":"IFERROR('MMA Rev-Exp Summary'!$O$41/'MMA Rev-Exp Summary'!$O$9, 0)","v":{"v":0,"d":"$0.00"}},{"$f":"IFERROR('MMA Rev-Exp Summary'!$P$41/'MMA Rev-Exp Summary'!$P$9, 0)","v":{"v":0,"d":"$0.00"}},{"$f":"IFERROR('MMA Rev-Exp Summary'!$Q$41/'MMA Rev-Exp Summary'!$Q$9, 0)","v":{"v":0,"d":"$0.00"}},{"$f":"IFERROR('MMA Rev-Exp Summary'!$R$41/'MMA Rev-Exp Summary'!$R$9, 0)","v":{"v":0,"d":"$0.00"}},{"$f":"IFERROR('MMA Rev-Exp Summary'!$S$41/'MMA Rev-Exp Summary'!$S$9, 0)","v":{"v":0,"d":"$0.00"}},{"$f":"IFERROR('MMA Rev-Exp Summary'!$T$41/'MMA Rev-Exp Summary'!$T$9, 0)","v":{"v":0,"d":"$0.00"}},{"$f":"IFERROR('MMA Rev-Exp Summary'!$U$41/'MMA Rev-Exp Summary'!$U$9, 0)","v":{"v":0,"d":"$0.00"}},{"$f":"IFERROR('MMA Rev-Exp Summary'!$V$41/'MMA Rev-Exp Summary'!$V$9, 0)","v":{"v":0,"d":"$0.00"}},{"$f":"IFERROR('MMA Rev-Exp Summary'!$W$41/'MMA Rev-Exp Summary'!$W$9, 0)","v":{"v":0,"d":"$0.00"}},{"$f":"IFERROR('MMA Rev-Exp Summary'!$X$41/'MMA Rev-Exp Summary'!$X$9, 0)","v":{"v":0,"d":"$0.00"}},{"$f":"IFERROR('MMA Rev-Exp Summary'!$Y$41/'MMA Rev-Exp Summary'!$Y$9, 0)","v":{"v":0,"d":"$0.00"}}]
["MMA",null,null,{"$f":"Jurat!I$1","v":0},{"$f":"Jurat!D$33","v":"00:00:00"},"Q2","2017-06-30","Summary","Operating Expense","Medical Benefits Expense","Mental Health Services",5.2,"Mental Health & Substance Abuse Subcapitation",{"$f":"IFERROR('MMA Rev-Exp Summary'!$O$42/'MMA Rev-Exp Summary'!$O$9, 0)","v":{"v":0,"d":"$0.00"}},{"$f":"IFERROR('MMA Rev-Exp Summary'!$P$42/'MMA Rev-Exp Summary'!$P$9, 0)","v":{"v":0,"d":"$0.00"}},{"$f":"IFERROR('MMA Rev-Exp Summary'!$Q$42/'MMA Rev-Exp Summary'!$Q$9, 0)","v":{"v":0,"d":"$0.00"}},{"$f":"IFERROR('MMA Rev-Exp Summary'!$R$42/'MMA Rev-Exp Summary'!$R$9, 0)","v":{"v":0,"d":"$0.00"}},{"$f":"IFERROR('MMA Rev-Exp Summary'!$S$42/'MMA Rev-Exp Summary'!$S$9, 0)","v":{"v":0,"d":"$0.00"}},{"$f":"IFERROR('MMA Rev-Exp Summary'!$T$42/'MMA Rev-Exp Summary'!$T$9, 0)","v":{"v":0,"d":"$0.00"}},{"$f":"IFERROR('MMA Rev-Exp Summary'!$U$42/'MMA Rev-Exp Summary'!$U$9, 0)","v":{"v":0,"d":"$0.00"}},{"$f":"IFERROR('MMA Rev-Exp Summary'!$V$42/'MMA Rev-Exp Summary'!$V$9, 0)","v":{"v":0,"d":"$0.00"}},{"$f":"IFERROR('MMA Rev-Exp Summary'!$W$42/'MMA Rev-Exp Summary'!$W$9, 0)","v":{"v":0,"d":"$0.00"}},{"$f":"IFERROR('MMA Rev-Exp Summary'!$X$42/'MMA Rev-Exp Summary'!$X$9, 0)","v":{"v":0,"d":"$0.00"}},{"$f":"IFERROR('MMA Rev-Exp Summary'!$Y$42/'MMA Rev-Exp Summary'!$Y$9, 0)","v":{"v":0,"d":"$0.00"}}]
["MMA",null,null,{"$f":"Jurat!I$1","v":0},{"$f":"Jurat!D$33","v":"00:00:00"},"Q2","2017-06-30","Summary","Operating Expense","Medical Benefits Expense","Mental Health Services",5.3,"Ending IBNP for Mental Health & Substance Abuse",{"$f":"IFERROR('MMA Rev-Exp Summary'!$O$43/'MMA Rev-Exp Summary'!$O$9, 0)","v":{"v":0,"d":"$0.00"}},{"$f":"IFERROR('MMA Rev-Exp Summary'!$P$43/'MMA Rev-Exp Summary'!$P$9, 0)","v":{"v":0,"d":"$0.00"}},{"$f":"IFERROR('MMA Rev-Exp Summary'!$Q$43/'MMA Rev-Exp Summary'!$Q$9, 0)","v":{"v":0,"d":"$0.00"}},{"$f":"IFERROR('MMA Rev-Exp Summary'!$R$43/'MMA Rev-Exp Summary'!$R$9, 0)","v":{"v":0,"d":"$0.00"}},{"$f":"IFERROR('MMA Rev-Exp Summary'!$S$43/'MMA Rev-Exp Summary'!$S$9, 0)","v":{"v":0,"d":"$0.00"}},{"$f":"IFERROR('MMA Rev-Exp Summary'!$T$43/'MMA Rev-Exp Summary'!$T$9, 0)","v":{"v":0,"d":"$0.00"}},{"$f":"IFERROR('MMA Rev-Exp Summary'!$U$43/'MMA Rev-Exp Summary'!$U$9, 0)","v":{"v":0,"d":"$0.00"}},{"$f":"IFERROR('MMA Rev-Exp Summary'!$V$43/'MMA Rev-Exp Summary'!$V$9, 0)","v":{"v":0,"d":"$0.00"}},{"$f":"IFERROR('MMA Rev-Exp Summary'!$W$43/'MMA Rev-Exp Summary'!$W$9, 0)","v":{"v":0,"d":"$0.00"}},{"$f":"IFERROR('MMA Rev-Exp Summary'!$X$43/'MMA Rev-Exp Summary'!$X$9, 0)","v":{"v":0,"d":"$0.00"}},{"$f":"IFERROR('MMA Rev-Exp Summary'!$Y$43/'MMA Rev-Exp Summary'!$Y$9, 0)","v":{"v":0,"d":"$0.00"}}]
["MMA",null,null,{"$f":"Jurat!I$1","v":0},{"$f":"Jurat!D$33","v":"00:00:00"},"Q2","2017-06-30","Summary","Operating Expense","Medical Benefits Expense","Mental Health Services","5.4","Mental Health Settlements",{"$f":"IFERROR('MMA Rev-Exp Summary'!$O$44/'MMA Rev-Exp Summary'!$O$9, 0)","v":{"v":0,"d":"$0.00"}},{"$f":"IFERROR('MMA Rev-Exp Summary'!$P$44/'MMA Rev-Exp Summary'!$P$9, 0)","v":{"v":0,"d":"$0.00"}},{"$f":"IFERROR('MMA Rev-Exp Summary'!$Q$44/'MMA Rev-Exp Summary'!$Q$9, 0)","v":{"v":0,"d":"$0.00"}},{"$f":"IFERROR('MMA Rev-Exp Summary'!$R$44/'MMA Rev-Exp Summary'!$R$9, 0)","v":{"v":0,"d":"$0.00"}},{"$f":"IFERROR('MMA Rev-Exp Summary'!$S$44/'MMA Rev-Exp Summary'!$S$9, 0)","v":{"v":0,"d":"$0.00"}},{"$f":"IFERROR('MMA Rev-Exp Summary'!$T$44/'MMA Rev-Exp Summary'!$T$9, 0)","v":{"v":0,"d":"$0.00"}},{"$f":"IFERROR('MMA Rev-Exp Summary'!$U$44/'MMA Rev-Exp Summary'!$U$9, 0)","v":{"v":0,"d":"$0.00"}},{"$f":"IFERROR('MMA Rev-Exp Summary'!$V$44/'MMA Rev-Exp Summary'!$V$9, 0)","v":{"v":0,"d":"$0.00"}},{"$f":"IFERROR('MMA Rev-Exp Summary'!$W$44/'MMA Rev-Exp Summary'!$W$9, 0)","v":{"v":0,"d":"$0.00"}},{"$f":"IFERROR('MMA Rev-Exp Summary'!$X$44/'MMA Rev-Exp Summary'!$X$9, 0)","v":{"v":0,"d":"$0.00"}},{"$f":"IFERROR('MMA Rev-Exp Summary'!$Y$44/'MMA Rev-Exp Summary'!$Y$9, 0)","v":{"v":0,"d":"$0.00"}}]
["MMA",null,null,{"$f":"Jurat!I$1","v":0},{"$f":"Jurat!D$33","v":"00:00:00"},"Q2","2017-06-30","Summary","Operating Expense","Medical Benefits Expense","Dental Services",6.1,"Dental FFS",{"$f":"IFERROR('MMA Rev-Exp Summary'!$O$46/'MMA Rev-Exp Summary'!$O$9, 0)","v":{"v":0,"d":"$0.00"}},{"$f":"IFERROR('MMA Rev-Exp Summary'!$P$46/'MMA Rev-Exp Summary'!$P$9, 0)","v":{"v":0,"d":"$0.00"}},{"$f":"IFERROR('MMA Rev-Exp Summary'!$Q$46/'MMA Rev-Exp Summary'!$Q$9, 0)","v":{"v":0,"d":"$0.00"}},{"$f":"IFERROR('MMA Rev-Exp Summary'!$R$46/'MMA Rev-Exp Summary'!$R$9, 0)","v":{"v":0,"d":"$0.00"}},{"$f":"IFERROR('MMA Rev-Exp Summary'!$S$46/'MMA Rev-Exp Summary'!$S$9, 0)","v":{"v":0,"d":"$0.00"}},{"$f":"IFERROR('MMA Rev-Exp Summary'!$T$46/'MMA Rev-Exp Summary'!$T$9, 0)","v":{"v":0,"d":"$0.00"}},{"$f":"IFERROR('MMA Rev-Exp Summary'!$U$46/'MMA Rev-Exp Summary'!$U$9, 0)","v":{"v":0,"d":"$0.00"}},{"$f":"IFERROR('MMA Rev-Exp Summary'!$V$46/'MMA Rev-Exp Summary'!$V$9, 0)","v":{"v":0,"d":"$0.00"}},{"$f":"IFERROR('MMA Rev-Exp Summary'!$W$46/'MMA Rev-Exp Summary'!$W$9, 0)","v":{"v":0,"d":"$0.00"}},{"$f":"IFERROR('MMA Rev-Exp Summary'!$X$46/'MMA Rev-Exp Summary'!$X$9, 0)","v":{"v":0,"d":"$0.00"}},{"$f":"IFERROR('MMA Rev-Exp Summary'!$Y$46/'MMA Rev-Exp Summary'!$Y$9, 0)","v":{"v":0,"d":"$0.00"}}]
["MMA",null,null,{"$f":"Jurat!I$1","v":0},{"$f":"Jurat!D$33","v":"00:00:00"},"Q2","2017-06-30","Summary","Operating Expense","Medical Benefits Expense","Dental Services",6.2,"Dental Subcapitation",{"$f":"IFERROR('MMA Rev-Exp Summary'!$O$47/'MMA Rev-Exp Summary'!$O$9, 0)","v":{"v":0,"d":"$0.00"}},{"$f":"IFERROR('MMA Rev-Exp Summary'!$P$47/'MMA Rev-Exp Summary'!$P$9, 0)","v":{"v":0,"d":"$0.00"}},{"$f":"IFERROR('MMA Rev-Exp Summary'!$Q$47/'MMA Rev-Exp Summary'!$Q$9, 0)","v":{"v":0,"d":"$0.00"}},{"$f":"IFERROR('MMA Rev-Exp Summary'!$R$47/'MMA Rev-Exp Summary'!$R$9, 0)","v":{"v":0,"d":"$0.00"}},{"$f":"IFERROR('MMA Rev-Exp Summary'!$S$47/'MMA Rev-Exp Summary'!$S$9, 0)","v":{"v":0,"d":"$0.00"}},{"$f":"IFERROR('MMA Rev-Exp Summary'!$T$47/'MMA Rev-Exp Summary'!$T$9, 0)","v":{"v":0,"d":"$0.00"}},{"$f":"IFERROR('MMA Rev-Exp Summary'!$U$47/'MMA Rev-Exp Summary'!$U$9, 0)","v":{"v":0,"d":"$0.00"}},{"$f":"IFERROR('MMA Rev-Exp Summary'!$V$47/'MMA Rev-Exp Summary'!$V$9, 0)","v":{"v":0,"d":"$0.00"}},{"$f":"IFERROR('MMA Rev-Exp Summary'!$W$47/'MMA Rev-Exp Summary'!$W$9, 0)","v":{"v":0,"d":"$0.00"}},{"$f":"IFERROR('MMA Rev-Exp Summary'!$X$47/'MMA Rev-Exp Summary'!$X$9, 0)","v":{"v":0,"d":"$0.00"}},{"$f":"IFERROR('MMA Rev-Exp Summary'!$Y$47/'MMA Rev-Exp Summary'!$Y$9, 0)","v":{"v":0,"d":"$0.00"}}]
["MMA",null,null,{"$f":"Jurat!I$1","v":0},{"$f":"Jurat!D$33","v":"00:00:00"},"Q2","2017-06-30","Summary","Operating Expense","Medical Benefits Expense","Dental Services",6.3,"Ending IBNP for Dental Services",{"$f":"IFERROR('MMA Rev-Exp Summary'!$O$48/'MMA Rev-Exp Summary'!$O$9, 0)","v":{"v":0,"d":"$0.00"}},{"$f":"IFERROR('MMA Rev-Exp Summary'!$P$48/'MMA Rev-Exp Summary'!$P$9, 0)","v":{"v":0,"d":"$0.00"}},{"$f":"IFERROR('MMA Rev-Exp Summary'!$Q$48/'MMA Rev-Exp Summary'!$Q$9, 0)","v":{"v":0,"d":"$0.00"}},{"$f":"IFERROR('MMA Rev-Exp Summary'!$R$48/'MMA Rev-Exp Summary'!$R$9, 0)","v":{"v":0,"d":"$0.00"}},{"$f":"IFERROR('MMA Rev-Exp Summary'!$S$48/'MMA Rev-Exp Summary'!$S$9, 0)","v":{"v":0,"d":"$0.00"}},{"$f":"IFERROR('MMA Rev-Exp Summary'!$T$48/'MMA Rev-Exp Summary'!$T$9, 0)","v":{"v":0,"d":"$0.00"}},{"$f":"IFERROR('MMA Rev-Exp Summary'!$U$48/'MMA Rev-Exp Summary'!$U$9, 0)","v":{"v":0,"d":"$0.00"}},{"$f":"IFERROR('MMA Rev-Exp Summary'!$V$48/'MMA Rev-Exp Summary'!$V$9, 0)","v":{"v":0,"d":"$0.00"}},{"$f":"IFERROR('MMA Rev-Exp Summary'!$W$48/'MMA Rev-Exp Summary'!$W$9, 0)","v":{"v":0,"d":"$0.00"}},{"$f":"IFERROR('MMA Rev-Exp Summary'!$X$48/'MMA Rev-Exp Summary'!$X$9, 0)","v":{"v":0,"d":"$0.00"}},{"$f":"IFERROR('MMA Rev-Exp Summary'!$Y$48/'MMA Rev-Exp Summary'!$Y$9, 0)","v":{"v":0,"d":"$0.00"}}]
["MMA",null,null,{"$f":"Jurat!I$1","v":0},{"$f":"Jurat!D$33","v":"00:00:00"},"Q2","2017-06-30","Summary","Operating Expense","Medical Benefits Expense","Dental Services","6.4","Dental Settlements",{"$f":"IFERROR('MMA Rev-Exp Summary'!$O$49/'MMA Rev-Exp Summary'!$O$9, 0)","v":{"v":0,"d":"$0.00"}},{"$f":"IFERROR('MMA Rev-Exp Summary'!$P$49/'MMA Rev-Exp Summary'!$P$9, 0)","v":{"v":0,"d":"$0.00"}},{"$f":"IFERROR('MMA Rev-Exp Summary'!$Q$49/'MMA Rev-Exp Summary'!$Q$9, 0)","v":{"v":0,"d":"$0.00"}},{"$f":"IFERROR('MMA Rev-Exp Summary'!$R$49/'MMA Rev-Exp Summary'!$R$9, 0)","v":{"v":0,"d":"$0.00"}},{"$f":"IFERROR('MMA Rev-Exp Summary'!$S$49/'MMA Rev-Exp Summary'!$S$9, 0)","v":{"v":0,"d":"$0.00"}},{"$f":"IFERROR('MMA Rev-Exp Summary'!$T$49/'MMA Rev-Exp Summary'!$T$9, 0)","v":{"v":0,"d":"$0.00"}},{"$f":"IFERROR('MMA Rev-Exp Summary'!$U$49/'MMA Rev-Exp Summary'!$U$9, 0)","v":{"v":0,"d":"$0.00"}},{"$f":"IFERROR('MMA Rev-Exp Summary'!$V$49/'MMA Rev-Exp Summary'!$V$9, 0)","v":{"v":0,"d":"$0.00"}},{"$f":"IFERROR('MMA Rev-Exp Summary'!$W$49/'MMA Rev-Exp Summary'!$W$9, 0)","v":{"v":0,"d":"$0.00"}},{"$f":"IFERROR('MMA Rev-Exp Summary'!$X$49/'MMA Rev-Exp Summary'!$X$9, 0)","v":{"v":0,"d":"$0.00"}},{"$f":"IFERROR('MMA Rev-Exp Summary'!$Y$49/'MMA Rev-Exp Summary'!$Y$9, 0)","v":{"v":0,"d":"$0.00"}}]
["MMA",null,null,{"$f":"Jurat!I$1","v":0},{"$f":"Jurat!D$33","v":"00:00:00"},"Q2","2017-06-30","Summary","Operating Expense","Medical Benefits Expense","Transportation Services",7.1,"Transportation FFS",{"$f":"IFERROR('MMA Rev-Exp Summary'!$O$51/'MMA Rev-Exp Summary'!$O$9, 0)","v":{"v":0,"d":"$0.00"}},{"$f":"IFERROR('MMA Rev-Exp Summary'!$P$51/'MMA Rev-Exp Summary'!$P$9, 0)","v":{"v":0,"d":"$0.00"}},{"$f":"IFERROR('MMA Rev-Exp Summary'!$Q$51/'MMA Rev-Exp Summary'!$Q$9, 0)","v":{"v":0,"d":"$0.00"}},{"$f":"IFERROR('MMA Rev-Exp Summary'!$R$51/'MMA Rev-Exp Summary'!$R$9, 0)","v":{"v":0,"d":"$0.00"}},{"$f":"IFERROR('MMA Rev-Exp Summary'!$S$51/'MMA Rev-Exp Summary'!$S$9, 0)","v":{"v":0,"d":"$0.00"}},{"$f":"IFERROR('MMA Rev-Exp Summary'!$T$51/'MMA Rev-Exp Summary'!$T$9, 0)","v":{"v":0,"d":"$0.00"}},{"$f":"IFERROR('MMA Rev-Exp Summary'!$U$51/'MMA Rev-Exp Summary'!$U$9, 0)","v":{"v":0,"d":"$0.00"}},{"$f":"IFERROR('MMA Rev-Exp Summary'!$V$51/'MMA Rev-Exp Summary'!$V$9, 0)","v":{"v":0,"d":"$0.00"}},{"$f":"IFERROR('MMA Rev-Exp Summary'!$W$51/'MMA Rev-Exp Summary'!$W$9, 0)","v":{"v":0,"d":"$0.00"}},{"$f":"IFERROR('MMA Rev-Exp Summary'!$X$51/'MMA Rev-Exp Summary'!$X$9, 0)","v":{"v":0,"d":"$0.00"}},{"$f":"IFERROR('MMA Rev-Exp Summary'!$Y$51/'MMA Rev-Exp Summary'!$Y$9, 0)","v":{"v":0,"d":"$0.00"}}]
["MMA",null,null,{"$f":"Jurat!I$1","v":0},{"$f":"Jurat!D$33","v":"00:00:00"},"Q2","2017-06-30","Summary","Operating Expense","Medical Benefits Expense","Transportation Services",7.2,"Transportation Subcapitation",{"$f":"IFERROR('MMA Rev-Exp Summary'!$O$52/'MMA Rev-Exp Summary'!$O$9, 0)","v":{"v":0,"d":"$0.00"}},{"$f":"IFERROR('MMA Rev-Exp Summary'!$P$52/'MMA Rev-Exp Summary'!$P$9, 0)","v":{"v":0,"d":"$0.00"}},{"$f":"IFERROR('MMA Rev-Exp Summary'!$Q$52/'MMA Rev-Exp Summary'!$Q$9, 0)","v":{"v":0,"d":"$0.00"}},{"$f":"IFERROR('MMA Rev-Exp Summary'!$R$52/'MMA Rev-Exp Summary'!$R$9, 0)","v":{"v":0,"d":"$0.00"}},{"$f":"IFERROR('MMA Rev-Exp Summary'!$S$52/'MMA Rev-Exp Summary'!$S$9, 0)","v":{"v":0,"d":"$0.00"}},{"$f":"IFERROR('MMA Rev-Exp Summary'!$T$52/'MMA Rev-Exp Summary'!$T$9, 0)","v":{"v":0,"d":"$0.00"}},{"$f":"IFERROR('MMA Rev-Exp Summary'!$U$52/'MMA Rev-Exp Summary'!$U$9, 0)","v":{"v":0,"d":"$0.00"}},{"$f":"IFERROR('MMA Rev-Exp Summary'!$V$52/'MMA Rev-Exp Summary'!$V$9, 0)","v":{"v":0,"d":"$0.00"}},{"$f":"IFERROR('MMA Rev-Exp Summary'!$W$52/'MMA Rev-Exp Summary'!$W$9, 0)","v":{"v":0,"d":"$0.00"}},{"$f":"IFERROR('MMA Rev-Exp Summary'!$X$52/'MMA Rev-Exp Summary'!$X$9, 0)","v":{"v":0,"d":"$0.00"}},{"$f":"IFERROR('MMA Rev-Exp Summary'!$Y$52/'MMA Rev-Exp Summary'!$Y$9, 0)","v":{"v":0,"d":"$0.00"}}]
["MMA",null,null,{"$f":"Jurat!I$1","v":0},{"$f":"Jurat!D$33","v":"00:00:00"},"Q2","2017-06-30","Summary","Operating Expense","Medical Benefits Expense","Transportation Services",7.3,"Ending IBNP for Transportation",{"$f":"IFERROR('MMA Rev-Exp Summary'!$O$53/'MMA Rev-Exp Summary'!$O$9, 0)","v":{"v":0,"d":"$0.00"}},{"$f":"IFERROR('MMA Rev-Exp Summary'!$P$53/'MMA Rev-Exp Summary'!$P$9, 0)","v":{"v":0,"d":"$0.00"}},{"$f":"IFERROR('MMA Rev-Exp Summary'!$Q$53/'MMA Rev-Exp Summary'!$Q$9, 0)","v":{"v":0,"d":"$0.00"}},{"$f":"IFERROR('MMA Rev-Exp Summary'!$R$53/'MMA Rev-Exp Summary'!$R$9, 0)","v":{"v":0,"d":"$0.00"}},{"$f":"IFERROR('MMA Rev-Exp Summary'!$S$53/'MMA Rev-Exp Summary'!$S$9, 0)","v":{"v":0,"d":"$0.00"}},{"$f":"IFERROR('MMA Rev-Exp Summary'!$T$53/'MMA Rev-Exp Summary'!$T$9, 0)","v":{"v":0,"d":"$0.00"}},{"$f":"IFERROR('MMA Rev-Exp Summary'!$U$53/'MMA Rev-Exp Summary'!$U$9, 0)","v":{"v":0,"d":"$0.00"}},{"$f":"IFERROR('MMA Rev-Exp Summary'!$V$53/'MMA Rev-Exp Summary'!$V$9, 0)","v":{"v":0,"d":"$0.00"}},{"$f":"IFERROR('MMA Rev-Exp Summary'!$W$53/'MMA Rev-Exp Summary'!$W$9, 0)","v":{"v":0,"d":"$0.00"}},{"$f":"IFERROR('MMA Rev-Exp Summary'!$X$53/'MMA Rev-Exp Summary'!$X$9, 0)","v":{"v":0,"d":"$0.00"}},{"$f":"IFERROR('MMA Rev-Exp Summary'!$Y$53/'MMA Rev-Exp Summary'!$Y$9, 0)","v":{"v":0,"d":"$0.00"}}]
["MMA",null,null,{"$f":"Jurat!I$1","v":0},{"$f":"Jurat!D$33","v":"00:00:00"},"Q2","2017-06-30","Summary","Operating Expense","Medical Benefits Expense","Transportation Services","7.4","Transportation Settlements",{"$f":"IFERROR('MMA Rev-Exp Summary'!$O$54/'MMA Rev-Exp Summary'!$O$9, 0)","v":{"v":0,"d":"$0.00"}},{"$f":"IFERROR('MMA Rev-Exp Summary'!$P$54/'MMA Rev-Exp Summary'!$P$9, 0)","v":{"v":0,"d":"$0.00"}},{"$f":"IFERROR('MMA Rev-Exp Summary'!$Q$54/'MMA Rev-Exp Summary'!$Q$9, 0)","v":{"v":0,"d":"$0.00"}},{"$f":"IFERROR('MMA Rev-Exp Summary'!$R$54/'MMA Rev-Exp Summary'!$R$9, 0)","v":{"v":0,"d":"$0.00"}},{"$f":"IFERROR('MMA Rev-Exp Summary'!$S$54/'MMA Rev-Exp Summary'!$S$9, 0)","v":{"v":0,"d":"$0.00"}},{"$f":"IFERROR('MMA Rev-Exp Summary'!$T$54/'MMA Rev-Exp Summary'!$T$9, 0)","v":{"v":0,"d":"$0.00"}},{"$f":"IFERROR('MMA Rev-Exp Summary'!$U$54/'MMA Rev-Exp Summary'!$U$9, 0)","v":{"v":0,"d":"$0.00"}},{"$f":"IFERROR('MMA Rev-Exp Summary'!$V$54/'MMA Rev-Exp Summary'!$V$9, 0)","v":{"v":0,"d":"$0.00"}},{"$f":"IFERROR('MMA Rev-Exp Summary'!$W$54/'MMA Rev-Exp Summary'!$W$9, 0)","v":{"v":0,"d":"$0.00"}},{"$f":"IFERROR('MMA Rev-Exp Summary'!$X$54/'MMA Rev-Exp Summary'!$X$9, 0)","v":{"v":0,"d":"$0.00"}},{"$f":"IFERROR('MMA Rev-Exp Summary'!$Y$54/'MMA Rev-Exp Summary'!$Y$9, 0)","v":{"v":0,"d":"$0.00"}}]
["MMA",null,null,{"$f":"Jurat!I$1","v":0},{"$f":"Jurat!D$33","v":"00:00:00"},"Q2","2017-06-30","Summary","Operating Expense","Medical Benefits Expense","Pharmacy Services",8.1,"Prescription Drugs FFS",{"$f":"IFERROR('MMA Rev-Exp Summary'!$O$56/'MMA Rev-Exp Summary'!$O$9, 0)","v":{"v":0,"d":"$0.00"}},{"$f":"IFERROR('MMA Rev-Exp Summary'!$P$56/'MMA Rev-Exp Summary'!$P$9, 0)","v":{"v":0,"d":"$0.00"}},{"$f":"IFERROR('MMA Rev-Exp Summary'!$Q$56/'MMA Rev-Exp Summary'!$Q$9, 0)","v":{"v":0,"d":"$0.00"}},{"$f":"IFERROR('MMA Rev-Exp Summary'!$R$56/'MMA Rev-Exp Summary'!$R$9, 0)","v":{"v":0,"d":"$0.00"}},{"$f":"IFERROR('MMA Rev-Exp Summary'!$S$56/'MMA Rev-Exp Summary'!$S$9, 0)","v":{"v":0,"d":"$0.00"}},{"$f":"IFERROR('MMA Rev-Exp Summary'!$T$56/'MMA Rev-Exp Summary'!$T$9, 0)","v":{"v":0,"d":"$0.00"}},{"$f":"IFERROR('MMA Rev-Exp Summary'!$U$56/'MMA Rev-Exp Summary'!$U$9, 0)","v":{"v":0,"d":"$0.00"}},{"$f":"IFERROR('MMA Rev-Exp Summary'!$V$56/'MMA Rev-Exp Summary'!$V$9, 0)","v":{"v":0,"d":"$0.00"}},{"$f":"IFERROR('MMA Rev-Exp Summary'!$W$56/'MMA Rev-Exp Summary'!$W$9, 0)","v":{"v":0,"d":"$0.00"}},{"$f":"IFERROR('MMA Rev-Exp Summary'!$X$56/'MMA Rev-Exp Summary'!$X$9, 0)","v":{"v":0,"d":"$0.00"}},{"$f":"IFERROR('MMA Rev-Exp Summary'!$Y$56/'MMA Rev-Exp Summary'!$Y$9, 0)","v":{"v":0,"d":"$0.00"}}]
["MMA",null,null,{"$f":"Jurat!I$1","v":0},{"$f":"Jurat!D$33","v":"00:00:00"},"Q2","2017-06-30","Summary","Operating Expense","Medical Benefits Expense","Pharmacy Services","8.2","Hepatitis C Prescription Drug FFS",{"$f":"IFERROR('MMA Rev-Exp Summary'!$O$57/'MMA Rev-Exp Summary'!$O$9, 0)","v":{"v":0,"d":"$0.00"}},{"$f":"IFERROR('MMA Rev-Exp Summary'!$P$57/'MMA Rev-Exp Summary'!$P$9, 0)","v":{"v":0,"d":"$0.00"}},{"$f":"IFERROR('MMA Rev-Exp Summary'!$Q$57/'MMA Rev-Exp Summary'!$Q$9, 0)","v":{"v":0,"d":"$0.00"}},{"$f":"IFERROR('MMA Rev-Exp Summary'!$R$57/'MMA Rev-Exp Summary'!$R$9, 0)","v":{"v":0,"d":"$0.00"}},{"$f":"IFERROR('MMA Rev-Exp Summary'!$S$57/'MMA Rev-Exp Summary'!$S$9, 0)","v":{"v":0,"d":"$0.00"}},{"$f":"IFERROR('MMA Rev-Exp Summary'!$T$57/'MMA Rev-Exp Summary'!$T$9, 0)","v":{"v":0,"d":"$0.00"}},{"$f":"IFERROR('MMA Rev-Exp Summary'!$U$57/'MMA Rev-Exp Summary'!$U$9, 0)","v":{"v":0,"d":"$0.00"}},{"$f":"IFERROR('MMA Rev-Exp Summary'!$V$57/'MMA Rev-Exp Summary'!$V$9, 0)","v":{"v":0,"d":"$0.00"}},{"$f":"IFERROR('MMA Rev-Exp Summary'!$W$57/'MMA Rev-Exp Summary'!$W$9, 0)","v":{"v":0,"d":"$0.00"}},{"$f":"IFERROR('MMA Rev-Exp Summary'!$X$57/'MMA Rev-Exp Summary'!$X$9, 0)","v":{"v":0,"d":"$0.00"}},{"$f":"IFERROR('MMA Rev-Exp Summary'!$Y$57/'MMA Rev-Exp Summary'!$Y$9, 0)","v":{"v":0,"d":"$0.00"}}]
["MMA",null,null,{"$f":"Jurat!I$1","v":0},{"$f":"Jurat!D$33","v":"00:00:00"},"Q2","2017-06-30","Summary","Operating Expense","Medical Benefits Expense","Pharmacy Services","8.3","Ending IBNP for Prescription Drugs",{"$f":"IFERROR('MMA Rev-Exp Summary'!$O$58/'MMA Rev-Exp Summary'!$O$9, 0)","v":{"v":0,"d":"$0.00"}},{"$f":"IFERROR('MMA Rev-Exp Summary'!$P$58/'MMA Rev-Exp Summary'!$P$9, 0)","v":{"v":0,"d":"$0.00"}},{"$f":"IFERROR('MMA Rev-Exp Summary'!$Q$58/'MMA Rev-Exp Summary'!$Q$9, 0)","v":{"v":0,"d":"$0.00"}},{"$f":"IFERROR('MMA Rev-Exp Summary'!$R$58/'MMA Rev-Exp Summary'!$R$9, 0)","v":{"v":0,"d":"$0.00"}},{"$f":"IFERROR('MMA Rev-Exp Summary'!$S$58/'MMA Rev-Exp Summary'!$S$9, 0)","v":{"v":0,"d":"$0.00"}},{"$f":"IFERROR('MMA Rev-Exp Summary'!$T$58/'MMA Rev-Exp Summary'!$T$9, 0)","v":{"v":0,"d":"$0.00"}},{"$f":"IFERROR('MMA Rev-Exp Summary'!$U$58/'MMA Rev-Exp Summary'!$U$9, 0)","v":{"v":0,"d":"$0.00"}},{"$f":"IFERROR('MMA Rev-Exp Summary'!$V$58/'MMA Rev-Exp Summary'!$V$9, 0)","v":{"v":0,"d":"$0.00"}},{"$f":"IFERROR('MMA Rev-Exp Summary'!$W$58/'MMA Rev-Exp Summary'!$W$9, 0)","v":{"v":0,"d":"$0.00"}},{"$f":"IFERROR('MMA Rev-Exp Summary'!$X$58/'MMA Rev-Exp Summary'!$X$9, 0)","v":{"v":0,"d":"$0.00"}},{"$f":"IFERROR('MMA Rev-Exp Summary'!$Y$58/'MMA Rev-Exp Summary'!$Y$9, 0)","v":{"v":0,"d":"$0.00"}}]
["MMA",null,null,{"$f":"Jurat!I$1","v":0},{"$f":"Jurat!D$33","v":"00:00:00"},"Q2","2017-06-30","Summary","Operating Expense","Medical Benefits Expense","Pharmacy Services","8.4","Prescription Drug Rebates ",{"$f":"IFERROR('MMA Rev-Exp Summary'!$O$59/'MMA Rev-Exp Summary'!$O$9, 0)","v":{"v":0,"d":"$0.00"}},{"$f":"IFERROR('MMA Rev-Exp Summary'!$P$59/'MMA Rev-Exp Summary'!$P$9, 0)","v":{"v":0,"d":"$0.00"}},{"$f":"IFERROR('MMA Rev-Exp Summary'!$Q$59/'MMA Rev-Exp Summary'!$Q$9, 0)","v":{"v":0,"d":"$0.00"}},{"$f":"IFERROR('MMA Rev-Exp Summary'!$R$59/'MMA Rev-Exp Summary'!$R$9, 0)","v":{"v":0,"d":"$0.00"}},{"$f":"IFERROR('MMA Rev-Exp Summary'!$S$59/'MMA Rev-Exp Summary'!$S$9, 0)","v":{"v":0,"d":"$0.00"}},{"$f":"IFERROR('MMA Rev-Exp Summary'!$T$59/'MMA Rev-Exp Summary'!$T$9, 0)","v":{"v":0,"d":"$0.00"}},{"$f":"IFERROR('MMA Rev-Exp Summary'!$U$59/'MMA Rev-Exp Summary'!$U$9, 0)","v":{"v":0,"d":"$0.00"}},{"$f":"IFERROR('MMA Rev-Exp Summary'!$V$59/'MMA Rev-Exp Summary'!$V$9, 0)","v":{"v":0,"d":"$0.00"}},{"$f":"IFERROR('MMA Rev-Exp Summary'!$W$59/'MMA Rev-Exp Summary'!$W$9, 0)","v":{"v":0,"d":"$0.00"}},{"$f":"IFERROR('MMA Rev-Exp Summary'!$X$59/'MMA Rev-Exp Summary'!$X$9, 0)","v":{"v":0,"d":"$0.00"}},{"$f":"IFERROR('MMA Rev-Exp Summary'!$Y$59/'MMA Rev-Exp Summary'!$Y$9, 0)","v":{"v":0,"d":"$0.00"}}]
["MMA",null,null,{"$f":"Jurat!I$1","v":0},{"$f":"Jurat!D$33","v":"00:00:00"},"Q2","2017-06-30","Summary","Operating Expense","Medical Benefits Expense","Pharmacy Services","8.5","Ending accrual for Rebates receivable",{"$f":"IFERROR('MMA Rev-Exp Summary'!$O$60/'MMA Rev-Exp Summary'!$O$9, 0)","v":{"v":0,"d":"$0.00"}},{"$f":"IFERROR('MMA Rev-Exp Summary'!$P$60/'MMA Rev-Exp Summary'!$P$9, 0)","v":{"v":0,"d":"$0.00"}},{"$f":"IFERROR('MMA Rev-Exp Summary'!$Q$60/'MMA Rev-Exp Summary'!$Q$9, 0)","v":{"v":0,"d":"$0.00"}},{"$f":"IFERROR('MMA Rev-Exp Summary'!$R$60/'MMA Rev-Exp Summary'!$R$9, 0)","v":{"v":0,"d":"$0.00"}},{"$f":"IFERROR('MMA Rev-Exp Summary'!$S$60/'MMA Rev-Exp Summary'!$S$9, 0)","v":{"v":0,"d":"$0.00"}},{"$f":"IFERROR('MMA Rev-Exp Summary'!$T$60/'MMA Rev-Exp Summary'!$T$9, 0)","v":{"v":0,"d":"$0.00"}},{"$f":"IFERROR('MMA Rev-Exp Summary'!$U$60/'MMA Rev-Exp Summary'!$U$9, 0)","v":{"v":0,"d":"$0.00"}},{"$f":"IFERROR('MMA Rev-Exp Summary'!$V$60/'MMA Rev-Exp Summary'!$V$9, 0)","v":{"v":0,"d":"$0.00"}},{"$f":"IFERROR('MMA Rev-Exp Summary'!$W$60/'MMA Rev-Exp Summary'!$W$9, 0)","v":{"v":0,"d":"$0.00"}},{"$f":"IFERROR('MMA Rev-Exp Summary'!$X$60/'MMA Rev-Exp Summary'!$X$9, 0)","v":{"v":0,"d":"$0.00"}},{"$f":"IFERROR('MMA Rev-Exp Summary'!$Y$60/'MMA Rev-Exp Summary'!$Y$9, 0)","v":{"v":0,"d":"$0.00"}}]
["MMA",null,null,{"$f":"Jurat!I$1","v":0},{"$f":"Jurat!D$33","v":"00:00:00"},"Q2","2017-06-30","Summary","Operating Expense","Medical Benefits Expense","Pharmacy Services","8.6","Prescription Drugs Subcapitation",{"$f":"IFERROR('MMA Rev-Exp Summary'!$O$61/'MMA Rev-Exp Summary'!$O$9, 0)","v":{"v":0,"d":"$0.00"}},{"$f":"IFERROR('MMA Rev-Exp Summary'!$P$61/'MMA Rev-Exp Summary'!$P$9, 0)","v":{"v":0,"d":"$0.00"}},{"$f":"IFERROR('MMA Rev-Exp Summary'!$Q$61/'MMA Rev-Exp Summary'!$Q$9, 0)","v":{"v":0,"d":"$0.00"}},{"$f":"IFERROR('MMA Rev-Exp Summary'!$R$61/'MMA Rev-Exp Summary'!$R$9, 0)","v":{"v":0,"d":"$0.00"}},{"$f":"IFERROR('MMA Rev-Exp Summary'!$S$61/'MMA Rev-Exp Summary'!$S$9, 0)","v":{"v":0,"d":"$0.00"}},{"$f":"IFERROR('MMA Rev-Exp Summary'!$T$61/'MMA Rev-Exp Summary'!$T$9, 0)","v":{"v":0,"d":"$0.00"}},{"$f":"IFERROR('MMA Rev-Exp Summary'!$U$61/'MMA Rev-Exp Summary'!$U$9, 0)","v":{"v":0,"d":"$0.00"}},{"$f":"IFERROR('MMA Rev-Exp Summary'!$V$61/'MMA Rev-Exp Summary'!$V$9, 0)","v":{"v":0,"d":"$0.00"}},{"$f":"IFERROR('MMA Rev-Exp Summary'!$W$61/'MMA Rev-Exp Summary'!$W$9, 0)","v":{"v":0,"d":"$0.00"}},{"$f":"IFERROR('MMA Rev-Exp Summary'!$X$61/'MMA Rev-Exp Summary'!$X$9, 0)","v":{"v":0,"d":"$0.00"}},{"$f":"IFERROR('MMA Rev-Exp Summary'!$Y$61/'MMA Rev-Exp Summary'!$Y$9, 0)","v":{"v":0,"d":"$0.00"}}]
["MMA",null,null,{"$f":"Jurat!I$1","v":0},{"$f":"Jurat!D$33","v":"00:00:00"},"Q2","2017-06-30","Summary","Operating Expense","Medical Benefits Expense","Pharmacy Services","8.7","Prescription Drug Settlements",{"$f":"IFERROR('MMA Rev-Exp Summary'!$O$62/'MMA Rev-Exp Summary'!$O$9, 0)","v":{"v":0,"d":"$0.00"}},{"$f":"IFERROR('MMA Rev-Exp Summary'!$P$62/'MMA Rev-Exp Summary'!$P$9, 0)","v":{"v":0,"d":"$0.00"}},{"$f":"IFERROR('MMA Rev-Exp Summary'!$Q$62/'MMA Rev-Exp Summary'!$Q$9, 0)","v":{"v":0,"d":"$0.00"}},{"$f":"IFERROR('MMA Rev-Exp Summary'!$R$62/'MMA Rev-Exp Summary'!$R$9, 0)","v":{"v":0,"d":"$0.00"}},{"$f":"IFERROR('MMA Rev-Exp Summary'!$S$62/'MMA Rev-Exp Summary'!$S$9, 0)","v":{"v":0,"d":"$0.00"}},{"$f":"IFERROR('MMA Rev-Exp Summary'!$T$62/'MMA Rev-Exp Summary'!$T$9, 0)","v":{"v":0,"d":"$0.00"}},{"$f":"IFERROR('MMA Rev-Exp Summary'!$U$62/'MMA Rev-Exp Summary'!$U$9, 0)","v":{"v":0,"d":"$0.00"}},{"$f":"IFERROR('MMA Rev-Exp Summary'!$V$62/'MMA Rev-Exp Summary'!$V$9, 0)","v":{"v":0,"d":"$0.00"}},{"$f":"IFERROR('MMA Rev-Exp Summary'!$W$62/'MMA Rev-Exp Summary'!$W$9, 0)","v":{"v":0,"d":"$0.00"}},{"$f":"IFERROR('MMA Rev-Exp Summary'!$X$62/'MMA Rev-Exp Summary'!$X$9, 0)","v":{"v":0,"d":"$0.00"}},{"$f":"IFERROR('MMA Rev-Exp Summary'!$Y$62/'MMA Rev-Exp Summary'!$Y$9, 0)","v":{"v":0,"d":"$0.00"}}]
["MMA",null,null,{"$f":"Jurat!I$1","v":0},{"$f":"Jurat!D$33","v":"00:00:00"},"Q2","2017-06-30","Summary","Operating Expense","Medical Benefits Expense","Other MMA Services",9.1,"Home Health, Private Duty Nursing, Personal Care FFS",{"$f":"IFERROR('MMA Rev-Exp Summary'!$O$64/'MMA Rev-Exp Summary'!$O$9, 0)","v":{"v":0,"d":"$0.00"}},{"$f":"IFERROR('MMA Rev-Exp Summary'!$P$64/'MMA Rev-Exp Summary'!$P$9, 0)","v":{"v":0,"d":"$0.00"}},{"$f":"IFERROR('MMA Rev-Exp Summary'!$Q$64/'MMA Rev-Exp Summary'!$Q$9, 0)","v":{"v":0,"d":"$0.00"}},{"$f":"IFERROR('MMA Rev-Exp Summary'!$R$64/'MMA Rev-Exp Summary'!$R$9, 0)","v":{"v":0,"d":"$0.00"}},{"$f":"IFERROR('MMA Rev-Exp Summary'!$S$64/'MMA Rev-Exp Summary'!$S$9, 0)","v":{"v":0,"d":"$0.00"}},{"$f":"IFERROR('MMA Rev-Exp Summary'!$T$64/'MMA Rev-Exp Summary'!$T$9, 0)","v":{"v":0,"d":"$0.00"}},{"$f":"IFERROR('MMA Rev-Exp Summary'!$U$64/'MMA Rev-Exp Summary'!$U$9, 0)","v":{"v":0,"d":"$0.00"}},{"$f":"IFERROR('MMA Rev-Exp Summary'!$V$64/'MMA Rev-Exp Summary'!$V$9, 0)","v":{"v":0,"d":"$0.00"}},{"$f":"IFERROR('MMA Rev-Exp Summary'!$W$64/'MMA Rev-Exp Summary'!$W$9, 0)","v":{"v":0,"d":"$0.00"}},{"$f":"IFERROR('MMA Rev-Exp Summary'!$X$64/'MMA Rev-Exp Summary'!$X$9, 0)","v":{"v":0,"d":"$0.00"}},{"$f":"IFERROR('MMA Rev-Exp Summary'!$Y$64/'MMA Rev-Exp Summary'!$Y$9, 0)","v":{"v":0,"d":"$0.00"}}]
["MMA",null,null,{"$f":"Jurat!I$1","v":0},{"$f":"Jurat!D$33","v":"00:00:00"},"Q2","2017-06-30","Summary","Operating Expense","Medical Benefits Expense","Other MMA Services","9.2","Hospice FFS",{"$f":"IFERROR('MMA Rev-Exp Summary'!$O$65/'MMA Rev-Exp Summary'!$O$9, 0)","v":{"v":0,"d":"$0.00"}},{"$f":"IFERROR('MMA Rev-Exp Summary'!$P$65/'MMA Rev-Exp Summary'!$P$9, 0)","v":{"v":0,"d":"$0.00"}},{"$f":"IFERROR('MMA Rev-Exp Summary'!$Q$65/'MMA Rev-Exp Summary'!$Q$9, 0)","v":{"v":0,"d":"$0.00"}},{"$f":"IFERROR('MMA Rev-Exp Summary'!$R$65/'MMA Rev-Exp Summary'!$R$9, 0)","v":{"v":0,"d":"$0.00"}},{"$f":"IFERROR('MMA Rev-Exp Summary'!$S$65/'MMA Rev-Exp Summary'!$S$9, 0)","v":{"v":0,"d":"$0.00"}},{"$f":"IFERROR('MMA Rev-Exp Summary'!$T$65/'MMA Rev-Exp Summary'!$T$9, 0)","v":{"v":0,"d":"$0.00"}},{"$f":"IFERROR('MMA Rev-Exp Summary'!$U$65/'MMA Rev-Exp Summary'!$U$9, 0)","v":{"v":0,"d":"$0.00"}},{"$f":"IFERROR('MMA Rev-Exp Summary'!$V$65/'MMA Rev-Exp Summary'!$V$9, 0)","v":{"v":0,"d":"$0.00"}},{"$f":"IFERROR('MMA Rev-Exp Summary'!$W$65/'MMA Rev-Exp Summary'!$W$9, 0)","v":{"v":0,"d":"$0.00"}},{"$f":"IFERROR('MMA Rev-Exp Summary'!$X$65/'MMA Rev-Exp Summary'!$X$9, 0)","v":{"v":0,"d":"$0.00"}},{"$f":"IFERROR('MMA Rev-Exp Summary'!$Y$65/'MMA Rev-Exp Summary'!$Y$9, 0)","v":{"v":0,"d":"$0.00"}}]
["MMA",null,null,{"$f":"Jurat!I$1","v":0},{"$f":"Jurat!D$33","v":"00:00:00"},"Q2","2017-06-30","Summary","Operating Expense","Medical Benefits Expense","Other MMA Services","9.3","DME FFS",{"$f":"IFERROR('MMA Rev-Exp Summary'!$O$66/'MMA Rev-Exp Summary'!$O$9, 0)","v":{"v":0,"d":"$0.00"}},{"$f":"IFERROR('MMA Rev-Exp Summary'!$P$66/'MMA Rev-Exp Summary'!$P$9, 0)","v":{"v":0,"d":"$0.00"}},{"$f":"IFERROR('MMA Rev-Exp Summary'!$Q$66/'MMA Rev-Exp Summary'!$Q$9, 0)","v":{"v":0,"d":"$0.00"}},{"$f":"IFERROR('MMA Rev-Exp Summary'!$R$66/'MMA Rev-Exp Summary'!$R$9, 0)","v":{"v":0,"d":"$0.00"}},{"$f":"IFERROR('MMA Rev-Exp Summary'!$S$66/'MMA Rev-Exp Summary'!$S$9, 0)","v":{"v":0,"d":"$0.00"}},{"$f":"IFERROR('MMA Rev-Exp Summary'!$T$66/'MMA Rev-Exp Summary'!$T$9, 0)","v":{"v":0,"d":"$0.00"}},{"$f":"IFERROR('MMA Rev-Exp Summary'!$U$66/'MMA Rev-Exp Summary'!$U$9, 0)","v":{"v":0,"d":"$0.00"}},{"$f":"IFERROR('MMA Rev-Exp Summary'!$V$66/'MMA Rev-Exp Summary'!$V$9, 0)","v":{"v":0,"d":"$0.00"}},{"$f":"IFERROR('MMA Rev-Exp Summary'!$W$66/'MMA Rev-Exp Summary'!$W$9, 0)","v":{"v":0,"d":"$0.00"}},{"$f":"IFERROR('MMA Rev-Exp Summary'!$X$66/'MMA Rev-Exp Summary'!$X$9, 0)","v":{"v":0,"d":"$0.00"}},{"$f":"IFERROR('MMA Rev-Exp Summary'!$Y$66/'MMA Rev-Exp Summary'!$Y$9, 0)","v":{"v":0,"d":"$0.00"}}]
["MMA",null,null,{"$f":"Jurat!I$1","v":0},{"$f":"Jurat!D$33","v":"00:00:00"},"Q2","2017-06-30","Summary","Operating Expense","Medical Benefits Expense","Other MMA Services","9.4","Other State Plan Services FFS",{"$f":"IFERROR('MMA Rev-Exp Summary'!$O$67/'MMA Rev-Exp Summary'!$O$9, 0)","v":{"v":0,"d":"$0.00"}},{"$f":"IFERROR('MMA Rev-Exp Summary'!$P$67/'MMA Rev-Exp Summary'!$P$9, 0)","v":{"v":0,"d":"$0.00"}},{"$f":"IFERROR('MMA Rev-Exp Summary'!$Q$67/'MMA Rev-Exp Summary'!$Q$9, 0)","v":{"v":0,"d":"$0.00"}},{"$f":"IFERROR('MMA Rev-Exp Summary'!$R$67/'MMA Rev-Exp Summary'!$R$9, 0)","v":{"v":0,"d":"$0.00"}},{"$f":"IFERROR('MMA Rev-Exp Summary'!$S$67/'MMA Rev-Exp Summary'!$S$9, 0)","v":{"v":0,"d":"$0.00"}},{"$f":"IFERROR('MMA Rev-Exp Summary'!$T$67/'MMA Rev-Exp Summary'!$T$9, 0)","v":{"v":0,"d":"$0.00"}},{"$f":"IFERROR('MMA Rev-Exp Summary'!$U$67/'MMA Rev-Exp Summary'!$U$9, 0)","v":{"v":0,"d":"$0.00"}},{"$f":"IFERROR('MMA Rev-Exp Summary'!$V$67/'MMA Rev-Exp Summary'!$V$9, 0)","v":{"v":0,"d":"$0.00"}},{"$f":"IFERROR('MMA Rev-Exp Summary'!$W$67/'MMA Rev-Exp Summary'!$W$9, 0)","v":{"v":0,"d":"$0.00"}},{"$f":"IFERROR('MMA Rev-Exp Summary'!$X$67/'MMA Rev-Exp Summary'!$X$9, 0)","v":{"v":0,"d":"$0.00"}},{"$f":"IFERROR('MMA Rev-Exp Summary'!$Y$67/'MMA Rev-Exp Summary'!$Y$9, 0)","v":{"v":0,"d":"$0.00"}}]
["MMA",null,null,{"$f":"Jurat!I$1","v":0},{"$f":"Jurat!D$33","v":"00:00:00"},"Q2","2017-06-30","Summary","Operating Expense","Medical Benefits Expense","Other MMA Services","9.5","Other Services Subcapitation",{"$f":"IFERROR('MMA Rev-Exp Summary'!$O$68/'MMA Rev-Exp Summary'!$O$9, 0)","v":{"v":0,"d":"$0.00"}},{"$f":"IFERROR('MMA Rev-Exp Summary'!$P$68/'MMA Rev-Exp Summary'!$P$9, 0)","v":{"v":0,"d":"$0.00"}},{"$f":"IFERROR('MMA Rev-Exp Summary'!$Q$68/'MMA Rev-Exp Summary'!$Q$9, 0)","v":{"v":0,"d":"$0.00"}},{"$f":"IFERROR('MMA Rev-Exp Summary'!$R$68/'MMA Rev-Exp Summary'!$R$9, 0)","v":{"v":0,"d":"$0.00"}},{"$f":"IFERROR('MMA Rev-Exp Summary'!$S$68/'MMA Rev-Exp Summary'!$S$9, 0)","v":{"v":0,"d":"$0.00"}},{"$f":"IFERROR('MMA Rev-Exp Summary'!$T$68/'MMA Rev-Exp Summary'!$T$9, 0)","v":{"v":0,"d":"$0.00"}},{"$f":"IFERROR('MMA Rev-Exp Summary'!$U$68/'MMA Rev-Exp Summary'!$U$9, 0)","v":{"v":0,"d":"$0.00"}},{"$f":"IFERROR('MMA Rev-Exp Summary'!$V$68/'MMA Rev-Exp Summary'!$V$9, 0)","v":{"v":0,"d":"$0.00"}},{"$f":"IFERROR('MMA Rev-Exp Summary'!$W$68/'MMA Rev-Exp Summary'!$W$9, 0)","v":{"v":0,"d":"$0.00"}},{"$f":"IFERROR('MMA Rev-Exp Summary'!$X$68/'MMA Rev-Exp Summary'!$X$9, 0)","v":{"v":0,"d":"$0.00"}},{"$f":"IFERROR('MMA Rev-Exp Summary'!$Y$68/'MMA Rev-Exp Summary'!$Y$9, 0)","v":{"v":0,"d":"$0.00"}}]
["MMA",null,null,{"$f":"Jurat!I$1","v":0},{"$f":"Jurat!D$33","v":"00:00:00"},"Q2","2017-06-30","Summary","Operating Expense","Medical Benefits Expense","Other MMA Services","9.6","Ending IBNP for Other Services",{"$f":"IFERROR('MMA Rev-Exp Summary'!$O$69/'MMA Rev-Exp Summary'!$O$9, 0)","v":{"v":0,"d":"$0.00"}},{"$f":"IFERROR('MMA Rev-Exp Summary'!$P$69/'MMA Rev-Exp Summary'!$P$9, 0)","v":{"v":0,"d":"$0.00"}},{"$f":"IFERROR('MMA Rev-Exp Summary'!$Q$69/'MMA Rev-Exp Summary'!$Q$9, 0)","v":{"v":0,"d":"$0.00"}},{"$f":"IFERROR('MMA Rev-Exp Summary'!$R$69/'MMA Rev-Exp Summary'!$R$9, 0)","v":{"v":0,"d":"$0.00"}},{"$f":"IFERROR('MMA Rev-Exp Summary'!$S$69/'MMA Rev-Exp Summary'!$S$9, 0)","v":{"v":0,"d":"$0.00"}},{"$f":"IFERROR('MMA Rev-Exp Summary'!$T$69/'MMA Rev-Exp Summary'!$T$9, 0)","v":{"v":0,"d":"$0.00"}},{"$f":"IFERROR('MMA Rev-Exp Summary'!$U$69/'MMA Rev-Exp Summary'!$U$9, 0)","v":{"v":0,"d":"$0.00"}},{"$f":"IFERROR('MMA Rev-Exp Summary'!$V$69/'MMA Rev-Exp Summary'!$V$9, 0)","v":{"v":0,"d":"$0.00"}},{"$f":"IFERROR('MMA Rev-Exp Summary'!$W$69/'MMA Rev-Exp Summary'!$W$9, 0)","v":{"v":0,"d":"$0.00"}},{"$f":"IFERROR('MMA Rev-Exp Summary'!$X$69/'MMA Rev-Exp Summary'!$X$9, 0)","v":{"v":0,"d":"$0.00"}},{"$f":"IFERROR('MMA Rev-Exp Summary'!$Y$69/'MMA Rev-Exp Summary'!$Y$9, 0)","v":{"v":0,"d":"$0.00"}}]
["MMA",null,null,{"$f":"Jurat!I$1","v":0},{"$f":"Jurat!D$33","v":"00:00:00"},"Q2","2017-06-30","Summary","Operating Expense","Medical Benefits Expense","Other MMA Services","9.7","Other Services Settlements",{"$f":"IFERROR('MMA Rev-Exp Summary'!$O$70/'MMA Rev-Exp Summary'!$O$9, 0)","v":{"v":0,"d":"$0.00"}},{"$f":"IFERROR('MMA Rev-Exp Summary'!$P$70/'MMA Rev-Exp Summary'!$P$9, 0)","v":{"v":0,"d":"$0.00"}},{"$f":"IFERROR('MMA Rev-Exp Summary'!$Q$70/'MMA Rev-Exp Summary'!$Q$9, 0)","v":{"v":0,"d":"$0.00"}},{"$f":"IFERROR('MMA Rev-Exp Summary'!$R$70/'MMA Rev-Exp Summary'!$R$9, 0)","v":{"v":0,"d":"$0.00"}},{"$f":"IFERROR('MMA Rev-Exp Summary'!$S$70/'MMA Rev-Exp Summary'!$S$9, 0)","v":{"v":0,"d":"$0.00"}},{"$f":"IFERROR('MMA Rev-Exp Summary'!$T$70/'MMA Rev-Exp Summary'!$T$9, 0)","v":{"v":0,"d":"$0.00"}},{"$f":"IFERROR('MMA Rev-Exp Summary'!$U$70/'MMA Rev-Exp Summary'!$U$9, 0)","v":{"v":0,"d":"$0.00"}},{"$f":"IFERROR('MMA Rev-Exp Summary'!$V$70/'MMA Rev-Exp Summary'!$V$9, 0)","v":{"v":0,"d":"$0.00"}},{"$f":"IFERROR('MMA Rev-Exp Summary'!$W$70/'MMA Rev-Exp Summary'!$W$9, 0)","v":{"v":0,"d":"$0.00"}},{"$f":"IFERROR('MMA Rev-Exp Summary'!$X$70/'MMA Rev-Exp Summary'!$X$9, 0)","v":{"v":0,"d":"$0.00"}},{"$f":"IFERROR('MMA Rev-Exp Summary'!$Y$70/'MMA Rev-Exp Summary'!$Y$9, 0)","v":{"v":0,"d":"$0.00"}}]
["MMA",null,null,{"$f":"Jurat!I$1","v":0},{"$f":"Jurat!D$33","v":"00:00:00"},"Q2","2017-06-30","Summary","Operating Expense","Medical Benefits Expense","Expanded Benefits","10.1","Expanded Benefits FFS",{"$f":"IFERROR('MMA Rev-Exp Summary'!$O$72/'MMA Rev-Exp Summary'!$O$9, 0)","v":{"v":0,"d":"$0.00"}},{"$f":"IFERROR('MMA Rev-Exp Summary'!$P$72/'MMA Rev-Exp Summary'!$P$9, 0)","v":{"v":0,"d":"$0.00"}},{"$f":"IFERROR('MMA Rev-Exp Summary'!$Q$72/'MMA Rev-Exp Summary'!$Q$9, 0)","v":{"v":0,"d":"$0.00"}},{"$f":"IFERROR('MMA Rev-Exp Summary'!$R$72/'MMA Rev-Exp Summary'!$R$9, 0)","v":{"v":0,"d":"$0.00"}},{"$f":"IFERROR('MMA Rev-Exp Summary'!$S$72/'MMA Rev-Exp Summary'!$S$9, 0)","v":{"v":0,"d":"$0.00"}},{"$f":"IFERROR('MMA Rev-Exp Summary'!$T$72/'MMA Rev-Exp Summary'!$T$9, 0)","v":{"v":0,"d":"$0.00"}},{"$f":"IFERROR('MMA Rev-Exp Summary'!$U$72/'MMA Rev-Exp Summary'!$U$9, 0)","v":{"v":0,"d":"$0.00"}},{"$f":"IFERROR('MMA Rev-Exp Summary'!$V$72/'MMA Rev-Exp Summary'!$V$9, 0)","v":{"v":0,"d":"$0.00"}},{"$f":"IFERROR('MMA Rev-Exp Summary'!$W$72/'MMA Rev-Exp Summary'!$W$9, 0)","v":{"v":0,"d":"$0.00"}},{"$f":"IFERROR('MMA Rev-Exp Summary'!$X$72/'MMA Rev-Exp Summary'!$X$9, 0)","v":{"v":0,"d":"$0.00"}},{"$f":"IFERROR('MMA Rev-Exp Summary'!$Y$72/'MMA Rev-Exp Summary'!$Y$9, 0)","v":{"v":0,"d":"$0.00"}}]
["MMA",null,null,{"$f":"Jurat!I$1","v":0},{"$f":"Jurat!D$33","v":"00:00:00"},"Q2","2017-06-30","Summary","Operating Expense","Medical Benefits Expense","Expanded Benefits","10.2","Expanded benefits Subcapitation",{"$f":"IFERROR('MMA Rev-Exp Summary'!$O$73/'MMA Rev-Exp Summary'!$O$9, 0)","v":{"v":0,"d":"$0.00"}},{"$f":"IFERROR('MMA Rev-Exp Summary'!$P$73/'MMA Rev-Exp Summary'!$P$9, 0)","v":{"v":0,"d":"$0.00"}},{"$f":"IFERROR('MMA Rev-Exp Summary'!$Q$73/'MMA Rev-Exp Summary'!$Q$9, 0)","v":{"v":0,"d":"$0.00"}},{"$f":"IFERROR('MMA Rev-Exp Summary'!$R$73/'MMA Rev-Exp Summary'!$R$9, 0)","v":{"v":0,"d":"$0.00"}},{"$f":"IFERROR('MMA Rev-Exp Summary'!$S$73/'MMA Rev-Exp Summary'!$S$9, 0)","v":{"v":0,"d":"$0.00"}},{"$f":"IFERROR('MMA Rev-Exp Summary'!$T$73/'MMA Rev-Exp Summary'!$T$9, 0)","v":{"v":0,"d":"$0.00"}},{"$f":"IFERROR('MMA Rev-Exp Summary'!$U$73/'MMA Rev-Exp Summary'!$U$9, 0)","v":{"v":0,"d":"$0.00"}},{"$f":"IFERROR('MMA Rev-Exp Summary'!$V$73/'MMA Rev-Exp Summary'!$V$9, 0)","v":{"v":0,"d":"$0.00"}},{"$f":"IFERROR('MMA Rev-Exp Summary'!$W$73/'MMA Rev-Exp Summary'!$W$9, 0)","v":{"v":0,"d":"$0.00"}},{"$f":"IFERROR('MMA Rev-Exp Summary'!$X$73/'MMA Rev-Exp Summary'!$X$9, 0)","v":{"v":0,"d":"$0.00"}},{"$f":"IFERROR('MMA Rev-Exp Summary'!$Y$73/'MMA Rev-Exp Summary'!$Y$9, 0)","v":{"v":0,"d":"$0.00"}}]
["MMA",null,null,{"$f":"Jurat!I$1","v":0},{"$f":"Jurat!D$33","v":"00:00:00"},"Q2","2017-06-30","Summary","Operating Expense","Medical Benefits Expense","Expanded Benefits","10.3","Ending IBNP for Expanded Benefits",{"$f":"IFERROR('MMA Rev-Exp Summary'!$O$74/'MMA Rev-Exp Summary'!$O$9, 0)","v":{"v":0,"d":"$0.00"}},{"$f":"IFERROR('MMA Rev-Exp Summary'!$P$74/'MMA Rev-Exp Summary'!$P$9, 0)","v":{"v":0,"d":"$0.00"}},{"$f":"IFERROR('MMA Rev-Exp Summary'!$Q$74/'MMA Rev-Exp Summary'!$Q$9, 0)","v":{"v":0,"d":"$0.00"}},{"$f":"IFERROR('MMA Rev-Exp Summary'!$R$74/'MMA Rev-Exp Summary'!$R$9, 0)","v":{"v":0,"d":"$0.00"}},{"$f":"IFERROR('MMA Rev-Exp Summary'!$S$74/'MMA Rev-Exp Summary'!$S$9, 0)","v":{"v":0,"d":"$0.00"}},{"$f":"IFERROR('MMA Rev-Exp Summary'!$T$74/'MMA Rev-Exp Summary'!$T$9, 0)","v":{"v":0,"d":"$0.00"}},{"$f":"IFERROR('MMA Rev-Exp Summary'!$U$74/'MMA Rev-Exp Summary'!$U$9, 0)","v":{"v":0,"d":"$0.00"}},{"$f":"IFERROR('MMA Rev-Exp Summary'!$V$74/'MMA Rev-Exp Summary'!$V$9, 0)","v":{"v":0,"d":"$0.00"}},{"$f":"IFERROR('MMA Rev-Exp Summary'!$W$74/'MMA Rev-Exp Summary'!$W$9, 0)","v":{"v":0,"d":"$0.00"}},{"$f":"IFERROR('MMA Rev-Exp Summary'!$X$74/'MMA Rev-Exp Summary'!$X$9, 0)","v":{"v":0,"d":"$0.00"}},{"$f":"IFERROR('MMA Rev-Exp Summary'!$Y$74/'MMA Rev-Exp Summary'!$Y$9, 0)","v":{"v":0,"d":"$0.00"}}]
["MMA",null,null,{"$f":"Jurat!I$1","v":0},{"$f":"Jurat!D$33","v":"00:00:00"},"Q2","2017-06-30","Summary","Operating Expense","Medical Benefits Expense","Expanded Benefits","10.4","Expanded Benefits Settlements",{"$f":"IFERROR('MMA Rev-Exp Summary'!$O$75/'MMA Rev-Exp Summary'!$O$9, 0)","v":{"v":0,"d":"$0.00"}},{"$f":"IFERROR('MMA Rev-Exp Summary'!$P$75/'MMA Rev-Exp Summary'!$P$9, 0)","v":{"v":0,"d":"$0.00"}},{"$f":"IFERROR('MMA Rev-Exp Summary'!$Q$75/'MMA Rev-Exp Summary'!$Q$9, 0)","v":{"v":0,"d":"$0.00"}},{"$f":"IFERROR('MMA Rev-Exp Summary'!$R$75/'MMA Rev-Exp Summary'!$R$9, 0)","v":{"v":0,"d":"$0.00"}},{"$f":"IFERROR('MMA Rev-Exp Summary'!$S$75/'MMA Rev-Exp Summary'!$S$9, 0)","v":{"v":0,"d":"$0.00"}},{"$f":"IFERROR('MMA Rev-Exp Summary'!$T$75/'MMA Rev-Exp Summary'!$T$9, 0)","v":{"v":0,"d":"$0.00"}},{"$f":"IFERROR('MMA Rev-Exp Summary'!$U$75/'MMA Rev-Exp Summary'!$U$9, 0)","v":{"v":0,"d":"$0.00"}},{"$f":"IFERROR('MMA Rev-Exp Summary'!$V$75/'MMA Rev-Exp Summary'!$V$9, 0)","v":{"v":0,"d":"$0.00"}},{"$f":"IFERROR('MMA Rev-Exp Summary'!$W$75/'MMA Rev-Exp Summary'!$W$9, 0)","v":{"v":0,"d":"$0.00"}},{"$f":"IFERROR('MMA Rev-Exp Summary'!$X$75/'MMA Rev-Exp Summary'!$X$9, 0)","v":{"v":0,"d":"$0.00"}},{"$f":"IFERROR('MMA Rev-Exp Summary'!$Y$75/'MMA Rev-Exp Summary'!$Y$9, 0)","v":{"v":0,"d":"$0.00"}}]
["MMA",null,null,{"$f":"Jurat!I$1","v":0},{"$f":"Jurat!D$33","v":"00:00:00"},"Q2","2017-06-30","Summary","Operating Expense","Medical Benefits Expense","Other Medical","11.5","TPL & Fraud/Abuse Recoveries",{"$f":"IFERROR('MMA Rev-Exp Summary'!$O$81/'MMA Rev-Exp Summary'!$O$9, 0)","v":{"v":0,"d":"$0.00"}},{"$f":"IFERROR('MMA Rev-Exp Summary'!$P$81/'MMA Rev-Exp Summary'!$P$9, 0)","v":{"v":0,"d":"$0.00"}},{"$f":"IFERROR('MMA Rev-Exp Summary'!$Q$81/'MMA Rev-Exp Summary'!$Q$9, 0)","v":{"v":0,"d":"$0.00"}},{"$f":"IFERROR('MMA Rev-Exp Summary'!$R$81/'MMA Rev-Exp Summary'!$R$9, 0)","v":{"v":0,"d":"$0.00"}},{"$f":"IFERROR('MMA Rev-Exp Summary'!$S$81/'MMA Rev-Exp Summary'!$S$9, 0)","v":{"v":0,"d":"$0.00"}},{"$f":"IFERROR('MMA Rev-Exp Summary'!$T$81/'MMA Rev-Exp Summary'!$T$9, 0)","v":{"v":0,"d":"$0.00"}},{"$f":"IFERROR('MMA Rev-Exp Summary'!$U$81/'MMA Rev-Exp Summary'!$U$9, 0)","v":{"v":0,"d":"$0.00"}},{"$f":"IFERROR('MMA Rev-Exp Summary'!$V$81/'MMA Rev-Exp Summary'!$V$9, 0)","v":{"v":0,"d":"$0.00"}},{"$f":"IFERROR('MMA Rev-Exp Summary'!$W$81/'MMA Rev-Exp Summary'!$W$9, 0)","v":{"v":0,"d":"$0.00"}},{"$f":"IFERROR('MMA Rev-Exp Summary'!$X$81/'MMA Rev-Exp Summary'!$X$9, 0)","v":{"v":0,"d":"$0.00"}},{"$f":"IFERROR('MMA Rev-Exp Summary'!$Y$81/'MMA Rev-Exp Summary'!$Y$9, 0)","v":{"v":0,"d":"$0.00"}}]
["MMA",null,null,{"$f":"Jurat!I$1","v":0},{"$f":"Jurat!D$33","v":"00:00:00"},"Q2","2017-06-30","Summary","Operating Expense","Medical Benefits Expense","Other Medical","11.6.1","Premium Deficiency Reserve",{"$f":"IFERROR('MMA Rev-Exp Summary'!$O$82/'MMA Rev-Exp Summary'!$O$9, 0)","v":{"v":0,"d":"$0.00"}},{"$f":"IFERROR('MMA Rev-Exp Summary'!$P$82/'MMA Rev-Exp Summary'!$P$9, 0)","v":{"v":0,"d":"$0.00"}},{"$f":"IFERROR('MMA Rev-Exp Summary'!$Q$82/'MMA Rev-Exp Summary'!$Q$9, 0)","v":{"v":0,"d":"$0.00"}},{"$f":"IFERROR('MMA Rev-Exp Summary'!$R$82/'MMA Rev-Exp Summary'!$R$9, 0)","v":{"v":0,"d":"$0.00"}},{"$f":"IFERROR('MMA Rev-Exp Summary'!$S$82/'MMA Rev-Exp Summary'!$S$9, 0)","v":{"v":0,"d":"$0.00"}},{"$f":"IFERROR('MMA Rev-Exp Summary'!$T$82/'MMA Rev-Exp Summary'!$T$9, 0)","v":{"v":0,"d":"$0.00"}},{"$f":"IFERROR('MMA Rev-Exp Summary'!$U$82/'MMA Rev-Exp Summary'!$U$9, 0)","v":{"v":0,"d":"$0.00"}},{"$f":"IFERROR('MMA Rev-Exp Summary'!$V$82/'MMA Rev-Exp Summary'!$V$9, 0)","v":{"v":0,"d":"$0.00"}},{"$f":"IFERROR('MMA Rev-Exp Summary'!$W$82/'MMA Rev-Exp Summary'!$W$9, 0)","v":{"v":0,"d":"$0.00"}},{"$f":"IFERROR('MMA Rev-Exp Summary'!$X$82/'MMA Rev-Exp Summary'!$X$9, 0)","v":{"v":0,"d":"$0.00"}},{"$f":"IFERROR('MMA Rev-Exp Summary'!$Y$82/'MMA Rev-Exp Summary'!$Y$9, 0)","v":{"v":0,"d":"$0.00"}}]
["MMA",null,null,{"$f":"Jurat!I$1","v":0},{"$f":"Jurat!D$33","v":"00:00:00"},"Q2","2017-06-30","Summary","Operating Expense","Medical Benefits Expense","Other Medical","11.8","Reinsurance Premiums",{"$f":"IFERROR('MMA Rev-Exp Summary'!$O$84/'MMA Rev-Exp Summary'!$O$9, 0)","v":{"v":0,"d":"$0.00"}},{"$f":"IFERROR('MMA Rev-Exp Summary'!$P$84/'MMA Rev-Exp Summary'!$P$9, 0)","v":{"v":0,"d":"$0.00"}},{"$f":"IFERROR('MMA Rev-Exp Summary'!$Q$84/'MMA Rev-Exp Summary'!$Q$9, 0)","v":{"v":0,"d":"$0.00"}},{"$f":"IFERROR('MMA Rev-Exp Summary'!$R$84/'MMA Rev-Exp Summary'!$R$9, 0)","v":{"v":0,"d":"$0.00"}},{"$f":"IFERROR('MMA Rev-Exp Summary'!$S$84/'MMA Rev-Exp Summary'!$S$9, 0)","v":{"v":0,"d":"$0.00"}},{"$f":"IFERROR('MMA Rev-Exp Summary'!$T$84/'MMA Rev-Exp Summary'!$T$9, 0)","v":{"v":0,"d":"$0.00"}},{"$f":"IFERROR('MMA Rev-Exp Summary'!$U$84/'MMA Rev-Exp Summary'!$U$9, 0)","v":{"v":0,"d":"$0.00"}},{"$f":"IFERROR('MMA Rev-Exp Summary'!$V$84/'MMA Rev-Exp Summary'!$V$9, 0)","v":{"v":0,"d":"$0.00"}},{"$f":"IFERROR('MMA Rev-Exp Summary'!$W$84/'MMA Rev-Exp Summary'!$W$9, 0)","v":{"v":0,"d":"$0.00"}},{"$f":"IFERROR('MMA Rev-Exp Summary'!$X$84/'MMA Rev-Exp Summary'!$X$9, 0)","v":{"v":0,"d":"$0.00"}},{"$f":"IFERROR('MMA Rev-Exp Summary'!$Y$84/'MMA Rev-Exp Summary'!$Y$9, 0)","v":{"v":0,"d":"$0.00"}}]
["MMA",null,null,{"$f":"Jurat!I$1","v":0},{"$f":"Jurat!D$33","v":"00:00:00"},"Q2","2017-06-30","Summary","Operating Expense","Medical Benefits Expense","Other Medical","11.9","Reinsurance Recoveries",{"$f":"IFERROR('MMA Rev-Exp Summary'!$O$85/'MMA Rev-Exp Summary'!$O$9, 0)","v":{"v":0,"d":"$0.00"}},{"$f":"IFERROR('MMA Rev-Exp Summary'!$P$85/'MMA Rev-Exp Summary'!$P$9, 0)","v":{"v":0,"d":"$0.00"}},{"$f":"IFERROR('MMA Rev-Exp Summary'!$Q$85/'MMA Rev-Exp Summary'!$Q$9, 0)","v":{"v":0,"d":"$0.00"}},{"$f":"IFERROR('MMA Rev-Exp Summary'!$R$85/'MMA Rev-Exp Summary'!$R$9, 0)","v":{"v":0,"d":"$0.00"}},{"$f":"IFERROR('MMA Rev-Exp Summary'!$S$85/'MMA Rev-Exp Summary'!$S$9, 0)","v":{"v":0,"d":"$0.00"}},{"$f":"IFERROR('MMA Rev-Exp Summary'!$T$85/'MMA Rev-Exp Summary'!$T$9, 0)","v":{"v":0,"d":"$0.00"}},{"$f":"IFERROR('MMA Rev-Exp Summary'!$U$85/'MMA Rev-Exp Summary'!$U$9, 0)","v":{"v":0,"d":"$0.00"}},{"$f":"IFERROR('MMA Rev-Exp Summary'!$V$85/'MMA Rev-Exp Summary'!$V$9, 0)","v":{"v":0,"d":"$0.00"}},{"$f":"IFERROR('MMA Rev-Exp Summary'!$W$85/'MMA Rev-Exp Summary'!$W$9, 0)","v":{"v":0,"d":"$0.00"}},{"$f":"IFERROR('MMA Rev-Exp Summary'!$X$85/'MMA Rev-Exp Summary'!$X$9, 0)","v":{"v":0,"d":"$0.00"}},{"$f":"IFERROR('MMA Rev-Exp Summary'!$Y$85/'MMA Rev-Exp Summary'!$Y$9, 0)","v":{"v":0,"d":"$0.00"}}]
["MMA",null,null,{"$f":"Jurat!I$1","v":0},{"$f":"Jurat!D$33","v":"00:00:00"},"Q2","2017-06-30","Summary","Operating Expense","Administrative Expense","Administrative","12.1","Salaries & Benefits",{"$f":"IFERROR('MMA Rev-Exp Summary'!$O$90/'MMA Rev-Exp Summary'!$O$9, 0)","v":{"v":0,"d":"$0.00"}},{"$f":"IFERROR('MMA Rev-Exp Summary'!$P$90/'MMA Rev-Exp Summary'!$O$9, 0)","v":{"v":0,"d":"$0.00"}},{"$f":"IFERROR('MMA Rev-Exp Summary'!$Q$90/'MMA Rev-Exp Summary'!$O$9, 0)","v":{"v":0,"d":"$0.00"}},{"$f":"IFERROR('MMA Rev-Exp Summary'!$R$90/'MMA Rev-Exp Summary'!$R$9, 0)","v":{"v":0,"d":"$0.00"}},{"$f":"IFERROR('MMA Rev-Exp Summary'!$S$90/'MMA Rev-Exp Summary'!$S$9, 0)","v":{"v":0,"d":"$0.00"}},{"$f":"IFERROR('MMA Rev-Exp Summary'!$T$90/'MMA Rev-Exp Summary'!$T$9, 0)","v":{"v":0,"d":"$0.00"}},{"$f":"IFERROR('MMA Rev-Exp Summary'!$U$90/'MMA Rev-Exp Summary'!$U$9, 0)","v":{"v":0,"d":"$0.00"}},{"$f":"IFERROR('MMA Rev-Exp Summary'!$V$90/'MMA Rev-Exp Summary'!$V$9, 0)","v":{"v":0,"d":"$0.00"}},{"$f":"IFERROR('MMA Rev-Exp Summary'!$W$90/'MMA Rev-Exp Summary'!$W$9, 0)","v":{"v":0,"d":"$0.00"}},{"$f":"IFERROR('MMA Rev-Exp Summary'!$X$90/'MMA Rev-Exp Summary'!$X$9, 0)","v":{"v":0,"d":"$0.00"}},{"$f":"IFERROR('MMA Rev-Exp Summary'!$Y$90/'MMA Rev-Exp Summary'!$Y$9, 0)","v":{"v":0,"d":"$0.00"}}]
["MMA",null,null,{"$f":"Jurat!I$1","v":0},{"$f":"Jurat!D$33","v":"00:00:00"},"Q2","2017-06-30","Summary","Operating Expense","Administrative Expense","Administrative","12.2","Administrative Services",{"$f":"IFERROR('MMA Rev-Exp Summary'!$O$91/'MMA Rev-Exp Summary'!$O$9, 0)","v":{"v":0,"d":"$0.00"}},{"$f":"IFERROR('MMA Rev-Exp Summary'!$P$91/'MMA Rev-Exp Summary'!$O$9, 0)","v":{"v":0,"d":"$0.00"}},{"$f":"IFERROR('MMA Rev-Exp Summary'!$Q$91/'MMA Rev-Exp Summary'!$O$9, 0)","v":{"v":0,"d":"$0.00"}},{"$f":"IFERROR('MMA Rev-Exp Summary'!$R$91/'MMA Rev-Exp Summary'!$R$9, 0)","v":{"v":0,"d":"$0.00"}},{"$f":"IFERROR('MMA Rev-Exp Summary'!$S$91/'MMA Rev-Exp Summary'!$S$9, 0)","v":{"v":0,"d":"$0.00"}},{"$f":"IFERROR('MMA Rev-Exp Summary'!$T$91/'MMA Rev-Exp Summary'!$T$9, 0)","v":{"v":0,"d":"$0.00"}},{"$f":"IFERROR('MMA Rev-Exp Summary'!$U$91/'MMA Rev-Exp Summary'!$U$9, 0)","v":{"v":0,"d":"$0.00"}},{"$f":"IFERROR('MMA Rev-Exp Summary'!$V$91/'MMA Rev-Exp Summary'!$V$9, 0)","v":{"v":0,"d":"$0.00"}},{"$f":"IFERROR('MMA Rev-Exp Summary'!$W$91/'MMA Rev-Exp Summary'!$W$9, 0)","v":{"v":0,"d":"$0.00"}},{"$f":"IFERROR('MMA Rev-Exp Summary'!$X$91/'MMA Rev-Exp Summary'!$X$9, 0)","v":{"v":0,"d":"$0.00"}},{"$f":"IFERROR('MMA Rev-Exp Summary'!$Y$91/'MMA Rev-Exp Summary'!$Y$9, 0)","v":{"v":0,"d":"$0.00"}}]
["MMA",null,null,{"$f":"Jurat!I$1","v":0},{"$f":"Jurat!D$33","v":"00:00:00"},"Q2","2017-06-30","Summary","Operating Expense","Administrative Expense","Administrative","12.3","Information Systems",{"$f":"IFERROR('MMA Rev-Exp Summary'!$O$92/'MMA Rev-Exp Summary'!$O$9, 0)","v":{"v":0,"d":"$0.00"}},{"$f":"IFERROR('MMA Rev-Exp Summary'!$P$92/'MMA Rev-Exp Summary'!$O$9, 0)","v":{"v":0,"d":"$0.00"}},{"$f":"IFERROR('MMA Rev-Exp Summary'!$Q$92/'MMA Rev-Exp Summary'!$O$9, 0)","v":{"v":0,"d":"$0.00"}},{"$f":"IFERROR('MMA Rev-Exp Summary'!$R$92/'MMA Rev-Exp Summary'!$R$9, 0)","v":{"v":0,"d":"$0.00"}},{"$f":"IFERROR('MMA Rev-Exp Summary'!$S$92/'MMA Rev-Exp Summary'!$S$9, 0)","v":{"v":0,"d":"$0.00"}},{"$f":"IFERROR('MMA Rev-Exp Summary'!$T$92/'MMA Rev-Exp Summary'!$T$9, 0)","v":{"v":0,"d":"$0.00"}},{"$f":"IFERROR('MMA Rev-Exp Summary'!$U$92/'MMA Rev-Exp Summary'!$U$9, 0)","v":{"v":0,"d":"$0.00"}},{"$f":"IFERROR('MMA Rev-Exp Summary'!$V$92/'MMA Rev-Exp Summary'!$V$9, 0)","v":{"v":0,"d":"$0.00"}},{"$f":"IFERROR('MMA Rev-Exp Summary'!$W$92/'MMA Rev-Exp Summary'!$W$9, 0)","v":{"v":0,"d":"$0.00"}},{"$f":"IFERROR('MMA Rev-Exp Summary'!$X$92/'MMA Rev-Exp Summary'!$X$9, 0)","v":{"v":0,"d":"$0.00"}},{"$f":"IFERROR('MMA Rev-Exp Summary'!$Y$92/'MMA Rev-Exp Summary'!$Y$9, 0)","v":{"v":0,"d":"$0.00"}}]
["MMA",null,null,{"$f":"Jurat!I$1","v":0},{"$f":"Jurat!D$33","v":"00:00:00"},"Q2","2017-06-30","Summary","Operating Expense","Administrative Expense","Administrative","12.4","Marketing Expenses",{"$f":"IFERROR('MMA Rev-Exp Summary'!$O$93/'MMA Rev-Exp Summary'!$O$9, 0)","v":{"v":0,"d":"$0.00"}},{"$f":"IFERROR('MMA Rev-Exp Summary'!$P$93/'MMA Rev-Exp Summary'!$O$9, 0)","v":{"v":0,"d":"$0.00"}},{"$f":"IFERROR('MMA Rev-Exp Summary'!$Q$93/'MMA Rev-Exp Summary'!$O$9, 0)","v":{"v":0,"d":"$0.00"}}]
["MMA",null,null,{"$f":"Jurat!I$1","v":0},{"$f":"Jurat!D$33","v":"00:00:00"},"Q2","2017-06-30","Summary","Operating Expense","Administrative Expense","Administrative","12.5","General  Administration",{"$f":"IFERROR('MMA Rev-Exp Summary'!$O$94/'MMA Rev-Exp Summary'!$O$9, 0)","v":{"v":0,"d":"$0.00"}},{"$f":"IFERROR('MMA Rev-Exp Summary'!$P$94/'MMA Rev-Exp Summary'!$O$9, 0)","v":{"v":0,"d":"$0.00"}},{"$f":"IFERROR('MMA Rev-Exp Summary'!$Q$94/'MMA Rev-Exp Summary'!$O$9, 0)","v":{"v":0,"d":"$0.00"}}]
["MMA",null,null,{"$f":"Jurat!I$1","v":0},{"$f":"Jurat!D$33","v":"00:00:00"},"Q2","2017-06-30","Summary","Operating Expense","Administrative Expense","Administrative","12.6","Compliance/Regulatory",{"$f":"IFERROR('MMA Rev-Exp Summary'!$O$95/'MMA Rev-Exp Summary'!$O$9, 0)","v":{"v":0,"d":"$0.00"}},{"$f":"IFERROR('MMA Rev-Exp Summary'!$P$95/'MMA Rev-Exp Summary'!$O$9, 0)","v":{"v":0,"d":"$0.00"}},{"$f":"IFERROR('MMA Rev-Exp Summary'!$Q$95/'MMA Rev-Exp Summary'!$O$9, 0)","v":{"v":0,"d":"$0.00"}}]
["MMA",null,null,{"$f":"Jurat!I$1","v":0},{"$f":"Jurat!D$33","v":"00:00:00"},"Q2","2017-06-30","Summary","Operating Expense","Taxes & Fees","Taxes & Fees","13.1","State Premium tax",{"$f":"IFERROR('MMA Rev-Exp Summary'!$O$97/'MMA Rev-Exp Summary'!$O$9, 0)","v":{"v":0,"d":"$0.00"}}]
["MMA",null,null,{"$f":"Jurat!I$1","v":0},{"$f":"Jurat!D$33","v":"00:00:00"},"Q2","2017-06-30","Summary","Operating Expense","Taxes & Fees","Taxes & Fees","13.2","Department of Insurance Assessments",{"$f":"IFERROR('MMA Rev-Exp Summary'!$O$98/'MMA Rev-Exp Summary'!$O$9, 0)","v":{"v":0,"d":"$0.00"}}]
["MMA",null,null,{"$f":"Jurat!I$1","v":0},{"$f":"Jurat!D$33","v":"00:00:00"},"Q2","2017-06-30","Summary","Operating Expense","Taxes & Fees","Taxes & Fees","13.3","Section 9010 Health Insurance Providers Fee",{"$f":"IFERROR('MMA Rev-Exp Summary'!$O$99/'MMA Rev-Exp Summary'!$O$9, 0)","v":{"v":0,"d":"$0.00"}}]
["MMA",null,null,{"$f":"Jurat!I$1","v":0},{"$f":"Jurat!D$33","v":"00:00:00"},"Q2","2017-06-30","Summary","Non-Operating Expense","Income Tax Expense","Income Tax Expense","16.0","Income Tax Expense",{"$f":"IFERROR('MMA Rev-Exp Summary'!$O$106/'MMA Rev-Exp Summary'!$O$9, 0)","v":{"v":0,"d":"$0.00"}}]
["MMA",null,null,{"$f":"Jurat!I$1","v":0},{"$f":"Jurat!D$33","v":"00:00:00"},"Q3","2017-09-30","Summary","Operating Revenue","Capitation","Capitation",1.1,"Capitation",{"$f":"IFERROR('MMA Rev-Exp Summary'!$Z$11/'MMA Rev-Exp Summary'!$Z$9, 0)","v":{"v":0,"d":"$0.00"}},{"$f":"IFERROR('MMA Rev-Exp Summary'!$AA$11/'MMA Rev-Exp Summary'!$AA$9, 0)","v":{"v":0,"d":"$0.00"}},{"$f":"IFERROR('MMA Rev-Exp Summary'!$AB$11/'MMA Rev-Exp Summary'!$AB$9, 0)","v":{"v":0,"d":"$0.00"}},{"$f":"IFERROR('MMA Rev-Exp Summary'!$AC$11/'MMA Rev-Exp Summary'!$AC$9, 0)","v":{"v":0,"d":"$0.00"}},{"$f":"IFERROR('MMA Rev-Exp Summary'!$AD$11/'MMA Rev-Exp Summary'!$AD$9, 0)","v":{"v":0,"d":"$0.00"}},{"$f":"IFERROR('MMA Rev-Exp Summary'!$AE$11/'MMA Rev-Exp Summary'!$AE$9, 0)","v":{"v":0,"d":"$0.00"}},{"$f":"IFERROR('MMA Rev-Exp Summary'!$AF$11/'MMA Rev-Exp Summary'!$AF$9, 0)","v":{"v":0,"d":"$0.00"}},{"$f":"IFERROR('MMA Rev-Exp Summary'!$AG$11/'MMA Rev-Exp Summary'!$AG$9, 0)","v":{"v":0,"d":"$0.00"}},{"$f":"IFERROR('MMA Rev-Exp Summary'!$AH$11/'MMA Rev-Exp Summary'!$AH$9, 0)","v":{"v":0,"d":"$0.00"}},{"$f":"IFERROR('MMA Rev-Exp Summary'!$AI$11/'MMA Rev-Exp Summary'!$AI$9, 0)","v":{"v":0,"d":"$0.00"}},{"$f":"IFERROR('MMA Rev-Exp Summary'!$AJ$11/'MMA Rev-Exp Summary'!$AJ$9, 0)","v":{"v":0,"d":"$0.00"}}]
["MMA",null,null,{"$f":"Jurat!I$1","v":0},{"$f":"Jurat!D$33","v":"00:00:00"},"Q3","2017-09-30","Summary","Operating Revenue","Kick Payments","Kick Payments - Transplant",1.2,"Transplant Kick Payments",{"$f":"IFERROR('MMA Rev-Exp Summary'!$Z$12/'MMA Rev-Exp Summary'!$Z$9, 0)","v":{"v":0,"d":"$0.00"}},{"$f":"IFERROR('MMA Rev-Exp Summary'!$AA$12/'MMA Rev-Exp Summary'!$AA$9, 0)","v":{"v":0,"d":"$0.00"}},{"$f":"IFERROR('MMA Rev-Exp Summary'!$AB$12/'MMA Rev-Exp Summary'!$AB$9, 0)","v":{"v":0,"d":"$0.00"}},{"$f":"IFERROR('MMA Rev-Exp Summary'!$AC$12/'MMA Rev-Exp Summary'!$AC$9, 0)","v":{"v":0,"d":"$0.00"}},{"$f":"IFERROR('MMA Rev-Exp Summary'!$AD$12/'MMA Rev-Exp Summary'!$AD$9, 0)","v":{"v":0,"d":"$0.00"}},{"$f":"IFERROR('MMA Rev-Exp Summary'!$AE$12/'MMA Rev-Exp Summary'!$AE$9, 0)","v":{"v":0,"d":"$0.00"}},{"$f":"IFERROR('MMA Rev-Exp Summary'!$AF$12/'MMA Rev-Exp Summary'!$AF$9, 0)","v":{"v":0,"d":"$0.00"}},{"$f":"IFERROR('MMA Rev-Exp Summary'!$AG$12/'MMA Rev-Exp Summary'!$AG$9, 0)","v":{"v":0,"d":"$0.00"}},{"$f":"IFERROR('MMA Rev-Exp Summary'!$AH$12/'MMA Rev-Exp Summary'!$AH$9, 0)","v":{"v":0,"d":"$0.00"}},{"$f":"IFERROR('MMA Rev-Exp Summary'!$AI$12/'MMA Rev-Exp Summary'!$AI$9, 0)","v":{"v":0,"d":"$0.00"}},{"$f":"IFERROR('MMA Rev-Exp Summary'!$AJ$12/'MMA Rev-Exp Summary'!$AJ$9, 0)","v":{"v":0,"d":"$0.00"}}]
["MMA",null,null,{"$f":"Jurat!I$1","v":0},{"$f":"Jurat!D$33","v":"00:00:00"},"Q3","2017-09-30","Summary","Operating Revenue","Kick Payments","Kick Payments - Hep C","1.3","Hepatitis C Kick Payments",{"$f":"IFERROR('MMA Rev-Exp Summary'!$Z$13/'MMA Rev-Exp Summary'!$Z$9, 0)","v":{"v":0,"d":"$0.00"}},{"$f":"IFERROR('MMA Rev-Exp Summary'!$AA$13/'MMA Rev-Exp Summary'!$AA$9, 0)","v":{"v":0,"d":"$0.00"}},{"$f":"IFERROR('MMA Rev-Exp Summary'!$AB$13/'MMA Rev-Exp Summary'!$AB$9, 0)","v":{"v":0,"d":"$0.00"}},{"$f":"IFERROR('MMA Rev-Exp Summary'!$AC$13/'MMA Rev-Exp Summary'!$AC$9, 0)","v":{"v":0,"d":"$0.00"}},{"$f":"IFERROR('MMA Rev-Exp Summary'!$AD$13/'MMA Rev-Exp Summary'!$AD$9, 0)","v":{"v":0,"d":"$0.00"}},{"$f":"IFERROR('MMA Rev-Exp Summary'!$AE$13/'MMA Rev-Exp Summary'!$AE$9, 0)","v":{"v":0,"d":"$0.00"}},{"$f":"IFERROR('MMA Rev-Exp Summary'!$AF$13/'MMA Rev-Exp Summary'!$AF$9, 0)","v":{"v":0,"d":"$0.00"}},{"$f":"IFERROR('MMA Rev-Exp Summary'!$AG$13/'MMA Rev-Exp Summary'!$AG$9, 0)","v":{"v":0,"d":"$0.00"}},{"$f":"IFERROR('MMA Rev-Exp Summary'!$AH$13/'MMA Rev-Exp Summary'!$AH$9, 0)","v":{"v":0,"d":"$0.00"}},{"$f":"IFERROR('MMA Rev-Exp Summary'!$AI$13/'MMA Rev-Exp Summary'!$AI$9, 0)","v":{"v":0,"d":"$0.00"}},{"$f":"IFERROR('MMA Rev-Exp Summary'!$AJ$13/'MMA Rev-Exp Summary'!$AJ$9, 0)","v":{"v":0,"d":"$0.00"}}]
["MMA",null,null,{"$f":"Jurat!I$1","v":0},{"$f":"Jurat!D$33","v":"00:00:00"},"Q3","2017-09-30","Summary","Operating Revenue","Kick Payments","Kick Payments - Maternity","1.4.1","Maternity Kick Payments",{"$f":"IFERROR('MMA Rev-Exp Summary'!$Z$14/'MMA Rev-Exp Summary'!$Z$9, 0)","v":{"v":0,"d":"$0.00"}},{"$f":"IFERROR('MMA Rev-Exp Summary'!$AA$14/'MMA Rev-Exp Summary'!$AA$9, 0)","v":{"v":0,"d":"$0.00"}},{"$f":"IFERROR('MMA Rev-Exp Summary'!$AB$14/'MMA Rev-Exp Summary'!$AB$9, 0)","v":{"v":0,"d":"$0.00"}},{"$f":"IFERROR('MMA Rev-Exp Summary'!$AC$14/'MMA Rev-Exp Summary'!$AC$9, 0)","v":{"v":0,"d":"$0.00"}},{"$f":"IFERROR('MMA Rev-Exp Summary'!$AD$14/'MMA Rev-Exp Summary'!$AD$9, 0)","v":{"v":0,"d":"$0.00"}},{"$f":"IFERROR('MMA Rev-Exp Summary'!$AE$14/'MMA Rev-Exp Summary'!$AE$9, 0)","v":{"v":0,"d":"$0.00"}},{"$f":"IFERROR('MMA Rev-Exp Summary'!$AF$14/'MMA Rev-Exp Summary'!$AF$9, 0)","v":{"v":0,"d":"$0.00"}},{"$f":"IFERROR('MMA Rev-Exp Summary'!$AG$14/'MMA Rev-Exp Summary'!$AG$9, 0)","v":{"v":0,"d":"$0.00"}},{"$f":"IFERROR('MMA Rev-Exp Summary'!$AH$14/'MMA Rev-Exp Summary'!$AH$9, 0)","v":{"v":0,"d":"$0.00"}},{"$f":"IFERROR('MMA Rev-Exp Summary'!$AI$14/'MMA Rev-Exp Summary'!$AI$9, 0)","v":{"v":0,"d":"$0.00"}},{"$f":"IFERROR('MMA Rev-Exp Summary'!$AJ$14/'MMA Rev-Exp Summary'!$AJ$9, 0)","v":{"v":0,"d":"$0.00"}}]
["MMA",null,null,{"$f":"Jurat!I$1","v":0},{"$f":"Jurat!D$33","v":"00:00:00"},"Q3","2017-09-30","Summary","Operating Revenue","Other Revenue","Other Revenue - 9010","1.5","ACA § 9010 related payments",{"$f":"IFERROR('MMA Rev-Exp Summary'!$Z$15/'MMA Rev-Exp Summary'!$Z$9, 0)","v":{"v":0,"d":"$0.00"}},{"$f":"IFERROR('MMA Rev-Exp Summary'!$AA$15/'MMA Rev-Exp Summary'!$AA$9, 0)","v":{"v":0,"d":"$0.00"}},{"$f":"IFERROR('MMA Rev-Exp Summary'!$AB$15/'MMA Rev-Exp Summary'!$AB$9, 0)","v":{"v":0,"d":"$0.00"}},{"$f":"IFERROR('MMA Rev-Exp Summary'!$AC$15/'MMA Rev-Exp Summary'!$AC$9, 0)","v":{"v":0,"d":"$0.00"}},{"$f":"IFERROR('MMA Rev-Exp Summary'!$AD$15/'MMA Rev-Exp Summary'!$AD$9, 0)","v":{"v":0,"d":"$0.00"}},{"$f":"IFERROR('MMA Rev-Exp Summary'!$AE$15/'MMA Rev-Exp Summary'!$AE$9, 0)","v":{"v":0,"d":"$0.00"}},{"$f":"IFERROR('MMA Rev-Exp Summary'!$AF$15/'MMA Rev-Exp Summary'!$AF$9, 0)","v":{"v":0,"d":"$0.00"}},{"$f":"IFERROR('MMA Rev-Exp Summary'!$AG$15/'MMA Rev-Exp Summary'!$AG$9, 0)","v":{"v":0,"d":"$0.00"}},{"$f":"IFERROR('MMA Rev-Exp Summary'!$AH$15/'MMA Rev-Exp Summary'!$AH$9, 0)","v":{"v":0,"d":"$0.00"}},{"$f":"IFERROR('MMA Rev-Exp Summary'!$AI$15/'MMA Rev-Exp Summary'!$AI$9, 0)","v":{"v":0,"d":"$0.00"}},{"$f":"IFERROR('MMA Rev-Exp Summary'!$AJ$15/'MMA Rev-Exp Summary'!$AJ$9, 0)","v":{"v":0,"d":"$0.00"}}]
["MMA",null,null,{"$f":"Jurat!I$1","v":0},{"$f":"Jurat!D$33","v":"00:00:00"},"Q3","2017-09-30","Summary","Operating Revenue","Other Revenue","Other Revenue","1.6","Other Revenue",{"$f":"IFERROR('MMA Rev-Exp Summary'!$Z$16/'MMA Rev-Exp Summary'!$Z$9, 0)","v":{"v":0,"d":"$0.00"}},{"$f":"IFERROR('MMA Rev-Exp Summary'!$AA$16/'MMA Rev-Exp Summary'!$AA$9, 0)","v":{"v":0,"d":"$0.00"}},{"$f":"IFERROR('MMA Rev-Exp Summary'!$AB$16/'MMA Rev-Exp Summary'!$AB$9, 0)","v":{"v":0,"d":"$0.00"}},{"$f":"IFERROR('MMA Rev-Exp Summary'!$AC$16/'MMA Rev-Exp Summary'!$AC$9, 0)","v":{"v":0,"d":"$0.00"}},{"$f":"IFERROR('MMA Rev-Exp Summary'!$AD$16/'MMA Rev-Exp Summary'!$AD$9, 0)","v":{"v":0,"d":"$0.00"}},{"$f":"IFERROR('MMA Rev-Exp Summary'!$AE$16/'MMA Rev-Exp Summary'!$AE$9, 0)","v":{"v":0,"d":"$0.00"}},{"$f":"IFERROR('MMA Rev-Exp Summary'!$AF$16/'MMA Rev-Exp Summary'!$AF$9, 0)","v":{"v":0,"d":"$0.00"}},{"$f":"IFERROR('MMA Rev-Exp Summary'!$AG$16/'MMA Rev-Exp Summary'!$AG$9, 0)","v":{"v":0,"d":"$0.00"}},{"$f":"IFERROR('MMA Rev-Exp Summary'!$AH$16/'MMA Rev-Exp Summary'!$AH$9, 0)","v":{"v":0,"d":"$0.00"}},{"$f":"IFERROR('MMA Rev-Exp Summary'!$AI$16/'MMA Rev-Exp Summary'!$AI$9, 0)","v":{"v":0,"d":"$0.00"}},{"$f":"IFERROR('MMA Rev-Exp Summary'!$AJ$16/'MMA Rev-Exp Summary'!$AJ$9, 0)","v":{"v":0,"d":"$0.00"}}]
["MMA",null,null,{"$f":"Jurat!I$1","v":0},{"$f":"Jurat!D$33","v":"00:00:00"},"Q3","2017-09-30","Summary","Operating Expense","Medical Benefits Expense","Hospital Services",2.1,"Inpatient FFS",{"$f":"IFERROR('MMA Rev-Exp Summary'!$Z$20/'MMA Rev-Exp Summary'!$Z$9, 0)","v":{"v":0,"d":"$0.00"}},{"$f":"IFERROR('MMA Rev-Exp Summary'!$AA$20/'MMA Rev-Exp Summary'!$AA$9, 0)","v":{"v":0,"d":"$0.00"}},{"$f":"IFERROR('MMA Rev-Exp Summary'!$AB$20/'MMA Rev-Exp Summary'!$AB$9, 0)","v":{"v":0,"d":"$0.00"}},{"$f":"IFERROR('MMA Rev-Exp Summary'!$AC$20/'MMA Rev-Exp Summary'!$AC$9, 0)","v":{"v":0,"d":"$0.00"}},{"$f":"IFERROR('MMA Rev-Exp Summary'!$AD$20/'MMA Rev-Exp Summary'!$AD$9, 0)","v":{"v":0,"d":"$0.00"}},{"$f":"IFERROR('MMA Rev-Exp Summary'!$AE$20/'MMA Rev-Exp Summary'!$AE$9, 0)","v":{"v":0,"d":"$0.00"}},{"$f":"IFERROR('MMA Rev-Exp Summary'!$AF$20/'MMA Rev-Exp Summary'!$AF$9, 0)","v":{"v":0,"d":"$0.00"}},{"$f":"IFERROR('MMA Rev-Exp Summary'!$AG$20/'MMA Rev-Exp Summary'!$AG$9, 0)","v":{"v":0,"d":"$0.00"}},{"$f":"IFERROR('MMA Rev-Exp Summary'!$AH$20/'MMA Rev-Exp Summary'!$AH$9, 0)","v":{"v":0,"d":"$0.00"}},{"$f":"IFERROR('MMA Rev-Exp Summary'!$AI$20/'MMA Rev-Exp Summary'!$AI$9, 0)","v":{"v":0,"d":"$0.00"}},{"$f":"IFERROR('MMA Rev-Exp Summary'!$AJ$20/'MMA Rev-Exp Summary'!$AJ$9, 0)","v":{"v":0,"d":"$0.00"}}]
["MMA",null,null,{"$f":"Jurat!I$1","v":0},{"$f":"Jurat!D$33","v":"00:00:00"},"Q3","2017-09-30","Summary","Operating Expense","Medical Benefits Expense","Hospital Services",2.2,"Ending IBNP for Inpatient Hospital Services",{"$f":"IFERROR('MMA Rev-Exp Summary'!$Z$21/'MMA Rev-Exp Summary'!$Z$9, 0)","v":{"v":0,"d":"$0.00"}},{"$f":"IFERROR('MMA Rev-Exp Summary'!$AA$21/'MMA Rev-Exp Summary'!$AA$9, 0)","v":{"v":0,"d":"$0.00"}},{"$f":"IFERROR('MMA Rev-Exp Summary'!$AB$21/'MMA Rev-Exp Summary'!$AB$9, 0)","v":{"v":0,"d":"$0.00"}},{"$f":"IFERROR('MMA Rev-Exp Summary'!$AC$21/'MMA Rev-Exp Summary'!$AC$9, 0)","v":{"v":0,"d":"$0.00"}},{"$f":"IFERROR('MMA Rev-Exp Summary'!$AD$21/'MMA Rev-Exp Summary'!$AD$9, 0)","v":{"v":0,"d":"$0.00"}},{"$f":"IFERROR('MMA Rev-Exp Summary'!$AE$21/'MMA Rev-Exp Summary'!$AE$9, 0)","v":{"v":0,"d":"$0.00"}},{"$f":"IFERROR('MMA Rev-Exp Summary'!$AF$21/'MMA Rev-Exp Summary'!$AF$9, 0)","v":{"v":0,"d":"$0.00"}},{"$f":"IFERROR('MMA Rev-Exp Summary'!$AG$21/'MMA Rev-Exp Summary'!$AG$9, 0)","v":{"v":0,"d":"$0.00"}},{"$f":"IFERROR('MMA Rev-Exp Summary'!$AH$21/'MMA Rev-Exp Summary'!$AH$9, 0)","v":{"v":0,"d":"$0.00"}},{"$f":"IFERROR('MMA Rev-Exp Summary'!$AI$21/'MMA Rev-Exp Summary'!$AI$9, 0)","v":{"v":0,"d":"$0.00"}},{"$f":"IFERROR('MMA Rev-Exp Summary'!$AJ$21/'MMA Rev-Exp Summary'!$AJ$9, 0)","v":{"v":0,"d":"$0.00"}}]
["MMA",null,null,{"$f":"Jurat!I$1","v":0},{"$f":"Jurat!D$33","v":"00:00:00"},"Q3","2017-09-30","Summary","Operating Expense","Medical Benefits Expense","Hospital Services",2.3,"Outpatient FFS: ER",{"$f":"IFERROR('MMA Rev-Exp Summary'!$Z$22/'MMA Rev-Exp Summary'!$Z$9, 0)","v":{"v":0,"d":"$0.00"}},{"$f":"IFERROR('MMA Rev-Exp Summary'!$AA$22/'MMA Rev-Exp Summary'!$AA$9, 0)","v":{"v":0,"d":"$0.00"}},{"$f":"IFERROR('MMA Rev-Exp Summary'!$AB$22/'MMA Rev-Exp Summary'!$AB$9, 0)","v":{"v":0,"d":"$0.00"}},{"$f":"IFERROR('MMA Rev-Exp Summary'!$AC$22/'MMA Rev-Exp Summary'!$AC$9, 0)","v":{"v":0,"d":"$0.00"}},{"$f":"IFERROR('MMA Rev-Exp Summary'!$AD$22/'MMA Rev-Exp Summary'!$AD$9, 0)","v":{"v":0,"d":"$0.00"}},{"$f":"IFERROR('MMA Rev-Exp Summary'!$AE$22/'MMA Rev-Exp Summary'!$AE$9, 0)","v":{"v":0,"d":"$0.00"}},{"$f":"IFERROR('MMA Rev-Exp Summary'!$AF$22/'MMA Rev-Exp Summary'!$AF$9, 0)","v":{"v":0,"d":"$0.00"}},{"$f":"IFERROR('MMA Rev-Exp Summary'!$AG$22/'MMA Rev-Exp Summary'!$AG$9, 0)","v":{"v":0,"d":"$0.00"}},{"$f":"IFERROR('MMA Rev-Exp Summary'!$AH$22/'MMA Rev-Exp Summary'!$AH$9, 0)","v":{"v":0,"d":"$0.00"}},{"$f":"IFERROR('MMA Rev-Exp Summary'!$AI$22/'MMA Rev-Exp Summary'!$AI$9, 0)","v":{"v":0,"d":"$0.00"}},{"$f":"IFERROR('MMA Rev-Exp Summary'!$AJ$22/'MMA Rev-Exp Summary'!$AJ$9, 0)","v":{"v":0,"d":"$0.00"}}]
["MMA",null,null,{"$f":"Jurat!I$1","v":0},{"$f":"Jurat!D$33","v":"00:00:00"},"Q3","2017-09-30","Summary","Operating Expense","Medical Benefits Expense","Hospital Services",2.4,"Outpatient FFS: Other than ER ",{"$f":"IFERROR('MMA Rev-Exp Summary'!$Z$23/'MMA Rev-Exp Summary'!$Z$9, 0)","v":{"v":0,"d":"$0.00"}},{"$f":"IFERROR('MMA Rev-Exp Summary'!$AA$23/'MMA Rev-Exp Summary'!$AA$9, 0)","v":{"v":0,"d":"$0.00"}},{"$f":"IFERROR('MMA Rev-Exp Summary'!$AB$23/'MMA Rev-Exp Summary'!$AB$9, 0)","v":{"v":0,"d":"$0.00"}},{"$f":"IFERROR('MMA Rev-Exp Summary'!$AC$23/'MMA Rev-Exp Summary'!$AC$9, 0)","v":{"v":0,"d":"$0.00"}},{"$f":"IFERROR('MMA Rev-Exp Summary'!$AD$23/'MMA Rev-Exp Summary'!$AD$9, 0)","v":{"v":0,"d":"$0.00"}},{"$f":"IFERROR('MMA Rev-Exp Summary'!$AE$23/'MMA Rev-Exp Summary'!$AE$9, 0)","v":{"v":0,"d":"$0.00"}},{"$f":"IFERROR('MMA Rev-Exp Summary'!$AF$23/'MMA Rev-Exp Summary'!$AF$9, 0)","v":{"v":0,"d":"$0.00"}},{"$f":"IFERROR('MMA Rev-Exp Summary'!$AG$23/'MMA Rev-Exp Summary'!$AG$9, 0)","v":{"v":0,"d":"$0.00"}},{"$f":"IFERROR('MMA Rev-Exp Summary'!$AH$23/'MMA Rev-Exp Summary'!$AH$9, 0)","v":{"v":0,"d":"$0.00"}},{"$f":"IFERROR('MMA Rev-Exp Summary'!$AI$23/'MMA Rev-Exp Summary'!$AI$9, 0)","v":{"v":0,"d":"$0.00"}},{"$f":"IFERROR('MMA Rev-Exp Summary'!$AJ$23/'MMA Rev-Exp Summary'!$AJ$9, 0)","v":{"v":0,"d":"$0.00"}}]
["MMA",null,null,{"$f":"Jurat!I$1","v":0},{"$f":"Jurat!D$33","v":"00:00:00"},"Q3","2017-09-30","Summary","Operating Expense","Medical Benefits Expense","Hospital Services",2.5,"Ending IBNP for Outpatient Hospital Services",{"$f":"IFERROR('MMA Rev-Exp Summary'!$Z$24/'MMA Rev-Exp Summary'!$Z$9, 0)","v":{"v":0,"d":"$0.00"}},{"$f":"IFERROR('MMA Rev-Exp Summary'!$AA$24/'MMA Rev-Exp Summary'!$AA$9, 0)","v":{"v":0,"d":"$0.00"}},{"$f":"IFERROR('MMA Rev-Exp Summary'!$AB$24/'MMA Rev-Exp Summary'!$AB$9, 0)","v":{"v":0,"d":"$0.00"}},{"$f":"IFERROR('MMA Rev-Exp Summary'!$AC$24/'MMA Rev-Exp Summary'!$AC$9, 0)","v":{"v":0,"d":"$0.00"}},{"$f":"IFERROR('MMA Rev-Exp Summary'!$AD$24/'MMA Rev-Exp Summary'!$AD$9, 0)","v":{"v":0,"d":"$0.00"}},{"$f":"IFERROR('MMA Rev-Exp Summary'!$AE$24/'MMA Rev-Exp Summary'!$AE$9, 0)","v":{"v":0,"d":"$0.00"}},{"$f":"IFERROR('MMA Rev-Exp Summary'!$AF$24/'MMA Rev-Exp Summary'!$AF$9, 0)","v":{"v":0,"d":"$0.00"}},{"$f":"IFERROR('MMA Rev-Exp Summary'!$AG$24/'MMA Rev-Exp Summary'!$AG$9, 0)","v":{"v":0,"d":"$0.00"}},{"$f":"IFERROR('MMA Rev-Exp Summary'!$AH$24/'MMA Rev-Exp Summary'!$AH$9, 0)","v":{"v":0,"d":"$0.00"}},{"$f":"IFERROR('MMA Rev-Exp Summary'!$AI$24/'MMA Rev-Exp Summary'!$AI$9, 0)","v":{"v":0,"d":"$0.00"}},{"$f":"IFERROR('MMA Rev-Exp Summary'!$AJ$24/'MMA Rev-Exp Summary'!$AJ$9, 0)","v":{"v":0,"d":"$0.00"}}]
["MMA",null,null,{"$f":"Jurat!I$1","v":0},{"$f":"Jurat!D$33","v":"00:00:00"},"Q3","2017-09-30","Summary","Operating Expense","Medical Benefits Expense","Hospital Services","2.6","Subcapitated Hospital Services",{"$f":"IFERROR('MMA Rev-Exp Summary'!$Z$25/'MMA Rev-Exp Summary'!$Z$9, 0)","v":{"v":0,"d":"$0.00"}},{"$f":"IFERROR('MMA Rev-Exp Summary'!$AA$25/'MMA Rev-Exp Summary'!$AA$9, 0)","v":{"v":0,"d":"$0.00"}},{"$f":"IFERROR('MMA Rev-Exp Summary'!$AB$25/'MMA Rev-Exp Summary'!$AB$9, 0)","v":{"v":0,"d":"$0.00"}},{"$f":"IFERROR('MMA Rev-Exp Summary'!$AC$25/'MMA Rev-Exp Summary'!$AC$9, 0)","v":{"v":0,"d":"$0.00"}},{"$f":"IFERROR('MMA Rev-Exp Summary'!$AD$25/'MMA Rev-Exp Summary'!$AD$9, 0)","v":{"v":0,"d":"$0.00"}},{"$f":"IFERROR('MMA Rev-Exp Summary'!$AE$25/'MMA Rev-Exp Summary'!$AE$9, 0)","v":{"v":0,"d":"$0.00"}},{"$f":"IFERROR('MMA Rev-Exp Summary'!$AF$25/'MMA Rev-Exp Summary'!$AF$9, 0)","v":{"v":0,"d":"$0.00"}},{"$f":"IFERROR('MMA Rev-Exp Summary'!$AG$25/'MMA Rev-Exp Summary'!$AG$9, 0)","v":{"v":0,"d":"$0.00"}},{"$f":"IFERROR('MMA Rev-Exp Summary'!$AH$25/'MMA Rev-Exp Summary'!$AH$9, 0)","v":{"v":0,"d":"$0.00"}},{"$f":"IFERROR('MMA Rev-Exp Summary'!$AI$25/'MMA Rev-Exp Summary'!$AI$9, 0)","v":{"v":0,"d":"$0.00"}},{"$f":"IFERROR('MMA Rev-Exp Summary'!$AJ$25/'MMA Rev-Exp Summary'!$AJ$9, 0)","v":{"v":0,"d":"$0.00"}}]
["MMA",null,null,{"$f":"Jurat!I$1","v":0},{"$f":"Jurat!D$33","v":"00:00:00"},"Q3","2017-09-30","Summary","Operating Expense","Medical Benefits Expense","Hospital Services","2.7","Hospital Settlements",{"$f":"IFERROR('MMA Rev-Exp Summary'!$Z$26/'MMA Rev-Exp Summary'!$Z$9, 0)","v":{"v":0,"d":"$0.00"}},{"$f":"IFERROR('MMA Rev-Exp Summary'!$AA$26/'MMA Rev-Exp Summary'!$AA$9, 0)","v":{"v":0,"d":"$0.00"}},{"$f":"IFERROR('MMA Rev-Exp Summary'!$AB$26/'MMA Rev-Exp Summary'!$AB$9, 0)","v":{"v":0,"d":"$0.00"}},{"$f":"IFERROR('MMA Rev-Exp Summary'!$AC$26/'MMA Rev-Exp Summary'!$AC$9, 0)","v":{"v":0,"d":"$0.00"}},{"$f":"IFERROR('MMA Rev-Exp Summary'!$AD$26/'MMA Rev-Exp Summary'!$AD$9, 0)","v":{"v":0,"d":"$0.00"}},{"$f":"IFERROR('MMA Rev-Exp Summary'!$AE$26/'MMA Rev-Exp Summary'!$AE$9, 0)","v":{"v":0,"d":"$0.00"}},{"$f":"IFERROR('MMA Rev-Exp Summary'!$AF$26/'MMA Rev-Exp Summary'!$AF$9, 0)","v":{"v":0,"d":"$0.00"}},{"$f":"IFERROR('MMA Rev-Exp Summary'!$AG$26/'MMA Rev-Exp Summary'!$AG$9, 0)","v":{"v":0,"d":"$0.00"}},{"$f":"IFERROR('MMA Rev-Exp Summary'!$AH$26/'MMA Rev-Exp Summary'!$AH$9, 0)","v":{"v":0,"d":"$0.00"}},{"$f":"IFERROR('MMA Rev-Exp Summary'!$AI$26/'MMA Rev-Exp Summary'!$AI$9, 0)","v":{"v":0,"d":"$0.00"}},{"$f":"IFERROR('MMA Rev-Exp Summary'!$AJ$26/'MMA Rev-Exp Summary'!$AJ$9, 0)","v":{"v":0,"d":"$0.00"}}]
["MMA",null,null,{"$f":"Jurat!I$1","v":0},{"$f":"Jurat!D$33","v":"00:00:00"},"Q3","2017-09-30","Summary","Operating Expense","Medical Benefits Expense","Hospital Services","2.7.1","Transplant Services",{"$f":"IFERROR('MMA Rev-Exp Summary'!$Z$27/'MMA Rev-Exp Summary'!$Z$9, 0)","v":{"v":0,"d":"$0.00"}},{"$f":"IFERROR('MMA Rev-Exp Summary'!$AA$27/'MMA Rev-Exp Summary'!$AA$9, 0)","v":{"v":0,"d":"$0.00"}},{"$f":"IFERROR('MMA Rev-Exp Summary'!$AB$27/'MMA Rev-Exp Summary'!$AB$9, 0)","v":{"v":0,"d":"$0.00"}},{"$f":"IFERROR('MMA Rev-Exp Summary'!$AC$27/'MMA Rev-Exp Summary'!$AC$9, 0)","v":{"v":0,"d":"$0.00"}},{"$f":"IFERROR('MMA Rev-Exp Summary'!$AD$27/'MMA Rev-Exp Summary'!$AD$9, 0)","v":{"v":0,"d":"$0.00"}},{"$f":"IFERROR('MMA Rev-Exp Summary'!$AE$27/'MMA Rev-Exp Summary'!$AE$9, 0)","v":{"v":0,"d":"$0.00"}},{"$f":"IFERROR('MMA Rev-Exp Summary'!$AF$27/'MMA Rev-Exp Summary'!$AF$9, 0)","v":{"v":0,"d":"$0.00"}},{"$f":"IFERROR('MMA Rev-Exp Summary'!$AG$27/'MMA Rev-Exp Summary'!$AG$9, 0)","v":{"v":0,"d":"$0.00"}},{"$f":"IFERROR('MMA Rev-Exp Summary'!$AH$27/'MMA Rev-Exp Summary'!$AH$9, 0)","v":{"v":0,"d":"$0.00"}},{"$f":"IFERROR('MMA Rev-Exp Summary'!$AI$27/'MMA Rev-Exp Summary'!$AI$9, 0)","v":{"v":0,"d":"$0.00"}},{"$f":"IFERROR('MMA Rev-Exp Summary'!$AJ$27/'MMA Rev-Exp Summary'!$AJ$9, 0)","v":{"v":0,"d":"$0.00"}}]
["MMA",null,null,{"$f":"Jurat!I$1","v":0},{"$f":"Jurat!D$33","v":"00:00:00"},"Q3","2017-09-30","Summary","Operating Expense","Medical Benefits Expense","Professional Services",3.1,"Primary Care FFS",{"$f":"IFERROR('MMA Rev-Exp Summary'!$Z$29/'MMA Rev-Exp Summary'!$Z$9, 0)","v":{"v":0,"d":"$0.00"}},{"$f":"IFERROR('MMA Rev-Exp Summary'!$AA$29/'MMA Rev-Exp Summary'!$AA$9, 0)","v":{"v":0,"d":"$0.00"}},{"$f":"IFERROR('MMA Rev-Exp Summary'!$AB$29/'MMA Rev-Exp Summary'!$AB$9, 0)","v":{"v":0,"d":"$0.00"}},{"$f":"IFERROR('MMA Rev-Exp Summary'!$AC$29/'MMA Rev-Exp Summary'!$AC$9, 0)","v":{"v":0,"d":"$0.00"}},{"$f":"IFERROR('MMA Rev-Exp Summary'!$AD$29/'MMA Rev-Exp Summary'!$AD$9, 0)","v":{"v":0,"d":"$0.00"}},{"$f":"IFERROR('MMA Rev-Exp Summary'!$AE$29/'MMA Rev-Exp Summary'!$AE$9, 0)","v":{"v":0,"d":"$0.00"}},{"$f":"IFERROR('MMA Rev-Exp Summary'!$AF$29/'MMA Rev-Exp Summary'!$AF$9, 0)","v":{"v":0,"d":"$0.00"}},{"$f":"IFERROR('MMA Rev-Exp Summary'!$AG$29/'MMA Rev-Exp Summary'!$AG$9, 0)","v":{"v":0,"d":"$0.00"}},{"$f":"IFERROR('MMA Rev-Exp Summary'!$AH$29/'MMA Rev-Exp Summary'!$AH$9, 0)","v":{"v":0,"d":"$0.00"}},{"$f":"IFERROR('MMA Rev-Exp Summary'!$AI$29/'MMA Rev-Exp Summary'!$AI$9, 0)","v":{"v":0,"d":"$0.00"}},{"$f":"IFERROR('MMA Rev-Exp Summary'!$AJ$29/'MMA Rev-Exp Summary'!$AJ$9, 0)","v":{"v":0,"d":"$0.00"}}]
["MMA",null,null,{"$f":"Jurat!I$1","v":0},{"$f":"Jurat!D$33","v":"00:00:00"},"Q3","2017-09-30","Summary","Operating Expense","Medical Benefits Expense","Professional Services",3.2,"Specialty Care FFS",{"$f":"IFERROR('MMA Rev-Exp Summary'!$Z$30/'MMA Rev-Exp Summary'!$Z$9, 0)","v":{"v":0,"d":"$0.00"}},{"$f":"IFERROR('MMA Rev-Exp Summary'!$AA$30/'MMA Rev-Exp Summary'!$AA$9, 0)","v":{"v":0,"d":"$0.00"}},{"$f":"IFERROR('MMA Rev-Exp Summary'!$AB$30/'MMA Rev-Exp Summary'!$AB$9, 0)","v":{"v":0,"d":"$0.00"}},{"$f":"IFERROR('MMA Rev-Exp Summary'!$AC$30/'MMA Rev-Exp Summary'!$AC$9, 0)","v":{"v":0,"d":"$0.00"}},{"$f":"IFERROR('MMA Rev-Exp Summary'!$AD$30/'MMA Rev-Exp Summary'!$AD$9, 0)","v":{"v":0,"d":"$0.00"}},{"$f":"IFERROR('MMA Rev-Exp Summary'!$AE$30/'MMA Rev-Exp Summary'!$AE$9, 0)","v":{"v":0,"d":"$0.00"}},{"$f":"IFERROR('MMA Rev-Exp Summary'!$AF$30/'MMA Rev-Exp Summary'!$AF$9, 0)","v":{"v":0,"d":"$0.00"}},{"$f":"IFERROR('MMA Rev-Exp Summary'!$AG$30/'MMA Rev-Exp Summary'!$AG$9, 0)","v":{"v":0,"d":"$0.00"}},{"$f":"IFERROR('MMA Rev-Exp Summary'!$AH$30/'MMA Rev-Exp Summary'!$AH$9, 0)","v":{"v":0,"d":"$0.00"}},{"$f":"IFERROR('MMA Rev-Exp Summary'!$AI$30/'MMA Rev-Exp Summary'!$AI$9, 0)","v":{"v":0,"d":"$0.00"}},{"$f":"IFERROR('MMA Rev-Exp Summary'!$AJ$30/'MMA Rev-Exp Summary'!$AJ$9, 0)","v":{"v":0,"d":"$0.00"}}]
["MMA",null,null,{"$f":"Jurat!I$1","v":0},{"$f":"Jurat!D$33","v":"00:00:00"},"Q3","2017-09-30","Summary","Operating Expense","Medical Benefits Expense","Professional Services",3.3,"Other Professional FFS",{"$f":"IFERROR('MMA Rev-Exp Summary'!$Z$31/'MMA Rev-Exp Summary'!$Z$9, 0)","v":{"v":0,"d":"$0.00"}},{"$f":"IFERROR('MMA Rev-Exp Summary'!$AA$31/'MMA Rev-Exp Summary'!$AA$9, 0)","v":{"v":0,"d":"$0.00"}},{"$f":"IFERROR('MMA Rev-Exp Summary'!$AB$31/'MMA Rev-Exp Summary'!$AB$9, 0)","v":{"v":0,"d":"$0.00"}},{"$f":"IFERROR('MMA Rev-Exp Summary'!$AC$31/'MMA Rev-Exp Summary'!$AC$9, 0)","v":{"v":0,"d":"$0.00"}},{"$f":"IFERROR('MMA Rev-Exp Summary'!$AD$31/'MMA Rev-Exp Summary'!$AD$9, 0)","v":{"v":0,"d":"$0.00"}},{"$f":"IFERROR('MMA Rev-Exp Summary'!$AE$31/'MMA Rev-Exp Summary'!$AE$9, 0)","v":{"v":0,"d":"$0.00"}},{"$f":"IFERROR('MMA Rev-Exp Summary'!$AF$31/'MMA Rev-Exp Summary'!$AF$9, 0)","v":{"v":0,"d":"$0.00"}},{"$f":"IFERROR('MMA Rev-Exp Summary'!$AG$31/'MMA Rev-Exp Summary'!$AG$9, 0)","v":{"v":0,"d":"$0.00"}},{"$f":"IFERROR('MMA Rev-Exp Summary'!$AH$31/'MMA Rev-Exp Summary'!$AH$9, 0)","v":{"v":0,"d":"$0.00"}},{"$f":"IFERROR('MMA Rev-Exp Summary'!$AI$31/'MMA Rev-Exp Summary'!$AI$9, 0)","v":{"v":0,"d":"$0.00"}},{"$f":"IFERROR('MMA Rev-Exp Summary'!$AJ$31/'MMA Rev-Exp Summary'!$AJ$9, 0)","v":{"v":0,"d":"$0.00"}}]
["MMA",null,null,{"$f":"Jurat!I$1","v":0},{"$f":"Jurat!D$33","v":"00:00:00"},"Q3","2017-09-30","Summary","Operating Expense","Medical Benefits Expense","Professional Services","3.4","§ 1202 PCP Payments to providers",{"$f":"IFERROR('MMA Rev-Exp Summary'!$Z$32/'MMA Rev-Exp Summary'!$Z$9, 0)","v":{"v":0,"d":"$0.00"}},{"$f":"IFERROR('MMA Rev-Exp Summary'!$AA$32/'MMA Rev-Exp Summary'!$AA$9, 0)","v":{"v":0,"d":"$0.00"}},{"$f":"IFERROR('MMA Rev-Exp Summary'!$AB$32/'MMA Rev-Exp Summary'!$AB$9, 0)","v":{"v":0,"d":"$0.00"}},{"$f":"IFERROR('MMA Rev-Exp Summary'!$AC$32/'MMA Rev-Exp Summary'!$AC$9, 0)","v":{"v":0,"d":"$0.00"}},{"$f":"IFERROR('MMA Rev-Exp Summary'!$AD$32/'MMA Rev-Exp Summary'!$AD$9, 0)","v":{"v":0,"d":"$0.00"}},{"$f":"IFERROR('MMA Rev-Exp Summary'!$AE$32/'MMA Rev-Exp Summary'!$AE$9, 0)","v":{"v":0,"d":"$0.00"}},{"$f":"IFERROR('MMA Rev-Exp Summary'!$AF$32/'MMA Rev-Exp Summary'!$AF$9, 0)","v":{"v":0,"d":"$0.00"}},{"$f":"IFERROR('MMA Rev-Exp Summary'!$AG$32/'MMA Rev-Exp Summary'!$AG$9, 0)","v":{"v":0,"d":"$0.00"}},{"$f":"IFERROR('MMA Rev-Exp Summary'!$AH$32/'MMA Rev-Exp Summary'!$AH$9, 0)","v":{"v":0,"d":"$0.00"}},{"$f":"IFERROR('MMA Rev-Exp Summary'!$AI$32/'MMA Rev-Exp Summary'!$AI$9, 0)","v":{"v":0,"d":"$0.00"}},{"$f":"IFERROR('MMA Rev-Exp Summary'!$AJ$32/'MMA Rev-Exp Summary'!$AJ$9, 0)","v":{"v":0,"d":"$0.00"}}]
["MMA",null,null,{"$f":"Jurat!I$1","v":0},{"$f":"Jurat!D$33","v":"00:00:00"},"Q3","2017-09-30","Summary","Operating Expense","Medical Benefits Expense","Professional Services","3.5","Subcapitated Professional Services",{"$f":"IFERROR('MMA Rev-Exp Summary'!$Z$33/'MMA Rev-Exp Summary'!$Z$9, 0)","v":{"v":0,"d":"$0.00"}},{"$f":"IFERROR('MMA Rev-Exp Summary'!$AA$33/'MMA Rev-Exp Summary'!$AA$9, 0)","v":{"v":0,"d":"$0.00"}},{"$f":"IFERROR('MMA Rev-Exp Summary'!$AB$33/'MMA Rev-Exp Summary'!$AB$9, 0)","v":{"v":0,"d":"$0.00"}},{"$f":"IFERROR('MMA Rev-Exp Summary'!$AC$33/'MMA Rev-Exp Summary'!$AC$9, 0)","v":{"v":0,"d":"$0.00"}},{"$f":"IFERROR('MMA Rev-Exp Summary'!$AD$33/'MMA Rev-Exp Summary'!$AD$9, 0)","v":{"v":0,"d":"$0.00"}},{"$f":"IFERROR('MMA Rev-Exp Summary'!$AE$33/'MMA Rev-Exp Summary'!$AE$9, 0)","v":{"v":0,"d":"$0.00"}},{"$f":"IFERROR('MMA Rev-Exp Summary'!$AF$33/'MMA Rev-Exp Summary'!$AF$9, 0)","v":{"v":0,"d":"$0.00"}},{"$f":"IFERROR('MMA Rev-Exp Summary'!$AG$33/'MMA Rev-Exp Summary'!$AG$9, 0)","v":{"v":0,"d":"$0.00"}},{"$f":"IFERROR('MMA Rev-Exp Summary'!$AH$33/'MMA Rev-Exp Summary'!$AH$9, 0)","v":{"v":0,"d":"$0.00"}},{"$f":"IFERROR('MMA Rev-Exp Summary'!$AI$33/'MMA Rev-Exp Summary'!$AI$9, 0)","v":{"v":0,"d":"$0.00"}},{"$f":"IFERROR('MMA Rev-Exp Summary'!$AJ$33/'MMA Rev-Exp Summary'!$AJ$9, 0)","v":{"v":0,"d":"$0.00"}}]
["MMA",null,null,{"$f":"Jurat!I$1","v":0},{"$f":"Jurat!D$33","v":"00:00:00"},"Q3","2017-09-30","Summary","Operating Expense","Medical Benefits Expense","Professional Services","3.6","Ending IBNP for Professional Services",{"$f":"IFERROR('MMA Rev-Exp Summary'!$Z$34/'MMA Rev-Exp Summary'!$Z$9, 0)","v":{"v":0,"d":"$0.00"}},{"$f":"IFERROR('MMA Rev-Exp Summary'!$AA$34/'MMA Rev-Exp Summary'!$AA$9, 0)","v":{"v":0,"d":"$0.00"}},{"$f":"IFERROR('MMA Rev-Exp Summary'!$AB$34/'MMA Rev-Exp Summary'!$AB$9, 0)","v":{"v":0,"d":"$0.00"}},{"$f":"IFERROR('MMA Rev-Exp Summary'!$AC$34/'MMA Rev-Exp Summary'!$AC$9, 0)","v":{"v":0,"d":"$0.00"}},{"$f":"IFERROR('MMA Rev-Exp Summary'!$AD$34/'MMA Rev-Exp Summary'!$AD$9, 0)","v":{"v":0,"d":"$0.00"}},{"$f":"IFERROR('MMA Rev-Exp Summary'!$AE$34/'MMA Rev-Exp Summary'!$AE$9, 0)","v":{"v":0,"d":"$0.00"}},{"$f":"IFERROR('MMA Rev-Exp Summary'!$AF$34/'MMA Rev-Exp Summary'!$AF$9, 0)","v":{"v":0,"d":"$0.00"}},{"$f":"IFERROR('MMA Rev-Exp Summary'!$AG$34/'MMA Rev-Exp Summary'!$AG$9, 0)","v":{"v":0,"d":"$0.00"}},{"$f":"IFERROR('MMA Rev-Exp Summary'!$AH$34/'MMA Rev-Exp Summary'!$AH$9, 0)","v":{"v":0,"d":"$0.00"}},{"$f":"IFERROR('MMA Rev-Exp Summary'!$AI$34/'MMA Rev-Exp Summary'!$AI$9, 0)","v":{"v":0,"d":"$0.00"}},{"$f":"IFERROR('MMA Rev-Exp Summary'!$AJ$34/'MMA Rev-Exp Summary'!$AJ$9, 0)","v":{"v":0,"d":"$0.00"}}]
["MMA",null,null,{"$f":"Jurat!I$1","v":0},{"$f":"Jurat!D$33","v":"00:00:00"},"Q3","2017-09-30","Summary","Operating Expense","Medical Benefits Expense","Professional Services","3.7","Professional Services Settlements",{"$f":"IFERROR('MMA Rev-Exp Summary'!$Z$35/'MMA Rev-Exp Summary'!$Z$9, 0)","v":{"v":0,"d":"$0.00"}},{"$f":"IFERROR('MMA Rev-Exp Summary'!$AA$35/'MMA Rev-Exp Summary'!$AA$9, 0)","v":{"v":0,"d":"$0.00"}},{"$f":"IFERROR('MMA Rev-Exp Summary'!$AB$35/'MMA Rev-Exp Summary'!$AB$9, 0)","v":{"v":0,"d":"$0.00"}},{"$f":"IFERROR('MMA Rev-Exp Summary'!$AC$35/'MMA Rev-Exp Summary'!$AC$9, 0)","v":{"v":0,"d":"$0.00"}},{"$f":"IFERROR('MMA Rev-Exp Summary'!$AD$35/'MMA Rev-Exp Summary'!$AD$9, 0)","v":{"v":0,"d":"$0.00"}},{"$f":"IFERROR('MMA Rev-Exp Summary'!$AE$35/'MMA Rev-Exp Summary'!$AE$9, 0)","v":{"v":0,"d":"$0.00"}},{"$f":"IFERROR('MMA Rev-Exp Summary'!$AF$35/'MMA Rev-Exp Summary'!$AF$9, 0)","v":{"v":0,"d":"$0.00"}},{"$f":"IFERROR('MMA Rev-Exp Summary'!$AG$35/'MMA Rev-Exp Summary'!$AG$9, 0)","v":{"v":0,"d":"$0.00"}},{"$f":"IFERROR('MMA Rev-Exp Summary'!$AH$35/'MMA Rev-Exp Summary'!$AH$9, 0)","v":{"v":0,"d":"$0.00"}},{"$f":"IFERROR('MMA Rev-Exp Summary'!$AI$35/'MMA Rev-Exp Summary'!$AI$9, 0)","v":{"v":0,"d":"$0.00"}},{"$f":"IFERROR('MMA Rev-Exp Summary'!$AJ$35/'MMA Rev-Exp Summary'!$AJ$9, 0)","v":{"v":0,"d":"$0.00"}}]
["MMA",null,null,{"$f":"Jurat!I$1","v":0},{"$f":"Jurat!D$33","v":"00:00:00"},"Q3","2017-09-30","Summary","Operating Expense","Medical Benefits Expense","Maternity Services","4.1.1","Maternity Services",{"$f":"IFERROR('MMA Rev-Exp Summary'!$Z$37/'MMA Rev-Exp Summary'!$Z$9, 0)","v":{"v":0,"d":"$0.00"}},{"$f":"IFERROR('MMA Rev-Exp Summary'!$AA$37/'MMA Rev-Exp Summary'!$AA$9, 0)","v":{"v":0,"d":"$0.00"}},{"$f":"IFERROR('MMA Rev-Exp Summary'!$AB$37/'MMA Rev-Exp Summary'!$AB$9, 0)","v":{"v":0,"d":"$0.00"}},{"$f":"IFERROR('MMA Rev-Exp Summary'!$AC$37/'MMA Rev-Exp Summary'!$AC$9, 0)","v":{"v":0,"d":"$0.00"}},{"$f":"IFERROR('MMA Rev-Exp Summary'!$AD$37/'MMA Rev-Exp Summary'!$AD$9, 0)","v":{"v":0,"d":"$0.00"}},{"$f":"IFERROR('MMA Rev-Exp Summary'!$AE$37/'MMA Rev-Exp Summary'!$AE$9, 0)","v":{"v":0,"d":"$0.00"}},{"$f":"IFERROR('MMA Rev-Exp Summary'!$AF$37/'MMA Rev-Exp Summary'!$AF$9, 0)","v":{"v":0,"d":"$0.00"}},{"$f":"IFERROR('MMA Rev-Exp Summary'!$AG$37/'MMA Rev-Exp Summary'!$AG$9, 0)","v":{"v":0,"d":"$0.00"}},{"$f":"IFERROR('MMA Rev-Exp Summary'!$AH$37/'MMA Rev-Exp Summary'!$AH$9, 0)","v":{"v":0,"d":"$0.00"}},{"$f":"IFERROR('MMA Rev-Exp Summary'!$AI$37/'MMA Rev-Exp Summary'!$AI$9, 0)","v":{"v":0,"d":"$0.00"}},{"$f":"IFERROR('MMA Rev-Exp Summary'!$AJ$37/'MMA Rev-Exp Summary'!$AJ$9, 0)","v":{"v":0,"d":"$0.00"}}]
["MMA",null,null,{"$f":"Jurat!I$1","v":0},{"$f":"Jurat!D$33","v":"00:00:00"},"Q3","2017-09-30","Summary","Operating Expense","Medical Benefits Expense","Maternity Services","4.2.1","Ending IBNP for Maternity Services",{"$f":"IFERROR('MMA Rev-Exp Summary'!$Z$38/'MMA Rev-Exp Summary'!$Z$9, 0)","v":{"v":0,"d":"$0.00"}},{"$f":"IFERROR('MMA Rev-Exp Summary'!$AA$38/'MMA Rev-Exp Summary'!$AA$9, 0)","v":{"v":0,"d":"$0.00"}},{"$f":"IFERROR('MMA Rev-Exp Summary'!$AB$38/'MMA Rev-Exp Summary'!$AB$9, 0)","v":{"v":0,"d":"$0.00"}},{"$f":"IFERROR('MMA Rev-Exp Summary'!$AC$38/'MMA Rev-Exp Summary'!$AC$9, 0)","v":{"v":0,"d":"$0.00"}},{"$f":"IFERROR('MMA Rev-Exp Summary'!$AD$38/'MMA Rev-Exp Summary'!$AD$9, 0)","v":{"v":0,"d":"$0.00"}},{"$f":"IFERROR('MMA Rev-Exp Summary'!$AE$38/'MMA Rev-Exp Summary'!$AE$9, 0)","v":{"v":0,"d":"$0.00"}},{"$f":"IFERROR('MMA Rev-Exp Summary'!$AF$38/'MMA Rev-Exp Summary'!$AF$9, 0)","v":{"v":0,"d":"$0.00"}},{"$f":"IFERROR('MMA Rev-Exp Summary'!$AG$38/'MMA Rev-Exp Summary'!$AG$9, 0)","v":{"v":0,"d":"$0.00"}},{"$f":"IFERROR('MMA Rev-Exp Summary'!$AH$38/'MMA Rev-Exp Summary'!$AH$9, 0)","v":{"v":0,"d":"$0.00"}},{"$f":"IFERROR('MMA Rev-Exp Summary'!$AI$38/'MMA Rev-Exp Summary'!$AI$9, 0)","v":{"v":0,"d":"$0.00"}},{"$f":"IFERROR('MMA Rev-Exp Summary'!$AJ$38/'MMA Rev-Exp Summary'!$AJ$9, 0)","v":{"v":0,"d":"$0.00"}}]
["MMA",null,null,{"$f":"Jurat!I$1","v":0},{"$f":"Jurat!D$33","v":"00:00:00"},"Q3","2017-09-30","Summary","Operating Expense","Medical Benefits Expense","Maternity Services","4.3.1","Maternity Settlements",{"$f":"IFERROR('MMA Rev-Exp Summary'!$Z$39/'MMA Rev-Exp Summary'!$Z$9, 0)","v":{"v":0,"d":"$0.00"}},{"$f":"IFERROR('MMA Rev-Exp Summary'!$AA$39/'MMA Rev-Exp Summary'!$AA$9, 0)","v":{"v":0,"d":"$0.00"}},{"$f":"IFERROR('MMA Rev-Exp Summary'!$AB$39/'MMA Rev-Exp Summary'!$AB$9, 0)","v":{"v":0,"d":"$0.00"}},{"$f":"IFERROR('MMA Rev-Exp Summary'!$AC$39/'MMA Rev-Exp Summary'!$AC$9, 0)","v":{"v":0,"d":"$0.00"}},{"$f":"IFERROR('MMA Rev-Exp Summary'!$AD$39/'MMA Rev-Exp Summary'!$AD$9, 0)","v":{"v":0,"d":"$0.00"}},{"$f":"IFERROR('MMA Rev-Exp Summary'!$AE$39/'MMA Rev-Exp Summary'!$AE$9, 0)","v":{"v":0,"d":"$0.00"}},{"$f":"IFERROR('MMA Rev-Exp Summary'!$AF$39/'MMA Rev-Exp Summary'!$AF$9, 0)","v":{"v":0,"d":"$0.00"}},{"$f":"IFERROR('MMA Rev-Exp Summary'!$AG$39/'MMA Rev-Exp Summary'!$AG$9, 0)","v":{"v":0,"d":"$0.00"}},{"$f":"IFERROR('MMA Rev-Exp Summary'!$AH$39/'MMA Rev-Exp Summary'!$AH$9, 0)","v":{"v":0,"d":"$0.00"}},{"$f":"IFERROR('MMA Rev-Exp Summary'!$AI$39/'MMA Rev-Exp Summary'!$AI$9, 0)","v":{"v":0,"d":"$0.00"}},{"$f":"IFERROR('MMA Rev-Exp Summary'!$AJ$39/'MMA Rev-Exp Summary'!$AJ$9, 0)","v":{"v":0,"d":"$0.00"}}]
["MMA",null,null,{"$f":"Jurat!I$1","v":0},{"$f":"Jurat!D$33","v":"00:00:00"},"Q3","2017-09-30","Summary","Operating Expense","Medical Benefits Expense","Mental Health Services",5.1,"Mental Health & Substance Abuse FFS",{"$f":"IFERROR('MMA Rev-Exp Summary'!$Z$41/'MMA Rev-Exp Summary'!$Z$9, 0)","v":{"v":0,"d":"$0.00"}},{"$f":"IFERROR('MMA Rev-Exp Summary'!$AA$41/'MMA Rev-Exp Summary'!$AA$9, 0)","v":{"v":0,"d":"$0.00"}},{"$f":"IFERROR('MMA Rev-Exp Summary'!$AB$41/'MMA Rev-Exp Summary'!$AB$9, 0)","v":{"v":0,"d":"$0.00"}},{"$f":"IFERROR('MMA Rev-Exp Summary'!$AC$41/'MMA Rev-Exp Summary'!$AC$9, 0)","v":{"v":0,"d":"$0.00"}},{"$f":"IFERROR('MMA Rev-Exp Summary'!$AD$41/'MMA Rev-Exp Summary'!$AD$9, 0)","v":{"v":0,"d":"$0.00"}},{"$f":"IFERROR('MMA Rev-Exp Summary'!$AE$41/'MMA Rev-Exp Summary'!$AE$9, 0)","v":{"v":0,"d":"$0.00"}},{"$f":"IFERROR('MMA Rev-Exp Summary'!$AF$41/'MMA Rev-Exp Summary'!$AF$9, 0)","v":{"v":0,"d":"$0.00"}},{"$f":"IFERROR('MMA Rev-Exp Summary'!$AG$41/'MMA Rev-Exp Summary'!$AG$9, 0)","v":{"v":0,"d":"$0.00"}},{"$f":"IFERROR('MMA Rev-Exp Summary'!$AH$41/'MMA Rev-Exp Summary'!$AH$9, 0)","v":{"v":0,"d":"$0.00"}},{"$f":"IFERROR('MMA Rev-Exp Summary'!$AI$41/'MMA Rev-Exp Summary'!$AI$9, 0)","v":{"v":0,"d":"$0.00"}},{"$f":"IFERROR('MMA Rev-Exp Summary'!$AJ$41/'MMA Rev-Exp Summary'!$AJ$9, 0)","v":{"v":0,"d":"$0.00"}}]
["MMA",null,null,{"$f":"Jurat!I$1","v":0},{"$f":"Jurat!D$33","v":"00:00:00"},"Q3","2017-09-30","Summary","Operating Expense","Medical Benefits Expense","Mental Health Services",5.2,"Mental Health & Substance Abuse Subcapitation",{"$f":"IFERROR('MMA Rev-Exp Summary'!$Z$42/'MMA Rev-Exp Summary'!$Z$9, 0)","v":{"v":0,"d":"$0.00"}},{"$f":"IFERROR('MMA Rev-Exp Summary'!$AA$42/'MMA Rev-Exp Summary'!$AA$9, 0)","v":{"v":0,"d":"$0.00"}},{"$f":"IFERROR('MMA Rev-Exp Summary'!$AB$42/'MMA Rev-Exp Summary'!$AB$9, 0)","v":{"v":0,"d":"$0.00"}},{"$f":"IFERROR('MMA Rev-Exp Summary'!$AC$42/'MMA Rev-Exp Summary'!$AC$9, 0)","v":{"v":0,"d":"$0.00"}},{"$f":"IFERROR('MMA Rev-Exp Summary'!$AD$42/'MMA Rev-Exp Summary'!$AD$9, 0)","v":{"v":0,"d":"$0.00"}},{"$f":"IFERROR('MMA Rev-Exp Summary'!$AE$42/'MMA Rev-Exp Summary'!$AE$9, 0)","v":{"v":0,"d":"$0.00"}},{"$f":"IFERROR('MMA Rev-Exp Summary'!$AF$42/'MMA Rev-Exp Summary'!$AF$9, 0)","v":{"v":0,"d":"$0.00"}},{"$f":"IFERROR('MMA Rev-Exp Summary'!$AG$42/'MMA Rev-Exp Summary'!$AG$9, 0)","v":{"v":0,"d":"$0.00"}},{"$f":"IFERROR('MMA Rev-Exp Summary'!$AH$42/'MMA Rev-Exp Summary'!$AH$9, 0)","v":{"v":0,"d":"$0.00"}},{"$f":"IFERROR('MMA Rev-Exp Summary'!$AI$42/'MMA Rev-Exp Summary'!$AI$9, 0)","v":{"v":0,"d":"$0.00"}},{"$f":"IFERROR('MMA Rev-Exp Summary'!$AJ$42/'MMA Rev-Exp Summary'!$AJ$9, 0)","v":{"v":0,"d":"$0.00"}}]
["MMA",null,null,{"$f":"Jurat!I$1","v":0},{"$f":"Jurat!D$33","v":"00:00:00"},"Q3","2017-09-30","Summary","Operating Expense","Medical Benefits Expense","Mental Health Services",5.3,"Ending IBNP for Mental Health & Substance Abuse",{"$f":"IFERROR('MMA Rev-Exp Summary'!$Z$43/'MMA Rev-Exp Summary'!$Z$9, 0)","v":{"v":0,"d":"$0.00"}},{"$f":"IFERROR('MMA Rev-Exp Summary'!$AA$43/'MMA Rev-Exp Summary'!$AA$9, 0)","v":{"v":0,"d":"$0.00"}},{"$f":"IFERROR('MMA Rev-Exp Summary'!$AB$43/'MMA Rev-Exp Summary'!$AB$9, 0)","v":{"v":0,"d":"$0.00"}},{"$f":"IFERROR('MMA Rev-Exp Summary'!$AC$43/'MMA Rev-Exp Summary'!$AC$9, 0)","v":{"v":0,"d":"$0.00"}},{"$f":"IFERROR('MMA Rev-Exp Summary'!$AD$43/'MMA Rev-Exp Summary'!$AD$9, 0)","v":{"v":0,"d":"$0.00"}},{"$f":"IFERROR('MMA Rev-Exp Summary'!$AE$43/'MMA Rev-Exp Summary'!$AE$9, 0)","v":{"v":0,"d":"$0.00"}},{"$f":"IFERROR('MMA Rev-Exp Summary'!$AF$43/'MMA Rev-Exp Summary'!$AF$9, 0)","v":{"v":0,"d":"$0.00"}},{"$f":"IFERROR('MMA Rev-Exp Summary'!$AG$43/'MMA Rev-Exp Summary'!$AG$9, 0)","v":{"v":0,"d":"$0.00"}},{"$f":"IFERROR('MMA Rev-Exp Summary'!$AH$43/'MMA Rev-Exp Summary'!$AH$9, 0)","v":{"v":0,"d":"$0.00"}},{"$f":"IFERROR('MMA Rev-Exp Summary'!$AI$43/'MMA Rev-Exp Summary'!$AI$9, 0)","v":{"v":0,"d":"$0.00"}},{"$f":"IFERROR('MMA Rev-Exp Summary'!$AJ$43/'MMA Rev-Exp Summary'!$AJ$9, 0)","v":{"v":0,"d":"$0.00"}}]
["MMA",null,null,{"$f":"Jurat!I$1","v":0},{"$f":"Jurat!D$33","v":"00:00:00"},"Q3","2017-09-30","Summary","Operating Expense","Medical Benefits Expense","Mental Health Services","5.4","Mental Health Settlements",{"$f":"IFERROR('MMA Rev-Exp Summary'!$Z$44/'MMA Rev-Exp Summary'!$Z$9, 0)","v":{"v":0,"d":"$0.00"}},{"$f":"IFERROR('MMA Rev-Exp Summary'!$AA$44/'MMA Rev-Exp Summary'!$AA$9, 0)","v":{"v":0,"d":"$0.00"}},{"$f":"IFERROR('MMA Rev-Exp Summary'!$AB$44/'MMA Rev-Exp Summary'!$AB$9, 0)","v":{"v":0,"d":"$0.00"}},{"$f":"IFERROR('MMA Rev-Exp Summary'!$AC$44/'MMA Rev-Exp Summary'!$AC$9, 0)","v":{"v":0,"d":"$0.00"}},{"$f":"IFERROR('MMA Rev-Exp Summary'!$AD$44/'MMA Rev-Exp Summary'!$AD$9, 0)","v":{"v":0,"d":"$0.00"}},{"$f":"IFERROR('MMA Rev-Exp Summary'!$AE$44/'MMA Rev-Exp Summary'!$AE$9, 0)","v":{"v":0,"d":"$0.00"}},{"$f":"IFERROR('MMA Rev-Exp Summary'!$AF$44/'MMA Rev-Exp Summary'!$AF$9, 0)","v":{"v":0,"d":"$0.00"}},{"$f":"IFERROR('MMA Rev-Exp Summary'!$AG$44/'MMA Rev-Exp Summary'!$AG$9, 0)","v":{"v":0,"d":"$0.00"}},{"$f":"IFERROR('MMA Rev-Exp Summary'!$AH$44/'MMA Rev-Exp Summary'!$AH$9, 0)","v":{"v":0,"d":"$0.00"}},{"$f":"IFERROR('MMA Rev-Exp Summary'!$AI$44/'MMA Rev-Exp Summary'!$AI$9, 0)","v":{"v":0,"d":"$0.00"}},{"$f":"IFERROR('MMA Rev-Exp Summary'!$AJ$44/'MMA Rev-Exp Summary'!$AJ$9, 0)","v":{"v":0,"d":"$0.00"}}]
["MMA",null,null,{"$f":"Jurat!I$1","v":0},{"$f":"Jurat!D$33","v":"00:00:00"},"Q3","2017-09-30","Summary","Operating Expense","Medical Benefits Expense","Dental Services",6.1,"Dental FFS",{"$f":"IFERROR('MMA Rev-Exp Summary'!$Z$46/'MMA Rev-Exp Summary'!$Z$9, 0)","v":{"v":0,"d":"$0.00"}},{"$f":"IFERROR('MMA Rev-Exp Summary'!$AA$46/'MMA Rev-Exp Summary'!$AA$9, 0)","v":{"v":0,"d":"$0.00"}},{"$f":"IFERROR('MMA Rev-Exp Summary'!$AB$46/'MMA Rev-Exp Summary'!$AB$9, 0)","v":{"v":0,"d":"$0.00"}},{"$f":"IFERROR('MMA Rev-Exp Summary'!$AC$46/'MMA Rev-Exp Summary'!$AC$9, 0)","v":{"v":0,"d":"$0.00"}},{"$f":"IFERROR('MMA Rev-Exp Summary'!$AD$46/'MMA Rev-Exp Summary'!$AD$9, 0)","v":{"v":0,"d":"$0.00"}},{"$f":"IFERROR('MMA Rev-Exp Summary'!$AE$46/'MMA Rev-Exp Summary'!$AE$9, 0)","v":{"v":0,"d":"$0.00"}},{"$f":"IFERROR('MMA Rev-Exp Summary'!$AF$46/'MMA Rev-Exp Summary'!$AF$9, 0)","v":{"v":0,"d":"$0.00"}},{"$f":"IFERROR('MMA Rev-Exp Summary'!$AG$46/'MMA Rev-Exp Summary'!$AG$9, 0)","v":{"v":0,"d":"$0.00"}},{"$f":"IFERROR('MMA Rev-Exp Summary'!$AH$46/'MMA Rev-Exp Summary'!$AH$9, 0)","v":{"v":0,"d":"$0.00"}},{"$f":"IFERROR('MMA Rev-Exp Summary'!$AI$46/'MMA Rev-Exp Summary'!$AI$9, 0)","v":{"v":0,"d":"$0.00"}},{"$f":"IFERROR('MMA Rev-Exp Summary'!$AJ$46/'MMA Rev-Exp Summary'!$AJ$9, 0)","v":{"v":0,"d":"$0.00"}}]
["MMA",null,null,{"$f":"Jurat!I$1","v":0},{"$f":"Jurat!D$33","v":"00:00:00"},"Q3","2017-09-30","Summary","Operating Expense","Medical Benefits Expense","Dental Services",6.2,"Dental Subcapitation",{"$f":"IFERROR('MMA Rev-Exp Summary'!$Z$47/'MMA Rev-Exp Summary'!$Z$9, 0)","v":{"v":0,"d":"$0.00"}},{"$f":"IFERROR('MMA Rev-Exp Summary'!$AA$47/'MMA Rev-Exp Summary'!$AA$9, 0)","v":{"v":0,"d":"$0.00"}},{"$f":"IFERROR('MMA Rev-Exp Summary'!$AB$47/'MMA Rev-Exp Summary'!$AB$9, 0)","v":{"v":0,"d":"$0.00"}},{"$f":"IFERROR('MMA Rev-Exp Summary'!$AC$47/'MMA Rev-Exp Summary'!$AC$9, 0)","v":{"v":0,"d":"$0.00"}},{"$f":"IFERROR('MMA Rev-Exp Summary'!$AD$47/'MMA Rev-Exp Summary'!$AD$9, 0)","v":{"v":0,"d":"$0.00"}},{"$f":"IFERROR('MMA Rev-Exp Summary'!$AE$47/'MMA Rev-Exp Summary'!$AE$9, 0)","v":{"v":0,"d":"$0.00"}},{"$f":"IFERROR('MMA Rev-Exp Summary'!$AF$47/'MMA Rev-Exp Summary'!$AF$9, 0)","v":{"v":0,"d":"$0.00"}},{"$f":"IFERROR('MMA Rev-Exp Summary'!$AG$47/'MMA Rev-Exp Summary'!$AG$9, 0)","v":{"v":0,"d":"$0.00"}},{"$f":"IFERROR('MMA Rev-Exp Summary'!$AH$47/'MMA Rev-Exp Summary'!$AH$9, 0)","v":{"v":0,"d":"$0.00"}},{"$f":"IFERROR('MMA Rev-Exp Summary'!$AI$47/'MMA Rev-Exp Summary'!$AI$9, 0)","v":{"v":0,"d":"$0.00"}},{"$f":"IFERROR('MMA Rev-Exp Summary'!$AJ$47/'MMA Rev-Exp Summary'!$AJ$9, 0)","v":{"v":0,"d":"$0.00"}}]
["MMA",null,null,{"$f":"Jurat!I$1","v":0},{"$f":"Jurat!D$33","v":"00:00:00"},"Q3","2017-09-30","Summary","Operating Expense","Medical Benefits Expense","Dental Services",6.3,"Ending IBNP for Dental Services",{"$f":"IFERROR('MMA Rev-Exp Summary'!$Z$48/'MMA Rev-Exp Summary'!$Z$9, 0)","v":{"v":0,"d":"$0.00"}},{"$f":"IFERROR('MMA Rev-Exp Summary'!$AA$48/'MMA Rev-Exp Summary'!$AA$9, 0)","v":{"v":0,"d":"$0.00"}},{"$f":"IFERROR('MMA Rev-Exp Summary'!$AB$48/'MMA Rev-Exp Summary'!$AB$9, 0)","v":{"v":0,"d":"$0.00"}},{"$f":"IFERROR('MMA Rev-Exp Summary'!$AC$48/'MMA Rev-Exp Summary'!$AC$9, 0)","v":{"v":0,"d":"$0.00"}},{"$f":"IFERROR('MMA Rev-Exp Summary'!$AD$48/'MMA Rev-Exp Summary'!$AD$9, 0)","v":{"v":0,"d":"$0.00"}},{"$f":"IFERROR('MMA Rev-Exp Summary'!$AE$48/'MMA Rev-Exp Summary'!$AE$9, 0)","v":{"v":0,"d":"$0.00"}},{"$f":"IFERROR('MMA Rev-Exp Summary'!$AF$48/'MMA Rev-Exp Summary'!$AF$9, 0)","v":{"v":0,"d":"$0.00"}},{"$f":"IFERROR('MMA Rev-Exp Summary'!$AG$48/'MMA Rev-Exp Summary'!$AG$9, 0)","v":{"v":0,"d":"$0.00"}},{"$f":"IFERROR('MMA Rev-Exp Summary'!$AH$48/'MMA Rev-Exp Summary'!$AH$9, 0)","v":{"v":0,"d":"$0.00"}},{"$f":"IFERROR('MMA Rev-Exp Summary'!$AI$48/'MMA Rev-Exp Summary'!$AI$9, 0)","v":{"v":0,"d":"$0.00"}},{"$f":"IFERROR('MMA Rev-Exp Summary'!$AJ$48/'MMA Rev-Exp Summary'!$AJ$9, 0)","v":{"v":0,"d":"$0.00"}}]
["MMA",null,null,{"$f":"Jurat!I$1","v":0},{"$f":"Jurat!D$33","v":"00:00:00"},"Q3","2017-09-30","Summary","Operating Expense","Medical Benefits Expense","Dental Services","6.4","Dental Settlements",{"$f":"IFERROR('MMA Rev-Exp Summary'!$Z$49/'MMA Rev-Exp Summary'!$Z$9, 0)","v":{"v":0,"d":"$0.00"}},{"$f":"IFERROR('MMA Rev-Exp Summary'!$AA$49/'MMA Rev-Exp Summary'!$AA$9, 0)","v":{"v":0,"d":"$0.00"}},{"$f":"IFERROR('MMA Rev-Exp Summary'!$AB$49/'MMA Rev-Exp Summary'!$AB$9, 0)","v":{"v":0,"d":"$0.00"}},{"$f":"IFERROR('MMA Rev-Exp Summary'!$AC$49/'MMA Rev-Exp Summary'!$AC$9, 0)","v":{"v":0,"d":"$0.00"}},{"$f":"IFERROR('MMA Rev-Exp Summary'!$AD$49/'MMA Rev-Exp Summary'!$AD$9, 0)","v":{"v":0,"d":"$0.00"}},{"$f":"IFERROR('MMA Rev-Exp Summary'!$AE$49/'MMA Rev-Exp Summary'!$AE$9, 0)","v":{"v":0,"d":"$0.00"}},{"$f":"IFERROR('MMA Rev-Exp Summary'!$AF$49/'MMA Rev-Exp Summary'!$AF$9, 0)","v":{"v":0,"d":"$0.00"}},{"$f":"IFERROR('MMA Rev-Exp Summary'!$AG$49/'MMA Rev-Exp Summary'!$AG$9, 0)","v":{"v":0,"d":"$0.00"}},{"$f":"IFERROR('MMA Rev-Exp Summary'!$AH$49/'MMA Rev-Exp Summary'!$AH$9, 0)","v":{"v":0,"d":"$0.00"}},{"$f":"IFERROR('MMA Rev-Exp Summary'!$AI$49/'MMA Rev-Exp Summary'!$AI$9, 0)","v":{"v":0,"d":"$0.00"}},{"$f":"IFERROR('MMA Rev-Exp Summary'!$AJ$49/'MMA Rev-Exp Summary'!$AJ$9, 0)","v":{"v":0,"d":"$0.00"}}]
["MMA",null,null,{"$f":"Jurat!I$1","v":0},{"$f":"Jurat!D$33","v":"00:00:00"},"Q3","2017-09-30","Summary","Operating Expense","Medical Benefits Expense","Transportation Services",7.1,"Transportation FFS",{"$f":"IFERROR('MMA Rev-Exp Summary'!$Z$51/'MMA Rev-Exp Summary'!$Z$9, 0)","v":{"v":0,"d":"$0.00"}},{"$f":"IFERROR('MMA Rev-Exp Summary'!$AA$51/'MMA Rev-Exp Summary'!$AA$9, 0)","v":{"v":0,"d":"$0.00"}},{"$f":"IFERROR('MMA Rev-Exp Summary'!$AB$51/'MMA Rev-Exp Summary'!$AB$9, 0)","v":{"v":0,"d":"$0.00"}},{"$f":"IFERROR('MMA Rev-Exp Summary'!$AC$51/'MMA Rev-Exp Summary'!$AC$9, 0)","v":{"v":0,"d":"$0.00"}},{"$f":"IFERROR('MMA Rev-Exp Summary'!$AD$51/'MMA Rev-Exp Summary'!$AD$9, 0)","v":{"v":0,"d":"$0.00"}},{"$f":"IFERROR('MMA Rev-Exp Summary'!$AE$51/'MMA Rev-Exp Summary'!$AE$9, 0)","v":{"v":0,"d":"$0.00"}},{"$f":"IFERROR('MMA Rev-Exp Summary'!$AF$51/'MMA Rev-Exp Summary'!$AF$9, 0)","v":{"v":0,"d":"$0.00"}},{"$f":"IFERROR('MMA Rev-Exp Summary'!$AG$51/'MMA Rev-Exp Summary'!$AG$9, 0)","v":{"v":0,"d":"$0.00"}},{"$f":"IFERROR('MMA Rev-Exp Summary'!$AH$51/'MMA Rev-Exp Summary'!$AH$9, 0)","v":{"v":0,"d":"$0.00"}},{"$f":"IFERROR('MMA Rev-Exp Summary'!$AI$51/'MMA Rev-Exp Summary'!$AI$9, 0)","v":{"v":0,"d":"$0.00"}},{"$f":"IFERROR('MMA Rev-Exp Summary'!$AJ$51/'MMA Rev-Exp Summary'!$AJ$9, 0)","v":{"v":0,"d":"$0.00"}}]
["MMA",null,null,{"$f":"Jurat!I$1","v":0},{"$f":"Jurat!D$33","v":"00:00:00"},"Q3","2017-09-30","Summary","Operating Expense","Medical Benefits Expense","Transportation Services",7.2,"Transportation Subcapitation",{"$f":"IFERROR('MMA Rev-Exp Summary'!$Z$52/'MMA Rev-Exp Summary'!$Z$9, 0)","v":{"v":0,"d":"$0.00"}},{"$f":"IFERROR('MMA Rev-Exp Summary'!$AA$52/'MMA Rev-Exp Summary'!$AA$9, 0)","v":{"v":0,"d":"$0.00"}},{"$f":"IFERROR('MMA Rev-Exp Summary'!$AB$52/'MMA Rev-Exp Summary'!$AB$9, 0)","v":{"v":0,"d":"$0.00"}},{"$f":"IFERROR('MMA Rev-Exp Summary'!$AC$52/'MMA Rev-Exp Summary'!$AC$9, 0)","v":{"v":0,"d":"$0.00"}},{"$f":"IFERROR('MMA Rev-Exp Summary'!$AD$52/'MMA Rev-Exp Summary'!$AD$9, 0)","v":{"v":0,"d":"$0.00"}},{"$f":"IFERROR('MMA Rev-Exp Summary'!$AE$52/'MMA Rev-Exp Summary'!$AE$9, 0)","v":{"v":0,"d":"$0.00"}},{"$f":"IFERROR('MMA Rev-Exp Summary'!$AF$52/'MMA Rev-Exp Summary'!$AF$9, 0)","v":{"v":0,"d":"$0.00"}},{"$f":"IFERROR('MMA Rev-Exp Summary'!$AG$52/'MMA Rev-Exp Summary'!$AG$9, 0)","v":{"v":0,"d":"$0.00"}},{"$f":"IFERROR('MMA Rev-Exp Summary'!$AH$52/'MMA Rev-Exp Summary'!$AH$9, 0)","v":{"v":0,"d":"$0.00"}},{"$f":"IFERROR('MMA Rev-Exp Summary'!$AI$52/'MMA Rev-Exp Summary'!$AI$9, 0)","v":{"v":0,"d":"$0.00"}},{"$f":"IFERROR('MMA Rev-Exp Summary'!$AJ$52/'MMA Rev-Exp Summary'!$AJ$9, 0)","v":{"v":0,"d":"$0.00"}}]
["MMA",null,null,{"$f":"Jurat!I$1","v":0},{"$f":"Jurat!D$33","v":"00:00:00"},"Q3","2017-09-30","Summary","Operating Expense","Medical Benefits Expense","Transportation Services",7.3,"Ending IBNP for Transportation",{"$f":"IFERROR('MMA Rev-Exp Summary'!$Z$53/'MMA Rev-Exp Summary'!$Z$9, 0)","v":{"v":0,"d":"$0.00"}},{"$f":"IFERROR('MMA Rev-Exp Summary'!$AA$53/'MMA Rev-Exp Summary'!$AA$9, 0)","v":{"v":0,"d":"$0.00"}},{"$f":"IFERROR('MMA Rev-Exp Summary'!$AB$53/'MMA Rev-Exp Summary'!$AB$9, 0)","v":{"v":0,"d":"$0.00"}},{"$f":"IFERROR('MMA Rev-Exp Summary'!$AC$53/'MMA Rev-Exp Summary'!$AC$9, 0)","v":{"v":0,"d":"$0.00"}},{"$f":"IFERROR('MMA Rev-Exp Summary'!$AD$53/'MMA Rev-Exp Summary'!$AD$9, 0)","v":{"v":0,"d":"$0.00"}},{"$f":"IFERROR('MMA Rev-Exp Summary'!$AE$53/'MMA Rev-Exp Summary'!$AE$9, 0)","v":{"v":0,"d":"$0.00"}},{"$f":"IFERROR('MMA Rev-Exp Summary'!$AF$53/'MMA Rev-Exp Summary'!$AF$9, 0)","v":{"v":0,"d":"$0.00"}},{"$f":"IFERROR('MMA Rev-Exp Summary'!$AG$53/'MMA Rev-Exp Summary'!$AG$9, 0)","v":{"v":0,"d":"$0.00"}},{"$f":"IFERROR('MMA Rev-Exp Summary'!$AH$53/'MMA Rev-Exp Summary'!$AH$9, 0)","v":{"v":0,"d":"$0.00"}},{"$f":"IFERROR('MMA Rev-Exp Summary'!$AI$53/'MMA Rev-Exp Summary'!$AI$9, 0)","v":{"v":0,"d":"$0.00"}},{"$f":"IFERROR('MMA Rev-Exp Summary'!$AJ$53/'MMA Rev-Exp Summary'!$AJ$9, 0)","v":{"v":0,"d":"$0.00"}}]
["MMA",null,null,{"$f":"Jurat!I$1","v":0},{"$f":"Jurat!D$33","v":"00:00:00"},"Q3","2017-09-30","Summary","Operating Expense","Medical Benefits Expense","Transportation Services","7.4","Transportation Settlements",{"$f":"IFERROR('MMA Rev-Exp Summary'!$Z$54/'MMA Rev-Exp Summary'!$Z$9, 0)","v":{"v":0,"d":"$0.00"}},{"$f":"IFERROR('MMA Rev-Exp Summary'!$AA$54/'MMA Rev-Exp Summary'!$AA$9, 0)","v":{"v":0,"d":"$0.00"}},{"$f":"IFERROR('MMA Rev-Exp Summary'!$AB$54/'MMA Rev-Exp Summary'!$AB$9, 0)","v":{"v":0,"d":"$0.00"}},{"$f":"IFERROR('MMA Rev-Exp Summary'!$AC$54/'MMA Rev-Exp Summary'!$AC$9, 0)","v":{"v":0,"d":"$0.00"}},{"$f":"IFERROR('MMA Rev-Exp Summary'!$AD$54/'MMA Rev-Exp Summary'!$AD$9, 0)","v":{"v":0,"d":"$0.00"}},{"$f":"IFERROR('MMA Rev-Exp Summary'!$AE$54/'MMA Rev-Exp Summary'!$AE$9, 0)","v":{"v":0,"d":"$0.00"}},{"$f":"IFERROR('MMA Rev-Exp Summary'!$AF$54/'MMA Rev-Exp Summary'!$AF$9, 0)","v":{"v":0,"d":"$0.00"}},{"$f":"IFERROR('MMA Rev-Exp Summary'!$AG$54/'MMA Rev-Exp Summary'!$AG$9, 0)","v":{"v":0,"d":"$0.00"}},{"$f":"IFERROR('MMA Rev-Exp Summary'!$AH$54/'MMA Rev-Exp Summary'!$AH$9, 0)","v":{"v":0,"d":"$0.00"}},{"$f":"IFERROR('MMA Rev-Exp Summary'!$AI$54/'MMA Rev-Exp Summary'!$AI$9, 0)","v":{"v":0,"d":"$0.00"}},{"$f":"IFERROR('MMA Rev-Exp Summary'!$AJ$54/'MMA Rev-Exp Summary'!$AJ$9, 0)","v":{"v":0,"d":"$0.00"}}]
["MMA",null,null,{"$f":"Jurat!I$1","v":0},{"$f":"Jurat!D$33","v":"00:00:00"},"Q3","2017-09-30","Summary","Operating Expense","Medical Benefits Expense","Pharmacy Services",8.1,"Prescription Drugs FFS",{"$f":"IFERROR('MMA Rev-Exp Summary'!$Z$56/'MMA Rev-Exp Summary'!$Z$9, 0)","v":{"v":0,"d":"$0.00"}},{"$f":"IFERROR('MMA Rev-Exp Summary'!$AA$56/'MMA Rev-Exp Summary'!$AA$9, 0)","v":{"v":0,"d":"$0.00"}},{"$f":"IFERROR('MMA Rev-Exp Summary'!$AB$56/'MMA Rev-Exp Summary'!$AB$9, 0)","v":{"v":0,"d":"$0.00"}},{"$f":"IFERROR('MMA Rev-Exp Summary'!$AC$56/'MMA Rev-Exp Summary'!$AC$9, 0)","v":{"v":0,"d":"$0.00"}},{"$f":"IFERROR('MMA Rev-Exp Summary'!$AD$56/'MMA Rev-Exp Summary'!$AD$9, 0)","v":{"v":0,"d":"$0.00"}},{"$f":"IFERROR('MMA Rev-Exp Summary'!$AE$56/'MMA Rev-Exp Summary'!$AE$9, 0)","v":{"v":0,"d":"$0.00"}},{"$f":"IFERROR('MMA Rev-Exp Summary'!$AF$56/'MMA Rev-Exp Summary'!$AF$9, 0)","v":{"v":0,"d":"$0.00"}},{"$f":"IFERROR('MMA Rev-Exp Summary'!$AG$56/'MMA Rev-Exp Summary'!$AG$9, 0)","v":{"v":0,"d":"$0.00"}},{"$f":"IFERROR('MMA Rev-Exp Summary'!$AH$56/'MMA Rev-Exp Summary'!$AH$9, 0)","v":{"v":0,"d":"$0.00"}},{"$f":"IFERROR('MMA Rev-Exp Summary'!$AI$56/'MMA Rev-Exp Summary'!$AI$9, 0)","v":{"v":0,"d":"$0.00"}},{"$f":"IFERROR('MMA Rev-Exp Summary'!$AJ$56/'MMA Rev-Exp Summary'!$AJ$9, 0)","v":{"v":0,"d":"$0.00"}}]
["MMA",null,null,{"$f":"Jurat!I$1","v":0},{"$f":"Jurat!D$33","v":"00:00:00"},"Q3","2017-09-30","Summary","Operating Expense","Medical Benefits Expense","Pharmacy Services","8.2","Hepatitis C Prescription Drug FFS",{"$f":"IFERROR('MMA Rev-Exp Summary'!$Z$57/'MMA Rev-Exp Summary'!$Z$9, 0)","v":{"v":0,"d":"$0.00"}},{"$f":"IFERROR('MMA Rev-Exp Summary'!$AA$57/'MMA Rev-Exp Summary'!$AA$9, 0)","v":{"v":0,"d":"$0.00"}},{"$f":"IFERROR('MMA Rev-Exp Summary'!$AB$57/'MMA Rev-Exp Summary'!$AB$9, 0)","v":{"v":0,"d":"$0.00"}},{"$f":"IFERROR('MMA Rev-Exp Summary'!$AC$57/'MMA Rev-Exp Summary'!$AC$9, 0)","v":{"v":0,"d":"$0.00"}},{"$f":"IFERROR('MMA Rev-Exp Summary'!$AD$57/'MMA Rev-Exp Summary'!$AD$9, 0)","v":{"v":0,"d":"$0.00"}},{"$f":"IFERROR('MMA Rev-Exp Summary'!$AE$57/'MMA Rev-Exp Summary'!$AE$9, 0)","v":{"v":0,"d":"$0.00"}},{"$f":"IFERROR('MMA Rev-Exp Summary'!$AF$57/'MMA Rev-Exp Summary'!$AF$9, 0)","v":{"v":0,"d":"$0.00"}},{"$f":"IFERROR('MMA Rev-Exp Summary'!$AG$57/'MMA Rev-Exp Summary'!$AG$9, 0)","v":{"v":0,"d":"$0.00"}},{"$f":"IFERROR('MMA Rev-Exp Summary'!$AH$57/'MMA Rev-Exp Summary'!$AH$9, 0)","v":{"v":0,"d":"$0.00"}},{"$f":"IFERROR('MMA Rev-Exp Summary'!$AI$57/'MMA Rev-Exp Summary'!$AI$9, 0)","v":{"v":0,"d":"$0.00"}},{"$f":"IFERROR('MMA Rev-Exp Summary'!$AJ$57/'MMA Rev-Exp Summary'!$AJ$9, 0)","v":{"v":0,"d":"$0.00"}}]
["MMA",null,null,{"$f":"Jurat!I$1","v":0},{"$f":"Jurat!D$33","v":"00:00:00"},"Q3","2017-09-30","Summary","Operating Expense","Medical Benefits Expense","Pharmacy Services","8.3","Ending IBNP for Prescription Drugs",{"$f":"IFERROR('MMA Rev-Exp Summary'!$Z$58/'MMA Rev-Exp Summary'!$Z$9, 0)","v":{"v":0,"d":"$0.00"}},{"$f":"IFERROR('MMA Rev-Exp Summary'!$AA$58/'MMA Rev-Exp Summary'!$AA$9, 0)","v":{"v":0,"d":"$0.00"}},{"$f":"IFERROR('MMA Rev-Exp Summary'!$AB$58/'MMA Rev-Exp Summary'!$AB$9, 0)","v":{"v":0,"d":"$0.00"}},{"$f":"IFERROR('MMA Rev-Exp Summary'!$AC$58/'MMA Rev-Exp Summary'!$AC$9, 0)","v":{"v":0,"d":"$0.00"}},{"$f":"IFERROR('MMA Rev-Exp Summary'!$AD$58/'MMA Rev-Exp Summary'!$AD$9, 0)","v":{"v":0,"d":"$0.00"}},{"$f":"IFERROR('MMA Rev-Exp Summary'!$AE$58/'MMA Rev-Exp Summary'!$AE$9, 0)","v":{"v":0,"d":"$0.00"}},{"$f":"IFERROR('MMA Rev-Exp Summary'!$AF$58/'MMA Rev-Exp Summary'!$AF$9, 0)","v":{"v":0,"d":"$0.00"}},{"$f":"IFERROR('MMA Rev-Exp Summary'!$AG$58/'MMA Rev-Exp Summary'!$AG$9, 0)","v":{"v":0,"d":"$0.00"}},{"$f":"IFERROR('MMA Rev-Exp Summary'!$AH$58/'MMA Rev-Exp Summary'!$AH$9, 0)","v":{"v":0,"d":"$0.00"}},{"$f":"IFERROR('MMA Rev-Exp Summary'!$AI$58/'MMA Rev-Exp Summary'!$AI$9, 0)","v":{"v":0,"d":"$0.00"}},{"$f":"IFERROR('MMA Rev-Exp Summary'!$AJ$58/'MMA Rev-Exp Summary'!$AJ$9, 0)","v":{"v":0,"d":"$0.00"}}]
["MMA",null,null,{"$f":"Jurat!I$1","v":0},{"$f":"Jurat!D$33","v":"00:00:00"},"Q3","2017-09-30","Summary","Operating Expense","Medical Benefits Expense","Pharmacy Services","8.4","Prescription Drug Rebates ",{"$f":"IFERROR('MMA Rev-Exp Summary'!$Z$59/'MMA Rev-Exp Summary'!$Z$9, 0)","v":{"v":0,"d":"$0.00"}},{"$f":"IFERROR('MMA Rev-Exp Summary'!$AA$59/'MMA Rev-Exp Summary'!$AA$9, 0)","v":{"v":0,"d":"$0.00"}},{"$f":"IFERROR('MMA Rev-Exp Summary'!$AB$59/'MMA Rev-Exp Summary'!$AB$9, 0)","v":{"v":0,"d":"$0.00"}},{"$f":"IFERROR('MMA Rev-Exp Summary'!$AC$59/'MMA Rev-Exp Summary'!$AC$9, 0)","v":{"v":0,"d":"$0.00"}},{"$f":"IFERROR('MMA Rev-Exp Summary'!$AD$59/'MMA Rev-Exp Summary'!$AD$9, 0)","v":{"v":0,"d":"$0.00"}},{"$f":"IFERROR('MMA Rev-Exp Summary'!$AE$59/'MMA Rev-Exp Summary'!$AE$9, 0)","v":{"v":0,"d":"$0.00"}},{"$f":"IFERROR('MMA Rev-Exp Summary'!$AF$59/'MMA Rev-Exp Summary'!$AF$9, 0)","v":{"v":0,"d":"$0.00"}},{"$f":"IFERROR('MMA Rev-Exp Summary'!$AG$59/'MMA Rev-Exp Summary'!$AG$9, 0)","v":{"v":0,"d":"$0.00"}},{"$f":"IFERROR('MMA Rev-Exp Summary'!$AH$59/'MMA Rev-Exp Summary'!$AH$9, 0)","v":{"v":0,"d":"$0.00"}},{"$f":"IFERROR('MMA Rev-Exp Summary'!$AI$59/'MMA Rev-Exp Summary'!$AI$9, 0)","v":{"v":0,"d":"$0.00"}},{"$f":"IFERROR('MMA Rev-Exp Summary'!$AJ$59/'MMA Rev-Exp Summary'!$AJ$9, 0)","v":{"v":0,"d":"$0.00"}}]
["MMA",null,null,{"$f":"Jurat!I$1","v":0},{"$f":"Jurat!D$33","v":"00:00:00"},"Q3","2017-09-30","Summary","Operating Expense","Medical Benefits Expense","Pharmacy Services","8.5","Ending accrual for Rebates receivable",{"$f":"IFERROR('MMA Rev-Exp Summary'!$Z$60/'MMA Rev-Exp Summary'!$Z$9, 0)","v":{"v":0,"d":"$0.00"}},{"$f":"IFERROR('MMA Rev-Exp Summary'!$AA$60/'MMA Rev-Exp Summary'!$AA$9, 0)","v":{"v":0,"d":"$0.00"}},{"$f":"IFERROR('MMA Rev-Exp Summary'!$AB$60/'MMA Rev-Exp Summary'!$AB$9, 0)","v":{"v":0,"d":"$0.00"}},{"$f":"IFERROR('MMA Rev-Exp Summary'!$AC$60/'MMA Rev-Exp Summary'!$AC$9, 0)","v":{"v":0,"d":"$0.00"}},{"$f":"IFERROR('MMA Rev-Exp Summary'!$AD$60/'MMA Rev-Exp Summary'!$AD$9, 0)","v":{"v":0,"d":"$0.00"}},{"$f":"IFERROR('MMA Rev-Exp Summary'!$AE$60/'MMA Rev-Exp Summary'!$AE$9, 0)","v":{"v":0,"d":"$0.00"}},{"$f":"IFERROR('MMA Rev-Exp Summary'!$AF$60/'MMA Rev-Exp Summary'!$AF$9, 0)","v":{"v":0,"d":"$0.00"}},{"$f":"IFERROR('MMA Rev-Exp Summary'!$AG$60/'MMA Rev-Exp Summary'!$AG$9, 0)","v":{"v":0,"d":"$0.00"}},{"$f":"IFERROR('MMA Rev-Exp Summary'!$AH$60/'MMA Rev-Exp Summary'!$AH$9, 0)","v":{"v":0,"d":"$0.00"}},{"$f":"IFERROR('MMA Rev-Exp Summary'!$AI$60/'MMA Rev-Exp Summary'!$AI$9, 0)","v":{"v":0,"d":"$0.00"}},{"$f":"IFERROR('MMA Rev-Exp Summary'!$AJ$60/'MMA Rev-Exp Summary'!$AJ$9, 0)","v":{"v":0,"d":"$0.00"}}]
["MMA",null,null,{"$f":"Jurat!I$1","v":0},{"$f":"Jurat!D$33","v":"00:00:00"},"Q3","2017-09-30","Summary","Operating Expense","Medical Benefits Expense","Pharmacy Services","8.6","Prescription Drugs Subcapitation",{"$f":"IFERROR('MMA Rev-Exp Summary'!$Z$61/'MMA Rev-Exp Summary'!$Z$9, 0)","v":{"v":0,"d":"$0.00"}},{"$f":"IFERROR('MMA Rev-Exp Summary'!$AA$61/'MMA Rev-Exp Summary'!$AA$9, 0)","v":{"v":0,"d":"$0.00"}},{"$f":"IFERROR('MMA Rev-Exp Summary'!$AB$61/'MMA Rev-Exp Summary'!$AB$9, 0)","v":{"v":0,"d":"$0.00"}},{"$f":"IFERROR('MMA Rev-Exp Summary'!$AC$61/'MMA Rev-Exp Summary'!$AC$9, 0)","v":{"v":0,"d":"$0.00"}},{"$f":"IFERROR('MMA Rev-Exp Summary'!$AD$61/'MMA Rev-Exp Summary'!$AD$9, 0)","v":{"v":0,"d":"$0.00"}},{"$f":"IFERROR('MMA Rev-Exp Summary'!$AE$61/'MMA Rev-Exp Summary'!$AE$9, 0)","v":{"v":0,"d":"$0.00"}},{"$f":"IFERROR('MMA Rev-Exp Summary'!$AF$61/'MMA Rev-Exp Summary'!$AF$9, 0)","v":{"v":0,"d":"$0.00"}},{"$f":"IFERROR('MMA Rev-Exp Summary'!$AG$61/'MMA Rev-Exp Summary'!$AG$9, 0)","v":{"v":0,"d":"$0.00"}},{"$f":"IFERROR('MMA Rev-Exp Summary'!$AH$61/'MMA Rev-Exp Summary'!$AH$9, 0)","v":{"v":0,"d":"$0.00"}},{"$f":"IFERROR('MMA Rev-Exp Summary'!$AI$61/'MMA Rev-Exp Summary'!$AI$9, 0)","v":{"v":0,"d":"$0.00"}},{"$f":"IFERROR('MMA Rev-Exp Summary'!$AJ$61/'MMA Rev-Exp Summary'!$AJ$9, 0)","v":{"v":0,"d":"$0.00"}}]
["MMA",null,null,{"$f":"Jurat!I$1","v":0},{"$f":"Jurat!D$33","v":"00:00:00"},"Q3","2017-09-30","Summary","Operating Expense","Medical Benefits Expense","Pharmacy Services","8.7","Prescription Drug Settlements",{"$f":"IFERROR('MMA Rev-Exp Summary'!$Z$62/'MMA Rev-Exp Summary'!$Z$9, 0)","v":{"v":0,"d":"$0.00"}},{"$f":"IFERROR('MMA Rev-Exp Summary'!$AA$62/'MMA Rev-Exp Summary'!$AA$9, 0)","v":{"v":0,"d":"$0.00"}},{"$f":"IFERROR('MMA Rev-Exp Summary'!$AB$62/'MMA Rev-Exp Summary'!$AB$9, 0)","v":{"v":0,"d":"$0.00"}},{"$f":"IFERROR('MMA Rev-Exp Summary'!$AC$62/'MMA Rev-Exp Summary'!$AC$9, 0)","v":{"v":0,"d":"$0.00"}},{"$f":"IFERROR('MMA Rev-Exp Summary'!$AD$62/'MMA Rev-Exp Summary'!$AD$9, 0)","v":{"v":0,"d":"$0.00"}},{"$f":"IFERROR('MMA Rev-Exp Summary'!$AE$62/'MMA Rev-Exp Summary'!$AE$9, 0)","v":{"v":0,"d":"$0.00"}},{"$f":"IFERROR('MMA Rev-Exp Summary'!$AF$62/'MMA Rev-Exp Summary'!$AF$9, 0)","v":{"v":0,"d":"$0.00"}},{"$f":"IFERROR('MMA Rev-Exp Summary'!$AG$62/'MMA Rev-Exp Summary'!$AG$9, 0)","v":{"v":0,"d":"$0.00"}},{"$f":"IFERROR('MMA Rev-Exp Summary'!$AH$62/'MMA Rev-Exp Summary'!$AH$9, 0)","v":{"v":0,"d":"$0.00"}},{"$f":"IFERROR('MMA Rev-Exp Summary'!$AI$62/'MMA Rev-Exp Summary'!$AI$9, 0)","v":{"v":0,"d":"$0.00"}},{"$f":"IFERROR('MMA Rev-Exp Summary'!$AJ$62/'MMA Rev-Exp Summary'!$AJ$9, 0)","v":{"v":0,"d":"$0.00"}}]
["MMA",null,null,{"$f":"Jurat!I$1","v":0},{"$f":"Jurat!D$33","v":"00:00:00"},"Q3","2017-09-30","Summary","Operating Expense","Medical Benefits Expense","Other MMA Services",9.1,"Home Health, Private Duty Nursing, Personal Care FFS",{"$f":"IFERROR('MMA Rev-Exp Summary'!$Z$64/'MMA Rev-Exp Summary'!$Z$9, 0)","v":{"v":0,"d":"$0.00"}},{"$f":"IFERROR('MMA Rev-Exp Summary'!$AA$64/'MMA Rev-Exp Summary'!$AA$9, 0)","v":{"v":0,"d":"$0.00"}},{"$f":"IFERROR('MMA Rev-Exp Summary'!$AB$64/'MMA Rev-Exp Summary'!$AB$9, 0)","v":{"v":0,"d":"$0.00"}},{"$f":"IFERROR('MMA Rev-Exp Summary'!$AC$64/'MMA Rev-Exp Summary'!$AC$9, 0)","v":{"v":0,"d":"$0.00"}},{"$f":"IFERROR('MMA Rev-Exp Summary'!$AD$64/'MMA Rev-Exp Summary'!$AD$9, 0)","v":{"v":0,"d":"$0.00"}},{"$f":"IFERROR('MMA Rev-Exp Summary'!$AE$64/'MMA Rev-Exp Summary'!$AE$9, 0)","v":{"v":0,"d":"$0.00"}},{"$f":"IFERROR('MMA Rev-Exp Summary'!$AF$64/'MMA Rev-Exp Summary'!$AF$9, 0)","v":{"v":0,"d":"$0.00"}},{"$f":"IFERROR('MMA Rev-Exp Summary'!$AG$64/'MMA Rev-Exp Summary'!$AG$9, 0)","v":{"v":0,"d":"$0.00"}},{"$f":"IFERROR('MMA Rev-Exp Summary'!$AH$64/'MMA Rev-Exp Summary'!$AH$9, 0)","v":{"v":0,"d":"$0.00"}},{"$f":"IFERROR('MMA Rev-Exp Summary'!$AI$64/'MMA Rev-Exp Summary'!$AI$9, 0)","v":{"v":0,"d":"$0.00"}},{"$f":"IFERROR('MMA Rev-Exp Summary'!$AJ$64/'MMA Rev-Exp Summary'!$AJ$9, 0)","v":{"v":0,"d":"$0.00"}}]
["MMA",null,null,{"$f":"Jurat!I$1","v":0},{"$f":"Jurat!D$33","v":"00:00:00"},"Q3","2017-09-30","Summary","Operating Expense","Medical Benefits Expense","Other MMA Services","9.2","Hospice FFS",{"$f":"IFERROR('MMA Rev-Exp Summary'!$Z$65/'MMA Rev-Exp Summary'!$Z$9, 0)","v":{"v":0,"d":"$0.00"}},{"$f":"IFERROR('MMA Rev-Exp Summary'!$AA$65/'MMA Rev-Exp Summary'!$AA$9, 0)","v":{"v":0,"d":"$0.00"}},{"$f":"IFERROR('MMA Rev-Exp Summary'!$AB$65/'MMA Rev-Exp Summary'!$AB$9, 0)","v":{"v":0,"d":"$0.00"}},{"$f":"IFERROR('MMA Rev-Exp Summary'!$AC$65/'MMA Rev-Exp Summary'!$AC$9, 0)","v":{"v":0,"d":"$0.00"}},{"$f":"IFERROR('MMA Rev-Exp Summary'!$AD$65/'MMA Rev-Exp Summary'!$AD$9, 0)","v":{"v":0,"d":"$0.00"}},{"$f":"IFERROR('MMA Rev-Exp Summary'!$AE$65/'MMA Rev-Exp Summary'!$AE$9, 0)","v":{"v":0,"d":"$0.00"}},{"$f":"IFERROR('MMA Rev-Exp Summary'!$AF$65/'MMA Rev-Exp Summary'!$AF$9, 0)","v":{"v":0,"d":"$0.00"}},{"$f":"IFERROR('MMA Rev-Exp Summary'!$AG$65/'MMA Rev-Exp Summary'!$AG$9, 0)","v":{"v":0,"d":"$0.00"}},{"$f":"IFERROR('MMA Rev-Exp Summary'!$AH$65/'MMA Rev-Exp Summary'!$AH$9, 0)","v":{"v":0,"d":"$0.00"}},{"$f":"IFERROR('MMA Rev-Exp Summary'!$AI$65/'MMA Rev-Exp Summary'!$AI$9, 0)","v":{"v":0,"d":"$0.00"}},{"$f":"IFERROR('MMA Rev-Exp Summary'!$AJ$65/'MMA Rev-Exp Summary'!$AJ$9, 0)","v":{"v":0,"d":"$0.00"}}]
["MMA",null,null,{"$f":"Jurat!I$1","v":0},{"$f":"Jurat!D$33","v":"00:00:00"},"Q3","2017-09-30","Summary","Operating Expense","Medical Benefits Expense","Other MMA Services","9.3","DME FFS",{"$f":"IFERROR('MMA Rev-Exp Summary'!$Z$66/'MMA Rev-Exp Summary'!$Z$9, 0)","v":{"v":0,"d":"$0.00"}},{"$f":"IFERROR('MMA Rev-Exp Summary'!$AA$66/'MMA Rev-Exp Summary'!$AA$9, 0)","v":{"v":0,"d":"$0.00"}},{"$f":"IFERROR('MMA Rev-Exp Summary'!$AB$66/'MMA Rev-Exp Summary'!$AB$9, 0)","v":{"v":0,"d":"$0.00"}},{"$f":"IFERROR('MMA Rev-Exp Summary'!$AC$66/'MMA Rev-Exp Summary'!$AC$9, 0)","v":{"v":0,"d":"$0.00"}},{"$f":"IFERROR('MMA Rev-Exp Summary'!$AD$66/'MMA Rev-Exp Summary'!$AD$9, 0)","v":{"v":0,"d":"$0.00"}},{"$f":"IFERROR('MMA Rev-Exp Summary'!$AE$66/'MMA Rev-Exp Summary'!$AE$9, 0)","v":{"v":0,"d":"$0.00"}},{"$f":"IFERROR('MMA Rev-Exp Summary'!$AF$66/'MMA Rev-Exp Summary'!$AF$9, 0)","v":{"v":0,"d":"$0.00"}},{"$f":"IFERROR('MMA Rev-Exp Summary'!$AG$66/'MMA Rev-Exp Summary'!$AG$9, 0)","v":{"v":0,"d":"$0.00"}},{"$f":"IFERROR('MMA Rev-Exp Summary'!$AH$66/'MMA Rev-Exp Summary'!$AH$9, 0)","v":{"v":0,"d":"$0.00"}},{"$f":"IFERROR('MMA Rev-Exp Summary'!$AI$66/'MMA Rev-Exp Summary'!$AI$9, 0)","v":{"v":0,"d":"$0.00"}},{"$f":"IFERROR('MMA Rev-Exp Summary'!$AJ$66/'MMA Rev-Exp Summary'!$AJ$9, 0)","v":{"v":0,"d":"$0.00"}}]
["MMA",null,null,{"$f":"Jurat!I$1","v":0},{"$f":"Jurat!D$33","v":"00:00:00"},"Q3","2017-09-30","Summary","Operating Expense","Medical Benefits Expense","Other MMA Services","9.4","Other State Plan Services FFS",{"$f":"IFERROR('MMA Rev-Exp Summary'!$Z$67/'MMA Rev-Exp Summary'!$Z$9, 0)","v":{"v":0,"d":"$0.00"}},{"$f":"IFERROR('MMA Rev-Exp Summary'!$AA$67/'MMA Rev-Exp Summary'!$AA$9, 0)","v":{"v":0,"d":"$0.00"}},{"$f":"IFERROR('MMA Rev-Exp Summary'!$AB$67/'MMA Rev-Exp Summary'!$AB$9, 0)","v":{"v":0,"d":"$0.00"}},{"$f":"IFERROR('MMA Rev-Exp Summary'!$AC$67/'MMA Rev-Exp Summary'!$AC$9, 0)","v":{"v":0,"d":"$0.00"}},{"$f":"IFERROR('MMA Rev-Exp Summary'!$AD$67/'MMA Rev-Exp Summary'!$AD$9, 0)","v":{"v":0,"d":"$0.00"}},{"$f":"IFERROR('MMA Rev-Exp Summary'!$AE$67/'MMA Rev-Exp Summary'!$AE$9, 0)","v":{"v":0,"d":"$0.00"}},{"$f":"IFERROR('MMA Rev-Exp Summary'!$AF$67/'MMA Rev-Exp Summary'!$AF$9, 0)","v":{"v":0,"d":"$0.00"}},{"$f":"IFERROR('MMA Rev-Exp Summary'!$AG$67/'MMA Rev-Exp Summary'!$AG$9, 0)","v":{"v":0,"d":"$0.00"}},{"$f":"IFERROR('MMA Rev-Exp Summary'!$AH$67/'MMA Rev-Exp Summary'!$AH$9, 0)","v":{"v":0,"d":"$0.00"}},{"$f":"IFERROR('MMA Rev-Exp Summary'!$AI$67/'MMA Rev-Exp Summary'!$AI$9, 0)","v":{"v":0,"d":"$0.00"}},{"$f":"IFERROR('MMA Rev-Exp Summary'!$AJ$67/'MMA Rev-Exp Summary'!$AJ$9, 0)","v":{"v":0,"d":"$0.00"}}]
["MMA",null,null,{"$f":"Jurat!I$1","v":0},{"$f":"Jurat!D$33","v":"00:00:00"},"Q3","2017-09-30","Summary","Operating Expense","Medical Benefits Expense","Other MMA Services","9.5","Other Services Subcapitation",{"$f":"IFERROR('MMA Rev-Exp Summary'!$Z$68/'MMA Rev-Exp Summary'!$Z$9, 0)","v":{"v":0,"d":"$0.00"}},{"$f":"IFERROR('MMA Rev-Exp Summary'!$AA$68/'MMA Rev-Exp Summary'!$AA$9, 0)","v":{"v":0,"d":"$0.00"}},{"$f":"IFERROR('MMA Rev-Exp Summary'!$AB$68/'MMA Rev-Exp Summary'!$AB$9, 0)","v":{"v":0,"d":"$0.00"}},{"$f":"IFERROR('MMA Rev-Exp Summary'!$AC$68/'MMA Rev-Exp Summary'!$AC$9, 0)","v":{"v":0,"d":"$0.00"}},{"$f":"IFERROR('MMA Rev-Exp Summary'!$AD$68/'MMA Rev-Exp Summary'!$AD$9, 0)","v":{"v":0,"d":"$0.00"}},{"$f":"IFERROR('MMA Rev-Exp Summary'!$AE$68/'MMA Rev-Exp Summary'!$AE$9, 0)","v":{"v":0,"d":"$0.00"}},{"$f":"IFERROR('MMA Rev-Exp Summary'!$AF$68/'MMA Rev-Exp Summary'!$AF$9, 0)","v":{"v":0,"d":"$0.00"}},{"$f":"IFERROR('MMA Rev-Exp Summary'!$AG$68/'MMA Rev-Exp Summary'!$AG$9, 0)","v":{"v":0,"d":"$0.00"}},{"$f":"IFERROR('MMA Rev-Exp Summary'!$AH$68/'MMA Rev-Exp Summary'!$AH$9, 0)","v":{"v":0,"d":"$0.00"}},{"$f":"IFERROR('MMA Rev-Exp Summary'!$AI$68/'MMA Rev-Exp Summary'!$AI$9, 0)","v":{"v":0,"d":"$0.00"}},{"$f":"IFERROR('MMA Rev-Exp Summary'!$AJ$68/'MMA Rev-Exp Summary'!$AJ$9, 0)","v":{"v":0,"d":"$0.00"}}]
["MMA",null,null,{"$f":"Jurat!I$1","v":0},{"$f":"Jurat!D$33","v":"00:00:00"},"Q3","2017-09-30","Summary","Operating Expense","Medical Benefits Expense","Other MMA Services","9.6","Ending IBNP for Other Services",{"$f":"IFERROR('MMA Rev-Exp Summary'!$Z$69/'MMA Rev-Exp Summary'!$Z$9, 0)","v":{"v":0,"d":"$0.00"}},{"$f":"IFERROR('MMA Rev-Exp Summary'!$AA$69/'MMA Rev-Exp Summary'!$AA$9, 0)","v":{"v":0,"d":"$0.00"}},{"$f":"IFERROR('MMA Rev-Exp Summary'!$AB$69/'MMA Rev-Exp Summary'!$AB$9, 0)","v":{"v":0,"d":"$0.00"}},{"$f":"IFERROR('MMA Rev-Exp Summary'!$AC$69/'MMA Rev-Exp Summary'!$AC$9, 0)","v":{"v":0,"d":"$0.00"}},{"$f":"IFERROR('MMA Rev-Exp Summary'!$AD$69/'MMA Rev-Exp Summary'!$AD$9, 0)","v":{"v":0,"d":"$0.00"}},{"$f":"IFERROR('MMA Rev-Exp Summary'!$AE$69/'MMA Rev-Exp Summary'!$AE$9, 0)","v":{"v":0,"d":"$0.00"}},{"$f":"IFERROR('MMA Rev-Exp Summary'!$AF$69/'MMA Rev-Exp Summary'!$AF$9, 0)","v":{"v":0,"d":"$0.00"}},{"$f":"IFERROR('MMA Rev-Exp Summary'!$AG$69/'MMA Rev-Exp Summary'!$AG$9, 0)","v":{"v":0,"d":"$0.00"}},{"$f":"IFERROR('MMA Rev-Exp Summary'!$AH$69/'MMA Rev-Exp Summary'!$AH$9, 0)","v":{"v":0,"d":"$0.00"}},{"$f":"IFERROR('MMA Rev-Exp Summary'!$AI$69/'MMA Rev-Exp Summary'!$AI$9, 0)","v":{"v":0,"d":"$0.00"}},{"$f":"IFERROR('MMA Rev-Exp Summary'!$AJ$69/'MMA Rev-Exp Summary'!$AJ$9, 0)","v":{"v":0,"d":"$0.00"}}]
["MMA",null,null,{"$f":"Jurat!I$1","v":0},{"$f":"Jurat!D$33","v":"00:00:00"},"Q3","2017-09-30","Summary","Operating Expense","Medical Benefits Expense","Other MMA Services","9.7","Other Services Settlements",{"$f":"IFERROR('MMA Rev-Exp Summary'!$Z$70/'MMA Rev-Exp Summary'!$Z$9, 0)","v":{"v":0,"d":"$0.00"}},{"$f":"IFERROR('MMA Rev-Exp Summary'!$AA$70/'MMA Rev-Exp Summary'!$AA$9, 0)","v":{"v":0,"d":"$0.00"}},{"$f":"IFERROR('MMA Rev-Exp Summary'!$AB$70/'MMA Rev-Exp Summary'!$AB$9, 0)","v":{"v":0,"d":"$0.00"}},{"$f":"IFERROR('MMA Rev-Exp Summary'!$AC$70/'MMA Rev-Exp Summary'!$AC$9, 0)","v":{"v":0,"d":"$0.00"}},{"$f":"IFERROR('MMA Rev-Exp Summary'!$AD$70/'MMA Rev-Exp Summary'!$AD$9, 0)","v":{"v":0,"d":"$0.00"}},{"$f":"IFERROR('MMA Rev-Exp Summary'!$AE$70/'MMA Rev-Exp Summary'!$AE$9, 0)","v":{"v":0,"d":"$0.00"}},{"$f":"IFERROR('MMA Rev-Exp Summary'!$AF$70/'MMA Rev-Exp Summary'!$AF$9, 0)","v":{"v":0,"d":"$0.00"}},{"$f":"IFERROR('MMA Rev-Exp Summary'!$AG$70/'MMA Rev-Exp Summary'!$AG$9, 0)","v":{"v":0,"d":"$0.00"}},{"$f":"IFERROR('MMA Rev-Exp Summary'!$AH$70/'MMA Rev-Exp Summary'!$AH$9, 0)","v":{"v":0,"d":"$0.00"}},{"$f":"IFERROR('MMA Rev-Exp Summary'!$AI$70/'MMA Rev-Exp Summary'!$AI$9, 0)","v":{"v":0,"d":"$0.00"}},{"$f":"IFERROR('MMA Rev-Exp Summary'!$AJ$70/'MMA Rev-Exp Summary'!$AJ$9, 0)","v":{"v":0,"d":"$0.00"}}]
["MMA",null,null,{"$f":"Jurat!I$1","v":0},{"$f":"Jurat!D$33","v":"00:00:00"},"Q3","2017-09-30","Summary","Operating Expense","Medical Benefits Expense","Expanded Benefits","10.1","Expanded Benefits FFS",{"$f":"IFERROR('MMA Rev-Exp Summary'!$Z$72/'MMA Rev-Exp Summary'!$Z$9, 0)","v":{"v":0,"d":"$0.00"}},{"$f":"IFERROR('MMA Rev-Exp Summary'!$AA$72/'MMA Rev-Exp Summary'!$AA$9, 0)","v":{"v":0,"d":"$0.00"}},{"$f":"IFERROR('MMA Rev-Exp Summary'!$AB$72/'MMA Rev-Exp Summary'!$AB$9, 0)","v":{"v":0,"d":"$0.00"}},{"$f":"IFERROR('MMA Rev-Exp Summary'!$AC$72/'MMA Rev-Exp Summary'!$AC$9, 0)","v":{"v":0,"d":"$0.00"}},{"$f":"IFERROR('MMA Rev-Exp Summary'!$AD$72/'MMA Rev-Exp Summary'!$AD$9, 0)","v":{"v":0,"d":"$0.00"}},{"$f":"IFERROR('MMA Rev-Exp Summary'!$AE$72/'MMA Rev-Exp Summary'!$AE$9, 0)","v":{"v":0,"d":"$0.00"}},{"$f":"IFERROR('MMA Rev-Exp Summary'!$AF$72/'MMA Rev-Exp Summary'!$AF$9, 0)","v":{"v":0,"d":"$0.00"}},{"$f":"IFERROR('MMA Rev-Exp Summary'!$AG$72/'MMA Rev-Exp Summary'!$AG$9, 0)","v":{"v":0,"d":"$0.00"}},{"$f":"IFERROR('MMA Rev-Exp Summary'!$AH$72/'MMA Rev-Exp Summary'!$AH$9, 0)","v":{"v":0,"d":"$0.00"}},{"$f":"IFERROR('MMA Rev-Exp Summary'!$AI$72/'MMA Rev-Exp Summary'!$AI$9, 0)","v":{"v":0,"d":"$0.00"}},{"$f":"IFERROR('MMA Rev-Exp Summary'!$AJ$72/'MMA Rev-Exp Summary'!$AJ$9, 0)","v":{"v":0,"d":"$0.00"}}]
["MMA",null,null,{"$f":"Jurat!I$1","v":0},{"$f":"Jurat!D$33","v":"00:00:00"},"Q3","2017-09-30","Summary","Operating Expense","Medical Benefits Expense","Expanded Benefits","10.2","Expanded benefits Subcapitation",{"$f":"IFERROR('MMA Rev-Exp Summary'!$Z$73/'MMA Rev-Exp Summary'!$Z$9, 0)","v":{"v":0,"d":"$0.00"}},{"$f":"IFERROR('MMA Rev-Exp Summary'!$AA$73/'MMA Rev-Exp Summary'!$AA$9, 0)","v":{"v":0,"d":"$0.00"}},{"$f":"IFERROR('MMA Rev-Exp Summary'!$AB$73/'MMA Rev-Exp Summary'!$AB$9, 0)","v":{"v":0,"d":"$0.00"}},{"$f":"IFERROR('MMA Rev-Exp Summary'!$AC$73/'MMA Rev-Exp Summary'!$AC$9, 0)","v":{"v":0,"d":"$0.00"}},{"$f":"IFERROR('MMA Rev-Exp Summary'!$AD$73/'MMA Rev-Exp Summary'!$AD$9, 0)","v":{"v":0,"d":"$0.00"}},{"$f":"IFERROR('MMA Rev-Exp Summary'!$AE$73/'MMA Rev-Exp Summary'!$AE$9, 0)","v":{"v":0,"d":"$0.00"}},{"$f":"IFERROR('MMA Rev-Exp Summary'!$AF$73/'MMA Rev-Exp Summary'!$AF$9, 0)","v":{"v":0,"d":"$0.00"}},{"$f":"IFERROR('MMA Rev-Exp Summary'!$AG$73/'MMA Rev-Exp Summary'!$AG$9, 0)","v":{"v":0,"d":"$0.00"}},{"$f":"IFERROR('MMA Rev-Exp Summary'!$AH$73/'MMA Rev-Exp Summary'!$AH$9, 0)","v":{"v":0,"d":"$0.00"}},{"$f":"IFERROR('MMA Rev-Exp Summary'!$AI$73/'MMA Rev-Exp Summary'!$AI$9, 0)","v":{"v":0,"d":"$0.00"}},{"$f":"IFERROR('MMA Rev-Exp Summary'!$AJ$73/'MMA Rev-Exp Summary'!$AJ$9, 0)","v":{"v":0,"d":"$0.00"}}]
["MMA",null,null,{"$f":"Jurat!I$1","v":0},{"$f":"Jurat!D$33","v":"00:00:00"},"Q3","2017-09-30","Summary","Operating Expense","Medical Benefits Expense","Expanded Benefits","10.3","Ending IBNP for Expanded Benefits",{"$f":"IFERROR('MMA Rev-Exp Summary'!$Z$74/'MMA Rev-Exp Summary'!$Z$9, 0)","v":{"v":0,"d":"$0.00"}},{"$f":"IFERROR('MMA Rev-Exp Summary'!$AA$74/'MMA Rev-Exp Summary'!$AA$9, 0)","v":{"v":0,"d":"$0.00"}},{"$f":"IFERROR('MMA Rev-Exp Summary'!$AB$74/'MMA Rev-Exp Summary'!$AB$9, 0)","v":{"v":0,"d":"$0.00"}},{"$f":"IFERROR('MMA Rev-Exp Summary'!$AC$74/'MMA Rev-Exp Summary'!$AC$9, 0)","v":{"v":0,"d":"$0.00"}},{"$f":"IFERROR('MMA Rev-Exp Summary'!$AD$74/'MMA Rev-Exp Summary'!$AD$9, 0)","v":{"v":0,"d":"$0.00"}},{"$f":"IFERROR('MMA Rev-Exp Summary'!$AE$74/'MMA Rev-Exp Summary'!$AE$9, 0)","v":{"v":0,"d":"$0.00"}},{"$f":"IFERROR('MMA Rev-Exp Summary'!$AF$74/'MMA Rev-Exp Summary'!$AF$9, 0)","v":{"v":0,"d":"$0.00"}},{"$f":"IFERROR('MMA Rev-Exp Summary'!$AG$74/'MMA Rev-Exp Summary'!$AG$9, 0)","v":{"v":0,"d":"$0.00"}},{"$f":"IFERROR('MMA Rev-Exp Summary'!$AH$74/'MMA Rev-Exp Summary'!$AH$9, 0)","v":{"v":0,"d":"$0.00"}},{"$f":"IFERROR('MMA Rev-Exp Summary'!$AI$74/'MMA Rev-Exp Summary'!$AI$9, 0)","v":{"v":0,"d":"$0.00"}},{"$f":"IFERROR('MMA Rev-Exp Summary'!$AJ$74/'MMA Rev-Exp Summary'!$AJ$9, 0)","v":{"v":0,"d":"$0.00"}}]
["MMA",null,null,{"$f":"Jurat!I$1","v":0},{"$f":"Jurat!D$33","v":"00:00:00"},"Q3","2017-09-30","Summary","Operating Expense","Medical Benefits Expense","Expanded Benefits","10.4","Expanded Benefits Settlements",{"$f":"IFERROR('MMA Rev-Exp Summary'!$Z$75/'MMA Rev-Exp Summary'!$Z$9, 0)","v":{"v":0,"d":"$0.00"}},{"$f":"IFERROR('MMA Rev-Exp Summary'!$AA$75/'MMA Rev-Exp Summary'!$AA$9, 0)","v":{"v":0,"d":"$0.00"}},{"$f":"IFERROR('MMA Rev-Exp Summary'!$AB$75/'MMA Rev-Exp Summary'!$AB$9, 0)","v":{"v":0,"d":"$0.00"}},{"$f":"IFERROR('MMA Rev-Exp Summary'!$AC$75/'MMA Rev-Exp Summary'!$AC$9, 0)","v":{"v":0,"d":"$0.00"}},{"$f":"IFERROR('MMA Rev-Exp Summary'!$AD$75/'MMA Rev-Exp Summary'!$AD$9, 0)","v":{"v":0,"d":"$0.00"}},{"$f":"IFERROR('MMA Rev-Exp Summary'!$AE$75/'MMA Rev-Exp Summary'!$AE$9, 0)","v":{"v":0,"d":"$0.00"}},{"$f":"IFERROR('MMA Rev-Exp Summary'!$AF$75/'MMA Rev-Exp Summary'!$AF$9, 0)","v":{"v":0,"d":"$0.00"}},{"$f":"IFERROR('MMA Rev-Exp Summary'!$AG$75/'MMA Rev-Exp Summary'!$AG$9, 0)","v":{"v":0,"d":"$0.00"}},{"$f":"IFERROR('MMA Rev-Exp Summary'!$AH$75/'MMA Rev-Exp Summary'!$AH$9, 0)","v":{"v":0,"d":"$0.00"}},{"$f":"IFERROR('MMA Rev-Exp Summary'!$AI$75/'MMA Rev-Exp Summary'!$AI$9, 0)","v":{"v":0,"d":"$0.00"}},{"$f":"IFERROR('MMA Rev-Exp Summary'!$AJ$75/'MMA Rev-Exp Summary'!$AJ$9, 0)","v":{"v":0,"d":"$0.00"}}]
["MMA",null,null,{"$f":"Jurat!I$1","v":0},{"$f":"Jurat!D$33","v":"00:00:00"},"Q3","2017-09-30","Summary","Operating Expense","Medical Benefits Expense","Other Medical","11.5","TPL & Fraud/Abuse Recoveries",{"$f":"IFERROR('MMA Rev-Exp Summary'!$Z$81/'MMA Rev-Exp Summary'!$Z$9, 0)","v":{"v":0,"d":"$0.00"}},{"$f":"IFERROR('MMA Rev-Exp Summary'!$AA$81/'MMA Rev-Exp Summary'!$AA$9, 0)","v":{"v":0,"d":"$0.00"}},{"$f":"IFERROR('MMA Rev-Exp Summary'!$AB$81/'MMA Rev-Exp Summary'!$AB$9, 0)","v":{"v":0,"d":"$0.00"}},{"$f":"IFERROR('MMA Rev-Exp Summary'!$AC$81/'MMA Rev-Exp Summary'!$AC$9, 0)","v":{"v":0,"d":"$0.00"}},{"$f":"IFERROR('MMA Rev-Exp Summary'!$AD$81/'MMA Rev-Exp Summary'!$AD$9, 0)","v":{"v":0,"d":"$0.00"}},{"$f":"IFERROR('MMA Rev-Exp Summary'!$AE$81/'MMA Rev-Exp Summary'!$AE$9, 0)","v":{"v":0,"d":"$0.00"}},{"$f":"IFERROR('MMA Rev-Exp Summary'!$AF$81/'MMA Rev-Exp Summary'!$AF$9, 0)","v":{"v":0,"d":"$0.00"}},{"$f":"IFERROR('MMA Rev-Exp Summary'!$AG$81/'MMA Rev-Exp Summary'!$AG$9, 0)","v":{"v":0,"d":"$0.00"}},{"$f":"IFERROR('MMA Rev-Exp Summary'!$AH$81/'MMA Rev-Exp Summary'!$AH$9, 0)","v":{"v":0,"d":"$0.00"}},{"$f":"IFERROR('MMA Rev-Exp Summary'!$AI$81/'MMA Rev-Exp Summary'!$AI$9, 0)","v":{"v":0,"d":"$0.00"}},{"$f":"IFERROR('MMA Rev-Exp Summary'!$AJ$81/'MMA Rev-Exp Summary'!$AJ$9, 0)","v":{"v":0,"d":"$0.00"}}]
["MMA",null,null,{"$f":"Jurat!I$1","v":0},{"$f":"Jurat!D$33","v":"00:00:00"},"Q3","2017-09-30","Summary","Operating Expense","Medical Benefits Expense","Other Medical","11.6.1","Premium Deficiency Reserve",{"$f":"IFERROR('MMA Rev-Exp Summary'!$Z$82/'MMA Rev-Exp Summary'!$Z$9, 0)","v":{"v":0,"d":"$0.00"}},{"$f":"IFERROR('MMA Rev-Exp Summary'!$AA$82/'MMA Rev-Exp Summary'!$AA$9, 0)","v":{"v":0,"d":"$0.00"}},{"$f":"IFERROR('MMA Rev-Exp Summary'!$AB$82/'MMA Rev-Exp Summary'!$AB$9, 0)","v":{"v":0,"d":"$0.00"}},{"$f":"IFERROR('MMA Rev-Exp Summary'!$AC$82/'MMA Rev-Exp Summary'!$AC$9, 0)","v":{"v":0,"d":"$0.00"}},{"$f":"IFERROR('MMA Rev-Exp Summary'!$AD$82/'MMA Rev-Exp Summary'!$AD$9, 0)","v":{"v":0,"d":"$0.00"}},{"$f":"IFERROR('MMA Rev-Exp Summary'!$AE$82/'MMA Rev-Exp Summary'!$AE$9, 0)","v":{"v":0,"d":"$0.00"}},{"$f":"IFERROR('MMA Rev-Exp Summary'!$AF$82/'MMA Rev-Exp Summary'!$AF$9, 0)","v":{"v":0,"d":"$0.00"}},{"$f":"IFERROR('MMA Rev-Exp Summary'!$AG$82/'MMA Rev-Exp Summary'!$AG$9, 0)","v":{"v":0,"d":"$0.00"}},{"$f":"IFERROR('MMA Rev-Exp Summary'!$AH$82/'MMA Rev-Exp Summary'!$AH$9, 0)","v":{"v":0,"d":"$0.00"}},{"$f":"IFERROR('MMA Rev-Exp Summary'!$AI$82/'MMA Rev-Exp Summary'!$AI$9, 0)","v":{"v":0,"d":"$0.00"}},{"$f":"IFERROR('MMA Rev-Exp Summary'!$AJ$82/'MMA Rev-Exp Summary'!$AJ$9, 0)","v":{"v":0,"d":"$0.00"}}]
["MMA",null,null,{"$f":"Jurat!I$1","v":0},{"$f":"Jurat!D$33","v":"00:00:00"},"Q3","2017-09-30","Summary","Operating Expense","Medical Benefits Expense","Other Medical","11.8","Reinsurance Premiums",{"$f":"IFERROR('MMA Rev-Exp Summary'!$Z$84/'MMA Rev-Exp Summary'!$Z$9, 0)","v":{"v":0,"d":"$0.00"}},{"$f":"IFERROR('MMA Rev-Exp Summary'!$AA$84/'MMA Rev-Exp Summary'!$AA$9, 0)","v":{"v":0,"d":"$0.00"}},{"$f":"IFERROR('MMA Rev-Exp Summary'!$AB$84/'MMA Rev-Exp Summary'!$AB$9, 0)","v":{"v":0,"d":"$0.00"}},{"$f":"IFERROR('MMA Rev-Exp Summary'!$AC$84/'MMA Rev-Exp Summary'!$AC$9, 0)","v":{"v":0,"d":"$0.00"}},{"$f":"IFERROR('MMA Rev-Exp Summary'!$AD$84/'MMA Rev-Exp Summary'!$AD$9, 0)","v":{"v":0,"d":"$0.00"}},{"$f":"IFERROR('MMA Rev-Exp Summary'!$AE$84/'MMA Rev-Exp Summary'!$AE$9, 0)","v":{"v":0,"d":"$0.00"}},{"$f":"IFERROR('MMA Rev-Exp Summary'!$AF$84/'MMA Rev-Exp Summary'!$AF$9, 0)","v":{"v":0,"d":"$0.00"}},{"$f":"IFERROR('MMA Rev-Exp Summary'!$AG$84/'MMA Rev-Exp Summary'!$AG$9, 0)","v":{"v":0,"d":"$0.00"}},{"$f":"IFERROR('MMA Rev-Exp Summary'!$AH$84/'MMA Rev-Exp Summary'!$AH$9, 0)","v":{"v":0,"d":"$0.00"}},{"$f":"IFERROR('MMA Rev-Exp Summary'!$AI$84/'MMA Rev-Exp Summary'!$AI$9, 0)","v":{"v":0,"d":"$0.00"}},{"$f":"IFERROR('MMA Rev-Exp Summary'!$AJ$84/'MMA Rev-Exp Summary'!$AJ$9, 0)","v":{"v":0,"d":"$0.00"}}]
["MMA",null,null,{"$f":"Jurat!I$1","v":0},{"$f":"Jurat!D$33","v":"00:00:00"},"Q3","2017-09-30","Summary","Operating Expense","Medical Benefits Expense","Other Medical","11.9","Reinsurance Recoveries",{"$f":"IFERROR('MMA Rev-Exp Summary'!$Z$85/'MMA Rev-Exp Summary'!$Z$9, 0)","v":{"v":0,"d":"$0.00"}},{"$f":"IFERROR('MMA Rev-Exp Summary'!$AA$85/'MMA Rev-Exp Summary'!$AA$9, 0)","v":{"v":0,"d":"$0.00"}},{"$f":"IFERROR('MMA Rev-Exp Summary'!$AB$85/'MMA Rev-Exp Summary'!$AB$9, 0)","v":{"v":0,"d":"$0.00"}},{"$f":"IFERROR('MMA Rev-Exp Summary'!$AC$85/'MMA Rev-Exp Summary'!$AC$9, 0)","v":{"v":0,"d":"$0.00"}},{"$f":"IFERROR('MMA Rev-Exp Summary'!$AD$85/'MMA Rev-Exp Summary'!$AD$9, 0)","v":{"v":0,"d":"$0.00"}},{"$f":"IFERROR('MMA Rev-Exp Summary'!$AE$85/'MMA Rev-Exp Summary'!$AE$9, 0)","v":{"v":0,"d":"$0.00"}},{"$f":"IFERROR('MMA Rev-Exp Summary'!$AF$85/'MMA Rev-Exp Summary'!$AF$9, 0)","v":{"v":0,"d":"$0.00"}},{"$f":"IFERROR('MMA Rev-Exp Summary'!$AG$85/'MMA Rev-Exp Summary'!$AG$9, 0)","v":{"v":0,"d":"$0.00"}},{"$f":"IFERROR('MMA Rev-Exp Summary'!$AH$85/'MMA Rev-Exp Summary'!$AH$9, 0)","v":{"v":0,"d":"$0.00"}},{"$f":"IFERROR('MMA Rev-Exp Summary'!$AI$85/'MMA Rev-Exp Summary'!$AI$9, 0)","v":{"v":0,"d":"$0.00"}},{"$f":"IFERROR('MMA Rev-Exp Summary'!$AJ$85/'MMA Rev-Exp Summary'!$AJ$9, 0)","v":{"v":0,"d":"$0.00"}}]
["MMA",null,null,{"$f":"Jurat!I$1","v":0},{"$f":"Jurat!D$33","v":"00:00:00"},"Q3","2017-09-30","Summary","Operating Expense","Administrative Expense","Administrative","12.1","Salaries & Benefits",{"$f":"IFERROR('MMA Rev-Exp Summary'!$Z$90/'MMA Rev-Exp Summary'!$Z$9, 0)","v":{"v":0,"d":"$0.00"}},{"$f":"IFERROR('MMA Rev-Exp Summary'!$AA$90/'MMA Rev-Exp Summary'!$Z$9, 0)","v":{"v":0,"d":"$0.00"}},{"$f":"IFERROR('MMA Rev-Exp Summary'!$AB$90/'MMA Rev-Exp Summary'!$Z$9, 0)","v":{"v":0,"d":"$0.00"}}]
["MMA",null,null,{"$f":"Jurat!I$1","v":0},{"$f":"Jurat!D$33","v":"00:00:00"},"Q3","2017-09-30","Summary","Operating Expense","Administrative Expense","Administrative","12.2","Administrative Services",{"$f":"IFERROR('MMA Rev-Exp Summary'!$Z$91/'MMA Rev-Exp Summary'!$Z$9, 0)","v":{"v":0,"d":"$0.00"}},{"$f":"IFERROR('MMA Rev-Exp Summary'!$AA$91/'MMA Rev-Exp Summary'!$Z$9, 0)","v":{"v":0,"d":"$0.00"}},{"$f":"IFERROR('MMA Rev-Exp Summary'!$AB$91/'MMA Rev-Exp Summary'!$Z$9, 0)","v":{"v":0,"d":"$0.00"}}]
["MMA",null,null,{"$f":"Jurat!I$1","v":0},{"$f":"Jurat!D$33","v":"00:00:00"},"Q3","2017-09-30","Summary","Operating Expense","Administrative Expense","Administrative","12.3","Information Systems",{"$f":"IFERROR('MMA Rev-Exp Summary'!$Z$92/'MMA Rev-Exp Summary'!$Z$9, 0)","v":{"v":0,"d":"$0.00"}},{"$f":"IFERROR('MMA Rev-Exp Summary'!$AA$92/'MMA Rev-Exp Summary'!$Z$9, 0)","v":{"v":0,"d":"$0.00"}},{"$f":"IFERROR('MMA Rev-Exp Summary'!$AB$92/'MMA Rev-Exp Summary'!$Z$9, 0)","v":{"v":0,"d":"$0.00"}}]
["MMA",null,null,{"$f":"Jurat!I$1","v":0},{"$f":"Jurat!D$33","v":"00:00:00"},"Q3","2017-09-30","Summary","Operating Expense","Administrative Expense","Administrative","12.4","Marketing Expenses",{"$f":"IFERROR('MMA Rev-Exp Summary'!$Z$93/'MMA Rev-Exp Summary'!$Z$9, 0)","v":{"v":0,"d":"$0.00"}},{"$f":"IFERROR('MMA Rev-Exp Summary'!$AA$93/'MMA Rev-Exp Summary'!$Z$9, 0)","v":{"v":0,"d":"$0.00"}},{"$f":"IFERROR('MMA Rev-Exp Summary'!$AB$93/'MMA Rev-Exp Summary'!$Z$9, 0)","v":{"v":0,"d":"$0.00"}}]
["MMA",null,null,{"$f":"Jurat!I$1","v":0},{"$f":"Jurat!D$33","v":"00:00:00"},"Q3","2017-09-30","Summary","Operating Expense","Administrative Expense","Administrative","12.5","General  Administration",{"$f":"IFERROR('MMA Rev-Exp Summary'!$Z$94/'MMA Rev-Exp Summary'!$Z$9, 0)","v":{"v":0,"d":"$0.00"}},{"$f":"IFERROR('MMA Rev-Exp Summary'!$AA$94/'MMA Rev-Exp Summary'!$Z$9, 0)","v":{"v":0,"d":"$0.00"}},{"$f":"IFERROR('MMA Rev-Exp Summary'!$AB$94/'MMA Rev-Exp Summary'!$Z$9, 0)","v":{"v":0,"d":"$0.00"}}]
["MMA",null,null,{"$f":"Jurat!I$1","v":0},{"$f":"Jurat!D$33","v":"00:00:00"},"Q3","2017-09-30","Summary","Operating Expense","Administrative Expense","Administrative","12.6","Compliance/Regulatory",{"$f":"IFERROR('MMA Rev-Exp Summary'!$Z$95/'MMA Rev-Exp Summary'!$Z$9, 0)","v":{"v":0,"d":"$0.00"}},{"$f":"IFERROR('MMA Rev-Exp Summary'!$AA$95/'MMA Rev-Exp Summary'!$Z$9, 0)","v":{"v":0,"d":"$0.00"}},{"$f":"IFERROR('MMA Rev-Exp Summary'!$AB$95/'MMA Rev-Exp Summary'!$Z$9, 0)","v":{"v":0,"d":"$0.00"}}]
["MMA",null,null,{"$f":"Jurat!I$1","v":0},{"$f":"Jurat!D$33","v":"00:00:00"},"Q3","2017-09-30","Summary","Operating Expense","Taxes & Fees","Taxes & Fees","13.1","State Premium tax",{"$f":"IFERROR('MMA Rev-Exp Summary'!$Z$97/'MMA Rev-Exp Summary'!$Z$9, 0)","v":{"v":0,"d":"$0.00"}}]
["MMA",null,null,{"$f":"Jurat!I$1","v":0},{"$f":"Jurat!D$33","v":"00:00:00"},"Q3","2017-09-30","Summary","Operating Expense","Taxes & Fees","Taxes & Fees","13.2","Department of Insurance Assessments",{"$f":"IFERROR('MMA Rev-Exp Summary'!$Z$98/'MMA Rev-Exp Summary'!$Z$9, 0)","v":{"v":0,"d":"$0.00"}}]
["MMA",null,null,{"$f":"Jurat!I$1","v":0},{"$f":"Jurat!D$33","v":"00:00:00"},"Q3","2017-09-30","Summary","Operating Expense","Taxes & Fees","Taxes & Fees","13.3","Section 9010 Health Insurance Providers Fee",{"$f":"IFERROR('MMA Rev-Exp Summary'!$Z$99/'MMA Rev-Exp Summary'!$Z$9, 0)","v":{"v":0,"d":"$0.00"}}]
["MMA",null,null,{"$f":"Jurat!I$1","v":0},{"$f":"Jurat!D$33","v":"00:00:00"},"Q3","2017-09-30","Summary","Non-Operating Expense","Income Tax Expense","Income Tax Expense","16.0","Income Tax Expense",{"$f":"IFERROR('MMA Rev-Exp Summary'!$Z$106/'MMA Rev-Exp Summary'!$Z$9, 0)","v":{"v":0,"d":"$0.00"}}]
["MMA",null,null,{"$f":"Jurat!I$1","v":0},{"$f":"Jurat!D$33","v":"00:00:00"},"Q4","2017-12-31","Summary","Operating Revenue","Capitation","Capitation",1.1,"Capitation",{"$f":"IFERROR('MMA Rev-Exp Summary'!$AK$11/'MMA Rev-Exp Summary'!$AK$9, 0)","v":{"v":0,"d":"$0.00"}},{"$f":"IFERROR('MMA Rev-Exp Summary'!$AL$11/'MMA Rev-Exp Summary'!$AL$9, 0)","v":{"v":0,"d":"$0.00"}},{"$f":"IFERROR('MMA Rev-Exp Summary'!$AM$11/'MMA Rev-Exp Summary'!$AM$9, 0)","v":{"v":0,"d":"$0.00"}},{"$f":"IFERROR('MMA Rev-Exp Summary'!$AN$11/'MMA Rev-Exp Summary'!$AN$9, 0)","v":{"v":0,"d":"$0.00"}},{"$f":"IFERROR('MMA Rev-Exp Summary'!$AO$11/'MMA Rev-Exp Summary'!$AO$9, 0)","v":{"v":0,"d":"$0.00"}},{"$f":"IFERROR('MMA Rev-Exp Summary'!$AP$11/'MMA Rev-Exp Summary'!$AP$9, 0)","v":{"v":0,"d":"$0.00"}},{"$f":"IFERROR('MMA Rev-Exp Summary'!$AQ$11/'MMA Rev-Exp Summary'!$AQ$9, 0)","v":{"v":0,"d":"$0.00"}},{"$f":"IFERROR('MMA Rev-Exp Summary'!$AR$11/'MMA Rev-Exp Summary'!$AR$9, 0)","v":{"v":0,"d":"$0.00"}},{"$f":"IFERROR('MMA Rev-Exp Summary'!$AS$11/'MMA Rev-Exp Summary'!$AS$9, 0)","v":{"v":0,"d":"$0.00"}},{"$f":"IFERROR('MMA Rev-Exp Summary'!$AT$11/'MMA Rev-Exp Summary'!$AT$9, 0)","v":{"v":0,"d":"$0.00"}},{"$f":"IFERROR('MMA Rev-Exp Summary'!$AU$11/'MMA Rev-Exp Summary'!$AU$9, 0)","v":{"v":0,"d":"$0.00"}}]
["MMA",null,null,{"$f":"Jurat!I$1","v":0},{"$f":"Jurat!D$33","v":"00:00:00"},"Q4","2017-12-31","Summary","Operating Revenue","Kick Payments","Kick Payments - Transplant",1.2,"Transplant Kick Payments",{"$f":"IFERROR('MMA Rev-Exp Summary'!$AK$12/'MMA Rev-Exp Summary'!$AK$9, 0)","v":{"v":0,"d":"$0.00"}},{"$f":"IFERROR('MMA Rev-Exp Summary'!$AL$12/'MMA Rev-Exp Summary'!$AL$9, 0)","v":{"v":0,"d":"$0.00"}},{"$f":"IFERROR('MMA Rev-Exp Summary'!$AM$12/'MMA Rev-Exp Summary'!$AM$9, 0)","v":{"v":0,"d":"$0.00"}},{"$f":"IFERROR('MMA Rev-Exp Summary'!$AN$12/'MMA Rev-Exp Summary'!$AN$9, 0)","v":{"v":0,"d":"$0.00"}},{"$f":"IFERROR('MMA Rev-Exp Summary'!$AO$12/'MMA Rev-Exp Summary'!$AO$9, 0)","v":{"v":0,"d":"$0.00"}},{"$f":"IFERROR('MMA Rev-Exp Summary'!$AP$12/'MMA Rev-Exp Summary'!$AP$9, 0)","v":{"v":0,"d":"$0.00"}},{"$f":"IFERROR('MMA Rev-Exp Summary'!$AQ$12/'MMA Rev-Exp Summary'!$AQ$9, 0)","v":{"v":0,"d":"$0.00"}},{"$f":"IFERROR('MMA Rev-Exp Summary'!$AR$12/'MMA Rev-Exp Summary'!$AR$9, 0)","v":{"v":0,"d":"$0.00"}},{"$f":"IFERROR('MMA Rev-Exp Summary'!$AS$12/'MMA Rev-Exp Summary'!$AS$9, 0)","v":{"v":0,"d":"$0.00"}},{"$f":"IFERROR('MMA Rev-Exp Summary'!$AT$12/'MMA Rev-Exp Summary'!$AT$9, 0)","v":{"v":0,"d":"$0.00"}},{"$f":"IFERROR('MMA Rev-Exp Summary'!$AU$12/'MMA Rev-Exp Summary'!$AU$9, 0)","v":{"v":0,"d":"$0.00"}}]
["MMA",null,null,{"$f":"Jurat!I$1","v":0},{"$f":"Jurat!D$33","v":"00:00:00"},"Q4","2017-12-31","Summary","Operating Revenue","Kick Payments","Kick Payments - Hep C","1.3","Hepatitis C Kick Payments",{"$f":"IFERROR('MMA Rev-Exp Summary'!$AK$13/'MMA Rev-Exp Summary'!$AK$9, 0)","v":{"v":0,"d":"$0.00"}},{"$f":"IFERROR('MMA Rev-Exp Summary'!$AL$13/'MMA Rev-Exp Summary'!$AL$9, 0)","v":{"v":0,"d":"$0.00"}},{"$f":"IFERROR('MMA Rev-Exp Summary'!$AM$13/'MMA Rev-Exp Summary'!$AM$9, 0)","v":{"v":0,"d":"$0.00"}},{"$f":"IFERROR('MMA Rev-Exp Summary'!$AN$13/'MMA Rev-Exp Summary'!$AN$9, 0)","v":{"v":0,"d":"$0.00"}},{"$f":"IFERROR('MMA Rev-Exp Summary'!$AO$13/'MMA Rev-Exp Summary'!$AO$9, 0)","v":{"v":0,"d":"$0.00"}},{"$f":"IFERROR('MMA Rev-Exp Summary'!$AP$13/'MMA Rev-Exp Summary'!$AP$9, 0)","v":{"v":0,"d":"$0.00"}},{"$f":"IFERROR('MMA Rev-Exp Summary'!$AQ$13/'MMA Rev-Exp Summary'!$AQ$9, 0)","v":{"v":0,"d":"$0.00"}},{"$f":"IFERROR('MMA Rev-Exp Summary'!$AR$13/'MMA Rev-Exp Summary'!$AR$9, 0)","v":{"v":0,"d":"$0.00"}},{"$f":"IFERROR('MMA Rev-Exp Summary'!$AS$13/'MMA Rev-Exp Summary'!$AS$9, 0)","v":{"v":0,"d":"$0.00"}},{"$f":"IFERROR('MMA Rev-Exp Summary'!$AT$13/'MMA Rev-Exp Summary'!$AT$9, 0)","v":{"v":0,"d":"$0.00"}},{"$f":"IFERROR('MMA Rev-Exp Summary'!$AU$13/'MMA Rev-Exp Summary'!$AU$9, 0)","v":{"v":0,"d":"$0.00"}}]
["MMA",null,null,{"$f":"Jurat!I$1","v":0},{"$f":"Jurat!D$33","v":"00:00:00"},"Q4","2017-12-31","Summary","Operating Revenue","Kick Payments","Kick Payments - Maternity","1.4.1","Maternity Kick Payments",{"$f":"IFERROR('MMA Rev-Exp Summary'!$AK$14/'MMA Rev-Exp Summary'!$AK$9, 0)","v":{"v":0,"d":"$0.00"}},{"$f":"IFERROR('MMA Rev-Exp Summary'!$AL$14/'MMA Rev-Exp Summary'!$AL$9, 0)","v":{"v":0,"d":"$0.00"}},{"$f":"IFERROR('MMA Rev-Exp Summary'!$AM$14/'MMA Rev-Exp Summary'!$AM$9, 0)","v":{"v":0,"d":"$0.00"}},{"$f":"IFERROR('MMA Rev-Exp Summary'!$AN$14/'MMA Rev-Exp Summary'!$AN$9, 0)","v":{"v":0,"d":"$0.00"}},{"$f":"IFERROR('MMA Rev-Exp Summary'!$AO$14/'MMA Rev-Exp Summary'!$AO$9, 0)","v":{"v":0,"d":"$0.00"}},{"$f":"IFERROR('MMA Rev-Exp Summary'!$AP$14/'MMA Rev-Exp Summary'!$AP$9, 0)","v":{"v":0,"d":"$0.00"}},{"$f":"IFERROR('MMA Rev-Exp Summary'!$AQ$14/'MMA Rev-Exp Summary'!$AQ$9, 0)","v":{"v":0,"d":"$0.00"}},{"$f":"IFERROR('MMA Rev-Exp Summary'!$AR$14/'MMA Rev-Exp Summary'!$AR$9, 0)","v":{"v":0,"d":"$0.00"}},{"$f":"IFERROR('MMA Rev-Exp Summary'!$AS$14/'MMA Rev-Exp Summary'!$AS$9, 0)","v":{"v":0,"d":"$0.00"}},{"$f":"IFERROR('MMA Rev-Exp Summary'!$AT$14/'MMA Rev-Exp Summary'!$AT$9, 0)","v":{"v":0,"d":"$0.00"}},{"$f":"IFERROR('MMA Rev-Exp Summary'!$AU$14/'MMA Rev-Exp Summary'!$AU$9, 0)","v":{"v":0,"d":"$0.00"}}]
["MMA",null,null,{"$f":"Jurat!I$1","v":0},{"$f":"Jurat!D$33","v":"00:00:00"},"Q4","2017-12-31","Summary","Operating Revenue","Other Revenue","Other Revenue - 9010","1.5","ACA § 9010 related payments",{"$f":"IFERROR('MMA Rev-Exp Summary'!$AK$15/'MMA Rev-Exp Summary'!$AK$9, 0)","v":{"v":0,"d":"$0.00"}},{"$f":"IFERROR('MMA Rev-Exp Summary'!$AL$15/'MMA Rev-Exp Summary'!$AL$9, 0)","v":{"v":0,"d":"$0.00"}},{"$f":"IFERROR('MMA Rev-Exp Summary'!$AM$15/'MMA Rev-Exp Summary'!$AM$9, 0)","v":{"v":0,"d":"$0.00"}},{"$f":"IFERROR('MMA Rev-Exp Summary'!$AN$15/'MMA Rev-Exp Summary'!$AN$9, 0)","v":{"v":0,"d":"$0.00"}},{"$f":"IFERROR('MMA Rev-Exp Summary'!$AO$15/'MMA Rev-Exp Summary'!$AO$9, 0)","v":{"v":0,"d":"$0.00"}},{"$f":"IFERROR('MMA Rev-Exp Summary'!$AP$15/'MMA Rev-Exp Summary'!$AP$9, 0)","v":{"v":0,"d":"$0.00"}},{"$f":"IFERROR('MMA Rev-Exp Summary'!$AQ$15/'MMA Rev-Exp Summary'!$AQ$9, 0)","v":{"v":0,"d":"$0.00"}},{"$f":"IFERROR('MMA Rev-Exp Summary'!$AR$15/'MMA Rev-Exp Summary'!$AR$9, 0)","v":{"v":0,"d":"$0.00"}},{"$f":"IFERROR('MMA Rev-Exp Summary'!$AS$15/'MMA Rev-Exp Summary'!$AS$9, 0)","v":{"v":0,"d":"$0.00"}},{"$f":"IFERROR('MMA Rev-Exp Summary'!$AT$15/'MMA Rev-Exp Summary'!$AT$9, 0)","v":{"v":0,"d":"$0.00"}},{"$f":"IFERROR('MMA Rev-Exp Summary'!$AU$15/'MMA Rev-Exp Summary'!$AU$9, 0)","v":{"v":0,"d":"$0.00"}}]
["MMA",null,null,{"$f":"Jurat!I$1","v":0},{"$f":"Jurat!D$33","v":"00:00:00"},"Q4","2017-12-31","Summary","Operating Revenue","Other Revenue","Other Revenue","1.6","Other Revenue",{"$f":"IFERROR('MMA Rev-Exp Summary'!$AK$16/'MMA Rev-Exp Summary'!$AK$9, 0)","v":{"v":0,"d":"$0.00"}},{"$f":"IFERROR('MMA Rev-Exp Summary'!$AL$16/'MMA Rev-Exp Summary'!$AL$9, 0)","v":{"v":0,"d":"$0.00"}},{"$f":"IFERROR('MMA Rev-Exp Summary'!$AM$16/'MMA Rev-Exp Summary'!$AM$9, 0)","v":{"v":0,"d":"$0.00"}},{"$f":"IFERROR('MMA Rev-Exp Summary'!$AN$16/'MMA Rev-Exp Summary'!$AN$9, 0)","v":{"v":0,"d":"$0.00"}},{"$f":"IFERROR('MMA Rev-Exp Summary'!$AO$16/'MMA Rev-Exp Summary'!$AO$9, 0)","v":{"v":0,"d":"$0.00"}},{"$f":"IFERROR('MMA Rev-Exp Summary'!$AP$16/'MMA Rev-Exp Summary'!$AP$9, 0)","v":{"v":0,"d":"$0.00"}},{"$f":"IFERROR('MMA Rev-Exp Summary'!$AQ$16/'MMA Rev-Exp Summary'!$AQ$9, 0)","v":{"v":0,"d":"$0.00"}},{"$f":"IFERROR('MMA Rev-Exp Summary'!$AR$16/'MMA Rev-Exp Summary'!$AR$9, 0)","v":{"v":0,"d":"$0.00"}},{"$f":"IFERROR('MMA Rev-Exp Summary'!$AS$16/'MMA Rev-Exp Summary'!$AS$9, 0)","v":{"v":0,"d":"$0.00"}},{"$f":"IFERROR('MMA Rev-Exp Summary'!$AT$16/'MMA Rev-Exp Summary'!$AT$9, 0)","v":{"v":0,"d":"$0.00"}},{"$f":"IFERROR('MMA Rev-Exp Summary'!$AU$16/'MMA Rev-Exp Summary'!$AU$9, 0)","v":{"v":0,"d":"$0.00"}}]
["MMA",null,null,{"$f":"Jurat!I$1","v":0},{"$f":"Jurat!D$33","v":"00:00:00"},"Q4","2017-12-31","Summary","Operating Expense","Medical Benefits Expense","Hospital Services",2.1,"Inpatient FFS",{"$f":"IFERROR('MMA Rev-Exp Summary'!$AK$20/'MMA Rev-Exp Summary'!$AK$9, 0)","v":{"v":0,"d":"$0.00"}},{"$f":"IFERROR('MMA Rev-Exp Summary'!$AL$20/'MMA Rev-Exp Summary'!$AL$9, 0)","v":{"v":0,"d":"$0.00"}},{"$f":"IFERROR('MMA Rev-Exp Summary'!$AM$20/'MMA Rev-Exp Summary'!$AM$9, 0)","v":{"v":0,"d":"$0.00"}},{"$f":"IFERROR('MMA Rev-Exp Summary'!$AN$20/'MMA Rev-Exp Summary'!$AN$9, 0)","v":{"v":0,"d":"$0.00"}},{"$f":"IFERROR('MMA Rev-Exp Summary'!$AO$20/'MMA Rev-Exp Summary'!$AO$9, 0)","v":{"v":0,"d":"$0.00"}},{"$f":"IFERROR('MMA Rev-Exp Summary'!$AP$20/'MMA Rev-Exp Summary'!$AP$9, 0)","v":{"v":0,"d":"$0.00"}},{"$f":"IFERROR('MMA Rev-Exp Summary'!$AQ$20/'MMA Rev-Exp Summary'!$AQ$9, 0)","v":{"v":0,"d":"$0.00"}},{"$f":"IFERROR('MMA Rev-Exp Summary'!$AR$20/'MMA Rev-Exp Summary'!$AR$9, 0)","v":{"v":0,"d":"$0.00"}},{"$f":"IFERROR('MMA Rev-Exp Summary'!$AS$20/'MMA Rev-Exp Summary'!$AS$9, 0)","v":{"v":0,"d":"$0.00"}},{"$f":"IFERROR('MMA Rev-Exp Summary'!$AT$20/'MMA Rev-Exp Summary'!$AT$9, 0)","v":{"v":0,"d":"$0.00"}},{"$f":"IFERROR('MMA Rev-Exp Summary'!$AU$20/'MMA Rev-Exp Summary'!$AU$9, 0)","v":{"v":0,"d":"$0.00"}}]
["MMA",null,null,{"$f":"Jurat!I$1","v":0},{"$f":"Jurat!D$33","v":"00:00:00"},"Q4","2017-12-31","Summary","Operating Expense","Medical Benefits Expense","Hospital Services",2.2,"Ending IBNP for Inpatient Hospital Services",{"$f":"IFERROR('MMA Rev-Exp Summary'!$AK$21/'MMA Rev-Exp Summary'!$AK$9, 0)","v":{"v":0,"d":"$0.00"}},{"$f":"IFERROR('MMA Rev-Exp Summary'!$AL$21/'MMA Rev-Exp Summary'!$AL$9, 0)","v":{"v":0,"d":"$0.00"}},{"$f":"IFERROR('MMA Rev-Exp Summary'!$AM$21/'MMA Rev-Exp Summary'!$AM$9, 0)","v":{"v":0,"d":"$0.00"}},{"$f":"IFERROR('MMA Rev-Exp Summary'!$AN$21/'MMA Rev-Exp Summary'!$AN$9, 0)","v":{"v":0,"d":"$0.00"}},{"$f":"IFERROR('MMA Rev-Exp Summary'!$AO$21/'MMA Rev-Exp Summary'!$AO$9, 0)","v":{"v":0,"d":"$0.00"}},{"$f":"IFERROR('MMA Rev-Exp Summary'!$AP$21/'MMA Rev-Exp Summary'!$AP$9, 0)","v":{"v":0,"d":"$0.00"}},{"$f":"IFERROR('MMA Rev-Exp Summary'!$AQ$21/'MMA Rev-Exp Summary'!$AQ$9, 0)","v":{"v":0,"d":"$0.00"}},{"$f":"IFERROR('MMA Rev-Exp Summary'!$AR$21/'MMA Rev-Exp Summary'!$AR$9, 0)","v":{"v":0,"d":"$0.00"}},{"$f":"IFERROR('MMA Rev-Exp Summary'!$AS$21/'MMA Rev-Exp Summary'!$AS$9, 0)","v":{"v":0,"d":"$0.00"}},{"$f":"IFERROR('MMA Rev-Exp Summary'!$AT$21/'MMA Rev-Exp Summary'!$AT$9, 0)","v":{"v":0,"d":"$0.00"}},{"$f":"IFERROR('MMA Rev-Exp Summary'!$AU$21/'MMA Rev-Exp Summary'!$AU$9, 0)","v":{"v":0,"d":"$0.00"}}]
["MMA",null,null,{"$f":"Jurat!I$1","v":0},{"$f":"Jurat!D$33","v":"00:00:00"},"Q4","2017-12-31","Summary","Operating Expense","Medical Benefits Expense","Hospital Services",2.3,"Outpatient FFS: ER",{"$f":"IFERROR('MMA Rev-Exp Summary'!$AK$22/'MMA Rev-Exp Summary'!$AK$9, 0)","v":{"v":0,"d":"$0.00"}},{"$f":"IFERROR('MMA Rev-Exp Summary'!$AL$22/'MMA Rev-Exp Summary'!$AL$9, 0)","v":{"v":0,"d":"$0.00"}},{"$f":"IFERROR('MMA Rev-Exp Summary'!$AM$22/'MMA Rev-Exp Summary'!$AM$9, 0)","v":{"v":0,"d":"$0.00"}},{"$f":"IFERROR('MMA Rev-Exp Summary'!$AN$22/'MMA Rev-Exp Summary'!$AN$9, 0)","v":{"v":0,"d":"$0.00"}},{"$f":"IFERROR('MMA Rev-Exp Summary'!$AO$22/'MMA Rev-Exp Summary'!$AO$9, 0)","v":{"v":0,"d":"$0.00"}},{"$f":"IFERROR('MMA Rev-Exp Summary'!$AP$22/'MMA Rev-Exp Summary'!$AP$9, 0)","v":{"v":0,"d":"$0.00"}},{"$f":"IFERROR('MMA Rev-Exp Summary'!$AQ$22/'MMA Rev-Exp Summary'!$AQ$9, 0)","v":{"v":0,"d":"$0.00"}},{"$f":"IFERROR('MMA Rev-Exp Summary'!$AR$22/'MMA Rev-Exp Summary'!$AR$9, 0)","v":{"v":0,"d":"$0.00"}},{"$f":"IFERROR('MMA Rev-Exp Summary'!$AS$22/'MMA Rev-Exp Summary'!$AS$9, 0)","v":{"v":0,"d":"$0.00"}},{"$f":"IFERROR('MMA Rev-Exp Summary'!$AT$22/'MMA Rev-Exp Summary'!$AT$9, 0)","v":{"v":0,"d":"$0.00"}},{"$f":"IFERROR('MMA Rev-Exp Summary'!$AU$22/'MMA Rev-Exp Summary'!$AU$9, 0)","v":{"v":0,"d":"$0.00"}}]
["MMA",null,null,{"$f":"Jurat!I$1","v":0},{"$f":"Jurat!D$33","v":"00:00:00"},"Q4","2017-12-31","Summary","Operating Expense","Medical Benefits Expense","Hospital Services",2.4,"Outpatient FFS: Other than ER ",{"$f":"IFERROR('MMA Rev-Exp Summary'!$AK$23/'MMA Rev-Exp Summary'!$AK$9, 0)","v":{"v":0,"d":"$0.00"}},{"$f":"IFERROR('MMA Rev-Exp Summary'!$AL$23/'MMA Rev-Exp Summary'!$AL$9, 0)","v":{"v":0,"d":"$0.00"}},{"$f":"IFERROR('MMA Rev-Exp Summary'!$AM$23/'MMA Rev-Exp Summary'!$AM$9, 0)","v":{"v":0,"d":"$0.00"}},{"$f":"IFERROR('MMA Rev-Exp Summary'!$AN$23/'MMA Rev-Exp Summary'!$AN$9, 0)","v":{"v":0,"d":"$0.00"}},{"$f":"IFERROR('MMA Rev-Exp Summary'!$AO$23/'MMA Rev-Exp Summary'!$AO$9, 0)","v":{"v":0,"d":"$0.00"}},{"$f":"IFERROR('MMA Rev-Exp Summary'!$AP$23/'MMA Rev-Exp Summary'!$AP$9, 0)","v":{"v":0,"d":"$0.00"}},{"$f":"IFERROR('MMA Rev-Exp Summary'!$AQ$23/'MMA Rev-Exp Summary'!$AQ$9, 0)","v":{"v":0,"d":"$0.00"}},{"$f":"IFERROR('MMA Rev-Exp Summary'!$AR$23/'MMA Rev-Exp Summary'!$AR$9, 0)","v":{"v":0,"d":"$0.00"}},{"$f":"IFERROR('MMA Rev-Exp Summary'!$AS$23/'MMA Rev-Exp Summary'!$AS$9, 0)","v":{"v":0,"d":"$0.00"}},{"$f":"IFERROR('MMA Rev-Exp Summary'!$AT$23/'MMA Rev-Exp Summary'!$AT$9, 0)","v":{"v":0,"d":"$0.00"}},{"$f":"IFERROR('MMA Rev-Exp Summary'!$AU$23/'MMA Rev-Exp Summary'!$AU$9, 0)","v":{"v":0,"d":"$0.00"}}]
["MMA",null,null,{"$f":"Jurat!I$1","v":0},{"$f":"Jurat!D$33","v":"00:00:00"},"Q4","2017-12-31","Summary","Operating Expense","Medical Benefits Expense","Hospital Services",2.5,"Ending IBNP for Outpatient Hospital Services",{"$f":"IFERROR('MMA Rev-Exp Summary'!$AK$24/'MMA Rev-Exp Summary'!$AK$9, 0)","v":{"v":0,"d":"$0.00"}},{"$f":"IFERROR('MMA Rev-Exp Summary'!$AL$24/'MMA Rev-Exp Summary'!$AL$9, 0)","v":{"v":0,"d":"$0.00"}},{"$f":"IFERROR('MMA Rev-Exp Summary'!$AM$24/'MMA Rev-Exp Summary'!$AM$9, 0)","v":{"v":0,"d":"$0.00"}},{"$f":"IFERROR('MMA Rev-Exp Summary'!$AN$24/'MMA Rev-Exp Summary'!$AN$9, 0)","v":{"v":0,"d":"$0.00"}},{"$f":"IFERROR('MMA Rev-Exp Summary'!$AO$24/'MMA Rev-Exp Summary'!$AO$9, 0)","v":{"v":0,"d":"$0.00"}},{"$f":"IFERROR('MMA Rev-Exp Summary'!$AP$24/'MMA Rev-Exp Summary'!$AP$9, 0)","v":{"v":0,"d":"$0.00"}},{"$f":"IFERROR('MMA Rev-Exp Summary'!$AQ$24/'MMA Rev-Exp Summary'!$AQ$9, 0)","v":{"v":0,"d":"$0.00"}},{"$f":"IFERROR('MMA Rev-Exp Summary'!$AR$24/'MMA Rev-Exp Summary'!$AR$9, 0)","v":{"v":0,"d":"$0.00"}},{"$f":"IFERROR('MMA Rev-Exp Summary'!$AS$24/'MMA Rev-Exp Summary'!$AS$9, 0)","v":{"v":0,"d":"$0.00"}},{"$f":"IFERROR('MMA Rev-Exp Summary'!$AT$24/'MMA Rev-Exp Summary'!$AT$9, 0)","v":{"v":0,"d":"$0.00"}},{"$f":"IFERROR('MMA Rev-Exp Summary'!$AU$24/'MMA Rev-Exp Summary'!$AU$9, 0)","v":{"v":0,"d":"$0.00"}}]
["MMA",null,null,{"$f":"Jurat!I$1","v":0},{"$f":"Jurat!D$33","v":"00:00:00"},"Q4","2017-12-31","Summary","Operating Expense","Medical Benefits Expense","Hospital Services","2.6","Subcapitated Hospital Services",{"$f":"IFERROR('MMA Rev-Exp Summary'!$AK$25/'MMA Rev-Exp Summary'!$AK$9, 0)","v":{"v":0,"d":"$0.00"}},{"$f":"IFERROR('MMA Rev-Exp Summary'!$AL$25/'MMA Rev-Exp Summary'!$AL$9, 0)","v":{"v":0,"d":"$0.00"}},{"$f":"IFERROR('MMA Rev-Exp Summary'!$AM$25/'MMA Rev-Exp Summary'!$AM$9, 0)","v":{"v":0,"d":"$0.00"}},{"$f":"IFERROR('MMA Rev-Exp Summary'!$AN$25/'MMA Rev-Exp Summary'!$AN$9, 0)","v":{"v":0,"d":"$0.00"}},{"$f":"IFERROR('MMA Rev-Exp Summary'!$AO$25/'MMA Rev-Exp Summary'!$AO$9, 0)","v":{"v":0,"d":"$0.00"}},{"$f":"IFERROR('MMA Rev-Exp Summary'!$AP$25/'MMA Rev-Exp Summary'!$AP$9, 0)","v":{"v":0,"d":"$0.00"}},{"$f":"IFERROR('MMA Rev-Exp Summary'!$AQ$25/'MMA Rev-Exp Summary'!$AQ$9, 0)","v":{"v":0,"d":"$0.00"}},{"$f":"IFERROR('MMA Rev-Exp Summary'!$AR$25/'MMA Rev-Exp Summary'!$AR$9, 0)","v":{"v":0,"d":"$0.00"}},{"$f":"IFERROR('MMA Rev-Exp Summary'!$AS$25/'MMA Rev-Exp Summary'!$AS$9, 0)","v":{"v":0,"d":"$0.00"}},{"$f":"IFERROR('MMA Rev-Exp Summary'!$AT$25/'MMA Rev-Exp Summary'!$AT$9, 0)","v":{"v":0,"d":"$0.00"}},{"$f":"IFERROR('MMA Rev-Exp Summary'!$AU$25/'MMA Rev-Exp Summary'!$AU$9, 0)","v":{"v":0,"d":"$0.00"}}]
["MMA",null,null,{"$f":"Jurat!I$1","v":0},{"$f":"Jurat!D$33","v":"00:00:00"},"Q4","2017-12-31","Summary","Operating Expense","Medical Benefits Expense","Hospital Services","2.7","Hospital Settlements",{"$f":"IFERROR('MMA Rev-Exp Summary'!$AK$26/'MMA Rev-Exp Summary'!$AK$9, 0)","v":{"v":0,"d":"$0.00"}},{"$f":"IFERROR('MMA Rev-Exp Summary'!$AL$26/'MMA Rev-Exp Summary'!$AL$9, 0)","v":{"v":0,"d":"$0.00"}},{"$f":"IFERROR('MMA Rev-Exp Summary'!$AM$26/'MMA Rev-Exp Summary'!$AM$9, 0)","v":{"v":0,"d":"$0.00"}},{"$f":"IFERROR('MMA Rev-Exp Summary'!$AN$26/'MMA Rev-Exp Summary'!$AN$9, 0)","v":{"v":0,"d":"$0.00"}},{"$f":"IFERROR('MMA Rev-Exp Summary'!$AO$26/'MMA Rev-Exp Summary'!$AO$9, 0)","v":{"v":0,"d":"$0.00"}},{"$f":"IFERROR('MMA Rev-Exp Summary'!$AP$26/'MMA Rev-Exp Summary'!$AP$9, 0)","v":{"v":0,"d":"$0.00"}},{"$f":"IFERROR('MMA Rev-Exp Summary'!$AQ$26/'MMA Rev-Exp Summary'!$AQ$9, 0)","v":{"v":0,"d":"$0.00"}},{"$f":"IFERROR('MMA Rev-Exp Summary'!$AR$26/'MMA Rev-Exp Summary'!$AR$9, 0)","v":{"v":0,"d":"$0.00"}},{"$f":"IFERROR('MMA Rev-Exp Summary'!$AS$26/'MMA Rev-Exp Summary'!$AS$9, 0)","v":{"v":0,"d":"$0.00"}},{"$f":"IFERROR('MMA Rev-Exp Summary'!$AT$26/'MMA Rev-Exp Summary'!$AT$9, 0)","v":{"v":0,"d":"$0.00"}},{"$f":"IFERROR('MMA Rev-Exp Summary'!$AU$26/'MMA Rev-Exp Summary'!$AU$9, 0)","v":{"v":0,"d":"$0.00"}}]
["MMA",null,null,{"$f":"Jurat!I$1","v":0},{"$f":"Jurat!D$33","v":"00:00:00"},"Q4","2017-12-31","Summary","Operating Expense","Medical Benefits Expense","Hospital Services","2.7.1","Transplant Services",{"$f":"IFERROR('MMA Rev-Exp Summary'!$AK$27/'MMA Rev-Exp Summary'!$AK$9, 0)","v":{"v":0,"d":"$0.00"}},{"$f":"IFERROR('MMA Rev-Exp Summary'!$AL$27/'MMA Rev-Exp Summary'!$AL$9, 0)","v":{"v":0,"d":"$0.00"}},{"$f":"IFERROR('MMA Rev-Exp Summary'!$AM$27/'MMA Rev-Exp Summary'!$AM$9, 0)","v":{"v":0,"d":"$0.00"}},{"$f":"IFERROR('MMA Rev-Exp Summary'!$AN$27/'MMA Rev-Exp Summary'!$AN$9, 0)","v":{"v":0,"d":"$0.00"}},{"$f":"IFERROR('MMA Rev-Exp Summary'!$AO$27/'MMA Rev-Exp Summary'!$AO$9, 0)","v":{"v":0,"d":"$0.00"}},{"$f":"IFERROR('MMA Rev-Exp Summary'!$AP$27/'MMA Rev-Exp Summary'!$AP$9, 0)","v":{"v":0,"d":"$0.00"}},{"$f":"IFERROR('MMA Rev-Exp Summary'!$AQ$27/'MMA Rev-Exp Summary'!$AQ$9, 0)","v":{"v":0,"d":"$0.00"}},{"$f":"IFERROR('MMA Rev-Exp Summary'!$AR$27/'MMA Rev-Exp Summary'!$AR$9, 0)","v":{"v":0,"d":"$0.00"}},{"$f":"IFERROR('MMA Rev-Exp Summary'!$AS$27/'MMA Rev-Exp Summary'!$AS$9, 0)","v":{"v":0,"d":"$0.00"}},{"$f":"IFERROR('MMA Rev-Exp Summary'!$AT$27/'MMA Rev-Exp Summary'!$AT$9, 0)","v":{"v":0,"d":"$0.00"}},{"$f":"IFERROR('MMA Rev-Exp Summary'!$AU$27/'MMA Rev-Exp Summary'!$AU$9, 0)","v":{"v":0,"d":"$0.00"}}]
["MMA",null,null,{"$f":"Jurat!I$1","v":0},{"$f":"Jurat!D$33","v":"00:00:00"},"Q4","2017-12-31","Summary","Operating Expense","Medical Benefits Expense","Professional Services",3.1,"Primary Care FFS",{"$f":"IFERROR('MMA Rev-Exp Summary'!$AK$29/'MMA Rev-Exp Summary'!$AK$9, 0)","v":{"v":0,"d":"$0.00"}},{"$f":"IFERROR('MMA Rev-Exp Summary'!$AL$29/'MMA Rev-Exp Summary'!$AL$9, 0)","v":{"v":0,"d":"$0.00"}},{"$f":"IFERROR('MMA Rev-Exp Summary'!$AM$29/'MMA Rev-Exp Summary'!$AM$9, 0)","v":{"v":0,"d":"$0.00"}},{"$f":"IFERROR('MMA Rev-Exp Summary'!$AN$29/'MMA Rev-Exp Summary'!$AN$9, 0)","v":{"v":0,"d":"$0.00"}},{"$f":"IFERROR('MMA Rev-Exp Summary'!$AO$29/'MMA Rev-Exp Summary'!$AO$9, 0)","v":{"v":0,"d":"$0.00"}},{"$f":"IFERROR('MMA Rev-Exp Summary'!$AP$29/'MMA Rev-Exp Summary'!$AP$9, 0)","v":{"v":0,"d":"$0.00"}},{"$f":"IFERROR('MMA Rev-Exp Summary'!$AQ$29/'MMA Rev-Exp Summary'!$AQ$9, 0)","v":{"v":0,"d":"$0.00"}},{"$f":"IFERROR('MMA Rev-Exp Summary'!$AR$29/'MMA Rev-Exp Summary'!$AR$9, 0)","v":{"v":0,"d":"$0.00"}},{"$f":"IFERROR('MMA Rev-Exp Summary'!$AS$29/'MMA Rev-Exp Summary'!$AS$9, 0)","v":{"v":0,"d":"$0.00"}},{"$f":"IFERROR('MMA Rev-Exp Summary'!$AT$29/'MMA Rev-Exp Summary'!$AT$9, 0)","v":{"v":0,"d":"$0.00"}},{"$f":"IFERROR('MMA Rev-Exp Summary'!$AU$29/'MMA Rev-Exp Summary'!$AU$9, 0)","v":{"v":0,"d":"$0.00"}}]
["MMA",null,null,{"$f":"Jurat!I$1","v":0},{"$f":"Jurat!D$33","v":"00:00:00"},"Q4","2017-12-31","Summary","Operating Expense","Medical Benefits Expense","Professional Services",3.2,"Specialty Care FFS",{"$f":"IFERROR('MMA Rev-Exp Summary'!$AK$30/'MMA Rev-Exp Summary'!$AK$9, 0)","v":{"v":0,"d":"$0.00"}},{"$f":"IFERROR('MMA Rev-Exp Summary'!$AL$30/'MMA Rev-Exp Summary'!$AL$9, 0)","v":{"v":0,"d":"$0.00"}},{"$f":"IFERROR('MMA Rev-Exp Summary'!$AM$30/'MMA Rev-Exp Summary'!$AM$9, 0)","v":{"v":0,"d":"$0.00"}},{"$f":"IFERROR('MMA Rev-Exp Summary'!$AN$30/'MMA Rev-Exp Summary'!$AN$9, 0)","v":{"v":0,"d":"$0.00"}},{"$f":"IFERROR('MMA Rev-Exp Summary'!$AO$30/'MMA Rev-Exp Summary'!$AO$9, 0)","v":{"v":0,"d":"$0.00"}},{"$f":"IFERROR('MMA Rev-Exp Summary'!$AP$30/'MMA Rev-Exp Summary'!$AP$9, 0)","v":{"v":0,"d":"$0.00"}},{"$f":"IFERROR('MMA Rev-Exp Summary'!$AQ$30/'MMA Rev-Exp Summary'!$AQ$9, 0)","v":{"v":0,"d":"$0.00"}},{"$f":"IFERROR('MMA Rev-Exp Summary'!$AR$30/'MMA Rev-Exp Summary'!$AR$9, 0)","v":{"v":0,"d":"$0.00"}},{"$f":"IFERROR('MMA Rev-Exp Summary'!$AS$30/'MMA Rev-Exp Summary'!$AS$9, 0)","v":{"v":0,"d":"$0.00"}},{"$f":"IFERROR('MMA Rev-Exp Summary'!$AT$30/'MMA Rev-Exp Summary'!$AT$9, 0)","v":{"v":0,"d":"$0.00"}},{"$f":"IFERROR('MMA Rev-Exp Summary'!$AU$30/'MMA Rev-Exp Summary'!$AU$9, 0)","v":{"v":0,"d":"$0.00"}}]
["MMA",null,null,{"$f":"Jurat!I$1","v":0},{"$f":"Jurat!D$33","v":"00:00:00"},"Q4","2017-12-31","Summary","Operating Expense","Medical Benefits Expense","Professional Services",3.3,"Other Professional FFS",{"$f":"IFERROR('MMA Rev-Exp Summary'!$AK$31/'MMA Rev-Exp Summary'!$AK$9, 0)","v":{"v":0,"d":"$0.00"}},{"$f":"IFERROR('MMA Rev-Exp Summary'!$AL$31/'MMA Rev-Exp Summary'!$AL$9, 0)","v":{"v":0,"d":"$0.00"}},{"$f":"IFERROR('MMA Rev-Exp Summary'!$AM$31/'MMA Rev-Exp Summary'!$AM$9, 0)","v":{"v":0,"d":"$0.00"}},{"$f":"IFERROR('MMA Rev-Exp Summary'!$AN$31/'MMA Rev-Exp Summary'!$AN$9, 0)","v":{"v":0,"d":"$0.00"}},{"$f":"IFERROR('MMA Rev-Exp Summary'!$AO$31/'MMA Rev-Exp Summary'!$AO$9, 0)","v":{"v":0,"d":"$0.00"}},{"$f":"IFERROR('MMA Rev-Exp Summary'!$AP$31/'MMA Rev-Exp Summary'!$AP$9, 0)","v":{"v":0,"d":"$0.00"}},{"$f":"IFERROR('MMA Rev-Exp Summary'!$AQ$31/'MMA Rev-Exp Summary'!$AQ$9, 0)","v":{"v":0,"d":"$0.00"}},{"$f":"IFERROR('MMA Rev-Exp Summary'!$AR$31/'MMA Rev-Exp Summary'!$AR$9, 0)","v":{"v":0,"d":"$0.00"}},{"$f":"IFERROR('MMA Rev-Exp Summary'!$AS$31/'MMA Rev-Exp Summary'!$AS$9, 0)","v":{"v":0,"d":"$0.00"}},{"$f":"IFERROR('MMA Rev-Exp Summary'!$AT$31/'MMA Rev-Exp Summary'!$AT$9, 0)","v":{"v":0,"d":"$0.00"}},{"$f":"IFERROR('MMA Rev-Exp Summary'!$AU$31/'MMA Rev-Exp Summary'!$AU$9, 0)","v":{"v":0,"d":"$0.00"}}]
["MMA",null,null,{"$f":"Jurat!I$1","v":0},{"$f":"Jurat!D$33","v":"00:00:00"},"Q4","2017-12-31","Summary","Operating Expense","Medical Benefits Expense","Professional Services","3.4","§ 1202 PCP Payments to providers",{"$f":"IFERROR('MMA Rev-Exp Summary'!$AK$32/'MMA Rev-Exp Summary'!$AK$9, 0)","v":{"v":0,"d":"$0.00"}},{"$f":"IFERROR('MMA Rev-Exp Summary'!$AL$32/'MMA Rev-Exp Summary'!$AL$9, 0)","v":{"v":0,"d":"$0.00"}},{"$f":"IFERROR('MMA Rev-Exp Summary'!$AM$32/'MMA Rev-Exp Summary'!$AM$9, 0)","v":{"v":0,"d":"$0.00"}},{"$f":"IFERROR('MMA Rev-Exp Summary'!$AN$32/'MMA Rev-Exp Summary'!$AN$9, 0)","v":{"v":0,"d":"$0.00"}},{"$f":"IFERROR('MMA Rev-Exp Summary'!$AO$32/'MMA Rev-Exp Summary'!$AO$9, 0)","v":{"v":0,"d":"$0.00"}},{"$f":"IFERROR('MMA Rev-Exp Summary'!$AP$32/'MMA Rev-Exp Summary'!$AP$9, 0)","v":{"v":0,"d":"$0.00"}},{"$f":"IFERROR('MMA Rev-Exp Summary'!$AQ$32/'MMA Rev-Exp Summary'!$AQ$9, 0)","v":{"v":0,"d":"$0.00"}},{"$f":"IFERROR('MMA Rev-Exp Summary'!$AR$32/'MMA Rev-Exp Summary'!$AR$9, 0)","v":{"v":0,"d":"$0.00"}},{"$f":"IFERROR('MMA Rev-Exp Summary'!$AS$32/'MMA Rev-Exp Summary'!$AS$9, 0)","v":{"v":0,"d":"$0.00"}},{"$f":"IFERROR('MMA Rev-Exp Summary'!$AT$32/'MMA Rev-Exp Summary'!$AT$9, 0)","v":{"v":0,"d":"$0.00"}},{"$f":"IFERROR('MMA Rev-Exp Summary'!$AU$32/'MMA Rev-Exp Summary'!$AU$9, 0)","v":{"v":0,"d":"$0.00"}}]
["MMA",null,null,{"$f":"Jurat!I$1","v":0},{"$f":"Jurat!D$33","v":"00:00:00"},"Q4","2017-12-31","Summary","Operating Expense","Medical Benefits Expense","Professional Services","3.5","Subcapitated Professional Services",{"$f":"IFERROR('MMA Rev-Exp Summary'!$AK$33/'MMA Rev-Exp Summary'!$AK$9, 0)","v":{"v":0,"d":"$0.00"}},{"$f":"IFERROR('MMA Rev-Exp Summary'!$AL$33/'MMA Rev-Exp Summary'!$AL$9, 0)","v":{"v":0,"d":"$0.00"}},{"$f":"IFERROR('MMA Rev-Exp Summary'!$AM$33/'MMA Rev-Exp Summary'!$AM$9, 0)","v":{"v":0,"d":"$0.00"}},{"$f":"IFERROR('MMA Rev-Exp Summary'!$AN$33/'MMA Rev-Exp Summary'!$AN$9, 0)","v":{"v":0,"d":"$0.00"}},{"$f":"IFERROR('MMA Rev-Exp Summary'!$AO$33/'MMA Rev-Exp Summary'!$AO$9, 0)","v":{"v":0,"d":"$0.00"}},{"$f":"IFERROR('MMA Rev-Exp Summary'!$AP$33/'MMA Rev-Exp Summary'!$AP$9, 0)","v":{"v":0,"d":"$0.00"}},{"$f":"IFERROR('MMA Rev-Exp Summary'!$AQ$33/'MMA Rev-Exp Summary'!$AQ$9, 0)","v":{"v":0,"d":"$0.00"}},{"$f":"IFERROR('MMA Rev-Exp Summary'!$AR$33/'MMA Rev-Exp Summary'!$AR$9, 0)","v":{"v":0,"d":"$0.00"}},{"$f":"IFERROR('MMA Rev-Exp Summary'!$AS$33/'MMA Rev-Exp Summary'!$AS$9, 0)","v":{"v":0,"d":"$0.00"}},{"$f":"IFERROR('MMA Rev-Exp Summary'!$AT$33/'MMA Rev-Exp Summary'!$AT$9, 0)","v":{"v":0,"d":"$0.00"}},{"$f":"IFERROR('MMA Rev-Exp Summary'!$AU$33/'MMA Rev-Exp Summary'!$AU$9, 0)","v":{"v":0,"d":"$0.00"}}]
["MMA",null,null,{"$f":"Jurat!I$1","v":0},{"$f":"Jurat!D$33","v":"00:00:00"},"Q4","2017-12-31","Summary","Operating Expense","Medical Benefits Expense","Professional Services","3.6","Ending IBNP for Professional Services",{"$f":"IFERROR('MMA Rev-Exp Summary'!$AK$34/'MMA Rev-Exp Summary'!$AK$9, 0)","v":{"v":0,"d":"$0.00"}},{"$f":"IFERROR('MMA Rev-Exp Summary'!$AL$34/'MMA Rev-Exp Summary'!$AL$9, 0)","v":{"v":0,"d":"$0.00"}},{"$f":"IFERROR('MMA Rev-Exp Summary'!$AM$34/'MMA Rev-Exp Summary'!$AM$9, 0)","v":{"v":0,"d":"$0.00"}},{"$f":"IFERROR('MMA Rev-Exp Summary'!$AN$34/'MMA Rev-Exp Summary'!$AN$9, 0)","v":{"v":0,"d":"$0.00"}},{"$f":"IFERROR('MMA Rev-Exp Summary'!$AO$34/'MMA Rev-Exp Summary'!$AO$9, 0)","v":{"v":0,"d":"$0.00"}},{"$f":"IFERROR('MMA Rev-Exp Summary'!$AP$34/'MMA Rev-Exp Summary'!$AP$9, 0)","v":{"v":0,"d":"$0.00"}},{"$f":"IFERROR('MMA Rev-Exp Summary'!$AQ$34/'MMA Rev-Exp Summary'!$AQ$9, 0)","v":{"v":0,"d":"$0.00"}},{"$f":"IFERROR('MMA Rev-Exp Summary'!$AR$34/'MMA Rev-Exp Summary'!$AR$9, 0)","v":{"v":0,"d":"$0.00"}},{"$f":"IFERROR('MMA Rev-Exp Summary'!$AS$34/'MMA Rev-Exp Summary'!$AS$9, 0)","v":{"v":0,"d":"$0.00"}},{"$f":"IFERROR('MMA Rev-Exp Summary'!$AT$34/'MMA Rev-Exp Summary'!$AT$9, 0)","v":{"v":0,"d":"$0.00"}},{"$f":"IFERROR('MMA Rev-Exp Summary'!$AU$34/'MMA Rev-Exp Summary'!$AU$9, 0)","v":{"v":0,"d":"$0.00"}}]
["MMA",null,null,{"$f":"Jurat!I$1","v":0},{"$f":"Jurat!D$33","v":"00:00:00"},"Q4","2017-12-31","Summary","Operating Expense","Medical Benefits Expense","Professional Services","3.7","Professional Services Settlements",{"$f":"IFERROR('MMA Rev-Exp Summary'!$AK$35/'MMA Rev-Exp Summary'!$AK$9, 0)","v":{"v":0,"d":"$0.00"}},{"$f":"IFERROR('MMA Rev-Exp Summary'!$AL$35/'MMA Rev-Exp Summary'!$AL$9, 0)","v":{"v":0,"d":"$0.00"}},{"$f":"IFERROR('MMA Rev-Exp Summary'!$AM$35/'MMA Rev-Exp Summary'!$AM$9, 0)","v":{"v":0,"d":"$0.00"}},{"$f":"IFERROR('MMA Rev-Exp Summary'!$AN$35/'MMA Rev-Exp Summary'!$AN$9, 0)","v":{"v":0,"d":"$0.00"}},{"$f":"IFERROR('MMA Rev-Exp Summary'!$AO$35/'MMA Rev-Exp Summary'!$AO$9, 0)","v":{"v":0,"d":"$0.00"}},{"$f":"IFERROR('MMA Rev-Exp Summary'!$AP$35/'MMA Rev-Exp Summary'!$AP$9, 0)","v":{"v":0,"d":"$0.00"}},{"$f":"IFERROR('MMA Rev-Exp Summary'!$AQ$35/'MMA Rev-Exp Summary'!$AQ$9, 0)","v":{"v":0,"d":"$0.00"}},{"$f":"IFERROR('MMA Rev-Exp Summary'!$AR$35/'MMA Rev-Exp Summary'!$AR$9, 0)","v":{"v":0,"d":"$0.00"}},{"$f":"IFERROR('MMA Rev-Exp Summary'!$AS$35/'MMA Rev-Exp Summary'!$AS$9, 0)","v":{"v":0,"d":"$0.00"}},{"$f":"IFERROR('MMA Rev-Exp Summary'!$AT$35/'MMA Rev-Exp Summary'!$AT$9, 0)","v":{"v":0,"d":"$0.00"}},{"$f":"IFERROR('MMA Rev-Exp Summary'!$AU$35/'MMA Rev-Exp Summary'!$AU$9, 0)","v":{"v":0,"d":"$0.00"}}]
["MMA",null,null,{"$f":"Jurat!I$1","v":0},{"$f":"Jurat!D$33","v":"00:00:00"},"Q4","2017-12-31","Summary","Operating Expense","Medical Benefits Expense","Maternity Services","4.1.1","Maternity Services",{"$f":"IFERROR('MMA Rev-Exp Summary'!$AK$37/'MMA Rev-Exp Summary'!$AK$9, 0)","v":{"v":0,"d":"$0.00"}},{"$f":"IFERROR('MMA Rev-Exp Summary'!$AL$37/'MMA Rev-Exp Summary'!$AL$9, 0)","v":{"v":0,"d":"$0.00"}},{"$f":"IFERROR('MMA Rev-Exp Summary'!$AM$37/'MMA Rev-Exp Summary'!$AM$9, 0)","v":{"v":0,"d":"$0.00"}},{"$f":"IFERROR('MMA Rev-Exp Summary'!$AN$37/'MMA Rev-Exp Summary'!$AN$9, 0)","v":{"v":0,"d":"$0.00"}},{"$f":"IFERROR('MMA Rev-Exp Summary'!$AO$37/'MMA Rev-Exp Summary'!$AO$9, 0)","v":{"v":0,"d":"$0.00"}},{"$f":"IFERROR('MMA Rev-Exp Summary'!$AP$37/'MMA Rev-Exp Summary'!$AP$9, 0)","v":{"v":0,"d":"$0.00"}},{"$f":"IFERROR('MMA Rev-Exp Summary'!$AQ$37/'MMA Rev-Exp Summary'!$AQ$9, 0)","v":{"v":0,"d":"$0.00"}},{"$f":"IFERROR('MMA Rev-Exp Summary'!$AR$37/'MMA Rev-Exp Summary'!$AR$9, 0)","v":{"v":0,"d":"$0.00"}},{"$f":"IFERROR('MMA Rev-Exp Summary'!$AS$37/'MMA Rev-Exp Summary'!$AS$9, 0)","v":{"v":0,"d":"$0.00"}},{"$f":"IFERROR('MMA Rev-Exp Summary'!$AT$37/'MMA Rev-Exp Summary'!$AT$9, 0)","v":{"v":0,"d":"$0.00"}},{"$f":"IFERROR('MMA Rev-Exp Summary'!$AU$37/'MMA Rev-Exp Summary'!$AU$9, 0)","v":{"v":0,"d":"$0.00"}}]
["MMA",null,null,{"$f":"Jurat!I$1","v":0},{"$f":"Jurat!D$33","v":"00:00:00"},"Q4","2017-12-31","Summary","Operating Expense","Medical Benefits Expense","Maternity Services","4.2.1","Ending IBNP for Maternity Services",{"$f":"IFERROR('MMA Rev-Exp Summary'!$AK$38/'MMA Rev-Exp Summary'!$AK$9, 0)","v":{"v":0,"d":"$0.00"}},{"$f":"IFERROR('MMA Rev-Exp Summary'!$AL$38/'MMA Rev-Exp Summary'!$AL$9, 0)","v":{"v":0,"d":"$0.00"}},{"$f":"IFERROR('MMA Rev-Exp Summary'!$AM$38/'MMA Rev-Exp Summary'!$AM$9, 0)","v":{"v":0,"d":"$0.00"}},{"$f":"IFERROR('MMA Rev-Exp Summary'!$AN$38/'MMA Rev-Exp Summary'!$AN$9, 0)","v":{"v":0,"d":"$0.00"}},{"$f":"IFERROR('MMA Rev-Exp Summary'!$AO$38/'MMA Rev-Exp Summary'!$AO$9, 0)","v":{"v":0,"d":"$0.00"}},{"$f":"IFERROR('MMA Rev-Exp Summary'!$AP$38/'MMA Rev-Exp Summary'!$AP$9, 0)","v":{"v":0,"d":"$0.00"}},{"$f":"IFERROR('MMA Rev-Exp Summary'!$AQ$38/'MMA Rev-Exp Summary'!$AQ$9, 0)","v":{"v":0,"d":"$0.00"}},{"$f":"IFERROR('MMA Rev-Exp Summary'!$AR$38/'MMA Rev-Exp Summary'!$AR$9, 0)","v":{"v":0,"d":"$0.00"}},{"$f":"IFERROR('MMA Rev-Exp Summary'!$AS$38/'MMA Rev-Exp Summary'!$AS$9, 0)","v":{"v":0,"d":"$0.00"}},{"$f":"IFERROR('MMA Rev-Exp Summary'!$AT$38/'MMA Rev-Exp Summary'!$AT$9, 0)","v":{"v":0,"d":"$0.00"}},{"$f":"IFERROR('MMA Rev-Exp Summary'!$AU$38/'MMA Rev-Exp Summary'!$AU$9, 0)","v":{"v":0,"d":"$0.00"}}]
["MMA",null,null,{"$f":"Jurat!I$1","v":0},{"$f":"Jurat!D$33","v":"00:00:00"},"Q4","2017-12-31","Summary","Operating Expense","Medical Benefits Expense","Maternity Services","4.3.1","Maternity Settlements",{"$f":"IFERROR('MMA Rev-Exp Summary'!$AK$39/'MMA Rev-Exp Summary'!$AK$9, 0)","v":{"v":0,"d":"$0.00"}},{"$f":"IFERROR('MMA Rev-Exp Summary'!$AL$39/'MMA Rev-Exp Summary'!$AL$9, 0)","v":{"v":0,"d":"$0.00"}},{"$f":"IFERROR('MMA Rev-Exp Summary'!$AM$39/'MMA Rev-Exp Summary'!$AM$9, 0)","v":{"v":0,"d":"$0.00"}},{"$f":"IFERROR('MMA Rev-Exp Summary'!$AN$39/'MMA Rev-Exp Summary'!$AN$9, 0)","v":{"v":0,"d":"$0.00"}},{"$f":"IFERROR('MMA Rev-Exp Summary'!$AO$39/'MMA Rev-Exp Summary'!$AO$9, 0)","v":{"v":0,"d":"$0.00"}},{"$f":"IFERROR('MMA Rev-Exp Summary'!$AP$39/'MMA Rev-Exp Summary'!$AP$9, 0)","v":{"v":0,"d":"$0.00"}},{"$f":"IFERROR('MMA Rev-Exp Summary'!$AQ$39/'MMA Rev-Exp Summary'!$AQ$9, 0)","v":{"v":0,"d":"$0.00"}},{"$f":"IFERROR('MMA Rev-Exp Summary'!$AR$39/'MMA Rev-Exp Summary'!$AR$9, 0)","v":{"v":0,"d":"$0.00"}},{"$f":"IFERROR('MMA Rev-Exp Summary'!$AS$39/'MMA Rev-Exp Summary'!$AS$9, 0)","v":{"v":0,"d":"$0.00"}},{"$f":"IFERROR('MMA Rev-Exp Summary'!$AT$39/'MMA Rev-Exp Summary'!$AT$9, 0)","v":{"v":0,"d":"$0.00"}},{"$f":"IFERROR('MMA Rev-Exp Summary'!$AU$39/'MMA Rev-Exp Summary'!$AU$9, 0)","v":{"v":0,"d":"$0.00"}}]
["MMA",null,null,{"$f":"Jurat!I$1","v":0},{"$f":"Jurat!D$33","v":"00:00:00"},"Q4","2017-12-31","Summary","Operating Expense","Medical Benefits Expense","Mental Health Services",5.1,"Mental Health & Substance Abuse FFS",{"$f":"IFERROR('MMA Rev-Exp Summary'!$AK$41/'MMA Rev-Exp Summary'!$AK$9, 0)","v":{"v":0,"d":"$0.00"}},{"$f":"IFERROR('MMA Rev-Exp Summary'!$AL$41/'MMA Rev-Exp Summary'!$AL$9, 0)","v":{"v":0,"d":"$0.00"}},{"$f":"IFERROR('MMA Rev-Exp Summary'!$AM$41/'MMA Rev-Exp Summary'!$AM$9, 0)","v":{"v":0,"d":"$0.00"}},{"$f":"IFERROR('MMA Rev-Exp Summary'!$AN$41/'MMA Rev-Exp Summary'!$AN$9, 0)","v":{"v":0,"d":"$0.00"}},{"$f":"IFERROR('MMA Rev-Exp Summary'!$AO$41/'MMA Rev-Exp Summary'!$AO$9, 0)","v":{"v":0,"d":"$0.00"}},{"$f":"IFERROR('MMA Rev-Exp Summary'!$AP$41/'MMA Rev-Exp Summary'!$AP$9, 0)","v":{"v":0,"d":"$0.00"}},{"$f":"IFERROR('MMA Rev-Exp Summary'!$AQ$41/'MMA Rev-Exp Summary'!$AQ$9, 0)","v":{"v":0,"d":"$0.00"}},{"$f":"IFERROR('MMA Rev-Exp Summary'!$AR$41/'MMA Rev-Exp Summary'!$AR$9, 0)","v":{"v":0,"d":"$0.00"}},{"$f":"IFERROR('MMA Rev-Exp Summary'!$AS$41/'MMA Rev-Exp Summary'!$AS$9, 0)","v":{"v":0,"d":"$0.00"}},{"$f":"IFERROR('MMA Rev-Exp Summary'!$AT$41/'MMA Rev-Exp Summary'!$AT$9, 0)","v":{"v":0,"d":"$0.00"}},{"$f":"IFERROR('MMA Rev-Exp Summary'!$AU$41/'MMA Rev-Exp Summary'!$AU$9, 0)","v":{"v":0,"d":"$0.00"}}]
["MMA",null,null,{"$f":"Jurat!I$1","v":0},{"$f":"Jurat!D$33","v":"00:00:00"},"Q4","2017-12-31","Summary","Operating Expense","Medical Benefits Expense","Mental Health Services",5.2,"Mental Health & Substance Abuse Subcapitation",{"$f":"IFERROR('MMA Rev-Exp Summary'!$AK$42/'MMA Rev-Exp Summary'!$AK$9, 0)","v":{"v":0,"d":"$0.00"}},{"$f":"IFERROR('MMA Rev-Exp Summary'!$AL$42/'MMA Rev-Exp Summary'!$AL$9, 0)","v":{"v":0,"d":"$0.00"}},{"$f":"IFERROR('MMA Rev-Exp Summary'!$AM$42/'MMA Rev-Exp Summary'!$AM$9, 0)","v":{"v":0,"d":"$0.00"}},{"$f":"IFERROR('MMA Rev-Exp Summary'!$AN$42/'MMA Rev-Exp Summary'!$AN$9, 0)","v":{"v":0,"d":"$0.00"}},{"$f":"IFERROR('MMA Rev-Exp Summary'!$AO$42/'MMA Rev-Exp Summary'!$AO$9, 0)","v":{"v":0,"d":"$0.00"}},{"$f":"IFERROR('MMA Rev-Exp Summary'!$AP$42/'MMA Rev-Exp Summary'!$AP$9, 0)","v":{"v":0,"d":"$0.00"}},{"$f":"IFERROR('MMA Rev-Exp Summary'!$AQ$42/'MMA Rev-Exp Summary'!$AQ$9, 0)","v":{"v":0,"d":"$0.00"}},{"$f":"IFERROR('MMA Rev-Exp Summary'!$AR$42/'MMA Rev-Exp Summary'!$AR$9, 0)","v":{"v":0,"d":"$0.00"}},{"$f":"IFERROR('MMA Rev-Exp Summary'!$AS$42/'MMA Rev-Exp Summary'!$AS$9, 0)","v":{"v":0,"d":"$0.00"}},{"$f":"IFERROR('MMA Rev-Exp Summary'!$AT$42/'MMA Rev-Exp Summary'!$AT$9, 0)","v":{"v":0,"d":"$0.00"}},{"$f":"IFERROR('MMA Rev-Exp Summary'!$AU$42/'MMA Rev-Exp Summary'!$AU$9, 0)","v":{"v":0,"d":"$0.00"}}]
["MMA",null,null,{"$f":"Jurat!I$1","v":0},{"$f":"Jurat!D$33","v":"00:00:00"},"Q4","2017-12-31","Summary","Operating Expense","Medical Benefits Expense","Mental Health Services",5.3,"Ending IBNP for Mental Health & Substance Abuse",{"$f":"IFERROR('MMA Rev-Exp Summary'!$AK$43/'MMA Rev-Exp Summary'!$AK$9, 0)","v":{"v":0,"d":"$0.00"}},{"$f":"IFERROR('MMA Rev-Exp Summary'!$AL$43/'MMA Rev-Exp Summary'!$AL$9, 0)","v":{"v":0,"d":"$0.00"}},{"$f":"IFERROR('MMA Rev-Exp Summary'!$AM$43/'MMA Rev-Exp Summary'!$AM$9, 0)","v":{"v":0,"d":"$0.00"}},{"$f":"IFERROR('MMA Rev-Exp Summary'!$AN$43/'MMA Rev-Exp Summary'!$AN$9, 0)","v":{"v":0,"d":"$0.00"}},{"$f":"IFERROR('MMA Rev-Exp Summary'!$AO$43/'MMA Rev-Exp Summary'!$AO$9, 0)","v":{"v":0,"d":"$0.00"}},{"$f":"IFERROR('MMA Rev-Exp Summary'!$AP$43/'MMA Rev-Exp Summary'!$AP$9, 0)","v":{"v":0,"d":"$0.00"}},{"$f":"IFERROR('MMA Rev-Exp Summary'!$AQ$43/'MMA Rev-Exp Summary'!$AQ$9, 0)","v":{"v":0,"d":"$0.00"}},{"$f":"IFERROR('MMA Rev-Exp Summary'!$AR$43/'MMA Rev-Exp Summary'!$AR$9, 0)","v":{"v":0,"d":"$0.00"}},{"$f":"IFERROR('MMA Rev-Exp Summary'!$AS$43/'MMA Rev-Exp Summary'!$AS$9, 0)","v":{"v":0,"d":"$0.00"}},{"$f":"IFERROR('MMA Rev-Exp Summary'!$AT$43/'MMA Rev-Exp Summary'!$AT$9, 0)","v":{"v":0,"d":"$0.00"}},{"$f":"IFERROR('MMA Rev-Exp Summary'!$AU$43/'MMA Rev-Exp Summary'!$AU$9, 0)","v":{"v":0,"d":"$0.00"}}]
["MMA",null,null,{"$f":"Jurat!I$1","v":0},{"$f":"Jurat!D$33","v":"00:00:00"},"Q4","2017-12-31","Summary","Operating Expense","Medical Benefits Expense","Mental Health Services","5.4","Mental Health Settlements",{"$f":"IFERROR('MMA Rev-Exp Summary'!$AK$44/'MMA Rev-Exp Summary'!$AK$9, 0)","v":{"v":0,"d":"$0.00"}},{"$f":"IFERROR('MMA Rev-Exp Summary'!$AL$44/'MMA Rev-Exp Summary'!$AL$9, 0)","v":{"v":0,"d":"$0.00"}},{"$f":"IFERROR('MMA Rev-Exp Summary'!$AM$44/'MMA Rev-Exp Summary'!$AM$9, 0)","v":{"v":0,"d":"$0.00"}},{"$f":"IFERROR('MMA Rev-Exp Summary'!$AN$44/'MMA Rev-Exp Summary'!$AN$9, 0)","v":{"v":0,"d":"$0.00"}},{"$f":"IFERROR('MMA Rev-Exp Summary'!$AO$44/'MMA Rev-Exp Summary'!$AO$9, 0)","v":{"v":0,"d":"$0.00"}},{"$f":"IFERROR('MMA Rev-Exp Summary'!$AP$44/'MMA Rev-Exp Summary'!$AP$9, 0)","v":{"v":0,"d":"$0.00"}},{"$f":"IFERROR('MMA Rev-Exp Summary'!$AQ$44/'MMA Rev-Exp Summary'!$AQ$9, 0)","v":{"v":0,"d":"$0.00"}},{"$f":"IFERROR('MMA Rev-Exp Summary'!$AR$44/'MMA Rev-Exp Summary'!$AR$9, 0)","v":{"v":0,"d":"$0.00"}},{"$f":"IFERROR('MMA Rev-Exp Summary'!$AS$44/'MMA Rev-Exp Summary'!$AS$9, 0)","v":{"v":0,"d":"$0.00"}},{"$f":"IFERROR('MMA Rev-Exp Summary'!$AT$44/'MMA Rev-Exp Summary'!$AT$9, 0)","v":{"v":0,"d":"$0.00"}},{"$f":"IFERROR('MMA Rev-Exp Summary'!$AU$44/'MMA Rev-Exp Summary'!$AU$9, 0)","v":{"v":0,"d":"$0.00"}}]
["MMA",null,null,{"$f":"Jurat!I$1","v":0},{"$f":"Jurat!D$33","v":"00:00:00"},"Q4","2017-12-31","Summary","Operating Expense","Medical Benefits Expense","Dental Services",6.1,"Dental FFS",{"$f":"IFERROR('MMA Rev-Exp Summary'!$AK$46/'MMA Rev-Exp Summary'!$AK$9, 0)","v":{"v":0,"d":"$0.00"}},{"$f":"IFERROR('MMA Rev-Exp Summary'!$AL$46/'MMA Rev-Exp Summary'!$AL$9, 0)","v":{"v":0,"d":"$0.00"}},{"$f":"IFERROR('MMA Rev-Exp Summary'!$AM$46/'MMA Rev-Exp Summary'!$AM$9, 0)","v":{"v":0,"d":"$0.00"}},{"$f":"IFERROR('MMA Rev-Exp Summary'!$AN$46/'MMA Rev-Exp Summary'!$AN$9, 0)","v":{"v":0,"d":"$0.00"}},{"$f":"IFERROR('MMA Rev-Exp Summary'!$AO$46/'MMA Rev-Exp Summary'!$AO$9, 0)","v":{"v":0,"d":"$0.00"}},{"$f":"IFERROR('MMA Rev-Exp Summary'!$AP$46/'MMA Rev-Exp Summary'!$AP$9, 0)","v":{"v":0,"d":"$0.00"}},{"$f":"IFERROR('MMA Rev-Exp Summary'!$AQ$46/'MMA Rev-Exp Summary'!$AQ$9, 0)","v":{"v":0,"d":"$0.00"}},{"$f":"IFERROR('MMA Rev-Exp Summary'!$AR$46/'MMA Rev-Exp Summary'!$AR$9, 0)","v":{"v":0,"d":"$0.00"}},{"$f":"IFERROR('MMA Rev-Exp Summary'!$AS$46/'MMA Rev-Exp Summary'!$AS$9, 0)","v":{"v":0,"d":"$0.00"}},{"$f":"IFERROR('MMA Rev-Exp Summary'!$AT$46/'MMA Rev-Exp Summary'!$AT$9, 0)","v":{"v":0,"d":"$0.00"}},{"$f":"IFERROR('MMA Rev-Exp Summary'!$AU$46/'MMA Rev-Exp Summary'!$AU$9, 0)","v":{"v":0,"d":"$0.00"}}]
["MMA",null,null,{"$f":"Jurat!I$1","v":0},{"$f":"Jurat!D$33","v":"00:00:00"},"Q4","2017-12-31","Summary","Operating Expense","Medical Benefits Expense","Dental Services",6.2,"Dental Subcapitation",{"$f":"IFERROR('MMA Rev-Exp Summary'!$AK$47/'MMA Rev-Exp Summary'!$AK$9, 0)","v":{"v":0,"d":"$0.00"}},{"$f":"IFERROR('MMA Rev-Exp Summary'!$AL$47/'MMA Rev-Exp Summary'!$AL$9, 0)","v":{"v":0,"d":"$0.00"}},{"$f":"IFERROR('MMA Rev-Exp Summary'!$AM$47/'MMA Rev-Exp Summary'!$AM$9, 0)","v":{"v":0,"d":"$0.00"}},{"$f":"IFERROR('MMA Rev-Exp Summary'!$AN$47/'MMA Rev-Exp Summary'!$AN$9, 0)","v":{"v":0,"d":"$0.00"}},{"$f":"IFERROR('MMA Rev-Exp Summary'!$AO$47/'MMA Rev-Exp Summary'!$AO$9, 0)","v":{"v":0,"d":"$0.00"}},{"$f":"IFERROR('MMA Rev-Exp Summary'!$AP$47/'MMA Rev-Exp Summary'!$AP$9, 0)","v":{"v":0,"d":"$0.00"}},{"$f":"IFERROR('MMA Rev-Exp Summary'!$AQ$47/'MMA Rev-Exp Summary'!$AQ$9, 0)","v":{"v":0,"d":"$0.00"}},{"$f":"IFERROR('MMA Rev-Exp Summary'!$AR$47/'MMA Rev-Exp Summary'!$AR$9, 0)","v":{"v":0,"d":"$0.00"}},{"$f":"IFERROR('MMA Rev-Exp Summary'!$AS$47/'MMA Rev-Exp Summary'!$AS$9, 0)","v":{"v":0,"d":"$0.00"}},{"$f":"IFERROR('MMA Rev-Exp Summary'!$AT$47/'MMA Rev-Exp Summary'!$AT$9, 0)","v":{"v":0,"d":"$0.00"}},{"$f":"IFERROR('MMA Rev-Exp Summary'!$AU$47/'MMA Rev-Exp Summary'!$AU$9, 0)","v":{"v":0,"d":"$0.00"}}]
["MMA",null,null,{"$f":"Jurat!I$1","v":0},{"$f":"Jurat!D$33","v":"00:00:00"},"Q4","2017-12-31","Summary","Operating Expense","Medical Benefits Expense","Dental Services",6.3,"Ending IBNP for Dental Services",{"$f":"IFERROR('MMA Rev-Exp Summary'!$AK$48/'MMA Rev-Exp Summary'!$AK$9, 0)","v":{"v":0,"d":"$0.00"}},{"$f":"IFERROR('MMA Rev-Exp Summary'!$AL$48/'MMA Rev-Exp Summary'!$AL$9, 0)","v":{"v":0,"d":"$0.00"}},{"$f":"IFERROR('MMA Rev-Exp Summary'!$AM$48/'MMA Rev-Exp Summary'!$AM$9, 0)","v":{"v":0,"d":"$0.00"}},{"$f":"IFERROR('MMA Rev-Exp Summary'!$AN$48/'MMA Rev-Exp Summary'!$AN$9, 0)","v":{"v":0,"d":"$0.00"}},{"$f":"IFERROR('MMA Rev-Exp Summary'!$AO$48/'MMA Rev-Exp Summary'!$AO$9, 0)","v":{"v":0,"d":"$0.00"}},{"$f":"IFERROR('MMA Rev-Exp Summary'!$AP$48/'MMA Rev-Exp Summary'!$AP$9, 0)","v":{"v":0,"d":"$0.00"}},{"$f":"IFERROR('MMA Rev-Exp Summary'!$AQ$48/'MMA Rev-Exp Summary'!$AQ$9, 0)","v":{"v":0,"d":"$0.00"}},{"$f":"IFERROR('MMA Rev-Exp Summary'!$AR$48/'MMA Rev-Exp Summary'!$AR$9, 0)","v":{"v":0,"d":"$0.00"}},{"$f":"IFERROR('MMA Rev-Exp Summary'!$AS$48/'MMA Rev-Exp Summary'!$AS$9, 0)","v":{"v":0,"d":"$0.00"}},{"$f":"IFERROR('MMA Rev-Exp Summary'!$AT$48/'MMA Rev-Exp Summary'!$AT$9, 0)","v":{"v":0,"d":"$0.00"}},{"$f":"IFERROR('MMA Rev-Exp Summary'!$AU$48/'MMA Rev-Exp Summary'!$AU$9, 0)","v":{"v":0,"d":"$0.00"}}]
["MMA",null,null,{"$f":"Jurat!I$1","v":0},{"$f":"Jurat!D$33","v":"00:00:00"},"Q4","2017-12-31","Summary","Operating Expense","Medical Benefits Expense","Dental Services","6.4","Dental Settlements",{"$f":"IFERROR('MMA Rev-Exp Summary'!$AK$49/'MMA Rev-Exp Summary'!$AK$9, 0)","v":{"v":0,"d":"$0.00"}},{"$f":"IFERROR('MMA Rev-Exp Summary'!$AL$49/'MMA Rev-Exp Summary'!$AL$9, 0)","v":{"v":0,"d":"$0.00"}},{"$f":"IFERROR('MMA Rev-Exp Summary'!$AM$49/'MMA Rev-Exp Summary'!$AM$9, 0)","v":{"v":0,"d":"$0.00"}},{"$f":"IFERROR('MMA Rev-Exp Summary'!$AN$49/'MMA Rev-Exp Summary'!$AN$9, 0)","v":{"v":0,"d":"$0.00"}},{"$f":"IFERROR('MMA Rev-Exp Summary'!$AO$49/'MMA Rev-Exp Summary'!$AO$9, 0)","v":{"v":0,"d":"$0.00"}},{"$f":"IFERROR('MMA Rev-Exp Summary'!$AP$49/'MMA Rev-Exp Summary'!$AP$9, 0)","v":{"v":0,"d":"$0.00"}},{"$f":"IFERROR('MMA Rev-Exp Summary'!$AQ$49/'MMA Rev-Exp Summary'!$AQ$9, 0)","v":{"v":0,"d":"$0.00"}},{"$f":"IFERROR('MMA Rev-Exp Summary'!$AR$49/'MMA Rev-Exp Summary'!$AR$9, 0)","v":{"v":0,"d":"$0.00"}},{"$f":"IFERROR('MMA Rev-Exp Summary'!$AS$49/'MMA Rev-Exp Summary'!$AS$9, 0)","v":{"v":0,"d":"$0.00"}},{"$f":"IFERROR('MMA Rev-Exp Summary'!$AT$49/'MMA Rev-Exp Summary'!$AT$9, 0)","v":{"v":0,"d":"$0.00"}},{"$f":"IFERROR('MMA Rev-Exp Summary'!$AU$49/'MMA Rev-Exp Summary'!$AU$9, 0)","v":{"v":0,"d":"$0.00"}}]
["MMA",null,null,{"$f":"Jurat!I$1","v":0},{"$f":"Jurat!D$33","v":"00:00:00"},"Q4","2017-12-31","Summary","Operating Expense","Medical Benefits Expense","Transportation Services",7.1,"Transportation FFS",{"$f":"IFERROR('MMA Rev-Exp Summary'!$AK$51/'MMA Rev-Exp Summary'!$AK$9, 0)","v":{"v":0,"d":"$0.00"}},{"$f":"IFERROR('MMA Rev-Exp Summary'!$AL$51/'MMA Rev-Exp Summary'!$AL$9, 0)","v":{"v":0,"d":"$0.00"}},{"$f":"IFERROR('MMA Rev-Exp Summary'!$AM$51/'MMA Rev-Exp Summary'!$AM$9, 0)","v":{"v":0,"d":"$0.00"}},{"$f":"IFERROR('MMA Rev-Exp Summary'!$AN$51/'MMA Rev-Exp Summary'!$AN$9, 0)","v":{"v":0,"d":"$0.00"}},{"$f":"IFERROR('MMA Rev-Exp Summary'!$AO$51/'MMA Rev-Exp Summary'!$AO$9, 0)","v":{"v":0,"d":"$0.00"}},{"$f":"IFERROR('MMA Rev-Exp Summary'!$AP$51/'MMA Rev-Exp Summary'!$AP$9, 0)","v":{"v":0,"d":"$0.00"}},{"$f":"IFERROR('MMA Rev-Exp Summary'!$AQ$51/'MMA Rev-Exp Summary'!$AQ$9, 0)","v":{"v":0,"d":"$0.00"}},{"$f":"IFERROR('MMA Rev-Exp Summary'!$AR$51/'MMA Rev-Exp Summary'!$AR$9, 0)","v":{"v":0,"d":"$0.00"}},{"$f":"IFERROR('MMA Rev-Exp Summary'!$AS$51/'MMA Rev-Exp Summary'!$AS$9, 0)","v":{"v":0,"d":"$0.00"}},{"$f":"IFERROR('MMA Rev-Exp Summary'!$AT$51/'MMA Rev-Exp Summary'!$AT$9, 0)","v":{"v":0,"d":"$0.00"}},{"$f":"IFERROR('MMA Rev-Exp Summary'!$AU$51/'MMA Rev-Exp Summary'!$AU$9, 0)","v":{"v":0,"d":"$0.00"}}]
["MMA",null,null,{"$f":"Jurat!I$1","v":0},{"$f":"Jurat!D$33","v":"00:00:00"},"Q4","2017-12-31","Summary","Operating Expense","Medical Benefits Expense","Transportation Services",7.2,"Transportation Subcapitation",{"$f":"IFERROR('MMA Rev-Exp Summary'!$AK$52/'MMA Rev-Exp Summary'!$AK$9, 0)","v":{"v":0,"d":"$0.00"}},{"$f":"IFERROR('MMA Rev-Exp Summary'!$AL$52/'MMA Rev-Exp Summary'!$AL$9, 0)","v":{"v":0,"d":"$0.00"}},{"$f":"IFERROR('MMA Rev-Exp Summary'!$AM$52/'MMA Rev-Exp Summary'!$AM$9, 0)","v":{"v":0,"d":"$0.00"}},{"$f":"IFERROR('MMA Rev-Exp Summary'!$AN$52/'MMA Rev-Exp Summary'!$AN$9, 0)","v":{"v":0,"d":"$0.00"}},{"$f":"IFERROR('MMA Rev-Exp Summary'!$AO$52/'MMA Rev-Exp Summary'!$AO$9, 0)","v":{"v":0,"d":"$0.00"}},{"$f":"IFERROR('MMA Rev-Exp Summary'!$AP$52/'MMA Rev-Exp Summary'!$AP$9, 0)","v":{"v":0,"d":"$0.00"}},{"$f":"IFERROR('MMA Rev-Exp Summary'!$AQ$52/'MMA Rev-Exp Summary'!$AQ$9, 0)","v":{"v":0,"d":"$0.00"}},{"$f":"IFERROR('MMA Rev-Exp Summary'!$AR$52/'MMA Rev-Exp Summary'!$AR$9, 0)","v":{"v":0,"d":"$0.00"}},{"$f":"IFERROR('MMA Rev-Exp Summary'!$AS$52/'MMA Rev-Exp Summary'!$AS$9, 0)","v":{"v":0,"d":"$0.00"}},{"$f":"IFERROR('MMA Rev-Exp Summary'!$AT$52/'MMA Rev-Exp Summary'!$AT$9, 0)","v":{"v":0,"d":"$0.00"}},{"$f":"IFERROR('MMA Rev-Exp Summary'!$AU$52/'MMA Rev-Exp Summary'!$AU$9, 0)","v":{"v":0,"d":"$0.00"}}]
["MMA",null,null,{"$f":"Jurat!I$1","v":0},{"$f":"Jurat!D$33","v":"00:00:00"},"Q4","2017-12-31","Summary","Operating Expense","Medical Benefits Expense","Transportation Services",7.3,"Ending IBNP for Transportation",{"$f":"IFERROR('MMA Rev-Exp Summary'!$AK$53/'MMA Rev-Exp Summary'!$AK$9, 0)","v":{"v":0,"d":"$0.00"}},{"$f":"IFERROR('MMA Rev-Exp Summary'!$AL$53/'MMA Rev-Exp Summary'!$AL$9, 0)","v":{"v":0,"d":"$0.00"}},{"$f":"IFERROR('MMA Rev-Exp Summary'!$AM$53/'MMA Rev-Exp Summary'!$AM$9, 0)","v":{"v":0,"d":"$0.00"}},{"$f":"IFERROR('MMA Rev-Exp Summary'!$AN$53/'MMA Rev-Exp Summary'!$AN$9, 0)","v":{"v":0,"d":"$0.00"}},{"$f":"IFERROR('MMA Rev-Exp Summary'!$AO$53/'MMA Rev-Exp Summary'!$AO$9, 0)","v":{"v":0,"d":"$0.00"}},{"$f":"IFERROR('MMA Rev-Exp Summary'!$AP$53/'MMA Rev-Exp Summary'!$AP$9, 0)","v":{"v":0,"d":"$0.00"}},{"$f":"IFERROR('MMA Rev-Exp Summary'!$AQ$53/'MMA Rev-Exp Summary'!$AQ$9, 0)","v":{"v":0,"d":"$0.00"}},{"$f":"IFERROR('MMA Rev-Exp Summary'!$AR$53/'MMA Rev-Exp Summary'!$AR$9, 0)","v":{"v":0,"d":"$0.00"}},{"$f":"IFERROR('MMA Rev-Exp Summary'!$AS$53/'MMA Rev-Exp Summary'!$AS$9, 0)","v":{"v":0,"d":"$0.00"}},{"$f":"IFERROR('MMA Rev-Exp Summary'!$AT$53/'MMA Rev-Exp Summary'!$AT$9, 0)","v":{"v":0,"d":"$0.00"}},{"$f":"IFERROR('MMA Rev-Exp Summary'!$AU$53/'MMA Rev-Exp Summary'!$AU$9, 0)","v":{"v":0,"d":"$0.00"}}]
["MMA",null,null,{"$f":"Jurat!I$1","v":0},{"$f":"Jurat!D$33","v":"00:00:00"},"Q4","2017-12-31","Summary","Operating Expense","Medical Benefits Expense","Transportation Services","7.4","Transportation Settlements",{"$f":"IFERROR('MMA Rev-Exp Summary'!$AK$54/'MMA Rev-Exp Summary'!$AK$9, 0)","v":{"v":0,"d":"$0.00"}},{"$f":"IFERROR('MMA Rev-Exp Summary'!$AL$54/'MMA Rev-Exp Summary'!$AL$9, 0)","v":{"v":0,"d":"$0.00"}},{"$f":"IFERROR('MMA Rev-Exp Summary'!$AM$54/'MMA Rev-Exp Summary'!$AM$9, 0)","v":{"v":0,"d":"$0.00"}},{"$f":"IFERROR('MMA Rev-Exp Summary'!$AN$54/'MMA Rev-Exp Summary'!$AN$9, 0)","v":{"v":0,"d":"$0.00"}},{"$f":"IFERROR('MMA Rev-Exp Summary'!$AO$54/'MMA Rev-Exp Summary'!$AO$9, 0)","v":{"v":0,"d":"$0.00"}},{"$f":"IFERROR('MMA Rev-Exp Summary'!$AP$54/'MMA Rev-Exp Summary'!$AP$9, 0)","v":{"v":0,"d":"$0.00"}},{"$f":"IFERROR('MMA Rev-Exp Summary'!$AQ$54/'MMA Rev-Exp Summary'!$AQ$9, 0)","v":{"v":0,"d":"$0.00"}},{"$f":"IFERROR('MMA Rev-Exp Summary'!$AR$54/'MMA Rev-Exp Summary'!$AR$9, 0)","v":{"v":0,"d":"$0.00"}},{"$f":"IFERROR('MMA Rev-Exp Summary'!$AS$54/'MMA Rev-Exp Summary'!$AS$9, 0)","v":{"v":0,"d":"$0.00"}},{"$f":"IFERROR('MMA Rev-Exp Summary'!$AT$54/'MMA Rev-Exp Summary'!$AT$9, 0)","v":{"v":0,"d":"$0.00"}},{"$f":"IFERROR('MMA Rev-Exp Summary'!$AU$54/'MMA Rev-Exp Summary'!$AU$9, 0)","v":{"v":0,"d":"$0.00"}}]
["MMA",null,null,{"$f":"Jurat!I$1","v":0},{"$f":"Jurat!D$33","v":"00:00:00"},"Q4","2017-12-31","Summary","Operating Expense","Medical Benefits Expense","Pharmacy Services",8.1,"Prescription Drugs FFS",{"$f":"IFERROR('MMA Rev-Exp Summary'!$AK$56/'MMA Rev-Exp Summary'!$AK$9, 0)","v":{"v":0,"d":"$0.00"}},{"$f":"IFERROR('MMA Rev-Exp Summary'!$AL$56/'MMA Rev-Exp Summary'!$AL$9, 0)","v":{"v":0,"d":"$0.00"}},{"$f":"IFERROR('MMA Rev-Exp Summary'!$AM$56/'MMA Rev-Exp Summary'!$AM$9, 0)","v":{"v":0,"d":"$0.00"}},{"$f":"IFERROR('MMA Rev-Exp Summary'!$AN$56/'MMA Rev-Exp Summary'!$AN$9, 0)","v":{"v":0,"d":"$0.00"}},{"$f":"IFERROR('MMA Rev-Exp Summary'!$AO$56/'MMA Rev-Exp Summary'!$AO$9, 0)","v":{"v":0,"d":"$0.00"}},{"$f":"IFERROR('MMA Rev-Exp Summary'!$AP$56/'MMA Rev-Exp Summary'!$AP$9, 0)","v":{"v":0,"d":"$0.00"}},{"$f":"IFERROR('MMA Rev-Exp Summary'!$AQ$56/'MMA Rev-Exp Summary'!$AQ$9, 0)","v":{"v":0,"d":"$0.00"}},{"$f":"IFERROR('MMA Rev-Exp Summary'!$AR$56/'MMA Rev-Exp Summary'!$AR$9, 0)","v":{"v":0,"d":"$0.00"}},{"$f":"IFERROR('MMA Rev-Exp Summary'!$AS$56/'MMA Rev-Exp Summary'!$AS$9, 0)","v":{"v":0,"d":"$0.00"}},{"$f":"IFERROR('MMA Rev-Exp Summary'!$AT$56/'MMA Rev-Exp Summary'!$AT$9, 0)","v":{"v":0,"d":"$0.00"}},{"$f":"IFERROR('MMA Rev-Exp Summary'!$AU$56/'MMA Rev-Exp Summary'!$AU$9, 0)","v":{"v":0,"d":"$0.00"}}]
["MMA",null,null,{"$f":"Jurat!I$1","v":0},{"$f":"Jurat!D$33","v":"00:00:00"},"Q4","2017-12-31","Summary","Operating Expense","Medical Benefits Expense","Pharmacy Services","8.2","Hepatitis C Prescription Drug FFS",{"$f":"IFERROR('MMA Rev-Exp Summary'!$AK$57/'MMA Rev-Exp Summary'!$AK$9, 0)","v":{"v":0,"d":"$0.00"}},{"$f":"IFERROR('MMA Rev-Exp Summary'!$AL$57/'MMA Rev-Exp Summary'!$AL$9, 0)","v":{"v":0,"d":"$0.00"}},{"$f":"IFERROR('MMA Rev-Exp Summary'!$AM$57/'MMA Rev-Exp Summary'!$AM$9, 0)","v":{"v":0,"d":"$0.00"}},{"$f":"IFERROR('MMA Rev-Exp Summary'!$AN$57/'MMA Rev-Exp Summary'!$AN$9, 0)","v":{"v":0,"d":"$0.00"}},{"$f":"IFERROR('MMA Rev-Exp Summary'!$AO$57/'MMA Rev-Exp Summary'!$AO$9, 0)","v":{"v":0,"d":"$0.00"}},{"$f":"IFERROR('MMA Rev-Exp Summary'!$AP$57/'MMA Rev-Exp Summary'!$AP$9, 0)","v":{"v":0,"d":"$0.00"}},{"$f":"IFERROR('MMA Rev-Exp Summary'!$AQ$57/'MMA Rev-Exp Summary'!$AQ$9, 0)","v":{"v":0,"d":"$0.00"}},{"$f":"IFERROR('MMA Rev-Exp Summary'!$AR$57/'MMA Rev-Exp Summary'!$AR$9, 0)","v":{"v":0,"d":"$0.00"}},{"$f":"IFERROR('MMA Rev-Exp Summary'!$AS$57/'MMA Rev-Exp Summary'!$AS$9, 0)","v":{"v":0,"d":"$0.00"}},{"$f":"IFERROR('MMA Rev-Exp Summary'!$AT$57/'MMA Rev-Exp Summary'!$AT$9, 0)","v":{"v":0,"d":"$0.00"}},{"$f":"IFERROR('MMA Rev-Exp Summary'!$AU$57/'MMA Rev-Exp Summary'!$AU$9, 0)","v":{"v":0,"d":"$0.00"}}]
["MMA",null,null,{"$f":"Jurat!I$1","v":0},{"$f":"Jurat!D$33","v":"00:00:00"},"Q4","2017-12-31","Summary","Operating Expense","Medical Benefits Expense","Pharmacy Services","8.3","Ending IBNP for Prescription Drugs",{"$f":"IFERROR('MMA Rev-Exp Summary'!$AK$58/'MMA Rev-Exp Summary'!$AK$9, 0)","v":{"v":0,"d":"$0.00"}},{"$f":"IFERROR('MMA Rev-Exp Summary'!$AL$58/'MMA Rev-Exp Summary'!$AL$9, 0)","v":{"v":0,"d":"$0.00"}},{"$f":"IFERROR('MMA Rev-Exp Summary'!$AM$58/'MMA Rev-Exp Summary'!$AM$9, 0)","v":{"v":0,"d":"$0.00"}},{"$f":"IFERROR('MMA Rev-Exp Summary'!$AN$58/'MMA Rev-Exp Summary'!$AN$9, 0)","v":{"v":0,"d":"$0.00"}},{"$f":"IFERROR('MMA Rev-Exp Summary'!$AO$58/'MMA Rev-Exp Summary'!$AO$9, 0)","v":{"v":0,"d":"$0.00"}},{"$f":"IFERROR('MMA Rev-Exp Summary'!$AP$58/'MMA Rev-Exp Summary'!$AP$9, 0)","v":{"v":0,"d":"$0.00"}},{"$f":"IFERROR('MMA Rev-Exp Summary'!$AQ$58/'MMA Rev-Exp Summary'!$AQ$9, 0)","v":{"v":0,"d":"$0.00"}},{"$f":"IFERROR('MMA Rev-Exp Summary'!$AR$58/'MMA Rev-Exp Summary'!$AR$9, 0)","v":{"v":0,"d":"$0.00"}},{"$f":"IFERROR('MMA Rev-Exp Summary'!$AS$58/'MMA Rev-Exp Summary'!$AS$9, 0)","v":{"v":0,"d":"$0.00"}},{"$f":"IFERROR('MMA Rev-Exp Summary'!$AT$58/'MMA Rev-Exp Summary'!$AT$9, 0)","v":{"v":0,"d":"$0.00"}},{"$f":"IFERROR('MMA Rev-Exp Summary'!$AU$58/'MMA Rev-Exp Summary'!$AU$9, 0)","v":{"v":0,"d":"$0.00"}}]
["MMA",null,null,{"$f":"Jurat!I$1","v":0},{"$f":"Jurat!D$33","v":"00:00:00"},"Q4","2017-12-31","Summary","Operating Expense","Medical Benefits Expense","Pharmacy Services","8.4","Prescription Drug Rebates ",{"$f":"IFERROR('MMA Rev-Exp Summary'!$AK$59/'MMA Rev-Exp Summary'!$AK$9, 0)","v":{"v":0,"d":"$0.00"}},{"$f":"IFERROR('MMA Rev-Exp Summary'!$AL$59/'MMA Rev-Exp Summary'!$AL$9, 0)","v":{"v":0,"d":"$0.00"}},{"$f":"IFERROR('MMA Rev-Exp Summary'!$AM$59/'MMA Rev-Exp Summary'!$AM$9, 0)","v":{"v":0,"d":"$0.00"}},{"$f":"IFERROR('MMA Rev-Exp Summary'!$AN$59/'MMA Rev-Exp Summary'!$AN$9, 0)","v":{"v":0,"d":"$0.00"}},{"$f":"IFERROR('MMA Rev-Exp Summary'!$AO$59/'MMA Rev-Exp Summary'!$AO$9, 0)","v":{"v":0,"d":"$0.00"}},{"$f":"IFERROR('MMA Rev-Exp Summary'!$AP$59/'MMA Rev-Exp Summary'!$AP$9, 0)","v":{"v":0,"d":"$0.00"}},{"$f":"IFERROR('MMA Rev-Exp Summary'!$AQ$59/'MMA Rev-Exp Summary'!$AQ$9, 0)","v":{"v":0,"d":"$0.00"}},{"$f":"IFERROR('MMA Rev-Exp Summary'!$AR$59/'MMA Rev-Exp Summary'!$AR$9, 0)","v":{"v":0,"d":"$0.00"}},{"$f":"IFERROR('MMA Rev-Exp Summary'!$AS$59/'MMA Rev-Exp Summary'!$AS$9, 0)","v":{"v":0,"d":"$0.00"}},{"$f":"IFERROR('MMA Rev-Exp Summary'!$AT$59/'MMA Rev-Exp Summary'!$AT$9, 0)","v":{"v":0,"d":"$0.00"}},{"$f":"IFERROR('MMA Rev-Exp Summary'!$AU$59/'MMA Rev-Exp Summary'!$AU$9, 0)","v":{"v":0,"d":"$0.00"}}]
["MMA",null,null,{"$f":"Jurat!I$1","v":0},{"$f":"Jurat!D$33","v":"00:00:00"},"Q4","2017-12-31","Summary","Operating Expense","Medical Benefits Expense","Pharmacy Services","8.5","Ending accrual for Rebates receivable",{"$f":"IFERROR('MMA Rev-Exp Summary'!$AK$60/'MMA Rev-Exp Summary'!$AK$9, 0)","v":{"v":0,"d":"$0.00"}},{"$f":"IFERROR('MMA Rev-Exp Summary'!$AL$60/'MMA Rev-Exp Summary'!$AL$9, 0)","v":{"v":0,"d":"$0.00"}},{"$f":"IFERROR('MMA Rev-Exp Summary'!$AM$60/'MMA Rev-Exp Summary'!$AM$9, 0)","v":{"v":0,"d":"$0.00"}},{"$f":"IFERROR('MMA Rev-Exp Summary'!$AN$60/'MMA Rev-Exp Summary'!$AN$9, 0)","v":{"v":0,"d":"$0.00"}},{"$f":"IFERROR('MMA Rev-Exp Summary'!$AO$60/'MMA Rev-Exp Summary'!$AO$9, 0)","v":{"v":0,"d":"$0.00"}},{"$f":"IFERROR('MMA Rev-Exp Summary'!$AP$60/'MMA Rev-Exp Summary'!$AP$9, 0)","v":{"v":0,"d":"$0.00"}},{"$f":"IFERROR('MMA Rev-Exp Summary'!$AQ$60/'MMA Rev-Exp Summary'!$AQ$9, 0)","v":{"v":0,"d":"$0.00"}},{"$f":"IFERROR('MMA Rev-Exp Summary'!$AR$60/'MMA Rev-Exp Summary'!$AR$9, 0)","v":{"v":0,"d":"$0.00"}},{"$f":"IFERROR('MMA Rev-Exp Summary'!$AS$60/'MMA Rev-Exp Summary'!$AS$9, 0)","v":{"v":0,"d":"$0.00"}},{"$f":"IFERROR('MMA Rev-Exp Summary'!$AT$60/'MMA Rev-Exp Summary'!$AT$9, 0)","v":{"v":0,"d":"$0.00"}},{"$f":"IFERROR('MMA Rev-Exp Summary'!$AU$60/'MMA Rev-Exp Summary'!$AU$9, 0)","v":{"v":0,"d":"$0.00"}}]
["MMA",null,null,{"$f":"Jurat!I$1","v":0},{"$f":"Jurat!D$33","v":"00:00:00"},"Q4","2017-12-31","Summary","Operating Expense","Medical Benefits Expense","Pharmacy Services","8.6","Prescription Drugs Subcapitation",{"$f":"IFERROR('MMA Rev-Exp Summary'!$AK$61/'MMA Rev-Exp Summary'!$AK$9, 0)","v":{"v":0,"d":"$0.00"}},{"$f":"IFERROR('MMA Rev-Exp Summary'!$AL$61/'MMA Rev-Exp Summary'!$AL$9, 0)","v":{"v":0,"d":"$0.00"}},{"$f":"IFERROR('MMA Rev-Exp Summary'!$AM$61/'MMA Rev-Exp Summary'!$AM$9, 0)","v":{"v":0,"d":"$0.00"}},{"$f":"IFERROR('MMA Rev-Exp Summary'!$AN$61/'MMA Rev-Exp Summary'!$AN$9, 0)","v":{"v":0,"d":"$0.00"}},{"$f":"IFERROR('MMA Rev-Exp Summary'!$AO$61/'MMA Rev-Exp Summary'!$AO$9, 0)","v":{"v":0,"d":"$0.00"}},{"$f":"IFERROR('MMA Rev-Exp Summary'!$AP$61/'MMA Rev-Exp Summary'!$AP$9, 0)","v":{"v":0,"d":"$0.00"}},{"$f":"IFERROR('MMA Rev-Exp Summary'!$AQ$61/'MMA Rev-Exp Summary'!$AQ$9, 0)","v":{"v":0,"d":"$0.00"}},{"$f":"IFERROR('MMA Rev-Exp Summary'!$AR$61/'MMA Rev-Exp Summary'!$AR$9, 0)","v":{"v":0,"d":"$0.00"}},{"$f":"IFERROR('MMA Rev-Exp Summary'!$AS$61/'MMA Rev-Exp Summary'!$AS$9, 0)","v":{"v":0,"d":"$0.00"}},{"$f":"IFERROR('MMA Rev-Exp Summary'!$AT$61/'MMA Rev-Exp Summary'!$AT$9, 0)","v":{"v":0,"d":"$0.00"}},{"$f":"IFERROR('MMA Rev-Exp Summary'!$AU$61/'MMA Rev-Exp Summary'!$AU$9, 0)","v":{"v":0,"d":"$0.00"}}]
["MMA",null,null,{"$f":"Jurat!I$1","v":0},{"$f":"Jurat!D$33","v":"00:00:00"},"Q4","2017-12-31","Summary","Operating Expense","Medical Benefits Expense","Pharmacy Services","8.7","Prescription Drug Settlements",{"$f":"IFERROR('MMA Rev-Exp Summary'!$AK$62/'MMA Rev-Exp Summary'!$AK$9, 0)","v":{"v":0,"d":"$0.00"}},{"$f":"IFERROR('MMA Rev-Exp Summary'!$AL$62/'MMA Rev-Exp Summary'!$AL$9, 0)","v":{"v":0,"d":"$0.00"}},{"$f":"IFERROR('MMA Rev-Exp Summary'!$AM$62/'MMA Rev-Exp Summary'!$AM$9, 0)","v":{"v":0,"d":"$0.00"}},{"$f":"IFERROR('MMA Rev-Exp Summary'!$AN$62/'MMA Rev-Exp Summary'!$AN$9, 0)","v":{"v":0,"d":"$0.00"}},{"$f":"IFERROR('MMA Rev-Exp Summary'!$AO$62/'MMA Rev-Exp Summary'!$AO$9, 0)","v":{"v":0,"d":"$0.00"}},{"$f":"IFERROR('MMA Rev-Exp Summary'!$AP$62/'MMA Rev-Exp Summary'!$AP$9, 0)","v":{"v":0,"d":"$0.00"}},{"$f":"IFERROR('MMA Rev-Exp Summary'!$AQ$62/'MMA Rev-Exp Summary'!$AQ$9, 0)","v":{"v":0,"d":"$0.00"}},{"$f":"IFERROR('MMA Rev-Exp Summary'!$AR$62/'MMA Rev-Exp Summary'!$AR$9, 0)","v":{"v":0,"d":"$0.00"}},{"$f":"IFERROR('MMA Rev-Exp Summary'!$AS$62/'MMA Rev-Exp Summary'!$AS$9, 0)","v":{"v":0,"d":"$0.00"}},{"$f":"IFERROR('MMA Rev-Exp Summary'!$AT$62/'MMA Rev-Exp Summary'!$AT$9, 0)","v":{"v":0,"d":"$0.00"}},{"$f":"IFERROR('MMA Rev-Exp Summary'!$AU$62/'MMA Rev-Exp Summary'!$AU$9, 0)","v":{"v":0,"d":"$0.00"}}]
["MMA",null,null,{"$f":"Jurat!I$1","v":0},{"$f":"Jurat!D$33","v":"00:00:00"},"Q4","2017-12-31","Summary","Operating Expense","Medical Benefits Expense","Other MMA Services",9.1,"Home Health, Private Duty Nursing, Personal Care FFS",{"$f":"IFERROR('MMA Rev-Exp Summary'!$AK$64/'MMA Rev-Exp Summary'!$AK$9, 0)","v":{"v":0,"d":"$0.00"}},{"$f":"IFERROR('MMA Rev-Exp Summary'!$AL$64/'MMA Rev-Exp Summary'!$AL$9, 0)","v":{"v":0,"d":"$0.00"}},{"$f":"IFERROR('MMA Rev-Exp Summary'!$AM$64/'MMA Rev-Exp Summary'!$AM$9, 0)","v":{"v":0,"d":"$0.00"}},{"$f":"IFERROR('MMA Rev-Exp Summary'!$AN$64/'MMA Rev-Exp Summary'!$AN$9, 0)","v":{"v":0,"d":"$0.00"}},{"$f":"IFERROR('MMA Rev-Exp Summary'!$AO$64/'MMA Rev-Exp Summary'!$AO$9, 0)","v":{"v":0,"d":"$0.00"}},{"$f":"IFERROR('MMA Rev-Exp Summary'!$AP$64/'MMA Rev-Exp Summary'!$AP$9, 0)","v":{"v":0,"d":"$0.00"}},{"$f":"IFERROR('MMA Rev-Exp Summary'!$AQ$64/'MMA Rev-Exp Summary'!$AQ$9, 0)","v":{"v":0,"d":"$0.00"}},{"$f":"IFERROR('MMA Rev-Exp Summary'!$AR$64/'MMA Rev-Exp Summary'!$AR$9, 0)","v":{"v":0,"d":"$0.00"}},{"$f":"IFERROR('MMA Rev-Exp Summary'!$AS$64/'MMA Rev-Exp Summary'!$AS$9, 0)","v":{"v":0,"d":"$0.00"}},{"$f":"IFERROR('MMA Rev-Exp Summary'!$AT$64/'MMA Rev-Exp Summary'!$AT$9, 0)","v":{"v":0,"d":"$0.00"}},{"$f":"IFERROR('MMA Rev-Exp Summary'!$AU$64/'MMA Rev-Exp Summary'!$AU$9, 0)","v":{"v":0,"d":"$0.00"}}]
["MMA",null,null,{"$f":"Jurat!I$1","v":0},{"$f":"Jurat!D$33","v":"00:00:00"},"Q4","2017-12-31","Summary","Operating Expense","Medical Benefits Expense","Other MMA Services","9.2","Hospice FFS",{"$f":"IFERROR('MMA Rev-Exp Summary'!$AK$65/'MMA Rev-Exp Summary'!$AK$9, 0)","v":{"v":0,"d":"$0.00"}},{"$f":"IFERROR('MMA Rev-Exp Summary'!$AL$65/'MMA Rev-Exp Summary'!$AL$9, 0)","v":{"v":0,"d":"$0.00"}},{"$f":"IFERROR('MMA Rev-Exp Summary'!$AM$65/'MMA Rev-Exp Summary'!$AM$9, 0)","v":{"v":0,"d":"$0.00"}},{"$f":"IFERROR('MMA Rev-Exp Summary'!$AN$65/'MMA Rev-Exp Summary'!$AN$9, 0)","v":{"v":0,"d":"$0.00"}},{"$f":"IFERROR('MMA Rev-Exp Summary'!$AO$65/'MMA Rev-Exp Summary'!$AO$9, 0)","v":{"v":0,"d":"$0.00"}},{"$f":"IFERROR('MMA Rev-Exp Summary'!$AP$65/'MMA Rev-Exp Summary'!$AP$9, 0)","v":{"v":0,"d":"$0.00"}},{"$f":"IFERROR('MMA Rev-Exp Summary'!$AQ$65/'MMA Rev-Exp Summary'!$AQ$9, 0)","v":{"v":0,"d":"$0.00"}},{"$f":"IFERROR('MMA Rev-Exp Summary'!$AR$65/'MMA Rev-Exp Summary'!$AR$9, 0)","v":{"v":0,"d":"$0.00"}},{"$f":"IFERROR('MMA Rev-Exp Summary'!$AS$65/'MMA Rev-Exp Summary'!$AS$9, 0)","v":{"v":0,"d":"$0.00"}},{"$f":"IFERROR('MMA Rev-Exp Summary'!$AT$65/'MMA Rev-Exp Summary'!$AT$9, 0)","v":{"v":0,"d":"$0.00"}},{"$f":"IFERROR('MMA Rev-Exp Summary'!$AU$65/'MMA Rev-Exp Summary'!$AU$9, 0)","v":{"v":0,"d":"$0.00"}}]
["MMA",null,null,{"$f":"Jurat!I$1","v":0},{"$f":"Jurat!D$33","v":"00:00:00"},"Q4","2017-12-31","Summary","Operating Expense","Medical Benefits Expense","Other MMA Services","9.3","DME FFS",{"$f":"IFERROR('MMA Rev-Exp Summary'!$AK$66/'MMA Rev-Exp Summary'!$AK$9, 0)","v":{"v":0,"d":"$0.00"}},{"$f":"IFERROR('MMA Rev-Exp Summary'!$AL$66/'MMA Rev-Exp Summary'!$AL$9, 0)","v":{"v":0,"d":"$0.00"}},{"$f":"IFERROR('MMA Rev-Exp Summary'!$AM$66/'MMA Rev-Exp Summary'!$AM$9, 0)","v":{"v":0,"d":"$0.00"}},{"$f":"IFERROR('MMA Rev-Exp Summary'!$AN$66/'MMA Rev-Exp Summary'!$AN$9, 0)","v":{"v":0,"d":"$0.00"}},{"$f":"IFERROR('MMA Rev-Exp Summary'!$AO$66/'MMA Rev-Exp Summary'!$AO$9, 0)","v":{"v":0,"d":"$0.00"}},{"$f":"IFERROR('MMA Rev-Exp Summary'!$AP$66/'MMA Rev-Exp Summary'!$AP$9, 0)","v":{"v":0,"d":"$0.00"}},{"$f":"IFERROR('MMA Rev-Exp Summary'!$AQ$66/'MMA Rev-Exp Summary'!$AQ$9, 0)","v":{"v":0,"d":"$0.00"}},{"$f":"IFERROR('MMA Rev-Exp Summary'!$AR$66/'MMA Rev-Exp Summary'!$AR$9, 0)","v":{"v":0,"d":"$0.00"}},{"$f":"IFERROR('MMA Rev-Exp Summary'!$AS$66/'MMA Rev-Exp Summary'!$AS$9, 0)","v":{"v":0,"d":"$0.00"}},{"$f":"IFERROR('MMA Rev-Exp Summary'!$AT$66/'MMA Rev-Exp Summary'!$AT$9, 0)","v":{"v":0,"d":"$0.00"}},{"$f":"IFERROR('MMA Rev-Exp Summary'!$AU$66/'MMA Rev-Exp Summary'!$AU$9, 0)","v":{"v":0,"d":"$0.00"}}]
["MMA",null,null,{"$f":"Jurat!I$1","v":0},{"$f":"Jurat!D$33","v":"00:00:00"},"Q4","2017-12-31","Summary","Operating Expense","Medical Benefits Expense","Other MMA Services","9.4","Other State Plan Services FFS",{"$f":"IFERROR('MMA Rev-Exp Summary'!$AK$67/'MMA Rev-Exp Summary'!$AK$9, 0)","v":{"v":0,"d":"$0.00"}},{"$f":"IFERROR('MMA Rev-Exp Summary'!$AL$67/'MMA Rev-Exp Summary'!$AL$9, 0)","v":{"v":0,"d":"$0.00"}},{"$f":"IFERROR('MMA Rev-Exp Summary'!$AM$67/'MMA Rev-Exp Summary'!$AM$9, 0)","v":{"v":0,"d":"$0.00"}},{"$f":"IFERROR('MMA Rev-Exp Summary'!$AN$67/'MMA Rev-Exp Summary'!$AN$9, 0)","v":{"v":0,"d":"$0.00"}},{"$f":"IFERROR('MMA Rev-Exp Summary'!$AO$67/'MMA Rev-Exp Summary'!$AO$9, 0)","v":{"v":0,"d":"$0.00"}},{"$f":"IFERROR('MMA Rev-Exp Summary'!$AP$67/'MMA Rev-Exp Summary'!$AP$9, 0)","v":{"v":0,"d":"$0.00"}},{"$f":"IFERROR('MMA Rev-Exp Summary'!$AQ$67/'MMA Rev-Exp Summary'!$AQ$9, 0)","v":{"v":0,"d":"$0.00"}},{"$f":"IFERROR('MMA Rev-Exp Summary'!$AR$67/'MMA Rev-Exp Summary'!$AR$9, 0)","v":{"v":0,"d":"$0.00"}},{"$f":"IFERROR('MMA Rev-Exp Summary'!$AS$67/'MMA Rev-Exp Summary'!$AS$9, 0)","v":{"v":0,"d":"$0.00"}},{"$f":"IFERROR('MMA Rev-Exp Summary'!$AT$67/'MMA Rev-Exp Summary'!$AT$9, 0)","v":{"v":0,"d":"$0.00"}},{"$f":"IFERROR('MMA Rev-Exp Summary'!$AU$67/'MMA Rev-Exp Summary'!$AU$9, 0)","v":{"v":0,"d":"$0.00"}}]
["MMA",null,null,{"$f":"Jurat!I$1","v":0},{"$f":"Jurat!D$33","v":"00:00:00"},"Q4","2017-12-31","Summary","Operating Expense","Medical Benefits Expense","Other MMA Services","9.5","Other Services Subcapitation",{"$f":"IFERROR('MMA Rev-Exp Summary'!$AK$68/'MMA Rev-Exp Summary'!$AK$9, 0)","v":{"v":0,"d":"$0.00"}},{"$f":"IFERROR('MMA Rev-Exp Summary'!$AL$68/'MMA Rev-Exp Summary'!$AL$9, 0)","v":{"v":0,"d":"$0.00"}},{"$f":"IFERROR('MMA Rev-Exp Summary'!$AM$68/'MMA Rev-Exp Summary'!$AM$9, 0)","v":{"v":0,"d":"$0.00"}},{"$f":"IFERROR('MMA Rev-Exp Summary'!$AN$68/'MMA Rev-Exp Summary'!$AN$9, 0)","v":{"v":0,"d":"$0.00"}},{"$f":"IFERROR('MMA Rev-Exp Summary'!$AO$68/'MMA Rev-Exp Summary'!$AO$9, 0)","v":{"v":0,"d":"$0.00"}},{"$f":"IFERROR('MMA Rev-Exp Summary'!$AP$68/'MMA Rev-Exp Summary'!$AP$9, 0)","v":{"v":0,"d":"$0.00"}},{"$f":"IFERROR('MMA Rev-Exp Summary'!$AQ$68/'MMA Rev-Exp Summary'!$AQ$9, 0)","v":{"v":0,"d":"$0.00"}},{"$f":"IFERROR('MMA Rev-Exp Summary'!$AR$68/'MMA Rev-Exp Summary'!$AR$9, 0)","v":{"v":0,"d":"$0.00"}},{"$f":"IFERROR('MMA Rev-Exp Summary'!$AS$68/'MMA Rev-Exp Summary'!$AS$9, 0)","v":{"v":0,"d":"$0.00"}},{"$f":"IFERROR('MMA Rev-Exp Summary'!$AT$68/'MMA Rev-Exp Summary'!$AT$9, 0)","v":{"v":0,"d":"$0.00"}},{"$f":"IFERROR('MMA Rev-Exp Summary'!$AU$68/'MMA Rev-Exp Summary'!$AU$9, 0)","v":{"v":0,"d":"$0.00"}}]
["MMA",null,null,{"$f":"Jurat!I$1","v":0},{"$f":"Jurat!D$33","v":"00:00:00"},"Q4","2017-12-31","Summary","Operating Expense","Medical Benefits Expense","Other MMA Services","9.6","Ending IBNP for Other Services",{"$f":"IFERROR('MMA Rev-Exp Summary'!$AK$69/'MMA Rev-Exp Summary'!$AK$9, 0)","v":{"v":0,"d":"$0.00"}},{"$f":"IFERROR('MMA Rev-Exp Summary'!$AL$69/'MMA Rev-Exp Summary'!$AL$9, 0)","v":{"v":0,"d":"$0.00"}},{"$f":"IFERROR('MMA Rev-Exp Summary'!$AM$69/'MMA Rev-Exp Summary'!$AM$9, 0)","v":{"v":0,"d":"$0.00"}},{"$f":"IFERROR('MMA Rev-Exp Summary'!$AN$69/'MMA Rev-Exp Summary'!$AN$9, 0)","v":{"v":0,"d":"$0.00"}},{"$f":"IFERROR('MMA Rev-Exp Summary'!$AO$69/'MMA Rev-Exp Summary'!$AO$9, 0)","v":{"v":0,"d":"$0.00"}},{"$f":"IFERROR('MMA Rev-Exp Summary'!$AP$69/'MMA Rev-Exp Summary'!$AP$9, 0)","v":{"v":0,"d":"$0.00"}},{"$f":"IFERROR('MMA Rev-Exp Summary'!$AQ$69/'MMA Rev-Exp Summary'!$AQ$9, 0)","v":{"v":0,"d":"$0.00"}},{"$f":"IFERROR('MMA Rev-Exp Summary'!$AR$69/'MMA Rev-Exp Summary'!$AR$9, 0)","v":{"v":0,"d":"$0.00"}},{"$f":"IFERROR('MMA Rev-Exp Summary'!$AS$69/'MMA Rev-Exp Summary'!$AS$9, 0)","v":{"v":0,"d":"$0.00"}},{"$f":"IFERROR('MMA Rev-Exp Summary'!$AT$69/'MMA Rev-Exp Summary'!$AT$9, 0)","v":{"v":0,"d":"$0.00"}},{"$f":"IFERROR('MMA Rev-Exp Summary'!$AU$69/'MMA Rev-Exp Summary'!$AU$9, 0)","v":{"v":0,"d":"$0.00"}}]
["MMA",null,null,{"$f":"Jurat!I$1","v":0},{"$f":"Jurat!D$33","v":"00:00:00"},"Q4","2017-12-31","Summary","Operating Expense","Medical Benefits Expense","Other MMA Services","9.7","Other Services Settlements",{"$f":"IFERROR('MMA Rev-Exp Summary'!$AK$70/'MMA Rev-Exp Summary'!$AK$9, 0)","v":{"v":0,"d":"$0.00"}},{"$f":"IFERROR('MMA Rev-Exp Summary'!$AL$70/'MMA Rev-Exp Summary'!$AL$9, 0)","v":{"v":0,"d":"$0.00"}},{"$f":"IFERROR('MMA Rev-Exp Summary'!$AM$70/'MMA Rev-Exp Summary'!$AM$9, 0)","v":{"v":0,"d":"$0.00"}},{"$f":"IFERROR('MMA Rev-Exp Summary'!$AN$70/'MMA Rev-Exp Summary'!$AN$9, 0)","v":{"v":0,"d":"$0.00"}},{"$f":"IFERROR('MMA Rev-Exp Summary'!$AO$70/'MMA Rev-Exp Summary'!$AO$9, 0)","v":{"v":0,"d":"$0.00"}},{"$f":"IFERROR('MMA Rev-Exp Summary'!$AP$70/'MMA Rev-Exp Summary'!$AP$9, 0)","v":{"v":0,"d":"$0.00"}},{"$f":"IFERROR('MMA Rev-Exp Summary'!$AQ$70/'MMA Rev-Exp Summary'!$AQ$9, 0)","v":{"v":0,"d":"$0.00"}},{"$f":"IFERROR('MMA Rev-Exp Summary'!$AR$70/'MMA Rev-Exp Summary'!$AR$9, 0)","v":{"v":0,"d":"$0.00"}},{"$f":"IFERROR('MMA Rev-Exp Summary'!$AS$70/'MMA Rev-Exp Summary'!$AS$9, 0)","v":{"v":0,"d":"$0.00"}},{"$f":"IFERROR('MMA Rev-Exp Summary'!$AT$70/'MMA Rev-Exp Summary'!$AT$9, 0)","v":{"v":0,"d":"$0.00"}},{"$f":"IFERROR('MMA Rev-Exp Summary'!$AU$70/'MMA Rev-Exp Summary'!$AU$9, 0)","v":{"v":0,"d":"$0.00"}}]
["MMA",null,null,{"$f":"Jurat!I$1","v":0},{"$f":"Jurat!D$33","v":"00:00:00"},"Q4","2017-12-31","Summary","Operating Expense","Medical Benefits Expense","Expanded Benefits","10.1","Expanded Benefits FFS",{"$f":"IFERROR('MMA Rev-Exp Summary'!$AK$72/'MMA Rev-Exp Summary'!$AK$9, 0)","v":{"v":0,"d":"$0.00"}},{"$f":"IFERROR('MMA Rev-Exp Summary'!$AL$72/'MMA Rev-Exp Summary'!$AL$9, 0)","v":{"v":0,"d":"$0.00"}},{"$f":"IFERROR('MMA Rev-Exp Summary'!$AM$72/'MMA Rev-Exp Summary'!$AM$9, 0)","v":{"v":0,"d":"$0.00"}},{"$f":"IFERROR('MMA Rev-Exp Summary'!$AN$72/'MMA Rev-Exp Summary'!$AN$9, 0)","v":{"v":0,"d":"$0.00"}},{"$f":"IFERROR('MMA Rev-Exp Summary'!$AO$72/'MMA Rev-Exp Summary'!$AO$9, 0)","v":{"v":0,"d":"$0.00"}},{"$f":"IFERROR('MMA Rev-Exp Summary'!$AP$72/'MMA Rev-Exp Summary'!$AP$9, 0)","v":{"v":0,"d":"$0.00"}},{"$f":"IFERROR('MMA Rev-Exp Summary'!$AQ$72/'MMA Rev-Exp Summary'!$AQ$9, 0)","v":{"v":0,"d":"$0.00"}},{"$f":"IFERROR('MMA Rev-Exp Summary'!$AR$72/'MMA Rev-Exp Summary'!$AR$9, 0)","v":{"v":0,"d":"$0.00"}},{"$f":"IFERROR('MMA Rev-Exp Summary'!$AS$72/'MMA Rev-Exp Summary'!$AS$9, 0)","v":{"v":0,"d":"$0.00"}},{"$f":"IFERROR('MMA Rev-Exp Summary'!$AT$72/'MMA Rev-Exp Summary'!$AT$9, 0)","v":{"v":0,"d":"$0.00"}},{"$f":"IFERROR('MMA Rev-Exp Summary'!$AU$72/'MMA Rev-Exp Summary'!$AU$9, 0)","v":{"v":0,"d":"$0.00"}}]
["MMA",null,null,{"$f":"Jurat!I$1","v":0},{"$f":"Jurat!D$33","v":"00:00:00"},"Q4","2017-12-31","Summary","Operating Expense","Medical Benefits Expense","Expanded Benefits","10.2","Expanded benefits Subcapitation",{"$f":"IFERROR('MMA Rev-Exp Summary'!$AK$73/'MMA Rev-Exp Summary'!$AK$9, 0)","v":{"v":0,"d":"$0.00"}},{"$f":"IFERROR('MMA Rev-Exp Summary'!$AL$73/'MMA Rev-Exp Summary'!$AL$9, 0)","v":{"v":0,"d":"$0.00"}},{"$f":"IFERROR('MMA Rev-Exp Summary'!$AM$73/'MMA Rev-Exp Summary'!$AM$9, 0)","v":{"v":0,"d":"$0.00"}},{"$f":"IFERROR('MMA Rev-Exp Summary'!$AN$73/'MMA Rev-Exp Summary'!$AN$9, 0)","v":{"v":0,"d":"$0.00"}},{"$f":"IFERROR('MMA Rev-Exp Summary'!$AO$73/'MMA Rev-Exp Summary'!$AO$9, 0)","v":{"v":0,"d":"$0.00"}},{"$f":"IFERROR('MMA Rev-Exp Summary'!$AP$73/'MMA Rev-Exp Summary'!$AP$9, 0)","v":{"v":0,"d":"$0.00"}},{"$f":"IFERROR('MMA Rev-Exp Summary'!$AQ$73/'MMA Rev-Exp Summary'!$AQ$9, 0)","v":{"v":0,"d":"$0.00"}},{"$f":"IFERROR('MMA Rev-Exp Summary'!$AR$73/'MMA Rev-Exp Summary'!$AR$9, 0)","v":{"v":0,"d":"$0.00"}},{"$f":"IFERROR('MMA Rev-Exp Summary'!$AS$73/'MMA Rev-Exp Summary'!$AS$9, 0)","v":{"v":0,"d":"$0.00"}},{"$f":"IFERROR('MMA Rev-Exp Summary'!$AT$73/'MMA Rev-Exp Summary'!$AT$9, 0)","v":{"v":0,"d":"$0.00"}},{"$f":"IFERROR('MMA Rev-Exp Summary'!$AU$73/'MMA Rev-Exp Summary'!$AU$9, 0)","v":{"v":0,"d":"$0.00"}}]
["MMA",null,null,{"$f":"Jurat!I$1","v":0},{"$f":"Jurat!D$33","v":"00:00:00"},"Q4","2017-12-31","Summary","Operating Expense","Medical Benefits Expense","Expanded Benefits","10.3","Ending IBNP for Expanded Benefits",{"$f":"IFERROR('MMA Rev-Exp Summary'!$AK$74/'MMA Rev-Exp Summary'!$AK$9, 0)","v":{"v":0,"d":"$0.00"}},{"$f":"IFERROR('MMA Rev-Exp Summary'!$AL$74/'MMA Rev-Exp Summary'!$AL$9, 0)","v":{"v":0,"d":"$0.00"}},{"$f":"IFERROR('MMA Rev-Exp Summary'!$AM$74/'MMA Rev-Exp Summary'!$AM$9, 0)","v":{"v":0,"d":"$0.00"}},{"$f":"IFERROR('MMA Rev-Exp Summary'!$AN$74/'MMA Rev-Exp Summary'!$AN$9, 0)","v":{"v":0,"d":"$0.00"}},{"$f":"IFERROR('MMA Rev-Exp Summary'!$AO$74/'MMA Rev-Exp Summary'!$AO$9, 0)","v":{"v":0,"d":"$0.00"}},{"$f":"IFERROR('MMA Rev-Exp Summary'!$AP$74/'MMA Rev-Exp Summary'!$AP$9, 0)","v":{"v":0,"d":"$0.00"}},{"$f":"IFERROR('MMA Rev-Exp Summary'!$AQ$74/'MMA Rev-Exp Summary'!$AQ$9, 0)","v":{"v":0,"d":"$0.00"}},{"$f":"IFERROR('MMA Rev-Exp Summary'!$AR$74/'MMA Rev-Exp Summary'!$AR$9, 0)","v":{"v":0,"d":"$0.00"}},{"$f":"IFERROR('MMA Rev-Exp Summary'!$AS$74/'MMA Rev-Exp Summary'!$AS$9, 0)","v":{"v":0,"d":"$0.00"}},{"$f":"IFERROR('MMA Rev-Exp Summary'!$AT$74/'MMA Rev-Exp Summary'!$AT$9, 0)","v":{"v":0,"d":"$0.00"}},{"$f":"IFERROR('MMA Rev-Exp Summary'!$AU$74/'MMA Rev-Exp Summary'!$AU$9, 0)","v":{"v":0,"d":"$0.00"}}]
["MMA",null,null,{"$f":"Jurat!I$1","v":0},{"$f":"Jurat!D$33","v":"00:00:00"},"Q4","2017-12-31","Summary","Operating Expense","Medical Benefits Expense","Expanded Benefits","10.4","Expanded Benefits Settlements",{"$f":"IFERROR('MMA Rev-Exp Summary'!$AK$75/'MMA Rev-Exp Summary'!$AK$9, 0)","v":{"v":0,"d":"$0.00"}},{"$f":"IFERROR('MMA Rev-Exp Summary'!$AL$75/'MMA Rev-Exp Summary'!$AL$9, 0)","v":{"v":0,"d":"$0.00"}},{"$f":"IFERROR('MMA Rev-Exp Summary'!$AM$75/'MMA Rev-Exp Summary'!$AM$9, 0)","v":{"v":0,"d":"$0.00"}},{"$f":"IFERROR('MMA Rev-Exp Summary'!$AN$75/'MMA Rev-Exp Summary'!$AN$9, 0)","v":{"v":0,"d":"$0.00"}},{"$f":"IFERROR('MMA Rev-Exp Summary'!$AO$75/'MMA Rev-Exp Summary'!$AO$9, 0)","v":{"v":0,"d":"$0.00"}},{"$f":"IFERROR('MMA Rev-Exp Summary'!$AP$75/'MMA Rev-Exp Summary'!$AP$9, 0)","v":{"v":0,"d":"$0.00"}},{"$f":"IFERROR('MMA Rev-Exp Summary'!$AQ$75/'MMA Rev-Exp Summary'!$AQ$9, 0)","v":{"v":0,"d":"$0.00"}},{"$f":"IFERROR('MMA Rev-Exp Summary'!$AR$75/'MMA Rev-Exp Summary'!$AR$9, 0)","v":{"v":0,"d":"$0.00"}},{"$f":"IFERROR('MMA Rev-Exp Summary'!$AS$75/'MMA Rev-Exp Summary'!$AS$9, 0)","v":{"v":0,"d":"$0.00"}},{"$f":"IFERROR('MMA Rev-Exp Summary'!$AT$75/'MMA Rev-Exp Summary'!$AT$9, 0)","v":{"v":0,"d":"$0.00"}},{"$f":"IFERROR('MMA Rev-Exp Summary'!$AU$75/'MMA Rev-Exp Summary'!$AU$9, 0)","v":{"v":0,"d":"$0.00"}}]
["MMA",null,null,{"$f":"Jurat!I$1","v":0},{"$f":"Jurat!D$33","v":"00:00:00"},"Q4","2017-12-31","Summary","Operating Expense","Medical Benefits Expense","Other Medical","11.5","TPL & Fraud/Abuse Recoveries",{"$f":"IFERROR('MMA Rev-Exp Summary'!$AK$81/'MMA Rev-Exp Summary'!$AK$9, 0)","v":{"v":0,"d":"$0.00"}},{"$f":"IFERROR('MMA Rev-Exp Summary'!$AL$81/'MMA Rev-Exp Summary'!$AL$9, 0)","v":{"v":0,"d":"$0.00"}},{"$f":"IFERROR('MMA Rev-Exp Summary'!$AM$81/'MMA Rev-Exp Summary'!$AM$9, 0)","v":{"v":0,"d":"$0.00"}},{"$f":"IFERROR('MMA Rev-Exp Summary'!$AN$81/'MMA Rev-Exp Summary'!$AN$9, 0)","v":{"v":0,"d":"$0.00"}},{"$f":"IFERROR('MMA Rev-Exp Summary'!$AO$81/'MMA Rev-Exp Summary'!$AO$9, 0)","v":{"v":0,"d":"$0.00"}},{"$f":"IFERROR('MMA Rev-Exp Summary'!$AP$81/'MMA Rev-Exp Summary'!$AP$9, 0)","v":{"v":0,"d":"$0.00"}},{"$f":"IFERROR('MMA Rev-Exp Summary'!$AQ$81/'MMA Rev-Exp Summary'!$AQ$9, 0)","v":{"v":0,"d":"$0.00"}},{"$f":"IFERROR('MMA Rev-Exp Summary'!$AR$81/'MMA Rev-Exp Summary'!$AR$9, 0)","v":{"v":0,"d":"$0.00"}},{"$f":"IFERROR('MMA Rev-Exp Summary'!$AS$81/'MMA Rev-Exp Summary'!$AS$9, 0)","v":{"v":0,"d":"$0.00"}},{"$f":"IFERROR('MMA Rev-Exp Summary'!$AT$81/'MMA Rev-Exp Summary'!$AT$9, 0)","v":{"v":0,"d":"$0.00"}},{"$f":"IFERROR('MMA Rev-Exp Summary'!$AU$81/'MMA Rev-Exp Summary'!$AU$9, 0)","v":{"v":0,"d":"$0.00"}}]
["MMA",null,null,{"$f":"Jurat!I$1","v":0},{"$f":"Jurat!D$33","v":"00:00:00"},"Q4","2017-12-31","Summary","Operating Expense","Medical Benefits Expense","Other Medical","11.6.1","Premium Deficiency Reserve",{"$f":"IFERROR('MMA Rev-Exp Summary'!$AK$82/'MMA Rev-Exp Summary'!$AK$9, 0)","v":{"v":0,"d":"$0.00"}},{"$f":"IFERROR('MMA Rev-Exp Summary'!$AL$82/'MMA Rev-Exp Summary'!$AL$9, 0)","v":{"v":0,"d":"$0.00"}},{"$f":"IFERROR('MMA Rev-Exp Summary'!$AM$82/'MMA Rev-Exp Summary'!$AM$9, 0)","v":{"v":0,"d":"$0.00"}},{"$f":"IFERROR('MMA Rev-Exp Summary'!$AN$82/'MMA Rev-Exp Summary'!$AN$9, 0)","v":{"v":0,"d":"$0.00"}},{"$f":"IFERROR('MMA Rev-Exp Summary'!$AO$82/'MMA Rev-Exp Summary'!$AO$9, 0)","v":{"v":0,"d":"$0.00"}},{"$f":"IFERROR('MMA Rev-Exp Summary'!$AP$82/'MMA Rev-Exp Summary'!$AP$9, 0)","v":{"v":0,"d":"$0.00"}},{"$f":"IFERROR('MMA Rev-Exp Summary'!$AQ$82/'MMA Rev-Exp Summary'!$AQ$9, 0)","v":{"v":0,"d":"$0.00"}},{"$f":"IFERROR('MMA Rev-Exp Summary'!$AR$82/'MMA Rev-Exp Summary'!$AR$9, 0)","v":{"v":0,"d":"$0.00"}},{"$f":"IFERROR('MMA Rev-Exp Summary'!$AS$82/'MMA Rev-Exp Summary'!$AS$9, 0)","v":{"v":0,"d":"$0.00"}},{"$f":"IFERROR('MMA Rev-Exp Summary'!$AT$82/'MMA Rev-Exp Summary'!$AT$9, 0)","v":{"v":0,"d":"$0.00"}},{"$f":"IFERROR('MMA Rev-Exp Summary'!$AU$82/'MMA Rev-Exp Summary'!$AU$9, 0)","v":{"v":0,"d":"$0.00"}}]
["MMA",null,null,{"$f":"Jurat!I$1","v":0},{"$f":"Jurat!D$33","v":"00:00:00"},"Q4","2017-12-31","Summary","Operating Expense","Medical Benefits Expense","Other Medical","11.8","Reinsurance Premiums",{"$f":"IFERROR('MMA Rev-Exp Summary'!$AK$84/'MMA Rev-Exp Summary'!$AK$9, 0)","v":{"v":0,"d":"$0.00"}},{"$f":"IFERROR('MMA Rev-Exp Summary'!$AL$84/'MMA Rev-Exp Summary'!$AL$9, 0)","v":{"v":0,"d":"$0.00"}},{"$f":"IFERROR('MMA Rev-Exp Summary'!$AM$84/'MMA Rev-Exp Summary'!$AM$9, 0)","v":{"v":0,"d":"$0.00"}},{"$f":"IFERROR('MMA Rev-Exp Summary'!$AN$84/'MMA Rev-Exp Summary'!$AN$9, 0)","v":{"v":0,"d":"$0.00"}},{"$f":"IFERROR('MMA Rev-Exp Summary'!$AO$84/'MMA Rev-Exp Summary'!$AO$9, 0)","v":{"v":0,"d":"$0.00"}},{"$f":"IFERROR('MMA Rev-Exp Summary'!$AP$84/'MMA Rev-Exp Summary'!$AP$9, 0)","v":{"v":0,"d":"$0.00"}},{"$f":"IFERROR('MMA Rev-Exp Summary'!$AQ$84/'MMA Rev-Exp Summary'!$AQ$9, 0)","v":{"v":0,"d":"$0.00"}},{"$f":"IFERROR('MMA Rev-Exp Summary'!$AR$84/'MMA Rev-Exp Summary'!$AR$9, 0)","v":{"v":0,"d":"$0.00"}},{"$f":"IFERROR('MMA Rev-Exp Summary'!$AS$84/'MMA Rev-Exp Summary'!$AS$9, 0)","v":{"v":0,"d":"$0.00"}},{"$f":"IFERROR('MMA Rev-Exp Summary'!$AT$84/'MMA Rev-Exp Summary'!$AT$9, 0)","v":{"v":0,"d":"$0.00"}},{"$f":"IFERROR('MMA Rev-Exp Summary'!$AU$84/'MMA Rev-Exp Summary'!$AU$9, 0)","v":{"v":0,"d":"$0.00"}}]
["MMA",null,null,{"$f":"Jurat!I$1","v":0},{"$f":"Jurat!D$33","v":"00:00:00"},"Q4","2017-12-31","Summary","Operating Expense","Medical Benefits Expense","Other Medical","11.9","Reinsurance Recoveries",{"$f":"IFERROR('MMA Rev-Exp Summary'!$AK$85/'MMA Rev-Exp Summary'!$AK$9, 0)","v":{"v":0,"d":"$0.00"}},{"$f":"IFERROR('MMA Rev-Exp Summary'!$AL$85/'MMA Rev-Exp Summary'!$AL$9, 0)","v":{"v":0,"d":"$0.00"}},{"$f":"IFERROR('MMA Rev-Exp Summary'!$AM$85/'MMA Rev-Exp Summary'!$AM$9, 0)","v":{"v":0,"d":"$0.00"}},{"$f":"IFERROR('MMA Rev-Exp Summary'!$AN$85/'MMA Rev-Exp Summary'!$AN$9, 0)","v":{"v":0,"d":"$0.00"}},{"$f":"IFERROR('MMA Rev-Exp Summary'!$AO$85/'MMA Rev-Exp Summary'!$AO$9, 0)","v":{"v":0,"d":"$0.00"}},{"$f":"IFERROR('MMA Rev-Exp Summary'!$AP$85/'MMA Rev-Exp Summary'!$AP$9, 0)","v":{"v":0,"d":"$0.00"}},{"$f":"IFERROR('MMA Rev-Exp Summary'!$AQ$85/'MMA Rev-Exp Summary'!$AQ$9, 0)","v":{"v":0,"d":"$0.00"}},{"$f":"IFERROR('MMA Rev-Exp Summary'!$AR$85/'MMA Rev-Exp Summary'!$AR$9, 0)","v":{"v":0,"d":"$0.00"}},{"$f":"IFERROR('MMA Rev-Exp Summary'!$AS$85/'MMA Rev-Exp Summary'!$AS$9, 0)","v":{"v":0,"d":"$0.00"}},{"$f":"IFERROR('MMA Rev-Exp Summary'!$AT$85/'MMA Rev-Exp Summary'!$AT$9, 0)","v":{"v":0,"d":"$0.00"}},{"$f":"IFERROR('MMA Rev-Exp Summary'!$AU$85/'MMA Rev-Exp Summary'!$AU$9, 0)","v":{"v":0,"d":"$0.00"}}]
["MMA",null,null,{"$f":"Jurat!I$1","v":0},{"$f":"Jurat!D$33","v":"00:00:00"},"Q4","2017-12-31","Summary","Operating Expense","Administrative Expense","Administrative","12.1","Salaries & Benefits",{"$f":"IFERROR('MMA Rev-Exp Summary'!$AK$90/'MMA Rev-Exp Summary'!$AK$9, 0)","v":{"v":0,"d":"$0.00"}},{"$f":"IFERROR('MMA Rev-Exp Summary'!$AL$90/'MMA Rev-Exp Summary'!$AK$9, 0)","v":{"v":0,"d":"$0.00"}},{"$f":"IFERROR('MMA Rev-Exp Summary'!$AM$90/'MMA Rev-Exp Summary'!$AK$9, 0)","v":{"v":0,"d":"$0.00"}}]
["MMA",null,null,{"$f":"Jurat!I$1","v":0},{"$f":"Jurat!D$33","v":"00:00:00"},"Q4","2017-12-31","Summary","Operating Expense","Administrative Expense","Administrative","12.2","Administrative Services",{"$f":"IFERROR('MMA Rev-Exp Summary'!$AK$91/'MMA Rev-Exp Summary'!$AK$9, 0)","v":{"v":0,"d":"$0.00"}},{"$f":"IFERROR('MMA Rev-Exp Summary'!$AL$91/'MMA Rev-Exp Summary'!$AK$9, 0)","v":{"v":0,"d":"$0.00"}},{"$f":"IFERROR('MMA Rev-Exp Summary'!$AM$91/'MMA Rev-Exp Summary'!$AK$9, 0)","v":{"v":0,"d":"$0.00"}}]
["MMA",null,null,{"$f":"Jurat!I$1","v":0},{"$f":"Jurat!D$33","v":"00:00:00"},"Q4","2017-12-31","Summary","Operating Expense","Administrative Expense","Administrative","12.3","Information Systems",{"$f":"IFERROR('MMA Rev-Exp Summary'!$AK$92/'MMA Rev-Exp Summary'!$AK$9, 0)","v":{"v":0,"d":"$0.00"}},{"$f":"IFERROR('MMA Rev-Exp Summary'!$AL$92/'MMA Rev-Exp Summary'!$AK$9, 0)","v":{"v":0,"d":"$0.00"}},{"$f":"IFERROR('MMA Rev-Exp Summary'!$AM$92/'MMA Rev-Exp Summary'!$AK$9, 0)","v":{"v":0,"d":"$0.00"}}]
["MMA",null,null,{"$f":"Jurat!I$1","v":0},{"$f":"Jurat!D$33","v":"00:00:00"},"Q4","2017-12-31","Summary","Operating Expense","Administrative Expense","Administrative","12.4","Marketing Expenses",{"$f":"IFERROR('MMA Rev-Exp Summary'!$AK$93/'MMA Rev-Exp Summary'!$AK$9, 0)","v":{"v":0,"d":"$0.00"}},{"$f":"IFERROR('MMA Rev-Exp Summary'!$AL$93/'MMA Rev-Exp Summary'!$AK$9, 0)","v":{"v":0,"d":"$0.00"}},{"$f":"IFERROR('MMA Rev-Exp Summary'!$AM$93/'MMA Rev-Exp Summary'!$AK$9, 0)","v":{"v":0,"d":"$0.00"}}]
["MMA",null,null,{"$f":"Jurat!I$1","v":0},{"$f":"Jurat!D$33","v":"00:00:00"},"Q4","2017-12-31","Summary","Operating Expense","Administrative Expense","Administrative","12.5","General  Administration",{"$f":"IFERROR('MMA Rev-Exp Summary'!$AK$94/'MMA Rev-Exp Summary'!$AK$9, 0)","v":{"v":0,"d":"$0.00"}},{"$f":"IFERROR('MMA Rev-Exp Summary'!$AL$94/'MMA Rev-Exp Summary'!$AK$9, 0)","v":{"v":0,"d":"$0.00"}},{"$f":"IFERROR('MMA Rev-Exp Summary'!$AM$94/'MMA Rev-Exp Summary'!$AK$9, 0)","v":{"v":0,"d":"$0.00"}}]
["MMA",null,null,{"$f":"Jurat!I$1","v":0},{"$f":"Jurat!D$33","v":"00:00:00"},"Q4","2017-12-31","Summary","Operating Expense","Administrative Expense","Administrative","12.6","Compliance/Regulatory",{"$f":"IFERROR('MMA Rev-Exp Summary'!$AK$95/'MMA Rev-Exp Summary'!$AK$9, 0)","v":{"v":0,"d":"$0.00"}},{"$f":"IFERROR('MMA Rev-Exp Summary'!$AL$95/'MMA Rev-Exp Summary'!$AK$9, 0)","v":{"v":0,"d":"$0.00"}},{"$f":"IFERROR('MMA Rev-Exp Summary'!$AM$95/'MMA Rev-Exp Summary'!$AK$9, 0)","v":{"v":0,"d":"$0.00"}}]
["MMA",null,null,{"$f":"Jurat!I$1","v":0},{"$f":"Jurat!D$33","v":"00:00:00"},"Q4","2017-12-31","Summary","Operating Expense","Taxes & Fees","Taxes & Fees","13.1","State Premium tax",{"$f":"IFERROR('MMA Rev-Exp Summary'!$AK$97/'MMA Rev-Exp Summary'!$AK$9, 0)","v":{"v":0,"d":"$0.00"}}]
["MMA",null,null,{"$f":"Jurat!I$1","v":0},{"$f":"Jurat!D$33","v":"00:00:00"},"Q4","2017-12-31","Summary","Operating Expense","Taxes & Fees","Taxes & Fees","13.2","Department of Insurance Assessments",{"$f":"IFERROR('MMA Rev-Exp Summary'!$AK$98/'MMA Rev-Exp Summary'!$AK$9, 0)","v":{"v":0,"d":"$0.00"}}]
["MMA",null,null,{"$f":"Jurat!I$1","v":0},{"$f":"Jurat!D$33","v":"00:00:00"},"Q4","2017-12-31","Summary","Operating Expense","Taxes & Fees","Taxes & Fees","13.3","Section 9010 Health Insurance Providers Fee",{"$f":"IFERROR('MMA Rev-Exp Summary'!$AK$99/'MMA Rev-Exp Summary'!$AK$9, 0)","v":{"v":0,"d":"$0.00"}}]
["MMA",null,null,{"$f":"Jurat!I$1","v":0},{"$f":"Jurat!D$33","v":"00:00:00"},"Q4","2017-12-31","Summary","Non-Operating Expense","Income Tax Expense","Income Tax Expense","16.0","Income Tax Expense",{"$f":"IFERROR('MMA Rev-Exp Summary'!$AK$106/'MMA Rev-Exp Summary'!$AK$9, 0)","v":{"v":0,"d":"$0.00"}}]
["MMA",null,null,{"$f":"Jurat!I$1","v":0},{"$f":"Jurat!D$33","v":"00:00:00"},"Q1","2017-03-31","Region 1","Operating Revenue","Capitation","Capitation",1.1,"Capitation",{"$f":"IFERROR('MMA Rev-Exp Region 1'!$D$11/'MMA Rev-Exp Region 1'!$D$9, 0)","v":{"v":0,"d":"$0.00"}},{"$f":"IFERROR('MMA Rev-Exp Region 1'!$E$11/'MMA Rev-Exp Region 1'!$E$9, 0)","v":{"v":0,"d":"$0.00"}},{"$f":"IFERROR('MMA Rev-Exp Region 1'!$F$11/'MMA Rev-Exp Region 1'!$F$9, 0)","v":{"v":0,"d":"$0.00"}},{"$f":"IFERROR('MMA Rev-Exp Region 1'!$G$11/'MMA Rev-Exp Region 1'!$G$9, 0)","v":{"v":0,"d":"$0.00"}},{"$f":"IFERROR('MMA Rev-Exp Region 1'!$H$11/'MMA Rev-Exp Region 1'!$H$9, 0)","v":{"v":0,"d":"$0.00"}},{"$f":"IFERROR('MMA Rev-Exp Region 1'!$I$11/'MMA Rev-Exp Region 1'!$I$9, 0)","v":{"v":0,"d":"$0.00"}},{"$f":"IFERROR('MMA Rev-Exp Region 1'!$J$11/'MMA Rev-Exp Region 1'!$J$9, 0)","v":{"v":0,"d":"$0.00"}},{"$f":"IFERROR('MMA Rev-Exp Region 1'!$K$11/'MMA Rev-Exp Region 1'!$K$9, 0)","v":{"v":0,"d":"$0.00"}},{"$f":"IFERROR('MMA Rev-Exp Region 1'!$L$11/'MMA Rev-Exp Region 1'!$L$9, 0)","v":{"v":0,"d":"$0.00"}},{"$f":"IFERROR('MMA Rev-Exp Region 1'!$M$11/'MMA Rev-Exp Region 1'!$M$9, 0)","v":{"v":0,"d":"$0.00"}},{"$f":"IFERROR('MMA Rev-Exp Region 1'!$N$11/'MMA Rev-Exp Region 1'!$N$9, 0)","v":{"v":0,"d":"$0.00"}}]
["MMA",null,null,{"$f":"Jurat!I$1","v":0},{"$f":"Jurat!D$33","v":"00:00:00"},"Q1","2017-03-31","Region 1","Operating Revenue","Kick Payments","Kick Payments - Transplant",1.2,"Transplant Kick Payments",{"$f":"IFERROR('MMA Rev-Exp Region 1'!$D$12/'MMA Rev-Exp Region 1'!$D$9, 0)","v":{"v":0,"d":"$0.00"}},{"$f":"IFERROR('MMA Rev-Exp Region 1'!$E$12/'MMA Rev-Exp Region 1'!$E$9, 0)","v":{"v":0,"d":"$0.00"}},{"$f":"IFERROR('MMA Rev-Exp Region 1'!$F$12/'MMA Rev-Exp Region 1'!$F$9, 0)","v":{"v":0,"d":"$0.00"}},{"$f":"IFERROR('MMA Rev-Exp Region 1'!$G$12/'MMA Rev-Exp Region 1'!$G$9, 0)","v":{"v":0,"d":"$0.00"}},{"$f":"IFERROR('MMA Rev-Exp Region 1'!$H$12/'MMA Rev-Exp Region 1'!$H$9, 0)","v":{"v":0,"d":"$0.00"}},{"$f":"IFERROR('MMA Rev-Exp Region 1'!$I$12/'MMA Rev-Exp Region 1'!$I$9, 0)","v":{"v":0,"d":"$0.00"}},{"$f":"IFERROR('MMA Rev-Exp Region 1'!$J$12/'MMA Rev-Exp Region 1'!$J$9, 0)","v":{"v":0,"d":"$0.00"}},{"$f":"IFERROR('MMA Rev-Exp Region 1'!$K$12/'MMA Rev-Exp Region 1'!$K$9, 0)","v":{"v":0,"d":"$0.00"}},{"$f":"IFERROR('MMA Rev-Exp Region 1'!$L$12/'MMA Rev-Exp Region 1'!$L$9, 0)","v":{"v":0,"d":"$0.00"}},{"$f":"IFERROR('MMA Rev-Exp Region 1'!$M$12/'MMA Rev-Exp Region 1'!$M$9, 0)","v":{"v":0,"d":"$0.00"}},{"$f":"IFERROR('MMA Rev-Exp Region 1'!$N$12/'MMA Rev-Exp Region 1'!$N$9, 0)","v":{"v":0,"d":"$0.00"}}]
["MMA",null,null,{"$f":"Jurat!I$1","v":0},{"$f":"Jurat!D$33","v":"00:00:00"},"Q1","2017-03-31","Region 1","Operating Revenue","Kick Payments","Kick Payments - Hep C","1.3","Hepatitis C Kick Payments",{"$f":"IFERROR('MMA Rev-Exp Region 1'!$D$13/'MMA Rev-Exp Region 1'!$D$9, 0)","v":{"v":0,"d":"$0.00"}},{"$f":"IFERROR('MMA Rev-Exp Region 1'!$E$13/'MMA Rev-Exp Region 1'!$E$9, 0)","v":{"v":0,"d":"$0.00"}},{"$f":"IFERROR('MMA Rev-Exp Region 1'!$F$13/'MMA Rev-Exp Region 1'!$F$9, 0)","v":{"v":0,"d":"$0.00"}},{"$f":"IFERROR('MMA Rev-Exp Region 1'!$G$13/'MMA Rev-Exp Region 1'!$G$9, 0)","v":{"v":0,"d":"$0.00"}},{"$f":"IFERROR('MMA Rev-Exp Region 1'!$H$13/'MMA Rev-Exp Region 1'!$H$9, 0)","v":{"v":0,"d":"$0.00"}},{"$f":"IFERROR('MMA Rev-Exp Region 1'!$I$13/'MMA Rev-Exp Region 1'!$I$9, 0)","v":{"v":0,"d":"$0.00"}},{"$f":"IFERROR('MMA Rev-Exp Region 1'!$J$13/'MMA Rev-Exp Region 1'!$J$9, 0)","v":{"v":0,"d":"$0.00"}},{"$f":"IFERROR('MMA Rev-Exp Region 1'!$K$13/'MMA Rev-Exp Region 1'!$K$9, 0)","v":{"v":0,"d":"$0.00"}},{"$f":"IFERROR('MMA Rev-Exp Region 1'!$L$13/'MMA Rev-Exp Region 1'!$L$9, 0)","v":{"v":0,"d":"$0.00"}},{"$f":"IFERROR('MMA Rev-Exp Region 1'!$M$13/'MMA Rev-Exp Region 1'!$M$9, 0)","v":{"v":0,"d":"$0.00"}},{"$f":"IFERROR('MMA Rev-Exp Region 1'!$N$13/'MMA Rev-Exp Region 1'!$N$9, 0)","v":{"v":0,"d":"$0.00"}}]
["MMA",null,null,{"$f":"Jurat!I$1","v":0},{"$f":"Jurat!D$33","v":"00:00:00"},"Q1","2017-03-31","Region 1","Operating Revenue","Kick Payments","Kick Payments - Maternity","1.4.1","Maternity Kick Payments",{"$f":"IFERROR('MMA Rev-Exp Region 1'!$D$14/'MMA Rev-Exp Region 1'!$D$9, 0)","v":{"v":0,"d":"$0.00"}},{"$f":"IFERROR('MMA Rev-Exp Region 1'!$E$14/'MMA Rev-Exp Region 1'!$E$9, 0)","v":{"v":0,"d":"$0.00"}},{"$f":"IFERROR('MMA Rev-Exp Region 1'!$F$14/'MMA Rev-Exp Region 1'!$F$9, 0)","v":{"v":0,"d":"$0.00"}},{"$f":"IFERROR('MMA Rev-Exp Region 1'!$G$14/'MMA Rev-Exp Region 1'!$G$9, 0)","v":{"v":0,"d":"$0.00"}},{"$f":"IFERROR('MMA Rev-Exp Region 1'!$H$14/'MMA Rev-Exp Region 1'!$H$9, 0)","v":{"v":0,"d":"$0.00"}},{"$f":"IFERROR('MMA Rev-Exp Region 1'!$I$14/'MMA Rev-Exp Region 1'!$I$9, 0)","v":{"v":0,"d":"$0.00"}},{"$f":"IFERROR('MMA Rev-Exp Region 1'!$J$14/'MMA Rev-Exp Region 1'!$J$9, 0)","v":{"v":0,"d":"$0.00"}},{"$f":"IFERROR('MMA Rev-Exp Region 1'!$K$14/'MMA Rev-Exp Region 1'!$K$9, 0)","v":{"v":0,"d":"$0.00"}},{"$f":"IFERROR('MMA Rev-Exp Region 1'!$L$14/'MMA Rev-Exp Region 1'!$L$9, 0)","v":{"v":0,"d":"$0.00"}},{"$f":"IFERROR('MMA Rev-Exp Region 1'!$M$14/'MMA Rev-Exp Region 1'!$M$9, 0)","v":{"v":0,"d":"$0.00"}},{"$f":"IFERROR('MMA Rev-Exp Region 1'!$N$14/'MMA Rev-Exp Region 1'!$N$9, 0)","v":{"v":0,"d":"$0.00"}}]
["MMA",null,null,{"$f":"Jurat!I$1","v":0},{"$f":"Jurat!D$33","v":"00:00:00"},"Q1","2017-03-31","Region 1","Operating Revenue","Other Revenue","Other Revenue - 9010","1.5","ACA § 9010 related payments",{"$f":"IFERROR('MMA Rev-Exp Region 1'!$D$15/'MMA Rev-Exp Region 1'!$D$9, 0)","v":{"v":0,"d":"$0.00"}},{"$f":"IFERROR('MMA Rev-Exp Region 1'!$E$15/'MMA Rev-Exp Region 1'!$E$9, 0)","v":{"v":0,"d":"$0.00"}},{"$f":"IFERROR('MMA Rev-Exp Region 1'!$F$15/'MMA Rev-Exp Region 1'!$F$9, 0)","v":{"v":0,"d":"$0.00"}},{"$f":"IFERROR('MMA Rev-Exp Region 1'!$G$15/'MMA Rev-Exp Region 1'!$G$9, 0)","v":{"v":0,"d":"$0.00"}},{"$f":"IFERROR('MMA Rev-Exp Region 1'!$H$15/'MMA Rev-Exp Region 1'!$H$9, 0)","v":{"v":0,"d":"$0.00"}},{"$f":"IFERROR('MMA Rev-Exp Region 1'!$I$15/'MMA Rev-Exp Region 1'!$I$9, 0)","v":{"v":0,"d":"$0.00"}},{"$f":"IFERROR('MMA Rev-Exp Region 1'!$J$15/'MMA Rev-Exp Region 1'!$J$9, 0)","v":{"v":0,"d":"$0.00"}},{"$f":"IFERROR('MMA Rev-Exp Region 1'!$K$15/'MMA Rev-Exp Region 1'!$K$9, 0)","v":{"v":0,"d":"$0.00"}},{"$f":"IFERROR('MMA Rev-Exp Region 1'!$L$15/'MMA Rev-Exp Region 1'!$L$9, 0)","v":{"v":0,"d":"$0.00"}},{"$f":"IFERROR('MMA Rev-Exp Region 1'!$M$15/'MMA Rev-Exp Region 1'!$M$9, 0)","v":{"v":0,"d":"$0.00"}},{"$f":"IFERROR('MMA Rev-Exp Region 1'!$N$15/'MMA Rev-Exp Region 1'!$N$9, 0)","v":{"v":0,"d":"$0.00"}}]
["MMA",null,null,{"$f":"Jurat!I$1","v":0},{"$f":"Jurat!D$33","v":"00:00:00"},"Q1","2017-03-31","Region 1","Operating Revenue","Other Revenue","Other Revenue","1.6","Other Revenue",{"$f":"IFERROR('MMA Rev-Exp Region 1'!$D$16/'MMA Rev-Exp Region 1'!$D$9, 0)","v":{"v":0,"d":"$0.00"}},{"$f":"IFERROR('MMA Rev-Exp Region 1'!$E$16/'MMA Rev-Exp Region 1'!$E$9, 0)","v":{"v":0,"d":"$0.00"}},{"$f":"IFERROR('MMA Rev-Exp Region 1'!$F$16/'MMA Rev-Exp Region 1'!$F$9, 0)","v":{"v":0,"d":"$0.00"}},{"$f":"IFERROR('MMA Rev-Exp Region 1'!$G$16/'MMA Rev-Exp Region 1'!$G$9, 0)","v":{"v":0,"d":"$0.00"}},{"$f":"IFERROR('MMA Rev-Exp Region 1'!$H$16/'MMA Rev-Exp Region 1'!$H$9, 0)","v":{"v":0,"d":"$0.00"}},{"$f":"IFERROR('MMA Rev-Exp Region 1'!$I$16/'MMA Rev-Exp Region 1'!$I$9, 0)","v":{"v":0,"d":"$0.00"}},{"$f":"IFERROR('MMA Rev-Exp Region 1'!$J$16/'MMA Rev-Exp Region 1'!$J$9, 0)","v":{"v":0,"d":"$0.00"}},{"$f":"IFERROR('MMA Rev-Exp Region 1'!$K$16/'MMA Rev-Exp Region 1'!$K$9, 0)","v":{"v":0,"d":"$0.00"}},{"$f":"IFERROR('MMA Rev-Exp Region 1'!$L$16/'MMA Rev-Exp Region 1'!$L$9, 0)","v":{"v":0,"d":"$0.00"}},{"$f":"IFERROR('MMA Rev-Exp Region 1'!$M$16/'MMA Rev-Exp Region 1'!$M$9, 0)","v":{"v":0,"d":"$0.00"}},{"$f":"IFERROR('MMA Rev-Exp Region 1'!$N$16/'MMA Rev-Exp Region 1'!$N$9, 0)","v":{"v":0,"d":"$0.00"}}]
["MMA",null,null,{"$f":"Jurat!I$1","v":0},{"$f":"Jurat!D$33","v":"00:00:00"},"Q1","2017-03-31","Region 1","Operating Expense","Medical Benefits Expense","Hospital Services",2.1,"Inpatient FFS",{"$f":"IFERROR('MMA Rev-Exp Region 1'!$D$20/'MMA Rev-Exp Region 1'!$D$9, 0)","v":{"v":0,"d":"$0.00"}},{"$f":"IFERROR('MMA Rev-Exp Region 1'!$E$20/'MMA Rev-Exp Region 1'!$E$9, 0)","v":{"v":0,"d":"$0.00"}},{"$f":"IFERROR('MMA Rev-Exp Region 1'!$F$20/'MMA Rev-Exp Region 1'!$F$9, 0)","v":{"v":0,"d":"$0.00"}},{"$f":"IFERROR('MMA Rev-Exp Region 1'!$G$20/'MMA Rev-Exp Region 1'!$G$9, 0)","v":{"v":0,"d":"$0.00"}},{"$f":"IFERROR('MMA Rev-Exp Region 1'!$H$20/'MMA Rev-Exp Region 1'!$H$9, 0)","v":{"v":0,"d":"$0.00"}},{"$f":"IFERROR('MMA Rev-Exp Region 1'!$I$20/'MMA Rev-Exp Region 1'!$I$9, 0)","v":{"v":0,"d":"$0.00"}},{"$f":"IFERROR('MMA Rev-Exp Region 1'!$J$20/'MMA Rev-Exp Region 1'!$J$9, 0)","v":{"v":0,"d":"$0.00"}},{"$f":"IFERROR('MMA Rev-Exp Region 1'!$K$20/'MMA Rev-Exp Region 1'!$K$9, 0)","v":{"v":0,"d":"$0.00"}},{"$f":"IFERROR('MMA Rev-Exp Region 1'!$L$20/'MMA Rev-Exp Region 1'!$L$9, 0)","v":{"v":0,"d":"$0.00"}},{"$f":"IFERROR('MMA Rev-Exp Region 1'!$M$20/'MMA Rev-Exp Region 1'!$M$9, 0)","v":{"v":0,"d":"$0.00"}},{"$f":"IFERROR('MMA Rev-Exp Region 1'!$N$20/'MMA Rev-Exp Region 1'!$N$9, 0)","v":{"v":0,"d":"$0.00"}}]
["MMA",null,null,{"$f":"Jurat!I$1","v":0},{"$f":"Jurat!D$33","v":"00:00:00"},"Q1","2017-03-31","Region 1","Operating Expense","Medical Benefits Expense","Hospital Services",2.2,"Ending IBNP for Inpatient Hospital Services",{"$f":"IFERROR('MMA Rev-Exp Region 1'!$D$21/'MMA Rev-Exp Region 1'!$D$9, 0)","v":{"v":0,"d":"$0.00"}},{"$f":"IFERROR('MMA Rev-Exp Region 1'!$E$21/'MMA Rev-Exp Region 1'!$E$9, 0)","v":{"v":0,"d":"$0.00"}},{"$f":"IFERROR('MMA Rev-Exp Region 1'!$F$21/'MMA Rev-Exp Region 1'!$F$9, 0)","v":{"v":0,"d":"$0.00"}},{"$f":"IFERROR('MMA Rev-Exp Region 1'!$G$21/'MMA Rev-Exp Region 1'!$G$9, 0)","v":{"v":0,"d":"$0.00"}},{"$f":"IFERROR('MMA Rev-Exp Region 1'!$H$21/'MMA Rev-Exp Region 1'!$H$9, 0)","v":{"v":0,"d":"$0.00"}},{"$f":"IFERROR('MMA Rev-Exp Region 1'!$I$21/'MMA Rev-Exp Region 1'!$I$9, 0)","v":{"v":0,"d":"$0.00"}},{"$f":"IFERROR('MMA Rev-Exp Region 1'!$J$21/'MMA Rev-Exp Region 1'!$J$9, 0)","v":{"v":0,"d":"$0.00"}},{"$f":"IFERROR('MMA Rev-Exp Region 1'!$K$21/'MMA Rev-Exp Region 1'!$K$9, 0)","v":{"v":0,"d":"$0.00"}},{"$f":"IFERROR('MMA Rev-Exp Region 1'!$L$21/'MMA Rev-Exp Region 1'!$L$9, 0)","v":{"v":0,"d":"$0.00"}},{"$f":"IFERROR('MMA Rev-Exp Region 1'!$M$21/'MMA Rev-Exp Region 1'!$M$9, 0)","v":{"v":0,"d":"$0.00"}},{"$f":"IFERROR('MMA Rev-Exp Region 1'!$N$21/'MMA Rev-Exp Region 1'!$N$9, 0)","v":{"v":0,"d":"$0.00"}}]
["MMA",null,null,{"$f":"Jurat!I$1","v":0},{"$f":"Jurat!D$33","v":"00:00:00"},"Q1","2017-03-31","Region 1","Operating Expense","Medical Benefits Expense","Hospital Services",2.3,"Outpatient FFS: ER",{"$f":"IFERROR('MMA Rev-Exp Region 1'!$D$22/'MMA Rev-Exp Region 1'!$D$9, 0)","v":{"v":0,"d":"$0.00"}},{"$f":"IFERROR('MMA Rev-Exp Region 1'!$E$22/'MMA Rev-Exp Region 1'!$E$9, 0)","v":{"v":0,"d":"$0.00"}},{"$f":"IFERROR('MMA Rev-Exp Region 1'!$F$22/'MMA Rev-Exp Region 1'!$F$9, 0)","v":{"v":0,"d":"$0.00"}},{"$f":"IFERROR('MMA Rev-Exp Region 1'!$G$22/'MMA Rev-Exp Region 1'!$G$9, 0)","v":{"v":0,"d":"$0.00"}},{"$f":"IFERROR('MMA Rev-Exp Region 1'!$H$22/'MMA Rev-Exp Region 1'!$H$9, 0)","v":{"v":0,"d":"$0.00"}},{"$f":"IFERROR('MMA Rev-Exp Region 1'!$I$22/'MMA Rev-Exp Region 1'!$I$9, 0)","v":{"v":0,"d":"$0.00"}},{"$f":"IFERROR('MMA Rev-Exp Region 1'!$J$22/'MMA Rev-Exp Region 1'!$J$9, 0)","v":{"v":0,"d":"$0.00"}},{"$f":"IFERROR('MMA Rev-Exp Region 1'!$K$22/'MMA Rev-Exp Region 1'!$K$9, 0)","v":{"v":0,"d":"$0.00"}},{"$f":"IFERROR('MMA Rev-Exp Region 1'!$L$22/'MMA Rev-Exp Region 1'!$L$9, 0)","v":{"v":0,"d":"$0.00"}},{"$f":"IFERROR('MMA Rev-Exp Region 1'!$M$22/'MMA Rev-Exp Region 1'!$M$9, 0)","v":{"v":0,"d":"$0.00"}},{"$f":"IFERROR('MMA Rev-Exp Region 1'!$N$22/'MMA Rev-Exp Region 1'!$N$9, 0)","v":{"v":0,"d":"$0.00"}}]
["MMA",null,null,{"$f":"Jurat!I$1","v":0},{"$f":"Jurat!D$33","v":"00:00:00"},"Q1","2017-03-31","Region 1","Operating Expense","Medical Benefits Expense","Hospital Services",2.4,"Outpatient FFS: Other than ER ",{"$f":"IFERROR('MMA Rev-Exp Region 1'!$D$23/'MMA Rev-Exp Region 1'!$D$9, 0)","v":{"v":0,"d":"$0.00"}},{"$f":"IFERROR('MMA Rev-Exp Region 1'!$E$23/'MMA Rev-Exp Region 1'!$E$9, 0)","v":{"v":0,"d":"$0.00"}},{"$f":"IFERROR('MMA Rev-Exp Region 1'!$F$23/'MMA Rev-Exp Region 1'!$F$9, 0)","v":{"v":0,"d":"$0.00"}},{"$f":"IFERROR('MMA Rev-Exp Region 1'!$G$23/'MMA Rev-Exp Region 1'!$G$9, 0)","v":{"v":0,"d":"$0.00"}},{"$f":"IFERROR('MMA Rev-Exp Region 1'!$H$23/'MMA Rev-Exp Region 1'!$H$9, 0)","v":{"v":0,"d":"$0.00"}},{"$f":"IFERROR('MMA Rev-Exp Region 1'!$I$23/'MMA Rev-Exp Region 1'!$I$9, 0)","v":{"v":0,"d":"$0.00"}},{"$f":"IFERROR('MMA Rev-Exp Region 1'!$J$23/'MMA Rev-Exp Region 1'!$J$9, 0)","v":{"v":0,"d":"$0.00"}},{"$f":"IFERROR('MMA Rev-Exp Region 1'!$K$23/'MMA Rev-Exp Region 1'!$K$9, 0)","v":{"v":0,"d":"$0.00"}},{"$f":"IFERROR('MMA Rev-Exp Region 1'!$L$23/'MMA Rev-Exp Region 1'!$L$9, 0)","v":{"v":0,"d":"$0.00"}},{"$f":"IFERROR('MMA Rev-Exp Region 1'!$M$23/'MMA Rev-Exp Region 1'!$M$9, 0)","v":{"v":0,"d":"$0.00"}},{"$f":"IFERROR('MMA Rev-Exp Region 1'!$N$23/'MMA Rev-Exp Region 1'!$N$9, 0)","v":{"v":0,"d":"$0.00"}}]
["MMA",null,null,{"$f":"Jurat!I$1","v":0},{"$f":"Jurat!D$33","v":"00:00:00"},"Q1","2017-03-31","Region 1","Operating Expense","Medical Benefits Expense","Hospital Services",2.5,"Ending IBNP for Outpatient Hospital Services",{"$f":"IFERROR('MMA Rev-Exp Region 1'!$D$24/'MMA Rev-Exp Region 1'!$D$9, 0)","v":{"v":0,"d":"$0.00"}},{"$f":"IFERROR('MMA Rev-Exp Region 1'!$E$24/'MMA Rev-Exp Region 1'!$E$9, 0)","v":{"v":0,"d":"$0.00"}},{"$f":"IFERROR('MMA Rev-Exp Region 1'!$F$24/'MMA Rev-Exp Region 1'!$F$9, 0)","v":{"v":0,"d":"$0.00"}},{"$f":"IFERROR('MMA Rev-Exp Region 1'!$G$24/'MMA Rev-Exp Region 1'!$G$9, 0)","v":{"v":0,"d":"$0.00"}},{"$f":"IFERROR('MMA Rev-Exp Region 1'!$H$24/'MMA Rev-Exp Region 1'!$H$9, 0)","v":{"v":0,"d":"$0.00"}},{"$f":"IFERROR('MMA Rev-Exp Region 1'!$I$24/'MMA Rev-Exp Region 1'!$I$9, 0)","v":{"v":0,"d":"$0.00"}},{"$f":"IFERROR('MMA Rev-Exp Region 1'!$J$24/'MMA Rev-Exp Region 1'!$J$9, 0)","v":{"v":0,"d":"$0.00"}},{"$f":"IFERROR('MMA Rev-Exp Region 1'!$K$24/'MMA Rev-Exp Region 1'!$K$9, 0)","v":{"v":0,"d":"$0.00"}},{"$f":"IFERROR('MMA Rev-Exp Region 1'!$L$24/'MMA Rev-Exp Region 1'!$L$9, 0)","v":{"v":0,"d":"$0.00"}},{"$f":"IFERROR('MMA Rev-Exp Region 1'!$M$24/'MMA Rev-Exp Region 1'!$M$9, 0)","v":{"v":0,"d":"$0.00"}},{"$f":"IFERROR('MMA Rev-Exp Region 1'!$N$24/'MMA Rev-Exp Region 1'!$N$9, 0)","v":{"v":0,"d":"$0.00"}}]
["MMA",null,null,{"$f":"Jurat!I$1","v":0},{"$f":"Jurat!D$33","v":"00:00:00"},"Q1","2017-03-31","Region 1","Operating Expense","Medical Benefits Expense","Hospital Services","2.6","Subcapitated Hospital Services",{"$f":"IFERROR('MMA Rev-Exp Region 1'!$D$25/'MMA Rev-Exp Region 1'!$D$9, 0)","v":{"v":0,"d":"$0.00"}},{"$f":"IFERROR('MMA Rev-Exp Region 1'!$E$25/'MMA Rev-Exp Region 1'!$E$9, 0)","v":{"v":0,"d":"$0.00"}},{"$f":"IFERROR('MMA Rev-Exp Region 1'!$F$25/'MMA Rev-Exp Region 1'!$F$9, 0)","v":{"v":0,"d":"$0.00"}},{"$f":"IFERROR('MMA Rev-Exp Region 1'!$G$25/'MMA Rev-Exp Region 1'!$G$9, 0)","v":{"v":0,"d":"$0.00"}},{"$f":"IFERROR('MMA Rev-Exp Region 1'!$H$25/'MMA Rev-Exp Region 1'!$H$9, 0)","v":{"v":0,"d":"$0.00"}},{"$f":"IFERROR('MMA Rev-Exp Region 1'!$I$25/'MMA Rev-Exp Region 1'!$I$9, 0)","v":{"v":0,"d":"$0.00"}},{"$f":"IFERROR('MMA Rev-Exp Region 1'!$J$25/'MMA Rev-Exp Region 1'!$J$9, 0)","v":{"v":0,"d":"$0.00"}},{"$f":"IFERROR('MMA Rev-Exp Region 1'!$K$25/'MMA Rev-Exp Region 1'!$K$9, 0)","v":{"v":0,"d":"$0.00"}},{"$f":"IFERROR('MMA Rev-Exp Region 1'!$L$25/'MMA Rev-Exp Region 1'!$L$9, 0)","v":{"v":0,"d":"$0.00"}},{"$f":"IFERROR('MMA Rev-Exp Region 1'!$M$25/'MMA Rev-Exp Region 1'!$M$9, 0)","v":{"v":0,"d":"$0.00"}},{"$f":"IFERROR('MMA Rev-Exp Region 1'!$N$25/'MMA Rev-Exp Region 1'!$N$9, 0)","v":{"v":0,"d":"$0.00"}}]
["MMA",null,null,{"$f":"Jurat!I$1","v":0},{"$f":"Jurat!D$33","v":"00:00:00"},"Q1","2017-03-31","Region 1","Operating Expense","Medical Benefits Expense","Hospital Services","2.7","Hospital Settlements",{"$f":"IFERROR('MMA Rev-Exp Region 1'!$D$26/'MMA Rev-Exp Region 1'!$D$9, 0)","v":{"v":0,"d":"$0.00"}},{"$f":"IFERROR('MMA Rev-Exp Region 1'!$E$26/'MMA Rev-Exp Region 1'!$E$9, 0)","v":{"v":0,"d":"$0.00"}},{"$f":"IFERROR('MMA Rev-Exp Region 1'!$F$26/'MMA Rev-Exp Region 1'!$F$9, 0)","v":{"v":0,"d":"$0.00"}},{"$f":"IFERROR('MMA Rev-Exp Region 1'!$G$26/'MMA Rev-Exp Region 1'!$G$9, 0)","v":{"v":0,"d":"$0.00"}},{"$f":"IFERROR('MMA Rev-Exp Region 1'!$H$26/'MMA Rev-Exp Region 1'!$H$9, 0)","v":{"v":0,"d":"$0.00"}},{"$f":"IFERROR('MMA Rev-Exp Region 1'!$I$26/'MMA Rev-Exp Region 1'!$I$9, 0)","v":{"v":0,"d":"$0.00"}},{"$f":"IFERROR('MMA Rev-Exp Region 1'!$J$26/'MMA Rev-Exp Region 1'!$J$9, 0)","v":{"v":0,"d":"$0.00"}},{"$f":"IFERROR('MMA Rev-Exp Region 1'!$K$26/'MMA Rev-Exp Region 1'!$K$9, 0)","v":{"v":0,"d":"$0.00"}},{"$f":"IFERROR('MMA Rev-Exp Region 1'!$L$26/'MMA Rev-Exp Region 1'!$L$9, 0)","v":{"v":0,"d":"$0.00"}},{"$f":"IFERROR('MMA Rev-Exp Region 1'!$M$26/'MMA Rev-Exp Region 1'!$M$9, 0)","v":{"v":0,"d":"$0.00"}},{"$f":"IFERROR('MMA Rev-Exp Region 1'!$N$26/'MMA Rev-Exp Region 1'!$N$9, 0)","v":{"v":0,"d":"$0.00"}}]
["MMA",null,null,{"$f":"Jurat!I$1","v":0},{"$f":"Jurat!D$33","v":"00:00:00"},"Q1","2017-03-31","Region 1","Operating Expense","Medical Benefits Expense","Hospital Services","2.7.1","Transplant Services",{"$f":"IFERROR('MMA Rev-Exp Region 1'!$D$27/'MMA Rev-Exp Region 1'!$D$9, 0)","v":{"v":0,"d":"$0.00"}},{"$f":"IFERROR('MMA Rev-Exp Region 1'!$E$27/'MMA Rev-Exp Region 1'!$E$9, 0)","v":{"v":0,"d":"$0.00"}},{"$f":"IFERROR('MMA Rev-Exp Region 1'!$F$27/'MMA Rev-Exp Region 1'!$F$9, 0)","v":{"v":0,"d":"$0.00"}},{"$f":"IFERROR('MMA Rev-Exp Region 1'!$G$27/'MMA Rev-Exp Region 1'!$G$9, 0)","v":{"v":0,"d":"$0.00"}},{"$f":"IFERROR('MMA Rev-Exp Region 1'!$H$27/'MMA Rev-Exp Region 1'!$H$9, 0)","v":{"v":0,"d":"$0.00"}},{"$f":"IFERROR('MMA Rev-Exp Region 1'!$I$27/'MMA Rev-Exp Region 1'!$I$9, 0)","v":{"v":0,"d":"$0.00"}},{"$f":"IFERROR('MMA Rev-Exp Region 1'!$J$27/'MMA Rev-Exp Region 1'!$J$9, 0)","v":{"v":0,"d":"$0.00"}},{"$f":"IFERROR('MMA Rev-Exp Region 1'!$K$27/'MMA Rev-Exp Region 1'!$K$9, 0)","v":{"v":0,"d":"$0.00"}},{"$f":"IFERROR('MMA Rev-Exp Region 1'!$L$27/'MMA Rev-Exp Region 1'!$L$9, 0)","v":{"v":0,"d":"$0.00"}},{"$f":"IFERROR('MMA Rev-Exp Region 1'!$M$27/'MMA Rev-Exp Region 1'!$M$9, 0)","v":{"v":0,"d":"$0.00"}},{"$f":"IFERROR('MMA Rev-Exp Region 1'!$N$27/'MMA Rev-Exp Region 1'!$N$9, 0)","v":{"v":0,"d":"$0.00"}}]
["MMA",null,null,{"$f":"Jurat!I$1","v":0},{"$f":"Jurat!D$33","v":"00:00:00"},"Q1","2017-03-31","Region 1","Operating Expense","Medical Benefits Expense","Professional Services",3.1,"Primary Care FFS",{"$f":"IFERROR('MMA Rev-Exp Region 1'!$D$29/'MMA Rev-Exp Region 1'!$D$9, 0)","v":{"v":0,"d":"$0.00"}},{"$f":"IFERROR('MMA Rev-Exp Region 1'!$E$29/'MMA Rev-Exp Region 1'!$E$9, 0)","v":{"v":0,"d":"$0.00"}},{"$f":"IFERROR('MMA Rev-Exp Region 1'!$F$29/'MMA Rev-Exp Region 1'!$F$9, 0)","v":{"v":0,"d":"$0.00"}},{"$f":"IFERROR('MMA Rev-Exp Region 1'!$G$29/'MMA Rev-Exp Region 1'!$G$9, 0)","v":{"v":0,"d":"$0.00"}},{"$f":"IFERROR('MMA Rev-Exp Region 1'!$H$29/'MMA Rev-Exp Region 1'!$H$9, 0)","v":{"v":0,"d":"$0.00"}},{"$f":"IFERROR('MMA Rev-Exp Region 1'!$I$29/'MMA Rev-Exp Region 1'!$I$9, 0)","v":{"v":0,"d":"$0.00"}},{"$f":"IFERROR('MMA Rev-Exp Region 1'!$J$29/'MMA Rev-Exp Region 1'!$J$9, 0)","v":{"v":0,"d":"$0.00"}},{"$f":"IFERROR('MMA Rev-Exp Region 1'!$K$29/'MMA Rev-Exp Region 1'!$K$9, 0)","v":{"v":0,"d":"$0.00"}},{"$f":"IFERROR('MMA Rev-Exp Region 1'!$L$29/'MMA Rev-Exp Region 1'!$L$9, 0)","v":{"v":0,"d":"$0.00"}},{"$f":"IFERROR('MMA Rev-Exp Region 1'!$M$29/'MMA Rev-Exp Region 1'!$M$9, 0)","v":{"v":0,"d":"$0.00"}},{"$f":"IFERROR('MMA Rev-Exp Region 1'!$N$29/'MMA Rev-Exp Region 1'!$N$9, 0)","v":{"v":0,"d":"$0.00"}}]
["MMA",null,null,{"$f":"Jurat!I$1","v":0},{"$f":"Jurat!D$33","v":"00:00:00"},"Q1","2017-03-31","Region 1","Operating Expense","Medical Benefits Expense","Professional Services",3.2,"Specialty Care FFS",{"$f":"IFERROR('MMA Rev-Exp Region 1'!$D$30/'MMA Rev-Exp Region 1'!$D$9, 0)","v":{"v":0,"d":"$0.00"}},{"$f":"IFERROR('MMA Rev-Exp Region 1'!$E$30/'MMA Rev-Exp Region 1'!$E$9, 0)","v":{"v":0,"d":"$0.00"}},{"$f":"IFERROR('MMA Rev-Exp Region 1'!$F$30/'MMA Rev-Exp Region 1'!$F$9, 0)","v":{"v":0,"d":"$0.00"}},{"$f":"IFERROR('MMA Rev-Exp Region 1'!$G$30/'MMA Rev-Exp Region 1'!$G$9, 0)","v":{"v":0,"d":"$0.00"}},{"$f":"IFERROR('MMA Rev-Exp Region 1'!$H$30/'MMA Rev-Exp Region 1'!$H$9, 0)","v":{"v":0,"d":"$0.00"}},{"$f":"IFERROR('MMA Rev-Exp Region 1'!$I$30/'MMA Rev-Exp Region 1'!$I$9, 0)","v":{"v":0,"d":"$0.00"}},{"$f":"IFERROR('MMA Rev-Exp Region 1'!$J$30/'MMA Rev-Exp Region 1'!$J$9, 0)","v":{"v":0,"d":"$0.00"}},{"$f":"IFERROR('MMA Rev-Exp Region 1'!$K$30/'MMA Rev-Exp Region 1'!$K$9, 0)","v":{"v":0,"d":"$0.00"}},{"$f":"IFERROR('MMA Rev-Exp Region 1'!$L$30/'MMA Rev-Exp Region 1'!$L$9, 0)","v":{"v":0,"d":"$0.00"}},{"$f":"IFERROR('MMA Rev-Exp Region 1'!$M$30/'MMA Rev-Exp Region 1'!$M$9, 0)","v":{"v":0,"d":"$0.00"}},{"$f":"IFERROR('MMA Rev-Exp Region 1'!$N$30/'MMA Rev-Exp Region 1'!$N$9, 0)","v":{"v":0,"d":"$0.00"}}]
["MMA",null,null,{"$f":"Jurat!I$1","v":0},{"$f":"Jurat!D$33","v":"00:00:00"},"Q1","2017-03-31","Region 1","Operating Expense","Medical Benefits Expense","Professional Services",3.3,"Other Professional FFS",{"$f":"IFERROR('MMA Rev-Exp Region 1'!$D$31/'MMA Rev-Exp Region 1'!$D$9, 0)","v":{"v":0,"d":"$0.00"}},{"$f":"IFERROR('MMA Rev-Exp Region 1'!$E$31/'MMA Rev-Exp Region 1'!$E$9, 0)","v":{"v":0,"d":"$0.00"}},{"$f":"IFERROR('MMA Rev-Exp Region 1'!$F$31/'MMA Rev-Exp Region 1'!$F$9, 0)","v":{"v":0,"d":"$0.00"}},{"$f":"IFERROR('MMA Rev-Exp Region 1'!$G$31/'MMA Rev-Exp Region 1'!$G$9, 0)","v":{"v":0,"d":"$0.00"}},{"$f":"IFERROR('MMA Rev-Exp Region 1'!$H$31/'MMA Rev-Exp Region 1'!$H$9, 0)","v":{"v":0,"d":"$0.00"}},{"$f":"IFERROR('MMA Rev-Exp Region 1'!$I$31/'MMA Rev-Exp Region 1'!$I$9, 0)","v":{"v":0,"d":"$0.00"}},{"$f":"IFERROR('MMA Rev-Exp Region 1'!$J$31/'MMA Rev-Exp Region 1'!$J$9, 0)","v":{"v":0,"d":"$0.00"}},{"$f":"IFERROR('MMA Rev-Exp Region 1'!$K$31/'MMA Rev-Exp Region 1'!$K$9, 0)","v":{"v":0,"d":"$0.00"}},{"$f":"IFERROR('MMA Rev-Exp Region 1'!$L$31/'MMA Rev-Exp Region 1'!$L$9, 0)","v":{"v":0,"d":"$0.00"}},{"$f":"IFERROR('MMA Rev-Exp Region 1'!$M$31/'MMA Rev-Exp Region 1'!$M$9, 0)","v":{"v":0,"d":"$0.00"}},{"$f":"IFERROR('MMA Rev-Exp Region 1'!$N$31/'MMA Rev-Exp Region 1'!$N$9, 0)","v":{"v":0,"d":"$0.00"}}]
["MMA",null,null,{"$f":"Jurat!I$1","v":0},{"$f":"Jurat!D$33","v":"00:00:00"},"Q1","2017-03-31","Region 1","Operating Expense","Medical Benefits Expense","Professional Services","3.4","§ 1202 PCP Payments to providers",{"$f":"IFERROR('MMA Rev-Exp Region 1'!$D$32/'MMA Rev-Exp Region 1'!$D$9, 0)","v":{"v":0,"d":"$0.00"}},{"$f":"IFERROR('MMA Rev-Exp Region 1'!$E$32/'MMA Rev-Exp Region 1'!$E$9, 0)","v":{"v":0,"d":"$0.00"}},{"$f":"IFERROR('MMA Rev-Exp Region 1'!$F$32/'MMA Rev-Exp Region 1'!$F$9, 0)","v":{"v":0,"d":"$0.00"}},{"$f":"IFERROR('MMA Rev-Exp Region 1'!$G$32/'MMA Rev-Exp Region 1'!$G$9, 0)","v":{"v":0,"d":"$0.00"}},{"$f":"IFERROR('MMA Rev-Exp Region 1'!$H$32/'MMA Rev-Exp Region 1'!$H$9, 0)","v":{"v":0,"d":"$0.00"}},{"$f":"IFERROR('MMA Rev-Exp Region 1'!$I$32/'MMA Rev-Exp Region 1'!$I$9, 0)","v":{"v":0,"d":"$0.00"}},{"$f":"IFERROR('MMA Rev-Exp Region 1'!$J$32/'MMA Rev-Exp Region 1'!$J$9, 0)","v":{"v":0,"d":"$0.00"}},{"$f":"IFERROR('MMA Rev-Exp Region 1'!$K$32/'MMA Rev-Exp Region 1'!$K$9, 0)","v":{"v":0,"d":"$0.00"}},{"$f":"IFERROR('MMA Rev-Exp Region 1'!$L$32/'MMA Rev-Exp Region 1'!$L$9, 0)","v":{"v":0,"d":"$0.00"}},{"$f":"IFERROR('MMA Rev-Exp Region 1'!$M$32/'MMA Rev-Exp Region 1'!$M$9, 0)","v":{"v":0,"d":"$0.00"}},{"$f":"IFERROR('MMA Rev-Exp Region 1'!$N$32/'MMA Rev-Exp Region 1'!$N$9, 0)","v":{"v":0,"d":"$0.00"}}]
["MMA",null,null,{"$f":"Jurat!I$1","v":0},{"$f":"Jurat!D$33","v":"00:00:00"},"Q1","2017-03-31","Region 1","Operating Expense","Medical Benefits Expense","Professional Services","3.5","Subcapitated Professional Services",{"$f":"IFERROR('MMA Rev-Exp Region 1'!$D$33/'MMA Rev-Exp Region 1'!$D$9, 0)","v":{"v":0,"d":"$0.00"}},{"$f":"IFERROR('MMA Rev-Exp Region 1'!$E$33/'MMA Rev-Exp Region 1'!$E$9, 0)","v":{"v":0,"d":"$0.00"}},{"$f":"IFERROR('MMA Rev-Exp Region 1'!$F$33/'MMA Rev-Exp Region 1'!$F$9, 0)","v":{"v":0,"d":"$0.00"}},{"$f":"IFERROR('MMA Rev-Exp Region 1'!$G$33/'MMA Rev-Exp Region 1'!$G$9, 0)","v":{"v":0,"d":"$0.00"}},{"$f":"IFERROR('MMA Rev-Exp Region 1'!$H$33/'MMA Rev-Exp Region 1'!$H$9, 0)","v":{"v":0,"d":"$0.00"}},{"$f":"IFERROR('MMA Rev-Exp Region 1'!$I$33/'MMA Rev-Exp Region 1'!$I$9, 0)","v":{"v":0,"d":"$0.00"}},{"$f":"IFERROR('MMA Rev-Exp Region 1'!$J$33/'MMA Rev-Exp Region 1'!$J$9, 0)","v":{"v":0,"d":"$0.00"}},{"$f":"IFERROR('MMA Rev-Exp Region 1'!$K$33/'MMA Rev-Exp Region 1'!$K$9, 0)","v":{"v":0,"d":"$0.00"}},{"$f":"IFERROR('MMA Rev-Exp Region 1'!$L$33/'MMA Rev-Exp Region 1'!$L$9, 0)","v":{"v":0,"d":"$0.00"}},{"$f":"IFERROR('MMA Rev-Exp Region 1'!$M$33/'MMA Rev-Exp Region 1'!$M$9, 0)","v":{"v":0,"d":"$0.00"}},{"$f":"IFERROR('MMA Rev-Exp Region 1'!$N$33/'MMA Rev-Exp Region 1'!$N$9, 0)","v":{"v":0,"d":"$0.00"}}]
["MMA",null,null,{"$f":"Jurat!I$1","v":0},{"$f":"Jurat!D$33","v":"00:00:00"},"Q1","2017-03-31","Region 1","Operating Expense","Medical Benefits Expense","Professional Services","3.6","Ending IBNP for Professional Services",{"$f":"IFERROR('MMA Rev-Exp Region 1'!$D$34/'MMA Rev-Exp Region 1'!$D$9, 0)","v":{"v":0,"d":"$0.00"}},{"$f":"IFERROR('MMA Rev-Exp Region 1'!$E$34/'MMA Rev-Exp Region 1'!$E$9, 0)","v":{"v":0,"d":"$0.00"}},{"$f":"IFERROR('MMA Rev-Exp Region 1'!$F$34/'MMA Rev-Exp Region 1'!$F$9, 0)","v":{"v":0,"d":"$0.00"}},{"$f":"IFERROR('MMA Rev-Exp Region 1'!$G$34/'MMA Rev-Exp Region 1'!$G$9, 0)","v":{"v":0,"d":"$0.00"}},{"$f":"IFERROR('MMA Rev-Exp Region 1'!$H$34/'MMA Rev-Exp Region 1'!$H$9, 0)","v":{"v":0,"d":"$0.00"}},{"$f":"IFERROR('MMA Rev-Exp Region 1'!$I$34/'MMA Rev-Exp Region 1'!$I$9, 0)","v":{"v":0,"d":"$0.00"}},{"$f":"IFERROR('MMA Rev-Exp Region 1'!$J$34/'MMA Rev-Exp Region 1'!$J$9, 0)","v":{"v":0,"d":"$0.00"}},{"$f":"IFERROR('MMA Rev-Exp Region 1'!$K$34/'MMA Rev-Exp Region 1'!$K$9, 0)","v":{"v":0,"d":"$0.00"}},{"$f":"IFERROR('MMA Rev-Exp Region 1'!$L$34/'MMA Rev-Exp Region 1'!$L$9, 0)","v":{"v":0,"d":"$0.00"}},{"$f":"IFERROR('MMA Rev-Exp Region 1'!$M$34/'MMA Rev-Exp Region 1'!$M$9, 0)","v":{"v":0,"d":"$0.00"}},{"$f":"IFERROR('MMA Rev-Exp Region 1'!$N$34/'MMA Rev-Exp Region 1'!$N$9, 0)","v":{"v":0,"d":"$0.00"}}]
["MMA",null,null,{"$f":"Jurat!I$1","v":0},{"$f":"Jurat!D$33","v":"00:00:00"},"Q1","2017-03-31","Region 1","Operating Expense","Medical Benefits Expense","Professional Services","3.7","Professional Services Settlements",{"$f":"IFERROR('MMA Rev-Exp Region 1'!$D$35/'MMA Rev-Exp Region 1'!$D$9, 0)","v":{"v":0,"d":"$0.00"}},{"$f":"IFERROR('MMA Rev-Exp Region 1'!$E$35/'MMA Rev-Exp Region 1'!$E$9, 0)","v":{"v":0,"d":"$0.00"}},{"$f":"IFERROR('MMA Rev-Exp Region 1'!$F$35/'MMA Rev-Exp Region 1'!$F$9, 0)","v":{"v":0,"d":"$0.00"}},{"$f":"IFERROR('MMA Rev-Exp Region 1'!$G$35/'MMA Rev-Exp Region 1'!$G$9, 0)","v":{"v":0,"d":"$0.00"}},{"$f":"IFERROR('MMA Rev-Exp Region 1'!$H$35/'MMA Rev-Exp Region 1'!$H$9, 0)","v":{"v":0,"d":"$0.00"}},{"$f":"IFERROR('MMA Rev-Exp Region 1'!$I$35/'MMA Rev-Exp Region 1'!$I$9, 0)","v":{"v":0,"d":"$0.00"}},{"$f":"IFERROR('MMA Rev-Exp Region 1'!$J$35/'MMA Rev-Exp Region 1'!$J$9, 0)","v":{"v":0,"d":"$0.00"}},{"$f":"IFERROR('MMA Rev-Exp Region 1'!$K$35/'MMA Rev-Exp Region 1'!$K$9, 0)","v":{"v":0,"d":"$0.00"}},{"$f":"IFERROR('MMA Rev-Exp Region 1'!$L$35/'MMA Rev-Exp Region 1'!$L$9, 0)","v":{"v":0,"d":"$0.00"}},{"$f":"IFERROR('MMA Rev-Exp Region 1'!$M$35/'MMA Rev-Exp Region 1'!$M$9, 0)","v":{"v":0,"d":"$0.00"}},{"$f":"IFERROR('MMA Rev-Exp Region 1'!$N$35/'MMA Rev-Exp Region 1'!$N$9, 0)","v":{"v":0,"d":"$0.00"}}]
["MMA",null,null,{"$f":"Jurat!I$1","v":0},{"$f":"Jurat!D$33","v":"00:00:00"},"Q1","2017-03-31","Region 1","Operating Expense","Medical Benefits Expense","Maternity Services","4.1.1","Maternity Services",{"$f":"IFERROR('MMA Rev-Exp Region 1'!$D$37/'MMA Rev-Exp Region 1'!$D$9, 0)","v":{"v":0,"d":"$0.00"}},{"$f":"IFERROR('MMA Rev-Exp Region 1'!$E$37/'MMA Rev-Exp Region 1'!$E$9, 0)","v":{"v":0,"d":"$0.00"}},{"$f":"IFERROR('MMA Rev-Exp Region 1'!$F$37/'MMA Rev-Exp Region 1'!$F$9, 0)","v":{"v":0,"d":"$0.00"}},{"$f":"IFERROR('MMA Rev-Exp Region 1'!$G$37/'MMA Rev-Exp Region 1'!$G$9, 0)","v":{"v":0,"d":"$0.00"}},{"$f":"IFERROR('MMA Rev-Exp Region 1'!$H$37/'MMA Rev-Exp Region 1'!$H$9, 0)","v":{"v":0,"d":"$0.00"}},{"$f":"IFERROR('MMA Rev-Exp Region 1'!$I$37/'MMA Rev-Exp Region 1'!$I$9, 0)","v":{"v":0,"d":"$0.00"}},{"$f":"IFERROR('MMA Rev-Exp Region 1'!$J$37/'MMA Rev-Exp Region 1'!$J$9, 0)","v":{"v":0,"d":"$0.00"}},{"$f":"IFERROR('MMA Rev-Exp Region 1'!$K$37/'MMA Rev-Exp Region 1'!$K$9, 0)","v":{"v":0,"d":"$0.00"}},{"$f":"IFERROR('MMA Rev-Exp Region 1'!$L$37/'MMA Rev-Exp Region 1'!$L$9, 0)","v":{"v":0,"d":"$0.00"}},{"$f":"IFERROR('MMA Rev-Exp Region 1'!$M$37/'MMA Rev-Exp Region 1'!$M$9, 0)","v":{"v":0,"d":"$0.00"}},{"$f":"IFERROR('MMA Rev-Exp Region 1'!$N$37/'MMA Rev-Exp Region 1'!$N$9, 0)","v":{"v":0,"d":"$0.00"}}]
["MMA",null,null,{"$f":"Jurat!I$1","v":0},{"$f":"Jurat!D$33","v":"00:00:00"},"Q1","2017-03-31","Region 1","Operating Expense","Medical Benefits Expense","Maternity Services","4.2.1","Ending IBNP for Maternity Services",{"$f":"IFERROR('MMA Rev-Exp Region 1'!$D$38/'MMA Rev-Exp Region 1'!$D$9, 0)","v":{"v":0,"d":"$0.00"}},{"$f":"IFERROR('MMA Rev-Exp Region 1'!$E$38/'MMA Rev-Exp Region 1'!$E$9, 0)","v":{"v":0,"d":"$0.00"}},{"$f":"IFERROR('MMA Rev-Exp Region 1'!$F$38/'MMA Rev-Exp Region 1'!$F$9, 0)","v":{"v":0,"d":"$0.00"}},{"$f":"IFERROR('MMA Rev-Exp Region 1'!$G$38/'MMA Rev-Exp Region 1'!$G$9, 0)","v":{"v":0,"d":"$0.00"}},{"$f":"IFERROR('MMA Rev-Exp Region 1'!$H$38/'MMA Rev-Exp Region 1'!$H$9, 0)","v":{"v":0,"d":"$0.00"}},{"$f":"IFERROR('MMA Rev-Exp Region 1'!$I$38/'MMA Rev-Exp Region 1'!$I$9, 0)","v":{"v":0,"d":"$0.00"}},{"$f":"IFERROR('MMA Rev-Exp Region 1'!$J$38/'MMA Rev-Exp Region 1'!$J$9, 0)","v":{"v":0,"d":"$0.00"}},{"$f":"IFERROR('MMA Rev-Exp Region 1'!$K$38/'MMA Rev-Exp Region 1'!$K$9, 0)","v":{"v":0,"d":"$0.00"}},{"$f":"IFERROR('MMA Rev-Exp Region 1'!$L$38/'MMA Rev-Exp Region 1'!$L$9, 0)","v":{"v":0,"d":"$0.00"}},{"$f":"IFERROR('MMA Rev-Exp Region 1'!$M$38/'MMA Rev-Exp Region 1'!$M$9, 0)","v":{"v":0,"d":"$0.00"}},{"$f":"IFERROR('MMA Rev-Exp Region 1'!$N$38/'MMA Rev-Exp Region 1'!$N$9, 0)","v":{"v":0,"d":"$0.00"}}]
["MMA",null,null,{"$f":"Jurat!I$1","v":0},{"$f":"Jurat!D$33","v":"00:00:00"},"Q1","2017-03-31","Region 1","Operating Expense","Medical Benefits Expense","Maternity Services","4.3.1","Maternity Settlements",{"$f":"IFERROR('MMA Rev-Exp Region 1'!$D$39/'MMA Rev-Exp Region 1'!$D$9, 0)","v":{"v":0,"d":"$0.00"}},{"$f":"IFERROR('MMA Rev-Exp Region 1'!$E$39/'MMA Rev-Exp Region 1'!$E$9, 0)","v":{"v":0,"d":"$0.00"}},{"$f":"IFERROR('MMA Rev-Exp Region 1'!$F$39/'MMA Rev-Exp Region 1'!$F$9, 0)","v":{"v":0,"d":"$0.00"}},{"$f":"IFERROR('MMA Rev-Exp Region 1'!$G$39/'MMA Rev-Exp Region 1'!$G$9, 0)","v":{"v":0,"d":"$0.00"}},{"$f":"IFERROR('MMA Rev-Exp Region 1'!$H$39/'MMA Rev-Exp Region 1'!$H$9, 0)","v":{"v":0,"d":"$0.00"}},{"$f":"IFERROR('MMA Rev-Exp Region 1'!$I$39/'MMA Rev-Exp Region 1'!$I$9, 0)","v":{"v":0,"d":"$0.00"}},{"$f":"IFERROR('MMA Rev-Exp Region 1'!$J$39/'MMA Rev-Exp Region 1'!$J$9, 0)","v":{"v":0,"d":"$0.00"}},{"$f":"IFERROR('MMA Rev-Exp Region 1'!$K$39/'MMA Rev-Exp Region 1'!$K$9, 0)","v":{"v":0,"d":"$0.00"}},{"$f":"IFERROR('MMA Rev-Exp Region 1'!$L$39/'MMA Rev-Exp Region 1'!$L$9, 0)","v":{"v":0,"d":"$0.00"}},{"$f":"IFERROR('MMA Rev-Exp Region 1'!$M$39/'MMA Rev-Exp Region 1'!$M$9, 0)","v":{"v":0,"d":"$0.00"}},{"$f":"IFERROR('MMA Rev-Exp Region 1'!$N$39/'MMA Rev-Exp Region 1'!$N$9, 0)","v":{"v":0,"d":"$0.00"}}]
["MMA",null,null,{"$f":"Jurat!I$1","v":0},{"$f":"Jurat!D$33","v":"00:00:00"},"Q1","2017-03-31","Region 1","Operating Expense","Medical Benefits Expense","Mental Health Services",5.1,"Mental Health & Substance Abuse FFS",{"$f":"IFERROR('MMA Rev-Exp Region 1'!$D$41/'MMA Rev-Exp Region 1'!$D$9, 0)","v":{"v":0,"d":"$0.00"}},{"$f":"IFERROR('MMA Rev-Exp Region 1'!$E$41/'MMA Rev-Exp Region 1'!$E$9, 0)","v":{"v":0,"d":"$0.00"}},{"$f":"IFERROR('MMA Rev-Exp Region 1'!$F$41/'MMA Rev-Exp Region 1'!$F$9, 0)","v":{"v":0,"d":"$0.00"}},{"$f":"IFERROR('MMA Rev-Exp Region 1'!$G$41/'MMA Rev-Exp Region 1'!$G$9, 0)","v":{"v":0,"d":"$0.00"}},{"$f":"IFERROR('MMA Rev-Exp Region 1'!$H$41/'MMA Rev-Exp Region 1'!$H$9, 0)","v":{"v":0,"d":"$0.00"}},{"$f":"IFERROR('MMA Rev-Exp Region 1'!$I$41/'MMA Rev-Exp Region 1'!$I$9, 0)","v":{"v":0,"d":"$0.00"}},{"$f":"IFERROR('MMA Rev-Exp Region 1'!$J$41/'MMA Rev-Exp Region 1'!$J$9, 0)","v":{"v":0,"d":"$0.00"}},{"$f":"IFERROR('MMA Rev-Exp Region 1'!$K$41/'MMA Rev-Exp Region 1'!$K$9, 0)","v":{"v":0,"d":"$0.00"}},{"$f":"IFERROR('MMA Rev-Exp Region 1'!$L$41/'MMA Rev-Exp Region 1'!$L$9, 0)","v":{"v":0,"d":"$0.00"}},{"$f":"IFERROR('MMA Rev-Exp Region 1'!$M$41/'MMA Rev-Exp Region 1'!$M$9, 0)","v":{"v":0,"d":"$0.00"}},{"$f":"IFERROR('MMA Rev-Exp Region 1'!$N$41/'MMA Rev-Exp Region 1'!$N$9, 0)","v":{"v":0,"d":"$0.00"}}]
["MMA",null,null,{"$f":"Jurat!I$1","v":0},{"$f":"Jurat!D$33","v":"00:00:00"},"Q1","2017-03-31","Region 1","Operating Expense","Medical Benefits Expense","Mental Health Services",5.2,"Mental Health & Substance Abuse Subcapitation",{"$f":"IFERROR('MMA Rev-Exp Region 1'!$D$42/'MMA Rev-Exp Region 1'!$D$9, 0)","v":{"v":0,"d":"$0.00"}},{"$f":"IFERROR('MMA Rev-Exp Region 1'!$E$42/'MMA Rev-Exp Region 1'!$E$9, 0)","v":{"v":0,"d":"$0.00"}},{"$f":"IFERROR('MMA Rev-Exp Region 1'!$F$42/'MMA Rev-Exp Region 1'!$F$9, 0)","v":{"v":0,"d":"$0.00"}},{"$f":"IFERROR('MMA Rev-Exp Region 1'!$G$42/'MMA Rev-Exp Region 1'!$G$9, 0)","v":{"v":0,"d":"$0.00"}},{"$f":"IFERROR('MMA Rev-Exp Region 1'!$H$42/'MMA Rev-Exp Region 1'!$H$9, 0)","v":{"v":0,"d":"$0.00"}},{"$f":"IFERROR('MMA Rev-Exp Region 1'!$I$42/'MMA Rev-Exp Region 1'!$I$9, 0)","v":{"v":0,"d":"$0.00"}},{"$f":"IFERROR('MMA Rev-Exp Region 1'!$J$42/'MMA Rev-Exp Region 1'!$J$9, 0)","v":{"v":0,"d":"$0.00"}},{"$f":"IFERROR('MMA Rev-Exp Region 1'!$K$42/'MMA Rev-Exp Region 1'!$K$9, 0)","v":{"v":0,"d":"$0.00"}},{"$f":"IFERROR('MMA Rev-Exp Region 1'!$L$42/'MMA Rev-Exp Region 1'!$L$9, 0)","v":{"v":0,"d":"$0.00"}},{"$f":"IFERROR('MMA Rev-Exp Region 1'!$M$42/'MMA Rev-Exp Region 1'!$M$9, 0)","v":{"v":0,"d":"$0.00"}},{"$f":"IFERROR('MMA Rev-Exp Region 1'!$N$42/'MMA Rev-Exp Region 1'!$N$9, 0)","v":{"v":0,"d":"$0.00"}}]
["MMA",null,null,{"$f":"Jurat!I$1","v":0},{"$f":"Jurat!D$33","v":"00:00:00"},"Q1","2017-03-31","Region 1","Operating Expense","Medical Benefits Expense","Mental Health Services",5.3,"Ending IBNP for Mental Health & Substance Abuse",{"$f":"IFERROR('MMA Rev-Exp Region 1'!$D$43/'MMA Rev-Exp Region 1'!$D$9, 0)","v":{"v":0,"d":"$0.00"}},{"$f":"IFERROR('MMA Rev-Exp Region 1'!$E$43/'MMA Rev-Exp Region 1'!$E$9, 0)","v":{"v":0,"d":"$0.00"}},{"$f":"IFERROR('MMA Rev-Exp Region 1'!$F$43/'MMA Rev-Exp Region 1'!$F$9, 0)","v":{"v":0,"d":"$0.00"}},{"$f":"IFERROR('MMA Rev-Exp Region 1'!$G$43/'MMA Rev-Exp Region 1'!$G$9, 0)","v":{"v":0,"d":"$0.00"}},{"$f":"IFERROR('MMA Rev-Exp Region 1'!$H$43/'MMA Rev-Exp Region 1'!$H$9, 0)","v":{"v":0,"d":"$0.00"}},{"$f":"IFERROR('MMA Rev-Exp Region 1'!$I$43/'MMA Rev-Exp Region 1'!$I$9, 0)","v":{"v":0,"d":"$0.00"}},{"$f":"IFERROR('MMA Rev-Exp Region 1'!$J$43/'MMA Rev-Exp Region 1'!$J$9, 0)","v":{"v":0,"d":"$0.00"}},{"$f":"IFERROR('MMA Rev-Exp Region 1'!$K$43/'MMA Rev-Exp Region 1'!$K$9, 0)","v":{"v":0,"d":"$0.00"}},{"$f":"IFERROR('MMA Rev-Exp Region 1'!$L$43/'MMA Rev-Exp Region 1'!$L$9, 0)","v":{"v":0,"d":"$0.00"}},{"$f":"IFERROR('MMA Rev-Exp Region 1'!$M$43/'MMA Rev-Exp Region 1'!$M$9, 0)","v":{"v":0,"d":"$0.00"}},{"$f":"IFERROR('MMA Rev-Exp Region 1'!$N$43/'MMA Rev-Exp Region 1'!$N$9, 0)","v":{"v":0,"d":"$0.00"}}]
["MMA",null,null,{"$f":"Jurat!I$1","v":0},{"$f":"Jurat!D$33","v":"00:00:00"},"Q1","2017-03-31","Region 1","Operating Expense","Medical Benefits Expense","Mental Health Services","5.4","Mental Health Settlements",{"$f":"IFERROR('MMA Rev-Exp Region 1'!$D$44/'MMA Rev-Exp Region 1'!$D$9, 0)","v":{"v":0,"d":"$0.00"}},{"$f":"IFERROR('MMA Rev-Exp Region 1'!$E$44/'MMA Rev-Exp Region 1'!$E$9, 0)","v":{"v":0,"d":"$0.00"}},{"$f":"IFERROR('MMA Rev-Exp Region 1'!$F$44/'MMA Rev-Exp Region 1'!$F$9, 0)","v":{"v":0,"d":"$0.00"}},{"$f":"IFERROR('MMA Rev-Exp Region 1'!$G$44/'MMA Rev-Exp Region 1'!$G$9, 0)","v":{"v":0,"d":"$0.00"}},{"$f":"IFERROR('MMA Rev-Exp Region 1'!$H$44/'MMA Rev-Exp Region 1'!$H$9, 0)","v":{"v":0,"d":"$0.00"}},{"$f":"IFERROR('MMA Rev-Exp Region 1'!$I$44/'MMA Rev-Exp Region 1'!$I$9, 0)","v":{"v":0,"d":"$0.00"}},{"$f":"IFERROR('MMA Rev-Exp Region 1'!$J$44/'MMA Rev-Exp Region 1'!$J$9, 0)","v":{"v":0,"d":"$0.00"}},{"$f":"IFERROR('MMA Rev-Exp Region 1'!$K$44/'MMA Rev-Exp Region 1'!$K$9, 0)","v":{"v":0,"d":"$0.00"}},{"$f":"IFERROR('MMA Rev-Exp Region 1'!$L$44/'MMA Rev-Exp Region 1'!$L$9, 0)","v":{"v":0,"d":"$0.00"}},{"$f":"IFERROR('MMA Rev-Exp Region 1'!$M$44/'MMA Rev-Exp Region 1'!$M$9, 0)","v":{"v":0,"d":"$0.00"}},{"$f":"IFERROR('MMA Rev-Exp Region 1'!$N$44/'MMA Rev-Exp Region 1'!$N$9, 0)","v":{"v":0,"d":"$0.00"}}]
["MMA",null,null,{"$f":"Jurat!I$1","v":0},{"$f":"Jurat!D$33","v":"00:00:00"},"Q1","2017-03-31","Region 1","Operating Expense","Medical Benefits Expense","Dental Services",6.1,"Dental FFS",{"$f":"IFERROR('MMA Rev-Exp Region 1'!$D$46/'MMA Rev-Exp Region 1'!$D$9, 0)","v":{"v":0,"d":"$0.00"}},{"$f":"IFERROR('MMA Rev-Exp Region 1'!$E$46/'MMA Rev-Exp Region 1'!$E$9, 0)","v":{"v":0,"d":"$0.00"}},{"$f":"IFERROR('MMA Rev-Exp Region 1'!$F$46/'MMA Rev-Exp Region 1'!$F$9, 0)","v":{"v":0,"d":"$0.00"}},{"$f":"IFERROR('MMA Rev-Exp Region 1'!$G$46/'MMA Rev-Exp Region 1'!$G$9, 0)","v":{"v":0,"d":"$0.00"}},{"$f":"IFERROR('MMA Rev-Exp Region 1'!$H$46/'MMA Rev-Exp Region 1'!$H$9, 0)","v":{"v":0,"d":"$0.00"}},{"$f":"IFERROR('MMA Rev-Exp Region 1'!$I$46/'MMA Rev-Exp Region 1'!$I$9, 0)","v":{"v":0,"d":"$0.00"}},{"$f":"IFERROR('MMA Rev-Exp Region 1'!$J$46/'MMA Rev-Exp Region 1'!$J$9, 0)","v":{"v":0,"d":"$0.00"}},{"$f":"IFERROR('MMA Rev-Exp Region 1'!$K$46/'MMA Rev-Exp Region 1'!$K$9, 0)","v":{"v":0,"d":"$0.00"}},{"$f":"IFERROR('MMA Rev-Exp Region 1'!$L$46/'MMA Rev-Exp Region 1'!$L$9, 0)","v":{"v":0,"d":"$0.00"}},{"$f":"IFERROR('MMA Rev-Exp Region 1'!$M$46/'MMA Rev-Exp Region 1'!$M$9, 0)","v":{"v":0,"d":"$0.00"}},{"$f":"IFERROR('MMA Rev-Exp Region 1'!$N$46/'MMA Rev-Exp Region 1'!$N$9, 0)","v":{"v":0,"d":"$0.00"}}]
["MMA",null,null,{"$f":"Jurat!I$1","v":0},{"$f":"Jurat!D$33","v":"00:00:00"},"Q1","2017-03-31","Region 1","Operating Expense","Medical Benefits Expense","Dental Services",6.2,"Dental Subcapitation",{"$f":"IFERROR('MMA Rev-Exp Region 1'!$D$47/'MMA Rev-Exp Region 1'!$D$9, 0)","v":{"v":0,"d":"$0.00"}},{"$f":"IFERROR('MMA Rev-Exp Region 1'!$E$47/'MMA Rev-Exp Region 1'!$E$9, 0)","v":{"v":0,"d":"$0.00"}},{"$f":"IFERROR('MMA Rev-Exp Region 1'!$F$47/'MMA Rev-Exp Region 1'!$F$9, 0)","v":{"v":0,"d":"$0.00"}},{"$f":"IFERROR('MMA Rev-Exp Region 1'!$G$47/'MMA Rev-Exp Region 1'!$G$9, 0)","v":{"v":0,"d":"$0.00"}},{"$f":"IFERROR('MMA Rev-Exp Region 1'!$H$47/'MMA Rev-Exp Region 1'!$H$9, 0)","v":{"v":0,"d":"$0.00"}},{"$f":"IFERROR('MMA Rev-Exp Region 1'!$I$47/'MMA Rev-Exp Region 1'!$I$9, 0)","v":{"v":0,"d":"$0.00"}},{"$f":"IFERROR('MMA Rev-Exp Region 1'!$J$47/'MMA Rev-Exp Region 1'!$J$9, 0)","v":{"v":0,"d":"$0.00"}},{"$f":"IFERROR('MMA Rev-Exp Region 1'!$K$47/'MMA Rev-Exp Region 1'!$K$9, 0)","v":{"v":0,"d":"$0.00"}},{"$f":"IFERROR('MMA Rev-Exp Region 1'!$L$47/'MMA Rev-Exp Region 1'!$L$9, 0)","v":{"v":0,"d":"$0.00"}},{"$f":"IFERROR('MMA Rev-Exp Region 1'!$M$47/'MMA Rev-Exp Region 1'!$M$9, 0)","v":{"v":0,"d":"$0.00"}},{"$f":"IFERROR('MMA Rev-Exp Region 1'!$N$47/'MMA Rev-Exp Region 1'!$N$9, 0)","v":{"v":0,"d":"$0.00"}}]
["MMA",null,null,{"$f":"Jurat!I$1","v":0},{"$f":"Jurat!D$33","v":"00:00:00"},"Q1","2017-03-31","Region 1","Operating Expense","Medical Benefits Expense","Dental Services",6.3,"Ending IBNP for Dental Services",{"$f":"IFERROR('MMA Rev-Exp Region 1'!$D$48/'MMA Rev-Exp Region 1'!$D$9, 0)","v":{"v":0,"d":"$0.00"}},{"$f":"IFERROR('MMA Rev-Exp Region 1'!$E$48/'MMA Rev-Exp Region 1'!$E$9, 0)","v":{"v":0,"d":"$0.00"}},{"$f":"IFERROR('MMA Rev-Exp Region 1'!$F$48/'MMA Rev-Exp Region 1'!$F$9, 0)","v":{"v":0,"d":"$0.00"}},{"$f":"IFERROR('MMA Rev-Exp Region 1'!$G$48/'MMA Rev-Exp Region 1'!$G$9, 0)","v":{"v":0,"d":"$0.00"}},{"$f":"IFERROR('MMA Rev-Exp Region 1'!$H$48/'MMA Rev-Exp Region 1'!$H$9, 0)","v":{"v":0,"d":"$0.00"}},{"$f":"IFERROR('MMA Rev-Exp Region 1'!$I$48/'MMA Rev-Exp Region 1'!$I$9, 0)","v":{"v":0,"d":"$0.00"}},{"$f":"IFERROR('MMA Rev-Exp Region 1'!$J$48/'MMA Rev-Exp Region 1'!$J$9, 0)","v":{"v":0,"d":"$0.00"}},{"$f":"IFERROR('MMA Rev-Exp Region 1'!$K$48/'MMA Rev-Exp Region 1'!$K$9, 0)","v":{"v":0,"d":"$0.00"}},{"$f":"IFERROR('MMA Rev-Exp Region 1'!$L$48/'MMA Rev-Exp Region 1'!$L$9, 0)","v":{"v":0,"d":"$0.00"}},{"$f":"IFERROR('MMA Rev-Exp Region 1'!$M$48/'MMA Rev-Exp Region 1'!$M$9, 0)","v":{"v":0,"d":"$0.00"}},{"$f":"IFERROR('MMA Rev-Exp Region 1'!$N$48/'MMA Rev-Exp Region 1'!$N$9, 0)","v":{"v":0,"d":"$0.00"}}]
["MMA",null,null,{"$f":"Jurat!I$1","v":0},{"$f":"Jurat!D$33","v":"00:00:00"},"Q1","2017-03-31","Region 1","Operating Expense","Medical Benefits Expense","Dental Services","6.4","Dental Settlements",{"$f":"IFERROR('MMA Rev-Exp Region 1'!$D$49/'MMA Rev-Exp Region 1'!$D$9, 0)","v":{"v":0,"d":"$0.00"}},{"$f":"IFERROR('MMA Rev-Exp Region 1'!$E$49/'MMA Rev-Exp Region 1'!$E$9, 0)","v":{"v":0,"d":"$0.00"}},{"$f":"IFERROR('MMA Rev-Exp Region 1'!$F$49/'MMA Rev-Exp Region 1'!$F$9, 0)","v":{"v":0,"d":"$0.00"}},{"$f":"IFERROR('MMA Rev-Exp Region 1'!$G$49/'MMA Rev-Exp Region 1'!$G$9, 0)","v":{"v":0,"d":"$0.00"}},{"$f":"IFERROR('MMA Rev-Exp Region 1'!$H$49/'MMA Rev-Exp Region 1'!$H$9, 0)","v":{"v":0,"d":"$0.00"}},{"$f":"IFERROR('MMA Rev-Exp Region 1'!$I$49/'MMA Rev-Exp Region 1'!$I$9, 0)","v":{"v":0,"d":"$0.00"}},{"$f":"IFERROR('MMA Rev-Exp Region 1'!$J$49/'MMA Rev-Exp Region 1'!$J$9, 0)","v":{"v":0,"d":"$0.00"}},{"$f":"IFERROR('MMA Rev-Exp Region 1'!$K$49/'MMA Rev-Exp Region 1'!$K$9, 0)","v":{"v":0,"d":"$0.00"}},{"$f":"IFERROR('MMA Rev-Exp Region 1'!$L$49/'MMA Rev-Exp Region 1'!$L$9, 0)","v":{"v":0,"d":"$0.00"}},{"$f":"IFERROR('MMA Rev-Exp Region 1'!$M$49/'MMA Rev-Exp Region 1'!$M$9, 0)","v":{"v":0,"d":"$0.00"}},{"$f":"IFERROR('MMA Rev-Exp Region 1'!$N$49/'MMA Rev-Exp Region 1'!$N$9, 0)","v":{"v":0,"d":"$0.00"}}]
["MMA",null,null,{"$f":"Jurat!I$1","v":0},{"$f":"Jurat!D$33","v":"00:00:00"},"Q1","2017-03-31","Region 1","Operating Expense","Medical Benefits Expense","Transportation Services",7.1,"Transportation FFS",{"$f":"IFERROR('MMA Rev-Exp Region 1'!$D$51/'MMA Rev-Exp Region 1'!$D$9, 0)","v":{"v":0,"d":"$0.00"}},{"$f":"IFERROR('MMA Rev-Exp Region 1'!$E$51/'MMA Rev-Exp Region 1'!$E$9, 0)","v":{"v":0,"d":"$0.00"}},{"$f":"IFERROR('MMA Rev-Exp Region 1'!$F$51/'MMA Rev-Exp Region 1'!$F$9, 0)","v":{"v":0,"d":"$0.00"}},{"$f":"IFERROR('MMA Rev-Exp Region 1'!$G$51/'MMA Rev-Exp Region 1'!$G$9, 0)","v":{"v":0,"d":"$0.00"}},{"$f":"IFERROR('MMA Rev-Exp Region 1'!$H$51/'MMA Rev-Exp Region 1'!$H$9, 0)","v":{"v":0,"d":"$0.00"}},{"$f":"IFERROR('MMA Rev-Exp Region 1'!$I$51/'MMA Rev-Exp Region 1'!$I$9, 0)","v":{"v":0,"d":"$0.00"}},{"$f":"IFERROR('MMA Rev-Exp Region 1'!$J$51/'MMA Rev-Exp Region 1'!$J$9, 0)","v":{"v":0,"d":"$0.00"}},{"$f":"IFERROR('MMA Rev-Exp Region 1'!$K$51/'MMA Rev-Exp Region 1'!$K$9, 0)","v":{"v":0,"d":"$0.00"}},{"$f":"IFERROR('MMA Rev-Exp Region 1'!$L$51/'MMA Rev-Exp Region 1'!$L$9, 0)","v":{"v":0,"d":"$0.00"}},{"$f":"IFERROR('MMA Rev-Exp Region 1'!$M$51/'MMA Rev-Exp Region 1'!$M$9, 0)","v":{"v":0,"d":"$0.00"}},{"$f":"IFERROR('MMA Rev-Exp Region 1'!$N$51/'MMA Rev-Exp Region 1'!$N$9, 0)","v":{"v":0,"d":"$0.00"}}]
["MMA",null,null,{"$f":"Jurat!I$1","v":0},{"$f":"Jurat!D$33","v":"00:00:00"},"Q1","2017-03-31","Region 1","Operating Expense","Medical Benefits Expense","Transportation Services",7.2,"Transportation Subcapitation",{"$f":"IFERROR('MMA Rev-Exp Region 1'!$D$52/'MMA Rev-Exp Region 1'!$D$9, 0)","v":{"v":0,"d":"$0.00"}},{"$f":"IFERROR('MMA Rev-Exp Region 1'!$E$52/'MMA Rev-Exp Region 1'!$E$9, 0)","v":{"v":0,"d":"$0.00"}},{"$f":"IFERROR('MMA Rev-Exp Region 1'!$F$52/'MMA Rev-Exp Region 1'!$F$9, 0)","v":{"v":0,"d":"$0.00"}},{"$f":"IFERROR('MMA Rev-Exp Region 1'!$G$52/'MMA Rev-Exp Region 1'!$G$9, 0)","v":{"v":0,"d":"$0.00"}},{"$f":"IFERROR('MMA Rev-Exp Region 1'!$H$52/'MMA Rev-Exp Region 1'!$H$9, 0)","v":{"v":0,"d":"$0.00"}},{"$f":"IFERROR('MMA Rev-Exp Region 1'!$I$52/'MMA Rev-Exp Region 1'!$I$9, 0)","v":{"v":0,"d":"$0.00"}},{"$f":"IFERROR('MMA Rev-Exp Region 1'!$J$52/'MMA Rev-Exp Region 1'!$J$9, 0)","v":{"v":0,"d":"$0.00"}},{"$f":"IFERROR('MMA Rev-Exp Region 1'!$K$52/'MMA Rev-Exp Region 1'!$K$9, 0)","v":{"v":0,"d":"$0.00"}},{"$f":"IFERROR('MMA Rev-Exp Region 1'!$L$52/'MMA Rev-Exp Region 1'!$L$9, 0)","v":{"v":0,"d":"$0.00"}},{"$f":"IFERROR('MMA Rev-Exp Region 1'!$M$52/'MMA Rev-Exp Region 1'!$M$9, 0)","v":{"v":0,"d":"$0.00"}},{"$f":"IFERROR('MMA Rev-Exp Region 1'!$N$52/'MMA Rev-Exp Region 1'!$N$9, 0)","v":{"v":0,"d":"$0.00"}}]
["MMA",null,null,{"$f":"Jurat!I$1","v":0},{"$f":"Jurat!D$33","v":"00:00:00"},"Q1","2017-03-31","Region 1","Operating Expense","Medical Benefits Expense","Transportation Services",7.3,"Ending IBNP for Transportation",{"$f":"IFERROR('MMA Rev-Exp Region 1'!$D$53/'MMA Rev-Exp Region 1'!$D$9, 0)","v":{"v":0,"d":"$0.00"}},{"$f":"IFERROR('MMA Rev-Exp Region 1'!$E$53/'MMA Rev-Exp Region 1'!$E$9, 0)","v":{"v":0,"d":"$0.00"}},{"$f":"IFERROR('MMA Rev-Exp Region 1'!$F$53/'MMA Rev-Exp Region 1'!$F$9, 0)","v":{"v":0,"d":"$0.00"}},{"$f":"IFERROR('MMA Rev-Exp Region 1'!$G$53/'MMA Rev-Exp Region 1'!$G$9, 0)","v":{"v":0,"d":"$0.00"}},{"$f":"IFERROR('MMA Rev-Exp Region 1'!$H$53/'MMA Rev-Exp Region 1'!$H$9, 0)","v":{"v":0,"d":"$0.00"}},{"$f":"IFERROR('MMA Rev-Exp Region 1'!$I$53/'MMA Rev-Exp Region 1'!$I$9, 0)","v":{"v":0,"d":"$0.00"}},{"$f":"IFERROR('MMA Rev-Exp Region 1'!$J$53/'MMA Rev-Exp Region 1'!$J$9, 0)","v":{"v":0,"d":"$0.00"}},{"$f":"IFERROR('MMA Rev-Exp Region 1'!$K$53/'MMA Rev-Exp Region 1'!$K$9, 0)","v":{"v":0,"d":"$0.00"}},{"$f":"IFERROR('MMA Rev-Exp Region 1'!$L$53/'MMA Rev-Exp Region 1'!$L$9, 0)","v":{"v":0,"d":"$0.00"}},{"$f":"IFERROR('MMA Rev-Exp Region 1'!$M$53/'MMA Rev-Exp Region 1'!$M$9, 0)","v":{"v":0,"d":"$0.00"}},{"$f":"IFERROR('MMA Rev-Exp Region 1'!$N$53/'MMA Rev-Exp Region 1'!$N$9, 0)","v":{"v":0,"d":"$0.00"}}]
["MMA",null,null,{"$f":"Jurat!I$1","v":0},{"$f":"Jurat!D$33","v":"00:00:00"},"Q1","2017-03-31","Region 1","Operating Expense","Medical Benefits Expense","Transportation Services","7.4","Transportation Settlements",{"$f":"IFERROR('MMA Rev-Exp Region 1'!$D$54/'MMA Rev-Exp Region 1'!$D$9, 0)","v":{"v":0,"d":"$0.00"}},{"$f":"IFERROR('MMA Rev-Exp Region 1'!$E$54/'MMA Rev-Exp Region 1'!$E$9, 0)","v":{"v":0,"d":"$0.00"}},{"$f":"IFERROR('MMA Rev-Exp Region 1'!$F$54/'MMA Rev-Exp Region 1'!$F$9, 0)","v":{"v":0,"d":"$0.00"}},{"$f":"IFERROR('MMA Rev-Exp Region 1'!$G$54/'MMA Rev-Exp Region 1'!$G$9, 0)","v":{"v":0,"d":"$0.00"}},{"$f":"IFERROR('MMA Rev-Exp Region 1'!$H$54/'MMA Rev-Exp Region 1'!$H$9, 0)","v":{"v":0,"d":"$0.00"}},{"$f":"IFERROR('MMA Rev-Exp Region 1'!$I$54/'MMA Rev-Exp Region 1'!$I$9, 0)","v":{"v":0,"d":"$0.00"}},{"$f":"IFERROR('MMA Rev-Exp Region 1'!$J$54/'MMA Rev-Exp Region 1'!$J$9, 0)","v":{"v":0,"d":"$0.00"}},{"$f":"IFERROR('MMA Rev-Exp Region 1'!$K$54/'MMA Rev-Exp Region 1'!$K$9, 0)","v":{"v":0,"d":"$0.00"}},{"$f":"IFERROR('MMA Rev-Exp Region 1'!$L$54/'MMA Rev-Exp Region 1'!$L$9, 0)","v":{"v":0,"d":"$0.00"}},{"$f":"IFERROR('MMA Rev-Exp Region 1'!$M$54/'MMA Rev-Exp Region 1'!$M$9, 0)","v":{"v":0,"d":"$0.00"}},{"$f":"IFERROR('MMA Rev-Exp Region 1'!$N$54/'MMA Rev-Exp Region 1'!$N$9, 0)","v":{"v":0,"d":"$0.00"}}]
["MMA",null,null,{"$f":"Jurat!I$1","v":0},{"$f":"Jurat!D$33","v":"00:00:00"},"Q1","2017-03-31","Region 1","Operating Expense","Medical Benefits Expense","Pharmacy Services",8.1,"Prescription Drugs FFS",{"$f":"IFERROR('MMA Rev-Exp Region 1'!$D$56/'MMA Rev-Exp Region 1'!$D$9, 0)","v":{"v":0,"d":"$0.00"}},{"$f":"IFERROR('MMA Rev-Exp Region 1'!$E$56/'MMA Rev-Exp Region 1'!$E$9, 0)","v":{"v":0,"d":"$0.00"}},{"$f":"IFERROR('MMA Rev-Exp Region 1'!$F$56/'MMA Rev-Exp Region 1'!$F$9, 0)","v":{"v":0,"d":"$0.00"}},{"$f":"IFERROR('MMA Rev-Exp Region 1'!$G$56/'MMA Rev-Exp Region 1'!$G$9, 0)","v":{"v":0,"d":"$0.00"}},{"$f":"IFERROR('MMA Rev-Exp Region 1'!$H$56/'MMA Rev-Exp Region 1'!$H$9, 0)","v":{"v":0,"d":"$0.00"}},{"$f":"IFERROR('MMA Rev-Exp Region 1'!$I$56/'MMA Rev-Exp Region 1'!$I$9, 0)","v":{"v":0,"d":"$0.00"}},{"$f":"IFERROR('MMA Rev-Exp Region 1'!$J$56/'MMA Rev-Exp Region 1'!$J$9, 0)","v":{"v":0,"d":"$0.00"}},{"$f":"IFERROR('MMA Rev-Exp Region 1'!$K$56/'MMA Rev-Exp Region 1'!$K$9, 0)","v":{"v":0,"d":"$0.00"}},{"$f":"IFERROR('MMA Rev-Exp Region 1'!$L$56/'MMA Rev-Exp Region 1'!$L$9, 0)","v":{"v":0,"d":"$0.00"}},{"$f":"IFERROR('MMA Rev-Exp Region 1'!$M$56/'MMA Rev-Exp Region 1'!$M$9, 0)","v":{"v":0,"d":"$0.00"}},{"$f":"IFERROR('MMA Rev-Exp Region 1'!$N$56/'MMA Rev-Exp Region 1'!$N$9, 0)","v":{"v":0,"d":"$0.00"}}]
["MMA",null,null,{"$f":"Jurat!I$1","v":0},{"$f":"Jurat!D$33","v":"00:00:00"},"Q1","2017-03-31","Region 1","Operating Expense","Medical Benefits Expense","Pharmacy Services","8.2","Hepatitis C Prescription Drug FFS",{"$f":"IFERROR('MMA Rev-Exp Region 1'!$D$57/'MMA Rev-Exp Region 1'!$D$9, 0)","v":{"v":0,"d":"$0.00"}},{"$f":"IFERROR('MMA Rev-Exp Region 1'!$E$57/'MMA Rev-Exp Region 1'!$E$9, 0)","v":{"v":0,"d":"$0.00"}},{"$f":"IFERROR('MMA Rev-Exp Region 1'!$F$57/'MMA Rev-Exp Region 1'!$F$9, 0)","v":{"v":0,"d":"$0.00"}},{"$f":"IFERROR('MMA Rev-Exp Region 1'!$G$57/'MMA Rev-Exp Region 1'!$G$9, 0)","v":{"v":0,"d":"$0.00"}},{"$f":"IFERROR('MMA Rev-Exp Region 1'!$H$57/'MMA Rev-Exp Region 1'!$H$9, 0)","v":{"v":0,"d":"$0.00"}},{"$f":"IFERROR('MMA Rev-Exp Region 1'!$I$57/'MMA Rev-Exp Region 1'!$I$9, 0)","v":{"v":0,"d":"$0.00"}},{"$f":"IFERROR('MMA Rev-Exp Region 1'!$J$57/'MMA Rev-Exp Region 1'!$J$9, 0)","v":{"v":0,"d":"$0.00"}},{"$f":"IFERROR('MMA Rev-Exp Region 1'!$K$57/'MMA Rev-Exp Region 1'!$K$9, 0)","v":{"v":0,"d":"$0.00"}},{"$f":"IFERROR('MMA Rev-Exp Region 1'!$L$57/'MMA Rev-Exp Region 1'!$L$9, 0)","v":{"v":0,"d":"$0.00"}},{"$f":"IFERROR('MMA Rev-Exp Region 1'!$M$57/'MMA Rev-Exp Region 1'!$M$9, 0)","v":{"v":0,"d":"$0.00"}},{"$f":"IFERROR('MMA Rev-Exp Region 1'!$N$57/'MMA Rev-Exp Region 1'!$N$9, 0)","v":{"v":0,"d":"$0.00"}}]
["MMA",null,null,{"$f":"Jurat!I$1","v":0},{"$f":"Jurat!D$33","v":"00:00:00"},"Q1","2017-03-31","Region 1","Operating Expense","Medical Benefits Expense","Pharmacy Services","8.3","Ending IBNP for Prescription Drugs",{"$f":"IFERROR('MMA Rev-Exp Region 1'!$D$58/'MMA Rev-Exp Region 1'!$D$9, 0)","v":{"v":0,"d":"$0.00"}},{"$f":"IFERROR('MMA Rev-Exp Region 1'!$E$58/'MMA Rev-Exp Region 1'!$E$9, 0)","v":{"v":0,"d":"$0.00"}},{"$f":"IFERROR('MMA Rev-Exp Region 1'!$F$58/'MMA Rev-Exp Region 1'!$F$9, 0)","v":{"v":0,"d":"$0.00"}},{"$f":"IFERROR('MMA Rev-Exp Region 1'!$G$58/'MMA Rev-Exp Region 1'!$G$9, 0)","v":{"v":0,"d":"$0.00"}},{"$f":"IFERROR('MMA Rev-Exp Region 1'!$H$58/'MMA Rev-Exp Region 1'!$H$9, 0)","v":{"v":0,"d":"$0.00"}},{"$f":"IFERROR('MMA Rev-Exp Region 1'!$I$58/'MMA Rev-Exp Region 1'!$I$9, 0)","v":{"v":0,"d":"$0.00"}},{"$f":"IFERROR('MMA Rev-Exp Region 1'!$J$58/'MMA Rev-Exp Region 1'!$J$9, 0)","v":{"v":0,"d":"$0.00"}},{"$f":"IFERROR('MMA Rev-Exp Region 1'!$K$58/'MMA Rev-Exp Region 1'!$K$9, 0)","v":{"v":0,"d":"$0.00"}},{"$f":"IFERROR('MMA Rev-Exp Region 1'!$L$58/'MMA Rev-Exp Region 1'!$L$9, 0)","v":{"v":0,"d":"$0.00"}},{"$f":"IFERROR('MMA Rev-Exp Region 1'!$M$58/'MMA Rev-Exp Region 1'!$M$9, 0)","v":{"v":0,"d":"$0.00"}},{"$f":"IFERROR('MMA Rev-Exp Region 1'!$N$58/'MMA Rev-Exp Region 1'!$N$9, 0)","v":{"v":0,"d":"$0.00"}}]
["MMA",null,null,{"$f":"Jurat!I$1","v":0},{"$f":"Jurat!D$33","v":"00:00:00"},"Q1","2017-03-31","Region 1","Operating Expense","Medical Benefits Expense","Pharmacy Services","8.4","Prescription Drug Rebates ",{"$f":"IFERROR('MMA Rev-Exp Region 1'!$D$59/'MMA Rev-Exp Region 1'!$D$9, 0)","v":{"v":0,"d":"$0.00"}},{"$f":"IFERROR('MMA Rev-Exp Region 1'!$E$59/'MMA Rev-Exp Region 1'!$E$9, 0)","v":{"v":0,"d":"$0.00"}},{"$f":"IFERROR('MMA Rev-Exp Region 1'!$F$59/'MMA Rev-Exp Region 1'!$F$9, 0)","v":{"v":0,"d":"$0.00"}},{"$f":"IFERROR('MMA Rev-Exp Region 1'!$G$59/'MMA Rev-Exp Region 1'!$G$9, 0)","v":{"v":0,"d":"$0.00"}},{"$f":"IFERROR('MMA Rev-Exp Region 1'!$H$59/'MMA Rev-Exp Region 1'!$H$9, 0)","v":{"v":0,"d":"$0.00"}},{"$f":"IFERROR('MMA Rev-Exp Region 1'!$I$59/'MMA Rev-Exp Region 1'!$I$9, 0)","v":{"v":0,"d":"$0.00"}},{"$f":"IFERROR('MMA Rev-Exp Region 1'!$J$59/'MMA Rev-Exp Region 1'!$J$9, 0)","v":{"v":0,"d":"$0.00"}},{"$f":"IFERROR('MMA Rev-Exp Region 1'!$K$59/'MMA Rev-Exp Region 1'!$K$9, 0)","v":{"v":0,"d":"$0.00"}},{"$f":"IFERROR('MMA Rev-Exp Region 1'!$L$59/'MMA Rev-Exp Region 1'!$L$9, 0)","v":{"v":0,"d":"$0.00"}},{"$f":"IFERROR('MMA Rev-Exp Region 1'!$M$59/'MMA Rev-Exp Region 1'!$M$9, 0)","v":{"v":0,"d":"$0.00"}},{"$f":"IFERROR('MMA Rev-Exp Region 1'!$N$59/'MMA Rev-Exp Region 1'!$N$9, 0)","v":{"v":0,"d":"$0.00"}}]
["MMA",null,null,{"$f":"Jurat!I$1","v":0},{"$f":"Jurat!D$33","v":"00:00:00"},"Q1","2017-03-31","Region 1","Operating Expense","Medical Benefits Expense","Pharmacy Services","8.5","Ending accrual for Rebates receivable",{"$f":"IFERROR('MMA Rev-Exp Region 1'!$D$60/'MMA Rev-Exp Region 1'!$D$9, 0)","v":{"v":0,"d":"$0.00"}},{"$f":"IFERROR('MMA Rev-Exp Region 1'!$E$60/'MMA Rev-Exp Region 1'!$E$9, 0)","v":{"v":0,"d":"$0.00"}},{"$f":"IFERROR('MMA Rev-Exp Region 1'!$F$60/'MMA Rev-Exp Region 1'!$F$9, 0)","v":{"v":0,"d":"$0.00"}},{"$f":"IFERROR('MMA Rev-Exp Region 1'!$G$60/'MMA Rev-Exp Region 1'!$G$9, 0)","v":{"v":0,"d":"$0.00"}},{"$f":"IFERROR('MMA Rev-Exp Region 1'!$H$60/'MMA Rev-Exp Region 1'!$H$9, 0)","v":{"v":0,"d":"$0.00"}},{"$f":"IFERROR('MMA Rev-Exp Region 1'!$I$60/'MMA Rev-Exp Region 1'!$I$9, 0)","v":{"v":0,"d":"$0.00"}},{"$f":"IFERROR('MMA Rev-Exp Region 1'!$J$60/'MMA Rev-Exp Region 1'!$J$9, 0)","v":{"v":0,"d":"$0.00"}},{"$f":"IFERROR('MMA Rev-Exp Region 1'!$K$60/'MMA Rev-Exp Region 1'!$K$9, 0)","v":{"v":0,"d":"$0.00"}},{"$f":"IFERROR('MMA Rev-Exp Region 1'!$L$60/'MMA Rev-Exp Region 1'!$L$9, 0)","v":{"v":0,"d":"$0.00"}},{"$f":"IFERROR('MMA Rev-Exp Region 1'!$M$60/'MMA Rev-Exp Region 1'!$M$9, 0)","v":{"v":0,"d":"$0.00"}},{"$f":"IFERROR('MMA Rev-Exp Region 1'!$N$60/'MMA Rev-Exp Region 1'!$N$9, 0)","v":{"v":0,"d":"$0.00"}}]
["MMA",null,null,{"$f":"Jurat!I$1","v":0},{"$f":"Jurat!D$33","v":"00:00:00"},"Q1","2017-03-31","Region 1","Operating Expense","Medical Benefits Expense","Pharmacy Services","8.6","Prescription Drugs Subcapitation",{"$f":"IFERROR('MMA Rev-Exp Region 1'!$D$61/'MMA Rev-Exp Region 1'!$D$9, 0)","v":{"v":0,"d":"$0.00"}},{"$f":"IFERROR('MMA Rev-Exp Region 1'!$E$61/'MMA Rev-Exp Region 1'!$E$9, 0)","v":{"v":0,"d":"$0.00"}},{"$f":"IFERROR('MMA Rev-Exp Region 1'!$F$61/'MMA Rev-Exp Region 1'!$F$9, 0)","v":{"v":0,"d":"$0.00"}},{"$f":"IFERROR('MMA Rev-Exp Region 1'!$G$61/'MMA Rev-Exp Region 1'!$G$9, 0)","v":{"v":0,"d":"$0.00"}},{"$f":"IFERROR('MMA Rev-Exp Region 1'!$H$61/'MMA Rev-Exp Region 1'!$H$9, 0)","v":{"v":0,"d":"$0.00"}},{"$f":"IFERROR('MMA Rev-Exp Region 1'!$I$61/'MMA Rev-Exp Region 1'!$I$9, 0)","v":{"v":0,"d":"$0.00"}},{"$f":"IFERROR('MMA Rev-Exp Region 1'!$J$61/'MMA Rev-Exp Region 1'!$J$9, 0)","v":{"v":0,"d":"$0.00"}},{"$f":"IFERROR('MMA Rev-Exp Region 1'!$K$61/'MMA Rev-Exp Region 1'!$K$9, 0)","v":{"v":0,"d":"$0.00"}},{"$f":"IFERROR('MMA Rev-Exp Region 1'!$L$61/'MMA Rev-Exp Region 1'!$L$9, 0)","v":{"v":0,"d":"$0.00"}},{"$f":"IFERROR('MMA Rev-Exp Region 1'!$M$61/'MMA Rev-Exp Region 1'!$M$9, 0)","v":{"v":0,"d":"$0.00"}},{"$f":"IFERROR('MMA Rev-Exp Region 1'!$N$61/'MMA Rev-Exp Region 1'!$N$9, 0)","v":{"v":0,"d":"$0.00"}}]
["MMA",null,null,{"$f":"Jurat!I$1","v":0},{"$f":"Jurat!D$33","v":"00:00:00"},"Q1","2017-03-31","Region 1","Operating Expense","Medical Benefits Expense","Pharmacy Services","8.7","Prescription Drug Settlements",{"$f":"IFERROR('MMA Rev-Exp Region 1'!$D$62/'MMA Rev-Exp Region 1'!$D$9, 0)","v":{"v":0,"d":"$0.00"}},{"$f":"IFERROR('MMA Rev-Exp Region 1'!$E$62/'MMA Rev-Exp Region 1'!$E$9, 0)","v":{"v":0,"d":"$0.00"}},{"$f":"IFERROR('MMA Rev-Exp Region 1'!$F$62/'MMA Rev-Exp Region 1'!$F$9, 0)","v":{"v":0,"d":"$0.00"}},{"$f":"IFERROR('MMA Rev-Exp Region 1'!$G$62/'MMA Rev-Exp Region 1'!$G$9, 0)","v":{"v":0,"d":"$0.00"}},{"$f":"IFERROR('MMA Rev-Exp Region 1'!$H$62/'MMA Rev-Exp Region 1'!$H$9, 0)","v":{"v":0,"d":"$0.00"}},{"$f":"IFERROR('MMA Rev-Exp Region 1'!$I$62/'MMA Rev-Exp Region 1'!$I$9, 0)","v":{"v":0,"d":"$0.00"}},{"$f":"IFERROR('MMA Rev-Exp Region 1'!$J$62/'MMA Rev-Exp Region 1'!$J$9, 0)","v":{"v":0,"d":"$0.00"}},{"$f":"IFERROR('MMA Rev-Exp Region 1'!$K$62/'MMA Rev-Exp Region 1'!$K$9, 0)","v":{"v":0,"d":"$0.00"}},{"$f":"IFERROR('MMA Rev-Exp Region 1'!$L$62/'MMA Rev-Exp Region 1'!$L$9, 0)","v":{"v":0,"d":"$0.00"}},{"$f":"IFERROR('MMA Rev-Exp Region 1'!$M$62/'MMA Rev-Exp Region 1'!$M$9, 0)","v":{"v":0,"d":"$0.00"}},{"$f":"IFERROR('MMA Rev-Exp Region 1'!$N$62/'MMA Rev-Exp Region 1'!$N$9, 0)","v":{"v":0,"d":"$0.00"}}]
["MMA",null,null,{"$f":"Jurat!I$1","v":0},{"$f":"Jurat!D$33","v":"00:00:00"},"Q1","2017-03-31","Region 1","Operating Expense","Medical Benefits Expense","Other MMA Services",9.1,"Home Health, Private Duty Nursing, Personal Care FFS",{"$f":"IFERROR('MMA Rev-Exp Region 1'!$D$64/'MMA Rev-Exp Region 1'!$D$9, 0)","v":{"v":0,"d":"$0.00"}},{"$f":"IFERROR('MMA Rev-Exp Region 1'!$E$64/'MMA Rev-Exp Region 1'!$E$9, 0)","v":{"v":0,"d":"$0.00"}},{"$f":"IFERROR('MMA Rev-Exp Region 1'!$F$64/'MMA Rev-Exp Region 1'!$F$9, 0)","v":{"v":0,"d":"$0.00"}},{"$f":"IFERROR('MMA Rev-Exp Region 1'!$G$64/'MMA Rev-Exp Region 1'!$G$9, 0)","v":{"v":0,"d":"$0.00"}},{"$f":"IFERROR('MMA Rev-Exp Region 1'!$H$64/'MMA Rev-Exp Region 1'!$H$9, 0)","v":{"v":0,"d":"$0.00"}},{"$f":"IFERROR('MMA Rev-Exp Region 1'!$I$64/'MMA Rev-Exp Region 1'!$I$9, 0)","v":{"v":0,"d":"$0.00"}},{"$f":"IFERROR('MMA Rev-Exp Region 1'!$J$64/'MMA Rev-Exp Region 1'!$J$9, 0)","v":{"v":0,"d":"$0.00"}},{"$f":"IFERROR('MMA Rev-Exp Region 1'!$K$64/'MMA Rev-Exp Region 1'!$K$9, 0)","v":{"v":0,"d":"$0.00"}},{"$f":"IFERROR('MMA Rev-Exp Region 1'!$L$64/'MMA Rev-Exp Region 1'!$L$9, 0)","v":{"v":0,"d":"$0.00"}},{"$f":"IFERROR('MMA Rev-Exp Region 1'!$M$64/'MMA Rev-Exp Region 1'!$M$9, 0)","v":{"v":0,"d":"$0.00"}},{"$f":"IFERROR('MMA Rev-Exp Region 1'!$N$64/'MMA Rev-Exp Region 1'!$N$9, 0)","v":{"v":0,"d":"$0.00"}}]
["MMA",null,null,{"$f":"Jurat!I$1","v":0},{"$f":"Jurat!D$33","v":"00:00:00"},"Q1","2017-03-31","Region 1","Operating Expense","Medical Benefits Expense","Other MMA Services","9.2","Hospice FFS",{"$f":"IFERROR('MMA Rev-Exp Region 1'!$D$65/'MMA Rev-Exp Region 1'!$D$9, 0)","v":{"v":0,"d":"$0.00"}},{"$f":"IFERROR('MMA Rev-Exp Region 1'!$E$65/'MMA Rev-Exp Region 1'!$E$9, 0)","v":{"v":0,"d":"$0.00"}},{"$f":"IFERROR('MMA Rev-Exp Region 1'!$F$65/'MMA Rev-Exp Region 1'!$F$9, 0)","v":{"v":0,"d":"$0.00"}},{"$f":"IFERROR('MMA Rev-Exp Region 1'!$G$65/'MMA Rev-Exp Region 1'!$G$9, 0)","v":{"v":0,"d":"$0.00"}},{"$f":"IFERROR('MMA Rev-Exp Region 1'!$H$65/'MMA Rev-Exp Region 1'!$H$9, 0)","v":{"v":0,"d":"$0.00"}},{"$f":"IFERROR('MMA Rev-Exp Region 1'!$I$65/'MMA Rev-Exp Region 1'!$I$9, 0)","v":{"v":0,"d":"$0.00"}},{"$f":"IFERROR('MMA Rev-Exp Region 1'!$J$65/'MMA Rev-Exp Region 1'!$J$9, 0)","v":{"v":0,"d":"$0.00"}},{"$f":"IFERROR('MMA Rev-Exp Region 1'!$K$65/'MMA Rev-Exp Region 1'!$K$9, 0)","v":{"v":0,"d":"$0.00"}},{"$f":"IFERROR('MMA Rev-Exp Region 1'!$L$65/'MMA Rev-Exp Region 1'!$L$9, 0)","v":{"v":0,"d":"$0.00"}},{"$f":"IFERROR('MMA Rev-Exp Region 1'!$M$65/'MMA Rev-Exp Region 1'!$M$9, 0)","v":{"v":0,"d":"$0.00"}},{"$f":"IFERROR('MMA Rev-Exp Region 1'!$N$65/'MMA Rev-Exp Region 1'!$N$9, 0)","v":{"v":0,"d":"$0.00"}}]
["MMA",null,null,{"$f":"Jurat!I$1","v":0},{"$f":"Jurat!D$33","v":"00:00:00"},"Q1","2017-03-31","Region 1","Operating Expense","Medical Benefits Expense","Other MMA Services","9.3","DME FFS",{"$f":"IFERROR('MMA Rev-Exp Region 1'!$D$66/'MMA Rev-Exp Region 1'!$D$9, 0)","v":{"v":0,"d":"$0.00"}},{"$f":"IFERROR('MMA Rev-Exp Region 1'!$E$66/'MMA Rev-Exp Region 1'!$E$9, 0)","v":{"v":0,"d":"$0.00"}},{"$f":"IFERROR('MMA Rev-Exp Region 1'!$F$66/'MMA Rev-Exp Region 1'!$F$9, 0)","v":{"v":0,"d":"$0.00"}},{"$f":"IFERROR('MMA Rev-Exp Region 1'!$G$66/'MMA Rev-Exp Region 1'!$G$9, 0)","v":{"v":0,"d":"$0.00"}},{"$f":"IFERROR('MMA Rev-Exp Region 1'!$H$66/'MMA Rev-Exp Region 1'!$H$9, 0)","v":{"v":0,"d":"$0.00"}},{"$f":"IFERROR('MMA Rev-Exp Region 1'!$I$66/'MMA Rev-Exp Region 1'!$I$9, 0)","v":{"v":0,"d":"$0.00"}},{"$f":"IFERROR('MMA Rev-Exp Region 1'!$J$66/'MMA Rev-Exp Region 1'!$J$9, 0)","v":{"v":0,"d":"$0.00"}},{"$f":"IFERROR('MMA Rev-Exp Region 1'!$K$66/'MMA Rev-Exp Region 1'!$K$9, 0)","v":{"v":0,"d":"$0.00"}},{"$f":"IFERROR('MMA Rev-Exp Region 1'!$L$66/'MMA Rev-Exp Region 1'!$L$9, 0)","v":{"v":0,"d":"$0.00"}},{"$f":"IFERROR('MMA Rev-Exp Region 1'!$M$66/'MMA Rev-Exp Region 1'!$M$9, 0)","v":{"v":0,"d":"$0.00"}},{"$f":"IFERROR('MMA Rev-Exp Region 1'!$N$66/'MMA Rev-Exp Region 1'!$N$9, 0)","v":{"v":0,"d":"$0.00"}}]
["MMA",null,null,{"$f":"Jurat!I$1","v":0},{"$f":"Jurat!D$33","v":"00:00:00"},"Q1","2017-03-31","Region 1","Operating Expense","Medical Benefits Expense","Other MMA Services","9.4","Other State Plan Services FFS",{"$f":"IFERROR('MMA Rev-Exp Region 1'!$D$67/'MMA Rev-Exp Region 1'!$D$9, 0)","v":{"v":0,"d":"$0.00"}},{"$f":"IFERROR('MMA Rev-Exp Region 1'!$E$67/'MMA Rev-Exp Region 1'!$E$9, 0)","v":{"v":0,"d":"$0.00"}},{"$f":"IFERROR('MMA Rev-Exp Region 1'!$F$67/'MMA Rev-Exp Region 1'!$F$9, 0)","v":{"v":0,"d":"$0.00"}},{"$f":"IFERROR('MMA Rev-Exp Region 1'!$G$67/'MMA Rev-Exp Region 1'!$G$9, 0)","v":{"v":0,"d":"$0.00"}},{"$f":"IFERROR('MMA Rev-Exp Region 1'!$H$67/'MMA Rev-Exp Region 1'!$H$9, 0)","v":{"v":0,"d":"$0.00"}},{"$f":"IFERROR('MMA Rev-Exp Region 1'!$I$67/'MMA Rev-Exp Region 1'!$I$9, 0)","v":{"v":0,"d":"$0.00"}},{"$f":"IFERROR('MMA Rev-Exp Region 1'!$J$67/'MMA Rev-Exp Region 1'!$J$9, 0)","v":{"v":0,"d":"$0.00"}},{"$f":"IFERROR('MMA Rev-Exp Region 1'!$K$67/'MMA Rev-Exp Region 1'!$K$9, 0)","v":{"v":0,"d":"$0.00"}},{"$f":"IFERROR('MMA Rev-Exp Region 1'!$L$67/'MMA Rev-Exp Region 1'!$L$9, 0)","v":{"v":0,"d":"$0.00"}},{"$f":"IFERROR('MMA Rev-Exp Region 1'!$M$67/'MMA Rev-Exp Region 1'!$M$9, 0)","v":{"v":0,"d":"$0.00"}},{"$f":"IFERROR('MMA Rev-Exp Region 1'!$N$67/'MMA Rev-Exp Region 1'!$N$9, 0)","v":{"v":0,"d":"$0.00"}}]
["MMA",null,null,{"$f":"Jurat!I$1","v":0},{"$f":"Jurat!D$33","v":"00:00:00"},"Q1","2017-03-31","Region 1","Operating Expense","Medical Benefits Expense","Other MMA Services","9.5","Other Services Subcapitation",{"$f":"IFERROR('MMA Rev-Exp Region 1'!$D$68/'MMA Rev-Exp Region 1'!$D$9, 0)","v":{"v":0,"d":"$0.00"}},{"$f":"IFERROR('MMA Rev-Exp Region 1'!$E$68/'MMA Rev-Exp Region 1'!$E$9, 0)","v":{"v":0,"d":"$0.00"}},{"$f":"IFERROR('MMA Rev-Exp Region 1'!$F$68/'MMA Rev-Exp Region 1'!$F$9, 0)","v":{"v":0,"d":"$0.00"}},{"$f":"IFERROR('MMA Rev-Exp Region 1'!$G$68/'MMA Rev-Exp Region 1'!$G$9, 0)","v":{"v":0,"d":"$0.00"}},{"$f":"IFERROR('MMA Rev-Exp Region 1'!$H$68/'MMA Rev-Exp Region 1'!$H$9, 0)","v":{"v":0,"d":"$0.00"}},{"$f":"IFERROR('MMA Rev-Exp Region 1'!$I$68/'MMA Rev-Exp Region 1'!$I$9, 0)","v":{"v":0,"d":"$0.00"}},{"$f":"IFERROR('MMA Rev-Exp Region 1'!$J$68/'MMA Rev-Exp Region 1'!$J$9, 0)","v":{"v":0,"d":"$0.00"}},{"$f":"IFERROR('MMA Rev-Exp Region 1'!$K$68/'MMA Rev-Exp Region 1'!$K$9, 0)","v":{"v":0,"d":"$0.00"}},{"$f":"IFERROR('MMA Rev-Exp Region 1'!$L$68/'MMA Rev-Exp Region 1'!$L$9, 0)","v":{"v":0,"d":"$0.00"}},{"$f":"IFERROR('MMA Rev-Exp Region 1'!$M$68/'MMA Rev-Exp Region 1'!$M$9, 0)","v":{"v":0,"d":"$0.00"}},{"$f":"IFERROR('MMA Rev-Exp Region 1'!$N$68/'MMA Rev-Exp Region 1'!$N$9, 0)","v":{"v":0,"d":"$0.00"}}]
["MMA",null,null,{"$f":"Jurat!I$1","v":0},{"$f":"Jurat!D$33","v":"00:00:00"},"Q1","2017-03-31","Region 1","Operating Expense","Medical Benefits Expense","Other MMA Services","9.6","Ending IBNP for Other Services",{"$f":"IFERROR('MMA Rev-Exp Region 1'!$D$69/'MMA Rev-Exp Region 1'!$D$9, 0)","v":{"v":0,"d":"$0.00"}},{"$f":"IFERROR('MMA Rev-Exp Region 1'!$E$69/'MMA Rev-Exp Region 1'!$E$9, 0)","v":{"v":0,"d":"$0.00"}},{"$f":"IFERROR('MMA Rev-Exp Region 1'!$F$69/'MMA Rev-Exp Region 1'!$F$9, 0)","v":{"v":0,"d":"$0.00"}},{"$f":"IFERROR('MMA Rev-Exp Region 1'!$G$69/'MMA Rev-Exp Region 1'!$G$9, 0)","v":{"v":0,"d":"$0.00"}},{"$f":"IFERROR('MMA Rev-Exp Region 1'!$H$69/'MMA Rev-Exp Region 1'!$H$9, 0)","v":{"v":0,"d":"$0.00"}},{"$f":"IFERROR('MMA Rev-Exp Region 1'!$I$69/'MMA Rev-Exp Region 1'!$I$9, 0)","v":{"v":0,"d":"$0.00"}},{"$f":"IFERROR('MMA Rev-Exp Region 1'!$J$69/'MMA Rev-Exp Region 1'!$J$9, 0)","v":{"v":0,"d":"$0.00"}},{"$f":"IFERROR('MMA Rev-Exp Region 1'!$K$69/'MMA Rev-Exp Region 1'!$K$9, 0)","v":{"v":0,"d":"$0.00"}},{"$f":"IFERROR('MMA Rev-Exp Region 1'!$L$69/'MMA Rev-Exp Region 1'!$L$9, 0)","v":{"v":0,"d":"$0.00"}},{"$f":"IFERROR('MMA Rev-Exp Region 1'!$M$69/'MMA Rev-Exp Region 1'!$M$9, 0)","v":{"v":0,"d":"$0.00"}},{"$f":"IFERROR('MMA Rev-Exp Region 1'!$N$69/'MMA Rev-Exp Region 1'!$N$9, 0)","v":{"v":0,"d":"$0.00"}}]
["MMA",null,null,{"$f":"Jurat!I$1","v":0},{"$f":"Jurat!D$33","v":"00:00:00"},"Q1","2017-03-31","Region 1","Operating Expense","Medical Benefits Expense","Other MMA Services","9.7","Other Services Settlements",{"$f":"IFERROR('MMA Rev-Exp Region 1'!$D$70/'MMA Rev-Exp Region 1'!$D$9, 0)","v":{"v":0,"d":"$0.00"}},{"$f":"IFERROR('MMA Rev-Exp Region 1'!$E$70/'MMA Rev-Exp Region 1'!$E$9, 0)","v":{"v":0,"d":"$0.00"}},{"$f":"IFERROR('MMA Rev-Exp Region 1'!$F$70/'MMA Rev-Exp Region 1'!$F$9, 0)","v":{"v":0,"d":"$0.00"}},{"$f":"IFERROR('MMA Rev-Exp Region 1'!$G$70/'MMA Rev-Exp Region 1'!$G$9, 0)","v":{"v":0,"d":"$0.00"}},{"$f":"IFERROR('MMA Rev-Exp Region 1'!$H$70/'MMA Rev-Exp Region 1'!$H$9, 0)","v":{"v":0,"d":"$0.00"}},{"$f":"IFERROR('MMA Rev-Exp Region 1'!$I$70/'MMA Rev-Exp Region 1'!$I$9, 0)","v":{"v":0,"d":"$0.00"}},{"$f":"IFERROR('MMA Rev-Exp Region 1'!$J$70/'MMA Rev-Exp Region 1'!$J$9, 0)","v":{"v":0,"d":"$0.00"}},{"$f":"IFERROR('MMA Rev-Exp Region 1'!$K$70/'MMA Rev-Exp Region 1'!$K$9, 0)","v":{"v":0,"d":"$0.00"}},{"$f":"IFERROR('MMA Rev-Exp Region 1'!$L$70/'MMA Rev-Exp Region 1'!$L$9, 0)","v":{"v":0,"d":"$0.00"}},{"$f":"IFERROR('MMA Rev-Exp Region 1'!$M$70/'MMA Rev-Exp Region 1'!$M$9, 0)","v":{"v":0,"d":"$0.00"}},{"$f":"IFERROR('MMA Rev-Exp Region 1'!$N$70/'MMA Rev-Exp Region 1'!$N$9, 0)","v":{"v":0,"d":"$0.00"}}]
["MMA",null,null,{"$f":"Jurat!I$1","v":0},{"$f":"Jurat!D$33","v":"00:00:00"},"Q1","2017-03-31","Region 1","Operating Expense","Medical Benefits Expense","Expanded Benefits","10.1","Expanded Benefits FFS",{"$f":"IFERROR('MMA Rev-Exp Region 1'!$D$72/'MMA Rev-Exp Region 1'!$D$9, 0)","v":{"v":0,"d":"$0.00"}},{"$f":"IFERROR('MMA Rev-Exp Region 1'!$E$72/'MMA Rev-Exp Region 1'!$E$9, 0)","v":{"v":0,"d":"$0.00"}},{"$f":"IFERROR('MMA Rev-Exp Region 1'!$F$72/'MMA Rev-Exp Region 1'!$F$9, 0)","v":{"v":0,"d":"$0.00"}},{"$f":"IFERROR('MMA Rev-Exp Region 1'!$G$72/'MMA Rev-Exp Region 1'!$G$9, 0)","v":{"v":0,"d":"$0.00"}},{"$f":"IFERROR('MMA Rev-Exp Region 1'!$H$72/'MMA Rev-Exp Region 1'!$H$9, 0)","v":{"v":0,"d":"$0.00"}},{"$f":"IFERROR('MMA Rev-Exp Region 1'!$I$72/'MMA Rev-Exp Region 1'!$I$9, 0)","v":{"v":0,"d":"$0.00"}},{"$f":"IFERROR('MMA Rev-Exp Region 1'!$J$72/'MMA Rev-Exp Region 1'!$J$9, 0)","v":{"v":0,"d":"$0.00"}},{"$f":"IFERROR('MMA Rev-Exp Region 1'!$K$72/'MMA Rev-Exp Region 1'!$K$9, 0)","v":{"v":0,"d":"$0.00"}},{"$f":"IFERROR('MMA Rev-Exp Region 1'!$L$72/'MMA Rev-Exp Region 1'!$L$9, 0)","v":{"v":0,"d":"$0.00"}},{"$f":"IFERROR('MMA Rev-Exp Region 1'!$M$72/'MMA Rev-Exp Region 1'!$M$9, 0)","v":{"v":0,"d":"$0.00"}},{"$f":"IFERROR('MMA Rev-Exp Region 1'!$N$72/'MMA Rev-Exp Region 1'!$N$9, 0)","v":{"v":0,"d":"$0.00"}}]
["MMA",null,null,{"$f":"Jurat!I$1","v":0},{"$f":"Jurat!D$33","v":"00:00:00"},"Q1","2017-03-31","Region 1","Operating Expense","Medical Benefits Expense","Expanded Benefits","10.2","Expanded benefits Subcapitation",{"$f":"IFERROR('MMA Rev-Exp Region 1'!$D$73/'MMA Rev-Exp Region 1'!$D$9, 0)","v":{"v":0,"d":"$0.00"}},{"$f":"IFERROR('MMA Rev-Exp Region 1'!$E$73/'MMA Rev-Exp Region 1'!$E$9, 0)","v":{"v":0,"d":"$0.00"}},{"$f":"IFERROR('MMA Rev-Exp Region 1'!$F$73/'MMA Rev-Exp Region 1'!$F$9, 0)","v":{"v":0,"d":"$0.00"}},{"$f":"IFERROR('MMA Rev-Exp Region 1'!$G$73/'MMA Rev-Exp Region 1'!$G$9, 0)","v":{"v":0,"d":"$0.00"}},{"$f":"IFERROR('MMA Rev-Exp Region 1'!$H$73/'MMA Rev-Exp Region 1'!$H$9, 0)","v":{"v":0,"d":"$0.00"}},{"$f":"IFERROR('MMA Rev-Exp Region 1'!$I$73/'MMA Rev-Exp Region 1'!$I$9, 0)","v":{"v":0,"d":"$0.00"}},{"$f":"IFERROR('MMA Rev-Exp Region 1'!$J$73/'MMA Rev-Exp Region 1'!$J$9, 0)","v":{"v":0,"d":"$0.00"}},{"$f":"IFERROR('MMA Rev-Exp Region 1'!$K$73/'MMA Rev-Exp Region 1'!$K$9, 0)","v":{"v":0,"d":"$0.00"}},{"$f":"IFERROR('MMA Rev-Exp Region 1'!$L$73/'MMA Rev-Exp Region 1'!$L$9, 0)","v":{"v":0,"d":"$0.00"}},{"$f":"IFERROR('MMA Rev-Exp Region 1'!$M$73/'MMA Rev-Exp Region 1'!$M$9, 0)","v":{"v":0,"d":"$0.00"}},{"$f":"IFERROR('MMA Rev-Exp Region 1'!$N$73/'MMA Rev-Exp Region 1'!$N$9, 0)","v":{"v":0,"d":"$0.00"}}]
["MMA",null,null,{"$f":"Jurat!I$1","v":0},{"$f":"Jurat!D$33","v":"00:00:00"},"Q1","2017-03-31","Region 1","Operating Expense","Medical Benefits Expense","Expanded Benefits","10.3","Ending IBNP for Expanded Benefits",{"$f":"IFERROR('MMA Rev-Exp Region 1'!$D$74/'MMA Rev-Exp Region 1'!$D$9, 0)","v":{"v":0,"d":"$0.00"}},{"$f":"IFERROR('MMA Rev-Exp Region 1'!$E$74/'MMA Rev-Exp Region 1'!$E$9, 0)","v":{"v":0,"d":"$0.00"}},{"$f":"IFERROR('MMA Rev-Exp Region 1'!$F$74/'MMA Rev-Exp Region 1'!$F$9, 0)","v":{"v":0,"d":"$0.00"}},{"$f":"IFERROR('MMA Rev-Exp Region 1'!$G$74/'MMA Rev-Exp Region 1'!$G$9, 0)","v":{"v":0,"d":"$0.00"}},{"$f":"IFERROR('MMA Rev-Exp Region 1'!$H$74/'MMA Rev-Exp Region 1'!$H$9, 0)","v":{"v":0,"d":"$0.00"}},{"$f":"IFERROR('MMA Rev-Exp Region 1'!$I$74/'MMA Rev-Exp Region 1'!$I$9, 0)","v":{"v":0,"d":"$0.00"}},{"$f":"IFERROR('MMA Rev-Exp Region 1'!$J$74/'MMA Rev-Exp Region 1'!$J$9, 0)","v":{"v":0,"d":"$0.00"}},{"$f":"IFERROR('MMA Rev-Exp Region 1'!$K$74/'MMA Rev-Exp Region 1'!$K$9, 0)","v":{"v":0,"d":"$0.00"}},{"$f":"IFERROR('MMA Rev-Exp Region 1'!$L$74/'MMA Rev-Exp Region 1'!$L$9, 0)","v":{"v":0,"d":"$0.00"}},{"$f":"IFERROR('MMA Rev-Exp Region 1'!$M$74/'MMA Rev-Exp Region 1'!$M$9, 0)","v":{"v":0,"d":"$0.00"}},{"$f":"IFERROR('MMA Rev-Exp Region 1'!$N$74/'MMA Rev-Exp Region 1'!$N$9, 0)","v":{"v":0,"d":"$0.00"}}]
["MMA",null,null,{"$f":"Jurat!I$1","v":0},{"$f":"Jurat!D$33","v":"00:00:00"},"Q1","2017-03-31","Region 1","Operating Expense","Medical Benefits Expense","Expanded Benefits","10.4","Expanded Benefits Settlements",{"$f":"IFERROR('MMA Rev-Exp Region 1'!$D$75/'MMA Rev-Exp Region 1'!$D$9, 0)","v":{"v":0,"d":"$0.00"}},{"$f":"IFERROR('MMA Rev-Exp Region 1'!$E$75/'MMA Rev-Exp Region 1'!$E$9, 0)","v":{"v":0,"d":"$0.00"}},{"$f":"IFERROR('MMA Rev-Exp Region 1'!$F$75/'MMA Rev-Exp Region 1'!$F$9, 0)","v":{"v":0,"d":"$0.00"}},{"$f":"IFERROR('MMA Rev-Exp Region 1'!$G$75/'MMA Rev-Exp Region 1'!$G$9, 0)","v":{"v":0,"d":"$0.00"}},{"$f":"IFERROR('MMA Rev-Exp Region 1'!$H$75/'MMA Rev-Exp Region 1'!$H$9, 0)","v":{"v":0,"d":"$0.00"}},{"$f":"IFERROR('MMA Rev-Exp Region 1'!$I$75/'MMA Rev-Exp Region 1'!$I$9, 0)","v":{"v":0,"d":"$0.00"}},{"$f":"IFERROR('MMA Rev-Exp Region 1'!$J$75/'MMA Rev-Exp Region 1'!$J$9, 0)","v":{"v":0,"d":"$0.00"}},{"$f":"IFERROR('MMA Rev-Exp Region 1'!$K$75/'MMA Rev-Exp Region 1'!$K$9, 0)","v":{"v":0,"d":"$0.00"}},{"$f":"IFERROR('MMA Rev-Exp Region 1'!$L$75/'MMA Rev-Exp Region 1'!$L$9, 0)","v":{"v":0,"d":"$0.00"}},{"$f":"IFERROR('MMA Rev-Exp Region 1'!$M$75/'MMA Rev-Exp Region 1'!$M$9, 0)","v":{"v":0,"d":"$0.00"}},{"$f":"IFERROR('MMA Rev-Exp Region 1'!$N$75/'MMA Rev-Exp Region 1'!$N$9, 0)","v":{"v":0,"d":"$0.00"}}]
["MMA",null,null,{"$f":"Jurat!I$1","v":0},{"$f":"Jurat!D$33","v":"00:00:00"},"Q1","2017-03-31","Region 1","Operating Expense","Medical Benefits Expense","Other Medical","11.5","TPL & Fraud/Abuse Recoveries",{"$f":"IFERROR('MMA Rev-Exp Region 1'!$D$81/'MMA Rev-Exp Region 1'!$D$9, 0)","v":{"v":0,"d":"$0.00"}},{"$f":"IFERROR('MMA Rev-Exp Region 1'!$E$81/'MMA Rev-Exp Region 1'!$E$9, 0)","v":{"v":0,"d":"$0.00"}},{"$f":"IFERROR('MMA Rev-Exp Region 1'!$F$81/'MMA Rev-Exp Region 1'!$F$9, 0)","v":{"v":0,"d":"$0.00"}},{"$f":"IFERROR('MMA Rev-Exp Region 1'!$G$81/'MMA Rev-Exp Region 1'!$G$9, 0)","v":{"v":0,"d":"$0.00"}},{"$f":"IFERROR('MMA Rev-Exp Region 1'!$H$81/'MMA Rev-Exp Region 1'!$H$9, 0)","v":{"v":0,"d":"$0.00"}},{"$f":"IFERROR('MMA Rev-Exp Region 1'!$I$81/'MMA Rev-Exp Region 1'!$I$9, 0)","v":{"v":0,"d":"$0.00"}},{"$f":"IFERROR('MMA Rev-Exp Region 1'!$J$81/'MMA Rev-Exp Region 1'!$J$9, 0)","v":{"v":0,"d":"$0.00"}},{"$f":"IFERROR('MMA Rev-Exp Region 1'!$K$81/'MMA Rev-Exp Region 1'!$K$9, 0)","v":{"v":0,"d":"$0.00"}},{"$f":"IFERROR('MMA Rev-Exp Region 1'!$L$81/'MMA Rev-Exp Region 1'!$L$9, 0)","v":{"v":0,"d":"$0.00"}},{"$f":"IFERROR('MMA Rev-Exp Region 1'!$M$81/'MMA Rev-Exp Region 1'!$M$9, 0)","v":{"v":0,"d":"$0.00"}},{"$f":"IFERROR('MMA Rev-Exp Region 1'!$N$81/'MMA Rev-Exp Region 1'!$N$9, 0)","v":{"v":0,"d":"$0.00"}}]
["MMA",null,null,{"$f":"Jurat!I$1","v":0},{"$f":"Jurat!D$33","v":"00:00:00"},"Q1","2017-03-31","Region 1","Operating Expense","Medical Benefits Expense","Other Medical","11.6.1","Premium Deficiency Reserve",{"$f":"IFERROR('MMA Rev-Exp Region 1'!$D$82/'MMA Rev-Exp Region 1'!$D$9, 0)","v":{"v":0,"d":"$0.00"}},{"$f":"IFERROR('MMA Rev-Exp Region 1'!$E$82/'MMA Rev-Exp Region 1'!$E$9, 0)","v":{"v":0,"d":"$0.00"}},{"$f":"IFERROR('MMA Rev-Exp Region 1'!$F$82/'MMA Rev-Exp Region 1'!$F$9, 0)","v":{"v":0,"d":"$0.00"}},{"$f":"IFERROR('MMA Rev-Exp Region 1'!$G$82/'MMA Rev-Exp Region 1'!$G$9, 0)","v":{"v":0,"d":"$0.00"}},{"$f":"IFERROR('MMA Rev-Exp Region 1'!$H$82/'MMA Rev-Exp Region 1'!$H$9, 0)","v":{"v":0,"d":"$0.00"}},{"$f":"IFERROR('MMA Rev-Exp Region 1'!$I$82/'MMA Rev-Exp Region 1'!$I$9, 0)","v":{"v":0,"d":"$0.00"}},{"$f":"IFERROR('MMA Rev-Exp Region 1'!$J$82/'MMA Rev-Exp Region 1'!$J$9, 0)","v":{"v":0,"d":"$0.00"}},{"$f":"IFERROR('MMA Rev-Exp Region 1'!$K$82/'MMA Rev-Exp Region 1'!$K$9, 0)","v":{"v":0,"d":"$0.00"}},{"$f":"IFERROR('MMA Rev-Exp Region 1'!$L$82/'MMA Rev-Exp Region 1'!$L$9, 0)","v":{"v":0,"d":"$0.00"}},{"$f":"IFERROR('MMA Rev-Exp Region 1'!$M$82/'MMA Rev-Exp Region 1'!$M$9, 0)","v":{"v":0,"d":"$0.00"}},{"$f":"IFERROR('MMA Rev-Exp Region 1'!$N$82/'MMA Rev-Exp Region 1'!$N$9, 0)","v":{"v":0,"d":"$0.00"}}]
["MMA",null,null,{"$f":"Jurat!I$1","v":0},{"$f":"Jurat!D$33","v":"00:00:00"},"Q1","2017-03-31","Region 1","Operating Expense","Medical Benefits Expense","Other Medical","11.8","Reinsurance Premiums",{"$f":"IFERROR('MMA Rev-Exp Region 1'!$D$84/'MMA Rev-Exp Region 1'!$D$9, 0)","v":{"v":0,"d":"$0.00"}},{"$f":"IFERROR('MMA Rev-Exp Region 1'!$E$84/'MMA Rev-Exp Region 1'!$E$9, 0)","v":{"v":0,"d":"$0.00"}},{"$f":"IFERROR('MMA Rev-Exp Region 1'!$F$84/'MMA Rev-Exp Region 1'!$F$9, 0)","v":{"v":0,"d":"$0.00"}},{"$f":"IFERROR('MMA Rev-Exp Region 1'!$G$84/'MMA Rev-Exp Region 1'!$G$9, 0)","v":{"v":0,"d":"$0.00"}},{"$f":"IFERROR('MMA Rev-Exp Region 1'!$H$84/'MMA Rev-Exp Region 1'!$H$9, 0)","v":{"v":0,"d":"$0.00"}},{"$f":"IFERROR('MMA Rev-Exp Region 1'!$I$84/'MMA Rev-Exp Region 1'!$I$9, 0)","v":{"v":0,"d":"$0.00"}},{"$f":"IFERROR('MMA Rev-Exp Region 1'!$J$84/'MMA Rev-Exp Region 1'!$J$9, 0)","v":{"v":0,"d":"$0.00"}},{"$f":"IFERROR('MMA Rev-Exp Region 1'!$K$84/'MMA Rev-Exp Region 1'!$K$9, 0)","v":{"v":0,"d":"$0.00"}},{"$f":"IFERROR('MMA Rev-Exp Region 1'!$L$84/'MMA Rev-Exp Region 1'!$L$9, 0)","v":{"v":0,"d":"$0.00"}},{"$f":"IFERROR('MMA Rev-Exp Region 1'!$M$84/'MMA Rev-Exp Region 1'!$M$9, 0)","v":{"v":0,"d":"$0.00"}},{"$f":"IFERROR('MMA Rev-Exp Region 1'!$N$84/'MMA Rev-Exp Region 1'!$N$9, 0)","v":{"v":0,"d":"$0.00"}}]
["MMA",null,null,{"$f":"Jurat!I$1","v":0},{"$f":"Jurat!D$33","v":"00:00:00"},"Q1","2017-03-31","Region 1","Operating Expense","Medical Benefits Expense","Other Medical","11.9","Reinsurance Recoveries",{"$f":"IFERROR('MMA Rev-Exp Region 1'!$D$85/'MMA Rev-Exp Region 1'!$D$9, 0)","v":{"v":0,"d":"$0.00"}},{"$f":"IFERROR('MMA Rev-Exp Region 1'!$E$85/'MMA Rev-Exp Region 1'!$E$9, 0)","v":{"v":0,"d":"$0.00"}},{"$f":"IFERROR('MMA Rev-Exp Region 1'!$F$85/'MMA Rev-Exp Region 1'!$F$9, 0)","v":{"v":0,"d":"$0.00"}},{"$f":"IFERROR('MMA Rev-Exp Region 1'!$G$85/'MMA Rev-Exp Region 1'!$G$9, 0)","v":{"v":0,"d":"$0.00"}},{"$f":"IFERROR('MMA Rev-Exp Region 1'!$H$85/'MMA Rev-Exp Region 1'!$H$9, 0)","v":{"v":0,"d":"$0.00"}},{"$f":"IFERROR('MMA Rev-Exp Region 1'!$I$85/'MMA Rev-Exp Region 1'!$I$9, 0)","v":{"v":0,"d":"$0.00"}},{"$f":"IFERROR('MMA Rev-Exp Region 1'!$J$85/'MMA Rev-Exp Region 1'!$J$9, 0)","v":{"v":0,"d":"$0.00"}},{"$f":"IFERROR('MMA Rev-Exp Region 1'!$K$85/'MMA Rev-Exp Region 1'!$K$9, 0)","v":{"v":0,"d":"$0.00"}},{"$f":"IFERROR('MMA Rev-Exp Region 1'!$L$85/'MMA Rev-Exp Region 1'!$L$9, 0)","v":{"v":0,"d":"$0.00"}},{"$f":"IFERROR('MMA Rev-Exp Region 1'!$M$85/'MMA Rev-Exp Region 1'!$M$9, 0)","v":{"v":0,"d":"$0.00"}},{"$f":"IFERROR('MMA Rev-Exp Region 1'!$N$85/'MMA Rev-Exp Region 1'!$N$9, 0)","v":{"v":0,"d":"$0.00"}}]
["MMA",null,null,{"$f":"Jurat!I$1","v":0},{"$f":"Jurat!D$33","v":"00:00:00"},"Q1","2017-03-31","Region 1","Operating Expense","Administrative Expense","Administrative","12.1","Salaries & Benefits",{"$f":"IFERROR('MMA Rev-Exp Region 1'!$D$90/'MMA Rev-Exp Region 1'!$D$9, 0)","v":{"v":0,"d":"$0.00"}},{"$f":"IFERROR('MMA Rev-Exp Region 1'!$E$90/'MMA Rev-Exp Region 1'!$D$9, 0)","v":{"v":0,"d":"$0.00"}},{"$f":"IFERROR('MMA Rev-Exp Region 1'!$F$90/'MMA Rev-Exp Region 1'!$D$9, 0)","v":{"v":0,"d":"$0.00"}},{"$f":"IFERROR('MMA Rev-Exp Region 1'!$G$90/'MMA Rev-Exp Region 1'!$G$9, 0)","v":{"v":0,"d":"$0.00"}},{"$f":"IFERROR('MMA Rev-Exp Region 1'!$H$90/'MMA Rev-Exp Region 1'!$H$9, 0)","v":{"v":0,"d":"$0.00"}},{"$f":"IFERROR('MMA Rev-Exp Region 1'!$I$90/'MMA Rev-Exp Region 1'!$I$9, 0)","v":{"v":0,"d":"$0.00"}},{"$f":"IFERROR('MMA Rev-Exp Region 1'!$J$90/'MMA Rev-Exp Region 1'!$J$9, 0)","v":{"v":0,"d":"$0.00"}},{"$f":"IFERROR('MMA Rev-Exp Region 1'!$K$90/'MMA Rev-Exp Region 1'!$K$9, 0)","v":{"v":0,"d":"$0.00"}},{"$f":"IFERROR('MMA Rev-Exp Region 1'!$L$90/'MMA Rev-Exp Region 1'!$L$9, 0)","v":{"v":0,"d":"$0.00"}},{"$f":"IFERROR('MMA Rev-Exp Region 1'!$M$90/'MMA Rev-Exp Region 1'!$M$9, 0)","v":{"v":0,"d":"$0.00"}},{"$f":"IFERROR('MMA Rev-Exp Region 1'!$N$90/'MMA Rev-Exp Region 1'!$N$9, 0)","v":{"v":0,"d":"$0.00"}}]
["MMA",null,null,{"$f":"Jurat!I$1","v":0},{"$f":"Jurat!D$33","v":"00:00:00"},"Q1","2017-03-31","Region 1","Operating Expense","Administrative Expense","Administrative","12.2","Administrative Services",{"$f":"IFERROR('MMA Rev-Exp Region 1'!$D$91/'MMA Rev-Exp Region 1'!$D$9, 0)","v":{"v":0,"d":"$0.00"}},{"$f":"IFERROR('MMA Rev-Exp Region 1'!$E$91/'MMA Rev-Exp Region 1'!$D$9, 0)","v":{"v":0,"d":"$0.00"}},{"$f":"IFERROR('MMA Rev-Exp Region 1'!$F$91/'MMA Rev-Exp Region 1'!$D$9, 0)","v":{"v":0,"d":"$0.00"}},{"$f":"IFERROR('MMA Rev-Exp Region 1'!$G$91/'MMA Rev-Exp Region 1'!$G$9, 0)","v":{"v":0,"d":"$0.00"}},{"$f":"IFERROR('MMA Rev-Exp Region 1'!$H$91/'MMA Rev-Exp Region 1'!$H$9, 0)","v":{"v":0,"d":"$0.00"}},{"$f":"IFERROR('MMA Rev-Exp Region 1'!$I$91/'MMA Rev-Exp Region 1'!$I$9, 0)","v":{"v":0,"d":"$0.00"}},{"$f":"IFERROR('MMA Rev-Exp Region 1'!$J$91/'MMA Rev-Exp Region 1'!$J$9, 0)","v":{"v":0,"d":"$0.00"}},{"$f":"IFERROR('MMA Rev-Exp Region 1'!$K$91/'MMA Rev-Exp Region 1'!$K$9, 0)","v":{"v":0,"d":"$0.00"}},{"$f":"IFERROR('MMA Rev-Exp Region 1'!$L$91/'MMA Rev-Exp Region 1'!$L$9, 0)","v":{"v":0,"d":"$0.00"}},{"$f":"IFERROR('MMA Rev-Exp Region 1'!$M$91/'MMA Rev-Exp Region 1'!$M$9, 0)","v":{"v":0,"d":"$0.00"}},{"$f":"IFERROR('MMA Rev-Exp Region 1'!$N$91/'MMA Rev-Exp Region 1'!$N$9, 0)","v":{"v":0,"d":"$0.00"}}]
["MMA",null,null,{"$f":"Jurat!I$1","v":0},{"$f":"Jurat!D$33","v":"00:00:00"},"Q1","2017-03-31","Region 1","Operating Expense","Administrative Expense","Administrative","12.3","Information Systems",{"$f":"IFERROR('MMA Rev-Exp Region 1'!$D$92/'MMA Rev-Exp Region 1'!$D$9, 0)","v":{"v":0,"d":"$0.00"}},{"$f":"IFERROR('MMA Rev-Exp Region 1'!$E$92/'MMA Rev-Exp Region 1'!$D$9, 0)","v":{"v":0,"d":"$0.00"}},{"$f":"IFERROR('MMA Rev-Exp Region 1'!$F$92/'MMA Rev-Exp Region 1'!$D$9, 0)","v":{"v":0,"d":"$0.00"}},{"$f":"IFERROR('MMA Rev-Exp Region 1'!$G$92/'MMA Rev-Exp Region 1'!$G$9, 0)","v":{"v":0,"d":"$0.00"}},{"$f":"IFERROR('MMA Rev-Exp Region 1'!$H$92/'MMA Rev-Exp Region 1'!$H$9, 0)","v":{"v":0,"d":"$0.00"}},{"$f":"IFERROR('MMA Rev-Exp Region 1'!$I$92/'MMA Rev-Exp Region 1'!$I$9, 0)","v":{"v":0,"d":"$0.00"}},{"$f":"IFERROR('MMA Rev-Exp Region 1'!$J$92/'MMA Rev-Exp Region 1'!$J$9, 0)","v":{"v":0,"d":"$0.00"}},{"$f":"IFERROR('MMA Rev-Exp Region 1'!$K$92/'MMA Rev-Exp Region 1'!$K$9, 0)","v":{"v":0,"d":"$0.00"}},{"$f":"IFERROR('MMA Rev-Exp Region 1'!$L$92/'MMA Rev-Exp Region 1'!$L$9, 0)","v":{"v":0,"d":"$0.00"}},{"$f":"IFERROR('MMA Rev-Exp Region 1'!$M$92/'MMA Rev-Exp Region 1'!$M$9, 0)","v":{"v":0,"d":"$0.00"}},{"$f":"IFERROR('MMA Rev-Exp Region 1'!$N$92/'MMA Rev-Exp Region 1'!$N$9, 0)","v":{"v":0,"d":"$0.00"}}]
["MMA",null,null,{"$f":"Jurat!I$1","v":0},{"$f":"Jurat!D$33","v":"00:00:00"},"Q1","2017-03-31","Region 1","Operating Expense","Administrative Expense","Administrative","12.4","Marketing Expenses",{"$f":"IFERROR('MMA Rev-Exp Region 1'!$D$93/'MMA Rev-Exp Region 1'!$D$9, 0)","v":{"v":0,"d":"$0.00"}},{"$f":"IFERROR('MMA Rev-Exp Region 1'!$E$93/'MMA Rev-Exp Region 1'!$D$9, 0)","v":{"v":0,"d":"$0.00"}},{"$f":"IFERROR('MMA Rev-Exp Region 1'!$F$93/'MMA Rev-Exp Region 1'!$D$9, 0)","v":{"v":0,"d":"$0.00"}},{"$f":"IFERROR('MMA Rev-Exp Region 1'!$G$93/'MMA Rev-Exp Region 1'!$G$9, 0)","v":{"v":0,"d":"$0.00"}},{"$f":"IFERROR('MMA Rev-Exp Region 1'!$H$93/'MMA Rev-Exp Region 1'!$H$9, 0)","v":{"v":0,"d":"$0.00"}},{"$f":"IFERROR('MMA Rev-Exp Region 1'!$I$93/'MMA Rev-Exp Region 1'!$I$9, 0)","v":{"v":0,"d":"$0.00"}},{"$f":"IFERROR('MMA Rev-Exp Region 1'!$J$93/'MMA Rev-Exp Region 1'!$J$9, 0)","v":{"v":0,"d":"$0.00"}},{"$f":"IFERROR('MMA Rev-Exp Region 1'!$K$93/'MMA Rev-Exp Region 1'!$K$9, 0)","v":{"v":0,"d":"$0.00"}},{"$f":"IFERROR('MMA Rev-Exp Region 1'!$L$93/'MMA Rev-Exp Region 1'!$L$9, 0)","v":{"v":0,"d":"$0.00"}},{"$f":"IFERROR('MMA Rev-Exp Region 1'!$M$93/'MMA Rev-Exp Region 1'!$M$9, 0)","v":{"v":0,"d":"$0.00"}},{"$f":"IFERROR('MMA Rev-Exp Region 1'!$N$93/'MMA Rev-Exp Region 1'!$N$9, 0)","v":{"v":0,"d":"$0.00"}}]
["MMA",null,null,{"$f":"Jurat!I$1","v":0},{"$f":"Jurat!D$33","v":"00:00:00"},"Q1","2017-03-31","Region 1","Operating Expense","Administrative Expense","Administrative","12.5","General  Administration",{"$f":"IFERROR('MMA Rev-Exp Region 1'!$D$94/'MMA Rev-Exp Region 1'!$D$9, 0)","v":{"v":0,"d":"$0.00"}},{"$f":"IFERROR('MMA Rev-Exp Region 1'!$E$94/'MMA Rev-Exp Region 1'!$D$9, 0)","v":{"v":0,"d":"$0.00"}},{"$f":"IFERROR('MMA Rev-Exp Region 1'!$F$94/'MMA Rev-Exp Region 1'!$D$9, 0)","v":{"v":0,"d":"$0.00"}},{"$f":"IFERROR('MMA Rev-Exp Region 1'!$G$94/'MMA Rev-Exp Region 1'!$G$9, 0)","v":{"v":0,"d":"$0.00"}},{"$f":"IFERROR('MMA Rev-Exp Region 1'!$H$94/'MMA Rev-Exp Region 1'!$H$9, 0)","v":{"v":0,"d":"$0.00"}},{"$f":"IFERROR('MMA Rev-Exp Region 1'!$I$94/'MMA Rev-Exp Region 1'!$I$9, 0)","v":{"v":0,"d":"$0.00"}},{"$f":"IFERROR('MMA Rev-Exp Region 1'!$J$94/'MMA Rev-Exp Region 1'!$J$9, 0)","v":{"v":0,"d":"$0.00"}},{"$f":"IFERROR('MMA Rev-Exp Region 1'!$K$94/'MMA Rev-Exp Region 1'!$K$9, 0)","v":{"v":0,"d":"$0.00"}},{"$f":"IFERROR('MMA Rev-Exp Region 1'!$L$94/'MMA Rev-Exp Region 1'!$L$9, 0)","v":{"v":0,"d":"$0.00"}},{"$f":"IFERROR('MMA Rev-Exp Region 1'!$M$94/'MMA Rev-Exp Region 1'!$M$9, 0)","v":{"v":0,"d":"$0.00"}},{"$f":"IFERROR('MMA Rev-Exp Region 1'!$N$94/'MMA Rev-Exp Region 1'!$N$9, 0)","v":{"v":0,"d":"$0.00"}}]
["MMA",null,null,{"$f":"Jurat!I$1","v":0},{"$f":"Jurat!D$33","v":"00:00:00"},"Q1","2017-03-31","Region 1","Operating Expense","Administrative Expense","Administrative","12.6","Compliance/Regulatory",{"$f":"IFERROR('MMA Rev-Exp Region 1'!$D$95/'MMA Rev-Exp Region 1'!$D$9, 0)","v":{"v":0,"d":"$0.00"}},{"$f":"IFERROR('MMA Rev-Exp Region 1'!$E$95/'MMA Rev-Exp Region 1'!$D$9, 0)","v":{"v":0,"d":"$0.00"}},{"$f":"IFERROR('MMA Rev-Exp Region 1'!$F$95/'MMA Rev-Exp Region 1'!$D$9, 0)","v":{"v":0,"d":"$0.00"}},{"$f":"IFERROR('MMA Rev-Exp Region 1'!$G$95/'MMA Rev-Exp Region 1'!$G$9, 0)","v":{"v":0,"d":"$0.00"}},{"$f":"IFERROR('MMA Rev-Exp Region 1'!$H$95/'MMA Rev-Exp Region 1'!$H$9, 0)","v":{"v":0,"d":"$0.00"}},{"$f":"IFERROR('MMA Rev-Exp Region 1'!$I$95/'MMA Rev-Exp Region 1'!$I$9, 0)","v":{"v":0,"d":"$0.00"}},{"$f":"IFERROR('MMA Rev-Exp Region 1'!$J$95/'MMA Rev-Exp Region 1'!$J$9, 0)","v":{"v":0,"d":"$0.00"}},{"$f":"IFERROR('MMA Rev-Exp Region 1'!$K$95/'MMA Rev-Exp Region 1'!$K$9, 0)","v":{"v":0,"d":"$0.00"}},{"$f":"IFERROR('MMA Rev-Exp Region 1'!$L$95/'MMA Rev-Exp Region 1'!$L$9, 0)","v":{"v":0,"d":"$0.00"}},{"$f":"IFERROR('MMA Rev-Exp Region 1'!$M$95/'MMA Rev-Exp Region 1'!$M$9, 0)","v":{"v":0,"d":"$0.00"}},{"$f":"IFERROR('MMA Rev-Exp Region 1'!$N$95/'MMA Rev-Exp Region 1'!$N$9, 0)","v":{"v":0,"d":"$0.00"}}]
["MMA",null,null,{"$f":"Jurat!I$1","v":0},{"$f":"Jurat!D$33","v":"00:00:00"},"Q1","2017-03-31","Region 1","Operating Expense","Taxes & Fees","Taxes & Fees","13.1","State Premium tax",{"$f":"IFERROR('MMA Rev-Exp Region 1'!$D$97/'MMA Rev-Exp Region 1'!$D$9, 0)","v":{"v":0,"d":"$0.00"}}]
["MMA",null,null,{"$f":"Jurat!I$1","v":0},{"$f":"Jurat!D$33","v":"00:00:00"},"Q1","2017-03-31","Region 1","Operating Expense","Taxes & Fees","Taxes & Fees","13.2","Department of Insurance Assessments",{"$f":"IFERROR('MMA Rev-Exp Region 1'!$D$98/'MMA Rev-Exp Region 1'!$D$9, 0)","v":{"v":0,"d":"$0.00"}}]
["MMA",null,null,{"$f":"Jurat!I$1","v":0},{"$f":"Jurat!D$33","v":"00:00:00"},"Q1","2017-03-31","Region 1","Operating Expense","Taxes & Fees","Taxes & Fees","13.3","Section 9010 Health Insurance Providers Fee",{"$f":"IFERROR('MMA Rev-Exp Region 1'!$D$99/'MMA Rev-Exp Region 1'!$D$9, 0)","v":{"v":0,"d":"$0.00"}}]
["MMA",null,null,{"$f":"Jurat!I$1","v":0},{"$f":"Jurat!D$33","v":"00:00:00"},"Q1","2017-03-31","Region 1","Non-Operating Expense","Income Tax Expense","Income Tax Expense","16.0","Income Tax Expense",{"$f":"IFERROR('MMA Rev-Exp Region 1'!$D$106/'MMA Rev-Exp Region 1'!$D$9, 0)","v":{"v":0,"d":"$0.00"}}]
["MMA",null,null,{"$f":"Jurat!I$1","v":0},{"$f":"Jurat!D$33","v":"00:00:00"},"Q2","2017-06-30","Region 1","Operating Revenue","Capitation","Capitation",1.1,"Capitation",{"$f":"IFERROR('MMA Rev-Exp Region 1'!$O$11/'MMA Rev-Exp Region 1'!$O$9, 0)","v":{"v":0,"d":"$0.00"}},{"$f":"IFERROR('MMA Rev-Exp Region 1'!$P$11/'MMA Rev-Exp Region 1'!$P$9, 0)","v":{"v":0,"d":"$0.00"}},{"$f":"IFERROR('MMA Rev-Exp Region 1'!$Q$11/'MMA Rev-Exp Region 1'!$Q$9, 0)","v":{"v":0,"d":"$0.00"}},{"$f":"IFERROR('MMA Rev-Exp Region 1'!$R$11/'MMA Rev-Exp Region 1'!$R$9, 0)","v":{"v":0,"d":"$0.00"}},{"$f":"IFERROR('MMA Rev-Exp Region 1'!$S$11/'MMA Rev-Exp Region 1'!$S$9, 0)","v":{"v":0,"d":"$0.00"}},{"$f":"IFERROR('MMA Rev-Exp Region 1'!$T$11/'MMA Rev-Exp Region 1'!$T$9, 0)","v":{"v":0,"d":"$0.00"}},{"$f":"IFERROR('MMA Rev-Exp Region 1'!$U$11/'MMA Rev-Exp Region 1'!$U$9, 0)","v":{"v":0,"d":"$0.00"}},{"$f":"IFERROR('MMA Rev-Exp Region 1'!$V$11/'MMA Rev-Exp Region 1'!$V$9, 0)","v":{"v":0,"d":"$0.00"}},{"$f":"IFERROR('MMA Rev-Exp Region 1'!$W$11/'MMA Rev-Exp Region 1'!$W$9, 0)","v":{"v":0,"d":"$0.00"}},{"$f":"IFERROR('MMA Rev-Exp Region 1'!$X$11/'MMA Rev-Exp Region 1'!$X$9, 0)","v":{"v":0,"d":"$0.00"}},{"$f":"IFERROR('MMA Rev-Exp Region 1'!$Y$11/'MMA Rev-Exp Region 1'!$Y$9, 0)","v":{"v":0,"d":"$0.00"}}]
["MMA",null,null,{"$f":"Jurat!I$1","v":0},{"$f":"Jurat!D$33","v":"00:00:00"},"Q2","2017-06-30","Region 1","Operating Revenue","Kick Payments","Kick Payments - Transplant",1.2,"Transplant Kick Payments",{"$f":"IFERROR('MMA Rev-Exp Region 1'!$O$12/'MMA Rev-Exp Region 1'!$O$9, 0)","v":{"v":0,"d":"$0.00"}},{"$f":"IFERROR('MMA Rev-Exp Region 1'!$P$12/'MMA Rev-Exp Region 1'!$P$9, 0)","v":{"v":0,"d":"$0.00"}},{"$f":"IFERROR('MMA Rev-Exp Region 1'!$Q$12/'MMA Rev-Exp Region 1'!$Q$9, 0)","v":{"v":0,"d":"$0.00"}},{"$f":"IFERROR('MMA Rev-Exp Region 1'!$R$12/'MMA Rev-Exp Region 1'!$R$9, 0)","v":{"v":0,"d":"$0.00"}},{"$f":"IFERROR('MMA Rev-Exp Region 1'!$S$12/'MMA Rev-Exp Region 1'!$S$9, 0)","v":{"v":0,"d":"$0.00"}},{"$f":"IFERROR('MMA Rev-Exp Region 1'!$T$12/'MMA Rev-Exp Region 1'!$T$9, 0)","v":{"v":0,"d":"$0.00"}},{"$f":"IFERROR('MMA Rev-Exp Region 1'!$U$12/'MMA Rev-Exp Region 1'!$U$9, 0)","v":{"v":0,"d":"$0.00"}},{"$f":"IFERROR('MMA Rev-Exp Region 1'!$V$12/'MMA Rev-Exp Region 1'!$V$9, 0)","v":{"v":0,"d":"$0.00"}},{"$f":"IFERROR('MMA Rev-Exp Region 1'!$W$12/'MMA Rev-Exp Region 1'!$W$9, 0)","v":{"v":0,"d":"$0.00"}},{"$f":"IFERROR('MMA Rev-Exp Region 1'!$X$12/'MMA Rev-Exp Region 1'!$X$9, 0)","v":{"v":0,"d":"$0.00"}},{"$f":"IFERROR('MMA Rev-Exp Region 1'!$Y$12/'MMA Rev-Exp Region 1'!$Y$9, 0)","v":{"v":0,"d":"$0.00"}}]
["MMA",null,null,{"$f":"Jurat!I$1","v":0},{"$f":"Jurat!D$33","v":"00:00:00"},"Q2","2017-06-30","Region 1","Operating Revenue","Kick Payments","Kick Payments - Hep C","1.3","Hepatitis C Kick Payments",{"$f":"IFERROR('MMA Rev-Exp Region 1'!$O$13/'MMA Rev-Exp Region 1'!$O$9, 0)","v":{"v":0,"d":"$0.00"}},{"$f":"IFERROR('MMA Rev-Exp Region 1'!$P$13/'MMA Rev-Exp Region 1'!$P$9, 0)","v":{"v":0,"d":"$0.00"}},{"$f":"IFERROR('MMA Rev-Exp Region 1'!$Q$13/'MMA Rev-Exp Region 1'!$Q$9, 0)","v":{"v":0,"d":"$0.00"}},{"$f":"IFERROR('MMA Rev-Exp Region 1'!$R$13/'MMA Rev-Exp Region 1'!$R$9, 0)","v":{"v":0,"d":"$0.00"}},{"$f":"IFERROR('MMA Rev-Exp Region 1'!$S$13/'MMA Rev-Exp Region 1'!$S$9, 0)","v":{"v":0,"d":"$0.00"}},{"$f":"IFERROR('MMA Rev-Exp Region 1'!$T$13/'MMA Rev-Exp Region 1'!$T$9, 0)","v":{"v":0,"d":"$0.00"}},{"$f":"IFERROR('MMA Rev-Exp Region 1'!$U$13/'MMA Rev-Exp Region 1'!$U$9, 0)","v":{"v":0,"d":"$0.00"}},{"$f":"IFERROR('MMA Rev-Exp Region 1'!$V$13/'MMA Rev-Exp Region 1'!$V$9, 0)","v":{"v":0,"d":"$0.00"}},{"$f":"IFERROR('MMA Rev-Exp Region 1'!$W$13/'MMA Rev-Exp Region 1'!$W$9, 0)","v":{"v":0,"d":"$0.00"}},{"$f":"IFERROR('MMA Rev-Exp Region 1'!$X$13/'MMA Rev-Exp Region 1'!$X$9, 0)","v":{"v":0,"d":"$0.00"}},{"$f":"IFERROR('MMA Rev-Exp Region 1'!$Y$13/'MMA Rev-Exp Region 1'!$Y$9, 0)","v":{"v":0,"d":"$0.00"}}]
["MMA",null,null,{"$f":"Jurat!I$1","v":0},{"$f":"Jurat!D$33","v":"00:00:00"},"Q2","2017-06-30","Region 1","Operating Revenue","Kick Payments","Kick Payments - Maternity","1.4.1","Maternity Kick Payments",{"$f":"IFERROR('MMA Rev-Exp Region 1'!$O$14/'MMA Rev-Exp Region 1'!$O$9, 0)","v":{"v":0,"d":"$0.00"}},{"$f":"IFERROR('MMA Rev-Exp Region 1'!$P$14/'MMA Rev-Exp Region 1'!$P$9, 0)","v":{"v":0,"d":"$0.00"}},{"$f":"IFERROR('MMA Rev-Exp Region 1'!$Q$14/'MMA Rev-Exp Region 1'!$Q$9, 0)","v":{"v":0,"d":"$0.00"}},{"$f":"IFERROR('MMA Rev-Exp Region 1'!$R$14/'MMA Rev-Exp Region 1'!$R$9, 0)","v":{"v":0,"d":"$0.00"}},{"$f":"IFERROR('MMA Rev-Exp Region 1'!$S$14/'MMA Rev-Exp Region 1'!$S$9, 0)","v":{"v":0,"d":"$0.00"}},{"$f":"IFERROR('MMA Rev-Exp Region 1'!$T$14/'MMA Rev-Exp Region 1'!$T$9, 0)","v":{"v":0,"d":"$0.00"}},{"$f":"IFERROR('MMA Rev-Exp Region 1'!$U$14/'MMA Rev-Exp Region 1'!$U$9, 0)","v":{"v":0,"d":"$0.00"}},{"$f":"IFERROR('MMA Rev-Exp Region 1'!$V$14/'MMA Rev-Exp Region 1'!$V$9, 0)","v":{"v":0,"d":"$0.00"}},{"$f":"IFERROR('MMA Rev-Exp Region 1'!$W$14/'MMA Rev-Exp Region 1'!$W$9, 0)","v":{"v":0,"d":"$0.00"}},{"$f":"IFERROR('MMA Rev-Exp Region 1'!$X$14/'MMA Rev-Exp Region 1'!$X$9, 0)","v":{"v":0,"d":"$0.00"}},{"$f":"IFERROR('MMA Rev-Exp Region 1'!$Y$14/'MMA Rev-Exp Region 1'!$Y$9, 0)","v":{"v":0,"d":"$0.00"}}]
["MMA",null,null,{"$f":"Jurat!I$1","v":0},{"$f":"Jurat!D$33","v":"00:00:00"},"Q2","2017-06-30","Region 1","Operating Revenue","Other Revenue","Other Revenue - 9010","1.5","ACA § 9010 related payments",{"$f":"IFERROR('MMA Rev-Exp Region 1'!$O$15/'MMA Rev-Exp Region 1'!$O$9, 0)","v":{"v":0,"d":"$0.00"}},{"$f":"IFERROR('MMA Rev-Exp Region 1'!$P$15/'MMA Rev-Exp Region 1'!$P$9, 0)","v":{"v":0,"d":"$0.00"}},{"$f":"IFERROR('MMA Rev-Exp Region 1'!$Q$15/'MMA Rev-Exp Region 1'!$Q$9, 0)","v":{"v":0,"d":"$0.00"}},{"$f":"IFERROR('MMA Rev-Exp Region 1'!$R$15/'MMA Rev-Exp Region 1'!$R$9, 0)","v":{"v":0,"d":"$0.00"}},{"$f":"IFERROR('MMA Rev-Exp Region 1'!$S$15/'MMA Rev-Exp Region 1'!$S$9, 0)","v":{"v":0,"d":"$0.00"}},{"$f":"IFERROR('MMA Rev-Exp Region 1'!$T$15/'MMA Rev-Exp Region 1'!$T$9, 0)","v":{"v":0,"d":"$0.00"}},{"$f":"IFERROR('MMA Rev-Exp Region 1'!$U$15/'MMA Rev-Exp Region 1'!$U$9, 0)","v":{"v":0,"d":"$0.00"}},{"$f":"IFERROR('MMA Rev-Exp Region 1'!$V$15/'MMA Rev-Exp Region 1'!$V$9, 0)","v":{"v":0,"d":"$0.00"}},{"$f":"IFERROR('MMA Rev-Exp Region 1'!$W$15/'MMA Rev-Exp Region 1'!$W$9, 0)","v":{"v":0,"d":"$0.00"}},{"$f":"IFERROR('MMA Rev-Exp Region 1'!$X$15/'MMA Rev-Exp Region 1'!$X$9, 0)","v":{"v":0,"d":"$0.00"}},{"$f":"IFERROR('MMA Rev-Exp Region 1'!$Y$15/'MMA Rev-Exp Region 1'!$Y$9, 0)","v":{"v":0,"d":"$0.00"}}]
["MMA",null,null,{"$f":"Jurat!I$1","v":0},{"$f":"Jurat!D$33","v":"00:00:00"},"Q2","2017-06-30","Region 1","Operating Revenue","Other Revenue","Other Revenue","1.6","Other Revenue",{"$f":"IFERROR('MMA Rev-Exp Region 1'!$O$16/'MMA Rev-Exp Region 1'!$O$9, 0)","v":{"v":0,"d":"$0.00"}},{"$f":"IFERROR('MMA Rev-Exp Region 1'!$P$16/'MMA Rev-Exp Region 1'!$P$9, 0)","v":{"v":0,"d":"$0.00"}},{"$f":"IFERROR('MMA Rev-Exp Region 1'!$Q$16/'MMA Rev-Exp Region 1'!$Q$9, 0)","v":{"v":0,"d":"$0.00"}},{"$f":"IFERROR('MMA Rev-Exp Region 1'!$R$16/'MMA Rev-Exp Region 1'!$R$9, 0)","v":{"v":0,"d":"$0.00"}},{"$f":"IFERROR('MMA Rev-Exp Region 1'!$S$16/'MMA Rev-Exp Region 1'!$S$9, 0)","v":{"v":0,"d":"$0.00"}},{"$f":"IFERROR('MMA Rev-Exp Region 1'!$T$16/'MMA Rev-Exp Region 1'!$T$9, 0)","v":{"v":0,"d":"$0.00"}},{"$f":"IFERROR('MMA Rev-Exp Region 1'!$U$16/'MMA Rev-Exp Region 1'!$U$9, 0)","v":{"v":0,"d":"$0.00"}},{"$f":"IFERROR('MMA Rev-Exp Region 1'!$V$16/'MMA Rev-Exp Region 1'!$V$9, 0)","v":{"v":0,"d":"$0.00"}},{"$f":"IFERROR('MMA Rev-Exp Region 1'!$W$16/'MMA Rev-Exp Region 1'!$W$9, 0)","v":{"v":0,"d":"$0.00"}},{"$f":"IFERROR('MMA Rev-Exp Region 1'!$X$16/'MMA Rev-Exp Region 1'!$X$9, 0)","v":{"v":0,"d":"$0.00"}},{"$f":"IFERROR('MMA Rev-Exp Region 1'!$Y$16/'MMA Rev-Exp Region 1'!$Y$9, 0)","v":{"v":0,"d":"$0.00"}}]
["MMA",null,null,{"$f":"Jurat!I$1","v":0},{"$f":"Jurat!D$33","v":"00:00:00"},"Q2","2017-06-30","Region 1","Operating Expense","Medical Benefits Expense","Hospital Services",2.1,"Inpatient FFS",{"$f":"IFERROR('MMA Rev-Exp Region 1'!$O$20/'MMA Rev-Exp Region 1'!$O$9, 0)","v":{"v":0,"d":"$0.00"}},{"$f":"IFERROR('MMA Rev-Exp Region 1'!$P$20/'MMA Rev-Exp Region 1'!$P$9, 0)","v":{"v":0,"d":"$0.00"}},{"$f":"IFERROR('MMA Rev-Exp Region 1'!$Q$20/'MMA Rev-Exp Region 1'!$Q$9, 0)","v":{"v":0,"d":"$0.00"}},{"$f":"IFERROR('MMA Rev-Exp Region 1'!$R$20/'MMA Rev-Exp Region 1'!$R$9, 0)","v":{"v":0,"d":"$0.00"}},{"$f":"IFERROR('MMA Rev-Exp Region 1'!$S$20/'MMA Rev-Exp Region 1'!$S$9, 0)","v":{"v":0,"d":"$0.00"}},{"$f":"IFERROR('MMA Rev-Exp Region 1'!$T$20/'MMA Rev-Exp Region 1'!$T$9, 0)","v":{"v":0,"d":"$0.00"}},{"$f":"IFERROR('MMA Rev-Exp Region 1'!$U$20/'MMA Rev-Exp Region 1'!$U$9, 0)","v":{"v":0,"d":"$0.00"}},{"$f":"IFERROR('MMA Rev-Exp Region 1'!$V$20/'MMA Rev-Exp Region 1'!$V$9, 0)","v":{"v":0,"d":"$0.00"}},{"$f":"IFERROR('MMA Rev-Exp Region 1'!$W$20/'MMA Rev-Exp Region 1'!$W$9, 0)","v":{"v":0,"d":"$0.00"}},{"$f":"IFERROR('MMA Rev-Exp Region 1'!$X$20/'MMA Rev-Exp Region 1'!$X$9, 0)","v":{"v":0,"d":"$0.00"}},{"$f":"IFERROR('MMA Rev-Exp Region 1'!$Y$20/'MMA Rev-Exp Region 1'!$Y$9, 0)","v":{"v":0,"d":"$0.00"}}]
["MMA",null,null,{"$f":"Jurat!I$1","v":0},{"$f":"Jurat!D$33","v":"00:00:00"},"Q2","2017-06-30","Region 1","Operating Expense","Medical Benefits Expense","Hospital Services",2.2,"Ending IBNP for Inpatient Hospital Services",{"$f":"IFERROR('MMA Rev-Exp Region 1'!$O$21/'MMA Rev-Exp Region 1'!$O$9, 0)","v":{"v":0,"d":"$0.00"}},{"$f":"IFERROR('MMA Rev-Exp Region 1'!$P$21/'MMA Rev-Exp Region 1'!$P$9, 0)","v":{"v":0,"d":"$0.00"}},{"$f":"IFERROR('MMA Rev-Exp Region 1'!$Q$21/'MMA Rev-Exp Region 1'!$Q$9, 0)","v":{"v":0,"d":"$0.00"}},{"$f":"IFERROR('MMA Rev-Exp Region 1'!$R$21/'MMA Rev-Exp Region 1'!$R$9, 0)","v":{"v":0,"d":"$0.00"}},{"$f":"IFERROR('MMA Rev-Exp Region 1'!$S$21/'MMA Rev-Exp Region 1'!$S$9, 0)","v":{"v":0,"d":"$0.00"}},{"$f":"IFERROR('MMA Rev-Exp Region 1'!$T$21/'MMA Rev-Exp Region 1'!$T$9, 0)","v":{"v":0,"d":"$0.00"}},{"$f":"IFERROR('MMA Rev-Exp Region 1'!$U$21/'MMA Rev-Exp Region 1'!$U$9, 0)","v":{"v":0,"d":"$0.00"}},{"$f":"IFERROR('MMA Rev-Exp Region 1'!$V$21/'MMA Rev-Exp Region 1'!$V$9, 0)","v":{"v":0,"d":"$0.00"}},{"$f":"IFERROR('MMA Rev-Exp Region 1'!$W$21/'MMA Rev-Exp Region 1'!$W$9, 0)","v":{"v":0,"d":"$0.00"}},{"$f":"IFERROR('MMA Rev-Exp Region 1'!$X$21/'MMA Rev-Exp Region 1'!$X$9, 0)","v":{"v":0,"d":"$0.00"}},{"$f":"IFERROR('MMA Rev-Exp Region 1'!$Y$21/'MMA Rev-Exp Region 1'!$Y$9, 0)","v":{"v":0,"d":"$0.00"}}]
["MMA",null,null,{"$f":"Jurat!I$1","v":0},{"$f":"Jurat!D$33","v":"00:00:00"},"Q2","2017-06-30","Region 1","Operating Expense","Medical Benefits Expense","Hospital Services",2.3,"Outpatient FFS: ER",{"$f":"IFERROR('MMA Rev-Exp Region 1'!$O$22/'MMA Rev-Exp Region 1'!$O$9, 0)","v":{"v":0,"d":"$0.00"}},{"$f":"IFERROR('MMA Rev-Exp Region 1'!$P$22/'MMA Rev-Exp Region 1'!$P$9, 0)","v":{"v":0,"d":"$0.00"}},{"$f":"IFERROR('MMA Rev-Exp Region 1'!$Q$22/'MMA Rev-Exp Region 1'!$Q$9, 0)","v":{"v":0,"d":"$0.00"}},{"$f":"IFERROR('MMA Rev-Exp Region 1'!$R$22/'MMA Rev-Exp Region 1'!$R$9, 0)","v":{"v":0,"d":"$0.00"}},{"$f":"IFERROR('MMA Rev-Exp Region 1'!$S$22/'MMA Rev-Exp Region 1'!$S$9, 0)","v":{"v":0,"d":"$0.00"}},{"$f":"IFERROR('MMA Rev-Exp Region 1'!$T$22/'MMA Rev-Exp Region 1'!$T$9, 0)","v":{"v":0,"d":"$0.00"}},{"$f":"IFERROR('MMA Rev-Exp Region 1'!$U$22/'MMA Rev-Exp Region 1'!$U$9, 0)","v":{"v":0,"d":"$0.00"}},{"$f":"IFERROR('MMA Rev-Exp Region 1'!$V$22/'MMA Rev-Exp Region 1'!$V$9, 0)","v":{"v":0,"d":"$0.00"}},{"$f":"IFERROR('MMA Rev-Exp Region 1'!$W$22/'MMA Rev-Exp Region 1'!$W$9, 0)","v":{"v":0,"d":"$0.00"}},{"$f":"IFERROR('MMA Rev-Exp Region 1'!$X$22/'MMA Rev-Exp Region 1'!$X$9, 0)","v":{"v":0,"d":"$0.00"}},{"$f":"IFERROR('MMA Rev-Exp Region 1'!$Y$22/'MMA Rev-Exp Region 1'!$Y$9, 0)","v":{"v":0,"d":"$0.00"}}]
["MMA",null,null,{"$f":"Jurat!I$1","v":0},{"$f":"Jurat!D$33","v":"00:00:00"},"Q2","2017-06-30","Region 1","Operating Expense","Medical Benefits Expense","Hospital Services",2.4,"Outpatient FFS: Other than ER ",{"$f":"IFERROR('MMA Rev-Exp Region 1'!$O$23/'MMA Rev-Exp Region 1'!$O$9, 0)","v":{"v":0,"d":"$0.00"}},{"$f":"IFERROR('MMA Rev-Exp Region 1'!$P$23/'MMA Rev-Exp Region 1'!$P$9, 0)","v":{"v":0,"d":"$0.00"}},{"$f":"IFERROR('MMA Rev-Exp Region 1'!$Q$23/'MMA Rev-Exp Region 1'!$Q$9, 0)","v":{"v":0,"d":"$0.00"}},{"$f":"IFERROR('MMA Rev-Exp Region 1'!$R$23/'MMA Rev-Exp Region 1'!$R$9, 0)","v":{"v":0,"d":"$0.00"}},{"$f":"IFERROR('MMA Rev-Exp Region 1'!$S$23/'MMA Rev-Exp Region 1'!$S$9, 0)","v":{"v":0,"d":"$0.00"}},{"$f":"IFERROR('MMA Rev-Exp Region 1'!$T$23/'MMA Rev-Exp Region 1'!$T$9, 0)","v":{"v":0,"d":"$0.00"}},{"$f":"IFERROR('MMA Rev-Exp Region 1'!$U$23/'MMA Rev-Exp Region 1'!$U$9, 0)","v":{"v":0,"d":"$0.00"}},{"$f":"IFERROR('MMA Rev-Exp Region 1'!$V$23/'MMA Rev-Exp Region 1'!$V$9, 0)","v":{"v":0,"d":"$0.00"}},{"$f":"IFERROR('MMA Rev-Exp Region 1'!$W$23/'MMA Rev-Exp Region 1'!$W$9, 0)","v":{"v":0,"d":"$0.00"}},{"$f":"IFERROR('MMA Rev-Exp Region 1'!$X$23/'MMA Rev-Exp Region 1'!$X$9, 0)","v":{"v":0,"d":"$0.00"}},{"$f":"IFERROR('MMA Rev-Exp Region 1'!$Y$23/'MMA Rev-Exp Region 1'!$Y$9, 0)","v":{"v":0,"d":"$0.00"}}]
["MMA",null,null,{"$f":"Jurat!I$1","v":0},{"$f":"Jurat!D$33","v":"00:00:00"},"Q2","2017-06-30","Region 1","Operating Expense","Medical Benefits Expense","Hospital Services",2.5,"Ending IBNP for Outpatient Hospital Services",{"$f":"IFERROR('MMA Rev-Exp Region 1'!$O$24/'MMA Rev-Exp Region 1'!$O$9, 0)","v":{"v":0,"d":"$0.00"}},{"$f":"IFERROR('MMA Rev-Exp Region 1'!$P$24/'MMA Rev-Exp Region 1'!$P$9, 0)","v":{"v":0,"d":"$0.00"}},{"$f":"IFERROR('MMA Rev-Exp Region 1'!$Q$24/'MMA Rev-Exp Region 1'!$Q$9, 0)","v":{"v":0,"d":"$0.00"}},{"$f":"IFERROR('MMA Rev-Exp Region 1'!$R$24/'MMA Rev-Exp Region 1'!$R$9, 0)","v":{"v":0,"d":"$0.00"}},{"$f":"IFERROR('MMA Rev-Exp Region 1'!$S$24/'MMA Rev-Exp Region 1'!$S$9, 0)","v":{"v":0,"d":"$0.00"}},{"$f":"IFERROR('MMA Rev-Exp Region 1'!$T$24/'MMA Rev-Exp Region 1'!$T$9, 0)","v":{"v":0,"d":"$0.00"}},{"$f":"IFERROR('MMA Rev-Exp Region 1'!$U$24/'MMA Rev-Exp Region 1'!$U$9, 0)","v":{"v":0,"d":"$0.00"}},{"$f":"IFERROR('MMA Rev-Exp Region 1'!$V$24/'MMA Rev-Exp Region 1'!$V$9, 0)","v":{"v":0,"d":"$0.00"}},{"$f":"IFERROR('MMA Rev-Exp Region 1'!$W$24/'MMA Rev-Exp Region 1'!$W$9, 0)","v":{"v":0,"d":"$0.00"}},{"$f":"IFERROR('MMA Rev-Exp Region 1'!$X$24/'MMA Rev-Exp Region 1'!$X$9, 0)","v":{"v":0,"d":"$0.00"}},{"$f":"IFERROR('MMA Rev-Exp Region 1'!$Y$24/'MMA Rev-Exp Region 1'!$Y$9, 0)","v":{"v":0,"d":"$0.00"}}]
["MMA",null,null,{"$f":"Jurat!I$1","v":0},{"$f":"Jurat!D$33","v":"00:00:00"},"Q2","2017-06-30","Region 1","Operating Expense","Medical Benefits Expense","Hospital Services","2.6","Subcapitated Hospital Services",{"$f":"IFERROR('MMA Rev-Exp Region 1'!$O$25/'MMA Rev-Exp Region 1'!$O$9, 0)","v":{"v":0,"d":"$0.00"}},{"$f":"IFERROR('MMA Rev-Exp Region 1'!$P$25/'MMA Rev-Exp Region 1'!$P$9, 0)","v":{"v":0,"d":"$0.00"}},{"$f":"IFERROR('MMA Rev-Exp Region 1'!$Q$25/'MMA Rev-Exp Region 1'!$Q$9, 0)","v":{"v":0,"d":"$0.00"}},{"$f":"IFERROR('MMA Rev-Exp Region 1'!$R$25/'MMA Rev-Exp Region 1'!$R$9, 0)","v":{"v":0,"d":"$0.00"}},{"$f":"IFERROR('MMA Rev-Exp Region 1'!$S$25/'MMA Rev-Exp Region 1'!$S$9, 0)","v":{"v":0,"d":"$0.00"}},{"$f":"IFERROR('MMA Rev-Exp Region 1'!$T$25/'MMA Rev-Exp Region 1'!$T$9, 0)","v":{"v":0,"d":"$0.00"}},{"$f":"IFERROR('MMA Rev-Exp Region 1'!$U$25/'MMA Rev-Exp Region 1'!$U$9, 0)","v":{"v":0,"d":"$0.00"}},{"$f":"IFERROR('MMA Rev-Exp Region 1'!$V$25/'MMA Rev-Exp Region 1'!$V$9, 0)","v":{"v":0,"d":"$0.00"}},{"$f":"IFERROR('MMA Rev-Exp Region 1'!$W$25/'MMA Rev-Exp Region 1'!$W$9, 0)","v":{"v":0,"d":"$0.00"}},{"$f":"IFERROR('MMA Rev-Exp Region 1'!$X$25/'MMA Rev-Exp Region 1'!$X$9, 0)","v":{"v":0,"d":"$0.00"}},{"$f":"IFERROR('MMA Rev-Exp Region 1'!$Y$25/'MMA Rev-Exp Region 1'!$Y$9, 0)","v":{"v":0,"d":"$0.00"}}]
["MMA",null,null,{"$f":"Jurat!I$1","v":0},{"$f":"Jurat!D$33","v":"00:00:00"},"Q2","2017-06-30","Region 1","Operating Expense","Medical Benefits Expense","Hospital Services","2.7","Hospital Settlements",{"$f":"IFERROR('MMA Rev-Exp Region 1'!$O$26/'MMA Rev-Exp Region 1'!$O$9, 0)","v":{"v":0,"d":"$0.00"}},{"$f":"IFERROR('MMA Rev-Exp Region 1'!$P$26/'MMA Rev-Exp Region 1'!$P$9, 0)","v":{"v":0,"d":"$0.00"}},{"$f":"IFERROR('MMA Rev-Exp Region 1'!$Q$26/'MMA Rev-Exp Region 1'!$Q$9, 0)","v":{"v":0,"d":"$0.00"}},{"$f":"IFERROR('MMA Rev-Exp Region 1'!$R$26/'MMA Rev-Exp Region 1'!$R$9, 0)","v":{"v":0,"d":"$0.00"}},{"$f":"IFERROR('MMA Rev-Exp Region 1'!$S$26/'MMA Rev-Exp Region 1'!$S$9, 0)","v":{"v":0,"d":"$0.00"}},{"$f":"IFERROR('MMA Rev-Exp Region 1'!$T$26/'MMA Rev-Exp Region 1'!$T$9, 0)","v":{"v":0,"d":"$0.00"}},{"$f":"IFERROR('MMA Rev-Exp Region 1'!$U$26/'MMA Rev-Exp Region 1'!$U$9, 0)","v":{"v":0,"d":"$0.00"}},{"$f":"IFERROR('MMA Rev-Exp Region 1'!$V$26/'MMA Rev-Exp Region 1'!$V$9, 0)","v":{"v":0,"d":"$0.00"}},{"$f":"IFERROR('MMA Rev-Exp Region 1'!$W$26/'MMA Rev-Exp Region 1'!$W$9, 0)","v":{"v":0,"d":"$0.00"}},{"$f":"IFERROR('MMA Rev-Exp Region 1'!$X$26/'MMA Rev-Exp Region 1'!$X$9, 0)","v":{"v":0,"d":"$0.00"}},{"$f":"IFERROR('MMA Rev-Exp Region 1'!$Y$26/'MMA Rev-Exp Region 1'!$Y$9, 0)","v":{"v":0,"d":"$0.00"}}]
["MMA",null,null,{"$f":"Jurat!I$1","v":0},{"$f":"Jurat!D$33","v":"00:00:00"},"Q2","2017-06-30","Region 1","Operating Expense","Medical Benefits Expense","Hospital Services","2.7.1","Transplant Services",{"$f":"IFERROR('MMA Rev-Exp Region 1'!$O$27/'MMA Rev-Exp Region 1'!$O$9, 0)","v":{"v":0,"d":"$0.00"}},{"$f":"IFERROR('MMA Rev-Exp Region 1'!$P$27/'MMA Rev-Exp Region 1'!$P$9, 0)","v":{"v":0,"d":"$0.00"}},{"$f":"IFERROR('MMA Rev-Exp Region 1'!$Q$27/'MMA Rev-Exp Region 1'!$Q$9, 0)","v":{"v":0,"d":"$0.00"}},{"$f":"IFERROR('MMA Rev-Exp Region 1'!$R$27/'MMA Rev-Exp Region 1'!$R$9, 0)","v":{"v":0,"d":"$0.00"}},{"$f":"IFERROR('MMA Rev-Exp Region 1'!$S$27/'MMA Rev-Exp Region 1'!$S$9, 0)","v":{"v":0,"d":"$0.00"}},{"$f":"IFERROR('MMA Rev-Exp Region 1'!$T$27/'MMA Rev-Exp Region 1'!$T$9, 0)","v":{"v":0,"d":"$0.00"}},{"$f":"IFERROR('MMA Rev-Exp Region 1'!$U$27/'MMA Rev-Exp Region 1'!$U$9, 0)","v":{"v":0,"d":"$0.00"}},{"$f":"IFERROR('MMA Rev-Exp Region 1'!$V$27/'MMA Rev-Exp Region 1'!$V$9, 0)","v":{"v":0,"d":"$0.00"}},{"$f":"IFERROR('MMA Rev-Exp Region 1'!$W$27/'MMA Rev-Exp Region 1'!$W$9, 0)","v":{"v":0,"d":"$0.00"}},{"$f":"IFERROR('MMA Rev-Exp Region 1'!$X$27/'MMA Rev-Exp Region 1'!$X$9, 0)","v":{"v":0,"d":"$0.00"}},{"$f":"IFERROR('MMA Rev-Exp Region 1'!$Y$27/'MMA Rev-Exp Region 1'!$Y$9, 0)","v":{"v":0,"d":"$0.00"}}]
["MMA",null,null,{"$f":"Jurat!I$1","v":0},{"$f":"Jurat!D$33","v":"00:00:00"},"Q2","2017-06-30","Region 1","Operating Expense","Medical Benefits Expense","Professional Services",3.1,"Primary Care FFS",{"$f":"IFERROR('MMA Rev-Exp Region 1'!$O$29/'MMA Rev-Exp Region 1'!$O$9, 0)","v":{"v":0,"d":"$0.00"}},{"$f":"IFERROR('MMA Rev-Exp Region 1'!$P$29/'MMA Rev-Exp Region 1'!$P$9, 0)","v":{"v":0,"d":"$0.00"}},{"$f":"IFERROR('MMA Rev-Exp Region 1'!$Q$29/'MMA Rev-Exp Region 1'!$Q$9, 0)","v":{"v":0,"d":"$0.00"}},{"$f":"IFERROR('MMA Rev-Exp Region 1'!$R$29/'MMA Rev-Exp Region 1'!$R$9, 0)","v":{"v":0,"d":"$0.00"}},{"$f":"IFERROR('MMA Rev-Exp Region 1'!$S$29/'MMA Rev-Exp Region 1'!$S$9, 0)","v":{"v":0,"d":"$0.00"}},{"$f":"IFERROR('MMA Rev-Exp Region 1'!$T$29/'MMA Rev-Exp Region 1'!$T$9, 0)","v":{"v":0,"d":"$0.00"}},{"$f":"IFERROR('MMA Rev-Exp Region 1'!$U$29/'MMA Rev-Exp Region 1'!$U$9, 0)","v":{"v":0,"d":"$0.00"}},{"$f":"IFERROR('MMA Rev-Exp Region 1'!$V$29/'MMA Rev-Exp Region 1'!$V$9, 0)","v":{"v":0,"d":"$0.00"}},{"$f":"IFERROR('MMA Rev-Exp Region 1'!$W$29/'MMA Rev-Exp Region 1'!$W$9, 0)","v":{"v":0,"d":"$0.00"}},{"$f":"IFERROR('MMA Rev-Exp Region 1'!$X$29/'MMA Rev-Exp Region 1'!$X$9, 0)","v":{"v":0,"d":"$0.00"}},{"$f":"IFERROR('MMA Rev-Exp Region 1'!$Y$29/'MMA Rev-Exp Region 1'!$Y$9, 0)","v":{"v":0,"d":"$0.00"}}]
["MMA",null,null,{"$f":"Jurat!I$1","v":0},{"$f":"Jurat!D$33","v":"00:00:00"},"Q2","2017-06-30","Region 1","Operating Expense","Medical Benefits Expense","Professional Services",3.2,"Specialty Care FFS",{"$f":"IFERROR('MMA Rev-Exp Region 1'!$O$30/'MMA Rev-Exp Region 1'!$O$9, 0)","v":{"v":0,"d":"$0.00"}},{"$f":"IFERROR('MMA Rev-Exp Region 1'!$P$30/'MMA Rev-Exp Region 1'!$P$9, 0)","v":{"v":0,"d":"$0.00"}},{"$f":"IFERROR('MMA Rev-Exp Region 1'!$Q$30/'MMA Rev-Exp Region 1'!$Q$9, 0)","v":{"v":0,"d":"$0.00"}},{"$f":"IFERROR('MMA Rev-Exp Region 1'!$R$30/'MMA Rev-Exp Region 1'!$R$9, 0)","v":{"v":0,"d":"$0.00"}},{"$f":"IFERROR('MMA Rev-Exp Region 1'!$S$30/'MMA Rev-Exp Region 1'!$S$9, 0)","v":{"v":0,"d":"$0.00"}},{"$f":"IFERROR('MMA Rev-Exp Region 1'!$T$30/'MMA Rev-Exp Region 1'!$T$9, 0)","v":{"v":0,"d":"$0.00"}},{"$f":"IFERROR('MMA Rev-Exp Region 1'!$U$30/'MMA Rev-Exp Region 1'!$U$9, 0)","v":{"v":0,"d":"$0.00"}},{"$f":"IFERROR('MMA Rev-Exp Region 1'!$V$30/'MMA Rev-Exp Region 1'!$V$9, 0)","v":{"v":0,"d":"$0.00"}},{"$f":"IFERROR('MMA Rev-Exp Region 1'!$W$30/'MMA Rev-Exp Region 1'!$W$9, 0)","v":{"v":0,"d":"$0.00"}},{"$f":"IFERROR('MMA Rev-Exp Region 1'!$X$30/'MMA Rev-Exp Region 1'!$X$9, 0)","v":{"v":0,"d":"$0.00"}},{"$f":"IFERROR('MMA Rev-Exp Region 1'!$Y$30/'MMA Rev-Exp Region 1'!$Y$9, 0)","v":{"v":0,"d":"$0.00"}}]
["MMA",null,null,{"$f":"Jurat!I$1","v":0},{"$f":"Jurat!D$33","v":"00:00:00"},"Q2","2017-06-30","Region 1","Operating Expense","Medical Benefits Expense","Professional Services",3.3,"Other Professional FFS",{"$f":"IFERROR('MMA Rev-Exp Region 1'!$O$31/'MMA Rev-Exp Region 1'!$O$9, 0)","v":{"v":0,"d":"$0.00"}},{"$f":"IFERROR('MMA Rev-Exp Region 1'!$P$31/'MMA Rev-Exp Region 1'!$P$9, 0)","v":{"v":0,"d":"$0.00"}},{"$f":"IFERROR('MMA Rev-Exp Region 1'!$Q$31/'MMA Rev-Exp Region 1'!$Q$9, 0)","v":{"v":0,"d":"$0.00"}},{"$f":"IFERROR('MMA Rev-Exp Region 1'!$R$31/'MMA Rev-Exp Region 1'!$R$9, 0)","v":{"v":0,"d":"$0.00"}},{"$f":"IFERROR('MMA Rev-Exp Region 1'!$S$31/'MMA Rev-Exp Region 1'!$S$9, 0)","v":{"v":0,"d":"$0.00"}},{"$f":"IFERROR('MMA Rev-Exp Region 1'!$T$31/'MMA Rev-Exp Region 1'!$T$9, 0)","v":{"v":0,"d":"$0.00"}},{"$f":"IFERROR('MMA Rev-Exp Region 1'!$U$31/'MMA Rev-Exp Region 1'!$U$9, 0)","v":{"v":0,"d":"$0.00"}},{"$f":"IFERROR('MMA Rev-Exp Region 1'!$V$31/'MMA Rev-Exp Region 1'!$V$9, 0)","v":{"v":0,"d":"$0.00"}},{"$f":"IFERROR('MMA Rev-Exp Region 1'!$W$31/'MMA Rev-Exp Region 1'!$W$9, 0)","v":{"v":0,"d":"$0.00"}},{"$f":"IFERROR('MMA Rev-Exp Region 1'!$X$31/'MMA Rev-Exp Region 1'!$X$9, 0)","v":{"v":0,"d":"$0.00"}},{"$f":"IFERROR('MMA Rev-Exp Region 1'!$Y$31/'MMA Rev-Exp Region 1'!$Y$9, 0)","v":{"v":0,"d":"$0.00"}}]
["MMA",null,null,{"$f":"Jurat!I$1","v":0},{"$f":"Jurat!D$33","v":"00:00:00"},"Q2","2017-06-30","Region 1","Operating Expense","Medical Benefits Expense","Professional Services","3.4","§ 1202 PCP Payments to providers",{"$f":"IFERROR('MMA Rev-Exp Region 1'!$O$32/'MMA Rev-Exp Region 1'!$O$9, 0)","v":{"v":0,"d":"$0.00"}},{"$f":"IFERROR('MMA Rev-Exp Region 1'!$P$32/'MMA Rev-Exp Region 1'!$P$9, 0)","v":{"v":0,"d":"$0.00"}},{"$f":"IFERROR('MMA Rev-Exp Region 1'!$Q$32/'MMA Rev-Exp Region 1'!$Q$9, 0)","v":{"v":0,"d":"$0.00"}},{"$f":"IFERROR('MMA Rev-Exp Region 1'!$R$32/'MMA Rev-Exp Region 1'!$R$9, 0)","v":{"v":0,"d":"$0.00"}},{"$f":"IFERROR('MMA Rev-Exp Region 1'!$S$32/'MMA Rev-Exp Region 1'!$S$9, 0)","v":{"v":0,"d":"$0.00"}},{"$f":"IFERROR('MMA Rev-Exp Region 1'!$T$32/'MMA Rev-Exp Region 1'!$T$9, 0)","v":{"v":0,"d":"$0.00"}},{"$f":"IFERROR('MMA Rev-Exp Region 1'!$U$32/'MMA Rev-Exp Region 1'!$U$9, 0)","v":{"v":0,"d":"$0.00"}},{"$f":"IFERROR('MMA Rev-Exp Region 1'!$V$32/'MMA Rev-Exp Region 1'!$V$9, 0)","v":{"v":0,"d":"$0.00"}},{"$f":"IFERROR('MMA Rev-Exp Region 1'!$W$32/'MMA Rev-Exp Region 1'!$W$9, 0)","v":{"v":0,"d":"$0.00"}},{"$f":"IFERROR('MMA Rev-Exp Region 1'!$X$32/'MMA Rev-Exp Region 1'!$X$9, 0)","v":{"v":0,"d":"$0.00"}},{"$f":"IFERROR('MMA Rev-Exp Region 1'!$Y$32/'MMA Rev-Exp Region 1'!$Y$9, 0)","v":{"v":0,"d":"$0.00"}}]
["MMA",null,null,{"$f":"Jurat!I$1","v":0},{"$f":"Jurat!D$33","v":"00:00:00"},"Q2","2017-06-30","Region 1","Operating Expense","Medical Benefits Expense","Professional Services","3.5","Subcapitated Professional Services",{"$f":"IFERROR('MMA Rev-Exp Region 1'!$O$33/'MMA Rev-Exp Region 1'!$O$9, 0)","v":{"v":0,"d":"$0.00"}},{"$f":"IFERROR('MMA Rev-Exp Region 1'!$P$33/'MMA Rev-Exp Region 1'!$P$9, 0)","v":{"v":0,"d":"$0.00"}},{"$f":"IFERROR('MMA Rev-Exp Region 1'!$Q$33/'MMA Rev-Exp Region 1'!$Q$9, 0)","v":{"v":0,"d":"$0.00"}},{"$f":"IFERROR('MMA Rev-Exp Region 1'!$R$33/'MMA Rev-Exp Region 1'!$R$9, 0)","v":{"v":0,"d":"$0.00"}},{"$f":"IFERROR('MMA Rev-Exp Region 1'!$S$33/'MMA Rev-Exp Region 1'!$S$9, 0)","v":{"v":0,"d":"$0.00"}},{"$f":"IFERROR('MMA Rev-Exp Region 1'!$T$33/'MMA Rev-Exp Region 1'!$T$9, 0)","v":{"v":0,"d":"$0.00"}},{"$f":"IFERROR('MMA Rev-Exp Region 1'!$U$33/'MMA Rev-Exp Region 1'!$U$9, 0)","v":{"v":0,"d":"$0.00"}},{"$f":"IFERROR('MMA Rev-Exp Region 1'!$V$33/'MMA Rev-Exp Region 1'!$V$9, 0)","v":{"v":0,"d":"$0.00"}},{"$f":"IFERROR('MMA Rev-Exp Region 1'!$W$33/'MMA Rev-Exp Region 1'!$W$9, 0)","v":{"v":0,"d":"$0.00"}},{"$f":"IFERROR('MMA Rev-Exp Region 1'!$X$33/'MMA Rev-Exp Region 1'!$X$9, 0)","v":{"v":0,"d":"$0.00"}},{"$f":"IFERROR('MMA Rev-Exp Region 1'!$Y$33/'MMA Rev-Exp Region 1'!$Y$9, 0)","v":{"v":0,"d":"$0.00"}}]
["MMA",null,null,{"$f":"Jurat!I$1","v":0},{"$f":"Jurat!D$33","v":"00:00:00"},"Q2","2017-06-30","Region 1","Operating Expense","Medical Benefits Expense","Professional Services","3.6","Ending IBNP for Professional Services",{"$f":"IFERROR('MMA Rev-Exp Region 1'!$O$34/'MMA Rev-Exp Region 1'!$O$9, 0)","v":{"v":0,"d":"$0.00"}},{"$f":"IFERROR('MMA Rev-Exp Region 1'!$P$34/'MMA Rev-Exp Region 1'!$P$9, 0)","v":{"v":0,"d":"$0.00"}},{"$f":"IFERROR('MMA Rev-Exp Region 1'!$Q$34/'MMA Rev-Exp Region 1'!$Q$9, 0)","v":{"v":0,"d":"$0.00"}},{"$f":"IFERROR('MMA Rev-Exp Region 1'!$R$34/'MMA Rev-Exp Region 1'!$R$9, 0)","v":{"v":0,"d":"$0.00"}},{"$f":"IFERROR('MMA Rev-Exp Region 1'!$S$34/'MMA Rev-Exp Region 1'!$S$9, 0)","v":{"v":0,"d":"$0.00"}},{"$f":"IFERROR('MMA Rev-Exp Region 1'!$T$34/'MMA Rev-Exp Region 1'!$T$9, 0)","v":{"v":0,"d":"$0.00"}},{"$f":"IFERROR('MMA Rev-Exp Region 1'!$U$34/'MMA Rev-Exp Region 1'!$U$9, 0)","v":{"v":0,"d":"$0.00"}},{"$f":"IFERROR('MMA Rev-Exp Region 1'!$V$34/'MMA Rev-Exp Region 1'!$V$9, 0)","v":{"v":0,"d":"$0.00"}},{"$f":"IFERROR('MMA Rev-Exp Region 1'!$W$34/'MMA Rev-Exp Region 1'!$W$9, 0)","v":{"v":0,"d":"$0.00"}},{"$f":"IFERROR('MMA Rev-Exp Region 1'!$X$34/'MMA Rev-Exp Region 1'!$X$9, 0)","v":{"v":0,"d":"$0.00"}},{"$f":"IFERROR('MMA Rev-Exp Region 1'!$Y$34/'MMA Rev-Exp Region 1'!$Y$9, 0)","v":{"v":0,"d":"$0.00"}}]
["MMA",null,null,{"$f":"Jurat!I$1","v":0},{"$f":"Jurat!D$33","v":"00:00:00"},"Q2","2017-06-30","Region 1","Operating Expense","Medical Benefits Expense","Professional Services","3.7","Professional Services Settlements",{"$f":"IFERROR('MMA Rev-Exp Region 1'!$O$35/'MMA Rev-Exp Region 1'!$O$9, 0)","v":{"v":0,"d":"$0.00"}},{"$f":"IFERROR('MMA Rev-Exp Region 1'!$P$35/'MMA Rev-Exp Region 1'!$P$9, 0)","v":{"v":0,"d":"$0.00"}},{"$f":"IFERROR('MMA Rev-Exp Region 1'!$Q$35/'MMA Rev-Exp Region 1'!$Q$9, 0)","v":{"v":0,"d":"$0.00"}},{"$f":"IFERROR('MMA Rev-Exp Region 1'!$R$35/'MMA Rev-Exp Region 1'!$R$9, 0)","v":{"v":0,"d":"$0.00"}},{"$f":"IFERROR('MMA Rev-Exp Region 1'!$S$35/'MMA Rev-Exp Region 1'!$S$9, 0)","v":{"v":0,"d":"$0.00"}},{"$f":"IFERROR('MMA Rev-Exp Region 1'!$T$35/'MMA Rev-Exp Region 1'!$T$9, 0)","v":{"v":0,"d":"$0.00"}},{"$f":"IFERROR('MMA Rev-Exp Region 1'!$U$35/'MMA Rev-Exp Region 1'!$U$9, 0)","v":{"v":0,"d":"$0.00"}},{"$f":"IFERROR('MMA Rev-Exp Region 1'!$V$35/'MMA Rev-Exp Region 1'!$V$9, 0)","v":{"v":0,"d":"$0.00"}},{"$f":"IFERROR('MMA Rev-Exp Region 1'!$W$35/'MMA Rev-Exp Region 1'!$W$9, 0)","v":{"v":0,"d":"$0.00"}},{"$f":"IFERROR('MMA Rev-Exp Region 1'!$X$35/'MMA Rev-Exp Region 1'!$X$9, 0)","v":{"v":0,"d":"$0.00"}},{"$f":"IFERROR('MMA Rev-Exp Region 1'!$Y$35/'MMA Rev-Exp Region 1'!$Y$9, 0)","v":{"v":0,"d":"$0.00"}}]
["MMA",null,null,{"$f":"Jurat!I$1","v":0},{"$f":"Jurat!D$33","v":"00:00:00"},"Q2","2017-06-30","Region 1","Operating Expense","Medical Benefits Expense","Maternity Services","4.1.1","Maternity Services",{"$f":"IFERROR('MMA Rev-Exp Region 1'!$O$37/'MMA Rev-Exp Region 1'!$O$9, 0)","v":{"v":0,"d":"$0.00"}},{"$f":"IFERROR('MMA Rev-Exp Region 1'!$P$37/'MMA Rev-Exp Region 1'!$P$9, 0)","v":{"v":0,"d":"$0.00"}},{"$f":"IFERROR('MMA Rev-Exp Region 1'!$Q$37/'MMA Rev-Exp Region 1'!$Q$9, 0)","v":{"v":0,"d":"$0.00"}},{"$f":"IFERROR('MMA Rev-Exp Region 1'!$R$37/'MMA Rev-Exp Region 1'!$R$9, 0)","v":{"v":0,"d":"$0.00"}},{"$f":"IFERROR('MMA Rev-Exp Region 1'!$S$37/'MMA Rev-Exp Region 1'!$S$9, 0)","v":{"v":0,"d":"$0.00"}},{"$f":"IFERROR('MMA Rev-Exp Region 1'!$T$37/'MMA Rev-Exp Region 1'!$T$9, 0)","v":{"v":0,"d":"$0.00"}},{"$f":"IFERROR('MMA Rev-Exp Region 1'!$U$37/'MMA Rev-Exp Region 1'!$U$9, 0)","v":{"v":0,"d":"$0.00"}},{"$f":"IFERROR('MMA Rev-Exp Region 1'!$V$37/'MMA Rev-Exp Region 1'!$V$9, 0)","v":{"v":0,"d":"$0.00"}},{"$f":"IFERROR('MMA Rev-Exp Region 1'!$W$37/'MMA Rev-Exp Region 1'!$W$9, 0)","v":{"v":0,"d":"$0.00"}},{"$f":"IFERROR('MMA Rev-Exp Region 1'!$X$37/'MMA Rev-Exp Region 1'!$X$9, 0)","v":{"v":0,"d":"$0.00"}},{"$f":"IFERROR('MMA Rev-Exp Region 1'!$Y$37/'MMA Rev-Exp Region 1'!$Y$9, 0)","v":{"v":0,"d":"$0.00"}}]
["MMA",null,null,{"$f":"Jurat!I$1","v":0},{"$f":"Jurat!D$33","v":"00:00:00"},"Q2","2017-06-30","Region 1","Operating Expense","Medical Benefits Expense","Maternity Services","4.2.1","Ending IBNP for Maternity Services",{"$f":"IFERROR('MMA Rev-Exp Region 1'!$O$38/'MMA Rev-Exp Region 1'!$O$9, 0)","v":{"v":0,"d":"$0.00"}},{"$f":"IFERROR('MMA Rev-Exp Region 1'!$P$38/'MMA Rev-Exp Region 1'!$P$9, 0)","v":{"v":0,"d":"$0.00"}},{"$f":"IFERROR('MMA Rev-Exp Region 1'!$Q$38/'MMA Rev-Exp Region 1'!$Q$9, 0)","v":{"v":0,"d":"$0.00"}},{"$f":"IFERROR('MMA Rev-Exp Region 1'!$R$38/'MMA Rev-Exp Region 1'!$R$9, 0)","v":{"v":0,"d":"$0.00"}},{"$f":"IFERROR('MMA Rev-Exp Region 1'!$S$38/'MMA Rev-Exp Region 1'!$S$9, 0)","v":{"v":0,"d":"$0.00"}},{"$f":"IFERROR('MMA Rev-Exp Region 1'!$T$38/'MMA Rev-Exp Region 1'!$T$9, 0)","v":{"v":0,"d":"$0.00"}},{"$f":"IFERROR('MMA Rev-Exp Region 1'!$U$38/'MMA Rev-Exp Region 1'!$U$9, 0)","v":{"v":0,"d":"$0.00"}},{"$f":"IFERROR('MMA Rev-Exp Region 1'!$V$38/'MMA Rev-Exp Region 1'!$V$9, 0)","v":{"v":0,"d":"$0.00"}},{"$f":"IFERROR('MMA Rev-Exp Region 1'!$W$38/'MMA Rev-Exp Region 1'!$W$9, 0)","v":{"v":0,"d":"$0.00"}},{"$f":"IFERROR('MMA Rev-Exp Region 1'!$X$38/'MMA Rev-Exp Region 1'!$X$9, 0)","v":{"v":0,"d":"$0.00"}},{"$f":"IFERROR('MMA Rev-Exp Region 1'!$Y$38/'MMA Rev-Exp Region 1'!$Y$9, 0)","v":{"v":0,"d":"$0.00"}}]
["MMA",null,null,{"$f":"Jurat!I$1","v":0},{"$f":"Jurat!D$33","v":"00:00:00"},"Q2","2017-06-30","Region 1","Operating Expense","Medical Benefits Expense","Maternity Services","4.3.1","Maternity Settlements",{"$f":"IFERROR('MMA Rev-Exp Region 1'!$O$39/'MMA Rev-Exp Region 1'!$O$9, 0)","v":{"v":0,"d":"$0.00"}},{"$f":"IFERROR('MMA Rev-Exp Region 1'!$P$39/'MMA Rev-Exp Region 1'!$P$9, 0)","v":{"v":0,"d":"$0.00"}},{"$f":"IFERROR('MMA Rev-Exp Region 1'!$Q$39/'MMA Rev-Exp Region 1'!$Q$9, 0)","v":{"v":0,"d":"$0.00"}},{"$f":"IFERROR('MMA Rev-Exp Region 1'!$R$39/'MMA Rev-Exp Region 1'!$R$9, 0)","v":{"v":0,"d":"$0.00"}},{"$f":"IFERROR('MMA Rev-Exp Region 1'!$S$39/'MMA Rev-Exp Region 1'!$S$9, 0)","v":{"v":0,"d":"$0.00"}},{"$f":"IFERROR('MMA Rev-Exp Region 1'!$T$39/'MMA Rev-Exp Region 1'!$T$9, 0)","v":{"v":0,"d":"$0.00"}},{"$f":"IFERROR('MMA Rev-Exp Region 1'!$U$39/'MMA Rev-Exp Region 1'!$U$9, 0)","v":{"v":0,"d":"$0.00"}},{"$f":"IFERROR('MMA Rev-Exp Region 1'!$V$39/'MMA Rev-Exp Region 1'!$V$9, 0)","v":{"v":0,"d":"$0.00"}},{"$f":"IFERROR('MMA Rev-Exp Region 1'!$W$39/'MMA Rev-Exp Region 1'!$W$9, 0)","v":{"v":0,"d":"$0.00"}},{"$f":"IFERROR('MMA Rev-Exp Region 1'!$X$39/'MMA Rev-Exp Region 1'!$X$9, 0)","v":{"v":0,"d":"$0.00"}},{"$f":"IFERROR('MMA Rev-Exp Region 1'!$Y$39/'MMA Rev-Exp Region 1'!$Y$9, 0)","v":{"v":0,"d":"$0.00"}}]
["MMA",null,null,{"$f":"Jurat!I$1","v":0},{"$f":"Jurat!D$33","v":"00:00:00"},"Q2","2017-06-30","Region 1","Operating Expense","Medical Benefits Expense","Mental Health Services",5.1,"Mental Health & Substance Abuse FFS",{"$f":"IFERROR('MMA Rev-Exp Region 1'!$O$41/'MMA Rev-Exp Region 1'!$O$9, 0)","v":{"v":0,"d":"$0.00"}},{"$f":"IFERROR('MMA Rev-Exp Region 1'!$P$41/'MMA Rev-Exp Region 1'!$P$9, 0)","v":{"v":0,"d":"$0.00"}},{"$f":"IFERROR('MMA Rev-Exp Region 1'!$Q$41/'MMA Rev-Exp Region 1'!$Q$9, 0)","v":{"v":0,"d":"$0.00"}},{"$f":"IFERROR('MMA Rev-Exp Region 1'!$R$41/'MMA Rev-Exp Region 1'!$R$9, 0)","v":{"v":0,"d":"$0.00"}},{"$f":"IFERROR('MMA Rev-Exp Region 1'!$S$41/'MMA Rev-Exp Region 1'!$S$9, 0)","v":{"v":0,"d":"$0.00"}},{"$f":"IFERROR('MMA Rev-Exp Region 1'!$T$41/'MMA Rev-Exp Region 1'!$T$9, 0)","v":{"v":0,"d":"$0.00"}},{"$f":"IFERROR('MMA Rev-Exp Region 1'!$U$41/'MMA Rev-Exp Region 1'!$U$9, 0)","v":{"v":0,"d":"$0.00"}},{"$f":"IFERROR('MMA Rev-Exp Region 1'!$V$41/'MMA Rev-Exp Region 1'!$V$9, 0)","v":{"v":0,"d":"$0.00"}},{"$f":"IFERROR('MMA Rev-Exp Region 1'!$W$41/'MMA Rev-Exp Region 1'!$W$9, 0)","v":{"v":0,"d":"$0.00"}},{"$f":"IFERROR('MMA Rev-Exp Region 1'!$X$41/'MMA Rev-Exp Region 1'!$X$9, 0)","v":{"v":0,"d":"$0.00"}},{"$f":"IFERROR('MMA Rev-Exp Region 1'!$Y$41/'MMA Rev-Exp Region 1'!$Y$9, 0)","v":{"v":0,"d":"$0.00"}}]
["MMA",null,null,{"$f":"Jurat!I$1","v":0},{"$f":"Jurat!D$33","v":"00:00:00"},"Q2","2017-06-30","Region 1","Operating Expense","Medical Benefits Expense","Mental Health Services",5.2,"Mental Health & Substance Abuse Subcapitation",{"$f":"IFERROR('MMA Rev-Exp Region 1'!$O$42/'MMA Rev-Exp Region 1'!$O$9, 0)","v":{"v":0,"d":"$0.00"}},{"$f":"IFERROR('MMA Rev-Exp Region 1'!$P$42/'MMA Rev-Exp Region 1'!$P$9, 0)","v":{"v":0,"d":"$0.00"}},{"$f":"IFERROR('MMA Rev-Exp Region 1'!$Q$42/'MMA Rev-Exp Region 1'!$Q$9, 0)","v":{"v":0,"d":"$0.00"}},{"$f":"IFERROR('MMA Rev-Exp Region 1'!$R$42/'MMA Rev-Exp Region 1'!$R$9, 0)","v":{"v":0,"d":"$0.00"}},{"$f":"IFERROR('MMA Rev-Exp Region 1'!$S$42/'MMA Rev-Exp Region 1'!$S$9, 0)","v":{"v":0,"d":"$0.00"}},{"$f":"IFERROR('MMA Rev-Exp Region 1'!$T$42/'MMA Rev-Exp Region 1'!$T$9, 0)","v":{"v":0,"d":"$0.00"}},{"$f":"IFERROR('MMA Rev-Exp Region 1'!$U$42/'MMA Rev-Exp Region 1'!$U$9, 0)","v":{"v":0,"d":"$0.00"}},{"$f":"IFERROR('MMA Rev-Exp Region 1'!$V$42/'MMA Rev-Exp Region 1'!$V$9, 0)","v":{"v":0,"d":"$0.00"}},{"$f":"IFERROR('MMA Rev-Exp Region 1'!$W$42/'MMA Rev-Exp Region 1'!$W$9, 0)","v":{"v":0,"d":"$0.00"}},{"$f":"IFERROR('MMA Rev-Exp Region 1'!$X$42/'MMA Rev-Exp Region 1'!$X$9, 0)","v":{"v":0,"d":"$0.00"}},{"$f":"IFERROR('MMA Rev-Exp Region 1'!$Y$42/'MMA Rev-Exp Region 1'!$Y$9, 0)","v":{"v":0,"d":"$0.00"}}]
["MMA",null,null,{"$f":"Jurat!I$1","v":0},{"$f":"Jurat!D$33","v":"00:00:00"},"Q2","2017-06-30","Region 1","Operating Expense","Medical Benefits Expense","Mental Health Services",5.3,"Ending IBNP for Mental Health & Substance Abuse",{"$f":"IFERROR('MMA Rev-Exp Region 1'!$O$43/'MMA Rev-Exp Region 1'!$O$9, 0)","v":{"v":0,"d":"$0.00"}},{"$f":"IFERROR('MMA Rev-Exp Region 1'!$P$43/'MMA Rev-Exp Region 1'!$P$9, 0)","v":{"v":0,"d":"$0.00"}},{"$f":"IFERROR('MMA Rev-Exp Region 1'!$Q$43/'MMA Rev-Exp Region 1'!$Q$9, 0)","v":{"v":0,"d":"$0.00"}},{"$f":"IFERROR('MMA Rev-Exp Region 1'!$R$43/'MMA Rev-Exp Region 1'!$R$9, 0)","v":{"v":0,"d":"$0.00"}},{"$f":"IFERROR('MMA Rev-Exp Region 1'!$S$43/'MMA Rev-Exp Region 1'!$S$9, 0)","v":{"v":0,"d":"$0.00"}},{"$f":"IFERROR('MMA Rev-Exp Region 1'!$T$43/'MMA Rev-Exp Region 1'!$T$9, 0)","v":{"v":0,"d":"$0.00"}},{"$f":"IFERROR('MMA Rev-Exp Region 1'!$U$43/'MMA Rev-Exp Region 1'!$U$9, 0)","v":{"v":0,"d":"$0.00"}},{"$f":"IFERROR('MMA Rev-Exp Region 1'!$V$43/'MMA Rev-Exp Region 1'!$V$9, 0)","v":{"v":0,"d":"$0.00"}},{"$f":"IFERROR('MMA Rev-Exp Region 1'!$W$43/'MMA Rev-Exp Region 1'!$W$9, 0)","v":{"v":0,"d":"$0.00"}},{"$f":"IFERROR('MMA Rev-Exp Region 1'!$X$43/'MMA Rev-Exp Region 1'!$X$9, 0)","v":{"v":0,"d":"$0.00"}},{"$f":"IFERROR('MMA Rev-Exp Region 1'!$Y$43/'MMA Rev-Exp Region 1'!$Y$9, 0)","v":{"v":0,"d":"$0.00"}}]
["MMA",null,null,{"$f":"Jurat!I$1","v":0},{"$f":"Jurat!D$33","v":"00:00:00"},"Q2","2017-06-30","Region 1","Operating Expense","Medical Benefits Expense","Mental Health Services","5.4","Mental Health Settlements",{"$f":"IFERROR('MMA Rev-Exp Region 1'!$O$44/'MMA Rev-Exp Region 1'!$O$9, 0)","v":{"v":0,"d":"$0.00"}},{"$f":"IFERROR('MMA Rev-Exp Region 1'!$P$44/'MMA Rev-Exp Region 1'!$P$9, 0)","v":{"v":0,"d":"$0.00"}},{"$f":"IFERROR('MMA Rev-Exp Region 1'!$Q$44/'MMA Rev-Exp Region 1'!$Q$9, 0)","v":{"v":0,"d":"$0.00"}},{"$f":"IFERROR('MMA Rev-Exp Region 1'!$R$44/'MMA Rev-Exp Region 1'!$R$9, 0)","v":{"v":0,"d":"$0.00"}},{"$f":"IFERROR('MMA Rev-Exp Region 1'!$S$44/'MMA Rev-Exp Region 1'!$S$9, 0)","v":{"v":0,"d":"$0.00"}},{"$f":"IFERROR('MMA Rev-Exp Region 1'!$T$44/'MMA Rev-Exp Region 1'!$T$9, 0)","v":{"v":0,"d":"$0.00"}},{"$f":"IFERROR('MMA Rev-Exp Region 1'!$U$44/'MMA Rev-Exp Region 1'!$U$9, 0)","v":{"v":0,"d":"$0.00"}},{"$f":"IFERROR('MMA Rev-Exp Region 1'!$V$44/'MMA Rev-Exp Region 1'!$V$9, 0)","v":{"v":0,"d":"$0.00"}},{"$f":"IFERROR('MMA Rev-Exp Region 1'!$W$44/'MMA Rev-Exp Region 1'!$W$9, 0)","v":{"v":0,"d":"$0.00"}},{"$f":"IFERROR('MMA Rev-Exp Region 1'!$X$44/'MMA Rev-Exp Region 1'!$X$9, 0)","v":{"v":0,"d":"$0.00"}},{"$f":"IFERROR('MMA Rev-Exp Region 1'!$Y$44/'MMA Rev-Exp Region 1'!$Y$9, 0)","v":{"v":0,"d":"$0.00"}}]
["MMA",null,null,{"$f":"Jurat!I$1","v":0},{"$f":"Jurat!D$33","v":"00:00:00"},"Q2","2017-06-30","Region 1","Operating Expense","Medical Benefits Expense","Dental Services",6.1,"Dental FFS",{"$f":"IFERROR('MMA Rev-Exp Region 1'!$O$46/'MMA Rev-Exp Region 1'!$O$9, 0)","v":{"v":0,"d":"$0.00"}},{"$f":"IFERROR('MMA Rev-Exp Region 1'!$P$46/'MMA Rev-Exp Region 1'!$P$9, 0)","v":{"v":0,"d":"$0.00"}},{"$f":"IFERROR('MMA Rev-Exp Region 1'!$Q$46/'MMA Rev-Exp Region 1'!$Q$9, 0)","v":{"v":0,"d":"$0.00"}},{"$f":"IFERROR('MMA Rev-Exp Region 1'!$R$46/'MMA Rev-Exp Region 1'!$R$9, 0)","v":{"v":0,"d":"$0.00"}},{"$f":"IFERROR('MMA Rev-Exp Region 1'!$S$46/'MMA Rev-Exp Region 1'!$S$9, 0)","v":{"v":0,"d":"$0.00"}},{"$f":"IFERROR('MMA Rev-Exp Region 1'!$T$46/'MMA Rev-Exp Region 1'!$T$9, 0)","v":{"v":0,"d":"$0.00"}},{"$f":"IFERROR('MMA Rev-Exp Region 1'!$U$46/'MMA Rev-Exp Region 1'!$U$9, 0)","v":{"v":0,"d":"$0.00"}},{"$f":"IFERROR('MMA Rev-Exp Region 1'!$V$46/'MMA Rev-Exp Region 1'!$V$9, 0)","v":{"v":0,"d":"$0.00"}},{"$f":"IFERROR('MMA Rev-Exp Region 1'!$W$46/'MMA Rev-Exp Region 1'!$W$9, 0)","v":{"v":0,"d":"$0.00"}},{"$f":"IFERROR('MMA Rev-Exp Region 1'!$X$46/'MMA Rev-Exp Region 1'!$X$9, 0)","v":{"v":0,"d":"$0.00"}},{"$f":"IFERROR('MMA Rev-Exp Region 1'!$Y$46/'MMA Rev-Exp Region 1'!$Y$9, 0)","v":{"v":0,"d":"$0.00"}}]
["MMA",null,null,{"$f":"Jurat!I$1","v":0},{"$f":"Jurat!D$33","v":"00:00:00"},"Q2","2017-06-30","Region 1","Operating Expense","Medical Benefits Expense","Dental Services",6.2,"Dental Subcapitation",{"$f":"IFERROR('MMA Rev-Exp Region 1'!$O$47/'MMA Rev-Exp Region 1'!$O$9, 0)","v":{"v":0,"d":"$0.00"}},{"$f":"IFERROR('MMA Rev-Exp Region 1'!$P$47/'MMA Rev-Exp Region 1'!$P$9, 0)","v":{"v":0,"d":"$0.00"}},{"$f":"IFERROR('MMA Rev-Exp Region 1'!$Q$47/'MMA Rev-Exp Region 1'!$Q$9, 0)","v":{"v":0,"d":"$0.00"}},{"$f":"IFERROR('MMA Rev-Exp Region 1'!$R$47/'MMA Rev-Exp Region 1'!$R$9, 0)","v":{"v":0,"d":"$0.00"}},{"$f":"IFERROR('MMA Rev-Exp Region 1'!$S$47/'MMA Rev-Exp Region 1'!$S$9, 0)","v":{"v":0,"d":"$0.00"}},{"$f":"IFERROR('MMA Rev-Exp Region 1'!$T$47/'MMA Rev-Exp Region 1'!$T$9, 0)","v":{"v":0,"d":"$0.00"}},{"$f":"IFERROR('MMA Rev-Exp Region 1'!$U$47/'MMA Rev-Exp Region 1'!$U$9, 0)","v":{"v":0,"d":"$0.00"}},{"$f":"IFERROR('MMA Rev-Exp Region 1'!$V$47/'MMA Rev-Exp Region 1'!$V$9, 0)","v":{"v":0,"d":"$0.00"}},{"$f":"IFERROR('MMA Rev-Exp Region 1'!$W$47/'MMA Rev-Exp Region 1'!$W$9, 0)","v":{"v":0,"d":"$0.00"}},{"$f":"IFERROR('MMA Rev-Exp Region 1'!$X$47/'MMA Rev-Exp Region 1'!$X$9, 0)","v":{"v":0,"d":"$0.00"}},{"$f":"IFERROR('MMA Rev-Exp Region 1'!$Y$47/'MMA Rev-Exp Region 1'!$Y$9, 0)","v":{"v":0,"d":"$0.00"}}]
["MMA",null,null,{"$f":"Jurat!I$1","v":0},{"$f":"Jurat!D$33","v":"00:00:00"},"Q2","2017-06-30","Region 1","Operating Expense","Medical Benefits Expense","Dental Services",6.3,"Ending IBNP for Dental Services",{"$f":"IFERROR('MMA Rev-Exp Region 1'!$O$48/'MMA Rev-Exp Region 1'!$O$9, 0)","v":{"v":0,"d":"$0.00"}},{"$f":"IFERROR('MMA Rev-Exp Region 1'!$P$48/'MMA Rev-Exp Region 1'!$P$9, 0)","v":{"v":0,"d":"$0.00"}},{"$f":"IFERROR('MMA Rev-Exp Region 1'!$Q$48/'MMA Rev-Exp Region 1'!$Q$9, 0)","v":{"v":0,"d":"$0.00"}},{"$f":"IFERROR('MMA Rev-Exp Region 1'!$R$48/'MMA Rev-Exp Region 1'!$R$9, 0)","v":{"v":0,"d":"$0.00"}},{"$f":"IFERROR('MMA Rev-Exp Region 1'!$S$48/'MMA Rev-Exp Region 1'!$S$9, 0)","v":{"v":0,"d":"$0.00"}},{"$f":"IFERROR('MMA Rev-Exp Region 1'!$T$48/'MMA Rev-Exp Region 1'!$T$9, 0)","v":{"v":0,"d":"$0.00"}},{"$f":"IFERROR('MMA Rev-Exp Region 1'!$U$48/'MMA Rev-Exp Region 1'!$U$9, 0)","v":{"v":0,"d":"$0.00"}},{"$f":"IFERROR('MMA Rev-Exp Region 1'!$V$48/'MMA Rev-Exp Region 1'!$V$9, 0)","v":{"v":0,"d":"$0.00"}},{"$f":"IFERROR('MMA Rev-Exp Region 1'!$W$48/'MMA Rev-Exp Region 1'!$W$9, 0)","v":{"v":0,"d":"$0.00"}},{"$f":"IFERROR('MMA Rev-Exp Region 1'!$X$48/'MMA Rev-Exp Region 1'!$X$9, 0)","v":{"v":0,"d":"$0.00"}},{"$f":"IFERROR('MMA Rev-Exp Region 1'!$Y$48/'MMA Rev-Exp Region 1'!$Y$9, 0)","v":{"v":0,"d":"$0.00"}}]
["MMA",null,null,{"$f":"Jurat!I$1","v":0},{"$f":"Jurat!D$33","v":"00:00:00"},"Q2","2017-06-30","Region 1","Operating Expense","Medical Benefits Expense","Dental Services","6.4","Dental Settlements",{"$f":"IFERROR('MMA Rev-Exp Region 1'!$O$49/'MMA Rev-Exp Region 1'!$O$9, 0)","v":{"v":0,"d":"$0.00"}},{"$f":"IFERROR('MMA Rev-Exp Region 1'!$P$49/'MMA Rev-Exp Region 1'!$P$9, 0)","v":{"v":0,"d":"$0.00"}},{"$f":"IFERROR('MMA Rev-Exp Region 1'!$Q$49/'MMA Rev-Exp Region 1'!$Q$9, 0)","v":{"v":0,"d":"$0.00"}},{"$f":"IFERROR('MMA Rev-Exp Region 1'!$R$49/'MMA Rev-Exp Region 1'!$R$9, 0)","v":{"v":0,"d":"$0.00"}},{"$f":"IFERROR('MMA Rev-Exp Region 1'!$S$49/'MMA Rev-Exp Region 1'!$S$9, 0)","v":{"v":0,"d":"$0.00"}},{"$f":"IFERROR('MMA Rev-Exp Region 1'!$T$49/'MMA Rev-Exp Region 1'!$T$9, 0)","v":{"v":0,"d":"$0.00"}},{"$f":"IFERROR('MMA Rev-Exp Region 1'!$U$49/'MMA Rev-Exp Region 1'!$U$9, 0)","v":{"v":0,"d":"$0.00"}},{"$f":"IFERROR('MMA Rev-Exp Region 1'!$V$49/'MMA Rev-Exp Region 1'!$V$9, 0)","v":{"v":0,"d":"$0.00"}},{"$f":"IFERROR('MMA Rev-Exp Region 1'!$W$49/'MMA Rev-Exp Region 1'!$W$9, 0)","v":{"v":0,"d":"$0.00"}},{"$f":"IFERROR('MMA Rev-Exp Region 1'!$X$49/'MMA Rev-Exp Region 1'!$X$9, 0)","v":{"v":0,"d":"$0.00"}},{"$f":"IFERROR('MMA Rev-Exp Region 1'!$Y$49/'MMA Rev-Exp Region 1'!$Y$9, 0)","v":{"v":0,"d":"$0.00"}}]
["MMA",null,null,{"$f":"Jurat!I$1","v":0},{"$f":"Jurat!D$33","v":"00:00:00"},"Q2","2017-06-30","Region 1","Operating Expense","Medical Benefits Expense","Transportation Services",7.1,"Transportation FFS",{"$f":"IFERROR('MMA Rev-Exp Region 1'!$O$51/'MMA Rev-Exp Region 1'!$O$9, 0)","v":{"v":0,"d":"$0.00"}},{"$f":"IFERROR('MMA Rev-Exp Region 1'!$P$51/'MMA Rev-Exp Region 1'!$P$9, 0)","v":{"v":0,"d":"$0.00"}},{"$f":"IFERROR('MMA Rev-Exp Region 1'!$Q$51/'MMA Rev-Exp Region 1'!$Q$9, 0)","v":{"v":0,"d":"$0.00"}},{"$f":"IFERROR('MMA Rev-Exp Region 1'!$R$51/'MMA Rev-Exp Region 1'!$R$9, 0)","v":{"v":0,"d":"$0.00"}},{"$f":"IFERROR('MMA Rev-Exp Region 1'!$S$51/'MMA Rev-Exp Region 1'!$S$9, 0)","v":{"v":0,"d":"$0.00"}},{"$f":"IFERROR('MMA Rev-Exp Region 1'!$T$51/'MMA Rev-Exp Region 1'!$T$9, 0)","v":{"v":0,"d":"$0.00"}},{"$f":"IFERROR('MMA Rev-Exp Region 1'!$U$51/'MMA Rev-Exp Region 1'!$U$9, 0)","v":{"v":0,"d":"$0.00"}},{"$f":"IFERROR('MMA Rev-Exp Region 1'!$V$51/'MMA Rev-Exp Region 1'!$V$9, 0)","v":{"v":0,"d":"$0.00"}},{"$f":"IFERROR('MMA Rev-Exp Region 1'!$W$51/'MMA Rev-Exp Region 1'!$W$9, 0)","v":{"v":0,"d":"$0.00"}},{"$f":"IFERROR('MMA Rev-Exp Region 1'!$X$51/'MMA Rev-Exp Region 1'!$X$9, 0)","v":{"v":0,"d":"$0.00"}},{"$f":"IFERROR('MMA Rev-Exp Region 1'!$Y$51/'MMA Rev-Exp Region 1'!$Y$9, 0)","v":{"v":0,"d":"$0.00"}}]
["MMA",null,null,{"$f":"Jurat!I$1","v":0},{"$f":"Jurat!D$33","v":"00:00:00"},"Q2","2017-06-30","Region 1","Operating Expense","Medical Benefits Expense","Transportation Services",7.2,"Transportation Subcapitation",{"$f":"IFERROR('MMA Rev-Exp Region 1'!$O$52/'MMA Rev-Exp Region 1'!$O$9, 0)","v":{"v":0,"d":"$0.00"}},{"$f":"IFERROR('MMA Rev-Exp Region 1'!$P$52/'MMA Rev-Exp Region 1'!$P$9, 0)","v":{"v":0,"d":"$0.00"}},{"$f":"IFERROR('MMA Rev-Exp Region 1'!$Q$52/'MMA Rev-Exp Region 1'!$Q$9, 0)","v":{"v":0,"d":"$0.00"}},{"$f":"IFERROR('MMA Rev-Exp Region 1'!$R$52/'MMA Rev-Exp Region 1'!$R$9, 0)","v":{"v":0,"d":"$0.00"}},{"$f":"IFERROR('MMA Rev-Exp Region 1'!$S$52/'MMA Rev-Exp Region 1'!$S$9, 0)","v":{"v":0,"d":"$0.00"}},{"$f":"IFERROR('MMA Rev-Exp Region 1'!$T$52/'MMA Rev-Exp Region 1'!$T$9, 0)","v":{"v":0,"d":"$0.00"}},{"$f":"IFERROR('MMA Rev-Exp Region 1'!$U$52/'MMA Rev-Exp Region 1'!$U$9, 0)","v":{"v":0,"d":"$0.00"}},{"$f":"IFERROR('MMA Rev-Exp Region 1'!$V$52/'MMA Rev-Exp Region 1'!$V$9, 0)","v":{"v":0,"d":"$0.00"}},{"$f":"IFERROR('MMA Rev-Exp Region 1'!$W$52/'MMA Rev-Exp Region 1'!$W$9, 0)","v":{"v":0,"d":"$0.00"}},{"$f":"IFERROR('MMA Rev-Exp Region 1'!$X$52/'MMA Rev-Exp Region 1'!$X$9, 0)","v":{"v":0,"d":"$0.00"}},{"$f":"IFERROR('MMA Rev-Exp Region 1'!$Y$52/'MMA Rev-Exp Region 1'!$Y$9, 0)","v":{"v":0,"d":"$0.00"}}]
["MMA",null,null,{"$f":"Jurat!I$1","v":0},{"$f":"Jurat!D$33","v":"00:00:00"},"Q2","2017-06-30","Region 1","Operating Expense","Medical Benefits Expense","Transportation Services",7.3,"Ending IBNP for Transportation",{"$f":"IFERROR('MMA Rev-Exp Region 1'!$O$53/'MMA Rev-Exp Region 1'!$O$9, 0)","v":{"v":0,"d":"$0.00"}},{"$f":"IFERROR('MMA Rev-Exp Region 1'!$P$53/'MMA Rev-Exp Region 1'!$P$9, 0)","v":{"v":0,"d":"$0.00"}},{"$f":"IFERROR('MMA Rev-Exp Region 1'!$Q$53/'MMA Rev-Exp Region 1'!$Q$9, 0)","v":{"v":0,"d":"$0.00"}},{"$f":"IFERROR('MMA Rev-Exp Region 1'!$R$53/'MMA Rev-Exp Region 1'!$R$9, 0)","v":{"v":0,"d":"$0.00"}},{"$f":"IFERROR('MMA Rev-Exp Region 1'!$S$53/'MMA Rev-Exp Region 1'!$S$9, 0)","v":{"v":0,"d":"$0.00"}},{"$f":"IFERROR('MMA Rev-Exp Region 1'!$T$53/'MMA Rev-Exp Region 1'!$T$9, 0)","v":{"v":0,"d":"$0.00"}},{"$f":"IFERROR('MMA Rev-Exp Region 1'!$U$53/'MMA Rev-Exp Region 1'!$U$9, 0)","v":{"v":0,"d":"$0.00"}},{"$f":"IFERROR('MMA Rev-Exp Region 1'!$V$53/'MMA Rev-Exp Region 1'!$V$9, 0)","v":{"v":0,"d":"$0.00"}},{"$f":"IFERROR('MMA Rev-Exp Region 1'!$W$53/'MMA Rev-Exp Region 1'!$W$9, 0)","v":{"v":0,"d":"$0.00"}},{"$f":"IFERROR('MMA Rev-Exp Region 1'!$X$53/'MMA Rev-Exp Region 1'!$X$9, 0)","v":{"v":0,"d":"$0.00"}},{"$f":"IFERROR('MMA Rev-Exp Region 1'!$Y$53/'MMA Rev-Exp Region 1'!$Y$9, 0)","v":{"v":0,"d":"$0.00"}}]
["MMA",null,null,{"$f":"Jurat!I$1","v":0},{"$f":"Jurat!D$33","v":"00:00:00"},"Q2","2017-06-30","Region 1","Operating Expense","Medical Benefits Expense","Transportation Services","7.4","Transportation Settlements",{"$f":"IFERROR('MMA Rev-Exp Region 1'!$O$54/'MMA Rev-Exp Region 1'!$O$9, 0)","v":{"v":0,"d":"$0.00"}},{"$f":"IFERROR('MMA Rev-Exp Region 1'!$P$54/'MMA Rev-Exp Region 1'!$P$9, 0)","v":{"v":0,"d":"$0.00"}},{"$f":"IFERROR('MMA Rev-Exp Region 1'!$Q$54/'MMA Rev-Exp Region 1'!$Q$9, 0)","v":{"v":0,"d":"$0.00"}},{"$f":"IFERROR('MMA Rev-Exp Region 1'!$R$54/'MMA Rev-Exp Region 1'!$R$9, 0)","v":{"v":0,"d":"$0.00"}},{"$f":"IFERROR('MMA Rev-Exp Region 1'!$S$54/'MMA Rev-Exp Region 1'!$S$9, 0)","v":{"v":0,"d":"$0.00"}},{"$f":"IFERROR('MMA Rev-Exp Region 1'!$T$54/'MMA Rev-Exp Region 1'!$T$9, 0)","v":{"v":0,"d":"$0.00"}},{"$f":"IFERROR('MMA Rev-Exp Region 1'!$U$54/'MMA Rev-Exp Region 1'!$U$9, 0)","v":{"v":0,"d":"$0.00"}},{"$f":"IFERROR('MMA Rev-Exp Region 1'!$V$54/'MMA Rev-Exp Region 1'!$V$9, 0)","v":{"v":0,"d":"$0.00"}},{"$f":"IFERROR('MMA Rev-Exp Region 1'!$W$54/'MMA Rev-Exp Region 1'!$W$9, 0)","v":{"v":0,"d":"$0.00"}},{"$f":"IFERROR('MMA Rev-Exp Region 1'!$X$54/'MMA Rev-Exp Region 1'!$X$9, 0)","v":{"v":0,"d":"$0.00"}},{"$f":"IFERROR('MMA Rev-Exp Region 1'!$Y$54/'MMA Rev-Exp Region 1'!$Y$9, 0)","v":{"v":0,"d":"$0.00"}}]
["MMA",null,null,{"$f":"Jurat!I$1","v":0},{"$f":"Jurat!D$33","v":"00:00:00"},"Q2","2017-06-30","Region 1","Operating Expense","Medical Benefits Expense","Pharmacy Services",8.1,"Prescription Drugs FFS",{"$f":"IFERROR('MMA Rev-Exp Region 1'!$O$56/'MMA Rev-Exp Region 1'!$O$9, 0)","v":{"v":0,"d":"$0.00"}},{"$f":"IFERROR('MMA Rev-Exp Region 1'!$P$56/'MMA Rev-Exp Region 1'!$P$9, 0)","v":{"v":0,"d":"$0.00"}},{"$f":"IFERROR('MMA Rev-Exp Region 1'!$Q$56/'MMA Rev-Exp Region 1'!$Q$9, 0)","v":{"v":0,"d":"$0.00"}},{"$f":"IFERROR('MMA Rev-Exp Region 1'!$R$56/'MMA Rev-Exp Region 1'!$R$9, 0)","v":{"v":0,"d":"$0.00"}},{"$f":"IFERROR('MMA Rev-Exp Region 1'!$S$56/'MMA Rev-Exp Region 1'!$S$9, 0)","v":{"v":0,"d":"$0.00"}},{"$f":"IFERROR('MMA Rev-Exp Region 1'!$T$56/'MMA Rev-Exp Region 1'!$T$9, 0)","v":{"v":0,"d":"$0.00"}},{"$f":"IFERROR('MMA Rev-Exp Region 1'!$U$56/'MMA Rev-Exp Region 1'!$U$9, 0)","v":{"v":0,"d":"$0.00"}},{"$f":"IFERROR('MMA Rev-Exp Region 1'!$V$56/'MMA Rev-Exp Region 1'!$V$9, 0)","v":{"v":0,"d":"$0.00"}},{"$f":"IFERROR('MMA Rev-Exp Region 1'!$W$56/'MMA Rev-Exp Region 1'!$W$9, 0)","v":{"v":0,"d":"$0.00"}},{"$f":"IFERROR('MMA Rev-Exp Region 1'!$X$56/'MMA Rev-Exp Region 1'!$X$9, 0)","v":{"v":0,"d":"$0.00"}},{"$f":"IFERROR('MMA Rev-Exp Region 1'!$Y$56/'MMA Rev-Exp Region 1'!$Y$9, 0)","v":{"v":0,"d":"$0.00"}}]
["MMA",null,null,{"$f":"Jurat!I$1","v":0},{"$f":"Jurat!D$33","v":"00:00:00"},"Q2","2017-06-30","Region 1","Operating Expense","Medical Benefits Expense","Pharmacy Services","8.2","Hepatitis C Prescription Drug FFS",{"$f":"IFERROR('MMA Rev-Exp Region 1'!$O$57/'MMA Rev-Exp Region 1'!$O$9, 0)","v":{"v":0,"d":"$0.00"}},{"$f":"IFERROR('MMA Rev-Exp Region 1'!$P$57/'MMA Rev-Exp Region 1'!$P$9, 0)","v":{"v":0,"d":"$0.00"}},{"$f":"IFERROR('MMA Rev-Exp Region 1'!$Q$57/'MMA Rev-Exp Region 1'!$Q$9, 0)","v":{"v":0,"d":"$0.00"}},{"$f":"IFERROR('MMA Rev-Exp Region 1'!$R$57/'MMA Rev-Exp Region 1'!$R$9, 0)","v":{"v":0,"d":"$0.00"}},{"$f":"IFERROR('MMA Rev-Exp Region 1'!$S$57/'MMA Rev-Exp Region 1'!$S$9, 0)","v":{"v":0,"d":"$0.00"}},{"$f":"IFERROR('MMA Rev-Exp Region 1'!$T$57/'MMA Rev-Exp Region 1'!$T$9, 0)","v":{"v":0,"d":"$0.00"}},{"$f":"IFERROR('MMA Rev-Exp Region 1'!$U$57/'MMA Rev-Exp Region 1'!$U$9, 0)","v":{"v":0,"d":"$0.00"}},{"$f":"IFERROR('MMA Rev-Exp Region 1'!$V$57/'MMA Rev-Exp Region 1'!$V$9, 0)","v":{"v":0,"d":"$0.00"}},{"$f":"IFERROR('MMA Rev-Exp Region 1'!$W$57/'MMA Rev-Exp Region 1'!$W$9, 0)","v":{"v":0,"d":"$0.00"}},{"$f":"IFERROR('MMA Rev-Exp Region 1'!$X$57/'MMA Rev-Exp Region 1'!$X$9, 0)","v":{"v":0,"d":"$0.00"}},{"$f":"IFERROR('MMA Rev-Exp Region 1'!$Y$57/'MMA Rev-Exp Region 1'!$Y$9, 0)","v":{"v":0,"d":"$0.00"}}]
["MMA",null,null,{"$f":"Jurat!I$1","v":0},{"$f":"Jurat!D$33","v":"00:00:00"},"Q2","2017-06-30","Region 1","Operating Expense","Medical Benefits Expense","Pharmacy Services","8.3","Ending IBNP for Prescription Drugs",{"$f":"IFERROR('MMA Rev-Exp Region 1'!$O$58/'MMA Rev-Exp Region 1'!$O$9, 0)","v":{"v":0,"d":"$0.00"}},{"$f":"IFERROR('MMA Rev-Exp Region 1'!$P$58/'MMA Rev-Exp Region 1'!$P$9, 0)","v":{"v":0,"d":"$0.00"}},{"$f":"IFERROR('MMA Rev-Exp Region 1'!$Q$58/'MMA Rev-Exp Region 1'!$Q$9, 0)","v":{"v":0,"d":"$0.00"}},{"$f":"IFERROR('MMA Rev-Exp Region 1'!$R$58/'MMA Rev-Exp Region 1'!$R$9, 0)","v":{"v":0,"d":"$0.00"}},{"$f":"IFERROR('MMA Rev-Exp Region 1'!$S$58/'MMA Rev-Exp Region 1'!$S$9, 0)","v":{"v":0,"d":"$0.00"}},{"$f":"IFERROR('MMA Rev-Exp Region 1'!$T$58/'MMA Rev-Exp Region 1'!$T$9, 0)","v":{"v":0,"d":"$0.00"}},{"$f":"IFERROR('MMA Rev-Exp Region 1'!$U$58/'MMA Rev-Exp Region 1'!$U$9, 0)","v":{"v":0,"d":"$0.00"}},{"$f":"IFERROR('MMA Rev-Exp Region 1'!$V$58/'MMA Rev-Exp Region 1'!$V$9, 0)","v":{"v":0,"d":"$0.00"}},{"$f":"IFERROR('MMA Rev-Exp Region 1'!$W$58/'MMA Rev-Exp Region 1'!$W$9, 0)","v":{"v":0,"d":"$0.00"}},{"$f":"IFERROR('MMA Rev-Exp Region 1'!$X$58/'MMA Rev-Exp Region 1'!$X$9, 0)","v":{"v":0,"d":"$0.00"}},{"$f":"IFERROR('MMA Rev-Exp Region 1'!$Y$58/'MMA Rev-Exp Region 1'!$Y$9, 0)","v":{"v":0,"d":"$0.00"}}]
["MMA",null,null,{"$f":"Jurat!I$1","v":0},{"$f":"Jurat!D$33","v":"00:00:00"},"Q2","2017-06-30","Region 1","Operating Expense","Medical Benefits Expense","Pharmacy Services","8.4","Prescription Drug Rebates ",{"$f":"IFERROR('MMA Rev-Exp Region 1'!$O$59/'MMA Rev-Exp Region 1'!$O$9, 0)","v":{"v":0,"d":"$0.00"}},{"$f":"IFERROR('MMA Rev-Exp Region 1'!$P$59/'MMA Rev-Exp Region 1'!$P$9, 0)","v":{"v":0,"d":"$0.00"}},{"$f":"IFERROR('MMA Rev-Exp Region 1'!$Q$59/'MMA Rev-Exp Region 1'!$Q$9, 0)","v":{"v":0,"d":"$0.00"}},{"$f":"IFERROR('MMA Rev-Exp Region 1'!$R$59/'MMA Rev-Exp Region 1'!$R$9, 0)","v":{"v":0,"d":"$0.00"}},{"$f":"IFERROR('MMA Rev-Exp Region 1'!$S$59/'MMA Rev-Exp Region 1'!$S$9, 0)","v":{"v":0,"d":"$0.00"}},{"$f":"IFERROR('MMA Rev-Exp Region 1'!$T$59/'MMA Rev-Exp Region 1'!$T$9, 0)","v":{"v":0,"d":"$0.00"}},{"$f":"IFERROR('MMA Rev-Exp Region 1'!$U$59/'MMA Rev-Exp Region 1'!$U$9, 0)","v":{"v":0,"d":"$0.00"}},{"$f":"IFERROR('MMA Rev-Exp Region 1'!$V$59/'MMA Rev-Exp Region 1'!$V$9, 0)","v":{"v":0,"d":"$0.00"}},{"$f":"IFERROR('MMA Rev-Exp Region 1'!$W$59/'MMA Rev-Exp Region 1'!$W$9, 0)","v":{"v":0,"d":"$0.00"}},{"$f":"IFERROR('MMA Rev-Exp Region 1'!$X$59/'MMA Rev-Exp Region 1'!$X$9, 0)","v":{"v":0,"d":"$0.00"}},{"$f":"IFERROR('MMA Rev-Exp Region 1'!$Y$59/'MMA Rev-Exp Region 1'!$Y$9, 0)","v":{"v":0,"d":"$0.00"}}]
["MMA",null,null,{"$f":"Jurat!I$1","v":0},{"$f":"Jurat!D$33","v":"00:00:00"},"Q2","2017-06-30","Region 1","Operating Expense","Medical Benefits Expense","Pharmacy Services","8.5","Ending accrual for Rebates receivable",{"$f":"IFERROR('MMA Rev-Exp Region 1'!$O$60/'MMA Rev-Exp Region 1'!$O$9, 0)","v":{"v":0,"d":"$0.00"}},{"$f":"IFERROR('MMA Rev-Exp Region 1'!$P$60/'MMA Rev-Exp Region 1'!$P$9, 0)","v":{"v":0,"d":"$0.00"}},{"$f":"IFERROR('MMA Rev-Exp Region 1'!$Q$60/'MMA Rev-Exp Region 1'!$Q$9, 0)","v":{"v":0,"d":"$0.00"}},{"$f":"IFERROR('MMA Rev-Exp Region 1'!$R$60/'MMA Rev-Exp Region 1'!$R$9, 0)","v":{"v":0,"d":"$0.00"}},{"$f":"IFERROR('MMA Rev-Exp Region 1'!$S$60/'MMA Rev-Exp Region 1'!$S$9, 0)","v":{"v":0,"d":"$0.00"}},{"$f":"IFERROR('MMA Rev-Exp Region 1'!$T$60/'MMA Rev-Exp Region 1'!$T$9, 0)","v":{"v":0,"d":"$0.00"}},{"$f":"IFERROR('MMA Rev-Exp Region 1'!$U$60/'MMA Rev-Exp Region 1'!$U$9, 0)","v":{"v":0,"d":"$0.00"}},{"$f":"IFERROR('MMA Rev-Exp Region 1'!$V$60/'MMA Rev-Exp Region 1'!$V$9, 0)","v":{"v":0,"d":"$0.00"}},{"$f":"IFERROR('MMA Rev-Exp Region 1'!$W$60/'MMA Rev-Exp Region 1'!$W$9, 0)","v":{"v":0,"d":"$0.00"}},{"$f":"IFERROR('MMA Rev-Exp Region 1'!$X$60/'MMA Rev-Exp Region 1'!$X$9, 0)","v":{"v":0,"d":"$0.00"}},{"$f":"IFERROR('MMA Rev-Exp Region 1'!$Y$60/'MMA Rev-Exp Region 1'!$Y$9, 0)","v":{"v":0,"d":"$0.00"}}]
["MMA",null,null,{"$f":"Jurat!I$1","v":0},{"$f":"Jurat!D$33","v":"00:00:00"},"Q2","2017-06-30","Region 1","Operating Expense","Medical Benefits Expense","Pharmacy Services","8.6","Prescription Drugs Subcapitation",{"$f":"IFERROR('MMA Rev-Exp Region 1'!$O$61/'MMA Rev-Exp Region 1'!$O$9, 0)","v":{"v":0,"d":"$0.00"}},{"$f":"IFERROR('MMA Rev-Exp Region 1'!$P$61/'MMA Rev-Exp Region 1'!$P$9, 0)","v":{"v":0,"d":"$0.00"}},{"$f":"IFERROR('MMA Rev-Exp Region 1'!$Q$61/'MMA Rev-Exp Region 1'!$Q$9, 0)","v":{"v":0,"d":"$0.00"}},{"$f":"IFERROR('MMA Rev-Exp Region 1'!$R$61/'MMA Rev-Exp Region 1'!$R$9, 0)","v":{"v":0,"d":"$0.00"}},{"$f":"IFERROR('MMA Rev-Exp Region 1'!$S$61/'MMA Rev-Exp Region 1'!$S$9, 0)","v":{"v":0,"d":"$0.00"}},{"$f":"IFERROR('MMA Rev-Exp Region 1'!$T$61/'MMA Rev-Exp Region 1'!$T$9, 0)","v":{"v":0,"d":"$0.00"}},{"$f":"IFERROR('MMA Rev-Exp Region 1'!$U$61/'MMA Rev-Exp Region 1'!$U$9, 0)","v":{"v":0,"d":"$0.00"}},{"$f":"IFERROR('MMA Rev-Exp Region 1'!$V$61/'MMA Rev-Exp Region 1'!$V$9, 0)","v":{"v":0,"d":"$0.00"}},{"$f":"IFERROR('MMA Rev-Exp Region 1'!$W$61/'MMA Rev-Exp Region 1'!$W$9, 0)","v":{"v":0,"d":"$0.00"}},{"$f":"IFERROR('MMA Rev-Exp Region 1'!$X$61/'MMA Rev-Exp Region 1'!$X$9, 0)","v":{"v":0,"d":"$0.00"}},{"$f":"IFERROR('MMA Rev-Exp Region 1'!$Y$61/'MMA Rev-Exp Region 1'!$Y$9, 0)","v":{"v":0,"d":"$0.00"}}]
["MMA",null,null,{"$f":"Jurat!I$1","v":0},{"$f":"Jurat!D$33","v":"00:00:00"},"Q2","2017-06-30","Region 1","Operating Expense","Medical Benefits Expense","Pharmacy Services","8.7","Prescription Drug Settlements",{"$f":"IFERROR('MMA Rev-Exp Region 1'!$O$62/'MMA Rev-Exp Region 1'!$O$9, 0)","v":{"v":0,"d":"$0.00"}},{"$f":"IFERROR('MMA Rev-Exp Region 1'!$P$62/'MMA Rev-Exp Region 1'!$P$9, 0)","v":{"v":0,"d":"$0.00"}},{"$f":"IFERROR('MMA Rev-Exp Region 1'!$Q$62/'MMA Rev-Exp Region 1'!$Q$9, 0)","v":{"v":0,"d":"$0.00"}},{"$f":"IFERROR('MMA Rev-Exp Region 1'!$R$62/'MMA Rev-Exp Region 1'!$R$9, 0)","v":{"v":0,"d":"$0.00"}},{"$f":"IFERROR('MMA Rev-Exp Region 1'!$S$62/'MMA Rev-Exp Region 1'!$S$9, 0)","v":{"v":0,"d":"$0.00"}},{"$f":"IFERROR('MMA Rev-Exp Region 1'!$T$62/'MMA Rev-Exp Region 1'!$T$9, 0)","v":{"v":0,"d":"$0.00"}},{"$f":"IFERROR('MMA Rev-Exp Region 1'!$U$62/'MMA Rev-Exp Region 1'!$U$9, 0)","v":{"v":0,"d":"$0.00"}},{"$f":"IFERROR('MMA Rev-Exp Region 1'!$V$62/'MMA Rev-Exp Region 1'!$V$9, 0)","v":{"v":0,"d":"$0.00"}},{"$f":"IFERROR('MMA Rev-Exp Region 1'!$W$62/'MMA Rev-Exp Region 1'!$W$9, 0)","v":{"v":0,"d":"$0.00"}},{"$f":"IFERROR('MMA Rev-Exp Region 1'!$X$62/'MMA Rev-Exp Region 1'!$X$9, 0)","v":{"v":0,"d":"$0.00"}},{"$f":"IFERROR('MMA Rev-Exp Region 1'!$Y$62/'MMA Rev-Exp Region 1'!$Y$9, 0)","v":{"v":0,"d":"$0.00"}}]
["MMA",null,null,{"$f":"Jurat!I$1","v":0},{"$f":"Jurat!D$33","v":"00:00:00"},"Q2","2017-06-30","Region 1","Operating Expense","Medical Benefits Expense","Other MMA Services",9.1,"Home Health, Private Duty Nursing, Personal Care FFS",{"$f":"IFERROR('MMA Rev-Exp Region 1'!$O$64/'MMA Rev-Exp Region 1'!$O$9, 0)","v":{"v":0,"d":"$0.00"}},{"$f":"IFERROR('MMA Rev-Exp Region 1'!$P$64/'MMA Rev-Exp Region 1'!$P$9, 0)","v":{"v":0,"d":"$0.00"}},{"$f":"IFERROR('MMA Rev-Exp Region 1'!$Q$64/'MMA Rev-Exp Region 1'!$Q$9, 0)","v":{"v":0,"d":"$0.00"}},{"$f":"IFERROR('MMA Rev-Exp Region 1'!$R$64/'MMA Rev-Exp Region 1'!$R$9, 0)","v":{"v":0,"d":"$0.00"}},{"$f":"IFERROR('MMA Rev-Exp Region 1'!$S$64/'MMA Rev-Exp Region 1'!$S$9, 0)","v":{"v":0,"d":"$0.00"}},{"$f":"IFERROR('MMA Rev-Exp Region 1'!$T$64/'MMA Rev-Exp Region 1'!$T$9, 0)","v":{"v":0,"d":"$0.00"}},{"$f":"IFERROR('MMA Rev-Exp Region 1'!$U$64/'MMA Rev-Exp Region 1'!$U$9, 0)","v":{"v":0,"d":"$0.00"}},{"$f":"IFERROR('MMA Rev-Exp Region 1'!$V$64/'MMA Rev-Exp Region 1'!$V$9, 0)","v":{"v":0,"d":"$0.00"}},{"$f":"IFERROR('MMA Rev-Exp Region 1'!$W$64/'MMA Rev-Exp Region 1'!$W$9, 0)","v":{"v":0,"d":"$0.00"}},{"$f":"IFERROR('MMA Rev-Exp Region 1'!$X$64/'MMA Rev-Exp Region 1'!$X$9, 0)","v":{"v":0,"d":"$0.00"}},{"$f":"IFERROR('MMA Rev-Exp Region 1'!$Y$64/'MMA Rev-Exp Region 1'!$Y$9, 0)","v":{"v":0,"d":"$0.00"}}]
["MMA",null,null,{"$f":"Jurat!I$1","v":0},{"$f":"Jurat!D$33","v":"00:00:00"},"Q2","2017-06-30","Region 1","Operating Expense","Medical Benefits Expense","Other MMA Services","9.2","Hospice FFS",{"$f":"IFERROR('MMA Rev-Exp Region 1'!$O$65/'MMA Rev-Exp Region 1'!$O$9, 0)","v":{"v":0,"d":"$0.00"}},{"$f":"IFERROR('MMA Rev-Exp Region 1'!$P$65/'MMA Rev-Exp Region 1'!$P$9, 0)","v":{"v":0,"d":"$0.00"}},{"$f":"IFERROR('MMA Rev-Exp Region 1'!$Q$65/'MMA Rev-Exp Region 1'!$Q$9, 0)","v":{"v":0,"d":"$0.00"}},{"$f":"IFERROR('MMA Rev-Exp Region 1'!$R$65/'MMA Rev-Exp Region 1'!$R$9, 0)","v":{"v":0,"d":"$0.00"}},{"$f":"IFERROR('MMA Rev-Exp Region 1'!$S$65/'MMA Rev-Exp Region 1'!$S$9, 0)","v":{"v":0,"d":"$0.00"}},{"$f":"IFERROR('MMA Rev-Exp Region 1'!$T$65/'MMA Rev-Exp Region 1'!$T$9, 0)","v":{"v":0,"d":"$0.00"}},{"$f":"IFERROR('MMA Rev-Exp Region 1'!$U$65/'MMA Rev-Exp Region 1'!$U$9, 0)","v":{"v":0,"d":"$0.00"}},{"$f":"IFERROR('MMA Rev-Exp Region 1'!$V$65/'MMA Rev-Exp Region 1'!$V$9, 0)","v":{"v":0,"d":"$0.00"}},{"$f":"IFERROR('MMA Rev-Exp Region 1'!$W$65/'MMA Rev-Exp Region 1'!$W$9, 0)","v":{"v":0,"d":"$0.00"}},{"$f":"IFERROR('MMA Rev-Exp Region 1'!$X$65/'MMA Rev-Exp Region 1'!$X$9, 0)","v":{"v":0,"d":"$0.00"}},{"$f":"IFERROR('MMA Rev-Exp Region 1'!$Y$65/'MMA Rev-Exp Region 1'!$Y$9, 0)","v":{"v":0,"d":"$0.00"}}]
["MMA",null,null,{"$f":"Jurat!I$1","v":0},{"$f":"Jurat!D$33","v":"00:00:00"},"Q2","2017-06-30","Region 1","Operating Expense","Medical Benefits Expense","Other MMA Services","9.3","DME FFS",{"$f":"IFERROR('MMA Rev-Exp Region 1'!$O$66/'MMA Rev-Exp Region 1'!$O$9, 0)","v":{"v":0,"d":"$0.00"}},{"$f":"IFERROR('MMA Rev-Exp Region 1'!$P$66/'MMA Rev-Exp Region 1'!$P$9, 0)","v":{"v":0,"d":"$0.00"}},{"$f":"IFERROR('MMA Rev-Exp Region 1'!$Q$66/'MMA Rev-Exp Region 1'!$Q$9, 0)","v":{"v":0,"d":"$0.00"}},{"$f":"IFERROR('MMA Rev-Exp Region 1'!$R$66/'MMA Rev-Exp Region 1'!$R$9, 0)","v":{"v":0,"d":"$0.00"}},{"$f":"IFERROR('MMA Rev-Exp Region 1'!$S$66/'MMA Rev-Exp Region 1'!$S$9, 0)","v":{"v":0,"d":"$0.00"}},{"$f":"IFERROR('MMA Rev-Exp Region 1'!$T$66/'MMA Rev-Exp Region 1'!$T$9, 0)","v":{"v":0,"d":"$0.00"}},{"$f":"IFERROR('MMA Rev-Exp Region 1'!$U$66/'MMA Rev-Exp Region 1'!$U$9, 0)","v":{"v":0,"d":"$0.00"}},{"$f":"IFERROR('MMA Rev-Exp Region 1'!$V$66/'MMA Rev-Exp Region 1'!$V$9, 0)","v":{"v":0,"d":"$0.00"}},{"$f":"IFERROR('MMA Rev-Exp Region 1'!$W$66/'MMA Rev-Exp Region 1'!$W$9, 0)","v":{"v":0,"d":"$0.00"}},{"$f":"IFERROR('MMA Rev-Exp Region 1'!$X$66/'MMA Rev-Exp Region 1'!$X$9, 0)","v":{"v":0,"d":"$0.00"}},{"$f":"IFERROR('MMA Rev-Exp Region 1'!$Y$66/'MMA Rev-Exp Region 1'!$Y$9, 0)","v":{"v":0,"d":"$0.00"}}]
["MMA",null,null,{"$f":"Jurat!I$1","v":0},{"$f":"Jurat!D$33","v":"00:00:00"},"Q2","2017-06-30","Region 1","Operating Expense","Medical Benefits Expense","Other MMA Services","9.4","Other State Plan Services FFS",{"$f":"IFERROR('MMA Rev-Exp Region 1'!$O$67/'MMA Rev-Exp Region 1'!$O$9, 0)","v":{"v":0,"d":"$0.00"}},{"$f":"IFERROR('MMA Rev-Exp Region 1'!$P$67/'MMA Rev-Exp Region 1'!$P$9, 0)","v":{"v":0,"d":"$0.00"}},{"$f":"IFERROR('MMA Rev-Exp Region 1'!$Q$67/'MMA Rev-Exp Region 1'!$Q$9, 0)","v":{"v":0,"d":"$0.00"}},{"$f":"IFERROR('MMA Rev-Exp Region 1'!$R$67/'MMA Rev-Exp Region 1'!$R$9, 0)","v":{"v":0,"d":"$0.00"}},{"$f":"IFERROR('MMA Rev-Exp Region 1'!$S$67/'MMA Rev-Exp Region 1'!$S$9, 0)","v":{"v":0,"d":"$0.00"}},{"$f":"IFERROR('MMA Rev-Exp Region 1'!$T$67/'MMA Rev-Exp Region 1'!$T$9, 0)","v":{"v":0,"d":"$0.00"}},{"$f":"IFERROR('MMA Rev-Exp Region 1'!$U$67/'MMA Rev-Exp Region 1'!$U$9, 0)","v":{"v":0,"d":"$0.00"}},{"$f":"IFERROR('MMA Rev-Exp Region 1'!$V$67/'MMA Rev-Exp Region 1'!$V$9, 0)","v":{"v":0,"d":"$0.00"}},{"$f":"IFERROR('MMA Rev-Exp Region 1'!$W$67/'MMA Rev-Exp Region 1'!$W$9, 0)","v":{"v":0,"d":"$0.00"}},{"$f":"IFERROR('MMA Rev-Exp Region 1'!$X$67/'MMA Rev-Exp Region 1'!$X$9, 0)","v":{"v":0,"d":"$0.00"}},{"$f":"IFERROR('MMA Rev-Exp Region 1'!$Y$67/'MMA Rev-Exp Region 1'!$Y$9, 0)","v":{"v":0,"d":"$0.00"}}]
["MMA",null,null,{"$f":"Jurat!I$1","v":0},{"$f":"Jurat!D$33","v":"00:00:00"},"Q2","2017-06-30","Region 1","Operating Expense","Medical Benefits Expense","Other MMA Services","9.5","Other Services Subcapitation",{"$f":"IFERROR('MMA Rev-Exp Region 1'!$O$68/'MMA Rev-Exp Region 1'!$O$9, 0)","v":{"v":0,"d":"$0.00"}},{"$f":"IFERROR('MMA Rev-Exp Region 1'!$P$68/'MMA Rev-Exp Region 1'!$P$9, 0)","v":{"v":0,"d":"$0.00"}},{"$f":"IFERROR('MMA Rev-Exp Region 1'!$Q$68/'MMA Rev-Exp Region 1'!$Q$9, 0)","v":{"v":0,"d":"$0.00"}},{"$f":"IFERROR('MMA Rev-Exp Region 1'!$R$68/'MMA Rev-Exp Region 1'!$R$9, 0)","v":{"v":0,"d":"$0.00"}},{"$f":"IFERROR('MMA Rev-Exp Region 1'!$S$68/'MMA Rev-Exp Region 1'!$S$9, 0)","v":{"v":0,"d":"$0.00"}},{"$f":"IFERROR('MMA Rev-Exp Region 1'!$T$68/'MMA Rev-Exp Region 1'!$T$9, 0)","v":{"v":0,"d":"$0.00"}},{"$f":"IFERROR('MMA Rev-Exp Region 1'!$U$68/'MMA Rev-Exp Region 1'!$U$9, 0)","v":{"v":0,"d":"$0.00"}},{"$f":"IFERROR('MMA Rev-Exp Region 1'!$V$68/'MMA Rev-Exp Region 1'!$V$9, 0)","v":{"v":0,"d":"$0.00"}},{"$f":"IFERROR('MMA Rev-Exp Region 1'!$W$68/'MMA Rev-Exp Region 1'!$W$9, 0)","v":{"v":0,"d":"$0.00"}},{"$f":"IFERROR('MMA Rev-Exp Region 1'!$X$68/'MMA Rev-Exp Region 1'!$X$9, 0)","v":{"v":0,"d":"$0.00"}},{"$f":"IFERROR('MMA Rev-Exp Region 1'!$Y$68/'MMA Rev-Exp Region 1'!$Y$9, 0)","v":{"v":0,"d":"$0.00"}}]
["MMA",null,null,{"$f":"Jurat!I$1","v":0},{"$f":"Jurat!D$33","v":"00:00:00"},"Q2","2017-06-30","Region 1","Operating Expense","Medical Benefits Expense","Other MMA Services","9.6","Ending IBNP for Other Services",{"$f":"IFERROR('MMA Rev-Exp Region 1'!$O$69/'MMA Rev-Exp Region 1'!$O$9, 0)","v":{"v":0,"d":"$0.00"}},{"$f":"IFERROR('MMA Rev-Exp Region 1'!$P$69/'MMA Rev-Exp Region 1'!$P$9, 0)","v":{"v":0,"d":"$0.00"}},{"$f":"IFERROR('MMA Rev-Exp Region 1'!$Q$69/'MMA Rev-Exp Region 1'!$Q$9, 0)","v":{"v":0,"d":"$0.00"}},{"$f":"IFERROR('MMA Rev-Exp Region 1'!$R$69/'MMA Rev-Exp Region 1'!$R$9, 0)","v":{"v":0,"d":"$0.00"}},{"$f":"IFERROR('MMA Rev-Exp Region 1'!$S$69/'MMA Rev-Exp Region 1'!$S$9, 0)","v":{"v":0,"d":"$0.00"}},{"$f":"IFERROR('MMA Rev-Exp Region 1'!$T$69/'MMA Rev-Exp Region 1'!$T$9, 0)","v":{"v":0,"d":"$0.00"}},{"$f":"IFERROR('MMA Rev-Exp Region 1'!$U$69/'MMA Rev-Exp Region 1'!$U$9, 0)","v":{"v":0,"d":"$0.00"}},{"$f":"IFERROR('MMA Rev-Exp Region 1'!$V$69/'MMA Rev-Exp Region 1'!$V$9, 0)","v":{"v":0,"d":"$0.00"}},{"$f":"IFERROR('MMA Rev-Exp Region 1'!$W$69/'MMA Rev-Exp Region 1'!$W$9, 0)","v":{"v":0,"d":"$0.00"}},{"$f":"IFERROR('MMA Rev-Exp Region 1'!$X$69/'MMA Rev-Exp Region 1'!$X$9, 0)","v":{"v":0,"d":"$0.00"}},{"$f":"IFERROR('MMA Rev-Exp Region 1'!$Y$69/'MMA Rev-Exp Region 1'!$Y$9, 0)","v":{"v":0,"d":"$0.00"}}]
["MMA",null,null,{"$f":"Jurat!I$1","v":0},{"$f":"Jurat!D$33","v":"00:00:00"},"Q2","2017-06-30","Region 1","Operating Expense","Medical Benefits Expense","Other MMA Services","9.7","Other Services Settlements",{"$f":"IFERROR('MMA Rev-Exp Region 1'!$O$70/'MMA Rev-Exp Region 1'!$O$9, 0)","v":{"v":0,"d":"$0.00"}},{"$f":"IFERROR('MMA Rev-Exp Region 1'!$P$70/'MMA Rev-Exp Region 1'!$P$9, 0)","v":{"v":0,"d":"$0.00"}},{"$f":"IFERROR('MMA Rev-Exp Region 1'!$Q$70/'MMA Rev-Exp Region 1'!$Q$9, 0)","v":{"v":0,"d":"$0.00"}},{"$f":"IFERROR('MMA Rev-Exp Region 1'!$R$70/'MMA Rev-Exp Region 1'!$R$9, 0)","v":{"v":0,"d":"$0.00"}},{"$f":"IFERROR('MMA Rev-Exp Region 1'!$S$70/'MMA Rev-Exp Region 1'!$S$9, 0)","v":{"v":0,"d":"$0.00"}},{"$f":"IFERROR('MMA Rev-Exp Region 1'!$T$70/'MMA Rev-Exp Region 1'!$T$9, 0)","v":{"v":0,"d":"$0.00"}},{"$f":"IFERROR('MMA Rev-Exp Region 1'!$U$70/'MMA Rev-Exp Region 1'!$U$9, 0)","v":{"v":0,"d":"$0.00"}},{"$f":"IFERROR('MMA Rev-Exp Region 1'!$V$70/'MMA Rev-Exp Region 1'!$V$9, 0)","v":{"v":0,"d":"$0.00"}},{"$f":"IFERROR('MMA Rev-Exp Region 1'!$W$70/'MMA Rev-Exp Region 1'!$W$9, 0)","v":{"v":0,"d":"$0.00"}},{"$f":"IFERROR('MMA Rev-Exp Region 1'!$X$70/'MMA Rev-Exp Region 1'!$X$9, 0)","v":{"v":0,"d":"$0.00"}},{"$f":"IFERROR('MMA Rev-Exp Region 1'!$Y$70/'MMA Rev-Exp Region 1'!$Y$9, 0)","v":{"v":0,"d":"$0.00"}}]
["MMA",null,null,{"$f":"Jurat!I$1","v":0},{"$f":"Jurat!D$33","v":"00:00:00"},"Q2","2017-06-30","Region 1","Operating Expense","Medical Benefits Expense","Expanded Benefits","10.1","Expanded Benefits FFS",{"$f":"IFERROR('MMA Rev-Exp Region 1'!$O$72/'MMA Rev-Exp Region 1'!$O$9, 0)","v":{"v":0,"d":"$0.00"}},{"$f":"IFERROR('MMA Rev-Exp Region 1'!$P$72/'MMA Rev-Exp Region 1'!$P$9, 0)","v":{"v":0,"d":"$0.00"}},{"$f":"IFERROR('MMA Rev-Exp Region 1'!$Q$72/'MMA Rev-Exp Region 1'!$Q$9, 0)","v":{"v":0,"d":"$0.00"}},{"$f":"IFERROR('MMA Rev-Exp Region 1'!$R$72/'MMA Rev-Exp Region 1'!$R$9, 0)","v":{"v":0,"d":"$0.00"}},{"$f":"IFERROR('MMA Rev-Exp Region 1'!$S$72/'MMA Rev-Exp Region 1'!$S$9, 0)","v":{"v":0,"d":"$0.00"}},{"$f":"IFERROR('MMA Rev-Exp Region 1'!$T$72/'MMA Rev-Exp Region 1'!$T$9, 0)","v":{"v":0,"d":"$0.00"}},{"$f":"IFERROR('MMA Rev-Exp Region 1'!$U$72/'MMA Rev-Exp Region 1'!$U$9, 0)","v":{"v":0,"d":"$0.00"}},{"$f":"IFERROR('MMA Rev-Exp Region 1'!$V$72/'MMA Rev-Exp Region 1'!$V$9, 0)","v":{"v":0,"d":"$0.00"}},{"$f":"IFERROR('MMA Rev-Exp Region 1'!$W$72/'MMA Rev-Exp Region 1'!$W$9, 0)","v":{"v":0,"d":"$0.00"}},{"$f":"IFERROR('MMA Rev-Exp Region 1'!$X$72/'MMA Rev-Exp Region 1'!$X$9, 0)","v":{"v":0,"d":"$0.00"}},{"$f":"IFERROR('MMA Rev-Exp Region 1'!$Y$72/'MMA Rev-Exp Region 1'!$Y$9, 0)","v":{"v":0,"d":"$0.00"}}]
["MMA",null,null,{"$f":"Jurat!I$1","v":0},{"$f":"Jurat!D$33","v":"00:00:00"},"Q2","2017-06-30","Region 1","Operating Expense","Medical Benefits Expense","Expanded Benefits","10.2","Expanded benefits Subcapitation",{"$f":"IFERROR('MMA Rev-Exp Region 1'!$O$73/'MMA Rev-Exp Region 1'!$O$9, 0)","v":{"v":0,"d":"$0.00"}},{"$f":"IFERROR('MMA Rev-Exp Region 1'!$P$73/'MMA Rev-Exp Region 1'!$P$9, 0)","v":{"v":0,"d":"$0.00"}},{"$f":"IFERROR('MMA Rev-Exp Region 1'!$Q$73/'MMA Rev-Exp Region 1'!$Q$9, 0)","v":{"v":0,"d":"$0.00"}},{"$f":"IFERROR('MMA Rev-Exp Region 1'!$R$73/'MMA Rev-Exp Region 1'!$R$9, 0)","v":{"v":0,"d":"$0.00"}},{"$f":"IFERROR('MMA Rev-Exp Region 1'!$S$73/'MMA Rev-Exp Region 1'!$S$9, 0)","v":{"v":0,"d":"$0.00"}},{"$f":"IFERROR('MMA Rev-Exp Region 1'!$T$73/'MMA Rev-Exp Region 1'!$T$9, 0)","v":{"v":0,"d":"$0.00"}},{"$f":"IFERROR('MMA Rev-Exp Region 1'!$U$73/'MMA Rev-Exp Region 1'!$U$9, 0)","v":{"v":0,"d":"$0.00"}},{"$f":"IFERROR('MMA Rev-Exp Region 1'!$V$73/'MMA Rev-Exp Region 1'!$V$9, 0)","v":{"v":0,"d":"$0.00"}},{"$f":"IFERROR('MMA Rev-Exp Region 1'!$W$73/'MMA Rev-Exp Region 1'!$W$9, 0)","v":{"v":0,"d":"$0.00"}},{"$f":"IFERROR('MMA Rev-Exp Region 1'!$X$73/'MMA Rev-Exp Region 1'!$X$9, 0)","v":{"v":0,"d":"$0.00"}},{"$f":"IFERROR('MMA Rev-Exp Region 1'!$Y$73/'MMA Rev-Exp Region 1'!$Y$9, 0)","v":{"v":0,"d":"$0.00"}}]
["MMA",null,null,{"$f":"Jurat!I$1","v":0},{"$f":"Jurat!D$33","v":"00:00:00"},"Q2","2017-06-30","Region 1","Operating Expense","Medical Benefits Expense","Expanded Benefits","10.3","Ending IBNP for Expanded Benefits",{"$f":"IFERROR('MMA Rev-Exp Region 1'!$O$74/'MMA Rev-Exp Region 1'!$O$9, 0)","v":{"v":0,"d":"$0.00"}},{"$f":"IFERROR('MMA Rev-Exp Region 1'!$P$74/'MMA Rev-Exp Region 1'!$P$9, 0)","v":{"v":0,"d":"$0.00"}},{"$f":"IFERROR('MMA Rev-Exp Region 1'!$Q$74/'MMA Rev-Exp Region 1'!$Q$9, 0)","v":{"v":0,"d":"$0.00"}},{"$f":"IFERROR('MMA Rev-Exp Region 1'!$R$74/'MMA Rev-Exp Region 1'!$R$9, 0)","v":{"v":0,"d":"$0.00"}},{"$f":"IFERROR('MMA Rev-Exp Region 1'!$S$74/'MMA Rev-Exp Region 1'!$S$9, 0)","v":{"v":0,"d":"$0.00"}},{"$f":"IFERROR('MMA Rev-Exp Region 1'!$T$74/'MMA Rev-Exp Region 1'!$T$9, 0)","v":{"v":0,"d":"$0.00"}},{"$f":"IFERROR('MMA Rev-Exp Region 1'!$U$74/'MMA Rev-Exp Region 1'!$U$9, 0)","v":{"v":0,"d":"$0.00"}},{"$f":"IFERROR('MMA Rev-Exp Region 1'!$V$74/'MMA Rev-Exp Region 1'!$V$9, 0)","v":{"v":0,"d":"$0.00"}},{"$f":"IFERROR('MMA Rev-Exp Region 1'!$W$74/'MMA Rev-Exp Region 1'!$W$9, 0)","v":{"v":0,"d":"$0.00"}},{"$f":"IFERROR('MMA Rev-Exp Region 1'!$X$74/'MMA Rev-Exp Region 1'!$X$9, 0)","v":{"v":0,"d":"$0.00"}},{"$f":"IFERROR('MMA Rev-Exp Region 1'!$Y$74/'MMA Rev-Exp Region 1'!$Y$9, 0)","v":{"v":0,"d":"$0.00"}}]
["MMA",null,null,{"$f":"Jurat!I$1","v":0},{"$f":"Jurat!D$33","v":"00:00:00"},"Q2","2017-06-30","Region 1","Operating Expense","Medical Benefits Expense","Expanded Benefits","10.4","Expanded Benefits Settlements",{"$f":"IFERROR('MMA Rev-Exp Region 1'!$O$75/'MMA Rev-Exp Region 1'!$O$9, 0)","v":{"v":0,"d":"$0.00"}},{"$f":"IFERROR('MMA Rev-Exp Region 1'!$P$75/'MMA Rev-Exp Region 1'!$P$9, 0)","v":{"v":0,"d":"$0.00"}},{"$f":"IFERROR('MMA Rev-Exp Region 1'!$Q$75/'MMA Rev-Exp Region 1'!$Q$9, 0)","v":{"v":0,"d":"$0.00"}},{"$f":"IFERROR('MMA Rev-Exp Region 1'!$R$75/'MMA Rev-Exp Region 1'!$R$9, 0)","v":{"v":0,"d":"$0.00"}},{"$f":"IFERROR('MMA Rev-Exp Region 1'!$S$75/'MMA Rev-Exp Region 1'!$S$9, 0)","v":{"v":0,"d":"$0.00"}},{"$f":"IFERROR('MMA Rev-Exp Region 1'!$T$75/'MMA Rev-Exp Region 1'!$T$9, 0)","v":{"v":0,"d":"$0.00"}},{"$f":"IFERROR('MMA Rev-Exp Region 1'!$U$75/'MMA Rev-Exp Region 1'!$U$9, 0)","v":{"v":0,"d":"$0.00"}},{"$f":"IFERROR('MMA Rev-Exp Region 1'!$V$75/'MMA Rev-Exp Region 1'!$V$9, 0)","v":{"v":0,"d":"$0.00"}},{"$f":"IFERROR('MMA Rev-Exp Region 1'!$W$75/'MMA Rev-Exp Region 1'!$W$9, 0)","v":{"v":0,"d":"$0.00"}},{"$f":"IFERROR('MMA Rev-Exp Region 1'!$X$75/'MMA Rev-Exp Region 1'!$X$9, 0)","v":{"v":0,"d":"$0.00"}},{"$f":"IFERROR('MMA Rev-Exp Region 1'!$Y$75/'MMA Rev-Exp Region 1'!$Y$9, 0)","v":{"v":0,"d":"$0.00"}}]
["MMA",null,null,{"$f":"Jurat!I$1","v":0},{"$f":"Jurat!D$33","v":"00:00:00"},"Q2","2017-06-30","Region 1","Operating Expense","Medical Benefits Expense","Other Medical","11.5","TPL & Fraud/Abuse Recoveries",{"$f":"IFERROR('MMA Rev-Exp Region 1'!$O$81/'MMA Rev-Exp Region 1'!$O$9, 0)","v":{"v":0,"d":"$0.00"}},{"$f":"IFERROR('MMA Rev-Exp Region 1'!$P$81/'MMA Rev-Exp Region 1'!$P$9, 0)","v":{"v":0,"d":"$0.00"}},{"$f":"IFERROR('MMA Rev-Exp Region 1'!$Q$81/'MMA Rev-Exp Region 1'!$Q$9, 0)","v":{"v":0,"d":"$0.00"}},{"$f":"IFERROR('MMA Rev-Exp Region 1'!$R$81/'MMA Rev-Exp Region 1'!$R$9, 0)","v":{"v":0,"d":"$0.00"}},{"$f":"IFERROR('MMA Rev-Exp Region 1'!$S$81/'MMA Rev-Exp Region 1'!$S$9, 0)","v":{"v":0,"d":"$0.00"}},{"$f":"IFERROR('MMA Rev-Exp Region 1'!$T$81/'MMA Rev-Exp Region 1'!$T$9, 0)","v":{"v":0,"d":"$0.00"}},{"$f":"IFERROR('MMA Rev-Exp Region 1'!$U$81/'MMA Rev-Exp Region 1'!$U$9, 0)","v":{"v":0,"d":"$0.00"}},{"$f":"IFERROR('MMA Rev-Exp Region 1'!$V$81/'MMA Rev-Exp Region 1'!$V$9, 0)","v":{"v":0,"d":"$0.00"}},{"$f":"IFERROR('MMA Rev-Exp Region 1'!$W$81/'MMA Rev-Exp Region 1'!$W$9, 0)","v":{"v":0,"d":"$0.00"}},{"$f":"IFERROR('MMA Rev-Exp Region 1'!$X$81/'MMA Rev-Exp Region 1'!$X$9, 0)","v":{"v":0,"d":"$0.00"}},{"$f":"IFERROR('MMA Rev-Exp Region 1'!$Y$81/'MMA Rev-Exp Region 1'!$Y$9, 0)","v":{"v":0,"d":"$0.00"}}]
["MMA",null,null,{"$f":"Jurat!I$1","v":0},{"$f":"Jurat!D$33","v":"00:00:00"},"Q2","2017-06-30","Region 1","Operating Expense","Medical Benefits Expense","Other Medical","11.6.1","Premium Deficiency Reserve",{"$f":"IFERROR('MMA Rev-Exp Region 1'!$O$82/'MMA Rev-Exp Region 1'!$O$9, 0)","v":{"v":0,"d":"$0.00"}},{"$f":"IFERROR('MMA Rev-Exp Region 1'!$P$82/'MMA Rev-Exp Region 1'!$P$9, 0)","v":{"v":0,"d":"$0.00"}},{"$f":"IFERROR('MMA Rev-Exp Region 1'!$Q$82/'MMA Rev-Exp Region 1'!$Q$9, 0)","v":{"v":0,"d":"$0.00"}},{"$f":"IFERROR('MMA Rev-Exp Region 1'!$R$82/'MMA Rev-Exp Region 1'!$R$9, 0)","v":{"v":0,"d":"$0.00"}},{"$f":"IFERROR('MMA Rev-Exp Region 1'!$S$82/'MMA Rev-Exp Region 1'!$S$9, 0)","v":{"v":0,"d":"$0.00"}},{"$f":"IFERROR('MMA Rev-Exp Region 1'!$T$82/'MMA Rev-Exp Region 1'!$T$9, 0)","v":{"v":0,"d":"$0.00"}},{"$f":"IFERROR('MMA Rev-Exp Region 1'!$U$82/'MMA Rev-Exp Region 1'!$U$9, 0)","v":{"v":0,"d":"$0.00"}},{"$f":"IFERROR('MMA Rev-Exp Region 1'!$V$82/'MMA Rev-Exp Region 1'!$V$9, 0)","v":{"v":0,"d":"$0.00"}},{"$f":"IFERROR('MMA Rev-Exp Region 1'!$W$82/'MMA Rev-Exp Region 1'!$W$9, 0)","v":{"v":0,"d":"$0.00"}},{"$f":"IFERROR('MMA Rev-Exp Region 1'!$X$82/'MMA Rev-Exp Region 1'!$X$9, 0)","v":{"v":0,"d":"$0.00"}},{"$f":"IFERROR('MMA Rev-Exp Region 1'!$Y$82/'MMA Rev-Exp Region 1'!$Y$9, 0)","v":{"v":0,"d":"$0.00"}}]
["MMA",null,null,{"$f":"Jurat!I$1","v":0},{"$f":"Jurat!D$33","v":"00:00:00"},"Q2","2017-06-30","Region 1","Operating Expense","Medical Benefits Expense","Other Medical","11.8","Reinsurance Premiums",{"$f":"IFERROR('MMA Rev-Exp Region 1'!$O$84/'MMA Rev-Exp Region 1'!$O$9, 0)","v":{"v":0,"d":"$0.00"}},{"$f":"IFERROR('MMA Rev-Exp Region 1'!$P$84/'MMA Rev-Exp Region 1'!$P$9, 0)","v":{"v":0,"d":"$0.00"}},{"$f":"IFERROR('MMA Rev-Exp Region 1'!$Q$84/'MMA Rev-Exp Region 1'!$Q$9, 0)","v":{"v":0,"d":"$0.00"}},{"$f":"IFERROR('MMA Rev-Exp Region 1'!$R$84/'MMA Rev-Exp Region 1'!$R$9, 0)","v":{"v":0,"d":"$0.00"}},{"$f":"IFERROR('MMA Rev-Exp Region 1'!$S$84/'MMA Rev-Exp Region 1'!$S$9, 0)","v":{"v":0,"d":"$0.00"}},{"$f":"IFERROR('MMA Rev-Exp Region 1'!$T$84/'MMA Rev-Exp Region 1'!$T$9, 0)","v":{"v":0,"d":"$0.00"}},{"$f":"IFERROR('MMA Rev-Exp Region 1'!$U$84/'MMA Rev-Exp Region 1'!$U$9, 0)","v":{"v":0,"d":"$0.00"}},{"$f":"IFERROR('MMA Rev-Exp Region 1'!$V$84/'MMA Rev-Exp Region 1'!$V$9, 0)","v":{"v":0,"d":"$0.00"}},{"$f":"IFERROR('MMA Rev-Exp Region 1'!$W$84/'MMA Rev-Exp Region 1'!$W$9, 0)","v":{"v":0,"d":"$0.00"}},{"$f":"IFERROR('MMA Rev-Exp Region 1'!$X$84/'MMA Rev-Exp Region 1'!$X$9, 0)","v":{"v":0,"d":"$0.00"}},{"$f":"IFERROR('MMA Rev-Exp Region 1'!$Y$84/'MMA Rev-Exp Region 1'!$Y$9, 0)","v":{"v":0,"d":"$0.00"}}]
["MMA",null,null,{"$f":"Jurat!I$1","v":0},{"$f":"Jurat!D$33","v":"00:00:00"},"Q2","2017-06-30","Region 1","Operating Expense","Medical Benefits Expense","Other Medical","11.9","Reinsurance Recoveries",{"$f":"IFERROR('MMA Rev-Exp Region 1'!$O$85/'MMA Rev-Exp Region 1'!$O$9, 0)","v":{"v":0,"d":"$0.00"}},{"$f":"IFERROR('MMA Rev-Exp Region 1'!$P$85/'MMA Rev-Exp Region 1'!$P$9, 0)","v":{"v":0,"d":"$0.00"}},{"$f":"IFERROR('MMA Rev-Exp Region 1'!$Q$85/'MMA Rev-Exp Region 1'!$Q$9, 0)","v":{"v":0,"d":"$0.00"}},{"$f":"IFERROR('MMA Rev-Exp Region 1'!$R$85/'MMA Rev-Exp Region 1'!$R$9, 0)","v":{"v":0,"d":"$0.00"}},{"$f":"IFERROR('MMA Rev-Exp Region 1'!$S$85/'MMA Rev-Exp Region 1'!$S$9, 0)","v":{"v":0,"d":"$0.00"}},{"$f":"IFERROR('MMA Rev-Exp Region 1'!$T$85/'MMA Rev-Exp Region 1'!$T$9, 0)","v":{"v":0,"d":"$0.00"}},{"$f":"IFERROR('MMA Rev-Exp Region 1'!$U$85/'MMA Rev-Exp Region 1'!$U$9, 0)","v":{"v":0,"d":"$0.00"}},{"$f":"IFERROR('MMA Rev-Exp Region 1'!$V$85/'MMA Rev-Exp Region 1'!$V$9, 0)","v":{"v":0,"d":"$0.00"}},{"$f":"IFERROR('MMA Rev-Exp Region 1'!$W$85/'MMA Rev-Exp Region 1'!$W$9, 0)","v":{"v":0,"d":"$0.00"}},{"$f":"IFERROR('MMA Rev-Exp Region 1'!$X$85/'MMA Rev-Exp Region 1'!$X$9, 0)","v":{"v":0,"d":"$0.00"}},{"$f":"IFERROR('MMA Rev-Exp Region 1'!$Y$85/'MMA Rev-Exp Region 1'!$Y$9, 0)","v":{"v":0,"d":"$0.00"}}]
["MMA",null,null,{"$f":"Jurat!I$1","v":0},{"$f":"Jurat!D$33","v":"00:00:00"},"Q2","2017-06-30","Region 1","Operating Expense","Administrative Expense","Administrative","12.1","Salaries & Benefits",{"$f":"IFERROR('MMA Rev-Exp Region 1'!$O$90/'MMA Rev-Exp Region 1'!$O$9, 0)","v":{"v":0,"d":"$0.00"}},{"$f":"IFERROR('MMA Rev-Exp Region 1'!$P$90/'MMA Rev-Exp Region 1'!$O$9, 0)","v":{"v":0,"d":"$0.00"}},{"$f":"IFERROR('MMA Rev-Exp Region 1'!$Q$90/'MMA Rev-Exp Region 1'!$O$9, 0)","v":{"v":0,"d":"$0.00"}},{"$f":"IFERROR('MMA Rev-Exp Region 1'!$R$90/'MMA Rev-Exp Region 1'!$R$9, 0)","v":{"v":0,"d":"$0.00"}},{"$f":"IFERROR('MMA Rev-Exp Region 1'!$S$90/'MMA Rev-Exp Region 1'!$S$9, 0)","v":{"v":0,"d":"$0.00"}},{"$f":"IFERROR('MMA Rev-Exp Region 1'!$T$90/'MMA Rev-Exp Region 1'!$T$9, 0)","v":{"v":0,"d":"$0.00"}},{"$f":"IFERROR('MMA Rev-Exp Region 1'!$U$90/'MMA Rev-Exp Region 1'!$U$9, 0)","v":{"v":0,"d":"$0.00"}},{"$f":"IFERROR('MMA Rev-Exp Region 1'!$V$90/'MMA Rev-Exp Region 1'!$V$9, 0)","v":{"v":0,"d":"$0.00"}},{"$f":"IFERROR('MMA Rev-Exp Region 1'!$W$90/'MMA Rev-Exp Region 1'!$W$9, 0)","v":{"v":0,"d":"$0.00"}},{"$f":"IFERROR('MMA Rev-Exp Region 1'!$X$90/'MMA Rev-Exp Region 1'!$X$9, 0)","v":{"v":0,"d":"$0.00"}},{"$f":"IFERROR('MMA Rev-Exp Region 1'!$Y$90/'MMA Rev-Exp Region 1'!$Y$9, 0)","v":{"v":0,"d":"$0.00"}}]
["MMA",null,null,{"$f":"Jurat!I$1","v":0},{"$f":"Jurat!D$33","v":"00:00:00"},"Q2","2017-06-30","Region 1","Operating Expense","Administrative Expense","Administrative","12.2","Administrative Services",{"$f":"IFERROR('MMA Rev-Exp Region 1'!$O$91/'MMA Rev-Exp Region 1'!$O$9, 0)","v":{"v":0,"d":"$0.00"}},{"$f":"IFERROR('MMA Rev-Exp Region 1'!$P$91/'MMA Rev-Exp Region 1'!$O$9, 0)","v":{"v":0,"d":"$0.00"}},{"$f":"IFERROR('MMA Rev-Exp Region 1'!$Q$91/'MMA Rev-Exp Region 1'!$O$9, 0)","v":{"v":0,"d":"$0.00"}},{"$f":"IFERROR('MMA Rev-Exp Region 1'!$R$91/'MMA Rev-Exp Region 1'!$R$9, 0)","v":{"v":0,"d":"$0.00"}},{"$f":"IFERROR('MMA Rev-Exp Region 1'!$S$91/'MMA Rev-Exp Region 1'!$S$9, 0)","v":{"v":0,"d":"$0.00"}},{"$f":"IFERROR('MMA Rev-Exp Region 1'!$T$91/'MMA Rev-Exp Region 1'!$T$9, 0)","v":{"v":0,"d":"$0.00"}},{"$f":"IFERROR('MMA Rev-Exp Region 1'!$U$91/'MMA Rev-Exp Region 1'!$U$9, 0)","v":{"v":0,"d":"$0.00"}},{"$f":"IFERROR('MMA Rev-Exp Region 1'!$V$91/'MMA Rev-Exp Region 1'!$V$9, 0)","v":{"v":0,"d":"$0.00"}},{"$f":"IFERROR('MMA Rev-Exp Region 1'!$W$91/'MMA Rev-Exp Region 1'!$W$9, 0)","v":{"v":0,"d":"$0.00"}},{"$f":"IFERROR('MMA Rev-Exp Region 1'!$X$91/'MMA Rev-Exp Region 1'!$X$9, 0)","v":{"v":0,"d":"$0.00"}},{"$f":"IFERROR('MMA Rev-Exp Region 1'!$Y$91/'MMA Rev-Exp Region 1'!$Y$9, 0)","v":{"v":0,"d":"$0.00"}}]
["MMA",null,null,{"$f":"Jurat!I$1","v":0},{"$f":"Jurat!D$33","v":"00:00:00"},"Q2","2017-06-30","Region 1","Operating Expense","Administrative Expense","Administrative","12.3","Information Systems",{"$f":"IFERROR('MMA Rev-Exp Region 1'!$O$92/'MMA Rev-Exp Region 1'!$O$9, 0)","v":{"v":0,"d":"$0.00"}},{"$f":"IFERROR('MMA Rev-Exp Region 1'!$P$92/'MMA Rev-Exp Region 1'!$O$9, 0)","v":{"v":0,"d":"$0.00"}},{"$f":"IFERROR('MMA Rev-Exp Region 1'!$Q$92/'MMA Rev-Exp Region 1'!$O$9, 0)","v":{"v":0,"d":"$0.00"}},{"$f":"IFERROR('MMA Rev-Exp Region 1'!$R$92/'MMA Rev-Exp Region 1'!$R$9, 0)","v":{"v":0,"d":"$0.00"}},{"$f":"IFERROR('MMA Rev-Exp Region 1'!$S$92/'MMA Rev-Exp Region 1'!$S$9, 0)","v":{"v":0,"d":"$0.00"}},{"$f":"IFERROR('MMA Rev-Exp Region 1'!$T$92/'MMA Rev-Exp Region 1'!$T$9, 0)","v":{"v":0,"d":"$0.00"}},{"$f":"IFERROR('MMA Rev-Exp Region 1'!$U$92/'MMA Rev-Exp Region 1'!$U$9, 0)","v":{"v":0,"d":"$0.00"}},{"$f":"IFERROR('MMA Rev-Exp Region 1'!$V$92/'MMA Rev-Exp Region 1'!$V$9, 0)","v":{"v":0,"d":"$0.00"}},{"$f":"IFERROR('MMA Rev-Exp Region 1'!$W$92/'MMA Rev-Exp Region 1'!$W$9, 0)","v":{"v":0,"d":"$0.00"}},{"$f":"IFERROR('MMA Rev-Exp Region 1'!$X$92/'MMA Rev-Exp Region 1'!$X$9, 0)","v":{"v":0,"d":"$0.00"}},{"$f":"IFERROR('MMA Rev-Exp Region 1'!$Y$92/'MMA Rev-Exp Region 1'!$Y$9, 0)","v":{"v":0,"d":"$0.00"}}]
["MMA",null,null,{"$f":"Jurat!I$1","v":0},{"$f":"Jurat!D$33","v":"00:00:00"},"Q2","2017-06-30","Region 1","Operating Expense","Administrative Expense","Administrative","12.4","Marketing Expenses",{"$f":"IFERROR('MMA Rev-Exp Region 1'!$O$93/'MMA Rev-Exp Region 1'!$O$9, 0)","v":{"v":0,"d":"$0.00"}},{"$f":"IFERROR('MMA Rev-Exp Region 1'!$P$93/'MMA Rev-Exp Region 1'!$O$9, 0)","v":{"v":0,"d":"$0.00"}},{"$f":"IFERROR('MMA Rev-Exp Region 1'!$Q$93/'MMA Rev-Exp Region 1'!$O$9, 0)","v":{"v":0,"d":"$0.00"}}]
["MMA",null,null,{"$f":"Jurat!I$1","v":0},{"$f":"Jurat!D$33","v":"00:00:00"},"Q2","2017-06-30","Region 1","Operating Expense","Administrative Expense","Administrative","12.5","General  Administration",{"$f":"IFERROR('MMA Rev-Exp Region 1'!$O$94/'MMA Rev-Exp Region 1'!$O$9, 0)","v":{"v":0,"d":"$0.00"}},{"$f":"IFERROR('MMA Rev-Exp Region 1'!$P$94/'MMA Rev-Exp Region 1'!$O$9, 0)","v":{"v":0,"d":"$0.00"}},{"$f":"IFERROR('MMA Rev-Exp Region 1'!$Q$94/'MMA Rev-Exp Region 1'!$O$9, 0)","v":{"v":0,"d":"$0.00"}}]
["MMA",null,null,{"$f":"Jurat!I$1","v":0},{"$f":"Jurat!D$33","v":"00:00:00"},"Q2","2017-06-30","Region 1","Operating Expense","Administrative Expense","Administrative","12.6","Compliance/Regulatory",{"$f":"IFERROR('MMA Rev-Exp Region 1'!$O$95/'MMA Rev-Exp Region 1'!$O$9, 0)","v":{"v":0,"d":"$0.00"}},{"$f":"IFERROR('MMA Rev-Exp Region 1'!$P$95/'MMA Rev-Exp Region 1'!$O$9, 0)","v":{"v":0,"d":"$0.00"}},{"$f":"IFERROR('MMA Rev-Exp Region 1'!$Q$95/'MMA Rev-Exp Region 1'!$O$9, 0)","v":{"v":0,"d":"$0.00"}}]
["MMA",null,null,{"$f":"Jurat!I$1","v":0},{"$f":"Jurat!D$33","v":"00:00:00"},"Q2","2017-06-30","Region 1","Operating Expense","Taxes & Fees","Taxes & Fees","13.1","State Premium tax",{"$f":"IFERROR('MMA Rev-Exp Region 1'!$O$97/'MMA Rev-Exp Region 1'!$O$9, 0)","v":{"v":0,"d":"$0.00"}}]
["MMA",null,null,{"$f":"Jurat!I$1","v":0},{"$f":"Jurat!D$33","v":"00:00:00"},"Q2","2017-06-30","Region 1","Operating Expense","Taxes & Fees","Taxes & Fees","13.2","Department of Insurance Assessments",{"$f":"IFERROR('MMA Rev-Exp Region 1'!$O$98/'MMA Rev-Exp Region 1'!$O$9, 0)","v":{"v":0,"d":"$0.00"}}]
["MMA",null,null,{"$f":"Jurat!I$1","v":0},{"$f":"Jurat!D$33","v":"00:00:00"},"Q2","2017-06-30","Region 1","Operating Expense","Taxes & Fees","Taxes & Fees","13.3","Section 9010 Health Insurance Providers Fee",{"$f":"IFERROR('MMA Rev-Exp Region 1'!$O$99/'MMA Rev-Exp Region 1'!$O$9, 0)","v":{"v":0,"d":"$0.00"}}]
["MMA",null,null,{"$f":"Jurat!I$1","v":0},{"$f":"Jurat!D$33","v":"00:00:00"},"Q2","2017-06-30","Region 1","Non-Operating Expense","Income Tax Expense","Income Tax Expense","16.0","Income Tax Expense",{"$f":"IFERROR('MMA Rev-Exp Region 1'!$O$106/'MMA Rev-Exp Region 1'!$O$9, 0)","v":{"v":0,"d":"$0.00"}}]
["MMA",null,null,{"$f":"Jurat!I$1","v":0},{"$f":"Jurat!D$33","v":"00:00:00"},"Q3","2017-09-30","Region 1","Operating Revenue","Capitation","Capitation",1.1,"Capitation",{"$f":"IFERROR('MMA Rev-Exp Region 1'!$Z$11/'MMA Rev-Exp Region 1'!$Z$9, 0)","v":{"v":0,"d":"$0.00"}},{"$f":"IFERROR('MMA Rev-Exp Region 1'!$AA$11/'MMA Rev-Exp Region 1'!$AA$9, 0)","v":{"v":0,"d":"$0.00"}},{"$f":"IFERROR('MMA Rev-Exp Region 1'!$AB$11/'MMA Rev-Exp Region 1'!$AB$9, 0)","v":{"v":0,"d":"$0.00"}},{"$f":"IFERROR('MMA Rev-Exp Region 1'!$AC$11/'MMA Rev-Exp Region 1'!$AC$9, 0)","v":{"v":0,"d":"$0.00"}},{"$f":"IFERROR('MMA Rev-Exp Region 1'!$AD$11/'MMA Rev-Exp Region 1'!$AD$9, 0)","v":{"v":0,"d":"$0.00"}},{"$f":"IFERROR('MMA Rev-Exp Region 1'!$AE$11/'MMA Rev-Exp Region 1'!$AE$9, 0)","v":{"v":0,"d":"$0.00"}},{"$f":"IFERROR('MMA Rev-Exp Region 1'!$AF$11/'MMA Rev-Exp Region 1'!$AF$9, 0)","v":{"v":0,"d":"$0.00"}},{"$f":"IFERROR('MMA Rev-Exp Region 1'!$AG$11/'MMA Rev-Exp Region 1'!$AG$9, 0)","v":{"v":0,"d":"$0.00"}},{"$f":"IFERROR('MMA Rev-Exp Region 1'!$AH$11/'MMA Rev-Exp Region 1'!$AH$9, 0)","v":{"v":0,"d":"$0.00"}},{"$f":"IFERROR('MMA Rev-Exp Region 1'!$AI$11/'MMA Rev-Exp Region 1'!$AI$9, 0)","v":{"v":0,"d":"$0.00"}},{"$f":"IFERROR('MMA Rev-Exp Region 1'!$AJ$11/'MMA Rev-Exp Region 1'!$AJ$9, 0)","v":{"v":0,"d":"$0.00"}}]
["MMA",null,null,{"$f":"Jurat!I$1","v":0},{"$f":"Jurat!D$33","v":"00:00:00"},"Q3","2017-09-30","Region 1","Operating Revenue","Kick Payments","Kick Payments - Transplant",1.2,"Transplant Kick Payments",{"$f":"IFERROR('MMA Rev-Exp Region 1'!$Z$12/'MMA Rev-Exp Region 1'!$Z$9, 0)","v":{"v":0,"d":"$0.00"}},{"$f":"IFERROR('MMA Rev-Exp Region 1'!$AA$12/'MMA Rev-Exp Region 1'!$AA$9, 0)","v":{"v":0,"d":"$0.00"}},{"$f":"IFERROR('MMA Rev-Exp Region 1'!$AB$12/'MMA Rev-Exp Region 1'!$AB$9, 0)","v":{"v":0,"d":"$0.00"}},{"$f":"IFERROR('MMA Rev-Exp Region 1'!$AC$12/'MMA Rev-Exp Region 1'!$AC$9, 0)","v":{"v":0,"d":"$0.00"}},{"$f":"IFERROR('MMA Rev-Exp Region 1'!$AD$12/'MMA Rev-Exp Region 1'!$AD$9, 0)","v":{"v":0,"d":"$0.00"}},{"$f":"IFERROR('MMA Rev-Exp Region 1'!$AE$12/'MMA Rev-Exp Region 1'!$AE$9, 0)","v":{"v":0,"d":"$0.00"}},{"$f":"IFERROR('MMA Rev-Exp Region 1'!$AF$12/'MMA Rev-Exp Region 1'!$AF$9, 0)","v":{"v":0,"d":"$0.00"}},{"$f":"IFERROR('MMA Rev-Exp Region 1'!$AG$12/'MMA Rev-Exp Region 1'!$AG$9, 0)","v":{"v":0,"d":"$0.00"}},{"$f":"IFERROR('MMA Rev-Exp Region 1'!$AH$12/'MMA Rev-Exp Region 1'!$AH$9, 0)","v":{"v":0,"d":"$0.00"}},{"$f":"IFERROR('MMA Rev-Exp Region 1'!$AI$12/'MMA Rev-Exp Region 1'!$AI$9, 0)","v":{"v":0,"d":"$0.00"}},{"$f":"IFERROR('MMA Rev-Exp Region 1'!$AJ$12/'MMA Rev-Exp Region 1'!$AJ$9, 0)","v":{"v":0,"d":"$0.00"}}]
["MMA",null,null,{"$f":"Jurat!I$1","v":0},{"$f":"Jurat!D$33","v":"00:00:00"},"Q3","2017-09-30","Region 1","Operating Revenue","Kick Payments","Kick Payments - Hep C","1.3","Hepatitis C Kick Payments",{"$f":"IFERROR('MMA Rev-Exp Region 1'!$Z$13/'MMA Rev-Exp Region 1'!$Z$9, 0)","v":{"v":0,"d":"$0.00"}},{"$f":"IFERROR('MMA Rev-Exp Region 1'!$AA$13/'MMA Rev-Exp Region 1'!$AA$9, 0)","v":{"v":0,"d":"$0.00"}},{"$f":"IFERROR('MMA Rev-Exp Region 1'!$AB$13/'MMA Rev-Exp Region 1'!$AB$9, 0)","v":{"v":0,"d":"$0.00"}},{"$f":"IFERROR('MMA Rev-Exp Region 1'!$AC$13/'MMA Rev-Exp Region 1'!$AC$9, 0)","v":{"v":0,"d":"$0.00"}},{"$f":"IFERROR('MMA Rev-Exp Region 1'!$AD$13/'MMA Rev-Exp Region 1'!$AD$9, 0)","v":{"v":0,"d":"$0.00"}},{"$f":"IFERROR('MMA Rev-Exp Region 1'!$AE$13/'MMA Rev-Exp Region 1'!$AE$9, 0)","v":{"v":0,"d":"$0.00"}},{"$f":"IFERROR('MMA Rev-Exp Region 1'!$AF$13/'MMA Rev-Exp Region 1'!$AF$9, 0)","v":{"v":0,"d":"$0.00"}},{"$f":"IFERROR('MMA Rev-Exp Region 1'!$AG$13/'MMA Rev-Exp Region 1'!$AG$9, 0)","v":{"v":0,"d":"$0.00"}},{"$f":"IFERROR('MMA Rev-Exp Region 1'!$AH$13/'MMA Rev-Exp Region 1'!$AH$9, 0)","v":{"v":0,"d":"$0.00"}},{"$f":"IFERROR('MMA Rev-Exp Region 1'!$AI$13/'MMA Rev-Exp Region 1'!$AI$9, 0)","v":{"v":0,"d":"$0.00"}},{"$f":"IFERROR('MMA Rev-Exp Region 1'!$AJ$13/'MMA Rev-Exp Region 1'!$AJ$9, 0)","v":{"v":0,"d":"$0.00"}}]
["MMA",null,null,{"$f":"Jurat!I$1","v":0},{"$f":"Jurat!D$33","v":"00:00:00"},"Q3","2017-09-30","Region 1","Operating Revenue","Kick Payments","Kick Payments - Maternity","1.4.1","Maternity Kick Payments",{"$f":"IFERROR('MMA Rev-Exp Region 1'!$Z$14/'MMA Rev-Exp Region 1'!$Z$9, 0)","v":{"v":0,"d":"$0.00"}},{"$f":"IFERROR('MMA Rev-Exp Region 1'!$AA$14/'MMA Rev-Exp Region 1'!$AA$9, 0)","v":{"v":0,"d":"$0.00"}},{"$f":"IFERROR('MMA Rev-Exp Region 1'!$AB$14/'MMA Rev-Exp Region 1'!$AB$9, 0)","v":{"v":0,"d":"$0.00"}},{"$f":"IFERROR('MMA Rev-Exp Region 1'!$AC$14/'MMA Rev-Exp Region 1'!$AC$9, 0)","v":{"v":0,"d":"$0.00"}},{"$f":"IFERROR('MMA Rev-Exp Region 1'!$AD$14/'MMA Rev-Exp Region 1'!$AD$9, 0)","v":{"v":0,"d":"$0.00"}},{"$f":"IFERROR('MMA Rev-Exp Region 1'!$AE$14/'MMA Rev-Exp Region 1'!$AE$9, 0)","v":{"v":0,"d":"$0.00"}},{"$f":"IFERROR('MMA Rev-Exp Region 1'!$AF$14/'MMA Rev-Exp Region 1'!$AF$9, 0)","v":{"v":0,"d":"$0.00"}},{"$f":"IFERROR('MMA Rev-Exp Region 1'!$AG$14/'MMA Rev-Exp Region 1'!$AG$9, 0)","v":{"v":0,"d":"$0.00"}},{"$f":"IFERROR('MMA Rev-Exp Region 1'!$AH$14/'MMA Rev-Exp Region 1'!$AH$9, 0)","v":{"v":0,"d":"$0.00"}},{"$f":"IFERROR('MMA Rev-Exp Region 1'!$AI$14/'MMA Rev-Exp Region 1'!$AI$9, 0)","v":{"v":0,"d":"$0.00"}},{"$f":"IFERROR('MMA Rev-Exp Region 1'!$AJ$14/'MMA Rev-Exp Region 1'!$AJ$9, 0)","v":{"v":0,"d":"$0.00"}}]
["MMA",null,null,{"$f":"Jurat!I$1","v":0},{"$f":"Jurat!D$33","v":"00:00:00"},"Q3","2017-09-30","Region 1","Operating Revenue","Other Revenue","Other Revenue - 9010","1.5","ACA § 9010 related payments",{"$f":"IFERROR('MMA Rev-Exp Region 1'!$Z$15/'MMA Rev-Exp Region 1'!$Z$9, 0)","v":{"v":0,"d":"$0.00"}},{"$f":"IFERROR('MMA Rev-Exp Region 1'!$AA$15/'MMA Rev-Exp Region 1'!$AA$9, 0)","v":{"v":0,"d":"$0.00"}},{"$f":"IFERROR('MMA Rev-Exp Region 1'!$AB$15/'MMA Rev-Exp Region 1'!$AB$9, 0)","v":{"v":0,"d":"$0.00"}},{"$f":"IFERROR('MMA Rev-Exp Region 1'!$AC$15/'MMA Rev-Exp Region 1'!$AC$9, 0)","v":{"v":0,"d":"$0.00"}},{"$f":"IFERROR('MMA Rev-Exp Region 1'!$AD$15/'MMA Rev-Exp Region 1'!$AD$9, 0)","v":{"v":0,"d":"$0.00"}},{"$f":"IFERROR('MMA Rev-Exp Region 1'!$AE$15/'MMA Rev-Exp Region 1'!$AE$9, 0)","v":{"v":0,"d":"$0.00"}},{"$f":"IFERROR('MMA Rev-Exp Region 1'!$AF$15/'MMA Rev-Exp Region 1'!$AF$9, 0)","v":{"v":0,"d":"$0.00"}},{"$f":"IFERROR('MMA Rev-Exp Region 1'!$AG$15/'MMA Rev-Exp Region 1'!$AG$9, 0)","v":{"v":0,"d":"$0.00"}},{"$f":"IFERROR('MMA Rev-Exp Region 1'!$AH$15/'MMA Rev-Exp Region 1'!$AH$9, 0)","v":{"v":0,"d":"$0.00"}},{"$f":"IFERROR('MMA Rev-Exp Region 1'!$AI$15/'MMA Rev-Exp Region 1'!$AI$9, 0)","v":{"v":0,"d":"$0.00"}},{"$f":"IFERROR('MMA Rev-Exp Region 1'!$AJ$15/'MMA Rev-Exp Region 1'!$AJ$9, 0)","v":{"v":0,"d":"$0.00"}}]
["MMA",null,null,{"$f":"Jurat!I$1","v":0},{"$f":"Jurat!D$33","v":"00:00:00"},"Q3","2017-09-30","Region 1","Operating Revenue","Other Revenue","Other Revenue","1.6","Other Revenue",{"$f":"IFERROR('MMA Rev-Exp Region 1'!$Z$16/'MMA Rev-Exp Region 1'!$Z$9, 0)","v":{"v":0,"d":"$0.00"}},{"$f":"IFERROR('MMA Rev-Exp Region 1'!$AA$16/'MMA Rev-Exp Region 1'!$AA$9, 0)","v":{"v":0,"d":"$0.00"}},{"$f":"IFERROR('MMA Rev-Exp Region 1'!$AB$16/'MMA Rev-Exp Region 1'!$AB$9, 0)","v":{"v":0,"d":"$0.00"}},{"$f":"IFERROR('MMA Rev-Exp Region 1'!$AC$16/'MMA Rev-Exp Region 1'!$AC$9, 0)","v":{"v":0,"d":"$0.00"}},{"$f":"IFERROR('MMA Rev-Exp Region 1'!$AD$16/'MMA Rev-Exp Region 1'!$AD$9, 0)","v":{"v":0,"d":"$0.00"}},{"$f":"IFERROR('MMA Rev-Exp Region 1'!$AE$16/'MMA Rev-Exp Region 1'!$AE$9, 0)","v":{"v":0,"d":"$0.00"}},{"$f":"IFERROR('MMA Rev-Exp Region 1'!$AF$16/'MMA Rev-Exp Region 1'!$AF$9, 0)","v":{"v":0,"d":"$0.00"}},{"$f":"IFERROR('MMA Rev-Exp Region 1'!$AG$16/'MMA Rev-Exp Region 1'!$AG$9, 0)","v":{"v":0,"d":"$0.00"}},{"$f":"IFERROR('MMA Rev-Exp Region 1'!$AH$16/'MMA Rev-Exp Region 1'!$AH$9, 0)","v":{"v":0,"d":"$0.00"}},{"$f":"IFERROR('MMA Rev-Exp Region 1'!$AI$16/'MMA Rev-Exp Region 1'!$AI$9, 0)","v":{"v":0,"d":"$0.00"}},{"$f":"IFERROR('MMA Rev-Exp Region 1'!$AJ$16/'MMA Rev-Exp Region 1'!$AJ$9, 0)","v":{"v":0,"d":"$0.00"}}]
["MMA",null,null,{"$f":"Jurat!I$1","v":0},{"$f":"Jurat!D$33","v":"00:00:00"},"Q3","2017-09-30","Region 1","Operating Expense","Medical Benefits Expense","Hospital Services",2.1,"Inpatient FFS",{"$f":"IFERROR('MMA Rev-Exp Region 1'!$Z$20/'MMA Rev-Exp Region 1'!$Z$9, 0)","v":{"v":0,"d":"$0.00"}},{"$f":"IFERROR('MMA Rev-Exp Region 1'!$AA$20/'MMA Rev-Exp Region 1'!$AA$9, 0)","v":{"v":0,"d":"$0.00"}},{"$f":"IFERROR('MMA Rev-Exp Region 1'!$AB$20/'MMA Rev-Exp Region 1'!$AB$9, 0)","v":{"v":0,"d":"$0.00"}},{"$f":"IFERROR('MMA Rev-Exp Region 1'!$AC$20/'MMA Rev-Exp Region 1'!$AC$9, 0)","v":{"v":0,"d":"$0.00"}},{"$f":"IFERROR('MMA Rev-Exp Region 1'!$AD$20/'MMA Rev-Exp Region 1'!$AD$9, 0)","v":{"v":0,"d":"$0.00"}},{"$f":"IFERROR('MMA Rev-Exp Region 1'!$AE$20/'MMA Rev-Exp Region 1'!$AE$9, 0)","v":{"v":0,"d":"$0.00"}},{"$f":"IFERROR('MMA Rev-Exp Region 1'!$AF$20/'MMA Rev-Exp Region 1'!$AF$9, 0)","v":{"v":0,"d":"$0.00"}},{"$f":"IFERROR('MMA Rev-Exp Region 1'!$AG$20/'MMA Rev-Exp Region 1'!$AG$9, 0)","v":{"v":0,"d":"$0.00"}},{"$f":"IFERROR('MMA Rev-Exp Region 1'!$AH$20/'MMA Rev-Exp Region 1'!$AH$9, 0)","v":{"v":0,"d":"$0.00"}},{"$f":"IFERROR('MMA Rev-Exp Region 1'!$AI$20/'MMA Rev-Exp Region 1'!$AI$9, 0)","v":{"v":0,"d":"$0.00"}},{"$f":"IFERROR('MMA Rev-Exp Region 1'!$AJ$20/'MMA Rev-Exp Region 1'!$AJ$9, 0)","v":{"v":0,"d":"$0.00"}}]
["MMA",null,null,{"$f":"Jurat!I$1","v":0},{"$f":"Jurat!D$33","v":"00:00:00"},"Q3","2017-09-30","Region 1","Operating Expense","Medical Benefits Expense","Hospital Services",2.2,"Ending IBNP for Inpatient Hospital Services",{"$f":"IFERROR('MMA Rev-Exp Region 1'!$Z$21/'MMA Rev-Exp Region 1'!$Z$9, 0)","v":{"v":0,"d":"$0.00"}},{"$f":"IFERROR('MMA Rev-Exp Region 1'!$AA$21/'MMA Rev-Exp Region 1'!$AA$9, 0)","v":{"v":0,"d":"$0.00"}},{"$f":"IFERROR('MMA Rev-Exp Region 1'!$AB$21/'MMA Rev-Exp Region 1'!$AB$9, 0)","v":{"v":0,"d":"$0.00"}},{"$f":"IFERROR('MMA Rev-Exp Region 1'!$AC$21/'MMA Rev-Exp Region 1'!$AC$9, 0)","v":{"v":0,"d":"$0.00"}},{"$f":"IFERROR('MMA Rev-Exp Region 1'!$AD$21/'MMA Rev-Exp Region 1'!$AD$9, 0)","v":{"v":0,"d":"$0.00"}},{"$f":"IFERROR('MMA Rev-Exp Region 1'!$AE$21/'MMA Rev-Exp Region 1'!$AE$9, 0)","v":{"v":0,"d":"$0.00"}},{"$f":"IFERROR('MMA Rev-Exp Region 1'!$AF$21/'MMA Rev-Exp Region 1'!$AF$9, 0)","v":{"v":0,"d":"$0.00"}},{"$f":"IFERROR('MMA Rev-Exp Region 1'!$AG$21/'MMA Rev-Exp Region 1'!$AG$9, 0)","v":{"v":0,"d":"$0.00"}},{"$f":"IFERROR('MMA Rev-Exp Region 1'!$AH$21/'MMA Rev-Exp Region 1'!$AH$9, 0)","v":{"v":0,"d":"$0.00"}},{"$f":"IFERROR('MMA Rev-Exp Region 1'!$AI$21/'MMA Rev-Exp Region 1'!$AI$9, 0)","v":{"v":0,"d":"$0.00"}},{"$f":"IFERROR('MMA Rev-Exp Region 1'!$AJ$21/'MMA Rev-Exp Region 1'!$AJ$9, 0)","v":{"v":0,"d":"$0.00"}}]
["MMA",null,null,{"$f":"Jurat!I$1","v":0},{"$f":"Jurat!D$33","v":"00:00:00"},"Q3","2017-09-30","Region 1","Operating Expense","Medical Benefits Expense","Hospital Services",2.3,"Outpatient FFS: ER",{"$f":"IFERROR('MMA Rev-Exp Region 1'!$Z$22/'MMA Rev-Exp Region 1'!$Z$9, 0)","v":{"v":0,"d":"$0.00"}},{"$f":"IFERROR('MMA Rev-Exp Region 1'!$AA$22/'MMA Rev-Exp Region 1'!$AA$9, 0)","v":{"v":0,"d":"$0.00"}},{"$f":"IFERROR('MMA Rev-Exp Region 1'!$AB$22/'MMA Rev-Exp Region 1'!$AB$9, 0)","v":{"v":0,"d":"$0.00"}},{"$f":"IFERROR('MMA Rev-Exp Region 1'!$AC$22/'MMA Rev-Exp Region 1'!$AC$9, 0)","v":{"v":0,"d":"$0.00"}},{"$f":"IFERROR('MMA Rev-Exp Region 1'!$AD$22/'MMA Rev-Exp Region 1'!$AD$9, 0)","v":{"v":0,"d":"$0.00"}},{"$f":"IFERROR('MMA Rev-Exp Region 1'!$AE$22/'MMA Rev-Exp Region 1'!$AE$9, 0)","v":{"v":0,"d":"$0.00"}},{"$f":"IFERROR('MMA Rev-Exp Region 1'!$AF$22/'MMA Rev-Exp Region 1'!$AF$9, 0)","v":{"v":0,"d":"$0.00"}},{"$f":"IFERROR('MMA Rev-Exp Region 1'!$AG$22/'MMA Rev-Exp Region 1'!$AG$9, 0)","v":{"v":0,"d":"$0.00"}},{"$f":"IFERROR('MMA Rev-Exp Region 1'!$AH$22/'MMA Rev-Exp Region 1'!$AH$9, 0)","v":{"v":0,"d":"$0.00"}},{"$f":"IFERROR('MMA Rev-Exp Region 1'!$AI$22/'MMA Rev-Exp Region 1'!$AI$9, 0)","v":{"v":0,"d":"$0.00"}},{"$f":"IFERROR('MMA Rev-Exp Region 1'!$AJ$22/'MMA Rev-Exp Region 1'!$AJ$9, 0)","v":{"v":0,"d":"$0.00"}}]
["MMA",null,null,{"$f":"Jurat!I$1","v":0},{"$f":"Jurat!D$33","v":"00:00:00"},"Q3","2017-09-30","Region 1","Operating Expense","Medical Benefits Expense","Hospital Services",2.4,"Outpatient FFS: Other than ER ",{"$f":"IFERROR('MMA Rev-Exp Region 1'!$Z$23/'MMA Rev-Exp Region 1'!$Z$9, 0)","v":{"v":0,"d":"$0.00"}},{"$f":"IFERROR('MMA Rev-Exp Region 1'!$AA$23/'MMA Rev-Exp Region 1'!$AA$9, 0)","v":{"v":0,"d":"$0.00"}},{"$f":"IFERROR('MMA Rev-Exp Region 1'!$AB$23/'MMA Rev-Exp Region 1'!$AB$9, 0)","v":{"v":0,"d":"$0.00"}},{"$f":"IFERROR('MMA Rev-Exp Region 1'!$AC$23/'MMA Rev-Exp Region 1'!$AC$9, 0)","v":{"v":0,"d":"$0.00"}},{"$f":"IFERROR('MMA Rev-Exp Region 1'!$AD$23/'MMA Rev-Exp Region 1'!$AD$9, 0)","v":{"v":0,"d":"$0.00"}},{"$f":"IFERROR('MMA Rev-Exp Region 1'!$AE$23/'MMA Rev-Exp Region 1'!$AE$9, 0)","v":{"v":0,"d":"$0.00"}},{"$f":"IFERROR('MMA Rev-Exp Region 1'!$AF$23/'MMA Rev-Exp Region 1'!$AF$9, 0)","v":{"v":0,"d":"$0.00"}},{"$f":"IFERROR('MMA Rev-Exp Region 1'!$AG$23/'MMA Rev-Exp Region 1'!$AG$9, 0)","v":{"v":0,"d":"$0.00"}},{"$f":"IFERROR('MMA Rev-Exp Region 1'!$AH$23/'MMA Rev-Exp Region 1'!$AH$9, 0)","v":{"v":0,"d":"$0.00"}},{"$f":"IFERROR('MMA Rev-Exp Region 1'!$AI$23/'MMA Rev-Exp Region 1'!$AI$9, 0)","v":{"v":0,"d":"$0.00"}},{"$f":"IFERROR('MMA Rev-Exp Region 1'!$AJ$23/'MMA Rev-Exp Region 1'!$AJ$9, 0)","v":{"v":0,"d":"$0.00"}}]
["MMA",null,null,{"$f":"Jurat!I$1","v":0},{"$f":"Jurat!D$33","v":"00:00:00"},"Q3","2017-09-30","Region 1","Operating Expense","Medical Benefits Expense","Hospital Services",2.5,"Ending IBNP for Outpatient Hospital Services",{"$f":"IFERROR('MMA Rev-Exp Region 1'!$Z$24/'MMA Rev-Exp Region 1'!$Z$9, 0)","v":{"v":0,"d":"$0.00"}},{"$f":"IFERROR('MMA Rev-Exp Region 1'!$AA$24/'MMA Rev-Exp Region 1'!$AA$9, 0)","v":{"v":0,"d":"$0.00"}},{"$f":"IFERROR('MMA Rev-Exp Region 1'!$AB$24/'MMA Rev-Exp Region 1'!$AB$9, 0)","v":{"v":0,"d":"$0.00"}},{"$f":"IFERROR('MMA Rev-Exp Region 1'!$AC$24/'MMA Rev-Exp Region 1'!$AC$9, 0)","v":{"v":0,"d":"$0.00"}},{"$f":"IFERROR('MMA Rev-Exp Region 1'!$AD$24/'MMA Rev-Exp Region 1'!$AD$9, 0)","v":{"v":0,"d":"$0.00"}},{"$f":"IFERROR('MMA Rev-Exp Region 1'!$AE$24/'MMA Rev-Exp Region 1'!$AE$9, 0)","v":{"v":0,"d":"$0.00"}},{"$f":"IFERROR('MMA Rev-Exp Region 1'!$AF$24/'MMA Rev-Exp Region 1'!$AF$9, 0)","v":{"v":0,"d":"$0.00"}},{"$f":"IFERROR('MMA Rev-Exp Region 1'!$AG$24/'MMA Rev-Exp Region 1'!$AG$9, 0)","v":{"v":0,"d":"$0.00"}},{"$f":"IFERROR('MMA Rev-Exp Region 1'!$AH$24/'MMA Rev-Exp Region 1'!$AH$9, 0)","v":{"v":0,"d":"$0.00"}},{"$f":"IFERROR('MMA Rev-Exp Region 1'!$AI$24/'MMA Rev-Exp Region 1'!$AI$9, 0)","v":{"v":0,"d":"$0.00"}},{"$f":"IFERROR('MMA Rev-Exp Region 1'!$AJ$24/'MMA Rev-Exp Region 1'!$AJ$9, 0)","v":{"v":0,"d":"$0.00"}}]
["MMA",null,null,{"$f":"Jurat!I$1","v":0},{"$f":"Jurat!D$33","v":"00:00:00"},"Q3","2017-09-30","Region 1","Operating Expense","Medical Benefits Expense","Hospital Services","2.6","Subcapitated Hospital Services",{"$f":"IFERROR('MMA Rev-Exp Region 1'!$Z$25/'MMA Rev-Exp Region 1'!$Z$9, 0)","v":{"v":0,"d":"$0.00"}},{"$f":"IFERROR('MMA Rev-Exp Region 1'!$AA$25/'MMA Rev-Exp Region 1'!$AA$9, 0)","v":{"v":0,"d":"$0.00"}},{"$f":"IFERROR('MMA Rev-Exp Region 1'!$AB$25/'MMA Rev-Exp Region 1'!$AB$9, 0)","v":{"v":0,"d":"$0.00"}},{"$f":"IFERROR('MMA Rev-Exp Region 1'!$AC$25/'MMA Rev-Exp Region 1'!$AC$9, 0)","v":{"v":0,"d":"$0.00"}},{"$f":"IFERROR('MMA Rev-Exp Region 1'!$AD$25/'MMA Rev-Exp Region 1'!$AD$9, 0)","v":{"v":0,"d":"$0.00"}},{"$f":"IFERROR('MMA Rev-Exp Region 1'!$AE$25/'MMA Rev-Exp Region 1'!$AE$9, 0)","v":{"v":0,"d":"$0.00"}},{"$f":"IFERROR('MMA Rev-Exp Region 1'!$AF$25/'MMA Rev-Exp Region 1'!$AF$9, 0)","v":{"v":0,"d":"$0.00"}},{"$f":"IFERROR('MMA Rev-Exp Region 1'!$AG$25/'MMA Rev-Exp Region 1'!$AG$9, 0)","v":{"v":0,"d":"$0.00"}},{"$f":"IFERROR('MMA Rev-Exp Region 1'!$AH$25/'MMA Rev-Exp Region 1'!$AH$9, 0)","v":{"v":0,"d":"$0.00"}},{"$f":"IFERROR('MMA Rev-Exp Region 1'!$AI$25/'MMA Rev-Exp Region 1'!$AI$9, 0)","v":{"v":0,"d":"$0.00"}},{"$f":"IFERROR('MMA Rev-Exp Region 1'!$AJ$25/'MMA Rev-Exp Region 1'!$AJ$9, 0)","v":{"v":0,"d":"$0.00"}}]
["MMA",null,null,{"$f":"Jurat!I$1","v":0},{"$f":"Jurat!D$33","v":"00:00:00"},"Q3","2017-09-30","Region 1","Operating Expense","Medical Benefits Expense","Hospital Services","2.7","Hospital Settlements",{"$f":"IFERROR('MMA Rev-Exp Region 1'!$Z$26/'MMA Rev-Exp Region 1'!$Z$9, 0)","v":{"v":0,"d":"$0.00"}},{"$f":"IFERROR('MMA Rev-Exp Region 1'!$AA$26/'MMA Rev-Exp Region 1'!$AA$9, 0)","v":{"v":0,"d":"$0.00"}},{"$f":"IFERROR('MMA Rev-Exp Region 1'!$AB$26/'MMA Rev-Exp Region 1'!$AB$9, 0)","v":{"v":0,"d":"$0.00"}},{"$f":"IFERROR('MMA Rev-Exp Region 1'!$AC$26/'MMA Rev-Exp Region 1'!$AC$9, 0)","v":{"v":0,"d":"$0.00"}},{"$f":"IFERROR('MMA Rev-Exp Region 1'!$AD$26/'MMA Rev-Exp Region 1'!$AD$9, 0)","v":{"v":0,"d":"$0.00"}},{"$f":"IFERROR('MMA Rev-Exp Region 1'!$AE$26/'MMA Rev-Exp Region 1'!$AE$9, 0)","v":{"v":0,"d":"$0.00"}},{"$f":"IFERROR('MMA Rev-Exp Region 1'!$AF$26/'MMA Rev-Exp Region 1'!$AF$9, 0)","v":{"v":0,"d":"$0.00"}},{"$f":"IFERROR('MMA Rev-Exp Region 1'!$AG$26/'MMA Rev-Exp Region 1'!$AG$9, 0)","v":{"v":0,"d":"$0.00"}},{"$f":"IFERROR('MMA Rev-Exp Region 1'!$AH$26/'MMA Rev-Exp Region 1'!$AH$9, 0)","v":{"v":0,"d":"$0.00"}},{"$f":"IFERROR('MMA Rev-Exp Region 1'!$AI$26/'MMA Rev-Exp Region 1'!$AI$9, 0)","v":{"v":0,"d":"$0.00"}},{"$f":"IFERROR('MMA Rev-Exp Region 1'!$AJ$26/'MMA Rev-Exp Region 1'!$AJ$9, 0)","v":{"v":0,"d":"$0.00"}}]
["MMA",null,null,{"$f":"Jurat!I$1","v":0},{"$f":"Jurat!D$33","v":"00:00:00"},"Q3","2017-09-30","Region 1","Operating Expense","Medical Benefits Expense","Hospital Services","2.7.1","Transplant Services",{"$f":"IFERROR('MMA Rev-Exp Region 1'!$Z$27/'MMA Rev-Exp Region 1'!$Z$9, 0)","v":{"v":0,"d":"$0.00"}},{"$f":"IFERROR('MMA Rev-Exp Region 1'!$AA$27/'MMA Rev-Exp Region 1'!$AA$9, 0)","v":{"v":0,"d":"$0.00"}},{"$f":"IFERROR('MMA Rev-Exp Region 1'!$AB$27/'MMA Rev-Exp Region 1'!$AB$9, 0)","v":{"v":0,"d":"$0.00"}},{"$f":"IFERROR('MMA Rev-Exp Region 1'!$AC$27/'MMA Rev-Exp Region 1'!$AC$9, 0)","v":{"v":0,"d":"$0.00"}},{"$f":"IFERROR('MMA Rev-Exp Region 1'!$AD$27/'MMA Rev-Exp Region 1'!$AD$9, 0)","v":{"v":0,"d":"$0.00"}},{"$f":"IFERROR('MMA Rev-Exp Region 1'!$AE$27/'MMA Rev-Exp Region 1'!$AE$9, 0)","v":{"v":0,"d":"$0.00"}},{"$f":"IFERROR('MMA Rev-Exp Region 1'!$AF$27/'MMA Rev-Exp Region 1'!$AF$9, 0)","v":{"v":0,"d":"$0.00"}},{"$f":"IFERROR('MMA Rev-Exp Region 1'!$AG$27/'MMA Rev-Exp Region 1'!$AG$9, 0)","v":{"v":0,"d":"$0.00"}},{"$f":"IFERROR('MMA Rev-Exp Region 1'!$AH$27/'MMA Rev-Exp Region 1'!$AH$9, 0)","v":{"v":0,"d":"$0.00"}},{"$f":"IFERROR('MMA Rev-Exp Region 1'!$AI$27/'MMA Rev-Exp Region 1'!$AI$9, 0)","v":{"v":0,"d":"$0.00"}},{"$f":"IFERROR('MMA Rev-Exp Region 1'!$AJ$27/'MMA Rev-Exp Region 1'!$AJ$9, 0)","v":{"v":0,"d":"$0.00"}}]
["MMA",null,null,{"$f":"Jurat!I$1","v":0},{"$f":"Jurat!D$33","v":"00:00:00"},"Q3","2017-09-30","Region 1","Operating Expense","Medical Benefits Expense","Professional Services",3.1,"Primary Care FFS",{"$f":"IFERROR('MMA Rev-Exp Region 1'!$Z$29/'MMA Rev-Exp Region 1'!$Z$9, 0)","v":{"v":0,"d":"$0.00"}},{"$f":"IFERROR('MMA Rev-Exp Region 1'!$AA$29/'MMA Rev-Exp Region 1'!$AA$9, 0)","v":{"v":0,"d":"$0.00"}},{"$f":"IFERROR('MMA Rev-Exp Region 1'!$AB$29/'MMA Rev-Exp Region 1'!$AB$9, 0)","v":{"v":0,"d":"$0.00"}},{"$f":"IFERROR('MMA Rev-Exp Region 1'!$AC$29/'MMA Rev-Exp Region 1'!$AC$9, 0)","v":{"v":0,"d":"$0.00"}},{"$f":"IFERROR('MMA Rev-Exp Region 1'!$AD$29/'MMA Rev-Exp Region 1'!$AD$9, 0)","v":{"v":0,"d":"$0.00"}},{"$f":"IFERROR('MMA Rev-Exp Region 1'!$AE$29/'MMA Rev-Exp Region 1'!$AE$9, 0)","v":{"v":0,"d":"$0.00"}},{"$f":"IFERROR('MMA Rev-Exp Region 1'!$AF$29/'MMA Rev-Exp Region 1'!$AF$9, 0)","v":{"v":0,"d":"$0.00"}},{"$f":"IFERROR('MMA Rev-Exp Region 1'!$AG$29/'MMA Rev-Exp Region 1'!$AG$9, 0)","v":{"v":0,"d":"$0.00"}},{"$f":"IFERROR('MMA Rev-Exp Region 1'!$AH$29/'MMA Rev-Exp Region 1'!$AH$9, 0)","v":{"v":0,"d":"$0.00"}},{"$f":"IFERROR('MMA Rev-Exp Region 1'!$AI$29/'MMA Rev-Exp Region 1'!$AI$9, 0)","v":{"v":0,"d":"$0.00"}},{"$f":"IFERROR('MMA Rev-Exp Region 1'!$AJ$29/'MMA Rev-Exp Region 1'!$AJ$9, 0)","v":{"v":0,"d":"$0.00"}}]
["MMA",null,null,{"$f":"Jurat!I$1","v":0},{"$f":"Jurat!D$33","v":"00:00:00"},"Q3","2017-09-30","Region 1","Operating Expense","Medical Benefits Expense","Professional Services",3.2,"Specialty Care FFS",{"$f":"IFERROR('MMA Rev-Exp Region 1'!$Z$30/'MMA Rev-Exp Region 1'!$Z$9, 0)","v":{"v":0,"d":"$0.00"}},{"$f":"IFERROR('MMA Rev-Exp Region 1'!$AA$30/'MMA Rev-Exp Region 1'!$AA$9, 0)","v":{"v":0,"d":"$0.00"}},{"$f":"IFERROR('MMA Rev-Exp Region 1'!$AB$30/'MMA Rev-Exp Region 1'!$AB$9, 0)","v":{"v":0,"d":"$0.00"}},{"$f":"IFERROR('MMA Rev-Exp Region 1'!$AC$30/'MMA Rev-Exp Region 1'!$AC$9, 0)","v":{"v":0,"d":"$0.00"}},{"$f":"IFERROR('MMA Rev-Exp Region 1'!$AD$30/'MMA Rev-Exp Region 1'!$AD$9, 0)","v":{"v":0,"d":"$0.00"}},{"$f":"IFERROR('MMA Rev-Exp Region 1'!$AE$30/'MMA Rev-Exp Region 1'!$AE$9, 0)","v":{"v":0,"d":"$0.00"}},{"$f":"IFERROR('MMA Rev-Exp Region 1'!$AF$30/'MMA Rev-Exp Region 1'!$AF$9, 0)","v":{"v":0,"d":"$0.00"}},{"$f":"IFERROR('MMA Rev-Exp Region 1'!$AG$30/'MMA Rev-Exp Region 1'!$AG$9, 0)","v":{"v":0,"d":"$0.00"}},{"$f":"IFERROR('MMA Rev-Exp Region 1'!$AH$30/'MMA Rev-Exp Region 1'!$AH$9, 0)","v":{"v":0,"d":"$0.00"}},{"$f":"IFERROR('MMA Rev-Exp Region 1'!$AI$30/'MMA Rev-Exp Region 1'!$AI$9, 0)","v":{"v":0,"d":"$0.00"}},{"$f":"IFERROR('MMA Rev-Exp Region 1'!$AJ$30/'MMA Rev-Exp Region 1'!$AJ$9, 0)","v":{"v":0,"d":"$0.00"}}]
["MMA",null,null,{"$f":"Jurat!I$1","v":0},{"$f":"Jurat!D$33","v":"00:00:00"},"Q3","2017-09-30","Region 1","Operating Expense","Medical Benefits Expense","Professional Services",3.3,"Other Professional FFS",{"$f":"IFERROR('MMA Rev-Exp Region 1'!$Z$31/'MMA Rev-Exp Region 1'!$Z$9, 0)","v":{"v":0,"d":"$0.00"}},{"$f":"IFERROR('MMA Rev-Exp Region 1'!$AA$31/'MMA Rev-Exp Region 1'!$AA$9, 0)","v":{"v":0,"d":"$0.00"}},{"$f":"IFERROR('MMA Rev-Exp Region 1'!$AB$31/'MMA Rev-Exp Region 1'!$AB$9, 0)","v":{"v":0,"d":"$0.00"}},{"$f":"IFERROR('MMA Rev-Exp Region 1'!$AC$31/'MMA Rev-Exp Region 1'!$AC$9, 0)","v":{"v":0,"d":"$0.00"}},{"$f":"IFERROR('MMA Rev-Exp Region 1'!$AD$31/'MMA Rev-Exp Region 1'!$AD$9, 0)","v":{"v":0,"d":"$0.00"}},{"$f":"IFERROR('MMA Rev-Exp Region 1'!$AE$31/'MMA Rev-Exp Region 1'!$AE$9, 0)","v":{"v":0,"d":"$0.00"}},{"$f":"IFERROR('MMA Rev-Exp Region 1'!$AF$31/'MMA Rev-Exp Region 1'!$AF$9, 0)","v":{"v":0,"d":"$0.00"}},{"$f":"IFERROR('MMA Rev-Exp Region 1'!$AG$31/'MMA Rev-Exp Region 1'!$AG$9, 0)","v":{"v":0,"d":"$0.00"}},{"$f":"IFERROR('MMA Rev-Exp Region 1'!$AH$31/'MMA Rev-Exp Region 1'!$AH$9, 0)","v":{"v":0,"d":"$0.00"}},{"$f":"IFERROR('MMA Rev-Exp Region 1'!$AI$31/'MMA Rev-Exp Region 1'!$AI$9, 0)","v":{"v":0,"d":"$0.00"}},{"$f":"IFERROR('MMA Rev-Exp Region 1'!$AJ$31/'MMA Rev-Exp Region 1'!$AJ$9, 0)","v":{"v":0,"d":"$0.00"}}]
["MMA",null,null,{"$f":"Jurat!I$1","v":0},{"$f":"Jurat!D$33","v":"00:00:00"},"Q3","2017-09-30","Region 1","Operating Expense","Medical Benefits Expense","Professional Services","3.4","§ 1202 PCP Payments to providers",{"$f":"IFERROR('MMA Rev-Exp Region 1'!$Z$32/'MMA Rev-Exp Region 1'!$Z$9, 0)","v":{"v":0,"d":"$0.00"}},{"$f":"IFERROR('MMA Rev-Exp Region 1'!$AA$32/'MMA Rev-Exp Region 1'!$AA$9, 0)","v":{"v":0,"d":"$0.00"}},{"$f":"IFERROR('MMA Rev-Exp Region 1'!$AB$32/'MMA Rev-Exp Region 1'!$AB$9, 0)","v":{"v":0,"d":"$0.00"}},{"$f":"IFERROR('MMA Rev-Exp Region 1'!$AC$32/'MMA Rev-Exp Region 1'!$AC$9, 0)","v":{"v":0,"d":"$0.00"}},{"$f":"IFERROR('MMA Rev-Exp Region 1'!$AD$32/'MMA Rev-Exp Region 1'!$AD$9, 0)","v":{"v":0,"d":"$0.00"}},{"$f":"IFERROR('MMA Rev-Exp Region 1'!$AE$32/'MMA Rev-Exp Region 1'!$AE$9, 0)","v":{"v":0,"d":"$0.00"}},{"$f":"IFERROR('MMA Rev-Exp Region 1'!$AF$32/'MMA Rev-Exp Region 1'!$AF$9, 0)","v":{"v":0,"d":"$0.00"}},{"$f":"IFERROR('MMA Rev-Exp Region 1'!$AG$32/'MMA Rev-Exp Region 1'!$AG$9, 0)","v":{"v":0,"d":"$0.00"}},{"$f":"IFERROR('MMA Rev-Exp Region 1'!$AH$32/'MMA Rev-Exp Region 1'!$AH$9, 0)","v":{"v":0,"d":"$0.00"}},{"$f":"IFERROR('MMA Rev-Exp Region 1'!$AI$32/'MMA Rev-Exp Region 1'!$AI$9, 0)","v":{"v":0,"d":"$0.00"}},{"$f":"IFERROR('MMA Rev-Exp Region 1'!$AJ$32/'MMA Rev-Exp Region 1'!$AJ$9, 0)","v":{"v":0,"d":"$0.00"}}]
["MMA",null,null,{"$f":"Jurat!I$1","v":0},{"$f":"Jurat!D$33","v":"00:00:00"},"Q3","2017-09-30","Region 1","Operating Expense","Medical Benefits Expense","Professional Services","3.5","Subcapitated Professional Services",{"$f":"IFERROR('MMA Rev-Exp Region 1'!$Z$33/'MMA Rev-Exp Region 1'!$Z$9, 0)","v":{"v":0,"d":"$0.00"}},{"$f":"IFERROR('MMA Rev-Exp Region 1'!$AA$33/'MMA Rev-Exp Region 1'!$AA$9, 0)","v":{"v":0,"d":"$0.00"}},{"$f":"IFERROR('MMA Rev-Exp Region 1'!$AB$33/'MMA Rev-Exp Region 1'!$AB$9, 0)","v":{"v":0,"d":"$0.00"}},{"$f":"IFERROR('MMA Rev-Exp Region 1'!$AC$33/'MMA Rev-Exp Region 1'!$AC$9, 0)","v":{"v":0,"d":"$0.00"}},{"$f":"IFERROR('MMA Rev-Exp Region 1'!$AD$33/'MMA Rev-Exp Region 1'!$AD$9, 0)","v":{"v":0,"d":"$0.00"}},{"$f":"IFERROR('MMA Rev-Exp Region 1'!$AE$33/'MMA Rev-Exp Region 1'!$AE$9, 0)","v":{"v":0,"d":"$0.00"}},{"$f":"IFERROR('MMA Rev-Exp Region 1'!$AF$33/'MMA Rev-Exp Region 1'!$AF$9, 0)","v":{"v":0,"d":"$0.00"}},{"$f":"IFERROR('MMA Rev-Exp Region 1'!$AG$33/'MMA Rev-Exp Region 1'!$AG$9, 0)","v":{"v":0,"d":"$0.00"}},{"$f":"IFERROR('MMA Rev-Exp Region 1'!$AH$33/'MMA Rev-Exp Region 1'!$AH$9, 0)","v":{"v":0,"d":"$0.00"}},{"$f":"IFERROR('MMA Rev-Exp Region 1'!$AI$33/'MMA Rev-Exp Region 1'!$AI$9, 0)","v":{"v":0,"d":"$0.00"}},{"$f":"IFERROR('MMA Rev-Exp Region 1'!$AJ$33/'MMA Rev-Exp Region 1'!$AJ$9, 0)","v":{"v":0,"d":"$0.00"}}]
["MMA",null,null,{"$f":"Jurat!I$1","v":0},{"$f":"Jurat!D$33","v":"00:00:00"},"Q3","2017-09-30","Region 1","Operating Expense","Medical Benefits Expense","Professional Services","3.6","Ending IBNP for Professional Services",{"$f":"IFERROR('MMA Rev-Exp Region 1'!$Z$34/'MMA Rev-Exp Region 1'!$Z$9, 0)","v":{"v":0,"d":"$0.00"}},{"$f":"IFERROR('MMA Rev-Exp Region 1'!$AA$34/'MMA Rev-Exp Region 1'!$AA$9, 0)","v":{"v":0,"d":"$0.00"}},{"$f":"IFERROR('MMA Rev-Exp Region 1'!$AB$34/'MMA Rev-Exp Region 1'!$AB$9, 0)","v":{"v":0,"d":"$0.00"}},{"$f":"IFERROR('MMA Rev-Exp Region 1'!$AC$34/'MMA Rev-Exp Region 1'!$AC$9, 0)","v":{"v":0,"d":"$0.00"}},{"$f":"IFERROR('MMA Rev-Exp Region 1'!$AD$34/'MMA Rev-Exp Region 1'!$AD$9, 0)","v":{"v":0,"d":"$0.00"}},{"$f":"IFERROR('MMA Rev-Exp Region 1'!$AE$34/'MMA Rev-Exp Region 1'!$AE$9, 0)","v":{"v":0,"d":"$0.00"}},{"$f":"IFERROR('MMA Rev-Exp Region 1'!$AF$34/'MMA Rev-Exp Region 1'!$AF$9, 0)","v":{"v":0,"d":"$0.00"}},{"$f":"IFERROR('MMA Rev-Exp Region 1'!$AG$34/'MMA Rev-Exp Region 1'!$AG$9, 0)","v":{"v":0,"d":"$0.00"}},{"$f":"IFERROR('MMA Rev-Exp Region 1'!$AH$34/'MMA Rev-Exp Region 1'!$AH$9, 0)","v":{"v":0,"d":"$0.00"}},{"$f":"IFERROR('MMA Rev-Exp Region 1'!$AI$34/'MMA Rev-Exp Region 1'!$AI$9, 0)","v":{"v":0,"d":"$0.00"}},{"$f":"IFERROR('MMA Rev-Exp Region 1'!$AJ$34/'MMA Rev-Exp Region 1'!$AJ$9, 0)","v":{"v":0,"d":"$0.00"}}]
["MMA",null,null,{"$f":"Jurat!I$1","v":0},{"$f":"Jurat!D$33","v":"00:00:00"},"Q3","2017-09-30","Region 1","Operating Expense","Medical Benefits Expense","Professional Services","3.7","Professional Services Settlements",{"$f":"IFERROR('MMA Rev-Exp Region 1'!$Z$35/'MMA Rev-Exp Region 1'!$Z$9, 0)","v":{"v":0,"d":"$0.00"}},{"$f":"IFERROR('MMA Rev-Exp Region 1'!$AA$35/'MMA Rev-Exp Region 1'!$AA$9, 0)","v":{"v":0,"d":"$0.00"}},{"$f":"IFERROR('MMA Rev-Exp Region 1'!$AB$35/'MMA Rev-Exp Region 1'!$AB$9, 0)","v":{"v":0,"d":"$0.00"}},{"$f":"IFERROR('MMA Rev-Exp Region 1'!$AC$35/'MMA Rev-Exp Region 1'!$AC$9, 0)","v":{"v":0,"d":"$0.00"}},{"$f":"IFERROR('MMA Rev-Exp Region 1'!$AD$35/'MMA Rev-Exp Region 1'!$AD$9, 0)","v":{"v":0,"d":"$0.00"}},{"$f":"IFERROR('MMA Rev-Exp Region 1'!$AE$35/'MMA Rev-Exp Region 1'!$AE$9, 0)","v":{"v":0,"d":"$0.00"}},{"$f":"IFERROR('MMA Rev-Exp Region 1'!$AF$35/'MMA Rev-Exp Region 1'!$AF$9, 0)","v":{"v":0,"d":"$0.00"}},{"$f":"IFERROR('MMA Rev-Exp Region 1'!$AG$35/'MMA Rev-Exp Region 1'!$AG$9, 0)","v":{"v":0,"d":"$0.00"}},{"$f":"IFERROR('MMA Rev-Exp Region 1'!$AH$35/'MMA Rev-Exp Region 1'!$AH$9, 0)","v":{"v":0,"d":"$0.00"}},{"$f":"IFERROR('MMA Rev-Exp Region 1'!$AI$35/'MMA Rev-Exp Region 1'!$AI$9, 0)","v":{"v":0,"d":"$0.00"}},{"$f":"IFERROR('MMA Rev-Exp Region 1'!$AJ$35/'MMA Rev-Exp Region 1'!$AJ$9, 0)","v":{"v":0,"d":"$0.00"}}]
["MMA",null,null,{"$f":"Jurat!I$1","v":0},{"$f":"Jurat!D$33","v":"00:00:00"},"Q3","2017-09-30","Region 1","Operating Expense","Medical Benefits Expense","Maternity Services","4.1.1","Maternity Services",{"$f":"IFERROR('MMA Rev-Exp Region 1'!$Z$37/'MMA Rev-Exp Region 1'!$Z$9, 0)","v":{"v":0,"d":"$0.00"}},{"$f":"IFERROR('MMA Rev-Exp Region 1'!$AA$37/'MMA Rev-Exp Region 1'!$AA$9, 0)","v":{"v":0,"d":"$0.00"}},{"$f":"IFERROR('MMA Rev-Exp Region 1'!$AB$37/'MMA Rev-Exp Region 1'!$AB$9, 0)","v":{"v":0,"d":"$0.00"}},{"$f":"IFERROR('MMA Rev-Exp Region 1'!$AC$37/'MMA Rev-Exp Region 1'!$AC$9, 0)","v":{"v":0,"d":"$0.00"}},{"$f":"IFERROR('MMA Rev-Exp Region 1'!$AD$37/'MMA Rev-Exp Region 1'!$AD$9, 0)","v":{"v":0,"d":"$0.00"}},{"$f":"IFERROR('MMA Rev-Exp Region 1'!$AE$37/'MMA Rev-Exp Region 1'!$AE$9, 0)","v":{"v":0,"d":"$0.00"}},{"$f":"IFERROR('MMA Rev-Exp Region 1'!$AF$37/'MMA Rev-Exp Region 1'!$AF$9, 0)","v":{"v":0,"d":"$0.00"}},{"$f":"IFERROR('MMA Rev-Exp Region 1'!$AG$37/'MMA Rev-Exp Region 1'!$AG$9, 0)","v":{"v":0,"d":"$0.00"}},{"$f":"IFERROR('MMA Rev-Exp Region 1'!$AH$37/'MMA Rev-Exp Region 1'!$AH$9, 0)","v":{"v":0,"d":"$0.00"}},{"$f":"IFERROR('MMA Rev-Exp Region 1'!$AI$37/'MMA Rev-Exp Region 1'!$AI$9, 0)","v":{"v":0,"d":"$0.00"}},{"$f":"IFERROR('MMA Rev-Exp Region 1'!$AJ$37/'MMA Rev-Exp Region 1'!$AJ$9, 0)","v":{"v":0,"d":"$0.00"}}]
["MMA",null,null,{"$f":"Jurat!I$1","v":0},{"$f":"Jurat!D$33","v":"00:00:00"},"Q3","2017-09-30","Region 1","Operating Expense","Medical Benefits Expense","Maternity Services","4.2.1","Ending IBNP for Maternity Services",{"$f":"IFERROR('MMA Rev-Exp Region 1'!$Z$38/'MMA Rev-Exp Region 1'!$Z$9, 0)","v":{"v":0,"d":"$0.00"}},{"$f":"IFERROR('MMA Rev-Exp Region 1'!$AA$38/'MMA Rev-Exp Region 1'!$AA$9, 0)","v":{"v":0,"d":"$0.00"}},{"$f":"IFERROR('MMA Rev-Exp Region 1'!$AB$38/'MMA Rev-Exp Region 1'!$AB$9, 0)","v":{"v":0,"d":"$0.00"}},{"$f":"IFERROR('MMA Rev-Exp Region 1'!$AC$38/'MMA Rev-Exp Region 1'!$AC$9, 0)","v":{"v":0,"d":"$0.00"}},{"$f":"IFERROR('MMA Rev-Exp Region 1'!$AD$38/'MMA Rev-Exp Region 1'!$AD$9, 0)","v":{"v":0,"d":"$0.00"}},{"$f":"IFERROR('MMA Rev-Exp Region 1'!$AE$38/'MMA Rev-Exp Region 1'!$AE$9, 0)","v":{"v":0,"d":"$0.00"}},{"$f":"IFERROR('MMA Rev-Exp Region 1'!$AF$38/'MMA Rev-Exp Region 1'!$AF$9, 0)","v":{"v":0,"d":"$0.00"}},{"$f":"IFERROR('MMA Rev-Exp Region 1'!$AG$38/'MMA Rev-Exp Region 1'!$AG$9, 0)","v":{"v":0,"d":"$0.00"}},{"$f":"IFERROR('MMA Rev-Exp Region 1'!$AH$38/'MMA Rev-Exp Region 1'!$AH$9, 0)","v":{"v":0,"d":"$0.00"}},{"$f":"IFERROR('MMA Rev-Exp Region 1'!$AI$38/'MMA Rev-Exp Region 1'!$AI$9, 0)","v":{"v":0,"d":"$0.00"}},{"$f":"IFERROR('MMA Rev-Exp Region 1'!$AJ$38/'MMA Rev-Exp Region 1'!$AJ$9, 0)","v":{"v":0,"d":"$0.00"}}]
["MMA",null,null,{"$f":"Jurat!I$1","v":0},{"$f":"Jurat!D$33","v":"00:00:00"},"Q3","2017-09-30","Region 1","Operating Expense","Medical Benefits Expense","Maternity Services","4.3.1","Maternity Settlements",{"$f":"IFERROR('MMA Rev-Exp Region 1'!$Z$39/'MMA Rev-Exp Region 1'!$Z$9, 0)","v":{"v":0,"d":"$0.00"}},{"$f":"IFERROR('MMA Rev-Exp Region 1'!$AA$39/'MMA Rev-Exp Region 1'!$AA$9, 0)","v":{"v":0,"d":"$0.00"}},{"$f":"IFERROR('MMA Rev-Exp Region 1'!$AB$39/'MMA Rev-Exp Region 1'!$AB$9, 0)","v":{"v":0,"d":"$0.00"}},{"$f":"IFERROR('MMA Rev-Exp Region 1'!$AC$39/'MMA Rev-Exp Region 1'!$AC$9, 0)","v":{"v":0,"d":"$0.00"}},{"$f":"IFERROR('MMA Rev-Exp Region 1'!$AD$39/'MMA Rev-Exp Region 1'!$AD$9, 0)","v":{"v":0,"d":"$0.00"}},{"$f":"IFERROR('MMA Rev-Exp Region 1'!$AE$39/'MMA Rev-Exp Region 1'!$AE$9, 0)","v":{"v":0,"d":"$0.00"}},{"$f":"IFERROR('MMA Rev-Exp Region 1'!$AF$39/'MMA Rev-Exp Region 1'!$AF$9, 0)","v":{"v":0,"d":"$0.00"}},{"$f":"IFERROR('MMA Rev-Exp Region 1'!$AG$39/'MMA Rev-Exp Region 1'!$AG$9, 0)","v":{"v":0,"d":"$0.00"}},{"$f":"IFERROR('MMA Rev-Exp Region 1'!$AH$39/'MMA Rev-Exp Region 1'!$AH$9, 0)","v":{"v":0,"d":"$0.00"}},{"$f":"IFERROR('MMA Rev-Exp Region 1'!$AI$39/'MMA Rev-Exp Region 1'!$AI$9, 0)","v":{"v":0,"d":"$0.00"}},{"$f":"IFERROR('MMA Rev-Exp Region 1'!$AJ$39/'MMA Rev-Exp Region 1'!$AJ$9, 0)","v":{"v":0,"d":"$0.00"}}]
["MMA",null,null,{"$f":"Jurat!I$1","v":0},{"$f":"Jurat!D$33","v":"00:00:00"},"Q3","2017-09-30","Region 1","Operating Expense","Medical Benefits Expense","Mental Health Services",5.1,"Mental Health & Substance Abuse FFS",{"$f":"IFERROR('MMA Rev-Exp Region 1'!$Z$41/'MMA Rev-Exp Region 1'!$Z$9, 0)","v":{"v":0,"d":"$0.00"}},{"$f":"IFERROR('MMA Rev-Exp Region 1'!$AA$41/'MMA Rev-Exp Region 1'!$AA$9, 0)","v":{"v":0,"d":"$0.00"}},{"$f":"IFERROR('MMA Rev-Exp Region 1'!$AB$41/'MMA Rev-Exp Region 1'!$AB$9, 0)","v":{"v":0,"d":"$0.00"}},{"$f":"IFERROR('MMA Rev-Exp Region 1'!$AC$41/'MMA Rev-Exp Region 1'!$AC$9, 0)","v":{"v":0,"d":"$0.00"}},{"$f":"IFERROR('MMA Rev-Exp Region 1'!$AD$41/'MMA Rev-Exp Region 1'!$AD$9, 0)","v":{"v":0,"d":"$0.00"}},{"$f":"IFERROR('MMA Rev-Exp Region 1'!$AE$41/'MMA Rev-Exp Region 1'!$AE$9, 0)","v":{"v":0,"d":"$0.00"}},{"$f":"IFERROR('MMA Rev-Exp Region 1'!$AF$41/'MMA Rev-Exp Region 1'!$AF$9, 0)","v":{"v":0,"d":"$0.00"}},{"$f":"IFERROR('MMA Rev-Exp Region 1'!$AG$41/'MMA Rev-Exp Region 1'!$AG$9, 0)","v":{"v":0,"d":"$0.00"}},{"$f":"IFERROR('MMA Rev-Exp Region 1'!$AH$41/'MMA Rev-Exp Region 1'!$AH$9, 0)","v":{"v":0,"d":"$0.00"}},{"$f":"IFERROR('MMA Rev-Exp Region 1'!$AI$41/'MMA Rev-Exp Region 1'!$AI$9, 0)","v":{"v":0,"d":"$0.00"}},{"$f":"IFERROR('MMA Rev-Exp Region 1'!$AJ$41/'MMA Rev-Exp Region 1'!$AJ$9, 0)","v":{"v":0,"d":"$0.00"}}]
["MMA",null,null,{"$f":"Jurat!I$1","v":0},{"$f":"Jurat!D$33","v":"00:00:00"},"Q3","2017-09-30","Region 1","Operating Expense","Medical Benefits Expense","Mental Health Services",5.2,"Mental Health & Substance Abuse Subcapitation",{"$f":"IFERROR('MMA Rev-Exp Region 1'!$Z$42/'MMA Rev-Exp Region 1'!$Z$9, 0)","v":{"v":0,"d":"$0.00"}},{"$f":"IFERROR('MMA Rev-Exp Region 1'!$AA$42/'MMA Rev-Exp Region 1'!$AA$9, 0)","v":{"v":0,"d":"$0.00"}},{"$f":"IFERROR('MMA Rev-Exp Region 1'!$AB$42/'MMA Rev-Exp Region 1'!$AB$9, 0)","v":{"v":0,"d":"$0.00"}},{"$f":"IFERROR('MMA Rev-Exp Region 1'!$AC$42/'MMA Rev-Exp Region 1'!$AC$9, 0)","v":{"v":0,"d":"$0.00"}},{"$f":"IFERROR('MMA Rev-Exp Region 1'!$AD$42/'MMA Rev-Exp Region 1'!$AD$9, 0)","v":{"v":0,"d":"$0.00"}},{"$f":"IFERROR('MMA Rev-Exp Region 1'!$AE$42/'MMA Rev-Exp Region 1'!$AE$9, 0)","v":{"v":0,"d":"$0.00"}},{"$f":"IFERROR('MMA Rev-Exp Region 1'!$AF$42/'MMA Rev-Exp Region 1'!$AF$9, 0)","v":{"v":0,"d":"$0.00"}},{"$f":"IFERROR('MMA Rev-Exp Region 1'!$AG$42/'MMA Rev-Exp Region 1'!$AG$9, 0)","v":{"v":0,"d":"$0.00"}},{"$f":"IFERROR('MMA Rev-Exp Region 1'!$AH$42/'MMA Rev-Exp Region 1'!$AH$9, 0)","v":{"v":0,"d":"$0.00"}},{"$f":"IFERROR('MMA Rev-Exp Region 1'!$AI$42/'MMA Rev-Exp Region 1'!$AI$9, 0)","v":{"v":0,"d":"$0.00"}},{"$f":"IFERROR('MMA Rev-Exp Region 1'!$AJ$42/'MMA Rev-Exp Region 1'!$AJ$9, 0)","v":{"v":0,"d":"$0.00"}}]
["MMA",null,null,{"$f":"Jurat!I$1","v":0},{"$f":"Jurat!D$33","v":"00:00:00"},"Q3","2017-09-30","Region 1","Operating Expense","Medical Benefits Expense","Mental Health Services",5.3,"Ending IBNP for Mental Health & Substance Abuse",{"$f":"IFERROR('MMA Rev-Exp Region 1'!$Z$43/'MMA Rev-Exp Region 1'!$Z$9, 0)","v":{"v":0,"d":"$0.00"}},{"$f":"IFERROR('MMA Rev-Exp Region 1'!$AA$43/'MMA Rev-Exp Region 1'!$AA$9, 0)","v":{"v":0,"d":"$0.00"}},{"$f":"IFERROR('MMA Rev-Exp Region 1'!$AB$43/'MMA Rev-Exp Region 1'!$AB$9, 0)","v":{"v":0,"d":"$0.00"}},{"$f":"IFERROR('MMA Rev-Exp Region 1'!$AC$43/'MMA Rev-Exp Region 1'!$AC$9, 0)","v":{"v":0,"d":"$0.00"}},{"$f":"IFERROR('MMA Rev-Exp Region 1'!$AD$43/'MMA Rev-Exp Region 1'!$AD$9, 0)","v":{"v":0,"d":"$0.00"}},{"$f":"IFERROR('MMA Rev-Exp Region 1'!$AE$43/'MMA Rev-Exp Region 1'!$AE$9, 0)","v":{"v":0,"d":"$0.00"}},{"$f":"IFERROR('MMA Rev-Exp Region 1'!$AF$43/'MMA Rev-Exp Region 1'!$AF$9, 0)","v":{"v":0,"d":"$0.00"}},{"$f":"IFERROR('MMA Rev-Exp Region 1'!$AG$43/'MMA Rev-Exp Region 1'!$AG$9, 0)","v":{"v":0,"d":"$0.00"}},{"$f":"IFERROR('MMA Rev-Exp Region 1'!$AH$43/'MMA Rev-Exp Region 1'!$AH$9, 0)","v":{"v":0,"d":"$0.00"}},{"$f":"IFERROR('MMA Rev-Exp Region 1'!$AI$43/'MMA Rev-Exp Region 1'!$AI$9, 0)","v":{"v":0,"d":"$0.00"}},{"$f":"IFERROR('MMA Rev-Exp Region 1'!$AJ$43/'MMA Rev-Exp Region 1'!$AJ$9, 0)","v":{"v":0,"d":"$0.00"}}]
["MMA",null,null,{"$f":"Jurat!I$1","v":0},{"$f":"Jurat!D$33","v":"00:00:00"},"Q3","2017-09-30","Region 1","Operating Expense","Medical Benefits Expense","Mental Health Services","5.4","Mental Health Settlements",{"$f":"IFERROR('MMA Rev-Exp Region 1'!$Z$44/'MMA Rev-Exp Region 1'!$Z$9, 0)","v":{"v":0,"d":"$0.00"}},{"$f":"IFERROR('MMA Rev-Exp Region 1'!$AA$44/'MMA Rev-Exp Region 1'!$AA$9, 0)","v":{"v":0,"d":"$0.00"}},{"$f":"IFERROR('MMA Rev-Exp Region 1'!$AB$44/'MMA Rev-Exp Region 1'!$AB$9, 0)","v":{"v":0,"d":"$0.00"}},{"$f":"IFERROR('MMA Rev-Exp Region 1'!$AC$44/'MMA Rev-Exp Region 1'!$AC$9, 0)","v":{"v":0,"d":"$0.00"}},{"$f":"IFERROR('MMA Rev-Exp Region 1'!$AD$44/'MMA Rev-Exp Region 1'!$AD$9, 0)","v":{"v":0,"d":"$0.00"}},{"$f":"IFERROR('MMA Rev-Exp Region 1'!$AE$44/'MMA Rev-Exp Region 1'!$AE$9, 0)","v":{"v":0,"d":"$0.00"}},{"$f":"IFERROR('MMA Rev-Exp Region 1'!$AF$44/'MMA Rev-Exp Region 1'!$AF$9, 0)","v":{"v":0,"d":"$0.00"}},{"$f":"IFERROR('MMA Rev-Exp Region 1'!$AG$44/'MMA Rev-Exp Region 1'!$AG$9, 0)","v":{"v":0,"d":"$0.00"}},{"$f":"IFERROR('MMA Rev-Exp Region 1'!$AH$44/'MMA Rev-Exp Region 1'!$AH$9, 0)","v":{"v":0,"d":"$0.00"}},{"$f":"IFERROR('MMA Rev-Exp Region 1'!$AI$44/'MMA Rev-Exp Region 1'!$AI$9, 0)","v":{"v":0,"d":"$0.00"}},{"$f":"IFERROR('MMA Rev-Exp Region 1'!$AJ$44/'MMA Rev-Exp Region 1'!$AJ$9, 0)","v":{"v":0,"d":"$0.00"}}]
["MMA",null,null,{"$f":"Jurat!I$1","v":0},{"$f":"Jurat!D$33","v":"00:00:00"},"Q3","2017-09-30","Region 1","Operating Expense","Medical Benefits Expense","Dental Services",6.1,"Dental FFS",{"$f":"IFERROR('MMA Rev-Exp Region 1'!$Z$46/'MMA Rev-Exp Region 1'!$Z$9, 0)","v":{"v":0,"d":"$0.00"}},{"$f":"IFERROR('MMA Rev-Exp Region 1'!$AA$46/'MMA Rev-Exp Region 1'!$AA$9, 0)","v":{"v":0,"d":"$0.00"}},{"$f":"IFERROR('MMA Rev-Exp Region 1'!$AB$46/'MMA Rev-Exp Region 1'!$AB$9, 0)","v":{"v":0,"d":"$0.00"}},{"$f":"IFERROR('MMA Rev-Exp Region 1'!$AC$46/'MMA Rev-Exp Region 1'!$AC$9, 0)","v":{"v":0,"d":"$0.00"}},{"$f":"IFERROR('MMA Rev-Exp Region 1'!$AD$46/'MMA Rev-Exp Region 1'!$AD$9, 0)","v":{"v":0,"d":"$0.00"}},{"$f":"IFERROR('MMA Rev-Exp Region 1'!$AE$46/'MMA Rev-Exp Region 1'!$AE$9, 0)","v":{"v":0,"d":"$0.00"}},{"$f":"IFERROR('MMA Rev-Exp Region 1'!$AF$46/'MMA Rev-Exp Region 1'!$AF$9, 0)","v":{"v":0,"d":"$0.00"}},{"$f":"IFERROR('MMA Rev-Exp Region 1'!$AG$46/'MMA Rev-Exp Region 1'!$AG$9, 0)","v":{"v":0,"d":"$0.00"}},{"$f":"IFERROR('MMA Rev-Exp Region 1'!$AH$46/'MMA Rev-Exp Region 1'!$AH$9, 0)","v":{"v":0,"d":"$0.00"}},{"$f":"IFERROR('MMA Rev-Exp Region 1'!$AI$46/'MMA Rev-Exp Region 1'!$AI$9, 0)","v":{"v":0,"d":"$0.00"}},{"$f":"IFERROR('MMA Rev-Exp Region 1'!$AJ$46/'MMA Rev-Exp Region 1'!$AJ$9, 0)","v":{"v":0,"d":"$0.00"}}]
["MMA",null,null,{"$f":"Jurat!I$1","v":0},{"$f":"Jurat!D$33","v":"00:00:00"},"Q3","2017-09-30","Region 1","Operating Expense","Medical Benefits Expense","Dental Services",6.2,"Dental Subcapitation",{"$f":"IFERROR('MMA Rev-Exp Region 1'!$Z$47/'MMA Rev-Exp Region 1'!$Z$9, 0)","v":{"v":0,"d":"$0.00"}},{"$f":"IFERROR('MMA Rev-Exp Region 1'!$AA$47/'MMA Rev-Exp Region 1'!$AA$9, 0)","v":{"v":0,"d":"$0.00"}},{"$f":"IFERROR('MMA Rev-Exp Region 1'!$AB$47/'MMA Rev-Exp Region 1'!$AB$9, 0)","v":{"v":0,"d":"$0.00"}},{"$f":"IFERROR('MMA Rev-Exp Region 1'!$AC$47/'MMA Rev-Exp Region 1'!$AC$9, 0)","v":{"v":0,"d":"$0.00"}},{"$f":"IFERROR('MMA Rev-Exp Region 1'!$AD$47/'MMA Rev-Exp Region 1'!$AD$9, 0)","v":{"v":0,"d":"$0.00"}},{"$f":"IFERROR('MMA Rev-Exp Region 1'!$AE$47/'MMA Rev-Exp Region 1'!$AE$9, 0)","v":{"v":0,"d":"$0.00"}},{"$f":"IFERROR('MMA Rev-Exp Region 1'!$AF$47/'MMA Rev-Exp Region 1'!$AF$9, 0)","v":{"v":0,"d":"$0.00"}},{"$f":"IFERROR('MMA Rev-Exp Region 1'!$AG$47/'MMA Rev-Exp Region 1'!$AG$9, 0)","v":{"v":0,"d":"$0.00"}},{"$f":"IFERROR('MMA Rev-Exp Region 1'!$AH$47/'MMA Rev-Exp Region 1'!$AH$9, 0)","v":{"v":0,"d":"$0.00"}},{"$f":"IFERROR('MMA Rev-Exp Region 1'!$AI$47/'MMA Rev-Exp Region 1'!$AI$9, 0)","v":{"v":0,"d":"$0.00"}},{"$f":"IFERROR('MMA Rev-Exp Region 1'!$AJ$47/'MMA Rev-Exp Region 1'!$AJ$9, 0)","v":{"v":0,"d":"$0.00"}}]
["MMA",null,null,{"$f":"Jurat!I$1","v":0},{"$f":"Jurat!D$33","v":"00:00:00"},"Q3","2017-09-30","Region 1","Operating Expense","Medical Benefits Expense","Dental Services",6.3,"Ending IBNP for Dental Services",{"$f":"IFERROR('MMA Rev-Exp Region 1'!$Z$48/'MMA Rev-Exp Region 1'!$Z$9, 0)","v":{"v":0,"d":"$0.00"}},{"$f":"IFERROR('MMA Rev-Exp Region 1'!$AA$48/'MMA Rev-Exp Region 1'!$AA$9, 0)","v":{"v":0,"d":"$0.00"}},{"$f":"IFERROR('MMA Rev-Exp Region 1'!$AB$48/'MMA Rev-Exp Region 1'!$AB$9, 0)","v":{"v":0,"d":"$0.00"}},{"$f":"IFERROR('MMA Rev-Exp Region 1'!$AC$48/'MMA Rev-Exp Region 1'!$AC$9, 0)","v":{"v":0,"d":"$0.00"}},{"$f":"IFERROR('MMA Rev-Exp Region 1'!$AD$48/'MMA Rev-Exp Region 1'!$AD$9, 0)","v":{"v":0,"d":"$0.00"}},{"$f":"IFERROR('MMA Rev-Exp Region 1'!$AE$48/'MMA Rev-Exp Region 1'!$AE$9, 0)","v":{"v":0,"d":"$0.00"}},{"$f":"IFERROR('MMA Rev-Exp Region 1'!$AF$48/'MMA Rev-Exp Region 1'!$AF$9, 0)","v":{"v":0,"d":"$0.00"}},{"$f":"IFERROR('MMA Rev-Exp Region 1'!$AG$48/'MMA Rev-Exp Region 1'!$AG$9, 0)","v":{"v":0,"d":"$0.00"}},{"$f":"IFERROR('MMA Rev-Exp Region 1'!$AH$48/'MMA Rev-Exp Region 1'!$AH$9, 0)","v":{"v":0,"d":"$0.00"}},{"$f":"IFERROR('MMA Rev-Exp Region 1'!$AI$48/'MMA Rev-Exp Region 1'!$AI$9, 0)","v":{"v":0,"d":"$0.00"}},{"$f":"IFERROR('MMA Rev-Exp Region 1'!$AJ$48/'MMA Rev-Exp Region 1'!$AJ$9, 0)","v":{"v":0,"d":"$0.00"}}]
["MMA",null,null,{"$f":"Jurat!I$1","v":0},{"$f":"Jurat!D$33","v":"00:00:00"},"Q3","2017-09-30","Region 1","Operating Expense","Medical Benefits Expense","Dental Services","6.4","Dental Settlements",{"$f":"IFERROR('MMA Rev-Exp Region 1'!$Z$49/'MMA Rev-Exp Region 1'!$Z$9, 0)","v":{"v":0,"d":"$0.00"}},{"$f":"IFERROR('MMA Rev-Exp Region 1'!$AA$49/'MMA Rev-Exp Region 1'!$AA$9, 0)","v":{"v":0,"d":"$0.00"}},{"$f":"IFERROR('MMA Rev-Exp Region 1'!$AB$49/'MMA Rev-Exp Region 1'!$AB$9, 0)","v":{"v":0,"d":"$0.00"}},{"$f":"IFERROR('MMA Rev-Exp Region 1'!$AC$49/'MMA Rev-Exp Region 1'!$AC$9, 0)","v":{"v":0,"d":"$0.00"}},{"$f":"IFERROR('MMA Rev-Exp Region 1'!$AD$49/'MMA Rev-Exp Region 1'!$AD$9, 0)","v":{"v":0,"d":"$0.00"}},{"$f":"IFERROR('MMA Rev-Exp Region 1'!$AE$49/'MMA Rev-Exp Region 1'!$AE$9, 0)","v":{"v":0,"d":"$0.00"}},{"$f":"IFERROR('MMA Rev-Exp Region 1'!$AF$49/'MMA Rev-Exp Region 1'!$AF$9, 0)","v":{"v":0,"d":"$0.00"}},{"$f":"IFERROR('MMA Rev-Exp Region 1'!$AG$49/'MMA Rev-Exp Region 1'!$AG$9, 0)","v":{"v":0,"d":"$0.00"}},{"$f":"IFERROR('MMA Rev-Exp Region 1'!$AH$49/'MMA Rev-Exp Region 1'!$AH$9, 0)","v":{"v":0,"d":"$0.00"}},{"$f":"IFERROR('MMA Rev-Exp Region 1'!$AI$49/'MMA Rev-Exp Region 1'!$AI$9, 0)","v":{"v":0,"d":"$0.00"}},{"$f":"IFERROR('MMA Rev-Exp Region 1'!$AJ$49/'MMA Rev-Exp Region 1'!$AJ$9, 0)","v":{"v":0,"d":"$0.00"}}]
["MMA",null,null,{"$f":"Jurat!I$1","v":0},{"$f":"Jurat!D$33","v":"00:00:00"},"Q3","2017-09-30","Region 1","Operating Expense","Medical Benefits Expense","Transportation Services",7.1,"Transportation FFS",{"$f":"IFERROR('MMA Rev-Exp Region 1'!$Z$51/'MMA Rev-Exp Region 1'!$Z$9, 0)","v":{"v":0,"d":"$0.00"}},{"$f":"IFERROR('MMA Rev-Exp Region 1'!$AA$51/'MMA Rev-Exp Region 1'!$AA$9, 0)","v":{"v":0,"d":"$0.00"}},{"$f":"IFERROR('MMA Rev-Exp Region 1'!$AB$51/'MMA Rev-Exp Region 1'!$AB$9, 0)","v":{"v":0,"d":"$0.00"}},{"$f":"IFERROR('MMA Rev-Exp Region 1'!$AC$51/'MMA Rev-Exp Region 1'!$AC$9, 0)","v":{"v":0,"d":"$0.00"}},{"$f":"IFERROR('MMA Rev-Exp Region 1'!$AD$51/'MMA Rev-Exp Region 1'!$AD$9, 0)","v":{"v":0,"d":"$0.00"}},{"$f":"IFERROR('MMA Rev-Exp Region 1'!$AE$51/'MMA Rev-Exp Region 1'!$AE$9, 0)","v":{"v":0,"d":"$0.00"}},{"$f":"IFERROR('MMA Rev-Exp Region 1'!$AF$51/'MMA Rev-Exp Region 1'!$AF$9, 0)","v":{"v":0,"d":"$0.00"}},{"$f":"IFERROR('MMA Rev-Exp Region 1'!$AG$51/'MMA Rev-Exp Region 1'!$AG$9, 0)","v":{"v":0,"d":"$0.00"}},{"$f":"IFERROR('MMA Rev-Exp Region 1'!$AH$51/'MMA Rev-Exp Region 1'!$AH$9, 0)","v":{"v":0,"d":"$0.00"}},{"$f":"IFERROR('MMA Rev-Exp Region 1'!$AI$51/'MMA Rev-Exp Region 1'!$AI$9, 0)","v":{"v":0,"d":"$0.00"}},{"$f":"IFERROR('MMA Rev-Exp Region 1'!$AJ$51/'MMA Rev-Exp Region 1'!$AJ$9, 0)","v":{"v":0,"d":"$0.00"}}]
["MMA",null,null,{"$f":"Jurat!I$1","v":0},{"$f":"Jurat!D$33","v":"00:00:00"},"Q3","2017-09-30","Region 1","Operating Expense","Medical Benefits Expense","Transportation Services",7.2,"Transportation Subcapitation",{"$f":"IFERROR('MMA Rev-Exp Region 1'!$Z$52/'MMA Rev-Exp Region 1'!$Z$9, 0)","v":{"v":0,"d":"$0.00"}},{"$f":"IFERROR('MMA Rev-Exp Region 1'!$AA$52/'MMA Rev-Exp Region 1'!$AA$9, 0)","v":{"v":0,"d":"$0.00"}},{"$f":"IFERROR('MMA Rev-Exp Region 1'!$AB$52/'MMA Rev-Exp Region 1'!$AB$9, 0)","v":{"v":0,"d":"$0.00"}},{"$f":"IFERROR('MMA Rev-Exp Region 1'!$AC$52/'MMA Rev-Exp Region 1'!$AC$9, 0)","v":{"v":0,"d":"$0.00"}},{"$f":"IFERROR('MMA Rev-Exp Region 1'!$AD$52/'MMA Rev-Exp Region 1'!$AD$9, 0)","v":{"v":0,"d":"$0.00"}},{"$f":"IFERROR('MMA Rev-Exp Region 1'!$AE$52/'MMA Rev-Exp Region 1'!$AE$9, 0)","v":{"v":0,"d":"$0.00"}},{"$f":"IFERROR('MMA Rev-Exp Region 1'!$AF$52/'MMA Rev-Exp Region 1'!$AF$9, 0)","v":{"v":0,"d":"$0.00"}},{"$f":"IFERROR('MMA Rev-Exp Region 1'!$AG$52/'MMA Rev-Exp Region 1'!$AG$9, 0)","v":{"v":0,"d":"$0.00"}},{"$f":"IFERROR('MMA Rev-Exp Region 1'!$AH$52/'MMA Rev-Exp Region 1'!$AH$9, 0)","v":{"v":0,"d":"$0.00"}},{"$f":"IFERROR('MMA Rev-Exp Region 1'!$AI$52/'MMA Rev-Exp Region 1'!$AI$9, 0)","v":{"v":0,"d":"$0.00"}},{"$f":"IFERROR('MMA Rev-Exp Region 1'!$AJ$52/'MMA Rev-Exp Region 1'!$AJ$9, 0)","v":{"v":0,"d":"$0.00"}}]
["MMA",null,null,{"$f":"Jurat!I$1","v":0},{"$f":"Jurat!D$33","v":"00:00:00"},"Q3","2017-09-30","Region 1","Operating Expense","Medical Benefits Expense","Transportation Services",7.3,"Ending IBNP for Transportation",{"$f":"IFERROR('MMA Rev-Exp Region 1'!$Z$53/'MMA Rev-Exp Region 1'!$Z$9, 0)","v":{"v":0,"d":"$0.00"}},{"$f":"IFERROR('MMA Rev-Exp Region 1'!$AA$53/'MMA Rev-Exp Region 1'!$AA$9, 0)","v":{"v":0,"d":"$0.00"}},{"$f":"IFERROR('MMA Rev-Exp Region 1'!$AB$53/'MMA Rev-Exp Region 1'!$AB$9, 0)","v":{"v":0,"d":"$0.00"}},{"$f":"IFERROR('MMA Rev-Exp Region 1'!$AC$53/'MMA Rev-Exp Region 1'!$AC$9, 0)","v":{"v":0,"d":"$0.00"}},{"$f":"IFERROR('MMA Rev-Exp Region 1'!$AD$53/'MMA Rev-Exp Region 1'!$AD$9, 0)","v":{"v":0,"d":"$0.00"}},{"$f":"IFERROR('MMA Rev-Exp Region 1'!$AE$53/'MMA Rev-Exp Region 1'!$AE$9, 0)","v":{"v":0,"d":"$0.00"}},{"$f":"IFERROR('MMA Rev-Exp Region 1'!$AF$53/'MMA Rev-Exp Region 1'!$AF$9, 0)","v":{"v":0,"d":"$0.00"}},{"$f":"IFERROR('MMA Rev-Exp Region 1'!$AG$53/'MMA Rev-Exp Region 1'!$AG$9, 0)","v":{"v":0,"d":"$0.00"}},{"$f":"IFERROR('MMA Rev-Exp Region 1'!$AH$53/'MMA Rev-Exp Region 1'!$AH$9, 0)","v":{"v":0,"d":"$0.00"}},{"$f":"IFERROR('MMA Rev-Exp Region 1'!$AI$53/'MMA Rev-Exp Region 1'!$AI$9, 0)","v":{"v":0,"d":"$0.00"}},{"$f":"IFERROR('MMA Rev-Exp Region 1'!$AJ$53/'MMA Rev-Exp Region 1'!$AJ$9, 0)","v":{"v":0,"d":"$0.00"}}]
["MMA",null,null,{"$f":"Jurat!I$1","v":0},{"$f":"Jurat!D$33","v":"00:00:00"},"Q3","2017-09-30","Region 1","Operating Expense","Medical Benefits Expense","Transportation Services","7.4","Transportation Settlements",{"$f":"IFERROR('MMA Rev-Exp Region 1'!$Z$54/'MMA Rev-Exp Region 1'!$Z$9, 0)","v":{"v":0,"d":"$0.00"}},{"$f":"IFERROR('MMA Rev-Exp Region 1'!$AA$54/'MMA Rev-Exp Region 1'!$AA$9, 0)","v":{"v":0,"d":"$0.00"}},{"$f":"IFERROR('MMA Rev-Exp Region 1'!$AB$54/'MMA Rev-Exp Region 1'!$AB$9, 0)","v":{"v":0,"d":"$0.00"}},{"$f":"IFERROR('MMA Rev-Exp Region 1'!$AC$54/'MMA Rev-Exp Region 1'!$AC$9, 0)","v":{"v":0,"d":"$0.00"}},{"$f":"IFERROR('MMA Rev-Exp Region 1'!$AD$54/'MMA Rev-Exp Region 1'!$AD$9, 0)","v":{"v":0,"d":"$0.00"}},{"$f":"IFERROR('MMA Rev-Exp Region 1'!$AE$54/'MMA Rev-Exp Region 1'!$AE$9, 0)","v":{"v":0,"d":"$0.00"}},{"$f":"IFERROR('MMA Rev-Exp Region 1'!$AF$54/'MMA Rev-Exp Region 1'!$AF$9, 0)","v":{"v":0,"d":"$0.00"}},{"$f":"IFERROR('MMA Rev-Exp Region 1'!$AG$54/'MMA Rev-Exp Region 1'!$AG$9, 0)","v":{"v":0,"d":"$0.00"}},{"$f":"IFERROR('MMA Rev-Exp Region 1'!$AH$54/'MMA Rev-Exp Region 1'!$AH$9, 0)","v":{"v":0,"d":"$0.00"}},{"$f":"IFERROR('MMA Rev-Exp Region 1'!$AI$54/'MMA Rev-Exp Region 1'!$AI$9, 0)","v":{"v":0,"d":"$0.00"}},{"$f":"IFERROR('MMA Rev-Exp Region 1'!$AJ$54/'MMA Rev-Exp Region 1'!$AJ$9, 0)","v":{"v":0,"d":"$0.00"}}]
["MMA",null,null,{"$f":"Jurat!I$1","v":0},{"$f":"Jurat!D$33","v":"00:00:00"},"Q3","2017-09-30","Region 1","Operating Expense","Medical Benefits Expense","Pharmacy Services",8.1,"Prescription Drugs FFS",{"$f":"IFERROR('MMA Rev-Exp Region 1'!$Z$56/'MMA Rev-Exp Region 1'!$Z$9, 0)","v":{"v":0,"d":"$0.00"}},{"$f":"IFERROR('MMA Rev-Exp Region 1'!$AA$56/'MMA Rev-Exp Region 1'!$AA$9, 0)","v":{"v":0,"d":"$0.00"}},{"$f":"IFERROR('MMA Rev-Exp Region 1'!$AB$56/'MMA Rev-Exp Region 1'!$AB$9, 0)","v":{"v":0,"d":"$0.00"}},{"$f":"IFERROR('MMA Rev-Exp Region 1'!$AC$56/'MMA Rev-Exp Region 1'!$AC$9, 0)","v":{"v":0,"d":"$0.00"}},{"$f":"IFERROR('MMA Rev-Exp Region 1'!$AD$56/'MMA Rev-Exp Region 1'!$AD$9, 0)","v":{"v":0,"d":"$0.00"}},{"$f":"IFERROR('MMA Rev-Exp Region 1'!$AE$56/'MMA Rev-Exp Region 1'!$AE$9, 0)","v":{"v":0,"d":"$0.00"}},{"$f":"IFERROR('MMA Rev-Exp Region 1'!$AF$56/'MMA Rev-Exp Region 1'!$AF$9, 0)","v":{"v":0,"d":"$0.00"}},{"$f":"IFERROR('MMA Rev-Exp Region 1'!$AG$56/'MMA Rev-Exp Region 1'!$AG$9, 0)","v":{"v":0,"d":"$0.00"}},{"$f":"IFERROR('MMA Rev-Exp Region 1'!$AH$56/'MMA Rev-Exp Region 1'!$AH$9, 0)","v":{"v":0,"d":"$0.00"}},{"$f":"IFERROR('MMA Rev-Exp Region 1'!$AI$56/'MMA Rev-Exp Region 1'!$AI$9, 0)","v":{"v":0,"d":"$0.00"}},{"$f":"IFERROR('MMA Rev-Exp Region 1'!$AJ$56/'MMA Rev-Exp Region 1'!$AJ$9, 0)","v":{"v":0,"d":"$0.00"}}]
["MMA",null,null,{"$f":"Jurat!I$1","v":0},{"$f":"Jurat!D$33","v":"00:00:00"},"Q3","2017-09-30","Region 1","Operating Expense","Medical Benefits Expense","Pharmacy Services","8.2","Hepatitis C Prescription Drug FFS",{"$f":"IFERROR('MMA Rev-Exp Region 1'!$Z$57/'MMA Rev-Exp Region 1'!$Z$9, 0)","v":{"v":0,"d":"$0.00"}},{"$f":"IFERROR('MMA Rev-Exp Region 1'!$AA$57/'MMA Rev-Exp Region 1'!$AA$9, 0)","v":{"v":0,"d":"$0.00"}},{"$f":"IFERROR('MMA Rev-Exp Region 1'!$AB$57/'MMA Rev-Exp Region 1'!$AB$9, 0)","v":{"v":0,"d":"$0.00"}},{"$f":"IFERROR('MMA Rev-Exp Region 1'!$AC$57/'MMA Rev-Exp Region 1'!$AC$9, 0)","v":{"v":0,"d":"$0.00"}},{"$f":"IFERROR('MMA Rev-Exp Region 1'!$AD$57/'MMA Rev-Exp Region 1'!$AD$9, 0)","v":{"v":0,"d":"$0.00"}},{"$f":"IFERROR('MMA Rev-Exp Region 1'!$AE$57/'MMA Rev-Exp Region 1'!$AE$9, 0)","v":{"v":0,"d":"$0.00"}},{"$f":"IFERROR('MMA Rev-Exp Region 1'!$AF$57/'MMA Rev-Exp Region 1'!$AF$9, 0)","v":{"v":0,"d":"$0.00"}},{"$f":"IFERROR('MMA Rev-Exp Region 1'!$AG$57/'MMA Rev-Exp Region 1'!$AG$9, 0)","v":{"v":0,"d":"$0.00"}},{"$f":"IFERROR('MMA Rev-Exp Region 1'!$AH$57/'MMA Rev-Exp Region 1'!$AH$9, 0)","v":{"v":0,"d":"$0.00"}},{"$f":"IFERROR('MMA Rev-Exp Region 1'!$AI$57/'MMA Rev-Exp Region 1'!$AI$9, 0)","v":{"v":0,"d":"$0.00"}},{"$f":"IFERROR('MMA Rev-Exp Region 1'!$AJ$57/'MMA Rev-Exp Region 1'!$AJ$9, 0)","v":{"v":0,"d":"$0.00"}}]
["MMA",null,null,{"$f":"Jurat!I$1","v":0},{"$f":"Jurat!D$33","v":"00:00:00"},"Q3","2017-09-30","Region 1","Operating Expense","Medical Benefits Expense","Pharmacy Services","8.3","Ending IBNP for Prescription Drugs",{"$f":"IFERROR('MMA Rev-Exp Region 1'!$Z$58/'MMA Rev-Exp Region 1'!$Z$9, 0)","v":{"v":0,"d":"$0.00"}},{"$f":"IFERROR('MMA Rev-Exp Region 1'!$AA$58/'MMA Rev-Exp Region 1'!$AA$9, 0)","v":{"v":0,"d":"$0.00"}},{"$f":"IFERROR('MMA Rev-Exp Region 1'!$AB$58/'MMA Rev-Exp Region 1'!$AB$9, 0)","v":{"v":0,"d":"$0.00"}},{"$f":"IFERROR('MMA Rev-Exp Region 1'!$AC$58/'MMA Rev-Exp Region 1'!$AC$9, 0)","v":{"v":0,"d":"$0.00"}},{"$f":"IFERROR('MMA Rev-Exp Region 1'!$AD$58/'MMA Rev-Exp Region 1'!$AD$9, 0)","v":{"v":0,"d":"$0.00"}},{"$f":"IFERROR('MMA Rev-Exp Region 1'!$AE$58/'MMA Rev-Exp Region 1'!$AE$9, 0)","v":{"v":0,"d":"$0.00"}},{"$f":"IFERROR('MMA Rev-Exp Region 1'!$AF$58/'MMA Rev-Exp Region 1'!$AF$9, 0)","v":{"v":0,"d":"$0.00"}},{"$f":"IFERROR('MMA Rev-Exp Region 1'!$AG$58/'MMA Rev-Exp Region 1'!$AG$9, 0)","v":{"v":0,"d":"$0.00"}},{"$f":"IFERROR('MMA Rev-Exp Region 1'!$AH$58/'MMA Rev-Exp Region 1'!$AH$9, 0)","v":{"v":0,"d":"$0.00"}},{"$f":"IFERROR('MMA Rev-Exp Region 1'!$AI$58/'MMA Rev-Exp Region 1'!$AI$9, 0)","v":{"v":0,"d":"$0.00"}},{"$f":"IFERROR('MMA Rev-Exp Region 1'!$AJ$58/'MMA Rev-Exp Region 1'!$AJ$9, 0)","v":{"v":0,"d":"$0.00"}}]
["MMA",null,null,{"$f":"Jurat!I$1","v":0},{"$f":"Jurat!D$33","v":"00:00:00"},"Q3","2017-09-30","Region 1","Operating Expense","Medical Benefits Expense","Pharmacy Services","8.4","Prescription Drug Rebates ",{"$f":"IFERROR('MMA Rev-Exp Region 1'!$Z$59/'MMA Rev-Exp Region 1'!$Z$9, 0)","v":{"v":0,"d":"$0.00"}},{"$f":"IFERROR('MMA Rev-Exp Region 1'!$AA$59/'MMA Rev-Exp Region 1'!$AA$9, 0)","v":{"v":0,"d":"$0.00"}},{"$f":"IFERROR('MMA Rev-Exp Region 1'!$AB$59/'MMA Rev-Exp Region 1'!$AB$9, 0)","v":{"v":0,"d":"$0.00"}},{"$f":"IFERROR('MMA Rev-Exp Region 1'!$AC$59/'MMA Rev-Exp Region 1'!$AC$9, 0)","v":{"v":0,"d":"$0.00"}},{"$f":"IFERROR('MMA Rev-Exp Region 1'!$AD$59/'MMA Rev-Exp Region 1'!$AD$9, 0)","v":{"v":0,"d":"$0.00"}},{"$f":"IFERROR('MMA Rev-Exp Region 1'!$AE$59/'MMA Rev-Exp Region 1'!$AE$9, 0)","v":{"v":0,"d":"$0.00"}},{"$f":"IFERROR('MMA Rev-Exp Region 1'!$AF$59/'MMA Rev-Exp Region 1'!$AF$9, 0)","v":{"v":0,"d":"$0.00"}},{"$f":"IFERROR('MMA Rev-Exp Region 1'!$AG$59/'MMA Rev-Exp Region 1'!$AG$9, 0)","v":{"v":0,"d":"$0.00"}},{"$f":"IFERROR('MMA Rev-Exp Region 1'!$AH$59/'MMA Rev-Exp Region 1'!$AH$9, 0)","v":{"v":0,"d":"$0.00"}},{"$f":"IFERROR('MMA Rev-Exp Region 1'!$AI$59/'MMA Rev-Exp Region 1'!$AI$9, 0)","v":{"v":0,"d":"$0.00"}},{"$f":"IFERROR('MMA Rev-Exp Region 1'!$AJ$59/'MMA Rev-Exp Region 1'!$AJ$9, 0)","v":{"v":0,"d":"$0.00"}}]
["MMA",null,null,{"$f":"Jurat!I$1","v":0},{"$f":"Jurat!D$33","v":"00:00:00"},"Q3","2017-09-30","Region 1","Operating Expense","Medical Benefits Expense","Pharmacy Services","8.5","Ending accrual for Rebates receivable",{"$f":"IFERROR('MMA Rev-Exp Region 1'!$Z$60/'MMA Rev-Exp Region 1'!$Z$9, 0)","v":{"v":0,"d":"$0.00"}},{"$f":"IFERROR('MMA Rev-Exp Region 1'!$AA$60/'MMA Rev-Exp Region 1'!$AA$9, 0)","v":{"v":0,"d":"$0.00"}},{"$f":"IFERROR('MMA Rev-Exp Region 1'!$AB$60/'MMA Rev-Exp Region 1'!$AB$9, 0)","v":{"v":0,"d":"$0.00"}},{"$f":"IFERROR('MMA Rev-Exp Region 1'!$AC$60/'MMA Rev-Exp Region 1'!$AC$9, 0)","v":{"v":0,"d":"$0.00"}},{"$f":"IFERROR('MMA Rev-Exp Region 1'!$AD$60/'MMA Rev-Exp Region 1'!$AD$9, 0)","v":{"v":0,"d":"$0.00"}},{"$f":"IFERROR('MMA Rev-Exp Region 1'!$AE$60/'MMA Rev-Exp Region 1'!$AE$9, 0)","v":{"v":0,"d":"$0.00"}},{"$f":"IFERROR('MMA Rev-Exp Region 1'!$AF$60/'MMA Rev-Exp Region 1'!$AF$9, 0)","v":{"v":0,"d":"$0.00"}},{"$f":"IFERROR('MMA Rev-Exp Region 1'!$AG$60/'MMA Rev-Exp Region 1'!$AG$9, 0)","v":{"v":0,"d":"$0.00"}},{"$f":"IFERROR('MMA Rev-Exp Region 1'!$AH$60/'MMA Rev-Exp Region 1'!$AH$9, 0)","v":{"v":0,"d":"$0.00"}},{"$f":"IFERROR('MMA Rev-Exp Region 1'!$AI$60/'MMA Rev-Exp Region 1'!$AI$9, 0)","v":{"v":0,"d":"$0.00"}},{"$f":"IFERROR('MMA Rev-Exp Region 1'!$AJ$60/'MMA Rev-Exp Region 1'!$AJ$9, 0)","v":{"v":0,"d":"$0.00"}}]
["MMA",null,null,{"$f":"Jurat!I$1","v":0},{"$f":"Jurat!D$33","v":"00:00:00"},"Q3","2017-09-30","Region 1","Operating Expense","Medical Benefits Expense","Pharmacy Services","8.6","Prescription Drugs Subcapitation",{"$f":"IFERROR('MMA Rev-Exp Region 1'!$Z$61/'MMA Rev-Exp Region 1'!$Z$9, 0)","v":{"v":0,"d":"$0.00"}},{"$f":"IFERROR('MMA Rev-Exp Region 1'!$AA$61/'MMA Rev-Exp Region 1'!$AA$9, 0)","v":{"v":0,"d":"$0.00"}},{"$f":"IFERROR('MMA Rev-Exp Region 1'!$AB$61/'MMA Rev-Exp Region 1'!$AB$9, 0)","v":{"v":0,"d":"$0.00"}},{"$f":"IFERROR('MMA Rev-Exp Region 1'!$AC$61/'MMA Rev-Exp Region 1'!$AC$9, 0)","v":{"v":0,"d":"$0.00"}},{"$f":"IFERROR('MMA Rev-Exp Region 1'!$AD$61/'MMA Rev-Exp Region 1'!$AD$9, 0)","v":{"v":0,"d":"$0.00"}},{"$f":"IFERROR('MMA Rev-Exp Region 1'!$AE$61/'MMA Rev-Exp Region 1'!$AE$9, 0)","v":{"v":0,"d":"$0.00"}},{"$f":"IFERROR('MMA Rev-Exp Region 1'!$AF$61/'MMA Rev-Exp Region 1'!$AF$9, 0)","v":{"v":0,"d":"$0.00"}},{"$f":"IFERROR('MMA Rev-Exp Region 1'!$AG$61/'MMA Rev-Exp Region 1'!$AG$9, 0)","v":{"v":0,"d":"$0.00"}},{"$f":"IFERROR('MMA Rev-Exp Region 1'!$AH$61/'MMA Rev-Exp Region 1'!$AH$9, 0)","v":{"v":0,"d":"$0.00"}},{"$f":"IFERROR('MMA Rev-Exp Region 1'!$AI$61/'MMA Rev-Exp Region 1'!$AI$9, 0)","v":{"v":0,"d":"$0.00"}},{"$f":"IFERROR('MMA Rev-Exp Region 1'!$AJ$61/'MMA Rev-Exp Region 1'!$AJ$9, 0)","v":{"v":0,"d":"$0.00"}}]
["MMA",null,null,{"$f":"Jurat!I$1","v":0},{"$f":"Jurat!D$33","v":"00:00:00"},"Q3","2017-09-30","Region 1","Operating Expense","Medical Benefits Expense","Pharmacy Services","8.7","Prescription Drug Settlements",{"$f":"IFERROR('MMA Rev-Exp Region 1'!$Z$62/'MMA Rev-Exp Region 1'!$Z$9, 0)","v":{"v":0,"d":"$0.00"}},{"$f":"IFERROR('MMA Rev-Exp Region 1'!$AA$62/'MMA Rev-Exp Region 1'!$AA$9, 0)","v":{"v":0,"d":"$0.00"}},{"$f":"IFERROR('MMA Rev-Exp Region 1'!$AB$62/'MMA Rev-Exp Region 1'!$AB$9, 0)","v":{"v":0,"d":"$0.00"}},{"$f":"IFERROR('MMA Rev-Exp Region 1'!$AC$62/'MMA Rev-Exp Region 1'!$AC$9, 0)","v":{"v":0,"d":"$0.00"}},{"$f":"IFERROR('MMA Rev-Exp Region 1'!$AD$62/'MMA Rev-Exp Region 1'!$AD$9, 0)","v":{"v":0,"d":"$0.00"}},{"$f":"IFERROR('MMA Rev-Exp Region 1'!$AE$62/'MMA Rev-Exp Region 1'!$AE$9, 0)","v":{"v":0,"d":"$0.00"}},{"$f":"IFERROR('MMA Rev-Exp Region 1'!$AF$62/'MMA Rev-Exp Region 1'!$AF$9, 0)","v":{"v":0,"d":"$0.00"}},{"$f":"IFERROR('MMA Rev-Exp Region 1'!$AG$62/'MMA Rev-Exp Region 1'!$AG$9, 0)","v":{"v":0,"d":"$0.00"}},{"$f":"IFERROR('MMA Rev-Exp Region 1'!$AH$62/'MMA Rev-Exp Region 1'!$AH$9, 0)","v":{"v":0,"d":"$0.00"}},{"$f":"IFERROR('MMA Rev-Exp Region 1'!$AI$62/'MMA Rev-Exp Region 1'!$AI$9, 0)","v":{"v":0,"d":"$0.00"}},{"$f":"IFERROR('MMA Rev-Exp Region 1'!$AJ$62/'MMA Rev-Exp Region 1'!$AJ$9, 0)","v":{"v":0,"d":"$0.00"}}]
["MMA",null,null,{"$f":"Jurat!I$1","v":0},{"$f":"Jurat!D$33","v":"00:00:00"},"Q3","2017-09-30","Region 1","Operating Expense","Medical Benefits Expense","Other MMA Services",9.1,"Home Health, Private Duty Nursing, Personal Care FFS",{"$f":"IFERROR('MMA Rev-Exp Region 1'!$Z$64/'MMA Rev-Exp Region 1'!$Z$9, 0)","v":{"v":0,"d":"$0.00"}},{"$f":"IFERROR('MMA Rev-Exp Region 1'!$AA$64/'MMA Rev-Exp Region 1'!$AA$9, 0)","v":{"v":0,"d":"$0.00"}},{"$f":"IFERROR('MMA Rev-Exp Region 1'!$AB$64/'MMA Rev-Exp Region 1'!$AB$9, 0)","v":{"v":0,"d":"$0.00"}},{"$f":"IFERROR('MMA Rev-Exp Region 1'!$AC$64/'MMA Rev-Exp Region 1'!$AC$9, 0)","v":{"v":0,"d":"$0.00"}},{"$f":"IFERROR('MMA Rev-Exp Region 1'!$AD$64/'MMA Rev-Exp Region 1'!$AD$9, 0)","v":{"v":0,"d":"$0.00"}},{"$f":"IFERROR('MMA Rev-Exp Region 1'!$AE$64/'MMA Rev-Exp Region 1'!$AE$9, 0)","v":{"v":0,"d":"$0.00"}},{"$f":"IFERROR('MMA Rev-Exp Region 1'!$AF$64/'MMA Rev-Exp Region 1'!$AF$9, 0)","v":{"v":0,"d":"$0.00"}},{"$f":"IFERROR('MMA Rev-Exp Region 1'!$AG$64/'MMA Rev-Exp Region 1'!$AG$9, 0)","v":{"v":0,"d":"$0.00"}},{"$f":"IFERROR('MMA Rev-Exp Region 1'!$AH$64/'MMA Rev-Exp Region 1'!$AH$9, 0)","v":{"v":0,"d":"$0.00"}},{"$f":"IFERROR('MMA Rev-Exp Region 1'!$AI$64/'MMA Rev-Exp Region 1'!$AI$9, 0)","v":{"v":0,"d":"$0.00"}},{"$f":"IFERROR('MMA Rev-Exp Region 1'!$AJ$64/'MMA Rev-Exp Region 1'!$AJ$9, 0)","v":{"v":0,"d":"$0.00"}}]
["MMA",null,null,{"$f":"Jurat!I$1","v":0},{"$f":"Jurat!D$33","v":"00:00:00"},"Q3","2017-09-30","Region 1","Operating Expense","Medical Benefits Expense","Other MMA Services","9.2","Hospice FFS",{"$f":"IFERROR('MMA Rev-Exp Region 1'!$Z$65/'MMA Rev-Exp Region 1'!$Z$9, 0)","v":{"v":0,"d":"$0.00"}},{"$f":"IFERROR('MMA Rev-Exp Region 1'!$AA$65/'MMA Rev-Exp Region 1'!$AA$9, 0)","v":{"v":0,"d":"$0.00"}},{"$f":"IFERROR('MMA Rev-Exp Region 1'!$AB$65/'MMA Rev-Exp Region 1'!$AB$9, 0)","v":{"v":0,"d":"$0.00"}},{"$f":"IFERROR('MMA Rev-Exp Region 1'!$AC$65/'MMA Rev-Exp Region 1'!$AC$9, 0)","v":{"v":0,"d":"$0.00"}},{"$f":"IFERROR('MMA Rev-Exp Region 1'!$AD$65/'MMA Rev-Exp Region 1'!$AD$9, 0)","v":{"v":0,"d":"$0.00"}},{"$f":"IFERROR('MMA Rev-Exp Region 1'!$AE$65/'MMA Rev-Exp Region 1'!$AE$9, 0)","v":{"v":0,"d":"$0.00"}},{"$f":"IFERROR('MMA Rev-Exp Region 1'!$AF$65/'MMA Rev-Exp Region 1'!$AF$9, 0)","v":{"v":0,"d":"$0.00"}},{"$f":"IFERROR('MMA Rev-Exp Region 1'!$AG$65/'MMA Rev-Exp Region 1'!$AG$9, 0)","v":{"v":0,"d":"$0.00"}},{"$f":"IFERROR('MMA Rev-Exp Region 1'!$AH$65/'MMA Rev-Exp Region 1'!$AH$9, 0)","v":{"v":0,"d":"$0.00"}},{"$f":"IFERROR('MMA Rev-Exp Region 1'!$AI$65/'MMA Rev-Exp Region 1'!$AI$9, 0)","v":{"v":0,"d":"$0.00"}},{"$f":"IFERROR('MMA Rev-Exp Region 1'!$AJ$65/'MMA Rev-Exp Region 1'!$AJ$9, 0)","v":{"v":0,"d":"$0.00"}}]
["MMA",null,null,{"$f":"Jurat!I$1","v":0},{"$f":"Jurat!D$33","v":"00:00:00"},"Q3","2017-09-30","Region 1","Operating Expense","Medical Benefits Expense","Other MMA Services","9.3","DME FFS",{"$f":"IFERROR('MMA Rev-Exp Region 1'!$Z$66/'MMA Rev-Exp Region 1'!$Z$9, 0)","v":{"v":0,"d":"$0.00"}},{"$f":"IFERROR('MMA Rev-Exp Region 1'!$AA$66/'MMA Rev-Exp Region 1'!$AA$9, 0)","v":{"v":0,"d":"$0.00"}},{"$f":"IFERROR('MMA Rev-Exp Region 1'!$AB$66/'MMA Rev-Exp Region 1'!$AB$9, 0)","v":{"v":0,"d":"$0.00"}},{"$f":"IFERROR('MMA Rev-Exp Region 1'!$AC$66/'MMA Rev-Exp Region 1'!$AC$9, 0)","v":{"v":0,"d":"$0.00"}},{"$f":"IFERROR('MMA Rev-Exp Region 1'!$AD$66/'MMA Rev-Exp Region 1'!$AD$9, 0)","v":{"v":0,"d":"$0.00"}},{"$f":"IFERROR('MMA Rev-Exp Region 1'!$AE$66/'MMA Rev-Exp Region 1'!$AE$9, 0)","v":{"v":0,"d":"$0.00"}},{"$f":"IFERROR('MMA Rev-Exp Region 1'!$AF$66/'MMA Rev-Exp Region 1'!$AF$9, 0)","v":{"v":0,"d":"$0.00"}},{"$f":"IFERROR('MMA Rev-Exp Region 1'!$AG$66/'MMA Rev-Exp Region 1'!$AG$9, 0)","v":{"v":0,"d":"$0.00"}},{"$f":"IFERROR('MMA Rev-Exp Region 1'!$AH$66/'MMA Rev-Exp Region 1'!$AH$9, 0)","v":{"v":0,"d":"$0.00"}},{"$f":"IFERROR('MMA Rev-Exp Region 1'!$AI$66/'MMA Rev-Exp Region 1'!$AI$9, 0)","v":{"v":0,"d":"$0.00"}},{"$f":"IFERROR('MMA Rev-Exp Region 1'!$AJ$66/'MMA Rev-Exp Region 1'!$AJ$9, 0)","v":{"v":0,"d":"$0.00"}}]
["MMA",null,null,{"$f":"Jurat!I$1","v":0},{"$f":"Jurat!D$33","v":"00:00:00"},"Q3","2017-09-30","Region 1","Operating Expense","Medical Benefits Expense","Other MMA Services","9.4","Other State Plan Services FFS",{"$f":"IFERROR('MMA Rev-Exp Region 1'!$Z$67/'MMA Rev-Exp Region 1'!$Z$9, 0)","v":{"v":0,"d":"$0.00"}},{"$f":"IFERROR('MMA Rev-Exp Region 1'!$AA$67/'MMA Rev-Exp Region 1'!$AA$9, 0)","v":{"v":0,"d":"$0.00"}},{"$f":"IFERROR('MMA Rev-Exp Region 1'!$AB$67/'MMA Rev-Exp Region 1'!$AB$9, 0)","v":{"v":0,"d":"$0.00"}},{"$f":"IFERROR('MMA Rev-Exp Region 1'!$AC$67/'MMA Rev-Exp Region 1'!$AC$9, 0)","v":{"v":0,"d":"$0.00"}},{"$f":"IFERROR('MMA Rev-Exp Region 1'!$AD$67/'MMA Rev-Exp Region 1'!$AD$9, 0)","v":{"v":0,"d":"$0.00"}},{"$f":"IFERROR('MMA Rev-Exp Region 1'!$AE$67/'MMA Rev-Exp Region 1'!$AE$9, 0)","v":{"v":0,"d":"$0.00"}},{"$f":"IFERROR('MMA Rev-Exp Region 1'!$AF$67/'MMA Rev-Exp Region 1'!$AF$9, 0)","v":{"v":0,"d":"$0.00"}},{"$f":"IFERROR('MMA Rev-Exp Region 1'!$AG$67/'MMA Rev-Exp Region 1'!$AG$9, 0)","v":{"v":0,"d":"$0.00"}},{"$f":"IFERROR('MMA Rev-Exp Region 1'!$AH$67/'MMA Rev-Exp Region 1'!$AH$9, 0)","v":{"v":0,"d":"$0.00"}},{"$f":"IFERROR('MMA Rev-Exp Region 1'!$AI$67/'MMA Rev-Exp Region 1'!$AI$9, 0)","v":{"v":0,"d":"$0.00"}},{"$f":"IFERROR('MMA Rev-Exp Region 1'!$AJ$67/'MMA Rev-Exp Region 1'!$AJ$9, 0)","v":{"v":0,"d":"$0.00"}}]
["MMA",null,null,{"$f":"Jurat!I$1","v":0},{"$f":"Jurat!D$33","v":"00:00:00"},"Q3","2017-09-30","Region 1","Operating Expense","Medical Benefits Expense","Other MMA Services","9.5","Other Services Subcapitation",{"$f":"IFERROR('MMA Rev-Exp Region 1'!$Z$68/'MMA Rev-Exp Region 1'!$Z$9, 0)","v":{"v":0,"d":"$0.00"}},{"$f":"IFERROR('MMA Rev-Exp Region 1'!$AA$68/'MMA Rev-Exp Region 1'!$AA$9, 0)","v":{"v":0,"d":"$0.00"}},{"$f":"IFERROR('MMA Rev-Exp Region 1'!$AB$68/'MMA Rev-Exp Region 1'!$AB$9, 0)","v":{"v":0,"d":"$0.00"}},{"$f":"IFERROR('MMA Rev-Exp Region 1'!$AC$68/'MMA Rev-Exp Region 1'!$AC$9, 0)","v":{"v":0,"d":"$0.00"}},{"$f":"IFERROR('MMA Rev-Exp Region 1'!$AD$68/'MMA Rev-Exp Region 1'!$AD$9, 0)","v":{"v":0,"d":"$0.00"}},{"$f":"IFERROR('MMA Rev-Exp Region 1'!$AE$68/'MMA Rev-Exp Region 1'!$AE$9, 0)","v":{"v":0,"d":"$0.00"}},{"$f":"IFERROR('MMA Rev-Exp Region 1'!$AF$68/'MMA Rev-Exp Region 1'!$AF$9, 0)","v":{"v":0,"d":"$0.00"}},{"$f":"IFERROR('MMA Rev-Exp Region 1'!$AG$68/'MMA Rev-Exp Region 1'!$AG$9, 0)","v":{"v":0,"d":"$0.00"}},{"$f":"IFERROR('MMA Rev-Exp Region 1'!$AH$68/'MMA Rev-Exp Region 1'!$AH$9, 0)","v":{"v":0,"d":"$0.00"}},{"$f":"IFERROR('MMA Rev-Exp Region 1'!$AI$68/'MMA Rev-Exp Region 1'!$AI$9, 0)","v":{"v":0,"d":"$0.00"}},{"$f":"IFERROR('MMA Rev-Exp Region 1'!$AJ$68/'MMA Rev-Exp Region 1'!$AJ$9, 0)","v":{"v":0,"d":"$0.00"}}]
["MMA",null,null,{"$f":"Jurat!I$1","v":0},{"$f":"Jurat!D$33","v":"00:00:00"},"Q3","2017-09-30","Region 1","Operating Expense","Medical Benefits Expense","Other MMA Services","9.6","Ending IBNP for Other Services",{"$f":"IFERROR('MMA Rev-Exp Region 1'!$Z$69/'MMA Rev-Exp Region 1'!$Z$9, 0)","v":{"v":0,"d":"$0.00"}},{"$f":"IFERROR('MMA Rev-Exp Region 1'!$AA$69/'MMA Rev-Exp Region 1'!$AA$9, 0)","v":{"v":0,"d":"$0.00"}},{"$f":"IFERROR('MMA Rev-Exp Region 1'!$AB$69/'MMA Rev-Exp Region 1'!$AB$9, 0)","v":{"v":0,"d":"$0.00"}},{"$f":"IFERROR('MMA Rev-Exp Region 1'!$AC$69/'MMA Rev-Exp Region 1'!$AC$9, 0)","v":{"v":0,"d":"$0.00"}},{"$f":"IFERROR('MMA Rev-Exp Region 1'!$AD$69/'MMA Rev-Exp Region 1'!$AD$9, 0)","v":{"v":0,"d":"$0.00"}},{"$f":"IFERROR('MMA Rev-Exp Region 1'!$AE$69/'MMA Rev-Exp Region 1'!$AE$9, 0)","v":{"v":0,"d":"$0.00"}},{"$f":"IFERROR('MMA Rev-Exp Region 1'!$AF$69/'MMA Rev-Exp Region 1'!$AF$9, 0)","v":{"v":0,"d":"$0.00"}},{"$f":"IFERROR('MMA Rev-Exp Region 1'!$AG$69/'MMA Rev-Exp Region 1'!$AG$9, 0)","v":{"v":0,"d":"$0.00"}},{"$f":"IFERROR('MMA Rev-Exp Region 1'!$AH$69/'MMA Rev-Exp Region 1'!$AH$9, 0)","v":{"v":0,"d":"$0.00"}},{"$f":"IFERROR('MMA Rev-Exp Region 1'!$AI$69/'MMA Rev-Exp Region 1'!$AI$9, 0)","v":{"v":0,"d":"$0.00"}},{"$f":"IFERROR('MMA Rev-Exp Region 1'!$AJ$69/'MMA Rev-Exp Region 1'!$AJ$9, 0)","v":{"v":0,"d":"$0.00"}}]
["MMA",null,null,{"$f":"Jurat!I$1","v":0},{"$f":"Jurat!D$33","v":"00:00:00"},"Q3","2017-09-30","Region 1","Operating Expense","Medical Benefits Expense","Other MMA Services","9.7","Other Services Settlements",{"$f":"IFERROR('MMA Rev-Exp Region 1'!$Z$70/'MMA Rev-Exp Region 1'!$Z$9, 0)","v":{"v":0,"d":"$0.00"}},{"$f":"IFERROR('MMA Rev-Exp Region 1'!$AA$70/'MMA Rev-Exp Region 1'!$AA$9, 0)","v":{"v":0,"d":"$0.00"}},{"$f":"IFERROR('MMA Rev-Exp Region 1'!$AB$70/'MMA Rev-Exp Region 1'!$AB$9, 0)","v":{"v":0,"d":"$0.00"}},{"$f":"IFERROR('MMA Rev-Exp Region 1'!$AC$70/'MMA Rev-Exp Region 1'!$AC$9, 0)","v":{"v":0,"d":"$0.00"}},{"$f":"IFERROR('MMA Rev-Exp Region 1'!$AD$70/'MMA Rev-Exp Region 1'!$AD$9, 0)","v":{"v":0,"d":"$0.00"}},{"$f":"IFERROR('MMA Rev-Exp Region 1'!$AE$70/'MMA Rev-Exp Region 1'!$AE$9, 0)","v":{"v":0,"d":"$0.00"}},{"$f":"IFERROR('MMA Rev-Exp Region 1'!$AF$70/'MMA Rev-Exp Region 1'!$AF$9, 0)","v":{"v":0,"d":"$0.00"}},{"$f":"IFERROR('MMA Rev-Exp Region 1'!$AG$70/'MMA Rev-Exp Region 1'!$AG$9, 0)","v":{"v":0,"d":"$0.00"}},{"$f":"IFERROR('MMA Rev-Exp Region 1'!$AH$70/'MMA Rev-Exp Region 1'!$AH$9, 0)","v":{"v":0,"d":"$0.00"}},{"$f":"IFERROR('MMA Rev-Exp Region 1'!$AI$70/'MMA Rev-Exp Region 1'!$AI$9, 0)","v":{"v":0,"d":"$0.00"}},{"$f":"IFERROR('MMA Rev-Exp Region 1'!$AJ$70/'MMA Rev-Exp Region 1'!$AJ$9, 0)","v":{"v":0,"d":"$0.00"}}]
["MMA",null,null,{"$f":"Jurat!I$1","v":0},{"$f":"Jurat!D$33","v":"00:00:00"},"Q3","2017-09-30","Region 1","Operating Expense","Medical Benefits Expense","Expanded Benefits","10.1","Expanded Benefits FFS",{"$f":"IFERROR('MMA Rev-Exp Region 1'!$Z$72/'MMA Rev-Exp Region 1'!$Z$9, 0)","v":{"v":0,"d":"$0.00"}},{"$f":"IFERROR('MMA Rev-Exp Region 1'!$AA$72/'MMA Rev-Exp Region 1'!$AA$9, 0)","v":{"v":0,"d":"$0.00"}},{"$f":"IFERROR('MMA Rev-Exp Region 1'!$AB$72/'MMA Rev-Exp Region 1'!$AB$9, 0)","v":{"v":0,"d":"$0.00"}},{"$f":"IFERROR('MMA Rev-Exp Region 1'!$AC$72/'MMA Rev-Exp Region 1'!$AC$9, 0)","v":{"v":0,"d":"$0.00"}},{"$f":"IFERROR('MMA Rev-Exp Region 1'!$AD$72/'MMA Rev-Exp Region 1'!$AD$9, 0)","v":{"v":0,"d":"$0.00"}},{"$f":"IFERROR('MMA Rev-Exp Region 1'!$AE$72/'MMA Rev-Exp Region 1'!$AE$9, 0)","v":{"v":0,"d":"$0.00"}},{"$f":"IFERROR('MMA Rev-Exp Region 1'!$AF$72/'MMA Rev-Exp Region 1'!$AF$9, 0)","v":{"v":0,"d":"$0.00"}},{"$f":"IFERROR('MMA Rev-Exp Region 1'!$AG$72/'MMA Rev-Exp Region 1'!$AG$9, 0)","v":{"v":0,"d":"$0.00"}},{"$f":"IFERROR('MMA Rev-Exp Region 1'!$AH$72/'MMA Rev-Exp Region 1'!$AH$9, 0)","v":{"v":0,"d":"$0.00"}},{"$f":"IFERROR('MMA Rev-Exp Region 1'!$AI$72/'MMA Rev-Exp Region 1'!$AI$9, 0)","v":{"v":0,"d":"$0.00"}},{"$f":"IFERROR('MMA Rev-Exp Region 1'!$AJ$72/'MMA Rev-Exp Region 1'!$AJ$9, 0)","v":{"v":0,"d":"$0.00"}}]
["MMA",null,null,{"$f":"Jurat!I$1","v":0},{"$f":"Jurat!D$33","v":"00:00:00"},"Q3","2017-09-30","Region 1","Operating Expense","Medical Benefits Expense","Expanded Benefits","10.2","Expanded benefits Subcapitation",{"$f":"IFERROR('MMA Rev-Exp Region 1'!$Z$73/'MMA Rev-Exp Region 1'!$Z$9, 0)","v":{"v":0,"d":"$0.00"}},{"$f":"IFERROR('MMA Rev-Exp Region 1'!$AA$73/'MMA Rev-Exp Region 1'!$AA$9, 0)","v":{"v":0,"d":"$0.00"}},{"$f":"IFERROR('MMA Rev-Exp Region 1'!$AB$73/'MMA Rev-Exp Region 1'!$AB$9, 0)","v":{"v":0,"d":"$0.00"}},{"$f":"IFERROR('MMA Rev-Exp Region 1'!$AC$73/'MMA Rev-Exp Region 1'!$AC$9, 0)","v":{"v":0,"d":"$0.00"}},{"$f":"IFERROR('MMA Rev-Exp Region 1'!$AD$73/'MMA Rev-Exp Region 1'!$AD$9, 0)","v":{"v":0,"d":"$0.00"}},{"$f":"IFERROR('MMA Rev-Exp Region 1'!$AE$73/'MMA Rev-Exp Region 1'!$AE$9, 0)","v":{"v":0,"d":"$0.00"}},{"$f":"IFERROR('MMA Rev-Exp Region 1'!$AF$73/'MMA Rev-Exp Region 1'!$AF$9, 0)","v":{"v":0,"d":"$0.00"}},{"$f":"IFERROR('MMA Rev-Exp Region 1'!$AG$73/'MMA Rev-Exp Region 1'!$AG$9, 0)","v":{"v":0,"d":"$0.00"}},{"$f":"IFERROR('MMA Rev-Exp Region 1'!$AH$73/'MMA Rev-Exp Region 1'!$AH$9, 0)","v":{"v":0,"d":"$0.00"}},{"$f":"IFERROR('MMA Rev-Exp Region 1'!$AI$73/'MMA Rev-Exp Region 1'!$AI$9, 0)","v":{"v":0,"d":"$0.00"}},{"$f":"IFERROR('MMA Rev-Exp Region 1'!$AJ$73/'MMA Rev-Exp Region 1'!$AJ$9, 0)","v":{"v":0,"d":"$0.00"}}]
["MMA",null,null,{"$f":"Jurat!I$1","v":0},{"$f":"Jurat!D$33","v":"00:00:00"},"Q3","2017-09-30","Region 1","Operating Expense","Medical Benefits Expense","Expanded Benefits","10.3","Ending IBNP for Expanded Benefits",{"$f":"IFERROR('MMA Rev-Exp Region 1'!$Z$74/'MMA Rev-Exp Region 1'!$Z$9, 0)","v":{"v":0,"d":"$0.00"}},{"$f":"IFERROR('MMA Rev-Exp Region 1'!$AA$74/'MMA Rev-Exp Region 1'!$AA$9, 0)","v":{"v":0,"d":"$0.00"}},{"$f":"IFERROR('MMA Rev-Exp Region 1'!$AB$74/'MMA Rev-Exp Region 1'!$AB$9, 0)","v":{"v":0,"d":"$0.00"}},{"$f":"IFERROR('MMA Rev-Exp Region 1'!$AC$74/'MMA Rev-Exp Region 1'!$AC$9, 0)","v":{"v":0,"d":"$0.00"}},{"$f":"IFERROR('MMA Rev-Exp Region 1'!$AD$74/'MMA Rev-Exp Region 1'!$AD$9, 0)","v":{"v":0,"d":"$0.00"}},{"$f":"IFERROR('MMA Rev-Exp Region 1'!$AE$74/'MMA Rev-Exp Region 1'!$AE$9, 0)","v":{"v":0,"d":"$0.00"}},{"$f":"IFERROR('MMA Rev-Exp Region 1'!$AF$74/'MMA Rev-Exp Region 1'!$AF$9, 0)","v":{"v":0,"d":"$0.00"}},{"$f":"IFERROR('MMA Rev-Exp Region 1'!$AG$74/'MMA Rev-Exp Region 1'!$AG$9, 0)","v":{"v":0,"d":"$0.00"}},{"$f":"IFERROR('MMA Rev-Exp Region 1'!$AH$74/'MMA Rev-Exp Region 1'!$AH$9, 0)","v":{"v":0,"d":"$0.00"}},{"$f":"IFERROR('MMA Rev-Exp Region 1'!$AI$74/'MMA Rev-Exp Region 1'!$AI$9, 0)","v":{"v":0,"d":"$0.00"}},{"$f":"IFERROR('MMA Rev-Exp Region 1'!$AJ$74/'MMA Rev-Exp Region 1'!$AJ$9, 0)","v":{"v":0,"d":"$0.00"}}]
["MMA",null,null,{"$f":"Jurat!I$1","v":0},{"$f":"Jurat!D$33","v":"00:00:00"},"Q3","2017-09-30","Region 1","Operating Expense","Medical Benefits Expense","Expanded Benefits","10.4","Expanded Benefits Settlements",{"$f":"IFERROR('MMA Rev-Exp Region 1'!$Z$75/'MMA Rev-Exp Region 1'!$Z$9, 0)","v":{"v":0,"d":"$0.00"}},{"$f":"IFERROR('MMA Rev-Exp Region 1'!$AA$75/'MMA Rev-Exp Region 1'!$AA$9, 0)","v":{"v":0,"d":"$0.00"}},{"$f":"IFERROR('MMA Rev-Exp Region 1'!$AB$75/'MMA Rev-Exp Region 1'!$AB$9, 0)","v":{"v":0,"d":"$0.00"}},{"$f":"IFERROR('MMA Rev-Exp Region 1'!$AC$75/'MMA Rev-Exp Region 1'!$AC$9, 0)","v":{"v":0,"d":"$0.00"}},{"$f":"IFERROR('MMA Rev-Exp Region 1'!$AD$75/'MMA Rev-Exp Region 1'!$AD$9, 0)","v":{"v":0,"d":"$0.00"}},{"$f":"IFERROR('MMA Rev-Exp Region 1'!$AE$75/'MMA Rev-Exp Region 1'!$AE$9, 0)","v":{"v":0,"d":"$0.00"}},{"$f":"IFERROR('MMA Rev-Exp Region 1'!$AF$75/'MMA Rev-Exp Region 1'!$AF$9, 0)","v":{"v":0,"d":"$0.00"}},{"$f":"IFERROR('MMA Rev-Exp Region 1'!$AG$75/'MMA Rev-Exp Region 1'!$AG$9, 0)","v":{"v":0,"d":"$0.00"}},{"$f":"IFERROR('MMA Rev-Exp Region 1'!$AH$75/'MMA Rev-Exp Region 1'!$AH$9, 0)","v":{"v":0,"d":"$0.00"}},{"$f":"IFERROR('MMA Rev-Exp Region 1'!$AI$75/'MMA Rev-Exp Region 1'!$AI$9, 0)","v":{"v":0,"d":"$0.00"}},{"$f":"IFERROR('MMA Rev-Exp Region 1'!$AJ$75/'MMA Rev-Exp Region 1'!$AJ$9, 0)","v":{"v":0,"d":"$0.00"}}]
["MMA",null,null,{"$f":"Jurat!I$1","v":0},{"$f":"Jurat!D$33","v":"00:00:00"},"Q3","2017-09-30","Region 1","Operating Expense","Medical Benefits Expense","Other Medical","11.5","TPL & Fraud/Abuse Recoveries",{"$f":"IFERROR('MMA Rev-Exp Region 1'!$Z$81/'MMA Rev-Exp Region 1'!$Z$9, 0)","v":{"v":0,"d":"$0.00"}},{"$f":"IFERROR('MMA Rev-Exp Region 1'!$AA$81/'MMA Rev-Exp Region 1'!$AA$9, 0)","v":{"v":0,"d":"$0.00"}},{"$f":"IFERROR('MMA Rev-Exp Region 1'!$AB$81/'MMA Rev-Exp Region 1'!$AB$9, 0)","v":{"v":0,"d":"$0.00"}},{"$f":"IFERROR('MMA Rev-Exp Region 1'!$AC$81/'MMA Rev-Exp Region 1'!$AC$9, 0)","v":{"v":0,"d":"$0.00"}},{"$f":"IFERROR('MMA Rev-Exp Region 1'!$AD$81/'MMA Rev-Exp Region 1'!$AD$9, 0)","v":{"v":0,"d":"$0.00"}},{"$f":"IFERROR('MMA Rev-Exp Region 1'!$AE$81/'MMA Rev-Exp Region 1'!$AE$9, 0)","v":{"v":0,"d":"$0.00"}},{"$f":"IFERROR('MMA Rev-Exp Region 1'!$AF$81/'MMA Rev-Exp Region 1'!$AF$9, 0)","v":{"v":0,"d":"$0.00"}},{"$f":"IFERROR('MMA Rev-Exp Region 1'!$AG$81/'MMA Rev-Exp Region 1'!$AG$9, 0)","v":{"v":0,"d":"$0.00"}},{"$f":"IFERROR('MMA Rev-Exp Region 1'!$AH$81/'MMA Rev-Exp Region 1'!$AH$9, 0)","v":{"v":0,"d":"$0.00"}},{"$f":"IFERROR('MMA Rev-Exp Region 1'!$AI$81/'MMA Rev-Exp Region 1'!$AI$9, 0)","v":{"v":0,"d":"$0.00"}},{"$f":"IFERROR('MMA Rev-Exp Region 1'!$AJ$81/'MMA Rev-Exp Region 1'!$AJ$9, 0)","v":{"v":0,"d":"$0.00"}}]
["MMA",null,null,{"$f":"Jurat!I$1","v":0},{"$f":"Jurat!D$33","v":"00:00:00"},"Q3","2017-09-30","Region 1","Operating Expense","Medical Benefits Expense","Other Medical","11.6.1","Premium Deficiency Reserve",{"$f":"IFERROR('MMA Rev-Exp Region 1'!$Z$82/'MMA Rev-Exp Region 1'!$Z$9, 0)","v":{"v":0,"d":"$0.00"}},{"$f":"IFERROR('MMA Rev-Exp Region 1'!$AA$82/'MMA Rev-Exp Region 1'!$AA$9, 0)","v":{"v":0,"d":"$0.00"}},{"$f":"IFERROR('MMA Rev-Exp Region 1'!$AB$82/'MMA Rev-Exp Region 1'!$AB$9, 0)","v":{"v":0,"d":"$0.00"}},{"$f":"IFERROR('MMA Rev-Exp Region 1'!$AC$82/'MMA Rev-Exp Region 1'!$AC$9, 0)","v":{"v":0,"d":"$0.00"}},{"$f":"IFERROR('MMA Rev-Exp Region 1'!$AD$82/'MMA Rev-Exp Region 1'!$AD$9, 0)","v":{"v":0,"d":"$0.00"}},{"$f":"IFERROR('MMA Rev-Exp Region 1'!$AE$82/'MMA Rev-Exp Region 1'!$AE$9, 0)","v":{"v":0,"d":"$0.00"}},{"$f":"IFERROR('MMA Rev-Exp Region 1'!$AF$82/'MMA Rev-Exp Region 1'!$AF$9, 0)","v":{"v":0,"d":"$0.00"}},{"$f":"IFERROR('MMA Rev-Exp Region 1'!$AG$82/'MMA Rev-Exp Region 1'!$AG$9, 0)","v":{"v":0,"d":"$0.00"}},{"$f":"IFERROR('MMA Rev-Exp Region 1'!$AH$82/'MMA Rev-Exp Region 1'!$AH$9, 0)","v":{"v":0,"d":"$0.00"}},{"$f":"IFERROR('MMA Rev-Exp Region 1'!$AI$82/'MMA Rev-Exp Region 1'!$AI$9, 0)","v":{"v":0,"d":"$0.00"}},{"$f":"IFERROR('MMA Rev-Exp Region 1'!$AJ$82/'MMA Rev-Exp Region 1'!$AJ$9, 0)","v":{"v":0,"d":"$0.00"}}]
["MMA",null,null,{"$f":"Jurat!I$1","v":0},{"$f":"Jurat!D$33","v":"00:00:00"},"Q3","2017-09-30","Region 1","Operating Expense","Medical Benefits Expense","Other Medical","11.8","Reinsurance Premiums",{"$f":"IFERROR('MMA Rev-Exp Region 1'!$Z$84/'MMA Rev-Exp Region 1'!$Z$9, 0)","v":{"v":0,"d":"$0.00"}},{"$f":"IFERROR('MMA Rev-Exp Region 1'!$AA$84/'MMA Rev-Exp Region 1'!$AA$9, 0)","v":{"v":0,"d":"$0.00"}},{"$f":"IFERROR('MMA Rev-Exp Region 1'!$AB$84/'MMA Rev-Exp Region 1'!$AB$9, 0)","v":{"v":0,"d":"$0.00"}},{"$f":"IFERROR('MMA Rev-Exp Region 1'!$AC$84/'MMA Rev-Exp Region 1'!$AC$9, 0)","v":{"v":0,"d":"$0.00"}},{"$f":"IFERROR('MMA Rev-Exp Region 1'!$AD$84/'MMA Rev-Exp Region 1'!$AD$9, 0)","v":{"v":0,"d":"$0.00"}},{"$f":"IFERROR('MMA Rev-Exp Region 1'!$AE$84/'MMA Rev-Exp Region 1'!$AE$9, 0)","v":{"v":0,"d":"$0.00"}},{"$f":"IFERROR('MMA Rev-Exp Region 1'!$AF$84/'MMA Rev-Exp Region 1'!$AF$9, 0)","v":{"v":0,"d":"$0.00"}},{"$f":"IFERROR('MMA Rev-Exp Region 1'!$AG$84/'MMA Rev-Exp Region 1'!$AG$9, 0)","v":{"v":0,"d":"$0.00"}},{"$f":"IFERROR('MMA Rev-Exp Region 1'!$AH$84/'MMA Rev-Exp Region 1'!$AH$9, 0)","v":{"v":0,"d":"$0.00"}},{"$f":"IFERROR('MMA Rev-Exp Region 1'!$AI$84/'MMA Rev-Exp Region 1'!$AI$9, 0)","v":{"v":0,"d":"$0.00"}},{"$f":"IFERROR('MMA Rev-Exp Region 1'!$AJ$84/'MMA Rev-Exp Region 1'!$AJ$9, 0)","v":{"v":0,"d":"$0.00"}}]
["MMA",null,null,{"$f":"Jurat!I$1","v":0},{"$f":"Jurat!D$33","v":"00:00:00"},"Q3","2017-09-30","Region 1","Operating Expense","Medical Benefits Expense","Other Medical","11.9","Reinsurance Recoveries",{"$f":"IFERROR('MMA Rev-Exp Region 1'!$Z$85/'MMA Rev-Exp Region 1'!$Z$9, 0)","v":{"v":0,"d":"$0.00"}},{"$f":"IFERROR('MMA Rev-Exp Region 1'!$AA$85/'MMA Rev-Exp Region 1'!$AA$9, 0)","v":{"v":0,"d":"$0.00"}},{"$f":"IFERROR('MMA Rev-Exp Region 1'!$AB$85/'MMA Rev-Exp Region 1'!$AB$9, 0)","v":{"v":0,"d":"$0.00"}},{"$f":"IFERROR('MMA Rev-Exp Region 1'!$AC$85/'MMA Rev-Exp Region 1'!$AC$9, 0)","v":{"v":0,"d":"$0.00"}},{"$f":"IFERROR('MMA Rev-Exp Region 1'!$AD$85/'MMA Rev-Exp Region 1'!$AD$9, 0)","v":{"v":0,"d":"$0.00"}},{"$f":"IFERROR('MMA Rev-Exp Region 1'!$AE$85/'MMA Rev-Exp Region 1'!$AE$9, 0)","v":{"v":0,"d":"$0.00"}},{"$f":"IFERROR('MMA Rev-Exp Region 1'!$AF$85/'MMA Rev-Exp Region 1'!$AF$9, 0)","v":{"v":0,"d":"$0.00"}},{"$f":"IFERROR('MMA Rev-Exp Region 1'!$AG$85/'MMA Rev-Exp Region 1'!$AG$9, 0)","v":{"v":0,"d":"$0.00"}},{"$f":"IFERROR('MMA Rev-Exp Region 1'!$AH$85/'MMA Rev-Exp Region 1'!$AH$9, 0)","v":{"v":0,"d":"$0.00"}},{"$f":"IFERROR('MMA Rev-Exp Region 1'!$AI$85/'MMA Rev-Exp Region 1'!$AI$9, 0)","v":{"v":0,"d":"$0.00"}},{"$f":"IFERROR('MMA Rev-Exp Region 1'!$AJ$85/'MMA Rev-Exp Region 1'!$AJ$9, 0)","v":{"v":0,"d":"$0.00"}}]
["MMA",null,null,{"$f":"Jurat!I$1","v":0},{"$f":"Jurat!D$33","v":"00:00:00"},"Q3","2017-09-30","Region 1","Operating Expense","Administrative Expense","Administrative","12.1","Salaries & Benefits",{"$f":"IFERROR('MMA Rev-Exp Region 1'!$Z$90/'MMA Rev-Exp Region 1'!$Z$9, 0)","v":{"v":0,"d":"$0.00"}},{"$f":"IFERROR('MMA Rev-Exp Region 1'!$AA$90/'MMA Rev-Exp Region 1'!$Z$9, 0)","v":{"v":0,"d":"$0.00"}},{"$f":"IFERROR('MMA Rev-Exp Region 1'!$AB$90/'MMA Rev-Exp Region 1'!$Z$9, 0)","v":{"v":0,"d":"$0.00"}}]
["MMA",null,null,{"$f":"Jurat!I$1","v":0},{"$f":"Jurat!D$33","v":"00:00:00"},"Q3","2017-09-30","Region 1","Operating Expense","Administrative Expense","Administrative","12.2","Administrative Services",{"$f":"IFERROR('MMA Rev-Exp Region 1'!$Z$91/'MMA Rev-Exp Region 1'!$Z$9, 0)","v":{"v":0,"d":"$0.00"}},{"$f":"IFERROR('MMA Rev-Exp Region 1'!$AA$91/'MMA Rev-Exp Region 1'!$Z$9, 0)","v":{"v":0,"d":"$0.00"}},{"$f":"IFERROR('MMA Rev-Exp Region 1'!$AB$91/'MMA Rev-Exp Region 1'!$Z$9, 0)","v":{"v":0,"d":"$0.00"}}]
["MMA",null,null,{"$f":"Jurat!I$1","v":0},{"$f":"Jurat!D$33","v":"00:00:00"},"Q3","2017-09-30","Region 1","Operating Expense","Administrative Expense","Administrative","12.3","Information Systems",{"$f":"IFERROR('MMA Rev-Exp Region 1'!$Z$92/'MMA Rev-Exp Region 1'!$Z$9, 0)","v":{"v":0,"d":"$0.00"}},{"$f":"IFERROR('MMA Rev-Exp Region 1'!$AA$92/'MMA Rev-Exp Region 1'!$Z$9, 0)","v":{"v":0,"d":"$0.00"}},{"$f":"IFERROR('MMA Rev-Exp Region 1'!$AB$92/'MMA Rev-Exp Region 1'!$Z$9, 0)","v":{"v":0,"d":"$0.00"}}]
["MMA",null,null,{"$f":"Jurat!I$1","v":0},{"$f":"Jurat!D$33","v":"00:00:00"},"Q3","2017-09-30","Region 1","Operating Expense","Administrative Expense","Administrative","12.4","Marketing Expenses",{"$f":"IFERROR('MMA Rev-Exp Region 1'!$Z$93/'MMA Rev-Exp Region 1'!$Z$9, 0)","v":{"v":0,"d":"$0.00"}},{"$f":"IFERROR('MMA Rev-Exp Region 1'!$AA$93/'MMA Rev-Exp Region 1'!$Z$9, 0)","v":{"v":0,"d":"$0.00"}},{"$f":"IFERROR('MMA Rev-Exp Region 1'!$AB$93/'MMA Rev-Exp Region 1'!$Z$9, 0)","v":{"v":0,"d":"$0.00"}}]
["MMA",null,null,{"$f":"Jurat!I$1","v":0},{"$f":"Jurat!D$33","v":"00:00:00"},"Q3","2017-09-30","Region 1","Operating Expense","Administrative Expense","Administrative","12.5","General  Administration",{"$f":"IFERROR('MMA Rev-Exp Region 1'!$Z$94/'MMA Rev-Exp Region 1'!$Z$9, 0)","v":{"v":0,"d":"$0.00"}},{"$f":"IFERROR('MMA Rev-Exp Region 1'!$AA$94/'MMA Rev-Exp Region 1'!$Z$9, 0)","v":{"v":0,"d":"$0.00"}},{"$f":"IFERROR('MMA Rev-Exp Region 1'!$AB$94/'MMA Rev-Exp Region 1'!$Z$9, 0)","v":{"v":0,"d":"$0.00"}}]
["MMA",null,null,{"$f":"Jurat!I$1","v":0},{"$f":"Jurat!D$33","v":"00:00:00"},"Q3","2017-09-30","Region 1","Operating Expense","Administrative Expense","Administrative","12.6","Compliance/Regulatory",{"$f":"IFERROR('MMA Rev-Exp Region 1'!$Z$95/'MMA Rev-Exp Region 1'!$Z$9, 0)","v":{"v":0,"d":"$0.00"}},{"$f":"IFERROR('MMA Rev-Exp Region 1'!$AA$95/'MMA Rev-Exp Region 1'!$Z$9, 0)","v":{"v":0,"d":"$0.00"}},{"$f":"IFERROR('MMA Rev-Exp Region 1'!$AB$95/'MMA Rev-Exp Region 1'!$Z$9, 0)","v":{"v":0,"d":"$0.00"}}]
["MMA",null,null,{"$f":"Jurat!I$1","v":0},{"$f":"Jurat!D$33","v":"00:00:00"},"Q3","2017-09-30","Region 1","Operating Expense","Taxes & Fees","Taxes & Fees","13.1","State Premium tax",{"$f":"IFERROR('MMA Rev-Exp Region 1'!$Z$97/'MMA Rev-Exp Region 1'!$Z$9, 0)","v":{"v":0,"d":"$0.00"}}]
["MMA",null,null,{"$f":"Jurat!I$1","v":0},{"$f":"Jurat!D$33","v":"00:00:00"},"Q3","2017-09-30","Region 1","Operating Expense","Taxes & Fees","Taxes & Fees","13.2","Department of Insurance Assessments",{"$f":"IFERROR('MMA Rev-Exp Region 1'!$Z$98/'MMA Rev-Exp Region 1'!$Z$9, 0)","v":{"v":0,"d":"$0.00"}}]
["MMA",null,null,{"$f":"Jurat!I$1","v":0},{"$f":"Jurat!D$33","v":"00:00:00"},"Q3","2017-09-30","Region 1","Operating Expense","Taxes & Fees","Taxes & Fees","13.3","Section 9010 Health Insurance Providers Fee",{"$f":"IFERROR('MMA Rev-Exp Region 1'!$Z$99/'MMA Rev-Exp Region 1'!$Z$9, 0)","v":{"v":0,"d":"$0.00"}}]
["MMA",null,null,{"$f":"Jurat!I$1","v":0},{"$f":"Jurat!D$33","v":"00:00:00"},"Q3","2017-09-30","Region 1","Non-Operating Expense","Income Tax Expense","Income Tax Expense","16.0","Income Tax Expense",{"$f":"IFERROR('MMA Rev-Exp Region 1'!$Z$106/'MMA Rev-Exp Region 1'!$Z$9, 0)","v":{"v":0,"d":"$0.00"}}]
["MMA",null,null,{"$f":"Jurat!I$1","v":0},{"$f":"Jurat!D$33","v":"00:00:00"},"Q4","2017-12-31","Region 1","Operating Revenue","Capitation","Capitation",1.1,"Capitation",{"$f":"IFERROR('MMA Rev-Exp Region 1'!$AK$11/'MMA Rev-Exp Region 1'!$AK$9, 0)","v":{"v":0,"d":"$0.00"}},{"$f":"IFERROR('MMA Rev-Exp Region 1'!$AL$11/'MMA Rev-Exp Region 1'!$AL$9, 0)","v":{"v":0,"d":"$0.00"}},{"$f":"IFERROR('MMA Rev-Exp Region 1'!$AM$11/'MMA Rev-Exp Region 1'!$AM$9, 0)","v":{"v":0,"d":"$0.00"}},{"$f":"IFERROR('MMA Rev-Exp Region 1'!$AN$11/'MMA Rev-Exp Region 1'!$AN$9, 0)","v":{"v":0,"d":"$0.00"}},{"$f":"IFERROR('MMA Rev-Exp Region 1'!$AO$11/'MMA Rev-Exp Region 1'!$AO$9, 0)","v":{"v":0,"d":"$0.00"}},{"$f":"IFERROR('MMA Rev-Exp Region 1'!$AP$11/'MMA Rev-Exp Region 1'!$AP$9, 0)","v":{"v":0,"d":"$0.00"}},{"$f":"IFERROR('MMA Rev-Exp Region 1'!$AQ$11/'MMA Rev-Exp Region 1'!$AQ$9, 0)","v":{"v":0,"d":"$0.00"}},{"$f":"IFERROR('MMA Rev-Exp Region 1'!$AR$11/'MMA Rev-Exp Region 1'!$AR$9, 0)","v":{"v":0,"d":"$0.00"}},{"$f":"IFERROR('MMA Rev-Exp Region 1'!$AS$11/'MMA Rev-Exp Region 1'!$AS$9, 0)","v":{"v":0,"d":"$0.00"}},{"$f":"IFERROR('MMA Rev-Exp Region 1'!$AT$11/'MMA Rev-Exp Region 1'!$AT$9, 0)","v":{"v":0,"d":"$0.00"}},{"$f":"IFERROR('MMA Rev-Exp Region 1'!$AU$11/'MMA Rev-Exp Region 1'!$AU$9, 0)","v":{"v":0,"d":"$0.00"}}]
["MMA",null,null,{"$f":"Jurat!I$1","v":0},{"$f":"Jurat!D$33","v":"00:00:00"},"Q4","2017-12-31","Region 1","Operating Revenue","Kick Payments","Kick Payments - Transplant",1.2,"Transplant Kick Payments",{"$f":"IFERROR('MMA Rev-Exp Region 1'!$AK$12/'MMA Rev-Exp Region 1'!$AK$9, 0)","v":{"v":0,"d":"$0.00"}},{"$f":"IFERROR('MMA Rev-Exp Region 1'!$AL$12/'MMA Rev-Exp Region 1'!$AL$9, 0)","v":{"v":0,"d":"$0.00"}},{"$f":"IFERROR('MMA Rev-Exp Region 1'!$AM$12/'MMA Rev-Exp Region 1'!$AM$9, 0)","v":{"v":0,"d":"$0.00"}},{"$f":"IFERROR('MMA Rev-Exp Region 1'!$AN$12/'MMA Rev-Exp Region 1'!$AN$9, 0)","v":{"v":0,"d":"$0.00"}},{"$f":"IFERROR('MMA Rev-Exp Region 1'!$AO$12/'MMA Rev-Exp Region 1'!$AO$9, 0)","v":{"v":0,"d":"$0.00"}},{"$f":"IFERROR('MMA Rev-Exp Region 1'!$AP$12/'MMA Rev-Exp Region 1'!$AP$9, 0)","v":{"v":0,"d":"$0.00"}},{"$f":"IFERROR('MMA Rev-Exp Region 1'!$AQ$12/'MMA Rev-Exp Region 1'!$AQ$9, 0)","v":{"v":0,"d":"$0.00"}},{"$f":"IFERROR('MMA Rev-Exp Region 1'!$AR$12/'MMA Rev-Exp Region 1'!$AR$9, 0)","v":{"v":0,"d":"$0.00"}},{"$f":"IFERROR('MMA Rev-Exp Region 1'!$AS$12/'MMA Rev-Exp Region 1'!$AS$9, 0)","v":{"v":0,"d":"$0.00"}},{"$f":"IFERROR('MMA Rev-Exp Region 1'!$AT$12/'MMA Rev-Exp Region 1'!$AT$9, 0)","v":{"v":0,"d":"$0.00"}},{"$f":"IFERROR('MMA Rev-Exp Region 1'!$AU$12/'MMA Rev-Exp Region 1'!$AU$9, 0)","v":{"v":0,"d":"$0.00"}}]
["MMA",null,null,{"$f":"Jurat!I$1","v":0},{"$f":"Jurat!D$33","v":"00:00:00"},"Q4","2017-12-31","Region 1","Operating Revenue","Kick Payments","Kick Payments - Hep C","1.3","Hepatitis C Kick Payments",{"$f":"IFERROR('MMA Rev-Exp Region 1'!$AK$13/'MMA Rev-Exp Region 1'!$AK$9, 0)","v":{"v":0,"d":"$0.00"}},{"$f":"IFERROR('MMA Rev-Exp Region 1'!$AL$13/'MMA Rev-Exp Region 1'!$AL$9, 0)","v":{"v":0,"d":"$0.00"}},{"$f":"IFERROR('MMA Rev-Exp Region 1'!$AM$13/'MMA Rev-Exp Region 1'!$AM$9, 0)","v":{"v":0,"d":"$0.00"}},{"$f":"IFERROR('MMA Rev-Exp Region 1'!$AN$13/'MMA Rev-Exp Region 1'!$AN$9, 0)","v":{"v":0,"d":"$0.00"}},{"$f":"IFERROR('MMA Rev-Exp Region 1'!$AO$13/'MMA Rev-Exp Region 1'!$AO$9, 0)","v":{"v":0,"d":"$0.00"}},{"$f":"IFERROR('MMA Rev-Exp Region 1'!$AP$13/'MMA Rev-Exp Region 1'!$AP$9, 0)","v":{"v":0,"d":"$0.00"}},{"$f":"IFERROR('MMA Rev-Exp Region 1'!$AQ$13/'MMA Rev-Exp Region 1'!$AQ$9, 0)","v":{"v":0,"d":"$0.00"}},{"$f":"IFERROR('MMA Rev-Exp Region 1'!$AR$13/'MMA Rev-Exp Region 1'!$AR$9, 0)","v":{"v":0,"d":"$0.00"}},{"$f":"IFERROR('MMA Rev-Exp Region 1'!$AS$13/'MMA Rev-Exp Region 1'!$AS$9, 0)","v":{"v":0,"d":"$0.00"}},{"$f":"IFERROR('MMA Rev-Exp Region 1'!$AT$13/'MMA Rev-Exp Region 1'!$AT$9, 0)","v":{"v":0,"d":"$0.00"}},{"$f":"IFERROR('MMA Rev-Exp Region 1'!$AU$13/'MMA Rev-Exp Region 1'!$AU$9, 0)","v":{"v":0,"d":"$0.00"}}]
["MMA",null,null,{"$f":"Jurat!I$1","v":0},{"$f":"Jurat!D$33","v":"00:00:00"},"Q4","2017-12-31","Region 1","Operating Revenue","Kick Payments","Kick Payments - Maternity","1.4.1","Maternity Kick Payments",{"$f":"IFERROR('MMA Rev-Exp Region 1'!$AK$14/'MMA Rev-Exp Region 1'!$AK$9, 0)","v":{"v":0,"d":"$0.00"}},{"$f":"IFERROR('MMA Rev-Exp Region 1'!$AL$14/'MMA Rev-Exp Region 1'!$AL$9, 0)","v":{"v":0,"d":"$0.00"}},{"$f":"IFERROR('MMA Rev-Exp Region 1'!$AM$14/'MMA Rev-Exp Region 1'!$AM$9, 0)","v":{"v":0,"d":"$0.00"}},{"$f":"IFERROR('MMA Rev-Exp Region 1'!$AN$14/'MMA Rev-Exp Region 1'!$AN$9, 0)","v":{"v":0,"d":"$0.00"}},{"$f":"IFERROR('MMA Rev-Exp Region 1'!$AO$14/'MMA Rev-Exp Region 1'!$AO$9, 0)","v":{"v":0,"d":"$0.00"}},{"$f":"IFERROR('MMA Rev-Exp Region 1'!$AP$14/'MMA Rev-Exp Region 1'!$AP$9, 0)","v":{"v":0,"d":"$0.00"}},{"$f":"IFERROR('MMA Rev-Exp Region 1'!$AQ$14/'MMA Rev-Exp Region 1'!$AQ$9, 0)","v":{"v":0,"d":"$0.00"}},{"$f":"IFERROR('MMA Rev-Exp Region 1'!$AR$14/'MMA Rev-Exp Region 1'!$AR$9, 0)","v":{"v":0,"d":"$0.00"}},{"$f":"IFERROR('MMA Rev-Exp Region 1'!$AS$14/'MMA Rev-Exp Region 1'!$AS$9, 0)","v":{"v":0,"d":"$0.00"}},{"$f":"IFERROR('MMA Rev-Exp Region 1'!$AT$14/'MMA Rev-Exp Region 1'!$AT$9, 0)","v":{"v":0,"d":"$0.00"}},{"$f":"IFERROR('MMA Rev-Exp Region 1'!$AU$14/'MMA Rev-Exp Region 1'!$AU$9, 0)","v":{"v":0,"d":"$0.00"}}]
["MMA",null,null,{"$f":"Jurat!I$1","v":0},{"$f":"Jurat!D$33","v":"00:00:00"},"Q4","2017-12-31","Region 1","Operating Revenue","Other Revenue","Other Revenue - 9010","1.5","ACA § 9010 related payments",{"$f":"IFERROR('MMA Rev-Exp Region 1'!$AK$15/'MMA Rev-Exp Region 1'!$AK$9, 0)","v":{"v":0,"d":"$0.00"}},{"$f":"IFERROR('MMA Rev-Exp Region 1'!$AL$15/'MMA Rev-Exp Region 1'!$AL$9, 0)","v":{"v":0,"d":"$0.00"}},{"$f":"IFERROR('MMA Rev-Exp Region 1'!$AM$15/'MMA Rev-Exp Region 1'!$AM$9, 0)","v":{"v":0,"d":"$0.00"}},{"$f":"IFERROR('MMA Rev-Exp Region 1'!$AN$15/'MMA Rev-Exp Region 1'!$AN$9, 0)","v":{"v":0,"d":"$0.00"}},{"$f":"IFERROR('MMA Rev-Exp Region 1'!$AO$15/'MMA Rev-Exp Region 1'!$AO$9, 0)","v":{"v":0,"d":"$0.00"}},{"$f":"IFERROR('MMA Rev-Exp Region 1'!$AP$15/'MMA Rev-Exp Region 1'!$AP$9, 0)","v":{"v":0,"d":"$0.00"}},{"$f":"IFERROR('MMA Rev-Exp Region 1'!$AQ$15/'MMA Rev-Exp Region 1'!$AQ$9, 0)","v":{"v":0,"d":"$0.00"}},{"$f":"IFERROR('MMA Rev-Exp Region 1'!$AR$15/'MMA Rev-Exp Region 1'!$AR$9, 0)","v":{"v":0,"d":"$0.00"}},{"$f":"IFERROR('MMA Rev-Exp Region 1'!$AS$15/'MMA Rev-Exp Region 1'!$AS$9, 0)","v":{"v":0,"d":"$0.00"}},{"$f":"IFERROR('MMA Rev-Exp Region 1'!$AT$15/'MMA Rev-Exp Region 1'!$AT$9, 0)","v":{"v":0,"d":"$0.00"}},{"$f":"IFERROR('MMA Rev-Exp Region 1'!$AU$15/'MMA Rev-Exp Region 1'!$AU$9, 0)","v":{"v":0,"d":"$0.00"}}]
["MMA",null,null,{"$f":"Jurat!I$1","v":0},{"$f":"Jurat!D$33","v":"00:00:00"},"Q4","2017-12-31","Region 1","Operating Revenue","Other Revenue","Other Revenue","1.6","Other Revenue",{"$f":"IFERROR('MMA Rev-Exp Region 1'!$AK$16/'MMA Rev-Exp Region 1'!$AK$9, 0)","v":{"v":0,"d":"$0.00"}},{"$f":"IFERROR('MMA Rev-Exp Region 1'!$AL$16/'MMA Rev-Exp Region 1'!$AL$9, 0)","v":{"v":0,"d":"$0.00"}},{"$f":"IFERROR('MMA Rev-Exp Region 1'!$AM$16/'MMA Rev-Exp Region 1'!$AM$9, 0)","v":{"v":0,"d":"$0.00"}},{"$f":"IFERROR('MMA Rev-Exp Region 1'!$AN$16/'MMA Rev-Exp Region 1'!$AN$9, 0)","v":{"v":0,"d":"$0.00"}},{"$f":"IFERROR('MMA Rev-Exp Region 1'!$AO$16/'MMA Rev-Exp Region 1'!$AO$9, 0)","v":{"v":0,"d":"$0.00"}},{"$f":"IFERROR('MMA Rev-Exp Region 1'!$AP$16/'MMA Rev-Exp Region 1'!$AP$9, 0)","v":{"v":0,"d":"$0.00"}},{"$f":"IFERROR('MMA Rev-Exp Region 1'!$AQ$16/'MMA Rev-Exp Region 1'!$AQ$9, 0)","v":{"v":0,"d":"$0.00"}},{"$f":"IFERROR('MMA Rev-Exp Region 1'!$AR$16/'MMA Rev-Exp Region 1'!$AR$9, 0)","v":{"v":0,"d":"$0.00"}},{"$f":"IFERROR('MMA Rev-Exp Region 1'!$AS$16/'MMA Rev-Exp Region 1'!$AS$9, 0)","v":{"v":0,"d":"$0.00"}},{"$f":"IFERROR('MMA Rev-Exp Region 1'!$AT$16/'MMA Rev-Exp Region 1'!$AT$9, 0)","v":{"v":0,"d":"$0.00"}},{"$f":"IFERROR('MMA Rev-Exp Region 1'!$AU$16/'MMA Rev-Exp Region 1'!$AU$9, 0)","v":{"v":0,"d":"$0.00"}}]
["MMA",null,null,{"$f":"Jurat!I$1","v":0},{"$f":"Jurat!D$33","v":"00:00:00"},"Q4","2017-12-31","Region 1","Operating Expense","Medical Benefits Expense","Hospital Services",2.1,"Inpatient FFS",{"$f":"IFERROR('MMA Rev-Exp Region 1'!$AK$20/'MMA Rev-Exp Region 1'!$AK$9, 0)","v":{"v":0,"d":"$0.00"}},{"$f":"IFERROR('MMA Rev-Exp Region 1'!$AL$20/'MMA Rev-Exp Region 1'!$AL$9, 0)","v":{"v":0,"d":"$0.00"}},{"$f":"IFERROR('MMA Rev-Exp Region 1'!$AM$20/'MMA Rev-Exp Region 1'!$AM$9, 0)","v":{"v":0,"d":"$0.00"}},{"$f":"IFERROR('MMA Rev-Exp Region 1'!$AN$20/'MMA Rev-Exp Region 1'!$AN$9, 0)","v":{"v":0,"d":"$0.00"}},{"$f":"IFERROR('MMA Rev-Exp Region 1'!$AO$20/'MMA Rev-Exp Region 1'!$AO$9, 0)","v":{"v":0,"d":"$0.00"}},{"$f":"IFERROR('MMA Rev-Exp Region 1'!$AP$20/'MMA Rev-Exp Region 1'!$AP$9, 0)","v":{"v":0,"d":"$0.00"}},{"$f":"IFERROR('MMA Rev-Exp Region 1'!$AQ$20/'MMA Rev-Exp Region 1'!$AQ$9, 0)","v":{"v":0,"d":"$0.00"}},{"$f":"IFERROR('MMA Rev-Exp Region 1'!$AR$20/'MMA Rev-Exp Region 1'!$AR$9, 0)","v":{"v":0,"d":"$0.00"}},{"$f":"IFERROR('MMA Rev-Exp Region 1'!$AS$20/'MMA Rev-Exp Region 1'!$AS$9, 0)","v":{"v":0,"d":"$0.00"}},{"$f":"IFERROR('MMA Rev-Exp Region 1'!$AT$20/'MMA Rev-Exp Region 1'!$AT$9, 0)","v":{"v":0,"d":"$0.00"}},{"$f":"IFERROR('MMA Rev-Exp Region 1'!$AU$20/'MMA Rev-Exp Region 1'!$AU$9, 0)","v":{"v":0,"d":"$0.00"}}]
["MMA",null,null,{"$f":"Jurat!I$1","v":0},{"$f":"Jurat!D$33","v":"00:00:00"},"Q4","2017-12-31","Region 1","Operating Expense","Medical Benefits Expense","Hospital Services",2.2,"Ending IBNP for Inpatient Hospital Services",{"$f":"IFERROR('MMA Rev-Exp Region 1'!$AK$21/'MMA Rev-Exp Region 1'!$AK$9, 0)","v":{"v":0,"d":"$0.00"}},{"$f":"IFERROR('MMA Rev-Exp Region 1'!$AL$21/'MMA Rev-Exp Region 1'!$AL$9, 0)","v":{"v":0,"d":"$0.00"}},{"$f":"IFERROR('MMA Rev-Exp Region 1'!$AM$21/'MMA Rev-Exp Region 1'!$AM$9, 0)","v":{"v":0,"d":"$0.00"}},{"$f":"IFERROR('MMA Rev-Exp Region 1'!$AN$21/'MMA Rev-Exp Region 1'!$AN$9, 0)","v":{"v":0,"d":"$0.00"}},{"$f":"IFERROR('MMA Rev-Exp Region 1'!$AO$21/'MMA Rev-Exp Region 1'!$AO$9, 0)","v":{"v":0,"d":"$0.00"}},{"$f":"IFERROR('MMA Rev-Exp Region 1'!$AP$21/'MMA Rev-Exp Region 1'!$AP$9, 0)","v":{"v":0,"d":"$0.00"}},{"$f":"IFERROR('MMA Rev-Exp Region 1'!$AQ$21/'MMA Rev-Exp Region 1'!$AQ$9, 0)","v":{"v":0,"d":"$0.00"}},{"$f":"IFERROR('MMA Rev-Exp Region 1'!$AR$21/'MMA Rev-Exp Region 1'!$AR$9, 0)","v":{"v":0,"d":"$0.00"}},{"$f":"IFERROR('MMA Rev-Exp Region 1'!$AS$21/'MMA Rev-Exp Region 1'!$AS$9, 0)","v":{"v":0,"d":"$0.00"}},{"$f":"IFERROR('MMA Rev-Exp Region 1'!$AT$21/'MMA Rev-Exp Region 1'!$AT$9, 0)","v":{"v":0,"d":"$0.00"}},{"$f":"IFERROR('MMA Rev-Exp Region 1'!$AU$21/'MMA Rev-Exp Region 1'!$AU$9, 0)","v":{"v":0,"d":"$0.00"}}]
["MMA",null,null,{"$f":"Jurat!I$1","v":0},{"$f":"Jurat!D$33","v":"00:00:00"},"Q4","2017-12-31","Region 1","Operating Expense","Medical Benefits Expense","Hospital Services",2.3,"Outpatient FFS: ER",{"$f":"IFERROR('MMA Rev-Exp Region 1'!$AK$22/'MMA Rev-Exp Region 1'!$AK$9, 0)","v":{"v":0,"d":"$0.00"}},{"$f":"IFERROR('MMA Rev-Exp Region 1'!$AL$22/'MMA Rev-Exp Region 1'!$AL$9, 0)","v":{"v":0,"d":"$0.00"}},{"$f":"IFERROR('MMA Rev-Exp Region 1'!$AM$22/'MMA Rev-Exp Region 1'!$AM$9, 0)","v":{"v":0,"d":"$0.00"}},{"$f":"IFERROR('MMA Rev-Exp Region 1'!$AN$22/'MMA Rev-Exp Region 1'!$AN$9, 0)","v":{"v":0,"d":"$0.00"}},{"$f":"IFERROR('MMA Rev-Exp Region 1'!$AO$22/'MMA Rev-Exp Region 1'!$AO$9, 0)","v":{"v":0,"d":"$0.00"}},{"$f":"IFERROR('MMA Rev-Exp Region 1'!$AP$22/'MMA Rev-Exp Region 1'!$AP$9, 0)","v":{"v":0,"d":"$0.00"}},{"$f":"IFERROR('MMA Rev-Exp Region 1'!$AQ$22/'MMA Rev-Exp Region 1'!$AQ$9, 0)","v":{"v":0,"d":"$0.00"}},{"$f":"IFERROR('MMA Rev-Exp Region 1'!$AR$22/'MMA Rev-Exp Region 1'!$AR$9, 0)","v":{"v":0,"d":"$0.00"}},{"$f":"IFERROR('MMA Rev-Exp Region 1'!$AS$22/'MMA Rev-Exp Region 1'!$AS$9, 0)","v":{"v":0,"d":"$0.00"}},{"$f":"IFERROR('MMA Rev-Exp Region 1'!$AT$22/'MMA Rev-Exp Region 1'!$AT$9, 0)","v":{"v":0,"d":"$0.00"}},{"$f":"IFERROR('MMA Rev-Exp Region 1'!$AU$22/'MMA Rev-Exp Region 1'!$AU$9, 0)","v":{"v":0,"d":"$0.00"}}]
["MMA",null,null,{"$f":"Jurat!I$1","v":0},{"$f":"Jurat!D$33","v":"00:00:00"},"Q4","2017-12-31","Region 1","Operating Expense","Medical Benefits Expense","Hospital Services",2.4,"Outpatient FFS: Other than ER ",{"$f":"IFERROR('MMA Rev-Exp Region 1'!$AK$23/'MMA Rev-Exp Region 1'!$AK$9, 0)","v":{"v":0,"d":"$0.00"}},{"$f":"IFERROR('MMA Rev-Exp Region 1'!$AL$23/'MMA Rev-Exp Region 1'!$AL$9, 0)","v":{"v":0,"d":"$0.00"}},{"$f":"IFERROR('MMA Rev-Exp Region 1'!$AM$23/'MMA Rev-Exp Region 1'!$AM$9, 0)","v":{"v":0,"d":"$0.00"}},{"$f":"IFERROR('MMA Rev-Exp Region 1'!$AN$23/'MMA Rev-Exp Region 1'!$AN$9, 0)","v":{"v":0,"d":"$0.00"}},{"$f":"IFERROR('MMA Rev-Exp Region 1'!$AO$23/'MMA Rev-Exp Region 1'!$AO$9, 0)","v":{"v":0,"d":"$0.00"}},{"$f":"IFERROR('MMA Rev-Exp Region 1'!$AP$23/'MMA Rev-Exp Region 1'!$AP$9, 0)","v":{"v":0,"d":"$0.00"}},{"$f":"IFERROR('MMA Rev-Exp Region 1'!$AQ$23/'MMA Rev-Exp Region 1'!$AQ$9, 0)","v":{"v":0,"d":"$0.00"}},{"$f":"IFERROR('MMA Rev-Exp Region 1'!$AR$23/'MMA Rev-Exp Region 1'!$AR$9, 0)","v":{"v":0,"d":"$0.00"}},{"$f":"IFERROR('MMA Rev-Exp Region 1'!$AS$23/'MMA Rev-Exp Region 1'!$AS$9, 0)","v":{"v":0,"d":"$0.00"}},{"$f":"IFERROR('MMA Rev-Exp Region 1'!$AT$23/'MMA Rev-Exp Region 1'!$AT$9, 0)","v":{"v":0,"d":"$0.00"}},{"$f":"IFERROR('MMA Rev-Exp Region 1'!$AU$23/'MMA Rev-Exp Region 1'!$AU$9, 0)","v":{"v":0,"d":"$0.00"}}]
["MMA",null,null,{"$f":"Jurat!I$1","v":0},{"$f":"Jurat!D$33","v":"00:00:00"},"Q4","2017-12-31","Region 1","Operating Expense","Medical Benefits Expense","Hospital Services",2.5,"Ending IBNP for Outpatient Hospital Services",{"$f":"IFERROR('MMA Rev-Exp Region 1'!$AK$24/'MMA Rev-Exp Region 1'!$AK$9, 0)","v":{"v":0,"d":"$0.00"}},{"$f":"IFERROR('MMA Rev-Exp Region 1'!$AL$24/'MMA Rev-Exp Region 1'!$AL$9, 0)","v":{"v":0,"d":"$0.00"}},{"$f":"IFERROR('MMA Rev-Exp Region 1'!$AM$24/'MMA Rev-Exp Region 1'!$AM$9, 0)","v":{"v":0,"d":"$0.00"}},{"$f":"IFERROR('MMA Rev-Exp Region 1'!$AN$24/'MMA Rev-Exp Region 1'!$AN$9, 0)","v":{"v":0,"d":"$0.00"}},{"$f":"IFERROR('MMA Rev-Exp Region 1'!$AO$24/'MMA Rev-Exp Region 1'!$AO$9, 0)","v":{"v":0,"d":"$0.00"}},{"$f":"IFERROR('MMA Rev-Exp Region 1'!$AP$24/'MMA Rev-Exp Region 1'!$AP$9, 0)","v":{"v":0,"d":"$0.00"}},{"$f":"IFERROR('MMA Rev-Exp Region 1'!$AQ$24/'MMA Rev-Exp Region 1'!$AQ$9, 0)","v":{"v":0,"d":"$0.00"}},{"$f":"IFERROR('MMA Rev-Exp Region 1'!$AR$24/'MMA Rev-Exp Region 1'!$AR$9, 0)","v":{"v":0,"d":"$0.00"}},{"$f":"IFERROR('MMA Rev-Exp Region 1'!$AS$24/'MMA Rev-Exp Region 1'!$AS$9, 0)","v":{"v":0,"d":"$0.00"}},{"$f":"IFERROR('MMA Rev-Exp Region 1'!$AT$24/'MMA Rev-Exp Region 1'!$AT$9, 0)","v":{"v":0,"d":"$0.00"}},{"$f":"IFERROR('MMA Rev-Exp Region 1'!$AU$24/'MMA Rev-Exp Region 1'!$AU$9, 0)","v":{"v":0,"d":"$0.00"}}]
["MMA",null,null,{"$f":"Jurat!I$1","v":0},{"$f":"Jurat!D$33","v":"00:00:00"},"Q4","2017-12-31","Region 1","Operating Expense","Medical Benefits Expense","Hospital Services","2.6","Subcapitated Hospital Services",{"$f":"IFERROR('MMA Rev-Exp Region 1'!$AK$25/'MMA Rev-Exp Region 1'!$AK$9, 0)","v":{"v":0,"d":"$0.00"}},{"$f":"IFERROR('MMA Rev-Exp Region 1'!$AL$25/'MMA Rev-Exp Region 1'!$AL$9, 0)","v":{"v":0,"d":"$0.00"}},{"$f":"IFERROR('MMA Rev-Exp Region 1'!$AM$25/'MMA Rev-Exp Region 1'!$AM$9, 0)","v":{"v":0,"d":"$0.00"}},{"$f":"IFERROR('MMA Rev-Exp Region 1'!$AN$25/'MMA Rev-Exp Region 1'!$AN$9, 0)","v":{"v":0,"d":"$0.00"}},{"$f":"IFERROR('MMA Rev-Exp Region 1'!$AO$25/'MMA Rev-Exp Region 1'!$AO$9, 0)","v":{"v":0,"d":"$0.00"}},{"$f":"IFERROR('MMA Rev-Exp Region 1'!$AP$25/'MMA Rev-Exp Region 1'!$AP$9, 0)","v":{"v":0,"d":"$0.00"}},{"$f":"IFERROR('MMA Rev-Exp Region 1'!$AQ$25/'MMA Rev-Exp Region 1'!$AQ$9, 0)","v":{"v":0,"d":"$0.00"}},{"$f":"IFERROR('MMA Rev-Exp Region 1'!$AR$25/'MMA Rev-Exp Region 1'!$AR$9, 0)","v":{"v":0,"d":"$0.00"}},{"$f":"IFERROR('MMA Rev-Exp Region 1'!$AS$25/'MMA Rev-Exp Region 1'!$AS$9, 0)","v":{"v":0,"d":"$0.00"}},{"$f":"IFERROR('MMA Rev-Exp Region 1'!$AT$25/'MMA Rev-Exp Region 1'!$AT$9, 0)","v":{"v":0,"d":"$0.00"}},{"$f":"IFERROR('MMA Rev-Exp Region 1'!$AU$25/'MMA Rev-Exp Region 1'!$AU$9, 0)","v":{"v":0,"d":"$0.00"}}]
["MMA",null,null,{"$f":"Jurat!I$1","v":0},{"$f":"Jurat!D$33","v":"00:00:00"},"Q4","2017-12-31","Region 1","Operating Expense","Medical Benefits Expense","Hospital Services","2.7","Hospital Settlements",{"$f":"IFERROR('MMA Rev-Exp Region 1'!$AK$26/'MMA Rev-Exp Region 1'!$AK$9, 0)","v":{"v":0,"d":"$0.00"}},{"$f":"IFERROR('MMA Rev-Exp Region 1'!$AL$26/'MMA Rev-Exp Region 1'!$AL$9, 0)","v":{"v":0,"d":"$0.00"}},{"$f":"IFERROR('MMA Rev-Exp Region 1'!$AM$26/'MMA Rev-Exp Region 1'!$AM$9, 0)","v":{"v":0,"d":"$0.00"}},{"$f":"IFERROR('MMA Rev-Exp Region 1'!$AN$26/'MMA Rev-Exp Region 1'!$AN$9, 0)","v":{"v":0,"d":"$0.00"}},{"$f":"IFERROR('MMA Rev-Exp Region 1'!$AO$26/'MMA Rev-Exp Region 1'!$AO$9, 0)","v":{"v":0,"d":"$0.00"}},{"$f":"IFERROR('MMA Rev-Exp Region 1'!$AP$26/'MMA Rev-Exp Region 1'!$AP$9, 0)","v":{"v":0,"d":"$0.00"}},{"$f":"IFERROR('MMA Rev-Exp Region 1'!$AQ$26/'MMA Rev-Exp Region 1'!$AQ$9, 0)","v":{"v":0,"d":"$0.00"}},{"$f":"IFERROR('MMA Rev-Exp Region 1'!$AR$26/'MMA Rev-Exp Region 1'!$AR$9, 0)","v":{"v":0,"d":"$0.00"}},{"$f":"IFERROR('MMA Rev-Exp Region 1'!$AS$26/'MMA Rev-Exp Region 1'!$AS$9, 0)","v":{"v":0,"d":"$0.00"}},{"$f":"IFERROR('MMA Rev-Exp Region 1'!$AT$26/'MMA Rev-Exp Region 1'!$AT$9, 0)","v":{"v":0,"d":"$0.00"}},{"$f":"IFERROR('MMA Rev-Exp Region 1'!$AU$26/'MMA Rev-Exp Region 1'!$AU$9, 0)","v":{"v":0,"d":"$0.00"}}]
["MMA",null,null,{"$f":"Jurat!I$1","v":0},{"$f":"Jurat!D$33","v":"00:00:00"},"Q4","2017-12-31","Region 1","Operating Expense","Medical Benefits Expense","Hospital Services","2.7.1","Transplant Services",{"$f":"IFERROR('MMA Rev-Exp Region 1'!$AK$27/'MMA Rev-Exp Region 1'!$AK$9, 0)","v":{"v":0,"d":"$0.00"}},{"$f":"IFERROR('MMA Rev-Exp Region 1'!$AL$27/'MMA Rev-Exp Region 1'!$AL$9, 0)","v":{"v":0,"d":"$0.00"}},{"$f":"IFERROR('MMA Rev-Exp Region 1'!$AM$27/'MMA Rev-Exp Region 1'!$AM$9, 0)","v":{"v":0,"d":"$0.00"}},{"$f":"IFERROR('MMA Rev-Exp Region 1'!$AN$27/'MMA Rev-Exp Region 1'!$AN$9, 0)","v":{"v":0,"d":"$0.00"}},{"$f":"IFERROR('MMA Rev-Exp Region 1'!$AO$27/'MMA Rev-Exp Region 1'!$AO$9, 0)","v":{"v":0,"d":"$0.00"}},{"$f":"IFERROR('MMA Rev-Exp Region 1'!$AP$27/'MMA Rev-Exp Region 1'!$AP$9, 0)","v":{"v":0,"d":"$0.00"}},{"$f":"IFERROR('MMA Rev-Exp Region 1'!$AQ$27/'MMA Rev-Exp Region 1'!$AQ$9, 0)","v":{"v":0,"d":"$0.00"}},{"$f":"IFERROR('MMA Rev-Exp Region 1'!$AR$27/'MMA Rev-Exp Region 1'!$AR$9, 0)","v":{"v":0,"d":"$0.00"}},{"$f":"IFERROR('MMA Rev-Exp Region 1'!$AS$27/'MMA Rev-Exp Region 1'!$AS$9, 0)","v":{"v":0,"d":"$0.00"}},{"$f":"IFERROR('MMA Rev-Exp Region 1'!$AT$27/'MMA Rev-Exp Region 1'!$AT$9, 0)","v":{"v":0,"d":"$0.00"}},{"$f":"IFERROR('MMA Rev-Exp Region 1'!$AU$27/'MMA Rev-Exp Region 1'!$AU$9, 0)","v":{"v":0,"d":"$0.00"}}]
["MMA",null,null,{"$f":"Jurat!I$1","v":0},{"$f":"Jurat!D$33","v":"00:00:00"},"Q4","2017-12-31","Region 1","Operating Expense","Medical Benefits Expense","Professional Services",3.1,"Primary Care FFS",{"$f":"IFERROR('MMA Rev-Exp Region 1'!$AK$29/'MMA Rev-Exp Region 1'!$AK$9, 0)","v":{"v":0,"d":"$0.00"}},{"$f":"IFERROR('MMA Rev-Exp Region 1'!$AL$29/'MMA Rev-Exp Region 1'!$AL$9, 0)","v":{"v":0,"d":"$0.00"}},{"$f":"IFERROR('MMA Rev-Exp Region 1'!$AM$29/'MMA Rev-Exp Region 1'!$AM$9, 0)","v":{"v":0,"d":"$0.00"}},{"$f":"IFERROR('MMA Rev-Exp Region 1'!$AN$29/'MMA Rev-Exp Region 1'!$AN$9, 0)","v":{"v":0,"d":"$0.00"}},{"$f":"IFERROR('MMA Rev-Exp Region 1'!$AO$29/'MMA Rev-Exp Region 1'!$AO$9, 0)","v":{"v":0,"d":"$0.00"}},{"$f":"IFERROR('MMA Rev-Exp Region 1'!$AP$29/'MMA Rev-Exp Region 1'!$AP$9, 0)","v":{"v":0,"d":"$0.00"}},{"$f":"IFERROR('MMA Rev-Exp Region 1'!$AQ$29/'MMA Rev-Exp Region 1'!$AQ$9, 0)","v":{"v":0,"d":"$0.00"}},{"$f":"IFERROR('MMA Rev-Exp Region 1'!$AR$29/'MMA Rev-Exp Region 1'!$AR$9, 0)","v":{"v":0,"d":"$0.00"}},{"$f":"IFERROR('MMA Rev-Exp Region 1'!$AS$29/'MMA Rev-Exp Region 1'!$AS$9, 0)","v":{"v":0,"d":"$0.00"}},{"$f":"IFERROR('MMA Rev-Exp Region 1'!$AT$29/'MMA Rev-Exp Region 1'!$AT$9, 0)","v":{"v":0,"d":"$0.00"}},{"$f":"IFERROR('MMA Rev-Exp Region 1'!$AU$29/'MMA Rev-Exp Region 1'!$AU$9, 0)","v":{"v":0,"d":"$0.00"}}]
["MMA",null,null,{"$f":"Jurat!I$1","v":0},{"$f":"Jurat!D$33","v":"00:00:00"},"Q4","2017-12-31","Region 1","Operating Expense","Medical Benefits Expense","Professional Services",3.2,"Specialty Care FFS",{"$f":"IFERROR('MMA Rev-Exp Region 1'!$AK$30/'MMA Rev-Exp Region 1'!$AK$9, 0)","v":{"v":0,"d":"$0.00"}},{"$f":"IFERROR('MMA Rev-Exp Region 1'!$AL$30/'MMA Rev-Exp Region 1'!$AL$9, 0)","v":{"v":0,"d":"$0.00"}},{"$f":"IFERROR('MMA Rev-Exp Region 1'!$AM$30/'MMA Rev-Exp Region 1'!$AM$9, 0)","v":{"v":0,"d":"$0.00"}},{"$f":"IFERROR('MMA Rev-Exp Region 1'!$AN$30/'MMA Rev-Exp Region 1'!$AN$9, 0)","v":{"v":0,"d":"$0.00"}},{"$f":"IFERROR('MMA Rev-Exp Region 1'!$AO$30/'MMA Rev-Exp Region 1'!$AO$9, 0)","v":{"v":0,"d":"$0.00"}},{"$f":"IFERROR('MMA Rev-Exp Region 1'!$AP$30/'MMA Rev-Exp Region 1'!$AP$9, 0)","v":{"v":0,"d":"$0.00"}},{"$f":"IFERROR('MMA Rev-Exp Region 1'!$AQ$30/'MMA Rev-Exp Region 1'!$AQ$9, 0)","v":{"v":0,"d":"$0.00"}},{"$f":"IFERROR('MMA Rev-Exp Region 1'!$AR$30/'MMA Rev-Exp Region 1'!$AR$9, 0)","v":{"v":0,"d":"$0.00"}},{"$f":"IFERROR('MMA Rev-Exp Region 1'!$AS$30/'MMA Rev-Exp Region 1'!$AS$9, 0)","v":{"v":0,"d":"$0.00"}},{"$f":"IFERROR('MMA Rev-Exp Region 1'!$AT$30/'MMA Rev-Exp Region 1'!$AT$9, 0)","v":{"v":0,"d":"$0.00"}},{"$f":"IFERROR('MMA Rev-Exp Region 1'!$AU$30/'MMA Rev-Exp Region 1'!$AU$9, 0)","v":{"v":0,"d":"$0.00"}}]
["MMA",null,null,{"$f":"Jurat!I$1","v":0},{"$f":"Jurat!D$33","v":"00:00:00"},"Q4","2017-12-31","Region 1","Operating Expense","Medical Benefits Expense","Professional Services",3.3,"Other Professional FFS",{"$f":"IFERROR('MMA Rev-Exp Region 1'!$AK$31/'MMA Rev-Exp Region 1'!$AK$9, 0)","v":{"v":0,"d":"$0.00"}},{"$f":"IFERROR('MMA Rev-Exp Region 1'!$AL$31/'MMA Rev-Exp Region 1'!$AL$9, 0)","v":{"v":0,"d":"$0.00"}},{"$f":"IFERROR('MMA Rev-Exp Region 1'!$AM$31/'MMA Rev-Exp Region 1'!$AM$9, 0)","v":{"v":0,"d":"$0.00"}},{"$f":"IFERROR('MMA Rev-Exp Region 1'!$AN$31/'MMA Rev-Exp Region 1'!$AN$9, 0)","v":{"v":0,"d":"$0.00"}},{"$f":"IFERROR('MMA Rev-Exp Region 1'!$AO$31/'MMA Rev-Exp Region 1'!$AO$9, 0)","v":{"v":0,"d":"$0.00"}},{"$f":"IFERROR('MMA Rev-Exp Region 1'!$AP$31/'MMA Rev-Exp Region 1'!$AP$9, 0)","v":{"v":0,"d":"$0.00"}},{"$f":"IFERROR('MMA Rev-Exp Region 1'!$AQ$31/'MMA Rev-Exp Region 1'!$AQ$9, 0)","v":{"v":0,"d":"$0.00"}},{"$f":"IFERROR('MMA Rev-Exp Region 1'!$AR$31/'MMA Rev-Exp Region 1'!$AR$9, 0)","v":{"v":0,"d":"$0.00"}},{"$f":"IFERROR('MMA Rev-Exp Region 1'!$AS$31/'MMA Rev-Exp Region 1'!$AS$9, 0)","v":{"v":0,"d":"$0.00"}},{"$f":"IFERROR('MMA Rev-Exp Region 1'!$AT$31/'MMA Rev-Exp Region 1'!$AT$9, 0)","v":{"v":0,"d":"$0.00"}},{"$f":"IFERROR('MMA Rev-Exp Region 1'!$AU$31/'MMA Rev-Exp Region 1'!$AU$9, 0)","v":{"v":0,"d":"$0.00"}}]
["MMA",null,null,{"$f":"Jurat!I$1","v":0},{"$f":"Jurat!D$33","v":"00:00:00"},"Q4","2017-12-31","Region 1","Operating Expense","Medical Benefits Expense","Professional Services","3.4","§ 1202 PCP Payments to providers",{"$f":"IFERROR('MMA Rev-Exp Region 1'!$AK$32/'MMA Rev-Exp Region 1'!$AK$9, 0)","v":{"v":0,"d":"$0.00"}},{"$f":"IFERROR('MMA Rev-Exp Region 1'!$AL$32/'MMA Rev-Exp Region 1'!$AL$9, 0)","v":{"v":0,"d":"$0.00"}},{"$f":"IFERROR('MMA Rev-Exp Region 1'!$AM$32/'MMA Rev-Exp Region 1'!$AM$9, 0)","v":{"v":0,"d":"$0.00"}},{"$f":"IFERROR('MMA Rev-Exp Region 1'!$AN$32/'MMA Rev-Exp Region 1'!$AN$9, 0)","v":{"v":0,"d":"$0.00"}},{"$f":"IFERROR('MMA Rev-Exp Region 1'!$AO$32/'MMA Rev-Exp Region 1'!$AO$9, 0)","v":{"v":0,"d":"$0.00"}},{"$f":"IFERROR('MMA Rev-Exp Region 1'!$AP$32/'MMA Rev-Exp Region 1'!$AP$9, 0)","v":{"v":0,"d":"$0.00"}},{"$f":"IFERROR('MMA Rev-Exp Region 1'!$AQ$32/'MMA Rev-Exp Region 1'!$AQ$9, 0)","v":{"v":0,"d":"$0.00"}},{"$f":"IFERROR('MMA Rev-Exp Region 1'!$AR$32/'MMA Rev-Exp Region 1'!$AR$9, 0)","v":{"v":0,"d":"$0.00"}},{"$f":"IFERROR('MMA Rev-Exp Region 1'!$AS$32/'MMA Rev-Exp Region 1'!$AS$9, 0)","v":{"v":0,"d":"$0.00"}},{"$f":"IFERROR('MMA Rev-Exp Region 1'!$AT$32/'MMA Rev-Exp Region 1'!$AT$9, 0)","v":{"v":0,"d":"$0.00"}},{"$f":"IFERROR('MMA Rev-Exp Region 1'!$AU$32/'MMA Rev-Exp Region 1'!$AU$9, 0)","v":{"v":0,"d":"$0.00"}}]
["MMA",null,null,{"$f":"Jurat!I$1","v":0},{"$f":"Jurat!D$33","v":"00:00:00"},"Q4","2017-12-31","Region 1","Operating Expense","Medical Benefits Expense","Professional Services","3.5","Subcapitated Professional Services",{"$f":"IFERROR('MMA Rev-Exp Region 1'!$AK$33/'MMA Rev-Exp Region 1'!$AK$9, 0)","v":{"v":0,"d":"$0.00"}},{"$f":"IFERROR('MMA Rev-Exp Region 1'!$AL$33/'MMA Rev-Exp Region 1'!$AL$9, 0)","v":{"v":0,"d":"$0.00"}},{"$f":"IFERROR('MMA Rev-Exp Region 1'!$AM$33/'MMA Rev-Exp Region 1'!$AM$9, 0)","v":{"v":0,"d":"$0.00"}},{"$f":"IFERROR('MMA Rev-Exp Region 1'!$AN$33/'MMA Rev-Exp Region 1'!$AN$9, 0)","v":{"v":0,"d":"$0.00"}},{"$f":"IFERROR('MMA Rev-Exp Region 1'!$AO$33/'MMA Rev-Exp Region 1'!$AO$9, 0)","v":{"v":0,"d":"$0.00"}},{"$f":"IFERROR('MMA Rev-Exp Region 1'!$AP$33/'MMA Rev-Exp Region 1'!$AP$9, 0)","v":{"v":0,"d":"$0.00"}},{"$f":"IFERROR('MMA Rev-Exp Region 1'!$AQ$33/'MMA Rev-Exp Region 1'!$AQ$9, 0)","v":{"v":0,"d":"$0.00"}},{"$f":"IFERROR('MMA Rev-Exp Region 1'!$AR$33/'MMA Rev-Exp Region 1'!$AR$9, 0)","v":{"v":0,"d":"$0.00"}},{"$f":"IFERROR('MMA Rev-Exp Region 1'!$AS$33/'MMA Rev-Exp Region 1'!$AS$9, 0)","v":{"v":0,"d":"$0.00"}},{"$f":"IFERROR('MMA Rev-Exp Region 1'!$AT$33/'MMA Rev-Exp Region 1'!$AT$9, 0)","v":{"v":0,"d":"$0.00"}},{"$f":"IFERROR('MMA Rev-Exp Region 1'!$AU$33/'MMA Rev-Exp Region 1'!$AU$9, 0)","v":{"v":0,"d":"$0.00"}}]
["MMA",null,null,{"$f":"Jurat!I$1","v":0},{"$f":"Jurat!D$33","v":"00:00:00"},"Q4","2017-12-31","Region 1","Operating Expense","Medical Benefits Expense","Professional Services","3.6","Ending IBNP for Professional Services",{"$f":"IFERROR('MMA Rev-Exp Region 1'!$AK$34/'MMA Rev-Exp Region 1'!$AK$9, 0)","v":{"v":0,"d":"$0.00"}},{"$f":"IFERROR('MMA Rev-Exp Region 1'!$AL$34/'MMA Rev-Exp Region 1'!$AL$9, 0)","v":{"v":0,"d":"$0.00"}},{"$f":"IFERROR('MMA Rev-Exp Region 1'!$AM$34/'MMA Rev-Exp Region 1'!$AM$9, 0)","v":{"v":0,"d":"$0.00"}},{"$f":"IFERROR('MMA Rev-Exp Region 1'!$AN$34/'MMA Rev-Exp Region 1'!$AN$9, 0)","v":{"v":0,"d":"$0.00"}},{"$f":"IFERROR('MMA Rev-Exp Region 1'!$AO$34/'MMA Rev-Exp Region 1'!$AO$9, 0)","v":{"v":0,"d":"$0.00"}},{"$f":"IFERROR('MMA Rev-Exp Region 1'!$AP$34/'MMA Rev-Exp Region 1'!$AP$9, 0)","v":{"v":0,"d":"$0.00"}},{"$f":"IFERROR('MMA Rev-Exp Region 1'!$AQ$34/'MMA Rev-Exp Region 1'!$AQ$9, 0)","v":{"v":0,"d":"$0.00"}},{"$f":"IFERROR('MMA Rev-Exp Region 1'!$AR$34/'MMA Rev-Exp Region 1'!$AR$9, 0)","v":{"v":0,"d":"$0.00"}},{"$f":"IFERROR('MMA Rev-Exp Region 1'!$AS$34/'MMA Rev-Exp Region 1'!$AS$9, 0)","v":{"v":0,"d":"$0.00"}},{"$f":"IFERROR('MMA Rev-Exp Region 1'!$AT$34/'MMA Rev-Exp Region 1'!$AT$9, 0)","v":{"v":0,"d":"$0.00"}},{"$f":"IFERROR('MMA Rev-Exp Region 1'!$AU$34/'MMA Rev-Exp Region 1'!$AU$9, 0)","v":{"v":0,"d":"$0.00"}}]
["MMA",null,null,{"$f":"Jurat!I$1","v":0},{"$f":"Jurat!D$33","v":"00:00:00"},"Q4","2017-12-31","Region 1","Operating Expense","Medical Benefits Expense","Professional Services","3.7","Professional Services Settlements",{"$f":"IFERROR('MMA Rev-Exp Region 1'!$AK$35/'MMA Rev-Exp Region 1'!$AK$9, 0)","v":{"v":0,"d":"$0.00"}},{"$f":"IFERROR('MMA Rev-Exp Region 1'!$AL$35/'MMA Rev-Exp Region 1'!$AL$9, 0)","v":{"v":0,"d":"$0.00"}},{"$f":"IFERROR('MMA Rev-Exp Region 1'!$AM$35/'MMA Rev-Exp Region 1'!$AM$9, 0)","v":{"v":0,"d":"$0.00"}},{"$f":"IFERROR('MMA Rev-Exp Region 1'!$AN$35/'MMA Rev-Exp Region 1'!$AN$9, 0)","v":{"v":0,"d":"$0.00"}},{"$f":"IFERROR('MMA Rev-Exp Region 1'!$AO$35/'MMA Rev-Exp Region 1'!$AO$9, 0)","v":{"v":0,"d":"$0.00"}},{"$f":"IFERROR('MMA Rev-Exp Region 1'!$AP$35/'MMA Rev-Exp Region 1'!$AP$9, 0)","v":{"v":0,"d":"$0.00"}},{"$f":"IFERROR('MMA Rev-Exp Region 1'!$AQ$35/'MMA Rev-Exp Region 1'!$AQ$9, 0)","v":{"v":0,"d":"$0.00"}},{"$f":"IFERROR('MMA Rev-Exp Region 1'!$AR$35/'MMA Rev-Exp Region 1'!$AR$9, 0)","v":{"v":0,"d":"$0.00"}},{"$f":"IFERROR('MMA Rev-Exp Region 1'!$AS$35/'MMA Rev-Exp Region 1'!$AS$9, 0)","v":{"v":0,"d":"$0.00"}},{"$f":"IFERROR('MMA Rev-Exp Region 1'!$AT$35/'MMA Rev-Exp Region 1'!$AT$9, 0)","v":{"v":0,"d":"$0.00"}},{"$f":"IFERROR('MMA Rev-Exp Region 1'!$AU$35/'MMA Rev-Exp Region 1'!$AU$9, 0)","v":{"v":0,"d":"$0.00"}}]
["MMA",null,null,{"$f":"Jurat!I$1","v":0},{"$f":"Jurat!D$33","v":"00:00:00"},"Q4","2017-12-31","Region 1","Operating Expense","Medical Benefits Expense","Maternity Services","4.1.1","Maternity Services",{"$f":"IFERROR('MMA Rev-Exp Region 1'!$AK$37/'MMA Rev-Exp Region 1'!$AK$9, 0)","v":{"v":0,"d":"$0.00"}},{"$f":"IFERROR('MMA Rev-Exp Region 1'!$AL$37/'MMA Rev-Exp Region 1'!$AL$9, 0)","v":{"v":0,"d":"$0.00"}},{"$f":"IFERROR('MMA Rev-Exp Region 1'!$AM$37/'MMA Rev-Exp Region 1'!$AM$9, 0)","v":{"v":0,"d":"$0.00"}},{"$f":"IFERROR('MMA Rev-Exp Region 1'!$AN$37/'MMA Rev-Exp Region 1'!$AN$9, 0)","v":{"v":0,"d":"$0.00"}},{"$f":"IFERROR('MMA Rev-Exp Region 1'!$AO$37/'MMA Rev-Exp Region 1'!$AO$9, 0)","v":{"v":0,"d":"$0.00"}},{"$f":"IFERROR('MMA Rev-Exp Region 1'!$AP$37/'MMA Rev-Exp Region 1'!$AP$9, 0)","v":{"v":0,"d":"$0.00"}},{"$f":"IFERROR('MMA Rev-Exp Region 1'!$AQ$37/'MMA Rev-Exp Region 1'!$AQ$9, 0)","v":{"v":0,"d":"$0.00"}},{"$f":"IFERROR('MMA Rev-Exp Region 1'!$AR$37/'MMA Rev-Exp Region 1'!$AR$9, 0)","v":{"v":0,"d":"$0.00"}},{"$f":"IFERROR('MMA Rev-Exp Region 1'!$AS$37/'MMA Rev-Exp Region 1'!$AS$9, 0)","v":{"v":0,"d":"$0.00"}},{"$f":"IFERROR('MMA Rev-Exp Region 1'!$AT$37/'MMA Rev-Exp Region 1'!$AT$9, 0)","v":{"v":0,"d":"$0.00"}},{"$f":"IFERROR('MMA Rev-Exp Region 1'!$AU$37/'MMA Rev-Exp Region 1'!$AU$9, 0)","v":{"v":0,"d":"$0.00"}}]
["MMA",null,null,{"$f":"Jurat!I$1","v":0},{"$f":"Jurat!D$33","v":"00:00:00"},"Q4","2017-12-31","Region 1","Operating Expense","Medical Benefits Expense","Maternity Services","4.2.1","Ending IBNP for Maternity Services",{"$f":"IFERROR('MMA Rev-Exp Region 1'!$AK$38/'MMA Rev-Exp Region 1'!$AK$9, 0)","v":{"v":0,"d":"$0.00"}},{"$f":"IFERROR('MMA Rev-Exp Region 1'!$AL$38/'MMA Rev-Exp Region 1'!$AL$9, 0)","v":{"v":0,"d":"$0.00"}},{"$f":"IFERROR('MMA Rev-Exp Region 1'!$AM$38/'MMA Rev-Exp Region 1'!$AM$9, 0)","v":{"v":0,"d":"$0.00"}},{"$f":"IFERROR('MMA Rev-Exp Region 1'!$AN$38/'MMA Rev-Exp Region 1'!$AN$9, 0)","v":{"v":0,"d":"$0.00"}},{"$f":"IFERROR('MMA Rev-Exp Region 1'!$AO$38/'MMA Rev-Exp Region 1'!$AO$9, 0)","v":{"v":0,"d":"$0.00"}},{"$f":"IFERROR('MMA Rev-Exp Region 1'!$AP$38/'MMA Rev-Exp Region 1'!$AP$9, 0)","v":{"v":0,"d":"$0.00"}},{"$f":"IFERROR('MMA Rev-Exp Region 1'!$AQ$38/'MMA Rev-Exp Region 1'!$AQ$9, 0)","v":{"v":0,"d":"$0.00"}},{"$f":"IFERROR('MMA Rev-Exp Region 1'!$AR$38/'MMA Rev-Exp Region 1'!$AR$9, 0)","v":{"v":0,"d":"$0.00"}},{"$f":"IFERROR('MMA Rev-Exp Region 1'!$AS$38/'MMA Rev-Exp Region 1'!$AS$9, 0)","v":{"v":0,"d":"$0.00"}},{"$f":"IFERROR('MMA Rev-Exp Region 1'!$AT$38/'MMA Rev-Exp Region 1'!$AT$9, 0)","v":{"v":0,"d":"$0.00"}},{"$f":"IFERROR('MMA Rev-Exp Region 1'!$AU$38/'MMA Rev-Exp Region 1'!$AU$9, 0)","v":{"v":0,"d":"$0.00"}}]
["MMA",null,null,{"$f":"Jurat!I$1","v":0},{"$f":"Jurat!D$33","v":"00:00:00"},"Q4","2017-12-31","Region 1","Operating Expense","Medical Benefits Expense","Maternity Services","4.3.1","Maternity Settlements",{"$f":"IFERROR('MMA Rev-Exp Region 1'!$AK$39/'MMA Rev-Exp Region 1'!$AK$9, 0)","v":{"v":0,"d":"$0.00"}},{"$f":"IFERROR('MMA Rev-Exp Region 1'!$AL$39/'MMA Rev-Exp Region 1'!$AL$9, 0)","v":{"v":0,"d":"$0.00"}},{"$f":"IFERROR('MMA Rev-Exp Region 1'!$AM$39/'MMA Rev-Exp Region 1'!$AM$9, 0)","v":{"v":0,"d":"$0.00"}},{"$f":"IFERROR('MMA Rev-Exp Region 1'!$AN$39/'MMA Rev-Exp Region 1'!$AN$9, 0)","v":{"v":0,"d":"$0.00"}},{"$f":"IFERROR('MMA Rev-Exp Region 1'!$AO$39/'MMA Rev-Exp Region 1'!$AO$9, 0)","v":{"v":0,"d":"$0.00"}},{"$f":"IFERROR('MMA Rev-Exp Region 1'!$AP$39/'MMA Rev-Exp Region 1'!$AP$9, 0)","v":{"v":0,"d":"$0.00"}},{"$f":"IFERROR('MMA Rev-Exp Region 1'!$AQ$39/'MMA Rev-Exp Region 1'!$AQ$9, 0)","v":{"v":0,"d":"$0.00"}},{"$f":"IFERROR('MMA Rev-Exp Region 1'!$AR$39/'MMA Rev-Exp Region 1'!$AR$9, 0)","v":{"v":0,"d":"$0.00"}},{"$f":"IFERROR('MMA Rev-Exp Region 1'!$AS$39/'MMA Rev-Exp Region 1'!$AS$9, 0)","v":{"v":0,"d":"$0.00"}},{"$f":"IFERROR('MMA Rev-Exp Region 1'!$AT$39/'MMA Rev-Exp Region 1'!$AT$9, 0)","v":{"v":0,"d":"$0.00"}},{"$f":"IFERROR('MMA Rev-Exp Region 1'!$AU$39/'MMA Rev-Exp Region 1'!$AU$9, 0)","v":{"v":0,"d":"$0.00"}}]
["MMA",null,null,{"$f":"Jurat!I$1","v":0},{"$f":"Jurat!D$33","v":"00:00:00"},"Q4","2017-12-31","Region 1","Operating Expense","Medical Benefits Expense","Mental Health Services",5.1,"Mental Health & Substance Abuse FFS",{"$f":"IFERROR('MMA Rev-Exp Region 1'!$AK$41/'MMA Rev-Exp Region 1'!$AK$9, 0)","v":{"v":0,"d":"$0.00"}},{"$f":"IFERROR('MMA Rev-Exp Region 1'!$AL$41/'MMA Rev-Exp Region 1'!$AL$9, 0)","v":{"v":0,"d":"$0.00"}},{"$f":"IFERROR('MMA Rev-Exp Region 1'!$AM$41/'MMA Rev-Exp Region 1'!$AM$9, 0)","v":{"v":0,"d":"$0.00"}},{"$f":"IFERROR('MMA Rev-Exp Region 1'!$AN$41/'MMA Rev-Exp Region 1'!$AN$9, 0)","v":{"v":0,"d":"$0.00"}},{"$f":"IFERROR('MMA Rev-Exp Region 1'!$AO$41/'MMA Rev-Exp Region 1'!$AO$9, 0)","v":{"v":0,"d":"$0.00"}},{"$f":"IFERROR('MMA Rev-Exp Region 1'!$AP$41/'MMA Rev-Exp Region 1'!$AP$9, 0)","v":{"v":0,"d":"$0.00"}},{"$f":"IFERROR('MMA Rev-Exp Region 1'!$AQ$41/'MMA Rev-Exp Region 1'!$AQ$9, 0)","v":{"v":0,"d":"$0.00"}},{"$f":"IFERROR('MMA Rev-Exp Region 1'!$AR$41/'MMA Rev-Exp Region 1'!$AR$9, 0)","v":{"v":0,"d":"$0.00"}},{"$f":"IFERROR('MMA Rev-Exp Region 1'!$AS$41/'MMA Rev-Exp Region 1'!$AS$9, 0)","v":{"v":0,"d":"$0.00"}},{"$f":"IFERROR('MMA Rev-Exp Region 1'!$AT$41/'MMA Rev-Exp Region 1'!$AT$9, 0)","v":{"v":0,"d":"$0.00"}},{"$f":"IFERROR('MMA Rev-Exp Region 1'!$AU$41/'MMA Rev-Exp Region 1'!$AU$9, 0)","v":{"v":0,"d":"$0.00"}}]
["MMA",null,null,{"$f":"Jurat!I$1","v":0},{"$f":"Jurat!D$33","v":"00:00:00"},"Q4","2017-12-31","Region 1","Operating Expense","Medical Benefits Expense","Mental Health Services",5.2,"Mental Health & Substance Abuse Subcapitation",{"$f":"IFERROR('MMA Rev-Exp Region 1'!$AK$42/'MMA Rev-Exp Region 1'!$AK$9, 0)","v":{"v":0,"d":"$0.00"}},{"$f":"IFERROR('MMA Rev-Exp Region 1'!$AL$42/'MMA Rev-Exp Region 1'!$AL$9, 0)","v":{"v":0,"d":"$0.00"}},{"$f":"IFERROR('MMA Rev-Exp Region 1'!$AM$42/'MMA Rev-Exp Region 1'!$AM$9, 0)","v":{"v":0,"d":"$0.00"}},{"$f":"IFERROR('MMA Rev-Exp Region 1'!$AN$42/'MMA Rev-Exp Region 1'!$AN$9, 0)","v":{"v":0,"d":"$0.00"}},{"$f":"IFERROR('MMA Rev-Exp Region 1'!$AO$42/'MMA Rev-Exp Region 1'!$AO$9, 0)","v":{"v":0,"d":"$0.00"}},{"$f":"IFERROR('MMA Rev-Exp Region 1'!$AP$42/'MMA Rev-Exp Region 1'!$AP$9, 0)","v":{"v":0,"d":"$0.00"}},{"$f":"IFERROR('MMA Rev-Exp Region 1'!$AQ$42/'MMA Rev-Exp Region 1'!$AQ$9, 0)","v":{"v":0,"d":"$0.00"}},{"$f":"IFERROR('MMA Rev-Exp Region 1'!$AR$42/'MMA Rev-Exp Region 1'!$AR$9, 0)","v":{"v":0,"d":"$0.00"}},{"$f":"IFERROR('MMA Rev-Exp Region 1'!$AS$42/'MMA Rev-Exp Region 1'!$AS$9, 0)","v":{"v":0,"d":"$0.00"}},{"$f":"IFERROR('MMA Rev-Exp Region 1'!$AT$42/'MMA Rev-Exp Region 1'!$AT$9, 0)","v":{"v":0,"d":"$0.00"}},{"$f":"IFERROR('MMA Rev-Exp Region 1'!$AU$42/'MMA Rev-Exp Region 1'!$AU$9, 0)","v":{"v":0,"d":"$0.00"}}]
["MMA",null,null,{"$f":"Jurat!I$1","v":0},{"$f":"Jurat!D$33","v":"00:00:00"},"Q4","2017-12-31","Region 1","Operating Expense","Medical Benefits Expense","Mental Health Services",5.3,"Ending IBNP for Mental Health & Substance Abuse",{"$f":"IFERROR('MMA Rev-Exp Region 1'!$AK$43/'MMA Rev-Exp Region 1'!$AK$9, 0)","v":{"v":0,"d":"$0.00"}},{"$f":"IFERROR('MMA Rev-Exp Region 1'!$AL$43/'MMA Rev-Exp Region 1'!$AL$9, 0)","v":{"v":0,"d":"$0.00"}},{"$f":"IFERROR('MMA Rev-Exp Region 1'!$AM$43/'MMA Rev-Exp Region 1'!$AM$9, 0)","v":{"v":0,"d":"$0.00"}},{"$f":"IFERROR('MMA Rev-Exp Region 1'!$AN$43/'MMA Rev-Exp Region 1'!$AN$9, 0)","v":{"v":0,"d":"$0.00"}},{"$f":"IFERROR('MMA Rev-Exp Region 1'!$AO$43/'MMA Rev-Exp Region 1'!$AO$9, 0)","v":{"v":0,"d":"$0.00"}},{"$f":"IFERROR('MMA Rev-Exp Region 1'!$AP$43/'MMA Rev-Exp Region 1'!$AP$9, 0)","v":{"v":0,"d":"$0.00"}},{"$f":"IFERROR('MMA Rev-Exp Region 1'!$AQ$43/'MMA Rev-Exp Region 1'!$AQ$9, 0)","v":{"v":0,"d":"$0.00"}},{"$f":"IFERROR('MMA Rev-Exp Region 1'!$AR$43/'MMA Rev-Exp Region 1'!$AR$9, 0)","v":{"v":0,"d":"$0.00"}},{"$f":"IFERROR('MMA Rev-Exp Region 1'!$AS$43/'MMA Rev-Exp Region 1'!$AS$9, 0)","v":{"v":0,"d":"$0.00"}},{"$f":"IFERROR('MMA Rev-Exp Region 1'!$AT$43/'MMA Rev-Exp Region 1'!$AT$9, 0)","v":{"v":0,"d":"$0.00"}},{"$f":"IFERROR('MMA Rev-Exp Region 1'!$AU$43/'MMA Rev-Exp Region 1'!$AU$9, 0)","v":{"v":0,"d":"$0.00"}}]
["MMA",null,null,{"$f":"Jurat!I$1","v":0},{"$f":"Jurat!D$33","v":"00:00:00"},"Q4","2017-12-31","Region 1","Operating Expense","Medical Benefits Expense","Mental Health Services","5.4","Mental Health Settlements",{"$f":"IFERROR('MMA Rev-Exp Region 1'!$AK$44/'MMA Rev-Exp Region 1'!$AK$9, 0)","v":{"v":0,"d":"$0.00"}},{"$f":"IFERROR('MMA Rev-Exp Region 1'!$AL$44/'MMA Rev-Exp Region 1'!$AL$9, 0)","v":{"v":0,"d":"$0.00"}},{"$f":"IFERROR('MMA Rev-Exp Region 1'!$AM$44/'MMA Rev-Exp Region 1'!$AM$9, 0)","v":{"v":0,"d":"$0.00"}},{"$f":"IFERROR('MMA Rev-Exp Region 1'!$AN$44/'MMA Rev-Exp Region 1'!$AN$9, 0)","v":{"v":0,"d":"$0.00"}},{"$f":"IFERROR('MMA Rev-Exp Region 1'!$AO$44/'MMA Rev-Exp Region 1'!$AO$9, 0)","v":{"v":0,"d":"$0.00"}},{"$f":"IFERROR('MMA Rev-Exp Region 1'!$AP$44/'MMA Rev-Exp Region 1'!$AP$9, 0)","v":{"v":0,"d":"$0.00"}},{"$f":"IFERROR('MMA Rev-Exp Region 1'!$AQ$44/'MMA Rev-Exp Region 1'!$AQ$9, 0)","v":{"v":0,"d":"$0.00"}},{"$f":"IFERROR('MMA Rev-Exp Region 1'!$AR$44/'MMA Rev-Exp Region 1'!$AR$9, 0)","v":{"v":0,"d":"$0.00"}},{"$f":"IFERROR('MMA Rev-Exp Region 1'!$AS$44/'MMA Rev-Exp Region 1'!$AS$9, 0)","v":{"v":0,"d":"$0.00"}},{"$f":"IFERROR('MMA Rev-Exp Region 1'!$AT$44/'MMA Rev-Exp Region 1'!$AT$9, 0)","v":{"v":0,"d":"$0.00"}},{"$f":"IFERROR('MMA Rev-Exp Region 1'!$AU$44/'MMA Rev-Exp Region 1'!$AU$9, 0)","v":{"v":0,"d":"$0.00"}}]
["MMA",null,null,{"$f":"Jurat!I$1","v":0},{"$f":"Jurat!D$33","v":"00:00:00"},"Q4","2017-12-31","Region 1","Operating Expense","Medical Benefits Expense","Dental Services",6.1,"Dental FFS",{"$f":"IFERROR('MMA Rev-Exp Region 1'!$AK$46/'MMA Rev-Exp Region 1'!$AK$9, 0)","v":{"v":0,"d":"$0.00"}},{"$f":"IFERROR('MMA Rev-Exp Region 1'!$AL$46/'MMA Rev-Exp Region 1'!$AL$9, 0)","v":{"v":0,"d":"$0.00"}},{"$f":"IFERROR('MMA Rev-Exp Region 1'!$AM$46/'MMA Rev-Exp Region 1'!$AM$9, 0)","v":{"v":0,"d":"$0.00"}},{"$f":"IFERROR('MMA Rev-Exp Region 1'!$AN$46/'MMA Rev-Exp Region 1'!$AN$9, 0)","v":{"v":0,"d":"$0.00"}},{"$f":"IFERROR('MMA Rev-Exp Region 1'!$AO$46/'MMA Rev-Exp Region 1'!$AO$9, 0)","v":{"v":0,"d":"$0.00"}},{"$f":"IFERROR('MMA Rev-Exp Region 1'!$AP$46/'MMA Rev-Exp Region 1'!$AP$9, 0)","v":{"v":0,"d":"$0.00"}},{"$f":"IFERROR('MMA Rev-Exp Region 1'!$AQ$46/'MMA Rev-Exp Region 1'!$AQ$9, 0)","v":{"v":0,"d":"$0.00"}},{"$f":"IFERROR('MMA Rev-Exp Region 1'!$AR$46/'MMA Rev-Exp Region 1'!$AR$9, 0)","v":{"v":0,"d":"$0.00"}},{"$f":"IFERROR('MMA Rev-Exp Region 1'!$AS$46/'MMA Rev-Exp Region 1'!$AS$9, 0)","v":{"v":0,"d":"$0.00"}},{"$f":"IFERROR('MMA Rev-Exp Region 1'!$AT$46/'MMA Rev-Exp Region 1'!$AT$9, 0)","v":{"v":0,"d":"$0.00"}},{"$f":"IFERROR('MMA Rev-Exp Region 1'!$AU$46/'MMA Rev-Exp Region 1'!$AU$9, 0)","v":{"v":0,"d":"$0.00"}}]
["MMA",null,null,{"$f":"Jurat!I$1","v":0},{"$f":"Jurat!D$33","v":"00:00:00"},"Q4","2017-12-31","Region 1","Operating Expense","Medical Benefits Expense","Dental Services",6.2,"Dental Subcapitation",{"$f":"IFERROR('MMA Rev-Exp Region 1'!$AK$47/'MMA Rev-Exp Region 1'!$AK$9, 0)","v":{"v":0,"d":"$0.00"}},{"$f":"IFERROR('MMA Rev-Exp Region 1'!$AL$47/'MMA Rev-Exp Region 1'!$AL$9, 0)","v":{"v":0,"d":"$0.00"}},{"$f":"IFERROR('MMA Rev-Exp Region 1'!$AM$47/'MMA Rev-Exp Region 1'!$AM$9, 0)","v":{"v":0,"d":"$0.00"}},{"$f":"IFERROR('MMA Rev-Exp Region 1'!$AN$47/'MMA Rev-Exp Region 1'!$AN$9, 0)","v":{"v":0,"d":"$0.00"}},{"$f":"IFERROR('MMA Rev-Exp Region 1'!$AO$47/'MMA Rev-Exp Region 1'!$AO$9, 0)","v":{"v":0,"d":"$0.00"}},{"$f":"IFERROR('MMA Rev-Exp Region 1'!$AP$47/'MMA Rev-Exp Region 1'!$AP$9, 0)","v":{"v":0,"d":"$0.00"}},{"$f":"IFERROR('MMA Rev-Exp Region 1'!$AQ$47/'MMA Rev-Exp Region 1'!$AQ$9, 0)","v":{"v":0,"d":"$0.00"}},{"$f":"IFERROR('MMA Rev-Exp Region 1'!$AR$47/'MMA Rev-Exp Region 1'!$AR$9, 0)","v":{"v":0,"d":"$0.00"}},{"$f":"IFERROR('MMA Rev-Exp Region 1'!$AS$47/'MMA Rev-Exp Region 1'!$AS$9, 0)","v":{"v":0,"d":"$0.00"}},{"$f":"IFERROR('MMA Rev-Exp Region 1'!$AT$47/'MMA Rev-Exp Region 1'!$AT$9, 0)","v":{"v":0,"d":"$0.00"}},{"$f":"IFERROR('MMA Rev-Exp Region 1'!$AU$47/'MMA Rev-Exp Region 1'!$AU$9, 0)","v":{"v":0,"d":"$0.00"}}]
["MMA",null,null,{"$f":"Jurat!I$1","v":0},{"$f":"Jurat!D$33","v":"00:00:00"},"Q4","2017-12-31","Region 1","Operating Expense","Medical Benefits Expense","Dental Services",6.3,"Ending IBNP for Dental Services",{"$f":"IFERROR('MMA Rev-Exp Region 1'!$AK$48/'MMA Rev-Exp Region 1'!$AK$9, 0)","v":{"v":0,"d":"$0.00"}},{"$f":"IFERROR('MMA Rev-Exp Region 1'!$AL$48/'MMA Rev-Exp Region 1'!$AL$9, 0)","v":{"v":0,"d":"$0.00"}},{"$f":"IFERROR('MMA Rev-Exp Region 1'!$AM$48/'MMA Rev-Exp Region 1'!$AM$9, 0)","v":{"v":0,"d":"$0.00"}},{"$f":"IFERROR('MMA Rev-Exp Region 1'!$AN$48/'MMA Rev-Exp Region 1'!$AN$9, 0)","v":{"v":0,"d":"$0.00"}},{"$f":"IFERROR('MMA Rev-Exp Region 1'!$AO$48/'MMA Rev-Exp Region 1'!$AO$9, 0)","v":{"v":0,"d":"$0.00"}},{"$f":"IFERROR('MMA Rev-Exp Region 1'!$AP$48/'MMA Rev-Exp Region 1'!$AP$9, 0)","v":{"v":0,"d":"$0.00"}},{"$f":"IFERROR('MMA Rev-Exp Region 1'!$AQ$48/'MMA Rev-Exp Region 1'!$AQ$9, 0)","v":{"v":0,"d":"$0.00"}},{"$f":"IFERROR('MMA Rev-Exp Region 1'!$AR$48/'MMA Rev-Exp Region 1'!$AR$9, 0)","v":{"v":0,"d":"$0.00"}},{"$f":"IFERROR('MMA Rev-Exp Region 1'!$AS$48/'MMA Rev-Exp Region 1'!$AS$9, 0)","v":{"v":0,"d":"$0.00"}},{"$f":"IFERROR('MMA Rev-Exp Region 1'!$AT$48/'MMA Rev-Exp Region 1'!$AT$9, 0)","v":{"v":0,"d":"$0.00"}},{"$f":"IFERROR('MMA Rev-Exp Region 1'!$AU$48/'MMA Rev-Exp Region 1'!$AU$9, 0)","v":{"v":0,"d":"$0.00"}}]
["MMA",null,null,{"$f":"Jurat!I$1","v":0},{"$f":"Jurat!D$33","v":"00:00:00"},"Q4","2017-12-31","Region 1","Operating Expense","Medical Benefits Expense","Dental Services","6.4","Dental Settlements",{"$f":"IFERROR('MMA Rev-Exp Region 1'!$AK$49/'MMA Rev-Exp Region 1'!$AK$9, 0)","v":{"v":0,"d":"$0.00"}},{"$f":"IFERROR('MMA Rev-Exp Region 1'!$AL$49/'MMA Rev-Exp Region 1'!$AL$9, 0)","v":{"v":0,"d":"$0.00"}},{"$f":"IFERROR('MMA Rev-Exp Region 1'!$AM$49/'MMA Rev-Exp Region 1'!$AM$9, 0)","v":{"v":0,"d":"$0.00"}},{"$f":"IFERROR('MMA Rev-Exp Region 1'!$AN$49/'MMA Rev-Exp Region 1'!$AN$9, 0)","v":{"v":0,"d":"$0.00"}},{"$f":"IFERROR('MMA Rev-Exp Region 1'!$AO$49/'MMA Rev-Exp Region 1'!$AO$9, 0)","v":{"v":0,"d":"$0.00"}},{"$f":"IFERROR('MMA Rev-Exp Region 1'!$AP$49/'MMA Rev-Exp Region 1'!$AP$9, 0)","v":{"v":0,"d":"$0.00"}},{"$f":"IFERROR('MMA Rev-Exp Region 1'!$AQ$49/'MMA Rev-Exp Region 1'!$AQ$9, 0)","v":{"v":0,"d":"$0.00"}},{"$f":"IFERROR('MMA Rev-Exp Region 1'!$AR$49/'MMA Rev-Exp Region 1'!$AR$9, 0)","v":{"v":0,"d":"$0.00"}},{"$f":"IFERROR('MMA Rev-Exp Region 1'!$AS$49/'MMA Rev-Exp Region 1'!$AS$9, 0)","v":{"v":0,"d":"$0.00"}},{"$f":"IFERROR('MMA Rev-Exp Region 1'!$AT$49/'MMA Rev-Exp Region 1'!$AT$9, 0)","v":{"v":0,"d":"$0.00"}},{"$f":"IFERROR('MMA Rev-Exp Region 1'!$AU$49/'MMA Rev-Exp Region 1'!$AU$9, 0)","v":{"v":0,"d":"$0.00"}}]
["MMA",null,null,{"$f":"Jurat!I$1","v":0},{"$f":"Jurat!D$33","v":"00:00:00"},"Q4","2017-12-31","Region 1","Operating Expense","Medical Benefits Expense","Transportation Services",7.1,"Transportation FFS",{"$f":"IFERROR('MMA Rev-Exp Region 1'!$AK$51/'MMA Rev-Exp Region 1'!$AK$9, 0)","v":{"v":0,"d":"$0.00"}},{"$f":"IFERROR('MMA Rev-Exp Region 1'!$AL$51/'MMA Rev-Exp Region 1'!$AL$9, 0)","v":{"v":0,"d":"$0.00"}},{"$f":"IFERROR('MMA Rev-Exp Region 1'!$AM$51/'MMA Rev-Exp Region 1'!$AM$9, 0)","v":{"v":0,"d":"$0.00"}},{"$f":"IFERROR('MMA Rev-Exp Region 1'!$AN$51/'MMA Rev-Exp Region 1'!$AN$9, 0)","v":{"v":0,"d":"$0.00"}},{"$f":"IFERROR('MMA Rev-Exp Region 1'!$AO$51/'MMA Rev-Exp Region 1'!$AO$9, 0)","v":{"v":0,"d":"$0.00"}},{"$f":"IFERROR('MMA Rev-Exp Region 1'!$AP$51/'MMA Rev-Exp Region 1'!$AP$9, 0)","v":{"v":0,"d":"$0.00"}},{"$f":"IFERROR('MMA Rev-Exp Region 1'!$AQ$51/'MMA Rev-Exp Region 1'!$AQ$9, 0)","v":{"v":0,"d":"$0.00"}},{"$f":"IFERROR('MMA Rev-Exp Region 1'!$AR$51/'MMA Rev-Exp Region 1'!$AR$9, 0)","v":{"v":0,"d":"$0.00"}},{"$f":"IFERROR('MMA Rev-Exp Region 1'!$AS$51/'MMA Rev-Exp Region 1'!$AS$9, 0)","v":{"v":0,"d":"$0.00"}},{"$f":"IFERROR('MMA Rev-Exp Region 1'!$AT$51/'MMA Rev-Exp Region 1'!$AT$9, 0)","v":{"v":0,"d":"$0.00"}},{"$f":"IFERROR('MMA Rev-Exp Region 1'!$AU$51/'MMA Rev-Exp Region 1'!$AU$9, 0)","v":{"v":0,"d":"$0.00"}}]
["MMA",null,null,{"$f":"Jurat!I$1","v":0},{"$f":"Jurat!D$33","v":"00:00:00"},"Q4","2017-12-31","Region 1","Operating Expense","Medical Benefits Expense","Transportation Services",7.2,"Transportation Subcapitation",{"$f":"IFERROR('MMA Rev-Exp Region 1'!$AK$52/'MMA Rev-Exp Region 1'!$AK$9, 0)","v":{"v":0,"d":"$0.00"}},{"$f":"IFERROR('MMA Rev-Exp Region 1'!$AL$52/'MMA Rev-Exp Region 1'!$AL$9, 0)","v":{"v":0,"d":"$0.00"}},{"$f":"IFERROR('MMA Rev-Exp Region 1'!$AM$52/'MMA Rev-Exp Region 1'!$AM$9, 0)","v":{"v":0,"d":"$0.00"}},{"$f":"IFERROR('MMA Rev-Exp Region 1'!$AN$52/'MMA Rev-Exp Region 1'!$AN$9, 0)","v":{"v":0,"d":"$0.00"}},{"$f":"IFERROR('MMA Rev-Exp Region 1'!$AO$52/'MMA Rev-Exp Region 1'!$AO$9, 0)","v":{"v":0,"d":"$0.00"}},{"$f":"IFERROR('MMA Rev-Exp Region 1'!$AP$52/'MMA Rev-Exp Region 1'!$AP$9, 0)","v":{"v":0,"d":"$0.00"}},{"$f":"IFERROR('MMA Rev-Exp Region 1'!$AQ$52/'MMA Rev-Exp Region 1'!$AQ$9, 0)","v":{"v":0,"d":"$0.00"}},{"$f":"IFERROR('MMA Rev-Exp Region 1'!$AR$52/'MMA Rev-Exp Region 1'!$AR$9, 0)","v":{"v":0,"d":"$0.00"}},{"$f":"IFERROR('MMA Rev-Exp Region 1'!$AS$52/'MMA Rev-Exp Region 1'!$AS$9, 0)","v":{"v":0,"d":"$0.00"}},{"$f":"IFERROR('MMA Rev-Exp Region 1'!$AT$52/'MMA Rev-Exp Region 1'!$AT$9, 0)","v":{"v":0,"d":"$0.00"}},{"$f":"IFERROR('MMA Rev-Exp Region 1'!$AU$52/'MMA Rev-Exp Region 1'!$AU$9, 0)","v":{"v":0,"d":"$0.00"}}]
["MMA",null,null,{"$f":"Jurat!I$1","v":0},{"$f":"Jurat!D$33","v":"00:00:00"},"Q4","2017-12-31","Region 1","Operating Expense","Medical Benefits Expense","Transportation Services",7.3,"Ending IBNP for Transportation",{"$f":"IFERROR('MMA Rev-Exp Region 1'!$AK$53/'MMA Rev-Exp Region 1'!$AK$9, 0)","v":{"v":0,"d":"$0.00"}},{"$f":"IFERROR('MMA Rev-Exp Region 1'!$AL$53/'MMA Rev-Exp Region 1'!$AL$9, 0)","v":{"v":0,"d":"$0.00"}},{"$f":"IFERROR('MMA Rev-Exp Region 1'!$AM$53/'MMA Rev-Exp Region 1'!$AM$9, 0)","v":{"v":0,"d":"$0.00"}},{"$f":"IFERROR('MMA Rev-Exp Region 1'!$AN$53/'MMA Rev-Exp Region 1'!$AN$9, 0)","v":{"v":0,"d":"$0.00"}},{"$f":"IFERROR('MMA Rev-Exp Region 1'!$AO$53/'MMA Rev-Exp Region 1'!$AO$9, 0)","v":{"v":0,"d":"$0.00"}},{"$f":"IFERROR('MMA Rev-Exp Region 1'!$AP$53/'MMA Rev-Exp Region 1'!$AP$9, 0)","v":{"v":0,"d":"$0.00"}},{"$f":"IFERROR('MMA Rev-Exp Region 1'!$AQ$53/'MMA Rev-Exp Region 1'!$AQ$9, 0)","v":{"v":0,"d":"$0.00"}},{"$f":"IFERROR('MMA Rev-Exp Region 1'!$AR$53/'MMA Rev-Exp Region 1'!$AR$9, 0)","v":{"v":0,"d":"$0.00"}},{"$f":"IFERROR('MMA Rev-Exp Region 1'!$AS$53/'MMA Rev-Exp Region 1'!$AS$9, 0)","v":{"v":0,"d":"$0.00"}},{"$f":"IFERROR('MMA Rev-Exp Region 1'!$AT$53/'MMA Rev-Exp Region 1'!$AT$9, 0)","v":{"v":0,"d":"$0.00"}},{"$f":"IFERROR('MMA Rev-Exp Region 1'!$AU$53/'MMA Rev-Exp Region 1'!$AU$9, 0)","v":{"v":0,"d":"$0.00"}}]
["MMA",null,null,{"$f":"Jurat!I$1","v":0},{"$f":"Jurat!D$33","v":"00:00:00"},"Q4","2017-12-31","Region 1","Operating Expense","Medical Benefits Expense","Transportation Services","7.4","Transportation Settlements",{"$f":"IFERROR('MMA Rev-Exp Region 1'!$AK$54/'MMA Rev-Exp Region 1'!$AK$9, 0)","v":{"v":0,"d":"$0.00"}},{"$f":"IFERROR('MMA Rev-Exp Region 1'!$AL$54/'MMA Rev-Exp Region 1'!$AL$9, 0)","v":{"v":0,"d":"$0.00"}},{"$f":"IFERROR('MMA Rev-Exp Region 1'!$AM$54/'MMA Rev-Exp Region 1'!$AM$9, 0)","v":{"v":0,"d":"$0.00"}},{"$f":"IFERROR('MMA Rev-Exp Region 1'!$AN$54/'MMA Rev-Exp Region 1'!$AN$9, 0)","v":{"v":0,"d":"$0.00"}},{"$f":"IFERROR('MMA Rev-Exp Region 1'!$AO$54/'MMA Rev-Exp Region 1'!$AO$9, 0)","v":{"v":0,"d":"$0.00"}},{"$f":"IFERROR('MMA Rev-Exp Region 1'!$AP$54/'MMA Rev-Exp Region 1'!$AP$9, 0)","v":{"v":0,"d":"$0.00"}},{"$f":"IFERROR('MMA Rev-Exp Region 1'!$AQ$54/'MMA Rev-Exp Region 1'!$AQ$9, 0)","v":{"v":0,"d":"$0.00"}},{"$f":"IFERROR('MMA Rev-Exp Region 1'!$AR$54/'MMA Rev-Exp Region 1'!$AR$9, 0)","v":{"v":0,"d":"$0.00"}},{"$f":"IFERROR('MMA Rev-Exp Region 1'!$AS$54/'MMA Rev-Exp Region 1'!$AS$9, 0)","v":{"v":0,"d":"$0.00"}},{"$f":"IFERROR('MMA Rev-Exp Region 1'!$AT$54/'MMA Rev-Exp Region 1'!$AT$9, 0)","v":{"v":0,"d":"$0.00"}},{"$f":"IFERROR('MMA Rev-Exp Region 1'!$AU$54/'MMA Rev-Exp Region 1'!$AU$9, 0)","v":{"v":0,"d":"$0.00"}}]
["MMA",null,null,{"$f":"Jurat!I$1","v":0},{"$f":"Jurat!D$33","v":"00:00:00"},"Q4","2017-12-31","Region 1","Operating Expense","Medical Benefits Expense","Pharmacy Services",8.1,"Prescription Drugs FFS",{"$f":"IFERROR('MMA Rev-Exp Region 1'!$AK$56/'MMA Rev-Exp Region 1'!$AK$9, 0)","v":{"v":0,"d":"$0.00"}},{"$f":"IFERROR('MMA Rev-Exp Region 1'!$AL$56/'MMA Rev-Exp Region 1'!$AL$9, 0)","v":{"v":0,"d":"$0.00"}},{"$f":"IFERROR('MMA Rev-Exp Region 1'!$AM$56/'MMA Rev-Exp Region 1'!$AM$9, 0)","v":{"v":0,"d":"$0.00"}},{"$f":"IFERROR('MMA Rev-Exp Region 1'!$AN$56/'MMA Rev-Exp Region 1'!$AN$9, 0)","v":{"v":0,"d":"$0.00"}},{"$f":"IFERROR('MMA Rev-Exp Region 1'!$AO$56/'MMA Rev-Exp Region 1'!$AO$9, 0)","v":{"v":0,"d":"$0.00"}},{"$f":"IFERROR('MMA Rev-Exp Region 1'!$AP$56/'MMA Rev-Exp Region 1'!$AP$9, 0)","v":{"v":0,"d":"$0.00"}},{"$f":"IFERROR('MMA Rev-Exp Region 1'!$AQ$56/'MMA Rev-Exp Region 1'!$AQ$9, 0)","v":{"v":0,"d":"$0.00"}},{"$f":"IFERROR('MMA Rev-Exp Region 1'!$AR$56/'MMA Rev-Exp Region 1'!$AR$9, 0)","v":{"v":0,"d":"$0.00"}},{"$f":"IFERROR('MMA Rev-Exp Region 1'!$AS$56/'MMA Rev-Exp Region 1'!$AS$9, 0)","v":{"v":0,"d":"$0.00"}},{"$f":"IFERROR('MMA Rev-Exp Region 1'!$AT$56/'MMA Rev-Exp Region 1'!$AT$9, 0)","v":{"v":0,"d":"$0.00"}},{"$f":"IFERROR('MMA Rev-Exp Region 1'!$AU$56/'MMA Rev-Exp Region 1'!$AU$9, 0)","v":{"v":0,"d":"$0.00"}}]
["MMA",null,null,{"$f":"Jurat!I$1","v":0},{"$f":"Jurat!D$33","v":"00:00:00"},"Q4","2017-12-31","Region 1","Operating Expense","Medical Benefits Expense","Pharmacy Services","8.2","Hepatitis C Prescription Drug FFS",{"$f":"IFERROR('MMA Rev-Exp Region 1'!$AK$57/'MMA Rev-Exp Region 1'!$AK$9, 0)","v":{"v":0,"d":"$0.00"}},{"$f":"IFERROR('MMA Rev-Exp Region 1'!$AL$57/'MMA Rev-Exp Region 1'!$AL$9, 0)","v":{"v":0,"d":"$0.00"}},{"$f":"IFERROR('MMA Rev-Exp Region 1'!$AM$57/'MMA Rev-Exp Region 1'!$AM$9, 0)","v":{"v":0,"d":"$0.00"}},{"$f":"IFERROR('MMA Rev-Exp Region 1'!$AN$57/'MMA Rev-Exp Region 1'!$AN$9, 0)","v":{"v":0,"d":"$0.00"}},{"$f":"IFERROR('MMA Rev-Exp Region 1'!$AO$57/'MMA Rev-Exp Region 1'!$AO$9, 0)","v":{"v":0,"d":"$0.00"}},{"$f":"IFERROR('MMA Rev-Exp Region 1'!$AP$57/'MMA Rev-Exp Region 1'!$AP$9, 0)","v":{"v":0,"d":"$0.00"}},{"$f":"IFERROR('MMA Rev-Exp Region 1'!$AQ$57/'MMA Rev-Exp Region 1'!$AQ$9, 0)","v":{"v":0,"d":"$0.00"}},{"$f":"IFERROR('MMA Rev-Exp Region 1'!$AR$57/'MMA Rev-Exp Region 1'!$AR$9, 0)","v":{"v":0,"d":"$0.00"}},{"$f":"IFERROR('MMA Rev-Exp Region 1'!$AS$57/'MMA Rev-Exp Region 1'!$AS$9, 0)","v":{"v":0,"d":"$0.00"}},{"$f":"IFERROR('MMA Rev-Exp Region 1'!$AT$57/'MMA Rev-Exp Region 1'!$AT$9, 0)","v":{"v":0,"d":"$0.00"}},{"$f":"IFERROR('MMA Rev-Exp Region 1'!$AU$57/'MMA Rev-Exp Region 1'!$AU$9, 0)","v":{"v":0,"d":"$0.00"}}]
["MMA",null,null,{"$f":"Jurat!I$1","v":0},{"$f":"Jurat!D$33","v":"00:00:00"},"Q4","2017-12-31","Region 1","Operating Expense","Medical Benefits Expense","Pharmacy Services","8.3","Ending IBNP for Prescription Drugs",{"$f":"IFERROR('MMA Rev-Exp Region 1'!$AK$58/'MMA Rev-Exp Region 1'!$AK$9, 0)","v":{"v":0,"d":"$0.00"}},{"$f":"IFERROR('MMA Rev-Exp Region 1'!$AL$58/'MMA Rev-Exp Region 1'!$AL$9, 0)","v":{"v":0,"d":"$0.00"}},{"$f":"IFERROR('MMA Rev-Exp Region 1'!$AM$58/'MMA Rev-Exp Region 1'!$AM$9, 0)","v":{"v":0,"d":"$0.00"}},{"$f":"IFERROR('MMA Rev-Exp Region 1'!$AN$58/'MMA Rev-Exp Region 1'!$AN$9, 0)","v":{"v":0,"d":"$0.00"}},{"$f":"IFERROR('MMA Rev-Exp Region 1'!$AO$58/'MMA Rev-Exp Region 1'!$AO$9, 0)","v":{"v":0,"d":"$0.00"}},{"$f":"IFERROR('MMA Rev-Exp Region 1'!$AP$58/'MMA Rev-Exp Region 1'!$AP$9, 0)","v":{"v":0,"d":"$0.00"}},{"$f":"IFERROR('MMA Rev-Exp Region 1'!$AQ$58/'MMA Rev-Exp Region 1'!$AQ$9, 0)","v":{"v":0,"d":"$0.00"}},{"$f":"IFERROR('MMA Rev-Exp Region 1'!$AR$58/'MMA Rev-Exp Region 1'!$AR$9, 0)","v":{"v":0,"d":"$0.00"}},{"$f":"IFERROR('MMA Rev-Exp Region 1'!$AS$58/'MMA Rev-Exp Region 1'!$AS$9, 0)","v":{"v":0,"d":"$0.00"}},{"$f":"IFERROR('MMA Rev-Exp Region 1'!$AT$58/'MMA Rev-Exp Region 1'!$AT$9, 0)","v":{"v":0,"d":"$0.00"}},{"$f":"IFERROR('MMA Rev-Exp Region 1'!$AU$58/'MMA Rev-Exp Region 1'!$AU$9, 0)","v":{"v":0,"d":"$0.00"}}]
["MMA",null,null,{"$f":"Jurat!I$1","v":0},{"$f":"Jurat!D$33","v":"00:00:00"},"Q4","2017-12-31","Region 1","Operating Expense","Medical Benefits Expense","Pharmacy Services","8.4","Prescription Drug Rebates ",{"$f":"IFERROR('MMA Rev-Exp Region 1'!$AK$59/'MMA Rev-Exp Region 1'!$AK$9, 0)","v":{"v":0,"d":"$0.00"}},{"$f":"IFERROR('MMA Rev-Exp Region 1'!$AL$59/'MMA Rev-Exp Region 1'!$AL$9, 0)","v":{"v":0,"d":"$0.00"}},{"$f":"IFERROR('MMA Rev-Exp Region 1'!$AM$59/'MMA Rev-Exp Region 1'!$AM$9, 0)","v":{"v":0,"d":"$0.00"}},{"$f":"IFERROR('MMA Rev-Exp Region 1'!$AN$59/'MMA Rev-Exp Region 1'!$AN$9, 0)","v":{"v":0,"d":"$0.00"}},{"$f":"IFERROR('MMA Rev-Exp Region 1'!$AO$59/'MMA Rev-Exp Region 1'!$AO$9, 0)","v":{"v":0,"d":"$0.00"}},{"$f":"IFERROR('MMA Rev-Exp Region 1'!$AP$59/'MMA Rev-Exp Region 1'!$AP$9, 0)","v":{"v":0,"d":"$0.00"}},{"$f":"IFERROR('MMA Rev-Exp Region 1'!$AQ$59/'MMA Rev-Exp Region 1'!$AQ$9, 0)","v":{"v":0,"d":"$0.00"}},{"$f":"IFERROR('MMA Rev-Exp Region 1'!$AR$59/'MMA Rev-Exp Region 1'!$AR$9, 0)","v":{"v":0,"d":"$0.00"}},{"$f":"IFERROR('MMA Rev-Exp Region 1'!$AS$59/'MMA Rev-Exp Region 1'!$AS$9, 0)","v":{"v":0,"d":"$0.00"}},{"$f":"IFERROR('MMA Rev-Exp Region 1'!$AT$59/'MMA Rev-Exp Region 1'!$AT$9, 0)","v":{"v":0,"d":"$0.00"}},{"$f":"IFERROR('MMA Rev-Exp Region 1'!$AU$59/'MMA Rev-Exp Region 1'!$AU$9, 0)","v":{"v":0,"d":"$0.00"}}]
["MMA",null,null,{"$f":"Jurat!I$1","v":0},{"$f":"Jurat!D$33","v":"00:00:00"},"Q4","2017-12-31","Region 1","Operating Expense","Medical Benefits Expense","Pharmacy Services","8.5","Ending accrual for Rebates receivable",{"$f":"IFERROR('MMA Rev-Exp Region 1'!$AK$60/'MMA Rev-Exp Region 1'!$AK$9, 0)","v":{"v":0,"d":"$0.00"}},{"$f":"IFERROR('MMA Rev-Exp Region 1'!$AL$60/'MMA Rev-Exp Region 1'!$AL$9, 0)","v":{"v":0,"d":"$0.00"}},{"$f":"IFERROR('MMA Rev-Exp Region 1'!$AM$60/'MMA Rev-Exp Region 1'!$AM$9, 0)","v":{"v":0,"d":"$0.00"}},{"$f":"IFERROR('MMA Rev-Exp Region 1'!$AN$60/'MMA Rev-Exp Region 1'!$AN$9, 0)","v":{"v":0,"d":"$0.00"}},{"$f":"IFERROR('MMA Rev-Exp Region 1'!$AO$60/'MMA Rev-Exp Region 1'!$AO$9, 0)","v":{"v":0,"d":"$0.00"}},{"$f":"IFERROR('MMA Rev-Exp Region 1'!$AP$60/'MMA Rev-Exp Region 1'!$AP$9, 0)","v":{"v":0,"d":"$0.00"}},{"$f":"IFERROR('MMA Rev-Exp Region 1'!$AQ$60/'MMA Rev-Exp Region 1'!$AQ$9, 0)","v":{"v":0,"d":"$0.00"}},{"$f":"IFERROR('MMA Rev-Exp Region 1'!$AR$60/'MMA Rev-Exp Region 1'!$AR$9, 0)","v":{"v":0,"d":"$0.00"}},{"$f":"IFERROR('MMA Rev-Exp Region 1'!$AS$60/'MMA Rev-Exp Region 1'!$AS$9, 0)","v":{"v":0,"d":"$0.00"}},{"$f":"IFERROR('MMA Rev-Exp Region 1'!$AT$60/'MMA Rev-Exp Region 1'!$AT$9, 0)","v":{"v":0,"d":"$0.00"}},{"$f":"IFERROR('MMA Rev-Exp Region 1'!$AU$60/'MMA Rev-Exp Region 1'!$AU$9, 0)","v":{"v":0,"d":"$0.00"}}]
["MMA",null,null,{"$f":"Jurat!I$1","v":0},{"$f":"Jurat!D$33","v":"00:00:00"},"Q4","2017-12-31","Region 1","Operating Expense","Medical Benefits Expense","Pharmacy Services","8.6","Prescription Drugs Subcapitation",{"$f":"IFERROR('MMA Rev-Exp Region 1'!$AK$61/'MMA Rev-Exp Region 1'!$AK$9, 0)","v":{"v":0,"d":"$0.00"}},{"$f":"IFERROR('MMA Rev-Exp Region 1'!$AL$61/'MMA Rev-Exp Region 1'!$AL$9, 0)","v":{"v":0,"d":"$0.00"}},{"$f":"IFERROR('MMA Rev-Exp Region 1'!$AM$61/'MMA Rev-Exp Region 1'!$AM$9, 0)","v":{"v":0,"d":"$0.00"}},{"$f":"IFERROR('MMA Rev-Exp Region 1'!$AN$61/'MMA Rev-Exp Region 1'!$AN$9, 0)","v":{"v":0,"d":"$0.00"}},{"$f":"IFERROR('MMA Rev-Exp Region 1'!$AO$61/'MMA Rev-Exp Region 1'!$AO$9, 0)","v":{"v":0,"d":"$0.00"}},{"$f":"IFERROR('MMA Rev-Exp Region 1'!$AP$61/'MMA Rev-Exp Region 1'!$AP$9, 0)","v":{"v":0,"d":"$0.00"}},{"$f":"IFERROR('MMA Rev-Exp Region 1'!$AQ$61/'MMA Rev-Exp Region 1'!$AQ$9, 0)","v":{"v":0,"d":"$0.00"}},{"$f":"IFERROR('MMA Rev-Exp Region 1'!$AR$61/'MMA Rev-Exp Region 1'!$AR$9, 0)","v":{"v":0,"d":"$0.00"}},{"$f":"IFERROR('MMA Rev-Exp Region 1'!$AS$61/'MMA Rev-Exp Region 1'!$AS$9, 0)","v":{"v":0,"d":"$0.00"}},{"$f":"IFERROR('MMA Rev-Exp Region 1'!$AT$61/'MMA Rev-Exp Region 1'!$AT$9, 0)","v":{"v":0,"d":"$0.00"}},{"$f":"IFERROR('MMA Rev-Exp Region 1'!$AU$61/'MMA Rev-Exp Region 1'!$AU$9, 0)","v":{"v":0,"d":"$0.00"}}]
["MMA",null,null,{"$f":"Jurat!I$1","v":0},{"$f":"Jurat!D$33","v":"00:00:00"},"Q4","2017-12-31","Region 1","Operating Expense","Medical Benefits Expense","Pharmacy Services","8.7","Prescription Drug Settlements",{"$f":"IFERROR('MMA Rev-Exp Region 1'!$AK$62/'MMA Rev-Exp Region 1'!$AK$9, 0)","v":{"v":0,"d":"$0.00"}},{"$f":"IFERROR('MMA Rev-Exp Region 1'!$AL$62/'MMA Rev-Exp Region 1'!$AL$9, 0)","v":{"v":0,"d":"$0.00"}},{"$f":"IFERROR('MMA Rev-Exp Region 1'!$AM$62/'MMA Rev-Exp Region 1'!$AM$9, 0)","v":{"v":0,"d":"$0.00"}},{"$f":"IFERROR('MMA Rev-Exp Region 1'!$AN$62/'MMA Rev-Exp Region 1'!$AN$9, 0)","v":{"v":0,"d":"$0.00"}},{"$f":"IFERROR('MMA Rev-Exp Region 1'!$AO$62/'MMA Rev-Exp Region 1'!$AO$9, 0)","v":{"v":0,"d":"$0.00"}},{"$f":"IFERROR('MMA Rev-Exp Region 1'!$AP$62/'MMA Rev-Exp Region 1'!$AP$9, 0)","v":{"v":0,"d":"$0.00"}},{"$f":"IFERROR('MMA Rev-Exp Region 1'!$AQ$62/'MMA Rev-Exp Region 1'!$AQ$9, 0)","v":{"v":0,"d":"$0.00"}},{"$f":"IFERROR('MMA Rev-Exp Region 1'!$AR$62/'MMA Rev-Exp Region 1'!$AR$9, 0)","v":{"v":0,"d":"$0.00"}},{"$f":"IFERROR('MMA Rev-Exp Region 1'!$AS$62/'MMA Rev-Exp Region 1'!$AS$9, 0)","v":{"v":0,"d":"$0.00"}},{"$f":"IFERROR('MMA Rev-Exp Region 1'!$AT$62/'MMA Rev-Exp Region 1'!$AT$9, 0)","v":{"v":0,"d":"$0.00"}},{"$f":"IFERROR('MMA Rev-Exp Region 1'!$AU$62/'MMA Rev-Exp Region 1'!$AU$9, 0)","v":{"v":0,"d":"$0.00"}}]
["MMA",null,null,{"$f":"Jurat!I$1","v":0},{"$f":"Jurat!D$33","v":"00:00:00"},"Q4","2017-12-31","Region 1","Operating Expense","Medical Benefits Expense","Other MMA Services",9.1,"Home Health, Private Duty Nursing, Personal Care FFS",{"$f":"IFERROR('MMA Rev-Exp Region 1'!$AK$64/'MMA Rev-Exp Region 1'!$AK$9, 0)","v":{"v":0,"d":"$0.00"}},{"$f":"IFERROR('MMA Rev-Exp Region 1'!$AL$64/'MMA Rev-Exp Region 1'!$AL$9, 0)","v":{"v":0,"d":"$0.00"}},{"$f":"IFERROR('MMA Rev-Exp Region 1'!$AM$64/'MMA Rev-Exp Region 1'!$AM$9, 0)","v":{"v":0,"d":"$0.00"}},{"$f":"IFERROR('MMA Rev-Exp Region 1'!$AN$64/'MMA Rev-Exp Region 1'!$AN$9, 0)","v":{"v":0,"d":"$0.00"}},{"$f":"IFERROR('MMA Rev-Exp Region 1'!$AO$64/'MMA Rev-Exp Region 1'!$AO$9, 0)","v":{"v":0,"d":"$0.00"}},{"$f":"IFERROR('MMA Rev-Exp Region 1'!$AP$64/'MMA Rev-Exp Region 1'!$AP$9, 0)","v":{"v":0,"d":"$0.00"}},{"$f":"IFERROR('MMA Rev-Exp Region 1'!$AQ$64/'MMA Rev-Exp Region 1'!$AQ$9, 0)","v":{"v":0,"d":"$0.00"}},{"$f":"IFERROR('MMA Rev-Exp Region 1'!$AR$64/'MMA Rev-Exp Region 1'!$AR$9, 0)","v":{"v":0,"d":"$0.00"}},{"$f":"IFERROR('MMA Rev-Exp Region 1'!$AS$64/'MMA Rev-Exp Region 1'!$AS$9, 0)","v":{"v":0,"d":"$0.00"}},{"$f":"IFERROR('MMA Rev-Exp Region 1'!$AT$64/'MMA Rev-Exp Region 1'!$AT$9, 0)","v":{"v":0,"d":"$0.00"}},{"$f":"IFERROR('MMA Rev-Exp Region 1'!$AU$64/'MMA Rev-Exp Region 1'!$AU$9, 0)","v":{"v":0,"d":"$0.00"}}]
["MMA",null,null,{"$f":"Jurat!I$1","v":0},{"$f":"Jurat!D$33","v":"00:00:00"},"Q4","2017-12-31","Region 1","Operating Expense","Medical Benefits Expense","Other MMA Services","9.2","Hospice FFS",{"$f":"IFERROR('MMA Rev-Exp Region 1'!$AK$65/'MMA Rev-Exp Region 1'!$AK$9, 0)","v":{"v":0,"d":"$0.00"}},{"$f":"IFERROR('MMA Rev-Exp Region 1'!$AL$65/'MMA Rev-Exp Region 1'!$AL$9, 0)","v":{"v":0,"d":"$0.00"}},{"$f":"IFERROR('MMA Rev-Exp Region 1'!$AM$65/'MMA Rev-Exp Region 1'!$AM$9, 0)","v":{"v":0,"d":"$0.00"}},{"$f":"IFERROR('MMA Rev-Exp Region 1'!$AN$65/'MMA Rev-Exp Region 1'!$AN$9, 0)","v":{"v":0,"d":"$0.00"}},{"$f":"IFERROR('MMA Rev-Exp Region 1'!$AO$65/'MMA Rev-Exp Region 1'!$AO$9, 0)","v":{"v":0,"d":"$0.00"}},{"$f":"IFERROR('MMA Rev-Exp Region 1'!$AP$65/'MMA Rev-Exp Region 1'!$AP$9, 0)","v":{"v":0,"d":"$0.00"}},{"$f":"IFERROR('MMA Rev-Exp Region 1'!$AQ$65/'MMA Rev-Exp Region 1'!$AQ$9, 0)","v":{"v":0,"d":"$0.00"}},{"$f":"IFERROR('MMA Rev-Exp Region 1'!$AR$65/'MMA Rev-Exp Region 1'!$AR$9, 0)","v":{"v":0,"d":"$0.00"}},{"$f":"IFERROR('MMA Rev-Exp Region 1'!$AS$65/'MMA Rev-Exp Region 1'!$AS$9, 0)","v":{"v":0,"d":"$0.00"}},{"$f":"IFERROR('MMA Rev-Exp Region 1'!$AT$65/'MMA Rev-Exp Region 1'!$AT$9, 0)","v":{"v":0,"d":"$0.00"}},{"$f":"IFERROR('MMA Rev-Exp Region 1'!$AU$65/'MMA Rev-Exp Region 1'!$AU$9, 0)","v":{"v":0,"d":"$0.00"}}]
["MMA",null,null,{"$f":"Jurat!I$1","v":0},{"$f":"Jurat!D$33","v":"00:00:00"},"Q4","2017-12-31","Region 1","Operating Expense","Medical Benefits Expense","Other MMA Services","9.3","DME FFS",{"$f":"IFERROR('MMA Rev-Exp Region 1'!$AK$66/'MMA Rev-Exp Region 1'!$AK$9, 0)","v":{"v":0,"d":"$0.00"}},{"$f":"IFERROR('MMA Rev-Exp Region 1'!$AL$66/'MMA Rev-Exp Region 1'!$AL$9, 0)","v":{"v":0,"d":"$0.00"}},{"$f":"IFERROR('MMA Rev-Exp Region 1'!$AM$66/'MMA Rev-Exp Region 1'!$AM$9, 0)","v":{"v":0,"d":"$0.00"}},{"$f":"IFERROR('MMA Rev-Exp Region 1'!$AN$66/'MMA Rev-Exp Region 1'!$AN$9, 0)","v":{"v":0,"d":"$0.00"}},{"$f":"IFERROR('MMA Rev-Exp Region 1'!$AO$66/'MMA Rev-Exp Region 1'!$AO$9, 0)","v":{"v":0,"d":"$0.00"}},{"$f":"IFERROR('MMA Rev-Exp Region 1'!$AP$66/'MMA Rev-Exp Region 1'!$AP$9, 0)","v":{"v":0,"d":"$0.00"}},{"$f":"IFERROR('MMA Rev-Exp Region 1'!$AQ$66/'MMA Rev-Exp Region 1'!$AQ$9, 0)","v":{"v":0,"d":"$0.00"}},{"$f":"IFERROR('MMA Rev-Exp Region 1'!$AR$66/'MMA Rev-Exp Region 1'!$AR$9, 0)","v":{"v":0,"d":"$0.00"}},{"$f":"IFERROR('MMA Rev-Exp Region 1'!$AS$66/'MMA Rev-Exp Region 1'!$AS$9, 0)","v":{"v":0,"d":"$0.00"}},{"$f":"IFERROR('MMA Rev-Exp Region 1'!$AT$66/'MMA Rev-Exp Region 1'!$AT$9, 0)","v":{"v":0,"d":"$0.00"}},{"$f":"IFERROR('MMA Rev-Exp Region 1'!$AU$66/'MMA Rev-Exp Region 1'!$AU$9, 0)","v":{"v":0,"d":"$0.00"}}]
["MMA",null,null,{"$f":"Jurat!I$1","v":0},{"$f":"Jurat!D$33","v":"00:00:00"},"Q4","2017-12-31","Region 1","Operating Expense","Medical Benefits Expense","Other MMA Services","9.4","Other State Plan Services FFS",{"$f":"IFERROR('MMA Rev-Exp Region 1'!$AK$67/'MMA Rev-Exp Region 1'!$AK$9, 0)","v":{"v":0,"d":"$0.00"}},{"$f":"IFERROR('MMA Rev-Exp Region 1'!$AL$67/'MMA Rev-Exp Region 1'!$AL$9, 0)","v":{"v":0,"d":"$0.00"}},{"$f":"IFERROR('MMA Rev-Exp Region 1'!$AM$67/'MMA Rev-Exp Region 1'!$AM$9, 0)","v":{"v":0,"d":"$0.00"}},{"$f":"IFERROR('MMA Rev-Exp Region 1'!$AN$67/'MMA Rev-Exp Region 1'!$AN$9, 0)","v":{"v":0,"d":"$0.00"}},{"$f":"IFERROR('MMA Rev-Exp Region 1'!$AO$67/'MMA Rev-Exp Region 1'!$AO$9, 0)","v":{"v":0,"d":"$0.00"}},{"$f":"IFERROR('MMA Rev-Exp Region 1'!$AP$67/'MMA Rev-Exp Region 1'!$AP$9, 0)","v":{"v":0,"d":"$0.00"}},{"$f":"IFERROR('MMA Rev-Exp Region 1'!$AQ$67/'MMA Rev-Exp Region 1'!$AQ$9, 0)","v":{"v":0,"d":"$0.00"}},{"$f":"IFERROR('MMA Rev-Exp Region 1'!$AR$67/'MMA Rev-Exp Region 1'!$AR$9, 0)","v":{"v":0,"d":"$0.00"}},{"$f":"IFERROR('MMA Rev-Exp Region 1'!$AS$67/'MMA Rev-Exp Region 1'!$AS$9, 0)","v":{"v":0,"d":"$0.00"}},{"$f":"IFERROR('MMA Rev-Exp Region 1'!$AT$67/'MMA Rev-Exp Region 1'!$AT$9, 0)","v":{"v":0,"d":"$0.00"}},{"$f":"IFERROR('MMA Rev-Exp Region 1'!$AU$67/'MMA Rev-Exp Region 1'!$AU$9, 0)","v":{"v":0,"d":"$0.00"}}]
["MMA",null,null,{"$f":"Jurat!I$1","v":0},{"$f":"Jurat!D$33","v":"00:00:00"},"Q4","2017-12-31","Region 1","Operating Expense","Medical Benefits Expense","Other MMA Services","9.5","Other Services Subcapitation",{"$f":"IFERROR('MMA Rev-Exp Region 1'!$AK$68/'MMA Rev-Exp Region 1'!$AK$9, 0)","v":{"v":0,"d":"$0.00"}},{"$f":"IFERROR('MMA Rev-Exp Region 1'!$AL$68/'MMA Rev-Exp Region 1'!$AL$9, 0)","v":{"v":0,"d":"$0.00"}},{"$f":"IFERROR('MMA Rev-Exp Region 1'!$AM$68/'MMA Rev-Exp Region 1'!$AM$9, 0)","v":{"v":0,"d":"$0.00"}},{"$f":"IFERROR('MMA Rev-Exp Region 1'!$AN$68/'MMA Rev-Exp Region 1'!$AN$9, 0)","v":{"v":0,"d":"$0.00"}},{"$f":"IFERROR('MMA Rev-Exp Region 1'!$AO$68/'MMA Rev-Exp Region 1'!$AO$9, 0)","v":{"v":0,"d":"$0.00"}},{"$f":"IFERROR('MMA Rev-Exp Region 1'!$AP$68/'MMA Rev-Exp Region 1'!$AP$9, 0)","v":{"v":0,"d":"$0.00"}},{"$f":"IFERROR('MMA Rev-Exp Region 1'!$AQ$68/'MMA Rev-Exp Region 1'!$AQ$9, 0)","v":{"v":0,"d":"$0.00"}},{"$f":"IFERROR('MMA Rev-Exp Region 1'!$AR$68/'MMA Rev-Exp Region 1'!$AR$9, 0)","v":{"v":0,"d":"$0.00"}},{"$f":"IFERROR('MMA Rev-Exp Region 1'!$AS$68/'MMA Rev-Exp Region 1'!$AS$9, 0)","v":{"v":0,"d":"$0.00"}},{"$f":"IFERROR('MMA Rev-Exp Region 1'!$AT$68/'MMA Rev-Exp Region 1'!$AT$9, 0)","v":{"v":0,"d":"$0.00"}},{"$f":"IFERROR('MMA Rev-Exp Region 1'!$AU$68/'MMA Rev-Exp Region 1'!$AU$9, 0)","v":{"v":0,"d":"$0.00"}}]
["MMA",null,null,{"$f":"Jurat!I$1","v":0},{"$f":"Jurat!D$33","v":"00:00:00"},"Q4","2017-12-31","Region 1","Operating Expense","Medical Benefits Expense","Other MMA Services","9.6","Ending IBNP for Other Services",{"$f":"IFERROR('MMA Rev-Exp Region 1'!$AK$69/'MMA Rev-Exp Region 1'!$AK$9, 0)","v":{"v":0,"d":"$0.00"}},{"$f":"IFERROR('MMA Rev-Exp Region 1'!$AL$69/'MMA Rev-Exp Region 1'!$AL$9, 0)","v":{"v":0,"d":"$0.00"}},{"$f":"IFERROR('MMA Rev-Exp Region 1'!$AM$69/'MMA Rev-Exp Region 1'!$AM$9, 0)","v":{"v":0,"d":"$0.00"}},{"$f":"IFERROR('MMA Rev-Exp Region 1'!$AN$69/'MMA Rev-Exp Region 1'!$AN$9, 0)","v":{"v":0,"d":"$0.00"}},{"$f":"IFERROR('MMA Rev-Exp Region 1'!$AO$69/'MMA Rev-Exp Region 1'!$AO$9, 0)","v":{"v":0,"d":"$0.00"}},{"$f":"IFERROR('MMA Rev-Exp Region 1'!$AP$69/'MMA Rev-Exp Region 1'!$AP$9, 0)","v":{"v":0,"d":"$0.00"}},{"$f":"IFERROR('MMA Rev-Exp Region 1'!$AQ$69/'MMA Rev-Exp Region 1'!$AQ$9, 0)","v":{"v":0,"d":"$0.00"}},{"$f":"IFERROR('MMA Rev-Exp Region 1'!$AR$69/'MMA Rev-Exp Region 1'!$AR$9, 0)","v":{"v":0,"d":"$0.00"}},{"$f":"IFERROR('MMA Rev-Exp Region 1'!$AS$69/'MMA Rev-Exp Region 1'!$AS$9, 0)","v":{"v":0,"d":"$0.00"}},{"$f":"IFERROR('MMA Rev-Exp Region 1'!$AT$69/'MMA Rev-Exp Region 1'!$AT$9, 0)","v":{"v":0,"d":"$0.00"}},{"$f":"IFERROR('MMA Rev-Exp Region 1'!$AU$69/'MMA Rev-Exp Region 1'!$AU$9, 0)","v":{"v":0,"d":"$0.00"}}]
["MMA",null,null,{"$f":"Jurat!I$1","v":0},{"$f":"Jurat!D$33","v":"00:00:00"},"Q4","2017-12-31","Region 1","Operating Expense","Medical Benefits Expense","Other MMA Services","9.7","Other Services Settlements",{"$f":"IFERROR('MMA Rev-Exp Region 1'!$AK$70/'MMA Rev-Exp Region 1'!$AK$9, 0)","v":{"v":0,"d":"$0.00"}},{"$f":"IFERROR('MMA Rev-Exp Region 1'!$AL$70/'MMA Rev-Exp Region 1'!$AL$9, 0)","v":{"v":0,"d":"$0.00"}},{"$f":"IFERROR('MMA Rev-Exp Region 1'!$AM$70/'MMA Rev-Exp Region 1'!$AM$9, 0)","v":{"v":0,"d":"$0.00"}},{"$f":"IFERROR('MMA Rev-Exp Region 1'!$AN$70/'MMA Rev-Exp Region 1'!$AN$9, 0)","v":{"v":0,"d":"$0.00"}},{"$f":"IFERROR('MMA Rev-Exp Region 1'!$AO$70/'MMA Rev-Exp Region 1'!$AO$9, 0)","v":{"v":0,"d":"$0.00"}},{"$f":"IFERROR('MMA Rev-Exp Region 1'!$AP$70/'MMA Rev-Exp Region 1'!$AP$9, 0)","v":{"v":0,"d":"$0.00"}},{"$f":"IFERROR('MMA Rev-Exp Region 1'!$AQ$70/'MMA Rev-Exp Region 1'!$AQ$9, 0)","v":{"v":0,"d":"$0.00"}},{"$f":"IFERROR('MMA Rev-Exp Region 1'!$AR$70/'MMA Rev-Exp Region 1'!$AR$9, 0)","v":{"v":0,"d":"$0.00"}},{"$f":"IFERROR('MMA Rev-Exp Region 1'!$AS$70/'MMA Rev-Exp Region 1'!$AS$9, 0)","v":{"v":0,"d":"$0.00"}},{"$f":"IFERROR('MMA Rev-Exp Region 1'!$AT$70/'MMA Rev-Exp Region 1'!$AT$9, 0)","v":{"v":0,"d":"$0.00"}},{"$f":"IFERROR('MMA Rev-Exp Region 1'!$AU$70/'MMA Rev-Exp Region 1'!$AU$9, 0)","v":{"v":0,"d":"$0.00"}}]
["MMA",null,null,{"$f":"Jurat!I$1","v":0},{"$f":"Jurat!D$33","v":"00:00:00"},"Q4","2017-12-31","Region 1","Operating Expense","Medical Benefits Expense","Expanded Benefits","10.1","Expanded Benefits FFS",{"$f":"IFERROR('MMA Rev-Exp Region 1'!$AK$72/'MMA Rev-Exp Region 1'!$AK$9, 0)","v":{"v":0,"d":"$0.00"}},{"$f":"IFERROR('MMA Rev-Exp Region 1'!$AL$72/'MMA Rev-Exp Region 1'!$AL$9, 0)","v":{"v":0,"d":"$0.00"}},{"$f":"IFERROR('MMA Rev-Exp Region 1'!$AM$72/'MMA Rev-Exp Region 1'!$AM$9, 0)","v":{"v":0,"d":"$0.00"}},{"$f":"IFERROR('MMA Rev-Exp Region 1'!$AN$72/'MMA Rev-Exp Region 1'!$AN$9, 0)","v":{"v":0,"d":"$0.00"}},{"$f":"IFERROR('MMA Rev-Exp Region 1'!$AO$72/'MMA Rev-Exp Region 1'!$AO$9, 0)","v":{"v":0,"d":"$0.00"}},{"$f":"IFERROR('MMA Rev-Exp Region 1'!$AP$72/'MMA Rev-Exp Region 1'!$AP$9, 0)","v":{"v":0,"d":"$0.00"}},{"$f":"IFERROR('MMA Rev-Exp Region 1'!$AQ$72/'MMA Rev-Exp Region 1'!$AQ$9, 0)","v":{"v":0,"d":"$0.00"}},{"$f":"IFERROR('MMA Rev-Exp Region 1'!$AR$72/'MMA Rev-Exp Region 1'!$AR$9, 0)","v":{"v":0,"d":"$0.00"}},{"$f":"IFERROR('MMA Rev-Exp Region 1'!$AS$72/'MMA Rev-Exp Region 1'!$AS$9, 0)","v":{"v":0,"d":"$0.00"}},{"$f":"IFERROR('MMA Rev-Exp Region 1'!$AT$72/'MMA Rev-Exp Region 1'!$AT$9, 0)","v":{"v":0,"d":"$0.00"}},{"$f":"IFERROR('MMA Rev-Exp Region 1'!$AU$72/'MMA Rev-Exp Region 1'!$AU$9, 0)","v":{"v":0,"d":"$0.00"}}]
["MMA",null,null,{"$f":"Jurat!I$1","v":0},{"$f":"Jurat!D$33","v":"00:00:00"},"Q4","2017-12-31","Region 1","Operating Expense","Medical Benefits Expense","Expanded Benefits","10.2","Expanded benefits Subcapitation",{"$f":"IFERROR('MMA Rev-Exp Region 1'!$AK$73/'MMA Rev-Exp Region 1'!$AK$9, 0)","v":{"v":0,"d":"$0.00"}},{"$f":"IFERROR('MMA Rev-Exp Region 1'!$AL$73/'MMA Rev-Exp Region 1'!$AL$9, 0)","v":{"v":0,"d":"$0.00"}},{"$f":"IFERROR('MMA Rev-Exp Region 1'!$AM$73/'MMA Rev-Exp Region 1'!$AM$9, 0)","v":{"v":0,"d":"$0.00"}},{"$f":"IFERROR('MMA Rev-Exp Region 1'!$AN$73/'MMA Rev-Exp Region 1'!$AN$9, 0)","v":{"v":0,"d":"$0.00"}},{"$f":"IFERROR('MMA Rev-Exp Region 1'!$AO$73/'MMA Rev-Exp Region 1'!$AO$9, 0)","v":{"v":0,"d":"$0.00"}},{"$f":"IFERROR('MMA Rev-Exp Region 1'!$AP$73/'MMA Rev-Exp Region 1'!$AP$9, 0)","v":{"v":0,"d":"$0.00"}},{"$f":"IFERROR('MMA Rev-Exp Region 1'!$AQ$73/'MMA Rev-Exp Region 1'!$AQ$9, 0)","v":{"v":0,"d":"$0.00"}},{"$f":"IFERROR('MMA Rev-Exp Region 1'!$AR$73/'MMA Rev-Exp Region 1'!$AR$9, 0)","v":{"v":0,"d":"$0.00"}},{"$f":"IFERROR('MMA Rev-Exp Region 1'!$AS$73/'MMA Rev-Exp Region 1'!$AS$9, 0)","v":{"v":0,"d":"$0.00"}},{"$f":"IFERROR('MMA Rev-Exp Region 1'!$AT$73/'MMA Rev-Exp Region 1'!$AT$9, 0)","v":{"v":0,"d":"$0.00"}},{"$f":"IFERROR('MMA Rev-Exp Region 1'!$AU$73/'MMA Rev-Exp Region 1'!$AU$9, 0)","v":{"v":0,"d":"$0.00"}}]
["MMA",null,null,{"$f":"Jurat!I$1","v":0},{"$f":"Jurat!D$33","v":"00:00:00"},"Q4","2017-12-31","Region 1","Operating Expense","Medical Benefits Expense","Expanded Benefits","10.3","Ending IBNP for Expanded Benefits",{"$f":"IFERROR('MMA Rev-Exp Region 1'!$AK$74/'MMA Rev-Exp Region 1'!$AK$9, 0)","v":{"v":0,"d":"$0.00"}},{"$f":"IFERROR('MMA Rev-Exp Region 1'!$AL$74/'MMA Rev-Exp Region 1'!$AL$9, 0)","v":{"v":0,"d":"$0.00"}},{"$f":"IFERROR('MMA Rev-Exp Region 1'!$AM$74/'MMA Rev-Exp Region 1'!$AM$9, 0)","v":{"v":0,"d":"$0.00"}},{"$f":"IFERROR('MMA Rev-Exp Region 1'!$AN$74/'MMA Rev-Exp Region 1'!$AN$9, 0)","v":{"v":0,"d":"$0.00"}},{"$f":"IFERROR('MMA Rev-Exp Region 1'!$AO$74/'MMA Rev-Exp Region 1'!$AO$9, 0)","v":{"v":0,"d":"$0.00"}},{"$f":"IFERROR('MMA Rev-Exp Region 1'!$AP$74/'MMA Rev-Exp Region 1'!$AP$9, 0)","v":{"v":0,"d":"$0.00"}},{"$f":"IFERROR('MMA Rev-Exp Region 1'!$AQ$74/'MMA Rev-Exp Region 1'!$AQ$9, 0)","v":{"v":0,"d":"$0.00"}},{"$f":"IFERROR('MMA Rev-Exp Region 1'!$AR$74/'MMA Rev-Exp Region 1'!$AR$9, 0)","v":{"v":0,"d":"$0.00"}},{"$f":"IFERROR('MMA Rev-Exp Region 1'!$AS$74/'MMA Rev-Exp Region 1'!$AS$9, 0)","v":{"v":0,"d":"$0.00"}},{"$f":"IFERROR('MMA Rev-Exp Region 1'!$AT$74/'MMA Rev-Exp Region 1'!$AT$9, 0)","v":{"v":0,"d":"$0.00"}},{"$f":"IFERROR('MMA Rev-Exp Region 1'!$AU$74/'MMA Rev-Exp Region 1'!$AU$9, 0)","v":{"v":0,"d":"$0.00"}}]
["MMA",null,null,{"$f":"Jurat!I$1","v":0},{"$f":"Jurat!D$33","v":"00:00:00"},"Q4","2017-12-31","Region 1","Operating Expense","Medical Benefits Expense","Expanded Benefits","10.4","Expanded Benefits Settlements",{"$f":"IFERROR('MMA Rev-Exp Region 1'!$AK$75/'MMA Rev-Exp Region 1'!$AK$9, 0)","v":{"v":0,"d":"$0.00"}},{"$f":"IFERROR('MMA Rev-Exp Region 1'!$AL$75/'MMA Rev-Exp Region 1'!$AL$9, 0)","v":{"v":0,"d":"$0.00"}},{"$f":"IFERROR('MMA Rev-Exp Region 1'!$AM$75/'MMA Rev-Exp Region 1'!$AM$9, 0)","v":{"v":0,"d":"$0.00"}},{"$f":"IFERROR('MMA Rev-Exp Region 1'!$AN$75/'MMA Rev-Exp Region 1'!$AN$9, 0)","v":{"v":0,"d":"$0.00"}},{"$f":"IFERROR('MMA Rev-Exp Region 1'!$AO$75/'MMA Rev-Exp Region 1'!$AO$9, 0)","v":{"v":0,"d":"$0.00"}},{"$f":"IFERROR('MMA Rev-Exp Region 1'!$AP$75/'MMA Rev-Exp Region 1'!$AP$9, 0)","v":{"v":0,"d":"$0.00"}},{"$f":"IFERROR('MMA Rev-Exp Region 1'!$AQ$75/'MMA Rev-Exp Region 1'!$AQ$9, 0)","v":{"v":0,"d":"$0.00"}},{"$f":"IFERROR('MMA Rev-Exp Region 1'!$AR$75/'MMA Rev-Exp Region 1'!$AR$9, 0)","v":{"v":0,"d":"$0.00"}},{"$f":"IFERROR('MMA Rev-Exp Region 1'!$AS$75/'MMA Rev-Exp Region 1'!$AS$9, 0)","v":{"v":0,"d":"$0.00"}},{"$f":"IFERROR('MMA Rev-Exp Region 1'!$AT$75/'MMA Rev-Exp Region 1'!$AT$9, 0)","v":{"v":0,"d":"$0.00"}},{"$f":"IFERROR('MMA Rev-Exp Region 1'!$AU$75/'MMA Rev-Exp Region 1'!$AU$9, 0)","v":{"v":0,"d":"$0.00"}}]
["MMA",null,null,{"$f":"Jurat!I$1","v":0},{"$f":"Jurat!D$33","v":"00:00:00"},"Q4","2017-12-31","Region 1","Operating Expense","Medical Benefits Expense","Other Medical","11.5","TPL & Fraud/Abuse Recoveries",{"$f":"IFERROR('MMA Rev-Exp Region 1'!$AK$81/'MMA Rev-Exp Region 1'!$AK$9, 0)","v":{"v":0,"d":"$0.00"}},{"$f":"IFERROR('MMA Rev-Exp Region 1'!$AL$81/'MMA Rev-Exp Region 1'!$AL$9, 0)","v":{"v":0,"d":"$0.00"}},{"$f":"IFERROR('MMA Rev-Exp Region 1'!$AM$81/'MMA Rev-Exp Region 1'!$AM$9, 0)","v":{"v":0,"d":"$0.00"}},{"$f":"IFERROR('MMA Rev-Exp Region 1'!$AN$81/'MMA Rev-Exp Region 1'!$AN$9, 0)","v":{"v":0,"d":"$0.00"}},{"$f":"IFERROR('MMA Rev-Exp Region 1'!$AO$81/'MMA Rev-Exp Region 1'!$AO$9, 0)","v":{"v":0,"d":"$0.00"}},{"$f":"IFERROR('MMA Rev-Exp Region 1'!$AP$81/'MMA Rev-Exp Region 1'!$AP$9, 0)","v":{"v":0,"d":"$0.00"}},{"$f":"IFERROR('MMA Rev-Exp Region 1'!$AQ$81/'MMA Rev-Exp Region 1'!$AQ$9, 0)","v":{"v":0,"d":"$0.00"}},{"$f":"IFERROR('MMA Rev-Exp Region 1'!$AR$81/'MMA Rev-Exp Region 1'!$AR$9, 0)","v":{"v":0,"d":"$0.00"}},{"$f":"IFERROR('MMA Rev-Exp Region 1'!$AS$81/'MMA Rev-Exp Region 1'!$AS$9, 0)","v":{"v":0,"d":"$0.00"}},{"$f":"IFERROR('MMA Rev-Exp Region 1'!$AT$81/'MMA Rev-Exp Region 1'!$AT$9, 0)","v":{"v":0,"d":"$0.00"}},{"$f":"IFERROR('MMA Rev-Exp Region 1'!$AU$81/'MMA Rev-Exp Region 1'!$AU$9, 0)","v":{"v":0,"d":"$0.00"}}]
["MMA",null,null,{"$f":"Jurat!I$1","v":0},{"$f":"Jurat!D$33","v":"00:00:00"},"Q4","2017-12-31","Region 1","Operating Expense","Medical Benefits Expense","Other Medical","11.6.1","Premium Deficiency Reserve",{"$f":"IFERROR('MMA Rev-Exp Region 1'!$AK$82/'MMA Rev-Exp Region 1'!$AK$9, 0)","v":{"v":0,"d":"$0.00"}},{"$f":"IFERROR('MMA Rev-Exp Region 1'!$AL$82/'MMA Rev-Exp Region 1'!$AL$9, 0)","v":{"v":0,"d":"$0.00"}},{"$f":"IFERROR('MMA Rev-Exp Region 1'!$AM$82/'MMA Rev-Exp Region 1'!$AM$9, 0)","v":{"v":0,"d":"$0.00"}},{"$f":"IFERROR('MMA Rev-Exp Region 1'!$AN$82/'MMA Rev-Exp Region 1'!$AN$9, 0)","v":{"v":0,"d":"$0.00"}},{"$f":"IFERROR('MMA Rev-Exp Region 1'!$AO$82/'MMA Rev-Exp Region 1'!$AO$9, 0)","v":{"v":0,"d":"$0.00"}},{"$f":"IFERROR('MMA Rev-Exp Region 1'!$AP$82/'MMA Rev-Exp Region 1'!$AP$9, 0)","v":{"v":0,"d":"$0.00"}},{"$f":"IFERROR('MMA Rev-Exp Region 1'!$AQ$82/'MMA Rev-Exp Region 1'!$AQ$9, 0)","v":{"v":0,"d":"$0.00"}},{"$f":"IFERROR('MMA Rev-Exp Region 1'!$AR$82/'MMA Rev-Exp Region 1'!$AR$9, 0)","v":{"v":0,"d":"$0.00"}},{"$f":"IFERROR('MMA Rev-Exp Region 1'!$AS$82/'MMA Rev-Exp Region 1'!$AS$9, 0)","v":{"v":0,"d":"$0.00"}},{"$f":"IFERROR('MMA Rev-Exp Region 1'!$AT$82/'MMA Rev-Exp Region 1'!$AT$9, 0)","v":{"v":0,"d":"$0.00"}},{"$f":"IFERROR('MMA Rev-Exp Region 1'!$AU$82/'MMA Rev-Exp Region 1'!$AU$9, 0)","v":{"v":0,"d":"$0.00"}}]
["MMA",null,null,{"$f":"Jurat!I$1","v":0},{"$f":"Jurat!D$33","v":"00:00:00"},"Q4","2017-12-31","Region 1","Operating Expense","Medical Benefits Expense","Other Medical","11.8","Reinsurance Premiums",{"$f":"IFERROR('MMA Rev-Exp Region 1'!$AK$84/'MMA Rev-Exp Region 1'!$AK$9, 0)","v":{"v":0,"d":"$0.00"}},{"$f":"IFERROR('MMA Rev-Exp Region 1'!$AL$84/'MMA Rev-Exp Region 1'!$AL$9, 0)","v":{"v":0,"d":"$0.00"}},{"$f":"IFERROR('MMA Rev-Exp Region 1'!$AM$84/'MMA Rev-Exp Region 1'!$AM$9, 0)","v":{"v":0,"d":"$0.00"}},{"$f":"IFERROR('MMA Rev-Exp Region 1'!$AN$84/'MMA Rev-Exp Region 1'!$AN$9, 0)","v":{"v":0,"d":"$0.00"}},{"$f":"IFERROR('MMA Rev-Exp Region 1'!$AO$84/'MMA Rev-Exp Region 1'!$AO$9, 0)","v":{"v":0,"d":"$0.00"}},{"$f":"IFERROR('MMA Rev-Exp Region 1'!$AP$84/'MMA Rev-Exp Region 1'!$AP$9, 0)","v":{"v":0,"d":"$0.00"}},{"$f":"IFERROR('MMA Rev-Exp Region 1'!$AQ$84/'MMA Rev-Exp Region 1'!$AQ$9, 0)","v":{"v":0,"d":"$0.00"}},{"$f":"IFERROR('MMA Rev-Exp Region 1'!$AR$84/'MMA Rev-Exp Region 1'!$AR$9, 0)","v":{"v":0,"d":"$0.00"}},{"$f":"IFERROR('MMA Rev-Exp Region 1'!$AS$84/'MMA Rev-Exp Region 1'!$AS$9, 0)","v":{"v":0,"d":"$0.00"}},{"$f":"IFERROR('MMA Rev-Exp Region 1'!$AT$84/'MMA Rev-Exp Region 1'!$AT$9, 0)","v":{"v":0,"d":"$0.00"}},{"$f":"IFERROR('MMA Rev-Exp Region 1'!$AU$84/'MMA Rev-Exp Region 1'!$AU$9, 0)","v":{"v":0,"d":"$0.00"}}]
["MMA",null,null,{"$f":"Jurat!I$1","v":0},{"$f":"Jurat!D$33","v":"00:00:00"},"Q4","2017-12-31","Region 1","Operating Expense","Medical Benefits Expense","Other Medical","11.9","Reinsurance Recoveries",{"$f":"IFERROR('MMA Rev-Exp Region 1'!$AK$85/'MMA Rev-Exp Region 1'!$AK$9, 0)","v":{"v":0,"d":"$0.00"}},{"$f":"IFERROR('MMA Rev-Exp Region 1'!$AL$85/'MMA Rev-Exp Region 1'!$AL$9, 0)","v":{"v":0,"d":"$0.00"}},{"$f":"IFERROR('MMA Rev-Exp Region 1'!$AM$85/'MMA Rev-Exp Region 1'!$AM$9, 0)","v":{"v":0,"d":"$0.00"}},{"$f":"IFERROR('MMA Rev-Exp Region 1'!$AN$85/'MMA Rev-Exp Region 1'!$AN$9, 0)","v":{"v":0,"d":"$0.00"}},{"$f":"IFERROR('MMA Rev-Exp Region 1'!$AO$85/'MMA Rev-Exp Region 1'!$AO$9, 0)","v":{"v":0,"d":"$0.00"}},{"$f":"IFERROR('MMA Rev-Exp Region 1'!$AP$85/'MMA Rev-Exp Region 1'!$AP$9, 0)","v":{"v":0,"d":"$0.00"}},{"$f":"IFERROR('MMA Rev-Exp Region 1'!$AQ$85/'MMA Rev-Exp Region 1'!$AQ$9, 0)","v":{"v":0,"d":"$0.00"}},{"$f":"IFERROR('MMA Rev-Exp Region 1'!$AR$85/'MMA Rev-Exp Region 1'!$AR$9, 0)","v":{"v":0,"d":"$0.00"}},{"$f":"IFERROR('MMA Rev-Exp Region 1'!$AS$85/'MMA Rev-Exp Region 1'!$AS$9, 0)","v":{"v":0,"d":"$0.00"}},{"$f":"IFERROR('MMA Rev-Exp Region 1'!$AT$85/'MMA Rev-Exp Region 1'!$AT$9, 0)","v":{"v":0,"d":"$0.00"}},{"$f":"IFERROR('MMA Rev-Exp Region 1'!$AU$85/'MMA Rev-Exp Region 1'!$AU$9, 0)","v":{"v":0,"d":"$0.00"}}]
["MMA",null,null,{"$f":"Jurat!I$1","v":0},{"$f":"Jurat!D$33","v":"00:00:00"},"Q4","2017-12-31","Region 1","Operating Expense","Administrative Expense","Administrative","12.1","Salaries & Benefits",{"$f":"IFERROR('MMA Rev-Exp Region 1'!$AK$90/'MMA Rev-Exp Region 1'!$AK$9, 0)","v":{"v":0,"d":"$0.00"}},{"$f":"IFERROR('MMA Rev-Exp Region 1'!$AL$90/'MMA Rev-Exp Region 1'!$AK$9, 0)","v":{"v":0,"d":"$0.00"}},{"$f":"IFERROR('MMA Rev-Exp Region 1'!$AM$90/'MMA Rev-Exp Region 1'!$AK$9, 0)","v":{"v":0,"d":"$0.00"}}]
["MMA",null,null,{"$f":"Jurat!I$1","v":0},{"$f":"Jurat!D$33","v":"00:00:00"},"Q4","2017-12-31","Region 1","Operating Expense","Administrative Expense","Administrative","12.2","Administrative Services",{"$f":"IFERROR('MMA Rev-Exp Region 1'!$AK$91/'MMA Rev-Exp Region 1'!$AK$9, 0)","v":{"v":0,"d":"$0.00"}},{"$f":"IFERROR('MMA Rev-Exp Region 1'!$AL$91/'MMA Rev-Exp Region 1'!$AK$9, 0)","v":{"v":0,"d":"$0.00"}},{"$f":"IFERROR('MMA Rev-Exp Region 1'!$AM$91/'MMA Rev-Exp Region 1'!$AK$9, 0)","v":{"v":0,"d":"$0.00"}}]
["MMA",null,null,{"$f":"Jurat!I$1","v":0},{"$f":"Jurat!D$33","v":"00:00:00"},"Q4","2017-12-31","Region 1","Operating Expense","Administrative Expense","Administrative","12.3","Information Systems",{"$f":"IFERROR('MMA Rev-Exp Region 1'!$AK$92/'MMA Rev-Exp Region 1'!$AK$9, 0)","v":{"v":0,"d":"$0.00"}},{"$f":"IFERROR('MMA Rev-Exp Region 1'!$AL$92/'MMA Rev-Exp Region 1'!$AK$9, 0)","v":{"v":0,"d":"$0.00"}},{"$f":"IFERROR('MMA Rev-Exp Region 1'!$AM$92/'MMA Rev-Exp Region 1'!$AK$9, 0)","v":{"v":0,"d":"$0.00"}}]
["MMA",null,null,{"$f":"Jurat!I$1","v":0},{"$f":"Jurat!D$33","v":"00:00:00"},"Q4","2017-12-31","Region 1","Operating Expense","Administrative Expense","Administrative","12.4","Marketing Expenses",{"$f":"IFERROR('MMA Rev-Exp Region 1'!$AK$93/'MMA Rev-Exp Region 1'!$AK$9, 0)","v":{"v":0,"d":"$0.00"}},{"$f":"IFERROR('MMA Rev-Exp Region 1'!$AL$93/'MMA Rev-Exp Region 1'!$AK$9, 0)","v":{"v":0,"d":"$0.00"}},{"$f":"IFERROR('MMA Rev-Exp Region 1'!$AM$93/'MMA Rev-Exp Region 1'!$AK$9, 0)","v":{"v":0,"d":"$0.00"}}]
["MMA",null,null,{"$f":"Jurat!I$1","v":0},{"$f":"Jurat!D$33","v":"00:00:00"},"Q4","2017-12-31","Region 1","Operating Expense","Administrative Expense","Administrative","12.5","General  Administration",{"$f":"IFERROR('MMA Rev-Exp Region 1'!$AK$94/'MMA Rev-Exp Region 1'!$AK$9, 0)","v":{"v":0,"d":"$0.00"}},{"$f":"IFERROR('MMA Rev-Exp Region 1'!$AL$94/'MMA Rev-Exp Region 1'!$AK$9, 0)","v":{"v":0,"d":"$0.00"}},{"$f":"IFERROR('MMA Rev-Exp Region 1'!$AM$94/'MMA Rev-Exp Region 1'!$AK$9, 0)","v":{"v":0,"d":"$0.00"}}]
["MMA",null,null,{"$f":"Jurat!I$1","v":0},{"$f":"Jurat!D$33","v":"00:00:00"},"Q4","2017-12-31","Region 1","Operating Expense","Administrative Expense","Administrative","12.6","Compliance/Regulatory",{"$f":"IFERROR('MMA Rev-Exp Region 1'!$AK$95/'MMA Rev-Exp Region 1'!$AK$9, 0)","v":{"v":0,"d":"$0.00"}},{"$f":"IFERROR('MMA Rev-Exp Region 1'!$AL$95/'MMA Rev-Exp Region 1'!$AK$9, 0)","v":{"v":0,"d":"$0.00"}},{"$f":"IFERROR('MMA Rev-Exp Region 1'!$AM$95/'MMA Rev-Exp Region 1'!$AK$9, 0)","v":{"v":0,"d":"$0.00"}}]
["MMA",null,null,{"$f":"Jurat!I$1","v":0},{"$f":"Jurat!D$33","v":"00:00:00"},"Q4","2017-12-31","Region 1","Operating Expense","Taxes & Fees","Taxes & Fees","13.1","State Premium tax",{"$f":"IFERROR('MMA Rev-Exp Region 1'!$AK$97/'MMA Rev-Exp Region 1'!$AK$9, 0)","v":{"v":0,"d":"$0.00"}}]
["MMA",null,null,{"$f":"Jurat!I$1","v":0},{"$f":"Jurat!D$33","v":"00:00:00"},"Q4","2017-12-31","Region 1","Operating Expense","Taxes & Fees","Taxes & Fees","13.2","Department of Insurance Assessments",{"$f":"IFERROR('MMA Rev-Exp Region 1'!$AK$98/'MMA Rev-Exp Region 1'!$AK$9, 0)","v":{"v":0,"d":"$0.00"}}]
["MMA",null,null,{"$f":"Jurat!I$1","v":0},{"$f":"Jurat!D$33","v":"00:00:00"},"Q4","2017-12-31","Region 1","Operating Expense","Taxes & Fees","Taxes & Fees","13.3","Section 9010 Health Insurance Providers Fee",{"$f":"IFERROR('MMA Rev-Exp Region 1'!$AK$99/'MMA Rev-Exp Region 1'!$AK$9, 0)","v":{"v":0,"d":"$0.00"}}]
["MMA",null,null,{"$f":"Jurat!I$1","v":0},{"$f":"Jurat!D$33","v":"00:00:00"},"Q4","2017-12-31","Region 1","Non-Operating Expense","Income Tax Expense","Income Tax Expense","16.0","Income Tax Expense",{"$f":"IFERROR('MMA Rev-Exp Region 1'!$AK$106/'MMA Rev-Exp Region 1'!$AK$9, 0)","v":{"v":0,"d":"$0.00"}}]
["MMA",null,null,{"$f":"Jurat!I$1","v":0},{"$f":"Jurat!D$33","v":"00:00:00"},"Q1","2017-03-31","Region 2","Operating Revenue","Capitation","Capitation",1.1,"Capitation",{"$f":"IFERROR('MMA Rev-Exp Region 2'!$D$11/'MMA Rev-Exp Region 2'!$D$9, 0)","v":{"v":0,"d":"$0.00"}},{"$f":"IFERROR('MMA Rev-Exp Region 2'!$E$11/'MMA Rev-Exp Region 2'!$E$9, 0)","v":{"v":0,"d":"$0.00"}},{"$f":"IFERROR('MMA Rev-Exp Region 2'!$F$11/'MMA Rev-Exp Region 2'!$F$9, 0)","v":{"v":0,"d":"$0.00"}},{"$f":"IFERROR('MMA Rev-Exp Region 2'!$G$11/'MMA Rev-Exp Region 2'!$G$9, 0)","v":{"v":0,"d":"$0.00"}},{"$f":"IFERROR('MMA Rev-Exp Region 2'!$H$11/'MMA Rev-Exp Region 2'!$H$9, 0)","v":{"v":0,"d":"$0.00"}},{"$f":"IFERROR('MMA Rev-Exp Region 2'!$I$11/'MMA Rev-Exp Region 2'!$I$9, 0)","v":{"v":0,"d":"$0.00"}},{"$f":"IFERROR('MMA Rev-Exp Region 2'!$J$11/'MMA Rev-Exp Region 2'!$J$9, 0)","v":{"v":0,"d":"$0.00"}},{"$f":"IFERROR('MMA Rev-Exp Region 2'!$K$11/'MMA Rev-Exp Region 2'!$K$9, 0)","v":{"v":0,"d":"$0.00"}},{"$f":"IFERROR('MMA Rev-Exp Region 2'!$L$11/'MMA Rev-Exp Region 2'!$L$9, 0)","v":{"v":0,"d":"$0.00"}},{"$f":"IFERROR('MMA Rev-Exp Region 2'!$M$11/'MMA Rev-Exp Region 2'!$M$9, 0)","v":{"v":0,"d":"$0.00"}},{"$f":"IFERROR('MMA Rev-Exp Region 2'!$N$11/'MMA Rev-Exp Region 2'!$N$9, 0)","v":{"v":0,"d":"$0.00"}}]
["MMA",null,null,{"$f":"Jurat!I$1","v":0},{"$f":"Jurat!D$33","v":"00:00:00"},"Q1","2017-03-31","Region 2","Operating Revenue","Kick Payments","Kick Payments - Transplant",1.2,"Transplant Kick Payments",{"$f":"IFERROR('MMA Rev-Exp Region 2'!$D$12/'MMA Rev-Exp Region 2'!$D$9, 0)","v":{"v":0,"d":"$0.00"}},{"$f":"IFERROR('MMA Rev-Exp Region 2'!$E$12/'MMA Rev-Exp Region 2'!$E$9, 0)","v":{"v":0,"d":"$0.00"}},{"$f":"IFERROR('MMA Rev-Exp Region 2'!$F$12/'MMA Rev-Exp Region 2'!$F$9, 0)","v":{"v":0,"d":"$0.00"}},{"$f":"IFERROR('MMA Rev-Exp Region 2'!$G$12/'MMA Rev-Exp Region 2'!$G$9, 0)","v":{"v":0,"d":"$0.00"}},{"$f":"IFERROR('MMA Rev-Exp Region 2'!$H$12/'MMA Rev-Exp Region 2'!$H$9, 0)","v":{"v":0,"d":"$0.00"}},{"$f":"IFERROR('MMA Rev-Exp Region 2'!$I$12/'MMA Rev-Exp Region 2'!$I$9, 0)","v":{"v":0,"d":"$0.00"}},{"$f":"IFERROR('MMA Rev-Exp Region 2'!$J$12/'MMA Rev-Exp Region 2'!$J$9, 0)","v":{"v":0,"d":"$0.00"}},{"$f":"IFERROR('MMA Rev-Exp Region 2'!$K$12/'MMA Rev-Exp Region 2'!$K$9, 0)","v":{"v":0,"d":"$0.00"}},{"$f":"IFERROR('MMA Rev-Exp Region 2'!$L$12/'MMA Rev-Exp Region 2'!$L$9, 0)","v":{"v":0,"d":"$0.00"}},{"$f":"IFERROR('MMA Rev-Exp Region 2'!$M$12/'MMA Rev-Exp Region 2'!$M$9, 0)","v":{"v":0,"d":"$0.00"}},{"$f":"IFERROR('MMA Rev-Exp Region 2'!$N$12/'MMA Rev-Exp Region 2'!$N$9, 0)","v":{"v":0,"d":"$0.00"}}]
["MMA",null,null,{"$f":"Jurat!I$1","v":0},{"$f":"Jurat!D$33","v":"00:00:00"},"Q1","2017-03-31","Region 2","Operating Revenue","Kick Payments","Kick Payments - Hep C","1.3","Hepatitis C Kick Payments",{"$f":"IFERROR('MMA Rev-Exp Region 2'!$D$13/'MMA Rev-Exp Region 2'!$D$9, 0)","v":{"v":0,"d":"$0.00"}},{"$f":"IFERROR('MMA Rev-Exp Region 2'!$E$13/'MMA Rev-Exp Region 2'!$E$9, 0)","v":{"v":0,"d":"$0.00"}},{"$f":"IFERROR('MMA Rev-Exp Region 2'!$F$13/'MMA Rev-Exp Region 2'!$F$9, 0)","v":{"v":0,"d":"$0.00"}},{"$f":"IFERROR('MMA Rev-Exp Region 2'!$G$13/'MMA Rev-Exp Region 2'!$G$9, 0)","v":{"v":0,"d":"$0.00"}},{"$f":"IFERROR('MMA Rev-Exp Region 2'!$H$13/'MMA Rev-Exp Region 2'!$H$9, 0)","v":{"v":0,"d":"$0.00"}},{"$f":"IFERROR('MMA Rev-Exp Region 2'!$I$13/'MMA Rev-Exp Region 2'!$I$9, 0)","v":{"v":0,"d":"$0.00"}},{"$f":"IFERROR('MMA Rev-Exp Region 2'!$J$13/'MMA Rev-Exp Region 2'!$J$9, 0)","v":{"v":0,"d":"$0.00"}},{"$f":"IFERROR('MMA Rev-Exp Region 2'!$K$13/'MMA Rev-Exp Region 2'!$K$9, 0)","v":{"v":0,"d":"$0.00"}},{"$f":"IFERROR('MMA Rev-Exp Region 2'!$L$13/'MMA Rev-Exp Region 2'!$L$9, 0)","v":{"v":0,"d":"$0.00"}},{"$f":"IFERROR('MMA Rev-Exp Region 2'!$M$13/'MMA Rev-Exp Region 2'!$M$9, 0)","v":{"v":0,"d":"$0.00"}},{"$f":"IFERROR('MMA Rev-Exp Region 2'!$N$13/'MMA Rev-Exp Region 2'!$N$9, 0)","v":{"v":0,"d":"$0.00"}}]
["MMA",null,null,{"$f":"Jurat!I$1","v":0},{"$f":"Jurat!D$33","v":"00:00:00"},"Q1","2017-03-31","Region 2","Operating Revenue","Kick Payments","Kick Payments - Maternity","1.4.1","Maternity Kick Payments",{"$f":"IFERROR('MMA Rev-Exp Region 2'!$D$14/'MMA Rev-Exp Region 2'!$D$9, 0)","v":{"v":0,"d":"$0.00"}},{"$f":"IFERROR('MMA Rev-Exp Region 2'!$E$14/'MMA Rev-Exp Region 2'!$E$9, 0)","v":{"v":0,"d":"$0.00"}},{"$f":"IFERROR('MMA Rev-Exp Region 2'!$F$14/'MMA Rev-Exp Region 2'!$F$9, 0)","v":{"v":0,"d":"$0.00"}},{"$f":"IFERROR('MMA Rev-Exp Region 2'!$G$14/'MMA Rev-Exp Region 2'!$G$9, 0)","v":{"v":0,"d":"$0.00"}},{"$f":"IFERROR('MMA Rev-Exp Region 2'!$H$14/'MMA Rev-Exp Region 2'!$H$9, 0)","v":{"v":0,"d":"$0.00"}},{"$f":"IFERROR('MMA Rev-Exp Region 2'!$I$14/'MMA Rev-Exp Region 2'!$I$9, 0)","v":{"v":0,"d":"$0.00"}},{"$f":"IFERROR('MMA Rev-Exp Region 2'!$J$14/'MMA Rev-Exp Region 2'!$J$9, 0)","v":{"v":0,"d":"$0.00"}},{"$f":"IFERROR('MMA Rev-Exp Region 2'!$K$14/'MMA Rev-Exp Region 2'!$K$9, 0)","v":{"v":0,"d":"$0.00"}},{"$f":"IFERROR('MMA Rev-Exp Region 2'!$L$14/'MMA Rev-Exp Region 2'!$L$9, 0)","v":{"v":0,"d":"$0.00"}},{"$f":"IFERROR('MMA Rev-Exp Region 2'!$M$14/'MMA Rev-Exp Region 2'!$M$9, 0)","v":{"v":0,"d":"$0.00"}},{"$f":"IFERROR('MMA Rev-Exp Region 2'!$N$14/'MMA Rev-Exp Region 2'!$N$9, 0)","v":{"v":0,"d":"$0.00"}}]
["MMA",null,null,{"$f":"Jurat!I$1","v":0},{"$f":"Jurat!D$33","v":"00:00:00"},"Q1","2017-03-31","Region 2","Operating Revenue","Other Revenue","Other Revenue - 9010","1.5","ACA § 9010 related payments",{"$f":"IFERROR('MMA Rev-Exp Region 2'!$D$15/'MMA Rev-Exp Region 2'!$D$9, 0)","v":{"v":0,"d":"$0.00"}},{"$f":"IFERROR('MMA Rev-Exp Region 2'!$E$15/'MMA Rev-Exp Region 2'!$E$9, 0)","v":{"v":0,"d":"$0.00"}},{"$f":"IFERROR('MMA Rev-Exp Region 2'!$F$15/'MMA Rev-Exp Region 2'!$F$9, 0)","v":{"v":0,"d":"$0.00"}},{"$f":"IFERROR('MMA Rev-Exp Region 2'!$G$15/'MMA Rev-Exp Region 2'!$G$9, 0)","v":{"v":0,"d":"$0.00"}},{"$f":"IFERROR('MMA Rev-Exp Region 2'!$H$15/'MMA Rev-Exp Region 2'!$H$9, 0)","v":{"v":0,"d":"$0.00"}},{"$f":"IFERROR('MMA Rev-Exp Region 2'!$I$15/'MMA Rev-Exp Region 2'!$I$9, 0)","v":{"v":0,"d":"$0.00"}},{"$f":"IFERROR('MMA Rev-Exp Region 2'!$J$15/'MMA Rev-Exp Region 2'!$J$9, 0)","v":{"v":0,"d":"$0.00"}},{"$f":"IFERROR('MMA Rev-Exp Region 2'!$K$15/'MMA Rev-Exp Region 2'!$K$9, 0)","v":{"v":0,"d":"$0.00"}},{"$f":"IFERROR('MMA Rev-Exp Region 2'!$L$15/'MMA Rev-Exp Region 2'!$L$9, 0)","v":{"v":0,"d":"$0.00"}},{"$f":"IFERROR('MMA Rev-Exp Region 2'!$M$15/'MMA Rev-Exp Region 2'!$M$9, 0)","v":{"v":0,"d":"$0.00"}},{"$f":"IFERROR('MMA Rev-Exp Region 2'!$N$15/'MMA Rev-Exp Region 2'!$N$9, 0)","v":{"v":0,"d":"$0.00"}}]
["MMA",null,null,{"$f":"Jurat!I$1","v":0},{"$f":"Jurat!D$33","v":"00:00:00"},"Q1","2017-03-31","Region 2","Operating Revenue","Other Revenue","Other Revenue","1.6","Other Revenue",{"$f":"IFERROR('MMA Rev-Exp Region 2'!$D$16/'MMA Rev-Exp Region 2'!$D$9, 0)","v":{"v":0,"d":"$0.00"}},{"$f":"IFERROR('MMA Rev-Exp Region 2'!$E$16/'MMA Rev-Exp Region 2'!$E$9, 0)","v":{"v":0,"d":"$0.00"}},{"$f":"IFERROR('MMA Rev-Exp Region 2'!$F$16/'MMA Rev-Exp Region 2'!$F$9, 0)","v":{"v":0,"d":"$0.00"}},{"$f":"IFERROR('MMA Rev-Exp Region 2'!$G$16/'MMA Rev-Exp Region 2'!$G$9, 0)","v":{"v":0,"d":"$0.00"}},{"$f":"IFERROR('MMA Rev-Exp Region 2'!$H$16/'MMA Rev-Exp Region 2'!$H$9, 0)","v":{"v":0,"d":"$0.00"}},{"$f":"IFERROR('MMA Rev-Exp Region 2'!$I$16/'MMA Rev-Exp Region 2'!$I$9, 0)","v":{"v":0,"d":"$0.00"}},{"$f":"IFERROR('MMA Rev-Exp Region 2'!$J$16/'MMA Rev-Exp Region 2'!$J$9, 0)","v":{"v":0,"d":"$0.00"}},{"$f":"IFERROR('MMA Rev-Exp Region 2'!$K$16/'MMA Rev-Exp Region 2'!$K$9, 0)","v":{"v":0,"d":"$0.00"}},{"$f":"IFERROR('MMA Rev-Exp Region 2'!$L$16/'MMA Rev-Exp Region 2'!$L$9, 0)","v":{"v":0,"d":"$0.00"}},{"$f":"IFERROR('MMA Rev-Exp Region 2'!$M$16/'MMA Rev-Exp Region 2'!$M$9, 0)","v":{"v":0,"d":"$0.00"}},{"$f":"IFERROR('MMA Rev-Exp Region 2'!$N$16/'MMA Rev-Exp Region 2'!$N$9, 0)","v":{"v":0,"d":"$0.00"}}]
["MMA",null,null,{"$f":"Jurat!I$1","v":0},{"$f":"Jurat!D$33","v":"00:00:00"},"Q1","2017-03-31","Region 2","Operating Expense","Medical Benefits Expense","Hospital Services",2.1,"Inpatient FFS",{"$f":"IFERROR('MMA Rev-Exp Region 2'!$D$20/'MMA Rev-Exp Region 2'!$D$9, 0)","v":{"v":0,"d":"$0.00"}},{"$f":"IFERROR('MMA Rev-Exp Region 2'!$E$20/'MMA Rev-Exp Region 2'!$E$9, 0)","v":{"v":0,"d":"$0.00"}},{"$f":"IFERROR('MMA Rev-Exp Region 2'!$F$20/'MMA Rev-Exp Region 2'!$F$9, 0)","v":{"v":0,"d":"$0.00"}},{"$f":"IFERROR('MMA Rev-Exp Region 2'!$G$20/'MMA Rev-Exp Region 2'!$G$9, 0)","v":{"v":0,"d":"$0.00"}},{"$f":"IFERROR('MMA Rev-Exp Region 2'!$H$20/'MMA Rev-Exp Region 2'!$H$9, 0)","v":{"v":0,"d":"$0.00"}},{"$f":"IFERROR('MMA Rev-Exp Region 2'!$I$20/'MMA Rev-Exp Region 2'!$I$9, 0)","v":{"v":0,"d":"$0.00"}},{"$f":"IFERROR('MMA Rev-Exp Region 2'!$J$20/'MMA Rev-Exp Region 2'!$J$9, 0)","v":{"v":0,"d":"$0.00"}},{"$f":"IFERROR('MMA Rev-Exp Region 2'!$K$20/'MMA Rev-Exp Region 2'!$K$9, 0)","v":{"v":0,"d":"$0.00"}},{"$f":"IFERROR('MMA Rev-Exp Region 2'!$L$20/'MMA Rev-Exp Region 2'!$L$9, 0)","v":{"v":0,"d":"$0.00"}},{"$f":"IFERROR('MMA Rev-Exp Region 2'!$M$20/'MMA Rev-Exp Region 2'!$M$9, 0)","v":{"v":0,"d":"$0.00"}},{"$f":"IFERROR('MMA Rev-Exp Region 2'!$N$20/'MMA Rev-Exp Region 2'!$N$9, 0)","v":{"v":0,"d":"$0.00"}}]
["MMA",null,null,{"$f":"Jurat!I$1","v":0},{"$f":"Jurat!D$33","v":"00:00:00"},"Q1","2017-03-31","Region 2","Operating Expense","Medical Benefits Expense","Hospital Services",2.2,"Ending IBNP for Inpatient Hospital Services",{"$f":"IFERROR('MMA Rev-Exp Region 2'!$D$21/'MMA Rev-Exp Region 2'!$D$9, 0)","v":{"v":0,"d":"$0.00"}},{"$f":"IFERROR('MMA Rev-Exp Region 2'!$E$21/'MMA Rev-Exp Region 2'!$E$9, 0)","v":{"v":0,"d":"$0.00"}},{"$f":"IFERROR('MMA Rev-Exp Region 2'!$F$21/'MMA Rev-Exp Region 2'!$F$9, 0)","v":{"v":0,"d":"$0.00"}},{"$f":"IFERROR('MMA Rev-Exp Region 2'!$G$21/'MMA Rev-Exp Region 2'!$G$9, 0)","v":{"v":0,"d":"$0.00"}},{"$f":"IFERROR('MMA Rev-Exp Region 2'!$H$21/'MMA Rev-Exp Region 2'!$H$9, 0)","v":{"v":0,"d":"$0.00"}},{"$f":"IFERROR('MMA Rev-Exp Region 2'!$I$21/'MMA Rev-Exp Region 2'!$I$9, 0)","v":{"v":0,"d":"$0.00"}},{"$f":"IFERROR('MMA Rev-Exp Region 2'!$J$21/'MMA Rev-Exp Region 2'!$J$9, 0)","v":{"v":0,"d":"$0.00"}},{"$f":"IFERROR('MMA Rev-Exp Region 2'!$K$21/'MMA Rev-Exp Region 2'!$K$9, 0)","v":{"v":0,"d":"$0.00"}},{"$f":"IFERROR('MMA Rev-Exp Region 2'!$L$21/'MMA Rev-Exp Region 2'!$L$9, 0)","v":{"v":0,"d":"$0.00"}},{"$f":"IFERROR('MMA Rev-Exp Region 2'!$M$21/'MMA Rev-Exp Region 2'!$M$9, 0)","v":{"v":0,"d":"$0.00"}},{"$f":"IFERROR('MMA Rev-Exp Region 2'!$N$21/'MMA Rev-Exp Region 2'!$N$9, 0)","v":{"v":0,"d":"$0.00"}}]
["MMA",null,null,{"$f":"Jurat!I$1","v":0},{"$f":"Jurat!D$33","v":"00:00:00"},"Q1","2017-03-31","Region 2","Operating Expense","Medical Benefits Expense","Hospital Services",2.3,"Outpatient FFS: ER",{"$f":"IFERROR('MMA Rev-Exp Region 2'!$D$22/'MMA Rev-Exp Region 2'!$D$9, 0)","v":{"v":0,"d":"$0.00"}},{"$f":"IFERROR('MMA Rev-Exp Region 2'!$E$22/'MMA Rev-Exp Region 2'!$E$9, 0)","v":{"v":0,"d":"$0.00"}},{"$f":"IFERROR('MMA Rev-Exp Region 2'!$F$22/'MMA Rev-Exp Region 2'!$F$9, 0)","v":{"v":0,"d":"$0.00"}},{"$f":"IFERROR('MMA Rev-Exp Region 2'!$G$22/'MMA Rev-Exp Region 2'!$G$9, 0)","v":{"v":0,"d":"$0.00"}},{"$f":"IFERROR('MMA Rev-Exp Region 2'!$H$22/'MMA Rev-Exp Region 2'!$H$9, 0)","v":{"v":0,"d":"$0.00"}},{"$f":"IFERROR('MMA Rev-Exp Region 2'!$I$22/'MMA Rev-Exp Region 2'!$I$9, 0)","v":{"v":0,"d":"$0.00"}},{"$f":"IFERROR('MMA Rev-Exp Region 2'!$J$22/'MMA Rev-Exp Region 2'!$J$9, 0)","v":{"v":0,"d":"$0.00"}},{"$f":"IFERROR('MMA Rev-Exp Region 2'!$K$22/'MMA Rev-Exp Region 2'!$K$9, 0)","v":{"v":0,"d":"$0.00"}},{"$f":"IFERROR('MMA Rev-Exp Region 2'!$L$22/'MMA Rev-Exp Region 2'!$L$9, 0)","v":{"v":0,"d":"$0.00"}},{"$f":"IFERROR('MMA Rev-Exp Region 2'!$M$22/'MMA Rev-Exp Region 2'!$M$9, 0)","v":{"v":0,"d":"$0.00"}},{"$f":"IFERROR('MMA Rev-Exp Region 2'!$N$22/'MMA Rev-Exp Region 2'!$N$9, 0)","v":{"v":0,"d":"$0.00"}}]
["MMA",null,null,{"$f":"Jurat!I$1","v":0},{"$f":"Jurat!D$33","v":"00:00:00"},"Q1","2017-03-31","Region 2","Operating Expense","Medical Benefits Expense","Hospital Services",2.4,"Outpatient FFS: Other than ER ",{"$f":"IFERROR('MMA Rev-Exp Region 2'!$D$23/'MMA Rev-Exp Region 2'!$D$9, 0)","v":{"v":0,"d":"$0.00"}},{"$f":"IFERROR('MMA Rev-Exp Region 2'!$E$23/'MMA Rev-Exp Region 2'!$E$9, 0)","v":{"v":0,"d":"$0.00"}},{"$f":"IFERROR('MMA Rev-Exp Region 2'!$F$23/'MMA Rev-Exp Region 2'!$F$9, 0)","v":{"v":0,"d":"$0.00"}},{"$f":"IFERROR('MMA Rev-Exp Region 2'!$G$23/'MMA Rev-Exp Region 2'!$G$9, 0)","v":{"v":0,"d":"$0.00"}},{"$f":"IFERROR('MMA Rev-Exp Region 2'!$H$23/'MMA Rev-Exp Region 2'!$H$9, 0)","v":{"v":0,"d":"$0.00"}},{"$f":"IFERROR('MMA Rev-Exp Region 2'!$I$23/'MMA Rev-Exp Region 2'!$I$9, 0)","v":{"v":0,"d":"$0.00"}},{"$f":"IFERROR('MMA Rev-Exp Region 2'!$J$23/'MMA Rev-Exp Region 2'!$J$9, 0)","v":{"v":0,"d":"$0.00"}},{"$f":"IFERROR('MMA Rev-Exp Region 2'!$K$23/'MMA Rev-Exp Region 2'!$K$9, 0)","v":{"v":0,"d":"$0.00"}},{"$f":"IFERROR('MMA Rev-Exp Region 2'!$L$23/'MMA Rev-Exp Region 2'!$L$9, 0)","v":{"v":0,"d":"$0.00"}},{"$f":"IFERROR('MMA Rev-Exp Region 2'!$M$23/'MMA Rev-Exp Region 2'!$M$9, 0)","v":{"v":0,"d":"$0.00"}},{"$f":"IFERROR('MMA Rev-Exp Region 2'!$N$23/'MMA Rev-Exp Region 2'!$N$9, 0)","v":{"v":0,"d":"$0.00"}}]
["MMA",null,null,{"$f":"Jurat!I$1","v":0},{"$f":"Jurat!D$33","v":"00:00:00"},"Q1","2017-03-31","Region 2","Operating Expense","Medical Benefits Expense","Hospital Services",2.5,"Ending IBNP for Outpatient Hospital Services",{"$f":"IFERROR('MMA Rev-Exp Region 2'!$D$24/'MMA Rev-Exp Region 2'!$D$9, 0)","v":{"v":0,"d":"$0.00"}},{"$f":"IFERROR('MMA Rev-Exp Region 2'!$E$24/'MMA Rev-Exp Region 2'!$E$9, 0)","v":{"v":0,"d":"$0.00"}},{"$f":"IFERROR('MMA Rev-Exp Region 2'!$F$24/'MMA Rev-Exp Region 2'!$F$9, 0)","v":{"v":0,"d":"$0.00"}},{"$f":"IFERROR('MMA Rev-Exp Region 2'!$G$24/'MMA Rev-Exp Region 2'!$G$9, 0)","v":{"v":0,"d":"$0.00"}},{"$f":"IFERROR('MMA Rev-Exp Region 2'!$H$24/'MMA Rev-Exp Region 2'!$H$9, 0)","v":{"v":0,"d":"$0.00"}},{"$f":"IFERROR('MMA Rev-Exp Region 2'!$I$24/'MMA Rev-Exp Region 2'!$I$9, 0)","v":{"v":0,"d":"$0.00"}},{"$f":"IFERROR('MMA Rev-Exp Region 2'!$J$24/'MMA Rev-Exp Region 2'!$J$9, 0)","v":{"v":0,"d":"$0.00"}},{"$f":"IFERROR('MMA Rev-Exp Region 2'!$K$24/'MMA Rev-Exp Region 2'!$K$9, 0)","v":{"v":0,"d":"$0.00"}},{"$f":"IFERROR('MMA Rev-Exp Region 2'!$L$24/'MMA Rev-Exp Region 2'!$L$9, 0)","v":{"v":0,"d":"$0.00"}},{"$f":"IFERROR('MMA Rev-Exp Region 2'!$M$24/'MMA Rev-Exp Region 2'!$M$9, 0)","v":{"v":0,"d":"$0.00"}},{"$f":"IFERROR('MMA Rev-Exp Region 2'!$N$24/'MMA Rev-Exp Region 2'!$N$9, 0)","v":{"v":0,"d":"$0.00"}}]
["MMA",null,null,{"$f":"Jurat!I$1","v":0},{"$f":"Jurat!D$33","v":"00:00:00"},"Q1","2017-03-31","Region 2","Operating Expense","Medical Benefits Expense","Hospital Services","2.6","Subcapitated Hospital Services",{"$f":"IFERROR('MMA Rev-Exp Region 2'!$D$25/'MMA Rev-Exp Region 2'!$D$9, 0)","v":{"v":0,"d":"$0.00"}},{"$f":"IFERROR('MMA Rev-Exp Region 2'!$E$25/'MMA Rev-Exp Region 2'!$E$9, 0)","v":{"v":0,"d":"$0.00"}},{"$f":"IFERROR('MMA Rev-Exp Region 2'!$F$25/'MMA Rev-Exp Region 2'!$F$9, 0)","v":{"v":0,"d":"$0.00"}},{"$f":"IFERROR('MMA Rev-Exp Region 2'!$G$25/'MMA Rev-Exp Region 2'!$G$9, 0)","v":{"v":0,"d":"$0.00"}},{"$f":"IFERROR('MMA Rev-Exp Region 2'!$H$25/'MMA Rev-Exp Region 2'!$H$9, 0)","v":{"v":0,"d":"$0.00"}},{"$f":"IFERROR('MMA Rev-Exp Region 2'!$I$25/'MMA Rev-Exp Region 2'!$I$9, 0)","v":{"v":0,"d":"$0.00"}},{"$f":"IFERROR('MMA Rev-Exp Region 2'!$J$25/'MMA Rev-Exp Region 2'!$J$9, 0)","v":{"v":0,"d":"$0.00"}},{"$f":"IFERROR('MMA Rev-Exp Region 2'!$K$25/'MMA Rev-Exp Region 2'!$K$9, 0)","v":{"v":0,"d":"$0.00"}},{"$f":"IFERROR('MMA Rev-Exp Region 2'!$L$25/'MMA Rev-Exp Region 2'!$L$9, 0)","v":{"v":0,"d":"$0.00"}},{"$f":"IFERROR('MMA Rev-Exp Region 2'!$M$25/'MMA Rev-Exp Region 2'!$M$9, 0)","v":{"v":0,"d":"$0.00"}},{"$f":"IFERROR('MMA Rev-Exp Region 2'!$N$25/'MMA Rev-Exp Region 2'!$N$9, 0)","v":{"v":0,"d":"$0.00"}}]
["MMA",null,null,{"$f":"Jurat!I$1","v":0},{"$f":"Jurat!D$33","v":"00:00:00"},"Q1","2017-03-31","Region 2","Operating Expense","Medical Benefits Expense","Hospital Services","2.7","Hospital Settlements",{"$f":"IFERROR('MMA Rev-Exp Region 2'!$D$26/'MMA Rev-Exp Region 2'!$D$9, 0)","v":{"v":0,"d":"$0.00"}},{"$f":"IFERROR('MMA Rev-Exp Region 2'!$E$26/'MMA Rev-Exp Region 2'!$E$9, 0)","v":{"v":0,"d":"$0.00"}},{"$f":"IFERROR('MMA Rev-Exp Region 2'!$F$26/'MMA Rev-Exp Region 2'!$F$9, 0)","v":{"v":0,"d":"$0.00"}},{"$f":"IFERROR('MMA Rev-Exp Region 2'!$G$26/'MMA Rev-Exp Region 2'!$G$9, 0)","v":{"v":0,"d":"$0.00"}},{"$f":"IFERROR('MMA Rev-Exp Region 2'!$H$26/'MMA Rev-Exp Region 2'!$H$9, 0)","v":{"v":0,"d":"$0.00"}},{"$f":"IFERROR('MMA Rev-Exp Region 2'!$I$26/'MMA Rev-Exp Region 2'!$I$9, 0)","v":{"v":0,"d":"$0.00"}},{"$f":"IFERROR('MMA Rev-Exp Region 2'!$J$26/'MMA Rev-Exp Region 2'!$J$9, 0)","v":{"v":0,"d":"$0.00"}},{"$f":"IFERROR('MMA Rev-Exp Region 2'!$K$26/'MMA Rev-Exp Region 2'!$K$9, 0)","v":{"v":0,"d":"$0.00"}},{"$f":"IFERROR('MMA Rev-Exp Region 2'!$L$26/'MMA Rev-Exp Region 2'!$L$9, 0)","v":{"v":0,"d":"$0.00"}},{"$f":"IFERROR('MMA Rev-Exp Region 2'!$M$26/'MMA Rev-Exp Region 2'!$M$9, 0)","v":{"v":0,"d":"$0.00"}},{"$f":"IFERROR('MMA Rev-Exp Region 2'!$N$26/'MMA Rev-Exp Region 2'!$N$9, 0)","v":{"v":0,"d":"$0.00"}}]
["MMA",{"$nulls":9},"Hospital Services","2.7.1","Transplant Services",{"$f":"IFERROR('MMA Rev-Exp Region 2'!$D$27/'MMA Rev-Exp Region 2'!$D$9, 0)","v":{"v":0,"d":"$0.00"}},{"$f":"IFERROR('MMA Rev-Exp Region 2'!$E$27/'MMA Rev-Exp Region 2'!$E$9, 0)","v":{"v":0,"d":"$0.00"}},{"$f":"IFERROR('MMA Rev-Exp Region 2'!$F$27/'MMA Rev-Exp Region 2'!$F$9, 0)","v":{"v":0,"d":"$0.00"}},{"$f":"IFERROR('MMA Rev-Exp Region 2'!$G$27/'MMA Rev-Exp Region 2'!$G$9, 0)","v":{"v":0,"d":"$0.00"}},{"$f":"IFERROR('MMA Rev-Exp Region 2'!$H$27/'MMA Rev-Exp Region 2'!$H$9, 0)","v":{"v":0,"d":"$0.00"}},{"$f":"IFERROR('MMA Rev-Exp Region 2'!$I$27/'MMA Rev-Exp Region 2'!$I$9, 0)","v":{"v":0,"d":"$0.00"}},{"$f":"IFERROR('MMA Rev-Exp Region 2'!$J$27/'MMA Rev-Exp Region 2'!$J$9, 0)","v":{"v":0,"d":"$0.00"}},{"$f":"IFERROR('MMA Rev-Exp Region 2'!$K$27/'MMA Rev-Exp Region 2'!$K$9, 0)","v":{"v":0,"d":"$0.00"}},{"$f":"IFERROR('MMA Rev-Exp Region 2'!$L$27/'MMA Rev-Exp Region 2'!$L$9, 0)","v":{"v":0,"d":"$0.00"}},{"$f":"IFERROR('MMA Rev-Exp Region 2'!$M$27/'MMA Rev-Exp Region 2'!$M$9, 0)","v":{"v":0,"d":"$0.00"}},{"$f":"IFERROR('MMA Rev-Exp Region 2'!$N$27/'MMA Rev-Exp Region 2'!$N$9, 0)","v":{"v":0,"d":"$0.00"}}]
["MMA",null,null,2016,"2016-12-31","Q1","2017-03-31","Region 2","Operating Expense","Medical Benefits Expense","Professional Services",3.1,"Primary Care FFS",{"$f":"IFERROR('MMA Rev-Exp Region 2'!$D$29/'MMA Rev-Exp Region 2'!$D$9, 0)","v":{"v":0,"d":"$0.00"}},{"$f":"IFERROR('MMA Rev-Exp Region 2'!$E$29/'MMA Rev-Exp Region 2'!$E$9, 0)","v":{"v":0,"d":"$0.00"}},{"$f":"IFERROR('MMA Rev-Exp Region 2'!$F$29/'MMA Rev-Exp Region 2'!$F$9, 0)","v":{"v":0,"d":"$0.00"}},{"$f":"IFERROR('MMA Rev-Exp Region 2'!$G$29/'MMA Rev-Exp Region 2'!$G$9, 0)","v":{"v":0,"d":"$0.00"}},{"$f":"IFERROR('MMA Rev-Exp Region 2'!$H$29/'MMA Rev-Exp Region 2'!$H$9, 0)","v":{"v":0,"d":"$0.00"}},{"$f":"IFERROR('MMA Rev-Exp Region 2'!$I$29/'MMA Rev-Exp Region 2'!$I$9, 0)","v":{"v":0,"d":"$0.00"}},{"$f":"IFERROR('MMA Rev-Exp Region 2'!$J$29/'MMA Rev-Exp Region 2'!$J$9, 0)","v":{"v":0,"d":"$0.00"}},{"$f":"IFERROR('MMA Rev-Exp Region 2'!$K$29/'MMA Rev-Exp Region 2'!$K$9, 0)","v":{"v":0,"d":"$0.00"}},{"$f":"IFERROR('MMA Rev-Exp Region 2'!$L$29/'MMA Rev-Exp Region 2'!$L$9, 0)","v":{"v":0,"d":"$0.00"}},{"$f":"IFERROR('MMA Rev-Exp Region 2'!$M$29/'MMA Rev-Exp Region 2'!$M$9, 0)","v":{"v":0,"d":"$0.00"}},{"$f":"IFERROR('MMA Rev-Exp Region 2'!$N$29/'MMA Rev-Exp Region 2'!$N$9, 0)","v":{"v":0,"d":"$0.00"}}]
["MMA",null,null,2016,"2016-12-31","Q1","2017-03-31","Region 2","Operating Expense","Medical Benefits Expense","Professional Services",3.2,"Specialty Care FFS",{"$f":"IFERROR('MMA Rev-Exp Region 2'!$D$30/'MMA Rev-Exp Region 2'!$D$9, 0)","v":{"v":0,"d":"$0.00"}},{"$f":"IFERROR('MMA Rev-Exp Region 2'!$E$30/'MMA Rev-Exp Region 2'!$E$9, 0)","v":{"v":0,"d":"$0.00"}},{"$f":"IFERROR('MMA Rev-Exp Region 2'!$F$30/'MMA Rev-Exp Region 2'!$F$9, 0)","v":{"v":0,"d":"$0.00"}},{"$f":"IFERROR('MMA Rev-Exp Region 2'!$G$30/'MMA Rev-Exp Region 2'!$G$9, 0)","v":{"v":0,"d":"$0.00"}},{"$f":"IFERROR('MMA Rev-Exp Region 2'!$H$30/'MMA Rev-Exp Region 2'!$H$9, 0)","v":{"v":0,"d":"$0.00"}},{"$f":"IFERROR('MMA Rev-Exp Region 2'!$I$30/'MMA Rev-Exp Region 2'!$I$9, 0)","v":{"v":0,"d":"$0.00"}},{"$f":"IFERROR('MMA Rev-Exp Region 2'!$J$30/'MMA Rev-Exp Region 2'!$J$9, 0)","v":{"v":0,"d":"$0.00"}},{"$f":"IFERROR('MMA Rev-Exp Region 2'!$K$30/'MMA Rev-Exp Region 2'!$K$9, 0)","v":{"v":0,"d":"$0.00"}},{"$f":"IFERROR('MMA Rev-Exp Region 2'!$L$30/'MMA Rev-Exp Region 2'!$L$9, 0)","v":{"v":0,"d":"$0.00"}},{"$f":"IFERROR('MMA Rev-Exp Region 2'!$M$30/'MMA Rev-Exp Region 2'!$M$9, 0)","v":{"v":0,"d":"$0.00"}},{"$f":"IFERROR('MMA Rev-Exp Region 2'!$N$30/'MMA Rev-Exp Region 2'!$N$9, 0)","v":{"v":0,"d":"$0.00"}}]
["MMA",null,null,2016,"2016-12-31","Q1","2017-03-31","Region 2","Operating Expense","Medical Benefits Expense","Professional Services",3.3,"Other Professional FFS",{"$f":"IFERROR('MMA Rev-Exp Region 2'!$D$31/'MMA Rev-Exp Region 2'!$D$9, 0)","v":{"v":0,"d":"$0.00"}},{"$f":"IFERROR('MMA Rev-Exp Region 2'!$E$31/'MMA Rev-Exp Region 2'!$E$9, 0)","v":{"v":0,"d":"$0.00"}},{"$f":"IFERROR('MMA Rev-Exp Region 2'!$F$31/'MMA Rev-Exp Region 2'!$F$9, 0)","v":{"v":0,"d":"$0.00"}},{"$f":"IFERROR('MMA Rev-Exp Region 2'!$G$31/'MMA Rev-Exp Region 2'!$G$9, 0)","v":{"v":0,"d":"$0.00"}},{"$f":"IFERROR('MMA Rev-Exp Region 2'!$H$31/'MMA Rev-Exp Region 2'!$H$9, 0)","v":{"v":0,"d":"$0.00"}},{"$f":"IFERROR('MMA Rev-Exp Region 2'!$I$31/'MMA Rev-Exp Region 2'!$I$9, 0)","v":{"v":0,"d":"$0.00"}},{"$f":"IFERROR('MMA Rev-Exp Region 2'!$J$31/'MMA Rev-Exp Region 2'!$J$9, 0)","v":{"v":0,"d":"$0.00"}},{"$f":"IFERROR('MMA Rev-Exp Region 2'!$K$31/'MMA Rev-Exp Region 2'!$K$9, 0)","v":{"v":0,"d":"$0.00"}},{"$f":"IFERROR('MMA Rev-Exp Region 2'!$L$31/'MMA Rev-Exp Region 2'!$L$9, 0)","v":{"v":0,"d":"$0.00"}},{"$f":"IFERROR('MMA Rev-Exp Region 2'!$M$31/'MMA Rev-Exp Region 2'!$M$9, 0)","v":{"v":0,"d":"$0.00"}},{"$f":"IFERROR('MMA Rev-Exp Region 2'!$N$31/'MMA Rev-Exp Region 2'!$N$9, 0)","v":{"v":0,"d":"$0.00"}}]
["MMA",null,null,2016,"2016-12-31","Q1","2017-03-31","Region 2","Operating Expense","Medical Benefits Expense","Professional Services","3.4","§ 1202 PCP Payments to providers",{"$f":"IFERROR('MMA Rev-Exp Region 2'!$D$32/'MMA Rev-Exp Region 2'!$D$9, 0)","v":{"v":0,"d":"$0.00"}},{"$f":"IFERROR('MMA Rev-Exp Region 2'!$E$32/'MMA Rev-Exp Region 2'!$E$9, 0)","v":{"v":0,"d":"$0.00"}},{"$f":"IFERROR('MMA Rev-Exp Region 2'!$F$32/'MMA Rev-Exp Region 2'!$F$9, 0)","v":{"v":0,"d":"$0.00"}},{"$f":"IFERROR('MMA Rev-Exp Region 2'!$G$32/'MMA Rev-Exp Region 2'!$G$9, 0)","v":{"v":0,"d":"$0.00"}},{"$f":"IFERROR('MMA Rev-Exp Region 2'!$H$32/'MMA Rev-Exp Region 2'!$H$9, 0)","v":{"v":0,"d":"$0.00"}},{"$f":"IFERROR('MMA Rev-Exp Region 2'!$I$32/'MMA Rev-Exp Region 2'!$I$9, 0)","v":{"v":0,"d":"$0.00"}},{"$f":"IFERROR('MMA Rev-Exp Region 2'!$J$32/'MMA Rev-Exp Region 2'!$J$9, 0)","v":{"v":0,"d":"$0.00"}},{"$f":"IFERROR('MMA Rev-Exp Region 2'!$K$32/'MMA Rev-Exp Region 2'!$K$9, 0)","v":{"v":0,"d":"$0.00"}},{"$f":"IFERROR('MMA Rev-Exp Region 2'!$L$32/'MMA Rev-Exp Region 2'!$L$9, 0)","v":{"v":0,"d":"$0.00"}},{"$f":"IFERROR('MMA Rev-Exp Region 2'!$M$32/'MMA Rev-Exp Region 2'!$M$9, 0)","v":{"v":0,"d":"$0.00"}},{"$f":"IFERROR('MMA Rev-Exp Region 2'!$N$32/'MMA Rev-Exp Region 2'!$N$9, 0)","v":{"v":0,"d":"$0.00"}}]
["MMA",null,null,2016,"2016-12-31","Q1","2017-03-31","Region 2","Operating Expense","Medical Benefits Expense","Professional Services","3.5","Subcapitated Professional Services",{"$f":"IFERROR('MMA Rev-Exp Region 2'!$D$33/'MMA Rev-Exp Region 2'!$D$9, 0)","v":{"v":0,"d":"$0.00"}},{"$f":"IFERROR('MMA Rev-Exp Region 2'!$E$33/'MMA Rev-Exp Region 2'!$E$9, 0)","v":{"v":0,"d":"$0.00"}},{"$f":"IFERROR('MMA Rev-Exp Region 2'!$F$33/'MMA Rev-Exp Region 2'!$F$9, 0)","v":{"v":0,"d":"$0.00"}},{"$f":"IFERROR('MMA Rev-Exp Region 2'!$G$33/'MMA Rev-Exp Region 2'!$G$9, 0)","v":{"v":0,"d":"$0.00"}},{"$f":"IFERROR('MMA Rev-Exp Region 2'!$H$33/'MMA Rev-Exp Region 2'!$H$9, 0)","v":{"v":0,"d":"$0.00"}},{"$f":"IFERROR('MMA Rev-Exp Region 2'!$I$33/'MMA Rev-Exp Region 2'!$I$9, 0)","v":{"v":0,"d":"$0.00"}},{"$f":"IFERROR('MMA Rev-Exp Region 2'!$J$33/'MMA Rev-Exp Region 2'!$J$9, 0)","v":{"v":0,"d":"$0.00"}},{"$f":"IFERROR('MMA Rev-Exp Region 2'!$K$33/'MMA Rev-Exp Region 2'!$K$9, 0)","v":{"v":0,"d":"$0.00"}},{"$f":"IFERROR('MMA Rev-Exp Region 2'!$L$33/'MMA Rev-Exp Region 2'!$L$9, 0)","v":{"v":0,"d":"$0.00"}},{"$f":"IFERROR('MMA Rev-Exp Region 2'!$M$33/'MMA Rev-Exp Region 2'!$M$9, 0)","v":{"v":0,"d":"$0.00"}},{"$f":"IFERROR('MMA Rev-Exp Region 2'!$N$33/'MMA Rev-Exp Region 2'!$N$9, 0)","v":{"v":0,"d":"$0.00"}}]
["MMA",null,null,2016,"2016-12-31","Q1","2017-03-31","Region 2","Operating Expense","Medical Benefits Expense","Professional Services","3.6","Ending IBNP for Professional Services",{"$f":"IFERROR('MMA Rev-Exp Region 2'!$D$34/'MMA Rev-Exp Region 2'!$D$9, 0)","v":{"v":0,"d":"$0.00"}},{"$f":"IFERROR('MMA Rev-Exp Region 2'!$E$34/'MMA Rev-Exp Region 2'!$E$9, 0)","v":{"v":0,"d":"$0.00"}},{"$f":"IFERROR('MMA Rev-Exp Region 2'!$F$34/'MMA Rev-Exp Region 2'!$F$9, 0)","v":{"v":0,"d":"$0.00"}},{"$f":"IFERROR('MMA Rev-Exp Region 2'!$G$34/'MMA Rev-Exp Region 2'!$G$9, 0)","v":{"v":0,"d":"$0.00"}},{"$f":"IFERROR('MMA Rev-Exp Region 2'!$H$34/'MMA Rev-Exp Region 2'!$H$9, 0)","v":{"v":0,"d":"$0.00"}},{"$f":"IFERROR('MMA Rev-Exp Region 2'!$I$34/'MMA Rev-Exp Region 2'!$I$9, 0)","v":{"v":0,"d":"$0.00"}},{"$f":"IFERROR('MMA Rev-Exp Region 2'!$J$34/'MMA Rev-Exp Region 2'!$J$9, 0)","v":{"v":0,"d":"$0.00"}},{"$f":"IFERROR('MMA Rev-Exp Region 2'!$K$34/'MMA Rev-Exp Region 2'!$K$9, 0)","v":{"v":0,"d":"$0.00"}},{"$f":"IFERROR('MMA Rev-Exp Region 2'!$L$34/'MMA Rev-Exp Region 2'!$L$9, 0)","v":{"v":0,"d":"$0.00"}},{"$f":"IFERROR('MMA Rev-Exp Region 2'!$M$34/'MMA Rev-Exp Region 2'!$M$9, 0)","v":{"v":0,"d":"$0.00"}},{"$f":"IFERROR('MMA Rev-Exp Region 2'!$N$34/'MMA Rev-Exp Region 2'!$N$9, 0)","v":{"v":0,"d":"$0.00"}}]
["MMA",null,null,2016,"2016-12-31","Q1","2017-03-31","Region 2","Operating Expense","Medical Benefits Expense","Professional Services","3.7","Professional Services Settlements",{"$f":"IFERROR('MMA Rev-Exp Region 2'!$D$35/'MMA Rev-Exp Region 2'!$D$9, 0)","v":{"v":0,"d":"$0.00"}},{"$f":"IFERROR('MMA Rev-Exp Region 2'!$E$35/'MMA Rev-Exp Region 2'!$E$9, 0)","v":{"v":0,"d":"$0.00"}},{"$f":"IFERROR('MMA Rev-Exp Region 2'!$F$35/'MMA Rev-Exp Region 2'!$F$9, 0)","v":{"v":0,"d":"$0.00"}},{"$f":"IFERROR('MMA Rev-Exp Region 2'!$G$35/'MMA Rev-Exp Region 2'!$G$9, 0)","v":{"v":0,"d":"$0.00"}},{"$f":"IFERROR('MMA Rev-Exp Region 2'!$H$35/'MMA Rev-Exp Region 2'!$H$9, 0)","v":{"v":0,"d":"$0.00"}},{"$f":"IFERROR('MMA Rev-Exp Region 2'!$I$35/'MMA Rev-Exp Region 2'!$I$9, 0)","v":{"v":0,"d":"$0.00"}},{"$f":"IFERROR('MMA Rev-Exp Region 2'!$J$35/'MMA Rev-Exp Region 2'!$J$9, 0)","v":{"v":0,"d":"$0.00"}},{"$f":"IFERROR('MMA Rev-Exp Region 2'!$K$35/'MMA Rev-Exp Region 2'!$K$9, 0)","v":{"v":0,"d":"$0.00"}},{"$f":"IFERROR('MMA Rev-Exp Region 2'!$L$35/'MMA Rev-Exp Region 2'!$L$9, 0)","v":{"v":0,"d":"$0.00"}},{"$f":"IFERROR('MMA Rev-Exp Region 2'!$M$35/'MMA Rev-Exp Region 2'!$M$9, 0)","v":{"v":0,"d":"$0.00"}},{"$f":"IFERROR('MMA Rev-Exp Region 2'!$N$35/'MMA Rev-Exp Region 2'!$N$9, 0)","v":{"v":0,"d":"$0.00"}}]
["MMA",null,null,2016,"2016-12-31","Q1","2017-03-31","Region 2","Operating Expense","Medical Benefits Expense","Maternity Services","4.1.1","Maternity Services",{"$f":"IFERROR('MMA Rev-Exp Region 2'!$D$37/'MMA Rev-Exp Region 2'!$D$9, 0)","v":{"v":0,"d":"$0.00"}},{"$f":"IFERROR('MMA Rev-Exp Region 2'!$E$37/'MMA Rev-Exp Region 2'!$E$9, 0)","v":{"v":0,"d":"$0.00"}},{"$f":"IFERROR('MMA Rev-Exp Region 2'!$F$37/'MMA Rev-Exp Region 2'!$F$9, 0)","v":{"v":0,"d":"$0.00"}},{"$f":"IFERROR('MMA Rev-Exp Region 2'!$G$37/'MMA Rev-Exp Region 2'!$G$9, 0)","v":{"v":0,"d":"$0.00"}},{"$f":"IFERROR('MMA Rev-Exp Region 2'!$H$37/'MMA Rev-Exp Region 2'!$H$9, 0)","v":{"v":0,"d":"$0.00"}},{"$f":"IFERROR('MMA Rev-Exp Region 2'!$I$37/'MMA Rev-Exp Region 2'!$I$9, 0)","v":{"v":0,"d":"$0.00"}},{"$f":"IFERROR('MMA Rev-Exp Region 2'!$J$37/'MMA Rev-Exp Region 2'!$J$9, 0)","v":{"v":0,"d":"$0.00"}},{"$f":"IFERROR('MMA Rev-Exp Region 2'!$K$37/'MMA Rev-Exp Region 2'!$K$9, 0)","v":{"v":0,"d":"$0.00"}},{"$f":"IFERROR('MMA Rev-Exp Region 2'!$L$37/'MMA Rev-Exp Region 2'!$L$9, 0)","v":{"v":0,"d":"$0.00"}},{"$f":"IFERROR('MMA Rev-Exp Region 2'!$M$37/'MMA Rev-Exp Region 2'!$M$9, 0)","v":{"v":0,"d":"$0.00"}},{"$f":"IFERROR('MMA Rev-Exp Region 2'!$N$37/'MMA Rev-Exp Region 2'!$N$9, 0)","v":{"v":0,"d":"$0.00"}}]
["MMA",null,null,2016,"2016-12-31","Q1","2017-03-31","Region 2","Operating Expense","Medical Benefits Expense","Maternity Services","4.2.1","Ending IBNP for Maternity Services",{"$f":"IFERROR('MMA Rev-Exp Region 2'!$D$38/'MMA Rev-Exp Region 2'!$D$9, 0)","v":{"v":0,"d":"$0.00"}},{"$f":"IFERROR('MMA Rev-Exp Region 2'!$E$38/'MMA Rev-Exp Region 2'!$E$9, 0)","v":{"v":0,"d":"$0.00"}},{"$f":"IFERROR('MMA Rev-Exp Region 2'!$F$38/'MMA Rev-Exp Region 2'!$F$9, 0)","v":{"v":0,"d":"$0.00"}},{"$f":"IFERROR('MMA Rev-Exp Region 2'!$G$38/'MMA Rev-Exp Region 2'!$G$9, 0)","v":{"v":0,"d":"$0.00"}},{"$f":"IFERROR('MMA Rev-Exp Region 2'!$H$38/'MMA Rev-Exp Region 2'!$H$9, 0)","v":{"v":0,"d":"$0.00"}},{"$f":"IFERROR('MMA Rev-Exp Region 2'!$I$38/'MMA Rev-Exp Region 2'!$I$9, 0)","v":{"v":0,"d":"$0.00"}},{"$f":"IFERROR('MMA Rev-Exp Region 2'!$J$38/'MMA Rev-Exp Region 2'!$J$9, 0)","v":{"v":0,"d":"$0.00"}},{"$f":"IFERROR('MMA Rev-Exp Region 2'!$K$38/'MMA Rev-Exp Region 2'!$K$9, 0)","v":{"v":0,"d":"$0.00"}},{"$f":"IFERROR('MMA Rev-Exp Region 2'!$L$38/'MMA Rev-Exp Region 2'!$L$9, 0)","v":{"v":0,"d":"$0.00"}},{"$f":"IFERROR('MMA Rev-Exp Region 2'!$M$38/'MMA Rev-Exp Region 2'!$M$9, 0)","v":{"v":0,"d":"$0.00"}},{"$f":"IFERROR('MMA Rev-Exp Region 2'!$N$38/'MMA Rev-Exp Region 2'!$N$9, 0)","v":{"v":0,"d":"$0.00"}}]
["MMA",null,null,2016,"2016-12-31","Q1","2017-03-31","Region 2","Operating Expense","Medical Benefits Expense","Maternity Services","4.3.1","Maternity Settlements",{"$f":"IFERROR('MMA Rev-Exp Region 2'!$D$39/'MMA Rev-Exp Region 2'!$D$9, 0)","v":{"v":0,"d":"$0.00"}},{"$f":"IFERROR('MMA Rev-Exp Region 2'!$E$39/'MMA Rev-Exp Region 2'!$E$9, 0)","v":{"v":0,"d":"$0.00"}},{"$f":"IFERROR('MMA Rev-Exp Region 2'!$F$39/'MMA Rev-Exp Region 2'!$F$9, 0)","v":{"v":0,"d":"$0.00"}},{"$f":"IFERROR('MMA Rev-Exp Region 2'!$G$39/'MMA Rev-Exp Region 2'!$G$9, 0)","v":{"v":0,"d":"$0.00"}},{"$f":"IFERROR('MMA Rev-Exp Region 2'!$H$39/'MMA Rev-Exp Region 2'!$H$9, 0)","v":{"v":0,"d":"$0.00"}},{"$f":"IFERROR('MMA Rev-Exp Region 2'!$I$39/'MMA Rev-Exp Region 2'!$I$9, 0)","v":{"v":0,"d":"$0.00"}},{"$f":"IFERROR('MMA Rev-Exp Region 2'!$J$39/'MMA Rev-Exp Region 2'!$J$9, 0)","v":{"v":0,"d":"$0.00"}},{"$f":"IFERROR('MMA Rev-Exp Region 2'!$K$39/'MMA Rev-Exp Region 2'!$K$9, 0)","v":{"v":0,"d":"$0.00"}},{"$f":"IFERROR('MMA Rev-Exp Region 2'!$L$39/'MMA Rev-Exp Region 2'!$L$9, 0)","v":{"v":0,"d":"$0.00"}},{"$f":"IFERROR('MMA Rev-Exp Region 2'!$M$39/'MMA Rev-Exp Region 2'!$M$9, 0)","v":{"v":0,"d":"$0.00"}},{"$f":"IFERROR('MMA Rev-Exp Region 2'!$N$39/'MMA Rev-Exp Region 2'!$N$9, 0)","v":{"v":0,"d":"$0.00"}}]
["MMA",null,null,2016,"2016-12-31","Q1","2017-03-31","Region 2","Operating Expense","Medical Benefits Expense","Mental Health Services",5.1,"Mental Health & Substance Abuse FFS",{"$f":"IFERROR('MMA Rev-Exp Region 2'!$D$41/'MMA Rev-Exp Region 2'!$D$9, 0)","v":{"v":0,"d":"$0.00"}},{"$f":"IFERROR('MMA Rev-Exp Region 2'!$E$41/'MMA Rev-Exp Region 2'!$E$9, 0)","v":{"v":0,"d":"$0.00"}},{"$f":"IFERROR('MMA Rev-Exp Region 2'!$F$41/'MMA Rev-Exp Region 2'!$F$9, 0)","v":{"v":0,"d":"$0.00"}},{"$f":"IFERROR('MMA Rev-Exp Region 2'!$G$41/'MMA Rev-Exp Region 2'!$G$9, 0)","v":{"v":0,"d":"$0.00"}},{"$f":"IFERROR('MMA Rev-Exp Region 2'!$H$41/'MMA Rev-Exp Region 2'!$H$9, 0)","v":{"v":0,"d":"$0.00"}},{"$f":"IFERROR('MMA Rev-Exp Region 2'!$I$41/'MMA Rev-Exp Region 2'!$I$9, 0)","v":{"v":0,"d":"$0.00"}},{"$f":"IFERROR('MMA Rev-Exp Region 2'!$J$41/'MMA Rev-Exp Region 2'!$J$9, 0)","v":{"v":0,"d":"$0.00"}},{"$f":"IFERROR('MMA Rev-Exp Region 2'!$K$41/'MMA Rev-Exp Region 2'!$K$9, 0)","v":{"v":0,"d":"$0.00"}},{"$f":"IFERROR('MMA Rev-Exp Region 2'!$L$41/'MMA Rev-Exp Region 2'!$L$9, 0)","v":{"v":0,"d":"$0.00"}},{"$f":"IFERROR('MMA Rev-Exp Region 2'!$M$41/'MMA Rev-Exp Region 2'!$M$9, 0)","v":{"v":0,"d":"$0.00"}},{"$f":"IFERROR('MMA Rev-Exp Region 2'!$N$41/'MMA Rev-Exp Region 2'!$N$9, 0)","v":{"v":0,"d":"$0.00"}}]
["MMA",null,null,2016,"2016-12-31","Q1","2017-03-31","Region 2","Operating Expense","Medical Benefits Expense","Mental Health Services",5.2,"Mental Health & Substance Abuse Subcapitation",{"$f":"IFERROR('MMA Rev-Exp Region 2'!$D$42/'MMA Rev-Exp Region 2'!$D$9, 0)","v":{"v":0,"d":"$0.00"}},{"$f":"IFERROR('MMA Rev-Exp Region 2'!$E$42/'MMA Rev-Exp Region 2'!$E$9, 0)","v":{"v":0,"d":"$0.00"}},{"$f":"IFERROR('MMA Rev-Exp Region 2'!$F$42/'MMA Rev-Exp Region 2'!$F$9, 0)","v":{"v":0,"d":"$0.00"}},{"$f":"IFERROR('MMA Rev-Exp Region 2'!$G$42/'MMA Rev-Exp Region 2'!$G$9, 0)","v":{"v":0,"d":"$0.00"}},{"$f":"IFERROR('MMA Rev-Exp Region 2'!$H$42/'MMA Rev-Exp Region 2'!$H$9, 0)","v":{"v":0,"d":"$0.00"}},{"$f":"IFERROR('MMA Rev-Exp Region 2'!$I$42/'MMA Rev-Exp Region 2'!$I$9, 0)","v":{"v":0,"d":"$0.00"}},{"$f":"IFERROR('MMA Rev-Exp Region 2'!$J$42/'MMA Rev-Exp Region 2'!$J$9, 0)","v":{"v":0,"d":"$0.00"}},{"$f":"IFERROR('MMA Rev-Exp Region 2'!$K$42/'MMA Rev-Exp Region 2'!$K$9, 0)","v":{"v":0,"d":"$0.00"}},{"$f":"IFERROR('MMA Rev-Exp Region 2'!$L$42/'MMA Rev-Exp Region 2'!$L$9, 0)","v":{"v":0,"d":"$0.00"}},{"$f":"IFERROR('MMA Rev-Exp Region 2'!$M$42/'MMA Rev-Exp Region 2'!$M$9, 0)","v":{"v":0,"d":"$0.00"}},{"$f":"IFERROR('MMA Rev-Exp Region 2'!$N$42/'MMA Rev-Exp Region 2'!$N$9, 0)","v":{"v":0,"d":"$0.00"}}]
["MMA",null,null,2016,"2016-12-31","Q1","2017-03-31","Region 2","Operating Expense","Medical Benefits Expense","Mental Health Services",5.3,"Ending IBNP for Mental Health & Substance Abuse",{"$f":"IFERROR('MMA Rev-Exp Region 2'!$D$43/'MMA Rev-Exp Region 2'!$D$9, 0)","v":{"v":0,"d":"$0.00"}},{"$f":"IFERROR('MMA Rev-Exp Region 2'!$E$43/'MMA Rev-Exp Region 2'!$E$9, 0)","v":{"v":0,"d":"$0.00"}},{"$f":"IFERROR('MMA Rev-Exp Region 2'!$F$43/'MMA Rev-Exp Region 2'!$F$9, 0)","v":{"v":0,"d":"$0.00"}},{"$f":"IFERROR('MMA Rev-Exp Region 2'!$G$43/'MMA Rev-Exp Region 2'!$G$9, 0)","v":{"v":0,"d":"$0.00"}},{"$f":"IFERROR('MMA Rev-Exp Region 2'!$H$43/'MMA Rev-Exp Region 2'!$H$9, 0)","v":{"v":0,"d":"$0.00"}},{"$f":"IFERROR('MMA Rev-Exp Region 2'!$I$43/'MMA Rev-Exp Region 2'!$I$9, 0)","v":{"v":0,"d":"$0.00"}},{"$f":"IFERROR('MMA Rev-Exp Region 2'!$J$43/'MMA Rev-Exp Region 2'!$J$9, 0)","v":{"v":0,"d":"$0.00"}},{"$f":"IFERROR('MMA Rev-Exp Region 2'!$K$43/'MMA Rev-Exp Region 2'!$K$9, 0)","v":{"v":0,"d":"$0.00"}},{"$f":"IFERROR('MMA Rev-Exp Region 2'!$L$43/'MMA Rev-Exp Region 2'!$L$9, 0)","v":{"v":0,"d":"$0.00"}},{"$f":"IFERROR('MMA Rev-Exp Region 2'!$M$43/'MMA Rev-Exp Region 2'!$M$9, 0)","v":{"v":0,"d":"$0.00"}},{"$f":"IFERROR('MMA Rev-Exp Region 2'!$N$43/'MMA Rev-Exp Region 2'!$N$9, 0)","v":{"v":0,"d":"$0.00"}}]
["MMA",null,null,2016,"2016-12-31","Q1","2017-03-31","Region 2","Operating Expense","Medical Benefits Expense","Mental Health Services","5.4","Mental Health Settlements",{"$f":"IFERROR('MMA Rev-Exp Region 2'!$D$44/'MMA Rev-Exp Region 2'!$D$9, 0)","v":{"v":0,"d":"$0.00"}},{"$f":"IFERROR('MMA Rev-Exp Region 2'!$E$44/'MMA Rev-Exp Region 2'!$E$9, 0)","v":{"v":0,"d":"$0.00"}},{"$f":"IFERROR('MMA Rev-Exp Region 2'!$F$44/'MMA Rev-Exp Region 2'!$F$9, 0)","v":{"v":0,"d":"$0.00"}},{"$f":"IFERROR('MMA Rev-Exp Region 2'!$G$44/'MMA Rev-Exp Region 2'!$G$9, 0)","v":{"v":0,"d":"$0.00"}},{"$f":"IFERROR('MMA Rev-Exp Region 2'!$H$44/'MMA Rev-Exp Region 2'!$H$9, 0)","v":{"v":0,"d":"$0.00"}},{"$f":"IFERROR('MMA Rev-Exp Region 2'!$I$44/'MMA Rev-Exp Region 2'!$I$9, 0)","v":{"v":0,"d":"$0.00"}},{"$f":"IFERROR('MMA Rev-Exp Region 2'!$J$44/'MMA Rev-Exp Region 2'!$J$9, 0)","v":{"v":0,"d":"$0.00"}},{"$f":"IFERROR('MMA Rev-Exp Region 2'!$K$44/'MMA Rev-Exp Region 2'!$K$9, 0)","v":{"v":0,"d":"$0.00"}},{"$f":"IFERROR('MMA Rev-Exp Region 2'!$L$44/'MMA Rev-Exp Region 2'!$L$9, 0)","v":{"v":0,"d":"$0.00"}},{"$f":"IFERROR('MMA Rev-Exp Region 2'!$M$44/'MMA Rev-Exp Region 2'!$M$9, 0)","v":{"v":0,"d":"$0.00"}},{"$f":"IFERROR('MMA Rev-Exp Region 2'!$N$44/'MMA Rev-Exp Region 2'!$N$9, 0)","v":{"v":0,"d":"$0.00"}}]
["MMA",null,null,2016,"2016-12-31","Q1","2017-03-31","Region 2","Operating Expense","Medical Benefits Expense","Dental Services",6.1,"Dental FFS",{"$f":"IFERROR('MMA Rev-Exp Region 2'!$D$46/'MMA Rev-Exp Region 2'!$D$9, 0)","v":{"v":0,"d":"$0.00"}},{"$f":"IFERROR('MMA Rev-Exp Region 2'!$E$46/'MMA Rev-Exp Region 2'!$E$9, 0)","v":{"v":0,"d":"$0.00"}},{"$f":"IFERROR('MMA Rev-Exp Region 2'!$F$46/'MMA Rev-Exp Region 2'!$F$9, 0)","v":{"v":0,"d":"$0.00"}},{"$f":"IFERROR('MMA Rev-Exp Region 2'!$G$46/'MMA Rev-Exp Region 2'!$G$9, 0)","v":{"v":0,"d":"$0.00"}},{"$f":"IFERROR('MMA Rev-Exp Region 2'!$H$46/'MMA Rev-Exp Region 2'!$H$9, 0)","v":{"v":0,"d":"$0.00"}},{"$f":"IFERROR('MMA Rev-Exp Region 2'!$I$46/'MMA Rev-Exp Region 2'!$I$9, 0)","v":{"v":0,"d":"$0.00"}},{"$f":"IFERROR('MMA Rev-Exp Region 2'!$J$46/'MMA Rev-Exp Region 2'!$J$9, 0)","v":{"v":0,"d":"$0.00"}},{"$f":"IFERROR('MMA Rev-Exp Region 2'!$K$46/'MMA Rev-Exp Region 2'!$K$9, 0)","v":{"v":0,"d":"$0.00"}},{"$f":"IFERROR('MMA Rev-Exp Region 2'!$L$46/'MMA Rev-Exp Region 2'!$L$9, 0)","v":{"v":0,"d":"$0.00"}},{"$f":"IFERROR('MMA Rev-Exp Region 2'!$M$46/'MMA Rev-Exp Region 2'!$M$9, 0)","v":{"v":0,"d":"$0.00"}},{"$f":"IFERROR('MMA Rev-Exp Region 2'!$N$46/'MMA Rev-Exp Region 2'!$N$9, 0)","v":{"v":0,"d":"$0.00"}}]
["MMA",null,null,2016,"2016-12-31","Q1","2017-03-31","Region 2","Operating Expense","Medical Benefits Expense","Dental Services",6.2,"Dental Subcapitation",{"$f":"IFERROR('MMA Rev-Exp Region 2'!$D$47/'MMA Rev-Exp Region 2'!$D$9, 0)","v":{"v":0,"d":"$0.00"}},{"$f":"IFERROR('MMA Rev-Exp Region 2'!$E$47/'MMA Rev-Exp Region 2'!$E$9, 0)","v":{"v":0,"d":"$0.00"}},{"$f":"IFERROR('MMA Rev-Exp Region 2'!$F$47/'MMA Rev-Exp Region 2'!$F$9, 0)","v":{"v":0,"d":"$0.00"}},{"$f":"IFERROR('MMA Rev-Exp Region 2'!$G$47/'MMA Rev-Exp Region 2'!$G$9, 0)","v":{"v":0,"d":"$0.00"}},{"$f":"IFERROR('MMA Rev-Exp Region 2'!$H$47/'MMA Rev-Exp Region 2'!$H$9, 0)","v":{"v":0,"d":"$0.00"}},{"$f":"IFERROR('MMA Rev-Exp Region 2'!$I$47/'MMA Rev-Exp Region 2'!$I$9, 0)","v":{"v":0,"d":"$0.00"}},{"$f":"IFERROR('MMA Rev-Exp Region 2'!$J$47/'MMA Rev-Exp Region 2'!$J$9, 0)","v":{"v":0,"d":"$0.00"}},{"$f":"IFERROR('MMA Rev-Exp Region 2'!$K$47/'MMA Rev-Exp Region 2'!$K$9, 0)","v":{"v":0,"d":"$0.00"}},{"$f":"IFERROR('MMA Rev-Exp Region 2'!$L$47/'MMA Rev-Exp Region 2'!$L$9, 0)","v":{"v":0,"d":"$0.00"}},{"$f":"IFERROR('MMA Rev-Exp Region 2'!$M$47/'MMA Rev-Exp Region 2'!$M$9, 0)","v":{"v":0,"d":"$0.00"}},{"$f":"IFERROR('MMA Rev-Exp Region 2'!$N$47/'MMA Rev-Exp Region 2'!$N$9, 0)","v":{"v":0,"d":"$0.00"}}]
["MMA",null,null,2016,"2016-12-31","Q1","2017-03-31","Region 2","Operating Expense","Medical Benefits Expense","Dental Services",6.3,"Ending IBNP for Dental Services",{"$f":"IFERROR('MMA Rev-Exp Region 2'!$D$48/'MMA Rev-Exp Region 2'!$D$9, 0)","v":{"v":0,"d":"$0.00"}},{"$f":"IFERROR('MMA Rev-Exp Region 2'!$E$48/'MMA Rev-Exp Region 2'!$E$9, 0)","v":{"v":0,"d":"$0.00"}},{"$f":"IFERROR('MMA Rev-Exp Region 2'!$F$48/'MMA Rev-Exp Region 2'!$F$9, 0)","v":{"v":0,"d":"$0.00"}},{"$f":"IFERROR('MMA Rev-Exp Region 2'!$G$48/'MMA Rev-Exp Region 2'!$G$9, 0)","v":{"v":0,"d":"$0.00"}},{"$f":"IFERROR('MMA Rev-Exp Region 2'!$H$48/'MMA Rev-Exp Region 2'!$H$9, 0)","v":{"v":0,"d":"$0.00"}},{"$f":"IFERROR('MMA Rev-Exp Region 2'!$I$48/'MMA Rev-Exp Region 2'!$I$9, 0)","v":{"v":0,"d":"$0.00"}},{"$f":"IFERROR('MMA Rev-Exp Region 2'!$J$48/'MMA Rev-Exp Region 2'!$J$9, 0)","v":{"v":0,"d":"$0.00"}},{"$f":"IFERROR('MMA Rev-Exp Region 2'!$K$48/'MMA Rev-Exp Region 2'!$K$9, 0)","v":{"v":0,"d":"$0.00"}},{"$f":"IFERROR('MMA Rev-Exp Region 2'!$L$48/'MMA Rev-Exp Region 2'!$L$9, 0)","v":{"v":0,"d":"$0.00"}},{"$f":"IFERROR('MMA Rev-Exp Region 2'!$M$48/'MMA Rev-Exp Region 2'!$M$9, 0)","v":{"v":0,"d":"$0.00"}},{"$f":"IFERROR('MMA Rev-Exp Region 2'!$N$48/'MMA Rev-Exp Region 2'!$N$9, 0)","v":{"v":0,"d":"$0.00"}}]
["MMA",null,null,2016,"2016-12-31","Q1","2017-03-31","Region 2","Operating Expense","Medical Benefits Expense","Dental Services","6.4","Dental Settlements",{"$f":"IFERROR('MMA Rev-Exp Region 2'!$D$49/'MMA Rev-Exp Region 2'!$D$9, 0)","v":{"v":0,"d":"$0.00"}},{"$f":"IFERROR('MMA Rev-Exp Region 2'!$E$49/'MMA Rev-Exp Region 2'!$E$9, 0)","v":{"v":0,"d":"$0.00"}},{"$f":"IFERROR('MMA Rev-Exp Region 2'!$F$49/'MMA Rev-Exp Region 2'!$F$9, 0)","v":{"v":0,"d":"$0.00"}},{"$f":"IFERROR('MMA Rev-Exp Region 2'!$G$49/'MMA Rev-Exp Region 2'!$G$9, 0)","v":{"v":0,"d":"$0.00"}},{"$f":"IFERROR('MMA Rev-Exp Region 2'!$H$49/'MMA Rev-Exp Region 2'!$H$9, 0)","v":{"v":0,"d":"$0.00"}},{"$f":"IFERROR('MMA Rev-Exp Region 2'!$I$49/'MMA Rev-Exp Region 2'!$I$9, 0)","v":{"v":0,"d":"$0.00"}},{"$f":"IFERROR('MMA Rev-Exp Region 2'!$J$49/'MMA Rev-Exp Region 2'!$J$9, 0)","v":{"v":0,"d":"$0.00"}},{"$f":"IFERROR('MMA Rev-Exp Region 2'!$K$49/'MMA Rev-Exp Region 2'!$K$9, 0)","v":{"v":0,"d":"$0.00"}},{"$f":"IFERROR('MMA Rev-Exp Region 2'!$L$49/'MMA Rev-Exp Region 2'!$L$9, 0)","v":{"v":0,"d":"$0.00"}},{"$f":"IFERROR('MMA Rev-Exp Region 2'!$M$49/'MMA Rev-Exp Region 2'!$M$9, 0)","v":{"v":0,"d":"$0.00"}},{"$f":"IFERROR('MMA Rev-Exp Region 2'!$N$49/'MMA Rev-Exp Region 2'!$N$9, 0)","v":{"v":0,"d":"$0.00"}}]
["MMA",null,null,2016,"2016-12-31","Q1","2017-03-31","Region 2","Operating Expense","Medical Benefits Expense","Transportation Services",7.1,"Transportation FFS",{"$f":"IFERROR('MMA Rev-Exp Region 2'!$D$51/'MMA Rev-Exp Region 2'!$D$9, 0)","v":{"v":0,"d":"$0.00"}},{"$f":"IFERROR('MMA Rev-Exp Region 2'!$E$51/'MMA Rev-Exp Region 2'!$E$9, 0)","v":{"v":0,"d":"$0.00"}},{"$f":"IFERROR('MMA Rev-Exp Region 2'!$F$51/'MMA Rev-Exp Region 2'!$F$9, 0)","v":{"v":0,"d":"$0.00"}},{"$f":"IFERROR('MMA Rev-Exp Region 2'!$G$51/'MMA Rev-Exp Region 2'!$G$9, 0)","v":{"v":0,"d":"$0.00"}},{"$f":"IFERROR('MMA Rev-Exp Region 2'!$H$51/'MMA Rev-Exp Region 2'!$H$9, 0)","v":{"v":0,"d":"$0.00"}},{"$f":"IFERROR('MMA Rev-Exp Region 2'!$I$51/'MMA Rev-Exp Region 2'!$I$9, 0)","v":{"v":0,"d":"$0.00"}},{"$f":"IFERROR('MMA Rev-Exp Region 2'!$J$51/'MMA Rev-Exp Region 2'!$J$9, 0)","v":{"v":0,"d":"$0.00"}},{"$f":"IFERROR('MMA Rev-Exp Region 2'!$K$51/'MMA Rev-Exp Region 2'!$K$9, 0)","v":{"v":0,"d":"$0.00"}},{"$f":"IFERROR('MMA Rev-Exp Region 2'!$L$51/'MMA Rev-Exp Region 2'!$L$9, 0)","v":{"v":0,"d":"$0.00"}},{"$f":"IFERROR('MMA Rev-Exp Region 2'!$M$51/'MMA Rev-Exp Region 2'!$M$9, 0)","v":{"v":0,"d":"$0.00"}},{"$f":"IFERROR('MMA Rev-Exp Region 2'!$N$51/'MMA Rev-Exp Region 2'!$N$9, 0)","v":{"v":0,"d":"$0.00"}}]
["MMA",null,null,2016,"2016-12-31","Q1","2017-03-31","Region 2","Operating Expense","Medical Benefits Expense","Transportation Services",7.2,"Transportation Subcapitation",{"$f":"IFERROR('MMA Rev-Exp Region 2'!$D$52/'MMA Rev-Exp Region 2'!$D$9, 0)","v":{"v":0,"d":"$0.00"}},{"$f":"IFERROR('MMA Rev-Exp Region 2'!$E$52/'MMA Rev-Exp Region 2'!$E$9, 0)","v":{"v":0,"d":"$0.00"}},{"$f":"IFERROR('MMA Rev-Exp Region 2'!$F$52/'MMA Rev-Exp Region 2'!$F$9, 0)","v":{"v":0,"d":"$0.00"}},{"$f":"IFERROR('MMA Rev-Exp Region 2'!$G$52/'MMA Rev-Exp Region 2'!$G$9, 0)","v":{"v":0,"d":"$0.00"}},{"$f":"IFERROR('MMA Rev-Exp Region 2'!$H$52/'MMA Rev-Exp Region 2'!$H$9, 0)","v":{"v":0,"d":"$0.00"}},{"$f":"IFERROR('MMA Rev-Exp Region 2'!$I$52/'MMA Rev-Exp Region 2'!$I$9, 0)","v":{"v":0,"d":"$0.00"}},{"$f":"IFERROR('MMA Rev-Exp Region 2'!$J$52/'MMA Rev-Exp Region 2'!$J$9, 0)","v":{"v":0,"d":"$0.00"}},{"$f":"IFERROR('MMA Rev-Exp Region 2'!$K$52/'MMA Rev-Exp Region 2'!$K$9, 0)","v":{"v":0,"d":"$0.00"}},{"$f":"IFERROR('MMA Rev-Exp Region 2'!$L$52/'MMA Rev-Exp Region 2'!$L$9, 0)","v":{"v":0,"d":"$0.00"}},{"$f":"IFERROR('MMA Rev-Exp Region 2'!$M$52/'MMA Rev-Exp Region 2'!$M$9, 0)","v":{"v":0,"d":"$0.00"}},{"$f":"IFERROR('MMA Rev-Exp Region 2'!$N$52/'MMA Rev-Exp Region 2'!$N$9, 0)","v":{"v":0,"d":"$0.00"}}]
["MMA",null,null,2016,"2016-12-31","Q1","2017-03-31","Region 2","Operating Expense","Medical Benefits Expense","Transportation Services",7.3,"Ending IBNP for Transportation",{"$f":"IFERROR('MMA Rev-Exp Region 2'!$D$53/'MMA Rev-Exp Region 2'!$D$9, 0)","v":{"v":0,"d":"$0.00"}},{"$f":"IFERROR('MMA Rev-Exp Region 2'!$E$53/'MMA Rev-Exp Region 2'!$E$9, 0)","v":{"v":0,"d":"$0.00"}},{"$f":"IFERROR('MMA Rev-Exp Region 2'!$F$53/'MMA Rev-Exp Region 2'!$F$9, 0)","v":{"v":0,"d":"$0.00"}},{"$f":"IFERROR('MMA Rev-Exp Region 2'!$G$53/'MMA Rev-Exp Region 2'!$G$9, 0)","v":{"v":0,"d":"$0.00"}},{"$f":"IFERROR('MMA Rev-Exp Region 2'!$H$53/'MMA Rev-Exp Region 2'!$H$9, 0)","v":{"v":0,"d":"$0.00"}},{"$f":"IFERROR('MMA Rev-Exp Region 2'!$I$53/'MMA Rev-Exp Region 2'!$I$9, 0)","v":{"v":0,"d":"$0.00"}},{"$f":"IFERROR('MMA Rev-Exp Region 2'!$J$53/'MMA Rev-Exp Region 2'!$J$9, 0)","v":{"v":0,"d":"$0.00"}},{"$f":"IFERROR('MMA Rev-Exp Region 2'!$K$53/'MMA Rev-Exp Region 2'!$K$9, 0)","v":{"v":0,"d":"$0.00"}},{"$f":"IFERROR('MMA Rev-Exp Region 2'!$L$53/'MMA Rev-Exp Region 2'!$L$9, 0)","v":{"v":0,"d":"$0.00"}},{"$f":"IFERROR('MMA Rev-Exp Region 2'!$M$53/'MMA Rev-Exp Region 2'!$M$9, 0)","v":{"v":0,"d":"$0.00"}},{"$f":"IFERROR('MMA Rev-Exp Region 2'!$N$53/'MMA Rev-Exp Region 2'!$N$9, 0)","v":{"v":0,"d":"$0.00"}}]
["MMA",null,null,2016,"2016-12-31","Q1","2017-03-31","Region 2","Operating Expense","Medical Benefits Expense","Transportation Services","7.4","Transportation Settlements",{"$f":"IFERROR('MMA Rev-Exp Region 2'!$D$54/'MMA Rev-Exp Region 2'!$D$9, 0)","v":{"v":0,"d":"$0.00"}},{"$f":"IFERROR('MMA Rev-Exp Region 2'!$E$54/'MMA Rev-Exp Region 2'!$E$9, 0)","v":{"v":0,"d":"$0.00"}},{"$f":"IFERROR('MMA Rev-Exp Region 2'!$F$54/'MMA Rev-Exp Region 2'!$F$9, 0)","v":{"v":0,"d":"$0.00"}},{"$f":"IFERROR('MMA Rev-Exp Region 2'!$G$54/'MMA Rev-Exp Region 2'!$G$9, 0)","v":{"v":0,"d":"$0.00"}},{"$f":"IFERROR('MMA Rev-Exp Region 2'!$H$54/'MMA Rev-Exp Region 2'!$H$9, 0)","v":{"v":0,"d":"$0.00"}},{"$f":"IFERROR('MMA Rev-Exp Region 2'!$I$54/'MMA Rev-Exp Region 2'!$I$9, 0)","v":{"v":0,"d":"$0.00"}},{"$f":"IFERROR('MMA Rev-Exp Region 2'!$J$54/'MMA Rev-Exp Region 2'!$J$9, 0)","v":{"v":0,"d":"$0.00"}},{"$f":"IFERROR('MMA Rev-Exp Region 2'!$K$54/'MMA Rev-Exp Region 2'!$K$9, 0)","v":{"v":0,"d":"$0.00"}},{"$f":"IFERROR('MMA Rev-Exp Region 2'!$L$54/'MMA Rev-Exp Region 2'!$L$9, 0)","v":{"v":0,"d":"$0.00"}},{"$f":"IFERROR('MMA Rev-Exp Region 2'!$M$54/'MMA Rev-Exp Region 2'!$M$9, 0)","v":{"v":0,"d":"$0.00"}},{"$f":"IFERROR('MMA Rev-Exp Region 2'!$N$54/'MMA Rev-Exp Region 2'!$N$9, 0)","v":{"v":0,"d":"$0.00"}}]
["MMA",null,null,2016,"2016-12-31","Q1","2017-03-31","Region 2","Operating Expense","Medical Benefits Expense","Pharmacy Services",8.1,"Prescription Drugs FFS",{"$f":"IFERROR('MMA Rev-Exp Region 2'!$D$56/'MMA Rev-Exp Region 2'!$D$9, 0)","v":{"v":0,"d":"$0.00"}},{"$f":"IFERROR('MMA Rev-Exp Region 2'!$E$56/'MMA Rev-Exp Region 2'!$E$9, 0)","v":{"v":0,"d":"$0.00"}},{"$f":"IFERROR('MMA Rev-Exp Region 2'!$F$56/'MMA Rev-Exp Region 2'!$F$9, 0)","v":{"v":0,"d":"$0.00"}},{"$f":"IFERROR('MMA Rev-Exp Region 2'!$G$56/'MMA Rev-Exp Region 2'!$G$9, 0)","v":{"v":0,"d":"$0.00"}},{"$f":"IFERROR('MMA Rev-Exp Region 2'!$H$56/'MMA Rev-Exp Region 2'!$H$9, 0)","v":{"v":0,"d":"$0.00"}},{"$f":"IFERROR('MMA Rev-Exp Region 2'!$I$56/'MMA Rev-Exp Region 2'!$I$9, 0)","v":{"v":0,"d":"$0.00"}},{"$f":"IFERROR('MMA Rev-Exp Region 2'!$J$56/'MMA Rev-Exp Region 2'!$J$9, 0)","v":{"v":0,"d":"$0.00"}},{"$f":"IFERROR('MMA Rev-Exp Region 2'!$K$56/'MMA Rev-Exp Region 2'!$K$9, 0)","v":{"v":0,"d":"$0.00"}},{"$f":"IFERROR('MMA Rev-Exp Region 2'!$L$56/'MMA Rev-Exp Region 2'!$L$9, 0)","v":{"v":0,"d":"$0.00"}},{"$f":"IFERROR('MMA Rev-Exp Region 2'!$M$56/'MMA Rev-Exp Region 2'!$M$9, 0)","v":{"v":0,"d":"$0.00"}},{"$f":"IFERROR('MMA Rev-Exp Region 2'!$N$56/'MMA Rev-Exp Region 2'!$N$9, 0)","v":{"v":0,"d":"$0.00"}}]
["MMA",null,null,2016,"2016-12-31","Q1","2017-03-31","Region 2","Operating Expense","Medical Benefits Expense","Pharmacy Services","8.2","Hepatitis C Prescription Drug FFS",{"$f":"IFERROR('MMA Rev-Exp Region 2'!$D$57/'MMA Rev-Exp Region 2'!$D$9, 0)","v":{"v":0,"d":"$0.00"}},{"$f":"IFERROR('MMA Rev-Exp Region 2'!$E$57/'MMA Rev-Exp Region 2'!$E$9, 0)","v":{"v":0,"d":"$0.00"}},{"$f":"IFERROR('MMA Rev-Exp Region 2'!$F$57/'MMA Rev-Exp Region 2'!$F$9, 0)","v":{"v":0,"d":"$0.00"}},{"$f":"IFERROR('MMA Rev-Exp Region 2'!$G$57/'MMA Rev-Exp Region 2'!$G$9, 0)","v":{"v":0,"d":"$0.00"}},{"$f":"IFERROR('MMA Rev-Exp Region 2'!$H$57/'MMA Rev-Exp Region 2'!$H$9, 0)","v":{"v":0,"d":"$0.00"}},{"$f":"IFERROR('MMA Rev-Exp Region 2'!$I$57/'MMA Rev-Exp Region 2'!$I$9, 0)","v":{"v":0,"d":"$0.00"}},{"$f":"IFERROR('MMA Rev-Exp Region 2'!$J$57/'MMA Rev-Exp Region 2'!$J$9, 0)","v":{"v":0,"d":"$0.00"}},{"$f":"IFERROR('MMA Rev-Exp Region 2'!$K$57/'MMA Rev-Exp Region 2'!$K$9, 0)","v":{"v":0,"d":"$0.00"}},{"$f":"IFERROR('MMA Rev-Exp Region 2'!$L$57/'MMA Rev-Exp Region 2'!$L$9, 0)","v":{"v":0,"d":"$0.00"}},{"$f":"IFERROR('MMA Rev-Exp Region 2'!$M$57/'MMA Rev-Exp Region 2'!$M$9, 0)","v":{"v":0,"d":"$0.00"}},{"$f":"IFERROR('MMA Rev-Exp Region 2'!$N$57/'MMA Rev-Exp Region 2'!$N$9, 0)","v":{"v":0,"d":"$0.00"}}]
["MMA",null,null,2016,"2016-12-31","Q1","2017-03-31","Region 2","Operating Expense","Medical Benefits Expense","Pharmacy Services","8.3","Ending IBNP for Prescription Drugs",{"$f":"IFERROR('MMA Rev-Exp Region 2'!$D$58/'MMA Rev-Exp Region 2'!$D$9, 0)","v":{"v":0,"d":"$0.00"}},{"$f":"IFERROR('MMA Rev-Exp Region 2'!$E$58/'MMA Rev-Exp Region 2'!$E$9, 0)","v":{"v":0,"d":"$0.00"}},{"$f":"IFERROR('MMA Rev-Exp Region 2'!$F$58/'MMA Rev-Exp Region 2'!$F$9, 0)","v":{"v":0,"d":"$0.00"}},{"$f":"IFERROR('MMA Rev-Exp Region 2'!$G$58/'MMA Rev-Exp Region 2'!$G$9, 0)","v":{"v":0,"d":"$0.00"}},{"$f":"IFERROR('MMA Rev-Exp Region 2'!$H$58/'MMA Rev-Exp Region 2'!$H$9, 0)","v":{"v":0,"d":"$0.00"}},{"$f":"IFERROR('MMA Rev-Exp Region 2'!$I$58/'MMA Rev-Exp Region 2'!$I$9, 0)","v":{"v":0,"d":"$0.00"}},{"$f":"IFERROR('MMA Rev-Exp Region 2'!$J$58/'MMA Rev-Exp Region 2'!$J$9, 0)","v":{"v":0,"d":"$0.00"}},{"$f":"IFERROR('MMA Rev-Exp Region 2'!$K$58/'MMA Rev-Exp Region 2'!$K$9, 0)","v":{"v":0,"d":"$0.00"}},{"$f":"IFERROR('MMA Rev-Exp Region 2'!$L$58/'MMA Rev-Exp Region 2'!$L$9, 0)","v":{"v":0,"d":"$0.00"}},{"$f":"IFERROR('MMA Rev-Exp Region 2'!$M$58/'MMA Rev-Exp Region 2'!$M$9, 0)","v":{"v":0,"d":"$0.00"}},{"$f":"IFERROR('MMA Rev-Exp Region 2'!$N$58/'MMA Rev-Exp Region 2'!$N$9, 0)","v":{"v":0,"d":"$0.00"}}]
["MMA",null,null,2016,"2016-12-31","Q1","2017-03-31","Region 2","Operating Expense","Medical Benefits Expense","Pharmacy Services","8.4","Prescription Drug Rebates ",{"$f":"IFERROR('MMA Rev-Exp Region 2'!$D$59/'MMA Rev-Exp Region 2'!$D$9, 0)","v":{"v":0,"d":"$0.00"}},{"$f":"IFERROR('MMA Rev-Exp Region 2'!$E$59/'MMA Rev-Exp Region 2'!$E$9, 0)","v":{"v":0,"d":"$0.00"}},{"$f":"IFERROR('MMA Rev-Exp Region 2'!$F$59/'MMA Rev-Exp Region 2'!$F$9, 0)","v":{"v":0,"d":"$0.00"}},{"$f":"IFERROR('MMA Rev-Exp Region 2'!$G$59/'MMA Rev-Exp Region 2'!$G$9, 0)","v":{"v":0,"d":"$0.00"}},{"$f":"IFERROR('MMA Rev-Exp Region 2'!$H$59/'MMA Rev-Exp Region 2'!$H$9, 0)","v":{"v":0,"d":"$0.00"}},{"$f":"IFERROR('MMA Rev-Exp Region 2'!$I$59/'MMA Rev-Exp Region 2'!$I$9, 0)","v":{"v":0,"d":"$0.00"}},{"$f":"IFERROR('MMA Rev-Exp Region 2'!$J$59/'MMA Rev-Exp Region 2'!$J$9, 0)","v":{"v":0,"d":"$0.00"}},{"$f":"IFERROR('MMA Rev-Exp Region 2'!$K$59/'MMA Rev-Exp Region 2'!$K$9, 0)","v":{"v":0,"d":"$0.00"}},{"$f":"IFERROR('MMA Rev-Exp Region 2'!$L$59/'MMA Rev-Exp Region 2'!$L$9, 0)","v":{"v":0,"d":"$0.00"}},{"$f":"IFERROR('MMA Rev-Exp Region 2'!$M$59/'MMA Rev-Exp Region 2'!$M$9, 0)","v":{"v":0,"d":"$0.00"}},{"$f":"IFERROR('MMA Rev-Exp Region 2'!$N$59/'MMA Rev-Exp Region 2'!$N$9, 0)","v":{"v":0,"d":"$0.00"}}]
["MMA",null,null,2016,"2016-12-31","Q1","2017-03-31","Region 2","Operating Expense","Medical Benefits Expense","Pharmacy Services","8.5","Ending accrual for Rebates receivable",{"$f":"IFERROR('MMA Rev-Exp Region 2'!$D$60/'MMA Rev-Exp Region 2'!$D$9, 0)","v":{"v":0,"d":"$0.00"}},{"$f":"IFERROR('MMA Rev-Exp Region 2'!$E$60/'MMA Rev-Exp Region 2'!$E$9, 0)","v":{"v":0,"d":"$0.00"}},{"$f":"IFERROR('MMA Rev-Exp Region 2'!$F$60/'MMA Rev-Exp Region 2'!$F$9, 0)","v":{"v":0,"d":"$0.00"}},{"$f":"IFERROR('MMA Rev-Exp Region 2'!$G$60/'MMA Rev-Exp Region 2'!$G$9, 0)","v":{"v":0,"d":"$0.00"}},{"$f":"IFERROR('MMA Rev-Exp Region 2'!$H$60/'MMA Rev-Exp Region 2'!$H$9, 0)","v":{"v":0,"d":"$0.00"}},{"$f":"IFERROR('MMA Rev-Exp Region 2'!$I$60/'MMA Rev-Exp Region 2'!$I$9, 0)","v":{"v":0,"d":"$0.00"}},{"$f":"IFERROR('MMA Rev-Exp Region 2'!$J$60/'MMA Rev-Exp Region 2'!$J$9, 0)","v":{"v":0,"d":"$0.00"}},{"$f":"IFERROR('MMA Rev-Exp Region 2'!$K$60/'MMA Rev-Exp Region 2'!$K$9, 0)","v":{"v":0,"d":"$0.00"}},{"$f":"IFERROR('MMA Rev-Exp Region 2'!$L$60/'MMA Rev-Exp Region 2'!$L$9, 0)","v":{"v":0,"d":"$0.00"}},{"$f":"IFERROR('MMA Rev-Exp Region 2'!$M$60/'MMA Rev-Exp Region 2'!$M$9, 0)","v":{"v":0,"d":"$0.00"}},{"$f":"IFERROR('MMA Rev-Exp Region 2'!$N$60/'MMA Rev-Exp Region 2'!$N$9, 0)","v":{"v":0,"d":"$0.00"}}]
["MMA",null,null,2016,"2016-12-31","Q1","2017-03-31","Region 2","Operating Expense","Medical Benefits Expense","Pharmacy Services","8.6","Prescription Drugs Subcapitation",{"$f":"IFERROR('MMA Rev-Exp Region 2'!$D$61/'MMA Rev-Exp Region 2'!$D$9, 0)","v":{"v":0,"d":"$0.00"}},{"$f":"IFERROR('MMA Rev-Exp Region 2'!$E$61/'MMA Rev-Exp Region 2'!$E$9, 0)","v":{"v":0,"d":"$0.00"}},{"$f":"IFERROR('MMA Rev-Exp Region 2'!$F$61/'MMA Rev-Exp Region 2'!$F$9, 0)","v":{"v":0,"d":"$0.00"}},{"$f":"IFERROR('MMA Rev-Exp Region 2'!$G$61/'MMA Rev-Exp Region 2'!$G$9, 0)","v":{"v":0,"d":"$0.00"}},{"$f":"IFERROR('MMA Rev-Exp Region 2'!$H$61/'MMA Rev-Exp Region 2'!$H$9, 0)","v":{"v":0,"d":"$0.00"}},{"$f":"IFERROR('MMA Rev-Exp Region 2'!$I$61/'MMA Rev-Exp Region 2'!$I$9, 0)","v":{"v":0,"d":"$0.00"}},{"$f":"IFERROR('MMA Rev-Exp Region 2'!$J$61/'MMA Rev-Exp Region 2'!$J$9, 0)","v":{"v":0,"d":"$0.00"}},{"$f":"IFERROR('MMA Rev-Exp Region 2'!$K$61/'MMA Rev-Exp Region 2'!$K$9, 0)","v":{"v":0,"d":"$0.00"}},{"$f":"IFERROR('MMA Rev-Exp Region 2'!$L$61/'MMA Rev-Exp Region 2'!$L$9, 0)","v":{"v":0,"d":"$0.00"}},{"$f":"IFERROR('MMA Rev-Exp Region 2'!$M$61/'MMA Rev-Exp Region 2'!$M$9, 0)","v":{"v":0,"d":"$0.00"}},{"$f":"IFERROR('MMA Rev-Exp Region 2'!$N$61/'MMA Rev-Exp Region 2'!$N$9, 0)","v":{"v":0,"d":"$0.00"}}]
["MMA",null,null,2016,"2016-12-31","Q1","2017-03-31","Region 2","Operating Expense","Medical Benefits Expense","Pharmacy Services","8.7","Prescription Drug Settlements",{"$f":"IFERROR('MMA Rev-Exp Region 2'!$D$62/'MMA Rev-Exp Region 2'!$D$9, 0)","v":{"v":0,"d":"$0.00"}},{"$f":"IFERROR('MMA Rev-Exp Region 2'!$E$62/'MMA Rev-Exp Region 2'!$E$9, 0)","v":{"v":0,"d":"$0.00"}},{"$f":"IFERROR('MMA Rev-Exp Region 2'!$F$62/'MMA Rev-Exp Region 2'!$F$9, 0)","v":{"v":0,"d":"$0.00"}},{"$f":"IFERROR('MMA Rev-Exp Region 2'!$G$62/'MMA Rev-Exp Region 2'!$G$9, 0)","v":{"v":0,"d":"$0.00"}},{"$f":"IFERROR('MMA Rev-Exp Region 2'!$H$62/'MMA Rev-Exp Region 2'!$H$9, 0)","v":{"v":0,"d":"$0.00"}},{"$f":"IFERROR('MMA Rev-Exp Region 2'!$I$62/'MMA Rev-Exp Region 2'!$I$9, 0)","v":{"v":0,"d":"$0.00"}},{"$f":"IFERROR('MMA Rev-Exp Region 2'!$J$62/'MMA Rev-Exp Region 2'!$J$9, 0)","v":{"v":0,"d":"$0.00"}},{"$f":"IFERROR('MMA Rev-Exp Region 2'!$K$62/'MMA Rev-Exp Region 2'!$K$9, 0)","v":{"v":0,"d":"$0.00"}},{"$f":"IFERROR('MMA Rev-Exp Region 2'!$L$62/'MMA Rev-Exp Region 2'!$L$9, 0)","v":{"v":0,"d":"$0.00"}},{"$f":"IFERROR('MMA Rev-Exp Region 2'!$M$62/'MMA Rev-Exp Region 2'!$M$9, 0)","v":{"v":0,"d":"$0.00"}},{"$f":"IFERROR('MMA Rev-Exp Region 2'!$N$62/'MMA Rev-Exp Region 2'!$N$9, 0)","v":{"v":0,"d":"$0.00"}}]
["MMA",null,null,2016,"2016-12-31","Q1","2017-03-31","Region 2","Operating Expense","Medical Benefits Expense","Other MMA Services",9.1,"Home Health, Private Duty Nursing, Personal Care FFS",{"$f":"IFERROR('MMA Rev-Exp Region 2'!$D$64/'MMA Rev-Exp Region 2'!$D$9, 0)","v":{"v":0,"d":"$0.00"}},{"$f":"IFERROR('MMA Rev-Exp Region 2'!$E$64/'MMA Rev-Exp Region 2'!$E$9, 0)","v":{"v":0,"d":"$0.00"}},{"$f":"IFERROR('MMA Rev-Exp Region 2'!$F$64/'MMA Rev-Exp Region 2'!$F$9, 0)","v":{"v":0,"d":"$0.00"}},{"$f":"IFERROR('MMA Rev-Exp Region 2'!$G$64/'MMA Rev-Exp Region 2'!$G$9, 0)","v":{"v":0,"d":"$0.00"}},{"$f":"IFERROR('MMA Rev-Exp Region 2'!$H$64/'MMA Rev-Exp Region 2'!$H$9, 0)","v":{"v":0,"d":"$0.00"}},{"$f":"IFERROR('MMA Rev-Exp Region 2'!$I$64/'MMA Rev-Exp Region 2'!$I$9, 0)","v":{"v":0,"d":"$0.00"}},{"$f":"IFERROR('MMA Rev-Exp Region 2'!$J$64/'MMA Rev-Exp Region 2'!$J$9, 0)","v":{"v":0,"d":"$0.00"}},{"$f":"IFERROR('MMA Rev-Exp Region 2'!$K$64/'MMA Rev-Exp Region 2'!$K$9, 0)","v":{"v":0,"d":"$0.00"}},{"$f":"IFERROR('MMA Rev-Exp Region 2'!$L$64/'MMA Rev-Exp Region 2'!$L$9, 0)","v":{"v":0,"d":"$0.00"}},{"$f":"IFERROR('MMA Rev-Exp Region 2'!$M$64/'MMA Rev-Exp Region 2'!$M$9, 0)","v":{"v":0,"d":"$0.00"}},{"$f":"IFERROR('MMA Rev-Exp Region 2'!$N$64/'MMA Rev-Exp Region 2'!$N$9, 0)","v":{"v":0,"d":"$0.00"}}]
["MMA",null,null,2016,"2016-12-31","Q1","2017-03-31","Region 2","Operating Expense","Medical Benefits Expense","Other MMA Services","9.2","Hospice FFS",{"$f":"IFERROR('MMA Rev-Exp Region 2'!$D$65/'MMA Rev-Exp Region 2'!$D$9, 0)","v":{"v":0,"d":"$0.00"}},{"$f":"IFERROR('MMA Rev-Exp Region 2'!$E$65/'MMA Rev-Exp Region 2'!$E$9, 0)","v":{"v":0,"d":"$0.00"}},{"$f":"IFERROR('MMA Rev-Exp Region 2'!$F$65/'MMA Rev-Exp Region 2'!$F$9, 0)","v":{"v":0,"d":"$0.00"}},{"$f":"IFERROR('MMA Rev-Exp Region 2'!$G$65/'MMA Rev-Exp Region 2'!$G$9, 0)","v":{"v":0,"d":"$0.00"}},{"$f":"IFERROR('MMA Rev-Exp Region 2'!$H$65/'MMA Rev-Exp Region 2'!$H$9, 0)","v":{"v":0,"d":"$0.00"}},{"$f":"IFERROR('MMA Rev-Exp Region 2'!$I$65/'MMA Rev-Exp Region 2'!$I$9, 0)","v":{"v":0,"d":"$0.00"}},{"$f":"IFERROR('MMA Rev-Exp Region 2'!$J$65/'MMA Rev-Exp Region 2'!$J$9, 0)","v":{"v":0,"d":"$0.00"}},{"$f":"IFERROR('MMA Rev-Exp Region 2'!$K$65/'MMA Rev-Exp Region 2'!$K$9, 0)","v":{"v":0,"d":"$0.00"}},{"$f":"IFERROR('MMA Rev-Exp Region 2'!$L$65/'MMA Rev-Exp Region 2'!$L$9, 0)","v":{"v":0,"d":"$0.00"}},{"$f":"IFERROR('MMA Rev-Exp Region 2'!$M$65/'MMA Rev-Exp Region 2'!$M$9, 0)","v":{"v":0,"d":"$0.00"}},{"$f":"IFERROR('MMA Rev-Exp Region 2'!$N$65/'MMA Rev-Exp Region 2'!$N$9, 0)","v":{"v":0,"d":"$0.00"}}]
["MMA",null,null,2016,"2016-12-31","Q1","2017-03-31","Region 2","Operating Expense","Medical Benefits Expense","Other MMA Services","9.3","DME FFS",{"$f":"IFERROR('MMA Rev-Exp Region 2'!$D$66/'MMA Rev-Exp Region 2'!$D$9, 0)","v":{"v":0,"d":"$0.00"}},{"$f":"IFERROR('MMA Rev-Exp Region 2'!$E$66/'MMA Rev-Exp Region 2'!$E$9, 0)","v":{"v":0,"d":"$0.00"}},{"$f":"IFERROR('MMA Rev-Exp Region 2'!$F$66/'MMA Rev-Exp Region 2'!$F$9, 0)","v":{"v":0,"d":"$0.00"}},{"$f":"IFERROR('MMA Rev-Exp Region 2'!$G$66/'MMA Rev-Exp Region 2'!$G$9, 0)","v":{"v":0,"d":"$0.00"}},{"$f":"IFERROR('MMA Rev-Exp Region 2'!$H$66/'MMA Rev-Exp Region 2'!$H$9, 0)","v":{"v":0,"d":"$0.00"}},{"$f":"IFERROR('MMA Rev-Exp Region 2'!$I$66/'MMA Rev-Exp Region 2'!$I$9, 0)","v":{"v":0,"d":"$0.00"}},{"$f":"IFERROR('MMA Rev-Exp Region 2'!$J$66/'MMA Rev-Exp Region 2'!$J$9, 0)","v":{"v":0,"d":"$0.00"}},{"$f":"IFERROR('MMA Rev-Exp Region 2'!$K$66/'MMA Rev-Exp Region 2'!$K$9, 0)","v":{"v":0,"d":"$0.00"}},{"$f":"IFERROR('MMA Rev-Exp Region 2'!$L$66/'MMA Rev-Exp Region 2'!$L$9, 0)","v":{"v":0,"d":"$0.00"}},{"$f":"IFERROR('MMA Rev-Exp Region 2'!$M$66/'MMA Rev-Exp Region 2'!$M$9, 0)","v":{"v":0,"d":"$0.00"}},{"$f":"IFERROR('MMA Rev-Exp Region 2'!$N$66/'MMA Rev-Exp Region 2'!$N$9, 0)","v":{"v":0,"d":"$0.00"}}]
["MMA",null,null,2016,"2016-12-31","Q1","2017-03-31","Region 2","Operating Expense","Medical Benefits Expense","Other MMA Services","9.4","Other State Plan Services FFS",{"$f":"IFERROR('MMA Rev-Exp Region 2'!$D$67/'MMA Rev-Exp Region 2'!$D$9, 0)","v":{"v":0,"d":"$0.00"}},{"$f":"IFERROR('MMA Rev-Exp Region 2'!$E$67/'MMA Rev-Exp Region 2'!$E$9, 0)","v":{"v":0,"d":"$0.00"}},{"$f":"IFERROR('MMA Rev-Exp Region 2'!$F$67/'MMA Rev-Exp Region 2'!$F$9, 0)","v":{"v":0,"d":"$0.00"}},{"$f":"IFERROR('MMA Rev-Exp Region 2'!$G$67/'MMA Rev-Exp Region 2'!$G$9, 0)","v":{"v":0,"d":"$0.00"}},{"$f":"IFERROR('MMA Rev-Exp Region 2'!$H$67/'MMA Rev-Exp Region 2'!$H$9, 0)","v":{"v":0,"d":"$0.00"}},{"$f":"IFERROR('MMA Rev-Exp Region 2'!$I$67/'MMA Rev-Exp Region 2'!$I$9, 0)","v":{"v":0,"d":"$0.00"}},{"$f":"IFERROR('MMA Rev-Exp Region 2'!$J$67/'MMA Rev-Exp Region 2'!$J$9, 0)","v":{"v":0,"d":"$0.00"}},{"$f":"IFERROR('MMA Rev-Exp Region 2'!$K$67/'MMA Rev-Exp Region 2'!$K$9, 0)","v":{"v":0,"d":"$0.00"}},{"$f":"IFERROR('MMA Rev-Exp Region 2'!$L$67/'MMA Rev-Exp Region 2'!$L$9, 0)","v":{"v":0,"d":"$0.00"}},{"$f":"IFERROR('MMA Rev-Exp Region 2'!$M$67/'MMA Rev-Exp Region 2'!$M$9, 0)","v":{"v":0,"d":"$0.00"}},{"$f":"IFERROR('MMA Rev-Exp Region 2'!$N$67/'MMA Rev-Exp Region 2'!$N$9, 0)","v":{"v":0,"d":"$0.00"}}]
["MMA",null,null,2016,"2016-12-31","Q1","2017-03-31","Region 2","Operating Expense","Medical Benefits Expense","Other MMA Services","9.5","Other Services Subcapitation",{"$f":"IFERROR('MMA Rev-Exp Region 2'!$D$68/'MMA Rev-Exp Region 2'!$D$9, 0)","v":{"v":0,"d":"$0.00"}},{"$f":"IFERROR('MMA Rev-Exp Region 2'!$E$68/'MMA Rev-Exp Region 2'!$E$9, 0)","v":{"v":0,"d":"$0.00"}},{"$f":"IFERROR('MMA Rev-Exp Region 2'!$F$68/'MMA Rev-Exp Region 2'!$F$9, 0)","v":{"v":0,"d":"$0.00"}},{"$f":"IFERROR('MMA Rev-Exp Region 2'!$G$68/'MMA Rev-Exp Region 2'!$G$9, 0)","v":{"v":0,"d":"$0.00"}},{"$f":"IFERROR('MMA Rev-Exp Region 2'!$H$68/'MMA Rev-Exp Region 2'!$H$9, 0)","v":{"v":0,"d":"$0.00"}},{"$f":"IFERROR('MMA Rev-Exp Region 2'!$I$68/'MMA Rev-Exp Region 2'!$I$9, 0)","v":{"v":0,"d":"$0.00"}},{"$f":"IFERROR('MMA Rev-Exp Region 2'!$J$68/'MMA Rev-Exp Region 2'!$J$9, 0)","v":{"v":0,"d":"$0.00"}},{"$f":"IFERROR('MMA Rev-Exp Region 2'!$K$68/'MMA Rev-Exp Region 2'!$K$9, 0)","v":{"v":0,"d":"$0.00"}},{"$f":"IFERROR('MMA Rev-Exp Region 2'!$L$68/'MMA Rev-Exp Region 2'!$L$9, 0)","v":{"v":0,"d":"$0.00"}},{"$f":"IFERROR('MMA Rev-Exp Region 2'!$M$68/'MMA Rev-Exp Region 2'!$M$9, 0)","v":{"v":0,"d":"$0.00"}},{"$f":"IFERROR('MMA Rev-Exp Region 2'!$N$68/'MMA Rev-Exp Region 2'!$N$9, 0)","v":{"v":0,"d":"$0.00"}}]
["MMA",null,null,2016,"2016-12-31","Q1","2017-03-31","Region 2","Operating Expense","Medical Benefits Expense","Other MMA Services","9.6","Ending IBNP for Other Services",{"$f":"IFERROR('MMA Rev-Exp Region 2'!$D$69/'MMA Rev-Exp Region 2'!$D$9, 0)","v":{"v":0,"d":"$0.00"}},{"$f":"IFERROR('MMA Rev-Exp Region 2'!$E$69/'MMA Rev-Exp Region 2'!$E$9, 0)","v":{"v":0,"d":"$0.00"}},{"$f":"IFERROR('MMA Rev-Exp Region 2'!$F$69/'MMA Rev-Exp Region 2'!$F$9, 0)","v":{"v":0,"d":"$0.00"}},{"$f":"IFERROR('MMA Rev-Exp Region 2'!$G$69/'MMA Rev-Exp Region 2'!$G$9, 0)","v":{"v":0,"d":"$0.00"}},{"$f":"IFERROR('MMA Rev-Exp Region 2'!$H$69/'MMA Rev-Exp Region 2'!$H$9, 0)","v":{"v":0,"d":"$0.00"}},{"$f":"IFERROR('MMA Rev-Exp Region 2'!$I$69/'MMA Rev-Exp Region 2'!$I$9, 0)","v":{"v":0,"d":"$0.00"}},{"$f":"IFERROR('MMA Rev-Exp Region 2'!$J$69/'MMA Rev-Exp Region 2'!$J$9, 0)","v":{"v":0,"d":"$0.00"}},{"$f":"IFERROR('MMA Rev-Exp Region 2'!$K$69/'MMA Rev-Exp Region 2'!$K$9, 0)","v":{"v":0,"d":"$0.00"}},{"$f":"IFERROR('MMA Rev-Exp Region 2'!$L$69/'MMA Rev-Exp Region 2'!$L$9, 0)","v":{"v":0,"d":"$0.00"}},{"$f":"IFERROR('MMA Rev-Exp Region 2'!$M$69/'MMA Rev-Exp Region 2'!$M$9, 0)","v":{"v":0,"d":"$0.00"}},{"$f":"IFERROR('MMA Rev-Exp Region 2'!$N$69/'MMA Rev-Exp Region 2'!$N$9, 0)","v":{"v":0,"d":"$0.00"}}]
["MMA",null,null,2016,"2016-12-31","Q1","2017-03-31","Region 2","Operating Expense","Medical Benefits Expense","Other MMA Services","9.7","Other Services Settlements",{"$f":"IFERROR('MMA Rev-Exp Region 2'!$D$70/'MMA Rev-Exp Region 2'!$D$9, 0)","v":{"v":0,"d":"$0.00"}},{"$f":"IFERROR('MMA Rev-Exp Region 2'!$E$70/'MMA Rev-Exp Region 2'!$E$9, 0)","v":{"v":0,"d":"$0.00"}},{"$f":"IFERROR('MMA Rev-Exp Region 2'!$F$70/'MMA Rev-Exp Region 2'!$F$9, 0)","v":{"v":0,"d":"$0.00"}},{"$f":"IFERROR('MMA Rev-Exp Region 2'!$G$70/'MMA Rev-Exp Region 2'!$G$9, 0)","v":{"v":0,"d":"$0.00"}},{"$f":"IFERROR('MMA Rev-Exp Region 2'!$H$70/'MMA Rev-Exp Region 2'!$H$9, 0)","v":{"v":0,"d":"$0.00"}},{"$f":"IFERROR('MMA Rev-Exp Region 2'!$I$70/'MMA Rev-Exp Region 2'!$I$9, 0)","v":{"v":0,"d":"$0.00"}},{"$f":"IFERROR('MMA Rev-Exp Region 2'!$J$70/'MMA Rev-Exp Region 2'!$J$9, 0)","v":{"v":0,"d":"$0.00"}},{"$f":"IFERROR('MMA Rev-Exp Region 2'!$K$70/'MMA Rev-Exp Region 2'!$K$9, 0)","v":{"v":0,"d":"$0.00"}},{"$f":"IFERROR('MMA Rev-Exp Region 2'!$L$70/'MMA Rev-Exp Region 2'!$L$9, 0)","v":{"v":0,"d":"$0.00"}},{"$f":"IFERROR('MMA Rev-Exp Region 2'!$M$70/'MMA Rev-Exp Region 2'!$M$9, 0)","v":{"v":0,"d":"$0.00"}},{"$f":"IFERROR('MMA Rev-Exp Region 2'!$N$70/'MMA Rev-Exp Region 2'!$N$9, 0)","v":{"v":0,"d":"$0.00"}}]
["MMA",null,null,2016,"2016-12-31","Q1","2017-03-31","Region 2","Operating Expense","Medical Benefits Expense","Expanded Benefits","10.1","Expanded Benefits FFS",{"$f":"IFERROR('MMA Rev-Exp Region 2'!$D$72/'MMA Rev-Exp Region 2'!$D$9, 0)","v":{"v":0,"d":"$0.00"}},{"$f":"IFERROR('MMA Rev-Exp Region 2'!$E$72/'MMA Rev-Exp Region 2'!$E$9, 0)","v":{"v":0,"d":"$0.00"}},{"$f":"IFERROR('MMA Rev-Exp Region 2'!$F$72/'MMA Rev-Exp Region 2'!$F$9, 0)","v":{"v":0,"d":"$0.00"}},{"$f":"IFERROR('MMA Rev-Exp Region 2'!$G$72/'MMA Rev-Exp Region 2'!$G$9, 0)","v":{"v":0,"d":"$0.00"}},{"$f":"IFERROR('MMA Rev-Exp Region 2'!$H$72/'MMA Rev-Exp Region 2'!$H$9, 0)","v":{"v":0,"d":"$0.00"}},{"$f":"IFERROR('MMA Rev-Exp Region 2'!$I$72/'MMA Rev-Exp Region 2'!$I$9, 0)","v":{"v":0,"d":"$0.00"}},{"$f":"IFERROR('MMA Rev-Exp Region 2'!$J$72/'MMA Rev-Exp Region 2'!$J$9, 0)","v":{"v":0,"d":"$0.00"}},{"$f":"IFERROR('MMA Rev-Exp Region 2'!$K$72/'MMA Rev-Exp Region 2'!$K$9, 0)","v":{"v":0,"d":"$0.00"}},{"$f":"IFERROR('MMA Rev-Exp Region 2'!$L$72/'MMA Rev-Exp Region 2'!$L$9, 0)","v":{"v":0,"d":"$0.00"}},{"$f":"IFERROR('MMA Rev-Exp Region 2'!$M$72/'MMA Rev-Exp Region 2'!$M$9, 0)","v":{"v":0,"d":"$0.00"}},{"$f":"IFERROR('MMA Rev-Exp Region 2'!$N$72/'MMA Rev-Exp Region 2'!$N$9, 0)","v":{"v":0,"d":"$0.00"}}]
["MMA",null,null,2016,"2016-12-31","Q1","2017-03-31","Region 2","Operating Expense","Medical Benefits Expense","Expanded Benefits","10.2","Expanded benefits Subcapitation",{"$f":"IFERROR('MMA Rev-Exp Region 2'!$D$73/'MMA Rev-Exp Region 2'!$D$9, 0)","v":{"v":0,"d":"$0.00"}},{"$f":"IFERROR('MMA Rev-Exp Region 2'!$E$73/'MMA Rev-Exp Region 2'!$E$9, 0)","v":{"v":0,"d":"$0.00"}},{"$f":"IFERROR('MMA Rev-Exp Region 2'!$F$73/'MMA Rev-Exp Region 2'!$F$9, 0)","v":{"v":0,"d":"$0.00"}},{"$f":"IFERROR('MMA Rev-Exp Region 2'!$G$73/'MMA Rev-Exp Region 2'!$G$9, 0)","v":{"v":0,"d":"$0.00"}},{"$f":"IFERROR('MMA Rev-Exp Region 2'!$H$73/'MMA Rev-Exp Region 2'!$H$9, 0)","v":{"v":0,"d":"$0.00"}},{"$f":"IFERROR('MMA Rev-Exp Region 2'!$I$73/'MMA Rev-Exp Region 2'!$I$9, 0)","v":{"v":0,"d":"$0.00"}},{"$f":"IFERROR('MMA Rev-Exp Region 2'!$J$73/'MMA Rev-Exp Region 2'!$J$9, 0)","v":{"v":0,"d":"$0.00"}},{"$f":"IFERROR('MMA Rev-Exp Region 2'!$K$73/'MMA Rev-Exp Region 2'!$K$9, 0)","v":{"v":0,"d":"$0.00"}},{"$f":"IFERROR('MMA Rev-Exp Region 2'!$L$73/'MMA Rev-Exp Region 2'!$L$9, 0)","v":{"v":0,"d":"$0.00"}},{"$f":"IFERROR('MMA Rev-Exp Region 2'!$M$73/'MMA Rev-Exp Region 2'!$M$9, 0)","v":{"v":0,"d":"$0.00"}},{"$f":"IFERROR('MMA Rev-Exp Region 2'!$N$73/'MMA Rev-Exp Region 2'!$N$9, 0)","v":{"v":0,"d":"$0.00"}}]
["MMA",null,null,2016,"2016-12-31","Q1","2017-03-31","Region 2","Operating Expense","Medical Benefits Expense","Expanded Benefits","10.3","Ending IBNP for Expanded Benefits",{"$f":"IFERROR('MMA Rev-Exp Region 2'!$D$74/'MMA Rev-Exp Region 2'!$D$9, 0)","v":{"v":0,"d":"$0.00"}},{"$f":"IFERROR('MMA Rev-Exp Region 2'!$E$74/'MMA Rev-Exp Region 2'!$E$9, 0)","v":{"v":0,"d":"$0.00"}},{"$f":"IFERROR('MMA Rev-Exp Region 2'!$F$74/'MMA Rev-Exp Region 2'!$F$9, 0)","v":{"v":0,"d":"$0.00"}},{"$f":"IFERROR('MMA Rev-Exp Region 2'!$G$74/'MMA Rev-Exp Region 2'!$G$9, 0)","v":{"v":0,"d":"$0.00"}},{"$f":"IFERROR('MMA Rev-Exp Region 2'!$H$74/'MMA Rev-Exp Region 2'!$H$9, 0)","v":{"v":0,"d":"$0.00"}},{"$f":"IFERROR('MMA Rev-Exp Region 2'!$I$74/'MMA Rev-Exp Region 2'!$I$9, 0)","v":{"v":0,"d":"$0.00"}},{"$f":"IFERROR('MMA Rev-Exp Region 2'!$J$74/'MMA Rev-Exp Region 2'!$J$9, 0)","v":{"v":0,"d":"$0.00"}},{"$f":"IFERROR('MMA Rev-Exp Region 2'!$K$74/'MMA Rev-Exp Region 2'!$K$9, 0)","v":{"v":0,"d":"$0.00"}},{"$f":"IFERROR('MMA Rev-Exp Region 2'!$L$74/'MMA Rev-Exp Region 2'!$L$9, 0)","v":{"v":0,"d":"$0.00"}},{"$f":"IFERROR('MMA Rev-Exp Region 2'!$M$74/'MMA Rev-Exp Region 2'!$M$9, 0)","v":{"v":0,"d":"$0.00"}},{"$f":"IFERROR('MMA Rev-Exp Region 2'!$N$74/'MMA Rev-Exp Region 2'!$N$9, 0)","v":{"v":0,"d":"$0.00"}}]
["MMA",null,null,2016,"2016-12-31","Q1","2017-03-31","Region 2","Operating Expense","Medical Benefits Expense","Expanded Benefits","10.4","Expanded Benefits Settlements",{"$f":"IFERROR('MMA Rev-Exp Region 2'!$D$75/'MMA Rev-Exp Region 2'!$D$9, 0)","v":{"v":0,"d":"$0.00"}},{"$f":"IFERROR('MMA Rev-Exp Region 2'!$E$75/'MMA Rev-Exp Region 2'!$E$9, 0)","v":{"v":0,"d":"$0.00"}},{"$f":"IFERROR('MMA Rev-Exp Region 2'!$F$75/'MMA Rev-Exp Region 2'!$F$9, 0)","v":{"v":0,"d":"$0.00"}},{"$f":"IFERROR('MMA Rev-Exp Region 2'!$G$75/'MMA Rev-Exp Region 2'!$G$9, 0)","v":{"v":0,"d":"$0.00"}},{"$f":"IFERROR('MMA Rev-Exp Region 2'!$H$75/'MMA Rev-Exp Region 2'!$H$9, 0)","v":{"v":0,"d":"$0.00"}},{"$f":"IFERROR('MMA Rev-Exp Region 2'!$I$75/'MMA Rev-Exp Region 2'!$I$9, 0)","v":{"v":0,"d":"$0.00"}},{"$f":"IFERROR('MMA Rev-Exp Region 2'!$J$75/'MMA Rev-Exp Region 2'!$J$9, 0)","v":{"v":0,"d":"$0.00"}},{"$f":"IFERROR('MMA Rev-Exp Region 2'!$K$75/'MMA Rev-Exp Region 2'!$K$9, 0)","v":{"v":0,"d":"$0.00"}},{"$f":"IFERROR('MMA Rev-Exp Region 2'!$L$75/'MMA Rev-Exp Region 2'!$L$9, 0)","v":{"v":0,"d":"$0.00"}},{"$f":"IFERROR('MMA Rev-Exp Region 2'!$M$75/'MMA Rev-Exp Region 2'!$M$9, 0)","v":{"v":0,"d":"$0.00"}},{"$f":"IFERROR('MMA Rev-Exp Region 2'!$N$75/'MMA Rev-Exp Region 2'!$N$9, 0)","v":{"v":0,"d":"$0.00"}}]
["MMA",null,null,2016,"2016-12-31","Q1","2017-03-31","Region 2","Operating Expense","Medical Benefits Expense","Other Medical","11.5","TPL & Fraud/Abuse Recoveries",{"$f":"IFERROR('MMA Rev-Exp Region 2'!$D$81/'MMA Rev-Exp Region 2'!$D$9, 0)","v":{"v":0,"d":"$0.00"}},{"$f":"IFERROR('MMA Rev-Exp Region 2'!$E$81/'MMA Rev-Exp Region 2'!$E$9, 0)","v":{"v":0,"d":"$0.00"}},{"$f":"IFERROR('MMA Rev-Exp Region 2'!$F$81/'MMA Rev-Exp Region 2'!$F$9, 0)","v":{"v":0,"d":"$0.00"}},{"$f":"IFERROR('MMA Rev-Exp Region 2'!$G$81/'MMA Rev-Exp Region 2'!$G$9, 0)","v":{"v":0,"d":"$0.00"}},{"$f":"IFERROR('MMA Rev-Exp Region 2'!$H$81/'MMA Rev-Exp Region 2'!$H$9, 0)","v":{"v":0,"d":"$0.00"}},{"$f":"IFERROR('MMA Rev-Exp Region 2'!$I$81/'MMA Rev-Exp Region 2'!$I$9, 0)","v":{"v":0,"d":"$0.00"}},{"$f":"IFERROR('MMA Rev-Exp Region 2'!$J$81/'MMA Rev-Exp Region 2'!$J$9, 0)","v":{"v":0,"d":"$0.00"}},{"$f":"IFERROR('MMA Rev-Exp Region 2'!$K$81/'MMA Rev-Exp Region 2'!$K$9, 0)","v":{"v":0,"d":"$0.00"}},{"$f":"IFERROR('MMA Rev-Exp Region 2'!$L$81/'MMA Rev-Exp Region 2'!$L$9, 0)","v":{"v":0,"d":"$0.00"}},{"$f":"IFERROR('MMA Rev-Exp Region 2'!$M$81/'MMA Rev-Exp Region 2'!$M$9, 0)","v":{"v":0,"d":"$0.00"}},{"$f":"IFERROR('MMA Rev-Exp Region 2'!$N$81/'MMA Rev-Exp Region 2'!$N$9, 0)","v":{"v":0,"d":"$0.00"}}]
["MMA",null,null,2016,"2016-12-31","Q1","2017-03-31","Region 2","Operating Expense","Medical Benefits Expense","Other Medical","11.6.1","Premium Deficiency Reserve",{"$f":"IFERROR('MMA Rev-Exp Region 2'!$D$82/'MMA Rev-Exp Region 2'!$D$9, 0)","v":{"v":0,"d":"$0.00"}},{"$f":"IFERROR('MMA Rev-Exp Region 2'!$E$82/'MMA Rev-Exp Region 2'!$E$9, 0)","v":{"v":0,"d":"$0.00"}},{"$f":"IFERROR('MMA Rev-Exp Region 2'!$F$82/'MMA Rev-Exp Region 2'!$F$9, 0)","v":{"v":0,"d":"$0.00"}},{"$f":"IFERROR('MMA Rev-Exp Region 2'!$G$82/'MMA Rev-Exp Region 2'!$G$9, 0)","v":{"v":0,"d":"$0.00"}},{"$f":"IFERROR('MMA Rev-Exp Region 2'!$H$82/'MMA Rev-Exp Region 2'!$H$9, 0)","v":{"v":0,"d":"$0.00"}},{"$f":"IFERROR('MMA Rev-Exp Region 2'!$I$82/'MMA Rev-Exp Region 2'!$I$9, 0)","v":{"v":0,"d":"$0.00"}},{"$f":"IFERROR('MMA Rev-Exp Region 2'!$J$82/'MMA Rev-Exp Region 2'!$J$9, 0)","v":{"v":0,"d":"$0.00"}},{"$f":"IFERROR('MMA Rev-Exp Region 2'!$K$82/'MMA Rev-Exp Region 2'!$K$9, 0)","v":{"v":0,"d":"$0.00"}},{"$f":"IFERROR('MMA Rev-Exp Region 2'!$L$82/'MMA Rev-Exp Region 2'!$L$9, 0)","v":{"v":0,"d":"$0.00"}},{"$f":"IFERROR('MMA Rev-Exp Region 2'!$M$82/'MMA Rev-Exp Region 2'!$M$9, 0)","v":{"v":0,"d":"$0.00"}},{"$f":"IFERROR('MMA Rev-Exp Region 2'!$N$82/'MMA Rev-Exp Region 2'!$N$9, 0)","v":{"v":0,"d":"$0.00"}}]
["MMA",null,null,2016,"2016-12-31","Q1","2017-03-31","Region 2","Operating Expense","Medical Benefits Expense","Other Medical","11.8","Reinsurance Premiums",{"$f":"IFERROR('MMA Rev-Exp Region 2'!$D$84/'MMA Rev-Exp Region 2'!$D$9, 0)","v":{"v":0,"d":"$0.00"}},{"$f":"IFERROR('MMA Rev-Exp Region 2'!$E$84/'MMA Rev-Exp Region 2'!$E$9, 0)","v":{"v":0,"d":"$0.00"}},{"$f":"IFERROR('MMA Rev-Exp Region 2'!$F$84/'MMA Rev-Exp Region 2'!$F$9, 0)","v":{"v":0,"d":"$0.00"}},{"$f":"IFERROR('MMA Rev-Exp Region 2'!$G$84/'MMA Rev-Exp Region 2'!$G$9, 0)","v":{"v":0,"d":"$0.00"}},{"$f":"IFERROR('MMA Rev-Exp Region 2'!$H$84/'MMA Rev-Exp Region 2'!$H$9, 0)","v":{"v":0,"d":"$0.00"}},{"$f":"IFERROR('MMA Rev-Exp Region 2'!$I$84/'MMA Rev-Exp Region 2'!$I$9, 0)","v":{"v":0,"d":"$0.00"}},{"$f":"IFERROR('MMA Rev-Exp Region 2'!$J$84/'MMA Rev-Exp Region 2'!$J$9, 0)","v":{"v":0,"d":"$0.00"}},{"$f":"IFERROR('MMA Rev-Exp Region 2'!$K$84/'MMA Rev-Exp Region 2'!$K$9, 0)","v":{"v":0,"d":"$0.00"}},{"$f":"IFERROR('MMA Rev-Exp Region 2'!$L$84/'MMA Rev-Exp Region 2'!$L$9, 0)","v":{"v":0,"d":"$0.00"}},{"$f":"IFERROR('MMA Rev-Exp Region 2'!$M$84/'MMA Rev-Exp Region 2'!$M$9, 0)","v":{"v":0,"d":"$0.00"}},{"$f":"IFERROR('MMA Rev-Exp Region 2'!$N$84/'MMA Rev-Exp Region 2'!$N$9, 0)","v":{"v":0,"d":"$0.00"}}]
["MMA",null,null,2016,"2016-12-31","Q1","2017-03-31","Region 2","Operating Expense","Medical Benefits Expense","Other Medical","11.9","Reinsurance Recoveries",{"$f":"IFERROR('MMA Rev-Exp Region 2'!$D$85/'MMA Rev-Exp Region 2'!$D$9, 0)","v":{"v":0,"d":"$0.00"}},{"$f":"IFERROR('MMA Rev-Exp Region 2'!$E$85/'MMA Rev-Exp Region 2'!$E$9, 0)","v":{"v":0,"d":"$0.00"}},{"$f":"IFERROR('MMA Rev-Exp Region 2'!$F$85/'MMA Rev-Exp Region 2'!$F$9, 0)","v":{"v":0,"d":"$0.00"}},{"$f":"IFERROR('MMA Rev-Exp Region 2'!$G$85/'MMA Rev-Exp Region 2'!$G$9, 0)","v":{"v":0,"d":"$0.00"}},{"$f":"IFERROR('MMA Rev-Exp Region 2'!$H$85/'MMA Rev-Exp Region 2'!$H$9, 0)","v":{"v":0,"d":"$0.00"}},{"$f":"IFERROR('MMA Rev-Exp Region 2'!$I$85/'MMA Rev-Exp Region 2'!$I$9, 0)","v":{"v":0,"d":"$0.00"}},{"$f":"IFERROR('MMA Rev-Exp Region 2'!$J$85/'MMA Rev-Exp Region 2'!$J$9, 0)","v":{"v":0,"d":"$0.00"}},{"$f":"IFERROR('MMA Rev-Exp Region 2'!$K$85/'MMA Rev-Exp Region 2'!$K$9, 0)","v":{"v":0,"d":"$0.00"}},{"$f":"IFERROR('MMA Rev-Exp Region 2'!$L$85/'MMA Rev-Exp Region 2'!$L$9, 0)","v":{"v":0,"d":"$0.00"}},{"$f":"IFERROR('MMA Rev-Exp Region 2'!$M$85/'MMA Rev-Exp Region 2'!$M$9, 0)","v":{"v":0,"d":"$0.00"}},{"$f":"IFERROR('MMA Rev-Exp Region 2'!$N$85/'MMA Rev-Exp Region 2'!$N$9, 0)","v":{"v":0,"d":"$0.00"}}]
["MMA",null,null,2016,"2016-12-31","Q1","2017-03-31","Region 2","Operating Expense","Administrative Expense","Administrative","12.1","Salaries & Benefits",{"$f":"IFERROR('MMA Rev-Exp Region 2'!$D$90/'MMA Rev-Exp Region 2'!$D$9, 0)","v":{"v":0,"d":"$0.00"}},{"$f":"IFERROR('MMA Rev-Exp Region 2'!$E$90/'MMA Rev-Exp Region 2'!$D$9, 0)","v":{"v":0,"d":"$0.00"}},{"$f":"IFERROR('MMA Rev-Exp Region 2'!$F$90/'MMA Rev-Exp Region 2'!$D$9, 0)","v":{"v":0,"d":"$0.00"}},{"$f":"IFERROR('MMA Rev-Exp Region 2'!$G$90/'MMA Rev-Exp Region 2'!$G$9, 0)","v":{"v":0,"d":"$0.00"}},{"$f":"IFERROR('MMA Rev-Exp Region 2'!$H$90/'MMA Rev-Exp Region 2'!$H$9, 0)","v":{"v":0,"d":"$0.00"}},{"$f":"IFERROR('MMA Rev-Exp Region 2'!$I$90/'MMA Rev-Exp Region 2'!$I$9, 0)","v":{"v":0,"d":"$0.00"}},{"$f":"IFERROR('MMA Rev-Exp Region 2'!$J$90/'MMA Rev-Exp Region 2'!$J$9, 0)","v":{"v":0,"d":"$0.00"}},{"$f":"IFERROR('MMA Rev-Exp Region 2'!$K$90/'MMA Rev-Exp Region 2'!$K$9, 0)","v":{"v":0,"d":"$0.00"}},{"$f":"IFERROR('MMA Rev-Exp Region 2'!$L$90/'MMA Rev-Exp Region 2'!$L$9, 0)","v":{"v":0,"d":"$0.00"}},{"$f":"IFERROR('MMA Rev-Exp Region 2'!$M$90/'MMA Rev-Exp Region 2'!$M$9, 0)","v":{"v":0,"d":"$0.00"}},{"$f":"IFERROR('MMA Rev-Exp Region 2'!$N$90/'MMA Rev-Exp Region 2'!$N$9, 0)","v":{"v":0,"d":"$0.00"}}]
["MMA",null,null,2016,"2016-12-31","Q1","2017-03-31","Region 2","Operating Expense","Administrative Expense","Administrative","12.2","Administrative Services",{"$f":"IFERROR('MMA Rev-Exp Region 2'!$D$91/'MMA Rev-Exp Region 2'!$D$9, 0)","v":{"v":0,"d":"$0.00"}},{"$f":"IFERROR('MMA Rev-Exp Region 2'!$E$91/'MMA Rev-Exp Region 2'!$D$9, 0)","v":{"v":0,"d":"$0.00"}},{"$f":"IFERROR('MMA Rev-Exp Region 2'!$F$91/'MMA Rev-Exp Region 2'!$D$9, 0)","v":{"v":0,"d":"$0.00"}},{"$f":"IFERROR('MMA Rev-Exp Region 2'!$G$91/'MMA Rev-Exp Region 2'!$G$9, 0)","v":{"v":0,"d":"$0.00"}},{"$f":"IFERROR('MMA Rev-Exp Region 2'!$H$91/'MMA Rev-Exp Region 2'!$H$9, 0)","v":{"v":0,"d":"$0.00"}},{"$f":"IFERROR('MMA Rev-Exp Region 2'!$I$91/'MMA Rev-Exp Region 2'!$I$9, 0)","v":{"v":0,"d":"$0.00"}},{"$f":"IFERROR('MMA Rev-Exp Region 2'!$J$91/'MMA Rev-Exp Region 2'!$J$9, 0)","v":{"v":0,"d":"$0.00"}},{"$f":"IFERROR('MMA Rev-Exp Region 2'!$K$91/'MMA Rev-Exp Region 2'!$K$9, 0)","v":{"v":0,"d":"$0.00"}},{"$f":"IFERROR('MMA Rev-Exp Region 2'!$L$91/'MMA Rev-Exp Region 2'!$L$9, 0)","v":{"v":0,"d":"$0.00"}},{"$f":"IFERROR('MMA Rev-Exp Region 2'!$M$91/'MMA Rev-Exp Region 2'!$M$9, 0)","v":{"v":0,"d":"$0.00"}},{"$f":"IFERROR('MMA Rev-Exp Region 2'!$N$91/'MMA Rev-Exp Region 2'!$N$9, 0)","v":{"v":0,"d":"$0.00"}}]
["MMA",null,null,2016,"2016-12-31","Q1","2017-03-31","Region 2","Operating Expense","Administrative Expense","Administrative","12.3","Information Systems",{"$f":"IFERROR('MMA Rev-Exp Region 2'!$D$92/'MMA Rev-Exp Region 2'!$D$9, 0)","v":{"v":0,"d":"$0.00"}},{"$f":"IFERROR('MMA Rev-Exp Region 2'!$E$92/'MMA Rev-Exp Region 2'!$D$9, 0)","v":{"v":0,"d":"$0.00"}},{"$f":"IFERROR('MMA Rev-Exp Region 2'!$F$92/'MMA Rev-Exp Region 2'!$D$9, 0)","v":{"v":0,"d":"$0.00"}},{"$f":"IFERROR('MMA Rev-Exp Region 2'!$G$92/'MMA Rev-Exp Region 2'!$G$9, 0)","v":{"v":0,"d":"$0.00"}},{"$f":"IFERROR('MMA Rev-Exp Region 2'!$H$92/'MMA Rev-Exp Region 2'!$H$9, 0)","v":{"v":0,"d":"$0.00"}},{"$f":"IFERROR('MMA Rev-Exp Region 2'!$I$92/'MMA Rev-Exp Region 2'!$I$9, 0)","v":{"v":0,"d":"$0.00"}},{"$f":"IFERROR('MMA Rev-Exp Region 2'!$J$92/'MMA Rev-Exp Region 2'!$J$9, 0)","v":{"v":0,"d":"$0.00"}},{"$f":"IFERROR('MMA Rev-Exp Region 2'!$K$92/'MMA Rev-Exp Region 2'!$K$9, 0)","v":{"v":0,"d":"$0.00"}},{"$f":"IFERROR('MMA Rev-Exp Region 2'!$L$92/'MMA Rev-Exp Region 2'!$L$9, 0)","v":{"v":0,"d":"$0.00"}},{"$f":"IFERROR('MMA Rev-Exp Region 2'!$M$92/'MMA Rev-Exp Region 2'!$M$9, 0)","v":{"v":0,"d":"$0.00"}},{"$f":"IFERROR('MMA Rev-Exp Region 2'!$N$92/'MMA Rev-Exp Region 2'!$N$9, 0)","v":{"v":0,"d":"$0.00"}}]
["MMA",null,null,2016,"2016-12-31","Q1","2017-03-31","Region 2","Operating Expense","Administrative Expense","Administrative","12.4","Marketing Expenses",{"$f":"IFERROR('MMA Rev-Exp Region 2'!$D$93/'MMA Rev-Exp Region 2'!$D$9, 0)","v":{"v":0,"d":"$0.00"}},{"$f":"IFERROR('MMA Rev-Exp Region 2'!$E$93/'MMA Rev-Exp Region 2'!$D$9, 0)","v":{"v":0,"d":"$0.00"}},{"$f":"IFERROR('MMA Rev-Exp Region 2'!$F$93/'MMA Rev-Exp Region 2'!$D$9, 0)","v":{"v":0,"d":"$0.00"}},{"$f":"IFERROR('MMA Rev-Exp Region 2'!$G$93/'MMA Rev-Exp Region 2'!$G$9, 0)","v":{"v":0,"d":"$0.00"}},{"$f":"IFERROR('MMA Rev-Exp Region 2'!$H$93/'MMA Rev-Exp Region 2'!$H$9, 0)","v":{"v":0,"d":"$0.00"}},{"$f":"IFERROR('MMA Rev-Exp Region 2'!$I$93/'MMA Rev-Exp Region 2'!$I$9, 0)","v":{"v":0,"d":"$0.00"}},{"$f":"IFERROR('MMA Rev-Exp Region 2'!$J$93/'MMA Rev-Exp Region 2'!$J$9, 0)","v":{"v":0,"d":"$0.00"}},{"$f":"IFERROR('MMA Rev-Exp Region 2'!$K$93/'MMA Rev-Exp Region 2'!$K$9, 0)","v":{"v":0,"d":"$0.00"}},{"$f":"IFERROR('MMA Rev-Exp Region 2'!$L$93/'MMA Rev-Exp Region 2'!$L$9, 0)","v":{"v":0,"d":"$0.00"}},{"$f":"IFERROR('MMA Rev-Exp Region 2'!$M$93/'MMA Rev-Exp Region 2'!$M$9, 0)","v":{"v":0,"d":"$0.00"}},{"$f":"IFERROR('MMA Rev-Exp Region 2'!$N$93/'MMA Rev-Exp Region 2'!$N$9, 0)","v":{"v":0,"d":"$0.00"}}]
["MMA",null,null,2016,"2016-12-31","Q1","2017-03-31","Region 2","Operating Expense","Administrative Expense","Administrative","12.5","General  Administration",{"$f":"IFERROR('MMA Rev-Exp Region 2'!$D$94/'MMA Rev-Exp Region 2'!$D$9, 0)","v":{"v":0,"d":"$0.00"}},{"$f":"IFERROR('MMA Rev-Exp Region 2'!$E$94/'MMA Rev-Exp Region 2'!$D$9, 0)","v":{"v":0,"d":"$0.00"}},{"$f":"IFERROR('MMA Rev-Exp Region 2'!$F$94/'MMA Rev-Exp Region 2'!$D$9, 0)","v":{"v":0,"d":"$0.00"}},{"$f":"IFERROR('MMA Rev-Exp Region 2'!$G$94/'MMA Rev-Exp Region 2'!$G$9, 0)","v":{"v":0,"d":"$0.00"}},{"$f":"IFERROR('MMA Rev-Exp Region 2'!$H$94/'MMA Rev-Exp Region 2'!$H$9, 0)","v":{"v":0,"d":"$0.00"}},{"$f":"IFERROR('MMA Rev-Exp Region 2'!$I$94/'MMA Rev-Exp Region 2'!$I$9, 0)","v":{"v":0,"d":"$0.00"}},{"$f":"IFERROR('MMA Rev-Exp Region 2'!$J$94/'MMA Rev-Exp Region 2'!$J$9, 0)","v":{"v":0,"d":"$0.00"}},{"$f":"IFERROR('MMA Rev-Exp Region 2'!$K$94/'MMA Rev-Exp Region 2'!$K$9, 0)","v":{"v":0,"d":"$0.00"}},{"$f":"IFERROR('MMA Rev-Exp Region 2'!$L$94/'MMA Rev-Exp Region 2'!$L$9, 0)","v":{"v":0,"d":"$0.00"}},{"$f":"IFERROR('MMA Rev-Exp Region 2'!$M$94/'MMA Rev-Exp Region 2'!$M$9, 0)","v":{"v":0,"d":"$0.00"}},{"$f":"IFERROR('MMA Rev-Exp Region 2'!$N$94/'MMA Rev-Exp Region 2'!$N$9, 0)","v":{"v":0,"d":"$0.00"}}]
["MMA",null,null,2016,"2016-12-31","Q1","2017-03-31","Region 2","Operating Expense","Administrative Expense","Administrative","12.6","Compliance/Regulatory",{"$f":"IFERROR('MMA Rev-Exp Region 2'!$D$95/'MMA Rev-Exp Region 2'!$D$9, 0)","v":{"v":0,"d":"$0.00"}},{"$f":"IFERROR('MMA Rev-Exp Region 2'!$E$95/'MMA Rev-Exp Region 2'!$D$9, 0)","v":{"v":0,"d":"$0.00"}},{"$f":"IFERROR('MMA Rev-Exp Region 2'!$F$95/'MMA Rev-Exp Region 2'!$D$9, 0)","v":{"v":0,"d":"$0.00"}},{"$f":"IFERROR('MMA Rev-Exp Region 2'!$G$95/'MMA Rev-Exp Region 2'!$G$9, 0)","v":{"v":0,"d":"$0.00"}},{"$f":"IFERROR('MMA Rev-Exp Region 2'!$H$95/'MMA Rev-Exp Region 2'!$H$9, 0)","v":{"v":0,"d":"$0.00"}},{"$f":"IFERROR('MMA Rev-Exp Region 2'!$I$95/'MMA Rev-Exp Region 2'!$I$9, 0)","v":{"v":0,"d":"$0.00"}},{"$f":"IFERROR('MMA Rev-Exp Region 2'!$J$95/'MMA Rev-Exp Region 2'!$J$9, 0)","v":{"v":0,"d":"$0.00"}},{"$f":"IFERROR('MMA Rev-Exp Region 2'!$K$95/'MMA Rev-Exp Region 2'!$K$9, 0)","v":{"v":0,"d":"$0.00"}},{"$f":"IFERROR('MMA Rev-Exp Region 2'!$L$95/'MMA Rev-Exp Region 2'!$L$9, 0)","v":{"v":0,"d":"$0.00"}},{"$f":"IFERROR('MMA Rev-Exp Region 2'!$M$95/'MMA Rev-Exp Region 2'!$M$9, 0)","v":{"v":0,"d":"$0.00"}},{"$f":"IFERROR('MMA Rev-Exp Region 2'!$N$95/'MMA Rev-Exp Region 2'!$N$9, 0)","v":{"v":0,"d":"$0.00"}}]
["MMA",null,null,2016,"2016-12-31","Q1","2017-03-31","Region 2","Operating Expense","Taxes & Fees","Taxes & Fees","13.1","State Premium tax",{"$f":"IFERROR('MMA Rev-Exp Region 2'!$D$97/'MMA Rev-Exp Region 2'!$D$9, 0)","v":{"v":0,"d":"$0.00"}}]
["MMA",null,null,2016,"2016-12-31","Q1","2017-03-31","Region 2","Operating Expense","Taxes & Fees","Taxes & Fees","13.2","Department of Insurance Assessments",{"$f":"IFERROR('MMA Rev-Exp Region 2'!$D$98/'MMA Rev-Exp Region 2'!$D$9, 0)","v":{"v":0,"d":"$0.00"}}]
["MMA",null,null,2016,"2016-12-31","Q1","2017-03-31","Region 2","Operating Expense","Taxes & Fees","Taxes & Fees","13.3","Section 9010 Health Insurance Providers Fee",{"$f":"IFERROR('MMA Rev-Exp Region 2'!$D$99/'MMA Rev-Exp Region 2'!$D$9, 0)","v":{"v":0,"d":"$0.00"}}]
["MMA",null,null,2016,"2016-12-31","Q1","2017-03-31","Region 2","Non-Operating Expense","Income Tax Expense","Income Tax Expense","16.0","Income Tax Expense",{"$f":"IFERROR('MMA Rev-Exp Region 2'!$D$106/'MMA Rev-Exp Region 2'!$D$9, 0)","v":{"v":0,"d":"$0.00"}}]
["MMA",null,null,2016,"2016-12-31","Q2","2017-06-30","Region 2","Operating Revenue","Capitation","Capitation",1.1,"Capitation",{"$f":"IFERROR('MMA Rev-Exp Region 2'!$O$11/'MMA Rev-Exp Region 2'!$O$9, 0)","v":{"v":0,"d":"$0.00"}},{"$f":"IFERROR('MMA Rev-Exp Region 2'!$P$11/'MMA Rev-Exp Region 2'!$P$9, 0)","v":{"v":0,"d":"$0.00"}},{"$f":"IFERROR('MMA Rev-Exp Region 2'!$Q$11/'MMA Rev-Exp Region 2'!$Q$9, 0)","v":{"v":0,"d":"$0.00"}},{"$f":"IFERROR('MMA Rev-Exp Region 2'!$R$11/'MMA Rev-Exp Region 2'!$R$9, 0)","v":{"v":0,"d":"$0.00"}},{"$f":"IFERROR('MMA Rev-Exp Region 2'!$S$11/'MMA Rev-Exp Region 2'!$S$9, 0)","v":{"v":0,"d":"$0.00"}},{"$f":"IFERROR('MMA Rev-Exp Region 2'!$T$11/'MMA Rev-Exp Region 2'!$T$9, 0)","v":{"v":0,"d":"$0.00"}},{"$f":"IFERROR('MMA Rev-Exp Region 2'!$U$11/'MMA Rev-Exp Region 2'!$U$9, 0)","v":{"v":0,"d":"$0.00"}},{"$f":"IFERROR('MMA Rev-Exp Region 2'!$V$11/'MMA Rev-Exp Region 2'!$V$9, 0)","v":{"v":0,"d":"$0.00"}},{"$f":"IFERROR('MMA Rev-Exp Region 2'!$W$11/'MMA Rev-Exp Region 2'!$W$9, 0)","v":{"v":0,"d":"$0.00"}},{"$f":"IFERROR('MMA Rev-Exp Region 2'!$X$11/'MMA Rev-Exp Region 2'!$X$9, 0)","v":{"v":0,"d":"$0.00"}},{"$f":"IFERROR('MMA Rev-Exp Region 2'!$Y$11/'MMA Rev-Exp Region 2'!$Y$9, 0)","v":{"v":0,"d":"$0.00"}}]
["MMA",null,null,2016,"2016-12-31","Q2","2017-06-30","Region 2","Operating Revenue","Kick Payments","Kick Payments - Transplant",1.2,"Transplant Kick Payments",{"$f":"IFERROR('MMA Rev-Exp Region 2'!$O$12/'MMA Rev-Exp Region 2'!$O$9, 0)","v":{"v":0,"d":"$0.00"}},{"$f":"IFERROR('MMA Rev-Exp Region 2'!$P$12/'MMA Rev-Exp Region 2'!$P$9, 0)","v":{"v":0,"d":"$0.00"}},{"$f":"IFERROR('MMA Rev-Exp Region 2'!$Q$12/'MMA Rev-Exp Region 2'!$Q$9, 0)","v":{"v":0,"d":"$0.00"}},{"$f":"IFERROR('MMA Rev-Exp Region 2'!$R$12/'MMA Rev-Exp Region 2'!$R$9, 0)","v":{"v":0,"d":"$0.00"}},{"$f":"IFERROR('MMA Rev-Exp Region 2'!$S$12/'MMA Rev-Exp Region 2'!$S$9, 0)","v":{"v":0,"d":"$0.00"}},{"$f":"IFERROR('MMA Rev-Exp Region 2'!$T$12/'MMA Rev-Exp Region 2'!$T$9, 0)","v":{"v":0,"d":"$0.00"}},{"$f":"IFERROR('MMA Rev-Exp Region 2'!$U$12/'MMA Rev-Exp Region 2'!$U$9, 0)","v":{"v":0,"d":"$0.00"}},{"$f":"IFERROR('MMA Rev-Exp Region 2'!$V$12/'MMA Rev-Exp Region 2'!$V$9, 0)","v":{"v":0,"d":"$0.00"}},{"$f":"IFERROR('MMA Rev-Exp Region 2'!$W$12/'MMA Rev-Exp Region 2'!$W$9, 0)","v":{"v":0,"d":"$0.00"}},{"$f":"IFERROR('MMA Rev-Exp Region 2'!$X$12/'MMA Rev-Exp Region 2'!$X$9, 0)","v":{"v":0,"d":"$0.00"}},{"$f":"IFERROR('MMA Rev-Exp Region 2'!$Y$12/'MMA Rev-Exp Region 2'!$Y$9, 0)","v":{"v":0,"d":"$0.00"}}]
["MMA",null,null,2016,"2016-12-31","Q2","2017-06-30","Region 2","Operating Revenue","Kick Payments","Kick Payments - Hep C","1.3","Hepatitis C Kick Payments",{"$f":"IFERROR('MMA Rev-Exp Region 2'!$O$13/'MMA Rev-Exp Region 2'!$O$9, 0)","v":{"v":0,"d":"$0.00"}},{"$f":"IFERROR('MMA Rev-Exp Region 2'!$P$13/'MMA Rev-Exp Region 2'!$P$9, 0)","v":{"v":0,"d":"$0.00"}},{"$f":"IFERROR('MMA Rev-Exp Region 2'!$Q$13/'MMA Rev-Exp Region 2'!$Q$9, 0)","v":{"v":0,"d":"$0.00"}},{"$f":"IFERROR('MMA Rev-Exp Region 2'!$R$13/'MMA Rev-Exp Region 2'!$R$9, 0)","v":{"v":0,"d":"$0.00"}},{"$f":"IFERROR('MMA Rev-Exp Region 2'!$S$13/'MMA Rev-Exp Region 2'!$S$9, 0)","v":{"v":0,"d":"$0.00"}},{"$f":"IFERROR('MMA Rev-Exp Region 2'!$T$13/'MMA Rev-Exp Region 2'!$T$9, 0)","v":{"v":0,"d":"$0.00"}},{"$f":"IFERROR('MMA Rev-Exp Region 2'!$U$13/'MMA Rev-Exp Region 2'!$U$9, 0)","v":{"v":0,"d":"$0.00"}},{"$f":"IFERROR('MMA Rev-Exp Region 2'!$V$13/'MMA Rev-Exp Region 2'!$V$9, 0)","v":{"v":0,"d":"$0.00"}},{"$f":"IFERROR('MMA Rev-Exp Region 2'!$W$13/'MMA Rev-Exp Region 2'!$W$9, 0)","v":{"v":0,"d":"$0.00"}},{"$f":"IFERROR('MMA Rev-Exp Region 2'!$X$13/'MMA Rev-Exp Region 2'!$X$9, 0)","v":{"v":0,"d":"$0.00"}},{"$f":"IFERROR('MMA Rev-Exp Region 2'!$Y$13/'MMA Rev-Exp Region 2'!$Y$9, 0)","v":{"v":0,"d":"$0.00"}}]
["MMA",null,null,2016,"2016-12-31","Q2","2017-06-30","Region 2","Operating Revenue","Kick Payments","Kick Payments - Maternity","1.4.1","Maternity Kick Payments",{"$f":"IFERROR('MMA Rev-Exp Region 2'!$O$14/'MMA Rev-Exp Region 2'!$O$9, 0)","v":{"v":0,"d":"$0.00"}},{"$f":"IFERROR('MMA Rev-Exp Region 2'!$P$14/'MMA Rev-Exp Region 2'!$P$9, 0)","v":{"v":0,"d":"$0.00"}},{"$f":"IFERROR('MMA Rev-Exp Region 2'!$Q$14/'MMA Rev-Exp Region 2'!$Q$9, 0)","v":{"v":0,"d":"$0.00"}},{"$f":"IFERROR('MMA Rev-Exp Region 2'!$R$14/'MMA Rev-Exp Region 2'!$R$9, 0)","v":{"v":0,"d":"$0.00"}},{"$f":"IFERROR('MMA Rev-Exp Region 2'!$S$14/'MMA Rev-Exp Region 2'!$S$9, 0)","v":{"v":0,"d":"$0.00"}},{"$f":"IFERROR('MMA Rev-Exp Region 2'!$T$14/'MMA Rev-Exp Region 2'!$T$9, 0)","v":{"v":0,"d":"$0.00"}},{"$f":"IFERROR('MMA Rev-Exp Region 2'!$U$14/'MMA Rev-Exp Region 2'!$U$9, 0)","v":{"v":0,"d":"$0.00"}},{"$f":"IFERROR('MMA Rev-Exp Region 2'!$V$14/'MMA Rev-Exp Region 2'!$V$9, 0)","v":{"v":0,"d":"$0.00"}},{"$f":"IFERROR('MMA Rev-Exp Region 2'!$W$14/'MMA Rev-Exp Region 2'!$W$9, 0)","v":{"v":0,"d":"$0.00"}},{"$f":"IFERROR('MMA Rev-Exp Region 2'!$X$14/'MMA Rev-Exp Region 2'!$X$9, 0)","v":{"v":0,"d":"$0.00"}},{"$f":"IFERROR('MMA Rev-Exp Region 2'!$Y$14/'MMA Rev-Exp Region 2'!$Y$9, 0)","v":{"v":0,"d":"$0.00"}}]
["MMA",null,null,2016,"2016-12-31","Q2","2017-06-30","Region 2","Operating Revenue","Other Revenue","Other Revenue - 9010","1.5","ACA § 9010 related payments",{"$f":"IFERROR('MMA Rev-Exp Region 2'!$O$15/'MMA Rev-Exp Region 2'!$O$9, 0)","v":{"v":0,"d":"$0.00"}},{"$f":"IFERROR('MMA Rev-Exp Region 2'!$P$15/'MMA Rev-Exp Region 2'!$P$9, 0)","v":{"v":0,"d":"$0.00"}},{"$f":"IFERROR('MMA Rev-Exp Region 2'!$Q$15/'MMA Rev-Exp Region 2'!$Q$9, 0)","v":{"v":0,"d":"$0.00"}},{"$f":"IFERROR('MMA Rev-Exp Region 2'!$R$15/'MMA Rev-Exp Region 2'!$R$9, 0)","v":{"v":0,"d":"$0.00"}},{"$f":"IFERROR('MMA Rev-Exp Region 2'!$S$15/'MMA Rev-Exp Region 2'!$S$9, 0)","v":{"v":0,"d":"$0.00"}},{"$f":"IFERROR('MMA Rev-Exp Region 2'!$T$15/'MMA Rev-Exp Region 2'!$T$9, 0)","v":{"v":0,"d":"$0.00"}},{"$f":"IFERROR('MMA Rev-Exp Region 2'!$U$15/'MMA Rev-Exp Region 2'!$U$9, 0)","v":{"v":0,"d":"$0.00"}},{"$f":"IFERROR('MMA Rev-Exp Region 2'!$V$15/'MMA Rev-Exp Region 2'!$V$9, 0)","v":{"v":0,"d":"$0.00"}},{"$f":"IFERROR('MMA Rev-Exp Region 2'!$W$15/'MMA Rev-Exp Region 2'!$W$9, 0)","v":{"v":0,"d":"$0.00"}},{"$f":"IFERROR('MMA Rev-Exp Region 2'!$X$15/'MMA Rev-Exp Region 2'!$X$9, 0)","v":{"v":0,"d":"$0.00"}},{"$f":"IFERROR('MMA Rev-Exp Region 2'!$Y$15/'MMA Rev-Exp Region 2'!$Y$9, 0)","v":{"v":0,"d":"$0.00"}}]
["MMA",null,null,2016,"2016-12-31","Q2","2017-06-30","Region 2","Operating Revenue","Other Revenue","Other Revenue","1.6","Other Revenue",{"$f":"IFERROR('MMA Rev-Exp Region 2'!$O$16/'MMA Rev-Exp Region 2'!$O$9, 0)","v":{"v":0,"d":"$0.00"}},{"$f":"IFERROR('MMA Rev-Exp Region 2'!$P$16/'MMA Rev-Exp Region 2'!$P$9, 0)","v":{"v":0,"d":"$0.00"}},{"$f":"IFERROR('MMA Rev-Exp Region 2'!$Q$16/'MMA Rev-Exp Region 2'!$Q$9, 0)","v":{"v":0,"d":"$0.00"}},{"$f":"IFERROR('MMA Rev-Exp Region 2'!$R$16/'MMA Rev-Exp Region 2'!$R$9, 0)","v":{"v":0,"d":"$0.00"}},{"$f":"IFERROR('MMA Rev-Exp Region 2'!$S$16/'MMA Rev-Exp Region 2'!$S$9, 0)","v":{"v":0,"d":"$0.00"}},{"$f":"IFERROR('MMA Rev-Exp Region 2'!$T$16/'MMA Rev-Exp Region 2'!$T$9, 0)","v":{"v":0,"d":"$0.00"}},{"$f":"IFERROR('MMA Rev-Exp Region 2'!$U$16/'MMA Rev-Exp Region 2'!$U$9, 0)","v":{"v":0,"d":"$0.00"}},{"$f":"IFERROR('MMA Rev-Exp Region 2'!$V$16/'MMA Rev-Exp Region 2'!$V$9, 0)","v":{"v":0,"d":"$0.00"}},{"$f":"IFERROR('MMA Rev-Exp Region 2'!$W$16/'MMA Rev-Exp Region 2'!$W$9, 0)","v":{"v":0,"d":"$0.00"}},{"$f":"IFERROR('MMA Rev-Exp Region 2'!$X$16/'MMA Rev-Exp Region 2'!$X$9, 0)","v":{"v":0,"d":"$0.00"}},{"$f":"IFERROR('MMA Rev-Exp Region 2'!$Y$16/'MMA Rev-Exp Region 2'!$Y$9, 0)","v":{"v":0,"d":"$0.00"}}]
["MMA",null,null,2016,"2016-12-31","Q2","2017-06-30","Region 2","Operating Expense","Medical Benefits Expense","Hospital Services",2.1,"Inpatient FFS",{"$f":"IFERROR('MMA Rev-Exp Region 2'!$O$20/'MMA Rev-Exp Region 2'!$O$9, 0)","v":{"v":0,"d":"$0.00"}},{"$f":"IFERROR('MMA Rev-Exp Region 2'!$P$20/'MMA Rev-Exp Region 2'!$P$9, 0)","v":{"v":0,"d":"$0.00"}},{"$f":"IFERROR('MMA Rev-Exp Region 2'!$Q$20/'MMA Rev-Exp Region 2'!$Q$9, 0)","v":{"v":0,"d":"$0.00"}},{"$f":"IFERROR('MMA Rev-Exp Region 2'!$R$20/'MMA Rev-Exp Region 2'!$R$9, 0)","v":{"v":0,"d":"$0.00"}},{"$f":"IFERROR('MMA Rev-Exp Region 2'!$S$20/'MMA Rev-Exp Region 2'!$S$9, 0)","v":{"v":0,"d":"$0.00"}},{"$f":"IFERROR('MMA Rev-Exp Region 2'!$T$20/'MMA Rev-Exp Region 2'!$T$9, 0)","v":{"v":0,"d":"$0.00"}},{"$f":"IFERROR('MMA Rev-Exp Region 2'!$U$20/'MMA Rev-Exp Region 2'!$U$9, 0)","v":{"v":0,"d":"$0.00"}},{"$f":"IFERROR('MMA Rev-Exp Region 2'!$V$20/'MMA Rev-Exp Region 2'!$V$9, 0)","v":{"v":0,"d":"$0.00"}},{"$f":"IFERROR('MMA Rev-Exp Region 2'!$W$20/'MMA Rev-Exp Region 2'!$W$9, 0)","v":{"v":0,"d":"$0.00"}},{"$f":"IFERROR('MMA Rev-Exp Region 2'!$X$20/'MMA Rev-Exp Region 2'!$X$9, 0)","v":{"v":0,"d":"$0.00"}},{"$f":"IFERROR('MMA Rev-Exp Region 2'!$Y$20/'MMA Rev-Exp Region 2'!$Y$9, 0)","v":{"v":0,"d":"$0.00"}}]
["MMA",null,null,2016,"2016-12-31","Q2","2017-06-30","Region 2","Operating Expense","Medical Benefits Expense","Hospital Services",2.2,"Ending IBNP for Inpatient Hospital Services",{"$f":"IFERROR('MMA Rev-Exp Region 2'!$O$21/'MMA Rev-Exp Region 2'!$O$9, 0)","v":{"v":0,"d":"$0.00"}},{"$f":"IFERROR('MMA Rev-Exp Region 2'!$P$21/'MMA Rev-Exp Region 2'!$P$9, 0)","v":{"v":0,"d":"$0.00"}},{"$f":"IFERROR('MMA Rev-Exp Region 2'!$Q$21/'MMA Rev-Exp Region 2'!$Q$9, 0)","v":{"v":0,"d":"$0.00"}},{"$f":"IFERROR('MMA Rev-Exp Region 2'!$R$21/'MMA Rev-Exp Region 2'!$R$9, 0)","v":{"v":0,"d":"$0.00"}},{"$f":"IFERROR('MMA Rev-Exp Region 2'!$S$21/'MMA Rev-Exp Region 2'!$S$9, 0)","v":{"v":0,"d":"$0.00"}},{"$f":"IFERROR('MMA Rev-Exp Region 2'!$T$21/'MMA Rev-Exp Region 2'!$T$9, 0)","v":{"v":0,"d":"$0.00"}},{"$f":"IFERROR('MMA Rev-Exp Region 2'!$U$21/'MMA Rev-Exp Region 2'!$U$9, 0)","v":{"v":0,"d":"$0.00"}},{"$f":"IFERROR('MMA Rev-Exp Region 2'!$V$21/'MMA Rev-Exp Region 2'!$V$9, 0)","v":{"v":0,"d":"$0.00"}},{"$f":"IFERROR('MMA Rev-Exp Region 2'!$W$21/'MMA Rev-Exp Region 2'!$W$9, 0)","v":{"v":0,"d":"$0.00"}},{"$f":"IFERROR('MMA Rev-Exp Region 2'!$X$21/'MMA Rev-Exp Region 2'!$X$9, 0)","v":{"v":0,"d":"$0.00"}},{"$f":"IFERROR('MMA Rev-Exp Region 2'!$Y$21/'MMA Rev-Exp Region 2'!$Y$9, 0)","v":{"v":0,"d":"$0.00"}}]
["MMA",null,null,2016,"2016-12-31","Q2","2017-06-30","Region 2","Operating Expense","Medical Benefits Expense","Hospital Services",2.3,"Outpatient FFS: ER",{"$f":"IFERROR('MMA Rev-Exp Region 2'!$O$22/'MMA Rev-Exp Region 2'!$O$9, 0)","v":{"v":0,"d":"$0.00"}},{"$f":"IFERROR('MMA Rev-Exp Region 2'!$P$22/'MMA Rev-Exp Region 2'!$P$9, 0)","v":{"v":0,"d":"$0.00"}},{"$f":"IFERROR('MMA Rev-Exp Region 2'!$Q$22/'MMA Rev-Exp Region 2'!$Q$9, 0)","v":{"v":0,"d":"$0.00"}},{"$f":"IFERROR('MMA Rev-Exp Region 2'!$R$22/'MMA Rev-Exp Region 2'!$R$9, 0)","v":{"v":0,"d":"$0.00"}},{"$f":"IFERROR('MMA Rev-Exp Region 2'!$S$22/'MMA Rev-Exp Region 2'!$S$9, 0)","v":{"v":0,"d":"$0.00"}},{"$f":"IFERROR('MMA Rev-Exp Region 2'!$T$22/'MMA Rev-Exp Region 2'!$T$9, 0)","v":{"v":0,"d":"$0.00"}},{"$f":"IFERROR('MMA Rev-Exp Region 2'!$U$22/'MMA Rev-Exp Region 2'!$U$9, 0)","v":{"v":0,"d":"$0.00"}},{"$f":"IFERROR('MMA Rev-Exp Region 2'!$V$22/'MMA Rev-Exp Region 2'!$V$9, 0)","v":{"v":0,"d":"$0.00"}},{"$f":"IFERROR('MMA Rev-Exp Region 2'!$W$22/'MMA Rev-Exp Region 2'!$W$9, 0)","v":{"v":0,"d":"$0.00"}},{"$f":"IFERROR('MMA Rev-Exp Region 2'!$X$22/'MMA Rev-Exp Region 2'!$X$9, 0)","v":{"v":0,"d":"$0.00"}},{"$f":"IFERROR('MMA Rev-Exp Region 2'!$Y$22/'MMA Rev-Exp Region 2'!$Y$9, 0)","v":{"v":0,"d":"$0.00"}}]
["MMA",null,null,2016,"2016-12-31","Q2","2017-06-30","Region 2","Operating Expense","Medical Benefits Expense","Hospital Services",2.4,"Outpatient FFS: Other than ER ",{"$f":"IFERROR('MMA Rev-Exp Region 2'!$O$23/'MMA Rev-Exp Region 2'!$O$9, 0)","v":{"v":0,"d":"$0.00"}},{"$f":"IFERROR('MMA Rev-Exp Region 2'!$P$23/'MMA Rev-Exp Region 2'!$P$9, 0)","v":{"v":0,"d":"$0.00"}},{"$f":"IFERROR('MMA Rev-Exp Region 2'!$Q$23/'MMA Rev-Exp Region 2'!$Q$9, 0)","v":{"v":0,"d":"$0.00"}},{"$f":"IFERROR('MMA Rev-Exp Region 2'!$R$23/'MMA Rev-Exp Region 2'!$R$9, 0)","v":{"v":0,"d":"$0.00"}},{"$f":"IFERROR('MMA Rev-Exp Region 2'!$S$23/'MMA Rev-Exp Region 2'!$S$9, 0)","v":{"v":0,"d":"$0.00"}},{"$f":"IFERROR('MMA Rev-Exp Region 2'!$T$23/'MMA Rev-Exp Region 2'!$T$9, 0)","v":{"v":0,"d":"$0.00"}},{"$f":"IFERROR('MMA Rev-Exp Region 2'!$U$23/'MMA Rev-Exp Region 2'!$U$9, 0)","v":{"v":0,"d":"$0.00"}},{"$f":"IFERROR('MMA Rev-Exp Region 2'!$V$23/'MMA Rev-Exp Region 2'!$V$9, 0)","v":{"v":0,"d":"$0.00"}},{"$f":"IFERROR('MMA Rev-Exp Region 2'!$W$23/'MMA Rev-Exp Region 2'!$W$9, 0)","v":{"v":0,"d":"$0.00"}},{"$f":"IFERROR('MMA Rev-Exp Region 2'!$X$23/'MMA Rev-Exp Region 2'!$X$9, 0)","v":{"v":0,"d":"$0.00"}},{"$f":"IFERROR('MMA Rev-Exp Region 2'!$Y$23/'MMA Rev-Exp Region 2'!$Y$9, 0)","v":{"v":0,"d":"$0.00"}}]
["MMA",null,null,2016,"2016-12-31","Q2","2017-06-30","Region 2","Operating Expense","Medical Benefits Expense","Hospital Services",2.5,"Ending IBNP for Outpatient Hospital Services",{"$f":"IFERROR('MMA Rev-Exp Region 2'!$O$24/'MMA Rev-Exp Region 2'!$O$9, 0)","v":{"v":0,"d":"$0.00"}},{"$f":"IFERROR('MMA Rev-Exp Region 2'!$P$24/'MMA Rev-Exp Region 2'!$P$9, 0)","v":{"v":0,"d":"$0.00"}},{"$f":"IFERROR('MMA Rev-Exp Region 2'!$Q$24/'MMA Rev-Exp Region 2'!$Q$9, 0)","v":{"v":0,"d":"$0.00"}},{"$f":"IFERROR('MMA Rev-Exp Region 2'!$R$24/'MMA Rev-Exp Region 2'!$R$9, 0)","v":{"v":0,"d":"$0.00"}},{"$f":"IFERROR('MMA Rev-Exp Region 2'!$S$24/'MMA Rev-Exp Region 2'!$S$9, 0)","v":{"v":0,"d":"$0.00"}},{"$f":"IFERROR('MMA Rev-Exp Region 2'!$T$24/'MMA Rev-Exp Region 2'!$T$9, 0)","v":{"v":0,"d":"$0.00"}},{"$f":"IFERROR('MMA Rev-Exp Region 2'!$U$24/'MMA Rev-Exp Region 2'!$U$9, 0)","v":{"v":0,"d":"$0.00"}},{"$f":"IFERROR('MMA Rev-Exp Region 2'!$V$24/'MMA Rev-Exp Region 2'!$V$9, 0)","v":{"v":0,"d":"$0.00"}},{"$f":"IFERROR('MMA Rev-Exp Region 2'!$W$24/'MMA Rev-Exp Region 2'!$W$9, 0)","v":{"v":0,"d":"$0.00"}},{"$f":"IFERROR('MMA Rev-Exp Region 2'!$X$24/'MMA Rev-Exp Region 2'!$X$9, 0)","v":{"v":0,"d":"$0.00"}},{"$f":"IFERROR('MMA Rev-Exp Region 2'!$Y$24/'MMA Rev-Exp Region 2'!$Y$9, 0)","v":{"v":0,"d":"$0.00"}}]
["MMA",null,null,2016,"2016-12-31","Q2","2017-06-30","Region 2","Operating Expense","Medical Benefits Expense","Hospital Services","2.6","Subcapitated Hospital Services",{"$f":"IFERROR('MMA Rev-Exp Region 2'!$O$25/'MMA Rev-Exp Region 2'!$O$9, 0)","v":{"v":0,"d":"$0.00"}},{"$f":"IFERROR('MMA Rev-Exp Region 2'!$P$25/'MMA Rev-Exp Region 2'!$P$9, 0)","v":{"v":0,"d":"$0.00"}},{"$f":"IFERROR('MMA Rev-Exp Region 2'!$Q$25/'MMA Rev-Exp Region 2'!$Q$9, 0)","v":{"v":0,"d":"$0.00"}},{"$f":"IFERROR('MMA Rev-Exp Region 2'!$R$25/'MMA Rev-Exp Region 2'!$R$9, 0)","v":{"v":0,"d":"$0.00"}},{"$f":"IFERROR('MMA Rev-Exp Region 2'!$S$25/'MMA Rev-Exp Region 2'!$S$9, 0)","v":{"v":0,"d":"$0.00"}},{"$f":"IFERROR('MMA Rev-Exp Region 2'!$T$25/'MMA Rev-Exp Region 2'!$T$9, 0)","v":{"v":0,"d":"$0.00"}},{"$f":"IFERROR('MMA Rev-Exp Region 2'!$U$25/'MMA Rev-Exp Region 2'!$U$9, 0)","v":{"v":0,"d":"$0.00"}},{"$f":"IFERROR('MMA Rev-Exp Region 2'!$V$25/'MMA Rev-Exp Region 2'!$V$9, 0)","v":{"v":0,"d":"$0.00"}},{"$f":"IFERROR('MMA Rev-Exp Region 2'!$W$25/'MMA Rev-Exp Region 2'!$W$9, 0)","v":{"v":0,"d":"$0.00"}},{"$f":"IFERROR('MMA Rev-Exp Region 2'!$X$25/'MMA Rev-Exp Region 2'!$X$9, 0)","v":{"v":0,"d":"$0.00"}},{"$f":"IFERROR('MMA Rev-Exp Region 2'!$Y$25/'MMA Rev-Exp Region 2'!$Y$9, 0)","v":{"v":0,"d":"$0.00"}}]
["MMA",null,null,2016,"2016-12-31","Q2","2017-06-30","Region 2","Operating Expense","Medical Benefits Expense","Hospital Services","2.7","Hospital Settlements",{"$f":"IFERROR('MMA Rev-Exp Region 2'!$O$26/'MMA Rev-Exp Region 2'!$O$9, 0)","v":{"v":0,"d":"$0.00"}},{"$f":"IFERROR('MMA Rev-Exp Region 2'!$P$26/'MMA Rev-Exp Region 2'!$P$9, 0)","v":{"v":0,"d":"$0.00"}},{"$f":"IFERROR('MMA Rev-Exp Region 2'!$Q$26/'MMA Rev-Exp Region 2'!$Q$9, 0)","v":{"v":0,"d":"$0.00"}},{"$f":"IFERROR('MMA Rev-Exp Region 2'!$R$26/'MMA Rev-Exp Region 2'!$R$9, 0)","v":{"v":0,"d":"$0.00"}},{"$f":"IFERROR('MMA Rev-Exp Region 2'!$S$26/'MMA Rev-Exp Region 2'!$S$9, 0)","v":{"v":0,"d":"$0.00"}},{"$f":"IFERROR('MMA Rev-Exp Region 2'!$T$26/'MMA Rev-Exp Region 2'!$T$9, 0)","v":{"v":0,"d":"$0.00"}},{"$f":"IFERROR('MMA Rev-Exp Region 2'!$U$26/'MMA Rev-Exp Region 2'!$U$9, 0)","v":{"v":0,"d":"$0.00"}},{"$f":"IFERROR('MMA Rev-Exp Region 2'!$V$26/'MMA Rev-Exp Region 2'!$V$9, 0)","v":{"v":0,"d":"$0.00"}},{"$f":"IFERROR('MMA Rev-Exp Region 2'!$W$26/'MMA Rev-Exp Region 2'!$W$9, 0)","v":{"v":0,"d":"$0.00"}},{"$f":"IFERROR('MMA Rev-Exp Region 2'!$X$26/'MMA Rev-Exp Region 2'!$X$9, 0)","v":{"v":0,"d":"$0.00"}},{"$f":"IFERROR('MMA Rev-Exp Region 2'!$Y$26/'MMA Rev-Exp Region 2'!$Y$9, 0)","v":{"v":0,"d":"$0.00"}}]
["MMA",null,null,2016,"2016-12-31","Q2","2017-06-30","Region 2","Operating Expense","Medical Benefits Expense","Hospital Services","2.7.1","Transplant Services",{"$f":"IFERROR('MMA Rev-Exp Region 2'!$O$27/'MMA Rev-Exp Region 2'!$O$9, 0)","v":{"v":0,"d":"$0.00"}},{"$f":"IFERROR('MMA Rev-Exp Region 2'!$P$27/'MMA Rev-Exp Region 2'!$P$9, 0)","v":{"v":0,"d":"$0.00"}},{"$f":"IFERROR('MMA Rev-Exp Region 2'!$Q$27/'MMA Rev-Exp Region 2'!$Q$9, 0)","v":{"v":0,"d":"$0.00"}},{"$f":"IFERROR('MMA Rev-Exp Region 2'!$R$27/'MMA Rev-Exp Region 2'!$R$9, 0)","v":{"v":0,"d":"$0.00"}},{"$f":"IFERROR('MMA Rev-Exp Region 2'!$S$27/'MMA Rev-Exp Region 2'!$S$9, 0)","v":{"v":0,"d":"$0.00"}},{"$f":"IFERROR('MMA Rev-Exp Region 2'!$T$27/'MMA Rev-Exp Region 2'!$T$9, 0)","v":{"v":0,"d":"$0.00"}},{"$f":"IFERROR('MMA Rev-Exp Region 2'!$U$27/'MMA Rev-Exp Region 2'!$U$9, 0)","v":{"v":0,"d":"$0.00"}},{"$f":"IFERROR('MMA Rev-Exp Region 2'!$V$27/'MMA Rev-Exp Region 2'!$V$9, 0)","v":{"v":0,"d":"$0.00"}},{"$f":"IFERROR('MMA Rev-Exp Region 2'!$W$27/'MMA Rev-Exp Region 2'!$W$9, 0)","v":{"v":0,"d":"$0.00"}},{"$f":"IFERROR('MMA Rev-Exp Region 2'!$X$27/'MMA Rev-Exp Region 2'!$X$9, 0)","v":{"v":0,"d":"$0.00"}},{"$f":"IFERROR('MMA Rev-Exp Region 2'!$Y$27/'MMA Rev-Exp Region 2'!$Y$9, 0)","v":{"v":0,"d":"$0.00"}}]
["MMA",null,null,2016,"2016-12-31","Q2","2017-06-30","Region 2","Operating Expense","Medical Benefits Expense","Professional Services",3.1,"Primary Care FFS",{"$f":"IFERROR('MMA Rev-Exp Region 2'!$O$29/'MMA Rev-Exp Region 2'!$O$9, 0)","v":{"v":0,"d":"$0.00"}},{"$f":"IFERROR('MMA Rev-Exp Region 2'!$P$29/'MMA Rev-Exp Region 2'!$P$9, 0)","v":{"v":0,"d":"$0.00"}},{"$f":"IFERROR('MMA Rev-Exp Region 2'!$Q$29/'MMA Rev-Exp Region 2'!$Q$9, 0)","v":{"v":0,"d":"$0.00"}},{"$f":"IFERROR('MMA Rev-Exp Region 2'!$R$29/'MMA Rev-Exp Region 2'!$R$9, 0)","v":{"v":0,"d":"$0.00"}},{"$f":"IFERROR('MMA Rev-Exp Region 2'!$S$29/'MMA Rev-Exp Region 2'!$S$9, 0)","v":{"v":0,"d":"$0.00"}},{"$f":"IFERROR('MMA Rev-Exp Region 2'!$T$29/'MMA Rev-Exp Region 2'!$T$9, 0)","v":{"v":0,"d":"$0.00"}},{"$f":"IFERROR('MMA Rev-Exp Region 2'!$U$29/'MMA Rev-Exp Region 2'!$U$9, 0)","v":{"v":0,"d":"$0.00"}},{"$f":"IFERROR('MMA Rev-Exp Region 2'!$V$29/'MMA Rev-Exp Region 2'!$V$9, 0)","v":{"v":0,"d":"$0.00"}},{"$f":"IFERROR('MMA Rev-Exp Region 2'!$W$29/'MMA Rev-Exp Region 2'!$W$9, 0)","v":{"v":0,"d":"$0.00"}},{"$f":"IFERROR('MMA Rev-Exp Region 2'!$X$29/'MMA Rev-Exp Region 2'!$X$9, 0)","v":{"v":0,"d":"$0.00"}},{"$f":"IFERROR('MMA Rev-Exp Region 2'!$Y$29/'MMA Rev-Exp Region 2'!$Y$9, 0)","v":{"v":0,"d":"$0.00"}}]
["MMA",null,null,2016,"2016-12-31","Q2","2017-06-30","Region 2","Operating Expense","Medical Benefits Expense","Professional Services",3.2,"Specialty Care FFS",{"$f":"IFERROR('MMA Rev-Exp Region 2'!$O$30/'MMA Rev-Exp Region 2'!$O$9, 0)","v":{"v":0,"d":"$0.00"}},{"$f":"IFERROR('MMA Rev-Exp Region 2'!$P$30/'MMA Rev-Exp Region 2'!$P$9, 0)","v":{"v":0,"d":"$0.00"}},{"$f":"IFERROR('MMA Rev-Exp Region 2'!$Q$30/'MMA Rev-Exp Region 2'!$Q$9, 0)","v":{"v":0,"d":"$0.00"}},{"$f":"IFERROR('MMA Rev-Exp Region 2'!$R$30/'MMA Rev-Exp Region 2'!$R$9, 0)","v":{"v":0,"d":"$0.00"}},{"$f":"IFERROR('MMA Rev-Exp Region 2'!$S$30/'MMA Rev-Exp Region 2'!$S$9, 0)","v":{"v":0,"d":"$0.00"}},{"$f":"IFERROR('MMA Rev-Exp Region 2'!$T$30/'MMA Rev-Exp Region 2'!$T$9, 0)","v":{"v":0,"d":"$0.00"}},{"$f":"IFERROR('MMA Rev-Exp Region 2'!$U$30/'MMA Rev-Exp Region 2'!$U$9, 0)","v":{"v":0,"d":"$0.00"}},{"$f":"IFERROR('MMA Rev-Exp Region 2'!$V$30/'MMA Rev-Exp Region 2'!$V$9, 0)","v":{"v":0,"d":"$0.00"}},{"$f":"IFERROR('MMA Rev-Exp Region 2'!$W$30/'MMA Rev-Exp Region 2'!$W$9, 0)","v":{"v":0,"d":"$0.00"}},{"$f":"IFERROR('MMA Rev-Exp Region 2'!$X$30/'MMA Rev-Exp Region 2'!$X$9, 0)","v":{"v":0,"d":"$0.00"}},{"$f":"IFERROR('MMA Rev-Exp Region 2'!$Y$30/'MMA Rev-Exp Region 2'!$Y$9, 0)","v":{"v":0,"d":"$0.00"}}]
["MMA",null,null,2016,"2016-12-31","Q2","2017-06-30","Region 2","Operating Expense","Medical Benefits Expense","Professional Services",3.3,"Other Professional FFS",{"$f":"IFERROR('MMA Rev-Exp Region 2'!$O$31/'MMA Rev-Exp Region 2'!$O$9, 0)","v":{"v":0,"d":"$0.00"}},{"$f":"IFERROR('MMA Rev-Exp Region 2'!$P$31/'MMA Rev-Exp Region 2'!$P$9, 0)","v":{"v":0,"d":"$0.00"}},{"$f":"IFERROR('MMA Rev-Exp Region 2'!$Q$31/'MMA Rev-Exp Region 2'!$Q$9, 0)","v":{"v":0,"d":"$0.00"}},{"$f":"IFERROR('MMA Rev-Exp Region 2'!$R$31/'MMA Rev-Exp Region 2'!$R$9, 0)","v":{"v":0,"d":"$0.00"}},{"$f":"IFERROR('MMA Rev-Exp Region 2'!$S$31/'MMA Rev-Exp Region 2'!$S$9, 0)","v":{"v":0,"d":"$0.00"}},{"$f":"IFERROR('MMA Rev-Exp Region 2'!$T$31/'MMA Rev-Exp Region 2'!$T$9, 0)","v":{"v":0,"d":"$0.00"}},{"$f":"IFERROR('MMA Rev-Exp Region 2'!$U$31/'MMA Rev-Exp Region 2'!$U$9, 0)","v":{"v":0,"d":"$0.00"}},{"$f":"IFERROR('MMA Rev-Exp Region 2'!$V$31/'MMA Rev-Exp Region 2'!$V$9, 0)","v":{"v":0,"d":"$0.00"}},{"$f":"IFERROR('MMA Rev-Exp Region 2'!$W$31/'MMA Rev-Exp Region 2'!$W$9, 0)","v":{"v":0,"d":"$0.00"}},{"$f":"IFERROR('MMA Rev-Exp Region 2'!$X$31/'MMA Rev-Exp Region 2'!$X$9, 0)","v":{"v":0,"d":"$0.00"}},{"$f":"IFERROR('MMA Rev-Exp Region 2'!$Y$31/'MMA Rev-Exp Region 2'!$Y$9, 0)","v":{"v":0,"d":"$0.00"}}]
["MMA",null,null,2016,"2016-12-31","Q2","2017-06-30","Region 2","Operating Expense","Medical Benefits Expense","Professional Services","3.4","§ 1202 PCP Payments to providers",{"$f":"IFERROR('MMA Rev-Exp Region 2'!$O$32/'MMA Rev-Exp Region 2'!$O$9, 0)","v":{"v":0,"d":"$0.00"}},{"$f":"IFERROR('MMA Rev-Exp Region 2'!$P$32/'MMA Rev-Exp Region 2'!$P$9, 0)","v":{"v":0,"d":"$0.00"}},{"$f":"IFERROR('MMA Rev-Exp Region 2'!$Q$32/'MMA Rev-Exp Region 2'!$Q$9, 0)","v":{"v":0,"d":"$0.00"}},{"$f":"IFERROR('MMA Rev-Exp Region 2'!$R$32/'MMA Rev-Exp Region 2'!$R$9, 0)","v":{"v":0,"d":"$0.00"}},{"$f":"IFERROR('MMA Rev-Exp Region 2'!$S$32/'MMA Rev-Exp Region 2'!$S$9, 0)","v":{"v":0,"d":"$0.00"}},{"$f":"IFERROR('MMA Rev-Exp Region 2'!$T$32/'MMA Rev-Exp Region 2'!$T$9, 0)","v":{"v":0,"d":"$0.00"}},{"$f":"IFERROR('MMA Rev-Exp Region 2'!$U$32/'MMA Rev-Exp Region 2'!$U$9, 0)","v":{"v":0,"d":"$0.00"}},{"$f":"IFERROR('MMA Rev-Exp Region 2'!$V$32/'MMA Rev-Exp Region 2'!$V$9, 0)","v":{"v":0,"d":"$0.00"}},{"$f":"IFERROR('MMA Rev-Exp Region 2'!$W$32/'MMA Rev-Exp Region 2'!$W$9, 0)","v":{"v":0,"d":"$0.00"}},{"$f":"IFERROR('MMA Rev-Exp Region 2'!$X$32/'MMA Rev-Exp Region 2'!$X$9, 0)","v":{"v":0,"d":"$0.00"}},{"$f":"IFERROR('MMA Rev-Exp Region 2'!$Y$32/'MMA Rev-Exp Region 2'!$Y$9, 0)","v":{"v":0,"d":"$0.00"}}]
["MMA",null,null,2016,"2016-12-31","Q2","2017-06-30","Region 2","Operating Expense","Medical Benefits Expense","Professional Services","3.5","Subcapitated Professional Services",{"$f":"IFERROR('MMA Rev-Exp Region 2'!$O$33/'MMA Rev-Exp Region 2'!$O$9, 0)","v":{"v":0,"d":"$0.00"}},{"$f":"IFERROR('MMA Rev-Exp Region 2'!$P$33/'MMA Rev-Exp Region 2'!$P$9, 0)","v":{"v":0,"d":"$0.00"}},{"$f":"IFERROR('MMA Rev-Exp Region 2'!$Q$33/'MMA Rev-Exp Region 2'!$Q$9, 0)","v":{"v":0,"d":"$0.00"}},{"$f":"IFERROR('MMA Rev-Exp Region 2'!$R$33/'MMA Rev-Exp Region 2'!$R$9, 0)","v":{"v":0,"d":"$0.00"}},{"$f":"IFERROR('MMA Rev-Exp Region 2'!$S$33/'MMA Rev-Exp Region 2'!$S$9, 0)","v":{"v":0,"d":"$0.00"}},{"$f":"IFERROR('MMA Rev-Exp Region 2'!$T$33/'MMA Rev-Exp Region 2'!$T$9, 0)","v":{"v":0,"d":"$0.00"}},{"$f":"IFERROR('MMA Rev-Exp Region 2'!$U$33/'MMA Rev-Exp Region 2'!$U$9, 0)","v":{"v":0,"d":"$0.00"}},{"$f":"IFERROR('MMA Rev-Exp Region 2'!$V$33/'MMA Rev-Exp Region 2'!$V$9, 0)","v":{"v":0,"d":"$0.00"}},{"$f":"IFERROR('MMA Rev-Exp Region 2'!$W$33/'MMA Rev-Exp Region 2'!$W$9, 0)","v":{"v":0,"d":"$0.00"}},{"$f":"IFERROR('MMA Rev-Exp Region 2'!$X$33/'MMA Rev-Exp Region 2'!$X$9, 0)","v":{"v":0,"d":"$0.00"}},{"$f":"IFERROR('MMA Rev-Exp Region 2'!$Y$33/'MMA Rev-Exp Region 2'!$Y$9, 0)","v":{"v":0,"d":"$0.00"}}]
["MMA",null,null,2016,"2016-12-31","Q2","2017-06-30","Region 2","Operating Expense","Medical Benefits Expense","Professional Services","3.6","Ending IBNP for Professional Services",{"$f":"IFERROR('MMA Rev-Exp Region 2'!$O$34/'MMA Rev-Exp Region 2'!$O$9, 0)","v":{"v":0,"d":"$0.00"}},{"$f":"IFERROR('MMA Rev-Exp Region 2'!$P$34/'MMA Rev-Exp Region 2'!$P$9, 0)","v":{"v":0,"d":"$0.00"}},{"$f":"IFERROR('MMA Rev-Exp Region 2'!$Q$34/'MMA Rev-Exp Region 2'!$Q$9, 0)","v":{"v":0,"d":"$0.00"}},{"$f":"IFERROR('MMA Rev-Exp Region 2'!$R$34/'MMA Rev-Exp Region 2'!$R$9, 0)","v":{"v":0,"d":"$0.00"}},{"$f":"IFERROR('MMA Rev-Exp Region 2'!$S$34/'MMA Rev-Exp Region 2'!$S$9, 0)","v":{"v":0,"d":"$0.00"}},{"$f":"IFERROR('MMA Rev-Exp Region 2'!$T$34/'MMA Rev-Exp Region 2'!$T$9, 0)","v":{"v":0,"d":"$0.00"}},{"$f":"IFERROR('MMA Rev-Exp Region 2'!$U$34/'MMA Rev-Exp Region 2'!$U$9, 0)","v":{"v":0,"d":"$0.00"}},{"$f":"IFERROR('MMA Rev-Exp Region 2'!$V$34/'MMA Rev-Exp Region 2'!$V$9, 0)","v":{"v":0,"d":"$0.00"}},{"$f":"IFERROR('MMA Rev-Exp Region 2'!$W$34/'MMA Rev-Exp Region 2'!$W$9, 0)","v":{"v":0,"d":"$0.00"}},{"$f":"IFERROR('MMA Rev-Exp Region 2'!$X$34/'MMA Rev-Exp Region 2'!$X$9, 0)","v":{"v":0,"d":"$0.00"}},{"$f":"IFERROR('MMA Rev-Exp Region 2'!$Y$34/'MMA Rev-Exp Region 2'!$Y$9, 0)","v":{"v":0,"d":"$0.00"}}]
["MMA",null,null,2016,"2016-12-31","Q2","2017-06-30","Region 2","Operating Expense","Medical Benefits Expense","Professional Services","3.7","Professional Services Settlements",{"$f":"IFERROR('MMA Rev-Exp Region 2'!$O$35/'MMA Rev-Exp Region 2'!$O$9, 0)","v":{"v":0,"d":"$0.00"}},{"$f":"IFERROR('MMA Rev-Exp Region 2'!$P$35/'MMA Rev-Exp Region 2'!$P$9, 0)","v":{"v":0,"d":"$0.00"}},{"$f":"IFERROR('MMA Rev-Exp Region 2'!$Q$35/'MMA Rev-Exp Region 2'!$Q$9, 0)","v":{"v":0,"d":"$0.00"}},{"$f":"IFERROR('MMA Rev-Exp Region 2'!$R$35/'MMA Rev-Exp Region 2'!$R$9, 0)","v":{"v":0,"d":"$0.00"}},{"$f":"IFERROR('MMA Rev-Exp Region 2'!$S$35/'MMA Rev-Exp Region 2'!$S$9, 0)","v":{"v":0,"d":"$0.00"}},{"$f":"IFERROR('MMA Rev-Exp Region 2'!$T$35/'MMA Rev-Exp Region 2'!$T$9, 0)","v":{"v":0,"d":"$0.00"}},{"$f":"IFERROR('MMA Rev-Exp Region 2'!$U$35/'MMA Rev-Exp Region 2'!$U$9, 0)","v":{"v":0,"d":"$0.00"}},{"$f":"IFERROR('MMA Rev-Exp Region 2'!$V$35/'MMA Rev-Exp Region 2'!$V$9, 0)","v":{"v":0,"d":"$0.00"}},{"$f":"IFERROR('MMA Rev-Exp Region 2'!$W$35/'MMA Rev-Exp Region 2'!$W$9, 0)","v":{"v":0,"d":"$0.00"}},{"$f":"IFERROR('MMA Rev-Exp Region 2'!$X$35/'MMA Rev-Exp Region 2'!$X$9, 0)","v":{"v":0,"d":"$0.00"}},{"$f":"IFERROR('MMA Rev-Exp Region 2'!$Y$35/'MMA Rev-Exp Region 2'!$Y$9, 0)","v":{"v":0,"d":"$0.00"}}]
["MMA",null,null,2016,"2016-12-31","Q2","2017-06-30","Region 2","Operating Expense","Medical Benefits Expense","Maternity Services","4.1.1","Maternity Services",{"$f":"IFERROR('MMA Rev-Exp Region 2'!$O$37/'MMA Rev-Exp Region 2'!$O$9, 0)","v":{"v":0,"d":"$0.00"}},{"$f":"IFERROR('MMA Rev-Exp Region 2'!$P$37/'MMA Rev-Exp Region 2'!$P$9, 0)","v":{"v":0,"d":"$0.00"}},{"$f":"IFERROR('MMA Rev-Exp Region 2'!$Q$37/'MMA Rev-Exp Region 2'!$Q$9, 0)","v":{"v":0,"d":"$0.00"}},{"$f":"IFERROR('MMA Rev-Exp Region 2'!$R$37/'MMA Rev-Exp Region 2'!$R$9, 0)","v":{"v":0,"d":"$0.00"}},{"$f":"IFERROR('MMA Rev-Exp Region 2'!$S$37/'MMA Rev-Exp Region 2'!$S$9, 0)","v":{"v":0,"d":"$0.00"}},{"$f":"IFERROR('MMA Rev-Exp Region 2'!$T$37/'MMA Rev-Exp Region 2'!$T$9, 0)","v":{"v":0,"d":"$0.00"}},{"$f":"IFERROR('MMA Rev-Exp Region 2'!$U$37/'MMA Rev-Exp Region 2'!$U$9, 0)","v":{"v":0,"d":"$0.00"}},{"$f":"IFERROR('MMA Rev-Exp Region 2'!$V$37/'MMA Rev-Exp Region 2'!$V$9, 0)","v":{"v":0,"d":"$0.00"}},{"$f":"IFERROR('MMA Rev-Exp Region 2'!$W$37/'MMA Rev-Exp Region 2'!$W$9, 0)","v":{"v":0,"d":"$0.00"}},{"$f":"IFERROR('MMA Rev-Exp Region 2'!$X$37/'MMA Rev-Exp Region 2'!$X$9, 0)","v":{"v":0,"d":"$0.00"}},{"$f":"IFERROR('MMA Rev-Exp Region 2'!$Y$37/'MMA Rev-Exp Region 2'!$Y$9, 0)","v":{"v":0,"d":"$0.00"}}]
["MMA",null,null,2016,"2016-12-31","Q2","2017-06-30","Region 2","Operating Expense","Medical Benefits Expense","Maternity Services","4.2.1","Ending IBNP for Maternity Services",{"$f":"IFERROR('MMA Rev-Exp Region 2'!$O$38/'MMA Rev-Exp Region 2'!$O$9, 0)","v":{"v":0,"d":"$0.00"}},{"$f":"IFERROR('MMA Rev-Exp Region 2'!$P$38/'MMA Rev-Exp Region 2'!$P$9, 0)","v":{"v":0,"d":"$0.00"}},{"$f":"IFERROR('MMA Rev-Exp Region 2'!$Q$38/'MMA Rev-Exp Region 2'!$Q$9, 0)","v":{"v":0,"d":"$0.00"}},{"$f":"IFERROR('MMA Rev-Exp Region 2'!$R$38/'MMA Rev-Exp Region 2'!$R$9, 0)","v":{"v":0,"d":"$0.00"}},{"$f":"IFERROR('MMA Rev-Exp Region 2'!$S$38/'MMA Rev-Exp Region 2'!$S$9, 0)","v":{"v":0,"d":"$0.00"}},{"$f":"IFERROR('MMA Rev-Exp Region 2'!$T$38/'MMA Rev-Exp Region 2'!$T$9, 0)","v":{"v":0,"d":"$0.00"}},{"$f":"IFERROR('MMA Rev-Exp Region 2'!$U$38/'MMA Rev-Exp Region 2'!$U$9, 0)","v":{"v":0,"d":"$0.00"}},{"$f":"IFERROR('MMA Rev-Exp Region 2'!$V$38/'MMA Rev-Exp Region 2'!$V$9, 0)","v":{"v":0,"d":"$0.00"}},{"$f":"IFERROR('MMA Rev-Exp Region 2'!$W$38/'MMA Rev-Exp Region 2'!$W$9, 0)","v":{"v":0,"d":"$0.00"}},{"$f":"IFERROR('MMA Rev-Exp Region 2'!$X$38/'MMA Rev-Exp Region 2'!$X$9, 0)","v":{"v":0,"d":"$0.00"}},{"$f":"IFERROR('MMA Rev-Exp Region 2'!$Y$38/'MMA Rev-Exp Region 2'!$Y$9, 0)","v":{"v":0,"d":"$0.00"}}]
["MMA",null,null,2016,"2016-12-31","Q2","2017-06-30","Region 2","Operating Expense","Medical Benefits Expense","Maternity Services","4.3.1","Maternity Settlements",{"$f":"IFERROR('MMA Rev-Exp Region 2'!$O$39/'MMA Rev-Exp Region 2'!$O$9, 0)","v":{"v":0,"d":"$0.00"}},{"$f":"IFERROR('MMA Rev-Exp Region 2'!$P$39/'MMA Rev-Exp Region 2'!$P$9, 0)","v":{"v":0,"d":"$0.00"}},{"$f":"IFERROR('MMA Rev-Exp Region 2'!$Q$39/'MMA Rev-Exp Region 2'!$Q$9, 0)","v":{"v":0,"d":"$0.00"}},{"$f":"IFERROR('MMA Rev-Exp Region 2'!$R$39/'MMA Rev-Exp Region 2'!$R$9, 0)","v":{"v":0,"d":"$0.00"}},{"$f":"IFERROR('MMA Rev-Exp Region 2'!$S$39/'MMA Rev-Exp Region 2'!$S$9, 0)","v":{"v":0,"d":"$0.00"}},{"$f":"IFERROR('MMA Rev-Exp Region 2'!$T$39/'MMA Rev-Exp Region 2'!$T$9, 0)","v":{"v":0,"d":"$0.00"}},{"$f":"IFERROR('MMA Rev-Exp Region 2'!$U$39/'MMA Rev-Exp Region 2'!$U$9, 0)","v":{"v":0,"d":"$0.00"}},{"$f":"IFERROR('MMA Rev-Exp Region 2'!$V$39/'MMA Rev-Exp Region 2'!$V$9, 0)","v":{"v":0,"d":"$0.00"}},{"$f":"IFERROR('MMA Rev-Exp Region 2'!$W$39/'MMA Rev-Exp Region 2'!$W$9, 0)","v":{"v":0,"d":"$0.00"}},{"$f":"IFERROR('MMA Rev-Exp Region 2'!$X$39/'MMA Rev-Exp Region 2'!$X$9, 0)","v":{"v":0,"d":"$0.00"}},{"$f":"IFERROR('MMA Rev-Exp Region 2'!$Y$39/'MMA Rev-Exp Region 2'!$Y$9, 0)","v":{"v":0,"d":"$0.00"}}]
["MMA",null,null,2016,"2016-12-31","Q2","2017-06-30","Region 2","Operating Expense","Medical Benefits Expense","Mental Health Services",5.1,"Mental Health & Substance Abuse FFS",{"$f":"IFERROR('MMA Rev-Exp Region 2'!$O$41/'MMA Rev-Exp Region 2'!$O$9, 0)","v":{"v":0,"d":"$0.00"}},{"$f":"IFERROR('MMA Rev-Exp Region 2'!$P$41/'MMA Rev-Exp Region 2'!$P$9, 0)","v":{"v":0,"d":"$0.00"}},{"$f":"IFERROR('MMA Rev-Exp Region 2'!$Q$41/'MMA Rev-Exp Region 2'!$Q$9, 0)","v":{"v":0,"d":"$0.00"}},{"$f":"IFERROR('MMA Rev-Exp Region 2'!$R$41/'MMA Rev-Exp Region 2'!$R$9, 0)","v":{"v":0,"d":"$0.00"}},{"$f":"IFERROR('MMA Rev-Exp Region 2'!$S$41/'MMA Rev-Exp Region 2'!$S$9, 0)","v":{"v":0,"d":"$0.00"}},{"$f":"IFERROR('MMA Rev-Exp Region 2'!$T$41/'MMA Rev-Exp Region 2'!$T$9, 0)","v":{"v":0,"d":"$0.00"}},{"$f":"IFERROR('MMA Rev-Exp Region 2'!$U$41/'MMA Rev-Exp Region 2'!$U$9, 0)","v":{"v":0,"d":"$0.00"}},{"$f":"IFERROR('MMA Rev-Exp Region 2'!$V$41/'MMA Rev-Exp Region 2'!$V$9, 0)","v":{"v":0,"d":"$0.00"}},{"$f":"IFERROR('MMA Rev-Exp Region 2'!$W$41/'MMA Rev-Exp Region 2'!$W$9, 0)","v":{"v":0,"d":"$0.00"}},{"$f":"IFERROR('MMA Rev-Exp Region 2'!$X$41/'MMA Rev-Exp Region 2'!$X$9, 0)","v":{"v":0,"d":"$0.00"}},{"$f":"IFERROR('MMA Rev-Exp Region 2'!$Y$41/'MMA Rev-Exp Region 2'!$Y$9, 0)","v":{"v":0,"d":"$0.00"}}]
["MMA",null,null,2016,"2016-12-31","Q2","2017-06-30","Region 2","Operating Expense","Medical Benefits Expense","Mental Health Services",5.2,"Mental Health & Substance Abuse Subcapitation",{"$f":"IFERROR('MMA Rev-Exp Region 2'!$O$42/'MMA Rev-Exp Region 2'!$O$9, 0)","v":{"v":0,"d":"$0.00"}},{"$f":"IFERROR('MMA Rev-Exp Region 2'!$P$42/'MMA Rev-Exp Region 2'!$P$9, 0)","v":{"v":0,"d":"$0.00"}},{"$f":"IFERROR('MMA Rev-Exp Region 2'!$Q$42/'MMA Rev-Exp Region 2'!$Q$9, 0)","v":{"v":0,"d":"$0.00"}},{"$f":"IFERROR('MMA Rev-Exp Region 2'!$R$42/'MMA Rev-Exp Region 2'!$R$9, 0)","v":{"v":0,"d":"$0.00"}},{"$f":"IFERROR('MMA Rev-Exp Region 2'!$S$42/'MMA Rev-Exp Region 2'!$S$9, 0)","v":{"v":0,"d":"$0.00"}},{"$f":"IFERROR('MMA Rev-Exp Region 2'!$T$42/'MMA Rev-Exp Region 2'!$T$9, 0)","v":{"v":0,"d":"$0.00"}},{"$f":"IFERROR('MMA Rev-Exp Region 2'!$U$42/'MMA Rev-Exp Region 2'!$U$9, 0)","v":{"v":0,"d":"$0.00"}},{"$f":"IFERROR('MMA Rev-Exp Region 2'!$V$42/'MMA Rev-Exp Region 2'!$V$9, 0)","v":{"v":0,"d":"$0.00"}},{"$f":"IFERROR('MMA Rev-Exp Region 2'!$W$42/'MMA Rev-Exp Region 2'!$W$9, 0)","v":{"v":0,"d":"$0.00"}},{"$f":"IFERROR('MMA Rev-Exp Region 2'!$X$42/'MMA Rev-Exp Region 2'!$X$9, 0)","v":{"v":0,"d":"$0.00"}},{"$f":"IFERROR('MMA Rev-Exp Region 2'!$Y$42/'MMA Rev-Exp Region 2'!$Y$9, 0)","v":{"v":0,"d":"$0.00"}}]
["MMA",null,null,2016,"2016-12-31","Q2","2017-06-30","Region 2","Operating Expense","Medical Benefits Expense","Mental Health Services",5.3,"Ending IBNP for Mental Health & Substance Abuse",{"$f":"IFERROR('MMA Rev-Exp Region 2'!$O$43/'MMA Rev-Exp Region 2'!$O$9, 0)","v":{"v":0,"d":"$0.00"}},{"$f":"IFERROR('MMA Rev-Exp Region 2'!$P$43/'MMA Rev-Exp Region 2'!$P$9, 0)","v":{"v":0,"d":"$0.00"}},{"$f":"IFERROR('MMA Rev-Exp Region 2'!$Q$43/'MMA Rev-Exp Region 2'!$Q$9, 0)","v":{"v":0,"d":"$0.00"}},{"$f":"IFERROR('MMA Rev-Exp Region 2'!$R$43/'MMA Rev-Exp Region 2'!$R$9, 0)","v":{"v":0,"d":"$0.00"}},{"$f":"IFERROR('MMA Rev-Exp Region 2'!$S$43/'MMA Rev-Exp Region 2'!$S$9, 0)","v":{"v":0,"d":"$0.00"}},{"$f":"IFERROR('MMA Rev-Exp Region 2'!$T$43/'MMA Rev-Exp Region 2'!$T$9, 0)","v":{"v":0,"d":"$0.00"}},{"$f":"IFERROR('MMA Rev-Exp Region 2'!$U$43/'MMA Rev-Exp Region 2'!$U$9, 0)","v":{"v":0,"d":"$0.00"}},{"$f":"IFERROR('MMA Rev-Exp Region 2'!$V$43/'MMA Rev-Exp Region 2'!$V$9, 0)","v":{"v":0,"d":"$0.00"}},{"$f":"IFERROR('MMA Rev-Exp Region 2'!$W$43/'MMA Rev-Exp Region 2'!$W$9, 0)","v":{"v":0,"d":"$0.00"}},{"$f":"IFERROR('MMA Rev-Exp Region 2'!$X$43/'MMA Rev-Exp Region 2'!$X$9, 0)","v":{"v":0,"d":"$0.00"}},{"$f":"IFERROR('MMA Rev-Exp Region 2'!$Y$43/'MMA Rev-Exp Region 2'!$Y$9, 0)","v":{"v":0,"d":"$0.00"}}]
["MMA",null,null,2016,"2016-12-31","Q2","2017-06-30","Region 2","Operating Expense","Medical Benefits Expense","Mental Health Services","5.4","Mental Health Settlements",{"$f":"IFERROR('MMA Rev-Exp Region 2'!$O$44/'MMA Rev-Exp Region 2'!$O$9, 0)","v":{"v":0,"d":"$0.00"}},{"$f":"IFERROR('MMA Rev-Exp Region 2'!$P$44/'MMA Rev-Exp Region 2'!$P$9, 0)","v":{"v":0,"d":"$0.00"}},{"$f":"IFERROR('MMA Rev-Exp Region 2'!$Q$44/'MMA Rev-Exp Region 2'!$Q$9, 0)","v":{"v":0,"d":"$0.00"}},{"$f":"IFERROR('MMA Rev-Exp Region 2'!$R$44/'MMA Rev-Exp Region 2'!$R$9, 0)","v":{"v":0,"d":"$0.00"}},{"$f":"IFERROR('MMA Rev-Exp Region 2'!$S$44/'MMA Rev-Exp Region 2'!$S$9, 0)","v":{"v":0,"d":"$0.00"}},{"$f":"IFERROR('MMA Rev-Exp Region 2'!$T$44/'MMA Rev-Exp Region 2'!$T$9, 0)","v":{"v":0,"d":"$0.00"}},{"$f":"IFERROR('MMA Rev-Exp Region 2'!$U$44/'MMA Rev-Exp Region 2'!$U$9, 0)","v":{"v":0,"d":"$0.00"}},{"$f":"IFERROR('MMA Rev-Exp Region 2'!$V$44/'MMA Rev-Exp Region 2'!$V$9, 0)","v":{"v":0,"d":"$0.00"}},{"$f":"IFERROR('MMA Rev-Exp Region 2'!$W$44/'MMA Rev-Exp Region 2'!$W$9, 0)","v":{"v":0,"d":"$0.00"}},{"$f":"IFERROR('MMA Rev-Exp Region 2'!$X$44/'MMA Rev-Exp Region 2'!$X$9, 0)","v":{"v":0,"d":"$0.00"}},{"$f":"IFERROR('MMA Rev-Exp Region 2'!$Y$44/'MMA Rev-Exp Region 2'!$Y$9, 0)","v":{"v":0,"d":"$0.00"}}]
["MMA",null,null,2016,"2016-12-31","Q2","2017-06-30","Region 2","Operating Expense","Medical Benefits Expense","Dental Services",6.1,"Dental FFS",{"$f":"IFERROR('MMA Rev-Exp Region 2'!$O$46/'MMA Rev-Exp Region 2'!$O$9, 0)","v":{"v":0,"d":"$0.00"}},{"$f":"IFERROR('MMA Rev-Exp Region 2'!$P$46/'MMA Rev-Exp Region 2'!$P$9, 0)","v":{"v":0,"d":"$0.00"}},{"$f":"IFERROR('MMA Rev-Exp Region 2'!$Q$46/'MMA Rev-Exp Region 2'!$Q$9, 0)","v":{"v":0,"d":"$0.00"}},{"$f":"IFERROR('MMA Rev-Exp Region 2'!$R$46/'MMA Rev-Exp Region 2'!$R$9, 0)","v":{"v":0,"d":"$0.00"}},{"$f":"IFERROR('MMA Rev-Exp Region 2'!$S$46/'MMA Rev-Exp Region 2'!$S$9, 0)","v":{"v":0,"d":"$0.00"}},{"$f":"IFERROR('MMA Rev-Exp Region 2'!$T$46/'MMA Rev-Exp Region 2'!$T$9, 0)","v":{"v":0,"d":"$0.00"}},{"$f":"IFERROR('MMA Rev-Exp Region 2'!$U$46/'MMA Rev-Exp Region 2'!$U$9, 0)","v":{"v":0,"d":"$0.00"}},{"$f":"IFERROR('MMA Rev-Exp Region 2'!$V$46/'MMA Rev-Exp Region 2'!$V$9, 0)","v":{"v":0,"d":"$0.00"}},{"$f":"IFERROR('MMA Rev-Exp Region 2'!$W$46/'MMA Rev-Exp Region 2'!$W$9, 0)","v":{"v":0,"d":"$0.00"}},{"$f":"IFERROR('MMA Rev-Exp Region 2'!$X$46/'MMA Rev-Exp Region 2'!$X$9, 0)","v":{"v":0,"d":"$0.00"}},{"$f":"IFERROR('MMA Rev-Exp Region 2'!$Y$46/'MMA Rev-Exp Region 2'!$Y$9, 0)","v":{"v":0,"d":"$0.00"}}]
["MMA",null,null,2016,"2016-12-31","Q2","2017-06-30","Region 2","Operating Expense","Medical Benefits Expense","Dental Services",6.2,"Dental Subcapitation",{"$f":"IFERROR('MMA Rev-Exp Region 2'!$O$47/'MMA Rev-Exp Region 2'!$O$9, 0)","v":{"v":0,"d":"$0.00"}},{"$f":"IFERROR('MMA Rev-Exp Region 2'!$P$47/'MMA Rev-Exp Region 2'!$P$9, 0)","v":{"v":0,"d":"$0.00"}},{"$f":"IFERROR('MMA Rev-Exp Region 2'!$Q$47/'MMA Rev-Exp Region 2'!$Q$9, 0)","v":{"v":0,"d":"$0.00"}},{"$f":"IFERROR('MMA Rev-Exp Region 2'!$R$47/'MMA Rev-Exp Region 2'!$R$9, 0)","v":{"v":0,"d":"$0.00"}},{"$f":"IFERROR('MMA Rev-Exp Region 2'!$S$47/'MMA Rev-Exp Region 2'!$S$9, 0)","v":{"v":0,"d":"$0.00"}},{"$f":"IFERROR('MMA Rev-Exp Region 2'!$T$47/'MMA Rev-Exp Region 2'!$T$9, 0)","v":{"v":0,"d":"$0.00"}},{"$f":"IFERROR('MMA Rev-Exp Region 2'!$U$47/'MMA Rev-Exp Region 2'!$U$9, 0)","v":{"v":0,"d":"$0.00"}},{"$f":"IFERROR('MMA Rev-Exp Region 2'!$V$47/'MMA Rev-Exp Region 2'!$V$9, 0)","v":{"v":0,"d":"$0.00"}},{"$f":"IFERROR('MMA Rev-Exp Region 2'!$W$47/'MMA Rev-Exp Region 2'!$W$9, 0)","v":{"v":0,"d":"$0.00"}},{"$f":"IFERROR('MMA Rev-Exp Region 2'!$X$47/'MMA Rev-Exp Region 2'!$X$9, 0)","v":{"v":0,"d":"$0.00"}},{"$f":"IFERROR('MMA Rev-Exp Region 2'!$Y$47/'MMA Rev-Exp Region 2'!$Y$9, 0)","v":{"v":0,"d":"$0.00"}}]
["MMA",null,null,2016,"2016-12-31","Q2","2017-06-30","Region 2","Operating Expense","Medical Benefits Expense","Dental Services",6.3,"Ending IBNP for Dental Services",{"$f":"IFERROR('MMA Rev-Exp Region 2'!$O$48/'MMA Rev-Exp Region 2'!$O$9, 0)","v":{"v":0,"d":"$0.00"}},{"$f":"IFERROR('MMA Rev-Exp Region 2'!$P$48/'MMA Rev-Exp Region 2'!$P$9, 0)","v":{"v":0,"d":"$0.00"}},{"$f":"IFERROR('MMA Rev-Exp Region 2'!$Q$48/'MMA Rev-Exp Region 2'!$Q$9, 0)","v":{"v":0,"d":"$0.00"}},{"$f":"IFERROR('MMA Rev-Exp Region 2'!$R$48/'MMA Rev-Exp Region 2'!$R$9, 0)","v":{"v":0,"d":"$0.00"}},{"$f":"IFERROR('MMA Rev-Exp Region 2'!$S$48/'MMA Rev-Exp Region 2'!$S$9, 0)","v":{"v":0,"d":"$0.00"}},{"$f":"IFERROR('MMA Rev-Exp Region 2'!$T$48/'MMA Rev-Exp Region 2'!$T$9, 0)","v":{"v":0,"d":"$0.00"}},{"$f":"IFERROR('MMA Rev-Exp Region 2'!$U$48/'MMA Rev-Exp Region 2'!$U$9, 0)","v":{"v":0,"d":"$0.00"}},{"$f":"IFERROR('MMA Rev-Exp Region 2'!$V$48/'MMA Rev-Exp Region 2'!$V$9, 0)","v":{"v":0,"d":"$0.00"}},{"$f":"IFERROR('MMA Rev-Exp Region 2'!$W$48/'MMA Rev-Exp Region 2'!$W$9, 0)","v":{"v":0,"d":"$0.00"}},{"$f":"IFERROR('MMA Rev-Exp Region 2'!$X$48/'MMA Rev-Exp Region 2'!$X$9, 0)","v":{"v":0,"d":"$0.00"}},{"$f":"IFERROR('MMA Rev-Exp Region 2'!$Y$48/'MMA Rev-Exp Region 2'!$Y$9, 0)","v":{"v":0,"d":"$0.00"}}]
["MMA",null,null,2016,"2016-12-31","Q2","2017-06-30","Region 2","Operating Expense","Medical Benefits Expense","Dental Services","6.4","Dental Settlements",{"$f":"IFERROR('MMA Rev-Exp Region 2'!$O$49/'MMA Rev-Exp Region 2'!$O$9, 0)","v":{"v":0,"d":"$0.00"}},{"$f":"IFERROR('MMA Rev-Exp Region 2'!$P$49/'MMA Rev-Exp Region 2'!$P$9, 0)","v":{"v":0,"d":"$0.00"}},{"$f":"IFERROR('MMA Rev-Exp Region 2'!$Q$49/'MMA Rev-Exp Region 2'!$Q$9, 0)","v":{"v":0,"d":"$0.00"}},{"$f":"IFERROR('MMA Rev-Exp Region 2'!$R$49/'MMA Rev-Exp Region 2'!$R$9, 0)","v":{"v":0,"d":"$0.00"}},{"$f":"IFERROR('MMA Rev-Exp Region 2'!$S$49/'MMA Rev-Exp Region 2'!$S$9, 0)","v":{"v":0,"d":"$0.00"}},{"$f":"IFERROR('MMA Rev-Exp Region 2'!$T$49/'MMA Rev-Exp Region 2'!$T$9, 0)","v":{"v":0,"d":"$0.00"}},{"$f":"IFERROR('MMA Rev-Exp Region 2'!$U$49/'MMA Rev-Exp Region 2'!$U$9, 0)","v":{"v":0,"d":"$0.00"}},{"$f":"IFERROR('MMA Rev-Exp Region 2'!$V$49/'MMA Rev-Exp Region 2'!$V$9, 0)","v":{"v":0,"d":"$0.00"}},{"$f":"IFERROR('MMA Rev-Exp Region 2'!$W$49/'MMA Rev-Exp Region 2'!$W$9, 0)","v":{"v":0,"d":"$0.00"}},{"$f":"IFERROR('MMA Rev-Exp Region 2'!$X$49/'MMA Rev-Exp Region 2'!$X$9, 0)","v":{"v":0,"d":"$0.00"}},{"$f":"IFERROR('MMA Rev-Exp Region 2'!$Y$49/'MMA Rev-Exp Region 2'!$Y$9, 0)","v":{"v":0,"d":"$0.00"}}]
["MMA",null,null,2016,"2016-12-31","Q2","2017-06-30","Region 2","Operating Expense","Medical Benefits Expense","Transportation Services",7.1,"Transportation FFS",{"$f":"IFERROR('MMA Rev-Exp Region 2'!$O$51/'MMA Rev-Exp Region 2'!$O$9, 0)","v":{"v":0,"d":"$0.00"}},{"$f":"IFERROR('MMA Rev-Exp Region 2'!$P$51/'MMA Rev-Exp Region 2'!$P$9, 0)","v":{"v":0,"d":"$0.00"}},{"$f":"IFERROR('MMA Rev-Exp Region 2'!$Q$51/'MMA Rev-Exp Region 2'!$Q$9, 0)","v":{"v":0,"d":"$0.00"}},{"$f":"IFERROR('MMA Rev-Exp Region 2'!$R$51/'MMA Rev-Exp Region 2'!$R$9, 0)","v":{"v":0,"d":"$0.00"}},{"$f":"IFERROR('MMA Rev-Exp Region 2'!$S$51/'MMA Rev-Exp Region 2'!$S$9, 0)","v":{"v":0,"d":"$0.00"}},{"$f":"IFERROR('MMA Rev-Exp Region 2'!$T$51/'MMA Rev-Exp Region 2'!$T$9, 0)","v":{"v":0,"d":"$0.00"}},{"$f":"IFERROR('MMA Rev-Exp Region 2'!$U$51/'MMA Rev-Exp Region 2'!$U$9, 0)","v":{"v":0,"d":"$0.00"}},{"$f":"IFERROR('MMA Rev-Exp Region 2'!$V$51/'MMA Rev-Exp Region 2'!$V$9, 0)","v":{"v":0,"d":"$0.00"}},{"$f":"IFERROR('MMA Rev-Exp Region 2'!$W$51/'MMA Rev-Exp Region 2'!$W$9, 0)","v":{"v":0,"d":"$0.00"}},{"$f":"IFERROR('MMA Rev-Exp Region 2'!$X$51/'MMA Rev-Exp Region 2'!$X$9, 0)","v":{"v":0,"d":"$0.00"}},{"$f":"IFERROR('MMA Rev-Exp Region 2'!$Y$51/'MMA Rev-Exp Region 2'!$Y$9, 0)","v":{"v":0,"d":"$0.00"}}]
["MMA",null,null,2016,"2016-12-31","Q2","2017-06-30","Region 2","Operating Expense","Medical Benefits Expense","Transportation Services",7.2,"Transportation Subcapitation",{"$f":"IFERROR('MMA Rev-Exp Region 2'!$O$52/'MMA Rev-Exp Region 2'!$O$9, 0)","v":{"v":0,"d":"$0.00"}},{"$f":"IFERROR('MMA Rev-Exp Region 2'!$P$52/'MMA Rev-Exp Region 2'!$P$9, 0)","v":{"v":0,"d":"$0.00"}},{"$f":"IFERROR('MMA Rev-Exp Region 2'!$Q$52/'MMA Rev-Exp Region 2'!$Q$9, 0)","v":{"v":0,"d":"$0.00"}},{"$f":"IFERROR('MMA Rev-Exp Region 2'!$R$52/'MMA Rev-Exp Region 2'!$R$9, 0)","v":{"v":0,"d":"$0.00"}},{"$f":"IFERROR('MMA Rev-Exp Region 2'!$S$52/'MMA Rev-Exp Region 2'!$S$9, 0)","v":{"v":0,"d":"$0.00"}},{"$f":"IFERROR('MMA Rev-Exp Region 2'!$T$52/'MMA Rev-Exp Region 2'!$T$9, 0)","v":{"v":0,"d":"$0.00"}},{"$f":"IFERROR('MMA Rev-Exp Region 2'!$U$52/'MMA Rev-Exp Region 2'!$U$9, 0)","v":{"v":0,"d":"$0.00"}},{"$f":"IFERROR('MMA Rev-Exp Region 2'!$V$52/'MMA Rev-Exp Region 2'!$V$9, 0)","v":{"v":0,"d":"$0.00"}},{"$f":"IFERROR('MMA Rev-Exp Region 2'!$W$52/'MMA Rev-Exp Region 2'!$W$9, 0)","v":{"v":0,"d":"$0.00"}},{"$f":"IFERROR('MMA Rev-Exp Region 2'!$X$52/'MMA Rev-Exp Region 2'!$X$9, 0)","v":{"v":0,"d":"$0.00"}},{"$f":"IFERROR('MMA Rev-Exp Region 2'!$Y$52/'MMA Rev-Exp Region 2'!$Y$9, 0)","v":{"v":0,"d":"$0.00"}}]
["MMA",null,null,2016,"2016-12-31","Q2","2017-06-30","Region 2","Operating Expense","Medical Benefits Expense","Transportation Services",7.3,"Ending IBNP for Transportation",{"$f":"IFERROR('MMA Rev-Exp Region 2'!$O$53/'MMA Rev-Exp Region 2'!$O$9, 0)","v":{"v":0,"d":"$0.00"}},{"$f":"IFERROR('MMA Rev-Exp Region 2'!$P$53/'MMA Rev-Exp Region 2'!$P$9, 0)","v":{"v":0,"d":"$0.00"}},{"$f":"IFERROR('MMA Rev-Exp Region 2'!$Q$53/'MMA Rev-Exp Region 2'!$Q$9, 0)","v":{"v":0,"d":"$0.00"}},{"$f":"IFERROR('MMA Rev-Exp Region 2'!$R$53/'MMA Rev-Exp Region 2'!$R$9, 0)","v":{"v":0,"d":"$0.00"}},{"$f":"IFERROR('MMA Rev-Exp Region 2'!$S$53/'MMA Rev-Exp Region 2'!$S$9, 0)","v":{"v":0,"d":"$0.00"}},{"$f":"IFERROR('MMA Rev-Exp Region 2'!$T$53/'MMA Rev-Exp Region 2'!$T$9, 0)","v":{"v":0,"d":"$0.00"}},{"$f":"IFERROR('MMA Rev-Exp Region 2'!$U$53/'MMA Rev-Exp Region 2'!$U$9, 0)","v":{"v":0,"d":"$0.00"}},{"$f":"IFERROR('MMA Rev-Exp Region 2'!$V$53/'MMA Rev-Exp Region 2'!$V$9, 0)","v":{"v":0,"d":"$0.00"}},{"$f":"IFERROR('MMA Rev-Exp Region 2'!$W$53/'MMA Rev-Exp Region 2'!$W$9, 0)","v":{"v":0,"d":"$0.00"}},{"$f":"IFERROR('MMA Rev-Exp Region 2'!$X$53/'MMA Rev-Exp Region 2'!$X$9, 0)","v":{"v":0,"d":"$0.00"}},{"$f":"IFERROR('MMA Rev-Exp Region 2'!$Y$53/'MMA Rev-Exp Region 2'!$Y$9, 0)","v":{"v":0,"d":"$0.00"}}]
["MMA",null,null,2016,"2016-12-31","Q2","2017-06-30","Region 2","Operating Expense","Medical Benefits Expense","Transportation Services","7.4","Transportation Settlements",{"$f":"IFERROR('MMA Rev-Exp Region 2'!$O$54/'MMA Rev-Exp Region 2'!$O$9, 0)","v":{"v":0,"d":"$0.00"}},{"$f":"IFERROR('MMA Rev-Exp Region 2'!$P$54/'MMA Rev-Exp Region 2'!$P$9, 0)","v":{"v":0,"d":"$0.00"}},{"$f":"IFERROR('MMA Rev-Exp Region 2'!$Q$54/'MMA Rev-Exp Region 2'!$Q$9, 0)","v":{"v":0,"d":"$0.00"}},{"$f":"IFERROR('MMA Rev-Exp Region 2'!$R$54/'MMA Rev-Exp Region 2'!$R$9, 0)","v":{"v":0,"d":"$0.00"}},{"$f":"IFERROR('MMA Rev-Exp Region 2'!$S$54/'MMA Rev-Exp Region 2'!$S$9, 0)","v":{"v":0,"d":"$0.00"}},{"$f":"IFERROR('MMA Rev-Exp Region 2'!$T$54/'MMA Rev-Exp Region 2'!$T$9, 0)","v":{"v":0,"d":"$0.00"}},{"$f":"IFERROR('MMA Rev-Exp Region 2'!$U$54/'MMA Rev-Exp Region 2'!$U$9, 0)","v":{"v":0,"d":"$0.00"}},{"$f":"IFERROR('MMA Rev-Exp Region 2'!$V$54/'MMA Rev-Exp Region 2'!$V$9, 0)","v":{"v":0,"d":"$0.00"}},{"$f":"IFERROR('MMA Rev-Exp Region 2'!$W$54/'MMA Rev-Exp Region 2'!$W$9, 0)","v":{"v":0,"d":"$0.00"}},{"$f":"IFERROR('MMA Rev-Exp Region 2'!$X$54/'MMA Rev-Exp Region 2'!$X$9, 0)","v":{"v":0,"d":"$0.00"}},{"$f":"IFERROR('MMA Rev-Exp Region 2'!$Y$54/'MMA Rev-Exp Region 2'!$Y$9, 0)","v":{"v":0,"d":"$0.00"}}]
["MMA",null,null,2016,"2016-12-31","Q2","2017-06-30","Region 2","Operating Expense","Medical Benefits Expense","Pharmacy Services",8.1,"Prescription Drugs FFS",{"$f":"IFERROR('MMA Rev-Exp Region 2'!$O$56/'MMA Rev-Exp Region 2'!$O$9, 0)","v":{"v":0,"d":"$0.00"}},{"$f":"IFERROR('MMA Rev-Exp Region 2'!$P$56/'MMA Rev-Exp Region 2'!$P$9, 0)","v":{"v":0,"d":"$0.00"}},{"$f":"IFERROR('MMA Rev-Exp Region 2'!$Q$56/'MMA Rev-Exp Region 2'!$Q$9, 0)","v":{"v":0,"d":"$0.00"}},{"$f":"IFERROR('MMA Rev-Exp Region 2'!$R$56/'MMA Rev-Exp Region 2'!$R$9, 0)","v":{"v":0,"d":"$0.00"}},{"$f":"IFERROR('MMA Rev-Exp Region 2'!$S$56/'MMA Rev-Exp Region 2'!$S$9, 0)","v":{"v":0,"d":"$0.00"}},{"$f":"IFERROR('MMA Rev-Exp Region 2'!$T$56/'MMA Rev-Exp Region 2'!$T$9, 0)","v":{"v":0,"d":"$0.00"}},{"$f":"IFERROR('MMA Rev-Exp Region 2'!$U$56/'MMA Rev-Exp Region 2'!$U$9, 0)","v":{"v":0,"d":"$0.00"}},{"$f":"IFERROR('MMA Rev-Exp Region 2'!$V$56/'MMA Rev-Exp Region 2'!$V$9, 0)","v":{"v":0,"d":"$0.00"}},{"$f":"IFERROR('MMA Rev-Exp Region 2'!$W$56/'MMA Rev-Exp Region 2'!$W$9, 0)","v":{"v":0,"d":"$0.00"}},{"$f":"IFERROR('MMA Rev-Exp Region 2'!$X$56/'MMA Rev-Exp Region 2'!$X$9, 0)","v":{"v":0,"d":"$0.00"}},{"$f":"IFERROR('MMA Rev-Exp Region 2'!$Y$56/'MMA Rev-Exp Region 2'!$Y$9, 0)","v":{"v":0,"d":"$0.00"}}]
["MMA",null,null,2016,"2016-12-31","Q2","2017-06-30","Region 2","Operating Expense","Medical Benefits Expense","Pharmacy Services","8.2","Hepatitis C Prescription Drug FFS",{"$f":"IFERROR('MMA Rev-Exp Region 2'!$O$57/'MMA Rev-Exp Region 2'!$O$9, 0)","v":{"v":0,"d":"$0.00"}},{"$f":"IFERROR('MMA Rev-Exp Region 2'!$P$57/'MMA Rev-Exp Region 2'!$P$9, 0)","v":{"v":0,"d":"$0.00"}},{"$f":"IFERROR('MMA Rev-Exp Region 2'!$Q$57/'MMA Rev-Exp Region 2'!$Q$9, 0)","v":{"v":0,"d":"$0.00"}},{"$f":"IFERROR('MMA Rev-Exp Region 2'!$R$57/'MMA Rev-Exp Region 2'!$R$9, 0)","v":{"v":0,"d":"$0.00"}},{"$f":"IFERROR('MMA Rev-Exp Region 2'!$S$57/'MMA Rev-Exp Region 2'!$S$9, 0)","v":{"v":0,"d":"$0.00"}},{"$f":"IFERROR('MMA Rev-Exp Region 2'!$T$57/'MMA Rev-Exp Region 2'!$T$9, 0)","v":{"v":0,"d":"$0.00"}},{"$f":"IFERROR('MMA Rev-Exp Region 2'!$U$57/'MMA Rev-Exp Region 2'!$U$9, 0)","v":{"v":0,"d":"$0.00"}},{"$f":"IFERROR('MMA Rev-Exp Region 2'!$V$57/'MMA Rev-Exp Region 2'!$V$9, 0)","v":{"v":0,"d":"$0.00"}},{"$f":"IFERROR('MMA Rev-Exp Region 2'!$W$57/'MMA Rev-Exp Region 2'!$W$9, 0)","v":{"v":0,"d":"$0.00"}},{"$f":"IFERROR('MMA Rev-Exp Region 2'!$X$57/'MMA Rev-Exp Region 2'!$X$9, 0)","v":{"v":0,"d":"$0.00"}},{"$f":"IFERROR('MMA Rev-Exp Region 2'!$Y$57/'MMA Rev-Exp Region 2'!$Y$9, 0)","v":{"v":0,"d":"$0.00"}}]
["MMA",null,null,2016,"2016-12-31","Q2","2017-06-30","Region 2","Operating Expense","Medical Benefits Expense","Pharmacy Services","8.3","Ending IBNP for Prescription Drugs",{"$f":"IFERROR('MMA Rev-Exp Region 2'!$O$58/'MMA Rev-Exp Region 2'!$O$9, 0)","v":{"v":0,"d":"$0.00"}},{"$f":"IFERROR('MMA Rev-Exp Region 2'!$P$58/'MMA Rev-Exp Region 2'!$P$9, 0)","v":{"v":0,"d":"$0.00"}},{"$f":"IFERROR('MMA Rev-Exp Region 2'!$Q$58/'MMA Rev-Exp Region 2'!$Q$9, 0)","v":{"v":0,"d":"$0.00"}},{"$f":"IFERROR('MMA Rev-Exp Region 2'!$R$58/'MMA Rev-Exp Region 2'!$R$9, 0)","v":{"v":0,"d":"$0.00"}},{"$f":"IFERROR('MMA Rev-Exp Region 2'!$S$58/'MMA Rev-Exp Region 2'!$S$9, 0)","v":{"v":0,"d":"$0.00"}},{"$f":"IFERROR('MMA Rev-Exp Region 2'!$T$58/'MMA Rev-Exp Region 2'!$T$9, 0)","v":{"v":0,"d":"$0.00"}},{"$f":"IFERROR('MMA Rev-Exp Region 2'!$U$58/'MMA Rev-Exp Region 2'!$U$9, 0)","v":{"v":0,"d":"$0.00"}},{"$f":"IFERROR('MMA Rev-Exp Region 2'!$V$58/'MMA Rev-Exp Region 2'!$V$9, 0)","v":{"v":0,"d":"$0.00"}},{"$f":"IFERROR('MMA Rev-Exp Region 2'!$W$58/'MMA Rev-Exp Region 2'!$W$9, 0)","v":{"v":0,"d":"$0.00"}},{"$f":"IFERROR('MMA Rev-Exp Region 2'!$X$58/'MMA Rev-Exp Region 2'!$X$9, 0)","v":{"v":0,"d":"$0.00"}},{"$f":"IFERROR('MMA Rev-Exp Region 2'!$Y$58/'MMA Rev-Exp Region 2'!$Y$9, 0)","v":{"v":0,"d":"$0.00"}}]
["MMA",null,null,2016,"2016-12-31","Q2","2017-06-30","Region 2","Operating Expense","Medical Benefits Expense","Pharmacy Services","8.4","Prescription Drug Rebates ",{"$f":"IFERROR('MMA Rev-Exp Region 2'!$O$59/'MMA Rev-Exp Region 2'!$O$9, 0)","v":{"v":0,"d":"$0.00"}},{"$f":"IFERROR('MMA Rev-Exp Region 2'!$P$59/'MMA Rev-Exp Region 2'!$P$9, 0)","v":{"v":0,"d":"$0.00"}},{"$f":"IFERROR('MMA Rev-Exp Region 2'!$Q$59/'MMA Rev-Exp Region 2'!$Q$9, 0)","v":{"v":0,"d":"$0.00"}},{"$f":"IFERROR('MMA Rev-Exp Region 2'!$R$59/'MMA Rev-Exp Region 2'!$R$9, 0)","v":{"v":0,"d":"$0.00"}},{"$f":"IFERROR('MMA Rev-Exp Region 2'!$S$59/'MMA Rev-Exp Region 2'!$S$9, 0)","v":{"v":0,"d":"$0.00"}},{"$f":"IFERROR('MMA Rev-Exp Region 2'!$T$59/'MMA Rev-Exp Region 2'!$T$9, 0)","v":{"v":0,"d":"$0.00"}},{"$f":"IFERROR('MMA Rev-Exp Region 2'!$U$59/'MMA Rev-Exp Region 2'!$U$9, 0)","v":{"v":0,"d":"$0.00"}},{"$f":"IFERROR('MMA Rev-Exp Region 2'!$V$59/'MMA Rev-Exp Region 2'!$V$9, 0)","v":{"v":0,"d":"$0.00"}},{"$f":"IFERROR('MMA Rev-Exp Region 2'!$W$59/'MMA Rev-Exp Region 2'!$W$9, 0)","v":{"v":0,"d":"$0.00"}},{"$f":"IFERROR('MMA Rev-Exp Region 2'!$X$59/'MMA Rev-Exp Region 2'!$X$9, 0)","v":{"v":0,"d":"$0.00"}},{"$f":"IFERROR('MMA Rev-Exp Region 2'!$Y$59/'MMA Rev-Exp Region 2'!$Y$9, 0)","v":{"v":0,"d":"$0.00"}}]
["MMA",null,null,2016,"2016-12-31","Q2","2017-06-30","Region 2","Operating Expense","Medical Benefits Expense","Pharmacy Services","8.5","Ending accrual for Rebates receivable",{"$f":"IFERROR('MMA Rev-Exp Region 2'!$O$60/'MMA Rev-Exp Region 2'!$O$9, 0)","v":{"v":0,"d":"$0.00"}},{"$f":"IFERROR('MMA Rev-Exp Region 2'!$P$60/'MMA Rev-Exp Region 2'!$P$9, 0)","v":{"v":0,"d":"$0.00"}},{"$f":"IFERROR('MMA Rev-Exp Region 2'!$Q$60/'MMA Rev-Exp Region 2'!$Q$9, 0)","v":{"v":0,"d":"$0.00"}},{"$f":"IFERROR('MMA Rev-Exp Region 2'!$R$60/'MMA Rev-Exp Region 2'!$R$9, 0)","v":{"v":0,"d":"$0.00"}},{"$f":"IFERROR('MMA Rev-Exp Region 2'!$S$60/'MMA Rev-Exp Region 2'!$S$9, 0)","v":{"v":0,"d":"$0.00"}},{"$f":"IFERROR('MMA Rev-Exp Region 2'!$T$60/'MMA Rev-Exp Region 2'!$T$9, 0)","v":{"v":0,"d":"$0.00"}},{"$f":"IFERROR('MMA Rev-Exp Region 2'!$U$60/'MMA Rev-Exp Region 2'!$U$9, 0)","v":{"v":0,"d":"$0.00"}},{"$f":"IFERROR('MMA Rev-Exp Region 2'!$V$60/'MMA Rev-Exp Region 2'!$V$9, 0)","v":{"v":0,"d":"$0.00"}},{"$f":"IFERROR('MMA Rev-Exp Region 2'!$W$60/'MMA Rev-Exp Region 2'!$W$9, 0)","v":{"v":0,"d":"$0.00"}},{"$f":"IFERROR('MMA Rev-Exp Region 2'!$X$60/'MMA Rev-Exp Region 2'!$X$9, 0)","v":{"v":0,"d":"$0.00"}},{"$f":"IFERROR('MMA Rev-Exp Region 2'!$Y$60/'MMA Rev-Exp Region 2'!$Y$9, 0)","v":{"v":0,"d":"$0.00"}}]
["MMA",null,null,2016,"2016-12-31","Q2","2017-06-30","Region 2","Operating Expense","Medical Benefits Expense","Pharmacy Services","8.6","Prescription Drugs Subcapitation",{"$f":"IFERROR('MMA Rev-Exp Region 2'!$O$61/'MMA Rev-Exp Region 2'!$O$9, 0)","v":{"v":0,"d":"$0.00"}},{"$f":"IFERROR('MMA Rev-Exp Region 2'!$P$61/'MMA Rev-Exp Region 2'!$P$9, 0)","v":{"v":0,"d":"$0.00"}},{"$f":"IFERROR('MMA Rev-Exp Region 2'!$Q$61/'MMA Rev-Exp Region 2'!$Q$9, 0)","v":{"v":0,"d":"$0.00"}},{"$f":"IFERROR('MMA Rev-Exp Region 2'!$R$61/'MMA Rev-Exp Region 2'!$R$9, 0)","v":{"v":0,"d":"$0.00"}},{"$f":"IFERROR('MMA Rev-Exp Region 2'!$S$61/'MMA Rev-Exp Region 2'!$S$9, 0)","v":{"v":0,"d":"$0.00"}},{"$f":"IFERROR('MMA Rev-Exp Region 2'!$T$61/'MMA Rev-Exp Region 2'!$T$9, 0)","v":{"v":0,"d":"$0.00"}},{"$f":"IFERROR('MMA Rev-Exp Region 2'!$U$61/'MMA Rev-Exp Region 2'!$U$9, 0)","v":{"v":0,"d":"$0.00"}},{"$f":"IFERROR('MMA Rev-Exp Region 2'!$V$61/'MMA Rev-Exp Region 2'!$V$9, 0)","v":{"v":0,"d":"$0.00"}},{"$f":"IFERROR('MMA Rev-Exp Region 2'!$W$61/'MMA Rev-Exp Region 2'!$W$9, 0)","v":{"v":0,"d":"$0.00"}},{"$f":"IFERROR('MMA Rev-Exp Region 2'!$X$61/'MMA Rev-Exp Region 2'!$X$9, 0)","v":{"v":0,"d":"$0.00"}},{"$f":"IFERROR('MMA Rev-Exp Region 2'!$Y$61/'MMA Rev-Exp Region 2'!$Y$9, 0)","v":{"v":0,"d":"$0.00"}}]
["MMA",null,null,2016,"2016-12-31","Q2","2017-06-30","Region 2","Operating Expense","Medical Benefits Expense","Pharmacy Services","8.7","Prescription Drug Settlements",{"$f":"IFERROR('MMA Rev-Exp Region 2'!$O$62/'MMA Rev-Exp Region 2'!$O$9, 0)","v":{"v":0,"d":"$0.00"}},{"$f":"IFERROR('MMA Rev-Exp Region 2'!$P$62/'MMA Rev-Exp Region 2'!$P$9, 0)","v":{"v":0,"d":"$0.00"}},{"$f":"IFERROR('MMA Rev-Exp Region 2'!$Q$62/'MMA Rev-Exp Region 2'!$Q$9, 0)","v":{"v":0,"d":"$0.00"}},{"$f":"IFERROR('MMA Rev-Exp Region 2'!$R$62/'MMA Rev-Exp Region 2'!$R$9, 0)","v":{"v":0,"d":"$0.00"}},{"$f":"IFERROR('MMA Rev-Exp Region 2'!$S$62/'MMA Rev-Exp Region 2'!$S$9, 0)","v":{"v":0,"d":"$0.00"}},{"$f":"IFERROR('MMA Rev-Exp Region 2'!$T$62/'MMA Rev-Exp Region 2'!$T$9, 0)","v":{"v":0,"d":"$0.00"}},{"$f":"IFERROR('MMA Rev-Exp Region 2'!$U$62/'MMA Rev-Exp Region 2'!$U$9, 0)","v":{"v":0,"d":"$0.00"}},{"$f":"IFERROR('MMA Rev-Exp Region 2'!$V$62/'MMA Rev-Exp Region 2'!$V$9, 0)","v":{"v":0,"d":"$0.00"}},{"$f":"IFERROR('MMA Rev-Exp Region 2'!$W$62/'MMA Rev-Exp Region 2'!$W$9, 0)","v":{"v":0,"d":"$0.00"}},{"$f":"IFERROR('MMA Rev-Exp Region 2'!$X$62/'MMA Rev-Exp Region 2'!$X$9, 0)","v":{"v":0,"d":"$0.00"}},{"$f":"IFERROR('MMA Rev-Exp Region 2'!$Y$62/'MMA Rev-Exp Region 2'!$Y$9, 0)","v":{"v":0,"d":"$0.00"}}]
["MMA",null,null,2016,"2016-12-31","Q2","2017-06-30","Region 2","Operating Expense","Medical Benefits Expense","Other MMA Services",9.1,"Home Health, Private Duty Nursing, Personal Care FFS",{"$f":"IFERROR('MMA Rev-Exp Region 2'!$O$64/'MMA Rev-Exp Region 2'!$O$9, 0)","v":{"v":0,"d":"$0.00"}},{"$f":"IFERROR('MMA Rev-Exp Region 2'!$P$64/'MMA Rev-Exp Region 2'!$P$9, 0)","v":{"v":0,"d":"$0.00"}},{"$f":"IFERROR('MMA Rev-Exp Region 2'!$Q$64/'MMA Rev-Exp Region 2'!$Q$9, 0)","v":{"v":0,"d":"$0.00"}},{"$f":"IFERROR('MMA Rev-Exp Region 2'!$R$64/'MMA Rev-Exp Region 2'!$R$9, 0)","v":{"v":0,"d":"$0.00"}},{"$f":"IFERROR('MMA Rev-Exp Region 2'!$S$64/'MMA Rev-Exp Region 2'!$S$9, 0)","v":{"v":0,"d":"$0.00"}},{"$f":"IFERROR('MMA Rev-Exp Region 2'!$T$64/'MMA Rev-Exp Region 2'!$T$9, 0)","v":{"v":0,"d":"$0.00"}},{"$f":"IFERROR('MMA Rev-Exp Region 2'!$U$64/'MMA Rev-Exp Region 2'!$U$9, 0)","v":{"v":0,"d":"$0.00"}},{"$f":"IFERROR('MMA Rev-Exp Region 2'!$V$64/'MMA Rev-Exp Region 2'!$V$9, 0)","v":{"v":0,"d":"$0.00"}},{"$f":"IFERROR('MMA Rev-Exp Region 2'!$W$64/'MMA Rev-Exp Region 2'!$W$9, 0)","v":{"v":0,"d":"$0.00"}},{"$f":"IFERROR('MMA Rev-Exp Region 2'!$X$64/'MMA Rev-Exp Region 2'!$X$9, 0)","v":{"v":0,"d":"$0.00"}},{"$f":"IFERROR('MMA Rev-Exp Region 2'!$Y$64/'MMA Rev-Exp Region 2'!$Y$9, 0)","v":{"v":0,"d":"$0.00"}}]
["MMA",null,null,2016,"2016-12-31","Q2","2017-06-30","Region 2","Operating Expense","Medical Benefits Expense","Other MMA Services","9.2","Hospice FFS",{"$f":"IFERROR('MMA Rev-Exp Region 2'!$O$65/'MMA Rev-Exp Region 2'!$O$9, 0)","v":{"v":0,"d":"$0.00"}},{"$f":"IFERROR('MMA Rev-Exp Region 2'!$P$65/'MMA Rev-Exp Region 2'!$P$9, 0)","v":{"v":0,"d":"$0.00"}},{"$f":"IFERROR('MMA Rev-Exp Region 2'!$Q$65/'MMA Rev-Exp Region 2'!$Q$9, 0)","v":{"v":0,"d":"$0.00"}},{"$f":"IFERROR('MMA Rev-Exp Region 2'!$R$65/'MMA Rev-Exp Region 2'!$R$9, 0)","v":{"v":0,"d":"$0.00"}},{"$f":"IFERROR('MMA Rev-Exp Region 2'!$S$65/'MMA Rev-Exp Region 2'!$S$9, 0)","v":{"v":0,"d":"$0.00"}},{"$f":"IFERROR('MMA Rev-Exp Region 2'!$T$65/'MMA Rev-Exp Region 2'!$T$9, 0)","v":{"v":0,"d":"$0.00"}},{"$f":"IFERROR('MMA Rev-Exp Region 2'!$U$65/'MMA Rev-Exp Region 2'!$U$9, 0)","v":{"v":0,"d":"$0.00"}},{"$f":"IFERROR('MMA Rev-Exp Region 2'!$V$65/'MMA Rev-Exp Region 2'!$V$9, 0)","v":{"v":0,"d":"$0.00"}},{"$f":"IFERROR('MMA Rev-Exp Region 2'!$W$65/'MMA Rev-Exp Region 2'!$W$9, 0)","v":{"v":0,"d":"$0.00"}},{"$f":"IFERROR('MMA Rev-Exp Region 2'!$X$65/'MMA Rev-Exp Region 2'!$X$9, 0)","v":{"v":0,"d":"$0.00"}},{"$f":"IFERROR('MMA Rev-Exp Region 2'!$Y$65/'MMA Rev-Exp Region 2'!$Y$9, 0)","v":{"v":0,"d":"$0.00"}}]
["MMA",null,null,2016,"2016-12-31","Q2","2017-06-30","Region 2","Operating Expense","Medical Benefits Expense","Other MMA Services","9.3","DME FFS",{"$f":"IFERROR('MMA Rev-Exp Region 2'!$O$66/'MMA Rev-Exp Region 2'!$O$9, 0)","v":{"v":0,"d":"$0.00"}},{"$f":"IFERROR('MMA Rev-Exp Region 2'!$P$66/'MMA Rev-Exp Region 2'!$P$9, 0)","v":{"v":0,"d":"$0.00"}},{"$f":"IFERROR('MMA Rev-Exp Region 2'!$Q$66/'MMA Rev-Exp Region 2'!$Q$9, 0)","v":{"v":0,"d":"$0.00"}},{"$f":"IFERROR('MMA Rev-Exp Region 2'!$R$66/'MMA Rev-Exp Region 2'!$R$9, 0)","v":{"v":0,"d":"$0.00"}},{"$f":"IFERROR('MMA Rev-Exp Region 2'!$S$66/'MMA Rev-Exp Region 2'!$S$9, 0)","v":{"v":0,"d":"$0.00"}},{"$f":"IFERROR('MMA Rev-Exp Region 2'!$T$66/'MMA Rev-Exp Region 2'!$T$9, 0)","v":{"v":0,"d":"$0.00"}},{"$f":"IFERROR('MMA Rev-Exp Region 2'!$U$66/'MMA Rev-Exp Region 2'!$U$9, 0)","v":{"v":0,"d":"$0.00"}},{"$f":"IFERROR('MMA Rev-Exp Region 2'!$V$66/'MMA Rev-Exp Region 2'!$V$9, 0)","v":{"v":0,"d":"$0.00"}},{"$f":"IFERROR('MMA Rev-Exp Region 2'!$W$66/'MMA Rev-Exp Region 2'!$W$9, 0)","v":{"v":0,"d":"$0.00"}},{"$f":"IFERROR('MMA Rev-Exp Region 2'!$X$66/'MMA Rev-Exp Region 2'!$X$9, 0)","v":{"v":0,"d":"$0.00"}},{"$f":"IFERROR('MMA Rev-Exp Region 2'!$Y$66/'MMA Rev-Exp Region 2'!$Y$9, 0)","v":{"v":0,"d":"$0.00"}}]
["MMA",null,null,2016,"2016-12-31","Q2","2017-06-30","Region 2","Operating Expense","Medical Benefits Expense","Other MMA Services","9.4","Other State Plan Services FFS",{"$f":"IFERROR('MMA Rev-Exp Region 2'!$O$67/'MMA Rev-Exp Region 2'!$O$9, 0)","v":{"v":0,"d":"$0.00"}},{"$f":"IFERROR('MMA Rev-Exp Region 2'!$P$67/'MMA Rev-Exp Region 2'!$P$9, 0)","v":{"v":0,"d":"$0.00"}},{"$f":"IFERROR('MMA Rev-Exp Region 2'!$Q$67/'MMA Rev-Exp Region 2'!$Q$9, 0)","v":{"v":0,"d":"$0.00"}},{"$f":"IFERROR('MMA Rev-Exp Region 2'!$R$67/'MMA Rev-Exp Region 2'!$R$9, 0)","v":{"v":0,"d":"$0.00"}},{"$f":"IFERROR('MMA Rev-Exp Region 2'!$S$67/'MMA Rev-Exp Region 2'!$S$9, 0)","v":{"v":0,"d":"$0.00"}},{"$f":"IFERROR('MMA Rev-Exp Region 2'!$T$67/'MMA Rev-Exp Region 2'!$T$9, 0)","v":{"v":0,"d":"$0.00"}},{"$f":"IFERROR('MMA Rev-Exp Region 2'!$U$67/'MMA Rev-Exp Region 2'!$U$9, 0)","v":{"v":0,"d":"$0.00"}},{"$f":"IFERROR('MMA Rev-Exp Region 2'!$V$67/'MMA Rev-Exp Region 2'!$V$9, 0)","v":{"v":0,"d":"$0.00"}},{"$f":"IFERROR('MMA Rev-Exp Region 2'!$W$67/'MMA Rev-Exp Region 2'!$W$9, 0)","v":{"v":0,"d":"$0.00"}},{"$f":"IFERROR('MMA Rev-Exp Region 2'!$X$67/'MMA Rev-Exp Region 2'!$X$9, 0)","v":{"v":0,"d":"$0.00"}},{"$f":"IFERROR('MMA Rev-Exp Region 2'!$Y$67/'MMA Rev-Exp Region 2'!$Y$9, 0)","v":{"v":0,"d":"$0.00"}}]
["MMA",null,null,2016,"2016-12-31","Q2","2017-06-30","Region 2","Operating Expense","Medical Benefits Expense","Other MMA Services","9.5","Other Services Subcapitation",{"$f":"IFERROR('MMA Rev-Exp Region 2'!$O$68/'MMA Rev-Exp Region 2'!$O$9, 0)","v":{"v":0,"d":"$0.00"}},{"$f":"IFERROR('MMA Rev-Exp Region 2'!$P$68/'MMA Rev-Exp Region 2'!$P$9, 0)","v":{"v":0,"d":"$0.00"}},{"$f":"IFERROR('MMA Rev-Exp Region 2'!$Q$68/'MMA Rev-Exp Region 2'!$Q$9, 0)","v":{"v":0,"d":"$0.00"}},{"$f":"IFERROR('MMA Rev-Exp Region 2'!$R$68/'MMA Rev-Exp Region 2'!$R$9, 0)","v":{"v":0,"d":"$0.00"}},{"$f":"IFERROR('MMA Rev-Exp Region 2'!$S$68/'MMA Rev-Exp Region 2'!$S$9, 0)","v":{"v":0,"d":"$0.00"}},{"$f":"IFERROR('MMA Rev-Exp Region 2'!$T$68/'MMA Rev-Exp Region 2'!$T$9, 0)","v":{"v":0,"d":"$0.00"}},{"$f":"IFERROR('MMA Rev-Exp Region 2'!$U$68/'MMA Rev-Exp Region 2'!$U$9, 0)","v":{"v":0,"d":"$0.00"}},{"$f":"IFERROR('MMA Rev-Exp Region 2'!$V$68/'MMA Rev-Exp Region 2'!$V$9, 0)","v":{"v":0,"d":"$0.00"}},{"$f":"IFERROR('MMA Rev-Exp Region 2'!$W$68/'MMA Rev-Exp Region 2'!$W$9, 0)","v":{"v":0,"d":"$0.00"}},{"$f":"IFERROR('MMA Rev-Exp Region 2'!$X$68/'MMA Rev-Exp Region 2'!$X$9, 0)","v":{"v":0,"d":"$0.00"}},{"$f":"IFERROR('MMA Rev-Exp Region 2'!$Y$68/'MMA Rev-Exp Region 2'!$Y$9, 0)","v":{"v":0,"d":"$0.00"}}]
["MMA",null,null,2016,"2016-12-31","Q2","2017-06-30","Region 2","Operating Expense","Medical Benefits Expense","Other MMA Services","9.6","Ending IBNP for Other Services",{"$f":"IFERROR('MMA Rev-Exp Region 2'!$O$69/'MMA Rev-Exp Region 2'!$O$9, 0)","v":{"v":0,"d":"$0.00"}},{"$f":"IFERROR('MMA Rev-Exp Region 2'!$P$69/'MMA Rev-Exp Region 2'!$P$9, 0)","v":{"v":0,"d":"$0.00"}},{"$f":"IFERROR('MMA Rev-Exp Region 2'!$Q$69/'MMA Rev-Exp Region 2'!$Q$9, 0)","v":{"v":0,"d":"$0.00"}},{"$f":"IFERROR('MMA Rev-Exp Region 2'!$R$69/'MMA Rev-Exp Region 2'!$R$9, 0)","v":{"v":0,"d":"$0.00"}},{"$f":"IFERROR('MMA Rev-Exp Region 2'!$S$69/'MMA Rev-Exp Region 2'!$S$9, 0)","v":{"v":0,"d":"$0.00"}},{"$f":"IFERROR('MMA Rev-Exp Region 2'!$T$69/'MMA Rev-Exp Region 2'!$T$9, 0)","v":{"v":0,"d":"$0.00"}},{"$f":"IFERROR('MMA Rev-Exp Region 2'!$U$69/'MMA Rev-Exp Region 2'!$U$9, 0)","v":{"v":0,"d":"$0.00"}},{"$f":"IFERROR('MMA Rev-Exp Region 2'!$V$69/'MMA Rev-Exp Region 2'!$V$9, 0)","v":{"v":0,"d":"$0.00"}},{"$f":"IFERROR('MMA Rev-Exp Region 2'!$W$69/'MMA Rev-Exp Region 2'!$W$9, 0)","v":{"v":0,"d":"$0.00"}},{"$f":"IFERROR('MMA Rev-Exp Region 2'!$X$69/'MMA Rev-Exp Region 2'!$X$9, 0)","v":{"v":0,"d":"$0.00"}},{"$f":"IFERROR('MMA Rev-Exp Region 2'!$Y$69/'MMA Rev-Exp Region 2'!$Y$9, 0)","v":{"v":0,"d":"$0.00"}}]
["MMA",null,null,2016,"2016-12-31","Q2","2017-06-30","Region 2","Operating Expense","Medical Benefits Expense","Other MMA Services","9.7","Other Services Settlements",{"$f":"IFERROR('MMA Rev-Exp Region 2'!$O$70/'MMA Rev-Exp Region 2'!$O$9, 0)","v":{"v":0,"d":"$0.00"}},{"$f":"IFERROR('MMA Rev-Exp Region 2'!$P$70/'MMA Rev-Exp Region 2'!$P$9, 0)","v":{"v":0,"d":"$0.00"}},{"$f":"IFERROR('MMA Rev-Exp Region 2'!$Q$70/'MMA Rev-Exp Region 2'!$Q$9, 0)","v":{"v":0,"d":"$0.00"}},{"$f":"IFERROR('MMA Rev-Exp Region 2'!$R$70/'MMA Rev-Exp Region 2'!$R$9, 0)","v":{"v":0,"d":"$0.00"}},{"$f":"IFERROR('MMA Rev-Exp Region 2'!$S$70/'MMA Rev-Exp Region 2'!$S$9, 0)","v":{"v":0,"d":"$0.00"}},{"$f":"IFERROR('MMA Rev-Exp Region 2'!$T$70/'MMA Rev-Exp Region 2'!$T$9, 0)","v":{"v":0,"d":"$0.00"}},{"$f":"IFERROR('MMA Rev-Exp Region 2'!$U$70/'MMA Rev-Exp Region 2'!$U$9, 0)","v":{"v":0,"d":"$0.00"}},{"$f":"IFERROR('MMA Rev-Exp Region 2'!$V$70/'MMA Rev-Exp Region 2'!$V$9, 0)","v":{"v":0,"d":"$0.00"}},{"$f":"IFERROR('MMA Rev-Exp Region 2'!$W$70/'MMA Rev-Exp Region 2'!$W$9, 0)","v":{"v":0,"d":"$0.00"}},{"$f":"IFERROR('MMA Rev-Exp Region 2'!$X$70/'MMA Rev-Exp Region 2'!$X$9, 0)","v":{"v":0,"d":"$0.00"}},{"$f":"IFERROR('MMA Rev-Exp Region 2'!$Y$70/'MMA Rev-Exp Region 2'!$Y$9, 0)","v":{"v":0,"d":"$0.00"}}]
["MMA",null,null,2016,"2016-12-31","Q2","2017-06-30","Region 2","Operating Expense","Medical Benefits Expense","Expanded Benefits","10.1","Expanded Benefits FFS",{"$f":"IFERROR('MMA Rev-Exp Region 2'!$O$72/'MMA Rev-Exp Region 2'!$O$9, 0)","v":{"v":0,"d":"$0.00"}},{"$f":"IFERROR('MMA Rev-Exp Region 2'!$P$72/'MMA Rev-Exp Region 2'!$P$9, 0)","v":{"v":0,"d":"$0.00"}},{"$f":"IFERROR('MMA Rev-Exp Region 2'!$Q$72/'MMA Rev-Exp Region 2'!$Q$9, 0)","v":{"v":0,"d":"$0.00"}},{"$f":"IFERROR('MMA Rev-Exp Region 2'!$R$72/'MMA Rev-Exp Region 2'!$R$9, 0)","v":{"v":0,"d":"$0.00"}},{"$f":"IFERROR('MMA Rev-Exp Region 2'!$S$72/'MMA Rev-Exp Region 2'!$S$9, 0)","v":{"v":0,"d":"$0.00"}},{"$f":"IFERROR('MMA Rev-Exp Region 2'!$T$72/'MMA Rev-Exp Region 2'!$T$9, 0)","v":{"v":0,"d":"$0.00"}},{"$f":"IFERROR('MMA Rev-Exp Region 2'!$U$72/'MMA Rev-Exp Region 2'!$U$9, 0)","v":{"v":0,"d":"$0.00"}},{"$f":"IFERROR('MMA Rev-Exp Region 2'!$V$72/'MMA Rev-Exp Region 2'!$V$9, 0)","v":{"v":0,"d":"$0.00"}},{"$f":"IFERROR('MMA Rev-Exp Region 2'!$W$72/'MMA Rev-Exp Region 2'!$W$9, 0)","v":{"v":0,"d":"$0.00"}},{"$f":"IFERROR('MMA Rev-Exp Region 2'!$X$72/'MMA Rev-Exp Region 2'!$X$9, 0)","v":{"v":0,"d":"$0.00"}},{"$f":"IFERROR('MMA Rev-Exp Region 2'!$Y$72/'MMA Rev-Exp Region 2'!$Y$9, 0)","v":{"v":0,"d":"$0.00"}}]
["MMA",null,null,2016,"2016-12-31","Q2","2017-06-30","Region 2","Operating Expense","Medical Benefits Expense","Expanded Benefits","10.2","Expanded benefits Subcapitation",{"$f":"IFERROR('MMA Rev-Exp Region 2'!$O$73/'MMA Rev-Exp Region 2'!$O$9, 0)","v":{"v":0,"d":"$0.00"}},{"$f":"IFERROR('MMA Rev-Exp Region 2'!$P$73/'MMA Rev-Exp Region 2'!$P$9, 0)","v":{"v":0,"d":"$0.00"}},{"$f":"IFERROR('MMA Rev-Exp Region 2'!$Q$73/'MMA Rev-Exp Region 2'!$Q$9, 0)","v":{"v":0,"d":"$0.00"}},{"$f":"IFERROR('MMA Rev-Exp Region 2'!$R$73/'MMA Rev-Exp Region 2'!$R$9, 0)","v":{"v":0,"d":"$0.00"}},{"$f":"IFERROR('MMA Rev-Exp Region 2'!$S$73/'MMA Rev-Exp Region 2'!$S$9, 0)","v":{"v":0,"d":"$0.00"}},{"$f":"IFERROR('MMA Rev-Exp Region 2'!$T$73/'MMA Rev-Exp Region 2'!$T$9, 0)","v":{"v":0,"d":"$0.00"}},{"$f":"IFERROR('MMA Rev-Exp Region 2'!$U$73/'MMA Rev-Exp Region 2'!$U$9, 0)","v":{"v":0,"d":"$0.00"}},{"$f":"IFERROR('MMA Rev-Exp Region 2'!$V$73/'MMA Rev-Exp Region 2'!$V$9, 0)","v":{"v":0,"d":"$0.00"}},{"$f":"IFERROR('MMA Rev-Exp Region 2'!$W$73/'MMA Rev-Exp Region 2'!$W$9, 0)","v":{"v":0,"d":"$0.00"}},{"$f":"IFERROR('MMA Rev-Exp Region 2'!$X$73/'MMA Rev-Exp Region 2'!$X$9, 0)","v":{"v":0,"d":"$0.00"}},{"$f":"IFERROR('MMA Rev-Exp Region 2'!$Y$73/'MMA Rev-Exp Region 2'!$Y$9, 0)","v":{"v":0,"d":"$0.00"}}]
["MMA",null,null,2016,"2016-12-31","Q2","2017-06-30","Region 2","Operating Expense","Medical Benefits Expense","Expanded Benefits","10.3","Ending IBNP for Expanded Benefits",{"$f":"IFERROR('MMA Rev-Exp Region 2'!$O$74/'MMA Rev-Exp Region 2'!$O$9, 0)","v":{"v":0,"d":"$0.00"}},{"$f":"IFERROR('MMA Rev-Exp Region 2'!$P$74/'MMA Rev-Exp Region 2'!$P$9, 0)","v":{"v":0,"d":"$0.00"}},{"$f":"IFERROR('MMA Rev-Exp Region 2'!$Q$74/'MMA Rev-Exp Region 2'!$Q$9, 0)","v":{"v":0,"d":"$0.00"}},{"$f":"IFERROR('MMA Rev-Exp Region 2'!$R$74/'MMA Rev-Exp Region 2'!$R$9, 0)","v":{"v":0,"d":"$0.00"}},{"$f":"IFERROR('MMA Rev-Exp Region 2'!$S$74/'MMA Rev-Exp Region 2'!$S$9, 0)","v":{"v":0,"d":"$0.00"}},{"$f":"IFERROR('MMA Rev-Exp Region 2'!$T$74/'MMA Rev-Exp Region 2'!$T$9, 0)","v":{"v":0,"d":"$0.00"}},{"$f":"IFERROR('MMA Rev-Exp Region 2'!$U$74/'MMA Rev-Exp Region 2'!$U$9, 0)","v":{"v":0,"d":"$0.00"}},{"$f":"IFERROR('MMA Rev-Exp Region 2'!$V$74/'MMA Rev-Exp Region 2'!$V$9, 0)","v":{"v":0,"d":"$0.00"}},{"$f":"IFERROR('MMA Rev-Exp Region 2'!$W$74/'MMA Rev-Exp Region 2'!$W$9, 0)","v":{"v":0,"d":"$0.00"}},{"$f":"IFERROR('MMA Rev-Exp Region 2'!$X$74/'MMA Rev-Exp Region 2'!$X$9, 0)","v":{"v":0,"d":"$0.00"}},{"$f":"IFERROR('MMA Rev-Exp Region 2'!$Y$74/'MMA Rev-Exp Region 2'!$Y$9, 0)","v":{"v":0,"d":"$0.00"}}]
["MMA",null,null,2016,"2016-12-31","Q2","2017-06-30","Region 2","Operating Expense","Medical Benefits Expense","Expanded Benefits","10.4","Expanded Benefits Settlements",{"$f":"IFERROR('MMA Rev-Exp Region 2'!$O$75/'MMA Rev-Exp Region 2'!$O$9, 0)","v":{"v":0,"d":"$0.00"}},{"$f":"IFERROR('MMA Rev-Exp Region 2'!$P$75/'MMA Rev-Exp Region 2'!$P$9, 0)","v":{"v":0,"d":"$0.00"}},{"$f":"IFERROR('MMA Rev-Exp Region 2'!$Q$75/'MMA Rev-Exp Region 2'!$Q$9, 0)","v":{"v":0,"d":"$0.00"}},{"$f":"IFERROR('MMA Rev-Exp Region 2'!$R$75/'MMA Rev-Exp Region 2'!$R$9, 0)","v":{"v":0,"d":"$0.00"}},{"$f":"IFERROR('MMA Rev-Exp Region 2'!$S$75/'MMA Rev-Exp Region 2'!$S$9, 0)","v":{"v":0,"d":"$0.00"}},{"$f":"IFERROR('MMA Rev-Exp Region 2'!$T$75/'MMA Rev-Exp Region 2'!$T$9, 0)","v":{"v":0,"d":"$0.00"}},{"$f":"IFERROR('MMA Rev-Exp Region 2'!$U$75/'MMA Rev-Exp Region 2'!$U$9, 0)","v":{"v":0,"d":"$0.00"}},{"$f":"IFERROR('MMA Rev-Exp Region 2'!$V$75/'MMA Rev-Exp Region 2'!$V$9, 0)","v":{"v":0,"d":"$0.00"}},{"$f":"IFERROR('MMA Rev-Exp Region 2'!$W$75/'MMA Rev-Exp Region 2'!$W$9, 0)","v":{"v":0,"d":"$0.00"}},{"$f":"IFERROR('MMA Rev-Exp Region 2'!$X$75/'MMA Rev-Exp Region 2'!$X$9, 0)","v":{"v":0,"d":"$0.00"}},{"$f":"IFERROR('MMA Rev-Exp Region 2'!$Y$75/'MMA Rev-Exp Region 2'!$Y$9, 0)","v":{"v":0,"d":"$0.00"}}]
["MMA",null,null,2016,"2016-12-31","Q2","2017-06-30","Region 2","Operating Expense","Medical Benefits Expense","Other Medical","11.5","TPL & Fraud/Abuse Recoveries",{"$f":"IFERROR('MMA Rev-Exp Region 2'!$O$81/'MMA Rev-Exp Region 2'!$O$9, 0)","v":{"v":0,"d":"$0.00"}},{"$f":"IFERROR('MMA Rev-Exp Region 2'!$P$81/'MMA Rev-Exp Region 2'!$P$9, 0)","v":{"v":0,"d":"$0.00"}},{"$f":"IFERROR('MMA Rev-Exp Region 2'!$Q$81/'MMA Rev-Exp Region 2'!$Q$9, 0)","v":{"v":0,"d":"$0.00"}},{"$f":"IFERROR('MMA Rev-Exp Region 2'!$R$81/'MMA Rev-Exp Region 2'!$R$9, 0)","v":{"v":0,"d":"$0.00"}},{"$f":"IFERROR('MMA Rev-Exp Region 2'!$S$81/'MMA Rev-Exp Region 2'!$S$9, 0)","v":{"v":0,"d":"$0.00"}},{"$f":"IFERROR('MMA Rev-Exp Region 2'!$T$81/'MMA Rev-Exp Region 2'!$T$9, 0)","v":{"v":0,"d":"$0.00"}},{"$f":"IFERROR('MMA Rev-Exp Region 2'!$U$81/'MMA Rev-Exp Region 2'!$U$9, 0)","v":{"v":0,"d":"$0.00"}},{"$f":"IFERROR('MMA Rev-Exp Region 2'!$V$81/'MMA Rev-Exp Region 2'!$V$9, 0)","v":{"v":0,"d":"$0.00"}},{"$f":"IFERROR('MMA Rev-Exp Region 2'!$W$81/'MMA Rev-Exp Region 2'!$W$9, 0)","v":{"v":0,"d":"$0.00"}},{"$f":"IFERROR('MMA Rev-Exp Region 2'!$X$81/'MMA Rev-Exp Region 2'!$X$9, 0)","v":{"v":0,"d":"$0.00"}},{"$f":"IFERROR('MMA Rev-Exp Region 2'!$Y$81/'MMA Rev-Exp Region 2'!$Y$9, 0)","v":{"v":0,"d":"$0.00"}}]
["MMA",null,null,2016,"2016-12-31","Q2","2017-06-30","Region 2","Operating Expense","Medical Benefits Expense","Other Medical","11.6.1","Premium Deficiency Reserve",{"$f":"IFERROR('MMA Rev-Exp Region 2'!$O$82/'MMA Rev-Exp Region 2'!$O$9, 0)","v":{"v":0,"d":"$0.00"}},{"$f":"IFERROR('MMA Rev-Exp Region 2'!$P$82/'MMA Rev-Exp Region 2'!$P$9, 0)","v":{"v":0,"d":"$0.00"}},{"$f":"IFERROR('MMA Rev-Exp Region 2'!$Q$82/'MMA Rev-Exp Region 2'!$Q$9, 0)","v":{"v":0,"d":"$0.00"}},{"$f":"IFERROR('MMA Rev-Exp Region 2'!$R$82/'MMA Rev-Exp Region 2'!$R$9, 0)","v":{"v":0,"d":"$0.00"}},{"$f":"IFERROR('MMA Rev-Exp Region 2'!$S$82/'MMA Rev-Exp Region 2'!$S$9, 0)","v":{"v":0,"d":"$0.00"}},{"$f":"IFERROR('MMA Rev-Exp Region 2'!$T$82/'MMA Rev-Exp Region 2'!$T$9, 0)","v":{"v":0,"d":"$0.00"}},{"$f":"IFERROR('MMA Rev-Exp Region 2'!$U$82/'MMA Rev-Exp Region 2'!$U$9, 0)","v":{"v":0,"d":"$0.00"}},{"$f":"IFERROR('MMA Rev-Exp Region 2'!$V$82/'MMA Rev-Exp Region 2'!$V$9, 0)","v":{"v":0,"d":"$0.00"}},{"$f":"IFERROR('MMA Rev-Exp Region 2'!$W$82/'MMA Rev-Exp Region 2'!$W$9, 0)","v":{"v":0,"d":"$0.00"}},{"$f":"IFERROR('MMA Rev-Exp Region 2'!$X$82/'MMA Rev-Exp Region 2'!$X$9, 0)","v":{"v":0,"d":"$0.00"}},{"$f":"IFERROR('MMA Rev-Exp Region 2'!$Y$82/'MMA Rev-Exp Region 2'!$Y$9, 0)","v":{"v":0,"d":"$0.00"}}]
["MMA",null,null,2016,"2016-12-31","Q2","2017-06-30","Region 2","Operating Expense","Medical Benefits Expense","Other Medical","11.8","Reinsurance Premiums",{"$f":"IFERROR('MMA Rev-Exp Region 2'!$O$84/'MMA Rev-Exp Region 2'!$O$9, 0)","v":{"v":0,"d":"$0.00"}},{"$f":"IFERROR('MMA Rev-Exp Region 2'!$P$84/'MMA Rev-Exp Region 2'!$P$9, 0)","v":{"v":0,"d":"$0.00"}},{"$f":"IFERROR('MMA Rev-Exp Region 2'!$Q$84/'MMA Rev-Exp Region 2'!$Q$9, 0)","v":{"v":0,"d":"$0.00"}},{"$f":"IFERROR('MMA Rev-Exp Region 2'!$R$84/'MMA Rev-Exp Region 2'!$R$9, 0)","v":{"v":0,"d":"$0.00"}},{"$f":"IFERROR('MMA Rev-Exp Region 2'!$S$84/'MMA Rev-Exp Region 2'!$S$9, 0)","v":{"v":0,"d":"$0.00"}},{"$f":"IFERROR('MMA Rev-Exp Region 2'!$T$84/'MMA Rev-Exp Region 2'!$T$9, 0)","v":{"v":0,"d":"$0.00"}},{"$f":"IFERROR('MMA Rev-Exp Region 2'!$U$84/'MMA Rev-Exp Region 2'!$U$9, 0)","v":{"v":0,"d":"$0.00"}},{"$f":"IFERROR('MMA Rev-Exp Region 2'!$V$84/'MMA Rev-Exp Region 2'!$V$9, 0)","v":{"v":0,"d":"$0.00"}},{"$f":"IFERROR('MMA Rev-Exp Region 2'!$W$84/'MMA Rev-Exp Region 2'!$W$9, 0)","v":{"v":0,"d":"$0.00"}},{"$f":"IFERROR('MMA Rev-Exp Region 2'!$X$84/'MMA Rev-Exp Region 2'!$X$9, 0)","v":{"v":0,"d":"$0.00"}},{"$f":"IFERROR('MMA Rev-Exp Region 2'!$Y$84/'MMA Rev-Exp Region 2'!$Y$9, 0)","v":{"v":0,"d":"$0.00"}}]
["MMA",null,null,2016,"2016-12-31","Q2","2017-06-30","Region 2","Operating Expense","Medical Benefits Expense","Other Medical","11.9","Reinsurance Recoveries",{"$f":"IFERROR('MMA Rev-Exp Region 2'!$O$85/'MMA Rev-Exp Region 2'!$O$9, 0)","v":{"v":0,"d":"$0.00"}},{"$f":"IFERROR('MMA Rev-Exp Region 2'!$P$85/'MMA Rev-Exp Region 2'!$P$9, 0)","v":{"v":0,"d":"$0.00"}},{"$f":"IFERROR('MMA Rev-Exp Region 2'!$Q$85/'MMA Rev-Exp Region 2'!$Q$9, 0)","v":{"v":0,"d":"$0.00"}},{"$f":"IFERROR('MMA Rev-Exp Region 2'!$R$85/'MMA Rev-Exp Region 2'!$R$9, 0)","v":{"v":0,"d":"$0.00"}},{"$f":"IFERROR('MMA Rev-Exp Region 2'!$S$85/'MMA Rev-Exp Region 2'!$S$9, 0)","v":{"v":0,"d":"$0.00"}},{"$f":"IFERROR('MMA Rev-Exp Region 2'!$T$85/'MMA Rev-Exp Region 2'!$T$9, 0)","v":{"v":0,"d":"$0.00"}},{"$f":"IFERROR('MMA Rev-Exp Region 2'!$U$85/'MMA Rev-Exp Region 2'!$U$9, 0)","v":{"v":0,"d":"$0.00"}},{"$f":"IFERROR('MMA Rev-Exp Region 2'!$V$85/'MMA Rev-Exp Region 2'!$V$9, 0)","v":{"v":0,"d":"$0.00"}},{"$f":"IFERROR('MMA Rev-Exp Region 2'!$W$85/'MMA Rev-Exp Region 2'!$W$9, 0)","v":{"v":0,"d":"$0.00"}},{"$f":"IFERROR('MMA Rev-Exp Region 2'!$X$85/'MMA Rev-Exp Region 2'!$X$9, 0)","v":{"v":0,"d":"$0.00"}},{"$f":"IFERROR('MMA Rev-Exp Region 2'!$Y$85/'MMA Rev-Exp Region 2'!$Y$9, 0)","v":{"v":0,"d":"$0.00"}}]
["MMA",null,null,2016,"2016-12-31","Q2","2017-06-30","Region 2","Operating Expense","Administrative Expense","Administrative","12.1","Salaries & Benefits",{"$f":"IFERROR('MMA Rev-Exp Region 2'!$O$90/'MMA Rev-Exp Region 2'!$O$9, 0)","v":{"v":0,"d":"$0.00"}},{"$f":"IFERROR('MMA Rev-Exp Region 2'!$P$90/'MMA Rev-Exp Region 2'!$O$9, 0)","v":{"v":0,"d":"$0.00"}},{"$f":"IFERROR('MMA Rev-Exp Region 2'!$Q$90/'MMA Rev-Exp Region 2'!$O$9, 0)","v":{"v":0,"d":"$0.00"}},{"$f":"IFERROR('MMA Rev-Exp Region 2'!$R$90/'MMA Rev-Exp Region 2'!$R$9, 0)","v":{"v":0,"d":"$0.00"}},{"$f":"IFERROR('MMA Rev-Exp Region 2'!$S$90/'MMA Rev-Exp Region 2'!$S$9, 0)","v":{"v":0,"d":"$0.00"}},{"$f":"IFERROR('MMA Rev-Exp Region 2'!$T$90/'MMA Rev-Exp Region 2'!$T$9, 0)","v":{"v":0,"d":"$0.00"}},{"$f":"IFERROR('MMA Rev-Exp Region 2'!$U$90/'MMA Rev-Exp Region 2'!$U$9, 0)","v":{"v":0,"d":"$0.00"}},{"$f":"IFERROR('MMA Rev-Exp Region 2'!$V$90/'MMA Rev-Exp Region 2'!$V$9, 0)","v":{"v":0,"d":"$0.00"}},{"$f":"IFERROR('MMA Rev-Exp Region 2'!$W$90/'MMA Rev-Exp Region 2'!$W$9, 0)","v":{"v":0,"d":"$0.00"}},{"$f":"IFERROR('MMA Rev-Exp Region 2'!$X$90/'MMA Rev-Exp Region 2'!$X$9, 0)","v":{"v":0,"d":"$0.00"}},{"$f":"IFERROR('MMA Rev-Exp Region 2'!$Y$90/'MMA Rev-Exp Region 2'!$Y$9, 0)","v":{"v":0,"d":"$0.00"}}]
["MMA",null,null,2016,"2016-12-31","Q2","2017-06-30","Region 2","Operating Expense","Administrative Expense","Administrative","12.2","Administrative Services",{"$f":"IFERROR('MMA Rev-Exp Region 2'!$O$91/'MMA Rev-Exp Region 2'!$O$9, 0)","v":{"v":0,"d":"$0.00"}},{"$f":"IFERROR('MMA Rev-Exp Region 2'!$P$91/'MMA Rev-Exp Region 2'!$O$9, 0)","v":{"v":0,"d":"$0.00"}},{"$f":"IFERROR('MMA Rev-Exp Region 2'!$Q$91/'MMA Rev-Exp Region 2'!$O$9, 0)","v":{"v":0,"d":"$0.00"}},{"$f":"IFERROR('MMA Rev-Exp Region 2'!$R$91/'MMA Rev-Exp Region 2'!$R$9, 0)","v":{"v":0,"d":"$0.00"}},{"$f":"IFERROR('MMA Rev-Exp Region 2'!$S$91/'MMA Rev-Exp Region 2'!$S$9, 0)","v":{"v":0,"d":"$0.00"}},{"$f":"IFERROR('MMA Rev-Exp Region 2'!$T$91/'MMA Rev-Exp Region 2'!$T$9, 0)","v":{"v":0,"d":"$0.00"}},{"$f":"IFERROR('MMA Rev-Exp Region 2'!$U$91/'MMA Rev-Exp Region 2'!$U$9, 0)","v":{"v":0,"d":"$0.00"}},{"$f":"IFERROR('MMA Rev-Exp Region 2'!$V$91/'MMA Rev-Exp Region 2'!$V$9, 0)","v":{"v":0,"d":"$0.00"}},{"$f":"IFERROR('MMA Rev-Exp Region 2'!$W$91/'MMA Rev-Exp Region 2'!$W$9, 0)","v":{"v":0,"d":"$0.00"}},{"$f":"IFERROR('MMA Rev-Exp Region 2'!$X$91/'MMA Rev-Exp Region 2'!$X$9, 0)","v":{"v":0,"d":"$0.00"}},{"$f":"IFERROR('MMA Rev-Exp Region 2'!$Y$91/'MMA Rev-Exp Region 2'!$Y$9, 0)","v":{"v":0,"d":"$0.00"}}]
["MMA",null,null,2016,"2016-12-31","Q2","2017-06-30","Region 2","Operating Expense","Administrative Expense","Administrative","12.3","Information Systems",{"$f":"IFERROR('MMA Rev-Exp Region 2'!$O$92/'MMA Rev-Exp Region 2'!$O$9, 0)","v":{"v":0,"d":"$0.00"}},{"$f":"IFERROR('MMA Rev-Exp Region 2'!$P$92/'MMA Rev-Exp Region 2'!$O$9, 0)","v":{"v":0,"d":"$0.00"}},{"$f":"IFERROR('MMA Rev-Exp Region 2'!$Q$92/'MMA Rev-Exp Region 2'!$O$9, 0)","v":{"v":0,"d":"$0.00"}},{"$f":"IFERROR('MMA Rev-Exp Region 2'!$R$92/'MMA Rev-Exp Region 2'!$R$9, 0)","v":{"v":0,"d":"$0.00"}},{"$f":"IFERROR('MMA Rev-Exp Region 2'!$S$92/'MMA Rev-Exp Region 2'!$S$9, 0)","v":{"v":0,"d":"$0.00"}},{"$f":"IFERROR('MMA Rev-Exp Region 2'!$T$92/'MMA Rev-Exp Region 2'!$T$9, 0)","v":{"v":0,"d":"$0.00"}},{"$f":"IFERROR('MMA Rev-Exp Region 2'!$U$92/'MMA Rev-Exp Region 2'!$U$9, 0)","v":{"v":0,"d":"$0.00"}},{"$f":"IFERROR('MMA Rev-Exp Region 2'!$V$92/'MMA Rev-Exp Region 2'!$V$9, 0)","v":{"v":0,"d":"$0.00"}},{"$f":"IFERROR('MMA Rev-Exp Region 2'!$W$92/'MMA Rev-Exp Region 2'!$W$9, 0)","v":{"v":0,"d":"$0.00"}},{"$f":"IFERROR('MMA Rev-Exp Region 2'!$X$92/'MMA Rev-Exp Region 2'!$X$9, 0)","v":{"v":0,"d":"$0.00"}},{"$f":"IFERROR('MMA Rev-Exp Region 2'!$Y$92/'MMA Rev-Exp Region 2'!$Y$9, 0)","v":{"v":0,"d":"$0.00"}}]
["MMA",null,null,2016,"2016-12-31","Q2","2017-06-30","Region 2","Operating Expense","Administrative Expense","Administrative","12.4","Marketing Expenses",{"$f":"IFERROR('MMA Rev-Exp Region 2'!$O$93/'MMA Rev-Exp Region 2'!$O$9, 0)","v":{"v":0,"d":"$0.00"}},{"$f":"IFERROR('MMA Rev-Exp Region 2'!$P$93/'MMA Rev-Exp Region 2'!$O$9, 0)","v":{"v":0,"d":"$0.00"}},{"$f":"IFERROR('MMA Rev-Exp Region 2'!$Q$93/'MMA Rev-Exp Region 2'!$O$9, 0)","v":{"v":0,"d":"$0.00"}}]
["MMA",null,null,2016,"2016-12-31","Q2","2017-06-30","Region 2","Operating Expense","Administrative Expense","Administrative","12.5","General  Administration",{"$f":"IFERROR('MMA Rev-Exp Region 2'!$O$94/'MMA Rev-Exp Region 2'!$O$9, 0)","v":{"v":0,"d":"$0.00"}},{"$f":"IFERROR('MMA Rev-Exp Region 2'!$P$94/'MMA Rev-Exp Region 2'!$O$9, 0)","v":{"v":0,"d":"$0.00"}},{"$f":"IFERROR('MMA Rev-Exp Region 2'!$Q$94/'MMA Rev-Exp Region 2'!$O$9, 0)","v":{"v":0,"d":"$0.00"}}]
["MMA",null,null,2016,"2016-12-31","Q2","2017-06-30","Region 2","Operating Expense","Administrative Expense","Administrative","12.6","Compliance/Regulatory",{"$f":"IFERROR('MMA Rev-Exp Region 2'!$O$95/'MMA Rev-Exp Region 2'!$O$9, 0)","v":{"v":0,"d":"$0.00"}},{"$f":"IFERROR('MMA Rev-Exp Region 2'!$P$95/'MMA Rev-Exp Region 2'!$O$9, 0)","v":{"v":0,"d":"$0.00"}},{"$f":"IFERROR('MMA Rev-Exp Region 2'!$Q$95/'MMA Rev-Exp Region 2'!$O$9, 0)","v":{"v":0,"d":"$0.00"}}]
["MMA",null,null,2016,"2016-12-31","Q2","2017-06-30","Region 2","Operating Expense","Taxes & Fees","Taxes & Fees","13.1","State Premium tax",{"$f":"IFERROR('MMA Rev-Exp Region 2'!$O$97/'MMA Rev-Exp Region 2'!$O$9, 0)","v":{"v":0,"d":"$0.00"}}]
["MMA",null,null,2016,"2016-12-31","Q2","2017-06-30","Region 2","Operating Expense","Taxes & Fees","Taxes & Fees","13.2","Department of Insurance Assessments",{"$f":"IFERROR('MMA Rev-Exp Region 2'!$O$98/'MMA Rev-Exp Region 2'!$O$9, 0)","v":{"v":0,"d":"$0.00"}}]
["MMA",null,null,2016,"2016-12-31","Q2","2017-06-30","Region 2","Operating Expense","Taxes & Fees","Taxes & Fees","13.3","Section 9010 Health Insurance Providers Fee",{"$f":"IFERROR('MMA Rev-Exp Region 2'!$O$99/'MMA Rev-Exp Region 2'!$O$9, 0)","v":{"v":0,"d":"$0.00"}}]
["MMA",null,null,2016,"2016-12-31","Q2","2017-06-30","Region 2","Non-Operating Expense","Income Tax Expense","Income Tax Expense","16.0","Income Tax Expense",{"$f":"IFERROR('MMA Rev-Exp Region 2'!$O$106/'MMA Rev-Exp Region 2'!$O$9, 0)","v":{"v":0,"d":"$0.00"}}]
["MMA",null,null,2016,"2016-12-31","Q3","2017-09-30","Region 2","Operating Revenue","Capitation","Capitation",1.1,"Capitation",{"$f":"IFERROR('MMA Rev-Exp Region 2'!$Z$11/'MMA Rev-Exp Region 2'!$Z$9, 0)","v":{"v":0,"d":"$0.00"}},{"$f":"IFERROR('MMA Rev-Exp Region 2'!$AA$11/'MMA Rev-Exp Region 2'!$AA$9, 0)","v":{"v":0,"d":"$0.00"}},{"$f":"IFERROR('MMA Rev-Exp Region 2'!$AB$11/'MMA Rev-Exp Region 2'!$AB$9, 0)","v":{"v":0,"d":"$0.00"}},{"$f":"IFERROR('MMA Rev-Exp Region 2'!$AC$11/'MMA Rev-Exp Region 2'!$AC$9, 0)","v":{"v":0,"d":"$0.00"}},{"$f":"IFERROR('MMA Rev-Exp Region 2'!$AD$11/'MMA Rev-Exp Region 2'!$AD$9, 0)","v":{"v":0,"d":"$0.00"}},{"$f":"IFERROR('MMA Rev-Exp Region 2'!$AE$11/'MMA Rev-Exp Region 2'!$AE$9, 0)","v":{"v":0,"d":"$0.00"}},{"$f":"IFERROR('MMA Rev-Exp Region 2'!$AF$11/'MMA Rev-Exp Region 2'!$AF$9, 0)","v":{"v":0,"d":"$0.00"}},{"$f":"IFERROR('MMA Rev-Exp Region 2'!$AG$11/'MMA Rev-Exp Region 2'!$AG$9, 0)","v":{"v":0,"d":"$0.00"}},{"$f":"IFERROR('MMA Rev-Exp Region 2'!$AH$11/'MMA Rev-Exp Region 2'!$AH$9, 0)","v":{"v":0,"d":"$0.00"}},{"$f":"IFERROR('MMA Rev-Exp Region 2'!$AI$11/'MMA Rev-Exp Region 2'!$AI$9, 0)","v":{"v":0,"d":"$0.00"}},{"$f":"IFERROR('MMA Rev-Exp Region 2'!$AJ$11/'MMA Rev-Exp Region 2'!$AJ$9, 0)","v":{"v":0,"d":"$0.00"}}]
["MMA",null,null,2016,"2016-12-31","Q3","2017-09-30","Region 2","Operating Revenue","Kick Payments","Kick Payments - Transplant",1.2,"Transplant Kick Payments",{"$f":"IFERROR('MMA Rev-Exp Region 2'!$Z$12/'MMA Rev-Exp Region 2'!$Z$9, 0)","v":{"v":0,"d":"$0.00"}},{"$f":"IFERROR('MMA Rev-Exp Region 2'!$AA$12/'MMA Rev-Exp Region 2'!$AA$9, 0)","v":{"v":0,"d":"$0.00"}},{"$f":"IFERROR('MMA Rev-Exp Region 2'!$AB$12/'MMA Rev-Exp Region 2'!$AB$9, 0)","v":{"v":0,"d":"$0.00"}},{"$f":"IFERROR('MMA Rev-Exp Region 2'!$AC$12/'MMA Rev-Exp Region 2'!$AC$9, 0)","v":{"v":0,"d":"$0.00"}},{"$f":"IFERROR('MMA Rev-Exp Region 2'!$AD$12/'MMA Rev-Exp Region 2'!$AD$9, 0)","v":{"v":0,"d":"$0.00"}},{"$f":"IFERROR('MMA Rev-Exp Region 2'!$AE$12/'MMA Rev-Exp Region 2'!$AE$9, 0)","v":{"v":0,"d":"$0.00"}},{"$f":"IFERROR('MMA Rev-Exp Region 2'!$AF$12/'MMA Rev-Exp Region 2'!$AF$9, 0)","v":{"v":0,"d":"$0.00"}},{"$f":"IFERROR('MMA Rev-Exp Region 2'!$AG$12/'MMA Rev-Exp Region 2'!$AG$9, 0)","v":{"v":0,"d":"$0.00"}},{"$f":"IFERROR('MMA Rev-Exp Region 2'!$AH$12/'MMA Rev-Exp Region 2'!$AH$9, 0)","v":{"v":0,"d":"$0.00"}},{"$f":"IFERROR('MMA Rev-Exp Region 2'!$AI$12/'MMA Rev-Exp Region 2'!$AI$9, 0)","v":{"v":0,"d":"$0.00"}},{"$f":"IFERROR('MMA Rev-Exp Region 2'!$AJ$12/'MMA Rev-Exp Region 2'!$AJ$9, 0)","v":{"v":0,"d":"$0.00"}}]
["MMA",null,null,2016,"2016-12-31","Q3","2017-09-30","Region 2","Operating Revenue","Kick Payments","Kick Payments - Hep C","1.3","Hepatitis C Kick Payments",{"$f":"IFERROR('MMA Rev-Exp Region 2'!$Z$13/'MMA Rev-Exp Region 2'!$Z$9, 0)","v":{"v":0,"d":"$0.00"}},{"$f":"IFERROR('MMA Rev-Exp Region 2'!$AA$13/'MMA Rev-Exp Region 2'!$AA$9, 0)","v":{"v":0,"d":"$0.00"}},{"$f":"IFERROR('MMA Rev-Exp Region 2'!$AB$13/'MMA Rev-Exp Region 2'!$AB$9, 0)","v":{"v":0,"d":"$0.00"}},{"$f":"IFERROR('MMA Rev-Exp Region 2'!$AC$13/'MMA Rev-Exp Region 2'!$AC$9, 0)","v":{"v":0,"d":"$0.00"}},{"$f":"IFERROR('MMA Rev-Exp Region 2'!$AD$13/'MMA Rev-Exp Region 2'!$AD$9, 0)","v":{"v":0,"d":"$0.00"}},{"$f":"IFERROR('MMA Rev-Exp Region 2'!$AE$13/'MMA Rev-Exp Region 2'!$AE$9, 0)","v":{"v":0,"d":"$0.00"}},{"$f":"IFERROR('MMA Rev-Exp Region 2'!$AF$13/'MMA Rev-Exp Region 2'!$AF$9, 0)","v":{"v":0,"d":"$0.00"}},{"$f":"IFERROR('MMA Rev-Exp Region 2'!$AG$13/'MMA Rev-Exp Region 2'!$AG$9, 0)","v":{"v":0,"d":"$0.00"}},{"$f":"IFERROR('MMA Rev-Exp Region 2'!$AH$13/'MMA Rev-Exp Region 2'!$AH$9, 0)","v":{"v":0,"d":"$0.00"}},{"$f":"IFERROR('MMA Rev-Exp Region 2'!$AI$13/'MMA Rev-Exp Region 2'!$AI$9, 0)","v":{"v":0,"d":"$0.00"}},{"$f":"IFERROR('MMA Rev-Exp Region 2'!$AJ$13/'MMA Rev-Exp Region 2'!$AJ$9, 0)","v":{"v":0,"d":"$0.00"}}]
["MMA",null,null,2016,"2016-12-31","Q3","2017-09-30","Region 2","Operating Revenue","Kick Payments","Kick Payments - Maternity","1.4.1","Maternity Kick Payments",{"$f":"IFERROR('MMA Rev-Exp Region 2'!$Z$14/'MMA Rev-Exp Region 2'!$Z$9, 0)","v":{"v":0,"d":"$0.00"}},{"$f":"IFERROR('MMA Rev-Exp Region 2'!$AA$14/'MMA Rev-Exp Region 2'!$AA$9, 0)","v":{"v":0,"d":"$0.00"}},{"$f":"IFERROR('MMA Rev-Exp Region 2'!$AB$14/'MMA Rev-Exp Region 2'!$AB$9, 0)","v":{"v":0,"d":"$0.00"}},{"$f":"IFERROR('MMA Rev-Exp Region 2'!$AC$14/'MMA Rev-Exp Region 2'!$AC$9, 0)","v":{"v":0,"d":"$0.00"}},{"$f":"IFERROR('MMA Rev-Exp Region 2'!$AD$14/'MMA Rev-Exp Region 2'!$AD$9, 0)","v":{"v":0,"d":"$0.00"}},{"$f":"IFERROR('MMA Rev-Exp Region 2'!$AE$14/'MMA Rev-Exp Region 2'!$AE$9, 0)","v":{"v":0,"d":"$0.00"}},{"$f":"IFERROR('MMA Rev-Exp Region 2'!$AF$14/'MMA Rev-Exp Region 2'!$AF$9, 0)","v":{"v":0,"d":"$0.00"}},{"$f":"IFERROR('MMA Rev-Exp Region 2'!$AG$14/'MMA Rev-Exp Region 2'!$AG$9, 0)","v":{"v":0,"d":"$0.00"}},{"$f":"IFERROR('MMA Rev-Exp Region 2'!$AH$14/'MMA Rev-Exp Region 2'!$AH$9, 0)","v":{"v":0,"d":"$0.00"}},{"$f":"IFERROR('MMA Rev-Exp Region 2'!$AI$14/'MMA Rev-Exp Region 2'!$AI$9, 0)","v":{"v":0,"d":"$0.00"}},{"$f":"IFERROR('MMA Rev-Exp Region 2'!$AJ$14/'MMA Rev-Exp Region 2'!$AJ$9, 0)","v":{"v":0,"d":"$0.00"}}]
["MMA",null,null,2016,"2016-12-31","Q3","2017-09-30","Region 2","Operating Revenue","Other Revenue","Other Revenue - 9010","1.5","ACA § 9010 related payments",{"$f":"IFERROR('MMA Rev-Exp Region 2'!$Z$15/'MMA Rev-Exp Region 2'!$Z$9, 0)","v":{"v":0,"d":"$0.00"}},{"$f":"IFERROR('MMA Rev-Exp Region 2'!$AA$15/'MMA Rev-Exp Region 2'!$AA$9, 0)","v":{"v":0,"d":"$0.00"}},{"$f":"IFERROR('MMA Rev-Exp Region 2'!$AB$15/'MMA Rev-Exp Region 2'!$AB$9, 0)","v":{"v":0,"d":"$0.00"}},{"$f":"IFERROR('MMA Rev-Exp Region 2'!$AC$15/'MMA Rev-Exp Region 2'!$AC$9, 0)","v":{"v":0,"d":"$0.00"}},{"$f":"IFERROR('MMA Rev-Exp Region 2'!$AD$15/'MMA Rev-Exp Region 2'!$AD$9, 0)","v":{"v":0,"d":"$0.00"}},{"$f":"IFERROR('MMA Rev-Exp Region 2'!$AE$15/'MMA Rev-Exp Region 2'!$AE$9, 0)","v":{"v":0,"d":"$0.00"}},{"$f":"IFERROR('MMA Rev-Exp Region 2'!$AF$15/'MMA Rev-Exp Region 2'!$AF$9, 0)","v":{"v":0,"d":"$0.00"}},{"$f":"IFERROR('MMA Rev-Exp Region 2'!$AG$15/'MMA Rev-Exp Region 2'!$AG$9, 0)","v":{"v":0,"d":"$0.00"}},{"$f":"IFERROR('MMA Rev-Exp Region 2'!$AH$15/'MMA Rev-Exp Region 2'!$AH$9, 0)","v":{"v":0,"d":"$0.00"}},{"$f":"IFERROR('MMA Rev-Exp Region 2'!$AI$15/'MMA Rev-Exp Region 2'!$AI$9, 0)","v":{"v":0,"d":"$0.00"}},{"$f":"IFERROR('MMA Rev-Exp Region 2'!$AJ$15/'MMA Rev-Exp Region 2'!$AJ$9, 0)","v":{"v":0,"d":"$0.00"}}]
["MMA",null,null,2016,"2016-12-31","Q3","2017-09-30","Region 2","Operating Revenue","Other Revenue","Other Revenue","1.6","Other Revenue",{"$f":"IFERROR('MMA Rev-Exp Region 2'!$Z$16/'MMA Rev-Exp Region 2'!$Z$9, 0)","v":{"v":0,"d":"$0.00"}},{"$f":"IFERROR('MMA Rev-Exp Region 2'!$AA$16/'MMA Rev-Exp Region 2'!$AA$9, 0)","v":{"v":0,"d":"$0.00"}},{"$f":"IFERROR('MMA Rev-Exp Region 2'!$AB$16/'MMA Rev-Exp Region 2'!$AB$9, 0)","v":{"v":0,"d":"$0.00"}},{"$f":"IFERROR('MMA Rev-Exp Region 2'!$AC$16/'MMA Rev-Exp Region 2'!$AC$9, 0)","v":{"v":0,"d":"$0.00"}},{"$f":"IFERROR('MMA Rev-Exp Region 2'!$AD$16/'MMA Rev-Exp Region 2'!$AD$9, 0)","v":{"v":0,"d":"$0.00"}},{"$f":"IFERROR('MMA Rev-Exp Region 2'!$AE$16/'MMA Rev-Exp Region 2'!$AE$9, 0)","v":{"v":0,"d":"$0.00"}},{"$f":"IFERROR('MMA Rev-Exp Region 2'!$AF$16/'MMA Rev-Exp Region 2'!$AF$9, 0)","v":{"v":0,"d":"$0.00"}},{"$f":"IFERROR('MMA Rev-Exp Region 2'!$AG$16/'MMA Rev-Exp Region 2'!$AG$9, 0)","v":{"v":0,"d":"$0.00"}},{"$f":"IFERROR('MMA Rev-Exp Region 2'!$AH$16/'MMA Rev-Exp Region 2'!$AH$9, 0)","v":{"v":0,"d":"$0.00"}},{"$f":"IFERROR('MMA Rev-Exp Region 2'!$AI$16/'MMA Rev-Exp Region 2'!$AI$9, 0)","v":{"v":0,"d":"$0.00"}},{"$f":"IFERROR('MMA Rev-Exp Region 2'!$AJ$16/'MMA Rev-Exp Region 2'!$AJ$9, 0)","v":{"v":0,"d":"$0.00"}}]
["MMA",null,null,2016,"2016-12-31","Q3","2017-09-30","Region 2","Operating Expense","Medical Benefits Expense","Hospital Services",2.1,"Inpatient FFS",{"$f":"IFERROR('MMA Rev-Exp Region 2'!$Z$20/'MMA Rev-Exp Region 2'!$Z$9, 0)","v":{"v":0,"d":"$0.00"}},{"$f":"IFERROR('MMA Rev-Exp Region 2'!$AA$20/'MMA Rev-Exp Region 2'!$AA$9, 0)","v":{"v":0,"d":"$0.00"}},{"$f":"IFERROR('MMA Rev-Exp Region 2'!$AB$20/'MMA Rev-Exp Region 2'!$AB$9, 0)","v":{"v":0,"d":"$0.00"}},{"$f":"IFERROR('MMA Rev-Exp Region 2'!$AC$20/'MMA Rev-Exp Region 2'!$AC$9, 0)","v":{"v":0,"d":"$0.00"}},{"$f":"IFERROR('MMA Rev-Exp Region 2'!$AD$20/'MMA Rev-Exp Region 2'!$AD$9, 0)","v":{"v":0,"d":"$0.00"}},{"$f":"IFERROR('MMA Rev-Exp Region 2'!$AE$20/'MMA Rev-Exp Region 2'!$AE$9, 0)","v":{"v":0,"d":"$0.00"}},{"$f":"IFERROR('MMA Rev-Exp Region 2'!$AF$20/'MMA Rev-Exp Region 2'!$AF$9, 0)","v":{"v":0,"d":"$0.00"}},{"$f":"IFERROR('MMA Rev-Exp Region 2'!$AG$20/'MMA Rev-Exp Region 2'!$AG$9, 0)","v":{"v":0,"d":"$0.00"}},{"$f":"IFERROR('MMA Rev-Exp Region 2'!$AH$20/'MMA Rev-Exp Region 2'!$AH$9, 0)","v":{"v":0,"d":"$0.00"}},{"$f":"IFERROR('MMA Rev-Exp Region 2'!$AI$20/'MMA Rev-Exp Region 2'!$AI$9, 0)","v":{"v":0,"d":"$0.00"}},{"$f":"IFERROR('MMA Rev-Exp Region 2'!$AJ$20/'MMA Rev-Exp Region 2'!$AJ$9, 0)","v":{"v":0,"d":"$0.00"}}]
["MMA",null,null,2016,"2016-12-31","Q3","2017-09-30","Region 2","Operating Expense","Medical Benefits Expense","Hospital Services",2.2,"Ending IBNP for Inpatient Hospital Services",{"$f":"IFERROR('MMA Rev-Exp Region 2'!$Z$21/'MMA Rev-Exp Region 2'!$Z$9, 0)","v":{"v":0,"d":"$0.00"}},{"$f":"IFERROR('MMA Rev-Exp Region 2'!$AA$21/'MMA Rev-Exp Region 2'!$AA$9, 0)","v":{"v":0,"d":"$0.00"}},{"$f":"IFERROR('MMA Rev-Exp Region 2'!$AB$21/'MMA Rev-Exp Region 2'!$AB$9, 0)","v":{"v":0,"d":"$0.00"}},{"$f":"IFERROR('MMA Rev-Exp Region 2'!$AC$21/'MMA Rev-Exp Region 2'!$AC$9, 0)","v":{"v":0,"d":"$0.00"}},{"$f":"IFERROR('MMA Rev-Exp Region 2'!$AD$21/'MMA Rev-Exp Region 2'!$AD$9, 0)","v":{"v":0,"d":"$0.00"}},{"$f":"IFERROR('MMA Rev-Exp Region 2'!$AE$21/'MMA Rev-Exp Region 2'!$AE$9, 0)","v":{"v":0,"d":"$0.00"}},{"$f":"IFERROR('MMA Rev-Exp Region 2'!$AF$21/'MMA Rev-Exp Region 2'!$AF$9, 0)","v":{"v":0,"d":"$0.00"}},{"$f":"IFERROR('MMA Rev-Exp Region 2'!$AG$21/'MMA Rev-Exp Region 2'!$AG$9, 0)","v":{"v":0,"d":"$0.00"}},{"$f":"IFERROR('MMA Rev-Exp Region 2'!$AH$21/'MMA Rev-Exp Region 2'!$AH$9, 0)","v":{"v":0,"d":"$0.00"}},{"$f":"IFERROR('MMA Rev-Exp Region 2'!$AI$21/'MMA Rev-Exp Region 2'!$AI$9, 0)","v":{"v":0,"d":"$0.00"}},{"$f":"IFERROR('MMA Rev-Exp Region 2'!$AJ$21/'MMA Rev-Exp Region 2'!$AJ$9, 0)","v":{"v":0,"d":"$0.00"}}]
["MMA",null,null,2016,"2016-12-31","Q3","2017-09-30","Region 2","Operating Expense","Medical Benefits Expense","Hospital Services",2.3,"Outpatient FFS: ER",{"$f":"IFERROR('MMA Rev-Exp Region 2'!$Z$22/'MMA Rev-Exp Region 2'!$Z$9, 0)","v":{"v":0,"d":"$0.00"}},{"$f":"IFERROR('MMA Rev-Exp Region 2'!$AA$22/'MMA Rev-Exp Region 2'!$AA$9, 0)","v":{"v":0,"d":"$0.00"}},{"$f":"IFERROR('MMA Rev-Exp Region 2'!$AB$22/'MMA Rev-Exp Region 2'!$AB$9, 0)","v":{"v":0,"d":"$0.00"}},{"$f":"IFERROR('MMA Rev-Exp Region 2'!$AC$22/'MMA Rev-Exp Region 2'!$AC$9, 0)","v":{"v":0,"d":"$0.00"}},{"$f":"IFERROR('MMA Rev-Exp Region 2'!$AD$22/'MMA Rev-Exp Region 2'!$AD$9, 0)","v":{"v":0,"d":"$0.00"}},{"$f":"IFERROR('MMA Rev-Exp Region 2'!$AE$22/'MMA Rev-Exp Region 2'!$AE$9, 0)","v":{"v":0,"d":"$0.00"}},{"$f":"IFERROR('MMA Rev-Exp Region 2'!$AF$22/'MMA Rev-Exp Region 2'!$AF$9, 0)","v":{"v":0,"d":"$0.00"}},{"$f":"IFERROR('MMA Rev-Exp Region 2'!$AG$22/'MMA Rev-Exp Region 2'!$AG$9, 0)","v":{"v":0,"d":"$0.00"}},{"$f":"IFERROR('MMA Rev-Exp Region 2'!$AH$22/'MMA Rev-Exp Region 2'!$AH$9, 0)","v":{"v":0,"d":"$0.00"}},{"$f":"IFERROR('MMA Rev-Exp Region 2'!$AI$22/'MMA Rev-Exp Region 2'!$AI$9, 0)","v":{"v":0,"d":"$0.00"}},{"$f":"IFERROR('MMA Rev-Exp Region 2'!$AJ$22/'MMA Rev-Exp Region 2'!$AJ$9, 0)","v":{"v":0,"d":"$0.00"}}]
["MMA",null,null,2016,"2016-12-31","Q3","2017-09-30","Region 2","Operating Expense","Medical Benefits Expense","Hospital Services",2.4,"Outpatient FFS: Other than ER ",{"$f":"IFERROR('MMA Rev-Exp Region 2'!$Z$23/'MMA Rev-Exp Region 2'!$Z$9, 0)","v":{"v":0,"d":"$0.00"}},{"$f":"IFERROR('MMA Rev-Exp Region 2'!$AA$23/'MMA Rev-Exp Region 2'!$AA$9, 0)","v":{"v":0,"d":"$0.00"}},{"$f":"IFERROR('MMA Rev-Exp Region 2'!$AB$23/'MMA Rev-Exp Region 2'!$AB$9, 0)","v":{"v":0,"d":"$0.00"}},{"$f":"IFERROR('MMA Rev-Exp Region 2'!$AC$23/'MMA Rev-Exp Region 2'!$AC$9, 0)","v":{"v":0,"d":"$0.00"}},{"$f":"IFERROR('MMA Rev-Exp Region 2'!$AD$23/'MMA Rev-Exp Region 2'!$AD$9, 0)","v":{"v":0,"d":"$0.00"}},{"$f":"IFERROR('MMA Rev-Exp Region 2'!$AE$23/'MMA Rev-Exp Region 2'!$AE$9, 0)","v":{"v":0,"d":"$0.00"}},{"$f":"IFERROR('MMA Rev-Exp Region 2'!$AF$23/'MMA Rev-Exp Region 2'!$AF$9, 0)","v":{"v":0,"d":"$0.00"}},{"$f":"IFERROR('MMA Rev-Exp Region 2'!$AG$23/'MMA Rev-Exp Region 2'!$AG$9, 0)","v":{"v":0,"d":"$0.00"}},{"$f":"IFERROR('MMA Rev-Exp Region 2'!$AH$23/'MMA Rev-Exp Region 2'!$AH$9, 0)","v":{"v":0,"d":"$0.00"}},{"$f":"IFERROR('MMA Rev-Exp Region 2'!$AI$23/'MMA Rev-Exp Region 2'!$AI$9, 0)","v":{"v":0,"d":"$0.00"}},{"$f":"IFERROR('MMA Rev-Exp Region 2'!$AJ$23/'MMA Rev-Exp Region 2'!$AJ$9, 0)","v":{"v":0,"d":"$0.00"}}]
["MMA",null,null,2016,"2016-12-31","Q3","2017-09-30","Region 2","Operating Expense","Medical Benefits Expense","Hospital Services",2.5,"Ending IBNP for Outpatient Hospital Services",{"$f":"IFERROR('MMA Rev-Exp Region 2'!$Z$24/'MMA Rev-Exp Region 2'!$Z$9, 0)","v":{"v":0,"d":"$0.00"}},{"$f":"IFERROR('MMA Rev-Exp Region 2'!$AA$24/'MMA Rev-Exp Region 2'!$AA$9, 0)","v":{"v":0,"d":"$0.00"}},{"$f":"IFERROR('MMA Rev-Exp Region 2'!$AB$24/'MMA Rev-Exp Region 2'!$AB$9, 0)","v":{"v":0,"d":"$0.00"}},{"$f":"IFERROR('MMA Rev-Exp Region 2'!$AC$24/'MMA Rev-Exp Region 2'!$AC$9, 0)","v":{"v":0,"d":"$0.00"}},{"$f":"IFERROR('MMA Rev-Exp Region 2'!$AD$24/'MMA Rev-Exp Region 2'!$AD$9, 0)","v":{"v":0,"d":"$0.00"}},{"$f":"IFERROR('MMA Rev-Exp Region 2'!$AE$24/'MMA Rev-Exp Region 2'!$AE$9, 0)","v":{"v":0,"d":"$0.00"}},{"$f":"IFERROR('MMA Rev-Exp Region 2'!$AF$24/'MMA Rev-Exp Region 2'!$AF$9, 0)","v":{"v":0,"d":"$0.00"}},{"$f":"IFERROR('MMA Rev-Exp Region 2'!$AG$24/'MMA Rev-Exp Region 2'!$AG$9, 0)","v":{"v":0,"d":"$0.00"}},{"$f":"IFERROR('MMA Rev-Exp Region 2'!$AH$24/'MMA Rev-Exp Region 2'!$AH$9, 0)","v":{"v":0,"d":"$0.00"}},{"$f":"IFERROR('MMA Rev-Exp Region 2'!$AI$24/'MMA Rev-Exp Region 2'!$AI$9, 0)","v":{"v":0,"d":"$0.00"}},{"$f":"IFERROR('MMA Rev-Exp Region 2'!$AJ$24/'MMA Rev-Exp Region 2'!$AJ$9, 0)","v":{"v":0,"d":"$0.00"}}]
["MMA",null,null,2016,"2016-12-31","Q3","2017-09-30","Region 2","Operating Expense","Medical Benefits Expense","Hospital Services","2.6","Subcapitated Hospital Services",{"$f":"IFERROR('MMA Rev-Exp Region 2'!$Z$25/'MMA Rev-Exp Region 2'!$Z$9, 0)","v":{"v":0,"d":"$0.00"}},{"$f":"IFERROR('MMA Rev-Exp Region 2'!$AA$25/'MMA Rev-Exp Region 2'!$AA$9, 0)","v":{"v":0,"d":"$0.00"}},{"$f":"IFERROR('MMA Rev-Exp Region 2'!$AB$25/'MMA Rev-Exp Region 2'!$AB$9, 0)","v":{"v":0,"d":"$0.00"}},{"$f":"IFERROR('MMA Rev-Exp Region 2'!$AC$25/'MMA Rev-Exp Region 2'!$AC$9, 0)","v":{"v":0,"d":"$0.00"}},{"$f":"IFERROR('MMA Rev-Exp Region 2'!$AD$25/'MMA Rev-Exp Region 2'!$AD$9, 0)","v":{"v":0,"d":"$0.00"}},{"$f":"IFERROR('MMA Rev-Exp Region 2'!$AE$25/'MMA Rev-Exp Region 2'!$AE$9, 0)","v":{"v":0,"d":"$0.00"}},{"$f":"IFERROR('MMA Rev-Exp Region 2'!$AF$25/'MMA Rev-Exp Region 2'!$AF$9, 0)","v":{"v":0,"d":"$0.00"}},{"$f":"IFERROR('MMA Rev-Exp Region 2'!$AG$25/'MMA Rev-Exp Region 2'!$AG$9, 0)","v":{"v":0,"d":"$0.00"}},{"$f":"IFERROR('MMA Rev-Exp Region 2'!$AH$25/'MMA Rev-Exp Region 2'!$AH$9, 0)","v":{"v":0,"d":"$0.00"}},{"$f":"IFERROR('MMA Rev-Exp Region 2'!$AI$25/'MMA Rev-Exp Region 2'!$AI$9, 0)","v":{"v":0,"d":"$0.00"}},{"$f":"IFERROR('MMA Rev-Exp Region 2'!$AJ$25/'MMA Rev-Exp Region 2'!$AJ$9, 0)","v":{"v":0,"d":"$0.00"}}]
["MMA",null,null,2016,"2016-12-31","Q3","2017-09-30","Region 2","Operating Expense","Medical Benefits Expense","Hospital Services","2.7","Hospital Settlements",{"$f":"IFERROR('MMA Rev-Exp Region 2'!$Z$26/'MMA Rev-Exp Region 2'!$Z$9, 0)","v":{"v":0,"d":"$0.00"}},{"$f":"IFERROR('MMA Rev-Exp Region 2'!$AA$26/'MMA Rev-Exp Region 2'!$AA$9, 0)","v":{"v":0,"d":"$0.00"}},{"$f":"IFERROR('MMA Rev-Exp Region 2'!$AB$26/'MMA Rev-Exp Region 2'!$AB$9, 0)","v":{"v":0,"d":"$0.00"}},{"$f":"IFERROR('MMA Rev-Exp Region 2'!$AC$26/'MMA Rev-Exp Region 2'!$AC$9, 0)","v":{"v":0,"d":"$0.00"}},{"$f":"IFERROR('MMA Rev-Exp Region 2'!$AD$26/'MMA Rev-Exp Region 2'!$AD$9, 0)","v":{"v":0,"d":"$0.00"}},{"$f":"IFERROR('MMA Rev-Exp Region 2'!$AE$26/'MMA Rev-Exp Region 2'!$AE$9, 0)","v":{"v":0,"d":"$0.00"}},{"$f":"IFERROR('MMA Rev-Exp Region 2'!$AF$26/'MMA Rev-Exp Region 2'!$AF$9, 0)","v":{"v":0,"d":"$0.00"}},{"$f":"IFERROR('MMA Rev-Exp Region 2'!$AG$26/'MMA Rev-Exp Region 2'!$AG$9, 0)","v":{"v":0,"d":"$0.00"}},{"$f":"IFERROR('MMA Rev-Exp Region 2'!$AH$26/'MMA Rev-Exp Region 2'!$AH$9, 0)","v":{"v":0,"d":"$0.00"}},{"$f":"IFERROR('MMA Rev-Exp Region 2'!$AI$26/'MMA Rev-Exp Region 2'!$AI$9, 0)","v":{"v":0,"d":"$0.00"}},{"$f":"IFERROR('MMA Rev-Exp Region 2'!$AJ$26/'MMA Rev-Exp Region 2'!$AJ$9, 0)","v":{"v":0,"d":"$0.00"}}]
["MMA",null,null,2016,"2016-12-31","Q3","2017-09-30","Region 2","Operating Expense","Medical Benefits Expense","Hospital Services","2.7.1","Transplant Services",{"$f":"IFERROR('MMA Rev-Exp Region 2'!$Z$27/'MMA Rev-Exp Region 2'!$Z$9, 0)","v":{"v":0,"d":"$0.00"}},{"$f":"IFERROR('MMA Rev-Exp Region 2'!$AA$27/'MMA Rev-Exp Region 2'!$AA$9, 0)","v":{"v":0,"d":"$0.00"}},{"$f":"IFERROR('MMA Rev-Exp Region 2'!$AB$27/'MMA Rev-Exp Region 2'!$AB$9, 0)","v":{"v":0,"d":"$0.00"}},{"$f":"IFERROR('MMA Rev-Exp Region 2'!$AC$27/'MMA Rev-Exp Region 2'!$AC$9, 0)","v":{"v":0,"d":"$0.00"}},{"$f":"IFERROR('MMA Rev-Exp Region 2'!$AD$27/'MMA Rev-Exp Region 2'!$AD$9, 0)","v":{"v":0,"d":"$0.00"}},{"$f":"IFERROR('MMA Rev-Exp Region 2'!$AE$27/'MMA Rev-Exp Region 2'!$AE$9, 0)","v":{"v":0,"d":"$0.00"}},{"$f":"IFERROR('MMA Rev-Exp Region 2'!$AF$27/'MMA Rev-Exp Region 2'!$AF$9, 0)","v":{"v":0,"d":"$0.00"}},{"$f":"IFERROR('MMA Rev-Exp Region 2'!$AG$27/'MMA Rev-Exp Region 2'!$AG$9, 0)","v":{"v":0,"d":"$0.00"}},{"$f":"IFERROR('MMA Rev-Exp Region 2'!$AH$27/'MMA Rev-Exp Region 2'!$AH$9, 0)","v":{"v":0,"d":"$0.00"}},{"$f":"IFERROR('MMA Rev-Exp Region 2'!$AI$27/'MMA Rev-Exp Region 2'!$AI$9, 0)","v":{"v":0,"d":"$0.00"}},{"$f":"IFERROR('MMA Rev-Exp Region 2'!$AJ$27/'MMA Rev-Exp Region 2'!$AJ$9, 0)","v":{"v":0,"d":"$0.00"}}]
["MMA",null,null,2016,"2016-12-31","Q3","2017-09-30","Region 2","Operating Expense","Medical Benefits Expense","Professional Services",3.1,"Primary Care FFS",{"$f":"IFERROR('MMA Rev-Exp Region 2'!$Z$29/'MMA Rev-Exp Region 2'!$Z$9, 0)","v":{"v":0,"d":"$0.00"}},{"$f":"IFERROR('MMA Rev-Exp Region 2'!$AA$29/'MMA Rev-Exp Region 2'!$AA$9, 0)","v":{"v":0,"d":"$0.00"}},{"$f":"IFERROR('MMA Rev-Exp Region 2'!$AB$29/'MMA Rev-Exp Region 2'!$AB$9, 0)","v":{"v":0,"d":"$0.00"}},{"$f":"IFERROR('MMA Rev-Exp Region 2'!$AC$29/'MMA Rev-Exp Region 2'!$AC$9, 0)","v":{"v":0,"d":"$0.00"}},{"$f":"IFERROR('MMA Rev-Exp Region 2'!$AD$29/'MMA Rev-Exp Region 2'!$AD$9, 0)","v":{"v":0,"d":"$0.00"}},{"$f":"IFERROR('MMA Rev-Exp Region 2'!$AE$29/'MMA Rev-Exp Region 2'!$AE$9, 0)","v":{"v":0,"d":"$0.00"}},{"$f":"IFERROR('MMA Rev-Exp Region 2'!$AF$29/'MMA Rev-Exp Region 2'!$AF$9, 0)","v":{"v":0,"d":"$0.00"}},{"$f":"IFERROR('MMA Rev-Exp Region 2'!$AG$29/'MMA Rev-Exp Region 2'!$AG$9, 0)","v":{"v":0,"d":"$0.00"}},{"$f":"IFERROR('MMA Rev-Exp Region 2'!$AH$29/'MMA Rev-Exp Region 2'!$AH$9, 0)","v":{"v":0,"d":"$0.00"}},{"$f":"IFERROR('MMA Rev-Exp Region 2'!$AI$29/'MMA Rev-Exp Region 2'!$AI$9, 0)","v":{"v":0,"d":"$0.00"}},{"$f":"IFERROR('MMA Rev-Exp Region 2'!$AJ$29/'MMA Rev-Exp Region 2'!$AJ$9, 0)","v":{"v":0,"d":"$0.00"}}]
["MMA",null,null,2016,"2016-12-31","Q3","2017-09-30","Region 2","Operating Expense","Medical Benefits Expense","Professional Services",3.2,"Specialty Care FFS",{"$f":"IFERROR('MMA Rev-Exp Region 2'!$Z$30/'MMA Rev-Exp Region 2'!$Z$9, 0)","v":{"v":0,"d":"$0.00"}},{"$f":"IFERROR('MMA Rev-Exp Region 2'!$AA$30/'MMA Rev-Exp Region 2'!$AA$9, 0)","v":{"v":0,"d":"$0.00"}},{"$f":"IFERROR('MMA Rev-Exp Region 2'!$AB$30/'MMA Rev-Exp Region 2'!$AB$9, 0)","v":{"v":0,"d":"$0.00"}},{"$f":"IFERROR('MMA Rev-Exp Region 2'!$AC$30/'MMA Rev-Exp Region 2'!$AC$9, 0)","v":{"v":0,"d":"$0.00"}},{"$f":"IFERROR('MMA Rev-Exp Region 2'!$AD$30/'MMA Rev-Exp Region 2'!$AD$9, 0)","v":{"v":0,"d":"$0.00"}},{"$f":"IFERROR('MMA Rev-Exp Region 2'!$AE$30/'MMA Rev-Exp Region 2'!$AE$9, 0)","v":{"v":0,"d":"$0.00"}},{"$f":"IFERROR('MMA Rev-Exp Region 2'!$AF$30/'MMA Rev-Exp Region 2'!$AF$9, 0)","v":{"v":0,"d":"$0.00"}},{"$f":"IFERROR('MMA Rev-Exp Region 2'!$AG$30/'MMA Rev-Exp Region 2'!$AG$9, 0)","v":{"v":0,"d":"$0.00"}},{"$f":"IFERROR('MMA Rev-Exp Region 2'!$AH$30/'MMA Rev-Exp Region 2'!$AH$9, 0)","v":{"v":0,"d":"$0.00"}},{"$f":"IFERROR('MMA Rev-Exp Region 2'!$AI$30/'MMA Rev-Exp Region 2'!$AI$9, 0)","v":{"v":0,"d":"$0.00"}},{"$f":"IFERROR('MMA Rev-Exp Region 2'!$AJ$30/'MMA Rev-Exp Region 2'!$AJ$9, 0)","v":{"v":0,"d":"$0.00"}}]
["MMA",null,null,2016,"2016-12-31","Q3","2017-09-30","Region 2","Operating Expense","Medical Benefits Expense","Professional Services",3.3,"Other Professional FFS",{"$f":"IFERROR('MMA Rev-Exp Region 2'!$Z$31/'MMA Rev-Exp Region 2'!$Z$9, 0)","v":{"v":0,"d":"$0.00"}},{"$f":"IFERROR('MMA Rev-Exp Region 2'!$AA$31/'MMA Rev-Exp Region 2'!$AA$9, 0)","v":{"v":0,"d":"$0.00"}},{"$f":"IFERROR('MMA Rev-Exp Region 2'!$AB$31/'MMA Rev-Exp Region 2'!$AB$9, 0)","v":{"v":0,"d":"$0.00"}},{"$f":"IFERROR('MMA Rev-Exp Region 2'!$AC$31/'MMA Rev-Exp Region 2'!$AC$9, 0)","v":{"v":0,"d":"$0.00"}},{"$f":"IFERROR('MMA Rev-Exp Region 2'!$AD$31/'MMA Rev-Exp Region 2'!$AD$9, 0)","v":{"v":0,"d":"$0.00"}},{"$f":"IFERROR('MMA Rev-Exp Region 2'!$AE$31/'MMA Rev-Exp Region 2'!$AE$9, 0)","v":{"v":0,"d":"$0.00"}},{"$f":"IFERROR('MMA Rev-Exp Region 2'!$AF$31/'MMA Rev-Exp Region 2'!$AF$9, 0)","v":{"v":0,"d":"$0.00"}},{"$f":"IFERROR('MMA Rev-Exp Region 2'!$AG$31/'MMA Rev-Exp Region 2'!$AG$9, 0)","v":{"v":0,"d":"$0.00"}},{"$f":"IFERROR('MMA Rev-Exp Region 2'!$AH$31/'MMA Rev-Exp Region 2'!$AH$9, 0)","v":{"v":0,"d":"$0.00"}},{"$f":"IFERROR('MMA Rev-Exp Region 2'!$AI$31/'MMA Rev-Exp Region 2'!$AI$9, 0)","v":{"v":0,"d":"$0.00"}},{"$f":"IFERROR('MMA Rev-Exp Region 2'!$AJ$31/'MMA Rev-Exp Region 2'!$AJ$9, 0)","v":{"v":0,"d":"$0.00"}}]
["MMA",null,null,2016,"2016-12-31","Q3","2017-09-30","Region 2","Operating Expense","Medical Benefits Expense","Professional Services","3.4","§ 1202 PCP Payments to providers",{"$f":"IFERROR('MMA Rev-Exp Region 2'!$Z$32/'MMA Rev-Exp Region 2'!$Z$9, 0)","v":{"v":0,"d":"$0.00"}},{"$f":"IFERROR('MMA Rev-Exp Region 2'!$AA$32/'MMA Rev-Exp Region 2'!$AA$9, 0)","v":{"v":0,"d":"$0.00"}},{"$f":"IFERROR('MMA Rev-Exp Region 2'!$AB$32/'MMA Rev-Exp Region 2'!$AB$9, 0)","v":{"v":0,"d":"$0.00"}},{"$f":"IFERROR('MMA Rev-Exp Region 2'!$AC$32/'MMA Rev-Exp Region 2'!$AC$9, 0)","v":{"v":0,"d":"$0.00"}},{"$f":"IFERROR('MMA Rev-Exp Region 2'!$AD$32/'MMA Rev-Exp Region 2'!$AD$9, 0)","v":{"v":0,"d":"$0.00"}},{"$f":"IFERROR('MMA Rev-Exp Region 2'!$AE$32/'MMA Rev-Exp Region 2'!$AE$9, 0)","v":{"v":0,"d":"$0.00"}},{"$f":"IFERROR('MMA Rev-Exp Region 2'!$AF$32/'MMA Rev-Exp Region 2'!$AF$9, 0)","v":{"v":0,"d":"$0.00"}},{"$f":"IFERROR('MMA Rev-Exp Region 2'!$AG$32/'MMA Rev-Exp Region 2'!$AG$9, 0)","v":{"v":0,"d":"$0.00"}},{"$f":"IFERROR('MMA Rev-Exp Region 2'!$AH$32/'MMA Rev-Exp Region 2'!$AH$9, 0)","v":{"v":0,"d":"$0.00"}},{"$f":"IFERROR('MMA Rev-Exp Region 2'!$AI$32/'MMA Rev-Exp Region 2'!$AI$9, 0)","v":{"v":0,"d":"$0.00"}},{"$f":"IFERROR('MMA Rev-Exp Region 2'!$AJ$32/'MMA Rev-Exp Region 2'!$AJ$9, 0)","v":{"v":0,"d":"$0.00"}}]
["MMA",null,null,2016,"2016-12-31","Q3","2017-09-30","Region 2","Operating Expense","Medical Benefits Expense","Professional Services","3.5","Subcapitated Professional Services",{"$f":"IFERROR('MMA Rev-Exp Region 2'!$Z$33/'MMA Rev-Exp Region 2'!$Z$9, 0)","v":{"v":0,"d":"$0.00"}},{"$f":"IFERROR('MMA Rev-Exp Region 2'!$AA$33/'MMA Rev-Exp Region 2'!$AA$9, 0)","v":{"v":0,"d":"$0.00"}},{"$f":"IFERROR('MMA Rev-Exp Region 2'!$AB$33/'MMA Rev-Exp Region 2'!$AB$9, 0)","v":{"v":0,"d":"$0.00"}},{"$f":"IFERROR('MMA Rev-Exp Region 2'!$AC$33/'MMA Rev-Exp Region 2'!$AC$9, 0)","v":{"v":0,"d":"$0.00"}},{"$f":"IFERROR('MMA Rev-Exp Region 2'!$AD$33/'MMA Rev-Exp Region 2'!$AD$9, 0)","v":{"v":0,"d":"$0.00"}},{"$f":"IFERROR('MMA Rev-Exp Region 2'!$AE$33/'MMA Rev-Exp Region 2'!$AE$9, 0)","v":{"v":0,"d":"$0.00"}},{"$f":"IFERROR('MMA Rev-Exp Region 2'!$AF$33/'MMA Rev-Exp Region 2'!$AF$9, 0)","v":{"v":0,"d":"$0.00"}},{"$f":"IFERROR('MMA Rev-Exp Region 2'!$AG$33/'MMA Rev-Exp Region 2'!$AG$9, 0)","v":{"v":0,"d":"$0.00"}},{"$f":"IFERROR('MMA Rev-Exp Region 2'!$AH$33/'MMA Rev-Exp Region 2'!$AH$9, 0)","v":{"v":0,"d":"$0.00"}},{"$f":"IFERROR('MMA Rev-Exp Region 2'!$AI$33/'MMA Rev-Exp Region 2'!$AI$9, 0)","v":{"v":0,"d":"$0.00"}},{"$f":"IFERROR('MMA Rev-Exp Region 2'!$AJ$33/'MMA Rev-Exp Region 2'!$AJ$9, 0)","v":{"v":0,"d":"$0.00"}}]
["MMA",null,null,2016,"2016-12-31","Q3","2017-09-30","Region 2","Operating Expense","Medical Benefits Expense","Professional Services","3.6","Ending IBNP for Professional Services",{"$f":"IFERROR('MMA Rev-Exp Region 2'!$Z$34/'MMA Rev-Exp Region 2'!$Z$9, 0)","v":{"v":0,"d":"$0.00"}},{"$f":"IFERROR('MMA Rev-Exp Region 2'!$AA$34/'MMA Rev-Exp Region 2'!$AA$9, 0)","v":{"v":0,"d":"$0.00"}},{"$f":"IFERROR('MMA Rev-Exp Region 2'!$AB$34/'MMA Rev-Exp Region 2'!$AB$9, 0)","v":{"v":0,"d":"$0.00"}},{"$f":"IFERROR('MMA Rev-Exp Region 2'!$AC$34/'MMA Rev-Exp Region 2'!$AC$9, 0)","v":{"v":0,"d":"$0.00"}},{"$f":"IFERROR('MMA Rev-Exp Region 2'!$AD$34/'MMA Rev-Exp Region 2'!$AD$9, 0)","v":{"v":0,"d":"$0.00"}},{"$f":"IFERROR('MMA Rev-Exp Region 2'!$AE$34/'MMA Rev-Exp Region 2'!$AE$9, 0)","v":{"v":0,"d":"$0.00"}},{"$f":"IFERROR('MMA Rev-Exp Region 2'!$AF$34/'MMA Rev-Exp Region 2'!$AF$9, 0)","v":{"v":0,"d":"$0.00"}},{"$f":"IFERROR('MMA Rev-Exp Region 2'!$AG$34/'MMA Rev-Exp Region 2'!$AG$9, 0)","v":{"v":0,"d":"$0.00"}},{"$f":"IFERROR('MMA Rev-Exp Region 2'!$AH$34/'MMA Rev-Exp Region 2'!$AH$9, 0)","v":{"v":0,"d":"$0.00"}},{"$f":"IFERROR('MMA Rev-Exp Region 2'!$AI$34/'MMA Rev-Exp Region 2'!$AI$9, 0)","v":{"v":0,"d":"$0.00"}},{"$f":"IFERROR('MMA Rev-Exp Region 2'!$AJ$34/'MMA Rev-Exp Region 2'!$AJ$9, 0)","v":{"v":0,"d":"$0.00"}}]
["MMA",null,null,2016,"2016-12-31","Q3","2017-09-30","Region 2","Operating Expense","Medical Benefits Expense","Professional Services","3.7","Professional Services Settlements",{"$f":"IFERROR('MMA Rev-Exp Region 2'!$Z$35/'MMA Rev-Exp Region 2'!$Z$9, 0)","v":{"v":0,"d":"$0.00"}},{"$f":"IFERROR('MMA Rev-Exp Region 2'!$AA$35/'MMA Rev-Exp Region 2'!$AA$9, 0)","v":{"v":0,"d":"$0.00"}},{"$f":"IFERROR('MMA Rev-Exp Region 2'!$AB$35/'MMA Rev-Exp Region 2'!$AB$9, 0)","v":{"v":0,"d":"$0.00"}},{"$f":"IFERROR('MMA Rev-Exp Region 2'!$AC$35/'MMA Rev-Exp Region 2'!$AC$9, 0)","v":{"v":0,"d":"$0.00"}},{"$f":"IFERROR('MMA Rev-Exp Region 2'!$AD$35/'MMA Rev-Exp Region 2'!$AD$9, 0)","v":{"v":0,"d":"$0.00"}},{"$f":"IFERROR('MMA Rev-Exp Region 2'!$AE$35/'MMA Rev-Exp Region 2'!$AE$9, 0)","v":{"v":0,"d":"$0.00"}},{"$f":"IFERROR('MMA Rev-Exp Region 2'!$AF$35/'MMA Rev-Exp Region 2'!$AF$9, 0)","v":{"v":0,"d":"$0.00"}},{"$f":"IFERROR('MMA Rev-Exp Region 2'!$AG$35/'MMA Rev-Exp Region 2'!$AG$9, 0)","v":{"v":0,"d":"$0.00"}},{"$f":"IFERROR('MMA Rev-Exp Region 2'!$AH$35/'MMA Rev-Exp Region 2'!$AH$9, 0)","v":{"v":0,"d":"$0.00"}},{"$f":"IFERROR('MMA Rev-Exp Region 2'!$AI$35/'MMA Rev-Exp Region 2'!$AI$9, 0)","v":{"v":0,"d":"$0.00"}},{"$f":"IFERROR('MMA Rev-Exp Region 2'!$AJ$35/'MMA Rev-Exp Region 2'!$AJ$9, 0)","v":{"v":0,"d":"$0.00"}}]
["MMA",null,null,2016,"2016-12-31","Q3","2017-09-30","Region 2","Operating Expense","Medical Benefits Expense","Maternity Services","4.1.1","Maternity Services",{"$f":"IFERROR('MMA Rev-Exp Region 2'!$Z$37/'MMA Rev-Exp Region 2'!$Z$9, 0)","v":{"v":0,"d":"$0.00"}},{"$f":"IFERROR('MMA Rev-Exp Region 2'!$AA$37/'MMA Rev-Exp Region 2'!$AA$9, 0)","v":{"v":0,"d":"$0.00"}},{"$f":"IFERROR('MMA Rev-Exp Region 2'!$AB$37/'MMA Rev-Exp Region 2'!$AB$9, 0)","v":{"v":0,"d":"$0.00"}},{"$f":"IFERROR('MMA Rev-Exp Region 2'!$AC$37/'MMA Rev-Exp Region 2'!$AC$9, 0)","v":{"v":0,"d":"$0.00"}},{"$f":"IFERROR('MMA Rev-Exp Region 2'!$AD$37/'MMA Rev-Exp Region 2'!$AD$9, 0)","v":{"v":0,"d":"$0.00"}},{"$f":"IFERROR('MMA Rev-Exp Region 2'!$AE$37/'MMA Rev-Exp Region 2'!$AE$9, 0)","v":{"v":0,"d":"$0.00"}},{"$f":"IFERROR('MMA Rev-Exp Region 2'!$AF$37/'MMA Rev-Exp Region 2'!$AF$9, 0)","v":{"v":0,"d":"$0.00"}},{"$f":"IFERROR('MMA Rev-Exp Region 2'!$AG$37/'MMA Rev-Exp Region 2'!$AG$9, 0)","v":{"v":0,"d":"$0.00"}},{"$f":"IFERROR('MMA Rev-Exp Region 2'!$AH$37/'MMA Rev-Exp Region 2'!$AH$9, 0)","v":{"v":0,"d":"$0.00"}},{"$f":"IFERROR('MMA Rev-Exp Region 2'!$AI$37/'MMA Rev-Exp Region 2'!$AI$9, 0)","v":{"v":0,"d":"$0.00"}},{"$f":"IFERROR('MMA Rev-Exp Region 2'!$AJ$37/'MMA Rev-Exp Region 2'!$AJ$9, 0)","v":{"v":0,"d":"$0.00"}}]
["MMA",null,null,2016,"2016-12-31","Q3","2017-09-30","Region 2","Operating Expense","Medical Benefits Expense","Maternity Services","4.2.1","Ending IBNP for Maternity Services",{"$f":"IFERROR('MMA Rev-Exp Region 2'!$Z$38/'MMA Rev-Exp Region 2'!$Z$9, 0)","v":{"v":0,"d":"$0.00"}},{"$f":"IFERROR('MMA Rev-Exp Region 2'!$AA$38/'MMA Rev-Exp Region 2'!$AA$9, 0)","v":{"v":0,"d":"$0.00"}},{"$f":"IFERROR('MMA Rev-Exp Region 2'!$AB$38/'MMA Rev-Exp Region 2'!$AB$9, 0)","v":{"v":0,"d":"$0.00"}},{"$f":"IFERROR('MMA Rev-Exp Region 2'!$AC$38/'MMA Rev-Exp Region 2'!$AC$9, 0)","v":{"v":0,"d":"$0.00"}},{"$f":"IFERROR('MMA Rev-Exp Region 2'!$AD$38/'MMA Rev-Exp Region 2'!$AD$9, 0)","v":{"v":0,"d":"$0.00"}},{"$f":"IFERROR('MMA Rev-Exp Region 2'!$AE$38/'MMA Rev-Exp Region 2'!$AE$9, 0)","v":{"v":0,"d":"$0.00"}},{"$f":"IFERROR('MMA Rev-Exp Region 2'!$AF$38/'MMA Rev-Exp Region 2'!$AF$9, 0)","v":{"v":0,"d":"$0.00"}},{"$f":"IFERROR('MMA Rev-Exp Region 2'!$AG$38/'MMA Rev-Exp Region 2'!$AG$9, 0)","v":{"v":0,"d":"$0.00"}},{"$f":"IFERROR('MMA Rev-Exp Region 2'!$AH$38/'MMA Rev-Exp Region 2'!$AH$9, 0)","v":{"v":0,"d":"$0.00"}},{"$f":"IFERROR('MMA Rev-Exp Region 2'!$AI$38/'MMA Rev-Exp Region 2'!$AI$9, 0)","v":{"v":0,"d":"$0.00"}},{"$f":"IFERROR('MMA Rev-Exp Region 2'!$AJ$38/'MMA Rev-Exp Region 2'!$AJ$9, 0)","v":{"v":0,"d":"$0.00"}}]
["MMA",null,null,2016,"2016-12-31","Q3","2017-09-30","Region 2","Operating Expense","Medical Benefits Expense","Maternity Services","4.3.1","Maternity Settlements",{"$f":"IFERROR('MMA Rev-Exp Region 2'!$Z$39/'MMA Rev-Exp Region 2'!$Z$9, 0)","v":{"v":0,"d":"$0.00"}},{"$f":"IFERROR('MMA Rev-Exp Region 2'!$AA$39/'MMA Rev-Exp Region 2'!$AA$9, 0)","v":{"v":0,"d":"$0.00"}},{"$f":"IFERROR('MMA Rev-Exp Region 2'!$AB$39/'MMA Rev-Exp Region 2'!$AB$9, 0)","v":{"v":0,"d":"$0.00"}},{"$f":"IFERROR('MMA Rev-Exp Region 2'!$AC$39/'MMA Rev-Exp Region 2'!$AC$9, 0)","v":{"v":0,"d":"$0.00"}},{"$f":"IFERROR('MMA Rev-Exp Region 2'!$AD$39/'MMA Rev-Exp Region 2'!$AD$9, 0)","v":{"v":0,"d":"$0.00"}},{"$f":"IFERROR('MMA Rev-Exp Region 2'!$AE$39/'MMA Rev-Exp Region 2'!$AE$9, 0)","v":{"v":0,"d":"$0.00"}},{"$f":"IFERROR('MMA Rev-Exp Region 2'!$AF$39/'MMA Rev-Exp Region 2'!$AF$9, 0)","v":{"v":0,"d":"$0.00"}},{"$f":"IFERROR('MMA Rev-Exp Region 2'!$AG$39/'MMA Rev-Exp Region 2'!$AG$9, 0)","v":{"v":0,"d":"$0.00"}},{"$f":"IFERROR('MMA Rev-Exp Region 2'!$AH$39/'MMA Rev-Exp Region 2'!$AH$9, 0)","v":{"v":0,"d":"$0.00"}},{"$f":"IFERROR('MMA Rev-Exp Region 2'!$AI$39/'MMA Rev-Exp Region 2'!$AI$9, 0)","v":{"v":0,"d":"$0.00"}},{"$f":"IFERROR('MMA Rev-Exp Region 2'!$AJ$39/'MMA Rev-Exp Region 2'!$AJ$9, 0)","v":{"v":0,"d":"$0.00"}}]
["MMA",null,null,2016,"2016-12-31","Q3","2017-09-30","Region 2","Operating Expense","Medical Benefits Expense","Mental Health Services",5.1,"Mental Health & Substance Abuse FFS",{"$f":"IFERROR('MMA Rev-Exp Region 2'!$Z$41/'MMA Rev-Exp Region 2'!$Z$9, 0)","v":{"v":0,"d":"$0.00"}},{"$f":"IFERROR('MMA Rev-Exp Region 2'!$AA$41/'MMA Rev-Exp Region 2'!$AA$9, 0)","v":{"v":0,"d":"$0.00"}},{"$f":"IFERROR('MMA Rev-Exp Region 2'!$AB$41/'MMA Rev-Exp Region 2'!$AB$9, 0)","v":{"v":0,"d":"$0.00"}},{"$f":"IFERROR('MMA Rev-Exp Region 2'!$AC$41/'MMA Rev-Exp Region 2'!$AC$9, 0)","v":{"v":0,"d":"$0.00"}},{"$f":"IFERROR('MMA Rev-Exp Region 2'!$AD$41/'MMA Rev-Exp Region 2'!$AD$9, 0)","v":{"v":0,"d":"$0.00"}},{"$f":"IFERROR('MMA Rev-Exp Region 2'!$AE$41/'MMA Rev-Exp Region 2'!$AE$9, 0)","v":{"v":0,"d":"$0.00"}},{"$f":"IFERROR('MMA Rev-Exp Region 2'!$AF$41/'MMA Rev-Exp Region 2'!$AF$9, 0)","v":{"v":0,"d":"$0.00"}},{"$f":"IFERROR('MMA Rev-Exp Region 2'!$AG$41/'MMA Rev-Exp Region 2'!$AG$9, 0)","v":{"v":0,"d":"$0.00"}},{"$f":"IFERROR('MMA Rev-Exp Region 2'!$AH$41/'MMA Rev-Exp Region 2'!$AH$9, 0)","v":{"v":0,"d":"$0.00"}},{"$f":"IFERROR('MMA Rev-Exp Region 2'!$AI$41/'MMA Rev-Exp Region 2'!$AI$9, 0)","v":{"v":0,"d":"$0.00"}},{"$f":"IFERROR('MMA Rev-Exp Region 2'!$AJ$41/'MMA Rev-Exp Region 2'!$AJ$9, 0)","v":{"v":0,"d":"$0.00"}}]
["MMA",null,null,2016,"2016-12-31","Q3","2017-09-30","Region 2","Operating Expense","Medical Benefits Expense","Mental Health Services",5.2,"Mental Health & Substance Abuse Subcapitation",{"$f":"IFERROR('MMA Rev-Exp Region 2'!$Z$42/'MMA Rev-Exp Region 2'!$Z$9, 0)","v":{"v":0,"d":"$0.00"}},{"$f":"IFERROR('MMA Rev-Exp Region 2'!$AA$42/'MMA Rev-Exp Region 2'!$AA$9, 0)","v":{"v":0,"d":"$0.00"}},{"$f":"IFERROR('MMA Rev-Exp Region 2'!$AB$42/'MMA Rev-Exp Region 2'!$AB$9, 0)","v":{"v":0,"d":"$0.00"}},{"$f":"IFERROR('MMA Rev-Exp Region 2'!$AC$42/'MMA Rev-Exp Region 2'!$AC$9, 0)","v":{"v":0,"d":"$0.00"}},{"$f":"IFERROR('MMA Rev-Exp Region 2'!$AD$42/'MMA Rev-Exp Region 2'!$AD$9, 0)","v":{"v":0,"d":"$0.00"}},{"$f":"IFERROR('MMA Rev-Exp Region 2'!$AE$42/'MMA Rev-Exp Region 2'!$AE$9, 0)","v":{"v":0,"d":"$0.00"}},{"$f":"IFERROR('MMA Rev-Exp Region 2'!$AF$42/'MMA Rev-Exp Region 2'!$AF$9, 0)","v":{"v":0,"d":"$0.00"}},{"$f":"IFERROR('MMA Rev-Exp Region 2'!$AG$42/'MMA Rev-Exp Region 2'!$AG$9, 0)","v":{"v":0,"d":"$0.00"}},{"$f":"IFERROR('MMA Rev-Exp Region 2'!$AH$42/'MMA Rev-Exp Region 2'!$AH$9, 0)","v":{"v":0,"d":"$0.00"}},{"$f":"IFERROR('MMA Rev-Exp Region 2'!$AI$42/'MMA Rev-Exp Region 2'!$AI$9, 0)","v":{"v":0,"d":"$0.00"}},{"$f":"IFERROR('MMA Rev-Exp Region 2'!$AJ$42/'MMA Rev-Exp Region 2'!$AJ$9, 0)","v":{"v":0,"d":"$0.00"}}]
["MMA",null,null,2016,"2016-12-31","Q3","2017-09-30","Region 2","Operating Expense","Medical Benefits Expense","Mental Health Services",5.3,"Ending IBNP for Mental Health & Substance Abuse",{"$f":"IFERROR('MMA Rev-Exp Region 2'!$Z$43/'MMA Rev-Exp Region 2'!$Z$9, 0)","v":{"v":0,"d":"$0.00"}},{"$f":"IFERROR('MMA Rev-Exp Region 2'!$AA$43/'MMA Rev-Exp Region 2'!$AA$9, 0)","v":{"v":0,"d":"$0.00"}},{"$f":"IFERROR('MMA Rev-Exp Region 2'!$AB$43/'MMA Rev-Exp Region 2'!$AB$9, 0)","v":{"v":0,"d":"$0.00"}},{"$f":"IFERROR('MMA Rev-Exp Region 2'!$AC$43/'MMA Rev-Exp Region 2'!$AC$9, 0)","v":{"v":0,"d":"$0.00"}},{"$f":"IFERROR('MMA Rev-Exp Region 2'!$AD$43/'MMA Rev-Exp Region 2'!$AD$9, 0)","v":{"v":0,"d":"$0.00"}},{"$f":"IFERROR('MMA Rev-Exp Region 2'!$AE$43/'MMA Rev-Exp Region 2'!$AE$9, 0)","v":{"v":0,"d":"$0.00"}},{"$f":"IFERROR('MMA Rev-Exp Region 2'!$AF$43/'MMA Rev-Exp Region 2'!$AF$9, 0)","v":{"v":0,"d":"$0.00"}},{"$f":"IFERROR('MMA Rev-Exp Region 2'!$AG$43/'MMA Rev-Exp Region 2'!$AG$9, 0)","v":{"v":0,"d":"$0.00"}},{"$f":"IFERROR('MMA Rev-Exp Region 2'!$AH$43/'MMA Rev-Exp Region 2'!$AH$9, 0)","v":{"v":0,"d":"$0.00"}},{"$f":"IFERROR('MMA Rev-Exp Region 2'!$AI$43/'MMA Rev-Exp Region 2'!$AI$9, 0)","v":{"v":0,"d":"$0.00"}},{"$f":"IFERROR('MMA Rev-Exp Region 2'!$AJ$43/'MMA Rev-Exp Region 2'!$AJ$9, 0)","v":{"v":0,"d":"$0.00"}}]
["MMA",null,null,2016,"2016-12-31","Q3","2017-09-30","Region 2","Operating Expense","Medical Benefits Expense","Mental Health Services","5.4","Mental Health Settlements",{"$f":"IFERROR('MMA Rev-Exp Region 2'!$Z$44/'MMA Rev-Exp Region 2'!$Z$9, 0)","v":{"v":0,"d":"$0.00"}},{"$f":"IFERROR('MMA Rev-Exp Region 2'!$AA$44/'MMA Rev-Exp Region 2'!$AA$9, 0)","v":{"v":0,"d":"$0.00"}},{"$f":"IFERROR('MMA Rev-Exp Region 2'!$AB$44/'MMA Rev-Exp Region 2'!$AB$9, 0)","v":{"v":0,"d":"$0.00"}},{"$f":"IFERROR('MMA Rev-Exp Region 2'!$AC$44/'MMA Rev-Exp Region 2'!$AC$9, 0)","v":{"v":0,"d":"$0.00"}},{"$f":"IFERROR('MMA Rev-Exp Region 2'!$AD$44/'MMA Rev-Exp Region 2'!$AD$9, 0)","v":{"v":0,"d":"$0.00"}},{"$f":"IFERROR('MMA Rev-Exp Region 2'!$AE$44/'MMA Rev-Exp Region 2'!$AE$9, 0)","v":{"v":0,"d":"$0.00"}},{"$f":"IFERROR('MMA Rev-Exp Region 2'!$AF$44/'MMA Rev-Exp Region 2'!$AF$9, 0)","v":{"v":0,"d":"$0.00"}},{"$f":"IFERROR('MMA Rev-Exp Region 2'!$AG$44/'MMA Rev-Exp Region 2'!$AG$9, 0)","v":{"v":0,"d":"$0.00"}},{"$f":"IFERROR('MMA Rev-Exp Region 2'!$AH$44/'MMA Rev-Exp Region 2'!$AH$9, 0)","v":{"v":0,"d":"$0.00"}},{"$f":"IFERROR('MMA Rev-Exp Region 2'!$AI$44/'MMA Rev-Exp Region 2'!$AI$9, 0)","v":{"v":0,"d":"$0.00"}},{"$f":"IFERROR('MMA Rev-Exp Region 2'!$AJ$44/'MMA Rev-Exp Region 2'!$AJ$9, 0)","v":{"v":0,"d":"$0.00"}}]
["MMA",null,null,2016,"2016-12-31","Q3","2017-09-30","Region 2","Operating Expense","Medical Benefits Expense","Dental Services",6.1,"Dental FFS",{"$f":"IFERROR('MMA Rev-Exp Region 2'!$Z$46/'MMA Rev-Exp Region 2'!$Z$9, 0)","v":{"v":0,"d":"$0.00"}},{"$f":"IFERROR('MMA Rev-Exp Region 2'!$AA$46/'MMA Rev-Exp Region 2'!$AA$9, 0)","v":{"v":0,"d":"$0.00"}},{"$f":"IFERROR('MMA Rev-Exp Region 2'!$AB$46/'MMA Rev-Exp Region 2'!$AB$9, 0)","v":{"v":0,"d":"$0.00"}},{"$f":"IFERROR('MMA Rev-Exp Region 2'!$AC$46/'MMA Rev-Exp Region 2'!$AC$9, 0)","v":{"v":0,"d":"$0.00"}},{"$f":"IFERROR('MMA Rev-Exp Region 2'!$AD$46/'MMA Rev-Exp Region 2'!$AD$9, 0)","v":{"v":0,"d":"$0.00"}},{"$f":"IFERROR('MMA Rev-Exp Region 2'!$AE$46/'MMA Rev-Exp Region 2'!$AE$9, 0)","v":{"v":0,"d":"$0.00"}},{"$f":"IFERROR('MMA Rev-Exp Region 2'!$AF$46/'MMA Rev-Exp Region 2'!$AF$9, 0)","v":{"v":0,"d":"$0.00"}},{"$f":"IFERROR('MMA Rev-Exp Region 2'!$AG$46/'MMA Rev-Exp Region 2'!$AG$9, 0)","v":{"v":0,"d":"$0.00"}},{"$f":"IFERROR('MMA Rev-Exp Region 2'!$AH$46/'MMA Rev-Exp Region 2'!$AH$9, 0)","v":{"v":0,"d":"$0.00"}},{"$f":"IFERROR('MMA Rev-Exp Region 2'!$AI$46/'MMA Rev-Exp Region 2'!$AI$9, 0)","v":{"v":0,"d":"$0.00"}},{"$f":"IFERROR('MMA Rev-Exp Region 2'!$AJ$46/'MMA Rev-Exp Region 2'!$AJ$9, 0)","v":{"v":0,"d":"$0.00"}}]
["MMA",null,null,2016,"2016-12-31","Q3","2017-09-30","Region 2","Operating Expense","Medical Benefits Expense","Dental Services",6.2,"Dental Subcapitation",{"$f":"IFERROR('MMA Rev-Exp Region 2'!$Z$47/'MMA Rev-Exp Region 2'!$Z$9, 0)","v":{"v":0,"d":"$0.00"}},{"$f":"IFERROR('MMA Rev-Exp Region 2'!$AA$47/'MMA Rev-Exp Region 2'!$AA$9, 0)","v":{"v":0,"d":"$0.00"}},{"$f":"IFERROR('MMA Rev-Exp Region 2'!$AB$47/'MMA Rev-Exp Region 2'!$AB$9, 0)","v":{"v":0,"d":"$0.00"}},{"$f":"IFERROR('MMA Rev-Exp Region 2'!$AC$47/'MMA Rev-Exp Region 2'!$AC$9, 0)","v":{"v":0,"d":"$0.00"}},{"$f":"IFERROR('MMA Rev-Exp Region 2'!$AD$47/'MMA Rev-Exp Region 2'!$AD$9, 0)","v":{"v":0,"d":"$0.00"}},{"$f":"IFERROR('MMA Rev-Exp Region 2'!$AE$47/'MMA Rev-Exp Region 2'!$AE$9, 0)","v":{"v":0,"d":"$0.00"}},{"$f":"IFERROR('MMA Rev-Exp Region 2'!$AF$47/'MMA Rev-Exp Region 2'!$AF$9, 0)","v":{"v":0,"d":"$0.00"}},{"$f":"IFERROR('MMA Rev-Exp Region 2'!$AG$47/'MMA Rev-Exp Region 2'!$AG$9, 0)","v":{"v":0,"d":"$0.00"}},{"$f":"IFERROR('MMA Rev-Exp Region 2'!$AH$47/'MMA Rev-Exp Region 2'!$AH$9, 0)","v":{"v":0,"d":"$0.00"}},{"$f":"IFERROR('MMA Rev-Exp Region 2'!$AI$47/'MMA Rev-Exp Region 2'!$AI$9, 0)","v":{"v":0,"d":"$0.00"}},{"$f":"IFERROR('MMA Rev-Exp Region 2'!$AJ$47/'MMA Rev-Exp Region 2'!$AJ$9, 0)","v":{"v":0,"d":"$0.00"}}]
["MMA",null,null,2016,"2016-12-31","Q3","2017-09-30","Region 2","Operating Expense","Medical Benefits Expense","Dental Services",6.3,"Ending IBNP for Dental Services",{"$f":"IFERROR('MMA Rev-Exp Region 2'!$Z$48/'MMA Rev-Exp Region 2'!$Z$9, 0)","v":{"v":0,"d":"$0.00"}},{"$f":"IFERROR('MMA Rev-Exp Region 2'!$AA$48/'MMA Rev-Exp Region 2'!$AA$9, 0)","v":{"v":0,"d":"$0.00"}},{"$f":"IFERROR('MMA Rev-Exp Region 2'!$AB$48/'MMA Rev-Exp Region 2'!$AB$9, 0)","v":{"v":0,"d":"$0.00"}},{"$f":"IFERROR('MMA Rev-Exp Region 2'!$AC$48/'MMA Rev-Exp Region 2'!$AC$9, 0)","v":{"v":0,"d":"$0.00"}},{"$f":"IFERROR('MMA Rev-Exp Region 2'!$AD$48/'MMA Rev-Exp Region 2'!$AD$9, 0)","v":{"v":0,"d":"$0.00"}},{"$f":"IFERROR('MMA Rev-Exp Region 2'!$AE$48/'MMA Rev-Exp Region 2'!$AE$9, 0)","v":{"v":0,"d":"$0.00"}},{"$f":"IFERROR('MMA Rev-Exp Region 2'!$AF$48/'MMA Rev-Exp Region 2'!$AF$9, 0)","v":{"v":0,"d":"$0.00"}},{"$f":"IFERROR('MMA Rev-Exp Region 2'!$AG$48/'MMA Rev-Exp Region 2'!$AG$9, 0)","v":{"v":0,"d":"$0.00"}},{"$f":"IFERROR('MMA Rev-Exp Region 2'!$AH$48/'MMA Rev-Exp Region 2'!$AH$9, 0)","v":{"v":0,"d":"$0.00"}},{"$f":"IFERROR('MMA Rev-Exp Region 2'!$AI$48/'MMA Rev-Exp Region 2'!$AI$9, 0)","v":{"v":0,"d":"$0.00"}},{"$f":"IFERROR('MMA Rev-Exp Region 2'!$AJ$48/'MMA Rev-Exp Region 2'!$AJ$9, 0)","v":{"v":0,"d":"$0.00"}}]
["MMA",null,null,2016,"2016-12-31","Q3","2017-09-30","Region 2","Operating Expense","Medical Benefits Expense","Dental Services","6.4","Dental Settlements",{"$f":"IFERROR('MMA Rev-Exp Region 2'!$Z$49/'MMA Rev-Exp Region 2'!$Z$9, 0)","v":{"v":0,"d":"$0.00"}},{"$f":"IFERROR('MMA Rev-Exp Region 2'!$AA$49/'MMA Rev-Exp Region 2'!$AA$9, 0)","v":{"v":0,"d":"$0.00"}},{"$f":"IFERROR('MMA Rev-Exp Region 2'!$AB$49/'MMA Rev-Exp Region 2'!$AB$9, 0)","v":{"v":0,"d":"$0.00"}},{"$f":"IFERROR('MMA Rev-Exp Region 2'!$AC$49/'MMA Rev-Exp Region 2'!$AC$9, 0)","v":{"v":0,"d":"$0.00"}},{"$f":"IFERROR('MMA Rev-Exp Region 2'!$AD$49/'MMA Rev-Exp Region 2'!$AD$9, 0)","v":{"v":0,"d":"$0.00"}},{"$f":"IFERROR('MMA Rev-Exp Region 2'!$AE$49/'MMA Rev-Exp Region 2'!$AE$9, 0)","v":{"v":0,"d":"$0.00"}},{"$f":"IFERROR('MMA Rev-Exp Region 2'!$AF$49/'MMA Rev-Exp Region 2'!$AF$9, 0)","v":{"v":0,"d":"$0.00"}},{"$f":"IFERROR('MMA Rev-Exp Region 2'!$AG$49/'MMA Rev-Exp Region 2'!$AG$9, 0)","v":{"v":0,"d":"$0.00"}},{"$f":"IFERROR('MMA Rev-Exp Region 2'!$AH$49/'MMA Rev-Exp Region 2'!$AH$9, 0)","v":{"v":0,"d":"$0.00"}},{"$f":"IFERROR('MMA Rev-Exp Region 2'!$AI$49/'MMA Rev-Exp Region 2'!$AI$9, 0)","v":{"v":0,"d":"$0.00"}},{"$f":"IFERROR('MMA Rev-Exp Region 2'!$AJ$49/'MMA Rev-Exp Region 2'!$AJ$9, 0)","v":{"v":0,"d":"$0.00"}}]
["MMA",null,null,2016,"2016-12-31","Q3","2017-09-30","Region 2","Operating Expense","Medical Benefits Expense","Transportation Services",7.1,"Transportation FFS",{"$f":"IFERROR('MMA Rev-Exp Region 2'!$Z$51/'MMA Rev-Exp Region 2'!$Z$9, 0)","v":{"v":0,"d":"$0.00"}},{"$f":"IFERROR('MMA Rev-Exp Region 2'!$AA$51/'MMA Rev-Exp Region 2'!$AA$9, 0)","v":{"v":0,"d":"$0.00"}},{"$f":"IFERROR('MMA Rev-Exp Region 2'!$AB$51/'MMA Rev-Exp Region 2'!$AB$9, 0)","v":{"v":0,"d":"$0.00"}},{"$f":"IFERROR('MMA Rev-Exp Region 2'!$AC$51/'MMA Rev-Exp Region 2'!$AC$9, 0)","v":{"v":0,"d":"$0.00"}},{"$f":"IFERROR('MMA Rev-Exp Region 2'!$AD$51/'MMA Rev-Exp Region 2'!$AD$9, 0)","v":{"v":0,"d":"$0.00"}},{"$f":"IFERROR('MMA Rev-Exp Region 2'!$AE$51/'MMA Rev-Exp Region 2'!$AE$9, 0)","v":{"v":0,"d":"$0.00"}},{"$f":"IFERROR('MMA Rev-Exp Region 2'!$AF$51/'MMA Rev-Exp Region 2'!$AF$9, 0)","v":{"v":0,"d":"$0.00"}},{"$f":"IFERROR('MMA Rev-Exp Region 2'!$AG$51/'MMA Rev-Exp Region 2'!$AG$9, 0)","v":{"v":0,"d":"$0.00"}},{"$f":"IFERROR('MMA Rev-Exp Region 2'!$AH$51/'MMA Rev-Exp Region 2'!$AH$9, 0)","v":{"v":0,"d":"$0.00"}},{"$f":"IFERROR('MMA Rev-Exp Region 2'!$AI$51/'MMA Rev-Exp Region 2'!$AI$9, 0)","v":{"v":0,"d":"$0.00"}},{"$f":"IFERROR('MMA Rev-Exp Region 2'!$AJ$51/'MMA Rev-Exp Region 2'!$AJ$9, 0)","v":{"v":0,"d":"$0.00"}}]
["MMA",null,null,2016,"2016-12-31","Q3","2017-09-30","Region 2","Operating Expense","Medical Benefits Expense","Transportation Services",7.2,"Transportation Subcapitation",{"$f":"IFERROR('MMA Rev-Exp Region 2'!$Z$52/'MMA Rev-Exp Region 2'!$Z$9, 0)","v":{"v":0,"d":"$0.00"}},{"$f":"IFERROR('MMA Rev-Exp Region 2'!$AA$52/'MMA Rev-Exp Region 2'!$AA$9, 0)","v":{"v":0,"d":"$0.00"}},{"$f":"IFERROR('MMA Rev-Exp Region 2'!$AB$52/'MMA Rev-Exp Region 2'!$AB$9, 0)","v":{"v":0,"d":"$0.00"}},{"$f":"IFERROR('MMA Rev-Exp Region 2'!$AC$52/'MMA Rev-Exp Region 2'!$AC$9, 0)","v":{"v":0,"d":"$0.00"}},{"$f":"IFERROR('MMA Rev-Exp Region 2'!$AD$52/'MMA Rev-Exp Region 2'!$AD$9, 0)","v":{"v":0,"d":"$0.00"}},{"$f":"IFERROR('MMA Rev-Exp Region 2'!$AE$52/'MMA Rev-Exp Region 2'!$AE$9, 0)","v":{"v":0,"d":"$0.00"}},{"$f":"IFERROR('MMA Rev-Exp Region 2'!$AF$52/'MMA Rev-Exp Region 2'!$AF$9, 0)","v":{"v":0,"d":"$0.00"}},{"$f":"IFERROR('MMA Rev-Exp Region 2'!$AG$52/'MMA Rev-Exp Region 2'!$AG$9, 0)","v":{"v":0,"d":"$0.00"}},{"$f":"IFERROR('MMA Rev-Exp Region 2'!$AH$52/'MMA Rev-Exp Region 2'!$AH$9, 0)","v":{"v":0,"d":"$0.00"}},{"$f":"IFERROR('MMA Rev-Exp Region 2'!$AI$52/'MMA Rev-Exp Region 2'!$AI$9, 0)","v":{"v":0,"d":"$0.00"}},{"$f":"IFERROR('MMA Rev-Exp Region 2'!$AJ$52/'MMA Rev-Exp Region 2'!$AJ$9, 0)","v":{"v":0,"d":"$0.00"}}]
["MMA",null,null,2016,"2016-12-31","Q3","2017-09-30","Region 2","Operating Expense","Medical Benefits Expense","Transportation Services",7.3,"Ending IBNP for Transportation",{"$f":"IFERROR('MMA Rev-Exp Region 2'!$Z$53/'MMA Rev-Exp Region 2'!$Z$9, 0)","v":{"v":0,"d":"$0.00"}},{"$f":"IFERROR('MMA Rev-Exp Region 2'!$AA$53/'MMA Rev-Exp Region 2'!$AA$9, 0)","v":{"v":0,"d":"$0.00"}},{"$f":"IFERROR('MMA Rev-Exp Region 2'!$AB$53/'MMA Rev-Exp Region 2'!$AB$9, 0)","v":{"v":0,"d":"$0.00"}},{"$f":"IFERROR('MMA Rev-Exp Region 2'!$AC$53/'MMA Rev-Exp Region 2'!$AC$9, 0)","v":{"v":0,"d":"$0.00"}},{"$f":"IFERROR('MMA Rev-Exp Region 2'!$AD$53/'MMA Rev-Exp Region 2'!$AD$9, 0)","v":{"v":0,"d":"$0.00"}},{"$f":"IFERROR('MMA Rev-Exp Region 2'!$AE$53/'MMA Rev-Exp Region 2'!$AE$9, 0)","v":{"v":0,"d":"$0.00"}},{"$f":"IFERROR('MMA Rev-Exp Region 2'!$AF$53/'MMA Rev-Exp Region 2'!$AF$9, 0)","v":{"v":0,"d":"$0.00"}},{"$f":"IFERROR('MMA Rev-Exp Region 2'!$AG$53/'MMA Rev-Exp Region 2'!$AG$9, 0)","v":{"v":0,"d":"$0.00"}},{"$f":"IFERROR('MMA Rev-Exp Region 2'!$AH$53/'MMA Rev-Exp Region 2'!$AH$9, 0)","v":{"v":0,"d":"$0.00"}},{"$f":"IFERROR('MMA Rev-Exp Region 2'!$AI$53/'MMA Rev-Exp Region 2'!$AI$9, 0)","v":{"v":0,"d":"$0.00"}},{"$f":"IFERROR('MMA Rev-Exp Region 2'!$AJ$53/'MMA Rev-Exp Region 2'!$AJ$9, 0)","v":{"v":0,"d":"$0.00"}}]
["MMA",null,null,2016,"2016-12-31","Q3","2017-09-30","Region 2","Operating Expense","Medical Benefits Expense","Transportation Services","7.4","Transportation Settlements",{"$f":"IFERROR('MMA Rev-Exp Region 2'!$Z$54/'MMA Rev-Exp Region 2'!$Z$9, 0)","v":{"v":0,"d":"$0.00"}},{"$f":"IFERROR('MMA Rev-Exp Region 2'!$AA$54/'MMA Rev-Exp Region 2'!$AA$9, 0)","v":{"v":0,"d":"$0.00"}},{"$f":"IFERROR('MMA Rev-Exp Region 2'!$AB$54/'MMA Rev-Exp Region 2'!$AB$9, 0)","v":{"v":0,"d":"$0.00"}},{"$f":"IFERROR('MMA Rev-Exp Region 2'!$AC$54/'MMA Rev-Exp Region 2'!$AC$9, 0)","v":{"v":0,"d":"$0.00"}},{"$f":"IFERROR('MMA Rev-Exp Region 2'!$AD$54/'MMA Rev-Exp Region 2'!$AD$9, 0)","v":{"v":0,"d":"$0.00"}},{"$f":"IFERROR('MMA Rev-Exp Region 2'!$AE$54/'MMA Rev-Exp Region 2'!$AE$9, 0)","v":{"v":0,"d":"$0.00"}},{"$f":"IFERROR('MMA Rev-Exp Region 2'!$AF$54/'MMA Rev-Exp Region 2'!$AF$9, 0)","v":{"v":0,"d":"$0.00"}},{"$f":"IFERROR('MMA Rev-Exp Region 2'!$AG$54/'MMA Rev-Exp Region 2'!$AG$9, 0)","v":{"v":0,"d":"$0.00"}},{"$f":"IFERROR('MMA Rev-Exp Region 2'!$AH$54/'MMA Rev-Exp Region 2'!$AH$9, 0)","v":{"v":0,"d":"$0.00"}},{"$f":"IFERROR('MMA Rev-Exp Region 2'!$AI$54/'MMA Rev-Exp Region 2'!$AI$9, 0)","v":{"v":0,"d":"$0.00"}},{"$f":"IFERROR('MMA Rev-Exp Region 2'!$AJ$54/'MMA Rev-Exp Region 2'!$AJ$9, 0)","v":{"v":0,"d":"$0.00"}}]
["MMA",null,null,2016,"2016-12-31","Q3","2017-09-30","Region 2","Operating Expense","Medical Benefits Expense","Pharmacy Services",8.1,"Prescription Drugs FFS",{"$f":"IFERROR('MMA Rev-Exp Region 2'!$Z$56/'MMA Rev-Exp Region 2'!$Z$9, 0)","v":{"v":0,"d":"$0.00"}},{"$f":"IFERROR('MMA Rev-Exp Region 2'!$AA$56/'MMA Rev-Exp Region 2'!$AA$9, 0)","v":{"v":0,"d":"$0.00"}},{"$f":"IFERROR('MMA Rev-Exp Region 2'!$AB$56/'MMA Rev-Exp Region 2'!$AB$9, 0)","v":{"v":0,"d":"$0.00"}},{"$f":"IFERROR('MMA Rev-Exp Region 2'!$AC$56/'MMA Rev-Exp Region 2'!$AC$9, 0)","v":{"v":0,"d":"$0.00"}},{"$f":"IFERROR('MMA Rev-Exp Region 2'!$AD$56/'MMA Rev-Exp Region 2'!$AD$9, 0)","v":{"v":0,"d":"$0.00"}},{"$f":"IFERROR('MMA Rev-Exp Region 2'!$AE$56/'MMA Rev-Exp Region 2'!$AE$9, 0)","v":{"v":0,"d":"$0.00"}},{"$f":"IFERROR('MMA Rev-Exp Region 2'!$AF$56/'MMA Rev-Exp Region 2'!$AF$9, 0)","v":{"v":0,"d":"$0.00"}},{"$f":"IFERROR('MMA Rev-Exp Region 2'!$AG$56/'MMA Rev-Exp Region 2'!$AG$9, 0)","v":{"v":0,"d":"$0.00"}},{"$f":"IFERROR('MMA Rev-Exp Region 2'!$AH$56/'MMA Rev-Exp Region 2'!$AH$9, 0)","v":{"v":0,"d":"$0.00"}},{"$f":"IFERROR('MMA Rev-Exp Region 2'!$AI$56/'MMA Rev-Exp Region 2'!$AI$9, 0)","v":{"v":0,"d":"$0.00"}},{"$f":"IFERROR('MMA Rev-Exp Region 2'!$AJ$56/'MMA Rev-Exp Region 2'!$AJ$9, 0)","v":{"v":0,"d":"$0.00"}}]
["MMA",null,null,2016,"2016-12-31","Q3","2017-09-30","Region 2","Operating Expense","Medical Benefits Expense","Pharmacy Services","8.2","Hepatitis C Prescription Drug FFS",{"$f":"IFERROR('MMA Rev-Exp Region 2'!$Z$57/'MMA Rev-Exp Region 2'!$Z$9, 0)","v":{"v":0,"d":"$0.00"}},{"$f":"IFERROR('MMA Rev-Exp Region 2'!$AA$57/'MMA Rev-Exp Region 2'!$AA$9, 0)","v":{"v":0,"d":"$0.00"}},{"$f":"IFERROR('MMA Rev-Exp Region 2'!$AB$57/'MMA Rev-Exp Region 2'!$AB$9, 0)","v":{"v":0,"d":"$0.00"}},{"$f":"IFERROR('MMA Rev-Exp Region 2'!$AC$57/'MMA Rev-Exp Region 2'!$AC$9, 0)","v":{"v":0,"d":"$0.00"}},{"$f":"IFERROR('MMA Rev-Exp Region 2'!$AD$57/'MMA Rev-Exp Region 2'!$AD$9, 0)","v":{"v":0,"d":"$0.00"}},{"$f":"IFERROR('MMA Rev-Exp Region 2'!$AE$57/'MMA Rev-Exp Region 2'!$AE$9, 0)","v":{"v":0,"d":"$0.00"}},{"$f":"IFERROR('MMA Rev-Exp Region 2'!$AF$57/'MMA Rev-Exp Region 2'!$AF$9, 0)","v":{"v":0,"d":"$0.00"}},{"$f":"IFERROR('MMA Rev-Exp Region 2'!$AG$57/'MMA Rev-Exp Region 2'!$AG$9, 0)","v":{"v":0,"d":"$0.00"}},{"$f":"IFERROR('MMA Rev-Exp Region 2'!$AH$57/'MMA Rev-Exp Region 2'!$AH$9, 0)","v":{"v":0,"d":"$0.00"}},{"$f":"IFERROR('MMA Rev-Exp Region 2'!$AI$57/'MMA Rev-Exp Region 2'!$AI$9, 0)","v":{"v":0,"d":"$0.00"}},{"$f":"IFERROR('MMA Rev-Exp Region 2'!$AJ$57/'MMA Rev-Exp Region 2'!$AJ$9, 0)","v":{"v":0,"d":"$0.00"}}]
["MMA",null,null,2016,"2016-12-31","Q3","2017-09-30","Region 2","Operating Expense","Medical Benefits Expense","Pharmacy Services","8.3","Ending IBNP for Prescription Drugs",{"$f":"IFERROR('MMA Rev-Exp Region 2'!$Z$58/'MMA Rev-Exp Region 2'!$Z$9, 0)","v":{"v":0,"d":"$0.00"}},{"$f":"IFERROR('MMA Rev-Exp Region 2'!$AA$58/'MMA Rev-Exp Region 2'!$AA$9, 0)","v":{"v":0,"d":"$0.00"}},{"$f":"IFERROR('MMA Rev-Exp Region 2'!$AB$58/'MMA Rev-Exp Region 2'!$AB$9, 0)","v":{"v":0,"d":"$0.00"}},{"$f":"IFERROR('MMA Rev-Exp Region 2'!$AC$58/'MMA Rev-Exp Region 2'!$AC$9, 0)","v":{"v":0,"d":"$0.00"}},{"$f":"IFERROR('MMA Rev-Exp Region 2'!$AD$58/'MMA Rev-Exp Region 2'!$AD$9, 0)","v":{"v":0,"d":"$0.00"}},{"$f":"IFERROR('MMA Rev-Exp Region 2'!$AE$58/'MMA Rev-Exp Region 2'!$AE$9, 0)","v":{"v":0,"d":"$0.00"}},{"$f":"IFERROR('MMA Rev-Exp Region 2'!$AF$58/'MMA Rev-Exp Region 2'!$AF$9, 0)","v":{"v":0,"d":"$0.00"}},{"$f":"IFERROR('MMA Rev-Exp Region 2'!$AG$58/'MMA Rev-Exp Region 2'!$AG$9, 0)","v":{"v":0,"d":"$0.00"}},{"$f":"IFERROR('MMA Rev-Exp Region 2'!$AH$58/'MMA Rev-Exp Region 2'!$AH$9, 0)","v":{"v":0,"d":"$0.00"}},{"$f":"IFERROR('MMA Rev-Exp Region 2'!$AI$58/'MMA Rev-Exp Region 2'!$AI$9, 0)","v":{"v":0,"d":"$0.00"}},{"$f":"IFERROR('MMA Rev-Exp Region 2'!$AJ$58/'MMA Rev-Exp Region 2'!$AJ$9, 0)","v":{"v":0,"d":"$0.00"}}]
["MMA",null,null,2016,"2016-12-31","Q3","2017-09-30","Region 2","Operating Expense","Medical Benefits Expense","Pharmacy Services","8.4","Prescription Drug Rebates ",{"$f":"IFERROR('MMA Rev-Exp Region 2'!$Z$59/'MMA Rev-Exp Region 2'!$Z$9, 0)","v":{"v":0,"d":"$0.00"}},{"$f":"IFERROR('MMA Rev-Exp Region 2'!$AA$59/'MMA Rev-Exp Region 2'!$AA$9, 0)","v":{"v":0,"d":"$0.00"}},{"$f":"IFERROR('MMA Rev-Exp Region 2'!$AB$59/'MMA Rev-Exp Region 2'!$AB$9, 0)","v":{"v":0,"d":"$0.00"}},{"$f":"IFERROR('MMA Rev-Exp Region 2'!$AC$59/'MMA Rev-Exp Region 2'!$AC$9, 0)","v":{"v":0,"d":"$0.00"}},{"$f":"IFERROR('MMA Rev-Exp Region 2'!$AD$59/'MMA Rev-Exp Region 2'!$AD$9, 0)","v":{"v":0,"d":"$0.00"}},{"$f":"IFERROR('MMA Rev-Exp Region 2'!$AE$59/'MMA Rev-Exp Region 2'!$AE$9, 0)","v":{"v":0,"d":"$0.00"}},{"$f":"IFERROR('MMA Rev-Exp Region 2'!$AF$59/'MMA Rev-Exp Region 2'!$AF$9, 0)","v":{"v":0,"d":"$0.00"}},{"$f":"IFERROR('MMA Rev-Exp Region 2'!$AG$59/'MMA Rev-Exp Region 2'!$AG$9, 0)","v":{"v":0,"d":"$0.00"}},{"$f":"IFERROR('MMA Rev-Exp Region 2'!$AH$59/'MMA Rev-Exp Region 2'!$AH$9, 0)","v":{"v":0,"d":"$0.00"}},{"$f":"IFERROR('MMA Rev-Exp Region 2'!$AI$59/'MMA Rev-Exp Region 2'!$AI$9, 0)","v":{"v":0,"d":"$0.00"}},{"$f":"IFERROR('MMA Rev-Exp Region 2'!$AJ$59/'MMA Rev-Exp Region 2'!$AJ$9, 0)","v":{"v":0,"d":"$0.00"}}]
["MMA",null,null,2016,"2016-12-31","Q3","2017-09-30","Region 2","Operating Expense","Medical Benefits Expense","Pharmacy Services","8.5","Ending accrual for Rebates receivable",{"$f":"IFERROR('MMA Rev-Exp Region 2'!$Z$60/'MMA Rev-Exp Region 2'!$Z$9, 0)","v":{"v":0,"d":"$0.00"}},{"$f":"IFERROR('MMA Rev-Exp Region 2'!$AA$60/'MMA Rev-Exp Region 2'!$AA$9, 0)","v":{"v":0,"d":"$0.00"}},{"$f":"IFERROR('MMA Rev-Exp Region 2'!$AB$60/'MMA Rev-Exp Region 2'!$AB$9, 0)","v":{"v":0,"d":"$0.00"}},{"$f":"IFERROR('MMA Rev-Exp Region 2'!$AC$60/'MMA Rev-Exp Region 2'!$AC$9, 0)","v":{"v":0,"d":"$0.00"}},{"$f":"IFERROR('MMA Rev-Exp Region 2'!$AD$60/'MMA Rev-Exp Region 2'!$AD$9, 0)","v":{"v":0,"d":"$0.00"}},{"$f":"IFERROR('MMA Rev-Exp Region 2'!$AE$60/'MMA Rev-Exp Region 2'!$AE$9, 0)","v":{"v":0,"d":"$0.00"}},{"$f":"IFERROR('MMA Rev-Exp Region 2'!$AF$60/'MMA Rev-Exp Region 2'!$AF$9, 0)","v":{"v":0,"d":"$0.00"}},{"$f":"IFERROR('MMA Rev-Exp Region 2'!$AG$60/'MMA Rev-Exp Region 2'!$AG$9, 0)","v":{"v":0,"d":"$0.00"}},{"$f":"IFERROR('MMA Rev-Exp Region 2'!$AH$60/'MMA Rev-Exp Region 2'!$AH$9, 0)","v":{"v":0,"d":"$0.00"}},{"$f":"IFERROR('MMA Rev-Exp Region 2'!$AI$60/'MMA Rev-Exp Region 2'!$AI$9, 0)","v":{"v":0,"d":"$0.00"}},{"$f":"IFERROR('MMA Rev-Exp Region 2'!$AJ$60/'MMA Rev-Exp Region 2'!$AJ$9, 0)","v":{"v":0,"d":"$0.00"}}]
["MMA",null,null,2016,"2016-12-31","Q3","2017-09-30","Region 2","Operating Expense","Medical Benefits Expense","Pharmacy Services","8.6","Prescription Drugs Subcapitation",{"$f":"IFERROR('MMA Rev-Exp Region 2'!$Z$61/'MMA Rev-Exp Region 2'!$Z$9, 0)","v":{"v":0,"d":"$0.00"}},{"$f":"IFERROR('MMA Rev-Exp Region 2'!$AA$61/'MMA Rev-Exp Region 2'!$AA$9, 0)","v":{"v":0,"d":"$0.00"}},{"$f":"IFERROR('MMA Rev-Exp Region 2'!$AB$61/'MMA Rev-Exp Region 2'!$AB$9, 0)","v":{"v":0,"d":"$0.00"}},{"$f":"IFERROR('MMA Rev-Exp Region 2'!$AC$61/'MMA Rev-Exp Region 2'!$AC$9, 0)","v":{"v":0,"d":"$0.00"}},{"$f":"IFERROR('MMA Rev-Exp Region 2'!$AD$61/'MMA Rev-Exp Region 2'!$AD$9, 0)","v":{"v":0,"d":"$0.00"}},{"$f":"IFERROR('MMA Rev-Exp Region 2'!$AE$61/'MMA Rev-Exp Region 2'!$AE$9, 0)","v":{"v":0,"d":"$0.00"}},{"$f":"IFERROR('MMA Rev-Exp Region 2'!$AF$61/'MMA Rev-Exp Region 2'!$AF$9, 0)","v":{"v":0,"d":"$0.00"}},{"$f":"IFERROR('MMA Rev-Exp Region 2'!$AG$61/'MMA Rev-Exp Region 2'!$AG$9, 0)","v":{"v":0,"d":"$0.00"}},{"$f":"IFERROR('MMA Rev-Exp Region 2'!$AH$61/'MMA Rev-Exp Region 2'!$AH$9, 0)","v":{"v":0,"d":"$0.00"}},{"$f":"IFERROR('MMA Rev-Exp Region 2'!$AI$61/'MMA Rev-Exp Region 2'!$AI$9, 0)","v":{"v":0,"d":"$0.00"}},{"$f":"IFERROR('MMA Rev-Exp Region 2'!$AJ$61/'MMA Rev-Exp Region 2'!$AJ$9, 0)","v":{"v":0,"d":"$0.00"}}]
["MMA",null,null,2016,"2016-12-31","Q3","2017-09-30","Region 2","Operating Expense","Medical Benefits Expense","Pharmacy Services","8.7","Prescription Drug Settlements",{"$f":"IFERROR('MMA Rev-Exp Region 2'!$Z$62/'MMA Rev-Exp Region 2'!$Z$9, 0)","v":{"v":0,"d":"$0.00"}},{"$f":"IFERROR('MMA Rev-Exp Region 2'!$AA$62/'MMA Rev-Exp Region 2'!$AA$9, 0)","v":{"v":0,"d":"$0.00"}},{"$f":"IFERROR('MMA Rev-Exp Region 2'!$AB$62/'MMA Rev-Exp Region 2'!$AB$9, 0)","v":{"v":0,"d":"$0.00"}},{"$f":"IFERROR('MMA Rev-Exp Region 2'!$AC$62/'MMA Rev-Exp Region 2'!$AC$9, 0)","v":{"v":0,"d":"$0.00"}},{"$f":"IFERROR('MMA Rev-Exp Region 2'!$AD$62/'MMA Rev-Exp Region 2'!$AD$9, 0)","v":{"v":0,"d":"$0.00"}},{"$f":"IFERROR('MMA Rev-Exp Region 2'!$AE$62/'MMA Rev-Exp Region 2'!$AE$9, 0)","v":{"v":0,"d":"$0.00"}},{"$f":"IFERROR('MMA Rev-Exp Region 2'!$AF$62/'MMA Rev-Exp Region 2'!$AF$9, 0)","v":{"v":0,"d":"$0.00"}},{"$f":"IFERROR('MMA Rev-Exp Region 2'!$AG$62/'MMA Rev-Exp Region 2'!$AG$9, 0)","v":{"v":0,"d":"$0.00"}},{"$f":"IFERROR('MMA Rev-Exp Region 2'!$AH$62/'MMA Rev-Exp Region 2'!$AH$9, 0)","v":{"v":0,"d":"$0.00"}},{"$f":"IFERROR('MMA Rev-Exp Region 2'!$AI$62/'MMA Rev-Exp Region 2'!$AI$9, 0)","v":{"v":0,"d":"$0.00"}},{"$f":"IFERROR('MMA Rev-Exp Region 2'!$AJ$62/'MMA Rev-Exp Region 2'!$AJ$9, 0)","v":{"v":0,"d":"$0.00"}}]
["MMA",null,null,2016,"2016-12-31","Q3","2017-09-30","Region 2","Operating Expense","Medical Benefits Expense","Other MMA Services",9.1,"Home Health, Private Duty Nursing, Personal Care FFS",{"$f":"IFERROR('MMA Rev-Exp Region 2'!$Z$64/'MMA Rev-Exp Region 2'!$Z$9, 0)","v":{"v":0,"d":"$0.00"}},{"$f":"IFERROR('MMA Rev-Exp Region 2'!$AA$64/'MMA Rev-Exp Region 2'!$AA$9, 0)","v":{"v":0,"d":"$0.00"}},{"$f":"IFERROR('MMA Rev-Exp Region 2'!$AB$64/'MMA Rev-Exp Region 2'!$AB$9, 0)","v":{"v":0,"d":"$0.00"}},{"$f":"IFERROR('MMA Rev-Exp Region 2'!$AC$64/'MMA Rev-Exp Region 2'!$AC$9, 0)","v":{"v":0,"d":"$0.00"}},{"$f":"IFERROR('MMA Rev-Exp Region 2'!$AD$64/'MMA Rev-Exp Region 2'!$AD$9, 0)","v":{"v":0,"d":"$0.00"}},{"$f":"IFERROR('MMA Rev-Exp Region 2'!$AE$64/'MMA Rev-Exp Region 2'!$AE$9, 0)","v":{"v":0,"d":"$0.00"}},{"$f":"IFERROR('MMA Rev-Exp Region 2'!$AF$64/'MMA Rev-Exp Region 2'!$AF$9, 0)","v":{"v":0,"d":"$0.00"}},{"$f":"IFERROR('MMA Rev-Exp Region 2'!$AG$64/'MMA Rev-Exp Region 2'!$AG$9, 0)","v":{"v":0,"d":"$0.00"}},{"$f":"IFERROR('MMA Rev-Exp Region 2'!$AH$64/'MMA Rev-Exp Region 2'!$AH$9, 0)","v":{"v":0,"d":"$0.00"}},{"$f":"IFERROR('MMA Rev-Exp Region 2'!$AI$64/'MMA Rev-Exp Region 2'!$AI$9, 0)","v":{"v":0,"d":"$0.00"}},{"$f":"IFERROR('MMA Rev-Exp Region 2'!$AJ$64/'MMA Rev-Exp Region 2'!$AJ$9, 0)","v":{"v":0,"d":"$0.00"}}]
["MMA",null,null,2016,"2016-12-31","Q3","2017-09-30","Region 2","Operating Expense","Medical Benefits Expense","Other MMA Services","9.2","Hospice FFS",{"$f":"IFERROR('MMA Rev-Exp Region 2'!$Z$65/'MMA Rev-Exp Region 2'!$Z$9, 0)","v":{"v":0,"d":"$0.00"}},{"$f":"IFERROR('MMA Rev-Exp Region 2'!$AA$65/'MMA Rev-Exp Region 2'!$AA$9, 0)","v":{"v":0,"d":"$0.00"}},{"$f":"IFERROR('MMA Rev-Exp Region 2'!$AB$65/'MMA Rev-Exp Region 2'!$AB$9, 0)","v":{"v":0,"d":"$0.00"}},{"$f":"IFERROR('MMA Rev-Exp Region 2'!$AC$65/'MMA Rev-Exp Region 2'!$AC$9, 0)","v":{"v":0,"d":"$0.00"}},{"$f":"IFERROR('MMA Rev-Exp Region 2'!$AD$65/'MMA Rev-Exp Region 2'!$AD$9, 0)","v":{"v":0,"d":"$0.00"}},{"$f":"IFERROR('MMA Rev-Exp Region 2'!$AE$65/'MMA Rev-Exp Region 2'!$AE$9, 0)","v":{"v":0,"d":"$0.00"}},{"$f":"IFERROR('MMA Rev-Exp Region 2'!$AF$65/'MMA Rev-Exp Region 2'!$AF$9, 0)","v":{"v":0,"d":"$0.00"}},{"$f":"IFERROR('MMA Rev-Exp Region 2'!$AG$65/'MMA Rev-Exp Region 2'!$AG$9, 0)","v":{"v":0,"d":"$0.00"}},{"$f":"IFERROR('MMA Rev-Exp Region 2'!$AH$65/'MMA Rev-Exp Region 2'!$AH$9, 0)","v":{"v":0,"d":"$0.00"}},{"$f":"IFERROR('MMA Rev-Exp Region 2'!$AI$65/'MMA Rev-Exp Region 2'!$AI$9, 0)","v":{"v":0,"d":"$0.00"}},{"$f":"IFERROR('MMA Rev-Exp Region 2'!$AJ$65/'MMA Rev-Exp Region 2'!$AJ$9, 0)","v":{"v":0,"d":"$0.00"}}]
["MMA",null,null,2016,"2016-12-31","Q3","2017-09-30","Region 2","Operating Expense","Medical Benefits Expense","Other MMA Services","9.3","DME FFS",{"$f":"IFERROR('MMA Rev-Exp Region 2'!$Z$66/'MMA Rev-Exp Region 2'!$Z$9, 0)","v":{"v":0,"d":"$0.00"}},{"$f":"IFERROR('MMA Rev-Exp Region 2'!$AA$66/'MMA Rev-Exp Region 2'!$AA$9, 0)","v":{"v":0,"d":"$0.00"}},{"$f":"IFERROR('MMA Rev-Exp Region 2'!$AB$66/'MMA Rev-Exp Region 2'!$AB$9, 0)","v":{"v":0,"d":"$0.00"}},{"$f":"IFERROR('MMA Rev-Exp Region 2'!$AC$66/'MMA Rev-Exp Region 2'!$AC$9, 0)","v":{"v":0,"d":"$0.00"}},{"$f":"IFERROR('MMA Rev-Exp Region 2'!$AD$66/'MMA Rev-Exp Region 2'!$AD$9, 0)","v":{"v":0,"d":"$0.00"}},{"$f":"IFERROR('MMA Rev-Exp Region 2'!$AE$66/'MMA Rev-Exp Region 2'!$AE$9, 0)","v":{"v":0,"d":"$0.00"}},{"$f":"IFERROR('MMA Rev-Exp Region 2'!$AF$66/'MMA Rev-Exp Region 2'!$AF$9, 0)","v":{"v":0,"d":"$0.00"}},{"$f":"IFERROR('MMA Rev-Exp Region 2'!$AG$66/'MMA Rev-Exp Region 2'!$AG$9, 0)","v":{"v":0,"d":"$0.00"}},{"$f":"IFERROR('MMA Rev-Exp Region 2'!$AH$66/'MMA Rev-Exp Region 2'!$AH$9, 0)","v":{"v":0,"d":"$0.00"}},{"$f":"IFERROR('MMA Rev-Exp Region 2'!$AI$66/'MMA Rev-Exp Region 2'!$AI$9, 0)","v":{"v":0,"d":"$0.00"}},{"$f":"IFERROR('MMA Rev-Exp Region 2'!$AJ$66/'MMA Rev-Exp Region 2'!$AJ$9, 0)","v":{"v":0,"d":"$0.00"}}]
["MMA",null,null,2016,"2016-12-31","Q3","2017-09-30","Region 2","Operating Expense","Medical Benefits Expense","Other MMA Services","9.4","Other State Plan Services FFS",{"$f":"IFERROR('MMA Rev-Exp Region 2'!$Z$67/'MMA Rev-Exp Region 2'!$Z$9, 0)","v":{"v":0,"d":"$0.00"}},{"$f":"IFERROR('MMA Rev-Exp Region 2'!$AA$67/'MMA Rev-Exp Region 2'!$AA$9, 0)","v":{"v":0,"d":"$0.00"}},{"$f":"IFERROR('MMA Rev-Exp Region 2'!$AB$67/'MMA Rev-Exp Region 2'!$AB$9, 0)","v":{"v":0,"d":"$0.00"}},{"$f":"IFERROR('MMA Rev-Exp Region 2'!$AC$67/'MMA Rev-Exp Region 2'!$AC$9, 0)","v":{"v":0,"d":"$0.00"}},{"$f":"IFERROR('MMA Rev-Exp Region 2'!$AD$67/'MMA Rev-Exp Region 2'!$AD$9, 0)","v":{"v":0,"d":"$0.00"}},{"$f":"IFERROR('MMA Rev-Exp Region 2'!$AE$67/'MMA Rev-Exp Region 2'!$AE$9, 0)","v":{"v":0,"d":"$0.00"}},{"$f":"IFERROR('MMA Rev-Exp Region 2'!$AF$67/'MMA Rev-Exp Region 2'!$AF$9, 0)","v":{"v":0,"d":"$0.00"}},{"$f":"IFERROR('MMA Rev-Exp Region 2'!$AG$67/'MMA Rev-Exp Region 2'!$AG$9, 0)","v":{"v":0,"d":"$0.00"}},{"$f":"IFERROR('MMA Rev-Exp Region 2'!$AH$67/'MMA Rev-Exp Region 2'!$AH$9, 0)","v":{"v":0,"d":"$0.00"}},{"$f":"IFERROR('MMA Rev-Exp Region 2'!$AI$67/'MMA Rev-Exp Region 2'!$AI$9, 0)","v":{"v":0,"d":"$0.00"}},{"$f":"IFERROR('MMA Rev-Exp Region 2'!$AJ$67/'MMA Rev-Exp Region 2'!$AJ$9, 0)","v":{"v":0,"d":"$0.00"}}]
["MMA",null,null,2016,"2016-12-31","Q3","2017-09-30","Region 2","Operating Expense","Medical Benefits Expense","Other MMA Services","9.5","Other Services Subcapitation",{"$f":"IFERROR('MMA Rev-Exp Region 2'!$Z$68/'MMA Rev-Exp Region 2'!$Z$9, 0)","v":{"v":0,"d":"$0.00"}},{"$f":"IFERROR('MMA Rev-Exp Region 2'!$AA$68/'MMA Rev-Exp Region 2'!$AA$9, 0)","v":{"v":0,"d":"$0.00"}},{"$f":"IFERROR('MMA Rev-Exp Region 2'!$AB$68/'MMA Rev-Exp Region 2'!$AB$9, 0)","v":{"v":0,"d":"$0.00"}},{"$f":"IFERROR('MMA Rev-Exp Region 2'!$AC$68/'MMA Rev-Exp Region 2'!$AC$9, 0)","v":{"v":0,"d":"$0.00"}},{"$f":"IFERROR('MMA Rev-Exp Region 2'!$AD$68/'MMA Rev-Exp Region 2'!$AD$9, 0)","v":{"v":0,"d":"$0.00"}},{"$f":"IFERROR('MMA Rev-Exp Region 2'!$AE$68/'MMA Rev-Exp Region 2'!$AE$9, 0)","v":{"v":0,"d":"$0.00"}},{"$f":"IFERROR('MMA Rev-Exp Region 2'!$AF$68/'MMA Rev-Exp Region 2'!$AF$9, 0)","v":{"v":0,"d":"$0.00"}},{"$f":"IFERROR('MMA Rev-Exp Region 2'!$AG$68/'MMA Rev-Exp Region 2'!$AG$9, 0)","v":{"v":0,"d":"$0.00"}},{"$f":"IFERROR('MMA Rev-Exp Region 2'!$AH$68/'MMA Rev-Exp Region 2'!$AH$9, 0)","v":{"v":0,"d":"$0.00"}},{"$f":"IFERROR('MMA Rev-Exp Region 2'!$AI$68/'MMA Rev-Exp Region 2'!$AI$9, 0)","v":{"v":0,"d":"$0.00"}},{"$f":"IFERROR('MMA Rev-Exp Region 2'!$AJ$68/'MMA Rev-Exp Region 2'!$AJ$9, 0)","v":{"v":0,"d":"$0.00"}}]
["MMA",null,null,2016,"2016-12-31","Q3","2017-09-30","Region 2","Operating Expense","Medical Benefits Expense","Other MMA Services","9.6","Ending IBNP for Other Services",{"$f":"IFERROR('MMA Rev-Exp Region 2'!$Z$69/'MMA Rev-Exp Region 2'!$Z$9, 0)","v":{"v":0,"d":"$0.00"}},{"$f":"IFERROR('MMA Rev-Exp Region 2'!$AA$69/'MMA Rev-Exp Region 2'!$AA$9, 0)","v":{"v":0,"d":"$0.00"}},{"$f":"IFERROR('MMA Rev-Exp Region 2'!$AB$69/'MMA Rev-Exp Region 2'!$AB$9, 0)","v":{"v":0,"d":"$0.00"}},{"$f":"IFERROR('MMA Rev-Exp Region 2'!$AC$69/'MMA Rev-Exp Region 2'!$AC$9, 0)","v":{"v":0,"d":"$0.00"}},{"$f":"IFERROR('MMA Rev-Exp Region 2'!$AD$69/'MMA Rev-Exp Region 2'!$AD$9, 0)","v":{"v":0,"d":"$0.00"}},{"$f":"IFERROR('MMA Rev-Exp Region 2'!$AE$69/'MMA Rev-Exp Region 2'!$AE$9, 0)","v":{"v":0,"d":"$0.00"}},{"$f":"IFERROR('MMA Rev-Exp Region 2'!$AF$69/'MMA Rev-Exp Region 2'!$AF$9, 0)","v":{"v":0,"d":"$0.00"}},{"$f":"IFERROR('MMA Rev-Exp Region 2'!$AG$69/'MMA Rev-Exp Region 2'!$AG$9, 0)","v":{"v":0,"d":"$0.00"}},{"$f":"IFERROR('MMA Rev-Exp Region 2'!$AH$69/'MMA Rev-Exp Region 2'!$AH$9, 0)","v":{"v":0,"d":"$0.00"}},{"$f":"IFERROR('MMA Rev-Exp Region 2'!$AI$69/'MMA Rev-Exp Region 2'!$AI$9, 0)","v":{"v":0,"d":"$0.00"}},{"$f":"IFERROR('MMA Rev-Exp Region 2'!$AJ$69/'MMA Rev-Exp Region 2'!$AJ$9, 0)","v":{"v":0,"d":"$0.00"}}]
["MMA",null,null,2016,"2016-12-31","Q3","2017-09-30","Region 2","Operating Expense","Medical Benefits Expense","Other MMA Services","9.7","Other Services Settlements",{"$f":"IFERROR('MMA Rev-Exp Region 2'!$Z$70/'MMA Rev-Exp Region 2'!$Z$9, 0)","v":{"v":0,"d":"$0.00"}},{"$f":"IFERROR('MMA Rev-Exp Region 2'!$AA$70/'MMA Rev-Exp Region 2'!$AA$9, 0)","v":{"v":0,"d":"$0.00"}},{"$f":"IFERROR('MMA Rev-Exp Region 2'!$AB$70/'MMA Rev-Exp Region 2'!$AB$9, 0)","v":{"v":0,"d":"$0.00"}},{"$f":"IFERROR('MMA Rev-Exp Region 2'!$AC$70/'MMA Rev-Exp Region 2'!$AC$9, 0)","v":{"v":0,"d":"$0.00"}},{"$f":"IFERROR('MMA Rev-Exp Region 2'!$AD$70/'MMA Rev-Exp Region 2'!$AD$9, 0)","v":{"v":0,"d":"$0.00"}},{"$f":"IFERROR('MMA Rev-Exp Region 2'!$AE$70/'MMA Rev-Exp Region 2'!$AE$9, 0)","v":{"v":0,"d":"$0.00"}},{"$f":"IFERROR('MMA Rev-Exp Region 2'!$AF$70/'MMA Rev-Exp Region 2'!$AF$9, 0)","v":{"v":0,"d":"$0.00"}},{"$f":"IFERROR('MMA Rev-Exp Region 2'!$AG$70/'MMA Rev-Exp Region 2'!$AG$9, 0)","v":{"v":0,"d":"$0.00"}},{"$f":"IFERROR('MMA Rev-Exp Region 2'!$AH$70/'MMA Rev-Exp Region 2'!$AH$9, 0)","v":{"v":0,"d":"$0.00"}},{"$f":"IFERROR('MMA Rev-Exp Region 2'!$AI$70/'MMA Rev-Exp Region 2'!$AI$9, 0)","v":{"v":0,"d":"$0.00"}},{"$f":"IFERROR('MMA Rev-Exp Region 2'!$AJ$70/'MMA Rev-Exp Region 2'!$AJ$9, 0)","v":{"v":0,"d":"$0.00"}}]
["MMA",null,null,2016,"2016-12-31","Q3","2017-09-30","Region 2","Operating Expense","Medical Benefits Expense","Expanded Benefits","10.1","Expanded Benefits FFS",{"$f":"IFERROR('MMA Rev-Exp Region 2'!$Z$72/'MMA Rev-Exp Region 2'!$Z$9, 0)","v":{"v":0,"d":"$0.00"}},{"$f":"IFERROR('MMA Rev-Exp Region 2'!$AA$72/'MMA Rev-Exp Region 2'!$AA$9, 0)","v":{"v":0,"d":"$0.00"}},{"$f":"IFERROR('MMA Rev-Exp Region 2'!$AB$72/'MMA Rev-Exp Region 2'!$AB$9, 0)","v":{"v":0,"d":"$0.00"}},{"$f":"IFERROR('MMA Rev-Exp Region 2'!$AC$72/'MMA Rev-Exp Region 2'!$AC$9, 0)","v":{"v":0,"d":"$0.00"}},{"$f":"IFERROR('MMA Rev-Exp Region 2'!$AD$72/'MMA Rev-Exp Region 2'!$AD$9, 0)","v":{"v":0,"d":"$0.00"}},{"$f":"IFERROR('MMA Rev-Exp Region 2'!$AE$72/'MMA Rev-Exp Region 2'!$AE$9, 0)","v":{"v":0,"d":"$0.00"}},{"$f":"IFERROR('MMA Rev-Exp Region 2'!$AF$72/'MMA Rev-Exp Region 2'!$AF$9, 0)","v":{"v":0,"d":"$0.00"}},{"$f":"IFERROR('MMA Rev-Exp Region 2'!$AG$72/'MMA Rev-Exp Region 2'!$AG$9, 0)","v":{"v":0,"d":"$0.00"}},{"$f":"IFERROR('MMA Rev-Exp Region 2'!$AH$72/'MMA Rev-Exp Region 2'!$AH$9, 0)","v":{"v":0,"d":"$0.00"}},{"$f":"IFERROR('MMA Rev-Exp Region 2'!$AI$72/'MMA Rev-Exp Region 2'!$AI$9, 0)","v":{"v":0,"d":"$0.00"}},{"$f":"IFERROR('MMA Rev-Exp Region 2'!$AJ$72/'MMA Rev-Exp Region 2'!$AJ$9, 0)","v":{"v":0,"d":"$0.00"}}]
["MMA",null,null,2016,"2016-12-31","Q3","2017-09-30","Region 2","Operating Expense","Medical Benefits Expense","Expanded Benefits","10.2","Expanded benefits Subcapitation",{"$f":"IFERROR('MMA Rev-Exp Region 2'!$Z$73/'MMA Rev-Exp Region 2'!$Z$9, 0)","v":{"v":0,"d":"$0.00"}},{"$f":"IFERROR('MMA Rev-Exp Region 2'!$AA$73/'MMA Rev-Exp Region 2'!$AA$9, 0)","v":{"v":0,"d":"$0.00"}},{"$f":"IFERROR('MMA Rev-Exp Region 2'!$AB$73/'MMA Rev-Exp Region 2'!$AB$9, 0)","v":{"v":0,"d":"$0.00"}},{"$f":"IFERROR('MMA Rev-Exp Region 2'!$AC$73/'MMA Rev-Exp Region 2'!$AC$9, 0)","v":{"v":0,"d":"$0.00"}},{"$f":"IFERROR('MMA Rev-Exp Region 2'!$AD$73/'MMA Rev-Exp Region 2'!$AD$9, 0)","v":{"v":0,"d":"$0.00"}},{"$f":"IFERROR('MMA Rev-Exp Region 2'!$AE$73/'MMA Rev-Exp Region 2'!$AE$9, 0)","v":{"v":0,"d":"$0.00"}},{"$f":"IFERROR('MMA Rev-Exp Region 2'!$AF$73/'MMA Rev-Exp Region 2'!$AF$9, 0)","v":{"v":0,"d":"$0.00"}},{"$f":"IFERROR('MMA Rev-Exp Region 2'!$AG$73/'MMA Rev-Exp Region 2'!$AG$9, 0)","v":{"v":0,"d":"$0.00"}},{"$f":"IFERROR('MMA Rev-Exp Region 2'!$AH$73/'MMA Rev-Exp Region 2'!$AH$9, 0)","v":{"v":0,"d":"$0.00"}},{"$f":"IFERROR('MMA Rev-Exp Region 2'!$AI$73/'MMA Rev-Exp Region 2'!$AI$9, 0)","v":{"v":0,"d":"$0.00"}},{"$f":"IFERROR('MMA Rev-Exp Region 2'!$AJ$73/'MMA Rev-Exp Region 2'!$AJ$9, 0)","v":{"v":0,"d":"$0.00"}}]
["MMA",null,null,2016,"2016-12-31","Q3","2017-09-30","Region 2","Operating Expense","Medical Benefits Expense","Expanded Benefits","10.3","Ending IBNP for Expanded Benefits",{"$f":"IFERROR('MMA Rev-Exp Region 2'!$Z$74/'MMA Rev-Exp Region 2'!$Z$9, 0)","v":{"v":0,"d":"$0.00"}},{"$f":"IFERROR('MMA Rev-Exp Region 2'!$AA$74/'MMA Rev-Exp Region 2'!$AA$9, 0)","v":{"v":0,"d":"$0.00"}},{"$f":"IFERROR('MMA Rev-Exp Region 2'!$AB$74/'MMA Rev-Exp Region 2'!$AB$9, 0)","v":{"v":0,"d":"$0.00"}},{"$f":"IFERROR('MMA Rev-Exp Region 2'!$AC$74/'MMA Rev-Exp Region 2'!$AC$9, 0)","v":{"v":0,"d":"$0.00"}},{"$f":"IFERROR('MMA Rev-Exp Region 2'!$AD$74/'MMA Rev-Exp Region 2'!$AD$9, 0)","v":{"v":0,"d":"$0.00"}},{"$f":"IFERROR('MMA Rev-Exp Region 2'!$AE$74/'MMA Rev-Exp Region 2'!$AE$9, 0)","v":{"v":0,"d":"$0.00"}},{"$f":"IFERROR('MMA Rev-Exp Region 2'!$AF$74/'MMA Rev-Exp Region 2'!$AF$9, 0)","v":{"v":0,"d":"$0.00"}},{"$f":"IFERROR('MMA Rev-Exp Region 2'!$AG$74/'MMA Rev-Exp Region 2'!$AG$9, 0)","v":{"v":0,"d":"$0.00"}},{"$f":"IFERROR('MMA Rev-Exp Region 2'!$AH$74/'MMA Rev-Exp Region 2'!$AH$9, 0)","v":{"v":0,"d":"$0.00"}},{"$f":"IFERROR('MMA Rev-Exp Region 2'!$AI$74/'MMA Rev-Exp Region 2'!$AI$9, 0)","v":{"v":0,"d":"$0.00"}},{"$f":"IFERROR('MMA Rev-Exp Region 2'!$AJ$74/'MMA Rev-Exp Region 2'!$AJ$9, 0)","v":{"v":0,"d":"$0.00"}}]
["MMA",null,null,2016,"2016-12-31","Q3","2017-09-30","Region 2","Operating Expense","Medical Benefits Expense","Expanded Benefits","10.4","Expanded Benefits Settlements",{"$f":"IFERROR('MMA Rev-Exp Region 2'!$Z$75/'MMA Rev-Exp Region 2'!$Z$9, 0)","v":{"v":0,"d":"$0.00"}},{"$f":"IFERROR('MMA Rev-Exp Region 2'!$AA$75/'MMA Rev-Exp Region 2'!$AA$9, 0)","v":{"v":0,"d":"$0.00"}},{"$f":"IFERROR('MMA Rev-Exp Region 2'!$AB$75/'MMA Rev-Exp Region 2'!$AB$9, 0)","v":{"v":0,"d":"$0.00"}},{"$f":"IFERROR('MMA Rev-Exp Region 2'!$AC$75/'MMA Rev-Exp Region 2'!$AC$9, 0)","v":{"v":0,"d":"$0.00"}},{"$f":"IFERROR('MMA Rev-Exp Region 2'!$AD$75/'MMA Rev-Exp Region 2'!$AD$9, 0)","v":{"v":0,"d":"$0.00"}},{"$f":"IFERROR('MMA Rev-Exp Region 2'!$AE$75/'MMA Rev-Exp Region 2'!$AE$9, 0)","v":{"v":0,"d":"$0.00"}},{"$f":"IFERROR('MMA Rev-Exp Region 2'!$AF$75/'MMA Rev-Exp Region 2'!$AF$9, 0)","v":{"v":0,"d":"$0.00"}},{"$f":"IFERROR('MMA Rev-Exp Region 2'!$AG$75/'MMA Rev-Exp Region 2'!$AG$9, 0)","v":{"v":0,"d":"$0.00"}},{"$f":"IFERROR('MMA Rev-Exp Region 2'!$AH$75/'MMA Rev-Exp Region 2'!$AH$9, 0)","v":{"v":0,"d":"$0.00"}},{"$f":"IFERROR('MMA Rev-Exp Region 2'!$AI$75/'MMA Rev-Exp Region 2'!$AI$9, 0)","v":{"v":0,"d":"$0.00"}},{"$f":"IFERROR('MMA Rev-Exp Region 2'!$AJ$75/'MMA Rev-Exp Region 2'!$AJ$9, 0)","v":{"v":0,"d":"$0.00"}}]
["MMA",null,null,2016,"2016-12-31","Q3","2017-09-30","Region 2","Operating Expense","Medical Benefits Expense","Other Medical","11.5","TPL & Fraud/Abuse Recoveries",{"$f":"IFERROR('MMA Rev-Exp Region 2'!$Z$81/'MMA Rev-Exp Region 2'!$Z$9, 0)","v":{"v":0,"d":"$0.00"}},{"$f":"IFERROR('MMA Rev-Exp Region 2'!$AA$81/'MMA Rev-Exp Region 2'!$AA$9, 0)","v":{"v":0,"d":"$0.00"}},{"$f":"IFERROR('MMA Rev-Exp Region 2'!$AB$81/'MMA Rev-Exp Region 2'!$AB$9, 0)","v":{"v":0,"d":"$0.00"}},{"$f":"IFERROR('MMA Rev-Exp Region 2'!$AC$81/'MMA Rev-Exp Region 2'!$AC$9, 0)","v":{"v":0,"d":"$0.00"}},{"$f":"IFERROR('MMA Rev-Exp Region 2'!$AD$81/'MMA Rev-Exp Region 2'!$AD$9, 0)","v":{"v":0,"d":"$0.00"}},{"$f":"IFERROR('MMA Rev-Exp Region 2'!$AE$81/'MMA Rev-Exp Region 2'!$AE$9, 0)","v":{"v":0,"d":"$0.00"}},{"$f":"IFERROR('MMA Rev-Exp Region 2'!$AF$81/'MMA Rev-Exp Region 2'!$AF$9, 0)","v":{"v":0,"d":"$0.00"}},{"$f":"IFERROR('MMA Rev-Exp Region 2'!$AG$81/'MMA Rev-Exp Region 2'!$AG$9, 0)","v":{"v":0,"d":"$0.00"}},{"$f":"IFERROR('MMA Rev-Exp Region 2'!$AH$81/'MMA Rev-Exp Region 2'!$AH$9, 0)","v":{"v":0,"d":"$0.00"}},{"$f":"IFERROR('MMA Rev-Exp Region 2'!$AI$81/'MMA Rev-Exp Region 2'!$AI$9, 0)","v":{"v":0,"d":"$0.00"}},{"$f":"IFERROR('MMA Rev-Exp Region 2'!$AJ$81/'MMA Rev-Exp Region 2'!$AJ$9, 0)","v":{"v":0,"d":"$0.00"}}]
["MMA",null,null,2016,"2016-12-31","Q3","2017-09-30","Region 2","Operating Expense","Medical Benefits Expense","Other Medical","11.6.1","Premium Deficiency Reserve",{"$f":"IFERROR('MMA Rev-Exp Region 2'!$Z$82/'MMA Rev-Exp Region 2'!$Z$9, 0)","v":{"v":0,"d":"$0.00"}},{"$f":"IFERROR('MMA Rev-Exp Region 2'!$AA$82/'MMA Rev-Exp Region 2'!$AA$9, 0)","v":{"v":0,"d":"$0.00"}},{"$f":"IFERROR('MMA Rev-Exp Region 2'!$AB$82/'MMA Rev-Exp Region 2'!$AB$9, 0)","v":{"v":0,"d":"$0.00"}},{"$f":"IFERROR('MMA Rev-Exp Region 2'!$AC$82/'MMA Rev-Exp Region 2'!$AC$9, 0)","v":{"v":0,"d":"$0.00"}},{"$f":"IFERROR('MMA Rev-Exp Region 2'!$AD$82/'MMA Rev-Exp Region 2'!$AD$9, 0)","v":{"v":0,"d":"$0.00"}},{"$f":"IFERROR('MMA Rev-Exp Region 2'!$AE$82/'MMA Rev-Exp Region 2'!$AE$9, 0)","v":{"v":0,"d":"$0.00"}},{"$f":"IFERROR('MMA Rev-Exp Region 2'!$AF$82/'MMA Rev-Exp Region 2'!$AF$9, 0)","v":{"v":0,"d":"$0.00"}},{"$f":"IFERROR('MMA Rev-Exp Region 2'!$AG$82/'MMA Rev-Exp Region 2'!$AG$9, 0)","v":{"v":0,"d":"$0.00"}},{"$f":"IFERROR('MMA Rev-Exp Region 2'!$AH$82/'MMA Rev-Exp Region 2'!$AH$9, 0)","v":{"v":0,"d":"$0.00"}},{"$f":"IFERROR('MMA Rev-Exp Region 2'!$AI$82/'MMA Rev-Exp Region 2'!$AI$9, 0)","v":{"v":0,"d":"$0.00"}},{"$f":"IFERROR('MMA Rev-Exp Region 2'!$AJ$82/'MMA Rev-Exp Region 2'!$AJ$9, 0)","v":{"v":0,"d":"$0.00"}}]
["MMA",null,null,2016,"2016-12-31","Q3","2017-09-30","Region 2","Operating Expense","Medical Benefits Expense","Other Medical","11.8","Reinsurance Premiums",{"$f":"IFERROR('MMA Rev-Exp Region 2'!$Z$84/'MMA Rev-Exp Region 2'!$Z$9, 0)","v":{"v":0,"d":"$0.00"}},{"$f":"IFERROR('MMA Rev-Exp Region 2'!$AA$84/'MMA Rev-Exp Region 2'!$AA$9, 0)","v":{"v":0,"d":"$0.00"}},{"$f":"IFERROR('MMA Rev-Exp Region 2'!$AB$84/'MMA Rev-Exp Region 2'!$AB$9, 0)","v":{"v":0,"d":"$0.00"}},{"$f":"IFERROR('MMA Rev-Exp Region 2'!$AC$84/'MMA Rev-Exp Region 2'!$AC$9, 0)","v":{"v":0,"d":"$0.00"}},{"$f":"IFERROR('MMA Rev-Exp Region 2'!$AD$84/'MMA Rev-Exp Region 2'!$AD$9, 0)","v":{"v":0,"d":"$0.00"}},{"$f":"IFERROR('MMA Rev-Exp Region 2'!$AE$84/'MMA Rev-Exp Region 2'!$AE$9, 0)","v":{"v":0,"d":"$0.00"}},{"$f":"IFERROR('MMA Rev-Exp Region 2'!$AF$84/'MMA Rev-Exp Region 2'!$AF$9, 0)","v":{"v":0,"d":"$0.00"}},{"$f":"IFERROR('MMA Rev-Exp Region 2'!$AG$84/'MMA Rev-Exp Region 2'!$AG$9, 0)","v":{"v":0,"d":"$0.00"}},{"$f":"IFERROR('MMA Rev-Exp Region 2'!$AH$84/'MMA Rev-Exp Region 2'!$AH$9, 0)","v":{"v":0,"d":"$0.00"}},{"$f":"IFERROR('MMA Rev-Exp Region 2'!$AI$84/'MMA Rev-Exp Region 2'!$AI$9, 0)","v":{"v":0,"d":"$0.00"}},{"$f":"IFERROR('MMA Rev-Exp Region 2'!$AJ$84/'MMA Rev-Exp Region 2'!$AJ$9, 0)","v":{"v":0,"d":"$0.00"}}]
["MMA",null,null,2016,"2016-12-31","Q3","2017-09-30","Region 2","Operating Expense","Medical Benefits Expense","Other Medical","11.9","Reinsurance Recoveries",{"$f":"IFERROR('MMA Rev-Exp Region 2'!$Z$85/'MMA Rev-Exp Region 2'!$Z$9, 0)","v":{"v":0,"d":"$0.00"}},{"$f":"IFERROR('MMA Rev-Exp Region 2'!$AA$85/'MMA Rev-Exp Region 2'!$AA$9, 0)","v":{"v":0,"d":"$0.00"}},{"$f":"IFERROR('MMA Rev-Exp Region 2'!$AB$85/'MMA Rev-Exp Region 2'!$AB$9, 0)","v":{"v":0,"d":"$0.00"}},{"$f":"IFERROR('MMA Rev-Exp Region 2'!$AC$85/'MMA Rev-Exp Region 2'!$AC$9, 0)","v":{"v":0,"d":"$0.00"}},{"$f":"IFERROR('MMA Rev-Exp Region 2'!$AD$85/'MMA Rev-Exp Region 2'!$AD$9, 0)","v":{"v":0,"d":"$0.00"}},{"$f":"IFERROR('MMA Rev-Exp Region 2'!$AE$85/'MMA Rev-Exp Region 2'!$AE$9, 0)","v":{"v":0,"d":"$0.00"}},{"$f":"IFERROR('MMA Rev-Exp Region 2'!$AF$85/'MMA Rev-Exp Region 2'!$AF$9, 0)","v":{"v":0,"d":"$0.00"}},{"$f":"IFERROR('MMA Rev-Exp Region 2'!$AG$85/'MMA Rev-Exp Region 2'!$AG$9, 0)","v":{"v":0,"d":"$0.00"}},{"$f":"IFERROR('MMA Rev-Exp Region 2'!$AH$85/'MMA Rev-Exp Region 2'!$AH$9, 0)","v":{"v":0,"d":"$0.00"}},{"$f":"IFERROR('MMA Rev-Exp Region 2'!$AI$85/'MMA Rev-Exp Region 2'!$AI$9, 0)","v":{"v":0,"d":"$0.00"}},{"$f":"IFERROR('MMA Rev-Exp Region 2'!$AJ$85/'MMA Rev-Exp Region 2'!$AJ$9, 0)","v":{"v":0,"d":"$0.00"}}]
["MMA",null,null,2016,"2016-12-31","Q3","2017-09-30","Region 2","Operating Expense","Administrative Expense","Administrative","12.1","Salaries & Benefits",{"$f":"IFERROR('MMA Rev-Exp Region 2'!$Z$90/'MMA Rev-Exp Region 2'!$Z$9, 0)","v":{"v":0,"d":"$0.00"}},{"$f":"IFERROR('MMA Rev-Exp Region 2'!$AA$90/'MMA Rev-Exp Region 2'!$Z$9, 0)","v":{"v":0,"d":"$0.00"}},{"$f":"IFERROR('MMA Rev-Exp Region 2'!$AB$90/'MMA Rev-Exp Region 2'!$Z$9, 0)","v":{"v":0,"d":"$0.00"}}]
["MMA",null,null,2016,"2016-12-31","Q3","2017-09-30","Region 2","Operating Expense","Administrative Expense","Administrative","12.2","Administrative Services",{"$f":"IFERROR('MMA Rev-Exp Region 2'!$Z$91/'MMA Rev-Exp Region 2'!$Z$9, 0)","v":{"v":0,"d":"$0.00"}},{"$f":"IFERROR('MMA Rev-Exp Region 2'!$AA$91/'MMA Rev-Exp Region 2'!$Z$9, 0)","v":{"v":0,"d":"$0.00"}},{"$f":"IFERROR('MMA Rev-Exp Region 2'!$AB$91/'MMA Rev-Exp Region 2'!$Z$9, 0)","v":{"v":0,"d":"$0.00"}}]
["MMA",null,null,2016,"2016-12-31","Q3","2017-09-30","Region 2","Operating Expense","Administrative Expense","Administrative","12.3","Information Systems",{"$f":"IFERROR('MMA Rev-Exp Region 2'!$Z$92/'MMA Rev-Exp Region 2'!$Z$9, 0)","v":{"v":0,"d":"$0.00"}},{"$f":"IFERROR('MMA Rev-Exp Region 2'!$AA$92/'MMA Rev-Exp Region 2'!$Z$9, 0)","v":{"v":0,"d":"$0.00"}},{"$f":"IFERROR('MMA Rev-Exp Region 2'!$AB$92/'MMA Rev-Exp Region 2'!$Z$9, 0)","v":{"v":0,"d":"$0.00"}}]
["MMA",null,null,2016,"2016-12-31","Q3","2017-09-30","Region 2","Operating Expense","Administrative Expense","Administrative","12.4","Marketing Expenses",{"$f":"IFERROR('MMA Rev-Exp Region 2'!$Z$93/'MMA Rev-Exp Region 2'!$Z$9, 0)","v":{"v":0,"d":"$0.00"}},{"$f":"IFERROR('MMA Rev-Exp Region 2'!$AA$93/'MMA Rev-Exp Region 2'!$Z$9, 0)","v":{"v":0,"d":"$0.00"}},{"$f":"IFERROR('MMA Rev-Exp Region 2'!$AB$93/'MMA Rev-Exp Region 2'!$Z$9, 0)","v":{"v":0,"d":"$0.00"}}]
["MMA",null,null,2016,"2016-12-31","Q3","2017-09-30","Region 2","Operating Expense","Administrative Expense","Administrative","12.5","General  Administration",{"$f":"IFERROR('MMA Rev-Exp Region 2'!$Z$94/'MMA Rev-Exp Region 2'!$Z$9, 0)","v":{"v":0,"d":"$0.00"}},{"$f":"IFERROR('MMA Rev-Exp Region 2'!$AA$94/'MMA Rev-Exp Region 2'!$Z$9, 0)","v":{"v":0,"d":"$0.00"}},{"$f":"IFERROR('MMA Rev-Exp Region 2'!$AB$94/'MMA Rev-Exp Region 2'!$Z$9, 0)","v":{"v":0,"d":"$0.00"}}]
["MMA",null,null,2016,"2016-12-31","Q3","2017-09-30","Region 2","Operating Expense","Administrative Expense","Administrative","12.6","Compliance/Regulatory",{"$f":"IFERROR('MMA Rev-Exp Region 2'!$Z$95/'MMA Rev-Exp Region 2'!$Z$9, 0)","v":{"v":0,"d":"$0.00"}},{"$f":"IFERROR('MMA Rev-Exp Region 2'!$AA$95/'MMA Rev-Exp Region 2'!$Z$9, 0)","v":{"v":0,"d":"$0.00"}},{"$f":"IFERROR('MMA Rev-Exp Region 2'!$AB$95/'MMA Rev-Exp Region 2'!$Z$9, 0)","v":{"v":0,"d":"$0.00"}}]
["MMA",null,null,2016,"2016-12-31","Q3","2017-09-30","Region 2","Operating Expense","Taxes & Fees","Taxes & Fees","13.1","State Premium tax",{"$f":"IFERROR('MMA Rev-Exp Region 2'!$Z$97/'MMA Rev-Exp Region 2'!$Z$9, 0)","v":{"v":0,"d":"$0.00"}}]
["MMA",null,null,2016,"2016-12-31","Q3","2017-09-30","Region 2","Operating Expense","Taxes & Fees","Taxes & Fees","13.2","Department of Insurance Assessments",{"$f":"IFERROR('MMA Rev-Exp Region 2'!$Z$98/'MMA Rev-Exp Region 2'!$Z$9, 0)","v":{"v":0,"d":"$0.00"}}]
["MMA",null,null,2016,"2016-12-31","Q3","2017-09-30","Region 2","Operating Expense","Taxes & Fees","Taxes & Fees","13.3","Section 9010 Health Insurance Providers Fee",{"$f":"IFERROR('MMA Rev-Exp Region 2'!$Z$99/'MMA Rev-Exp Region 2'!$Z$9, 0)","v":{"v":0,"d":"$0.00"}}]
["MMA",null,null,2016,"2016-12-31","Q3","2017-09-30","Region 2","Non-Operating Expense","Income Tax Expense","Income Tax Expense","16.0","Income Tax Expense",{"$f":"IFERROR('MMA Rev-Exp Region 2'!$Z$106/'MMA Rev-Exp Region 2'!$Z$9, 0)","v":{"v":0,"d":"$0.00"}}]
["MMA",null,null,2016,"2016-12-31","Q4","2017-12-31","Region 2","Operating Revenue","Capitation","Capitation",1.1,"Capitation",{"$f":"IFERROR('MMA Rev-Exp Region 2'!$AK$11/'MMA Rev-Exp Region 2'!$AK$9, 0)","v":{"v":0,"d":"$0.00"}},{"$f":"IFERROR('MMA Rev-Exp Region 2'!$AL$11/'MMA Rev-Exp Region 2'!$AL$9, 0)","v":{"v":0,"d":"$0.00"}},{"$f":"IFERROR('MMA Rev-Exp Region 2'!$AM$11/'MMA Rev-Exp Region 2'!$AM$9, 0)","v":{"v":0,"d":"$0.00"}},{"$f":"IFERROR('MMA Rev-Exp Region 2'!$AN$11/'MMA Rev-Exp Region 2'!$AN$9, 0)","v":{"v":0,"d":"$0.00"}},{"$f":"IFERROR('MMA Rev-Exp Region 2'!$AO$11/'MMA Rev-Exp Region 2'!$AO$9, 0)","v":{"v":0,"d":"$0.00"}},{"$f":"IFERROR('MMA Rev-Exp Region 2'!$AP$11/'MMA Rev-Exp Region 2'!$AP$9, 0)","v":{"v":0,"d":"$0.00"}},{"$f":"IFERROR('MMA Rev-Exp Region 2'!$AQ$11/'MMA Rev-Exp Region 2'!$AQ$9, 0)","v":{"v":0,"d":"$0.00"}},{"$f":"IFERROR('MMA Rev-Exp Region 2'!$AR$11/'MMA Rev-Exp Region 2'!$AR$9, 0)","v":{"v":0,"d":"$0.00"}},{"$f":"IFERROR('MMA Rev-Exp Region 2'!$AS$11/'MMA Rev-Exp Region 2'!$AS$9, 0)","v":{"v":0,"d":"$0.00"}},{"$f":"IFERROR('MMA Rev-Exp Region 2'!$AT$11/'MMA Rev-Exp Region 2'!$AT$9, 0)","v":{"v":0,"d":"$0.00"}},{"$f":"IFERROR('MMA Rev-Exp Region 2'!$AU$11/'MMA Rev-Exp Region 2'!$AU$9, 0)","v":{"v":0,"d":"$0.00"}}]
["MMA",null,null,2016,"2016-12-31","Q4","2017-12-31","Region 2","Operating Revenue","Kick Payments","Kick Payments - Transplant",1.2,"Transplant Kick Payments",{"$f":"IFERROR('MMA Rev-Exp Region 2'!$AK$12/'MMA Rev-Exp Region 2'!$AK$9, 0)","v":{"v":0,"d":"$0.00"}},{"$f":"IFERROR('MMA Rev-Exp Region 2'!$AL$12/'MMA Rev-Exp Region 2'!$AL$9, 0)","v":{"v":0,"d":"$0.00"}},{"$f":"IFERROR('MMA Rev-Exp Region 2'!$AM$12/'MMA Rev-Exp Region 2'!$AM$9, 0)","v":{"v":0,"d":"$0.00"}},{"$f":"IFERROR('MMA Rev-Exp Region 2'!$AN$12/'MMA Rev-Exp Region 2'!$AN$9, 0)","v":{"v":0,"d":"$0.00"}},{"$f":"IFERROR('MMA Rev-Exp Region 2'!$AO$12/'MMA Rev-Exp Region 2'!$AO$9, 0)","v":{"v":0,"d":"$0.00"}},{"$f":"IFERROR('MMA Rev-Exp Region 2'!$AP$12/'MMA Rev-Exp Region 2'!$AP$9, 0)","v":{"v":0,"d":"$0.00"}},{"$f":"IFERROR('MMA Rev-Exp Region 2'!$AQ$12/'MMA Rev-Exp Region 2'!$AQ$9, 0)","v":{"v":0,"d":"$0.00"}},{"$f":"IFERROR('MMA Rev-Exp Region 2'!$AR$12/'MMA Rev-Exp Region 2'!$AR$9, 0)","v":{"v":0,"d":"$0.00"}},{"$f":"IFERROR('MMA Rev-Exp Region 2'!$AS$12/'MMA Rev-Exp Region 2'!$AS$9, 0)","v":{"v":0,"d":"$0.00"}},{"$f":"IFERROR('MMA Rev-Exp Region 2'!$AT$12/'MMA Rev-Exp Region 2'!$AT$9, 0)","v":{"v":0,"d":"$0.00"}},{"$f":"IFERROR('MMA Rev-Exp Region 2'!$AU$12/'MMA Rev-Exp Region 2'!$AU$9, 0)","v":{"v":0,"d":"$0.00"}}]
["MMA",null,null,2016,"2016-12-31","Q4","2017-12-31","Region 2","Operating Revenue","Kick Payments","Kick Payments - Hep C","1.3","Hepatitis C Kick Payments",{"$f":"IFERROR('MMA Rev-Exp Region 2'!$AK$13/'MMA Rev-Exp Region 2'!$AK$9, 0)","v":{"v":0,"d":"$0.00"}},{"$f":"IFERROR('MMA Rev-Exp Region 2'!$AL$13/'MMA Rev-Exp Region 2'!$AL$9, 0)","v":{"v":0,"d":"$0.00"}},{"$f":"IFERROR('MMA Rev-Exp Region 2'!$AM$13/'MMA Rev-Exp Region 2'!$AM$9, 0)","v":{"v":0,"d":"$0.00"}},{"$f":"IFERROR('MMA Rev-Exp Region 2'!$AN$13/'MMA Rev-Exp Region 2'!$AN$9, 0)","v":{"v":0,"d":"$0.00"}},{"$f":"IFERROR('MMA Rev-Exp Region 2'!$AO$13/'MMA Rev-Exp Region 2'!$AO$9, 0)","v":{"v":0,"d":"$0.00"}},{"$f":"IFERROR('MMA Rev-Exp Region 2'!$AP$13/'MMA Rev-Exp Region 2'!$AP$9, 0)","v":{"v":0,"d":"$0.00"}},{"$f":"IFERROR('MMA Rev-Exp Region 2'!$AQ$13/'MMA Rev-Exp Region 2'!$AQ$9, 0)","v":{"v":0,"d":"$0.00"}},{"$f":"IFERROR('MMA Rev-Exp Region 2'!$AR$13/'MMA Rev-Exp Region 2'!$AR$9, 0)","v":{"v":0,"d":"$0.00"}},{"$f":"IFERROR('MMA Rev-Exp Region 2'!$AS$13/'MMA Rev-Exp Region 2'!$AS$9, 0)","v":{"v":0,"d":"$0.00"}},{"$f":"IFERROR('MMA Rev-Exp Region 2'!$AT$13/'MMA Rev-Exp Region 2'!$AT$9, 0)","v":{"v":0,"d":"$0.00"}},{"$f":"IFERROR('MMA Rev-Exp Region 2'!$AU$13/'MMA Rev-Exp Region 2'!$AU$9, 0)","v":{"v":0,"d":"$0.00"}}]
["MMA",null,null,2016,"2016-12-31","Q4","2017-12-31","Region 2","Operating Revenue","Kick Payments","Kick Payments - Maternity","1.4.1","Maternity Kick Payments",{"$f":"IFERROR('MMA Rev-Exp Region 2'!$AK$14/'MMA Rev-Exp Region 2'!$AK$9, 0)","v":{"v":0,"d":"$0.00"}},{"$f":"IFERROR('MMA Rev-Exp Region 2'!$AL$14/'MMA Rev-Exp Region 2'!$AL$9, 0)","v":{"v":0,"d":"$0.00"}},{"$f":"IFERROR('MMA Rev-Exp Region 2'!$AM$14/'MMA Rev-Exp Region 2'!$AM$9, 0)","v":{"v":0,"d":"$0.00"}},{"$f":"IFERROR('MMA Rev-Exp Region 2'!$AN$14/'MMA Rev-Exp Region 2'!$AN$9, 0)","v":{"v":0,"d":"$0.00"}},{"$f":"IFERROR('MMA Rev-Exp Region 2'!$AO$14/'MMA Rev-Exp Region 2'!$AO$9, 0)","v":{"v":0,"d":"$0.00"}},{"$f":"IFERROR('MMA Rev-Exp Region 2'!$AP$14/'MMA Rev-Exp Region 2'!$AP$9, 0)","v":{"v":0,"d":"$0.00"}},{"$f":"IFERROR('MMA Rev-Exp Region 2'!$AQ$14/'MMA Rev-Exp Region 2'!$AQ$9, 0)","v":{"v":0,"d":"$0.00"}},{"$f":"IFERROR('MMA Rev-Exp Region 2'!$AR$14/'MMA Rev-Exp Region 2'!$AR$9, 0)","v":{"v":0,"d":"$0.00"}},{"$f":"IFERROR('MMA Rev-Exp Region 2'!$AS$14/'MMA Rev-Exp Region 2'!$AS$9, 0)","v":{"v":0,"d":"$0.00"}},{"$f":"IFERROR('MMA Rev-Exp Region 2'!$AT$14/'MMA Rev-Exp Region 2'!$AT$9, 0)","v":{"v":0,"d":"$0.00"}},{"$f":"IFERROR('MMA Rev-Exp Region 2'!$AU$14/'MMA Rev-Exp Region 2'!$AU$9, 0)","v":{"v":0,"d":"$0.00"}}]
["MMA",null,null,2016,"2016-12-31","Q4","2017-12-31","Region 2","Operating Revenue","Other Revenue","Other Revenue - 9010","1.5","ACA § 9010 related payments",{"$f":"IFERROR('MMA Rev-Exp Region 2'!$AK$15/'MMA Rev-Exp Region 2'!$AK$9, 0)","v":{"v":0,"d":"$0.00"}},{"$f":"IFERROR('MMA Rev-Exp Region 2'!$AL$15/'MMA Rev-Exp Region 2'!$AL$9, 0)","v":{"v":0,"d":"$0.00"}},{"$f":"IFERROR('MMA Rev-Exp Region 2'!$AM$15/'MMA Rev-Exp Region 2'!$AM$9, 0)","v":{"v":0,"d":"$0.00"}},{"$f":"IFERROR('MMA Rev-Exp Region 2'!$AN$15/'MMA Rev-Exp Region 2'!$AN$9, 0)","v":{"v":0,"d":"$0.00"}},{"$f":"IFERROR('MMA Rev-Exp Region 2'!$AO$15/'MMA Rev-Exp Region 2'!$AO$9, 0)","v":{"v":0,"d":"$0.00"}},{"$f":"IFERROR('MMA Rev-Exp Region 2'!$AP$15/'MMA Rev-Exp Region 2'!$AP$9, 0)","v":{"v":0,"d":"$0.00"}},{"$f":"IFERROR('MMA Rev-Exp Region 2'!$AQ$15/'MMA Rev-Exp Region 2'!$AQ$9, 0)","v":{"v":0,"d":"$0.00"}},{"$f":"IFERROR('MMA Rev-Exp Region 2'!$AR$15/'MMA Rev-Exp Region 2'!$AR$9, 0)","v":{"v":0,"d":"$0.00"}},{"$f":"IFERROR('MMA Rev-Exp Region 2'!$AS$15/'MMA Rev-Exp Region 2'!$AS$9, 0)","v":{"v":0,"d":"$0.00"}},{"$f":"IFERROR('MMA Rev-Exp Region 2'!$AT$15/'MMA Rev-Exp Region 2'!$AT$9, 0)","v":{"v":0,"d":"$0.00"}},{"$f":"IFERROR('MMA Rev-Exp Region 2'!$AU$15/'MMA Rev-Exp Region 2'!$AU$9, 0)","v":{"v":0,"d":"$0.00"}}]
["MMA",null,null,2016,"2016-12-31","Q4","2017-12-31","Region 2","Operating Revenue","Other Revenue","Other Revenue","1.6","Other Revenue",{"$f":"IFERROR('MMA Rev-Exp Region 2'!$AK$16/'MMA Rev-Exp Region 2'!$AK$9, 0)","v":{"v":0,"d":"$0.00"}},{"$f":"IFERROR('MMA Rev-Exp Region 2'!$AL$16/'MMA Rev-Exp Region 2'!$AL$9, 0)","v":{"v":0,"d":"$0.00"}},{"$f":"IFERROR('MMA Rev-Exp Region 2'!$AM$16/'MMA Rev-Exp Region 2'!$AM$9, 0)","v":{"v":0,"d":"$0.00"}},{"$f":"IFERROR('MMA Rev-Exp Region 2'!$AN$16/'MMA Rev-Exp Region 2'!$AN$9, 0)","v":{"v":0,"d":"$0.00"}},{"$f":"IFERROR('MMA Rev-Exp Region 2'!$AO$16/'MMA Rev-Exp Region 2'!$AO$9, 0)","v":{"v":0,"d":"$0.00"}},{"$f":"IFERROR('MMA Rev-Exp Region 2'!$AP$16/'MMA Rev-Exp Region 2'!$AP$9, 0)","v":{"v":0,"d":"$0.00"}},{"$f":"IFERROR('MMA Rev-Exp Region 2'!$AQ$16/'MMA Rev-Exp Region 2'!$AQ$9, 0)","v":{"v":0,"d":"$0.00"}},{"$f":"IFERROR('MMA Rev-Exp Region 2'!$AR$16/'MMA Rev-Exp Region 2'!$AR$9, 0)","v":{"v":0,"d":"$0.00"}},{"$f":"IFERROR('MMA Rev-Exp Region 2'!$AS$16/'MMA Rev-Exp Region 2'!$AS$9, 0)","v":{"v":0,"d":"$0.00"}},{"$f":"IFERROR('MMA Rev-Exp Region 2'!$AT$16/'MMA Rev-Exp Region 2'!$AT$9, 0)","v":{"v":0,"d":"$0.00"}},{"$f":"IFERROR('MMA Rev-Exp Region 2'!$AU$16/'MMA Rev-Exp Region 2'!$AU$9, 0)","v":{"v":0,"d":"$0.00"}}]
["MMA",null,null,2016,"2016-12-31","Q4","2017-12-31","Region 2","Operating Expense","Medical Benefits Expense","Hospital Services",2.1,"Inpatient FFS",{"$f":"IFERROR('MMA Rev-Exp Region 2'!$AK$20/'MMA Rev-Exp Region 2'!$AK$9, 0)","v":{"v":0,"d":"$0.00"}},{"$f":"IFERROR('MMA Rev-Exp Region 2'!$AL$20/'MMA Rev-Exp Region 2'!$AL$9, 0)","v":{"v":0,"d":"$0.00"}},{"$f":"IFERROR('MMA Rev-Exp Region 2'!$AM$20/'MMA Rev-Exp Region 2'!$AM$9, 0)","v":{"v":0,"d":"$0.00"}},{"$f":"IFERROR('MMA Rev-Exp Region 2'!$AN$20/'MMA Rev-Exp Region 2'!$AN$9, 0)","v":{"v":0,"d":"$0.00"}},{"$f":"IFERROR('MMA Rev-Exp Region 2'!$AO$20/'MMA Rev-Exp Region 2'!$AO$9, 0)","v":{"v":0,"d":"$0.00"}},{"$f":"IFERROR('MMA Rev-Exp Region 2'!$AP$20/'MMA Rev-Exp Region 2'!$AP$9, 0)","v":{"v":0,"d":"$0.00"}},{"$f":"IFERROR('MMA Rev-Exp Region 2'!$AQ$20/'MMA Rev-Exp Region 2'!$AQ$9, 0)","v":{"v":0,"d":"$0.00"}},{"$f":"IFERROR('MMA Rev-Exp Region 2'!$AR$20/'MMA Rev-Exp Region 2'!$AR$9, 0)","v":{"v":0,"d":"$0.00"}},{"$f":"IFERROR('MMA Rev-Exp Region 2'!$AS$20/'MMA Rev-Exp Region 2'!$AS$9, 0)","v":{"v":0,"d":"$0.00"}},{"$f":"IFERROR('MMA Rev-Exp Region 2'!$AT$20/'MMA Rev-Exp Region 2'!$AT$9, 0)","v":{"v":0,"d":"$0.00"}},{"$f":"IFERROR('MMA Rev-Exp Region 2'!$AU$20/'MMA Rev-Exp Region 2'!$AU$9, 0)","v":{"v":0,"d":"$0.00"}}]
["MMA",null,null,2016,"2016-12-31","Q4","2017-12-31","Region 2","Operating Expense","Medical Benefits Expense","Hospital Services",2.2,"Ending IBNP for Inpatient Hospital Services",{"$f":"IFERROR('MMA Rev-Exp Region 2'!$AK$21/'MMA Rev-Exp Region 2'!$AK$9, 0)","v":{"v":0,"d":"$0.00"}},{"$f":"IFERROR('MMA Rev-Exp Region 2'!$AL$21/'MMA Rev-Exp Region 2'!$AL$9, 0)","v":{"v":0,"d":"$0.00"}},{"$f":"IFERROR('MMA Rev-Exp Region 2'!$AM$21/'MMA Rev-Exp Region 2'!$AM$9, 0)","v":{"v":0,"d":"$0.00"}},{"$f":"IFERROR('MMA Rev-Exp Region 2'!$AN$21/'MMA Rev-Exp Region 2'!$AN$9, 0)","v":{"v":0,"d":"$0.00"}},{"$f":"IFERROR('MMA Rev-Exp Region 2'!$AO$21/'MMA Rev-Exp Region 2'!$AO$9, 0)","v":{"v":0,"d":"$0.00"}},{"$f":"IFERROR('MMA Rev-Exp Region 2'!$AP$21/'MMA Rev-Exp Region 2'!$AP$9, 0)","v":{"v":0,"d":"$0.00"}},{"$f":"IFERROR('MMA Rev-Exp Region 2'!$AQ$21/'MMA Rev-Exp Region 2'!$AQ$9, 0)","v":{"v":0,"d":"$0.00"}},{"$f":"IFERROR('MMA Rev-Exp Region 2'!$AR$21/'MMA Rev-Exp Region 2'!$AR$9, 0)","v":{"v":0,"d":"$0.00"}},{"$f":"IFERROR('MMA Rev-Exp Region 2'!$AS$21/'MMA Rev-Exp Region 2'!$AS$9, 0)","v":{"v":0,"d":"$0.00"}},{"$f":"IFERROR('MMA Rev-Exp Region 2'!$AT$21/'MMA Rev-Exp Region 2'!$AT$9, 0)","v":{"v":0,"d":"$0.00"}},{"$f":"IFERROR('MMA Rev-Exp Region 2'!$AU$21/'MMA Rev-Exp Region 2'!$AU$9, 0)","v":{"v":0,"d":"$0.00"}}]
["MMA",null,null,2016,"2016-12-31","Q4","2017-12-31","Region 2","Operating Expense","Medical Benefits Expense","Hospital Services",2.3,"Outpatient FFS: ER",{"$f":"IFERROR('MMA Rev-Exp Region 2'!$AK$22/'MMA Rev-Exp Region 2'!$AK$9, 0)","v":{"v":0,"d":"$0.00"}},{"$f":"IFERROR('MMA Rev-Exp Region 2'!$AL$22/'MMA Rev-Exp Region 2'!$AL$9, 0)","v":{"v":0,"d":"$0.00"}},{"$f":"IFERROR('MMA Rev-Exp Region 2'!$AM$22/'MMA Rev-Exp Region 2'!$AM$9, 0)","v":{"v":0,"d":"$0.00"}},{"$f":"IFERROR('MMA Rev-Exp Region 2'!$AN$22/'MMA Rev-Exp Region 2'!$AN$9, 0)","v":{"v":0,"d":"$0.00"}},{"$f":"IFERROR('MMA Rev-Exp Region 2'!$AO$22/'MMA Rev-Exp Region 2'!$AO$9, 0)","v":{"v":0,"d":"$0.00"}},{"$f":"IFERROR('MMA Rev-Exp Region 2'!$AP$22/'MMA Rev-Exp Region 2'!$AP$9, 0)","v":{"v":0,"d":"$0.00"}},{"$f":"IFERROR('MMA Rev-Exp Region 2'!$AQ$22/'MMA Rev-Exp Region 2'!$AQ$9, 0)","v":{"v":0,"d":"$0.00"}},{"$f":"IFERROR('MMA Rev-Exp Region 2'!$AR$22/'MMA Rev-Exp Region 2'!$AR$9, 0)","v":{"v":0,"d":"$0.00"}},{"$f":"IFERROR('MMA Rev-Exp Region 2'!$AS$22/'MMA Rev-Exp Region 2'!$AS$9, 0)","v":{"v":0,"d":"$0.00"}},{"$f":"IFERROR('MMA Rev-Exp Region 2'!$AT$22/'MMA Rev-Exp Region 2'!$AT$9, 0)","v":{"v":0,"d":"$0.00"}},{"$f":"IFERROR('MMA Rev-Exp Region 2'!$AU$22/'MMA Rev-Exp Region 2'!$AU$9, 0)","v":{"v":0,"d":"$0.00"}}]
["MMA",null,null,2016,"2016-12-31","Q4","2017-12-31","Region 2","Operating Expense","Medical Benefits Expense","Hospital Services",2.4,"Outpatient FFS: Other than ER ",{"$f":"IFERROR('MMA Rev-Exp Region 2'!$AK$23/'MMA Rev-Exp Region 2'!$AK$9, 0)","v":{"v":0,"d":"$0.00"}},{"$f":"IFERROR('MMA Rev-Exp Region 2'!$AL$23/'MMA Rev-Exp Region 2'!$AL$9, 0)","v":{"v":0,"d":"$0.00"}},{"$f":"IFERROR('MMA Rev-Exp Region 2'!$AM$23/'MMA Rev-Exp Region 2'!$AM$9, 0)","v":{"v":0,"d":"$0.00"}},{"$f":"IFERROR('MMA Rev-Exp Region 2'!$AN$23/'MMA Rev-Exp Region 2'!$AN$9, 0)","v":{"v":0,"d":"$0.00"}},{"$f":"IFERROR('MMA Rev-Exp Region 2'!$AO$23/'MMA Rev-Exp Region 2'!$AO$9, 0)","v":{"v":0,"d":"$0.00"}},{"$f":"IFERROR('MMA Rev-Exp Region 2'!$AP$23/'MMA Rev-Exp Region 2'!$AP$9, 0)","v":{"v":0,"d":"$0.00"}},{"$f":"IFERROR('MMA Rev-Exp Region 2'!$AQ$23/'MMA Rev-Exp Region 2'!$AQ$9, 0)","v":{"v":0,"d":"$0.00"}},{"$f":"IFERROR('MMA Rev-Exp Region 2'!$AR$23/'MMA Rev-Exp Region 2'!$AR$9, 0)","v":{"v":0,"d":"$0.00"}},{"$f":"IFERROR('MMA Rev-Exp Region 2'!$AS$23/'MMA Rev-Exp Region 2'!$AS$9, 0)","v":{"v":0,"d":"$0.00"}},{"$f":"IFERROR('MMA Rev-Exp Region 2'!$AT$23/'MMA Rev-Exp Region 2'!$AT$9, 0)","v":{"v":0,"d":"$0.00"}},{"$f":"IFERROR('MMA Rev-Exp Region 2'!$AU$23/'MMA Rev-Exp Region 2'!$AU$9, 0)","v":{"v":0,"d":"$0.00"}}]
["MMA",null,null,2016,"2016-12-31","Q4","2017-12-31","Region 2","Operating Expense","Medical Benefits Expense","Hospital Services",2.5,"Ending IBNP for Outpatient Hospital Services",{"$f":"IFERROR('MMA Rev-Exp Region 2'!$AK$24/'MMA Rev-Exp Region 2'!$AK$9, 0)","v":{"v":0,"d":"$0.00"}},{"$f":"IFERROR('MMA Rev-Exp Region 2'!$AL$24/'MMA Rev-Exp Region 2'!$AL$9, 0)","v":{"v":0,"d":"$0.00"}},{"$f":"IFERROR('MMA Rev-Exp Region 2'!$AM$24/'MMA Rev-Exp Region 2'!$AM$9, 0)","v":{"v":0,"d":"$0.00"}},{"$f":"IFERROR('MMA Rev-Exp Region 2'!$AN$24/'MMA Rev-Exp Region 2'!$AN$9, 0)","v":{"v":0,"d":"$0.00"}},{"$f":"IFERROR('MMA Rev-Exp Region 2'!$AO$24/'MMA Rev-Exp Region 2'!$AO$9, 0)","v":{"v":0,"d":"$0.00"}},{"$f":"IFERROR('MMA Rev-Exp Region 2'!$AP$24/'MMA Rev-Exp Region 2'!$AP$9, 0)","v":{"v":0,"d":"$0.00"}},{"$f":"IFERROR('MMA Rev-Exp Region 2'!$AQ$24/'MMA Rev-Exp Region 2'!$AQ$9, 0)","v":{"v":0,"d":"$0.00"}},{"$f":"IFERROR('MMA Rev-Exp Region 2'!$AR$24/'MMA Rev-Exp Region 2'!$AR$9, 0)","v":{"v":0,"d":"$0.00"}},{"$f":"IFERROR('MMA Rev-Exp Region 2'!$AS$24/'MMA Rev-Exp Region 2'!$AS$9, 0)","v":{"v":0,"d":"$0.00"}},{"$f":"IFERROR('MMA Rev-Exp Region 2'!$AT$24/'MMA Rev-Exp Region 2'!$AT$9, 0)","v":{"v":0,"d":"$0.00"}},{"$f":"IFERROR('MMA Rev-Exp Region 2'!$AU$24/'MMA Rev-Exp Region 2'!$AU$9, 0)","v":{"v":0,"d":"$0.00"}}]
["MMA",null,null,2016,"2016-12-31","Q4","2017-12-31","Region 2","Operating Expense","Medical Benefits Expense","Hospital Services","2.6","Subcapitated Hospital Services",{"$f":"IFERROR('MMA Rev-Exp Region 2'!$AK$25/'MMA Rev-Exp Region 2'!$AK$9, 0)","v":{"v":0,"d":"$0.00"}},{"$f":"IFERROR('MMA Rev-Exp Region 2'!$AL$25/'MMA Rev-Exp Region 2'!$AL$9, 0)","v":{"v":0,"d":"$0.00"}},{"$f":"IFERROR('MMA Rev-Exp Region 2'!$AM$25/'MMA Rev-Exp Region 2'!$AM$9, 0)","v":{"v":0,"d":"$0.00"}},{"$f":"IFERROR('MMA Rev-Exp Region 2'!$AN$25/'MMA Rev-Exp Region 2'!$AN$9, 0)","v":{"v":0,"d":"$0.00"}},{"$f":"IFERROR('MMA Rev-Exp Region 2'!$AO$25/'MMA Rev-Exp Region 2'!$AO$9, 0)","v":{"v":0,"d":"$0.00"}},{"$f":"IFERROR('MMA Rev-Exp Region 2'!$AP$25/'MMA Rev-Exp Region 2'!$AP$9, 0)","v":{"v":0,"d":"$0.00"}},{"$f":"IFERROR('MMA Rev-Exp Region 2'!$AQ$25/'MMA Rev-Exp Region 2'!$AQ$9, 0)","v":{"v":0,"d":"$0.00"}},{"$f":"IFERROR('MMA Rev-Exp Region 2'!$AR$25/'MMA Rev-Exp Region 2'!$AR$9, 0)","v":{"v":0,"d":"$0.00"}},{"$f":"IFERROR('MMA Rev-Exp Region 2'!$AS$25/'MMA Rev-Exp Region 2'!$AS$9, 0)","v":{"v":0,"d":"$0.00"}},{"$f":"IFERROR('MMA Rev-Exp Region 2'!$AT$25/'MMA Rev-Exp Region 2'!$AT$9, 0)","v":{"v":0,"d":"$0.00"}},{"$f":"IFERROR('MMA Rev-Exp Region 2'!$AU$25/'MMA Rev-Exp Region 2'!$AU$9, 0)","v":{"v":0,"d":"$0.00"}}]
["MMA",null,null,2016,"2016-12-31","Q4","2017-12-31","Region 2","Operating Expense","Medical Benefits Expense","Hospital Services","2.7","Hospital Settlements",{"$f":"IFERROR('MMA Rev-Exp Region 2'!$AK$26/'MMA Rev-Exp Region 2'!$AK$9, 0)","v":{"v":0,"d":"$0.00"}},{"$f":"IFERROR('MMA Rev-Exp Region 2'!$AL$26/'MMA Rev-Exp Region 2'!$AL$9, 0)","v":{"v":0,"d":"$0.00"}},{"$f":"IFERROR('MMA Rev-Exp Region 2'!$AM$26/'MMA Rev-Exp Region 2'!$AM$9, 0)","v":{"v":0,"d":"$0.00"}},{"$f":"IFERROR('MMA Rev-Exp Region 2'!$AN$26/'MMA Rev-Exp Region 2'!$AN$9, 0)","v":{"v":0,"d":"$0.00"}},{"$f":"IFERROR('MMA Rev-Exp Region 2'!$AO$26/'MMA Rev-Exp Region 2'!$AO$9, 0)","v":{"v":0,"d":"$0.00"}},{"$f":"IFERROR('MMA Rev-Exp Region 2'!$AP$26/'MMA Rev-Exp Region 2'!$AP$9, 0)","v":{"v":0,"d":"$0.00"}},{"$f":"IFERROR('MMA Rev-Exp Region 2'!$AQ$26/'MMA Rev-Exp Region 2'!$AQ$9, 0)","v":{"v":0,"d":"$0.00"}},{"$f":"IFERROR('MMA Rev-Exp Region 2'!$AR$26/'MMA Rev-Exp Region 2'!$AR$9, 0)","v":{"v":0,"d":"$0.00"}},{"$f":"IFERROR('MMA Rev-Exp Region 2'!$AS$26/'MMA Rev-Exp Region 2'!$AS$9, 0)","v":{"v":0,"d":"$0.00"}},{"$f":"IFERROR('MMA Rev-Exp Region 2'!$AT$26/'MMA Rev-Exp Region 2'!$AT$9, 0)","v":{"v":0,"d":"$0.00"}},{"$f":"IFERROR('MMA Rev-Exp Region 2'!$AU$26/'MMA Rev-Exp Region 2'!$AU$9, 0)","v":{"v":0,"d":"$0.00"}}]
["MMA",null,null,2016,"2016-12-31","Q4","2017-12-31","Region 2","Operating Expense","Medical Benefits Expense","Hospital Services","2.7.1","Transplant Services",{"$f":"IFERROR('MMA Rev-Exp Region 2'!$AK$27/'MMA Rev-Exp Region 2'!$AK$9, 0)","v":{"v":0,"d":"$0.00"}},{"$f":"IFERROR('MMA Rev-Exp Region 2'!$AL$27/'MMA Rev-Exp Region 2'!$AL$9, 0)","v":{"v":0,"d":"$0.00"}},{"$f":"IFERROR('MMA Rev-Exp Region 2'!$AM$27/'MMA Rev-Exp Region 2'!$AM$9, 0)","v":{"v":0,"d":"$0.00"}},{"$f":"IFERROR('MMA Rev-Exp Region 2'!$AN$27/'MMA Rev-Exp Region 2'!$AN$9, 0)","v":{"v":0,"d":"$0.00"}},{"$f":"IFERROR('MMA Rev-Exp Region 2'!$AO$27/'MMA Rev-Exp Region 2'!$AO$9, 0)","v":{"v":0,"d":"$0.00"}},{"$f":"IFERROR('MMA Rev-Exp Region 2'!$AP$27/'MMA Rev-Exp Region 2'!$AP$9, 0)","v":{"v":0,"d":"$0.00"}},{"$f":"IFERROR('MMA Rev-Exp Region 2'!$AQ$27/'MMA Rev-Exp Region 2'!$AQ$9, 0)","v":{"v":0,"d":"$0.00"}},{"$f":"IFERROR('MMA Rev-Exp Region 2'!$AR$27/'MMA Rev-Exp Region 2'!$AR$9, 0)","v":{"v":0,"d":"$0.00"}},{"$f":"IFERROR('MMA Rev-Exp Region 2'!$AS$27/'MMA Rev-Exp Region 2'!$AS$9, 0)","v":{"v":0,"d":"$0.00"}},{"$f":"IFERROR('MMA Rev-Exp Region 2'!$AT$27/'MMA Rev-Exp Region 2'!$AT$9, 0)","v":{"v":0,"d":"$0.00"}},{"$f":"IFERROR('MMA Rev-Exp Region 2'!$AU$27/'MMA Rev-Exp Region 2'!$AU$9, 0)","v":{"v":0,"d":"$0.00"}}]
["MMA",null,null,2016,"2016-12-31","Q4","2017-12-31","Region 2","Operating Expense","Medical Benefits Expense","Professional Services",3.1,"Primary Care FFS",{"$f":"IFERROR('MMA Rev-Exp Region 2'!$AK$29/'MMA Rev-Exp Region 2'!$AK$9, 0)","v":{"v":0,"d":"$0.00"}},{"$f":"IFERROR('MMA Rev-Exp Region 2'!$AL$29/'MMA Rev-Exp Region 2'!$AL$9, 0)","v":{"v":0,"d":"$0.00"}},{"$f":"IFERROR('MMA Rev-Exp Region 2'!$AM$29/'MMA Rev-Exp Region 2'!$AM$9, 0)","v":{"v":0,"d":"$0.00"}},{"$f":"IFERROR('MMA Rev-Exp Region 2'!$AN$29/'MMA Rev-Exp Region 2'!$AN$9, 0)","v":{"v":0,"d":"$0.00"}},{"$f":"IFERROR('MMA Rev-Exp Region 2'!$AO$29/'MMA Rev-Exp Region 2'!$AO$9, 0)","v":{"v":0,"d":"$0.00"}},{"$f":"IFERROR('MMA Rev-Exp Region 2'!$AP$29/'MMA Rev-Exp Region 2'!$AP$9, 0)","v":{"v":0,"d":"$0.00"}},{"$f":"IFERROR('MMA Rev-Exp Region 2'!$AQ$29/'MMA Rev-Exp Region 2'!$AQ$9, 0)","v":{"v":0,"d":"$0.00"}},{"$f":"IFERROR('MMA Rev-Exp Region 2'!$AR$29/'MMA Rev-Exp Region 2'!$AR$9, 0)","v":{"v":0,"d":"$0.00"}},{"$f":"IFERROR('MMA Rev-Exp Region 2'!$AS$29/'MMA Rev-Exp Region 2'!$AS$9, 0)","v":{"v":0,"d":"$0.00"}},{"$f":"IFERROR('MMA Rev-Exp Region 2'!$AT$29/'MMA Rev-Exp Region 2'!$AT$9, 0)","v":{"v":0,"d":"$0.00"}},{"$f":"IFERROR('MMA Rev-Exp Region 2'!$AU$29/'MMA Rev-Exp Region 2'!$AU$9, 0)","v":{"v":0,"d":"$0.00"}}]
["MMA",null,null,2016,"2016-12-31","Q4","2017-12-31","Region 2","Operating Expense","Medical Benefits Expense","Professional Services",3.2,"Specialty Care FFS",{"$f":"IFERROR('MMA Rev-Exp Region 2'!$AK$30/'MMA Rev-Exp Region 2'!$AK$9, 0)","v":{"v":0,"d":"$0.00"}},{"$f":"IFERROR('MMA Rev-Exp Region 2'!$AL$30/'MMA Rev-Exp Region 2'!$AL$9, 0)","v":{"v":0,"d":"$0.00"}},{"$f":"IFERROR('MMA Rev-Exp Region 2'!$AM$30/'MMA Rev-Exp Region 2'!$AM$9, 0)","v":{"v":0,"d":"$0.00"}},{"$f":"IFERROR('MMA Rev-Exp Region 2'!$AN$30/'MMA Rev-Exp Region 2'!$AN$9, 0)","v":{"v":0,"d":"$0.00"}},{"$f":"IFERROR('MMA Rev-Exp Region 2'!$AO$30/'MMA Rev-Exp Region 2'!$AO$9, 0)","v":{"v":0,"d":"$0.00"}},{"$f":"IFERROR('MMA Rev-Exp Region 2'!$AP$30/'MMA Rev-Exp Region 2'!$AP$9, 0)","v":{"v":0,"d":"$0.00"}},{"$f":"IFERROR('MMA Rev-Exp Region 2'!$AQ$30/'MMA Rev-Exp Region 2'!$AQ$9, 0)","v":{"v":0,"d":"$0.00"}},{"$f":"IFERROR('MMA Rev-Exp Region 2'!$AR$30/'MMA Rev-Exp Region 2'!$AR$9, 0)","v":{"v":0,"d":"$0.00"}},{"$f":"IFERROR('MMA Rev-Exp Region 2'!$AS$30/'MMA Rev-Exp Region 2'!$AS$9, 0)","v":{"v":0,"d":"$0.00"}},{"$f":"IFERROR('MMA Rev-Exp Region 2'!$AT$30/'MMA Rev-Exp Region 2'!$AT$9, 0)","v":{"v":0,"d":"$0.00"}},{"$f":"IFERROR('MMA Rev-Exp Region 2'!$AU$30/'MMA Rev-Exp Region 2'!$AU$9, 0)","v":{"v":0,"d":"$0.00"}}]
["MMA",null,null,2016,"2016-12-31","Q4","2017-12-31","Region 2","Operating Expense","Medical Benefits Expense","Professional Services",3.3,"Other Professional FFS",{"$f":"IFERROR('MMA Rev-Exp Region 2'!$AK$31/'MMA Rev-Exp Region 2'!$AK$9, 0)","v":{"v":0,"d":"$0.00"}},{"$f":"IFERROR('MMA Rev-Exp Region 2'!$AL$31/'MMA Rev-Exp Region 2'!$AL$9, 0)","v":{"v":0,"d":"$0.00"}},{"$f":"IFERROR('MMA Rev-Exp Region 2'!$AM$31/'MMA Rev-Exp Region 2'!$AM$9, 0)","v":{"v":0,"d":"$0.00"}},{"$f":"IFERROR('MMA Rev-Exp Region 2'!$AN$31/'MMA Rev-Exp Region 2'!$AN$9, 0)","v":{"v":0,"d":"$0.00"}},{"$f":"IFERROR('MMA Rev-Exp Region 2'!$AO$31/'MMA Rev-Exp Region 2'!$AO$9, 0)","v":{"v":0,"d":"$0.00"}},{"$f":"IFERROR('MMA Rev-Exp Region 2'!$AP$31/'MMA Rev-Exp Region 2'!$AP$9, 0)","v":{"v":0,"d":"$0.00"}},{"$f":"IFERROR('MMA Rev-Exp Region 2'!$AQ$31/'MMA Rev-Exp Region 2'!$AQ$9, 0)","v":{"v":0,"d":"$0.00"}},{"$f":"IFERROR('MMA Rev-Exp Region 2'!$AR$31/'MMA Rev-Exp Region 2'!$AR$9, 0)","v":{"v":0,"d":"$0.00"}},{"$f":"IFERROR('MMA Rev-Exp Region 2'!$AS$31/'MMA Rev-Exp Region 2'!$AS$9, 0)","v":{"v":0,"d":"$0.00"}},{"$f":"IFERROR('MMA Rev-Exp Region 2'!$AT$31/'MMA Rev-Exp Region 2'!$AT$9, 0)","v":{"v":0,"d":"$0.00"}},{"$f":"IFERROR('MMA Rev-Exp Region 2'!$AU$31/'MMA Rev-Exp Region 2'!$AU$9, 0)","v":{"v":0,"d":"$0.00"}}]
["MMA",null,null,2016,"2016-12-31","Q4","2017-12-31","Region 2","Operating Expense","Medical Benefits Expense","Professional Services","3.4","§ 1202 PCP Payments to providers",{"$f":"IFERROR('MMA Rev-Exp Region 2'!$AK$32/'MMA Rev-Exp Region 2'!$AK$9, 0)","v":{"v":0,"d":"$0.00"}},{"$f":"IFERROR('MMA Rev-Exp Region 2'!$AL$32/'MMA Rev-Exp Region 2'!$AL$9, 0)","v":{"v":0,"d":"$0.00"}},{"$f":"IFERROR('MMA Rev-Exp Region 2'!$AM$32/'MMA Rev-Exp Region 2'!$AM$9, 0)","v":{"v":0,"d":"$0.00"}},{"$f":"IFERROR('MMA Rev-Exp Region 2'!$AN$32/'MMA Rev-Exp Region 2'!$AN$9, 0)","v":{"v":0,"d":"$0.00"}},{"$f":"IFERROR('MMA Rev-Exp Region 2'!$AO$32/'MMA Rev-Exp Region 2'!$AO$9, 0)","v":{"v":0,"d":"$0.00"}},{"$f":"IFERROR('MMA Rev-Exp Region 2'!$AP$32/'MMA Rev-Exp Region 2'!$AP$9, 0)","v":{"v":0,"d":"$0.00"}},{"$f":"IFERROR('MMA Rev-Exp Region 2'!$AQ$32/'MMA Rev-Exp Region 2'!$AQ$9, 0)","v":{"v":0,"d":"$0.00"}},{"$f":"IFERROR('MMA Rev-Exp Region 2'!$AR$32/'MMA Rev-Exp Region 2'!$AR$9, 0)","v":{"v":0,"d":"$0.00"}},{"$f":"IFERROR('MMA Rev-Exp Region 2'!$AS$32/'MMA Rev-Exp Region 2'!$AS$9, 0)","v":{"v":0,"d":"$0.00"}},{"$f":"IFERROR('MMA Rev-Exp Region 2'!$AT$32/'MMA Rev-Exp Region 2'!$AT$9, 0)","v":{"v":0,"d":"$0.00"}},{"$f":"IFERROR('MMA Rev-Exp Region 2'!$AU$32/'MMA Rev-Exp Region 2'!$AU$9, 0)","v":{"v":0,"d":"$0.00"}}]
["MMA",null,null,2016,"2016-12-31","Q4","2017-12-31","Region 2","Operating Expense","Medical Benefits Expense","Professional Services","3.5","Subcapitated Professional Services",{"$f":"IFERROR('MMA Rev-Exp Region 2'!$AK$33/'MMA Rev-Exp Region 2'!$AK$9, 0)","v":{"v":0,"d":"$0.00"}},{"$f":"IFERROR('MMA Rev-Exp Region 2'!$AL$33/'MMA Rev-Exp Region 2'!$AL$9, 0)","v":{"v":0,"d":"$0.00"}},{"$f":"IFERROR('MMA Rev-Exp Region 2'!$AM$33/'MMA Rev-Exp Region 2'!$AM$9, 0)","v":{"v":0,"d":"$0.00"}},{"$f":"IFERROR('MMA Rev-Exp Region 2'!$AN$33/'MMA Rev-Exp Region 2'!$AN$9, 0)","v":{"v":0,"d":"$0.00"}},{"$f":"IFERROR('MMA Rev-Exp Region 2'!$AO$33/'MMA Rev-Exp Region 2'!$AO$9, 0)","v":{"v":0,"d":"$0.00"}},{"$f":"IFERROR('MMA Rev-Exp Region 2'!$AP$33/'MMA Rev-Exp Region 2'!$AP$9, 0)","v":{"v":0,"d":"$0.00"}},{"$f":"IFERROR('MMA Rev-Exp Region 2'!$AQ$33/'MMA Rev-Exp Region 2'!$AQ$9, 0)","v":{"v":0,"d":"$0.00"}},{"$f":"IFERROR('MMA Rev-Exp Region 2'!$AR$33/'MMA Rev-Exp Region 2'!$AR$9, 0)","v":{"v":0,"d":"$0.00"}},{"$f":"IFERROR('MMA Rev-Exp Region 2'!$AS$33/'MMA Rev-Exp Region 2'!$AS$9, 0)","v":{"v":0,"d":"$0.00"}},{"$f":"IFERROR('MMA Rev-Exp Region 2'!$AT$33/'MMA Rev-Exp Region 2'!$AT$9, 0)","v":{"v":0,"d":"$0.00"}},{"$f":"IFERROR('MMA Rev-Exp Region 2'!$AU$33/'MMA Rev-Exp Region 2'!$AU$9, 0)","v":{"v":0,"d":"$0.00"}}]
["MMA",null,null,2016,"2016-12-31","Q4","2017-12-31","Region 2","Operating Expense","Medical Benefits Expense","Professional Services","3.6","Ending IBNP for Professional Services",{"$f":"IFERROR('MMA Rev-Exp Region 2'!$AK$34/'MMA Rev-Exp Region 2'!$AK$9, 0)","v":{"v":0,"d":"$0.00"}},{"$f":"IFERROR('MMA Rev-Exp Region 2'!$AL$34/'MMA Rev-Exp Region 2'!$AL$9, 0)","v":{"v":0,"d":"$0.00"}},{"$f":"IFERROR('MMA Rev-Exp Region 2'!$AM$34/'MMA Rev-Exp Region 2'!$AM$9, 0)","v":{"v":0,"d":"$0.00"}},{"$f":"IFERROR('MMA Rev-Exp Region 2'!$AN$34/'MMA Rev-Exp Region 2'!$AN$9, 0)","v":{"v":0,"d":"$0.00"}},{"$f":"IFERROR('MMA Rev-Exp Region 2'!$AO$34/'MMA Rev-Exp Region 2'!$AO$9, 0)","v":{"v":0,"d":"$0.00"}},{"$f":"IFERROR('MMA Rev-Exp Region 2'!$AP$34/'MMA Rev-Exp Region 2'!$AP$9, 0)","v":{"v":0,"d":"$0.00"}},{"$f":"IFERROR('MMA Rev-Exp Region 2'!$AQ$34/'MMA Rev-Exp Region 2'!$AQ$9, 0)","v":{"v":0,"d":"$0.00"}},{"$f":"IFERROR('MMA Rev-Exp Region 2'!$AR$34/'MMA Rev-Exp Region 2'!$AR$9, 0)","v":{"v":0,"d":"$0.00"}},{"$f":"IFERROR('MMA Rev-Exp Region 2'!$AS$34/'MMA Rev-Exp Region 2'!$AS$9, 0)","v":{"v":0,"d":"$0.00"}},{"$f":"IFERROR('MMA Rev-Exp Region 2'!$AT$34/'MMA Rev-Exp Region 2'!$AT$9, 0)","v":{"v":0,"d":"$0.00"}},{"$f":"IFERROR('MMA Rev-Exp Region 2'!$AU$34/'MMA Rev-Exp Region 2'!$AU$9, 0)","v":{"v":0,"d":"$0.00"}}]
["MMA",null,null,2016,"2016-12-31","Q4","2017-12-31","Region 2","Operating Expense","Medical Benefits Expense","Professional Services","3.7","Professional Services Settlements",{"$f":"IFERROR('MMA Rev-Exp Region 2'!$AK$35/'MMA Rev-Exp Region 2'!$AK$9, 0)","v":{"v":0,"d":"$0.00"}},{"$f":"IFERROR('MMA Rev-Exp Region 2'!$AL$35/'MMA Rev-Exp Region 2'!$AL$9, 0)","v":{"v":0,"d":"$0.00"}},{"$f":"IFERROR('MMA Rev-Exp Region 2'!$AM$35/'MMA Rev-Exp Region 2'!$AM$9, 0)","v":{"v":0,"d":"$0.00"}},{"$f":"IFERROR('MMA Rev-Exp Region 2'!$AN$35/'MMA Rev-Exp Region 2'!$AN$9, 0)","v":{"v":0,"d":"$0.00"}},{"$f":"IFERROR('MMA Rev-Exp Region 2'!$AO$35/'MMA Rev-Exp Region 2'!$AO$9, 0)","v":{"v":0,"d":"$0.00"}},{"$f":"IFERROR('MMA Rev-Exp Region 2'!$AP$35/'MMA Rev-Exp Region 2'!$AP$9, 0)","v":{"v":0,"d":"$0.00"}},{"$f":"IFERROR('MMA Rev-Exp Region 2'!$AQ$35/'MMA Rev-Exp Region 2'!$AQ$9, 0)","v":{"v":0,"d":"$0.00"}},{"$f":"IFERROR('MMA Rev-Exp Region 2'!$AR$35/'MMA Rev-Exp Region 2'!$AR$9, 0)","v":{"v":0,"d":"$0.00"}},{"$f":"IFERROR('MMA Rev-Exp Region 2'!$AS$35/'MMA Rev-Exp Region 2'!$AS$9, 0)","v":{"v":0,"d":"$0.00"}},{"$f":"IFERROR('MMA Rev-Exp Region 2'!$AT$35/'MMA Rev-Exp Region 2'!$AT$9, 0)","v":{"v":0,"d":"$0.00"}},{"$f":"IFERROR('MMA Rev-Exp Region 2'!$AU$35/'MMA Rev-Exp Region 2'!$AU$9, 0)","v":{"v":0,"d":"$0.00"}}]
["MMA",null,null,2016,"2016-12-31","Q4","2017-12-31","Region 2","Operating Expense","Medical Benefits Expense","Maternity Services","4.1.1","Maternity Services",{"$f":"IFERROR('MMA Rev-Exp Region 2'!$AK$37/'MMA Rev-Exp Region 2'!$AK$9, 0)","v":{"v":0,"d":"$0.00"}},{"$f":"IFERROR('MMA Rev-Exp Region 2'!$AL$37/'MMA Rev-Exp Region 2'!$AL$9, 0)","v":{"v":0,"d":"$0.00"}},{"$f":"IFERROR('MMA Rev-Exp Region 2'!$AM$37/'MMA Rev-Exp Region 2'!$AM$9, 0)","v":{"v":0,"d":"$0.00"}},{"$f":"IFERROR('MMA Rev-Exp Region 2'!$AN$37/'MMA Rev-Exp Region 2'!$AN$9, 0)","v":{"v":0,"d":"$0.00"}},{"$f":"IFERROR('MMA Rev-Exp Region 2'!$AO$37/'MMA Rev-Exp Region 2'!$AO$9, 0)","v":{"v":0,"d":"$0.00"}},{"$f":"IFERROR('MMA Rev-Exp Region 2'!$AP$37/'MMA Rev-Exp Region 2'!$AP$9, 0)","v":{"v":0,"d":"$0.00"}},{"$f":"IFERROR('MMA Rev-Exp Region 2'!$AQ$37/'MMA Rev-Exp Region 2'!$AQ$9, 0)","v":{"v":0,"d":"$0.00"}},{"$f":"IFERROR('MMA Rev-Exp Region 2'!$AR$37/'MMA Rev-Exp Region 2'!$AR$9, 0)","v":{"v":0,"d":"$0.00"}},{"$f":"IFERROR('MMA Rev-Exp Region 2'!$AS$37/'MMA Rev-Exp Region 2'!$AS$9, 0)","v":{"v":0,"d":"$0.00"}},{"$f":"IFERROR('MMA Rev-Exp Region 2'!$AT$37/'MMA Rev-Exp Region 2'!$AT$9, 0)","v":{"v":0,"d":"$0.00"}},{"$f":"IFERROR('MMA Rev-Exp Region 2'!$AU$37/'MMA Rev-Exp Region 2'!$AU$9, 0)","v":{"v":0,"d":"$0.00"}}]
["MMA",null,null,2016,"2016-12-31","Q4","2017-12-31","Region 2","Operating Expense","Medical Benefits Expense","Maternity Services","4.2.1","Ending IBNP for Maternity Services",{"$f":"IFERROR('MMA Rev-Exp Region 2'!$AK$38/'MMA Rev-Exp Region 2'!$AK$9, 0)","v":{"v":0,"d":"$0.00"}},{"$f":"IFERROR('MMA Rev-Exp Region 2'!$AL$38/'MMA Rev-Exp Region 2'!$AL$9, 0)","v":{"v":0,"d":"$0.00"}},{"$f":"IFERROR('MMA Rev-Exp Region 2'!$AM$38/'MMA Rev-Exp Region 2'!$AM$9, 0)","v":{"v":0,"d":"$0.00"}},{"$f":"IFERROR('MMA Rev-Exp Region 2'!$AN$38/'MMA Rev-Exp Region 2'!$AN$9, 0)","v":{"v":0,"d":"$0.00"}},{"$f":"IFERROR('MMA Rev-Exp Region 2'!$AO$38/'MMA Rev-Exp Region 2'!$AO$9, 0)","v":{"v":0,"d":"$0.00"}},{"$f":"IFERROR('MMA Rev-Exp Region 2'!$AP$38/'MMA Rev-Exp Region 2'!$AP$9, 0)","v":{"v":0,"d":"$0.00"}},{"$f":"IFERROR('MMA Rev-Exp Region 2'!$AQ$38/'MMA Rev-Exp Region 2'!$AQ$9, 0)","v":{"v":0,"d":"$0.00"}},{"$f":"IFERROR('MMA Rev-Exp Region 2'!$AR$38/'MMA Rev-Exp Region 2'!$AR$9, 0)","v":{"v":0,"d":"$0.00"}},{"$f":"IFERROR('MMA Rev-Exp Region 2'!$AS$38/'MMA Rev-Exp Region 2'!$AS$9, 0)","v":{"v":0,"d":"$0.00"}},{"$f":"IFERROR('MMA Rev-Exp Region 2'!$AT$38/'MMA Rev-Exp Region 2'!$AT$9, 0)","v":{"v":0,"d":"$0.00"}},{"$f":"IFERROR('MMA Rev-Exp Region 2'!$AU$38/'MMA Rev-Exp Region 2'!$AU$9, 0)","v":{"v":0,"d":"$0.00"}}]
["MMA",null,null,2016,"2016-12-31","Q4","2017-12-31","Region 2","Operating Expense","Medical Benefits Expense","Maternity Services","4.3.1","Maternity Settlements",{"$f":"IFERROR('MMA Rev-Exp Region 2'!$AK$39/'MMA Rev-Exp Region 2'!$AK$9, 0)","v":{"v":0,"d":"$0.00"}},{"$f":"IFERROR('MMA Rev-Exp Region 2'!$AL$39/'MMA Rev-Exp Region 2'!$AL$9, 0)","v":{"v":0,"d":"$0.00"}},{"$f":"IFERROR('MMA Rev-Exp Region 2'!$AM$39/'MMA Rev-Exp Region 2'!$AM$9, 0)","v":{"v":0,"d":"$0.00"}},{"$f":"IFERROR('MMA Rev-Exp Region 2'!$AN$39/'MMA Rev-Exp Region 2'!$AN$9, 0)","v":{"v":0,"d":"$0.00"}},{"$f":"IFERROR('MMA Rev-Exp Region 2'!$AO$39/'MMA Rev-Exp Region 2'!$AO$9, 0)","v":{"v":0,"d":"$0.00"}},{"$f":"IFERROR('MMA Rev-Exp Region 2'!$AP$39/'MMA Rev-Exp Region 2'!$AP$9, 0)","v":{"v":0,"d":"$0.00"}},{"$f":"IFERROR('MMA Rev-Exp Region 2'!$AQ$39/'MMA Rev-Exp Region 2'!$AQ$9, 0)","v":{"v":0,"d":"$0.00"}},{"$f":"IFERROR('MMA Rev-Exp Region 2'!$AR$39/'MMA Rev-Exp Region 2'!$AR$9, 0)","v":{"v":0,"d":"$0.00"}},{"$f":"IFERROR('MMA Rev-Exp Region 2'!$AS$39/'MMA Rev-Exp Region 2'!$AS$9, 0)","v":{"v":0,"d":"$0.00"}},{"$f":"IFERROR('MMA Rev-Exp Region 2'!$AT$39/'MMA Rev-Exp Region 2'!$AT$9, 0)","v":{"v":0,"d":"$0.00"}},{"$f":"IFERROR('MMA Rev-Exp Region 2'!$AU$39/'MMA Rev-Exp Region 2'!$AU$9, 0)","v":{"v":0,"d":"$0.00"}}]
["MMA",null,null,2016,"2016-12-31","Q4","2017-12-31","Region 2","Operating Expense","Medical Benefits Expense","Mental Health Services",5.1,"Mental Health & Substance Abuse FFS",{"$f":"IFERROR('MMA Rev-Exp Region 2'!$AK$41/'MMA Rev-Exp Region 2'!$AK$9, 0)","v":{"v":0,"d":"$0.00"}},{"$f":"IFERROR('MMA Rev-Exp Region 2'!$AL$41/'MMA Rev-Exp Region 2'!$AL$9, 0)","v":{"v":0,"d":"$0.00"}},{"$f":"IFERROR('MMA Rev-Exp Region 2'!$AM$41/'MMA Rev-Exp Region 2'!$AM$9, 0)","v":{"v":0,"d":"$0.00"}},{"$f":"IFERROR('MMA Rev-Exp Region 2'!$AN$41/'MMA Rev-Exp Region 2'!$AN$9, 0)","v":{"v":0,"d":"$0.00"}},{"$f":"IFERROR('MMA Rev-Exp Region 2'!$AO$41/'MMA Rev-Exp Region 2'!$AO$9, 0)","v":{"v":0,"d":"$0.00"}},{"$f":"IFERROR('MMA Rev-Exp Region 2'!$AP$41/'MMA Rev-Exp Region 2'!$AP$9, 0)","v":{"v":0,"d":"$0.00"}},{"$f":"IFERROR('MMA Rev-Exp Region 2'!$AQ$41/'MMA Rev-Exp Region 2'!$AQ$9, 0)","v":{"v":0,"d":"$0.00"}},{"$f":"IFERROR('MMA Rev-Exp Region 2'!$AR$41/'MMA Rev-Exp Region 2'!$AR$9, 0)","v":{"v":0,"d":"$0.00"}},{"$f":"IFERROR('MMA Rev-Exp Region 2'!$AS$41/'MMA Rev-Exp Region 2'!$AS$9, 0)","v":{"v":0,"d":"$0.00"}},{"$f":"IFERROR('MMA Rev-Exp Region 2'!$AT$41/'MMA Rev-Exp Region 2'!$AT$9, 0)","v":{"v":0,"d":"$0.00"}},{"$f":"IFERROR('MMA Rev-Exp Region 2'!$AU$41/'MMA Rev-Exp Region 2'!$AU$9, 0)","v":{"v":0,"d":"$0.00"}}]
["MMA",null,null,2016,"2016-12-31","Q4","2017-12-31","Region 2","Operating Expense","Medical Benefits Expense","Mental Health Services",5.2,"Mental Health & Substance Abuse Subcapitation",{"$f":"IFERROR('MMA Rev-Exp Region 2'!$AK$42/'MMA Rev-Exp Region 2'!$AK$9, 0)","v":{"v":0,"d":"$0.00"}},{"$f":"IFERROR('MMA Rev-Exp Region 2'!$AL$42/'MMA Rev-Exp Region 2'!$AL$9, 0)","v":{"v":0,"d":"$0.00"}},{"$f":"IFERROR('MMA Rev-Exp Region 2'!$AM$42/'MMA Rev-Exp Region 2'!$AM$9, 0)","v":{"v":0,"d":"$0.00"}},{"$f":"IFERROR('MMA Rev-Exp Region 2'!$AN$42/'MMA Rev-Exp Region 2'!$AN$9, 0)","v":{"v":0,"d":"$0.00"}},{"$f":"IFERROR('MMA Rev-Exp Region 2'!$AO$42/'MMA Rev-Exp Region 2'!$AO$9, 0)","v":{"v":0,"d":"$0.00"}},{"$f":"IFERROR('MMA Rev-Exp Region 2'!$AP$42/'MMA Rev-Exp Region 2'!$AP$9, 0)","v":{"v":0,"d":"$0.00"}},{"$f":"IFERROR('MMA Rev-Exp Region 2'!$AQ$42/'MMA Rev-Exp Region 2'!$AQ$9, 0)","v":{"v":0,"d":"$0.00"}},{"$f":"IFERROR('MMA Rev-Exp Region 2'!$AR$42/'MMA Rev-Exp Region 2'!$AR$9, 0)","v":{"v":0,"d":"$0.00"}},{"$f":"IFERROR('MMA Rev-Exp Region 2'!$AS$42/'MMA Rev-Exp Region 2'!$AS$9, 0)","v":{"v":0,"d":"$0.00"}},{"$f":"IFERROR('MMA Rev-Exp Region 2'!$AT$42/'MMA Rev-Exp Region 2'!$AT$9, 0)","v":{"v":0,"d":"$0.00"}},{"$f":"IFERROR('MMA Rev-Exp Region 2'!$AU$42/'MMA Rev-Exp Region 2'!$AU$9, 0)","v":{"v":0,"d":"$0.00"}}]
["MMA",null,null,2016,"2016-12-31","Q4","2017-12-31","Region 2","Operating Expense","Medical Benefits Expense","Mental Health Services",5.3,"Ending IBNP for Mental Health & Substance Abuse",{"$f":"IFERROR('MMA Rev-Exp Region 2'!$AK$43/'MMA Rev-Exp Region 2'!$AK$9, 0)","v":{"v":0,"d":"$0.00"}},{"$f":"IFERROR('MMA Rev-Exp Region 2'!$AL$43/'MMA Rev-Exp Region 2'!$AL$9, 0)","v":{"v":0,"d":"$0.00"}},{"$f":"IFERROR('MMA Rev-Exp Region 2'!$AM$43/'MMA Rev-Exp Region 2'!$AM$9, 0)","v":{"v":0,"d":"$0.00"}},{"$f":"IFERROR('MMA Rev-Exp Region 2'!$AN$43/'MMA Rev-Exp Region 2'!$AN$9, 0)","v":{"v":0,"d":"$0.00"}},{"$f":"IFERROR('MMA Rev-Exp Region 2'!$AO$43/'MMA Rev-Exp Region 2'!$AO$9, 0)","v":{"v":0,"d":"$0.00"}},{"$f":"IFERROR('MMA Rev-Exp Region 2'!$AP$43/'MMA Rev-Exp Region 2'!$AP$9, 0)","v":{"v":0,"d":"$0.00"}},{"$f":"IFERROR('MMA Rev-Exp Region 2'!$AQ$43/'MMA Rev-Exp Region 2'!$AQ$9, 0)","v":{"v":0,"d":"$0.00"}},{"$f":"IFERROR('MMA Rev-Exp Region 2'!$AR$43/'MMA Rev-Exp Region 2'!$AR$9, 0)","v":{"v":0,"d":"$0.00"}},{"$f":"IFERROR('MMA Rev-Exp Region 2'!$AS$43/'MMA Rev-Exp Region 2'!$AS$9, 0)","v":{"v":0,"d":"$0.00"}},{"$f":"IFERROR('MMA Rev-Exp Region 2'!$AT$43/'MMA Rev-Exp Region 2'!$AT$9, 0)","v":{"v":0,"d":"$0.00"}},{"$f":"IFERROR('MMA Rev-Exp Region 2'!$AU$43/'MMA Rev-Exp Region 2'!$AU$9, 0)","v":{"v":0,"d":"$0.00"}}]
["MMA",null,null,2016,"2016-12-31","Q4","2017-12-31","Region 2","Operating Expense","Medical Benefits Expense","Mental Health Services","5.4","Mental Health Settlements",{"$f":"IFERROR('MMA Rev-Exp Region 2'!$AK$44/'MMA Rev-Exp Region 2'!$AK$9, 0)","v":{"v":0,"d":"$0.00"}},{"$f":"IFERROR('MMA Rev-Exp Region 2'!$AL$44/'MMA Rev-Exp Region 2'!$AL$9, 0)","v":{"v":0,"d":"$0.00"}},{"$f":"IFERROR('MMA Rev-Exp Region 2'!$AM$44/'MMA Rev-Exp Region 2'!$AM$9, 0)","v":{"v":0,"d":"$0.00"}},{"$f":"IFERROR('MMA Rev-Exp Region 2'!$AN$44/'MMA Rev-Exp Region 2'!$AN$9, 0)","v":{"v":0,"d":"$0.00"}},{"$f":"IFERROR('MMA Rev-Exp Region 2'!$AO$44/'MMA Rev-Exp Region 2'!$AO$9, 0)","v":{"v":0,"d":"$0.00"}},{"$f":"IFERROR('MMA Rev-Exp Region 2'!$AP$44/'MMA Rev-Exp Region 2'!$AP$9, 0)","v":{"v":0,"d":"$0.00"}},{"$f":"IFERROR('MMA Rev-Exp Region 2'!$AQ$44/'MMA Rev-Exp Region 2'!$AQ$9, 0)","v":{"v":0,"d":"$0.00"}},{"$f":"IFERROR('MMA Rev-Exp Region 2'!$AR$44/'MMA Rev-Exp Region 2'!$AR$9, 0)","v":{"v":0,"d":"$0.00"}},{"$f":"IFERROR('MMA Rev-Exp Region 2'!$AS$44/'MMA Rev-Exp Region 2'!$AS$9, 0)","v":{"v":0,"d":"$0.00"}},{"$f":"IFERROR('MMA Rev-Exp Region 2'!$AT$44/'MMA Rev-Exp Region 2'!$AT$9, 0)","v":{"v":0,"d":"$0.00"}},{"$f":"IFERROR('MMA Rev-Exp Region 2'!$AU$44/'MMA Rev-Exp Region 2'!$AU$9, 0)","v":{"v":0,"d":"$0.00"}}]
["MMA",null,null,2016,"2016-12-31","Q4","2017-12-31","Region 2","Operating Expense","Medical Benefits Expense","Dental Services",6.1,"Dental FFS",{"$f":"IFERROR('MMA Rev-Exp Region 2'!$AK$46/'MMA Rev-Exp Region 2'!$AK$9, 0)","v":{"v":0,"d":"$0.00"}},{"$f":"IFERROR('MMA Rev-Exp Region 2'!$AL$46/'MMA Rev-Exp Region 2'!$AL$9, 0)","v":{"v":0,"d":"$0.00"}},{"$f":"IFERROR('MMA Rev-Exp Region 2'!$AM$46/'MMA Rev-Exp Region 2'!$AM$9, 0)","v":{"v":0,"d":"$0.00"}},{"$f":"IFERROR('MMA Rev-Exp Region 2'!$AN$46/'MMA Rev-Exp Region 2'!$AN$9, 0)","v":{"v":0,"d":"$0.00"}},{"$f":"IFERROR('MMA Rev-Exp Region 2'!$AO$46/'MMA Rev-Exp Region 2'!$AO$9, 0)","v":{"v":0,"d":"$0.00"}},{"$f":"IFERROR('MMA Rev-Exp Region 2'!$AP$46/'MMA Rev-Exp Region 2'!$AP$9, 0)","v":{"v":0,"d":"$0.00"}},{"$f":"IFERROR('MMA Rev-Exp Region 2'!$AQ$46/'MMA Rev-Exp Region 2'!$AQ$9, 0)","v":{"v":0,"d":"$0.00"}},{"$f":"IFERROR('MMA Rev-Exp Region 2'!$AR$46/'MMA Rev-Exp Region 2'!$AR$9, 0)","v":{"v":0,"d":"$0.00"}},{"$f":"IFERROR('MMA Rev-Exp Region 2'!$AS$46/'MMA Rev-Exp Region 2'!$AS$9, 0)","v":{"v":0,"d":"$0.00"}},{"$f":"IFERROR('MMA Rev-Exp Region 2'!$AT$46/'MMA Rev-Exp Region 2'!$AT$9, 0)","v":{"v":0,"d":"$0.00"}},{"$f":"IFERROR('MMA Rev-Exp Region 2'!$AU$46/'MMA Rev-Exp Region 2'!$AU$9, 0)","v":{"v":0,"d":"$0.00"}}]
["MMA",null,null,2016,"2016-12-31","Q4","2017-12-31","Region 2","Operating Expense","Medical Benefits Expense","Dental Services",6.2,"Dental Subcapitation",{"$f":"IFERROR('MMA Rev-Exp Region 2'!$AK$47/'MMA Rev-Exp Region 2'!$AK$9, 0)","v":{"v":0,"d":"$0.00"}},{"$f":"IFERROR('MMA Rev-Exp Region 2'!$AL$47/'MMA Rev-Exp Region 2'!$AL$9, 0)","v":{"v":0,"d":"$0.00"}},{"$f":"IFERROR('MMA Rev-Exp Region 2'!$AM$47/'MMA Rev-Exp Region 2'!$AM$9, 0)","v":{"v":0,"d":"$0.00"}},{"$f":"IFERROR('MMA Rev-Exp Region 2'!$AN$47/'MMA Rev-Exp Region 2'!$AN$9, 0)","v":{"v":0,"d":"$0.00"}},{"$f":"IFERROR('MMA Rev-Exp Region 2'!$AO$47/'MMA Rev-Exp Region 2'!$AO$9, 0)","v":{"v":0,"d":"$0.00"}},{"$f":"IFERROR('MMA Rev-Exp Region 2'!$AP$47/'MMA Rev-Exp Region 2'!$AP$9, 0)","v":{"v":0,"d":"$0.00"}},{"$f":"IFERROR('MMA Rev-Exp Region 2'!$AQ$47/'MMA Rev-Exp Region 2'!$AQ$9, 0)","v":{"v":0,"d":"$0.00"}},{"$f":"IFERROR('MMA Rev-Exp Region 2'!$AR$47/'MMA Rev-Exp Region 2'!$AR$9, 0)","v":{"v":0,"d":"$0.00"}},{"$f":"IFERROR('MMA Rev-Exp Region 2'!$AS$47/'MMA Rev-Exp Region 2'!$AS$9, 0)","v":{"v":0,"d":"$0.00"}},{"$f":"IFERROR('MMA Rev-Exp Region 2'!$AT$47/'MMA Rev-Exp Region 2'!$AT$9, 0)","v":{"v":0,"d":"$0.00"}},{"$f":"IFERROR('MMA Rev-Exp Region 2'!$AU$47/'MMA Rev-Exp Region 2'!$AU$9, 0)","v":{"v":0,"d":"$0.00"}}]
["MMA",null,null,2016,"2016-12-31","Q4","2017-12-31","Region 2","Operating Expense","Medical Benefits Expense","Dental Services",6.3,"Ending IBNP for Dental Services",{"$f":"IFERROR('MMA Rev-Exp Region 2'!$AK$48/'MMA Rev-Exp Region 2'!$AK$9, 0)","v":{"v":0,"d":"$0.00"}},{"$f":"IFERROR('MMA Rev-Exp Region 2'!$AL$48/'MMA Rev-Exp Region 2'!$AL$9, 0)","v":{"v":0,"d":"$0.00"}},{"$f":"IFERROR('MMA Rev-Exp Region 2'!$AM$48/'MMA Rev-Exp Region 2'!$AM$9, 0)","v":{"v":0,"d":"$0.00"}},{"$f":"IFERROR('MMA Rev-Exp Region 2'!$AN$48/'MMA Rev-Exp Region 2'!$AN$9, 0)","v":{"v":0,"d":"$0.00"}},{"$f":"IFERROR('MMA Rev-Exp Region 2'!$AO$48/'MMA Rev-Exp Region 2'!$AO$9, 0)","v":{"v":0,"d":"$0.00"}},{"$f":"IFERROR('MMA Rev-Exp Region 2'!$AP$48/'MMA Rev-Exp Region 2'!$AP$9, 0)","v":{"v":0,"d":"$0.00"}},{"$f":"IFERROR('MMA Rev-Exp Region 2'!$AQ$48/'MMA Rev-Exp Region 2'!$AQ$9, 0)","v":{"v":0,"d":"$0.00"}},{"$f":"IFERROR('MMA Rev-Exp Region 2'!$AR$48/'MMA Rev-Exp Region 2'!$AR$9, 0)","v":{"v":0,"d":"$0.00"}},{"$f":"IFERROR('MMA Rev-Exp Region 2'!$AS$48/'MMA Rev-Exp Region 2'!$AS$9, 0)","v":{"v":0,"d":"$0.00"}},{"$f":"IFERROR('MMA Rev-Exp Region 2'!$AT$48/'MMA Rev-Exp Region 2'!$AT$9, 0)","v":{"v":0,"d":"$0.00"}},{"$f":"IFERROR('MMA Rev-Exp Region 2'!$AU$48/'MMA Rev-Exp Region 2'!$AU$9, 0)","v":{"v":0,"d":"$0.00"}}]
["MMA",null,null,2016,"2016-12-31","Q4","2017-12-31","Region 2","Operating Expense","Medical Benefits Expense","Dental Services","6.4","Dental Settlements",{"$f":"IFERROR('MMA Rev-Exp Region 2'!$AK$49/'MMA Rev-Exp Region 2'!$AK$9, 0)","v":{"v":0,"d":"$0.00"}},{"$f":"IFERROR('MMA Rev-Exp Region 2'!$AL$49/'MMA Rev-Exp Region 2'!$AL$9, 0)","v":{"v":0,"d":"$0.00"}},{"$f":"IFERROR('MMA Rev-Exp Region 2'!$AM$49/'MMA Rev-Exp Region 2'!$AM$9, 0)","v":{"v":0,"d":"$0.00"}},{"$f":"IFERROR('MMA Rev-Exp Region 2'!$AN$49/'MMA Rev-Exp Region 2'!$AN$9, 0)","v":{"v":0,"d":"$0.00"}},{"$f":"IFERROR('MMA Rev-Exp Region 2'!$AO$49/'MMA Rev-Exp Region 2'!$AO$9, 0)","v":{"v":0,"d":"$0.00"}},{"$f":"IFERROR('MMA Rev-Exp Region 2'!$AP$49/'MMA Rev-Exp Region 2'!$AP$9, 0)","v":{"v":0,"d":"$0.00"}},{"$f":"IFERROR('MMA Rev-Exp Region 2'!$AQ$49/'MMA Rev-Exp Region 2'!$AQ$9, 0)","v":{"v":0,"d":"$0.00"}},{"$f":"IFERROR('MMA Rev-Exp Region 2'!$AR$49/'MMA Rev-Exp Region 2'!$AR$9, 0)","v":{"v":0,"d":"$0.00"}},{"$f":"IFERROR('MMA Rev-Exp Region 2'!$AS$49/'MMA Rev-Exp Region 2'!$AS$9, 0)","v":{"v":0,"d":"$0.00"}},{"$f":"IFERROR('MMA Rev-Exp Region 2'!$AT$49/'MMA Rev-Exp Region 2'!$AT$9, 0)","v":{"v":0,"d":"$0.00"}},{"$f":"IFERROR('MMA Rev-Exp Region 2'!$AU$49/'MMA Rev-Exp Region 2'!$AU$9, 0)","v":{"v":0,"d":"$0.00"}}]
["MMA",null,null,2016,"2016-12-31","Q4","2017-12-31","Region 2","Operating Expense","Medical Benefits Expense","Transportation Services",7.1,"Transportation FFS",{"$f":"IFERROR('MMA Rev-Exp Region 2'!$AK$51/'MMA Rev-Exp Region 2'!$AK$9, 0)","v":{"v":0,"d":"$0.00"}},{"$f":"IFERROR('MMA Rev-Exp Region 2'!$AL$51/'MMA Rev-Exp Region 2'!$AL$9, 0)","v":{"v":0,"d":"$0.00"}},{"$f":"IFERROR('MMA Rev-Exp Region 2'!$AM$51/'MMA Rev-Exp Region 2'!$AM$9, 0)","v":{"v":0,"d":"$0.00"}},{"$f":"IFERROR('MMA Rev-Exp Region 2'!$AN$51/'MMA Rev-Exp Region 2'!$AN$9, 0)","v":{"v":0,"d":"$0.00"}},{"$f":"IFERROR('MMA Rev-Exp Region 2'!$AO$51/'MMA Rev-Exp Region 2'!$AO$9, 0)","v":{"v":0,"d":"$0.00"}},{"$f":"IFERROR('MMA Rev-Exp Region 2'!$AP$51/'MMA Rev-Exp Region 2'!$AP$9, 0)","v":{"v":0,"d":"$0.00"}},{"$f":"IFERROR('MMA Rev-Exp Region 2'!$AQ$51/'MMA Rev-Exp Region 2'!$AQ$9, 0)","v":{"v":0,"d":"$0.00"}},{"$f":"IFERROR('MMA Rev-Exp Region 2'!$AR$51/'MMA Rev-Exp Region 2'!$AR$9, 0)","v":{"v":0,"d":"$0.00"}},{"$f":"IFERROR('MMA Rev-Exp Region 2'!$AS$51/'MMA Rev-Exp Region 2'!$AS$9, 0)","v":{"v":0,"d":"$0.00"}},{"$f":"IFERROR('MMA Rev-Exp Region 2'!$AT$51/'MMA Rev-Exp Region 2'!$AT$9, 0)","v":{"v":0,"d":"$0.00"}},{"$f":"IFERROR('MMA Rev-Exp Region 2'!$AU$51/'MMA Rev-Exp Region 2'!$AU$9, 0)","v":{"v":0,"d":"$0.00"}}]
["MMA",null,null,2016,"2016-12-31","Q4","2017-12-31","Region 2","Operating Expense","Medical Benefits Expense","Transportation Services",7.2,"Transportation Subcapitation",{"$f":"IFERROR('MMA Rev-Exp Region 2'!$AK$52/'MMA Rev-Exp Region 2'!$AK$9, 0)","v":{"v":0,"d":"$0.00"}},{"$f":"IFERROR('MMA Rev-Exp Region 2'!$AL$52/'MMA Rev-Exp Region 2'!$AL$9, 0)","v":{"v":0,"d":"$0.00"}},{"$f":"IFERROR('MMA Rev-Exp Region 2'!$AM$52/'MMA Rev-Exp Region 2'!$AM$9, 0)","v":{"v":0,"d":"$0.00"}},{"$f":"IFERROR('MMA Rev-Exp Region 2'!$AN$52/'MMA Rev-Exp Region 2'!$AN$9, 0)","v":{"v":0,"d":"$0.00"}},{"$f":"IFERROR('MMA Rev-Exp Region 2'!$AO$52/'MMA Rev-Exp Region 2'!$AO$9, 0)","v":{"v":0,"d":"$0.00"}},{"$f":"IFERROR('MMA Rev-Exp Region 2'!$AP$52/'MMA Rev-Exp Region 2'!$AP$9, 0)","v":{"v":0,"d":"$0.00"}},{"$f":"IFERROR('MMA Rev-Exp Region 2'!$AQ$52/'MMA Rev-Exp Region 2'!$AQ$9, 0)","v":{"v":0,"d":"$0.00"}},{"$f":"IFERROR('MMA Rev-Exp Region 2'!$AR$52/'MMA Rev-Exp Region 2'!$AR$9, 0)","v":{"v":0,"d":"$0.00"}},{"$f":"IFERROR('MMA Rev-Exp Region 2'!$AS$52/'MMA Rev-Exp Region 2'!$AS$9, 0)","v":{"v":0,"d":"$0.00"}},{"$f":"IFERROR('MMA Rev-Exp Region 2'!$AT$52/'MMA Rev-Exp Region 2'!$AT$9, 0)","v":{"v":0,"d":"$0.00"}},{"$f":"IFERROR('MMA Rev-Exp Region 2'!$AU$52/'MMA Rev-Exp Region 2'!$AU$9, 0)","v":{"v":0,"d":"$0.00"}}]
["MMA",null,null,2016,"2016-12-31","Q4","2017-12-31","Region 2","Operating Expense","Medical Benefits Expense","Transportation Services",7.3,"Ending IBNP for Transportation",{"$f":"IFERROR('MMA Rev-Exp Region 2'!$AK$53/'MMA Rev-Exp Region 2'!$AK$9, 0)","v":{"v":0,"d":"$0.00"}},{"$f":"IFERROR('MMA Rev-Exp Region 2'!$AL$53/'MMA Rev-Exp Region 2'!$AL$9, 0)","v":{"v":0,"d":"$0.00"}},{"$f":"IFERROR('MMA Rev-Exp Region 2'!$AM$53/'MMA Rev-Exp Region 2'!$AM$9, 0)","v":{"v":0,"d":"$0.00"}},{"$f":"IFERROR('MMA Rev-Exp Region 2'!$AN$53/'MMA Rev-Exp Region 2'!$AN$9, 0)","v":{"v":0,"d":"$0.00"}},{"$f":"IFERROR('MMA Rev-Exp Region 2'!$AO$53/'MMA Rev-Exp Region 2'!$AO$9, 0)","v":{"v":0,"d":"$0.00"}},{"$f":"IFERROR('MMA Rev-Exp Region 2'!$AP$53/'MMA Rev-Exp Region 2'!$AP$9, 0)","v":{"v":0,"d":"$0.00"}},{"$f":"IFERROR('MMA Rev-Exp Region 2'!$AQ$53/'MMA Rev-Exp Region 2'!$AQ$9, 0)","v":{"v":0,"d":"$0.00"}},{"$f":"IFERROR('MMA Rev-Exp Region 2'!$AR$53/'MMA Rev-Exp Region 2'!$AR$9, 0)","v":{"v":0,"d":"$0.00"}},{"$f":"IFERROR('MMA Rev-Exp Region 2'!$AS$53/'MMA Rev-Exp Region 2'!$AS$9, 0)","v":{"v":0,"d":"$0.00"}},{"$f":"IFERROR('MMA Rev-Exp Region 2'!$AT$53/'MMA Rev-Exp Region 2'!$AT$9, 0)","v":{"v":0,"d":"$0.00"}},{"$f":"IFERROR('MMA Rev-Exp Region 2'!$AU$53/'MMA Rev-Exp Region 2'!$AU$9, 0)","v":{"v":0,"d":"$0.00"}}]
["MMA",null,null,2016,"2016-12-31","Q4","2017-12-31","Region 2","Operating Expense","Medical Benefits Expense","Transportation Services","7.4","Transportation Settlements",{"$f":"IFERROR('MMA Rev-Exp Region 2'!$AK$54/'MMA Rev-Exp Region 2'!$AK$9, 0)","v":{"v":0,"d":"$0.00"}},{"$f":"IFERROR('MMA Rev-Exp Region 2'!$AL$54/'MMA Rev-Exp Region 2'!$AL$9, 0)","v":{"v":0,"d":"$0.00"}},{"$f":"IFERROR('MMA Rev-Exp Region 2'!$AM$54/'MMA Rev-Exp Region 2'!$AM$9, 0)","v":{"v":0,"d":"$0.00"}},{"$f":"IFERROR('MMA Rev-Exp Region 2'!$AN$54/'MMA Rev-Exp Region 2'!$AN$9, 0)","v":{"v":0,"d":"$0.00"}},{"$f":"IFERROR('MMA Rev-Exp Region 2'!$AO$54/'MMA Rev-Exp Region 2'!$AO$9, 0)","v":{"v":0,"d":"$0.00"}},{"$f":"IFERROR('MMA Rev-Exp Region 2'!$AP$54/'MMA Rev-Exp Region 2'!$AP$9, 0)","v":{"v":0,"d":"$0.00"}},{"$f":"IFERROR('MMA Rev-Exp Region 2'!$AQ$54/'MMA Rev-Exp Region 2'!$AQ$9, 0)","v":{"v":0,"d":"$0.00"}},{"$f":"IFERROR('MMA Rev-Exp Region 2'!$AR$54/'MMA Rev-Exp Region 2'!$AR$9, 0)","v":{"v":0,"d":"$0.00"}},{"$f":"IFERROR('MMA Rev-Exp Region 2'!$AS$54/'MMA Rev-Exp Region 2'!$AS$9, 0)","v":{"v":0,"d":"$0.00"}},{"$f":"IFERROR('MMA Rev-Exp Region 2'!$AT$54/'MMA Rev-Exp Region 2'!$AT$9, 0)","v":{"v":0,"d":"$0.00"}},{"$f":"IFERROR('MMA Rev-Exp Region 2'!$AU$54/'MMA Rev-Exp Region 2'!$AU$9, 0)","v":{"v":0,"d":"$0.00"}}]
["MMA",null,null,2016,"2016-12-31","Q4","2017-12-31","Region 2","Operating Expense","Medical Benefits Expense","Pharmacy Services",8.1,"Prescription Drugs FFS",{"$f":"IFERROR('MMA Rev-Exp Region 2'!$AK$56/'MMA Rev-Exp Region 2'!$AK$9, 0)","v":{"v":0,"d":"$0.00"}},{"$f":"IFERROR('MMA Rev-Exp Region 2'!$AL$56/'MMA Rev-Exp Region 2'!$AL$9, 0)","v":{"v":0,"d":"$0.00"}},{"$f":"IFERROR('MMA Rev-Exp Region 2'!$AM$56/'MMA Rev-Exp Region 2'!$AM$9, 0)","v":{"v":0,"d":"$0.00"}},{"$f":"IFERROR('MMA Rev-Exp Region 2'!$AN$56/'MMA Rev-Exp Region 2'!$AN$9, 0)","v":{"v":0,"d":"$0.00"}},{"$f":"IFERROR('MMA Rev-Exp Region 2'!$AO$56/'MMA Rev-Exp Region 2'!$AO$9, 0)","v":{"v":0,"d":"$0.00"}},{"$f":"IFERROR('MMA Rev-Exp Region 2'!$AP$56/'MMA Rev-Exp Region 2'!$AP$9, 0)","v":{"v":0,"d":"$0.00"}},{"$f":"IFERROR('MMA Rev-Exp Region 2'!$AQ$56/'MMA Rev-Exp Region 2'!$AQ$9, 0)","v":{"v":0,"d":"$0.00"}},{"$f":"IFERROR('MMA Rev-Exp Region 2'!$AR$56/'MMA Rev-Exp Region 2'!$AR$9, 0)","v":{"v":0,"d":"$0.00"}},{"$f":"IFERROR('MMA Rev-Exp Region 2'!$AS$56/'MMA Rev-Exp Region 2'!$AS$9, 0)","v":{"v":0,"d":"$0.00"}},{"$f":"IFERROR('MMA Rev-Exp Region 2'!$AT$56/'MMA Rev-Exp Region 2'!$AT$9, 0)","v":{"v":0,"d":"$0.00"}},{"$f":"IFERROR('MMA Rev-Exp Region 2'!$AU$56/'MMA Rev-Exp Region 2'!$AU$9, 0)","v":{"v":0,"d":"$0.00"}}]
["MMA",null,null,2016,"2016-12-31","Q4","2017-12-31","Region 2","Operating Expense","Medical Benefits Expense","Pharmacy Services","8.2","Hepatitis C Prescription Drug FFS",{"$f":"IFERROR('MMA Rev-Exp Region 2'!$AK$57/'MMA Rev-Exp Region 2'!$AK$9, 0)","v":{"v":0,"d":"$0.00"}},{"$f":"IFERROR('MMA Rev-Exp Region 2'!$AL$57/'MMA Rev-Exp Region 2'!$AL$9, 0)","v":{"v":0,"d":"$0.00"}},{"$f":"IFERROR('MMA Rev-Exp Region 2'!$AM$57/'MMA Rev-Exp Region 2'!$AM$9, 0)","v":{"v":0,"d":"$0.00"}},{"$f":"IFERROR('MMA Rev-Exp Region 2'!$AN$57/'MMA Rev-Exp Region 2'!$AN$9, 0)","v":{"v":0,"d":"$0.00"}},{"$f":"IFERROR('MMA Rev-Exp Region 2'!$AO$57/'MMA Rev-Exp Region 2'!$AO$9, 0)","v":{"v":0,"d":"$0.00"}},{"$f":"IFERROR('MMA Rev-Exp Region 2'!$AP$57/'MMA Rev-Exp Region 2'!$AP$9, 0)","v":{"v":0,"d":"$0.00"}},{"$f":"IFERROR('MMA Rev-Exp Region 2'!$AQ$57/'MMA Rev-Exp Region 2'!$AQ$9, 0)","v":{"v":0,"d":"$0.00"}},{"$f":"IFERROR('MMA Rev-Exp Region 2'!$AR$57/'MMA Rev-Exp Region 2'!$AR$9, 0)","v":{"v":0,"d":"$0.00"}},{"$f":"IFERROR('MMA Rev-Exp Region 2'!$AS$57/'MMA Rev-Exp Region 2'!$AS$9, 0)","v":{"v":0,"d":"$0.00"}},{"$f":"IFERROR('MMA Rev-Exp Region 2'!$AT$57/'MMA Rev-Exp Region 2'!$AT$9, 0)","v":{"v":0,"d":"$0.00"}},{"$f":"IFERROR('MMA Rev-Exp Region 2'!$AU$57/'MMA Rev-Exp Region 2'!$AU$9, 0)","v":{"v":0,"d":"$0.00"}}]
["MMA",null,null,2016,"2016-12-31","Q4","2017-12-31","Region 2","Operating Expense","Medical Benefits Expense","Pharmacy Services","8.3","Ending IBNP for Prescription Drugs",{"$f":"IFERROR('MMA Rev-Exp Region 2'!$AK$58/'MMA Rev-Exp Region 2'!$AK$9, 0)","v":{"v":0,"d":"$0.00"}},{"$f":"IFERROR('MMA Rev-Exp Region 2'!$AL$58/'MMA Rev-Exp Region 2'!$AL$9, 0)","v":{"v":0,"d":"$0.00"}},{"$f":"IFERROR('MMA Rev-Exp Region 2'!$AM$58/'MMA Rev-Exp Region 2'!$AM$9, 0)","v":{"v":0,"d":"$0.00"}},{"$f":"IFERROR('MMA Rev-Exp Region 2'!$AN$58/'MMA Rev-Exp Region 2'!$AN$9, 0)","v":{"v":0,"d":"$0.00"}},{"$f":"IFERROR('MMA Rev-Exp Region 2'!$AO$58/'MMA Rev-Exp Region 2'!$AO$9, 0)","v":{"v":0,"d":"$0.00"}},{"$f":"IFERROR('MMA Rev-Exp Region 2'!$AP$58/'MMA Rev-Exp Region 2'!$AP$9, 0)","v":{"v":0,"d":"$0.00"}},{"$f":"IFERROR('MMA Rev-Exp Region 2'!$AQ$58/'MMA Rev-Exp Region 2'!$AQ$9, 0)","v":{"v":0,"d":"$0.00"}},{"$f":"IFERROR('MMA Rev-Exp Region 2'!$AR$58/'MMA Rev-Exp Region 2'!$AR$9, 0)","v":{"v":0,"d":"$0.00"}},{"$f":"IFERROR('MMA Rev-Exp Region 2'!$AS$58/'MMA Rev-Exp Region 2'!$AS$9, 0)","v":{"v":0,"d":"$0.00"}},{"$f":"IFERROR('MMA Rev-Exp Region 2'!$AT$58/'MMA Rev-Exp Region 2'!$AT$9, 0)","v":{"v":0,"d":"$0.00"}},{"$f":"IFERROR('MMA Rev-Exp Region 2'!$AU$58/'MMA Rev-Exp Region 2'!$AU$9, 0)","v":{"v":0,"d":"$0.00"}}]
["MMA",null,null,2016,"2016-12-31","Q4","2017-12-31","Region 2","Operating Expense","Medical Benefits Expense","Pharmacy Services","8.4","Prescription Drug Rebates ",{"$f":"IFERROR('MMA Rev-Exp Region 2'!$AK$59/'MMA Rev-Exp Region 2'!$AK$9, 0)","v":{"v":0,"d":"$0.00"}},{"$f":"IFERROR('MMA Rev-Exp Region 2'!$AL$59/'MMA Rev-Exp Region 2'!$AL$9, 0)","v":{"v":0,"d":"$0.00"}},{"$f":"IFERROR('MMA Rev-Exp Region 2'!$AM$59/'MMA Rev-Exp Region 2'!$AM$9, 0)","v":{"v":0,"d":"$0.00"}},{"$f":"IFERROR('MMA Rev-Exp Region 2'!$AN$59/'MMA Rev-Exp Region 2'!$AN$9, 0)","v":{"v":0,"d":"$0.00"}},{"$f":"IFERROR('MMA Rev-Exp Region 2'!$AO$59/'MMA Rev-Exp Region 2'!$AO$9, 0)","v":{"v":0,"d":"$0.00"}},{"$f":"IFERROR('MMA Rev-Exp Region 2'!$AP$59/'MMA Rev-Exp Region 2'!$AP$9, 0)","v":{"v":0,"d":"$0.00"}},{"$f":"IFERROR('MMA Rev-Exp Region 2'!$AQ$59/'MMA Rev-Exp Region 2'!$AQ$9, 0)","v":{"v":0,"d":"$0.00"}},{"$f":"IFERROR('MMA Rev-Exp Region 2'!$AR$59/'MMA Rev-Exp Region 2'!$AR$9, 0)","v":{"v":0,"d":"$0.00"}},{"$f":"IFERROR('MMA Rev-Exp Region 2'!$AS$59/'MMA Rev-Exp Region 2'!$AS$9, 0)","v":{"v":0,"d":"$0.00"}},{"$f":"IFERROR('MMA Rev-Exp Region 2'!$AT$59/'MMA Rev-Exp Region 2'!$AT$9, 0)","v":{"v":0,"d":"$0.00"}},{"$f":"IFERROR('MMA Rev-Exp Region 2'!$AU$59/'MMA Rev-Exp Region 2'!$AU$9, 0)","v":{"v":0,"d":"$0.00"}}]
["MMA",null,null,2016,"2016-12-31","Q4","2017-12-31","Region 2","Operating Expense","Medical Benefits Expense","Pharmacy Services","8.5","Ending accrual for Rebates receivable",{"$f":"IFERROR('MMA Rev-Exp Region 2'!$AK$60/'MMA Rev-Exp Region 2'!$AK$9, 0)","v":{"v":0,"d":"$0.00"}},{"$f":"IFERROR('MMA Rev-Exp Region 2'!$AL$60/'MMA Rev-Exp Region 2'!$AL$9, 0)","v":{"v":0,"d":"$0.00"}},{"$f":"IFERROR('MMA Rev-Exp Region 2'!$AM$60/'MMA Rev-Exp Region 2'!$AM$9, 0)","v":{"v":0,"d":"$0.00"}},{"$f":"IFERROR('MMA Rev-Exp Region 2'!$AN$60/'MMA Rev-Exp Region 2'!$AN$9, 0)","v":{"v":0,"d":"$0.00"}},{"$f":"IFERROR('MMA Rev-Exp Region 2'!$AO$60/'MMA Rev-Exp Region 2'!$AO$9, 0)","v":{"v":0,"d":"$0.00"}},{"$f":"IFERROR('MMA Rev-Exp Region 2'!$AP$60/'MMA Rev-Exp Region 2'!$AP$9, 0)","v":{"v":0,"d":"$0.00"}},{"$f":"IFERROR('MMA Rev-Exp Region 2'!$AQ$60/'MMA Rev-Exp Region 2'!$AQ$9, 0)","v":{"v":0,"d":"$0.00"}},{"$f":"IFERROR('MMA Rev-Exp Region 2'!$AR$60/'MMA Rev-Exp Region 2'!$AR$9, 0)","v":{"v":0,"d":"$0.00"}},{"$f":"IFERROR('MMA Rev-Exp Region 2'!$AS$60/'MMA Rev-Exp Region 2'!$AS$9, 0)","v":{"v":0,"d":"$0.00"}},{"$f":"IFERROR('MMA Rev-Exp Region 2'!$AT$60/'MMA Rev-Exp Region 2'!$AT$9, 0)","v":{"v":0,"d":"$0.00"}},{"$f":"IFERROR('MMA Rev-Exp Region 2'!$AU$60/'MMA Rev-Exp Region 2'!$AU$9, 0)","v":{"v":0,"d":"$0.00"}}]
["MMA",null,null,2016,"2016-12-31","Q4","2017-12-31","Region 2","Operating Expense","Medical Benefits Expense","Pharmacy Services","8.6","Prescription Drugs Subcapitation",{"$f":"IFERROR('MMA Rev-Exp Region 2'!$AK$61/'MMA Rev-Exp Region 2'!$AK$9, 0)","v":{"v":0,"d":"$0.00"}},{"$f":"IFERROR('MMA Rev-Exp Region 2'!$AL$61/'MMA Rev-Exp Region 2'!$AL$9, 0)","v":{"v":0,"d":"$0.00"}},{"$f":"IFERROR('MMA Rev-Exp Region 2'!$AM$61/'MMA Rev-Exp Region 2'!$AM$9, 0)","v":{"v":0,"d":"$0.00"}},{"$f":"IFERROR('MMA Rev-Exp Region 2'!$AN$61/'MMA Rev-Exp Region 2'!$AN$9, 0)","v":{"v":0,"d":"$0.00"}},{"$f":"IFERROR('MMA Rev-Exp Region 2'!$AO$61/'MMA Rev-Exp Region 2'!$AO$9, 0)","v":{"v":0,"d":"$0.00"}},{"$f":"IFERROR('MMA Rev-Exp Region 2'!$AP$61/'MMA Rev-Exp Region 2'!$AP$9, 0)","v":{"v":0,"d":"$0.00"}},{"$f":"IFERROR('MMA Rev-Exp Region 2'!$AQ$61/'MMA Rev-Exp Region 2'!$AQ$9, 0)","v":{"v":0,"d":"$0.00"}},{"$f":"IFERROR('MMA Rev-Exp Region 2'!$AR$61/'MMA Rev-Exp Region 2'!$AR$9, 0)","v":{"v":0,"d":"$0.00"}},{"$f":"IFERROR('MMA Rev-Exp Region 2'!$AS$61/'MMA Rev-Exp Region 2'!$AS$9, 0)","v":{"v":0,"d":"$0.00"}},{"$f":"IFERROR('MMA Rev-Exp Region 2'!$AT$61/'MMA Rev-Exp Region 2'!$AT$9, 0)","v":{"v":0,"d":"$0.00"}},{"$f":"IFERROR('MMA Rev-Exp Region 2'!$AU$61/'MMA Rev-Exp Region 2'!$AU$9, 0)","v":{"v":0,"d":"$0.00"}}]
["MMA",null,null,2016,"2016-12-31","Q4","2017-12-31","Region 2","Operating Expense","Medical Benefits Expense","Pharmacy Services","8.7","Prescription Drug Settlements",{"$f":"IFERROR('MMA Rev-Exp Region 2'!$AK$62/'MMA Rev-Exp Region 2'!$AK$9, 0)","v":{"v":0,"d":"$0.00"}},{"$f":"IFERROR('MMA Rev-Exp Region 2'!$AL$62/'MMA Rev-Exp Region 2'!$AL$9, 0)","v":{"v":0,"d":"$0.00"}},{"$f":"IFERROR('MMA Rev-Exp Region 2'!$AM$62/'MMA Rev-Exp Region 2'!$AM$9, 0)","v":{"v":0,"d":"$0.00"}},{"$f":"IFERROR('MMA Rev-Exp Region 2'!$AN$62/'MMA Rev-Exp Region 2'!$AN$9, 0)","v":{"v":0,"d":"$0.00"}},{"$f":"IFERROR('MMA Rev-Exp Region 2'!$AO$62/'MMA Rev-Exp Region 2'!$AO$9, 0)","v":{"v":0,"d":"$0.00"}},{"$f":"IFERROR('MMA Rev-Exp Region 2'!$AP$62/'MMA Rev-Exp Region 2'!$AP$9, 0)","v":{"v":0,"d":"$0.00"}},{"$f":"IFERROR('MMA Rev-Exp Region 2'!$AQ$62/'MMA Rev-Exp Region 2'!$AQ$9, 0)","v":{"v":0,"d":"$0.00"}},{"$f":"IFERROR('MMA Rev-Exp Region 2'!$AR$62/'MMA Rev-Exp Region 2'!$AR$9, 0)","v":{"v":0,"d":"$0.00"}},{"$f":"IFERROR('MMA Rev-Exp Region 2'!$AS$62/'MMA Rev-Exp Region 2'!$AS$9, 0)","v":{"v":0,"d":"$0.00"}},{"$f":"IFERROR('MMA Rev-Exp Region 2'!$AT$62/'MMA Rev-Exp Region 2'!$AT$9, 0)","v":{"v":0,"d":"$0.00"}},{"$f":"IFERROR('MMA Rev-Exp Region 2'!$AU$62/'MMA Rev-Exp Region 2'!$AU$9, 0)","v":{"v":0,"d":"$0.00"}}]
["MMA",null,null,2016,"2016-12-31","Q4","2017-12-31","Region 2","Operating Expense","Medical Benefits Expense","Other MMA Services",9.1,"Home Health, Private Duty Nursing, Personal Care FFS",{"$f":"IFERROR('MMA Rev-Exp Region 2'!$AK$64/'MMA Rev-Exp Region 2'!$AK$9, 0)","v":{"v":0,"d":"$0.00"}},{"$f":"IFERROR('MMA Rev-Exp Region 2'!$AL$64/'MMA Rev-Exp Region 2'!$AL$9, 0)","v":{"v":0,"d":"$0.00"}},{"$f":"IFERROR('MMA Rev-Exp Region 2'!$AM$64/'MMA Rev-Exp Region 2'!$AM$9, 0)","v":{"v":0,"d":"$0.00"}},{"$f":"IFERROR('MMA Rev-Exp Region 2'!$AN$64/'MMA Rev-Exp Region 2'!$AN$9, 0)","v":{"v":0,"d":"$0.00"}},{"$f":"IFERROR('MMA Rev-Exp Region 2'!$AO$64/'MMA Rev-Exp Region 2'!$AO$9, 0)","v":{"v":0,"d":"$0.00"}},{"$f":"IFERROR('MMA Rev-Exp Region 2'!$AP$64/'MMA Rev-Exp Region 2'!$AP$9, 0)","v":{"v":0,"d":"$0.00"}},{"$f":"IFERROR('MMA Rev-Exp Region 2'!$AQ$64/'MMA Rev-Exp Region 2'!$AQ$9, 0)","v":{"v":0,"d":"$0.00"}},{"$f":"IFERROR('MMA Rev-Exp Region 2'!$AR$64/'MMA Rev-Exp Region 2'!$AR$9, 0)","v":{"v":0,"d":"$0.00"}},{"$f":"IFERROR('MMA Rev-Exp Region 2'!$AS$64/'MMA Rev-Exp Region 2'!$AS$9, 0)","v":{"v":0,"d":"$0.00"}},{"$f":"IFERROR('MMA Rev-Exp Region 2'!$AT$64/'MMA Rev-Exp Region 2'!$AT$9, 0)","v":{"v":0,"d":"$0.00"}},{"$f":"IFERROR('MMA Rev-Exp Region 2'!$AU$64/'MMA Rev-Exp Region 2'!$AU$9, 0)","v":{"v":0,"d":"$0.00"}}]
["MMA",null,null,2016,"2016-12-31","Q4","2017-12-31","Region 2","Operating Expense","Medical Benefits Expense","Other MMA Services","9.2","Hospice FFS",{"$f":"IFERROR('MMA Rev-Exp Region 2'!$AK$65/'MMA Rev-Exp Region 2'!$AK$9, 0)","v":{"v":0,"d":"$0.00"}},{"$f":"IFERROR('MMA Rev-Exp Region 2'!$AL$65/'MMA Rev-Exp Region 2'!$AL$9, 0)","v":{"v":0,"d":"$0.00"}},{"$f":"IFERROR('MMA Rev-Exp Region 2'!$AM$65/'MMA Rev-Exp Region 2'!$AM$9, 0)","v":{"v":0,"d":"$0.00"}},{"$f":"IFERROR('MMA Rev-Exp Region 2'!$AN$65/'MMA Rev-Exp Region 2'!$AN$9, 0)","v":{"v":0,"d":"$0.00"}},{"$f":"IFERROR('MMA Rev-Exp Region 2'!$AO$65/'MMA Rev-Exp Region 2'!$AO$9, 0)","v":{"v":0,"d":"$0.00"}},{"$f":"IFERROR('MMA Rev-Exp Region 2'!$AP$65/'MMA Rev-Exp Region 2'!$AP$9, 0)","v":{"v":0,"d":"$0.00"}},{"$f":"IFERROR('MMA Rev-Exp Region 2'!$AQ$65/'MMA Rev-Exp Region 2'!$AQ$9, 0)","v":{"v":0,"d":"$0.00"}},{"$f":"IFERROR('MMA Rev-Exp Region 2'!$AR$65/'MMA Rev-Exp Region 2'!$AR$9, 0)","v":{"v":0,"d":"$0.00"}},{"$f":"IFERROR('MMA Rev-Exp Region 2'!$AS$65/'MMA Rev-Exp Region 2'!$AS$9, 0)","v":{"v":0,"d":"$0.00"}},{"$f":"IFERROR('MMA Rev-Exp Region 2'!$AT$65/'MMA Rev-Exp Region 2'!$AT$9, 0)","v":{"v":0,"d":"$0.00"}},{"$f":"IFERROR('MMA Rev-Exp Region 2'!$AU$65/'MMA Rev-Exp Region 2'!$AU$9, 0)","v":{"v":0,"d":"$0.00"}}]
["MMA",null,null,2016,"2016-12-31","Q4","2017-12-31","Region 2","Operating Expense","Medical Benefits Expense","Other MMA Services","9.3","DME FFS",{"$f":"IFERROR('MMA Rev-Exp Region 2'!$AK$66/'MMA Rev-Exp Region 2'!$AK$9, 0)","v":{"v":0,"d":"$0.00"}},{"$f":"IFERROR('MMA Rev-Exp Region 2'!$AL$66/'MMA Rev-Exp Region 2'!$AL$9, 0)","v":{"v":0,"d":"$0.00"}},{"$f":"IFERROR('MMA Rev-Exp Region 2'!$AM$66/'MMA Rev-Exp Region 2'!$AM$9, 0)","v":{"v":0,"d":"$0.00"}},{"$f":"IFERROR('MMA Rev-Exp Region 2'!$AN$66/'MMA Rev-Exp Region 2'!$AN$9, 0)","v":{"v":0,"d":"$0.00"}},{"$f":"IFERROR('MMA Rev-Exp Region 2'!$AO$66/'MMA Rev-Exp Region 2'!$AO$9, 0)","v":{"v":0,"d":"$0.00"}},{"$f":"IFERROR('MMA Rev-Exp Region 2'!$AP$66/'MMA Rev-Exp Region 2'!$AP$9, 0)","v":{"v":0,"d":"$0.00"}},{"$f":"IFERROR('MMA Rev-Exp Region 2'!$AQ$66/'MMA Rev-Exp Region 2'!$AQ$9, 0)","v":{"v":0,"d":"$0.00"}},{"$f":"IFERROR('MMA Rev-Exp Region 2'!$AR$66/'MMA Rev-Exp Region 2'!$AR$9, 0)","v":{"v":0,"d":"$0.00"}},{"$f":"IFERROR('MMA Rev-Exp Region 2'!$AS$66/'MMA Rev-Exp Region 2'!$AS$9, 0)","v":{"v":0,"d":"$0.00"}},{"$f":"IFERROR('MMA Rev-Exp Region 2'!$AT$66/'MMA Rev-Exp Region 2'!$AT$9, 0)","v":{"v":0,"d":"$0.00"}},{"$f":"IFERROR('MMA Rev-Exp Region 2'!$AU$66/'MMA Rev-Exp Region 2'!$AU$9, 0)","v":{"v":0,"d":"$0.00"}}]
["MMA",null,null,2016,"2016-12-31","Q4","2017-12-31","Region 2","Operating Expense","Medical Benefits Expense","Other MMA Services","9.4","Other State Plan Services FFS",{"$f":"IFERROR('MMA Rev-Exp Region 2'!$AK$67/'MMA Rev-Exp Region 2'!$AK$9, 0)","v":{"v":0,"d":"$0.00"}},{"$f":"IFERROR('MMA Rev-Exp Region 2'!$AL$67/'MMA Rev-Exp Region 2'!$AL$9, 0)","v":{"v":0,"d":"$0.00"}},{"$f":"IFERROR('MMA Rev-Exp Region 2'!$AM$67/'MMA Rev-Exp Region 2'!$AM$9, 0)","v":{"v":0,"d":"$0.00"}},{"$f":"IFERROR('MMA Rev-Exp Region 2'!$AN$67/'MMA Rev-Exp Region 2'!$AN$9, 0)","v":{"v":0,"d":"$0.00"}},{"$f":"IFERROR('MMA Rev-Exp Region 2'!$AO$67/'MMA Rev-Exp Region 2'!$AO$9, 0)","v":{"v":0,"d":"$0.00"}},{"$f":"IFERROR('MMA Rev-Exp Region 2'!$AP$67/'MMA Rev-Exp Region 2'!$AP$9, 0)","v":{"v":0,"d":"$0.00"}},{"$f":"IFERROR('MMA Rev-Exp Region 2'!$AQ$67/'MMA Rev-Exp Region 2'!$AQ$9, 0)","v":{"v":0,"d":"$0.00"}},{"$f":"IFERROR('MMA Rev-Exp Region 2'!$AR$67/'MMA Rev-Exp Region 2'!$AR$9, 0)","v":{"v":0,"d":"$0.00"}},{"$f":"IFERROR('MMA Rev-Exp Region 2'!$AS$67/'MMA Rev-Exp Region 2'!$AS$9, 0)","v":{"v":0,"d":"$0.00"}},{"$f":"IFERROR('MMA Rev-Exp Region 2'!$AT$67/'MMA Rev-Exp Region 2'!$AT$9, 0)","v":{"v":0,"d":"$0.00"}},{"$f":"IFERROR('MMA Rev-Exp Region 2'!$AU$67/'MMA Rev-Exp Region 2'!$AU$9, 0)","v":{"v":0,"d":"$0.00"}}]
["MMA",null,null,2016,"2016-12-31","Q4","2017-12-31","Region 2","Operating Expense","Medical Benefits Expense","Other MMA Services","9.5","Other Services Subcapitation",{"$f":"IFERROR('MMA Rev-Exp Region 2'!$AK$68/'MMA Rev-Exp Region 2'!$AK$9, 0)","v":{"v":0,"d":"$0.00"}},{"$f":"IFERROR('MMA Rev-Exp Region 2'!$AL$68/'MMA Rev-Exp Region 2'!$AL$9, 0)","v":{"v":0,"d":"$0.00"}},{"$f":"IFERROR('MMA Rev-Exp Region 2'!$AM$68/'MMA Rev-Exp Region 2'!$AM$9, 0)","v":{"v":0,"d":"$0.00"}},{"$f":"IFERROR('MMA Rev-Exp Region 2'!$AN$68/'MMA Rev-Exp Region 2'!$AN$9, 0)","v":{"v":0,"d":"$0.00"}},{"$f":"IFERROR('MMA Rev-Exp Region 2'!$AO$68/'MMA Rev-Exp Region 2'!$AO$9, 0)","v":{"v":0,"d":"$0.00"}},{"$f":"IFERROR('MMA Rev-Exp Region 2'!$AP$68/'MMA Rev-Exp Region 2'!$AP$9, 0)","v":{"v":0,"d":"$0.00"}},{"$f":"IFERROR('MMA Rev-Exp Region 2'!$AQ$68/'MMA Rev-Exp Region 2'!$AQ$9, 0)","v":{"v":0,"d":"$0.00"}},{"$f":"IFERROR('MMA Rev-Exp Region 2'!$AR$68/'MMA Rev-Exp Region 2'!$AR$9, 0)","v":{"v":0,"d":"$0.00"}},{"$f":"IFERROR('MMA Rev-Exp Region 2'!$AS$68/'MMA Rev-Exp Region 2'!$AS$9, 0)","v":{"v":0,"d":"$0.00"}},{"$f":"IFERROR('MMA Rev-Exp Region 2'!$AT$68/'MMA Rev-Exp Region 2'!$AT$9, 0)","v":{"v":0,"d":"$0.00"}},{"$f":"IFERROR('MMA Rev-Exp Region 2'!$AU$68/'MMA Rev-Exp Region 2'!$AU$9, 0)","v":{"v":0,"d":"$0.00"}}]
["MMA",null,null,2016,"2016-12-31","Q4","2017-12-31","Region 2","Operating Expense","Medical Benefits Expense","Other MMA Services","9.6","Ending IBNP for Other Services",{"$f":"IFERROR('MMA Rev-Exp Region 2'!$AK$69/'MMA Rev-Exp Region 2'!$AK$9, 0)","v":{"v":0,"d":"$0.00"}},{"$f":"IFERROR('MMA Rev-Exp Region 2'!$AL$69/'MMA Rev-Exp Region 2'!$AL$9, 0)","v":{"v":0,"d":"$0.00"}},{"$f":"IFERROR('MMA Rev-Exp Region 2'!$AM$69/'MMA Rev-Exp Region 2'!$AM$9, 0)","v":{"v":0,"d":"$0.00"}},{"$f":"IFERROR('MMA Rev-Exp Region 2'!$AN$69/'MMA Rev-Exp Region 2'!$AN$9, 0)","v":{"v":0,"d":"$0.00"}},{"$f":"IFERROR('MMA Rev-Exp Region 2'!$AO$69/'MMA Rev-Exp Region 2'!$AO$9, 0)","v":{"v":0,"d":"$0.00"}},{"$f":"IFERROR('MMA Rev-Exp Region 2'!$AP$69/'MMA Rev-Exp Region 2'!$AP$9, 0)","v":{"v":0,"d":"$0.00"}},{"$f":"IFERROR('MMA Rev-Exp Region 2'!$AQ$69/'MMA Rev-Exp Region 2'!$AQ$9, 0)","v":{"v":0,"d":"$0.00"}},{"$f":"IFERROR('MMA Rev-Exp Region 2'!$AR$69/'MMA Rev-Exp Region 2'!$AR$9, 0)","v":{"v":0,"d":"$0.00"}},{"$f":"IFERROR('MMA Rev-Exp Region 2'!$AS$69/'MMA Rev-Exp Region 2'!$AS$9, 0)","v":{"v":0,"d":"$0.00"}},{"$f":"IFERROR('MMA Rev-Exp Region 2'!$AT$69/'MMA Rev-Exp Region 2'!$AT$9, 0)","v":{"v":0,"d":"$0.00"}},{"$f":"IFERROR('MMA Rev-Exp Region 2'!$AU$69/'MMA Rev-Exp Region 2'!$AU$9, 0)","v":{"v":0,"d":"$0.00"}}]
["MMA",null,null,2016,"2016-12-31","Q4","2017-12-31","Region 2","Operating Expense","Medical Benefits Expense","Other MMA Services","9.7","Other Services Settlements",{"$f":"IFERROR('MMA Rev-Exp Region 2'!$AK$70/'MMA Rev-Exp Region 2'!$AK$9, 0)","v":{"v":0,"d":"$0.00"}},{"$f":"IFERROR('MMA Rev-Exp Region 2'!$AL$70/'MMA Rev-Exp Region 2'!$AL$9, 0)","v":{"v":0,"d":"$0.00"}},{"$f":"IFERROR('MMA Rev-Exp Region 2'!$AM$70/'MMA Rev-Exp Region 2'!$AM$9, 0)","v":{"v":0,"d":"$0.00"}},{"$f":"IFERROR('MMA Rev-Exp Region 2'!$AN$70/'MMA Rev-Exp Region 2'!$AN$9, 0)","v":{"v":0,"d":"$0.00"}},{"$f":"IFERROR('MMA Rev-Exp Region 2'!$AO$70/'MMA Rev-Exp Region 2'!$AO$9, 0)","v":{"v":0,"d":"$0.00"}},{"$f":"IFERROR('MMA Rev-Exp Region 2'!$AP$70/'MMA Rev-Exp Region 2'!$AP$9, 0)","v":{"v":0,"d":"$0.00"}},{"$f":"IFERROR('MMA Rev-Exp Region 2'!$AQ$70/'MMA Rev-Exp Region 2'!$AQ$9, 0)","v":{"v":0,"d":"$0.00"}},{"$f":"IFERROR('MMA Rev-Exp Region 2'!$AR$70/'MMA Rev-Exp Region 2'!$AR$9, 0)","v":{"v":0,"d":"$0.00"}},{"$f":"IFERROR('MMA Rev-Exp Region 2'!$AS$70/'MMA Rev-Exp Region 2'!$AS$9, 0)","v":{"v":0,"d":"$0.00"}},{"$f":"IFERROR('MMA Rev-Exp Region 2'!$AT$70/'MMA Rev-Exp Region 2'!$AT$9, 0)","v":{"v":0,"d":"$0.00"}},{"$f":"IFERROR('MMA Rev-Exp Region 2'!$AU$70/'MMA Rev-Exp Region 2'!$AU$9, 0)","v":{"v":0,"d":"$0.00"}}]
["MMA",null,null,2016,"2016-12-31","Q4","2017-12-31","Region 2","Operating Expense","Medical Benefits Expense","Expanded Benefits","10.1","Expanded Benefits FFS",{"$f":"IFERROR('MMA Rev-Exp Region 2'!$AK$72/'MMA Rev-Exp Region 2'!$AK$9, 0)","v":{"v":0,"d":"$0.00"}},{"$f":"IFERROR('MMA Rev-Exp Region 2'!$AL$72/'MMA Rev-Exp Region 2'!$AL$9, 0)","v":{"v":0,"d":"$0.00"}},{"$f":"IFERROR('MMA Rev-Exp Region 2'!$AM$72/'MMA Rev-Exp Region 2'!$AM$9, 0)","v":{"v":0,"d":"$0.00"}},{"$f":"IFERROR('MMA Rev-Exp Region 2'!$AN$72/'MMA Rev-Exp Region 2'!$AN$9, 0)","v":{"v":0,"d":"$0.00"}},{"$f":"IFERROR('MMA Rev-Exp Region 2'!$AO$72/'MMA Rev-Exp Region 2'!$AO$9, 0)","v":{"v":0,"d":"$0.00"}},{"$f":"IFERROR('MMA Rev-Exp Region 2'!$AP$72/'MMA Rev-Exp Region 2'!$AP$9, 0)","v":{"v":0,"d":"$0.00"}},{"$f":"IFERROR('MMA Rev-Exp Region 2'!$AQ$72/'MMA Rev-Exp Region 2'!$AQ$9, 0)","v":{"v":0,"d":"$0.00"}},{"$f":"IFERROR('MMA Rev-Exp Region 2'!$AR$72/'MMA Rev-Exp Region 2'!$AR$9, 0)","v":{"v":0,"d":"$0.00"}},{"$f":"IFERROR('MMA Rev-Exp Region 2'!$AS$72/'MMA Rev-Exp Region 2'!$AS$9, 0)","v":{"v":0,"d":"$0.00"}},{"$f":"IFERROR('MMA Rev-Exp Region 2'!$AT$72/'MMA Rev-Exp Region 2'!$AT$9, 0)","v":{"v":0,"d":"$0.00"}},{"$f":"IFERROR('MMA Rev-Exp Region 2'!$AU$72/'MMA Rev-Exp Region 2'!$AU$9, 0)","v":{"v":0,"d":"$0.00"}}]
["MMA",null,null,2016,"2016-12-31","Q4","2017-12-31","Region 2","Operating Expense","Medical Benefits Expense","Expanded Benefits","10.2","Expanded benefits Subcapitation",{"$f":"IFERROR('MMA Rev-Exp Region 2'!$AK$73/'MMA Rev-Exp Region 2'!$AK$9, 0)","v":{"v":0,"d":"$0.00"}},{"$f":"IFERROR('MMA Rev-Exp Region 2'!$AL$73/'MMA Rev-Exp Region 2'!$AL$9, 0)","v":{"v":0,"d":"$0.00"}},{"$f":"IFERROR('MMA Rev-Exp Region 2'!$AM$73/'MMA Rev-Exp Region 2'!$AM$9, 0)","v":{"v":0,"d":"$0.00"}},{"$f":"IFERROR('MMA Rev-Exp Region 2'!$AN$73/'MMA Rev-Exp Region 2'!$AN$9, 0)","v":{"v":0,"d":"$0.00"}},{"$f":"IFERROR('MMA Rev-Exp Region 2'!$AO$73/'MMA Rev-Exp Region 2'!$AO$9, 0)","v":{"v":0,"d":"$0.00"}},{"$f":"IFERROR('MMA Rev-Exp Region 2'!$AP$73/'MMA Rev-Exp Region 2'!$AP$9, 0)","v":{"v":0,"d":"$0.00"}},{"$f":"IFERROR('MMA Rev-Exp Region 2'!$AQ$73/'MMA Rev-Exp Region 2'!$AQ$9, 0)","v":{"v":0,"d":"$0.00"}},{"$f":"IFERROR('MMA Rev-Exp Region 2'!$AR$73/'MMA Rev-Exp Region 2'!$AR$9, 0)","v":{"v":0,"d":"$0.00"}},{"$f":"IFERROR('MMA Rev-Exp Region 2'!$AS$73/'MMA Rev-Exp Region 2'!$AS$9, 0)","v":{"v":0,"d":"$0.00"}},{"$f":"IFERROR('MMA Rev-Exp Region 2'!$AT$73/'MMA Rev-Exp Region 2'!$AT$9, 0)","v":{"v":0,"d":"$0.00"}},{"$f":"IFERROR('MMA Rev-Exp Region 2'!$AU$73/'MMA Rev-Exp Region 2'!$AU$9, 0)","v":{"v":0,"d":"$0.00"}}]
["MMA",null,null,2016,"2016-12-31","Q4","2017-12-31","Region 2","Operating Expense","Medical Benefits Expense","Expanded Benefits","10.3","Ending IBNP for Expanded Benefits",{"$f":"IFERROR('MMA Rev-Exp Region 2'!$AK$74/'MMA Rev-Exp Region 2'!$AK$9, 0)","v":{"v":0,"d":"$0.00"}},{"$f":"IFERROR('MMA Rev-Exp Region 2'!$AL$74/'MMA Rev-Exp Region 2'!$AL$9, 0)","v":{"v":0,"d":"$0.00"}},{"$f":"IFERROR('MMA Rev-Exp Region 2'!$AM$74/'MMA Rev-Exp Region 2'!$AM$9, 0)","v":{"v":0,"d":"$0.00"}},{"$f":"IFERROR('MMA Rev-Exp Region 2'!$AN$74/'MMA Rev-Exp Region 2'!$AN$9, 0)","v":{"v":0,"d":"$0.00"}},{"$f":"IFERROR('MMA Rev-Exp Region 2'!$AO$74/'MMA Rev-Exp Region 2'!$AO$9, 0)","v":{"v":0,"d":"$0.00"}},{"$f":"IFERROR('MMA Rev-Exp Region 2'!$AP$74/'MMA Rev-Exp Region 2'!$AP$9, 0)","v":{"v":0,"d":"$0.00"}},{"$f":"IFERROR('MMA Rev-Exp Region 2'!$AQ$74/'MMA Rev-Exp Region 2'!$AQ$9, 0)","v":{"v":0,"d":"$0.00"}},{"$f":"IFERROR('MMA Rev-Exp Region 2'!$AR$74/'MMA Rev-Exp Region 2'!$AR$9, 0)","v":{"v":0,"d":"$0.00"}},{"$f":"IFERROR('MMA Rev-Exp Region 2'!$AS$74/'MMA Rev-Exp Region 2'!$AS$9, 0)","v":{"v":0,"d":"$0.00"}},{"$f":"IFERROR('MMA Rev-Exp Region 2'!$AT$74/'MMA Rev-Exp Region 2'!$AT$9, 0)","v":{"v":0,"d":"$0.00"}},{"$f":"IFERROR('MMA Rev-Exp Region 2'!$AU$74/'MMA Rev-Exp Region 2'!$AU$9, 0)","v":{"v":0,"d":"$0.00"}}]
["MMA",null,null,2016,"2016-12-31","Q4","2017-12-31","Region 2","Operating Expense","Medical Benefits Expense","Expanded Benefits","10.4","Expanded Benefits Settlements",{"$f":"IFERROR('MMA Rev-Exp Region 2'!$AK$75/'MMA Rev-Exp Region 2'!$AK$9, 0)","v":{"v":0,"d":"$0.00"}},{"$f":"IFERROR('MMA Rev-Exp Region 2'!$AL$75/'MMA Rev-Exp Region 2'!$AL$9, 0)","v":{"v":0,"d":"$0.00"}},{"$f":"IFERROR('MMA Rev-Exp Region 2'!$AM$75/'MMA Rev-Exp Region 2'!$AM$9, 0)","v":{"v":0,"d":"$0.00"}},{"$f":"IFERROR('MMA Rev-Exp Region 2'!$AN$75/'MMA Rev-Exp Region 2'!$AN$9, 0)","v":{"v":0,"d":"$0.00"}},{"$f":"IFERROR('MMA Rev-Exp Region 2'!$AO$75/'MMA Rev-Exp Region 2'!$AO$9, 0)","v":{"v":0,"d":"$0.00"}},{"$f":"IFERROR('MMA Rev-Exp Region 2'!$AP$75/'MMA Rev-Exp Region 2'!$AP$9, 0)","v":{"v":0,"d":"$0.00"}},{"$f":"IFERROR('MMA Rev-Exp Region 2'!$AQ$75/'MMA Rev-Exp Region 2'!$AQ$9, 0)","v":{"v":0,"d":"$0.00"}},{"$f":"IFERROR('MMA Rev-Exp Region 2'!$AR$75/'MMA Rev-Exp Region 2'!$AR$9, 0)","v":{"v":0,"d":"$0.00"}},{"$f":"IFERROR('MMA Rev-Exp Region 2'!$AS$75/'MMA Rev-Exp Region 2'!$AS$9, 0)","v":{"v":0,"d":"$0.00"}},{"$f":"IFERROR('MMA Rev-Exp Region 2'!$AT$75/'MMA Rev-Exp Region 2'!$AT$9, 0)","v":{"v":0,"d":"$0.00"}},{"$f":"IFERROR('MMA Rev-Exp Region 2'!$AU$75/'MMA Rev-Exp Region 2'!$AU$9, 0)","v":{"v":0,"d":"$0.00"}}]
["MMA",null,null,2016,"2016-12-31","Q4","2017-12-31","Region 2","Operating Expense","Medical Benefits Expense","Other Medical","11.5","TPL & Fraud/Abuse Recoveries",{"$f":"IFERROR('MMA Rev-Exp Region 2'!$AK$81/'MMA Rev-Exp Region 2'!$AK$9, 0)","v":{"v":0,"d":"$0.00"}},{"$f":"IFERROR('MMA Rev-Exp Region 2'!$AL$81/'MMA Rev-Exp Region 2'!$AL$9, 0)","v":{"v":0,"d":"$0.00"}},{"$f":"IFERROR('MMA Rev-Exp Region 2'!$AM$81/'MMA Rev-Exp Region 2'!$AM$9, 0)","v":{"v":0,"d":"$0.00"}},{"$f":"IFERROR('MMA Rev-Exp Region 2'!$AN$81/'MMA Rev-Exp Region 2'!$AN$9, 0)","v":{"v":0,"d":"$0.00"}},{"$f":"IFERROR('MMA Rev-Exp Region 2'!$AO$81/'MMA Rev-Exp Region 2'!$AO$9, 0)","v":{"v":0,"d":"$0.00"}},{"$f":"IFERROR('MMA Rev-Exp Region 2'!$AP$81/'MMA Rev-Exp Region 2'!$AP$9, 0)","v":{"v":0,"d":"$0.00"}},{"$f":"IFERROR('MMA Rev-Exp Region 2'!$AQ$81/'MMA Rev-Exp Region 2'!$AQ$9, 0)","v":{"v":0,"d":"$0.00"}},{"$f":"IFERROR('MMA Rev-Exp Region 2'!$AR$81/'MMA Rev-Exp Region 2'!$AR$9, 0)","v":{"v":0,"d":"$0.00"}},{"$f":"IFERROR('MMA Rev-Exp Region 2'!$AS$81/'MMA Rev-Exp Region 2'!$AS$9, 0)","v":{"v":0,"d":"$0.00"}},{"$f":"IFERROR('MMA Rev-Exp Region 2'!$AT$81/'MMA Rev-Exp Region 2'!$AT$9, 0)","v":{"v":0,"d":"$0.00"}},{"$f":"IFERROR('MMA Rev-Exp Region 2'!$AU$81/'MMA Rev-Exp Region 2'!$AU$9, 0)","v":{"v":0,"d":"$0.00"}}]
["MMA",null,null,2016,"2016-12-31","Q4","2017-12-31","Region 2","Operating Expense","Medical Benefits Expense","Other Medical","11.6.1","Premium Deficiency Reserve",{"$f":"IFERROR('MMA Rev-Exp Region 2'!$AK$82/'MMA Rev-Exp Region 2'!$AK$9, 0)","v":{"v":0,"d":"$0.00"}},{"$f":"IFERROR('MMA Rev-Exp Region 2'!$AL$82/'MMA Rev-Exp Region 2'!$AL$9, 0)","v":{"v":0,"d":"$0.00"}},{"$f":"IFERROR('MMA Rev-Exp Region 2'!$AM$82/'MMA Rev-Exp Region 2'!$AM$9, 0)","v":{"v":0,"d":"$0.00"}},{"$f":"IFERROR('MMA Rev-Exp Region 2'!$AN$82/'MMA Rev-Exp Region 2'!$AN$9, 0)","v":{"v":0,"d":"$0.00"}},{"$f":"IFERROR('MMA Rev-Exp Region 2'!$AO$82/'MMA Rev-Exp Region 2'!$AO$9, 0)","v":{"v":0,"d":"$0.00"}},{"$f":"IFERROR('MMA Rev-Exp Region 2'!$AP$82/'MMA Rev-Exp Region 2'!$AP$9, 0)","v":{"v":0,"d":"$0.00"}},{"$f":"IFERROR('MMA Rev-Exp Region 2'!$AQ$82/'MMA Rev-Exp Region 2'!$AQ$9, 0)","v":{"v":0,"d":"$0.00"}},{"$f":"IFERROR('MMA Rev-Exp Region 2'!$AR$82/'MMA Rev-Exp Region 2'!$AR$9, 0)","v":{"v":0,"d":"$0.00"}},{"$f":"IFERROR('MMA Rev-Exp Region 2'!$AS$82/'MMA Rev-Exp Region 2'!$AS$9, 0)","v":{"v":0,"d":"$0.00"}},{"$f":"IFERROR('MMA Rev-Exp Region 2'!$AT$82/'MMA Rev-Exp Region 2'!$AT$9, 0)","v":{"v":0,"d":"$0.00"}},{"$f":"IFERROR('MMA Rev-Exp Region 2'!$AU$82/'MMA Rev-Exp Region 2'!$AU$9, 0)","v":{"v":0,"d":"$0.00"}}]
["MMA",null,null,2016,"2016-12-31","Q4","2017-12-31","Region 2","Operating Expense","Medical Benefits Expense","Other Medical","11.8","Reinsurance Premiums",{"$f":"IFERROR('MMA Rev-Exp Region 2'!$AK$84/'MMA Rev-Exp Region 2'!$AK$9, 0)","v":{"v":0,"d":"$0.00"}},{"$f":"IFERROR('MMA Rev-Exp Region 2'!$AL$84/'MMA Rev-Exp Region 2'!$AL$9, 0)","v":{"v":0,"d":"$0.00"}},{"$f":"IFERROR('MMA Rev-Exp Region 2'!$AM$84/'MMA Rev-Exp Region 2'!$AM$9, 0)","v":{"v":0,"d":"$0.00"}},{"$f":"IFERROR('MMA Rev-Exp Region 2'!$AN$84/'MMA Rev-Exp Region 2'!$AN$9, 0)","v":{"v":0,"d":"$0.00"}},{"$f":"IFERROR('MMA Rev-Exp Region 2'!$AO$84/'MMA Rev-Exp Region 2'!$AO$9, 0)","v":{"v":0,"d":"$0.00"}},{"$f":"IFERROR('MMA Rev-Exp Region 2'!$AP$84/'MMA Rev-Exp Region 2'!$AP$9, 0)","v":{"v":0,"d":"$0.00"}},{"$f":"IFERROR('MMA Rev-Exp Region 2'!$AQ$84/'MMA Rev-Exp Region 2'!$AQ$9, 0)","v":{"v":0,"d":"$0.00"}},{"$f":"IFERROR('MMA Rev-Exp Region 2'!$AR$84/'MMA Rev-Exp Region 2'!$AR$9, 0)","v":{"v":0,"d":"$0.00"}},{"$f":"IFERROR('MMA Rev-Exp Region 2'!$AS$84/'MMA Rev-Exp Region 2'!$AS$9, 0)","v":{"v":0,"d":"$0.00"}},{"$f":"IFERROR('MMA Rev-Exp Region 2'!$AT$84/'MMA Rev-Exp Region 2'!$AT$9, 0)","v":{"v":0,"d":"$0.00"}},{"$f":"IFERROR('MMA Rev-Exp Region 2'!$AU$84/'MMA Rev-Exp Region 2'!$AU$9, 0)","v":{"v":0,"d":"$0.00"}}]
["MMA",null,null,2016,"2016-12-31","Q4","2017-12-31","Region 2","Operating Expense","Medical Benefits Expense","Other Medical","11.9","Reinsurance Recoveries",{"$f":"IFERROR('MMA Rev-Exp Region 2'!$AK$85/'MMA Rev-Exp Region 2'!$AK$9, 0)","v":{"v":0,"d":"$0.00"}},{"$f":"IFERROR('MMA Rev-Exp Region 2'!$AL$85/'MMA Rev-Exp Region 2'!$AL$9, 0)","v":{"v":0,"d":"$0.00"}},{"$f":"IFERROR('MMA Rev-Exp Region 2'!$AM$85/'MMA Rev-Exp Region 2'!$AM$9, 0)","v":{"v":0,"d":"$0.00"}},{"$f":"IFERROR('MMA Rev-Exp Region 2'!$AN$85/'MMA Rev-Exp Region 2'!$AN$9, 0)","v":{"v":0,"d":"$0.00"}},{"$f":"IFERROR('MMA Rev-Exp Region 2'!$AO$85/'MMA Rev-Exp Region 2'!$AO$9, 0)","v":{"v":0,"d":"$0.00"}},{"$f":"IFERROR('MMA Rev-Exp Region 2'!$AP$85/'MMA Rev-Exp Region 2'!$AP$9, 0)","v":{"v":0,"d":"$0.00"}},{"$f":"IFERROR('MMA Rev-Exp Region 2'!$AQ$85/'MMA Rev-Exp Region 2'!$AQ$9, 0)","v":{"v":0,"d":"$0.00"}},{"$f":"IFERROR('MMA Rev-Exp Region 2'!$AR$85/'MMA Rev-Exp Region 2'!$AR$9, 0)","v":{"v":0,"d":"$0.00"}},{"$f":"IFERROR('MMA Rev-Exp Region 2'!$AS$85/'MMA Rev-Exp Region 2'!$AS$9, 0)","v":{"v":0,"d":"$0.00"}},{"$f":"IFERROR('MMA Rev-Exp Region 2'!$AT$85/'MMA Rev-Exp Region 2'!$AT$9, 0)","v":{"v":0,"d":"$0.00"}},{"$f":"IFERROR('MMA Rev-Exp Region 2'!$AU$85/'MMA Rev-Exp Region 2'!$AU$9, 0)","v":{"v":0,"d":"$0.00"}}]
["MMA",null,null,2016,"2016-12-31","Q4","2017-12-31","Region 2","Operating Expense","Administrative Expense","Administrative","12.1","Salaries & Benefits",{"$f":"IFERROR('MMA Rev-Exp Region 2'!$AK$90/'MMA Rev-Exp Region 2'!$AK$9, 0)","v":{"v":0,"d":"$0.00"}},{"$f":"IFERROR('MMA Rev-Exp Region 2'!$AL$90/'MMA Rev-Exp Region 2'!$AK$9, 0)","v":{"v":0,"d":"$0.00"}},{"$f":"IFERROR('MMA Rev-Exp Region 2'!$AM$90/'MMA Rev-Exp Region 2'!$AK$9, 0)","v":{"v":0,"d":"$0.00"}}]
["MMA",null,null,2016,"2016-12-31","Q4","2017-12-31","Region 2","Operating Expense","Administrative Expense","Administrative","12.2","Administrative Services",{"$f":"IFERROR('MMA Rev-Exp Region 2'!$AK$91/'MMA Rev-Exp Region 2'!$AK$9, 0)","v":{"v":0,"d":"$0.00"}},{"$f":"IFERROR('MMA Rev-Exp Region 2'!$AL$91/'MMA Rev-Exp Region 2'!$AK$9, 0)","v":{"v":0,"d":"$0.00"}},{"$f":"IFERROR('MMA Rev-Exp Region 2'!$AM$91/'MMA Rev-Exp Region 2'!$AK$9, 0)","v":{"v":0,"d":"$0.00"}}]
["MMA",null,null,2016,"2016-12-31","Q4","2017-12-31","Region 2","Operating Expense","Administrative Expense","Administrative","12.3","Information Systems",{"$f":"IFERROR('MMA Rev-Exp Region 2'!$AK$92/'MMA Rev-Exp Region 2'!$AK$9, 0)","v":{"v":0,"d":"$0.00"}},{"$f":"IFERROR('MMA Rev-Exp Region 2'!$AL$92/'MMA Rev-Exp Region 2'!$AK$9, 0)","v":{"v":0,"d":"$0.00"}},{"$f":"IFERROR('MMA Rev-Exp Region 2'!$AM$92/'MMA Rev-Exp Region 2'!$AK$9, 0)","v":{"v":0,"d":"$0.00"}}]
["MMA",null,null,2016,"2016-12-31","Q4","2017-12-31","Region 2","Operating Expense","Administrative Expense","Administrative","12.4","Marketing Expenses",{"$f":"IFERROR('MMA Rev-Exp Region 2'!$AK$93/'MMA Rev-Exp Region 2'!$AK$9, 0)","v":{"v":0,"d":"$0.00"}},{"$f":"IFERROR('MMA Rev-Exp Region 2'!$AL$93/'MMA Rev-Exp Region 2'!$AK$9, 0)","v":{"v":0,"d":"$0.00"}},{"$f":"IFERROR('MMA Rev-Exp Region 2'!$AM$93/'MMA Rev-Exp Region 2'!$AK$9, 0)","v":{"v":0,"d":"$0.00"}}]
["MMA",null,null,2016,"2016-12-31","Q4","2017-12-31","Region 2","Operating Expense","Administrative Expense","Administrative","12.5","General  Administration",{"$f":"IFERROR('MMA Rev-Exp Region 2'!$AK$94/'MMA Rev-Exp Region 2'!$AK$9, 0)","v":{"v":0,"d":"$0.00"}},{"$f":"IFERROR('MMA Rev-Exp Region 2'!$AL$94/'MMA Rev-Exp Region 2'!$AK$9, 0)","v":{"v":0,"d":"$0.00"}},{"$f":"IFERROR('MMA Rev-Exp Region 2'!$AM$94/'MMA Rev-Exp Region 2'!$AK$9, 0)","v":{"v":0,"d":"$0.00"}}]
["MMA",null,null,2016,"2016-12-31","Q4","2017-12-31","Region 2","Operating Expense","Administrative Expense","Administrative","12.6","Compliance/Regulatory",{"$f":"IFERROR('MMA Rev-Exp Region 2'!$AK$95/'MMA Rev-Exp Region 2'!$AK$9, 0)","v":{"v":0,"d":"$0.00"}},{"$f":"IFERROR('MMA Rev-Exp Region 2'!$AL$95/'MMA Rev-Exp Region 2'!$AK$9, 0)","v":{"v":0,"d":"$0.00"}},{"$f":"IFERROR('MMA Rev-Exp Region 2'!$AM$95/'MMA Rev-Exp Region 2'!$AK$9, 0)","v":{"v":0,"d":"$0.00"}}]
["MMA",null,null,2016,"2016-12-31","Q4","2017-12-31","Region 2","Operating Expense","Taxes & Fees","Taxes & Fees","13.1","State Premium tax",{"$f":"IFERROR('MMA Rev-Exp Region 2'!$AK$97/'MMA Rev-Exp Region 2'!$AK$9, 0)","v":{"v":0,"d":"$0.00"}}]
["MMA",null,null,2016,"2016-12-31","Q4","2017-12-31","Region 2","Operating Expense","Taxes & Fees","Taxes & Fees","13.2","Department of Insurance Assessments",{"$f":"IFERROR('MMA Rev-Exp Region 2'!$AK$98/'MMA Rev-Exp Region 2'!$AK$9, 0)","v":{"v":0,"d":"$0.00"}}]
["MMA",null,null,2016,"2016-12-31","Q4","2017-12-31","Region 2","Operating Expense","Taxes & Fees","Taxes & Fees","13.3","Section 9010 Health Insurance Providers Fee",{"$f":"IFERROR('MMA Rev-Exp Region 2'!$AK$99/'MMA Rev-Exp Region 2'!$AK$9, 0)","v":{"v":0,"d":"$0.00"}}]
["MMA",null,null,2016,"2016-12-31","Q4","2017-12-31","Region 2","Operating Expense","Income Tax Expense","Income Tax Expense","16.0","Income Tax Expense",{"$f":"IFERROR('MMA Rev-Exp Region 2'!$AK$106/'MMA Rev-Exp Region 2'!$AK$9, 0)","v":{"v":0,"d":"$0.00"}}]
["MMA",null,null,2016,"2016-12-31","Q1","2017-03-31","Region 3","Operating Revenue","Capitation","Capitation",1.1,"Capitation",{"$f":"IFERROR('MMA Rev-Exp Region 3'!$D$11/'MMA Rev-Exp Region 3'!$D$9, 0)","v":{"v":0,"d":"$0.00"}},{"$f":"IFERROR('MMA Rev-Exp Region 3'!$E$11/'MMA Rev-Exp Region 3'!$E$9, 0)","v":{"v":0,"d":"$0.00"}},{"$f":"IFERROR('MMA Rev-Exp Region 3'!$F$11/'MMA Rev-Exp Region 3'!$F$9, 0)","v":{"v":0,"d":"$0.00"}},{"$f":"IFERROR('MMA Rev-Exp Region 3'!$G$11/'MMA Rev-Exp Region 3'!$G$9, 0)","v":{"v":0,"d":"$0.00"}},{"$f":"IFERROR('MMA Rev-Exp Region 3'!$H$11/'MMA Rev-Exp Region 3'!$H$9, 0)","v":{"v":0,"d":"$0.00"}},{"$f":"IFERROR('MMA Rev-Exp Region 3'!$I$11/'MMA Rev-Exp Region 3'!$I$9, 0)","v":{"v":0,"d":"$0.00"}},{"$f":"IFERROR('MMA Rev-Exp Region 3'!$J$11/'MMA Rev-Exp Region 3'!$J$9, 0)","v":{"v":0,"d":"$0.00"}},{"$f":"IFERROR('MMA Rev-Exp Region 3'!$K$11/'MMA Rev-Exp Region 3'!$K$9, 0)","v":{"v":0,"d":"$0.00"}},{"$f":"IFERROR('MMA Rev-Exp Region 3'!$L$11/'MMA Rev-Exp Region 3'!$L$9, 0)","v":{"v":0,"d":"$0.00"}},{"$f":"IFERROR('MMA Rev-Exp Region 3'!$M$11/'MMA Rev-Exp Region 3'!$M$9, 0)","v":{"v":0,"d":"$0.00"}},{"$f":"IFERROR('MMA Rev-Exp Region 3'!$N$11/'MMA Rev-Exp Region 3'!$N$9, 0)","v":{"v":0,"d":"$0.00"}}]
["MMA",null,null,2016,"2016-12-31","Q1","2017-03-31","Region 3","Operating Revenue","Kick Payments","Kick Payments - Transplant",1.2,"Transplant Kick Payments",{"$f":"IFERROR('MMA Rev-Exp Region 3'!$D$12/'MMA Rev-Exp Region 3'!$D$9, 0)","v":{"v":0,"d":"$0.00"}},{"$f":"IFERROR('MMA Rev-Exp Region 3'!$E$12/'MMA Rev-Exp Region 3'!$E$9, 0)","v":{"v":0,"d":"$0.00"}},{"$f":"IFERROR('MMA Rev-Exp Region 3'!$F$12/'MMA Rev-Exp Region 3'!$F$9, 0)","v":{"v":0,"d":"$0.00"}},{"$f":"IFERROR('MMA Rev-Exp Region 3'!$G$12/'MMA Rev-Exp Region 3'!$G$9, 0)","v":{"v":0,"d":"$0.00"}},{"$f":"IFERROR('MMA Rev-Exp Region 3'!$H$12/'MMA Rev-Exp Region 3'!$H$9, 0)","v":{"v":0,"d":"$0.00"}},{"$f":"IFERROR('MMA Rev-Exp Region 3'!$I$12/'MMA Rev-Exp Region 3'!$I$9, 0)","v":{"v":0,"d":"$0.00"}},{"$f":"IFERROR('MMA Rev-Exp Region 3'!$J$12/'MMA Rev-Exp Region 3'!$J$9, 0)","v":{"v":0,"d":"$0.00"}},{"$f":"IFERROR('MMA Rev-Exp Region 3'!$K$12/'MMA Rev-Exp Region 3'!$K$9, 0)","v":{"v":0,"d":"$0.00"}},{"$f":"IFERROR('MMA Rev-Exp Region 3'!$L$12/'MMA Rev-Exp Region 3'!$L$9, 0)","v":{"v":0,"d":"$0.00"}},{"$f":"IFERROR('MMA Rev-Exp Region 3'!$M$12/'MMA Rev-Exp Region 3'!$M$9, 0)","v":{"v":0,"d":"$0.00"}},{"$f":"IFERROR('MMA Rev-Exp Region 3'!$N$12/'MMA Rev-Exp Region 3'!$N$9, 0)","v":{"v":0,"d":"$0.00"}}]
["MMA",null,null,2016,"2016-12-31","Q1","2017-03-31","Region 3","Operating Revenue","Kick Payments","Kick Payments - Hep C","1.3","Hepatitis C Kick Payments",{"$f":"IFERROR('MMA Rev-Exp Region 3'!$D$13/'MMA Rev-Exp Region 3'!$D$9, 0)","v":{"v":0,"d":"$0.00"}},{"$f":"IFERROR('MMA Rev-Exp Region 3'!$E$13/'MMA Rev-Exp Region 3'!$E$9, 0)","v":{"v":0,"d":"$0.00"}},{"$f":"IFERROR('MMA Rev-Exp Region 3'!$F$13/'MMA Rev-Exp Region 3'!$F$9, 0)","v":{"v":0,"d":"$0.00"}},{"$f":"IFERROR('MMA Rev-Exp Region 3'!$G$13/'MMA Rev-Exp Region 3'!$G$9, 0)","v":{"v":0,"d":"$0.00"}},{"$f":"IFERROR('MMA Rev-Exp Region 3'!$H$13/'MMA Rev-Exp Region 3'!$H$9, 0)","v":{"v":0,"d":"$0.00"}},{"$f":"IFERROR('MMA Rev-Exp Region 3'!$I$13/'MMA Rev-Exp Region 3'!$I$9, 0)","v":{"v":0,"d":"$0.00"}},{"$f":"IFERROR('MMA Rev-Exp Region 3'!$J$13/'MMA Rev-Exp Region 3'!$J$9, 0)","v":{"v":0,"d":"$0.00"}},{"$f":"IFERROR('MMA Rev-Exp Region 3'!$K$13/'MMA Rev-Exp Region 3'!$K$9, 0)","v":{"v":0,"d":"$0.00"}},{"$f":"IFERROR('MMA Rev-Exp Region 3'!$L$13/'MMA Rev-Exp Region 3'!$L$9, 0)","v":{"v":0,"d":"$0.00"}},{"$f":"IFERROR('MMA Rev-Exp Region 3'!$M$13/'MMA Rev-Exp Region 3'!$M$9, 0)","v":{"v":0,"d":"$0.00"}},{"$f":"IFERROR('MMA Rev-Exp Region 3'!$N$13/'MMA Rev-Exp Region 3'!$N$9, 0)","v":{"v":0,"d":"$0.00"}}]
["MMA",null,null,2016,"2016-12-31","Q1","2017-03-31","Region 3","Operating Revenue","Kick Payments","Kick Payments - Maternity","1.4.1","Maternity Kick Payments",{"$f":"IFERROR('MMA Rev-Exp Region 3'!$D$14/'MMA Rev-Exp Region 3'!$D$9, 0)","v":{"v":0,"d":"$0.00"}},{"$f":"IFERROR('MMA Rev-Exp Region 3'!$E$14/'MMA Rev-Exp Region 3'!$E$9, 0)","v":{"v":0,"d":"$0.00"}},{"$f":"IFERROR('MMA Rev-Exp Region 3'!$F$14/'MMA Rev-Exp Region 3'!$F$9, 0)","v":{"v":0,"d":"$0.00"}},{"$f":"IFERROR('MMA Rev-Exp Region 3'!$G$14/'MMA Rev-Exp Region 3'!$G$9, 0)","v":{"v":0,"d":"$0.00"}},{"$f":"IFERROR('MMA Rev-Exp Region 3'!$H$14/'MMA Rev-Exp Region 3'!$H$9, 0)","v":{"v":0,"d":"$0.00"}},{"$f":"IFERROR('MMA Rev-Exp Region 3'!$I$14/'MMA Rev-Exp Region 3'!$I$9, 0)","v":{"v":0,"d":"$0.00"}},{"$f":"IFERROR('MMA Rev-Exp Region 3'!$J$14/'MMA Rev-Exp Region 3'!$J$9, 0)","v":{"v":0,"d":"$0.00"}},{"$f":"IFERROR('MMA Rev-Exp Region 3'!$K$14/'MMA Rev-Exp Region 3'!$K$9, 0)","v":{"v":0,"d":"$0.00"}},{"$f":"IFERROR('MMA Rev-Exp Region 3'!$L$14/'MMA Rev-Exp Region 3'!$L$9, 0)","v":{"v":0,"d":"$0.00"}},{"$f":"IFERROR('MMA Rev-Exp Region 3'!$M$14/'MMA Rev-Exp Region 3'!$M$9, 0)","v":{"v":0,"d":"$0.00"}},{"$f":"IFERROR('MMA Rev-Exp Region 3'!$N$14/'MMA Rev-Exp Region 3'!$N$9, 0)","v":{"v":0,"d":"$0.00"}}]
["MMA",null,null,2016,"2016-12-31","Q1","2017-03-31","Region 3","Operating Revenue","Other Revenue","Other Revenue - 9010","1.5","ACA § 9010 related payments",{"$f":"IFERROR('MMA Rev-Exp Region 3'!$D$15/'MMA Rev-Exp Region 3'!$D$9, 0)","v":{"v":0,"d":"$0.00"}},{"$f":"IFERROR('MMA Rev-Exp Region 3'!$E$15/'MMA Rev-Exp Region 3'!$E$9, 0)","v":{"v":0,"d":"$0.00"}},{"$f":"IFERROR('MMA Rev-Exp Region 3'!$F$15/'MMA Rev-Exp Region 3'!$F$9, 0)","v":{"v":0,"d":"$0.00"}},{"$f":"IFERROR('MMA Rev-Exp Region 3'!$G$15/'MMA Rev-Exp Region 3'!$G$9, 0)","v":{"v":0,"d":"$0.00"}},{"$f":"IFERROR('MMA Rev-Exp Region 3'!$H$15/'MMA Rev-Exp Region 3'!$H$9, 0)","v":{"v":0,"d":"$0.00"}},{"$f":"IFERROR('MMA Rev-Exp Region 3'!$I$15/'MMA Rev-Exp Region 3'!$I$9, 0)","v":{"v":0,"d":"$0.00"}},{"$f":"IFERROR('MMA Rev-Exp Region 3'!$J$15/'MMA Rev-Exp Region 3'!$J$9, 0)","v":{"v":0,"d":"$0.00"}},{"$f":"IFERROR('MMA Rev-Exp Region 3'!$K$15/'MMA Rev-Exp Region 3'!$K$9, 0)","v":{"v":0,"d":"$0.00"}},{"$f":"IFERROR('MMA Rev-Exp Region 3'!$L$15/'MMA Rev-Exp Region 3'!$L$9, 0)","v":{"v":0,"d":"$0.00"}},{"$f":"IFERROR('MMA Rev-Exp Region 3'!$M$15/'MMA Rev-Exp Region 3'!$M$9, 0)","v":{"v":0,"d":"$0.00"}},{"$f":"IFERROR('MMA Rev-Exp Region 3'!$N$15/'MMA Rev-Exp Region 3'!$N$9, 0)","v":{"v":0,"d":"$0.00"}}]
["MMA",null,null,2016,"2016-12-31","Q1","2017-03-31","Region 3","Operating Revenue","Other Revenue","Other Revenue","1.6","Other Revenue",{"$f":"IFERROR('MMA Rev-Exp Region 3'!$D$16/'MMA Rev-Exp Region 3'!$D$9, 0)","v":{"v":0,"d":"$0.00"}},{"$f":"IFERROR('MMA Rev-Exp Region 3'!$E$16/'MMA Rev-Exp Region 3'!$E$9, 0)","v":{"v":0,"d":"$0.00"}},{"$f":"IFERROR('MMA Rev-Exp Region 3'!$F$16/'MMA Rev-Exp Region 3'!$F$9, 0)","v":{"v":0,"d":"$0.00"}},{"$f":"IFERROR('MMA Rev-Exp Region 3'!$G$16/'MMA Rev-Exp Region 3'!$G$9, 0)","v":{"v":0,"d":"$0.00"}},{"$f":"IFERROR('MMA Rev-Exp Region 3'!$H$16/'MMA Rev-Exp Region 3'!$H$9, 0)","v":{"v":0,"d":"$0.00"}},{"$f":"IFERROR('MMA Rev-Exp Region 3'!$I$16/'MMA Rev-Exp Region 3'!$I$9, 0)","v":{"v":0,"d":"$0.00"}},{"$f":"IFERROR('MMA Rev-Exp Region 3'!$J$16/'MMA Rev-Exp Region 3'!$J$9, 0)","v":{"v":0,"d":"$0.00"}},{"$f":"IFERROR('MMA Rev-Exp Region 3'!$K$16/'MMA Rev-Exp Region 3'!$K$9, 0)","v":{"v":0,"d":"$0.00"}},{"$f":"IFERROR('MMA Rev-Exp Region 3'!$L$16/'MMA Rev-Exp Region 3'!$L$9, 0)","v":{"v":0,"d":"$0.00"}},{"$f":"IFERROR('MMA Rev-Exp Region 3'!$M$16/'MMA Rev-Exp Region 3'!$M$9, 0)","v":{"v":0,"d":"$0.00"}},{"$f":"IFERROR('MMA Rev-Exp Region 3'!$N$16/'MMA Rev-Exp Region 3'!$N$9, 0)","v":{"v":0,"d":"$0.00"}}]
["MMA",null,null,2016,"2016-12-31","Q1","2017-03-31","Region 3","Operating Expense","Medical Benefits Expense","Hospital Services",2.1,"Inpatient FFS",{"$f":"IFERROR('MMA Rev-Exp Region 3'!$D$20/'MMA Rev-Exp Region 3'!$D$9, 0)","v":{"v":0,"d":"$0.00"}},{"$f":"IFERROR('MMA Rev-Exp Region 3'!$E$20/'MMA Rev-Exp Region 3'!$E$9, 0)","v":{"v":0,"d":"$0.00"}},{"$f":"IFERROR('MMA Rev-Exp Region 3'!$F$20/'MMA Rev-Exp Region 3'!$F$9, 0)","v":{"v":0,"d":"$0.00"}},{"$f":"IFERROR('MMA Rev-Exp Region 3'!$G$20/'MMA Rev-Exp Region 3'!$G$9, 0)","v":{"v":0,"d":"$0.00"}},{"$f":"IFERROR('MMA Rev-Exp Region 3'!$H$20/'MMA Rev-Exp Region 3'!$H$9, 0)","v":{"v":0,"d":"$0.00"}},{"$f":"IFERROR('MMA Rev-Exp Region 3'!$I$20/'MMA Rev-Exp Region 3'!$I$9, 0)","v":{"v":0,"d":"$0.00"}},{"$f":"IFERROR('MMA Rev-Exp Region 3'!$J$20/'MMA Rev-Exp Region 3'!$J$9, 0)","v":{"v":0,"d":"$0.00"}},{"$f":"IFERROR('MMA Rev-Exp Region 3'!$K$20/'MMA Rev-Exp Region 3'!$K$9, 0)","v":{"v":0,"d":"$0.00"}},{"$f":"IFERROR('MMA Rev-Exp Region 3'!$L$20/'MMA Rev-Exp Region 3'!$L$9, 0)","v":{"v":0,"d":"$0.00"}},{"$f":"IFERROR('MMA Rev-Exp Region 3'!$M$20/'MMA Rev-Exp Region 3'!$M$9, 0)","v":{"v":0,"d":"$0.00"}},{"$f":"IFERROR('MMA Rev-Exp Region 3'!$N$20/'MMA Rev-Exp Region 3'!$N$9, 0)","v":{"v":0,"d":"$0.00"}}]
["MMA",null,null,2016,"2016-12-31","Q1","2017-03-31","Region 3","Operating Expense","Medical Benefits Expense","Hospital Services",2.2,"Ending IBNP for Inpatient Hospital Services",{"$f":"IFERROR('MMA Rev-Exp Region 3'!$D$21/'MMA Rev-Exp Region 3'!$D$9, 0)","v":{"v":0,"d":"$0.00"}},{"$f":"IFERROR('MMA Rev-Exp Region 3'!$E$21/'MMA Rev-Exp Region 3'!$E$9, 0)","v":{"v":0,"d":"$0.00"}},{"$f":"IFERROR('MMA Rev-Exp Region 3'!$F$21/'MMA Rev-Exp Region 3'!$F$9, 0)","v":{"v":0,"d":"$0.00"}},{"$f":"IFERROR('MMA Rev-Exp Region 3'!$G$21/'MMA Rev-Exp Region 3'!$G$9, 0)","v":{"v":0,"d":"$0.00"}},{"$f":"IFERROR('MMA Rev-Exp Region 3'!$H$21/'MMA Rev-Exp Region 3'!$H$9, 0)","v":{"v":0,"d":"$0.00"}},{"$f":"IFERROR('MMA Rev-Exp Region 3'!$I$21/'MMA Rev-Exp Region 3'!$I$9, 0)","v":{"v":0,"d":"$0.00"}},{"$f":"IFERROR('MMA Rev-Exp Region 3'!$J$21/'MMA Rev-Exp Region 3'!$J$9, 0)","v":{"v":0,"d":"$0.00"}},{"$f":"IFERROR('MMA Rev-Exp Region 3'!$K$21/'MMA Rev-Exp Region 3'!$K$9, 0)","v":{"v":0,"d":"$0.00"}},{"$f":"IFERROR('MMA Rev-Exp Region 3'!$L$21/'MMA Rev-Exp Region 3'!$L$9, 0)","v":{"v":0,"d":"$0.00"}},{"$f":"IFERROR('MMA Rev-Exp Region 3'!$M$21/'MMA Rev-Exp Region 3'!$M$9, 0)","v":{"v":0,"d":"$0.00"}},{"$f":"IFERROR('MMA Rev-Exp Region 3'!$N$21/'MMA Rev-Exp Region 3'!$N$9, 0)","v":{"v":0,"d":"$0.00"}}]
["MMA",null,null,2016,"2016-12-31","Q1","2017-03-31","Region 3","Operating Expense","Medical Benefits Expense","Hospital Services",2.3,"Outpatient FFS: ER",{"$f":"IFERROR('MMA Rev-Exp Region 3'!$D$22/'MMA Rev-Exp Region 3'!$D$9, 0)","v":{"v":0,"d":"$0.00"}},{"$f":"IFERROR('MMA Rev-Exp Region 3'!$E$22/'MMA Rev-Exp Region 3'!$E$9, 0)","v":{"v":0,"d":"$0.00"}},{"$f":"IFERROR('MMA Rev-Exp Region 3'!$F$22/'MMA Rev-Exp Region 3'!$F$9, 0)","v":{"v":0,"d":"$0.00"}},{"$f":"IFERROR('MMA Rev-Exp Region 3'!$G$22/'MMA Rev-Exp Region 3'!$G$9, 0)","v":{"v":0,"d":"$0.00"}},{"$f":"IFERROR('MMA Rev-Exp Region 3'!$H$22/'MMA Rev-Exp Region 3'!$H$9, 0)","v":{"v":0,"d":"$0.00"}},{"$f":"IFERROR('MMA Rev-Exp Region 3'!$I$22/'MMA Rev-Exp Region 3'!$I$9, 0)","v":{"v":0,"d":"$0.00"}},{"$f":"IFERROR('MMA Rev-Exp Region 3'!$J$22/'MMA Rev-Exp Region 3'!$J$9, 0)","v":{"v":0,"d":"$0.00"}},{"$f":"IFERROR('MMA Rev-Exp Region 3'!$K$22/'MMA Rev-Exp Region 3'!$K$9, 0)","v":{"v":0,"d":"$0.00"}},{"$f":"IFERROR('MMA Rev-Exp Region 3'!$L$22/'MMA Rev-Exp Region 3'!$L$9, 0)","v":{"v":0,"d":"$0.00"}},{"$f":"IFERROR('MMA Rev-Exp Region 3'!$M$22/'MMA Rev-Exp Region 3'!$M$9, 0)","v":{"v":0,"d":"$0.00"}},{"$f":"IFERROR('MMA Rev-Exp Region 3'!$N$22/'MMA Rev-Exp Region 3'!$N$9, 0)","v":{"v":0,"d":"$0.00"}}]
["MMA",null,null,2016,"2016-12-31","Q1","2017-03-31","Region 3","Operating Expense","Medical Benefits Expense","Hospital Services",2.4,"Outpatient FFS: Other than ER ",{"$f":"IFERROR('MMA Rev-Exp Region 3'!$D$23/'MMA Rev-Exp Region 3'!$D$9, 0)","v":{"v":0,"d":"$0.00"}},{"$f":"IFERROR('MMA Rev-Exp Region 3'!$E$23/'MMA Rev-Exp Region 3'!$E$9, 0)","v":{"v":0,"d":"$0.00"}},{"$f":"IFERROR('MMA Rev-Exp Region 3'!$F$23/'MMA Rev-Exp Region 3'!$F$9, 0)","v":{"v":0,"d":"$0.00"}},{"$f":"IFERROR('MMA Rev-Exp Region 3'!$G$23/'MMA Rev-Exp Region 3'!$G$9, 0)","v":{"v":0,"d":"$0.00"}},{"$f":"IFERROR('MMA Rev-Exp Region 3'!$H$23/'MMA Rev-Exp Region 3'!$H$9, 0)","v":{"v":0,"d":"$0.00"}},{"$f":"IFERROR('MMA Rev-Exp Region 3'!$I$23/'MMA Rev-Exp Region 3'!$I$9, 0)","v":{"v":0,"d":"$0.00"}},{"$f":"IFERROR('MMA Rev-Exp Region 3'!$J$23/'MMA Rev-Exp Region 3'!$J$9, 0)","v":{"v":0,"d":"$0.00"}},{"$f":"IFERROR('MMA Rev-Exp Region 3'!$K$23/'MMA Rev-Exp Region 3'!$K$9, 0)","v":{"v":0,"d":"$0.00"}},{"$f":"IFERROR('MMA Rev-Exp Region 3'!$L$23/'MMA Rev-Exp Region 3'!$L$9, 0)","v":{"v":0,"d":"$0.00"}},{"$f":"IFERROR('MMA Rev-Exp Region 3'!$M$23/'MMA Rev-Exp Region 3'!$M$9, 0)","v":{"v":0,"d":"$0.00"}},{"$f":"IFERROR('MMA Rev-Exp Region 3'!$N$23/'MMA Rev-Exp Region 3'!$N$9, 0)","v":{"v":0,"d":"$0.00"}}]
["MMA",null,null,2016,"2016-12-31","Q1","2017-03-31","Region 3","Operating Expense","Medical Benefits Expense","Hospital Services",2.5,"Ending IBNP for Outpatient Hospital Services",{"$f":"IFERROR('MMA Rev-Exp Region 3'!$D$24/'MMA Rev-Exp Region 3'!$D$9, 0)","v":{"v":0,"d":"$0.00"}},{"$f":"IFERROR('MMA Rev-Exp Region 3'!$E$24/'MMA Rev-Exp Region 3'!$E$9, 0)","v":{"v":0,"d":"$0.00"}},{"$f":"IFERROR('MMA Rev-Exp Region 3'!$F$24/'MMA Rev-Exp Region 3'!$F$9, 0)","v":{"v":0,"d":"$0.00"}},{"$f":"IFERROR('MMA Rev-Exp Region 3'!$G$24/'MMA Rev-Exp Region 3'!$G$9, 0)","v":{"v":0,"d":"$0.00"}},{"$f":"IFERROR('MMA Rev-Exp Region 3'!$H$24/'MMA Rev-Exp Region 3'!$H$9, 0)","v":{"v":0,"d":"$0.00"}},{"$f":"IFERROR('MMA Rev-Exp Region 3'!$I$24/'MMA Rev-Exp Region 3'!$I$9, 0)","v":{"v":0,"d":"$0.00"}},{"$f":"IFERROR('MMA Rev-Exp Region 3'!$J$24/'MMA Rev-Exp Region 3'!$J$9, 0)","v":{"v":0,"d":"$0.00"}},{"$f":"IFERROR('MMA Rev-Exp Region 3'!$K$24/'MMA Rev-Exp Region 3'!$K$9, 0)","v":{"v":0,"d":"$0.00"}},{"$f":"IFERROR('MMA Rev-Exp Region 3'!$L$24/'MMA Rev-Exp Region 3'!$L$9, 0)","v":{"v":0,"d":"$0.00"}},{"$f":"IFERROR('MMA Rev-Exp Region 3'!$M$24/'MMA Rev-Exp Region 3'!$M$9, 0)","v":{"v":0,"d":"$0.00"}},{"$f":"IFERROR('MMA Rev-Exp Region 3'!$N$24/'MMA Rev-Exp Region 3'!$N$9, 0)","v":{"v":0,"d":"$0.00"}}]
["MMA",null,null,2016,"2016-12-31","Q1","2017-03-31","Region 3","Operating Expense","Medical Benefits Expense","Hospital Services","2.6","Subcapitated Hospital Services",{"$f":"IFERROR('MMA Rev-Exp Region 3'!$D$25/'MMA Rev-Exp Region 3'!$D$9, 0)","v":{"v":0,"d":"$0.00"}},{"$f":"IFERROR('MMA Rev-Exp Region 3'!$E$25/'MMA Rev-Exp Region 3'!$E$9, 0)","v":{"v":0,"d":"$0.00"}},{"$f":"IFERROR('MMA Rev-Exp Region 3'!$F$25/'MMA Rev-Exp Region 3'!$F$9, 0)","v":{"v":0,"d":"$0.00"}},{"$f":"IFERROR('MMA Rev-Exp Region 3'!$G$25/'MMA Rev-Exp Region 3'!$G$9, 0)","v":{"v":0,"d":"$0.00"}},{"$f":"IFERROR('MMA Rev-Exp Region 3'!$H$25/'MMA Rev-Exp Region 3'!$H$9, 0)","v":{"v":0,"d":"$0.00"}},{"$f":"IFERROR('MMA Rev-Exp Region 3'!$I$25/'MMA Rev-Exp Region 3'!$I$9, 0)","v":{"v":0,"d":"$0.00"}},{"$f":"IFERROR('MMA Rev-Exp Region 3'!$J$25/'MMA Rev-Exp Region 3'!$J$9, 0)","v":{"v":0,"d":"$0.00"}},{"$f":"IFERROR('MMA Rev-Exp Region 3'!$K$25/'MMA Rev-Exp Region 3'!$K$9, 0)","v":{"v":0,"d":"$0.00"}},{"$f":"IFERROR('MMA Rev-Exp Region 3'!$L$25/'MMA Rev-Exp Region 3'!$L$9, 0)","v":{"v":0,"d":"$0.00"}},{"$f":"IFERROR('MMA Rev-Exp Region 3'!$M$25/'MMA Rev-Exp Region 3'!$M$9, 0)","v":{"v":0,"d":"$0.00"}},{"$f":"IFERROR('MMA Rev-Exp Region 3'!$N$25/'MMA Rev-Exp Region 3'!$N$9, 0)","v":{"v":0,"d":"$0.00"}}]
["MMA",null,null,2016,"2016-12-31","Q1","2017-03-31","Region 3","Operating Expense","Medical Benefits Expense","Hospital Services","2.7","Hospital Settlements",{"$f":"IFERROR('MMA Rev-Exp Region 3'!$D$26/'MMA Rev-Exp Region 3'!$D$9, 0)","v":{"v":0,"d":"$0.00"}},{"$f":"IFERROR('MMA Rev-Exp Region 3'!$E$26/'MMA Rev-Exp Region 3'!$E$9, 0)","v":{"v":0,"d":"$0.00"}},{"$f":"IFERROR('MMA Rev-Exp Region 3'!$F$26/'MMA Rev-Exp Region 3'!$F$9, 0)","v":{"v":0,"d":"$0.00"}},{"$f":"IFERROR('MMA Rev-Exp Region 3'!$G$26/'MMA Rev-Exp Region 3'!$G$9, 0)","v":{"v":0,"d":"$0.00"}},{"$f":"IFERROR('MMA Rev-Exp Region 3'!$H$26/'MMA Rev-Exp Region 3'!$H$9, 0)","v":{"v":0,"d":"$0.00"}},{"$f":"IFERROR('MMA Rev-Exp Region 3'!$I$26/'MMA Rev-Exp Region 3'!$I$9, 0)","v":{"v":0,"d":"$0.00"}},{"$f":"IFERROR('MMA Rev-Exp Region 3'!$J$26/'MMA Rev-Exp Region 3'!$J$9, 0)","v":{"v":0,"d":"$0.00"}},{"$f":"IFERROR('MMA Rev-Exp Region 3'!$K$26/'MMA Rev-Exp Region 3'!$K$9, 0)","v":{"v":0,"d":"$0.00"}},{"$f":"IFERROR('MMA Rev-Exp Region 3'!$L$26/'MMA Rev-Exp Region 3'!$L$9, 0)","v":{"v":0,"d":"$0.00"}},{"$f":"IFERROR('MMA Rev-Exp Region 3'!$M$26/'MMA Rev-Exp Region 3'!$M$9, 0)","v":{"v":0,"d":"$0.00"}},{"$f":"IFERROR('MMA Rev-Exp Region 3'!$N$26/'MMA Rev-Exp Region 3'!$N$9, 0)","v":{"v":0,"d":"$0.00"}}]
["MMA",null,null,2016,"2016-12-31","Q1","2017-03-31","Region 3","Operating Expense","Medical Benefits Expense","Hospital Services","2.7.1","Transplant Services",{"$f":"IFERROR('MMA Rev-Exp Region 3'!$D$27/'MMA Rev-Exp Region 3'!$D$9, 0)","v":{"v":0,"d":"$0.00"}},{"$f":"IFERROR('MMA Rev-Exp Region 3'!$E$27/'MMA Rev-Exp Region 3'!$E$9, 0)","v":{"v":0,"d":"$0.00"}},{"$f":"IFERROR('MMA Rev-Exp Region 3'!$F$27/'MMA Rev-Exp Region 3'!$F$9, 0)","v":{"v":0,"d":"$0.00"}},{"$f":"IFERROR('MMA Rev-Exp Region 3'!$G$27/'MMA Rev-Exp Region 3'!$G$9, 0)","v":{"v":0,"d":"$0.00"}},{"$f":"IFERROR('MMA Rev-Exp Region 3'!$H$27/'MMA Rev-Exp Region 3'!$H$9, 0)","v":{"v":0,"d":"$0.00"}},{"$f":"IFERROR('MMA Rev-Exp Region 3'!$I$27/'MMA Rev-Exp Region 3'!$I$9, 0)","v":{"v":0,"d":"$0.00"}},{"$f":"IFERROR('MMA Rev-Exp Region 3'!$J$27/'MMA Rev-Exp Region 3'!$J$9, 0)","v":{"v":0,"d":"$0.00"}},{"$f":"IFERROR('MMA Rev-Exp Region 3'!$K$27/'MMA Rev-Exp Region 3'!$K$9, 0)","v":{"v":0,"d":"$0.00"}},{"$f":"IFERROR('MMA Rev-Exp Region 3'!$L$27/'MMA Rev-Exp Region 3'!$L$9, 0)","v":{"v":0,"d":"$0.00"}},{"$f":"IFERROR('MMA Rev-Exp Region 3'!$M$27/'MMA Rev-Exp Region 3'!$M$9, 0)","v":{"v":0,"d":"$0.00"}},{"$f":"IFERROR('MMA Rev-Exp Region 3'!$N$27/'MMA Rev-Exp Region 3'!$N$9, 0)","v":{"v":0,"d":"$0.00"}}]
["MMA",null,null,2016,"2016-12-31","Q1","2017-03-31","Region 3","Operating Expense","Medical Benefits Expense","Professional Services",3.1,"Primary Care FFS",{"$f":"IFERROR('MMA Rev-Exp Region 3'!$D$29/'MMA Rev-Exp Region 3'!$D$9, 0)","v":{"v":0,"d":"$0.00"}},{"$f":"IFERROR('MMA Rev-Exp Region 3'!$E$29/'MMA Rev-Exp Region 3'!$E$9, 0)","v":{"v":0,"d":"$0.00"}},{"$f":"IFERROR('MMA Rev-Exp Region 3'!$F$29/'MMA Rev-Exp Region 3'!$F$9, 0)","v":{"v":0,"d":"$0.00"}},{"$f":"IFERROR('MMA Rev-Exp Region 3'!$G$29/'MMA Rev-Exp Region 3'!$G$9, 0)","v":{"v":0,"d":"$0.00"}},{"$f":"IFERROR('MMA Rev-Exp Region 3'!$H$29/'MMA Rev-Exp Region 3'!$H$9, 0)","v":{"v":0,"d":"$0.00"}},{"$f":"IFERROR('MMA Rev-Exp Region 3'!$I$29/'MMA Rev-Exp Region 3'!$I$9, 0)","v":{"v":0,"d":"$0.00"}},{"$f":"IFERROR('MMA Rev-Exp Region 3'!$J$29/'MMA Rev-Exp Region 3'!$J$9, 0)","v":{"v":0,"d":"$0.00"}},{"$f":"IFERROR('MMA Rev-Exp Region 3'!$K$29/'MMA Rev-Exp Region 3'!$K$9, 0)","v":{"v":0,"d":"$0.00"}},{"$f":"IFERROR('MMA Rev-Exp Region 3'!$L$29/'MMA Rev-Exp Region 3'!$L$9, 0)","v":{"v":0,"d":"$0.00"}},{"$f":"IFERROR('MMA Rev-Exp Region 3'!$M$29/'MMA Rev-Exp Region 3'!$M$9, 0)","v":{"v":0,"d":"$0.00"}},{"$f":"IFERROR('MMA Rev-Exp Region 3'!$N$29/'MMA Rev-Exp Region 3'!$N$9, 0)","v":{"v":0,"d":"$0.00"}}]
["MMA",null,null,2016,"2016-12-31","Q1","2017-03-31","Region 3","Operating Expense","Medical Benefits Expense","Professional Services",3.2,"Specialty Care FFS",{"$f":"IFERROR('MMA Rev-Exp Region 3'!$D$30/'MMA Rev-Exp Region 3'!$D$9, 0)","v":{"v":0,"d":"$0.00"}},{"$f":"IFERROR('MMA Rev-Exp Region 3'!$E$30/'MMA Rev-Exp Region 3'!$E$9, 0)","v":{"v":0,"d":"$0.00"}},{"$f":"IFERROR('MMA Rev-Exp Region 3'!$F$30/'MMA Rev-Exp Region 3'!$F$9, 0)","v":{"v":0,"d":"$0.00"}},{"$f":"IFERROR('MMA Rev-Exp Region 3'!$G$30/'MMA Rev-Exp Region 3'!$G$9, 0)","v":{"v":0,"d":"$0.00"}},{"$f":"IFERROR('MMA Rev-Exp Region 3'!$H$30/'MMA Rev-Exp Region 3'!$H$9, 0)","v":{"v":0,"d":"$0.00"}},{"$f":"IFERROR('MMA Rev-Exp Region 3'!$I$30/'MMA Rev-Exp Region 3'!$I$9, 0)","v":{"v":0,"d":"$0.00"}},{"$f":"IFERROR('MMA Rev-Exp Region 3'!$J$30/'MMA Rev-Exp Region 3'!$J$9, 0)","v":{"v":0,"d":"$0.00"}},{"$f":"IFERROR('MMA Rev-Exp Region 3'!$K$30/'MMA Rev-Exp Region 3'!$K$9, 0)","v":{"v":0,"d":"$0.00"}},{"$f":"IFERROR('MMA Rev-Exp Region 3'!$L$30/'MMA Rev-Exp Region 3'!$L$9, 0)","v":{"v":0,"d":"$0.00"}},{"$f":"IFERROR('MMA Rev-Exp Region 3'!$M$30/'MMA Rev-Exp Region 3'!$M$9, 0)","v":{"v":0,"d":"$0.00"}},{"$f":"IFERROR('MMA Rev-Exp Region 3'!$N$30/'MMA Rev-Exp Region 3'!$N$9, 0)","v":{"v":0,"d":"$0.00"}}]
["MMA",null,null,2016,"2016-12-31","Q1","2017-03-31","Region 3","Operating Expense","Medical Benefits Expense","Professional Services",3.3,"Other Professional FFS",{"$f":"IFERROR('MMA Rev-Exp Region 3'!$D$31/'MMA Rev-Exp Region 3'!$D$9, 0)","v":{"v":0,"d":"$0.00"}},{"$f":"IFERROR('MMA Rev-Exp Region 3'!$E$31/'MMA Rev-Exp Region 3'!$E$9, 0)","v":{"v":0,"d":"$0.00"}},{"$f":"IFERROR('MMA Rev-Exp Region 3'!$F$31/'MMA Rev-Exp Region 3'!$F$9, 0)","v":{"v":0,"d":"$0.00"}},{"$f":"IFERROR('MMA Rev-Exp Region 3'!$G$31/'MMA Rev-Exp Region 3'!$G$9, 0)","v":{"v":0,"d":"$0.00"}},{"$f":"IFERROR('MMA Rev-Exp Region 3'!$H$31/'MMA Rev-Exp Region 3'!$H$9, 0)","v":{"v":0,"d":"$0.00"}},{"$f":"IFERROR('MMA Rev-Exp Region 3'!$I$31/'MMA Rev-Exp Region 3'!$I$9, 0)","v":{"v":0,"d":"$0.00"}},{"$f":"IFERROR('MMA Rev-Exp Region 3'!$J$31/'MMA Rev-Exp Region 3'!$J$9, 0)","v":{"v":0,"d":"$0.00"}},{"$f":"IFERROR('MMA Rev-Exp Region 3'!$K$31/'MMA Rev-Exp Region 3'!$K$9, 0)","v":{"v":0,"d":"$0.00"}},{"$f":"IFERROR('MMA Rev-Exp Region 3'!$L$31/'MMA Rev-Exp Region 3'!$L$9, 0)","v":{"v":0,"d":"$0.00"}},{"$f":"IFERROR('MMA Rev-Exp Region 3'!$M$31/'MMA Rev-Exp Region 3'!$M$9, 0)","v":{"v":0,"d":"$0.00"}},{"$f":"IFERROR('MMA Rev-Exp Region 3'!$N$31/'MMA Rev-Exp Region 3'!$N$9, 0)","v":{"v":0,"d":"$0.00"}}]
["MMA",null,null,2016,"2016-12-31","Q1","2017-03-31","Region 3","Operating Expense","Medical Benefits Expense","Professional Services","3.4","§ 1202 PCP Payments to providers",{"$f":"IFERROR('MMA Rev-Exp Region 3'!$D$32/'MMA Rev-Exp Region 3'!$D$9, 0)","v":{"v":0,"d":"$0.00"}},{"$f":"IFERROR('MMA Rev-Exp Region 3'!$E$32/'MMA Rev-Exp Region 3'!$E$9, 0)","v":{"v":0,"d":"$0.00"}},{"$f":"IFERROR('MMA Rev-Exp Region 3'!$F$32/'MMA Rev-Exp Region 3'!$F$9, 0)","v":{"v":0,"d":"$0.00"}},{"$f":"IFERROR('MMA Rev-Exp Region 3'!$G$32/'MMA Rev-Exp Region 3'!$G$9, 0)","v":{"v":0,"d":"$0.00"}},{"$f":"IFERROR('MMA Rev-Exp Region 3'!$H$32/'MMA Rev-Exp Region 3'!$H$9, 0)","v":{"v":0,"d":"$0.00"}},{"$f":"IFERROR('MMA Rev-Exp Region 3'!$I$32/'MMA Rev-Exp Region 3'!$I$9, 0)","v":{"v":0,"d":"$0.00"}},{"$f":"IFERROR('MMA Rev-Exp Region 3'!$J$32/'MMA Rev-Exp Region 3'!$J$9, 0)","v":{"v":0,"d":"$0.00"}},{"$f":"IFERROR('MMA Rev-Exp Region 3'!$K$32/'MMA Rev-Exp Region 3'!$K$9, 0)","v":{"v":0,"d":"$0.00"}},{"$f":"IFERROR('MMA Rev-Exp Region 3'!$L$32/'MMA Rev-Exp Region 3'!$L$9, 0)","v":{"v":0,"d":"$0.00"}},{"$f":"IFERROR('MMA Rev-Exp Region 3'!$M$32/'MMA Rev-Exp Region 3'!$M$9, 0)","v":{"v":0,"d":"$0.00"}},{"$f":"IFERROR('MMA Rev-Exp Region 3'!$N$32/'MMA Rev-Exp Region 3'!$N$9, 0)","v":{"v":0,"d":"$0.00"}}]
["MMA",null,null,2016,"2016-12-31","Q1","2017-03-31","Region 3","Operating Expense","Medical Benefits Expense","Professional Services","3.5","Subcapitated Professional Services",{"$f":"IFERROR('MMA Rev-Exp Region 3'!$D$33/'MMA Rev-Exp Region 3'!$D$9, 0)","v":{"v":0,"d":"$0.00"}},{"$f":"IFERROR('MMA Rev-Exp Region 3'!$E$33/'MMA Rev-Exp Region 3'!$E$9, 0)","v":{"v":0,"d":"$0.00"}},{"$f":"IFERROR('MMA Rev-Exp Region 3'!$F$33/'MMA Rev-Exp Region 3'!$F$9, 0)","v":{"v":0,"d":"$0.00"}},{"$f":"IFERROR('MMA Rev-Exp Region 3'!$G$33/'MMA Rev-Exp Region 3'!$G$9, 0)","v":{"v":0,"d":"$0.00"}},{"$f":"IFERROR('MMA Rev-Exp Region 3'!$H$33/'MMA Rev-Exp Region 3'!$H$9, 0)","v":{"v":0,"d":"$0.00"}},{"$f":"IFERROR('MMA Rev-Exp Region 3'!$I$33/'MMA Rev-Exp Region 3'!$I$9, 0)","v":{"v":0,"d":"$0.00"}},{"$f":"IFERROR('MMA Rev-Exp Region 3'!$J$33/'MMA Rev-Exp Region 3'!$J$9, 0)","v":{"v":0,"d":"$0.00"}},{"$f":"IFERROR('MMA Rev-Exp Region 3'!$K$33/'MMA Rev-Exp Region 3'!$K$9, 0)","v":{"v":0,"d":"$0.00"}},{"$f":"IFERROR('MMA Rev-Exp Region 3'!$L$33/'MMA Rev-Exp Region 3'!$L$9, 0)","v":{"v":0,"d":"$0.00"}},{"$f":"IFERROR('MMA Rev-Exp Region 3'!$M$33/'MMA Rev-Exp Region 3'!$M$9, 0)","v":{"v":0,"d":"$0.00"}},{"$f":"IFERROR('MMA Rev-Exp Region 3'!$N$33/'MMA Rev-Exp Region 3'!$N$9, 0)","v":{"v":0,"d":"$0.00"}}]
["MMA",null,null,2016,"2016-12-31","Q1","2017-03-31","Region 3","Operating Expense","Medical Benefits Expense","Professional Services","3.6","Ending IBNP for Professional Services",{"$f":"IFERROR('MMA Rev-Exp Region 3'!$D$34/'MMA Rev-Exp Region 3'!$D$9, 0)","v":{"v":0,"d":"$0.00"}},{"$f":"IFERROR('MMA Rev-Exp Region 3'!$E$34/'MMA Rev-Exp Region 3'!$E$9, 0)","v":{"v":0,"d":"$0.00"}},{"$f":"IFERROR('MMA Rev-Exp Region 3'!$F$34/'MMA Rev-Exp Region 3'!$F$9, 0)","v":{"v":0,"d":"$0.00"}},{"$f":"IFERROR('MMA Rev-Exp Region 3'!$G$34/'MMA Rev-Exp Region 3'!$G$9, 0)","v":{"v":0,"d":"$0.00"}},{"$f":"IFERROR('MMA Rev-Exp Region 3'!$H$34/'MMA Rev-Exp Region 3'!$H$9, 0)","v":{"v":0,"d":"$0.00"}},{"$f":"IFERROR('MMA Rev-Exp Region 3'!$I$34/'MMA Rev-Exp Region 3'!$I$9, 0)","v":{"v":0,"d":"$0.00"}},{"$f":"IFERROR('MMA Rev-Exp Region 3'!$J$34/'MMA Rev-Exp Region 3'!$J$9, 0)","v":{"v":0,"d":"$0.00"}},{"$f":"IFERROR('MMA Rev-Exp Region 3'!$K$34/'MMA Rev-Exp Region 3'!$K$9, 0)","v":{"v":0,"d":"$0.00"}},{"$f":"IFERROR('MMA Rev-Exp Region 3'!$L$34/'MMA Rev-Exp Region 3'!$L$9, 0)","v":{"v":0,"d":"$0.00"}},{"$f":"IFERROR('MMA Rev-Exp Region 3'!$M$34/'MMA Rev-Exp Region 3'!$M$9, 0)","v":{"v":0,"d":"$0.00"}},{"$f":"IFERROR('MMA Rev-Exp Region 3'!$N$34/'MMA Rev-Exp Region 3'!$N$9, 0)","v":{"v":0,"d":"$0.00"}}]
["MMA",null,null,2016,"2016-12-31","Q1","2017-03-31","Region 3","Operating Expense","Medical Benefits Expense","Professional Services","3.7","Professional Services Settlements",{"$f":"IFERROR('MMA Rev-Exp Region 3'!$D$35/'MMA Rev-Exp Region 3'!$D$9, 0)","v":{"v":0,"d":"$0.00"}},{"$f":"IFERROR('MMA Rev-Exp Region 3'!$E$35/'MMA Rev-Exp Region 3'!$E$9, 0)","v":{"v":0,"d":"$0.00"}},{"$f":"IFERROR('MMA Rev-Exp Region 3'!$F$35/'MMA Rev-Exp Region 3'!$F$9, 0)","v":{"v":0,"d":"$0.00"}},{"$f":"IFERROR('MMA Rev-Exp Region 3'!$G$35/'MMA Rev-Exp Region 3'!$G$9, 0)","v":{"v":0,"d":"$0.00"}},{"$f":"IFERROR('MMA Rev-Exp Region 3'!$H$35/'MMA Rev-Exp Region 3'!$H$9, 0)","v":{"v":0,"d":"$0.00"}},{"$f":"IFERROR('MMA Rev-Exp Region 3'!$I$35/'MMA Rev-Exp Region 3'!$I$9, 0)","v":{"v":0,"d":"$0.00"}},{"$f":"IFERROR('MMA Rev-Exp Region 3'!$J$35/'MMA Rev-Exp Region 3'!$J$9, 0)","v":{"v":0,"d":"$0.00"}},{"$f":"IFERROR('MMA Rev-Exp Region 3'!$K$35/'MMA Rev-Exp Region 3'!$K$9, 0)","v":{"v":0,"d":"$0.00"}},{"$f":"IFERROR('MMA Rev-Exp Region 3'!$L$35/'MMA Rev-Exp Region 3'!$L$9, 0)","v":{"v":0,"d":"$0.00"}},{"$f":"IFERROR('MMA Rev-Exp Region 3'!$M$35/'MMA Rev-Exp Region 3'!$M$9, 0)","v":{"v":0,"d":"$0.00"}},{"$f":"IFERROR('MMA Rev-Exp Region 3'!$N$35/'MMA Rev-Exp Region 3'!$N$9, 0)","v":{"v":0,"d":"$0.00"}}]
["MMA",null,null,2016,"2016-12-31","Q1","2017-03-31","Region 3","Operating Expense","Medical Benefits Expense","Maternity Services","4.1.1","Maternity Services",{"$f":"IFERROR('MMA Rev-Exp Region 3'!$D$37/'MMA Rev-Exp Region 3'!$D$9, 0)","v":{"v":0,"d":"$0.00"}},{"$f":"IFERROR('MMA Rev-Exp Region 3'!$E$37/'MMA Rev-Exp Region 3'!$E$9, 0)","v":{"v":0,"d":"$0.00"}},{"$f":"IFERROR('MMA Rev-Exp Region 3'!$F$37/'MMA Rev-Exp Region 3'!$F$9, 0)","v":{"v":0,"d":"$0.00"}},{"$f":"IFERROR('MMA Rev-Exp Region 3'!$G$37/'MMA Rev-Exp Region 3'!$G$9, 0)","v":{"v":0,"d":"$0.00"}},{"$f":"IFERROR('MMA Rev-Exp Region 3'!$H$37/'MMA Rev-Exp Region 3'!$H$9, 0)","v":{"v":0,"d":"$0.00"}},{"$f":"IFERROR('MMA Rev-Exp Region 3'!$I$37/'MMA Rev-Exp Region 3'!$I$9, 0)","v":{"v":0,"d":"$0.00"}},{"$f":"IFERROR('MMA Rev-Exp Region 3'!$J$37/'MMA Rev-Exp Region 3'!$J$9, 0)","v":{"v":0,"d":"$0.00"}},{"$f":"IFERROR('MMA Rev-Exp Region 3'!$K$37/'MMA Rev-Exp Region 3'!$K$9, 0)","v":{"v":0,"d":"$0.00"}},{"$f":"IFERROR('MMA Rev-Exp Region 3'!$L$37/'MMA Rev-Exp Region 3'!$L$9, 0)","v":{"v":0,"d":"$0.00"}},{"$f":"IFERROR('MMA Rev-Exp Region 3'!$M$37/'MMA Rev-Exp Region 3'!$M$9, 0)","v":{"v":0,"d":"$0.00"}},{"$f":"IFERROR('MMA Rev-Exp Region 3'!$N$37/'MMA Rev-Exp Region 3'!$N$9, 0)","v":{"v":0,"d":"$0.00"}}]
["MMA",null,null,2016,"2016-12-31","Q1","2017-03-31","Region 3","Operating Expense","Medical Benefits Expense","Maternity Services","4.2.1","Ending IBNP for Maternity Services",{"$f":"IFERROR('MMA Rev-Exp Region 3'!$D$38/'MMA Rev-Exp Region 3'!$D$9, 0)","v":{"v":0,"d":"$0.00"}},{"$f":"IFERROR('MMA Rev-Exp Region 3'!$E$38/'MMA Rev-Exp Region 3'!$E$9, 0)","v":{"v":0,"d":"$0.00"}},{"$f":"IFERROR('MMA Rev-Exp Region 3'!$F$38/'MMA Rev-Exp Region 3'!$F$9, 0)","v":{"v":0,"d":"$0.00"}},{"$f":"IFERROR('MMA Rev-Exp Region 3'!$G$38/'MMA Rev-Exp Region 3'!$G$9, 0)","v":{"v":0,"d":"$0.00"}},{"$f":"IFERROR('MMA Rev-Exp Region 3'!$H$38/'MMA Rev-Exp Region 3'!$H$9, 0)","v":{"v":0,"d":"$0.00"}},{"$f":"IFERROR('MMA Rev-Exp Region 3'!$I$38/'MMA Rev-Exp Region 3'!$I$9, 0)","v":{"v":0,"d":"$0.00"}},{"$f":"IFERROR('MMA Rev-Exp Region 3'!$J$38/'MMA Rev-Exp Region 3'!$J$9, 0)","v":{"v":0,"d":"$0.00"}},{"$f":"IFERROR('MMA Rev-Exp Region 3'!$K$38/'MMA Rev-Exp Region 3'!$K$9, 0)","v":{"v":0,"d":"$0.00"}},{"$f":"IFERROR('MMA Rev-Exp Region 3'!$L$38/'MMA Rev-Exp Region 3'!$L$9, 0)","v":{"v":0,"d":"$0.00"}},{"$f":"IFERROR('MMA Rev-Exp Region 3'!$M$38/'MMA Rev-Exp Region 3'!$M$9, 0)","v":{"v":0,"d":"$0.00"}},{"$f":"IFERROR('MMA Rev-Exp Region 3'!$N$38/'MMA Rev-Exp Region 3'!$N$9, 0)","v":{"v":0,"d":"$0.00"}}]
["MMA",null,null,2016,"2016-12-31","Q1","2017-03-31","Region 3","Operating Expense","Medical Benefits Expense","Maternity Services","4.3.1","Maternity Settlements",{"$f":"IFERROR('MMA Rev-Exp Region 3'!$D$39/'MMA Rev-Exp Region 3'!$D$9, 0)","v":{"v":0,"d":"$0.00"}},{"$f":"IFERROR('MMA Rev-Exp Region 3'!$E$39/'MMA Rev-Exp Region 3'!$E$9, 0)","v":{"v":0,"d":"$0.00"}},{"$f":"IFERROR('MMA Rev-Exp Region 3'!$F$39/'MMA Rev-Exp Region 3'!$F$9, 0)","v":{"v":0,"d":"$0.00"}},{"$f":"IFERROR('MMA Rev-Exp Region 3'!$G$39/'MMA Rev-Exp Region 3'!$G$9, 0)","v":{"v":0,"d":"$0.00"}},{"$f":"IFERROR('MMA Rev-Exp Region 3'!$H$39/'MMA Rev-Exp Region 3'!$H$9, 0)","v":{"v":0,"d":"$0.00"}},{"$f":"IFERROR('MMA Rev-Exp Region 3'!$I$39/'MMA Rev-Exp Region 3'!$I$9, 0)","v":{"v":0,"d":"$0.00"}},{"$f":"IFERROR('MMA Rev-Exp Region 3'!$J$39/'MMA Rev-Exp Region 3'!$J$9, 0)","v":{"v":0,"d":"$0.00"}},{"$f":"IFERROR('MMA Rev-Exp Region 3'!$K$39/'MMA Rev-Exp Region 3'!$K$9, 0)","v":{"v":0,"d":"$0.00"}},{"$f":"IFERROR('MMA Rev-Exp Region 3'!$L$39/'MMA Rev-Exp Region 3'!$L$9, 0)","v":{"v":0,"d":"$0.00"}},{"$f":"IFERROR('MMA Rev-Exp Region 3'!$M$39/'MMA Rev-Exp Region 3'!$M$9, 0)","v":{"v":0,"d":"$0.00"}},{"$f":"IFERROR('MMA Rev-Exp Region 3'!$N$39/'MMA Rev-Exp Region 3'!$N$9, 0)","v":{"v":0,"d":"$0.00"}}]
["MMA",null,null,2016,"2016-12-31","Q1","2017-03-31","Region 3","Operating Expense","Medical Benefits Expense","Mental Health Services",5.1,"Mental Health & Substance Abuse FFS",{"$f":"IFERROR('MMA Rev-Exp Region 3'!$D$41/'MMA Rev-Exp Region 3'!$D$9, 0)","v":{"v":0,"d":"$0.00"}},{"$f":"IFERROR('MMA Rev-Exp Region 3'!$E$41/'MMA Rev-Exp Region 3'!$E$9, 0)","v":{"v":0,"d":"$0.00"}},{"$f":"IFERROR('MMA Rev-Exp Region 3'!$F$41/'MMA Rev-Exp Region 3'!$F$9, 0)","v":{"v":0,"d":"$0.00"}},{"$f":"IFERROR('MMA Rev-Exp Region 3'!$G$41/'MMA Rev-Exp Region 3'!$G$9, 0)","v":{"v":0,"d":"$0.00"}},{"$f":"IFERROR('MMA Rev-Exp Region 3'!$H$41/'MMA Rev-Exp Region 3'!$H$9, 0)","v":{"v":0,"d":"$0.00"}},{"$f":"IFERROR('MMA Rev-Exp Region 3'!$I$41/'MMA Rev-Exp Region 3'!$I$9, 0)","v":{"v":0,"d":"$0.00"}},{"$f":"IFERROR('MMA Rev-Exp Region 3'!$J$41/'MMA Rev-Exp Region 3'!$J$9, 0)","v":{"v":0,"d":"$0.00"}},{"$f":"IFERROR('MMA Rev-Exp Region 3'!$K$41/'MMA Rev-Exp Region 3'!$K$9, 0)","v":{"v":0,"d":"$0.00"}},{"$f":"IFERROR('MMA Rev-Exp Region 3'!$L$41/'MMA Rev-Exp Region 3'!$L$9, 0)","v":{"v":0,"d":"$0.00"}},{"$f":"IFERROR('MMA Rev-Exp Region 3'!$M$41/'MMA Rev-Exp Region 3'!$M$9, 0)","v":{"v":0,"d":"$0.00"}},{"$f":"IFERROR('MMA Rev-Exp Region 3'!$N$41/'MMA Rev-Exp Region 3'!$N$9, 0)","v":{"v":0,"d":"$0.00"}}]
["MMA",null,null,2016,"2016-12-31","Q1","2017-03-31","Region 3","Operating Expense","Medical Benefits Expense","Mental Health Services",5.2,"Mental Health & Substance Abuse Subcapitation",{"$f":"IFERROR('MMA Rev-Exp Region 3'!$D$42/'MMA Rev-Exp Region 3'!$D$9, 0)","v":{"v":0,"d":"$0.00"}},{"$f":"IFERROR('MMA Rev-Exp Region 3'!$E$42/'MMA Rev-Exp Region 3'!$E$9, 0)","v":{"v":0,"d":"$0.00"}},{"$f":"IFERROR('MMA Rev-Exp Region 3'!$F$42/'MMA Rev-Exp Region 3'!$F$9, 0)","v":{"v":0,"d":"$0.00"}},{"$f":"IFERROR('MMA Rev-Exp Region 3'!$G$42/'MMA Rev-Exp Region 3'!$G$9, 0)","v":{"v":0,"d":"$0.00"}},{"$f":"IFERROR('MMA Rev-Exp Region 3'!$H$42/'MMA Rev-Exp Region 3'!$H$9, 0)","v":{"v":0,"d":"$0.00"}},{"$f":"IFERROR('MMA Rev-Exp Region 3'!$I$42/'MMA Rev-Exp Region 3'!$I$9, 0)","v":{"v":0,"d":"$0.00"}},{"$f":"IFERROR('MMA Rev-Exp Region 3'!$J$42/'MMA Rev-Exp Region 3'!$J$9, 0)","v":{"v":0,"d":"$0.00"}},{"$f":"IFERROR('MMA Rev-Exp Region 3'!$K$42/'MMA Rev-Exp Region 3'!$K$9, 0)","v":{"v":0,"d":"$0.00"}},{"$f":"IFERROR('MMA Rev-Exp Region 3'!$L$42/'MMA Rev-Exp Region 3'!$L$9, 0)","v":{"v":0,"d":"$0.00"}},{"$f":"IFERROR('MMA Rev-Exp Region 3'!$M$42/'MMA Rev-Exp Region 3'!$M$9, 0)","v":{"v":0,"d":"$0.00"}},{"$f":"IFERROR('MMA Rev-Exp Region 3'!$N$42/'MMA Rev-Exp Region 3'!$N$9, 0)","v":{"v":0,"d":"$0.00"}}]
["MMA",null,null,2016,"2016-12-31","Q1","2017-03-31","Region 3","Operating Expense","Medical Benefits Expense","Mental Health Services",5.3,"Ending IBNP for Mental Health & Substance Abuse",{"$f":"IFERROR('MMA Rev-Exp Region 3'!$D$43/'MMA Rev-Exp Region 3'!$D$9, 0)","v":{"v":0,"d":"$0.00"}},{"$f":"IFERROR('MMA Rev-Exp Region 3'!$E$43/'MMA Rev-Exp Region 3'!$E$9, 0)","v":{"v":0,"d":"$0.00"}},{"$f":"IFERROR('MMA Rev-Exp Region 3'!$F$43/'MMA Rev-Exp Region 3'!$F$9, 0)","v":{"v":0,"d":"$0.00"}},{"$f":"IFERROR('MMA Rev-Exp Region 3'!$G$43/'MMA Rev-Exp Region 3'!$G$9, 0)","v":{"v":0,"d":"$0.00"}},{"$f":"IFERROR('MMA Rev-Exp Region 3'!$H$43/'MMA Rev-Exp Region 3'!$H$9, 0)","v":{"v":0,"d":"$0.00"}},{"$f":"IFERROR('MMA Rev-Exp Region 3'!$I$43/'MMA Rev-Exp Region 3'!$I$9, 0)","v":{"v":0,"d":"$0.00"}},{"$f":"IFERROR('MMA Rev-Exp Region 3'!$J$43/'MMA Rev-Exp Region 3'!$J$9, 0)","v":{"v":0,"d":"$0.00"}},{"$f":"IFERROR('MMA Rev-Exp Region 3'!$K$43/'MMA Rev-Exp Region 3'!$K$9, 0)","v":{"v":0,"d":"$0.00"}},{"$f":"IFERROR('MMA Rev-Exp Region 3'!$L$43/'MMA Rev-Exp Region 3'!$L$9, 0)","v":{"v":0,"d":"$0.00"}},{"$f":"IFERROR('MMA Rev-Exp Region 3'!$M$43/'MMA Rev-Exp Region 3'!$M$9, 0)","v":{"v":0,"d":"$0.00"}},{"$f":"IFERROR('MMA Rev-Exp Region 3'!$N$43/'MMA Rev-Exp Region 3'!$N$9, 0)","v":{"v":0,"d":"$0.00"}}]
["MMA",null,null,2016,"2016-12-31","Q1","2017-03-31","Region 3","Operating Expense","Medical Benefits Expense","Mental Health Services","5.4","Mental Health Settlements",{"$f":"IFERROR('MMA Rev-Exp Region 3'!$D$44/'MMA Rev-Exp Region 3'!$D$9, 0)","v":{"v":0,"d":"$0.00"}},{"$f":"IFERROR('MMA Rev-Exp Region 3'!$E$44/'MMA Rev-Exp Region 3'!$E$9, 0)","v":{"v":0,"d":"$0.00"}},{"$f":"IFERROR('MMA Rev-Exp Region 3'!$F$44/'MMA Rev-Exp Region 3'!$F$9, 0)","v":{"v":0,"d":"$0.00"}},{"$f":"IFERROR('MMA Rev-Exp Region 3'!$G$44/'MMA Rev-Exp Region 3'!$G$9, 0)","v":{"v":0,"d":"$0.00"}},{"$f":"IFERROR('MMA Rev-Exp Region 3'!$H$44/'MMA Rev-Exp Region 3'!$H$9, 0)","v":{"v":0,"d":"$0.00"}},{"$f":"IFERROR('MMA Rev-Exp Region 3'!$I$44/'MMA Rev-Exp Region 3'!$I$9, 0)","v":{"v":0,"d":"$0.00"}},{"$f":"IFERROR('MMA Rev-Exp Region 3'!$J$44/'MMA Rev-Exp Region 3'!$J$9, 0)","v":{"v":0,"d":"$0.00"}},{"$f":"IFERROR('MMA Rev-Exp Region 3'!$K$44/'MMA Rev-Exp Region 3'!$K$9, 0)","v":{"v":0,"d":"$0.00"}},{"$f":"IFERROR('MMA Rev-Exp Region 3'!$L$44/'MMA Rev-Exp Region 3'!$L$9, 0)","v":{"v":0,"d":"$0.00"}},{"$f":"IFERROR('MMA Rev-Exp Region 3'!$M$44/'MMA Rev-Exp Region 3'!$M$9, 0)","v":{"v":0,"d":"$0.00"}},{"$f":"IFERROR('MMA Rev-Exp Region 3'!$N$44/'MMA Rev-Exp Region 3'!$N$9, 0)","v":{"v":0,"d":"$0.00"}}]
["MMA",null,null,2016,"2016-12-31","Q1","2017-03-31","Region 3","Operating Expense","Medical Benefits Expense","Dental Services",6.1,"Dental FFS",{"$f":"IFERROR('MMA Rev-Exp Region 3'!$D$46/'MMA Rev-Exp Region 3'!$D$9, 0)","v":{"v":0,"d":"$0.00"}},{"$f":"IFERROR('MMA Rev-Exp Region 3'!$E$46/'MMA Rev-Exp Region 3'!$E$9, 0)","v":{"v":0,"d":"$0.00"}},{"$f":"IFERROR('MMA Rev-Exp Region 3'!$F$46/'MMA Rev-Exp Region 3'!$F$9, 0)","v":{"v":0,"d":"$0.00"}},{"$f":"IFERROR('MMA Rev-Exp Region 3'!$G$46/'MMA Rev-Exp Region 3'!$G$9, 0)","v":{"v":0,"d":"$0.00"}},{"$f":"IFERROR('MMA Rev-Exp Region 3'!$H$46/'MMA Rev-Exp Region 3'!$H$9, 0)","v":{"v":0,"d":"$0.00"}},{"$f":"IFERROR('MMA Rev-Exp Region 3'!$I$46/'MMA Rev-Exp Region 3'!$I$9, 0)","v":{"v":0,"d":"$0.00"}},{"$f":"IFERROR('MMA Rev-Exp Region 3'!$J$46/'MMA Rev-Exp Region 3'!$J$9, 0)","v":{"v":0,"d":"$0.00"}},{"$f":"IFERROR('MMA Rev-Exp Region 3'!$K$46/'MMA Rev-Exp Region 3'!$K$9, 0)","v":{"v":0,"d":"$0.00"}},{"$f":"IFERROR('MMA Rev-Exp Region 3'!$L$46/'MMA Rev-Exp Region 3'!$L$9, 0)","v":{"v":0,"d":"$0.00"}},{"$f":"IFERROR('MMA Rev-Exp Region 3'!$M$46/'MMA Rev-Exp Region 3'!$M$9, 0)","v":{"v":0,"d":"$0.00"}},{"$f":"IFERROR('MMA Rev-Exp Region 3'!$N$46/'MMA Rev-Exp Region 3'!$N$9, 0)","v":{"v":0,"d":"$0.00"}}]
["MMA",null,null,2016,"2016-12-31","Q1","2017-03-31","Region 3","Operating Expense","Medical Benefits Expense","Dental Services",6.2,"Dental Subcapitation",{"$f":"IFERROR('MMA Rev-Exp Region 3'!$D$47/'MMA Rev-Exp Region 3'!$D$9, 0)","v":{"v":0,"d":"$0.00"}},{"$f":"IFERROR('MMA Rev-Exp Region 3'!$E$47/'MMA Rev-Exp Region 3'!$E$9, 0)","v":{"v":0,"d":"$0.00"}},{"$f":"IFERROR('MMA Rev-Exp Region 3'!$F$47/'MMA Rev-Exp Region 3'!$F$9, 0)","v":{"v":0,"d":"$0.00"}},{"$f":"IFERROR('MMA Rev-Exp Region 3'!$G$47/'MMA Rev-Exp Region 3'!$G$9, 0)","v":{"v":0,"d":"$0.00"}},{"$f":"IFERROR('MMA Rev-Exp Region 3'!$H$47/'MMA Rev-Exp Region 3'!$H$9, 0)","v":{"v":0,"d":"$0.00"}},{"$f":"IFERROR('MMA Rev-Exp Region 3'!$I$47/'MMA Rev-Exp Region 3'!$I$9, 0)","v":{"v":0,"d":"$0.00"}},{"$f":"IFERROR('MMA Rev-Exp Region 3'!$J$47/'MMA Rev-Exp Region 3'!$J$9, 0)","v":{"v":0,"d":"$0.00"}},{"$f":"IFERROR('MMA Rev-Exp Region 3'!$K$47/'MMA Rev-Exp Region 3'!$K$9, 0)","v":{"v":0,"d":"$0.00"}},{"$f":"IFERROR('MMA Rev-Exp Region 3'!$L$47/'MMA Rev-Exp Region 3'!$L$9, 0)","v":{"v":0,"d":"$0.00"}},{"$f":"IFERROR('MMA Rev-Exp Region 3'!$M$47/'MMA Rev-Exp Region 3'!$M$9, 0)","v":{"v":0,"d":"$0.00"}},{"$f":"IFERROR('MMA Rev-Exp Region 3'!$N$47/'MMA Rev-Exp Region 3'!$N$9, 0)","v":{"v":0,"d":"$0.00"}}]
["MMA",null,null,2016,"2016-12-31","Q1","2017-03-31","Region 3","Operating Expense","Medical Benefits Expense","Dental Services",6.3,"Ending IBNP for Dental Services",{"$f":"IFERROR('MMA Rev-Exp Region 3'!$D$48/'MMA Rev-Exp Region 3'!$D$9, 0)","v":{"v":0,"d":"$0.00"}},{"$f":"IFERROR('MMA Rev-Exp Region 3'!$E$48/'MMA Rev-Exp Region 3'!$E$9, 0)","v":{"v":0,"d":"$0.00"}},{"$f":"IFERROR('MMA Rev-Exp Region 3'!$F$48/'MMA Rev-Exp Region 3'!$F$9, 0)","v":{"v":0,"d":"$0.00"}},{"$f":"IFERROR('MMA Rev-Exp Region 3'!$G$48/'MMA Rev-Exp Region 3'!$G$9, 0)","v":{"v":0,"d":"$0.00"}},{"$f":"IFERROR('MMA Rev-Exp Region 3'!$H$48/'MMA Rev-Exp Region 3'!$H$9, 0)","v":{"v":0,"d":"$0.00"}},{"$f":"IFERROR('MMA Rev-Exp Region 3'!$I$48/'MMA Rev-Exp Region 3'!$I$9, 0)","v":{"v":0,"d":"$0.00"}},{"$f":"IFERROR('MMA Rev-Exp Region 3'!$J$48/'MMA Rev-Exp Region 3'!$J$9, 0)","v":{"v":0,"d":"$0.00"}},{"$f":"IFERROR('MMA Rev-Exp Region 3'!$K$48/'MMA Rev-Exp Region 3'!$K$9, 0)","v":{"v":0,"d":"$0.00"}},{"$f":"IFERROR('MMA Rev-Exp Region 3'!$L$48/'MMA Rev-Exp Region 3'!$L$9, 0)","v":{"v":0,"d":"$0.00"}},{"$f":"IFERROR('MMA Rev-Exp Region 3'!$M$48/'MMA Rev-Exp Region 3'!$M$9, 0)","v":{"v":0,"d":"$0.00"}},{"$f":"IFERROR('MMA Rev-Exp Region 3'!$N$48/'MMA Rev-Exp Region 3'!$N$9, 0)","v":{"v":0,"d":"$0.00"}}]
["MMA",null,null,2016,"2016-12-31","Q1","2017-03-31","Region 3","Operating Expense","Medical Benefits Expense","Dental Services","6.4","Dental Settlements",{"$f":"IFERROR('MMA Rev-Exp Region 3'!$D$49/'MMA Rev-Exp Region 3'!$D$9, 0)","v":{"v":0,"d":"$0.00"}},{"$f":"IFERROR('MMA Rev-Exp Region 3'!$E$49/'MMA Rev-Exp Region 3'!$E$9, 0)","v":{"v":0,"d":"$0.00"}},{"$f":"IFERROR('MMA Rev-Exp Region 3'!$F$49/'MMA Rev-Exp Region 3'!$F$9, 0)","v":{"v":0,"d":"$0.00"}},{"$f":"IFERROR('MMA Rev-Exp Region 3'!$G$49/'MMA Rev-Exp Region 3'!$G$9, 0)","v":{"v":0,"d":"$0.00"}},{"$f":"IFERROR('MMA Rev-Exp Region 3'!$H$49/'MMA Rev-Exp Region 3'!$H$9, 0)","v":{"v":0,"d":"$0.00"}},{"$f":"IFERROR('MMA Rev-Exp Region 3'!$I$49/'MMA Rev-Exp Region 3'!$I$9, 0)","v":{"v":0,"d":"$0.00"}},{"$f":"IFERROR('MMA Rev-Exp Region 3'!$J$49/'MMA Rev-Exp Region 3'!$J$9, 0)","v":{"v":0,"d":"$0.00"}},{"$f":"IFERROR('MMA Rev-Exp Region 3'!$K$49/'MMA Rev-Exp Region 3'!$K$9, 0)","v":{"v":0,"d":"$0.00"}},{"$f":"IFERROR('MMA Rev-Exp Region 3'!$L$49/'MMA Rev-Exp Region 3'!$L$9, 0)","v":{"v":0,"d":"$0.00"}},{"$f":"IFERROR('MMA Rev-Exp Region 3'!$M$49/'MMA Rev-Exp Region 3'!$M$9, 0)","v":{"v":0,"d":"$0.00"}},{"$f":"IFERROR('MMA Rev-Exp Region 3'!$N$49/'MMA Rev-Exp Region 3'!$N$9, 0)","v":{"v":0,"d":"$0.00"}}]
["MMA",null,null,2016,"2016-12-31","Q1","2017-03-31","Region 3","Operating Expense","Medical Benefits Expense","Transportation Services",7.1,"Transportation FFS",{"$f":"IFERROR('MMA Rev-Exp Region 3'!$D$51/'MMA Rev-Exp Region 3'!$D$9, 0)","v":{"v":0,"d":"$0.00"}},{"$f":"IFERROR('MMA Rev-Exp Region 3'!$E$51/'MMA Rev-Exp Region 3'!$E$9, 0)","v":{"v":0,"d":"$0.00"}},{"$f":"IFERROR('MMA Rev-Exp Region 3'!$F$51/'MMA Rev-Exp Region 3'!$F$9, 0)","v":{"v":0,"d":"$0.00"}},{"$f":"IFERROR('MMA Rev-Exp Region 3'!$G$51/'MMA Rev-Exp Region 3'!$G$9, 0)","v":{"v":0,"d":"$0.00"}},{"$f":"IFERROR('MMA Rev-Exp Region 3'!$H$51/'MMA Rev-Exp Region 3'!$H$9, 0)","v":{"v":0,"d":"$0.00"}},{"$f":"IFERROR('MMA Rev-Exp Region 3'!$I$51/'MMA Rev-Exp Region 3'!$I$9, 0)","v":{"v":0,"d":"$0.00"}},{"$f":"IFERROR('MMA Rev-Exp Region 3'!$J$51/'MMA Rev-Exp Region 3'!$J$9, 0)","v":{"v":0,"d":"$0.00"}},{"$f":"IFERROR('MMA Rev-Exp Region 3'!$K$51/'MMA Rev-Exp Region 3'!$K$9, 0)","v":{"v":0,"d":"$0.00"}},{"$f":"IFERROR('MMA Rev-Exp Region 3'!$L$51/'MMA Rev-Exp Region 3'!$L$9, 0)","v":{"v":0,"d":"$0.00"}},{"$f":"IFERROR('MMA Rev-Exp Region 3'!$M$51/'MMA Rev-Exp Region 3'!$M$9, 0)","v":{"v":0,"d":"$0.00"}},{"$f":"IFERROR('MMA Rev-Exp Region 3'!$N$51/'MMA Rev-Exp Region 3'!$N$9, 0)","v":{"v":0,"d":"$0.00"}}]
["MMA",null,null,2016,"2016-12-31","Q1","2017-03-31","Region 3","Operating Expense","Medical Benefits Expense","Transportation Services",7.2,"Transportation Subcapitation",{"$f":"IFERROR('MMA Rev-Exp Region 3'!$D$52/'MMA Rev-Exp Region 3'!$D$9, 0)","v":{"v":0,"d":"$0.00"}},{"$f":"IFERROR('MMA Rev-Exp Region 3'!$E$52/'MMA Rev-Exp Region 3'!$E$9, 0)","v":{"v":0,"d":"$0.00"}},{"$f":"IFERROR('MMA Rev-Exp Region 3'!$F$52/'MMA Rev-Exp Region 3'!$F$9, 0)","v":{"v":0,"d":"$0.00"}},{"$f":"IFERROR('MMA Rev-Exp Region 3'!$G$52/'MMA Rev-Exp Region 3'!$G$9, 0)","v":{"v":0,"d":"$0.00"}},{"$f":"IFERROR('MMA Rev-Exp Region 3'!$H$52/'MMA Rev-Exp Region 3'!$H$9, 0)","v":{"v":0,"d":"$0.00"}},{"$f":"IFERROR('MMA Rev-Exp Region 3'!$I$52/'MMA Rev-Exp Region 3'!$I$9, 0)","v":{"v":0,"d":"$0.00"}},{"$f":"IFERROR('MMA Rev-Exp Region 3'!$J$52/'MMA Rev-Exp Region 3'!$J$9, 0)","v":{"v":0,"d":"$0.00"}},{"$f":"IFERROR('MMA Rev-Exp Region 3'!$K$52/'MMA Rev-Exp Region 3'!$K$9, 0)","v":{"v":0,"d":"$0.00"}},{"$f":"IFERROR('MMA Rev-Exp Region 3'!$L$52/'MMA Rev-Exp Region 3'!$L$9, 0)","v":{"v":0,"d":"$0.00"}},{"$f":"IFERROR('MMA Rev-Exp Region 3'!$M$52/'MMA Rev-Exp Region 3'!$M$9, 0)","v":{"v":0,"d":"$0.00"}},{"$f":"IFERROR('MMA Rev-Exp Region 3'!$N$52/'MMA Rev-Exp Region 3'!$N$9, 0)","v":{"v":0,"d":"$0.00"}}]
["MMA",null,null,2016,"2016-12-31","Q1","2017-03-31","Region 3","Operating Expense","Medical Benefits Expense","Transportation Services",7.3,"Ending IBNP for Transportation",{"$f":"IFERROR('MMA Rev-Exp Region 3'!$D$53/'MMA Rev-Exp Region 3'!$D$9, 0)","v":{"v":0,"d":"$0.00"}},{"$f":"IFERROR('MMA Rev-Exp Region 3'!$E$53/'MMA Rev-Exp Region 3'!$E$9, 0)","v":{"v":0,"d":"$0.00"}},{"$f":"IFERROR('MMA Rev-Exp Region 3'!$F$53/'MMA Rev-Exp Region 3'!$F$9, 0)","v":{"v":0,"d":"$0.00"}},{"$f":"IFERROR('MMA Rev-Exp Region 3'!$G$53/'MMA Rev-Exp Region 3'!$G$9, 0)","v":{"v":0,"d":"$0.00"}},{"$f":"IFERROR('MMA Rev-Exp Region 3'!$H$53/'MMA Rev-Exp Region 3'!$H$9, 0)","v":{"v":0,"d":"$0.00"}},{"$f":"IFERROR('MMA Rev-Exp Region 3'!$I$53/'MMA Rev-Exp Region 3'!$I$9, 0)","v":{"v":0,"d":"$0.00"}},{"$f":"IFERROR('MMA Rev-Exp Region 3'!$J$53/'MMA Rev-Exp Region 3'!$J$9, 0)","v":{"v":0,"d":"$0.00"}},{"$f":"IFERROR('MMA Rev-Exp Region 3'!$K$53/'MMA Rev-Exp Region 3'!$K$9, 0)","v":{"v":0,"d":"$0.00"}},{"$f":"IFERROR('MMA Rev-Exp Region 3'!$L$53/'MMA Rev-Exp Region 3'!$L$9, 0)","v":{"v":0,"d":"$0.00"}},{"$f":"IFERROR('MMA Rev-Exp Region 3'!$M$53/'MMA Rev-Exp Region 3'!$M$9, 0)","v":{"v":0,"d":"$0.00"}},{"$f":"IFERROR('MMA Rev-Exp Region 3'!$N$53/'MMA Rev-Exp Region 3'!$N$9, 0)","v":{"v":0,"d":"$0.00"}}]
["MMA",null,null,2016,"2016-12-31","Q1","2017-03-31","Region 3","Operating Expense","Medical Benefits Expense","Transportation Services","7.4","Transportation Settlements",{"$f":"IFERROR('MMA Rev-Exp Region 3'!$D$54/'MMA Rev-Exp Region 3'!$D$9, 0)","v":{"v":0,"d":"$0.00"}},{"$f":"IFERROR('MMA Rev-Exp Region 3'!$E$54/'MMA Rev-Exp Region 3'!$E$9, 0)","v":{"v":0,"d":"$0.00"}},{"$f":"IFERROR('MMA Rev-Exp Region 3'!$F$54/'MMA Rev-Exp Region 3'!$F$9, 0)","v":{"v":0,"d":"$0.00"}},{"$f":"IFERROR('MMA Rev-Exp Region 3'!$G$54/'MMA Rev-Exp Region 3'!$G$9, 0)","v":{"v":0,"d":"$0.00"}},{"$f":"IFERROR('MMA Rev-Exp Region 3'!$H$54/'MMA Rev-Exp Region 3'!$H$9, 0)","v":{"v":0,"d":"$0.00"}},{"$f":"IFERROR('MMA Rev-Exp Region 3'!$I$54/'MMA Rev-Exp Region 3'!$I$9, 0)","v":{"v":0,"d":"$0.00"}},{"$f":"IFERROR('MMA Rev-Exp Region 3'!$J$54/'MMA Rev-Exp Region 3'!$J$9, 0)","v":{"v":0,"d":"$0.00"}},{"$f":"IFERROR('MMA Rev-Exp Region 3'!$K$54/'MMA Rev-Exp Region 3'!$K$9, 0)","v":{"v":0,"d":"$0.00"}},{"$f":"IFERROR('MMA Rev-Exp Region 3'!$L$54/'MMA Rev-Exp Region 3'!$L$9, 0)","v":{"v":0,"d":"$0.00"}},{"$f":"IFERROR('MMA Rev-Exp Region 3'!$M$54/'MMA Rev-Exp Region 3'!$M$9, 0)","v":{"v":0,"d":"$0.00"}},{"$f":"IFERROR('MMA Rev-Exp Region 3'!$N$54/'MMA Rev-Exp Region 3'!$N$9, 0)","v":{"v":0,"d":"$0.00"}}]
["MMA",null,null,2016,"2016-12-31","Q1","2017-03-31","Region 3","Operating Expense","Medical Benefits Expense","Pharmacy Services",8.1,"Prescription Drugs FFS",{"$f":"IFERROR('MMA Rev-Exp Region 3'!$D$56/'MMA Rev-Exp Region 3'!$D$9, 0)","v":{"v":0,"d":"$0.00"}},{"$f":"IFERROR('MMA Rev-Exp Region 3'!$E$56/'MMA Rev-Exp Region 3'!$E$9, 0)","v":{"v":0,"d":"$0.00"}},{"$f":"IFERROR('MMA Rev-Exp Region 3'!$F$56/'MMA Rev-Exp Region 3'!$F$9, 0)","v":{"v":0,"d":"$0.00"}},{"$f":"IFERROR('MMA Rev-Exp Region 3'!$G$56/'MMA Rev-Exp Region 3'!$G$9, 0)","v":{"v":0,"d":"$0.00"}},{"$f":"IFERROR('MMA Rev-Exp Region 3'!$H$56/'MMA Rev-Exp Region 3'!$H$9, 0)","v":{"v":0,"d":"$0.00"}},{"$f":"IFERROR('MMA Rev-Exp Region 3'!$I$56/'MMA Rev-Exp Region 3'!$I$9, 0)","v":{"v":0,"d":"$0.00"}},{"$f":"IFERROR('MMA Rev-Exp Region 3'!$J$56/'MMA Rev-Exp Region 3'!$J$9, 0)","v":{"v":0,"d":"$0.00"}},{"$f":"IFERROR('MMA Rev-Exp Region 3'!$K$56/'MMA Rev-Exp Region 3'!$K$9, 0)","v":{"v":0,"d":"$0.00"}},{"$f":"IFERROR('MMA Rev-Exp Region 3'!$L$56/'MMA Rev-Exp Region 3'!$L$9, 0)","v":{"v":0,"d":"$0.00"}},{"$f":"IFERROR('MMA Rev-Exp Region 3'!$M$56/'MMA Rev-Exp Region 3'!$M$9, 0)","v":{"v":0,"d":"$0.00"}},{"$f":"IFERROR('MMA Rev-Exp Region 3'!$N$56/'MMA Rev-Exp Region 3'!$N$9, 0)","v":{"v":0,"d":"$0.00"}}]
["MMA",null,null,2016,"2016-12-31","Q1","2017-03-31","Region 3","Operating Expense","Medical Benefits Expense","Pharmacy Services","8.2","Hepatitis C Prescription Drug FFS",{"$f":"IFERROR('MMA Rev-Exp Region 3'!$D$57/'MMA Rev-Exp Region 3'!$D$9, 0)","v":{"v":0,"d":"$0.00"}},{"$f":"IFERROR('MMA Rev-Exp Region 3'!$E$57/'MMA Rev-Exp Region 3'!$E$9, 0)","v":{"v":0,"d":"$0.00"}},{"$f":"IFERROR('MMA Rev-Exp Region 3'!$F$57/'MMA Rev-Exp Region 3'!$F$9, 0)","v":{"v":0,"d":"$0.00"}},{"$f":"IFERROR('MMA Rev-Exp Region 3'!$G$57/'MMA Rev-Exp Region 3'!$G$9, 0)","v":{"v":0,"d":"$0.00"}},{"$f":"IFERROR('MMA Rev-Exp Region 3'!$H$57/'MMA Rev-Exp Region 3'!$H$9, 0)","v":{"v":0,"d":"$0.00"}},{"$f":"IFERROR('MMA Rev-Exp Region 3'!$I$57/'MMA Rev-Exp Region 3'!$I$9, 0)","v":{"v":0,"d":"$0.00"}},{"$f":"IFERROR('MMA Rev-Exp Region 3'!$J$57/'MMA Rev-Exp Region 3'!$J$9, 0)","v":{"v":0,"d":"$0.00"}},{"$f":"IFERROR('MMA Rev-Exp Region 3'!$K$57/'MMA Rev-Exp Region 3'!$K$9, 0)","v":{"v":0,"d":"$0.00"}},{"$f":"IFERROR('MMA Rev-Exp Region 3'!$L$57/'MMA Rev-Exp Region 3'!$L$9, 0)","v":{"v":0,"d":"$0.00"}},{"$f":"IFERROR('MMA Rev-Exp Region 3'!$M$57/'MMA Rev-Exp Region 3'!$M$9, 0)","v":{"v":0,"d":"$0.00"}},{"$f":"IFERROR('MMA Rev-Exp Region 3'!$N$57/'MMA Rev-Exp Region 3'!$N$9, 0)","v":{"v":0,"d":"$0.00"}}]
["MMA",null,null,2016,"2016-12-31","Q1","2017-03-31","Region 3","Operating Expense","Medical Benefits Expense","Pharmacy Services","8.3","Ending IBNP for Prescription Drugs",{"$f":"IFERROR('MMA Rev-Exp Region 3'!$D$58/'MMA Rev-Exp Region 3'!$D$9, 0)","v":{"v":0,"d":"$0.00"}},{"$f":"IFERROR('MMA Rev-Exp Region 3'!$E$58/'MMA Rev-Exp Region 3'!$E$9, 0)","v":{"v":0,"d":"$0.00"}},{"$f":"IFERROR('MMA Rev-Exp Region 3'!$F$58/'MMA Rev-Exp Region 3'!$F$9, 0)","v":{"v":0,"d":"$0.00"}},{"$f":"IFERROR('MMA Rev-Exp Region 3'!$G$58/'MMA Rev-Exp Region 3'!$G$9, 0)","v":{"v":0,"d":"$0.00"}},{"$f":"IFERROR('MMA Rev-Exp Region 3'!$H$58/'MMA Rev-Exp Region 3'!$H$9, 0)","v":{"v":0,"d":"$0.00"}},{"$f":"IFERROR('MMA Rev-Exp Region 3'!$I$58/'MMA Rev-Exp Region 3'!$I$9, 0)","v":{"v":0,"d":"$0.00"}},{"$f":"IFERROR('MMA Rev-Exp Region 3'!$J$58/'MMA Rev-Exp Region 3'!$J$9, 0)","v":{"v":0,"d":"$0.00"}},{"$f":"IFERROR('MMA Rev-Exp Region 3'!$K$58/'MMA Rev-Exp Region 3'!$K$9, 0)","v":{"v":0,"d":"$0.00"}},{"$f":"IFERROR('MMA Rev-Exp Region 3'!$L$58/'MMA Rev-Exp Region 3'!$L$9, 0)","v":{"v":0,"d":"$0.00"}},{"$f":"IFERROR('MMA Rev-Exp Region 3'!$M$58/'MMA Rev-Exp Region 3'!$M$9, 0)","v":{"v":0,"d":"$0.00"}},{"$f":"IFERROR('MMA Rev-Exp Region 3'!$N$58/'MMA Rev-Exp Region 3'!$N$9, 0)","v":{"v":0,"d":"$0.00"}}]
["MMA",null,null,2016,"2016-12-31","Q1","2017-03-31","Region 3","Operating Expense","Medical Benefits Expense","Pharmacy Services","8.4","Prescription Drug Rebates ",{"$f":"IFERROR('MMA Rev-Exp Region 3'!$D$59/'MMA Rev-Exp Region 3'!$D$9, 0)","v":{"v":0,"d":"$0.00"}},{"$f":"IFERROR('MMA Rev-Exp Region 3'!$E$59/'MMA Rev-Exp Region 3'!$E$9, 0)","v":{"v":0,"d":"$0.00"}},{"$f":"IFERROR('MMA Rev-Exp Region 3'!$F$59/'MMA Rev-Exp Region 3'!$F$9, 0)","v":{"v":0,"d":"$0.00"}},{"$f":"IFERROR('MMA Rev-Exp Region 3'!$G$59/'MMA Rev-Exp Region 3'!$G$9, 0)","v":{"v":0,"d":"$0.00"}},{"$f":"IFERROR('MMA Rev-Exp Region 3'!$H$59/'MMA Rev-Exp Region 3'!$H$9, 0)","v":{"v":0,"d":"$0.00"}},{"$f":"IFERROR('MMA Rev-Exp Region 3'!$I$59/'MMA Rev-Exp Region 3'!$I$9, 0)","v":{"v":0,"d":"$0.00"}},{"$f":"IFERROR('MMA Rev-Exp Region 3'!$J$59/'MMA Rev-Exp Region 3'!$J$9, 0)","v":{"v":0,"d":"$0.00"}},{"$f":"IFERROR('MMA Rev-Exp Region 3'!$K$59/'MMA Rev-Exp Region 3'!$K$9, 0)","v":{"v":0,"d":"$0.00"}},{"$f":"IFERROR('MMA Rev-Exp Region 3'!$L$59/'MMA Rev-Exp Region 3'!$L$9, 0)","v":{"v":0,"d":"$0.00"}},{"$f":"IFERROR('MMA Rev-Exp Region 3'!$M$59/'MMA Rev-Exp Region 3'!$M$9, 0)","v":{"v":0,"d":"$0.00"}},{"$f":"IFERROR('MMA Rev-Exp Region 3'!$N$59/'MMA Rev-Exp Region 3'!$N$9, 0)","v":{"v":0,"d":"$0.00"}}]
["MMA",null,null,2016,"2016-12-31","Q1","2017-03-31","Region 3","Operating Expense","Medical Benefits Expense","Pharmacy Services","8.5","Ending accrual for Rebates receivable",{"$f":"IFERROR('MMA Rev-Exp Region 3'!$D$60/'MMA Rev-Exp Region 3'!$D$9, 0)","v":{"v":0,"d":"$0.00"}},{"$f":"IFERROR('MMA Rev-Exp Region 3'!$E$60/'MMA Rev-Exp Region 3'!$E$9, 0)","v":{"v":0,"d":"$0.00"}},{"$f":"IFERROR('MMA Rev-Exp Region 3'!$F$60/'MMA Rev-Exp Region 3'!$F$9, 0)","v":{"v":0,"d":"$0.00"}},{"$f":"IFERROR('MMA Rev-Exp Region 3'!$G$60/'MMA Rev-Exp Region 3'!$G$9, 0)","v":{"v":0,"d":"$0.00"}},{"$f":"IFERROR('MMA Rev-Exp Region 3'!$H$60/'MMA Rev-Exp Region 3'!$H$9, 0)","v":{"v":0,"d":"$0.00"}},{"$f":"IFERROR('MMA Rev-Exp Region 3'!$I$60/'MMA Rev-Exp Region 3'!$I$9, 0)","v":{"v":0,"d":"$0.00"}},{"$f":"IFERROR('MMA Rev-Exp Region 3'!$J$60/'MMA Rev-Exp Region 3'!$J$9, 0)","v":{"v":0,"d":"$0.00"}},{"$f":"IFERROR('MMA Rev-Exp Region 3'!$K$60/'MMA Rev-Exp Region 3'!$K$9, 0)","v":{"v":0,"d":"$0.00"}},{"$f":"IFERROR('MMA Rev-Exp Region 3'!$L$60/'MMA Rev-Exp Region 3'!$L$9, 0)","v":{"v":0,"d":"$0.00"}},{"$f":"IFERROR('MMA Rev-Exp Region 3'!$M$60/'MMA Rev-Exp Region 3'!$M$9, 0)","v":{"v":0,"d":"$0.00"}},{"$f":"IFERROR('MMA Rev-Exp Region 3'!$N$60/'MMA Rev-Exp Region 3'!$N$9, 0)","v":{"v":0,"d":"$0.00"}}]
["MMA",null,null,2016,"2016-12-31","Q1","2017-03-31","Region 3","Operating Expense","Medical Benefits Expense","Pharmacy Services","8.6","Prescription Drugs Subcapitation",{"$f":"IFERROR('MMA Rev-Exp Region 3'!$D$61/'MMA Rev-Exp Region 3'!$D$9, 0)","v":{"v":0,"d":"$0.00"}},{"$f":"IFERROR('MMA Rev-Exp Region 3'!$E$61/'MMA Rev-Exp Region 3'!$E$9, 0)","v":{"v":0,"d":"$0.00"}},{"$f":"IFERROR('MMA Rev-Exp Region 3'!$F$61/'MMA Rev-Exp Region 3'!$F$9, 0)","v":{"v":0,"d":"$0.00"}},{"$f":"IFERROR('MMA Rev-Exp Region 3'!$G$61/'MMA Rev-Exp Region 3'!$G$9, 0)","v":{"v":0,"d":"$0.00"}},{"$f":"IFERROR('MMA Rev-Exp Region 3'!$H$61/'MMA Rev-Exp Region 3'!$H$9, 0)","v":{"v":0,"d":"$0.00"}},{"$f":"IFERROR('MMA Rev-Exp Region 3'!$I$61/'MMA Rev-Exp Region 3'!$I$9, 0)","v":{"v":0,"d":"$0.00"}},{"$f":"IFERROR('MMA Rev-Exp Region 3'!$J$61/'MMA Rev-Exp Region 3'!$J$9, 0)","v":{"v":0,"d":"$0.00"}},{"$f":"IFERROR('MMA Rev-Exp Region 3'!$K$61/'MMA Rev-Exp Region 3'!$K$9, 0)","v":{"v":0,"d":"$0.00"}},{"$f":"IFERROR('MMA Rev-Exp Region 3'!$L$61/'MMA Rev-Exp Region 3'!$L$9, 0)","v":{"v":0,"d":"$0.00"}},{"$f":"IFERROR('MMA Rev-Exp Region 3'!$M$61/'MMA Rev-Exp Region 3'!$M$9, 0)","v":{"v":0,"d":"$0.00"}},{"$f":"IFERROR('MMA Rev-Exp Region 3'!$N$61/'MMA Rev-Exp Region 3'!$N$9, 0)","v":{"v":0,"d":"$0.00"}}]
["MMA",null,null,2016,"2016-12-31","Q1","2017-03-31","Region 3","Operating Expense","Medical Benefits Expense","Pharmacy Services","8.7","Prescription Drug Settlements",{"$f":"IFERROR('MMA Rev-Exp Region 3'!$D$62/'MMA Rev-Exp Region 3'!$D$9, 0)","v":{"v":0,"d":"$0.00"}},{"$f":"IFERROR('MMA Rev-Exp Region 3'!$E$62/'MMA Rev-Exp Region 3'!$E$9, 0)","v":{"v":0,"d":"$0.00"}},{"$f":"IFERROR('MMA Rev-Exp Region 3'!$F$62/'MMA Rev-Exp Region 3'!$F$9, 0)","v":{"v":0,"d":"$0.00"}},{"$f":"IFERROR('MMA Rev-Exp Region 3'!$G$62/'MMA Rev-Exp Region 3'!$G$9, 0)","v":{"v":0,"d":"$0.00"}},{"$f":"IFERROR('MMA Rev-Exp Region 3'!$H$62/'MMA Rev-Exp Region 3'!$H$9, 0)","v":{"v":0,"d":"$0.00"}},{"$f":"IFERROR('MMA Rev-Exp Region 3'!$I$62/'MMA Rev-Exp Region 3'!$I$9, 0)","v":{"v":0,"d":"$0.00"}},{"$f":"IFERROR('MMA Rev-Exp Region 3'!$J$62/'MMA Rev-Exp Region 3'!$J$9, 0)","v":{"v":0,"d":"$0.00"}},{"$f":"IFERROR('MMA Rev-Exp Region 3'!$K$62/'MMA Rev-Exp Region 3'!$K$9, 0)","v":{"v":0,"d":"$0.00"}},{"$f":"IFERROR('MMA Rev-Exp Region 3'!$L$62/'MMA Rev-Exp Region 3'!$L$9, 0)","v":{"v":0,"d":"$0.00"}},{"$f":"IFERROR('MMA Rev-Exp Region 3'!$M$62/'MMA Rev-Exp Region 3'!$M$9, 0)","v":{"v":0,"d":"$0.00"}},{"$f":"IFERROR('MMA Rev-Exp Region 3'!$N$62/'MMA Rev-Exp Region 3'!$N$9, 0)","v":{"v":0,"d":"$0.00"}}]
["MMA",null,null,2016,"2016-12-31","Q1","2017-03-31","Region 3","Operating Expense","Medical Benefits Expense","Other MMA Services",9.1,"Home Health, Private Duty Nursing, Personal Care FFS",{"$f":"IFERROR('MMA Rev-Exp Region 3'!$D$64/'MMA Rev-Exp Region 3'!$D$9, 0)","v":{"v":0,"d":"$0.00"}},{"$f":"IFERROR('MMA Rev-Exp Region 3'!$E$64/'MMA Rev-Exp Region 3'!$E$9, 0)","v":{"v":0,"d":"$0.00"}},{"$f":"IFERROR('MMA Rev-Exp Region 3'!$F$64/'MMA Rev-Exp Region 3'!$F$9, 0)","v":{"v":0,"d":"$0.00"}},{"$f":"IFERROR('MMA Rev-Exp Region 3'!$G$64/'MMA Rev-Exp Region 3'!$G$9, 0)","v":{"v":0,"d":"$0.00"}},{"$f":"IFERROR('MMA Rev-Exp Region 3'!$H$64/'MMA Rev-Exp Region 3'!$H$9, 0)","v":{"v":0,"d":"$0.00"}},{"$f":"IFERROR('MMA Rev-Exp Region 3'!$I$64/'MMA Rev-Exp Region 3'!$I$9, 0)","v":{"v":0,"d":"$0.00"}},{"$f":"IFERROR('MMA Rev-Exp Region 3'!$J$64/'MMA Rev-Exp Region 3'!$J$9, 0)","v":{"v":0,"d":"$0.00"}},{"$f":"IFERROR('MMA Rev-Exp Region 3'!$K$64/'MMA Rev-Exp Region 3'!$K$9, 0)","v":{"v":0,"d":"$0.00"}},{"$f":"IFERROR('MMA Rev-Exp Region 3'!$L$64/'MMA Rev-Exp Region 3'!$L$9, 0)","v":{"v":0,"d":"$0.00"}},{"$f":"IFERROR('MMA Rev-Exp Region 3'!$M$64/'MMA Rev-Exp Region 3'!$M$9, 0)","v":{"v":0,"d":"$0.00"}},{"$f":"IFERROR('MMA Rev-Exp Region 3'!$N$64/'MMA Rev-Exp Region 3'!$N$9, 0)","v":{"v":0,"d":"$0.00"}}]
["MMA",null,null,2016,"2016-12-31","Q1","2017-03-31","Region 3","Operating Expense","Medical Benefits Expense","Other MMA Services","9.2","Hospice FFS",{"$f":"IFERROR('MMA Rev-Exp Region 3'!$D$65/'MMA Rev-Exp Region 3'!$D$9, 0)","v":{"v":0,"d":"$0.00"}},{"$f":"IFERROR('MMA Rev-Exp Region 3'!$E$65/'MMA Rev-Exp Region 3'!$E$9, 0)","v":{"v":0,"d":"$0.00"}},{"$f":"IFERROR('MMA Rev-Exp Region 3'!$F$65/'MMA Rev-Exp Region 3'!$F$9, 0)","v":{"v":0,"d":"$0.00"}},{"$f":"IFERROR('MMA Rev-Exp Region 3'!$G$65/'MMA Rev-Exp Region 3'!$G$9, 0)","v":{"v":0,"d":"$0.00"}},{"$f":"IFERROR('MMA Rev-Exp Region 3'!$H$65/'MMA Rev-Exp Region 3'!$H$9, 0)","v":{"v":0,"d":"$0.00"}},{"$f":"IFERROR('MMA Rev-Exp Region 3'!$I$65/'MMA Rev-Exp Region 3'!$I$9, 0)","v":{"v":0,"d":"$0.00"}},{"$f":"IFERROR('MMA Rev-Exp Region 3'!$J$65/'MMA Rev-Exp Region 3'!$J$9, 0)","v":{"v":0,"d":"$0.00"}},{"$f":"IFERROR('MMA Rev-Exp Region 3'!$K$65/'MMA Rev-Exp Region 3'!$K$9, 0)","v":{"v":0,"d":"$0.00"}},{"$f":"IFERROR('MMA Rev-Exp Region 3'!$L$65/'MMA Rev-Exp Region 3'!$L$9, 0)","v":{"v":0,"d":"$0.00"}},{"$f":"IFERROR('MMA Rev-Exp Region 3'!$M$65/'MMA Rev-Exp Region 3'!$M$9, 0)","v":{"v":0,"d":"$0.00"}},{"$f":"IFERROR('MMA Rev-Exp Region 3'!$N$65/'MMA Rev-Exp Region 3'!$N$9, 0)","v":{"v":0,"d":"$0.00"}}]
["MMA",null,null,2016,"2016-12-31","Q1","2017-03-31","Region 3","Operating Expense","Medical Benefits Expense","Other MMA Services","9.3","DME FFS",{"$f":"IFERROR('MMA Rev-Exp Region 3'!$D$66/'MMA Rev-Exp Region 3'!$D$9, 0)","v":{"v":0,"d":"$0.00"}},{"$f":"IFERROR('MMA Rev-Exp Region 3'!$E$66/'MMA Rev-Exp Region 3'!$E$9, 0)","v":{"v":0,"d":"$0.00"}},{"$f":"IFERROR('MMA Rev-Exp Region 3'!$F$66/'MMA Rev-Exp Region 3'!$F$9, 0)","v":{"v":0,"d":"$0.00"}},{"$f":"IFERROR('MMA Rev-Exp Region 3'!$G$66/'MMA Rev-Exp Region 3'!$G$9, 0)","v":{"v":0,"d":"$0.00"}},{"$f":"IFERROR('MMA Rev-Exp Region 3'!$H$66/'MMA Rev-Exp Region 3'!$H$9, 0)","v":{"v":0,"d":"$0.00"}},{"$f":"IFERROR('MMA Rev-Exp Region 3'!$I$66/'MMA Rev-Exp Region 3'!$I$9, 0)","v":{"v":0,"d":"$0.00"}},{"$f":"IFERROR('MMA Rev-Exp Region 3'!$J$66/'MMA Rev-Exp Region 3'!$J$9, 0)","v":{"v":0,"d":"$0.00"}},{"$f":"IFERROR('MMA Rev-Exp Region 3'!$K$66/'MMA Rev-Exp Region 3'!$K$9, 0)","v":{"v":0,"d":"$0.00"}},{"$f":"IFERROR('MMA Rev-Exp Region 3'!$L$66/'MMA Rev-Exp Region 3'!$L$9, 0)","v":{"v":0,"d":"$0.00"}},{"$f":"IFERROR('MMA Rev-Exp Region 3'!$M$66/'MMA Rev-Exp Region 3'!$M$9, 0)","v":{"v":0,"d":"$0.00"}},{"$f":"IFERROR('MMA Rev-Exp Region 3'!$N$66/'MMA Rev-Exp Region 3'!$N$9, 0)","v":{"v":0,"d":"$0.00"}}]
["MMA",null,null,2016,"2016-12-31","Q1","2017-03-31","Region 3","Operating Expense","Medical Benefits Expense","Other MMA Services","9.4","Other State Plan Services FFS",{"$f":"IFERROR('MMA Rev-Exp Region 3'!$D$67/'MMA Rev-Exp Region 3'!$D$9, 0)","v":{"v":0,"d":"$0.00"}},{"$f":"IFERROR('MMA Rev-Exp Region 3'!$E$67/'MMA Rev-Exp Region 3'!$E$9, 0)","v":{"v":0,"d":"$0.00"}},{"$f":"IFERROR('MMA Rev-Exp Region 3'!$F$67/'MMA Rev-Exp Region 3'!$F$9, 0)","v":{"v":0,"d":"$0.00"}},{"$f":"IFERROR('MMA Rev-Exp Region 3'!$G$67/'MMA Rev-Exp Region 3'!$G$9, 0)","v":{"v":0,"d":"$0.00"}},{"$f":"IFERROR('MMA Rev-Exp Region 3'!$H$67/'MMA Rev-Exp Region 3'!$H$9, 0)","v":{"v":0,"d":"$0.00"}},{"$f":"IFERROR('MMA Rev-Exp Region 3'!$I$67/'MMA Rev-Exp Region 3'!$I$9, 0)","v":{"v":0,"d":"$0.00"}},{"$f":"IFERROR('MMA Rev-Exp Region 3'!$J$67/'MMA Rev-Exp Region 3'!$J$9, 0)","v":{"v":0,"d":"$0.00"}},{"$f":"IFERROR('MMA Rev-Exp Region 3'!$K$67/'MMA Rev-Exp Region 3'!$K$9, 0)","v":{"v":0,"d":"$0.00"}},{"$f":"IFERROR('MMA Rev-Exp Region 3'!$L$67/'MMA Rev-Exp Region 3'!$L$9, 0)","v":{"v":0,"d":"$0.00"}},{"$f":"IFERROR('MMA Rev-Exp Region 3'!$M$67/'MMA Rev-Exp Region 3'!$M$9, 0)","v":{"v":0,"d":"$0.00"}},{"$f":"IFERROR('MMA Rev-Exp Region 3'!$N$67/'MMA Rev-Exp Region 3'!$N$9, 0)","v":{"v":0,"d":"$0.00"}}]
["MMA",null,null,2016,"2016-12-31","Q1","2017-03-31","Region 3","Operating Expense","Medical Benefits Expense","Other MMA Services","9.5","Other Services Subcapitation",{"$f":"IFERROR('MMA Rev-Exp Region 3'!$D$68/'MMA Rev-Exp Region 3'!$D$9, 0)","v":{"v":0,"d":"$0.00"}},{"$f":"IFERROR('MMA Rev-Exp Region 3'!$E$68/'MMA Rev-Exp Region 3'!$E$9, 0)","v":{"v":0,"d":"$0.00"}},{"$f":"IFERROR('MMA Rev-Exp Region 3'!$F$68/'MMA Rev-Exp Region 3'!$F$9, 0)","v":{"v":0,"d":"$0.00"}},{"$f":"IFERROR('MMA Rev-Exp Region 3'!$G$68/'MMA Rev-Exp Region 3'!$G$9, 0)","v":{"v":0,"d":"$0.00"}},{"$f":"IFERROR('MMA Rev-Exp Region 3'!$H$68/'MMA Rev-Exp Region 3'!$H$9, 0)","v":{"v":0,"d":"$0.00"}},{"$f":"IFERROR('MMA Rev-Exp Region 3'!$I$68/'MMA Rev-Exp Region 3'!$I$9, 0)","v":{"v":0,"d":"$0.00"}},{"$f":"IFERROR('MMA Rev-Exp Region 3'!$J$68/'MMA Rev-Exp Region 3'!$J$9, 0)","v":{"v":0,"d":"$0.00"}},{"$f":"IFERROR('MMA Rev-Exp Region 3'!$K$68/'MMA Rev-Exp Region 3'!$K$9, 0)","v":{"v":0,"d":"$0.00"}},{"$f":"IFERROR('MMA Rev-Exp Region 3'!$L$68/'MMA Rev-Exp Region 3'!$L$9, 0)","v":{"v":0,"d":"$0.00"}},{"$f":"IFERROR('MMA Rev-Exp Region 3'!$M$68/'MMA Rev-Exp Region 3'!$M$9, 0)","v":{"v":0,"d":"$0.00"}},{"$f":"IFERROR('MMA Rev-Exp Region 3'!$N$68/'MMA Rev-Exp Region 3'!$N$9, 0)","v":{"v":0,"d":"$0.00"}}]
["MMA",null,null,2016,"2016-12-31","Q1","2017-03-31","Region 3","Operating Expense","Medical Benefits Expense","Other MMA Services","9.6","Ending IBNP for Other Services",{"$f":"IFERROR('MMA Rev-Exp Region 3'!$D$69/'MMA Rev-Exp Region 3'!$D$9, 0)","v":{"v":0,"d":"$0.00"}},{"$f":"IFERROR('MMA Rev-Exp Region 3'!$E$69/'MMA Rev-Exp Region 3'!$E$9, 0)","v":{"v":0,"d":"$0.00"}},{"$f":"IFERROR('MMA Rev-Exp Region 3'!$F$69/'MMA Rev-Exp Region 3'!$F$9, 0)","v":{"v":0,"d":"$0.00"}},{"$f":"IFERROR('MMA Rev-Exp Region 3'!$G$69/'MMA Rev-Exp Region 3'!$G$9, 0)","v":{"v":0,"d":"$0.00"}},{"$f":"IFERROR('MMA Rev-Exp Region 3'!$H$69/'MMA Rev-Exp Region 3'!$H$9, 0)","v":{"v":0,"d":"$0.00"}},{"$f":"IFERROR('MMA Rev-Exp Region 3'!$I$69/'MMA Rev-Exp Region 3'!$I$9, 0)","v":{"v":0,"d":"$0.00"}},{"$f":"IFERROR('MMA Rev-Exp Region 3'!$J$69/'MMA Rev-Exp Region 3'!$J$9, 0)","v":{"v":0,"d":"$0.00"}},{"$f":"IFERROR('MMA Rev-Exp Region 3'!$K$69/'MMA Rev-Exp Region 3'!$K$9, 0)","v":{"v":0,"d":"$0.00"}},{"$f":"IFERROR('MMA Rev-Exp Region 3'!$L$69/'MMA Rev-Exp Region 3'!$L$9, 0)","v":{"v":0,"d":"$0.00"}},{"$f":"IFERROR('MMA Rev-Exp Region 3'!$M$69/'MMA Rev-Exp Region 3'!$M$9, 0)","v":{"v":0,"d":"$0.00"}},{"$f":"IFERROR('MMA Rev-Exp Region 3'!$N$69/'MMA Rev-Exp Region 3'!$N$9, 0)","v":{"v":0,"d":"$0.00"}}]
["MMA",null,null,2016,"2016-12-31","Q1","2017-03-31","Region 3","Operating Expense","Medical Benefits Expense","Other MMA Services","9.7","Other Services Settlements",{"$f":"IFERROR('MMA Rev-Exp Region 3'!$D$70/'MMA Rev-Exp Region 3'!$D$9, 0)","v":{"v":0,"d":"$0.00"}},{"$f":"IFERROR('MMA Rev-Exp Region 3'!$E$70/'MMA Rev-Exp Region 3'!$E$9, 0)","v":{"v":0,"d":"$0.00"}},{"$f":"IFERROR('MMA Rev-Exp Region 3'!$F$70/'MMA Rev-Exp Region 3'!$F$9, 0)","v":{"v":0,"d":"$0.00"}},{"$f":"IFERROR('MMA Rev-Exp Region 3'!$G$70/'MMA Rev-Exp Region 3'!$G$9, 0)","v":{"v":0,"d":"$0.00"}},{"$f":"IFERROR('MMA Rev-Exp Region 3'!$H$70/'MMA Rev-Exp Region 3'!$H$9, 0)","v":{"v":0,"d":"$0.00"}},{"$f":"IFERROR('MMA Rev-Exp Region 3'!$I$70/'MMA Rev-Exp Region 3'!$I$9, 0)","v":{"v":0,"d":"$0.00"}},{"$f":"IFERROR('MMA Rev-Exp Region 3'!$J$70/'MMA Rev-Exp Region 3'!$J$9, 0)","v":{"v":0,"d":"$0.00"}},{"$f":"IFERROR('MMA Rev-Exp Region 3'!$K$70/'MMA Rev-Exp Region 3'!$K$9, 0)","v":{"v":0,"d":"$0.00"}},{"$f":"IFERROR('MMA Rev-Exp Region 3'!$L$70/'MMA Rev-Exp Region 3'!$L$9, 0)","v":{"v":0,"d":"$0.00"}},{"$f":"IFERROR('MMA Rev-Exp Region 3'!$M$70/'MMA Rev-Exp Region 3'!$M$9, 0)","v":{"v":0,"d":"$0.00"}},{"$f":"IFERROR('MMA Rev-Exp Region 3'!$N$70/'MMA Rev-Exp Region 3'!$N$9, 0)","v":{"v":0,"d":"$0.00"}}]
["MMA",null,null,2016,"2016-12-31","Q1","2017-03-31","Region 3","Operating Expense","Medical Benefits Expense","Expanded Benefits","10.1","Expanded Benefits FFS",{"$f":"IFERROR('MMA Rev-Exp Region 3'!$D$72/'MMA Rev-Exp Region 3'!$D$9, 0)","v":{"v":0,"d":"$0.00"}},{"$f":"IFERROR('MMA Rev-Exp Region 3'!$E$72/'MMA Rev-Exp Region 3'!$E$9, 0)","v":{"v":0,"d":"$0.00"}},{"$f":"IFERROR('MMA Rev-Exp Region 3'!$F$72/'MMA Rev-Exp Region 3'!$F$9, 0)","v":{"v":0,"d":"$0.00"}},{"$f":"IFERROR('MMA Rev-Exp Region 3'!$G$72/'MMA Rev-Exp Region 3'!$G$9, 0)","v":{"v":0,"d":"$0.00"}},{"$f":"IFERROR('MMA Rev-Exp Region 3'!$H$72/'MMA Rev-Exp Region 3'!$H$9, 0)","v":{"v":0,"d":"$0.00"}},{"$f":"IFERROR('MMA Rev-Exp Region 3'!$I$72/'MMA Rev-Exp Region 3'!$I$9, 0)","v":{"v":0,"d":"$0.00"}},{"$f":"IFERROR('MMA Rev-Exp Region 3'!$J$72/'MMA Rev-Exp Region 3'!$J$9, 0)","v":{"v":0,"d":"$0.00"}},{"$f":"IFERROR('MMA Rev-Exp Region 3'!$K$72/'MMA Rev-Exp Region 3'!$K$9, 0)","v":{"v":0,"d":"$0.00"}},{"$f":"IFERROR('MMA Rev-Exp Region 3'!$L$72/'MMA Rev-Exp Region 3'!$L$9, 0)","v":{"v":0,"d":"$0.00"}},{"$f":"IFERROR('MMA Rev-Exp Region 3'!$M$72/'MMA Rev-Exp Region 3'!$M$9, 0)","v":{"v":0,"d":"$0.00"}},{"$f":"IFERROR('MMA Rev-Exp Region 3'!$N$72/'MMA Rev-Exp Region 3'!$N$9, 0)","v":{"v":0,"d":"$0.00"}}]
["MMA",null,null,2016,"2016-12-31","Q1","2017-03-31","Region 3","Operating Expense","Medical Benefits Expense","Expanded Benefits","10.2","Expanded benefits Subcapitation",{"$f":"IFERROR('MMA Rev-Exp Region 3'!$D$73/'MMA Rev-Exp Region 3'!$D$9, 0)","v":{"v":0,"d":"$0.00"}},{"$f":"IFERROR('MMA Rev-Exp Region 3'!$E$73/'MMA Rev-Exp Region 3'!$E$9, 0)","v":{"v":0,"d":"$0.00"}},{"$f":"IFERROR('MMA Rev-Exp Region 3'!$F$73/'MMA Rev-Exp Region 3'!$F$9, 0)","v":{"v":0,"d":"$0.00"}},{"$f":"IFERROR('MMA Rev-Exp Region 3'!$G$73/'MMA Rev-Exp Region 3'!$G$9, 0)","v":{"v":0,"d":"$0.00"}},{"$f":"IFERROR('MMA Rev-Exp Region 3'!$H$73/'MMA Rev-Exp Region 3'!$H$9, 0)","v":{"v":0,"d":"$0.00"}},{"$f":"IFERROR('MMA Rev-Exp Region 3'!$I$73/'MMA Rev-Exp Region 3'!$I$9, 0)","v":{"v":0,"d":"$0.00"}},{"$f":"IFERROR('MMA Rev-Exp Region 3'!$J$73/'MMA Rev-Exp Region 3'!$J$9, 0)","v":{"v":0,"d":"$0.00"}},{"$f":"IFERROR('MMA Rev-Exp Region 3'!$K$73/'MMA Rev-Exp Region 3'!$K$9, 0)","v":{"v":0,"d":"$0.00"}},{"$f":"IFERROR('MMA Rev-Exp Region 3'!$L$73/'MMA Rev-Exp Region 3'!$L$9, 0)","v":{"v":0,"d":"$0.00"}},{"$f":"IFERROR('MMA Rev-Exp Region 3'!$M$73/'MMA Rev-Exp Region 3'!$M$9, 0)","v":{"v":0,"d":"$0.00"}},{"$f":"IFERROR('MMA Rev-Exp Region 3'!$N$73/'MMA Rev-Exp Region 3'!$N$9, 0)","v":{"v":0,"d":"$0.00"}}]
["MMA",null,null,2016,"2016-12-31","Q1","2017-03-31","Region 3","Operating Expense","Medical Benefits Expense","Expanded Benefits","10.3","Ending IBNP for Expanded Benefits",{"$f":"IFERROR('MMA Rev-Exp Region 3'!$D$74/'MMA Rev-Exp Region 3'!$D$9, 0)","v":{"v":0,"d":"$0.00"}},{"$f":"IFERROR('MMA Rev-Exp Region 3'!$E$74/'MMA Rev-Exp Region 3'!$E$9, 0)","v":{"v":0,"d":"$0.00"}},{"$f":"IFERROR('MMA Rev-Exp Region 3'!$F$74/'MMA Rev-Exp Region 3'!$F$9, 0)","v":{"v":0,"d":"$0.00"}},{"$f":"IFERROR('MMA Rev-Exp Region 3'!$G$74/'MMA Rev-Exp Region 3'!$G$9, 0)","v":{"v":0,"d":"$0.00"}},{"$f":"IFERROR('MMA Rev-Exp Region 3'!$H$74/'MMA Rev-Exp Region 3'!$H$9, 0)","v":{"v":0,"d":"$0.00"}},{"$f":"IFERROR('MMA Rev-Exp Region 3'!$I$74/'MMA Rev-Exp Region 3'!$I$9, 0)","v":{"v":0,"d":"$0.00"}},{"$f":"IFERROR('MMA Rev-Exp Region 3'!$J$74/'MMA Rev-Exp Region 3'!$J$9, 0)","v":{"v":0,"d":"$0.00"}},{"$f":"IFERROR('MMA Rev-Exp Region 3'!$K$74/'MMA Rev-Exp Region 3'!$K$9, 0)","v":{"v":0,"d":"$0.00"}},{"$f":"IFERROR('MMA Rev-Exp Region 3'!$L$74/'MMA Rev-Exp Region 3'!$L$9, 0)","v":{"v":0,"d":"$0.00"}},{"$f":"IFERROR('MMA Rev-Exp Region 3'!$M$74/'MMA Rev-Exp Region 3'!$M$9, 0)","v":{"v":0,"d":"$0.00"}},{"$f":"IFERROR('MMA Rev-Exp Region 3'!$N$74/'MMA Rev-Exp Region 3'!$N$9, 0)","v":{"v":0,"d":"$0.00"}}]
["MMA",null,null,2016,"2016-12-31","Q1","2017-03-31","Region 3","Operating Expense","Medical Benefits Expense","Expanded Benefits","10.4","Expanded Benefits Settlements",{"$f":"IFERROR('MMA Rev-Exp Region 3'!$D$75/'MMA Rev-Exp Region 3'!$D$9, 0)","v":{"v":0,"d":"$0.00"}},{"$f":"IFERROR('MMA Rev-Exp Region 3'!$E$75/'MMA Rev-Exp Region 3'!$E$9, 0)","v":{"v":0,"d":"$0.00"}},{"$f":"IFERROR('MMA Rev-Exp Region 3'!$F$75/'MMA Rev-Exp Region 3'!$F$9, 0)","v":{"v":0,"d":"$0.00"}},{"$f":"IFERROR('MMA Rev-Exp Region 3'!$G$75/'MMA Rev-Exp Region 3'!$G$9, 0)","v":{"v":0,"d":"$0.00"}},{"$f":"IFERROR('MMA Rev-Exp Region 3'!$H$75/'MMA Rev-Exp Region 3'!$H$9, 0)","v":{"v":0,"d":"$0.00"}},{"$f":"IFERROR('MMA Rev-Exp Region 3'!$I$75/'MMA Rev-Exp Region 3'!$I$9, 0)","v":{"v":0,"d":"$0.00"}},{"$f":"IFERROR('MMA Rev-Exp Region 3'!$J$75/'MMA Rev-Exp Region 3'!$J$9, 0)","v":{"v":0,"d":"$0.00"}},{"$f":"IFERROR('MMA Rev-Exp Region 3'!$K$75/'MMA Rev-Exp Region 3'!$K$9, 0)","v":{"v":0,"d":"$0.00"}},{"$f":"IFERROR('MMA Rev-Exp Region 3'!$L$75/'MMA Rev-Exp Region 3'!$L$9, 0)","v":{"v":0,"d":"$0.00"}},{"$f":"IFERROR('MMA Rev-Exp Region 3'!$M$75/'MMA Rev-Exp Region 3'!$M$9, 0)","v":{"v":0,"d":"$0.00"}},{"$f":"IFERROR('MMA Rev-Exp Region 3'!$N$75/'MMA Rev-Exp Region 3'!$N$9, 0)","v":{"v":0,"d":"$0.00"}}]
["MMA",null,null,2016,"2016-12-31","Q1","2017-03-31","Region 3","Operating Expense","Medical Benefits Expense","Other Medical","11.5","TPL & Fraud/Abuse Recoveries",{"$f":"IFERROR('MMA Rev-Exp Region 3'!$D$81/'MMA Rev-Exp Region 3'!$D$9, 0)","v":{"v":0,"d":"$0.00"}},{"$f":"IFERROR('MMA Rev-Exp Region 3'!$E$81/'MMA Rev-Exp Region 3'!$E$9, 0)","v":{"v":0,"d":"$0.00"}},{"$f":"IFERROR('MMA Rev-Exp Region 3'!$F$81/'MMA Rev-Exp Region 3'!$F$9, 0)","v":{"v":0,"d":"$0.00"}},{"$f":"IFERROR('MMA Rev-Exp Region 3'!$G$81/'MMA Rev-Exp Region 3'!$G$9, 0)","v":{"v":0,"d":"$0.00"}},{"$f":"IFERROR('MMA Rev-Exp Region 3'!$H$81/'MMA Rev-Exp Region 3'!$H$9, 0)","v":{"v":0,"d":"$0.00"}},{"$f":"IFERROR('MMA Rev-Exp Region 3'!$I$81/'MMA Rev-Exp Region 3'!$I$9, 0)","v":{"v":0,"d":"$0.00"}},{"$f":"IFERROR('MMA Rev-Exp Region 3'!$J$81/'MMA Rev-Exp Region 3'!$J$9, 0)","v":{"v":0,"d":"$0.00"}},{"$f":"IFERROR('MMA Rev-Exp Region 3'!$K$81/'MMA Rev-Exp Region 3'!$K$9, 0)","v":{"v":0,"d":"$0.00"}},{"$f":"IFERROR('MMA Rev-Exp Region 3'!$L$81/'MMA Rev-Exp Region 3'!$L$9, 0)","v":{"v":0,"d":"$0.00"}},{"$f":"IFERROR('MMA Rev-Exp Region 3'!$M$81/'MMA Rev-Exp Region 3'!$M$9, 0)","v":{"v":0,"d":"$0.00"}},{"$f":"IFERROR('MMA Rev-Exp Region 3'!$N$81/'MMA Rev-Exp Region 3'!$N$9, 0)","v":{"v":0,"d":"$0.00"}}]
["MMA",null,null,2016,"2016-12-31","Q1","2017-03-31","Region 3","Operating Expense","Medical Benefits Expense","Other Medical","11.6.1","Premium Deficiency Reserve",{"$f":"IFERROR('MMA Rev-Exp Region 3'!$D$82/'MMA Rev-Exp Region 3'!$D$9, 0)","v":{"v":0,"d":"$0.00"}},{"$f":"IFERROR('MMA Rev-Exp Region 3'!$E$82/'MMA Rev-Exp Region 3'!$E$9, 0)","v":{"v":0,"d":"$0.00"}},{"$f":"IFERROR('MMA Rev-Exp Region 3'!$F$82/'MMA Rev-Exp Region 3'!$F$9, 0)","v":{"v":0,"d":"$0.00"}},{"$f":"IFERROR('MMA Rev-Exp Region 3'!$G$82/'MMA Rev-Exp Region 3'!$G$9, 0)","v":{"v":0,"d":"$0.00"}},{"$f":"IFERROR('MMA Rev-Exp Region 3'!$H$82/'MMA Rev-Exp Region 3'!$H$9, 0)","v":{"v":0,"d":"$0.00"}},{"$f":"IFERROR('MMA Rev-Exp Region 3'!$I$82/'MMA Rev-Exp Region 3'!$I$9, 0)","v":{"v":0,"d":"$0.00"}},{"$f":"IFERROR('MMA Rev-Exp Region 3'!$J$82/'MMA Rev-Exp Region 3'!$J$9, 0)","v":{"v":0,"d":"$0.00"}},{"$f":"IFERROR('MMA Rev-Exp Region 3'!$K$82/'MMA Rev-Exp Region 3'!$K$9, 0)","v":{"v":0,"d":"$0.00"}},{"$f":"IFERROR('MMA Rev-Exp Region 3'!$L$82/'MMA Rev-Exp Region 3'!$L$9, 0)","v":{"v":0,"d":"$0.00"}},{"$f":"IFERROR('MMA Rev-Exp Region 3'!$M$82/'MMA Rev-Exp Region 3'!$M$9, 0)","v":{"v":0,"d":"$0.00"}},{"$f":"IFERROR('MMA Rev-Exp Region 3'!$N$82/'MMA Rev-Exp Region 3'!$N$9, 0)","v":{"v":0,"d":"$0.00"}}]
["MMA",null,null,2016,"2016-12-31","Q1","2017-03-31","Region 3","Operating Expense","Medical Benefits Expense","Other Medical","11.8","Reinsurance Premiums",{"$f":"IFERROR('MMA Rev-Exp Region 3'!$D$84/'MMA Rev-Exp Region 3'!$D$9, 0)","v":{"v":0,"d":"$0.00"}},{"$f":"IFERROR('MMA Rev-Exp Region 3'!$E$84/'MMA Rev-Exp Region 3'!$E$9, 0)","v":{"v":0,"d":"$0.00"}},{"$f":"IFERROR('MMA Rev-Exp Region 3'!$F$84/'MMA Rev-Exp Region 3'!$F$9, 0)","v":{"v":0,"d":"$0.00"}},{"$f":"IFERROR('MMA Rev-Exp Region 3'!$G$84/'MMA Rev-Exp Region 3'!$G$9, 0)","v":{"v":0,"d":"$0.00"}},{"$f":"IFERROR('MMA Rev-Exp Region 3'!$H$84/'MMA Rev-Exp Region 3'!$H$9, 0)","v":{"v":0,"d":"$0.00"}},{"$f":"IFERROR('MMA Rev-Exp Region 3'!$I$84/'MMA Rev-Exp Region 3'!$I$9, 0)","v":{"v":0,"d":"$0.00"}},{"$f":"IFERROR('MMA Rev-Exp Region 3'!$J$84/'MMA Rev-Exp Region 3'!$J$9, 0)","v":{"v":0,"d":"$0.00"}},{"$f":"IFERROR('MMA Rev-Exp Region 3'!$K$84/'MMA Rev-Exp Region 3'!$K$9, 0)","v":{"v":0,"d":"$0.00"}},{"$f":"IFERROR('MMA Rev-Exp Region 3'!$L$84/'MMA Rev-Exp Region 3'!$L$9, 0)","v":{"v":0,"d":"$0.00"}},{"$f":"IFERROR('MMA Rev-Exp Region 3'!$M$84/'MMA Rev-Exp Region 3'!$M$9, 0)","v":{"v":0,"d":"$0.00"}},{"$f":"IFERROR('MMA Rev-Exp Region 3'!$N$84/'MMA Rev-Exp Region 3'!$N$9, 0)","v":{"v":0,"d":"$0.00"}}]
["MMA",null,null,2016,"2016-12-31","Q1","2017-03-31","Region 3","Operating Expense","Medical Benefits Expense","Other Medical","11.9","Reinsurance Recoveries",{"$f":"IFERROR('MMA Rev-Exp Region 3'!$D$85/'MMA Rev-Exp Region 3'!$D$9, 0)","v":{"v":0,"d":"$0.00"}},{"$f":"IFERROR('MMA Rev-Exp Region 3'!$E$85/'MMA Rev-Exp Region 3'!$E$9, 0)","v":{"v":0,"d":"$0.00"}},{"$f":"IFERROR('MMA Rev-Exp Region 3'!$F$85/'MMA Rev-Exp Region 3'!$F$9, 0)","v":{"v":0,"d":"$0.00"}},{"$f":"IFERROR('MMA Rev-Exp Region 3'!$G$85/'MMA Rev-Exp Region 3'!$G$9, 0)","v":{"v":0,"d":"$0.00"}},{"$f":"IFERROR('MMA Rev-Exp Region 3'!$H$85/'MMA Rev-Exp Region 3'!$H$9, 0)","v":{"v":0,"d":"$0.00"}},{"$f":"IFERROR('MMA Rev-Exp Region 3'!$I$85/'MMA Rev-Exp Region 3'!$I$9, 0)","v":{"v":0,"d":"$0.00"}},{"$f":"IFERROR('MMA Rev-Exp Region 3'!$J$85/'MMA Rev-Exp Region 3'!$J$9, 0)","v":{"v":0,"d":"$0.00"}},{"$f":"IFERROR('MMA Rev-Exp Region 3'!$K$85/'MMA Rev-Exp Region 3'!$K$9, 0)","v":{"v":0,"d":"$0.00"}},{"$f":"IFERROR('MMA Rev-Exp Region 3'!$L$85/'MMA Rev-Exp Region 3'!$L$9, 0)","v":{"v":0,"d":"$0.00"}},{"$f":"IFERROR('MMA Rev-Exp Region 3'!$M$85/'MMA Rev-Exp Region 3'!$M$9, 0)","v":{"v":0,"d":"$0.00"}},{"$f":"IFERROR('MMA Rev-Exp Region 3'!$N$85/'MMA Rev-Exp Region 3'!$N$9, 0)","v":{"v":0,"d":"$0.00"}}]
["MMA",null,null,2016,"2016-12-31","Q1","2017-03-31","Region 3","Operating Expense","Administrative Expense","Administrative","12.1","Salaries & Benefits",{"$f":"IFERROR('MMA Rev-Exp Region 3'!$D$90/'MMA Rev-Exp Region 3'!$D$9, 0)","v":{"v":0,"d":"$0.00"}},{"$f":"IFERROR('MMA Rev-Exp Region 3'!$E$90/'MMA Rev-Exp Region 3'!$D$9, 0)","v":{"v":0,"d":"$0.00"}},{"$f":"IFERROR('MMA Rev-Exp Region 3'!$F$90/'MMA Rev-Exp Region 3'!$D$9, 0)","v":{"v":0,"d":"$0.00"}},{"$f":"IFERROR('MMA Rev-Exp Region 3'!$G$90/'MMA Rev-Exp Region 3'!$G$9, 0)","v":{"v":0,"d":"$0.00"}},{"$f":"IFERROR('MMA Rev-Exp Region 3'!$H$90/'MMA Rev-Exp Region 3'!$H$9, 0)","v":{"v":0,"d":"$0.00"}},{"$f":"IFERROR('MMA Rev-Exp Region 3'!$I$90/'MMA Rev-Exp Region 3'!$I$9, 0)","v":{"v":0,"d":"$0.00"}},{"$f":"IFERROR('MMA Rev-Exp Region 3'!$J$90/'MMA Rev-Exp Region 3'!$J$9, 0)","v":{"v":0,"d":"$0.00"}},{"$f":"IFERROR('MMA Rev-Exp Region 3'!$K$90/'MMA Rev-Exp Region 3'!$K$9, 0)","v":{"v":0,"d":"$0.00"}},{"$f":"IFERROR('MMA Rev-Exp Region 3'!$L$90/'MMA Rev-Exp Region 3'!$L$9, 0)","v":{"v":0,"d":"$0.00"}},{"$f":"IFERROR('MMA Rev-Exp Region 3'!$M$90/'MMA Rev-Exp Region 3'!$M$9, 0)","v":{"v":0,"d":"$0.00"}},{"$f":"IFERROR('MMA Rev-Exp Region 3'!$N$90/'MMA Rev-Exp Region 3'!$N$9, 0)","v":{"v":0,"d":"$0.00"}}]
["MMA",null,null,2016,"2016-12-31","Q1","2017-03-31","Region 3","Operating Expense","Administrative Expense","Administrative","12.2","Administrative Services",{"$f":"IFERROR('MMA Rev-Exp Region 3'!$D$91/'MMA Rev-Exp Region 3'!$D$9, 0)","v":{"v":0,"d":"$0.00"}},{"$f":"IFERROR('MMA Rev-Exp Region 3'!$E$91/'MMA Rev-Exp Region 3'!$D$9, 0)","v":{"v":0,"d":"$0.00"}},{"$f":"IFERROR('MMA Rev-Exp Region 3'!$F$91/'MMA Rev-Exp Region 3'!$D$9, 0)","v":{"v":0,"d":"$0.00"}},{"$f":"IFERROR('MMA Rev-Exp Region 3'!$G$91/'MMA Rev-Exp Region 3'!$G$9, 0)","v":{"v":0,"d":"$0.00"}},{"$f":"IFERROR('MMA Rev-Exp Region 3'!$H$91/'MMA Rev-Exp Region 3'!$H$9, 0)","v":{"v":0,"d":"$0.00"}},{"$f":"IFERROR('MMA Rev-Exp Region 3'!$I$91/'MMA Rev-Exp Region 3'!$I$9, 0)","v":{"v":0,"d":"$0.00"}},{"$f":"IFERROR('MMA Rev-Exp Region 3'!$J$91/'MMA Rev-Exp Region 3'!$J$9, 0)","v":{"v":0,"d":"$0.00"}},{"$f":"IFERROR('MMA Rev-Exp Region 3'!$K$91/'MMA Rev-Exp Region 3'!$K$9, 0)","v":{"v":0,"d":"$0.00"}},{"$f":"IFERROR('MMA Rev-Exp Region 3'!$L$91/'MMA Rev-Exp Region 3'!$L$9, 0)","v":{"v":0,"d":"$0.00"}},{"$f":"IFERROR('MMA Rev-Exp Region 3'!$M$91/'MMA Rev-Exp Region 3'!$M$9, 0)","v":{"v":0,"d":"$0.00"}},{"$f":"IFERROR('MMA Rev-Exp Region 3'!$N$91/'MMA Rev-Exp Region 3'!$N$9, 0)","v":{"v":0,"d":"$0.00"}}]
["MMA",null,null,2016,"2016-12-31","Q1","2017-03-31","Region 3","Operating Expense","Administrative Expense","Administrative","12.3","Information Systems",{"$f":"IFERROR('MMA Rev-Exp Region 3'!$D$92/'MMA Rev-Exp Region 3'!$D$9, 0)","v":{"v":0,"d":"$0.00"}},{"$f":"IFERROR('MMA Rev-Exp Region 3'!$E$92/'MMA Rev-Exp Region 3'!$D$9, 0)","v":{"v":0,"d":"$0.00"}},{"$f":"IFERROR('MMA Rev-Exp Region 3'!$F$92/'MMA Rev-Exp Region 3'!$D$9, 0)","v":{"v":0,"d":"$0.00"}},{"$f":"IFERROR('MMA Rev-Exp Region 3'!$G$92/'MMA Rev-Exp Region 3'!$G$9, 0)","v":{"v":0,"d":"$0.00"}},{"$f":"IFERROR('MMA Rev-Exp Region 3'!$H$92/'MMA Rev-Exp Region 3'!$H$9, 0)","v":{"v":0,"d":"$0.00"}},{"$f":"IFERROR('MMA Rev-Exp Region 3'!$I$92/'MMA Rev-Exp Region 3'!$I$9, 0)","v":{"v":0,"d":"$0.00"}},{"$f":"IFERROR('MMA Rev-Exp Region 3'!$J$92/'MMA Rev-Exp Region 3'!$J$9, 0)","v":{"v":0,"d":"$0.00"}},{"$f":"IFERROR('MMA Rev-Exp Region 3'!$K$92/'MMA Rev-Exp Region 3'!$K$9, 0)","v":{"v":0,"d":"$0.00"}},{"$f":"IFERROR('MMA Rev-Exp Region 3'!$L$92/'MMA Rev-Exp Region 3'!$L$9, 0)","v":{"v":0,"d":"$0.00"}},{"$f":"IFERROR('MMA Rev-Exp Region 3'!$M$92/'MMA Rev-Exp Region 3'!$M$9, 0)","v":{"v":0,"d":"$0.00"}},{"$f":"IFERROR('MMA Rev-Exp Region 3'!$N$92/'MMA Rev-Exp Region 3'!$N$9, 0)","v":{"v":0,"d":"$0.00"}}]
["MMA",null,null,2016,"2016-12-31","Q1","2017-03-31","Region 3","Operating Expense","Administrative Expense","Administrative","12.4","Marketing Expenses",{"$f":"IFERROR('MMA Rev-Exp Region 3'!$D$93/'MMA Rev-Exp Region 3'!$D$9, 0)","v":{"v":0,"d":"$0.00"}},{"$f":"IFERROR('MMA Rev-Exp Region 3'!$E$93/'MMA Rev-Exp Region 3'!$D$9, 0)","v":{"v":0,"d":"$0.00"}},{"$f":"IFERROR('MMA Rev-Exp Region 3'!$F$93/'MMA Rev-Exp Region 3'!$D$9, 0)","v":{"v":0,"d":"$0.00"}},{"$f":"IFERROR('MMA Rev-Exp Region 3'!$G$93/'MMA Rev-Exp Region 3'!$G$9, 0)","v":{"v":0,"d":"$0.00"}},{"$f":"IFERROR('MMA Rev-Exp Region 3'!$H$93/'MMA Rev-Exp Region 3'!$H$9, 0)","v":{"v":0,"d":"$0.00"}},{"$f":"IFERROR('MMA Rev-Exp Region 3'!$I$93/'MMA Rev-Exp Region 3'!$I$9, 0)","v":{"v":0,"d":"$0.00"}},{"$f":"IFERROR('MMA Rev-Exp Region 3'!$J$93/'MMA Rev-Exp Region 3'!$J$9, 0)","v":{"v":0,"d":"$0.00"}},{"$f":"IFERROR('MMA Rev-Exp Region 3'!$K$93/'MMA Rev-Exp Region 3'!$K$9, 0)","v":{"v":0,"d":"$0.00"}},{"$f":"IFERROR('MMA Rev-Exp Region 3'!$L$93/'MMA Rev-Exp Region 3'!$L$9, 0)","v":{"v":0,"d":"$0.00"}},{"$f":"IFERROR('MMA Rev-Exp Region 3'!$M$93/'MMA Rev-Exp Region 3'!$M$9, 0)","v":{"v":0,"d":"$0.00"}},{"$f":"IFERROR('MMA Rev-Exp Region 3'!$N$93/'MMA Rev-Exp Region 3'!$N$9, 0)","v":{"v":0,"d":"$0.00"}}]
["MMA",null,null,2016,"2016-12-31","Q1","2017-03-31","Region 3","Operating Expense","Administrative Expense","Administrative","12.5","General  Administration",{"$f":"IFERROR('MMA Rev-Exp Region 3'!$D$94/'MMA Rev-Exp Region 3'!$D$9, 0)","v":{"v":0,"d":"$0.00"}},{"$f":"IFERROR('MMA Rev-Exp Region 3'!$E$94/'MMA Rev-Exp Region 3'!$D$9, 0)","v":{"v":0,"d":"$0.00"}},{"$f":"IFERROR('MMA Rev-Exp Region 3'!$F$94/'MMA Rev-Exp Region 3'!$D$9, 0)","v":{"v":0,"d":"$0.00"}},{"$f":"IFERROR('MMA Rev-Exp Region 3'!$G$94/'MMA Rev-Exp Region 3'!$G$9, 0)","v":{"v":0,"d":"$0.00"}},{"$f":"IFERROR('MMA Rev-Exp Region 3'!$H$94/'MMA Rev-Exp Region 3'!$H$9, 0)","v":{"v":0,"d":"$0.00"}},{"$f":"IFERROR('MMA Rev-Exp Region 3'!$I$94/'MMA Rev-Exp Region 3'!$I$9, 0)","v":{"v":0,"d":"$0.00"}},{"$f":"IFERROR('MMA Rev-Exp Region 3'!$J$94/'MMA Rev-Exp Region 3'!$J$9, 0)","v":{"v":0,"d":"$0.00"}},{"$f":"IFERROR('MMA Rev-Exp Region 3'!$K$94/'MMA Rev-Exp Region 3'!$K$9, 0)","v":{"v":0,"d":"$0.00"}},{"$f":"IFERROR('MMA Rev-Exp Region 3'!$L$94/'MMA Rev-Exp Region 3'!$L$9, 0)","v":{"v":0,"d":"$0.00"}},{"$f":"IFERROR('MMA Rev-Exp Region 3'!$M$94/'MMA Rev-Exp Region 3'!$M$9, 0)","v":{"v":0,"d":"$0.00"}},{"$f":"IFERROR('MMA Rev-Exp Region 3'!$N$94/'MMA Rev-Exp Region 3'!$N$9, 0)","v":{"v":0,"d":"$0.00"}}]
["MMA",null,null,2016,"2016-12-31","Q1","2017-03-31","Region 3","Operating Expense","Administrative Expense","Administrative","12.6","Compliance/Regulatory",{"$f":"IFERROR('MMA Rev-Exp Region 3'!$D$95/'MMA Rev-Exp Region 3'!$D$9, 0)","v":{"v":0,"d":"$0.00"}},{"$f":"IFERROR('MMA Rev-Exp Region 3'!$E$95/'MMA Rev-Exp Region 3'!$D$9, 0)","v":{"v":0,"d":"$0.00"}},{"$f":"IFERROR('MMA Rev-Exp Region 3'!$F$95/'MMA Rev-Exp Region 3'!$D$9, 0)","v":{"v":0,"d":"$0.00"}},{"$f":"IFERROR('MMA Rev-Exp Region 3'!$G$95/'MMA Rev-Exp Region 3'!$G$9, 0)","v":{"v":0,"d":"$0.00"}},{"$f":"IFERROR('MMA Rev-Exp Region 3'!$H$95/'MMA Rev-Exp Region 3'!$H$9, 0)","v":{"v":0,"d":"$0.00"}},{"$f":"IFERROR('MMA Rev-Exp Region 3'!$I$95/'MMA Rev-Exp Region 3'!$I$9, 0)","v":{"v":0,"d":"$0.00"}},{"$f":"IFERROR('MMA Rev-Exp Region 3'!$J$95/'MMA Rev-Exp Region 3'!$J$9, 0)","v":{"v":0,"d":"$0.00"}},{"$f":"IFERROR('MMA Rev-Exp Region 3'!$K$95/'MMA Rev-Exp Region 3'!$K$9, 0)","v":{"v":0,"d":"$0.00"}},{"$f":"IFERROR('MMA Rev-Exp Region 3'!$L$95/'MMA Rev-Exp Region 3'!$L$9, 0)","v":{"v":0,"d":"$0.00"}},{"$f":"IFERROR('MMA Rev-Exp Region 3'!$M$95/'MMA Rev-Exp Region 3'!$M$9, 0)","v":{"v":0,"d":"$0.00"}},{"$f":"IFERROR('MMA Rev-Exp Region 3'!$N$95/'MMA Rev-Exp Region 3'!$N$9, 0)","v":{"v":0,"d":"$0.00"}}]
["MMA",null,null,2016,"2016-12-31","Q1","2017-03-31","Region 3","Operating Expense","Taxes & Fees","Taxes & Fees","13.1","State Premium tax",{"$f":"IFERROR('MMA Rev-Exp Region 3'!$D$97/'MMA Rev-Exp Region 3'!$D$9, 0)","v":{"v":0,"d":"$0.00"}}]
["MMA",null,null,2016,"2016-12-31","Q1","2017-03-31","Region 3","Operating Expense","Taxes & Fees","Taxes & Fees","13.2","Department of Insurance Assessments",{"$f":"IFERROR('MMA Rev-Exp Region 3'!$D$98/'MMA Rev-Exp Region 3'!$D$9, 0)","v":{"v":0,"d":"$0.00"}}]
["MMA",null,null,2016,"2016-12-31","Q1","2017-03-31","Region 3","Operating Expense","Taxes & Fees","Taxes & Fees","13.3","Section 9010 Health Insurance Providers Fee",{"$f":"IFERROR('MMA Rev-Exp Region 3'!$D$99/'MMA Rev-Exp Region 3'!$D$9, 0)","v":{"v":0,"d":"$0.00"}}]
["MMA",null,null,2016,"2016-12-31","Q1","2017-03-31","Region 3","Non-Operating Expense","Income Tax Expense","Income Tax Expense","16.0","Income Tax Expense",{"$f":"IFERROR('MMA Rev-Exp Region 3'!$D$106/'MMA Rev-Exp Region 3'!$D$9, 0)","v":{"v":0,"d":"$0.00"}}]
["MMA",null,null,2016,"2016-12-31","Q2","2017-06-30","Region 3","Operating Revenue","Capitation","Capitation",1.1,"Capitation",{"$f":"IFERROR('MMA Rev-Exp Region 3'!$O$11/'MMA Rev-Exp Region 3'!$O$9, 0)","v":{"v":0,"d":"$0.00"}},{"$f":"IFERROR('MMA Rev-Exp Region 3'!$P$11/'MMA Rev-Exp Region 3'!$P$9, 0)","v":{"v":0,"d":"$0.00"}},{"$f":"IFERROR('MMA Rev-Exp Region 3'!$Q$11/'MMA Rev-Exp Region 3'!$Q$9, 0)","v":{"v":0,"d":"$0.00"}},{"$f":"IFERROR('MMA Rev-Exp Region 3'!$R$11/'MMA Rev-Exp Region 3'!$R$9, 0)","v":{"v":0,"d":"$0.00"}},{"$f":"IFERROR('MMA Rev-Exp Region 3'!$S$11/'MMA Rev-Exp Region 3'!$S$9, 0)","v":{"v":0,"d":"$0.00"}},{"$f":"IFERROR('MMA Rev-Exp Region 3'!$T$11/'MMA Rev-Exp Region 3'!$T$9, 0)","v":{"v":0,"d":"$0.00"}},{"$f":"IFERROR('MMA Rev-Exp Region 3'!$U$11/'MMA Rev-Exp Region 3'!$U$9, 0)","v":{"v":0,"d":"$0.00"}},{"$f":"IFERROR('MMA Rev-Exp Region 3'!$V$11/'MMA Rev-Exp Region 3'!$V$9, 0)","v":{"v":0,"d":"$0.00"}},{"$f":"IFERROR('MMA Rev-Exp Region 3'!$W$11/'MMA Rev-Exp Region 3'!$W$9, 0)","v":{"v":0,"d":"$0.00"}},{"$f":"IFERROR('MMA Rev-Exp Region 3'!$X$11/'MMA Rev-Exp Region 3'!$X$9, 0)","v":{"v":0,"d":"$0.00"}},{"$f":"IFERROR('MMA Rev-Exp Region 3'!$Y$11/'MMA Rev-Exp Region 3'!$Y$9, 0)","v":{"v":0,"d":"$0.00"}}]
["MMA",null,null,2016,"2016-12-31","Q2","2017-06-30","Region 3","Operating Revenue","Kick Payments","Kick Payments - Transplant",1.2,"Transplant Kick Payments",{"$f":"IFERROR('MMA Rev-Exp Region 3'!$O$12/'MMA Rev-Exp Region 3'!$O$9, 0)","v":{"v":0,"d":"$0.00"}},{"$f":"IFERROR('MMA Rev-Exp Region 3'!$P$12/'MMA Rev-Exp Region 3'!$P$9, 0)","v":{"v":0,"d":"$0.00"}},{"$f":"IFERROR('MMA Rev-Exp Region 3'!$Q$12/'MMA Rev-Exp Region 3'!$Q$9, 0)","v":{"v":0,"d":"$0.00"}},{"$f":"IFERROR('MMA Rev-Exp Region 3'!$R$12/'MMA Rev-Exp Region 3'!$R$9, 0)","v":{"v":0,"d":"$0.00"}},{"$f":"IFERROR('MMA Rev-Exp Region 3'!$S$12/'MMA Rev-Exp Region 3'!$S$9, 0)","v":{"v":0,"d":"$0.00"}},{"$f":"IFERROR('MMA Rev-Exp Region 3'!$T$12/'MMA Rev-Exp Region 3'!$T$9, 0)","v":{"v":0,"d":"$0.00"}},{"$f":"IFERROR('MMA Rev-Exp Region 3'!$U$12/'MMA Rev-Exp Region 3'!$U$9, 0)","v":{"v":0,"d":"$0.00"}},{"$f":"IFERROR('MMA Rev-Exp Region 3'!$V$12/'MMA Rev-Exp Region 3'!$V$9, 0)","v":{"v":0,"d":"$0.00"}},{"$f":"IFERROR('MMA Rev-Exp Region 3'!$W$12/'MMA Rev-Exp Region 3'!$W$9, 0)","v":{"v":0,"d":"$0.00"}},{"$f":"IFERROR('MMA Rev-Exp Region 3'!$X$12/'MMA Rev-Exp Region 3'!$X$9, 0)","v":{"v":0,"d":"$0.00"}},{"$f":"IFERROR('MMA Rev-Exp Region 3'!$Y$12/'MMA Rev-Exp Region 3'!$Y$9, 0)","v":{"v":0,"d":"$0.00"}}]
["MMA",null,null,2016,"2016-12-31","Q2","2017-06-30","Region 3","Operating Revenue","Kick Payments","Kick Payments - Hep C","1.3","Hepatitis C Kick Payments",{"$f":"IFERROR('MMA Rev-Exp Region 3'!$O$13/'MMA Rev-Exp Region 3'!$O$9, 0)","v":{"v":0,"d":"$0.00"}},{"$f":"IFERROR('MMA Rev-Exp Region 3'!$P$13/'MMA Rev-Exp Region 3'!$P$9, 0)","v":{"v":0,"d":"$0.00"}},{"$f":"IFERROR('MMA Rev-Exp Region 3'!$Q$13/'MMA Rev-Exp Region 3'!$Q$9, 0)","v":{"v":0,"d":"$0.00"}},{"$f":"IFERROR('MMA Rev-Exp Region 3'!$R$13/'MMA Rev-Exp Region 3'!$R$9, 0)","v":{"v":0,"d":"$0.00"}},{"$f":"IFERROR('MMA Rev-Exp Region 3'!$S$13/'MMA Rev-Exp Region 3'!$S$9, 0)","v":{"v":0,"d":"$0.00"}},{"$f":"IFERROR('MMA Rev-Exp Region 3'!$T$13/'MMA Rev-Exp Region 3'!$T$9, 0)","v":{"v":0,"d":"$0.00"}},{"$f":"IFERROR('MMA Rev-Exp Region 3'!$U$13/'MMA Rev-Exp Region 3'!$U$9, 0)","v":{"v":0,"d":"$0.00"}},{"$f":"IFERROR('MMA Rev-Exp Region 3'!$V$13/'MMA Rev-Exp Region 3'!$V$9, 0)","v":{"v":0,"d":"$0.00"}},{"$f":"IFERROR('MMA Rev-Exp Region 3'!$W$13/'MMA Rev-Exp Region 3'!$W$9, 0)","v":{"v":0,"d":"$0.00"}},{"$f":"IFERROR('MMA Rev-Exp Region 3'!$X$13/'MMA Rev-Exp Region 3'!$X$9, 0)","v":{"v":0,"d":"$0.00"}},{"$f":"IFERROR('MMA Rev-Exp Region 3'!$Y$13/'MMA Rev-Exp Region 3'!$Y$9, 0)","v":{"v":0,"d":"$0.00"}}]
["MMA",null,null,2016,"2016-12-31","Q2","2017-06-30","Region 3","Operating Revenue","Kick Payments","Kick Payments - Maternity","1.4.1","Maternity Kick Payments",{"$f":"IFERROR('MMA Rev-Exp Region 3'!$O$14/'MMA Rev-Exp Region 3'!$O$9, 0)","v":{"v":0,"d":"$0.00"}},{"$f":"IFERROR('MMA Rev-Exp Region 3'!$P$14/'MMA Rev-Exp Region 3'!$P$9, 0)","v":{"v":0,"d":"$0.00"}},{"$f":"IFERROR('MMA Rev-Exp Region 3'!$Q$14/'MMA Rev-Exp Region 3'!$Q$9, 0)","v":{"v":0,"d":"$0.00"}},{"$f":"IFERROR('MMA Rev-Exp Region 3'!$R$14/'MMA Rev-Exp Region 3'!$R$9, 0)","v":{"v":0,"d":"$0.00"}},{"$f":"IFERROR('MMA Rev-Exp Region 3'!$S$14/'MMA Rev-Exp Region 3'!$S$9, 0)","v":{"v":0,"d":"$0.00"}},{"$f":"IFERROR('MMA Rev-Exp Region 3'!$T$14/'MMA Rev-Exp Region 3'!$T$9, 0)","v":{"v":0,"d":"$0.00"}},{"$f":"IFERROR('MMA Rev-Exp Region 3'!$U$14/'MMA Rev-Exp Region 3'!$U$9, 0)","v":{"v":0,"d":"$0.00"}},{"$f":"IFERROR('MMA Rev-Exp Region 3'!$V$14/'MMA Rev-Exp Region 3'!$V$9, 0)","v":{"v":0,"d":"$0.00"}},{"$f":"IFERROR('MMA Rev-Exp Region 3'!$W$14/'MMA Rev-Exp Region 3'!$W$9, 0)","v":{"v":0,"d":"$0.00"}},{"$f":"IFERROR('MMA Rev-Exp Region 3'!$X$14/'MMA Rev-Exp Region 3'!$X$9, 0)","v":{"v":0,"d":"$0.00"}},{"$f":"IFERROR('MMA Rev-Exp Region 3'!$Y$14/'MMA Rev-Exp Region 3'!$Y$9, 0)","v":{"v":0,"d":"$0.00"}}]
["MMA",null,null,2016,"2016-12-31","Q2","2017-06-30","Region 3","Operating Revenue","Other Revenue","Other Revenue - 9010","1.5","ACA § 9010 related payments",{"$f":"IFERROR('MMA Rev-Exp Region 3'!$O$15/'MMA Rev-Exp Region 3'!$O$9, 0)","v":{"v":0,"d":"$0.00"}},{"$f":"IFERROR('MMA Rev-Exp Region 3'!$P$15/'MMA Rev-Exp Region 3'!$P$9, 0)","v":{"v":0,"d":"$0.00"}},{"$f":"IFERROR('MMA Rev-Exp Region 3'!$Q$15/'MMA Rev-Exp Region 3'!$Q$9, 0)","v":{"v":0,"d":"$0.00"}},{"$f":"IFERROR('MMA Rev-Exp Region 3'!$R$15/'MMA Rev-Exp Region 3'!$R$9, 0)","v":{"v":0,"d":"$0.00"}},{"$f":"IFERROR('MMA Rev-Exp Region 3'!$S$15/'MMA Rev-Exp Region 3'!$S$9, 0)","v":{"v":0,"d":"$0.00"}},{"$f":"IFERROR('MMA Rev-Exp Region 3'!$T$15/'MMA Rev-Exp Region 3'!$T$9, 0)","v":{"v":0,"d":"$0.00"}},{"$f":"IFERROR('MMA Rev-Exp Region 3'!$U$15/'MMA Rev-Exp Region 3'!$U$9, 0)","v":{"v":0,"d":"$0.00"}},{"$f":"IFERROR('MMA Rev-Exp Region 3'!$V$15/'MMA Rev-Exp Region 3'!$V$9, 0)","v":{"v":0,"d":"$0.00"}},{"$f":"IFERROR('MMA Rev-Exp Region 3'!$W$15/'MMA Rev-Exp Region 3'!$W$9, 0)","v":{"v":0,"d":"$0.00"}},{"$f":"IFERROR('MMA Rev-Exp Region 3'!$X$15/'MMA Rev-Exp Region 3'!$X$9, 0)","v":{"v":0,"d":"$0.00"}},{"$f":"IFERROR('MMA Rev-Exp Region 3'!$Y$15/'MMA Rev-Exp Region 3'!$Y$9, 0)","v":{"v":0,"d":"$0.00"}}]
["MMA",null,null,2016,"2016-12-31","Q2","2017-06-30","Region 3","Operating Revenue","Other Revenue","Other Revenue","1.6","Other Revenue",{"$f":"IFERROR('MMA Rev-Exp Region 3'!$O$16/'MMA Rev-Exp Region 3'!$O$9, 0)","v":{"v":0,"d":"$0.00"}},{"$f":"IFERROR('MMA Rev-Exp Region 3'!$P$16/'MMA Rev-Exp Region 3'!$P$9, 0)","v":{"v":0,"d":"$0.00"}},{"$f":"IFERROR('MMA Rev-Exp Region 3'!$Q$16/'MMA Rev-Exp Region 3'!$Q$9, 0)","v":{"v":0,"d":"$0.00"}},{"$f":"IFERROR('MMA Rev-Exp Region 3'!$R$16/'MMA Rev-Exp Region 3'!$R$9, 0)","v":{"v":0,"d":"$0.00"}},{"$f":"IFERROR('MMA Rev-Exp Region 3'!$S$16/'MMA Rev-Exp Region 3'!$S$9, 0)","v":{"v":0,"d":"$0.00"}},{"$f":"IFERROR('MMA Rev-Exp Region 3'!$T$16/'MMA Rev-Exp Region 3'!$T$9, 0)","v":{"v":0,"d":"$0.00"}},{"$f":"IFERROR('MMA Rev-Exp Region 3'!$U$16/'MMA Rev-Exp Region 3'!$U$9, 0)","v":{"v":0,"d":"$0.00"}},{"$f":"IFERROR('MMA Rev-Exp Region 3'!$V$16/'MMA Rev-Exp Region 3'!$V$9, 0)","v":{"v":0,"d":"$0.00"}},{"$f":"IFERROR('MMA Rev-Exp Region 3'!$W$16/'MMA Rev-Exp Region 3'!$W$9, 0)","v":{"v":0,"d":"$0.00"}},{"$f":"IFERROR('MMA Rev-Exp Region 3'!$X$16/'MMA Rev-Exp Region 3'!$X$9, 0)","v":{"v":0,"d":"$0.00"}},{"$f":"IFERROR('MMA Rev-Exp Region 3'!$Y$16/'MMA Rev-Exp Region 3'!$Y$9, 0)","v":{"v":0,"d":"$0.00"}}]
["MMA",null,null,2016,"2016-12-31","Q2","2017-06-30","Region 3","Operating Expense","Medical Benefits Expense","Hospital Services",2.1,"Inpatient FFS",{"$f":"IFERROR('MMA Rev-Exp Region 3'!$O$20/'MMA Rev-Exp Region 3'!$O$9, 0)","v":{"v":0,"d":"$0.00"}},{"$f":"IFERROR('MMA Rev-Exp Region 3'!$P$20/'MMA Rev-Exp Region 3'!$P$9, 0)","v":{"v":0,"d":"$0.00"}},{"$f":"IFERROR('MMA Rev-Exp Region 3'!$Q$20/'MMA Rev-Exp Region 3'!$Q$9, 0)","v":{"v":0,"d":"$0.00"}},{"$f":"IFERROR('MMA Rev-Exp Region 3'!$R$20/'MMA Rev-Exp Region 3'!$R$9, 0)","v":{"v":0,"d":"$0.00"}},{"$f":"IFERROR('MMA Rev-Exp Region 3'!$S$20/'MMA Rev-Exp Region 3'!$S$9, 0)","v":{"v":0,"d":"$0.00"}},{"$f":"IFERROR('MMA Rev-Exp Region 3'!$T$20/'MMA Rev-Exp Region 3'!$T$9, 0)","v":{"v":0,"d":"$0.00"}},{"$f":"IFERROR('MMA Rev-Exp Region 3'!$U$20/'MMA Rev-Exp Region 3'!$U$9, 0)","v":{"v":0,"d":"$0.00"}},{"$f":"IFERROR('MMA Rev-Exp Region 3'!$V$20/'MMA Rev-Exp Region 3'!$V$9, 0)","v":{"v":0,"d":"$0.00"}},{"$f":"IFERROR('MMA Rev-Exp Region 3'!$W$20/'MMA Rev-Exp Region 3'!$W$9, 0)","v":{"v":0,"d":"$0.00"}},{"$f":"IFERROR('MMA Rev-Exp Region 3'!$X$20/'MMA Rev-Exp Region 3'!$X$9, 0)","v":{"v":0,"d":"$0.00"}},{"$f":"IFERROR('MMA Rev-Exp Region 3'!$Y$20/'MMA Rev-Exp Region 3'!$Y$9, 0)","v":{"v":0,"d":"$0.00"}}]
["MMA",null,null,2016,"2016-12-31","Q2","2017-06-30","Region 3","Operating Expense","Medical Benefits Expense","Hospital Services",2.2,"Ending IBNP for Inpatient Hospital Services",{"$f":"IFERROR('MMA Rev-Exp Region 3'!$O$21/'MMA Rev-Exp Region 3'!$O$9, 0)","v":{"v":0,"d":"$0.00"}},{"$f":"IFERROR('MMA Rev-Exp Region 3'!$P$21/'MMA Rev-Exp Region 3'!$P$9, 0)","v":{"v":0,"d":"$0.00"}},{"$f":"IFERROR('MMA Rev-Exp Region 3'!$Q$21/'MMA Rev-Exp Region 3'!$Q$9, 0)","v":{"v":0,"d":"$0.00"}},{"$f":"IFERROR('MMA Rev-Exp Region 3'!$R$21/'MMA Rev-Exp Region 3'!$R$9, 0)","v":{"v":0,"d":"$0.00"}},{"$f":"IFERROR('MMA Rev-Exp Region 3'!$S$21/'MMA Rev-Exp Region 3'!$S$9, 0)","v":{"v":0,"d":"$0.00"}},{"$f":"IFERROR('MMA Rev-Exp Region 3'!$T$21/'MMA Rev-Exp Region 3'!$T$9, 0)","v":{"v":0,"d":"$0.00"}},{"$f":"IFERROR('MMA Rev-Exp Region 3'!$U$21/'MMA Rev-Exp Region 3'!$U$9, 0)","v":{"v":0,"d":"$0.00"}},{"$f":"IFERROR('MMA Rev-Exp Region 3'!$V$21/'MMA Rev-Exp Region 3'!$V$9, 0)","v":{"v":0,"d":"$0.00"}},{"$f":"IFERROR('MMA Rev-Exp Region 3'!$W$21/'MMA Rev-Exp Region 3'!$W$9, 0)","v":{"v":0,"d":"$0.00"}},{"$f":"IFERROR('MMA Rev-Exp Region 3'!$X$21/'MMA Rev-Exp Region 3'!$X$9, 0)","v":{"v":0,"d":"$0.00"}},{"$f":"IFERROR('MMA Rev-Exp Region 3'!$Y$21/'MMA Rev-Exp Region 3'!$Y$9, 0)","v":{"v":0,"d":"$0.00"}}]
["MMA",null,null,2016,"2016-12-31","Q2","2017-06-30","Region 3","Operating Expense","Medical Benefits Expense","Hospital Services",2.3,"Outpatient FFS: ER",{"$f":"IFERROR('MMA Rev-Exp Region 3'!$O$22/'MMA Rev-Exp Region 3'!$O$9, 0)","v":{"v":0,"d":"$0.00"}},{"$f":"IFERROR('MMA Rev-Exp Region 3'!$P$22/'MMA Rev-Exp Region 3'!$P$9, 0)","v":{"v":0,"d":"$0.00"}},{"$f":"IFERROR('MMA Rev-Exp Region 3'!$Q$22/'MMA Rev-Exp Region 3'!$Q$9, 0)","v":{"v":0,"d":"$0.00"}},{"$f":"IFERROR('MMA Rev-Exp Region 3'!$R$22/'MMA Rev-Exp Region 3'!$R$9, 0)","v":{"v":0,"d":"$0.00"}},{"$f":"IFERROR('MMA Rev-Exp Region 3'!$S$22/'MMA Rev-Exp Region 3'!$S$9, 0)","v":{"v":0,"d":"$0.00"}},{"$f":"IFERROR('MMA Rev-Exp Region 3'!$T$22/'MMA Rev-Exp Region 3'!$T$9, 0)","v":{"v":0,"d":"$0.00"}},{"$f":"IFERROR('MMA Rev-Exp Region 3'!$U$22/'MMA Rev-Exp Region 3'!$U$9, 0)","v":{"v":0,"d":"$0.00"}},{"$f":"IFERROR('MMA Rev-Exp Region 3'!$V$22/'MMA Rev-Exp Region 3'!$V$9, 0)","v":{"v":0,"d":"$0.00"}},{"$f":"IFERROR('MMA Rev-Exp Region 3'!$W$22/'MMA Rev-Exp Region 3'!$W$9, 0)","v":{"v":0,"d":"$0.00"}},{"$f":"IFERROR('MMA Rev-Exp Region 3'!$X$22/'MMA Rev-Exp Region 3'!$X$9, 0)","v":{"v":0,"d":"$0.00"}},{"$f":"IFERROR('MMA Rev-Exp Region 3'!$Y$22/'MMA Rev-Exp Region 3'!$Y$9, 0)","v":{"v":0,"d":"$0.00"}}]
["MMA",null,null,2016,"2016-12-31","Q2","2017-06-30","Region 3","Operating Expense","Medical Benefits Expense","Hospital Services",2.4,"Outpatient FFS: Other than ER ",{"$f":"IFERROR('MMA Rev-Exp Region 3'!$O$23/'MMA Rev-Exp Region 3'!$O$9, 0)","v":{"v":0,"d":"$0.00"}},{"$f":"IFERROR('MMA Rev-Exp Region 3'!$P$23/'MMA Rev-Exp Region 3'!$P$9, 0)","v":{"v":0,"d":"$0.00"}},{"$f":"IFERROR('MMA Rev-Exp Region 3'!$Q$23/'MMA Rev-Exp Region 3'!$Q$9, 0)","v":{"v":0,"d":"$0.00"}},{"$f":"IFERROR('MMA Rev-Exp Region 3'!$R$23/'MMA Rev-Exp Region 3'!$R$9, 0)","v":{"v":0,"d":"$0.00"}},{"$f":"IFERROR('MMA Rev-Exp Region 3'!$S$23/'MMA Rev-Exp Region 3'!$S$9, 0)","v":{"v":0,"d":"$0.00"}},{"$f":"IFERROR('MMA Rev-Exp Region 3'!$T$23/'MMA Rev-Exp Region 3'!$T$9, 0)","v":{"v":0,"d":"$0.00"}},{"$f":"IFERROR('MMA Rev-Exp Region 3'!$U$23/'MMA Rev-Exp Region 3'!$U$9, 0)","v":{"v":0,"d":"$0.00"}},{"$f":"IFERROR('MMA Rev-Exp Region 3'!$V$23/'MMA Rev-Exp Region 3'!$V$9, 0)","v":{"v":0,"d":"$0.00"}},{"$f":"IFERROR('MMA Rev-Exp Region 3'!$W$23/'MMA Rev-Exp Region 3'!$W$9, 0)","v":{"v":0,"d":"$0.00"}},{"$f":"IFERROR('MMA Rev-Exp Region 3'!$X$23/'MMA Rev-Exp Region 3'!$X$9, 0)","v":{"v":0,"d":"$0.00"}},{"$f":"IFERROR('MMA Rev-Exp Region 3'!$Y$23/'MMA Rev-Exp Region 3'!$Y$9, 0)","v":{"v":0,"d":"$0.00"}}]
["MMA",null,null,2016,"2016-12-31","Q2","2017-06-30","Region 3","Operating Expense","Medical Benefits Expense","Hospital Services",2.5,"Ending IBNP for Outpatient Hospital Services",{"$f":"IFERROR('MMA Rev-Exp Region 3'!$O$24/'MMA Rev-Exp Region 3'!$O$9, 0)","v":{"v":0,"d":"$0.00"}},{"$f":"IFERROR('MMA Rev-Exp Region 3'!$P$24/'MMA Rev-Exp Region 3'!$P$9, 0)","v":{"v":0,"d":"$0.00"}},{"$f":"IFERROR('MMA Rev-Exp Region 3'!$Q$24/'MMA Rev-Exp Region 3'!$Q$9, 0)","v":{"v":0,"d":"$0.00"}},{"$f":"IFERROR('MMA Rev-Exp Region 3'!$R$24/'MMA Rev-Exp Region 3'!$R$9, 0)","v":{"v":0,"d":"$0.00"}},{"$f":"IFERROR('MMA Rev-Exp Region 3'!$S$24/'MMA Rev-Exp Region 3'!$S$9, 0)","v":{"v":0,"d":"$0.00"}},{"$f":"IFERROR('MMA Rev-Exp Region 3'!$T$24/'MMA Rev-Exp Region 3'!$T$9, 0)","v":{"v":0,"d":"$0.00"}},{"$f":"IFERROR('MMA Rev-Exp Region 3'!$U$24/'MMA Rev-Exp Region 3'!$U$9, 0)","v":{"v":0,"d":"$0.00"}},{"$f":"IFERROR('MMA Rev-Exp Region 3'!$V$24/'MMA Rev-Exp Region 3'!$V$9, 0)","v":{"v":0,"d":"$0.00"}},{"$f":"IFERROR('MMA Rev-Exp Region 3'!$W$24/'MMA Rev-Exp Region 3'!$W$9, 0)","v":{"v":0,"d":"$0.00"}},{"$f":"IFERROR('MMA Rev-Exp Region 3'!$X$24/'MMA Rev-Exp Region 3'!$X$9, 0)","v":{"v":0,"d":"$0.00"}},{"$f":"IFERROR('MMA Rev-Exp Region 3'!$Y$24/'MMA Rev-Exp Region 3'!$Y$9, 0)","v":{"v":0,"d":"$0.00"}}]
["MMA",null,null,2016,"2016-12-31","Q2","2017-06-30","Region 3","Operating Expense","Medical Benefits Expense","Hospital Services","2.6","Subcapitated Hospital Services",{"$f":"IFERROR('MMA Rev-Exp Region 3'!$O$25/'MMA Rev-Exp Region 3'!$O$9, 0)","v":{"v":0,"d":"$0.00"}},{"$f":"IFERROR('MMA Rev-Exp Region 3'!$P$25/'MMA Rev-Exp Region 3'!$P$9, 0)","v":{"v":0,"d":"$0.00"}},{"$f":"IFERROR('MMA Rev-Exp Region 3'!$Q$25/'MMA Rev-Exp Region 3'!$Q$9, 0)","v":{"v":0,"d":"$0.00"}},{"$f":"IFERROR('MMA Rev-Exp Region 3'!$R$25/'MMA Rev-Exp Region 3'!$R$9, 0)","v":{"v":0,"d":"$0.00"}},{"$f":"IFERROR('MMA Rev-Exp Region 3'!$S$25/'MMA Rev-Exp Region 3'!$S$9, 0)","v":{"v":0,"d":"$0.00"}},{"$f":"IFERROR('MMA Rev-Exp Region 3'!$T$25/'MMA Rev-Exp Region 3'!$T$9, 0)","v":{"v":0,"d":"$0.00"}},{"$f":"IFERROR('MMA Rev-Exp Region 3'!$U$25/'MMA Rev-Exp Region 3'!$U$9, 0)","v":{"v":0,"d":"$0.00"}},{"$f":"IFERROR('MMA Rev-Exp Region 3'!$V$25/'MMA Rev-Exp Region 3'!$V$9, 0)","v":{"v":0,"d":"$0.00"}},{"$f":"IFERROR('MMA Rev-Exp Region 3'!$W$25/'MMA Rev-Exp Region 3'!$W$9, 0)","v":{"v":0,"d":"$0.00"}},{"$f":"IFERROR('MMA Rev-Exp Region 3'!$X$25/'MMA Rev-Exp Region 3'!$X$9, 0)","v":{"v":0,"d":"$0.00"}},{"$f":"IFERROR('MMA Rev-Exp Region 3'!$Y$25/'MMA Rev-Exp Region 3'!$Y$9, 0)","v":{"v":0,"d":"$0.00"}}]
["MMA",null,null,2016,"2016-12-31","Q2","2017-06-30","Region 3","Operating Expense","Medical Benefits Expense","Hospital Services","2.7","Hospital Settlements",{"$f":"IFERROR('MMA Rev-Exp Region 3'!$O$26/'MMA Rev-Exp Region 3'!$O$9, 0)","v":{"v":0,"d":"$0.00"}},{"$f":"IFERROR('MMA Rev-Exp Region 3'!$P$26/'MMA Rev-Exp Region 3'!$P$9, 0)","v":{"v":0,"d":"$0.00"}},{"$f":"IFERROR('MMA Rev-Exp Region 3'!$Q$26/'MMA Rev-Exp Region 3'!$Q$9, 0)","v":{"v":0,"d":"$0.00"}},{"$f":"IFERROR('MMA Rev-Exp Region 3'!$R$26/'MMA Rev-Exp Region 3'!$R$9, 0)","v":{"v":0,"d":"$0.00"}},{"$f":"IFERROR('MMA Rev-Exp Region 3'!$S$26/'MMA Rev-Exp Region 3'!$S$9, 0)","v":{"v":0,"d":"$0.00"}},{"$f":"IFERROR('MMA Rev-Exp Region 3'!$T$26/'MMA Rev-Exp Region 3'!$T$9, 0)","v":{"v":0,"d":"$0.00"}},{"$f":"IFERROR('MMA Rev-Exp Region 3'!$U$26/'MMA Rev-Exp Region 3'!$U$9, 0)","v":{"v":0,"d":"$0.00"}},{"$f":"IFERROR('MMA Rev-Exp Region 3'!$V$26/'MMA Rev-Exp Region 3'!$V$9, 0)","v":{"v":0,"d":"$0.00"}},{"$f":"IFERROR('MMA Rev-Exp Region 3'!$W$26/'MMA Rev-Exp Region 3'!$W$9, 0)","v":{"v":0,"d":"$0.00"}},{"$f":"IFERROR('MMA Rev-Exp Region 3'!$X$26/'MMA Rev-Exp Region 3'!$X$9, 0)","v":{"v":0,"d":"$0.00"}},{"$f":"IFERROR('MMA Rev-Exp Region 3'!$Y$26/'MMA Rev-Exp Region 3'!$Y$9, 0)","v":{"v":0,"d":"$0.00"}}]
["MMA",null,null,2016,"2016-12-31","Q2","2017-06-30","Region 3","Operating Expense","Medical Benefits Expense","Hospital Services","2.7.1","Transplant Services",{"$f":"IFERROR('MMA Rev-Exp Region 3'!$O$27/'MMA Rev-Exp Region 3'!$O$9, 0)","v":{"v":0,"d":"$0.00"}},{"$f":"IFERROR('MMA Rev-Exp Region 3'!$P$27/'MMA Rev-Exp Region 3'!$P$9, 0)","v":{"v":0,"d":"$0.00"}},{"$f":"IFERROR('MMA Rev-Exp Region 3'!$Q$27/'MMA Rev-Exp Region 3'!$Q$9, 0)","v":{"v":0,"d":"$0.00"}},{"$f":"IFERROR('MMA Rev-Exp Region 3'!$R$27/'MMA Rev-Exp Region 3'!$R$9, 0)","v":{"v":0,"d":"$0.00"}},{"$f":"IFERROR('MMA Rev-Exp Region 3'!$S$27/'MMA Rev-Exp Region 3'!$S$9, 0)","v":{"v":0,"d":"$0.00"}},{"$f":"IFERROR('MMA Rev-Exp Region 3'!$T$27/'MMA Rev-Exp Region 3'!$T$9, 0)","v":{"v":0,"d":"$0.00"}},{"$f":"IFERROR('MMA Rev-Exp Region 3'!$U$27/'MMA Rev-Exp Region 3'!$U$9, 0)","v":{"v":0,"d":"$0.00"}},{"$f":"IFERROR('MMA Rev-Exp Region 3'!$V$27/'MMA Rev-Exp Region 3'!$V$9, 0)","v":{"v":0,"d":"$0.00"}},{"$f":"IFERROR('MMA Rev-Exp Region 3'!$W$27/'MMA Rev-Exp Region 3'!$W$9, 0)","v":{"v":0,"d":"$0.00"}},{"$f":"IFERROR('MMA Rev-Exp Region 3'!$X$27/'MMA Rev-Exp Region 3'!$X$9, 0)","v":{"v":0,"d":"$0.00"}},{"$f":"IFERROR('MMA Rev-Exp Region 3'!$Y$27/'MMA Rev-Exp Region 3'!$Y$9, 0)","v":{"v":0,"d":"$0.00"}}]
["MMA",null,null,2016,"2016-12-31","Q2","2017-06-30","Region 3","Operating Expense","Medical Benefits Expense","Professional Services",3.1,"Primary Care FFS",{"$f":"IFERROR('MMA Rev-Exp Region 3'!$O$29/'MMA Rev-Exp Region 3'!$O$9, 0)","v":{"v":0,"d":"$0.00"}},{"$f":"IFERROR('MMA Rev-Exp Region 3'!$P$29/'MMA Rev-Exp Region 3'!$P$9, 0)","v":{"v":0,"d":"$0.00"}},{"$f":"IFERROR('MMA Rev-Exp Region 3'!$Q$29/'MMA Rev-Exp Region 3'!$Q$9, 0)","v":{"v":0,"d":"$0.00"}},{"$f":"IFERROR('MMA Rev-Exp Region 3'!$R$29/'MMA Rev-Exp Region 3'!$R$9, 0)","v":{"v":0,"d":"$0.00"}},{"$f":"IFERROR('MMA Rev-Exp Region 3'!$S$29/'MMA Rev-Exp Region 3'!$S$9, 0)","v":{"v":0,"d":"$0.00"}},{"$f":"IFERROR('MMA Rev-Exp Region 3'!$T$29/'MMA Rev-Exp Region 3'!$T$9, 0)","v":{"v":0,"d":"$0.00"}},{"$f":"IFERROR('MMA Rev-Exp Region 3'!$U$29/'MMA Rev-Exp Region 3'!$U$9, 0)","v":{"v":0,"d":"$0.00"}},{"$f":"IFERROR('MMA Rev-Exp Region 3'!$V$29/'MMA Rev-Exp Region 3'!$V$9, 0)","v":{"v":0,"d":"$0.00"}},{"$f":"IFERROR('MMA Rev-Exp Region 3'!$W$29/'MMA Rev-Exp Region 3'!$W$9, 0)","v":{"v":0,"d":"$0.00"}},{"$f":"IFERROR('MMA Rev-Exp Region 3'!$X$29/'MMA Rev-Exp Region 3'!$X$9, 0)","v":{"v":0,"d":"$0.00"}},{"$f":"IFERROR('MMA Rev-Exp Region 3'!$Y$29/'MMA Rev-Exp Region 3'!$Y$9, 0)","v":{"v":0,"d":"$0.00"}}]
["MMA",null,null,2016,"2016-12-31","Q2","2017-06-30","Region 3","Operating Expense","Medical Benefits Expense","Professional Services",3.2,"Specialty Care FFS",{"$f":"IFERROR('MMA Rev-Exp Region 3'!$O$30/'MMA Rev-Exp Region 3'!$O$9, 0)","v":{"v":0,"d":"$0.00"}},{"$f":"IFERROR('MMA Rev-Exp Region 3'!$P$30/'MMA Rev-Exp Region 3'!$P$9, 0)","v":{"v":0,"d":"$0.00"}},{"$f":"IFERROR('MMA Rev-Exp Region 3'!$Q$30/'MMA Rev-Exp Region 3'!$Q$9, 0)","v":{"v":0,"d":"$0.00"}},{"$f":"IFERROR('MMA Rev-Exp Region 3'!$R$30/'MMA Rev-Exp Region 3'!$R$9, 0)","v":{"v":0,"d":"$0.00"}},{"$f":"IFERROR('MMA Rev-Exp Region 3'!$S$30/'MMA Rev-Exp Region 3'!$S$9, 0)","v":{"v":0,"d":"$0.00"}},{"$f":"IFERROR('MMA Rev-Exp Region 3'!$T$30/'MMA Rev-Exp Region 3'!$T$9, 0)","v":{"v":0,"d":"$0.00"}},{"$f":"IFERROR('MMA Rev-Exp Region 3'!$U$30/'MMA Rev-Exp Region 3'!$U$9, 0)","v":{"v":0,"d":"$0.00"}},{"$f":"IFERROR('MMA Rev-Exp Region 3'!$V$30/'MMA Rev-Exp Region 3'!$V$9, 0)","v":{"v":0,"d":"$0.00"}},{"$f":"IFERROR('MMA Rev-Exp Region 3'!$W$30/'MMA Rev-Exp Region 3'!$W$9, 0)","v":{"v":0,"d":"$0.00"}},{"$f":"IFERROR('MMA Rev-Exp Region 3'!$X$30/'MMA Rev-Exp Region 3'!$X$9, 0)","v":{"v":0,"d":"$0.00"}},{"$f":"IFERROR('MMA Rev-Exp Region 3'!$Y$30/'MMA Rev-Exp Region 3'!$Y$9, 0)","v":{"v":0,"d":"$0.00"}}]
["MMA",null,null,2016,"2016-12-31","Q2","2017-06-30","Region 3","Operating Expense","Medical Benefits Expense","Professional Services",3.3,"Other Professional FFS",{"$f":"IFERROR('MMA Rev-Exp Region 3'!$O$31/'MMA Rev-Exp Region 3'!$O$9, 0)","v":{"v":0,"d":"$0.00"}},{"$f":"IFERROR('MMA Rev-Exp Region 3'!$P$31/'MMA Rev-Exp Region 3'!$P$9, 0)","v":{"v":0,"d":"$0.00"}},{"$f":"IFERROR('MMA Rev-Exp Region 3'!$Q$31/'MMA Rev-Exp Region 3'!$Q$9, 0)","v":{"v":0,"d":"$0.00"}},{"$f":"IFERROR('MMA Rev-Exp Region 3'!$R$31/'MMA Rev-Exp Region 3'!$R$9, 0)","v":{"v":0,"d":"$0.00"}},{"$f":"IFERROR('MMA Rev-Exp Region 3'!$S$31/'MMA Rev-Exp Region 3'!$S$9, 0)","v":{"v":0,"d":"$0.00"}},{"$f":"IFERROR('MMA Rev-Exp Region 3'!$T$31/'MMA Rev-Exp Region 3'!$T$9, 0)","v":{"v":0,"d":"$0.00"}},{"$f":"IFERROR('MMA Rev-Exp Region 3'!$U$31/'MMA Rev-Exp Region 3'!$U$9, 0)","v":{"v":0,"d":"$0.00"}},{"$f":"IFERROR('MMA Rev-Exp Region 3'!$V$31/'MMA Rev-Exp Region 3'!$V$9, 0)","v":{"v":0,"d":"$0.00"}},{"$f":"IFERROR('MMA Rev-Exp Region 3'!$W$31/'MMA Rev-Exp Region 3'!$W$9, 0)","v":{"v":0,"d":"$0.00"}},{"$f":"IFERROR('MMA Rev-Exp Region 3'!$X$31/'MMA Rev-Exp Region 3'!$X$9, 0)","v":{"v":0,"d":"$0.00"}},{"$f":"IFERROR('MMA Rev-Exp Region 3'!$Y$31/'MMA Rev-Exp Region 3'!$Y$9, 0)","v":{"v":0,"d":"$0.00"}}]
["MMA",null,null,2016,"2016-12-31","Q2","2017-06-30","Region 3","Operating Expense","Medical Benefits Expense","Professional Services","3.4","§ 1202 PCP Payments to providers",{"$f":"IFERROR('MMA Rev-Exp Region 3'!$O$32/'MMA Rev-Exp Region 3'!$O$9, 0)","v":{"v":0,"d":"$0.00"}},{"$f":"IFERROR('MMA Rev-Exp Region 3'!$P$32/'MMA Rev-Exp Region 3'!$P$9, 0)","v":{"v":0,"d":"$0.00"}},{"$f":"IFERROR('MMA Rev-Exp Region 3'!$Q$32/'MMA Rev-Exp Region 3'!$Q$9, 0)","v":{"v":0,"d":"$0.00"}},{"$f":"IFERROR('MMA Rev-Exp Region 3'!$R$32/'MMA Rev-Exp Region 3'!$R$9, 0)","v":{"v":0,"d":"$0.00"}},{"$f":"IFERROR('MMA Rev-Exp Region 3'!$S$32/'MMA Rev-Exp Region 3'!$S$9, 0)","v":{"v":0,"d":"$0.00"}},{"$f":"IFERROR('MMA Rev-Exp Region 3'!$T$32/'MMA Rev-Exp Region 3'!$T$9, 0)","v":{"v":0,"d":"$0.00"}},{"$f":"IFERROR('MMA Rev-Exp Region 3'!$U$32/'MMA Rev-Exp Region 3'!$U$9, 0)","v":{"v":0,"d":"$0.00"}},{"$f":"IFERROR('MMA Rev-Exp Region 3'!$V$32/'MMA Rev-Exp Region 3'!$V$9, 0)","v":{"v":0,"d":"$0.00"}},{"$f":"IFERROR('MMA Rev-Exp Region 3'!$W$32/'MMA Rev-Exp Region 3'!$W$9, 0)","v":{"v":0,"d":"$0.00"}},{"$f":"IFERROR('MMA Rev-Exp Region 3'!$X$32/'MMA Rev-Exp Region 3'!$X$9, 0)","v":{"v":0,"d":"$0.00"}},{"$f":"IFERROR('MMA Rev-Exp Region 3'!$Y$32/'MMA Rev-Exp Region 3'!$Y$9, 0)","v":{"v":0,"d":"$0.00"}}]
["MMA",null,null,2016,"2016-12-31","Q2","2017-06-30","Region 3","Operating Expense","Medical Benefits Expense","Professional Services","3.5","Subcapitated Professional Services",{"$f":"IFERROR('MMA Rev-Exp Region 3'!$O$33/'MMA Rev-Exp Region 3'!$O$9, 0)","v":{"v":0,"d":"$0.00"}},{"$f":"IFERROR('MMA Rev-Exp Region 3'!$P$33/'MMA Rev-Exp Region 3'!$P$9, 0)","v":{"v":0,"d":"$0.00"}},{"$f":"IFERROR('MMA Rev-Exp Region 3'!$Q$33/'MMA Rev-Exp Region 3'!$Q$9, 0)","v":{"v":0,"d":"$0.00"}},{"$f":"IFERROR('MMA Rev-Exp Region 3'!$R$33/'MMA Rev-Exp Region 3'!$R$9, 0)","v":{"v":0,"d":"$0.00"}},{"$f":"IFERROR('MMA Rev-Exp Region 3'!$S$33/'MMA Rev-Exp Region 3'!$S$9, 0)","v":{"v":0,"d":"$0.00"}},{"$f":"IFERROR('MMA Rev-Exp Region 3'!$T$33/'MMA Rev-Exp Region 3'!$T$9, 0)","v":{"v":0,"d":"$0.00"}},{"$f":"IFERROR('MMA Rev-Exp Region 3'!$U$33/'MMA Rev-Exp Region 3'!$U$9, 0)","v":{"v":0,"d":"$0.00"}},{"$f":"IFERROR('MMA Rev-Exp Region 3'!$V$33/'MMA Rev-Exp Region 3'!$V$9, 0)","v":{"v":0,"d":"$0.00"}},{"$f":"IFERROR('MMA Rev-Exp Region 3'!$W$33/'MMA Rev-Exp Region 3'!$W$9, 0)","v":{"v":0,"d":"$0.00"}},{"$f":"IFERROR('MMA Rev-Exp Region 3'!$X$33/'MMA Rev-Exp Region 3'!$X$9, 0)","v":{"v":0,"d":"$0.00"}},{"$f":"IFERROR('MMA Rev-Exp Region 3'!$Y$33/'MMA Rev-Exp Region 3'!$Y$9, 0)","v":{"v":0,"d":"$0.00"}}]
["MMA",null,null,2016,"2016-12-31","Q2","2017-06-30","Region 3","Operating Expense","Medical Benefits Expense","Professional Services","3.6","Ending IBNP for Professional Services",{"$f":"IFERROR('MMA Rev-Exp Region 3'!$O$34/'MMA Rev-Exp Region 3'!$O$9, 0)","v":{"v":0,"d":"$0.00"}},{"$f":"IFERROR('MMA Rev-Exp Region 3'!$P$34/'MMA Rev-Exp Region 3'!$P$9, 0)","v":{"v":0,"d":"$0.00"}},{"$f":"IFERROR('MMA Rev-Exp Region 3'!$Q$34/'MMA Rev-Exp Region 3'!$Q$9, 0)","v":{"v":0,"d":"$0.00"}},{"$f":"IFERROR('MMA Rev-Exp Region 3'!$R$34/'MMA Rev-Exp Region 3'!$R$9, 0)","v":{"v":0,"d":"$0.00"}},{"$f":"IFERROR('MMA Rev-Exp Region 3'!$S$34/'MMA Rev-Exp Region 3'!$S$9, 0)","v":{"v":0,"d":"$0.00"}},{"$f":"IFERROR('MMA Rev-Exp Region 3'!$T$34/'MMA Rev-Exp Region 3'!$T$9, 0)","v":{"v":0,"d":"$0.00"}},{"$f":"IFERROR('MMA Rev-Exp Region 3'!$U$34/'MMA Rev-Exp Region 3'!$U$9, 0)","v":{"v":0,"d":"$0.00"}},{"$f":"IFERROR('MMA Rev-Exp Region 3'!$V$34/'MMA Rev-Exp Region 3'!$V$9, 0)","v":{"v":0,"d":"$0.00"}},{"$f":"IFERROR('MMA Rev-Exp Region 3'!$W$34/'MMA Rev-Exp Region 3'!$W$9, 0)","v":{"v":0,"d":"$0.00"}},{"$f":"IFERROR('MMA Rev-Exp Region 3'!$X$34/'MMA Rev-Exp Region 3'!$X$9, 0)","v":{"v":0,"d":"$0.00"}},{"$f":"IFERROR('MMA Rev-Exp Region 3'!$Y$34/'MMA Rev-Exp Region 3'!$Y$9, 0)","v":{"v":0,"d":"$0.00"}}]
["MMA",null,null,2016,"2016-12-31","Q2","2017-06-30","Region 3","Operating Expense","Medical Benefits Expense","Professional Services","3.7","Professional Services Settlements",{"$f":"IFERROR('MMA Rev-Exp Region 3'!$O$35/'MMA Rev-Exp Region 3'!$O$9, 0)","v":{"v":0,"d":"$0.00"}},{"$f":"IFERROR('MMA Rev-Exp Region 3'!$P$35/'MMA Rev-Exp Region 3'!$P$9, 0)","v":{"v":0,"d":"$0.00"}},{"$f":"IFERROR('MMA Rev-Exp Region 3'!$Q$35/'MMA Rev-Exp Region 3'!$Q$9, 0)","v":{"v":0,"d":"$0.00"}},{"$f":"IFERROR('MMA Rev-Exp Region 3'!$R$35/'MMA Rev-Exp Region 3'!$R$9, 0)","v":{"v":0,"d":"$0.00"}},{"$f":"IFERROR('MMA Rev-Exp Region 3'!$S$35/'MMA Rev-Exp Region 3'!$S$9, 0)","v":{"v":0,"d":"$0.00"}},{"$f":"IFERROR('MMA Rev-Exp Region 3'!$T$35/'MMA Rev-Exp Region 3'!$T$9, 0)","v":{"v":0,"d":"$0.00"}},{"$f":"IFERROR('MMA Rev-Exp Region 3'!$U$35/'MMA Rev-Exp Region 3'!$U$9, 0)","v":{"v":0,"d":"$0.00"}},{"$f":"IFERROR('MMA Rev-Exp Region 3'!$V$35/'MMA Rev-Exp Region 3'!$V$9, 0)","v":{"v":0,"d":"$0.00"}},{"$f":"IFERROR('MMA Rev-Exp Region 3'!$W$35/'MMA Rev-Exp Region 3'!$W$9, 0)","v":{"v":0,"d":"$0.00"}},{"$f":"IFERROR('MMA Rev-Exp Region 3'!$X$35/'MMA Rev-Exp Region 3'!$X$9, 0)","v":{"v":0,"d":"$0.00"}},{"$f":"IFERROR('MMA Rev-Exp Region 3'!$Y$35/'MMA Rev-Exp Region 3'!$Y$9, 0)","v":{"v":0,"d":"$0.00"}}]
["MMA",null,null,2016,"2016-12-31","Q2","2017-06-30","Region 3","Operating Expense","Medical Benefits Expense","Maternity Services","4.1.1","Maternity Services",{"$f":"IFERROR('MMA Rev-Exp Region 3'!$O$37/'MMA Rev-Exp Region 3'!$O$9, 0)","v":{"v":0,"d":"$0.00"}},{"$f":"IFERROR('MMA Rev-Exp Region 3'!$P$37/'MMA Rev-Exp Region 3'!$P$9, 0)","v":{"v":0,"d":"$0.00"}},{"$f":"IFERROR('MMA Rev-Exp Region 3'!$Q$37/'MMA Rev-Exp Region 3'!$Q$9, 0)","v":{"v":0,"d":"$0.00"}},{"$f":"IFERROR('MMA Rev-Exp Region 3'!$R$37/'MMA Rev-Exp Region 3'!$R$9, 0)","v":{"v":0,"d":"$0.00"}},{"$f":"IFERROR('MMA Rev-Exp Region 3'!$S$37/'MMA Rev-Exp Region 3'!$S$9, 0)","v":{"v":0,"d":"$0.00"}},{"$f":"IFERROR('MMA Rev-Exp Region 3'!$T$37/'MMA Rev-Exp Region 3'!$T$9, 0)","v":{"v":0,"d":"$0.00"}},{"$f":"IFERROR('MMA Rev-Exp Region 3'!$U$37/'MMA Rev-Exp Region 3'!$U$9, 0)","v":{"v":0,"d":"$0.00"}},{"$f":"IFERROR('MMA Rev-Exp Region 3'!$V$37/'MMA Rev-Exp Region 3'!$V$9, 0)","v":{"v":0,"d":"$0.00"}},{"$f":"IFERROR('MMA Rev-Exp Region 3'!$W$37/'MMA Rev-Exp Region 3'!$W$9, 0)","v":{"v":0,"d":"$0.00"}},{"$f":"IFERROR('MMA Rev-Exp Region 3'!$X$37/'MMA Rev-Exp Region 3'!$X$9, 0)","v":{"v":0,"d":"$0.00"}},{"$f":"IFERROR('MMA Rev-Exp Region 3'!$Y$37/'MMA Rev-Exp Region 3'!$Y$9, 0)","v":{"v":0,"d":"$0.00"}}]
["MMA",null,null,2016,"2016-12-31","Q2","2017-06-30","Region 3","Operating Expense","Medical Benefits Expense","Maternity Services","4.2.1","Ending IBNP for Maternity Services",{"$f":"IFERROR('MMA Rev-Exp Region 3'!$O$38/'MMA Rev-Exp Region 3'!$O$9, 0)","v":{"v":0,"d":"$0.00"}},{"$f":"IFERROR('MMA Rev-Exp Region 3'!$P$38/'MMA Rev-Exp Region 3'!$P$9, 0)","v":{"v":0,"d":"$0.00"}},{"$f":"IFERROR('MMA Rev-Exp Region 3'!$Q$38/'MMA Rev-Exp Region 3'!$Q$9, 0)","v":{"v":0,"d":"$0.00"}},{"$f":"IFERROR('MMA Rev-Exp Region 3'!$R$38/'MMA Rev-Exp Region 3'!$R$9, 0)","v":{"v":0,"d":"$0.00"}},{"$f":"IFERROR('MMA Rev-Exp Region 3'!$S$38/'MMA Rev-Exp Region 3'!$S$9, 0)","v":{"v":0,"d":"$0.00"}},{"$f":"IFERROR('MMA Rev-Exp Region 3'!$T$38/'MMA Rev-Exp Region 3'!$T$9, 0)","v":{"v":0,"d":"$0.00"}},{"$f":"IFERROR('MMA Rev-Exp Region 3'!$U$38/'MMA Rev-Exp Region 3'!$U$9, 0)","v":{"v":0,"d":"$0.00"}},{"$f":"IFERROR('MMA Rev-Exp Region 3'!$V$38/'MMA Rev-Exp Region 3'!$V$9, 0)","v":{"v":0,"d":"$0.00"}},{"$f":"IFERROR('MMA Rev-Exp Region 3'!$W$38/'MMA Rev-Exp Region 3'!$W$9, 0)","v":{"v":0,"d":"$0.00"}},{"$f":"IFERROR('MMA Rev-Exp Region 3'!$X$38/'MMA Rev-Exp Region 3'!$X$9, 0)","v":{"v":0,"d":"$0.00"}},{"$f":"IFERROR('MMA Rev-Exp Region 3'!$Y$38/'MMA Rev-Exp Region 3'!$Y$9, 0)","v":{"v":0,"d":"$0.00"}}]
["MMA",null,null,2016,"2016-12-31","Q2","2017-06-30","Region 3","Operating Expense","Medical Benefits Expense","Maternity Services","4.3.1","Maternity Settlements",{"$f":"IFERROR('MMA Rev-Exp Region 3'!$O$39/'MMA Rev-Exp Region 3'!$O$9, 0)","v":{"v":0,"d":"$0.00"}},{"$f":"IFERROR('MMA Rev-Exp Region 3'!$P$39/'MMA Rev-Exp Region 3'!$P$9, 0)","v":{"v":0,"d":"$0.00"}},{"$f":"IFERROR('MMA Rev-Exp Region 3'!$Q$39/'MMA Rev-Exp Region 3'!$Q$9, 0)","v":{"v":0,"d":"$0.00"}},{"$f":"IFERROR('MMA Rev-Exp Region 3'!$R$39/'MMA Rev-Exp Region 3'!$R$9, 0)","v":{"v":0,"d":"$0.00"}},{"$f":"IFERROR('MMA Rev-Exp Region 3'!$S$39/'MMA Rev-Exp Region 3'!$S$9, 0)","v":{"v":0,"d":"$0.00"}},{"$f":"IFERROR('MMA Rev-Exp Region 3'!$T$39/'MMA Rev-Exp Region 3'!$T$9, 0)","v":{"v":0,"d":"$0.00"}},{"$f":"IFERROR('MMA Rev-Exp Region 3'!$U$39/'MMA Rev-Exp Region 3'!$U$9, 0)","v":{"v":0,"d":"$0.00"}},{"$f":"IFERROR('MMA Rev-Exp Region 3'!$V$39/'MMA Rev-Exp Region 3'!$V$9, 0)","v":{"v":0,"d":"$0.00"}},{"$f":"IFERROR('MMA Rev-Exp Region 3'!$W$39/'MMA Rev-Exp Region 3'!$W$9, 0)","v":{"v":0,"d":"$0.00"}},{"$f":"IFERROR('MMA Rev-Exp Region 3'!$X$39/'MMA Rev-Exp Region 3'!$X$9, 0)","v":{"v":0,"d":"$0.00"}},{"$f":"IFERROR('MMA Rev-Exp Region 3'!$Y$39/'MMA Rev-Exp Region 3'!$Y$9, 0)","v":{"v":0,"d":"$0.00"}}]
["MMA",null,null,2016,"2016-12-31","Q2","2017-06-30","Region 3","Operating Expense","Medical Benefits Expense","Mental Health Services",5.1,"Mental Health & Substance Abuse FFS",{"$f":"IFERROR('MMA Rev-Exp Region 3'!$O$41/'MMA Rev-Exp Region 3'!$O$9, 0)","v":{"v":0,"d":"$0.00"}},{"$f":"IFERROR('MMA Rev-Exp Region 3'!$P$41/'MMA Rev-Exp Region 3'!$P$9, 0)","v":{"v":0,"d":"$0.00"}},{"$f":"IFERROR('MMA Rev-Exp Region 3'!$Q$41/'MMA Rev-Exp Region 3'!$Q$9, 0)","v":{"v":0,"d":"$0.00"}},{"$f":"IFERROR('MMA Rev-Exp Region 3'!$R$41/'MMA Rev-Exp Region 3'!$R$9, 0)","v":{"v":0,"d":"$0.00"}},{"$f":"IFERROR('MMA Rev-Exp Region 3'!$S$41/'MMA Rev-Exp Region 3'!$S$9, 0)","v":{"v":0,"d":"$0.00"}},{"$f":"IFERROR('MMA Rev-Exp Region 3'!$T$41/'MMA Rev-Exp Region 3'!$T$9, 0)","v":{"v":0,"d":"$0.00"}},{"$f":"IFERROR('MMA Rev-Exp Region 3'!$U$41/'MMA Rev-Exp Region 3'!$U$9, 0)","v":{"v":0,"d":"$0.00"}},{"$f":"IFERROR('MMA Rev-Exp Region 3'!$V$41/'MMA Rev-Exp Region 3'!$V$9, 0)","v":{"v":0,"d":"$0.00"}},{"$f":"IFERROR('MMA Rev-Exp Region 3'!$W$41/'MMA Rev-Exp Region 3'!$W$9, 0)","v":{"v":0,"d":"$0.00"}},{"$f":"IFERROR('MMA Rev-Exp Region 3'!$X$41/'MMA Rev-Exp Region 3'!$X$9, 0)","v":{"v":0,"d":"$0.00"}},{"$f":"IFERROR('MMA Rev-Exp Region 3'!$Y$41/'MMA Rev-Exp Region 3'!$Y$9, 0)","v":{"v":0,"d":"$0.00"}}]
["MMA",null,null,2016,"2016-12-31","Q2","2017-06-30","Region 3","Operating Expense","Medical Benefits Expense","Mental Health Services",5.2,"Mental Health & Substance Abuse Subcapitation",{"$f":"IFERROR('MMA Rev-Exp Region 3'!$O$42/'MMA Rev-Exp Region 3'!$O$9, 0)","v":{"v":0,"d":"$0.00"}},{"$f":"IFERROR('MMA Rev-Exp Region 3'!$P$42/'MMA Rev-Exp Region 3'!$P$9, 0)","v":{"v":0,"d":"$0.00"}},{"$f":"IFERROR('MMA Rev-Exp Region 3'!$Q$42/'MMA Rev-Exp Region 3'!$Q$9, 0)","v":{"v":0,"d":"$0.00"}},{"$f":"IFERROR('MMA Rev-Exp Region 3'!$R$42/'MMA Rev-Exp Region 3'!$R$9, 0)","v":{"v":0,"d":"$0.00"}},{"$f":"IFERROR('MMA Rev-Exp Region 3'!$S$42/'MMA Rev-Exp Region 3'!$S$9, 0)","v":{"v":0,"d":"$0.00"}},{"$f":"IFERROR('MMA Rev-Exp Region 3'!$T$42/'MMA Rev-Exp Region 3'!$T$9, 0)","v":{"v":0,"d":"$0.00"}},{"$f":"IFERROR('MMA Rev-Exp Region 3'!$U$42/'MMA Rev-Exp Region 3'!$U$9, 0)","v":{"v":0,"d":"$0.00"}},{"$f":"IFERROR('MMA Rev-Exp Region 3'!$V$42/'MMA Rev-Exp Region 3'!$V$9, 0)","v":{"v":0,"d":"$0.00"}},{"$f":"IFERROR('MMA Rev-Exp Region 3'!$W$42/'MMA Rev-Exp Region 3'!$W$9, 0)","v":{"v":0,"d":"$0.00"}},{"$f":"IFERROR('MMA Rev-Exp Region 3'!$X$42/'MMA Rev-Exp Region 3'!$X$9, 0)","v":{"v":0,"d":"$0.00"}},{"$f":"IFERROR('MMA Rev-Exp Region 3'!$Y$42/'MMA Rev-Exp Region 3'!$Y$9, 0)","v":{"v":0,"d":"$0.00"}}]
["MMA",null,null,2016,"2016-12-31","Q2","2017-06-30","Region 3","Operating Expense","Medical Benefits Expense","Mental Health Services",5.3,"Ending IBNP for Mental Health & Substance Abuse",{"$f":"IFERROR('MMA Rev-Exp Region 3'!$O$43/'MMA Rev-Exp Region 3'!$O$9, 0)","v":{"v":0,"d":"$0.00"}},{"$f":"IFERROR('MMA Rev-Exp Region 3'!$P$43/'MMA Rev-Exp Region 3'!$P$9, 0)","v":{"v":0,"d":"$0.00"}},{"$f":"IFERROR('MMA Rev-Exp Region 3'!$Q$43/'MMA Rev-Exp Region 3'!$Q$9, 0)","v":{"v":0,"d":"$0.00"}},{"$f":"IFERROR('MMA Rev-Exp Region 3'!$R$43/'MMA Rev-Exp Region 3'!$R$9, 0)","v":{"v":0,"d":"$0.00"}},{"$f":"IFERROR('MMA Rev-Exp Region 3'!$S$43/'MMA Rev-Exp Region 3'!$S$9, 0)","v":{"v":0,"d":"$0.00"}},{"$f":"IFERROR('MMA Rev-Exp Region 3'!$T$43/'MMA Rev-Exp Region 3'!$T$9, 0)","v":{"v":0,"d":"$0.00"}},{"$f":"IFERROR('MMA Rev-Exp Region 3'!$U$43/'MMA Rev-Exp Region 3'!$U$9, 0)","v":{"v":0,"d":"$0.00"}},{"$f":"IFERROR('MMA Rev-Exp Region 3'!$V$43/'MMA Rev-Exp Region 3'!$V$9, 0)","v":{"v":0,"d":"$0.00"}},{"$f":"IFERROR('MMA Rev-Exp Region 3'!$W$43/'MMA Rev-Exp Region 3'!$W$9, 0)","v":{"v":0,"d":"$0.00"}},{"$f":"IFERROR('MMA Rev-Exp Region 3'!$X$43/'MMA Rev-Exp Region 3'!$X$9, 0)","v":{"v":0,"d":"$0.00"}},{"$f":"IFERROR('MMA Rev-Exp Region 3'!$Y$43/'MMA Rev-Exp Region 3'!$Y$9, 0)","v":{"v":0,"d":"$0.00"}}]
["MMA",null,null,2016,"2016-12-31","Q2","2017-06-30","Region 3","Operating Expense","Medical Benefits Expense","Mental Health Services","5.4","Mental Health Settlements",{"$f":"IFERROR('MMA Rev-Exp Region 3'!$O$44/'MMA Rev-Exp Region 3'!$O$9, 0)","v":{"v":0,"d":"$0.00"}},{"$f":"IFERROR('MMA Rev-Exp Region 3'!$P$44/'MMA Rev-Exp Region 3'!$P$9, 0)","v":{"v":0,"d":"$0.00"}},{"$f":"IFERROR('MMA Rev-Exp Region 3'!$Q$44/'MMA Rev-Exp Region 3'!$Q$9, 0)","v":{"v":0,"d":"$0.00"}},{"$f":"IFERROR('MMA Rev-Exp Region 3'!$R$44/'MMA Rev-Exp Region 3'!$R$9, 0)","v":{"v":0,"d":"$0.00"}},{"$f":"IFERROR('MMA Rev-Exp Region 3'!$S$44/'MMA Rev-Exp Region 3'!$S$9, 0)","v":{"v":0,"d":"$0.00"}},{"$f":"IFERROR('MMA Rev-Exp Region 3'!$T$44/'MMA Rev-Exp Region 3'!$T$9, 0)","v":{"v":0,"d":"$0.00"}},{"$f":"IFERROR('MMA Rev-Exp Region 3'!$U$44/'MMA Rev-Exp Region 3'!$U$9, 0)","v":{"v":0,"d":"$0.00"}},{"$f":"IFERROR('MMA Rev-Exp Region 3'!$V$44/'MMA Rev-Exp Region 3'!$V$9, 0)","v":{"v":0,"d":"$0.00"}},{"$f":"IFERROR('MMA Rev-Exp Region 3'!$W$44/'MMA Rev-Exp Region 3'!$W$9, 0)","v":{"v":0,"d":"$0.00"}},{"$f":"IFERROR('MMA Rev-Exp Region 3'!$X$44/'MMA Rev-Exp Region 3'!$X$9, 0)","v":{"v":0,"d":"$0.00"}},{"$f":"IFERROR('MMA Rev-Exp Region 3'!$Y$44/'MMA Rev-Exp Region 3'!$Y$9, 0)","v":{"v":0,"d":"$0.00"}}]
["MMA",null,null,2016,"2016-12-31","Q2","2017-06-30","Region 3","Operating Expense","Medical Benefits Expense","Dental Services",6.1,"Dental FFS",{"$f":"IFERROR('MMA Rev-Exp Region 3'!$O$46/'MMA Rev-Exp Region 3'!$O$9, 0)","v":{"v":0,"d":"$0.00"}},{"$f":"IFERROR('MMA Rev-Exp Region 3'!$P$46/'MMA Rev-Exp Region 3'!$P$9, 0)","v":{"v":0,"d":"$0.00"}},{"$f":"IFERROR('MMA Rev-Exp Region 3'!$Q$46/'MMA Rev-Exp Region 3'!$Q$9, 0)","v":{"v":0,"d":"$0.00"}},{"$f":"IFERROR('MMA Rev-Exp Region 3'!$R$46/'MMA Rev-Exp Region 3'!$R$9, 0)","v":{"v":0,"d":"$0.00"}},{"$f":"IFERROR('MMA Rev-Exp Region 3'!$S$46/'MMA Rev-Exp Region 3'!$S$9, 0)","v":{"v":0,"d":"$0.00"}},{"$f":"IFERROR('MMA Rev-Exp Region 3'!$T$46/'MMA Rev-Exp Region 3'!$T$9, 0)","v":{"v":0,"d":"$0.00"}},{"$f":"IFERROR('MMA Rev-Exp Region 3'!$U$46/'MMA Rev-Exp Region 3'!$U$9, 0)","v":{"v":0,"d":"$0.00"}},{"$f":"IFERROR('MMA Rev-Exp Region 3'!$V$46/'MMA Rev-Exp Region 3'!$V$9, 0)","v":{"v":0,"d":"$0.00"}},{"$f":"IFERROR('MMA Rev-Exp Region 3'!$W$46/'MMA Rev-Exp Region 3'!$W$9, 0)","v":{"v":0,"d":"$0.00"}},{"$f":"IFERROR('MMA Rev-Exp Region 3'!$X$46/'MMA Rev-Exp Region 3'!$X$9, 0)","v":{"v":0,"d":"$0.00"}},{"$f":"IFERROR('MMA Rev-Exp Region 3'!$Y$46/'MMA Rev-Exp Region 3'!$Y$9, 0)","v":{"v":0,"d":"$0.00"}}]
["MMA",null,null,2016,"2016-12-31","Q2","2017-06-30","Region 3","Operating Expense","Medical Benefits Expense","Dental Services",6.2,"Dental Subcapitation",{"$f":"IFERROR('MMA Rev-Exp Region 3'!$O$47/'MMA Rev-Exp Region 3'!$O$9, 0)","v":{"v":0,"d":"$0.00"}},{"$f":"IFERROR('MMA Rev-Exp Region 3'!$P$47/'MMA Rev-Exp Region 3'!$P$9, 0)","v":{"v":0,"d":"$0.00"}},{"$f":"IFERROR('MMA Rev-Exp Region 3'!$Q$47/'MMA Rev-Exp Region 3'!$Q$9, 0)","v":{"v":0,"d":"$0.00"}},{"$f":"IFERROR('MMA Rev-Exp Region 3'!$R$47/'MMA Rev-Exp Region 3'!$R$9, 0)","v":{"v":0,"d":"$0.00"}},{"$f":"IFERROR('MMA Rev-Exp Region 3'!$S$47/'MMA Rev-Exp Region 3'!$S$9, 0)","v":{"v":0,"d":"$0.00"}},{"$f":"IFERROR('MMA Rev-Exp Region 3'!$T$47/'MMA Rev-Exp Region 3'!$T$9, 0)","v":{"v":0,"d":"$0.00"}},{"$f":"IFERROR('MMA Rev-Exp Region 3'!$U$47/'MMA Rev-Exp Region 3'!$U$9, 0)","v":{"v":0,"d":"$0.00"}},{"$f":"IFERROR('MMA Rev-Exp Region 3'!$V$47/'MMA Rev-Exp Region 3'!$V$9, 0)","v":{"v":0,"d":"$0.00"}},{"$f":"IFERROR('MMA Rev-Exp Region 3'!$W$47/'MMA Rev-Exp Region 3'!$W$9, 0)","v":{"v":0,"d":"$0.00"}},{"$f":"IFERROR('MMA Rev-Exp Region 3'!$X$47/'MMA Rev-Exp Region 3'!$X$9, 0)","v":{"v":0,"d":"$0.00"}},{"$f":"IFERROR('MMA Rev-Exp Region 3'!$Y$47/'MMA Rev-Exp Region 3'!$Y$9, 0)","v":{"v":0,"d":"$0.00"}}]
["MMA",null,null,2016,"2016-12-31","Q2","2017-06-30","Region 3","Operating Expense","Medical Benefits Expense","Dental Services",6.3,"Ending IBNP for Dental Services",{"$f":"IFERROR('MMA Rev-Exp Region 3'!$O$48/'MMA Rev-Exp Region 3'!$O$9, 0)","v":{"v":0,"d":"$0.00"}},{"$f":"IFERROR('MMA Rev-Exp Region 3'!$P$48/'MMA Rev-Exp Region 3'!$P$9, 0)","v":{"v":0,"d":"$0.00"}},{"$f":"IFERROR('MMA Rev-Exp Region 3'!$Q$48/'MMA Rev-Exp Region 3'!$Q$9, 0)","v":{"v":0,"d":"$0.00"}},{"$f":"IFERROR('MMA Rev-Exp Region 3'!$R$48/'MMA Rev-Exp Region 3'!$R$9, 0)","v":{"v":0,"d":"$0.00"}},{"$f":"IFERROR('MMA Rev-Exp Region 3'!$S$48/'MMA Rev-Exp Region 3'!$S$9, 0)","v":{"v":0,"d":"$0.00"}},{"$f":"IFERROR('MMA Rev-Exp Region 3'!$T$48/'MMA Rev-Exp Region 3'!$T$9, 0)","v":{"v":0,"d":"$0.00"}},{"$f":"IFERROR('MMA Rev-Exp Region 3'!$U$48/'MMA Rev-Exp Region 3'!$U$9, 0)","v":{"v":0,"d":"$0.00"}},{"$f":"IFERROR('MMA Rev-Exp Region 3'!$V$48/'MMA Rev-Exp Region 3'!$V$9, 0)","v":{"v":0,"d":"$0.00"}},{"$f":"IFERROR('MMA Rev-Exp Region 3'!$W$48/'MMA Rev-Exp Region 3'!$W$9, 0)","v":{"v":0,"d":"$0.00"}},{"$f":"IFERROR('MMA Rev-Exp Region 3'!$X$48/'MMA Rev-Exp Region 3'!$X$9, 0)","v":{"v":0,"d":"$0.00"}},{"$f":"IFERROR('MMA Rev-Exp Region 3'!$Y$48/'MMA Rev-Exp Region 3'!$Y$9, 0)","v":{"v":0,"d":"$0.00"}}]
["MMA",null,null,2016,"2016-12-31","Q2","2017-06-30","Region 3","Operating Expense","Medical Benefits Expense","Dental Services","6.4","Dental Settlements",{"$f":"IFERROR('MMA Rev-Exp Region 3'!$O$49/'MMA Rev-Exp Region 3'!$O$9, 0)","v":{"v":0,"d":"$0.00"}},{"$f":"IFERROR('MMA Rev-Exp Region 3'!$P$49/'MMA Rev-Exp Region 3'!$P$9, 0)","v":{"v":0,"d":"$0.00"}},{"$f":"IFERROR('MMA Rev-Exp Region 3'!$Q$49/'MMA Rev-Exp Region 3'!$Q$9, 0)","v":{"v":0,"d":"$0.00"}},{"$f":"IFERROR('MMA Rev-Exp Region 3'!$R$49/'MMA Rev-Exp Region 3'!$R$9, 0)","v":{"v":0,"d":"$0.00"}},{"$f":"IFERROR('MMA Rev-Exp Region 3'!$S$49/'MMA Rev-Exp Region 3'!$S$9, 0)","v":{"v":0,"d":"$0.00"}},{"$f":"IFERROR('MMA Rev-Exp Region 3'!$T$49/'MMA Rev-Exp Region 3'!$T$9, 0)","v":{"v":0,"d":"$0.00"}},{"$f":"IFERROR('MMA Rev-Exp Region 3'!$U$49/'MMA Rev-Exp Region 3'!$U$9, 0)","v":{"v":0,"d":"$0.00"}},{"$f":"IFERROR('MMA Rev-Exp Region 3'!$V$49/'MMA Rev-Exp Region 3'!$V$9, 0)","v":{"v":0,"d":"$0.00"}},{"$f":"IFERROR('MMA Rev-Exp Region 3'!$W$49/'MMA Rev-Exp Region 3'!$W$9, 0)","v":{"v":0,"d":"$0.00"}},{"$f":"IFERROR('MMA Rev-Exp Region 3'!$X$49/'MMA Rev-Exp Region 3'!$X$9, 0)","v":{"v":0,"d":"$0.00"}},{"$f":"IFERROR('MMA Rev-Exp Region 3'!$Y$49/'MMA Rev-Exp Region 3'!$Y$9, 0)","v":{"v":0,"d":"$0.00"}}]
["MMA",null,null,2016,"2016-12-31","Q2","2017-06-30","Region 3","Operating Expense","Medical Benefits Expense","Transportation Services",7.1,"Transportation FFS",{"$f":"IFERROR('MMA Rev-Exp Region 3'!$O$51/'MMA Rev-Exp Region 3'!$O$9, 0)","v":{"v":0,"d":"$0.00"}},{"$f":"IFERROR('MMA Rev-Exp Region 3'!$P$51/'MMA Rev-Exp Region 3'!$P$9, 0)","v":{"v":0,"d":"$0.00"}},{"$f":"IFERROR('MMA Rev-Exp Region 3'!$Q$51/'MMA Rev-Exp Region 3'!$Q$9, 0)","v":{"v":0,"d":"$0.00"}},{"$f":"IFERROR('MMA Rev-Exp Region 3'!$R$51/'MMA Rev-Exp Region 3'!$R$9, 0)","v":{"v":0,"d":"$0.00"}},{"$f":"IFERROR('MMA Rev-Exp Region 3'!$S$51/'MMA Rev-Exp Region 3'!$S$9, 0)","v":{"v":0,"d":"$0.00"}},{"$f":"IFERROR('MMA Rev-Exp Region 3'!$T$51/'MMA Rev-Exp Region 3'!$T$9, 0)","v":{"v":0,"d":"$0.00"}},{"$f":"IFERROR('MMA Rev-Exp Region 3'!$U$51/'MMA Rev-Exp Region 3'!$U$9, 0)","v":{"v":0,"d":"$0.00"}},{"$f":"IFERROR('MMA Rev-Exp Region 3'!$V$51/'MMA Rev-Exp Region 3'!$V$9, 0)","v":{"v":0,"d":"$0.00"}},{"$f":"IFERROR('MMA Rev-Exp Region 3'!$W$51/'MMA Rev-Exp Region 3'!$W$9, 0)","v":{"v":0,"d":"$0.00"}},{"$f":"IFERROR('MMA Rev-Exp Region 3'!$X$51/'MMA Rev-Exp Region 3'!$X$9, 0)","v":{"v":0,"d":"$0.00"}},{"$f":"IFERROR('MMA Rev-Exp Region 3'!$Y$51/'MMA Rev-Exp Region 3'!$Y$9, 0)","v":{"v":0,"d":"$0.00"}}]
["MMA",null,null,2016,"2016-12-31","Q2","2017-06-30","Region 3","Operating Expense","Medical Benefits Expense","Transportation Services",7.2,"Transportation Subcapitation",{"$f":"IFERROR('MMA Rev-Exp Region 3'!$O$52/'MMA Rev-Exp Region 3'!$O$9, 0)","v":{"v":0,"d":"$0.00"}},{"$f":"IFERROR('MMA Rev-Exp Region 3'!$P$52/'MMA Rev-Exp Region 3'!$P$9, 0)","v":{"v":0,"d":"$0.00"}},{"$f":"IFERROR('MMA Rev-Exp Region 3'!$Q$52/'MMA Rev-Exp Region 3'!$Q$9, 0)","v":{"v":0,"d":"$0.00"}},{"$f":"IFERROR('MMA Rev-Exp Region 3'!$R$52/'MMA Rev-Exp Region 3'!$R$9, 0)","v":{"v":0,"d":"$0.00"}},{"$f":"IFERROR('MMA Rev-Exp Region 3'!$S$52/'MMA Rev-Exp Region 3'!$S$9, 0)","v":{"v":0,"d":"$0.00"}},{"$f":"IFERROR('MMA Rev-Exp Region 3'!$T$52/'MMA Rev-Exp Region 3'!$T$9, 0)","v":{"v":0,"d":"$0.00"}},{"$f":"IFERROR('MMA Rev-Exp Region 3'!$U$52/'MMA Rev-Exp Region 3'!$U$9, 0)","v":{"v":0,"d":"$0.00"}},{"$f":"IFERROR('MMA Rev-Exp Region 3'!$V$52/'MMA Rev-Exp Region 3'!$V$9, 0)","v":{"v":0,"d":"$0.00"}},{"$f":"IFERROR('MMA Rev-Exp Region 3'!$W$52/'MMA Rev-Exp Region 3'!$W$9, 0)","v":{"v":0,"d":"$0.00"}},{"$f":"IFERROR('MMA Rev-Exp Region 3'!$X$52/'MMA Rev-Exp Region 3'!$X$9, 0)","v":{"v":0,"d":"$0.00"}},{"$f":"IFERROR('MMA Rev-Exp Region 3'!$Y$52/'MMA Rev-Exp Region 3'!$Y$9, 0)","v":{"v":0,"d":"$0.00"}}]
["MMA",null,null,2016,"2016-12-31","Q2","2017-06-30","Region 3","Operating Expense","Medical Benefits Expense","Transportation Services",7.3,"Ending IBNP for Transportation",{"$f":"IFERROR('MMA Rev-Exp Region 3'!$O$53/'MMA Rev-Exp Region 3'!$O$9, 0)","v":{"v":0,"d":"$0.00"}},{"$f":"IFERROR('MMA Rev-Exp Region 3'!$P$53/'MMA Rev-Exp Region 3'!$P$9, 0)","v":{"v":0,"d":"$0.00"}},{"$f":"IFERROR('MMA Rev-Exp Region 3'!$Q$53/'MMA Rev-Exp Region 3'!$Q$9, 0)","v":{"v":0,"d":"$0.00"}},{"$f":"IFERROR('MMA Rev-Exp Region 3'!$R$53/'MMA Rev-Exp Region 3'!$R$9, 0)","v":{"v":0,"d":"$0.00"}},{"$f":"IFERROR('MMA Rev-Exp Region 3'!$S$53/'MMA Rev-Exp Region 3'!$S$9, 0)","v":{"v":0,"d":"$0.00"}},{"$f":"IFERROR('MMA Rev-Exp Region 3'!$T$53/'MMA Rev-Exp Region 3'!$T$9, 0)","v":{"v":0,"d":"$0.00"}},{"$f":"IFERROR('MMA Rev-Exp Region 3'!$U$53/'MMA Rev-Exp Region 3'!$U$9, 0)","v":{"v":0,"d":"$0.00"}},{"$f":"IFERROR('MMA Rev-Exp Region 3'!$V$53/'MMA Rev-Exp Region 3'!$V$9, 0)","v":{"v":0,"d":"$0.00"}},{"$f":"IFERROR('MMA Rev-Exp Region 3'!$W$53/'MMA Rev-Exp Region 3'!$W$9, 0)","v":{"v":0,"d":"$0.00"}},{"$f":"IFERROR('MMA Rev-Exp Region 3'!$X$53/'MMA Rev-Exp Region 3'!$X$9, 0)","v":{"v":0,"d":"$0.00"}},{"$f":"IFERROR('MMA Rev-Exp Region 3'!$Y$53/'MMA Rev-Exp Region 3'!$Y$9, 0)","v":{"v":0,"d":"$0.00"}}]
["MMA",null,null,2016,"2016-12-31","Q2","2017-06-30","Region 3","Operating Expense","Medical Benefits Expense","Transportation Services","7.4","Transportation Settlements",{"$f":"IFERROR('MMA Rev-Exp Region 3'!$O$54/'MMA Rev-Exp Region 3'!$O$9, 0)","v":{"v":0,"d":"$0.00"}},{"$f":"IFERROR('MMA Rev-Exp Region 3'!$P$54/'MMA Rev-Exp Region 3'!$P$9, 0)","v":{"v":0,"d":"$0.00"}},{"$f":"IFERROR('MMA Rev-Exp Region 3'!$Q$54/'MMA Rev-Exp Region 3'!$Q$9, 0)","v":{"v":0,"d":"$0.00"}},{"$f":"IFERROR('MMA Rev-Exp Region 3'!$R$54/'MMA Rev-Exp Region 3'!$R$9, 0)","v":{"v":0,"d":"$0.00"}},{"$f":"IFERROR('MMA Rev-Exp Region 3'!$S$54/'MMA Rev-Exp Region 3'!$S$9, 0)","v":{"v":0,"d":"$0.00"}},{"$f":"IFERROR('MMA Rev-Exp Region 3'!$T$54/'MMA Rev-Exp Region 3'!$T$9, 0)","v":{"v":0,"d":"$0.00"}},{"$f":"IFERROR('MMA Rev-Exp Region 3'!$U$54/'MMA Rev-Exp Region 3'!$U$9, 0)","v":{"v":0,"d":"$0.00"}},{"$f":"IFERROR('MMA Rev-Exp Region 3'!$V$54/'MMA Rev-Exp Region 3'!$V$9, 0)","v":{"v":0,"d":"$0.00"}},{"$f":"IFERROR('MMA Rev-Exp Region 3'!$W$54/'MMA Rev-Exp Region 3'!$W$9, 0)","v":{"v":0,"d":"$0.00"}},{"$f":"IFERROR('MMA Rev-Exp Region 3'!$X$54/'MMA Rev-Exp Region 3'!$X$9, 0)","v":{"v":0,"d":"$0.00"}},{"$f":"IFERROR('MMA Rev-Exp Region 3'!$Y$54/'MMA Rev-Exp Region 3'!$Y$9, 0)","v":{"v":0,"d":"$0.00"}}]
["MMA",null,null,2016,"2016-12-31","Q2","2017-06-30","Region 3","Operating Expense","Medical Benefits Expense","Pharmacy Services",8.1,"Prescription Drugs FFS",{"$f":"IFERROR('MMA Rev-Exp Region 3'!$O$56/'MMA Rev-Exp Region 3'!$O$9, 0)","v":{"v":0,"d":"$0.00"}},{"$f":"IFERROR('MMA Rev-Exp Region 3'!$P$56/'MMA Rev-Exp Region 3'!$P$9, 0)","v":{"v":0,"d":"$0.00"}},{"$f":"IFERROR('MMA Rev-Exp Region 3'!$Q$56/'MMA Rev-Exp Region 3'!$Q$9, 0)","v":{"v":0,"d":"$0.00"}},{"$f":"IFERROR('MMA Rev-Exp Region 3'!$R$56/'MMA Rev-Exp Region 3'!$R$9, 0)","v":{"v":0,"d":"$0.00"}},{"$f":"IFERROR('MMA Rev-Exp Region 3'!$S$56/'MMA Rev-Exp Region 3'!$S$9, 0)","v":{"v":0,"d":"$0.00"}},{"$f":"IFERROR('MMA Rev-Exp Region 3'!$T$56/'MMA Rev-Exp Region 3'!$T$9, 0)","v":{"v":0,"d":"$0.00"}},{"$f":"IFERROR('MMA Rev-Exp Region 3'!$U$56/'MMA Rev-Exp Region 3'!$U$9, 0)","v":{"v":0,"d":"$0.00"}},{"$f":"IFERROR('MMA Rev-Exp Region 3'!$V$56/'MMA Rev-Exp Region 3'!$V$9, 0)","v":{"v":0,"d":"$0.00"}},{"$f":"IFERROR('MMA Rev-Exp Region 3'!$W$56/'MMA Rev-Exp Region 3'!$W$9, 0)","v":{"v":0,"d":"$0.00"}},{"$f":"IFERROR('MMA Rev-Exp Region 3'!$X$56/'MMA Rev-Exp Region 3'!$X$9, 0)","v":{"v":0,"d":"$0.00"}},{"$f":"IFERROR('MMA Rev-Exp Region 3'!$Y$56/'MMA Rev-Exp Region 3'!$Y$9, 0)","v":{"v":0,"d":"$0.00"}}]
["MMA",null,null,2016,"2016-12-31","Q2","2017-06-30","Region 3","Operating Expense","Medical Benefits Expense","Pharmacy Services","8.2","Hepatitis C Prescription Drug FFS",{"$f":"IFERROR('MMA Rev-Exp Region 3'!$O$57/'MMA Rev-Exp Region 3'!$O$9, 0)","v":{"v":0,"d":"$0.00"}},{"$f":"IFERROR('MMA Rev-Exp Region 3'!$P$57/'MMA Rev-Exp Region 3'!$P$9, 0)","v":{"v":0,"d":"$0.00"}},{"$f":"IFERROR('MMA Rev-Exp Region 3'!$Q$57/'MMA Rev-Exp Region 3'!$Q$9, 0)","v":{"v":0,"d":"$0.00"}},{"$f":"IFERROR('MMA Rev-Exp Region 3'!$R$57/'MMA Rev-Exp Region 3'!$R$9, 0)","v":{"v":0,"d":"$0.00"}},{"$f":"IFERROR('MMA Rev-Exp Region 3'!$S$57/'MMA Rev-Exp Region 3'!$S$9, 0)","v":{"v":0,"d":"$0.00"}},{"$f":"IFERROR('MMA Rev-Exp Region 3'!$T$57/'MMA Rev-Exp Region 3'!$T$9, 0)","v":{"v":0,"d":"$0.00"}},{"$f":"IFERROR('MMA Rev-Exp Region 3'!$U$57/'MMA Rev-Exp Region 3'!$U$9, 0)","v":{"v":0,"d":"$0.00"}},{"$f":"IFERROR('MMA Rev-Exp Region 3'!$V$57/'MMA Rev-Exp Region 3'!$V$9, 0)","v":{"v":0,"d":"$0.00"}},{"$f":"IFERROR('MMA Rev-Exp Region 3'!$W$57/'MMA Rev-Exp Region 3'!$W$9, 0)","v":{"v":0,"d":"$0.00"}},{"$f":"IFERROR('MMA Rev-Exp Region 3'!$X$57/'MMA Rev-Exp Region 3'!$X$9, 0)","v":{"v":0,"d":"$0.00"}},{"$f":"IFERROR('MMA Rev-Exp Region 3'!$Y$57/'MMA Rev-Exp Region 3'!$Y$9, 0)","v":{"v":0,"d":"$0.00"}}]
["MMA",null,null,2016,"2016-12-31","Q2","2017-06-30","Region 3","Operating Expense","Medical Benefits Expense","Pharmacy Services","8.3","Ending IBNP for Prescription Drugs",{"$f":"IFERROR('MMA Rev-Exp Region 3'!$O$58/'MMA Rev-Exp Region 3'!$O$9, 0)","v":{"v":0,"d":"$0.00"}},{"$f":"IFERROR('MMA Rev-Exp Region 3'!$P$58/'MMA Rev-Exp Region 3'!$P$9, 0)","v":{"v":0,"d":"$0.00"}},{"$f":"IFERROR('MMA Rev-Exp Region 3'!$Q$58/'MMA Rev-Exp Region 3'!$Q$9, 0)","v":{"v":0,"d":"$0.00"}},{"$f":"IFERROR('MMA Rev-Exp Region 3'!$R$58/'MMA Rev-Exp Region 3'!$R$9, 0)","v":{"v":0,"d":"$0.00"}},{"$f":"IFERROR('MMA Rev-Exp Region 3'!$S$58/'MMA Rev-Exp Region 3'!$S$9, 0)","v":{"v":0,"d":"$0.00"}},{"$f":"IFERROR('MMA Rev-Exp Region 3'!$T$58/'MMA Rev-Exp Region 3'!$T$9, 0)","v":{"v":0,"d":"$0.00"}},{"$f":"IFERROR('MMA Rev-Exp Region 3'!$U$58/'MMA Rev-Exp Region 3'!$U$9, 0)","v":{"v":0,"d":"$0.00"}},{"$f":"IFERROR('MMA Rev-Exp Region 3'!$V$58/'MMA Rev-Exp Region 3'!$V$9, 0)","v":{"v":0,"d":"$0.00"}},{"$f":"IFERROR('MMA Rev-Exp Region 3'!$W$58/'MMA Rev-Exp Region 3'!$W$9, 0)","v":{"v":0,"d":"$0.00"}},{"$f":"IFERROR('MMA Rev-Exp Region 3'!$X$58/'MMA Rev-Exp Region 3'!$X$9, 0)","v":{"v":0,"d":"$0.00"}},{"$f":"IFERROR('MMA Rev-Exp Region 3'!$Y$58/'MMA Rev-Exp Region 3'!$Y$9, 0)","v":{"v":0,"d":"$0.00"}}]
["MMA",null,null,2016,"2016-12-31","Q2","2017-06-30","Region 3","Operating Expense","Medical Benefits Expense","Pharmacy Services","8.4","Prescription Drug Rebates ",{"$f":"IFERROR('MMA Rev-Exp Region 3'!$O$59/'MMA Rev-Exp Region 3'!$O$9, 0)","v":{"v":0,"d":"$0.00"}},{"$f":"IFERROR('MMA Rev-Exp Region 3'!$P$59/'MMA Rev-Exp Region 3'!$P$9, 0)","v":{"v":0,"d":"$0.00"}},{"$f":"IFERROR('MMA Rev-Exp Region 3'!$Q$59/'MMA Rev-Exp Region 3'!$Q$9, 0)","v":{"v":0,"d":"$0.00"}},{"$f":"IFERROR('MMA Rev-Exp Region 3'!$R$59/'MMA Rev-Exp Region 3'!$R$9, 0)","v":{"v":0,"d":"$0.00"}},{"$f":"IFERROR('MMA Rev-Exp Region 3'!$S$59/'MMA Rev-Exp Region 3'!$S$9, 0)","v":{"v":0,"d":"$0.00"}},{"$f":"IFERROR('MMA Rev-Exp Region 3'!$T$59/'MMA Rev-Exp Region 3'!$T$9, 0)","v":{"v":0,"d":"$0.00"}},{"$f":"IFERROR('MMA Rev-Exp Region 3'!$U$59/'MMA Rev-Exp Region 3'!$U$9, 0)","v":{"v":0,"d":"$0.00"}},{"$f":"IFERROR('MMA Rev-Exp Region 3'!$V$59/'MMA Rev-Exp Region 3'!$V$9, 0)","v":{"v":0,"d":"$0.00"}},{"$f":"IFERROR('MMA Rev-Exp Region 3'!$W$59/'MMA Rev-Exp Region 3'!$W$9, 0)","v":{"v":0,"d":"$0.00"}},{"$f":"IFERROR('MMA Rev-Exp Region 3'!$X$59/'MMA Rev-Exp Region 3'!$X$9, 0)","v":{"v":0,"d":"$0.00"}},{"$f":"IFERROR('MMA Rev-Exp Region 3'!$Y$59/'MMA Rev-Exp Region 3'!$Y$9, 0)","v":{"v":0,"d":"$0.00"}}]
["MMA",null,null,2016,"2016-12-31","Q2","2017-06-30","Region 3","Operating Expense","Medical Benefits Expense","Pharmacy Services","8.5","Ending accrual for Rebates receivable",{"$f":"IFERROR('MMA Rev-Exp Region 3'!$O$60/'MMA Rev-Exp Region 3'!$O$9, 0)","v":{"v":0,"d":"$0.00"}},{"$f":"IFERROR('MMA Rev-Exp Region 3'!$P$60/'MMA Rev-Exp Region 3'!$P$9, 0)","v":{"v":0,"d":"$0.00"}},{"$f":"IFERROR('MMA Rev-Exp Region 3'!$Q$60/'MMA Rev-Exp Region 3'!$Q$9, 0)","v":{"v":0,"d":"$0.00"}},{"$f":"IFERROR('MMA Rev-Exp Region 3'!$R$60/'MMA Rev-Exp Region 3'!$R$9, 0)","v":{"v":0,"d":"$0.00"}},{"$f":"IFERROR('MMA Rev-Exp Region 3'!$S$60/'MMA Rev-Exp Region 3'!$S$9, 0)","v":{"v":0,"d":"$0.00"}},{"$f":"IFERROR('MMA Rev-Exp Region 3'!$T$60/'MMA Rev-Exp Region 3'!$T$9, 0)","v":{"v":0,"d":"$0.00"}},{"$f":"IFERROR('MMA Rev-Exp Region 3'!$U$60/'MMA Rev-Exp Region 3'!$U$9, 0)","v":{"v":0,"d":"$0.00"}},{"$f":"IFERROR('MMA Rev-Exp Region 3'!$V$60/'MMA Rev-Exp Region 3'!$V$9, 0)","v":{"v":0,"d":"$0.00"}},{"$f":"IFERROR('MMA Rev-Exp Region 3'!$W$60/'MMA Rev-Exp Region 3'!$W$9, 0)","v":{"v":0,"d":"$0.00"}},{"$f":"IFERROR('MMA Rev-Exp Region 3'!$X$60/'MMA Rev-Exp Region 3'!$X$9, 0)","v":{"v":0,"d":"$0.00"}},{"$f":"IFERROR('MMA Rev-Exp Region 3'!$Y$60/'MMA Rev-Exp Region 3'!$Y$9, 0)","v":{"v":0,"d":"$0.00"}}]
["MMA",null,null,2016,"2016-12-31","Q2","2017-06-30","Region 3","Operating Expense","Medical Benefits Expense","Pharmacy Services","8.6","Prescription Drugs Subcapitation",{"$f":"IFERROR('MMA Rev-Exp Region 3'!$O$61/'MMA Rev-Exp Region 3'!$O$9, 0)","v":{"v":0,"d":"$0.00"}},{"$f":"IFERROR('MMA Rev-Exp Region 3'!$P$61/'MMA Rev-Exp Region 3'!$P$9, 0)","v":{"v":0,"d":"$0.00"}},{"$f":"IFERROR('MMA Rev-Exp Region 3'!$Q$61/'MMA Rev-Exp Region 3'!$Q$9, 0)","v":{"v":0,"d":"$0.00"}},{"$f":"IFERROR('MMA Rev-Exp Region 3'!$R$61/'MMA Rev-Exp Region 3'!$R$9, 0)","v":{"v":0,"d":"$0.00"}},{"$f":"IFERROR('MMA Rev-Exp Region 3'!$S$61/'MMA Rev-Exp Region 3'!$S$9, 0)","v":{"v":0,"d":"$0.00"}},{"$f":"IFERROR('MMA Rev-Exp Region 3'!$T$61/'MMA Rev-Exp Region 3'!$T$9, 0)","v":{"v":0,"d":"$0.00"}},{"$f":"IFERROR('MMA Rev-Exp Region 3'!$U$61/'MMA Rev-Exp Region 3'!$U$9, 0)","v":{"v":0,"d":"$0.00"}},{"$f":"IFERROR('MMA Rev-Exp Region 3'!$V$61/'MMA Rev-Exp Region 3'!$V$9, 0)","v":{"v":0,"d":"$0.00"}},{"$f":"IFERROR('MMA Rev-Exp Region 3'!$W$61/'MMA Rev-Exp Region 3'!$W$9, 0)","v":{"v":0,"d":"$0.00"}},{"$f":"IFERROR('MMA Rev-Exp Region 3'!$X$61/'MMA Rev-Exp Region 3'!$X$9, 0)","v":{"v":0,"d":"$0.00"}},{"$f":"IFERROR('MMA Rev-Exp Region 3'!$Y$61/'MMA Rev-Exp Region 3'!$Y$9, 0)","v":{"v":0,"d":"$0.00"}}]
["MMA",null,null,2016,"2016-12-31","Q2","2017-06-30","Region 3","Operating Expense","Medical Benefits Expense","Pharmacy Services","8.7","Prescription Drug Settlements",{"$f":"IFERROR('MMA Rev-Exp Region 3'!$O$62/'MMA Rev-Exp Region 3'!$O$9, 0)","v":{"v":0,"d":"$0.00"}},{"$f":"IFERROR('MMA Rev-Exp Region 3'!$P$62/'MMA Rev-Exp Region 3'!$P$9, 0)","v":{"v":0,"d":"$0.00"}},{"$f":"IFERROR('MMA Rev-Exp Region 3'!$Q$62/'MMA Rev-Exp Region 3'!$Q$9, 0)","v":{"v":0,"d":"$0.00"}},{"$f":"IFERROR('MMA Rev-Exp Region 3'!$R$62/'MMA Rev-Exp Region 3'!$R$9, 0)","v":{"v":0,"d":"$0.00"}},{"$f":"IFERROR('MMA Rev-Exp Region 3'!$S$62/'MMA Rev-Exp Region 3'!$S$9, 0)","v":{"v":0,"d":"$0.00"}},{"$f":"IFERROR('MMA Rev-Exp Region 3'!$T$62/'MMA Rev-Exp Region 3'!$T$9, 0)","v":{"v":0,"d":"$0.00"}},{"$f":"IFERROR('MMA Rev-Exp Region 3'!$U$62/'MMA Rev-Exp Region 3'!$U$9, 0)","v":{"v":0,"d":"$0.00"}},{"$f":"IFERROR('MMA Rev-Exp Region 3'!$V$62/'MMA Rev-Exp Region 3'!$V$9, 0)","v":{"v":0,"d":"$0.00"}},{"$f":"IFERROR('MMA Rev-Exp Region 3'!$W$62/'MMA Rev-Exp Region 3'!$W$9, 0)","v":{"v":0,"d":"$0.00"}},{"$f":"IFERROR('MMA Rev-Exp Region 3'!$X$62/'MMA Rev-Exp Region 3'!$X$9, 0)","v":{"v":0,"d":"$0.00"}},{"$f":"IFERROR('MMA Rev-Exp Region 3'!$Y$62/'MMA Rev-Exp Region 3'!$Y$9, 0)","v":{"v":0,"d":"$0.00"}}]
["MMA",null,null,2016,"2016-12-31","Q2","2017-06-30","Region 3","Operating Expense","Medical Benefits Expense","Other MMA Services",9.1,"Home Health, Private Duty Nursing, Personal Care FFS",{"$f":"IFERROR('MMA Rev-Exp Region 3'!$O$64/'MMA Rev-Exp Region 3'!$O$9, 0)","v":{"v":0,"d":"$0.00"}},{"$f":"IFERROR('MMA Rev-Exp Region 3'!$P$64/'MMA Rev-Exp Region 3'!$P$9, 0)","v":{"v":0,"d":"$0.00"}},{"$f":"IFERROR('MMA Rev-Exp Region 3'!$Q$64/'MMA Rev-Exp Region 3'!$Q$9, 0)","v":{"v":0,"d":"$0.00"}},{"$f":"IFERROR('MMA Rev-Exp Region 3'!$R$64/'MMA Rev-Exp Region 3'!$R$9, 0)","v":{"v":0,"d":"$0.00"}},{"$f":"IFERROR('MMA Rev-Exp Region 3'!$S$64/'MMA Rev-Exp Region 3'!$S$9, 0)","v":{"v":0,"d":"$0.00"}},{"$f":"IFERROR('MMA Rev-Exp Region 3'!$T$64/'MMA Rev-Exp Region 3'!$T$9, 0)","v":{"v":0,"d":"$0.00"}},{"$f":"IFERROR('MMA Rev-Exp Region 3'!$U$64/'MMA Rev-Exp Region 3'!$U$9, 0)","v":{"v":0,"d":"$0.00"}},{"$f":"IFERROR('MMA Rev-Exp Region 3'!$V$64/'MMA Rev-Exp Region 3'!$V$9, 0)","v":{"v":0,"d":"$0.00"}},{"$f":"IFERROR('MMA Rev-Exp Region 3'!$W$64/'MMA Rev-Exp Region 3'!$W$9, 0)","v":{"v":0,"d":"$0.00"}},{"$f":"IFERROR('MMA Rev-Exp Region 3'!$X$64/'MMA Rev-Exp Region 3'!$X$9, 0)","v":{"v":0,"d":"$0.00"}},{"$f":"IFERROR('MMA Rev-Exp Region 3'!$Y$64/'MMA Rev-Exp Region 3'!$Y$9, 0)","v":{"v":0,"d":"$0.00"}}]
["MMA",null,null,2016,"2016-12-31","Q2","2017-06-30","Region 3","Operating Expense","Medical Benefits Expense","Other MMA Services","9.2","Hospice FFS",{"$f":"IFERROR('MMA Rev-Exp Region 3'!$O$65/'MMA Rev-Exp Region 3'!$O$9, 0)","v":{"v":0,"d":"$0.00"}},{"$f":"IFERROR('MMA Rev-Exp Region 3'!$P$65/'MMA Rev-Exp Region 3'!$P$9, 0)","v":{"v":0,"d":"$0.00"}},{"$f":"IFERROR('MMA Rev-Exp Region 3'!$Q$65/'MMA Rev-Exp Region 3'!$Q$9, 0)","v":{"v":0,"d":"$0.00"}},{"$f":"IFERROR('MMA Rev-Exp Region 3'!$R$65/'MMA Rev-Exp Region 3'!$R$9, 0)","v":{"v":0,"d":"$0.00"}},{"$f":"IFERROR('MMA Rev-Exp Region 3'!$S$65/'MMA Rev-Exp Region 3'!$S$9, 0)","v":{"v":0,"d":"$0.00"}},{"$f":"IFERROR('MMA Rev-Exp Region 3'!$T$65/'MMA Rev-Exp Region 3'!$T$9, 0)","v":{"v":0,"d":"$0.00"}},{"$f":"IFERROR('MMA Rev-Exp Region 3'!$U$65/'MMA Rev-Exp Region 3'!$U$9, 0)","v":{"v":0,"d":"$0.00"}},{"$f":"IFERROR('MMA Rev-Exp Region 3'!$V$65/'MMA Rev-Exp Region 3'!$V$9, 0)","v":{"v":0,"d":"$0.00"}},{"$f":"IFERROR('MMA Rev-Exp Region 3'!$W$65/'MMA Rev-Exp Region 3'!$W$9, 0)","v":{"v":0,"d":"$0.00"}},{"$f":"IFERROR('MMA Rev-Exp Region 3'!$X$65/'MMA Rev-Exp Region 3'!$X$9, 0)","v":{"v":0,"d":"$0.00"}},{"$f":"IFERROR('MMA Rev-Exp Region 3'!$Y$65/'MMA Rev-Exp Region 3'!$Y$9, 0)","v":{"v":0,"d":"$0.00"}}]
["MMA",null,null,2016,"2016-12-31","Q2","2017-06-30","Region 3","Operating Expense","Medical Benefits Expense","Other MMA Services","9.3","DME FFS",{"$f":"IFERROR('MMA Rev-Exp Region 3'!$O$66/'MMA Rev-Exp Region 3'!$O$9, 0)","v":{"v":0,"d":"$0.00"}},{"$f":"IFERROR('MMA Rev-Exp Region 3'!$P$66/'MMA Rev-Exp Region 3'!$P$9, 0)","v":{"v":0,"d":"$0.00"}},{"$f":"IFERROR('MMA Rev-Exp Region 3'!$Q$66/'MMA Rev-Exp Region 3'!$Q$9, 0)","v":{"v":0,"d":"$0.00"}},{"$f":"IFERROR('MMA Rev-Exp Region 3'!$R$66/'MMA Rev-Exp Region 3'!$R$9, 0)","v":{"v":0,"d":"$0.00"}},{"$f":"IFERROR('MMA Rev-Exp Region 3'!$S$66/'MMA Rev-Exp Region 3'!$S$9, 0)","v":{"v":0,"d":"$0.00"}},{"$f":"IFERROR('MMA Rev-Exp Region 3'!$T$66/'MMA Rev-Exp Region 3'!$T$9, 0)","v":{"v":0,"d":"$0.00"}},{"$f":"IFERROR('MMA Rev-Exp Region 3'!$U$66/'MMA Rev-Exp Region 3'!$U$9, 0)","v":{"v":0,"d":"$0.00"}},{"$f":"IFERROR('MMA Rev-Exp Region 3'!$V$66/'MMA Rev-Exp Region 3'!$V$9, 0)","v":{"v":0,"d":"$0.00"}},{"$f":"IFERROR('MMA Rev-Exp Region 3'!$W$66/'MMA Rev-Exp Region 3'!$W$9, 0)","v":{"v":0,"d":"$0.00"}},{"$f":"IFERROR('MMA Rev-Exp Region 3'!$X$66/'MMA Rev-Exp Region 3'!$X$9, 0)","v":{"v":0,"d":"$0.00"}},{"$f":"IFERROR('MMA Rev-Exp Region 3'!$Y$66/'MMA Rev-Exp Region 3'!$Y$9, 0)","v":{"v":0,"d":"$0.00"}}]
["MMA",null,null,2016,"2016-12-31","Q2","2017-06-30","Region 3","Operating Expense","Medical Benefits Expense","Other MMA Services","9.4","Other State Plan Services FFS",{"$f":"IFERROR('MMA Rev-Exp Region 3'!$O$67/'MMA Rev-Exp Region 3'!$O$9, 0)","v":{"v":0,"d":"$0.00"}},{"$f":"IFERROR('MMA Rev-Exp Region 3'!$P$67/'MMA Rev-Exp Region 3'!$P$9, 0)","v":{"v":0,"d":"$0.00"}},{"$f":"IFERROR('MMA Rev-Exp Region 3'!$Q$67/'MMA Rev-Exp Region 3'!$Q$9, 0)","v":{"v":0,"d":"$0.00"}},{"$f":"IFERROR('MMA Rev-Exp Region 3'!$R$67/'MMA Rev-Exp Region 3'!$R$9, 0)","v":{"v":0,"d":"$0.00"}},{"$f":"IFERROR('MMA Rev-Exp Region 3'!$S$67/'MMA Rev-Exp Region 3'!$S$9, 0)","v":{"v":0,"d":"$0.00"}},{"$f":"IFERROR('MMA Rev-Exp Region 3'!$T$67/'MMA Rev-Exp Region 3'!$T$9, 0)","v":{"v":0,"d":"$0.00"}},{"$f":"IFERROR('MMA Rev-Exp Region 3'!$U$67/'MMA Rev-Exp Region 3'!$U$9, 0)","v":{"v":0,"d":"$0.00"}},{"$f":"IFERROR('MMA Rev-Exp Region 3'!$V$67/'MMA Rev-Exp Region 3'!$V$9, 0)","v":{"v":0,"d":"$0.00"}},{"$f":"IFERROR('MMA Rev-Exp Region 3'!$W$67/'MMA Rev-Exp Region 3'!$W$9, 0)","v":{"v":0,"d":"$0.00"}},{"$f":"IFERROR('MMA Rev-Exp Region 3'!$X$67/'MMA Rev-Exp Region 3'!$X$9, 0)","v":{"v":0,"d":"$0.00"}},{"$f":"IFERROR('MMA Rev-Exp Region 3'!$Y$67/'MMA Rev-Exp Region 3'!$Y$9, 0)","v":{"v":0,"d":"$0.00"}}]
["MMA",null,null,2016,"2016-12-31","Q2","2017-06-30","Region 3","Operating Expense","Medical Benefits Expense","Other MMA Services","9.5","Other Services Subcapitation",{"$f":"IFERROR('MMA Rev-Exp Region 3'!$O$68/'MMA Rev-Exp Region 3'!$O$9, 0)","v":{"v":0,"d":"$0.00"}},{"$f":"IFERROR('MMA Rev-Exp Region 3'!$P$68/'MMA Rev-Exp Region 3'!$P$9, 0)","v":{"v":0,"d":"$0.00"}},{"$f":"IFERROR('MMA Rev-Exp Region 3'!$Q$68/'MMA Rev-Exp Region 3'!$Q$9, 0)","v":{"v":0,"d":"$0.00"}},{"$f":"IFERROR('MMA Rev-Exp Region 3'!$R$68/'MMA Rev-Exp Region 3'!$R$9, 0)","v":{"v":0,"d":"$0.00"}},{"$f":"IFERROR('MMA Rev-Exp Region 3'!$S$68/'MMA Rev-Exp Region 3'!$S$9, 0)","v":{"v":0,"d":"$0.00"}},{"$f":"IFERROR('MMA Rev-Exp Region 3'!$T$68/'MMA Rev-Exp Region 3'!$T$9, 0)","v":{"v":0,"d":"$0.00"}},{"$f":"IFERROR('MMA Rev-Exp Region 3'!$U$68/'MMA Rev-Exp Region 3'!$U$9, 0)","v":{"v":0,"d":"$0.00"}},{"$f":"IFERROR('MMA Rev-Exp Region 3'!$V$68/'MMA Rev-Exp Region 3'!$V$9, 0)","v":{"v":0,"d":"$0.00"}},{"$f":"IFERROR('MMA Rev-Exp Region 3'!$W$68/'MMA Rev-Exp Region 3'!$W$9, 0)","v":{"v":0,"d":"$0.00"}},{"$f":"IFERROR('MMA Rev-Exp Region 3'!$X$68/'MMA Rev-Exp Region 3'!$X$9, 0)","v":{"v":0,"d":"$0.00"}},{"$f":"IFERROR('MMA Rev-Exp Region 3'!$Y$68/'MMA Rev-Exp Region 3'!$Y$9, 0)","v":{"v":0,"d":"$0.00"}}]
["MMA",null,null,2016,"2016-12-31","Q2","2017-06-30","Region 3","Operating Expense","Medical Benefits Expense","Other MMA Services","9.6","Ending IBNP for Other Services",{"$f":"IFERROR('MMA Rev-Exp Region 3'!$O$69/'MMA Rev-Exp Region 3'!$O$9, 0)","v":{"v":0,"d":"$0.00"}},{"$f":"IFERROR('MMA Rev-Exp Region 3'!$P$69/'MMA Rev-Exp Region 3'!$P$9, 0)","v":{"v":0,"d":"$0.00"}},{"$f":"IFERROR('MMA Rev-Exp Region 3'!$Q$69/'MMA Rev-Exp Region 3'!$Q$9, 0)","v":{"v":0,"d":"$0.00"}},{"$f":"IFERROR('MMA Rev-Exp Region 3'!$R$69/'MMA Rev-Exp Region 3'!$R$9, 0)","v":{"v":0,"d":"$0.00"}},{"$f":"IFERROR('MMA Rev-Exp Region 3'!$S$69/'MMA Rev-Exp Region 3'!$S$9, 0)","v":{"v":0,"d":"$0.00"}},{"$f":"IFERROR('MMA Rev-Exp Region 3'!$T$69/'MMA Rev-Exp Region 3'!$T$9, 0)","v":{"v":0,"d":"$0.00"}},{"$f":"IFERROR('MMA Rev-Exp Region 3'!$U$69/'MMA Rev-Exp Region 3'!$U$9, 0)","v":{"v":0,"d":"$0.00"}},{"$f":"IFERROR('MMA Rev-Exp Region 3'!$V$69/'MMA Rev-Exp Region 3'!$V$9, 0)","v":{"v":0,"d":"$0.00"}},{"$f":"IFERROR('MMA Rev-Exp Region 3'!$W$69/'MMA Rev-Exp Region 3'!$W$9, 0)","v":{"v":0,"d":"$0.00"}},{"$f":"IFERROR('MMA Rev-Exp Region 3'!$X$69/'MMA Rev-Exp Region 3'!$X$9, 0)","v":{"v":0,"d":"$0.00"}},{"$f":"IFERROR('MMA Rev-Exp Region 3'!$Y$69/'MMA Rev-Exp Region 3'!$Y$9, 0)","v":{"v":0,"d":"$0.00"}}]
["MMA",null,null,2016,"2016-12-31","Q2","2017-06-30","Region 3","Operating Expense","Medical Benefits Expense","Other MMA Services","9.7","Other Services Settlements",{"$f":"IFERROR('MMA Rev-Exp Region 3'!$O$70/'MMA Rev-Exp Region 3'!$O$9, 0)","v":{"v":0,"d":"$0.00"}},{"$f":"IFERROR('MMA Rev-Exp Region 3'!$P$70/'MMA Rev-Exp Region 3'!$P$9, 0)","v":{"v":0,"d":"$0.00"}},{"$f":"IFERROR('MMA Rev-Exp Region 3'!$Q$70/'MMA Rev-Exp Region 3'!$Q$9, 0)","v":{"v":0,"d":"$0.00"}},{"$f":"IFERROR('MMA Rev-Exp Region 3'!$R$70/'MMA Rev-Exp Region 3'!$R$9, 0)","v":{"v":0,"d":"$0.00"}},{"$f":"IFERROR('MMA Rev-Exp Region 3'!$S$70/'MMA Rev-Exp Region 3'!$S$9, 0)","v":{"v":0,"d":"$0.00"}},{"$f":"IFERROR('MMA Rev-Exp Region 3'!$T$70/'MMA Rev-Exp Region 3'!$T$9, 0)","v":{"v":0,"d":"$0.00"}},{"$f":"IFERROR('MMA Rev-Exp Region 3'!$U$70/'MMA Rev-Exp Region 3'!$U$9, 0)","v":{"v":0,"d":"$0.00"}},{"$f":"IFERROR('MMA Rev-Exp Region 3'!$V$70/'MMA Rev-Exp Region 3'!$V$9, 0)","v":{"v":0,"d":"$0.00"}},{"$f":"IFERROR('MMA Rev-Exp Region 3'!$W$70/'MMA Rev-Exp Region 3'!$W$9, 0)","v":{"v":0,"d":"$0.00"}},{"$f":"IFERROR('MMA Rev-Exp Region 3'!$X$70/'MMA Rev-Exp Region 3'!$X$9, 0)","v":{"v":0,"d":"$0.00"}},{"$f":"IFERROR('MMA Rev-Exp Region 3'!$Y$70/'MMA Rev-Exp Region 3'!$Y$9, 0)","v":{"v":0,"d":"$0.00"}}]
["MMA",null,null,2016,"2016-12-31","Q2","2017-06-30","Region 3","Operating Expense","Medical Benefits Expense","Expanded Benefits","10.1","Expanded Benefits FFS",{"$f":"IFERROR('MMA Rev-Exp Region 3'!$O$72/'MMA Rev-Exp Region 3'!$O$9, 0)","v":{"v":0,"d":"$0.00"}},{"$f":"IFERROR('MMA Rev-Exp Region 3'!$P$72/'MMA Rev-Exp Region 3'!$P$9, 0)","v":{"v":0,"d":"$0.00"}},{"$f":"IFERROR('MMA Rev-Exp Region 3'!$Q$72/'MMA Rev-Exp Region 3'!$Q$9, 0)","v":{"v":0,"d":"$0.00"}},{"$f":"IFERROR('MMA Rev-Exp Region 3'!$R$72/'MMA Rev-Exp Region 3'!$R$9, 0)","v":{"v":0,"d":"$0.00"}},{"$f":"IFERROR('MMA Rev-Exp Region 3'!$S$72/'MMA Rev-Exp Region 3'!$S$9, 0)","v":{"v":0,"d":"$0.00"}},{"$f":"IFERROR('MMA Rev-Exp Region 3'!$T$72/'MMA Rev-Exp Region 3'!$T$9, 0)","v":{"v":0,"d":"$0.00"}},{"$f":"IFERROR('MMA Rev-Exp Region 3'!$U$72/'MMA Rev-Exp Region 3'!$U$9, 0)","v":{"v":0,"d":"$0.00"}},{"$f":"IFERROR('MMA Rev-Exp Region 3'!$V$72/'MMA Rev-Exp Region 3'!$V$9, 0)","v":{"v":0,"d":"$0.00"}},{"$f":"IFERROR('MMA Rev-Exp Region 3'!$W$72/'MMA Rev-Exp Region 3'!$W$9, 0)","v":{"v":0,"d":"$0.00"}},{"$f":"IFERROR('MMA Rev-Exp Region 3'!$X$72/'MMA Rev-Exp Region 3'!$X$9, 0)","v":{"v":0,"d":"$0.00"}},{"$f":"IFERROR('MMA Rev-Exp Region 3'!$Y$72/'MMA Rev-Exp Region 3'!$Y$9, 0)","v":{"v":0,"d":"$0.00"}}]
["MMA",null,null,2016,"2016-12-31","Q2","2017-06-30","Region 3","Operating Expense","Medical Benefits Expense","Expanded Benefits","10.2","Expanded benefits Subcapitation",{"$f":"IFERROR('MMA Rev-Exp Region 3'!$O$73/'MMA Rev-Exp Region 3'!$O$9, 0)","v":{"v":0,"d":"$0.00"}},{"$f":"IFERROR('MMA Rev-Exp Region 3'!$P$73/'MMA Rev-Exp Region 3'!$P$9, 0)","v":{"v":0,"d":"$0.00"}},{"$f":"IFERROR('MMA Rev-Exp Region 3'!$Q$73/'MMA Rev-Exp Region 3'!$Q$9, 0)","v":{"v":0,"d":"$0.00"}},{"$f":"IFERROR('MMA Rev-Exp Region 3'!$R$73/'MMA Rev-Exp Region 3'!$R$9, 0)","v":{"v":0,"d":"$0.00"}},{"$f":"IFERROR('MMA Rev-Exp Region 3'!$S$73/'MMA Rev-Exp Region 3'!$S$9, 0)","v":{"v":0,"d":"$0.00"}},{"$f":"IFERROR('MMA Rev-Exp Region 3'!$T$73/'MMA Rev-Exp Region 3'!$T$9, 0)","v":{"v":0,"d":"$0.00"}},{"$f":"IFERROR('MMA Rev-Exp Region 3'!$U$73/'MMA Rev-Exp Region 3'!$U$9, 0)","v":{"v":0,"d":"$0.00"}},{"$f":"IFERROR('MMA Rev-Exp Region 3'!$V$73/'MMA Rev-Exp Region 3'!$V$9, 0)","v":{"v":0,"d":"$0.00"}},{"$f":"IFERROR('MMA Rev-Exp Region 3'!$W$73/'MMA Rev-Exp Region 3'!$W$9, 0)","v":{"v":0,"d":"$0.00"}},{"$f":"IFERROR('MMA Rev-Exp Region 3'!$X$73/'MMA Rev-Exp Region 3'!$X$9, 0)","v":{"v":0,"d":"$0.00"}},{"$f":"IFERROR('MMA Rev-Exp Region 3'!$Y$73/'MMA Rev-Exp Region 3'!$Y$9, 0)","v":{"v":0,"d":"$0.00"}}]
["MMA",null,null,2016,"2016-12-31","Q2","2017-06-30","Region 3","Operating Expense","Medical Benefits Expense","Expanded Benefits","10.3","Ending IBNP for Expanded Benefits",{"$f":"IFERROR('MMA Rev-Exp Region 3'!$O$74/'MMA Rev-Exp Region 3'!$O$9, 0)","v":{"v":0,"d":"$0.00"}},{"$f":"IFERROR('MMA Rev-Exp Region 3'!$P$74/'MMA Rev-Exp Region 3'!$P$9, 0)","v":{"v":0,"d":"$0.00"}},{"$f":"IFERROR('MMA Rev-Exp Region 3'!$Q$74/'MMA Rev-Exp Region 3'!$Q$9, 0)","v":{"v":0,"d":"$0.00"}},{"$f":"IFERROR('MMA Rev-Exp Region 3'!$R$74/'MMA Rev-Exp Region 3'!$R$9, 0)","v":{"v":0,"d":"$0.00"}},{"$f":"IFERROR('MMA Rev-Exp Region 3'!$S$74/'MMA Rev-Exp Region 3'!$S$9, 0)","v":{"v":0,"d":"$0.00"}},{"$f":"IFERROR('MMA Rev-Exp Region 3'!$T$74/'MMA Rev-Exp Region 3'!$T$9, 0)","v":{"v":0,"d":"$0.00"}},{"$f":"IFERROR('MMA Rev-Exp Region 3'!$U$74/'MMA Rev-Exp Region 3'!$U$9, 0)","v":{"v":0,"d":"$0.00"}},{"$f":"IFERROR('MMA Rev-Exp Region 3'!$V$74/'MMA Rev-Exp Region 3'!$V$9, 0)","v":{"v":0,"d":"$0.00"}},{"$f":"IFERROR('MMA Rev-Exp Region 3'!$W$74/'MMA Rev-Exp Region 3'!$W$9, 0)","v":{"v":0,"d":"$0.00"}},{"$f":"IFERROR('MMA Rev-Exp Region 3'!$X$74/'MMA Rev-Exp Region 3'!$X$9, 0)","v":{"v":0,"d":"$0.00"}},{"$f":"IFERROR('MMA Rev-Exp Region 3'!$Y$74/'MMA Rev-Exp Region 3'!$Y$9, 0)","v":{"v":0,"d":"$0.00"}}]
["MMA",null,null,2016,"2016-12-31","Q2","2017-06-30","Region 3","Operating Expense","Medical Benefits Expense","Expanded Benefits","10.4","Expanded Benefits Settlements",{"$f":"IFERROR('MMA Rev-Exp Region 3'!$O$75/'MMA Rev-Exp Region 3'!$O$9, 0)","v":{"v":0,"d":"$0.00"}},{"$f":"IFERROR('MMA Rev-Exp Region 3'!$P$75/'MMA Rev-Exp Region 3'!$P$9, 0)","v":{"v":0,"d":"$0.00"}},{"$f":"IFERROR('MMA Rev-Exp Region 3'!$Q$75/'MMA Rev-Exp Region 3'!$Q$9, 0)","v":{"v":0,"d":"$0.00"}},{"$f":"IFERROR('MMA Rev-Exp Region 3'!$R$75/'MMA Rev-Exp Region 3'!$R$9, 0)","v":{"v":0,"d":"$0.00"}},{"$f":"IFERROR('MMA Rev-Exp Region 3'!$S$75/'MMA Rev-Exp Region 3'!$S$9, 0)","v":{"v":0,"d":"$0.00"}},{"$f":"IFERROR('MMA Rev-Exp Region 3'!$T$75/'MMA Rev-Exp Region 3'!$T$9, 0)","v":{"v":0,"d":"$0.00"}},{"$f":"IFERROR('MMA Rev-Exp Region 3'!$U$75/'MMA Rev-Exp Region 3'!$U$9, 0)","v":{"v":0,"d":"$0.00"}},{"$f":"IFERROR('MMA Rev-Exp Region 3'!$V$75/'MMA Rev-Exp Region 3'!$V$9, 0)","v":{"v":0,"d":"$0.00"}},{"$f":"IFERROR('MMA Rev-Exp Region 3'!$W$75/'MMA Rev-Exp Region 3'!$W$9, 0)","v":{"v":0,"d":"$0.00"}},{"$f":"IFERROR('MMA Rev-Exp Region 3'!$X$75/'MMA Rev-Exp Region 3'!$X$9, 0)","v":{"v":0,"d":"$0.00"}},{"$f":"IFERROR('MMA Rev-Exp Region 3'!$Y$75/'MMA Rev-Exp Region 3'!$Y$9, 0)","v":{"v":0,"d":"$0.00"}}]
["MMA",null,null,2016,"2016-12-31","Q2","2017-06-30","Region 3","Operating Expense","Medical Benefits Expense","Other Medical","11.5","TPL & Fraud/Abuse Recoveries",{"$f":"IFERROR('MMA Rev-Exp Region 3'!$O$81/'MMA Rev-Exp Region 3'!$O$9, 0)","v":{"v":0,"d":"$0.00"}},{"$f":"IFERROR('MMA Rev-Exp Region 3'!$P$81/'MMA Rev-Exp Region 3'!$P$9, 0)","v":{"v":0,"d":"$0.00"}},{"$f":"IFERROR('MMA Rev-Exp Region 3'!$Q$81/'MMA Rev-Exp Region 3'!$Q$9, 0)","v":{"v":0,"d":"$0.00"}},{"$f":"IFERROR('MMA Rev-Exp Region 3'!$R$81/'MMA Rev-Exp Region 3'!$R$9, 0)","v":{"v":0,"d":"$0.00"}},{"$f":"IFERROR('MMA Rev-Exp Region 3'!$S$81/'MMA Rev-Exp Region 3'!$S$9, 0)","v":{"v":0,"d":"$0.00"}},{"$f":"IFERROR('MMA Rev-Exp Region 3'!$T$81/'MMA Rev-Exp Region 3'!$T$9, 0)","v":{"v":0,"d":"$0.00"}},{"$f":"IFERROR('MMA Rev-Exp Region 3'!$U$81/'MMA Rev-Exp Region 3'!$U$9, 0)","v":{"v":0,"d":"$0.00"}},{"$f":"IFERROR('MMA Rev-Exp Region 3'!$V$81/'MMA Rev-Exp Region 3'!$V$9, 0)","v":{"v":0,"d":"$0.00"}},{"$f":"IFERROR('MMA Rev-Exp Region 3'!$W$81/'MMA Rev-Exp Region 3'!$W$9, 0)","v":{"v":0,"d":"$0.00"}},{"$f":"IFERROR('MMA Rev-Exp Region 3'!$X$81/'MMA Rev-Exp Region 3'!$X$9, 0)","v":{"v":0,"d":"$0.00"}},{"$f":"IFERROR('MMA Rev-Exp Region 3'!$Y$81/'MMA Rev-Exp Region 3'!$Y$9, 0)","v":{"v":0,"d":"$0.00"}}]
["MMA",null,null,2016,"2016-12-31","Q2","2017-06-30","Region 3","Operating Expense","Medical Benefits Expense","Other Medical","11.6.1","Premium Deficiency Reserve",{"$f":"IFERROR('MMA Rev-Exp Region 3'!$O$82/'MMA Rev-Exp Region 3'!$O$9, 0)","v":{"v":0,"d":"$0.00"}},{"$f":"IFERROR('MMA Rev-Exp Region 3'!$P$82/'MMA Rev-Exp Region 3'!$P$9, 0)","v":{"v":0,"d":"$0.00"}},{"$f":"IFERROR('MMA Rev-Exp Region 3'!$Q$82/'MMA Rev-Exp Region 3'!$Q$9, 0)","v":{"v":0,"d":"$0.00"}},{"$f":"IFERROR('MMA Rev-Exp Region 3'!$R$82/'MMA Rev-Exp Region 3'!$R$9, 0)","v":{"v":0,"d":"$0.00"}},{"$f":"IFERROR('MMA Rev-Exp Region 3'!$S$82/'MMA Rev-Exp Region 3'!$S$9, 0)","v":{"v":0,"d":"$0.00"}},{"$f":"IFERROR('MMA Rev-Exp Region 3'!$T$82/'MMA Rev-Exp Region 3'!$T$9, 0)","v":{"v":0,"d":"$0.00"}},{"$f":"IFERROR('MMA Rev-Exp Region 3'!$U$82/'MMA Rev-Exp Region 3'!$U$9, 0)","v":{"v":0,"d":"$0.00"}},{"$f":"IFERROR('MMA Rev-Exp Region 3'!$V$82/'MMA Rev-Exp Region 3'!$V$9, 0)","v":{"v":0,"d":"$0.00"}},{"$f":"IFERROR('MMA Rev-Exp Region 3'!$W$82/'MMA Rev-Exp Region 3'!$W$9, 0)","v":{"v":0,"d":"$0.00"}},{"$f":"IFERROR('MMA Rev-Exp Region 3'!$X$82/'MMA Rev-Exp Region 3'!$X$9, 0)","v":{"v":0,"d":"$0.00"}},{"$f":"IFERROR('MMA Rev-Exp Region 3'!$Y$82/'MMA Rev-Exp Region 3'!$Y$9, 0)","v":{"v":0,"d":"$0.00"}}]
["MMA",null,null,2016,"2016-12-31","Q2","2017-06-30","Region 3","Operating Expense","Medical Benefits Expense","Other Medical","11.8","Reinsurance Premiums",{"$f":"IFERROR('MMA Rev-Exp Region 3'!$O$84/'MMA Rev-Exp Region 3'!$O$9, 0)","v":{"v":0,"d":"$0.00"}},{"$f":"IFERROR('MMA Rev-Exp Region 3'!$P$84/'MMA Rev-Exp Region 3'!$P$9, 0)","v":{"v":0,"d":"$0.00"}},{"$f":"IFERROR('MMA Rev-Exp Region 3'!$Q$84/'MMA Rev-Exp Region 3'!$Q$9, 0)","v":{"v":0,"d":"$0.00"}},{"$f":"IFERROR('MMA Rev-Exp Region 3'!$R$84/'MMA Rev-Exp Region 3'!$R$9, 0)","v":{"v":0,"d":"$0.00"}},{"$f":"IFERROR('MMA Rev-Exp Region 3'!$S$84/'MMA Rev-Exp Region 3'!$S$9, 0)","v":{"v":0,"d":"$0.00"}},{"$f":"IFERROR('MMA Rev-Exp Region 3'!$T$84/'MMA Rev-Exp Region 3'!$T$9, 0)","v":{"v":0,"d":"$0.00"}},{"$f":"IFERROR('MMA Rev-Exp Region 3'!$U$84/'MMA Rev-Exp Region 3'!$U$9, 0)","v":{"v":0,"d":"$0.00"}},{"$f":"IFERROR('MMA Rev-Exp Region 3'!$V$84/'MMA Rev-Exp Region 3'!$V$9, 0)","v":{"v":0,"d":"$0.00"}},{"$f":"IFERROR('MMA Rev-Exp Region 3'!$W$84/'MMA Rev-Exp Region 3'!$W$9, 0)","v":{"v":0,"d":"$0.00"}},{"$f":"IFERROR('MMA Rev-Exp Region 3'!$X$84/'MMA Rev-Exp Region 3'!$X$9, 0)","v":{"v":0,"d":"$0.00"}},{"$f":"IFERROR('MMA Rev-Exp Region 3'!$Y$84/'MMA Rev-Exp Region 3'!$Y$9, 0)","v":{"v":0,"d":"$0.00"}}]
["MMA",null,null,2016,"2016-12-31","Q2","2017-06-30","Region 3","Operating Expense","Medical Benefits Expense","Other Medical","11.9","Reinsurance Recoveries",{"$f":"IFERROR('MMA Rev-Exp Region 3'!$O$85/'MMA Rev-Exp Region 3'!$O$9, 0)","v":{"v":0,"d":"$0.00"}},{"$f":"IFERROR('MMA Rev-Exp Region 3'!$P$85/'MMA Rev-Exp Region 3'!$P$9, 0)","v":{"v":0,"d":"$0.00"}},{"$f":"IFERROR('MMA Rev-Exp Region 3'!$Q$85/'MMA Rev-Exp Region 3'!$Q$9, 0)","v":{"v":0,"d":"$0.00"}},{"$f":"IFERROR('MMA Rev-Exp Region 3'!$R$85/'MMA Rev-Exp Region 3'!$R$9, 0)","v":{"v":0,"d":"$0.00"}},{"$f":"IFERROR('MMA Rev-Exp Region 3'!$S$85/'MMA Rev-Exp Region 3'!$S$9, 0)","v":{"v":0,"d":"$0.00"}},{"$f":"IFERROR('MMA Rev-Exp Region 3'!$T$85/'MMA Rev-Exp Region 3'!$T$9, 0)","v":{"v":0,"d":"$0.00"}},{"$f":"IFERROR('MMA Rev-Exp Region 3'!$U$85/'MMA Rev-Exp Region 3'!$U$9, 0)","v":{"v":0,"d":"$0.00"}},{"$f":"IFERROR('MMA Rev-Exp Region 3'!$V$85/'MMA Rev-Exp Region 3'!$V$9, 0)","v":{"v":0,"d":"$0.00"}},{"$f":"IFERROR('MMA Rev-Exp Region 3'!$W$85/'MMA Rev-Exp Region 3'!$W$9, 0)","v":{"v":0,"d":"$0.00"}},{"$f":"IFERROR('MMA Rev-Exp Region 3'!$X$85/'MMA Rev-Exp Region 3'!$X$9, 0)","v":{"v":0,"d":"$0.00"}},{"$f":"IFERROR('MMA Rev-Exp Region 3'!$Y$85/'MMA Rev-Exp Region 3'!$Y$9, 0)","v":{"v":0,"d":"$0.00"}}]
["MMA",null,null,2016,"2016-12-31","Q2","2017-06-30","Region 3","Operating Expense","Administrative Expense","Administrative","12.1","Salaries & Benefits",{"$f":"IFERROR('MMA Rev-Exp Region 3'!$O$90/'MMA Rev-Exp Region 3'!$O$9, 0)","v":{"v":0,"d":"$0.00"}},{"$f":"IFERROR('MMA Rev-Exp Region 3'!$P$90/'MMA Rev-Exp Region 3'!$O$9, 0)","v":{"v":0,"d":"$0.00"}},{"$f":"IFERROR('MMA Rev-Exp Region 3'!$Q$90/'MMA Rev-Exp Region 3'!$O$9, 0)","v":{"v":0,"d":"$0.00"}},{"$f":"IFERROR('MMA Rev-Exp Region 3'!$R$90/'MMA Rev-Exp Region 3'!$R$9, 0)","v":{"v":0,"d":"$0.00"}},{"$f":"IFERROR('MMA Rev-Exp Region 3'!$S$90/'MMA Rev-Exp Region 3'!$S$9, 0)","v":{"v":0,"d":"$0.00"}},{"$f":"IFERROR('MMA Rev-Exp Region 3'!$T$90/'MMA Rev-Exp Region 3'!$T$9, 0)","v":{"v":0,"d":"$0.00"}},{"$f":"IFERROR('MMA Rev-Exp Region 3'!$U$90/'MMA Rev-Exp Region 3'!$U$9, 0)","v":{"v":0,"d":"$0.00"}},{"$f":"IFERROR('MMA Rev-Exp Region 3'!$V$90/'MMA Rev-Exp Region 3'!$V$9, 0)","v":{"v":0,"d":"$0.00"}},{"$f":"IFERROR('MMA Rev-Exp Region 3'!$W$90/'MMA Rev-Exp Region 3'!$W$9, 0)","v":{"v":0,"d":"$0.00"}},{"$f":"IFERROR('MMA Rev-Exp Region 3'!$X$90/'MMA Rev-Exp Region 3'!$X$9, 0)","v":{"v":0,"d":"$0.00"}},{"$f":"IFERROR('MMA Rev-Exp Region 3'!$Y$90/'MMA Rev-Exp Region 3'!$Y$9, 0)","v":{"v":0,"d":"$0.00"}}]
["MMA",null,null,2016,"2016-12-31","Q2","2017-06-30","Region 3","Operating Expense","Administrative Expense","Administrative","12.2","Administrative Services",{"$f":"IFERROR('MMA Rev-Exp Region 3'!$O$91/'MMA Rev-Exp Region 3'!$O$9, 0)","v":{"v":0,"d":"$0.00"}},{"$f":"IFERROR('MMA Rev-Exp Region 3'!$P$91/'MMA Rev-Exp Region 3'!$O$9, 0)","v":{"v":0,"d":"$0.00"}},{"$f":"IFERROR('MMA Rev-Exp Region 3'!$Q$91/'MMA Rev-Exp Region 3'!$O$9, 0)","v":{"v":0,"d":"$0.00"}},{"$f":"IFERROR('MMA Rev-Exp Region 3'!$R$91/'MMA Rev-Exp Region 3'!$R$9, 0)","v":{"v":0,"d":"$0.00"}},{"$f":"IFERROR('MMA Rev-Exp Region 3'!$S$91/'MMA Rev-Exp Region 3'!$S$9, 0)","v":{"v":0,"d":"$0.00"}},{"$f":"IFERROR('MMA Rev-Exp Region 3'!$T$91/'MMA Rev-Exp Region 3'!$T$9, 0)","v":{"v":0,"d":"$0.00"}},{"$f":"IFERROR('MMA Rev-Exp Region 3'!$U$91/'MMA Rev-Exp Region 3'!$U$9, 0)","v":{"v":0,"d":"$0.00"}},{"$f":"IFERROR('MMA Rev-Exp Region 3'!$V$91/'MMA Rev-Exp Region 3'!$V$9, 0)","v":{"v":0,"d":"$0.00"}},{"$f":"IFERROR('MMA Rev-Exp Region 3'!$W$91/'MMA Rev-Exp Region 3'!$W$9, 0)","v":{"v":0,"d":"$0.00"}},{"$f":"IFERROR('MMA Rev-Exp Region 3'!$X$91/'MMA Rev-Exp Region 3'!$X$9, 0)","v":{"v":0,"d":"$0.00"}},{"$f":"IFERROR('MMA Rev-Exp Region 3'!$Y$91/'MMA Rev-Exp Region 3'!$Y$9, 0)","v":{"v":0,"d":"$0.00"}}]
["MMA",null,null,2016,"2016-12-31","Q2","2017-06-30","Region 3","Operating Expense","Administrative Expense","Administrative","12.3","Information Systems",{"$f":"IFERROR('MMA Rev-Exp Region 3'!$O$92/'MMA Rev-Exp Region 3'!$O$9, 0)","v":{"v":0,"d":"$0.00"}},{"$f":"IFERROR('MMA Rev-Exp Region 3'!$P$92/'MMA Rev-Exp Region 3'!$O$9, 0)","v":{"v":0,"d":"$0.00"}},{"$f":"IFERROR('MMA Rev-Exp Region 3'!$Q$92/'MMA Rev-Exp Region 3'!$O$9, 0)","v":{"v":0,"d":"$0.00"}},{"$f":"IFERROR('MMA Rev-Exp Region 3'!$R$92/'MMA Rev-Exp Region 3'!$R$9, 0)","v":{"v":0,"d":"$0.00"}},{"$f":"IFERROR('MMA Rev-Exp Region 3'!$S$92/'MMA Rev-Exp Region 3'!$S$9, 0)","v":{"v":0,"d":"$0.00"}},{"$f":"IFERROR('MMA Rev-Exp Region 3'!$T$92/'MMA Rev-Exp Region 3'!$T$9, 0)","v":{"v":0,"d":"$0.00"}},{"$f":"IFERROR('MMA Rev-Exp Region 3'!$U$92/'MMA Rev-Exp Region 3'!$U$9, 0)","v":{"v":0,"d":"$0.00"}},{"$f":"IFERROR('MMA Rev-Exp Region 3'!$V$92/'MMA Rev-Exp Region 3'!$V$9, 0)","v":{"v":0,"d":"$0.00"}},{"$f":"IFERROR('MMA Rev-Exp Region 3'!$W$92/'MMA Rev-Exp Region 3'!$W$9, 0)","v":{"v":0,"d":"$0.00"}},{"$f":"IFERROR('MMA Rev-Exp Region 3'!$X$92/'MMA Rev-Exp Region 3'!$X$9, 0)","v":{"v":0,"d":"$0.00"}},{"$f":"IFERROR('MMA Rev-Exp Region 3'!$Y$92/'MMA Rev-Exp Region 3'!$Y$9, 0)","v":{"v":0,"d":"$0.00"}}]
["MMA",null,null,2016,"2016-12-31","Q2","2017-06-30","Region 3","Operating Expense","Administrative Expense","Administrative","12.4","Marketing Expenses",{"$f":"IFERROR('MMA Rev-Exp Region 3'!$O$93/'MMA Rev-Exp Region 3'!$O$9, 0)","v":{"v":0,"d":"$0.00"}},{"$f":"IFERROR('MMA Rev-Exp Region 3'!$P$93/'MMA Rev-Exp Region 3'!$O$9, 0)","v":{"v":0,"d":"$0.00"}},{"$f":"IFERROR('MMA Rev-Exp Region 3'!$Q$93/'MMA Rev-Exp Region 3'!$O$9, 0)","v":{"v":0,"d":"$0.00"}}]
["MMA",null,null,2016,"2016-12-31","Q2","2017-06-30","Region 3","Operating Expense","Administrative Expense","Administrative","12.5","General  Administration",{"$f":"IFERROR('MMA Rev-Exp Region 3'!$O$94/'MMA Rev-Exp Region 3'!$O$9, 0)","v":{"v":0,"d":"$0.00"}},{"$f":"IFERROR('MMA Rev-Exp Region 3'!$P$94/'MMA Rev-Exp Region 3'!$O$9, 0)","v":{"v":0,"d":"$0.00"}},{"$f":"IFERROR('MMA Rev-Exp Region 3'!$Q$94/'MMA Rev-Exp Region 3'!$O$9, 0)","v":{"v":0,"d":"$0.00"}}]
["MMA",null,null,2016,"2016-12-31","Q2","2017-06-30","Region 3","Operating Expense","Administrative Expense","Administrative","12.6","Compliance/Regulatory",{"$f":"IFERROR('MMA Rev-Exp Region 3'!$O$95/'MMA Rev-Exp Region 3'!$O$9, 0)","v":{"v":0,"d":"$0.00"}},{"$f":"IFERROR('MMA Rev-Exp Region 3'!$P$95/'MMA Rev-Exp Region 3'!$O$9, 0)","v":{"v":0,"d":"$0.00"}},{"$f":"IFERROR('MMA Rev-Exp Region 3'!$Q$95/'MMA Rev-Exp Region 3'!$O$9, 0)","v":{"v":0,"d":"$0.00"}}]
["MMA",null,null,2016,"2016-12-31","Q2","2017-06-30","Region 3","Operating Expense","Taxes & Fees","Taxes & Fees","13.1","State Premium tax",{"$f":"IFERROR('MMA Rev-Exp Region 3'!$O$97/'MMA Rev-Exp Region 3'!$O$9, 0)","v":{"v":0,"d":"$0.00"}}]
["MMA",null,null,2016,"2016-12-31","Q2","2017-06-30","Region 3","Operating Expense","Taxes & Fees","Taxes & Fees","13.2","Department of Insurance Assessments",{"$f":"IFERROR('MMA Rev-Exp Region 3'!$O$98/'MMA Rev-Exp Region 3'!$O$9, 0)","v":{"v":0,"d":"$0.00"}}]
["MMA",null,null,2016,"2016-12-31","Q2","2017-06-30","Region 3","Operating Expense","Taxes & Fees","Taxes & Fees","13.3","Section 9010 Health Insurance Providers Fee",{"$f":"IFERROR('MMA Rev-Exp Region 3'!$O$99/'MMA Rev-Exp Region 3'!$O$9, 0)","v":{"v":0,"d":"$0.00"}}]
["MMA",null,null,2016,"2016-12-31","Q2","2017-06-30","Region 3","Non-Operating Expense","Income Tax Expense","Income Tax Expense","16.0","Income Tax Expense",{"$f":"IFERROR('MMA Rev-Exp Region 3'!$O$106/'MMA Rev-Exp Region 3'!$O$9, 0)","v":{"v":0,"d":"$0.00"}}]
["MMA",null,null,2016,"2016-12-31","Q3","2017-09-30","Region 3","Operating Revenue","Capitation","Capitation",1.1,"Capitation",{"$f":"IFERROR('MMA Rev-Exp Region 3'!$Z$11/'MMA Rev-Exp Region 3'!$Z$9, 0)","v":{"v":0,"d":"$0.00"}},{"$f":"IFERROR('MMA Rev-Exp Region 3'!$AA$11/'MMA Rev-Exp Region 3'!$AA$9, 0)","v":{"v":0,"d":"$0.00"}},{"$f":"IFERROR('MMA Rev-Exp Region 3'!$AB$11/'MMA Rev-Exp Region 3'!$AB$9, 0)","v":{"v":0,"d":"$0.00"}},{"$f":"IFERROR('MMA Rev-Exp Region 3'!$AC$11/'MMA Rev-Exp Region 3'!$AC$9, 0)","v":{"v":0,"d":"$0.00"}},{"$f":"IFERROR('MMA Rev-Exp Region 3'!$AD$11/'MMA Rev-Exp Region 3'!$AD$9, 0)","v":{"v":0,"d":"$0.00"}},{"$f":"IFERROR('MMA Rev-Exp Region 3'!$AE$11/'MMA Rev-Exp Region 3'!$AE$9, 0)","v":{"v":0,"d":"$0.00"}},{"$f":"IFERROR('MMA Rev-Exp Region 3'!$AF$11/'MMA Rev-Exp Region 3'!$AF$9, 0)","v":{"v":0,"d":"$0.00"}},{"$f":"IFERROR('MMA Rev-Exp Region 3'!$AG$11/'MMA Rev-Exp Region 3'!$AG$9, 0)","v":{"v":0,"d":"$0.00"}},{"$f":"IFERROR('MMA Rev-Exp Region 3'!$AH$11/'MMA Rev-Exp Region 3'!$AH$9, 0)","v":{"v":0,"d":"$0.00"}},{"$f":"IFERROR('MMA Rev-Exp Region 3'!$AI$11/'MMA Rev-Exp Region 3'!$AI$9, 0)","v":{"v":0,"d":"$0.00"}},{"$f":"IFERROR('MMA Rev-Exp Region 3'!$AJ$11/'MMA Rev-Exp Region 3'!$AJ$9, 0)","v":{"v":0,"d":"$0.00"}}]
["MMA",null,null,2016,"2016-12-31","Q3","2017-09-30","Region 3","Operating Revenue","Kick Payments","Kick Payments - Transplant",1.2,"Transplant Kick Payments",{"$f":"IFERROR('MMA Rev-Exp Region 3'!$Z$12/'MMA Rev-Exp Region 3'!$Z$9, 0)","v":{"v":0,"d":"$0.00"}},{"$f":"IFERROR('MMA Rev-Exp Region 3'!$AA$12/'MMA Rev-Exp Region 3'!$AA$9, 0)","v":{"v":0,"d":"$0.00"}},{"$f":"IFERROR('MMA Rev-Exp Region 3'!$AB$12/'MMA Rev-Exp Region 3'!$AB$9, 0)","v":{"v":0,"d":"$0.00"}},{"$f":"IFERROR('MMA Rev-Exp Region 3'!$AC$12/'MMA Rev-Exp Region 3'!$AC$9, 0)","v":{"v":0,"d":"$0.00"}},{"$f":"IFERROR('MMA Rev-Exp Region 3'!$AD$12/'MMA Rev-Exp Region 3'!$AD$9, 0)","v":{"v":0,"d":"$0.00"}},{"$f":"IFERROR('MMA Rev-Exp Region 3'!$AE$12/'MMA Rev-Exp Region 3'!$AE$9, 0)","v":{"v":0,"d":"$0.00"}},{"$f":"IFERROR('MMA Rev-Exp Region 3'!$AF$12/'MMA Rev-Exp Region 3'!$AF$9, 0)","v":{"v":0,"d":"$0.00"}},{"$f":"IFERROR('MMA Rev-Exp Region 3'!$AG$12/'MMA Rev-Exp Region 3'!$AG$9, 0)","v":{"v":0,"d":"$0.00"}},{"$f":"IFERROR('MMA Rev-Exp Region 3'!$AH$12/'MMA Rev-Exp Region 3'!$AH$9, 0)","v":{"v":0,"d":"$0.00"}},{"$f":"IFERROR('MMA Rev-Exp Region 3'!$AI$12/'MMA Rev-Exp Region 3'!$AI$9, 0)","v":{"v":0,"d":"$0.00"}},{"$f":"IFERROR('MMA Rev-Exp Region 3'!$AJ$12/'MMA Rev-Exp Region 3'!$AJ$9, 0)","v":{"v":0,"d":"$0.00"}}]
["MMA",null,null,2016,"2016-12-31","Q3","2017-09-30","Region 3","Operating Revenue","Kick Payments","Kick Payments - Hep C","1.3","Hepatitis C Kick Payments",{"$f":"IFERROR('MMA Rev-Exp Region 3'!$Z$13/'MMA Rev-Exp Region 3'!$Z$9, 0)","v":{"v":0,"d":"$0.00"}},{"$f":"IFERROR('MMA Rev-Exp Region 3'!$AA$13/'MMA Rev-Exp Region 3'!$AA$9, 0)","v":{"v":0,"d":"$0.00"}},{"$f":"IFERROR('MMA Rev-Exp Region 3'!$AB$13/'MMA Rev-Exp Region 3'!$AB$9, 0)","v":{"v":0,"d":"$0.00"}},{"$f":"IFERROR('MMA Rev-Exp Region 3'!$AC$13/'MMA Rev-Exp Region 3'!$AC$9, 0)","v":{"v":0,"d":"$0.00"}},{"$f":"IFERROR('MMA Rev-Exp Region 3'!$AD$13/'MMA Rev-Exp Region 3'!$AD$9, 0)","v":{"v":0,"d":"$0.00"}},{"$f":"IFERROR('MMA Rev-Exp Region 3'!$AE$13/'MMA Rev-Exp Region 3'!$AE$9, 0)","v":{"v":0,"d":"$0.00"}},{"$f":"IFERROR('MMA Rev-Exp Region 3'!$AF$13/'MMA Rev-Exp Region 3'!$AF$9, 0)","v":{"v":0,"d":"$0.00"}},{"$f":"IFERROR('MMA Rev-Exp Region 3'!$AG$13/'MMA Rev-Exp Region 3'!$AG$9, 0)","v":{"v":0,"d":"$0.00"}},{"$f":"IFERROR('MMA Rev-Exp Region 3'!$AH$13/'MMA Rev-Exp Region 3'!$AH$9, 0)","v":{"v":0,"d":"$0.00"}},{"$f":"IFERROR('MMA Rev-Exp Region 3'!$AI$13/'MMA Rev-Exp Region 3'!$AI$9, 0)","v":{"v":0,"d":"$0.00"}},{"$f":"IFERROR('MMA Rev-Exp Region 3'!$AJ$13/'MMA Rev-Exp Region 3'!$AJ$9, 0)","v":{"v":0,"d":"$0.00"}}]
["MMA",null,null,2016,"2016-12-31","Q3","2017-09-30","Region 3","Operating Revenue","Kick Payments","Kick Payments - Maternity","1.4.1","Maternity Kick Payments",{"$f":"IFERROR('MMA Rev-Exp Region 3'!$Z$14/'MMA Rev-Exp Region 3'!$Z$9, 0)","v":{"v":0,"d":"$0.00"}},{"$f":"IFERROR('MMA Rev-Exp Region 3'!$AA$14/'MMA Rev-Exp Region 3'!$AA$9, 0)","v":{"v":0,"d":"$0.00"}},{"$f":"IFERROR('MMA Rev-Exp Region 3'!$AB$14/'MMA Rev-Exp Region 3'!$AB$9, 0)","v":{"v":0,"d":"$0.00"}},{"$f":"IFERROR('MMA Rev-Exp Region 3'!$AC$14/'MMA Rev-Exp Region 3'!$AC$9, 0)","v":{"v":0,"d":"$0.00"}},{"$f":"IFERROR('MMA Rev-Exp Region 3'!$AD$14/'MMA Rev-Exp Region 3'!$AD$9, 0)","v":{"v":0,"d":"$0.00"}},{"$f":"IFERROR('MMA Rev-Exp Region 3'!$AE$14/'MMA Rev-Exp Region 3'!$AE$9, 0)","v":{"v":0,"d":"$0.00"}},{"$f":"IFERROR('MMA Rev-Exp Region 3'!$AF$14/'MMA Rev-Exp Region 3'!$AF$9, 0)","v":{"v":0,"d":"$0.00"}},{"$f":"IFERROR('MMA Rev-Exp Region 3'!$AG$14/'MMA Rev-Exp Region 3'!$AG$9, 0)","v":{"v":0,"d":"$0.00"}},{"$f":"IFERROR('MMA Rev-Exp Region 3'!$AH$14/'MMA Rev-Exp Region 3'!$AH$9, 0)","v":{"v":0,"d":"$0.00"}},{"$f":"IFERROR('MMA Rev-Exp Region 3'!$AI$14/'MMA Rev-Exp Region 3'!$AI$9, 0)","v":{"v":0,"d":"$0.00"}},{"$f":"IFERROR('MMA Rev-Exp Region 3'!$AJ$14/'MMA Rev-Exp Region 3'!$AJ$9, 0)","v":{"v":0,"d":"$0.00"}}]
["MMA",null,null,2016,"2016-12-31","Q3","2017-09-30","Region 3","Operating Revenue","Other Revenue","Other Revenue - 9010","1.5","ACA § 9010 related payments",{"$f":"IFERROR('MMA Rev-Exp Region 3'!$Z$15/'MMA Rev-Exp Region 3'!$Z$9, 0)","v":{"v":0,"d":"$0.00"}},{"$f":"IFERROR('MMA Rev-Exp Region 3'!$AA$15/'MMA Rev-Exp Region 3'!$AA$9, 0)","v":{"v":0,"d":"$0.00"}},{"$f":"IFERROR('MMA Rev-Exp Region 3'!$AB$15/'MMA Rev-Exp Region 3'!$AB$9, 0)","v":{"v":0,"d":"$0.00"}},{"$f":"IFERROR('MMA Rev-Exp Region 3'!$AC$15/'MMA Rev-Exp Region 3'!$AC$9, 0)","v":{"v":0,"d":"$0.00"}},{"$f":"IFERROR('MMA Rev-Exp Region 3'!$AD$15/'MMA Rev-Exp Region 3'!$AD$9, 0)","v":{"v":0,"d":"$0.00"}},{"$f":"IFERROR('MMA Rev-Exp Region 3'!$AE$15/'MMA Rev-Exp Region 3'!$AE$9, 0)","v":{"v":0,"d":"$0.00"}},{"$f":"IFERROR('MMA Rev-Exp Region 3'!$AF$15/'MMA Rev-Exp Region 3'!$AF$9, 0)","v":{"v":0,"d":"$0.00"}},{"$f":"IFERROR('MMA Rev-Exp Region 3'!$AG$15/'MMA Rev-Exp Region 3'!$AG$9, 0)","v":{"v":0,"d":"$0.00"}},{"$f":"IFERROR('MMA Rev-Exp Region 3'!$AH$15/'MMA Rev-Exp Region 3'!$AH$9, 0)","v":{"v":0,"d":"$0.00"}},{"$f":"IFERROR('MMA Rev-Exp Region 3'!$AI$15/'MMA Rev-Exp Region 3'!$AI$9, 0)","v":{"v":0,"d":"$0.00"}},{"$f":"IFERROR('MMA Rev-Exp Region 3'!$AJ$15/'MMA Rev-Exp Region 3'!$AJ$9, 0)","v":{"v":0,"d":"$0.00"}}]
["MMA",null,null,2016,"2016-12-31","Q3","2017-09-30","Region 3","Operating Revenue","Other Revenue","Other Revenue","1.6","Other Revenue",{"$f":"IFERROR('MMA Rev-Exp Region 3'!$Z$16/'MMA Rev-Exp Region 3'!$Z$9, 0)","v":{"v":0,"d":"$0.00"}},{"$f":"IFERROR('MMA Rev-Exp Region 3'!$AA$16/'MMA Rev-Exp Region 3'!$AA$9, 0)","v":{"v":0,"d":"$0.00"}},{"$f":"IFERROR('MMA Rev-Exp Region 3'!$AB$16/'MMA Rev-Exp Region 3'!$AB$9, 0)","v":{"v":0,"d":"$0.00"}},{"$f":"IFERROR('MMA Rev-Exp Region 3'!$AC$16/'MMA Rev-Exp Region 3'!$AC$9, 0)","v":{"v":0,"d":"$0.00"}},{"$f":"IFERROR('MMA Rev-Exp Region 3'!$AD$16/'MMA Rev-Exp Region 3'!$AD$9, 0)","v":{"v":0,"d":"$0.00"}},{"$f":"IFERROR('MMA Rev-Exp Region 3'!$AE$16/'MMA Rev-Exp Region 3'!$AE$9, 0)","v":{"v":0,"d":"$0.00"}},{"$f":"IFERROR('MMA Rev-Exp Region 3'!$AF$16/'MMA Rev-Exp Region 3'!$AF$9, 0)","v":{"v":0,"d":"$0.00"}},{"$f":"IFERROR('MMA Rev-Exp Region 3'!$AG$16/'MMA Rev-Exp Region 3'!$AG$9, 0)","v":{"v":0,"d":"$0.00"}},{"$f":"IFERROR('MMA Rev-Exp Region 3'!$AH$16/'MMA Rev-Exp Region 3'!$AH$9, 0)","v":{"v":0,"d":"$0.00"}},{"$f":"IFERROR('MMA Rev-Exp Region 3'!$AI$16/'MMA Rev-Exp Region 3'!$AI$9, 0)","v":{"v":0,"d":"$0.00"}},{"$f":"IFERROR('MMA Rev-Exp Region 3'!$AJ$16/'MMA Rev-Exp Region 3'!$AJ$9, 0)","v":{"v":0,"d":"$0.00"}}]
["MMA",null,null,2016,"2016-12-31","Q3","2017-09-30","Region 3","Operating Expense","Medical Benefits Expense","Hospital Services",2.1,"Inpatient FFS",{"$f":"IFERROR('MMA Rev-Exp Region 3'!$Z$20/'MMA Rev-Exp Region 3'!$Z$9, 0)","v":{"v":0,"d":"$0.00"}},{"$f":"IFERROR('MMA Rev-Exp Region 3'!$AA$20/'MMA Rev-Exp Region 3'!$AA$9, 0)","v":{"v":0,"d":"$0.00"}},{"$f":"IFERROR('MMA Rev-Exp Region 3'!$AB$20/'MMA Rev-Exp Region 3'!$AB$9, 0)","v":{"v":0,"d":"$0.00"}},{"$f":"IFERROR('MMA Rev-Exp Region 3'!$AC$20/'MMA Rev-Exp Region 3'!$AC$9, 0)","v":{"v":0,"d":"$0.00"}},{"$f":"IFERROR('MMA Rev-Exp Region 3'!$AD$20/'MMA Rev-Exp Region 3'!$AD$9, 0)","v":{"v":0,"d":"$0.00"}},{"$f":"IFERROR('MMA Rev-Exp Region 3'!$AE$20/'MMA Rev-Exp Region 3'!$AE$9, 0)","v":{"v":0,"d":"$0.00"}},{"$f":"IFERROR('MMA Rev-Exp Region 3'!$AF$20/'MMA Rev-Exp Region 3'!$AF$9, 0)","v":{"v":0,"d":"$0.00"}},{"$f":"IFERROR('MMA Rev-Exp Region 3'!$AG$20/'MMA Rev-Exp Region 3'!$AG$9, 0)","v":{"v":0,"d":"$0.00"}},{"$f":"IFERROR('MMA Rev-Exp Region 3'!$AH$20/'MMA Rev-Exp Region 3'!$AH$9, 0)","v":{"v":0,"d":"$0.00"}},{"$f":"IFERROR('MMA Rev-Exp Region 3'!$AI$20/'MMA Rev-Exp Region 3'!$AI$9, 0)","v":{"v":0,"d":"$0.00"}},{"$f":"IFERROR('MMA Rev-Exp Region 3'!$AJ$20/'MMA Rev-Exp Region 3'!$AJ$9, 0)","v":{"v":0,"d":"$0.00"}}]
["MMA",null,null,2016,"2016-12-31","Q3","2017-09-30","Region 3","Operating Expense","Medical Benefits Expense","Hospital Services",2.2,"Ending IBNP for Inpatient Hospital Services",{"$f":"IFERROR('MMA Rev-Exp Region 3'!$Z$21/'MMA Rev-Exp Region 3'!$Z$9, 0)","v":{"v":0,"d":"$0.00"}},{"$f":"IFERROR('MMA Rev-Exp Region 3'!$AA$21/'MMA Rev-Exp Region 3'!$AA$9, 0)","v":{"v":0,"d":"$0.00"}},{"$f":"IFERROR('MMA Rev-Exp Region 3'!$AB$21/'MMA Rev-Exp Region 3'!$AB$9, 0)","v":{"v":0,"d":"$0.00"}},{"$f":"IFERROR('MMA Rev-Exp Region 3'!$AC$21/'MMA Rev-Exp Region 3'!$AC$9, 0)","v":{"v":0,"d":"$0.00"}},{"$f":"IFERROR('MMA Rev-Exp Region 3'!$AD$21/'MMA Rev-Exp Region 3'!$AD$9, 0)","v":{"v":0,"d":"$0.00"}},{"$f":"IFERROR('MMA Rev-Exp Region 3'!$AE$21/'MMA Rev-Exp Region 3'!$AE$9, 0)","v":{"v":0,"d":"$0.00"}},{"$f":"IFERROR('MMA Rev-Exp Region 3'!$AF$21/'MMA Rev-Exp Region 3'!$AF$9, 0)","v":{"v":0,"d":"$0.00"}},{"$f":"IFERROR('MMA Rev-Exp Region 3'!$AG$21/'MMA Rev-Exp Region 3'!$AG$9, 0)","v":{"v":0,"d":"$0.00"}},{"$f":"IFERROR('MMA Rev-Exp Region 3'!$AH$21/'MMA Rev-Exp Region 3'!$AH$9, 0)","v":{"v":0,"d":"$0.00"}},{"$f":"IFERROR('MMA Rev-Exp Region 3'!$AI$21/'MMA Rev-Exp Region 3'!$AI$9, 0)","v":{"v":0,"d":"$0.00"}},{"$f":"IFERROR('MMA Rev-Exp Region 3'!$AJ$21/'MMA Rev-Exp Region 3'!$AJ$9, 0)","v":{"v":0,"d":"$0.00"}}]
["MMA",null,null,2016,"2016-12-31","Q3","2017-09-30","Region 3","Operating Expense","Medical Benefits Expense","Hospital Services",2.3,"Outpatient FFS: ER",{"$f":"IFERROR('MMA Rev-Exp Region 3'!$Z$22/'MMA Rev-Exp Region 3'!$Z$9, 0)","v":{"v":0,"d":"$0.00"}},{"$f":"IFERROR('MMA Rev-Exp Region 3'!$AA$22/'MMA Rev-Exp Region 3'!$AA$9, 0)","v":{"v":0,"d":"$0.00"}},{"$f":"IFERROR('MMA Rev-Exp Region 3'!$AB$22/'MMA Rev-Exp Region 3'!$AB$9, 0)","v":{"v":0,"d":"$0.00"}},{"$f":"IFERROR('MMA Rev-Exp Region 3'!$AC$22/'MMA Rev-Exp Region 3'!$AC$9, 0)","v":{"v":0,"d":"$0.00"}},{"$f":"IFERROR('MMA Rev-Exp Region 3'!$AD$22/'MMA Rev-Exp Region 3'!$AD$9, 0)","v":{"v":0,"d":"$0.00"}},{"$f":"IFERROR('MMA Rev-Exp Region 3'!$AE$22/'MMA Rev-Exp Region 3'!$AE$9, 0)","v":{"v":0,"d":"$0.00"}},{"$f":"IFERROR('MMA Rev-Exp Region 3'!$AF$22/'MMA Rev-Exp Region 3'!$AF$9, 0)","v":{"v":0,"d":"$0.00"}},{"$f":"IFERROR('MMA Rev-Exp Region 3'!$AG$22/'MMA Rev-Exp Region 3'!$AG$9, 0)","v":{"v":0,"d":"$0.00"}},{"$f":"IFERROR('MMA Rev-Exp Region 3'!$AH$22/'MMA Rev-Exp Region 3'!$AH$9, 0)","v":{"v":0,"d":"$0.00"}},{"$f":"IFERROR('MMA Rev-Exp Region 3'!$AI$22/'MMA Rev-Exp Region 3'!$AI$9, 0)","v":{"v":0,"d":"$0.00"}},{"$f":"IFERROR('MMA Rev-Exp Region 3'!$AJ$22/'MMA Rev-Exp Region 3'!$AJ$9, 0)","v":{"v":0,"d":"$0.00"}}]
["MMA",null,null,2016,"2016-12-31","Q3","2017-09-30","Region 3","Operating Expense","Medical Benefits Expense","Hospital Services",2.4,"Outpatient FFS: Other than ER ",{"$f":"IFERROR('MMA Rev-Exp Region 3'!$Z$23/'MMA Rev-Exp Region 3'!$Z$9, 0)","v":{"v":0,"d":"$0.00"}},{"$f":"IFERROR('MMA Rev-Exp Region 3'!$AA$23/'MMA Rev-Exp Region 3'!$AA$9, 0)","v":{"v":0,"d":"$0.00"}},{"$f":"IFERROR('MMA Rev-Exp Region 3'!$AB$23/'MMA Rev-Exp Region 3'!$AB$9, 0)","v":{"v":0,"d":"$0.00"}},{"$f":"IFERROR('MMA Rev-Exp Region 3'!$AC$23/'MMA Rev-Exp Region 3'!$AC$9, 0)","v":{"v":0,"d":"$0.00"}},{"$f":"IFERROR('MMA Rev-Exp Region 3'!$AD$23/'MMA Rev-Exp Region 3'!$AD$9, 0)","v":{"v":0,"d":"$0.00"}},{"$f":"IFERROR('MMA Rev-Exp Region 3'!$AE$23/'MMA Rev-Exp Region 3'!$AE$9, 0)","v":{"v":0,"d":"$0.00"}},{"$f":"IFERROR('MMA Rev-Exp Region 3'!$AF$23/'MMA Rev-Exp Region 3'!$AF$9, 0)","v":{"v":0,"d":"$0.00"}},{"$f":"IFERROR('MMA Rev-Exp Region 3'!$AG$23/'MMA Rev-Exp Region 3'!$AG$9, 0)","v":{"v":0,"d":"$0.00"}},{"$f":"IFERROR('MMA Rev-Exp Region 3'!$AH$23/'MMA Rev-Exp Region 3'!$AH$9, 0)","v":{"v":0,"d":"$0.00"}},{"$f":"IFERROR('MMA Rev-Exp Region 3'!$AI$23/'MMA Rev-Exp Region 3'!$AI$9, 0)","v":{"v":0,"d":"$0.00"}},{"$f":"IFERROR('MMA Rev-Exp Region 3'!$AJ$23/'MMA Rev-Exp Region 3'!$AJ$9, 0)","v":{"v":0,"d":"$0.00"}}]
["MMA",null,null,2016,"2016-12-31","Q3","2017-09-30","Region 3","Operating Expense","Medical Benefits Expense","Hospital Services",2.5,"Ending IBNP for Outpatient Hospital Services",{"$f":"IFERROR('MMA Rev-Exp Region 3'!$Z$24/'MMA Rev-Exp Region 3'!$Z$9, 0)","v":{"v":0,"d":"$0.00"}},{"$f":"IFERROR('MMA Rev-Exp Region 3'!$AA$24/'MMA Rev-Exp Region 3'!$AA$9, 0)","v":{"v":0,"d":"$0.00"}},{"$f":"IFERROR('MMA Rev-Exp Region 3'!$AB$24/'MMA Rev-Exp Region 3'!$AB$9, 0)","v":{"v":0,"d":"$0.00"}},{"$f":"IFERROR('MMA Rev-Exp Region 3'!$AC$24/'MMA Rev-Exp Region 3'!$AC$9, 0)","v":{"v":0,"d":"$0.00"}},{"$f":"IFERROR('MMA Rev-Exp Region 3'!$AD$24/'MMA Rev-Exp Region 3'!$AD$9, 0)","v":{"v":0,"d":"$0.00"}},{"$f":"IFERROR('MMA Rev-Exp Region 3'!$AE$24/'MMA Rev-Exp Region 3'!$AE$9, 0)","v":{"v":0,"d":"$0.00"}},{"$f":"IFERROR('MMA Rev-Exp Region 3'!$AF$24/'MMA Rev-Exp Region 3'!$AF$9, 0)","v":{"v":0,"d":"$0.00"}},{"$f":"IFERROR('MMA Rev-Exp Region 3'!$AG$24/'MMA Rev-Exp Region 3'!$AG$9, 0)","v":{"v":0,"d":"$0.00"}},{"$f":"IFERROR('MMA Rev-Exp Region 3'!$AH$24/'MMA Rev-Exp Region 3'!$AH$9, 0)","v":{"v":0,"d":"$0.00"}},{"$f":"IFERROR('MMA Rev-Exp Region 3'!$AI$24/'MMA Rev-Exp Region 3'!$AI$9, 0)","v":{"v":0,"d":"$0.00"}},{"$f":"IFERROR('MMA Rev-Exp Region 3'!$AJ$24/'MMA Rev-Exp Region 3'!$AJ$9, 0)","v":{"v":0,"d":"$0.00"}}]
["MMA",null,null,2016,"2016-12-31","Q3","2017-09-30","Region 3","Operating Expense","Medical Benefits Expense","Hospital Services","2.6","Subcapitated Hospital Services",{"$f":"IFERROR('MMA Rev-Exp Region 3'!$Z$25/'MMA Rev-Exp Region 3'!$Z$9, 0)","v":{"v":0,"d":"$0.00"}},{"$f":"IFERROR('MMA Rev-Exp Region 3'!$AA$25/'MMA Rev-Exp Region 3'!$AA$9, 0)","v":{"v":0,"d":"$0.00"}},{"$f":"IFERROR('MMA Rev-Exp Region 3'!$AB$25/'MMA Rev-Exp Region 3'!$AB$9, 0)","v":{"v":0,"d":"$0.00"}},{"$f":"IFERROR('MMA Rev-Exp Region 3'!$AC$25/'MMA Rev-Exp Region 3'!$AC$9, 0)","v":{"v":0,"d":"$0.00"}},{"$f":"IFERROR('MMA Rev-Exp Region 3'!$AD$25/'MMA Rev-Exp Region 3'!$AD$9, 0)","v":{"v":0,"d":"$0.00"}},{"$f":"IFERROR('MMA Rev-Exp Region 3'!$AE$25/'MMA Rev-Exp Region 3'!$AE$9, 0)","v":{"v":0,"d":"$0.00"}},{"$f":"IFERROR('MMA Rev-Exp Region 3'!$AF$25/'MMA Rev-Exp Region 3'!$AF$9, 0)","v":{"v":0,"d":"$0.00"}},{"$f":"IFERROR('MMA Rev-Exp Region 3'!$AG$25/'MMA Rev-Exp Region 3'!$AG$9, 0)","v":{"v":0,"d":"$0.00"}},{"$f":"IFERROR('MMA Rev-Exp Region 3'!$AH$25/'MMA Rev-Exp Region 3'!$AH$9, 0)","v":{"v":0,"d":"$0.00"}},{"$f":"IFERROR('MMA Rev-Exp Region 3'!$AI$25/'MMA Rev-Exp Region 3'!$AI$9, 0)","v":{"v":0,"d":"$0.00"}},{"$f":"IFERROR('MMA Rev-Exp Region 3'!$AJ$25/'MMA Rev-Exp Region 3'!$AJ$9, 0)","v":{"v":0,"d":"$0.00"}}]
["MMA",null,null,2016,"2016-12-31","Q3","2017-09-30","Region 3","Operating Expense","Medical Benefits Expense","Hospital Services","2.7","Hospital Settlements",{"$f":"IFERROR('MMA Rev-Exp Region 3'!$Z$26/'MMA Rev-Exp Region 3'!$Z$9, 0)","v":{"v":0,"d":"$0.00"}},{"$f":"IFERROR('MMA Rev-Exp Region 3'!$AA$26/'MMA Rev-Exp Region 3'!$AA$9, 0)","v":{"v":0,"d":"$0.00"}},{"$f":"IFERROR('MMA Rev-Exp Region 3'!$AB$26/'MMA Rev-Exp Region 3'!$AB$9, 0)","v":{"v":0,"d":"$0.00"}},{"$f":"IFERROR('MMA Rev-Exp Region 3'!$AC$26/'MMA Rev-Exp Region 3'!$AC$9, 0)","v":{"v":0,"d":"$0.00"}},{"$f":"IFERROR('MMA Rev-Exp Region 3'!$AD$26/'MMA Rev-Exp Region 3'!$AD$9, 0)","v":{"v":0,"d":"$0.00"}},{"$f":"IFERROR('MMA Rev-Exp Region 3'!$AE$26/'MMA Rev-Exp Region 3'!$AE$9, 0)","v":{"v":0,"d":"$0.00"}},{"$f":"IFERROR('MMA Rev-Exp Region 3'!$AF$26/'MMA Rev-Exp Region 3'!$AF$9, 0)","v":{"v":0,"d":"$0.00"}},{"$f":"IFERROR('MMA Rev-Exp Region 3'!$AG$26/'MMA Rev-Exp Region 3'!$AG$9, 0)","v":{"v":0,"d":"$0.00"}},{"$f":"IFERROR('MMA Rev-Exp Region 3'!$AH$26/'MMA Rev-Exp Region 3'!$AH$9, 0)","v":{"v":0,"d":"$0.00"}},{"$f":"IFERROR('MMA Rev-Exp Region 3'!$AI$26/'MMA Rev-Exp Region 3'!$AI$9, 0)","v":{"v":0,"d":"$0.00"}},{"$f":"IFERROR('MMA Rev-Exp Region 3'!$AJ$26/'MMA Rev-Exp Region 3'!$AJ$9, 0)","v":{"v":0,"d":"$0.00"}}]
["MMA",null,null,2016,"2016-12-31","Q3","2017-09-30","Region 3","Operating Expense","Medical Benefits Expense","Hospital Services","2.7.1","Transplant Services",{"$f":"IFERROR('MMA Rev-Exp Region 3'!$Z$27/'MMA Rev-Exp Region 3'!$Z$9, 0)","v":{"v":0,"d":"$0.00"}},{"$f":"IFERROR('MMA Rev-Exp Region 3'!$AA$27/'MMA Rev-Exp Region 3'!$AA$9, 0)","v":{"v":0,"d":"$0.00"}},{"$f":"IFERROR('MMA Rev-Exp Region 3'!$AB$27/'MMA Rev-Exp Region 3'!$AB$9, 0)","v":{"v":0,"d":"$0.00"}},{"$f":"IFERROR('MMA Rev-Exp Region 3'!$AC$27/'MMA Rev-Exp Region 3'!$AC$9, 0)","v":{"v":0,"d":"$0.00"}},{"$f":"IFERROR('MMA Rev-Exp Region 3'!$AD$27/'MMA Rev-Exp Region 3'!$AD$9, 0)","v":{"v":0,"d":"$0.00"}},{"$f":"IFERROR('MMA Rev-Exp Region 3'!$AE$27/'MMA Rev-Exp Region 3'!$AE$9, 0)","v":{"v":0,"d":"$0.00"}},{"$f":"IFERROR('MMA Rev-Exp Region 3'!$AF$27/'MMA Rev-Exp Region 3'!$AF$9, 0)","v":{"v":0,"d":"$0.00"}},{"$f":"IFERROR('MMA Rev-Exp Region 3'!$AG$27/'MMA Rev-Exp Region 3'!$AG$9, 0)","v":{"v":0,"d":"$0.00"}},{"$f":"IFERROR('MMA Rev-Exp Region 3'!$AH$27/'MMA Rev-Exp Region 3'!$AH$9, 0)","v":{"v":0,"d":"$0.00"}},{"$f":"IFERROR('MMA Rev-Exp Region 3'!$AI$27/'MMA Rev-Exp Region 3'!$AI$9, 0)","v":{"v":0,"d":"$0.00"}},{"$f":"IFERROR('MMA Rev-Exp Region 3'!$AJ$27/'MMA Rev-Exp Region 3'!$AJ$9, 0)","v":{"v":0,"d":"$0.00"}}]
["MMA",null,null,2016,"2016-12-31","Q3","2017-09-30","Region 3","Operating Expense","Medical Benefits Expense","Professional Services",3.1,"Primary Care FFS",{"$f":"IFERROR('MMA Rev-Exp Region 3'!$Z$29/'MMA Rev-Exp Region 3'!$Z$9, 0)","v":{"v":0,"d":"$0.00"}},{"$f":"IFERROR('MMA Rev-Exp Region 3'!$AA$29/'MMA Rev-Exp Region 3'!$AA$9, 0)","v":{"v":0,"d":"$0.00"}},{"$f":"IFERROR('MMA Rev-Exp Region 3'!$AB$29/'MMA Rev-Exp Region 3'!$AB$9, 0)","v":{"v":0,"d":"$0.00"}},{"$f":"IFERROR('MMA Rev-Exp Region 3'!$AC$29/'MMA Rev-Exp Region 3'!$AC$9, 0)","v":{"v":0,"d":"$0.00"}},{"$f":"IFERROR('MMA Rev-Exp Region 3'!$AD$29/'MMA Rev-Exp Region 3'!$AD$9, 0)","v":{"v":0,"d":"$0.00"}},{"$f":"IFERROR('MMA Rev-Exp Region 3'!$AE$29/'MMA Rev-Exp Region 3'!$AE$9, 0)","v":{"v":0,"d":"$0.00"}},{"$f":"IFERROR('MMA Rev-Exp Region 3'!$AF$29/'MMA Rev-Exp Region 3'!$AF$9, 0)","v":{"v":0,"d":"$0.00"}},{"$f":"IFERROR('MMA Rev-Exp Region 3'!$AG$29/'MMA Rev-Exp Region 3'!$AG$9, 0)","v":{"v":0,"d":"$0.00"}},{"$f":"IFERROR('MMA Rev-Exp Region 3'!$AH$29/'MMA Rev-Exp Region 3'!$AH$9, 0)","v":{"v":0,"d":"$0.00"}},{"$f":"IFERROR('MMA Rev-Exp Region 3'!$AI$29/'MMA Rev-Exp Region 3'!$AI$9, 0)","v":{"v":0,"d":"$0.00"}},{"$f":"IFERROR('MMA Rev-Exp Region 3'!$AJ$29/'MMA Rev-Exp Region 3'!$AJ$9, 0)","v":{"v":0,"d":"$0.00"}}]
["MMA",null,null,2016,"2016-12-31","Q3","2017-09-30","Region 3","Operating Expense","Medical Benefits Expense","Professional Services",3.2,"Specialty Care FFS",{"$f":"IFERROR('MMA Rev-Exp Region 3'!$Z$30/'MMA Rev-Exp Region 3'!$Z$9, 0)","v":{"v":0,"d":"$0.00"}},{"$f":"IFERROR('MMA Rev-Exp Region 3'!$AA$30/'MMA Rev-Exp Region 3'!$AA$9, 0)","v":{"v":0,"d":"$0.00"}},{"$f":"IFERROR('MMA Rev-Exp Region 3'!$AB$30/'MMA Rev-Exp Region 3'!$AB$9, 0)","v":{"v":0,"d":"$0.00"}},{"$f":"IFERROR('MMA Rev-Exp Region 3'!$AC$30/'MMA Rev-Exp Region 3'!$AC$9, 0)","v":{"v":0,"d":"$0.00"}},{"$f":"IFERROR('MMA Rev-Exp Region 3'!$AD$30/'MMA Rev-Exp Region 3'!$AD$9, 0)","v":{"v":0,"d":"$0.00"}},{"$f":"IFERROR('MMA Rev-Exp Region 3'!$AE$30/'MMA Rev-Exp Region 3'!$AE$9, 0)","v":{"v":0,"d":"$0.00"}},{"$f":"IFERROR('MMA Rev-Exp Region 3'!$AF$30/'MMA Rev-Exp Region 3'!$AF$9, 0)","v":{"v":0,"d":"$0.00"}},{"$f":"IFERROR('MMA Rev-Exp Region 3'!$AG$30/'MMA Rev-Exp Region 3'!$AG$9, 0)","v":{"v":0,"d":"$0.00"}},{"$f":"IFERROR('MMA Rev-Exp Region 3'!$AH$30/'MMA Rev-Exp Region 3'!$AH$9, 0)","v":{"v":0,"d":"$0.00"}},{"$f":"IFERROR('MMA Rev-Exp Region 3'!$AI$30/'MMA Rev-Exp Region 3'!$AI$9, 0)","v":{"v":0,"d":"$0.00"}},{"$f":"IFERROR('MMA Rev-Exp Region 3'!$AJ$30/'MMA Rev-Exp Region 3'!$AJ$9, 0)","v":{"v":0,"d":"$0.00"}}]
["MMA",null,null,2016,"2016-12-31","Q3","2017-09-30","Region 3","Operating Expense","Medical Benefits Expense","Professional Services",3.3,"Other Professional FFS",{"$f":"IFERROR('MMA Rev-Exp Region 3'!$Z$31/'MMA Rev-Exp Region 3'!$Z$9, 0)","v":{"v":0,"d":"$0.00"}},{"$f":"IFERROR('MMA Rev-Exp Region 3'!$AA$31/'MMA Rev-Exp Region 3'!$AA$9, 0)","v":{"v":0,"d":"$0.00"}},{"$f":"IFERROR('MMA Rev-Exp Region 3'!$AB$31/'MMA Rev-Exp Region 3'!$AB$9, 0)","v":{"v":0,"d":"$0.00"}},{"$f":"IFERROR('MMA Rev-Exp Region 3'!$AC$31/'MMA Rev-Exp Region 3'!$AC$9, 0)","v":{"v":0,"d":"$0.00"}},{"$f":"IFERROR('MMA Rev-Exp Region 3'!$AD$31/'MMA Rev-Exp Region 3'!$AD$9, 0)","v":{"v":0,"d":"$0.00"}},{"$f":"IFERROR('MMA Rev-Exp Region 3'!$AE$31/'MMA Rev-Exp Region 3'!$AE$9, 0)","v":{"v":0,"d":"$0.00"}},{"$f":"IFERROR('MMA Rev-Exp Region 3'!$AF$31/'MMA Rev-Exp Region 3'!$AF$9, 0)","v":{"v":0,"d":"$0.00"}},{"$f":"IFERROR('MMA Rev-Exp Region 3'!$AG$31/'MMA Rev-Exp Region 3'!$AG$9, 0)","v":{"v":0,"d":"$0.00"}},{"$f":"IFERROR('MMA Rev-Exp Region 3'!$AH$31/'MMA Rev-Exp Region 3'!$AH$9, 0)","v":{"v":0,"d":"$0.00"}},{"$f":"IFERROR('MMA Rev-Exp Region 3'!$AI$31/'MMA Rev-Exp Region 3'!$AI$9, 0)","v":{"v":0,"d":"$0.00"}},{"$f":"IFERROR('MMA Rev-Exp Region 3'!$AJ$31/'MMA Rev-Exp Region 3'!$AJ$9, 0)","v":{"v":0,"d":"$0.00"}}]
["MMA",null,null,2016,"2016-12-31","Q3","2017-09-30","Region 3","Operating Expense","Medical Benefits Expense","Professional Services","3.4","§ 1202 PCP Payments to providers",{"$f":"IFERROR('MMA Rev-Exp Region 3'!$Z$32/'MMA Rev-Exp Region 3'!$Z$9, 0)","v":{"v":0,"d":"$0.00"}},{"$f":"IFERROR('MMA Rev-Exp Region 3'!$AA$32/'MMA Rev-Exp Region 3'!$AA$9, 0)","v":{"v":0,"d":"$0.00"}},{"$f":"IFERROR('MMA Rev-Exp Region 3'!$AB$32/'MMA Rev-Exp Region 3'!$AB$9, 0)","v":{"v":0,"d":"$0.00"}},{"$f":"IFERROR('MMA Rev-Exp Region 3'!$AC$32/'MMA Rev-Exp Region 3'!$AC$9, 0)","v":{"v":0,"d":"$0.00"}},{"$f":"IFERROR('MMA Rev-Exp Region 3'!$AD$32/'MMA Rev-Exp Region 3'!$AD$9, 0)","v":{"v":0,"d":"$0.00"}},{"$f":"IFERROR('MMA Rev-Exp Region 3'!$AE$32/'MMA Rev-Exp Region 3'!$AE$9, 0)","v":{"v":0,"d":"$0.00"}},{"$f":"IFERROR('MMA Rev-Exp Region 3'!$AF$32/'MMA Rev-Exp Region 3'!$AF$9, 0)","v":{"v":0,"d":"$0.00"}},{"$f":"IFERROR('MMA Rev-Exp Region 3'!$AG$32/'MMA Rev-Exp Region 3'!$AG$9, 0)","v":{"v":0,"d":"$0.00"}},{"$f":"IFERROR('MMA Rev-Exp Region 3'!$AH$32/'MMA Rev-Exp Region 3'!$AH$9, 0)","v":{"v":0,"d":"$0.00"}},{"$f":"IFERROR('MMA Rev-Exp Region 3'!$AI$32/'MMA Rev-Exp Region 3'!$AI$9, 0)","v":{"v":0,"d":"$0.00"}},{"$f":"IFERROR('MMA Rev-Exp Region 3'!$AJ$32/'MMA Rev-Exp Region 3'!$AJ$9, 0)","v":{"v":0,"d":"$0.00"}}]
["MMA",null,null,2016,"2016-12-31","Q3","2017-09-30","Region 3","Operating Expense","Medical Benefits Expense","Professional Services","3.5","Subcapitated Professional Services",{"$f":"IFERROR('MMA Rev-Exp Region 3'!$Z$33/'MMA Rev-Exp Region 3'!$Z$9, 0)","v":{"v":0,"d":"$0.00"}},{"$f":"IFERROR('MMA Rev-Exp Region 3'!$AA$33/'MMA Rev-Exp Region 3'!$AA$9, 0)","v":{"v":0,"d":"$0.00"}},{"$f":"IFERROR('MMA Rev-Exp Region 3'!$AB$33/'MMA Rev-Exp Region 3'!$AB$9, 0)","v":{"v":0,"d":"$0.00"}},{"$f":"IFERROR('MMA Rev-Exp Region 3'!$AC$33/'MMA Rev-Exp Region 3'!$AC$9, 0)","v":{"v":0,"d":"$0.00"}},{"$f":"IFERROR('MMA Rev-Exp Region 3'!$AD$33/'MMA Rev-Exp Region 3'!$AD$9, 0)","v":{"v":0,"d":"$0.00"}},{"$f":"IFERROR('MMA Rev-Exp Region 3'!$AE$33/'MMA Rev-Exp Region 3'!$AE$9, 0)","v":{"v":0,"d":"$0.00"}},{"$f":"IFERROR('MMA Rev-Exp Region 3'!$AF$33/'MMA Rev-Exp Region 3'!$AF$9, 0)","v":{"v":0,"d":"$0.00"}},{"$f":"IFERROR('MMA Rev-Exp Region 3'!$AG$33/'MMA Rev-Exp Region 3'!$AG$9, 0)","v":{"v":0,"d":"$0.00"}},{"$f":"IFERROR('MMA Rev-Exp Region 3'!$AH$33/'MMA Rev-Exp Region 3'!$AH$9, 0)","v":{"v":0,"d":"$0.00"}},{"$f":"IFERROR('MMA Rev-Exp Region 3'!$AI$33/'MMA Rev-Exp Region 3'!$AI$9, 0)","v":{"v":0,"d":"$0.00"}},{"$f":"IFERROR('MMA Rev-Exp Region 3'!$AJ$33/'MMA Rev-Exp Region 3'!$AJ$9, 0)","v":{"v":0,"d":"$0.00"}}]
["MMA",null,null,2016,"2016-12-31","Q3","2017-09-30","Region 3","Operating Expense","Medical Benefits Expense","Professional Services","3.6","Ending IBNP for Professional Services",{"$f":"IFERROR('MMA Rev-Exp Region 3'!$Z$34/'MMA Rev-Exp Region 3'!$Z$9, 0)","v":{"v":0,"d":"$0.00"}},{"$f":"IFERROR('MMA Rev-Exp Region 3'!$AA$34/'MMA Rev-Exp Region 3'!$AA$9, 0)","v":{"v":0,"d":"$0.00"}},{"$f":"IFERROR('MMA Rev-Exp Region 3'!$AB$34/'MMA Rev-Exp Region 3'!$AB$9, 0)","v":{"v":0,"d":"$0.00"}},{"$f":"IFERROR('MMA Rev-Exp Region 3'!$AC$34/'MMA Rev-Exp Region 3'!$AC$9, 0)","v":{"v":0,"d":"$0.00"}},{"$f":"IFERROR('MMA Rev-Exp Region 3'!$AD$34/'MMA Rev-Exp Region 3'!$AD$9, 0)","v":{"v":0,"d":"$0.00"}},{"$f":"IFERROR('MMA Rev-Exp Region 3'!$AE$34/'MMA Rev-Exp Region 3'!$AE$9, 0)","v":{"v":0,"d":"$0.00"}},{"$f":"IFERROR('MMA Rev-Exp Region 3'!$AF$34/'MMA Rev-Exp Region 3'!$AF$9, 0)","v":{"v":0,"d":"$0.00"}},{"$f":"IFERROR('MMA Rev-Exp Region 3'!$AG$34/'MMA Rev-Exp Region 3'!$AG$9, 0)","v":{"v":0,"d":"$0.00"}},{"$f":"IFERROR('MMA Rev-Exp Region 3'!$AH$34/'MMA Rev-Exp Region 3'!$AH$9, 0)","v":{"v":0,"d":"$0.00"}},{"$f":"IFERROR('MMA Rev-Exp Region 3'!$AI$34/'MMA Rev-Exp Region 3'!$AI$9, 0)","v":{"v":0,"d":"$0.00"}},{"$f":"IFERROR('MMA Rev-Exp Region 3'!$AJ$34/'MMA Rev-Exp Region 3'!$AJ$9, 0)","v":{"v":0,"d":"$0.00"}}]
["MMA",null,null,2016,"2016-12-31","Q3","2017-09-30","Region 3","Operating Expense","Medical Benefits Expense","Professional Services","3.7","Professional Services Settlements",{"$f":"IFERROR('MMA Rev-Exp Region 3'!$Z$35/'MMA Rev-Exp Region 3'!$Z$9, 0)","v":{"v":0,"d":"$0.00"}},{"$f":"IFERROR('MMA Rev-Exp Region 3'!$AA$35/'MMA Rev-Exp Region 3'!$AA$9, 0)","v":{"v":0,"d":"$0.00"}},{"$f":"IFERROR('MMA Rev-Exp Region 3'!$AB$35/'MMA Rev-Exp Region 3'!$AB$9, 0)","v":{"v":0,"d":"$0.00"}},{"$f":"IFERROR('MMA Rev-Exp Region 3'!$AC$35/'MMA Rev-Exp Region 3'!$AC$9, 0)","v":{"v":0,"d":"$0.00"}},{"$f":"IFERROR('MMA Rev-Exp Region 3'!$AD$35/'MMA Rev-Exp Region 3'!$AD$9, 0)","v":{"v":0,"d":"$0.00"}},{"$f":"IFERROR('MMA Rev-Exp Region 3'!$AE$35/'MMA Rev-Exp Region 3'!$AE$9, 0)","v":{"v":0,"d":"$0.00"}},{"$f":"IFERROR('MMA Rev-Exp Region 3'!$AF$35/'MMA Rev-Exp Region 3'!$AF$9, 0)","v":{"v":0,"d":"$0.00"}},{"$f":"IFERROR('MMA Rev-Exp Region 3'!$AG$35/'MMA Rev-Exp Region 3'!$AG$9, 0)","v":{"v":0,"d":"$0.00"}},{"$f":"IFERROR('MMA Rev-Exp Region 3'!$AH$35/'MMA Rev-Exp Region 3'!$AH$9, 0)","v":{"v":0,"d":"$0.00"}},{"$f":"IFERROR('MMA Rev-Exp Region 3'!$AI$35/'MMA Rev-Exp Region 3'!$AI$9, 0)","v":{"v":0,"d":"$0.00"}},{"$f":"IFERROR('MMA Rev-Exp Region 3'!$AJ$35/'MMA Rev-Exp Region 3'!$AJ$9, 0)","v":{"v":0,"d":"$0.00"}}]
["MMA",null,null,2016,"2016-12-31","Q3","2017-09-30","Region 3","Operating Expense","Medical Benefits Expense","Maternity Services","4.1.1","Maternity Services",{"$f":"IFERROR('MMA Rev-Exp Region 3'!$Z$37/'MMA Rev-Exp Region 3'!$Z$9, 0)","v":{"v":0,"d":"$0.00"}},{"$f":"IFERROR('MMA Rev-Exp Region 3'!$AA$37/'MMA Rev-Exp Region 3'!$AA$9, 0)","v":{"v":0,"d":"$0.00"}},{"$f":"IFERROR('MMA Rev-Exp Region 3'!$AB$37/'MMA Rev-Exp Region 3'!$AB$9, 0)","v":{"v":0,"d":"$0.00"}},{"$f":"IFERROR('MMA Rev-Exp Region 3'!$AC$37/'MMA Rev-Exp Region 3'!$AC$9, 0)","v":{"v":0,"d":"$0.00"}},{"$f":"IFERROR('MMA Rev-Exp Region 3'!$AD$37/'MMA Rev-Exp Region 3'!$AD$9, 0)","v":{"v":0,"d":"$0.00"}},{"$f":"IFERROR('MMA Rev-Exp Region 3'!$AE$37/'MMA Rev-Exp Region 3'!$AE$9, 0)","v":{"v":0,"d":"$0.00"}},{"$f":"IFERROR('MMA Rev-Exp Region 3'!$AF$37/'MMA Rev-Exp Region 3'!$AF$9, 0)","v":{"v":0,"d":"$0.00"}},{"$f":"IFERROR('MMA Rev-Exp Region 3'!$AG$37/'MMA Rev-Exp Region 3'!$AG$9, 0)","v":{"v":0,"d":"$0.00"}},{"$f":"IFERROR('MMA Rev-Exp Region 3'!$AH$37/'MMA Rev-Exp Region 3'!$AH$9, 0)","v":{"v":0,"d":"$0.00"}},{"$f":"IFERROR('MMA Rev-Exp Region 3'!$AI$37/'MMA Rev-Exp Region 3'!$AI$9, 0)","v":{"v":0,"d":"$0.00"}},{"$f":"IFERROR('MMA Rev-Exp Region 3'!$AJ$37/'MMA Rev-Exp Region 3'!$AJ$9, 0)","v":{"v":0,"d":"$0.00"}}]
["MMA",null,null,2016,"2016-12-31","Q3","2017-09-30","Region 3","Operating Expense","Medical Benefits Expense","Maternity Services","4.2.1","Ending IBNP for Maternity Services",{"$f":"IFERROR('MMA Rev-Exp Region 3'!$Z$38/'MMA Rev-Exp Region 3'!$Z$9, 0)","v":{"v":0,"d":"$0.00"}},{"$f":"IFERROR('MMA Rev-Exp Region 3'!$AA$38/'MMA Rev-Exp Region 3'!$AA$9, 0)","v":{"v":0,"d":"$0.00"}},{"$f":"IFERROR('MMA Rev-Exp Region 3'!$AB$38/'MMA Rev-Exp Region 3'!$AB$9, 0)","v":{"v":0,"d":"$0.00"}},{"$f":"IFERROR('MMA Rev-Exp Region 3'!$AC$38/'MMA Rev-Exp Region 3'!$AC$9, 0)","v":{"v":0,"d":"$0.00"}},{"$f":"IFERROR('MMA Rev-Exp Region 3'!$AD$38/'MMA Rev-Exp Region 3'!$AD$9, 0)","v":{"v":0,"d":"$0.00"}},{"$f":"IFERROR('MMA Rev-Exp Region 3'!$AE$38/'MMA Rev-Exp Region 3'!$AE$9, 0)","v":{"v":0,"d":"$0.00"}},{"$f":"IFERROR('MMA Rev-Exp Region 3'!$AF$38/'MMA Rev-Exp Region 3'!$AF$9, 0)","v":{"v":0,"d":"$0.00"}},{"$f":"IFERROR('MMA Rev-Exp Region 3'!$AG$38/'MMA Rev-Exp Region 3'!$AG$9, 0)","v":{"v":0,"d":"$0.00"}},{"$f":"IFERROR('MMA Rev-Exp Region 3'!$AH$38/'MMA Rev-Exp Region 3'!$AH$9, 0)","v":{"v":0,"d":"$0.00"}},{"$f":"IFERROR('MMA Rev-Exp Region 3'!$AI$38/'MMA Rev-Exp Region 3'!$AI$9, 0)","v":{"v":0,"d":"$0.00"}},{"$f":"IFERROR('MMA Rev-Exp Region 3'!$AJ$38/'MMA Rev-Exp Region 3'!$AJ$9, 0)","v":{"v":0,"d":"$0.00"}}]
["MMA",null,null,2016,"2016-12-31","Q3","2017-09-30","Region 3","Operating Expense","Medical Benefits Expense","Maternity Services","4.3.1","Maternity Settlements",{"$f":"IFERROR('MMA Rev-Exp Region 3'!$Z$39/'MMA Rev-Exp Region 3'!$Z$9, 0)","v":{"v":0,"d":"$0.00"}},{"$f":"IFERROR('MMA Rev-Exp Region 3'!$AA$39/'MMA Rev-Exp Region 3'!$AA$9, 0)","v":{"v":0,"d":"$0.00"}},{"$f":"IFERROR('MMA Rev-Exp Region 3'!$AB$39/'MMA Rev-Exp Region 3'!$AB$9, 0)","v":{"v":0,"d":"$0.00"}},{"$f":"IFERROR('MMA Rev-Exp Region 3'!$AC$39/'MMA Rev-Exp Region 3'!$AC$9, 0)","v":{"v":0,"d":"$0.00"}},{"$f":"IFERROR('MMA Rev-Exp Region 3'!$AD$39/'MMA Rev-Exp Region 3'!$AD$9, 0)","v":{"v":0,"d":"$0.00"}},{"$f":"IFERROR('MMA Rev-Exp Region 3'!$AE$39/'MMA Rev-Exp Region 3'!$AE$9, 0)","v":{"v":0,"d":"$0.00"}},{"$f":"IFERROR('MMA Rev-Exp Region 3'!$AF$39/'MMA Rev-Exp Region 3'!$AF$9, 0)","v":{"v":0,"d":"$0.00"}},{"$f":"IFERROR('MMA Rev-Exp Region 3'!$AG$39/'MMA Rev-Exp Region 3'!$AG$9, 0)","v":{"v":0,"d":"$0.00"}},{"$f":"IFERROR('MMA Rev-Exp Region 3'!$AH$39/'MMA Rev-Exp Region 3'!$AH$9, 0)","v":{"v":0,"d":"$0.00"}},{"$f":"IFERROR('MMA Rev-Exp Region 3'!$AI$39/'MMA Rev-Exp Region 3'!$AI$9, 0)","v":{"v":0,"d":"$0.00"}},{"$f":"IFERROR('MMA Rev-Exp Region 3'!$AJ$39/'MMA Rev-Exp Region 3'!$AJ$9, 0)","v":{"v":0,"d":"$0.00"}}]
["MMA",null,null,2016,"2016-12-31","Q3","2017-09-30","Region 3","Operating Expense","Medical Benefits Expense","Mental Health Services",5.1,"Mental Health & Substance Abuse FFS",{"$f":"IFERROR('MMA Rev-Exp Region 3'!$Z$41/'MMA Rev-Exp Region 3'!$Z$9, 0)","v":{"v":0,"d":"$0.00"}},{"$f":"IFERROR('MMA Rev-Exp Region 3'!$AA$41/'MMA Rev-Exp Region 3'!$AA$9, 0)","v":{"v":0,"d":"$0.00"}},{"$f":"IFERROR('MMA Rev-Exp Region 3'!$AB$41/'MMA Rev-Exp Region 3'!$AB$9, 0)","v":{"v":0,"d":"$0.00"}},{"$f":"IFERROR('MMA Rev-Exp Region 3'!$AC$41/'MMA Rev-Exp Region 3'!$AC$9, 0)","v":{"v":0,"d":"$0.00"}},{"$f":"IFERROR('MMA Rev-Exp Region 3'!$AD$41/'MMA Rev-Exp Region 3'!$AD$9, 0)","v":{"v":0,"d":"$0.00"}},{"$f":"IFERROR('MMA Rev-Exp Region 3'!$AE$41/'MMA Rev-Exp Region 3'!$AE$9, 0)","v":{"v":0,"d":"$0.00"}},{"$f":"IFERROR('MMA Rev-Exp Region 3'!$AF$41/'MMA Rev-Exp Region 3'!$AF$9, 0)","v":{"v":0,"d":"$0.00"}},{"$f":"IFERROR('MMA Rev-Exp Region 3'!$AG$41/'MMA Rev-Exp Region 3'!$AG$9, 0)","v":{"v":0,"d":"$0.00"}},{"$f":"IFERROR('MMA Rev-Exp Region 3'!$AH$41/'MMA Rev-Exp Region 3'!$AH$9, 0)","v":{"v":0,"d":"$0.00"}},{"$f":"IFERROR('MMA Rev-Exp Region 3'!$AI$41/'MMA Rev-Exp Region 3'!$AI$9, 0)","v":{"v":0,"d":"$0.00"}},{"$f":"IFERROR('MMA Rev-Exp Region 3'!$AJ$41/'MMA Rev-Exp Region 3'!$AJ$9, 0)","v":{"v":0,"d":"$0.00"}}]
["MMA",null,null,2016,"2016-12-31","Q3","2017-09-30","Region 3","Operating Expense","Medical Benefits Expense","Mental Health Services",5.2,"Mental Health & Substance Abuse Subcapitation",{"$f":"IFERROR('MMA Rev-Exp Region 3'!$Z$42/'MMA Rev-Exp Region 3'!$Z$9, 0)","v":{"v":0,"d":"$0.00"}},{"$f":"IFERROR('MMA Rev-Exp Region 3'!$AA$42/'MMA Rev-Exp Region 3'!$AA$9, 0)","v":{"v":0,"d":"$0.00"}},{"$f":"IFERROR('MMA Rev-Exp Region 3'!$AB$42/'MMA Rev-Exp Region 3'!$AB$9, 0)","v":{"v":0,"d":"$0.00"}},{"$f":"IFERROR('MMA Rev-Exp Region 3'!$AC$42/'MMA Rev-Exp Region 3'!$AC$9, 0)","v":{"v":0,"d":"$0.00"}},{"$f":"IFERROR('MMA Rev-Exp Region 3'!$AD$42/'MMA Rev-Exp Region 3'!$AD$9, 0)","v":{"v":0,"d":"$0.00"}},{"$f":"IFERROR('MMA Rev-Exp Region 3'!$AE$42/'MMA Rev-Exp Region 3'!$AE$9, 0)","v":{"v":0,"d":"$0.00"}},{"$f":"IFERROR('MMA Rev-Exp Region 3'!$AF$42/'MMA Rev-Exp Region 3'!$AF$9, 0)","v":{"v":0,"d":"$0.00"}},{"$f":"IFERROR('MMA Rev-Exp Region 3'!$AG$42/'MMA Rev-Exp Region 3'!$AG$9, 0)","v":{"v":0,"d":"$0.00"}},{"$f":"IFERROR('MMA Rev-Exp Region 3'!$AH$42/'MMA Rev-Exp Region 3'!$AH$9, 0)","v":{"v":0,"d":"$0.00"}},{"$f":"IFERROR('MMA Rev-Exp Region 3'!$AI$42/'MMA Rev-Exp Region 3'!$AI$9, 0)","v":{"v":0,"d":"$0.00"}},{"$f":"IFERROR('MMA Rev-Exp Region 3'!$AJ$42/'MMA Rev-Exp Region 3'!$AJ$9, 0)","v":{"v":0,"d":"$0.00"}}]
["MMA",null,null,2016,"2016-12-31","Q3","2017-09-30","Region 3","Operating Expense","Medical Benefits Expense","Mental Health Services",5.3,"Ending IBNP for Mental Health & Substance Abuse",{"$f":"IFERROR('MMA Rev-Exp Region 3'!$Z$43/'MMA Rev-Exp Region 3'!$Z$9, 0)","v":{"v":0,"d":"$0.00"}},{"$f":"IFERROR('MMA Rev-Exp Region 3'!$AA$43/'MMA Rev-Exp Region 3'!$AA$9, 0)","v":{"v":0,"d":"$0.00"}},{"$f":"IFERROR('MMA Rev-Exp Region 3'!$AB$43/'MMA Rev-Exp Region 3'!$AB$9, 0)","v":{"v":0,"d":"$0.00"}},{"$f":"IFERROR('MMA Rev-Exp Region 3'!$AC$43/'MMA Rev-Exp Region 3'!$AC$9, 0)","v":{"v":0,"d":"$0.00"}},{"$f":"IFERROR('MMA Rev-Exp Region 3'!$AD$43/'MMA Rev-Exp Region 3'!$AD$9, 0)","v":{"v":0,"d":"$0.00"}},{"$f":"IFERROR('MMA Rev-Exp Region 3'!$AE$43/'MMA Rev-Exp Region 3'!$AE$9, 0)","v":{"v":0,"d":"$0.00"}},{"$f":"IFERROR('MMA Rev-Exp Region 3'!$AF$43/'MMA Rev-Exp Region 3'!$AF$9, 0)","v":{"v":0,"d":"$0.00"}},{"$f":"IFERROR('MMA Rev-Exp Region 3'!$AG$43/'MMA Rev-Exp Region 3'!$AG$9, 0)","v":{"v":0,"d":"$0.00"}},{"$f":"IFERROR('MMA Rev-Exp Region 3'!$AH$43/'MMA Rev-Exp Region 3'!$AH$9, 0)","v":{"v":0,"d":"$0.00"}},{"$f":"IFERROR('MMA Rev-Exp Region 3'!$AI$43/'MMA Rev-Exp Region 3'!$AI$9, 0)","v":{"v":0,"d":"$0.00"}},{"$f":"IFERROR('MMA Rev-Exp Region 3'!$AJ$43/'MMA Rev-Exp Region 3'!$AJ$9, 0)","v":{"v":0,"d":"$0.00"}}]
["MMA",null,null,2016,"2016-12-31","Q3","2017-09-30","Region 3","Operating Expense","Medical Benefits Expense","Mental Health Services","5.4","Mental Health Settlements",{"$f":"IFERROR('MMA Rev-Exp Region 3'!$Z$44/'MMA Rev-Exp Region 3'!$Z$9, 0)","v":{"v":0,"d":"$0.00"}},{"$f":"IFERROR('MMA Rev-Exp Region 3'!$AA$44/'MMA Rev-Exp Region 3'!$AA$9, 0)","v":{"v":0,"d":"$0.00"}},{"$f":"IFERROR('MMA Rev-Exp Region 3'!$AB$44/'MMA Rev-Exp Region 3'!$AB$9, 0)","v":{"v":0,"d":"$0.00"}},{"$f":"IFERROR('MMA Rev-Exp Region 3'!$AC$44/'MMA Rev-Exp Region 3'!$AC$9, 0)","v":{"v":0,"d":"$0.00"}},{"$f":"IFERROR('MMA Rev-Exp Region 3'!$AD$44/'MMA Rev-Exp Region 3'!$AD$9, 0)","v":{"v":0,"d":"$0.00"}},{"$f":"IFERROR('MMA Rev-Exp Region 3'!$AE$44/'MMA Rev-Exp Region 3'!$AE$9, 0)","v":{"v":0,"d":"$0.00"}},{"$f":"IFERROR('MMA Rev-Exp Region 3'!$AF$44/'MMA Rev-Exp Region 3'!$AF$9, 0)","v":{"v":0,"d":"$0.00"}},{"$f":"IFERROR('MMA Rev-Exp Region 3'!$AG$44/'MMA Rev-Exp Region 3'!$AG$9, 0)","v":{"v":0,"d":"$0.00"}},{"$f":"IFERROR('MMA Rev-Exp Region 3'!$AH$44/'MMA Rev-Exp Region 3'!$AH$9, 0)","v":{"v":0,"d":"$0.00"}},{"$f":"IFERROR('MMA Rev-Exp Region 3'!$AI$44/'MMA Rev-Exp Region 3'!$AI$9, 0)","v":{"v":0,"d":"$0.00"}},{"$f":"IFERROR('MMA Rev-Exp Region 3'!$AJ$44/'MMA Rev-Exp Region 3'!$AJ$9, 0)","v":{"v":0,"d":"$0.00"}}]
["MMA",null,null,2016,"2016-12-31","Q3","2017-09-30","Region 3","Operating Expense","Medical Benefits Expense","Dental Services",6.1,"Dental FFS",{"$f":"IFERROR('MMA Rev-Exp Region 3'!$Z$46/'MMA Rev-Exp Region 3'!$Z$9, 0)","v":{"v":0,"d":"$0.00"}},{"$f":"IFERROR('MMA Rev-Exp Region 3'!$AA$46/'MMA Rev-Exp Region 3'!$AA$9, 0)","v":{"v":0,"d":"$0.00"}},{"$f":"IFERROR('MMA Rev-Exp Region 3'!$AB$46/'MMA Rev-Exp Region 3'!$AB$9, 0)","v":{"v":0,"d":"$0.00"}},{"$f":"IFERROR('MMA Rev-Exp Region 3'!$AC$46/'MMA Rev-Exp Region 3'!$AC$9, 0)","v":{"v":0,"d":"$0.00"}},{"$f":"IFERROR('MMA Rev-Exp Region 3'!$AD$46/'MMA Rev-Exp Region 3'!$AD$9, 0)","v":{"v":0,"d":"$0.00"}},{"$f":"IFERROR('MMA Rev-Exp Region 3'!$AE$46/'MMA Rev-Exp Region 3'!$AE$9, 0)","v":{"v":0,"d":"$0.00"}},{"$f":"IFERROR('MMA Rev-Exp Region 3'!$AF$46/'MMA Rev-Exp Region 3'!$AF$9, 0)","v":{"v":0,"d":"$0.00"}},{"$f":"IFERROR('MMA Rev-Exp Region 3'!$AG$46/'MMA Rev-Exp Region 3'!$AG$9, 0)","v":{"v":0,"d":"$0.00"}},{"$f":"IFERROR('MMA Rev-Exp Region 3'!$AH$46/'MMA Rev-Exp Region 3'!$AH$9, 0)","v":{"v":0,"d":"$0.00"}},{"$f":"IFERROR('MMA Rev-Exp Region 3'!$AI$46/'MMA Rev-Exp Region 3'!$AI$9, 0)","v":{"v":0,"d":"$0.00"}},{"$f":"IFERROR('MMA Rev-Exp Region 3'!$AJ$46/'MMA Rev-Exp Region 3'!$AJ$9, 0)","v":{"v":0,"d":"$0.00"}}]
["MMA",null,null,2016,"2016-12-31","Q3","2017-09-30","Region 3","Operating Expense","Medical Benefits Expense","Dental Services",6.2,"Dental Subcapitation",{"$f":"IFERROR('MMA Rev-Exp Region 3'!$Z$47/'MMA Rev-Exp Region 3'!$Z$9, 0)","v":{"v":0,"d":"$0.00"}},{"$f":"IFERROR('MMA Rev-Exp Region 3'!$AA$47/'MMA Rev-Exp Region 3'!$AA$9, 0)","v":{"v":0,"d":"$0.00"}},{"$f":"IFERROR('MMA Rev-Exp Region 3'!$AB$47/'MMA Rev-Exp Region 3'!$AB$9, 0)","v":{"v":0,"d":"$0.00"}},{"$f":"IFERROR('MMA Rev-Exp Region 3'!$AC$47/'MMA Rev-Exp Region 3'!$AC$9, 0)","v":{"v":0,"d":"$0.00"}},{"$f":"IFERROR('MMA Rev-Exp Region 3'!$AD$47/'MMA Rev-Exp Region 3'!$AD$9, 0)","v":{"v":0,"d":"$0.00"}},{"$f":"IFERROR('MMA Rev-Exp Region 3'!$AE$47/'MMA Rev-Exp Region 3'!$AE$9, 0)","v":{"v":0,"d":"$0.00"}},{"$f":"IFERROR('MMA Rev-Exp Region 3'!$AF$47/'MMA Rev-Exp Region 3'!$AF$9, 0)","v":{"v":0,"d":"$0.00"}},{"$f":"IFERROR('MMA Rev-Exp Region 3'!$AG$47/'MMA Rev-Exp Region 3'!$AG$9, 0)","v":{"v":0,"d":"$0.00"}},{"$f":"IFERROR('MMA Rev-Exp Region 3'!$AH$47/'MMA Rev-Exp Region 3'!$AH$9, 0)","v":{"v":0,"d":"$0.00"}},{"$f":"IFERROR('MMA Rev-Exp Region 3'!$AI$47/'MMA Rev-Exp Region 3'!$AI$9, 0)","v":{"v":0,"d":"$0.00"}},{"$f":"IFERROR('MMA Rev-Exp Region 3'!$AJ$47/'MMA Rev-Exp Region 3'!$AJ$9, 0)","v":{"v":0,"d":"$0.00"}}]
["MMA",null,null,2016,"2016-12-31","Q3","2017-09-30","Region 3","Operating Expense","Medical Benefits Expense","Dental Services",6.3,"Ending IBNP for Dental Services",{"$f":"IFERROR('MMA Rev-Exp Region 3'!$Z$48/'MMA Rev-Exp Region 3'!$Z$9, 0)","v":{"v":0,"d":"$0.00"}},{"$f":"IFERROR('MMA Rev-Exp Region 3'!$AA$48/'MMA Rev-Exp Region 3'!$AA$9, 0)","v":{"v":0,"d":"$0.00"}},{"$f":"IFERROR('MMA Rev-Exp Region 3'!$AB$48/'MMA Rev-Exp Region 3'!$AB$9, 0)","v":{"v":0,"d":"$0.00"}},{"$f":"IFERROR('MMA Rev-Exp Region 3'!$AC$48/'MMA Rev-Exp Region 3'!$AC$9, 0)","v":{"v":0,"d":"$0.00"}},{"$f":"IFERROR('MMA Rev-Exp Region 3'!$AD$48/'MMA Rev-Exp Region 3'!$AD$9, 0)","v":{"v":0,"d":"$0.00"}},{"$f":"IFERROR('MMA Rev-Exp Region 3'!$AE$48/'MMA Rev-Exp Region 3'!$AE$9, 0)","v":{"v":0,"d":"$0.00"}},{"$f":"IFERROR('MMA Rev-Exp Region 3'!$AF$48/'MMA Rev-Exp Region 3'!$AF$9, 0)","v":{"v":0,"d":"$0.00"}},{"$f":"IFERROR('MMA Rev-Exp Region 3'!$AG$48/'MMA Rev-Exp Region 3'!$AG$9, 0)","v":{"v":0,"d":"$0.00"}},{"$f":"IFERROR('MMA Rev-Exp Region 3'!$AH$48/'MMA Rev-Exp Region 3'!$AH$9, 0)","v":{"v":0,"d":"$0.00"}},{"$f":"IFERROR('MMA Rev-Exp Region 3'!$AI$48/'MMA Rev-Exp Region 3'!$AI$9, 0)","v":{"v":0,"d":"$0.00"}},{"$f":"IFERROR('MMA Rev-Exp Region 3'!$AJ$48/'MMA Rev-Exp Region 3'!$AJ$9, 0)","v":{"v":0,"d":"$0.00"}}]
["MMA",null,null,2016,"2016-12-31","Q3","2017-09-30","Region 3","Operating Expense","Medical Benefits Expense","Dental Services","6.4","Dental Settlements",{"$f":"IFERROR('MMA Rev-Exp Region 3'!$Z$49/'MMA Rev-Exp Region 3'!$Z$9, 0)","v":{"v":0,"d":"$0.00"}},{"$f":"IFERROR('MMA Rev-Exp Region 3'!$AA$49/'MMA Rev-Exp Region 3'!$AA$9, 0)","v":{"v":0,"d":"$0.00"}},{"$f":"IFERROR('MMA Rev-Exp Region 3'!$AB$49/'MMA Rev-Exp Region 3'!$AB$9, 0)","v":{"v":0,"d":"$0.00"}},{"$f":"IFERROR('MMA Rev-Exp Region 3'!$AC$49/'MMA Rev-Exp Region 3'!$AC$9, 0)","v":{"v":0,"d":"$0.00"}},{"$f":"IFERROR('MMA Rev-Exp Region 3'!$AD$49/'MMA Rev-Exp Region 3'!$AD$9, 0)","v":{"v":0,"d":"$0.00"}},{"$f":"IFERROR('MMA Rev-Exp Region 3'!$AE$49/'MMA Rev-Exp Region 3'!$AE$9, 0)","v":{"v":0,"d":"$0.00"}},{"$f":"IFERROR('MMA Rev-Exp Region 3'!$AF$49/'MMA Rev-Exp Region 3'!$AF$9, 0)","v":{"v":0,"d":"$0.00"}},{"$f":"IFERROR('MMA Rev-Exp Region 3'!$AG$49/'MMA Rev-Exp Region 3'!$AG$9, 0)","v":{"v":0,"d":"$0.00"}},{"$f":"IFERROR('MMA Rev-Exp Region 3'!$AH$49/'MMA Rev-Exp Region 3'!$AH$9, 0)","v":{"v":0,"d":"$0.00"}},{"$f":"IFERROR('MMA Rev-Exp Region 3'!$AI$49/'MMA Rev-Exp Region 3'!$AI$9, 0)","v":{"v":0,"d":"$0.00"}},{"$f":"IFERROR('MMA Rev-Exp Region 3'!$AJ$49/'MMA Rev-Exp Region 3'!$AJ$9, 0)","v":{"v":0,"d":"$0.00"}}]
["MMA",null,null,2016,"2016-12-31","Q3","2017-09-30","Region 3","Operating Expense","Medical Benefits Expense","Transportation Services",7.1,"Transportation FFS",{"$f":"IFERROR('MMA Rev-Exp Region 3'!$Z$51/'MMA Rev-Exp Region 3'!$Z$9, 0)","v":{"v":0,"d":"$0.00"}},{"$f":"IFERROR('MMA Rev-Exp Region 3'!$AA$51/'MMA Rev-Exp Region 3'!$AA$9, 0)","v":{"v":0,"d":"$0.00"}},{"$f":"IFERROR('MMA Rev-Exp Region 3'!$AB$51/'MMA Rev-Exp Region 3'!$AB$9, 0)","v":{"v":0,"d":"$0.00"}},{"$f":"IFERROR('MMA Rev-Exp Region 3'!$AC$51/'MMA Rev-Exp Region 3'!$AC$9, 0)","v":{"v":0,"d":"$0.00"}},{"$f":"IFERROR('MMA Rev-Exp Region 3'!$AD$51/'MMA Rev-Exp Region 3'!$AD$9, 0)","v":{"v":0,"d":"$0.00"}},{"$f":"IFERROR('MMA Rev-Exp Region 3'!$AE$51/'MMA Rev-Exp Region 3'!$AE$9, 0)","v":{"v":0,"d":"$0.00"}},{"$f":"IFERROR('MMA Rev-Exp Region 3'!$AF$51/'MMA Rev-Exp Region 3'!$AF$9, 0)","v":{"v":0,"d":"$0.00"}},{"$f":"IFERROR('MMA Rev-Exp Region 3'!$AG$51/'MMA Rev-Exp Region 3'!$AG$9, 0)","v":{"v":0,"d":"$0.00"}},{"$f":"IFERROR('MMA Rev-Exp Region 3'!$AH$51/'MMA Rev-Exp Region 3'!$AH$9, 0)","v":{"v":0,"d":"$0.00"}},{"$f":"IFERROR('MMA Rev-Exp Region 3'!$AI$51/'MMA Rev-Exp Region 3'!$AI$9, 0)","v":{"v":0,"d":"$0.00"}},{"$f":"IFERROR('MMA Rev-Exp Region 3'!$AJ$51/'MMA Rev-Exp Region 3'!$AJ$9, 0)","v":{"v":0,"d":"$0.00"}}]
["MMA",null,null,2016,"2016-12-31","Q3","2017-09-30","Region 3","Operating Expense","Medical Benefits Expense","Transportation Services",7.2,"Transportation Subcapitation",{"$f":"IFERROR('MMA Rev-Exp Region 3'!$Z$52/'MMA Rev-Exp Region 3'!$Z$9, 0)","v":{"v":0,"d":"$0.00"}},{"$f":"IFERROR('MMA Rev-Exp Region 3'!$AA$52/'MMA Rev-Exp Region 3'!$AA$9, 0)","v":{"v":0,"d":"$0.00"}},{"$f":"IFERROR('MMA Rev-Exp Region 3'!$AB$52/'MMA Rev-Exp Region 3'!$AB$9, 0)","v":{"v":0,"d":"$0.00"}},{"$f":"IFERROR('MMA Rev-Exp Region 3'!$AC$52/'MMA Rev-Exp Region 3'!$AC$9, 0)","v":{"v":0,"d":"$0.00"}},{"$f":"IFERROR('MMA Rev-Exp Region 3'!$AD$52/'MMA Rev-Exp Region 3'!$AD$9, 0)","v":{"v":0,"d":"$0.00"}},{"$f":"IFERROR('MMA Rev-Exp Region 3'!$AE$52/'MMA Rev-Exp Region 3'!$AE$9, 0)","v":{"v":0,"d":"$0.00"}},{"$f":"IFERROR('MMA Rev-Exp Region 3'!$AF$52/'MMA Rev-Exp Region 3'!$AF$9, 0)","v":{"v":0,"d":"$0.00"}},{"$f":"IFERROR('MMA Rev-Exp Region 3'!$AG$52/'MMA Rev-Exp Region 3'!$AG$9, 0)","v":{"v":0,"d":"$0.00"}},{"$f":"IFERROR('MMA Rev-Exp Region 3'!$AH$52/'MMA Rev-Exp Region 3'!$AH$9, 0)","v":{"v":0,"d":"$0.00"}},{"$f":"IFERROR('MMA Rev-Exp Region 3'!$AI$52/'MMA Rev-Exp Region 3'!$AI$9, 0)","v":{"v":0,"d":"$0.00"}},{"$f":"IFERROR('MMA Rev-Exp Region 3'!$AJ$52/'MMA Rev-Exp Region 3'!$AJ$9, 0)","v":{"v":0,"d":"$0.00"}}]
["MMA",null,null,2016,"2016-12-31","Q3","2017-09-30","Region 3","Operating Expense","Medical Benefits Expense","Transportation Services",7.3,"Ending IBNP for Transportation",{"$f":"IFERROR('MMA Rev-Exp Region 3'!$Z$53/'MMA Rev-Exp Region 3'!$Z$9, 0)","v":{"v":0,"d":"$0.00"}},{"$f":"IFERROR('MMA Rev-Exp Region 3'!$AA$53/'MMA Rev-Exp Region 3'!$AA$9, 0)","v":{"v":0,"d":"$0.00"}},{"$f":"IFERROR('MMA Rev-Exp Region 3'!$AB$53/'MMA Rev-Exp Region 3'!$AB$9, 0)","v":{"v":0,"d":"$0.00"}},{"$f":"IFERROR('MMA Rev-Exp Region 3'!$AC$53/'MMA Rev-Exp Region 3'!$AC$9, 0)","v":{"v":0,"d":"$0.00"}},{"$f":"IFERROR('MMA Rev-Exp Region 3'!$AD$53/'MMA Rev-Exp Region 3'!$AD$9, 0)","v":{"v":0,"d":"$0.00"}},{"$f":"IFERROR('MMA Rev-Exp Region 3'!$AE$53/'MMA Rev-Exp Region 3'!$AE$9, 0)","v":{"v":0,"d":"$0.00"}},{"$f":"IFERROR('MMA Rev-Exp Region 3'!$AF$53/'MMA Rev-Exp Region 3'!$AF$9, 0)","v":{"v":0,"d":"$0.00"}},{"$f":"IFERROR('MMA Rev-Exp Region 3'!$AG$53/'MMA Rev-Exp Region 3'!$AG$9, 0)","v":{"v":0,"d":"$0.00"}},{"$f":"IFERROR('MMA Rev-Exp Region 3'!$AH$53/'MMA Rev-Exp Region 3'!$AH$9, 0)","v":{"v":0,"d":"$0.00"}},{"$f":"IFERROR('MMA Rev-Exp Region 3'!$AI$53/'MMA Rev-Exp Region 3'!$AI$9, 0)","v":{"v":0,"d":"$0.00"}},{"$f":"IFERROR('MMA Rev-Exp Region 3'!$AJ$53/'MMA Rev-Exp Region 3'!$AJ$9, 0)","v":{"v":0,"d":"$0.00"}}]
["MMA",null,null,2016,"2016-12-31","Q3","2017-09-30","Region 3","Operating Expense","Medical Benefits Expense","Transportation Services","7.4","Transportation Settlements",{"$f":"IFERROR('MMA Rev-Exp Region 3'!$Z$54/'MMA Rev-Exp Region 3'!$Z$9, 0)","v":{"v":0,"d":"$0.00"}},{"$f":"IFERROR('MMA Rev-Exp Region 3'!$AA$54/'MMA Rev-Exp Region 3'!$AA$9, 0)","v":{"v":0,"d":"$0.00"}},{"$f":"IFERROR('MMA Rev-Exp Region 3'!$AB$54/'MMA Rev-Exp Region 3'!$AB$9, 0)","v":{"v":0,"d":"$0.00"}},{"$f":"IFERROR('MMA Rev-Exp Region 3'!$AC$54/'MMA Rev-Exp Region 3'!$AC$9, 0)","v":{"v":0,"d":"$0.00"}},{"$f":"IFERROR('MMA Rev-Exp Region 3'!$AD$54/'MMA Rev-Exp Region 3'!$AD$9, 0)","v":{"v":0,"d":"$0.00"}},{"$f":"IFERROR('MMA Rev-Exp Region 3'!$AE$54/'MMA Rev-Exp Region 3'!$AE$9, 0)","v":{"v":0,"d":"$0.00"}},{"$f":"IFERROR('MMA Rev-Exp Region 3'!$AF$54/'MMA Rev-Exp Region 3'!$AF$9, 0)","v":{"v":0,"d":"$0.00"}},{"$f":"IFERROR('MMA Rev-Exp Region 3'!$AG$54/'MMA Rev-Exp Region 3'!$AG$9, 0)","v":{"v":0,"d":"$0.00"}},{"$f":"IFERROR('MMA Rev-Exp Region 3'!$AH$54/'MMA Rev-Exp Region 3'!$AH$9, 0)","v":{"v":0,"d":"$0.00"}},{"$f":"IFERROR('MMA Rev-Exp Region 3'!$AI$54/'MMA Rev-Exp Region 3'!$AI$9, 0)","v":{"v":0,"d":"$0.00"}},{"$f":"IFERROR('MMA Rev-Exp Region 3'!$AJ$54/'MMA Rev-Exp Region 3'!$AJ$9, 0)","v":{"v":0,"d":"$0.00"}}]
["MMA",null,null,2016,"2016-12-31","Q3","2017-09-30","Region 3","Operating Expense","Medical Benefits Expense","Pharmacy Services",8.1,"Prescription Drugs FFS",{"$f":"IFERROR('MMA Rev-Exp Region 3'!$Z$56/'MMA Rev-Exp Region 3'!$Z$9, 0)","v":{"v":0,"d":"$0.00"}},{"$f":"IFERROR('MMA Rev-Exp Region 3'!$AA$56/'MMA Rev-Exp Region 3'!$AA$9, 0)","v":{"v":0,"d":"$0.00"}},{"$f":"IFERROR('MMA Rev-Exp Region 3'!$AB$56/'MMA Rev-Exp Region 3'!$AB$9, 0)","v":{"v":0,"d":"$0.00"}},{"$f":"IFERROR('MMA Rev-Exp Region 3'!$AC$56/'MMA Rev-Exp Region 3'!$AC$9, 0)","v":{"v":0,"d":"$0.00"}},{"$f":"IFERROR('MMA Rev-Exp Region 3'!$AD$56/'MMA Rev-Exp Region 3'!$AD$9, 0)","v":{"v":0,"d":"$0.00"}},{"$f":"IFERROR('MMA Rev-Exp Region 3'!$AE$56/'MMA Rev-Exp Region 3'!$AE$9, 0)","v":{"v":0,"d":"$0.00"}},{"$f":"IFERROR('MMA Rev-Exp Region 3'!$AF$56/'MMA Rev-Exp Region 3'!$AF$9, 0)","v":{"v":0,"d":"$0.00"}},{"$f":"IFERROR('MMA Rev-Exp Region 3'!$AG$56/'MMA Rev-Exp Region 3'!$AG$9, 0)","v":{"v":0,"d":"$0.00"}},{"$f":"IFERROR('MMA Rev-Exp Region 3'!$AH$56/'MMA Rev-Exp Region 3'!$AH$9, 0)","v":{"v":0,"d":"$0.00"}},{"$f":"IFERROR('MMA Rev-Exp Region 3'!$AI$56/'MMA Rev-Exp Region 3'!$AI$9, 0)","v":{"v":0,"d":"$0.00"}},{"$f":"IFERROR('MMA Rev-Exp Region 3'!$AJ$56/'MMA Rev-Exp Region 3'!$AJ$9, 0)","v":{"v":0,"d":"$0.00"}}]
["MMA",null,null,2016,"2016-12-31","Q3","2017-09-30","Region 3","Operating Expense","Medical Benefits Expense","Pharmacy Services","8.2","Hepatitis C Prescription Drug FFS",{"$f":"IFERROR('MMA Rev-Exp Region 3'!$Z$57/'MMA Rev-Exp Region 3'!$Z$9, 0)","v":{"v":0,"d":"$0.00"}},{"$f":"IFERROR('MMA Rev-Exp Region 3'!$AA$57/'MMA Rev-Exp Region 3'!$AA$9, 0)","v":{"v":0,"d":"$0.00"}},{"$f":"IFERROR('MMA Rev-Exp Region 3'!$AB$57/'MMA Rev-Exp Region 3'!$AB$9, 0)","v":{"v":0,"d":"$0.00"}},{"$f":"IFERROR('MMA Rev-Exp Region 3'!$AC$57/'MMA Rev-Exp Region 3'!$AC$9, 0)","v":{"v":0,"d":"$0.00"}},{"$f":"IFERROR('MMA Rev-Exp Region 3'!$AD$57/'MMA Rev-Exp Region 3'!$AD$9, 0)","v":{"v":0,"d":"$0.00"}},{"$f":"IFERROR('MMA Rev-Exp Region 3'!$AE$57/'MMA Rev-Exp Region 3'!$AE$9, 0)","v":{"v":0,"d":"$0.00"}},{"$f":"IFERROR('MMA Rev-Exp Region 3'!$AF$57/'MMA Rev-Exp Region 3'!$AF$9, 0)","v":{"v":0,"d":"$0.00"}},{"$f":"IFERROR('MMA Rev-Exp Region 3'!$AG$57/'MMA Rev-Exp Region 3'!$AG$9, 0)","v":{"v":0,"d":"$0.00"}},{"$f":"IFERROR('MMA Rev-Exp Region 3'!$AH$57/'MMA Rev-Exp Region 3'!$AH$9, 0)","v":{"v":0,"d":"$0.00"}},{"$f":"IFERROR('MMA Rev-Exp Region 3'!$AI$57/'MMA Rev-Exp Region 3'!$AI$9, 0)","v":{"v":0,"d":"$0.00"}},{"$f":"IFERROR('MMA Rev-Exp Region 3'!$AJ$57/'MMA Rev-Exp Region 3'!$AJ$9, 0)","v":{"v":0,"d":"$0.00"}}]
["MMA",null,null,2016,"2016-12-31","Q3","2017-09-30","Region 3","Operating Expense","Medical Benefits Expense","Pharmacy Services","8.3","Ending IBNP for Prescription Drugs",{"$f":"IFERROR('MMA Rev-Exp Region 3'!$Z$58/'MMA Rev-Exp Region 3'!$Z$9, 0)","v":{"v":0,"d":"$0.00"}},{"$f":"IFERROR('MMA Rev-Exp Region 3'!$AA$58/'MMA Rev-Exp Region 3'!$AA$9, 0)","v":{"v":0,"d":"$0.00"}},{"$f":"IFERROR('MMA Rev-Exp Region 3'!$AB$58/'MMA Rev-Exp Region 3'!$AB$9, 0)","v":{"v":0,"d":"$0.00"}},{"$f":"IFERROR('MMA Rev-Exp Region 3'!$AC$58/'MMA Rev-Exp Region 3'!$AC$9, 0)","v":{"v":0,"d":"$0.00"}},{"$f":"IFERROR('MMA Rev-Exp Region 3'!$AD$58/'MMA Rev-Exp Region 3'!$AD$9, 0)","v":{"v":0,"d":"$0.00"}},{"$f":"IFERROR('MMA Rev-Exp Region 3'!$AE$58/'MMA Rev-Exp Region 3'!$AE$9, 0)","v":{"v":0,"d":"$0.00"}},{"$f":"IFERROR('MMA Rev-Exp Region 3'!$AF$58/'MMA Rev-Exp Region 3'!$AF$9, 0)","v":{"v":0,"d":"$0.00"}},{"$f":"IFERROR('MMA Rev-Exp Region 3'!$AG$58/'MMA Rev-Exp Region 3'!$AG$9, 0)","v":{"v":0,"d":"$0.00"}},{"$f":"IFERROR('MMA Rev-Exp Region 3'!$AH$58/'MMA Rev-Exp Region 3'!$AH$9, 0)","v":{"v":0,"d":"$0.00"}},{"$f":"IFERROR('MMA Rev-Exp Region 3'!$AI$58/'MMA Rev-Exp Region 3'!$AI$9, 0)","v":{"v":0,"d":"$0.00"}},{"$f":"IFERROR('MMA Rev-Exp Region 3'!$AJ$58/'MMA Rev-Exp Region 3'!$AJ$9, 0)","v":{"v":0,"d":"$0.00"}}]
["MMA",null,null,2016,"2016-12-31","Q3","2017-09-30","Region 3","Operating Expense","Medical Benefits Expense","Pharmacy Services","8.4","Prescription Drug Rebates ",{"$f":"IFERROR('MMA Rev-Exp Region 3'!$Z$59/'MMA Rev-Exp Region 3'!$Z$9, 0)","v":{"v":0,"d":"$0.00"}},{"$f":"IFERROR('MMA Rev-Exp Region 3'!$AA$59/'MMA Rev-Exp Region 3'!$AA$9, 0)","v":{"v":0,"d":"$0.00"}},{"$f":"IFERROR('MMA Rev-Exp Region 3'!$AB$59/'MMA Rev-Exp Region 3'!$AB$9, 0)","v":{"v":0,"d":"$0.00"}},{"$f":"IFERROR('MMA Rev-Exp Region 3'!$AC$59/'MMA Rev-Exp Region 3'!$AC$9, 0)","v":{"v":0,"d":"$0.00"}},{"$f":"IFERROR('MMA Rev-Exp Region 3'!$AD$59/'MMA Rev-Exp Region 3'!$AD$9, 0)","v":{"v":0,"d":"$0.00"}},{"$f":"IFERROR('MMA Rev-Exp Region 3'!$AE$59/'MMA Rev-Exp Region 3'!$AE$9, 0)","v":{"v":0,"d":"$0.00"}},{"$f":"IFERROR('MMA Rev-Exp Region 3'!$AF$59/'MMA Rev-Exp Region 3'!$AF$9, 0)","v":{"v":0,"d":"$0.00"}},{"$f":"IFERROR('MMA Rev-Exp Region 3'!$AG$59/'MMA Rev-Exp Region 3'!$AG$9, 0)","v":{"v":0,"d":"$0.00"}},{"$f":"IFERROR('MMA Rev-Exp Region 3'!$AH$59/'MMA Rev-Exp Region 3'!$AH$9, 0)","v":{"v":0,"d":"$0.00"}},{"$f":"IFERROR('MMA Rev-Exp Region 3'!$AI$59/'MMA Rev-Exp Region 3'!$AI$9, 0)","v":{"v":0,"d":"$0.00"}},{"$f":"IFERROR('MMA Rev-Exp Region 3'!$AJ$59/'MMA Rev-Exp Region 3'!$AJ$9, 0)","v":{"v":0,"d":"$0.00"}}]
["MMA",null,null,2016,"2016-12-31","Q3","2017-09-30","Region 3","Operating Expense","Medical Benefits Expense","Pharmacy Services","8.5","Ending accrual for Rebates receivable",{"$f":"IFERROR('MMA Rev-Exp Region 3'!$Z$60/'MMA Rev-Exp Region 3'!$Z$9, 0)","v":{"v":0,"d":"$0.00"}},{"$f":"IFERROR('MMA Rev-Exp Region 3'!$AA$60/'MMA Rev-Exp Region 3'!$AA$9, 0)","v":{"v":0,"d":"$0.00"}},{"$f":"IFERROR('MMA Rev-Exp Region 3'!$AB$60/'MMA Rev-Exp Region 3'!$AB$9, 0)","v":{"v":0,"d":"$0.00"}},{"$f":"IFERROR('MMA Rev-Exp Region 3'!$AC$60/'MMA Rev-Exp Region 3'!$AC$9, 0)","v":{"v":0,"d":"$0.00"}},{"$f":"IFERROR('MMA Rev-Exp Region 3'!$AD$60/'MMA Rev-Exp Region 3'!$AD$9, 0)","v":{"v":0,"d":"$0.00"}},{"$f":"IFERROR('MMA Rev-Exp Region 3'!$AE$60/'MMA Rev-Exp Region 3'!$AE$9, 0)","v":{"v":0,"d":"$0.00"}},{"$f":"IFERROR('MMA Rev-Exp Region 3'!$AF$60/'MMA Rev-Exp Region 3'!$AF$9, 0)","v":{"v":0,"d":"$0.00"}},{"$f":"IFERROR('MMA Rev-Exp Region 3'!$AG$60/'MMA Rev-Exp Region 3'!$AG$9, 0)","v":{"v":0,"d":"$0.00"}},{"$f":"IFERROR('MMA Rev-Exp Region 3'!$AH$60/'MMA Rev-Exp Region 3'!$AH$9, 0)","v":{"v":0,"d":"$0.00"}},{"$f":"IFERROR('MMA Rev-Exp Region 3'!$AI$60/'MMA Rev-Exp Region 3'!$AI$9, 0)","v":{"v":0,"d":"$0.00"}},{"$f":"IFERROR('MMA Rev-Exp Region 3'!$AJ$60/'MMA Rev-Exp Region 3'!$AJ$9, 0)","v":{"v":0,"d":"$0.00"}}]
["MMA",null,null,2016,"2016-12-31","Q3","2017-09-30","Region 3","Operating Expense","Medical Benefits Expense","Pharmacy Services","8.6","Prescription Drugs Subcapitation",{"$f":"IFERROR('MMA Rev-Exp Region 3'!$Z$61/'MMA Rev-Exp Region 3'!$Z$9, 0)","v":{"v":0,"d":"$0.00"}},{"$f":"IFERROR('MMA Rev-Exp Region 3'!$AA$61/'MMA Rev-Exp Region 3'!$AA$9, 0)","v":{"v":0,"d":"$0.00"}},{"$f":"IFERROR('MMA Rev-Exp Region 3'!$AB$61/'MMA Rev-Exp Region 3'!$AB$9, 0)","v":{"v":0,"d":"$0.00"}},{"$f":"IFERROR('MMA Rev-Exp Region 3'!$AC$61/'MMA Rev-Exp Region 3'!$AC$9, 0)","v":{"v":0,"d":"$0.00"}},{"$f":"IFERROR('MMA Rev-Exp Region 3'!$AD$61/'MMA Rev-Exp Region 3'!$AD$9, 0)","v":{"v":0,"d":"$0.00"}},{"$f":"IFERROR('MMA Rev-Exp Region 3'!$AE$61/'MMA Rev-Exp Region 3'!$AE$9, 0)","v":{"v":0,"d":"$0.00"}},{"$f":"IFERROR('MMA Rev-Exp Region 3'!$AF$61/'MMA Rev-Exp Region 3'!$AF$9, 0)","v":{"v":0,"d":"$0.00"}},{"$f":"IFERROR('MMA Rev-Exp Region 3'!$AG$61/'MMA Rev-Exp Region 3'!$AG$9, 0)","v":{"v":0,"d":"$0.00"}},{"$f":"IFERROR('MMA Rev-Exp Region 3'!$AH$61/'MMA Rev-Exp Region 3'!$AH$9, 0)","v":{"v":0,"d":"$0.00"}},{"$f":"IFERROR('MMA Rev-Exp Region 3'!$AI$61/'MMA Rev-Exp Region 3'!$AI$9, 0)","v":{"v":0,"d":"$0.00"}},{"$f":"IFERROR('MMA Rev-Exp Region 3'!$AJ$61/'MMA Rev-Exp Region 3'!$AJ$9, 0)","v":{"v":0,"d":"$0.00"}}]
["MMA",null,null,2016,"2016-12-31","Q3","2017-09-30","Region 3","Operating Expense","Medical Benefits Expense","Pharmacy Services","8.7","Prescription Drug Settlements",{"$f":"IFERROR('MMA Rev-Exp Region 3'!$Z$62/'MMA Rev-Exp Region 3'!$Z$9, 0)","v":{"v":0,"d":"$0.00"}},{"$f":"IFERROR('MMA Rev-Exp Region 3'!$AA$62/'MMA Rev-Exp Region 3'!$AA$9, 0)","v":{"v":0,"d":"$0.00"}},{"$f":"IFERROR('MMA Rev-Exp Region 3'!$AB$62/'MMA Rev-Exp Region 3'!$AB$9, 0)","v":{"v":0,"d":"$0.00"}},{"$f":"IFERROR('MMA Rev-Exp Region 3'!$AC$62/'MMA Rev-Exp Region 3'!$AC$9, 0)","v":{"v":0,"d":"$0.00"}},{"$f":"IFERROR('MMA Rev-Exp Region 3'!$AD$62/'MMA Rev-Exp Region 3'!$AD$9, 0)","v":{"v":0,"d":"$0.00"}},{"$f":"IFERROR('MMA Rev-Exp Region 3'!$AE$62/'MMA Rev-Exp Region 3'!$AE$9, 0)","v":{"v":0,"d":"$0.00"}},{"$f":"IFERROR('MMA Rev-Exp Region 3'!$AF$62/'MMA Rev-Exp Region 3'!$AF$9, 0)","v":{"v":0,"d":"$0.00"}},{"$f":"IFERROR('MMA Rev-Exp Region 3'!$AG$62/'MMA Rev-Exp Region 3'!$AG$9, 0)","v":{"v":0,"d":"$0.00"}},{"$f":"IFERROR('MMA Rev-Exp Region 3'!$AH$62/'MMA Rev-Exp Region 3'!$AH$9, 0)","v":{"v":0,"d":"$0.00"}},{"$f":"IFERROR('MMA Rev-Exp Region 3'!$AI$62/'MMA Rev-Exp Region 3'!$AI$9, 0)","v":{"v":0,"d":"$0.00"}},{"$f":"IFERROR('MMA Rev-Exp Region 3'!$AJ$62/'MMA Rev-Exp Region 3'!$AJ$9, 0)","v":{"v":0,"d":"$0.00"}}]
["MMA",null,null,2016,"2016-12-31","Q3","2017-09-30","Region 3","Operating Expense","Medical Benefits Expense","Other MMA Services",9.1,"Home Health, Private Duty Nursing, Personal Care FFS",{"$f":"IFERROR('MMA Rev-Exp Region 3'!$Z$64/'MMA Rev-Exp Region 3'!$Z$9, 0)","v":{"v":0,"d":"$0.00"}},{"$f":"IFERROR('MMA Rev-Exp Region 3'!$AA$64/'MMA Rev-Exp Region 3'!$AA$9, 0)","v":{"v":0,"d":"$0.00"}},{"$f":"IFERROR('MMA Rev-Exp Region 3'!$AB$64/'MMA Rev-Exp Region 3'!$AB$9, 0)","v":{"v":0,"d":"$0.00"}},{"$f":"IFERROR('MMA Rev-Exp Region 3'!$AC$64/'MMA Rev-Exp Region 3'!$AC$9, 0)","v":{"v":0,"d":"$0.00"}},{"$f":"IFERROR('MMA Rev-Exp Region 3'!$AD$64/'MMA Rev-Exp Region 3'!$AD$9, 0)","v":{"v":0,"d":"$0.00"}},{"$f":"IFERROR('MMA Rev-Exp Region 3'!$AE$64/'MMA Rev-Exp Region 3'!$AE$9, 0)","v":{"v":0,"d":"$0.00"}},{"$f":"IFERROR('MMA Rev-Exp Region 3'!$AF$64/'MMA Rev-Exp Region 3'!$AF$9, 0)","v":{"v":0,"d":"$0.00"}},{"$f":"IFERROR('MMA Rev-Exp Region 3'!$AG$64/'MMA Rev-Exp Region 3'!$AG$9, 0)","v":{"v":0,"d":"$0.00"}},{"$f":"IFERROR('MMA Rev-Exp Region 3'!$AH$64/'MMA Rev-Exp Region 3'!$AH$9, 0)","v":{"v":0,"d":"$0.00"}},{"$f":"IFERROR('MMA Rev-Exp Region 3'!$AI$64/'MMA Rev-Exp Region 3'!$AI$9, 0)","v":{"v":0,"d":"$0.00"}},{"$f":"IFERROR('MMA Rev-Exp Region 3'!$AJ$64/'MMA Rev-Exp Region 3'!$AJ$9, 0)","v":{"v":0,"d":"$0.00"}}]
["MMA",null,null,2016,"2016-12-31","Q3","2017-09-30","Region 3","Operating Expense","Medical Benefits Expense","Other MMA Services","9.2","Hospice FFS",{"$f":"IFERROR('MMA Rev-Exp Region 3'!$Z$65/'MMA Rev-Exp Region 3'!$Z$9, 0)","v":{"v":0,"d":"$0.00"}},{"$f":"IFERROR('MMA Rev-Exp Region 3'!$AA$65/'MMA Rev-Exp Region 3'!$AA$9, 0)","v":{"v":0,"d":"$0.00"}},{"$f":"IFERROR('MMA Rev-Exp Region 3'!$AB$65/'MMA Rev-Exp Region 3'!$AB$9, 0)","v":{"v":0,"d":"$0.00"}},{"$f":"IFERROR('MMA Rev-Exp Region 3'!$AC$65/'MMA Rev-Exp Region 3'!$AC$9, 0)","v":{"v":0,"d":"$0.00"}},{"$f":"IFERROR('MMA Rev-Exp Region 3'!$AD$65/'MMA Rev-Exp Region 3'!$AD$9, 0)","v":{"v":0,"d":"$0.00"}},{"$f":"IFERROR('MMA Rev-Exp Region 3'!$AE$65/'MMA Rev-Exp Region 3'!$AE$9, 0)","v":{"v":0,"d":"$0.00"}},{"$f":"IFERROR('MMA Rev-Exp Region 3'!$AF$65/'MMA Rev-Exp Region 3'!$AF$9, 0)","v":{"v":0,"d":"$0.00"}},{"$f":"IFERROR('MMA Rev-Exp Region 3'!$AG$65/'MMA Rev-Exp Region 3'!$AG$9, 0)","v":{"v":0,"d":"$0.00"}},{"$f":"IFERROR('MMA Rev-Exp Region 3'!$AH$65/'MMA Rev-Exp Region 3'!$AH$9, 0)","v":{"v":0,"d":"$0.00"}},{"$f":"IFERROR('MMA Rev-Exp Region 3'!$AI$65/'MMA Rev-Exp Region 3'!$AI$9, 0)","v":{"v":0,"d":"$0.00"}},{"$f":"IFERROR('MMA Rev-Exp Region 3'!$AJ$65/'MMA Rev-Exp Region 3'!$AJ$9, 0)","v":{"v":0,"d":"$0.00"}}]
["MMA",null,null,2016,"2016-12-31","Q3","2017-09-30","Region 3","Operating Expense","Medical Benefits Expense","Other MMA Services","9.3","DME FFS",{"$f":"IFERROR('MMA Rev-Exp Region 3'!$Z$66/'MMA Rev-Exp Region 3'!$Z$9, 0)","v":{"v":0,"d":"$0.00"}},{"$f":"IFERROR('MMA Rev-Exp Region 3'!$AA$66/'MMA Rev-Exp Region 3'!$AA$9, 0)","v":{"v":0,"d":"$0.00"}},{"$f":"IFERROR('MMA Rev-Exp Region 3'!$AB$66/'MMA Rev-Exp Region 3'!$AB$9, 0)","v":{"v":0,"d":"$0.00"}},{"$f":"IFERROR('MMA Rev-Exp Region 3'!$AC$66/'MMA Rev-Exp Region 3'!$AC$9, 0)","v":{"v":0,"d":"$0.00"}},{"$f":"IFERROR('MMA Rev-Exp Region 3'!$AD$66/'MMA Rev-Exp Region 3'!$AD$9, 0)","v":{"v":0,"d":"$0.00"}},{"$f":"IFERROR('MMA Rev-Exp Region 3'!$AE$66/'MMA Rev-Exp Region 3'!$AE$9, 0)","v":{"v":0,"d":"$0.00"}},{"$f":"IFERROR('MMA Rev-Exp Region 3'!$AF$66/'MMA Rev-Exp Region 3'!$AF$9, 0)","v":{"v":0,"d":"$0.00"}},{"$f":"IFERROR('MMA Rev-Exp Region 3'!$AG$66/'MMA Rev-Exp Region 3'!$AG$9, 0)","v":{"v":0,"d":"$0.00"}},{"$f":"IFERROR('MMA Rev-Exp Region 3'!$AH$66/'MMA Rev-Exp Region 3'!$AH$9, 0)","v":{"v":0,"d":"$0.00"}},{"$f":"IFERROR('MMA Rev-Exp Region 3'!$AI$66/'MMA Rev-Exp Region 3'!$AI$9, 0)","v":{"v":0,"d":"$0.00"}},{"$f":"IFERROR('MMA Rev-Exp Region 3'!$AJ$66/'MMA Rev-Exp Region 3'!$AJ$9, 0)","v":{"v":0,"d":"$0.00"}}]
["MMA",null,null,2016,"2016-12-31","Q3","2017-09-30","Region 3","Operating Expense","Medical Benefits Expense","Other MMA Services","9.4","Other State Plan Services FFS",{"$f":"IFERROR('MMA Rev-Exp Region 3'!$Z$67/'MMA Rev-Exp Region 3'!$Z$9, 0)","v":{"v":0,"d":"$0.00"}},{"$f":"IFERROR('MMA Rev-Exp Region 3'!$AA$67/'MMA Rev-Exp Region 3'!$AA$9, 0)","v":{"v":0,"d":"$0.00"}},{"$f":"IFERROR('MMA Rev-Exp Region 3'!$AB$67/'MMA Rev-Exp Region 3'!$AB$9, 0)","v":{"v":0,"d":"$0.00"}},{"$f":"IFERROR('MMA Rev-Exp Region 3'!$AC$67/'MMA Rev-Exp Region 3'!$AC$9, 0)","v":{"v":0,"d":"$0.00"}},{"$f":"IFERROR('MMA Rev-Exp Region 3'!$AD$67/'MMA Rev-Exp Region 3'!$AD$9, 0)","v":{"v":0,"d":"$0.00"}},{"$f":"IFERROR('MMA Rev-Exp Region 3'!$AE$67/'MMA Rev-Exp Region 3'!$AE$9, 0)","v":{"v":0,"d":"$0.00"}},{"$f":"IFERROR('MMA Rev-Exp Region 3'!$AF$67/'MMA Rev-Exp Region 3'!$AF$9, 0)","v":{"v":0,"d":"$0.00"}},{"$f":"IFERROR('MMA Rev-Exp Region 3'!$AG$67/'MMA Rev-Exp Region 3'!$AG$9, 0)","v":{"v":0,"d":"$0.00"}},{"$f":"IFERROR('MMA Rev-Exp Region 3'!$AH$67/'MMA Rev-Exp Region 3'!$AH$9, 0)","v":{"v":0,"d":"$0.00"}},{"$f":"IFERROR('MMA Rev-Exp Region 3'!$AI$67/'MMA Rev-Exp Region 3'!$AI$9, 0)","v":{"v":0,"d":"$0.00"}},{"$f":"IFERROR('MMA Rev-Exp Region 3'!$AJ$67/'MMA Rev-Exp Region 3'!$AJ$9, 0)","v":{"v":0,"d":"$0.00"}}]
["MMA",null,null,2016,"2016-12-31","Q3","2017-09-30","Region 3","Operating Expense","Medical Benefits Expense","Other MMA Services","9.5","Other Services Subcapitation",{"$f":"IFERROR('MMA Rev-Exp Region 3'!$Z$68/'MMA Rev-Exp Region 3'!$Z$9, 0)","v":{"v":0,"d":"$0.00"}},{"$f":"IFERROR('MMA Rev-Exp Region 3'!$AA$68/'MMA Rev-Exp Region 3'!$AA$9, 0)","v":{"v":0,"d":"$0.00"}},{"$f":"IFERROR('MMA Rev-Exp Region 3'!$AB$68/'MMA Rev-Exp Region 3'!$AB$9, 0)","v":{"v":0,"d":"$0.00"}},{"$f":"IFERROR('MMA Rev-Exp Region 3'!$AC$68/'MMA Rev-Exp Region 3'!$AC$9, 0)","v":{"v":0,"d":"$0.00"}},{"$f":"IFERROR('MMA Rev-Exp Region 3'!$AD$68/'MMA Rev-Exp Region 3'!$AD$9, 0)","v":{"v":0,"d":"$0.00"}},{"$f":"IFERROR('MMA Rev-Exp Region 3'!$AE$68/'MMA Rev-Exp Region 3'!$AE$9, 0)","v":{"v":0,"d":"$0.00"}},{"$f":"IFERROR('MMA Rev-Exp Region 3'!$AF$68/'MMA Rev-Exp Region 3'!$AF$9, 0)","v":{"v":0,"d":"$0.00"}},{"$f":"IFERROR('MMA Rev-Exp Region 3'!$AG$68/'MMA Rev-Exp Region 3'!$AG$9, 0)","v":{"v":0,"d":"$0.00"}},{"$f":"IFERROR('MMA Rev-Exp Region 3'!$AH$68/'MMA Rev-Exp Region 3'!$AH$9, 0)","v":{"v":0,"d":"$0.00"}},{"$f":"IFERROR('MMA Rev-Exp Region 3'!$AI$68/'MMA Rev-Exp Region 3'!$AI$9, 0)","v":{"v":0,"d":"$0.00"}},{"$f":"IFERROR('MMA Rev-Exp Region 3'!$AJ$68/'MMA Rev-Exp Region 3'!$AJ$9, 0)","v":{"v":0,"d":"$0.00"}}]
["MMA",null,null,2016,"2016-12-31","Q3","2017-09-30","Region 3","Operating Expense","Medical Benefits Expense","Other MMA Services","9.6","Ending IBNP for Other Services",{"$f":"IFERROR('MMA Rev-Exp Region 3'!$Z$69/'MMA Rev-Exp Region 3'!$Z$9, 0)","v":{"v":0,"d":"$0.00"}},{"$f":"IFERROR('MMA Rev-Exp Region 3'!$AA$69/'MMA Rev-Exp Region 3'!$AA$9, 0)","v":{"v":0,"d":"$0.00"}},{"$f":"IFERROR('MMA Rev-Exp Region 3'!$AB$69/'MMA Rev-Exp Region 3'!$AB$9, 0)","v":{"v":0,"d":"$0.00"}},{"$f":"IFERROR('MMA Rev-Exp Region 3'!$AC$69/'MMA Rev-Exp Region 3'!$AC$9, 0)","v":{"v":0,"d":"$0.00"}},{"$f":"IFERROR('MMA Rev-Exp Region 3'!$AD$69/'MMA Rev-Exp Region 3'!$AD$9, 0)","v":{"v":0,"d":"$0.00"}},{"$f":"IFERROR('MMA Rev-Exp Region 3'!$AE$69/'MMA Rev-Exp Region 3'!$AE$9, 0)","v":{"v":0,"d":"$0.00"}},{"$f":"IFERROR('MMA Rev-Exp Region 3'!$AF$69/'MMA Rev-Exp Region 3'!$AF$9, 0)","v":{"v":0,"d":"$0.00"}},{"$f":"IFERROR('MMA Rev-Exp Region 3'!$AG$69/'MMA Rev-Exp Region 3'!$AG$9, 0)","v":{"v":0,"d":"$0.00"}},{"$f":"IFERROR('MMA Rev-Exp Region 3'!$AH$69/'MMA Rev-Exp Region 3'!$AH$9, 0)","v":{"v":0,"d":"$0.00"}},{"$f":"IFERROR('MMA Rev-Exp Region 3'!$AI$69/'MMA Rev-Exp Region 3'!$AI$9, 0)","v":{"v":0,"d":"$0.00"}},{"$f":"IFERROR('MMA Rev-Exp Region 3'!$AJ$69/'MMA Rev-Exp Region 3'!$AJ$9, 0)","v":{"v":0,"d":"$0.00"}}]
["MMA",null,null,2016,"2016-12-31","Q3","2017-09-30","Region 3","Operating Expense","Medical Benefits Expense","Other MMA Services","9.7","Other Services Settlements",{"$f":"IFERROR('MMA Rev-Exp Region 3'!$Z$70/'MMA Rev-Exp Region 3'!$Z$9, 0)","v":{"v":0,"d":"$0.00"}},{"$f":"IFERROR('MMA Rev-Exp Region 3'!$AA$70/'MMA Rev-Exp Region 3'!$AA$9, 0)","v":{"v":0,"d":"$0.00"}},{"$f":"IFERROR('MMA Rev-Exp Region 3'!$AB$70/'MMA Rev-Exp Region 3'!$AB$9, 0)","v":{"v":0,"d":"$0.00"}},{"$f":"IFERROR('MMA Rev-Exp Region 3'!$AC$70/'MMA Rev-Exp Region 3'!$AC$9, 0)","v":{"v":0,"d":"$0.00"}},{"$f":"IFERROR('MMA Rev-Exp Region 3'!$AD$70/'MMA Rev-Exp Region 3'!$AD$9, 0)","v":{"v":0,"d":"$0.00"}},{"$f":"IFERROR('MMA Rev-Exp Region 3'!$AE$70/'MMA Rev-Exp Region 3'!$AE$9, 0)","v":{"v":0,"d":"$0.00"}},{"$f":"IFERROR('MMA Rev-Exp Region 3'!$AF$70/'MMA Rev-Exp Region 3'!$AF$9, 0)","v":{"v":0,"d":"$0.00"}},{"$f":"IFERROR('MMA Rev-Exp Region 3'!$AG$70/'MMA Rev-Exp Region 3'!$AG$9, 0)","v":{"v":0,"d":"$0.00"}},{"$f":"IFERROR('MMA Rev-Exp Region 3'!$AH$70/'MMA Rev-Exp Region 3'!$AH$9, 0)","v":{"v":0,"d":"$0.00"}},{"$f":"IFERROR('MMA Rev-Exp Region 3'!$AI$70/'MMA Rev-Exp Region 3'!$AI$9, 0)","v":{"v":0,"d":"$0.00"}},{"$f":"IFERROR('MMA Rev-Exp Region 3'!$AJ$70/'MMA Rev-Exp Region 3'!$AJ$9, 0)","v":{"v":0,"d":"$0.00"}}]
["MMA",null,null,2016,"2016-12-31","Q3","2017-09-30","Region 3","Operating Expense","Medical Benefits Expense","Expanded Benefits","10.1","Expanded Benefits FFS",{"$f":"IFERROR('MMA Rev-Exp Region 3'!$Z$72/'MMA Rev-Exp Region 3'!$Z$9, 0)","v":{"v":0,"d":"$0.00"}},{"$f":"IFERROR('MMA Rev-Exp Region 3'!$AA$72/'MMA Rev-Exp Region 3'!$AA$9, 0)","v":{"v":0,"d":"$0.00"}},{"$f":"IFERROR('MMA Rev-Exp Region 3'!$AB$72/'MMA Rev-Exp Region 3'!$AB$9, 0)","v":{"v":0,"d":"$0.00"}},{"$f":"IFERROR('MMA Rev-Exp Region 3'!$AC$72/'MMA Rev-Exp Region 3'!$AC$9, 0)","v":{"v":0,"d":"$0.00"}},{"$f":"IFERROR('MMA Rev-Exp Region 3'!$AD$72/'MMA Rev-Exp Region 3'!$AD$9, 0)","v":{"v":0,"d":"$0.00"}},{"$f":"IFERROR('MMA Rev-Exp Region 3'!$AE$72/'MMA Rev-Exp Region 3'!$AE$9, 0)","v":{"v":0,"d":"$0.00"}},{"$f":"IFERROR('MMA Rev-Exp Region 3'!$AF$72/'MMA Rev-Exp Region 3'!$AF$9, 0)","v":{"v":0,"d":"$0.00"}},{"$f":"IFERROR('MMA Rev-Exp Region 3'!$AG$72/'MMA Rev-Exp Region 3'!$AG$9, 0)","v":{"v":0,"d":"$0.00"}},{"$f":"IFERROR('MMA Rev-Exp Region 3'!$AH$72/'MMA Rev-Exp Region 3'!$AH$9, 0)","v":{"v":0,"d":"$0.00"}},{"$f":"IFERROR('MMA Rev-Exp Region 3'!$AI$72/'MMA Rev-Exp Region 3'!$AI$9, 0)","v":{"v":0,"d":"$0.00"}},{"$f":"IFERROR('MMA Rev-Exp Region 3'!$AJ$72/'MMA Rev-Exp Region 3'!$AJ$9, 0)","v":{"v":0,"d":"$0.00"}}]
["MMA",null,null,2016,"2016-12-31","Q3","2017-09-30","Region 3","Operating Expense","Medical Benefits Expense","Expanded Benefits","10.2","Expanded benefits Subcapitation",{"$f":"IFERROR('MMA Rev-Exp Region 3'!$Z$73/'MMA Rev-Exp Region 3'!$Z$9, 0)","v":{"v":0,"d":"$0.00"}},{"$f":"IFERROR('MMA Rev-Exp Region 3'!$AA$73/'MMA Rev-Exp Region 3'!$AA$9, 0)","v":{"v":0,"d":"$0.00"}},{"$f":"IFERROR('MMA Rev-Exp Region 3'!$AB$73/'MMA Rev-Exp Region 3'!$AB$9, 0)","v":{"v":0,"d":"$0.00"}},{"$f":"IFERROR('MMA Rev-Exp Region 3'!$AC$73/'MMA Rev-Exp Region 3'!$AC$9, 0)","v":{"v":0,"d":"$0.00"}},{"$f":"IFERROR('MMA Rev-Exp Region 3'!$AD$73/'MMA Rev-Exp Region 3'!$AD$9, 0)","v":{"v":0,"d":"$0.00"}},{"$f":"IFERROR('MMA Rev-Exp Region 3'!$AE$73/'MMA Rev-Exp Region 3'!$AE$9, 0)","v":{"v":0,"d":"$0.00"}},{"$f":"IFERROR('MMA Rev-Exp Region 3'!$AF$73/'MMA Rev-Exp Region 3'!$AF$9, 0)","v":{"v":0,"d":"$0.00"}},{"$f":"IFERROR('MMA Rev-Exp Region 3'!$AG$73/'MMA Rev-Exp Region 3'!$AG$9, 0)","v":{"v":0,"d":"$0.00"}},{"$f":"IFERROR('MMA Rev-Exp Region 3'!$AH$73/'MMA Rev-Exp Region 3'!$AH$9, 0)","v":{"v":0,"d":"$0.00"}},{"$f":"IFERROR('MMA Rev-Exp Region 3'!$AI$73/'MMA Rev-Exp Region 3'!$AI$9, 0)","v":{"v":0,"d":"$0.00"}},{"$f":"IFERROR('MMA Rev-Exp Region 3'!$AJ$73/'MMA Rev-Exp Region 3'!$AJ$9, 0)","v":{"v":0,"d":"$0.00"}}]
["MMA",null,null,2016,"2016-12-31","Q3","2017-09-30","Region 3","Operating Expense","Medical Benefits Expense","Expanded Benefits","10.3","Ending IBNP for Expanded Benefits",{"$f":"IFERROR('MMA Rev-Exp Region 3'!$Z$74/'MMA Rev-Exp Region 3'!$Z$9, 0)","v":{"v":0,"d":"$0.00"}},{"$f":"IFERROR('MMA Rev-Exp Region 3'!$AA$74/'MMA Rev-Exp Region 3'!$AA$9, 0)","v":{"v":0,"d":"$0.00"}},{"$f":"IFERROR('MMA Rev-Exp Region 3'!$AB$74/'MMA Rev-Exp Region 3'!$AB$9, 0)","v":{"v":0,"d":"$0.00"}},{"$f":"IFERROR('MMA Rev-Exp Region 3'!$AC$74/'MMA Rev-Exp Region 3'!$AC$9, 0)","v":{"v":0,"d":"$0.00"}},{"$f":"IFERROR('MMA Rev-Exp Region 3'!$AD$74/'MMA Rev-Exp Region 3'!$AD$9, 0)","v":{"v":0,"d":"$0.00"}},{"$f":"IFERROR('MMA Rev-Exp Region 3'!$AE$74/'MMA Rev-Exp Region 3'!$AE$9, 0)","v":{"v":0,"d":"$0.00"}},{"$f":"IFERROR('MMA Rev-Exp Region 3'!$AF$74/'MMA Rev-Exp Region 3'!$AF$9, 0)","v":{"v":0,"d":"$0.00"}},{"$f":"IFERROR('MMA Rev-Exp Region 3'!$AG$74/'MMA Rev-Exp Region 3'!$AG$9, 0)","v":{"v":0,"d":"$0.00"}},{"$f":"IFERROR('MMA Rev-Exp Region 3'!$AH$74/'MMA Rev-Exp Region 3'!$AH$9, 0)","v":{"v":0,"d":"$0.00"}},{"$f":"IFERROR('MMA Rev-Exp Region 3'!$AI$74/'MMA Rev-Exp Region 3'!$AI$9, 0)","v":{"v":0,"d":"$0.00"}},{"$f":"IFERROR('MMA Rev-Exp Region 3'!$AJ$74/'MMA Rev-Exp Region 3'!$AJ$9, 0)","v":{"v":0,"d":"$0.00"}}]
["MMA",null,null,2016,"2016-12-31","Q3","2017-09-30","Region 3","Operating Expense","Medical Benefits Expense","Expanded Benefits","10.4","Expanded Benefits Settlements",{"$f":"IFERROR('MMA Rev-Exp Region 3'!$Z$75/'MMA Rev-Exp Region 3'!$Z$9, 0)","v":{"v":0,"d":"$0.00"}},{"$f":"IFERROR('MMA Rev-Exp Region 3'!$AA$75/'MMA Rev-Exp Region 3'!$AA$9, 0)","v":{"v":0,"d":"$0.00"}},{"$f":"IFERROR('MMA Rev-Exp Region 3'!$AB$75/'MMA Rev-Exp Region 3'!$AB$9, 0)","v":{"v":0,"d":"$0.00"}},{"$f":"IFERROR('MMA Rev-Exp Region 3'!$AC$75/'MMA Rev-Exp Region 3'!$AC$9, 0)","v":{"v":0,"d":"$0.00"}},{"$f":"IFERROR('MMA Rev-Exp Region 3'!$AD$75/'MMA Rev-Exp Region 3'!$AD$9, 0)","v":{"v":0,"d":"$0.00"}},{"$f":"IFERROR('MMA Rev-Exp Region 3'!$AE$75/'MMA Rev-Exp Region 3'!$AE$9, 0)","v":{"v":0,"d":"$0.00"}},{"$f":"IFERROR('MMA Rev-Exp Region 3'!$AF$75/'MMA Rev-Exp Region 3'!$AF$9, 0)","v":{"v":0,"d":"$0.00"}},{"$f":"IFERROR('MMA Rev-Exp Region 3'!$AG$75/'MMA Rev-Exp Region 3'!$AG$9, 0)","v":{"v":0,"d":"$0.00"}},{"$f":"IFERROR('MMA Rev-Exp Region 3'!$AH$75/'MMA Rev-Exp Region 3'!$AH$9, 0)","v":{"v":0,"d":"$0.00"}},{"$f":"IFERROR('MMA Rev-Exp Region 3'!$AI$75/'MMA Rev-Exp Region 3'!$AI$9, 0)","v":{"v":0,"d":"$0.00"}},{"$f":"IFERROR('MMA Rev-Exp Region 3'!$AJ$75/'MMA Rev-Exp Region 3'!$AJ$9, 0)","v":{"v":0,"d":"$0.00"}}]
["MMA",null,null,2016,"2016-12-31","Q3","2017-09-30","Region 3","Operating Expense","Medical Benefits Expense","Other Medical","11.5","TPL & Fraud/Abuse Recoveries",{"$f":"IFERROR('MMA Rev-Exp Region 3'!$Z$81/'MMA Rev-Exp Region 3'!$Z$9, 0)","v":{"v":0,"d":"$0.00"}},{"$f":"IFERROR('MMA Rev-Exp Region 3'!$AA$81/'MMA Rev-Exp Region 3'!$AA$9, 0)","v":{"v":0,"d":"$0.00"}},{"$f":"IFERROR('MMA Rev-Exp Region 3'!$AB$81/'MMA Rev-Exp Region 3'!$AB$9, 0)","v":{"v":0,"d":"$0.00"}},{"$f":"IFERROR('MMA Rev-Exp Region 3'!$AC$81/'MMA Rev-Exp Region 3'!$AC$9, 0)","v":{"v":0,"d":"$0.00"}},{"$f":"IFERROR('MMA Rev-Exp Region 3'!$AD$81/'MMA Rev-Exp Region 3'!$AD$9, 0)","v":{"v":0,"d":"$0.00"}},{"$f":"IFERROR('MMA Rev-Exp Region 3'!$AE$81/'MMA Rev-Exp Region 3'!$AE$9, 0)","v":{"v":0,"d":"$0.00"}},{"$f":"IFERROR('MMA Rev-Exp Region 3'!$AF$81/'MMA Rev-Exp Region 3'!$AF$9, 0)","v":{"v":0,"d":"$0.00"}},{"$f":"IFERROR('MMA Rev-Exp Region 3'!$AG$81/'MMA Rev-Exp Region 3'!$AG$9, 0)","v":{"v":0,"d":"$0.00"}},{"$f":"IFERROR('MMA Rev-Exp Region 3'!$AH$81/'MMA Rev-Exp Region 3'!$AH$9, 0)","v":{"v":0,"d":"$0.00"}},{"$f":"IFERROR('MMA Rev-Exp Region 3'!$AI$81/'MMA Rev-Exp Region 3'!$AI$9, 0)","v":{"v":0,"d":"$0.00"}},{"$f":"IFERROR('MMA Rev-Exp Region 3'!$AJ$81/'MMA Rev-Exp Region 3'!$AJ$9, 0)","v":{"v":0,"d":"$0.00"}}]
["MMA",null,null,2016,"2016-12-31","Q3","2017-09-30","Region 3","Operating Expense","Medical Benefits Expense","Other Medical","11.6.1","Premium Deficiency Reserve",{"$f":"IFERROR('MMA Rev-Exp Region 3'!$Z$82/'MMA Rev-Exp Region 3'!$Z$9, 0)","v":{"v":0,"d":"$0.00"}},{"$f":"IFERROR('MMA Rev-Exp Region 3'!$AA$82/'MMA Rev-Exp Region 3'!$AA$9, 0)","v":{"v":0,"d":"$0.00"}},{"$f":"IFERROR('MMA Rev-Exp Region 3'!$AB$82/'MMA Rev-Exp Region 3'!$AB$9, 0)","v":{"v":0,"d":"$0.00"}},{"$f":"IFERROR('MMA Rev-Exp Region 3'!$AC$82/'MMA Rev-Exp Region 3'!$AC$9, 0)","v":{"v":0,"d":"$0.00"}},{"$f":"IFERROR('MMA Rev-Exp Region 3'!$AD$82/'MMA Rev-Exp Region 3'!$AD$9, 0)","v":{"v":0,"d":"$0.00"}},{"$f":"IFERROR('MMA Rev-Exp Region 3'!$AE$82/'MMA Rev-Exp Region 3'!$AE$9, 0)","v":{"v":0,"d":"$0.00"}},{"$f":"IFERROR('MMA Rev-Exp Region 3'!$AF$82/'MMA Rev-Exp Region 3'!$AF$9, 0)","v":{"v":0,"d":"$0.00"}},{"$f":"IFERROR('MMA Rev-Exp Region 3'!$AG$82/'MMA Rev-Exp Region 3'!$AG$9, 0)","v":{"v":0,"d":"$0.00"}},{"$f":"IFERROR('MMA Rev-Exp Region 3'!$AH$82/'MMA Rev-Exp Region 3'!$AH$9, 0)","v":{"v":0,"d":"$0.00"}},{"$f":"IFERROR('MMA Rev-Exp Region 3'!$AI$82/'MMA Rev-Exp Region 3'!$AI$9, 0)","v":{"v":0,"d":"$0.00"}},{"$f":"IFERROR('MMA Rev-Exp Region 3'!$AJ$82/'MMA Rev-Exp Region 3'!$AJ$9, 0)","v":{"v":0,"d":"$0.00"}}]
["MMA",null,null,2016,"2016-12-31","Q3","2017-09-30","Region 3","Operating Expense","Medical Benefits Expense","Other Medical","11.8","Reinsurance Premiums",{"$f":"IFERROR('MMA Rev-Exp Region 3'!$Z$84/'MMA Rev-Exp Region 3'!$Z$9, 0)","v":{"v":0,"d":"$0.00"}},{"$f":"IFERROR('MMA Rev-Exp Region 3'!$AA$84/'MMA Rev-Exp Region 3'!$AA$9, 0)","v":{"v":0,"d":"$0.00"}},{"$f":"IFERROR('MMA Rev-Exp Region 3'!$AB$84/'MMA Rev-Exp Region 3'!$AB$9, 0)","v":{"v":0,"d":"$0.00"}},{"$f":"IFERROR('MMA Rev-Exp Region 3'!$AC$84/'MMA Rev-Exp Region 3'!$AC$9, 0)","v":{"v":0,"d":"$0.00"}},{"$f":"IFERROR('MMA Rev-Exp Region 3'!$AD$84/'MMA Rev-Exp Region 3'!$AD$9, 0)","v":{"v":0,"d":"$0.00"}},{"$f":"IFERROR('MMA Rev-Exp Region 3'!$AE$84/'MMA Rev-Exp Region 3'!$AE$9, 0)","v":{"v":0,"d":"$0.00"}},{"$f":"IFERROR('MMA Rev-Exp Region 3'!$AF$84/'MMA Rev-Exp Region 3'!$AF$9, 0)","v":{"v":0,"d":"$0.00"}},{"$f":"IFERROR('MMA Rev-Exp Region 3'!$AG$84/'MMA Rev-Exp Region 3'!$AG$9, 0)","v":{"v":0,"d":"$0.00"}},{"$f":"IFERROR('MMA Rev-Exp Region 3'!$AH$84/'MMA Rev-Exp Region 3'!$AH$9, 0)","v":{"v":0,"d":"$0.00"}},{"$f":"IFERROR('MMA Rev-Exp Region 3'!$AI$84/'MMA Rev-Exp Region 3'!$AI$9, 0)","v":{"v":0,"d":"$0.00"}},{"$f":"IFERROR('MMA Rev-Exp Region 3'!$AJ$84/'MMA Rev-Exp Region 3'!$AJ$9, 0)","v":{"v":0,"d":"$0.00"}}]
["MMA",null,null,2016,"2016-12-31","Q3","2017-09-30","Region 3","Operating Expense","Medical Benefits Expense","Other Medical","11.9","Reinsurance Recoveries",{"$f":"IFERROR('MMA Rev-Exp Region 3'!$Z$85/'MMA Rev-Exp Region 3'!$Z$9, 0)","v":{"v":0,"d":"$0.00"}},{"$f":"IFERROR('MMA Rev-Exp Region 3'!$AA$85/'MMA Rev-Exp Region 3'!$AA$9, 0)","v":{"v":0,"d":"$0.00"}},{"$f":"IFERROR('MMA Rev-Exp Region 3'!$AB$85/'MMA Rev-Exp Region 3'!$AB$9, 0)","v":{"v":0,"d":"$0.00"}},{"$f":"IFERROR('MMA Rev-Exp Region 3'!$AC$85/'MMA Rev-Exp Region 3'!$AC$9, 0)","v":{"v":0,"d":"$0.00"}},{"$f":"IFERROR('MMA Rev-Exp Region 3'!$AD$85/'MMA Rev-Exp Region 3'!$AD$9, 0)","v":{"v":0,"d":"$0.00"}},{"$f":"IFERROR('MMA Rev-Exp Region 3'!$AE$85/'MMA Rev-Exp Region 3'!$AE$9, 0)","v":{"v":0,"d":"$0.00"}},{"$f":"IFERROR('MMA Rev-Exp Region 3'!$AF$85/'MMA Rev-Exp Region 3'!$AF$9, 0)","v":{"v":0,"d":"$0.00"}},{"$f":"IFERROR('MMA Rev-Exp Region 3'!$AG$85/'MMA Rev-Exp Region 3'!$AG$9, 0)","v":{"v":0,"d":"$0.00"}},{"$f":"IFERROR('MMA Rev-Exp Region 3'!$AH$85/'MMA Rev-Exp Region 3'!$AH$9, 0)","v":{"v":0,"d":"$0.00"}},{"$f":"IFERROR('MMA Rev-Exp Region 3'!$AI$85/'MMA Rev-Exp Region 3'!$AI$9, 0)","v":{"v":0,"d":"$0.00"}},{"$f":"IFERROR('MMA Rev-Exp Region 3'!$AJ$85/'MMA Rev-Exp Region 3'!$AJ$9, 0)","v":{"v":0,"d":"$0.00"}}]
["MMA",null,null,2016,"2016-12-31","Q3","2017-09-30","Region 3","Operating Expense","Administrative Expense","Administrative","12.1","Salaries & Benefits",{"$f":"IFERROR('MMA Rev-Exp Region 3'!$Z$90/'MMA Rev-Exp Region 3'!$Z$9, 0)","v":{"v":0,"d":"$0.00"}},{"$f":"IFERROR('MMA Rev-Exp Region 3'!$AA$90/'MMA Rev-Exp Region 3'!$Z$9, 0)","v":{"v":0,"d":"$0.00"}},{"$f":"IFERROR('MMA Rev-Exp Region 3'!$AB$90/'MMA Rev-Exp Region 3'!$Z$9, 0)","v":{"v":0,"d":"$0.00"}}]
["MMA",null,null,2016,"2016-12-31","Q3","2017-09-30","Region 3","Operating Expense","Administrative Expense","Administrative","12.2","Administrative Services",{"$f":"IFERROR('MMA Rev-Exp Region 3'!$Z$91/'MMA Rev-Exp Region 3'!$Z$9, 0)","v":{"v":0,"d":"$0.00"}},{"$f":"IFERROR('MMA Rev-Exp Region 3'!$AA$91/'MMA Rev-Exp Region 3'!$Z$9, 0)","v":{"v":0,"d":"$0.00"}},{"$f":"IFERROR('MMA Rev-Exp Region 3'!$AB$91/'MMA Rev-Exp Region 3'!$Z$9, 0)","v":{"v":0,"d":"$0.00"}}]
["MMA",null,null,2016,"2016-12-31","Q3","2017-09-30","Region 3","Operating Expense","Administrative Expense","Administrative","12.3","Information Systems",{"$f":"IFERROR('MMA Rev-Exp Region 3'!$Z$92/'MMA Rev-Exp Region 3'!$Z$9, 0)","v":{"v":0,"d":"$0.00"}},{"$f":"IFERROR('MMA Rev-Exp Region 3'!$AA$92/'MMA Rev-Exp Region 3'!$Z$9, 0)","v":{"v":0,"d":"$0.00"}},{"$f":"IFERROR('MMA Rev-Exp Region 3'!$AB$92/'MMA Rev-Exp Region 3'!$Z$9, 0)","v":{"v":0,"d":"$0.00"}}]
["MMA",null,null,2016,"2016-12-31","Q3","2017-09-30","Region 3","Operating Expense","Administrative Expense","Administrative","12.4","Marketing Expenses",{"$f":"IFERROR('MMA Rev-Exp Region 3'!$Z$93/'MMA Rev-Exp Region 3'!$Z$9, 0)","v":{"v":0,"d":"$0.00"}},{"$f":"IFERROR('MMA Rev-Exp Region 3'!$AA$93/'MMA Rev-Exp Region 3'!$Z$9, 0)","v":{"v":0,"d":"$0.00"}},{"$f":"IFERROR('MMA Rev-Exp Region 3'!$AB$93/'MMA Rev-Exp Region 3'!$Z$9, 0)","v":{"v":0,"d":"$0.00"}}]
["MMA",null,null,2016,"2016-12-31","Q3","2017-09-30","Region 3","Operating Expense","Administrative Expense","Administrative","12.5","General  Administration",{"$f":"IFERROR('MMA Rev-Exp Region 3'!$Z$94/'MMA Rev-Exp Region 3'!$Z$9, 0)","v":{"v":0,"d":"$0.00"}},{"$f":"IFERROR('MMA Rev-Exp Region 3'!$AA$94/'MMA Rev-Exp Region 3'!$Z$9, 0)","v":{"v":0,"d":"$0.00"}},{"$f":"IFERROR('MMA Rev-Exp Region 3'!$AB$94/'MMA Rev-Exp Region 3'!$Z$9, 0)","v":{"v":0,"d":"$0.00"}}]
["MMA",null,null,2016,"2016-12-31","Q3","2017-09-30","Region 3","Operating Expense","Administrative Expense","Administrative","12.6","Compliance/Regulatory",{"$f":"IFERROR('MMA Rev-Exp Region 3'!$Z$95/'MMA Rev-Exp Region 3'!$Z$9, 0)","v":{"v":0,"d":"$0.00"}},{"$f":"IFERROR('MMA Rev-Exp Region 3'!$AA$95/'MMA Rev-Exp Region 3'!$Z$9, 0)","v":{"v":0,"d":"$0.00"}},{"$f":"IFERROR('MMA Rev-Exp Region 3'!$AB$95/'MMA Rev-Exp Region 3'!$Z$9, 0)","v":{"v":0,"d":"$0.00"}}]
["MMA",null,null,2016,"2016-12-31","Q3","2017-09-30","Region 3","Operating Expense","Taxes & Fees","Taxes & Fees","13.1","State Premium tax",{"$f":"IFERROR('MMA Rev-Exp Region 3'!$Z$97/'MMA Rev-Exp Region 3'!$Z$9, 0)","v":{"v":0,"d":"$0.00"}}]
["MMA",null,null,2016,"2016-12-31","Q3","2017-09-30","Region 3","Operating Expense","Taxes & Fees","Taxes & Fees","13.2","Department of Insurance Assessments",{"$f":"IFERROR('MMA Rev-Exp Region 3'!$Z$98/'MMA Rev-Exp Region 3'!$Z$9, 0)","v":{"v":0,"d":"$0.00"}}]
["MMA",null,null,2016,"2016-12-31","Q3","2017-09-30","Region 3","Operating Expense","Taxes & Fees","Taxes & Fees","13.3","Section 9010 Health Insurance Providers Fee",{"$f":"IFERROR('MMA Rev-Exp Region 3'!$Z$99/'MMA Rev-Exp Region 3'!$Z$9, 0)","v":{"v":0,"d":"$0.00"}}]
["MMA",null,null,2016,"2016-12-31","Q3","2017-09-30","Region 3","Non-Operating Expense","Income Tax Expense","Income Tax Expense","16.0","Income Tax Expense",{"$f":"IFERROR('MMA Rev-Exp Region 3'!$Z$106/'MMA Rev-Exp Region 3'!$Z$9, 0)","v":{"v":0,"d":"$0.00"}}]
["MMA",null,null,2016,"2016-12-31","Q4","2017-12-31","Region 3","Operating Revenue","Capitation","Capitation",1.1,"Capitation",{"$f":"IFERROR('MMA Rev-Exp Region 3'!$AK$11/'MMA Rev-Exp Region 3'!$AK$9, 0)","v":{"v":0,"d":"$0.00"}},{"$f":"IFERROR('MMA Rev-Exp Region 3'!$AL$11/'MMA Rev-Exp Region 3'!$AL$9, 0)","v":{"v":0,"d":"$0.00"}},{"$f":"IFERROR('MMA Rev-Exp Region 3'!$AM$11/'MMA Rev-Exp Region 3'!$AM$9, 0)","v":{"v":0,"d":"$0.00"}},{"$f":"IFERROR('MMA Rev-Exp Region 3'!$AN$11/'MMA Rev-Exp Region 3'!$AN$9, 0)","v":{"v":0,"d":"$0.00"}},{"$f":"IFERROR('MMA Rev-Exp Region 3'!$AO$11/'MMA Rev-Exp Region 3'!$AO$9, 0)","v":{"v":0,"d":"$0.00"}},{"$f":"IFERROR('MMA Rev-Exp Region 3'!$AP$11/'MMA Rev-Exp Region 3'!$AP$9, 0)","v":{"v":0,"d":"$0.00"}},{"$f":"IFERROR('MMA Rev-Exp Region 3'!$AQ$11/'MMA Rev-Exp Region 3'!$AQ$9, 0)","v":{"v":0,"d":"$0.00"}},{"$f":"IFERROR('MMA Rev-Exp Region 3'!$AR$11/'MMA Rev-Exp Region 3'!$AR$9, 0)","v":{"v":0,"d":"$0.00"}},{"$f":"IFERROR('MMA Rev-Exp Region 3'!$AS$11/'MMA Rev-Exp Region 3'!$AS$9, 0)","v":{"v":0,"d":"$0.00"}},{"$f":"IFERROR('MMA Rev-Exp Region 3'!$AT$11/'MMA Rev-Exp Region 3'!$AT$9, 0)","v":{"v":0,"d":"$0.00"}},{"$f":"IFERROR('MMA Rev-Exp Region 3'!$AU$11/'MMA Rev-Exp Region 3'!$AU$9, 0)","v":{"v":0,"d":"$0.00"}}]
["MMA",null,null,2016,"2016-12-31","Q4","2017-12-31","Region 3","Operating Revenue","Kick Payments","Kick Payments - Transplant",1.2,"Transplant Kick Payments",{"$f":"IFERROR('MMA Rev-Exp Region 3'!$AK$12/'MMA Rev-Exp Region 3'!$AK$9, 0)","v":{"v":0,"d":"$0.00"}},{"$f":"IFERROR('MMA Rev-Exp Region 3'!$AL$12/'MMA Rev-Exp Region 3'!$AL$9, 0)","v":{"v":0,"d":"$0.00"}},{"$f":"IFERROR('MMA Rev-Exp Region 3'!$AM$12/'MMA Rev-Exp Region 3'!$AM$9, 0)","v":{"v":0,"d":"$0.00"}},{"$f":"IFERROR('MMA Rev-Exp Region 3'!$AN$12/'MMA Rev-Exp Region 3'!$AN$9, 0)","v":{"v":0,"d":"$0.00"}},{"$f":"IFERROR('MMA Rev-Exp Region 3'!$AO$12/'MMA Rev-Exp Region 3'!$AO$9, 0)","v":{"v":0,"d":"$0.00"}},{"$f":"IFERROR('MMA Rev-Exp Region 3'!$AP$12/'MMA Rev-Exp Region 3'!$AP$9, 0)","v":{"v":0,"d":"$0.00"}},{"$f":"IFERROR('MMA Rev-Exp Region 3'!$AQ$12/'MMA Rev-Exp Region 3'!$AQ$9, 0)","v":{"v":0,"d":"$0.00"}},{"$f":"IFERROR('MMA Rev-Exp Region 3'!$AR$12/'MMA Rev-Exp Region 3'!$AR$9, 0)","v":{"v":0,"d":"$0.00"}},{"$f":"IFERROR('MMA Rev-Exp Region 3'!$AS$12/'MMA Rev-Exp Region 3'!$AS$9, 0)","v":{"v":0,"d":"$0.00"}},{"$f":"IFERROR('MMA Rev-Exp Region 3'!$AT$12/'MMA Rev-Exp Region 3'!$AT$9, 0)","v":{"v":0,"d":"$0.00"}},{"$f":"IFERROR('MMA Rev-Exp Region 3'!$AU$12/'MMA Rev-Exp Region 3'!$AU$9, 0)","v":{"v":0,"d":"$0.00"}}]
["MMA",null,null,2016,"2016-12-31","Q4","2017-12-31","Region 3","Operating Revenue","Kick Payments","Kick Payments - Hep C","1.3","Hepatitis C Kick Payments",{"$f":"IFERROR('MMA Rev-Exp Region 3'!$AK$13/'MMA Rev-Exp Region 3'!$AK$9, 0)","v":{"v":0,"d":"$0.00"}},{"$f":"IFERROR('MMA Rev-Exp Region 3'!$AL$13/'MMA Rev-Exp Region 3'!$AL$9, 0)","v":{"v":0,"d":"$0.00"}},{"$f":"IFERROR('MMA Rev-Exp Region 3'!$AM$13/'MMA Rev-Exp Region 3'!$AM$9, 0)","v":{"v":0,"d":"$0.00"}},{"$f":"IFERROR('MMA Rev-Exp Region 3'!$AN$13/'MMA Rev-Exp Region 3'!$AN$9, 0)","v":{"v":0,"d":"$0.00"}},{"$f":"IFERROR('MMA Rev-Exp Region 3'!$AO$13/'MMA Rev-Exp Region 3'!$AO$9, 0)","v":{"v":0,"d":"$0.00"}},{"$f":"IFERROR('MMA Rev-Exp Region 3'!$AP$13/'MMA Rev-Exp Region 3'!$AP$9, 0)","v":{"v":0,"d":"$0.00"}},{"$f":"IFERROR('MMA Rev-Exp Region 3'!$AQ$13/'MMA Rev-Exp Region 3'!$AQ$9, 0)","v":{"v":0,"d":"$0.00"}},{"$f":"IFERROR('MMA Rev-Exp Region 3'!$AR$13/'MMA Rev-Exp Region 3'!$AR$9, 0)","v":{"v":0,"d":"$0.00"}},{"$f":"IFERROR('MMA Rev-Exp Region 3'!$AS$13/'MMA Rev-Exp Region 3'!$AS$9, 0)","v":{"v":0,"d":"$0.00"}},{"$f":"IFERROR('MMA Rev-Exp Region 3'!$AT$13/'MMA Rev-Exp Region 3'!$AT$9, 0)","v":{"v":0,"d":"$0.00"}},{"$f":"IFERROR('MMA Rev-Exp Region 3'!$AU$13/'MMA Rev-Exp Region 3'!$AU$9, 0)","v":{"v":0,"d":"$0.00"}}]
["MMA",null,null,2016,"2016-12-31","Q4","2017-12-31","Region 3","Operating Revenue","Kick Payments","Kick Payments - Maternity","1.4.1","Maternity Kick Payments",{"$f":"IFERROR('MMA Rev-Exp Region 3'!$AK$14/'MMA Rev-Exp Region 3'!$AK$9, 0)","v":{"v":0,"d":"$0.00"}},{"$f":"IFERROR('MMA Rev-Exp Region 3'!$AL$14/'MMA Rev-Exp Region 3'!$AL$9, 0)","v":{"v":0,"d":"$0.00"}},{"$f":"IFERROR('MMA Rev-Exp Region 3'!$AM$14/'MMA Rev-Exp Region 3'!$AM$9, 0)","v":{"v":0,"d":"$0.00"}},{"$f":"IFERROR('MMA Rev-Exp Region 3'!$AN$14/'MMA Rev-Exp Region 3'!$AN$9, 0)","v":{"v":0,"d":"$0.00"}},{"$f":"IFERROR('MMA Rev-Exp Region 3'!$AO$14/'MMA Rev-Exp Region 3'!$AO$9, 0)","v":{"v":0,"d":"$0.00"}},{"$f":"IFERROR('MMA Rev-Exp Region 3'!$AP$14/'MMA Rev-Exp Region 3'!$AP$9, 0)","v":{"v":0,"d":"$0.00"}},{"$f":"IFERROR('MMA Rev-Exp Region 3'!$AQ$14/'MMA Rev-Exp Region 3'!$AQ$9, 0)","v":{"v":0,"d":"$0.00"}},{"$f":"IFERROR('MMA Rev-Exp Region 3'!$AR$14/'MMA Rev-Exp Region 3'!$AR$9, 0)","v":{"v":0,"d":"$0.00"}},{"$f":"IFERROR('MMA Rev-Exp Region 3'!$AS$14/'MMA Rev-Exp Region 3'!$AS$9, 0)","v":{"v":0,"d":"$0.00"}},{"$f":"IFERROR('MMA Rev-Exp Region 3'!$AT$14/'MMA Rev-Exp Region 3'!$AT$9, 0)","v":{"v":0,"d":"$0.00"}},{"$f":"IFERROR('MMA Rev-Exp Region 3'!$AU$14/'MMA Rev-Exp Region 3'!$AU$9, 0)","v":{"v":0,"d":"$0.00"}}]
["MMA",null,null,2016,"2016-12-31","Q4","2017-12-31","Region 3","Operating Revenue","Other Revenue","Other Revenue - 9010","1.5","ACA § 9010 related payments",{"$f":"IFERROR('MMA Rev-Exp Region 3'!$AK$15/'MMA Rev-Exp Region 3'!$AK$9, 0)","v":{"v":0,"d":"$0.00"}},{"$f":"IFERROR('MMA Rev-Exp Region 3'!$AL$15/'MMA Rev-Exp Region 3'!$AL$9, 0)","v":{"v":0,"d":"$0.00"}},{"$f":"IFERROR('MMA Rev-Exp Region 3'!$AM$15/'MMA Rev-Exp Region 3'!$AM$9, 0)","v":{"v":0,"d":"$0.00"}},{"$f":"IFERROR('MMA Rev-Exp Region 3'!$AN$15/'MMA Rev-Exp Region 3'!$AN$9, 0)","v":{"v":0,"d":"$0.00"}},{"$f":"IFERROR('MMA Rev-Exp Region 3'!$AO$15/'MMA Rev-Exp Region 3'!$AO$9, 0)","v":{"v":0,"d":"$0.00"}},{"$f":"IFERROR('MMA Rev-Exp Region 3'!$AP$15/'MMA Rev-Exp Region 3'!$AP$9, 0)","v":{"v":0,"d":"$0.00"}},{"$f":"IFERROR('MMA Rev-Exp Region 3'!$AQ$15/'MMA Rev-Exp Region 3'!$AQ$9, 0)","v":{"v":0,"d":"$0.00"}},{"$f":"IFERROR('MMA Rev-Exp Region 3'!$AR$15/'MMA Rev-Exp Region 3'!$AR$9, 0)","v":{"v":0,"d":"$0.00"}},{"$f":"IFERROR('MMA Rev-Exp Region 3'!$AS$15/'MMA Rev-Exp Region 3'!$AS$9, 0)","v":{"v":0,"d":"$0.00"}},{"$f":"IFERROR('MMA Rev-Exp Region 3'!$AT$15/'MMA Rev-Exp Region 3'!$AT$9, 0)","v":{"v":0,"d":"$0.00"}},{"$f":"IFERROR('MMA Rev-Exp Region 3'!$AU$15/'MMA Rev-Exp Region 3'!$AU$9, 0)","v":{"v":0,"d":"$0.00"}}]
["MMA",null,null,2016,"2016-12-31","Q4","2017-12-31","Region 3","Operating Revenue","Other Revenue","Other Revenue","1.6","Other Revenue",{"$f":"IFERROR('MMA Rev-Exp Region 3'!$AK$16/'MMA Rev-Exp Region 3'!$AK$9, 0)","v":{"v":0,"d":"$0.00"}},{"$f":"IFERROR('MMA Rev-Exp Region 3'!$AL$16/'MMA Rev-Exp Region 3'!$AL$9, 0)","v":{"v":0,"d":"$0.00"}},{"$f":"IFERROR('MMA Rev-Exp Region 3'!$AM$16/'MMA Rev-Exp Region 3'!$AM$9, 0)","v":{"v":0,"d":"$0.00"}},{"$f":"IFERROR('MMA Rev-Exp Region 3'!$AN$16/'MMA Rev-Exp Region 3'!$AN$9, 0)","v":{"v":0,"d":"$0.00"}},{"$f":"IFERROR('MMA Rev-Exp Region 3'!$AO$16/'MMA Rev-Exp Region 3'!$AO$9, 0)","v":{"v":0,"d":"$0.00"}},{"$f":"IFERROR('MMA Rev-Exp Region 3'!$AP$16/'MMA Rev-Exp Region 3'!$AP$9, 0)","v":{"v":0,"d":"$0.00"}},{"$f":"IFERROR('MMA Rev-Exp Region 3'!$AQ$16/'MMA Rev-Exp Region 3'!$AQ$9, 0)","v":{"v":0,"d":"$0.00"}},{"$f":"IFERROR('MMA Rev-Exp Region 3'!$AR$16/'MMA Rev-Exp Region 3'!$AR$9, 0)","v":{"v":0,"d":"$0.00"}},{"$f":"IFERROR('MMA Rev-Exp Region 3'!$AS$16/'MMA Rev-Exp Region 3'!$AS$9, 0)","v":{"v":0,"d":"$0.00"}},{"$f":"IFERROR('MMA Rev-Exp Region 3'!$AT$16/'MMA Rev-Exp Region 3'!$AT$9, 0)","v":{"v":0,"d":"$0.00"}},{"$f":"IFERROR('MMA Rev-Exp Region 3'!$AU$16/'MMA Rev-Exp Region 3'!$AU$9, 0)","v":{"v":0,"d":"$0.00"}}]
["MMA",null,null,2016,"2016-12-31","Q4","2017-12-31","Region 3","Operating Expense","Medical Benefits Expense","Hospital Services",2.1,"Inpatient FFS",{"$f":"IFERROR('MMA Rev-Exp Region 3'!$AK$20/'MMA Rev-Exp Region 3'!$AK$9, 0)","v":{"v":0,"d":"$0.00"}},{"$f":"IFERROR('MMA Rev-Exp Region 3'!$AL$20/'MMA Rev-Exp Region 3'!$AL$9, 0)","v":{"v":0,"d":"$0.00"}},{"$f":"IFERROR('MMA Rev-Exp Region 3'!$AM$20/'MMA Rev-Exp Region 3'!$AM$9, 0)","v":{"v":0,"d":"$0.00"}},{"$f":"IFERROR('MMA Rev-Exp Region 3'!$AN$20/'MMA Rev-Exp Region 3'!$AN$9, 0)","v":{"v":0,"d":"$0.00"}},{"$f":"IFERROR('MMA Rev-Exp Region 3'!$AO$20/'MMA Rev-Exp Region 3'!$AO$9, 0)","v":{"v":0,"d":"$0.00"}},{"$f":"IFERROR('MMA Rev-Exp Region 3'!$AP$20/'MMA Rev-Exp Region 3'!$AP$9, 0)","v":{"v":0,"d":"$0.00"}},{"$f":"IFERROR('MMA Rev-Exp Region 3'!$AQ$20/'MMA Rev-Exp Region 3'!$AQ$9, 0)","v":{"v":0,"d":"$0.00"}},{"$f":"IFERROR('MMA Rev-Exp Region 3'!$AR$20/'MMA Rev-Exp Region 3'!$AR$9, 0)","v":{"v":0,"d":"$0.00"}},{"$f":"IFERROR('MMA Rev-Exp Region 3'!$AS$20/'MMA Rev-Exp Region 3'!$AS$9, 0)","v":{"v":0,"d":"$0.00"}},{"$f":"IFERROR('MMA Rev-Exp Region 3'!$AT$20/'MMA Rev-Exp Region 3'!$AT$9, 0)","v":{"v":0,"d":"$0.00"}},{"$f":"IFERROR('MMA Rev-Exp Region 3'!$AU$20/'MMA Rev-Exp Region 3'!$AU$9, 0)","v":{"v":0,"d":"$0.00"}}]
["MMA",null,null,2016,"2016-12-31","Q4","2017-12-31","Region 3","Operating Expense","Medical Benefits Expense","Hospital Services",2.2,"Ending IBNP for Inpatient Hospital Services",{"$f":"IFERROR('MMA Rev-Exp Region 3'!$AK$21/'MMA Rev-Exp Region 3'!$AK$9, 0)","v":{"v":0,"d":"$0.00"}},{"$f":"IFERROR('MMA Rev-Exp Region 3'!$AL$21/'MMA Rev-Exp Region 3'!$AL$9, 0)","v":{"v":0,"d":"$0.00"}},{"$f":"IFERROR('MMA Rev-Exp Region 3'!$AM$21/'MMA Rev-Exp Region 3'!$AM$9, 0)","v":{"v":0,"d":"$0.00"}},{"$f":"IFERROR('MMA Rev-Exp Region 3'!$AN$21/'MMA Rev-Exp Region 3'!$AN$9, 0)","v":{"v":0,"d":"$0.00"}},{"$f":"IFERROR('MMA Rev-Exp Region 3'!$AO$21/'MMA Rev-Exp Region 3'!$AO$9, 0)","v":{"v":0,"d":"$0.00"}},{"$f":"IFERROR('MMA Rev-Exp Region 3'!$AP$21/'MMA Rev-Exp Region 3'!$AP$9, 0)","v":{"v":0,"d":"$0.00"}},{"$f":"IFERROR('MMA Rev-Exp Region 3'!$AQ$21/'MMA Rev-Exp Region 3'!$AQ$9, 0)","v":{"v":0,"d":"$0.00"}},{"$f":"IFERROR('MMA Rev-Exp Region 3'!$AR$21/'MMA Rev-Exp Region 3'!$AR$9, 0)","v":{"v":0,"d":"$0.00"}},{"$f":"IFERROR('MMA Rev-Exp Region 3'!$AS$21/'MMA Rev-Exp Region 3'!$AS$9, 0)","v":{"v":0,"d":"$0.00"}},{"$f":"IFERROR('MMA Rev-Exp Region 3'!$AT$21/'MMA Rev-Exp Region 3'!$AT$9, 0)","v":{"v":0,"d":"$0.00"}},{"$f":"IFERROR('MMA Rev-Exp Region 3'!$AU$21/'MMA Rev-Exp Region 3'!$AU$9, 0)","v":{"v":0,"d":"$0.00"}}]
["MMA",null,null,2016,"2016-12-31","Q4","2017-12-31","Region 3","Operating Expense","Medical Benefits Expense","Hospital Services",2.3,"Outpatient FFS: ER",{"$f":"IFERROR('MMA Rev-Exp Region 3'!$AK$22/'MMA Rev-Exp Region 3'!$AK$9, 0)","v":{"v":0,"d":"$0.00"}},{"$f":"IFERROR('MMA Rev-Exp Region 3'!$AL$22/'MMA Rev-Exp Region 3'!$AL$9, 0)","v":{"v":0,"d":"$0.00"}},{"$f":"IFERROR('MMA Rev-Exp Region 3'!$AM$22/'MMA Rev-Exp Region 3'!$AM$9, 0)","v":{"v":0,"d":"$0.00"}},{"$f":"IFERROR('MMA Rev-Exp Region 3'!$AN$22/'MMA Rev-Exp Region 3'!$AN$9, 0)","v":{"v":0,"d":"$0.00"}},{"$f":"IFERROR('MMA Rev-Exp Region 3'!$AO$22/'MMA Rev-Exp Region 3'!$AO$9, 0)","v":{"v":0,"d":"$0.00"}},{"$f":"IFERROR('MMA Rev-Exp Region 3'!$AP$22/'MMA Rev-Exp Region 3'!$AP$9, 0)","v":{"v":0,"d":"$0.00"}},{"$f":"IFERROR('MMA Rev-Exp Region 3'!$AQ$22/'MMA Rev-Exp Region 3'!$AQ$9, 0)","v":{"v":0,"d":"$0.00"}},{"$f":"IFERROR('MMA Rev-Exp Region 3'!$AR$22/'MMA Rev-Exp Region 3'!$AR$9, 0)","v":{"v":0,"d":"$0.00"}},{"$f":"IFERROR('MMA Rev-Exp Region 3'!$AS$22/'MMA Rev-Exp Region 3'!$AS$9, 0)","v":{"v":0,"d":"$0.00"}},{"$f":"IFERROR('MMA Rev-Exp Region 3'!$AT$22/'MMA Rev-Exp Region 3'!$AT$9, 0)","v":{"v":0,"d":"$0.00"}},{"$f":"IFERROR('MMA Rev-Exp Region 3'!$AU$22/'MMA Rev-Exp Region 3'!$AU$9, 0)","v":{"v":0,"d":"$0.00"}}]
["MMA",null,null,2016,"2016-12-31","Q4","2017-12-31","Region 3","Operating Expense","Medical Benefits Expense","Hospital Services",2.4,"Outpatient FFS: Other than ER ",{"$f":"IFERROR('MMA Rev-Exp Region 3'!$AK$23/'MMA Rev-Exp Region 3'!$AK$9, 0)","v":{"v":0,"d":"$0.00"}},{"$f":"IFERROR('MMA Rev-Exp Region 3'!$AL$23/'MMA Rev-Exp Region 3'!$AL$9, 0)","v":{"v":0,"d":"$0.00"}},{"$f":"IFERROR('MMA Rev-Exp Region 3'!$AM$23/'MMA Rev-Exp Region 3'!$AM$9, 0)","v":{"v":0,"d":"$0.00"}},{"$f":"IFERROR('MMA Rev-Exp Region 3'!$AN$23/'MMA Rev-Exp Region 3'!$AN$9, 0)","v":{"v":0,"d":"$0.00"}},{"$f":"IFERROR('MMA Rev-Exp Region 3'!$AO$23/'MMA Rev-Exp Region 3'!$AO$9, 0)","v":{"v":0,"d":"$0.00"}},{"$f":"IFERROR('MMA Rev-Exp Region 3'!$AP$23/'MMA Rev-Exp Region 3'!$AP$9, 0)","v":{"v":0,"d":"$0.00"}},{"$f":"IFERROR('MMA Rev-Exp Region 3'!$AQ$23/'MMA Rev-Exp Region 3'!$AQ$9, 0)","v":{"v":0,"d":"$0.00"}},{"$f":"IFERROR('MMA Rev-Exp Region 3'!$AR$23/'MMA Rev-Exp Region 3'!$AR$9, 0)","v":{"v":0,"d":"$0.00"}},{"$f":"IFERROR('MMA Rev-Exp Region 3'!$AS$23/'MMA Rev-Exp Region 3'!$AS$9, 0)","v":{"v":0,"d":"$0.00"}},{"$f":"IFERROR('MMA Rev-Exp Region 3'!$AT$23/'MMA Rev-Exp Region 3'!$AT$9, 0)","v":{"v":0,"d":"$0.00"}},{"$f":"IFERROR('MMA Rev-Exp Region 3'!$AU$23/'MMA Rev-Exp Region 3'!$AU$9, 0)","v":{"v":0,"d":"$0.00"}}]
["MMA",null,null,2016,"2016-12-31","Q4","2017-12-31","Region 3","Operating Expense","Medical Benefits Expense","Hospital Services",2.5,"Ending IBNP for Outpatient Hospital Services",{"$f":"IFERROR('MMA Rev-Exp Region 3'!$AK$24/'MMA Rev-Exp Region 3'!$AK$9, 0)","v":{"v":0,"d":"$0.00"}},{"$f":"IFERROR('MMA Rev-Exp Region 3'!$AL$24/'MMA Rev-Exp Region 3'!$AL$9, 0)","v":{"v":0,"d":"$0.00"}},{"$f":"IFERROR('MMA Rev-Exp Region 3'!$AM$24/'MMA Rev-Exp Region 3'!$AM$9, 0)","v":{"v":0,"d":"$0.00"}},{"$f":"IFERROR('MMA Rev-Exp Region 3'!$AN$24/'MMA Rev-Exp Region 3'!$AN$9, 0)","v":{"v":0,"d":"$0.00"}},{"$f":"IFERROR('MMA Rev-Exp Region 3'!$AO$24/'MMA Rev-Exp Region 3'!$AO$9, 0)","v":{"v":0,"d":"$0.00"}},{"$f":"IFERROR('MMA Rev-Exp Region 3'!$AP$24/'MMA Rev-Exp Region 3'!$AP$9, 0)","v":{"v":0,"d":"$0.00"}},{"$f":"IFERROR('MMA Rev-Exp Region 3'!$AQ$24/'MMA Rev-Exp Region 3'!$AQ$9, 0)","v":{"v":0,"d":"$0.00"}},{"$f":"IFERROR('MMA Rev-Exp Region 3'!$AR$24/'MMA Rev-Exp Region 3'!$AR$9, 0)","v":{"v":0,"d":"$0.00"}},{"$f":"IFERROR('MMA Rev-Exp Region 3'!$AS$24/'MMA Rev-Exp Region 3'!$AS$9, 0)","v":{"v":0,"d":"$0.00"}},{"$f":"IFERROR('MMA Rev-Exp Region 3'!$AT$24/'MMA Rev-Exp Region 3'!$AT$9, 0)","v":{"v":0,"d":"$0.00"}},{"$f":"IFERROR('MMA Rev-Exp Region 3'!$AU$24/'MMA Rev-Exp Region 3'!$AU$9, 0)","v":{"v":0,"d":"$0.00"}}]
["MMA",null,null,2016,"2016-12-31","Q4","2017-12-31","Region 3","Operating Expense","Medical Benefits Expense","Hospital Services","2.6","Subcapitated Hospital Services",{"$f":"IFERROR('MMA Rev-Exp Region 3'!$AK$25/'MMA Rev-Exp Region 3'!$AK$9, 0)","v":{"v":0,"d":"$0.00"}},{"$f":"IFERROR('MMA Rev-Exp Region 3'!$AL$25/'MMA Rev-Exp Region 3'!$AL$9, 0)","v":{"v":0,"d":"$0.00"}},{"$f":"IFERROR('MMA Rev-Exp Region 3'!$AM$25/'MMA Rev-Exp Region 3'!$AM$9, 0)","v":{"v":0,"d":"$0.00"}},{"$f":"IFERROR('MMA Rev-Exp Region 3'!$AN$25/'MMA Rev-Exp Region 3'!$AN$9, 0)","v":{"v":0,"d":"$0.00"}},{"$f":"IFERROR('MMA Rev-Exp Region 3'!$AO$25/'MMA Rev-Exp Region 3'!$AO$9, 0)","v":{"v":0,"d":"$0.00"}},{"$f":"IFERROR('MMA Rev-Exp Region 3'!$AP$25/'MMA Rev-Exp Region 3'!$AP$9, 0)","v":{"v":0,"d":"$0.00"}},{"$f":"IFERROR('MMA Rev-Exp Region 3'!$AQ$25/'MMA Rev-Exp Region 3'!$AQ$9, 0)","v":{"v":0,"d":"$0.00"}},{"$f":"IFERROR('MMA Rev-Exp Region 3'!$AR$25/'MMA Rev-Exp Region 3'!$AR$9, 0)","v":{"v":0,"d":"$0.00"}},{"$f":"IFERROR('MMA Rev-Exp Region 3'!$AS$25/'MMA Rev-Exp Region 3'!$AS$9, 0)","v":{"v":0,"d":"$0.00"}},{"$f":"IFERROR('MMA Rev-Exp Region 3'!$AT$25/'MMA Rev-Exp Region 3'!$AT$9, 0)","v":{"v":0,"d":"$0.00"}},{"$f":"IFERROR('MMA Rev-Exp Region 3'!$AU$25/'MMA Rev-Exp Region 3'!$AU$9, 0)","v":{"v":0,"d":"$0.00"}}]
["MMA",null,null,2016,"2016-12-31","Q4","2017-12-31","Region 3","Operating Expense","Medical Benefits Expense","Hospital Services","2.7","Hospital Settlements",{"$f":"IFERROR('MMA Rev-Exp Region 3'!$AK$26/'MMA Rev-Exp Region 3'!$AK$9, 0)","v":{"v":0,"d":"$0.00"}},{"$f":"IFERROR('MMA Rev-Exp Region 3'!$AL$26/'MMA Rev-Exp Region 3'!$AL$9, 0)","v":{"v":0,"d":"$0.00"}},{"$f":"IFERROR('MMA Rev-Exp Region 3'!$AM$26/'MMA Rev-Exp Region 3'!$AM$9, 0)","v":{"v":0,"d":"$0.00"}},{"$f":"IFERROR('MMA Rev-Exp Region 3'!$AN$26/'MMA Rev-Exp Region 3'!$AN$9, 0)","v":{"v":0,"d":"$0.00"}},{"$f":"IFERROR('MMA Rev-Exp Region 3'!$AO$26/'MMA Rev-Exp Region 3'!$AO$9, 0)","v":{"v":0,"d":"$0.00"}},{"$f":"IFERROR('MMA Rev-Exp Region 3'!$AP$26/'MMA Rev-Exp Region 3'!$AP$9, 0)","v":{"v":0,"d":"$0.00"}},{"$f":"IFERROR('MMA Rev-Exp Region 3'!$AQ$26/'MMA Rev-Exp Region 3'!$AQ$9, 0)","v":{"v":0,"d":"$0.00"}},{"$f":"IFERROR('MMA Rev-Exp Region 3'!$AR$26/'MMA Rev-Exp Region 3'!$AR$9, 0)","v":{"v":0,"d":"$0.00"}},{"$f":"IFERROR('MMA Rev-Exp Region 3'!$AS$26/'MMA Rev-Exp Region 3'!$AS$9, 0)","v":{"v":0,"d":"$0.00"}},{"$f":"IFERROR('MMA Rev-Exp Region 3'!$AT$26/'MMA Rev-Exp Region 3'!$AT$9, 0)","v":{"v":0,"d":"$0.00"}},{"$f":"IFERROR('MMA Rev-Exp Region 3'!$AU$26/'MMA Rev-Exp Region 3'!$AU$9, 0)","v":{"v":0,"d":"$0.00"}}]
["MMA",null,null,2016,"2016-12-31","Q4","2017-12-31","Region 3","Operating Expense","Medical Benefits Expense","Hospital Services","2.7.1","Transplant Services",{"$f":"IFERROR('MMA Rev-Exp Region 3'!$AK$27/'MMA Rev-Exp Region 3'!$AK$9, 0)","v":{"v":0,"d":"$0.00"}},{"$f":"IFERROR('MMA Rev-Exp Region 3'!$AL$27/'MMA Rev-Exp Region 3'!$AL$9, 0)","v":{"v":0,"d":"$0.00"}},{"$f":"IFERROR('MMA Rev-Exp Region 3'!$AM$27/'MMA Rev-Exp Region 3'!$AM$9, 0)","v":{"v":0,"d":"$0.00"}},{"$f":"IFERROR('MMA Rev-Exp Region 3'!$AN$27/'MMA Rev-Exp Region 3'!$AN$9, 0)","v":{"v":0,"d":"$0.00"}},{"$f":"IFERROR('MMA Rev-Exp Region 3'!$AO$27/'MMA Rev-Exp Region 3'!$AO$9, 0)","v":{"v":0,"d":"$0.00"}},{"$f":"IFERROR('MMA Rev-Exp Region 3'!$AP$27/'MMA Rev-Exp Region 3'!$AP$9, 0)","v":{"v":0,"d":"$0.00"}},{"$f":"IFERROR('MMA Rev-Exp Region 3'!$AQ$27/'MMA Rev-Exp Region 3'!$AQ$9, 0)","v":{"v":0,"d":"$0.00"}},{"$f":"IFERROR('MMA Rev-Exp Region 3'!$AR$27/'MMA Rev-Exp Region 3'!$AR$9, 0)","v":{"v":0,"d":"$0.00"}},{"$f":"IFERROR('MMA Rev-Exp Region 3'!$AS$27/'MMA Rev-Exp Region 3'!$AS$9, 0)","v":{"v":0,"d":"$0.00"}},{"$f":"IFERROR('MMA Rev-Exp Region 3'!$AT$27/'MMA Rev-Exp Region 3'!$AT$9, 0)","v":{"v":0,"d":"$0.00"}},{"$f":"IFERROR('MMA Rev-Exp Region 3'!$AU$27/'MMA Rev-Exp Region 3'!$AU$9, 0)","v":{"v":0,"d":"$0.00"}}]
["MMA",null,null,2016,"2016-12-31","Q4","2017-12-31","Region 3","Operating Expense","Medical Benefits Expense","Professional Services",3.1,"Primary Care FFS",{"$f":"IFERROR('MMA Rev-Exp Region 3'!$AK$29/'MMA Rev-Exp Region 3'!$AK$9, 0)","v":{"v":0,"d":"$0.00"}},{"$f":"IFERROR('MMA Rev-Exp Region 3'!$AL$29/'MMA Rev-Exp Region 3'!$AL$9, 0)","v":{"v":0,"d":"$0.00"}},{"$f":"IFERROR('MMA Rev-Exp Region 3'!$AM$29/'MMA Rev-Exp Region 3'!$AM$9, 0)","v":{"v":0,"d":"$0.00"}},{"$f":"IFERROR('MMA Rev-Exp Region 3'!$AN$29/'MMA Rev-Exp Region 3'!$AN$9, 0)","v":{"v":0,"d":"$0.00"}},{"$f":"IFERROR('MMA Rev-Exp Region 3'!$AO$29/'MMA Rev-Exp Region 3'!$AO$9, 0)","v":{"v":0,"d":"$0.00"}},{"$f":"IFERROR('MMA Rev-Exp Region 3'!$AP$29/'MMA Rev-Exp Region 3'!$AP$9, 0)","v":{"v":0,"d":"$0.00"}},{"$f":"IFERROR('MMA Rev-Exp Region 3'!$AQ$29/'MMA Rev-Exp Region 3'!$AQ$9, 0)","v":{"v":0,"d":"$0.00"}},{"$f":"IFERROR('MMA Rev-Exp Region 3'!$AR$29/'MMA Rev-Exp Region 3'!$AR$9, 0)","v":{"v":0,"d":"$0.00"}},{"$f":"IFERROR('MMA Rev-Exp Region 3'!$AS$29/'MMA Rev-Exp Region 3'!$AS$9, 0)","v":{"v":0,"d":"$0.00"}},{"$f":"IFERROR('MMA Rev-Exp Region 3'!$AT$29/'MMA Rev-Exp Region 3'!$AT$9, 0)","v":{"v":0,"d":"$0.00"}},{"$f":"IFERROR('MMA Rev-Exp Region 3'!$AU$29/'MMA Rev-Exp Region 3'!$AU$9, 0)","v":{"v":0,"d":"$0.00"}}]
["MMA",null,null,2016,"2016-12-31","Q4","2017-12-31","Region 3","Operating Expense","Medical Benefits Expense","Professional Services",3.2,"Specialty Care FFS",{"$f":"IFERROR('MMA Rev-Exp Region 3'!$AK$30/'MMA Rev-Exp Region 3'!$AK$9, 0)","v":{"v":0,"d":"$0.00"}},{"$f":"IFERROR('MMA Rev-Exp Region 3'!$AL$30/'MMA Rev-Exp Region 3'!$AL$9, 0)","v":{"v":0,"d":"$0.00"}},{"$f":"IFERROR('MMA Rev-Exp Region 3'!$AM$30/'MMA Rev-Exp Region 3'!$AM$9, 0)","v":{"v":0,"d":"$0.00"}},{"$f":"IFERROR('MMA Rev-Exp Region 3'!$AN$30/'MMA Rev-Exp Region 3'!$AN$9, 0)","v":{"v":0,"d":"$0.00"}},{"$f":"IFERROR('MMA Rev-Exp Region 3'!$AO$30/'MMA Rev-Exp Region 3'!$AO$9, 0)","v":{"v":0,"d":"$0.00"}},{"$f":"IFERROR('MMA Rev-Exp Region 3'!$AP$30/'MMA Rev-Exp Region 3'!$AP$9, 0)","v":{"v":0,"d":"$0.00"}},{"$f":"IFERROR('MMA Rev-Exp Region 3'!$AQ$30/'MMA Rev-Exp Region 3'!$AQ$9, 0)","v":{"v":0,"d":"$0.00"}},{"$f":"IFERROR('MMA Rev-Exp Region 3'!$AR$30/'MMA Rev-Exp Region 3'!$AR$9, 0)","v":{"v":0,"d":"$0.00"}},{"$f":"IFERROR('MMA Rev-Exp Region 3'!$AS$30/'MMA Rev-Exp Region 3'!$AS$9, 0)","v":{"v":0,"d":"$0.00"}},{"$f":"IFERROR('MMA Rev-Exp Region 3'!$AT$30/'MMA Rev-Exp Region 3'!$AT$9, 0)","v":{"v":0,"d":"$0.00"}},{"$f":"IFERROR('MMA Rev-Exp Region 3'!$AU$30/'MMA Rev-Exp Region 3'!$AU$9, 0)","v":{"v":0,"d":"$0.00"}}]
["MMA",null,null,2016,"2016-12-31","Q4","2017-12-31","Region 3","Operating Expense","Medical Benefits Expense","Professional Services",3.3,"Other Professional FFS",{"$f":"IFERROR('MMA Rev-Exp Region 3'!$AK$31/'MMA Rev-Exp Region 3'!$AK$9, 0)","v":{"v":0,"d":"$0.00"}},{"$f":"IFERROR('MMA Rev-Exp Region 3'!$AL$31/'MMA Rev-Exp Region 3'!$AL$9, 0)","v":{"v":0,"d":"$0.00"}},{"$f":"IFERROR('MMA Rev-Exp Region 3'!$AM$31/'MMA Rev-Exp Region 3'!$AM$9, 0)","v":{"v":0,"d":"$0.00"}},{"$f":"IFERROR('MMA Rev-Exp Region 3'!$AN$31/'MMA Rev-Exp Region 3'!$AN$9, 0)","v":{"v":0,"d":"$0.00"}},{"$f":"IFERROR('MMA Rev-Exp Region 3'!$AO$31/'MMA Rev-Exp Region 3'!$AO$9, 0)","v":{"v":0,"d":"$0.00"}},{"$f":"IFERROR('MMA Rev-Exp Region 3'!$AP$31/'MMA Rev-Exp Region 3'!$AP$9, 0)","v":{"v":0,"d":"$0.00"}},{"$f":"IFERROR('MMA Rev-Exp Region 3'!$AQ$31/'MMA Rev-Exp Region 3'!$AQ$9, 0)","v":{"v":0,"d":"$0.00"}},{"$f":"IFERROR('MMA Rev-Exp Region 3'!$AR$31/'MMA Rev-Exp Region 3'!$AR$9, 0)","v":{"v":0,"d":"$0.00"}},{"$f":"IFERROR('MMA Rev-Exp Region 3'!$AS$31/'MMA Rev-Exp Region 3'!$AS$9, 0)","v":{"v":0,"d":"$0.00"}},{"$f":"IFERROR('MMA Rev-Exp Region 3'!$AT$31/'MMA Rev-Exp Region 3'!$AT$9, 0)","v":{"v":0,"d":"$0.00"}},{"$f":"IFERROR('MMA Rev-Exp Region 3'!$AU$31/'MMA Rev-Exp Region 3'!$AU$9, 0)","v":{"v":0,"d":"$0.00"}}]
["MMA",null,null,2016,"2016-12-31","Q4","2017-12-31","Region 3","Operating Expense","Medical Benefits Expense","Professional Services","3.4","§ 1202 PCP Payments to providers",{"$f":"IFERROR('MMA Rev-Exp Region 3'!$AK$32/'MMA Rev-Exp Region 3'!$AK$9, 0)","v":{"v":0,"d":"$0.00"}},{"$f":"IFERROR('MMA Rev-Exp Region 3'!$AL$32/'MMA Rev-Exp Region 3'!$AL$9, 0)","v":{"v":0,"d":"$0.00"}},{"$f":"IFERROR('MMA Rev-Exp Region 3'!$AM$32/'MMA Rev-Exp Region 3'!$AM$9, 0)","v":{"v":0,"d":"$0.00"}},{"$f":"IFERROR('MMA Rev-Exp Region 3'!$AN$32/'MMA Rev-Exp Region 3'!$AN$9, 0)","v":{"v":0,"d":"$0.00"}},{"$f":"IFERROR('MMA Rev-Exp Region 3'!$AO$32/'MMA Rev-Exp Region 3'!$AO$9, 0)","v":{"v":0,"d":"$0.00"}},{"$f":"IFERROR('MMA Rev-Exp Region 3'!$AP$32/'MMA Rev-Exp Region 3'!$AP$9, 0)","v":{"v":0,"d":"$0.00"}},{"$f":"IFERROR('MMA Rev-Exp Region 3'!$AQ$32/'MMA Rev-Exp Region 3'!$AQ$9, 0)","v":{"v":0,"d":"$0.00"}},{"$f":"IFERROR('MMA Rev-Exp Region 3'!$AR$32/'MMA Rev-Exp Region 3'!$AR$9, 0)","v":{"v":0,"d":"$0.00"}},{"$f":"IFERROR('MMA Rev-Exp Region 3'!$AS$32/'MMA Rev-Exp Region 3'!$AS$9, 0)","v":{"v":0,"d":"$0.00"}},{"$f":"IFERROR('MMA Rev-Exp Region 3'!$AT$32/'MMA Rev-Exp Region 3'!$AT$9, 0)","v":{"v":0,"d":"$0.00"}},{"$f":"IFERROR('MMA Rev-Exp Region 3'!$AU$32/'MMA Rev-Exp Region 3'!$AU$9, 0)","v":{"v":0,"d":"$0.00"}}]
["MMA",null,null,2016,"2016-12-31","Q4","2017-12-31","Region 3","Operating Expense","Medical Benefits Expense","Professional Services","3.5","Subcapitated Professional Services",{"$f":"IFERROR('MMA Rev-Exp Region 3'!$AK$33/'MMA Rev-Exp Region 3'!$AK$9, 0)","v":{"v":0,"d":"$0.00"}},{"$f":"IFERROR('MMA Rev-Exp Region 3'!$AL$33/'MMA Rev-Exp Region 3'!$AL$9, 0)","v":{"v":0,"d":"$0.00"}},{"$f":"IFERROR('MMA Rev-Exp Region 3'!$AM$33/'MMA Rev-Exp Region 3'!$AM$9, 0)","v":{"v":0,"d":"$0.00"}},{"$f":"IFERROR('MMA Rev-Exp Region 3'!$AN$33/'MMA Rev-Exp Region 3'!$AN$9, 0)","v":{"v":0,"d":"$0.00"}},{"$f":"IFERROR('MMA Rev-Exp Region 3'!$AO$33/'MMA Rev-Exp Region 3'!$AO$9, 0)","v":{"v":0,"d":"$0.00"}},{"$f":"IFERROR('MMA Rev-Exp Region 3'!$AP$33/'MMA Rev-Exp Region 3'!$AP$9, 0)","v":{"v":0,"d":"$0.00"}},{"$f":"IFERROR('MMA Rev-Exp Region 3'!$AQ$33/'MMA Rev-Exp Region 3'!$AQ$9, 0)","v":{"v":0,"d":"$0.00"}},{"$f":"IFERROR('MMA Rev-Exp Region 3'!$AR$33/'MMA Rev-Exp Region 3'!$AR$9, 0)","v":{"v":0,"d":"$0.00"}},{"$f":"IFERROR('MMA Rev-Exp Region 3'!$AS$33/'MMA Rev-Exp Region 3'!$AS$9, 0)","v":{"v":0,"d":"$0.00"}},{"$f":"IFERROR('MMA Rev-Exp Region 3'!$AT$33/'MMA Rev-Exp Region 3'!$AT$9, 0)","v":{"v":0,"d":"$0.00"}},{"$f":"IFERROR('MMA Rev-Exp Region 3'!$AU$33/'MMA Rev-Exp Region 3'!$AU$9, 0)","v":{"v":0,"d":"$0.00"}}]
["MMA",null,null,2016,"2016-12-31","Q4","2017-12-31","Region 3","Operating Expense","Medical Benefits Expense","Professional Services","3.6","Ending IBNP for Professional Services",{"$f":"IFERROR('MMA Rev-Exp Region 3'!$AK$34/'MMA Rev-Exp Region 3'!$AK$9, 0)","v":{"v":0,"d":"$0.00"}},{"$f":"IFERROR('MMA Rev-Exp Region 3'!$AL$34/'MMA Rev-Exp Region 3'!$AL$9, 0)","v":{"v":0,"d":"$0.00"}},{"$f":"IFERROR('MMA Rev-Exp Region 3'!$AM$34/'MMA Rev-Exp Region 3'!$AM$9, 0)","v":{"v":0,"d":"$0.00"}},{"$f":"IFERROR('MMA Rev-Exp Region 3'!$AN$34/'MMA Rev-Exp Region 3'!$AN$9, 0)","v":{"v":0,"d":"$0.00"}},{"$f":"IFERROR('MMA Rev-Exp Region 3'!$AO$34/'MMA Rev-Exp Region 3'!$AO$9, 0)","v":{"v":0,"d":"$0.00"}},{"$f":"IFERROR('MMA Rev-Exp Region 3'!$AP$34/'MMA Rev-Exp Region 3'!$AP$9, 0)","v":{"v":0,"d":"$0.00"}},{"$f":"IFERROR('MMA Rev-Exp Region 3'!$AQ$34/'MMA Rev-Exp Region 3'!$AQ$9, 0)","v":{"v":0,"d":"$0.00"}},{"$f":"IFERROR('MMA Rev-Exp Region 3'!$AR$34/'MMA Rev-Exp Region 3'!$AR$9, 0)","v":{"v":0,"d":"$0.00"}},{"$f":"IFERROR('MMA Rev-Exp Region 3'!$AS$34/'MMA Rev-Exp Region 3'!$AS$9, 0)","v":{"v":0,"d":"$0.00"}},{"$f":"IFERROR('MMA Rev-Exp Region 3'!$AT$34/'MMA Rev-Exp Region 3'!$AT$9, 0)","v":{"v":0,"d":"$0.00"}},{"$f":"IFERROR('MMA Rev-Exp Region 3'!$AU$34/'MMA Rev-Exp Region 3'!$AU$9, 0)","v":{"v":0,"d":"$0.00"}}]
["MMA",null,null,2016,"2016-12-31","Q4","2017-12-31","Region 3","Operating Expense","Medical Benefits Expense","Professional Services","3.7","Professional Services Settlements",{"$f":"IFERROR('MMA Rev-Exp Region 3'!$AK$35/'MMA Rev-Exp Region 3'!$AK$9, 0)","v":{"v":0,"d":"$0.00"}},{"$f":"IFERROR('MMA Rev-Exp Region 3'!$AL$35/'MMA Rev-Exp Region 3'!$AL$9, 0)","v":{"v":0,"d":"$0.00"}},{"$f":"IFERROR('MMA Rev-Exp Region 3'!$AM$35/'MMA Rev-Exp Region 3'!$AM$9, 0)","v":{"v":0,"d":"$0.00"}},{"$f":"IFERROR('MMA Rev-Exp Region 3'!$AN$35/'MMA Rev-Exp Region 3'!$AN$9, 0)","v":{"v":0,"d":"$0.00"}},{"$f":"IFERROR('MMA Rev-Exp Region 3'!$AO$35/'MMA Rev-Exp Region 3'!$AO$9, 0)","v":{"v":0,"d":"$0.00"}},{"$f":"IFERROR('MMA Rev-Exp Region 3'!$AP$35/'MMA Rev-Exp Region 3'!$AP$9, 0)","v":{"v":0,"d":"$0.00"}},{"$f":"IFERROR('MMA Rev-Exp Region 3'!$AQ$35/'MMA Rev-Exp Region 3'!$AQ$9, 0)","v":{"v":0,"d":"$0.00"}},{"$f":"IFERROR('MMA Rev-Exp Region 3'!$AR$35/'MMA Rev-Exp Region 3'!$AR$9, 0)","v":{"v":0,"d":"$0.00"}},{"$f":"IFERROR('MMA Rev-Exp Region 3'!$AS$35/'MMA Rev-Exp Region 3'!$AS$9, 0)","v":{"v":0,"d":"$0.00"}},{"$f":"IFERROR('MMA Rev-Exp Region 3'!$AT$35/'MMA Rev-Exp Region 3'!$AT$9, 0)","v":{"v":0,"d":"$0.00"}},{"$f":"IFERROR('MMA Rev-Exp Region 3'!$AU$35/'MMA Rev-Exp Region 3'!$AU$9, 0)","v":{"v":0,"d":"$0.00"}}]
["MMA",null,null,2016,"2016-12-31","Q4","2017-12-31","Region 3","Operating Expense","Medical Benefits Expense","Maternity Services","4.1.1","Maternity Services",{"$f":"IFERROR('MMA Rev-Exp Region 3'!$AK$37/'MMA Rev-Exp Region 3'!$AK$9, 0)","v":{"v":0,"d":"$0.00"}},{"$f":"IFERROR('MMA Rev-Exp Region 3'!$AL$37/'MMA Rev-Exp Region 3'!$AL$9, 0)","v":{"v":0,"d":"$0.00"}},{"$f":"IFERROR('MMA Rev-Exp Region 3'!$AM$37/'MMA Rev-Exp Region 3'!$AM$9, 0)","v":{"v":0,"d":"$0.00"}},{"$f":"IFERROR('MMA Rev-Exp Region 3'!$AN$37/'MMA Rev-Exp Region 3'!$AN$9, 0)","v":{"v":0,"d":"$0.00"}},{"$f":"IFERROR('MMA Rev-Exp Region 3'!$AO$37/'MMA Rev-Exp Region 3'!$AO$9, 0)","v":{"v":0,"d":"$0.00"}},{"$f":"IFERROR('MMA Rev-Exp Region 3'!$AP$37/'MMA Rev-Exp Region 3'!$AP$9, 0)","v":{"v":0,"d":"$0.00"}},{"$f":"IFERROR('MMA Rev-Exp Region 3'!$AQ$37/'MMA Rev-Exp Region 3'!$AQ$9, 0)","v":{"v":0,"d":"$0.00"}},{"$f":"IFERROR('MMA Rev-Exp Region 3'!$AR$37/'MMA Rev-Exp Region 3'!$AR$9, 0)","v":{"v":0,"d":"$0.00"}},{"$f":"IFERROR('MMA Rev-Exp Region 3'!$AS$37/'MMA Rev-Exp Region 3'!$AS$9, 0)","v":{"v":0,"d":"$0.00"}},{"$f":"IFERROR('MMA Rev-Exp Region 3'!$AT$37/'MMA Rev-Exp Region 3'!$AT$9, 0)","v":{"v":0,"d":"$0.00"}},{"$f":"IFERROR('MMA Rev-Exp Region 3'!$AU$37/'MMA Rev-Exp Region 3'!$AU$9, 0)","v":{"v":0,"d":"$0.00"}}]
["MMA",null,null,2016,"2016-12-31","Q4","2017-12-31","Region 3","Operating Expense","Medical Benefits Expense","Maternity Services","4.2.1","Ending IBNP for Maternity Services",{"$f":"IFERROR('MMA Rev-Exp Region 3'!$AK$38/'MMA Rev-Exp Region 3'!$AK$9, 0)","v":{"v":0,"d":"$0.00"}},{"$f":"IFERROR('MMA Rev-Exp Region 3'!$AL$38/'MMA Rev-Exp Region 3'!$AL$9, 0)","v":{"v":0,"d":"$0.00"}},{"$f":"IFERROR('MMA Rev-Exp Region 3'!$AM$38/'MMA Rev-Exp Region 3'!$AM$9, 0)","v":{"v":0,"d":"$0.00"}},{"$f":"IFERROR('MMA Rev-Exp Region 3'!$AN$38/'MMA Rev-Exp Region 3'!$AN$9, 0)","v":{"v":0,"d":"$0.00"}},{"$f":"IFERROR('MMA Rev-Exp Region 3'!$AO$38/'MMA Rev-Exp Region 3'!$AO$9, 0)","v":{"v":0,"d":"$0.00"}},{"$f":"IFERROR('MMA Rev-Exp Region 3'!$AP$38/'MMA Rev-Exp Region 3'!$AP$9, 0)","v":{"v":0,"d":"$0.00"}},{"$f":"IFERROR('MMA Rev-Exp Region 3'!$AQ$38/'MMA Rev-Exp Region 3'!$AQ$9, 0)","v":{"v":0,"d":"$0.00"}},{"$f":"IFERROR('MMA Rev-Exp Region 3'!$AR$38/'MMA Rev-Exp Region 3'!$AR$9, 0)","v":{"v":0,"d":"$0.00"}},{"$f":"IFERROR('MMA Rev-Exp Region 3'!$AS$38/'MMA Rev-Exp Region 3'!$AS$9, 0)","v":{"v":0,"d":"$0.00"}},{"$f":"IFERROR('MMA Rev-Exp Region 3'!$AT$38/'MMA Rev-Exp Region 3'!$AT$9, 0)","v":{"v":0,"d":"$0.00"}},{"$f":"IFERROR('MMA Rev-Exp Region 3'!$AU$38/'MMA Rev-Exp Region 3'!$AU$9, 0)","v":{"v":0,"d":"$0.00"}}]
["MMA",null,null,2016,"2016-12-31","Q4","2017-12-31","Region 3","Operating Expense","Medical Benefits Expense","Maternity Services","4.3.1","Maternity Settlements",{"$f":"IFERROR('MMA Rev-Exp Region 3'!$AK$39/'MMA Rev-Exp Region 3'!$AK$9, 0)","v":{"v":0,"d":"$0.00"}},{"$f":"IFERROR('MMA Rev-Exp Region 3'!$AL$39/'MMA Rev-Exp Region 3'!$AL$9, 0)","v":{"v":0,"d":"$0.00"}},{"$f":"IFERROR('MMA Rev-Exp Region 3'!$AM$39/'MMA Rev-Exp Region 3'!$AM$9, 0)","v":{"v":0,"d":"$0.00"}},{"$f":"IFERROR('MMA Rev-Exp Region 3'!$AN$39/'MMA Rev-Exp Region 3'!$AN$9, 0)","v":{"v":0,"d":"$0.00"}},{"$f":"IFERROR('MMA Rev-Exp Region 3'!$AO$39/'MMA Rev-Exp Region 3'!$AO$9, 0)","v":{"v":0,"d":"$0.00"}},{"$f":"IFERROR('MMA Rev-Exp Region 3'!$AP$39/'MMA Rev-Exp Region 3'!$AP$9, 0)","v":{"v":0,"d":"$0.00"}},{"$f":"IFERROR('MMA Rev-Exp Region 3'!$AQ$39/'MMA Rev-Exp Region 3'!$AQ$9, 0)","v":{"v":0,"d":"$0.00"}},{"$f":"IFERROR('MMA Rev-Exp Region 3'!$AR$39/'MMA Rev-Exp Region 3'!$AR$9, 0)","v":{"v":0,"d":"$0.00"}},{"$f":"IFERROR('MMA Rev-Exp Region 3'!$AS$39/'MMA Rev-Exp Region 3'!$AS$9, 0)","v":{"v":0,"d":"$0.00"}},{"$f":"IFERROR('MMA Rev-Exp Region 3'!$AT$39/'MMA Rev-Exp Region 3'!$AT$9, 0)","v":{"v":0,"d":"$0.00"}},{"$f":"IFERROR('MMA Rev-Exp Region 3'!$AU$39/'MMA Rev-Exp Region 3'!$AU$9, 0)","v":{"v":0,"d":"$0.00"}}]
["MMA",null,null,2016,"2016-12-31","Q4","2017-12-31","Region 3","Operating Expense","Medical Benefits Expense","Mental Health Services",5.1,"Mental Health & Substance Abuse FFS",{"$f":"IFERROR('MMA Rev-Exp Region 3'!$AK$41/'MMA Rev-Exp Region 3'!$AK$9, 0)","v":{"v":0,"d":"$0.00"}},{"$f":"IFERROR('MMA Rev-Exp Region 3'!$AL$41/'MMA Rev-Exp Region 3'!$AL$9, 0)","v":{"v":0,"d":"$0.00"}},{"$f":"IFERROR('MMA Rev-Exp Region 3'!$AM$41/'MMA Rev-Exp Region 3'!$AM$9, 0)","v":{"v":0,"d":"$0.00"}},{"$f":"IFERROR('MMA Rev-Exp Region 3'!$AN$41/'MMA Rev-Exp Region 3'!$AN$9, 0)","v":{"v":0,"d":"$0.00"}},{"$f":"IFERROR('MMA Rev-Exp Region 3'!$AO$41/'MMA Rev-Exp Region 3'!$AO$9, 0)","v":{"v":0,"d":"$0.00"}},{"$f":"IFERROR('MMA Rev-Exp Region 3'!$AP$41/'MMA Rev-Exp Region 3'!$AP$9, 0)","v":{"v":0,"d":"$0.00"}},{"$f":"IFERROR('MMA Rev-Exp Region 3'!$AQ$41/'MMA Rev-Exp Region 3'!$AQ$9, 0)","v":{"v":0,"d":"$0.00"}},{"$f":"IFERROR('MMA Rev-Exp Region 3'!$AR$41/'MMA Rev-Exp Region 3'!$AR$9, 0)","v":{"v":0,"d":"$0.00"}},{"$f":"IFERROR('MMA Rev-Exp Region 3'!$AS$41/'MMA Rev-Exp Region 3'!$AS$9, 0)","v":{"v":0,"d":"$0.00"}},{"$f":"IFERROR('MMA Rev-Exp Region 3'!$AT$41/'MMA Rev-Exp Region 3'!$AT$9, 0)","v":{"v":0,"d":"$0.00"}},{"$f":"IFERROR('MMA Rev-Exp Region 3'!$AU$41/'MMA Rev-Exp Region 3'!$AU$9, 0)","v":{"v":0,"d":"$0.00"}}]
["MMA",null,null,2016,"2016-12-31","Q4","2017-12-31","Region 3","Operating Expense","Medical Benefits Expense","Mental Health Services",5.2,"Mental Health & Substance Abuse Subcapitation",{"$f":"IFERROR('MMA Rev-Exp Region 3'!$AK$42/'MMA Rev-Exp Region 3'!$AK$9, 0)","v":{"v":0,"d":"$0.00"}},{"$f":"IFERROR('MMA Rev-Exp Region 3'!$AL$42/'MMA Rev-Exp Region 3'!$AL$9, 0)","v":{"v":0,"d":"$0.00"}},{"$f":"IFERROR('MMA Rev-Exp Region 3'!$AM$42/'MMA Rev-Exp Region 3'!$AM$9, 0)","v":{"v":0,"d":"$0.00"}},{"$f":"IFERROR('MMA Rev-Exp Region 3'!$AN$42/'MMA Rev-Exp Region 3'!$AN$9, 0)","v":{"v":0,"d":"$0.00"}},{"$f":"IFERROR('MMA Rev-Exp Region 3'!$AO$42/'MMA Rev-Exp Region 3'!$AO$9, 0)","v":{"v":0,"d":"$0.00"}},{"$f":"IFERROR('MMA Rev-Exp Region 3'!$AP$42/'MMA Rev-Exp Region 3'!$AP$9, 0)","v":{"v":0,"d":"$0.00"}},{"$f":"IFERROR('MMA Rev-Exp Region 3'!$AQ$42/'MMA Rev-Exp Region 3'!$AQ$9, 0)","v":{"v":0,"d":"$0.00"}},{"$f":"IFERROR('MMA Rev-Exp Region 3'!$AR$42/'MMA Rev-Exp Region 3'!$AR$9, 0)","v":{"v":0,"d":"$0.00"}},{"$f":"IFERROR('MMA Rev-Exp Region 3'!$AS$42/'MMA Rev-Exp Region 3'!$AS$9, 0)","v":{"v":0,"d":"$0.00"}},{"$f":"IFERROR('MMA Rev-Exp Region 3'!$AT$42/'MMA Rev-Exp Region 3'!$AT$9, 0)","v":{"v":0,"d":"$0.00"}},{"$f":"IFERROR('MMA Rev-Exp Region 3'!$AU$42/'MMA Rev-Exp Region 3'!$AU$9, 0)","v":{"v":0,"d":"$0.00"}}]
["MMA",null,null,2016,"2016-12-31","Q4","2017-12-31","Region 3","Operating Expense","Medical Benefits Expense","Mental Health Services",5.3,"Ending IBNP for Mental Health & Substance Abuse",{"$f":"IFERROR('MMA Rev-Exp Region 3'!$AK$43/'MMA Rev-Exp Region 3'!$AK$9, 0)","v":{"v":0,"d":"$0.00"}},{"$f":"IFERROR('MMA Rev-Exp Region 3'!$AL$43/'MMA Rev-Exp Region 3'!$AL$9, 0)","v":{"v":0,"d":"$0.00"}},{"$f":"IFERROR('MMA Rev-Exp Region 3'!$AM$43/'MMA Rev-Exp Region 3'!$AM$9, 0)","v":{"v":0,"d":"$0.00"}},{"$f":"IFERROR('MMA Rev-Exp Region 3'!$AN$43/'MMA Rev-Exp Region 3'!$AN$9, 0)","v":{"v":0,"d":"$0.00"}},{"$f":"IFERROR('MMA Rev-Exp Region 3'!$AO$43/'MMA Rev-Exp Region 3'!$AO$9, 0)","v":{"v":0,"d":"$0.00"}},{"$f":"IFERROR('MMA Rev-Exp Region 3'!$AP$43/'MMA Rev-Exp Region 3'!$AP$9, 0)","v":{"v":0,"d":"$0.00"}},{"$f":"IFERROR('MMA Rev-Exp Region 3'!$AQ$43/'MMA Rev-Exp Region 3'!$AQ$9, 0)","v":{"v":0,"d":"$0.00"}},{"$f":"IFERROR('MMA Rev-Exp Region 3'!$AR$43/'MMA Rev-Exp Region 3'!$AR$9, 0)","v":{"v":0,"d":"$0.00"}},{"$f":"IFERROR('MMA Rev-Exp Region 3'!$AS$43/'MMA Rev-Exp Region 3'!$AS$9, 0)","v":{"v":0,"d":"$0.00"}},{"$f":"IFERROR('MMA Rev-Exp Region 3'!$AT$43/'MMA Rev-Exp Region 3'!$AT$9, 0)","v":{"v":0,"d":"$0.00"}},{"$f":"IFERROR('MMA Rev-Exp Region 3'!$AU$43/'MMA Rev-Exp Region 3'!$AU$9, 0)","v":{"v":0,"d":"$0.00"}}]
["MMA",null,null,2016,"2016-12-31","Q4","2017-12-31","Region 3","Operating Expense","Medical Benefits Expense","Mental Health Services","5.4","Mental Health Settlements",{"$f":"IFERROR('MMA Rev-Exp Region 3'!$AK$44/'MMA Rev-Exp Region 3'!$AK$9, 0)","v":{"v":0,"d":"$0.00"}},{"$f":"IFERROR('MMA Rev-Exp Region 3'!$AL$44/'MMA Rev-Exp Region 3'!$AL$9, 0)","v":{"v":0,"d":"$0.00"}},{"$f":"IFERROR('MMA Rev-Exp Region 3'!$AM$44/'MMA Rev-Exp Region 3'!$AM$9, 0)","v":{"v":0,"d":"$0.00"}},{"$f":"IFERROR('MMA Rev-Exp Region 3'!$AN$44/'MMA Rev-Exp Region 3'!$AN$9, 0)","v":{"v":0,"d":"$0.00"}},{"$f":"IFERROR('MMA Rev-Exp Region 3'!$AO$44/'MMA Rev-Exp Region 3'!$AO$9, 0)","v":{"v":0,"d":"$0.00"}},{"$f":"IFERROR('MMA Rev-Exp Region 3'!$AP$44/'MMA Rev-Exp Region 3'!$AP$9, 0)","v":{"v":0,"d":"$0.00"}},{"$f":"IFERROR('MMA Rev-Exp Region 3'!$AQ$44/'MMA Rev-Exp Region 3'!$AQ$9, 0)","v":{"v":0,"d":"$0.00"}},{"$f":"IFERROR('MMA Rev-Exp Region 3'!$AR$44/'MMA Rev-Exp Region 3'!$AR$9, 0)","v":{"v":0,"d":"$0.00"}},{"$f":"IFERROR('MMA Rev-Exp Region 3'!$AS$44/'MMA Rev-Exp Region 3'!$AS$9, 0)","v":{"v":0,"d":"$0.00"}},{"$f":"IFERROR('MMA Rev-Exp Region 3'!$AT$44/'MMA Rev-Exp Region 3'!$AT$9, 0)","v":{"v":0,"d":"$0.00"}},{"$f":"IFERROR('MMA Rev-Exp Region 3'!$AU$44/'MMA Rev-Exp Region 3'!$AU$9, 0)","v":{"v":0,"d":"$0.00"}}]
["MMA",null,null,2016,"2016-12-31","Q4","2017-12-31","Region 3","Operating Expense","Medical Benefits Expense","Dental Services",6.1,"Dental FFS",{"$f":"IFERROR('MMA Rev-Exp Region 3'!$AK$46/'MMA Rev-Exp Region 3'!$AK$9, 0)","v":{"v":0,"d":"$0.00"}},{"$f":"IFERROR('MMA Rev-Exp Region 3'!$AL$46/'MMA Rev-Exp Region 3'!$AL$9, 0)","v":{"v":0,"d":"$0.00"}},{"$f":"IFERROR('MMA Rev-Exp Region 3'!$AM$46/'MMA Rev-Exp Region 3'!$AM$9, 0)","v":{"v":0,"d":"$0.00"}},{"$f":"IFERROR('MMA Rev-Exp Region 3'!$AN$46/'MMA Rev-Exp Region 3'!$AN$9, 0)","v":{"v":0,"d":"$0.00"}},{"$f":"IFERROR('MMA Rev-Exp Region 3'!$AO$46/'MMA Rev-Exp Region 3'!$AO$9, 0)","v":{"v":0,"d":"$0.00"}},{"$f":"IFERROR('MMA Rev-Exp Region 3'!$AP$46/'MMA Rev-Exp Region 3'!$AP$9, 0)","v":{"v":0,"d":"$0.00"}},{"$f":"IFERROR('MMA Rev-Exp Region 3'!$AQ$46/'MMA Rev-Exp Region 3'!$AQ$9, 0)","v":{"v":0,"d":"$0.00"}},{"$f":"IFERROR('MMA Rev-Exp Region 3'!$AR$46/'MMA Rev-Exp Region 3'!$AR$9, 0)","v":{"v":0,"d":"$0.00"}},{"$f":"IFERROR('MMA Rev-Exp Region 3'!$AS$46/'MMA Rev-Exp Region 3'!$AS$9, 0)","v":{"v":0,"d":"$0.00"}},{"$f":"IFERROR('MMA Rev-Exp Region 3'!$AT$46/'MMA Rev-Exp Region 3'!$AT$9, 0)","v":{"v":0,"d":"$0.00"}},{"$f":"IFERROR('MMA Rev-Exp Region 3'!$AU$46/'MMA Rev-Exp Region 3'!$AU$9, 0)","v":{"v":0,"d":"$0.00"}}]
["MMA",null,null,2016,"2016-12-31","Q4","2017-12-31","Region 3","Operating Expense","Medical Benefits Expense","Dental Services",6.2,"Dental Subcapitation",{"$f":"IFERROR('MMA Rev-Exp Region 3'!$AK$47/'MMA Rev-Exp Region 3'!$AK$9, 0)","v":{"v":0,"d":"$0.00"}},{"$f":"IFERROR('MMA Rev-Exp Region 3'!$AL$47/'MMA Rev-Exp Region 3'!$AL$9, 0)","v":{"v":0,"d":"$0.00"}},{"$f":"IFERROR('MMA Rev-Exp Region 3'!$AM$47/'MMA Rev-Exp Region 3'!$AM$9, 0)","v":{"v":0,"d":"$0.00"}},{"$f":"IFERROR('MMA Rev-Exp Region 3'!$AN$47/'MMA Rev-Exp Region 3'!$AN$9, 0)","v":{"v":0,"d":"$0.00"}},{"$f":"IFERROR('MMA Rev-Exp Region 3'!$AO$47/'MMA Rev-Exp Region 3'!$AO$9, 0)","v":{"v":0,"d":"$0.00"}},{"$f":"IFERROR('MMA Rev-Exp Region 3'!$AP$47/'MMA Rev-Exp Region 3'!$AP$9, 0)","v":{"v":0,"d":"$0.00"}},{"$f":"IFERROR('MMA Rev-Exp Region 3'!$AQ$47/'MMA Rev-Exp Region 3'!$AQ$9, 0)","v":{"v":0,"d":"$0.00"}},{"$f":"IFERROR('MMA Rev-Exp Region 3'!$AR$47/'MMA Rev-Exp Region 3'!$AR$9, 0)","v":{"v":0,"d":"$0.00"}},{"$f":"IFERROR('MMA Rev-Exp Region 3'!$AS$47/'MMA Rev-Exp Region 3'!$AS$9, 0)","v":{"v":0,"d":"$0.00"}},{"$f":"IFERROR('MMA Rev-Exp Region 3'!$AT$47/'MMA Rev-Exp Region 3'!$AT$9, 0)","v":{"v":0,"d":"$0.00"}},{"$f":"IFERROR('MMA Rev-Exp Region 3'!$AU$47/'MMA Rev-Exp Region 3'!$AU$9, 0)","v":{"v":0,"d":"$0.00"}}]
["MMA",null,null,2016,"2016-12-31","Q4","2017-12-31","Region 3","Operating Expense","Medical Benefits Expense","Dental Services",6.3,"Ending IBNP for Dental Services",{"$f":"IFERROR('MMA Rev-Exp Region 3'!$AK$48/'MMA Rev-Exp Region 3'!$AK$9, 0)","v":{"v":0,"d":"$0.00"}},{"$f":"IFERROR('MMA Rev-Exp Region 3'!$AL$48/'MMA Rev-Exp Region 3'!$AL$9, 0)","v":{"v":0,"d":"$0.00"}},{"$f":"IFERROR('MMA Rev-Exp Region 3'!$AM$48/'MMA Rev-Exp Region 3'!$AM$9, 0)","v":{"v":0,"d":"$0.00"}},{"$f":"IFERROR('MMA Rev-Exp Region 3'!$AN$48/'MMA Rev-Exp Region 3'!$AN$9, 0)","v":{"v":0,"d":"$0.00"}},{"$f":"IFERROR('MMA Rev-Exp Region 3'!$AO$48/'MMA Rev-Exp Region 3'!$AO$9, 0)","v":{"v":0,"d":"$0.00"}},{"$f":"IFERROR('MMA Rev-Exp Region 3'!$AP$48/'MMA Rev-Exp Region 3'!$AP$9, 0)","v":{"v":0,"d":"$0.00"}},{"$f":"IFERROR('MMA Rev-Exp Region 3'!$AQ$48/'MMA Rev-Exp Region 3'!$AQ$9, 0)","v":{"v":0,"d":"$0.00"}},{"$f":"IFERROR('MMA Rev-Exp Region 3'!$AR$48/'MMA Rev-Exp Region 3'!$AR$9, 0)","v":{"v":0,"d":"$0.00"}},{"$f":"IFERROR('MMA Rev-Exp Region 3'!$AS$48/'MMA Rev-Exp Region 3'!$AS$9, 0)","v":{"v":0,"d":"$0.00"}},{"$f":"IFERROR('MMA Rev-Exp Region 3'!$AT$48/'MMA Rev-Exp Region 3'!$AT$9, 0)","v":{"v":0,"d":"$0.00"}},{"$f":"IFERROR('MMA Rev-Exp Region 3'!$AU$48/'MMA Rev-Exp Region 3'!$AU$9, 0)","v":{"v":0,"d":"$0.00"}}]
["MMA",null,null,2016,"2016-12-31","Q4","2017-12-31","Region 3","Operating Expense","Medical Benefits Expense","Dental Services","6.4","Dental Settlements",{"$f":"IFERROR('MMA Rev-Exp Region 3'!$AK$49/'MMA Rev-Exp Region 3'!$AK$9, 0)","v":{"v":0,"d":"$0.00"}},{"$f":"IFERROR('MMA Rev-Exp Region 3'!$AL$49/'MMA Rev-Exp Region 3'!$AL$9, 0)","v":{"v":0,"d":"$0.00"}},{"$f":"IFERROR('MMA Rev-Exp Region 3'!$AM$49/'MMA Rev-Exp Region 3'!$AM$9, 0)","v":{"v":0,"d":"$0.00"}},{"$f":"IFERROR('MMA Rev-Exp Region 3'!$AN$49/'MMA Rev-Exp Region 3'!$AN$9, 0)","v":{"v":0,"d":"$0.00"}},{"$f":"IFERROR('MMA Rev-Exp Region 3'!$AO$49/'MMA Rev-Exp Region 3'!$AO$9, 0)","v":{"v":0,"d":"$0.00"}},{"$f":"IFERROR('MMA Rev-Exp Region 3'!$AP$49/'MMA Rev-Exp Region 3'!$AP$9, 0)","v":{"v":0,"d":"$0.00"}},{"$f":"IFERROR('MMA Rev-Exp Region 3'!$AQ$49/'MMA Rev-Exp Region 3'!$AQ$9, 0)","v":{"v":0,"d":"$0.00"}},{"$f":"IFERROR('MMA Rev-Exp Region 3'!$AR$49/'MMA Rev-Exp Region 3'!$AR$9, 0)","v":{"v":0,"d":"$0.00"}},{"$f":"IFERROR('MMA Rev-Exp Region 3'!$AS$49/'MMA Rev-Exp Region 3'!$AS$9, 0)","v":{"v":0,"d":"$0.00"}},{"$f":"IFERROR('MMA Rev-Exp Region 3'!$AT$49/'MMA Rev-Exp Region 3'!$AT$9, 0)","v":{"v":0,"d":"$0.00"}},{"$f":"IFERROR('MMA Rev-Exp Region 3'!$AU$49/'MMA Rev-Exp Region 3'!$AU$9, 0)","v":{"v":0,"d":"$0.00"}}]
["MMA",null,null,2016,"2016-12-31","Q4","2017-12-31","Region 3","Operating Expense","Medical Benefits Expense","Transportation Services",7.1,"Transportation FFS",{"$f":"IFERROR('MMA Rev-Exp Region 3'!$AK$51/'MMA Rev-Exp Region 3'!$AK$9, 0)","v":{"v":0,"d":"$0.00"}},{"$f":"IFERROR('MMA Rev-Exp Region 3'!$AL$51/'MMA Rev-Exp Region 3'!$AL$9, 0)","v":{"v":0,"d":"$0.00"}},{"$f":"IFERROR('MMA Rev-Exp Region 3'!$AM$51/'MMA Rev-Exp Region 3'!$AM$9, 0)","v":{"v":0,"d":"$0.00"}},{"$f":"IFERROR('MMA Rev-Exp Region 3'!$AN$51/'MMA Rev-Exp Region 3'!$AN$9, 0)","v":{"v":0,"d":"$0.00"}},{"$f":"IFERROR('MMA Rev-Exp Region 3'!$AO$51/'MMA Rev-Exp Region 3'!$AO$9, 0)","v":{"v":0,"d":"$0.00"}},{"$f":"IFERROR('MMA Rev-Exp Region 3'!$AP$51/'MMA Rev-Exp Region 3'!$AP$9, 0)","v":{"v":0,"d":"$0.00"}},{"$f":"IFERROR('MMA Rev-Exp Region 3'!$AQ$51/'MMA Rev-Exp Region 3'!$AQ$9, 0)","v":{"v":0,"d":"$0.00"}},{"$f":"IFERROR('MMA Rev-Exp Region 3'!$AR$51/'MMA Rev-Exp Region 3'!$AR$9, 0)","v":{"v":0,"d":"$0.00"}},{"$f":"IFERROR('MMA Rev-Exp Region 3'!$AS$51/'MMA Rev-Exp Region 3'!$AS$9, 0)","v":{"v":0,"d":"$0.00"}},{"$f":"IFERROR('MMA Rev-Exp Region 3'!$AT$51/'MMA Rev-Exp Region 3'!$AT$9, 0)","v":{"v":0,"d":"$0.00"}},{"$f":"IFERROR('MMA Rev-Exp Region 3'!$AU$51/'MMA Rev-Exp Region 3'!$AU$9, 0)","v":{"v":0,"d":"$0.00"}}]
["MMA",null,null,2016,"2016-12-31","Q4","2017-12-31","Region 3","Operating Expense","Medical Benefits Expense","Transportation Services",7.2,"Transportation Subcapitation",{"$f":"IFERROR('MMA Rev-Exp Region 3'!$AK$52/'MMA Rev-Exp Region 3'!$AK$9, 0)","v":{"v":0,"d":"$0.00"}},{"$f":"IFERROR('MMA Rev-Exp Region 3'!$AL$52/'MMA Rev-Exp Region 3'!$AL$9, 0)","v":{"v":0,"d":"$0.00"}},{"$f":"IFERROR('MMA Rev-Exp Region 3'!$AM$52/'MMA Rev-Exp Region 3'!$AM$9, 0)","v":{"v":0,"d":"$0.00"}},{"$f":"IFERROR('MMA Rev-Exp Region 3'!$AN$52/'MMA Rev-Exp Region 3'!$AN$9, 0)","v":{"v":0,"d":"$0.00"}},{"$f":"IFERROR('MMA Rev-Exp Region 3'!$AO$52/'MMA Rev-Exp Region 3'!$AO$9, 0)","v":{"v":0,"d":"$0.00"}},{"$f":"IFERROR('MMA Rev-Exp Region 3'!$AP$52/'MMA Rev-Exp Region 3'!$AP$9, 0)","v":{"v":0,"d":"$0.00"}},{"$f":"IFERROR('MMA Rev-Exp Region 3'!$AQ$52/'MMA Rev-Exp Region 3'!$AQ$9, 0)","v":{"v":0,"d":"$0.00"}},{"$f":"IFERROR('MMA Rev-Exp Region 3'!$AR$52/'MMA Rev-Exp Region 3'!$AR$9, 0)","v":{"v":0,"d":"$0.00"}},{"$f":"IFERROR('MMA Rev-Exp Region 3'!$AS$52/'MMA Rev-Exp Region 3'!$AS$9, 0)","v":{"v":0,"d":"$0.00"}},{"$f":"IFERROR('MMA Rev-Exp Region 3'!$AT$52/'MMA Rev-Exp Region 3'!$AT$9, 0)","v":{"v":0,"d":"$0.00"}},{"$f":"IFERROR('MMA Rev-Exp Region 3'!$AU$52/'MMA Rev-Exp Region 3'!$AU$9, 0)","v":{"v":0,"d":"$0.00"}}]
["MMA",null,null,2016,"2016-12-31","Q4","2017-12-31","Region 3","Operating Expense","Medical Benefits Expense","Transportation Services",7.3,"Ending IBNP for Transportation",{"$f":"IFERROR('MMA Rev-Exp Region 3'!$AK$53/'MMA Rev-Exp Region 3'!$AK$9, 0)","v":{"v":0,"d":"$0.00"}},{"$f":"IFERROR('MMA Rev-Exp Region 3'!$AL$53/'MMA Rev-Exp Region 3'!$AL$9, 0)","v":{"v":0,"d":"$0.00"}},{"$f":"IFERROR('MMA Rev-Exp Region 3'!$AM$53/'MMA Rev-Exp Region 3'!$AM$9, 0)","v":{"v":0,"d":"$0.00"}},{"$f":"IFERROR('MMA Rev-Exp Region 3'!$AN$53/'MMA Rev-Exp Region 3'!$AN$9, 0)","v":{"v":0,"d":"$0.00"}},{"$f":"IFERROR('MMA Rev-Exp Region 3'!$AO$53/'MMA Rev-Exp Region 3'!$AO$9, 0)","v":{"v":0,"d":"$0.00"}},{"$f":"IFERROR('MMA Rev-Exp Region 3'!$AP$53/'MMA Rev-Exp Region 3'!$AP$9, 0)","v":{"v":0,"d":"$0.00"}},{"$f":"IFERROR('MMA Rev-Exp Region 3'!$AQ$53/'MMA Rev-Exp Region 3'!$AQ$9, 0)","v":{"v":0,"d":"$0.00"}},{"$f":"IFERROR('MMA Rev-Exp Region 3'!$AR$53/'MMA Rev-Exp Region 3'!$AR$9, 0)","v":{"v":0,"d":"$0.00"}},{"$f":"IFERROR('MMA Rev-Exp Region 3'!$AS$53/'MMA Rev-Exp Region 3'!$AS$9, 0)","v":{"v":0,"d":"$0.00"}},{"$f":"IFERROR('MMA Rev-Exp Region 3'!$AT$53/'MMA Rev-Exp Region 3'!$AT$9, 0)","v":{"v":0,"d":"$0.00"}},{"$f":"IFERROR('MMA Rev-Exp Region 3'!$AU$53/'MMA Rev-Exp Region 3'!$AU$9, 0)","v":{"v":0,"d":"$0.00"}}]
["MMA",null,null,2016,"2016-12-31","Q4","2017-12-31","Region 3","Operating Expense","Medical Benefits Expense","Transportation Services","7.4","Transportation Settlements",{"$f":"IFERROR('MMA Rev-Exp Region 3'!$AK$54/'MMA Rev-Exp Region 3'!$AK$9, 0)","v":{"v":0,"d":"$0.00"}},{"$f":"IFERROR('MMA Rev-Exp Region 3'!$AL$54/'MMA Rev-Exp Region 3'!$AL$9, 0)","v":{"v":0,"d":"$0.00"}},{"$f":"IFERROR('MMA Rev-Exp Region 3'!$AM$54/'MMA Rev-Exp Region 3'!$AM$9, 0)","v":{"v":0,"d":"$0.00"}},{"$f":"IFERROR('MMA Rev-Exp Region 3'!$AN$54/'MMA Rev-Exp Region 3'!$AN$9, 0)","v":{"v":0,"d":"$0.00"}},{"$f":"IFERROR('MMA Rev-Exp Region 3'!$AO$54/'MMA Rev-Exp Region 3'!$AO$9, 0)","v":{"v":0,"d":"$0.00"}},{"$f":"IFERROR('MMA Rev-Exp Region 3'!$AP$54/'MMA Rev-Exp Region 3'!$AP$9, 0)","v":{"v":0,"d":"$0.00"}},{"$f":"IFERROR('MMA Rev-Exp Region 3'!$AQ$54/'MMA Rev-Exp Region 3'!$AQ$9, 0)","v":{"v":0,"d":"$0.00"}},{"$f":"IFERROR('MMA Rev-Exp Region 3'!$AR$54/'MMA Rev-Exp Region 3'!$AR$9, 0)","v":{"v":0,"d":"$0.00"}},{"$f":"IFERROR('MMA Rev-Exp Region 3'!$AS$54/'MMA Rev-Exp Region 3'!$AS$9, 0)","v":{"v":0,"d":"$0.00"}},{"$f":"IFERROR('MMA Rev-Exp Region 3'!$AT$54/'MMA Rev-Exp Region 3'!$AT$9, 0)","v":{"v":0,"d":"$0.00"}},{"$f":"IFERROR('MMA Rev-Exp Region 3'!$AU$54/'MMA Rev-Exp Region 3'!$AU$9, 0)","v":{"v":0,"d":"$0.00"}}]
["MMA",null,null,2016,"2016-12-31","Q4","2017-12-31","Region 3","Operating Expense","Medical Benefits Expense","Pharmacy Services",8.1,"Prescription Drugs FFS",{"$f":"IFERROR('MMA Rev-Exp Region 3'!$AK$56/'MMA Rev-Exp Region 3'!$AK$9, 0)","v":{"v":0,"d":"$0.00"}},{"$f":"IFERROR('MMA Rev-Exp Region 3'!$AL$56/'MMA Rev-Exp Region 3'!$AL$9, 0)","v":{"v":0,"d":"$0.00"}},{"$f":"IFERROR('MMA Rev-Exp Region 3'!$AM$56/'MMA Rev-Exp Region 3'!$AM$9, 0)","v":{"v":0,"d":"$0.00"}},{"$f":"IFERROR('MMA Rev-Exp Region 3'!$AN$56/'MMA Rev-Exp Region 3'!$AN$9, 0)","v":{"v":0,"d":"$0.00"}},{"$f":"IFERROR('MMA Rev-Exp Region 3'!$AO$56/'MMA Rev-Exp Region 3'!$AO$9, 0)","v":{"v":0,"d":"$0.00"}},{"$f":"IFERROR('MMA Rev-Exp Region 3'!$AP$56/'MMA Rev-Exp Region 3'!$AP$9, 0)","v":{"v":0,"d":"$0.00"}},{"$f":"IFERROR('MMA Rev-Exp Region 3'!$AQ$56/'MMA Rev-Exp Region 3'!$AQ$9, 0)","v":{"v":0,"d":"$0.00"}},{"$f":"IFERROR('MMA Rev-Exp Region 3'!$AR$56/'MMA Rev-Exp Region 3'!$AR$9, 0)","v":{"v":0,"d":"$0.00"}},{"$f":"IFERROR('MMA Rev-Exp Region 3'!$AS$56/'MMA Rev-Exp Region 3'!$AS$9, 0)","v":{"v":0,"d":"$0.00"}},{"$f":"IFERROR('MMA Rev-Exp Region 3'!$AT$56/'MMA Rev-Exp Region 3'!$AT$9, 0)","v":{"v":0,"d":"$0.00"}},{"$f":"IFERROR('MMA Rev-Exp Region 3'!$AU$56/'MMA Rev-Exp Region 3'!$AU$9, 0)","v":{"v":0,"d":"$0.00"}}]
["MMA",null,null,2016,"2016-12-31","Q4","2017-12-31","Region 3","Operating Expense","Medical Benefits Expense","Pharmacy Services","8.2","Hepatitis C Prescription Drug FFS",{"$f":"IFERROR('MMA Rev-Exp Region 3'!$AK$57/'MMA Rev-Exp Region 3'!$AK$9, 0)","v":{"v":0,"d":"$0.00"}},{"$f":"IFERROR('MMA Rev-Exp Region 3'!$AL$57/'MMA Rev-Exp Region 3'!$AL$9, 0)","v":{"v":0,"d":"$0.00"}},{"$f":"IFERROR('MMA Rev-Exp Region 3'!$AM$57/'MMA Rev-Exp Region 3'!$AM$9, 0)","v":{"v":0,"d":"$0.00"}},{"$f":"IFERROR('MMA Rev-Exp Region 3'!$AN$57/'MMA Rev-Exp Region 3'!$AN$9, 0)","v":{"v":0,"d":"$0.00"}},{"$f":"IFERROR('MMA Rev-Exp Region 3'!$AO$57/'MMA Rev-Exp Region 3'!$AO$9, 0)","v":{"v":0,"d":"$0.00"}},{"$f":"IFERROR('MMA Rev-Exp Region 3'!$AP$57/'MMA Rev-Exp Region 3'!$AP$9, 0)","v":{"v":0,"d":"$0.00"}},{"$f":"IFERROR('MMA Rev-Exp Region 3'!$AQ$57/'MMA Rev-Exp Region 3'!$AQ$9, 0)","v":{"v":0,"d":"$0.00"}},{"$f":"IFERROR('MMA Rev-Exp Region 3'!$AR$57/'MMA Rev-Exp Region 3'!$AR$9, 0)","v":{"v":0,"d":"$0.00"}},{"$f":"IFERROR('MMA Rev-Exp Region 3'!$AS$57/'MMA Rev-Exp Region 3'!$AS$9, 0)","v":{"v":0,"d":"$0.00"}},{"$f":"IFERROR('MMA Rev-Exp Region 3'!$AT$57/'MMA Rev-Exp Region 3'!$AT$9, 0)","v":{"v":0,"d":"$0.00"}},{"$f":"IFERROR('MMA Rev-Exp Region 3'!$AU$57/'MMA Rev-Exp Region 3'!$AU$9, 0)","v":{"v":0,"d":"$0.00"}}]
["MMA",null,null,2016,"2016-12-31","Q4","2017-12-31","Region 3","Operating Expense","Medical Benefits Expense","Pharmacy Services","8.3","Ending IBNP for Prescription Drugs",{"$f":"IFERROR('MMA Rev-Exp Region 3'!$AK$58/'MMA Rev-Exp Region 3'!$AK$9, 0)","v":{"v":0,"d":"$0.00"}},{"$f":"IFERROR('MMA Rev-Exp Region 3'!$AL$58/'MMA Rev-Exp Region 3'!$AL$9, 0)","v":{"v":0,"d":"$0.00"}},{"$f":"IFERROR('MMA Rev-Exp Region 3'!$AM$58/'MMA Rev-Exp Region 3'!$AM$9, 0)","v":{"v":0,"d":"$0.00"}},{"$f":"IFERROR('MMA Rev-Exp Region 3'!$AN$58/'MMA Rev-Exp Region 3'!$AN$9, 0)","v":{"v":0,"d":"$0.00"}},{"$f":"IFERROR('MMA Rev-Exp Region 3'!$AO$58/'MMA Rev-Exp Region 3'!$AO$9, 0)","v":{"v":0,"d":"$0.00"}},{"$f":"IFERROR('MMA Rev-Exp Region 3'!$AP$58/'MMA Rev-Exp Region 3'!$AP$9, 0)","v":{"v":0,"d":"$0.00"}},{"$f":"IFERROR('MMA Rev-Exp Region 3'!$AQ$58/'MMA Rev-Exp Region 3'!$AQ$9, 0)","v":{"v":0,"d":"$0.00"}},{"$f":"IFERROR('MMA Rev-Exp Region 3'!$AR$58/'MMA Rev-Exp Region 3'!$AR$9, 0)","v":{"v":0,"d":"$0.00"}},{"$f":"IFERROR('MMA Rev-Exp Region 3'!$AS$58/'MMA Rev-Exp Region 3'!$AS$9, 0)","v":{"v":0,"d":"$0.00"}},{"$f":"IFERROR('MMA Rev-Exp Region 3'!$AT$58/'MMA Rev-Exp Region 3'!$AT$9, 0)","v":{"v":0,"d":"$0.00"}},{"$f":"IFERROR('MMA Rev-Exp Region 3'!$AU$58/'MMA Rev-Exp Region 3'!$AU$9, 0)","v":{"v":0,"d":"$0.00"}}]
["MMA",null,null,2016,"2016-12-31","Q4","2017-12-31","Region 3","Operating Expense","Medical Benefits Expense","Pharmacy Services","8.4","Prescription Drug Rebates ",{"$f":"IFERROR('MMA Rev-Exp Region 3'!$AK$59/'MMA Rev-Exp Region 3'!$AK$9, 0)","v":{"v":0,"d":"$0.00"}},{"$f":"IFERROR('MMA Rev-Exp Region 3'!$AL$59/'MMA Rev-Exp Region 3'!$AL$9, 0)","v":{"v":0,"d":"$0.00"}},{"$f":"IFERROR('MMA Rev-Exp Region 3'!$AM$59/'MMA Rev-Exp Region 3'!$AM$9, 0)","v":{"v":0,"d":"$0.00"}},{"$f":"IFERROR('MMA Rev-Exp Region 3'!$AN$59/'MMA Rev-Exp Region 3'!$AN$9, 0)","v":{"v":0,"d":"$0.00"}},{"$f":"IFERROR('MMA Rev-Exp Region 3'!$AO$59/'MMA Rev-Exp Region 3'!$AO$9, 0)","v":{"v":0,"d":"$0.00"}},{"$f":"IFERROR('MMA Rev-Exp Region 3'!$AP$59/'MMA Rev-Exp Region 3'!$AP$9, 0)","v":{"v":0,"d":"$0.00"}},{"$f":"IFERROR('MMA Rev-Exp Region 3'!$AQ$59/'MMA Rev-Exp Region 3'!$AQ$9, 0)","v":{"v":0,"d":"$0.00"}},{"$f":"IFERROR('MMA Rev-Exp Region 3'!$AR$59/'MMA Rev-Exp Region 3'!$AR$9, 0)","v":{"v":0,"d":"$0.00"}},{"$f":"IFERROR('MMA Rev-Exp Region 3'!$AS$59/'MMA Rev-Exp Region 3'!$AS$9, 0)","v":{"v":0,"d":"$0.00"}},{"$f":"IFERROR('MMA Rev-Exp Region 3'!$AT$59/'MMA Rev-Exp Region 3'!$AT$9, 0)","v":{"v":0,"d":"$0.00"}},{"$f":"IFERROR('MMA Rev-Exp Region 3'!$AU$59/'MMA Rev-Exp Region 3'!$AU$9, 0)","v":{"v":0,"d":"$0.00"}}]
["MMA",null,null,2016,"2016-12-31","Q4","2017-12-31","Region 3","Operating Expense","Medical Benefits Expense","Pharmacy Services","8.5","Ending accrual for Rebates receivable",{"$f":"IFERROR('MMA Rev-Exp Region 3'!$AK$60/'MMA Rev-Exp Region 3'!$AK$9, 0)","v":{"v":0,"d":"$0.00"}},{"$f":"IFERROR('MMA Rev-Exp Region 3'!$AL$60/'MMA Rev-Exp Region 3'!$AL$9, 0)","v":{"v":0,"d":"$0.00"}},{"$f":"IFERROR('MMA Rev-Exp Region 3'!$AM$60/'MMA Rev-Exp Region 3'!$AM$9, 0)","v":{"v":0,"d":"$0.00"}},{"$f":"IFERROR('MMA Rev-Exp Region 3'!$AN$60/'MMA Rev-Exp Region 3'!$AN$9, 0)","v":{"v":0,"d":"$0.00"}},{"$f":"IFERROR('MMA Rev-Exp Region 3'!$AO$60/'MMA Rev-Exp Region 3'!$AO$9, 0)","v":{"v":0,"d":"$0.00"}},{"$f":"IFERROR('MMA Rev-Exp Region 3'!$AP$60/'MMA Rev-Exp Region 3'!$AP$9, 0)","v":{"v":0,"d":"$0.00"}},{"$f":"IFERROR('MMA Rev-Exp Region 3'!$AQ$60/'MMA Rev-Exp Region 3'!$AQ$9, 0)","v":{"v":0,"d":"$0.00"}},{"$f":"IFERROR('MMA Rev-Exp Region 3'!$AR$60/'MMA Rev-Exp Region 3'!$AR$9, 0)","v":{"v":0,"d":"$0.00"}},{"$f":"IFERROR('MMA Rev-Exp Region 3'!$AS$60/'MMA Rev-Exp Region 3'!$AS$9, 0)","v":{"v":0,"d":"$0.00"}},{"$f":"IFERROR('MMA Rev-Exp Region 3'!$AT$60/'MMA Rev-Exp Region 3'!$AT$9, 0)","v":{"v":0,"d":"$0.00"}},{"$f":"IFERROR('MMA Rev-Exp Region 3'!$AU$60/'MMA Rev-Exp Region 3'!$AU$9, 0)","v":{"v":0,"d":"$0.00"}}]
["MMA",null,null,2016,"2016-12-31","Q4","2017-12-31","Region 3","Operating Expense","Medical Benefits Expense","Pharmacy Services","8.6","Prescription Drugs Subcapitation",{"$f":"IFERROR('MMA Rev-Exp Region 3'!$AK$61/'MMA Rev-Exp Region 3'!$AK$9, 0)","v":{"v":0,"d":"$0.00"}},{"$f":"IFERROR('MMA Rev-Exp Region 3'!$AL$61/'MMA Rev-Exp Region 3'!$AL$9, 0)","v":{"v":0,"d":"$0.00"}},{"$f":"IFERROR('MMA Rev-Exp Region 3'!$AM$61/'MMA Rev-Exp Region 3'!$AM$9, 0)","v":{"v":0,"d":"$0.00"}},{"$f":"IFERROR('MMA Rev-Exp Region 3'!$AN$61/'MMA Rev-Exp Region 3'!$AN$9, 0)","v":{"v":0,"d":"$0.00"}},{"$f":"IFERROR('MMA Rev-Exp Region 3'!$AO$61/'MMA Rev-Exp Region 3'!$AO$9, 0)","v":{"v":0,"d":"$0.00"}},{"$f":"IFERROR('MMA Rev-Exp Region 3'!$AP$61/'MMA Rev-Exp Region 3'!$AP$9, 0)","v":{"v":0,"d":"$0.00"}},{"$f":"IFERROR('MMA Rev-Exp Region 3'!$AQ$61/'MMA Rev-Exp Region 3'!$AQ$9, 0)","v":{"v":0,"d":"$0.00"}},{"$f":"IFERROR('MMA Rev-Exp Region 3'!$AR$61/'MMA Rev-Exp Region 3'!$AR$9, 0)","v":{"v":0,"d":"$0.00"}},{"$f":"IFERROR('MMA Rev-Exp Region 3'!$AS$61/'MMA Rev-Exp Region 3'!$AS$9, 0)","v":{"v":0,"d":"$0.00"}},{"$f":"IFERROR('MMA Rev-Exp Region 3'!$AT$61/'MMA Rev-Exp Region 3'!$AT$9, 0)","v":{"v":0,"d":"$0.00"}},{"$f":"IFERROR('MMA Rev-Exp Region 3'!$AU$61/'MMA Rev-Exp Region 3'!$AU$9, 0)","v":{"v":0,"d":"$0.00"}}]
["MMA",null,null,2016,"2016-12-31","Q4","2017-12-31","Region 3","Operating Expense","Medical Benefits Expense","Pharmacy Services","8.7","Prescription Drug Settlements",{"$f":"IFERROR('MMA Rev-Exp Region 3'!$AK$62/'MMA Rev-Exp Region 3'!$AK$9, 0)","v":{"v":0,"d":"$0.00"}},{"$f":"IFERROR('MMA Rev-Exp Region 3'!$AL$62/'MMA Rev-Exp Region 3'!$AL$9, 0)","v":{"v":0,"d":"$0.00"}},{"$f":"IFERROR('MMA Rev-Exp Region 3'!$AM$62/'MMA Rev-Exp Region 3'!$AM$9, 0)","v":{"v":0,"d":"$0.00"}},{"$f":"IFERROR('MMA Rev-Exp Region 3'!$AN$62/'MMA Rev-Exp Region 3'!$AN$9, 0)","v":{"v":0,"d":"$0.00"}},{"$f":"IFERROR('MMA Rev-Exp Region 3'!$AO$62/'MMA Rev-Exp Region 3'!$AO$9, 0)","v":{"v":0,"d":"$0.00"}},{"$f":"IFERROR('MMA Rev-Exp Region 3'!$AP$62/'MMA Rev-Exp Region 3'!$AP$9, 0)","v":{"v":0,"d":"$0.00"}},{"$f":"IFERROR('MMA Rev-Exp Region 3'!$AQ$62/'MMA Rev-Exp Region 3'!$AQ$9, 0)","v":{"v":0,"d":"$0.00"}},{"$f":"IFERROR('MMA Rev-Exp Region 3'!$AR$62/'MMA Rev-Exp Region 3'!$AR$9, 0)","v":{"v":0,"d":"$0.00"}},{"$f":"IFERROR('MMA Rev-Exp Region 3'!$AS$62/'MMA Rev-Exp Region 3'!$AS$9, 0)","v":{"v":0,"d":"$0.00"}},{"$f":"IFERROR('MMA Rev-Exp Region 3'!$AT$62/'MMA Rev-Exp Region 3'!$AT$9, 0)","v":{"v":0,"d":"$0.00"}},{"$f":"IFERROR('MMA Rev-Exp Region 3'!$AU$62/'MMA Rev-Exp Region 3'!$AU$9, 0)","v":{"v":0,"d":"$0.00"}}]
["MMA",null,null,2016,"2016-12-31","Q4","2017-12-31","Region 3","Operating Expense","Medical Benefits Expense","Other MMA Services",9.1,"Home Health, Private Duty Nursing, Personal Care FFS",{"$f":"IFERROR('MMA Rev-Exp Region 3'!$AK$64/'MMA Rev-Exp Region 3'!$AK$9, 0)","v":{"v":0,"d":"$0.00"}},{"$f":"IFERROR('MMA Rev-Exp Region 3'!$AL$64/'MMA Rev-Exp Region 3'!$AL$9, 0)","v":{"v":0,"d":"$0.00"}},{"$f":"IFERROR('MMA Rev-Exp Region 3'!$AM$64/'MMA Rev-Exp Region 3'!$AM$9, 0)","v":{"v":0,"d":"$0.00"}},{"$f":"IFERROR('MMA Rev-Exp Region 3'!$AN$64/'MMA Rev-Exp Region 3'!$AN$9, 0)","v":{"v":0,"d":"$0.00"}},{"$f":"IFERROR('MMA Rev-Exp Region 3'!$AO$64/'MMA Rev-Exp Region 3'!$AO$9, 0)","v":{"v":0,"d":"$0.00"}},{"$f":"IFERROR('MMA Rev-Exp Region 3'!$AP$64/'MMA Rev-Exp Region 3'!$AP$9, 0)","v":{"v":0,"d":"$0.00"}},{"$f":"IFERROR('MMA Rev-Exp Region 3'!$AQ$64/'MMA Rev-Exp Region 3'!$AQ$9, 0)","v":{"v":0,"d":"$0.00"}},{"$f":"IFERROR('MMA Rev-Exp Region 3'!$AR$64/'MMA Rev-Exp Region 3'!$AR$9, 0)","v":{"v":0,"d":"$0.00"}},{"$f":"IFERROR('MMA Rev-Exp Region 3'!$AS$64/'MMA Rev-Exp Region 3'!$AS$9, 0)","v":{"v":0,"d":"$0.00"}},{"$f":"IFERROR('MMA Rev-Exp Region 3'!$AT$64/'MMA Rev-Exp Region 3'!$AT$9, 0)","v":{"v":0,"d":"$0.00"}},{"$f":"IFERROR('MMA Rev-Exp Region 3'!$AU$64/'MMA Rev-Exp Region 3'!$AU$9, 0)","v":{"v":0,"d":"$0.00"}}]
["MMA",null,null,2016,"2016-12-31","Q4","2017-12-31","Region 3","Operating Expense","Medical Benefits Expense","Other MMA Services","9.2","Hospice FFS",{"$f":"IFERROR('MMA Rev-Exp Region 3'!$AK$65/'MMA Rev-Exp Region 3'!$AK$9, 0)","v":{"v":0,"d":"$0.00"}},{"$f":"IFERROR('MMA Rev-Exp Region 3'!$AL$65/'MMA Rev-Exp Region 3'!$AL$9, 0)","v":{"v":0,"d":"$0.00"}},{"$f":"IFERROR('MMA Rev-Exp Region 3'!$AM$65/'MMA Rev-Exp Region 3'!$AM$9, 0)","v":{"v":0,"d":"$0.00"}},{"$f":"IFERROR('MMA Rev-Exp Region 3'!$AN$65/'MMA Rev-Exp Region 3'!$AN$9, 0)","v":{"v":0,"d":"$0.00"}},{"$f":"IFERROR('MMA Rev-Exp Region 3'!$AO$65/'MMA Rev-Exp Region 3'!$AO$9, 0)","v":{"v":0,"d":"$0.00"}},{"$f":"IFERROR('MMA Rev-Exp Region 3'!$AP$65/'MMA Rev-Exp Region 3'!$AP$9, 0)","v":{"v":0,"d":"$0.00"}},{"$f":"IFERROR('MMA Rev-Exp Region 3'!$AQ$65/'MMA Rev-Exp Region 3'!$AQ$9, 0)","v":{"v":0,"d":"$0.00"}},{"$f":"IFERROR('MMA Rev-Exp Region 3'!$AR$65/'MMA Rev-Exp Region 3'!$AR$9, 0)","v":{"v":0,"d":"$0.00"}},{"$f":"IFERROR('MMA Rev-Exp Region 3'!$AS$65/'MMA Rev-Exp Region 3'!$AS$9, 0)","v":{"v":0,"d":"$0.00"}},{"$f":"IFERROR('MMA Rev-Exp Region 3'!$AT$65/'MMA Rev-Exp Region 3'!$AT$9, 0)","v":{"v":0,"d":"$0.00"}},{"$f":"IFERROR('MMA Rev-Exp Region 3'!$AU$65/'MMA Rev-Exp Region 3'!$AU$9, 0)","v":{"v":0,"d":"$0.00"}}]
["MMA",null,null,2016,"2016-12-31","Q4","2017-12-31","Region 3","Operating Expense","Medical Benefits Expense","Other MMA Services","9.3","DME FFS",{"$f":"IFERROR('MMA Rev-Exp Region 3'!$AK$66/'MMA Rev-Exp Region 3'!$AK$9, 0)","v":{"v":0,"d":"$0.00"}},{"$f":"IFERROR('MMA Rev-Exp Region 3'!$AL$66/'MMA Rev-Exp Region 3'!$AL$9, 0)","v":{"v":0,"d":"$0.00"}},{"$f":"IFERROR('MMA Rev-Exp Region 3'!$AM$66/'MMA Rev-Exp Region 3'!$AM$9, 0)","v":{"v":0,"d":"$0.00"}},{"$f":"IFERROR('MMA Rev-Exp Region 3'!$AN$66/'MMA Rev-Exp Region 3'!$AN$9, 0)","v":{"v":0,"d":"$0.00"}},{"$f":"IFERROR('MMA Rev-Exp Region 3'!$AO$66/'MMA Rev-Exp Region 3'!$AO$9, 0)","v":{"v":0,"d":"$0.00"}},{"$f":"IFERROR('MMA Rev-Exp Region 3'!$AP$66/'MMA Rev-Exp Region 3'!$AP$9, 0)","v":{"v":0,"d":"$0.00"}},{"$f":"IFERROR('MMA Rev-Exp Region 3'!$AQ$66/'MMA Rev-Exp Region 3'!$AQ$9, 0)","v":{"v":0,"d":"$0.00"}},{"$f":"IFERROR('MMA Rev-Exp Region 3'!$AR$66/'MMA Rev-Exp Region 3'!$AR$9, 0)","v":{"v":0,"d":"$0.00"}},{"$f":"IFERROR('MMA Rev-Exp Region 3'!$AS$66/'MMA Rev-Exp Region 3'!$AS$9, 0)","v":{"v":0,"d":"$0.00"}},{"$f":"IFERROR('MMA Rev-Exp Region 3'!$AT$66/'MMA Rev-Exp Region 3'!$AT$9, 0)","v":{"v":0,"d":"$0.00"}},{"$f":"IFERROR('MMA Rev-Exp Region 3'!$AU$66/'MMA Rev-Exp Region 3'!$AU$9, 0)","v":{"v":0,"d":"$0.00"}}]
["MMA",null,null,2016,"2016-12-31","Q4","2017-12-31","Region 3","Operating Expense","Medical Benefits Expense","Other MMA Services","9.4","Other State Plan Services FFS",{"$f":"IFERROR('MMA Rev-Exp Region 3'!$AK$67/'MMA Rev-Exp Region 3'!$AK$9, 0)","v":{"v":0,"d":"$0.00"}},{"$f":"IFERROR('MMA Rev-Exp Region 3'!$AL$67/'MMA Rev-Exp Region 3'!$AL$9, 0)","v":{"v":0,"d":"$0.00"}},{"$f":"IFERROR('MMA Rev-Exp Region 3'!$AM$67/'MMA Rev-Exp Region 3'!$AM$9, 0)","v":{"v":0,"d":"$0.00"}},{"$f":"IFERROR('MMA Rev-Exp Region 3'!$AN$67/'MMA Rev-Exp Region 3'!$AN$9, 0)","v":{"v":0,"d":"$0.00"}},{"$f":"IFERROR('MMA Rev-Exp Region 3'!$AO$67/'MMA Rev-Exp Region 3'!$AO$9, 0)","v":{"v":0,"d":"$0.00"}},{"$f":"IFERROR('MMA Rev-Exp Region 3'!$AP$67/'MMA Rev-Exp Region 3'!$AP$9, 0)","v":{"v":0,"d":"$0.00"}},{"$f":"IFERROR('MMA Rev-Exp Region 3'!$AQ$67/'MMA Rev-Exp Region 3'!$AQ$9, 0)","v":{"v":0,"d":"$0.00"}},{"$f":"IFERROR('MMA Rev-Exp Region 3'!$AR$67/'MMA Rev-Exp Region 3'!$AR$9, 0)","v":{"v":0,"d":"$0.00"}},{"$f":"IFERROR('MMA Rev-Exp Region 3'!$AS$67/'MMA Rev-Exp Region 3'!$AS$9, 0)","v":{"v":0,"d":"$0.00"}},{"$f":"IFERROR('MMA Rev-Exp Region 3'!$AT$67/'MMA Rev-Exp Region 3'!$AT$9, 0)","v":{"v":0,"d":"$0.00"}},{"$f":"IFERROR('MMA Rev-Exp Region 3'!$AU$67/'MMA Rev-Exp Region 3'!$AU$9, 0)","v":{"v":0,"d":"$0.00"}}]
["MMA",null,null,2016,"2016-12-31","Q4","2017-12-31","Region 3","Operating Expense","Medical Benefits Expense","Other MMA Services","9.5","Other Services Subcapitation",{"$f":"IFERROR('MMA Rev-Exp Region 3'!$AK$68/'MMA Rev-Exp Region 3'!$AK$9, 0)","v":{"v":0,"d":"$0.00"}},{"$f":"IFERROR('MMA Rev-Exp Region 3'!$AL$68/'MMA Rev-Exp Region 3'!$AL$9, 0)","v":{"v":0,"d":"$0.00"}},{"$f":"IFERROR('MMA Rev-Exp Region 3'!$AM$68/'MMA Rev-Exp Region 3'!$AM$9, 0)","v":{"v":0,"d":"$0.00"}},{"$f":"IFERROR('MMA Rev-Exp Region 3'!$AN$68/'MMA Rev-Exp Region 3'!$AN$9, 0)","v":{"v":0,"d":"$0.00"}},{"$f":"IFERROR('MMA Rev-Exp Region 3'!$AO$68/'MMA Rev-Exp Region 3'!$AO$9, 0)","v":{"v":0,"d":"$0.00"}},{"$f":"IFERROR('MMA Rev-Exp Region 3'!$AP$68/'MMA Rev-Exp Region 3'!$AP$9, 0)","v":{"v":0,"d":"$0.00"}},{"$f":"IFERROR('MMA Rev-Exp Region 3'!$AQ$68/'MMA Rev-Exp Region 3'!$AQ$9, 0)","v":{"v":0,"d":"$0.00"}},{"$f":"IFERROR('MMA Rev-Exp Region 3'!$AR$68/'MMA Rev-Exp Region 3'!$AR$9, 0)","v":{"v":0,"d":"$0.00"}},{"$f":"IFERROR('MMA Rev-Exp Region 3'!$AS$68/'MMA Rev-Exp Region 3'!$AS$9, 0)","v":{"v":0,"d":"$0.00"}},{"$f":"IFERROR('MMA Rev-Exp Region 3'!$AT$68/'MMA Rev-Exp Region 3'!$AT$9, 0)","v":{"v":0,"d":"$0.00"}},{"$f":"IFERROR('MMA Rev-Exp Region 3'!$AU$68/'MMA Rev-Exp Region 3'!$AU$9, 0)","v":{"v":0,"d":"$0.00"}}]
["MMA",null,null,2016,"2016-12-31","Q4","2017-12-31","Region 3","Operating Expense","Medical Benefits Expense","Other MMA Services","9.6","Ending IBNP for Other Services",{"$f":"IFERROR('MMA Rev-Exp Region 3'!$AK$69/'MMA Rev-Exp Region 3'!$AK$9, 0)","v":{"v":0,"d":"$0.00"}},{"$f":"IFERROR('MMA Rev-Exp Region 3'!$AL$69/'MMA Rev-Exp Region 3'!$AL$9, 0)","v":{"v":0,"d":"$0.00"}},{"$f":"IFERROR('MMA Rev-Exp Region 3'!$AM$69/'MMA Rev-Exp Region 3'!$AM$9, 0)","v":{"v":0,"d":"$0.00"}},{"$f":"IFERROR('MMA Rev-Exp Region 3'!$AN$69/'MMA Rev-Exp Region 3'!$AN$9, 0)","v":{"v":0,"d":"$0.00"}},{"$f":"IFERROR('MMA Rev-Exp Region 3'!$AO$69/'MMA Rev-Exp Region 3'!$AO$9, 0)","v":{"v":0,"d":"$0.00"}},{"$f":"IFERROR('MMA Rev-Exp Region 3'!$AP$69/'MMA Rev-Exp Region 3'!$AP$9, 0)","v":{"v":0,"d":"$0.00"}},{"$f":"IFERROR('MMA Rev-Exp Region 3'!$AQ$69/'MMA Rev-Exp Region 3'!$AQ$9, 0)","v":{"v":0,"d":"$0.00"}},{"$f":"IFERROR('MMA Rev-Exp Region 3'!$AR$69/'MMA Rev-Exp Region 3'!$AR$9, 0)","v":{"v":0,"d":"$0.00"}},{"$f":"IFERROR('MMA Rev-Exp Region 3'!$AS$69/'MMA Rev-Exp Region 3'!$AS$9, 0)","v":{"v":0,"d":"$0.00"}},{"$f":"IFERROR('MMA Rev-Exp Region 3'!$AT$69/'MMA Rev-Exp Region 3'!$AT$9, 0)","v":{"v":0,"d":"$0.00"}},{"$f":"IFERROR('MMA Rev-Exp Region 3'!$AU$69/'MMA Rev-Exp Region 3'!$AU$9, 0)","v":{"v":0,"d":"$0.00"}}]
["MMA",null,null,2016,"2016-12-31","Q4","2017-12-31","Region 3","Operating Expense","Medical Benefits Expense","Other MMA Services","9.7","Other Services Settlements",{"$f":"IFERROR('MMA Rev-Exp Region 3'!$AK$70/'MMA Rev-Exp Region 3'!$AK$9, 0)","v":{"v":0,"d":"$0.00"}},{"$f":"IFERROR('MMA Rev-Exp Region 3'!$AL$70/'MMA Rev-Exp Region 3'!$AL$9, 0)","v":{"v":0,"d":"$0.00"}},{"$f":"IFERROR('MMA Rev-Exp Region 3'!$AM$70/'MMA Rev-Exp Region 3'!$AM$9, 0)","v":{"v":0,"d":"$0.00"}},{"$f":"IFERROR('MMA Rev-Exp Region 3'!$AN$70/'MMA Rev-Exp Region 3'!$AN$9, 0)","v":{"v":0,"d":"$0.00"}},{"$f":"IFERROR('MMA Rev-Exp Region 3'!$AO$70/'MMA Rev-Exp Region 3'!$AO$9, 0)","v":{"v":0,"d":"$0.00"}},{"$f":"IFERROR('MMA Rev-Exp Region 3'!$AP$70/'MMA Rev-Exp Region 3'!$AP$9, 0)","v":{"v":0,"d":"$0.00"}},{"$f":"IFERROR('MMA Rev-Exp Region 3'!$AQ$70/'MMA Rev-Exp Region 3'!$AQ$9, 0)","v":{"v":0,"d":"$0.00"}},{"$f":"IFERROR('MMA Rev-Exp Region 3'!$AR$70/'MMA Rev-Exp Region 3'!$AR$9, 0)","v":{"v":0,"d":"$0.00"}},{"$f":"IFERROR('MMA Rev-Exp Region 3'!$AS$70/'MMA Rev-Exp Region 3'!$AS$9, 0)","v":{"v":0,"d":"$0.00"}},{"$f":"IFERROR('MMA Rev-Exp Region 3'!$AT$70/'MMA Rev-Exp Region 3'!$AT$9, 0)","v":{"v":0,"d":"$0.00"}},{"$f":"IFERROR('MMA Rev-Exp Region 3'!$AU$70/'MMA Rev-Exp Region 3'!$AU$9, 0)","v":{"v":0,"d":"$0.00"}}]
["MMA",null,null,2016,"2016-12-31","Q4","2017-12-31","Region 3","Operating Expense","Medical Benefits Expense","Expanded Benefits","10.1","Expanded Benefits FFS",{"$f":"IFERROR('MMA Rev-Exp Region 3'!$AK$72/'MMA Rev-Exp Region 3'!$AK$9, 0)","v":{"v":0,"d":"$0.00"}},{"$f":"IFERROR('MMA Rev-Exp Region 3'!$AL$72/'MMA Rev-Exp Region 3'!$AL$9, 0)","v":{"v":0,"d":"$0.00"}},{"$f":"IFERROR('MMA Rev-Exp Region 3'!$AM$72/'MMA Rev-Exp Region 3'!$AM$9, 0)","v":{"v":0,"d":"$0.00"}},{"$f":"IFERROR('MMA Rev-Exp Region 3'!$AN$72/'MMA Rev-Exp Region 3'!$AN$9, 0)","v":{"v":0,"d":"$0.00"}},{"$f":"IFERROR('MMA Rev-Exp Region 3'!$AO$72/'MMA Rev-Exp Region 3'!$AO$9, 0)","v":{"v":0,"d":"$0.00"}},{"$f":"IFERROR('MMA Rev-Exp Region 3'!$AP$72/'MMA Rev-Exp Region 3'!$AP$9, 0)","v":{"v":0,"d":"$0.00"}},{"$f":"IFERROR('MMA Rev-Exp Region 3'!$AQ$72/'MMA Rev-Exp Region 3'!$AQ$9, 0)","v":{"v":0,"d":"$0.00"}},{"$f":"IFERROR('MMA Rev-Exp Region 3'!$AR$72/'MMA Rev-Exp Region 3'!$AR$9, 0)","v":{"v":0,"d":"$0.00"}},{"$f":"IFERROR('MMA Rev-Exp Region 3'!$AS$72/'MMA Rev-Exp Region 3'!$AS$9, 0)","v":{"v":0,"d":"$0.00"}},{"$f":"IFERROR('MMA Rev-Exp Region 3'!$AT$72/'MMA Rev-Exp Region 3'!$AT$9, 0)","v":{"v":0,"d":"$0.00"}},{"$f":"IFERROR('MMA Rev-Exp Region 3'!$AU$72/'MMA Rev-Exp Region 3'!$AU$9, 0)","v":{"v":0,"d":"$0.00"}}]
["MMA",null,null,2016,"2016-12-31","Q4","2017-12-31","Region 3","Operating Expense","Medical Benefits Expense","Expanded Benefits","10.2","Expanded benefits Subcapitation",{"$f":"IFERROR('MMA Rev-Exp Region 3'!$AK$73/'MMA Rev-Exp Region 3'!$AK$9, 0)","v":{"v":0,"d":"$0.00"}},{"$f":"IFERROR('MMA Rev-Exp Region 3'!$AL$73/'MMA Rev-Exp Region 3'!$AL$9, 0)","v":{"v":0,"d":"$0.00"}},{"$f":"IFERROR('MMA Rev-Exp Region 3'!$AM$73/'MMA Rev-Exp Region 3'!$AM$9, 0)","v":{"v":0,"d":"$0.00"}},{"$f":"IFERROR('MMA Rev-Exp Region 3'!$AN$73/'MMA Rev-Exp Region 3'!$AN$9, 0)","v":{"v":0,"d":"$0.00"}},{"$f":"IFERROR('MMA Rev-Exp Region 3'!$AO$73/'MMA Rev-Exp Region 3'!$AO$9, 0)","v":{"v":0,"d":"$0.00"}},{"$f":"IFERROR('MMA Rev-Exp Region 3'!$AP$73/'MMA Rev-Exp Region 3'!$AP$9, 0)","v":{"v":0,"d":"$0.00"}},{"$f":"IFERROR('MMA Rev-Exp Region 3'!$AQ$73/'MMA Rev-Exp Region 3'!$AQ$9, 0)","v":{"v":0,"d":"$0.00"}},{"$f":"IFERROR('MMA Rev-Exp Region 3'!$AR$73/'MMA Rev-Exp Region 3'!$AR$9, 0)","v":{"v":0,"d":"$0.00"}},{"$f":"IFERROR('MMA Rev-Exp Region 3'!$AS$73/'MMA Rev-Exp Region 3'!$AS$9, 0)","v":{"v":0,"d":"$0.00"}},{"$f":"IFERROR('MMA Rev-Exp Region 3'!$AT$73/'MMA Rev-Exp Region 3'!$AT$9, 0)","v":{"v":0,"d":"$0.00"}},{"$f":"IFERROR('MMA Rev-Exp Region 3'!$AU$73/'MMA Rev-Exp Region 3'!$AU$9, 0)","v":{"v":0,"d":"$0.00"}}]
["MMA",null,null,2016,"2016-12-31","Q4","2017-12-31","Region 3","Operating Expense","Medical Benefits Expense","Expanded Benefits","10.3","Ending IBNP for Expanded Benefits",{"$f":"IFERROR('MMA Rev-Exp Region 3'!$AK$74/'MMA Rev-Exp Region 3'!$AK$9, 0)","v":{"v":0,"d":"$0.00"}},{"$f":"IFERROR('MMA Rev-Exp Region 3'!$AL$74/'MMA Rev-Exp Region 3'!$AL$9, 0)","v":{"v":0,"d":"$0.00"}},{"$f":"IFERROR('MMA Rev-Exp Region 3'!$AM$74/'MMA Rev-Exp Region 3'!$AM$9, 0)","v":{"v":0,"d":"$0.00"}},{"$f":"IFERROR('MMA Rev-Exp Region 3'!$AN$74/'MMA Rev-Exp Region 3'!$AN$9, 0)","v":{"v":0,"d":"$0.00"}},{"$f":"IFERROR('MMA Rev-Exp Region 3'!$AO$74/'MMA Rev-Exp Region 3'!$AO$9, 0)","v":{"v":0,"d":"$0.00"}},{"$f":"IFERROR('MMA Rev-Exp Region 3'!$AP$74/'MMA Rev-Exp Region 3'!$AP$9, 0)","v":{"v":0,"d":"$0.00"}},{"$f":"IFERROR('MMA Rev-Exp Region 3'!$AQ$74/'MMA Rev-Exp Region 3'!$AQ$9, 0)","v":{"v":0,"d":"$0.00"}},{"$f":"IFERROR('MMA Rev-Exp Region 3'!$AR$74/'MMA Rev-Exp Region 3'!$AR$9, 0)","v":{"v":0,"d":"$0.00"}},{"$f":"IFERROR('MMA Rev-Exp Region 3'!$AS$74/'MMA Rev-Exp Region 3'!$AS$9, 0)","v":{"v":0,"d":"$0.00"}},{"$f":"IFERROR('MMA Rev-Exp Region 3'!$AT$74/'MMA Rev-Exp Region 3'!$AT$9, 0)","v":{"v":0,"d":"$0.00"}},{"$f":"IFERROR('MMA Rev-Exp Region 3'!$AU$74/'MMA Rev-Exp Region 3'!$AU$9, 0)","v":{"v":0,"d":"$0.00"}}]
["MMA",null,null,2016,"2016-12-31","Q4","2017-12-31","Region 3","Operating Expense","Medical Benefits Expense","Expanded Benefits","10.4","Expanded Benefits Settlements",{"$f":"IFERROR('MMA Rev-Exp Region 3'!$AK$75/'MMA Rev-Exp Region 3'!$AK$9, 0)","v":{"v":0,"d":"$0.00"}},{"$f":"IFERROR('MMA Rev-Exp Region 3'!$AL$75/'MMA Rev-Exp Region 3'!$AL$9, 0)","v":{"v":0,"d":"$0.00"}},{"$f":"IFERROR('MMA Rev-Exp Region 3'!$AM$75/'MMA Rev-Exp Region 3'!$AM$9, 0)","v":{"v":0,"d":"$0.00"}},{"$f":"IFERROR('MMA Rev-Exp Region 3'!$AN$75/'MMA Rev-Exp Region 3'!$AN$9, 0)","v":{"v":0,"d":"$0.00"}},{"$f":"IFERROR('MMA Rev-Exp Region 3'!$AO$75/'MMA Rev-Exp Region 3'!$AO$9, 0)","v":{"v":0,"d":"$0.00"}},{"$f":"IFERROR('MMA Rev-Exp Region 3'!$AP$75/'MMA Rev-Exp Region 3'!$AP$9, 0)","v":{"v":0,"d":"$0.00"}},{"$f":"IFERROR('MMA Rev-Exp Region 3'!$AQ$75/'MMA Rev-Exp Region 3'!$AQ$9, 0)","v":{"v":0,"d":"$0.00"}},{"$f":"IFERROR('MMA Rev-Exp Region 3'!$AR$75/'MMA Rev-Exp Region 3'!$AR$9, 0)","v":{"v":0,"d":"$0.00"}},{"$f":"IFERROR('MMA Rev-Exp Region 3'!$AS$75/'MMA Rev-Exp Region 3'!$AS$9, 0)","v":{"v":0,"d":"$0.00"}},{"$f":"IFERROR('MMA Rev-Exp Region 3'!$AT$75/'MMA Rev-Exp Region 3'!$AT$9, 0)","v":{"v":0,"d":"$0.00"}},{"$f":"IFERROR('MMA Rev-Exp Region 3'!$AU$75/'MMA Rev-Exp Region 3'!$AU$9, 0)","v":{"v":0,"d":"$0.00"}}]
["MMA",null,null,2016,"2016-12-31","Q4","2017-12-31","Region 3","Operating Expense","Medical Benefits Expense","Other Medical","11.5","TPL & Fraud/Abuse Recoveries",{"$f":"IFERROR('MMA Rev-Exp Region 3'!$AK$81/'MMA Rev-Exp Region 3'!$AK$9, 0)","v":{"v":0,"d":"$0.00"}},{"$f":"IFERROR('MMA Rev-Exp Region 3'!$AL$81/'MMA Rev-Exp Region 3'!$AL$9, 0)","v":{"v":0,"d":"$0.00"}},{"$f":"IFERROR('MMA Rev-Exp Region 3'!$AM$81/'MMA Rev-Exp Region 3'!$AM$9, 0)","v":{"v":0,"d":"$0.00"}},{"$f":"IFERROR('MMA Rev-Exp Region 3'!$AN$81/'MMA Rev-Exp Region 3'!$AN$9, 0)","v":{"v":0,"d":"$0.00"}},{"$f":"IFERROR('MMA Rev-Exp Region 3'!$AO$81/'MMA Rev-Exp Region 3'!$AO$9, 0)","v":{"v":0,"d":"$0.00"}},{"$f":"IFERROR('MMA Rev-Exp Region 3'!$AP$81/'MMA Rev-Exp Region 3'!$AP$9, 0)","v":{"v":0,"d":"$0.00"}},{"$f":"IFERROR('MMA Rev-Exp Region 3'!$AQ$81/'MMA Rev-Exp Region 3'!$AQ$9, 0)","v":{"v":0,"d":"$0.00"}},{"$f":"IFERROR('MMA Rev-Exp Region 3'!$AR$81/'MMA Rev-Exp Region 3'!$AR$9, 0)","v":{"v":0,"d":"$0.00"}},{"$f":"IFERROR('MMA Rev-Exp Region 3'!$AS$81/'MMA Rev-Exp Region 3'!$AS$9, 0)","v":{"v":0,"d":"$0.00"}},{"$f":"IFERROR('MMA Rev-Exp Region 3'!$AT$81/'MMA Rev-Exp Region 3'!$AT$9, 0)","v":{"v":0,"d":"$0.00"}},{"$f":"IFERROR('MMA Rev-Exp Region 3'!$AU$81/'MMA Rev-Exp Region 3'!$AU$9, 0)","v":{"v":0,"d":"$0.00"}}]
["MMA",null,null,2016,"2016-12-31","Q4","2017-12-31","Region 3","Operating Expense","Medical Benefits Expense","Other Medical","11.6.1","Premium Deficiency Reserve",{"$f":"IFERROR('MMA Rev-Exp Region 3'!$AK$82/'MMA Rev-Exp Region 3'!$AK$9, 0)","v":{"v":0,"d":"$0.00"}},{"$f":"IFERROR('MMA Rev-Exp Region 3'!$AL$82/'MMA Rev-Exp Region 3'!$AL$9, 0)","v":{"v":0,"d":"$0.00"}},{"$f":"IFERROR('MMA Rev-Exp Region 3'!$AM$82/'MMA Rev-Exp Region 3'!$AM$9, 0)","v":{"v":0,"d":"$0.00"}},{"$f":"IFERROR('MMA Rev-Exp Region 3'!$AN$82/'MMA Rev-Exp Region 3'!$AN$9, 0)","v":{"v":0,"d":"$0.00"}},{"$f":"IFERROR('MMA Rev-Exp Region 3'!$AO$82/'MMA Rev-Exp Region 3'!$AO$9, 0)","v":{"v":0,"d":"$0.00"}},{"$f":"IFERROR('MMA Rev-Exp Region 3'!$AP$82/'MMA Rev-Exp Region 3'!$AP$9, 0)","v":{"v":0,"d":"$0.00"}},{"$f":"IFERROR('MMA Rev-Exp Region 3'!$AQ$82/'MMA Rev-Exp Region 3'!$AQ$9, 0)","v":{"v":0,"d":"$0.00"}},{"$f":"IFERROR('MMA Rev-Exp Region 3'!$AR$82/'MMA Rev-Exp Region 3'!$AR$9, 0)","v":{"v":0,"d":"$0.00"}},{"$f":"IFERROR('MMA Rev-Exp Region 3'!$AS$82/'MMA Rev-Exp Region 3'!$AS$9, 0)","v":{"v":0,"d":"$0.00"}},{"$f":"IFERROR('MMA Rev-Exp Region 3'!$AT$82/'MMA Rev-Exp Region 3'!$AT$9, 0)","v":{"v":0,"d":"$0.00"}},{"$f":"IFERROR('MMA Rev-Exp Region 3'!$AU$82/'MMA Rev-Exp Region 3'!$AU$9, 0)","v":{"v":0,"d":"$0.00"}}]
["MMA",null,null,2016,"2016-12-31","Q4","2017-12-31","Region 3","Operating Expense","Medical Benefits Expense","Other Medical","11.8","Reinsurance Premiums",{"$f":"IFERROR('MMA Rev-Exp Region 3'!$AK$84/'MMA Rev-Exp Region 3'!$AK$9, 0)","v":{"v":0,"d":"$0.00"}},{"$f":"IFERROR('MMA Rev-Exp Region 3'!$AL$84/'MMA Rev-Exp Region 3'!$AL$9, 0)","v":{"v":0,"d":"$0.00"}},{"$f":"IFERROR('MMA Rev-Exp Region 3'!$AM$84/'MMA Rev-Exp Region 3'!$AM$9, 0)","v":{"v":0,"d":"$0.00"}},{"$f":"IFERROR('MMA Rev-Exp Region 3'!$AN$84/'MMA Rev-Exp Region 3'!$AN$9, 0)","v":{"v":0,"d":"$0.00"}},{"$f":"IFERROR('MMA Rev-Exp Region 3'!$AO$84/'MMA Rev-Exp Region 3'!$AO$9, 0)","v":{"v":0,"d":"$0.00"}},{"$f":"IFERROR('MMA Rev-Exp Region 3'!$AP$84/'MMA Rev-Exp Region 3'!$AP$9, 0)","v":{"v":0,"d":"$0.00"}},{"$f":"IFERROR('MMA Rev-Exp Region 3'!$AQ$84/'MMA Rev-Exp Region 3'!$AQ$9, 0)","v":{"v":0,"d":"$0.00"}},{"$f":"IFERROR('MMA Rev-Exp Region 3'!$AR$84/'MMA Rev-Exp Region 3'!$AR$9, 0)","v":{"v":0,"d":"$0.00"}},{"$f":"IFERROR('MMA Rev-Exp Region 3'!$AS$84/'MMA Rev-Exp Region 3'!$AS$9, 0)","v":{"v":0,"d":"$0.00"}},{"$f":"IFERROR('MMA Rev-Exp Region 3'!$AT$84/'MMA Rev-Exp Region 3'!$AT$9, 0)","v":{"v":0,"d":"$0.00"}},{"$f":"IFERROR('MMA Rev-Exp Region 3'!$AU$84/'MMA Rev-Exp Region 3'!$AU$9, 0)","v":{"v":0,"d":"$0.00"}}]
["MMA",null,null,2016,"2016-12-31","Q4","2017-12-31","Region 3","Operating Expense","Medical Benefits Expense","Other Medical","11.9","Reinsurance Recoveries",{"$f":"IFERROR('MMA Rev-Exp Region 3'!$AK$85/'MMA Rev-Exp Region 3'!$AK$9, 0)","v":{"v":0,"d":"$0.00"}},{"$f":"IFERROR('MMA Rev-Exp Region 3'!$AL$85/'MMA Rev-Exp Region 3'!$AL$9, 0)","v":{"v":0,"d":"$0.00"}},{"$f":"IFERROR('MMA Rev-Exp Region 3'!$AM$85/'MMA Rev-Exp Region 3'!$AM$9, 0)","v":{"v":0,"d":"$0.00"}},{"$f":"IFERROR('MMA Rev-Exp Region 3'!$AN$85/'MMA Rev-Exp Region 3'!$AN$9, 0)","v":{"v":0,"d":"$0.00"}},{"$f":"IFERROR('MMA Rev-Exp Region 3'!$AO$85/'MMA Rev-Exp Region 3'!$AO$9, 0)","v":{"v":0,"d":"$0.00"}},{"$f":"IFERROR('MMA Rev-Exp Region 3'!$AP$85/'MMA Rev-Exp Region 3'!$AP$9, 0)","v":{"v":0,"d":"$0.00"}},{"$f":"IFERROR('MMA Rev-Exp Region 3'!$AQ$85/'MMA Rev-Exp Region 3'!$AQ$9, 0)","v":{"v":0,"d":"$0.00"}},{"$f":"IFERROR('MMA Rev-Exp Region 3'!$AR$85/'MMA Rev-Exp Region 3'!$AR$9, 0)","v":{"v":0,"d":"$0.00"}},{"$f":"IFERROR('MMA Rev-Exp Region 3'!$AS$85/'MMA Rev-Exp Region 3'!$AS$9, 0)","v":{"v":0,"d":"$0.00"}},{"$f":"IFERROR('MMA Rev-Exp Region 3'!$AT$85/'MMA Rev-Exp Region 3'!$AT$9, 0)","v":{"v":0,"d":"$0.00"}},{"$f":"IFERROR('MMA Rev-Exp Region 3'!$AU$85/'MMA Rev-Exp Region 3'!$AU$9, 0)","v":{"v":0,"d":"$0.00"}}]
["MMA",null,null,2016,"2016-12-31","Q4","2017-12-31","Region 3","Operating Expense","Administrative Expense","Administrative","12.1","Salaries & Benefits",{"$f":"IFERROR('MMA Rev-Exp Region 3'!$AK$90/'MMA Rev-Exp Region 3'!$AK$9, 0)","v":{"v":0,"d":"$0.00"}},{"$f":"IFERROR('MMA Rev-Exp Region 3'!$AL$90/'MMA Rev-Exp Region 3'!$AK$9, 0)","v":{"v":0,"d":"$0.00"}},{"$f":"IFERROR('MMA Rev-Exp Region 3'!$AM$90/'MMA Rev-Exp Region 3'!$AK$9, 0)","v":{"v":0,"d":"$0.00"}}]
["MMA",null,null,2016,"2016-12-31","Q4","2017-12-31","Region 3","Operating Expense","Administrative Expense","Administrative","12.2","Administrative Services",{"$f":"IFERROR('MMA Rev-Exp Region 3'!$AK$91/'MMA Rev-Exp Region 3'!$AK$9, 0)","v":{"v":0,"d":"$0.00"}},{"$f":"IFERROR('MMA Rev-Exp Region 3'!$AL$91/'MMA Rev-Exp Region 3'!$AK$9, 0)","v":{"v":0,"d":"$0.00"}},{"$f":"IFERROR('MMA Rev-Exp Region 3'!$AM$91/'MMA Rev-Exp Region 3'!$AK$9, 0)","v":{"v":0,"d":"$0.00"}}]
["MMA",null,null,2016,"2016-12-31","Q4","2017-12-31","Region 3","Operating Expense","Administrative Expense","Administrative","12.3","Information Systems",{"$f":"IFERROR('MMA Rev-Exp Region 3'!$AK$92/'MMA Rev-Exp Region 3'!$AK$9, 0)","v":{"v":0,"d":"$0.00"}},{"$f":"IFERROR('MMA Rev-Exp Region 3'!$AL$92/'MMA Rev-Exp Region 3'!$AK$9, 0)","v":{"v":0,"d":"$0.00"}},{"$f":"IFERROR('MMA Rev-Exp Region 3'!$AM$92/'MMA Rev-Exp Region 3'!$AK$9, 0)","v":{"v":0,"d":"$0.00"}}]
["MMA",null,null,2016,"2016-12-31","Q4","2017-12-31","Region 3","Operating Expense","Administrative Expense","Administrative","12.4","Marketing Expenses",{"$f":"IFERROR('MMA Rev-Exp Region 3'!$AK$93/'MMA Rev-Exp Region 3'!$AK$9, 0)","v":{"v":0,"d":"$0.00"}},{"$f":"IFERROR('MMA Rev-Exp Region 3'!$AL$93/'MMA Rev-Exp Region 3'!$AK$9, 0)","v":{"v":0,"d":"$0.00"}},{"$f":"IFERROR('MMA Rev-Exp Region 3'!$AM$93/'MMA Rev-Exp Region 3'!$AK$9, 0)","v":{"v":0,"d":"$0.00"}}]
["MMA",null,null,2016,"2016-12-31","Q4","2017-12-31","Region 3","Operating Expense","Administrative Expense","Administrative","12.5","General  Administration",{"$f":"IFERROR('MMA Rev-Exp Region 3'!$AK$94/'MMA Rev-Exp Region 3'!$AK$9, 0)","v":{"v":0,"d":"$0.00"}},{"$f":"IFERROR('MMA Rev-Exp Region 3'!$AL$94/'MMA Rev-Exp Region 3'!$AK$9, 0)","v":{"v":0,"d":"$0.00"}},{"$f":"IFERROR('MMA Rev-Exp Region 3'!$AM$94/'MMA Rev-Exp Region 3'!$AK$9, 0)","v":{"v":0,"d":"$0.00"}}]
["MMA",null,null,2016,"2016-12-31","Q4","2017-12-31","Region 3","Operating Expense","Administrative Expense","Administrative","12.6","Compliance/Regulatory",{"$f":"IFERROR('MMA Rev-Exp Region 3'!$AK$95/'MMA Rev-Exp Region 3'!$AK$9, 0)","v":{"v":0,"d":"$0.00"}},{"$f":"IFERROR('MMA Rev-Exp Region 3'!$AL$95/'MMA Rev-Exp Region 3'!$AK$9, 0)","v":{"v":0,"d":"$0.00"}},{"$f":"IFERROR('MMA Rev-Exp Region 3'!$AM$95/'MMA Rev-Exp Region 3'!$AK$9, 0)","v":{"v":0,"d":"$0.00"}}]
["MMA",null,null,2016,"2016-12-31","Q4","2017-12-31","Region 3","Operating Expense","Taxes & Fees","Taxes & Fees","13.1","State Premium tax",{"$f":"IFERROR('MMA Rev-Exp Region 3'!$AK$97/'MMA Rev-Exp Region 3'!$AK$9, 0)","v":{"v":0,"d":"$0.00"}}]
["MMA",null,null,2016,"2016-12-31","Q4","2017-12-31","Region 3","Operating Expense","Taxes & Fees","Taxes & Fees","13.2","Department of Insurance Assessments",{"$f":"IFERROR('MMA Rev-Exp Region 3'!$AK$98/'MMA Rev-Exp Region 3'!$AK$9, 0)","v":{"v":0,"d":"$0.00"}}]
["MMA",null,null,2016,"2016-12-31","Q4","2017-12-31","Region 3","Operating Expense","Taxes & Fees","Taxes & Fees","13.3","Section 9010 Health Insurance Providers Fee",{"$f":"IFERROR('MMA Rev-Exp Region 3'!$AK$99/'MMA Rev-Exp Region 3'!$AK$9, 0)","v":{"v":0,"d":"$0.00"}}]
["MMA",null,null,2016,"2016-12-31","Q4","2017-12-31","Region 3","Non-Operating Expense","Income Tax Expense","Income Tax Expense","16.0","Income Tax Expense",{"$f":"IFERROR('MMA Rev-Exp Region 3'!$AK$106/'MMA Rev-Exp Region 3'!$AK$9, 0)","v":{"v":0,"d":"$0.00"}}]
["MMA",null,null,2016,"2016-12-31","Q1","2017-03-31","Region 4","Operating Revenue","Capitation","Capitation",1.1,"Capitation",{"$f":"IFERROR('MMA Rev-Exp Region 4'!$D$11/'MMA Rev-Exp Region 4'!$D$9, 0)","v":{"v":0,"d":"$0.00"}},{"$f":"IFERROR('MMA Rev-Exp Region 4'!$E$11/'MMA Rev-Exp Region 4'!$E$9, 0)","v":{"v":0,"d":"$0.00"}},{"$f":"IFERROR('MMA Rev-Exp Region 4'!$F$11/'MMA Rev-Exp Region 4'!$F$9, 0)","v":{"v":0,"d":"$0.00"}},{"$f":"IFERROR('MMA Rev-Exp Region 4'!$G$11/'MMA Rev-Exp Region 4'!$G$9, 0)","v":{"v":0,"d":"$0.00"}},{"$f":"IFERROR('MMA Rev-Exp Region 4'!$H$11/'MMA Rev-Exp Region 4'!$H$9, 0)","v":{"v":0,"d":"$0.00"}},{"$f":"IFERROR('MMA Rev-Exp Region 4'!$I$11/'MMA Rev-Exp Region 4'!$I$9, 0)","v":{"v":0,"d":"$0.00"}},{"$f":"IFERROR('MMA Rev-Exp Region 4'!$J$11/'MMA Rev-Exp Region 4'!$J$9, 0)","v":{"v":0,"d":"$0.00"}},{"$f":"IFERROR('MMA Rev-Exp Region 4'!$K$11/'MMA Rev-Exp Region 4'!$K$9, 0)","v":{"v":0,"d":"$0.00"}},{"$f":"IFERROR('MMA Rev-Exp Region 4'!$L$11/'MMA Rev-Exp Region 4'!$L$9, 0)","v":{"v":0,"d":"$0.00"}},{"$f":"IFERROR('MMA Rev-Exp Region 4'!$M$11/'MMA Rev-Exp Region 4'!$M$9, 0)","v":{"v":0,"d":"$0.00"}},{"$f":"IFERROR('MMA Rev-Exp Region 4'!$N$11/'MMA Rev-Exp Region 4'!$N$9, 0)","v":{"v":0,"d":"$0.00"}}]
["MMA",null,null,2016,"2016-12-31","Q1","2017-03-31","Region 4","Operating Revenue","Kick Payments","Kick Payments - Transplant",1.2,"Transplant Kick Payments",{"$f":"IFERROR('MMA Rev-Exp Region 4'!$D$12/'MMA Rev-Exp Region 4'!$D$9, 0)","v":{"v":0,"d":"$0.00"}},{"$f":"IFERROR('MMA Rev-Exp Region 4'!$E$12/'MMA Rev-Exp Region 4'!$E$9, 0)","v":{"v":0,"d":"$0.00"}},{"$f":"IFERROR('MMA Rev-Exp Region 4'!$F$12/'MMA Rev-Exp Region 4'!$F$9, 0)","v":{"v":0,"d":"$0.00"}},{"$f":"IFERROR('MMA Rev-Exp Region 4'!$G$12/'MMA Rev-Exp Region 4'!$G$9, 0)","v":{"v":0,"d":"$0.00"}},{"$f":"IFERROR('MMA Rev-Exp Region 4'!$H$12/'MMA Rev-Exp Region 4'!$H$9, 0)","v":{"v":0,"d":"$0.00"}},{"$f":"IFERROR('MMA Rev-Exp Region 4'!$I$12/'MMA Rev-Exp Region 4'!$I$9, 0)","v":{"v":0,"d":"$0.00"}},{"$f":"IFERROR('MMA Rev-Exp Region 4'!$J$12/'MMA Rev-Exp Region 4'!$J$9, 0)","v":{"v":0,"d":"$0.00"}},{"$f":"IFERROR('MMA Rev-Exp Region 4'!$K$12/'MMA Rev-Exp Region 4'!$K$9, 0)","v":{"v":0,"d":"$0.00"}},{"$f":"IFERROR('MMA Rev-Exp Region 4'!$L$12/'MMA Rev-Exp Region 4'!$L$9, 0)","v":{"v":0,"d":"$0.00"}},{"$f":"IFERROR('MMA Rev-Exp Region 4'!$M$12/'MMA Rev-Exp Region 4'!$M$9, 0)","v":{"v":0,"d":"$0.00"}},{"$f":"IFERROR('MMA Rev-Exp Region 4'!$N$12/'MMA Rev-Exp Region 4'!$N$9, 0)","v":{"v":0,"d":"$0.00"}}]
["MMA",null,null,2016,"2016-12-31","Q1","2017-03-31","Region 4","Operating Revenue","Kick Payments","Kick Payments - Hep C","1.3","Hepatitis C Kick Payments",{"$f":"IFERROR('MMA Rev-Exp Region 4'!$D$13/'MMA Rev-Exp Region 4'!$D$9, 0)","v":{"v":0,"d":"$0.00"}},{"$f":"IFERROR('MMA Rev-Exp Region 4'!$E$13/'MMA Rev-Exp Region 4'!$E$9, 0)","v":{"v":0,"d":"$0.00"}},{"$f":"IFERROR('MMA Rev-Exp Region 4'!$F$13/'MMA Rev-Exp Region 4'!$F$9, 0)","v":{"v":0,"d":"$0.00"}},{"$f":"IFERROR('MMA Rev-Exp Region 4'!$G$13/'MMA Rev-Exp Region 4'!$G$9, 0)","v":{"v":0,"d":"$0.00"}},{"$f":"IFERROR('MMA Rev-Exp Region 4'!$H$13/'MMA Rev-Exp Region 4'!$H$9, 0)","v":{"v":0,"d":"$0.00"}},{"$f":"IFERROR('MMA Rev-Exp Region 4'!$I$13/'MMA Rev-Exp Region 4'!$I$9, 0)","v":{"v":0,"d":"$0.00"}},{"$f":"IFERROR('MMA Rev-Exp Region 4'!$J$13/'MMA Rev-Exp Region 4'!$J$9, 0)","v":{"v":0,"d":"$0.00"}},{"$f":"IFERROR('MMA Rev-Exp Region 4'!$K$13/'MMA Rev-Exp Region 4'!$K$9, 0)","v":{"v":0,"d":"$0.00"}},{"$f":"IFERROR('MMA Rev-Exp Region 4'!$L$13/'MMA Rev-Exp Region 4'!$L$9, 0)","v":{"v":0,"d":"$0.00"}},{"$f":"IFERROR('MMA Rev-Exp Region 4'!$M$13/'MMA Rev-Exp Region 4'!$M$9, 0)","v":{"v":0,"d":"$0.00"}},{"$f":"IFERROR('MMA Rev-Exp Region 4'!$N$13/'MMA Rev-Exp Region 4'!$N$9, 0)","v":{"v":0,"d":"$0.00"}}]
["MMA",null,null,2016,"2016-12-31","Q1","2017-03-31","Region 4","Operating Revenue","Kick Payments","Kick Payments - Maternity","1.4.1","Maternity Kick Payments",{"$f":"IFERROR('MMA Rev-Exp Region 4'!$D$14/'MMA Rev-Exp Region 4'!$D$9, 0)","v":{"v":0,"d":"$0.00"}},{"$f":"IFERROR('MMA Rev-Exp Region 4'!$E$14/'MMA Rev-Exp Region 4'!$E$9, 0)","v":{"v":0,"d":"$0.00"}},{"$f":"IFERROR('MMA Rev-Exp Region 4'!$F$14/'MMA Rev-Exp Region 4'!$F$9, 0)","v":{"v":0,"d":"$0.00"}},{"$f":"IFERROR('MMA Rev-Exp Region 4'!$G$14/'MMA Rev-Exp Region 4'!$G$9, 0)","v":{"v":0,"d":"$0.00"}},{"$f":"IFERROR('MMA Rev-Exp Region 4'!$H$14/'MMA Rev-Exp Region 4'!$H$9, 0)","v":{"v":0,"d":"$0.00"}},{"$f":"IFERROR('MMA Rev-Exp Region 4'!$I$14/'MMA Rev-Exp Region 4'!$I$9, 0)","v":{"v":0,"d":"$0.00"}},{"$f":"IFERROR('MMA Rev-Exp Region 4'!$J$14/'MMA Rev-Exp Region 4'!$J$9, 0)","v":{"v":0,"d":"$0.00"}},{"$f":"IFERROR('MMA Rev-Exp Region 4'!$K$14/'MMA Rev-Exp Region 4'!$K$9, 0)","v":{"v":0,"d":"$0.00"}},{"$f":"IFERROR('MMA Rev-Exp Region 4'!$L$14/'MMA Rev-Exp Region 4'!$L$9, 0)","v":{"v":0,"d":"$0.00"}},{"$f":"IFERROR('MMA Rev-Exp Region 4'!$M$14/'MMA Rev-Exp Region 4'!$M$9, 0)","v":{"v":0,"d":"$0.00"}},{"$f":"IFERROR('MMA Rev-Exp Region 4'!$N$14/'MMA Rev-Exp Region 4'!$N$9, 0)","v":{"v":0,"d":"$0.00"}}]
["MMA",null,null,2016,"2016-12-31","Q1","2017-03-31","Region 4","Operating Revenue","Other Revenue","Other Revenue - 9010","1.5","ACA § 9010 related payments",{"$f":"IFERROR('MMA Rev-Exp Region 4'!$D$15/'MMA Rev-Exp Region 4'!$D$9, 0)","v":{"v":0,"d":"$0.00"}},{"$f":"IFERROR('MMA Rev-Exp Region 4'!$E$15/'MMA Rev-Exp Region 4'!$E$9, 0)","v":{"v":0,"d":"$0.00"}},{"$f":"IFERROR('MMA Rev-Exp Region 4'!$F$15/'MMA Rev-Exp Region 4'!$F$9, 0)","v":{"v":0,"d":"$0.00"}},{"$f":"IFERROR('MMA Rev-Exp Region 4'!$G$15/'MMA Rev-Exp Region 4'!$G$9, 0)","v":{"v":0,"d":"$0.00"}},{"$f":"IFERROR('MMA Rev-Exp Region 4'!$H$15/'MMA Rev-Exp Region 4'!$H$9, 0)","v":{"v":0,"d":"$0.00"}},{"$f":"IFERROR('MMA Rev-Exp Region 4'!$I$15/'MMA Rev-Exp Region 4'!$I$9, 0)","v":{"v":0,"d":"$0.00"}},{"$f":"IFERROR('MMA Rev-Exp Region 4'!$J$15/'MMA Rev-Exp Region 4'!$J$9, 0)","v":{"v":0,"d":"$0.00"}},{"$f":"IFERROR('MMA Rev-Exp Region 4'!$K$15/'MMA Rev-Exp Region 4'!$K$9, 0)","v":{"v":0,"d":"$0.00"}},{"$f":"IFERROR('MMA Rev-Exp Region 4'!$L$15/'MMA Rev-Exp Region 4'!$L$9, 0)","v":{"v":0,"d":"$0.00"}},{"$f":"IFERROR('MMA Rev-Exp Region 4'!$M$15/'MMA Rev-Exp Region 4'!$M$9, 0)","v":{"v":0,"d":"$0.00"}},{"$f":"IFERROR('MMA Rev-Exp Region 4'!$N$15/'MMA Rev-Exp Region 4'!$N$9, 0)","v":{"v":0,"d":"$0.00"}}]
["MMA",null,null,2016,"2016-12-31","Q1","2017-03-31","Region 4","Operating Revenue","Other Revenue","Other Revenue","1.6","Other Revenue",{"$f":"IFERROR('MMA Rev-Exp Region 4'!$D$16/'MMA Rev-Exp Region 4'!$D$9, 0)","v":{"v":0,"d":"$0.00"}},{"$f":"IFERROR('MMA Rev-Exp Region 4'!$E$16/'MMA Rev-Exp Region 4'!$E$9, 0)","v":{"v":0,"d":"$0.00"}},{"$f":"IFERROR('MMA Rev-Exp Region 4'!$F$16/'MMA Rev-Exp Region 4'!$F$9, 0)","v":{"v":0,"d":"$0.00"}},{"$f":"IFERROR('MMA Rev-Exp Region 4'!$G$16/'MMA Rev-Exp Region 4'!$G$9, 0)","v":{"v":0,"d":"$0.00"}},{"$f":"IFERROR('MMA Rev-Exp Region 4'!$H$16/'MMA Rev-Exp Region 4'!$H$9, 0)","v":{"v":0,"d":"$0.00"}},{"$f":"IFERROR('MMA Rev-Exp Region 4'!$I$16/'MMA Rev-Exp Region 4'!$I$9, 0)","v":{"v":0,"d":"$0.00"}},{"$f":"IFERROR('MMA Rev-Exp Region 4'!$J$16/'MMA Rev-Exp Region 4'!$J$9, 0)","v":{"v":0,"d":"$0.00"}},{"$f":"IFERROR('MMA Rev-Exp Region 4'!$K$16/'MMA Rev-Exp Region 4'!$K$9, 0)","v":{"v":0,"d":"$0.00"}},{"$f":"IFERROR('MMA Rev-Exp Region 4'!$L$16/'MMA Rev-Exp Region 4'!$L$9, 0)","v":{"v":0,"d":"$0.00"}},{"$f":"IFERROR('MMA Rev-Exp Region 4'!$M$16/'MMA Rev-Exp Region 4'!$M$9, 0)","v":{"v":0,"d":"$0.00"}},{"$f":"IFERROR('MMA Rev-Exp Region 4'!$N$16/'MMA Rev-Exp Region 4'!$N$9, 0)","v":{"v":0,"d":"$0.00"}}]
["MMA",null,null,2016,"2016-12-31","Q1","2017-03-31","Region 4","Operating Expense","Medical Benefits Expense","Hospital Services",2.1,"Inpatient FFS",{"$f":"IFERROR('MMA Rev-Exp Region 4'!$D$20/'MMA Rev-Exp Region 4'!$D$9, 0)","v":{"v":0,"d":"$0.00"}},{"$f":"IFERROR('MMA Rev-Exp Region 4'!$E$20/'MMA Rev-Exp Region 4'!$E$9, 0)","v":{"v":0,"d":"$0.00"}},{"$f":"IFERROR('MMA Rev-Exp Region 4'!$F$20/'MMA Rev-Exp Region 4'!$F$9, 0)","v":{"v":0,"d":"$0.00"}},{"$f":"IFERROR('MMA Rev-Exp Region 4'!$G$20/'MMA Rev-Exp Region 4'!$G$9, 0)","v":{"v":0,"d":"$0.00"}},{"$f":"IFERROR('MMA Rev-Exp Region 4'!$H$20/'MMA Rev-Exp Region 4'!$H$9, 0)","v":{"v":0,"d":"$0.00"}},{"$f":"IFERROR('MMA Rev-Exp Region 4'!$I$20/'MMA Rev-Exp Region 4'!$I$9, 0)","v":{"v":0,"d":"$0.00"}},{"$f":"IFERROR('MMA Rev-Exp Region 4'!$J$20/'MMA Rev-Exp Region 4'!$J$9, 0)","v":{"v":0,"d":"$0.00"}},{"$f":"IFERROR('MMA Rev-Exp Region 4'!$K$20/'MMA Rev-Exp Region 4'!$K$9, 0)","v":{"v":0,"d":"$0.00"}},{"$f":"IFERROR('MMA Rev-Exp Region 4'!$L$20/'MMA Rev-Exp Region 4'!$L$9, 0)","v":{"v":0,"d":"$0.00"}},{"$f":"IFERROR('MMA Rev-Exp Region 4'!$M$20/'MMA Rev-Exp Region 4'!$M$9, 0)","v":{"v":0,"d":"$0.00"}},{"$f":"IFERROR('MMA Rev-Exp Region 4'!$N$20/'MMA Rev-Exp Region 4'!$N$9, 0)","v":{"v":0,"d":"$0.00"}}]
["MMA",null,null,2016,"2016-12-31","Q1","2017-03-31","Region 4","Operating Expense","Medical Benefits Expense","Hospital Services",2.2,"Ending IBNP for Inpatient Hospital Services",{"$f":"IFERROR('MMA Rev-Exp Region 4'!$D$21/'MMA Rev-Exp Region 4'!$D$9, 0)","v":{"v":0,"d":"$0.00"}},{"$f":"IFERROR('MMA Rev-Exp Region 4'!$E$21/'MMA Rev-Exp Region 4'!$E$9, 0)","v":{"v":0,"d":"$0.00"}},{"$f":"IFERROR('MMA Rev-Exp Region 4'!$F$21/'MMA Rev-Exp Region 4'!$F$9, 0)","v":{"v":0,"d":"$0.00"}},{"$f":"IFERROR('MMA Rev-Exp Region 4'!$G$21/'MMA Rev-Exp Region 4'!$G$9, 0)","v":{"v":0,"d":"$0.00"}},{"$f":"IFERROR('MMA Rev-Exp Region 4'!$H$21/'MMA Rev-Exp Region 4'!$H$9, 0)","v":{"v":0,"d":"$0.00"}},{"$f":"IFERROR('MMA Rev-Exp Region 4'!$I$21/'MMA Rev-Exp Region 4'!$I$9, 0)","v":{"v":0,"d":"$0.00"}},{"$f":"IFERROR('MMA Rev-Exp Region 4'!$J$21/'MMA Rev-Exp Region 4'!$J$9, 0)","v":{"v":0,"d":"$0.00"}},{"$f":"IFERROR('MMA Rev-Exp Region 4'!$K$21/'MMA Rev-Exp Region 4'!$K$9, 0)","v":{"v":0,"d":"$0.00"}},{"$f":"IFERROR('MMA Rev-Exp Region 4'!$L$21/'MMA Rev-Exp Region 4'!$L$9, 0)","v":{"v":0,"d":"$0.00"}},{"$f":"IFERROR('MMA Rev-Exp Region 4'!$M$21/'MMA Rev-Exp Region 4'!$M$9, 0)","v":{"v":0,"d":"$0.00"}},{"$f":"IFERROR('MMA Rev-Exp Region 4'!$N$21/'MMA Rev-Exp Region 4'!$N$9, 0)","v":{"v":0,"d":"$0.00"}}]
["MMA",null,null,2016,"2016-12-31","Q1","2017-03-31","Region 4","Operating Expense","Medical Benefits Expense","Hospital Services",2.3,"Outpatient FFS: ER",{"$f":"IFERROR('MMA Rev-Exp Region 4'!$D$22/'MMA Rev-Exp Region 4'!$D$9, 0)","v":{"v":0,"d":"$0.00"}},{"$f":"IFERROR('MMA Rev-Exp Region 4'!$E$22/'MMA Rev-Exp Region 4'!$E$9, 0)","v":{"v":0,"d":"$0.00"}},{"$f":"IFERROR('MMA Rev-Exp Region 4'!$F$22/'MMA Rev-Exp Region 4'!$F$9, 0)","v":{"v":0,"d":"$0.00"}},{"$f":"IFERROR('MMA Rev-Exp Region 4'!$G$22/'MMA Rev-Exp Region 4'!$G$9, 0)","v":{"v":0,"d":"$0.00"}},{"$f":"IFERROR('MMA Rev-Exp Region 4'!$H$22/'MMA Rev-Exp Region 4'!$H$9, 0)","v":{"v":0,"d":"$0.00"}},{"$f":"IFERROR('MMA Rev-Exp Region 4'!$I$22/'MMA Rev-Exp Region 4'!$I$9, 0)","v":{"v":0,"d":"$0.00"}},{"$f":"IFERROR('MMA Rev-Exp Region 4'!$J$22/'MMA Rev-Exp Region 4'!$J$9, 0)","v":{"v":0,"d":"$0.00"}},{"$f":"IFERROR('MMA Rev-Exp Region 4'!$K$22/'MMA Rev-Exp Region 4'!$K$9, 0)","v":{"v":0,"d":"$0.00"}},{"$f":"IFERROR('MMA Rev-Exp Region 4'!$L$22/'MMA Rev-Exp Region 4'!$L$9, 0)","v":{"v":0,"d":"$0.00"}},{"$f":"IFERROR('MMA Rev-Exp Region 4'!$M$22/'MMA Rev-Exp Region 4'!$M$9, 0)","v":{"v":0,"d":"$0.00"}},{"$f":"IFERROR('MMA Rev-Exp Region 4'!$N$22/'MMA Rev-Exp Region 4'!$N$9, 0)","v":{"v":0,"d":"$0.00"}}]
["MMA",null,null,2016,"2016-12-31","Q1","2017-03-31","Region 4","Operating Expense","Medical Benefits Expense","Hospital Services",2.4,"Outpatient FFS: Other than ER ",{"$f":"IFERROR('MMA Rev-Exp Region 4'!$D$23/'MMA Rev-Exp Region 4'!$D$9, 0)","v":{"v":0,"d":"$0.00"}},{"$f":"IFERROR('MMA Rev-Exp Region 4'!$E$23/'MMA Rev-Exp Region 4'!$E$9, 0)","v":{"v":0,"d":"$0.00"}},{"$f":"IFERROR('MMA Rev-Exp Region 4'!$F$23/'MMA Rev-Exp Region 4'!$F$9, 0)","v":{"v":0,"d":"$0.00"}},{"$f":"IFERROR('MMA Rev-Exp Region 4'!$G$23/'MMA Rev-Exp Region 4'!$G$9, 0)","v":{"v":0,"d":"$0.00"}},{"$f":"IFERROR('MMA Rev-Exp Region 4'!$H$23/'MMA Rev-Exp Region 4'!$H$9, 0)","v":{"v":0,"d":"$0.00"}},{"$f":"IFERROR('MMA Rev-Exp Region 4'!$I$23/'MMA Rev-Exp Region 4'!$I$9, 0)","v":{"v":0,"d":"$0.00"}},{"$f":"IFERROR('MMA Rev-Exp Region 4'!$J$23/'MMA Rev-Exp Region 4'!$J$9, 0)","v":{"v":0,"d":"$0.00"}},{"$f":"IFERROR('MMA Rev-Exp Region 4'!$K$23/'MMA Rev-Exp Region 4'!$K$9, 0)","v":{"v":0,"d":"$0.00"}},{"$f":"IFERROR('MMA Rev-Exp Region 4'!$L$23/'MMA Rev-Exp Region 4'!$L$9, 0)","v":{"v":0,"d":"$0.00"}},{"$f":"IFERROR('MMA Rev-Exp Region 4'!$M$23/'MMA Rev-Exp Region 4'!$M$9, 0)","v":{"v":0,"d":"$0.00"}},{"$f":"IFERROR('MMA Rev-Exp Region 4'!$N$23/'MMA Rev-Exp Region 4'!$N$9, 0)","v":{"v":0,"d":"$0.00"}}]
["MMA",null,null,2016,"2016-12-31","Q1","2017-03-31","Region 4","Operating Expense","Medical Benefits Expense","Hospital Services",2.5,"Ending IBNP for Outpatient Hospital Services",{"$f":"IFERROR('MMA Rev-Exp Region 4'!$D$24/'MMA Rev-Exp Region 4'!$D$9, 0)","v":{"v":0,"d":"$0.00"}},{"$f":"IFERROR('MMA Rev-Exp Region 4'!$E$24/'MMA Rev-Exp Region 4'!$E$9, 0)","v":{"v":0,"d":"$0.00"}},{"$f":"IFERROR('MMA Rev-Exp Region 4'!$F$24/'MMA Rev-Exp Region 4'!$F$9, 0)","v":{"v":0,"d":"$0.00"}},{"$f":"IFERROR('MMA Rev-Exp Region 4'!$G$24/'MMA Rev-Exp Region 4'!$G$9, 0)","v":{"v":0,"d":"$0.00"}},{"$f":"IFERROR('MMA Rev-Exp Region 4'!$H$24/'MMA Rev-Exp Region 4'!$H$9, 0)","v":{"v":0,"d":"$0.00"}},{"$f":"IFERROR('MMA Rev-Exp Region 4'!$I$24/'MMA Rev-Exp Region 4'!$I$9, 0)","v":{"v":0,"d":"$0.00"}},{"$f":"IFERROR('MMA Rev-Exp Region 4'!$J$24/'MMA Rev-Exp Region 4'!$J$9, 0)","v":{"v":0,"d":"$0.00"}},{"$f":"IFERROR('MMA Rev-Exp Region 4'!$K$24/'MMA Rev-Exp Region 4'!$K$9, 0)","v":{"v":0,"d":"$0.00"}},{"$f":"IFERROR('MMA Rev-Exp Region 4'!$L$24/'MMA Rev-Exp Region 4'!$L$9, 0)","v":{"v":0,"d":"$0.00"}},{"$f":"IFERROR('MMA Rev-Exp Region 4'!$M$24/'MMA Rev-Exp Region 4'!$M$9, 0)","v":{"v":0,"d":"$0.00"}},{"$f":"IFERROR('MMA Rev-Exp Region 4'!$N$24/'MMA Rev-Exp Region 4'!$N$9, 0)","v":{"v":0,"d":"$0.00"}}]
["MMA",null,null,2016,"2016-12-31","Q1","2017-03-31","Region 4","Operating Expense","Medical Benefits Expense","Hospital Services","2.6","Subcapitated Hospital Services",{"$f":"IFERROR('MMA Rev-Exp Region 4'!$D$25/'MMA Rev-Exp Region 4'!$D$9, 0)","v":{"v":0,"d":"$0.00"}},{"$f":"IFERROR('MMA Rev-Exp Region 4'!$E$25/'MMA Rev-Exp Region 4'!$E$9, 0)","v":{"v":0,"d":"$0.00"}},{"$f":"IFERROR('MMA Rev-Exp Region 4'!$F$25/'MMA Rev-Exp Region 4'!$F$9, 0)","v":{"v":0,"d":"$0.00"}},{"$f":"IFERROR('MMA Rev-Exp Region 4'!$G$25/'MMA Rev-Exp Region 4'!$G$9, 0)","v":{"v":0,"d":"$0.00"}},{"$f":"IFERROR('MMA Rev-Exp Region 4'!$H$25/'MMA Rev-Exp Region 4'!$H$9, 0)","v":{"v":0,"d":"$0.00"}},{"$f":"IFERROR('MMA Rev-Exp Region 4'!$I$25/'MMA Rev-Exp Region 4'!$I$9, 0)","v":{"v":0,"d":"$0.00"}},{"$f":"IFERROR('MMA Rev-Exp Region 4'!$J$25/'MMA Rev-Exp Region 4'!$J$9, 0)","v":{"v":0,"d":"$0.00"}},{"$f":"IFERROR('MMA Rev-Exp Region 4'!$K$25/'MMA Rev-Exp Region 4'!$K$9, 0)","v":{"v":0,"d":"$0.00"}},{"$f":"IFERROR('MMA Rev-Exp Region 4'!$L$25/'MMA Rev-Exp Region 4'!$L$9, 0)","v":{"v":0,"d":"$0.00"}},{"$f":"IFERROR('MMA Rev-Exp Region 4'!$M$25/'MMA Rev-Exp Region 4'!$M$9, 0)","v":{"v":0,"d":"$0.00"}},{"$f":"IFERROR('MMA Rev-Exp Region 4'!$N$25/'MMA Rev-Exp Region 4'!$N$9, 0)","v":{"v":0,"d":"$0.00"}}]
["MMA",null,null,2016,"2016-12-31","Q1","2017-03-31","Region 4","Operating Expense","Medical Benefits Expense","Hospital Services","2.7","Hospital Settlements",{"$f":"IFERROR('MMA Rev-Exp Region 4'!$D$26/'MMA Rev-Exp Region 4'!$D$9, 0)","v":{"v":0,"d":"$0.00"}},{"$f":"IFERROR('MMA Rev-Exp Region 4'!$E$26/'MMA Rev-Exp Region 4'!$E$9, 0)","v":{"v":0,"d":"$0.00"}},{"$f":"IFERROR('MMA Rev-Exp Region 4'!$F$26/'MMA Rev-Exp Region 4'!$F$9, 0)","v":{"v":0,"d":"$0.00"}},{"$f":"IFERROR('MMA Rev-Exp Region 4'!$G$26/'MMA Rev-Exp Region 4'!$G$9, 0)","v":{"v":0,"d":"$0.00"}},{"$f":"IFERROR('MMA Rev-Exp Region 4'!$H$26/'MMA Rev-Exp Region 4'!$H$9, 0)","v":{"v":0,"d":"$0.00"}},{"$f":"IFERROR('MMA Rev-Exp Region 4'!$I$26/'MMA Rev-Exp Region 4'!$I$9, 0)","v":{"v":0,"d":"$0.00"}},{"$f":"IFERROR('MMA Rev-Exp Region 4'!$J$26/'MMA Rev-Exp Region 4'!$J$9, 0)","v":{"v":0,"d":"$0.00"}},{"$f":"IFERROR('MMA Rev-Exp Region 4'!$K$26/'MMA Rev-Exp Region 4'!$K$9, 0)","v":{"v":0,"d":"$0.00"}},{"$f":"IFERROR('MMA Rev-Exp Region 4'!$L$26/'MMA Rev-Exp Region 4'!$L$9, 0)","v":{"v":0,"d":"$0.00"}},{"$f":"IFERROR('MMA Rev-Exp Region 4'!$M$26/'MMA Rev-Exp Region 4'!$M$9, 0)","v":{"v":0,"d":"$0.00"}},{"$f":"IFERROR('MMA Rev-Exp Region 4'!$N$26/'MMA Rev-Exp Region 4'!$N$9, 0)","v":{"v":0,"d":"$0.00"}}]
["MMA",null,null,2016,"2016-12-31","Q1","2017-03-31","Region 4","Operating Expense","Medical Benefits Expense","Hospital Services","2.7.1","Transplant Services",{"$f":"IFERROR('MMA Rev-Exp Region 4'!$D$27/'MMA Rev-Exp Region 4'!$D$9, 0)","v":{"v":0,"d":"$0.00"}},{"$f":"IFERROR('MMA Rev-Exp Region 4'!$E$27/'MMA Rev-Exp Region 4'!$E$9, 0)","v":{"v":0,"d":"$0.00"}},{"$f":"IFERROR('MMA Rev-Exp Region 4'!$F$27/'MMA Rev-Exp Region 4'!$F$9, 0)","v":{"v":0,"d":"$0.00"}},{"$f":"IFERROR('MMA Rev-Exp Region 4'!$G$27/'MMA Rev-Exp Region 4'!$G$9, 0)","v":{"v":0,"d":"$0.00"}},{"$f":"IFERROR('MMA Rev-Exp Region 4'!$H$27/'MMA Rev-Exp Region 4'!$H$9, 0)","v":{"v":0,"d":"$0.00"}},{"$f":"IFERROR('MMA Rev-Exp Region 4'!$I$27/'MMA Rev-Exp Region 4'!$I$9, 0)","v":{"v":0,"d":"$0.00"}},{"$f":"IFERROR('MMA Rev-Exp Region 4'!$J$27/'MMA Rev-Exp Region 4'!$J$9, 0)","v":{"v":0,"d":"$0.00"}},{"$f":"IFERROR('MMA Rev-Exp Region 4'!$K$27/'MMA Rev-Exp Region 4'!$K$9, 0)","v":{"v":0,"d":"$0.00"}},{"$f":"IFERROR('MMA Rev-Exp Region 4'!$L$27/'MMA Rev-Exp Region 4'!$L$9, 0)","v":{"v":0,"d":"$0.00"}},{"$f":"IFERROR('MMA Rev-Exp Region 4'!$M$27/'MMA Rev-Exp Region 4'!$M$9, 0)","v":{"v":0,"d":"$0.00"}},{"$f":"IFERROR('MMA Rev-Exp Region 4'!$N$27/'MMA Rev-Exp Region 4'!$N$9, 0)","v":{"v":0,"d":"$0.00"}}]
["MMA",null,null,2016,"2016-12-31","Q1","2017-03-31","Region 4","Operating Expense","Medical Benefits Expense","Professional Services",3.1,"Primary Care FFS",{"$f":"IFERROR('MMA Rev-Exp Region 4'!$D$29/'MMA Rev-Exp Region 4'!$D$9, 0)","v":{"v":0,"d":"$0.00"}},{"$f":"IFERROR('MMA Rev-Exp Region 4'!$E$29/'MMA Rev-Exp Region 4'!$E$9, 0)","v":{"v":0,"d":"$0.00"}},{"$f":"IFERROR('MMA Rev-Exp Region 4'!$F$29/'MMA Rev-Exp Region 4'!$F$9, 0)","v":{"v":0,"d":"$0.00"}},{"$f":"IFERROR('MMA Rev-Exp Region 4'!$G$29/'MMA Rev-Exp Region 4'!$G$9, 0)","v":{"v":0,"d":"$0.00"}},{"$f":"IFERROR('MMA Rev-Exp Region 4'!$H$29/'MMA Rev-Exp Region 4'!$H$9, 0)","v":{"v":0,"d":"$0.00"}},{"$f":"IFERROR('MMA Rev-Exp Region 4'!$I$29/'MMA Rev-Exp Region 4'!$I$9, 0)","v":{"v":0,"d":"$0.00"}},{"$f":"IFERROR('MMA Rev-Exp Region 4'!$J$29/'MMA Rev-Exp Region 4'!$J$9, 0)","v":{"v":0,"d":"$0.00"}},{"$f":"IFERROR('MMA Rev-Exp Region 4'!$K$29/'MMA Rev-Exp Region 4'!$K$9, 0)","v":{"v":0,"d":"$0.00"}},{"$f":"IFERROR('MMA Rev-Exp Region 4'!$L$29/'MMA Rev-Exp Region 4'!$L$9, 0)","v":{"v":0,"d":"$0.00"}},{"$f":"IFERROR('MMA Rev-Exp Region 4'!$M$29/'MMA Rev-Exp Region 4'!$M$9, 0)","v":{"v":0,"d":"$0.00"}},{"$f":"IFERROR('MMA Rev-Exp Region 4'!$N$29/'MMA Rev-Exp Region 4'!$N$9, 0)","v":{"v":0,"d":"$0.00"}}]
["MMA",null,null,2016,"2016-12-31","Q1","2017-03-31","Region 4","Operating Expense","Medical Benefits Expense","Professional Services",3.2,"Specialty Care FFS",{"$f":"IFERROR('MMA Rev-Exp Region 4'!$D$30/'MMA Rev-Exp Region 4'!$D$9, 0)","v":{"v":0,"d":"$0.00"}},{"$f":"IFERROR('MMA Rev-Exp Region 4'!$E$30/'MMA Rev-Exp Region 4'!$E$9, 0)","v":{"v":0,"d":"$0.00"}},{"$f":"IFERROR('MMA Rev-Exp Region 4'!$F$30/'MMA Rev-Exp Region 4'!$F$9, 0)","v":{"v":0,"d":"$0.00"}},{"$f":"IFERROR('MMA Rev-Exp Region 4'!$G$30/'MMA Rev-Exp Region 4'!$G$9, 0)","v":{"v":0,"d":"$0.00"}},{"$f":"IFERROR('MMA Rev-Exp Region 4'!$H$30/'MMA Rev-Exp Region 4'!$H$9, 0)","v":{"v":0,"d":"$0.00"}},{"$f":"IFERROR('MMA Rev-Exp Region 4'!$I$30/'MMA Rev-Exp Region 4'!$I$9, 0)","v":{"v":0,"d":"$0.00"}},{"$f":"IFERROR('MMA Rev-Exp Region 4'!$J$30/'MMA Rev-Exp Region 4'!$J$9, 0)","v":{"v":0,"d":"$0.00"}},{"$f":"IFERROR('MMA Rev-Exp Region 4'!$K$30/'MMA Rev-Exp Region 4'!$K$9, 0)","v":{"v":0,"d":"$0.00"}},{"$f":"IFERROR('MMA Rev-Exp Region 4'!$L$30/'MMA Rev-Exp Region 4'!$L$9, 0)","v":{"v":0,"d":"$0.00"}},{"$f":"IFERROR('MMA Rev-Exp Region 4'!$M$30/'MMA Rev-Exp Region 4'!$M$9, 0)","v":{"v":0,"d":"$0.00"}},{"$f":"IFERROR('MMA Rev-Exp Region 4'!$N$30/'MMA Rev-Exp Region 4'!$N$9, 0)","v":{"v":0,"d":"$0.00"}}]
["MMA",null,null,2016,"2016-12-31","Q1","2017-03-31","Region 4","Operating Expense","Medical Benefits Expense","Professional Services",3.3,"Other Professional FFS",{"$f":"IFERROR('MMA Rev-Exp Region 4'!$D$31/'MMA Rev-Exp Region 4'!$D$9, 0)","v":{"v":0,"d":"$0.00"}},{"$f":"IFERROR('MMA Rev-Exp Region 4'!$E$31/'MMA Rev-Exp Region 4'!$E$9, 0)","v":{"v":0,"d":"$0.00"}},{"$f":"IFERROR('MMA Rev-Exp Region 4'!$F$31/'MMA Rev-Exp Region 4'!$F$9, 0)","v":{"v":0,"d":"$0.00"}},{"$f":"IFERROR('MMA Rev-Exp Region 4'!$G$31/'MMA Rev-Exp Region 4'!$G$9, 0)","v":{"v":0,"d":"$0.00"}},{"$f":"IFERROR('MMA Rev-Exp Region 4'!$H$31/'MMA Rev-Exp Region 4'!$H$9, 0)","v":{"v":0,"d":"$0.00"}},{"$f":"IFERROR('MMA Rev-Exp Region 4'!$I$31/'MMA Rev-Exp Region 4'!$I$9, 0)","v":{"v":0,"d":"$0.00"}},{"$f":"IFERROR('MMA Rev-Exp Region 4'!$J$31/'MMA Rev-Exp Region 4'!$J$9, 0)","v":{"v":0,"d":"$0.00"}},{"$f":"IFERROR('MMA Rev-Exp Region 4'!$K$31/'MMA Rev-Exp Region 4'!$K$9, 0)","v":{"v":0,"d":"$0.00"}},{"$f":"IFERROR('MMA Rev-Exp Region 4'!$L$31/'MMA Rev-Exp Region 4'!$L$9, 0)","v":{"v":0,"d":"$0.00"}},{"$f":"IFERROR('MMA Rev-Exp Region 4'!$M$31/'MMA Rev-Exp Region 4'!$M$9, 0)","v":{"v":0,"d":"$0.00"}},{"$f":"IFERROR('MMA Rev-Exp Region 4'!$N$31/'MMA Rev-Exp Region 4'!$N$9, 0)","v":{"v":0,"d":"$0.00"}}]
["MMA",null,null,2016,"2016-12-31","Q1","2017-03-31","Region 4","Operating Expense","Medical Benefits Expense","Professional Services","3.4","§ 1202 PCP Payments to providers",{"$f":"IFERROR('MMA Rev-Exp Region 4'!$D$32/'MMA Rev-Exp Region 4'!$D$9, 0)","v":{"v":0,"d":"$0.00"}},{"$f":"IFERROR('MMA Rev-Exp Region 4'!$E$32/'MMA Rev-Exp Region 4'!$E$9, 0)","v":{"v":0,"d":"$0.00"}},{"$f":"IFERROR('MMA Rev-Exp Region 4'!$F$32/'MMA Rev-Exp Region 4'!$F$9, 0)","v":{"v":0,"d":"$0.00"}},{"$f":"IFERROR('MMA Rev-Exp Region 4'!$G$32/'MMA Rev-Exp Region 4'!$G$9, 0)","v":{"v":0,"d":"$0.00"}},{"$f":"IFERROR('MMA Rev-Exp Region 4'!$H$32/'MMA Rev-Exp Region 4'!$H$9, 0)","v":{"v":0,"d":"$0.00"}},{"$f":"IFERROR('MMA Rev-Exp Region 4'!$I$32/'MMA Rev-Exp Region 4'!$I$9, 0)","v":{"v":0,"d":"$0.00"}},{"$f":"IFERROR('MMA Rev-Exp Region 4'!$J$32/'MMA Rev-Exp Region 4'!$J$9, 0)","v":{"v":0,"d":"$0.00"}},{"$f":"IFERROR('MMA Rev-Exp Region 4'!$K$32/'MMA Rev-Exp Region 4'!$K$9, 0)","v":{"v":0,"d":"$0.00"}},{"$f":"IFERROR('MMA Rev-Exp Region 4'!$L$32/'MMA Rev-Exp Region 4'!$L$9, 0)","v":{"v":0,"d":"$0.00"}},{"$f":"IFERROR('MMA Rev-Exp Region 4'!$M$32/'MMA Rev-Exp Region 4'!$M$9, 0)","v":{"v":0,"d":"$0.00"}},{"$f":"IFERROR('MMA Rev-Exp Region 4'!$N$32/'MMA Rev-Exp Region 4'!$N$9, 0)","v":{"v":0,"d":"$0.00"}}]
["MMA",null,null,2016,"2016-12-31","Q1","2017-03-31","Region 4","Operating Expense","Medical Benefits Expense","Professional Services","3.5","Subcapitated Professional Services",{"$f":"IFERROR('MMA Rev-Exp Region 4'!$D$33/'MMA Rev-Exp Region 4'!$D$9, 0)","v":{"v":0,"d":"$0.00"}},{"$f":"IFERROR('MMA Rev-Exp Region 4'!$E$33/'MMA Rev-Exp Region 4'!$E$9, 0)","v":{"v":0,"d":"$0.00"}},{"$f":"IFERROR('MMA Rev-Exp Region 4'!$F$33/'MMA Rev-Exp Region 4'!$F$9, 0)","v":{"v":0,"d":"$0.00"}},{"$f":"IFERROR('MMA Rev-Exp Region 4'!$G$33/'MMA Rev-Exp Region 4'!$G$9, 0)","v":{"v":0,"d":"$0.00"}},{"$f":"IFERROR('MMA Rev-Exp Region 4'!$H$33/'MMA Rev-Exp Region 4'!$H$9, 0)","v":{"v":0,"d":"$0.00"}},{"$f":"IFERROR('MMA Rev-Exp Region 4'!$I$33/'MMA Rev-Exp Region 4'!$I$9, 0)","v":{"v":0,"d":"$0.00"}},{"$f":"IFERROR('MMA Rev-Exp Region 4'!$J$33/'MMA Rev-Exp Region 4'!$J$9, 0)","v":{"v":0,"d":"$0.00"}},{"$f":"IFERROR('MMA Rev-Exp Region 4'!$K$33/'MMA Rev-Exp Region 4'!$K$9, 0)","v":{"v":0,"d":"$0.00"}},{"$f":"IFERROR('MMA Rev-Exp Region 4'!$L$33/'MMA Rev-Exp Region 4'!$L$9, 0)","v":{"v":0,"d":"$0.00"}},{"$f":"IFERROR('MMA Rev-Exp Region 4'!$M$33/'MMA Rev-Exp Region 4'!$M$9, 0)","v":{"v":0,"d":"$0.00"}},{"$f":"IFERROR('MMA Rev-Exp Region 4'!$N$33/'MMA Rev-Exp Region 4'!$N$9, 0)","v":{"v":0,"d":"$0.00"}}]
["MMA",null,null,2016,"2016-12-31","Q1","2017-03-31","Region 4","Operating Expense","Medical Benefits Expense","Professional Services","3.6","Ending IBNP for Professional Services",{"$f":"IFERROR('MMA Rev-Exp Region 4'!$D$34/'MMA Rev-Exp Region 4'!$D$9, 0)","v":{"v":0,"d":"$0.00"}},{"$f":"IFERROR('MMA Rev-Exp Region 4'!$E$34/'MMA Rev-Exp Region 4'!$E$9, 0)","v":{"v":0,"d":"$0.00"}},{"$f":"IFERROR('MMA Rev-Exp Region 4'!$F$34/'MMA Rev-Exp Region 4'!$F$9, 0)","v":{"v":0,"d":"$0.00"}},{"$f":"IFERROR('MMA Rev-Exp Region 4'!$G$34/'MMA Rev-Exp Region 4'!$G$9, 0)","v":{"v":0,"d":"$0.00"}},{"$f":"IFERROR('MMA Rev-Exp Region 4'!$H$34/'MMA Rev-Exp Region 4'!$H$9, 0)","v":{"v":0,"d":"$0.00"}},{"$f":"IFERROR('MMA Rev-Exp Region 4'!$I$34/'MMA Rev-Exp Region 4'!$I$9, 0)","v":{"v":0,"d":"$0.00"}},{"$f":"IFERROR('MMA Rev-Exp Region 4'!$J$34/'MMA Rev-Exp Region 4'!$J$9, 0)","v":{"v":0,"d":"$0.00"}},{"$f":"IFERROR('MMA Rev-Exp Region 4'!$K$34/'MMA Rev-Exp Region 4'!$K$9, 0)","v":{"v":0,"d":"$0.00"}},{"$f":"IFERROR('MMA Rev-Exp Region 4'!$L$34/'MMA Rev-Exp Region 4'!$L$9, 0)","v":{"v":0,"d":"$0.00"}},{"$f":"IFERROR('MMA Rev-Exp Region 4'!$M$34/'MMA Rev-Exp Region 4'!$M$9, 0)","v":{"v":0,"d":"$0.00"}},{"$f":"IFERROR('MMA Rev-Exp Region 4'!$N$34/'MMA Rev-Exp Region 4'!$N$9, 0)","v":{"v":0,"d":"$0.00"}}]
["MMA",null,null,2016,"2016-12-31","Q1","2017-03-31","Region 4","Operating Expense","Medical Benefits Expense","Professional Services","3.7","Professional Services Settlements",{"$f":"IFERROR('MMA Rev-Exp Region 4'!$D$35/'MMA Rev-Exp Region 4'!$D$9, 0)","v":{"v":0,"d":"$0.00"}},{"$f":"IFERROR('MMA Rev-Exp Region 4'!$E$35/'MMA Rev-Exp Region 4'!$E$9, 0)","v":{"v":0,"d":"$0.00"}},{"$f":"IFERROR('MMA Rev-Exp Region 4'!$F$35/'MMA Rev-Exp Region 4'!$F$9, 0)","v":{"v":0,"d":"$0.00"}},{"$f":"IFERROR('MMA Rev-Exp Region 4'!$G$35/'MMA Rev-Exp Region 4'!$G$9, 0)","v":{"v":0,"d":"$0.00"}},{"$f":"IFERROR('MMA Rev-Exp Region 4'!$H$35/'MMA Rev-Exp Region 4'!$H$9, 0)","v":{"v":0,"d":"$0.00"}},{"$f":"IFERROR('MMA Rev-Exp Region 4'!$I$35/'MMA Rev-Exp Region 4'!$I$9, 0)","v":{"v":0,"d":"$0.00"}},{"$f":"IFERROR('MMA Rev-Exp Region 4'!$J$35/'MMA Rev-Exp Region 4'!$J$9, 0)","v":{"v":0,"d":"$0.00"}},{"$f":"IFERROR('MMA Rev-Exp Region 4'!$K$35/'MMA Rev-Exp Region 4'!$K$9, 0)","v":{"v":0,"d":"$0.00"}},{"$f":"IFERROR('MMA Rev-Exp Region 4'!$L$35/'MMA Rev-Exp Region 4'!$L$9, 0)","v":{"v":0,"d":"$0.00"}},{"$f":"IFERROR('MMA Rev-Exp Region 4'!$M$35/'MMA Rev-Exp Region 4'!$M$9, 0)","v":{"v":0,"d":"$0.00"}},{"$f":"IFERROR('MMA Rev-Exp Region 4'!$N$35/'MMA Rev-Exp Region 4'!$N$9, 0)","v":{"v":0,"d":"$0.00"}}]
["MMA",null,null,2016,"2016-12-31","Q1","2017-03-31","Region 4","Operating Expense","Medical Benefits Expense","Maternity Services","4.1.1","Maternity Services",{"$f":"IFERROR('MMA Rev-Exp Region 4'!$D$37/'MMA Rev-Exp Region 4'!$D$9, 0)","v":{"v":0,"d":"$0.00"}},{"$f":"IFERROR('MMA Rev-Exp Region 4'!$E$37/'MMA Rev-Exp Region 4'!$E$9, 0)","v":{"v":0,"d":"$0.00"}},{"$f":"IFERROR('MMA Rev-Exp Region 4'!$F$37/'MMA Rev-Exp Region 4'!$F$9, 0)","v":{"v":0,"d":"$0.00"}},{"$f":"IFERROR('MMA Rev-Exp Region 4'!$G$37/'MMA Rev-Exp Region 4'!$G$9, 0)","v":{"v":0,"d":"$0.00"}},{"$f":"IFERROR('MMA Rev-Exp Region 4'!$H$37/'MMA Rev-Exp Region 4'!$H$9, 0)","v":{"v":0,"d":"$0.00"}},{"$f":"IFERROR('MMA Rev-Exp Region 4'!$I$37/'MMA Rev-Exp Region 4'!$I$9, 0)","v":{"v":0,"d":"$0.00"}},{"$f":"IFERROR('MMA Rev-Exp Region 4'!$J$37/'MMA Rev-Exp Region 4'!$J$9, 0)","v":{"v":0,"d":"$0.00"}},{"$f":"IFERROR('MMA Rev-Exp Region 4'!$K$37/'MMA Rev-Exp Region 4'!$K$9, 0)","v":{"v":0,"d":"$0.00"}},{"$f":"IFERROR('MMA Rev-Exp Region 4'!$L$37/'MMA Rev-Exp Region 4'!$L$9, 0)","v":{"v":0,"d":"$0.00"}},{"$f":"IFERROR('MMA Rev-Exp Region 4'!$M$37/'MMA Rev-Exp Region 4'!$M$9, 0)","v":{"v":0,"d":"$0.00"}},{"$f":"IFERROR('MMA Rev-Exp Region 4'!$N$37/'MMA Rev-Exp Region 4'!$N$9, 0)","v":{"v":0,"d":"$0.00"}}]
["MMA",null,null,2016,"2016-12-31","Q1","2017-03-31","Region 4","Operating Expense","Medical Benefits Expense","Maternity Services","4.2.1","Ending IBNP for Maternity Services",{"$f":"IFERROR('MMA Rev-Exp Region 4'!$D$38/'MMA Rev-Exp Region 4'!$D$9, 0)","v":{"v":0,"d":"$0.00"}},{"$f":"IFERROR('MMA Rev-Exp Region 4'!$E$38/'MMA Rev-Exp Region 4'!$E$9, 0)","v":{"v":0,"d":"$0.00"}},{"$f":"IFERROR('MMA Rev-Exp Region 4'!$F$38/'MMA Rev-Exp Region 4'!$F$9, 0)","v":{"v":0,"d":"$0.00"}},{"$f":"IFERROR('MMA Rev-Exp Region 4'!$G$38/'MMA Rev-Exp Region 4'!$G$9, 0)","v":{"v":0,"d":"$0.00"}},{"$f":"IFERROR('MMA Rev-Exp Region 4'!$H$38/'MMA Rev-Exp Region 4'!$H$9, 0)","v":{"v":0,"d":"$0.00"}},{"$f":"IFERROR('MMA Rev-Exp Region 4'!$I$38/'MMA Rev-Exp Region 4'!$I$9, 0)","v":{"v":0,"d":"$0.00"}},{"$f":"IFERROR('MMA Rev-Exp Region 4'!$J$38/'MMA Rev-Exp Region 4'!$J$9, 0)","v":{"v":0,"d":"$0.00"}},{"$f":"IFERROR('MMA Rev-Exp Region 4'!$K$38/'MMA Rev-Exp Region 4'!$K$9, 0)","v":{"v":0,"d":"$0.00"}},{"$f":"IFERROR('MMA Rev-Exp Region 4'!$L$38/'MMA Rev-Exp Region 4'!$L$9, 0)","v":{"v":0,"d":"$0.00"}},{"$f":"IFERROR('MMA Rev-Exp Region 4'!$M$38/'MMA Rev-Exp Region 4'!$M$9, 0)","v":{"v":0,"d":"$0.00"}},{"$f":"IFERROR('MMA Rev-Exp Region 4'!$N$38/'MMA Rev-Exp Region 4'!$N$9, 0)","v":{"v":0,"d":"$0.00"}}]
["MMA",null,null,2016,"2016-12-31","Q1","2017-03-31","Region 4","Operating Expense","Medical Benefits Expense","Maternity Services","4.3.1","Maternity Settlements",{"$f":"IFERROR('MMA Rev-Exp Region 4'!$D$39/'MMA Rev-Exp Region 4'!$D$9, 0)","v":{"v":0,"d":"$0.00"}},{"$f":"IFERROR('MMA Rev-Exp Region 4'!$E$39/'MMA Rev-Exp Region 4'!$E$9, 0)","v":{"v":0,"d":"$0.00"}},{"$f":"IFERROR('MMA Rev-Exp Region 4'!$F$39/'MMA Rev-Exp Region 4'!$F$9, 0)","v":{"v":0,"d":"$0.00"}},{"$f":"IFERROR('MMA Rev-Exp Region 4'!$G$39/'MMA Rev-Exp Region 4'!$G$9, 0)","v":{"v":0,"d":"$0.00"}},{"$f":"IFERROR('MMA Rev-Exp Region 4'!$H$39/'MMA Rev-Exp Region 4'!$H$9, 0)","v":{"v":0,"d":"$0.00"}},{"$f":"IFERROR('MMA Rev-Exp Region 4'!$I$39/'MMA Rev-Exp Region 4'!$I$9, 0)","v":{"v":0,"d":"$0.00"}},{"$f":"IFERROR('MMA Rev-Exp Region 4'!$J$39/'MMA Rev-Exp Region 4'!$J$9, 0)","v":{"v":0,"d":"$0.00"}},{"$f":"IFERROR('MMA Rev-Exp Region 4'!$K$39/'MMA Rev-Exp Region 4'!$K$9, 0)","v":{"v":0,"d":"$0.00"}},{"$f":"IFERROR('MMA Rev-Exp Region 4'!$L$39/'MMA Rev-Exp Region 4'!$L$9, 0)","v":{"v":0,"d":"$0.00"}},{"$f":"IFERROR('MMA Rev-Exp Region 4'!$M$39/'MMA Rev-Exp Region 4'!$M$9, 0)","v":{"v":0,"d":"$0.00"}},{"$f":"IFERROR('MMA Rev-Exp Region 4'!$N$39/'MMA Rev-Exp Region 4'!$N$9, 0)","v":{"v":0,"d":"$0.00"}}]
["MMA",null,null,2016,"2016-12-31","Q1","2017-03-31","Region 4","Operating Expense","Medical Benefits Expense","Mental Health Services",5.1,"Mental Health & Substance Abuse FFS",{"$f":"IFERROR('MMA Rev-Exp Region 4'!$D$41/'MMA Rev-Exp Region 4'!$D$9, 0)","v":{"v":0,"d":"$0.00"}},{"$f":"IFERROR('MMA Rev-Exp Region 4'!$E$41/'MMA Rev-Exp Region 4'!$E$9, 0)","v":{"v":0,"d":"$0.00"}},{"$f":"IFERROR('MMA Rev-Exp Region 4'!$F$41/'MMA Rev-Exp Region 4'!$F$9, 0)","v":{"v":0,"d":"$0.00"}},{"$f":"IFERROR('MMA Rev-Exp Region 4'!$G$41/'MMA Rev-Exp Region 4'!$G$9, 0)","v":{"v":0,"d":"$0.00"}},{"$f":"IFERROR('MMA Rev-Exp Region 4'!$H$41/'MMA Rev-Exp Region 4'!$H$9, 0)","v":{"v":0,"d":"$0.00"}},{"$f":"IFERROR('MMA Rev-Exp Region 4'!$I$41/'MMA Rev-Exp Region 4'!$I$9, 0)","v":{"v":0,"d":"$0.00"}},{"$f":"IFERROR('MMA Rev-Exp Region 4'!$J$41/'MMA Rev-Exp Region 4'!$J$9, 0)","v":{"v":0,"d":"$0.00"}},{"$f":"IFERROR('MMA Rev-Exp Region 4'!$K$41/'MMA Rev-Exp Region 4'!$K$9, 0)","v":{"v":0,"d":"$0.00"}},{"$f":"IFERROR('MMA Rev-Exp Region 4'!$L$41/'MMA Rev-Exp Region 4'!$L$9, 0)","v":{"v":0,"d":"$0.00"}},{"$f":"IFERROR('MMA Rev-Exp Region 4'!$M$41/'MMA Rev-Exp Region 4'!$M$9, 0)","v":{"v":0,"d":"$0.00"}},{"$f":"IFERROR('MMA Rev-Exp Region 4'!$N$41/'MMA Rev-Exp Region 4'!$N$9, 0)","v":{"v":0,"d":"$0.00"}}]
["MMA",null,null,2016,"2016-12-31","Q1","2017-03-31","Region 4","Operating Expense","Medical Benefits Expense","Mental Health Services",5.2,"Mental Health & Substance Abuse Subcapitation",{"$f":"IFERROR('MMA Rev-Exp Region 4'!$D$42/'MMA Rev-Exp Region 4'!$D$9, 0)","v":{"v":0,"d":"$0.00"}},{"$f":"IFERROR('MMA Rev-Exp Region 4'!$E$42/'MMA Rev-Exp Region 4'!$E$9, 0)","v":{"v":0,"d":"$0.00"}},{"$f":"IFERROR('MMA Rev-Exp Region 4'!$F$42/'MMA Rev-Exp Region 4'!$F$9, 0)","v":{"v":0,"d":"$0.00"}},{"$f":"IFERROR('MMA Rev-Exp Region 4'!$G$42/'MMA Rev-Exp Region 4'!$G$9, 0)","v":{"v":0,"d":"$0.00"}},{"$f":"IFERROR('MMA Rev-Exp Region 4'!$H$42/'MMA Rev-Exp Region 4'!$H$9, 0)","v":{"v":0,"d":"$0.00"}},{"$f":"IFERROR('MMA Rev-Exp Region 4'!$I$42/'MMA Rev-Exp Region 4'!$I$9, 0)","v":{"v":0,"d":"$0.00"}},{"$f":"IFERROR('MMA Rev-Exp Region 4'!$J$42/'MMA Rev-Exp Region 4'!$J$9, 0)","v":{"v":0,"d":"$0.00"}},{"$f":"IFERROR('MMA Rev-Exp Region 4'!$K$42/'MMA Rev-Exp Region 4'!$K$9, 0)","v":{"v":0,"d":"$0.00"}},{"$f":"IFERROR('MMA Rev-Exp Region 4'!$L$42/'MMA Rev-Exp Region 4'!$L$9, 0)","v":{"v":0,"d":"$0.00"}},{"$f":"IFERROR('MMA Rev-Exp Region 4'!$M$42/'MMA Rev-Exp Region 4'!$M$9, 0)","v":{"v":0,"d":"$0.00"}},{"$f":"IFERROR('MMA Rev-Exp Region 4'!$N$42/'MMA Rev-Exp Region 4'!$N$9, 0)","v":{"v":0,"d":"$0.00"}}]
["MMA",null,null,2016,"2016-12-31","Q1","2017-03-31","Region 4","Operating Expense","Medical Benefits Expense","Mental Health Services",5.3,"Ending IBNP for Mental Health & Substance Abuse",{"$f":"IFERROR('MMA Rev-Exp Region 4'!$D$43/'MMA Rev-Exp Region 4'!$D$9, 0)","v":{"v":0,"d":"$0.00"}},{"$f":"IFERROR('MMA Rev-Exp Region 4'!$E$43/'MMA Rev-Exp Region 4'!$E$9, 0)","v":{"v":0,"d":"$0.00"}},{"$f":"IFERROR('MMA Rev-Exp Region 4'!$F$43/'MMA Rev-Exp Region 4'!$F$9, 0)","v":{"v":0,"d":"$0.00"}},{"$f":"IFERROR('MMA Rev-Exp Region 4'!$G$43/'MMA Rev-Exp Region 4'!$G$9, 0)","v":{"v":0,"d":"$0.00"}},{"$f":"IFERROR('MMA Rev-Exp Region 4'!$H$43/'MMA Rev-Exp Region 4'!$H$9, 0)","v":{"v":0,"d":"$0.00"}},{"$f":"IFERROR('MMA Rev-Exp Region 4'!$I$43/'MMA Rev-Exp Region 4'!$I$9, 0)","v":{"v":0,"d":"$0.00"}},{"$f":"IFERROR('MMA Rev-Exp Region 4'!$J$43/'MMA Rev-Exp Region 4'!$J$9, 0)","v":{"v":0,"d":"$0.00"}},{"$f":"IFERROR('MMA Rev-Exp Region 4'!$K$43/'MMA Rev-Exp Region 4'!$K$9, 0)","v":{"v":0,"d":"$0.00"}},{"$f":"IFERROR('MMA Rev-Exp Region 4'!$L$43/'MMA Rev-Exp Region 4'!$L$9, 0)","v":{"v":0,"d":"$0.00"}},{"$f":"IFERROR('MMA Rev-Exp Region 4'!$M$43/'MMA Rev-Exp Region 4'!$M$9, 0)","v":{"v":0,"d":"$0.00"}},{"$f":"IFERROR('MMA Rev-Exp Region 4'!$N$43/'MMA Rev-Exp Region 4'!$N$9, 0)","v":{"v":0,"d":"$0.00"}}]
["MMA",null,null,2016,"2016-12-31","Q1","2017-03-31","Region 4","Operating Expense","Medical Benefits Expense","Mental Health Services","5.4","Mental Health Settlements",{"$f":"IFERROR('MMA Rev-Exp Region 4'!$D$44/'MMA Rev-Exp Region 4'!$D$9, 0)","v":{"v":0,"d":"$0.00"}},{"$f":"IFERROR('MMA Rev-Exp Region 4'!$E$44/'MMA Rev-Exp Region 4'!$E$9, 0)","v":{"v":0,"d":"$0.00"}},{"$f":"IFERROR('MMA Rev-Exp Region 4'!$F$44/'MMA Rev-Exp Region 4'!$F$9, 0)","v":{"v":0,"d":"$0.00"}},{"$f":"IFERROR('MMA Rev-Exp Region 4'!$G$44/'MMA Rev-Exp Region 4'!$G$9, 0)","v":{"v":0,"d":"$0.00"}},{"$f":"IFERROR('MMA Rev-Exp Region 4'!$H$44/'MMA Rev-Exp Region 4'!$H$9, 0)","v":{"v":0,"d":"$0.00"}},{"$f":"IFERROR('MMA Rev-Exp Region 4'!$I$44/'MMA Rev-Exp Region 4'!$I$9, 0)","v":{"v":0,"d":"$0.00"}},{"$f":"IFERROR('MMA Rev-Exp Region 4'!$J$44/'MMA Rev-Exp Region 4'!$J$9, 0)","v":{"v":0,"d":"$0.00"}},{"$f":"IFERROR('MMA Rev-Exp Region 4'!$K$44/'MMA Rev-Exp Region 4'!$K$9, 0)","v":{"v":0,"d":"$0.00"}},{"$f":"IFERROR('MMA Rev-Exp Region 4'!$L$44/'MMA Rev-Exp Region 4'!$L$9, 0)","v":{"v":0,"d":"$0.00"}},{"$f":"IFERROR('MMA Rev-Exp Region 4'!$M$44/'MMA Rev-Exp Region 4'!$M$9, 0)","v":{"v":0,"d":"$0.00"}},{"$f":"IFERROR('MMA Rev-Exp Region 4'!$N$44/'MMA Rev-Exp Region 4'!$N$9, 0)","v":{"v":0,"d":"$0.00"}}]
["MMA",null,null,2016,"2016-12-31","Q1","2017-03-31","Region 4","Operating Expense","Medical Benefits Expense","Dental Services",6.1,"Dental FFS",{"$f":"IFERROR('MMA Rev-Exp Region 4'!$D$46/'MMA Rev-Exp Region 4'!$D$9, 0)","v":{"v":0,"d":"$0.00"}},{"$f":"IFERROR('MMA Rev-Exp Region 4'!$E$46/'MMA Rev-Exp Region 4'!$E$9, 0)","v":{"v":0,"d":"$0.00"}},{"$f":"IFERROR('MMA Rev-Exp Region 4'!$F$46/'MMA Rev-Exp Region 4'!$F$9, 0)","v":{"v":0,"d":"$0.00"}},{"$f":"IFERROR('MMA Rev-Exp Region 4'!$G$46/'MMA Rev-Exp Region 4'!$G$9, 0)","v":{"v":0,"d":"$0.00"}},{"$f":"IFERROR('MMA Rev-Exp Region 4'!$H$46/'MMA Rev-Exp Region 4'!$H$9, 0)","v":{"v":0,"d":"$0.00"}},{"$f":"IFERROR('MMA Rev-Exp Region 4'!$I$46/'MMA Rev-Exp Region 4'!$I$9, 0)","v":{"v":0,"d":"$0.00"}},{"$f":"IFERROR('MMA Rev-Exp Region 4'!$J$46/'MMA Rev-Exp Region 4'!$J$9, 0)","v":{"v":0,"d":"$0.00"}},{"$f":"IFERROR('MMA Rev-Exp Region 4'!$K$46/'MMA Rev-Exp Region 4'!$K$9, 0)","v":{"v":0,"d":"$0.00"}},{"$f":"IFERROR('MMA Rev-Exp Region 4'!$L$46/'MMA Rev-Exp Region 4'!$L$9, 0)","v":{"v":0,"d":"$0.00"}},{"$f":"IFERROR('MMA Rev-Exp Region 4'!$M$46/'MMA Rev-Exp Region 4'!$M$9, 0)","v":{"v":0,"d":"$0.00"}},{"$f":"IFERROR('MMA Rev-Exp Region 4'!$N$46/'MMA Rev-Exp Region 4'!$N$9, 0)","v":{"v":0,"d":"$0.00"}}]
["MMA",null,null,2016,"2016-12-31","Q1","2017-03-31","Region 4","Operating Expense","Medical Benefits Expense","Dental Services",6.2,"Dental Subcapitation",{"$f":"IFERROR('MMA Rev-Exp Region 4'!$D$47/'MMA Rev-Exp Region 4'!$D$9, 0)","v":{"v":0,"d":"$0.00"}},{"$f":"IFERROR('MMA Rev-Exp Region 4'!$E$47/'MMA Rev-Exp Region 4'!$E$9, 0)","v":{"v":0,"d":"$0.00"}},{"$f":"IFERROR('MMA Rev-Exp Region 4'!$F$47/'MMA Rev-Exp Region 4'!$F$9, 0)","v":{"v":0,"d":"$0.00"}},{"$f":"IFERROR('MMA Rev-Exp Region 4'!$G$47/'MMA Rev-Exp Region 4'!$G$9, 0)","v":{"v":0,"d":"$0.00"}},{"$f":"IFERROR('MMA Rev-Exp Region 4'!$H$47/'MMA Rev-Exp Region 4'!$H$9, 0)","v":{"v":0,"d":"$0.00"}},{"$f":"IFERROR('MMA Rev-Exp Region 4'!$I$47/'MMA Rev-Exp Region 4'!$I$9, 0)","v":{"v":0,"d":"$0.00"}},{"$f":"IFERROR('MMA Rev-Exp Region 4'!$J$47/'MMA Rev-Exp Region 4'!$J$9, 0)","v":{"v":0,"d":"$0.00"}},{"$f":"IFERROR('MMA Rev-Exp Region 4'!$K$47/'MMA Rev-Exp Region 4'!$K$9, 0)","v":{"v":0,"d":"$0.00"}},{"$f":"IFERROR('MMA Rev-Exp Region 4'!$L$47/'MMA Rev-Exp Region 4'!$L$9, 0)","v":{"v":0,"d":"$0.00"}},{"$f":"IFERROR('MMA Rev-Exp Region 4'!$M$47/'MMA Rev-Exp Region 4'!$M$9, 0)","v":{"v":0,"d":"$0.00"}},{"$f":"IFERROR('MMA Rev-Exp Region 4'!$N$47/'MMA Rev-Exp Region 4'!$N$9, 0)","v":{"v":0,"d":"$0.00"}}]
["MMA",null,null,2016,"2016-12-31","Q1","2017-03-31","Region 4","Operating Expense","Medical Benefits Expense","Dental Services",6.3,"Ending IBNP for Dental Services",{"$f":"IFERROR('MMA Rev-Exp Region 4'!$D$48/'MMA Rev-Exp Region 4'!$D$9, 0)","v":{"v":0,"d":"$0.00"}},{"$f":"IFERROR('MMA Rev-Exp Region 4'!$E$48/'MMA Rev-Exp Region 4'!$E$9, 0)","v":{"v":0,"d":"$0.00"}},{"$f":"IFERROR('MMA Rev-Exp Region 4'!$F$48/'MMA Rev-Exp Region 4'!$F$9, 0)","v":{"v":0,"d":"$0.00"}},{"$f":"IFERROR('MMA Rev-Exp Region 4'!$G$48/'MMA Rev-Exp Region 4'!$G$9, 0)","v":{"v":0,"d":"$0.00"}},{"$f":"IFERROR('MMA Rev-Exp Region 4'!$H$48/'MMA Rev-Exp Region 4'!$H$9, 0)","v":{"v":0,"d":"$0.00"}},{"$f":"IFERROR('MMA Rev-Exp Region 4'!$I$48/'MMA Rev-Exp Region 4'!$I$9, 0)","v":{"v":0,"d":"$0.00"}},{"$f":"IFERROR('MMA Rev-Exp Region 4'!$J$48/'MMA Rev-Exp Region 4'!$J$9, 0)","v":{"v":0,"d":"$0.00"}},{"$f":"IFERROR('MMA Rev-Exp Region 4'!$K$48/'MMA Rev-Exp Region 4'!$K$9, 0)","v":{"v":0,"d":"$0.00"}},{"$f":"IFERROR('MMA Rev-Exp Region 4'!$L$48/'MMA Rev-Exp Region 4'!$L$9, 0)","v":{"v":0,"d":"$0.00"}},{"$f":"IFERROR('MMA Rev-Exp Region 4'!$M$48/'MMA Rev-Exp Region 4'!$M$9, 0)","v":{"v":0,"d":"$0.00"}},{"$f":"IFERROR('MMA Rev-Exp Region 4'!$N$48/'MMA Rev-Exp Region 4'!$N$9, 0)","v":{"v":0,"d":"$0.00"}}]
["MMA",null,null,2016,"2016-12-31","Q1","2017-03-31","Region 4","Operating Expense","Medical Benefits Expense","Dental Services","6.4","Dental Settlements",{"$f":"IFERROR('MMA Rev-Exp Region 4'!$D$49/'MMA Rev-Exp Region 4'!$D$9, 0)","v":{"v":0,"d":"$0.00"}},{"$f":"IFERROR('MMA Rev-Exp Region 4'!$E$49/'MMA Rev-Exp Region 4'!$E$9, 0)","v":{"v":0,"d":"$0.00"}},{"$f":"IFERROR('MMA Rev-Exp Region 4'!$F$49/'MMA Rev-Exp Region 4'!$F$9, 0)","v":{"v":0,"d":"$0.00"}},{"$f":"IFERROR('MMA Rev-Exp Region 4'!$G$49/'MMA Rev-Exp Region 4'!$G$9, 0)","v":{"v":0,"d":"$0.00"}},{"$f":"IFERROR('MMA Rev-Exp Region 4'!$H$49/'MMA Rev-Exp Region 4'!$H$9, 0)","v":{"v":0,"d":"$0.00"}},{"$f":"IFERROR('MMA Rev-Exp Region 4'!$I$49/'MMA Rev-Exp Region 4'!$I$9, 0)","v":{"v":0,"d":"$0.00"}},{"$f":"IFERROR('MMA Rev-Exp Region 4'!$J$49/'MMA Rev-Exp Region 4'!$J$9, 0)","v":{"v":0,"d":"$0.00"}},{"$f":"IFERROR('MMA Rev-Exp Region 4'!$K$49/'MMA Rev-Exp Region 4'!$K$9, 0)","v":{"v":0,"d":"$0.00"}},{"$f":"IFERROR('MMA Rev-Exp Region 4'!$L$49/'MMA Rev-Exp Region 4'!$L$9, 0)","v":{"v":0,"d":"$0.00"}},{"$f":"IFERROR('MMA Rev-Exp Region 4'!$M$49/'MMA Rev-Exp Region 4'!$M$9, 0)","v":{"v":0,"d":"$0.00"}},{"$f":"IFERROR('MMA Rev-Exp Region 4'!$N$49/'MMA Rev-Exp Region 4'!$N$9, 0)","v":{"v":0,"d":"$0.00"}}]
["MMA",null,null,2016,"2016-12-31","Q1","2017-03-31","Region 4","Operating Expense","Medical Benefits Expense","Transportation Services",7.1,"Transportation FFS",{"$f":"IFERROR('MMA Rev-Exp Region 4'!$D$51/'MMA Rev-Exp Region 4'!$D$9, 0)","v":{"v":0,"d":"$0.00"}},{"$f":"IFERROR('MMA Rev-Exp Region 4'!$E$51/'MMA Rev-Exp Region 4'!$E$9, 0)","v":{"v":0,"d":"$0.00"}},{"$f":"IFERROR('MMA Rev-Exp Region 4'!$F$51/'MMA Rev-Exp Region 4'!$F$9, 0)","v":{"v":0,"d":"$0.00"}},{"$f":"IFERROR('MMA Rev-Exp Region 4'!$G$51/'MMA Rev-Exp Region 4'!$G$9, 0)","v":{"v":0,"d":"$0.00"}},{"$f":"IFERROR('MMA Rev-Exp Region 4'!$H$51/'MMA Rev-Exp Region 4'!$H$9, 0)","v":{"v":0,"d":"$0.00"}},{"$f":"IFERROR('MMA Rev-Exp Region 4'!$I$51/'MMA Rev-Exp Region 4'!$I$9, 0)","v":{"v":0,"d":"$0.00"}},{"$f":"IFERROR('MMA Rev-Exp Region 4'!$J$51/'MMA Rev-Exp Region 4'!$J$9, 0)","v":{"v":0,"d":"$0.00"}},{"$f":"IFERROR('MMA Rev-Exp Region 4'!$K$51/'MMA Rev-Exp Region 4'!$K$9, 0)","v":{"v":0,"d":"$0.00"}},{"$f":"IFERROR('MMA Rev-Exp Region 4'!$L$51/'MMA Rev-Exp Region 4'!$L$9, 0)","v":{"v":0,"d":"$0.00"}},{"$f":"IFERROR('MMA Rev-Exp Region 4'!$M$51/'MMA Rev-Exp Region 4'!$M$9, 0)","v":{"v":0,"d":"$0.00"}},{"$f":"IFERROR('MMA Rev-Exp Region 4'!$N$51/'MMA Rev-Exp Region 4'!$N$9, 0)","v":{"v":0,"d":"$0.00"}}]
["MMA",null,null,2016,"2016-12-31","Q1","2017-03-31","Region 4","Operating Expense","Medical Benefits Expense","Transportation Services",7.2,"Transportation Subcapitation",{"$f":"IFERROR('MMA Rev-Exp Region 4'!$D$52/'MMA Rev-Exp Region 4'!$D$9, 0)","v":{"v":0,"d":"$0.00"}},{"$f":"IFERROR('MMA Rev-Exp Region 4'!$E$52/'MMA Rev-Exp Region 4'!$E$9, 0)","v":{"v":0,"d":"$0.00"}},{"$f":"IFERROR('MMA Rev-Exp Region 4'!$F$52/'MMA Rev-Exp Region 4'!$F$9, 0)","v":{"v":0,"d":"$0.00"}},{"$f":"IFERROR('MMA Rev-Exp Region 4'!$G$52/'MMA Rev-Exp Region 4'!$G$9, 0)","v":{"v":0,"d":"$0.00"}},{"$f":"IFERROR('MMA Rev-Exp Region 4'!$H$52/'MMA Rev-Exp Region 4'!$H$9, 0)","v":{"v":0,"d":"$0.00"}},{"$f":"IFERROR('MMA Rev-Exp Region 4'!$I$52/'MMA Rev-Exp Region 4'!$I$9, 0)","v":{"v":0,"d":"$0.00"}},{"$f":"IFERROR('MMA Rev-Exp Region 4'!$J$52/'MMA Rev-Exp Region 4'!$J$9, 0)","v":{"v":0,"d":"$0.00"}},{"$f":"IFERROR('MMA Rev-Exp Region 4'!$K$52/'MMA Rev-Exp Region 4'!$K$9, 0)","v":{"v":0,"d":"$0.00"}},{"$f":"IFERROR('MMA Rev-Exp Region 4'!$L$52/'MMA Rev-Exp Region 4'!$L$9, 0)","v":{"v":0,"d":"$0.00"}},{"$f":"IFERROR('MMA Rev-Exp Region 4'!$M$52/'MMA Rev-Exp Region 4'!$M$9, 0)","v":{"v":0,"d":"$0.00"}},{"$f":"IFERROR('MMA Rev-Exp Region 4'!$N$52/'MMA Rev-Exp Region 4'!$N$9, 0)","v":{"v":0,"d":"$0.00"}}]
["MMA",null,null,2016,"2016-12-31","Q1","2017-03-31","Region 4","Operating Expense","Medical Benefits Expense","Transportation Services",7.3,"Ending IBNP for Transportation",{"$f":"IFERROR('MMA Rev-Exp Region 4'!$D$53/'MMA Rev-Exp Region 4'!$D$9, 0)","v":{"v":0,"d":"$0.00"}},{"$f":"IFERROR('MMA Rev-Exp Region 4'!$E$53/'MMA Rev-Exp Region 4'!$E$9, 0)","v":{"v":0,"d":"$0.00"}},{"$f":"IFERROR('MMA Rev-Exp Region 4'!$F$53/'MMA Rev-Exp Region 4'!$F$9, 0)","v":{"v":0,"d":"$0.00"}},{"$f":"IFERROR('MMA Rev-Exp Region 4'!$G$53/'MMA Rev-Exp Region 4'!$G$9, 0)","v":{"v":0,"d":"$0.00"}},{"$f":"IFERROR('MMA Rev-Exp Region 4'!$H$53/'MMA Rev-Exp Region 4'!$H$9, 0)","v":{"v":0,"d":"$0.00"}},{"$f":"IFERROR('MMA Rev-Exp Region 4'!$I$53/'MMA Rev-Exp Region 4'!$I$9, 0)","v":{"v":0,"d":"$0.00"}},{"$f":"IFERROR('MMA Rev-Exp Region 4'!$J$53/'MMA Rev-Exp Region 4'!$J$9, 0)","v":{"v":0,"d":"$0.00"}},{"$f":"IFERROR('MMA Rev-Exp Region 4'!$K$53/'MMA Rev-Exp Region 4'!$K$9, 0)","v":{"v":0,"d":"$0.00"}},{"$f":"IFERROR('MMA Rev-Exp Region 4'!$L$53/'MMA Rev-Exp Region 4'!$L$9, 0)","v":{"v":0,"d":"$0.00"}},{"$f":"IFERROR('MMA Rev-Exp Region 4'!$M$53/'MMA Rev-Exp Region 4'!$M$9, 0)","v":{"v":0,"d":"$0.00"}},{"$f":"IFERROR('MMA Rev-Exp Region 4'!$N$53/'MMA Rev-Exp Region 4'!$N$9, 0)","v":{"v":0,"d":"$0.00"}}]
["MMA",null,null,2016,"2016-12-31","Q1","2017-03-31","Region 4","Operating Expense","Medical Benefits Expense","Transportation Services","7.4","Transportation Settlements",{"$f":"IFERROR('MMA Rev-Exp Region 4'!$D$54/'MMA Rev-Exp Region 4'!$D$9, 0)","v":{"v":0,"d":"$0.00"}},{"$f":"IFERROR('MMA Rev-Exp Region 4'!$E$54/'MMA Rev-Exp Region 4'!$E$9, 0)","v":{"v":0,"d":"$0.00"}},{"$f":"IFERROR('MMA Rev-Exp Region 4'!$F$54/'MMA Rev-Exp Region 4'!$F$9, 0)","v":{"v":0,"d":"$0.00"}},{"$f":"IFERROR('MMA Rev-Exp Region 4'!$G$54/'MMA Rev-Exp Region 4'!$G$9, 0)","v":{"v":0,"d":"$0.00"}},{"$f":"IFERROR('MMA Rev-Exp Region 4'!$H$54/'MMA Rev-Exp Region 4'!$H$9, 0)","v":{"v":0,"d":"$0.00"}},{"$f":"IFERROR('MMA Rev-Exp Region 4'!$I$54/'MMA Rev-Exp Region 4'!$I$9, 0)","v":{"v":0,"d":"$0.00"}},{"$f":"IFERROR('MMA Rev-Exp Region 4'!$J$54/'MMA Rev-Exp Region 4'!$J$9, 0)","v":{"v":0,"d":"$0.00"}},{"$f":"IFERROR('MMA Rev-Exp Region 4'!$K$54/'MMA Rev-Exp Region 4'!$K$9, 0)","v":{"v":0,"d":"$0.00"}},{"$f":"IFERROR('MMA Rev-Exp Region 4'!$L$54/'MMA Rev-Exp Region 4'!$L$9, 0)","v":{"v":0,"d":"$0.00"}},{"$f":"IFERROR('MMA Rev-Exp Region 4'!$M$54/'MMA Rev-Exp Region 4'!$M$9, 0)","v":{"v":0,"d":"$0.00"}},{"$f":"IFERROR('MMA Rev-Exp Region 4'!$N$54/'MMA Rev-Exp Region 4'!$N$9, 0)","v":{"v":0,"d":"$0.00"}}]
["MMA",null,null,2016,"2016-12-31","Q1","2017-03-31","Region 4","Operating Expense","Medical Benefits Expense","Pharmacy Services",8.1,"Prescription Drugs FFS",{"$f":"IFERROR('MMA Rev-Exp Region 4'!$D$56/'MMA Rev-Exp Region 4'!$D$9, 0)","v":{"v":0,"d":"$0.00"}},{"$f":"IFERROR('MMA Rev-Exp Region 4'!$E$56/'MMA Rev-Exp Region 4'!$E$9, 0)","v":{"v":0,"d":"$0.00"}},{"$f":"IFERROR('MMA Rev-Exp Region 4'!$F$56/'MMA Rev-Exp Region 4'!$F$9, 0)","v":{"v":0,"d":"$0.00"}},{"$f":"IFERROR('MMA Rev-Exp Region 4'!$G$56/'MMA Rev-Exp Region 4'!$G$9, 0)","v":{"v":0,"d":"$0.00"}},{"$f":"IFERROR('MMA Rev-Exp Region 4'!$H$56/'MMA Rev-Exp Region 4'!$H$9, 0)","v":{"v":0,"d":"$0.00"}},{"$f":"IFERROR('MMA Rev-Exp Region 4'!$I$56/'MMA Rev-Exp Region 4'!$I$9, 0)","v":{"v":0,"d":"$0.00"}},{"$f":"IFERROR('MMA Rev-Exp Region 4'!$J$56/'MMA Rev-Exp Region 4'!$J$9, 0)","v":{"v":0,"d":"$0.00"}},{"$f":"IFERROR('MMA Rev-Exp Region 4'!$K$56/'MMA Rev-Exp Region 4'!$K$9, 0)","v":{"v":0,"d":"$0.00"}},{"$f":"IFERROR('MMA Rev-Exp Region 4'!$L$56/'MMA Rev-Exp Region 4'!$L$9, 0)","v":{"v":0,"d":"$0.00"}},{"$f":"IFERROR('MMA Rev-Exp Region 4'!$M$56/'MMA Rev-Exp Region 4'!$M$9, 0)","v":{"v":0,"d":"$0.00"}},{"$f":"IFERROR('MMA Rev-Exp Region 4'!$N$56/'MMA Rev-Exp Region 4'!$N$9, 0)","v":{"v":0,"d":"$0.00"}}]
["MMA",null,null,2016,"2016-12-31","Q1","2017-03-31","Region 4","Operating Expense","Medical Benefits Expense","Pharmacy Services","8.2","Hepatitis C Prescription Drug FFS",{"$f":"IFERROR('MMA Rev-Exp Region 4'!$D$57/'MMA Rev-Exp Region 4'!$D$9, 0)","v":{"v":0,"d":"$0.00"}},{"$f":"IFERROR('MMA Rev-Exp Region 4'!$E$57/'MMA Rev-Exp Region 4'!$E$9, 0)","v":{"v":0,"d":"$0.00"}},{"$f":"IFERROR('MMA Rev-Exp Region 4'!$F$57/'MMA Rev-Exp Region 4'!$F$9, 0)","v":{"v":0,"d":"$0.00"}},{"$f":"IFERROR('MMA Rev-Exp Region 4'!$G$57/'MMA Rev-Exp Region 4'!$G$9, 0)","v":{"v":0,"d":"$0.00"}},{"$f":"IFERROR('MMA Rev-Exp Region 4'!$H$57/'MMA Rev-Exp Region 4'!$H$9, 0)","v":{"v":0,"d":"$0.00"}},{"$f":"IFERROR('MMA Rev-Exp Region 4'!$I$57/'MMA Rev-Exp Region 4'!$I$9, 0)","v":{"v":0,"d":"$0.00"}},{"$f":"IFERROR('MMA Rev-Exp Region 4'!$J$57/'MMA Rev-Exp Region 4'!$J$9, 0)","v":{"v":0,"d":"$0.00"}},{"$f":"IFERROR('MMA Rev-Exp Region 4'!$K$57/'MMA Rev-Exp Region 4'!$K$9, 0)","v":{"v":0,"d":"$0.00"}},{"$f":"IFERROR('MMA Rev-Exp Region 4'!$L$57/'MMA Rev-Exp Region 4'!$L$9, 0)","v":{"v":0,"d":"$0.00"}},{"$f":"IFERROR('MMA Rev-Exp Region 4'!$M$57/'MMA Rev-Exp Region 4'!$M$9, 0)","v":{"v":0,"d":"$0.00"}},{"$f":"IFERROR('MMA Rev-Exp Region 4'!$N$57/'MMA Rev-Exp Region 4'!$N$9, 0)","v":{"v":0,"d":"$0.00"}}]
["MMA",null,null,2016,"2016-12-31","Q1","2017-03-31","Region 4","Operating Expense","Medical Benefits Expense","Pharmacy Services","8.3","Ending IBNP for Prescription Drugs",{"$f":"IFERROR('MMA Rev-Exp Region 4'!$D$58/'MMA Rev-Exp Region 4'!$D$9, 0)","v":{"v":0,"d":"$0.00"}},{"$f":"IFERROR('MMA Rev-Exp Region 4'!$E$58/'MMA Rev-Exp Region 4'!$E$9, 0)","v":{"v":0,"d":"$0.00"}},{"$f":"IFERROR('MMA Rev-Exp Region 4'!$F$58/'MMA Rev-Exp Region 4'!$F$9, 0)","v":{"v":0,"d":"$0.00"}},{"$f":"IFERROR('MMA Rev-Exp Region 4'!$G$58/'MMA Rev-Exp Region 4'!$G$9, 0)","v":{"v":0,"d":"$0.00"}},{"$f":"IFERROR('MMA Rev-Exp Region 4'!$H$58/'MMA Rev-Exp Region 4'!$H$9, 0)","v":{"v":0,"d":"$0.00"}},{"$f":"IFERROR('MMA Rev-Exp Region 4'!$I$58/'MMA Rev-Exp Region 4'!$I$9, 0)","v":{"v":0,"d":"$0.00"}},{"$f":"IFERROR('MMA Rev-Exp Region 4'!$J$58/'MMA Rev-Exp Region 4'!$J$9, 0)","v":{"v":0,"d":"$0.00"}},{"$f":"IFERROR('MMA Rev-Exp Region 4'!$K$58/'MMA Rev-Exp Region 4'!$K$9, 0)","v":{"v":0,"d":"$0.00"}},{"$f":"IFERROR('MMA Rev-Exp Region 4'!$L$58/'MMA Rev-Exp Region 4'!$L$9, 0)","v":{"v":0,"d":"$0.00"}},{"$f":"IFERROR('MMA Rev-Exp Region 4'!$M$58/'MMA Rev-Exp Region 4'!$M$9, 0)","v":{"v":0,"d":"$0.00"}},{"$f":"IFERROR('MMA Rev-Exp Region 4'!$N$58/'MMA Rev-Exp Region 4'!$N$9, 0)","v":{"v":0,"d":"$0.00"}}]
["MMA",null,null,2016,"2016-12-31","Q1","2017-03-31","Region 4","Operating Expense","Medical Benefits Expense","Pharmacy Services","8.4","Prescription Drug Rebates ",{"$f":"IFERROR('MMA Rev-Exp Region 4'!$D$59/'MMA Rev-Exp Region 4'!$D$9, 0)","v":{"v":0,"d":"$0.00"}},{"$f":"IFERROR('MMA Rev-Exp Region 4'!$E$59/'MMA Rev-Exp Region 4'!$E$9, 0)","v":{"v":0,"d":"$0.00"}},{"$f":"IFERROR('MMA Rev-Exp Region 4'!$F$59/'MMA Rev-Exp Region 4'!$F$9, 0)","v":{"v":0,"d":"$0.00"}},{"$f":"IFERROR('MMA Rev-Exp Region 4'!$G$59/'MMA Rev-Exp Region 4'!$G$9, 0)","v":{"v":0,"d":"$0.00"}},{"$f":"IFERROR('MMA Rev-Exp Region 4'!$H$59/'MMA Rev-Exp Region 4'!$H$9, 0)","v":{"v":0,"d":"$0.00"}},{"$f":"IFERROR('MMA Rev-Exp Region 4'!$I$59/'MMA Rev-Exp Region 4'!$I$9, 0)","v":{"v":0,"d":"$0.00"}},{"$f":"IFERROR('MMA Rev-Exp Region 4'!$J$59/'MMA Rev-Exp Region 4'!$J$9, 0)","v":{"v":0,"d":"$0.00"}},{"$f":"IFERROR('MMA Rev-Exp Region 4'!$K$59/'MMA Rev-Exp Region 4'!$K$9, 0)","v":{"v":0,"d":"$0.00"}},{"$f":"IFERROR('MMA Rev-Exp Region 4'!$L$59/'MMA Rev-Exp Region 4'!$L$9, 0)","v":{"v":0,"d":"$0.00"}},{"$f":"IFERROR('MMA Rev-Exp Region 4'!$M$59/'MMA Rev-Exp Region 4'!$M$9, 0)","v":{"v":0,"d":"$0.00"}},{"$f":"IFERROR('MMA Rev-Exp Region 4'!$N$59/'MMA Rev-Exp Region 4'!$N$9, 0)","v":{"v":0,"d":"$0.00"}}]
["MMA",null,null,2016,"2016-12-31","Q1","2017-03-31","Region 4","Operating Expense","Medical Benefits Expense","Pharmacy Services","8.5","Ending accrual for Rebates receivable",{"$f":"IFERROR('MMA Rev-Exp Region 4'!$D$60/'MMA Rev-Exp Region 4'!$D$9, 0)","v":{"v":0,"d":"$0.00"}},{"$f":"IFERROR('MMA Rev-Exp Region 4'!$E$60/'MMA Rev-Exp Region 4'!$E$9, 0)","v":{"v":0,"d":"$0.00"}},{"$f":"IFERROR('MMA Rev-Exp Region 4'!$F$60/'MMA Rev-Exp Region 4'!$F$9, 0)","v":{"v":0,"d":"$0.00"}},{"$f":"IFERROR('MMA Rev-Exp Region 4'!$G$60/'MMA Rev-Exp Region 4'!$G$9, 0)","v":{"v":0,"d":"$0.00"}},{"$f":"IFERROR('MMA Rev-Exp Region 4'!$H$60/'MMA Rev-Exp Region 4'!$H$9, 0)","v":{"v":0,"d":"$0.00"}},{"$f":"IFERROR('MMA Rev-Exp Region 4'!$I$60/'MMA Rev-Exp Region 4'!$I$9, 0)","v":{"v":0,"d":"$0.00"}},{"$f":"IFERROR('MMA Rev-Exp Region 4'!$J$60/'MMA Rev-Exp Region 4'!$J$9, 0)","v":{"v":0,"d":"$0.00"}},{"$f":"IFERROR('MMA Rev-Exp Region 4'!$K$60/'MMA Rev-Exp Region 4'!$K$9, 0)","v":{"v":0,"d":"$0.00"}},{"$f":"IFERROR('MMA Rev-Exp Region 4'!$L$60/'MMA Rev-Exp Region 4'!$L$9, 0)","v":{"v":0,"d":"$0.00"}},{"$f":"IFERROR('MMA Rev-Exp Region 4'!$M$60/'MMA Rev-Exp Region 4'!$M$9, 0)","v":{"v":0,"d":"$0.00"}},{"$f":"IFERROR('MMA Rev-Exp Region 4'!$N$60/'MMA Rev-Exp Region 4'!$N$9, 0)","v":{"v":0,"d":"$0.00"}}]
["MMA",null,null,2016,"2016-12-31","Q1","2017-03-31","Region 4","Operating Expense","Medical Benefits Expense","Pharmacy Services","8.6","Prescription Drugs Subcapitation",{"$f":"IFERROR('MMA Rev-Exp Region 4'!$D$61/'MMA Rev-Exp Region 4'!$D$9, 0)","v":{"v":0,"d":"$0.00"}},{"$f":"IFERROR('MMA Rev-Exp Region 4'!$E$61/'MMA Rev-Exp Region 4'!$E$9, 0)","v":{"v":0,"d":"$0.00"}},{"$f":"IFERROR('MMA Rev-Exp Region 4'!$F$61/'MMA Rev-Exp Region 4'!$F$9, 0)","v":{"v":0,"d":"$0.00"}},{"$f":"IFERROR('MMA Rev-Exp Region 4'!$G$61/'MMA Rev-Exp Region 4'!$G$9, 0)","v":{"v":0,"d":"$0.00"}},{"$f":"IFERROR('MMA Rev-Exp Region 4'!$H$61/'MMA Rev-Exp Region 4'!$H$9, 0)","v":{"v":0,"d":"$0.00"}},{"$f":"IFERROR('MMA Rev-Exp Region 4'!$I$61/'MMA Rev-Exp Region 4'!$I$9, 0)","v":{"v":0,"d":"$0.00"}},{"$f":"IFERROR('MMA Rev-Exp Region 4'!$J$61/'MMA Rev-Exp Region 4'!$J$9, 0)","v":{"v":0,"d":"$0.00"}},{"$f":"IFERROR('MMA Rev-Exp Region 4'!$K$61/'MMA Rev-Exp Region 4'!$K$9, 0)","v":{"v":0,"d":"$0.00"}},{"$f":"IFERROR('MMA Rev-Exp Region 4'!$L$61/'MMA Rev-Exp Region 4'!$L$9, 0)","v":{"v":0,"d":"$0.00"}},{"$f":"IFERROR('MMA Rev-Exp Region 4'!$M$61/'MMA Rev-Exp Region 4'!$M$9, 0)","v":{"v":0,"d":"$0.00"}},{"$f":"IFERROR('MMA Rev-Exp Region 4'!$N$61/'MMA Rev-Exp Region 4'!$N$9, 0)","v":{"v":0,"d":"$0.00"}}]
["MMA",null,null,2016,"2016-12-31","Q1","2017-03-31","Region 4","Operating Expense","Medical Benefits Expense","Pharmacy Services","8.7","Prescription Drug Settlements",{"$f":"IFERROR('MMA Rev-Exp Region 4'!$D$62/'MMA Rev-Exp Region 4'!$D$9, 0)","v":{"v":0,"d":"$0.00"}},{"$f":"IFERROR('MMA Rev-Exp Region 4'!$E$62/'MMA Rev-Exp Region 4'!$E$9, 0)","v":{"v":0,"d":"$0.00"}},{"$f":"IFERROR('MMA Rev-Exp Region 4'!$F$62/'MMA Rev-Exp Region 4'!$F$9, 0)","v":{"v":0,"d":"$0.00"}},{"$f":"IFERROR('MMA Rev-Exp Region 4'!$G$62/'MMA Rev-Exp Region 4'!$G$9, 0)","v":{"v":0,"d":"$0.00"}},{"$f":"IFERROR('MMA Rev-Exp Region 4'!$H$62/'MMA Rev-Exp Region 4'!$H$9, 0)","v":{"v":0,"d":"$0.00"}},{"$f":"IFERROR('MMA Rev-Exp Region 4'!$I$62/'MMA Rev-Exp Region 4'!$I$9, 0)","v":{"v":0,"d":"$0.00"}},{"$f":"IFERROR('MMA Rev-Exp Region 4'!$J$62/'MMA Rev-Exp Region 4'!$J$9, 0)","v":{"v":0,"d":"$0.00"}},{"$f":"IFERROR('MMA Rev-Exp Region 4'!$K$62/'MMA Rev-Exp Region 4'!$K$9, 0)","v":{"v":0,"d":"$0.00"}},{"$f":"IFERROR('MMA Rev-Exp Region 4'!$L$62/'MMA Rev-Exp Region 4'!$L$9, 0)","v":{"v":0,"d":"$0.00"}},{"$f":"IFERROR('MMA Rev-Exp Region 4'!$M$62/'MMA Rev-Exp Region 4'!$M$9, 0)","v":{"v":0,"d":"$0.00"}},{"$f":"IFERROR('MMA Rev-Exp Region 4'!$N$62/'MMA Rev-Exp Region 4'!$N$9, 0)","v":{"v":0,"d":"$0.00"}}]
["MMA",null,null,2016,"2016-12-31","Q1","2017-03-31","Region 4","Operating Expense","Medical Benefits Expense","Other MMA Services",9.1,"Home Health, Private Duty Nursing, Personal Care FFS",{"$f":"IFERROR('MMA Rev-Exp Region 4'!$D$64/'MMA Rev-Exp Region 4'!$D$9, 0)","v":{"v":0,"d":"$0.00"}},{"$f":"IFERROR('MMA Rev-Exp Region 4'!$E$64/'MMA Rev-Exp Region 4'!$E$9, 0)","v":{"v":0,"d":"$0.00"}},{"$f":"IFERROR('MMA Rev-Exp Region 4'!$F$64/'MMA Rev-Exp Region 4'!$F$9, 0)","v":{"v":0,"d":"$0.00"}},{"$f":"IFERROR('MMA Rev-Exp Region 4'!$G$64/'MMA Rev-Exp Region 4'!$G$9, 0)","v":{"v":0,"d":"$0.00"}},{"$f":"IFERROR('MMA Rev-Exp Region 4'!$H$64/'MMA Rev-Exp Region 4'!$H$9, 0)","v":{"v":0,"d":"$0.00"}},{"$f":"IFERROR('MMA Rev-Exp Region 4'!$I$64/'MMA Rev-Exp Region 4'!$I$9, 0)","v":{"v":0,"d":"$0.00"}},{"$f":"IFERROR('MMA Rev-Exp Region 4'!$J$64/'MMA Rev-Exp Region 4'!$J$9, 0)","v":{"v":0,"d":"$0.00"}},{"$f":"IFERROR('MMA Rev-Exp Region 4'!$K$64/'MMA Rev-Exp Region 4'!$K$9, 0)","v":{"v":0,"d":"$0.00"}},{"$f":"IFERROR('MMA Rev-Exp Region 4'!$L$64/'MMA Rev-Exp Region 4'!$L$9, 0)","v":{"v":0,"d":"$0.00"}},{"$f":"IFERROR('MMA Rev-Exp Region 4'!$M$64/'MMA Rev-Exp Region 4'!$M$9, 0)","v":{"v":0,"d":"$0.00"}},{"$f":"IFERROR('MMA Rev-Exp Region 4'!$N$64/'MMA Rev-Exp Region 4'!$N$9, 0)","v":{"v":0,"d":"$0.00"}}]
["MMA",null,null,2016,"2016-12-31","Q1","2017-03-31","Region 4","Operating Expense","Medical Benefits Expense","Other MMA Services","9.2","Hospice FFS",{"$f":"IFERROR('MMA Rev-Exp Region 4'!$D$65/'MMA Rev-Exp Region 4'!$D$9, 0)","v":{"v":0,"d":"$0.00"}},{"$f":"IFERROR('MMA Rev-Exp Region 4'!$E$65/'MMA Rev-Exp Region 4'!$E$9, 0)","v":{"v":0,"d":"$0.00"}},{"$f":"IFERROR('MMA Rev-Exp Region 4'!$F$65/'MMA Rev-Exp Region 4'!$F$9, 0)","v":{"v":0,"d":"$0.00"}},{"$f":"IFERROR('MMA Rev-Exp Region 4'!$G$65/'MMA Rev-Exp Region 4'!$G$9, 0)","v":{"v":0,"d":"$0.00"}},{"$f":"IFERROR('MMA Rev-Exp Region 4'!$H$65/'MMA Rev-Exp Region 4'!$H$9, 0)","v":{"v":0,"d":"$0.00"}},{"$f":"IFERROR('MMA Rev-Exp Region 4'!$I$65/'MMA Rev-Exp Region 4'!$I$9, 0)","v":{"v":0,"d":"$0.00"}},{"$f":"IFERROR('MMA Rev-Exp Region 4'!$J$65/'MMA Rev-Exp Region 4'!$J$9, 0)","v":{"v":0,"d":"$0.00"}},{"$f":"IFERROR('MMA Rev-Exp Region 4'!$K$65/'MMA Rev-Exp Region 4'!$K$9, 0)","v":{"v":0,"d":"$0.00"}},{"$f":"IFERROR('MMA Rev-Exp Region 4'!$L$65/'MMA Rev-Exp Region 4'!$L$9, 0)","v":{"v":0,"d":"$0.00"}},{"$f":"IFERROR('MMA Rev-Exp Region 4'!$M$65/'MMA Rev-Exp Region 4'!$M$9, 0)","v":{"v":0,"d":"$0.00"}},{"$f":"IFERROR('MMA Rev-Exp Region 4'!$N$65/'MMA Rev-Exp Region 4'!$N$9, 0)","v":{"v":0,"d":"$0.00"}}]
["MMA",null,null,2016,"2016-12-31","Q1","2017-03-31","Region 4","Operating Expense","Medical Benefits Expense","Other MMA Services","9.3","DME FFS",{"$f":"IFERROR('MMA Rev-Exp Region 4'!$D$66/'MMA Rev-Exp Region 4'!$D$9, 0)","v":{"v":0,"d":"$0.00"}},{"$f":"IFERROR('MMA Rev-Exp Region 4'!$E$66/'MMA Rev-Exp Region 4'!$E$9, 0)","v":{"v":0,"d":"$0.00"}},{"$f":"IFERROR('MMA Rev-Exp Region 4'!$F$66/'MMA Rev-Exp Region 4'!$F$9, 0)","v":{"v":0,"d":"$0.00"}},{"$f":"IFERROR('MMA Rev-Exp Region 4'!$G$66/'MMA Rev-Exp Region 4'!$G$9, 0)","v":{"v":0,"d":"$0.00"}},{"$f":"IFERROR('MMA Rev-Exp Region 4'!$H$66/'MMA Rev-Exp Region 4'!$H$9, 0)","v":{"v":0,"d":"$0.00"}},{"$f":"IFERROR('MMA Rev-Exp Region 4'!$I$66/'MMA Rev-Exp Region 4'!$I$9, 0)","v":{"v":0,"d":"$0.00"}},{"$f":"IFERROR('MMA Rev-Exp Region 4'!$J$66/'MMA Rev-Exp Region 4'!$J$9, 0)","v":{"v":0,"d":"$0.00"}},{"$f":"IFERROR('MMA Rev-Exp Region 4'!$K$66/'MMA Rev-Exp Region 4'!$K$9, 0)","v":{"v":0,"d":"$0.00"}},{"$f":"IFERROR('MMA Rev-Exp Region 4'!$L$66/'MMA Rev-Exp Region 4'!$L$9, 0)","v":{"v":0,"d":"$0.00"}},{"$f":"IFERROR('MMA Rev-Exp Region 4'!$M$66/'MMA Rev-Exp Region 4'!$M$9, 0)","v":{"v":0,"d":"$0.00"}},{"$f":"IFERROR('MMA Rev-Exp Region 4'!$N$66/'MMA Rev-Exp Region 4'!$N$9, 0)","v":{"v":0,"d":"$0.00"}}]
["MMA",null,null,2016,"2016-12-31","Q1","2017-03-31","Region 4","Operating Expense","Medical Benefits Expense","Other MMA Services","9.4","Other State Plan Services FFS",{"$f":"IFERROR('MMA Rev-Exp Region 4'!$D$67/'MMA Rev-Exp Region 4'!$D$9, 0)","v":{"v":0,"d":"$0.00"}},{"$f":"IFERROR('MMA Rev-Exp Region 4'!$E$67/'MMA Rev-Exp Region 4'!$E$9, 0)","v":{"v":0,"d":"$0.00"}},{"$f":"IFERROR('MMA Rev-Exp Region 4'!$F$67/'MMA Rev-Exp Region 4'!$F$9, 0)","v":{"v":0,"d":"$0.00"}},{"$f":"IFERROR('MMA Rev-Exp Region 4'!$G$67/'MMA Rev-Exp Region 4'!$G$9, 0)","v":{"v":0,"d":"$0.00"}},{"$f":"IFERROR('MMA Rev-Exp Region 4'!$H$67/'MMA Rev-Exp Region 4'!$H$9, 0)","v":{"v":0,"d":"$0.00"}},{"$f":"IFERROR('MMA Rev-Exp Region 4'!$I$67/'MMA Rev-Exp Region 4'!$I$9, 0)","v":{"v":0,"d":"$0.00"}},{"$f":"IFERROR('MMA Rev-Exp Region 4'!$J$67/'MMA Rev-Exp Region 4'!$J$9, 0)","v":{"v":0,"d":"$0.00"}},{"$f":"IFERROR('MMA Rev-Exp Region 4'!$K$67/'MMA Rev-Exp Region 4'!$K$9, 0)","v":{"v":0,"d":"$0.00"}},{"$f":"IFERROR('MMA Rev-Exp Region 4'!$L$67/'MMA Rev-Exp Region 4'!$L$9, 0)","v":{"v":0,"d":"$0.00"}},{"$f":"IFERROR('MMA Rev-Exp Region 4'!$M$67/'MMA Rev-Exp Region 4'!$M$9, 0)","v":{"v":0,"d":"$0.00"}},{"$f":"IFERROR('MMA Rev-Exp Region 4'!$N$67/'MMA Rev-Exp Region 4'!$N$9, 0)","v":{"v":0,"d":"$0.00"}}]
["MMA",null,null,2016,"2016-12-31","Q1","2017-03-31","Region 4","Operating Expense","Medical Benefits Expense","Other MMA Services","9.5","Other Services Subcapitation",{"$f":"IFERROR('MMA Rev-Exp Region 4'!$D$68/'MMA Rev-Exp Region 4'!$D$9, 0)","v":{"v":0,"d":"$0.00"}},{"$f":"IFERROR('MMA Rev-Exp Region 4'!$E$68/'MMA Rev-Exp Region 4'!$E$9, 0)","v":{"v":0,"d":"$0.00"}},{"$f":"IFERROR('MMA Rev-Exp Region 4'!$F$68/'MMA Rev-Exp Region 4'!$F$9, 0)","v":{"v":0,"d":"$0.00"}},{"$f":"IFERROR('MMA Rev-Exp Region 4'!$G$68/'MMA Rev-Exp Region 4'!$G$9, 0)","v":{"v":0,"d":"$0.00"}},{"$f":"IFERROR('MMA Rev-Exp Region 4'!$H$68/'MMA Rev-Exp Region 4'!$H$9, 0)","v":{"v":0,"d":"$0.00"}},{"$f":"IFERROR('MMA Rev-Exp Region 4'!$I$68/'MMA Rev-Exp Region 4'!$I$9, 0)","v":{"v":0,"d":"$0.00"}},{"$f":"IFERROR('MMA Rev-Exp Region 4'!$J$68/'MMA Rev-Exp Region 4'!$J$9, 0)","v":{"v":0,"d":"$0.00"}},{"$f":"IFERROR('MMA Rev-Exp Region 4'!$K$68/'MMA Rev-Exp Region 4'!$K$9, 0)","v":{"v":0,"d":"$0.00"}},{"$f":"IFERROR('MMA Rev-Exp Region 4'!$L$68/'MMA Rev-Exp Region 4'!$L$9, 0)","v":{"v":0,"d":"$0.00"}},{"$f":"IFERROR('MMA Rev-Exp Region 4'!$M$68/'MMA Rev-Exp Region 4'!$M$9, 0)","v":{"v":0,"d":"$0.00"}},{"$f":"IFERROR('MMA Rev-Exp Region 4'!$N$68/'MMA Rev-Exp Region 4'!$N$9, 0)","v":{"v":0,"d":"$0.00"}}]
["MMA",null,null,2016,"2016-12-31","Q1","2017-03-31","Region 4","Operating Expense","Medical Benefits Expense","Other MMA Services","9.6","Ending IBNP for Other Services",{"$f":"IFERROR('MMA Rev-Exp Region 4'!$D$69/'MMA Rev-Exp Region 4'!$D$9, 0)","v":{"v":0,"d":"$0.00"}},{"$f":"IFERROR('MMA Rev-Exp Region 4'!$E$69/'MMA Rev-Exp Region 4'!$E$9, 0)","v":{"v":0,"d":"$0.00"}},{"$f":"IFERROR('MMA Rev-Exp Region 4'!$F$69/'MMA Rev-Exp Region 4'!$F$9, 0)","v":{"v":0,"d":"$0.00"}},{"$f":"IFERROR('MMA Rev-Exp Region 4'!$G$69/'MMA Rev-Exp Region 4'!$G$9, 0)","v":{"v":0,"d":"$0.00"}},{"$f":"IFERROR('MMA Rev-Exp Region 4'!$H$69/'MMA Rev-Exp Region 4'!$H$9, 0)","v":{"v":0,"d":"$0.00"}},{"$f":"IFERROR('MMA Rev-Exp Region 4'!$I$69/'MMA Rev-Exp Region 4'!$I$9, 0)","v":{"v":0,"d":"$0.00"}},{"$f":"IFERROR('MMA Rev-Exp Region 4'!$J$69/'MMA Rev-Exp Region 4'!$J$9, 0)","v":{"v":0,"d":"$0.00"}},{"$f":"IFERROR('MMA Rev-Exp Region 4'!$K$69/'MMA Rev-Exp Region 4'!$K$9, 0)","v":{"v":0,"d":"$0.00"}},{"$f":"IFERROR('MMA Rev-Exp Region 4'!$L$69/'MMA Rev-Exp Region 4'!$L$9, 0)","v":{"v":0,"d":"$0.00"}},{"$f":"IFERROR('MMA Rev-Exp Region 4'!$M$69/'MMA Rev-Exp Region 4'!$M$9, 0)","v":{"v":0,"d":"$0.00"}},{"$f":"IFERROR('MMA Rev-Exp Region 4'!$N$69/'MMA Rev-Exp Region 4'!$N$9, 0)","v":{"v":0,"d":"$0.00"}}]
["MMA",null,null,2016,"2016-12-31","Q1","2017-03-31","Region 4","Operating Expense","Medical Benefits Expense","Other MMA Services","9.7","Other Services Settlements",{"$f":"IFERROR('MMA Rev-Exp Region 4'!$D$70/'MMA Rev-Exp Region 4'!$D$9, 0)","v":{"v":0,"d":"$0.00"}},{"$f":"IFERROR('MMA Rev-Exp Region 4'!$E$70/'MMA Rev-Exp Region 4'!$E$9, 0)","v":{"v":0,"d":"$0.00"}},{"$f":"IFERROR('MMA Rev-Exp Region 4'!$F$70/'MMA Rev-Exp Region 4'!$F$9, 0)","v":{"v":0,"d":"$0.00"}},{"$f":"IFERROR('MMA Rev-Exp Region 4'!$G$70/'MMA Rev-Exp Region 4'!$G$9, 0)","v":{"v":0,"d":"$0.00"}},{"$f":"IFERROR('MMA Rev-Exp Region 4'!$H$70/'MMA Rev-Exp Region 4'!$H$9, 0)","v":{"v":0,"d":"$0.00"}},{"$f":"IFERROR('MMA Rev-Exp Region 4'!$I$70/'MMA Rev-Exp Region 4'!$I$9, 0)","v":{"v":0,"d":"$0.00"}},{"$f":"IFERROR('MMA Rev-Exp Region 4'!$J$70/'MMA Rev-Exp Region 4'!$J$9, 0)","v":{"v":0,"d":"$0.00"}},{"$f":"IFERROR('MMA Rev-Exp Region 4'!$K$70/'MMA Rev-Exp Region 4'!$K$9, 0)","v":{"v":0,"d":"$0.00"}},{"$f":"IFERROR('MMA Rev-Exp Region 4'!$L$70/'MMA Rev-Exp Region 4'!$L$9, 0)","v":{"v":0,"d":"$0.00"}},{"$f":"IFERROR('MMA Rev-Exp Region 4'!$M$70/'MMA Rev-Exp Region 4'!$M$9, 0)","v":{"v":0,"d":"$0.00"}},{"$f":"IFERROR('MMA Rev-Exp Region 4'!$N$70/'MMA Rev-Exp Region 4'!$N$9, 0)","v":{"v":0,"d":"$0.00"}}]
["MMA",null,null,2016,"2016-12-31","Q1","2017-03-31","Region 4","Operating Expense","Medical Benefits Expense","Expanded Benefits","10.1","Expanded Benefits FFS",{"$f":"IFERROR('MMA Rev-Exp Region 4'!$D$72/'MMA Rev-Exp Region 4'!$D$9, 0)","v":{"v":0,"d":"$0.00"}},{"$f":"IFERROR('MMA Rev-Exp Region 4'!$E$72/'MMA Rev-Exp Region 4'!$E$9, 0)","v":{"v":0,"d":"$0.00"}},{"$f":"IFERROR('MMA Rev-Exp Region 4'!$F$72/'MMA Rev-Exp Region 4'!$F$9, 0)","v":{"v":0,"d":"$0.00"}},{"$f":"IFERROR('MMA Rev-Exp Region 4'!$G$72/'MMA Rev-Exp Region 4'!$G$9, 0)","v":{"v":0,"d":"$0.00"}},{"$f":"IFERROR('MMA Rev-Exp Region 4'!$H$72/'MMA Rev-Exp Region 4'!$H$9, 0)","v":{"v":0,"d":"$0.00"}},{"$f":"IFERROR('MMA Rev-Exp Region 4'!$I$72/'MMA Rev-Exp Region 4'!$I$9, 0)","v":{"v":0,"d":"$0.00"}},{"$f":"IFERROR('MMA Rev-Exp Region 4'!$J$72/'MMA Rev-Exp Region 4'!$J$9, 0)","v":{"v":0,"d":"$0.00"}},{"$f":"IFERROR('MMA Rev-Exp Region 4'!$K$72/'MMA Rev-Exp Region 4'!$K$9, 0)","v":{"v":0,"d":"$0.00"}},{"$f":"IFERROR('MMA Rev-Exp Region 4'!$L$72/'MMA Rev-Exp Region 4'!$L$9, 0)","v":{"v":0,"d":"$0.00"}},{"$f":"IFERROR('MMA Rev-Exp Region 4'!$M$72/'MMA Rev-Exp Region 4'!$M$9, 0)","v":{"v":0,"d":"$0.00"}},{"$f":"IFERROR('MMA Rev-Exp Region 4'!$N$72/'MMA Rev-Exp Region 4'!$N$9, 0)","v":{"v":0,"d":"$0.00"}}]
["MMA",null,null,2016,"2016-12-31","Q1","2017-03-31","Region 4","Operating Expense","Medical Benefits Expense","Expanded Benefits","10.2","Expanded benefits Subcapitation",{"$f":"IFERROR('MMA Rev-Exp Region 4'!$D$73/'MMA Rev-Exp Region 4'!$D$9, 0)","v":{"v":0,"d":"$0.00"}},{"$f":"IFERROR('MMA Rev-Exp Region 4'!$E$73/'MMA Rev-Exp Region 4'!$E$9, 0)","v":{"v":0,"d":"$0.00"}},{"$f":"IFERROR('MMA Rev-Exp Region 4'!$F$73/'MMA Rev-Exp Region 4'!$F$9, 0)","v":{"v":0,"d":"$0.00"}},{"$f":"IFERROR('MMA Rev-Exp Region 4'!$G$73/'MMA Rev-Exp Region 4'!$G$9, 0)","v":{"v":0,"d":"$0.00"}},{"$f":"IFERROR('MMA Rev-Exp Region 4'!$H$73/'MMA Rev-Exp Region 4'!$H$9, 0)","v":{"v":0,"d":"$0.00"}},{"$f":"IFERROR('MMA Rev-Exp Region 4'!$I$73/'MMA Rev-Exp Region 4'!$I$9, 0)","v":{"v":0,"d":"$0.00"}},{"$f":"IFERROR('MMA Rev-Exp Region 4'!$J$73/'MMA Rev-Exp Region 4'!$J$9, 0)","v":{"v":0,"d":"$0.00"}},{"$f":"IFERROR('MMA Rev-Exp Region 4'!$K$73/'MMA Rev-Exp Region 4'!$K$9, 0)","v":{"v":0,"d":"$0.00"}},{"$f":"IFERROR('MMA Rev-Exp Region 4'!$L$73/'MMA Rev-Exp Region 4'!$L$9, 0)","v":{"v":0,"d":"$0.00"}},{"$f":"IFERROR('MMA Rev-Exp Region 4'!$M$73/'MMA Rev-Exp Region 4'!$M$9, 0)","v":{"v":0,"d":"$0.00"}},{"$f":"IFERROR('MMA Rev-Exp Region 4'!$N$73/'MMA Rev-Exp Region 4'!$N$9, 0)","v":{"v":0,"d":"$0.00"}}]
["MMA",null,null,2016,"2016-12-31","Q1","2017-03-31","Region 4","Operating Expense","Medical Benefits Expense","Expanded Benefits","10.3","Ending IBNP for Expanded Benefits",{"$f":"IFERROR('MMA Rev-Exp Region 4'!$D$74/'MMA Rev-Exp Region 4'!$D$9, 0)","v":{"v":0,"d":"$0.00"}},{"$f":"IFERROR('MMA Rev-Exp Region 4'!$E$74/'MMA Rev-Exp Region 4'!$E$9, 0)","v":{"v":0,"d":"$0.00"}},{"$f":"IFERROR('MMA Rev-Exp Region 4'!$F$74/'MMA Rev-Exp Region 4'!$F$9, 0)","v":{"v":0,"d":"$0.00"}},{"$f":"IFERROR('MMA Rev-Exp Region 4'!$G$74/'MMA Rev-Exp Region 4'!$G$9, 0)","v":{"v":0,"d":"$0.00"}},{"$f":"IFERROR('MMA Rev-Exp Region 4'!$H$74/'MMA Rev-Exp Region 4'!$H$9, 0)","v":{"v":0,"d":"$0.00"}},{"$f":"IFERROR('MMA Rev-Exp Region 4'!$I$74/'MMA Rev-Exp Region 4'!$I$9, 0)","v":{"v":0,"d":"$0.00"}},{"$f":"IFERROR('MMA Rev-Exp Region 4'!$J$74/'MMA Rev-Exp Region 4'!$J$9, 0)","v":{"v":0,"d":"$0.00"}},{"$f":"IFERROR('MMA Rev-Exp Region 4'!$K$74/'MMA Rev-Exp Region 4'!$K$9, 0)","v":{"v":0,"d":"$0.00"}},{"$f":"IFERROR('MMA Rev-Exp Region 4'!$L$74/'MMA Rev-Exp Region 4'!$L$9, 0)","v":{"v":0,"d":"$0.00"}},{"$f":"IFERROR('MMA Rev-Exp Region 4'!$M$74/'MMA Rev-Exp Region 4'!$M$9, 0)","v":{"v":0,"d":"$0.00"}},{"$f":"IFERROR('MMA Rev-Exp Region 4'!$N$74/'MMA Rev-Exp Region 4'!$N$9, 0)","v":{"v":0,"d":"$0.00"}}]
["MMA",null,null,2016,"2016-12-31","Q1","2017-03-31","Region 4","Operating Expense","Medical Benefits Expense","Expanded Benefits","10.4","Expanded Benefits Settlements",{"$f":"IFERROR('MMA Rev-Exp Region 4'!$D$75/'MMA Rev-Exp Region 4'!$D$9, 0)","v":{"v":0,"d":"$0.00"}},{"$f":"IFERROR('MMA Rev-Exp Region 4'!$E$75/'MMA Rev-Exp Region 4'!$E$9, 0)","v":{"v":0,"d":"$0.00"}},{"$f":"IFERROR('MMA Rev-Exp Region 4'!$F$75/'MMA Rev-Exp Region 4'!$F$9, 0)","v":{"v":0,"d":"$0.00"}},{"$f":"IFERROR('MMA Rev-Exp Region 4'!$G$75/'MMA Rev-Exp Region 4'!$G$9, 0)","v":{"v":0,"d":"$0.00"}},{"$f":"IFERROR('MMA Rev-Exp Region 4'!$H$75/'MMA Rev-Exp Region 4'!$H$9, 0)","v":{"v":0,"d":"$0.00"}},{"$f":"IFERROR('MMA Rev-Exp Region 4'!$I$75/'MMA Rev-Exp Region 4'!$I$9, 0)","v":{"v":0,"d":"$0.00"}},{"$f":"IFERROR('MMA Rev-Exp Region 4'!$J$75/'MMA Rev-Exp Region 4'!$J$9, 0)","v":{"v":0,"d":"$0.00"}},{"$f":"IFERROR('MMA Rev-Exp Region 4'!$K$75/'MMA Rev-Exp Region 4'!$K$9, 0)","v":{"v":0,"d":"$0.00"}},{"$f":"IFERROR('MMA Rev-Exp Region 4'!$L$75/'MMA Rev-Exp Region 4'!$L$9, 0)","v":{"v":0,"d":"$0.00"}},{"$f":"IFERROR('MMA Rev-Exp Region 4'!$M$75/'MMA Rev-Exp Region 4'!$M$9, 0)","v":{"v":0,"d":"$0.00"}},{"$f":"IFERROR('MMA Rev-Exp Region 4'!$N$75/'MMA Rev-Exp Region 4'!$N$9, 0)","v":{"v":0,"d":"$0.00"}}]
["MMA",null,null,2016,"2016-12-31","Q1","2017-03-31","Region 4","Operating Expense","Medical Benefits Expense","Other Medical","11.5","TPL & Fraud/Abuse Recoveries",{"$f":"IFERROR('MMA Rev-Exp Region 4'!$D$81/'MMA Rev-Exp Region 4'!$D$9, 0)","v":{"v":0,"d":"$0.00"}},{"$f":"IFERROR('MMA Rev-Exp Region 4'!$E$81/'MMA Rev-Exp Region 4'!$E$9, 0)","v":{"v":0,"d":"$0.00"}},{"$f":"IFERROR('MMA Rev-Exp Region 4'!$F$81/'MMA Rev-Exp Region 4'!$F$9, 0)","v":{"v":0,"d":"$0.00"}},{"$f":"IFERROR('MMA Rev-Exp Region 4'!$G$81/'MMA Rev-Exp Region 4'!$G$9, 0)","v":{"v":0,"d":"$0.00"}},{"$f":"IFERROR('MMA Rev-Exp Region 4'!$H$81/'MMA Rev-Exp Region 4'!$H$9, 0)","v":{"v":0,"d":"$0.00"}},{"$f":"IFERROR('MMA Rev-Exp Region 4'!$I$81/'MMA Rev-Exp Region 4'!$I$9, 0)","v":{"v":0,"d":"$0.00"}},{"$f":"IFERROR('MMA Rev-Exp Region 4'!$J$81/'MMA Rev-Exp Region 4'!$J$9, 0)","v":{"v":0,"d":"$0.00"}},{"$f":"IFERROR('MMA Rev-Exp Region 4'!$K$81/'MMA Rev-Exp Region 4'!$K$9, 0)","v":{"v":0,"d":"$0.00"}},{"$f":"IFERROR('MMA Rev-Exp Region 4'!$L$81/'MMA Rev-Exp Region 4'!$L$9, 0)","v":{"v":0,"d":"$0.00"}},{"$f":"IFERROR('MMA Rev-Exp Region 4'!$M$81/'MMA Rev-Exp Region 4'!$M$9, 0)","v":{"v":0,"d":"$0.00"}},{"$f":"IFERROR('MMA Rev-Exp Region 4'!$N$81/'MMA Rev-Exp Region 4'!$N$9, 0)","v":{"v":0,"d":"$0.00"}}]
["MMA",null,null,2016,"2016-12-31","Q1","2017-03-31","Region 4","Operating Expense","Medical Benefits Expense","Other Medical","11.6.1","Premium Deficiency Reserve",{"$f":"IFERROR('MMA Rev-Exp Region 4'!$D$82/'MMA Rev-Exp Region 4'!$D$9, 0)","v":{"v":0,"d":"$0.00"}},{"$f":"IFERROR('MMA Rev-Exp Region 4'!$E$82/'MMA Rev-Exp Region 4'!$E$9, 0)","v":{"v":0,"d":"$0.00"}},{"$f":"IFERROR('MMA Rev-Exp Region 4'!$F$82/'MMA Rev-Exp Region 4'!$F$9, 0)","v":{"v":0,"d":"$0.00"}},{"$f":"IFERROR('MMA Rev-Exp Region 4'!$G$82/'MMA Rev-Exp Region 4'!$G$9, 0)","v":{"v":0,"d":"$0.00"}},{"$f":"IFERROR('MMA Rev-Exp Region 4'!$H$82/'MMA Rev-Exp Region 4'!$H$9, 0)","v":{"v":0,"d":"$0.00"}},{"$f":"IFERROR('MMA Rev-Exp Region 4'!$I$82/'MMA Rev-Exp Region 4'!$I$9, 0)","v":{"v":0,"d":"$0.00"}},{"$f":"IFERROR('MMA Rev-Exp Region 4'!$J$82/'MMA Rev-Exp Region 4'!$J$9, 0)","v":{"v":0,"d":"$0.00"}},{"$f":"IFERROR('MMA Rev-Exp Region 4'!$K$82/'MMA Rev-Exp Region 4'!$K$9, 0)","v":{"v":0,"d":"$0.00"}},{"$f":"IFERROR('MMA Rev-Exp Region 4'!$L$82/'MMA Rev-Exp Region 4'!$L$9, 0)","v":{"v":0,"d":"$0.00"}},{"$f":"IFERROR('MMA Rev-Exp Region 4'!$M$82/'MMA Rev-Exp Region 4'!$M$9, 0)","v":{"v":0,"d":"$0.00"}},{"$f":"IFERROR('MMA Rev-Exp Region 4'!$N$82/'MMA Rev-Exp Region 4'!$N$9, 0)","v":{"v":0,"d":"$0.00"}}]
["MMA",null,null,2016,"2016-12-31","Q1","2017-03-31","Region 4","Operating Expense","Medical Benefits Expense","Other Medical","11.8","Reinsurance Premiums",{"$f":"IFERROR('MMA Rev-Exp Region 4'!$D$84/'MMA Rev-Exp Region 4'!$D$9, 0)","v":{"v":0,"d":"$0.00"}},{"$f":"IFERROR('MMA Rev-Exp Region 4'!$E$84/'MMA Rev-Exp Region 4'!$E$9, 0)","v":{"v":0,"d":"$0.00"}},{"$f":"IFERROR('MMA Rev-Exp Region 4'!$F$84/'MMA Rev-Exp Region 4'!$F$9, 0)","v":{"v":0,"d":"$0.00"}},{"$f":"IFERROR('MMA Rev-Exp Region 4'!$G$84/'MMA Rev-Exp Region 4'!$G$9, 0)","v":{"v":0,"d":"$0.00"}},{"$f":"IFERROR('MMA Rev-Exp Region 4'!$H$84/'MMA Rev-Exp Region 4'!$H$9, 0)","v":{"v":0,"d":"$0.00"}},{"$f":"IFERROR('MMA Rev-Exp Region 4'!$I$84/'MMA Rev-Exp Region 4'!$I$9, 0)","v":{"v":0,"d":"$0.00"}},{"$f":"IFERROR('MMA Rev-Exp Region 4'!$J$84/'MMA Rev-Exp Region 4'!$J$9, 0)","v":{"v":0,"d":"$0.00"}},{"$f":"IFERROR('MMA Rev-Exp Region 4'!$K$84/'MMA Rev-Exp Region 4'!$K$9, 0)","v":{"v":0,"d":"$0.00"}},{"$f":"IFERROR('MMA Rev-Exp Region 4'!$L$84/'MMA Rev-Exp Region 4'!$L$9, 0)","v":{"v":0,"d":"$0.00"}},{"$f":"IFERROR('MMA Rev-Exp Region 4'!$M$84/'MMA Rev-Exp Region 4'!$M$9, 0)","v":{"v":0,"d":"$0.00"}},{"$f":"IFERROR('MMA Rev-Exp Region 4'!$N$84/'MMA Rev-Exp Region 4'!$N$9, 0)","v":{"v":0,"d":"$0.00"}}]
["MMA",null,null,2016,"2016-12-31","Q1","2017-03-31","Region 4","Operating Expense","Medical Benefits Expense","Other Medical","11.9","Reinsurance Recoveries",{"$f":"IFERROR('MMA Rev-Exp Region 4'!$D$85/'MMA Rev-Exp Region 4'!$D$9, 0)","v":{"v":0,"d":"$0.00"}},{"$f":"IFERROR('MMA Rev-Exp Region 4'!$E$85/'MMA Rev-Exp Region 4'!$E$9, 0)","v":{"v":0,"d":"$0.00"}},{"$f":"IFERROR('MMA Rev-Exp Region 4'!$F$85/'MMA Rev-Exp Region 4'!$F$9, 0)","v":{"v":0,"d":"$0.00"}},{"$f":"IFERROR('MMA Rev-Exp Region 4'!$G$85/'MMA Rev-Exp Region 4'!$G$9, 0)","v":{"v":0,"d":"$0.00"}},{"$f":"IFERROR('MMA Rev-Exp Region 4'!$H$85/'MMA Rev-Exp Region 4'!$H$9, 0)","v":{"v":0,"d":"$0.00"}},{"$f":"IFERROR('MMA Rev-Exp Region 4'!$I$85/'MMA Rev-Exp Region 4'!$I$9, 0)","v":{"v":0,"d":"$0.00"}},{"$f":"IFERROR('MMA Rev-Exp Region 4'!$J$85/'MMA Rev-Exp Region 4'!$J$9, 0)","v":{"v":0,"d":"$0.00"}},{"$f":"IFERROR('MMA Rev-Exp Region 4'!$K$85/'MMA Rev-Exp Region 4'!$K$9, 0)","v":{"v":0,"d":"$0.00"}},{"$f":"IFERROR('MMA Rev-Exp Region 4'!$L$85/'MMA Rev-Exp Region 4'!$L$9, 0)","v":{"v":0,"d":"$0.00"}},{"$f":"IFERROR('MMA Rev-Exp Region 4'!$M$85/'MMA Rev-Exp Region 4'!$M$9, 0)","v":{"v":0,"d":"$0.00"}},{"$f":"IFERROR('MMA Rev-Exp Region 4'!$N$85/'MMA Rev-Exp Region 4'!$N$9, 0)","v":{"v":0,"d":"$0.00"}}]
["MMA",null,null,2016,"2016-12-31","Q1","2017-03-31","Region 4","Operating Expense","Administrative Expense","Administrative","12.1","Salaries & Benefits",{"$f":"IFERROR('MMA Rev-Exp Region 4'!$D$90/'MMA Rev-Exp Region 4'!$D$9, 0)","v":{"v":0,"d":"$0.00"}},{"$f":"IFERROR('MMA Rev-Exp Region 4'!$E$90/'MMA Rev-Exp Region 4'!$D$9, 0)","v":{"v":0,"d":"$0.00"}},{"$f":"IFERROR('MMA Rev-Exp Region 4'!$F$90/'MMA Rev-Exp Region 4'!$D$9, 0)","v":{"v":0,"d":"$0.00"}},{"$f":"IFERROR('MMA Rev-Exp Region 4'!$G$90/'MMA Rev-Exp Region 4'!$G$9, 0)","v":{"v":0,"d":"$0.00"}},{"$f":"IFERROR('MMA Rev-Exp Region 4'!$H$90/'MMA Rev-Exp Region 4'!$H$9, 0)","v":{"v":0,"d":"$0.00"}},{"$f":"IFERROR('MMA Rev-Exp Region 4'!$I$90/'MMA Rev-Exp Region 4'!$I$9, 0)","v":{"v":0,"d":"$0.00"}},{"$f":"IFERROR('MMA Rev-Exp Region 4'!$J$90/'MMA Rev-Exp Region 4'!$J$9, 0)","v":{"v":0,"d":"$0.00"}},{"$f":"IFERROR('MMA Rev-Exp Region 4'!$K$90/'MMA Rev-Exp Region 4'!$K$9, 0)","v":{"v":0,"d":"$0.00"}},{"$f":"IFERROR('MMA Rev-Exp Region 4'!$L$90/'MMA Rev-Exp Region 4'!$L$9, 0)","v":{"v":0,"d":"$0.00"}},{"$f":"IFERROR('MMA Rev-Exp Region 4'!$M$90/'MMA Rev-Exp Region 4'!$M$9, 0)","v":{"v":0,"d":"$0.00"}},{"$f":"IFERROR('MMA Rev-Exp Region 4'!$N$90/'MMA Rev-Exp Region 4'!$N$9, 0)","v":{"v":0,"d":"$0.00"}}]
["MMA",null,null,2016,"2016-12-31","Q1","2017-03-31","Region 4","Operating Expense","Administrative Expense","Administrative","12.2","Administrative Services",{"$f":"IFERROR('MMA Rev-Exp Region 4'!$D$91/'MMA Rev-Exp Region 4'!$D$9, 0)","v":{"v":0,"d":"$0.00"}},{"$f":"IFERROR('MMA Rev-Exp Region 4'!$E$91/'MMA Rev-Exp Region 4'!$D$9, 0)","v":{"v":0,"d":"$0.00"}},{"$f":"IFERROR('MMA Rev-Exp Region 4'!$F$91/'MMA Rev-Exp Region 4'!$D$9, 0)","v":{"v":0,"d":"$0.00"}},{"$f":"IFERROR('MMA Rev-Exp Region 4'!$G$91/'MMA Rev-Exp Region 4'!$G$9, 0)","v":{"v":0,"d":"$0.00"}},{"$f":"IFERROR('MMA Rev-Exp Region 4'!$H$91/'MMA Rev-Exp Region 4'!$H$9, 0)","v":{"v":0,"d":"$0.00"}},{"$f":"IFERROR('MMA Rev-Exp Region 4'!$I$91/'MMA Rev-Exp Region 4'!$I$9, 0)","v":{"v":0,"d":"$0.00"}},{"$f":"IFERROR('MMA Rev-Exp Region 4'!$J$91/'MMA Rev-Exp Region 4'!$J$9, 0)","v":{"v":0,"d":"$0.00"}},{"$f":"IFERROR('MMA Rev-Exp Region 4'!$K$91/'MMA Rev-Exp Region 4'!$K$9, 0)","v":{"v":0,"d":"$0.00"}},{"$f":"IFERROR('MMA Rev-Exp Region 4'!$L$91/'MMA Rev-Exp Region 4'!$L$9, 0)","v":{"v":0,"d":"$0.00"}},{"$f":"IFERROR('MMA Rev-Exp Region 4'!$M$91/'MMA Rev-Exp Region 4'!$M$9, 0)","v":{"v":0,"d":"$0.00"}},{"$f":"IFERROR('MMA Rev-Exp Region 4'!$N$91/'MMA Rev-Exp Region 4'!$N$9, 0)","v":{"v":0,"d":"$0.00"}}]
["MMA",null,null,2016,"2016-12-31","Q1","2017-03-31","Region 4","Operating Expense","Administrative Expense","Administrative","12.3","Information Systems",{"$f":"IFERROR('MMA Rev-Exp Region 4'!$D$92/'MMA Rev-Exp Region 4'!$D$9, 0)","v":{"v":0,"d":"$0.00"}},{"$f":"IFERROR('MMA Rev-Exp Region 4'!$E$92/'MMA Rev-Exp Region 4'!$D$9, 0)","v":{"v":0,"d":"$0.00"}},{"$f":"IFERROR('MMA Rev-Exp Region 4'!$F$92/'MMA Rev-Exp Region 4'!$D$9, 0)","v":{"v":0,"d":"$0.00"}},{"$f":"IFERROR('MMA Rev-Exp Region 4'!$G$92/'MMA Rev-Exp Region 4'!$G$9, 0)","v":{"v":0,"d":"$0.00"}},{"$f":"IFERROR('MMA Rev-Exp Region 4'!$H$92/'MMA Rev-Exp Region 4'!$H$9, 0)","v":{"v":0,"d":"$0.00"}},{"$f":"IFERROR('MMA Rev-Exp Region 4'!$I$92/'MMA Rev-Exp Region 4'!$I$9, 0)","v":{"v":0,"d":"$0.00"}},{"$f":"IFERROR('MMA Rev-Exp Region 4'!$J$92/'MMA Rev-Exp Region 4'!$J$9, 0)","v":{"v":0,"d":"$0.00"}},{"$f":"IFERROR('MMA Rev-Exp Region 4'!$K$92/'MMA Rev-Exp Region 4'!$K$9, 0)","v":{"v":0,"d":"$0.00"}},{"$f":"IFERROR('MMA Rev-Exp Region 4'!$L$92/'MMA Rev-Exp Region 4'!$L$9, 0)","v":{"v":0,"d":"$0.00"}},{"$f":"IFERROR('MMA Rev-Exp Region 4'!$M$92/'MMA Rev-Exp Region 4'!$M$9, 0)","v":{"v":0,"d":"$0.00"}},{"$f":"IFERROR('MMA Rev-Exp Region 4'!$N$92/'MMA Rev-Exp Region 4'!$N$9, 0)","v":{"v":0,"d":"$0.00"}}]
["MMA",null,null,2016,"2016-12-31","Q1","2017-03-31","Region 4","Operating Expense","Administrative Expense","Administrative","12.4","Marketing Expenses",{"$f":"IFERROR('MMA Rev-Exp Region 4'!$D$93/'MMA Rev-Exp Region 4'!$D$9, 0)","v":{"v":0,"d":"$0.00"}},{"$f":"IFERROR('MMA Rev-Exp Region 4'!$E$93/'MMA Rev-Exp Region 4'!$D$9, 0)","v":{"v":0,"d":"$0.00"}},{"$f":"IFERROR('MMA Rev-Exp Region 4'!$F$93/'MMA Rev-Exp Region 4'!$D$9, 0)","v":{"v":0,"d":"$0.00"}},{"$f":"IFERROR('MMA Rev-Exp Region 4'!$G$93/'MMA Rev-Exp Region 4'!$G$9, 0)","v":{"v":0,"d":"$0.00"}},{"$f":"IFERROR('MMA Rev-Exp Region 4'!$H$93/'MMA Rev-Exp Region 4'!$H$9, 0)","v":{"v":0,"d":"$0.00"}},{"$f":"IFERROR('MMA Rev-Exp Region 4'!$I$93/'MMA Rev-Exp Region 4'!$I$9, 0)","v":{"v":0,"d":"$0.00"}},{"$f":"IFERROR('MMA Rev-Exp Region 4'!$J$93/'MMA Rev-Exp Region 4'!$J$9, 0)","v":{"v":0,"d":"$0.00"}},{"$f":"IFERROR('MMA Rev-Exp Region 4'!$K$93/'MMA Rev-Exp Region 4'!$K$9, 0)","v":{"v":0,"d":"$0.00"}},{"$f":"IFERROR('MMA Rev-Exp Region 4'!$L$93/'MMA Rev-Exp Region 4'!$L$9, 0)","v":{"v":0,"d":"$0.00"}},{"$f":"IFERROR('MMA Rev-Exp Region 4'!$M$93/'MMA Rev-Exp Region 4'!$M$9, 0)","v":{"v":0,"d":"$0.00"}},{"$f":"IFERROR('MMA Rev-Exp Region 4'!$N$93/'MMA Rev-Exp Region 4'!$N$9, 0)","v":{"v":0,"d":"$0.00"}}]
["MMA",null,null,2016,"2016-12-31","Q1","2017-03-31","Region 4","Operating Expense","Administrative Expense","Administrative","12.5","General  Administration",{"$f":"IFERROR('MMA Rev-Exp Region 4'!$D$94/'MMA Rev-Exp Region 4'!$D$9, 0)","v":{"v":0,"d":"$0.00"}},{"$f":"IFERROR('MMA Rev-Exp Region 4'!$E$94/'MMA Rev-Exp Region 4'!$D$9, 0)","v":{"v":0,"d":"$0.00"}},{"$f":"IFERROR('MMA Rev-Exp Region 4'!$F$94/'MMA Rev-Exp Region 4'!$D$9, 0)","v":{"v":0,"d":"$0.00"}},{"$f":"IFERROR('MMA Rev-Exp Region 4'!$G$94/'MMA Rev-Exp Region 4'!$G$9, 0)","v":{"v":0,"d":"$0.00"}},{"$f":"IFERROR('MMA Rev-Exp Region 4'!$H$94/'MMA Rev-Exp Region 4'!$H$9, 0)","v":{"v":0,"d":"$0.00"}},{"$f":"IFERROR('MMA Rev-Exp Region 4'!$I$94/'MMA Rev-Exp Region 4'!$I$9, 0)","v":{"v":0,"d":"$0.00"}},{"$f":"IFERROR('MMA Rev-Exp Region 4'!$J$94/'MMA Rev-Exp Region 4'!$J$9, 0)","v":{"v":0,"d":"$0.00"}},{"$f":"IFERROR('MMA Rev-Exp Region 4'!$K$94/'MMA Rev-Exp Region 4'!$K$9, 0)","v":{"v":0,"d":"$0.00"}},{"$f":"IFERROR('MMA Rev-Exp Region 4'!$L$94/'MMA Rev-Exp Region 4'!$L$9, 0)","v":{"v":0,"d":"$0.00"}},{"$f":"IFERROR('MMA Rev-Exp Region 4'!$M$94/'MMA Rev-Exp Region 4'!$M$9, 0)","v":{"v":0,"d":"$0.00"}},{"$f":"IFERROR('MMA Rev-Exp Region 4'!$N$94/'MMA Rev-Exp Region 4'!$N$9, 0)","v":{"v":0,"d":"$0.00"}}]
["MMA",null,null,2016,"2016-12-31","Q1","2017-03-31","Region 4","Operating Expense","Administrative Expense","Administrative","12.6","Compliance/Regulatory",{"$f":"IFERROR('MMA Rev-Exp Region 4'!$D$95/'MMA Rev-Exp Region 4'!$D$9, 0)","v":{"v":0,"d":"$0.00"}},{"$f":"IFERROR('MMA Rev-Exp Region 4'!$E$95/'MMA Rev-Exp Region 4'!$D$9, 0)","v":{"v":0,"d":"$0.00"}},{"$f":"IFERROR('MMA Rev-Exp Region 4'!$F$95/'MMA Rev-Exp Region 4'!$D$9, 0)","v":{"v":0,"d":"$0.00"}},{"$f":"IFERROR('MMA Rev-Exp Region 4'!$G$95/'MMA Rev-Exp Region 4'!$G$9, 0)","v":{"v":0,"d":"$0.00"}},{"$f":"IFERROR('MMA Rev-Exp Region 4'!$H$95/'MMA Rev-Exp Region 4'!$H$9, 0)","v":{"v":0,"d":"$0.00"}},{"$f":"IFERROR('MMA Rev-Exp Region 4'!$I$95/'MMA Rev-Exp Region 4'!$I$9, 0)","v":{"v":0,"d":"$0.00"}},{"$f":"IFERROR('MMA Rev-Exp Region 4'!$J$95/'MMA Rev-Exp Region 4'!$J$9, 0)","v":{"v":0,"d":"$0.00"}},{"$f":"IFERROR('MMA Rev-Exp Region 4'!$K$95/'MMA Rev-Exp Region 4'!$K$9, 0)","v":{"v":0,"d":"$0.00"}},{"$f":"IFERROR('MMA Rev-Exp Region 4'!$L$95/'MMA Rev-Exp Region 4'!$L$9, 0)","v":{"v":0,"d":"$0.00"}},{"$f":"IFERROR('MMA Rev-Exp Region 4'!$M$95/'MMA Rev-Exp Region 4'!$M$9, 0)","v":{"v":0,"d":"$0.00"}},{"$f":"IFERROR('MMA Rev-Exp Region 4'!$N$95/'MMA Rev-Exp Region 4'!$N$9, 0)","v":{"v":0,"d":"$0.00"}}]
["MMA",null,null,2016,"2016-12-31","Q1","2017-03-31","Region 4","Operating Expense","Taxes & Fees","Taxes & Fees","13.1","State Premium tax",{"$f":"IFERROR('MMA Rev-Exp Region 4'!$D$97/'MMA Rev-Exp Region 4'!$D$9, 0)","v":{"v":0,"d":"$0.00"}}]
["MMA",null,null,2016,"2016-12-31","Q1","2017-03-31","Region 4","Operating Expense","Taxes & Fees","Taxes & Fees","13.2","Department of Insurance Assessments",{"$f":"IFERROR('MMA Rev-Exp Region 4'!$D$98/'MMA Rev-Exp Region 4'!$D$9, 0)","v":{"v":0,"d":"$0.00"}}]
["MMA",null,null,2016,"2016-12-31","Q1","2017-03-31","Region 4","Operating Expense","Taxes & Fees","Taxes & Fees","13.3","Section 9010 Health Insurance Providers Fee",{"$f":"IFERROR('MMA Rev-Exp Region 4'!$D$99/'MMA Rev-Exp Region 4'!$D$9, 0)","v":{"v":0,"d":"$0.00"}}]
["MMA",null,null,2016,"2016-12-31","Q1","2017-03-31","Region 4","Non-Operating Expense","Income Tax Expense","Income Tax Expense","16.0","Income Tax Expense",{"$f":"IFERROR('MMA Rev-Exp Region 4'!$D$106/'MMA Rev-Exp Region 4'!$D$9, 0)","v":{"v":0,"d":"$0.00"}}]
["MMA",null,null,2016,"2016-12-31","Q2","2017-06-30","Region 4","Operating Revenue","Capitation","Capitation",1.1,"Capitation",{"$f":"IFERROR('MMA Rev-Exp Region 4'!$O$11/'MMA Rev-Exp Region 4'!$O$9, 0)","v":{"v":0,"d":"$0.00"}},{"$f":"IFERROR('MMA Rev-Exp Region 4'!$P$11/'MMA Rev-Exp Region 4'!$P$9, 0)","v":{"v":0,"d":"$0.00"}},{"$f":"IFERROR('MMA Rev-Exp Region 4'!$Q$11/'MMA Rev-Exp Region 4'!$Q$9, 0)","v":{"v":0,"d":"$0.00"}},{"$f":"IFERROR('MMA Rev-Exp Region 4'!$R$11/'MMA Rev-Exp Region 4'!$R$9, 0)","v":{"v":0,"d":"$0.00"}},{"$f":"IFERROR('MMA Rev-Exp Region 4'!$S$11/'MMA Rev-Exp Region 4'!$S$9, 0)","v":{"v":0,"d":"$0.00"}},{"$f":"IFERROR('MMA Rev-Exp Region 4'!$T$11/'MMA Rev-Exp Region 4'!$T$9, 0)","v":{"v":0,"d":"$0.00"}},{"$f":"IFERROR('MMA Rev-Exp Region 4'!$U$11/'MMA Rev-Exp Region 4'!$U$9, 0)","v":{"v":0,"d":"$0.00"}},{"$f":"IFERROR('MMA Rev-Exp Region 4'!$V$11/'MMA Rev-Exp Region 4'!$V$9, 0)","v":{"v":0,"d":"$0.00"}},{"$f":"IFERROR('MMA Rev-Exp Region 4'!$W$11/'MMA Rev-Exp Region 4'!$W$9, 0)","v":{"v":0,"d":"$0.00"}},{"$f":"IFERROR('MMA Rev-Exp Region 4'!$X$11/'MMA Rev-Exp Region 4'!$X$9, 0)","v":{"v":0,"d":"$0.00"}},{"$f":"IFERROR('MMA Rev-Exp Region 4'!$Y$11/'MMA Rev-Exp Region 4'!$Y$9, 0)","v":{"v":0,"d":"$0.00"}}]
["MMA",null,null,2016,"2016-12-31","Q2","2017-06-30","Region 4","Operating Revenue","Kick Payments","Kick Payments - Transplant",1.2,"Transplant Kick Payments",{"$f":"IFERROR('MMA Rev-Exp Region 4'!$O$12/'MMA Rev-Exp Region 4'!$O$9, 0)","v":{"v":0,"d":"$0.00"}},{"$f":"IFERROR('MMA Rev-Exp Region 4'!$P$12/'MMA Rev-Exp Region 4'!$P$9, 0)","v":{"v":0,"d":"$0.00"}},{"$f":"IFERROR('MMA Rev-Exp Region 4'!$Q$12/'MMA Rev-Exp Region 4'!$Q$9, 0)","v":{"v":0,"d":"$0.00"}},{"$f":"IFERROR('MMA Rev-Exp Region 4'!$R$12/'MMA Rev-Exp Region 4'!$R$9, 0)","v":{"v":0,"d":"$0.00"}},{"$f":"IFERROR('MMA Rev-Exp Region 4'!$S$12/'MMA Rev-Exp Region 4'!$S$9, 0)","v":{"v":0,"d":"$0.00"}},{"$f":"IFERROR('MMA Rev-Exp Region 4'!$T$12/'MMA Rev-Exp Region 4'!$T$9, 0)","v":{"v":0,"d":"$0.00"}},{"$f":"IFERROR('MMA Rev-Exp Region 4'!$U$12/'MMA Rev-Exp Region 4'!$U$9, 0)","v":{"v":0,"d":"$0.00"}},{"$f":"IFERROR('MMA Rev-Exp Region 4'!$V$12/'MMA Rev-Exp Region 4'!$V$9, 0)","v":{"v":0,"d":"$0.00"}},{"$f":"IFERROR('MMA Rev-Exp Region 4'!$W$12/'MMA Rev-Exp Region 4'!$W$9, 0)","v":{"v":0,"d":"$0.00"}},{"$f":"IFERROR('MMA Rev-Exp Region 4'!$X$12/'MMA Rev-Exp Region 4'!$X$9, 0)","v":{"v":0,"d":"$0.00"}},{"$f":"IFERROR('MMA Rev-Exp Region 4'!$Y$12/'MMA Rev-Exp Region 4'!$Y$9, 0)","v":{"v":0,"d":"$0.00"}}]
["MMA",null,null,2016,"2016-12-31","Q2","2017-06-30","Region 4","Operating Revenue","Kick Payments","Kick Payments - Hep C","1.3","Hepatitis C Kick Payments",{"$f":"IFERROR('MMA Rev-Exp Region 4'!$O$13/'MMA Rev-Exp Region 4'!$O$9, 0)","v":{"v":0,"d":"$0.00"}},{"$f":"IFERROR('MMA Rev-Exp Region 4'!$P$13/'MMA Rev-Exp Region 4'!$P$9, 0)","v":{"v":0,"d":"$0.00"}},{"$f":"IFERROR('MMA Rev-Exp Region 4'!$Q$13/'MMA Rev-Exp Region 4'!$Q$9, 0)","v":{"v":0,"d":"$0.00"}},{"$f":"IFERROR('MMA Rev-Exp Region 4'!$R$13/'MMA Rev-Exp Region 4'!$R$9, 0)","v":{"v":0,"d":"$0.00"}},{"$f":"IFERROR('MMA Rev-Exp Region 4'!$S$13/'MMA Rev-Exp Region 4'!$S$9, 0)","v":{"v":0,"d":"$0.00"}},{"$f":"IFERROR('MMA Rev-Exp Region 4'!$T$13/'MMA Rev-Exp Region 4'!$T$9, 0)","v":{"v":0,"d":"$0.00"}},{"$f":"IFERROR('MMA Rev-Exp Region 4'!$U$13/'MMA Rev-Exp Region 4'!$U$9, 0)","v":{"v":0,"d":"$0.00"}},{"$f":"IFERROR('MMA Rev-Exp Region 4'!$V$13/'MMA Rev-Exp Region 4'!$V$9, 0)","v":{"v":0,"d":"$0.00"}},{"$f":"IFERROR('MMA Rev-Exp Region 4'!$W$13/'MMA Rev-Exp Region 4'!$W$9, 0)","v":{"v":0,"d":"$0.00"}},{"$f":"IFERROR('MMA Rev-Exp Region 4'!$X$13/'MMA Rev-Exp Region 4'!$X$9, 0)","v":{"v":0,"d":"$0.00"}},{"$f":"IFERROR('MMA Rev-Exp Region 4'!$Y$13/'MMA Rev-Exp Region 4'!$Y$9, 0)","v":{"v":0,"d":"$0.00"}}]
["MMA",null,null,2016,"2016-12-31","Q2","2017-06-30","Region 4","Operating Revenue","Kick Payments","Kick Payments - Maternity","1.4.1","Maternity Kick Payments",{"$f":"IFERROR('MMA Rev-Exp Region 4'!$O$14/'MMA Rev-Exp Region 4'!$O$9, 0)","v":{"v":0,"d":"$0.00"}},{"$f":"IFERROR('MMA Rev-Exp Region 4'!$P$14/'MMA Rev-Exp Region 4'!$P$9, 0)","v":{"v":0,"d":"$0.00"}},{"$f":"IFERROR('MMA Rev-Exp Region 4'!$Q$14/'MMA Rev-Exp Region 4'!$Q$9, 0)","v":{"v":0,"d":"$0.00"}},{"$f":"IFERROR('MMA Rev-Exp Region 4'!$R$14/'MMA Rev-Exp Region 4'!$R$9, 0)","v":{"v":0,"d":"$0.00"}},{"$f":"IFERROR('MMA Rev-Exp Region 4'!$S$14/'MMA Rev-Exp Region 4'!$S$9, 0)","v":{"v":0,"d":"$0.00"}},{"$f":"IFERROR('MMA Rev-Exp Region 4'!$T$14/'MMA Rev-Exp Region 4'!$T$9, 0)","v":{"v":0,"d":"$0.00"}},{"$f":"IFERROR('MMA Rev-Exp Region 4'!$U$14/'MMA Rev-Exp Region 4'!$U$9, 0)","v":{"v":0,"d":"$0.00"}},{"$f":"IFERROR('MMA Rev-Exp Region 4'!$V$14/'MMA Rev-Exp Region 4'!$V$9, 0)","v":{"v":0,"d":"$0.00"}},{"$f":"IFERROR('MMA Rev-Exp Region 4'!$W$14/'MMA Rev-Exp Region 4'!$W$9, 0)","v":{"v":0,"d":"$0.00"}},{"$f":"IFERROR('MMA Rev-Exp Region 4'!$X$14/'MMA Rev-Exp Region 4'!$X$9, 0)","v":{"v":0,"d":"$0.00"}},{"$f":"IFERROR('MMA Rev-Exp Region 4'!$Y$14/'MMA Rev-Exp Region 4'!$Y$9, 0)","v":{"v":0,"d":"$0.00"}}]
["MMA",null,null,2016,"2016-12-31","Q2","2017-06-30","Region 4","Operating Revenue","Other Revenue","Other Revenue - 9010","1.5","ACA § 9010 related payments",{"$f":"IFERROR('MMA Rev-Exp Region 4'!$O$15/'MMA Rev-Exp Region 4'!$O$9, 0)","v":{"v":0,"d":"$0.00"}},{"$f":"IFERROR('MMA Rev-Exp Region 4'!$P$15/'MMA Rev-Exp Region 4'!$P$9, 0)","v":{"v":0,"d":"$0.00"}},{"$f":"IFERROR('MMA Rev-Exp Region 4'!$Q$15/'MMA Rev-Exp Region 4'!$Q$9, 0)","v":{"v":0,"d":"$0.00"}},{"$f":"IFERROR('MMA Rev-Exp Region 4'!$R$15/'MMA Rev-Exp Region 4'!$R$9, 0)","v":{"v":0,"d":"$0.00"}},{"$f":"IFERROR('MMA Rev-Exp Region 4'!$S$15/'MMA Rev-Exp Region 4'!$S$9, 0)","v":{"v":0,"d":"$0.00"}},{"$f":"IFERROR('MMA Rev-Exp Region 4'!$T$15/'MMA Rev-Exp Region 4'!$T$9, 0)","v":{"v":0,"d":"$0.00"}},{"$f":"IFERROR('MMA Rev-Exp Region 4'!$U$15/'MMA Rev-Exp Region 4'!$U$9, 0)","v":{"v":0,"d":"$0.00"}},{"$f":"IFERROR('MMA Rev-Exp Region 4'!$V$15/'MMA Rev-Exp Region 4'!$V$9, 0)","v":{"v":0,"d":"$0.00"}},{"$f":"IFERROR('MMA Rev-Exp Region 4'!$W$15/'MMA Rev-Exp Region 4'!$W$9, 0)","v":{"v":0,"d":"$0.00"}},{"$f":"IFERROR('MMA Rev-Exp Region 4'!$X$15/'MMA Rev-Exp Region 4'!$X$9, 0)","v":{"v":0,"d":"$0.00"}},{"$f":"IFERROR('MMA Rev-Exp Region 4'!$Y$15/'MMA Rev-Exp Region 4'!$Y$9, 0)","v":{"v":0,"d":"$0.00"}}]
["MMA",null,null,2016,"2016-12-31","Q2","2017-06-30","Region 4","Operating Revenue","Other Revenue","Other Revenue","1.6","Other Revenue",{"$f":"IFERROR('MMA Rev-Exp Region 4'!$O$16/'MMA Rev-Exp Region 4'!$O$9, 0)","v":{"v":0,"d":"$0.00"}},{"$f":"IFERROR('MMA Rev-Exp Region 4'!$P$16/'MMA Rev-Exp Region 4'!$P$9, 0)","v":{"v":0,"d":"$0.00"}},{"$f":"IFERROR('MMA Rev-Exp Region 4'!$Q$16/'MMA Rev-Exp Region 4'!$Q$9, 0)","v":{"v":0,"d":"$0.00"}},{"$f":"IFERROR('MMA Rev-Exp Region 4'!$R$16/'MMA Rev-Exp Region 4'!$R$9, 0)","v":{"v":0,"d":"$0.00"}},{"$f":"IFERROR('MMA Rev-Exp Region 4'!$S$16/'MMA Rev-Exp Region 4'!$S$9, 0)","v":{"v":0,"d":"$0.00"}},{"$f":"IFERROR('MMA Rev-Exp Region 4'!$T$16/'MMA Rev-Exp Region 4'!$T$9, 0)","v":{"v":0,"d":"$0.00"}},{"$f":"IFERROR('MMA Rev-Exp Region 4'!$U$16/'MMA Rev-Exp Region 4'!$U$9, 0)","v":{"v":0,"d":"$0.00"}},{"$f":"IFERROR('MMA Rev-Exp Region 4'!$V$16/'MMA Rev-Exp Region 4'!$V$9, 0)","v":{"v":0,"d":"$0.00"}},{"$f":"IFERROR('MMA Rev-Exp Region 4'!$W$16/'MMA Rev-Exp Region 4'!$W$9, 0)","v":{"v":0,"d":"$0.00"}},{"$f":"IFERROR('MMA Rev-Exp Region 4'!$X$16/'MMA Rev-Exp Region 4'!$X$9, 0)","v":{"v":0,"d":"$0.00"}},{"$f":"IFERROR('MMA Rev-Exp Region 4'!$Y$16/'MMA Rev-Exp Region 4'!$Y$9, 0)","v":{"v":0,"d":"$0.00"}}]
["MMA",null,null,2016,"2016-12-31","Q2","2017-06-30","Region 4","Operating Expense","Medical Benefits Expense","Hospital Services",2.1,"Inpatient FFS",{"$f":"IFERROR('MMA Rev-Exp Region 4'!$O$20/'MMA Rev-Exp Region 4'!$O$9, 0)","v":{"v":0,"d":"$0.00"}},{"$f":"IFERROR('MMA Rev-Exp Region 4'!$P$20/'MMA Rev-Exp Region 4'!$P$9, 0)","v":{"v":0,"d":"$0.00"}},{"$f":"IFERROR('MMA Rev-Exp Region 4'!$Q$20/'MMA Rev-Exp Region 4'!$Q$9, 0)","v":{"v":0,"d":"$0.00"}},{"$f":"IFERROR('MMA Rev-Exp Region 4'!$R$20/'MMA Rev-Exp Region 4'!$R$9, 0)","v":{"v":0,"d":"$0.00"}},{"$f":"IFERROR('MMA Rev-Exp Region 4'!$S$20/'MMA Rev-Exp Region 4'!$S$9, 0)","v":{"v":0,"d":"$0.00"}},{"$f":"IFERROR('MMA Rev-Exp Region 4'!$T$20/'MMA Rev-Exp Region 4'!$T$9, 0)","v":{"v":0,"d":"$0.00"}},{"$f":"IFERROR('MMA Rev-Exp Region 4'!$U$20/'MMA Rev-Exp Region 4'!$U$9, 0)","v":{"v":0,"d":"$0.00"}},{"$f":"IFERROR('MMA Rev-Exp Region 4'!$V$20/'MMA Rev-Exp Region 4'!$V$9, 0)","v":{"v":0,"d":"$0.00"}},{"$f":"IFERROR('MMA Rev-Exp Region 4'!$W$20/'MMA Rev-Exp Region 4'!$W$9, 0)","v":{"v":0,"d":"$0.00"}},{"$f":"IFERROR('MMA Rev-Exp Region 4'!$X$20/'MMA Rev-Exp Region 4'!$X$9, 0)","v":{"v":0,"d":"$0.00"}},{"$f":"IFERROR('MMA Rev-Exp Region 4'!$Y$20/'MMA Rev-Exp Region 4'!$Y$9, 0)","v":{"v":0,"d":"$0.00"}}]
["MMA",null,null,2016,"2016-12-31","Q2","2017-06-30","Region 4","Operating Expense","Medical Benefits Expense","Hospital Services",2.2,"Ending IBNP for Inpatient Hospital Services",{"$f":"IFERROR('MMA Rev-Exp Region 4'!$O$21/'MMA Rev-Exp Region 4'!$O$9, 0)","v":{"v":0,"d":"$0.00"}},{"$f":"IFERROR('MMA Rev-Exp Region 4'!$P$21/'MMA Rev-Exp Region 4'!$P$9, 0)","v":{"v":0,"d":"$0.00"}},{"$f":"IFERROR('MMA Rev-Exp Region 4'!$Q$21/'MMA Rev-Exp Region 4'!$Q$9, 0)","v":{"v":0,"d":"$0.00"}},{"$f":"IFERROR('MMA Rev-Exp Region 4'!$R$21/'MMA Rev-Exp Region 4'!$R$9, 0)","v":{"v":0,"d":"$0.00"}},{"$f":"IFERROR('MMA Rev-Exp Region 4'!$S$21/'MMA Rev-Exp Region 4'!$S$9, 0)","v":{"v":0,"d":"$0.00"}},{"$f":"IFERROR('MMA Rev-Exp Region 4'!$T$21/'MMA Rev-Exp Region 4'!$T$9, 0)","v":{"v":0,"d":"$0.00"}},{"$f":"IFERROR('MMA Rev-Exp Region 4'!$U$21/'MMA Rev-Exp Region 4'!$U$9, 0)","v":{"v":0,"d":"$0.00"}},{"$f":"IFERROR('MMA Rev-Exp Region 4'!$V$21/'MMA Rev-Exp Region 4'!$V$9, 0)","v":{"v":0,"d":"$0.00"}},{"$f":"IFERROR('MMA Rev-Exp Region 4'!$W$21/'MMA Rev-Exp Region 4'!$W$9, 0)","v":{"v":0,"d":"$0.00"}},{"$f":"IFERROR('MMA Rev-Exp Region 4'!$X$21/'MMA Rev-Exp Region 4'!$X$9, 0)","v":{"v":0,"d":"$0.00"}},{"$f":"IFERROR('MMA Rev-Exp Region 4'!$Y$21/'MMA Rev-Exp Region 4'!$Y$9, 0)","v":{"v":0,"d":"$0.00"}}]
["MMA",null,null,2016,"2016-12-31","Q2","2017-06-30","Region 4","Operating Expense","Medical Benefits Expense","Hospital Services",2.3,"Outpatient FFS: ER",{"$f":"IFERROR('MMA Rev-Exp Region 4'!$O$22/'MMA Rev-Exp Region 4'!$O$9, 0)","v":{"v":0,"d":"$0.00"}},{"$f":"IFERROR('MMA Rev-Exp Region 4'!$P$22/'MMA Rev-Exp Region 4'!$P$9, 0)","v":{"v":0,"d":"$0.00"}},{"$f":"IFERROR('MMA Rev-Exp Region 4'!$Q$22/'MMA Rev-Exp Region 4'!$Q$9, 0)","v":{"v":0,"d":"$0.00"}},{"$f":"IFERROR('MMA Rev-Exp Region 4'!$R$22/'MMA Rev-Exp Region 4'!$R$9, 0)","v":{"v":0,"d":"$0.00"}},{"$f":"IFERROR('MMA Rev-Exp Region 4'!$S$22/'MMA Rev-Exp Region 4'!$S$9, 0)","v":{"v":0,"d":"$0.00"}},{"$f":"IFERROR('MMA Rev-Exp Region 4'!$T$22/'MMA Rev-Exp Region 4'!$T$9, 0)","v":{"v":0,"d":"$0.00"}},{"$f":"IFERROR('MMA Rev-Exp Region 4'!$U$22/'MMA Rev-Exp Region 4'!$U$9, 0)","v":{"v":0,"d":"$0.00"}},{"$f":"IFERROR('MMA Rev-Exp Region 4'!$V$22/'MMA Rev-Exp Region 4'!$V$9, 0)","v":{"v":0,"d":"$0.00"}},{"$f":"IFERROR('MMA Rev-Exp Region 4'!$W$22/'MMA Rev-Exp Region 4'!$W$9, 0)","v":{"v":0,"d":"$0.00"}},{"$f":"IFERROR('MMA Rev-Exp Region 4'!$X$22/'MMA Rev-Exp Region 4'!$X$9, 0)","v":{"v":0,"d":"$0.00"}},{"$f":"IFERROR('MMA Rev-Exp Region 4'!$Y$22/'MMA Rev-Exp Region 4'!$Y$9, 0)","v":{"v":0,"d":"$0.00"}}]
["MMA",null,null,2016,"2016-12-31","Q2","2017-06-30","Region 4","Operating Expense","Medical Benefits Expense","Hospital Services",2.4,"Outpatient FFS: Other than ER ",{"$f":"IFERROR('MMA Rev-Exp Region 4'!$O$23/'MMA Rev-Exp Region 4'!$O$9, 0)","v":{"v":0,"d":"$0.00"}},{"$f":"IFERROR('MMA Rev-Exp Region 4'!$P$23/'MMA Rev-Exp Region 4'!$P$9, 0)","v":{"v":0,"d":"$0.00"}},{"$f":"IFERROR('MMA Rev-Exp Region 4'!$Q$23/'MMA Rev-Exp Region 4'!$Q$9, 0)","v":{"v":0,"d":"$0.00"}},{"$f":"IFERROR('MMA Rev-Exp Region 4'!$R$23/'MMA Rev-Exp Region 4'!$R$9, 0)","v":{"v":0,"d":"$0.00"}},{"$f":"IFERROR('MMA Rev-Exp Region 4'!$S$23/'MMA Rev-Exp Region 4'!$S$9, 0)","v":{"v":0,"d":"$0.00"}},{"$f":"IFERROR('MMA Rev-Exp Region 4'!$T$23/'MMA Rev-Exp Region 4'!$T$9, 0)","v":{"v":0,"d":"$0.00"}},{"$f":"IFERROR('MMA Rev-Exp Region 4'!$U$23/'MMA Rev-Exp Region 4'!$U$9, 0)","v":{"v":0,"d":"$0.00"}},{"$f":"IFERROR('MMA Rev-Exp Region 4'!$V$23/'MMA Rev-Exp Region 4'!$V$9, 0)","v":{"v":0,"d":"$0.00"}},{"$f":"IFERROR('MMA Rev-Exp Region 4'!$W$23/'MMA Rev-Exp Region 4'!$W$9, 0)","v":{"v":0,"d":"$0.00"}},{"$f":"IFERROR('MMA Rev-Exp Region 4'!$X$23/'MMA Rev-Exp Region 4'!$X$9, 0)","v":{"v":0,"d":"$0.00"}},{"$f":"IFERROR('MMA Rev-Exp Region 4'!$Y$23/'MMA Rev-Exp Region 4'!$Y$9, 0)","v":{"v":0,"d":"$0.00"}}]
["MMA",null,null,2016,"2016-12-31","Q2","2017-06-30","Region 4","Operating Expense","Medical Benefits Expense","Hospital Services",2.5,"Ending IBNP for Outpatient Hospital Services",{"$f":"IFERROR('MMA Rev-Exp Region 4'!$O$24/'MMA Rev-Exp Region 4'!$O$9, 0)","v":{"v":0,"d":"$0.00"}},{"$f":"IFERROR('MMA Rev-Exp Region 4'!$P$24/'MMA Rev-Exp Region 4'!$P$9, 0)","v":{"v":0,"d":"$0.00"}},{"$f":"IFERROR('MMA Rev-Exp Region 4'!$Q$24/'MMA Rev-Exp Region 4'!$Q$9, 0)","v":{"v":0,"d":"$0.00"}},{"$f":"IFERROR('MMA Rev-Exp Region 4'!$R$24/'MMA Rev-Exp Region 4'!$R$9, 0)","v":{"v":0,"d":"$0.00"}},{"$f":"IFERROR('MMA Rev-Exp Region 4'!$S$24/'MMA Rev-Exp Region 4'!$S$9, 0)","v":{"v":0,"d":"$0.00"}},{"$f":"IFERROR('MMA Rev-Exp Region 4'!$T$24/'MMA Rev-Exp Region 4'!$T$9, 0)","v":{"v":0,"d":"$0.00"}},{"$f":"IFERROR('MMA Rev-Exp Region 4'!$U$24/'MMA Rev-Exp Region 4'!$U$9, 0)","v":{"v":0,"d":"$0.00"}},{"$f":"IFERROR('MMA Rev-Exp Region 4'!$V$24/'MMA Rev-Exp Region 4'!$V$9, 0)","v":{"v":0,"d":"$0.00"}},{"$f":"IFERROR('MMA Rev-Exp Region 4'!$W$24/'MMA Rev-Exp Region 4'!$W$9, 0)","v":{"v":0,"d":"$0.00"}},{"$f":"IFERROR('MMA Rev-Exp Region 4'!$X$24/'MMA Rev-Exp Region 4'!$X$9, 0)","v":{"v":0,"d":"$0.00"}},{"$f":"IFERROR('MMA Rev-Exp Region 4'!$Y$24/'MMA Rev-Exp Region 4'!$Y$9, 0)","v":{"v":0,"d":"$0.00"}}]
["MMA",null,null,2016,"2016-12-31","Q2","2017-06-30","Region 4","Operating Expense","Medical Benefits Expense","Hospital Services","2.6","Subcapitated Hospital Services",{"$f":"IFERROR('MMA Rev-Exp Region 4'!$O$25/'MMA Rev-Exp Region 4'!$O$9, 0)","v":{"v":0,"d":"$0.00"}},{"$f":"IFERROR('MMA Rev-Exp Region 4'!$P$25/'MMA Rev-Exp Region 4'!$P$9, 0)","v":{"v":0,"d":"$0.00"}},{"$f":"IFERROR('MMA Rev-Exp Region 4'!$Q$25/'MMA Rev-Exp Region 4'!$Q$9, 0)","v":{"v":0,"d":"$0.00"}},{"$f":"IFERROR('MMA Rev-Exp Region 4'!$R$25/'MMA Rev-Exp Region 4'!$R$9, 0)","v":{"v":0,"d":"$0.00"}},{"$f":"IFERROR('MMA Rev-Exp Region 4'!$S$25/'MMA Rev-Exp Region 4'!$S$9, 0)","v":{"v":0,"d":"$0.00"}},{"$f":"IFERROR('MMA Rev-Exp Region 4'!$T$25/'MMA Rev-Exp Region 4'!$T$9, 0)","v":{"v":0,"d":"$0.00"}},{"$f":"IFERROR('MMA Rev-Exp Region 4'!$U$25/'MMA Rev-Exp Region 4'!$U$9, 0)","v":{"v":0,"d":"$0.00"}},{"$f":"IFERROR('MMA Rev-Exp Region 4'!$V$25/'MMA Rev-Exp Region 4'!$V$9, 0)","v":{"v":0,"d":"$0.00"}},{"$f":"IFERROR('MMA Rev-Exp Region 4'!$W$25/'MMA Rev-Exp Region 4'!$W$9, 0)","v":{"v":0,"d":"$0.00"}},{"$f":"IFERROR('MMA Rev-Exp Region 4'!$X$25/'MMA Rev-Exp Region 4'!$X$9, 0)","v":{"v":0,"d":"$0.00"}},{"$f":"IFERROR('MMA Rev-Exp Region 4'!$Y$25/'MMA Rev-Exp Region 4'!$Y$9, 0)","v":{"v":0,"d":"$0.00"}}]
["MMA",null,null,2016,"2016-12-31","Q2","2017-06-30","Region 4","Operating Expense","Medical Benefits Expense","Hospital Services","2.7","Hospital Settlements",{"$f":"IFERROR('MMA Rev-Exp Region 4'!$O$26/'MMA Rev-Exp Region 4'!$O$9, 0)","v":{"v":0,"d":"$0.00"}},{"$f":"IFERROR('MMA Rev-Exp Region 4'!$P$26/'MMA Rev-Exp Region 4'!$P$9, 0)","v":{"v":0,"d":"$0.00"}},{"$f":"IFERROR('MMA Rev-Exp Region 4'!$Q$26/'MMA Rev-Exp Region 4'!$Q$9, 0)","v":{"v":0,"d":"$0.00"}},{"$f":"IFERROR('MMA Rev-Exp Region 4'!$R$26/'MMA Rev-Exp Region 4'!$R$9, 0)","v":{"v":0,"d":"$0.00"}},{"$f":"IFERROR('MMA Rev-Exp Region 4'!$S$26/'MMA Rev-Exp Region 4'!$S$9, 0)","v":{"v":0,"d":"$0.00"}},{"$f":"IFERROR('MMA Rev-Exp Region 4'!$T$26/'MMA Rev-Exp Region 4'!$T$9, 0)","v":{"v":0,"d":"$0.00"}},{"$f":"IFERROR('MMA Rev-Exp Region 4'!$U$26/'MMA Rev-Exp Region 4'!$U$9, 0)","v":{"v":0,"d":"$0.00"}},{"$f":"IFERROR('MMA Rev-Exp Region 4'!$V$26/'MMA Rev-Exp Region 4'!$V$9, 0)","v":{"v":0,"d":"$0.00"}},{"$f":"IFERROR('MMA Rev-Exp Region 4'!$W$26/'MMA Rev-Exp Region 4'!$W$9, 0)","v":{"v":0,"d":"$0.00"}},{"$f":"IFERROR('MMA Rev-Exp Region 4'!$X$26/'MMA Rev-Exp Region 4'!$X$9, 0)","v":{"v":0,"d":"$0.00"}},{"$f":"IFERROR('MMA Rev-Exp Region 4'!$Y$26/'MMA Rev-Exp Region 4'!$Y$9, 0)","v":{"v":0,"d":"$0.00"}}]
["MMA",null,null,2016,"2016-12-31","Q2","2017-06-30","Region 4","Operating Expense","Medical Benefits Expense","Hospital Services","2.7.1","Transplant Services",{"$f":"IFERROR('MMA Rev-Exp Region 4'!$O$27/'MMA Rev-Exp Region 4'!$O$9, 0)","v":{"v":0,"d":"$0.00"}},{"$f":"IFERROR('MMA Rev-Exp Region 4'!$P$27/'MMA Rev-Exp Region 4'!$P$9, 0)","v":{"v":0,"d":"$0.00"}},{"$f":"IFERROR('MMA Rev-Exp Region 4'!$Q$27/'MMA Rev-Exp Region 4'!$Q$9, 0)","v":{"v":0,"d":"$0.00"}},{"$f":"IFERROR('MMA Rev-Exp Region 4'!$R$27/'MMA Rev-Exp Region 4'!$R$9, 0)","v":{"v":0,"d":"$0.00"}},{"$f":"IFERROR('MMA Rev-Exp Region 4'!$S$27/'MMA Rev-Exp Region 4'!$S$9, 0)","v":{"v":0,"d":"$0.00"}},{"$f":"IFERROR('MMA Rev-Exp Region 4'!$T$27/'MMA Rev-Exp Region 4'!$T$9, 0)","v":{"v":0,"d":"$0.00"}},{"$f":"IFERROR('MMA Rev-Exp Region 4'!$U$27/'MMA Rev-Exp Region 4'!$U$9, 0)","v":{"v":0,"d":"$0.00"}},{"$f":"IFERROR('MMA Rev-Exp Region 4'!$V$27/'MMA Rev-Exp Region 4'!$V$9, 0)","v":{"v":0,"d":"$0.00"}},{"$f":"IFERROR('MMA Rev-Exp Region 4'!$W$27/'MMA Rev-Exp Region 4'!$W$9, 0)","v":{"v":0,"d":"$0.00"}},{"$f":"IFERROR('MMA Rev-Exp Region 4'!$X$27/'MMA Rev-Exp Region 4'!$X$9, 0)","v":{"v":0,"d":"$0.00"}},{"$f":"IFERROR('MMA Rev-Exp Region 4'!$Y$27/'MMA Rev-Exp Region 4'!$Y$9, 0)","v":{"v":0,"d":"$0.00"}}]
["MMA",null,null,2016,"2016-12-31","Q2","2017-06-30","Region 4","Operating Expense","Medical Benefits Expense","Professional Services",3.1,"Primary Care FFS",{"$f":"IFERROR('MMA Rev-Exp Region 4'!$O$29/'MMA Rev-Exp Region 4'!$O$9, 0)","v":{"v":0,"d":"$0.00"}},{"$f":"IFERROR('MMA Rev-Exp Region 4'!$P$29/'MMA Rev-Exp Region 4'!$P$9, 0)","v":{"v":0,"d":"$0.00"}},{"$f":"IFERROR('MMA Rev-Exp Region 4'!$Q$29/'MMA Rev-Exp Region 4'!$Q$9, 0)","v":{"v":0,"d":"$0.00"}},{"$f":"IFERROR('MMA Rev-Exp Region 4'!$R$29/'MMA Rev-Exp Region 4'!$R$9, 0)","v":{"v":0,"d":"$0.00"}},{"$f":"IFERROR('MMA Rev-Exp Region 4'!$S$29/'MMA Rev-Exp Region 4'!$S$9, 0)","v":{"v":0,"d":"$0.00"}},{"$f":"IFERROR('MMA Rev-Exp Region 4'!$T$29/'MMA Rev-Exp Region 4'!$T$9, 0)","v":{"v":0,"d":"$0.00"}},{"$f":"IFERROR('MMA Rev-Exp Region 4'!$U$29/'MMA Rev-Exp Region 4'!$U$9, 0)","v":{"v":0,"d":"$0.00"}},{"$f":"IFERROR('MMA Rev-Exp Region 4'!$V$29/'MMA Rev-Exp Region 4'!$V$9, 0)","v":{"v":0,"d":"$0.00"}},{"$f":"IFERROR('MMA Rev-Exp Region 4'!$W$29/'MMA Rev-Exp Region 4'!$W$9, 0)","v":{"v":0,"d":"$0.00"}},{"$f":"IFERROR('MMA Rev-Exp Region 4'!$X$29/'MMA Rev-Exp Region 4'!$X$9, 0)","v":{"v":0,"d":"$0.00"}},{"$f":"IFERROR('MMA Rev-Exp Region 4'!$Y$29/'MMA Rev-Exp Region 4'!$Y$9, 0)","v":{"v":0,"d":"$0.00"}}]
["MMA",null,null,2016,"2016-12-31","Q2","2017-06-30","Region 4","Operating Expense","Medical Benefits Expense","Professional Services",3.2,"Specialty Care FFS",{"$f":"IFERROR('MMA Rev-Exp Region 4'!$O$30/'MMA Rev-Exp Region 4'!$O$9, 0)","v":{"v":0,"d":"$0.00"}},{"$f":"IFERROR('MMA Rev-Exp Region 4'!$P$30/'MMA Rev-Exp Region 4'!$P$9, 0)","v":{"v":0,"d":"$0.00"}},{"$f":"IFERROR('MMA Rev-Exp Region 4'!$Q$30/'MMA Rev-Exp Region 4'!$Q$9, 0)","v":{"v":0,"d":"$0.00"}},{"$f":"IFERROR('MMA Rev-Exp Region 4'!$R$30/'MMA Rev-Exp Region 4'!$R$9, 0)","v":{"v":0,"d":"$0.00"}},{"$f":"IFERROR('MMA Rev-Exp Region 4'!$S$30/'MMA Rev-Exp Region 4'!$S$9, 0)","v":{"v":0,"d":"$0.00"}},{"$f":"IFERROR('MMA Rev-Exp Region 4'!$T$30/'MMA Rev-Exp Region 4'!$T$9, 0)","v":{"v":0,"d":"$0.00"}},{"$f":"IFERROR('MMA Rev-Exp Region 4'!$U$30/'MMA Rev-Exp Region 4'!$U$9, 0)","v":{"v":0,"d":"$0.00"}},{"$f":"IFERROR('MMA Rev-Exp Region 4'!$V$30/'MMA Rev-Exp Region 4'!$V$9, 0)","v":{"v":0,"d":"$0.00"}},{"$f":"IFERROR('MMA Rev-Exp Region 4'!$W$30/'MMA Rev-Exp Region 4'!$W$9, 0)","v":{"v":0,"d":"$0.00"}},{"$f":"IFERROR('MMA Rev-Exp Region 4'!$X$30/'MMA Rev-Exp Region 4'!$X$9, 0)","v":{"v":0,"d":"$0.00"}},{"$f":"IFERROR('MMA Rev-Exp Region 4'!$Y$30/'MMA Rev-Exp Region 4'!$Y$9, 0)","v":{"v":0,"d":"$0.00"}}]
["MMA",null,null,2016,"2016-12-31","Q2","2017-06-30","Region 4","Operating Expense","Medical Benefits Expense","Professional Services",3.3,"Other Professional FFS",{"$f":"IFERROR('MMA Rev-Exp Region 4'!$O$31/'MMA Rev-Exp Region 4'!$O$9, 0)","v":{"v":0,"d":"$0.00"}},{"$f":"IFERROR('MMA Rev-Exp Region 4'!$P$31/'MMA Rev-Exp Region 4'!$P$9, 0)","v":{"v":0,"d":"$0.00"}},{"$f":"IFERROR('MMA Rev-Exp Region 4'!$Q$31/'MMA Rev-Exp Region 4'!$Q$9, 0)","v":{"v":0,"d":"$0.00"}},{"$f":"IFERROR('MMA Rev-Exp Region 4'!$R$31/'MMA Rev-Exp Region 4'!$R$9, 0)","v":{"v":0,"d":"$0.00"}},{"$f":"IFERROR('MMA Rev-Exp Region 4'!$S$31/'MMA Rev-Exp Region 4'!$S$9, 0)","v":{"v":0,"d":"$0.00"}},{"$f":"IFERROR('MMA Rev-Exp Region 4'!$T$31/'MMA Rev-Exp Region 4'!$T$9, 0)","v":{"v":0,"d":"$0.00"}},{"$f":"IFERROR('MMA Rev-Exp Region 4'!$U$31/'MMA Rev-Exp Region 4'!$U$9, 0)","v":{"v":0,"d":"$0.00"}},{"$f":"IFERROR('MMA Rev-Exp Region 4'!$V$31/'MMA Rev-Exp Region 4'!$V$9, 0)","v":{"v":0,"d":"$0.00"}},{"$f":"IFERROR('MMA Rev-Exp Region 4'!$W$31/'MMA Rev-Exp Region 4'!$W$9, 0)","v":{"v":0,"d":"$0.00"}},{"$f":"IFERROR('MMA Rev-Exp Region 4'!$X$31/'MMA Rev-Exp Region 4'!$X$9, 0)","v":{"v":0,"d":"$0.00"}},{"$f":"IFERROR('MMA Rev-Exp Region 4'!$Y$31/'MMA Rev-Exp Region 4'!$Y$9, 0)","v":{"v":0,"d":"$0.00"}}]
["MMA",null,null,2016,"2016-12-31","Q2","2017-06-30","Region 4","Operating Expense","Medical Benefits Expense","Professional Services","3.4","§ 1202 PCP Payments to providers",{"$f":"IFERROR('MMA Rev-Exp Region 4'!$O$32/'MMA Rev-Exp Region 4'!$O$9, 0)","v":{"v":0,"d":"$0.00"}},{"$f":"IFERROR('MMA Rev-Exp Region 4'!$P$32/'MMA Rev-Exp Region 4'!$P$9, 0)","v":{"v":0,"d":"$0.00"}},{"$f":"IFERROR('MMA Rev-Exp Region 4'!$Q$32/'MMA Rev-Exp Region 4'!$Q$9, 0)","v":{"v":0,"d":"$0.00"}},{"$f":"IFERROR('MMA Rev-Exp Region 4'!$R$32/'MMA Rev-Exp Region 4'!$R$9, 0)","v":{"v":0,"d":"$0.00"}},{"$f":"IFERROR('MMA Rev-Exp Region 4'!$S$32/'MMA Rev-Exp Region 4'!$S$9, 0)","v":{"v":0,"d":"$0.00"}},{"$f":"IFERROR('MMA Rev-Exp Region 4'!$T$32/'MMA Rev-Exp Region 4'!$T$9, 0)","v":{"v":0,"d":"$0.00"}},{"$f":"IFERROR('MMA Rev-Exp Region 4'!$U$32/'MMA Rev-Exp Region 4'!$U$9, 0)","v":{"v":0,"d":"$0.00"}},{"$f":"IFERROR('MMA Rev-Exp Region 4'!$V$32/'MMA Rev-Exp Region 4'!$V$9, 0)","v":{"v":0,"d":"$0.00"}},{"$f":"IFERROR('MMA Rev-Exp Region 4'!$W$32/'MMA Rev-Exp Region 4'!$W$9, 0)","v":{"v":0,"d":"$0.00"}},{"$f":"IFERROR('MMA Rev-Exp Region 4'!$X$32/'MMA Rev-Exp Region 4'!$X$9, 0)","v":{"v":0,"d":"$0.00"}},{"$f":"IFERROR('MMA Rev-Exp Region 4'!$Y$32/'MMA Rev-Exp Region 4'!$Y$9, 0)","v":{"v":0,"d":"$0.00"}}]
["MMA",null,null,2016,"2016-12-31","Q2","2017-06-30","Region 4","Operating Expense","Medical Benefits Expense","Professional Services","3.5","Subcapitated Professional Services",{"$f":"IFERROR('MMA Rev-Exp Region 4'!$O$33/'MMA Rev-Exp Region 4'!$O$9, 0)","v":{"v":0,"d":"$0.00"}},{"$f":"IFERROR('MMA Rev-Exp Region 4'!$P$33/'MMA Rev-Exp Region 4'!$P$9, 0)","v":{"v":0,"d":"$0.00"}},{"$f":"IFERROR('MMA Rev-Exp Region 4'!$Q$33/'MMA Rev-Exp Region 4'!$Q$9, 0)","v":{"v":0,"d":"$0.00"}},{"$f":"IFERROR('MMA Rev-Exp Region 4'!$R$33/'MMA Rev-Exp Region 4'!$R$9, 0)","v":{"v":0,"d":"$0.00"}},{"$f":"IFERROR('MMA Rev-Exp Region 4'!$S$33/'MMA Rev-Exp Region 4'!$S$9, 0)","v":{"v":0,"d":"$0.00"}},{"$f":"IFERROR('MMA Rev-Exp Region 4'!$T$33/'MMA Rev-Exp Region 4'!$T$9, 0)","v":{"v":0,"d":"$0.00"}},{"$f":"IFERROR('MMA Rev-Exp Region 4'!$U$33/'MMA Rev-Exp Region 4'!$U$9, 0)","v":{"v":0,"d":"$0.00"}},{"$f":"IFERROR('MMA Rev-Exp Region 4'!$V$33/'MMA Rev-Exp Region 4'!$V$9, 0)","v":{"v":0,"d":"$0.00"}},{"$f":"IFERROR('MMA Rev-Exp Region 4'!$W$33/'MMA Rev-Exp Region 4'!$W$9, 0)","v":{"v":0,"d":"$0.00"}},{"$f":"IFERROR('MMA Rev-Exp Region 4'!$X$33/'MMA Rev-Exp Region 4'!$X$9, 0)","v":{"v":0,"d":"$0.00"}},{"$f":"IFERROR('MMA Rev-Exp Region 4'!$Y$33/'MMA Rev-Exp Region 4'!$Y$9, 0)","v":{"v":0,"d":"$0.00"}}]
["MMA",null,null,2016,"2016-12-31","Q2","2017-06-30","Region 4","Operating Expense","Medical Benefits Expense","Professional Services","3.6","Ending IBNP for Professional Services",{"$f":"IFERROR('MMA Rev-Exp Region 4'!$O$34/'MMA Rev-Exp Region 4'!$O$9, 0)","v":{"v":0,"d":"$0.00"}},{"$f":"IFERROR('MMA Rev-Exp Region 4'!$P$34/'MMA Rev-Exp Region 4'!$P$9, 0)","v":{"v":0,"d":"$0.00"}},{"$f":"IFERROR('MMA Rev-Exp Region 4'!$Q$34/'MMA Rev-Exp Region 4'!$Q$9, 0)","v":{"v":0,"d":"$0.00"}},{"$f":"IFERROR('MMA Rev-Exp Region 4'!$R$34/'MMA Rev-Exp Region 4'!$R$9, 0)","v":{"v":0,"d":"$0.00"}},{"$f":"IFERROR('MMA Rev-Exp Region 4'!$S$34/'MMA Rev-Exp Region 4'!$S$9, 0)","v":{"v":0,"d":"$0.00"}},{"$f":"IFERROR('MMA Rev-Exp Region 4'!$T$34/'MMA Rev-Exp Region 4'!$T$9, 0)","v":{"v":0,"d":"$0.00"}},{"$f":"IFERROR('MMA Rev-Exp Region 4'!$U$34/'MMA Rev-Exp Region 4'!$U$9, 0)","v":{"v":0,"d":"$0.00"}},{"$f":"IFERROR('MMA Rev-Exp Region 4'!$V$34/'MMA Rev-Exp Region 4'!$V$9, 0)","v":{"v":0,"d":"$0.00"}},{"$f":"IFERROR('MMA Rev-Exp Region 4'!$W$34/'MMA Rev-Exp Region 4'!$W$9, 0)","v":{"v":0,"d":"$0.00"}},{"$f":"IFERROR('MMA Rev-Exp Region 4'!$X$34/'MMA Rev-Exp Region 4'!$X$9, 0)","v":{"v":0,"d":"$0.00"}},{"$f":"IFERROR('MMA Rev-Exp Region 4'!$Y$34/'MMA Rev-Exp Region 4'!$Y$9, 0)","v":{"v":0,"d":"$0.00"}}]
["MMA",null,null,2016,"2016-12-31","Q2","2017-06-30","Region 4","Operating Expense","Medical Benefits Expense","Professional Services","3.7","Professional Services Settlements",{"$f":"IFERROR('MMA Rev-Exp Region 4'!$O$35/'MMA Rev-Exp Region 4'!$O$9, 0)","v":{"v":0,"d":"$0.00"}},{"$f":"IFERROR('MMA Rev-Exp Region 4'!$P$35/'MMA Rev-Exp Region 4'!$P$9, 0)","v":{"v":0,"d":"$0.00"}},{"$f":"IFERROR('MMA Rev-Exp Region 4'!$Q$35/'MMA Rev-Exp Region 4'!$Q$9, 0)","v":{"v":0,"d":"$0.00"}},{"$f":"IFERROR('MMA Rev-Exp Region 4'!$R$35/'MMA Rev-Exp Region 4'!$R$9, 0)","v":{"v":0,"d":"$0.00"}},{"$f":"IFERROR('MMA Rev-Exp Region 4'!$S$35/'MMA Rev-Exp Region 4'!$S$9, 0)","v":{"v":0,"d":"$0.00"}},{"$f":"IFERROR('MMA Rev-Exp Region 4'!$T$35/'MMA Rev-Exp Region 4'!$T$9, 0)","v":{"v":0,"d":"$0.00"}},{"$f":"IFERROR('MMA Rev-Exp Region 4'!$U$35/'MMA Rev-Exp Region 4'!$U$9, 0)","v":{"v":0,"d":"$0.00"}},{"$f":"IFERROR('MMA Rev-Exp Region 4'!$V$35/'MMA Rev-Exp Region 4'!$V$9, 0)","v":{"v":0,"d":"$0.00"}},{"$f":"IFERROR('MMA Rev-Exp Region 4'!$W$35/'MMA Rev-Exp Region 4'!$W$9, 0)","v":{"v":0,"d":"$0.00"}},{"$f":"IFERROR('MMA Rev-Exp Region 4'!$X$35/'MMA Rev-Exp Region 4'!$X$9, 0)","v":{"v":0,"d":"$0.00"}},{"$f":"IFERROR('MMA Rev-Exp Region 4'!$Y$35/'MMA Rev-Exp Region 4'!$Y$9, 0)","v":{"v":0,"d":"$0.00"}}]
["MMA",null,null,2016,"2016-12-31","Q2","2017-06-30","Region 4","Operating Expense","Medical Benefits Expense","Maternity Services","4.1.1","Maternity Services",{"$f":"IFERROR('MMA Rev-Exp Region 4'!$O$37/'MMA Rev-Exp Region 4'!$O$9, 0)","v":{"v":0,"d":"$0.00"}},{"$f":"IFERROR('MMA Rev-Exp Region 4'!$P$37/'MMA Rev-Exp Region 4'!$P$9, 0)","v":{"v":0,"d":"$0.00"}},{"$f":"IFERROR('MMA Rev-Exp Region 4'!$Q$37/'MMA Rev-Exp Region 4'!$Q$9, 0)","v":{"v":0,"d":"$0.00"}},{"$f":"IFERROR('MMA Rev-Exp Region 4'!$R$37/'MMA Rev-Exp Region 4'!$R$9, 0)","v":{"v":0,"d":"$0.00"}},{"$f":"IFERROR('MMA Rev-Exp Region 4'!$S$37/'MMA Rev-Exp Region 4'!$S$9, 0)","v":{"v":0,"d":"$0.00"}},{"$f":"IFERROR('MMA Rev-Exp Region 4'!$T$37/'MMA Rev-Exp Region 4'!$T$9, 0)","v":{"v":0,"d":"$0.00"}},{"$f":"IFERROR('MMA Rev-Exp Region 4'!$U$37/'MMA Rev-Exp Region 4'!$U$9, 0)","v":{"v":0,"d":"$0.00"}},{"$f":"IFERROR('MMA Rev-Exp Region 4'!$V$37/'MMA Rev-Exp Region 4'!$V$9, 0)","v":{"v":0,"d":"$0.00"}},{"$f":"IFERROR('MMA Rev-Exp Region 4'!$W$37/'MMA Rev-Exp Region 4'!$W$9, 0)","v":{"v":0,"d":"$0.00"}},{"$f":"IFERROR('MMA Rev-Exp Region 4'!$X$37/'MMA Rev-Exp Region 4'!$X$9, 0)","v":{"v":0,"d":"$0.00"}},{"$f":"IFERROR('MMA Rev-Exp Region 4'!$Y$37/'MMA Rev-Exp Region 4'!$Y$9, 0)","v":{"v":0,"d":"$0.00"}}]
["MMA",null,null,2016,"2016-12-31","Q2","2017-06-30","Region 4","Operating Expense","Medical Benefits Expense","Maternity Services","4.2.1","Ending IBNP for Maternity Services",{"$f":"IFERROR('MMA Rev-Exp Region 4'!$O$38/'MMA Rev-Exp Region 4'!$O$9, 0)","v":{"v":0,"d":"$0.00"}},{"$f":"IFERROR('MMA Rev-Exp Region 4'!$P$38/'MMA Rev-Exp Region 4'!$P$9, 0)","v":{"v":0,"d":"$0.00"}},{"$f":"IFERROR('MMA Rev-Exp Region 4'!$Q$38/'MMA Rev-Exp Region 4'!$Q$9, 0)","v":{"v":0,"d":"$0.00"}},{"$f":"IFERROR('MMA Rev-Exp Region 4'!$R$38/'MMA Rev-Exp Region 4'!$R$9, 0)","v":{"v":0,"d":"$0.00"}},{"$f":"IFERROR('MMA Rev-Exp Region 4'!$S$38/'MMA Rev-Exp Region 4'!$S$9, 0)","v":{"v":0,"d":"$0.00"}},{"$f":"IFERROR('MMA Rev-Exp Region 4'!$T$38/'MMA Rev-Exp Region 4'!$T$9, 0)","v":{"v":0,"d":"$0.00"}},{"$f":"IFERROR('MMA Rev-Exp Region 4'!$U$38/'MMA Rev-Exp Region 4'!$U$9, 0)","v":{"v":0,"d":"$0.00"}},{"$f":"IFERROR('MMA Rev-Exp Region 4'!$V$38/'MMA Rev-Exp Region 4'!$V$9, 0)","v":{"v":0,"d":"$0.00"}},{"$f":"IFERROR('MMA Rev-Exp Region 4'!$W$38/'MMA Rev-Exp Region 4'!$W$9, 0)","v":{"v":0,"d":"$0.00"}},{"$f":"IFERROR('MMA Rev-Exp Region 4'!$X$38/'MMA Rev-Exp Region 4'!$X$9, 0)","v":{"v":0,"d":"$0.00"}},{"$f":"IFERROR('MMA Rev-Exp Region 4'!$Y$38/'MMA Rev-Exp Region 4'!$Y$9, 0)","v":{"v":0,"d":"$0.00"}}]
["MMA",null,null,2016,"2016-12-31","Q2","2017-06-30","Region 4","Operating Expense","Medical Benefits Expense","Maternity Services","4.3.1","Maternity Settlements",{"$f":"IFERROR('MMA Rev-Exp Region 4'!$O$39/'MMA Rev-Exp Region 4'!$O$9, 0)","v":{"v":0,"d":"$0.00"}},{"$f":"IFERROR('MMA Rev-Exp Region 4'!$P$39/'MMA Rev-Exp Region 4'!$P$9, 0)","v":{"v":0,"d":"$0.00"}},{"$f":"IFERROR('MMA Rev-Exp Region 4'!$Q$39/'MMA Rev-Exp Region 4'!$Q$9, 0)","v":{"v":0,"d":"$0.00"}},{"$f":"IFERROR('MMA Rev-Exp Region 4'!$R$39/'MMA Rev-Exp Region 4'!$R$9, 0)","v":{"v":0,"d":"$0.00"}},{"$f":"IFERROR('MMA Rev-Exp Region 4'!$S$39/'MMA Rev-Exp Region 4'!$S$9, 0)","v":{"v":0,"d":"$0.00"}},{"$f":"IFERROR('MMA Rev-Exp Region 4'!$T$39/'MMA Rev-Exp Region 4'!$T$9, 0)","v":{"v":0,"d":"$0.00"}},{"$f":"IFERROR('MMA Rev-Exp Region 4'!$U$39/'MMA Rev-Exp Region 4'!$U$9, 0)","v":{"v":0,"d":"$0.00"}},{"$f":"IFERROR('MMA Rev-Exp Region 4'!$V$39/'MMA Rev-Exp Region 4'!$V$9, 0)","v":{"v":0,"d":"$0.00"}},{"$f":"IFERROR('MMA Rev-Exp Region 4'!$W$39/'MMA Rev-Exp Region 4'!$W$9, 0)","v":{"v":0,"d":"$0.00"}},{"$f":"IFERROR('MMA Rev-Exp Region 4'!$X$39/'MMA Rev-Exp Region 4'!$X$9, 0)","v":{"v":0,"d":"$0.00"}},{"$f":"IFERROR('MMA Rev-Exp Region 4'!$Y$39/'MMA Rev-Exp Region 4'!$Y$9, 0)","v":{"v":0,"d":"$0.00"}}]
["MMA",null,null,2016,"2016-12-31","Q2","2017-06-30","Region 4","Operating Expense","Medical Benefits Expense","Mental Health Services",5.1,"Mental Health & Substance Abuse FFS",{"$f":"IFERROR('MMA Rev-Exp Region 4'!$O$41/'MMA Rev-Exp Region 4'!$O$9, 0)","v":{"v":0,"d":"$0.00"}},{"$f":"IFERROR('MMA Rev-Exp Region 4'!$P$41/'MMA Rev-Exp Region 4'!$P$9, 0)","v":{"v":0,"d":"$0.00"}},{"$f":"IFERROR('MMA Rev-Exp Region 4'!$Q$41/'MMA Rev-Exp Region 4'!$Q$9, 0)","v":{"v":0,"d":"$0.00"}},{"$f":"IFERROR('MMA Rev-Exp Region 4'!$R$41/'MMA Rev-Exp Region 4'!$R$9, 0)","v":{"v":0,"d":"$0.00"}},{"$f":"IFERROR('MMA Rev-Exp Region 4'!$S$41/'MMA Rev-Exp Region 4'!$S$9, 0)","v":{"v":0,"d":"$0.00"}},{"$f":"IFERROR('MMA Rev-Exp Region 4'!$T$41/'MMA Rev-Exp Region 4'!$T$9, 0)","v":{"v":0,"d":"$0.00"}},{"$f":"IFERROR('MMA Rev-Exp Region 4'!$U$41/'MMA Rev-Exp Region 4'!$U$9, 0)","v":{"v":0,"d":"$0.00"}},{"$f":"IFERROR('MMA Rev-Exp Region 4'!$V$41/'MMA Rev-Exp Region 4'!$V$9, 0)","v":{"v":0,"d":"$0.00"}},{"$f":"IFERROR('MMA Rev-Exp Region 4'!$W$41/'MMA Rev-Exp Region 4'!$W$9, 0)","v":{"v":0,"d":"$0.00"}},{"$f":"IFERROR('MMA Rev-Exp Region 4'!$X$41/'MMA Rev-Exp Region 4'!$X$9, 0)","v":{"v":0,"d":"$0.00"}},{"$f":"IFERROR('MMA Rev-Exp Region 4'!$Y$41/'MMA Rev-Exp Region 4'!$Y$9, 0)","v":{"v":0,"d":"$0.00"}}]
["MMA",null,null,2016,"2016-12-31","Q2","2017-06-30","Region 4","Operating Expense","Medical Benefits Expense","Mental Health Services",5.2,"Mental Health & Substance Abuse Subcapitation",{"$f":"IFERROR('MMA Rev-Exp Region 4'!$O$42/'MMA Rev-Exp Region 4'!$O$9, 0)","v":{"v":0,"d":"$0.00"}},{"$f":"IFERROR('MMA Rev-Exp Region 4'!$P$42/'MMA Rev-Exp Region 4'!$P$9, 0)","v":{"v":0,"d":"$0.00"}},{"$f":"IFERROR('MMA Rev-Exp Region 4'!$Q$42/'MMA Rev-Exp Region 4'!$Q$9, 0)","v":{"v":0,"d":"$0.00"}},{"$f":"IFERROR('MMA Rev-Exp Region 4'!$R$42/'MMA Rev-Exp Region 4'!$R$9, 0)","v":{"v":0,"d":"$0.00"}},{"$f":"IFERROR('MMA Rev-Exp Region 4'!$S$42/'MMA Rev-Exp Region 4'!$S$9, 0)","v":{"v":0,"d":"$0.00"}},{"$f":"IFERROR('MMA Rev-Exp Region 4'!$T$42/'MMA Rev-Exp Region 4'!$T$9, 0)","v":{"v":0,"d":"$0.00"}},{"$f":"IFERROR('MMA Rev-Exp Region 4'!$U$42/'MMA Rev-Exp Region 4'!$U$9, 0)","v":{"v":0,"d":"$0.00"}},{"$f":"IFERROR('MMA Rev-Exp Region 4'!$V$42/'MMA Rev-Exp Region 4'!$V$9, 0)","v":{"v":0,"d":"$0.00"}},{"$f":"IFERROR('MMA Rev-Exp Region 4'!$W$42/'MMA Rev-Exp Region 4'!$W$9, 0)","v":{"v":0,"d":"$0.00"}},{"$f":"IFERROR('MMA Rev-Exp Region 4'!$X$42/'MMA Rev-Exp Region 4'!$X$9, 0)","v":{"v":0,"d":"$0.00"}},{"$f":"IFERROR('MMA Rev-Exp Region 4'!$Y$42/'MMA Rev-Exp Region 4'!$Y$9, 0)","v":{"v":0,"d":"$0.00"}}]
["MMA",null,null,2016,"2016-12-31","Q2","2017-06-30","Region 4","Operating Expense","Medical Benefits Expense","Mental Health Services",5.3,"Ending IBNP for Mental Health & Substance Abuse",{"$f":"IFERROR('MMA Rev-Exp Region 4'!$O$43/'MMA Rev-Exp Region 4'!$O$9, 0)","v":{"v":0,"d":"$0.00"}},{"$f":"IFERROR('MMA Rev-Exp Region 4'!$P$43/'MMA Rev-Exp Region 4'!$P$9, 0)","v":{"v":0,"d":"$0.00"}},{"$f":"IFERROR('MMA Rev-Exp Region 4'!$Q$43/'MMA Rev-Exp Region 4'!$Q$9, 0)","v":{"v":0,"d":"$0.00"}},{"$f":"IFERROR('MMA Rev-Exp Region 4'!$R$43/'MMA Rev-Exp Region 4'!$R$9, 0)","v":{"v":0,"d":"$0.00"}},{"$f":"IFERROR('MMA Rev-Exp Region 4'!$S$43/'MMA Rev-Exp Region 4'!$S$9, 0)","v":{"v":0,"d":"$0.00"}},{"$f":"IFERROR('MMA Rev-Exp Region 4'!$T$43/'MMA Rev-Exp Region 4'!$T$9, 0)","v":{"v":0,"d":"$0.00"}},{"$f":"IFERROR('MMA Rev-Exp Region 4'!$U$43/'MMA Rev-Exp Region 4'!$U$9, 0)","v":{"v":0,"d":"$0.00"}},{"$f":"IFERROR('MMA Rev-Exp Region 4'!$V$43/'MMA Rev-Exp Region 4'!$V$9, 0)","v":{"v":0,"d":"$0.00"}},{"$f":"IFERROR('MMA Rev-Exp Region 4'!$W$43/'MMA Rev-Exp Region 4'!$W$9, 0)","v":{"v":0,"d":"$0.00"}},{"$f":"IFERROR('MMA Rev-Exp Region 4'!$X$43/'MMA Rev-Exp Region 4'!$X$9, 0)","v":{"v":0,"d":"$0.00"}},{"$f":"IFERROR('MMA Rev-Exp Region 4'!$Y$43/'MMA Rev-Exp Region 4'!$Y$9, 0)","v":{"v":0,"d":"$0.00"}}]
["MMA",null,null,2016,"2016-12-31","Q2","2017-06-30","Region 4","Operating Expense","Medical Benefits Expense","Mental Health Services","5.4","Mental Health Settlements",{"$f":"IFERROR('MMA Rev-Exp Region 4'!$O$44/'MMA Rev-Exp Region 4'!$O$9, 0)","v":{"v":0,"d":"$0.00"}},{"$f":"IFERROR('MMA Rev-Exp Region 4'!$P$44/'MMA Rev-Exp Region 4'!$P$9, 0)","v":{"v":0,"d":"$0.00"}},{"$f":"IFERROR('MMA Rev-Exp Region 4'!$Q$44/'MMA Rev-Exp Region 4'!$Q$9, 0)","v":{"v":0,"d":"$0.00"}},{"$f":"IFERROR('MMA Rev-Exp Region 4'!$R$44/'MMA Rev-Exp Region 4'!$R$9, 0)","v":{"v":0,"d":"$0.00"}},{"$f":"IFERROR('MMA Rev-Exp Region 4'!$S$44/'MMA Rev-Exp Region 4'!$S$9, 0)","v":{"v":0,"d":"$0.00"}},{"$f":"IFERROR('MMA Rev-Exp Region 4'!$T$44/'MMA Rev-Exp Region 4'!$T$9, 0)","v":{"v":0,"d":"$0.00"}},{"$f":"IFERROR('MMA Rev-Exp Region 4'!$U$44/'MMA Rev-Exp Region 4'!$U$9, 0)","v":{"v":0,"d":"$0.00"}},{"$f":"IFERROR('MMA Rev-Exp Region 4'!$V$44/'MMA Rev-Exp Region 4'!$V$9, 0)","v":{"v":0,"d":"$0.00"}},{"$f":"IFERROR('MMA Rev-Exp Region 4'!$W$44/'MMA Rev-Exp Region 4'!$W$9, 0)","v":{"v":0,"d":"$0.00"}},{"$f":"IFERROR('MMA Rev-Exp Region 4'!$X$44/'MMA Rev-Exp Region 4'!$X$9, 0)","v":{"v":0,"d":"$0.00"}},{"$f":"IFERROR('MMA Rev-Exp Region 4'!$Y$44/'MMA Rev-Exp Region 4'!$Y$9, 0)","v":{"v":0,"d":"$0.00"}}]
["MMA",null,null,2016,"2016-12-31","Q2","2017-06-30","Region 4","Operating Expense","Medical Benefits Expense","Dental Services",6.1,"Dental FFS",{"$f":"IFERROR('MMA Rev-Exp Region 4'!$O$46/'MMA Rev-Exp Region 4'!$O$9, 0)","v":{"v":0,"d":"$0.00"}},{"$f":"IFERROR('MMA Rev-Exp Region 4'!$P$46/'MMA Rev-Exp Region 4'!$P$9, 0)","v":{"v":0,"d":"$0.00"}},{"$f":"IFERROR('MMA Rev-Exp Region 4'!$Q$46/'MMA Rev-Exp Region 4'!$Q$9, 0)","v":{"v":0,"d":"$0.00"}},{"$f":"IFERROR('MMA Rev-Exp Region 4'!$R$46/'MMA Rev-Exp Region 4'!$R$9, 0)","v":{"v":0,"d":"$0.00"}},{"$f":"IFERROR('MMA Rev-Exp Region 4'!$S$46/'MMA Rev-Exp Region 4'!$S$9, 0)","v":{"v":0,"d":"$0.00"}},{"$f":"IFERROR('MMA Rev-Exp Region 4'!$T$46/'MMA Rev-Exp Region 4'!$T$9, 0)","v":{"v":0,"d":"$0.00"}},{"$f":"IFERROR('MMA Rev-Exp Region 4'!$U$46/'MMA Rev-Exp Region 4'!$U$9, 0)","v":{"v":0,"d":"$0.00"}},{"$f":"IFERROR('MMA Rev-Exp Region 4'!$V$46/'MMA Rev-Exp Region 4'!$V$9, 0)","v":{"v":0,"d":"$0.00"}},{"$f":"IFERROR('MMA Rev-Exp Region 4'!$W$46/'MMA Rev-Exp Region 4'!$W$9, 0)","v":{"v":0,"d":"$0.00"}},{"$f":"IFERROR('MMA Rev-Exp Region 4'!$X$46/'MMA Rev-Exp Region 4'!$X$9, 0)","v":{"v":0,"d":"$0.00"}},{"$f":"IFERROR('MMA Rev-Exp Region 4'!$Y$46/'MMA Rev-Exp Region 4'!$Y$9, 0)","v":{"v":0,"d":"$0.00"}}]
["MMA",null,null,2016,"2016-12-31","Q2","2017-06-30","Region 4","Operating Expense","Medical Benefits Expense","Dental Services",6.2,"Dental Subcapitation",{"$f":"IFERROR('MMA Rev-Exp Region 4'!$O$47/'MMA Rev-Exp Region 4'!$O$9, 0)","v":{"v":0,"d":"$0.00"}},{"$f":"IFERROR('MMA Rev-Exp Region 4'!$P$47/'MMA Rev-Exp Region 4'!$P$9, 0)","v":{"v":0,"d":"$0.00"}},{"$f":"IFERROR('MMA Rev-Exp Region 4'!$Q$47/'MMA Rev-Exp Region 4'!$Q$9, 0)","v":{"v":0,"d":"$0.00"}},{"$f":"IFERROR('MMA Rev-Exp Region 4'!$R$47/'MMA Rev-Exp Region 4'!$R$9, 0)","v":{"v":0,"d":"$0.00"}},{"$f":"IFERROR('MMA Rev-Exp Region 4'!$S$47/'MMA Rev-Exp Region 4'!$S$9, 0)","v":{"v":0,"d":"$0.00"}},{"$f":"IFERROR('MMA Rev-Exp Region 4'!$T$47/'MMA Rev-Exp Region 4'!$T$9, 0)","v":{"v":0,"d":"$0.00"}},{"$f":"IFERROR('MMA Rev-Exp Region 4'!$U$47/'MMA Rev-Exp Region 4'!$U$9, 0)","v":{"v":0,"d":"$0.00"}},{"$f":"IFERROR('MMA Rev-Exp Region 4'!$V$47/'MMA Rev-Exp Region 4'!$V$9, 0)","v":{"v":0,"d":"$0.00"}},{"$f":"IFERROR('MMA Rev-Exp Region 4'!$W$47/'MMA Rev-Exp Region 4'!$W$9, 0)","v":{"v":0,"d":"$0.00"}},{"$f":"IFERROR('MMA Rev-Exp Region 4'!$X$47/'MMA Rev-Exp Region 4'!$X$9, 0)","v":{"v":0,"d":"$0.00"}},{"$f":"IFERROR('MMA Rev-Exp Region 4'!$Y$47/'MMA Rev-Exp Region 4'!$Y$9, 0)","v":{"v":0,"d":"$0.00"}}]
["MMA",null,null,2016,"2016-12-31","Q2","2017-06-30","Region 4","Operating Expense","Medical Benefits Expense","Dental Services",6.3,"Ending IBNP for Dental Services",{"$f":"IFERROR('MMA Rev-Exp Region 4'!$O$48/'MMA Rev-Exp Region 4'!$O$9, 0)","v":{"v":0,"d":"$0.00"}},{"$f":"IFERROR('MMA Rev-Exp Region 4'!$P$48/'MMA Rev-Exp Region 4'!$P$9, 0)","v":{"v":0,"d":"$0.00"}},{"$f":"IFERROR('MMA Rev-Exp Region 4'!$Q$48/'MMA Rev-Exp Region 4'!$Q$9, 0)","v":{"v":0,"d":"$0.00"}},{"$f":"IFERROR('MMA Rev-Exp Region 4'!$R$48/'MMA Rev-Exp Region 4'!$R$9, 0)","v":{"v":0,"d":"$0.00"}},{"$f":"IFERROR('MMA Rev-Exp Region 4'!$S$48/'MMA Rev-Exp Region 4'!$S$9, 0)","v":{"v":0,"d":"$0.00"}},{"$f":"IFERROR('MMA Rev-Exp Region 4'!$T$48/'MMA Rev-Exp Region 4'!$T$9, 0)","v":{"v":0,"d":"$0.00"}},{"$f":"IFERROR('MMA Rev-Exp Region 4'!$U$48/'MMA Rev-Exp Region 4'!$U$9, 0)","v":{"v":0,"d":"$0.00"}},{"$f":"IFERROR('MMA Rev-Exp Region 4'!$V$48/'MMA Rev-Exp Region 4'!$V$9, 0)","v":{"v":0,"d":"$0.00"}},{"$f":"IFERROR('MMA Rev-Exp Region 4'!$W$48/'MMA Rev-Exp Region 4'!$W$9, 0)","v":{"v":0,"d":"$0.00"}},{"$f":"IFERROR('MMA Rev-Exp Region 4'!$X$48/'MMA Rev-Exp Region 4'!$X$9, 0)","v":{"v":0,"d":"$0.00"}},{"$f":"IFERROR('MMA Rev-Exp Region 4'!$Y$48/'MMA Rev-Exp Region 4'!$Y$9, 0)","v":{"v":0,"d":"$0.00"}}]
["MMA",null,null,2016,"2016-12-31","Q2","2017-06-30","Region 4","Operating Expense","Medical Benefits Expense","Dental Services","6.4","Dental Settlements",{"$f":"IFERROR('MMA Rev-Exp Region 4'!$O$49/'MMA Rev-Exp Region 4'!$O$9, 0)","v":{"v":0,"d":"$0.00"}},{"$f":"IFERROR('MMA Rev-Exp Region 4'!$P$49/'MMA Rev-Exp Region 4'!$P$9, 0)","v":{"v":0,"d":"$0.00"}},{"$f":"IFERROR('MMA Rev-Exp Region 4'!$Q$49/'MMA Rev-Exp Region 4'!$Q$9, 0)","v":{"v":0,"d":"$0.00"}},{"$f":"IFERROR('MMA Rev-Exp Region 4'!$R$49/'MMA Rev-Exp Region 4'!$R$9, 0)","v":{"v":0,"d":"$0.00"}},{"$f":"IFERROR('MMA Rev-Exp Region 4'!$S$49/'MMA Rev-Exp Region 4'!$S$9, 0)","v":{"v":0,"d":"$0.00"}},{"$f":"IFERROR('MMA Rev-Exp Region 4'!$T$49/'MMA Rev-Exp Region 4'!$T$9, 0)","v":{"v":0,"d":"$0.00"}},{"$f":"IFERROR('MMA Rev-Exp Region 4'!$U$49/'MMA Rev-Exp Region 4'!$U$9, 0)","v":{"v":0,"d":"$0.00"}},{"$f":"IFERROR('MMA Rev-Exp Region 4'!$V$49/'MMA Rev-Exp Region 4'!$V$9, 0)","v":{"v":0,"d":"$0.00"}},{"$f":"IFERROR('MMA Rev-Exp Region 4'!$W$49/'MMA Rev-Exp Region 4'!$W$9, 0)","v":{"v":0,"d":"$0.00"}},{"$f":"IFERROR('MMA Rev-Exp Region 4'!$X$49/'MMA Rev-Exp Region 4'!$X$9, 0)","v":{"v":0,"d":"$0.00"}},{"$f":"IFERROR('MMA Rev-Exp Region 4'!$Y$49/'MMA Rev-Exp Region 4'!$Y$9, 0)","v":{"v":0,"d":"$0.00"}}]
["MMA",null,null,2016,"2016-12-31","Q2","2017-06-30","Region 4","Operating Expense","Medical Benefits Expense","Transportation Services",7.1,"Transportation FFS",{"$f":"IFERROR('MMA Rev-Exp Region 4'!$O$51/'MMA Rev-Exp Region 4'!$O$9, 0)","v":{"v":0,"d":"$0.00"}},{"$f":"IFERROR('MMA Rev-Exp Region 4'!$P$51/'MMA Rev-Exp Region 4'!$P$9, 0)","v":{"v":0,"d":"$0.00"}},{"$f":"IFERROR('MMA Rev-Exp Region 4'!$Q$51/'MMA Rev-Exp Region 4'!$Q$9, 0)","v":{"v":0,"d":"$0.00"}},{"$f":"IFERROR('MMA Rev-Exp Region 4'!$R$51/'MMA Rev-Exp Region 4'!$R$9, 0)","v":{"v":0,"d":"$0.00"}},{"$f":"IFERROR('MMA Rev-Exp Region 4'!$S$51/'MMA Rev-Exp Region 4'!$S$9, 0)","v":{"v":0,"d":"$0.00"}},{"$f":"IFERROR('MMA Rev-Exp Region 4'!$T$51/'MMA Rev-Exp Region 4'!$T$9, 0)","v":{"v":0,"d":"$0.00"}},{"$f":"IFERROR('MMA Rev-Exp Region 4'!$U$51/'MMA Rev-Exp Region 4'!$U$9, 0)","v":{"v":0,"d":"$0.00"}},{"$f":"IFERROR('MMA Rev-Exp Region 4'!$V$51/'MMA Rev-Exp Region 4'!$V$9, 0)","v":{"v":0,"d":"$0.00"}},{"$f":"IFERROR('MMA Rev-Exp Region 4'!$W$51/'MMA Rev-Exp Region 4'!$W$9, 0)","v":{"v":0,"d":"$0.00"}},{"$f":"IFERROR('MMA Rev-Exp Region 4'!$X$51/'MMA Rev-Exp Region 4'!$X$9, 0)","v":{"v":0,"d":"$0.00"}},{"$f":"IFERROR('MMA Rev-Exp Region 4'!$Y$51/'MMA Rev-Exp Region 4'!$Y$9, 0)","v":{"v":0,"d":"$0.00"}}]
["MMA",null,null,2016,"2016-12-31","Q2","2017-06-30","Region 4","Operating Expense","Medical Benefits Expense","Transportation Services",7.2,"Transportation Subcapitation",{"$f":"IFERROR('MMA Rev-Exp Region 4'!$O$52/'MMA Rev-Exp Region 4'!$O$9, 0)","v":{"v":0,"d":"$0.00"}},{"$f":"IFERROR('MMA Rev-Exp Region 4'!$P$52/'MMA Rev-Exp Region 4'!$P$9, 0)","v":{"v":0,"d":"$0.00"}},{"$f":"IFERROR('MMA Rev-Exp Region 4'!$Q$52/'MMA Rev-Exp Region 4'!$Q$9, 0)","v":{"v":0,"d":"$0.00"}},{"$f":"IFERROR('MMA Rev-Exp Region 4'!$R$52/'MMA Rev-Exp Region 4'!$R$9, 0)","v":{"v":0,"d":"$0.00"}},{"$f":"IFERROR('MMA Rev-Exp Region 4'!$S$52/'MMA Rev-Exp Region 4'!$S$9, 0)","v":{"v":0,"d":"$0.00"}},{"$f":"IFERROR('MMA Rev-Exp Region 4'!$T$52/'MMA Rev-Exp Region 4'!$T$9, 0)","v":{"v":0,"d":"$0.00"}},{"$f":"IFERROR('MMA Rev-Exp Region 4'!$U$52/'MMA Rev-Exp Region 4'!$U$9, 0)","v":{"v":0,"d":"$0.00"}},{"$f":"IFERROR('MMA Rev-Exp Region 4'!$V$52/'MMA Rev-Exp Region 4'!$V$9, 0)","v":{"v":0,"d":"$0.00"}},{"$f":"IFERROR('MMA Rev-Exp Region 4'!$W$52/'MMA Rev-Exp Region 4'!$W$9, 0)","v":{"v":0,"d":"$0.00"}},{"$f":"IFERROR('MMA Rev-Exp Region 4'!$X$52/'MMA Rev-Exp Region 4'!$X$9, 0)","v":{"v":0,"d":"$0.00"}},{"$f":"IFERROR('MMA Rev-Exp Region 4'!$Y$52/'MMA Rev-Exp Region 4'!$Y$9, 0)","v":{"v":0,"d":"$0.00"}}]
["MMA",null,null,2016,"2016-12-31","Q2","2017-06-30","Region 4","Operating Expense","Medical Benefits Expense","Transportation Services",7.3,"Ending IBNP for Transportation",{"$f":"IFERROR('MMA Rev-Exp Region 4'!$O$53/'MMA Rev-Exp Region 4'!$O$9, 0)","v":{"v":0,"d":"$0.00"}},{"$f":"IFERROR('MMA Rev-Exp Region 4'!$P$53/'MMA Rev-Exp Region 4'!$P$9, 0)","v":{"v":0,"d":"$0.00"}},{"$f":"IFERROR('MMA Rev-Exp Region 4'!$Q$53/'MMA Rev-Exp Region 4'!$Q$9, 0)","v":{"v":0,"d":"$0.00"}},{"$f":"IFERROR('MMA Rev-Exp Region 4'!$R$53/'MMA Rev-Exp Region 4'!$R$9, 0)","v":{"v":0,"d":"$0.00"}},{"$f":"IFERROR('MMA Rev-Exp Region 4'!$S$53/'MMA Rev-Exp Region 4'!$S$9, 0)","v":{"v":0,"d":"$0.00"}},{"$f":"IFERROR('MMA Rev-Exp Region 4'!$T$53/'MMA Rev-Exp Region 4'!$T$9, 0)","v":{"v":0,"d":"$0.00"}},{"$f":"IFERROR('MMA Rev-Exp Region 4'!$U$53/'MMA Rev-Exp Region 4'!$U$9, 0)","v":{"v":0,"d":"$0.00"}},{"$f":"IFERROR('MMA Rev-Exp Region 4'!$V$53/'MMA Rev-Exp Region 4'!$V$9, 0)","v":{"v":0,"d":"$0.00"}},{"$f":"IFERROR('MMA Rev-Exp Region 4'!$W$53/'MMA Rev-Exp Region 4'!$W$9, 0)","v":{"v":0,"d":"$0.00"}},{"$f":"IFERROR('MMA Rev-Exp Region 4'!$X$53/'MMA Rev-Exp Region 4'!$X$9, 0)","v":{"v":0,"d":"$0.00"}},{"$f":"IFERROR('MMA Rev-Exp Region 4'!$Y$53/'MMA Rev-Exp Region 4'!$Y$9, 0)","v":{"v":0,"d":"$0.00"}}]
["MMA",null,null,2016,"2016-12-31","Q2","2017-06-30","Region 4","Operating Expense","Medical Benefits Expense","Transportation Services","7.4","Transportation Settlements",{"$f":"IFERROR('MMA Rev-Exp Region 4'!$O$54/'MMA Rev-Exp Region 4'!$O$9, 0)","v":{"v":0,"d":"$0.00"}},{"$f":"IFERROR('MMA Rev-Exp Region 4'!$P$54/'MMA Rev-Exp Region 4'!$P$9, 0)","v":{"v":0,"d":"$0.00"}},{"$f":"IFERROR('MMA Rev-Exp Region 4'!$Q$54/'MMA Rev-Exp Region 4'!$Q$9, 0)","v":{"v":0,"d":"$0.00"}},{"$f":"IFERROR('MMA Rev-Exp Region 4'!$R$54/'MMA Rev-Exp Region 4'!$R$9, 0)","v":{"v":0,"d":"$0.00"}},{"$f":"IFERROR('MMA Rev-Exp Region 4'!$S$54/'MMA Rev-Exp Region 4'!$S$9, 0)","v":{"v":0,"d":"$0.00"}},{"$f":"IFERROR('MMA Rev-Exp Region 4'!$T$54/'MMA Rev-Exp Region 4'!$T$9, 0)","v":{"v":0,"d":"$0.00"}},{"$f":"IFERROR('MMA Rev-Exp Region 4'!$U$54/'MMA Rev-Exp Region 4'!$U$9, 0)","v":{"v":0,"d":"$0.00"}},{"$f":"IFERROR('MMA Rev-Exp Region 4'!$V$54/'MMA Rev-Exp Region 4'!$V$9, 0)","v":{"v":0,"d":"$0.00"}},{"$f":"IFERROR('MMA Rev-Exp Region 4'!$W$54/'MMA Rev-Exp Region 4'!$W$9, 0)","v":{"v":0,"d":"$0.00"}},{"$f":"IFERROR('MMA Rev-Exp Region 4'!$X$54/'MMA Rev-Exp Region 4'!$X$9, 0)","v":{"v":0,"d":"$0.00"}},{"$f":"IFERROR('MMA Rev-Exp Region 4'!$Y$54/'MMA Rev-Exp Region 4'!$Y$9, 0)","v":{"v":0,"d":"$0.00"}}]
["MMA",null,null,2016,"2016-12-31","Q2","2017-06-30","Region 4","Operating Expense","Medical Benefits Expense","Pharmacy Services",8.1,"Prescription Drugs FFS",{"$f":"IFERROR('MMA Rev-Exp Region 4'!$O$56/'MMA Rev-Exp Region 4'!$O$9, 0)","v":{"v":0,"d":"$0.00"}},{"$f":"IFERROR('MMA Rev-Exp Region 4'!$P$56/'MMA Rev-Exp Region 4'!$P$9, 0)","v":{"v":0,"d":"$0.00"}},{"$f":"IFERROR('MMA Rev-Exp Region 4'!$Q$56/'MMA Rev-Exp Region 4'!$Q$9, 0)","v":{"v":0,"d":"$0.00"}},{"$f":"IFERROR('MMA Rev-Exp Region 4'!$R$56/'MMA Rev-Exp Region 4'!$R$9, 0)","v":{"v":0,"d":"$0.00"}},{"$f":"IFERROR('MMA Rev-Exp Region 4'!$S$56/'MMA Rev-Exp Region 4'!$S$9, 0)","v":{"v":0,"d":"$0.00"}},{"$f":"IFERROR('MMA Rev-Exp Region 4'!$T$56/'MMA Rev-Exp Region 4'!$T$9, 0)","v":{"v":0,"d":"$0.00"}},{"$f":"IFERROR('MMA Rev-Exp Region 4'!$U$56/'MMA Rev-Exp Region 4'!$U$9, 0)","v":{"v":0,"d":"$0.00"}},{"$f":"IFERROR('MMA Rev-Exp Region 4'!$V$56/'MMA Rev-Exp Region 4'!$V$9, 0)","v":{"v":0,"d":"$0.00"}},{"$f":"IFERROR('MMA Rev-Exp Region 4'!$W$56/'MMA Rev-Exp Region 4'!$W$9, 0)","v":{"v":0,"d":"$0.00"}},{"$f":"IFERROR('MMA Rev-Exp Region 4'!$X$56/'MMA Rev-Exp Region 4'!$X$9, 0)","v":{"v":0,"d":"$0.00"}},{"$f":"IFERROR('MMA Rev-Exp Region 4'!$Y$56/'MMA Rev-Exp Region 4'!$Y$9, 0)","v":{"v":0,"d":"$0.00"}}]
["MMA",null,null,2016,"2016-12-31","Q2","2017-06-30","Region 4","Operating Expense","Medical Benefits Expense","Pharmacy Services","8.2","Hepatitis C Prescription Drug FFS",{"$f":"IFERROR('MMA Rev-Exp Region 4'!$O$57/'MMA Rev-Exp Region 4'!$O$9, 0)","v":{"v":0,"d":"$0.00"}},{"$f":"IFERROR('MMA Rev-Exp Region 4'!$P$57/'MMA Rev-Exp Region 4'!$P$9, 0)","v":{"v":0,"d":"$0.00"}},{"$f":"IFERROR('MMA Rev-Exp Region 4'!$Q$57/'MMA Rev-Exp Region 4'!$Q$9, 0)","v":{"v":0,"d":"$0.00"}},{"$f":"IFERROR('MMA Rev-Exp Region 4'!$R$57/'MMA Rev-Exp Region 4'!$R$9, 0)","v":{"v":0,"d":"$0.00"}},{"$f":"IFERROR('MMA Rev-Exp Region 4'!$S$57/'MMA Rev-Exp Region 4'!$S$9, 0)","v":{"v":0,"d":"$0.00"}},{"$f":"IFERROR('MMA Rev-Exp Region 4'!$T$57/'MMA Rev-Exp Region 4'!$T$9, 0)","v":{"v":0,"d":"$0.00"}},{"$f":"IFERROR('MMA Rev-Exp Region 4'!$U$57/'MMA Rev-Exp Region 4'!$U$9, 0)","v":{"v":0,"d":"$0.00"}},{"$f":"IFERROR('MMA Rev-Exp Region 4'!$V$57/'MMA Rev-Exp Region 4'!$V$9, 0)","v":{"v":0,"d":"$0.00"}},{"$f":"IFERROR('MMA Rev-Exp Region 4'!$W$57/'MMA Rev-Exp Region 4'!$W$9, 0)","v":{"v":0,"d":"$0.00"}},{"$f":"IFERROR('MMA Rev-Exp Region 4'!$X$57/'MMA Rev-Exp Region 4'!$X$9, 0)","v":{"v":0,"d":"$0.00"}},{"$f":"IFERROR('MMA Rev-Exp Region 4'!$Y$57/'MMA Rev-Exp Region 4'!$Y$9, 0)","v":{"v":0,"d":"$0.00"}}]
["MMA",null,null,2016,"2016-12-31","Q2","2017-06-30","Region 4","Operating Expense","Medical Benefits Expense","Pharmacy Services","8.3","Ending IBNP for Prescription Drugs",{"$f":"IFERROR('MMA Rev-Exp Region 4'!$O$58/'MMA Rev-Exp Region 4'!$O$9, 0)","v":{"v":0,"d":"$0.00"}},{"$f":"IFERROR('MMA Rev-Exp Region 4'!$P$58/'MMA Rev-Exp Region 4'!$P$9, 0)","v":{"v":0,"d":"$0.00"}},{"$f":"IFERROR('MMA Rev-Exp Region 4'!$Q$58/'MMA Rev-Exp Region 4'!$Q$9, 0)","v":{"v":0,"d":"$0.00"}},{"$f":"IFERROR('MMA Rev-Exp Region 4'!$R$58/'MMA Rev-Exp Region 4'!$R$9, 0)","v":{"v":0,"d":"$0.00"}},{"$f":"IFERROR('MMA Rev-Exp Region 4'!$S$58/'MMA Rev-Exp Region 4'!$S$9, 0)","v":{"v":0,"d":"$0.00"}},{"$f":"IFERROR('MMA Rev-Exp Region 4'!$T$58/'MMA Rev-Exp Region 4'!$T$9, 0)","v":{"v":0,"d":"$0.00"}},{"$f":"IFERROR('MMA Rev-Exp Region 4'!$U$58/'MMA Rev-Exp Region 4'!$U$9, 0)","v":{"v":0,"d":"$0.00"}},{"$f":"IFERROR('MMA Rev-Exp Region 4'!$V$58/'MMA Rev-Exp Region 4'!$V$9, 0)","v":{"v":0,"d":"$0.00"}},{"$f":"IFERROR('MMA Rev-Exp Region 4'!$W$58/'MMA Rev-Exp Region 4'!$W$9, 0)","v":{"v":0,"d":"$0.00"}},{"$f":"IFERROR('MMA Rev-Exp Region 4'!$X$58/'MMA Rev-Exp Region 4'!$X$9, 0)","v":{"v":0,"d":"$0.00"}},{"$f":"IFERROR('MMA Rev-Exp Region 4'!$Y$58/'MMA Rev-Exp Region 4'!$Y$9, 0)","v":{"v":0,"d":"$0.00"}}]
["MMA",null,null,2016,"2016-12-31","Q2","2017-06-30","Region 4","Operating Expense","Medical Benefits Expense","Pharmacy Services","8.4","Prescription Drug Rebates ",{"$f":"IFERROR('MMA Rev-Exp Region 4'!$O$59/'MMA Rev-Exp Region 4'!$O$9, 0)","v":{"v":0,"d":"$0.00"}},{"$f":"IFERROR('MMA Rev-Exp Region 4'!$P$59/'MMA Rev-Exp Region 4'!$P$9, 0)","v":{"v":0,"d":"$0.00"}},{"$f":"IFERROR('MMA Rev-Exp Region 4'!$Q$59/'MMA Rev-Exp Region 4'!$Q$9, 0)","v":{"v":0,"d":"$0.00"}},{"$f":"IFERROR('MMA Rev-Exp Region 4'!$R$59/'MMA Rev-Exp Region 4'!$R$9, 0)","v":{"v":0,"d":"$0.00"}},{"$f":"IFERROR('MMA Rev-Exp Region 4'!$S$59/'MMA Rev-Exp Region 4'!$S$9, 0)","v":{"v":0,"d":"$0.00"}},{"$f":"IFERROR('MMA Rev-Exp Region 4'!$T$59/'MMA Rev-Exp Region 4'!$T$9, 0)","v":{"v":0,"d":"$0.00"}},{"$f":"IFERROR('MMA Rev-Exp Region 4'!$U$59/'MMA Rev-Exp Region 4'!$U$9, 0)","v":{"v":0,"d":"$0.00"}},{"$f":"IFERROR('MMA Rev-Exp Region 4'!$V$59/'MMA Rev-Exp Region 4'!$V$9, 0)","v":{"v":0,"d":"$0.00"}},{"$f":"IFERROR('MMA Rev-Exp Region 4'!$W$59/'MMA Rev-Exp Region 4'!$W$9, 0)","v":{"v":0,"d":"$0.00"}},{"$f":"IFERROR('MMA Rev-Exp Region 4'!$X$59/'MMA Rev-Exp Region 4'!$X$9, 0)","v":{"v":0,"d":"$0.00"}},{"$f":"IFERROR('MMA Rev-Exp Region 4'!$Y$59/'MMA Rev-Exp Region 4'!$Y$9, 0)","v":{"v":0,"d":"$0.00"}}]
["MMA",null,null,2016,"2016-12-31","Q2","2017-06-30","Region 4","Operating Expense","Medical Benefits Expense","Pharmacy Services","8.5","Ending accrual for Rebates receivable",{"$f":"IFERROR('MMA Rev-Exp Region 4'!$O$60/'MMA Rev-Exp Region 4'!$O$9, 0)","v":{"v":0,"d":"$0.00"}},{"$f":"IFERROR('MMA Rev-Exp Region 4'!$P$60/'MMA Rev-Exp Region 4'!$P$9, 0)","v":{"v":0,"d":"$0.00"}},{"$f":"IFERROR('MMA Rev-Exp Region 4'!$Q$60/'MMA Rev-Exp Region 4'!$Q$9, 0)","v":{"v":0,"d":"$0.00"}},{"$f":"IFERROR('MMA Rev-Exp Region 4'!$R$60/'MMA Rev-Exp Region 4'!$R$9, 0)","v":{"v":0,"d":"$0.00"}},{"$f":"IFERROR('MMA Rev-Exp Region 4'!$S$60/'MMA Rev-Exp Region 4'!$S$9, 0)","v":{"v":0,"d":"$0.00"}},{"$f":"IFERROR('MMA Rev-Exp Region 4'!$T$60/'MMA Rev-Exp Region 4'!$T$9, 0)","v":{"v":0,"d":"$0.00"}},{"$f":"IFERROR('MMA Rev-Exp Region 4'!$U$60/'MMA Rev-Exp Region 4'!$U$9, 0)","v":{"v":0,"d":"$0.00"}},{"$f":"IFERROR('MMA Rev-Exp Region 4'!$V$60/'MMA Rev-Exp Region 4'!$V$9, 0)","v":{"v":0,"d":"$0.00"}},{"$f":"IFERROR('MMA Rev-Exp Region 4'!$W$60/'MMA Rev-Exp Region 4'!$W$9, 0)","v":{"v":0,"d":"$0.00"}},{"$f":"IFERROR('MMA Rev-Exp Region 4'!$X$60/'MMA Rev-Exp Region 4'!$X$9, 0)","v":{"v":0,"d":"$0.00"}},{"$f":"IFERROR('MMA Rev-Exp Region 4'!$Y$60/'MMA Rev-Exp Region 4'!$Y$9, 0)","v":{"v":0,"d":"$0.00"}}]
["MMA",null,null,2016,"2016-12-31","Q2","2017-06-30","Region 4","Operating Expense","Medical Benefits Expense","Pharmacy Services","8.6","Prescription Drugs Subcapitation",{"$f":"IFERROR('MMA Rev-Exp Region 4'!$O$61/'MMA Rev-Exp Region 4'!$O$9, 0)","v":{"v":0,"d":"$0.00"}},{"$f":"IFERROR('MMA Rev-Exp Region 4'!$P$61/'MMA Rev-Exp Region 4'!$P$9, 0)","v":{"v":0,"d":"$0.00"}},{"$f":"IFERROR('MMA Rev-Exp Region 4'!$Q$61/'MMA Rev-Exp Region 4'!$Q$9, 0)","v":{"v":0,"d":"$0.00"}},{"$f":"IFERROR('MMA Rev-Exp Region 4'!$R$61/'MMA Rev-Exp Region 4'!$R$9, 0)","v":{"v":0,"d":"$0.00"}},{"$f":"IFERROR('MMA Rev-Exp Region 4'!$S$61/'MMA Rev-Exp Region 4'!$S$9, 0)","v":{"v":0,"d":"$0.00"}},{"$f":"IFERROR('MMA Rev-Exp Region 4'!$T$61/'MMA Rev-Exp Region 4'!$T$9, 0)","v":{"v":0,"d":"$0.00"}},{"$f":"IFERROR('MMA Rev-Exp Region 4'!$U$61/'MMA Rev-Exp Region 4'!$U$9, 0)","v":{"v":0,"d":"$0.00"}},{"$f":"IFERROR('MMA Rev-Exp Region 4'!$V$61/'MMA Rev-Exp Region 4'!$V$9, 0)","v":{"v":0,"d":"$0.00"}},{"$f":"IFERROR('MMA Rev-Exp Region 4'!$W$61/'MMA Rev-Exp Region 4'!$W$9, 0)","v":{"v":0,"d":"$0.00"}},{"$f":"IFERROR('MMA Rev-Exp Region 4'!$X$61/'MMA Rev-Exp Region 4'!$X$9, 0)","v":{"v":0,"d":"$0.00"}},{"$f":"IFERROR('MMA Rev-Exp Region 4'!$Y$61/'MMA Rev-Exp Region 4'!$Y$9, 0)","v":{"v":0,"d":"$0.00"}}]
["MMA",null,null,2016,"2016-12-31","Q2","2017-06-30","Region 4","Operating Expense","Medical Benefits Expense","Pharmacy Services","8.7","Prescription Drug Settlements",{"$f":"IFERROR('MMA Rev-Exp Region 4'!$O$62/'MMA Rev-Exp Region 4'!$O$9, 0)","v":{"v":0,"d":"$0.00"}},{"$f":"IFERROR('MMA Rev-Exp Region 4'!$P$62/'MMA Rev-Exp Region 4'!$P$9, 0)","v":{"v":0,"d":"$0.00"}},{"$f":"IFERROR('MMA Rev-Exp Region 4'!$Q$62/'MMA Rev-Exp Region 4'!$Q$9, 0)","v":{"v":0,"d":"$0.00"}},{"$f":"IFERROR('MMA Rev-Exp Region 4'!$R$62/'MMA Rev-Exp Region 4'!$R$9, 0)","v":{"v":0,"d":"$0.00"}},{"$f":"IFERROR('MMA Rev-Exp Region 4'!$S$62/'MMA Rev-Exp Region 4'!$S$9, 0)","v":{"v":0,"d":"$0.00"}},{"$f":"IFERROR('MMA Rev-Exp Region 4'!$T$62/'MMA Rev-Exp Region 4'!$T$9, 0)","v":{"v":0,"d":"$0.00"}},{"$f":"IFERROR('MMA Rev-Exp Region 4'!$U$62/'MMA Rev-Exp Region 4'!$U$9, 0)","v":{"v":0,"d":"$0.00"}},{"$f":"IFERROR('MMA Rev-Exp Region 4'!$V$62/'MMA Rev-Exp Region 4'!$V$9, 0)","v":{"v":0,"d":"$0.00"}},{"$f":"IFERROR('MMA Rev-Exp Region 4'!$W$62/'MMA Rev-Exp Region 4'!$W$9, 0)","v":{"v":0,"d":"$0.00"}},{"$f":"IFERROR('MMA Rev-Exp Region 4'!$X$62/'MMA Rev-Exp Region 4'!$X$9, 0)","v":{"v":0,"d":"$0.00"}},{"$f":"IFERROR('MMA Rev-Exp Region 4'!$Y$62/'MMA Rev-Exp Region 4'!$Y$9, 0)","v":{"v":0,"d":"$0.00"}}]
["MMA",null,null,2016,"2016-12-31","Q2","2017-06-30","Region 4","Operating Expense","Medical Benefits Expense","Other MMA Services",9.1,"Home Health, Private Duty Nursing, Personal Care FFS",{"$f":"IFERROR('MMA Rev-Exp Region 4'!$O$64/'MMA Rev-Exp Region 4'!$O$9, 0)","v":{"v":0,"d":"$0.00"}},{"$f":"IFERROR('MMA Rev-Exp Region 4'!$P$64/'MMA Rev-Exp Region 4'!$P$9, 0)","v":{"v":0,"d":"$0.00"}},{"$f":"IFERROR('MMA Rev-Exp Region 4'!$Q$64/'MMA Rev-Exp Region 4'!$Q$9, 0)","v":{"v":0,"d":"$0.00"}},{"$f":"IFERROR('MMA Rev-Exp Region 4'!$R$64/'MMA Rev-Exp Region 4'!$R$9, 0)","v":{"v":0,"d":"$0.00"}},{"$f":"IFERROR('MMA Rev-Exp Region 4'!$S$64/'MMA Rev-Exp Region 4'!$S$9, 0)","v":{"v":0,"d":"$0.00"}},{"$f":"IFERROR('MMA Rev-Exp Region 4'!$T$64/'MMA Rev-Exp Region 4'!$T$9, 0)","v":{"v":0,"d":"$0.00"}},{"$f":"IFERROR('MMA Rev-Exp Region 4'!$U$64/'MMA Rev-Exp Region 4'!$U$9, 0)","v":{"v":0,"d":"$0.00"}},{"$f":"IFERROR('MMA Rev-Exp Region 4'!$V$64/'MMA Rev-Exp Region 4'!$V$9, 0)","v":{"v":0,"d":"$0.00"}},{"$f":"IFERROR('MMA Rev-Exp Region 4'!$W$64/'MMA Rev-Exp Region 4'!$W$9, 0)","v":{"v":0,"d":"$0.00"}},{"$f":"IFERROR('MMA Rev-Exp Region 4'!$X$64/'MMA Rev-Exp Region 4'!$X$9, 0)","v":{"v":0,"d":"$0.00"}},{"$f":"IFERROR('MMA Rev-Exp Region 4'!$Y$64/'MMA Rev-Exp Region 4'!$Y$9, 0)","v":{"v":0,"d":"$0.00"}}]
["MMA",null,null,2016,"2016-12-31","Q2","2017-06-30","Region 4","Operating Expense","Medical Benefits Expense","Other MMA Services","9.2","Hospice FFS",{"$f":"IFERROR('MMA Rev-Exp Region 4'!$O$65/'MMA Rev-Exp Region 4'!$O$9, 0)","v":{"v":0,"d":"$0.00"}},{"$f":"IFERROR('MMA Rev-Exp Region 4'!$P$65/'MMA Rev-Exp Region 4'!$P$9, 0)","v":{"v":0,"d":"$0.00"}},{"$f":"IFERROR('MMA Rev-Exp Region 4'!$Q$65/'MMA Rev-Exp Region 4'!$Q$9, 0)","v":{"v":0,"d":"$0.00"}},{"$f":"IFERROR('MMA Rev-Exp Region 4'!$R$65/'MMA Rev-Exp Region 4'!$R$9, 0)","v":{"v":0,"d":"$0.00"}},{"$f":"IFERROR('MMA Rev-Exp Region 4'!$S$65/'MMA Rev-Exp Region 4'!$S$9, 0)","v":{"v":0,"d":"$0.00"}},{"$f":"IFERROR('MMA Rev-Exp Region 4'!$T$65/'MMA Rev-Exp Region 4'!$T$9, 0)","v":{"v":0,"d":"$0.00"}},{"$f":"IFERROR('MMA Rev-Exp Region 4'!$U$65/'MMA Rev-Exp Region 4'!$U$9, 0)","v":{"v":0,"d":"$0.00"}},{"$f":"IFERROR('MMA Rev-Exp Region 4'!$V$65/'MMA Rev-Exp Region 4'!$V$9, 0)","v":{"v":0,"d":"$0.00"}},{"$f":"IFERROR('MMA Rev-Exp Region 4'!$W$65/'MMA Rev-Exp Region 4'!$W$9, 0)","v":{"v":0,"d":"$0.00"}},{"$f":"IFERROR('MMA Rev-Exp Region 4'!$X$65/'MMA Rev-Exp Region 4'!$X$9, 0)","v":{"v":0,"d":"$0.00"}},{"$f":"IFERROR('MMA Rev-Exp Region 4'!$Y$65/'MMA Rev-Exp Region 4'!$Y$9, 0)","v":{"v":0,"d":"$0.00"}}]
["MMA",null,null,2016,"2016-12-31","Q2","2017-06-30","Region 4","Operating Expense","Medical Benefits Expense","Other MMA Services","9.3","DME FFS",{"$f":"IFERROR('MMA Rev-Exp Region 4'!$O$66/'MMA Rev-Exp Region 4'!$O$9, 0)","v":{"v":0,"d":"$0.00"}},{"$f":"IFERROR('MMA Rev-Exp Region 4'!$P$66/'MMA Rev-Exp Region 4'!$P$9, 0)","v":{"v":0,"d":"$0.00"}},{"$f":"IFERROR('MMA Rev-Exp Region 4'!$Q$66/'MMA Rev-Exp Region 4'!$Q$9, 0)","v":{"v":0,"d":"$0.00"}},{"$f":"IFERROR('MMA Rev-Exp Region 4'!$R$66/'MMA Rev-Exp Region 4'!$R$9, 0)","v":{"v":0,"d":"$0.00"}},{"$f":"IFERROR('MMA Rev-Exp Region 4'!$S$66/'MMA Rev-Exp Region 4'!$S$9, 0)","v":{"v":0,"d":"$0.00"}},{"$f":"IFERROR('MMA Rev-Exp Region 4'!$T$66/'MMA Rev-Exp Region 4'!$T$9, 0)","v":{"v":0,"d":"$0.00"}},{"$f":"IFERROR('MMA Rev-Exp Region 4'!$U$66/'MMA Rev-Exp Region 4'!$U$9, 0)","v":{"v":0,"d":"$0.00"}},{"$f":"IFERROR('MMA Rev-Exp Region 4'!$V$66/'MMA Rev-Exp Region 4'!$V$9, 0)","v":{"v":0,"d":"$0.00"}},{"$f":"IFERROR('MMA Rev-Exp Region 4'!$W$66/'MMA Rev-Exp Region 4'!$W$9, 0)","v":{"v":0,"d":"$0.00"}},{"$f":"IFERROR('MMA Rev-Exp Region 4'!$X$66/'MMA Rev-Exp Region 4'!$X$9, 0)","v":{"v":0,"d":"$0.00"}},{"$f":"IFERROR('MMA Rev-Exp Region 4'!$Y$66/'MMA Rev-Exp Region 4'!$Y$9, 0)","v":{"v":0,"d":"$0.00"}}]
["MMA",null,null,2016,"2016-12-31","Q2","2017-06-30","Region 4","Operating Expense","Medical Benefits Expense","Other MMA Services","9.4","Other State Plan Services FFS",{"$f":"IFERROR('MMA Rev-Exp Region 4'!$O$67/'MMA Rev-Exp Region 4'!$O$9, 0)","v":{"v":0,"d":"$0.00"}},{"$f":"IFERROR('MMA Rev-Exp Region 4'!$P$67/'MMA Rev-Exp Region 4'!$P$9, 0)","v":{"v":0,"d":"$0.00"}},{"$f":"IFERROR('MMA Rev-Exp Region 4'!$Q$67/'MMA Rev-Exp Region 4'!$Q$9, 0)","v":{"v":0,"d":"$0.00"}},{"$f":"IFERROR('MMA Rev-Exp Region 4'!$R$67/'MMA Rev-Exp Region 4'!$R$9, 0)","v":{"v":0,"d":"$0.00"}},{"$f":"IFERROR('MMA Rev-Exp Region 4'!$S$67/'MMA Rev-Exp Region 4'!$S$9, 0)","v":{"v":0,"d":"$0.00"}},{"$f":"IFERROR('MMA Rev-Exp Region 4'!$T$67/'MMA Rev-Exp Region 4'!$T$9, 0)","v":{"v":0,"d":"$0.00"}},{"$f":"IFERROR('MMA Rev-Exp Region 4'!$U$67/'MMA Rev-Exp Region 4'!$U$9, 0)","v":{"v":0,"d":"$0.00"}},{"$f":"IFERROR('MMA Rev-Exp Region 4'!$V$67/'MMA Rev-Exp Region 4'!$V$9, 0)","v":{"v":0,"d":"$0.00"}},{"$f":"IFERROR('MMA Rev-Exp Region 4'!$W$67/'MMA Rev-Exp Region 4'!$W$9, 0)","v":{"v":0,"d":"$0.00"}},{"$f":"IFERROR('MMA Rev-Exp Region 4'!$X$67/'MMA Rev-Exp Region 4'!$X$9, 0)","v":{"v":0,"d":"$0.00"}},{"$f":"IFERROR('MMA Rev-Exp Region 4'!$Y$67/'MMA Rev-Exp Region 4'!$Y$9, 0)","v":{"v":0,"d":"$0.00"}}]
["MMA",null,null,2016,"2016-12-31","Q2","2017-06-30","Region 4","Operating Expense","Medical Benefits Expense","Other MMA Services","9.5","Other Services Subcapitation",{"$f":"IFERROR('MMA Rev-Exp Region 4'!$O$68/'MMA Rev-Exp Region 4'!$O$9, 0)","v":{"v":0,"d":"$0.00"}},{"$f":"IFERROR('MMA Rev-Exp Region 4'!$P$68/'MMA Rev-Exp Region 4'!$P$9, 0)","v":{"v":0,"d":"$0.00"}},{"$f":"IFERROR('MMA Rev-Exp Region 4'!$Q$68/'MMA Rev-Exp Region 4'!$Q$9, 0)","v":{"v":0,"d":"$0.00"}},{"$f":"IFERROR('MMA Rev-Exp Region 4'!$R$68/'MMA Rev-Exp Region 4'!$R$9, 0)","v":{"v":0,"d":"$0.00"}},{"$f":"IFERROR('MMA Rev-Exp Region 4'!$S$68/'MMA Rev-Exp Region 4'!$S$9, 0)","v":{"v":0,"d":"$0.00"}},{"$f":"IFERROR('MMA Rev-Exp Region 4'!$T$68/'MMA Rev-Exp Region 4'!$T$9, 0)","v":{"v":0,"d":"$0.00"}},{"$f":"IFERROR('MMA Rev-Exp Region 4'!$U$68/'MMA Rev-Exp Region 4'!$U$9, 0)","v":{"v":0,"d":"$0.00"}},{"$f":"IFERROR('MMA Rev-Exp Region 4'!$V$68/'MMA Rev-Exp Region 4'!$V$9, 0)","v":{"v":0,"d":"$0.00"}},{"$f":"IFERROR('MMA Rev-Exp Region 4'!$W$68/'MMA Rev-Exp Region 4'!$W$9, 0)","v":{"v":0,"d":"$0.00"}},{"$f":"IFERROR('MMA Rev-Exp Region 4'!$X$68/'MMA Rev-Exp Region 4'!$X$9, 0)","v":{"v":0,"d":"$0.00"}},{"$f":"IFERROR('MMA Rev-Exp Region 4'!$Y$68/'MMA Rev-Exp Region 4'!$Y$9, 0)","v":{"v":0,"d":"$0.00"}}]
["MMA",null,null,2016,"2016-12-31","Q2","2017-06-30","Region 4","Operating Expense","Medical Benefits Expense","Other MMA Services","9.6","Ending IBNP for Other Services",{"$f":"IFERROR('MMA Rev-Exp Region 4'!$O$69/'MMA Rev-Exp Region 4'!$O$9, 0)","v":{"v":0,"d":"$0.00"}},{"$f":"IFERROR('MMA Rev-Exp Region 4'!$P$69/'MMA Rev-Exp Region 4'!$P$9, 0)","v":{"v":0,"d":"$0.00"}},{"$f":"IFERROR('MMA Rev-Exp Region 4'!$Q$69/'MMA Rev-Exp Region 4'!$Q$9, 0)","v":{"v":0,"d":"$0.00"}},{"$f":"IFERROR('MMA Rev-Exp Region 4'!$R$69/'MMA Rev-Exp Region 4'!$R$9, 0)","v":{"v":0,"d":"$0.00"}},{"$f":"IFERROR('MMA Rev-Exp Region 4'!$S$69/'MMA Rev-Exp Region 4'!$S$9, 0)","v":{"v":0,"d":"$0.00"}},{"$f":"IFERROR('MMA Rev-Exp Region 4'!$T$69/'MMA Rev-Exp Region 4'!$T$9, 0)","v":{"v":0,"d":"$0.00"}},{"$f":"IFERROR('MMA Rev-Exp Region 4'!$U$69/'MMA Rev-Exp Region 4'!$U$9, 0)","v":{"v":0,"d":"$0.00"}},{"$f":"IFERROR('MMA Rev-Exp Region 4'!$V$69/'MMA Rev-Exp Region 4'!$V$9, 0)","v":{"v":0,"d":"$0.00"}},{"$f":"IFERROR('MMA Rev-Exp Region 4'!$W$69/'MMA Rev-Exp Region 4'!$W$9, 0)","v":{"v":0,"d":"$0.00"}},{"$f":"IFERROR('MMA Rev-Exp Region 4'!$X$69/'MMA Rev-Exp Region 4'!$X$9, 0)","v":{"v":0,"d":"$0.00"}},{"$f":"IFERROR('MMA Rev-Exp Region 4'!$Y$69/'MMA Rev-Exp Region 4'!$Y$9, 0)","v":{"v":0,"d":"$0.00"}}]
["MMA",null,null,2016,"2016-12-31","Q2","2017-06-30","Region 4","Operating Expense","Medical Benefits Expense","Other MMA Services","9.7","Other Services Settlements",{"$f":"IFERROR('MMA Rev-Exp Region 4'!$O$70/'MMA Rev-Exp Region 4'!$O$9, 0)","v":{"v":0,"d":"$0.00"}},{"$f":"IFERROR('MMA Rev-Exp Region 4'!$P$70/'MMA Rev-Exp Region 4'!$P$9, 0)","v":{"v":0,"d":"$0.00"}},{"$f":"IFERROR('MMA Rev-Exp Region 4'!$Q$70/'MMA Rev-Exp Region 4'!$Q$9, 0)","v":{"v":0,"d":"$0.00"}},{"$f":"IFERROR('MMA Rev-Exp Region 4'!$R$70/'MMA Rev-Exp Region 4'!$R$9, 0)","v":{"v":0,"d":"$0.00"}},{"$f":"IFERROR('MMA Rev-Exp Region 4'!$S$70/'MMA Rev-Exp Region 4'!$S$9, 0)","v":{"v":0,"d":"$0.00"}},{"$f":"IFERROR('MMA Rev-Exp Region 4'!$T$70/'MMA Rev-Exp Region 4'!$T$9, 0)","v":{"v":0,"d":"$0.00"}},{"$f":"IFERROR('MMA Rev-Exp Region 4'!$U$70/'MMA Rev-Exp Region 4'!$U$9, 0)","v":{"v":0,"d":"$0.00"}},{"$f":"IFERROR('MMA Rev-Exp Region 4'!$V$70/'MMA Rev-Exp Region 4'!$V$9, 0)","v":{"v":0,"d":"$0.00"}},{"$f":"IFERROR('MMA Rev-Exp Region 4'!$W$70/'MMA Rev-Exp Region 4'!$W$9, 0)","v":{"v":0,"d":"$0.00"}},{"$f":"IFERROR('MMA Rev-Exp Region 4'!$X$70/'MMA Rev-Exp Region 4'!$X$9, 0)","v":{"v":0,"d":"$0.00"}},{"$f":"IFERROR('MMA Rev-Exp Region 4'!$Y$70/'MMA Rev-Exp Region 4'!$Y$9, 0)","v":{"v":0,"d":"$0.00"}}]
["MMA",null,null,2016,"2016-12-31","Q2","2017-06-30","Region 4","Operating Expense","Medical Benefits Expense","Expanded Benefits","10.1","Expanded Benefits FFS",{"$f":"IFERROR('MMA Rev-Exp Region 4'!$O$72/'MMA Rev-Exp Region 4'!$O$9, 0)","v":{"v":0,"d":"$0.00"}},{"$f":"IFERROR('MMA Rev-Exp Region 4'!$P$72/'MMA Rev-Exp Region 4'!$P$9, 0)","v":{"v":0,"d":"$0.00"}},{"$f":"IFERROR('MMA Rev-Exp Region 4'!$Q$72/'MMA Rev-Exp Region 4'!$Q$9, 0)","v":{"v":0,"d":"$0.00"}},{"$f":"IFERROR('MMA Rev-Exp Region 4'!$R$72/'MMA Rev-Exp Region 4'!$R$9, 0)","v":{"v":0,"d":"$0.00"}},{"$f":"IFERROR('MMA Rev-Exp Region 4'!$S$72/'MMA Rev-Exp Region 4'!$S$9, 0)","v":{"v":0,"d":"$0.00"}},{"$f":"IFERROR('MMA Rev-Exp Region 4'!$T$72/'MMA Rev-Exp Region 4'!$T$9, 0)","v":{"v":0,"d":"$0.00"}},{"$f":"IFERROR('MMA Rev-Exp Region 4'!$U$72/'MMA Rev-Exp Region 4'!$U$9, 0)","v":{"v":0,"d":"$0.00"}},{"$f":"IFERROR('MMA Rev-Exp Region 4'!$V$72/'MMA Rev-Exp Region 4'!$V$9, 0)","v":{"v":0,"d":"$0.00"}},{"$f":"IFERROR('MMA Rev-Exp Region 4'!$W$72/'MMA Rev-Exp Region 4'!$W$9, 0)","v":{"v":0,"d":"$0.00"}},{"$f":"IFERROR('MMA Rev-Exp Region 4'!$X$72/'MMA Rev-Exp Region 4'!$X$9, 0)","v":{"v":0,"d":"$0.00"}},{"$f":"IFERROR('MMA Rev-Exp Region 4'!$Y$72/'MMA Rev-Exp Region 4'!$Y$9, 0)","v":{"v":0,"d":"$0.00"}}]
["MMA",null,null,2016,"2016-12-31","Q2","2017-06-30","Region 4","Operating Expense","Medical Benefits Expense","Expanded Benefits","10.2","Expanded benefits Subcapitation",{"$f":"IFERROR('MMA Rev-Exp Region 4'!$O$73/'MMA Rev-Exp Region 4'!$O$9, 0)","v":{"v":0,"d":"$0.00"}},{"$f":"IFERROR('MMA Rev-Exp Region 4'!$P$73/'MMA Rev-Exp Region 4'!$P$9, 0)","v":{"v":0,"d":"$0.00"}},{"$f":"IFERROR('MMA Rev-Exp Region 4'!$Q$73/'MMA Rev-Exp Region 4'!$Q$9, 0)","v":{"v":0,"d":"$0.00"}},{"$f":"IFERROR('MMA Rev-Exp Region 4'!$R$73/'MMA Rev-Exp Region 4'!$R$9, 0)","v":{"v":0,"d":"$0.00"}},{"$f":"IFERROR('MMA Rev-Exp Region 4'!$S$73/'MMA Rev-Exp Region 4'!$S$9, 0)","v":{"v":0,"d":"$0.00"}},{"$f":"IFERROR('MMA Rev-Exp Region 4'!$T$73/'MMA Rev-Exp Region 4'!$T$9, 0)","v":{"v":0,"d":"$0.00"}},{"$f":"IFERROR('MMA Rev-Exp Region 4'!$U$73/'MMA Rev-Exp Region 4'!$U$9, 0)","v":{"v":0,"d":"$0.00"}},{"$f":"IFERROR('MMA Rev-Exp Region 4'!$V$73/'MMA Rev-Exp Region 4'!$V$9, 0)","v":{"v":0,"d":"$0.00"}},{"$f":"IFERROR('MMA Rev-Exp Region 4'!$W$73/'MMA Rev-Exp Region 4'!$W$9, 0)","v":{"v":0,"d":"$0.00"}},{"$f":"IFERROR('MMA Rev-Exp Region 4'!$X$73/'MMA Rev-Exp Region 4'!$X$9, 0)","v":{"v":0,"d":"$0.00"}},{"$f":"IFERROR('MMA Rev-Exp Region 4'!$Y$73/'MMA Rev-Exp Region 4'!$Y$9, 0)","v":{"v":0,"d":"$0.00"}}]
["MMA",null,null,2016,"2016-12-31","Q2","2017-06-30","Region 4","Operating Expense","Medical Benefits Expense","Expanded Benefits","10.3","Ending IBNP for Expanded Benefits",{"$f":"IFERROR('MMA Rev-Exp Region 4'!$O$74/'MMA Rev-Exp Region 4'!$O$9, 0)","v":{"v":0,"d":"$0.00"}},{"$f":"IFERROR('MMA Rev-Exp Region 4'!$P$74/'MMA Rev-Exp Region 4'!$P$9, 0)","v":{"v":0,"d":"$0.00"}},{"$f":"IFERROR('MMA Rev-Exp Region 4'!$Q$74/'MMA Rev-Exp Region 4'!$Q$9, 0)","v":{"v":0,"d":"$0.00"}},{"$f":"IFERROR('MMA Rev-Exp Region 4'!$R$74/'MMA Rev-Exp Region 4'!$R$9, 0)","v":{"v":0,"d":"$0.00"}},{"$f":"IFERROR('MMA Rev-Exp Region 4'!$S$74/'MMA Rev-Exp Region 4'!$S$9, 0)","v":{"v":0,"d":"$0.00"}},{"$f":"IFERROR('MMA Rev-Exp Region 4'!$T$74/'MMA Rev-Exp Region 4'!$T$9, 0)","v":{"v":0,"d":"$0.00"}},{"$f":"IFERROR('MMA Rev-Exp Region 4'!$U$74/'MMA Rev-Exp Region 4'!$U$9, 0)","v":{"v":0,"d":"$0.00"}},{"$f":"IFERROR('MMA Rev-Exp Region 4'!$V$74/'MMA Rev-Exp Region 4'!$V$9, 0)","v":{"v":0,"d":"$0.00"}},{"$f":"IFERROR('MMA Rev-Exp Region 4'!$W$74/'MMA Rev-Exp Region 4'!$W$9, 0)","v":{"v":0,"d":"$0.00"}},{"$f":"IFERROR('MMA Rev-Exp Region 4'!$X$74/'MMA Rev-Exp Region 4'!$X$9, 0)","v":{"v":0,"d":"$0.00"}},{"$f":"IFERROR('MMA Rev-Exp Region 4'!$Y$74/'MMA Rev-Exp Region 4'!$Y$9, 0)","v":{"v":0,"d":"$0.00"}}]
["MMA",null,null,2016,"2016-12-31","Q2","2017-06-30","Region 4","Operating Expense","Medical Benefits Expense","Expanded Benefits","10.4","Expanded Benefits Settlements",{"$f":"IFERROR('MMA Rev-Exp Region 4'!$O$75/'MMA Rev-Exp Region 4'!$O$9, 0)","v":{"v":0,"d":"$0.00"}},{"$f":"IFERROR('MMA Rev-Exp Region 4'!$P$75/'MMA Rev-Exp Region 4'!$P$9, 0)","v":{"v":0,"d":"$0.00"}},{"$f":"IFERROR('MMA Rev-Exp Region 4'!$Q$75/'MMA Rev-Exp Region 4'!$Q$9, 0)","v":{"v":0,"d":"$0.00"}},{"$f":"IFERROR('MMA Rev-Exp Region 4'!$R$75/'MMA Rev-Exp Region 4'!$R$9, 0)","v":{"v":0,"d":"$0.00"}},{"$f":"IFERROR('MMA Rev-Exp Region 4'!$S$75/'MMA Rev-Exp Region 4'!$S$9, 0)","v":{"v":0,"d":"$0.00"}},{"$f":"IFERROR('MMA Rev-Exp Region 4'!$T$75/'MMA Rev-Exp Region 4'!$T$9, 0)","v":{"v":0,"d":"$0.00"}},{"$f":"IFERROR('MMA Rev-Exp Region 4'!$U$75/'MMA Rev-Exp Region 4'!$U$9, 0)","v":{"v":0,"d":"$0.00"}},{"$f":"IFERROR('MMA Rev-Exp Region 4'!$V$75/'MMA Rev-Exp Region 4'!$V$9, 0)","v":{"v":0,"d":"$0.00"}},{"$f":"IFERROR('MMA Rev-Exp Region 4'!$W$75/'MMA Rev-Exp Region 4'!$W$9, 0)","v":{"v":0,"d":"$0.00"}},{"$f":"IFERROR('MMA Rev-Exp Region 4'!$X$75/'MMA Rev-Exp Region 4'!$X$9, 0)","v":{"v":0,"d":"$0.00"}},{"$f":"IFERROR('MMA Rev-Exp Region 4'!$Y$75/'MMA Rev-Exp Region 4'!$Y$9, 0)","v":{"v":0,"d":"$0.00"}}]
["MMA",null,null,2016,"2016-12-31","Q2","2017-06-30","Region 4","Operating Expense","Medical Benefits Expense","Other Medical","11.5","TPL & Fraud/Abuse Recoveries",{"$f":"IFERROR('MMA Rev-Exp Region 4'!$O$81/'MMA Rev-Exp Region 4'!$O$9, 0)","v":{"v":0,"d":"$0.00"}},{"$f":"IFERROR('MMA Rev-Exp Region 4'!$P$81/'MMA Rev-Exp Region 4'!$P$9, 0)","v":{"v":0,"d":"$0.00"}},{"$f":"IFERROR('MMA Rev-Exp Region 4'!$Q$81/'MMA Rev-Exp Region 4'!$Q$9, 0)","v":{"v":0,"d":"$0.00"}},{"$f":"IFERROR('MMA Rev-Exp Region 4'!$R$81/'MMA Rev-Exp Region 4'!$R$9, 0)","v":{"v":0,"d":"$0.00"}},{"$f":"IFERROR('MMA Rev-Exp Region 4'!$S$81/'MMA Rev-Exp Region 4'!$S$9, 0)","v":{"v":0,"d":"$0.00"}},{"$f":"IFERROR('MMA Rev-Exp Region 4'!$T$81/'MMA Rev-Exp Region 4'!$T$9, 0)","v":{"v":0,"d":"$0.00"}},{"$f":"IFERROR('MMA Rev-Exp Region 4'!$U$81/'MMA Rev-Exp Region 4'!$U$9, 0)","v":{"v":0,"d":"$0.00"}},{"$f":"IFERROR('MMA Rev-Exp Region 4'!$V$81/'MMA Rev-Exp Region 4'!$V$9, 0)","v":{"v":0,"d":"$0.00"}},{"$f":"IFERROR('MMA Rev-Exp Region 4'!$W$81/'MMA Rev-Exp Region 4'!$W$9, 0)","v":{"v":0,"d":"$0.00"}},{"$f":"IFERROR('MMA Rev-Exp Region 4'!$X$81/'MMA Rev-Exp Region 4'!$X$9, 0)","v":{"v":0,"d":"$0.00"}},{"$f":"IFERROR('MMA Rev-Exp Region 4'!$Y$81/'MMA Rev-Exp Region 4'!$Y$9, 0)","v":{"v":0,"d":"$0.00"}}]
["MMA",null,null,2016,"2016-12-31","Q2","2017-06-30","Region 4","Operating Expense","Medical Benefits Expense","Other Medical","11.6.1","Premium Deficiency Reserve",{"$f":"IFERROR('MMA Rev-Exp Region 4'!$O$82/'MMA Rev-Exp Region 4'!$O$9, 0)","v":{"v":0,"d":"$0.00"}},{"$f":"IFERROR('MMA Rev-Exp Region 4'!$P$82/'MMA Rev-Exp Region 4'!$P$9, 0)","v":{"v":0,"d":"$0.00"}},{"$f":"IFERROR('MMA Rev-Exp Region 4'!$Q$82/'MMA Rev-Exp Region 4'!$Q$9, 0)","v":{"v":0,"d":"$0.00"}},{"$f":"IFERROR('MMA Rev-Exp Region 4'!$R$82/'MMA Rev-Exp Region 4'!$R$9, 0)","v":{"v":0,"d":"$0.00"}},{"$f":"IFERROR('MMA Rev-Exp Region 4'!$S$82/'MMA Rev-Exp Region 4'!$S$9, 0)","v":{"v":0,"d":"$0.00"}},{"$f":"IFERROR('MMA Rev-Exp Region 4'!$T$82/'MMA Rev-Exp Region 4'!$T$9, 0)","v":{"v":0,"d":"$0.00"}},{"$f":"IFERROR('MMA Rev-Exp Region 4'!$U$82/'MMA Rev-Exp Region 4'!$U$9, 0)","v":{"v":0,"d":"$0.00"}},{"$f":"IFERROR('MMA Rev-Exp Region 4'!$V$82/'MMA Rev-Exp Region 4'!$V$9, 0)","v":{"v":0,"d":"$0.00"}},{"$f":"IFERROR('MMA Rev-Exp Region 4'!$W$82/'MMA Rev-Exp Region 4'!$W$9, 0)","v":{"v":0,"d":"$0.00"}},{"$f":"IFERROR('MMA Rev-Exp Region 4'!$X$82/'MMA Rev-Exp Region 4'!$X$9, 0)","v":{"v":0,"d":"$0.00"}},{"$f":"IFERROR('MMA Rev-Exp Region 4'!$Y$82/'MMA Rev-Exp Region 4'!$Y$9, 0)","v":{"v":0,"d":"$0.00"}}]
["MMA",null,null,2016,"2016-12-31","Q2","2017-06-30","Region 4","Operating Expense","Medical Benefits Expense","Other Medical","11.8","Reinsurance Premiums",{"$f":"IFERROR('MMA Rev-Exp Region 4'!$O$84/'MMA Rev-Exp Region 4'!$O$9, 0)","v":{"v":0,"d":"$0.00"}},{"$f":"IFERROR('MMA Rev-Exp Region 4'!$P$84/'MMA Rev-Exp Region 4'!$P$9, 0)","v":{"v":0,"d":"$0.00"}},{"$f":"IFERROR('MMA Rev-Exp Region 4'!$Q$84/'MMA Rev-Exp Region 4'!$Q$9, 0)","v":{"v":0,"d":"$0.00"}},{"$f":"IFERROR('MMA Rev-Exp Region 4'!$R$84/'MMA Rev-Exp Region 4'!$R$9, 0)","v":{"v":0,"d":"$0.00"}},{"$f":"IFERROR('MMA Rev-Exp Region 4'!$S$84/'MMA Rev-Exp Region 4'!$S$9, 0)","v":{"v":0,"d":"$0.00"}},{"$f":"IFERROR('MMA Rev-Exp Region 4'!$T$84/'MMA Rev-Exp Region 4'!$T$9, 0)","v":{"v":0,"d":"$0.00"}},{"$f":"IFERROR('MMA Rev-Exp Region 4'!$U$84/'MMA Rev-Exp Region 4'!$U$9, 0)","v":{"v":0,"d":"$0.00"}},{"$f":"IFERROR('MMA Rev-Exp Region 4'!$V$84/'MMA Rev-Exp Region 4'!$V$9, 0)","v":{"v":0,"d":"$0.00"}},{"$f":"IFERROR('MMA Rev-Exp Region 4'!$W$84/'MMA Rev-Exp Region 4'!$W$9, 0)","v":{"v":0,"d":"$0.00"}},{"$f":"IFERROR('MMA Rev-Exp Region 4'!$X$84/'MMA Rev-Exp Region 4'!$X$9, 0)","v":{"v":0,"d":"$0.00"}},{"$f":"IFERROR('MMA Rev-Exp Region 4'!$Y$84/'MMA Rev-Exp Region 4'!$Y$9, 0)","v":{"v":0,"d":"$0.00"}}]
["MMA",null,null,2016,"2016-12-31","Q2","2017-06-30","Region 4","Operating Expense","Medical Benefits Expense","Other Medical","11.9","Reinsurance Recoveries",{"$f":"IFERROR('MMA Rev-Exp Region 4'!$O$85/'MMA Rev-Exp Region 4'!$O$9, 0)","v":{"v":0,"d":"$0.00"}},{"$f":"IFERROR('MMA Rev-Exp Region 4'!$P$85/'MMA Rev-Exp Region 4'!$P$9, 0)","v":{"v":0,"d":"$0.00"}},{"$f":"IFERROR('MMA Rev-Exp Region 4'!$Q$85/'MMA Rev-Exp Region 4'!$Q$9, 0)","v":{"v":0,"d":"$0.00"}},{"$f":"IFERROR('MMA Rev-Exp Region 4'!$R$85/'MMA Rev-Exp Region 4'!$R$9, 0)","v":{"v":0,"d":"$0.00"}},{"$f":"IFERROR('MMA Rev-Exp Region 4'!$S$85/'MMA Rev-Exp Region 4'!$S$9, 0)","v":{"v":0,"d":"$0.00"}},{"$f":"IFERROR('MMA Rev-Exp Region 4'!$T$85/'MMA Rev-Exp Region 4'!$T$9, 0)","v":{"v":0,"d":"$0.00"}},{"$f":"IFERROR('MMA Rev-Exp Region 4'!$U$85/'MMA Rev-Exp Region 4'!$U$9, 0)","v":{"v":0,"d":"$0.00"}},{"$f":"IFERROR('MMA Rev-Exp Region 4'!$V$85/'MMA Rev-Exp Region 4'!$V$9, 0)","v":{"v":0,"d":"$0.00"}},{"$f":"IFERROR('MMA Rev-Exp Region 4'!$W$85/'MMA Rev-Exp Region 4'!$W$9, 0)","v":{"v":0,"d":"$0.00"}},{"$f":"IFERROR('MMA Rev-Exp Region 4'!$X$85/'MMA Rev-Exp Region 4'!$X$9, 0)","v":{"v":0,"d":"$0.00"}},{"$f":"IFERROR('MMA Rev-Exp Region 4'!$Y$85/'MMA Rev-Exp Region 4'!$Y$9, 0)","v":{"v":0,"d":"$0.00"}}]
["MMA",null,null,2016,"2016-12-31","Q2","2017-06-30","Region 4","Operating Expense","Administrative Expense","Administrative","12.1","Salaries & Benefits",{"$f":"IFERROR('MMA Rev-Exp Region 4'!$O$90/'MMA Rev-Exp Region 4'!$O$9, 0)","v":{"v":0,"d":"$0.00"}},{"$f":"IFERROR('MMA Rev-Exp Region 4'!$P$90/'MMA Rev-Exp Region 4'!$O$9, 0)","v":{"v":0,"d":"$0.00"}},{"$f":"IFERROR('MMA Rev-Exp Region 4'!$Q$90/'MMA Rev-Exp Region 4'!$O$9, 0)","v":{"v":0,"d":"$0.00"}},{"$f":"IFERROR('MMA Rev-Exp Region 4'!$R$90/'MMA Rev-Exp Region 4'!$R$9, 0)","v":{"v":0,"d":"$0.00"}},{"$f":"IFERROR('MMA Rev-Exp Region 4'!$S$90/'MMA Rev-Exp Region 4'!$S$9, 0)","v":{"v":0,"d":"$0.00"}},{"$f":"IFERROR('MMA Rev-Exp Region 4'!$T$90/'MMA Rev-Exp Region 4'!$T$9, 0)","v":{"v":0,"d":"$0.00"}},{"$f":"IFERROR('MMA Rev-Exp Region 4'!$U$90/'MMA Rev-Exp Region 4'!$U$9, 0)","v":{"v":0,"d":"$0.00"}},{"$f":"IFERROR('MMA Rev-Exp Region 4'!$V$90/'MMA Rev-Exp Region 4'!$V$9, 0)","v":{"v":0,"d":"$0.00"}},{"$f":"IFERROR('MMA Rev-Exp Region 4'!$W$90/'MMA Rev-Exp Region 4'!$W$9, 0)","v":{"v":0,"d":"$0.00"}},{"$f":"IFERROR('MMA Rev-Exp Region 4'!$X$90/'MMA Rev-Exp Region 4'!$X$9, 0)","v":{"v":0,"d":"$0.00"}},{"$f":"IFERROR('MMA Rev-Exp Region 4'!$Y$90/'MMA Rev-Exp Region 4'!$Y$9, 0)","v":{"v":0,"d":"$0.00"}}]
["MMA",null,null,2016,"2016-12-31","Q2","2017-06-30","Region 4","Operating Expense","Administrative Expense","Administrative","12.2","Administrative Services",{"$f":"IFERROR('MMA Rev-Exp Region 4'!$O$91/'MMA Rev-Exp Region 4'!$O$9, 0)","v":{"v":0,"d":"$0.00"}},{"$f":"IFERROR('MMA Rev-Exp Region 4'!$P$91/'MMA Rev-Exp Region 4'!$O$9, 0)","v":{"v":0,"d":"$0.00"}},{"$f":"IFERROR('MMA Rev-Exp Region 4'!$Q$91/'MMA Rev-Exp Region 4'!$O$9, 0)","v":{"v":0,"d":"$0.00"}},{"$f":"IFERROR('MMA Rev-Exp Region 4'!$R$91/'MMA Rev-Exp Region 4'!$R$9, 0)","v":{"v":0,"d":"$0.00"}},{"$f":"IFERROR('MMA Rev-Exp Region 4'!$S$91/'MMA Rev-Exp Region 4'!$S$9, 0)","v":{"v":0,"d":"$0.00"}},{"$f":"IFERROR('MMA Rev-Exp Region 4'!$T$91/'MMA Rev-Exp Region 4'!$T$9, 0)","v":{"v":0,"d":"$0.00"}},{"$f":"IFERROR('MMA Rev-Exp Region 4'!$U$91/'MMA Rev-Exp Region 4'!$U$9, 0)","v":{"v":0,"d":"$0.00"}},{"$f":"IFERROR('MMA Rev-Exp Region 4'!$V$91/'MMA Rev-Exp Region 4'!$V$9, 0)","v":{"v":0,"d":"$0.00"}},{"$f":"IFERROR('MMA Rev-Exp Region 4'!$W$91/'MMA Rev-Exp Region 4'!$W$9, 0)","v":{"v":0,"d":"$0.00"}},{"$f":"IFERROR('MMA Rev-Exp Region 4'!$X$91/'MMA Rev-Exp Region 4'!$X$9, 0)","v":{"v":0,"d":"$0.00"}},{"$f":"IFERROR('MMA Rev-Exp Region 4'!$Y$91/'MMA Rev-Exp Region 4'!$Y$9, 0)","v":{"v":0,"d":"$0.00"}}]
["MMA",null,null,2016,"2016-12-31","Q2","2017-06-30","Region 4","Operating Expense","Administrative Expense","Administrative","12.3","Information Systems",{"$f":"IFERROR('MMA Rev-Exp Region 4'!$O$92/'MMA Rev-Exp Region 4'!$O$9, 0)","v":{"v":0,"d":"$0.00"}},{"$f":"IFERROR('MMA Rev-Exp Region 4'!$P$92/'MMA Rev-Exp Region 4'!$O$9, 0)","v":{"v":0,"d":"$0.00"}},{"$f":"IFERROR('MMA Rev-Exp Region 4'!$Q$92/'MMA Rev-Exp Region 4'!$O$9, 0)","v":{"v":0,"d":"$0.00"}},{"$f":"IFERROR('MMA Rev-Exp Region 4'!$R$92/'MMA Rev-Exp Region 4'!$R$9, 0)","v":{"v":0,"d":"$0.00"}},{"$f":"IFERROR('MMA Rev-Exp Region 4'!$S$92/'MMA Rev-Exp Region 4'!$S$9, 0)","v":{"v":0,"d":"$0.00"}},{"$f":"IFERROR('MMA Rev-Exp Region 4'!$T$92/'MMA Rev-Exp Region 4'!$T$9, 0)","v":{"v":0,"d":"$0.00"}},{"$f":"IFERROR('MMA Rev-Exp Region 4'!$U$92/'MMA Rev-Exp Region 4'!$U$9, 0)","v":{"v":0,"d":"$0.00"}},{"$f":"IFERROR('MMA Rev-Exp Region 4'!$V$92/'MMA Rev-Exp Region 4'!$V$9, 0)","v":{"v":0,"d":"$0.00"}},{"$f":"IFERROR('MMA Rev-Exp Region 4'!$W$92/'MMA Rev-Exp Region 4'!$W$9, 0)","v":{"v":0,"d":"$0.00"}},{"$f":"IFERROR('MMA Rev-Exp Region 4'!$X$92/'MMA Rev-Exp Region 4'!$X$9, 0)","v":{"v":0,"d":"$0.00"}},{"$f":"IFERROR('MMA Rev-Exp Region 4'!$Y$92/'MMA Rev-Exp Region 4'!$Y$9, 0)","v":{"v":0,"d":"$0.00"}}]
["MMA",null,null,2016,"2016-12-31","Q2","2017-06-30","Region 4","Operating Expense","Administrative Expense","Administrative","12.4","Marketing Expenses",{"$f":"IFERROR('MMA Rev-Exp Region 4'!$O$93/'MMA Rev-Exp Region 4'!$O$9, 0)","v":{"v":0,"d":"$0.00"}},{"$f":"IFERROR('MMA Rev-Exp Region 4'!$P$93/'MMA Rev-Exp Region 4'!$O$9, 0)","v":{"v":0,"d":"$0.00"}},{"$f":"IFERROR('MMA Rev-Exp Region 4'!$Q$93/'MMA Rev-Exp Region 4'!$O$9, 0)","v":{"v":0,"d":"$0.00"}}]
["MMA",null,null,2016,"2016-12-31","Q2","2017-06-30","Region 4","Operating Expense","Administrative Expense","Administrative","12.5","General  Administration",{"$f":"IFERROR('MMA Rev-Exp Region 4'!$O$94/'MMA Rev-Exp Region 4'!$O$9, 0)","v":{"v":0,"d":"$0.00"}},{"$f":"IFERROR('MMA Rev-Exp Region 4'!$P$94/'MMA Rev-Exp Region 4'!$O$9, 0)","v":{"v":0,"d":"$0.00"}},{"$f":"IFERROR('MMA Rev-Exp Region 4'!$Q$94/'MMA Rev-Exp Region 4'!$O$9, 0)","v":{"v":0,"d":"$0.00"}}]
["MMA",null,null,2016,"2016-12-31","Q2","2017-06-30","Region 4","Operating Expense","Administrative Expense","Administrative","12.6","Compliance/Regulatory",{"$f":"IFERROR('MMA Rev-Exp Region 4'!$O$95/'MMA Rev-Exp Region 4'!$O$9, 0)","v":{"v":0,"d":"$0.00"}},{"$f":"IFERROR('MMA Rev-Exp Region 4'!$P$95/'MMA Rev-Exp Region 4'!$O$9, 0)","v":{"v":0,"d":"$0.00"}},{"$f":"IFERROR('MMA Rev-Exp Region 4'!$Q$95/'MMA Rev-Exp Region 4'!$O$9, 0)","v":{"v":0,"d":"$0.00"}}]
["MMA",null,null,2016,"2016-12-31","Q2","2017-06-30","Region 4","Operating Expense","Taxes & Fees","Taxes & Fees","13.1","State Premium tax",{"$f":"IFERROR('MMA Rev-Exp Region 4'!$O$97/'MMA Rev-Exp Region 4'!$O$9, 0)","v":{"v":0,"d":"$0.00"}}]
["MMA",null,null,2016,"2016-12-31","Q2","2017-06-30","Region 4","Operating Expense","Taxes & Fees","Taxes & Fees","13.2","Department of Insurance Assessments",{"$f":"IFERROR('MMA Rev-Exp Region 4'!$O$98/'MMA Rev-Exp Region 4'!$O$9, 0)","v":{"v":0,"d":"$0.00"}}]
["MMA",null,null,2016,"2016-12-31","Q2","2017-06-30","Region 4","Operating Expense","Taxes & Fees","Taxes & Fees","13.3","Section 9010 Health Insurance Providers Fee",{"$f":"IFERROR('MMA Rev-Exp Region 4'!$O$99/'MMA Rev-Exp Region 4'!$O$9, 0)","v":{"v":0,"d":"$0.00"}}]
["MMA",null,null,2016,"2016-12-31","Q2","2017-06-30","Region 4","Non-Operating Expense","Income Tax Expense","Income Tax Expense","16.0","Income Tax Expense",{"$f":"IFERROR('MMA Rev-Exp Region 4'!$O$106/'MMA Rev-Exp Region 4'!$O$9, 0)","v":{"v":0,"d":"$0.00"}}]
["MMA",null,null,2016,"2016-12-31","Q3","2017-09-30","Region 4","Operating Revenue","Capitation","Capitation",1.1,"Capitation",{"$f":"IFERROR('MMA Rev-Exp Region 4'!$Z$11/'MMA Rev-Exp Region 4'!$Z$9, 0)","v":{"v":0,"d":"$0.00"}},{"$f":"IFERROR('MMA Rev-Exp Region 4'!$AA$11/'MMA Rev-Exp Region 4'!$AA$9, 0)","v":{"v":0,"d":"$0.00"}},{"$f":"IFERROR('MMA Rev-Exp Region 4'!$AB$11/'MMA Rev-Exp Region 4'!$AB$9, 0)","v":{"v":0,"d":"$0.00"}},{"$f":"IFERROR('MMA Rev-Exp Region 4'!$AC$11/'MMA Rev-Exp Region 4'!$AC$9, 0)","v":{"v":0,"d":"$0.00"}},{"$f":"IFERROR('MMA Rev-Exp Region 4'!$AD$11/'MMA Rev-Exp Region 4'!$AD$9, 0)","v":{"v":0,"d":"$0.00"}},{"$f":"IFERROR('MMA Rev-Exp Region 4'!$AE$11/'MMA Rev-Exp Region 4'!$AE$9, 0)","v":{"v":0,"d":"$0.00"}},{"$f":"IFERROR('MMA Rev-Exp Region 4'!$AF$11/'MMA Rev-Exp Region 4'!$AF$9, 0)","v":{"v":0,"d":"$0.00"}},{"$f":"IFERROR('MMA Rev-Exp Region 4'!$AG$11/'MMA Rev-Exp Region 4'!$AG$9, 0)","v":{"v":0,"d":"$0.00"}},{"$f":"IFERROR('MMA Rev-Exp Region 4'!$AH$11/'MMA Rev-Exp Region 4'!$AH$9, 0)","v":{"v":0,"d":"$0.00"}},{"$f":"IFERROR('MMA Rev-Exp Region 4'!$AI$11/'MMA Rev-Exp Region 4'!$AI$9, 0)","v":{"v":0,"d":"$0.00"}},{"$f":"IFERROR('MMA Rev-Exp Region 4'!$AJ$11/'MMA Rev-Exp Region 4'!$AJ$9, 0)","v":{"v":0,"d":"$0.00"}}]
["MMA",null,null,2016,"2016-12-31","Q3","2017-09-30","Region 4","Operating Revenue","Kick Payments","Kick Payments - Transplant",1.2,"Transplant Kick Payments",{"$f":"IFERROR('MMA Rev-Exp Region 4'!$Z$12/'MMA Rev-Exp Region 4'!$Z$9, 0)","v":{"v":0,"d":"$0.00"}},{"$f":"IFERROR('MMA Rev-Exp Region 4'!$AA$12/'MMA Rev-Exp Region 4'!$AA$9, 0)","v":{"v":0,"d":"$0.00"}},{"$f":"IFERROR('MMA Rev-Exp Region 4'!$AB$12/'MMA Rev-Exp Region 4'!$AB$9, 0)","v":{"v":0,"d":"$0.00"}},{"$f":"IFERROR('MMA Rev-Exp Region 4'!$AC$12/'MMA Rev-Exp Region 4'!$AC$9, 0)","v":{"v":0,"d":"$0.00"}},{"$f":"IFERROR('MMA Rev-Exp Region 4'!$AD$12/'MMA Rev-Exp Region 4'!$AD$9, 0)","v":{"v":0,"d":"$0.00"}},{"$f":"IFERROR('MMA Rev-Exp Region 4'!$AE$12/'MMA Rev-Exp Region 4'!$AE$9, 0)","v":{"v":0,"d":"$0.00"}},{"$f":"IFERROR('MMA Rev-Exp Region 4'!$AF$12/'MMA Rev-Exp Region 4'!$AF$9, 0)","v":{"v":0,"d":"$0.00"}},{"$f":"IFERROR('MMA Rev-Exp Region 4'!$AG$12/'MMA Rev-Exp Region 4'!$AG$9, 0)","v":{"v":0,"d":"$0.00"}},{"$f":"IFERROR('MMA Rev-Exp Region 4'!$AH$12/'MMA Rev-Exp Region 4'!$AH$9, 0)","v":{"v":0,"d":"$0.00"}},{"$f":"IFERROR('MMA Rev-Exp Region 4'!$AI$12/'MMA Rev-Exp Region 4'!$AI$9, 0)","v":{"v":0,"d":"$0.00"}},{"$f":"IFERROR('MMA Rev-Exp Region 4'!$AJ$12/'MMA Rev-Exp Region 4'!$AJ$9, 0)","v":{"v":0,"d":"$0.00"}}]
["MMA",null,null,2016,"2016-12-31","Q3","2017-09-30","Region 4","Operating Revenue","Kick Payments","Kick Payments - Hep C","1.3","Hepatitis C Kick Payments",{"$f":"IFERROR('MMA Rev-Exp Region 4'!$Z$13/'MMA Rev-Exp Region 4'!$Z$9, 0)","v":{"v":0,"d":"$0.00"}},{"$f":"IFERROR('MMA Rev-Exp Region 4'!$AA$13/'MMA Rev-Exp Region 4'!$AA$9, 0)","v":{"v":0,"d":"$0.00"}},{"$f":"IFERROR('MMA Rev-Exp Region 4'!$AB$13/'MMA Rev-Exp Region 4'!$AB$9, 0)","v":{"v":0,"d":"$0.00"}},{"$f":"IFERROR('MMA Rev-Exp Region 4'!$AC$13/'MMA Rev-Exp Region 4'!$AC$9, 0)","v":{"v":0,"d":"$0.00"}},{"$f":"IFERROR('MMA Rev-Exp Region 4'!$AD$13/'MMA Rev-Exp Region 4'!$AD$9, 0)","v":{"v":0,"d":"$0.00"}},{"$f":"IFERROR('MMA Rev-Exp Region 4'!$AE$13/'MMA Rev-Exp Region 4'!$AE$9, 0)","v":{"v":0,"d":"$0.00"}},{"$f":"IFERROR('MMA Rev-Exp Region 4'!$AF$13/'MMA Rev-Exp Region 4'!$AF$9, 0)","v":{"v":0,"d":"$0.00"}},{"$f":"IFERROR('MMA Rev-Exp Region 4'!$AG$13/'MMA Rev-Exp Region 4'!$AG$9, 0)","v":{"v":0,"d":"$0.00"}},{"$f":"IFERROR('MMA Rev-Exp Region 4'!$AH$13/'MMA Rev-Exp Region 4'!$AH$9, 0)","v":{"v":0,"d":"$0.00"}},{"$f":"IFERROR('MMA Rev-Exp Region 4'!$AI$13/'MMA Rev-Exp Region 4'!$AI$9, 0)","v":{"v":0,"d":"$0.00"}},{"$f":"IFERROR('MMA Rev-Exp Region 4'!$AJ$13/'MMA Rev-Exp Region 4'!$AJ$9, 0)","v":{"v":0,"d":"$0.00"}}]
["MMA",null,null,2016,"2016-12-31","Q3","2017-09-30","Region 4","Operating Revenue","Kick Payments","Kick Payments - Maternity","1.4.1","Maternity Kick Payments",{"$f":"IFERROR('MMA Rev-Exp Region 4'!$Z$14/'MMA Rev-Exp Region 4'!$Z$9, 0)","v":{"v":0,"d":"$0.00"}},{"$f":"IFERROR('MMA Rev-Exp Region 4'!$AA$14/'MMA Rev-Exp Region 4'!$AA$9, 0)","v":{"v":0,"d":"$0.00"}},{"$f":"IFERROR('MMA Rev-Exp Region 4'!$AB$14/'MMA Rev-Exp Region 4'!$AB$9, 0)","v":{"v":0,"d":"$0.00"}},{"$f":"IFERROR('MMA Rev-Exp Region 4'!$AC$14/'MMA Rev-Exp Region 4'!$AC$9, 0)","v":{"v":0,"d":"$0.00"}},{"$f":"IFERROR('MMA Rev-Exp Region 4'!$AD$14/'MMA Rev-Exp Region 4'!$AD$9, 0)","v":{"v":0,"d":"$0.00"}},{"$f":"IFERROR('MMA Rev-Exp Region 4'!$AE$14/'MMA Rev-Exp Region 4'!$AE$9, 0)","v":{"v":0,"d":"$0.00"}},{"$f":"IFERROR('MMA Rev-Exp Region 4'!$AF$14/'MMA Rev-Exp Region 4'!$AF$9, 0)","v":{"v":0,"d":"$0.00"}},{"$f":"IFERROR('MMA Rev-Exp Region 4'!$AG$14/'MMA Rev-Exp Region 4'!$AG$9, 0)","v":{"v":0,"d":"$0.00"}},{"$f":"IFERROR('MMA Rev-Exp Region 4'!$AH$14/'MMA Rev-Exp Region 4'!$AH$9, 0)","v":{"v":0,"d":"$0.00"}},{"$f":"IFERROR('MMA Rev-Exp Region 4'!$AI$14/'MMA Rev-Exp Region 4'!$AI$9, 0)","v":{"v":0,"d":"$0.00"}},{"$f":"IFERROR('MMA Rev-Exp Region 4'!$AJ$14/'MMA Rev-Exp Region 4'!$AJ$9, 0)","v":{"v":0,"d":"$0.00"}}]
["MMA",null,null,2016,"2016-12-31","Q3","2017-09-30","Region 4","Operating Revenue","Other Revenue","Other Revenue - 9010","1.5","ACA § 9010 related payments",{"$f":"IFERROR('MMA Rev-Exp Region 4'!$Z$15/'MMA Rev-Exp Region 4'!$Z$9, 0)","v":{"v":0,"d":"$0.00"}},{"$f":"IFERROR('MMA Rev-Exp Region 4'!$AA$15/'MMA Rev-Exp Region 4'!$AA$9, 0)","v":{"v":0,"d":"$0.00"}},{"$f":"IFERROR('MMA Rev-Exp Region 4'!$AB$15/'MMA Rev-Exp Region 4'!$AB$9, 0)","v":{"v":0,"d":"$0.00"}},{"$f":"IFERROR('MMA Rev-Exp Region 4'!$AC$15/'MMA Rev-Exp Region 4'!$AC$9, 0)","v":{"v":0,"d":"$0.00"}},{"$f":"IFERROR('MMA Rev-Exp Region 4'!$AD$15/'MMA Rev-Exp Region 4'!$AD$9, 0)","v":{"v":0,"d":"$0.00"}},{"$f":"IFERROR('MMA Rev-Exp Region 4'!$AE$15/'MMA Rev-Exp Region 4'!$AE$9, 0)","v":{"v":0,"d":"$0.00"}},{"$f":"IFERROR('MMA Rev-Exp Region 4'!$AF$15/'MMA Rev-Exp Region 4'!$AF$9, 0)","v":{"v":0,"d":"$0.00"}},{"$f":"IFERROR('MMA Rev-Exp Region 4'!$AG$15/'MMA Rev-Exp Region 4'!$AG$9, 0)","v":{"v":0,"d":"$0.00"}},{"$f":"IFERROR('MMA Rev-Exp Region 4'!$AH$15/'MMA Rev-Exp Region 4'!$AH$9, 0)","v":{"v":0,"d":"$0.00"}},{"$f":"IFERROR('MMA Rev-Exp Region 4'!$AI$15/'MMA Rev-Exp Region 4'!$AI$9, 0)","v":{"v":0,"d":"$0.00"}},{"$f":"IFERROR('MMA Rev-Exp Region 4'!$AJ$15/'MMA Rev-Exp Region 4'!$AJ$9, 0)","v":{"v":0,"d":"$0.00"}}]
["MMA",null,null,2016,"2016-12-31","Q3","2017-09-30","Region 4","Operating Revenue","Other Revenue","Other Revenue","1.6","Other Revenue",{"$f":"IFERROR('MMA Rev-Exp Region 4'!$Z$16/'MMA Rev-Exp Region 4'!$Z$9, 0)","v":{"v":0,"d":"$0.00"}},{"$f":"IFERROR('MMA Rev-Exp Region 4'!$AA$16/'MMA Rev-Exp Region 4'!$AA$9, 0)","v":{"v":0,"d":"$0.00"}},{"$f":"IFERROR('MMA Rev-Exp Region 4'!$AB$16/'MMA Rev-Exp Region 4'!$AB$9, 0)","v":{"v":0,"d":"$0.00"}},{"$f":"IFERROR('MMA Rev-Exp Region 4'!$AC$16/'MMA Rev-Exp Region 4'!$AC$9, 0)","v":{"v":0,"d":"$0.00"}},{"$f":"IFERROR('MMA Rev-Exp Region 4'!$AD$16/'MMA Rev-Exp Region 4'!$AD$9, 0)","v":{"v":0,"d":"$0.00"}},{"$f":"IFERROR('MMA Rev-Exp Region 4'!$AE$16/'MMA Rev-Exp Region 4'!$AE$9, 0)","v":{"v":0,"d":"$0.00"}},{"$f":"IFERROR('MMA Rev-Exp Region 4'!$AF$16/'MMA Rev-Exp Region 4'!$AF$9, 0)","v":{"v":0,"d":"$0.00"}},{"$f":"IFERROR('MMA Rev-Exp Region 4'!$AG$16/'MMA Rev-Exp Region 4'!$AG$9, 0)","v":{"v":0,"d":"$0.00"}},{"$f":"IFERROR('MMA Rev-Exp Region 4'!$AH$16/'MMA Rev-Exp Region 4'!$AH$9, 0)","v":{"v":0,"d":"$0.00"}},{"$f":"IFERROR('MMA Rev-Exp Region 4'!$AI$16/'MMA Rev-Exp Region 4'!$AI$9, 0)","v":{"v":0,"d":"$0.00"}},{"$f":"IFERROR('MMA Rev-Exp Region 4'!$AJ$16/'MMA Rev-Exp Region 4'!$AJ$9, 0)","v":{"v":0,"d":"$0.00"}}]
["MMA",null,null,2016,"2016-12-31","Q3","2017-09-30","Region 4","Operating Expense","Medical Benefits Expense","Hospital Services",2.1,"Inpatient FFS",{"$f":"IFERROR('MMA Rev-Exp Region 4'!$Z$20/'MMA Rev-Exp Region 4'!$Z$9, 0)","v":{"v":0,"d":"$0.00"}},{"$f":"IFERROR('MMA Rev-Exp Region 4'!$AA$20/'MMA Rev-Exp Region 4'!$AA$9, 0)","v":{"v":0,"d":"$0.00"}},{"$f":"IFERROR('MMA Rev-Exp Region 4'!$AB$20/'MMA Rev-Exp Region 4'!$AB$9, 0)","v":{"v":0,"d":"$0.00"}},{"$f":"IFERROR('MMA Rev-Exp Region 4'!$AC$20/'MMA Rev-Exp Region 4'!$AC$9, 0)","v":{"v":0,"d":"$0.00"}},{"$f":"IFERROR('MMA Rev-Exp Region 4'!$AD$20/'MMA Rev-Exp Region 4'!$AD$9, 0)","v":{"v":0,"d":"$0.00"}},{"$f":"IFERROR('MMA Rev-Exp Region 4'!$AE$20/'MMA Rev-Exp Region 4'!$AE$9, 0)","v":{"v":0,"d":"$0.00"}},{"$f":"IFERROR('MMA Rev-Exp Region 4'!$AF$20/'MMA Rev-Exp Region 4'!$AF$9, 0)","v":{"v":0,"d":"$0.00"}},{"$f":"IFERROR('MMA Rev-Exp Region 4'!$AG$20/'MMA Rev-Exp Region 4'!$AG$9, 0)","v":{"v":0,"d":"$0.00"}},{"$f":"IFERROR('MMA Rev-Exp Region 4'!$AH$20/'MMA Rev-Exp Region 4'!$AH$9, 0)","v":{"v":0,"d":"$0.00"}},{"$f":"IFERROR('MMA Rev-Exp Region 4'!$AI$20/'MMA Rev-Exp Region 4'!$AI$9, 0)","v":{"v":0,"d":"$0.00"}},{"$f":"IFERROR('MMA Rev-Exp Region 4'!$AJ$20/'MMA Rev-Exp Region 4'!$AJ$9, 0)","v":{"v":0,"d":"$0.00"}}]
["MMA",null,null,2016,"2016-12-31","Q3","2017-09-30","Region 4","Operating Expense","Medical Benefits Expense","Hospital Services",2.2,"Ending IBNP for Inpatient Hospital Services",{"$f":"IFERROR('MMA Rev-Exp Region 4'!$Z$21/'MMA Rev-Exp Region 4'!$Z$9, 0)","v":{"v":0,"d":"$0.00"}},{"$f":"IFERROR('MMA Rev-Exp Region 4'!$AA$21/'MMA Rev-Exp Region 4'!$AA$9, 0)","v":{"v":0,"d":"$0.00"}},{"$f":"IFERROR('MMA Rev-Exp Region 4'!$AB$21/'MMA Rev-Exp Region 4'!$AB$9, 0)","v":{"v":0,"d":"$0.00"}},{"$f":"IFERROR('MMA Rev-Exp Region 4'!$AC$21/'MMA Rev-Exp Region 4'!$AC$9, 0)","v":{"v":0,"d":"$0.00"}},{"$f":"IFERROR('MMA Rev-Exp Region 4'!$AD$21/'MMA Rev-Exp Region 4'!$AD$9, 0)","v":{"v":0,"d":"$0.00"}},{"$f":"IFERROR('MMA Rev-Exp Region 4'!$AE$21/'MMA Rev-Exp Region 4'!$AE$9, 0)","v":{"v":0,"d":"$0.00"}},{"$f":"IFERROR('MMA Rev-Exp Region 4'!$AF$21/'MMA Rev-Exp Region 4'!$AF$9, 0)","v":{"v":0,"d":"$0.00"}},{"$f":"IFERROR('MMA Rev-Exp Region 4'!$AG$21/'MMA Rev-Exp Region 4'!$AG$9, 0)","v":{"v":0,"d":"$0.00"}},{"$f":"IFERROR('MMA Rev-Exp Region 4'!$AH$21/'MMA Rev-Exp Region 4'!$AH$9, 0)","v":{"v":0,"d":"$0.00"}},{"$f":"IFERROR('MMA Rev-Exp Region 4'!$AI$21/'MMA Rev-Exp Region 4'!$AI$9, 0)","v":{"v":0,"d":"$0.00"}},{"$f":"IFERROR('MMA Rev-Exp Region 4'!$AJ$21/'MMA Rev-Exp Region 4'!$AJ$9, 0)","v":{"v":0,"d":"$0.00"}}]
["MMA",null,null,2016,"2016-12-31","Q3","2017-09-30","Region 4","Operating Expense","Medical Benefits Expense","Hospital Services",2.3,"Outpatient FFS: ER",{"$f":"IFERROR('MMA Rev-Exp Region 4'!$Z$22/'MMA Rev-Exp Region 4'!$Z$9, 0)","v":{"v":0,"d":"$0.00"}},{"$f":"IFERROR('MMA Rev-Exp Region 4'!$AA$22/'MMA Rev-Exp Region 4'!$AA$9, 0)","v":{"v":0,"d":"$0.00"}},{"$f":"IFERROR('MMA Rev-Exp Region 4'!$AB$22/'MMA Rev-Exp Region 4'!$AB$9, 0)","v":{"v":0,"d":"$0.00"}},{"$f":"IFERROR('MMA Rev-Exp Region 4'!$AC$22/'MMA Rev-Exp Region 4'!$AC$9, 0)","v":{"v":0,"d":"$0.00"}},{"$f":"IFERROR('MMA Rev-Exp Region 4'!$AD$22/'MMA Rev-Exp Region 4'!$AD$9, 0)","v":{"v":0,"d":"$0.00"}},{"$f":"IFERROR('MMA Rev-Exp Region 4'!$AE$22/'MMA Rev-Exp Region 4'!$AE$9, 0)","v":{"v":0,"d":"$0.00"}},{"$f":"IFERROR('MMA Rev-Exp Region 4'!$AF$22/'MMA Rev-Exp Region 4'!$AF$9, 0)","v":{"v":0,"d":"$0.00"}},{"$f":"IFERROR('MMA Rev-Exp Region 4'!$AG$22/'MMA Rev-Exp Region 4'!$AG$9, 0)","v":{"v":0,"d":"$0.00"}},{"$f":"IFERROR('MMA Rev-Exp Region 4'!$AH$22/'MMA Rev-Exp Region 4'!$AH$9, 0)","v":{"v":0,"d":"$0.00"}},{"$f":"IFERROR('MMA Rev-Exp Region 4'!$AI$22/'MMA Rev-Exp Region 4'!$AI$9, 0)","v":{"v":0,"d":"$0.00"}},{"$f":"IFERROR('MMA Rev-Exp Region 4'!$AJ$22/'MMA Rev-Exp Region 4'!$AJ$9, 0)","v":{"v":0,"d":"$0.00"}}]
["MMA",null,null,2016,"2016-12-31","Q3","2017-09-30","Region 4","Operating Expense","Medical Benefits Expense","Hospital Services",2.4,"Outpatient FFS: Other than ER ",{"$f":"IFERROR('MMA Rev-Exp Region 4'!$Z$23/'MMA Rev-Exp Region 4'!$Z$9, 0)","v":{"v":0,"d":"$0.00"}},{"$f":"IFERROR('MMA Rev-Exp Region 4'!$AA$23/'MMA Rev-Exp Region 4'!$AA$9, 0)","v":{"v":0,"d":"$0.00"}},{"$f":"IFERROR('MMA Rev-Exp Region 4'!$AB$23/'MMA Rev-Exp Region 4'!$AB$9, 0)","v":{"v":0,"d":"$0.00"}},{"$f":"IFERROR('MMA Rev-Exp Region 4'!$AC$23/'MMA Rev-Exp Region 4'!$AC$9, 0)","v":{"v":0,"d":"$0.00"}},{"$f":"IFERROR('MMA Rev-Exp Region 4'!$AD$23/'MMA Rev-Exp Region 4'!$AD$9, 0)","v":{"v":0,"d":"$0.00"}},{"$f":"IFERROR('MMA Rev-Exp Region 4'!$AE$23/'MMA Rev-Exp Region 4'!$AE$9, 0)","v":{"v":0,"d":"$0.00"}},{"$f":"IFERROR('MMA Rev-Exp Region 4'!$AF$23/'MMA Rev-Exp Region 4'!$AF$9, 0)","v":{"v":0,"d":"$0.00"}},{"$f":"IFERROR('MMA Rev-Exp Region 4'!$AG$23/'MMA Rev-Exp Region 4'!$AG$9, 0)","v":{"v":0,"d":"$0.00"}},{"$f":"IFERROR('MMA Rev-Exp Region 4'!$AH$23/'MMA Rev-Exp Region 4'!$AH$9, 0)","v":{"v":0,"d":"$0.00"}},{"$f":"IFERROR('MMA Rev-Exp Region 4'!$AI$23/'MMA Rev-Exp Region 4'!$AI$9, 0)","v":{"v":0,"d":"$0.00"}},{"$f":"IFERROR('MMA Rev-Exp Region 4'!$AJ$23/'MMA Rev-Exp Region 4'!$AJ$9, 0)","v":{"v":0,"d":"$0.00"}}]
["MMA",null,null,2016,"2016-12-31","Q3","2017-09-30","Region 4","Operating Expense","Medical Benefits Expense","Hospital Services",2.5,"Ending IBNP for Outpatient Hospital Services",{"$f":"IFERROR('MMA Rev-Exp Region 4'!$Z$24/'MMA Rev-Exp Region 4'!$Z$9, 0)","v":{"v":0,"d":"$0.00"}},{"$f":"IFERROR('MMA Rev-Exp Region 4'!$AA$24/'MMA Rev-Exp Region 4'!$AA$9, 0)","v":{"v":0,"d":"$0.00"}},{"$f":"IFERROR('MMA Rev-Exp Region 4'!$AB$24/'MMA Rev-Exp Region 4'!$AB$9, 0)","v":{"v":0,"d":"$0.00"}},{"$f":"IFERROR('MMA Rev-Exp Region 4'!$AC$24/'MMA Rev-Exp Region 4'!$AC$9, 0)","v":{"v":0,"d":"$0.00"}},{"$f":"IFERROR('MMA Rev-Exp Region 4'!$AD$24/'MMA Rev-Exp Region 4'!$AD$9, 0)","v":{"v":0,"d":"$0.00"}},{"$f":"IFERROR('MMA Rev-Exp Region 4'!$AE$24/'MMA Rev-Exp Region 4'!$AE$9, 0)","v":{"v":0,"d":"$0.00"}},{"$f":"IFERROR('MMA Rev-Exp Region 4'!$AF$24/'MMA Rev-Exp Region 4'!$AF$9, 0)","v":{"v":0,"d":"$0.00"}},{"$f":"IFERROR('MMA Rev-Exp Region 4'!$AG$24/'MMA Rev-Exp Region 4'!$AG$9, 0)","v":{"v":0,"d":"$0.00"}},{"$f":"IFERROR('MMA Rev-Exp Region 4'!$AH$24/'MMA Rev-Exp Region 4'!$AH$9, 0)","v":{"v":0,"d":"$0.00"}},{"$f":"IFERROR('MMA Rev-Exp Region 4'!$AI$24/'MMA Rev-Exp Region 4'!$AI$9, 0)","v":{"v":0,"d":"$0.00"}},{"$f":"IFERROR('MMA Rev-Exp Region 4'!$AJ$24/'MMA Rev-Exp Region 4'!$AJ$9, 0)","v":{"v":0,"d":"$0.00"}}]
["MMA",null,null,2016,"2016-12-31","Q3","2017-09-30","Region 4","Operating Expense","Medical Benefits Expense","Hospital Services","2.6","Subcapitated Hospital Services",{"$f":"IFERROR('MMA Rev-Exp Region 4'!$Z$25/'MMA Rev-Exp Region 4'!$Z$9, 0)","v":{"v":0,"d":"$0.00"}},{"$f":"IFERROR('MMA Rev-Exp Region 4'!$AA$25/'MMA Rev-Exp Region 4'!$AA$9, 0)","v":{"v":0,"d":"$0.00"}},{"$f":"IFERROR('MMA Rev-Exp Region 4'!$AB$25/'MMA Rev-Exp Region 4'!$AB$9, 0)","v":{"v":0,"d":"$0.00"}},{"$f":"IFERROR('MMA Rev-Exp Region 4'!$AC$25/'MMA Rev-Exp Region 4'!$AC$9, 0)","v":{"v":0,"d":"$0.00"}},{"$f":"IFERROR('MMA Rev-Exp Region 4'!$AD$25/'MMA Rev-Exp Region 4'!$AD$9, 0)","v":{"v":0,"d":"$0.00"}},{"$f":"IFERROR('MMA Rev-Exp Region 4'!$AE$25/'MMA Rev-Exp Region 4'!$AE$9, 0)","v":{"v":0,"d":"$0.00"}},{"$f":"IFERROR('MMA Rev-Exp Region 4'!$AF$25/'MMA Rev-Exp Region 4'!$AF$9, 0)","v":{"v":0,"d":"$0.00"}},{"$f":"IFERROR('MMA Rev-Exp Region 4'!$AG$25/'MMA Rev-Exp Region 4'!$AG$9, 0)","v":{"v":0,"d":"$0.00"}},{"$f":"IFERROR('MMA Rev-Exp Region 4'!$AH$25/'MMA Rev-Exp Region 4'!$AH$9, 0)","v":{"v":0,"d":"$0.00"}},{"$f":"IFERROR('MMA Rev-Exp Region 4'!$AI$25/'MMA Rev-Exp Region 4'!$AI$9, 0)","v":{"v":0,"d":"$0.00"}},{"$f":"IFERROR('MMA Rev-Exp Region 4'!$AJ$25/'MMA Rev-Exp Region 4'!$AJ$9, 0)","v":{"v":0,"d":"$0.00"}}]
["MMA",null,null,2016,"2016-12-31","Q3","2017-09-30","Region 4","Operating Expense","Medical Benefits Expense","Hospital Services","2.7","Hospital Settlements",{"$f":"IFERROR('MMA Rev-Exp Region 4'!$Z$26/'MMA Rev-Exp Region 4'!$Z$9, 0)","v":{"v":0,"d":"$0.00"}},{"$f":"IFERROR('MMA Rev-Exp Region 4'!$AA$26/'MMA Rev-Exp Region 4'!$AA$9, 0)","v":{"v":0,"d":"$0.00"}},{"$f":"IFERROR('MMA Rev-Exp Region 4'!$AB$26/'MMA Rev-Exp Region 4'!$AB$9, 0)","v":{"v":0,"d":"$0.00"}},{"$f":"IFERROR('MMA Rev-Exp Region 4'!$AC$26/'MMA Rev-Exp Region 4'!$AC$9, 0)","v":{"v":0,"d":"$0.00"}},{"$f":"IFERROR('MMA Rev-Exp Region 4'!$AD$26/'MMA Rev-Exp Region 4'!$AD$9, 0)","v":{"v":0,"d":"$0.00"}},{"$f":"IFERROR('MMA Rev-Exp Region 4'!$AE$26/'MMA Rev-Exp Region 4'!$AE$9, 0)","v":{"v":0,"d":"$0.00"}},{"$f":"IFERROR('MMA Rev-Exp Region 4'!$AF$26/'MMA Rev-Exp Region 4'!$AF$9, 0)","v":{"v":0,"d":"$0.00"}},{"$f":"IFERROR('MMA Rev-Exp Region 4'!$AG$26/'MMA Rev-Exp Region 4'!$AG$9, 0)","v":{"v":0,"d":"$0.00"}},{"$f":"IFERROR('MMA Rev-Exp Region 4'!$AH$26/'MMA Rev-Exp Region 4'!$AH$9, 0)","v":{"v":0,"d":"$0.00"}},{"$f":"IFERROR('MMA Rev-Exp Region 4'!$AI$26/'MMA Rev-Exp Region 4'!$AI$9, 0)","v":{"v":0,"d":"$0.00"}},{"$f":"IFERROR('MMA Rev-Exp Region 4'!$AJ$26/'MMA Rev-Exp Region 4'!$AJ$9, 0)","v":{"v":0,"d":"$0.00"}}]
["MMA",null,null,2016,"2016-12-31","Q3","2017-09-30","Region 4","Operating Expense","Medical Benefits Expense","Hospital Services","2.7.1","Transplant Services",{"$f":"IFERROR('MMA Rev-Exp Region 4'!$Z$27/'MMA Rev-Exp Region 4'!$Z$9, 0)","v":{"v":0,"d":"$0.00"}},{"$f":"IFERROR('MMA Rev-Exp Region 4'!$AA$27/'MMA Rev-Exp Region 4'!$AA$9, 0)","v":{"v":0,"d":"$0.00"}},{"$f":"IFERROR('MMA Rev-Exp Region 4'!$AB$27/'MMA Rev-Exp Region 4'!$AB$9, 0)","v":{"v":0,"d":"$0.00"}},{"$f":"IFERROR('MMA Rev-Exp Region 4'!$AC$27/'MMA Rev-Exp Region 4'!$AC$9, 0)","v":{"v":0,"d":"$0.00"}},{"$f":"IFERROR('MMA Rev-Exp Region 4'!$AD$27/'MMA Rev-Exp Region 4'!$AD$9, 0)","v":{"v":0,"d":"$0.00"}},{"$f":"IFERROR('MMA Rev-Exp Region 4'!$AE$27/'MMA Rev-Exp Region 4'!$AE$9, 0)","v":{"v":0,"d":"$0.00"}},{"$f":"IFERROR('MMA Rev-Exp Region 4'!$AF$27/'MMA Rev-Exp Region 4'!$AF$9, 0)","v":{"v":0,"d":"$0.00"}},{"$f":"IFERROR('MMA Rev-Exp Region 4'!$AG$27/'MMA Rev-Exp Region 4'!$AG$9, 0)","v":{"v":0,"d":"$0.00"}},{"$f":"IFERROR('MMA Rev-Exp Region 4'!$AH$27/'MMA Rev-Exp Region 4'!$AH$9, 0)","v":{"v":0,"d":"$0.00"}},{"$f":"IFERROR('MMA Rev-Exp Region 4'!$AI$27/'MMA Rev-Exp Region 4'!$AI$9, 0)","v":{"v":0,"d":"$0.00"}},{"$f":"IFERROR('MMA Rev-Exp Region 4'!$AJ$27/'MMA Rev-Exp Region 4'!$AJ$9, 0)","v":{"v":0,"d":"$0.00"}}]
["MMA",null,null,2016,"2016-12-31","Q3","2017-09-30","Region 4","Operating Expense","Medical Benefits Expense","Professional Services",3.1,"Primary Care FFS",{"$f":"IFERROR('MMA Rev-Exp Region 4'!$Z$29/'MMA Rev-Exp Region 4'!$Z$9, 0)","v":{"v":0,"d":"$0.00"}},{"$f":"IFERROR('MMA Rev-Exp Region 4'!$AA$29/'MMA Rev-Exp Region 4'!$AA$9, 0)","v":{"v":0,"d":"$0.00"}},{"$f":"IFERROR('MMA Rev-Exp Region 4'!$AB$29/'MMA Rev-Exp Region 4'!$AB$9, 0)","v":{"v":0,"d":"$0.00"}},{"$f":"IFERROR('MMA Rev-Exp Region 4'!$AC$29/'MMA Rev-Exp Region 4'!$AC$9, 0)","v":{"v":0,"d":"$0.00"}},{"$f":"IFERROR('MMA Rev-Exp Region 4'!$AD$29/'MMA Rev-Exp Region 4'!$AD$9, 0)","v":{"v":0,"d":"$0.00"}},{"$f":"IFERROR('MMA Rev-Exp Region 4'!$AE$29/'MMA Rev-Exp Region 4'!$AE$9, 0)","v":{"v":0,"d":"$0.00"}},{"$f":"IFERROR('MMA Rev-Exp Region 4'!$AF$29/'MMA Rev-Exp Region 4'!$AF$9, 0)","v":{"v":0,"d":"$0.00"}},{"$f":"IFERROR('MMA Rev-Exp Region 4'!$AG$29/'MMA Rev-Exp Region 4'!$AG$9, 0)","v":{"v":0,"d":"$0.00"}},{"$f":"IFERROR('MMA Rev-Exp Region 4'!$AH$29/'MMA Rev-Exp Region 4'!$AH$9, 0)","v":{"v":0,"d":"$0.00"}},{"$f":"IFERROR('MMA Rev-Exp Region 4'!$AI$29/'MMA Rev-Exp Region 4'!$AI$9, 0)","v":{"v":0,"d":"$0.00"}},{"$f":"IFERROR('MMA Rev-Exp Region 4'!$AJ$29/'MMA Rev-Exp Region 4'!$AJ$9, 0)","v":{"v":0,"d":"$0.00"}}]
["MMA",null,null,2016,"2016-12-31","Q3","2017-09-30","Region 4","Operating Expense","Medical Benefits Expense","Professional Services",3.2,"Specialty Care FFS",{"$f":"IFERROR('MMA Rev-Exp Region 4'!$Z$30/'MMA Rev-Exp Region 4'!$Z$9, 0)","v":{"v":0,"d":"$0.00"}},{"$f":"IFERROR('MMA Rev-Exp Region 4'!$AA$30/'MMA Rev-Exp Region 4'!$AA$9, 0)","v":{"v":0,"d":"$0.00"}},{"$f":"IFERROR('MMA Rev-Exp Region 4'!$AB$30/'MMA Rev-Exp Region 4'!$AB$9, 0)","v":{"v":0,"d":"$0.00"}},{"$f":"IFERROR('MMA Rev-Exp Region 4'!$AC$30/'MMA Rev-Exp Region 4'!$AC$9, 0)","v":{"v":0,"d":"$0.00"}},{"$f":"IFERROR('MMA Rev-Exp Region 4'!$AD$30/'MMA Rev-Exp Region 4'!$AD$9, 0)","v":{"v":0,"d":"$0.00"}},{"$f":"IFERROR('MMA Rev-Exp Region 4'!$AE$30/'MMA Rev-Exp Region 4'!$AE$9, 0)","v":{"v":0,"d":"$0.00"}},{"$f":"IFERROR('MMA Rev-Exp Region 4'!$AF$30/'MMA Rev-Exp Region 4'!$AF$9, 0)","v":{"v":0,"d":"$0.00"}},{"$f":"IFERROR('MMA Rev-Exp Region 4'!$AG$30/'MMA Rev-Exp Region 4'!$AG$9, 0)","v":{"v":0,"d":"$0.00"}},{"$f":"IFERROR('MMA Rev-Exp Region 4'!$AH$30/'MMA Rev-Exp Region 4'!$AH$9, 0)","v":{"v":0,"d":"$0.00"}},{"$f":"IFERROR('MMA Rev-Exp Region 4'!$AI$30/'MMA Rev-Exp Region 4'!$AI$9, 0)","v":{"v":0,"d":"$0.00"}},{"$f":"IFERROR('MMA Rev-Exp Region 4'!$AJ$30/'MMA Rev-Exp Region 4'!$AJ$9, 0)","v":{"v":0,"d":"$0.00"}}]
["MMA",null,null,2016,"2016-12-31","Q3","2017-09-30","Region 4","Operating Expense","Medical Benefits Expense","Professional Services",3.3,"Other Professional FFS",{"$f":"IFERROR('MMA Rev-Exp Region 4'!$Z$31/'MMA Rev-Exp Region 4'!$Z$9, 0)","v":{"v":0,"d":"$0.00"}},{"$f":"IFERROR('MMA Rev-Exp Region 4'!$AA$31/'MMA Rev-Exp Region 4'!$AA$9, 0)","v":{"v":0,"d":"$0.00"}},{"$f":"IFERROR('MMA Rev-Exp Region 4'!$AB$31/'MMA Rev-Exp Region 4'!$AB$9, 0)","v":{"v":0,"d":"$0.00"}},{"$f":"IFERROR('MMA Rev-Exp Region 4'!$AC$31/'MMA Rev-Exp Region 4'!$AC$9, 0)","v":{"v":0,"d":"$0.00"}},{"$f":"IFERROR('MMA Rev-Exp Region 4'!$AD$31/'MMA Rev-Exp Region 4'!$AD$9, 0)","v":{"v":0,"d":"$0.00"}},{"$f":"IFERROR('MMA Rev-Exp Region 4'!$AE$31/'MMA Rev-Exp Region 4'!$AE$9, 0)","v":{"v":0,"d":"$0.00"}},{"$f":"IFERROR('MMA Rev-Exp Region 4'!$AF$31/'MMA Rev-Exp Region 4'!$AF$9, 0)","v":{"v":0,"d":"$0.00"}},{"$f":"IFERROR('MMA Rev-Exp Region 4'!$AG$31/'MMA Rev-Exp Region 4'!$AG$9, 0)","v":{"v":0,"d":"$0.00"}},{"$f":"IFERROR('MMA Rev-Exp Region 4'!$AH$31/'MMA Rev-Exp Region 4'!$AH$9, 0)","v":{"v":0,"d":"$0.00"}},{"$f":"IFERROR('MMA Rev-Exp Region 4'!$AI$31/'MMA Rev-Exp Region 4'!$AI$9, 0)","v":{"v":0,"d":"$0.00"}},{"$f":"IFERROR('MMA Rev-Exp Region 4'!$AJ$31/'MMA Rev-Exp Region 4'!$AJ$9, 0)","v":{"v":0,"d":"$0.00"}}]
["MMA",null,null,2016,"2016-12-31","Q3","2017-09-30","Region 4","Operating Expense","Medical Benefits Expense","Professional Services","3.4","§ 1202 PCP Payments to providers",{"$f":"IFERROR('MMA Rev-Exp Region 4'!$Z$32/'MMA Rev-Exp Region 4'!$Z$9, 0)","v":{"v":0,"d":"$0.00"}},{"$f":"IFERROR('MMA Rev-Exp Region 4'!$AA$32/'MMA Rev-Exp Region 4'!$AA$9, 0)","v":{"v":0,"d":"$0.00"}},{"$f":"IFERROR('MMA Rev-Exp Region 4'!$AB$32/'MMA Rev-Exp Region 4'!$AB$9, 0)","v":{"v":0,"d":"$0.00"}},{"$f":"IFERROR('MMA Rev-Exp Region 4'!$AC$32/'MMA Rev-Exp Region 4'!$AC$9, 0)","v":{"v":0,"d":"$0.00"}},{"$f":"IFERROR('MMA Rev-Exp Region 4'!$AD$32/'MMA Rev-Exp Region 4'!$AD$9, 0)","v":{"v":0,"d":"$0.00"}},{"$f":"IFERROR('MMA Rev-Exp Region 4'!$AE$32/'MMA Rev-Exp Region 4'!$AE$9, 0)","v":{"v":0,"d":"$0.00"}},{"$f":"IFERROR('MMA Rev-Exp Region 4'!$AF$32/'MMA Rev-Exp Region 4'!$AF$9, 0)","v":{"v":0,"d":"$0.00"}},{"$f":"IFERROR('MMA Rev-Exp Region 4'!$AG$32/'MMA Rev-Exp Region 4'!$AG$9, 0)","v":{"v":0,"d":"$0.00"}},{"$f":"IFERROR('MMA Rev-Exp Region 4'!$AH$32/'MMA Rev-Exp Region 4'!$AH$9, 0)","v":{"v":0,"d":"$0.00"}},{"$f":"IFERROR('MMA Rev-Exp Region 4'!$AI$32/'MMA Rev-Exp Region 4'!$AI$9, 0)","v":{"v":0,"d":"$0.00"}},{"$f":"IFERROR('MMA Rev-Exp Region 4'!$AJ$32/'MMA Rev-Exp Region 4'!$AJ$9, 0)","v":{"v":0,"d":"$0.00"}}]
["MMA",null,null,2016,"2016-12-31","Q3","2017-09-30","Region 4","Operating Expense","Medical Benefits Expense","Professional Services","3.5","Subcapitated Professional Services",{"$f":"IFERROR('MMA Rev-Exp Region 4'!$Z$33/'MMA Rev-Exp Region 4'!$Z$9, 0)","v":{"v":0,"d":"$0.00"}},{"$f":"IFERROR('MMA Rev-Exp Region 4'!$AA$33/'MMA Rev-Exp Region 4'!$AA$9, 0)","v":{"v":0,"d":"$0.00"}},{"$f":"IFERROR('MMA Rev-Exp Region 4'!$AB$33/'MMA Rev-Exp Region 4'!$AB$9, 0)","v":{"v":0,"d":"$0.00"}},{"$f":"IFERROR('MMA Rev-Exp Region 4'!$AC$33/'MMA Rev-Exp Region 4'!$AC$9, 0)","v":{"v":0,"d":"$0.00"}},{"$f":"IFERROR('MMA Rev-Exp Region 4'!$AD$33/'MMA Rev-Exp Region 4'!$AD$9, 0)","v":{"v":0,"d":"$0.00"}},{"$f":"IFERROR('MMA Rev-Exp Region 4'!$AE$33/'MMA Rev-Exp Region 4'!$AE$9, 0)","v":{"v":0,"d":"$0.00"}},{"$f":"IFERROR('MMA Rev-Exp Region 4'!$AF$33/'MMA Rev-Exp Region 4'!$AF$9, 0)","v":{"v":0,"d":"$0.00"}},{"$f":"IFERROR('MMA Rev-Exp Region 4'!$AG$33/'MMA Rev-Exp Region 4'!$AG$9, 0)","v":{"v":0,"d":"$0.00"}},{"$f":"IFERROR('MMA Rev-Exp Region 4'!$AH$33/'MMA Rev-Exp Region 4'!$AH$9, 0)","v":{"v":0,"d":"$0.00"}},{"$f":"IFERROR('MMA Rev-Exp Region 4'!$AI$33/'MMA Rev-Exp Region 4'!$AI$9, 0)","v":{"v":0,"d":"$0.00"}},{"$f":"IFERROR('MMA Rev-Exp Region 4'!$AJ$33/'MMA Rev-Exp Region 4'!$AJ$9, 0)","v":{"v":0,"d":"$0.00"}}]
["MMA",null,null,2016,"2016-12-31","Q3","2017-09-30","Region 4","Operating Expense","Medical Benefits Expense","Professional Services","3.6","Ending IBNP for Professional Services",{"$f":"IFERROR('MMA Rev-Exp Region 4'!$Z$34/'MMA Rev-Exp Region 4'!$Z$9, 0)","v":{"v":0,"d":"$0.00"}},{"$f":"IFERROR('MMA Rev-Exp Region 4'!$AA$34/'MMA Rev-Exp Region 4'!$AA$9, 0)","v":{"v":0,"d":"$0.00"}},{"$f":"IFERROR('MMA Rev-Exp Region 4'!$AB$34/'MMA Rev-Exp Region 4'!$AB$9, 0)","v":{"v":0,"d":"$0.00"}},{"$f":"IFERROR('MMA Rev-Exp Region 4'!$AC$34/'MMA Rev-Exp Region 4'!$AC$9, 0)","v":{"v":0,"d":"$0.00"}},{"$f":"IFERROR('MMA Rev-Exp Region 4'!$AD$34/'MMA Rev-Exp Region 4'!$AD$9, 0)","v":{"v":0,"d":"$0.00"}},{"$f":"IFERROR('MMA Rev-Exp Region 4'!$AE$34/'MMA Rev-Exp Region 4'!$AE$9, 0)","v":{"v":0,"d":"$0.00"}},{"$f":"IFERROR('MMA Rev-Exp Region 4'!$AF$34/'MMA Rev-Exp Region 4'!$AF$9, 0)","v":{"v":0,"d":"$0.00"}},{"$f":"IFERROR('MMA Rev-Exp Region 4'!$AG$34/'MMA Rev-Exp Region 4'!$AG$9, 0)","v":{"v":0,"d":"$0.00"}},{"$f":"IFERROR('MMA Rev-Exp Region 4'!$AH$34/'MMA Rev-Exp Region 4'!$AH$9, 0)","v":{"v":0,"d":"$0.00"}},{"$f":"IFERROR('MMA Rev-Exp Region 4'!$AI$34/'MMA Rev-Exp Region 4'!$AI$9, 0)","v":{"v":0,"d":"$0.00"}},{"$f":"IFERROR('MMA Rev-Exp Region 4'!$AJ$34/'MMA Rev-Exp Region 4'!$AJ$9, 0)","v":{"v":0,"d":"$0.00"}}]
["MMA",null,null,2016,"2016-12-31","Q3","2017-09-30","Region 4","Operating Expense","Medical Benefits Expense","Professional Services","3.7","Professional Services Settlements",{"$f":"IFERROR('MMA Rev-Exp Region 4'!$Z$35/'MMA Rev-Exp Region 4'!$Z$9, 0)","v":{"v":0,"d":"$0.00"}},{"$f":"IFERROR('MMA Rev-Exp Region 4'!$AA$35/'MMA Rev-Exp Region 4'!$AA$9, 0)","v":{"v":0,"d":"$0.00"}},{"$f":"IFERROR('MMA Rev-Exp Region 4'!$AB$35/'MMA Rev-Exp Region 4'!$AB$9, 0)","v":{"v":0,"d":"$0.00"}},{"$f":"IFERROR('MMA Rev-Exp Region 4'!$AC$35/'MMA Rev-Exp Region 4'!$AC$9, 0)","v":{"v":0,"d":"$0.00"}},{"$f":"IFERROR('MMA Rev-Exp Region 4'!$AD$35/'MMA Rev-Exp Region 4'!$AD$9, 0)","v":{"v":0,"d":"$0.00"}},{"$f":"IFERROR('MMA Rev-Exp Region 4'!$AE$35/'MMA Rev-Exp Region 4'!$AE$9, 0)","v":{"v":0,"d":"$0.00"}},{"$f":"IFERROR('MMA Rev-Exp Region 4'!$AF$35/'MMA Rev-Exp Region 4'!$AF$9, 0)","v":{"v":0,"d":"$0.00"}},{"$f":"IFERROR('MMA Rev-Exp Region 4'!$AG$35/'MMA Rev-Exp Region 4'!$AG$9, 0)","v":{"v":0,"d":"$0.00"}},{"$f":"IFERROR('MMA Rev-Exp Region 4'!$AH$35/'MMA Rev-Exp Region 4'!$AH$9, 0)","v":{"v":0,"d":"$0.00"}},{"$f":"IFERROR('MMA Rev-Exp Region 4'!$AI$35/'MMA Rev-Exp Region 4'!$AI$9, 0)","v":{"v":0,"d":"$0.00"}},{"$f":"IFERROR('MMA Rev-Exp Region 4'!$AJ$35/'MMA Rev-Exp Region 4'!$AJ$9, 0)","v":{"v":0,"d":"$0.00"}}]
["MMA",null,null,2016,"2016-12-31","Q3","2017-09-30","Region 4","Operating Expense","Medical Benefits Expense","Maternity Services","4.1.1","Maternity Services",{"$f":"IFERROR('MMA Rev-Exp Region 4'!$Z$37/'MMA Rev-Exp Region 4'!$Z$9, 0)","v":{"v":0,"d":"$0.00"}},{"$f":"IFERROR('MMA Rev-Exp Region 4'!$AA$37/'MMA Rev-Exp Region 4'!$AA$9, 0)","v":{"v":0,"d":"$0.00"}},{"$f":"IFERROR('MMA Rev-Exp Region 4'!$AB$37/'MMA Rev-Exp Region 4'!$AB$9, 0)","v":{"v":0,"d":"$0.00"}},{"$f":"IFERROR('MMA Rev-Exp Region 4'!$AC$37/'MMA Rev-Exp Region 4'!$AC$9, 0)","v":{"v":0,"d":"$0.00"}},{"$f":"IFERROR('MMA Rev-Exp Region 4'!$AD$37/'MMA Rev-Exp Region 4'!$AD$9, 0)","v":{"v":0,"d":"$0.00"}},{"$f":"IFERROR('MMA Rev-Exp Region 4'!$AE$37/'MMA Rev-Exp Region 4'!$AE$9, 0)","v":{"v":0,"d":"$0.00"}},{"$f":"IFERROR('MMA Rev-Exp Region 4'!$AF$37/'MMA Rev-Exp Region 4'!$AF$9, 0)","v":{"v":0,"d":"$0.00"}},{"$f":"IFERROR('MMA Rev-Exp Region 4'!$AG$37/'MMA Rev-Exp Region 4'!$AG$9, 0)","v":{"v":0,"d":"$0.00"}},{"$f":"IFERROR('MMA Rev-Exp Region 4'!$AH$37/'MMA Rev-Exp Region 4'!$AH$9, 0)","v":{"v":0,"d":"$0.00"}},{"$f":"IFERROR('MMA Rev-Exp Region 4'!$AI$37/'MMA Rev-Exp Region 4'!$AI$9, 0)","v":{"v":0,"d":"$0.00"}},{"$f":"IFERROR('MMA Rev-Exp Region 4'!$AJ$37/'MMA Rev-Exp Region 4'!$AJ$9, 0)","v":{"v":0,"d":"$0.00"}}]
["MMA",null,null,2016,"2016-12-31","Q3","2017-09-30","Region 4","Operating Expense","Medical Benefits Expense","Maternity Services","4.2.1","Ending IBNP for Maternity Services",{"$f":"IFERROR('MMA Rev-Exp Region 4'!$Z$38/'MMA Rev-Exp Region 4'!$Z$9, 0)","v":{"v":0,"d":"$0.00"}},{"$f":"IFERROR('MMA Rev-Exp Region 4'!$AA$38/'MMA Rev-Exp Region 4'!$AA$9, 0)","v":{"v":0,"d":"$0.00"}},{"$f":"IFERROR('MMA Rev-Exp Region 4'!$AB$38/'MMA Rev-Exp Region 4'!$AB$9, 0)","v":{"v":0,"d":"$0.00"}},{"$f":"IFERROR('MMA Rev-Exp Region 4'!$AC$38/'MMA Rev-Exp Region 4'!$AC$9, 0)","v":{"v":0,"d":"$0.00"}},{"$f":"IFERROR('MMA Rev-Exp Region 4'!$AD$38/'MMA Rev-Exp Region 4'!$AD$9, 0)","v":{"v":0,"d":"$0.00"}},{"$f":"IFERROR('MMA Rev-Exp Region 4'!$AE$38/'MMA Rev-Exp Region 4'!$AE$9, 0)","v":{"v":0,"d":"$0.00"}},{"$f":"IFERROR('MMA Rev-Exp Region 4'!$AF$38/'MMA Rev-Exp Region 4'!$AF$9, 0)","v":{"v":0,"d":"$0.00"}},{"$f":"IFERROR('MMA Rev-Exp Region 4'!$AG$38/'MMA Rev-Exp Region 4'!$AG$9, 0)","v":{"v":0,"d":"$0.00"}},{"$f":"IFERROR('MMA Rev-Exp Region 4'!$AH$38/'MMA Rev-Exp Region 4'!$AH$9, 0)","v":{"v":0,"d":"$0.00"}},{"$f":"IFERROR('MMA Rev-Exp Region 4'!$AI$38/'MMA Rev-Exp Region 4'!$AI$9, 0)","v":{"v":0,"d":"$0.00"}},{"$f":"IFERROR('MMA Rev-Exp Region 4'!$AJ$38/'MMA Rev-Exp Region 4'!$AJ$9, 0)","v":{"v":0,"d":"$0.00"}}]
["MMA",null,null,2016,"2016-12-31","Q3","2017-09-30","Region 4","Operating Expense","Medical Benefits Expense","Maternity Services","4.3.1","Maternity Settlements",{"$f":"IFERROR('MMA Rev-Exp Region 4'!$Z$39/'MMA Rev-Exp Region 4'!$Z$9, 0)","v":{"v":0,"d":"$0.00"}},{"$f":"IFERROR('MMA Rev-Exp Region 4'!$AA$39/'MMA Rev-Exp Region 4'!$AA$9, 0)","v":{"v":0,"d":"$0.00"}},{"$f":"IFERROR('MMA Rev-Exp Region 4'!$AB$39/'MMA Rev-Exp Region 4'!$AB$9, 0)","v":{"v":0,"d":"$0.00"}},{"$f":"IFERROR('MMA Rev-Exp Region 4'!$AC$39/'MMA Rev-Exp Region 4'!$AC$9, 0)","v":{"v":0,"d":"$0.00"}},{"$f":"IFERROR('MMA Rev-Exp Region 4'!$AD$39/'MMA Rev-Exp Region 4'!$AD$9, 0)","v":{"v":0,"d":"$0.00"}},{"$f":"IFERROR('MMA Rev-Exp Region 4'!$AE$39/'MMA Rev-Exp Region 4'!$AE$9, 0)","v":{"v":0,"d":"$0.00"}},{"$f":"IFERROR('MMA Rev-Exp Region 4'!$AF$39/'MMA Rev-Exp Region 4'!$AF$9, 0)","v":{"v":0,"d":"$0.00"}},{"$f":"IFERROR('MMA Rev-Exp Region 4'!$AG$39/'MMA Rev-Exp Region 4'!$AG$9, 0)","v":{"v":0,"d":"$0.00"}},{"$f":"IFERROR('MMA Rev-Exp Region 4'!$AH$39/'MMA Rev-Exp Region 4'!$AH$9, 0)","v":{"v":0,"d":"$0.00"}},{"$f":"IFERROR('MMA Rev-Exp Region 4'!$AI$39/'MMA Rev-Exp Region 4'!$AI$9, 0)","v":{"v":0,"d":"$0.00"}},{"$f":"IFERROR('MMA Rev-Exp Region 4'!$AJ$39/'MMA Rev-Exp Region 4'!$AJ$9, 0)","v":{"v":0,"d":"$0.00"}}]
["MMA",null,null,2016,"2016-12-31","Q3","2017-09-30","Region 4","Operating Expense","Medical Benefits Expense","Mental Health Services",5.1,"Mental Health & Substance Abuse FFS",{"$f":"IFERROR('MMA Rev-Exp Region 4'!$Z$41/'MMA Rev-Exp Region 4'!$Z$9, 0)","v":{"v":0,"d":"$0.00"}},{"$f":"IFERROR('MMA Rev-Exp Region 4'!$AA$41/'MMA Rev-Exp Region 4'!$AA$9, 0)","v":{"v":0,"d":"$0.00"}},{"$f":"IFERROR('MMA Rev-Exp Region 4'!$AB$41/'MMA Rev-Exp Region 4'!$AB$9, 0)","v":{"v":0,"d":"$0.00"}},{"$f":"IFERROR('MMA Rev-Exp Region 4'!$AC$41/'MMA Rev-Exp Region 4'!$AC$9, 0)","v":{"v":0,"d":"$0.00"}},{"$f":"IFERROR('MMA Rev-Exp Region 4'!$AD$41/'MMA Rev-Exp Region 4'!$AD$9, 0)","v":{"v":0,"d":"$0.00"}},{"$f":"IFERROR('MMA Rev-Exp Region 4'!$AE$41/'MMA Rev-Exp Region 4'!$AE$9, 0)","v":{"v":0,"d":"$0.00"}},{"$f":"IFERROR('MMA Rev-Exp Region 4'!$AF$41/'MMA Rev-Exp Region 4'!$AF$9, 0)","v":{"v":0,"d":"$0.00"}},{"$f":"IFERROR('MMA Rev-Exp Region 4'!$AG$41/'MMA Rev-Exp Region 4'!$AG$9, 0)","v":{"v":0,"d":"$0.00"}},{"$f":"IFERROR('MMA Rev-Exp Region 4'!$AH$41/'MMA Rev-Exp Region 4'!$AH$9, 0)","v":{"v":0,"d":"$0.00"}},{"$f":"IFERROR('MMA Rev-Exp Region 4'!$AI$41/'MMA Rev-Exp Region 4'!$AI$9, 0)","v":{"v":0,"d":"$0.00"}},{"$f":"IFERROR('MMA Rev-Exp Region 4'!$AJ$41/'MMA Rev-Exp Region 4'!$AJ$9, 0)","v":{"v":0,"d":"$0.00"}}]
["MMA",null,null,2016,"2016-12-31","Q3","2017-09-30","Region 4","Operating Expense","Medical Benefits Expense","Mental Health Services",5.2,"Mental Health & Substance Abuse Subcapitation",{"$f":"IFERROR('MMA Rev-Exp Region 4'!$Z$42/'MMA Rev-Exp Region 4'!$Z$9, 0)","v":{"v":0,"d":"$0.00"}},{"$f":"IFERROR('MMA Rev-Exp Region 4'!$AA$42/'MMA Rev-Exp Region 4'!$AA$9, 0)","v":{"v":0,"d":"$0.00"}},{"$f":"IFERROR('MMA Rev-Exp Region 4'!$AB$42/'MMA Rev-Exp Region 4'!$AB$9, 0)","v":{"v":0,"d":"$0.00"}},{"$f":"IFERROR('MMA Rev-Exp Region 4'!$AC$42/'MMA Rev-Exp Region 4'!$AC$9, 0)","v":{"v":0,"d":"$0.00"}},{"$f":"IFERROR('MMA Rev-Exp Region 4'!$AD$42/'MMA Rev-Exp Region 4'!$AD$9, 0)","v":{"v":0,"d":"$0.00"}},{"$f":"IFERROR('MMA Rev-Exp Region 4'!$AE$42/'MMA Rev-Exp Region 4'!$AE$9, 0)","v":{"v":0,"d":"$0.00"}},{"$f":"IFERROR('MMA Rev-Exp Region 4'!$AF$42/'MMA Rev-Exp Region 4'!$AF$9, 0)","v":{"v":0,"d":"$0.00"}},{"$f":"IFERROR('MMA Rev-Exp Region 4'!$AG$42/'MMA Rev-Exp Region 4'!$AG$9, 0)","v":{"v":0,"d":"$0.00"}},{"$f":"IFERROR('MMA Rev-Exp Region 4'!$AH$42/'MMA Rev-Exp Region 4'!$AH$9, 0)","v":{"v":0,"d":"$0.00"}},{"$f":"IFERROR('MMA Rev-Exp Region 4'!$AI$42/'MMA Rev-Exp Region 4'!$AI$9, 0)","v":{"v":0,"d":"$0.00"}},{"$f":"IFERROR('MMA Rev-Exp Region 4'!$AJ$42/'MMA Rev-Exp Region 4'!$AJ$9, 0)","v":{"v":0,"d":"$0.00"}}]
["MMA",null,null,2016,"2016-12-31","Q3","2017-09-30","Region 4","Operating Expense","Medical Benefits Expense","Mental Health Services",5.3,"Ending IBNP for Mental Health & Substance Abuse",{"$f":"IFERROR('MMA Rev-Exp Region 4'!$Z$43/'MMA Rev-Exp Region 4'!$Z$9, 0)","v":{"v":0,"d":"$0.00"}},{"$f":"IFERROR('MMA Rev-Exp Region 4'!$AA$43/'MMA Rev-Exp Region 4'!$AA$9, 0)","v":{"v":0,"d":"$0.00"}},{"$f":"IFERROR('MMA Rev-Exp Region 4'!$AB$43/'MMA Rev-Exp Region 4'!$AB$9, 0)","v":{"v":0,"d":"$0.00"}},{"$f":"IFERROR('MMA Rev-Exp Region 4'!$AC$43/'MMA Rev-Exp Region 4'!$AC$9, 0)","v":{"v":0,"d":"$0.00"}},{"$f":"IFERROR('MMA Rev-Exp Region 4'!$AD$43/'MMA Rev-Exp Region 4'!$AD$9, 0)","v":{"v":0,"d":"$0.00"}},{"$f":"IFERROR('MMA Rev-Exp Region 4'!$AE$43/'MMA Rev-Exp Region 4'!$AE$9, 0)","v":{"v":0,"d":"$0.00"}},{"$f":"IFERROR('MMA Rev-Exp Region 4'!$AF$43/'MMA Rev-Exp Region 4'!$AF$9, 0)","v":{"v":0,"d":"$0.00"}},{"$f":"IFERROR('MMA Rev-Exp Region 4'!$AG$43/'MMA Rev-Exp Region 4'!$AG$9, 0)","v":{"v":0,"d":"$0.00"}},{"$f":"IFERROR('MMA Rev-Exp Region 4'!$AH$43/'MMA Rev-Exp Region 4'!$AH$9, 0)","v":{"v":0,"d":"$0.00"}},{"$f":"IFERROR('MMA Rev-Exp Region 4'!$AI$43/'MMA Rev-Exp Region 4'!$AI$9, 0)","v":{"v":0,"d":"$0.00"}},{"$f":"IFERROR('MMA Rev-Exp Region 4'!$AJ$43/'MMA Rev-Exp Region 4'!$AJ$9, 0)","v":{"v":0,"d":"$0.00"}}]
["MMA",null,null,2016,"2016-12-31","Q3","2017-09-30","Region 4","Operating Expense","Medical Benefits Expense","Mental Health Services","5.4","Mental Health Settlements",{"$f":"IFERROR('MMA Rev-Exp Region 4'!$Z$44/'MMA Rev-Exp Region 4'!$Z$9, 0)","v":{"v":0,"d":"$0.00"}},{"$f":"IFERROR('MMA Rev-Exp Region 4'!$AA$44/'MMA Rev-Exp Region 4'!$AA$9, 0)","v":{"v":0,"d":"$0.00"}},{"$f":"IFERROR('MMA Rev-Exp Region 4'!$AB$44/'MMA Rev-Exp Region 4'!$AB$9, 0)","v":{"v":0,"d":"$0.00"}},{"$f":"IFERROR('MMA Rev-Exp Region 4'!$AC$44/'MMA Rev-Exp Region 4'!$AC$9, 0)","v":{"v":0,"d":"$0.00"}},{"$f":"IFERROR('MMA Rev-Exp Region 4'!$AD$44/'MMA Rev-Exp Region 4'!$AD$9, 0)","v":{"v":0,"d":"$0.00"}},{"$f":"IFERROR('MMA Rev-Exp Region 4'!$AE$44/'MMA Rev-Exp Region 4'!$AE$9, 0)","v":{"v":0,"d":"$0.00"}},{"$f":"IFERROR('MMA Rev-Exp Region 4'!$AF$44/'MMA Rev-Exp Region 4'!$AF$9, 0)","v":{"v":0,"d":"$0.00"}},{"$f":"IFERROR('MMA Rev-Exp Region 4'!$AG$44/'MMA Rev-Exp Region 4'!$AG$9, 0)","v":{"v":0,"d":"$0.00"}},{"$f":"IFERROR('MMA Rev-Exp Region 4'!$AH$44/'MMA Rev-Exp Region 4'!$AH$9, 0)","v":{"v":0,"d":"$0.00"}},{"$f":"IFERROR('MMA Rev-Exp Region 4'!$AI$44/'MMA Rev-Exp Region 4'!$AI$9, 0)","v":{"v":0,"d":"$0.00"}},{"$f":"IFERROR('MMA Rev-Exp Region 4'!$AJ$44/'MMA Rev-Exp Region 4'!$AJ$9, 0)","v":{"v":0,"d":"$0.00"}}]
["MMA",null,null,2016,"2016-12-31","Q3","2017-09-30","Region 4","Operating Expense","Medical Benefits Expense","Dental Services",6.1,"Dental FFS",{"$f":"IFERROR('MMA Rev-Exp Region 4'!$Z$46/'MMA Rev-Exp Region 4'!$Z$9, 0)","v":{"v":0,"d":"$0.00"}},{"$f":"IFERROR('MMA Rev-Exp Region 4'!$AA$46/'MMA Rev-Exp Region 4'!$AA$9, 0)","v":{"v":0,"d":"$0.00"}},{"$f":"IFERROR('MMA Rev-Exp Region 4'!$AB$46/'MMA Rev-Exp Region 4'!$AB$9, 0)","v":{"v":0,"d":"$0.00"}},{"$f":"IFERROR('MMA Rev-Exp Region 4'!$AC$46/'MMA Rev-Exp Region 4'!$AC$9, 0)","v":{"v":0,"d":"$0.00"}},{"$f":"IFERROR('MMA Rev-Exp Region 4'!$AD$46/'MMA Rev-Exp Region 4'!$AD$9, 0)","v":{"v":0,"d":"$0.00"}},{"$f":"IFERROR('MMA Rev-Exp Region 4'!$AE$46/'MMA Rev-Exp Region 4'!$AE$9, 0)","v":{"v":0,"d":"$0.00"}},{"$f":"IFERROR('MMA Rev-Exp Region 4'!$AF$46/'MMA Rev-Exp Region 4'!$AF$9, 0)","v":{"v":0,"d":"$0.00"}},{"$f":"IFERROR('MMA Rev-Exp Region 4'!$AG$46/'MMA Rev-Exp Region 4'!$AG$9, 0)","v":{"v":0,"d":"$0.00"}},{"$f":"IFERROR('MMA Rev-Exp Region 4'!$AH$46/'MMA Rev-Exp Region 4'!$AH$9, 0)","v":{"v":0,"d":"$0.00"}},{"$f":"IFERROR('MMA Rev-Exp Region 4'!$AI$46/'MMA Rev-Exp Region 4'!$AI$9, 0)","v":{"v":0,"d":"$0.00"}},{"$f":"IFERROR('MMA Rev-Exp Region 4'!$AJ$46/'MMA Rev-Exp Region 4'!$AJ$9, 0)","v":{"v":0,"d":"$0.00"}}]
["MMA",null,null,2016,"2016-12-31","Q3","2017-09-30","Region 4","Operating Expense","Medical Benefits Expense","Dental Services",6.2,"Dental Subcapitation",{"$f":"IFERROR('MMA Rev-Exp Region 4'!$Z$47/'MMA Rev-Exp Region 4'!$Z$9, 0)","v":{"v":0,"d":"$0.00"}},{"$f":"IFERROR('MMA Rev-Exp Region 4'!$AA$47/'MMA Rev-Exp Region 4'!$AA$9, 0)","v":{"v":0,"d":"$0.00"}},{"$f":"IFERROR('MMA Rev-Exp Region 4'!$AB$47/'MMA Rev-Exp Region 4'!$AB$9, 0)","v":{"v":0,"d":"$0.00"}},{"$f":"IFERROR('MMA Rev-Exp Region 4'!$AC$47/'MMA Rev-Exp Region 4'!$AC$9, 0)","v":{"v":0,"d":"$0.00"}},{"$f":"IFERROR('MMA Rev-Exp Region 4'!$AD$47/'MMA Rev-Exp Region 4'!$AD$9, 0)","v":{"v":0,"d":"$0.00"}},{"$f":"IFERROR('MMA Rev-Exp Region 4'!$AE$47/'MMA Rev-Exp Region 4'!$AE$9, 0)","v":{"v":0,"d":"$0.00"}},{"$f":"IFERROR('MMA Rev-Exp Region 4'!$AF$47/'MMA Rev-Exp Region 4'!$AF$9, 0)","v":{"v":0,"d":"$0.00"}},{"$f":"IFERROR('MMA Rev-Exp Region 4'!$AG$47/'MMA Rev-Exp Region 4'!$AG$9, 0)","v":{"v":0,"d":"$0.00"}},{"$f":"IFERROR('MMA Rev-Exp Region 4'!$AH$47/'MMA Rev-Exp Region 4'!$AH$9, 0)","v":{"v":0,"d":"$0.00"}},{"$f":"IFERROR('MMA Rev-Exp Region 4'!$AI$47/'MMA Rev-Exp Region 4'!$AI$9, 0)","v":{"v":0,"d":"$0.00"}},{"$f":"IFERROR('MMA Rev-Exp Region 4'!$AJ$47/'MMA Rev-Exp Region 4'!$AJ$9, 0)","v":{"v":0,"d":"$0.00"}}]
["MMA",null,null,2016,"2016-12-31","Q3","2017-09-30","Region 4","Operating Expense","Medical Benefits Expense","Dental Services",6.3,"Ending IBNP for Dental Services",{"$f":"IFERROR('MMA Rev-Exp Region 4'!$Z$48/'MMA Rev-Exp Region 4'!$Z$9, 0)","v":{"v":0,"d":"$0.00"}},{"$f":"IFERROR('MMA Rev-Exp Region 4'!$AA$48/'MMA Rev-Exp Region 4'!$AA$9, 0)","v":{"v":0,"d":"$0.00"}},{"$f":"IFERROR('MMA Rev-Exp Region 4'!$AB$48/'MMA Rev-Exp Region 4'!$AB$9, 0)","v":{"v":0,"d":"$0.00"}},{"$f":"IFERROR('MMA Rev-Exp Region 4'!$AC$48/'MMA Rev-Exp Region 4'!$AC$9, 0)","v":{"v":0,"d":"$0.00"}},{"$f":"IFERROR('MMA Rev-Exp Region 4'!$AD$48/'MMA Rev-Exp Region 4'!$AD$9, 0)","v":{"v":0,"d":"$0.00"}},{"$f":"IFERROR('MMA Rev-Exp Region 4'!$AE$48/'MMA Rev-Exp Region 4'!$AE$9, 0)","v":{"v":0,"d":"$0.00"}},{"$f":"IFERROR('MMA Rev-Exp Region 4'!$AF$48/'MMA Rev-Exp Region 4'!$AF$9, 0)","v":{"v":0,"d":"$0.00"}},{"$f":"IFERROR('MMA Rev-Exp Region 4'!$AG$48/'MMA Rev-Exp Region 4'!$AG$9, 0)","v":{"v":0,"d":"$0.00"}},{"$f":"IFERROR('MMA Rev-Exp Region 4'!$AH$48/'MMA Rev-Exp Region 4'!$AH$9, 0)","v":{"v":0,"d":"$0.00"}},{"$f":"IFERROR('MMA Rev-Exp Region 4'!$AI$48/'MMA Rev-Exp Region 4'!$AI$9, 0)","v":{"v":0,"d":"$0.00"}},{"$f":"IFERROR('MMA Rev-Exp Region 4'!$AJ$48/'MMA Rev-Exp Region 4'!$AJ$9, 0)","v":{"v":0,"d":"$0.00"}}]
["MMA",null,null,2016,"2016-12-31","Q3","2017-09-30","Region 4","Operating Expense","Medical Benefits Expense","Dental Services","6.4","Dental Settlements",{"$f":"IFERROR('MMA Rev-Exp Region 4'!$Z$49/'MMA Rev-Exp Region 4'!$Z$9, 0)","v":{"v":0,"d":"$0.00"}},{"$f":"IFERROR('MMA Rev-Exp Region 4'!$AA$49/'MMA Rev-Exp Region 4'!$AA$9, 0)","v":{"v":0,"d":"$0.00"}},{"$f":"IFERROR('MMA Rev-Exp Region 4'!$AB$49/'MMA Rev-Exp Region 4'!$AB$9, 0)","v":{"v":0,"d":"$0.00"}},{"$f":"IFERROR('MMA Rev-Exp Region 4'!$AC$49/'MMA Rev-Exp Region 4'!$AC$9, 0)","v":{"v":0,"d":"$0.00"}},{"$f":"IFERROR('MMA Rev-Exp Region 4'!$AD$49/'MMA Rev-Exp Region 4'!$AD$9, 0)","v":{"v":0,"d":"$0.00"}},{"$f":"IFERROR('MMA Rev-Exp Region 4'!$AE$49/'MMA Rev-Exp Region 4'!$AE$9, 0)","v":{"v":0,"d":"$0.00"}},{"$f":"IFERROR('MMA Rev-Exp Region 4'!$AF$49/'MMA Rev-Exp Region 4'!$AF$9, 0)","v":{"v":0,"d":"$0.00"}},{"$f":"IFERROR('MMA Rev-Exp Region 4'!$AG$49/'MMA Rev-Exp Region 4'!$AG$9, 0)","v":{"v":0,"d":"$0.00"}},{"$f":"IFERROR('MMA Rev-Exp Region 4'!$AH$49/'MMA Rev-Exp Region 4'!$AH$9, 0)","v":{"v":0,"d":"$0.00"}},{"$f":"IFERROR('MMA Rev-Exp Region 4'!$AI$49/'MMA Rev-Exp Region 4'!$AI$9, 0)","v":{"v":0,"d":"$0.00"}},{"$f":"IFERROR('MMA Rev-Exp Region 4'!$AJ$49/'MMA Rev-Exp Region 4'!$AJ$9, 0)","v":{"v":0,"d":"$0.00"}}]
["MMA",null,null,2016,"2016-12-31","Q3","2017-09-30","Region 4","Operating Expense","Medical Benefits Expense","Transportation Services",7.1,"Transportation FFS",{"$f":"IFERROR('MMA Rev-Exp Region 4'!$Z$51/'MMA Rev-Exp Region 4'!$Z$9, 0)","v":{"v":0,"d":"$0.00"}},{"$f":"IFERROR('MMA Rev-Exp Region 4'!$AA$51/'MMA Rev-Exp Region 4'!$AA$9, 0)","v":{"v":0,"d":"$0.00"}},{"$f":"IFERROR('MMA Rev-Exp Region 4'!$AB$51/'MMA Rev-Exp Region 4'!$AB$9, 0)","v":{"v":0,"d":"$0.00"}},{"$f":"IFERROR('MMA Rev-Exp Region 4'!$AC$51/'MMA Rev-Exp Region 4'!$AC$9, 0)","v":{"v":0,"d":"$0.00"}},{"$f":"IFERROR('MMA Rev-Exp Region 4'!$AD$51/'MMA Rev-Exp Region 4'!$AD$9, 0)","v":{"v":0,"d":"$0.00"}},{"$f":"IFERROR('MMA Rev-Exp Region 4'!$AE$51/'MMA Rev-Exp Region 4'!$AE$9, 0)","v":{"v":0,"d":"$0.00"}},{"$f":"IFERROR('MMA Rev-Exp Region 4'!$AF$51/'MMA Rev-Exp Region 4'!$AF$9, 0)","v":{"v":0,"d":"$0.00"}},{"$f":"IFERROR('MMA Rev-Exp Region 4'!$AG$51/'MMA Rev-Exp Region 4'!$AG$9, 0)","v":{"v":0,"d":"$0.00"}},{"$f":"IFERROR('MMA Rev-Exp Region 4'!$AH$51/'MMA Rev-Exp Region 4'!$AH$9, 0)","v":{"v":0,"d":"$0.00"}},{"$f":"IFERROR('MMA Rev-Exp Region 4'!$AI$51/'MMA Rev-Exp Region 4'!$AI$9, 0)","v":{"v":0,"d":"$0.00"}},{"$f":"IFERROR('MMA Rev-Exp Region 4'!$AJ$51/'MMA Rev-Exp Region 4'!$AJ$9, 0)","v":{"v":0,"d":"$0.00"}}]
["MMA",null,null,2016,"2016-12-31","Q3","2017-09-30","Region 4","Operating Expense","Medical Benefits Expense","Transportation Services",7.2,"Transportation Subcapitation",{"$f":"IFERROR('MMA Rev-Exp Region 4'!$Z$52/'MMA Rev-Exp Region 4'!$Z$9, 0)","v":{"v":0,"d":"$0.00"}},{"$f":"IFERROR('MMA Rev-Exp Region 4'!$AA$52/'MMA Rev-Exp Region 4'!$AA$9, 0)","v":{"v":0,"d":"$0.00"}},{"$f":"IFERROR('MMA Rev-Exp Region 4'!$AB$52/'MMA Rev-Exp Region 4'!$AB$9, 0)","v":{"v":0,"d":"$0.00"}},{"$f":"IFERROR('MMA Rev-Exp Region 4'!$AC$52/'MMA Rev-Exp Region 4'!$AC$9, 0)","v":{"v":0,"d":"$0.00"}},{"$f":"IFERROR('MMA Rev-Exp Region 4'!$AD$52/'MMA Rev-Exp Region 4'!$AD$9, 0)","v":{"v":0,"d":"$0.00"}},{"$f":"IFERROR('MMA Rev-Exp Region 4'!$AE$52/'MMA Rev-Exp Region 4'!$AE$9, 0)","v":{"v":0,"d":"$0.00"}},{"$f":"IFERROR('MMA Rev-Exp Region 4'!$AF$52/'MMA Rev-Exp Region 4'!$AF$9, 0)","v":{"v":0,"d":"$0.00"}},{"$f":"IFERROR('MMA Rev-Exp Region 4'!$AG$52/'MMA Rev-Exp Region 4'!$AG$9, 0)","v":{"v":0,"d":"$0.00"}},{"$f":"IFERROR('MMA Rev-Exp Region 4'!$AH$52/'MMA Rev-Exp Region 4'!$AH$9, 0)","v":{"v":0,"d":"$0.00"}},{"$f":"IFERROR('MMA Rev-Exp Region 4'!$AI$52/'MMA Rev-Exp Region 4'!$AI$9, 0)","v":{"v":0,"d":"$0.00"}},{"$f":"IFERROR('MMA Rev-Exp Region 4'!$AJ$52/'MMA Rev-Exp Region 4'!$AJ$9, 0)","v":{"v":0,"d":"$0.00"}}]
["MMA",null,null,2016,"2016-12-31","Q3","2017-09-30","Region 4","Operating Expense","Medical Benefits Expense","Transportation Services",7.3,"Ending IBNP for Transportation",{"$f":"IFERROR('MMA Rev-Exp Region 4'!$Z$53/'MMA Rev-Exp Region 4'!$Z$9, 0)","v":{"v":0,"d":"$0.00"}},{"$f":"IFERROR('MMA Rev-Exp Region 4'!$AA$53/'MMA Rev-Exp Region 4'!$AA$9, 0)","v":{"v":0,"d":"$0.00"}},{"$f":"IFERROR('MMA Rev-Exp Region 4'!$AB$53/'MMA Rev-Exp Region 4'!$AB$9, 0)","v":{"v":0,"d":"$0.00"}},{"$f":"IFERROR('MMA Rev-Exp Region 4'!$AC$53/'MMA Rev-Exp Region 4'!$AC$9, 0)","v":{"v":0,"d":"$0.00"}},{"$f":"IFERROR('MMA Rev-Exp Region 4'!$AD$53/'MMA Rev-Exp Region 4'!$AD$9, 0)","v":{"v":0,"d":"$0.00"}},{"$f":"IFERROR('MMA Rev-Exp Region 4'!$AE$53/'MMA Rev-Exp Region 4'!$AE$9, 0)","v":{"v":0,"d":"$0.00"}},{"$f":"IFERROR('MMA Rev-Exp Region 4'!$AF$53/'MMA Rev-Exp Region 4'!$AF$9, 0)","v":{"v":0,"d":"$0.00"}},{"$f":"IFERROR('MMA Rev-Exp Region 4'!$AG$53/'MMA Rev-Exp Region 4'!$AG$9, 0)","v":{"v":0,"d":"$0.00"}},{"$f":"IFERROR('MMA Rev-Exp Region 4'!$AH$53/'MMA Rev-Exp Region 4'!$AH$9, 0)","v":{"v":0,"d":"$0.00"}},{"$f":"IFERROR('MMA Rev-Exp Region 4'!$AI$53/'MMA Rev-Exp Region 4'!$AI$9, 0)","v":{"v":0,"d":"$0.00"}},{"$f":"IFERROR('MMA Rev-Exp Region 4'!$AJ$53/'MMA Rev-Exp Region 4'!$AJ$9, 0)","v":{"v":0,"d":"$0.00"}}]
["MMA",null,null,2016,"2016-12-31","Q3","2017-09-30","Region 4","Operating Expense","Medical Benefits Expense","Transportation Services","7.4","Transportation Settlements",{"$f":"IFERROR('MMA Rev-Exp Region 4'!$Z$54/'MMA Rev-Exp Region 4'!$Z$9, 0)","v":{"v":0,"d":"$0.00"}},{"$f":"IFERROR('MMA Rev-Exp Region 4'!$AA$54/'MMA Rev-Exp Region 4'!$AA$9, 0)","v":{"v":0,"d":"$0.00"}},{"$f":"IFERROR('MMA Rev-Exp Region 4'!$AB$54/'MMA Rev-Exp Region 4'!$AB$9, 0)","v":{"v":0,"d":"$0.00"}},{"$f":"IFERROR('MMA Rev-Exp Region 4'!$AC$54/'MMA Rev-Exp Region 4'!$AC$9, 0)","v":{"v":0,"d":"$0.00"}},{"$f":"IFERROR('MMA Rev-Exp Region 4'!$AD$54/'MMA Rev-Exp Region 4'!$AD$9, 0)","v":{"v":0,"d":"$0.00"}},{"$f":"IFERROR('MMA Rev-Exp Region 4'!$AE$54/'MMA Rev-Exp Region 4'!$AE$9, 0)","v":{"v":0,"d":"$0.00"}},{"$f":"IFERROR('MMA Rev-Exp Region 4'!$AF$54/'MMA Rev-Exp Region 4'!$AF$9, 0)","v":{"v":0,"d":"$0.00"}},{"$f":"IFERROR('MMA Rev-Exp Region 4'!$AG$54/'MMA Rev-Exp Region 4'!$AG$9, 0)","v":{"v":0,"d":"$0.00"}},{"$f":"IFERROR('MMA Rev-Exp Region 4'!$AH$54/'MMA Rev-Exp Region 4'!$AH$9, 0)","v":{"v":0,"d":"$0.00"}},{"$f":"IFERROR('MMA Rev-Exp Region 4'!$AI$54/'MMA Rev-Exp Region 4'!$AI$9, 0)","v":{"v":0,"d":"$0.00"}},{"$f":"IFERROR('MMA Rev-Exp Region 4'!$AJ$54/'MMA Rev-Exp Region 4'!$AJ$9, 0)","v":{"v":0,"d":"$0.00"}}]
["MMA",null,null,2016,"2016-12-31","Q3","2017-09-30","Region 4","Operating Expense","Medical Benefits Expense","Pharmacy Services",8.1,"Prescription Drugs FFS",{"$f":"IFERROR('MMA Rev-Exp Region 4'!$Z$56/'MMA Rev-Exp Region 4'!$Z$9, 0)","v":{"v":0,"d":"$0.00"}},{"$f":"IFERROR('MMA Rev-Exp Region 4'!$AA$56/'MMA Rev-Exp Region 4'!$AA$9, 0)","v":{"v":0,"d":"$0.00"}},{"$f":"IFERROR('MMA Rev-Exp Region 4'!$AB$56/'MMA Rev-Exp Region 4'!$AB$9, 0)","v":{"v":0,"d":"$0.00"}},{"$f":"IFERROR('MMA Rev-Exp Region 4'!$AC$56/'MMA Rev-Exp Region 4'!$AC$9, 0)","v":{"v":0,"d":"$0.00"}},{"$f":"IFERROR('MMA Rev-Exp Region 4'!$AD$56/'MMA Rev-Exp Region 4'!$AD$9, 0)","v":{"v":0,"d":"$0.00"}},{"$f":"IFERROR('MMA Rev-Exp Region 4'!$AE$56/'MMA Rev-Exp Region 4'!$AE$9, 0)","v":{"v":0,"d":"$0.00"}},{"$f":"IFERROR('MMA Rev-Exp Region 4'!$AF$56/'MMA Rev-Exp Region 4'!$AF$9, 0)","v":{"v":0,"d":"$0.00"}},{"$f":"IFERROR('MMA Rev-Exp Region 4'!$AG$56/'MMA Rev-Exp Region 4'!$AG$9, 0)","v":{"v":0,"d":"$0.00"}},{"$f":"IFERROR('MMA Rev-Exp Region 4'!$AH$56/'MMA Rev-Exp Region 4'!$AH$9, 0)","v":{"v":0,"d":"$0.00"}},{"$f":"IFERROR('MMA Rev-Exp Region 4'!$AI$56/'MMA Rev-Exp Region 4'!$AI$9, 0)","v":{"v":0,"d":"$0.00"}},{"$f":"IFERROR('MMA Rev-Exp Region 4'!$AJ$56/'MMA Rev-Exp Region 4'!$AJ$9, 0)","v":{"v":0,"d":"$0.00"}}]
["MMA",null,null,2016,"2016-12-31","Q3","2017-09-30","Region 4","Operating Expense","Medical Benefits Expense","Pharmacy Services","8.2","Hepatitis C Prescription Drug FFS",{"$f":"IFERROR('MMA Rev-Exp Region 4'!$Z$57/'MMA Rev-Exp Region 4'!$Z$9, 0)","v":{"v":0,"d":"$0.00"}},{"$f":"IFERROR('MMA Rev-Exp Region 4'!$AA$57/'MMA Rev-Exp Region 4'!$AA$9, 0)","v":{"v":0,"d":"$0.00"}},{"$f":"IFERROR('MMA Rev-Exp Region 4'!$AB$57/'MMA Rev-Exp Region 4'!$AB$9, 0)","v":{"v":0,"d":"$0.00"}},{"$f":"IFERROR('MMA Rev-Exp Region 4'!$AC$57/'MMA Rev-Exp Region 4'!$AC$9, 0)","v":{"v":0,"d":"$0.00"}},{"$f":"IFERROR('MMA Rev-Exp Region 4'!$AD$57/'MMA Rev-Exp Region 4'!$AD$9, 0)","v":{"v":0,"d":"$0.00"}},{"$f":"IFERROR('MMA Rev-Exp Region 4'!$AE$57/'MMA Rev-Exp Region 4'!$AE$9, 0)","v":{"v":0,"d":"$0.00"}},{"$f":"IFERROR('MMA Rev-Exp Region 4'!$AF$57/'MMA Rev-Exp Region 4'!$AF$9, 0)","v":{"v":0,"d":"$0.00"}},{"$f":"IFERROR('MMA Rev-Exp Region 4'!$AG$57/'MMA Rev-Exp Region 4'!$AG$9, 0)","v":{"v":0,"d":"$0.00"}},{"$f":"IFERROR('MMA Rev-Exp Region 4'!$AH$57/'MMA Rev-Exp Region 4'!$AH$9, 0)","v":{"v":0,"d":"$0.00"}},{"$f":"IFERROR('MMA Rev-Exp Region 4'!$AI$57/'MMA Rev-Exp Region 4'!$AI$9, 0)","v":{"v":0,"d":"$0.00"}},{"$f":"IFERROR('MMA Rev-Exp Region 4'!$AJ$57/'MMA Rev-Exp Region 4'!$AJ$9, 0)","v":{"v":0,"d":"$0.00"}}]
["MMA",null,null,2016,"2016-12-31","Q3","2017-09-30","Region 4","Operating Expense","Medical Benefits Expense","Pharmacy Services","8.3","Ending IBNP for Prescription Drugs",{"$f":"IFERROR('MMA Rev-Exp Region 4'!$Z$58/'MMA Rev-Exp Region 4'!$Z$9, 0)","v":{"v":0,"d":"$0.00"}},{"$f":"IFERROR('MMA Rev-Exp Region 4'!$AA$58/'MMA Rev-Exp Region 4'!$AA$9, 0)","v":{"v":0,"d":"$0.00"}},{"$f":"IFERROR('MMA Rev-Exp Region 4'!$AB$58/'MMA Rev-Exp Region 4'!$AB$9, 0)","v":{"v":0,"d":"$0.00"}},{"$f":"IFERROR('MMA Rev-Exp Region 4'!$AC$58/'MMA Rev-Exp Region 4'!$AC$9, 0)","v":{"v":0,"d":"$0.00"}},{"$f":"IFERROR('MMA Rev-Exp Region 4'!$AD$58/'MMA Rev-Exp Region 4'!$AD$9, 0)","v":{"v":0,"d":"$0.00"}},{"$f":"IFERROR('MMA Rev-Exp Region 4'!$AE$58/'MMA Rev-Exp Region 4'!$AE$9, 0)","v":{"v":0,"d":"$0.00"}},{"$f":"IFERROR('MMA Rev-Exp Region 4'!$AF$58/'MMA Rev-Exp Region 4'!$AF$9, 0)","v":{"v":0,"d":"$0.00"}},{"$f":"IFERROR('MMA Rev-Exp Region 4'!$AG$58/'MMA Rev-Exp Region 4'!$AG$9, 0)","v":{"v":0,"d":"$0.00"}},{"$f":"IFERROR('MMA Rev-Exp Region 4'!$AH$58/'MMA Rev-Exp Region 4'!$AH$9, 0)","v":{"v":0,"d":"$0.00"}},{"$f":"IFERROR('MMA Rev-Exp Region 4'!$AI$58/'MMA Rev-Exp Region 4'!$AI$9, 0)","v":{"v":0,"d":"$0.00"}},{"$f":"IFERROR('MMA Rev-Exp Region 4'!$AJ$58/'MMA Rev-Exp Region 4'!$AJ$9, 0)","v":{"v":0,"d":"$0.00"}}]
["MMA",null,null,2016,"2016-12-31","Q3","2017-09-30","Region 4","Operating Expense","Medical Benefits Expense","Pharmacy Services","8.4","Prescription Drug Rebates ",{"$f":"IFERROR('MMA Rev-Exp Region 4'!$Z$59/'MMA Rev-Exp Region 4'!$Z$9, 0)","v":{"v":0,"d":"$0.00"}},{"$f":"IFERROR('MMA Rev-Exp Region 4'!$AA$59/'MMA Rev-Exp Region 4'!$AA$9, 0)","v":{"v":0,"d":"$0.00"}},{"$f":"IFERROR('MMA Rev-Exp Region 4'!$AB$59/'MMA Rev-Exp Region 4'!$AB$9, 0)","v":{"v":0,"d":"$0.00"}},{"$f":"IFERROR('MMA Rev-Exp Region 4'!$AC$59/'MMA Rev-Exp Region 4'!$AC$9, 0)","v":{"v":0,"d":"$0.00"}},{"$f":"IFERROR('MMA Rev-Exp Region 4'!$AD$59/'MMA Rev-Exp Region 4'!$AD$9, 0)","v":{"v":0,"d":"$0.00"}},{"$f":"IFERROR('MMA Rev-Exp Region 4'!$AE$59/'MMA Rev-Exp Region 4'!$AE$9, 0)","v":{"v":0,"d":"$0.00"}},{"$f":"IFERROR('MMA Rev-Exp Region 4'!$AF$59/'MMA Rev-Exp Region 4'!$AF$9, 0)","v":{"v":0,"d":"$0.00"}},{"$f":"IFERROR('MMA Rev-Exp Region 4'!$AG$59/'MMA Rev-Exp Region 4'!$AG$9, 0)","v":{"v":0,"d":"$0.00"}},{"$f":"IFERROR('MMA Rev-Exp Region 4'!$AH$59/'MMA Rev-Exp Region 4'!$AH$9, 0)","v":{"v":0,"d":"$0.00"}},{"$f":"IFERROR('MMA Rev-Exp Region 4'!$AI$59/'MMA Rev-Exp Region 4'!$AI$9, 0)","v":{"v":0,"d":"$0.00"}},{"$f":"IFERROR('MMA Rev-Exp Region 4'!$AJ$59/'MMA Rev-Exp Region 4'!$AJ$9, 0)","v":{"v":0,"d":"$0.00"}}]
["MMA",null,null,2016,"2016-12-31","Q3","2017-09-30","Region 4","Operating Expense","Medical Benefits Expense","Pharmacy Services","8.5","Ending accrual for Rebates receivable",{"$f":"IFERROR('MMA Rev-Exp Region 4'!$Z$60/'MMA Rev-Exp Region 4'!$Z$9, 0)","v":{"v":0,"d":"$0.00"}},{"$f":"IFERROR('MMA Rev-Exp Region 4'!$AA$60/'MMA Rev-Exp Region 4'!$AA$9, 0)","v":{"v":0,"d":"$0.00"}},{"$f":"IFERROR('MMA Rev-Exp Region 4'!$AB$60/'MMA Rev-Exp Region 4'!$AB$9, 0)","v":{"v":0,"d":"$0.00"}},{"$f":"IFERROR('MMA Rev-Exp Region 4'!$AC$60/'MMA Rev-Exp Region 4'!$AC$9, 0)","v":{"v":0,"d":"$0.00"}},{"$f":"IFERROR('MMA Rev-Exp Region 4'!$AD$60/'MMA Rev-Exp Region 4'!$AD$9, 0)","v":{"v":0,"d":"$0.00"}},{"$f":"IFERROR('MMA Rev-Exp Region 4'!$AE$60/'MMA Rev-Exp Region 4'!$AE$9, 0)","v":{"v":0,"d":"$0.00"}},{"$f":"IFERROR('MMA Rev-Exp Region 4'!$AF$60/'MMA Rev-Exp Region 4'!$AF$9, 0)","v":{"v":0,"d":"$0.00"}},{"$f":"IFERROR('MMA Rev-Exp Region 4'!$AG$60/'MMA Rev-Exp Region 4'!$AG$9, 0)","v":{"v":0,"d":"$0.00"}},{"$f":"IFERROR('MMA Rev-Exp Region 4'!$AH$60/'MMA Rev-Exp Region 4'!$AH$9, 0)","v":{"v":0,"d":"$0.00"}},{"$f":"IFERROR('MMA Rev-Exp Region 4'!$AI$60/'MMA Rev-Exp Region 4'!$AI$9, 0)","v":{"v":0,"d":"$0.00"}},{"$f":"IFERROR('MMA Rev-Exp Region 4'!$AJ$60/'MMA Rev-Exp Region 4'!$AJ$9, 0)","v":{"v":0,"d":"$0.00"}}]
["MMA",null,null,2016,"2016-12-31","Q3","2017-09-30","Region 4","Operating Expense","Medical Benefits Expense","Pharmacy Services","8.6","Prescription Drugs Subcapitation",{"$f":"IFERROR('MMA Rev-Exp Region 4'!$Z$61/'MMA Rev-Exp Region 4'!$Z$9, 0)","v":{"v":0,"d":"$0.00"}},{"$f":"IFERROR('MMA Rev-Exp Region 4'!$AA$61/'MMA Rev-Exp Region 4'!$AA$9, 0)","v":{"v":0,"d":"$0.00"}},{"$f":"IFERROR('MMA Rev-Exp Region 4'!$AB$61/'MMA Rev-Exp Region 4'!$AB$9, 0)","v":{"v":0,"d":"$0.00"}},{"$f":"IFERROR('MMA Rev-Exp Region 4'!$AC$61/'MMA Rev-Exp Region 4'!$AC$9, 0)","v":{"v":0,"d":"$0.00"}},{"$f":"IFERROR('MMA Rev-Exp Region 4'!$AD$61/'MMA Rev-Exp Region 4'!$AD$9, 0)","v":{"v":0,"d":"$0.00"}},{"$f":"IFERROR('MMA Rev-Exp Region 4'!$AE$61/'MMA Rev-Exp Region 4'!$AE$9, 0)","v":{"v":0,"d":"$0.00"}},{"$f":"IFERROR('MMA Rev-Exp Region 4'!$AF$61/'MMA Rev-Exp Region 4'!$AF$9, 0)","v":{"v":0,"d":"$0.00"}},{"$f":"IFERROR('MMA Rev-Exp Region 4'!$AG$61/'MMA Rev-Exp Region 4'!$AG$9, 0)","v":{"v":0,"d":"$0.00"}},{"$f":"IFERROR('MMA Rev-Exp Region 4'!$AH$61/'MMA Rev-Exp Region 4'!$AH$9, 0)","v":{"v":0,"d":"$0.00"}},{"$f":"IFERROR('MMA Rev-Exp Region 4'!$AI$61/'MMA Rev-Exp Region 4'!$AI$9, 0)","v":{"v":0,"d":"$0.00"}},{"$f":"IFERROR('MMA Rev-Exp Region 4'!$AJ$61/'MMA Rev-Exp Region 4'!$AJ$9, 0)","v":{"v":0,"d":"$0.00"}}]
["MMA",null,null,2016,"2016-12-31","Q3","2017-09-30","Region 4","Operating Expense","Medical Benefits Expense","Pharmacy Services","8.7","Prescription Drug Settlements",{"$f":"IFERROR('MMA Rev-Exp Region 4'!$Z$62/'MMA Rev-Exp Region 4'!$Z$9, 0)","v":{"v":0,"d":"$0.00"}},{"$f":"IFERROR('MMA Rev-Exp Region 4'!$AA$62/'MMA Rev-Exp Region 4'!$AA$9, 0)","v":{"v":0,"d":"$0.00"}},{"$f":"IFERROR('MMA Rev-Exp Region 4'!$AB$62/'MMA Rev-Exp Region 4'!$AB$9, 0)","v":{"v":0,"d":"$0.00"}},{"$f":"IFERROR('MMA Rev-Exp Region 4'!$AC$62/'MMA Rev-Exp Region 4'!$AC$9, 0)","v":{"v":0,"d":"$0.00"}},{"$f":"IFERROR('MMA Rev-Exp Region 4'!$AD$62/'MMA Rev-Exp Region 4'!$AD$9, 0)","v":{"v":0,"d":"$0.00"}},{"$f":"IFERROR('MMA Rev-Exp Region 4'!$AE$62/'MMA Rev-Exp Region 4'!$AE$9, 0)","v":{"v":0,"d":"$0.00"}},{"$f":"IFERROR('MMA Rev-Exp Region 4'!$AF$62/'MMA Rev-Exp Region 4'!$AF$9, 0)","v":{"v":0,"d":"$0.00"}},{"$f":"IFERROR('MMA Rev-Exp Region 4'!$AG$62/'MMA Rev-Exp Region 4'!$AG$9, 0)","v":{"v":0,"d":"$0.00"}},{"$f":"IFERROR('MMA Rev-Exp Region 4'!$AH$62/'MMA Rev-Exp Region 4'!$AH$9, 0)","v":{"v":0,"d":"$0.00"}},{"$f":"IFERROR('MMA Rev-Exp Region 4'!$AI$62/'MMA Rev-Exp Region 4'!$AI$9, 0)","v":{"v":0,"d":"$0.00"}},{"$f":"IFERROR('MMA Rev-Exp Region 4'!$AJ$62/'MMA Rev-Exp Region 4'!$AJ$9, 0)","v":{"v":0,"d":"$0.00"}}]
["MMA",null,null,2016,"2016-12-31","Q3","2017-09-30","Region 4","Operating Expense","Medical Benefits Expense","Other MMA Services",9.1,"Home Health, Private Duty Nursing, Personal Care FFS",{"$f":"IFERROR('MMA Rev-Exp Region 4'!$Z$64/'MMA Rev-Exp Region 4'!$Z$9, 0)","v":{"v":0,"d":"$0.00"}},{"$f":"IFERROR('MMA Rev-Exp Region 4'!$AA$64/'MMA Rev-Exp Region 4'!$AA$9, 0)","v":{"v":0,"d":"$0.00"}},{"$f":"IFERROR('MMA Rev-Exp Region 4'!$AB$64/'MMA Rev-Exp Region 4'!$AB$9, 0)","v":{"v":0,"d":"$0.00"}},{"$f":"IFERROR('MMA Rev-Exp Region 4'!$AC$64/'MMA Rev-Exp Region 4'!$AC$9, 0)","v":{"v":0,"d":"$0.00"}},{"$f":"IFERROR('MMA Rev-Exp Region 4'!$AD$64/'MMA Rev-Exp Region 4'!$AD$9, 0)","v":{"v":0,"d":"$0.00"}},{"$f":"IFERROR('MMA Rev-Exp Region 4'!$AE$64/'MMA Rev-Exp Region 4'!$AE$9, 0)","v":{"v":0,"d":"$0.00"}},{"$f":"IFERROR('MMA Rev-Exp Region 4'!$AF$64/'MMA Rev-Exp Region 4'!$AF$9, 0)","v":{"v":0,"d":"$0.00"}},{"$f":"IFERROR('MMA Rev-Exp Region 4'!$AG$64/'MMA Rev-Exp Region 4'!$AG$9, 0)","v":{"v":0,"d":"$0.00"}},{"$f":"IFERROR('MMA Rev-Exp Region 4'!$AH$64/'MMA Rev-Exp Region 4'!$AH$9, 0)","v":{"v":0,"d":"$0.00"}},{"$f":"IFERROR('MMA Rev-Exp Region 4'!$AI$64/'MMA Rev-Exp Region 4'!$AI$9, 0)","v":{"v":0,"d":"$0.00"}},{"$f":"IFERROR('MMA Rev-Exp Region 4'!$AJ$64/'MMA Rev-Exp Region 4'!$AJ$9, 0)","v":{"v":0,"d":"$0.00"}}]
["MMA",null,null,2016,"2016-12-31","Q3","2017-09-30","Region 4","Operating Expense","Medical Benefits Expense","Other MMA Services","9.2","Hospice FFS",{"$f":"IFERROR('MMA Rev-Exp Region 4'!$Z$65/'MMA Rev-Exp Region 4'!$Z$9, 0)","v":{"v":0,"d":"$0.00"}},{"$f":"IFERROR('MMA Rev-Exp Region 4'!$AA$65/'MMA Rev-Exp Region 4'!$AA$9, 0)","v":{"v":0,"d":"$0.00"}},{"$f":"IFERROR('MMA Rev-Exp Region 4'!$AB$65/'MMA Rev-Exp Region 4'!$AB$9, 0)","v":{"v":0,"d":"$0.00"}},{"$f":"IFERROR('MMA Rev-Exp Region 4'!$AC$65/'MMA Rev-Exp Region 4'!$AC$9, 0)","v":{"v":0,"d":"$0.00"}},{"$f":"IFERROR('MMA Rev-Exp Region 4'!$AD$65/'MMA Rev-Exp Region 4'!$AD$9, 0)","v":{"v":0,"d":"$0.00"}},{"$f":"IFERROR('MMA Rev-Exp Region 4'!$AE$65/'MMA Rev-Exp Region 4'!$AE$9, 0)","v":{"v":0,"d":"$0.00"}},{"$f":"IFERROR('MMA Rev-Exp Region 4'!$AF$65/'MMA Rev-Exp Region 4'!$AF$9, 0)","v":{"v":0,"d":"$0.00"}},{"$f":"IFERROR('MMA Rev-Exp Region 4'!$AG$65/'MMA Rev-Exp Region 4'!$AG$9, 0)","v":{"v":0,"d":"$0.00"}},{"$f":"IFERROR('MMA Rev-Exp Region 4'!$AH$65/'MMA Rev-Exp Region 4'!$AH$9, 0)","v":{"v":0,"d":"$0.00"}},{"$f":"IFERROR('MMA Rev-Exp Region 4'!$AI$65/'MMA Rev-Exp Region 4'!$AI$9, 0)","v":{"v":0,"d":"$0.00"}},{"$f":"IFERROR('MMA Rev-Exp Region 4'!$AJ$65/'MMA Rev-Exp Region 4'!$AJ$9, 0)","v":{"v":0,"d":"$0.00"}}]
["MMA",null,null,2016,"2016-12-31","Q3","2017-09-30","Region 4","Operating Expense","Medical Benefits Expense","Other MMA Services","9.3","DME FFS",{"$f":"IFERROR('MMA Rev-Exp Region 4'!$Z$66/'MMA Rev-Exp Region 4'!$Z$9, 0)","v":{"v":0,"d":"$0.00"}},{"$f":"IFERROR('MMA Rev-Exp Region 4'!$AA$66/'MMA Rev-Exp Region 4'!$AA$9, 0)","v":{"v":0,"d":"$0.00"}},{"$f":"IFERROR('MMA Rev-Exp Region 4'!$AB$66/'MMA Rev-Exp Region 4'!$AB$9, 0)","v":{"v":0,"d":"$0.00"}},{"$f":"IFERROR('MMA Rev-Exp Region 4'!$AC$66/'MMA Rev-Exp Region 4'!$AC$9, 0)","v":{"v":0,"d":"$0.00"}},{"$f":"IFERROR('MMA Rev-Exp Region 4'!$AD$66/'MMA Rev-Exp Region 4'!$AD$9, 0)","v":{"v":0,"d":"$0.00"}},{"$f":"IFERROR('MMA Rev-Exp Region 4'!$AE$66/'MMA Rev-Exp Region 4'!$AE$9, 0)","v":{"v":0,"d":"$0.00"}},{"$f":"IFERROR('MMA Rev-Exp Region 4'!$AF$66/'MMA Rev-Exp Region 4'!$AF$9, 0)","v":{"v":0,"d":"$0.00"}},{"$f":"IFERROR('MMA Rev-Exp Region 4'!$AG$66/'MMA Rev-Exp Region 4'!$AG$9, 0)","v":{"v":0,"d":"$0.00"}},{"$f":"IFERROR('MMA Rev-Exp Region 4'!$AH$66/'MMA Rev-Exp Region 4'!$AH$9, 0)","v":{"v":0,"d":"$0.00"}},{"$f":"IFERROR('MMA Rev-Exp Region 4'!$AI$66/'MMA Rev-Exp Region 4'!$AI$9, 0)","v":{"v":0,"d":"$0.00"}},{"$f":"IFERROR('MMA Rev-Exp Region 4'!$AJ$66/'MMA Rev-Exp Region 4'!$AJ$9, 0)","v":{"v":0,"d":"$0.00"}}]
["MMA",null,null,2016,"2016-12-31","Q3","2017-09-30","Region 4","Operating Expense","Medical Benefits Expense","Other MMA Services","9.4","Other State Plan Services FFS",{"$f":"IFERROR('MMA Rev-Exp Region 4'!$Z$67/'MMA Rev-Exp Region 4'!$Z$9, 0)","v":{"v":0,"d":"$0.00"}},{"$f":"IFERROR('MMA Rev-Exp Region 4'!$AA$67/'MMA Rev-Exp Region 4'!$AA$9, 0)","v":{"v":0,"d":"$0.00"}},{"$f":"IFERROR('MMA Rev-Exp Region 4'!$AB$67/'MMA Rev-Exp Region 4'!$AB$9, 0)","v":{"v":0,"d":"$0.00"}},{"$f":"IFERROR('MMA Rev-Exp Region 4'!$AC$67/'MMA Rev-Exp Region 4'!$AC$9, 0)","v":{"v":0,"d":"$0.00"}},{"$f":"IFERROR('MMA Rev-Exp Region 4'!$AD$67/'MMA Rev-Exp Region 4'!$AD$9, 0)","v":{"v":0,"d":"$0.00"}},{"$f":"IFERROR('MMA Rev-Exp Region 4'!$AE$67/'MMA Rev-Exp Region 4'!$AE$9, 0)","v":{"v":0,"d":"$0.00"}},{"$f":"IFERROR('MMA Rev-Exp Region 4'!$AF$67/'MMA Rev-Exp Region 4'!$AF$9, 0)","v":{"v":0,"d":"$0.00"}},{"$f":"IFERROR('MMA Rev-Exp Region 4'!$AG$67/'MMA Rev-Exp Region 4'!$AG$9, 0)","v":{"v":0,"d":"$0.00"}},{"$f":"IFERROR('MMA Rev-Exp Region 4'!$AH$67/'MMA Rev-Exp Region 4'!$AH$9, 0)","v":{"v":0,"d":"$0.00"}},{"$f":"IFERROR('MMA Rev-Exp Region 4'!$AI$67/'MMA Rev-Exp Region 4'!$AI$9, 0)","v":{"v":0,"d":"$0.00"}},{"$f":"IFERROR('MMA Rev-Exp Region 4'!$AJ$67/'MMA Rev-Exp Region 4'!$AJ$9, 0)","v":{"v":0,"d":"$0.00"}}]
["MMA",null,null,2016,"2016-12-31","Q3","2017-09-30","Region 4","Operating Expense","Medical Benefits Expense","Other MMA Services","9.5","Other Services Subcapitation",{"$f":"IFERROR('MMA Rev-Exp Region 4'!$Z$68/'MMA Rev-Exp Region 4'!$Z$9, 0)","v":{"v":0,"d":"$0.00"}},{"$f":"IFERROR('MMA Rev-Exp Region 4'!$AA$68/'MMA Rev-Exp Region 4'!$AA$9, 0)","v":{"v":0,"d":"$0.00"}},{"$f":"IFERROR('MMA Rev-Exp Region 4'!$AB$68/'MMA Rev-Exp Region 4'!$AB$9, 0)","v":{"v":0,"d":"$0.00"}},{"$f":"IFERROR('MMA Rev-Exp Region 4'!$AC$68/'MMA Rev-Exp Region 4'!$AC$9, 0)","v":{"v":0,"d":"$0.00"}},{"$f":"IFERROR('MMA Rev-Exp Region 4'!$AD$68/'MMA Rev-Exp Region 4'!$AD$9, 0)","v":{"v":0,"d":"$0.00"}},{"$f":"IFERROR('MMA Rev-Exp Region 4'!$AE$68/'MMA Rev-Exp Region 4'!$AE$9, 0)","v":{"v":0,"d":"$0.00"}},{"$f":"IFERROR('MMA Rev-Exp Region 4'!$AF$68/'MMA Rev-Exp Region 4'!$AF$9, 0)","v":{"v":0,"d":"$0.00"}},{"$f":"IFERROR('MMA Rev-Exp Region 4'!$AG$68/'MMA Rev-Exp Region 4'!$AG$9, 0)","v":{"v":0,"d":"$0.00"}},{"$f":"IFERROR('MMA Rev-Exp Region 4'!$AH$68/'MMA Rev-Exp Region 4'!$AH$9, 0)","v":{"v":0,"d":"$0.00"}},{"$f":"IFERROR('MMA Rev-Exp Region 4'!$AI$68/'MMA Rev-Exp Region 4'!$AI$9, 0)","v":{"v":0,"d":"$0.00"}},{"$f":"IFERROR('MMA Rev-Exp Region 4'!$AJ$68/'MMA Rev-Exp Region 4'!$AJ$9, 0)","v":{"v":0,"d":"$0.00"}}]
["MMA",null,null,2016,"2016-12-31","Q3","2017-09-30","Region 4","Operating Expense","Medical Benefits Expense","Other MMA Services","9.6","Ending IBNP for Other Services",{"$f":"IFERROR('MMA Rev-Exp Region 4'!$Z$69/'MMA Rev-Exp Region 4'!$Z$9, 0)","v":{"v":0,"d":"$0.00"}},{"$f":"IFERROR('MMA Rev-Exp Region 4'!$AA$69/'MMA Rev-Exp Region 4'!$AA$9, 0)","v":{"v":0,"d":"$0.00"}},{"$f":"IFERROR('MMA Rev-Exp Region 4'!$AB$69/'MMA Rev-Exp Region 4'!$AB$9, 0)","v":{"v":0,"d":"$0.00"}},{"$f":"IFERROR('MMA Rev-Exp Region 4'!$AC$69/'MMA Rev-Exp Region 4'!$AC$9, 0)","v":{"v":0,"d":"$0.00"}},{"$f":"IFERROR('MMA Rev-Exp Region 4'!$AD$69/'MMA Rev-Exp Region 4'!$AD$9, 0)","v":{"v":0,"d":"$0.00"}},{"$f":"IFERROR('MMA Rev-Exp Region 4'!$AE$69/'MMA Rev-Exp Region 4'!$AE$9, 0)","v":{"v":0,"d":"$0.00"}},{"$f":"IFERROR('MMA Rev-Exp Region 4'!$AF$69/'MMA Rev-Exp Region 4'!$AF$9, 0)","v":{"v":0,"d":"$0.00"}},{"$f":"IFERROR('MMA Rev-Exp Region 4'!$AG$69/'MMA Rev-Exp Region 4'!$AG$9, 0)","v":{"v":0,"d":"$0.00"}},{"$f":"IFERROR('MMA Rev-Exp Region 4'!$AH$69/'MMA Rev-Exp Region 4'!$AH$9, 0)","v":{"v":0,"d":"$0.00"}},{"$f":"IFERROR('MMA Rev-Exp Region 4'!$AI$69/'MMA Rev-Exp Region 4'!$AI$9, 0)","v":{"v":0,"d":"$0.00"}},{"$f":"IFERROR('MMA Rev-Exp Region 4'!$AJ$69/'MMA Rev-Exp Region 4'!$AJ$9, 0)","v":{"v":0,"d":"$0.00"}}]
["MMA",null,null,2016,"2016-12-31","Q3","2017-09-30","Region 4","Operating Expense","Medical Benefits Expense","Other MMA Services","9.7","Other Services Settlements",{"$f":"IFERROR('MMA Rev-Exp Region 4'!$Z$70/'MMA Rev-Exp Region 4'!$Z$9, 0)","v":{"v":0,"d":"$0.00"}},{"$f":"IFERROR('MMA Rev-Exp Region 4'!$AA$70/'MMA Rev-Exp Region 4'!$AA$9, 0)","v":{"v":0,"d":"$0.00"}},{"$f":"IFERROR('MMA Rev-Exp Region 4'!$AB$70/'MMA Rev-Exp Region 4'!$AB$9, 0)","v":{"v":0,"d":"$0.00"}},{"$f":"IFERROR('MMA Rev-Exp Region 4'!$AC$70/'MMA Rev-Exp Region 4'!$AC$9, 0)","v":{"v":0,"d":"$0.00"}},{"$f":"IFERROR('MMA Rev-Exp Region 4'!$AD$70/'MMA Rev-Exp Region 4'!$AD$9, 0)","v":{"v":0,"d":"$0.00"}},{"$f":"IFERROR('MMA Rev-Exp Region 4'!$AE$70/'MMA Rev-Exp Region 4'!$AE$9, 0)","v":{"v":0,"d":"$0.00"}},{"$f":"IFERROR('MMA Rev-Exp Region 4'!$AF$70/'MMA Rev-Exp Region 4'!$AF$9, 0)","v":{"v":0,"d":"$0.00"}},{"$f":"IFERROR('MMA Rev-Exp Region 4'!$AG$70/'MMA Rev-Exp Region 4'!$AG$9, 0)","v":{"v":0,"d":"$0.00"}},{"$f":"IFERROR('MMA Rev-Exp Region 4'!$AH$70/'MMA Rev-Exp Region 4'!$AH$9, 0)","v":{"v":0,"d":"$0.00"}},{"$f":"IFERROR('MMA Rev-Exp Region 4'!$AI$70/'MMA Rev-Exp Region 4'!$AI$9, 0)","v":{"v":0,"d":"$0.00"}},{"$f":"IFERROR('MMA Rev-Exp Region 4'!$AJ$70/'MMA Rev-Exp Region 4'!$AJ$9, 0)","v":{"v":0,"d":"$0.00"}}]
["MMA",null,null,2016,"2016-12-31","Q3","2017-09-30","Region 4","Operating Expense","Medical Benefits Expense","Expanded Benefits","10.1","Expanded Benefits FFS",{"$f":"IFERROR('MMA Rev-Exp Region 4'!$Z$72/'MMA Rev-Exp Region 4'!$Z$9, 0)","v":{"v":0,"d":"$0.00"}},{"$f":"IFERROR('MMA Rev-Exp Region 4'!$AA$72/'MMA Rev-Exp Region 4'!$AA$9, 0)","v":{"v":0,"d":"$0.00"}},{"$f":"IFERROR('MMA Rev-Exp Region 4'!$AB$72/'MMA Rev-Exp Region 4'!$AB$9, 0)","v":{"v":0,"d":"$0.00"}},{"$f":"IFERROR('MMA Rev-Exp Region 4'!$AC$72/'MMA Rev-Exp Region 4'!$AC$9, 0)","v":{"v":0,"d":"$0.00"}},{"$f":"IFERROR('MMA Rev-Exp Region 4'!$AD$72/'MMA Rev-Exp Region 4'!$AD$9, 0)","v":{"v":0,"d":"$0.00"}},{"$f":"IFERROR('MMA Rev-Exp Region 4'!$AE$72/'MMA Rev-Exp Region 4'!$AE$9, 0)","v":{"v":0,"d":"$0.00"}},{"$f":"IFERROR('MMA Rev-Exp Region 4'!$AF$72/'MMA Rev-Exp Region 4'!$AF$9, 0)","v":{"v":0,"d":"$0.00"}},{"$f":"IFERROR('MMA Rev-Exp Region 4'!$AG$72/'MMA Rev-Exp Region 4'!$AG$9, 0)","v":{"v":0,"d":"$0.00"}},{"$f":"IFERROR('MMA Rev-Exp Region 4'!$AH$72/'MMA Rev-Exp Region 4'!$AH$9, 0)","v":{"v":0,"d":"$0.00"}},{"$f":"IFERROR('MMA Rev-Exp Region 4'!$AI$72/'MMA Rev-Exp Region 4'!$AI$9, 0)","v":{"v":0,"d":"$0.00"}},{"$f":"IFERROR('MMA Rev-Exp Region 4'!$AJ$72/'MMA Rev-Exp Region 4'!$AJ$9, 0)","v":{"v":0,"d":"$0.00"}}]
["MMA",null,null,2016,"2016-12-31","Q3","2017-09-30","Region 4","Operating Expense","Medical Benefits Expense","Expanded Benefits","10.2","Expanded benefits Subcapitation",{"$f":"IFERROR('MMA Rev-Exp Region 4'!$Z$73/'MMA Rev-Exp Region 4'!$Z$9, 0)","v":{"v":0,"d":"$0.00"}},{"$f":"IFERROR('MMA Rev-Exp Region 4'!$AA$73/'MMA Rev-Exp Region 4'!$AA$9, 0)","v":{"v":0,"d":"$0.00"}},{"$f":"IFERROR('MMA Rev-Exp Region 4'!$AB$73/'MMA Rev-Exp Region 4'!$AB$9, 0)","v":{"v":0,"d":"$0.00"}},{"$f":"IFERROR('MMA Rev-Exp Region 4'!$AC$73/'MMA Rev-Exp Region 4'!$AC$9, 0)","v":{"v":0,"d":"$0.00"}},{"$f":"IFERROR('MMA Rev-Exp Region 4'!$AD$73/'MMA Rev-Exp Region 4'!$AD$9, 0)","v":{"v":0,"d":"$0.00"}},{"$f":"IFERROR('MMA Rev-Exp Region 4'!$AE$73/'MMA Rev-Exp Region 4'!$AE$9, 0)","v":{"v":0,"d":"$0.00"}},{"$f":"IFERROR('MMA Rev-Exp Region 4'!$AF$73/'MMA Rev-Exp Region 4'!$AF$9, 0)","v":{"v":0,"d":"$0.00"}},{"$f":"IFERROR('MMA Rev-Exp Region 4'!$AG$73/'MMA Rev-Exp Region 4'!$AG$9, 0)","v":{"v":0,"d":"$0.00"}},{"$f":"IFERROR('MMA Rev-Exp Region 4'!$AH$73/'MMA Rev-Exp Region 4'!$AH$9, 0)","v":{"v":0,"d":"$0.00"}},{"$f":"IFERROR('MMA Rev-Exp Region 4'!$AI$73/'MMA Rev-Exp Region 4'!$AI$9, 0)","v":{"v":0,"d":"$0.00"}},{"$f":"IFERROR('MMA Rev-Exp Region 4'!$AJ$73/'MMA Rev-Exp Region 4'!$AJ$9, 0)","v":{"v":0,"d":"$0.00"}}]
["MMA",null,null,2016,"2016-12-31","Q3","2017-09-30","Region 4","Operating Expense","Medical Benefits Expense","Expanded Benefits","10.3","Ending IBNP for Expanded Benefits",{"$f":"IFERROR('MMA Rev-Exp Region 4'!$Z$74/'MMA Rev-Exp Region 4'!$Z$9, 0)","v":{"v":0,"d":"$0.00"}},{"$f":"IFERROR('MMA Rev-Exp Region 4'!$AA$74/'MMA Rev-Exp Region 4'!$AA$9, 0)","v":{"v":0,"d":"$0.00"}},{"$f":"IFERROR('MMA Rev-Exp Region 4'!$AB$74/'MMA Rev-Exp Region 4'!$AB$9, 0)","v":{"v":0,"d":"$0.00"}},{"$f":"IFERROR('MMA Rev-Exp Region 4'!$AC$74/'MMA Rev-Exp Region 4'!$AC$9, 0)","v":{"v":0,"d":"$0.00"}},{"$f":"IFERROR('MMA Rev-Exp Region 4'!$AD$74/'MMA Rev-Exp Region 4'!$AD$9, 0)","v":{"v":0,"d":"$0.00"}},{"$f":"IFERROR('MMA Rev-Exp Region 4'!$AE$74/'MMA Rev-Exp Region 4'!$AE$9, 0)","v":{"v":0,"d":"$0.00"}},{"$f":"IFERROR('MMA Rev-Exp Region 4'!$AF$74/'MMA Rev-Exp Region 4'!$AF$9, 0)","v":{"v":0,"d":"$0.00"}},{"$f":"IFERROR('MMA Rev-Exp Region 4'!$AG$74/'MMA Rev-Exp Region 4'!$AG$9, 0)","v":{"v":0,"d":"$0.00"}},{"$f":"IFERROR('MMA Rev-Exp Region 4'!$AH$74/'MMA Rev-Exp Region 4'!$AH$9, 0)","v":{"v":0,"d":"$0.00"}},{"$f":"IFERROR('MMA Rev-Exp Region 4'!$AI$74/'MMA Rev-Exp Region 4'!$AI$9, 0)","v":{"v":0,"d":"$0.00"}},{"$f":"IFERROR('MMA Rev-Exp Region 4'!$AJ$74/'MMA Rev-Exp Region 4'!$AJ$9, 0)","v":{"v":0,"d":"$0.00"}}]
["MMA",null,null,2016,"2016-12-31","Q3","2017-09-30","Region 4","Operating Expense","Medical Benefits Expense","Expanded Benefits","10.4","Expanded Benefits Settlements",{"$f":"IFERROR('MMA Rev-Exp Region 4'!$Z$75/'MMA Rev-Exp Region 4'!$Z$9, 0)","v":{"v":0,"d":"$0.00"}},{"$f":"IFERROR('MMA Rev-Exp Region 4'!$AA$75/'MMA Rev-Exp Region 4'!$AA$9, 0)","v":{"v":0,"d":"$0.00"}},{"$f":"IFERROR('MMA Rev-Exp Region 4'!$AB$75/'MMA Rev-Exp Region 4'!$AB$9, 0)","v":{"v":0,"d":"$0.00"}},{"$f":"IFERROR('MMA Rev-Exp Region 4'!$AC$75/'MMA Rev-Exp Region 4'!$AC$9, 0)","v":{"v":0,"d":"$0.00"}},{"$f":"IFERROR('MMA Rev-Exp Region 4'!$AD$75/'MMA Rev-Exp Region 4'!$AD$9, 0)","v":{"v":0,"d":"$0.00"}},{"$f":"IFERROR('MMA Rev-Exp Region 4'!$AE$75/'MMA Rev-Exp Region 4'!$AE$9, 0)","v":{"v":0,"d":"$0.00"}},{"$f":"IFERROR('MMA Rev-Exp Region 4'!$AF$75/'MMA Rev-Exp Region 4'!$AF$9, 0)","v":{"v":0,"d":"$0.00"}},{"$f":"IFERROR('MMA Rev-Exp Region 4'!$AG$75/'MMA Rev-Exp Region 4'!$AG$9, 0)","v":{"v":0,"d":"$0.00"}},{"$f":"IFERROR('MMA Rev-Exp Region 4'!$AH$75/'MMA Rev-Exp Region 4'!$AH$9, 0)","v":{"v":0,"d":"$0.00"}},{"$f":"IFERROR('MMA Rev-Exp Region 4'!$AI$75/'MMA Rev-Exp Region 4'!$AI$9, 0)","v":{"v":0,"d":"$0.00"}},{"$f":"IFERROR('MMA Rev-Exp Region 4'!$AJ$75/'MMA Rev-Exp Region 4'!$AJ$9, 0)","v":{"v":0,"d":"$0.00"}}]
["MMA",null,null,2016,"2016-12-31","Q3","2017-09-30","Region 4","Operating Expense","Medical Benefits Expense","Other Medical","11.5","TPL & Fraud/Abuse Recoveries",{"$f":"IFERROR('MMA Rev-Exp Region 4'!$Z$81/'MMA Rev-Exp Region 4'!$Z$9, 0)","v":{"v":0,"d":"$0.00"}},{"$f":"IFERROR('MMA Rev-Exp Region 4'!$AA$81/'MMA Rev-Exp Region 4'!$AA$9, 0)","v":{"v":0,"d":"$0.00"}},{"$f":"IFERROR('MMA Rev-Exp Region 4'!$AB$81/'MMA Rev-Exp Region 4'!$AB$9, 0)","v":{"v":0,"d":"$0.00"}},{"$f":"IFERROR('MMA Rev-Exp Region 4'!$AC$81/'MMA Rev-Exp Region 4'!$AC$9, 0)","v":{"v":0,"d":"$0.00"}},{"$f":"IFERROR('MMA Rev-Exp Region 4'!$AD$81/'MMA Rev-Exp Region 4'!$AD$9, 0)","v":{"v":0,"d":"$0.00"}},{"$f":"IFERROR('MMA Rev-Exp Region 4'!$AE$81/'MMA Rev-Exp Region 4'!$AE$9, 0)","v":{"v":0,"d":"$0.00"}},{"$f":"IFERROR('MMA Rev-Exp Region 4'!$AF$81/'MMA Rev-Exp Region 4'!$AF$9, 0)","v":{"v":0,"d":"$0.00"}},{"$f":"IFERROR('MMA Rev-Exp Region 4'!$AG$81/'MMA Rev-Exp Region 4'!$AG$9, 0)","v":{"v":0,"d":"$0.00"}},{"$f":"IFERROR('MMA Rev-Exp Region 4'!$AH$81/'MMA Rev-Exp Region 4'!$AH$9, 0)","v":{"v":0,"d":"$0.00"}},{"$f":"IFERROR('MMA Rev-Exp Region 4'!$AI$81/'MMA Rev-Exp Region 4'!$AI$9, 0)","v":{"v":0,"d":"$0.00"}},{"$f":"IFERROR('MMA Rev-Exp Region 4'!$AJ$81/'MMA Rev-Exp Region 4'!$AJ$9, 0)","v":{"v":0,"d":"$0.00"}}]
["MMA",null,null,2016,"2016-12-31","Q3","2017-09-30","Region 4","Operating Expense","Medical Benefits Expense","Other Medical","11.6.1","Premium Deficiency Reserve",{"$f":"IFERROR('MMA Rev-Exp Region 4'!$Z$82/'MMA Rev-Exp Region 4'!$Z$9, 0)","v":{"v":0,"d":"$0.00"}},{"$f":"IFERROR('MMA Rev-Exp Region 4'!$AA$82/'MMA Rev-Exp Region 4'!$AA$9, 0)","v":{"v":0,"d":"$0.00"}},{"$f":"IFERROR('MMA Rev-Exp Region 4'!$AB$82/'MMA Rev-Exp Region 4'!$AB$9, 0)","v":{"v":0,"d":"$0.00"}},{"$f":"IFERROR('MMA Rev-Exp Region 4'!$AC$82/'MMA Rev-Exp Region 4'!$AC$9, 0)","v":{"v":0,"d":"$0.00"}},{"$f":"IFERROR('MMA Rev-Exp Region 4'!$AD$82/'MMA Rev-Exp Region 4'!$AD$9, 0)","v":{"v":0,"d":"$0.00"}},{"$f":"IFERROR('MMA Rev-Exp Region 4'!$AE$82/'MMA Rev-Exp Region 4'!$AE$9, 0)","v":{"v":0,"d":"$0.00"}},{"$f":"IFERROR('MMA Rev-Exp Region 4'!$AF$82/'MMA Rev-Exp Region 4'!$AF$9, 0)","v":{"v":0,"d":"$0.00"}},{"$f":"IFERROR('MMA Rev-Exp Region 4'!$AG$82/'MMA Rev-Exp Region 4'!$AG$9, 0)","v":{"v":0,"d":"$0.00"}},{"$f":"IFERROR('MMA Rev-Exp Region 4'!$AH$82/'MMA Rev-Exp Region 4'!$AH$9, 0)","v":{"v":0,"d":"$0.00"}},{"$f":"IFERROR('MMA Rev-Exp Region 4'!$AI$82/'MMA Rev-Exp Region 4'!$AI$9, 0)","v":{"v":0,"d":"$0.00"}},{"$f":"IFERROR('MMA Rev-Exp Region 4'!$AJ$82/'MMA Rev-Exp Region 4'!$AJ$9, 0)","v":{"v":0,"d":"$0.00"}}]
["MMA",null,null,2016,"2016-12-31","Q3","2017-09-30","Region 4","Operating Expense","Medical Benefits Expense","Other Medical","11.8","Reinsurance Premiums",{"$f":"IFERROR('MMA Rev-Exp Region 4'!$Z$84/'MMA Rev-Exp Region 4'!$Z$9, 0)","v":{"v":0,"d":"$0.00"}},{"$f":"IFERROR('MMA Rev-Exp Region 4'!$AA$84/'MMA Rev-Exp Region 4'!$AA$9, 0)","v":{"v":0,"d":"$0.00"}},{"$f":"IFERROR('MMA Rev-Exp Region 4'!$AB$84/'MMA Rev-Exp Region 4'!$AB$9, 0)","v":{"v":0,"d":"$0.00"}},{"$f":"IFERROR('MMA Rev-Exp Region 4'!$AC$84/'MMA Rev-Exp Region 4'!$AC$9, 0)","v":{"v":0,"d":"$0.00"}},{"$f":"IFERROR('MMA Rev-Exp Region 4'!$AD$84/'MMA Rev-Exp Region 4'!$AD$9, 0)","v":{"v":0,"d":"$0.00"}},{"$f":"IFERROR('MMA Rev-Exp Region 4'!$AE$84/'MMA Rev-Exp Region 4'!$AE$9, 0)","v":{"v":0,"d":"$0.00"}},{"$f":"IFERROR('MMA Rev-Exp Region 4'!$AF$84/'MMA Rev-Exp Region 4'!$AF$9, 0)","v":{"v":0,"d":"$0.00"}},{"$f":"IFERROR('MMA Rev-Exp Region 4'!$AG$84/'MMA Rev-Exp Region 4'!$AG$9, 0)","v":{"v":0,"d":"$0.00"}},{"$f":"IFERROR('MMA Rev-Exp Region 4'!$AH$84/'MMA Rev-Exp Region 4'!$AH$9, 0)","v":{"v":0,"d":"$0.00"}},{"$f":"IFERROR('MMA Rev-Exp Region 4'!$AI$84/'MMA Rev-Exp Region 4'!$AI$9, 0)","v":{"v":0,"d":"$0.00"}},{"$f":"IFERROR('MMA Rev-Exp Region 4'!$AJ$84/'MMA Rev-Exp Region 4'!$AJ$9, 0)","v":{"v":0,"d":"$0.00"}}]
["MMA",null,null,2016,"2016-12-31","Q3","2017-09-30","Region 4","Operating Expense","Medical Benefits Expense","Other Medical","11.9","Reinsurance Recoveries",{"$f":"IFERROR('MMA Rev-Exp Region 4'!$Z$85/'MMA Rev-Exp Region 4'!$Z$9, 0)","v":{"v":0,"d":"$0.00"}},{"$f":"IFERROR('MMA Rev-Exp Region 4'!$AA$85/'MMA Rev-Exp Region 4'!$AA$9, 0)","v":{"v":0,"d":"$0.00"}},{"$f":"IFERROR('MMA Rev-Exp Region 4'!$AB$85/'MMA Rev-Exp Region 4'!$AB$9, 0)","v":{"v":0,"d":"$0.00"}},{"$f":"IFERROR('MMA Rev-Exp Region 4'!$AC$85/'MMA Rev-Exp Region 4'!$AC$9, 0)","v":{"v":0,"d":"$0.00"}},{"$f":"IFERROR('MMA Rev-Exp Region 4'!$AD$85/'MMA Rev-Exp Region 4'!$AD$9, 0)","v":{"v":0,"d":"$0.00"}},{"$f":"IFERROR('MMA Rev-Exp Region 4'!$AE$85/'MMA Rev-Exp Region 4'!$AE$9, 0)","v":{"v":0,"d":"$0.00"}},{"$f":"IFERROR('MMA Rev-Exp Region 4'!$AF$85/'MMA Rev-Exp Region 4'!$AF$9, 0)","v":{"v":0,"d":"$0.00"}},{"$f":"IFERROR('MMA Rev-Exp Region 4'!$AG$85/'MMA Rev-Exp Region 4'!$AG$9, 0)","v":{"v":0,"d":"$0.00"}},{"$f":"IFERROR('MMA Rev-Exp Region 4'!$AH$85/'MMA Rev-Exp Region 4'!$AH$9, 0)","v":{"v":0,"d":"$0.00"}},{"$f":"IFERROR('MMA Rev-Exp Region 4'!$AI$85/'MMA Rev-Exp Region 4'!$AI$9, 0)","v":{"v":0,"d":"$0.00"}},{"$f":"IFERROR('MMA Rev-Exp Region 4'!$AJ$85/'MMA Rev-Exp Region 4'!$AJ$9, 0)","v":{"v":0,"d":"$0.00"}}]
["MMA",null,null,2016,"2016-12-31","Q3","2017-09-30","Region 4","Operating Expense","Administrative Expense","Administrative","12.1","Salaries & Benefits",{"$f":"IFERROR('MMA Rev-Exp Region 4'!$Z$90/'MMA Rev-Exp Region 4'!$Z$9, 0)","v":{"v":0,"d":"$0.00"}},{"$f":"IFERROR('MMA Rev-Exp Region 4'!$AA$90/'MMA Rev-Exp Region 4'!$Z$9, 0)","v":{"v":0,"d":"$0.00"}},{"$f":"IFERROR('MMA Rev-Exp Region 4'!$AB$90/'MMA Rev-Exp Region 4'!$Z$9, 0)","v":{"v":0,"d":"$0.00"}}]
["MMA",null,null,2016,"2016-12-31","Q3","2017-09-30","Region 4","Operating Expense","Administrative Expense","Administrative","12.2","Administrative Services",{"$f":"IFERROR('MMA Rev-Exp Region 4'!$Z$91/'MMA Rev-Exp Region 4'!$Z$9, 0)","v":{"v":0,"d":"$0.00"}},{"$f":"IFERROR('MMA Rev-Exp Region 4'!$AA$91/'MMA Rev-Exp Region 4'!$Z$9, 0)","v":{"v":0,"d":"$0.00"}},{"$f":"IFERROR('MMA Rev-Exp Region 4'!$AB$91/'MMA Rev-Exp Region 4'!$Z$9, 0)","v":{"v":0,"d":"$0.00"}}]
["MMA",null,null,2016,"2016-12-31","Q3","2017-09-30","Region 4","Operating Expense","Administrative Expense","Administrative","12.3","Information Systems",{"$f":"IFERROR('MMA Rev-Exp Region 4'!$Z$92/'MMA Rev-Exp Region 4'!$Z$9, 0)","v":{"v":0,"d":"$0.00"}},{"$f":"IFERROR('MMA Rev-Exp Region 4'!$AA$92/'MMA Rev-Exp Region 4'!$Z$9, 0)","v":{"v":0,"d":"$0.00"}},{"$f":"IFERROR('MMA Rev-Exp Region 4'!$AB$92/'MMA Rev-Exp Region 4'!$Z$9, 0)","v":{"v":0,"d":"$0.00"}}]
["MMA",null,null,2016,"2016-12-31","Q3","2017-09-30","Region 4","Operating Expense","Administrative Expense","Administrative","12.4","Marketing Expenses",{"$f":"IFERROR('MMA Rev-Exp Region 4'!$Z$93/'MMA Rev-Exp Region 4'!$Z$9, 0)","v":{"v":0,"d":"$0.00"}},{"$f":"IFERROR('MMA Rev-Exp Region 4'!$AA$93/'MMA Rev-Exp Region 4'!$Z$9, 0)","v":{"v":0,"d":"$0.00"}},{"$f":"IFERROR('MMA Rev-Exp Region 4'!$AB$93/'MMA Rev-Exp Region 4'!$Z$9, 0)","v":{"v":0,"d":"$0.00"}}]
["MMA",null,null,2016,"2016-12-31","Q3","2017-09-30","Region 4","Operating Expense","Administrative Expense","Administrative","12.5","General  Administration",{"$f":"IFERROR('MMA Rev-Exp Region 4'!$Z$94/'MMA Rev-Exp Region 4'!$Z$9, 0)","v":{"v":0,"d":"$0.00"}},{"$f":"IFERROR('MMA Rev-Exp Region 4'!$AA$94/'MMA Rev-Exp Region 4'!$Z$9, 0)","v":{"v":0,"d":"$0.00"}},{"$f":"IFERROR('MMA Rev-Exp Region 4'!$AB$94/'MMA Rev-Exp Region 4'!$Z$9, 0)","v":{"v":0,"d":"$0.00"}}]
["MMA",null,null,2016,"2016-12-31","Q3","2017-09-30","Region 4","Operating Expense","Administrative Expense","Administrative","12.6","Compliance/Regulatory",{"$f":"IFERROR('MMA Rev-Exp Region 4'!$Z$95/'MMA Rev-Exp Region 4'!$Z$9, 0)","v":{"v":0,"d":"$0.00"}},{"$f":"IFERROR('MMA Rev-Exp Region 4'!$AA$95/'MMA Rev-Exp Region 4'!$Z$9, 0)","v":{"v":0,"d":"$0.00"}},{"$f":"IFERROR('MMA Rev-Exp Region 4'!$AB$95/'MMA Rev-Exp Region 4'!$Z$9, 0)","v":{"v":0,"d":"$0.00"}}]
["MMA",null,null,2016,"2016-12-31","Q3","2017-09-30","Region 4","Operating Expense","Taxes & Fees","Taxes & Fees","13.1","State Premium tax",{"$f":"IFERROR('MMA Rev-Exp Region 4'!$Z$97/'MMA Rev-Exp Region 4'!$Z$9, 0)","v":{"v":0,"d":"$0.00"}}]
["MMA",null,null,2016,"2016-12-31","Q3","2017-09-30","Region 4","Operating Expense","Taxes & Fees","Taxes & Fees","13.2","Department of Insurance Assessments",{"$f":"IFERROR('MMA Rev-Exp Region 4'!$Z$98/'MMA Rev-Exp Region 4'!$Z$9, 0)","v":{"v":0,"d":"$0.00"}}]
["MMA",null,null,2016,"2016-12-31","Q3","2017-09-30","Region 4","Operating Expense","Taxes & Fees","Taxes & Fees","13.3","Section 9010 Health Insurance Providers Fee",{"$f":"IFERROR('MMA Rev-Exp Region 4'!$Z$99/'MMA Rev-Exp Region 4'!$Z$9, 0)","v":{"v":0,"d":"$0.00"}}]
["MMA",null,null,2016,"2016-12-31","Q3","2017-09-30","Region 4","Non-Operating Expense","Income Tax Expense","Income Tax Expense","16.0","Income Tax Expense",{"$f":"IFERROR('MMA Rev-Exp Region 4'!$Z$106/'MMA Rev-Exp Region 4'!$Z$9, 0)","v":{"v":0,"d":"$0.00"}}]
["MMA",null,null,2016,"2016-12-31","Q4","2017-12-31","Region 4","Operating Revenue","Capitation","Capitation",1.1,"Capitation",{"$f":"IFERROR('MMA Rev-Exp Region 4'!$AK$11/'MMA Rev-Exp Region 4'!$AK$9, 0)","v":{"v":0,"d":"$0.00"}},{"$f":"IFERROR('MMA Rev-Exp Region 4'!$AL$11/'MMA Rev-Exp Region 4'!$AL$9, 0)","v":{"v":0,"d":"$0.00"}},{"$f":"IFERROR('MMA Rev-Exp Region 4'!$AM$11/'MMA Rev-Exp Region 4'!$AM$9, 0)","v":{"v":0,"d":"$0.00"}},{"$f":"IFERROR('MMA Rev-Exp Region 4'!$AN$11/'MMA Rev-Exp Region 4'!$AN$9, 0)","v":{"v":0,"d":"$0.00"}},{"$f":"IFERROR('MMA Rev-Exp Region 4'!$AO$11/'MMA Rev-Exp Region 4'!$AO$9, 0)","v":{"v":0,"d":"$0.00"}},{"$f":"IFERROR('MMA Rev-Exp Region 4'!$AP$11/'MMA Rev-Exp Region 4'!$AP$9, 0)","v":{"v":0,"d":"$0.00"}},{"$f":"IFERROR('MMA Rev-Exp Region 4'!$AQ$11/'MMA Rev-Exp Region 4'!$AQ$9, 0)","v":{"v":0,"d":"$0.00"}},{"$f":"IFERROR('MMA Rev-Exp Region 4'!$AR$11/'MMA Rev-Exp Region 4'!$AR$9, 0)","v":{"v":0,"d":"$0.00"}},{"$f":"IFERROR('MMA Rev-Exp Region 4'!$AS$11/'MMA Rev-Exp Region 4'!$AS$9, 0)","v":{"v":0,"d":"$0.00"}},{"$f":"IFERROR('MMA Rev-Exp Region 4'!$AT$11/'MMA Rev-Exp Region 4'!$AT$9, 0)","v":{"v":0,"d":"$0.00"}},{"$f":"IFERROR('MMA Rev-Exp Region 4'!$AU$11/'MMA Rev-Exp Region 4'!$AU$9, 0)","v":{"v":0,"d":"$0.00"}}]
["MMA",null,null,2016,"2016-12-31","Q4","2017-12-31","Region 4","Operating Revenue","Kick Payments","Kick Payments - Transplant",1.2,"Transplant Kick Payments",{"$f":"IFERROR('MMA Rev-Exp Region 4'!$AK$12/'MMA Rev-Exp Region 4'!$AK$9, 0)","v":{"v":0,"d":"$0.00"}},{"$f":"IFERROR('MMA Rev-Exp Region 4'!$AL$12/'MMA Rev-Exp Region 4'!$AL$9, 0)","v":{"v":0,"d":"$0.00"}},{"$f":"IFERROR('MMA Rev-Exp Region 4'!$AM$12/'MMA Rev-Exp Region 4'!$AM$9, 0)","v":{"v":0,"d":"$0.00"}},{"$f":"IFERROR('MMA Rev-Exp Region 4'!$AN$12/'MMA Rev-Exp Region 4'!$AN$9, 0)","v":{"v":0,"d":"$0.00"}},{"$f":"IFERROR('MMA Rev-Exp Region 4'!$AO$12/'MMA Rev-Exp Region 4'!$AO$9, 0)","v":{"v":0,"d":"$0.00"}},{"$f":"IFERROR('MMA Rev-Exp Region 4'!$AP$12/'MMA Rev-Exp Region 4'!$AP$9, 0)","v":{"v":0,"d":"$0.00"}},{"$f":"IFERROR('MMA Rev-Exp Region 4'!$AQ$12/'MMA Rev-Exp Region 4'!$AQ$9, 0)","v":{"v":0,"d":"$0.00"}},{"$f":"IFERROR('MMA Rev-Exp Region 4'!$AR$12/'MMA Rev-Exp Region 4'!$AR$9, 0)","v":{"v":0,"d":"$0.00"}},{"$f":"IFERROR('MMA Rev-Exp Region 4'!$AS$12/'MMA Rev-Exp Region 4'!$AS$9, 0)","v":{"v":0,"d":"$0.00"}},{"$f":"IFERROR('MMA Rev-Exp Region 4'!$AT$12/'MMA Rev-Exp Region 4'!$AT$9, 0)","v":{"v":0,"d":"$0.00"}},{"$f":"IFERROR('MMA Rev-Exp Region 4'!$AU$12/'MMA Rev-Exp Region 4'!$AU$9, 0)","v":{"v":0,"d":"$0.00"}}]
["MMA",null,null,2016,"2016-12-31","Q4","2017-12-31","Region 4","Operating Revenue","Kick Payments","Kick Payments - Hep C","1.3","Hepatitis C Kick Payments",{"$f":"IFERROR('MMA Rev-Exp Region 4'!$AK$13/'MMA Rev-Exp Region 4'!$AK$9, 0)","v":{"v":0,"d":"$0.00"}},{"$f":"IFERROR('MMA Rev-Exp Region 4'!$AL$13/'MMA Rev-Exp Region 4'!$AL$9, 0)","v":{"v":0,"d":"$0.00"}},{"$f":"IFERROR('MMA Rev-Exp Region 4'!$AM$13/'MMA Rev-Exp Region 4'!$AM$9, 0)","v":{"v":0,"d":"$0.00"}},{"$f":"IFERROR('MMA Rev-Exp Region 4'!$AN$13/'MMA Rev-Exp Region 4'!$AN$9, 0)","v":{"v":0,"d":"$0.00"}},{"$f":"IFERROR('MMA Rev-Exp Region 4'!$AO$13/'MMA Rev-Exp Region 4'!$AO$9, 0)","v":{"v":0,"d":"$0.00"}},{"$f":"IFERROR('MMA Rev-Exp Region 4'!$AP$13/'MMA Rev-Exp Region 4'!$AP$9, 0)","v":{"v":0,"d":"$0.00"}},{"$f":"IFERROR('MMA Rev-Exp Region 4'!$AQ$13/'MMA Rev-Exp Region 4'!$AQ$9, 0)","v":{"v":0,"d":"$0.00"}},{"$f":"IFERROR('MMA Rev-Exp Region 4'!$AR$13/'MMA Rev-Exp Region 4'!$AR$9, 0)","v":{"v":0,"d":"$0.00"}},{"$f":"IFERROR('MMA Rev-Exp Region 4'!$AS$13/'MMA Rev-Exp Region 4'!$AS$9, 0)","v":{"v":0,"d":"$0.00"}},{"$f":"IFERROR('MMA Rev-Exp Region 4'!$AT$13/'MMA Rev-Exp Region 4'!$AT$9, 0)","v":{"v":0,"d":"$0.00"}},{"$f":"IFERROR('MMA Rev-Exp Region 4'!$AU$13/'MMA Rev-Exp Region 4'!$AU$9, 0)","v":{"v":0,"d":"$0.00"}}]
["MMA",null,null,2016,"2016-12-31","Q4","2017-12-31","Region 4","Operating Revenue","Kick Payments","Kick Payments - Maternity","1.4.1","Maternity Kick Payments",{"$f":"IFERROR('MMA Rev-Exp Region 4'!$AK$14/'MMA Rev-Exp Region 4'!$AK$9, 0)","v":{"v":0,"d":"$0.00"}},{"$f":"IFERROR('MMA Rev-Exp Region 4'!$AL$14/'MMA Rev-Exp Region 4'!$AL$9, 0)","v":{"v":0,"d":"$0.00"}},{"$f":"IFERROR('MMA Rev-Exp Region 4'!$AM$14/'MMA Rev-Exp Region 4'!$AM$9, 0)","v":{"v":0,"d":"$0.00"}},{"$f":"IFERROR('MMA Rev-Exp Region 4'!$AN$14/'MMA Rev-Exp Region 4'!$AN$9, 0)","v":{"v":0,"d":"$0.00"}},{"$f":"IFERROR('MMA Rev-Exp Region 4'!$AO$14/'MMA Rev-Exp Region 4'!$AO$9, 0)","v":{"v":0,"d":"$0.00"}},{"$f":"IFERROR('MMA Rev-Exp Region 4'!$AP$14/'MMA Rev-Exp Region 4'!$AP$9, 0)","v":{"v":0,"d":"$0.00"}},{"$f":"IFERROR('MMA Rev-Exp Region 4'!$AQ$14/'MMA Rev-Exp Region 4'!$AQ$9, 0)","v":{"v":0,"d":"$0.00"}},{"$f":"IFERROR('MMA Rev-Exp Region 4'!$AR$14/'MMA Rev-Exp Region 4'!$AR$9, 0)","v":{"v":0,"d":"$0.00"}},{"$f":"IFERROR('MMA Rev-Exp Region 4'!$AS$14/'MMA Rev-Exp Region 4'!$AS$9, 0)","v":{"v":0,"d":"$0.00"}},{"$f":"IFERROR('MMA Rev-Exp Region 4'!$AT$14/'MMA Rev-Exp Region 4'!$AT$9, 0)","v":{"v":0,"d":"$0.00"}},{"$f":"IFERROR('MMA Rev-Exp Region 4'!$AU$14/'MMA Rev-Exp Region 4'!$AU$9, 0)","v":{"v":0,"d":"$0.00"}}]
["MMA",null,null,2016,"2016-12-31","Q4","2017-12-31","Region 4","Operating Revenue","Other Revenue","Other Revenue - 9010","1.5","ACA § 9010 related payments",{"$f":"IFERROR('MMA Rev-Exp Region 4'!$AK$15/'MMA Rev-Exp Region 4'!$AK$9, 0)","v":{"v":0,"d":"$0.00"}},{"$f":"IFERROR('MMA Rev-Exp Region 4'!$AL$15/'MMA Rev-Exp Region 4'!$AL$9, 0)","v":{"v":0,"d":"$0.00"}},{"$f":"IFERROR('MMA Rev-Exp Region 4'!$AM$15/'MMA Rev-Exp Region 4'!$AM$9, 0)","v":{"v":0,"d":"$0.00"}},{"$f":"IFERROR('MMA Rev-Exp Region 4'!$AN$15/'MMA Rev-Exp Region 4'!$AN$9, 0)","v":{"v":0,"d":"$0.00"}},{"$f":"IFERROR('MMA Rev-Exp Region 4'!$AO$15/'MMA Rev-Exp Region 4'!$AO$9, 0)","v":{"v":0,"d":"$0.00"}},{"$f":"IFERROR('MMA Rev-Exp Region 4'!$AP$15/'MMA Rev-Exp Region 4'!$AP$9, 0)","v":{"v":0,"d":"$0.00"}},{"$f":"IFERROR('MMA Rev-Exp Region 4'!$AQ$15/'MMA Rev-Exp Region 4'!$AQ$9, 0)","v":{"v":0,"d":"$0.00"}},{"$f":"IFERROR('MMA Rev-Exp Region 4'!$AR$15/'MMA Rev-Exp Region 4'!$AR$9, 0)","v":{"v":0,"d":"$0.00"}},{"$f":"IFERROR('MMA Rev-Exp Region 4'!$AS$15/'MMA Rev-Exp Region 4'!$AS$9, 0)","v":{"v":0,"d":"$0.00"}},{"$f":"IFERROR('MMA Rev-Exp Region 4'!$AT$15/'MMA Rev-Exp Region 4'!$AT$9, 0)","v":{"v":0,"d":"$0.00"}},{"$f":"IFERROR('MMA Rev-Exp Region 4'!$AU$15/'MMA Rev-Exp Region 4'!$AU$9, 0)","v":{"v":0,"d":"$0.00"}}]
["MMA",null,null,2016,"2016-12-31","Q4","2017-12-31","Region 4","Operating Revenue","Other Revenue","Other Revenue","1.6","Other Revenue",{"$f":"IFERROR('MMA Rev-Exp Region 4'!$AK$16/'MMA Rev-Exp Region 4'!$AK$9, 0)","v":{"v":0,"d":"$0.00"}},{"$f":"IFERROR('MMA Rev-Exp Region 4'!$AL$16/'MMA Rev-Exp Region 4'!$AL$9, 0)","v":{"v":0,"d":"$0.00"}},{"$f":"IFERROR('MMA Rev-Exp Region 4'!$AM$16/'MMA Rev-Exp Region 4'!$AM$9, 0)","v":{"v":0,"d":"$0.00"}},{"$f":"IFERROR('MMA Rev-Exp Region 4'!$AN$16/'MMA Rev-Exp Region 4'!$AN$9, 0)","v":{"v":0,"d":"$0.00"}},{"$f":"IFERROR('MMA Rev-Exp Region 4'!$AO$16/'MMA Rev-Exp Region 4'!$AO$9, 0)","v":{"v":0,"d":"$0.00"}},{"$f":"IFERROR('MMA Rev-Exp Region 4'!$AP$16/'MMA Rev-Exp Region 4'!$AP$9, 0)","v":{"v":0,"d":"$0.00"}},{"$f":"IFERROR('MMA Rev-Exp Region 4'!$AQ$16/'MMA Rev-Exp Region 4'!$AQ$9, 0)","v":{"v":0,"d":"$0.00"}},{"$f":"IFERROR('MMA Rev-Exp Region 4'!$AR$16/'MMA Rev-Exp Region 4'!$AR$9, 0)","v":{"v":0,"d":"$0.00"}},{"$f":"IFERROR('MMA Rev-Exp Region 4'!$AS$16/'MMA Rev-Exp Region 4'!$AS$9, 0)","v":{"v":0,"d":"$0.00"}},{"$f":"IFERROR('MMA Rev-Exp Region 4'!$AT$16/'MMA Rev-Exp Region 4'!$AT$9, 0)","v":{"v":0,"d":"$0.00"}},{"$f":"IFERROR('MMA Rev-Exp Region 4'!$AU$16/'MMA Rev-Exp Region 4'!$AU$9, 0)","v":{"v":0,"d":"$0.00"}}]
["MMA",null,null,2016,"2016-12-31","Q4","2017-12-31","Region 4","Operating Expense","Medical Benefits Expense","Hospital Services",2.1,"Inpatient FFS",{"$f":"IFERROR('MMA Rev-Exp Region 4'!$AK$20/'MMA Rev-Exp Region 4'!$AK$9, 0)","v":{"v":0,"d":"$0.00"}},{"$f":"IFERROR('MMA Rev-Exp Region 4'!$AL$20/'MMA Rev-Exp Region 4'!$AL$9, 0)","v":{"v":0,"d":"$0.00"}},{"$f":"IFERROR('MMA Rev-Exp Region 4'!$AM$20/'MMA Rev-Exp Region 4'!$AM$9, 0)","v":{"v":0,"d":"$0.00"}},{"$f":"IFERROR('MMA Rev-Exp Region 4'!$AN$20/'MMA Rev-Exp Region 4'!$AN$9, 0)","v":{"v":0,"d":"$0.00"}},{"$f":"IFERROR('MMA Rev-Exp Region 4'!$AO$20/'MMA Rev-Exp Region 4'!$AO$9, 0)","v":{"v":0,"d":"$0.00"}},{"$f":"IFERROR('MMA Rev-Exp Region 4'!$AP$20/'MMA Rev-Exp Region 4'!$AP$9, 0)","v":{"v":0,"d":"$0.00"}},{"$f":"IFERROR('MMA Rev-Exp Region 4'!$AQ$20/'MMA Rev-Exp Region 4'!$AQ$9, 0)","v":{"v":0,"d":"$0.00"}},{"$f":"IFERROR('MMA Rev-Exp Region 4'!$AR$20/'MMA Rev-Exp Region 4'!$AR$9, 0)","v":{"v":0,"d":"$0.00"}},{"$f":"IFERROR('MMA Rev-Exp Region 4'!$AS$20/'MMA Rev-Exp Region 4'!$AS$9, 0)","v":{"v":0,"d":"$0.00"}},{"$f":"IFERROR('MMA Rev-Exp Region 4'!$AT$20/'MMA Rev-Exp Region 4'!$AT$9, 0)","v":{"v":0,"d":"$0.00"}},{"$f":"IFERROR('MMA Rev-Exp Region 4'!$AU$20/'MMA Rev-Exp Region 4'!$AU$9, 0)","v":{"v":0,"d":"$0.00"}}]
["MMA",null,null,2016,"2016-12-31","Q4","2017-12-31","Region 4","Operating Expense","Medical Benefits Expense","Hospital Services",2.2,"Ending IBNP for Inpatient Hospital Services",{"$f":"IFERROR('MMA Rev-Exp Region 4'!$AK$21/'MMA Rev-Exp Region 4'!$AK$9, 0)","v":{"v":0,"d":"$0.00"}},{"$f":"IFERROR('MMA Rev-Exp Region 4'!$AL$21/'MMA Rev-Exp Region 4'!$AL$9, 0)","v":{"v":0,"d":"$0.00"}},{"$f":"IFERROR('MMA Rev-Exp Region 4'!$AM$21/'MMA Rev-Exp Region 4'!$AM$9, 0)","v":{"v":0,"d":"$0.00"}},{"$f":"IFERROR('MMA Rev-Exp Region 4'!$AN$21/'MMA Rev-Exp Region 4'!$AN$9, 0)","v":{"v":0,"d":"$0.00"}},{"$f":"IFERROR('MMA Rev-Exp Region 4'!$AO$21/'MMA Rev-Exp Region 4'!$AO$9, 0)","v":{"v":0,"d":"$0.00"}},{"$f":"IFERROR('MMA Rev-Exp Region 4'!$AP$21/'MMA Rev-Exp Region 4'!$AP$9, 0)","v":{"v":0,"d":"$0.00"}},{"$f":"IFERROR('MMA Rev-Exp Region 4'!$AQ$21/'MMA Rev-Exp Region 4'!$AQ$9, 0)","v":{"v":0,"d":"$0.00"}},{"$f":"IFERROR('MMA Rev-Exp Region 4'!$AR$21/'MMA Rev-Exp Region 4'!$AR$9, 0)","v":{"v":0,"d":"$0.00"}},{"$f":"IFERROR('MMA Rev-Exp Region 4'!$AS$21/'MMA Rev-Exp Region 4'!$AS$9, 0)","v":{"v":0,"d":"$0.00"}},{"$f":"IFERROR('MMA Rev-Exp Region 4'!$AT$21/'MMA Rev-Exp Region 4'!$AT$9, 0)","v":{"v":0,"d":"$0.00"}},{"$f":"IFERROR('MMA Rev-Exp Region 4'!$AU$21/'MMA Rev-Exp Region 4'!$AU$9, 0)","v":{"v":0,"d":"$0.00"}}]
["MMA",null,null,2016,"2016-12-31","Q4","2017-12-31","Region 4","Operating Expense","Medical Benefits Expense","Hospital Services",2.3,"Outpatient FFS: ER",{"$f":"IFERROR('MMA Rev-Exp Region 4'!$AK$22/'MMA Rev-Exp Region 4'!$AK$9, 0)","v":{"v":0,"d":"$0.00"}},{"$f":"IFERROR('MMA Rev-Exp Region 4'!$AL$22/'MMA Rev-Exp Region 4'!$AL$9, 0)","v":{"v":0,"d":"$0.00"}},{"$f":"IFERROR('MMA Rev-Exp Region 4'!$AM$22/'MMA Rev-Exp Region 4'!$AM$9, 0)","v":{"v":0,"d":"$0.00"}},{"$f":"IFERROR('MMA Rev-Exp Region 4'!$AN$22/'MMA Rev-Exp Region 4'!$AN$9, 0)","v":{"v":0,"d":"$0.00"}},{"$f":"IFERROR('MMA Rev-Exp Region 4'!$AO$22/'MMA Rev-Exp Region 4'!$AO$9, 0)","v":{"v":0,"d":"$0.00"}},{"$f":"IFERROR('MMA Rev-Exp Region 4'!$AP$22/'MMA Rev-Exp Region 4'!$AP$9, 0)","v":{"v":0,"d":"$0.00"}},{"$f":"IFERROR('MMA Rev-Exp Region 4'!$AQ$22/'MMA Rev-Exp Region 4'!$AQ$9, 0)","v":{"v":0,"d":"$0.00"}},{"$f":"IFERROR('MMA Rev-Exp Region 4'!$AR$22/'MMA Rev-Exp Region 4'!$AR$9, 0)","v":{"v":0,"d":"$0.00"}},{"$f":"IFERROR('MMA Rev-Exp Region 4'!$AS$22/'MMA Rev-Exp Region 4'!$AS$9, 0)","v":{"v":0,"d":"$0.00"}},{"$f":"IFERROR('MMA Rev-Exp Region 4'!$AT$22/'MMA Rev-Exp Region 4'!$AT$9, 0)","v":{"v":0,"d":"$0.00"}},{"$f":"IFERROR('MMA Rev-Exp Region 4'!$AU$22/'MMA Rev-Exp Region 4'!$AU$9, 0)","v":{"v":0,"d":"$0.00"}}]
["MMA",null,null,2016,"2016-12-31","Q4","2017-12-31","Region 4","Operating Expense","Medical Benefits Expense","Hospital Services",2.4,"Outpatient FFS: Other than ER ",{"$f":"IFERROR('MMA Rev-Exp Region 4'!$AK$23/'MMA Rev-Exp Region 4'!$AK$9, 0)","v":{"v":0,"d":"$0.00"}},{"$f":"IFERROR('MMA Rev-Exp Region 4'!$AL$23/'MMA Rev-Exp Region 4'!$AL$9, 0)","v":{"v":0,"d":"$0.00"}},{"$f":"IFERROR('MMA Rev-Exp Region 4'!$AM$23/'MMA Rev-Exp Region 4'!$AM$9, 0)","v":{"v":0,"d":"$0.00"}},{"$f":"IFERROR('MMA Rev-Exp Region 4'!$AN$23/'MMA Rev-Exp Region 4'!$AN$9, 0)","v":{"v":0,"d":"$0.00"}},{"$f":"IFERROR('MMA Rev-Exp Region 4'!$AO$23/'MMA Rev-Exp Region 4'!$AO$9, 0)","v":{"v":0,"d":"$0.00"}},{"$f":"IFERROR('MMA Rev-Exp Region 4'!$AP$23/'MMA Rev-Exp Region 4'!$AP$9, 0)","v":{"v":0,"d":"$0.00"}},{"$f":"IFERROR('MMA Rev-Exp Region 4'!$AQ$23/'MMA Rev-Exp Region 4'!$AQ$9, 0)","v":{"v":0,"d":"$0.00"}},{"$f":"IFERROR('MMA Rev-Exp Region 4'!$AR$23/'MMA Rev-Exp Region 4'!$AR$9, 0)","v":{"v":0,"d":"$0.00"}},{"$f":"IFERROR('MMA Rev-Exp Region 4'!$AS$23/'MMA Rev-Exp Region 4'!$AS$9, 0)","v":{"v":0,"d":"$0.00"}},{"$f":"IFERROR('MMA Rev-Exp Region 4'!$AT$23/'MMA Rev-Exp Region 4'!$AT$9, 0)","v":{"v":0,"d":"$0.00"}},{"$f":"IFERROR('MMA Rev-Exp Region 4'!$AU$23/'MMA Rev-Exp Region 4'!$AU$9, 0)","v":{"v":0,"d":"$0.00"}}]
["MMA",null,null,2016,"2016-12-31","Q4","2017-12-31","Region 4","Operating Expense","Medical Benefits Expense","Hospital Services",2.5,"Ending IBNP for Outpatient Hospital Services",{"$f":"IFERROR('MMA Rev-Exp Region 4'!$AK$24/'MMA Rev-Exp Region 4'!$AK$9, 0)","v":{"v":0,"d":"$0.00"}},{"$f":"IFERROR('MMA Rev-Exp Region 4'!$AL$24/'MMA Rev-Exp Region 4'!$AL$9, 0)","v":{"v":0,"d":"$0.00"}},{"$f":"IFERROR('MMA Rev-Exp Region 4'!$AM$24/'MMA Rev-Exp Region 4'!$AM$9, 0)","v":{"v":0,"d":"$0.00"}},{"$f":"IFERROR('MMA Rev-Exp Region 4'!$AN$24/'MMA Rev-Exp Region 4'!$AN$9, 0)","v":{"v":0,"d":"$0.00"}},{"$f":"IFERROR('MMA Rev-Exp Region 4'!$AO$24/'MMA Rev-Exp Region 4'!$AO$9, 0)","v":{"v":0,"d":"$0.00"}},{"$f":"IFERROR('MMA Rev-Exp Region 4'!$AP$24/'MMA Rev-Exp Region 4'!$AP$9, 0)","v":{"v":0,"d":"$0.00"}},{"$f":"IFERROR('MMA Rev-Exp Region 4'!$AQ$24/'MMA Rev-Exp Region 4'!$AQ$9, 0)","v":{"v":0,"d":"$0.00"}},{"$f":"IFERROR('MMA Rev-Exp Region 4'!$AR$24/'MMA Rev-Exp Region 4'!$AR$9, 0)","v":{"v":0,"d":"$0.00"}},{"$f":"IFERROR('MMA Rev-Exp Region 4'!$AS$24/'MMA Rev-Exp Region 4'!$AS$9, 0)","v":{"v":0,"d":"$0.00"}},{"$f":"IFERROR('MMA Rev-Exp Region 4'!$AT$24/'MMA Rev-Exp Region 4'!$AT$9, 0)","v":{"v":0,"d":"$0.00"}},{"$f":"IFERROR('MMA Rev-Exp Region 4'!$AU$24/'MMA Rev-Exp Region 4'!$AU$9, 0)","v":{"v":0,"d":"$0.00"}}]
["MMA",null,null,2016,"2016-12-31","Q4","2017-12-31","Region 4","Operating Expense","Medical Benefits Expense","Hospital Services","2.6","Subcapitated Hospital Services",{"$f":"IFERROR('MMA Rev-Exp Region 4'!$AK$25/'MMA Rev-Exp Region 4'!$AK$9, 0)","v":{"v":0,"d":"$0.00"}},{"$f":"IFERROR('MMA Rev-Exp Region 4'!$AL$25/'MMA Rev-Exp Region 4'!$AL$9, 0)","v":{"v":0,"d":"$0.00"}},{"$f":"IFERROR('MMA Rev-Exp Region 4'!$AM$25/'MMA Rev-Exp Region 4'!$AM$9, 0)","v":{"v":0,"d":"$0.00"}},{"$f":"IFERROR('MMA Rev-Exp Region 4'!$AN$25/'MMA Rev-Exp Region 4'!$AN$9, 0)","v":{"v":0,"d":"$0.00"}},{"$f":"IFERROR('MMA Rev-Exp Region 4'!$AO$25/'MMA Rev-Exp Region 4'!$AO$9, 0)","v":{"v":0,"d":"$0.00"}},{"$f":"IFERROR('MMA Rev-Exp Region 4'!$AP$25/'MMA Rev-Exp Region 4'!$AP$9, 0)","v":{"v":0,"d":"$0.00"}},{"$f":"IFERROR('MMA Rev-Exp Region 4'!$AQ$25/'MMA Rev-Exp Region 4'!$AQ$9, 0)","v":{"v":0,"d":"$0.00"}},{"$f":"IFERROR('MMA Rev-Exp Region 4'!$AR$25/'MMA Rev-Exp Region 4'!$AR$9, 0)","v":{"v":0,"d":"$0.00"}},{"$f":"IFERROR('MMA Rev-Exp Region 4'!$AS$25/'MMA Rev-Exp Region 4'!$AS$9, 0)","v":{"v":0,"d":"$0.00"}},{"$f":"IFERROR('MMA Rev-Exp Region 4'!$AT$25/'MMA Rev-Exp Region 4'!$AT$9, 0)","v":{"v":0,"d":"$0.00"}},{"$f":"IFERROR('MMA Rev-Exp Region 4'!$AU$25/'MMA Rev-Exp Region 4'!$AU$9, 0)","v":{"v":0,"d":"$0.00"}}]
["MMA",null,null,2016,"2016-12-31","Q4","2017-12-31","Region 4","Operating Expense","Medical Benefits Expense","Hospital Services","2.7","Hospital Settlements",{"$f":"IFERROR('MMA Rev-Exp Region 4'!$AK$26/'MMA Rev-Exp Region 4'!$AK$9, 0)","v":{"v":0,"d":"$0.00"}},{"$f":"IFERROR('MMA Rev-Exp Region 4'!$AL$26/'MMA Rev-Exp Region 4'!$AL$9, 0)","v":{"v":0,"d":"$0.00"}},{"$f":"IFERROR('MMA Rev-Exp Region 4'!$AM$26/'MMA Rev-Exp Region 4'!$AM$9, 0)","v":{"v":0,"d":"$0.00"}},{"$f":"IFERROR('MMA Rev-Exp Region 4'!$AN$26/'MMA Rev-Exp Region 4'!$AN$9, 0)","v":{"v":0,"d":"$0.00"}},{"$f":"IFERROR('MMA Rev-Exp Region 4'!$AO$26/'MMA Rev-Exp Region 4'!$AO$9, 0)","v":{"v":0,"d":"$0.00"}},{"$f":"IFERROR('MMA Rev-Exp Region 4'!$AP$26/'MMA Rev-Exp Region 4'!$AP$9, 0)","v":{"v":0,"d":"$0.00"}},{"$f":"IFERROR('MMA Rev-Exp Region 4'!$AQ$26/'MMA Rev-Exp Region 4'!$AQ$9, 0)","v":{"v":0,"d":"$0.00"}},{"$f":"IFERROR('MMA Rev-Exp Region 4'!$AR$26/'MMA Rev-Exp Region 4'!$AR$9, 0)","v":{"v":0,"d":"$0.00"}},{"$f":"IFERROR('MMA Rev-Exp Region 4'!$AS$26/'MMA Rev-Exp Region 4'!$AS$9, 0)","v":{"v":0,"d":"$0.00"}},{"$f":"IFERROR('MMA Rev-Exp Region 4'!$AT$26/'MMA Rev-Exp Region 4'!$AT$9, 0)","v":{"v":0,"d":"$0.00"}},{"$f":"IFERROR('MMA Rev-Exp Region 4'!$AU$26/'MMA Rev-Exp Region 4'!$AU$9, 0)","v":{"v":0,"d":"$0.00"}}]
["MMA",null,null,2016,"2016-12-31","Q4","2017-12-31","Region 4","Operating Expense","Medical Benefits Expense","Hospital Services","2.7.1","Transplant Services",{"$f":"IFERROR('MMA Rev-Exp Region 4'!$AK$27/'MMA Rev-Exp Region 4'!$AK$9, 0)","v":{"v":0,"d":"$0.00"}},{"$f":"IFERROR('MMA Rev-Exp Region 4'!$AL$27/'MMA Rev-Exp Region 4'!$AL$9, 0)","v":{"v":0,"d":"$0.00"}},{"$f":"IFERROR('MMA Rev-Exp Region 4'!$AM$27/'MMA Rev-Exp Region 4'!$AM$9, 0)","v":{"v":0,"d":"$0.00"}},{"$f":"IFERROR('MMA Rev-Exp Region 4'!$AN$27/'MMA Rev-Exp Region 4'!$AN$9, 0)","v":{"v":0,"d":"$0.00"}},{"$f":"IFERROR('MMA Rev-Exp Region 4'!$AO$27/'MMA Rev-Exp Region 4'!$AO$9, 0)","v":{"v":0,"d":"$0.00"}},{"$f":"IFERROR('MMA Rev-Exp Region 4'!$AP$27/'MMA Rev-Exp Region 4'!$AP$9, 0)","v":{"v":0,"d":"$0.00"}},{"$f":"IFERROR('MMA Rev-Exp Region 4'!$AQ$27/'MMA Rev-Exp Region 4'!$AQ$9, 0)","v":{"v":0,"d":"$0.00"}},{"$f":"IFERROR('MMA Rev-Exp Region 4'!$AR$27/'MMA Rev-Exp Region 4'!$AR$9, 0)","v":{"v":0,"d":"$0.00"}},{"$f":"IFERROR('MMA Rev-Exp Region 4'!$AS$27/'MMA Rev-Exp Region 4'!$AS$9, 0)","v":{"v":0,"d":"$0.00"}},{"$f":"IFERROR('MMA Rev-Exp Region 4'!$AT$27/'MMA Rev-Exp Region 4'!$AT$9, 0)","v":{"v":0,"d":"$0.00"}},{"$f":"IFERROR('MMA Rev-Exp Region 4'!$AU$27/'MMA Rev-Exp Region 4'!$AU$9, 0)","v":{"v":0,"d":"$0.00"}}]
["MMA",null,null,2016,"2016-12-31","Q4","2017-12-31","Region 4","Operating Expense","Medical Benefits Expense","Professional Services",3.1,"Primary Care FFS",{"$f":"IFERROR('MMA Rev-Exp Region 4'!$AK$29/'MMA Rev-Exp Region 4'!$AK$9, 0)","v":{"v":0,"d":"$0.00"}},{"$f":"IFERROR('MMA Rev-Exp Region 4'!$AL$29/'MMA Rev-Exp Region 4'!$AL$9, 0)","v":{"v":0,"d":"$0.00"}},{"$f":"IFERROR('MMA Rev-Exp Region 4'!$AM$29/'MMA Rev-Exp Region 4'!$AM$9, 0)","v":{"v":0,"d":"$0.00"}},{"$f":"IFERROR('MMA Rev-Exp Region 4'!$AN$29/'MMA Rev-Exp Region 4'!$AN$9, 0)","v":{"v":0,"d":"$0.00"}},{"$f":"IFERROR('MMA Rev-Exp Region 4'!$AO$29/'MMA Rev-Exp Region 4'!$AO$9, 0)","v":{"v":0,"d":"$0.00"}},{"$f":"IFERROR('MMA Rev-Exp Region 4'!$AP$29/'MMA Rev-Exp Region 4'!$AP$9, 0)","v":{"v":0,"d":"$0.00"}},{"$f":"IFERROR('MMA Rev-Exp Region 4'!$AQ$29/'MMA Rev-Exp Region 4'!$AQ$9, 0)","v":{"v":0,"d":"$0.00"}},{"$f":"IFERROR('MMA Rev-Exp Region 4'!$AR$29/'MMA Rev-Exp Region 4'!$AR$9, 0)","v":{"v":0,"d":"$0.00"}},{"$f":"IFERROR('MMA Rev-Exp Region 4'!$AS$29/'MMA Rev-Exp Region 4'!$AS$9, 0)","v":{"v":0,"d":"$0.00"}},{"$f":"IFERROR('MMA Rev-Exp Region 4'!$AT$29/'MMA Rev-Exp Region 4'!$AT$9, 0)","v":{"v":0,"d":"$0.00"}},{"$f":"IFERROR('MMA Rev-Exp Region 4'!$AU$29/'MMA Rev-Exp Region 4'!$AU$9, 0)","v":{"v":0,"d":"$0.00"}}]
["MMA",null,null,2016,"2016-12-31","Q4","2017-12-31","Region 4","Operating Expense","Medical Benefits Expense","Professional Services",3.2,"Specialty Care FFS",{"$f":"IFERROR('MMA Rev-Exp Region 4'!$AK$30/'MMA Rev-Exp Region 4'!$AK$9, 0)","v":{"v":0,"d":"$0.00"}},{"$f":"IFERROR('MMA Rev-Exp Region 4'!$AL$30/'MMA Rev-Exp Region 4'!$AL$9, 0)","v":{"v":0,"d":"$0.00"}},{"$f":"IFERROR('MMA Rev-Exp Region 4'!$AM$30/'MMA Rev-Exp Region 4'!$AM$9, 0)","v":{"v":0,"d":"$0.00"}},{"$f":"IFERROR('MMA Rev-Exp Region 4'!$AN$30/'MMA Rev-Exp Region 4'!$AN$9, 0)","v":{"v":0,"d":"$0.00"}},{"$f":"IFERROR('MMA Rev-Exp Region 4'!$AO$30/'MMA Rev-Exp Region 4'!$AO$9, 0)","v":{"v":0,"d":"$0.00"}},{"$f":"IFERROR('MMA Rev-Exp Region 4'!$AP$30/'MMA Rev-Exp Region 4'!$AP$9, 0)","v":{"v":0,"d":"$0.00"}},{"$f":"IFERROR('MMA Rev-Exp Region 4'!$AQ$30/'MMA Rev-Exp Region 4'!$AQ$9, 0)","v":{"v":0,"d":"$0.00"}},{"$f":"IFERROR('MMA Rev-Exp Region 4'!$AR$30/'MMA Rev-Exp Region 4'!$AR$9, 0)","v":{"v":0,"d":"$0.00"}},{"$f":"IFERROR('MMA Rev-Exp Region 4'!$AS$30/'MMA Rev-Exp Region 4'!$AS$9, 0)","v":{"v":0,"d":"$0.00"}},{"$f":"IFERROR('MMA Rev-Exp Region 4'!$AT$30/'MMA Rev-Exp Region 4'!$AT$9, 0)","v":{"v":0,"d":"$0.00"}},{"$f":"IFERROR('MMA Rev-Exp Region 4'!$AU$30/'MMA Rev-Exp Region 4'!$AU$9, 0)","v":{"v":0,"d":"$0.00"}}]
["MMA",null,null,2016,"2016-12-31","Q4","2017-12-31","Region 4","Operating Expense","Medical Benefits Expense","Professional Services",3.3,"Other Professional FFS",{"$f":"IFERROR('MMA Rev-Exp Region 4'!$AK$31/'MMA Rev-Exp Region 4'!$AK$9, 0)","v":{"v":0,"d":"$0.00"}},{"$f":"IFERROR('MMA Rev-Exp Region 4'!$AL$31/'MMA Rev-Exp Region 4'!$AL$9, 0)","v":{"v":0,"d":"$0.00"}},{"$f":"IFERROR('MMA Rev-Exp Region 4'!$AM$31/'MMA Rev-Exp Region 4'!$AM$9, 0)","v":{"v":0,"d":"$0.00"}},{"$f":"IFERROR('MMA Rev-Exp Region 4'!$AN$31/'MMA Rev-Exp Region 4'!$AN$9, 0)","v":{"v":0,"d":"$0.00"}},{"$f":"IFERROR('MMA Rev-Exp Region 4'!$AO$31/'MMA Rev-Exp Region 4'!$AO$9, 0)","v":{"v":0,"d":"$0.00"}},{"$f":"IFERROR('MMA Rev-Exp Region 4'!$AP$31/'MMA Rev-Exp Region 4'!$AP$9, 0)","v":{"v":0,"d":"$0.00"}},{"$f":"IFERROR('MMA Rev-Exp Region 4'!$AQ$31/'MMA Rev-Exp Region 4'!$AQ$9, 0)","v":{"v":0,"d":"$0.00"}},{"$f":"IFERROR('MMA Rev-Exp Region 4'!$AR$31/'MMA Rev-Exp Region 4'!$AR$9, 0)","v":{"v":0,"d":"$0.00"}},{"$f":"IFERROR('MMA Rev-Exp Region 4'!$AS$31/'MMA Rev-Exp Region 4'!$AS$9, 0)","v":{"v":0,"d":"$0.00"}},{"$f":"IFERROR('MMA Rev-Exp Region 4'!$AT$31/'MMA Rev-Exp Region 4'!$AT$9, 0)","v":{"v":0,"d":"$0.00"}},{"$f":"IFERROR('MMA Rev-Exp Region 4'!$AU$31/'MMA Rev-Exp Region 4'!$AU$9, 0)","v":{"v":0,"d":"$0.00"}}]
["MMA",null,null,2016,"2016-12-31","Q4","2017-12-31","Region 4","Operating Expense","Medical Benefits Expense","Professional Services","3.4","§ 1202 PCP Payments to providers",{"$f":"IFERROR('MMA Rev-Exp Region 4'!$AK$32/'MMA Rev-Exp Region 4'!$AK$9, 0)","v":{"v":0,"d":"$0.00"}},{"$f":"IFERROR('MMA Rev-Exp Region 4'!$AL$32/'MMA Rev-Exp Region 4'!$AL$9, 0)","v":{"v":0,"d":"$0.00"}},{"$f":"IFERROR('MMA Rev-Exp Region 4'!$AM$32/'MMA Rev-Exp Region 4'!$AM$9, 0)","v":{"v":0,"d":"$0.00"}},{"$f":"IFERROR('MMA Rev-Exp Region 4'!$AN$32/'MMA Rev-Exp Region 4'!$AN$9, 0)","v":{"v":0,"d":"$0.00"}},{"$f":"IFERROR('MMA Rev-Exp Region 4'!$AO$32/'MMA Rev-Exp Region 4'!$AO$9, 0)","v":{"v":0,"d":"$0.00"}},{"$f":"IFERROR('MMA Rev-Exp Region 4'!$AP$32/'MMA Rev-Exp Region 4'!$AP$9, 0)","v":{"v":0,"d":"$0.00"}},{"$f":"IFERROR('MMA Rev-Exp Region 4'!$AQ$32/'MMA Rev-Exp Region 4'!$AQ$9, 0)","v":{"v":0,"d":"$0.00"}},{"$f":"IFERROR('MMA Rev-Exp Region 4'!$AR$32/'MMA Rev-Exp Region 4'!$AR$9, 0)","v":{"v":0,"d":"$0.00"}},{"$f":"IFERROR('MMA Rev-Exp Region 4'!$AS$32/'MMA Rev-Exp Region 4'!$AS$9, 0)","v":{"v":0,"d":"$0.00"}},{"$f":"IFERROR('MMA Rev-Exp Region 4'!$AT$32/'MMA Rev-Exp Region 4'!$AT$9, 0)","v":{"v":0,"d":"$0.00"}},{"$f":"IFERROR('MMA Rev-Exp Region 4'!$AU$32/'MMA Rev-Exp Region 4'!$AU$9, 0)","v":{"v":0,"d":"$0.00"}}]
["MMA",null,null,2016,"2016-12-31","Q4","2017-12-31","Region 4","Operating Expense","Medical Benefits Expense","Professional Services","3.5","Subcapitated Professional Services",{"$f":"IFERROR('MMA Rev-Exp Region 4'!$AK$33/'MMA Rev-Exp Region 4'!$AK$9, 0)","v":{"v":0,"d":"$0.00"}},{"$f":"IFERROR('MMA Rev-Exp Region 4'!$AL$33/'MMA Rev-Exp Region 4'!$AL$9, 0)","v":{"v":0,"d":"$0.00"}},{"$f":"IFERROR('MMA Rev-Exp Region 4'!$AM$33/'MMA Rev-Exp Region 4'!$AM$9, 0)","v":{"v":0,"d":"$0.00"}},{"$f":"IFERROR('MMA Rev-Exp Region 4'!$AN$33/'MMA Rev-Exp Region 4'!$AN$9, 0)","v":{"v":0,"d":"$0.00"}},{"$f":"IFERROR('MMA Rev-Exp Region 4'!$AO$33/'MMA Rev-Exp Region 4'!$AO$9, 0)","v":{"v":0,"d":"$0.00"}},{"$f":"IFERROR('MMA Rev-Exp Region 4'!$AP$33/'MMA Rev-Exp Region 4'!$AP$9, 0)","v":{"v":0,"d":"$0.00"}},{"$f":"IFERROR('MMA Rev-Exp Region 4'!$AQ$33/'MMA Rev-Exp Region 4'!$AQ$9, 0)","v":{"v":0,"d":"$0.00"}},{"$f":"IFERROR('MMA Rev-Exp Region 4'!$AR$33/'MMA Rev-Exp Region 4'!$AR$9, 0)","v":{"v":0,"d":"$0.00"}},{"$f":"IFERROR('MMA Rev-Exp Region 4'!$AS$33/'MMA Rev-Exp Region 4'!$AS$9, 0)","v":{"v":0,"d":"$0.00"}},{"$f":"IFERROR('MMA Rev-Exp Region 4'!$AT$33/'MMA Rev-Exp Region 4'!$AT$9, 0)","v":{"v":0,"d":"$0.00"}},{"$f":"IFERROR('MMA Rev-Exp Region 4'!$AU$33/'MMA Rev-Exp Region 4'!$AU$9, 0)","v":{"v":0,"d":"$0.00"}}]
["MMA",null,null,2016,"2016-12-31","Q4","2017-12-31","Region 4","Operating Expense","Medical Benefits Expense","Professional Services","3.6","Ending IBNP for Professional Services",{"$f":"IFERROR('MMA Rev-Exp Region 4'!$AK$34/'MMA Rev-Exp Region 4'!$AK$9, 0)","v":{"v":0,"d":"$0.00"}},{"$f":"IFERROR('MMA Rev-Exp Region 4'!$AL$34/'MMA Rev-Exp Region 4'!$AL$9, 0)","v":{"v":0,"d":"$0.00"}},{"$f":"IFERROR('MMA Rev-Exp Region 4'!$AM$34/'MMA Rev-Exp Region 4'!$AM$9, 0)","v":{"v":0,"d":"$0.00"}},{"$f":"IFERROR('MMA Rev-Exp Region 4'!$AN$34/'MMA Rev-Exp Region 4'!$AN$9, 0)","v":{"v":0,"d":"$0.00"}},{"$f":"IFERROR('MMA Rev-Exp Region 4'!$AO$34/'MMA Rev-Exp Region 4'!$AO$9, 0)","v":{"v":0,"d":"$0.00"}},{"$f":"IFERROR('MMA Rev-Exp Region 4'!$AP$34/'MMA Rev-Exp Region 4'!$AP$9, 0)","v":{"v":0,"d":"$0.00"}},{"$f":"IFERROR('MMA Rev-Exp Region 4'!$AQ$34/'MMA Rev-Exp Region 4'!$AQ$9, 0)","v":{"v":0,"d":"$0.00"}},{"$f":"IFERROR('MMA Rev-Exp Region 4'!$AR$34/'MMA Rev-Exp Region 4'!$AR$9, 0)","v":{"v":0,"d":"$0.00"}},{"$f":"IFERROR('MMA Rev-Exp Region 4'!$AS$34/'MMA Rev-Exp Region 4'!$AS$9, 0)","v":{"v":0,"d":"$0.00"}},{"$f":"IFERROR('MMA Rev-Exp Region 4'!$AT$34/'MMA Rev-Exp Region 4'!$AT$9, 0)","v":{"v":0,"d":"$0.00"}},{"$f":"IFERROR('MMA Rev-Exp Region 4'!$AU$34/'MMA Rev-Exp Region 4'!$AU$9, 0)","v":{"v":0,"d":"$0.00"}}]
["MMA",null,null,2016,"2016-12-31","Q4","2017-12-31","Region 4","Operating Expense","Medical Benefits Expense","Professional Services","3.7","Professional Services Settlements",{"$f":"IFERROR('MMA Rev-Exp Region 4'!$AK$35/'MMA Rev-Exp Region 4'!$AK$9, 0)","v":{"v":0,"d":"$0.00"}},{"$f":"IFERROR('MMA Rev-Exp Region 4'!$AL$35/'MMA Rev-Exp Region 4'!$AL$9, 0)","v":{"v":0,"d":"$0.00"}},{"$f":"IFERROR('MMA Rev-Exp Region 4'!$AM$35/'MMA Rev-Exp Region 4'!$AM$9, 0)","v":{"v":0,"d":"$0.00"}},{"$f":"IFERROR('MMA Rev-Exp Region 4'!$AN$35/'MMA Rev-Exp Region 4'!$AN$9, 0)","v":{"v":0,"d":"$0.00"}},{"$f":"IFERROR('MMA Rev-Exp Region 4'!$AO$35/'MMA Rev-Exp Region 4'!$AO$9, 0)","v":{"v":0,"d":"$0.00"}},{"$f":"IFERROR('MMA Rev-Exp Region 4'!$AP$35/'MMA Rev-Exp Region 4'!$AP$9, 0)","v":{"v":0,"d":"$0.00"}},{"$f":"IFERROR('MMA Rev-Exp Region 4'!$AQ$35/'MMA Rev-Exp Region 4'!$AQ$9, 0)","v":{"v":0,"d":"$0.00"}},{"$f":"IFERROR('MMA Rev-Exp Region 4'!$AR$35/'MMA Rev-Exp Region 4'!$AR$9, 0)","v":{"v":0,"d":"$0.00"}},{"$f":"IFERROR('MMA Rev-Exp Region 4'!$AS$35/'MMA Rev-Exp Region 4'!$AS$9, 0)","v":{"v":0,"d":"$0.00"}},{"$f":"IFERROR('MMA Rev-Exp Region 4'!$AT$35/'MMA Rev-Exp Region 4'!$AT$9, 0)","v":{"v":0,"d":"$0.00"}},{"$f":"IFERROR('MMA Rev-Exp Region 4'!$AU$35/'MMA Rev-Exp Region 4'!$AU$9, 0)","v":{"v":0,"d":"$0.00"}}]
["MMA",null,null,2016,"2016-12-31","Q4","2017-12-31","Region 4","Operating Expense","Medical Benefits Expense","Maternity Services","4.1.1","Maternity Services",{"$f":"IFERROR('MMA Rev-Exp Region 4'!$AK$37/'MMA Rev-Exp Region 4'!$AK$9, 0)","v":{"v":0,"d":"$0.00"}},{"$f":"IFERROR('MMA Rev-Exp Region 4'!$AL$37/'MMA Rev-Exp Region 4'!$AL$9, 0)","v":{"v":0,"d":"$0.00"}},{"$f":"IFERROR('MMA Rev-Exp Region 4'!$AM$37/'MMA Rev-Exp Region 4'!$AM$9, 0)","v":{"v":0,"d":"$0.00"}},{"$f":"IFERROR('MMA Rev-Exp Region 4'!$AN$37/'MMA Rev-Exp Region 4'!$AN$9, 0)","v":{"v":0,"d":"$0.00"}},{"$f":"IFERROR('MMA Rev-Exp Region 4'!$AO$37/'MMA Rev-Exp Region 4'!$AO$9, 0)","v":{"v":0,"d":"$0.00"}},{"$f":"IFERROR('MMA Rev-Exp Region 4'!$AP$37/'MMA Rev-Exp Region 4'!$AP$9, 0)","v":{"v":0,"d":"$0.00"}},{"$f":"IFERROR('MMA Rev-Exp Region 4'!$AQ$37/'MMA Rev-Exp Region 4'!$AQ$9, 0)","v":{"v":0,"d":"$0.00"}},{"$f":"IFERROR('MMA Rev-Exp Region 4'!$AR$37/'MMA Rev-Exp Region 4'!$AR$9, 0)","v":{"v":0,"d":"$0.00"}},{"$f":"IFERROR('MMA Rev-Exp Region 4'!$AS$37/'MMA Rev-Exp Region 4'!$AS$9, 0)","v":{"v":0,"d":"$0.00"}},{"$f":"IFERROR('MMA Rev-Exp Region 4'!$AT$37/'MMA Rev-Exp Region 4'!$AT$9, 0)","v":{"v":0,"d":"$0.00"}},{"$f":"IFERROR('MMA Rev-Exp Region 4'!$AU$37/'MMA Rev-Exp Region 4'!$AU$9, 0)","v":{"v":0,"d":"$0.00"}}]
["MMA",null,null,2016,"2016-12-31","Q4","2017-12-31","Region 4","Operating Expense","Medical Benefits Expense","Maternity Services","4.2.1","Ending IBNP for Maternity Services",{"$f":"IFERROR('MMA Rev-Exp Region 4'!$AK$38/'MMA Rev-Exp Region 4'!$AK$9, 0)","v":{"v":0,"d":"$0.00"}},{"$f":"IFERROR('MMA Rev-Exp Region 4'!$AL$38/'MMA Rev-Exp Region 4'!$AL$9, 0)","v":{"v":0,"d":"$0.00"}},{"$f":"IFERROR('MMA Rev-Exp Region 4'!$AM$38/'MMA Rev-Exp Region 4'!$AM$9, 0)","v":{"v":0,"d":"$0.00"}},{"$f":"IFERROR('MMA Rev-Exp Region 4'!$AN$38/'MMA Rev-Exp Region 4'!$AN$9, 0)","v":{"v":0,"d":"$0.00"}},{"$f":"IFERROR('MMA Rev-Exp Region 4'!$AO$38/'MMA Rev-Exp Region 4'!$AO$9, 0)","v":{"v":0,"d":"$0.00"}},{"$f":"IFERROR('MMA Rev-Exp Region 4'!$AP$38/'MMA Rev-Exp Region 4'!$AP$9, 0)","v":{"v":0,"d":"$0.00"}},{"$f":"IFERROR('MMA Rev-Exp Region 4'!$AQ$38/'MMA Rev-Exp Region 4'!$AQ$9, 0)","v":{"v":0,"d":"$0.00"}},{"$f":"IFERROR('MMA Rev-Exp Region 4'!$AR$38/'MMA Rev-Exp Region 4'!$AR$9, 0)","v":{"v":0,"d":"$0.00"}},{"$f":"IFERROR('MMA Rev-Exp Region 4'!$AS$38/'MMA Rev-Exp Region 4'!$AS$9, 0)","v":{"v":0,"d":"$0.00"}},{"$f":"IFERROR('MMA Rev-Exp Region 4'!$AT$38/'MMA Rev-Exp Region 4'!$AT$9, 0)","v":{"v":0,"d":"$0.00"}},{"$f":"IFERROR('MMA Rev-Exp Region 4'!$AU$38/'MMA Rev-Exp Region 4'!$AU$9, 0)","v":{"v":0,"d":"$0.00"}}]
["MMA",null,null,2016,"2016-12-31","Q4","2017-12-31","Region 4","Operating Expense","Medical Benefits Expense","Maternity Services","4.3.1","Maternity Settlements",{"$f":"IFERROR('MMA Rev-Exp Region 4'!$AK$39/'MMA Rev-Exp Region 4'!$AK$9, 0)","v":{"v":0,"d":"$0.00"}},{"$f":"IFERROR('MMA Rev-Exp Region 4'!$AL$39/'MMA Rev-Exp Region 4'!$AL$9, 0)","v":{"v":0,"d":"$0.00"}},{"$f":"IFERROR('MMA Rev-Exp Region 4'!$AM$39/'MMA Rev-Exp Region 4'!$AM$9, 0)","v":{"v":0,"d":"$0.00"}},{"$f":"IFERROR('MMA Rev-Exp Region 4'!$AN$39/'MMA Rev-Exp Region 4'!$AN$9, 0)","v":{"v":0,"d":"$0.00"}},{"$f":"IFERROR('MMA Rev-Exp Region 4'!$AO$39/'MMA Rev-Exp Region 4'!$AO$9, 0)","v":{"v":0,"d":"$0.00"}},{"$f":"IFERROR('MMA Rev-Exp Region 4'!$AP$39/'MMA Rev-Exp Region 4'!$AP$9, 0)","v":{"v":0,"d":"$0.00"}},{"$f":"IFERROR('MMA Rev-Exp Region 4'!$AQ$39/'MMA Rev-Exp Region 4'!$AQ$9, 0)","v":{"v":0,"d":"$0.00"}},{"$f":"IFERROR('MMA Rev-Exp Region 4'!$AR$39/'MMA Rev-Exp Region 4'!$AR$9, 0)","v":{"v":0,"d":"$0.00"}},{"$f":"IFERROR('MMA Rev-Exp Region 4'!$AS$39/'MMA Rev-Exp Region 4'!$AS$9, 0)","v":{"v":0,"d":"$0.00"}},{"$f":"IFERROR('MMA Rev-Exp Region 4'!$AT$39/'MMA Rev-Exp Region 4'!$AT$9, 0)","v":{"v":0,"d":"$0.00"}},{"$f":"IFERROR('MMA Rev-Exp Region 4'!$AU$39/'MMA Rev-Exp Region 4'!$AU$9, 0)","v":{"v":0,"d":"$0.00"}}]
["MMA",null,null,2016,"2016-12-31","Q4","2017-12-31","Region 4","Operating Expense","Medical Benefits Expense","Mental Health Services",5.1,"Mental Health & Substance Abuse FFS",{"$f":"IFERROR('MMA Rev-Exp Region 4'!$AK$41/'MMA Rev-Exp Region 4'!$AK$9, 0)","v":{"v":0,"d":"$0.00"}},{"$f":"IFERROR('MMA Rev-Exp Region 4'!$AL$41/'MMA Rev-Exp Region 4'!$AL$9, 0)","v":{"v":0,"d":"$0.00"}},{"$f":"IFERROR('MMA Rev-Exp Region 4'!$AM$41/'MMA Rev-Exp Region 4'!$AM$9, 0)","v":{"v":0,"d":"$0.00"}},{"$f":"IFERROR('MMA Rev-Exp Region 4'!$AN$41/'MMA Rev-Exp Region 4'!$AN$9, 0)","v":{"v":0,"d":"$0.00"}},{"$f":"IFERROR('MMA Rev-Exp Region 4'!$AO$41/'MMA Rev-Exp Region 4'!$AO$9, 0)","v":{"v":0,"d":"$0.00"}},{"$f":"IFERROR('MMA Rev-Exp Region 4'!$AP$41/'MMA Rev-Exp Region 4'!$AP$9, 0)","v":{"v":0,"d":"$0.00"}},{"$f":"IFERROR('MMA Rev-Exp Region 4'!$AQ$41/'MMA Rev-Exp Region 4'!$AQ$9, 0)","v":{"v":0,"d":"$0.00"}},{"$f":"IFERROR('MMA Rev-Exp Region 4'!$AR$41/'MMA Rev-Exp Region 4'!$AR$9, 0)","v":{"v":0,"d":"$0.00"}},{"$f":"IFERROR('MMA Rev-Exp Region 4'!$AS$41/'MMA Rev-Exp Region 4'!$AS$9, 0)","v":{"v":0,"d":"$0.00"}},{"$f":"IFERROR('MMA Rev-Exp Region 4'!$AT$41/'MMA Rev-Exp Region 4'!$AT$9, 0)","v":{"v":0,"d":"$0.00"}},{"$f":"IFERROR('MMA Rev-Exp Region 4'!$AU$41/'MMA Rev-Exp Region 4'!$AU$9, 0)","v":{"v":0,"d":"$0.00"}}]
["MMA",null,null,2016,"2016-12-31","Q4","2017-12-31","Region 4","Operating Expense","Medical Benefits Expense","Mental Health Services",5.2,"Mental Health & Substance Abuse Subcapitation",{"$f":"IFERROR('MMA Rev-Exp Region 4'!$AK$42/'MMA Rev-Exp Region 4'!$AK$9, 0)","v":{"v":0,"d":"$0.00"}},{"$f":"IFERROR('MMA Rev-Exp Region 4'!$AL$42/'MMA Rev-Exp Region 4'!$AL$9, 0)","v":{"v":0,"d":"$0.00"}},{"$f":"IFERROR('MMA Rev-Exp Region 4'!$AM$42/'MMA Rev-Exp Region 4'!$AM$9, 0)","v":{"v":0,"d":"$0.00"}},{"$f":"IFERROR('MMA Rev-Exp Region 4'!$AN$42/'MMA Rev-Exp Region 4'!$AN$9, 0)","v":{"v":0,"d":"$0.00"}},{"$f":"IFERROR('MMA Rev-Exp Region 4'!$AO$42/'MMA Rev-Exp Region 4'!$AO$9, 0)","v":{"v":0,"d":"$0.00"}},{"$f":"IFERROR('MMA Rev-Exp Region 4'!$AP$42/'MMA Rev-Exp Region 4'!$AP$9, 0)","v":{"v":0,"d":"$0.00"}},{"$f":"IFERROR('MMA Rev-Exp Region 4'!$AQ$42/'MMA Rev-Exp Region 4'!$AQ$9, 0)","v":{"v":0,"d":"$0.00"}},{"$f":"IFERROR('MMA Rev-Exp Region 4'!$AR$42/'MMA Rev-Exp Region 4'!$AR$9, 0)","v":{"v":0,"d":"$0.00"}},{"$f":"IFERROR('MMA Rev-Exp Region 4'!$AS$42/'MMA Rev-Exp Region 4'!$AS$9, 0)","v":{"v":0,"d":"$0.00"}},{"$f":"IFERROR('MMA Rev-Exp Region 4'!$AT$42/'MMA Rev-Exp Region 4'!$AT$9, 0)","v":{"v":0,"d":"$0.00"}},{"$f":"IFERROR('MMA Rev-Exp Region 4'!$AU$42/'MMA Rev-Exp Region 4'!$AU$9, 0)","v":{"v":0,"d":"$0.00"}}]
["MMA",null,null,2016,"2016-12-31","Q4","2017-12-31","Region 4","Operating Expense","Medical Benefits Expense","Mental Health Services",5.3,"Ending IBNP for Mental Health & Substance Abuse",{"$f":"IFERROR('MMA Rev-Exp Region 4'!$AK$43/'MMA Rev-Exp Region 4'!$AK$9, 0)","v":{"v":0,"d":"$0.00"}},{"$f":"IFERROR('MMA Rev-Exp Region 4'!$AL$43/'MMA Rev-Exp Region 4'!$AL$9, 0)","v":{"v":0,"d":"$0.00"}},{"$f":"IFERROR('MMA Rev-Exp Region 4'!$AM$43/'MMA Rev-Exp Region 4'!$AM$9, 0)","v":{"v":0,"d":"$0.00"}},{"$f":"IFERROR('MMA Rev-Exp Region 4'!$AN$43/'MMA Rev-Exp Region 4'!$AN$9, 0)","v":{"v":0,"d":"$0.00"}},{"$f":"IFERROR('MMA Rev-Exp Region 4'!$AO$43/'MMA Rev-Exp Region 4'!$AO$9, 0)","v":{"v":0,"d":"$0.00"}},{"$f":"IFERROR('MMA Rev-Exp Region 4'!$AP$43/'MMA Rev-Exp Region 4'!$AP$9, 0)","v":{"v":0,"d":"$0.00"}},{"$f":"IFERROR('MMA Rev-Exp Region 4'!$AQ$43/'MMA Rev-Exp Region 4'!$AQ$9, 0)","v":{"v":0,"d":"$0.00"}},{"$f":"IFERROR('MMA Rev-Exp Region 4'!$AR$43/'MMA Rev-Exp Region 4'!$AR$9, 0)","v":{"v":0,"d":"$0.00"}},{"$f":"IFERROR('MMA Rev-Exp Region 4'!$AS$43/'MMA Rev-Exp Region 4'!$AS$9, 0)","v":{"v":0,"d":"$0.00"}},{"$f":"IFERROR('MMA Rev-Exp Region 4'!$AT$43/'MMA Rev-Exp Region 4'!$AT$9, 0)","v":{"v":0,"d":"$0.00"}},{"$f":"IFERROR('MMA Rev-Exp Region 4'!$AU$43/'MMA Rev-Exp Region 4'!$AU$9, 0)","v":{"v":0,"d":"$0.00"}}]
["MMA",null,null,2016,"2016-12-31","Q4","2017-12-31","Region 4","Operating Expense","Medical Benefits Expense","Mental Health Services","5.4","Mental Health Settlements",{"$f":"IFERROR('MMA Rev-Exp Region 4'!$AK$44/'MMA Rev-Exp Region 4'!$AK$9, 0)","v":{"v":0,"d":"$0.00"}},{"$f":"IFERROR('MMA Rev-Exp Region 4'!$AL$44/'MMA Rev-Exp Region 4'!$AL$9, 0)","v":{"v":0,"d":"$0.00"}},{"$f":"IFERROR('MMA Rev-Exp Region 4'!$AM$44/'MMA Rev-Exp Region 4'!$AM$9, 0)","v":{"v":0,"d":"$0.00"}},{"$f":"IFERROR('MMA Rev-Exp Region 4'!$AN$44/'MMA Rev-Exp Region 4'!$AN$9, 0)","v":{"v":0,"d":"$0.00"}},{"$f":"IFERROR('MMA Rev-Exp Region 4'!$AO$44/'MMA Rev-Exp Region 4'!$AO$9, 0)","v":{"v":0,"d":"$0.00"}},{"$f":"IFERROR('MMA Rev-Exp Region 4'!$AP$44/'MMA Rev-Exp Region 4'!$AP$9, 0)","v":{"v":0,"d":"$0.00"}},{"$f":"IFERROR('MMA Rev-Exp Region 4'!$AQ$44/'MMA Rev-Exp Region 4'!$AQ$9, 0)","v":{"v":0,"d":"$0.00"}},{"$f":"IFERROR('MMA Rev-Exp Region 4'!$AR$44/'MMA Rev-Exp Region 4'!$AR$9, 0)","v":{"v":0,"d":"$0.00"}},{"$f":"IFERROR('MMA Rev-Exp Region 4'!$AS$44/'MMA Rev-Exp Region 4'!$AS$9, 0)","v":{"v":0,"d":"$0.00"}},{"$f":"IFERROR('MMA Rev-Exp Region 4'!$AT$44/'MMA Rev-Exp Region 4'!$AT$9, 0)","v":{"v":0,"d":"$0.00"}},{"$f":"IFERROR('MMA Rev-Exp Region 4'!$AU$44/'MMA Rev-Exp Region 4'!$AU$9, 0)","v":{"v":0,"d":"$0.00"}}]
["MMA",null,null,2016,"2016-12-31","Q4","2017-12-31","Region 4","Operating Expense","Medical Benefits Expense","Dental Services",6.1,"Dental FFS",{"$f":"IFERROR('MMA Rev-Exp Region 4'!$AK$46/'MMA Rev-Exp Region 4'!$AK$9, 0)","v":{"v":0,"d":"$0.00"}},{"$f":"IFERROR('MMA Rev-Exp Region 4'!$AL$46/'MMA Rev-Exp Region 4'!$AL$9, 0)","v":{"v":0,"d":"$0.00"}},{"$f":"IFERROR('MMA Rev-Exp Region 4'!$AM$46/'MMA Rev-Exp Region 4'!$AM$9, 0)","v":{"v":0,"d":"$0.00"}},{"$f":"IFERROR('MMA Rev-Exp Region 4'!$AN$46/'MMA Rev-Exp Region 4'!$AN$9, 0)","v":{"v":0,"d":"$0.00"}},{"$f":"IFERROR('MMA Rev-Exp Region 4'!$AO$46/'MMA Rev-Exp Region 4'!$AO$9, 0)","v":{"v":0,"d":"$0.00"}},{"$f":"IFERROR('MMA Rev-Exp Region 4'!$AP$46/'MMA Rev-Exp Region 4'!$AP$9, 0)","v":{"v":0,"d":"$0.00"}},{"$f":"IFERROR('MMA Rev-Exp Region 4'!$AQ$46/'MMA Rev-Exp Region 4'!$AQ$9, 0)","v":{"v":0,"d":"$0.00"}},{"$f":"IFERROR('MMA Rev-Exp Region 4'!$AR$46/'MMA Rev-Exp Region 4'!$AR$9, 0)","v":{"v":0,"d":"$0.00"}},{"$f":"IFERROR('MMA Rev-Exp Region 4'!$AS$46/'MMA Rev-Exp Region 4'!$AS$9, 0)","v":{"v":0,"d":"$0.00"}},{"$f":"IFERROR('MMA Rev-Exp Region 4'!$AT$46/'MMA Rev-Exp Region 4'!$AT$9, 0)","v":{"v":0,"d":"$0.00"}},{"$f":"IFERROR('MMA Rev-Exp Region 4'!$AU$46/'MMA Rev-Exp Region 4'!$AU$9, 0)","v":{"v":0,"d":"$0.00"}}]
["MMA",null,null,2016,"2016-12-31","Q4","2017-12-31","Region 4","Operating Expense","Medical Benefits Expense","Dental Services",6.2,"Dental Subcapitation",{"$f":"IFERROR('MMA Rev-Exp Region 4'!$AK$47/'MMA Rev-Exp Region 4'!$AK$9, 0)","v":{"v":0,"d":"$0.00"}},{"$f":"IFERROR('MMA Rev-Exp Region 4'!$AL$47/'MMA Rev-Exp Region 4'!$AL$9, 0)","v":{"v":0,"d":"$0.00"}},{"$f":"IFERROR('MMA Rev-Exp Region 4'!$AM$47/'MMA Rev-Exp Region 4'!$AM$9, 0)","v":{"v":0,"d":"$0.00"}},{"$f":"IFERROR('MMA Rev-Exp Region 4'!$AN$47/'MMA Rev-Exp Region 4'!$AN$9, 0)","v":{"v":0,"d":"$0.00"}},{"$f":"IFERROR('MMA Rev-Exp Region 4'!$AO$47/'MMA Rev-Exp Region 4'!$AO$9, 0)","v":{"v":0,"d":"$0.00"}},{"$f":"IFERROR('MMA Rev-Exp Region 4'!$AP$47/'MMA Rev-Exp Region 4'!$AP$9, 0)","v":{"v":0,"d":"$0.00"}},{"$f":"IFERROR('MMA Rev-Exp Region 4'!$AQ$47/'MMA Rev-Exp Region 4'!$AQ$9, 0)","v":{"v":0,"d":"$0.00"}},{"$f":"IFERROR('MMA Rev-Exp Region 4'!$AR$47/'MMA Rev-Exp Region 4'!$AR$9, 0)","v":{"v":0,"d":"$0.00"}},{"$f":"IFERROR('MMA Rev-Exp Region 4'!$AS$47/'MMA Rev-Exp Region 4'!$AS$9, 0)","v":{"v":0,"d":"$0.00"}},{"$f":"IFERROR('MMA Rev-Exp Region 4'!$AT$47/'MMA Rev-Exp Region 4'!$AT$9, 0)","v":{"v":0,"d":"$0.00"}},{"$f":"IFERROR('MMA Rev-Exp Region 4'!$AU$47/'MMA Rev-Exp Region 4'!$AU$9, 0)","v":{"v":0,"d":"$0.00"}}]
["MMA",null,null,2016,"2016-12-31","Q4","2017-12-31","Region 4","Operating Expense","Medical Benefits Expense","Dental Services",6.3,"Ending IBNP for Dental Services",{"$f":"IFERROR('MMA Rev-Exp Region 4'!$AK$48/'MMA Rev-Exp Region 4'!$AK$9, 0)","v":{"v":0,"d":"$0.00"}},{"$f":"IFERROR('MMA Rev-Exp Region 4'!$AL$48/'MMA Rev-Exp Region 4'!$AL$9, 0)","v":{"v":0,"d":"$0.00"}},{"$f":"IFERROR('MMA Rev-Exp Region 4'!$AM$48/'MMA Rev-Exp Region 4'!$AM$9, 0)","v":{"v":0,"d":"$0.00"}},{"$f":"IFERROR('MMA Rev-Exp Region 4'!$AN$48/'MMA Rev-Exp Region 4'!$AN$9, 0)","v":{"v":0,"d":"$0.00"}},{"$f":"IFERROR('MMA Rev-Exp Region 4'!$AO$48/'MMA Rev-Exp Region 4'!$AO$9, 0)","v":{"v":0,"d":"$0.00"}},{"$f":"IFERROR('MMA Rev-Exp Region 4'!$AP$48/'MMA Rev-Exp Region 4'!$AP$9, 0)","v":{"v":0,"d":"$0.00"}},{"$f":"IFERROR('MMA Rev-Exp Region 4'!$AQ$48/'MMA Rev-Exp Region 4'!$AQ$9, 0)","v":{"v":0,"d":"$0.00"}},{"$f":"IFERROR('MMA Rev-Exp Region 4'!$AR$48/'MMA Rev-Exp Region 4'!$AR$9, 0)","v":{"v":0,"d":"$0.00"}},{"$f":"IFERROR('MMA Rev-Exp Region 4'!$AS$48/'MMA Rev-Exp Region 4'!$AS$9, 0)","v":{"v":0,"d":"$0.00"}},{"$f":"IFERROR('MMA Rev-Exp Region 4'!$AT$48/'MMA Rev-Exp Region 4'!$AT$9, 0)","v":{"v":0,"d":"$0.00"}},{"$f":"IFERROR('MMA Rev-Exp Region 4'!$AU$48/'MMA Rev-Exp Region 4'!$AU$9, 0)","v":{"v":0,"d":"$0.00"}}]
["MMA",null,null,2016,"2016-12-31","Q4","2017-12-31","Region 4","Operating Expense","Medical Benefits Expense","Dental Services","6.4","Dental Settlements",{"$f":"IFERROR('MMA Rev-Exp Region 4'!$AK$49/'MMA Rev-Exp Region 4'!$AK$9, 0)","v":{"v":0,"d":"$0.00"}},{"$f":"IFERROR('MMA Rev-Exp Region 4'!$AL$49/'MMA Rev-Exp Region 4'!$AL$9, 0)","v":{"v":0,"d":"$0.00"}},{"$f":"IFERROR('MMA Rev-Exp Region 4'!$AM$49/'MMA Rev-Exp Region 4'!$AM$9, 0)","v":{"v":0,"d":"$0.00"}},{"$f":"IFERROR('MMA Rev-Exp Region 4'!$AN$49/'MMA Rev-Exp Region 4'!$AN$9, 0)","v":{"v":0,"d":"$0.00"}},{"$f":"IFERROR('MMA Rev-Exp Region 4'!$AO$49/'MMA Rev-Exp Region 4'!$AO$9, 0)","v":{"v":0,"d":"$0.00"}},{"$f":"IFERROR('MMA Rev-Exp Region 4'!$AP$49/'MMA Rev-Exp Region 4'!$AP$9, 0)","v":{"v":0,"d":"$0.00"}},{"$f":"IFERROR('MMA Rev-Exp Region 4'!$AQ$49/'MMA Rev-Exp Region 4'!$AQ$9, 0)","v":{"v":0,"d":"$0.00"}},{"$f":"IFERROR('MMA Rev-Exp Region 4'!$AR$49/'MMA Rev-Exp Region 4'!$AR$9, 0)","v":{"v":0,"d":"$0.00"}},{"$f":"IFERROR('MMA Rev-Exp Region 4'!$AS$49/'MMA Rev-Exp Region 4'!$AS$9, 0)","v":{"v":0,"d":"$0.00"}},{"$f":"IFERROR('MMA Rev-Exp Region 4'!$AT$49/'MMA Rev-Exp Region 4'!$AT$9, 0)","v":{"v":0,"d":"$0.00"}},{"$f":"IFERROR('MMA Rev-Exp Region 4'!$AU$49/'MMA Rev-Exp Region 4'!$AU$9, 0)","v":{"v":0,"d":"$0.00"}}]
["MMA",null,null,2016,"2016-12-31","Q4","2017-12-31","Region 4","Operating Expense","Medical Benefits Expense","Transportation Services",7.1,"Transportation FFS",{"$f":"IFERROR('MMA Rev-Exp Region 4'!$AK$51/'MMA Rev-Exp Region 4'!$AK$9, 0)","v":{"v":0,"d":"$0.00"}},{"$f":"IFERROR('MMA Rev-Exp Region 4'!$AL$51/'MMA Rev-Exp Region 4'!$AL$9, 0)","v":{"v":0,"d":"$0.00"}},{"$f":"IFERROR('MMA Rev-Exp Region 4'!$AM$51/'MMA Rev-Exp Region 4'!$AM$9, 0)","v":{"v":0,"d":"$0.00"}},{"$f":"IFERROR('MMA Rev-Exp Region 4'!$AN$51/'MMA Rev-Exp Region 4'!$AN$9, 0)","v":{"v":0,"d":"$0.00"}},{"$f":"IFERROR('MMA Rev-Exp Region 4'!$AO$51/'MMA Rev-Exp Region 4'!$AO$9, 0)","v":{"v":0,"d":"$0.00"}},{"$f":"IFERROR('MMA Rev-Exp Region 4'!$AP$51/'MMA Rev-Exp Region 4'!$AP$9, 0)","v":{"v":0,"d":"$0.00"}},{"$f":"IFERROR('MMA Rev-Exp Region 4'!$AQ$51/'MMA Rev-Exp Region 4'!$AQ$9, 0)","v":{"v":0,"d":"$0.00"}},{"$f":"IFERROR('MMA Rev-Exp Region 4'!$AR$51/'MMA Rev-Exp Region 4'!$AR$9, 0)","v":{"v":0,"d":"$0.00"}},{"$f":"IFERROR('MMA Rev-Exp Region 4'!$AS$51/'MMA Rev-Exp Region 4'!$AS$9, 0)","v":{"v":0,"d":"$0.00"}},{"$f":"IFERROR('MMA Rev-Exp Region 4'!$AT$51/'MMA Rev-Exp Region 4'!$AT$9, 0)","v":{"v":0,"d":"$0.00"}},{"$f":"IFERROR('MMA Rev-Exp Region 4'!$AU$51/'MMA Rev-Exp Region 4'!$AU$9, 0)","v":{"v":0,"d":"$0.00"}}]
["MMA",null,null,2016,"2016-12-31","Q4","2017-12-31","Region 4","Operating Expense","Medical Benefits Expense","Transportation Services",7.2,"Transportation Subcapitation",{"$f":"IFERROR('MMA Rev-Exp Region 4'!$AK$52/'MMA Rev-Exp Region 4'!$AK$9, 0)","v":{"v":0,"d":"$0.00"}},{"$f":"IFERROR('MMA Rev-Exp Region 4'!$AL$52/'MMA Rev-Exp Region 4'!$AL$9, 0)","v":{"v":0,"d":"$0.00"}},{"$f":"IFERROR('MMA Rev-Exp Region 4'!$AM$52/'MMA Rev-Exp Region 4'!$AM$9, 0)","v":{"v":0,"d":"$0.00"}},{"$f":"IFERROR('MMA Rev-Exp Region 4'!$AN$52/'MMA Rev-Exp Region 4'!$AN$9, 0)","v":{"v":0,"d":"$0.00"}},{"$f":"IFERROR('MMA Rev-Exp Region 4'!$AO$52/'MMA Rev-Exp Region 4'!$AO$9, 0)","v":{"v":0,"d":"$0.00"}},{"$f":"IFERROR('MMA Rev-Exp Region 4'!$AP$52/'MMA Rev-Exp Region 4'!$AP$9, 0)","v":{"v":0,"d":"$0.00"}},{"$f":"IFERROR('MMA Rev-Exp Region 4'!$AQ$52/'MMA Rev-Exp Region 4'!$AQ$9, 0)","v":{"v":0,"d":"$0.00"}},{"$f":"IFERROR('MMA Rev-Exp Region 4'!$AR$52/'MMA Rev-Exp Region 4'!$AR$9, 0)","v":{"v":0,"d":"$0.00"}},{"$f":"IFERROR('MMA Rev-Exp Region 4'!$AS$52/'MMA Rev-Exp Region 4'!$AS$9, 0)","v":{"v":0,"d":"$0.00"}},{"$f":"IFERROR('MMA Rev-Exp Region 4'!$AT$52/'MMA Rev-Exp Region 4'!$AT$9, 0)","v":{"v":0,"d":"$0.00"}},{"$f":"IFERROR('MMA Rev-Exp Region 4'!$AU$52/'MMA Rev-Exp Region 4'!$AU$9, 0)","v":{"v":0,"d":"$0.00"}}]
["MMA",null,null,2016,"2016-12-31","Q4","2017-12-31","Region 4","Operating Expense","Medical Benefits Expense","Transportation Services",7.3,"Ending IBNP for Transportation",{"$f":"IFERROR('MMA Rev-Exp Region 4'!$AK$53/'MMA Rev-Exp Region 4'!$AK$9, 0)","v":{"v":0,"d":"$0.00"}},{"$f":"IFERROR('MMA Rev-Exp Region 4'!$AL$53/'MMA Rev-Exp Region 4'!$AL$9, 0)","v":{"v":0,"d":"$0.00"}},{"$f":"IFERROR('MMA Rev-Exp Region 4'!$AM$53/'MMA Rev-Exp Region 4'!$AM$9, 0)","v":{"v":0,"d":"$0.00"}},{"$f":"IFERROR('MMA Rev-Exp Region 4'!$AN$53/'MMA Rev-Exp Region 4'!$AN$9, 0)","v":{"v":0,"d":"$0.00"}},{"$f":"IFERROR('MMA Rev-Exp Region 4'!$AO$53/'MMA Rev-Exp Region 4'!$AO$9, 0)","v":{"v":0,"d":"$0.00"}},{"$f":"IFERROR('MMA Rev-Exp Region 4'!$AP$53/'MMA Rev-Exp Region 4'!$AP$9, 0)","v":{"v":0,"d":"$0.00"}},{"$f":"IFERROR('MMA Rev-Exp Region 4'!$AQ$53/'MMA Rev-Exp Region 4'!$AQ$9, 0)","v":{"v":0,"d":"$0.00"}},{"$f":"IFERROR('MMA Rev-Exp Region 4'!$AR$53/'MMA Rev-Exp Region 4'!$AR$9, 0)","v":{"v":0,"d":"$0.00"}},{"$f":"IFERROR('MMA Rev-Exp Region 4'!$AS$53/'MMA Rev-Exp Region 4'!$AS$9, 0)","v":{"v":0,"d":"$0.00"}},{"$f":"IFERROR('MMA Rev-Exp Region 4'!$AT$53/'MMA Rev-Exp Region 4'!$AT$9, 0)","v":{"v":0,"d":"$0.00"}},{"$f":"IFERROR('MMA Rev-Exp Region 4'!$AU$53/'MMA Rev-Exp Region 4'!$AU$9, 0)","v":{"v":0,"d":"$0.00"}}]
["MMA",null,null,2016,"2016-12-31","Q4","2017-12-31","Region 4","Operating Expense","Medical Benefits Expense","Transportation Services","7.4","Transportation Settlements",{"$f":"IFERROR('MMA Rev-Exp Region 4'!$AK$54/'MMA Rev-Exp Region 4'!$AK$9, 0)","v":{"v":0,"d":"$0.00"}},{"$f":"IFERROR('MMA Rev-Exp Region 4'!$AL$54/'MMA Rev-Exp Region 4'!$AL$9, 0)","v":{"v":0,"d":"$0.00"}},{"$f":"IFERROR('MMA Rev-Exp Region 4'!$AM$54/'MMA Rev-Exp Region 4'!$AM$9, 0)","v":{"v":0,"d":"$0.00"}},{"$f":"IFERROR('MMA Rev-Exp Region 4'!$AN$54/'MMA Rev-Exp Region 4'!$AN$9, 0)","v":{"v":0,"d":"$0.00"}},{"$f":"IFERROR('MMA Rev-Exp Region 4'!$AO$54/'MMA Rev-Exp Region 4'!$AO$9, 0)","v":{"v":0,"d":"$0.00"}},{"$f":"IFERROR('MMA Rev-Exp Region 4'!$AP$54/'MMA Rev-Exp Region 4'!$AP$9, 0)","v":{"v":0,"d":"$0.00"}},{"$f":"IFERROR('MMA Rev-Exp Region 4'!$AQ$54/'MMA Rev-Exp Region 4'!$AQ$9, 0)","v":{"v":0,"d":"$0.00"}},{"$f":"IFERROR('MMA Rev-Exp Region 4'!$AR$54/'MMA Rev-Exp Region 4'!$AR$9, 0)","v":{"v":0,"d":"$0.00"}},{"$f":"IFERROR('MMA Rev-Exp Region 4'!$AS$54/'MMA Rev-Exp Region 4'!$AS$9, 0)","v":{"v":0,"d":"$0.00"}},{"$f":"IFERROR('MMA Rev-Exp Region 4'!$AT$54/'MMA Rev-Exp Region 4'!$AT$9, 0)","v":{"v":0,"d":"$0.00"}},{"$f":"IFERROR('MMA Rev-Exp Region 4'!$AU$54/'MMA Rev-Exp Region 4'!$AU$9, 0)","v":{"v":0,"d":"$0.00"}}]
["MMA",null,null,2016,"2016-12-31","Q4","2017-12-31","Region 4","Operating Expense","Medical Benefits Expense","Pharmacy Services",8.1,"Prescription Drugs FFS",{"$f":"IFERROR('MMA Rev-Exp Region 4'!$AK$56/'MMA Rev-Exp Region 4'!$AK$9, 0)","v":{"v":0,"d":"$0.00"}},{"$f":"IFERROR('MMA Rev-Exp Region 4'!$AL$56/'MMA Rev-Exp Region 4'!$AL$9, 0)","v":{"v":0,"d":"$0.00"}},{"$f":"IFERROR('MMA Rev-Exp Region 4'!$AM$56/'MMA Rev-Exp Region 4'!$AM$9, 0)","v":{"v":0,"d":"$0.00"}},{"$f":"IFERROR('MMA Rev-Exp Region 4'!$AN$56/'MMA Rev-Exp Region 4'!$AN$9, 0)","v":{"v":0,"d":"$0.00"}},{"$f":"IFERROR('MMA Rev-Exp Region 4'!$AO$56/'MMA Rev-Exp Region 4'!$AO$9, 0)","v":{"v":0,"d":"$0.00"}},{"$f":"IFERROR('MMA Rev-Exp Region 4'!$AP$56/'MMA Rev-Exp Region 4'!$AP$9, 0)","v":{"v":0,"d":"$0.00"}},{"$f":"IFERROR('MMA Rev-Exp Region 4'!$AQ$56/'MMA Rev-Exp Region 4'!$AQ$9, 0)","v":{"v":0,"d":"$0.00"}},{"$f":"IFERROR('MMA Rev-Exp Region 4'!$AR$56/'MMA Rev-Exp Region 4'!$AR$9, 0)","v":{"v":0,"d":"$0.00"}},{"$f":"IFERROR('MMA Rev-Exp Region 4'!$AS$56/'MMA Rev-Exp Region 4'!$AS$9, 0)","v":{"v":0,"d":"$0.00"}},{"$f":"IFERROR('MMA Rev-Exp Region 4'!$AT$56/'MMA Rev-Exp Region 4'!$AT$9, 0)","v":{"v":0,"d":"$0.00"}},{"$f":"IFERROR('MMA Rev-Exp Region 4'!$AU$56/'MMA Rev-Exp Region 4'!$AU$9, 0)","v":{"v":0,"d":"$0.00"}}]
["MMA",null,null,2016,"2016-12-31","Q4","2017-12-31","Region 4","Operating Expense","Medical Benefits Expense","Pharmacy Services","8.2","Hepatitis C Prescription Drug FFS",{"$f":"IFERROR('MMA Rev-Exp Region 4'!$AK$57/'MMA Rev-Exp Region 4'!$AK$9, 0)","v":{"v":0,"d":"$0.00"}},{"$f":"IFERROR('MMA Rev-Exp Region 4'!$AL$57/'MMA Rev-Exp Region 4'!$AL$9, 0)","v":{"v":0,"d":"$0.00"}},{"$f":"IFERROR('MMA Rev-Exp Region 4'!$AM$57/'MMA Rev-Exp Region 4'!$AM$9, 0)","v":{"v":0,"d":"$0.00"}},{"$f":"IFERROR('MMA Rev-Exp Region 4'!$AN$57/'MMA Rev-Exp Region 4'!$AN$9, 0)","v":{"v":0,"d":"$0.00"}},{"$f":"IFERROR('MMA Rev-Exp Region 4'!$AO$57/'MMA Rev-Exp Region 4'!$AO$9, 0)","v":{"v":0,"d":"$0.00"}},{"$f":"IFERROR('MMA Rev-Exp Region 4'!$AP$57/'MMA Rev-Exp Region 4'!$AP$9, 0)","v":{"v":0,"d":"$0.00"}},{"$f":"IFERROR('MMA Rev-Exp Region 4'!$AQ$57/'MMA Rev-Exp Region 4'!$AQ$9, 0)","v":{"v":0,"d":"$0.00"}},{"$f":"IFERROR('MMA Rev-Exp Region 4'!$AR$57/'MMA Rev-Exp Region 4'!$AR$9, 0)","v":{"v":0,"d":"$0.00"}},{"$f":"IFERROR('MMA Rev-Exp Region 4'!$AS$57/'MMA Rev-Exp Region 4'!$AS$9, 0)","v":{"v":0,"d":"$0.00"}},{"$f":"IFERROR('MMA Rev-Exp Region 4'!$AT$57/'MMA Rev-Exp Region 4'!$AT$9, 0)","v":{"v":0,"d":"$0.00"}},{"$f":"IFERROR('MMA Rev-Exp Region 4'!$AU$57/'MMA Rev-Exp Region 4'!$AU$9, 0)","v":{"v":0,"d":"$0.00"}}]
["MMA",null,null,2016,"2016-12-31","Q4","2017-12-31","Region 4","Operating Expense","Medical Benefits Expense","Pharmacy Services","8.3","Ending IBNP for Prescription Drugs",{"$f":"IFERROR('MMA Rev-Exp Region 4'!$AK$58/'MMA Rev-Exp Region 4'!$AK$9, 0)","v":{"v":0,"d":"$0.00"}},{"$f":"IFERROR('MMA Rev-Exp Region 4'!$AL$58/'MMA Rev-Exp Region 4'!$AL$9, 0)","v":{"v":0,"d":"$0.00"}},{"$f":"IFERROR('MMA Rev-Exp Region 4'!$AM$58/'MMA Rev-Exp Region 4'!$AM$9, 0)","v":{"v":0,"d":"$0.00"}},{"$f":"IFERROR('MMA Rev-Exp Region 4'!$AN$58/'MMA Rev-Exp Region 4'!$AN$9, 0)","v":{"v":0,"d":"$0.00"}},{"$f":"IFERROR('MMA Rev-Exp Region 4'!$AO$58/'MMA Rev-Exp Region 4'!$AO$9, 0)","v":{"v":0,"d":"$0.00"}},{"$f":"IFERROR('MMA Rev-Exp Region 4'!$AP$58/'MMA Rev-Exp Region 4'!$AP$9, 0)","v":{"v":0,"d":"$0.00"}},{"$f":"IFERROR('MMA Rev-Exp Region 4'!$AQ$58/'MMA Rev-Exp Region 4'!$AQ$9, 0)","v":{"v":0,"d":"$0.00"}},{"$f":"IFERROR('MMA Rev-Exp Region 4'!$AR$58/'MMA Rev-Exp Region 4'!$AR$9, 0)","v":{"v":0,"d":"$0.00"}},{"$f":"IFERROR('MMA Rev-Exp Region 4'!$AS$58/'MMA Rev-Exp Region 4'!$AS$9, 0)","v":{"v":0,"d":"$0.00"}},{"$f":"IFERROR('MMA Rev-Exp Region 4'!$AT$58/'MMA Rev-Exp Region 4'!$AT$9, 0)","v":{"v":0,"d":"$0.00"}},{"$f":"IFERROR('MMA Rev-Exp Region 4'!$AU$58/'MMA Rev-Exp Region 4'!$AU$9, 0)","v":{"v":0,"d":"$0.00"}}]
["MMA",null,null,2016,"2016-12-31","Q4","2017-12-31","Region 4","Operating Expense","Medical Benefits Expense","Pharmacy Services","8.4","Prescription Drug Rebates ",{"$f":"IFERROR('MMA Rev-Exp Region 4'!$AK$59/'MMA Rev-Exp Region 4'!$AK$9, 0)","v":{"v":0,"d":"$0.00"}},{"$f":"IFERROR('MMA Rev-Exp Region 4'!$AL$59/'MMA Rev-Exp Region 4'!$AL$9, 0)","v":{"v":0,"d":"$0.00"}},{"$f":"IFERROR('MMA Rev-Exp Region 4'!$AM$59/'MMA Rev-Exp Region 4'!$AM$9, 0)","v":{"v":0,"d":"$0.00"}},{"$f":"IFERROR('MMA Rev-Exp Region 4'!$AN$59/'MMA Rev-Exp Region 4'!$AN$9, 0)","v":{"v":0,"d":"$0.00"}},{"$f":"IFERROR('MMA Rev-Exp Region 4'!$AO$59/'MMA Rev-Exp Region 4'!$AO$9, 0)","v":{"v":0,"d":"$0.00"}},{"$f":"IFERROR('MMA Rev-Exp Region 4'!$AP$59/'MMA Rev-Exp Region 4'!$AP$9, 0)","v":{"v":0,"d":"$0.00"}},{"$f":"IFERROR('MMA Rev-Exp Region 4'!$AQ$59/'MMA Rev-Exp Region 4'!$AQ$9, 0)","v":{"v":0,"d":"$0.00"}},{"$f":"IFERROR('MMA Rev-Exp Region 4'!$AR$59/'MMA Rev-Exp Region 4'!$AR$9, 0)","v":{"v":0,"d":"$0.00"}},{"$f":"IFERROR('MMA Rev-Exp Region 4'!$AS$59/'MMA Rev-Exp Region 4'!$AS$9, 0)","v":{"v":0,"d":"$0.00"}},{"$f":"IFERROR('MMA Rev-Exp Region 4'!$AT$59/'MMA Rev-Exp Region 4'!$AT$9, 0)","v":{"v":0,"d":"$0.00"}},{"$f":"IFERROR('MMA Rev-Exp Region 4'!$AU$59/'MMA Rev-Exp Region 4'!$AU$9, 0)","v":{"v":0,"d":"$0.00"}}]
["MMA",null,null,2016,"2016-12-31","Q4","2017-12-31","Region 4","Operating Expense","Medical Benefits Expense","Pharmacy Services","8.5","Ending accrual for Rebates receivable",{"$f":"IFERROR('MMA Rev-Exp Region 4'!$AK$60/'MMA Rev-Exp Region 4'!$AK$9, 0)","v":{"v":0,"d":"$0.00"}},{"$f":"IFERROR('MMA Rev-Exp Region 4'!$AL$60/'MMA Rev-Exp Region 4'!$AL$9, 0)","v":{"v":0,"d":"$0.00"}},{"$f":"IFERROR('MMA Rev-Exp Region 4'!$AM$60/'MMA Rev-Exp Region 4'!$AM$9, 0)","v":{"v":0,"d":"$0.00"}},{"$f":"IFERROR('MMA Rev-Exp Region 4'!$AN$60/'MMA Rev-Exp Region 4'!$AN$9, 0)","v":{"v":0,"d":"$0.00"}},{"$f":"IFERROR('MMA Rev-Exp Region 4'!$AO$60/'MMA Rev-Exp Region 4'!$AO$9, 0)","v":{"v":0,"d":"$0.00"}},{"$f":"IFERROR('MMA Rev-Exp Region 4'!$AP$60/'MMA Rev-Exp Region 4'!$AP$9, 0)","v":{"v":0,"d":"$0.00"}},{"$f":"IFERROR('MMA Rev-Exp Region 4'!$AQ$60/'MMA Rev-Exp Region 4'!$AQ$9, 0)","v":{"v":0,"d":"$0.00"}},{"$f":"IFERROR('MMA Rev-Exp Region 4'!$AR$60/'MMA Rev-Exp Region 4'!$AR$9, 0)","v":{"v":0,"d":"$0.00"}},{"$f":"IFERROR('MMA Rev-Exp Region 4'!$AS$60/'MMA Rev-Exp Region 4'!$AS$9, 0)","v":{"v":0,"d":"$0.00"}},{"$f":"IFERROR('MMA Rev-Exp Region 4'!$AT$60/'MMA Rev-Exp Region 4'!$AT$9, 0)","v":{"v":0,"d":"$0.00"}},{"$f":"IFERROR('MMA Rev-Exp Region 4'!$AU$60/'MMA Rev-Exp Region 4'!$AU$9, 0)","v":{"v":0,"d":"$0.00"}}]
["MMA",null,null,2016,"2016-12-31","Q4","2017-12-31","Region 4","Operating Expense","Medical Benefits Expense","Pharmacy Services","8.6","Prescription Drugs Subcapitation",{"$f":"IFERROR('MMA Rev-Exp Region 4'!$AK$61/'MMA Rev-Exp Region 4'!$AK$9, 0)","v":{"v":0,"d":"$0.00"}},{"$f":"IFERROR('MMA Rev-Exp Region 4'!$AL$61/'MMA Rev-Exp Region 4'!$AL$9, 0)","v":{"v":0,"d":"$0.00"}},{"$f":"IFERROR('MMA Rev-Exp Region 4'!$AM$61/'MMA Rev-Exp Region 4'!$AM$9, 0)","v":{"v":0,"d":"$0.00"}},{"$f":"IFERROR('MMA Rev-Exp Region 4'!$AN$61/'MMA Rev-Exp Region 4'!$AN$9, 0)","v":{"v":0,"d":"$0.00"}},{"$f":"IFERROR('MMA Rev-Exp Region 4'!$AO$61/'MMA Rev-Exp Region 4'!$AO$9, 0)","v":{"v":0,"d":"$0.00"}},{"$f":"IFERROR('MMA Rev-Exp Region 4'!$AP$61/'MMA Rev-Exp Region 4'!$AP$9, 0)","v":{"v":0,"d":"$0.00"}},{"$f":"IFERROR('MMA Rev-Exp Region 4'!$AQ$61/'MMA Rev-Exp Region 4'!$AQ$9, 0)","v":{"v":0,"d":"$0.00"}},{"$f":"IFERROR('MMA Rev-Exp Region 4'!$AR$61/'MMA Rev-Exp Region 4'!$AR$9, 0)","v":{"v":0,"d":"$0.00"}},{"$f":"IFERROR('MMA Rev-Exp Region 4'!$AS$61/'MMA Rev-Exp Region 4'!$AS$9, 0)","v":{"v":0,"d":"$0.00"}},{"$f":"IFERROR('MMA Rev-Exp Region 4'!$AT$61/'MMA Rev-Exp Region 4'!$AT$9, 0)","v":{"v":0,"d":"$0.00"}},{"$f":"IFERROR('MMA Rev-Exp Region 4'!$AU$61/'MMA Rev-Exp Region 4'!$AU$9, 0)","v":{"v":0,"d":"$0.00"}}]
["MMA",null,null,2016,"2016-12-31","Q4","2017-12-31","Region 4","Operating Expense","Medical Benefits Expense","Pharmacy Services","8.7","Prescription Drug Settlements",{"$f":"IFERROR('MMA Rev-Exp Region 4'!$AK$62/'MMA Rev-Exp Region 4'!$AK$9, 0)","v":{"v":0,"d":"$0.00"}},{"$f":"IFERROR('MMA Rev-Exp Region 4'!$AL$62/'MMA Rev-Exp Region 4'!$AL$9, 0)","v":{"v":0,"d":"$0.00"}},{"$f":"IFERROR('MMA Rev-Exp Region 4'!$AM$62/'MMA Rev-Exp Region 4'!$AM$9, 0)","v":{"v":0,"d":"$0.00"}},{"$f":"IFERROR('MMA Rev-Exp Region 4'!$AN$62/'MMA Rev-Exp Region 4'!$AN$9, 0)","v":{"v":0,"d":"$0.00"}},{"$f":"IFERROR('MMA Rev-Exp Region 4'!$AO$62/'MMA Rev-Exp Region 4'!$AO$9, 0)","v":{"v":0,"d":"$0.00"}},{"$f":"IFERROR('MMA Rev-Exp Region 4'!$AP$62/'MMA Rev-Exp Region 4'!$AP$9, 0)","v":{"v":0,"d":"$0.00"}},{"$f":"IFERROR('MMA Rev-Exp Region 4'!$AQ$62/'MMA Rev-Exp Region 4'!$AQ$9, 0)","v":{"v":0,"d":"$0.00"}},{"$f":"IFERROR('MMA Rev-Exp Region 4'!$AR$62/'MMA Rev-Exp Region 4'!$AR$9, 0)","v":{"v":0,"d":"$0.00"}},{"$f":"IFERROR('MMA Rev-Exp Region 4'!$AS$62/'MMA Rev-Exp Region 4'!$AS$9, 0)","v":{"v":0,"d":"$0.00"}},{"$f":"IFERROR('MMA Rev-Exp Region 4'!$AT$62/'MMA Rev-Exp Region 4'!$AT$9, 0)","v":{"v":0,"d":"$0.00"}},{"$f":"IFERROR('MMA Rev-Exp Region 4'!$AU$62/'MMA Rev-Exp Region 4'!$AU$9, 0)","v":{"v":0,"d":"$0.00"}}]
["MMA",null,null,2016,"2016-12-31","Q4","2017-12-31","Region 4","Operating Expense","Medical Benefits Expense","Other MMA Services",9.1,"Home Health, Private Duty Nursing, Personal Care FFS",{"$f":"IFERROR('MMA Rev-Exp Region 4'!$AK$64/'MMA Rev-Exp Region 4'!$AK$9, 0)","v":{"v":0,"d":"$0.00"}},{"$f":"IFERROR('MMA Rev-Exp Region 4'!$AL$64/'MMA Rev-Exp Region 4'!$AL$9, 0)","v":{"v":0,"d":"$0.00"}},{"$f":"IFERROR('MMA Rev-Exp Region 4'!$AM$64/'MMA Rev-Exp Region 4'!$AM$9, 0)","v":{"v":0,"d":"$0.00"}},{"$f":"IFERROR('MMA Rev-Exp Region 4'!$AN$64/'MMA Rev-Exp Region 4'!$AN$9, 0)","v":{"v":0,"d":"$0.00"}},{"$f":"IFERROR('MMA Rev-Exp Region 4'!$AO$64/'MMA Rev-Exp Region 4'!$AO$9, 0)","v":{"v":0,"d":"$0.00"}},{"$f":"IFERROR('MMA Rev-Exp Region 4'!$AP$64/'MMA Rev-Exp Region 4'!$AP$9, 0)","v":{"v":0,"d":"$0.00"}},{"$f":"IFERROR('MMA Rev-Exp Region 4'!$AQ$64/'MMA Rev-Exp Region 4'!$AQ$9, 0)","v":{"v":0,"d":"$0.00"}},{"$f":"IFERROR('MMA Rev-Exp Region 4'!$AR$64/'MMA Rev-Exp Region 4'!$AR$9, 0)","v":{"v":0,"d":"$0.00"}},{"$f":"IFERROR('MMA Rev-Exp Region 4'!$AS$64/'MMA Rev-Exp Region 4'!$AS$9, 0)","v":{"v":0,"d":"$0.00"}},{"$f":"IFERROR('MMA Rev-Exp Region 4'!$AT$64/'MMA Rev-Exp Region 4'!$AT$9, 0)","v":{"v":0,"d":"$0.00"}},{"$f":"IFERROR('MMA Rev-Exp Region 4'!$AU$64/'MMA Rev-Exp Region 4'!$AU$9, 0)","v":{"v":0,"d":"$0.00"}}]
["MMA",null,null,2016,"2016-12-31","Q4","2017-12-31","Region 4","Operating Expense","Medical Benefits Expense","Other MMA Services","9.2","Hospice FFS",{"$f":"IFERROR('MMA Rev-Exp Region 4'!$AK$65/'MMA Rev-Exp Region 4'!$AK$9, 0)","v":{"v":0,"d":"$0.00"}},{"$f":"IFERROR('MMA Rev-Exp Region 4'!$AL$65/'MMA Rev-Exp Region 4'!$AL$9, 0)","v":{"v":0,"d":"$0.00"}},{"$f":"IFERROR('MMA Rev-Exp Region 4'!$AM$65/'MMA Rev-Exp Region 4'!$AM$9, 0)","v":{"v":0,"d":"$0.00"}},{"$f":"IFERROR('MMA Rev-Exp Region 4'!$AN$65/'MMA Rev-Exp Region 4'!$AN$9, 0)","v":{"v":0,"d":"$0.00"}},{"$f":"IFERROR('MMA Rev-Exp Region 4'!$AO$65/'MMA Rev-Exp Region 4'!$AO$9, 0)","v":{"v":0,"d":"$0.00"}},{"$f":"IFERROR('MMA Rev-Exp Region 4'!$AP$65/'MMA Rev-Exp Region 4'!$AP$9, 0)","v":{"v":0,"d":"$0.00"}},{"$f":"IFERROR('MMA Rev-Exp Region 4'!$AQ$65/'MMA Rev-Exp Region 4'!$AQ$9, 0)","v":{"v":0,"d":"$0.00"}},{"$f":"IFERROR('MMA Rev-Exp Region 4'!$AR$65/'MMA Rev-Exp Region 4'!$AR$9, 0)","v":{"v":0,"d":"$0.00"}},{"$f":"IFERROR('MMA Rev-Exp Region 4'!$AS$65/'MMA Rev-Exp Region 4'!$AS$9, 0)","v":{"v":0,"d":"$0.00"}},{"$f":"IFERROR('MMA Rev-Exp Region 4'!$AT$65/'MMA Rev-Exp Region 4'!$AT$9, 0)","v":{"v":0,"d":"$0.00"}},{"$f":"IFERROR('MMA Rev-Exp Region 4'!$AU$65/'MMA Rev-Exp Region 4'!$AU$9, 0)","v":{"v":0,"d":"$0.00"}}]
["MMA",null,null,2016,"2016-12-31","Q4","2017-12-31","Region 4","Operating Expense","Medical Benefits Expense","Other MMA Services","9.3","DME FFS",{"$f":"IFERROR('MMA Rev-Exp Region 4'!$AK$66/'MMA Rev-Exp Region 4'!$AK$9, 0)","v":{"v":0,"d":"$0.00"}},{"$f":"IFERROR('MMA Rev-Exp Region 4'!$AL$66/'MMA Rev-Exp Region 4'!$AL$9, 0)","v":{"v":0,"d":"$0.00"}},{"$f":"IFERROR('MMA Rev-Exp Region 4'!$AM$66/'MMA Rev-Exp Region 4'!$AM$9, 0)","v":{"v":0,"d":"$0.00"}},{"$f":"IFERROR('MMA Rev-Exp Region 4'!$AN$66/'MMA Rev-Exp Region 4'!$AN$9, 0)","v":{"v":0,"d":"$0.00"}},{"$f":"IFERROR('MMA Rev-Exp Region 4'!$AO$66/'MMA Rev-Exp Region 4'!$AO$9, 0)","v":{"v":0,"d":"$0.00"}},{"$f":"IFERROR('MMA Rev-Exp Region 4'!$AP$66/'MMA Rev-Exp Region 4'!$AP$9, 0)","v":{"v":0,"d":"$0.00"}},{"$f":"IFERROR('MMA Rev-Exp Region 4'!$AQ$66/'MMA Rev-Exp Region 4'!$AQ$9, 0)","v":{"v":0,"d":"$0.00"}},{"$f":"IFERROR('MMA Rev-Exp Region 4'!$AR$66/'MMA Rev-Exp Region 4'!$AR$9, 0)","v":{"v":0,"d":"$0.00"}},{"$f":"IFERROR('MMA Rev-Exp Region 4'!$AS$66/'MMA Rev-Exp Region 4'!$AS$9, 0)","v":{"v":0,"d":"$0.00"}},{"$f":"IFERROR('MMA Rev-Exp Region 4'!$AT$66/'MMA Rev-Exp Region 4'!$AT$9, 0)","v":{"v":0,"d":"$0.00"}},{"$f":"IFERROR('MMA Rev-Exp Region 4'!$AU$66/'MMA Rev-Exp Region 4'!$AU$9, 0)","v":{"v":0,"d":"$0.00"}}]
["MMA",null,null,2016,"2016-12-31","Q4","2017-12-31","Region 4","Operating Expense","Medical Benefits Expense","Other MMA Services","9.4","Other State Plan Services FFS",{"$f":"IFERROR('MMA Rev-Exp Region 4'!$AK$67/'MMA Rev-Exp Region 4'!$AK$9, 0)","v":{"v":0,"d":"$0.00"}},{"$f":"IFERROR('MMA Rev-Exp Region 4'!$AL$67/'MMA Rev-Exp Region 4'!$AL$9, 0)","v":{"v":0,"d":"$0.00"}},{"$f":"IFERROR('MMA Rev-Exp Region 4'!$AM$67/'MMA Rev-Exp Region 4'!$AM$9, 0)","v":{"v":0,"d":"$0.00"}},{"$f":"IFERROR('MMA Rev-Exp Region 4'!$AN$67/'MMA Rev-Exp Region 4'!$AN$9, 0)","v":{"v":0,"d":"$0.00"}},{"$f":"IFERROR('MMA Rev-Exp Region 4'!$AO$67/'MMA Rev-Exp Region 4'!$AO$9, 0)","v":{"v":0,"d":"$0.00"}},{"$f":"IFERROR('MMA Rev-Exp Region 4'!$AP$67/'MMA Rev-Exp Region 4'!$AP$9, 0)","v":{"v":0,"d":"$0.00"}},{"$f":"IFERROR('MMA Rev-Exp Region 4'!$AQ$67/'MMA Rev-Exp Region 4'!$AQ$9, 0)","v":{"v":0,"d":"$0.00"}},{"$f":"IFERROR('MMA Rev-Exp Region 4'!$AR$67/'MMA Rev-Exp Region 4'!$AR$9, 0)","v":{"v":0,"d":"$0.00"}},{"$f":"IFERROR('MMA Rev-Exp Region 4'!$AS$67/'MMA Rev-Exp Region 4'!$AS$9, 0)","v":{"v":0,"d":"$0.00"}},{"$f":"IFERROR('MMA Rev-Exp Region 4'!$AT$67/'MMA Rev-Exp Region 4'!$AT$9, 0)","v":{"v":0,"d":"$0.00"}},{"$f":"IFERROR('MMA Rev-Exp Region 4'!$AU$67/'MMA Rev-Exp Region 4'!$AU$9, 0)","v":{"v":0,"d":"$0.00"}}]
["MMA",null,null,2016,"2016-12-31","Q4","2017-12-31","Region 4","Operating Expense","Medical Benefits Expense","Other MMA Services","9.5","Other Services Subcapitation",{"$f":"IFERROR('MMA Rev-Exp Region 4'!$AK$68/'MMA Rev-Exp Region 4'!$AK$9, 0)","v":{"v":0,"d":"$0.00"}},{"$f":"IFERROR('MMA Rev-Exp Region 4'!$AL$68/'MMA Rev-Exp Region 4'!$AL$9, 0)","v":{"v":0,"d":"$0.00"}},{"$f":"IFERROR('MMA Rev-Exp Region 4'!$AM$68/'MMA Rev-Exp Region 4'!$AM$9, 0)","v":{"v":0,"d":"$0.00"}},{"$f":"IFERROR('MMA Rev-Exp Region 4'!$AN$68/'MMA Rev-Exp Region 4'!$AN$9, 0)","v":{"v":0,"d":"$0.00"}},{"$f":"IFERROR('MMA Rev-Exp Region 4'!$AO$68/'MMA Rev-Exp Region 4'!$AO$9, 0)","v":{"v":0,"d":"$0.00"}},{"$f":"IFERROR('MMA Rev-Exp Region 4'!$AP$68/'MMA Rev-Exp Region 4'!$AP$9, 0)","v":{"v":0,"d":"$0.00"}},{"$f":"IFERROR('MMA Rev-Exp Region 4'!$AQ$68/'MMA Rev-Exp Region 4'!$AQ$9, 0)","v":{"v":0,"d":"$0.00"}},{"$f":"IFERROR('MMA Rev-Exp Region 4'!$AR$68/'MMA Rev-Exp Region 4'!$AR$9, 0)","v":{"v":0,"d":"$0.00"}},{"$f":"IFERROR('MMA Rev-Exp Region 4'!$AS$68/'MMA Rev-Exp Region 4'!$AS$9, 0)","v":{"v":0,"d":"$0.00"}},{"$f":"IFERROR('MMA Rev-Exp Region 4'!$AT$68/'MMA Rev-Exp Region 4'!$AT$9, 0)","v":{"v":0,"d":"$0.00"}},{"$f":"IFERROR('MMA Rev-Exp Region 4'!$AU$68/'MMA Rev-Exp Region 4'!$AU$9, 0)","v":{"v":0,"d":"$0.00"}}]
["MMA",null,null,2016,"2016-12-31","Q4","2017-12-31","Region 4","Operating Expense","Medical Benefits Expense","Other MMA Services","9.6","Ending IBNP for Other Services",{"$f":"IFERROR('MMA Rev-Exp Region 4'!$AK$69/'MMA Rev-Exp Region 4'!$AK$9, 0)","v":{"v":0,"d":"$0.00"}},{"$f":"IFERROR('MMA Rev-Exp Region 4'!$AL$69/'MMA Rev-Exp Region 4'!$AL$9, 0)","v":{"v":0,"d":"$0.00"}},{"$f":"IFERROR('MMA Rev-Exp Region 4'!$AM$69/'MMA Rev-Exp Region 4'!$AM$9, 0)","v":{"v":0,"d":"$0.00"}},{"$f":"IFERROR('MMA Rev-Exp Region 4'!$AN$69/'MMA Rev-Exp Region 4'!$AN$9, 0)","v":{"v":0,"d":"$0.00"}},{"$f":"IFERROR('MMA Rev-Exp Region 4'!$AO$69/'MMA Rev-Exp Region 4'!$AO$9, 0)","v":{"v":0,"d":"$0.00"}},{"$f":"IFERROR('MMA Rev-Exp Region 4'!$AP$69/'MMA Rev-Exp Region 4'!$AP$9, 0)","v":{"v":0,"d":"$0.00"}},{"$f":"IFERROR('MMA Rev-Exp Region 4'!$AQ$69/'MMA Rev-Exp Region 4'!$AQ$9, 0)","v":{"v":0,"d":"$0.00"}},{"$f":"IFERROR('MMA Rev-Exp Region 4'!$AR$69/'MMA Rev-Exp Region 4'!$AR$9, 0)","v":{"v":0,"d":"$0.00"}},{"$f":"IFERROR('MMA Rev-Exp Region 4'!$AS$69/'MMA Rev-Exp Region 4'!$AS$9, 0)","v":{"v":0,"d":"$0.00"}},{"$f":"IFERROR('MMA Rev-Exp Region 4'!$AT$69/'MMA Rev-Exp Region 4'!$AT$9, 0)","v":{"v":0,"d":"$0.00"}},{"$f":"IFERROR('MMA Rev-Exp Region 4'!$AU$69/'MMA Rev-Exp Region 4'!$AU$9, 0)","v":{"v":0,"d":"$0.00"}}]
["MMA",null,null,2016,"2016-12-31","Q4","2017-12-31","Region 4","Operating Expense","Medical Benefits Expense","Other MMA Services","9.7","Other Services Settlements",{"$f":"IFERROR('MMA Rev-Exp Region 4'!$AK$70/'MMA Rev-Exp Region 4'!$AK$9, 0)","v":{"v":0,"d":"$0.00"}},{"$f":"IFERROR('MMA Rev-Exp Region 4'!$AL$70/'MMA Rev-Exp Region 4'!$AL$9, 0)","v":{"v":0,"d":"$0.00"}},{"$f":"IFERROR('MMA Rev-Exp Region 4'!$AM$70/'MMA Rev-Exp Region 4'!$AM$9, 0)","v":{"v":0,"d":"$0.00"}},{"$f":"IFERROR('MMA Rev-Exp Region 4'!$AN$70/'MMA Rev-Exp Region 4'!$AN$9, 0)","v":{"v":0,"d":"$0.00"}},{"$f":"IFERROR('MMA Rev-Exp Region 4'!$AO$70/'MMA Rev-Exp Region 4'!$AO$9, 0)","v":{"v":0,"d":"$0.00"}},{"$f":"IFERROR('MMA Rev-Exp Region 4'!$AP$70/'MMA Rev-Exp Region 4'!$AP$9, 0)","v":{"v":0,"d":"$0.00"}},{"$f":"IFERROR('MMA Rev-Exp Region 4'!$AQ$70/'MMA Rev-Exp Region 4'!$AQ$9, 0)","v":{"v":0,"d":"$0.00"}},{"$f":"IFERROR('MMA Rev-Exp Region 4'!$AR$70/'MMA Rev-Exp Region 4'!$AR$9, 0)","v":{"v":0,"d":"$0.00"}},{"$f":"IFERROR('MMA Rev-Exp Region 4'!$AS$70/'MMA Rev-Exp Region 4'!$AS$9, 0)","v":{"v":0,"d":"$0.00"}},{"$f":"IFERROR('MMA Rev-Exp Region 4'!$AT$70/'MMA Rev-Exp Region 4'!$AT$9, 0)","v":{"v":0,"d":"$0.00"}},{"$f":"IFERROR('MMA Rev-Exp Region 4'!$AU$70/'MMA Rev-Exp Region 4'!$AU$9, 0)","v":{"v":0,"d":"$0.00"}}]
["MMA",null,null,2016,"2016-12-31","Q4","2017-12-31","Region 4","Operating Expense","Medical Benefits Expense","Expanded Benefits","10.1","Expanded Benefits FFS",{"$f":"IFERROR('MMA Rev-Exp Region 4'!$AK$72/'MMA Rev-Exp Region 4'!$AK$9, 0)","v":{"v":0,"d":"$0.00"}},{"$f":"IFERROR('MMA Rev-Exp Region 4'!$AL$72/'MMA Rev-Exp Region 4'!$AL$9, 0)","v":{"v":0,"d":"$0.00"}},{"$f":"IFERROR('MMA Rev-Exp Region 4'!$AM$72/'MMA Rev-Exp Region 4'!$AM$9, 0)","v":{"v":0,"d":"$0.00"}},{"$f":"IFERROR('MMA Rev-Exp Region 4'!$AN$72/'MMA Rev-Exp Region 4'!$AN$9, 0)","v":{"v":0,"d":"$0.00"}},{"$f":"IFERROR('MMA Rev-Exp Region 4'!$AO$72/'MMA Rev-Exp Region 4'!$AO$9, 0)","v":{"v":0,"d":"$0.00"}},{"$f":"IFERROR('MMA Rev-Exp Region 4'!$AP$72/'MMA Rev-Exp Region 4'!$AP$9, 0)","v":{"v":0,"d":"$0.00"}},{"$f":"IFERROR('MMA Rev-Exp Region 4'!$AQ$72/'MMA Rev-Exp Region 4'!$AQ$9, 0)","v":{"v":0,"d":"$0.00"}},{"$f":"IFERROR('MMA Rev-Exp Region 4'!$AR$72/'MMA Rev-Exp Region 4'!$AR$9, 0)","v":{"v":0,"d":"$0.00"}},{"$f":"IFERROR('MMA Rev-Exp Region 4'!$AS$72/'MMA Rev-Exp Region 4'!$AS$9, 0)","v":{"v":0,"d":"$0.00"}},{"$f":"IFERROR('MMA Rev-Exp Region 4'!$AT$72/'MMA Rev-Exp Region 4'!$AT$9, 0)","v":{"v":0,"d":"$0.00"}},{"$f":"IFERROR('MMA Rev-Exp Region 4'!$AU$72/'MMA Rev-Exp Region 4'!$AU$9, 0)","v":{"v":0,"d":"$0.00"}}]
["MMA",null,null,2016,"2016-12-31","Q4","2017-12-31","Region 4","Operating Expense","Medical Benefits Expense","Expanded Benefits","10.2","Expanded benefits Subcapitation",{"$f":"IFERROR('MMA Rev-Exp Region 4'!$AK$73/'MMA Rev-Exp Region 4'!$AK$9, 0)","v":{"v":0,"d":"$0.00"}},{"$f":"IFERROR('MMA Rev-Exp Region 4'!$AL$73/'MMA Rev-Exp Region 4'!$AL$9, 0)","v":{"v":0,"d":"$0.00"}},{"$f":"IFERROR('MMA Rev-Exp Region 4'!$AM$73/'MMA Rev-Exp Region 4'!$AM$9, 0)","v":{"v":0,"d":"$0.00"}},{"$f":"IFERROR('MMA Rev-Exp Region 4'!$AN$73/'MMA Rev-Exp Region 4'!$AN$9, 0)","v":{"v":0,"d":"$0.00"}},{"$f":"IFERROR('MMA Rev-Exp Region 4'!$AO$73/'MMA Rev-Exp Region 4'!$AO$9, 0)","v":{"v":0,"d":"$0.00"}},{"$f":"IFERROR('MMA Rev-Exp Region 4'!$AP$73/'MMA Rev-Exp Region 4'!$AP$9, 0)","v":{"v":0,"d":"$0.00"}},{"$f":"IFERROR('MMA Rev-Exp Region 4'!$AQ$73/'MMA Rev-Exp Region 4'!$AQ$9, 0)","v":{"v":0,"d":"$0.00"}},{"$f":"IFERROR('MMA Rev-Exp Region 4'!$AR$73/'MMA Rev-Exp Region 4'!$AR$9, 0)","v":{"v":0,"d":"$0.00"}},{"$f":"IFERROR('MMA Rev-Exp Region 4'!$AS$73/'MMA Rev-Exp Region 4'!$AS$9, 0)","v":{"v":0,"d":"$0.00"}},{"$f":"IFERROR('MMA Rev-Exp Region 4'!$AT$73/'MMA Rev-Exp Region 4'!$AT$9, 0)","v":{"v":0,"d":"$0.00"}},{"$f":"IFERROR('MMA Rev-Exp Region 4'!$AU$73/'MMA Rev-Exp Region 4'!$AU$9, 0)","v":{"v":0,"d":"$0.00"}}]
["MMA",null,null,2016,"2016-12-31","Q4","2017-12-31","Region 4","Operating Expense","Medical Benefits Expense","Expanded Benefits","10.3","Ending IBNP for Expanded Benefits",{"$f":"IFERROR('MMA Rev-Exp Region 4'!$AK$74/'MMA Rev-Exp Region 4'!$AK$9, 0)","v":{"v":0,"d":"$0.00"}},{"$f":"IFERROR('MMA Rev-Exp Region 4'!$AL$74/'MMA Rev-Exp Region 4'!$AL$9, 0)","v":{"v":0,"d":"$0.00"}},{"$f":"IFERROR('MMA Rev-Exp Region 4'!$AM$74/'MMA Rev-Exp Region 4'!$AM$9, 0)","v":{"v":0,"d":"$0.00"}},{"$f":"IFERROR('MMA Rev-Exp Region 4'!$AN$74/'MMA Rev-Exp Region 4'!$AN$9, 0)","v":{"v":0,"d":"$0.00"}},{"$f":"IFERROR('MMA Rev-Exp Region 4'!$AO$74/'MMA Rev-Exp Region 4'!$AO$9, 0)","v":{"v":0,"d":"$0.00"}},{"$f":"IFERROR('MMA Rev-Exp Region 4'!$AP$74/'MMA Rev-Exp Region 4'!$AP$9, 0)","v":{"v":0,"d":"$0.00"}},{"$f":"IFERROR('MMA Rev-Exp Region 4'!$AQ$74/'MMA Rev-Exp Region 4'!$AQ$9, 0)","v":{"v":0,"d":"$0.00"}},{"$f":"IFERROR('MMA Rev-Exp Region 4'!$AR$74/'MMA Rev-Exp Region 4'!$AR$9, 0)","v":{"v":0,"d":"$0.00"}},{"$f":"IFERROR('MMA Rev-Exp Region 4'!$AS$74/'MMA Rev-Exp Region 4'!$AS$9, 0)","v":{"v":0,"d":"$0.00"}},{"$f":"IFERROR('MMA Rev-Exp Region 4'!$AT$74/'MMA Rev-Exp Region 4'!$AT$9, 0)","v":{"v":0,"d":"$0.00"}},{"$f":"IFERROR('MMA Rev-Exp Region 4'!$AU$74/'MMA Rev-Exp Region 4'!$AU$9, 0)","v":{"v":0,"d":"$0.00"}}]
["MMA",null,null,2016,"2016-12-31","Q4","2017-12-31","Region 4","Operating Expense","Medical Benefits Expense","Expanded Benefits","10.4","Expanded Benefits Settlements",{"$f":"IFERROR('MMA Rev-Exp Region 4'!$AK$75/'MMA Rev-Exp Region 4'!$AK$9, 0)","v":{"v":0,"d":"$0.00"}},{"$f":"IFERROR('MMA Rev-Exp Region 4'!$AL$75/'MMA Rev-Exp Region 4'!$AL$9, 0)","v":{"v":0,"d":"$0.00"}},{"$f":"IFERROR('MMA Rev-Exp Region 4'!$AM$75/'MMA Rev-Exp Region 4'!$AM$9, 0)","v":{"v":0,"d":"$0.00"}},{"$f":"IFERROR('MMA Rev-Exp Region 4'!$AN$75/'MMA Rev-Exp Region 4'!$AN$9, 0)","v":{"v":0,"d":"$0.00"}},{"$f":"IFERROR('MMA Rev-Exp Region 4'!$AO$75/'MMA Rev-Exp Region 4'!$AO$9, 0)","v":{"v":0,"d":"$0.00"}},{"$f":"IFERROR('MMA Rev-Exp Region 4'!$AP$75/'MMA Rev-Exp Region 4'!$AP$9, 0)","v":{"v":0,"d":"$0.00"}},{"$f":"IFERROR('MMA Rev-Exp Region 4'!$AQ$75/'MMA Rev-Exp Region 4'!$AQ$9, 0)","v":{"v":0,"d":"$0.00"}},{"$f":"IFERROR('MMA Rev-Exp Region 4'!$AR$75/'MMA Rev-Exp Region 4'!$AR$9, 0)","v":{"v":0,"d":"$0.00"}},{"$f":"IFERROR('MMA Rev-Exp Region 4'!$AS$75/'MMA Rev-Exp Region 4'!$AS$9, 0)","v":{"v":0,"d":"$0.00"}},{"$f":"IFERROR('MMA Rev-Exp Region 4'!$AT$75/'MMA Rev-Exp Region 4'!$AT$9, 0)","v":{"v":0,"d":"$0.00"}},{"$f":"IFERROR('MMA Rev-Exp Region 4'!$AU$75/'MMA Rev-Exp Region 4'!$AU$9, 0)","v":{"v":0,"d":"$0.00"}}]
["MMA",null,null,2016,"2016-12-31","Q4","2017-12-31","Region 4","Operating Expense","Medical Benefits Expense","Other Medical","11.5","TPL & Fraud/Abuse Recoveries",{"$f":"IFERROR('MMA Rev-Exp Region 4'!$AK$81/'MMA Rev-Exp Region 4'!$AK$9, 0)","v":{"v":0,"d":"$0.00"}},{"$f":"IFERROR('MMA Rev-Exp Region 4'!$AL$81/'MMA Rev-Exp Region 4'!$AL$9, 0)","v":{"v":0,"d":"$0.00"}},{"$f":"IFERROR('MMA Rev-Exp Region 4'!$AM$81/'MMA Rev-Exp Region 4'!$AM$9, 0)","v":{"v":0,"d":"$0.00"}},{"$f":"IFERROR('MMA Rev-Exp Region 4'!$AN$81/'MMA Rev-Exp Region 4'!$AN$9, 0)","v":{"v":0,"d":"$0.00"}},{"$f":"IFERROR('MMA Rev-Exp Region 4'!$AO$81/'MMA Rev-Exp Region 4'!$AO$9, 0)","v":{"v":0,"d":"$0.00"}},{"$f":"IFERROR('MMA Rev-Exp Region 4'!$AP$81/'MMA Rev-Exp Region 4'!$AP$9, 0)","v":{"v":0,"d":"$0.00"}},{"$f":"IFERROR('MMA Rev-Exp Region 4'!$AQ$81/'MMA Rev-Exp Region 4'!$AQ$9, 0)","v":{"v":0,"d":"$0.00"}},{"$f":"IFERROR('MMA Rev-Exp Region 4'!$AR$81/'MMA Rev-Exp Region 4'!$AR$9, 0)","v":{"v":0,"d":"$0.00"}},{"$f":"IFERROR('MMA Rev-Exp Region 4'!$AS$81/'MMA Rev-Exp Region 4'!$AS$9, 0)","v":{"v":0,"d":"$0.00"}},{"$f":"IFERROR('MMA Rev-Exp Region 4'!$AT$81/'MMA Rev-Exp Region 4'!$AT$9, 0)","v":{"v":0,"d":"$0.00"}},{"$f":"IFERROR('MMA Rev-Exp Region 4'!$AU$81/'MMA Rev-Exp Region 4'!$AU$9, 0)","v":{"v":0,"d":"$0.00"}}]
["MMA",null,null,2016,"2016-12-31","Q4","2017-12-31","Region 4","Operating Expense","Medical Benefits Expense","Other Medical","11.6.1","Premium Deficiency Reserve",{"$f":"IFERROR('MMA Rev-Exp Region 4'!$AK$82/'MMA Rev-Exp Region 4'!$AK$9, 0)","v":{"v":0,"d":"$0.00"}},{"$f":"IFERROR('MMA Rev-Exp Region 4'!$AL$82/'MMA Rev-Exp Region 4'!$AL$9, 0)","v":{"v":0,"d":"$0.00"}},{"$f":"IFERROR('MMA Rev-Exp Region 4'!$AM$82/'MMA Rev-Exp Region 4'!$AM$9, 0)","v":{"v":0,"d":"$0.00"}},{"$f":"IFERROR('MMA Rev-Exp Region 4'!$AN$82/'MMA Rev-Exp Region 4'!$AN$9, 0)","v":{"v":0,"d":"$0.00"}},{"$f":"IFERROR('MMA Rev-Exp Region 4'!$AO$82/'MMA Rev-Exp Region 4'!$AO$9, 0)","v":{"v":0,"d":"$0.00"}},{"$f":"IFERROR('MMA Rev-Exp Region 4'!$AP$82/'MMA Rev-Exp Region 4'!$AP$9, 0)","v":{"v":0,"d":"$0.00"}},{"$f":"IFERROR('MMA Rev-Exp Region 4'!$AQ$82/'MMA Rev-Exp Region 4'!$AQ$9, 0)","v":{"v":0,"d":"$0.00"}},{"$f":"IFERROR('MMA Rev-Exp Region 4'!$AR$82/'MMA Rev-Exp Region 4'!$AR$9, 0)","v":{"v":0,"d":"$0.00"}},{"$f":"IFERROR('MMA Rev-Exp Region 4'!$AS$82/'MMA Rev-Exp Region 4'!$AS$9, 0)","v":{"v":0,"d":"$0.00"}},{"$f":"IFERROR('MMA Rev-Exp Region 4'!$AT$82/'MMA Rev-Exp Region 4'!$AT$9, 0)","v":{"v":0,"d":"$0.00"}},{"$f":"IFERROR('MMA Rev-Exp Region 4'!$AU$82/'MMA Rev-Exp Region 4'!$AU$9, 0)","v":{"v":0,"d":"$0.00"}}]
["MMA",null,null,2016,"2016-12-31","Q4","2017-12-31","Region 4","Operating Expense","Medical Benefits Expense","Other Medical","11.8","Reinsurance Premiums",{"$f":"IFERROR('MMA Rev-Exp Region 4'!$AK$84/'MMA Rev-Exp Region 4'!$AK$9, 0)","v":{"v":0,"d":"$0.00"}},{"$f":"IFERROR('MMA Rev-Exp Region 4'!$AL$84/'MMA Rev-Exp Region 4'!$AL$9, 0)","v":{"v":0,"d":"$0.00"}},{"$f":"IFERROR('MMA Rev-Exp Region 4'!$AM$84/'MMA Rev-Exp Region 4'!$AM$9, 0)","v":{"v":0,"d":"$0.00"}},{"$f":"IFERROR('MMA Rev-Exp Region 4'!$AN$84/'MMA Rev-Exp Region 4'!$AN$9, 0)","v":{"v":0,"d":"$0.00"}},{"$f":"IFERROR('MMA Rev-Exp Region 4'!$AO$84/'MMA Rev-Exp Region 4'!$AO$9, 0)","v":{"v":0,"d":"$0.00"}},{"$f":"IFERROR('MMA Rev-Exp Region 4'!$AP$84/'MMA Rev-Exp Region 4'!$AP$9, 0)","v":{"v":0,"d":"$0.00"}},{"$f":"IFERROR('MMA Rev-Exp Region 4'!$AQ$84/'MMA Rev-Exp Region 4'!$AQ$9, 0)","v":{"v":0,"d":"$0.00"}},{"$f":"IFERROR('MMA Rev-Exp Region 4'!$AR$84/'MMA Rev-Exp Region 4'!$AR$9, 0)","v":{"v":0,"d":"$0.00"}},{"$f":"IFERROR('MMA Rev-Exp Region 4'!$AS$84/'MMA Rev-Exp Region 4'!$AS$9, 0)","v":{"v":0,"d":"$0.00"}},{"$f":"IFERROR('MMA Rev-Exp Region 4'!$AT$84/'MMA Rev-Exp Region 4'!$AT$9, 0)","v":{"v":0,"d":"$0.00"}},{"$f":"IFERROR('MMA Rev-Exp Region 4'!$AU$84/'MMA Rev-Exp Region 4'!$AU$9, 0)","v":{"v":0,"d":"$0.00"}}]
["MMA",null,null,2016,"2016-12-31","Q4","2017-12-31","Region 4","Operating Expense","Medical Benefits Expense","Other Medical","11.9","Reinsurance Recoveries",{"$f":"IFERROR('MMA Rev-Exp Region 4'!$AK$85/'MMA Rev-Exp Region 4'!$AK$9, 0)","v":{"v":0,"d":"$0.00"}},{"$f":"IFERROR('MMA Rev-Exp Region 4'!$AL$85/'MMA Rev-Exp Region 4'!$AL$9, 0)","v":{"v":0,"d":"$0.00"}},{"$f":"IFERROR('MMA Rev-Exp Region 4'!$AM$85/'MMA Rev-Exp Region 4'!$AM$9, 0)","v":{"v":0,"d":"$0.00"}},{"$f":"IFERROR('MMA Rev-Exp Region 4'!$AN$85/'MMA Rev-Exp Region 4'!$AN$9, 0)","v":{"v":0,"d":"$0.00"}},{"$f":"IFERROR('MMA Rev-Exp Region 4'!$AO$85/'MMA Rev-Exp Region 4'!$AO$9, 0)","v":{"v":0,"d":"$0.00"}},{"$f":"IFERROR('MMA Rev-Exp Region 4'!$AP$85/'MMA Rev-Exp Region 4'!$AP$9, 0)","v":{"v":0,"d":"$0.00"}},{"$f":"IFERROR('MMA Rev-Exp Region 4'!$AQ$85/'MMA Rev-Exp Region 4'!$AQ$9, 0)","v":{"v":0,"d":"$0.00"}},{"$f":"IFERROR('MMA Rev-Exp Region 4'!$AR$85/'MMA Rev-Exp Region 4'!$AR$9, 0)","v":{"v":0,"d":"$0.00"}},{"$f":"IFERROR('MMA Rev-Exp Region 4'!$AS$85/'MMA Rev-Exp Region 4'!$AS$9, 0)","v":{"v":0,"d":"$0.00"}},{"$f":"IFERROR('MMA Rev-Exp Region 4'!$AT$85/'MMA Rev-Exp Region 4'!$AT$9, 0)","v":{"v":0,"d":"$0.00"}},{"$f":"IFERROR('MMA Rev-Exp Region 4'!$AU$85/'MMA Rev-Exp Region 4'!$AU$9, 0)","v":{"v":0,"d":"$0.00"}}]
["MMA",null,null,2016,"2016-12-31","Q4","2017-12-31","Region 4","Operating Expense","Administrative Expense","Administrative","12.1","Salaries & Benefits",{"$f":"IFERROR('MMA Rev-Exp Region 4'!$AK$90/'MMA Rev-Exp Region 4'!$AK$9, 0)","v":{"v":0,"d":"$0.00"}},{"$f":"IFERROR('MMA Rev-Exp Region 4'!$AL$90/'MMA Rev-Exp Region 4'!$AK$9, 0)","v":{"v":0,"d":"$0.00"}},{"$f":"IFERROR('MMA Rev-Exp Region 4'!$AM$90/'MMA Rev-Exp Region 4'!$AK$9, 0)","v":{"v":0,"d":"$0.00"}}]
["MMA",null,null,2016,"2016-12-31","Q4","2017-12-31","Region 4","Operating Expense","Administrative Expense","Administrative","12.2","Administrative Services",{"$f":"IFERROR('MMA Rev-Exp Region 4'!$AK$91/'MMA Rev-Exp Region 4'!$AK$9, 0)","v":{"v":0,"d":"$0.00"}},{"$f":"IFERROR('MMA Rev-Exp Region 4'!$AL$91/'MMA Rev-Exp Region 4'!$AK$9, 0)","v":{"v":0,"d":"$0.00"}},{"$f":"IFERROR('MMA Rev-Exp Region 4'!$AM$91/'MMA Rev-Exp Region 4'!$AK$9, 0)","v":{"v":0,"d":"$0.00"}}]
["MMA",null,null,2016,"2016-12-31","Q4","2017-12-31","Region 4","Operating Expense","Administrative Expense","Administrative","12.3","Information Systems",{"$f":"IFERROR('MMA Rev-Exp Region 4'!$AK$92/'MMA Rev-Exp Region 4'!$AK$9, 0)","v":{"v":0,"d":"$0.00"}},{"$f":"IFERROR('MMA Rev-Exp Region 4'!$AL$92/'MMA Rev-Exp Region 4'!$AK$9, 0)","v":{"v":0,"d":"$0.00"}},{"$f":"IFERROR('MMA Rev-Exp Region 4'!$AM$92/'MMA Rev-Exp Region 4'!$AK$9, 0)","v":{"v":0,"d":"$0.00"}}]
["MMA",null,null,2016,"2016-12-31","Q4","2017-12-31","Region 4","Operating Expense","Administrative Expense","Administrative","12.4","Marketing Expenses",{"$f":"IFERROR('MMA Rev-Exp Region 4'!$AK$93/'MMA Rev-Exp Region 4'!$AK$9, 0)","v":{"v":0,"d":"$0.00"}},{"$f":"IFERROR('MMA Rev-Exp Region 4'!$AL$93/'MMA Rev-Exp Region 4'!$AK$9, 0)","v":{"v":0,"d":"$0.00"}},{"$f":"IFERROR('MMA Rev-Exp Region 4'!$AM$93/'MMA Rev-Exp Region 4'!$AK$9, 0)","v":{"v":0,"d":"$0.00"}}]
["MMA",null,null,2016,"2016-12-31","Q4","2017-12-31","Region 4","Operating Expense","Administrative Expense","Administrative","12.5","General  Administration",{"$f":"IFERROR('MMA Rev-Exp Region 4'!$AK$94/'MMA Rev-Exp Region 4'!$AK$9, 0)","v":{"v":0,"d":"$0.00"}},{"$f":"IFERROR('MMA Rev-Exp Region 4'!$AL$94/'MMA Rev-Exp Region 4'!$AK$9, 0)","v":{"v":0,"d":"$0.00"}},{"$f":"IFERROR('MMA Rev-Exp Region 4'!$AM$94/'MMA Rev-Exp Region 4'!$AK$9, 0)","v":{"v":0,"d":"$0.00"}}]
["MMA",null,null,2016,"2016-12-31","Q4","2017-12-31","Region 4","Operating Expense","Administrative Expense","Administrative","12.6","Compliance/Regulatory",{"$f":"IFERROR('MMA Rev-Exp Region 4'!$AK$95/'MMA Rev-Exp Region 4'!$AK$9, 0)","v":{"v":0,"d":"$0.00"}},{"$f":"IFERROR('MMA Rev-Exp Region 4'!$AL$95/'MMA Rev-Exp Region 4'!$AK$9, 0)","v":{"v":0,"d":"$0.00"}},{"$f":"IFERROR('MMA Rev-Exp Region 4'!$AM$95/'MMA Rev-Exp Region 4'!$AK$9, 0)","v":{"v":0,"d":"$0.00"}}]
["MMA",null,null,2016,"2016-12-31","Q4","2017-12-31","Region 4","Operating Expense","Taxes & Fees","Taxes & Fees","13.1","State Premium tax",{"$f":"IFERROR('MMA Rev-Exp Region 4'!$AK$97/'MMA Rev-Exp Region 4'!$AK$9, 0)","v":{"v":0,"d":"$0.00"}}]
["MMA",null,null,2016,"2016-12-31","Q4","2017-12-31","Region 4","Operating Expense","Taxes & Fees","Taxes & Fees","13.2","Department of Insurance Assessments",{"$f":"IFERROR('MMA Rev-Exp Region 4'!$AK$98/'MMA Rev-Exp Region 4'!$AK$9, 0)","v":{"v":0,"d":"$0.00"}}]
["MMA",null,null,2016,"2016-12-31","Q4","2017-12-31","Region 4","Operating Expense","Taxes & Fees","Taxes & Fees","13.3","Section 9010 Health Insurance Providers Fee",{"$f":"IFERROR('MMA Rev-Exp Region 4'!$AK$99/'MMA Rev-Exp Region 4'!$AK$9, 0)","v":{"v":0,"d":"$0.00"}}]
["MMA",null,null,2016,"2016-12-31","Q4","2017-12-31","Region 4","Non-Operating Expense","Income Tax Expense","Income Tax Expense","16.0","Income Tax Expense",{"$f":"IFERROR('MMA Rev-Exp Region 4'!$AK$106/'MMA Rev-Exp Region 4'!$AK$9, 0)","v":{"v":0,"d":"$0.00"}}]
["MMA",null,null,2016,"2016-12-31","Q1","2017-03-31","Region 5","Operating Revenue","Capitation","Capitation",1.1,"Capitation",{"$f":"IFERROR('MMA Rev-Exp Region 5'!$D$11/'MMA Rev-Exp Region 5'!$D$9, 0)","v":{"v":0,"d":"$0.00"}},{"$f":"IFERROR('MMA Rev-Exp Region 5'!$E$11/'MMA Rev-Exp Region 5'!$E$9, 0)","v":{"v":0,"d":"$0.00"}},{"$f":"IFERROR('MMA Rev-Exp Region 5'!$F$11/'MMA Rev-Exp Region 5'!$F$9, 0)","v":{"v":0,"d":"$0.00"}},{"$f":"IFERROR('MMA Rev-Exp Region 5'!$G$11/'MMA Rev-Exp Region 5'!$G$9, 0)","v":{"v":0,"d":"$0.00"}},{"$f":"IFERROR('MMA Rev-Exp Region 5'!$H$11/'MMA Rev-Exp Region 5'!$H$9, 0)","v":{"v":0,"d":"$0.00"}},{"$f":"IFERROR('MMA Rev-Exp Region 5'!$I$11/'MMA Rev-Exp Region 5'!$I$9, 0)","v":{"v":0,"d":"$0.00"}},{"$f":"IFERROR('MMA Rev-Exp Region 5'!$J$11/'MMA Rev-Exp Region 5'!$J$9, 0)","v":{"v":0,"d":"$0.00"}},{"$f":"IFERROR('MMA Rev-Exp Region 5'!$K$11/'MMA Rev-Exp Region 5'!$K$9, 0)","v":{"v":0,"d":"$0.00"}},{"$f":"IFERROR('MMA Rev-Exp Region 5'!$L$11/'MMA Rev-Exp Region 5'!$L$9, 0)","v":{"v":0,"d":"$0.00"}},{"$f":"IFERROR('MMA Rev-Exp Region 5'!$M$11/'MMA Rev-Exp Region 5'!$M$9, 0)","v":{"v":0,"d":"$0.00"}},{"$f":"IFERROR('MMA Rev-Exp Region 5'!$N$11/'MMA Rev-Exp Region 5'!$N$9, 0)","v":{"v":0,"d":"$0.00"}}]
["MMA",null,null,2016,"2016-12-31","Q1","2017-03-31","Region 5","Operating Revenue","Kick Payments","Kick Payments - Transplant",1.2,"Transplant Kick Payments",{"$f":"IFERROR('MMA Rev-Exp Region 5'!$D$12/'MMA Rev-Exp Region 5'!$D$9, 0)","v":{"v":0,"d":"$0.00"}},{"$f":"IFERROR('MMA Rev-Exp Region 5'!$E$12/'MMA Rev-Exp Region 5'!$E$9, 0)","v":{"v":0,"d":"$0.00"}},{"$f":"IFERROR('MMA Rev-Exp Region 5'!$F$12/'MMA Rev-Exp Region 5'!$F$9, 0)","v":{"v":0,"d":"$0.00"}},{"$f":"IFERROR('MMA Rev-Exp Region 5'!$G$12/'MMA Rev-Exp Region 5'!$G$9, 0)","v":{"v":0,"d":"$0.00"}},{"$f":"IFERROR('MMA Rev-Exp Region 5'!$H$12/'MMA Rev-Exp Region 5'!$H$9, 0)","v":{"v":0,"d":"$0.00"}},{"$f":"IFERROR('MMA Rev-Exp Region 5'!$I$12/'MMA Rev-Exp Region 5'!$I$9, 0)","v":{"v":0,"d":"$0.00"}},{"$f":"IFERROR('MMA Rev-Exp Region 5'!$J$12/'MMA Rev-Exp Region 5'!$J$9, 0)","v":{"v":0,"d":"$0.00"}},{"$f":"IFERROR('MMA Rev-Exp Region 5'!$K$12/'MMA Rev-Exp Region 5'!$K$9, 0)","v":{"v":0,"d":"$0.00"}},{"$f":"IFERROR('MMA Rev-Exp Region 5'!$L$12/'MMA Rev-Exp Region 5'!$L$9, 0)","v":{"v":0,"d":"$0.00"}},{"$f":"IFERROR('MMA Rev-Exp Region 5'!$M$12/'MMA Rev-Exp Region 5'!$M$9, 0)","v":{"v":0,"d":"$0.00"}},{"$f":"IFERROR('MMA Rev-Exp Region 5'!$N$12/'MMA Rev-Exp Region 5'!$N$9, 0)","v":{"v":0,"d":"$0.00"}}]
["MMA",null,null,2016,"2016-12-31","Q1","2017-03-31","Region 5","Operating Revenue","Kick Payments","Kick Payments - Hep C","1.3","Hepatitis C Kick Payments",{"$f":"IFERROR('MMA Rev-Exp Region 5'!$D$13/'MMA Rev-Exp Region 5'!$D$9, 0)","v":{"v":0,"d":"$0.00"}},{"$f":"IFERROR('MMA Rev-Exp Region 5'!$E$13/'MMA Rev-Exp Region 5'!$E$9, 0)","v":{"v":0,"d":"$0.00"}},{"$f":"IFERROR('MMA Rev-Exp Region 5'!$F$13/'MMA Rev-Exp Region 5'!$F$9, 0)","v":{"v":0,"d":"$0.00"}},{"$f":"IFERROR('MMA Rev-Exp Region 5'!$G$13/'MMA Rev-Exp Region 5'!$G$9, 0)","v":{"v":0,"d":"$0.00"}},{"$f":"IFERROR('MMA Rev-Exp Region 5'!$H$13/'MMA Rev-Exp Region 5'!$H$9, 0)","v":{"v":0,"d":"$0.00"}},{"$f":"IFERROR('MMA Rev-Exp Region 5'!$I$13/'MMA Rev-Exp Region 5'!$I$9, 0)","v":{"v":0,"d":"$0.00"}},{"$f":"IFERROR('MMA Rev-Exp Region 5'!$J$13/'MMA Rev-Exp Region 5'!$J$9, 0)","v":{"v":0,"d":"$0.00"}},{"$f":"IFERROR('MMA Rev-Exp Region 5'!$K$13/'MMA Rev-Exp Region 5'!$K$9, 0)","v":{"v":0,"d":"$0.00"}},{"$f":"IFERROR('MMA Rev-Exp Region 5'!$L$13/'MMA Rev-Exp Region 5'!$L$9, 0)","v":{"v":0,"d":"$0.00"}},{"$f":"IFERROR('MMA Rev-Exp Region 5'!$M$13/'MMA Rev-Exp Region 5'!$M$9, 0)","v":{"v":0,"d":"$0.00"}},{"$f":"IFERROR('MMA Rev-Exp Region 5'!$N$13/'MMA Rev-Exp Region 5'!$N$9, 0)","v":{"v":0,"d":"$0.00"}}]
["MMA",null,null,2016,"2016-12-31","Q1","2017-03-31","Region 5","Operating Revenue","Kick Payments","Kick Payments - Maternity","1.4.1","Maternity Kick Payments",{"$f":"IFERROR('MMA Rev-Exp Region 5'!$D$14/'MMA Rev-Exp Region 5'!$D$9, 0)","v":{"v":0,"d":"$0.00"}},{"$f":"IFERROR('MMA Rev-Exp Region 5'!$E$14/'MMA Rev-Exp Region 5'!$E$9, 0)","v":{"v":0,"d":"$0.00"}},{"$f":"IFERROR('MMA Rev-Exp Region 5'!$F$14/'MMA Rev-Exp Region 5'!$F$9, 0)","v":{"v":0,"d":"$0.00"}},{"$f":"IFERROR('MMA Rev-Exp Region 5'!$G$14/'MMA Rev-Exp Region 5'!$G$9, 0)","v":{"v":0,"d":"$0.00"}},{"$f":"IFERROR('MMA Rev-Exp Region 5'!$H$14/'MMA Rev-Exp Region 5'!$H$9, 0)","v":{"v":0,"d":"$0.00"}},{"$f":"IFERROR('MMA Rev-Exp Region 5'!$I$14/'MMA Rev-Exp Region 5'!$I$9, 0)","v":{"v":0,"d":"$0.00"}},{"$f":"IFERROR('MMA Rev-Exp Region 5'!$J$14/'MMA Rev-Exp Region 5'!$J$9, 0)","v":{"v":0,"d":"$0.00"}},{"$f":"IFERROR('MMA Rev-Exp Region 5'!$K$14/'MMA Rev-Exp Region 5'!$K$9, 0)","v":{"v":0,"d":"$0.00"}},{"$f":"IFERROR('MMA Rev-Exp Region 5'!$L$14/'MMA Rev-Exp Region 5'!$L$9, 0)","v":{"v":0,"d":"$0.00"}},{"$f":"IFERROR('MMA Rev-Exp Region 5'!$M$14/'MMA Rev-Exp Region 5'!$M$9, 0)","v":{"v":0,"d":"$0.00"}},{"$f":"IFERROR('MMA Rev-Exp Region 5'!$N$14/'MMA Rev-Exp Region 5'!$N$9, 0)","v":{"v":0,"d":"$0.00"}}]
["MMA",null,null,2016,"2016-12-31","Q1","2017-03-31","Region 5","Operating Revenue","Other Revenue","Other Revenue - 9010","1.5","ACA § 9010 related payments",{"$f":"IFERROR('MMA Rev-Exp Region 5'!$D$15/'MMA Rev-Exp Region 5'!$D$9, 0)","v":{"v":0,"d":"$0.00"}},{"$f":"IFERROR('MMA Rev-Exp Region 5'!$E$15/'MMA Rev-Exp Region 5'!$E$9, 0)","v":{"v":0,"d":"$0.00"}},{"$f":"IFERROR('MMA Rev-Exp Region 5'!$F$15/'MMA Rev-Exp Region 5'!$F$9, 0)","v":{"v":0,"d":"$0.00"}},{"$f":"IFERROR('MMA Rev-Exp Region 5'!$G$15/'MMA Rev-Exp Region 5'!$G$9, 0)","v":{"v":0,"d":"$0.00"}},{"$f":"IFERROR('MMA Rev-Exp Region 5'!$H$15/'MMA Rev-Exp Region 5'!$H$9, 0)","v":{"v":0,"d":"$0.00"}},{"$f":"IFERROR('MMA Rev-Exp Region 5'!$I$15/'MMA Rev-Exp Region 5'!$I$9, 0)","v":{"v":0,"d":"$0.00"}},{"$f":"IFERROR('MMA Rev-Exp Region 5'!$J$15/'MMA Rev-Exp Region 5'!$J$9, 0)","v":{"v":0,"d":"$0.00"}},{"$f":"IFERROR('MMA Rev-Exp Region 5'!$K$15/'MMA Rev-Exp Region 5'!$K$9, 0)","v":{"v":0,"d":"$0.00"}},{"$f":"IFERROR('MMA Rev-Exp Region 5'!$L$15/'MMA Rev-Exp Region 5'!$L$9, 0)","v":{"v":0,"d":"$0.00"}},{"$f":"IFERROR('MMA Rev-Exp Region 5'!$M$15/'MMA Rev-Exp Region 5'!$M$9, 0)","v":{"v":0,"d":"$0.00"}},{"$f":"IFERROR('MMA Rev-Exp Region 5'!$N$15/'MMA Rev-Exp Region 5'!$N$9, 0)","v":{"v":0,"d":"$0.00"}}]
["MMA",null,null,2016,"2016-12-31","Q1","2017-03-31","Region 5","Operating Revenue","Other Revenue","Other Revenue","1.6","Other Revenue",{"$f":"IFERROR('MMA Rev-Exp Region 5'!$D$16/'MMA Rev-Exp Region 5'!$D$9, 0)","v":{"v":0,"d":"$0.00"}},{"$f":"IFERROR('MMA Rev-Exp Region 5'!$E$16/'MMA Rev-Exp Region 5'!$E$9, 0)","v":{"v":0,"d":"$0.00"}},{"$f":"IFERROR('MMA Rev-Exp Region 5'!$F$16/'MMA Rev-Exp Region 5'!$F$9, 0)","v":{"v":0,"d":"$0.00"}},{"$f":"IFERROR('MMA Rev-Exp Region 5'!$G$16/'MMA Rev-Exp Region 5'!$G$9, 0)","v":{"v":0,"d":"$0.00"}},{"$f":"IFERROR('MMA Rev-Exp Region 5'!$H$16/'MMA Rev-Exp Region 5'!$H$9, 0)","v":{"v":0,"d":"$0.00"}},{"$f":"IFERROR('MMA Rev-Exp Region 5'!$I$16/'MMA Rev-Exp Region 5'!$I$9, 0)","v":{"v":0,"d":"$0.00"}},{"$f":"IFERROR('MMA Rev-Exp Region 5'!$J$16/'MMA Rev-Exp Region 5'!$J$9, 0)","v":{"v":0,"d":"$0.00"}},{"$f":"IFERROR('MMA Rev-Exp Region 5'!$K$16/'MMA Rev-Exp Region 5'!$K$9, 0)","v":{"v":0,"d":"$0.00"}},{"$f":"IFERROR('MMA Rev-Exp Region 5'!$L$16/'MMA Rev-Exp Region 5'!$L$9, 0)","v":{"v":0,"d":"$0.00"}},{"$f":"IFERROR('MMA Rev-Exp Region 5'!$M$16/'MMA Rev-Exp Region 5'!$M$9, 0)","v":{"v":0,"d":"$0.00"}},{"$f":"IFERROR('MMA Rev-Exp Region 5'!$N$16/'MMA Rev-Exp Region 5'!$N$9, 0)","v":{"v":0,"d":"$0.00"}}]
["MMA",null,null,2016,"2016-12-31","Q1","2017-03-31","Region 5","Operating Expense","Medical Benefits Expense","Hospital Services",2.1,"Inpatient FFS",{"$f":"IFERROR('MMA Rev-Exp Region 5'!$D$20/'MMA Rev-Exp Region 5'!$D$9, 0)","v":{"v":0,"d":"$0.00"}},{"$f":"IFERROR('MMA Rev-Exp Region 5'!$E$20/'MMA Rev-Exp Region 5'!$E$9, 0)","v":{"v":0,"d":"$0.00"}},{"$f":"IFERROR('MMA Rev-Exp Region 5'!$F$20/'MMA Rev-Exp Region 5'!$F$9, 0)","v":{"v":0,"d":"$0.00"}},{"$f":"IFERROR('MMA Rev-Exp Region 5'!$G$20/'MMA Rev-Exp Region 5'!$G$9, 0)","v":{"v":0,"d":"$0.00"}},{"$f":"IFERROR('MMA Rev-Exp Region 5'!$H$20/'MMA Rev-Exp Region 5'!$H$9, 0)","v":{"v":0,"d":"$0.00"}},{"$f":"IFERROR('MMA Rev-Exp Region 5'!$I$20/'MMA Rev-Exp Region 5'!$I$9, 0)","v":{"v":0,"d":"$0.00"}},{"$f":"IFERROR('MMA Rev-Exp Region 5'!$J$20/'MMA Rev-Exp Region 5'!$J$9, 0)","v":{"v":0,"d":"$0.00"}},{"$f":"IFERROR('MMA Rev-Exp Region 5'!$K$20/'MMA Rev-Exp Region 5'!$K$9, 0)","v":{"v":0,"d":"$0.00"}},{"$f":"IFERROR('MMA Rev-Exp Region 5'!$L$20/'MMA Rev-Exp Region 5'!$L$9, 0)","v":{"v":0,"d":"$0.00"}},{"$f":"IFERROR('MMA Rev-Exp Region 5'!$M$20/'MMA Rev-Exp Region 5'!$M$9, 0)","v":{"v":0,"d":"$0.00"}},{"$f":"IFERROR('MMA Rev-Exp Region 5'!$N$20/'MMA Rev-Exp Region 5'!$N$9, 0)","v":{"v":0,"d":"$0.00"}}]
["MMA",null,null,2016,"2016-12-31","Q1","2017-03-31","Region 5","Operating Expense","Medical Benefits Expense","Hospital Services",2.2,"Ending IBNP for Inpatient Hospital Services",{"$f":"IFERROR('MMA Rev-Exp Region 5'!$D$21/'MMA Rev-Exp Region 5'!$D$9, 0)","v":{"v":0,"d":"$0.00"}},{"$f":"IFERROR('MMA Rev-Exp Region 5'!$E$21/'MMA Rev-Exp Region 5'!$E$9, 0)","v":{"v":0,"d":"$0.00"}},{"$f":"IFERROR('MMA Rev-Exp Region 5'!$F$21/'MMA Rev-Exp Region 5'!$F$9, 0)","v":{"v":0,"d":"$0.00"}},{"$f":"IFERROR('MMA Rev-Exp Region 5'!$G$21/'MMA Rev-Exp Region 5'!$G$9, 0)","v":{"v":0,"d":"$0.00"}},{"$f":"IFERROR('MMA Rev-Exp Region 5'!$H$21/'MMA Rev-Exp Region 5'!$H$9, 0)","v":{"v":0,"d":"$0.00"}},{"$f":"IFERROR('MMA Rev-Exp Region 5'!$I$21/'MMA Rev-Exp Region 5'!$I$9, 0)","v":{"v":0,"d":"$0.00"}},{"$f":"IFERROR('MMA Rev-Exp Region 5'!$J$21/'MMA Rev-Exp Region 5'!$J$9, 0)","v":{"v":0,"d":"$0.00"}},{"$f":"IFERROR('MMA Rev-Exp Region 5'!$K$21/'MMA Rev-Exp Region 5'!$K$9, 0)","v":{"v":0,"d":"$0.00"}},{"$f":"IFERROR('MMA Rev-Exp Region 5'!$L$21/'MMA Rev-Exp Region 5'!$L$9, 0)","v":{"v":0,"d":"$0.00"}},{"$f":"IFERROR('MMA Rev-Exp Region 5'!$M$21/'MMA Rev-Exp Region 5'!$M$9, 0)","v":{"v":0,"d":"$0.00"}},{"$f":"IFERROR('MMA Rev-Exp Region 5'!$N$21/'MMA Rev-Exp Region 5'!$N$9, 0)","v":{"v":0,"d":"$0.00"}}]
["MMA",null,null,2016,"2016-12-31","Q1","2017-03-31","Region 5","Operating Expense","Medical Benefits Expense","Hospital Services",2.3,"Outpatient FFS: ER",{"$f":"IFERROR('MMA Rev-Exp Region 5'!$D$22/'MMA Rev-Exp Region 5'!$D$9, 0)","v":{"v":0,"d":"$0.00"}},{"$f":"IFERROR('MMA Rev-Exp Region 5'!$E$22/'MMA Rev-Exp Region 5'!$E$9, 0)","v":{"v":0,"d":"$0.00"}},{"$f":"IFERROR('MMA Rev-Exp Region 5'!$F$22/'MMA Rev-Exp Region 5'!$F$9, 0)","v":{"v":0,"d":"$0.00"}},{"$f":"IFERROR('MMA Rev-Exp Region 5'!$G$22/'MMA Rev-Exp Region 5'!$G$9, 0)","v":{"v":0,"d":"$0.00"}},{"$f":"IFERROR('MMA Rev-Exp Region 5'!$H$22/'MMA Rev-Exp Region 5'!$H$9, 0)","v":{"v":0,"d":"$0.00"}},{"$f":"IFERROR('MMA Rev-Exp Region 5'!$I$22/'MMA Rev-Exp Region 5'!$I$9, 0)","v":{"v":0,"d":"$0.00"}},{"$f":"IFERROR('MMA Rev-Exp Region 5'!$J$22/'MMA Rev-Exp Region 5'!$J$9, 0)","v":{"v":0,"d":"$0.00"}},{"$f":"IFERROR('MMA Rev-Exp Region 5'!$K$22/'MMA Rev-Exp Region 5'!$K$9, 0)","v":{"v":0,"d":"$0.00"}},{"$f":"IFERROR('MMA Rev-Exp Region 5'!$L$22/'MMA Rev-Exp Region 5'!$L$9, 0)","v":{"v":0,"d":"$0.00"}},{"$f":"IFERROR('MMA Rev-Exp Region 5'!$M$22/'MMA Rev-Exp Region 5'!$M$9, 0)","v":{"v":0,"d":"$0.00"}},{"$f":"IFERROR('MMA Rev-Exp Region 5'!$N$22/'MMA Rev-Exp Region 5'!$N$9, 0)","v":{"v":0,"d":"$0.00"}}]
["MMA",null,null,2016,"2016-12-31","Q1","2017-03-31","Region 5","Operating Expense","Medical Benefits Expense","Hospital Services",2.4,"Outpatient FFS: Other than ER ",{"$f":"IFERROR('MMA Rev-Exp Region 5'!$D$23/'MMA Rev-Exp Region 5'!$D$9, 0)","v":{"v":0,"d":"$0.00"}},{"$f":"IFERROR('MMA Rev-Exp Region 5'!$E$23/'MMA Rev-Exp Region 5'!$E$9, 0)","v":{"v":0,"d":"$0.00"}},{"$f":"IFERROR('MMA Rev-Exp Region 5'!$F$23/'MMA Rev-Exp Region 5'!$F$9, 0)","v":{"v":0,"d":"$0.00"}},{"$f":"IFERROR('MMA Rev-Exp Region 5'!$G$23/'MMA Rev-Exp Region 5'!$G$9, 0)","v":{"v":0,"d":"$0.00"}},{"$f":"IFERROR('MMA Rev-Exp Region 5'!$H$23/'MMA Rev-Exp Region 5'!$H$9, 0)","v":{"v":0,"d":"$0.00"}},{"$f":"IFERROR('MMA Rev-Exp Region 5'!$I$23/'MMA Rev-Exp Region 5'!$I$9, 0)","v":{"v":0,"d":"$0.00"}},{"$f":"IFERROR('MMA Rev-Exp Region 5'!$J$23/'MMA Rev-Exp Region 5'!$J$9, 0)","v":{"v":0,"d":"$0.00"}},{"$f":"IFERROR('MMA Rev-Exp Region 5'!$K$23/'MMA Rev-Exp Region 5'!$K$9, 0)","v":{"v":0,"d":"$0.00"}},{"$f":"IFERROR('MMA Rev-Exp Region 5'!$L$23/'MMA Rev-Exp Region 5'!$L$9, 0)","v":{"v":0,"d":"$0.00"}},{"$f":"IFERROR('MMA Rev-Exp Region 5'!$M$23/'MMA Rev-Exp Region 5'!$M$9, 0)","v":{"v":0,"d":"$0.00"}},{"$f":"IFERROR('MMA Rev-Exp Region 5'!$N$23/'MMA Rev-Exp Region 5'!$N$9, 0)","v":{"v":0,"d":"$0.00"}}]
["MMA",null,null,2016,"2016-12-31","Q1","2017-03-31","Region 5","Operating Expense","Medical Benefits Expense","Hospital Services",2.5,"Ending IBNP for Outpatient Hospital Services",{"$f":"IFERROR('MMA Rev-Exp Region 5'!$D$24/'MMA Rev-Exp Region 5'!$D$9, 0)","v":{"v":0,"d":"$0.00"}},{"$f":"IFERROR('MMA Rev-Exp Region 5'!$E$24/'MMA Rev-Exp Region 5'!$E$9, 0)","v":{"v":0,"d":"$0.00"}},{"$f":"IFERROR('MMA Rev-Exp Region 5'!$F$24/'MMA Rev-Exp Region 5'!$F$9, 0)","v":{"v":0,"d":"$0.00"}},{"$f":"IFERROR('MMA Rev-Exp Region 5'!$G$24/'MMA Rev-Exp Region 5'!$G$9, 0)","v":{"v":0,"d":"$0.00"}},{"$f":"IFERROR('MMA Rev-Exp Region 5'!$H$24/'MMA Rev-Exp Region 5'!$H$9, 0)","v":{"v":0,"d":"$0.00"}},{"$f":"IFERROR('MMA Rev-Exp Region 5'!$I$24/'MMA Rev-Exp Region 5'!$I$9, 0)","v":{"v":0,"d":"$0.00"}},{"$f":"IFERROR('MMA Rev-Exp Region 5'!$J$24/'MMA Rev-Exp Region 5'!$J$9, 0)","v":{"v":0,"d":"$0.00"}},{"$f":"IFERROR('MMA Rev-Exp Region 5'!$K$24/'MMA Rev-Exp Region 5'!$K$9, 0)","v":{"v":0,"d":"$0.00"}},{"$f":"IFERROR('MMA Rev-Exp Region 5'!$L$24/'MMA Rev-Exp Region 5'!$L$9, 0)","v":{"v":0,"d":"$0.00"}},{"$f":"IFERROR('MMA Rev-Exp Region 5'!$M$24/'MMA Rev-Exp Region 5'!$M$9, 0)","v":{"v":0,"d":"$0.00"}},{"$f":"IFERROR('MMA Rev-Exp Region 5'!$N$24/'MMA Rev-Exp Region 5'!$N$9, 0)","v":{"v":0,"d":"$0.00"}}]
["MMA",null,null,2016,"2016-12-31","Q1","2017-03-31","Region 5","Operating Expense","Medical Benefits Expense","Hospital Services","2.6","Subcapitated Hospital Services",{"$f":"IFERROR('MMA Rev-Exp Region 5'!$D$25/'MMA Rev-Exp Region 5'!$D$9, 0)","v":{"v":0,"d":"$0.00"}},{"$f":"IFERROR('MMA Rev-Exp Region 5'!$E$25/'MMA Rev-Exp Region 5'!$E$9, 0)","v":{"v":0,"d":"$0.00"}},{"$f":"IFERROR('MMA Rev-Exp Region 5'!$F$25/'MMA Rev-Exp Region 5'!$F$9, 0)","v":{"v":0,"d":"$0.00"}},{"$f":"IFERROR('MMA Rev-Exp Region 5'!$G$25/'MMA Rev-Exp Region 5'!$G$9, 0)","v":{"v":0,"d":"$0.00"}},{"$f":"IFERROR('MMA Rev-Exp Region 5'!$H$25/'MMA Rev-Exp Region 5'!$H$9, 0)","v":{"v":0,"d":"$0.00"}},{"$f":"IFERROR('MMA Rev-Exp Region 5'!$I$25/'MMA Rev-Exp Region 5'!$I$9, 0)","v":{"v":0,"d":"$0.00"}},{"$f":"IFERROR('MMA Rev-Exp Region 5'!$J$25/'MMA Rev-Exp Region 5'!$J$9, 0)","v":{"v":0,"d":"$0.00"}},{"$f":"IFERROR('MMA Rev-Exp Region 5'!$K$25/'MMA Rev-Exp Region 5'!$K$9, 0)","v":{"v":0,"d":"$0.00"}},{"$f":"IFERROR('MMA Rev-Exp Region 5'!$L$25/'MMA Rev-Exp Region 5'!$L$9, 0)","v":{"v":0,"d":"$0.00"}},{"$f":"IFERROR('MMA Rev-Exp Region 5'!$M$25/'MMA Rev-Exp Region 5'!$M$9, 0)","v":{"v":0,"d":"$0.00"}},{"$f":"IFERROR('MMA Rev-Exp Region 5'!$N$25/'MMA Rev-Exp Region 5'!$N$9, 0)","v":{"v":0,"d":"$0.00"}}]
["MMA",null,null,2016,"2016-12-31","Q1","2017-03-31","Region 5","Operating Expense","Medical Benefits Expense","Hospital Services","2.7","Hospital Settlements",{"$f":"IFERROR('MMA Rev-Exp Region 5'!$D$26/'MMA Rev-Exp Region 5'!$D$9, 0)","v":{"v":0,"d":"$0.00"}},{"$f":"IFERROR('MMA Rev-Exp Region 5'!$E$26/'MMA Rev-Exp Region 5'!$E$9, 0)","v":{"v":0,"d":"$0.00"}},{"$f":"IFERROR('MMA Rev-Exp Region 5'!$F$26/'MMA Rev-Exp Region 5'!$F$9, 0)","v":{"v":0,"d":"$0.00"}},{"$f":"IFERROR('MMA Rev-Exp Region 5'!$G$26/'MMA Rev-Exp Region 5'!$G$9, 0)","v":{"v":0,"d":"$0.00"}},{"$f":"IFERROR('MMA Rev-Exp Region 5'!$H$26/'MMA Rev-Exp Region 5'!$H$9, 0)","v":{"v":0,"d":"$0.00"}},{"$f":"IFERROR('MMA Rev-Exp Region 5'!$I$26/'MMA Rev-Exp Region 5'!$I$9, 0)","v":{"v":0,"d":"$0.00"}},{"$f":"IFERROR('MMA Rev-Exp Region 5'!$J$26/'MMA Rev-Exp Region 5'!$J$9, 0)","v":{"v":0,"d":"$0.00"}},{"$f":"IFERROR('MMA Rev-Exp Region 5'!$K$26/'MMA Rev-Exp Region 5'!$K$9, 0)","v":{"v":0,"d":"$0.00"}},{"$f":"IFERROR('MMA Rev-Exp Region 5'!$L$26/'MMA Rev-Exp Region 5'!$L$9, 0)","v":{"v":0,"d":"$0.00"}},{"$f":"IFERROR('MMA Rev-Exp Region 5'!$M$26/'MMA Rev-Exp Region 5'!$M$9, 0)","v":{"v":0,"d":"$0.00"}},{"$f":"IFERROR('MMA Rev-Exp Region 5'!$N$26/'MMA Rev-Exp Region 5'!$N$9, 0)","v":{"v":0,"d":"$0.00"}}]
["MMA",null,null,2016,"2016-12-31","Q1","2017-03-31","Region 5","Operating Expense","Medical Benefits Expense","Hospital Services","2.7.1","Transplant Services",{"$f":"IFERROR('MMA Rev-Exp Region 5'!$D$27/'MMA Rev-Exp Region 5'!$D$9, 0)","v":{"v":0,"d":"$0.00"}},{"$f":"IFERROR('MMA Rev-Exp Region 5'!$E$27/'MMA Rev-Exp Region 5'!$E$9, 0)","v":{"v":0,"d":"$0.00"}},{"$f":"IFERROR('MMA Rev-Exp Region 5'!$F$27/'MMA Rev-Exp Region 5'!$F$9, 0)","v":{"v":0,"d":"$0.00"}},{"$f":"IFERROR('MMA Rev-Exp Region 5'!$G$27/'MMA Rev-Exp Region 5'!$G$9, 0)","v":{"v":0,"d":"$0.00"}},{"$f":"IFERROR('MMA Rev-Exp Region 5'!$H$27/'MMA Rev-Exp Region 5'!$H$9, 0)","v":{"v":0,"d":"$0.00"}},{"$f":"IFERROR('MMA Rev-Exp Region 5'!$I$27/'MMA Rev-Exp Region 5'!$I$9, 0)","v":{"v":0,"d":"$0.00"}},{"$f":"IFERROR('MMA Rev-Exp Region 5'!$J$27/'MMA Rev-Exp Region 5'!$J$9, 0)","v":{"v":0,"d":"$0.00"}},{"$f":"IFERROR('MMA Rev-Exp Region 5'!$K$27/'MMA Rev-Exp Region 5'!$K$9, 0)","v":{"v":0,"d":"$0.00"}},{"$f":"IFERROR('MMA Rev-Exp Region 5'!$L$27/'MMA Rev-Exp Region 5'!$L$9, 0)","v":{"v":0,"d":"$0.00"}},{"$f":"IFERROR('MMA Rev-Exp Region 5'!$M$27/'MMA Rev-Exp Region 5'!$M$9, 0)","v":{"v":0,"d":"$0.00"}},{"$f":"IFERROR('MMA Rev-Exp Region 5'!$N$27/'MMA Rev-Exp Region 5'!$N$9, 0)","v":{"v":0,"d":"$0.00"}}]
["MMA",null,null,2016,"2016-12-31","Q1","2017-03-31","Region 5","Operating Expense","Medical Benefits Expense","Professional Services",3.1,"Primary Care FFS",{"$f":"IFERROR('MMA Rev-Exp Region 5'!$D$29/'MMA Rev-Exp Region 5'!$D$9, 0)","v":{"v":0,"d":"$0.00"}},{"$f":"IFERROR('MMA Rev-Exp Region 5'!$E$29/'MMA Rev-Exp Region 5'!$E$9, 0)","v":{"v":0,"d":"$0.00"}},{"$f":"IFERROR('MMA Rev-Exp Region 5'!$F$29/'MMA Rev-Exp Region 5'!$F$9, 0)","v":{"v":0,"d":"$0.00"}},{"$f":"IFERROR('MMA Rev-Exp Region 5'!$G$29/'MMA Rev-Exp Region 5'!$G$9, 0)","v":{"v":0,"d":"$0.00"}},{"$f":"IFERROR('MMA Rev-Exp Region 5'!$H$29/'MMA Rev-Exp Region 5'!$H$9, 0)","v":{"v":0,"d":"$0.00"}},{"$f":"IFERROR('MMA Rev-Exp Region 5'!$I$29/'MMA Rev-Exp Region 5'!$I$9, 0)","v":{"v":0,"d":"$0.00"}},{"$f":"IFERROR('MMA Rev-Exp Region 5'!$J$29/'MMA Rev-Exp Region 5'!$J$9, 0)","v":{"v":0,"d":"$0.00"}},{"$f":"IFERROR('MMA Rev-Exp Region 5'!$K$29/'MMA Rev-Exp Region 5'!$K$9, 0)","v":{"v":0,"d":"$0.00"}},{"$f":"IFERROR('MMA Rev-Exp Region 5'!$L$29/'MMA Rev-Exp Region 5'!$L$9, 0)","v":{"v":0,"d":"$0.00"}},{"$f":"IFERROR('MMA Rev-Exp Region 5'!$M$29/'MMA Rev-Exp Region 5'!$M$9, 0)","v":{"v":0,"d":"$0.00"}},{"$f":"IFERROR('MMA Rev-Exp Region 5'!$N$29/'MMA Rev-Exp Region 5'!$N$9, 0)","v":{"v":0,"d":"$0.00"}}]
["MMA",null,null,2016,"2016-12-31","Q1","2017-03-31","Region 5","Operating Expense","Medical Benefits Expense","Professional Services",3.2,"Specialty Care FFS",{"$f":"IFERROR('MMA Rev-Exp Region 5'!$D$30/'MMA Rev-Exp Region 5'!$D$9, 0)","v":{"v":0,"d":"$0.00"}},{"$f":"IFERROR('MMA Rev-Exp Region 5'!$E$30/'MMA Rev-Exp Region 5'!$E$9, 0)","v":{"v":0,"d":"$0.00"}},{"$f":"IFERROR('MMA Rev-Exp Region 5'!$F$30/'MMA Rev-Exp Region 5'!$F$9, 0)","v":{"v":0,"d":"$0.00"}},{"$f":"IFERROR('MMA Rev-Exp Region 5'!$G$30/'MMA Rev-Exp Region 5'!$G$9, 0)","v":{"v":0,"d":"$0.00"}},{"$f":"IFERROR('MMA Rev-Exp Region 5'!$H$30/'MMA Rev-Exp Region 5'!$H$9, 0)","v":{"v":0,"d":"$0.00"}},{"$f":"IFERROR('MMA Rev-Exp Region 5'!$I$30/'MMA Rev-Exp Region 5'!$I$9, 0)","v":{"v":0,"d":"$0.00"}},{"$f":"IFERROR('MMA Rev-Exp Region 5'!$J$30/'MMA Rev-Exp Region 5'!$J$9, 0)","v":{"v":0,"d":"$0.00"}},{"$f":"IFERROR('MMA Rev-Exp Region 5'!$K$30/'MMA Rev-Exp Region 5'!$K$9, 0)","v":{"v":0,"d":"$0.00"}},{"$f":"IFERROR('MMA Rev-Exp Region 5'!$L$30/'MMA Rev-Exp Region 5'!$L$9, 0)","v":{"v":0,"d":"$0.00"}},{"$f":"IFERROR('MMA Rev-Exp Region 5'!$M$30/'MMA Rev-Exp Region 5'!$M$9, 0)","v":{"v":0,"d":"$0.00"}},{"$f":"IFERROR('MMA Rev-Exp Region 5'!$N$30/'MMA Rev-Exp Region 5'!$N$9, 0)","v":{"v":0,"d":"$0.00"}}]
["MMA",null,null,2016,"2016-12-31","Q1","2017-03-31","Region 5","Operating Expense","Medical Benefits Expense","Professional Services",3.3,"Other Professional FFS",{"$f":"IFERROR('MMA Rev-Exp Region 5'!$D$31/'MMA Rev-Exp Region 5'!$D$9, 0)","v":{"v":0,"d":"$0.00"}},{"$f":"IFERROR('MMA Rev-Exp Region 5'!$E$31/'MMA Rev-Exp Region 5'!$E$9, 0)","v":{"v":0,"d":"$0.00"}},{"$f":"IFERROR('MMA Rev-Exp Region 5'!$F$31/'MMA Rev-Exp Region 5'!$F$9, 0)","v":{"v":0,"d":"$0.00"}},{"$f":"IFERROR('MMA Rev-Exp Region 5'!$G$31/'MMA Rev-Exp Region 5'!$G$9, 0)","v":{"v":0,"d":"$0.00"}},{"$f":"IFERROR('MMA Rev-Exp Region 5'!$H$31/'MMA Rev-Exp Region 5'!$H$9, 0)","v":{"v":0,"d":"$0.00"}},{"$f":"IFERROR('MMA Rev-Exp Region 5'!$I$31/'MMA Rev-Exp Region 5'!$I$9, 0)","v":{"v":0,"d":"$0.00"}},{"$f":"IFERROR('MMA Rev-Exp Region 5'!$J$31/'MMA Rev-Exp Region 5'!$J$9, 0)","v":{"v":0,"d":"$0.00"}},{"$f":"IFERROR('MMA Rev-Exp Region 5'!$K$31/'MMA Rev-Exp Region 5'!$K$9, 0)","v":{"v":0,"d":"$0.00"}},{"$f":"IFERROR('MMA Rev-Exp Region 5'!$L$31/'MMA Rev-Exp Region 5'!$L$9, 0)","v":{"v":0,"d":"$0.00"}},{"$f":"IFERROR('MMA Rev-Exp Region 5'!$M$31/'MMA Rev-Exp Region 5'!$M$9, 0)","v":{"v":0,"d":"$0.00"}},{"$f":"IFERROR('MMA Rev-Exp Region 5'!$N$31/'MMA Rev-Exp Region 5'!$N$9, 0)","v":{"v":0,"d":"$0.00"}}]
["MMA",null,null,2016,"2016-12-31","Q1","2017-03-31","Region 5","Operating Expense","Medical Benefits Expense","Professional Services","3.4","§ 1202 PCP Payments to providers",{"$f":"IFERROR('MMA Rev-Exp Region 5'!$D$32/'MMA Rev-Exp Region 5'!$D$9, 0)","v":{"v":0,"d":"$0.00"}},{"$f":"IFERROR('MMA Rev-Exp Region 5'!$E$32/'MMA Rev-Exp Region 5'!$E$9, 0)","v":{"v":0,"d":"$0.00"}},{"$f":"IFERROR('MMA Rev-Exp Region 5'!$F$32/'MMA Rev-Exp Region 5'!$F$9, 0)","v":{"v":0,"d":"$0.00"}},{"$f":"IFERROR('MMA Rev-Exp Region 5'!$G$32/'MMA Rev-Exp Region 5'!$G$9, 0)","v":{"v":0,"d":"$0.00"}},{"$f":"IFERROR('MMA Rev-Exp Region 5'!$H$32/'MMA Rev-Exp Region 5'!$H$9, 0)","v":{"v":0,"d":"$0.00"}},{"$f":"IFERROR('MMA Rev-Exp Region 5'!$I$32/'MMA Rev-Exp Region 5'!$I$9, 0)","v":{"v":0,"d":"$0.00"}},{"$f":"IFERROR('MMA Rev-Exp Region 5'!$J$32/'MMA Rev-Exp Region 5'!$J$9, 0)","v":{"v":0,"d":"$0.00"}},{"$f":"IFERROR('MMA Rev-Exp Region 5'!$K$32/'MMA Rev-Exp Region 5'!$K$9, 0)","v":{"v":0,"d":"$0.00"}},{"$f":"IFERROR('MMA Rev-Exp Region 5'!$L$32/'MMA Rev-Exp Region 5'!$L$9, 0)","v":{"v":0,"d":"$0.00"}},{"$f":"IFERROR('MMA Rev-Exp Region 5'!$M$32/'MMA Rev-Exp Region 5'!$M$9, 0)","v":{"v":0,"d":"$0.00"}},{"$f":"IFERROR('MMA Rev-Exp Region 5'!$N$32/'MMA Rev-Exp Region 5'!$N$9, 0)","v":{"v":0,"d":"$0.00"}}]
["MMA",null,null,2016,"2016-12-31","Q1","2017-03-31","Region 5","Operating Expense","Medical Benefits Expense","Professional Services","3.5","Subcapitated Professional Services",{"$f":"IFERROR('MMA Rev-Exp Region 5'!$D$33/'MMA Rev-Exp Region 5'!$D$9, 0)","v":{"v":0,"d":"$0.00"}},{"$f":"IFERROR('MMA Rev-Exp Region 5'!$E$33/'MMA Rev-Exp Region 5'!$E$9, 0)","v":{"v":0,"d":"$0.00"}},{"$f":"IFERROR('MMA Rev-Exp Region 5'!$F$33/'MMA Rev-Exp Region 5'!$F$9, 0)","v":{"v":0,"d":"$0.00"}},{"$f":"IFERROR('MMA Rev-Exp Region 5'!$G$33/'MMA Rev-Exp Region 5'!$G$9, 0)","v":{"v":0,"d":"$0.00"}},{"$f":"IFERROR('MMA Rev-Exp Region 5'!$H$33/'MMA Rev-Exp Region 5'!$H$9, 0)","v":{"v":0,"d":"$0.00"}},{"$f":"IFERROR('MMA Rev-Exp Region 5'!$I$33/'MMA Rev-Exp Region 5'!$I$9, 0)","v":{"v":0,"d":"$0.00"}},{"$f":"IFERROR('MMA Rev-Exp Region 5'!$J$33/'MMA Rev-Exp Region 5'!$J$9, 0)","v":{"v":0,"d":"$0.00"}},{"$f":"IFERROR('MMA Rev-Exp Region 5'!$K$33/'MMA Rev-Exp Region 5'!$K$9, 0)","v":{"v":0,"d":"$0.00"}},{"$f":"IFERROR('MMA Rev-Exp Region 5'!$L$33/'MMA Rev-Exp Region 5'!$L$9, 0)","v":{"v":0,"d":"$0.00"}},{"$f":"IFERROR('MMA Rev-Exp Region 5'!$M$33/'MMA Rev-Exp Region 5'!$M$9, 0)","v":{"v":0,"d":"$0.00"}},{"$f":"IFERROR('MMA Rev-Exp Region 5'!$N$33/'MMA Rev-Exp Region 5'!$N$9, 0)","v":{"v":0,"d":"$0.00"}}]
["MMA",null,null,2016,"2016-12-31","Q1","2017-03-31","Region 5","Operating Expense","Medical Benefits Expense","Professional Services","3.6","Ending IBNP for Professional Services",{"$f":"IFERROR('MMA Rev-Exp Region 5'!$D$34/'MMA Rev-Exp Region 5'!$D$9, 0)","v":{"v":0,"d":"$0.00"}},{"$f":"IFERROR('MMA Rev-Exp Region 5'!$E$34/'MMA Rev-Exp Region 5'!$E$9, 0)","v":{"v":0,"d":"$0.00"}},{"$f":"IFERROR('MMA Rev-Exp Region 5'!$F$34/'MMA Rev-Exp Region 5'!$F$9, 0)","v":{"v":0,"d":"$0.00"}},{"$f":"IFERROR('MMA Rev-Exp Region 5'!$G$34/'MMA Rev-Exp Region 5'!$G$9, 0)","v":{"v":0,"d":"$0.00"}},{"$f":"IFERROR('MMA Rev-Exp Region 5'!$H$34/'MMA Rev-Exp Region 5'!$H$9, 0)","v":{"v":0,"d":"$0.00"}},{"$f":"IFERROR('MMA Rev-Exp Region 5'!$I$34/'MMA Rev-Exp Region 5'!$I$9, 0)","v":{"v":0,"d":"$0.00"}},{"$f":"IFERROR('MMA Rev-Exp Region 5'!$J$34/'MMA Rev-Exp Region 5'!$J$9, 0)","v":{"v":0,"d":"$0.00"}},{"$f":"IFERROR('MMA Rev-Exp Region 5'!$K$34/'MMA Rev-Exp Region 5'!$K$9, 0)","v":{"v":0,"d":"$0.00"}},{"$f":"IFERROR('MMA Rev-Exp Region 5'!$L$34/'MMA Rev-Exp Region 5'!$L$9, 0)","v":{"v":0,"d":"$0.00"}},{"$f":"IFERROR('MMA Rev-Exp Region 5'!$M$34/'MMA Rev-Exp Region 5'!$M$9, 0)","v":{"v":0,"d":"$0.00"}},{"$f":"IFERROR('MMA Rev-Exp Region 5'!$N$34/'MMA Rev-Exp Region 5'!$N$9, 0)","v":{"v":0,"d":"$0.00"}}]
["MMA",null,null,2016,"2016-12-31","Q1","2017-03-31","Region 5","Operating Expense","Medical Benefits Expense","Professional Services","3.7","Professional Services Settlements",{"$f":"IFERROR('MMA Rev-Exp Region 5'!$D$35/'MMA Rev-Exp Region 5'!$D$9, 0)","v":{"v":0,"d":"$0.00"}},{"$f":"IFERROR('MMA Rev-Exp Region 5'!$E$35/'MMA Rev-Exp Region 5'!$E$9, 0)","v":{"v":0,"d":"$0.00"}},{"$f":"IFERROR('MMA Rev-Exp Region 5'!$F$35/'MMA Rev-Exp Region 5'!$F$9, 0)","v":{"v":0,"d":"$0.00"}},{"$f":"IFERROR('MMA Rev-Exp Region 5'!$G$35/'MMA Rev-Exp Region 5'!$G$9, 0)","v":{"v":0,"d":"$0.00"}},{"$f":"IFERROR('MMA Rev-Exp Region 5'!$H$35/'MMA Rev-Exp Region 5'!$H$9, 0)","v":{"v":0,"d":"$0.00"}},{"$f":"IFERROR('MMA Rev-Exp Region 5'!$I$35/'MMA Rev-Exp Region 5'!$I$9, 0)","v":{"v":0,"d":"$0.00"}},{"$f":"IFERROR('MMA Rev-Exp Region 5'!$J$35/'MMA Rev-Exp Region 5'!$J$9, 0)","v":{"v":0,"d":"$0.00"}},{"$f":"IFERROR('MMA Rev-Exp Region 5'!$K$35/'MMA Rev-Exp Region 5'!$K$9, 0)","v":{"v":0,"d":"$0.00"}},{"$f":"IFERROR('MMA Rev-Exp Region 5'!$L$35/'MMA Rev-Exp Region 5'!$L$9, 0)","v":{"v":0,"d":"$0.00"}},{"$f":"IFERROR('MMA Rev-Exp Region 5'!$M$35/'MMA Rev-Exp Region 5'!$M$9, 0)","v":{"v":0,"d":"$0.00"}},{"$f":"IFERROR('MMA Rev-Exp Region 5'!$N$35/'MMA Rev-Exp Region 5'!$N$9, 0)","v":{"v":0,"d":"$0.00"}}]
["MMA",null,null,2016,"2016-12-31","Q1","2017-03-31","Region 5","Operating Expense","Medical Benefits Expense","Maternity Services","4.1.1","Maternity Services",{"$f":"IFERROR('MMA Rev-Exp Region 5'!$D$37/'MMA Rev-Exp Region 5'!$D$9, 0)","v":{"v":0,"d":"$0.00"}},{"$f":"IFERROR('MMA Rev-Exp Region 5'!$E$37/'MMA Rev-Exp Region 5'!$E$9, 0)","v":{"v":0,"d":"$0.00"}},{"$f":"IFERROR('MMA Rev-Exp Region 5'!$F$37/'MMA Rev-Exp Region 5'!$F$9, 0)","v":{"v":0,"d":"$0.00"}},{"$f":"IFERROR('MMA Rev-Exp Region 5'!$G$37/'MMA Rev-Exp Region 5'!$G$9, 0)","v":{"v":0,"d":"$0.00"}},{"$f":"IFERROR('MMA Rev-Exp Region 5'!$H$37/'MMA Rev-Exp Region 5'!$H$9, 0)","v":{"v":0,"d":"$0.00"}},{"$f":"IFERROR('MMA Rev-Exp Region 5'!$I$37/'MMA Rev-Exp Region 5'!$I$9, 0)","v":{"v":0,"d":"$0.00"}},{"$f":"IFERROR('MMA Rev-Exp Region 5'!$J$37/'MMA Rev-Exp Region 5'!$J$9, 0)","v":{"v":0,"d":"$0.00"}},{"$f":"IFERROR('MMA Rev-Exp Region 5'!$K$37/'MMA Rev-Exp Region 5'!$K$9, 0)","v":{"v":0,"d":"$0.00"}},{"$f":"IFERROR('MMA Rev-Exp Region 5'!$L$37/'MMA Rev-Exp Region 5'!$L$9, 0)","v":{"v":0,"d":"$0.00"}},{"$f":"IFERROR('MMA Rev-Exp Region 5'!$M$37/'MMA Rev-Exp Region 5'!$M$9, 0)","v":{"v":0,"d":"$0.00"}},{"$f":"IFERROR('MMA Rev-Exp Region 5'!$N$37/'MMA Rev-Exp Region 5'!$N$9, 0)","v":{"v":0,"d":"$0.00"}}]
["MMA",null,null,2016,"2016-12-31","Q1","2017-03-31","Region 5","Operating Expense","Medical Benefits Expense","Maternity Services","4.2.1","Ending IBNP for Maternity Services",{"$f":"IFERROR('MMA Rev-Exp Region 5'!$D$38/'MMA Rev-Exp Region 5'!$D$9, 0)","v":{"v":0,"d":"$0.00"}},{"$f":"IFERROR('MMA Rev-Exp Region 5'!$E$38/'MMA Rev-Exp Region 5'!$E$9, 0)","v":{"v":0,"d":"$0.00"}},{"$f":"IFERROR('MMA Rev-Exp Region 5'!$F$38/'MMA Rev-Exp Region 5'!$F$9, 0)","v":{"v":0,"d":"$0.00"}},{"$f":"IFERROR('MMA Rev-Exp Region 5'!$G$38/'MMA Rev-Exp Region 5'!$G$9, 0)","v":{"v":0,"d":"$0.00"}},{"$f":"IFERROR('MMA Rev-Exp Region 5'!$H$38/'MMA Rev-Exp Region 5'!$H$9, 0)","v":{"v":0,"d":"$0.00"}},{"$f":"IFERROR('MMA Rev-Exp Region 5'!$I$38/'MMA Rev-Exp Region 5'!$I$9, 0)","v":{"v":0,"d":"$0.00"}},{"$f":"IFERROR('MMA Rev-Exp Region 5'!$J$38/'MMA Rev-Exp Region 5'!$J$9, 0)","v":{"v":0,"d":"$0.00"}},{"$f":"IFERROR('MMA Rev-Exp Region 5'!$K$38/'MMA Rev-Exp Region 5'!$K$9, 0)","v":{"v":0,"d":"$0.00"}},{"$f":"IFERROR('MMA Rev-Exp Region 5'!$L$38/'MMA Rev-Exp Region 5'!$L$9, 0)","v":{"v":0,"d":"$0.00"}},{"$f":"IFERROR('MMA Rev-Exp Region 5'!$M$38/'MMA Rev-Exp Region 5'!$M$9, 0)","v":{"v":0,"d":"$0.00"}},{"$f":"IFERROR('MMA Rev-Exp Region 5'!$N$38/'MMA Rev-Exp Region 5'!$N$9, 0)","v":{"v":0,"d":"$0.00"}}]
["MMA",null,null,2016,"2016-12-31","Q1","2017-03-31","Region 5","Operating Expense","Medical Benefits Expense","Maternity Services","4.3.1","Maternity Settlements",{"$f":"IFERROR('MMA Rev-Exp Region 5'!$D$39/'MMA Rev-Exp Region 5'!$D$9, 0)","v":{"v":0,"d":"$0.00"}},{"$f":"IFERROR('MMA Rev-Exp Region 5'!$E$39/'MMA Rev-Exp Region 5'!$E$9, 0)","v":{"v":0,"d":"$0.00"}},{"$f":"IFERROR('MMA Rev-Exp Region 5'!$F$39/'MMA Rev-Exp Region 5'!$F$9, 0)","v":{"v":0,"d":"$0.00"}},{"$f":"IFERROR('MMA Rev-Exp Region 5'!$G$39/'MMA Rev-Exp Region 5'!$G$9, 0)","v":{"v":0,"d":"$0.00"}},{"$f":"IFERROR('MMA Rev-Exp Region 5'!$H$39/'MMA Rev-Exp Region 5'!$H$9, 0)","v":{"v":0,"d":"$0.00"}},{"$f":"IFERROR('MMA Rev-Exp Region 5'!$I$39/'MMA Rev-Exp Region 5'!$I$9, 0)","v":{"v":0,"d":"$0.00"}},{"$f":"IFERROR('MMA Rev-Exp Region 5'!$J$39/'MMA Rev-Exp Region 5'!$J$9, 0)","v":{"v":0,"d":"$0.00"}},{"$f":"IFERROR('MMA Rev-Exp Region 5'!$K$39/'MMA Rev-Exp Region 5'!$K$9, 0)","v":{"v":0,"d":"$0.00"}},{"$f":"IFERROR('MMA Rev-Exp Region 5'!$L$39/'MMA Rev-Exp Region 5'!$L$9, 0)","v":{"v":0,"d":"$0.00"}},{"$f":"IFERROR('MMA Rev-Exp Region 5'!$M$39/'MMA Rev-Exp Region 5'!$M$9, 0)","v":{"v":0,"d":"$0.00"}},{"$f":"IFERROR('MMA Rev-Exp Region 5'!$N$39/'MMA Rev-Exp Region 5'!$N$9, 0)","v":{"v":0,"d":"$0.00"}}]
["MMA",null,null,2016,"2016-12-31","Q1","2017-03-31","Region 5","Operating Expense","Medical Benefits Expense","Mental Health Services",5.1,"Mental Health & Substance Abuse FFS",{"$f":"IFERROR('MMA Rev-Exp Region 5'!$D$41/'MMA Rev-Exp Region 5'!$D$9, 0)","v":{"v":0,"d":"$0.00"}},{"$f":"IFERROR('MMA Rev-Exp Region 5'!$E$41/'MMA Rev-Exp Region 5'!$E$9, 0)","v":{"v":0,"d":"$0.00"}},{"$f":"IFERROR('MMA Rev-Exp Region 5'!$F$41/'MMA Rev-Exp Region 5'!$F$9, 0)","v":{"v":0,"d":"$0.00"}},{"$f":"IFERROR('MMA Rev-Exp Region 5'!$G$41/'MMA Rev-Exp Region 5'!$G$9, 0)","v":{"v":0,"d":"$0.00"}},{"$f":"IFERROR('MMA Rev-Exp Region 5'!$H$41/'MMA Rev-Exp Region 5'!$H$9, 0)","v":{"v":0,"d":"$0.00"}},{"$f":"IFERROR('MMA Rev-Exp Region 5'!$I$41/'MMA Rev-Exp Region 5'!$I$9, 0)","v":{"v":0,"d":"$0.00"}},{"$f":"IFERROR('MMA Rev-Exp Region 5'!$J$41/'MMA Rev-Exp Region 5'!$J$9, 0)","v":{"v":0,"d":"$0.00"}},{"$f":"IFERROR('MMA Rev-Exp Region 5'!$K$41/'MMA Rev-Exp Region 5'!$K$9, 0)","v":{"v":0,"d":"$0.00"}},{"$f":"IFERROR('MMA Rev-Exp Region 5'!$L$41/'MMA Rev-Exp Region 5'!$L$9, 0)","v":{"v":0,"d":"$0.00"}},{"$f":"IFERROR('MMA Rev-Exp Region 5'!$M$41/'MMA Rev-Exp Region 5'!$M$9, 0)","v":{"v":0,"d":"$0.00"}},{"$f":"IFERROR('MMA Rev-Exp Region 5'!$N$41/'MMA Rev-Exp Region 5'!$N$9, 0)","v":{"v":0,"d":"$0.00"}}]
["MMA",null,null,2016,"2016-12-31","Q1","2017-03-31","Region 5","Operating Expense","Medical Benefits Expense","Mental Health Services",5.2,"Mental Health & Substance Abuse Subcapitation",{"$f":"IFERROR('MMA Rev-Exp Region 5'!$D$42/'MMA Rev-Exp Region 5'!$D$9, 0)","v":{"v":0,"d":"$0.00"}},{"$f":"IFERROR('MMA Rev-Exp Region 5'!$E$42/'MMA Rev-Exp Region 5'!$E$9, 0)","v":{"v":0,"d":"$0.00"}},{"$f":"IFERROR('MMA Rev-Exp Region 5'!$F$42/'MMA Rev-Exp Region 5'!$F$9, 0)","v":{"v":0,"d":"$0.00"}},{"$f":"IFERROR('MMA Rev-Exp Region 5'!$G$42/'MMA Rev-Exp Region 5'!$G$9, 0)","v":{"v":0,"d":"$0.00"}},{"$f":"IFERROR('MMA Rev-Exp Region 5'!$H$42/'MMA Rev-Exp Region 5'!$H$9, 0)","v":{"v":0,"d":"$0.00"}},{"$f":"IFERROR('MMA Rev-Exp Region 5'!$I$42/'MMA Rev-Exp Region 5'!$I$9, 0)","v":{"v":0,"d":"$0.00"}},{"$f":"IFERROR('MMA Rev-Exp Region 5'!$J$42/'MMA Rev-Exp Region 5'!$J$9, 0)","v":{"v":0,"d":"$0.00"}},{"$f":"IFERROR('MMA Rev-Exp Region 5'!$K$42/'MMA Rev-Exp Region 5'!$K$9, 0)","v":{"v":0,"d":"$0.00"}},{"$f":"IFERROR('MMA Rev-Exp Region 5'!$L$42/'MMA Rev-Exp Region 5'!$L$9, 0)","v":{"v":0,"d":"$0.00"}},{"$f":"IFERROR('MMA Rev-Exp Region 5'!$M$42/'MMA Rev-Exp Region 5'!$M$9, 0)","v":{"v":0,"d":"$0.00"}},{"$f":"IFERROR('MMA Rev-Exp Region 5'!$N$42/'MMA Rev-Exp Region 5'!$N$9, 0)","v":{"v":0,"d":"$0.00"}}]
["MMA",null,null,2016,"2016-12-31","Q1","2017-03-31","Region 5","Operating Expense","Medical Benefits Expense","Mental Health Services",5.3,"Ending IBNP for Mental Health & Substance Abuse",{"$f":"IFERROR('MMA Rev-Exp Region 5'!$D$43/'MMA Rev-Exp Region 5'!$D$9, 0)","v":{"v":0,"d":"$0.00"}},{"$f":"IFERROR('MMA Rev-Exp Region 5'!$E$43/'MMA Rev-Exp Region 5'!$E$9, 0)","v":{"v":0,"d":"$0.00"}},{"$f":"IFERROR('MMA Rev-Exp Region 5'!$F$43/'MMA Rev-Exp Region 5'!$F$9, 0)","v":{"v":0,"d":"$0.00"}},{"$f":"IFERROR('MMA Rev-Exp Region 5'!$G$43/'MMA Rev-Exp Region 5'!$G$9, 0)","v":{"v":0,"d":"$0.00"}},{"$f":"IFERROR('MMA Rev-Exp Region 5'!$H$43/'MMA Rev-Exp Region 5'!$H$9, 0)","v":{"v":0,"d":"$0.00"}},{"$f":"IFERROR('MMA Rev-Exp Region 5'!$I$43/'MMA Rev-Exp Region 5'!$I$9, 0)","v":{"v":0,"d":"$0.00"}},{"$f":"IFERROR('MMA Rev-Exp Region 5'!$J$43/'MMA Rev-Exp Region 5'!$J$9, 0)","v":{"v":0,"d":"$0.00"}},{"$f":"IFERROR('MMA Rev-Exp Region 5'!$K$43/'MMA Rev-Exp Region 5'!$K$9, 0)","v":{"v":0,"d":"$0.00"}},{"$f":"IFERROR('MMA Rev-Exp Region 5'!$L$43/'MMA Rev-Exp Region 5'!$L$9, 0)","v":{"v":0,"d":"$0.00"}},{"$f":"IFERROR('MMA Rev-Exp Region 5'!$M$43/'MMA Rev-Exp Region 5'!$M$9, 0)","v":{"v":0,"d":"$0.00"}},{"$f":"IFERROR('MMA Rev-Exp Region 5'!$N$43/'MMA Rev-Exp Region 5'!$N$9, 0)","v":{"v":0,"d":"$0.00"}}]
["MMA",null,null,2016,"2016-12-31","Q1","2017-03-31","Region 5","Operating Expense","Medical Benefits Expense","Mental Health Services","5.4","Mental Health Settlements",{"$f":"IFERROR('MMA Rev-Exp Region 5'!$D$44/'MMA Rev-Exp Region 5'!$D$9, 0)","v":{"v":0,"d":"$0.00"}},{"$f":"IFERROR('MMA Rev-Exp Region 5'!$E$44/'MMA Rev-Exp Region 5'!$E$9, 0)","v":{"v":0,"d":"$0.00"}},{"$f":"IFERROR('MMA Rev-Exp Region 5'!$F$44/'MMA Rev-Exp Region 5'!$F$9, 0)","v":{"v":0,"d":"$0.00"}},{"$f":"IFERROR('MMA Rev-Exp Region 5'!$G$44/'MMA Rev-Exp Region 5'!$G$9, 0)","v":{"v":0,"d":"$0.00"}},{"$f":"IFERROR('MMA Rev-Exp Region 5'!$H$44/'MMA Rev-Exp Region 5'!$H$9, 0)","v":{"v":0,"d":"$0.00"}},{"$f":"IFERROR('MMA Rev-Exp Region 5'!$I$44/'MMA Rev-Exp Region 5'!$I$9, 0)","v":{"v":0,"d":"$0.00"}},{"$f":"IFERROR('MMA Rev-Exp Region 5'!$J$44/'MMA Rev-Exp Region 5'!$J$9, 0)","v":{"v":0,"d":"$0.00"}},{"$f":"IFERROR('MMA Rev-Exp Region 5'!$K$44/'MMA Rev-Exp Region 5'!$K$9, 0)","v":{"v":0,"d":"$0.00"}},{"$f":"IFERROR('MMA Rev-Exp Region 5'!$L$44/'MMA Rev-Exp Region 5'!$L$9, 0)","v":{"v":0,"d":"$0.00"}},{"$f":"IFERROR('MMA Rev-Exp Region 5'!$M$44/'MMA Rev-Exp Region 5'!$M$9, 0)","v":{"v":0,"d":"$0.00"}},{"$f":"IFERROR('MMA Rev-Exp Region 5'!$N$44/'MMA Rev-Exp Region 5'!$N$9, 0)","v":{"v":0,"d":"$0.00"}}]
["MMA",null,null,2016,"2016-12-31","Q1","2017-03-31","Region 5","Operating Expense","Medical Benefits Expense","Dental Services",6.1,"Dental FFS",{"$f":"IFERROR('MMA Rev-Exp Region 5'!$D$46/'MMA Rev-Exp Region 5'!$D$9, 0)","v":{"v":0,"d":"$0.00"}},{"$f":"IFERROR('MMA Rev-Exp Region 5'!$E$46/'MMA Rev-Exp Region 5'!$E$9, 0)","v":{"v":0,"d":"$0.00"}},{"$f":"IFERROR('MMA Rev-Exp Region 5'!$F$46/'MMA Rev-Exp Region 5'!$F$9, 0)","v":{"v":0,"d":"$0.00"}},{"$f":"IFERROR('MMA Rev-Exp Region 5'!$G$46/'MMA Rev-Exp Region 5'!$G$9, 0)","v":{"v":0,"d":"$0.00"}},{"$f":"IFERROR('MMA Rev-Exp Region 5'!$H$46/'MMA Rev-Exp Region 5'!$H$9, 0)","v":{"v":0,"d":"$0.00"}},{"$f":"IFERROR('MMA Rev-Exp Region 5'!$I$46/'MMA Rev-Exp Region 5'!$I$9, 0)","v":{"v":0,"d":"$0.00"}},{"$f":"IFERROR('MMA Rev-Exp Region 5'!$J$46/'MMA Rev-Exp Region 5'!$J$9, 0)","v":{"v":0,"d":"$0.00"}},{"$f":"IFERROR('MMA Rev-Exp Region 5'!$K$46/'MMA Rev-Exp Region 5'!$K$9, 0)","v":{"v":0,"d":"$0.00"}},{"$f":"IFERROR('MMA Rev-Exp Region 5'!$L$46/'MMA Rev-Exp Region 5'!$L$9, 0)","v":{"v":0,"d":"$0.00"}},{"$f":"IFERROR('MMA Rev-Exp Region 5'!$M$46/'MMA Rev-Exp Region 5'!$M$9, 0)","v":{"v":0,"d":"$0.00"}},{"$f":"IFERROR('MMA Rev-Exp Region 5'!$N$46/'MMA Rev-Exp Region 5'!$N$9, 0)","v":{"v":0,"d":"$0.00"}}]
["MMA",null,null,2016,"2016-12-31","Q1","2017-03-31","Region 5","Operating Expense","Medical Benefits Expense","Dental Services",6.2,"Dental Subcapitation",{"$f":"IFERROR('MMA Rev-Exp Region 5'!$D$47/'MMA Rev-Exp Region 5'!$D$9, 0)","v":{"v":0,"d":"$0.00"}},{"$f":"IFERROR('MMA Rev-Exp Region 5'!$E$47/'MMA Rev-Exp Region 5'!$E$9, 0)","v":{"v":0,"d":"$0.00"}},{"$f":"IFERROR('MMA Rev-Exp Region 5'!$F$47/'MMA Rev-Exp Region 5'!$F$9, 0)","v":{"v":0,"d":"$0.00"}},{"$f":"IFERROR('MMA Rev-Exp Region 5'!$G$47/'MMA Rev-Exp Region 5'!$G$9, 0)","v":{"v":0,"d":"$0.00"}},{"$f":"IFERROR('MMA Rev-Exp Region 5'!$H$47/'MMA Rev-Exp Region 5'!$H$9, 0)","v":{"v":0,"d":"$0.00"}},{"$f":"IFERROR('MMA Rev-Exp Region 5'!$I$47/'MMA Rev-Exp Region 5'!$I$9, 0)","v":{"v":0,"d":"$0.00"}},{"$f":"IFERROR('MMA Rev-Exp Region 5'!$J$47/'MMA Rev-Exp Region 5'!$J$9, 0)","v":{"v":0,"d":"$0.00"}},{"$f":"IFERROR('MMA Rev-Exp Region 5'!$K$47/'MMA Rev-Exp Region 5'!$K$9, 0)","v":{"v":0,"d":"$0.00"}},{"$f":"IFERROR('MMA Rev-Exp Region 5'!$L$47/'MMA Rev-Exp Region 5'!$L$9, 0)","v":{"v":0,"d":"$0.00"}},{"$f":"IFERROR('MMA Rev-Exp Region 5'!$M$47/'MMA Rev-Exp Region 5'!$M$9, 0)","v":{"v":0,"d":"$0.00"}},{"$f":"IFERROR('MMA Rev-Exp Region 5'!$N$47/'MMA Rev-Exp Region 5'!$N$9, 0)","v":{"v":0,"d":"$0.00"}}]
["MMA",null,null,2016,"2016-12-31","Q1","2017-03-31","Region 5","Operating Expense","Medical Benefits Expense","Dental Services",6.3,"Ending IBNP for Dental Services",{"$f":"IFERROR('MMA Rev-Exp Region 5'!$D$48/'MMA Rev-Exp Region 5'!$D$9, 0)","v":{"v":0,"d":"$0.00"}},{"$f":"IFERROR('MMA Rev-Exp Region 5'!$E$48/'MMA Rev-Exp Region 5'!$E$9, 0)","v":{"v":0,"d":"$0.00"}},{"$f":"IFERROR('MMA Rev-Exp Region 5'!$F$48/'MMA Rev-Exp Region 5'!$F$9, 0)","v":{"v":0,"d":"$0.00"}},{"$f":"IFERROR('MMA Rev-Exp Region 5'!$G$48/'MMA Rev-Exp Region 5'!$G$9, 0)","v":{"v":0,"d":"$0.00"}},{"$f":"IFERROR('MMA Rev-Exp Region 5'!$H$48/'MMA Rev-Exp Region 5'!$H$9, 0)","v":{"v":0,"d":"$0.00"}},{"$f":"IFERROR('MMA Rev-Exp Region 5'!$I$48/'MMA Rev-Exp Region 5'!$I$9, 0)","v":{"v":0,"d":"$0.00"}},{"$f":"IFERROR('MMA Rev-Exp Region 5'!$J$48/'MMA Rev-Exp Region 5'!$J$9, 0)","v":{"v":0,"d":"$0.00"}},{"$f":"IFERROR('MMA Rev-Exp Region 5'!$K$48/'MMA Rev-Exp Region 5'!$K$9, 0)","v":{"v":0,"d":"$0.00"}},{"$f":"IFERROR('MMA Rev-Exp Region 5'!$L$48/'MMA Rev-Exp Region 5'!$L$9, 0)","v":{"v":0,"d":"$0.00"}},{"$f":"IFERROR('MMA Rev-Exp Region 5'!$M$48/'MMA Rev-Exp Region 5'!$M$9, 0)","v":{"v":0,"d":"$0.00"}},{"$f":"IFERROR('MMA Rev-Exp Region 5'!$N$48/'MMA Rev-Exp Region 5'!$N$9, 0)","v":{"v":0,"d":"$0.00"}}]
["MMA",null,null,2016,"2016-12-31","Q1","2017-03-31","Region 5","Operating Expense","Medical Benefits Expense","Dental Services","6.4","Dental Settlements",{"$f":"IFERROR('MMA Rev-Exp Region 5'!$D$49/'MMA Rev-Exp Region 5'!$D$9, 0)","v":{"v":0,"d":"$0.00"}},{"$f":"IFERROR('MMA Rev-Exp Region 5'!$E$49/'MMA Rev-Exp Region 5'!$E$9, 0)","v":{"v":0,"d":"$0.00"}},{"$f":"IFERROR('MMA Rev-Exp Region 5'!$F$49/'MMA Rev-Exp Region 5'!$F$9, 0)","v":{"v":0,"d":"$0.00"}},{"$f":"IFERROR('MMA Rev-Exp Region 5'!$G$49/'MMA Rev-Exp Region 5'!$G$9, 0)","v":{"v":0,"d":"$0.00"}},{"$f":"IFERROR('MMA Rev-Exp Region 5'!$H$49/'MMA Rev-Exp Region 5'!$H$9, 0)","v":{"v":0,"d":"$0.00"}},{"$f":"IFERROR('MMA Rev-Exp Region 5'!$I$49/'MMA Rev-Exp Region 5'!$I$9, 0)","v":{"v":0,"d":"$0.00"}},{"$f":"IFERROR('MMA Rev-Exp Region 5'!$J$49/'MMA Rev-Exp Region 5'!$J$9, 0)","v":{"v":0,"d":"$0.00"}},{"$f":"IFERROR('MMA Rev-Exp Region 5'!$K$49/'MMA Rev-Exp Region 5'!$K$9, 0)","v":{"v":0,"d":"$0.00"}},{"$f":"IFERROR('MMA Rev-Exp Region 5'!$L$49/'MMA Rev-Exp Region 5'!$L$9, 0)","v":{"v":0,"d":"$0.00"}},{"$f":"IFERROR('MMA Rev-Exp Region 5'!$M$49/'MMA Rev-Exp Region 5'!$M$9, 0)","v":{"v":0,"d":"$0.00"}},{"$f":"IFERROR('MMA Rev-Exp Region 5'!$N$49/'MMA Rev-Exp Region 5'!$N$9, 0)","v":{"v":0,"d":"$0.00"}}]
["MMA",null,null,2016,"2016-12-31","Q1","2017-03-31","Region 5","Operating Expense","Medical Benefits Expense","Transportation Services",7.1,"Transportation FFS",{"$f":"IFERROR('MMA Rev-Exp Region 5'!$D$51/'MMA Rev-Exp Region 5'!$D$9, 0)","v":{"v":0,"d":"$0.00"}},{"$f":"IFERROR('MMA Rev-Exp Region 5'!$E$51/'MMA Rev-Exp Region 5'!$E$9, 0)","v":{"v":0,"d":"$0.00"}},{"$f":"IFERROR('MMA Rev-Exp Region 5'!$F$51/'MMA Rev-Exp Region 5'!$F$9, 0)","v":{"v":0,"d":"$0.00"}},{"$f":"IFERROR('MMA Rev-Exp Region 5'!$G$51/'MMA Rev-Exp Region 5'!$G$9, 0)","v":{"v":0,"d":"$0.00"}},{"$f":"IFERROR('MMA Rev-Exp Region 5'!$H$51/'MMA Rev-Exp Region 5'!$H$9, 0)","v":{"v":0,"d":"$0.00"}},{"$f":"IFERROR('MMA Rev-Exp Region 5'!$I$51/'MMA Rev-Exp Region 5'!$I$9, 0)","v":{"v":0,"d":"$0.00"}},{"$f":"IFERROR('MMA Rev-Exp Region 5'!$J$51/'MMA Rev-Exp Region 5'!$J$9, 0)","v":{"v":0,"d":"$0.00"}},{"$f":"IFERROR('MMA Rev-Exp Region 5'!$K$51/'MMA Rev-Exp Region 5'!$K$9, 0)","v":{"v":0,"d":"$0.00"}},{"$f":"IFERROR('MMA Rev-Exp Region 5'!$L$51/'MMA Rev-Exp Region 5'!$L$9, 0)","v":{"v":0,"d":"$0.00"}},{"$f":"IFERROR('MMA Rev-Exp Region 5'!$M$51/'MMA Rev-Exp Region 5'!$M$9, 0)","v":{"v":0,"d":"$0.00"}},{"$f":"IFERROR('MMA Rev-Exp Region 5'!$N$51/'MMA Rev-Exp Region 5'!$N$9, 0)","v":{"v":0,"d":"$0.00"}}]
["MMA",null,null,2016,"2016-12-31","Q1","2017-03-31","Region 5","Operating Expense","Medical Benefits Expense","Transportation Services",7.2,"Transportation Subcapitation",{"$f":"IFERROR('MMA Rev-Exp Region 5'!$D$52/'MMA Rev-Exp Region 5'!$D$9, 0)","v":{"v":0,"d":"$0.00"}},{"$f":"IFERROR('MMA Rev-Exp Region 5'!$E$52/'MMA Rev-Exp Region 5'!$E$9, 0)","v":{"v":0,"d":"$0.00"}},{"$f":"IFERROR('MMA Rev-Exp Region 5'!$F$52/'MMA Rev-Exp Region 5'!$F$9, 0)","v":{"v":0,"d":"$0.00"}},{"$f":"IFERROR('MMA Rev-Exp Region 5'!$G$52/'MMA Rev-Exp Region 5'!$G$9, 0)","v":{"v":0,"d":"$0.00"}},{"$f":"IFERROR('MMA Rev-Exp Region 5'!$H$52/'MMA Rev-Exp Region 5'!$H$9, 0)","v":{"v":0,"d":"$0.00"}},{"$f":"IFERROR('MMA Rev-Exp Region 5'!$I$52/'MMA Rev-Exp Region 5'!$I$9, 0)","v":{"v":0,"d":"$0.00"}},{"$f":"IFERROR('MMA Rev-Exp Region 5'!$J$52/'MMA Rev-Exp Region 5'!$J$9, 0)","v":{"v":0,"d":"$0.00"}},{"$f":"IFERROR('MMA Rev-Exp Region 5'!$K$52/'MMA Rev-Exp Region 5'!$K$9, 0)","v":{"v":0,"d":"$0.00"}},{"$f":"IFERROR('MMA Rev-Exp Region 5'!$L$52/'MMA Rev-Exp Region 5'!$L$9, 0)","v":{"v":0,"d":"$0.00"}},{"$f":"IFERROR('MMA Rev-Exp Region 5'!$M$52/'MMA Rev-Exp Region 5'!$M$9, 0)","v":{"v":0,"d":"$0.00"}},{"$f":"IFERROR('MMA Rev-Exp Region 5'!$N$52/'MMA Rev-Exp Region 5'!$N$9, 0)","v":{"v":0,"d":"$0.00"}}]
["MMA",null,null,2016,"2016-12-31","Q1","2017-03-31","Region 5","Operating Expense","Medical Benefits Expense","Transportation Services",7.3,"Ending IBNP for Transportation",{"$f":"IFERROR('MMA Rev-Exp Region 5'!$D$53/'MMA Rev-Exp Region 5'!$D$9, 0)","v":{"v":0,"d":"$0.00"}},{"$f":"IFERROR('MMA Rev-Exp Region 5'!$E$53/'MMA Rev-Exp Region 5'!$E$9, 0)","v":{"v":0,"d":"$0.00"}},{"$f":"IFERROR('MMA Rev-Exp Region 5'!$F$53/'MMA Rev-Exp Region 5'!$F$9, 0)","v":{"v":0,"d":"$0.00"}},{"$f":"IFERROR('MMA Rev-Exp Region 5'!$G$53/'MMA Rev-Exp Region 5'!$G$9, 0)","v":{"v":0,"d":"$0.00"}},{"$f":"IFERROR('MMA Rev-Exp Region 5'!$H$53/'MMA Rev-Exp Region 5'!$H$9, 0)","v":{"v":0,"d":"$0.00"}},{"$f":"IFERROR('MMA Rev-Exp Region 5'!$I$53/'MMA Rev-Exp Region 5'!$I$9, 0)","v":{"v":0,"d":"$0.00"}},{"$f":"IFERROR('MMA Rev-Exp Region 5'!$J$53/'MMA Rev-Exp Region 5'!$J$9, 0)","v":{"v":0,"d":"$0.00"}},{"$f":"IFERROR('MMA Rev-Exp Region 5'!$K$53/'MMA Rev-Exp Region 5'!$K$9, 0)","v":{"v":0,"d":"$0.00"}},{"$f":"IFERROR('MMA Rev-Exp Region 5'!$L$53/'MMA Rev-Exp Region 5'!$L$9, 0)","v":{"v":0,"d":"$0.00"}},{"$f":"IFERROR('MMA Rev-Exp Region 5'!$M$53/'MMA Rev-Exp Region 5'!$M$9, 0)","v":{"v":0,"d":"$0.00"}},{"$f":"IFERROR('MMA Rev-Exp Region 5'!$N$53/'MMA Rev-Exp Region 5'!$N$9, 0)","v":{"v":0,"d":"$0.00"}}]
["MMA",null,null,2016,"2016-12-31","Q1","2017-03-31","Region 5","Operating Expense","Medical Benefits Expense","Transportation Services","7.4","Transportation Settlements",{"$f":"IFERROR('MMA Rev-Exp Region 5'!$D$54/'MMA Rev-Exp Region 5'!$D$9, 0)","v":{"v":0,"d":"$0.00"}},{"$f":"IFERROR('MMA Rev-Exp Region 5'!$E$54/'MMA Rev-Exp Region 5'!$E$9, 0)","v":{"v":0,"d":"$0.00"}},{"$f":"IFERROR('MMA Rev-Exp Region 5'!$F$54/'MMA Rev-Exp Region 5'!$F$9, 0)","v":{"v":0,"d":"$0.00"}},{"$f":"IFERROR('MMA Rev-Exp Region 5'!$G$54/'MMA Rev-Exp Region 5'!$G$9, 0)","v":{"v":0,"d":"$0.00"}},{"$f":"IFERROR('MMA Rev-Exp Region 5'!$H$54/'MMA Rev-Exp Region 5'!$H$9, 0)","v":{"v":0,"d":"$0.00"}},{"$f":"IFERROR('MMA Rev-Exp Region 5'!$I$54/'MMA Rev-Exp Region 5'!$I$9, 0)","v":{"v":0,"d":"$0.00"}},{"$f":"IFERROR('MMA Rev-Exp Region 5'!$J$54/'MMA Rev-Exp Region 5'!$J$9, 0)","v":{"v":0,"d":"$0.00"}},{"$f":"IFERROR('MMA Rev-Exp Region 5'!$K$54/'MMA Rev-Exp Region 5'!$K$9, 0)","v":{"v":0,"d":"$0.00"}},{"$f":"IFERROR('MMA Rev-Exp Region 5'!$L$54/'MMA Rev-Exp Region 5'!$L$9, 0)","v":{"v":0,"d":"$0.00"}},{"$f":"IFERROR('MMA Rev-Exp Region 5'!$M$54/'MMA Rev-Exp Region 5'!$M$9, 0)","v":{"v":0,"d":"$0.00"}},{"$f":"IFERROR('MMA Rev-Exp Region 5'!$N$54/'MMA Rev-Exp Region 5'!$N$9, 0)","v":{"v":0,"d":"$0.00"}}]
["MMA",null,null,2016,"2016-12-31","Q1","2017-03-31","Region 5","Operating Expense","Medical Benefits Expense","Pharmacy Services",8.1,"Prescription Drugs FFS",{"$f":"IFERROR('MMA Rev-Exp Region 5'!$D$56/'MMA Rev-Exp Region 5'!$D$9, 0)","v":{"v":0,"d":"$0.00"}},{"$f":"IFERROR('MMA Rev-Exp Region 5'!$E$56/'MMA Rev-Exp Region 5'!$E$9, 0)","v":{"v":0,"d":"$0.00"}},{"$f":"IFERROR('MMA Rev-Exp Region 5'!$F$56/'MMA Rev-Exp Region 5'!$F$9, 0)","v":{"v":0,"d":"$0.00"}},{"$f":"IFERROR('MMA Rev-Exp Region 5'!$G$56/'MMA Rev-Exp Region 5'!$G$9, 0)","v":{"v":0,"d":"$0.00"}},{"$f":"IFERROR('MMA Rev-Exp Region 5'!$H$56/'MMA Rev-Exp Region 5'!$H$9, 0)","v":{"v":0,"d":"$0.00"}},{"$f":"IFERROR('MMA Rev-Exp Region 5'!$I$56/'MMA Rev-Exp Region 5'!$I$9, 0)","v":{"v":0,"d":"$0.00"}},{"$f":"IFERROR('MMA Rev-Exp Region 5'!$J$56/'MMA Rev-Exp Region 5'!$J$9, 0)","v":{"v":0,"d":"$0.00"}},{"$f":"IFERROR('MMA Rev-Exp Region 5'!$K$56/'MMA Rev-Exp Region 5'!$K$9, 0)","v":{"v":0,"d":"$0.00"}},{"$f":"IFERROR('MMA Rev-Exp Region 5'!$L$56/'MMA Rev-Exp Region 5'!$L$9, 0)","v":{"v":0,"d":"$0.00"}},{"$f":"IFERROR('MMA Rev-Exp Region 5'!$M$56/'MMA Rev-Exp Region 5'!$M$9, 0)","v":{"v":0,"d":"$0.00"}},{"$f":"IFERROR('MMA Rev-Exp Region 5'!$N$56/'MMA Rev-Exp Region 5'!$N$9, 0)","v":{"v":0,"d":"$0.00"}}]
["MMA",null,null,2016,"2016-12-31","Q1","2017-03-31","Region 5","Operating Expense","Medical Benefits Expense","Pharmacy Services","8.2","Hepatitis C Prescription Drug FFS",{"$f":"IFERROR('MMA Rev-Exp Region 5'!$D$57/'MMA Rev-Exp Region 5'!$D$9, 0)","v":{"v":0,"d":"$0.00"}},{"$f":"IFERROR('MMA Rev-Exp Region 5'!$E$57/'MMA Rev-Exp Region 5'!$E$9, 0)","v":{"v":0,"d":"$0.00"}},{"$f":"IFERROR('MMA Rev-Exp Region 5'!$F$57/'MMA Rev-Exp Region 5'!$F$9, 0)","v":{"v":0,"d":"$0.00"}},{"$f":"IFERROR('MMA Rev-Exp Region 5'!$G$57/'MMA Rev-Exp Region 5'!$G$9, 0)","v":{"v":0,"d":"$0.00"}},{"$f":"IFERROR('MMA Rev-Exp Region 5'!$H$57/'MMA Rev-Exp Region 5'!$H$9, 0)","v":{"v":0,"d":"$0.00"}},{"$f":"IFERROR('MMA Rev-Exp Region 5'!$I$57/'MMA Rev-Exp Region 5'!$I$9, 0)","v":{"v":0,"d":"$0.00"}},{"$f":"IFERROR('MMA Rev-Exp Region 5'!$J$57/'MMA Rev-Exp Region 5'!$J$9, 0)","v":{"v":0,"d":"$0.00"}},{"$f":"IFERROR('MMA Rev-Exp Region 5'!$K$57/'MMA Rev-Exp Region 5'!$K$9, 0)","v":{"v":0,"d":"$0.00"}},{"$f":"IFERROR('MMA Rev-Exp Region 5'!$L$57/'MMA Rev-Exp Region 5'!$L$9, 0)","v":{"v":0,"d":"$0.00"}},{"$f":"IFERROR('MMA Rev-Exp Region 5'!$M$57/'MMA Rev-Exp Region 5'!$M$9, 0)","v":{"v":0,"d":"$0.00"}},{"$f":"IFERROR('MMA Rev-Exp Region 5'!$N$57/'MMA Rev-Exp Region 5'!$N$9, 0)","v":{"v":0,"d":"$0.00"}}]
["MMA",null,null,2016,"2016-12-31","Q1","2017-03-31","Region 5","Operating Expense","Medical Benefits Expense","Pharmacy Services","8.3","Ending IBNP for Prescription Drugs",{"$f":"IFERROR('MMA Rev-Exp Region 5'!$D$58/'MMA Rev-Exp Region 5'!$D$9, 0)","v":{"v":0,"d":"$0.00"}},{"$f":"IFERROR('MMA Rev-Exp Region 5'!$E$58/'MMA Rev-Exp Region 5'!$E$9, 0)","v":{"v":0,"d":"$0.00"}},{"$f":"IFERROR('MMA Rev-Exp Region 5'!$F$58/'MMA Rev-Exp Region 5'!$F$9, 0)","v":{"v":0,"d":"$0.00"}},{"$f":"IFERROR('MMA Rev-Exp Region 5'!$G$58/'MMA Rev-Exp Region 5'!$G$9, 0)","v":{"v":0,"d":"$0.00"}},{"$f":"IFERROR('MMA Rev-Exp Region 5'!$H$58/'MMA Rev-Exp Region 5'!$H$9, 0)","v":{"v":0,"d":"$0.00"}},{"$f":"IFERROR('MMA Rev-Exp Region 5'!$I$58/'MMA Rev-Exp Region 5'!$I$9, 0)","v":{"v":0,"d":"$0.00"}},{"$f":"IFERROR('MMA Rev-Exp Region 5'!$J$58/'MMA Rev-Exp Region 5'!$J$9, 0)","v":{"v":0,"d":"$0.00"}},{"$f":"IFERROR('MMA Rev-Exp Region 5'!$K$58/'MMA Rev-Exp Region 5'!$K$9, 0)","v":{"v":0,"d":"$0.00"}},{"$f":"IFERROR('MMA Rev-Exp Region 5'!$L$58/'MMA Rev-Exp Region 5'!$L$9, 0)","v":{"v":0,"d":"$0.00"}},{"$f":"IFERROR('MMA Rev-Exp Region 5'!$M$58/'MMA Rev-Exp Region 5'!$M$9, 0)","v":{"v":0,"d":"$0.00"}},{"$f":"IFERROR('MMA Rev-Exp Region 5'!$N$58/'MMA Rev-Exp Region 5'!$N$9, 0)","v":{"v":0,"d":"$0.00"}}]
["MMA",null,null,2016,"2016-12-31","Q1","2017-03-31","Region 5","Operating Expense","Medical Benefits Expense","Pharmacy Services","8.4","Prescription Drug Rebates ",{"$f":"IFERROR('MMA Rev-Exp Region 5'!$D$59/'MMA Rev-Exp Region 5'!$D$9, 0)","v":{"v":0,"d":"$0.00"}},{"$f":"IFERROR('MMA Rev-Exp Region 5'!$E$59/'MMA Rev-Exp Region 5'!$E$9, 0)","v":{"v":0,"d":"$0.00"}},{"$f":"IFERROR('MMA Rev-Exp Region 5'!$F$59/'MMA Rev-Exp Region 5'!$F$9, 0)","v":{"v":0,"d":"$0.00"}},{"$f":"IFERROR('MMA Rev-Exp Region 5'!$G$59/'MMA Rev-Exp Region 5'!$G$9, 0)","v":{"v":0,"d":"$0.00"}},{"$f":"IFERROR('MMA Rev-Exp Region 5'!$H$59/'MMA Rev-Exp Region 5'!$H$9, 0)","v":{"v":0,"d":"$0.00"}},{"$f":"IFERROR('MMA Rev-Exp Region 5'!$I$59/'MMA Rev-Exp Region 5'!$I$9, 0)","v":{"v":0,"d":"$0.00"}},{"$f":"IFERROR('MMA Rev-Exp Region 5'!$J$59/'MMA Rev-Exp Region 5'!$J$9, 0)","v":{"v":0,"d":"$0.00"}},{"$f":"IFERROR('MMA Rev-Exp Region 5'!$K$59/'MMA Rev-Exp Region 5'!$K$9, 0)","v":{"v":0,"d":"$0.00"}},{"$f":"IFERROR('MMA Rev-Exp Region 5'!$L$59/'MMA Rev-Exp Region 5'!$L$9, 0)","v":{"v":0,"d":"$0.00"}},{"$f":"IFERROR('MMA Rev-Exp Region 5'!$M$59/'MMA Rev-Exp Region 5'!$M$9, 0)","v":{"v":0,"d":"$0.00"}},{"$f":"IFERROR('MMA Rev-Exp Region 5'!$N$59/'MMA Rev-Exp Region 5'!$N$9, 0)","v":{"v":0,"d":"$0.00"}}]
["MMA",null,null,2016,"2016-12-31","Q1","2017-03-31","Region 5","Operating Expense","Medical Benefits Expense","Pharmacy Services","8.5","Ending accrual for Rebates receivable",{"$f":"IFERROR('MMA Rev-Exp Region 5'!$D$60/'MMA Rev-Exp Region 5'!$D$9, 0)","v":{"v":0,"d":"$0.00"}},{"$f":"IFERROR('MMA Rev-Exp Region 5'!$E$60/'MMA Rev-Exp Region 5'!$E$9, 0)","v":{"v":0,"d":"$0.00"}},{"$f":"IFERROR('MMA Rev-Exp Region 5'!$F$60/'MMA Rev-Exp Region 5'!$F$9, 0)","v":{"v":0,"d":"$0.00"}},{"$f":"IFERROR('MMA Rev-Exp Region 5'!$G$60/'MMA Rev-Exp Region 5'!$G$9, 0)","v":{"v":0,"d":"$0.00"}},{"$f":"IFERROR('MMA Rev-Exp Region 5'!$H$60/'MMA Rev-Exp Region 5'!$H$9, 0)","v":{"v":0,"d":"$0.00"}},{"$f":"IFERROR('MMA Rev-Exp Region 5'!$I$60/'MMA Rev-Exp Region 5'!$I$9, 0)","v":{"v":0,"d":"$0.00"}},{"$f":"IFERROR('MMA Rev-Exp Region 5'!$J$60/'MMA Rev-Exp Region 5'!$J$9, 0)","v":{"v":0,"d":"$0.00"}},{"$f":"IFERROR('MMA Rev-Exp Region 5'!$K$60/'MMA Rev-Exp Region 5'!$K$9, 0)","v":{"v":0,"d":"$0.00"}},{"$f":"IFERROR('MMA Rev-Exp Region 5'!$L$60/'MMA Rev-Exp Region 5'!$L$9, 0)","v":{"v":0,"d":"$0.00"}},{"$f":"IFERROR('MMA Rev-Exp Region 5'!$M$60/'MMA Rev-Exp Region 5'!$M$9, 0)","v":{"v":0,"d":"$0.00"}},{"$f":"IFERROR('MMA Rev-Exp Region 5'!$N$60/'MMA Rev-Exp Region 5'!$N$9, 0)","v":{"v":0,"d":"$0.00"}}]
["MMA",null,null,2016,"2016-12-31","Q1","2017-03-31","Region 5","Operating Expense","Medical Benefits Expense","Pharmacy Services","8.6","Prescription Drugs Subcapitation",{"$f":"IFERROR('MMA Rev-Exp Region 5'!$D$61/'MMA Rev-Exp Region 5'!$D$9, 0)","v":{"v":0,"d":"$0.00"}},{"$f":"IFERROR('MMA Rev-Exp Region 5'!$E$61/'MMA Rev-Exp Region 5'!$E$9, 0)","v":{"v":0,"d":"$0.00"}},{"$f":"IFERROR('MMA Rev-Exp Region 5'!$F$61/'MMA Rev-Exp Region 5'!$F$9, 0)","v":{"v":0,"d":"$0.00"}},{"$f":"IFERROR('MMA Rev-Exp Region 5'!$G$61/'MMA Rev-Exp Region 5'!$G$9, 0)","v":{"v":0,"d":"$0.00"}},{"$f":"IFERROR('MMA Rev-Exp Region 5'!$H$61/'MMA Rev-Exp Region 5'!$H$9, 0)","v":{"v":0,"d":"$0.00"}},{"$f":"IFERROR('MMA Rev-Exp Region 5'!$I$61/'MMA Rev-Exp Region 5'!$I$9, 0)","v":{"v":0,"d":"$0.00"}},{"$f":"IFERROR('MMA Rev-Exp Region 5'!$J$61/'MMA Rev-Exp Region 5'!$J$9, 0)","v":{"v":0,"d":"$0.00"}},{"$f":"IFERROR('MMA Rev-Exp Region 5'!$K$61/'MMA Rev-Exp Region 5'!$K$9, 0)","v":{"v":0,"d":"$0.00"}},{"$f":"IFERROR('MMA Rev-Exp Region 5'!$L$61/'MMA Rev-Exp Region 5'!$L$9, 0)","v":{"v":0,"d":"$0.00"}},{"$f":"IFERROR('MMA Rev-Exp Region 5'!$M$61/'MMA Rev-Exp Region 5'!$M$9, 0)","v":{"v":0,"d":"$0.00"}},{"$f":"IFERROR('MMA Rev-Exp Region 5'!$N$61/'MMA Rev-Exp Region 5'!$N$9, 0)","v":{"v":0,"d":"$0.00"}}]
["MMA",null,null,2016,"2016-12-31","Q1","2017-03-31","Region 5","Operating Expense","Medical Benefits Expense","Pharmacy Services","8.7","Prescription Drug Settlements",{"$f":"IFERROR('MMA Rev-Exp Region 5'!$D$62/'MMA Rev-Exp Region 5'!$D$9, 0)","v":{"v":0,"d":"$0.00"}},{"$f":"IFERROR('MMA Rev-Exp Region 5'!$E$62/'MMA Rev-Exp Region 5'!$E$9, 0)","v":{"v":0,"d":"$0.00"}},{"$f":"IFERROR('MMA Rev-Exp Region 5'!$F$62/'MMA Rev-Exp Region 5'!$F$9, 0)","v":{"v":0,"d":"$0.00"}},{"$f":"IFERROR('MMA Rev-Exp Region 5'!$G$62/'MMA Rev-Exp Region 5'!$G$9, 0)","v":{"v":0,"d":"$0.00"}},{"$f":"IFERROR('MMA Rev-Exp Region 5'!$H$62/'MMA Rev-Exp Region 5'!$H$9, 0)","v":{"v":0,"d":"$0.00"}},{"$f":"IFERROR('MMA Rev-Exp Region 5'!$I$62/'MMA Rev-Exp Region 5'!$I$9, 0)","v":{"v":0,"d":"$0.00"}},{"$f":"IFERROR('MMA Rev-Exp Region 5'!$J$62/'MMA Rev-Exp Region 5'!$J$9, 0)","v":{"v":0,"d":"$0.00"}},{"$f":"IFERROR('MMA Rev-Exp Region 5'!$K$62/'MMA Rev-Exp Region 5'!$K$9, 0)","v":{"v":0,"d":"$0.00"}},{"$f":"IFERROR('MMA Rev-Exp Region 5'!$L$62/'MMA Rev-Exp Region 5'!$L$9, 0)","v":{"v":0,"d":"$0.00"}},{"$f":"IFERROR('MMA Rev-Exp Region 5'!$M$62/'MMA Rev-Exp Region 5'!$M$9, 0)","v":{"v":0,"d":"$0.00"}},{"$f":"IFERROR('MMA Rev-Exp Region 5'!$N$62/'MMA Rev-Exp Region 5'!$N$9, 0)","v":{"v":0,"d":"$0.00"}}]
["MMA",null,null,2016,"2016-12-31","Q1","2017-03-31","Region 5","Operating Expense","Medical Benefits Expense","Other MMA Services",9.1,"Home Health, Private Duty Nursing, Personal Care FFS",{"$f":"IFERROR('MMA Rev-Exp Region 5'!$D$64/'MMA Rev-Exp Region 5'!$D$9, 0)","v":{"v":0,"d":"$0.00"}},{"$f":"IFERROR('MMA Rev-Exp Region 5'!$E$64/'MMA Rev-Exp Region 5'!$E$9, 0)","v":{"v":0,"d":"$0.00"}},{"$f":"IFERROR('MMA Rev-Exp Region 5'!$F$64/'MMA Rev-Exp Region 5'!$F$9, 0)","v":{"v":0,"d":"$0.00"}},{"$f":"IFERROR('MMA Rev-Exp Region 5'!$G$64/'MMA Rev-Exp Region 5'!$G$9, 0)","v":{"v":0,"d":"$0.00"}},{"$f":"IFERROR('MMA Rev-Exp Region 5'!$H$64/'MMA Rev-Exp Region 5'!$H$9, 0)","v":{"v":0,"d":"$0.00"}},{"$f":"IFERROR('MMA Rev-Exp Region 5'!$I$64/'MMA Rev-Exp Region 5'!$I$9, 0)","v":{"v":0,"d":"$0.00"}},{"$f":"IFERROR('MMA Rev-Exp Region 5'!$J$64/'MMA Rev-Exp Region 5'!$J$9, 0)","v":{"v":0,"d":"$0.00"}},{"$f":"IFERROR('MMA Rev-Exp Region 5'!$K$64/'MMA Rev-Exp Region 5'!$K$9, 0)","v":{"v":0,"d":"$0.00"}},{"$f":"IFERROR('MMA Rev-Exp Region 5'!$L$64/'MMA Rev-Exp Region 5'!$L$9, 0)","v":{"v":0,"d":"$0.00"}},{"$f":"IFERROR('MMA Rev-Exp Region 5'!$M$64/'MMA Rev-Exp Region 5'!$M$9, 0)","v":{"v":0,"d":"$0.00"}},{"$f":"IFERROR('MMA Rev-Exp Region 5'!$N$64/'MMA Rev-Exp Region 5'!$N$9, 0)","v":{"v":0,"d":"$0.00"}}]
["MMA",null,null,2016,"2016-12-31","Q1","2017-03-31","Region 5","Operating Expense","Medical Benefits Expense","Other MMA Services","9.2","Hospice FFS",{"$f":"IFERROR('MMA Rev-Exp Region 5'!$D$65/'MMA Rev-Exp Region 5'!$D$9, 0)","v":{"v":0,"d":"$0.00"}},{"$f":"IFERROR('MMA Rev-Exp Region 5'!$E$65/'MMA Rev-Exp Region 5'!$E$9, 0)","v":{"v":0,"d":"$0.00"}},{"$f":"IFERROR('MMA Rev-Exp Region 5'!$F$65/'MMA Rev-Exp Region 5'!$F$9, 0)","v":{"v":0,"d":"$0.00"}},{"$f":"IFERROR('MMA Rev-Exp Region 5'!$G$65/'MMA Rev-Exp Region 5'!$G$9, 0)","v":{"v":0,"d":"$0.00"}},{"$f":"IFERROR('MMA Rev-Exp Region 5'!$H$65/'MMA Rev-Exp Region 5'!$H$9, 0)","v":{"v":0,"d":"$0.00"}},{"$f":"IFERROR('MMA Rev-Exp Region 5'!$I$65/'MMA Rev-Exp Region 5'!$I$9, 0)","v":{"v":0,"d":"$0.00"}},{"$f":"IFERROR('MMA Rev-Exp Region 5'!$J$65/'MMA Rev-Exp Region 5'!$J$9, 0)","v":{"v":0,"d":"$0.00"}},{"$f":"IFERROR('MMA Rev-Exp Region 5'!$K$65/'MMA Rev-Exp Region 5'!$K$9, 0)","v":{"v":0,"d":"$0.00"}},{"$f":"IFERROR('MMA Rev-Exp Region 5'!$L$65/'MMA Rev-Exp Region 5'!$L$9, 0)","v":{"v":0,"d":"$0.00"}},{"$f":"IFERROR('MMA Rev-Exp Region 5'!$M$65/'MMA Rev-Exp Region 5'!$M$9, 0)","v":{"v":0,"d":"$0.00"}},{"$f":"IFERROR('MMA Rev-Exp Region 5'!$N$65/'MMA Rev-Exp Region 5'!$N$9, 0)","v":{"v":0,"d":"$0.00"}}]
["MMA",null,null,2016,"2016-12-31","Q1","2017-03-31","Region 5","Operating Expense","Medical Benefits Expense","Other MMA Services","9.3","DME FFS",{"$f":"IFERROR('MMA Rev-Exp Region 5'!$D$66/'MMA Rev-Exp Region 5'!$D$9, 0)","v":{"v":0,"d":"$0.00"}},{"$f":"IFERROR('MMA Rev-Exp Region 5'!$E$66/'MMA Rev-Exp Region 5'!$E$9, 0)","v":{"v":0,"d":"$0.00"}},{"$f":"IFERROR('MMA Rev-Exp Region 5'!$F$66/'MMA Rev-Exp Region 5'!$F$9, 0)","v":{"v":0,"d":"$0.00"}},{"$f":"IFERROR('MMA Rev-Exp Region 5'!$G$66/'MMA Rev-Exp Region 5'!$G$9, 0)","v":{"v":0,"d":"$0.00"}},{"$f":"IFERROR('MMA Rev-Exp Region 5'!$H$66/'MMA Rev-Exp Region 5'!$H$9, 0)","v":{"v":0,"d":"$0.00"}},{"$f":"IFERROR('MMA Rev-Exp Region 5'!$I$66/'MMA Rev-Exp Region 5'!$I$9, 0)","v":{"v":0,"d":"$0.00"}},{"$f":"IFERROR('MMA Rev-Exp Region 5'!$J$66/'MMA Rev-Exp Region 5'!$J$9, 0)","v":{"v":0,"d":"$0.00"}},{"$f":"IFERROR('MMA Rev-Exp Region 5'!$K$66/'MMA Rev-Exp Region 5'!$K$9, 0)","v":{"v":0,"d":"$0.00"}},{"$f":"IFERROR('MMA Rev-Exp Region 5'!$L$66/'MMA Rev-Exp Region 5'!$L$9, 0)","v":{"v":0,"d":"$0.00"}},{"$f":"IFERROR('MMA Rev-Exp Region 5'!$M$66/'MMA Rev-Exp Region 5'!$M$9, 0)","v":{"v":0,"d":"$0.00"}},{"$f":"IFERROR('MMA Rev-Exp Region 5'!$N$66/'MMA Rev-Exp Region 5'!$N$9, 0)","v":{"v":0,"d":"$0.00"}}]
["MMA",null,null,2016,"2016-12-31","Q1","2017-03-31","Region 5","Operating Expense","Medical Benefits Expense","Other MMA Services","9.4","Other State Plan Services FFS",{"$f":"IFERROR('MMA Rev-Exp Region 5'!$D$67/'MMA Rev-Exp Region 5'!$D$9, 0)","v":{"v":0,"d":"$0.00"}},{"$f":"IFERROR('MMA Rev-Exp Region 5'!$E$67/'MMA Rev-Exp Region 5'!$E$9, 0)","v":{"v":0,"d":"$0.00"}},{"$f":"IFERROR('MMA Rev-Exp Region 5'!$F$67/'MMA Rev-Exp Region 5'!$F$9, 0)","v":{"v":0,"d":"$0.00"}},{"$f":"IFERROR('MMA Rev-Exp Region 5'!$G$67/'MMA Rev-Exp Region 5'!$G$9, 0)","v":{"v":0,"d":"$0.00"}},{"$f":"IFERROR('MMA Rev-Exp Region 5'!$H$67/'MMA Rev-Exp Region 5'!$H$9, 0)","v":{"v":0,"d":"$0.00"}},{"$f":"IFERROR('MMA Rev-Exp Region 5'!$I$67/'MMA Rev-Exp Region 5'!$I$9, 0)","v":{"v":0,"d":"$0.00"}},{"$f":"IFERROR('MMA Rev-Exp Region 5'!$J$67/'MMA Rev-Exp Region 5'!$J$9, 0)","v":{"v":0,"d":"$0.00"}},{"$f":"IFERROR('MMA Rev-Exp Region 5'!$K$67/'MMA Rev-Exp Region 5'!$K$9, 0)","v":{"v":0,"d":"$0.00"}},{"$f":"IFERROR('MMA Rev-Exp Region 5'!$L$67/'MMA Rev-Exp Region 5'!$L$9, 0)","v":{"v":0,"d":"$0.00"}},{"$f":"IFERROR('MMA Rev-Exp Region 5'!$M$67/'MMA Rev-Exp Region 5'!$M$9, 0)","v":{"v":0,"d":"$0.00"}},{"$f":"IFERROR('MMA Rev-Exp Region 5'!$N$67/'MMA Rev-Exp Region 5'!$N$9, 0)","v":{"v":0,"d":"$0.00"}}]
["MMA",null,null,2016,"2016-12-31","Q1","2017-03-31","Region 5","Operating Expense","Medical Benefits Expense","Other MMA Services","9.5","Other Services Subcapitation",{"$f":"IFERROR('MMA Rev-Exp Region 5'!$D$68/'MMA Rev-Exp Region 5'!$D$9, 0)","v":{"v":0,"d":"$0.00"}},{"$f":"IFERROR('MMA Rev-Exp Region 5'!$E$68/'MMA Rev-Exp Region 5'!$E$9, 0)","v":{"v":0,"d":"$0.00"}},{"$f":"IFERROR('MMA Rev-Exp Region 5'!$F$68/'MMA Rev-Exp Region 5'!$F$9, 0)","v":{"v":0,"d":"$0.00"}},{"$f":"IFERROR('MMA Rev-Exp Region 5'!$G$68/'MMA Rev-Exp Region 5'!$G$9, 0)","v":{"v":0,"d":"$0.00"}},{"$f":"IFERROR('MMA Rev-Exp Region 5'!$H$68/'MMA Rev-Exp Region 5'!$H$9, 0)","v":{"v":0,"d":"$0.00"}},{"$f":"IFERROR('MMA Rev-Exp Region 5'!$I$68/'MMA Rev-Exp Region 5'!$I$9, 0)","v":{"v":0,"d":"$0.00"}},{"$f":"IFERROR('MMA Rev-Exp Region 5'!$J$68/'MMA Rev-Exp Region 5'!$J$9, 0)","v":{"v":0,"d":"$0.00"}},{"$f":"IFERROR('MMA Rev-Exp Region 5'!$K$68/'MMA Rev-Exp Region 5'!$K$9, 0)","v":{"v":0,"d":"$0.00"}},{"$f":"IFERROR('MMA Rev-Exp Region 5'!$L$68/'MMA Rev-Exp Region 5'!$L$9, 0)","v":{"v":0,"d":"$0.00"}},{"$f":"IFERROR('MMA Rev-Exp Region 5'!$M$68/'MMA Rev-Exp Region 5'!$M$9, 0)","v":{"v":0,"d":"$0.00"}},{"$f":"IFERROR('MMA Rev-Exp Region 5'!$N$68/'MMA Rev-Exp Region 5'!$N$9, 0)","v":{"v":0,"d":"$0.00"}}]
["MMA",null,null,2016,"2016-12-31","Q1","2017-03-31","Region 5","Operating Expense","Medical Benefits Expense","Other MMA Services","9.6","Ending IBNP for Other Services",{"$f":"IFERROR('MMA Rev-Exp Region 5'!$D$69/'MMA Rev-Exp Region 5'!$D$9, 0)","v":{"v":0,"d":"$0.00"}},{"$f":"IFERROR('MMA Rev-Exp Region 5'!$E$69/'MMA Rev-Exp Region 5'!$E$9, 0)","v":{"v":0,"d":"$0.00"}},{"$f":"IFERROR('MMA Rev-Exp Region 5'!$F$69/'MMA Rev-Exp Region 5'!$F$9, 0)","v":{"v":0,"d":"$0.00"}},{"$f":"IFERROR('MMA Rev-Exp Region 5'!$G$69/'MMA Rev-Exp Region 5'!$G$9, 0)","v":{"v":0,"d":"$0.00"}},{"$f":"IFERROR('MMA Rev-Exp Region 5'!$H$69/'MMA Rev-Exp Region 5'!$H$9, 0)","v":{"v":0,"d":"$0.00"}},{"$f":"IFERROR('MMA Rev-Exp Region 5'!$I$69/'MMA Rev-Exp Region 5'!$I$9, 0)","v":{"v":0,"d":"$0.00"}},{"$f":"IFERROR('MMA Rev-Exp Region 5'!$J$69/'MMA Rev-Exp Region 5'!$J$9, 0)","v":{"v":0,"d":"$0.00"}},{"$f":"IFERROR('MMA Rev-Exp Region 5'!$K$69/'MMA Rev-Exp Region 5'!$K$9, 0)","v":{"v":0,"d":"$0.00"}},{"$f":"IFERROR('MMA Rev-Exp Region 5'!$L$69/'MMA Rev-Exp Region 5'!$L$9, 0)","v":{"v":0,"d":"$0.00"}},{"$f":"IFERROR('MMA Rev-Exp Region 5'!$M$69/'MMA Rev-Exp Region 5'!$M$9, 0)","v":{"v":0,"d":"$0.00"}},{"$f":"IFERROR('MMA Rev-Exp Region 5'!$N$69/'MMA Rev-Exp Region 5'!$N$9, 0)","v":{"v":0,"d":"$0.00"}}]
["MMA",null,null,2016,"2016-12-31","Q1","2017-03-31","Region 5","Operating Expense","Medical Benefits Expense","Other MMA Services","9.7","Other Services Settlements",{"$f":"IFERROR('MMA Rev-Exp Region 5'!$D$70/'MMA Rev-Exp Region 5'!$D$9, 0)","v":{"v":0,"d":"$0.00"}},{"$f":"IFERROR('MMA Rev-Exp Region 5'!$E$70/'MMA Rev-Exp Region 5'!$E$9, 0)","v":{"v":0,"d":"$0.00"}},{"$f":"IFERROR('MMA Rev-Exp Region 5'!$F$70/'MMA Rev-Exp Region 5'!$F$9, 0)","v":{"v":0,"d":"$0.00"}},{"$f":"IFERROR('MMA Rev-Exp Region 5'!$G$70/'MMA Rev-Exp Region 5'!$G$9, 0)","v":{"v":0,"d":"$0.00"}},{"$f":"IFERROR('MMA Rev-Exp Region 5'!$H$70/'MMA Rev-Exp Region 5'!$H$9, 0)","v":{"v":0,"d":"$0.00"}},{"$f":"IFERROR('MMA Rev-Exp Region 5'!$I$70/'MMA Rev-Exp Region 5'!$I$9, 0)","v":{"v":0,"d":"$0.00"}},{"$f":"IFERROR('MMA Rev-Exp Region 5'!$J$70/'MMA Rev-Exp Region 5'!$J$9, 0)","v":{"v":0,"d":"$0.00"}},{"$f":"IFERROR('MMA Rev-Exp Region 5'!$K$70/'MMA Rev-Exp Region 5'!$K$9, 0)","v":{"v":0,"d":"$0.00"}},{"$f":"IFERROR('MMA Rev-Exp Region 5'!$L$70/'MMA Rev-Exp Region 5'!$L$9, 0)","v":{"v":0,"d":"$0.00"}},{"$f":"IFERROR('MMA Rev-Exp Region 5'!$M$70/'MMA Rev-Exp Region 5'!$M$9, 0)","v":{"v":0,"d":"$0.00"}},{"$f":"IFERROR('MMA Rev-Exp Region 5'!$N$70/'MMA Rev-Exp Region 5'!$N$9, 0)","v":{"v":0,"d":"$0.00"}}]
["MMA",null,null,2016,"2016-12-31","Q1","2017-03-31","Region 5","Operating Expense","Medical Benefits Expense","Expanded Benefits","10.1","Expanded Benefits FFS",{"$f":"IFERROR('MMA Rev-Exp Region 5'!$D$72/'MMA Rev-Exp Region 5'!$D$9, 0)","v":{"v":0,"d":"$0.00"}},{"$f":"IFERROR('MMA Rev-Exp Region 5'!$E$72/'MMA Rev-Exp Region 5'!$E$9, 0)","v":{"v":0,"d":"$0.00"}},{"$f":"IFERROR('MMA Rev-Exp Region 5'!$F$72/'MMA Rev-Exp Region 5'!$F$9, 0)","v":{"v":0,"d":"$0.00"}},{"$f":"IFERROR('MMA Rev-Exp Region 5'!$G$72/'MMA Rev-Exp Region 5'!$G$9, 0)","v":{"v":0,"d":"$0.00"}},{"$f":"IFERROR('MMA Rev-Exp Region 5'!$H$72/'MMA Rev-Exp Region 5'!$H$9, 0)","v":{"v":0,"d":"$0.00"}},{"$f":"IFERROR('MMA Rev-Exp Region 5'!$I$72/'MMA Rev-Exp Region 5'!$I$9, 0)","v":{"v":0,"d":"$0.00"}},{"$f":"IFERROR('MMA Rev-Exp Region 5'!$J$72/'MMA Rev-Exp Region 5'!$J$9, 0)","v":{"v":0,"d":"$0.00"}},{"$f":"IFERROR('MMA Rev-Exp Region 5'!$K$72/'MMA Rev-Exp Region 5'!$K$9, 0)","v":{"v":0,"d":"$0.00"}},{"$f":"IFERROR('MMA Rev-Exp Region 5'!$L$72/'MMA Rev-Exp Region 5'!$L$9, 0)","v":{"v":0,"d":"$0.00"}},{"$f":"IFERROR('MMA Rev-Exp Region 5'!$M$72/'MMA Rev-Exp Region 5'!$M$9, 0)","v":{"v":0,"d":"$0.00"}},{"$f":"IFERROR('MMA Rev-Exp Region 5'!$N$72/'MMA Rev-Exp Region 5'!$N$9, 0)","v":{"v":0,"d":"$0.00"}}]
["MMA",null,null,2016,"2016-12-31","Q1","2017-03-31","Region 5","Operating Expense","Medical Benefits Expense","Expanded Benefits","10.2","Expanded benefits Subcapitation",{"$f":"IFERROR('MMA Rev-Exp Region 5'!$D$73/'MMA Rev-Exp Region 5'!$D$9, 0)","v":{"v":0,"d":"$0.00"}},{"$f":"IFERROR('MMA Rev-Exp Region 5'!$E$73/'MMA Rev-Exp Region 5'!$E$9, 0)","v":{"v":0,"d":"$0.00"}},{"$f":"IFERROR('MMA Rev-Exp Region 5'!$F$73/'MMA Rev-Exp Region 5'!$F$9, 0)","v":{"v":0,"d":"$0.00"}},{"$f":"IFERROR('MMA Rev-Exp Region 5'!$G$73/'MMA Rev-Exp Region 5'!$G$9, 0)","v":{"v":0,"d":"$0.00"}},{"$f":"IFERROR('MMA Rev-Exp Region 5'!$H$73/'MMA Rev-Exp Region 5'!$H$9, 0)","v":{"v":0,"d":"$0.00"}},{"$f":"IFERROR('MMA Rev-Exp Region 5'!$I$73/'MMA Rev-Exp Region 5'!$I$9, 0)","v":{"v":0,"d":"$0.00"}},{"$f":"IFERROR('MMA Rev-Exp Region 5'!$J$73/'MMA Rev-Exp Region 5'!$J$9, 0)","v":{"v":0,"d":"$0.00"}},{"$f":"IFERROR('MMA Rev-Exp Region 5'!$K$73/'MMA Rev-Exp Region 5'!$K$9, 0)","v":{"v":0,"d":"$0.00"}},{"$f":"IFERROR('MMA Rev-Exp Region 5'!$L$73/'MMA Rev-Exp Region 5'!$L$9, 0)","v":{"v":0,"d":"$0.00"}},{"$f":"IFERROR('MMA Rev-Exp Region 5'!$M$73/'MMA Rev-Exp Region 5'!$M$9, 0)","v":{"v":0,"d":"$0.00"}},{"$f":"IFERROR('MMA Rev-Exp Region 5'!$N$73/'MMA Rev-Exp Region 5'!$N$9, 0)","v":{"v":0,"d":"$0.00"}}]
["MMA",null,null,2016,"2016-12-31","Q1","2017-03-31","Region 5","Operating Expense","Medical Benefits Expense","Expanded Benefits","10.3","Ending IBNP for Expanded Benefits",{"$f":"IFERROR('MMA Rev-Exp Region 5'!$D$74/'MMA Rev-Exp Region 5'!$D$9, 0)","v":{"v":0,"d":"$0.00"}},{"$f":"IFERROR('MMA Rev-Exp Region 5'!$E$74/'MMA Rev-Exp Region 5'!$E$9, 0)","v":{"v":0,"d":"$0.00"}},{"$f":"IFERROR('MMA Rev-Exp Region 5'!$F$74/'MMA Rev-Exp Region 5'!$F$9, 0)","v":{"v":0,"d":"$0.00"}},{"$f":"IFERROR('MMA Rev-Exp Region 5'!$G$74/'MMA Rev-Exp Region 5'!$G$9, 0)","v":{"v":0,"d":"$0.00"}},{"$f":"IFERROR('MMA Rev-Exp Region 5'!$H$74/'MMA Rev-Exp Region 5'!$H$9, 0)","v":{"v":0,"d":"$0.00"}},{"$f":"IFERROR('MMA Rev-Exp Region 5'!$I$74/'MMA Rev-Exp Region 5'!$I$9, 0)","v":{"v":0,"d":"$0.00"}},{"$f":"IFERROR('MMA Rev-Exp Region 5'!$J$74/'MMA Rev-Exp Region 5'!$J$9, 0)","v":{"v":0,"d":"$0.00"}},{"$f":"IFERROR('MMA Rev-Exp Region 5'!$K$74/'MMA Rev-Exp Region 5'!$K$9, 0)","v":{"v":0,"d":"$0.00"}},{"$f":"IFERROR('MMA Rev-Exp Region 5'!$L$74/'MMA Rev-Exp Region 5'!$L$9, 0)","v":{"v":0,"d":"$0.00"}},{"$f":"IFERROR('MMA Rev-Exp Region 5'!$M$74/'MMA Rev-Exp Region 5'!$M$9, 0)","v":{"v":0,"d":"$0.00"}},{"$f":"IFERROR('MMA Rev-Exp Region 5'!$N$74/'MMA Rev-Exp Region 5'!$N$9, 0)","v":{"v":0,"d":"$0.00"}}]
["MMA",null,null,2016,"2016-12-31","Q1","2017-03-31","Region 5","Operating Expense","Medical Benefits Expense","Expanded Benefits","10.4","Expanded Benefits Settlements",{"$f":"IFERROR('MMA Rev-Exp Region 5'!$D$75/'MMA Rev-Exp Region 5'!$D$9, 0)","v":{"v":0,"d":"$0.00"}},{"$f":"IFERROR('MMA Rev-Exp Region 5'!$E$75/'MMA Rev-Exp Region 5'!$E$9, 0)","v":{"v":0,"d":"$0.00"}},{"$f":"IFERROR('MMA Rev-Exp Region 5'!$F$75/'MMA Rev-Exp Region 5'!$F$9, 0)","v":{"v":0,"d":"$0.00"}},{"$f":"IFERROR('MMA Rev-Exp Region 5'!$G$75/'MMA Rev-Exp Region 5'!$G$9, 0)","v":{"v":0,"d":"$0.00"}},{"$f":"IFERROR('MMA Rev-Exp Region 5'!$H$75/'MMA Rev-Exp Region 5'!$H$9, 0)","v":{"v":0,"d":"$0.00"}},{"$f":"IFERROR('MMA Rev-Exp Region 5'!$I$75/'MMA Rev-Exp Region 5'!$I$9, 0)","v":{"v":0,"d":"$0.00"}},{"$f":"IFERROR('MMA Rev-Exp Region 5'!$J$75/'MMA Rev-Exp Region 5'!$J$9, 0)","v":{"v":0,"d":"$0.00"}},{"$f":"IFERROR('MMA Rev-Exp Region 5'!$K$75/'MMA Rev-Exp Region 5'!$K$9, 0)","v":{"v":0,"d":"$0.00"}},{"$f":"IFERROR('MMA Rev-Exp Region 5'!$L$75/'MMA Rev-Exp Region 5'!$L$9, 0)","v":{"v":0,"d":"$0.00"}},{"$f":"IFERROR('MMA Rev-Exp Region 5'!$M$75/'MMA Rev-Exp Region 5'!$M$9, 0)","v":{"v":0,"d":"$0.00"}},{"$f":"IFERROR('MMA Rev-Exp Region 5'!$N$75/'MMA Rev-Exp Region 5'!$N$9, 0)","v":{"v":0,"d":"$0.00"}}]
["MMA",null,null,2016,"2016-12-31","Q1","2017-03-31","Region 5","Operating Expense","Medical Benefits Expense","Other Medical","11.5","TPL & Fraud/Abuse Recoveries",{"$f":"IFERROR('MMA Rev-Exp Region 5'!$D$81/'MMA Rev-Exp Region 5'!$D$9, 0)","v":{"v":0,"d":"$0.00"}},{"$f":"IFERROR('MMA Rev-Exp Region 5'!$E$81/'MMA Rev-Exp Region 5'!$E$9, 0)","v":{"v":0,"d":"$0.00"}},{"$f":"IFERROR('MMA Rev-Exp Region 5'!$F$81/'MMA Rev-Exp Region 5'!$F$9, 0)","v":{"v":0,"d":"$0.00"}},{"$f":"IFERROR('MMA Rev-Exp Region 5'!$G$81/'MMA Rev-Exp Region 5'!$G$9, 0)","v":{"v":0,"d":"$0.00"}},{"$f":"IFERROR('MMA Rev-Exp Region 5'!$H$81/'MMA Rev-Exp Region 5'!$H$9, 0)","v":{"v":0,"d":"$0.00"}},{"$f":"IFERROR('MMA Rev-Exp Region 5'!$I$81/'MMA Rev-Exp Region 5'!$I$9, 0)","v":{"v":0,"d":"$0.00"}},{"$f":"IFERROR('MMA Rev-Exp Region 5'!$J$81/'MMA Rev-Exp Region 5'!$J$9, 0)","v":{"v":0,"d":"$0.00"}},{"$f":"IFERROR('MMA Rev-Exp Region 5'!$K$81/'MMA Rev-Exp Region 5'!$K$9, 0)","v":{"v":0,"d":"$0.00"}},{"$f":"IFERROR('MMA Rev-Exp Region 5'!$L$81/'MMA Rev-Exp Region 5'!$L$9, 0)","v":{"v":0,"d":"$0.00"}},{"$f":"IFERROR('MMA Rev-Exp Region 5'!$M$81/'MMA Rev-Exp Region 5'!$M$9, 0)","v":{"v":0,"d":"$0.00"}},{"$f":"IFERROR('MMA Rev-Exp Region 5'!$N$81/'MMA Rev-Exp Region 5'!$N$9, 0)","v":{"v":0,"d":"$0.00"}}]
["MMA",null,null,2016,"2016-12-31","Q1","2017-03-31","Region 5","Operating Expense","Medical Benefits Expense","Other Medical","11.6.1","Premium Deficiency Reserve",{"$f":"IFERROR('MMA Rev-Exp Region 5'!$D$82/'MMA Rev-Exp Region 5'!$D$9, 0)","v":{"v":0,"d":"$0.00"}},{"$f":"IFERROR('MMA Rev-Exp Region 5'!$E$82/'MMA Rev-Exp Region 5'!$E$9, 0)","v":{"v":0,"d":"$0.00"}},{"$f":"IFERROR('MMA Rev-Exp Region 5'!$F$82/'MMA Rev-Exp Region 5'!$F$9, 0)","v":{"v":0,"d":"$0.00"}},{"$f":"IFERROR('MMA Rev-Exp Region 5'!$G$82/'MMA Rev-Exp Region 5'!$G$9, 0)","v":{"v":0,"d":"$0.00"}},{"$f":"IFERROR('MMA Rev-Exp Region 5'!$H$82/'MMA Rev-Exp Region 5'!$H$9, 0)","v":{"v":0,"d":"$0.00"}},{"$f":"IFERROR('MMA Rev-Exp Region 5'!$I$82/'MMA Rev-Exp Region 5'!$I$9, 0)","v":{"v":0,"d":"$0.00"}},{"$f":"IFERROR('MMA Rev-Exp Region 5'!$J$82/'MMA Rev-Exp Region 5'!$J$9, 0)","v":{"v":0,"d":"$0.00"}},{"$f":"IFERROR('MMA Rev-Exp Region 5'!$K$82/'MMA Rev-Exp Region 5'!$K$9, 0)","v":{"v":0,"d":"$0.00"}},{"$f":"IFERROR('MMA Rev-Exp Region 5'!$L$82/'MMA Rev-Exp Region 5'!$L$9, 0)","v":{"v":0,"d":"$0.00"}},{"$f":"IFERROR('MMA Rev-Exp Region 5'!$M$82/'MMA Rev-Exp Region 5'!$M$9, 0)","v":{"v":0,"d":"$0.00"}},{"$f":"IFERROR('MMA Rev-Exp Region 5'!$N$82/'MMA Rev-Exp Region 5'!$N$9, 0)","v":{"v":0,"d":"$0.00"}}]
["MMA",null,null,2016,"2016-12-31","Q1","2017-03-31","Region 5","Operating Expense","Medical Benefits Expense","Other Medical","11.8","Reinsurance Premiums",{"$f":"IFERROR('MMA Rev-Exp Region 5'!$D$84/'MMA Rev-Exp Region 5'!$D$9, 0)","v":{"v":0,"d":"$0.00"}},{"$f":"IFERROR('MMA Rev-Exp Region 5'!$E$84/'MMA Rev-Exp Region 5'!$E$9, 0)","v":{"v":0,"d":"$0.00"}},{"$f":"IFERROR('MMA Rev-Exp Region 5'!$F$84/'MMA Rev-Exp Region 5'!$F$9, 0)","v":{"v":0,"d":"$0.00"}},{"$f":"IFERROR('MMA Rev-Exp Region 5'!$G$84/'MMA Rev-Exp Region 5'!$G$9, 0)","v":{"v":0,"d":"$0.00"}},{"$f":"IFERROR('MMA Rev-Exp Region 5'!$H$84/'MMA Rev-Exp Region 5'!$H$9, 0)","v":{"v":0,"d":"$0.00"}},{"$f":"IFERROR('MMA Rev-Exp Region 5'!$I$84/'MMA Rev-Exp Region 5'!$I$9, 0)","v":{"v":0,"d":"$0.00"}},{"$f":"IFERROR('MMA Rev-Exp Region 5'!$J$84/'MMA Rev-Exp Region 5'!$J$9, 0)","v":{"v":0,"d":"$0.00"}},{"$f":"IFERROR('MMA Rev-Exp Region 5'!$K$84/'MMA Rev-Exp Region 5'!$K$9, 0)","v":{"v":0,"d":"$0.00"}},{"$f":"IFERROR('MMA Rev-Exp Region 5'!$L$84/'MMA Rev-Exp Region 5'!$L$9, 0)","v":{"v":0,"d":"$0.00"}},{"$f":"IFERROR('MMA Rev-Exp Region 5'!$M$84/'MMA Rev-Exp Region 5'!$M$9, 0)","v":{"v":0,"d":"$0.00"}},{"$f":"IFERROR('MMA Rev-Exp Region 5'!$N$84/'MMA Rev-Exp Region 5'!$N$9, 0)","v":{"v":0,"d":"$0.00"}}]
["MMA",null,null,2016,"2016-12-31","Q1","2017-03-31","Region 5","Operating Expense","Medical Benefits Expense","Other Medical","11.9","Reinsurance Recoveries",{"$f":"IFERROR('MMA Rev-Exp Region 5'!$D$85/'MMA Rev-Exp Region 5'!$D$9, 0)","v":{"v":0,"d":"$0.00"}},{"$f":"IFERROR('MMA Rev-Exp Region 5'!$E$85/'MMA Rev-Exp Region 5'!$E$9, 0)","v":{"v":0,"d":"$0.00"}},{"$f":"IFERROR('MMA Rev-Exp Region 5'!$F$85/'MMA Rev-Exp Region 5'!$F$9, 0)","v":{"v":0,"d":"$0.00"}},{"$f":"IFERROR('MMA Rev-Exp Region 5'!$G$85/'MMA Rev-Exp Region 5'!$G$9, 0)","v":{"v":0,"d":"$0.00"}},{"$f":"IFERROR('MMA Rev-Exp Region 5'!$H$85/'MMA Rev-Exp Region 5'!$H$9, 0)","v":{"v":0,"d":"$0.00"}},{"$f":"IFERROR('MMA Rev-Exp Region 5'!$I$85/'MMA Rev-Exp Region 5'!$I$9, 0)","v":{"v":0,"d":"$0.00"}},{"$f":"IFERROR('MMA Rev-Exp Region 5'!$J$85/'MMA Rev-Exp Region 5'!$J$9, 0)","v":{"v":0,"d":"$0.00"}},{"$f":"IFERROR('MMA Rev-Exp Region 5'!$K$85/'MMA Rev-Exp Region 5'!$K$9, 0)","v":{"v":0,"d":"$0.00"}},{"$f":"IFERROR('MMA Rev-Exp Region 5'!$L$85/'MMA Rev-Exp Region 5'!$L$9, 0)","v":{"v":0,"d":"$0.00"}},{"$f":"IFERROR('MMA Rev-Exp Region 5'!$M$85/'MMA Rev-Exp Region 5'!$M$9, 0)","v":{"v":0,"d":"$0.00"}},{"$f":"IFERROR('MMA Rev-Exp Region 5'!$N$85/'MMA Rev-Exp Region 5'!$N$9, 0)","v":{"v":0,"d":"$0.00"}}]
["MMA",null,null,2016,"2016-12-31","Q1","2017-03-31","Region 5","Operating Expense","Administrative Expense","Administrative","12.1","Salaries & Benefits",{"$f":"IFERROR('MMA Rev-Exp Region 5'!$D$90/'MMA Rev-Exp Region 5'!$D$9, 0)","v":{"v":0,"d":"$0.00"}},{"$f":"IFERROR('MMA Rev-Exp Region 5'!$E$90/'MMA Rev-Exp Region 5'!$D$9, 0)","v":{"v":0,"d":"$0.00"}},{"$f":"IFERROR('MMA Rev-Exp Region 5'!$F$90/'MMA Rev-Exp Region 5'!$D$9, 0)","v":{"v":0,"d":"$0.00"}},{"$f":"IFERROR('MMA Rev-Exp Region 5'!$G$90/'MMA Rev-Exp Region 5'!$G$9, 0)","v":{"v":0,"d":"$0.00"}},{"$f":"IFERROR('MMA Rev-Exp Region 5'!$H$90/'MMA Rev-Exp Region 5'!$H$9, 0)","v":{"v":0,"d":"$0.00"}},{"$f":"IFERROR('MMA Rev-Exp Region 5'!$I$90/'MMA Rev-Exp Region 5'!$I$9, 0)","v":{"v":0,"d":"$0.00"}},{"$f":"IFERROR('MMA Rev-Exp Region 5'!$J$90/'MMA Rev-Exp Region 5'!$J$9, 0)","v":{"v":0,"d":"$0.00"}},{"$f":"IFERROR('MMA Rev-Exp Region 5'!$K$90/'MMA Rev-Exp Region 5'!$K$9, 0)","v":{"v":0,"d":"$0.00"}},{"$f":"IFERROR('MMA Rev-Exp Region 5'!$L$90/'MMA Rev-Exp Region 5'!$L$9, 0)","v":{"v":0,"d":"$0.00"}},{"$f":"IFERROR('MMA Rev-Exp Region 5'!$M$90/'MMA Rev-Exp Region 5'!$M$9, 0)","v":{"v":0,"d":"$0.00"}},{"$f":"IFERROR('MMA Rev-Exp Region 5'!$N$90/'MMA Rev-Exp Region 5'!$N$9, 0)","v":{"v":0,"d":"$0.00"}}]
["MMA",null,null,2016,"2016-12-31","Q1","2017-03-31","Region 5","Operating Expense","Administrative Expense","Administrative","12.2","Administrative Services",{"$f":"IFERROR('MMA Rev-Exp Region 5'!$D$91/'MMA Rev-Exp Region 5'!$D$9, 0)","v":{"v":0,"d":"$0.00"}},{"$f":"IFERROR('MMA Rev-Exp Region 5'!$E$91/'MMA Rev-Exp Region 5'!$D$9, 0)","v":{"v":0,"d":"$0.00"}},{"$f":"IFERROR('MMA Rev-Exp Region 5'!$F$91/'MMA Rev-Exp Region 5'!$D$9, 0)","v":{"v":0,"d":"$0.00"}},{"$f":"IFERROR('MMA Rev-Exp Region 5'!$G$91/'MMA Rev-Exp Region 5'!$G$9, 0)","v":{"v":0,"d":"$0.00"}},{"$f":"IFERROR('MMA Rev-Exp Region 5'!$H$91/'MMA Rev-Exp Region 5'!$H$9, 0)","v":{"v":0,"d":"$0.00"}},{"$f":"IFERROR('MMA Rev-Exp Region 5'!$I$91/'MMA Rev-Exp Region 5'!$I$9, 0)","v":{"v":0,"d":"$0.00"}},{"$f":"IFERROR('MMA Rev-Exp Region 5'!$J$91/'MMA Rev-Exp Region 5'!$J$9, 0)","v":{"v":0,"d":"$0.00"}},{"$f":"IFERROR('MMA Rev-Exp Region 5'!$K$91/'MMA Rev-Exp Region 5'!$K$9, 0)","v":{"v":0,"d":"$0.00"}},{"$f":"IFERROR('MMA Rev-Exp Region 5'!$L$91/'MMA Rev-Exp Region 5'!$L$9, 0)","v":{"v":0,"d":"$0.00"}},{"$f":"IFERROR('MMA Rev-Exp Region 5'!$M$91/'MMA Rev-Exp Region 5'!$M$9, 0)","v":{"v":0,"d":"$0.00"}},{"$f":"IFERROR('MMA Rev-Exp Region 5'!$N$91/'MMA Rev-Exp Region 5'!$N$9, 0)","v":{"v":0,"d":"$0.00"}}]
["MMA",null,null,2016,"2016-12-31","Q1","2017-03-31","Region 5","Operating Expense","Administrative Expense","Administrative","12.3","Information Systems",{"$f":"IFERROR('MMA Rev-Exp Region 5'!$D$92/'MMA Rev-Exp Region 5'!$D$9, 0)","v":{"v":0,"d":"$0.00"}},{"$f":"IFERROR('MMA Rev-Exp Region 5'!$E$92/'MMA Rev-Exp Region 5'!$D$9, 0)","v":{"v":0,"d":"$0.00"}},{"$f":"IFERROR('MMA Rev-Exp Region 5'!$F$92/'MMA Rev-Exp Region 5'!$D$9, 0)","v":{"v":0,"d":"$0.00"}},{"$f":"IFERROR('MMA Rev-Exp Region 5'!$G$92/'MMA Rev-Exp Region 5'!$G$9, 0)","v":{"v":0,"d":"$0.00"}},{"$f":"IFERROR('MMA Rev-Exp Region 5'!$H$92/'MMA Rev-Exp Region 5'!$H$9, 0)","v":{"v":0,"d":"$0.00"}},{"$f":"IFERROR('MMA Rev-Exp Region 5'!$I$92/'MMA Rev-Exp Region 5'!$I$9, 0)","v":{"v":0,"d":"$0.00"}},{"$f":"IFERROR('MMA Rev-Exp Region 5'!$J$92/'MMA Rev-Exp Region 5'!$J$9, 0)","v":{"v":0,"d":"$0.00"}},{"$f":"IFERROR('MMA Rev-Exp Region 5'!$K$92/'MMA Rev-Exp Region 5'!$K$9, 0)","v":{"v":0,"d":"$0.00"}},{"$f":"IFERROR('MMA Rev-Exp Region 5'!$L$92/'MMA Rev-Exp Region 5'!$L$9, 0)","v":{"v":0,"d":"$0.00"}},{"$f":"IFERROR('MMA Rev-Exp Region 5'!$M$92/'MMA Rev-Exp Region 5'!$M$9, 0)","v":{"v":0,"d":"$0.00"}},{"$f":"IFERROR('MMA Rev-Exp Region 5'!$N$92/'MMA Rev-Exp Region 5'!$N$9, 0)","v":{"v":0,"d":"$0.00"}}]
["MMA",null,null,2016,"2016-12-31","Q1","2017-03-31","Region 5","Operating Expense","Administrative Expense","Administrative","12.4","Marketing Expenses",{"$f":"IFERROR('MMA Rev-Exp Region 5'!$D$93/'MMA Rev-Exp Region 5'!$D$9, 0)","v":{"v":0,"d":"$0.00"}},{"$f":"IFERROR('MMA Rev-Exp Region 5'!$E$93/'MMA Rev-Exp Region 5'!$D$9, 0)","v":{"v":0,"d":"$0.00"}},{"$f":"IFERROR('MMA Rev-Exp Region 5'!$F$93/'MMA Rev-Exp Region 5'!$D$9, 0)","v":{"v":0,"d":"$0.00"}},{"$f":"IFERROR('MMA Rev-Exp Region 5'!$G$93/'MMA Rev-Exp Region 5'!$G$9, 0)","v":{"v":0,"d":"$0.00"}},{"$f":"IFERROR('MMA Rev-Exp Region 5'!$H$93/'MMA Rev-Exp Region 5'!$H$9, 0)","v":{"v":0,"d":"$0.00"}},{"$f":"IFERROR('MMA Rev-Exp Region 5'!$I$93/'MMA Rev-Exp Region 5'!$I$9, 0)","v":{"v":0,"d":"$0.00"}},{"$f":"IFERROR('MMA Rev-Exp Region 5'!$J$93/'MMA Rev-Exp Region 5'!$J$9, 0)","v":{"v":0,"d":"$0.00"}},{"$f":"IFERROR('MMA Rev-Exp Region 5'!$K$93/'MMA Rev-Exp Region 5'!$K$9, 0)","v":{"v":0,"d":"$0.00"}},{"$f":"IFERROR('MMA Rev-Exp Region 5'!$L$93/'MMA Rev-Exp Region 5'!$L$9, 0)","v":{"v":0,"d":"$0.00"}},{"$f":"IFERROR('MMA Rev-Exp Region 5'!$M$93/'MMA Rev-Exp Region 5'!$M$9, 0)","v":{"v":0,"d":"$0.00"}},{"$f":"IFERROR('MMA Rev-Exp Region 5'!$N$93/'MMA Rev-Exp Region 5'!$N$9, 0)","v":{"v":0,"d":"$0.00"}}]
["MMA",null,null,2016,"2016-12-31","Q1","2017-03-31","Region 5","Operating Expense","Administrative Expense","Administrative","12.5","General  Administration",{"$f":"IFERROR('MMA Rev-Exp Region 5'!$D$94/'MMA Rev-Exp Region 5'!$D$9, 0)","v":{"v":0,"d":"$0.00"}},{"$f":"IFERROR('MMA Rev-Exp Region 5'!$E$94/'MMA Rev-Exp Region 5'!$D$9, 0)","v":{"v":0,"d":"$0.00"}},{"$f":"IFERROR('MMA Rev-Exp Region 5'!$F$94/'MMA Rev-Exp Region 5'!$D$9, 0)","v":{"v":0,"d":"$0.00"}},{"$f":"IFERROR('MMA Rev-Exp Region 5'!$G$94/'MMA Rev-Exp Region 5'!$G$9, 0)","v":{"v":0,"d":"$0.00"}},{"$f":"IFERROR('MMA Rev-Exp Region 5'!$H$94/'MMA Rev-Exp Region 5'!$H$9, 0)","v":{"v":0,"d":"$0.00"}},{"$f":"IFERROR('MMA Rev-Exp Region 5'!$I$94/'MMA Rev-Exp Region 5'!$I$9, 0)","v":{"v":0,"d":"$0.00"}},{"$f":"IFERROR('MMA Rev-Exp Region 5'!$J$94/'MMA Rev-Exp Region 5'!$J$9, 0)","v":{"v":0,"d":"$0.00"}},{"$f":"IFERROR('MMA Rev-Exp Region 5'!$K$94/'MMA Rev-Exp Region 5'!$K$9, 0)","v":{"v":0,"d":"$0.00"}},{"$f":"IFERROR('MMA Rev-Exp Region 5'!$L$94/'MMA Rev-Exp Region 5'!$L$9, 0)","v":{"v":0,"d":"$0.00"}},{"$f":"IFERROR('MMA Rev-Exp Region 5'!$M$94/'MMA Rev-Exp Region 5'!$M$9, 0)","v":{"v":0,"d":"$0.00"}},{"$f":"IFERROR('MMA Rev-Exp Region 5'!$N$94/'MMA Rev-Exp Region 5'!$N$9, 0)","v":{"v":0,"d":"$0.00"}}]
["MMA",null,null,2016,"2016-12-31","Q1","2017-03-31","Region 5","Operating Expense","Administrative Expense","Administrative","12.6","Compliance/Regulatory",{"$f":"IFERROR('MMA Rev-Exp Region 5'!$D$95/'MMA Rev-Exp Region 5'!$D$9, 0)","v":{"v":0,"d":"$0.00"}},{"$f":"IFERROR('MMA Rev-Exp Region 5'!$E$95/'MMA Rev-Exp Region 5'!$D$9, 0)","v":{"v":0,"d":"$0.00"}},{"$f":"IFERROR('MMA Rev-Exp Region 5'!$F$95/'MMA Rev-Exp Region 5'!$D$9, 0)","v":{"v":0,"d":"$0.00"}},{"$f":"IFERROR('MMA Rev-Exp Region 5'!$G$95/'MMA Rev-Exp Region 5'!$G$9, 0)","v":{"v":0,"d":"$0.00"}},{"$f":"IFERROR('MMA Rev-Exp Region 5'!$H$95/'MMA Rev-Exp Region 5'!$H$9, 0)","v":{"v":0,"d":"$0.00"}},{"$f":"IFERROR('MMA Rev-Exp Region 5'!$I$95/'MMA Rev-Exp Region 5'!$I$9, 0)","v":{"v":0,"d":"$0.00"}},{"$f":"IFERROR('MMA Rev-Exp Region 5'!$J$95/'MMA Rev-Exp Region 5'!$J$9, 0)","v":{"v":0,"d":"$0.00"}},{"$f":"IFERROR('MMA Rev-Exp Region 5'!$K$95/'MMA Rev-Exp Region 5'!$K$9, 0)","v":{"v":0,"d":"$0.00"}},{"$f":"IFERROR('MMA Rev-Exp Region 5'!$L$95/'MMA Rev-Exp Region 5'!$L$9, 0)","v":{"v":0,"d":"$0.00"}},{"$f":"IFERROR('MMA Rev-Exp Region 5'!$M$95/'MMA Rev-Exp Region 5'!$M$9, 0)","v":{"v":0,"d":"$0.00"}},{"$f":"IFERROR('MMA Rev-Exp Region 5'!$N$95/'MMA Rev-Exp Region 5'!$N$9, 0)","v":{"v":0,"d":"$0.00"}}]
["MMA",null,null,2016,"2016-12-31","Q1","2017-03-31","Region 5","Operating Expense","Taxes & Fees","Taxes & Fees","13.1","State Premium tax",{"$f":"IFERROR('MMA Rev-Exp Region 5'!$D$97/'MMA Rev-Exp Region 5'!$D$9, 0)","v":{"v":0,"d":"$0.00"}}]
["MMA",null,null,2016,"2016-12-31","Q1","2017-03-31","Region 5","Operating Expense","Taxes & Fees","Taxes & Fees","13.2","Department of Insurance Assessments",{"$f":"IFERROR('MMA Rev-Exp Region 5'!$D$98/'MMA Rev-Exp Region 5'!$D$9, 0)","v":{"v":0,"d":"$0.00"}}]
["MMA",null,null,2016,"2016-12-31","Q1","2017-03-31","Region 5","Operating Expense","Taxes & Fees","Taxes & Fees","13.3","Section 9010 Health Insurance Providers Fee",{"$f":"IFERROR('MMA Rev-Exp Region 5'!$D$99/'MMA Rev-Exp Region 5'!$D$9, 0)","v":{"v":0,"d":"$0.00"}}]
["MMA",null,null,2016,"2016-12-31","Q1","2017-03-31","Region 5","Non-Operating Expense","Income Tax Expense","Income Tax Expense","16.0","Income Tax Expense",{"$f":"IFERROR('MMA Rev-Exp Region 5'!$D$106/'MMA Rev-Exp Region 5'!$D$9, 0)","v":{"v":0,"d":"$0.00"}}]
["MMA",null,null,2016,"2016-12-31","Q2","2017-06-30","Region 5","Operating Revenue","Capitation","Capitation",1.1,"Capitation",{"$f":"IFERROR('MMA Rev-Exp Region 5'!$O$11/'MMA Rev-Exp Region 5'!$O$9, 0)","v":{"v":0,"d":"$0.00"}},{"$f":"IFERROR('MMA Rev-Exp Region 5'!$P$11/'MMA Rev-Exp Region 5'!$P$9, 0)","v":{"v":0,"d":"$0.00"}},{"$f":"IFERROR('MMA Rev-Exp Region 5'!$Q$11/'MMA Rev-Exp Region 5'!$Q$9, 0)","v":{"v":0,"d":"$0.00"}},{"$f":"IFERROR('MMA Rev-Exp Region 5'!$R$11/'MMA Rev-Exp Region 5'!$R$9, 0)","v":{"v":0,"d":"$0.00"}},{"$f":"IFERROR('MMA Rev-Exp Region 5'!$S$11/'MMA Rev-Exp Region 5'!$S$9, 0)","v":{"v":0,"d":"$0.00"}},{"$f":"IFERROR('MMA Rev-Exp Region 5'!$T$11/'MMA Rev-Exp Region 5'!$T$9, 0)","v":{"v":0,"d":"$0.00"}},{"$f":"IFERROR('MMA Rev-Exp Region 5'!$U$11/'MMA Rev-Exp Region 5'!$U$9, 0)","v":{"v":0,"d":"$0.00"}},{"$f":"IFERROR('MMA Rev-Exp Region 5'!$V$11/'MMA Rev-Exp Region 5'!$V$9, 0)","v":{"v":0,"d":"$0.00"}},{"$f":"IFERROR('MMA Rev-Exp Region 5'!$W$11/'MMA Rev-Exp Region 5'!$W$9, 0)","v":{"v":0,"d":"$0.00"}},{"$f":"IFERROR('MMA Rev-Exp Region 5'!$X$11/'MMA Rev-Exp Region 5'!$X$9, 0)","v":{"v":0,"d":"$0.00"}},{"$f":"IFERROR('MMA Rev-Exp Region 5'!$Y$11/'MMA Rev-Exp Region 5'!$Y$9, 0)","v":{"v":0,"d":"$0.00"}}]
["MMA",null,null,2016,"2016-12-31","Q2","2017-06-30","Region 5","Operating Revenue","Kick Payments","Kick Payments - Transplant",1.2,"Transplant Kick Payments",{"$f":"IFERROR('MMA Rev-Exp Region 5'!$O$12/'MMA Rev-Exp Region 5'!$O$9, 0)","v":{"v":0,"d":"$0.00"}},{"$f":"IFERROR('MMA Rev-Exp Region 5'!$P$12/'MMA Rev-Exp Region 5'!$P$9, 0)","v":{"v":0,"d":"$0.00"}},{"$f":"IFERROR('MMA Rev-Exp Region 5'!$Q$12/'MMA Rev-Exp Region 5'!$Q$9, 0)","v":{"v":0,"d":"$0.00"}},{"$f":"IFERROR('MMA Rev-Exp Region 5'!$R$12/'MMA Rev-Exp Region 5'!$R$9, 0)","v":{"v":0,"d":"$0.00"}},{"$f":"IFERROR('MMA Rev-Exp Region 5'!$S$12/'MMA Rev-Exp Region 5'!$S$9, 0)","v":{"v":0,"d":"$0.00"}},{"$f":"IFERROR('MMA Rev-Exp Region 5'!$T$12/'MMA Rev-Exp Region 5'!$T$9, 0)","v":{"v":0,"d":"$0.00"}},{"$f":"IFERROR('MMA Rev-Exp Region 5'!$U$12/'MMA Rev-Exp Region 5'!$U$9, 0)","v":{"v":0,"d":"$0.00"}},{"$f":"IFERROR('MMA Rev-Exp Region 5'!$V$12/'MMA Rev-Exp Region 5'!$V$9, 0)","v":{"v":0,"d":"$0.00"}},{"$f":"IFERROR('MMA Rev-Exp Region 5'!$W$12/'MMA Rev-Exp Region 5'!$W$9, 0)","v":{"v":0,"d":"$0.00"}},{"$f":"IFERROR('MMA Rev-Exp Region 5'!$X$12/'MMA Rev-Exp Region 5'!$X$9, 0)","v":{"v":0,"d":"$0.00"}},{"$f":"IFERROR('MMA Rev-Exp Region 5'!$Y$12/'MMA Rev-Exp Region 5'!$Y$9, 0)","v":{"v":0,"d":"$0.00"}}]
["MMA",null,null,2016,"2016-12-31","Q2","2017-06-30","Region 5","Operating Revenue","Kick Payments","Kick Payments - Hep C","1.3","Hepatitis C Kick Payments",{"$f":"IFERROR('MMA Rev-Exp Region 5'!$O$13/'MMA Rev-Exp Region 5'!$O$9, 0)","v":{"v":0,"d":"$0.00"}},{"$f":"IFERROR('MMA Rev-Exp Region 5'!$P$13/'MMA Rev-Exp Region 5'!$P$9, 0)","v":{"v":0,"d":"$0.00"}},{"$f":"IFERROR('MMA Rev-Exp Region 5'!$Q$13/'MMA Rev-Exp Region 5'!$Q$9, 0)","v":{"v":0,"d":"$0.00"}},{"$f":"IFERROR('MMA Rev-Exp Region 5'!$R$13/'MMA Rev-Exp Region 5'!$R$9, 0)","v":{"v":0,"d":"$0.00"}},{"$f":"IFERROR('MMA Rev-Exp Region 5'!$S$13/'MMA Rev-Exp Region 5'!$S$9, 0)","v":{"v":0,"d":"$0.00"}},{"$f":"IFERROR('MMA Rev-Exp Region 5'!$T$13/'MMA Rev-Exp Region 5'!$T$9, 0)","v":{"v":0,"d":"$0.00"}},{"$f":"IFERROR('MMA Rev-Exp Region 5'!$U$13/'MMA Rev-Exp Region 5'!$U$9, 0)","v":{"v":0,"d":"$0.00"}},{"$f":"IFERROR('MMA Rev-Exp Region 5'!$V$13/'MMA Rev-Exp Region 5'!$V$9, 0)","v":{"v":0,"d":"$0.00"}},{"$f":"IFERROR('MMA Rev-Exp Region 5'!$W$13/'MMA Rev-Exp Region 5'!$W$9, 0)","v":{"v":0,"d":"$0.00"}},{"$f":"IFERROR('MMA Rev-Exp Region 5'!$X$13/'MMA Rev-Exp Region 5'!$X$9, 0)","v":{"v":0,"d":"$0.00"}},{"$f":"IFERROR('MMA Rev-Exp Region 5'!$Y$13/'MMA Rev-Exp Region 5'!$Y$9, 0)","v":{"v":0,"d":"$0.00"}}]
["MMA",null,null,2016,"2016-12-31","Q2","2017-06-30","Region 5","Operating Revenue","Kick Payments","Kick Payments - Maternity","1.4.1","Maternity Kick Payments",{"$f":"IFERROR('MMA Rev-Exp Region 5'!$O$14/'MMA Rev-Exp Region 5'!$O$9, 0)","v":{"v":0,"d":"$0.00"}},{"$f":"IFERROR('MMA Rev-Exp Region 5'!$P$14/'MMA Rev-Exp Region 5'!$P$9, 0)","v":{"v":0,"d":"$0.00"}},{"$f":"IFERROR('MMA Rev-Exp Region 5'!$Q$14/'MMA Rev-Exp Region 5'!$Q$9, 0)","v":{"v":0,"d":"$0.00"}},{"$f":"IFERROR('MMA Rev-Exp Region 5'!$R$14/'MMA Rev-Exp Region 5'!$R$9, 0)","v":{"v":0,"d":"$0.00"}},{"$f":"IFERROR('MMA Rev-Exp Region 5'!$S$14/'MMA Rev-Exp Region 5'!$S$9, 0)","v":{"v":0,"d":"$0.00"}},{"$f":"IFERROR('MMA Rev-Exp Region 5'!$T$14/'MMA Rev-Exp Region 5'!$T$9, 0)","v":{"v":0,"d":"$0.00"}},{"$f":"IFERROR('MMA Rev-Exp Region 5'!$U$14/'MMA Rev-Exp Region 5'!$U$9, 0)","v":{"v":0,"d":"$0.00"}},{"$f":"IFERROR('MMA Rev-Exp Region 5'!$V$14/'MMA Rev-Exp Region 5'!$V$9, 0)","v":{"v":0,"d":"$0.00"}},{"$f":"IFERROR('MMA Rev-Exp Region 5'!$W$14/'MMA Rev-Exp Region 5'!$W$9, 0)","v":{"v":0,"d":"$0.00"}},{"$f":"IFERROR('MMA Rev-Exp Region 5'!$X$14/'MMA Rev-Exp Region 5'!$X$9, 0)","v":{"v":0,"d":"$0.00"}},{"$f":"IFERROR('MMA Rev-Exp Region 5'!$Y$14/'MMA Rev-Exp Region 5'!$Y$9, 0)","v":{"v":0,"d":"$0.00"}}]
["MMA",null,null,2016,"2016-12-31","Q2","2017-06-30","Region 5","Operating Revenue","Other Revenue","Other Revenue - 9010","1.5","ACA § 9010 related payments",{"$f":"IFERROR('MMA Rev-Exp Region 5'!$O$15/'MMA Rev-Exp Region 5'!$O$9, 0)","v":{"v":0,"d":"$0.00"}},{"$f":"IFERROR('MMA Rev-Exp Region 5'!$P$15/'MMA Rev-Exp Region 5'!$P$9, 0)","v":{"v":0,"d":"$0.00"}},{"$f":"IFERROR('MMA Rev-Exp Region 5'!$Q$15/'MMA Rev-Exp Region 5'!$Q$9, 0)","v":{"v":0,"d":"$0.00"}},{"$f":"IFERROR('MMA Rev-Exp Region 5'!$R$15/'MMA Rev-Exp Region 5'!$R$9, 0)","v":{"v":0,"d":"$0.00"}},{"$f":"IFERROR('MMA Rev-Exp Region 5'!$S$15/'MMA Rev-Exp Region 5'!$S$9, 0)","v":{"v":0,"d":"$0.00"}},{"$f":"IFERROR('MMA Rev-Exp Region 5'!$T$15/'MMA Rev-Exp Region 5'!$T$9, 0)","v":{"v":0,"d":"$0.00"}},{"$f":"IFERROR('MMA Rev-Exp Region 5'!$U$15/'MMA Rev-Exp Region 5'!$U$9, 0)","v":{"v":0,"d":"$0.00"}},{"$f":"IFERROR('MMA Rev-Exp Region 5'!$V$15/'MMA Rev-Exp Region 5'!$V$9, 0)","v":{"v":0,"d":"$0.00"}},{"$f":"IFERROR('MMA Rev-Exp Region 5'!$W$15/'MMA Rev-Exp Region 5'!$W$9, 0)","v":{"v":0,"d":"$0.00"}},{"$f":"IFERROR('MMA Rev-Exp Region 5'!$X$15/'MMA Rev-Exp Region 5'!$X$9, 0)","v":{"v":0,"d":"$0.00"}},{"$f":"IFERROR('MMA Rev-Exp Region 5'!$Y$15/'MMA Rev-Exp Region 5'!$Y$9, 0)","v":{"v":0,"d":"$0.00"}}]
["MMA",null,null,2016,"2016-12-31","Q2","2017-06-30","Region 5","Operating Revenue","Other Revenue","Other Revenue","1.6","Other Revenue",{"$f":"IFERROR('MMA Rev-Exp Region 5'!$O$16/'MMA Rev-Exp Region 5'!$O$9, 0)","v":{"v":0,"d":"$0.00"}},{"$f":"IFERROR('MMA Rev-Exp Region 5'!$P$16/'MMA Rev-Exp Region 5'!$P$9, 0)","v":{"v":0,"d":"$0.00"}},{"$f":"IFERROR('MMA Rev-Exp Region 5'!$Q$16/'MMA Rev-Exp Region 5'!$Q$9, 0)","v":{"v":0,"d":"$0.00"}},{"$f":"IFERROR('MMA Rev-Exp Region 5'!$R$16/'MMA Rev-Exp Region 5'!$R$9, 0)","v":{"v":0,"d":"$0.00"}},{"$f":"IFERROR('MMA Rev-Exp Region 5'!$S$16/'MMA Rev-Exp Region 5'!$S$9, 0)","v":{"v":0,"d":"$0.00"}},{"$f":"IFERROR('MMA Rev-Exp Region 5'!$T$16/'MMA Rev-Exp Region 5'!$T$9, 0)","v":{"v":0,"d":"$0.00"}},{"$f":"IFERROR('MMA Rev-Exp Region 5'!$U$16/'MMA Rev-Exp Region 5'!$U$9, 0)","v":{"v":0,"d":"$0.00"}},{"$f":"IFERROR('MMA Rev-Exp Region 5'!$V$16/'MMA Rev-Exp Region 5'!$V$9, 0)","v":{"v":0,"d":"$0.00"}},{"$f":"IFERROR('MMA Rev-Exp Region 5'!$W$16/'MMA Rev-Exp Region 5'!$W$9, 0)","v":{"v":0,"d":"$0.00"}},{"$f":"IFERROR('MMA Rev-Exp Region 5'!$X$16/'MMA Rev-Exp Region 5'!$X$9, 0)","v":{"v":0,"d":"$0.00"}},{"$f":"IFERROR('MMA Rev-Exp Region 5'!$Y$16/'MMA Rev-Exp Region 5'!$Y$9, 0)","v":{"v":0,"d":"$0.00"}}]
["MMA",null,null,2016,"2016-12-31","Q2","2017-06-30","Region 5","Operating Expense","Medical Benefits Expense","Hospital Services",2.1,"Inpatient FFS",{"$f":"IFERROR('MMA Rev-Exp Region 5'!$O$20/'MMA Rev-Exp Region 5'!$O$9, 0)","v":{"v":0,"d":"$0.00"}},{"$f":"IFERROR('MMA Rev-Exp Region 5'!$P$20/'MMA Rev-Exp Region 5'!$P$9, 0)","v":{"v":0,"d":"$0.00"}},{"$f":"IFERROR('MMA Rev-Exp Region 5'!$Q$20/'MMA Rev-Exp Region 5'!$Q$9, 0)","v":{"v":0,"d":"$0.00"}},{"$f":"IFERROR('MMA Rev-Exp Region 5'!$R$20/'MMA Rev-Exp Region 5'!$R$9, 0)","v":{"v":0,"d":"$0.00"}},{"$f":"IFERROR('MMA Rev-Exp Region 5'!$S$20/'MMA Rev-Exp Region 5'!$S$9, 0)","v":{"v":0,"d":"$0.00"}},{"$f":"IFERROR('MMA Rev-Exp Region 5'!$T$20/'MMA Rev-Exp Region 5'!$T$9, 0)","v":{"v":0,"d":"$0.00"}},{"$f":"IFERROR('MMA Rev-Exp Region 5'!$U$20/'MMA Rev-Exp Region 5'!$U$9, 0)","v":{"v":0,"d":"$0.00"}},{"$f":"IFERROR('MMA Rev-Exp Region 5'!$V$20/'MMA Rev-Exp Region 5'!$V$9, 0)","v":{"v":0,"d":"$0.00"}},{"$f":"IFERROR('MMA Rev-Exp Region 5'!$W$20/'MMA Rev-Exp Region 5'!$W$9, 0)","v":{"v":0,"d":"$0.00"}},{"$f":"IFERROR('MMA Rev-Exp Region 5'!$X$20/'MMA Rev-Exp Region 5'!$X$9, 0)","v":{"v":0,"d":"$0.00"}},{"$f":"IFERROR('MMA Rev-Exp Region 5'!$Y$20/'MMA Rev-Exp Region 5'!$Y$9, 0)","v":{"v":0,"d":"$0.00"}}]
["MMA",null,null,2016,"2016-12-31","Q2","2017-06-30","Region 5","Operating Expense","Medical Benefits Expense","Hospital Services",2.2,"Ending IBNP for Inpatient Hospital Services",{"$f":"IFERROR('MMA Rev-Exp Region 5'!$O$21/'MMA Rev-Exp Region 5'!$O$9, 0)","v":{"v":0,"d":"$0.00"}},{"$f":"IFERROR('MMA Rev-Exp Region 5'!$P$21/'MMA Rev-Exp Region 5'!$P$9, 0)","v":{"v":0,"d":"$0.00"}},{"$f":"IFERROR('MMA Rev-Exp Region 5'!$Q$21/'MMA Rev-Exp Region 5'!$Q$9, 0)","v":{"v":0,"d":"$0.00"}},{"$f":"IFERROR('MMA Rev-Exp Region 5'!$R$21/'MMA Rev-Exp Region 5'!$R$9, 0)","v":{"v":0,"d":"$0.00"}},{"$f":"IFERROR('MMA Rev-Exp Region 5'!$S$21/'MMA Rev-Exp Region 5'!$S$9, 0)","v":{"v":0,"d":"$0.00"}},{"$f":"IFERROR('MMA Rev-Exp Region 5'!$T$21/'MMA Rev-Exp Region 5'!$T$9, 0)","v":{"v":0,"d":"$0.00"}},{"$f":"IFERROR('MMA Rev-Exp Region 5'!$U$21/'MMA Rev-Exp Region 5'!$U$9, 0)","v":{"v":0,"d":"$0.00"}},{"$f":"IFERROR('MMA Rev-Exp Region 5'!$V$21/'MMA Rev-Exp Region 5'!$V$9, 0)","v":{"v":0,"d":"$0.00"}},{"$f":"IFERROR('MMA Rev-Exp Region 5'!$W$21/'MMA Rev-Exp Region 5'!$W$9, 0)","v":{"v":0,"d":"$0.00"}},{"$f":"IFERROR('MMA Rev-Exp Region 5'!$X$21/'MMA Rev-Exp Region 5'!$X$9, 0)","v":{"v":0,"d":"$0.00"}},{"$f":"IFERROR('MMA Rev-Exp Region 5'!$Y$21/'MMA Rev-Exp Region 5'!$Y$9, 0)","v":{"v":0,"d":"$0.00"}}]
["MMA",null,null,2016,"2016-12-31","Q2","2017-06-30","Region 5","Operating Expense","Medical Benefits Expense","Hospital Services",2.3,"Outpatient FFS: ER",{"$f":"IFERROR('MMA Rev-Exp Region 5'!$O$22/'MMA Rev-Exp Region 5'!$O$9, 0)","v":{"v":0,"d":"$0.00"}},{"$f":"IFERROR('MMA Rev-Exp Region 5'!$P$22/'MMA Rev-Exp Region 5'!$P$9, 0)","v":{"v":0,"d":"$0.00"}},{"$f":"IFERROR('MMA Rev-Exp Region 5'!$Q$22/'MMA Rev-Exp Region 5'!$Q$9, 0)","v":{"v":0,"d":"$0.00"}},{"$f":"IFERROR('MMA Rev-Exp Region 5'!$R$22/'MMA Rev-Exp Region 5'!$R$9, 0)","v":{"v":0,"d":"$0.00"}},{"$f":"IFERROR('MMA Rev-Exp Region 5'!$S$22/'MMA Rev-Exp Region 5'!$S$9, 0)","v":{"v":0,"d":"$0.00"}},{"$f":"IFERROR('MMA Rev-Exp Region 5'!$T$22/'MMA Rev-Exp Region 5'!$T$9, 0)","v":{"v":0,"d":"$0.00"}},{"$f":"IFERROR('MMA Rev-Exp Region 5'!$U$22/'MMA Rev-Exp Region 5'!$U$9, 0)","v":{"v":0,"d":"$0.00"}},{"$f":"IFERROR('MMA Rev-Exp Region 5'!$V$22/'MMA Rev-Exp Region 5'!$V$9, 0)","v":{"v":0,"d":"$0.00"}},{"$f":"IFERROR('MMA Rev-Exp Region 5'!$W$22/'MMA Rev-Exp Region 5'!$W$9, 0)","v":{"v":0,"d":"$0.00"}},{"$f":"IFERROR('MMA Rev-Exp Region 5'!$X$22/'MMA Rev-Exp Region 5'!$X$9, 0)","v":{"v":0,"d":"$0.00"}},{"$f":"IFERROR('MMA Rev-Exp Region 5'!$Y$22/'MMA Rev-Exp Region 5'!$Y$9, 0)","v":{"v":0,"d":"$0.00"}}]
["MMA",null,null,2016,"2016-12-31","Q2","2017-06-30","Region 5","Operating Expense","Medical Benefits Expense","Hospital Services",2.4,"Outpatient FFS: Other than ER ",{"$f":"IFERROR('MMA Rev-Exp Region 5'!$O$23/'MMA Rev-Exp Region 5'!$O$9, 0)","v":{"v":0,"d":"$0.00"}},{"$f":"IFERROR('MMA Rev-Exp Region 5'!$P$23/'MMA Rev-Exp Region 5'!$P$9, 0)","v":{"v":0,"d":"$0.00"}},{"$f":"IFERROR('MMA Rev-Exp Region 5'!$Q$23/'MMA Rev-Exp Region 5'!$Q$9, 0)","v":{"v":0,"d":"$0.00"}},{"$f":"IFERROR('MMA Rev-Exp Region 5'!$R$23/'MMA Rev-Exp Region 5'!$R$9, 0)","v":{"v":0,"d":"$0.00"}},{"$f":"IFERROR('MMA Rev-Exp Region 5'!$S$23/'MMA Rev-Exp Region 5'!$S$9, 0)","v":{"v":0,"d":"$0.00"}},{"$f":"IFERROR('MMA Rev-Exp Region 5'!$T$23/'MMA Rev-Exp Region 5'!$T$9, 0)","v":{"v":0,"d":"$0.00"}},{"$f":"IFERROR('MMA Rev-Exp Region 5'!$U$23/'MMA Rev-Exp Region 5'!$U$9, 0)","v":{"v":0,"d":"$0.00"}},{"$f":"IFERROR('MMA Rev-Exp Region 5'!$V$23/'MMA Rev-Exp Region 5'!$V$9, 0)","v":{"v":0,"d":"$0.00"}},{"$f":"IFERROR('MMA Rev-Exp Region 5'!$W$23/'MMA Rev-Exp Region 5'!$W$9, 0)","v":{"v":0,"d":"$0.00"}},{"$f":"IFERROR('MMA Rev-Exp Region 5'!$X$23/'MMA Rev-Exp Region 5'!$X$9, 0)","v":{"v":0,"d":"$0.00"}},{"$f":"IFERROR('MMA Rev-Exp Region 5'!$Y$23/'MMA Rev-Exp Region 5'!$Y$9, 0)","v":{"v":0,"d":"$0.00"}}]
["MMA",null,null,2016,"2016-12-31","Q2","2017-06-30","Region 5","Operating Expense","Medical Benefits Expense","Hospital Services",2.5,"Ending IBNP for Outpatient Hospital Services",{"$f":"IFERROR('MMA Rev-Exp Region 5'!$O$24/'MMA Rev-Exp Region 5'!$O$9, 0)","v":{"v":0,"d":"$0.00"}},{"$f":"IFERROR('MMA Rev-Exp Region 5'!$P$24/'MMA Rev-Exp Region 5'!$P$9, 0)","v":{"v":0,"d":"$0.00"}},{"$f":"IFERROR('MMA Rev-Exp Region 5'!$Q$24/'MMA Rev-Exp Region 5'!$Q$9, 0)","v":{"v":0,"d":"$0.00"}},{"$f":"IFERROR('MMA Rev-Exp Region 5'!$R$24/'MMA Rev-Exp Region 5'!$R$9, 0)","v":{"v":0,"d":"$0.00"}},{"$f":"IFERROR('MMA Rev-Exp Region 5'!$S$24/'MMA Rev-Exp Region 5'!$S$9, 0)","v":{"v":0,"d":"$0.00"}},{"$f":"IFERROR('MMA Rev-Exp Region 5'!$T$24/'MMA Rev-Exp Region 5'!$T$9, 0)","v":{"v":0,"d":"$0.00"}},{"$f":"IFERROR('MMA Rev-Exp Region 5'!$U$24/'MMA Rev-Exp Region 5'!$U$9, 0)","v":{"v":0,"d":"$0.00"}},{"$f":"IFERROR('MMA Rev-Exp Region 5'!$V$24/'MMA Rev-Exp Region 5'!$V$9, 0)","v":{"v":0,"d":"$0.00"}},{"$f":"IFERROR('MMA Rev-Exp Region 5'!$W$24/'MMA Rev-Exp Region 5'!$W$9, 0)","v":{"v":0,"d":"$0.00"}},{"$f":"IFERROR('MMA Rev-Exp Region 5'!$X$24/'MMA Rev-Exp Region 5'!$X$9, 0)","v":{"v":0,"d":"$0.00"}},{"$f":"IFERROR('MMA Rev-Exp Region 5'!$Y$24/'MMA Rev-Exp Region 5'!$Y$9, 0)","v":{"v":0,"d":"$0.00"}}]
["MMA",null,null,2016,"2016-12-31","Q2","2017-06-30","Region 5","Operating Expense","Medical Benefits Expense","Hospital Services","2.6","Subcapitated Hospital Services",{"$f":"IFERROR('MMA Rev-Exp Region 5'!$O$25/'MMA Rev-Exp Region 5'!$O$9, 0)","v":{"v":0,"d":"$0.00"}},{"$f":"IFERROR('MMA Rev-Exp Region 5'!$P$25/'MMA Rev-Exp Region 5'!$P$9, 0)","v":{"v":0,"d":"$0.00"}},{"$f":"IFERROR('MMA Rev-Exp Region 5'!$Q$25/'MMA Rev-Exp Region 5'!$Q$9, 0)","v":{"v":0,"d":"$0.00"}},{"$f":"IFERROR('MMA Rev-Exp Region 5'!$R$25/'MMA Rev-Exp Region 5'!$R$9, 0)","v":{"v":0,"d":"$0.00"}},{"$f":"IFERROR('MMA Rev-Exp Region 5'!$S$25/'MMA Rev-Exp Region 5'!$S$9, 0)","v":{"v":0,"d":"$0.00"}},{"$f":"IFERROR('MMA Rev-Exp Region 5'!$T$25/'MMA Rev-Exp Region 5'!$T$9, 0)","v":{"v":0,"d":"$0.00"}},{"$f":"IFERROR('MMA Rev-Exp Region 5'!$U$25/'MMA Rev-Exp Region 5'!$U$9, 0)","v":{"v":0,"d":"$0.00"}},{"$f":"IFERROR('MMA Rev-Exp Region 5'!$V$25/'MMA Rev-Exp Region 5'!$V$9, 0)","v":{"v":0,"d":"$0.00"}},{"$f":"IFERROR('MMA Rev-Exp Region 5'!$W$25/'MMA Rev-Exp Region 5'!$W$9, 0)","v":{"v":0,"d":"$0.00"}},{"$f":"IFERROR('MMA Rev-Exp Region 5'!$X$25/'MMA Rev-Exp Region 5'!$X$9, 0)","v":{"v":0,"d":"$0.00"}},{"$f":"IFERROR('MMA Rev-Exp Region 5'!$Y$25/'MMA Rev-Exp Region 5'!$Y$9, 0)","v":{"v":0,"d":"$0.00"}}]
["MMA",null,null,2016,"2016-12-31","Q2","2017-06-30","Region 5","Operating Expense","Medical Benefits Expense","Hospital Services","2.7","Hospital Settlements",{"$f":"IFERROR('MMA Rev-Exp Region 5'!$O$26/'MMA Rev-Exp Region 5'!$O$9, 0)","v":{"v":0,"d":"$0.00"}},{"$f":"IFERROR('MMA Rev-Exp Region 5'!$P$26/'MMA Rev-Exp Region 5'!$P$9, 0)","v":{"v":0,"d":"$0.00"}},{"$f":"IFERROR('MMA Rev-Exp Region 5'!$Q$26/'MMA Rev-Exp Region 5'!$Q$9, 0)","v":{"v":0,"d":"$0.00"}},{"$f":"IFERROR('MMA Rev-Exp Region 5'!$R$26/'MMA Rev-Exp Region 5'!$R$9, 0)","v":{"v":0,"d":"$0.00"}},{"$f":"IFERROR('MMA Rev-Exp Region 5'!$S$26/'MMA Rev-Exp Region 5'!$S$9, 0)","v":{"v":0,"d":"$0.00"}},{"$f":"IFERROR('MMA Rev-Exp Region 5'!$T$26/'MMA Rev-Exp Region 5'!$T$9, 0)","v":{"v":0,"d":"$0.00"}},{"$f":"IFERROR('MMA Rev-Exp Region 5'!$U$26/'MMA Rev-Exp Region 5'!$U$9, 0)","v":{"v":0,"d":"$0.00"}},{"$f":"IFERROR('MMA Rev-Exp Region 5'!$V$26/'MMA Rev-Exp Region 5'!$V$9, 0)","v":{"v":0,"d":"$0.00"}},{"$f":"IFERROR('MMA Rev-Exp Region 5'!$W$26/'MMA Rev-Exp Region 5'!$W$9, 0)","v":{"v":0,"d":"$0.00"}},{"$f":"IFERROR('MMA Rev-Exp Region 5'!$X$26/'MMA Rev-Exp Region 5'!$X$9, 0)","v":{"v":0,"d":"$0.00"}},{"$f":"IFERROR('MMA Rev-Exp Region 5'!$Y$26/'MMA Rev-Exp Region 5'!$Y$9, 0)","v":{"v":0,"d":"$0.00"}}]
["MMA",null,null,2016,"2016-12-31","Q2","2017-06-30","Region 5","Operating Expense","Medical Benefits Expense","Hospital Services","2.7.1","Transplant Services",{"$f":"IFERROR('MMA Rev-Exp Region 5'!$O$27/'MMA Rev-Exp Region 5'!$O$9, 0)","v":{"v":0,"d":"$0.00"}},{"$f":"IFERROR('MMA Rev-Exp Region 5'!$P$27/'MMA Rev-Exp Region 5'!$P$9, 0)","v":{"v":0,"d":"$0.00"}},{"$f":"IFERROR('MMA Rev-Exp Region 5'!$Q$27/'MMA Rev-Exp Region 5'!$Q$9, 0)","v":{"v":0,"d":"$0.00"}},{"$f":"IFERROR('MMA Rev-Exp Region 5'!$R$27/'MMA Rev-Exp Region 5'!$R$9, 0)","v":{"v":0,"d":"$0.00"}},{"$f":"IFERROR('MMA Rev-Exp Region 5'!$S$27/'MMA Rev-Exp Region 5'!$S$9, 0)","v":{"v":0,"d":"$0.00"}},{"$f":"IFERROR('MMA Rev-Exp Region 5'!$T$27/'MMA Rev-Exp Region 5'!$T$9, 0)","v":{"v":0,"d":"$0.00"}},{"$f":"IFERROR('MMA Rev-Exp Region 5'!$U$27/'MMA Rev-Exp Region 5'!$U$9, 0)","v":{"v":0,"d":"$0.00"}},{"$f":"IFERROR('MMA Rev-Exp Region 5'!$V$27/'MMA Rev-Exp Region 5'!$V$9, 0)","v":{"v":0,"d":"$0.00"}},{"$f":"IFERROR('MMA Rev-Exp Region 5'!$W$27/'MMA Rev-Exp Region 5'!$W$9, 0)","v":{"v":0,"d":"$0.00"}},{"$f":"IFERROR('MMA Rev-Exp Region 5'!$X$27/'MMA Rev-Exp Region 5'!$X$9, 0)","v":{"v":0,"d":"$0.00"}},{"$f":"IFERROR('MMA Rev-Exp Region 5'!$Y$27/'MMA Rev-Exp Region 5'!$Y$9, 0)","v":{"v":0,"d":"$0.00"}}]
["MMA",null,null,2016,"2016-12-31","Q2","2017-06-30","Region 5","Operating Expense","Medical Benefits Expense","Professional Services",3.1,"Primary Care FFS",{"$f":"IFERROR('MMA Rev-Exp Region 5'!$O$29/'MMA Rev-Exp Region 5'!$O$9, 0)","v":{"v":0,"d":"$0.00"}},{"$f":"IFERROR('MMA Rev-Exp Region 5'!$P$29/'MMA Rev-Exp Region 5'!$P$9, 0)","v":{"v":0,"d":"$0.00"}},{"$f":"IFERROR('MMA Rev-Exp Region 5'!$Q$29/'MMA Rev-Exp Region 5'!$Q$9, 0)","v":{"v":0,"d":"$0.00"}},{"$f":"IFERROR('MMA Rev-Exp Region 5'!$R$29/'MMA Rev-Exp Region 5'!$R$9, 0)","v":{"v":0,"d":"$0.00"}},{"$f":"IFERROR('MMA Rev-Exp Region 5'!$S$29/'MMA Rev-Exp Region 5'!$S$9, 0)","v":{"v":0,"d":"$0.00"}},{"$f":"IFERROR('MMA Rev-Exp Region 5'!$T$29/'MMA Rev-Exp Region 5'!$T$9, 0)","v":{"v":0,"d":"$0.00"}},{"$f":"IFERROR('MMA Rev-Exp Region 5'!$U$29/'MMA Rev-Exp Region 5'!$U$9, 0)","v":{"v":0,"d":"$0.00"}},{"$f":"IFERROR('MMA Rev-Exp Region 5'!$V$29/'MMA Rev-Exp Region 5'!$V$9, 0)","v":{"v":0,"d":"$0.00"}},{"$f":"IFERROR('MMA Rev-Exp Region 5'!$W$29/'MMA Rev-Exp Region 5'!$W$9, 0)","v":{"v":0,"d":"$0.00"}},{"$f":"IFERROR('MMA Rev-Exp Region 5'!$X$29/'MMA Rev-Exp Region 5'!$X$9, 0)","v":{"v":0,"d":"$0.00"}},{"$f":"IFERROR('MMA Rev-Exp Region 5'!$Y$29/'MMA Rev-Exp Region 5'!$Y$9, 0)","v":{"v":0,"d":"$0.00"}}]
["MMA",null,null,2016,"2016-12-31","Q2","2017-06-30","Region 5","Operating Expense","Medical Benefits Expense","Professional Services",3.2,"Specialty Care FFS",{"$f":"IFERROR('MMA Rev-Exp Region 5'!$O$30/'MMA Rev-Exp Region 5'!$O$9, 0)","v":{"v":0,"d":"$0.00"}},{"$f":"IFERROR('MMA Rev-Exp Region 5'!$P$30/'MMA Rev-Exp Region 5'!$P$9, 0)","v":{"v":0,"d":"$0.00"}},{"$f":"IFERROR('MMA Rev-Exp Region 5'!$Q$30/'MMA Rev-Exp Region 5'!$Q$9, 0)","v":{"v":0,"d":"$0.00"}},{"$f":"IFERROR('MMA Rev-Exp Region 5'!$R$30/'MMA Rev-Exp Region 5'!$R$9, 0)","v":{"v":0,"d":"$0.00"}},{"$f":"IFERROR('MMA Rev-Exp Region 5'!$S$30/'MMA Rev-Exp Region 5'!$S$9, 0)","v":{"v":0,"d":"$0.00"}},{"$f":"IFERROR('MMA Rev-Exp Region 5'!$T$30/'MMA Rev-Exp Region 5'!$T$9, 0)","v":{"v":0,"d":"$0.00"}},{"$f":"IFERROR('MMA Rev-Exp Region 5'!$U$30/'MMA Rev-Exp Region 5'!$U$9, 0)","v":{"v":0,"d":"$0.00"}},{"$f":"IFERROR('MMA Rev-Exp Region 5'!$V$30/'MMA Rev-Exp Region 5'!$V$9, 0)","v":{"v":0,"d":"$0.00"}},{"$f":"IFERROR('MMA Rev-Exp Region 5'!$W$30/'MMA Rev-Exp Region 5'!$W$9, 0)","v":{"v":0,"d":"$0.00"}},{"$f":"IFERROR('MMA Rev-Exp Region 5'!$X$30/'MMA Rev-Exp Region 5'!$X$9, 0)","v":{"v":0,"d":"$0.00"}},{"$f":"IFERROR('MMA Rev-Exp Region 5'!$Y$30/'MMA Rev-Exp Region 5'!$Y$9, 0)","v":{"v":0,"d":"$0.00"}}]
["MMA",null,null,2016,"2016-12-31","Q2","2017-06-30","Region 5","Operating Expense","Medical Benefits Expense","Professional Services",3.3,"Other Professional FFS",{"$f":"IFERROR('MMA Rev-Exp Region 5'!$O$31/'MMA Rev-Exp Region 5'!$O$9, 0)","v":{"v":0,"d":"$0.00"}},{"$f":"IFERROR('MMA Rev-Exp Region 5'!$P$31/'MMA Rev-Exp Region 5'!$P$9, 0)","v":{"v":0,"d":"$0.00"}},{"$f":"IFERROR('MMA Rev-Exp Region 5'!$Q$31/'MMA Rev-Exp Region 5'!$Q$9, 0)","v":{"v":0,"d":"$0.00"}},{"$f":"IFERROR('MMA Rev-Exp Region 5'!$R$31/'MMA Rev-Exp Region 5'!$R$9, 0)","v":{"v":0,"d":"$0.00"}},{"$f":"IFERROR('MMA Rev-Exp Region 5'!$S$31/'MMA Rev-Exp Region 5'!$S$9, 0)","v":{"v":0,"d":"$0.00"}},{"$f":"IFERROR('MMA Rev-Exp Region 5'!$T$31/'MMA Rev-Exp Region 5'!$T$9, 0)","v":{"v":0,"d":"$0.00"}},{"$f":"IFERROR('MMA Rev-Exp Region 5'!$U$31/'MMA Rev-Exp Region 5'!$U$9, 0)","v":{"v":0,"d":"$0.00"}},{"$f":"IFERROR('MMA Rev-Exp Region 5'!$V$31/'MMA Rev-Exp Region 5'!$V$9, 0)","v":{"v":0,"d":"$0.00"}},{"$f":"IFERROR('MMA Rev-Exp Region 5'!$W$31/'MMA Rev-Exp Region 5'!$W$9, 0)","v":{"v":0,"d":"$0.00"}},{"$f":"IFERROR('MMA Rev-Exp Region 5'!$X$31/'MMA Rev-Exp Region 5'!$X$9, 0)","v":{"v":0,"d":"$0.00"}},{"$f":"IFERROR('MMA Rev-Exp Region 5'!$Y$31/'MMA Rev-Exp Region 5'!$Y$9, 0)","v":{"v":0,"d":"$0.00"}}]
["MMA",null,null,2016,"2016-12-31","Q2","2017-06-30","Region 5","Operating Expense","Medical Benefits Expense","Professional Services","3.4","§ 1202 PCP Payments to providers",{"$f":"IFERROR('MMA Rev-Exp Region 5'!$O$32/'MMA Rev-Exp Region 5'!$O$9, 0)","v":{"v":0,"d":"$0.00"}},{"$f":"IFERROR('MMA Rev-Exp Region 5'!$P$32/'MMA Rev-Exp Region 5'!$P$9, 0)","v":{"v":0,"d":"$0.00"}},{"$f":"IFERROR('MMA Rev-Exp Region 5'!$Q$32/'MMA Rev-Exp Region 5'!$Q$9, 0)","v":{"v":0,"d":"$0.00"}},{"$f":"IFERROR('MMA Rev-Exp Region 5'!$R$32/'MMA Rev-Exp Region 5'!$R$9, 0)","v":{"v":0,"d":"$0.00"}},{"$f":"IFERROR('MMA Rev-Exp Region 5'!$S$32/'MMA Rev-Exp Region 5'!$S$9, 0)","v":{"v":0,"d":"$0.00"}},{"$f":"IFERROR('MMA Rev-Exp Region 5'!$T$32/'MMA Rev-Exp Region 5'!$T$9, 0)","v":{"v":0,"d":"$0.00"}},{"$f":"IFERROR('MMA Rev-Exp Region 5'!$U$32/'MMA Rev-Exp Region 5'!$U$9, 0)","v":{"v":0,"d":"$0.00"}},{"$f":"IFERROR('MMA Rev-Exp Region 5'!$V$32/'MMA Rev-Exp Region 5'!$V$9, 0)","v":{"v":0,"d":"$0.00"}},{"$f":"IFERROR('MMA Rev-Exp Region 5'!$W$32/'MMA Rev-Exp Region 5'!$W$9, 0)","v":{"v":0,"d":"$0.00"}},{"$f":"IFERROR('MMA Rev-Exp Region 5'!$X$32/'MMA Rev-Exp Region 5'!$X$9, 0)","v":{"v":0,"d":"$0.00"}},{"$f":"IFERROR('MMA Rev-Exp Region 5'!$Y$32/'MMA Rev-Exp Region 5'!$Y$9, 0)","v":{"v":0,"d":"$0.00"}}]
["MMA",null,null,2016,"2016-12-31","Q2","2017-06-30","Region 5","Operating Expense","Medical Benefits Expense","Professional Services","3.5","Subcapitated Professional Services",{"$f":"IFERROR('MMA Rev-Exp Region 5'!$O$33/'MMA Rev-Exp Region 5'!$O$9, 0)","v":{"v":0,"d":"$0.00"}},{"$f":"IFERROR('MMA Rev-Exp Region 5'!$P$33/'MMA Rev-Exp Region 5'!$P$9, 0)","v":{"v":0,"d":"$0.00"}},{"$f":"IFERROR('MMA Rev-Exp Region 5'!$Q$33/'MMA Rev-Exp Region 5'!$Q$9, 0)","v":{"v":0,"d":"$0.00"}},{"$f":"IFERROR('MMA Rev-Exp Region 5'!$R$33/'MMA Rev-Exp Region 5'!$R$9, 0)","v":{"v":0,"d":"$0.00"}},{"$f":"IFERROR('MMA Rev-Exp Region 5'!$S$33/'MMA Rev-Exp Region 5'!$S$9, 0)","v":{"v":0,"d":"$0.00"}},{"$f":"IFERROR('MMA Rev-Exp Region 5'!$T$33/'MMA Rev-Exp Region 5'!$T$9, 0)","v":{"v":0,"d":"$0.00"}},{"$f":"IFERROR('MMA Rev-Exp Region 5'!$U$33/'MMA Rev-Exp Region 5'!$U$9, 0)","v":{"v":0,"d":"$0.00"}},{"$f":"IFERROR('MMA Rev-Exp Region 5'!$V$33/'MMA Rev-Exp Region 5'!$V$9, 0)","v":{"v":0,"d":"$0.00"}},{"$f":"IFERROR('MMA Rev-Exp Region 5'!$W$33/'MMA Rev-Exp Region 5'!$W$9, 0)","v":{"v":0,"d":"$0.00"}},{"$f":"IFERROR('MMA Rev-Exp Region 5'!$X$33/'MMA Rev-Exp Region 5'!$X$9, 0)","v":{"v":0,"d":"$0.00"}},{"$f":"IFERROR('MMA Rev-Exp Region 5'!$Y$33/'MMA Rev-Exp Region 5'!$Y$9, 0)","v":{"v":0,"d":"$0.00"}}]
["MMA",null,null,2016,"2016-12-31","Q2","2017-06-30","Region 5","Operating Expense","Medical Benefits Expense","Professional Services","3.6","Ending IBNP for Professional Services",{"$f":"IFERROR('MMA Rev-Exp Region 5'!$O$34/'MMA Rev-Exp Region 5'!$O$9, 0)","v":{"v":0,"d":"$0.00"}},{"$f":"IFERROR('MMA Rev-Exp Region 5'!$P$34/'MMA Rev-Exp Region 5'!$P$9, 0)","v":{"v":0,"d":"$0.00"}},{"$f":"IFERROR('MMA Rev-Exp Region 5'!$Q$34/'MMA Rev-Exp Region 5'!$Q$9, 0)","v":{"v":0,"d":"$0.00"}},{"$f":"IFERROR('MMA Rev-Exp Region 5'!$R$34/'MMA Rev-Exp Region 5'!$R$9, 0)","v":{"v":0,"d":"$0.00"}},{"$f":"IFERROR('MMA Rev-Exp Region 5'!$S$34/'MMA Rev-Exp Region 5'!$S$9, 0)","v":{"v":0,"d":"$0.00"}},{"$f":"IFERROR('MMA Rev-Exp Region 5'!$T$34/'MMA Rev-Exp Region 5'!$T$9, 0)","v":{"v":0,"d":"$0.00"}},{"$f":"IFERROR('MMA Rev-Exp Region 5'!$U$34/'MMA Rev-Exp Region 5'!$U$9, 0)","v":{"v":0,"d":"$0.00"}},{"$f":"IFERROR('MMA Rev-Exp Region 5'!$V$34/'MMA Rev-Exp Region 5'!$V$9, 0)","v":{"v":0,"d":"$0.00"}},{"$f":"IFERROR('MMA Rev-Exp Region 5'!$W$34/'MMA Rev-Exp Region 5'!$W$9, 0)","v":{"v":0,"d":"$0.00"}},{"$f":"IFERROR('MMA Rev-Exp Region 5'!$X$34/'MMA Rev-Exp Region 5'!$X$9, 0)","v":{"v":0,"d":"$0.00"}},{"$f":"IFERROR('MMA Rev-Exp Region 5'!$Y$34/'MMA Rev-Exp Region 5'!$Y$9, 0)","v":{"v":0,"d":"$0.00"}}]
["MMA",null,null,2016,"2016-12-31","Q2","2017-06-30","Region 5","Operating Expense","Medical Benefits Expense","Professional Services","3.7","Professional Services Settlements",{"$f":"IFERROR('MMA Rev-Exp Region 5'!$O$35/'MMA Rev-Exp Region 5'!$O$9, 0)","v":{"v":0,"d":"$0.00"}},{"$f":"IFERROR('MMA Rev-Exp Region 5'!$P$35/'MMA Rev-Exp Region 5'!$P$9, 0)","v":{"v":0,"d":"$0.00"}},{"$f":"IFERROR('MMA Rev-Exp Region 5'!$Q$35/'MMA Rev-Exp Region 5'!$Q$9, 0)","v":{"v":0,"d":"$0.00"}},{"$f":"IFERROR('MMA Rev-Exp Region 5'!$R$35/'MMA Rev-Exp Region 5'!$R$9, 0)","v":{"v":0,"d":"$0.00"}},{"$f":"IFERROR('MMA Rev-Exp Region 5'!$S$35/'MMA Rev-Exp Region 5'!$S$9, 0)","v":{"v":0,"d":"$0.00"}},{"$f":"IFERROR('MMA Rev-Exp Region 5'!$T$35/'MMA Rev-Exp Region 5'!$T$9, 0)","v":{"v":0,"d":"$0.00"}},{"$f":"IFERROR('MMA Rev-Exp Region 5'!$U$35/'MMA Rev-Exp Region 5'!$U$9, 0)","v":{"v":0,"d":"$0.00"}},{"$f":"IFERROR('MMA Rev-Exp Region 5'!$V$35/'MMA Rev-Exp Region 5'!$V$9, 0)","v":{"v":0,"d":"$0.00"}},{"$f":"IFERROR('MMA Rev-Exp Region 5'!$W$35/'MMA Rev-Exp Region 5'!$W$9, 0)","v":{"v":0,"d":"$0.00"}},{"$f":"IFERROR('MMA Rev-Exp Region 5'!$X$35/'MMA Rev-Exp Region 5'!$X$9, 0)","v":{"v":0,"d":"$0.00"}},{"$f":"IFERROR('MMA Rev-Exp Region 5'!$Y$35/'MMA Rev-Exp Region 5'!$Y$9, 0)","v":{"v":0,"d":"$0.00"}}]
["MMA",null,null,2016,"2016-12-31","Q2","2017-06-30","Region 5","Operating Expense","Medical Benefits Expense","Maternity Services","4.1.1","Maternity Services",{"$f":"IFERROR('MMA Rev-Exp Region 5'!$O$37/'MMA Rev-Exp Region 5'!$O$9, 0)","v":{"v":0,"d":"$0.00"}},{"$f":"IFERROR('MMA Rev-Exp Region 5'!$P$37/'MMA Rev-Exp Region 5'!$P$9, 0)","v":{"v":0,"d":"$0.00"}},{"$f":"IFERROR('MMA Rev-Exp Region 5'!$Q$37/'MMA Rev-Exp Region 5'!$Q$9, 0)","v":{"v":0,"d":"$0.00"}},{"$f":"IFERROR('MMA Rev-Exp Region 5'!$R$37/'MMA Rev-Exp Region 5'!$R$9, 0)","v":{"v":0,"d":"$0.00"}},{"$f":"IFERROR('MMA Rev-Exp Region 5'!$S$37/'MMA Rev-Exp Region 5'!$S$9, 0)","v":{"v":0,"d":"$0.00"}},{"$f":"IFERROR('MMA Rev-Exp Region 5'!$T$37/'MMA Rev-Exp Region 5'!$T$9, 0)","v":{"v":0,"d":"$0.00"}},{"$f":"IFERROR('MMA Rev-Exp Region 5'!$U$37/'MMA Rev-Exp Region 5'!$U$9, 0)","v":{"v":0,"d":"$0.00"}},{"$f":"IFERROR('MMA Rev-Exp Region 5'!$V$37/'MMA Rev-Exp Region 5'!$V$9, 0)","v":{"v":0,"d":"$0.00"}},{"$f":"IFERROR('MMA Rev-Exp Region 5'!$W$37/'MMA Rev-Exp Region 5'!$W$9, 0)","v":{"v":0,"d":"$0.00"}},{"$f":"IFERROR('MMA Rev-Exp Region 5'!$X$37/'MMA Rev-Exp Region 5'!$X$9, 0)","v":{"v":0,"d":"$0.00"}},{"$f":"IFERROR('MMA Rev-Exp Region 5'!$Y$37/'MMA Rev-Exp Region 5'!$Y$9, 0)","v":{"v":0,"d":"$0.00"}}]
["MMA",null,null,2016,"2016-12-31","Q2","2017-06-30","Region 5","Operating Expense","Medical Benefits Expense","Maternity Services","4.2.1","Ending IBNP for Maternity Services",{"$f":"IFERROR('MMA Rev-Exp Region 5'!$O$38/'MMA Rev-Exp Region 5'!$O$9, 0)","v":{"v":0,"d":"$0.00"}},{"$f":"IFERROR('MMA Rev-Exp Region 5'!$P$38/'MMA Rev-Exp Region 5'!$P$9, 0)","v":{"v":0,"d":"$0.00"}},{"$f":"IFERROR('MMA Rev-Exp Region 5'!$Q$38/'MMA Rev-Exp Region 5'!$Q$9, 0)","v":{"v":0,"d":"$0.00"}},{"$f":"IFERROR('MMA Rev-Exp Region 5'!$R$38/'MMA Rev-Exp Region 5'!$R$9, 0)","v":{"v":0,"d":"$0.00"}},{"$f":"IFERROR('MMA Rev-Exp Region 5'!$S$38/'MMA Rev-Exp Region 5'!$S$9, 0)","v":{"v":0,"d":"$0.00"}},{"$f":"IFERROR('MMA Rev-Exp Region 5'!$T$38/'MMA Rev-Exp Region 5'!$T$9, 0)","v":{"v":0,"d":"$0.00"}},{"$f":"IFERROR('MMA Rev-Exp Region 5'!$U$38/'MMA Rev-Exp Region 5'!$U$9, 0)","v":{"v":0,"d":"$0.00"}},{"$f":"IFERROR('MMA Rev-Exp Region 5'!$V$38/'MMA Rev-Exp Region 5'!$V$9, 0)","v":{"v":0,"d":"$0.00"}},{"$f":"IFERROR('MMA Rev-Exp Region 5'!$W$38/'MMA Rev-Exp Region 5'!$W$9, 0)","v":{"v":0,"d":"$0.00"}},{"$f":"IFERROR('MMA Rev-Exp Region 5'!$X$38/'MMA Rev-Exp Region 5'!$X$9, 0)","v":{"v":0,"d":"$0.00"}},{"$f":"IFERROR('MMA Rev-Exp Region 5'!$Y$38/'MMA Rev-Exp Region 5'!$Y$9, 0)","v":{"v":0,"d":"$0.00"}}]
["MMA",null,null,2016,"2016-12-31","Q2","2017-06-30","Region 5","Operating Expense","Medical Benefits Expense","Maternity Services","4.3.1","Maternity Settlements",{"$f":"IFERROR('MMA Rev-Exp Region 5'!$O$39/'MMA Rev-Exp Region 5'!$O$9, 0)","v":{"v":0,"d":"$0.00"}},{"$f":"IFERROR('MMA Rev-Exp Region 5'!$P$39/'MMA Rev-Exp Region 5'!$P$9, 0)","v":{"v":0,"d":"$0.00"}},{"$f":"IFERROR('MMA Rev-Exp Region 5'!$Q$39/'MMA Rev-Exp Region 5'!$Q$9, 0)","v":{"v":0,"d":"$0.00"}},{"$f":"IFERROR('MMA Rev-Exp Region 5'!$R$39/'MMA Rev-Exp Region 5'!$R$9, 0)","v":{"v":0,"d":"$0.00"}},{"$f":"IFERROR('MMA Rev-Exp Region 5'!$S$39/'MMA Rev-Exp Region 5'!$S$9, 0)","v":{"v":0,"d":"$0.00"}},{"$f":"IFERROR('MMA Rev-Exp Region 5'!$T$39/'MMA Rev-Exp Region 5'!$T$9, 0)","v":{"v":0,"d":"$0.00"}},{"$f":"IFERROR('MMA Rev-Exp Region 5'!$U$39/'MMA Rev-Exp Region 5'!$U$9, 0)","v":{"v":0,"d":"$0.00"}},{"$f":"IFERROR('MMA Rev-Exp Region 5'!$V$39/'MMA Rev-Exp Region 5'!$V$9, 0)","v":{"v":0,"d":"$0.00"}},{"$f":"IFERROR('MMA Rev-Exp Region 5'!$W$39/'MMA Rev-Exp Region 5'!$W$9, 0)","v":{"v":0,"d":"$0.00"}},{"$f":"IFERROR('MMA Rev-Exp Region 5'!$X$39/'MMA Rev-Exp Region 5'!$X$9, 0)","v":{"v":0,"d":"$0.00"}},{"$f":"IFERROR('MMA Rev-Exp Region 5'!$Y$39/'MMA Rev-Exp Region 5'!$Y$9, 0)","v":{"v":0,"d":"$0.00"}}]
["MMA",null,null,2016,"2016-12-31","Q2","2017-06-30","Region 5","Operating Expense","Medical Benefits Expense","Mental Health Services",5.1,"Mental Health & Substance Abuse FFS",{"$f":"IFERROR('MMA Rev-Exp Region 5'!$O$41/'MMA Rev-Exp Region 5'!$O$9, 0)","v":{"v":0,"d":"$0.00"}},{"$f":"IFERROR('MMA Rev-Exp Region 5'!$P$41/'MMA Rev-Exp Region 5'!$P$9, 0)","v":{"v":0,"d":"$0.00"}},{"$f":"IFERROR('MMA Rev-Exp Region 5'!$Q$41/'MMA Rev-Exp Region 5'!$Q$9, 0)","v":{"v":0,"d":"$0.00"}},{"$f":"IFERROR('MMA Rev-Exp Region 5'!$R$41/'MMA Rev-Exp Region 5'!$R$9, 0)","v":{"v":0,"d":"$0.00"}},{"$f":"IFERROR('MMA Rev-Exp Region 5'!$S$41/'MMA Rev-Exp Region 5'!$S$9, 0)","v":{"v":0,"d":"$0.00"}},{"$f":"IFERROR('MMA Rev-Exp Region 5'!$T$41/'MMA Rev-Exp Region 5'!$T$9, 0)","v":{"v":0,"d":"$0.00"}},{"$f":"IFERROR('MMA Rev-Exp Region 5'!$U$41/'MMA Rev-Exp Region 5'!$U$9, 0)","v":{"v":0,"d":"$0.00"}},{"$f":"IFERROR('MMA Rev-Exp Region 5'!$V$41/'MMA Rev-Exp Region 5'!$V$9, 0)","v":{"v":0,"d":"$0.00"}},{"$f":"IFERROR('MMA Rev-Exp Region 5'!$W$41/'MMA Rev-Exp Region 5'!$W$9, 0)","v":{"v":0,"d":"$0.00"}},{"$f":"IFERROR('MMA Rev-Exp Region 5'!$X$41/'MMA Rev-Exp Region 5'!$X$9, 0)","v":{"v":0,"d":"$0.00"}},{"$f":"IFERROR('MMA Rev-Exp Region 5'!$Y$41/'MMA Rev-Exp Region 5'!$Y$9, 0)","v":{"v":0,"d":"$0.00"}}]
["MMA",null,null,2016,"2016-12-31","Q2","2017-06-30","Region 5","Operating Expense","Medical Benefits Expense","Mental Health Services",5.2,"Mental Health & Substance Abuse Subcapitation",{"$f":"IFERROR('MMA Rev-Exp Region 5'!$O$42/'MMA Rev-Exp Region 5'!$O$9, 0)","v":{"v":0,"d":"$0.00"}},{"$f":"IFERROR('MMA Rev-Exp Region 5'!$P$42/'MMA Rev-Exp Region 5'!$P$9, 0)","v":{"v":0,"d":"$0.00"}},{"$f":"IFERROR('MMA Rev-Exp Region 5'!$Q$42/'MMA Rev-Exp Region 5'!$Q$9, 0)","v":{"v":0,"d":"$0.00"}},{"$f":"IFERROR('MMA Rev-Exp Region 5'!$R$42/'MMA Rev-Exp Region 5'!$R$9, 0)","v":{"v":0,"d":"$0.00"}},{"$f":"IFERROR('MMA Rev-Exp Region 5'!$S$42/'MMA Rev-Exp Region 5'!$S$9, 0)","v":{"v":0,"d":"$0.00"}},{"$f":"IFERROR('MMA Rev-Exp Region 5'!$T$42/'MMA Rev-Exp Region 5'!$T$9, 0)","v":{"v":0,"d":"$0.00"}},{"$f":"IFERROR('MMA Rev-Exp Region 5'!$U$42/'MMA Rev-Exp Region 5'!$U$9, 0)","v":{"v":0,"d":"$0.00"}},{"$f":"IFERROR('MMA Rev-Exp Region 5'!$V$42/'MMA Rev-Exp Region 5'!$V$9, 0)","v":{"v":0,"d":"$0.00"}},{"$f":"IFERROR('MMA Rev-Exp Region 5'!$W$42/'MMA Rev-Exp Region 5'!$W$9, 0)","v":{"v":0,"d":"$0.00"}},{"$f":"IFERROR('MMA Rev-Exp Region 5'!$X$42/'MMA Rev-Exp Region 5'!$X$9, 0)","v":{"v":0,"d":"$0.00"}},{"$f":"IFERROR('MMA Rev-Exp Region 5'!$Y$42/'MMA Rev-Exp Region 5'!$Y$9, 0)","v":{"v":0,"d":"$0.00"}}]
["MMA",null,null,2016,"2016-12-31","Q2","2017-06-30","Region 5","Operating Expense","Medical Benefits Expense","Mental Health Services",5.3,"Ending IBNP for Mental Health & Substance Abuse",{"$f":"IFERROR('MMA Rev-Exp Region 5'!$O$43/'MMA Rev-Exp Region 5'!$O$9, 0)","v":{"v":0,"d":"$0.00"}},{"$f":"IFERROR('MMA Rev-Exp Region 5'!$P$43/'MMA Rev-Exp Region 5'!$P$9, 0)","v":{"v":0,"d":"$0.00"}},{"$f":"IFERROR('MMA Rev-Exp Region 5'!$Q$43/'MMA Rev-Exp Region 5'!$Q$9, 0)","v":{"v":0,"d":"$0.00"}},{"$f":"IFERROR('MMA Rev-Exp Region 5'!$R$43/'MMA Rev-Exp Region 5'!$R$9, 0)","v":{"v":0,"d":"$0.00"}},{"$f":"IFERROR('MMA Rev-Exp Region 5'!$S$43/'MMA Rev-Exp Region 5'!$S$9, 0)","v":{"v":0,"d":"$0.00"}},{"$f":"IFERROR('MMA Rev-Exp Region 5'!$T$43/'MMA Rev-Exp Region 5'!$T$9, 0)","v":{"v":0,"d":"$0.00"}},{"$f":"IFERROR('MMA Rev-Exp Region 5'!$U$43/'MMA Rev-Exp Region 5'!$U$9, 0)","v":{"v":0,"d":"$0.00"}},{"$f":"IFERROR('MMA Rev-Exp Region 5'!$V$43/'MMA Rev-Exp Region 5'!$V$9, 0)","v":{"v":0,"d":"$0.00"}},{"$f":"IFERROR('MMA Rev-Exp Region 5'!$W$43/'MMA Rev-Exp Region 5'!$W$9, 0)","v":{"v":0,"d":"$0.00"}},{"$f":"IFERROR('MMA Rev-Exp Region 5'!$X$43/'MMA Rev-Exp Region 5'!$X$9, 0)","v":{"v":0,"d":"$0.00"}},{"$f":"IFERROR('MMA Rev-Exp Region 5'!$Y$43/'MMA Rev-Exp Region 5'!$Y$9, 0)","v":{"v":0,"d":"$0.00"}}]
["MMA",null,null,2016,"2016-12-31","Q2","2017-06-30","Region 5","Operating Expense","Medical Benefits Expense","Mental Health Services","5.4","Mental Health Settlements",{"$f":"IFERROR('MMA Rev-Exp Region 5'!$O$44/'MMA Rev-Exp Region 5'!$O$9, 0)","v":{"v":0,"d":"$0.00"}},{"$f":"IFERROR('MMA Rev-Exp Region 5'!$P$44/'MMA Rev-Exp Region 5'!$P$9, 0)","v":{"v":0,"d":"$0.00"}},{"$f":"IFERROR('MMA Rev-Exp Region 5'!$Q$44/'MMA Rev-Exp Region 5'!$Q$9, 0)","v":{"v":0,"d":"$0.00"}},{"$f":"IFERROR('MMA Rev-Exp Region 5'!$R$44/'MMA Rev-Exp Region 5'!$R$9, 0)","v":{"v":0,"d":"$0.00"}},{"$f":"IFERROR('MMA Rev-Exp Region 5'!$S$44/'MMA Rev-Exp Region 5'!$S$9, 0)","v":{"v":0,"d":"$0.00"}},{"$f":"IFERROR('MMA Rev-Exp Region 5'!$T$44/'MMA Rev-Exp Region 5'!$T$9, 0)","v":{"v":0,"d":"$0.00"}},{"$f":"IFERROR('MMA Rev-Exp Region 5'!$U$44/'MMA Rev-Exp Region 5'!$U$9, 0)","v":{"v":0,"d":"$0.00"}},{"$f":"IFERROR('MMA Rev-Exp Region 5'!$V$44/'MMA Rev-Exp Region 5'!$V$9, 0)","v":{"v":0,"d":"$0.00"}},{"$f":"IFERROR('MMA Rev-Exp Region 5'!$W$44/'MMA Rev-Exp Region 5'!$W$9, 0)","v":{"v":0,"d":"$0.00"}},{"$f":"IFERROR('MMA Rev-Exp Region 5'!$X$44/'MMA Rev-Exp Region 5'!$X$9, 0)","v":{"v":0,"d":"$0.00"}},{"$f":"IFERROR('MMA Rev-Exp Region 5'!$Y$44/'MMA Rev-Exp Region 5'!$Y$9, 0)","v":{"v":0,"d":"$0.00"}}]
["MMA",null,null,2016,"2016-12-31","Q2","2017-06-30","Region 5","Operating Expense","Medical Benefits Expense","Dental Services",6.1,"Dental FFS",{"$f":"IFERROR('MMA Rev-Exp Region 5'!$O$46/'MMA Rev-Exp Region 5'!$O$9, 0)","v":{"v":0,"d":"$0.00"}},{"$f":"IFERROR('MMA Rev-Exp Region 5'!$P$46/'MMA Rev-Exp Region 5'!$P$9, 0)","v":{"v":0,"d":"$0.00"}},{"$f":"IFERROR('MMA Rev-Exp Region 5'!$Q$46/'MMA Rev-Exp Region 5'!$Q$9, 0)","v":{"v":0,"d":"$0.00"}},{"$f":"IFERROR('MMA Rev-Exp Region 5'!$R$46/'MMA Rev-Exp Region 5'!$R$9, 0)","v":{"v":0,"d":"$0.00"}},{"$f":"IFERROR('MMA Rev-Exp Region 5'!$S$46/'MMA Rev-Exp Region 5'!$S$9, 0)","v":{"v":0,"d":"$0.00"}},{"$f":"IFERROR('MMA Rev-Exp Region 5'!$T$46/'MMA Rev-Exp Region 5'!$T$9, 0)","v":{"v":0,"d":"$0.00"}},{"$f":"IFERROR('MMA Rev-Exp Region 5'!$U$46/'MMA Rev-Exp Region 5'!$U$9, 0)","v":{"v":0,"d":"$0.00"}},{"$f":"IFERROR('MMA Rev-Exp Region 5'!$V$46/'MMA Rev-Exp Region 5'!$V$9, 0)","v":{"v":0,"d":"$0.00"}},{"$f":"IFERROR('MMA Rev-Exp Region 5'!$W$46/'MMA Rev-Exp Region 5'!$W$9, 0)","v":{"v":0,"d":"$0.00"}},{"$f":"IFERROR('MMA Rev-Exp Region 5'!$X$46/'MMA Rev-Exp Region 5'!$X$9, 0)","v":{"v":0,"d":"$0.00"}},{"$f":"IFERROR('MMA Rev-Exp Region 5'!$Y$46/'MMA Rev-Exp Region 5'!$Y$9, 0)","v":{"v":0,"d":"$0.00"}}]
["MMA",null,null,2016,"2016-12-31","Q2","2017-06-30","Region 5","Operating Expense","Medical Benefits Expense","Dental Services",6.2,"Dental Subcapitation",{"$f":"IFERROR('MMA Rev-Exp Region 5'!$O$47/'MMA Rev-Exp Region 5'!$O$9, 0)","v":{"v":0,"d":"$0.00"}},{"$f":"IFERROR('MMA Rev-Exp Region 5'!$P$47/'MMA Rev-Exp Region 5'!$P$9, 0)","v":{"v":0,"d":"$0.00"}},{"$f":"IFERROR('MMA Rev-Exp Region 5'!$Q$47/'MMA Rev-Exp Region 5'!$Q$9, 0)","v":{"v":0,"d":"$0.00"}},{"$f":"IFERROR('MMA Rev-Exp Region 5'!$R$47/'MMA Rev-Exp Region 5'!$R$9, 0)","v":{"v":0,"d":"$0.00"}},{"$f":"IFERROR('MMA Rev-Exp Region 5'!$S$47/'MMA Rev-Exp Region 5'!$S$9, 0)","v":{"v":0,"d":"$0.00"}},{"$f":"IFERROR('MMA Rev-Exp Region 5'!$T$47/'MMA Rev-Exp Region 5'!$T$9, 0)","v":{"v":0,"d":"$0.00"}},{"$f":"IFERROR('MMA Rev-Exp Region 5'!$U$47/'MMA Rev-Exp Region 5'!$U$9, 0)","v":{"v":0,"d":"$0.00"}},{"$f":"IFERROR('MMA Rev-Exp Region 5'!$V$47/'MMA Rev-Exp Region 5'!$V$9, 0)","v":{"v":0,"d":"$0.00"}},{"$f":"IFERROR('MMA Rev-Exp Region 5'!$W$47/'MMA Rev-Exp Region 5'!$W$9, 0)","v":{"v":0,"d":"$0.00"}},{"$f":"IFERROR('MMA Rev-Exp Region 5'!$X$47/'MMA Rev-Exp Region 5'!$X$9, 0)","v":{"v":0,"d":"$0.00"}},{"$f":"IFERROR('MMA Rev-Exp Region 5'!$Y$47/'MMA Rev-Exp Region 5'!$Y$9, 0)","v":{"v":0,"d":"$0.00"}}]
["MMA",null,null,2016,"2016-12-31","Q2","2017-06-30","Region 5","Operating Expense","Medical Benefits Expense","Dental Services",6.3,"Ending IBNP for Dental Services",{"$f":"IFERROR('MMA Rev-Exp Region 5'!$O$48/'MMA Rev-Exp Region 5'!$O$9, 0)","v":{"v":0,"d":"$0.00"}},{"$f":"IFERROR('MMA Rev-Exp Region 5'!$P$48/'MMA Rev-Exp Region 5'!$P$9, 0)","v":{"v":0,"d":"$0.00"}},{"$f":"IFERROR('MMA Rev-Exp Region 5'!$Q$48/'MMA Rev-Exp Region 5'!$Q$9, 0)","v":{"v":0,"d":"$0.00"}},{"$f":"IFERROR('MMA Rev-Exp Region 5'!$R$48/'MMA Rev-Exp Region 5'!$R$9, 0)","v":{"v":0,"d":"$0.00"}},{"$f":"IFERROR('MMA Rev-Exp Region 5'!$S$48/'MMA Rev-Exp Region 5'!$S$9, 0)","v":{"v":0,"d":"$0.00"}},{"$f":"IFERROR('MMA Rev-Exp Region 5'!$T$48/'MMA Rev-Exp Region 5'!$T$9, 0)","v":{"v":0,"d":"$0.00"}},{"$f":"IFERROR('MMA Rev-Exp Region 5'!$U$48/'MMA Rev-Exp Region 5'!$U$9, 0)","v":{"v":0,"d":"$0.00"}},{"$f":"IFERROR('MMA Rev-Exp Region 5'!$V$48/'MMA Rev-Exp Region 5'!$V$9, 0)","v":{"v":0,"d":"$0.00"}},{"$f":"IFERROR('MMA Rev-Exp Region 5'!$W$48/'MMA Rev-Exp Region 5'!$W$9, 0)","v":{"v":0,"d":"$0.00"}},{"$f":"IFERROR('MMA Rev-Exp Region 5'!$X$48/'MMA Rev-Exp Region 5'!$X$9, 0)","v":{"v":0,"d":"$0.00"}},{"$f":"IFERROR('MMA Rev-Exp Region 5'!$Y$48/'MMA Rev-Exp Region 5'!$Y$9, 0)","v":{"v":0,"d":"$0.00"}}]
["MMA",null,null,2016,"2016-12-31","Q2","2017-06-30","Region 5","Operating Expense","Medical Benefits Expense","Dental Services","6.4","Dental Settlements",{"$f":"IFERROR('MMA Rev-Exp Region 5'!$O$49/'MMA Rev-Exp Region 5'!$O$9, 0)","v":{"v":0,"d":"$0.00"}},{"$f":"IFERROR('MMA Rev-Exp Region 5'!$P$49/'MMA Rev-Exp Region 5'!$P$9, 0)","v":{"v":0,"d":"$0.00"}},{"$f":"IFERROR('MMA Rev-Exp Region 5'!$Q$49/'MMA Rev-Exp Region 5'!$Q$9, 0)","v":{"v":0,"d":"$0.00"}},{"$f":"IFERROR('MMA Rev-Exp Region 5'!$R$49/'MMA Rev-Exp Region 5'!$R$9, 0)","v":{"v":0,"d":"$0.00"}},{"$f":"IFERROR('MMA Rev-Exp Region 5'!$S$49/'MMA Rev-Exp Region 5'!$S$9, 0)","v":{"v":0,"d":"$0.00"}},{"$f":"IFERROR('MMA Rev-Exp Region 5'!$T$49/'MMA Rev-Exp Region 5'!$T$9, 0)","v":{"v":0,"d":"$0.00"}},{"$f":"IFERROR('MMA Rev-Exp Region 5'!$U$49/'MMA Rev-Exp Region 5'!$U$9, 0)","v":{"v":0,"d":"$0.00"}},{"$f":"IFERROR('MMA Rev-Exp Region 5'!$V$49/'MMA Rev-Exp Region 5'!$V$9, 0)","v":{"v":0,"d":"$0.00"}},{"$f":"IFERROR('MMA Rev-Exp Region 5'!$W$49/'MMA Rev-Exp Region 5'!$W$9, 0)","v":{"v":0,"d":"$0.00"}},{"$f":"IFERROR('MMA Rev-Exp Region 5'!$X$49/'MMA Rev-Exp Region 5'!$X$9, 0)","v":{"v":0,"d":"$0.00"}},{"$f":"IFERROR('MMA Rev-Exp Region 5'!$Y$49/'MMA Rev-Exp Region 5'!$Y$9, 0)","v":{"v":0,"d":"$0.00"}}]
["MMA",null,null,2016,"2016-12-31","Q2","2017-06-30","Region 5","Operating Expense","Medical Benefits Expense","Transportation Services",7.1,"Transportation FFS",{"$f":"IFERROR('MMA Rev-Exp Region 5'!$O$51/'MMA Rev-Exp Region 5'!$O$9, 0)","v":{"v":0,"d":"$0.00"}},{"$f":"IFERROR('MMA Rev-Exp Region 5'!$P$51/'MMA Rev-Exp Region 5'!$P$9, 0)","v":{"v":0,"d":"$0.00"}},{"$f":"IFERROR('MMA Rev-Exp Region 5'!$Q$51/'MMA Rev-Exp Region 5'!$Q$9, 0)","v":{"v":0,"d":"$0.00"}},{"$f":"IFERROR('MMA Rev-Exp Region 5'!$R$51/'MMA Rev-Exp Region 5'!$R$9, 0)","v":{"v":0,"d":"$0.00"}},{"$f":"IFERROR('MMA Rev-Exp Region 5'!$S$51/'MMA Rev-Exp Region 5'!$S$9, 0)","v":{"v":0,"d":"$0.00"}},{"$f":"IFERROR('MMA Rev-Exp Region 5'!$T$51/'MMA Rev-Exp Region 5'!$T$9, 0)","v":{"v":0,"d":"$0.00"}},{"$f":"IFERROR('MMA Rev-Exp Region 5'!$U$51/'MMA Rev-Exp Region 5'!$U$9, 0)","v":{"v":0,"d":"$0.00"}},{"$f":"IFERROR('MMA Rev-Exp Region 5'!$V$51/'MMA Rev-Exp Region 5'!$V$9, 0)","v":{"v":0,"d":"$0.00"}},{"$f":"IFERROR('MMA Rev-Exp Region 5'!$W$51/'MMA Rev-Exp Region 5'!$W$9, 0)","v":{"v":0,"d":"$0.00"}},{"$f":"IFERROR('MMA Rev-Exp Region 5'!$X$51/'MMA Rev-Exp Region 5'!$X$9, 0)","v":{"v":0,"d":"$0.00"}},{"$f":"IFERROR('MMA Rev-Exp Region 5'!$Y$51/'MMA Rev-Exp Region 5'!$Y$9, 0)","v":{"v":0,"d":"$0.00"}}]
["MMA",null,null,2016,"2016-12-31","Q2","2017-06-30","Region 5","Operating Expense","Medical Benefits Expense","Transportation Services",7.2,"Transportation Subcapitation",{"$f":"IFERROR('MMA Rev-Exp Region 5'!$O$52/'MMA Rev-Exp Region 5'!$O$9, 0)","v":{"v":0,"d":"$0.00"}},{"$f":"IFERROR('MMA Rev-Exp Region 5'!$P$52/'MMA Rev-Exp Region 5'!$P$9, 0)","v":{"v":0,"d":"$0.00"}},{"$f":"IFERROR('MMA Rev-Exp Region 5'!$Q$52/'MMA Rev-Exp Region 5'!$Q$9, 0)","v":{"v":0,"d":"$0.00"}},{"$f":"IFERROR('MMA Rev-Exp Region 5'!$R$52/'MMA Rev-Exp Region 5'!$R$9, 0)","v":{"v":0,"d":"$0.00"}},{"$f":"IFERROR('MMA Rev-Exp Region 5'!$S$52/'MMA Rev-Exp Region 5'!$S$9, 0)","v":{"v":0,"d":"$0.00"}},{"$f":"IFERROR('MMA Rev-Exp Region 5'!$T$52/'MMA Rev-Exp Region 5'!$T$9, 0)","v":{"v":0,"d":"$0.00"}},{"$f":"IFERROR('MMA Rev-Exp Region 5'!$U$52/'MMA Rev-Exp Region 5'!$U$9, 0)","v":{"v":0,"d":"$0.00"}},{"$f":"IFERROR('MMA Rev-Exp Region 5'!$V$52/'MMA Rev-Exp Region 5'!$V$9, 0)","v":{"v":0,"d":"$0.00"}},{"$f":"IFERROR('MMA Rev-Exp Region 5'!$W$52/'MMA Rev-Exp Region 5'!$W$9, 0)","v":{"v":0,"d":"$0.00"}},{"$f":"IFERROR('MMA Rev-Exp Region 5'!$X$52/'MMA Rev-Exp Region 5'!$X$9, 0)","v":{"v":0,"d":"$0.00"}},{"$f":"IFERROR('MMA Rev-Exp Region 5'!$Y$52/'MMA Rev-Exp Region 5'!$Y$9, 0)","v":{"v":0,"d":"$0.00"}}]
["MMA",null,null,2016,"2016-12-31","Q2","2017-06-30","Region 5","Operating Expense","Medical Benefits Expense","Transportation Services",7.3,"Ending IBNP for Transportation",{"$f":"IFERROR('MMA Rev-Exp Region 5'!$O$53/'MMA Rev-Exp Region 5'!$O$9, 0)","v":{"v":0,"d":"$0.00"}},{"$f":"IFERROR('MMA Rev-Exp Region 5'!$P$53/'MMA Rev-Exp Region 5'!$P$9, 0)","v":{"v":0,"d":"$0.00"}},{"$f":"IFERROR('MMA Rev-Exp Region 5'!$Q$53/'MMA Rev-Exp Region 5'!$Q$9, 0)","v":{"v":0,"d":"$0.00"}},{"$f":"IFERROR('MMA Rev-Exp Region 5'!$R$53/'MMA Rev-Exp Region 5'!$R$9, 0)","v":{"v":0,"d":"$0.00"}},{"$f":"IFERROR('MMA Rev-Exp Region 5'!$S$53/'MMA Rev-Exp Region 5'!$S$9, 0)","v":{"v":0,"d":"$0.00"}},{"$f":"IFERROR('MMA Rev-Exp Region 5'!$T$53/'MMA Rev-Exp Region 5'!$T$9, 0)","v":{"v":0,"d":"$0.00"}},{"$f":"IFERROR('MMA Rev-Exp Region 5'!$U$53/'MMA Rev-Exp Region 5'!$U$9, 0)","v":{"v":0,"d":"$0.00"}},{"$f":"IFERROR('MMA Rev-Exp Region 5'!$V$53/'MMA Rev-Exp Region 5'!$V$9, 0)","v":{"v":0,"d":"$0.00"}},{"$f":"IFERROR('MMA Rev-Exp Region 5'!$W$53/'MMA Rev-Exp Region 5'!$W$9, 0)","v":{"v":0,"d":"$0.00"}},{"$f":"IFERROR('MMA Rev-Exp Region 5'!$X$53/'MMA Rev-Exp Region 5'!$X$9, 0)","v":{"v":0,"d":"$0.00"}},{"$f":"IFERROR('MMA Rev-Exp Region 5'!$Y$53/'MMA Rev-Exp Region 5'!$Y$9, 0)","v":{"v":0,"d":"$0.00"}}]
["MMA",null,null,2016,"2016-12-31","Q2","2017-06-30","Region 5","Operating Expense","Medical Benefits Expense","Transportation Services","7.4","Transportation Settlements",{"$f":"IFERROR('MMA Rev-Exp Region 5'!$O$54/'MMA Rev-Exp Region 5'!$O$9, 0)","v":{"v":0,"d":"$0.00"}},{"$f":"IFERROR('MMA Rev-Exp Region 5'!$P$54/'MMA Rev-Exp Region 5'!$P$9, 0)","v":{"v":0,"d":"$0.00"}},{"$f":"IFERROR('MMA Rev-Exp Region 5'!$Q$54/'MMA Rev-Exp Region 5'!$Q$9, 0)","v":{"v":0,"d":"$0.00"}},{"$f":"IFERROR('MMA Rev-Exp Region 5'!$R$54/'MMA Rev-Exp Region 5'!$R$9, 0)","v":{"v":0,"d":"$0.00"}},{"$f":"IFERROR('MMA Rev-Exp Region 5'!$S$54/'MMA Rev-Exp Region 5'!$S$9, 0)","v":{"v":0,"d":"$0.00"}},{"$f":"IFERROR('MMA Rev-Exp Region 5'!$T$54/'MMA Rev-Exp Region 5'!$T$9, 0)","v":{"v":0,"d":"$0.00"}},{"$f":"IFERROR('MMA Rev-Exp Region 5'!$U$54/'MMA Rev-Exp Region 5'!$U$9, 0)","v":{"v":0,"d":"$0.00"}},{"$f":"IFERROR('MMA Rev-Exp Region 5'!$V$54/'MMA Rev-Exp Region 5'!$V$9, 0)","v":{"v":0,"d":"$0.00"}},{"$f":"IFERROR('MMA Rev-Exp Region 5'!$W$54/'MMA Rev-Exp Region 5'!$W$9, 0)","v":{"v":0,"d":"$0.00"}},{"$f":"IFERROR('MMA Rev-Exp Region 5'!$X$54/'MMA Rev-Exp Region 5'!$X$9, 0)","v":{"v":0,"d":"$0.00"}},{"$f":"IFERROR('MMA Rev-Exp Region 5'!$Y$54/'MMA Rev-Exp Region 5'!$Y$9, 0)","v":{"v":0,"d":"$0.00"}}]
["MMA",null,null,2016,"2016-12-31","Q2","2017-06-30","Region 5","Operating Expense","Medical Benefits Expense","Pharmacy Services",8.1,"Prescription Drugs FFS",{"$f":"IFERROR('MMA Rev-Exp Region 5'!$O$56/'MMA Rev-Exp Region 5'!$O$9, 0)","v":{"v":0,"d":"$0.00"}},{"$f":"IFERROR('MMA Rev-Exp Region 5'!$P$56/'MMA Rev-Exp Region 5'!$P$9, 0)","v":{"v":0,"d":"$0.00"}},{"$f":"IFERROR('MMA Rev-Exp Region 5'!$Q$56/'MMA Rev-Exp Region 5'!$Q$9, 0)","v":{"v":0,"d":"$0.00"}},{"$f":"IFERROR('MMA Rev-Exp Region 5'!$R$56/'MMA Rev-Exp Region 5'!$R$9, 0)","v":{"v":0,"d":"$0.00"}},{"$f":"IFERROR('MMA Rev-Exp Region 5'!$S$56/'MMA Rev-Exp Region 5'!$S$9, 0)","v":{"v":0,"d":"$0.00"}},{"$f":"IFERROR('MMA Rev-Exp Region 5'!$T$56/'MMA Rev-Exp Region 5'!$T$9, 0)","v":{"v":0,"d":"$0.00"}},{"$f":"IFERROR('MMA Rev-Exp Region 5'!$U$56/'MMA Rev-Exp Region 5'!$U$9, 0)","v":{"v":0,"d":"$0.00"}},{"$f":"IFERROR('MMA Rev-Exp Region 5'!$V$56/'MMA Rev-Exp Region 5'!$V$9, 0)","v":{"v":0,"d":"$0.00"}},{"$f":"IFERROR('MMA Rev-Exp Region 5'!$W$56/'MMA Rev-Exp Region 5'!$W$9, 0)","v":{"v":0,"d":"$0.00"}},{"$f":"IFERROR('MMA Rev-Exp Region 5'!$X$56/'MMA Rev-Exp Region 5'!$X$9, 0)","v":{"v":0,"d":"$0.00"}},{"$f":"IFERROR('MMA Rev-Exp Region 5'!$Y$56/'MMA Rev-Exp Region 5'!$Y$9, 0)","v":{"v":0,"d":"$0.00"}}]
["MMA",null,null,2016,"2016-12-31","Q2","2017-06-30","Region 5","Operating Expense","Medical Benefits Expense","Pharmacy Services","8.2","Hepatitis C Prescription Drug FFS",{"$f":"IFERROR('MMA Rev-Exp Region 5'!$O$57/'MMA Rev-Exp Region 5'!$O$9, 0)","v":{"v":0,"d":"$0.00"}},{"$f":"IFERROR('MMA Rev-Exp Region 5'!$P$57/'MMA Rev-Exp Region 5'!$P$9, 0)","v":{"v":0,"d":"$0.00"}},{"$f":"IFERROR('MMA Rev-Exp Region 5'!$Q$57/'MMA Rev-Exp Region 5'!$Q$9, 0)","v":{"v":0,"d":"$0.00"}},{"$f":"IFERROR('MMA Rev-Exp Region 5'!$R$57/'MMA Rev-Exp Region 5'!$R$9, 0)","v":{"v":0,"d":"$0.00"}},{"$f":"IFERROR('MMA Rev-Exp Region 5'!$S$57/'MMA Rev-Exp Region 5'!$S$9, 0)","v":{"v":0,"d":"$0.00"}},{"$f":"IFERROR('MMA Rev-Exp Region 5'!$T$57/'MMA Rev-Exp Region 5'!$T$9, 0)","v":{"v":0,"d":"$0.00"}},{"$f":"IFERROR('MMA Rev-Exp Region 5'!$U$57/'MMA Rev-Exp Region 5'!$U$9, 0)","v":{"v":0,"d":"$0.00"}},{"$f":"IFERROR('MMA Rev-Exp Region 5'!$V$57/'MMA Rev-Exp Region 5'!$V$9, 0)","v":{"v":0,"d":"$0.00"}},{"$f":"IFERROR('MMA Rev-Exp Region 5'!$W$57/'MMA Rev-Exp Region 5'!$W$9, 0)","v":{"v":0,"d":"$0.00"}},{"$f":"IFERROR('MMA Rev-Exp Region 5'!$X$57/'MMA Rev-Exp Region 5'!$X$9, 0)","v":{"v":0,"d":"$0.00"}},{"$f":"IFERROR('MMA Rev-Exp Region 5'!$Y$57/'MMA Rev-Exp Region 5'!$Y$9, 0)","v":{"v":0,"d":"$0.00"}}]
["MMA",null,null,2016,"2016-12-31","Q2","2017-06-30","Region 5","Operating Expense","Medical Benefits Expense","Pharmacy Services","8.3","Ending IBNP for Prescription Drugs",{"$f":"IFERROR('MMA Rev-Exp Region 5'!$O$58/'MMA Rev-Exp Region 5'!$O$9, 0)","v":{"v":0,"d":"$0.00"}},{"$f":"IFERROR('MMA Rev-Exp Region 5'!$P$58/'MMA Rev-Exp Region 5'!$P$9, 0)","v":{"v":0,"d":"$0.00"}},{"$f":"IFERROR('MMA Rev-Exp Region 5'!$Q$58/'MMA Rev-Exp Region 5'!$Q$9, 0)","v":{"v":0,"d":"$0.00"}},{"$f":"IFERROR('MMA Rev-Exp Region 5'!$R$58/'MMA Rev-Exp Region 5'!$R$9, 0)","v":{"v":0,"d":"$0.00"}},{"$f":"IFERROR('MMA Rev-Exp Region 5'!$S$58/'MMA Rev-Exp Region 5'!$S$9, 0)","v":{"v":0,"d":"$0.00"}},{"$f":"IFERROR('MMA Rev-Exp Region 5'!$T$58/'MMA Rev-Exp Region 5'!$T$9, 0)","v":{"v":0,"d":"$0.00"}},{"$f":"IFERROR('MMA Rev-Exp Region 5'!$U$58/'MMA Rev-Exp Region 5'!$U$9, 0)","v":{"v":0,"d":"$0.00"}},{"$f":"IFERROR('MMA Rev-Exp Region 5'!$V$58/'MMA Rev-Exp Region 5'!$V$9, 0)","v":{"v":0,"d":"$0.00"}},{"$f":"IFERROR('MMA Rev-Exp Region 5'!$W$58/'MMA Rev-Exp Region 5'!$W$9, 0)","v":{"v":0,"d":"$0.00"}},{"$f":"IFERROR('MMA Rev-Exp Region 5'!$X$58/'MMA Rev-Exp Region 5'!$X$9, 0)","v":{"v":0,"d":"$0.00"}},{"$f":"IFERROR('MMA Rev-Exp Region 5'!$Y$58/'MMA Rev-Exp Region 5'!$Y$9, 0)","v":{"v":0,"d":"$0.00"}}]
["MMA",null,null,2016,"2016-12-31","Q2","2017-06-30","Region 5","Operating Expense","Medical Benefits Expense","Pharmacy Services","8.4","Prescription Drug Rebates ",{"$f":"IFERROR('MMA Rev-Exp Region 5'!$O$59/'MMA Rev-Exp Region 5'!$O$9, 0)","v":{"v":0,"d":"$0.00"}},{"$f":"IFERROR('MMA Rev-Exp Region 5'!$P$59/'MMA Rev-Exp Region 5'!$P$9, 0)","v":{"v":0,"d":"$0.00"}},{"$f":"IFERROR('MMA Rev-Exp Region 5'!$Q$59/'MMA Rev-Exp Region 5'!$Q$9, 0)","v":{"v":0,"d":"$0.00"}},{"$f":"IFERROR('MMA Rev-Exp Region 5'!$R$59/'MMA Rev-Exp Region 5'!$R$9, 0)","v":{"v":0,"d":"$0.00"}},{"$f":"IFERROR('MMA Rev-Exp Region 5'!$S$59/'MMA Rev-Exp Region 5'!$S$9, 0)","v":{"v":0,"d":"$0.00"}},{"$f":"IFERROR('MMA Rev-Exp Region 5'!$T$59/'MMA Rev-Exp Region 5'!$T$9, 0)","v":{"v":0,"d":"$0.00"}},{"$f":"IFERROR('MMA Rev-Exp Region 5'!$U$59/'MMA Rev-Exp Region 5'!$U$9, 0)","v":{"v":0,"d":"$0.00"}},{"$f":"IFERROR('MMA Rev-Exp Region 5'!$V$59/'MMA Rev-Exp Region 5'!$V$9, 0)","v":{"v":0,"d":"$0.00"}},{"$f":"IFERROR('MMA Rev-Exp Region 5'!$W$59/'MMA Rev-Exp Region 5'!$W$9, 0)","v":{"v":0,"d":"$0.00"}},{"$f":"IFERROR('MMA Rev-Exp Region 5'!$X$59/'MMA Rev-Exp Region 5'!$X$9, 0)","v":{"v":0,"d":"$0.00"}},{"$f":"IFERROR('MMA Rev-Exp Region 5'!$Y$59/'MMA Rev-Exp Region 5'!$Y$9, 0)","v":{"v":0,"d":"$0.00"}}]
["MMA",null,null,2016,"2016-12-31","Q2","2017-06-30","Region 5","Operating Expense","Medical Benefits Expense","Pharmacy Services","8.5","Ending accrual for Rebates receivable",{"$f":"IFERROR('MMA Rev-Exp Region 5'!$O$60/'MMA Rev-Exp Region 5'!$O$9, 0)","v":{"v":0,"d":"$0.00"}},{"$f":"IFERROR('MMA Rev-Exp Region 5'!$P$60/'MMA Rev-Exp Region 5'!$P$9, 0)","v":{"v":0,"d":"$0.00"}},{"$f":"IFERROR('MMA Rev-Exp Region 5'!$Q$60/'MMA Rev-Exp Region 5'!$Q$9, 0)","v":{"v":0,"d":"$0.00"}},{"$f":"IFERROR('MMA Rev-Exp Region 5'!$R$60/'MMA Rev-Exp Region 5'!$R$9, 0)","v":{"v":0,"d":"$0.00"}},{"$f":"IFERROR('MMA Rev-Exp Region 5'!$S$60/'MMA Rev-Exp Region 5'!$S$9, 0)","v":{"v":0,"d":"$0.00"}},{"$f":"IFERROR('MMA Rev-Exp Region 5'!$T$60/'MMA Rev-Exp Region 5'!$T$9, 0)","v":{"v":0,"d":"$0.00"}},{"$f":"IFERROR('MMA Rev-Exp Region 5'!$U$60/'MMA Rev-Exp Region 5'!$U$9, 0)","v":{"v":0,"d":"$0.00"}},{"$f":"IFERROR('MMA Rev-Exp Region 5'!$V$60/'MMA Rev-Exp Region 5'!$V$9, 0)","v":{"v":0,"d":"$0.00"}},{"$f":"IFERROR('MMA Rev-Exp Region 5'!$W$60/'MMA Rev-Exp Region 5'!$W$9, 0)","v":{"v":0,"d":"$0.00"}},{"$f":"IFERROR('MMA Rev-Exp Region 5'!$X$60/'MMA Rev-Exp Region 5'!$X$9, 0)","v":{"v":0,"d":"$0.00"}},{"$f":"IFERROR('MMA Rev-Exp Region 5'!$Y$60/'MMA Rev-Exp Region 5'!$Y$9, 0)","v":{"v":0,"d":"$0.00"}}]
["MMA",null,null,2016,"2016-12-31","Q2","2017-06-30","Region 5","Operating Expense","Medical Benefits Expense","Pharmacy Services","8.6","Prescription Drugs Subcapitation",{"$f":"IFERROR('MMA Rev-Exp Region 5'!$O$61/'MMA Rev-Exp Region 5'!$O$9, 0)","v":{"v":0,"d":"$0.00"}},{"$f":"IFERROR('MMA Rev-Exp Region 5'!$P$61/'MMA Rev-Exp Region 5'!$P$9, 0)","v":{"v":0,"d":"$0.00"}},{"$f":"IFERROR('MMA Rev-Exp Region 5'!$Q$61/'MMA Rev-Exp Region 5'!$Q$9, 0)","v":{"v":0,"d":"$0.00"}},{"$f":"IFERROR('MMA Rev-Exp Region 5'!$R$61/'MMA Rev-Exp Region 5'!$R$9, 0)","v":{"v":0,"d":"$0.00"}},{"$f":"IFERROR('MMA Rev-Exp Region 5'!$S$61/'MMA Rev-Exp Region 5'!$S$9, 0)","v":{"v":0,"d":"$0.00"}},{"$f":"IFERROR('MMA Rev-Exp Region 5'!$T$61/'MMA Rev-Exp Region 5'!$T$9, 0)","v":{"v":0,"d":"$0.00"}},{"$f":"IFERROR('MMA Rev-Exp Region 5'!$U$61/'MMA Rev-Exp Region 5'!$U$9, 0)","v":{"v":0,"d":"$0.00"}},{"$f":"IFERROR('MMA Rev-Exp Region 5'!$V$61/'MMA Rev-Exp Region 5'!$V$9, 0)","v":{"v":0,"d":"$0.00"}},{"$f":"IFERROR('MMA Rev-Exp Region 5'!$W$61/'MMA Rev-Exp Region 5'!$W$9, 0)","v":{"v":0,"d":"$0.00"}},{"$f":"IFERROR('MMA Rev-Exp Region 5'!$X$61/'MMA Rev-Exp Region 5'!$X$9, 0)","v":{"v":0,"d":"$0.00"}},{"$f":"IFERROR('MMA Rev-Exp Region 5'!$Y$61/'MMA Rev-Exp Region 5'!$Y$9, 0)","v":{"v":0,"d":"$0.00"}}]
["MMA",null,null,2016,"2016-12-31","Q2","2017-06-30","Region 5","Operating Expense","Medical Benefits Expense","Pharmacy Services","8.7","Prescription Drug Settlements",{"$f":"IFERROR('MMA Rev-Exp Region 5'!$O$62/'MMA Rev-Exp Region 5'!$O$9, 0)","v":{"v":0,"d":"$0.00"}},{"$f":"IFERROR('MMA Rev-Exp Region 5'!$P$62/'MMA Rev-Exp Region 5'!$P$9, 0)","v":{"v":0,"d":"$0.00"}},{"$f":"IFERROR('MMA Rev-Exp Region 5'!$Q$62/'MMA Rev-Exp Region 5'!$Q$9, 0)","v":{"v":0,"d":"$0.00"}},{"$f":"IFERROR('MMA Rev-Exp Region 5'!$R$62/'MMA Rev-Exp Region 5'!$R$9, 0)","v":{"v":0,"d":"$0.00"}},{"$f":"IFERROR('MMA Rev-Exp Region 5'!$S$62/'MMA Rev-Exp Region 5'!$S$9, 0)","v":{"v":0,"d":"$0.00"}},{"$f":"IFERROR('MMA Rev-Exp Region 5'!$T$62/'MMA Rev-Exp Region 5'!$T$9, 0)","v":{"v":0,"d":"$0.00"}},{"$f":"IFERROR('MMA Rev-Exp Region 5'!$U$62/'MMA Rev-Exp Region 5'!$U$9, 0)","v":{"v":0,"d":"$0.00"}},{"$f":"IFERROR('MMA Rev-Exp Region 5'!$V$62/'MMA Rev-Exp Region 5'!$V$9, 0)","v":{"v":0,"d":"$0.00"}},{"$f":"IFERROR('MMA Rev-Exp Region 5'!$W$62/'MMA Rev-Exp Region 5'!$W$9, 0)","v":{"v":0,"d":"$0.00"}},{"$f":"IFERROR('MMA Rev-Exp Region 5'!$X$62/'MMA Rev-Exp Region 5'!$X$9, 0)","v":{"v":0,"d":"$0.00"}},{"$f":"IFERROR('MMA Rev-Exp Region 5'!$Y$62/'MMA Rev-Exp Region 5'!$Y$9, 0)","v":{"v":0,"d":"$0.00"}}]
["MMA",null,null,2016,"2016-12-31","Q2","2017-06-30","Region 5","Operating Expense","Medical Benefits Expense","Other MMA Services",9.1,"Home Health, Private Duty Nursing, Personal Care FFS",{"$f":"IFERROR('MMA Rev-Exp Region 5'!$O$64/'MMA Rev-Exp Region 5'!$O$9, 0)","v":{"v":0,"d":"$0.00"}},{"$f":"IFERROR('MMA Rev-Exp Region 5'!$P$64/'MMA Rev-Exp Region 5'!$P$9, 0)","v":{"v":0,"d":"$0.00"}},{"$f":"IFERROR('MMA Rev-Exp Region 5'!$Q$64/'MMA Rev-Exp Region 5'!$Q$9, 0)","v":{"v":0,"d":"$0.00"}},{"$f":"IFERROR('MMA Rev-Exp Region 5'!$R$64/'MMA Rev-Exp Region 5'!$R$9, 0)","v":{"v":0,"d":"$0.00"}},{"$f":"IFERROR('MMA Rev-Exp Region 5'!$S$64/'MMA Rev-Exp Region 5'!$S$9, 0)","v":{"v":0,"d":"$0.00"}},{"$f":"IFERROR('MMA Rev-Exp Region 5'!$T$64/'MMA Rev-Exp Region 5'!$T$9, 0)","v":{"v":0,"d":"$0.00"}},{"$f":"IFERROR('MMA Rev-Exp Region 5'!$U$64/'MMA Rev-Exp Region 5'!$U$9, 0)","v":{"v":0,"d":"$0.00"}},{"$f":"IFERROR('MMA Rev-Exp Region 5'!$V$64/'MMA Rev-Exp Region 5'!$V$9, 0)","v":{"v":0,"d":"$0.00"}},{"$f":"IFERROR('MMA Rev-Exp Region 5'!$W$64/'MMA Rev-Exp Region 5'!$W$9, 0)","v":{"v":0,"d":"$0.00"}},{"$f":"IFERROR('MMA Rev-Exp Region 5'!$X$64/'MMA Rev-Exp Region 5'!$X$9, 0)","v":{"v":0,"d":"$0.00"}},{"$f":"IFERROR('MMA Rev-Exp Region 5'!$Y$64/'MMA Rev-Exp Region 5'!$Y$9, 0)","v":{"v":0,"d":"$0.00"}}]
["MMA",null,null,2016,"2016-12-31","Q2","2017-06-30","Region 5","Operating Expense","Medical Benefits Expense","Other MMA Services","9.2","Hospice FFS",{"$f":"IFERROR('MMA Rev-Exp Region 5'!$O$65/'MMA Rev-Exp Region 5'!$O$9, 0)","v":{"v":0,"d":"$0.00"}},{"$f":"IFERROR('MMA Rev-Exp Region 5'!$P$65/'MMA Rev-Exp Region 5'!$P$9, 0)","v":{"v":0,"d":"$0.00"}},{"$f":"IFERROR('MMA Rev-Exp Region 5'!$Q$65/'MMA Rev-Exp Region 5'!$Q$9, 0)","v":{"v":0,"d":"$0.00"}},{"$f":"IFERROR('MMA Rev-Exp Region 5'!$R$65/'MMA Rev-Exp Region 5'!$R$9, 0)","v":{"v":0,"d":"$0.00"}},{"$f":"IFERROR('MMA Rev-Exp Region 5'!$S$65/'MMA Rev-Exp Region 5'!$S$9, 0)","v":{"v":0,"d":"$0.00"}},{"$f":"IFERROR('MMA Rev-Exp Region 5'!$T$65/'MMA Rev-Exp Region 5'!$T$9, 0)","v":{"v":0,"d":"$0.00"}},{"$f":"IFERROR('MMA Rev-Exp Region 5'!$U$65/'MMA Rev-Exp Region 5'!$U$9, 0)","v":{"v":0,"d":"$0.00"}},{"$f":"IFERROR('MMA Rev-Exp Region 5'!$V$65/'MMA Rev-Exp Region 5'!$V$9, 0)","v":{"v":0,"d":"$0.00"}},{"$f":"IFERROR('MMA Rev-Exp Region 5'!$W$65/'MMA Rev-Exp Region 5'!$W$9, 0)","v":{"v":0,"d":"$0.00"}},{"$f":"IFERROR('MMA Rev-Exp Region 5'!$X$65/'MMA Rev-Exp Region 5'!$X$9, 0)","v":{"v":0,"d":"$0.00"}},{"$f":"IFERROR('MMA Rev-Exp Region 5'!$Y$65/'MMA Rev-Exp Region 5'!$Y$9, 0)","v":{"v":0,"d":"$0.00"}}]
["MMA",null,null,2016,"2016-12-31","Q2","2017-06-30","Region 5","Operating Expense","Medical Benefits Expense","Other MMA Services","9.3","DME FFS",{"$f":"IFERROR('MMA Rev-Exp Region 5'!$O$66/'MMA Rev-Exp Region 5'!$O$9, 0)","v":{"v":0,"d":"$0.00"}},{"$f":"IFERROR('MMA Rev-Exp Region 5'!$P$66/'MMA Rev-Exp Region 5'!$P$9, 0)","v":{"v":0,"d":"$0.00"}},{"$f":"IFERROR('MMA Rev-Exp Region 5'!$Q$66/'MMA Rev-Exp Region 5'!$Q$9, 0)","v":{"v":0,"d":"$0.00"}},{"$f":"IFERROR('MMA Rev-Exp Region 5'!$R$66/'MMA Rev-Exp Region 5'!$R$9, 0)","v":{"v":0,"d":"$0.00"}},{"$f":"IFERROR('MMA Rev-Exp Region 5'!$S$66/'MMA Rev-Exp Region 5'!$S$9, 0)","v":{"v":0,"d":"$0.00"}},{"$f":"IFERROR('MMA Rev-Exp Region 5'!$T$66/'MMA Rev-Exp Region 5'!$T$9, 0)","v":{"v":0,"d":"$0.00"}},{"$f":"IFERROR('MMA Rev-Exp Region 5'!$U$66/'MMA Rev-Exp Region 5'!$U$9, 0)","v":{"v":0,"d":"$0.00"}},{"$f":"IFERROR('MMA Rev-Exp Region 5'!$V$66/'MMA Rev-Exp Region 5'!$V$9, 0)","v":{"v":0,"d":"$0.00"}},{"$f":"IFERROR('MMA Rev-Exp Region 5'!$W$66/'MMA Rev-Exp Region 5'!$W$9, 0)","v":{"v":0,"d":"$0.00"}},{"$f":"IFERROR('MMA Rev-Exp Region 5'!$X$66/'MMA Rev-Exp Region 5'!$X$9, 0)","v":{"v":0,"d":"$0.00"}},{"$f":"IFERROR('MMA Rev-Exp Region 5'!$Y$66/'MMA Rev-Exp Region 5'!$Y$9, 0)","v":{"v":0,"d":"$0.00"}}]
["MMA",null,null,2016,"2016-12-31","Q2","2017-06-30","Region 5","Operating Expense","Medical Benefits Expense","Other MMA Services","9.4","Other State Plan Services FFS",{"$f":"IFERROR('MMA Rev-Exp Region 5'!$O$67/'MMA Rev-Exp Region 5'!$O$9, 0)","v":{"v":0,"d":"$0.00"}},{"$f":"IFERROR('MMA Rev-Exp Region 5'!$P$67/'MMA Rev-Exp Region 5'!$P$9, 0)","v":{"v":0,"d":"$0.00"}},{"$f":"IFERROR('MMA Rev-Exp Region 5'!$Q$67/'MMA Rev-Exp Region 5'!$Q$9, 0)","v":{"v":0,"d":"$0.00"}},{"$f":"IFERROR('MMA Rev-Exp Region 5'!$R$67/'MMA Rev-Exp Region 5'!$R$9, 0)","v":{"v":0,"d":"$0.00"}},{"$f":"IFERROR('MMA Rev-Exp Region 5'!$S$67/'MMA Rev-Exp Region 5'!$S$9, 0)","v":{"v":0,"d":"$0.00"}},{"$f":"IFERROR('MMA Rev-Exp Region 5'!$T$67/'MMA Rev-Exp Region 5'!$T$9, 0)","v":{"v":0,"d":"$0.00"}},{"$f":"IFERROR('MMA Rev-Exp Region 5'!$U$67/'MMA Rev-Exp Region 5'!$U$9, 0)","v":{"v":0,"d":"$0.00"}},{"$f":"IFERROR('MMA Rev-Exp Region 5'!$V$67/'MMA Rev-Exp Region 5'!$V$9, 0)","v":{"v":0,"d":"$0.00"}},{"$f":"IFERROR('MMA Rev-Exp Region 5'!$W$67/'MMA Rev-Exp Region 5'!$W$9, 0)","v":{"v":0,"d":"$0.00"}},{"$f":"IFERROR('MMA Rev-Exp Region 5'!$X$67/'MMA Rev-Exp Region 5'!$X$9, 0)","v":{"v":0,"d":"$0.00"}},{"$f":"IFERROR('MMA Rev-Exp Region 5'!$Y$67/'MMA Rev-Exp Region 5'!$Y$9, 0)","v":{"v":0,"d":"$0.00"}}]
["MMA",null,null,2016,"2016-12-31","Q2","2017-06-30","Region 5","Operating Expense","Medical Benefits Expense","Other MMA Services","9.5","Other Services Subcapitation",{"$f":"IFERROR('MMA Rev-Exp Region 5'!$O$68/'MMA Rev-Exp Region 5'!$O$9, 0)","v":{"v":0,"d":"$0.00"}},{"$f":"IFERROR('MMA Rev-Exp Region 5'!$P$68/'MMA Rev-Exp Region 5'!$P$9, 0)","v":{"v":0,"d":"$0.00"}},{"$f":"IFERROR('MMA Rev-Exp Region 5'!$Q$68/'MMA Rev-Exp Region 5'!$Q$9, 0)","v":{"v":0,"d":"$0.00"}},{"$f":"IFERROR('MMA Rev-Exp Region 5'!$R$68/'MMA Rev-Exp Region 5'!$R$9, 0)","v":{"v":0,"d":"$0.00"}},{"$f":"IFERROR('MMA Rev-Exp Region 5'!$S$68/'MMA Rev-Exp Region 5'!$S$9, 0)","v":{"v":0,"d":"$0.00"}},{"$f":"IFERROR('MMA Rev-Exp Region 5'!$T$68/'MMA Rev-Exp Region 5'!$T$9, 0)","v":{"v":0,"d":"$0.00"}},{"$f":"IFERROR('MMA Rev-Exp Region 5'!$U$68/'MMA Rev-Exp Region 5'!$U$9, 0)","v":{"v":0,"d":"$0.00"}},{"$f":"IFERROR('MMA Rev-Exp Region 5'!$V$68/'MMA Rev-Exp Region 5'!$V$9, 0)","v":{"v":0,"d":"$0.00"}},{"$f":"IFERROR('MMA Rev-Exp Region 5'!$W$68/'MMA Rev-Exp Region 5'!$W$9, 0)","v":{"v":0,"d":"$0.00"}},{"$f":"IFERROR('MMA Rev-Exp Region 5'!$X$68/'MMA Rev-Exp Region 5'!$X$9, 0)","v":{"v":0,"d":"$0.00"}},{"$f":"IFERROR('MMA Rev-Exp Region 5'!$Y$68/'MMA Rev-Exp Region 5'!$Y$9, 0)","v":{"v":0,"d":"$0.00"}}]
["MMA",null,null,2016,"2016-12-31","Q2","2017-06-30","Region 5","Operating Expense","Medical Benefits Expense","Other MMA Services","9.6","Ending IBNP for Other Services",{"$f":"IFERROR('MMA Rev-Exp Region 5'!$O$69/'MMA Rev-Exp Region 5'!$O$9, 0)","v":{"v":0,"d":"$0.00"}},{"$f":"IFERROR('MMA Rev-Exp Region 5'!$P$69/'MMA Rev-Exp Region 5'!$P$9, 0)","v":{"v":0,"d":"$0.00"}},{"$f":"IFERROR('MMA Rev-Exp Region 5'!$Q$69/'MMA Rev-Exp Region 5'!$Q$9, 0)","v":{"v":0,"d":"$0.00"}},{"$f":"IFERROR('MMA Rev-Exp Region 5'!$R$69/'MMA Rev-Exp Region 5'!$R$9, 0)","v":{"v":0,"d":"$0.00"}},{"$f":"IFERROR('MMA Rev-Exp Region 5'!$S$69/'MMA Rev-Exp Region 5'!$S$9, 0)","v":{"v":0,"d":"$0.00"}},{"$f":"IFERROR('MMA Rev-Exp Region 5'!$T$69/'MMA Rev-Exp Region 5'!$T$9, 0)","v":{"v":0,"d":"$0.00"}},{"$f":"IFERROR('MMA Rev-Exp Region 5'!$U$69/'MMA Rev-Exp Region 5'!$U$9, 0)","v":{"v":0,"d":"$0.00"}},{"$f":"IFERROR('MMA Rev-Exp Region 5'!$V$69/'MMA Rev-Exp Region 5'!$V$9, 0)","v":{"v":0,"d":"$0.00"}},{"$f":"IFERROR('MMA Rev-Exp Region 5'!$W$69/'MMA Rev-Exp Region 5'!$W$9, 0)","v":{"v":0,"d":"$0.00"}},{"$f":"IFERROR('MMA Rev-Exp Region 5'!$X$69/'MMA Rev-Exp Region 5'!$X$9, 0)","v":{"v":0,"d":"$0.00"}},{"$f":"IFERROR('MMA Rev-Exp Region 5'!$Y$69/'MMA Rev-Exp Region 5'!$Y$9, 0)","v":{"v":0,"d":"$0.00"}}]
["MMA",null,null,2016,"2016-12-31","Q2","2017-06-30","Region 5","Operating Expense","Medical Benefits Expense","Other MMA Services","9.7","Other Services Settlements",{"$f":"IFERROR('MMA Rev-Exp Region 5'!$O$70/'MMA Rev-Exp Region 5'!$O$9, 0)","v":{"v":0,"d":"$0.00"}},{"$f":"IFERROR('MMA Rev-Exp Region 5'!$P$70/'MMA Rev-Exp Region 5'!$P$9, 0)","v":{"v":0,"d":"$0.00"}},{"$f":"IFERROR('MMA Rev-Exp Region 5'!$Q$70/'MMA Rev-Exp Region 5'!$Q$9, 0)","v":{"v":0,"d":"$0.00"}},{"$f":"IFERROR('MMA Rev-Exp Region 5'!$R$70/'MMA Rev-Exp Region 5'!$R$9, 0)","v":{"v":0,"d":"$0.00"}},{"$f":"IFERROR('MMA Rev-Exp Region 5'!$S$70/'MMA Rev-Exp Region 5'!$S$9, 0)","v":{"v":0,"d":"$0.00"}},{"$f":"IFERROR('MMA Rev-Exp Region 5'!$T$70/'MMA Rev-Exp Region 5'!$T$9, 0)","v":{"v":0,"d":"$0.00"}},{"$f":"IFERROR('MMA Rev-Exp Region 5'!$U$70/'MMA Rev-Exp Region 5'!$U$9, 0)","v":{"v":0,"d":"$0.00"}},{"$f":"IFERROR('MMA Rev-Exp Region 5'!$V$70/'MMA Rev-Exp Region 5'!$V$9, 0)","v":{"v":0,"d":"$0.00"}},{"$f":"IFERROR('MMA Rev-Exp Region 5'!$W$70/'MMA Rev-Exp Region 5'!$W$9, 0)","v":{"v":0,"d":"$0.00"}},{"$f":"IFERROR('MMA Rev-Exp Region 5'!$X$70/'MMA Rev-Exp Region 5'!$X$9, 0)","v":{"v":0,"d":"$0.00"}},{"$f":"IFERROR('MMA Rev-Exp Region 5'!$Y$70/'MMA Rev-Exp Region 5'!$Y$9, 0)","v":{"v":0,"d":"$0.00"}}]
["MMA",null,null,2016,"2016-12-31","Q2","2017-06-30","Region 5","Operating Expense","Medical Benefits Expense","Expanded Benefits","10.1","Expanded Benefits FFS",{"$f":"IFERROR('MMA Rev-Exp Region 5'!$O$72/'MMA Rev-Exp Region 5'!$O$9, 0)","v":{"v":0,"d":"$0.00"}},{"$f":"IFERROR('MMA Rev-Exp Region 5'!$P$72/'MMA Rev-Exp Region 5'!$P$9, 0)","v":{"v":0,"d":"$0.00"}},{"$f":"IFERROR('MMA Rev-Exp Region 5'!$Q$72/'MMA Rev-Exp Region 5'!$Q$9, 0)","v":{"v":0,"d":"$0.00"}},{"$f":"IFERROR('MMA Rev-Exp Region 5'!$R$72/'MMA Rev-Exp Region 5'!$R$9, 0)","v":{"v":0,"d":"$0.00"}},{"$f":"IFERROR('MMA Rev-Exp Region 5'!$S$72/'MMA Rev-Exp Region 5'!$S$9, 0)","v":{"v":0,"d":"$0.00"}},{"$f":"IFERROR('MMA Rev-Exp Region 5'!$T$72/'MMA Rev-Exp Region 5'!$T$9, 0)","v":{"v":0,"d":"$0.00"}},{"$f":"IFERROR('MMA Rev-Exp Region 5'!$U$72/'MMA Rev-Exp Region 5'!$U$9, 0)","v":{"v":0,"d":"$0.00"}},{"$f":"IFERROR('MMA Rev-Exp Region 5'!$V$72/'MMA Rev-Exp Region 5'!$V$9, 0)","v":{"v":0,"d":"$0.00"}},{"$f":"IFERROR('MMA Rev-Exp Region 5'!$W$72/'MMA Rev-Exp Region 5'!$W$9, 0)","v":{"v":0,"d":"$0.00"}},{"$f":"IFERROR('MMA Rev-Exp Region 5'!$X$72/'MMA Rev-Exp Region 5'!$X$9, 0)","v":{"v":0,"d":"$0.00"}},{"$f":"IFERROR('MMA Rev-Exp Region 5'!$Y$72/'MMA Rev-Exp Region 5'!$Y$9, 0)","v":{"v":0,"d":"$0.00"}}]
["MMA",null,null,2016,"2016-12-31","Q2","2017-06-30","Region 5","Operating Expense","Medical Benefits Expense","Expanded Benefits","10.2","Expanded benefits Subcapitation",{"$f":"IFERROR('MMA Rev-Exp Region 5'!$O$73/'MMA Rev-Exp Region 5'!$O$9, 0)","v":{"v":0,"d":"$0.00"}},{"$f":"IFERROR('MMA Rev-Exp Region 5'!$P$73/'MMA Rev-Exp Region 5'!$P$9, 0)","v":{"v":0,"d":"$0.00"}},{"$f":"IFERROR('MMA Rev-Exp Region 5'!$Q$73/'MMA Rev-Exp Region 5'!$Q$9, 0)","v":{"v":0,"d":"$0.00"}},{"$f":"IFERROR('MMA Rev-Exp Region 5'!$R$73/'MMA Rev-Exp Region 5'!$R$9, 0)","v":{"v":0,"d":"$0.00"}},{"$f":"IFERROR('MMA Rev-Exp Region 5'!$S$73/'MMA Rev-Exp Region 5'!$S$9, 0)","v":{"v":0,"d":"$0.00"}},{"$f":"IFERROR('MMA Rev-Exp Region 5'!$T$73/'MMA Rev-Exp Region 5'!$T$9, 0)","v":{"v":0,"d":"$0.00"}},{"$f":"IFERROR('MMA Rev-Exp Region 5'!$U$73/'MMA Rev-Exp Region 5'!$U$9, 0)","v":{"v":0,"d":"$0.00"}},{"$f":"IFERROR('MMA Rev-Exp Region 5'!$V$73/'MMA Rev-Exp Region 5'!$V$9, 0)","v":{"v":0,"d":"$0.00"}},{"$f":"IFERROR('MMA Rev-Exp Region 5'!$W$73/'MMA Rev-Exp Region 5'!$W$9, 0)","v":{"v":0,"d":"$0.00"}},{"$f":"IFERROR('MMA Rev-Exp Region 5'!$X$73/'MMA Rev-Exp Region 5'!$X$9, 0)","v":{"v":0,"d":"$0.00"}},{"$f":"IFERROR('MMA Rev-Exp Region 5'!$Y$73/'MMA Rev-Exp Region 5'!$Y$9, 0)","v":{"v":0,"d":"$0.00"}}]
["MMA",null,null,2016,"2016-12-31","Q2","2017-06-30","Region 5","Operating Expense","Medical Benefits Expense","Expanded Benefits","10.3","Ending IBNP for Expanded Benefits",{"$f":"IFERROR('MMA Rev-Exp Region 5'!$O$74/'MMA Rev-Exp Region 5'!$O$9, 0)","v":{"v":0,"d":"$0.00"}},{"$f":"IFERROR('MMA Rev-Exp Region 5'!$P$74/'MMA Rev-Exp Region 5'!$P$9, 0)","v":{"v":0,"d":"$0.00"}},{"$f":"IFERROR('MMA Rev-Exp Region 5'!$Q$74/'MMA Rev-Exp Region 5'!$Q$9, 0)","v":{"v":0,"d":"$0.00"}},{"$f":"IFERROR('MMA Rev-Exp Region 5'!$R$74/'MMA Rev-Exp Region 5'!$R$9, 0)","v":{"v":0,"d":"$0.00"}},{"$f":"IFERROR('MMA Rev-Exp Region 5'!$S$74/'MMA Rev-Exp Region 5'!$S$9, 0)","v":{"v":0,"d":"$0.00"}},{"$f":"IFERROR('MMA Rev-Exp Region 5'!$T$74/'MMA Rev-Exp Region 5'!$T$9, 0)","v":{"v":0,"d":"$0.00"}},{"$f":"IFERROR('MMA Rev-Exp Region 5'!$U$74/'MMA Rev-Exp Region 5'!$U$9, 0)","v":{"v":0,"d":"$0.00"}},{"$f":"IFERROR('MMA Rev-Exp Region 5'!$V$74/'MMA Rev-Exp Region 5'!$V$9, 0)","v":{"v":0,"d":"$0.00"}},{"$f":"IFERROR('MMA Rev-Exp Region 5'!$W$74/'MMA Rev-Exp Region 5'!$W$9, 0)","v":{"v":0,"d":"$0.00"}},{"$f":"IFERROR('MMA Rev-Exp Region 5'!$X$74/'MMA Rev-Exp Region 5'!$X$9, 0)","v":{"v":0,"d":"$0.00"}},{"$f":"IFERROR('MMA Rev-Exp Region 5'!$Y$74/'MMA Rev-Exp Region 5'!$Y$9, 0)","v":{"v":0,"d":"$0.00"}}]
["MMA",null,null,2016,"2016-12-31","Q2","2017-06-30","Region 5","Operating Expense","Medical Benefits Expense","Expanded Benefits","10.4","Expanded Benefits Settlements",{"$f":"IFERROR('MMA Rev-Exp Region 5'!$O$75/'MMA Rev-Exp Region 5'!$O$9, 0)","v":{"v":0,"d":"$0.00"}},{"$f":"IFERROR('MMA Rev-Exp Region 5'!$P$75/'MMA Rev-Exp Region 5'!$P$9, 0)","v":{"v":0,"d":"$0.00"}},{"$f":"IFERROR('MMA Rev-Exp Region 5'!$Q$75/'MMA Rev-Exp Region 5'!$Q$9, 0)","v":{"v":0,"d":"$0.00"}},{"$f":"IFERROR('MMA Rev-Exp Region 5'!$R$75/'MMA Rev-Exp Region 5'!$R$9, 0)","v":{"v":0,"d":"$0.00"}},{"$f":"IFERROR('MMA Rev-Exp Region 5'!$S$75/'MMA Rev-Exp Region 5'!$S$9, 0)","v":{"v":0,"d":"$0.00"}},{"$f":"IFERROR('MMA Rev-Exp Region 5'!$T$75/'MMA Rev-Exp Region 5'!$T$9, 0)","v":{"v":0,"d":"$0.00"}},{"$f":"IFERROR('MMA Rev-Exp Region 5'!$U$75/'MMA Rev-Exp Region 5'!$U$9, 0)","v":{"v":0,"d":"$0.00"}},{"$f":"IFERROR('MMA Rev-Exp Region 5'!$V$75/'MMA Rev-Exp Region 5'!$V$9, 0)","v":{"v":0,"d":"$0.00"}},{"$f":"IFERROR('MMA Rev-Exp Region 5'!$W$75/'MMA Rev-Exp Region 5'!$W$9, 0)","v":{"v":0,"d":"$0.00"}},{"$f":"IFERROR('MMA Rev-Exp Region 5'!$X$75/'MMA Rev-Exp Region 5'!$X$9, 0)","v":{"v":0,"d":"$0.00"}},{"$f":"IFERROR('MMA Rev-Exp Region 5'!$Y$75/'MMA Rev-Exp Region 5'!$Y$9, 0)","v":{"v":0,"d":"$0.00"}}]
["MMA",null,null,2016,"2016-12-31","Q2","2017-06-30","Region 5","Operating Expense","Medical Benefits Expense","Other Medical","11.5","TPL & Fraud/Abuse Recoveries",{"$f":"IFERROR('MMA Rev-Exp Region 5'!$O$81/'MMA Rev-Exp Region 5'!$O$9, 0)","v":{"v":0,"d":"$0.00"}},{"$f":"IFERROR('MMA Rev-Exp Region 5'!$P$81/'MMA Rev-Exp Region 5'!$P$9, 0)","v":{"v":0,"d":"$0.00"}},{"$f":"IFERROR('MMA Rev-Exp Region 5'!$Q$81/'MMA Rev-Exp Region 5'!$Q$9, 0)","v":{"v":0,"d":"$0.00"}},{"$f":"IFERROR('MMA Rev-Exp Region 5'!$R$81/'MMA Rev-Exp Region 5'!$R$9, 0)","v":{"v":0,"d":"$0.00"}},{"$f":"IFERROR('MMA Rev-Exp Region 5'!$S$81/'MMA Rev-Exp Region 5'!$S$9, 0)","v":{"v":0,"d":"$0.00"}},{"$f":"IFERROR('MMA Rev-Exp Region 5'!$T$81/'MMA Rev-Exp Region 5'!$T$9, 0)","v":{"v":0,"d":"$0.00"}},{"$f":"IFERROR('MMA Rev-Exp Region 5'!$U$81/'MMA Rev-Exp Region 5'!$U$9, 0)","v":{"v":0,"d":"$0.00"}},{"$f":"IFERROR('MMA Rev-Exp Region 5'!$V$81/'MMA Rev-Exp Region 5'!$V$9, 0)","v":{"v":0,"d":"$0.00"}},{"$f":"IFERROR('MMA Rev-Exp Region 5'!$W$81/'MMA Rev-Exp Region 5'!$W$9, 0)","v":{"v":0,"d":"$0.00"}},{"$f":"IFERROR('MMA Rev-Exp Region 5'!$X$81/'MMA Rev-Exp Region 5'!$X$9, 0)","v":{"v":0,"d":"$0.00"}},{"$f":"IFERROR('MMA Rev-Exp Region 5'!$Y$81/'MMA Rev-Exp Region 5'!$Y$9, 0)","v":{"v":0,"d":"$0.00"}}]
["MMA",null,null,2016,"2016-12-31","Q2","2017-06-30","Region 5","Operating Expense","Medical Benefits Expense","Other Medical","11.6.1","Premium Deficiency Reserve",{"$f":"IFERROR('MMA Rev-Exp Region 5'!$O$82/'MMA Rev-Exp Region 5'!$O$9, 0)","v":{"v":0,"d":"$0.00"}},{"$f":"IFERROR('MMA Rev-Exp Region 5'!$P$82/'MMA Rev-Exp Region 5'!$P$9, 0)","v":{"v":0,"d":"$0.00"}},{"$f":"IFERROR('MMA Rev-Exp Region 5'!$Q$82/'MMA Rev-Exp Region 5'!$Q$9, 0)","v":{"v":0,"d":"$0.00"}},{"$f":"IFERROR('MMA Rev-Exp Region 5'!$R$82/'MMA Rev-Exp Region 5'!$R$9, 0)","v":{"v":0,"d":"$0.00"}},{"$f":"IFERROR('MMA Rev-Exp Region 5'!$S$82/'MMA Rev-Exp Region 5'!$S$9, 0)","v":{"v":0,"d":"$0.00"}},{"$f":"IFERROR('MMA Rev-Exp Region 5'!$T$82/'MMA Rev-Exp Region 5'!$T$9, 0)","v":{"v":0,"d":"$0.00"}},{"$f":"IFERROR('MMA Rev-Exp Region 5'!$U$82/'MMA Rev-Exp Region 5'!$U$9, 0)","v":{"v":0,"d":"$0.00"}},{"$f":"IFERROR('MMA Rev-Exp Region 5'!$V$82/'MMA Rev-Exp Region 5'!$V$9, 0)","v":{"v":0,"d":"$0.00"}},{"$f":"IFERROR('MMA Rev-Exp Region 5'!$W$82/'MMA Rev-Exp Region 5'!$W$9, 0)","v":{"v":0,"d":"$0.00"}},{"$f":"IFERROR('MMA Rev-Exp Region 5'!$X$82/'MMA Rev-Exp Region 5'!$X$9, 0)","v":{"v":0,"d":"$0.00"}},{"$f":"IFERROR('MMA Rev-Exp Region 5'!$Y$82/'MMA Rev-Exp Region 5'!$Y$9, 0)","v":{"v":0,"d":"$0.00"}}]
["MMA",null,null,2016,"2016-12-31","Q2","2017-06-30","Region 5","Operating Expense","Medical Benefits Expense","Other Medical","11.8","Reinsurance Premiums",{"$f":"IFERROR('MMA Rev-Exp Region 5'!$O$84/'MMA Rev-Exp Region 5'!$O$9, 0)","v":{"v":0,"d":"$0.00"}},{"$f":"IFERROR('MMA Rev-Exp Region 5'!$P$84/'MMA Rev-Exp Region 5'!$P$9, 0)","v":{"v":0,"d":"$0.00"}},{"$f":"IFERROR('MMA Rev-Exp Region 5'!$Q$84/'MMA Rev-Exp Region 5'!$Q$9, 0)","v":{"v":0,"d":"$0.00"}},{"$f":"IFERROR('MMA Rev-Exp Region 5'!$R$84/'MMA Rev-Exp Region 5'!$R$9, 0)","v":{"v":0,"d":"$0.00"}},{"$f":"IFERROR('MMA Rev-Exp Region 5'!$S$84/'MMA Rev-Exp Region 5'!$S$9, 0)","v":{"v":0,"d":"$0.00"}},{"$f":"IFERROR('MMA Rev-Exp Region 5'!$T$84/'MMA Rev-Exp Region 5'!$T$9, 0)","v":{"v":0,"d":"$0.00"}},{"$f":"IFERROR('MMA Rev-Exp Region 5'!$U$84/'MMA Rev-Exp Region 5'!$U$9, 0)","v":{"v":0,"d":"$0.00"}},{"$f":"IFERROR('MMA Rev-Exp Region 5'!$V$84/'MMA Rev-Exp Region 5'!$V$9, 0)","v":{"v":0,"d":"$0.00"}},{"$f":"IFERROR('MMA Rev-Exp Region 5'!$W$84/'MMA Rev-Exp Region 5'!$W$9, 0)","v":{"v":0,"d":"$0.00"}},{"$f":"IFERROR('MMA Rev-Exp Region 5'!$X$84/'MMA Rev-Exp Region 5'!$X$9, 0)","v":{"v":0,"d":"$0.00"}},{"$f":"IFERROR('MMA Rev-Exp Region 5'!$Y$84/'MMA Rev-Exp Region 5'!$Y$9, 0)","v":{"v":0,"d":"$0.00"}}]
["MMA",null,null,2016,"2016-12-31","Q2","2017-06-30","Region 5","Operating Expense","Medical Benefits Expense","Other Medical","11.9","Reinsurance Recoveries",{"$f":"IFERROR('MMA Rev-Exp Region 5'!$O$85/'MMA Rev-Exp Region 5'!$O$9, 0)","v":{"v":0,"d":"$0.00"}},{"$f":"IFERROR('MMA Rev-Exp Region 5'!$P$85/'MMA Rev-Exp Region 5'!$P$9, 0)","v":{"v":0,"d":"$0.00"}},{"$f":"IFERROR('MMA Rev-Exp Region 5'!$Q$85/'MMA Rev-Exp Region 5'!$Q$9, 0)","v":{"v":0,"d":"$0.00"}},{"$f":"IFERROR('MMA Rev-Exp Region 5'!$R$85/'MMA Rev-Exp Region 5'!$R$9, 0)","v":{"v":0,"d":"$0.00"}},{"$f":"IFERROR('MMA Rev-Exp Region 5'!$S$85/'MMA Rev-Exp Region 5'!$S$9, 0)","v":{"v":0,"d":"$0.00"}},{"$f":"IFERROR('MMA Rev-Exp Region 5'!$T$85/'MMA Rev-Exp Region 5'!$T$9, 0)","v":{"v":0,"d":"$0.00"}},{"$f":"IFERROR('MMA Rev-Exp Region 5'!$U$85/'MMA Rev-Exp Region 5'!$U$9, 0)","v":{"v":0,"d":"$0.00"}},{"$f":"IFERROR('MMA Rev-Exp Region 5'!$V$85/'MMA Rev-Exp Region 5'!$V$9, 0)","v":{"v":0,"d":"$0.00"}},{"$f":"IFERROR('MMA Rev-Exp Region 5'!$W$85/'MMA Rev-Exp Region 5'!$W$9, 0)","v":{"v":0,"d":"$0.00"}},{"$f":"IFERROR('MMA Rev-Exp Region 5'!$X$85/'MMA Rev-Exp Region 5'!$X$9, 0)","v":{"v":0,"d":"$0.00"}},{"$f":"IFERROR('MMA Rev-Exp Region 5'!$Y$85/'MMA Rev-Exp Region 5'!$Y$9, 0)","v":{"v":0,"d":"$0.00"}}]
["MMA",null,null,2016,"2016-12-31","Q2","2017-06-30","Region 5","Operating Expense","Administrative Expense","Administrative","12.1","Salaries & Benefits",{"$f":"IFERROR('MMA Rev-Exp Region 5'!$O$90/'MMA Rev-Exp Region 5'!$O$9, 0)","v":{"v":0,"d":"$0.00"}},{"$f":"IFERROR('MMA Rev-Exp Region 5'!$P$90/'MMA Rev-Exp Region 5'!$O$9, 0)","v":{"v":0,"d":"$0.00"}},{"$f":"IFERROR('MMA Rev-Exp Region 5'!$Q$90/'MMA Rev-Exp Region 5'!$O$9, 0)","v":{"v":0,"d":"$0.00"}},{"$f":"IFERROR('MMA Rev-Exp Region 5'!$R$90/'MMA Rev-Exp Region 5'!$R$9, 0)","v":{"v":0,"d":"$0.00"}},{"$f":"IFERROR('MMA Rev-Exp Region 5'!$S$90/'MMA Rev-Exp Region 5'!$S$9, 0)","v":{"v":0,"d":"$0.00"}},{"$f":"IFERROR('MMA Rev-Exp Region 5'!$T$90/'MMA Rev-Exp Region 5'!$T$9, 0)","v":{"v":0,"d":"$0.00"}},{"$f":"IFERROR('MMA Rev-Exp Region 5'!$U$90/'MMA Rev-Exp Region 5'!$U$9, 0)","v":{"v":0,"d":"$0.00"}},{"$f":"IFERROR('MMA Rev-Exp Region 5'!$V$90/'MMA Rev-Exp Region 5'!$V$9, 0)","v":{"v":0,"d":"$0.00"}},{"$f":"IFERROR('MMA Rev-Exp Region 5'!$W$90/'MMA Rev-Exp Region 5'!$W$9, 0)","v":{"v":0,"d":"$0.00"}},{"$f":"IFERROR('MMA Rev-Exp Region 5'!$X$90/'MMA Rev-Exp Region 5'!$X$9, 0)","v":{"v":0,"d":"$0.00"}},{"$f":"IFERROR('MMA Rev-Exp Region 5'!$Y$90/'MMA Rev-Exp Region 5'!$Y$9, 0)","v":{"v":0,"d":"$0.00"}}]
["MMA",null,null,2016,"2016-12-31","Q2","2017-06-30","Region 5","Operating Expense","Administrative Expense","Administrative","12.2","Administrative Services",{"$f":"IFERROR('MMA Rev-Exp Region 5'!$O$91/'MMA Rev-Exp Region 5'!$O$9, 0)","v":{"v":0,"d":"$0.00"}},{"$f":"IFERROR('MMA Rev-Exp Region 5'!$P$91/'MMA Rev-Exp Region 5'!$O$9, 0)","v":{"v":0,"d":"$0.00"}},{"$f":"IFERROR('MMA Rev-Exp Region 5'!$Q$91/'MMA Rev-Exp Region 5'!$O$9, 0)","v":{"v":0,"d":"$0.00"}},{"$f":"IFERROR('MMA Rev-Exp Region 5'!$R$91/'MMA Rev-Exp Region 5'!$R$9, 0)","v":{"v":0,"d":"$0.00"}},{"$f":"IFERROR('MMA Rev-Exp Region 5'!$S$91/'MMA Rev-Exp Region 5'!$S$9, 0)","v":{"v":0,"d":"$0.00"}},{"$f":"IFERROR('MMA Rev-Exp Region 5'!$T$91/'MMA Rev-Exp Region 5'!$T$9, 0)","v":{"v":0,"d":"$0.00"}},{"$f":"IFERROR('MMA Rev-Exp Region 5'!$U$91/'MMA Rev-Exp Region 5'!$U$9, 0)","v":{"v":0,"d":"$0.00"}},{"$f":"IFERROR('MMA Rev-Exp Region 5'!$V$91/'MMA Rev-Exp Region 5'!$V$9, 0)","v":{"v":0,"d":"$0.00"}},{"$f":"IFERROR('MMA Rev-Exp Region 5'!$W$91/'MMA Rev-Exp Region 5'!$W$9, 0)","v":{"v":0,"d":"$0.00"}},{"$f":"IFERROR('MMA Rev-Exp Region 5'!$X$91/'MMA Rev-Exp Region 5'!$X$9, 0)","v":{"v":0,"d":"$0.00"}},{"$f":"IFERROR('MMA Rev-Exp Region 5'!$Y$91/'MMA Rev-Exp Region 5'!$Y$9, 0)","v":{"v":0,"d":"$0.00"}}]
["MMA",null,null,2016,"2016-12-31","Q2","2017-06-30","Region 5","Operating Expense","Administrative Expense","Administrative","12.3","Information Systems",{"$f":"IFERROR('MMA Rev-Exp Region 5'!$O$92/'MMA Rev-Exp Region 5'!$O$9, 0)","v":{"v":0,"d":"$0.00"}},{"$f":"IFERROR('MMA Rev-Exp Region 5'!$P$92/'MMA Rev-Exp Region 5'!$O$9, 0)","v":{"v":0,"d":"$0.00"}},{"$f":"IFERROR('MMA Rev-Exp Region 5'!$Q$92/'MMA Rev-Exp Region 5'!$O$9, 0)","v":{"v":0,"d":"$0.00"}},{"$f":"IFERROR('MMA Rev-Exp Region 5'!$R$92/'MMA Rev-Exp Region 5'!$R$9, 0)","v":{"v":0,"d":"$0.00"}},{"$f":"IFERROR('MMA Rev-Exp Region 5'!$S$92/'MMA Rev-Exp Region 5'!$S$9, 0)","v":{"v":0,"d":"$0.00"}},{"$f":"IFERROR('MMA Rev-Exp Region 5'!$T$92/'MMA Rev-Exp Region 5'!$T$9, 0)","v":{"v":0,"d":"$0.00"}},{"$f":"IFERROR('MMA Rev-Exp Region 5'!$U$92/'MMA Rev-Exp Region 5'!$U$9, 0)","v":{"v":0,"d":"$0.00"}},{"$f":"IFERROR('MMA Rev-Exp Region 5'!$V$92/'MMA Rev-Exp Region 5'!$V$9, 0)","v":{"v":0,"d":"$0.00"}},{"$f":"IFERROR('MMA Rev-Exp Region 5'!$W$92/'MMA Rev-Exp Region 5'!$W$9, 0)","v":{"v":0,"d":"$0.00"}},{"$f":"IFERROR('MMA Rev-Exp Region 5'!$X$92/'MMA Rev-Exp Region 5'!$X$9, 0)","v":{"v":0,"d":"$0.00"}},{"$f":"IFERROR('MMA Rev-Exp Region 5'!$Y$92/'MMA Rev-Exp Region 5'!$Y$9, 0)","v":{"v":0,"d":"$0.00"}}]
["MMA",null,null,2016,"2016-12-31","Q2","2017-06-30","Region 5","Operating Expense","Administrative Expense","Administrative","12.4","Marketing Expenses",{"$f":"IFERROR('MMA Rev-Exp Region 5'!$O$93/'MMA Rev-Exp Region 5'!$O$9, 0)","v":{"v":0,"d":"$0.00"}},{"$f":"IFERROR('MMA Rev-Exp Region 5'!$P$93/'MMA Rev-Exp Region 5'!$O$9, 0)","v":{"v":0,"d":"$0.00"}},{"$f":"IFERROR('MMA Rev-Exp Region 5'!$Q$93/'MMA Rev-Exp Region 5'!$O$9, 0)","v":{"v":0,"d":"$0.00"}}]
["MMA",null,null,2016,"2016-12-31","Q2","2017-06-30","Region 5","Operating Expense","Administrative Expense","Administrative","12.5","General  Administration",{"$f":"IFERROR('MMA Rev-Exp Region 5'!$O$94/'MMA Rev-Exp Region 5'!$O$9, 0)","v":{"v":0,"d":"$0.00"}},{"$f":"IFERROR('MMA Rev-Exp Region 5'!$P$94/'MMA Rev-Exp Region 5'!$O$9, 0)","v":{"v":0,"d":"$0.00"}},{"$f":"IFERROR('MMA Rev-Exp Region 5'!$Q$94/'MMA Rev-Exp Region 5'!$O$9, 0)","v":{"v":0,"d":"$0.00"}}]
["MMA",null,null,2016,"2016-12-31","Q2","2017-06-30","Region 5","Operating Expense","Administrative Expense","Administrative","12.6","Compliance/Regulatory",{"$f":"IFERROR('MMA Rev-Exp Region 5'!$O$95/'MMA Rev-Exp Region 5'!$O$9, 0)","v":{"v":0,"d":"$0.00"}},{"$f":"IFERROR('MMA Rev-Exp Region 5'!$P$95/'MMA Rev-Exp Region 5'!$O$9, 0)","v":{"v":0,"d":"$0.00"}},{"$f":"IFERROR('MMA Rev-Exp Region 5'!$Q$95/'MMA Rev-Exp Region 5'!$O$9, 0)","v":{"v":0,"d":"$0.00"}}]
["MMA",null,null,2016,"2016-12-31","Q2","2017-06-30","Region 5","Operating Expense","Taxes & Fees","Taxes & Fees","13.1","State Premium tax",{"$f":"IFERROR('MMA Rev-Exp Region 5'!$O$97/'MMA Rev-Exp Region 5'!$O$9, 0)","v":{"v":0,"d":"$0.00"}}]
["MMA",null,null,2016,"2016-12-31","Q2","2017-06-30","Region 5","Operating Expense","Taxes & Fees","Taxes & Fees","13.2","Department of Insurance Assessments",{"$f":"IFERROR('MMA Rev-Exp Region 5'!$O$98/'MMA Rev-Exp Region 5'!$O$9, 0)","v":{"v":0,"d":"$0.00"}}]
["MMA",null,null,2016,"2016-12-31","Q2","2017-06-30","Region 5","Operating Expense","Taxes & Fees","Taxes & Fees","13.3","Section 9010 Health Insurance Providers Fee",{"$f":"IFERROR('MMA Rev-Exp Region 5'!$O$99/'MMA Rev-Exp Region 5'!$O$9, 0)","v":{"v":0,"d":"$0.00"}}]
["MMA",null,null,2016,"2016-12-31","Q2","2017-06-30","Region 5","Non-Operating Expense","Income Tax Expense","Income Tax Expense","16.0","Income Tax Expense",{"$f":"IFERROR('MMA Rev-Exp Region 5'!$O$106/'MMA Rev-Exp Region 5'!$O$9, 0)","v":{"v":0,"d":"$0.00"}}]
["MMA",null,null,2016,"2016-12-31","Q3","2017-09-30","Region 5","Operating Revenue","Capitation","Capitation",1.1,"Capitation",{"$f":"IFERROR('MMA Rev-Exp Region 5'!$Z$11/'MMA Rev-Exp Region 5'!$Z$9, 0)","v":{"v":0,"d":"$0.00"}},{"$f":"IFERROR('MMA Rev-Exp Region 5'!$AA$11/'MMA Rev-Exp Region 5'!$AA$9, 0)","v":{"v":0,"d":"$0.00"}},{"$f":"IFERROR('MMA Rev-Exp Region 5'!$AB$11/'MMA Rev-Exp Region 5'!$AB$9, 0)","v":{"v":0,"d":"$0.00"}},{"$f":"IFERROR('MMA Rev-Exp Region 5'!$AC$11/'MMA Rev-Exp Region 5'!$AC$9, 0)","v":{"v":0,"d":"$0.00"}},{"$f":"IFERROR('MMA Rev-Exp Region 5'!$AD$11/'MMA Rev-Exp Region 5'!$AD$9, 0)","v":{"v":0,"d":"$0.00"}},{"$f":"IFERROR('MMA Rev-Exp Region 5'!$AE$11/'MMA Rev-Exp Region 5'!$AE$9, 0)","v":{"v":0,"d":"$0.00"}},{"$f":"IFERROR('MMA Rev-Exp Region 5'!$AF$11/'MMA Rev-Exp Region 5'!$AF$9, 0)","v":{"v":0,"d":"$0.00"}},{"$f":"IFERROR('MMA Rev-Exp Region 5'!$AG$11/'MMA Rev-Exp Region 5'!$AG$9, 0)","v":{"v":0,"d":"$0.00"}},{"$f":"IFERROR('MMA Rev-Exp Region 5'!$AH$11/'MMA Rev-Exp Region 5'!$AH$9, 0)","v":{"v":0,"d":"$0.00"}},{"$f":"IFERROR('MMA Rev-Exp Region 5'!$AI$11/'MMA Rev-Exp Region 5'!$AI$9, 0)","v":{"v":0,"d":"$0.00"}},{"$f":"IFERROR('MMA Rev-Exp Region 5'!$AJ$11/'MMA Rev-Exp Region 5'!$AJ$9, 0)","v":{"v":0,"d":"$0.00"}}]
["MMA",null,null,2016,"2016-12-31","Q3","2017-09-30","Region 5","Operating Revenue","Kick Payments","Kick Payments - Transplant",1.2,"Transplant Kick Payments",{"$f":"IFERROR('MMA Rev-Exp Region 5'!$Z$12/'MMA Rev-Exp Region 5'!$Z$9, 0)","v":{"v":0,"d":"$0.00"}},{"$f":"IFERROR('MMA Rev-Exp Region 5'!$AA$12/'MMA Rev-Exp Region 5'!$AA$9, 0)","v":{"v":0,"d":"$0.00"}},{"$f":"IFERROR('MMA Rev-Exp Region 5'!$AB$12/'MMA Rev-Exp Region 5'!$AB$9, 0)","v":{"v":0,"d":"$0.00"}},{"$f":"IFERROR('MMA Rev-Exp Region 5'!$AC$12/'MMA Rev-Exp Region 5'!$AC$9, 0)","v":{"v":0,"d":"$0.00"}},{"$f":"IFERROR('MMA Rev-Exp Region 5'!$AD$12/'MMA Rev-Exp Region 5'!$AD$9, 0)","v":{"v":0,"d":"$0.00"}},{"$f":"IFERROR('MMA Rev-Exp Region 5'!$AE$12/'MMA Rev-Exp Region 5'!$AE$9, 0)","v":{"v":0,"d":"$0.00"}},{"$f":"IFERROR('MMA Rev-Exp Region 5'!$AF$12/'MMA Rev-Exp Region 5'!$AF$9, 0)","v":{"v":0,"d":"$0.00"}},{"$f":"IFERROR('MMA Rev-Exp Region 5'!$AG$12/'MMA Rev-Exp Region 5'!$AG$9, 0)","v":{"v":0,"d":"$0.00"}},{"$f":"IFERROR('MMA Rev-Exp Region 5'!$AH$12/'MMA Rev-Exp Region 5'!$AH$9, 0)","v":{"v":0,"d":"$0.00"}},{"$f":"IFERROR('MMA Rev-Exp Region 5'!$AI$12/'MMA Rev-Exp Region 5'!$AI$9, 0)","v":{"v":0,"d":"$0.00"}},{"$f":"IFERROR('MMA Rev-Exp Region 5'!$AJ$12/'MMA Rev-Exp Region 5'!$AJ$9, 0)","v":{"v":0,"d":"$0.00"}}]
["MMA",null,null,2016,"2016-12-31","Q3","2017-09-30","Region 5","Operating Revenue","Kick Payments","Kick Payments - Hep C","1.3","Hepatitis C Kick Payments",{"$f":"IFERROR('MMA Rev-Exp Region 5'!$Z$13/'MMA Rev-Exp Region 5'!$Z$9, 0)","v":{"v":0,"d":"$0.00"}},{"$f":"IFERROR('MMA Rev-Exp Region 5'!$AA$13/'MMA Rev-Exp Region 5'!$AA$9, 0)","v":{"v":0,"d":"$0.00"}},{"$f":"IFERROR('MMA Rev-Exp Region 5'!$AB$13/'MMA Rev-Exp Region 5'!$AB$9, 0)","v":{"v":0,"d":"$0.00"}},{"$f":"IFERROR('MMA Rev-Exp Region 5'!$AC$13/'MMA Rev-Exp Region 5'!$AC$9, 0)","v":{"v":0,"d":"$0.00"}},{"$f":"IFERROR('MMA Rev-Exp Region 5'!$AD$13/'MMA Rev-Exp Region 5'!$AD$9, 0)","v":{"v":0,"d":"$0.00"}},{"$f":"IFERROR('MMA Rev-Exp Region 5'!$AE$13/'MMA Rev-Exp Region 5'!$AE$9, 0)","v":{"v":0,"d":"$0.00"}},{"$f":"IFERROR('MMA Rev-Exp Region 5'!$AF$13/'MMA Rev-Exp Region 5'!$AF$9, 0)","v":{"v":0,"d":"$0.00"}},{"$f":"IFERROR('MMA Rev-Exp Region 5'!$AG$13/'MMA Rev-Exp Region 5'!$AG$9, 0)","v":{"v":0,"d":"$0.00"}},{"$f":"IFERROR('MMA Rev-Exp Region 5'!$AH$13/'MMA Rev-Exp Region 5'!$AH$9, 0)","v":{"v":0,"d":"$0.00"}},{"$f":"IFERROR('MMA Rev-Exp Region 5'!$AI$13/'MMA Rev-Exp Region 5'!$AI$9, 0)","v":{"v":0,"d":"$0.00"}},{"$f":"IFERROR('MMA Rev-Exp Region 5'!$AJ$13/'MMA Rev-Exp Region 5'!$AJ$9, 0)","v":{"v":0,"d":"$0.00"}}]
["MMA",null,null,2016,"2016-12-31","Q3","2017-09-30","Region 5","Operating Revenue","Kick Payments","Kick Payments - Maternity","1.4.1","Maternity Kick Payments",{"$f":"IFERROR('MMA Rev-Exp Region 5'!$Z$14/'MMA Rev-Exp Region 5'!$Z$9, 0)","v":{"v":0,"d":"$0.00"}},{"$f":"IFERROR('MMA Rev-Exp Region 5'!$AA$14/'MMA Rev-Exp Region 5'!$AA$9, 0)","v":{"v":0,"d":"$0.00"}},{"$f":"IFERROR('MMA Rev-Exp Region 5'!$AB$14/'MMA Rev-Exp Region 5'!$AB$9, 0)","v":{"v":0,"d":"$0.00"}},{"$f":"IFERROR('MMA Rev-Exp Region 5'!$AC$14/'MMA Rev-Exp Region 5'!$AC$9, 0)","v":{"v":0,"d":"$0.00"}},{"$f":"IFERROR('MMA Rev-Exp Region 5'!$AD$14/'MMA Rev-Exp Region 5'!$AD$9, 0)","v":{"v":0,"d":"$0.00"}},{"$f":"IFERROR('MMA Rev-Exp Region 5'!$AE$14/'MMA Rev-Exp Region 5'!$AE$9, 0)","v":{"v":0,"d":"$0.00"}},{"$f":"IFERROR('MMA Rev-Exp Region 5'!$AF$14/'MMA Rev-Exp Region 5'!$AF$9, 0)","v":{"v":0,"d":"$0.00"}},{"$f":"IFERROR('MMA Rev-Exp Region 5'!$AG$14/'MMA Rev-Exp Region 5'!$AG$9, 0)","v":{"v":0,"d":"$0.00"}},{"$f":"IFERROR('MMA Rev-Exp Region 5'!$AH$14/'MMA Rev-Exp Region 5'!$AH$9, 0)","v":{"v":0,"d":"$0.00"}},{"$f":"IFERROR('MMA Rev-Exp Region 5'!$AI$14/'MMA Rev-Exp Region 5'!$AI$9, 0)","v":{"v":0,"d":"$0.00"}},{"$f":"IFERROR('MMA Rev-Exp Region 5'!$AJ$14/'MMA Rev-Exp Region 5'!$AJ$9, 0)","v":{"v":0,"d":"$0.00"}}]
["MMA",null,null,2016,"2016-12-31","Q3","2017-09-30","Region 5","Operating Revenue","Other Revenue","Other Revenue - 9010","1.5","ACA § 9010 related payments",{"$f":"IFERROR('MMA Rev-Exp Region 5'!$Z$15/'MMA Rev-Exp Region 5'!$Z$9, 0)","v":{"v":0,"d":"$0.00"}},{"$f":"IFERROR('MMA Rev-Exp Region 5'!$AA$15/'MMA Rev-Exp Region 5'!$AA$9, 0)","v":{"v":0,"d":"$0.00"}},{"$f":"IFERROR('MMA Rev-Exp Region 5'!$AB$15/'MMA Rev-Exp Region 5'!$AB$9, 0)","v":{"v":0,"d":"$0.00"}},{"$f":"IFERROR('MMA Rev-Exp Region 5'!$AC$15/'MMA Rev-Exp Region 5'!$AC$9, 0)","v":{"v":0,"d":"$0.00"}},{"$f":"IFERROR('MMA Rev-Exp Region 5'!$AD$15/'MMA Rev-Exp Region 5'!$AD$9, 0)","v":{"v":0,"d":"$0.00"}},{"$f":"IFERROR('MMA Rev-Exp Region 5'!$AE$15/'MMA Rev-Exp Region 5'!$AE$9, 0)","v":{"v":0,"d":"$0.00"}},{"$f":"IFERROR('MMA Rev-Exp Region 5'!$AF$15/'MMA Rev-Exp Region 5'!$AF$9, 0)","v":{"v":0,"d":"$0.00"}},{"$f":"IFERROR('MMA Rev-Exp Region 5'!$AG$15/'MMA Rev-Exp Region 5'!$AG$9, 0)","v":{"v":0,"d":"$0.00"}},{"$f":"IFERROR('MMA Rev-Exp Region 5'!$AH$15/'MMA Rev-Exp Region 5'!$AH$9, 0)","v":{"v":0,"d":"$0.00"}},{"$f":"IFERROR('MMA Rev-Exp Region 5'!$AI$15/'MMA Rev-Exp Region 5'!$AI$9, 0)","v":{"v":0,"d":"$0.00"}},{"$f":"IFERROR('MMA Rev-Exp Region 5'!$AJ$15/'MMA Rev-Exp Region 5'!$AJ$9, 0)","v":{"v":0,"d":"$0.00"}}]
["MMA",null,null,2016,"2016-12-31","Q3","2017-09-30","Region 5","Operating Revenue","Other Revenue","Other Revenue","1.6","Other Revenue",{"$f":"IFERROR('MMA Rev-Exp Region 5'!$Z$16/'MMA Rev-Exp Region 5'!$Z$9, 0)","v":{"v":0,"d":"$0.00"}},{"$f":"IFERROR('MMA Rev-Exp Region 5'!$AA$16/'MMA Rev-Exp Region 5'!$AA$9, 0)","v":{"v":0,"d":"$0.00"}},{"$f":"IFERROR('MMA Rev-Exp Region 5'!$AB$16/'MMA Rev-Exp Region 5'!$AB$9, 0)","v":{"v":0,"d":"$0.00"}},{"$f":"IFERROR('MMA Rev-Exp Region 5'!$AC$16/'MMA Rev-Exp Region 5'!$AC$9, 0)","v":{"v":0,"d":"$0.00"}},{"$f":"IFERROR('MMA Rev-Exp Region 5'!$AD$16/'MMA Rev-Exp Region 5'!$AD$9, 0)","v":{"v":0,"d":"$0.00"}},{"$f":"IFERROR('MMA Rev-Exp Region 5'!$AE$16/'MMA Rev-Exp Region 5'!$AE$9, 0)","v":{"v":0,"d":"$0.00"}},{"$f":"IFERROR('MMA Rev-Exp Region 5'!$AF$16/'MMA Rev-Exp Region 5'!$AF$9, 0)","v":{"v":0,"d":"$0.00"}},{"$f":"IFERROR('MMA Rev-Exp Region 5'!$AG$16/'MMA Rev-Exp Region 5'!$AG$9, 0)","v":{"v":0,"d":"$0.00"}},{"$f":"IFERROR('MMA Rev-Exp Region 5'!$AH$16/'MMA Rev-Exp Region 5'!$AH$9, 0)","v":{"v":0,"d":"$0.00"}},{"$f":"IFERROR('MMA Rev-Exp Region 5'!$AI$16/'MMA Rev-Exp Region 5'!$AI$9, 0)","v":{"v":0,"d":"$0.00"}},{"$f":"IFERROR('MMA Rev-Exp Region 5'!$AJ$16/'MMA Rev-Exp Region 5'!$AJ$9, 0)","v":{"v":0,"d":"$0.00"}}]
["MMA",null,null,2016,"2016-12-31","Q3","2017-09-30","Region 5","Operating Expense","Medical Benefits Expense","Hospital Services",2.1,"Inpatient FFS",{"$f":"IFERROR('MMA Rev-Exp Region 5'!$Z$20/'MMA Rev-Exp Region 5'!$Z$9, 0)","v":{"v":0,"d":"$0.00"}},{"$f":"IFERROR('MMA Rev-Exp Region 5'!$AA$20/'MMA Rev-Exp Region 5'!$AA$9, 0)","v":{"v":0,"d":"$0.00"}},{"$f":"IFERROR('MMA Rev-Exp Region 5'!$AB$20/'MMA Rev-Exp Region 5'!$AB$9, 0)","v":{"v":0,"d":"$0.00"}},{"$f":"IFERROR('MMA Rev-Exp Region 5'!$AC$20/'MMA Rev-Exp Region 5'!$AC$9, 0)","v":{"v":0,"d":"$0.00"}},{"$f":"IFERROR('MMA Rev-Exp Region 5'!$AD$20/'MMA Rev-Exp Region 5'!$AD$9, 0)","v":{"v":0,"d":"$0.00"}},{"$f":"IFERROR('MMA Rev-Exp Region 5'!$AE$20/'MMA Rev-Exp Region 5'!$AE$9, 0)","v":{"v":0,"d":"$0.00"}},{"$f":"IFERROR('MMA Rev-Exp Region 5'!$AF$20/'MMA Rev-Exp Region 5'!$AF$9, 0)","v":{"v":0,"d":"$0.00"}},{"$f":"IFERROR('MMA Rev-Exp Region 5'!$AG$20/'MMA Rev-Exp Region 5'!$AG$9, 0)","v":{"v":0,"d":"$0.00"}},{"$f":"IFERROR('MMA Rev-Exp Region 5'!$AH$20/'MMA Rev-Exp Region 5'!$AH$9, 0)","v":{"v":0,"d":"$0.00"}},{"$f":"IFERROR('MMA Rev-Exp Region 5'!$AI$20/'MMA Rev-Exp Region 5'!$AI$9, 0)","v":{"v":0,"d":"$0.00"}},{"$f":"IFERROR('MMA Rev-Exp Region 5'!$AJ$20/'MMA Rev-Exp Region 5'!$AJ$9, 0)","v":{"v":0,"d":"$0.00"}}]
["MMA",null,null,2016,"2016-12-31","Q3","2017-09-30","Region 5","Operating Expense","Medical Benefits Expense","Hospital Services",2.2,"Ending IBNP for Inpatient Hospital Services",{"$f":"IFERROR('MMA Rev-Exp Region 5'!$Z$21/'MMA Rev-Exp Region 5'!$Z$9, 0)","v":{"v":0,"d":"$0.00"}},{"$f":"IFERROR('MMA Rev-Exp Region 5'!$AA$21/'MMA Rev-Exp Region 5'!$AA$9, 0)","v":{"v":0,"d":"$0.00"}},{"$f":"IFERROR('MMA Rev-Exp Region 5'!$AB$21/'MMA Rev-Exp Region 5'!$AB$9, 0)","v":{"v":0,"d":"$0.00"}},{"$f":"IFERROR('MMA Rev-Exp Region 5'!$AC$21/'MMA Rev-Exp Region 5'!$AC$9, 0)","v":{"v":0,"d":"$0.00"}},{"$f":"IFERROR('MMA Rev-Exp Region 5'!$AD$21/'MMA Rev-Exp Region 5'!$AD$9, 0)","v":{"v":0,"d":"$0.00"}},{"$f":"IFERROR('MMA Rev-Exp Region 5'!$AE$21/'MMA Rev-Exp Region 5'!$AE$9, 0)","v":{"v":0,"d":"$0.00"}},{"$f":"IFERROR('MMA Rev-Exp Region 5'!$AF$21/'MMA Rev-Exp Region 5'!$AF$9, 0)","v":{"v":0,"d":"$0.00"}},{"$f":"IFERROR('MMA Rev-Exp Region 5'!$AG$21/'MMA Rev-Exp Region 5'!$AG$9, 0)","v":{"v":0,"d":"$0.00"}},{"$f":"IFERROR('MMA Rev-Exp Region 5'!$AH$21/'MMA Rev-Exp Region 5'!$AH$9, 0)","v":{"v":0,"d":"$0.00"}},{"$f":"IFERROR('MMA Rev-Exp Region 5'!$AI$21/'MMA Rev-Exp Region 5'!$AI$9, 0)","v":{"v":0,"d":"$0.00"}},{"$f":"IFERROR('MMA Rev-Exp Region 5'!$AJ$21/'MMA Rev-Exp Region 5'!$AJ$9, 0)","v":{"v":0,"d":"$0.00"}}]
["MMA",null,null,2016,"2016-12-31","Q3","2017-09-30","Region 5","Operating Expense","Medical Benefits Expense","Hospital Services",2.3,"Outpatient FFS: ER",{"$f":"IFERROR('MMA Rev-Exp Region 5'!$Z$22/'MMA Rev-Exp Region 5'!$Z$9, 0)","v":{"v":0,"d":"$0.00"}},{"$f":"IFERROR('MMA Rev-Exp Region 5'!$AA$22/'MMA Rev-Exp Region 5'!$AA$9, 0)","v":{"v":0,"d":"$0.00"}},{"$f":"IFERROR('MMA Rev-Exp Region 5'!$AB$22/'MMA Rev-Exp Region 5'!$AB$9, 0)","v":{"v":0,"d":"$0.00"}},{"$f":"IFERROR('MMA Rev-Exp Region 5'!$AC$22/'MMA Rev-Exp Region 5'!$AC$9, 0)","v":{"v":0,"d":"$0.00"}},{"$f":"IFERROR('MMA Rev-Exp Region 5'!$AD$22/'MMA Rev-Exp Region 5'!$AD$9, 0)","v":{"v":0,"d":"$0.00"}},{"$f":"IFERROR('MMA Rev-Exp Region 5'!$AE$22/'MMA Rev-Exp Region 5'!$AE$9, 0)","v":{"v":0,"d":"$0.00"}},{"$f":"IFERROR('MMA Rev-Exp Region 5'!$AF$22/'MMA Rev-Exp Region 5'!$AF$9, 0)","v":{"v":0,"d":"$0.00"}},{"$f":"IFERROR('MMA Rev-Exp Region 5'!$AG$22/'MMA Rev-Exp Region 5'!$AG$9, 0)","v":{"v":0,"d":"$0.00"}},{"$f":"IFERROR('MMA Rev-Exp Region 5'!$AH$22/'MMA Rev-Exp Region 5'!$AH$9, 0)","v":{"v":0,"d":"$0.00"}},{"$f":"IFERROR('MMA Rev-Exp Region 5'!$AI$22/'MMA Rev-Exp Region 5'!$AI$9, 0)","v":{"v":0,"d":"$0.00"}},{"$f":"IFERROR('MMA Rev-Exp Region 5'!$AJ$22/'MMA Rev-Exp Region 5'!$AJ$9, 0)","v":{"v":0,"d":"$0.00"}}]
["MMA",null,null,2016,"2016-12-31","Q3","2017-09-30","Region 5","Operating Expense","Medical Benefits Expense","Hospital Services",2.4,"Outpatient FFS: Other than ER ",{"$f":"IFERROR('MMA Rev-Exp Region 5'!$Z$23/'MMA Rev-Exp Region 5'!$Z$9, 0)","v":{"v":0,"d":"$0.00"}},{"$f":"IFERROR('MMA Rev-Exp Region 5'!$AA$23/'MMA Rev-Exp Region 5'!$AA$9, 0)","v":{"v":0,"d":"$0.00"}},{"$f":"IFERROR('MMA Rev-Exp Region 5'!$AB$23/'MMA Rev-Exp Region 5'!$AB$9, 0)","v":{"v":0,"d":"$0.00"}},{"$f":"IFERROR('MMA Rev-Exp Region 5'!$AC$23/'MMA Rev-Exp Region 5'!$AC$9, 0)","v":{"v":0,"d":"$0.00"}},{"$f":"IFERROR('MMA Rev-Exp Region 5'!$AD$23/'MMA Rev-Exp Region 5'!$AD$9, 0)","v":{"v":0,"d":"$0.00"}},{"$f":"IFERROR('MMA Rev-Exp Region 5'!$AE$23/'MMA Rev-Exp Region 5'!$AE$9, 0)","v":{"v":0,"d":"$0.00"}},{"$f":"IFERROR('MMA Rev-Exp Region 5'!$AF$23/'MMA Rev-Exp Region 5'!$AF$9, 0)","v":{"v":0,"d":"$0.00"}},{"$f":"IFERROR('MMA Rev-Exp Region 5'!$AG$23/'MMA Rev-Exp Region 5'!$AG$9, 0)","v":{"v":0,"d":"$0.00"}},{"$f":"IFERROR('MMA Rev-Exp Region 5'!$AH$23/'MMA Rev-Exp Region 5'!$AH$9, 0)","v":{"v":0,"d":"$0.00"}},{"$f":"IFERROR('MMA Rev-Exp Region 5'!$AI$23/'MMA Rev-Exp Region 5'!$AI$9, 0)","v":{"v":0,"d":"$0.00"}},{"$f":"IFERROR('MMA Rev-Exp Region 5'!$AJ$23/'MMA Rev-Exp Region 5'!$AJ$9, 0)","v":{"v":0,"d":"$0.00"}}]
["MMA",null,null,2016,"2016-12-31","Q3","2017-09-30","Region 5","Operating Expense","Medical Benefits Expense","Hospital Services",2.5,"Ending IBNP for Outpatient Hospital Services",{"$f":"IFERROR('MMA Rev-Exp Region 5'!$Z$24/'MMA Rev-Exp Region 5'!$Z$9, 0)","v":{"v":0,"d":"$0.00"}},{"$f":"IFERROR('MMA Rev-Exp Region 5'!$AA$24/'MMA Rev-Exp Region 5'!$AA$9, 0)","v":{"v":0,"d":"$0.00"}},{"$f":"IFERROR('MMA Rev-Exp Region 5'!$AB$24/'MMA Rev-Exp Region 5'!$AB$9, 0)","v":{"v":0,"d":"$0.00"}},{"$f":"IFERROR('MMA Rev-Exp Region 5'!$AC$24/'MMA Rev-Exp Region 5'!$AC$9, 0)","v":{"v":0,"d":"$0.00"}},{"$f":"IFERROR('MMA Rev-Exp Region 5'!$AD$24/'MMA Rev-Exp Region 5'!$AD$9, 0)","v":{"v":0,"d":"$0.00"}},{"$f":"IFERROR('MMA Rev-Exp Region 5'!$AE$24/'MMA Rev-Exp Region 5'!$AE$9, 0)","v":{"v":0,"d":"$0.00"}},{"$f":"IFERROR('MMA Rev-Exp Region 5'!$AF$24/'MMA Rev-Exp Region 5'!$AF$9, 0)","v":{"v":0,"d":"$0.00"}},{"$f":"IFERROR('MMA Rev-Exp Region 5'!$AG$24/'MMA Rev-Exp Region 5'!$AG$9, 0)","v":{"v":0,"d":"$0.00"}},{"$f":"IFERROR('MMA Rev-Exp Region 5'!$AH$24/'MMA Rev-Exp Region 5'!$AH$9, 0)","v":{"v":0,"d":"$0.00"}},{"$f":"IFERROR('MMA Rev-Exp Region 5'!$AI$24/'MMA Rev-Exp Region 5'!$AI$9, 0)","v":{"v":0,"d":"$0.00"}},{"$f":"IFERROR('MMA Rev-Exp Region 5'!$AJ$24/'MMA Rev-Exp Region 5'!$AJ$9, 0)","v":{"v":0,"d":"$0.00"}}]
["MMA",null,null,2016,"2016-12-31","Q3","2017-09-30","Region 5","Operating Expense","Medical Benefits Expense","Hospital Services","2.6","Subcapitated Hospital Services",{"$f":"IFERROR('MMA Rev-Exp Region 5'!$Z$25/'MMA Rev-Exp Region 5'!$Z$9, 0)","v":{"v":0,"d":"$0.00"}},{"$f":"IFERROR('MMA Rev-Exp Region 5'!$AA$25/'MMA Rev-Exp Region 5'!$AA$9, 0)","v":{"v":0,"d":"$0.00"}},{"$f":"IFERROR('MMA Rev-Exp Region 5'!$AB$25/'MMA Rev-Exp Region 5'!$AB$9, 0)","v":{"v":0,"d":"$0.00"}},{"$f":"IFERROR('MMA Rev-Exp Region 5'!$AC$25/'MMA Rev-Exp Region 5'!$AC$9, 0)","v":{"v":0,"d":"$0.00"}},{"$f":"IFERROR('MMA Rev-Exp Region 5'!$AD$25/'MMA Rev-Exp Region 5'!$AD$9, 0)","v":{"v":0,"d":"$0.00"}},{"$f":"IFERROR('MMA Rev-Exp Region 5'!$AE$25/'MMA Rev-Exp Region 5'!$AE$9, 0)","v":{"v":0,"d":"$0.00"}},{"$f":"IFERROR('MMA Rev-Exp Region 5'!$AF$25/'MMA Rev-Exp Region 5'!$AF$9, 0)","v":{"v":0,"d":"$0.00"}},{"$f":"IFERROR('MMA Rev-Exp Region 5'!$AG$25/'MMA Rev-Exp Region 5'!$AG$9, 0)","v":{"v":0,"d":"$0.00"}},{"$f":"IFERROR('MMA Rev-Exp Region 5'!$AH$25/'MMA Rev-Exp Region 5'!$AH$9, 0)","v":{"v":0,"d":"$0.00"}},{"$f":"IFERROR('MMA Rev-Exp Region 5'!$AI$25/'MMA Rev-Exp Region 5'!$AI$9, 0)","v":{"v":0,"d":"$0.00"}},{"$f":"IFERROR('MMA Rev-Exp Region 5'!$AJ$25/'MMA Rev-Exp Region 5'!$AJ$9, 0)","v":{"v":0,"d":"$0.00"}}]
["MMA",null,null,2016,"2016-12-31","Q3","2017-09-30","Region 5","Operating Expense","Medical Benefits Expense","Hospital Services","2.7","Hospital Settlements",{"$f":"IFERROR('MMA Rev-Exp Region 5'!$Z$26/'MMA Rev-Exp Region 5'!$Z$9, 0)","v":{"v":0,"d":"$0.00"}},{"$f":"IFERROR('MMA Rev-Exp Region 5'!$AA$26/'MMA Rev-Exp Region 5'!$AA$9, 0)","v":{"v":0,"d":"$0.00"}},{"$f":"IFERROR('MMA Rev-Exp Region 5'!$AB$26/'MMA Rev-Exp Region 5'!$AB$9, 0)","v":{"v":0,"d":"$0.00"}},{"$f":"IFERROR('MMA Rev-Exp Region 5'!$AC$26/'MMA Rev-Exp Region 5'!$AC$9, 0)","v":{"v":0,"d":"$0.00"}},{"$f":"IFERROR('MMA Rev-Exp Region 5'!$AD$26/'MMA Rev-Exp Region 5'!$AD$9, 0)","v":{"v":0,"d":"$0.00"}},{"$f":"IFERROR('MMA Rev-Exp Region 5'!$AE$26/'MMA Rev-Exp Region 5'!$AE$9, 0)","v":{"v":0,"d":"$0.00"}},{"$f":"IFERROR('MMA Rev-Exp Region 5'!$AF$26/'MMA Rev-Exp Region 5'!$AF$9, 0)","v":{"v":0,"d":"$0.00"}},{"$f":"IFERROR('MMA Rev-Exp Region 5'!$AG$26/'MMA Rev-Exp Region 5'!$AG$9, 0)","v":{"v":0,"d":"$0.00"}},{"$f":"IFERROR('MMA Rev-Exp Region 5'!$AH$26/'MMA Rev-Exp Region 5'!$AH$9, 0)","v":{"v":0,"d":"$0.00"}},{"$f":"IFERROR('MMA Rev-Exp Region 5'!$AI$26/'MMA Rev-Exp Region 5'!$AI$9, 0)","v":{"v":0,"d":"$0.00"}},{"$f":"IFERROR('MMA Rev-Exp Region 5'!$AJ$26/'MMA Rev-Exp Region 5'!$AJ$9, 0)","v":{"v":0,"d":"$0.00"}}]
["MMA",null,null,2016,"2016-12-31","Q3","2017-09-30","Region 5","Operating Expense","Medical Benefits Expense","Hospital Services","2.7.1","Transplant Services",{"$f":"IFERROR('MMA Rev-Exp Region 5'!$Z$27/'MMA Rev-Exp Region 5'!$Z$9, 0)","v":{"v":0,"d":"$0.00"}},{"$f":"IFERROR('MMA Rev-Exp Region 5'!$AA$27/'MMA Rev-Exp Region 5'!$AA$9, 0)","v":{"v":0,"d":"$0.00"}},{"$f":"IFERROR('MMA Rev-Exp Region 5'!$AB$27/'MMA Rev-Exp Region 5'!$AB$9, 0)","v":{"v":0,"d":"$0.00"}},{"$f":"IFERROR('MMA Rev-Exp Region 5'!$AC$27/'MMA Rev-Exp Region 5'!$AC$9, 0)","v":{"v":0,"d":"$0.00"}},{"$f":"IFERROR('MMA Rev-Exp Region 5'!$AD$27/'MMA Rev-Exp Region 5'!$AD$9, 0)","v":{"v":0,"d":"$0.00"}},{"$f":"IFERROR('MMA Rev-Exp Region 5'!$AE$27/'MMA Rev-Exp Region 5'!$AE$9, 0)","v":{"v":0,"d":"$0.00"}},{"$f":"IFERROR('MMA Rev-Exp Region 5'!$AF$27/'MMA Rev-Exp Region 5'!$AF$9, 0)","v":{"v":0,"d":"$0.00"}},{"$f":"IFERROR('MMA Rev-Exp Region 5'!$AG$27/'MMA Rev-Exp Region 5'!$AG$9, 0)","v":{"v":0,"d":"$0.00"}},{"$f":"IFERROR('MMA Rev-Exp Region 5'!$AH$27/'MMA Rev-Exp Region 5'!$AH$9, 0)","v":{"v":0,"d":"$0.00"}},{"$f":"IFERROR('MMA Rev-Exp Region 5'!$AI$27/'MMA Rev-Exp Region 5'!$AI$9, 0)","v":{"v":0,"d":"$0.00"}},{"$f":"IFERROR('MMA Rev-Exp Region 5'!$AJ$27/'MMA Rev-Exp Region 5'!$AJ$9, 0)","v":{"v":0,"d":"$0.00"}}]
["MMA",null,null,2016,"2016-12-31","Q3","2017-09-30","Region 5","Operating Expense","Medical Benefits Expense","Professional Services",3.1,"Primary Care FFS",{"$f":"IFERROR('MMA Rev-Exp Region 5'!$Z$29/'MMA Rev-Exp Region 5'!$Z$9, 0)","v":{"v":0,"d":"$0.00"}},{"$f":"IFERROR('MMA Rev-Exp Region 5'!$AA$29/'MMA Rev-Exp Region 5'!$AA$9, 0)","v":{"v":0,"d":"$0.00"}},{"$f":"IFERROR('MMA Rev-Exp Region 5'!$AB$29/'MMA Rev-Exp Region 5'!$AB$9, 0)","v":{"v":0,"d":"$0.00"}},{"$f":"IFERROR('MMA Rev-Exp Region 5'!$AC$29/'MMA Rev-Exp Region 5'!$AC$9, 0)","v":{"v":0,"d":"$0.00"}},{"$f":"IFERROR('MMA Rev-Exp Region 5'!$AD$29/'MMA Rev-Exp Region 5'!$AD$9, 0)","v":{"v":0,"d":"$0.00"}},{"$f":"IFERROR('MMA Rev-Exp Region 5'!$AE$29/'MMA Rev-Exp Region 5'!$AE$9, 0)","v":{"v":0,"d":"$0.00"}},{"$f":"IFERROR('MMA Rev-Exp Region 5'!$AF$29/'MMA Rev-Exp Region 5'!$AF$9, 0)","v":{"v":0,"d":"$0.00"}},{"$f":"IFERROR('MMA Rev-Exp Region 5'!$AG$29/'MMA Rev-Exp Region 5'!$AG$9, 0)","v":{"v":0,"d":"$0.00"}},{"$f":"IFERROR('MMA Rev-Exp Region 5'!$AH$29/'MMA Rev-Exp Region 5'!$AH$9, 0)","v":{"v":0,"d":"$0.00"}},{"$f":"IFERROR('MMA Rev-Exp Region 5'!$AI$29/'MMA Rev-Exp Region 5'!$AI$9, 0)","v":{"v":0,"d":"$0.00"}},{"$f":"IFERROR('MMA Rev-Exp Region 5'!$AJ$29/'MMA Rev-Exp Region 5'!$AJ$9, 0)","v":{"v":0,"d":"$0.00"}}]
["MMA",null,null,2016,"2016-12-31","Q3","2017-09-30","Region 5","Operating Expense","Medical Benefits Expense","Professional Services",3.2,"Specialty Care FFS",{"$f":"IFERROR('MMA Rev-Exp Region 5'!$Z$30/'MMA Rev-Exp Region 5'!$Z$9, 0)","v":{"v":0,"d":"$0.00"}},{"$f":"IFERROR('MMA Rev-Exp Region 5'!$AA$30/'MMA Rev-Exp Region 5'!$AA$9, 0)","v":{"v":0,"d":"$0.00"}},{"$f":"IFERROR('MMA Rev-Exp Region 5'!$AB$30/'MMA Rev-Exp Region 5'!$AB$9, 0)","v":{"v":0,"d":"$0.00"}},{"$f":"IFERROR('MMA Rev-Exp Region 5'!$AC$30/'MMA Rev-Exp Region 5'!$AC$9, 0)","v":{"v":0,"d":"$0.00"}},{"$f":"IFERROR('MMA Rev-Exp Region 5'!$AD$30/'MMA Rev-Exp Region 5'!$AD$9, 0)","v":{"v":0,"d":"$0.00"}},{"$f":"IFERROR('MMA Rev-Exp Region 5'!$AE$30/'MMA Rev-Exp Region 5'!$AE$9, 0)","v":{"v":0,"d":"$0.00"}},{"$f":"IFERROR('MMA Rev-Exp Region 5'!$AF$30/'MMA Rev-Exp Region 5'!$AF$9, 0)","v":{"v":0,"d":"$0.00"}},{"$f":"IFERROR('MMA Rev-Exp Region 5'!$AG$30/'MMA Rev-Exp Region 5'!$AG$9, 0)","v":{"v":0,"d":"$0.00"}},{"$f":"IFERROR('MMA Rev-Exp Region 5'!$AH$30/'MMA Rev-Exp Region 5'!$AH$9, 0)","v":{"v":0,"d":"$0.00"}},{"$f":"IFERROR('MMA Rev-Exp Region 5'!$AI$30/'MMA Rev-Exp Region 5'!$AI$9, 0)","v":{"v":0,"d":"$0.00"}},{"$f":"IFERROR('MMA Rev-Exp Region 5'!$AJ$30/'MMA Rev-Exp Region 5'!$AJ$9, 0)","v":{"v":0,"d":"$0.00"}}]
["MMA",null,null,2016,"2016-12-31","Q3","2017-09-30","Region 5","Operating Expense","Medical Benefits Expense","Professional Services",3.3,"Other Professional FFS",{"$f":"IFERROR('MMA Rev-Exp Region 5'!$Z$31/'MMA Rev-Exp Region 5'!$Z$9, 0)","v":{"v":0,"d":"$0.00"}},{"$f":"IFERROR('MMA Rev-Exp Region 5'!$AA$31/'MMA Rev-Exp Region 5'!$AA$9, 0)","v":{"v":0,"d":"$0.00"}},{"$f":"IFERROR('MMA Rev-Exp Region 5'!$AB$31/'MMA Rev-Exp Region 5'!$AB$9, 0)","v":{"v":0,"d":"$0.00"}},{"$f":"IFERROR('MMA Rev-Exp Region 5'!$AC$31/'MMA Rev-Exp Region 5'!$AC$9, 0)","v":{"v":0,"d":"$0.00"}},{"$f":"IFERROR('MMA Rev-Exp Region 5'!$AD$31/'MMA Rev-Exp Region 5'!$AD$9, 0)","v":{"v":0,"d":"$0.00"}},{"$f":"IFERROR('MMA Rev-Exp Region 5'!$AE$31/'MMA Rev-Exp Region 5'!$AE$9, 0)","v":{"v":0,"d":"$0.00"}},{"$f":"IFERROR('MMA Rev-Exp Region 5'!$AF$31/'MMA Rev-Exp Region 5'!$AF$9, 0)","v":{"v":0,"d":"$0.00"}},{"$f":"IFERROR('MMA Rev-Exp Region 5'!$AG$31/'MMA Rev-Exp Region 5'!$AG$9, 0)","v":{"v":0,"d":"$0.00"}},{"$f":"IFERROR('MMA Rev-Exp Region 5'!$AH$31/'MMA Rev-Exp Region 5'!$AH$9, 0)","v":{"v":0,"d":"$0.00"}},{"$f":"IFERROR('MMA Rev-Exp Region 5'!$AI$31/'MMA Rev-Exp Region 5'!$AI$9, 0)","v":{"v":0,"d":"$0.00"}},{"$f":"IFERROR('MMA Rev-Exp Region 5'!$AJ$31/'MMA Rev-Exp Region 5'!$AJ$9, 0)","v":{"v":0,"d":"$0.00"}}]
["MMA",null,null,2016,"2016-12-31","Q3","2017-09-30","Region 5","Operating Expense","Medical Benefits Expense","Professional Services","3.4","§ 1202 PCP Payments to providers",{"$f":"IFERROR('MMA Rev-Exp Region 5'!$Z$32/'MMA Rev-Exp Region 5'!$Z$9, 0)","v":{"v":0,"d":"$0.00"}},{"$f":"IFERROR('MMA Rev-Exp Region 5'!$AA$32/'MMA Rev-Exp Region 5'!$AA$9, 0)","v":{"v":0,"d":"$0.00"}},{"$f":"IFERROR('MMA Rev-Exp Region 5'!$AB$32/'MMA Rev-Exp Region 5'!$AB$9, 0)","v":{"v":0,"d":"$0.00"}},{"$f":"IFERROR('MMA Rev-Exp Region 5'!$AC$32/'MMA Rev-Exp Region 5'!$AC$9, 0)","v":{"v":0,"d":"$0.00"}},{"$f":"IFERROR('MMA Rev-Exp Region 5'!$AD$32/'MMA Rev-Exp Region 5'!$AD$9, 0)","v":{"v":0,"d":"$0.00"}},{"$f":"IFERROR('MMA Rev-Exp Region 5'!$AE$32/'MMA Rev-Exp Region 5'!$AE$9, 0)","v":{"v":0,"d":"$0.00"}},{"$f":"IFERROR('MMA Rev-Exp Region 5'!$AF$32/'MMA Rev-Exp Region 5'!$AF$9, 0)","v":{"v":0,"d":"$0.00"}},{"$f":"IFERROR('MMA Rev-Exp Region 5'!$AG$32/'MMA Rev-Exp Region 5'!$AG$9, 0)","v":{"v":0,"d":"$0.00"}},{"$f":"IFERROR('MMA Rev-Exp Region 5'!$AH$32/'MMA Rev-Exp Region 5'!$AH$9, 0)","v":{"v":0,"d":"$0.00"}},{"$f":"IFERROR('MMA Rev-Exp Region 5'!$AI$32/'MMA Rev-Exp Region 5'!$AI$9, 0)","v":{"v":0,"d":"$0.00"}},{"$f":"IFERROR('MMA Rev-Exp Region 5'!$AJ$32/'MMA Rev-Exp Region 5'!$AJ$9, 0)","v":{"v":0,"d":"$0.00"}}]
["MMA",null,null,2016,"2016-12-31","Q3","2017-09-30","Region 5","Operating Expense","Medical Benefits Expense","Professional Services","3.5","Subcapitated Professional Services",{"$f":"IFERROR('MMA Rev-Exp Region 5'!$Z$33/'MMA Rev-Exp Region 5'!$Z$9, 0)","v":{"v":0,"d":"$0.00"}},{"$f":"IFERROR('MMA Rev-Exp Region 5'!$AA$33/'MMA Rev-Exp Region 5'!$AA$9, 0)","v":{"v":0,"d":"$0.00"}},{"$f":"IFERROR('MMA Rev-Exp Region 5'!$AB$33/'MMA Rev-Exp Region 5'!$AB$9, 0)","v":{"v":0,"d":"$0.00"}},{"$f":"IFERROR('MMA Rev-Exp Region 5'!$AC$33/'MMA Rev-Exp Region 5'!$AC$9, 0)","v":{"v":0,"d":"$0.00"}},{"$f":"IFERROR('MMA Rev-Exp Region 5'!$AD$33/'MMA Rev-Exp Region 5'!$AD$9, 0)","v":{"v":0,"d":"$0.00"}},{"$f":"IFERROR('MMA Rev-Exp Region 5'!$AE$33/'MMA Rev-Exp Region 5'!$AE$9, 0)","v":{"v":0,"d":"$0.00"}},{"$f":"IFERROR('MMA Rev-Exp Region 5'!$AF$33/'MMA Rev-Exp Region 5'!$AF$9, 0)","v":{"v":0,"d":"$0.00"}},{"$f":"IFERROR('MMA Rev-Exp Region 5'!$AG$33/'MMA Rev-Exp Region 5'!$AG$9, 0)","v":{"v":0,"d":"$0.00"}},{"$f":"IFERROR('MMA Rev-Exp Region 5'!$AH$33/'MMA Rev-Exp Region 5'!$AH$9, 0)","v":{"v":0,"d":"$0.00"}},{"$f":"IFERROR('MMA Rev-Exp Region 5'!$AI$33/'MMA Rev-Exp Region 5'!$AI$9, 0)","v":{"v":0,"d":"$0.00"}},{"$f":"IFERROR('MMA Rev-Exp Region 5'!$AJ$33/'MMA Rev-Exp Region 5'!$AJ$9, 0)","v":{"v":0,"d":"$0.00"}}]
["MMA",null,null,2016,"2016-12-31","Q3","2017-09-30","Region 5","Operating Expense","Medical Benefits Expense","Professional Services","3.6","Ending IBNP for Professional Services",{"$f":"IFERROR('MMA Rev-Exp Region 5'!$Z$34/'MMA Rev-Exp Region 5'!$Z$9, 0)","v":{"v":0,"d":"$0.00"}},{"$f":"IFERROR('MMA Rev-Exp Region 5'!$AA$34/'MMA Rev-Exp Region 5'!$AA$9, 0)","v":{"v":0,"d":"$0.00"}},{"$f":"IFERROR('MMA Rev-Exp Region 5'!$AB$34/'MMA Rev-Exp Region 5'!$AB$9, 0)","v":{"v":0,"d":"$0.00"}},{"$f":"IFERROR('MMA Rev-Exp Region 5'!$AC$34/'MMA Rev-Exp Region 5'!$AC$9, 0)","v":{"v":0,"d":"$0.00"}},{"$f":"IFERROR('MMA Rev-Exp Region 5'!$AD$34/'MMA Rev-Exp Region 5'!$AD$9, 0)","v":{"v":0,"d":"$0.00"}},{"$f":"IFERROR('MMA Rev-Exp Region 5'!$AE$34/'MMA Rev-Exp Region 5'!$AE$9, 0)","v":{"v":0,"d":"$0.00"}},{"$f":"IFERROR('MMA Rev-Exp Region 5'!$AF$34/'MMA Rev-Exp Region 5'!$AF$9, 0)","v":{"v":0,"d":"$0.00"}},{"$f":"IFERROR('MMA Rev-Exp Region 5'!$AG$34/'MMA Rev-Exp Region 5'!$AG$9, 0)","v":{"v":0,"d":"$0.00"}},{"$f":"IFERROR('MMA Rev-Exp Region 5'!$AH$34/'MMA Rev-Exp Region 5'!$AH$9, 0)","v":{"v":0,"d":"$0.00"}},{"$f":"IFERROR('MMA Rev-Exp Region 5'!$AI$34/'MMA Rev-Exp Region 5'!$AI$9, 0)","v":{"v":0,"d":"$0.00"}},{"$f":"IFERROR('MMA Rev-Exp Region 5'!$AJ$34/'MMA Rev-Exp Region 5'!$AJ$9, 0)","v":{"v":0,"d":"$0.00"}}]
["MMA",null,null,2016,"2016-12-31","Q3","2017-09-30","Region 5","Operating Expense","Medical Benefits Expense","Professional Services","3.7","Professional Services Settlements",{"$f":"IFERROR('MMA Rev-Exp Region 5'!$Z$35/'MMA Rev-Exp Region 5'!$Z$9, 0)","v":{"v":0,"d":"$0.00"}},{"$f":"IFERROR('MMA Rev-Exp Region 5'!$AA$35/'MMA Rev-Exp Region 5'!$AA$9, 0)","v":{"v":0,"d":"$0.00"}},{"$f":"IFERROR('MMA Rev-Exp Region 5'!$AB$35/'MMA Rev-Exp Region 5'!$AB$9, 0)","v":{"v":0,"d":"$0.00"}},{"$f":"IFERROR('MMA Rev-Exp Region 5'!$AC$35/'MMA Rev-Exp Region 5'!$AC$9, 0)","v":{"v":0,"d":"$0.00"}},{"$f":"IFERROR('MMA Rev-Exp Region 5'!$AD$35/'MMA Rev-Exp Region 5'!$AD$9, 0)","v":{"v":0,"d":"$0.00"}},{"$f":"IFERROR('MMA Rev-Exp Region 5'!$AE$35/'MMA Rev-Exp Region 5'!$AE$9, 0)","v":{"v":0,"d":"$0.00"}},{"$f":"IFERROR('MMA Rev-Exp Region 5'!$AF$35/'MMA Rev-Exp Region 5'!$AF$9, 0)","v":{"v":0,"d":"$0.00"}},{"$f":"IFERROR('MMA Rev-Exp Region 5'!$AG$35/'MMA Rev-Exp Region 5'!$AG$9, 0)","v":{"v":0,"d":"$0.00"}},{"$f":"IFERROR('MMA Rev-Exp Region 5'!$AH$35/'MMA Rev-Exp Region 5'!$AH$9, 0)","v":{"v":0,"d":"$0.00"}},{"$f":"IFERROR('MMA Rev-Exp Region 5'!$AI$35/'MMA Rev-Exp Region 5'!$AI$9, 0)","v":{"v":0,"d":"$0.00"}},{"$f":"IFERROR('MMA Rev-Exp Region 5'!$AJ$35/'MMA Rev-Exp Region 5'!$AJ$9, 0)","v":{"v":0,"d":"$0.00"}}]
["MMA",null,null,2016,"2016-12-31","Q3","2017-09-30","Region 5","Operating Expense","Medical Benefits Expense","Maternity Services","4.1.1","Maternity Services",{"$f":"IFERROR('MMA Rev-Exp Region 5'!$Z$37/'MMA Rev-Exp Region 5'!$Z$9, 0)","v":{"v":0,"d":"$0.00"}},{"$f":"IFERROR('MMA Rev-Exp Region 5'!$AA$37/'MMA Rev-Exp Region 5'!$AA$9, 0)","v":{"v":0,"d":"$0.00"}},{"$f":"IFERROR('MMA Rev-Exp Region 5'!$AB$37/'MMA Rev-Exp Region 5'!$AB$9, 0)","v":{"v":0,"d":"$0.00"}},{"$f":"IFERROR('MMA Rev-Exp Region 5'!$AC$37/'MMA Rev-Exp Region 5'!$AC$9, 0)","v":{"v":0,"d":"$0.00"}},{"$f":"IFERROR('MMA Rev-Exp Region 5'!$AD$37/'MMA Rev-Exp Region 5'!$AD$9, 0)","v":{"v":0,"d":"$0.00"}},{"$f":"IFERROR('MMA Rev-Exp Region 5'!$AE$37/'MMA Rev-Exp Region 5'!$AE$9, 0)","v":{"v":0,"d":"$0.00"}},{"$f":"IFERROR('MMA Rev-Exp Region 5'!$AF$37/'MMA Rev-Exp Region 5'!$AF$9, 0)","v":{"v":0,"d":"$0.00"}},{"$f":"IFERROR('MMA Rev-Exp Region 5'!$AG$37/'MMA Rev-Exp Region 5'!$AG$9, 0)","v":{"v":0,"d":"$0.00"}},{"$f":"IFERROR('MMA Rev-Exp Region 5'!$AH$37/'MMA Rev-Exp Region 5'!$AH$9, 0)","v":{"v":0,"d":"$0.00"}},{"$f":"IFERROR('MMA Rev-Exp Region 5'!$AI$37/'MMA Rev-Exp Region 5'!$AI$9, 0)","v":{"v":0,"d":"$0.00"}},{"$f":"IFERROR('MMA Rev-Exp Region 5'!$AJ$37/'MMA Rev-Exp Region 5'!$AJ$9, 0)","v":{"v":0,"d":"$0.00"}}]
["MMA",null,null,2016,"2016-12-31","Q3","2017-09-30","Region 5","Operating Expense","Medical Benefits Expense","Maternity Services","4.2.1","Ending IBNP for Maternity Services",{"$f":"IFERROR('MMA Rev-Exp Region 5'!$Z$38/'MMA Rev-Exp Region 5'!$Z$9, 0)","v":{"v":0,"d":"$0.00"}},{"$f":"IFERROR('MMA Rev-Exp Region 5'!$AA$38/'MMA Rev-Exp Region 5'!$AA$9, 0)","v":{"v":0,"d":"$0.00"}},{"$f":"IFERROR('MMA Rev-Exp Region 5'!$AB$38/'MMA Rev-Exp Region 5'!$AB$9, 0)","v":{"v":0,"d":"$0.00"}},{"$f":"IFERROR('MMA Rev-Exp Region 5'!$AC$38/'MMA Rev-Exp Region 5'!$AC$9, 0)","v":{"v":0,"d":"$0.00"}},{"$f":"IFERROR('MMA Rev-Exp Region 5'!$AD$38/'MMA Rev-Exp Region 5'!$AD$9, 0)","v":{"v":0,"d":"$0.00"}},{"$f":"IFERROR('MMA Rev-Exp Region 5'!$AE$38/'MMA Rev-Exp Region 5'!$AE$9, 0)","v":{"v":0,"d":"$0.00"}},{"$f":"IFERROR('MMA Rev-Exp Region 5'!$AF$38/'MMA Rev-Exp Region 5'!$AF$9, 0)","v":{"v":0,"d":"$0.00"}},{"$f":"IFERROR('MMA Rev-Exp Region 5'!$AG$38/'MMA Rev-Exp Region 5'!$AG$9, 0)","v":{"v":0,"d":"$0.00"}},{"$f":"IFERROR('MMA Rev-Exp Region 5'!$AH$38/'MMA Rev-Exp Region 5'!$AH$9, 0)","v":{"v":0,"d":"$0.00"}},{"$f":"IFERROR('MMA Rev-Exp Region 5'!$AI$38/'MMA Rev-Exp Region 5'!$AI$9, 0)","v":{"v":0,"d":"$0.00"}},{"$f":"IFERROR('MMA Rev-Exp Region 5'!$AJ$38/'MMA Rev-Exp Region 5'!$AJ$9, 0)","v":{"v":0,"d":"$0.00"}}]
["MMA",null,null,2016,"2016-12-31","Q3","2017-09-30","Region 5","Operating Expense","Medical Benefits Expense","Maternity Services","4.3.1","Maternity Settlements",{"$f":"IFERROR('MMA Rev-Exp Region 5'!$Z$39/'MMA Rev-Exp Region 5'!$Z$9, 0)","v":{"v":0,"d":"$0.00"}},{"$f":"IFERROR('MMA Rev-Exp Region 5'!$AA$39/'MMA Rev-Exp Region 5'!$AA$9, 0)","v":{"v":0,"d":"$0.00"}},{"$f":"IFERROR('MMA Rev-Exp Region 5'!$AB$39/'MMA Rev-Exp Region 5'!$AB$9, 0)","v":{"v":0,"d":"$0.00"}},{"$f":"IFERROR('MMA Rev-Exp Region 5'!$AC$39/'MMA Rev-Exp Region 5'!$AC$9, 0)","v":{"v":0,"d":"$0.00"}},{"$f":"IFERROR('MMA Rev-Exp Region 5'!$AD$39/'MMA Rev-Exp Region 5'!$AD$9, 0)","v":{"v":0,"d":"$0.00"}},{"$f":"IFERROR('MMA Rev-Exp Region 5'!$AE$39/'MMA Rev-Exp Region 5'!$AE$9, 0)","v":{"v":0,"d":"$0.00"}},{"$f":"IFERROR('MMA Rev-Exp Region 5'!$AF$39/'MMA Rev-Exp Region 5'!$AF$9, 0)","v":{"v":0,"d":"$0.00"}},{"$f":"IFERROR('MMA Rev-Exp Region 5'!$AG$39/'MMA Rev-Exp Region 5'!$AG$9, 0)","v":{"v":0,"d":"$0.00"}},{"$f":"IFERROR('MMA Rev-Exp Region 5'!$AH$39/'MMA Rev-Exp Region 5'!$AH$9, 0)","v":{"v":0,"d":"$0.00"}},{"$f":"IFERROR('MMA Rev-Exp Region 5'!$AI$39/'MMA Rev-Exp Region 5'!$AI$9, 0)","v":{"v":0,"d":"$0.00"}},{"$f":"IFERROR('MMA Rev-Exp Region 5'!$AJ$39/'MMA Rev-Exp Region 5'!$AJ$9, 0)","v":{"v":0,"d":"$0.00"}}]
["MMA",null,null,2016,"2016-12-31","Q3","2017-09-30","Region 5","Operating Expense","Medical Benefits Expense","Mental Health Services",5.1,"Mental Health & Substance Abuse FFS",{"$f":"IFERROR('MMA Rev-Exp Region 5'!$Z$41/'MMA Rev-Exp Region 5'!$Z$9, 0)","v":{"v":0,"d":"$0.00"}},{"$f":"IFERROR('MMA Rev-Exp Region 5'!$AA$41/'MMA Rev-Exp Region 5'!$AA$9, 0)","v":{"v":0,"d":"$0.00"}},{"$f":"IFERROR('MMA Rev-Exp Region 5'!$AB$41/'MMA Rev-Exp Region 5'!$AB$9, 0)","v":{"v":0,"d":"$0.00"}},{"$f":"IFERROR('MMA Rev-Exp Region 5'!$AC$41/'MMA Rev-Exp Region 5'!$AC$9, 0)","v":{"v":0,"d":"$0.00"}},{"$f":"IFERROR('MMA Rev-Exp Region 5'!$AD$41/'MMA Rev-Exp Region 5'!$AD$9, 0)","v":{"v":0,"d":"$0.00"}},{"$f":"IFERROR('MMA Rev-Exp Region 5'!$AE$41/'MMA Rev-Exp Region 5'!$AE$9, 0)","v":{"v":0,"d":"$0.00"}},{"$f":"IFERROR('MMA Rev-Exp Region 5'!$AF$41/'MMA Rev-Exp Region 5'!$AF$9, 0)","v":{"v":0,"d":"$0.00"}},{"$f":"IFERROR('MMA Rev-Exp Region 5'!$AG$41/'MMA Rev-Exp Region 5'!$AG$9, 0)","v":{"v":0,"d":"$0.00"}},{"$f":"IFERROR('MMA Rev-Exp Region 5'!$AH$41/'MMA Rev-Exp Region 5'!$AH$9, 0)","v":{"v":0,"d":"$0.00"}},{"$f":"IFERROR('MMA Rev-Exp Region 5'!$AI$41/'MMA Rev-Exp Region 5'!$AI$9, 0)","v":{"v":0,"d":"$0.00"}},{"$f":"IFERROR('MMA Rev-Exp Region 5'!$AJ$41/'MMA Rev-Exp Region 5'!$AJ$9, 0)","v":{"v":0,"d":"$0.00"}}]
["MMA",null,null,2016,"2016-12-31","Q3","2017-09-30","Region 5","Operating Expense","Medical Benefits Expense","Mental Health Services",5.2,"Mental Health & Substance Abuse Subcapitation",{"$f":"IFERROR('MMA Rev-Exp Region 5'!$Z$42/'MMA Rev-Exp Region 5'!$Z$9, 0)","v":{"v":0,"d":"$0.00"}},{"$f":"IFERROR('MMA Rev-Exp Region 5'!$AA$42/'MMA Rev-Exp Region 5'!$AA$9, 0)","v":{"v":0,"d":"$0.00"}},{"$f":"IFERROR('MMA Rev-Exp Region 5'!$AB$42/'MMA Rev-Exp Region 5'!$AB$9, 0)","v":{"v":0,"d":"$0.00"}},{"$f":"IFERROR('MMA Rev-Exp Region 5'!$AC$42/'MMA Rev-Exp Region 5'!$AC$9, 0)","v":{"v":0,"d":"$0.00"}},{"$f":"IFERROR('MMA Rev-Exp Region 5'!$AD$42/'MMA Rev-Exp Region 5'!$AD$9, 0)","v":{"v":0,"d":"$0.00"}},{"$f":"IFERROR('MMA Rev-Exp Region 5'!$AE$42/'MMA Rev-Exp Region 5'!$AE$9, 0)","v":{"v":0,"d":"$0.00"}},{"$f":"IFERROR('MMA Rev-Exp Region 5'!$AF$42/'MMA Rev-Exp Region 5'!$AF$9, 0)","v":{"v":0,"d":"$0.00"}},{"$f":"IFERROR('MMA Rev-Exp Region 5'!$AG$42/'MMA Rev-Exp Region 5'!$AG$9, 0)","v":{"v":0,"d":"$0.00"}},{"$f":"IFERROR('MMA Rev-Exp Region 5'!$AH$42/'MMA Rev-Exp Region 5'!$AH$9, 0)","v":{"v":0,"d":"$0.00"}},{"$f":"IFERROR('MMA Rev-Exp Region 5'!$AI$42/'MMA Rev-Exp Region 5'!$AI$9, 0)","v":{"v":0,"d":"$0.00"}},{"$f":"IFERROR('MMA Rev-Exp Region 5'!$AJ$42/'MMA Rev-Exp Region 5'!$AJ$9, 0)","v":{"v":0,"d":"$0.00"}}]
["MMA",null,null,2016,"2016-12-31","Q3","2017-09-30","Region 5","Operating Expense","Medical Benefits Expense","Mental Health Services",5.3,"Ending IBNP for Mental Health & Substance Abuse",{"$f":"IFERROR('MMA Rev-Exp Region 5'!$Z$43/'MMA Rev-Exp Region 5'!$Z$9, 0)","v":{"v":0,"d":"$0.00"}},{"$f":"IFERROR('MMA Rev-Exp Region 5'!$AA$43/'MMA Rev-Exp Region 5'!$AA$9, 0)","v":{"v":0,"d":"$0.00"}},{"$f":"IFERROR('MMA Rev-Exp Region 5'!$AB$43/'MMA Rev-Exp Region 5'!$AB$9, 0)","v":{"v":0,"d":"$0.00"}},{"$f":"IFERROR('MMA Rev-Exp Region 5'!$AC$43/'MMA Rev-Exp Region 5'!$AC$9, 0)","v":{"v":0,"d":"$0.00"}},{"$f":"IFERROR('MMA Rev-Exp Region 5'!$AD$43/'MMA Rev-Exp Region 5'!$AD$9, 0)","v":{"v":0,"d":"$0.00"}},{"$f":"IFERROR('MMA Rev-Exp Region 5'!$AE$43/'MMA Rev-Exp Region 5'!$AE$9, 0)","v":{"v":0,"d":"$0.00"}},{"$f":"IFERROR('MMA Rev-Exp Region 5'!$AF$43/'MMA Rev-Exp Region 5'!$AF$9, 0)","v":{"v":0,"d":"$0.00"}},{"$f":"IFERROR('MMA Rev-Exp Region 5'!$AG$43/'MMA Rev-Exp Region 5'!$AG$9, 0)","v":{"v":0,"d":"$0.00"}},{"$f":"IFERROR('MMA Rev-Exp Region 5'!$AH$43/'MMA Rev-Exp Region 5'!$AH$9, 0)","v":{"v":0,"d":"$0.00"}},{"$f":"IFERROR('MMA Rev-Exp Region 5'!$AI$43/'MMA Rev-Exp Region 5'!$AI$9, 0)","v":{"v":0,"d":"$0.00"}},{"$f":"IFERROR('MMA Rev-Exp Region 5'!$AJ$43/'MMA Rev-Exp Region 5'!$AJ$9, 0)","v":{"v":0,"d":"$0.00"}}]
["MMA",null,null,2016,"2016-12-31","Q3","2017-09-30","Region 5","Operating Expense","Medical Benefits Expense","Mental Health Services","5.4","Mental Health Settlements",{"$f":"IFERROR('MMA Rev-Exp Region 5'!$Z$44/'MMA Rev-Exp Region 5'!$Z$9, 0)","v":{"v":0,"d":"$0.00"}},{"$f":"IFERROR('MMA Rev-Exp Region 5'!$AA$44/'MMA Rev-Exp Region 5'!$AA$9, 0)","v":{"v":0,"d":"$0.00"}},{"$f":"IFERROR('MMA Rev-Exp Region 5'!$AB$44/'MMA Rev-Exp Region 5'!$AB$9, 0)","v":{"v":0,"d":"$0.00"}},{"$f":"IFERROR('MMA Rev-Exp Region 5'!$AC$44/'MMA Rev-Exp Region 5'!$AC$9, 0)","v":{"v":0,"d":"$0.00"}},{"$f":"IFERROR('MMA Rev-Exp Region 5'!$AD$44/'MMA Rev-Exp Region 5'!$AD$9, 0)","v":{"v":0,"d":"$0.00"}},{"$f":"IFERROR('MMA Rev-Exp Region 5'!$AE$44/'MMA Rev-Exp Region 5'!$AE$9, 0)","v":{"v":0,"d":"$0.00"}},{"$f":"IFERROR('MMA Rev-Exp Region 5'!$AF$44/'MMA Rev-Exp Region 5'!$AF$9, 0)","v":{"v":0,"d":"$0.00"}},{"$f":"IFERROR('MMA Rev-Exp Region 5'!$AG$44/'MMA Rev-Exp Region 5'!$AG$9, 0)","v":{"v":0,"d":"$0.00"}},{"$f":"IFERROR('MMA Rev-Exp Region 5'!$AH$44/'MMA Rev-Exp Region 5'!$AH$9, 0)","v":{"v":0,"d":"$0.00"}},{"$f":"IFERROR('MMA Rev-Exp Region 5'!$AI$44/'MMA Rev-Exp Region 5'!$AI$9, 0)","v":{"v":0,"d":"$0.00"}},{"$f":"IFERROR('MMA Rev-Exp Region 5'!$AJ$44/'MMA Rev-Exp Region 5'!$AJ$9, 0)","v":{"v":0,"d":"$0.00"}}]
["MMA",null,null,2016,"2016-12-31","Q3","2017-09-30","Region 5","Operating Expense","Medical Benefits Expense","Dental Services",6.1,"Dental FFS",{"$f":"IFERROR('MMA Rev-Exp Region 5'!$Z$46/'MMA Rev-Exp Region 5'!$Z$9, 0)","v":{"v":0,"d":"$0.00"}},{"$f":"IFERROR('MMA Rev-Exp Region 5'!$AA$46/'MMA Rev-Exp Region 5'!$AA$9, 0)","v":{"v":0,"d":"$0.00"}},{"$f":"IFERROR('MMA Rev-Exp Region 5'!$AB$46/'MMA Rev-Exp Region 5'!$AB$9, 0)","v":{"v":0,"d":"$0.00"}},{"$f":"IFERROR('MMA Rev-Exp Region 5'!$AC$46/'MMA Rev-Exp Region 5'!$AC$9, 0)","v":{"v":0,"d":"$0.00"}},{"$f":"IFERROR('MMA Rev-Exp Region 5'!$AD$46/'MMA Rev-Exp Region 5'!$AD$9, 0)","v":{"v":0,"d":"$0.00"}},{"$f":"IFERROR('MMA Rev-Exp Region 5'!$AE$46/'MMA Rev-Exp Region 5'!$AE$9, 0)","v":{"v":0,"d":"$0.00"}},{"$f":"IFERROR('MMA Rev-Exp Region 5'!$AF$46/'MMA Rev-Exp Region 5'!$AF$9, 0)","v":{"v":0,"d":"$0.00"}},{"$f":"IFERROR('MMA Rev-Exp Region 5'!$AG$46/'MMA Rev-Exp Region 5'!$AG$9, 0)","v":{"v":0,"d":"$0.00"}},{"$f":"IFERROR('MMA Rev-Exp Region 5'!$AH$46/'MMA Rev-Exp Region 5'!$AH$9, 0)","v":{"v":0,"d":"$0.00"}},{"$f":"IFERROR('MMA Rev-Exp Region 5'!$AI$46/'MMA Rev-Exp Region 5'!$AI$9, 0)","v":{"v":0,"d":"$0.00"}},{"$f":"IFERROR('MMA Rev-Exp Region 5'!$AJ$46/'MMA Rev-Exp Region 5'!$AJ$9, 0)","v":{"v":0,"d":"$0.00"}}]
["MMA",null,null,2016,"2016-12-31","Q3","2017-09-30","Region 5","Operating Expense","Medical Benefits Expense","Dental Services",6.2,"Dental Subcapitation",{"$f":"IFERROR('MMA Rev-Exp Region 5'!$Z$47/'MMA Rev-Exp Region 5'!$Z$9, 0)","v":{"v":0,"d":"$0.00"}},{"$f":"IFERROR('MMA Rev-Exp Region 5'!$AA$47/'MMA Rev-Exp Region 5'!$AA$9, 0)","v":{"v":0,"d":"$0.00"}},{"$f":"IFERROR('MMA Rev-Exp Region 5'!$AB$47/'MMA Rev-Exp Region 5'!$AB$9, 0)","v":{"v":0,"d":"$0.00"}},{"$f":"IFERROR('MMA Rev-Exp Region 5'!$AC$47/'MMA Rev-Exp Region 5'!$AC$9, 0)","v":{"v":0,"d":"$0.00"}},{"$f":"IFERROR('MMA Rev-Exp Region 5'!$AD$47/'MMA Rev-Exp Region 5'!$AD$9, 0)","v":{"v":0,"d":"$0.00"}},{"$f":"IFERROR('MMA Rev-Exp Region 5'!$AE$47/'MMA Rev-Exp Region 5'!$AE$9, 0)","v":{"v":0,"d":"$0.00"}},{"$f":"IFERROR('MMA Rev-Exp Region 5'!$AF$47/'MMA Rev-Exp Region 5'!$AF$9, 0)","v":{"v":0,"d":"$0.00"}},{"$f":"IFERROR('MMA Rev-Exp Region 5'!$AG$47/'MMA Rev-Exp Region 5'!$AG$9, 0)","v":{"v":0,"d":"$0.00"}},{"$f":"IFERROR('MMA Rev-Exp Region 5'!$AH$47/'MMA Rev-Exp Region 5'!$AH$9, 0)","v":{"v":0,"d":"$0.00"}},{"$f":"IFERROR('MMA Rev-Exp Region 5'!$AI$47/'MMA Rev-Exp Region 5'!$AI$9, 0)","v":{"v":0,"d":"$0.00"}},{"$f":"IFERROR('MMA Rev-Exp Region 5'!$AJ$47/'MMA Rev-Exp Region 5'!$AJ$9, 0)","v":{"v":0,"d":"$0.00"}}]
["MMA",null,null,2016,"2016-12-31","Q3","2017-09-30","Region 5","Operating Expense","Medical Benefits Expense","Dental Services",6.3,"Ending IBNP for Dental Services",{"$f":"IFERROR('MMA Rev-Exp Region 5'!$Z$48/'MMA Rev-Exp Region 5'!$Z$9, 0)","v":{"v":0,"d":"$0.00"}},{"$f":"IFERROR('MMA Rev-Exp Region 5'!$AA$48/'MMA Rev-Exp Region 5'!$AA$9, 0)","v":{"v":0,"d":"$0.00"}},{"$f":"IFERROR('MMA Rev-Exp Region 5'!$AB$48/'MMA Rev-Exp Region 5'!$AB$9, 0)","v":{"v":0,"d":"$0.00"}},{"$f":"IFERROR('MMA Rev-Exp Region 5'!$AC$48/'MMA Rev-Exp Region 5'!$AC$9, 0)","v":{"v":0,"d":"$0.00"}},{"$f":"IFERROR('MMA Rev-Exp Region 5'!$AD$48/'MMA Rev-Exp Region 5'!$AD$9, 0)","v":{"v":0,"d":"$0.00"}},{"$f":"IFERROR('MMA Rev-Exp Region 5'!$AE$48/'MMA Rev-Exp Region 5'!$AE$9, 0)","v":{"v":0,"d":"$0.00"}},{"$f":"IFERROR('MMA Rev-Exp Region 5'!$AF$48/'MMA Rev-Exp Region 5'!$AF$9, 0)","v":{"v":0,"d":"$0.00"}},{"$f":"IFERROR('MMA Rev-Exp Region 5'!$AG$48/'MMA Rev-Exp Region 5'!$AG$9, 0)","v":{"v":0,"d":"$0.00"}},{"$f":"IFERROR('MMA Rev-Exp Region 5'!$AH$48/'MMA Rev-Exp Region 5'!$AH$9, 0)","v":{"v":0,"d":"$0.00"}},{"$f":"IFERROR('MMA Rev-Exp Region 5'!$AI$48/'MMA Rev-Exp Region 5'!$AI$9, 0)","v":{"v":0,"d":"$0.00"}},{"$f":"IFERROR('MMA Rev-Exp Region 5'!$AJ$48/'MMA Rev-Exp Region 5'!$AJ$9, 0)","v":{"v":0,"d":"$0.00"}}]
["MMA",null,null,2016,"2016-12-31","Q3","2017-09-30","Region 5","Operating Expense","Medical Benefits Expense","Dental Services","6.4","Dental Settlements",{"$f":"IFERROR('MMA Rev-Exp Region 5'!$Z$49/'MMA Rev-Exp Region 5'!$Z$9, 0)","v":{"v":0,"d":"$0.00"}},{"$f":"IFERROR('MMA Rev-Exp Region 5'!$AA$49/'MMA Rev-Exp Region 5'!$AA$9, 0)","v":{"v":0,"d":"$0.00"}},{"$f":"IFERROR('MMA Rev-Exp Region 5'!$AB$49/'MMA Rev-Exp Region 5'!$AB$9, 0)","v":{"v":0,"d":"$0.00"}},{"$f":"IFERROR('MMA Rev-Exp Region 5'!$AC$49/'MMA Rev-Exp Region 5'!$AC$9, 0)","v":{"v":0,"d":"$0.00"}},{"$f":"IFERROR('MMA Rev-Exp Region 5'!$AD$49/'MMA Rev-Exp Region 5'!$AD$9, 0)","v":{"v":0,"d":"$0.00"}},{"$f":"IFERROR('MMA Rev-Exp Region 5'!$AE$49/'MMA Rev-Exp Region 5'!$AE$9, 0)","v":{"v":0,"d":"$0.00"}},{"$f":"IFERROR('MMA Rev-Exp Region 5'!$AF$49/'MMA Rev-Exp Region 5'!$AF$9, 0)","v":{"v":0,"d":"$0.00"}},{"$f":"IFERROR('MMA Rev-Exp Region 5'!$AG$49/'MMA Rev-Exp Region 5'!$AG$9, 0)","v":{"v":0,"d":"$0.00"}},{"$f":"IFERROR('MMA Rev-Exp Region 5'!$AH$49/'MMA Rev-Exp Region 5'!$AH$9, 0)","v":{"v":0,"d":"$0.00"}},{"$f":"IFERROR('MMA Rev-Exp Region 5'!$AI$49/'MMA Rev-Exp Region 5'!$AI$9, 0)","v":{"v":0,"d":"$0.00"}},{"$f":"IFERROR('MMA Rev-Exp Region 5'!$AJ$49/'MMA Rev-Exp Region 5'!$AJ$9, 0)","v":{"v":0,"d":"$0.00"}}]
["MMA",null,null,2016,"2016-12-31","Q3","2017-09-30","Region 5","Operating Expense","Medical Benefits Expense","Transportation Services",7.1,"Transportation FFS",{"$f":"IFERROR('MMA Rev-Exp Region 5'!$Z$51/'MMA Rev-Exp Region 5'!$Z$9, 0)","v":{"v":0,"d":"$0.00"}},{"$f":"IFERROR('MMA Rev-Exp Region 5'!$AA$51/'MMA Rev-Exp Region 5'!$AA$9, 0)","v":{"v":0,"d":"$0.00"}},{"$f":"IFERROR('MMA Rev-Exp Region 5'!$AB$51/'MMA Rev-Exp Region 5'!$AB$9, 0)","v":{"v":0,"d":"$0.00"}},{"$f":"IFERROR('MMA Rev-Exp Region 5'!$AC$51/'MMA Rev-Exp Region 5'!$AC$9, 0)","v":{"v":0,"d":"$0.00"}},{"$f":"IFERROR('MMA Rev-Exp Region 5'!$AD$51/'MMA Rev-Exp Region 5'!$AD$9, 0)","v":{"v":0,"d":"$0.00"}},{"$f":"IFERROR('MMA Rev-Exp Region 5'!$AE$51/'MMA Rev-Exp Region 5'!$AE$9, 0)","v":{"v":0,"d":"$0.00"}},{"$f":"IFERROR('MMA Rev-Exp Region 5'!$AF$51/'MMA Rev-Exp Region 5'!$AF$9, 0)","v":{"v":0,"d":"$0.00"}},{"$f":"IFERROR('MMA Rev-Exp Region 5'!$AG$51/'MMA Rev-Exp Region 5'!$AG$9, 0)","v":{"v":0,"d":"$0.00"}},{"$f":"IFERROR('MMA Rev-Exp Region 5'!$AH$51/'MMA Rev-Exp Region 5'!$AH$9, 0)","v":{"v":0,"d":"$0.00"}},{"$f":"IFERROR('MMA Rev-Exp Region 5'!$AI$51/'MMA Rev-Exp Region 5'!$AI$9, 0)","v":{"v":0,"d":"$0.00"}},{"$f":"IFERROR('MMA Rev-Exp Region 5'!$AJ$51/'MMA Rev-Exp Region 5'!$AJ$9, 0)","v":{"v":0,"d":"$0.00"}}]
["MMA",null,null,2016,"2016-12-31","Q3","2017-09-30","Region 5","Operating Expense","Medical Benefits Expense","Transportation Services",7.2,"Transportation Subcapitation",{"$f":"IFERROR('MMA Rev-Exp Region 5'!$Z$52/'MMA Rev-Exp Region 5'!$Z$9, 0)","v":{"v":0,"d":"$0.00"}},{"$f":"IFERROR('MMA Rev-Exp Region 5'!$AA$52/'MMA Rev-Exp Region 5'!$AA$9, 0)","v":{"v":0,"d":"$0.00"}},{"$f":"IFERROR('MMA Rev-Exp Region 5'!$AB$52/'MMA Rev-Exp Region 5'!$AB$9, 0)","v":{"v":0,"d":"$0.00"}},{"$f":"IFERROR('MMA Rev-Exp Region 5'!$AC$52/'MMA Rev-Exp Region 5'!$AC$9, 0)","v":{"v":0,"d":"$0.00"}},{"$f":"IFERROR('MMA Rev-Exp Region 5'!$AD$52/'MMA Rev-Exp Region 5'!$AD$9, 0)","v":{"v":0,"d":"$0.00"}},{"$f":"IFERROR('MMA Rev-Exp Region 5'!$AE$52/'MMA Rev-Exp Region 5'!$AE$9, 0)","v":{"v":0,"d":"$0.00"}},{"$f":"IFERROR('MMA Rev-Exp Region 5'!$AF$52/'MMA Rev-Exp Region 5'!$AF$9, 0)","v":{"v":0,"d":"$0.00"}},{"$f":"IFERROR('MMA Rev-Exp Region 5'!$AG$52/'MMA Rev-Exp Region 5'!$AG$9, 0)","v":{"v":0,"d":"$0.00"}},{"$f":"IFERROR('MMA Rev-Exp Region 5'!$AH$52/'MMA Rev-Exp Region 5'!$AH$9, 0)","v":{"v":0,"d":"$0.00"}},{"$f":"IFERROR('MMA Rev-Exp Region 5'!$AI$52/'MMA Rev-Exp Region 5'!$AI$9, 0)","v":{"v":0,"d":"$0.00"}},{"$f":"IFERROR('MMA Rev-Exp Region 5'!$AJ$52/'MMA Rev-Exp Region 5'!$AJ$9, 0)","v":{"v":0,"d":"$0.00"}}]
["MMA",null,null,2016,"2016-12-31","Q3","2017-09-30","Region 5","Operating Expense","Medical Benefits Expense","Transportation Services",7.3,"Ending IBNP for Transportation",{"$f":"IFERROR('MMA Rev-Exp Region 5'!$Z$53/'MMA Rev-Exp Region 5'!$Z$9, 0)","v":{"v":0,"d":"$0.00"}},{"$f":"IFERROR('MMA Rev-Exp Region 5'!$AA$53/'MMA Rev-Exp Region 5'!$AA$9, 0)","v":{"v":0,"d":"$0.00"}},{"$f":"IFERROR('MMA Rev-Exp Region 5'!$AB$53/'MMA Rev-Exp Region 5'!$AB$9, 0)","v":{"v":0,"d":"$0.00"}},{"$f":"IFERROR('MMA Rev-Exp Region 5'!$AC$53/'MMA Rev-Exp Region 5'!$AC$9, 0)","v":{"v":0,"d":"$0.00"}},{"$f":"IFERROR('MMA Rev-Exp Region 5'!$AD$53/'MMA Rev-Exp Region 5'!$AD$9, 0)","v":{"v":0,"d":"$0.00"}},{"$f":"IFERROR('MMA Rev-Exp Region 5'!$AE$53/'MMA Rev-Exp Region 5'!$AE$9, 0)","v":{"v":0,"d":"$0.00"}},{"$f":"IFERROR('MMA Rev-Exp Region 5'!$AF$53/'MMA Rev-Exp Region 5'!$AF$9, 0)","v":{"v":0,"d":"$0.00"}},{"$f":"IFERROR('MMA Rev-Exp Region 5'!$AG$53/'MMA Rev-Exp Region 5'!$AG$9, 0)","v":{"v":0,"d":"$0.00"}},{"$f":"IFERROR('MMA Rev-Exp Region 5'!$AH$53/'MMA Rev-Exp Region 5'!$AH$9, 0)","v":{"v":0,"d":"$0.00"}},{"$f":"IFERROR('MMA Rev-Exp Region 5'!$AI$53/'MMA Rev-Exp Region 5'!$AI$9, 0)","v":{"v":0,"d":"$0.00"}},{"$f":"IFERROR('MMA Rev-Exp Region 5'!$AJ$53/'MMA Rev-Exp Region 5'!$AJ$9, 0)","v":{"v":0,"d":"$0.00"}}]
["MMA",null,null,2016,"2016-12-31","Q3","2017-09-30","Region 5","Operating Expense","Medical Benefits Expense","Transportation Services","7.4","Transportation Settlements",{"$f":"IFERROR('MMA Rev-Exp Region 5'!$Z$54/'MMA Rev-Exp Region 5'!$Z$9, 0)","v":{"v":0,"d":"$0.00"}},{"$f":"IFERROR('MMA Rev-Exp Region 5'!$AA$54/'MMA Rev-Exp Region 5'!$AA$9, 0)","v":{"v":0,"d":"$0.00"}},{"$f":"IFERROR('MMA Rev-Exp Region 5'!$AB$54/'MMA Rev-Exp Region 5'!$AB$9, 0)","v":{"v":0,"d":"$0.00"}},{"$f":"IFERROR('MMA Rev-Exp Region 5'!$AC$54/'MMA Rev-Exp Region 5'!$AC$9, 0)","v":{"v":0,"d":"$0.00"}},{"$f":"IFERROR('MMA Rev-Exp Region 5'!$AD$54/'MMA Rev-Exp Region 5'!$AD$9, 0)","v":{"v":0,"d":"$0.00"}},{"$f":"IFERROR('MMA Rev-Exp Region 5'!$AE$54/'MMA Rev-Exp Region 5'!$AE$9, 0)","v":{"v":0,"d":"$0.00"}},{"$f":"IFERROR('MMA Rev-Exp Region 5'!$AF$54/'MMA Rev-Exp Region 5'!$AF$9, 0)","v":{"v":0,"d":"$0.00"}},{"$f":"IFERROR('MMA Rev-Exp Region 5'!$AG$54/'MMA Rev-Exp Region 5'!$AG$9, 0)","v":{"v":0,"d":"$0.00"}},{"$f":"IFERROR('MMA Rev-Exp Region 5'!$AH$54/'MMA Rev-Exp Region 5'!$AH$9, 0)","v":{"v":0,"d":"$0.00"}},{"$f":"IFERROR('MMA Rev-Exp Region 5'!$AI$54/'MMA Rev-Exp Region 5'!$AI$9, 0)","v":{"v":0,"d":"$0.00"}},{"$f":"IFERROR('MMA Rev-Exp Region 5'!$AJ$54/'MMA Rev-Exp Region 5'!$AJ$9, 0)","v":{"v":0,"d":"$0.00"}}]
["MMA",null,null,2016,"2016-12-31","Q3","2017-09-30","Region 5","Operating Expense","Medical Benefits Expense","Pharmacy Services",8.1,"Prescription Drugs FFS",{"$f":"IFERROR('MMA Rev-Exp Region 5'!$Z$56/'MMA Rev-Exp Region 5'!$Z$9, 0)","v":{"v":0,"d":"$0.00"}},{"$f":"IFERROR('MMA Rev-Exp Region 5'!$AA$56/'MMA Rev-Exp Region 5'!$AA$9, 0)","v":{"v":0,"d":"$0.00"}},{"$f":"IFERROR('MMA Rev-Exp Region 5'!$AB$56/'MMA Rev-Exp Region 5'!$AB$9, 0)","v":{"v":0,"d":"$0.00"}},{"$f":"IFERROR('MMA Rev-Exp Region 5'!$AC$56/'MMA Rev-Exp Region 5'!$AC$9, 0)","v":{"v":0,"d":"$0.00"}},{"$f":"IFERROR('MMA Rev-Exp Region 5'!$AD$56/'MMA Rev-Exp Region 5'!$AD$9, 0)","v":{"v":0,"d":"$0.00"}},{"$f":"IFERROR('MMA Rev-Exp Region 5'!$AE$56/'MMA Rev-Exp Region 5'!$AE$9, 0)","v":{"v":0,"d":"$0.00"}},{"$f":"IFERROR('MMA Rev-Exp Region 5'!$AF$56/'MMA Rev-Exp Region 5'!$AF$9, 0)","v":{"v":0,"d":"$0.00"}},{"$f":"IFERROR('MMA Rev-Exp Region 5'!$AG$56/'MMA Rev-Exp Region 5'!$AG$9, 0)","v":{"v":0,"d":"$0.00"}},{"$f":"IFERROR('MMA Rev-Exp Region 5'!$AH$56/'MMA Rev-Exp Region 5'!$AH$9, 0)","v":{"v":0,"d":"$0.00"}},{"$f":"IFERROR('MMA Rev-Exp Region 5'!$AI$56/'MMA Rev-Exp Region 5'!$AI$9, 0)","v":{"v":0,"d":"$0.00"}},{"$f":"IFERROR('MMA Rev-Exp Region 5'!$AJ$56/'MMA Rev-Exp Region 5'!$AJ$9, 0)","v":{"v":0,"d":"$0.00"}}]
["MMA",null,null,2016,"2016-12-31","Q3","2017-09-30","Region 5","Operating Expense","Medical Benefits Expense","Pharmacy Services","8.2","Hepatitis C Prescription Drug FFS",{"$f":"IFERROR('MMA Rev-Exp Region 5'!$Z$57/'MMA Rev-Exp Region 5'!$Z$9, 0)","v":{"v":0,"d":"$0.00"}},{"$f":"IFERROR('MMA Rev-Exp Region 5'!$AA$57/'MMA Rev-Exp Region 5'!$AA$9, 0)","v":{"v":0,"d":"$0.00"}},{"$f":"IFERROR('MMA Rev-Exp Region 5'!$AB$57/'MMA Rev-Exp Region 5'!$AB$9, 0)","v":{"v":0,"d":"$0.00"}},{"$f":"IFERROR('MMA Rev-Exp Region 5'!$AC$57/'MMA Rev-Exp Region 5'!$AC$9, 0)","v":{"v":0,"d":"$0.00"}},{"$f":"IFERROR('MMA Rev-Exp Region 5'!$AD$57/'MMA Rev-Exp Region 5'!$AD$9, 0)","v":{"v":0,"d":"$0.00"}},{"$f":"IFERROR('MMA Rev-Exp Region 5'!$AE$57/'MMA Rev-Exp Region 5'!$AE$9, 0)","v":{"v":0,"d":"$0.00"}},{"$f":"IFERROR('MMA Rev-Exp Region 5'!$AF$57/'MMA Rev-Exp Region 5'!$AF$9, 0)","v":{"v":0,"d":"$0.00"}},{"$f":"IFERROR('MMA Rev-Exp Region 5'!$AG$57/'MMA Rev-Exp Region 5'!$AG$9, 0)","v":{"v":0,"d":"$0.00"}},{"$f":"IFERROR('MMA Rev-Exp Region 5'!$AH$57/'MMA Rev-Exp Region 5'!$AH$9, 0)","v":{"v":0,"d":"$0.00"}},{"$f":"IFERROR('MMA Rev-Exp Region 5'!$AI$57/'MMA Rev-Exp Region 5'!$AI$9, 0)","v":{"v":0,"d":"$0.00"}},{"$f":"IFERROR('MMA Rev-Exp Region 5'!$AJ$57/'MMA Rev-Exp Region 5'!$AJ$9, 0)","v":{"v":0,"d":"$0.00"}}]
["MMA",null,null,2016,"2016-12-31","Q3","2017-09-30","Region 5","Operating Expense","Medical Benefits Expense","Pharmacy Services","8.3","Ending IBNP for Prescription Drugs",{"$f":"IFERROR('MMA Rev-Exp Region 5'!$Z$58/'MMA Rev-Exp Region 5'!$Z$9, 0)","v":{"v":0,"d":"$0.00"}},{"$f":"IFERROR('MMA Rev-Exp Region 5'!$AA$58/'MMA Rev-Exp Region 5'!$AA$9, 0)","v":{"v":0,"d":"$0.00"}},{"$f":"IFERROR('MMA Rev-Exp Region 5'!$AB$58/'MMA Rev-Exp Region 5'!$AB$9, 0)","v":{"v":0,"d":"$0.00"}},{"$f":"IFERROR('MMA Rev-Exp Region 5'!$AC$58/'MMA Rev-Exp Region 5'!$AC$9, 0)","v":{"v":0,"d":"$0.00"}},{"$f":"IFERROR('MMA Rev-Exp Region 5'!$AD$58/'MMA Rev-Exp Region 5'!$AD$9, 0)","v":{"v":0,"d":"$0.00"}},{"$f":"IFERROR('MMA Rev-Exp Region 5'!$AE$58/'MMA Rev-Exp Region 5'!$AE$9, 0)","v":{"v":0,"d":"$0.00"}},{"$f":"IFERROR('MMA Rev-Exp Region 5'!$AF$58/'MMA Rev-Exp Region 5'!$AF$9, 0)","v":{"v":0,"d":"$0.00"}},{"$f":"IFERROR('MMA Rev-Exp Region 5'!$AG$58/'MMA Rev-Exp Region 5'!$AG$9, 0)","v":{"v":0,"d":"$0.00"}},{"$f":"IFERROR('MMA Rev-Exp Region 5'!$AH$58/'MMA Rev-Exp Region 5'!$AH$9, 0)","v":{"v":0,"d":"$0.00"}},{"$f":"IFERROR('MMA Rev-Exp Region 5'!$AI$58/'MMA Rev-Exp Region 5'!$AI$9, 0)","v":{"v":0,"d":"$0.00"}},{"$f":"IFERROR('MMA Rev-Exp Region 5'!$AJ$58/'MMA Rev-Exp Region 5'!$AJ$9, 0)","v":{"v":0,"d":"$0.00"}}]
["MMA",null,null,2016,"2016-12-31","Q3","2017-09-30","Region 5","Operating Expense","Medical Benefits Expense","Pharmacy Services","8.4","Prescription Drug Rebates ",{"$f":"IFERROR('MMA Rev-Exp Region 5'!$Z$59/'MMA Rev-Exp Region 5'!$Z$9, 0)","v":{"v":0,"d":"$0.00"}},{"$f":"IFERROR('MMA Rev-Exp Region 5'!$AA$59/'MMA Rev-Exp Region 5'!$AA$9, 0)","v":{"v":0,"d":"$0.00"}},{"$f":"IFERROR('MMA Rev-Exp Region 5'!$AB$59/'MMA Rev-Exp Region 5'!$AB$9, 0)","v":{"v":0,"d":"$0.00"}},{"$f":"IFERROR('MMA Rev-Exp Region 5'!$AC$59/'MMA Rev-Exp Region 5'!$AC$9, 0)","v":{"v":0,"d":"$0.00"}},{"$f":"IFERROR('MMA Rev-Exp Region 5'!$AD$59/'MMA Rev-Exp Region 5'!$AD$9, 0)","v":{"v":0,"d":"$0.00"}},{"$f":"IFERROR('MMA Rev-Exp Region 5'!$AE$59/'MMA Rev-Exp Region 5'!$AE$9, 0)","v":{"v":0,"d":"$0.00"}},{"$f":"IFERROR('MMA Rev-Exp Region 5'!$AF$59/'MMA Rev-Exp Region 5'!$AF$9, 0)","v":{"v":0,"d":"$0.00"}},{"$f":"IFERROR('MMA Rev-Exp Region 5'!$AG$59/'MMA Rev-Exp Region 5'!$AG$9, 0)","v":{"v":0,"d":"$0.00"}},{"$f":"IFERROR('MMA Rev-Exp Region 5'!$AH$59/'MMA Rev-Exp Region 5'!$AH$9, 0)","v":{"v":0,"d":"$0.00"}},{"$f":"IFERROR('MMA Rev-Exp Region 5'!$AI$59/'MMA Rev-Exp Region 5'!$AI$9, 0)","v":{"v":0,"d":"$0.00"}},{"$f":"IFERROR('MMA Rev-Exp Region 5'!$AJ$59/'MMA Rev-Exp Region 5'!$AJ$9, 0)","v":{"v":0,"d":"$0.00"}}]
["MMA",null,null,2016,"2016-12-31","Q3","2017-09-30","Region 5","Operating Expense","Medical Benefits Expense","Pharmacy Services","8.5","Ending accrual for Rebates receivable",{"$f":"IFERROR('MMA Rev-Exp Region 5'!$Z$60/'MMA Rev-Exp Region 5'!$Z$9, 0)","v":{"v":0,"d":"$0.00"}},{"$f":"IFERROR('MMA Rev-Exp Region 5'!$AA$60/'MMA Rev-Exp Region 5'!$AA$9, 0)","v":{"v":0,"d":"$0.00"}},{"$f":"IFERROR('MMA Rev-Exp Region 5'!$AB$60/'MMA Rev-Exp Region 5'!$AB$9, 0)","v":{"v":0,"d":"$0.00"}},{"$f":"IFERROR('MMA Rev-Exp Region 5'!$AC$60/'MMA Rev-Exp Region 5'!$AC$9, 0)","v":{"v":0,"d":"$0.00"}},{"$f":"IFERROR('MMA Rev-Exp Region 5'!$AD$60/'MMA Rev-Exp Region 5'!$AD$9, 0)","v":{"v":0,"d":"$0.00"}},{"$f":"IFERROR('MMA Rev-Exp Region 5'!$AE$60/'MMA Rev-Exp Region 5'!$AE$9, 0)","v":{"v":0,"d":"$0.00"}},{"$f":"IFERROR('MMA Rev-Exp Region 5'!$AF$60/'MMA Rev-Exp Region 5'!$AF$9, 0)","v":{"v":0,"d":"$0.00"}},{"$f":"IFERROR('MMA Rev-Exp Region 5'!$AG$60/'MMA Rev-Exp Region 5'!$AG$9, 0)","v":{"v":0,"d":"$0.00"}},{"$f":"IFERROR('MMA Rev-Exp Region 5'!$AH$60/'MMA Rev-Exp Region 5'!$AH$9, 0)","v":{"v":0,"d":"$0.00"}},{"$f":"IFERROR('MMA Rev-Exp Region 5'!$AI$60/'MMA Rev-Exp Region 5'!$AI$9, 0)","v":{"v":0,"d":"$0.00"}},{"$f":"IFERROR('MMA Rev-Exp Region 5'!$AJ$60/'MMA Rev-Exp Region 5'!$AJ$9, 0)","v":{"v":0,"d":"$0.00"}}]
["MMA",null,null,2016,"2016-12-31","Q3","2017-09-30","Region 5","Operating Expense","Medical Benefits Expense","Pharmacy Services","8.6","Prescription Drugs Subcapitation",{"$f":"IFERROR('MMA Rev-Exp Region 5'!$Z$61/'MMA Rev-Exp Region 5'!$Z$9, 0)","v":{"v":0,"d":"$0.00"}},{"$f":"IFERROR('MMA Rev-Exp Region 5'!$AA$61/'MMA Rev-Exp Region 5'!$AA$9, 0)","v":{"v":0,"d":"$0.00"}},{"$f":"IFERROR('MMA Rev-Exp Region 5'!$AB$61/'MMA Rev-Exp Region 5'!$AB$9, 0)","v":{"v":0,"d":"$0.00"}},{"$f":"IFERROR('MMA Rev-Exp Region 5'!$AC$61/'MMA Rev-Exp Region 5'!$AC$9, 0)","v":{"v":0,"d":"$0.00"}},{"$f":"IFERROR('MMA Rev-Exp Region 5'!$AD$61/'MMA Rev-Exp Region 5'!$AD$9, 0)","v":{"v":0,"d":"$0.00"}},{"$f":"IFERROR('MMA Rev-Exp Region 5'!$AE$61/'MMA Rev-Exp Region 5'!$AE$9, 0)","v":{"v":0,"d":"$0.00"}},{"$f":"IFERROR('MMA Rev-Exp Region 5'!$AF$61/'MMA Rev-Exp Region 5'!$AF$9, 0)","v":{"v":0,"d":"$0.00"}},{"$f":"IFERROR('MMA Rev-Exp Region 5'!$AG$61/'MMA Rev-Exp Region 5'!$AG$9, 0)","v":{"v":0,"d":"$0.00"}},{"$f":"IFERROR('MMA Rev-Exp Region 5'!$AH$61/'MMA Rev-Exp Region 5'!$AH$9, 0)","v":{"v":0,"d":"$0.00"}},{"$f":"IFERROR('MMA Rev-Exp Region 5'!$AI$61/'MMA Rev-Exp Region 5'!$AI$9, 0)","v":{"v":0,"d":"$0.00"}},{"$f":"IFERROR('MMA Rev-Exp Region 5'!$AJ$61/'MMA Rev-Exp Region 5'!$AJ$9, 0)","v":{"v":0,"d":"$0.00"}}]
["MMA",null,null,2016,"2016-12-31","Q3","2017-09-30","Region 5","Operating Expense","Medical Benefits Expense","Pharmacy Services","8.7","Prescription Drug Settlements",{"$f":"IFERROR('MMA Rev-Exp Region 5'!$Z$62/'MMA Rev-Exp Region 5'!$Z$9, 0)","v":{"v":0,"d":"$0.00"}},{"$f":"IFERROR('MMA Rev-Exp Region 5'!$AA$62/'MMA Rev-Exp Region 5'!$AA$9, 0)","v":{"v":0,"d":"$0.00"}},{"$f":"IFERROR('MMA Rev-Exp Region 5'!$AB$62/'MMA Rev-Exp Region 5'!$AB$9, 0)","v":{"v":0,"d":"$0.00"}},{"$f":"IFERROR('MMA Rev-Exp Region 5'!$AC$62/'MMA Rev-Exp Region 5'!$AC$9, 0)","v":{"v":0,"d":"$0.00"}},{"$f":"IFERROR('MMA Rev-Exp Region 5'!$AD$62/'MMA Rev-Exp Region 5'!$AD$9, 0)","v":{"v":0,"d":"$0.00"}},{"$f":"IFERROR('MMA Rev-Exp Region 5'!$AE$62/'MMA Rev-Exp Region 5'!$AE$9, 0)","v":{"v":0,"d":"$0.00"}},{"$f":"IFERROR('MMA Rev-Exp Region 5'!$AF$62/'MMA Rev-Exp Region 5'!$AF$9, 0)","v":{"v":0,"d":"$0.00"}},{"$f":"IFERROR('MMA Rev-Exp Region 5'!$AG$62/'MMA Rev-Exp Region 5'!$AG$9, 0)","v":{"v":0,"d":"$0.00"}},{"$f":"IFERROR('MMA Rev-Exp Region 5'!$AH$62/'MMA Rev-Exp Region 5'!$AH$9, 0)","v":{"v":0,"d":"$0.00"}},{"$f":"IFERROR('MMA Rev-Exp Region 5'!$AI$62/'MMA Rev-Exp Region 5'!$AI$9, 0)","v":{"v":0,"d":"$0.00"}},{"$f":"IFERROR('MMA Rev-Exp Region 5'!$AJ$62/'MMA Rev-Exp Region 5'!$AJ$9, 0)","v":{"v":0,"d":"$0.00"}}]
["MMA",null,null,2016,"2016-12-31","Q3","2017-09-30","Region 5","Operating Expense","Medical Benefits Expense","Other MMA Services",9.1,"Home Health, Private Duty Nursing, Personal Care FFS",{"$f":"IFERROR('MMA Rev-Exp Region 5'!$Z$64/'MMA Rev-Exp Region 5'!$Z$9, 0)","v":{"v":0,"d":"$0.00"}},{"$f":"IFERROR('MMA Rev-Exp Region 5'!$AA$64/'MMA Rev-Exp Region 5'!$AA$9, 0)","v":{"v":0,"d":"$0.00"}},{"$f":"IFERROR('MMA Rev-Exp Region 5'!$AB$64/'MMA Rev-Exp Region 5'!$AB$9, 0)","v":{"v":0,"d":"$0.00"}},{"$f":"IFERROR('MMA Rev-Exp Region 5'!$AC$64/'MMA Rev-Exp Region 5'!$AC$9, 0)","v":{"v":0,"d":"$0.00"}},{"$f":"IFERROR('MMA Rev-Exp Region 5'!$AD$64/'MMA Rev-Exp Region 5'!$AD$9, 0)","v":{"v":0,"d":"$0.00"}},{"$f":"IFERROR('MMA Rev-Exp Region 5'!$AE$64/'MMA Rev-Exp Region 5'!$AE$9, 0)","v":{"v":0,"d":"$0.00"}},{"$f":"IFERROR('MMA Rev-Exp Region 5'!$AF$64/'MMA Rev-Exp Region 5'!$AF$9, 0)","v":{"v":0,"d":"$0.00"}},{"$f":"IFERROR('MMA Rev-Exp Region 5'!$AG$64/'MMA Rev-Exp Region 5'!$AG$9, 0)","v":{"v":0,"d":"$0.00"}},{"$f":"IFERROR('MMA Rev-Exp Region 5'!$AH$64/'MMA Rev-Exp Region 5'!$AH$9, 0)","v":{"v":0,"d":"$0.00"}},{"$f":"IFERROR('MMA Rev-Exp Region 5'!$AI$64/'MMA Rev-Exp Region 5'!$AI$9, 0)","v":{"v":0,"d":"$0.00"}},{"$f":"IFERROR('MMA Rev-Exp Region 5'!$AJ$64/'MMA Rev-Exp Region 5'!$AJ$9, 0)","v":{"v":0,"d":"$0.00"}}]
["MMA",null,null,2016,"2016-12-31","Q3","2017-09-30","Region 5","Operating Expense","Medical Benefits Expense","Other MMA Services","9.2","Hospice FFS",{"$f":"IFERROR('MMA Rev-Exp Region 5'!$Z$65/'MMA Rev-Exp Region 5'!$Z$9, 0)","v":{"v":0,"d":"$0.00"}},{"$f":"IFERROR('MMA Rev-Exp Region 5'!$AA$65/'MMA Rev-Exp Region 5'!$AA$9, 0)","v":{"v":0,"d":"$0.00"}},{"$f":"IFERROR('MMA Rev-Exp Region 5'!$AB$65/'MMA Rev-Exp Region 5'!$AB$9, 0)","v":{"v":0,"d":"$0.00"}},{"$f":"IFERROR('MMA Rev-Exp Region 5'!$AC$65/'MMA Rev-Exp Region 5'!$AC$9, 0)","v":{"v":0,"d":"$0.00"}},{"$f":"IFERROR('MMA Rev-Exp Region 5'!$AD$65/'MMA Rev-Exp Region 5'!$AD$9, 0)","v":{"v":0,"d":"$0.00"}},{"$f":"IFERROR('MMA Rev-Exp Region 5'!$AE$65/'MMA Rev-Exp Region 5'!$AE$9, 0)","v":{"v":0,"d":"$0.00"}},{"$f":"IFERROR('MMA Rev-Exp Region 5'!$AF$65/'MMA Rev-Exp Region 5'!$AF$9, 0)","v":{"v":0,"d":"$0.00"}},{"$f":"IFERROR('MMA Rev-Exp Region 5'!$AG$65/'MMA Rev-Exp Region 5'!$AG$9, 0)","v":{"v":0,"d":"$0.00"}},{"$f":"IFERROR('MMA Rev-Exp Region 5'!$AH$65/'MMA Rev-Exp Region 5'!$AH$9, 0)","v":{"v":0,"d":"$0.00"}},{"$f":"IFERROR('MMA Rev-Exp Region 5'!$AI$65/'MMA Rev-Exp Region 5'!$AI$9, 0)","v":{"v":0,"d":"$0.00"}},{"$f":"IFERROR('MMA Rev-Exp Region 5'!$AJ$65/'MMA Rev-Exp Region 5'!$AJ$9, 0)","v":{"v":0,"d":"$0.00"}}]
["MMA",null,null,2016,"2016-12-31","Q3","2017-09-30","Region 5","Operating Expense","Medical Benefits Expense","Other MMA Services","9.3","DME FFS",{"$f":"IFERROR('MMA Rev-Exp Region 5'!$Z$66/'MMA Rev-Exp Region 5'!$Z$9, 0)","v":{"v":0,"d":"$0.00"}},{"$f":"IFERROR('MMA Rev-Exp Region 5'!$AA$66/'MMA Rev-Exp Region 5'!$AA$9, 0)","v":{"v":0,"d":"$0.00"}},{"$f":"IFERROR('MMA Rev-Exp Region 5'!$AB$66/'MMA Rev-Exp Region 5'!$AB$9, 0)","v":{"v":0,"d":"$0.00"}},{"$f":"IFERROR('MMA Rev-Exp Region 5'!$AC$66/'MMA Rev-Exp Region 5'!$AC$9, 0)","v":{"v":0,"d":"$0.00"}},{"$f":"IFERROR('MMA Rev-Exp Region 5'!$AD$66/'MMA Rev-Exp Region 5'!$AD$9, 0)","v":{"v":0,"d":"$0.00"}},{"$f":"IFERROR('MMA Rev-Exp Region 5'!$AE$66/'MMA Rev-Exp Region 5'!$AE$9, 0)","v":{"v":0,"d":"$0.00"}},{"$f":"IFERROR('MMA Rev-Exp Region 5'!$AF$66/'MMA Rev-Exp Region 5'!$AF$9, 0)","v":{"v":0,"d":"$0.00"}},{"$f":"IFERROR('MMA Rev-Exp Region 5'!$AG$66/'MMA Rev-Exp Region 5'!$AG$9, 0)","v":{"v":0,"d":"$0.00"}},{"$f":"IFERROR('MMA Rev-Exp Region 5'!$AH$66/'MMA Rev-Exp Region 5'!$AH$9, 0)","v":{"v":0,"d":"$0.00"}},{"$f":"IFERROR('MMA Rev-Exp Region 5'!$AI$66/'MMA Rev-Exp Region 5'!$AI$9, 0)","v":{"v":0,"d":"$0.00"}},{"$f":"IFERROR('MMA Rev-Exp Region 5'!$AJ$66/'MMA Rev-Exp Region 5'!$AJ$9, 0)","v":{"v":0,"d":"$0.00"}}]
["MMA",null,null,2016,"2016-12-31","Q3","2017-09-30","Region 5","Operating Expense","Medical Benefits Expense","Other MMA Services","9.4","Other State Plan Services FFS",{"$f":"IFERROR('MMA Rev-Exp Region 5'!$Z$67/'MMA Rev-Exp Region 5'!$Z$9, 0)","v":{"v":0,"d":"$0.00"}},{"$f":"IFERROR('MMA Rev-Exp Region 5'!$AA$67/'MMA Rev-Exp Region 5'!$AA$9, 0)","v":{"v":0,"d":"$0.00"}},{"$f":"IFERROR('MMA Rev-Exp Region 5'!$AB$67/'MMA Rev-Exp Region 5'!$AB$9, 0)","v":{"v":0,"d":"$0.00"}},{"$f":"IFERROR('MMA Rev-Exp Region 5'!$AC$67/'MMA Rev-Exp Region 5'!$AC$9, 0)","v":{"v":0,"d":"$0.00"}},{"$f":"IFERROR('MMA Rev-Exp Region 5'!$AD$67/'MMA Rev-Exp Region 5'!$AD$9, 0)","v":{"v":0,"d":"$0.00"}},{"$f":"IFERROR('MMA Rev-Exp Region 5'!$AE$67/'MMA Rev-Exp Region 5'!$AE$9, 0)","v":{"v":0,"d":"$0.00"}},{"$f":"IFERROR('MMA Rev-Exp Region 5'!$AF$67/'MMA Rev-Exp Region 5'!$AF$9, 0)","v":{"v":0,"d":"$0.00"}},{"$f":"IFERROR('MMA Rev-Exp Region 5'!$AG$67/'MMA Rev-Exp Region 5'!$AG$9, 0)","v":{"v":0,"d":"$0.00"}},{"$f":"IFERROR('MMA Rev-Exp Region 5'!$AH$67/'MMA Rev-Exp Region 5'!$AH$9, 0)","v":{"v":0,"d":"$0.00"}},{"$f":"IFERROR('MMA Rev-Exp Region 5'!$AI$67/'MMA Rev-Exp Region 5'!$AI$9, 0)","v":{"v":0,"d":"$0.00"}},{"$f":"IFERROR('MMA Rev-Exp Region 5'!$AJ$67/'MMA Rev-Exp Region 5'!$AJ$9, 0)","v":{"v":0,"d":"$0.00"}}]
["MMA",null,null,2016,"2016-12-31","Q3","2017-09-30","Region 5","Operating Expense","Medical Benefits Expense","Other MMA Services","9.5","Other Services Subcapitation",{"$f":"IFERROR('MMA Rev-Exp Region 5'!$Z$68/'MMA Rev-Exp Region 5'!$Z$9, 0)","v":{"v":0,"d":"$0.00"}},{"$f":"IFERROR('MMA Rev-Exp Region 5'!$AA$68/'MMA Rev-Exp Region 5'!$AA$9, 0)","v":{"v":0,"d":"$0.00"}},{"$f":"IFERROR('MMA Rev-Exp Region 5'!$AB$68/'MMA Rev-Exp Region 5'!$AB$9, 0)","v":{"v":0,"d":"$0.00"}},{"$f":"IFERROR('MMA Rev-Exp Region 5'!$AC$68/'MMA Rev-Exp Region 5'!$AC$9, 0)","v":{"v":0,"d":"$0.00"}},{"$f":"IFERROR('MMA Rev-Exp Region 5'!$AD$68/'MMA Rev-Exp Region 5'!$AD$9, 0)","v":{"v":0,"d":"$0.00"}},{"$f":"IFERROR('MMA Rev-Exp Region 5'!$AE$68/'MMA Rev-Exp Region 5'!$AE$9, 0)","v":{"v":0,"d":"$0.00"}},{"$f":"IFERROR('MMA Rev-Exp Region 5'!$AF$68/'MMA Rev-Exp Region 5'!$AF$9, 0)","v":{"v":0,"d":"$0.00"}},{"$f":"IFERROR('MMA Rev-Exp Region 5'!$AG$68/'MMA Rev-Exp Region 5'!$AG$9, 0)","v":{"v":0,"d":"$0.00"}},{"$f":"IFERROR('MMA Rev-Exp Region 5'!$AH$68/'MMA Rev-Exp Region 5'!$AH$9, 0)","v":{"v":0,"d":"$0.00"}},{"$f":"IFERROR('MMA Rev-Exp Region 5'!$AI$68/'MMA Rev-Exp Region 5'!$AI$9, 0)","v":{"v":0,"d":"$0.00"}},{"$f":"IFERROR('MMA Rev-Exp Region 5'!$AJ$68/'MMA Rev-Exp Region 5'!$AJ$9, 0)","v":{"v":0,"d":"$0.00"}}]
["MMA",null,null,2016,"2016-12-31","Q3","2017-09-30","Region 5","Operating Expense","Medical Benefits Expense","Other MMA Services","9.6","Ending IBNP for Other Services",{"$f":"IFERROR('MMA Rev-Exp Region 5'!$Z$69/'MMA Rev-Exp Region 5'!$Z$9, 0)","v":{"v":0,"d":"$0.00"}},{"$f":"IFERROR('MMA Rev-Exp Region 5'!$AA$69/'MMA Rev-Exp Region 5'!$AA$9, 0)","v":{"v":0,"d":"$0.00"}},{"$f":"IFERROR('MMA Rev-Exp Region 5'!$AB$69/'MMA Rev-Exp Region 5'!$AB$9, 0)","v":{"v":0,"d":"$0.00"}},{"$f":"IFERROR('MMA Rev-Exp Region 5'!$AC$69/'MMA Rev-Exp Region 5'!$AC$9, 0)","v":{"v":0,"d":"$0.00"}},{"$f":"IFERROR('MMA Rev-Exp Region 5'!$AD$69/'MMA Rev-Exp Region 5'!$AD$9, 0)","v":{"v":0,"d":"$0.00"}},{"$f":"IFERROR('MMA Rev-Exp Region 5'!$AE$69/'MMA Rev-Exp Region 5'!$AE$9, 0)","v":{"v":0,"d":"$0.00"}},{"$f":"IFERROR('MMA Rev-Exp Region 5'!$AF$69/'MMA Rev-Exp Region 5'!$AF$9, 0)","v":{"v":0,"d":"$0.00"}},{"$f":"IFERROR('MMA Rev-Exp Region 5'!$AG$69/'MMA Rev-Exp Region 5'!$AG$9, 0)","v":{"v":0,"d":"$0.00"}},{"$f":"IFERROR('MMA Rev-Exp Region 5'!$AH$69/'MMA Rev-Exp Region 5'!$AH$9, 0)","v":{"v":0,"d":"$0.00"}},{"$f":"IFERROR('MMA Rev-Exp Region 5'!$AI$69/'MMA Rev-Exp Region 5'!$AI$9, 0)","v":{"v":0,"d":"$0.00"}},{"$f":"IFERROR('MMA Rev-Exp Region 5'!$AJ$69/'MMA Rev-Exp Region 5'!$AJ$9, 0)","v":{"v":0,"d":"$0.00"}}]
["MMA",null,null,2016,"2016-12-31","Q3","2017-09-30","Region 5","Operating Expense","Medical Benefits Expense","Other MMA Services","9.7","Other Services Settlements",{"$f":"IFERROR('MMA Rev-Exp Region 5'!$Z$70/'MMA Rev-Exp Region 5'!$Z$9, 0)","v":{"v":0,"d":"$0.00"}},{"$f":"IFERROR('MMA Rev-Exp Region 5'!$AA$70/'MMA Rev-Exp Region 5'!$AA$9, 0)","v":{"v":0,"d":"$0.00"}},{"$f":"IFERROR('MMA Rev-Exp Region 5'!$AB$70/'MMA Rev-Exp Region 5'!$AB$9, 0)","v":{"v":0,"d":"$0.00"}},{"$f":"IFERROR('MMA Rev-Exp Region 5'!$AC$70/'MMA Rev-Exp Region 5'!$AC$9, 0)","v":{"v":0,"d":"$0.00"}},{"$f":"IFERROR('MMA Rev-Exp Region 5'!$AD$70/'MMA Rev-Exp Region 5'!$AD$9, 0)","v":{"v":0,"d":"$0.00"}},{"$f":"IFERROR('MMA Rev-Exp Region 5'!$AE$70/'MMA Rev-Exp Region 5'!$AE$9, 0)","v":{"v":0,"d":"$0.00"}},{"$f":"IFERROR('MMA Rev-Exp Region 5'!$AF$70/'MMA Rev-Exp Region 5'!$AF$9, 0)","v":{"v":0,"d":"$0.00"}},{"$f":"IFERROR('MMA Rev-Exp Region 5'!$AG$70/'MMA Rev-Exp Region 5'!$AG$9, 0)","v":{"v":0,"d":"$0.00"}},{"$f":"IFERROR('MMA Rev-Exp Region 5'!$AH$70/'MMA Rev-Exp Region 5'!$AH$9, 0)","v":{"v":0,"d":"$0.00"}},{"$f":"IFERROR('MMA Rev-Exp Region 5'!$AI$70/'MMA Rev-Exp Region 5'!$AI$9, 0)","v":{"v":0,"d":"$0.00"}},{"$f":"IFERROR('MMA Rev-Exp Region 5'!$AJ$70/'MMA Rev-Exp Region 5'!$AJ$9, 0)","v":{"v":0,"d":"$0.00"}}]
["MMA",null,null,2016,"2016-12-31","Q3","2017-09-30","Region 5","Operating Expense","Medical Benefits Expense","Expanded Benefits","10.1","Expanded Benefits FFS",{"$f":"IFERROR('MMA Rev-Exp Region 5'!$Z$72/'MMA Rev-Exp Region 5'!$Z$9, 0)","v":{"v":0,"d":"$0.00"}},{"$f":"IFERROR('MMA Rev-Exp Region 5'!$AA$72/'MMA Rev-Exp Region 5'!$AA$9, 0)","v":{"v":0,"d":"$0.00"}},{"$f":"IFERROR('MMA Rev-Exp Region 5'!$AB$72/'MMA Rev-Exp Region 5'!$AB$9, 0)","v":{"v":0,"d":"$0.00"}},{"$f":"IFERROR('MMA Rev-Exp Region 5'!$AC$72/'MMA Rev-Exp Region 5'!$AC$9, 0)","v":{"v":0,"d":"$0.00"}},{"$f":"IFERROR('MMA Rev-Exp Region 5'!$AD$72/'MMA Rev-Exp Region 5'!$AD$9, 0)","v":{"v":0,"d":"$0.00"}},{"$f":"IFERROR('MMA Rev-Exp Region 5'!$AE$72/'MMA Rev-Exp Region 5'!$AE$9, 0)","v":{"v":0,"d":"$0.00"}},{"$f":"IFERROR('MMA Rev-Exp Region 5'!$AF$72/'MMA Rev-Exp Region 5'!$AF$9, 0)","v":{"v":0,"d":"$0.00"}},{"$f":"IFERROR('MMA Rev-Exp Region 5'!$AG$72/'MMA Rev-Exp Region 5'!$AG$9, 0)","v":{"v":0,"d":"$0.00"}},{"$f":"IFERROR('MMA Rev-Exp Region 5'!$AH$72/'MMA Rev-Exp Region 5'!$AH$9, 0)","v":{"v":0,"d":"$0.00"}},{"$f":"IFERROR('MMA Rev-Exp Region 5'!$AI$72/'MMA Rev-Exp Region 5'!$AI$9, 0)","v":{"v":0,"d":"$0.00"}},{"$f":"IFERROR('MMA Rev-Exp Region 5'!$AJ$72/'MMA Rev-Exp Region 5'!$AJ$9, 0)","v":{"v":0,"d":"$0.00"}}]
["MMA",null,null,2016,"2016-12-31","Q3","2017-09-30","Region 5","Operating Expense","Medical Benefits Expense","Expanded Benefits","10.2","Expanded benefits Subcapitation",{"$f":"IFERROR('MMA Rev-Exp Region 5'!$Z$73/'MMA Rev-Exp Region 5'!$Z$9, 0)","v":{"v":0,"d":"$0.00"}},{"$f":"IFERROR('MMA Rev-Exp Region 5'!$AA$73/'MMA Rev-Exp Region 5'!$AA$9, 0)","v":{"v":0,"d":"$0.00"}},{"$f":"IFERROR('MMA Rev-Exp Region 5'!$AB$73/'MMA Rev-Exp Region 5'!$AB$9, 0)","v":{"v":0,"d":"$0.00"}},{"$f":"IFERROR('MMA Rev-Exp Region 5'!$AC$73/'MMA Rev-Exp Region 5'!$AC$9, 0)","v":{"v":0,"d":"$0.00"}},{"$f":"IFERROR('MMA Rev-Exp Region 5'!$AD$73/'MMA Rev-Exp Region 5'!$AD$9, 0)","v":{"v":0,"d":"$0.00"}},{"$f":"IFERROR('MMA Rev-Exp Region 5'!$AE$73/'MMA Rev-Exp Region 5'!$AE$9, 0)","v":{"v":0,"d":"$0.00"}},{"$f":"IFERROR('MMA Rev-Exp Region 5'!$AF$73/'MMA Rev-Exp Region 5'!$AF$9, 0)","v":{"v":0,"d":"$0.00"}},{"$f":"IFERROR('MMA Rev-Exp Region 5'!$AG$73/'MMA Rev-Exp Region 5'!$AG$9, 0)","v":{"v":0,"d":"$0.00"}},{"$f":"IFERROR('MMA Rev-Exp Region 5'!$AH$73/'MMA Rev-Exp Region 5'!$AH$9, 0)","v":{"v":0,"d":"$0.00"}},{"$f":"IFERROR('MMA Rev-Exp Region 5'!$AI$73/'MMA Rev-Exp Region 5'!$AI$9, 0)","v":{"v":0,"d":"$0.00"}},{"$f":"IFERROR('MMA Rev-Exp Region 5'!$AJ$73/'MMA Rev-Exp Region 5'!$AJ$9, 0)","v":{"v":0,"d":"$0.00"}}]
["MMA",null,null,2016,"2016-12-31","Q3","2017-09-30","Region 5","Operating Expense","Medical Benefits Expense","Expanded Benefits","10.3","Ending IBNP for Expanded Benefits",{"$f":"IFERROR('MMA Rev-Exp Region 5'!$Z$74/'MMA Rev-Exp Region 5'!$Z$9, 0)","v":{"v":0,"d":"$0.00"}},{"$f":"IFERROR('MMA Rev-Exp Region 5'!$AA$74/'MMA Rev-Exp Region 5'!$AA$9, 0)","v":{"v":0,"d":"$0.00"}},{"$f":"IFERROR('MMA Rev-Exp Region 5'!$AB$74/'MMA Rev-Exp Region 5'!$AB$9, 0)","v":{"v":0,"d":"$0.00"}},{"$f":"IFERROR('MMA Rev-Exp Region 5'!$AC$74/'MMA Rev-Exp Region 5'!$AC$9, 0)","v":{"v":0,"d":"$0.00"}},{"$f":"IFERROR('MMA Rev-Exp Region 5'!$AD$74/'MMA Rev-Exp Region 5'!$AD$9, 0)","v":{"v":0,"d":"$0.00"}},{"$f":"IFERROR('MMA Rev-Exp Region 5'!$AE$74/'MMA Rev-Exp Region 5'!$AE$9, 0)","v":{"v":0,"d":"$0.00"}},{"$f":"IFERROR('MMA Rev-Exp Region 5'!$AF$74/'MMA Rev-Exp Region 5'!$AF$9, 0)","v":{"v":0,"d":"$0.00"}},{"$f":"IFERROR('MMA Rev-Exp Region 5'!$AG$74/'MMA Rev-Exp Region 5'!$AG$9, 0)","v":{"v":0,"d":"$0.00"}},{"$f":"IFERROR('MMA Rev-Exp Region 5'!$AH$74/'MMA Rev-Exp Region 5'!$AH$9, 0)","v":{"v":0,"d":"$0.00"}},{"$f":"IFERROR('MMA Rev-Exp Region 5'!$AI$74/'MMA Rev-Exp Region 5'!$AI$9, 0)","v":{"v":0,"d":"$0.00"}},{"$f":"IFERROR('MMA Rev-Exp Region 5'!$AJ$74/'MMA Rev-Exp Region 5'!$AJ$9, 0)","v":{"v":0,"d":"$0.00"}}]
["MMA",null,null,2016,"2016-12-31","Q3","2017-09-30","Region 5","Operating Expense","Medical Benefits Expense","Expanded Benefits","10.4","Expanded Benefits Settlements",{"$f":"IFERROR('MMA Rev-Exp Region 5'!$Z$75/'MMA Rev-Exp Region 5'!$Z$9, 0)","v":{"v":0,"d":"$0.00"}},{"$f":"IFERROR('MMA Rev-Exp Region 5'!$AA$75/'MMA Rev-Exp Region 5'!$AA$9, 0)","v":{"v":0,"d":"$0.00"}},{"$f":"IFERROR('MMA Rev-Exp Region 5'!$AB$75/'MMA Rev-Exp Region 5'!$AB$9, 0)","v":{"v":0,"d":"$0.00"}},{"$f":"IFERROR('MMA Rev-Exp Region 5'!$AC$75/'MMA Rev-Exp Region 5'!$AC$9, 0)","v":{"v":0,"d":"$0.00"}},{"$f":"IFERROR('MMA Rev-Exp Region 5'!$AD$75/'MMA Rev-Exp Region 5'!$AD$9, 0)","v":{"v":0,"d":"$0.00"}},{"$f":"IFERROR('MMA Rev-Exp Region 5'!$AE$75/'MMA Rev-Exp Region 5'!$AE$9, 0)","v":{"v":0,"d":"$0.00"}},{"$f":"IFERROR('MMA Rev-Exp Region 5'!$AF$75/'MMA Rev-Exp Region 5'!$AF$9, 0)","v":{"v":0,"d":"$0.00"}},{"$f":"IFERROR('MMA Rev-Exp Region 5'!$AG$75/'MMA Rev-Exp Region 5'!$AG$9, 0)","v":{"v":0,"d":"$0.00"}},{"$f":"IFERROR('MMA Rev-Exp Region 5'!$AH$75/'MMA Rev-Exp Region 5'!$AH$9, 0)","v":{"v":0,"d":"$0.00"}},{"$f":"IFERROR('MMA Rev-Exp Region 5'!$AI$75/'MMA Rev-Exp Region 5'!$AI$9, 0)","v":{"v":0,"d":"$0.00"}},{"$f":"IFERROR('MMA Rev-Exp Region 5'!$AJ$75/'MMA Rev-Exp Region 5'!$AJ$9, 0)","v":{"v":0,"d":"$0.00"}}]
["MMA",null,null,2016,"2016-12-31","Q3","2017-09-30","Region 5","Operating Expense","Medical Benefits Expense","Other Medical","11.5","TPL & Fraud/Abuse Recoveries",{"$f":"IFERROR('MMA Rev-Exp Region 5'!$Z$81/'MMA Rev-Exp Region 5'!$Z$9, 0)","v":{"v":0,"d":"$0.00"}},{"$f":"IFERROR('MMA Rev-Exp Region 5'!$AA$81/'MMA Rev-Exp Region 5'!$AA$9, 0)","v":{"v":0,"d":"$0.00"}},{"$f":"IFERROR('MMA Rev-Exp Region 5'!$AB$81/'MMA Rev-Exp Region 5'!$AB$9, 0)","v":{"v":0,"d":"$0.00"}},{"$f":"IFERROR('MMA Rev-Exp Region 5'!$AC$81/'MMA Rev-Exp Region 5'!$AC$9, 0)","v":{"v":0,"d":"$0.00"}},{"$f":"IFERROR('MMA Rev-Exp Region 5'!$AD$81/'MMA Rev-Exp Region 5'!$AD$9, 0)","v":{"v":0,"d":"$0.00"}},{"$f":"IFERROR('MMA Rev-Exp Region 5'!$AE$81/'MMA Rev-Exp Region 5'!$AE$9, 0)","v":{"v":0,"d":"$0.00"}},{"$f":"IFERROR('MMA Rev-Exp Region 5'!$AF$81/'MMA Rev-Exp Region 5'!$AF$9, 0)","v":{"v":0,"d":"$0.00"}},{"$f":"IFERROR('MMA Rev-Exp Region 5'!$AG$81/'MMA Rev-Exp Region 5'!$AG$9, 0)","v":{"v":0,"d":"$0.00"}},{"$f":"IFERROR('MMA Rev-Exp Region 5'!$AH$81/'MMA Rev-Exp Region 5'!$AH$9, 0)","v":{"v":0,"d":"$0.00"}},{"$f":"IFERROR('MMA Rev-Exp Region 5'!$AI$81/'MMA Rev-Exp Region 5'!$AI$9, 0)","v":{"v":0,"d":"$0.00"}},{"$f":"IFERROR('MMA Rev-Exp Region 5'!$AJ$81/'MMA Rev-Exp Region 5'!$AJ$9, 0)","v":{"v":0,"d":"$0.00"}}]
["MMA",null,null,2016,"2016-12-31","Q3","2017-09-30","Region 5","Operating Expense","Medical Benefits Expense","Other Medical","11.6.1","Premium Deficiency Reserve",{"$f":"IFERROR('MMA Rev-Exp Region 5'!$Z$82/'MMA Rev-Exp Region 5'!$Z$9, 0)","v":{"v":0,"d":"$0.00"}},{"$f":"IFERROR('MMA Rev-Exp Region 5'!$AA$82/'MMA Rev-Exp Region 5'!$AA$9, 0)","v":{"v":0,"d":"$0.00"}},{"$f":"IFERROR('MMA Rev-Exp Region 5'!$AB$82/'MMA Rev-Exp Region 5'!$AB$9, 0)","v":{"v":0,"d":"$0.00"}},{"$f":"IFERROR('MMA Rev-Exp Region 5'!$AC$82/'MMA Rev-Exp Region 5'!$AC$9, 0)","v":{"v":0,"d":"$0.00"}},{"$f":"IFERROR('MMA Rev-Exp Region 5'!$AD$82/'MMA Rev-Exp Region 5'!$AD$9, 0)","v":{"v":0,"d":"$0.00"}},{"$f":"IFERROR('MMA Rev-Exp Region 5'!$AE$82/'MMA Rev-Exp Region 5'!$AE$9, 0)","v":{"v":0,"d":"$0.00"}},{"$f":"IFERROR('MMA Rev-Exp Region 5'!$AF$82/'MMA Rev-Exp Region 5'!$AF$9, 0)","v":{"v":0,"d":"$0.00"}},{"$f":"IFERROR('MMA Rev-Exp Region 5'!$AG$82/'MMA Rev-Exp Region 5'!$AG$9, 0)","v":{"v":0,"d":"$0.00"}},{"$f":"IFERROR('MMA Rev-Exp Region 5'!$AH$82/'MMA Rev-Exp Region 5'!$AH$9, 0)","v":{"v":0,"d":"$0.00"}},{"$f":"IFERROR('MMA Rev-Exp Region 5'!$AI$82/'MMA Rev-Exp Region 5'!$AI$9, 0)","v":{"v":0,"d":"$0.00"}},{"$f":"IFERROR('MMA Rev-Exp Region 5'!$AJ$82/'MMA Rev-Exp Region 5'!$AJ$9, 0)","v":{"v":0,"d":"$0.00"}}]
["MMA",null,null,2016,"2016-12-31","Q3","2017-09-30","Region 5","Operating Expense","Medical Benefits Expense","Other Medical","11.8","Reinsurance Premiums",{"$f":"IFERROR('MMA Rev-Exp Region 5'!$Z$84/'MMA Rev-Exp Region 5'!$Z$9, 0)","v":{"v":0,"d":"$0.00"}},{"$f":"IFERROR('MMA Rev-Exp Region 5'!$AA$84/'MMA Rev-Exp Region 5'!$AA$9, 0)","v":{"v":0,"d":"$0.00"}},{"$f":"IFERROR('MMA Rev-Exp Region 5'!$AB$84/'MMA Rev-Exp Region 5'!$AB$9, 0)","v":{"v":0,"d":"$0.00"}},{"$f":"IFERROR('MMA Rev-Exp Region 5'!$AC$84/'MMA Rev-Exp Region 5'!$AC$9, 0)","v":{"v":0,"d":"$0.00"}},{"$f":"IFERROR('MMA Rev-Exp Region 5'!$AD$84/'MMA Rev-Exp Region 5'!$AD$9, 0)","v":{"v":0,"d":"$0.00"}},{"$f":"IFERROR('MMA Rev-Exp Region 5'!$AE$84/'MMA Rev-Exp Region 5'!$AE$9, 0)","v":{"v":0,"d":"$0.00"}},{"$f":"IFERROR('MMA Rev-Exp Region 5'!$AF$84/'MMA Rev-Exp Region 5'!$AF$9, 0)","v":{"v":0,"d":"$0.00"}},{"$f":"IFERROR('MMA Rev-Exp Region 5'!$AG$84/'MMA Rev-Exp Region 5'!$AG$9, 0)","v":{"v":0,"d":"$0.00"}},{"$f":"IFERROR('MMA Rev-Exp Region 5'!$AH$84/'MMA Rev-Exp Region 5'!$AH$9, 0)","v":{"v":0,"d":"$0.00"}},{"$f":"IFERROR('MMA Rev-Exp Region 5'!$AI$84/'MMA Rev-Exp Region 5'!$AI$9, 0)","v":{"v":0,"d":"$0.00"}},{"$f":"IFERROR('MMA Rev-Exp Region 5'!$AJ$84/'MMA Rev-Exp Region 5'!$AJ$9, 0)","v":{"v":0,"d":"$0.00"}}]
["MMA",null,null,2016,"2016-12-31","Q3","2017-09-30","Region 5","Operating Expense","Medical Benefits Expense","Other Medical","11.9","Reinsurance Recoveries",{"$f":"IFERROR('MMA Rev-Exp Region 5'!$Z$85/'MMA Rev-Exp Region 5'!$Z$9, 0)","v":{"v":0,"d":"$0.00"}},{"$f":"IFERROR('MMA Rev-Exp Region 5'!$AA$85/'MMA Rev-Exp Region 5'!$AA$9, 0)","v":{"v":0,"d":"$0.00"}},{"$f":"IFERROR('MMA Rev-Exp Region 5'!$AB$85/'MMA Rev-Exp Region 5'!$AB$9, 0)","v":{"v":0,"d":"$0.00"}},{"$f":"IFERROR('MMA Rev-Exp Region 5'!$AC$85/'MMA Rev-Exp Region 5'!$AC$9, 0)","v":{"v":0,"d":"$0.00"}},{"$f":"IFERROR('MMA Rev-Exp Region 5'!$AD$85/'MMA Rev-Exp Region 5'!$AD$9, 0)","v":{"v":0,"d":"$0.00"}},{"$f":"IFERROR('MMA Rev-Exp Region 5'!$AE$85/'MMA Rev-Exp Region 5'!$AE$9, 0)","v":{"v":0,"d":"$0.00"}},{"$f":"IFERROR('MMA Rev-Exp Region 5'!$AF$85/'MMA Rev-Exp Region 5'!$AF$9, 0)","v":{"v":0,"d":"$0.00"}},{"$f":"IFERROR('MMA Rev-Exp Region 5'!$AG$85/'MMA Rev-Exp Region 5'!$AG$9, 0)","v":{"v":0,"d":"$0.00"}},{"$f":"IFERROR('MMA Rev-Exp Region 5'!$AH$85/'MMA Rev-Exp Region 5'!$AH$9, 0)","v":{"v":0,"d":"$0.00"}},{"$f":"IFERROR('MMA Rev-Exp Region 5'!$AI$85/'MMA Rev-Exp Region 5'!$AI$9, 0)","v":{"v":0,"d":"$0.00"}},{"$f":"IFERROR('MMA Rev-Exp Region 5'!$AJ$85/'MMA Rev-Exp Region 5'!$AJ$9, 0)","v":{"v":0,"d":"$0.00"}}]
["MMA",null,null,2016,"2016-12-31","Q3","2017-09-30","Region 5","Operating Expense","Administrative Expense","Administrative","12.1","Salaries & Benefits",{"$f":"IFERROR('MMA Rev-Exp Region 5'!$Z$90/'MMA Rev-Exp Region 5'!$Z$9, 0)","v":{"v":0,"d":"$0.00"}},{"$f":"IFERROR('MMA Rev-Exp Region 5'!$AA$90/'MMA Rev-Exp Region 5'!$Z$9, 0)","v":{"v":0,"d":"$0.00"}},{"$f":"IFERROR('MMA Rev-Exp Region 5'!$AB$90/'MMA Rev-Exp Region 5'!$Z$9, 0)","v":{"v":0,"d":"$0.00"}}]
["MMA",null,null,2016,"2016-12-31","Q3","2017-09-30","Region 5","Operating Expense","Administrative Expense","Administrative","12.2","Administrative Services",{"$f":"IFERROR('MMA Rev-Exp Region 5'!$Z$91/'MMA Rev-Exp Region 5'!$Z$9, 0)","v":{"v":0,"d":"$0.00"}},{"$f":"IFERROR('MMA Rev-Exp Region 5'!$AA$91/'MMA Rev-Exp Region 5'!$Z$9, 0)","v":{"v":0,"d":"$0.00"}},{"$f":"IFERROR('MMA Rev-Exp Region 5'!$AB$91/'MMA Rev-Exp Region 5'!$Z$9, 0)","v":{"v":0,"d":"$0.00"}}]
["MMA",null,null,2016,"2016-12-31","Q3","2017-09-30","Region 5","Operating Expense","Administrative Expense","Administrative","12.3","Information Systems",{"$f":"IFERROR('MMA Rev-Exp Region 5'!$Z$92/'MMA Rev-Exp Region 5'!$Z$9, 0)","v":{"v":0,"d":"$0.00"}},{"$f":"IFERROR('MMA Rev-Exp Region 5'!$AA$92/'MMA Rev-Exp Region 5'!$Z$9, 0)","v":{"v":0,"d":"$0.00"}},{"$f":"IFERROR('MMA Rev-Exp Region 5'!$AB$92/'MMA Rev-Exp Region 5'!$Z$9, 0)","v":{"v":0,"d":"$0.00"}}]
["MMA",null,null,2016,"2016-12-31","Q3","2017-09-30","Region 5","Operating Expense","Administrative Expense","Administrative","12.4","Marketing Expenses",{"$f":"IFERROR('MMA Rev-Exp Region 5'!$Z$93/'MMA Rev-Exp Region 5'!$Z$9, 0)","v":{"v":0,"d":"$0.00"}},{"$f":"IFERROR('MMA Rev-Exp Region 5'!$AA$93/'MMA Rev-Exp Region 5'!$Z$9, 0)","v":{"v":0,"d":"$0.00"}},{"$f":"IFERROR('MMA Rev-Exp Region 5'!$AB$93/'MMA Rev-Exp Region 5'!$Z$9, 0)","v":{"v":0,"d":"$0.00"}}]
["MMA",null,null,2016,"2016-12-31","Q3","2017-09-30","Region 5","Operating Expense","Administrative Expense","Administrative","12.5","General  Administration",{"$f":"IFERROR('MMA Rev-Exp Region 5'!$Z$94/'MMA Rev-Exp Region 5'!$Z$9, 0)","v":{"v":0,"d":"$0.00"}},{"$f":"IFERROR('MMA Rev-Exp Region 5'!$AA$94/'MMA Rev-Exp Region 5'!$Z$9, 0)","v":{"v":0,"d":"$0.00"}},{"$f":"IFERROR('MMA Rev-Exp Region 5'!$AB$94/'MMA Rev-Exp Region 5'!$Z$9, 0)","v":{"v":0,"d":"$0.00"}}]
["MMA",null,null,2016,"2016-12-31","Q3","2017-09-30","Region 5","Operating Expense","Administrative Expense","Administrative","12.6","Compliance/Regulatory",{"$f":"IFERROR('MMA Rev-Exp Region 5'!$Z$95/'MMA Rev-Exp Region 5'!$Z$9, 0)","v":{"v":0,"d":"$0.00"}},{"$f":"IFERROR('MMA Rev-Exp Region 5'!$AA$95/'MMA Rev-Exp Region 5'!$Z$9, 0)","v":{"v":0,"d":"$0.00"}},{"$f":"IFERROR('MMA Rev-Exp Region 5'!$AB$95/'MMA Rev-Exp Region 5'!$Z$9, 0)","v":{"v":0,"d":"$0.00"}}]
["MMA",null,null,2016,"2016-12-31","Q3","2017-09-30","Region 5","Operating Expense","Taxes & Fees","Taxes & Fees","13.1","State Premium tax",{"$f":"IFERROR('MMA Rev-Exp Region 5'!$Z$97/'MMA Rev-Exp Region 5'!$Z$9, 0)","v":{"v":0,"d":"$0.00"}}]
["MMA",null,null,2016,"2016-12-31","Q3","2017-09-30","Region 5","Operating Expense","Taxes & Fees","Taxes & Fees","13.2","Department of Insurance Assessments",{"$f":"IFERROR('MMA Rev-Exp Region 5'!$Z$98/'MMA Rev-Exp Region 5'!$Z$9, 0)","v":{"v":0,"d":"$0.00"}}]
["MMA",null,null,2016,"2016-12-31","Q3","2017-09-30","Region 5","Operating Expense","Taxes & Fees","Taxes & Fees","13.3","Section 9010 Health Insurance Providers Fee",{"$f":"IFERROR('MMA Rev-Exp Region 5'!$Z$99/'MMA Rev-Exp Region 5'!$Z$9, 0)","v":{"v":0,"d":"$0.00"}}]
["MMA",null,null,2016,"2016-12-31","Q3","2017-09-30","Region 5","Non-Operating Expense","Income Tax Expense","Income Tax Expense","16.0","Income Tax Expense",{"$f":"IFERROR('MMA Rev-Exp Region 5'!$Z$106/'MMA Rev-Exp Region 5'!$Z$9, 0)","v":{"v":0,"d":"$0.00"}}]
["MMA",null,null,2016,"2016-12-31","Q4","2017-12-31","Region 5","Operating Revenue","Capitation","Capitation",1.1,"Capitation",{"$f":"IFERROR('MMA Rev-Exp Region 5'!$AK$11/'MMA Rev-Exp Region 5'!$AK$9, 0)","v":{"v":0,"d":"$0.00"}},{"$f":"IFERROR('MMA Rev-Exp Region 5'!$AL$11/'MMA Rev-Exp Region 5'!$AL$9, 0)","v":{"v":0,"d":"$0.00"}},{"$f":"IFERROR('MMA Rev-Exp Region 5'!$AM$11/'MMA Rev-Exp Region 5'!$AM$9, 0)","v":{"v":0,"d":"$0.00"}},{"$f":"IFERROR('MMA Rev-Exp Region 5'!$AN$11/'MMA Rev-Exp Region 5'!$AN$9, 0)","v":{"v":0,"d":"$0.00"}},{"$f":"IFERROR('MMA Rev-Exp Region 5'!$AO$11/'MMA Rev-Exp Region 5'!$AO$9, 0)","v":{"v":0,"d":"$0.00"}},{"$f":"IFERROR('MMA Rev-Exp Region 5'!$AP$11/'MMA Rev-Exp Region 5'!$AP$9, 0)","v":{"v":0,"d":"$0.00"}},{"$f":"IFERROR('MMA Rev-Exp Region 5'!$AQ$11/'MMA Rev-Exp Region 5'!$AQ$9, 0)","v":{"v":0,"d":"$0.00"}},{"$f":"IFERROR('MMA Rev-Exp Region 5'!$AR$11/'MMA Rev-Exp Region 5'!$AR$9, 0)","v":{"v":0,"d":"$0.00"}},{"$f":"IFERROR('MMA Rev-Exp Region 5'!$AS$11/'MMA Rev-Exp Region 5'!$AS$9, 0)","v":{"v":0,"d":"$0.00"}},{"$f":"IFERROR('MMA Rev-Exp Region 5'!$AT$11/'MMA Rev-Exp Region 5'!$AT$9, 0)","v":{"v":0,"d":"$0.00"}},{"$f":"IFERROR('MMA Rev-Exp Region 5'!$AU$11/'MMA Rev-Exp Region 5'!$AU$9, 0)","v":{"v":0,"d":"$0.00"}}]
["MMA",null,null,2016,"2016-12-31","Q4","2017-12-31","Region 5","Operating Revenue","Kick Payments","Kick Payments - Transplant",1.2,"Transplant Kick Payments",{"$f":"IFERROR('MMA Rev-Exp Region 5'!$AK$12/'MMA Rev-Exp Region 5'!$AK$9, 0)","v":{"v":0,"d":"$0.00"}},{"$f":"IFERROR('MMA Rev-Exp Region 5'!$AL$12/'MMA Rev-Exp Region 5'!$AL$9, 0)","v":{"v":0,"d":"$0.00"}},{"$f":"IFERROR('MMA Rev-Exp Region 5'!$AM$12/'MMA Rev-Exp Region 5'!$AM$9, 0)","v":{"v":0,"d":"$0.00"}},{"$f":"IFERROR('MMA Rev-Exp Region 5'!$AN$12/'MMA Rev-Exp Region 5'!$AN$9, 0)","v":{"v":0,"d":"$0.00"}},{"$f":"IFERROR('MMA Rev-Exp Region 5'!$AO$12/'MMA Rev-Exp Region 5'!$AO$9, 0)","v":{"v":0,"d":"$0.00"}},{"$f":"IFERROR('MMA Rev-Exp Region 5'!$AP$12/'MMA Rev-Exp Region 5'!$AP$9, 0)","v":{"v":0,"d":"$0.00"}},{"$f":"IFERROR('MMA Rev-Exp Region 5'!$AQ$12/'MMA Rev-Exp Region 5'!$AQ$9, 0)","v":{"v":0,"d":"$0.00"}},{"$f":"IFERROR('MMA Rev-Exp Region 5'!$AR$12/'MMA Rev-Exp Region 5'!$AR$9, 0)","v":{"v":0,"d":"$0.00"}},{"$f":"IFERROR('MMA Rev-Exp Region 5'!$AS$12/'MMA Rev-Exp Region 5'!$AS$9, 0)","v":{"v":0,"d":"$0.00"}},{"$f":"IFERROR('MMA Rev-Exp Region 5'!$AT$12/'MMA Rev-Exp Region 5'!$AT$9, 0)","v":{"v":0,"d":"$0.00"}},{"$f":"IFERROR('MMA Rev-Exp Region 5'!$AU$12/'MMA Rev-Exp Region 5'!$AU$9, 0)","v":{"v":0,"d":"$0.00"}}]
["MMA",null,null,2016,"2016-12-31","Q4","2017-12-31","Region 5","Operating Revenue","Kick Payments","Kick Payments - Hep C","1.3","Hepatitis C Kick Payments",{"$f":"IFERROR('MMA Rev-Exp Region 5'!$AK$13/'MMA Rev-Exp Region 5'!$AK$9, 0)","v":{"v":0,"d":"$0.00"}},{"$f":"IFERROR('MMA Rev-Exp Region 5'!$AL$13/'MMA Rev-Exp Region 5'!$AL$9, 0)","v":{"v":0,"d":"$0.00"}},{"$f":"IFERROR('MMA Rev-Exp Region 5'!$AM$13/'MMA Rev-Exp Region 5'!$AM$9, 0)","v":{"v":0,"d":"$0.00"}},{"$f":"IFERROR('MMA Rev-Exp Region 5'!$AN$13/'MMA Rev-Exp Region 5'!$AN$9, 0)","v":{"v":0,"d":"$0.00"}},{"$f":"IFERROR('MMA Rev-Exp Region 5'!$AO$13/'MMA Rev-Exp Region 5'!$AO$9, 0)","v":{"v":0,"d":"$0.00"}},{"$f":"IFERROR('MMA Rev-Exp Region 5'!$AP$13/'MMA Rev-Exp Region 5'!$AP$9, 0)","v":{"v":0,"d":"$0.00"}},{"$f":"IFERROR('MMA Rev-Exp Region 5'!$AQ$13/'MMA Rev-Exp Region 5'!$AQ$9, 0)","v":{"v":0,"d":"$0.00"}},{"$f":"IFERROR('MMA Rev-Exp Region 5'!$AR$13/'MMA Rev-Exp Region 5'!$AR$9, 0)","v":{"v":0,"d":"$0.00"}},{"$f":"IFERROR('MMA Rev-Exp Region 5'!$AS$13/'MMA Rev-Exp Region 5'!$AS$9, 0)","v":{"v":0,"d":"$0.00"}},{"$f":"IFERROR('MMA Rev-Exp Region 5'!$AT$13/'MMA Rev-Exp Region 5'!$AT$9, 0)","v":{"v":0,"d":"$0.00"}},{"$f":"IFERROR('MMA Rev-Exp Region 5'!$AU$13/'MMA Rev-Exp Region 5'!$AU$9, 0)","v":{"v":0,"d":"$0.00"}}]
["MMA",null,null,2016,"2016-12-31","Q4","2017-12-31","Region 5","Operating Revenue","Kick Payments","Kick Payments - Maternity","1.4.1","Maternity Kick Payments",{"$f":"IFERROR('MMA Rev-Exp Region 5'!$AK$14/'MMA Rev-Exp Region 5'!$AK$9, 0)","v":{"v":0,"d":"$0.00"}},{"$f":"IFERROR('MMA Rev-Exp Region 5'!$AL$14/'MMA Rev-Exp Region 5'!$AL$9, 0)","v":{"v":0,"d":"$0.00"}},{"$f":"IFERROR('MMA Rev-Exp Region 5'!$AM$14/'MMA Rev-Exp Region 5'!$AM$9, 0)","v":{"v":0,"d":"$0.00"}},{"$f":"IFERROR('MMA Rev-Exp Region 5'!$AN$14/'MMA Rev-Exp Region 5'!$AN$9, 0)","v":{"v":0,"d":"$0.00"}},{"$f":"IFERROR('MMA Rev-Exp Region 5'!$AO$14/'MMA Rev-Exp Region 5'!$AO$9, 0)","v":{"v":0,"d":"$0.00"}},{"$f":"IFERROR('MMA Rev-Exp Region 5'!$AP$14/'MMA Rev-Exp Region 5'!$AP$9, 0)","v":{"v":0,"d":"$0.00"}},{"$f":"IFERROR('MMA Rev-Exp Region 5'!$AQ$14/'MMA Rev-Exp Region 5'!$AQ$9, 0)","v":{"v":0,"d":"$0.00"}},{"$f":"IFERROR('MMA Rev-Exp Region 5'!$AR$14/'MMA Rev-Exp Region 5'!$AR$9, 0)","v":{"v":0,"d":"$0.00"}},{"$f":"IFERROR('MMA Rev-Exp Region 5'!$AS$14/'MMA Rev-Exp Region 5'!$AS$9, 0)","v":{"v":0,"d":"$0.00"}},{"$f":"IFERROR('MMA Rev-Exp Region 5'!$AT$14/'MMA Rev-Exp Region 5'!$AT$9, 0)","v":{"v":0,"d":"$0.00"}},{"$f":"IFERROR('MMA Rev-Exp Region 5'!$AU$14/'MMA Rev-Exp Region 5'!$AU$9, 0)","v":{"v":0,"d":"$0.00"}}]
["MMA",null,null,2016,"2016-12-31","Q4","2017-12-31","Region 5","Operating Revenue","Other Revenue","Other Revenue - 9010","1.5","ACA § 9010 related payments",{"$f":"IFERROR('MMA Rev-Exp Region 5'!$AK$15/'MMA Rev-Exp Region 5'!$AK$9, 0)","v":{"v":0,"d":"$0.00"}},{"$f":"IFERROR('MMA Rev-Exp Region 5'!$AL$15/'MMA Rev-Exp Region 5'!$AL$9, 0)","v":{"v":0,"d":"$0.00"}},{"$f":"IFERROR('MMA Rev-Exp Region 5'!$AM$15/'MMA Rev-Exp Region 5'!$AM$9, 0)","v":{"v":0,"d":"$0.00"}},{"$f":"IFERROR('MMA Rev-Exp Region 5'!$AN$15/'MMA Rev-Exp Region 5'!$AN$9, 0)","v":{"v":0,"d":"$0.00"}},{"$f":"IFERROR('MMA Rev-Exp Region 5'!$AO$15/'MMA Rev-Exp Region 5'!$AO$9, 0)","v":{"v":0,"d":"$0.00"}},{"$f":"IFERROR('MMA Rev-Exp Region 5'!$AP$15/'MMA Rev-Exp Region 5'!$AP$9, 0)","v":{"v":0,"d":"$0.00"}},{"$f":"IFERROR('MMA Rev-Exp Region 5'!$AQ$15/'MMA Rev-Exp Region 5'!$AQ$9, 0)","v":{"v":0,"d":"$0.00"}},{"$f":"IFERROR('MMA Rev-Exp Region 5'!$AR$15/'MMA Rev-Exp Region 5'!$AR$9, 0)","v":{"v":0,"d":"$0.00"}},{"$f":"IFERROR('MMA Rev-Exp Region 5'!$AS$15/'MMA Rev-Exp Region 5'!$AS$9, 0)","v":{"v":0,"d":"$0.00"}},{"$f":"IFERROR('MMA Rev-Exp Region 5'!$AT$15/'MMA Rev-Exp Region 5'!$AT$9, 0)","v":{"v":0,"d":"$0.00"}},{"$f":"IFERROR('MMA Rev-Exp Region 5'!$AU$15/'MMA Rev-Exp Region 5'!$AU$9, 0)","v":{"v":0,"d":"$0.00"}}]
["MMA",null,null,2016,"2016-12-31","Q4","2017-12-31","Region 5","Operating Revenue","Other Revenue","Other Revenue","1.6","Other Revenue",{"$f":"IFERROR('MMA Rev-Exp Region 5'!$AK$16/'MMA Rev-Exp Region 5'!$AK$9, 0)","v":{"v":0,"d":"$0.00"}},{"$f":"IFERROR('MMA Rev-Exp Region 5'!$AL$16/'MMA Rev-Exp Region 5'!$AL$9, 0)","v":{"v":0,"d":"$0.00"}},{"$f":"IFERROR('MMA Rev-Exp Region 5'!$AM$16/'MMA Rev-Exp Region 5'!$AM$9, 0)","v":{"v":0,"d":"$0.00"}},{"$f":"IFERROR('MMA Rev-Exp Region 5'!$AN$16/'MMA Rev-Exp Region 5'!$AN$9, 0)","v":{"v":0,"d":"$0.00"}},{"$f":"IFERROR('MMA Rev-Exp Region 5'!$AO$16/'MMA Rev-Exp Region 5'!$AO$9, 0)","v":{"v":0,"d":"$0.00"}},{"$f":"IFERROR('MMA Rev-Exp Region 5'!$AP$16/'MMA Rev-Exp Region 5'!$AP$9, 0)","v":{"v":0,"d":"$0.00"}},{"$f":"IFERROR('MMA Rev-Exp Region 5'!$AQ$16/'MMA Rev-Exp Region 5'!$AQ$9, 0)","v":{"v":0,"d":"$0.00"}},{"$f":"IFERROR('MMA Rev-Exp Region 5'!$AR$16/'MMA Rev-Exp Region 5'!$AR$9, 0)","v":{"v":0,"d":"$0.00"}},{"$f":"IFERROR('MMA Rev-Exp Region 5'!$AS$16/'MMA Rev-Exp Region 5'!$AS$9, 0)","v":{"v":0,"d":"$0.00"}},{"$f":"IFERROR('MMA Rev-Exp Region 5'!$AT$16/'MMA Rev-Exp Region 5'!$AT$9, 0)","v":{"v":0,"d":"$0.00"}},{"$f":"IFERROR('MMA Rev-Exp Region 5'!$AU$16/'MMA Rev-Exp Region 5'!$AU$9, 0)","v":{"v":0,"d":"$0.00"}}]
["MMA",null,null,2016,"2016-12-31","Q4","2017-12-31","Region 5","Operating Expense","Medical Benefits Expense","Hospital Services",2.1,"Inpatient FFS",{"$f":"IFERROR('MMA Rev-Exp Region 5'!$AK$20/'MMA Rev-Exp Region 5'!$AK$9, 0)","v":{"v":0,"d":"$0.00"}},{"$f":"IFERROR('MMA Rev-Exp Region 5'!$AL$20/'MMA Rev-Exp Region 5'!$AL$9, 0)","v":{"v":0,"d":"$0.00"}},{"$f":"IFERROR('MMA Rev-Exp Region 5'!$AM$20/'MMA Rev-Exp Region 5'!$AM$9, 0)","v":{"v":0,"d":"$0.00"}},{"$f":"IFERROR('MMA Rev-Exp Region 5'!$AN$20/'MMA Rev-Exp Region 5'!$AN$9, 0)","v":{"v":0,"d":"$0.00"}},{"$f":"IFERROR('MMA Rev-Exp Region 5'!$AO$20/'MMA Rev-Exp Region 5'!$AO$9, 0)","v":{"v":0,"d":"$0.00"}},{"$f":"IFERROR('MMA Rev-Exp Region 5'!$AP$20/'MMA Rev-Exp Region 5'!$AP$9, 0)","v":{"v":0,"d":"$0.00"}},{"$f":"IFERROR('MMA Rev-Exp Region 5'!$AQ$20/'MMA Rev-Exp Region 5'!$AQ$9, 0)","v":{"v":0,"d":"$0.00"}},{"$f":"IFERROR('MMA Rev-Exp Region 5'!$AR$20/'MMA Rev-Exp Region 5'!$AR$9, 0)","v":{"v":0,"d":"$0.00"}},{"$f":"IFERROR('MMA Rev-Exp Region 5'!$AS$20/'MMA Rev-Exp Region 5'!$AS$9, 0)","v":{"v":0,"d":"$0.00"}},{"$f":"IFERROR('MMA Rev-Exp Region 5'!$AT$20/'MMA Rev-Exp Region 5'!$AT$9, 0)","v":{"v":0,"d":"$0.00"}},{"$f":"IFERROR('MMA Rev-Exp Region 5'!$AU$20/'MMA Rev-Exp Region 5'!$AU$9, 0)","v":{"v":0,"d":"$0.00"}}]
["MMA",null,null,2016,"2016-12-31","Q4","2017-12-31","Region 5","Operating Expense","Medical Benefits Expense","Hospital Services",2.2,"Ending IBNP for Inpatient Hospital Services",{"$f":"IFERROR('MMA Rev-Exp Region 5'!$AK$21/'MMA Rev-Exp Region 5'!$AK$9, 0)","v":{"v":0,"d":"$0.00"}},{"$f":"IFERROR('MMA Rev-Exp Region 5'!$AL$21/'MMA Rev-Exp Region 5'!$AL$9, 0)","v":{"v":0,"d":"$0.00"}},{"$f":"IFERROR('MMA Rev-Exp Region 5'!$AM$21/'MMA Rev-Exp Region 5'!$AM$9, 0)","v":{"v":0,"d":"$0.00"}},{"$f":"IFERROR('MMA Rev-Exp Region 5'!$AN$21/'MMA Rev-Exp Region 5'!$AN$9, 0)","v":{"v":0,"d":"$0.00"}},{"$f":"IFERROR('MMA Rev-Exp Region 5'!$AO$21/'MMA Rev-Exp Region 5'!$AO$9, 0)","v":{"v":0,"d":"$0.00"}},{"$f":"IFERROR('MMA Rev-Exp Region 5'!$AP$21/'MMA Rev-Exp Region 5'!$AP$9, 0)","v":{"v":0,"d":"$0.00"}},{"$f":"IFERROR('MMA Rev-Exp Region 5'!$AQ$21/'MMA Rev-Exp Region 5'!$AQ$9, 0)","v":{"v":0,"d":"$0.00"}},{"$f":"IFERROR('MMA Rev-Exp Region 5'!$AR$21/'MMA Rev-Exp Region 5'!$AR$9, 0)","v":{"v":0,"d":"$0.00"}},{"$f":"IFERROR('MMA Rev-Exp Region 5'!$AS$21/'MMA Rev-Exp Region 5'!$AS$9, 0)","v":{"v":0,"d":"$0.00"}},{"$f":"IFERROR('MMA Rev-Exp Region 5'!$AT$21/'MMA Rev-Exp Region 5'!$AT$9, 0)","v":{"v":0,"d":"$0.00"}},{"$f":"IFERROR('MMA Rev-Exp Region 5'!$AU$21/'MMA Rev-Exp Region 5'!$AU$9, 0)","v":{"v":0,"d":"$0.00"}}]
["MMA",null,null,2016,"2016-12-31","Q4","2017-12-31","Region 5","Operating Expense","Medical Benefits Expense","Hospital Services",2.3,"Outpatient FFS: ER",{"$f":"IFERROR('MMA Rev-Exp Region 5'!$AK$22/'MMA Rev-Exp Region 5'!$AK$9, 0)","v":{"v":0,"d":"$0.00"}},{"$f":"IFERROR('MMA Rev-Exp Region 5'!$AL$22/'MMA Rev-Exp Region 5'!$AL$9, 0)","v":{"v":0,"d":"$0.00"}},{"$f":"IFERROR('MMA Rev-Exp Region 5'!$AM$22/'MMA Rev-Exp Region 5'!$AM$9, 0)","v":{"v":0,"d":"$0.00"}},{"$f":"IFERROR('MMA Rev-Exp Region 5'!$AN$22/'MMA Rev-Exp Region 5'!$AN$9, 0)","v":{"v":0,"d":"$0.00"}},{"$f":"IFERROR('MMA Rev-Exp Region 5'!$AO$22/'MMA Rev-Exp Region 5'!$AO$9, 0)","v":{"v":0,"d":"$0.00"}},{"$f":"IFERROR('MMA Rev-Exp Region 5'!$AP$22/'MMA Rev-Exp Region 5'!$AP$9, 0)","v":{"v":0,"d":"$0.00"}},{"$f":"IFERROR('MMA Rev-Exp Region 5'!$AQ$22/'MMA Rev-Exp Region 5'!$AQ$9, 0)","v":{"v":0,"d":"$0.00"}},{"$f":"IFERROR('MMA Rev-Exp Region 5'!$AR$22/'MMA Rev-Exp Region 5'!$AR$9, 0)","v":{"v":0,"d":"$0.00"}},{"$f":"IFERROR('MMA Rev-Exp Region 5'!$AS$22/'MMA Rev-Exp Region 5'!$AS$9, 0)","v":{"v":0,"d":"$0.00"}},{"$f":"IFERROR('MMA Rev-Exp Region 5'!$AT$22/'MMA Rev-Exp Region 5'!$AT$9, 0)","v":{"v":0,"d":"$0.00"}},{"$f":"IFERROR('MMA Rev-Exp Region 5'!$AU$22/'MMA Rev-Exp Region 5'!$AU$9, 0)","v":{"v":0,"d":"$0.00"}}]
["MMA",null,null,2016,"2016-12-31","Q4","2017-12-31","Region 5","Operating Expense","Medical Benefits Expense","Hospital Services",2.4,"Outpatient FFS: Other than ER ",{"$f":"IFERROR('MMA Rev-Exp Region 5'!$AK$23/'MMA Rev-Exp Region 5'!$AK$9, 0)","v":{"v":0,"d":"$0.00"}},{"$f":"IFERROR('MMA Rev-Exp Region 5'!$AL$23/'MMA Rev-Exp Region 5'!$AL$9, 0)","v":{"v":0,"d":"$0.00"}},{"$f":"IFERROR('MMA Rev-Exp Region 5'!$AM$23/'MMA Rev-Exp Region 5'!$AM$9, 0)","v":{"v":0,"d":"$0.00"}},{"$f":"IFERROR('MMA Rev-Exp Region 5'!$AN$23/'MMA Rev-Exp Region 5'!$AN$9, 0)","v":{"v":0,"d":"$0.00"}},{"$f":"IFERROR('MMA Rev-Exp Region 5'!$AO$23/'MMA Rev-Exp Region 5'!$AO$9, 0)","v":{"v":0,"d":"$0.00"}},{"$f":"IFERROR('MMA Rev-Exp Region 5'!$AP$23/'MMA Rev-Exp Region 5'!$AP$9, 0)","v":{"v":0,"d":"$0.00"}},{"$f":"IFERROR('MMA Rev-Exp Region 5'!$AQ$23/'MMA Rev-Exp Region 5'!$AQ$9, 0)","v":{"v":0,"d":"$0.00"}},{"$f":"IFERROR('MMA Rev-Exp Region 5'!$AR$23/'MMA Rev-Exp Region 5'!$AR$9, 0)","v":{"v":0,"d":"$0.00"}},{"$f":"IFERROR('MMA Rev-Exp Region 5'!$AS$23/'MMA Rev-Exp Region 5'!$AS$9, 0)","v":{"v":0,"d":"$0.00"}},{"$f":"IFERROR('MMA Rev-Exp Region 5'!$AT$23/'MMA Rev-Exp Region 5'!$AT$9, 0)","v":{"v":0,"d":"$0.00"}},{"$f":"IFERROR('MMA Rev-Exp Region 5'!$AU$23/'MMA Rev-Exp Region 5'!$AU$9, 0)","v":{"v":0,"d":"$0.00"}}]
["MMA",null,null,2016,"2016-12-31","Q4","2017-12-31","Region 5","Operating Expense","Medical Benefits Expense","Hospital Services",2.5,"Ending IBNP for Outpatient Hospital Services",{"$f":"IFERROR('MMA Rev-Exp Region 5'!$AK$24/'MMA Rev-Exp Region 5'!$AK$9, 0)","v":{"v":0,"d":"$0.00"}},{"$f":"IFERROR('MMA Rev-Exp Region 5'!$AL$24/'MMA Rev-Exp Region 5'!$AL$9, 0)","v":{"v":0,"d":"$0.00"}},{"$f":"IFERROR('MMA Rev-Exp Region 5'!$AM$24/'MMA Rev-Exp Region 5'!$AM$9, 0)","v":{"v":0,"d":"$0.00"}},{"$f":"IFERROR('MMA Rev-Exp Region 5'!$AN$24/'MMA Rev-Exp Region 5'!$AN$9, 0)","v":{"v":0,"d":"$0.00"}},{"$f":"IFERROR('MMA Rev-Exp Region 5'!$AO$24/'MMA Rev-Exp Region 5'!$AO$9, 0)","v":{"v":0,"d":"$0.00"}},{"$f":"IFERROR('MMA Rev-Exp Region 5'!$AP$24/'MMA Rev-Exp Region 5'!$AP$9, 0)","v":{"v":0,"d":"$0.00"}},{"$f":"IFERROR('MMA Rev-Exp Region 5'!$AQ$24/'MMA Rev-Exp Region 5'!$AQ$9, 0)","v":{"v":0,"d":"$0.00"}},{"$f":"IFERROR('MMA Rev-Exp Region 5'!$AR$24/'MMA Rev-Exp Region 5'!$AR$9, 0)","v":{"v":0,"d":"$0.00"}},{"$f":"IFERROR('MMA Rev-Exp Region 5'!$AS$24/'MMA Rev-Exp Region 5'!$AS$9, 0)","v":{"v":0,"d":"$0.00"}},{"$f":"IFERROR('MMA Rev-Exp Region 5'!$AT$24/'MMA Rev-Exp Region 5'!$AT$9, 0)","v":{"v":0,"d":"$0.00"}},{"$f":"IFERROR('MMA Rev-Exp Region 5'!$AU$24/'MMA Rev-Exp Region 5'!$AU$9, 0)","v":{"v":0,"d":"$0.00"}}]
["MMA",null,null,2016,"2016-12-31","Q4","2017-12-31","Region 5","Operating Expense","Medical Benefits Expense","Hospital Services","2.6","Subcapitated Hospital Services",{"$f":"IFERROR('MMA Rev-Exp Region 5'!$AK$25/'MMA Rev-Exp Region 5'!$AK$9, 0)","v":{"v":0,"d":"$0.00"}},{"$f":"IFERROR('MMA Rev-Exp Region 5'!$AL$25/'MMA Rev-Exp Region 5'!$AL$9, 0)","v":{"v":0,"d":"$0.00"}},{"$f":"IFERROR('MMA Rev-Exp Region 5'!$AM$25/'MMA Rev-Exp Region 5'!$AM$9, 0)","v":{"v":0,"d":"$0.00"}},{"$f":"IFERROR('MMA Rev-Exp Region 5'!$AN$25/'MMA Rev-Exp Region 5'!$AN$9, 0)","v":{"v":0,"d":"$0.00"}},{"$f":"IFERROR('MMA Rev-Exp Region 5'!$AO$25/'MMA Rev-Exp Region 5'!$AO$9, 0)","v":{"v":0,"d":"$0.00"}},{"$f":"IFERROR('MMA Rev-Exp Region 5'!$AP$25/'MMA Rev-Exp Region 5'!$AP$9, 0)","v":{"v":0,"d":"$0.00"}},{"$f":"IFERROR('MMA Rev-Exp Region 5'!$AQ$25/'MMA Rev-Exp Region 5'!$AQ$9, 0)","v":{"v":0,"d":"$0.00"}},{"$f":"IFERROR('MMA Rev-Exp Region 5'!$AR$25/'MMA Rev-Exp Region 5'!$AR$9, 0)","v":{"v":0,"d":"$0.00"}},{"$f":"IFERROR('MMA Rev-Exp Region 5'!$AS$25/'MMA Rev-Exp Region 5'!$AS$9, 0)","v":{"v":0,"d":"$0.00"}},{"$f":"IFERROR('MMA Rev-Exp Region 5'!$AT$25/'MMA Rev-Exp Region 5'!$AT$9, 0)","v":{"v":0,"d":"$0.00"}},{"$f":"IFERROR('MMA Rev-Exp Region 5'!$AU$25/'MMA Rev-Exp Region 5'!$AU$9, 0)","v":{"v":0,"d":"$0.00"}}]
["MMA",null,null,2016,"2016-12-31","Q4","2017-12-31","Region 5","Operating Expense","Medical Benefits Expense","Hospital Services","2.7","Hospital Settlements",{"$f":"IFERROR('MMA Rev-Exp Region 5'!$AK$26/'MMA Rev-Exp Region 5'!$AK$9, 0)","v":{"v":0,"d":"$0.00"}},{"$f":"IFERROR('MMA Rev-Exp Region 5'!$AL$26/'MMA Rev-Exp Region 5'!$AL$9, 0)","v":{"v":0,"d":"$0.00"}},{"$f":"IFERROR('MMA Rev-Exp Region 5'!$AM$26/'MMA Rev-Exp Region 5'!$AM$9, 0)","v":{"v":0,"d":"$0.00"}},{"$f":"IFERROR('MMA Rev-Exp Region 5'!$AN$26/'MMA Rev-Exp Region 5'!$AN$9, 0)","v":{"v":0,"d":"$0.00"}},{"$f":"IFERROR('MMA Rev-Exp Region 5'!$AO$26/'MMA Rev-Exp Region 5'!$AO$9, 0)","v":{"v":0,"d":"$0.00"}},{"$f":"IFERROR('MMA Rev-Exp Region 5'!$AP$26/'MMA Rev-Exp Region 5'!$AP$9, 0)","v":{"v":0,"d":"$0.00"}},{"$f":"IFERROR('MMA Rev-Exp Region 5'!$AQ$26/'MMA Rev-Exp Region 5'!$AQ$9, 0)","v":{"v":0,"d":"$0.00"}},{"$f":"IFERROR('MMA Rev-Exp Region 5'!$AR$26/'MMA Rev-Exp Region 5'!$AR$9, 0)","v":{"v":0,"d":"$0.00"}},{"$f":"IFERROR('MMA Rev-Exp Region 5'!$AS$26/'MMA Rev-Exp Region 5'!$AS$9, 0)","v":{"v":0,"d":"$0.00"}},{"$f":"IFERROR('MMA Rev-Exp Region 5'!$AT$26/'MMA Rev-Exp Region 5'!$AT$9, 0)","v":{"v":0,"d":"$0.00"}},{"$f":"IFERROR('MMA Rev-Exp Region 5'!$AU$26/'MMA Rev-Exp Region 5'!$AU$9, 0)","v":{"v":0,"d":"$0.00"}}]
["MMA",null,null,2016,"2016-12-31","Q4","2017-12-31","Region 5","Operating Expense","Medical Benefits Expense","Hospital Services","2.7.1","Transplant Services",{"$f":"IFERROR('MMA Rev-Exp Region 5'!$AK$27/'MMA Rev-Exp Region 5'!$AK$9, 0)","v":{"v":0,"d":"$0.00"}},{"$f":"IFERROR('MMA Rev-Exp Region 5'!$AL$27/'MMA Rev-Exp Region 5'!$AL$9, 0)","v":{"v":0,"d":"$0.00"}},{"$f":"IFERROR('MMA Rev-Exp Region 5'!$AM$27/'MMA Rev-Exp Region 5'!$AM$9, 0)","v":{"v":0,"d":"$0.00"}},{"$f":"IFERROR('MMA Rev-Exp Region 5'!$AN$27/'MMA Rev-Exp Region 5'!$AN$9, 0)","v":{"v":0,"d":"$0.00"}},{"$f":"IFERROR('MMA Rev-Exp Region 5'!$AO$27/'MMA Rev-Exp Region 5'!$AO$9, 0)","v":{"v":0,"d":"$0.00"}},{"$f":"IFERROR('MMA Rev-Exp Region 5'!$AP$27/'MMA Rev-Exp Region 5'!$AP$9, 0)","v":{"v":0,"d":"$0.00"}},{"$f":"IFERROR('MMA Rev-Exp Region 5'!$AQ$27/'MMA Rev-Exp Region 5'!$AQ$9, 0)","v":{"v":0,"d":"$0.00"}},{"$f":"IFERROR('MMA Rev-Exp Region 5'!$AR$27/'MMA Rev-Exp Region 5'!$AR$9, 0)","v":{"v":0,"d":"$0.00"}},{"$f":"IFERROR('MMA Rev-Exp Region 5'!$AS$27/'MMA Rev-Exp Region 5'!$AS$9, 0)","v":{"v":0,"d":"$0.00"}},{"$f":"IFERROR('MMA Rev-Exp Region 5'!$AT$27/'MMA Rev-Exp Region 5'!$AT$9, 0)","v":{"v":0,"d":"$0.00"}},{"$f":"IFERROR('MMA Rev-Exp Region 5'!$AU$27/'MMA Rev-Exp Region 5'!$AU$9, 0)","v":{"v":0,"d":"$0.00"}}]
["MMA",null,null,2016,"2016-12-31","Q4","2017-12-31","Region 5","Operating Expense","Medical Benefits Expense","Professional Services",3.1,"Primary Care FFS",{"$f":"IFERROR('MMA Rev-Exp Region 5'!$AK$29/'MMA Rev-Exp Region 5'!$AK$9, 0)","v":{"v":0,"d":"$0.00"}},{"$f":"IFERROR('MMA Rev-Exp Region 5'!$AL$29/'MMA Rev-Exp Region 5'!$AL$9, 0)","v":{"v":0,"d":"$0.00"}},{"$f":"IFERROR('MMA Rev-Exp Region 5'!$AM$29/'MMA Rev-Exp Region 5'!$AM$9, 0)","v":{"v":0,"d":"$0.00"}},{"$f":"IFERROR('MMA Rev-Exp Region 5'!$AN$29/'MMA Rev-Exp Region 5'!$AN$9, 0)","v":{"v":0,"d":"$0.00"}},{"$f":"IFERROR('MMA Rev-Exp Region 5'!$AO$29/'MMA Rev-Exp Region 5'!$AO$9, 0)","v":{"v":0,"d":"$0.00"}},{"$f":"IFERROR('MMA Rev-Exp Region 5'!$AP$29/'MMA Rev-Exp Region 5'!$AP$9, 0)","v":{"v":0,"d":"$0.00"}},{"$f":"IFERROR('MMA Rev-Exp Region 5'!$AQ$29/'MMA Rev-Exp Region 5'!$AQ$9, 0)","v":{"v":0,"d":"$0.00"}},{"$f":"IFERROR('MMA Rev-Exp Region 5'!$AR$29/'MMA Rev-Exp Region 5'!$AR$9, 0)","v":{"v":0,"d":"$0.00"}},{"$f":"IFERROR('MMA Rev-Exp Region 5'!$AS$29/'MMA Rev-Exp Region 5'!$AS$9, 0)","v":{"v":0,"d":"$0.00"}},{"$f":"IFERROR('MMA Rev-Exp Region 5'!$AT$29/'MMA Rev-Exp Region 5'!$AT$9, 0)","v":{"v":0,"d":"$0.00"}},{"$f":"IFERROR('MMA Rev-Exp Region 5'!$AU$29/'MMA Rev-Exp Region 5'!$AU$9, 0)","v":{"v":0,"d":"$0.00"}}]
["MMA",null,null,2016,"2016-12-31","Q4","2017-12-31","Region 5","Operating Expense","Medical Benefits Expense","Professional Services",3.2,"Specialty Care FFS",{"$f":"IFERROR('MMA Rev-Exp Region 5'!$AK$30/'MMA Rev-Exp Region 5'!$AK$9, 0)","v":{"v":0,"d":"$0.00"}},{"$f":"IFERROR('MMA Rev-Exp Region 5'!$AL$30/'MMA Rev-Exp Region 5'!$AL$9, 0)","v":{"v":0,"d":"$0.00"}},{"$f":"IFERROR('MMA Rev-Exp Region 5'!$AM$30/'MMA Rev-Exp Region 5'!$AM$9, 0)","v":{"v":0,"d":"$0.00"}},{"$f":"IFERROR('MMA Rev-Exp Region 5'!$AN$30/'MMA Rev-Exp Region 5'!$AN$9, 0)","v":{"v":0,"d":"$0.00"}},{"$f":"IFERROR('MMA Rev-Exp Region 5'!$AO$30/'MMA Rev-Exp Region 5'!$AO$9, 0)","v":{"v":0,"d":"$0.00"}},{"$f":"IFERROR('MMA Rev-Exp Region 5'!$AP$30/'MMA Rev-Exp Region 5'!$AP$9, 0)","v":{"v":0,"d":"$0.00"}},{"$f":"IFERROR('MMA Rev-Exp Region 5'!$AQ$30/'MMA Rev-Exp Region 5'!$AQ$9, 0)","v":{"v":0,"d":"$0.00"}},{"$f":"IFERROR('MMA Rev-Exp Region 5'!$AR$30/'MMA Rev-Exp Region 5'!$AR$9, 0)","v":{"v":0,"d":"$0.00"}},{"$f":"IFERROR('MMA Rev-Exp Region 5'!$AS$30/'MMA Rev-Exp Region 5'!$AS$9, 0)","v":{"v":0,"d":"$0.00"}},{"$f":"IFERROR('MMA Rev-Exp Region 5'!$AT$30/'MMA Rev-Exp Region 5'!$AT$9, 0)","v":{"v":0,"d":"$0.00"}},{"$f":"IFERROR('MMA Rev-Exp Region 5'!$AU$30/'MMA Rev-Exp Region 5'!$AU$9, 0)","v":{"v":0,"d":"$0.00"}}]
["MMA",null,null,2016,"2016-12-31","Q4","2017-12-31","Region 5","Operating Expense","Medical Benefits Expense","Professional Services",3.3,"Other Professional FFS",{"$f":"IFERROR('MMA Rev-Exp Region 5'!$AK$31/'MMA Rev-Exp Region 5'!$AK$9, 0)","v":{"v":0,"d":"$0.00"}},{"$f":"IFERROR('MMA Rev-Exp Region 5'!$AL$31/'MMA Rev-Exp Region 5'!$AL$9, 0)","v":{"v":0,"d":"$0.00"}},{"$f":"IFERROR('MMA Rev-Exp Region 5'!$AM$31/'MMA Rev-Exp Region 5'!$AM$9, 0)","v":{"v":0,"d":"$0.00"}},{"$f":"IFERROR('MMA Rev-Exp Region 5'!$AN$31/'MMA Rev-Exp Region 5'!$AN$9, 0)","v":{"v":0,"d":"$0.00"}},{"$f":"IFERROR('MMA Rev-Exp Region 5'!$AO$31/'MMA Rev-Exp Region 5'!$AO$9, 0)","v":{"v":0,"d":"$0.00"}},{"$f":"IFERROR('MMA Rev-Exp Region 5'!$AP$31/'MMA Rev-Exp Region 5'!$AP$9, 0)","v":{"v":0,"d":"$0.00"}},{"$f":"IFERROR('MMA Rev-Exp Region 5'!$AQ$31/'MMA Rev-Exp Region 5'!$AQ$9, 0)","v":{"v":0,"d":"$0.00"}},{"$f":"IFERROR('MMA Rev-Exp Region 5'!$AR$31/'MMA Rev-Exp Region 5'!$AR$9, 0)","v":{"v":0,"d":"$0.00"}},{"$f":"IFERROR('MMA Rev-Exp Region 5'!$AS$31/'MMA Rev-Exp Region 5'!$AS$9, 0)","v":{"v":0,"d":"$0.00"}},{"$f":"IFERROR('MMA Rev-Exp Region 5'!$AT$31/'MMA Rev-Exp Region 5'!$AT$9, 0)","v":{"v":0,"d":"$0.00"}},{"$f":"IFERROR('MMA Rev-Exp Region 5'!$AU$31/'MMA Rev-Exp Region 5'!$AU$9, 0)","v":{"v":0,"d":"$0.00"}}]
["MMA",null,null,2016,"2016-12-31","Q4","2017-12-31","Region 5","Operating Expense","Medical Benefits Expense","Professional Services","3.4","§ 1202 PCP Payments to providers",{"$f":"IFERROR('MMA Rev-Exp Region 5'!$AK$32/'MMA Rev-Exp Region 5'!$AK$9, 0)","v":{"v":0,"d":"$0.00"}},{"$f":"IFERROR('MMA Rev-Exp Region 5'!$AL$32/'MMA Rev-Exp Region 5'!$AL$9, 0)","v":{"v":0,"d":"$0.00"}},{"$f":"IFERROR('MMA Rev-Exp Region 5'!$AM$32/'MMA Rev-Exp Region 5'!$AM$9, 0)","v":{"v":0,"d":"$0.00"}},{"$f":"IFERROR('MMA Rev-Exp Region 5'!$AN$32/'MMA Rev-Exp Region 5'!$AN$9, 0)","v":{"v":0,"d":"$0.00"}},{"$f":"IFERROR('MMA Rev-Exp Region 5'!$AO$32/'MMA Rev-Exp Region 5'!$AO$9, 0)","v":{"v":0,"d":"$0.00"}},{"$f":"IFERROR('MMA Rev-Exp Region 5'!$AP$32/'MMA Rev-Exp Region 5'!$AP$9, 0)","v":{"v":0,"d":"$0.00"}},{"$f":"IFERROR('MMA Rev-Exp Region 5'!$AQ$32/'MMA Rev-Exp Region 5'!$AQ$9, 0)","v":{"v":0,"d":"$0.00"}},{"$f":"IFERROR('MMA Rev-Exp Region 5'!$AR$32/'MMA Rev-Exp Region 5'!$AR$9, 0)","v":{"v":0,"d":"$0.00"}},{"$f":"IFERROR('MMA Rev-Exp Region 5'!$AS$32/'MMA Rev-Exp Region 5'!$AS$9, 0)","v":{"v":0,"d":"$0.00"}},{"$f":"IFERROR('MMA Rev-Exp Region 5'!$AT$32/'MMA Rev-Exp Region 5'!$AT$9, 0)","v":{"v":0,"d":"$0.00"}},{"$f":"IFERROR('MMA Rev-Exp Region 5'!$AU$32/'MMA Rev-Exp Region 5'!$AU$9, 0)","v":{"v":0,"d":"$0.00"}}]
["MMA",null,null,2016,"2016-12-31","Q4","2017-12-31","Region 5","Operating Expense","Medical Benefits Expense","Professional Services","3.5","Subcapitated Professional Services",{"$f":"IFERROR('MMA Rev-Exp Region 5'!$AK$33/'MMA Rev-Exp Region 5'!$AK$9, 0)","v":{"v":0,"d":"$0.00"}},{"$f":"IFERROR('MMA Rev-Exp Region 5'!$AL$33/'MMA Rev-Exp Region 5'!$AL$9, 0)","v":{"v":0,"d":"$0.00"}},{"$f":"IFERROR('MMA Rev-Exp Region 5'!$AM$33/'MMA Rev-Exp Region 5'!$AM$9, 0)","v":{"v":0,"d":"$0.00"}},{"$f":"IFERROR('MMA Rev-Exp Region 5'!$AN$33/'MMA Rev-Exp Region 5'!$AN$9, 0)","v":{"v":0,"d":"$0.00"}},{"$f":"IFERROR('MMA Rev-Exp Region 5'!$AO$33/'MMA Rev-Exp Region 5'!$AO$9, 0)","v":{"v":0,"d":"$0.00"}},{"$f":"IFERROR('MMA Rev-Exp Region 5'!$AP$33/'MMA Rev-Exp Region 5'!$AP$9, 0)","v":{"v":0,"d":"$0.00"}},{"$f":"IFERROR('MMA Rev-Exp Region 5'!$AQ$33/'MMA Rev-Exp Region 5'!$AQ$9, 0)","v":{"v":0,"d":"$0.00"}},{"$f":"IFERROR('MMA Rev-Exp Region 5'!$AR$33/'MMA Rev-Exp Region 5'!$AR$9, 0)","v":{"v":0,"d":"$0.00"}},{"$f":"IFERROR('MMA Rev-Exp Region 5'!$AS$33/'MMA Rev-Exp Region 5'!$AS$9, 0)","v":{"v":0,"d":"$0.00"}},{"$f":"IFERROR('MMA Rev-Exp Region 5'!$AT$33/'MMA Rev-Exp Region 5'!$AT$9, 0)","v":{"v":0,"d":"$0.00"}},{"$f":"IFERROR('MMA Rev-Exp Region 5'!$AU$33/'MMA Rev-Exp Region 5'!$AU$9, 0)","v":{"v":0,"d":"$0.00"}}]
["MMA",null,null,2016,"2016-12-31","Q4","2017-12-31","Region 5","Operating Expense","Medical Benefits Expense","Professional Services","3.6","Ending IBNP for Professional Services",{"$f":"IFERROR('MMA Rev-Exp Region 5'!$AK$34/'MMA Rev-Exp Region 5'!$AK$9, 0)","v":{"v":0,"d":"$0.00"}},{"$f":"IFERROR('MMA Rev-Exp Region 5'!$AL$34/'MMA Rev-Exp Region 5'!$AL$9, 0)","v":{"v":0,"d":"$0.00"}},{"$f":"IFERROR('MMA Rev-Exp Region 5'!$AM$34/'MMA Rev-Exp Region 5'!$AM$9, 0)","v":{"v":0,"d":"$0.00"}},{"$f":"IFERROR('MMA Rev-Exp Region 5'!$AN$34/'MMA Rev-Exp Region 5'!$AN$9, 0)","v":{"v":0,"d":"$0.00"}},{"$f":"IFERROR('MMA Rev-Exp Region 5'!$AO$34/'MMA Rev-Exp Region 5'!$AO$9, 0)","v":{"v":0,"d":"$0.00"}},{"$f":"IFERROR('MMA Rev-Exp Region 5'!$AP$34/'MMA Rev-Exp Region 5'!$AP$9, 0)","v":{"v":0,"d":"$0.00"}},{"$f":"IFERROR('MMA Rev-Exp Region 5'!$AQ$34/'MMA Rev-Exp Region 5'!$AQ$9, 0)","v":{"v":0,"d":"$0.00"}},{"$f":"IFERROR('MMA Rev-Exp Region 5'!$AR$34/'MMA Rev-Exp Region 5'!$AR$9, 0)","v":{"v":0,"d":"$0.00"}},{"$f":"IFERROR('MMA Rev-Exp Region 5'!$AS$34/'MMA Rev-Exp Region 5'!$AS$9, 0)","v":{"v":0,"d":"$0.00"}},{"$f":"IFERROR('MMA Rev-Exp Region 5'!$AT$34/'MMA Rev-Exp Region 5'!$AT$9, 0)","v":{"v":0,"d":"$0.00"}},{"$f":"IFERROR('MMA Rev-Exp Region 5'!$AU$34/'MMA Rev-Exp Region 5'!$AU$9, 0)","v":{"v":0,"d":"$0.00"}}]
["MMA",null,null,2016,"2016-12-31","Q4","2017-12-31","Region 5","Operating Expense","Medical Benefits Expense","Professional Services","3.7","Professional Services Settlements",{"$f":"IFERROR('MMA Rev-Exp Region 5'!$AK$35/'MMA Rev-Exp Region 5'!$AK$9, 0)","v":{"v":0,"d":"$0.00"}},{"$f":"IFERROR('MMA Rev-Exp Region 5'!$AL$35/'MMA Rev-Exp Region 5'!$AL$9, 0)","v":{"v":0,"d":"$0.00"}},{"$f":"IFERROR('MMA Rev-Exp Region 5'!$AM$35/'MMA Rev-Exp Region 5'!$AM$9, 0)","v":{"v":0,"d":"$0.00"}},{"$f":"IFERROR('MMA Rev-Exp Region 5'!$AN$35/'MMA Rev-Exp Region 5'!$AN$9, 0)","v":{"v":0,"d":"$0.00"}},{"$f":"IFERROR('MMA Rev-Exp Region 5'!$AO$35/'MMA Rev-Exp Region 5'!$AO$9, 0)","v":{"v":0,"d":"$0.00"}},{"$f":"IFERROR('MMA Rev-Exp Region 5'!$AP$35/'MMA Rev-Exp Region 5'!$AP$9, 0)","v":{"v":0,"d":"$0.00"}},{"$f":"IFERROR('MMA Rev-Exp Region 5'!$AQ$35/'MMA Rev-Exp Region 5'!$AQ$9, 0)","v":{"v":0,"d":"$0.00"}},{"$f":"IFERROR('MMA Rev-Exp Region 5'!$AR$35/'MMA Rev-Exp Region 5'!$AR$9, 0)","v":{"v":0,"d":"$0.00"}},{"$f":"IFERROR('MMA Rev-Exp Region 5'!$AS$35/'MMA Rev-Exp Region 5'!$AS$9, 0)","v":{"v":0,"d":"$0.00"}},{"$f":"IFERROR('MMA Rev-Exp Region 5'!$AT$35/'MMA Rev-Exp Region 5'!$AT$9, 0)","v":{"v":0,"d":"$0.00"}},{"$f":"IFERROR('MMA Rev-Exp Region 5'!$AU$35/'MMA Rev-Exp Region 5'!$AU$9, 0)","v":{"v":0,"d":"$0.00"}}]
["MMA",null,null,2016,"2016-12-31","Q4","2017-12-31","Region 5","Operating Expense","Medical Benefits Expense","Maternity Services","4.1.1","Maternity Services",{"$f":"IFERROR('MMA Rev-Exp Region 5'!$AK$37/'MMA Rev-Exp Region 5'!$AK$9, 0)","v":{"v":0,"d":"$0.00"}},{"$f":"IFERROR('MMA Rev-Exp Region 5'!$AL$37/'MMA Rev-Exp Region 5'!$AL$9, 0)","v":{"v":0,"d":"$0.00"}},{"$f":"IFERROR('MMA Rev-Exp Region 5'!$AM$37/'MMA Rev-Exp Region 5'!$AM$9, 0)","v":{"v":0,"d":"$0.00"}},{"$f":"IFERROR('MMA Rev-Exp Region 5'!$AN$37/'MMA Rev-Exp Region 5'!$AN$9, 0)","v":{"v":0,"d":"$0.00"}},{"$f":"IFERROR('MMA Rev-Exp Region 5'!$AO$37/'MMA Rev-Exp Region 5'!$AO$9, 0)","v":{"v":0,"d":"$0.00"}},{"$f":"IFERROR('MMA Rev-Exp Region 5'!$AP$37/'MMA Rev-Exp Region 5'!$AP$9, 0)","v":{"v":0,"d":"$0.00"}},{"$f":"IFERROR('MMA Rev-Exp Region 5'!$AQ$37/'MMA Rev-Exp Region 5'!$AQ$9, 0)","v":{"v":0,"d":"$0.00"}},{"$f":"IFERROR('MMA Rev-Exp Region 5'!$AR$37/'MMA Rev-Exp Region 5'!$AR$9, 0)","v":{"v":0,"d":"$0.00"}},{"$f":"IFERROR('MMA Rev-Exp Region 5'!$AS$37/'MMA Rev-Exp Region 5'!$AS$9, 0)","v":{"v":0,"d":"$0.00"}},{"$f":"IFERROR('MMA Rev-Exp Region 5'!$AT$37/'MMA Rev-Exp Region 5'!$AT$9, 0)","v":{"v":0,"d":"$0.00"}},{"$f":"IFERROR('MMA Rev-Exp Region 5'!$AU$37/'MMA Rev-Exp Region 5'!$AU$9, 0)","v":{"v":0,"d":"$0.00"}}]
["MMA",null,null,2016,"2016-12-31","Q4","2017-12-31","Region 5","Operating Expense","Medical Benefits Expense","Maternity Services","4.2.1","Ending IBNP for Maternity Services",{"$f":"IFERROR('MMA Rev-Exp Region 5'!$AK$38/'MMA Rev-Exp Region 5'!$AK$9, 0)","v":{"v":0,"d":"$0.00"}},{"$f":"IFERROR('MMA Rev-Exp Region 5'!$AL$38/'MMA Rev-Exp Region 5'!$AL$9, 0)","v":{"v":0,"d":"$0.00"}},{"$f":"IFERROR('MMA Rev-Exp Region 5'!$AM$38/'MMA Rev-Exp Region 5'!$AM$9, 0)","v":{"v":0,"d":"$0.00"}},{"$f":"IFERROR('MMA Rev-Exp Region 5'!$AN$38/'MMA Rev-Exp Region 5'!$AN$9, 0)","v":{"v":0,"d":"$0.00"}},{"$f":"IFERROR('MMA Rev-Exp Region 5'!$AO$38/'MMA Rev-Exp Region 5'!$AO$9, 0)","v":{"v":0,"d":"$0.00"}},{"$f":"IFERROR('MMA Rev-Exp Region 5'!$AP$38/'MMA Rev-Exp Region 5'!$AP$9, 0)","v":{"v":0,"d":"$0.00"}},{"$f":"IFERROR('MMA Rev-Exp Region 5'!$AQ$38/'MMA Rev-Exp Region 5'!$AQ$9, 0)","v":{"v":0,"d":"$0.00"}},{"$f":"IFERROR('MMA Rev-Exp Region 5'!$AR$38/'MMA Rev-Exp Region 5'!$AR$9, 0)","v":{"v":0,"d":"$0.00"}},{"$f":"IFERROR('MMA Rev-Exp Region 5'!$AS$38/'MMA Rev-Exp Region 5'!$AS$9, 0)","v":{"v":0,"d":"$0.00"}},{"$f":"IFERROR('MMA Rev-Exp Region 5'!$AT$38/'MMA Rev-Exp Region 5'!$AT$9, 0)","v":{"v":0,"d":"$0.00"}},{"$f":"IFERROR('MMA Rev-Exp Region 5'!$AU$38/'MMA Rev-Exp Region 5'!$AU$9, 0)","v":{"v":0,"d":"$0.00"}}]
["MMA",null,null,2016,"2016-12-31","Q4","2017-12-31","Region 5","Operating Expense","Medical Benefits Expense","Maternity Services","4.3.1","Maternity Settlements",{"$f":"IFERROR('MMA Rev-Exp Region 5'!$AK$39/'MMA Rev-Exp Region 5'!$AK$9, 0)","v":{"v":0,"d":"$0.00"}},{"$f":"IFERROR('MMA Rev-Exp Region 5'!$AL$39/'MMA Rev-Exp Region 5'!$AL$9, 0)","v":{"v":0,"d":"$0.00"}},{"$f":"IFERROR('MMA Rev-Exp Region 5'!$AM$39/'MMA Rev-Exp Region 5'!$AM$9, 0)","v":{"v":0,"d":"$0.00"}},{"$f":"IFERROR('MMA Rev-Exp Region 5'!$AN$39/'MMA Rev-Exp Region 5'!$AN$9, 0)","v":{"v":0,"d":"$0.00"}},{"$f":"IFERROR('MMA Rev-Exp Region 5'!$AO$39/'MMA Rev-Exp Region 5'!$AO$9, 0)","v":{"v":0,"d":"$0.00"}},{"$f":"IFERROR('MMA Rev-Exp Region 5'!$AP$39/'MMA Rev-Exp Region 5'!$AP$9, 0)","v":{"v":0,"d":"$0.00"}},{"$f":"IFERROR('MMA Rev-Exp Region 5'!$AQ$39/'MMA Rev-Exp Region 5'!$AQ$9, 0)","v":{"v":0,"d":"$0.00"}},{"$f":"IFERROR('MMA Rev-Exp Region 5'!$AR$39/'MMA Rev-Exp Region 5'!$AR$9, 0)","v":{"v":0,"d":"$0.00"}},{"$f":"IFERROR('MMA Rev-Exp Region 5'!$AS$39/'MMA Rev-Exp Region 5'!$AS$9, 0)","v":{"v":0,"d":"$0.00"}},{"$f":"IFERROR('MMA Rev-Exp Region 5'!$AT$39/'MMA Rev-Exp Region 5'!$AT$9, 0)","v":{"v":0,"d":"$0.00"}},{"$f":"IFERROR('MMA Rev-Exp Region 5'!$AU$39/'MMA Rev-Exp Region 5'!$AU$9, 0)","v":{"v":0,"d":"$0.00"}}]
["MMA",null,null,2016,"2016-12-31","Q4","2017-12-31","Region 5","Operating Expense","Medical Benefits Expense","Mental Health Services",5.1,"Mental Health & Substance Abuse FFS",{"$f":"IFERROR('MMA Rev-Exp Region 5'!$AK$41/'MMA Rev-Exp Region 5'!$AK$9, 0)","v":{"v":0,"d":"$0.00"}},{"$f":"IFERROR('MMA Rev-Exp Region 5'!$AL$41/'MMA Rev-Exp Region 5'!$AL$9, 0)","v":{"v":0,"d":"$0.00"}},{"$f":"IFERROR('MMA Rev-Exp Region 5'!$AM$41/'MMA Rev-Exp Region 5'!$AM$9, 0)","v":{"v":0,"d":"$0.00"}},{"$f":"IFERROR('MMA Rev-Exp Region 5'!$AN$41/'MMA Rev-Exp Region 5'!$AN$9, 0)","v":{"v":0,"d":"$0.00"}},{"$f":"IFERROR('MMA Rev-Exp Region 5'!$AO$41/'MMA Rev-Exp Region 5'!$AO$9, 0)","v":{"v":0,"d":"$0.00"}},{"$f":"IFERROR('MMA Rev-Exp Region 5'!$AP$41/'MMA Rev-Exp Region 5'!$AP$9, 0)","v":{"v":0,"d":"$0.00"}},{"$f":"IFERROR('MMA Rev-Exp Region 5'!$AQ$41/'MMA Rev-Exp Region 5'!$AQ$9, 0)","v":{"v":0,"d":"$0.00"}},{"$f":"IFERROR('MMA Rev-Exp Region 5'!$AR$41/'MMA Rev-Exp Region 5'!$AR$9, 0)","v":{"v":0,"d":"$0.00"}},{"$f":"IFERROR('MMA Rev-Exp Region 5'!$AS$41/'MMA Rev-Exp Region 5'!$AS$9, 0)","v":{"v":0,"d":"$0.00"}},{"$f":"IFERROR('MMA Rev-Exp Region 5'!$AT$41/'MMA Rev-Exp Region 5'!$AT$9, 0)","v":{"v":0,"d":"$0.00"}},{"$f":"IFERROR('MMA Rev-Exp Region 5'!$AU$41/'MMA Rev-Exp Region 5'!$AU$9, 0)","v":{"v":0,"d":"$0.00"}}]
["MMA",null,null,2016,"2016-12-31","Q4","2017-12-31","Region 5","Operating Expense","Medical Benefits Expense","Mental Health Services",5.2,"Mental Health & Substance Abuse Subcapitation",{"$f":"IFERROR('MMA Rev-Exp Region 5'!$AK$42/'MMA Rev-Exp Region 5'!$AK$9, 0)","v":{"v":0,"d":"$0.00"}},{"$f":"IFERROR('MMA Rev-Exp Region 5'!$AL$42/'MMA Rev-Exp Region 5'!$AL$9, 0)","v":{"v":0,"d":"$0.00"}},{"$f":"IFERROR('MMA Rev-Exp Region 5'!$AM$42/'MMA Rev-Exp Region 5'!$AM$9, 0)","v":{"v":0,"d":"$0.00"}},{"$f":"IFERROR('MMA Rev-Exp Region 5'!$AN$42/'MMA Rev-Exp Region 5'!$AN$9, 0)","v":{"v":0,"d":"$0.00"}},{"$f":"IFERROR('MMA Rev-Exp Region 5'!$AO$42/'MMA Rev-Exp Region 5'!$AO$9, 0)","v":{"v":0,"d":"$0.00"}},{"$f":"IFERROR('MMA Rev-Exp Region 5'!$AP$42/'MMA Rev-Exp Region 5'!$AP$9, 0)","v":{"v":0,"d":"$0.00"}},{"$f":"IFERROR('MMA Rev-Exp Region 5'!$AQ$42/'MMA Rev-Exp Region 5'!$AQ$9, 0)","v":{"v":0,"d":"$0.00"}},{"$f":"IFERROR('MMA Rev-Exp Region 5'!$AR$42/'MMA Rev-Exp Region 5'!$AR$9, 0)","v":{"v":0,"d":"$0.00"}},{"$f":"IFERROR('MMA Rev-Exp Region 5'!$AS$42/'MMA Rev-Exp Region 5'!$AS$9, 0)","v":{"v":0,"d":"$0.00"}},{"$f":"IFERROR('MMA Rev-Exp Region 5'!$AT$42/'MMA Rev-Exp Region 5'!$AT$9, 0)","v":{"v":0,"d":"$0.00"}},{"$f":"IFERROR('MMA Rev-Exp Region 5'!$AU$42/'MMA Rev-Exp Region 5'!$AU$9, 0)","v":{"v":0,"d":"$0.00"}}]
["MMA",null,null,2016,"2016-12-31","Q4","2017-12-31","Region 5","Operating Expense","Medical Benefits Expense","Mental Health Services",5.3,"Ending IBNP for Mental Health & Substance Abuse",{"$f":"IFERROR('MMA Rev-Exp Region 5'!$AK$43/'MMA Rev-Exp Region 5'!$AK$9, 0)","v":{"v":0,"d":"$0.00"}},{"$f":"IFERROR('MMA Rev-Exp Region 5'!$AL$43/'MMA Rev-Exp Region 5'!$AL$9, 0)","v":{"v":0,"d":"$0.00"}},{"$f":"IFERROR('MMA Rev-Exp Region 5'!$AM$43/'MMA Rev-Exp Region 5'!$AM$9, 0)","v":{"v":0,"d":"$0.00"}},{"$f":"IFERROR('MMA Rev-Exp Region 5'!$AN$43/'MMA Rev-Exp Region 5'!$AN$9, 0)","v":{"v":0,"d":"$0.00"}},{"$f":"IFERROR('MMA Rev-Exp Region 5'!$AO$43/'MMA Rev-Exp Region 5'!$AO$9, 0)","v":{"v":0,"d":"$0.00"}},{"$f":"IFERROR('MMA Rev-Exp Region 5'!$AP$43/'MMA Rev-Exp Region 5'!$AP$9, 0)","v":{"v":0,"d":"$0.00"}},{"$f":"IFERROR('MMA Rev-Exp Region 5'!$AQ$43/'MMA Rev-Exp Region 5'!$AQ$9, 0)","v":{"v":0,"d":"$0.00"}},{"$f":"IFERROR('MMA Rev-Exp Region 5'!$AR$43/'MMA Rev-Exp Region 5'!$AR$9, 0)","v":{"v":0,"d":"$0.00"}},{"$f":"IFERROR('MMA Rev-Exp Region 5'!$AS$43/'MMA Rev-Exp Region 5'!$AS$9, 0)","v":{"v":0,"d":"$0.00"}},{"$f":"IFERROR('MMA Rev-Exp Region 5'!$AT$43/'MMA Rev-Exp Region 5'!$AT$9, 0)","v":{"v":0,"d":"$0.00"}},{"$f":"IFERROR('MMA Rev-Exp Region 5'!$AU$43/'MMA Rev-Exp Region 5'!$AU$9, 0)","v":{"v":0,"d":"$0.00"}}]
["MMA",null,null,2016,"2016-12-31","Q4","2017-12-31","Region 5","Operating Expense","Medical Benefits Expense","Mental Health Services","5.4","Mental Health Settlements",{"$f":"IFERROR('MMA Rev-Exp Region 5'!$AK$44/'MMA Rev-Exp Region 5'!$AK$9, 0)","v":{"v":0,"d":"$0.00"}},{"$f":"IFERROR('MMA Rev-Exp Region 5'!$AL$44/'MMA Rev-Exp Region 5'!$AL$9, 0)","v":{"v":0,"d":"$0.00"}},{"$f":"IFERROR('MMA Rev-Exp Region 5'!$AM$44/'MMA Rev-Exp Region 5'!$AM$9, 0)","v":{"v":0,"d":"$0.00"}},{"$f":"IFERROR('MMA Rev-Exp Region 5'!$AN$44/'MMA Rev-Exp Region 5'!$AN$9, 0)","v":{"v":0,"d":"$0.00"}},{"$f":"IFERROR('MMA Rev-Exp Region 5'!$AO$44/'MMA Rev-Exp Region 5'!$AO$9, 0)","v":{"v":0,"d":"$0.00"}},{"$f":"IFERROR('MMA Rev-Exp Region 5'!$AP$44/'MMA Rev-Exp Region 5'!$AP$9, 0)","v":{"v":0,"d":"$0.00"}},{"$f":"IFERROR('MMA Rev-Exp Region 5'!$AQ$44/'MMA Rev-Exp Region 5'!$AQ$9, 0)","v":{"v":0,"d":"$0.00"}},{"$f":"IFERROR('MMA Rev-Exp Region 5'!$AR$44/'MMA Rev-Exp Region 5'!$AR$9, 0)","v":{"v":0,"d":"$0.00"}},{"$f":"IFERROR('MMA Rev-Exp Region 5'!$AS$44/'MMA Rev-Exp Region 5'!$AS$9, 0)","v":{"v":0,"d":"$0.00"}},{"$f":"IFERROR('MMA Rev-Exp Region 5'!$AT$44/'MMA Rev-Exp Region 5'!$AT$9, 0)","v":{"v":0,"d":"$0.00"}},{"$f":"IFERROR('MMA Rev-Exp Region 5'!$AU$44/'MMA Rev-Exp Region 5'!$AU$9, 0)","v":{"v":0,"d":"$0.00"}}]
["MMA",null,null,2016,"2016-12-31","Q4","2017-12-31","Region 5","Operating Expense","Medical Benefits Expense","Dental Services",6.1,"Dental FFS",{"$f":"IFERROR('MMA Rev-Exp Region 5'!$AK$46/'MMA Rev-Exp Region 5'!$AK$9, 0)","v":{"v":0,"d":"$0.00"}},{"$f":"IFERROR('MMA Rev-Exp Region 5'!$AL$46/'MMA Rev-Exp Region 5'!$AL$9, 0)","v":{"v":0,"d":"$0.00"}},{"$f":"IFERROR('MMA Rev-Exp Region 5'!$AM$46/'MMA Rev-Exp Region 5'!$AM$9, 0)","v":{"v":0,"d":"$0.00"}},{"$f":"IFERROR('MMA Rev-Exp Region 5'!$AN$46/'MMA Rev-Exp Region 5'!$AN$9, 0)","v":{"v":0,"d":"$0.00"}},{"$f":"IFERROR('MMA Rev-Exp Region 5'!$AO$46/'MMA Rev-Exp Region 5'!$AO$9, 0)","v":{"v":0,"d":"$0.00"}},{"$f":"IFERROR('MMA Rev-Exp Region 5'!$AP$46/'MMA Rev-Exp Region 5'!$AP$9, 0)","v":{"v":0,"d":"$0.00"}},{"$f":"IFERROR('MMA Rev-Exp Region 5'!$AQ$46/'MMA Rev-Exp Region 5'!$AQ$9, 0)","v":{"v":0,"d":"$0.00"}},{"$f":"IFERROR('MMA Rev-Exp Region 5'!$AR$46/'MMA Rev-Exp Region 5'!$AR$9, 0)","v":{"v":0,"d":"$0.00"}},{"$f":"IFERROR('MMA Rev-Exp Region 5'!$AS$46/'MMA Rev-Exp Region 5'!$AS$9, 0)","v":{"v":0,"d":"$0.00"}},{"$f":"IFERROR('MMA Rev-Exp Region 5'!$AT$46/'MMA Rev-Exp Region 5'!$AT$9, 0)","v":{"v":0,"d":"$0.00"}},{"$f":"IFERROR('MMA Rev-Exp Region 5'!$AU$46/'MMA Rev-Exp Region 5'!$AU$9, 0)","v":{"v":0,"d":"$0.00"}}]
["MMA",null,null,2016,"2016-12-31","Q4","2017-12-31","Region 5","Operating Expense","Medical Benefits Expense","Dental Services",6.2,"Dental Subcapitation",{"$f":"IFERROR('MMA Rev-Exp Region 5'!$AK$47/'MMA Rev-Exp Region 5'!$AK$9, 0)","v":{"v":0,"d":"$0.00"}},{"$f":"IFERROR('MMA Rev-Exp Region 5'!$AL$47/'MMA Rev-Exp Region 5'!$AL$9, 0)","v":{"v":0,"d":"$0.00"}},{"$f":"IFERROR('MMA Rev-Exp Region 5'!$AM$47/'MMA Rev-Exp Region 5'!$AM$9, 0)","v":{"v":0,"d":"$0.00"}},{"$f":"IFERROR('MMA Rev-Exp Region 5'!$AN$47/'MMA Rev-Exp Region 5'!$AN$9, 0)","v":{"v":0,"d":"$0.00"}},{"$f":"IFERROR('MMA Rev-Exp Region 5'!$AO$47/'MMA Rev-Exp Region 5'!$AO$9, 0)","v":{"v":0,"d":"$0.00"}},{"$f":"IFERROR('MMA Rev-Exp Region 5'!$AP$47/'MMA Rev-Exp Region 5'!$AP$9, 0)","v":{"v":0,"d":"$0.00"}},{"$f":"IFERROR('MMA Rev-Exp Region 5'!$AQ$47/'MMA Rev-Exp Region 5'!$AQ$9, 0)","v":{"v":0,"d":"$0.00"}},{"$f":"IFERROR('MMA Rev-Exp Region 5'!$AR$47/'MMA Rev-Exp Region 5'!$AR$9, 0)","v":{"v":0,"d":"$0.00"}},{"$f":"IFERROR('MMA Rev-Exp Region 5'!$AS$47/'MMA Rev-Exp Region 5'!$AS$9, 0)","v":{"v":0,"d":"$0.00"}},{"$f":"IFERROR('MMA Rev-Exp Region 5'!$AT$47/'MMA Rev-Exp Region 5'!$AT$9, 0)","v":{"v":0,"d":"$0.00"}},{"$f":"IFERROR('MMA Rev-Exp Region 5'!$AU$47/'MMA Rev-Exp Region 5'!$AU$9, 0)","v":{"v":0,"d":"$0.00"}}]
["MMA",null,null,2016,"2016-12-31","Q4","2017-12-31","Region 5","Operating Expense","Medical Benefits Expense","Dental Services",6.3,"Ending IBNP for Dental Services",{"$f":"IFERROR('MMA Rev-Exp Region 5'!$AK$48/'MMA Rev-Exp Region 5'!$AK$9, 0)","v":{"v":0,"d":"$0.00"}},{"$f":"IFERROR('MMA Rev-Exp Region 5'!$AL$48/'MMA Rev-Exp Region 5'!$AL$9, 0)","v":{"v":0,"d":"$0.00"}},{"$f":"IFERROR('MMA Rev-Exp Region 5'!$AM$48/'MMA Rev-Exp Region 5'!$AM$9, 0)","v":{"v":0,"d":"$0.00"}},{"$f":"IFERROR('MMA Rev-Exp Region 5'!$AN$48/'MMA Rev-Exp Region 5'!$AN$9, 0)","v":{"v":0,"d":"$0.00"}},{"$f":"IFERROR('MMA Rev-Exp Region 5'!$AO$48/'MMA Rev-Exp Region 5'!$AO$9, 0)","v":{"v":0,"d":"$0.00"}},{"$f":"IFERROR('MMA Rev-Exp Region 5'!$AP$48/'MMA Rev-Exp Region 5'!$AP$9, 0)","v":{"v":0,"d":"$0.00"}},{"$f":"IFERROR('MMA Rev-Exp Region 5'!$AQ$48/'MMA Rev-Exp Region 5'!$AQ$9, 0)","v":{"v":0,"d":"$0.00"}},{"$f":"IFERROR('MMA Rev-Exp Region 5'!$AR$48/'MMA Rev-Exp Region 5'!$AR$9, 0)","v":{"v":0,"d":"$0.00"}},{"$f":"IFERROR('MMA Rev-Exp Region 5'!$AS$48/'MMA Rev-Exp Region 5'!$AS$9, 0)","v":{"v":0,"d":"$0.00"}},{"$f":"IFERROR('MMA Rev-Exp Region 5'!$AT$48/'MMA Rev-Exp Region 5'!$AT$9, 0)","v":{"v":0,"d":"$0.00"}},{"$f":"IFERROR('MMA Rev-Exp Region 5'!$AU$48/'MMA Rev-Exp Region 5'!$AU$9, 0)","v":{"v":0,"d":"$0.00"}}]
["MMA",null,null,2016,"2016-12-31","Q4","2017-12-31","Region 5","Operating Expense","Medical Benefits Expense","Dental Services","6.4","Dental Settlements",{"$f":"IFERROR('MMA Rev-Exp Region 5'!$AK$49/'MMA Rev-Exp Region 5'!$AK$9, 0)","v":{"v":0,"d":"$0.00"}},{"$f":"IFERROR('MMA Rev-Exp Region 5'!$AL$49/'MMA Rev-Exp Region 5'!$AL$9, 0)","v":{"v":0,"d":"$0.00"}},{"$f":"IFERROR('MMA Rev-Exp Region 5'!$AM$49/'MMA Rev-Exp Region 5'!$AM$9, 0)","v":{"v":0,"d":"$0.00"}},{"$f":"IFERROR('MMA Rev-Exp Region 5'!$AN$49/'MMA Rev-Exp Region 5'!$AN$9, 0)","v":{"v":0,"d":"$0.00"}},{"$f":"IFERROR('MMA Rev-Exp Region 5'!$AO$49/'MMA Rev-Exp Region 5'!$AO$9, 0)","v":{"v":0,"d":"$0.00"}},{"$f":"IFERROR('MMA Rev-Exp Region 5'!$AP$49/'MMA Rev-Exp Region 5'!$AP$9, 0)","v":{"v":0,"d":"$0.00"}},{"$f":"IFERROR('MMA Rev-Exp Region 5'!$AQ$49/'MMA Rev-Exp Region 5'!$AQ$9, 0)","v":{"v":0,"d":"$0.00"}},{"$f":"IFERROR('MMA Rev-Exp Region 5'!$AR$49/'MMA Rev-Exp Region 5'!$AR$9, 0)","v":{"v":0,"d":"$0.00"}},{"$f":"IFERROR('MMA Rev-Exp Region 5'!$AS$49/'MMA Rev-Exp Region 5'!$AS$9, 0)","v":{"v":0,"d":"$0.00"}},{"$f":"IFERROR('MMA Rev-Exp Region 5'!$AT$49/'MMA Rev-Exp Region 5'!$AT$9, 0)","v":{"v":0,"d":"$0.00"}},{"$f":"IFERROR('MMA Rev-Exp Region 5'!$AU$49/'MMA Rev-Exp Region 5'!$AU$9, 0)","v":{"v":0,"d":"$0.00"}}]
["MMA",null,null,2016,"2016-12-31","Q4","2017-12-31","Region 5","Operating Expense","Medical Benefits Expense","Transportation Services",7.1,"Transportation FFS",{"$f":"IFERROR('MMA Rev-Exp Region 5'!$AK$51/'MMA Rev-Exp Region 5'!$AK$9, 0)","v":{"v":0,"d":"$0.00"}},{"$f":"IFERROR('MMA Rev-Exp Region 5'!$AL$51/'MMA Rev-Exp Region 5'!$AL$9, 0)","v":{"v":0,"d":"$0.00"}},{"$f":"IFERROR('MMA Rev-Exp Region 5'!$AM$51/'MMA Rev-Exp Region 5'!$AM$9, 0)","v":{"v":0,"d":"$0.00"}},{"$f":"IFERROR('MMA Rev-Exp Region 5'!$AN$51/'MMA Rev-Exp Region 5'!$AN$9, 0)","v":{"v":0,"d":"$0.00"}},{"$f":"IFERROR('MMA Rev-Exp Region 5'!$AO$51/'MMA Rev-Exp Region 5'!$AO$9, 0)","v":{"v":0,"d":"$0.00"}},{"$f":"IFERROR('MMA Rev-Exp Region 5'!$AP$51/'MMA Rev-Exp Region 5'!$AP$9, 0)","v":{"v":0,"d":"$0.00"}},{"$f":"IFERROR('MMA Rev-Exp Region 5'!$AQ$51/'MMA Rev-Exp Region 5'!$AQ$9, 0)","v":{"v":0,"d":"$0.00"}},{"$f":"IFERROR('MMA Rev-Exp Region 5'!$AR$51/'MMA Rev-Exp Region 5'!$AR$9, 0)","v":{"v":0,"d":"$0.00"}},{"$f":"IFERROR('MMA Rev-Exp Region 5'!$AS$51/'MMA Rev-Exp Region 5'!$AS$9, 0)","v":{"v":0,"d":"$0.00"}},{"$f":"IFERROR('MMA Rev-Exp Region 5'!$AT$51/'MMA Rev-Exp Region 5'!$AT$9, 0)","v":{"v":0,"d":"$0.00"}},{"$f":"IFERROR('MMA Rev-Exp Region 5'!$AU$51/'MMA Rev-Exp Region 5'!$AU$9, 0)","v":{"v":0,"d":"$0.00"}}]
["MMA",null,null,2016,"2016-12-31","Q4","2017-12-31","Region 5","Operating Expense","Medical Benefits Expense","Transportation Services",7.2,"Transportation Subcapitation",{"$f":"IFERROR('MMA Rev-Exp Region 5'!$AK$52/'MMA Rev-Exp Region 5'!$AK$9, 0)","v":{"v":0,"d":"$0.00"}},{"$f":"IFERROR('MMA Rev-Exp Region 5'!$AL$52/'MMA Rev-Exp Region 5'!$AL$9, 0)","v":{"v":0,"d":"$0.00"}},{"$f":"IFERROR('MMA Rev-Exp Region 5'!$AM$52/'MMA Rev-Exp Region 5'!$AM$9, 0)","v":{"v":0,"d":"$0.00"}},{"$f":"IFERROR('MMA Rev-Exp Region 5'!$AN$52/'MMA Rev-Exp Region 5'!$AN$9, 0)","v":{"v":0,"d":"$0.00"}},{"$f":"IFERROR('MMA Rev-Exp Region 5'!$AO$52/'MMA Rev-Exp Region 5'!$AO$9, 0)","v":{"v":0,"d":"$0.00"}},{"$f":"IFERROR('MMA Rev-Exp Region 5'!$AP$52/'MMA Rev-Exp Region 5'!$AP$9, 0)","v":{"v":0,"d":"$0.00"}},{"$f":"IFERROR('MMA Rev-Exp Region 5'!$AQ$52/'MMA Rev-Exp Region 5'!$AQ$9, 0)","v":{"v":0,"d":"$0.00"}},{"$f":"IFERROR('MMA Rev-Exp Region 5'!$AR$52/'MMA Rev-Exp Region 5'!$AR$9, 0)","v":{"v":0,"d":"$0.00"}},{"$f":"IFERROR('MMA Rev-Exp Region 5'!$AS$52/'MMA Rev-Exp Region 5'!$AS$9, 0)","v":{"v":0,"d":"$0.00"}},{"$f":"IFERROR('MMA Rev-Exp Region 5'!$AT$52/'MMA Rev-Exp Region 5'!$AT$9, 0)","v":{"v":0,"d":"$0.00"}},{"$f":"IFERROR('MMA Rev-Exp Region 5'!$AU$52/'MMA Rev-Exp Region 5'!$AU$9, 0)","v":{"v":0,"d":"$0.00"}}]
["MMA",null,null,2016,"2016-12-31","Q4","2017-12-31","Region 5","Operating Expense","Medical Benefits Expense","Transportation Services",7.3,"Ending IBNP for Transportation",{"$f":"IFERROR('MMA Rev-Exp Region 5'!$AK$53/'MMA Rev-Exp Region 5'!$AK$9, 0)","v":{"v":0,"d":"$0.00"}},{"$f":"IFERROR('MMA Rev-Exp Region 5'!$AL$53/'MMA Rev-Exp Region 5'!$AL$9, 0)","v":{"v":0,"d":"$0.00"}},{"$f":"IFERROR('MMA Rev-Exp Region 5'!$AM$53/'MMA Rev-Exp Region 5'!$AM$9, 0)","v":{"v":0,"d":"$0.00"}},{"$f":"IFERROR('MMA Rev-Exp Region 5'!$AN$53/'MMA Rev-Exp Region 5'!$AN$9, 0)","v":{"v":0,"d":"$0.00"}},{"$f":"IFERROR('MMA Rev-Exp Region 5'!$AO$53/'MMA Rev-Exp Region 5'!$AO$9, 0)","v":{"v":0,"d":"$0.00"}},{"$f":"IFERROR('MMA Rev-Exp Region 5'!$AP$53/'MMA Rev-Exp Region 5'!$AP$9, 0)","v":{"v":0,"d":"$0.00"}},{"$f":"IFERROR('MMA Rev-Exp Region 5'!$AQ$53/'MMA Rev-Exp Region 5'!$AQ$9, 0)","v":{"v":0,"d":"$0.00"}},{"$f":"IFERROR('MMA Rev-Exp Region 5'!$AR$53/'MMA Rev-Exp Region 5'!$AR$9, 0)","v":{"v":0,"d":"$0.00"}},{"$f":"IFERROR('MMA Rev-Exp Region 5'!$AS$53/'MMA Rev-Exp Region 5'!$AS$9, 0)","v":{"v":0,"d":"$0.00"}},{"$f":"IFERROR('MMA Rev-Exp Region 5'!$AT$53/'MMA Rev-Exp Region 5'!$AT$9, 0)","v":{"v":0,"d":"$0.00"}},{"$f":"IFERROR('MMA Rev-Exp Region 5'!$AU$53/'MMA Rev-Exp Region 5'!$AU$9, 0)","v":{"v":0,"d":"$0.00"}}]
["MMA",null,null,2016,"2016-12-31","Q4","2017-12-31","Region 5","Operating Expense","Medical Benefits Expense","Transportation Services","7.4","Transportation Settlements",{"$f":"IFERROR('MMA Rev-Exp Region 5'!$AK$54/'MMA Rev-Exp Region 5'!$AK$9, 0)","v":{"v":0,"d":"$0.00"}},{"$f":"IFERROR('MMA Rev-Exp Region 5'!$AL$54/'MMA Rev-Exp Region 5'!$AL$9, 0)","v":{"v":0,"d":"$0.00"}},{"$f":"IFERROR('MMA Rev-Exp Region 5'!$AM$54/'MMA Rev-Exp Region 5'!$AM$9, 0)","v":{"v":0,"d":"$0.00"}},{"$f":"IFERROR('MMA Rev-Exp Region 5'!$AN$54/'MMA Rev-Exp Region 5'!$AN$9, 0)","v":{"v":0,"d":"$0.00"}},{"$f":"IFERROR('MMA Rev-Exp Region 5'!$AO$54/'MMA Rev-Exp Region 5'!$AO$9, 0)","v":{"v":0,"d":"$0.00"}},{"$f":"IFERROR('MMA Rev-Exp Region 5'!$AP$54/'MMA Rev-Exp Region 5'!$AP$9, 0)","v":{"v":0,"d":"$0.00"}},{"$f":"IFERROR('MMA Rev-Exp Region 5'!$AQ$54/'MMA Rev-Exp Region 5'!$AQ$9, 0)","v":{"v":0,"d":"$0.00"}},{"$f":"IFERROR('MMA Rev-Exp Region 5'!$AR$54/'MMA Rev-Exp Region 5'!$AR$9, 0)","v":{"v":0,"d":"$0.00"}},{"$f":"IFERROR('MMA Rev-Exp Region 5'!$AS$54/'MMA Rev-Exp Region 5'!$AS$9, 0)","v":{"v":0,"d":"$0.00"}},{"$f":"IFERROR('MMA Rev-Exp Region 5'!$AT$54/'MMA Rev-Exp Region 5'!$AT$9, 0)","v":{"v":0,"d":"$0.00"}},{"$f":"IFERROR('MMA Rev-Exp Region 5'!$AU$54/'MMA Rev-Exp Region 5'!$AU$9, 0)","v":{"v":0,"d":"$0.00"}}]
["MMA",null,null,2016,"2016-12-31","Q4","2017-12-31","Region 5","Operating Expense","Medical Benefits Expense","Pharmacy Services",8.1,"Prescription Drugs FFS",{"$f":"IFERROR('MMA Rev-Exp Region 5'!$AK$56/'MMA Rev-Exp Region 5'!$AK$9, 0)","v":{"v":0,"d":"$0.00"}},{"$f":"IFERROR('MMA Rev-Exp Region 5'!$AL$56/'MMA Rev-Exp Region 5'!$AL$9, 0)","v":{"v":0,"d":"$0.00"}},{"$f":"IFERROR('MMA Rev-Exp Region 5'!$AM$56/'MMA Rev-Exp Region 5'!$AM$9, 0)","v":{"v":0,"d":"$0.00"}},{"$f":"IFERROR('MMA Rev-Exp Region 5'!$AN$56/'MMA Rev-Exp Region 5'!$AN$9, 0)","v":{"v":0,"d":"$0.00"}},{"$f":"IFERROR('MMA Rev-Exp Region 5'!$AO$56/'MMA Rev-Exp Region 5'!$AO$9, 0)","v":{"v":0,"d":"$0.00"}},{"$f":"IFERROR('MMA Rev-Exp Region 5'!$AP$56/'MMA Rev-Exp Region 5'!$AP$9, 0)","v":{"v":0,"d":"$0.00"}},{"$f":"IFERROR('MMA Rev-Exp Region 5'!$AQ$56/'MMA Rev-Exp Region 5'!$AQ$9, 0)","v":{"v":0,"d":"$0.00"}},{"$f":"IFERROR('MMA Rev-Exp Region 5'!$AR$56/'MMA Rev-Exp Region 5'!$AR$9, 0)","v":{"v":0,"d":"$0.00"}},{"$f":"IFERROR('MMA Rev-Exp Region 5'!$AS$56/'MMA Rev-Exp Region 5'!$AS$9, 0)","v":{"v":0,"d":"$0.00"}},{"$f":"IFERROR('MMA Rev-Exp Region 5'!$AT$56/'MMA Rev-Exp Region 5'!$AT$9, 0)","v":{"v":0,"d":"$0.00"}},{"$f":"IFERROR('MMA Rev-Exp Region 5'!$AU$56/'MMA Rev-Exp Region 5'!$AU$9, 0)","v":{"v":0,"d":"$0.00"}}]
["MMA",null,null,2016,"2016-12-31","Q4","2017-12-31","Region 5","Operating Expense","Medical Benefits Expense","Pharmacy Services","8.2","Hepatitis C Prescription Drug FFS",{"$f":"IFERROR('MMA Rev-Exp Region 5'!$AK$57/'MMA Rev-Exp Region 5'!$AK$9, 0)","v":{"v":0,"d":"$0.00"}},{"$f":"IFERROR('MMA Rev-Exp Region 5'!$AL$57/'MMA Rev-Exp Region 5'!$AL$9, 0)","v":{"v":0,"d":"$0.00"}},{"$f":"IFERROR('MMA Rev-Exp Region 5'!$AM$57/'MMA Rev-Exp Region 5'!$AM$9, 0)","v":{"v":0,"d":"$0.00"}},{"$f":"IFERROR('MMA Rev-Exp Region 5'!$AN$57/'MMA Rev-Exp Region 5'!$AN$9, 0)","v":{"v":0,"d":"$0.00"}},{"$f":"IFERROR('MMA Rev-Exp Region 5'!$AO$57/'MMA Rev-Exp Region 5'!$AO$9, 0)","v":{"v":0,"d":"$0.00"}},{"$f":"IFERROR('MMA Rev-Exp Region 5'!$AP$57/'MMA Rev-Exp Region 5'!$AP$9, 0)","v":{"v":0,"d":"$0.00"}},{"$f":"IFERROR('MMA Rev-Exp Region 5'!$AQ$57/'MMA Rev-Exp Region 5'!$AQ$9, 0)","v":{"v":0,"d":"$0.00"}},{"$f":"IFERROR('MMA Rev-Exp Region 5'!$AR$57/'MMA Rev-Exp Region 5'!$AR$9, 0)","v":{"v":0,"d":"$0.00"}},{"$f":"IFERROR('MMA Rev-Exp Region 5'!$AS$57/'MMA Rev-Exp Region 5'!$AS$9, 0)","v":{"v":0,"d":"$0.00"}},{"$f":"IFERROR('MMA Rev-Exp Region 5'!$AT$57/'MMA Rev-Exp Region 5'!$AT$9, 0)","v":{"v":0,"d":"$0.00"}},{"$f":"IFERROR('MMA Rev-Exp Region 5'!$AU$57/'MMA Rev-Exp Region 5'!$AU$9, 0)","v":{"v":0,"d":"$0.00"}}]
["MMA",null,null,2016,"2016-12-31","Q4","2017-12-31","Region 5","Operating Expense","Medical Benefits Expense","Pharmacy Services","8.3","Ending IBNP for Prescription Drugs",{"$f":"IFERROR('MMA Rev-Exp Region 5'!$AK$58/'MMA Rev-Exp Region 5'!$AK$9, 0)","v":{"v":0,"d":"$0.00"}},{"$f":"IFERROR('MMA Rev-Exp Region 5'!$AL$58/'MMA Rev-Exp Region 5'!$AL$9, 0)","v":{"v":0,"d":"$0.00"}},{"$f":"IFERROR('MMA Rev-Exp Region 5'!$AM$58/'MMA Rev-Exp Region 5'!$AM$9, 0)","v":{"v":0,"d":"$0.00"}},{"$f":"IFERROR('MMA Rev-Exp Region 5'!$AN$58/'MMA Rev-Exp Region 5'!$AN$9, 0)","v":{"v":0,"d":"$0.00"}},{"$f":"IFERROR('MMA Rev-Exp Region 5'!$AO$58/'MMA Rev-Exp Region 5'!$AO$9, 0)","v":{"v":0,"d":"$0.00"}},{"$f":"IFERROR('MMA Rev-Exp Region 5'!$AP$58/'MMA Rev-Exp Region 5'!$AP$9, 0)","v":{"v":0,"d":"$0.00"}},{"$f":"IFERROR('MMA Rev-Exp Region 5'!$AQ$58/'MMA Rev-Exp Region 5'!$AQ$9, 0)","v":{"v":0,"d":"$0.00"}},{"$f":"IFERROR('MMA Rev-Exp Region 5'!$AR$58/'MMA Rev-Exp Region 5'!$AR$9, 0)","v":{"v":0,"d":"$0.00"}},{"$f":"IFERROR('MMA Rev-Exp Region 5'!$AS$58/'MMA Rev-Exp Region 5'!$AS$9, 0)","v":{"v":0,"d":"$0.00"}},{"$f":"IFERROR('MMA Rev-Exp Region 5'!$AT$58/'MMA Rev-Exp Region 5'!$AT$9, 0)","v":{"v":0,"d":"$0.00"}},{"$f":"IFERROR('MMA Rev-Exp Region 5'!$AU$58/'MMA Rev-Exp Region 5'!$AU$9, 0)","v":{"v":0,"d":"$0.00"}}]
["MMA",null,null,2016,"2016-12-31","Q4","2017-12-31","Region 5","Operating Expense","Medical Benefits Expense","Pharmacy Services","8.4","Prescription Drug Rebates ",{"$f":"IFERROR('MMA Rev-Exp Region 5'!$AK$59/'MMA Rev-Exp Region 5'!$AK$9, 0)","v":{"v":0,"d":"$0.00"}},{"$f":"IFERROR('MMA Rev-Exp Region 5'!$AL$59/'MMA Rev-Exp Region 5'!$AL$9, 0)","v":{"v":0,"d":"$0.00"}},{"$f":"IFERROR('MMA Rev-Exp Region 5'!$AM$59/'MMA Rev-Exp Region 5'!$AM$9, 0)","v":{"v":0,"d":"$0.00"}},{"$f":"IFERROR('MMA Rev-Exp Region 5'!$AN$59/'MMA Rev-Exp Region 5'!$AN$9, 0)","v":{"v":0,"d":"$0.00"}},{"$f":"IFERROR('MMA Rev-Exp Region 5'!$AO$59/'MMA Rev-Exp Region 5'!$AO$9, 0)","v":{"v":0,"d":"$0.00"}},{"$f":"IFERROR('MMA Rev-Exp Region 5'!$AP$59/'MMA Rev-Exp Region 5'!$AP$9, 0)","v":{"v":0,"d":"$0.00"}},{"$f":"IFERROR('MMA Rev-Exp Region 5'!$AQ$59/'MMA Rev-Exp Region 5'!$AQ$9, 0)","v":{"v":0,"d":"$0.00"}},{"$f":"IFERROR('MMA Rev-Exp Region 5'!$AR$59/'MMA Rev-Exp Region 5'!$AR$9, 0)","v":{"v":0,"d":"$0.00"}},{"$f":"IFERROR('MMA Rev-Exp Region 5'!$AS$59/'MMA Rev-Exp Region 5'!$AS$9, 0)","v":{"v":0,"d":"$0.00"}},{"$f":"IFERROR('MMA Rev-Exp Region 5'!$AT$59/'MMA Rev-Exp Region 5'!$AT$9, 0)","v":{"v":0,"d":"$0.00"}},{"$f":"IFERROR('MMA Rev-Exp Region 5'!$AU$59/'MMA Rev-Exp Region 5'!$AU$9, 0)","v":{"v":0,"d":"$0.00"}}]
["MMA",null,null,2016,"2016-12-31","Q4","2017-12-31","Region 5","Operating Expense","Medical Benefits Expense","Pharmacy Services","8.5","Ending accrual for Rebates receivable",{"$f":"IFERROR('MMA Rev-Exp Region 5'!$AK$60/'MMA Rev-Exp Region 5'!$AK$9, 0)","v":{"v":0,"d":"$0.00"}},{"$f":"IFERROR('MMA Rev-Exp Region 5'!$AL$60/'MMA Rev-Exp Region 5'!$AL$9, 0)","v":{"v":0,"d":"$0.00"}},{"$f":"IFERROR('MMA Rev-Exp Region 5'!$AM$60/'MMA Rev-Exp Region 5'!$AM$9, 0)","v":{"v":0,"d":"$0.00"}},{"$f":"IFERROR('MMA Rev-Exp Region 5'!$AN$60/'MMA Rev-Exp Region 5'!$AN$9, 0)","v":{"v":0,"d":"$0.00"}},{"$f":"IFERROR('MMA Rev-Exp Region 5'!$AO$60/'MMA Rev-Exp Region 5'!$AO$9, 0)","v":{"v":0,"d":"$0.00"}},{"$f":"IFERROR('MMA Rev-Exp Region 5'!$AP$60/'MMA Rev-Exp Region 5'!$AP$9, 0)","v":{"v":0,"d":"$0.00"}},{"$f":"IFERROR('MMA Rev-Exp Region 5'!$AQ$60/'MMA Rev-Exp Region 5'!$AQ$9, 0)","v":{"v":0,"d":"$0.00"}},{"$f":"IFERROR('MMA Rev-Exp Region 5'!$AR$60/'MMA Rev-Exp Region 5'!$AR$9, 0)","v":{"v":0,"d":"$0.00"}},{"$f":"IFERROR('MMA Rev-Exp Region 5'!$AS$60/'MMA Rev-Exp Region 5'!$AS$9, 0)","v":{"v":0,"d":"$0.00"}},{"$f":"IFERROR('MMA Rev-Exp Region 5'!$AT$60/'MMA Rev-Exp Region 5'!$AT$9, 0)","v":{"v":0,"d":"$0.00"}},{"$f":"IFERROR('MMA Rev-Exp Region 5'!$AU$60/'MMA Rev-Exp Region 5'!$AU$9, 0)","v":{"v":0,"d":"$0.00"}}]
["MMA",null,null,2016,"2016-12-31","Q4","2017-12-31","Region 5","Operating Expense","Medical Benefits Expense","Pharmacy Services","8.6","Prescription Drugs Subcapitation",{"$f":"IFERROR('MMA Rev-Exp Region 5'!$AK$61/'MMA Rev-Exp Region 5'!$AK$9, 0)","v":{"v":0,"d":"$0.00"}},{"$f":"IFERROR('MMA Rev-Exp Region 5'!$AL$61/'MMA Rev-Exp Region 5'!$AL$9, 0)","v":{"v":0,"d":"$0.00"}},{"$f":"IFERROR('MMA Rev-Exp Region 5'!$AM$61/'MMA Rev-Exp Region 5'!$AM$9, 0)","v":{"v":0,"d":"$0.00"}},{"$f":"IFERROR('MMA Rev-Exp Region 5'!$AN$61/'MMA Rev-Exp Region 5'!$AN$9, 0)","v":{"v":0,"d":"$0.00"}},{"$f":"IFERROR('MMA Rev-Exp Region 5'!$AO$61/'MMA Rev-Exp Region 5'!$AO$9, 0)","v":{"v":0,"d":"$0.00"}},{"$f":"IFERROR('MMA Rev-Exp Region 5'!$AP$61/'MMA Rev-Exp Region 5'!$AP$9, 0)","v":{"v":0,"d":"$0.00"}},{"$f":"IFERROR('MMA Rev-Exp Region 5'!$AQ$61/'MMA Rev-Exp Region 5'!$AQ$9, 0)","v":{"v":0,"d":"$0.00"}},{"$f":"IFERROR('MMA Rev-Exp Region 5'!$AR$61/'MMA Rev-Exp Region 5'!$AR$9, 0)","v":{"v":0,"d":"$0.00"}},{"$f":"IFERROR('MMA Rev-Exp Region 5'!$AS$61/'MMA Rev-Exp Region 5'!$AS$9, 0)","v":{"v":0,"d":"$0.00"}},{"$f":"IFERROR('MMA Rev-Exp Region 5'!$AT$61/'MMA Rev-Exp Region 5'!$AT$9, 0)","v":{"v":0,"d":"$0.00"}},{"$f":"IFERROR('MMA Rev-Exp Region 5'!$AU$61/'MMA Rev-Exp Region 5'!$AU$9, 0)","v":{"v":0,"d":"$0.00"}}]
["MMA",null,null,2016,"2016-12-31","Q4","2017-12-31","Region 5","Operating Expense","Medical Benefits Expense","Pharmacy Services","8.7","Prescription Drug Settlements",{"$f":"IFERROR('MMA Rev-Exp Region 5'!$AK$62/'MMA Rev-Exp Region 5'!$AK$9, 0)","v":{"v":0,"d":"$0.00"}},{"$f":"IFERROR('MMA Rev-Exp Region 5'!$AL$62/'MMA Rev-Exp Region 5'!$AL$9, 0)","v":{"v":0,"d":"$0.00"}},{"$f":"IFERROR('MMA Rev-Exp Region 5'!$AM$62/'MMA Rev-Exp Region 5'!$AM$9, 0)","v":{"v":0,"d":"$0.00"}},{"$f":"IFERROR('MMA Rev-Exp Region 5'!$AN$62/'MMA Rev-Exp Region 5'!$AN$9, 0)","v":{"v":0,"d":"$0.00"}},{"$f":"IFERROR('MMA Rev-Exp Region 5'!$AO$62/'MMA Rev-Exp Region 5'!$AO$9, 0)","v":{"v":0,"d":"$0.00"}},{"$f":"IFERROR('MMA Rev-Exp Region 5'!$AP$62/'MMA Rev-Exp Region 5'!$AP$9, 0)","v":{"v":0,"d":"$0.00"}},{"$f":"IFERROR('MMA Rev-Exp Region 5'!$AQ$62/'MMA Rev-Exp Region 5'!$AQ$9, 0)","v":{"v":0,"d":"$0.00"}},{"$f":"IFERROR('MMA Rev-Exp Region 5'!$AR$62/'MMA Rev-Exp Region 5'!$AR$9, 0)","v":{"v":0,"d":"$0.00"}},{"$f":"IFERROR('MMA Rev-Exp Region 5'!$AS$62/'MMA Rev-Exp Region 5'!$AS$9, 0)","v":{"v":0,"d":"$0.00"}},{"$f":"IFERROR('MMA Rev-Exp Region 5'!$AT$62/'MMA Rev-Exp Region 5'!$AT$9, 0)","v":{"v":0,"d":"$0.00"}},{"$f":"IFERROR('MMA Rev-Exp Region 5'!$AU$62/'MMA Rev-Exp Region 5'!$AU$9, 0)","v":{"v":0,"d":"$0.00"}}]
["MMA",null,null,2016,"2016-12-31","Q4","2017-12-31","Region 5","Operating Expense","Medical Benefits Expense","Other MMA Services",9.1,"Home Health, Private Duty Nursing, Personal Care FFS",{"$f":"IFERROR('MMA Rev-Exp Region 5'!$AK$64/'MMA Rev-Exp Region 5'!$AK$9, 0)","v":{"v":0,"d":"$0.00"}},{"$f":"IFERROR('MMA Rev-Exp Region 5'!$AL$64/'MMA Rev-Exp Region 5'!$AL$9, 0)","v":{"v":0,"d":"$0.00"}},{"$f":"IFERROR('MMA Rev-Exp Region 5'!$AM$64/'MMA Rev-Exp Region 5'!$AM$9, 0)","v":{"v":0,"d":"$0.00"}},{"$f":"IFERROR('MMA Rev-Exp Region 5'!$AN$64/'MMA Rev-Exp Region 5'!$AN$9, 0)","v":{"v":0,"d":"$0.00"}},{"$f":"IFERROR('MMA Rev-Exp Region 5'!$AO$64/'MMA Rev-Exp Region 5'!$AO$9, 0)","v":{"v":0,"d":"$0.00"}},{"$f":"IFERROR('MMA Rev-Exp Region 5'!$AP$64/'MMA Rev-Exp Region 5'!$AP$9, 0)","v":{"v":0,"d":"$0.00"}},{"$f":"IFERROR('MMA Rev-Exp Region 5'!$AQ$64/'MMA Rev-Exp Region 5'!$AQ$9, 0)","v":{"v":0,"d":"$0.00"}},{"$f":"IFERROR('MMA Rev-Exp Region 5'!$AR$64/'MMA Rev-Exp Region 5'!$AR$9, 0)","v":{"v":0,"d":"$0.00"}},{"$f":"IFERROR('MMA Rev-Exp Region 5'!$AS$64/'MMA Rev-Exp Region 5'!$AS$9, 0)","v":{"v":0,"d":"$0.00"}},{"$f":"IFERROR('MMA Rev-Exp Region 5'!$AT$64/'MMA Rev-Exp Region 5'!$AT$9, 0)","v":{"v":0,"d":"$0.00"}},{"$f":"IFERROR('MMA Rev-Exp Region 5'!$AU$64/'MMA Rev-Exp Region 5'!$AU$9, 0)","v":{"v":0,"d":"$0.00"}}]
["MMA",null,null,2016,"2016-12-31","Q4","2017-12-31","Region 5","Operating Expense","Medical Benefits Expense","Other MMA Services","9.2","Hospice FFS",{"$f":"IFERROR('MMA Rev-Exp Region 5'!$AK$65/'MMA Rev-Exp Region 5'!$AK$9, 0)","v":{"v":0,"d":"$0.00"}},{"$f":"IFERROR('MMA Rev-Exp Region 5'!$AL$65/'MMA Rev-Exp Region 5'!$AL$9, 0)","v":{"v":0,"d":"$0.00"}},{"$f":"IFERROR('MMA Rev-Exp Region 5'!$AM$65/'MMA Rev-Exp Region 5'!$AM$9, 0)","v":{"v":0,"d":"$0.00"}},{"$f":"IFERROR('MMA Rev-Exp Region 5'!$AN$65/'MMA Rev-Exp Region 5'!$AN$9, 0)","v":{"v":0,"d":"$0.00"}},{"$f":"IFERROR('MMA Rev-Exp Region 5'!$AO$65/'MMA Rev-Exp Region 5'!$AO$9, 0)","v":{"v":0,"d":"$0.00"}},{"$f":"IFERROR('MMA Rev-Exp Region 5'!$AP$65/'MMA Rev-Exp Region 5'!$AP$9, 0)","v":{"v":0,"d":"$0.00"}},{"$f":"IFERROR('MMA Rev-Exp Region 5'!$AQ$65/'MMA Rev-Exp Region 5'!$AQ$9, 0)","v":{"v":0,"d":"$0.00"}},{"$f":"IFERROR('MMA Rev-Exp Region 5'!$AR$65/'MMA Rev-Exp Region 5'!$AR$9, 0)","v":{"v":0,"d":"$0.00"}},{"$f":"IFERROR('MMA Rev-Exp Region 5'!$AS$65/'MMA Rev-Exp Region 5'!$AS$9, 0)","v":{"v":0,"d":"$0.00"}},{"$f":"IFERROR('MMA Rev-Exp Region 5'!$AT$65/'MMA Rev-Exp Region 5'!$AT$9, 0)","v":{"v":0,"d":"$0.00"}},{"$f":"IFERROR('MMA Rev-Exp Region 5'!$AU$65/'MMA Rev-Exp Region 5'!$AU$9, 0)","v":{"v":0,"d":"$0.00"}}]
["MMA",null,null,2016,"2016-12-31","Q4","2017-12-31","Region 5","Operating Expense","Medical Benefits Expense","Other MMA Services","9.3","DME FFS",{"$f":"IFERROR('MMA Rev-Exp Region 5'!$AK$66/'MMA Rev-Exp Region 5'!$AK$9, 0)","v":{"v":0,"d":"$0.00"}},{"$f":"IFERROR('MMA Rev-Exp Region 5'!$AL$66/'MMA Rev-Exp Region 5'!$AL$9, 0)","v":{"v":0,"d":"$0.00"}},{"$f":"IFERROR('MMA Rev-Exp Region 5'!$AM$66/'MMA Rev-Exp Region 5'!$AM$9, 0)","v":{"v":0,"d":"$0.00"}},{"$f":"IFERROR('MMA Rev-Exp Region 5'!$AN$66/'MMA Rev-Exp Region 5'!$AN$9, 0)","v":{"v":0,"d":"$0.00"}},{"$f":"IFERROR('MMA Rev-Exp Region 5'!$AO$66/'MMA Rev-Exp Region 5'!$AO$9, 0)","v":{"v":0,"d":"$0.00"}},{"$f":"IFERROR('MMA Rev-Exp Region 5'!$AP$66/'MMA Rev-Exp Region 5'!$AP$9, 0)","v":{"v":0,"d":"$0.00"}},{"$f":"IFERROR('MMA Rev-Exp Region 5'!$AQ$66/'MMA Rev-Exp Region 5'!$AQ$9, 0)","v":{"v":0,"d":"$0.00"}},{"$f":"IFERROR('MMA Rev-Exp Region 5'!$AR$66/'MMA Rev-Exp Region 5'!$AR$9, 0)","v":{"v":0,"d":"$0.00"}},{"$f":"IFERROR('MMA Rev-Exp Region 5'!$AS$66/'MMA Rev-Exp Region 5'!$AS$9, 0)","v":{"v":0,"d":"$0.00"}},{"$f":"IFERROR('MMA Rev-Exp Region 5'!$AT$66/'MMA Rev-Exp Region 5'!$AT$9, 0)","v":{"v":0,"d":"$0.00"}},{"$f":"IFERROR('MMA Rev-Exp Region 5'!$AU$66/'MMA Rev-Exp Region 5'!$AU$9, 0)","v":{"v":0,"d":"$0.00"}}]
["MMA",null,null,2016,"2016-12-31","Q4","2017-12-31","Region 5","Operating Expense","Medical Benefits Expense","Other MMA Services","9.4","Other State Plan Services FFS",{"$f":"IFERROR('MMA Rev-Exp Region 5'!$AK$67/'MMA Rev-Exp Region 5'!$AK$9, 0)","v":{"v":0,"d":"$0.00"}},{"$f":"IFERROR('MMA Rev-Exp Region 5'!$AL$67/'MMA Rev-Exp Region 5'!$AL$9, 0)","v":{"v":0,"d":"$0.00"}},{"$f":"IFERROR('MMA Rev-Exp Region 5'!$AM$67/'MMA Rev-Exp Region 5'!$AM$9, 0)","v":{"v":0,"d":"$0.00"}},{"$f":"IFERROR('MMA Rev-Exp Region 5'!$AN$67/'MMA Rev-Exp Region 5'!$AN$9, 0)","v":{"v":0,"d":"$0.00"}},{"$f":"IFERROR('MMA Rev-Exp Region 5'!$AO$67/'MMA Rev-Exp Region 5'!$AO$9, 0)","v":{"v":0,"d":"$0.00"}},{"$f":"IFERROR('MMA Rev-Exp Region 5'!$AP$67/'MMA Rev-Exp Region 5'!$AP$9, 0)","v":{"v":0,"d":"$0.00"}},{"$f":"IFERROR('MMA Rev-Exp Region 5'!$AQ$67/'MMA Rev-Exp Region 5'!$AQ$9, 0)","v":{"v":0,"d":"$0.00"}},{"$f":"IFERROR('MMA Rev-Exp Region 5'!$AR$67/'MMA Rev-Exp Region 5'!$AR$9, 0)","v":{"v":0,"d":"$0.00"}},{"$f":"IFERROR('MMA Rev-Exp Region 5'!$AS$67/'MMA Rev-Exp Region 5'!$AS$9, 0)","v":{"v":0,"d":"$0.00"}},{"$f":"IFERROR('MMA Rev-Exp Region 5'!$AT$67/'MMA Rev-Exp Region 5'!$AT$9, 0)","v":{"v":0,"d":"$0.00"}},{"$f":"IFERROR('MMA Rev-Exp Region 5'!$AU$67/'MMA Rev-Exp Region 5'!$AU$9, 0)","v":{"v":0,"d":"$0.00"}}]
["MMA",null,null,2016,"2016-12-31","Q4","2017-12-31","Region 5","Operating Expense","Medical Benefits Expense","Other MMA Services","9.5","Other Services Subcapitation",{"$f":"IFERROR('MMA Rev-Exp Region 5'!$AK$68/'MMA Rev-Exp Region 5'!$AK$9, 0)","v":{"v":0,"d":"$0.00"}},{"$f":"IFERROR('MMA Rev-Exp Region 5'!$AL$68/'MMA Rev-Exp Region 5'!$AL$9, 0)","v":{"v":0,"d":"$0.00"}},{"$f":"IFERROR('MMA Rev-Exp Region 5'!$AM$68/'MMA Rev-Exp Region 5'!$AM$9, 0)","v":{"v":0,"d":"$0.00"}},{"$f":"IFERROR('MMA Rev-Exp Region 5'!$AN$68/'MMA Rev-Exp Region 5'!$AN$9, 0)","v":{"v":0,"d":"$0.00"}},{"$f":"IFERROR('MMA Rev-Exp Region 5'!$AO$68/'MMA Rev-Exp Region 5'!$AO$9, 0)","v":{"v":0,"d":"$0.00"}},{"$f":"IFERROR('MMA Rev-Exp Region 5'!$AP$68/'MMA Rev-Exp Region 5'!$AP$9, 0)","v":{"v":0,"d":"$0.00"}},{"$f":"IFERROR('MMA Rev-Exp Region 5'!$AQ$68/'MMA Rev-Exp Region 5'!$AQ$9, 0)","v":{"v":0,"d":"$0.00"}},{"$f":"IFERROR('MMA Rev-Exp Region 5'!$AR$68/'MMA Rev-Exp Region 5'!$AR$9, 0)","v":{"v":0,"d":"$0.00"}},{"$f":"IFERROR('MMA Rev-Exp Region 5'!$AS$68/'MMA Rev-Exp Region 5'!$AS$9, 0)","v":{"v":0,"d":"$0.00"}},{"$f":"IFERROR('MMA Rev-Exp Region 5'!$AT$68/'MMA Rev-Exp Region 5'!$AT$9, 0)","v":{"v":0,"d":"$0.00"}},{"$f":"IFERROR('MMA Rev-Exp Region 5'!$AU$68/'MMA Rev-Exp Region 5'!$AU$9, 0)","v":{"v":0,"d":"$0.00"}}]
["MMA",null,null,2016,"2016-12-31","Q4","2017-12-31","Region 5","Operating Expense","Medical Benefits Expense","Other MMA Services","9.6","Ending IBNP for Other Services",{"$f":"IFERROR('MMA Rev-Exp Region 5'!$AK$69/'MMA Rev-Exp Region 5'!$AK$9, 0)","v":{"v":0,"d":"$0.00"}},{"$f":"IFERROR('MMA Rev-Exp Region 5'!$AL$69/'MMA Rev-Exp Region 5'!$AL$9, 0)","v":{"v":0,"d":"$0.00"}},{"$f":"IFERROR('MMA Rev-Exp Region 5'!$AM$69/'MMA Rev-Exp Region 5'!$AM$9, 0)","v":{"v":0,"d":"$0.00"}},{"$f":"IFERROR('MMA Rev-Exp Region 5'!$AN$69/'MMA Rev-Exp Region 5'!$AN$9, 0)","v":{"v":0,"d":"$0.00"}},{"$f":"IFERROR('MMA Rev-Exp Region 5'!$AO$69/'MMA Rev-Exp Region 5'!$AO$9, 0)","v":{"v":0,"d":"$0.00"}},{"$f":"IFERROR('MMA Rev-Exp Region 5'!$AP$69/'MMA Rev-Exp Region 5'!$AP$9, 0)","v":{"v":0,"d":"$0.00"}},{"$f":"IFERROR('MMA Rev-Exp Region 5'!$AQ$69/'MMA Rev-Exp Region 5'!$AQ$9, 0)","v":{"v":0,"d":"$0.00"}},{"$f":"IFERROR('MMA Rev-Exp Region 5'!$AR$69/'MMA Rev-Exp Region 5'!$AR$9, 0)","v":{"v":0,"d":"$0.00"}},{"$f":"IFERROR('MMA Rev-Exp Region 5'!$AS$69/'MMA Rev-Exp Region 5'!$AS$9, 0)","v":{"v":0,"d":"$0.00"}},{"$f":"IFERROR('MMA Rev-Exp Region 5'!$AT$69/'MMA Rev-Exp Region 5'!$AT$9, 0)","v":{"v":0,"d":"$0.00"}},{"$f":"IFERROR('MMA Rev-Exp Region 5'!$AU$69/'MMA Rev-Exp Region 5'!$AU$9, 0)","v":{"v":0,"d":"$0.00"}}]
["MMA",null,null,2016,"2016-12-31","Q4","2017-12-31","Region 5","Operating Expense","Medical Benefits Expense","Other MMA Services","9.7","Other Services Settlements",{"$f":"IFERROR('MMA Rev-Exp Region 5'!$AK$70/'MMA Rev-Exp Region 5'!$AK$9, 0)","v":{"v":0,"d":"$0.00"}},{"$f":"IFERROR('MMA Rev-Exp Region 5'!$AL$70/'MMA Rev-Exp Region 5'!$AL$9, 0)","v":{"v":0,"d":"$0.00"}},{"$f":"IFERROR('MMA Rev-Exp Region 5'!$AM$70/'MMA Rev-Exp Region 5'!$AM$9, 0)","v":{"v":0,"d":"$0.00"}},{"$f":"IFERROR('MMA Rev-Exp Region 5'!$AN$70/'MMA Rev-Exp Region 5'!$AN$9, 0)","v":{"v":0,"d":"$0.00"}},{"$f":"IFERROR('MMA Rev-Exp Region 5'!$AO$70/'MMA Rev-Exp Region 5'!$AO$9, 0)","v":{"v":0,"d":"$0.00"}},{"$f":"IFERROR('MMA Rev-Exp Region 5'!$AP$70/'MMA Rev-Exp Region 5'!$AP$9, 0)","v":{"v":0,"d":"$0.00"}},{"$f":"IFERROR('MMA Rev-Exp Region 5'!$AQ$70/'MMA Rev-Exp Region 5'!$AQ$9, 0)","v":{"v":0,"d":"$0.00"}},{"$f":"IFERROR('MMA Rev-Exp Region 5'!$AR$70/'MMA Rev-Exp Region 5'!$AR$9, 0)","v":{"v":0,"d":"$0.00"}},{"$f":"IFERROR('MMA Rev-Exp Region 5'!$AS$70/'MMA Rev-Exp Region 5'!$AS$9, 0)","v":{"v":0,"d":"$0.00"}},{"$f":"IFERROR('MMA Rev-Exp Region 5'!$AT$70/'MMA Rev-Exp Region 5'!$AT$9, 0)","v":{"v":0,"d":"$0.00"}},{"$f":"IFERROR('MMA Rev-Exp Region 5'!$AU$70/'MMA Rev-Exp Region 5'!$AU$9, 0)","v":{"v":0,"d":"$0.00"}}]
["MMA",null,null,2016,"2016-12-31","Q4","2017-12-31","Region 5","Operating Expense","Medical Benefits Expense","Expanded Benefits","10.1","Expanded Benefits FFS",{"$f":"IFERROR('MMA Rev-Exp Region 5'!$AK$72/'MMA Rev-Exp Region 5'!$AK$9, 0)","v":{"v":0,"d":"$0.00"}},{"$f":"IFERROR('MMA Rev-Exp Region 5'!$AL$72/'MMA Rev-Exp Region 5'!$AL$9, 0)","v":{"v":0,"d":"$0.00"}},{"$f":"IFERROR('MMA Rev-Exp Region 5'!$AM$72/'MMA Rev-Exp Region 5'!$AM$9, 0)","v":{"v":0,"d":"$0.00"}},{"$f":"IFERROR('MMA Rev-Exp Region 5'!$AN$72/'MMA Rev-Exp Region 5'!$AN$9, 0)","v":{"v":0,"d":"$0.00"}},{"$f":"IFERROR('MMA Rev-Exp Region 5'!$AO$72/'MMA Rev-Exp Region 5'!$AO$9, 0)","v":{"v":0,"d":"$0.00"}},{"$f":"IFERROR('MMA Rev-Exp Region 5'!$AP$72/'MMA Rev-Exp Region 5'!$AP$9, 0)","v":{"v":0,"d":"$0.00"}},{"$f":"IFERROR('MMA Rev-Exp Region 5'!$AQ$72/'MMA Rev-Exp Region 5'!$AQ$9, 0)","v":{"v":0,"d":"$0.00"}},{"$f":"IFERROR('MMA Rev-Exp Region 5'!$AR$72/'MMA Rev-Exp Region 5'!$AR$9, 0)","v":{"v":0,"d":"$0.00"}},{"$f":"IFERROR('MMA Rev-Exp Region 5'!$AS$72/'MMA Rev-Exp Region 5'!$AS$9, 0)","v":{"v":0,"d":"$0.00"}},{"$f":"IFERROR('MMA Rev-Exp Region 5'!$AT$72/'MMA Rev-Exp Region 5'!$AT$9, 0)","v":{"v":0,"d":"$0.00"}},{"$f":"IFERROR('MMA Rev-Exp Region 5'!$AU$72/'MMA Rev-Exp Region 5'!$AU$9, 0)","v":{"v":0,"d":"$0.00"}}]
["MMA",null,null,2016,"2016-12-31","Q4","2017-12-31","Region 5","Operating Expense","Medical Benefits Expense","Expanded Benefits","10.2","Expanded benefits Subcapitation",{"$f":"IFERROR('MMA Rev-Exp Region 5'!$AK$73/'MMA Rev-Exp Region 5'!$AK$9, 0)","v":{"v":0,"d":"$0.00"}},{"$f":"IFERROR('MMA Rev-Exp Region 5'!$AL$73/'MMA Rev-Exp Region 5'!$AL$9, 0)","v":{"v":0,"d":"$0.00"}},{"$f":"IFERROR('MMA Rev-Exp Region 5'!$AM$73/'MMA Rev-Exp Region 5'!$AM$9, 0)","v":{"v":0,"d":"$0.00"}},{"$f":"IFERROR('MMA Rev-Exp Region 5'!$AN$73/'MMA Rev-Exp Region 5'!$AN$9, 0)","v":{"v":0,"d":"$0.00"}},{"$f":"IFERROR('MMA Rev-Exp Region 5'!$AO$73/'MMA Rev-Exp Region 5'!$AO$9, 0)","v":{"v":0,"d":"$0.00"}},{"$f":"IFERROR('MMA Rev-Exp Region 5'!$AP$73/'MMA Rev-Exp Region 5'!$AP$9, 0)","v":{"v":0,"d":"$0.00"}},{"$f":"IFERROR('MMA Rev-Exp Region 5'!$AQ$73/'MMA Rev-Exp Region 5'!$AQ$9, 0)","v":{"v":0,"d":"$0.00"}},{"$f":"IFERROR('MMA Rev-Exp Region 5'!$AR$73/'MMA Rev-Exp Region 5'!$AR$9, 0)","v":{"v":0,"d":"$0.00"}},{"$f":"IFERROR('MMA Rev-Exp Region 5'!$AS$73/'MMA Rev-Exp Region 5'!$AS$9, 0)","v":{"v":0,"d":"$0.00"}},{"$f":"IFERROR('MMA Rev-Exp Region 5'!$AT$73/'MMA Rev-Exp Region 5'!$AT$9, 0)","v":{"v":0,"d":"$0.00"}},{"$f":"IFERROR('MMA Rev-Exp Region 5'!$AU$73/'MMA Rev-Exp Region 5'!$AU$9, 0)","v":{"v":0,"d":"$0.00"}}]
["MMA",null,null,2016,"2016-12-31","Q4","2017-12-31","Region 5","Operating Expense","Medical Benefits Expense","Expanded Benefits","10.3","Ending IBNP for Expanded Benefits",{"$f":"IFERROR('MMA Rev-Exp Region 5'!$AK$74/'MMA Rev-Exp Region 5'!$AK$9, 0)","v":{"v":0,"d":"$0.00"}},{"$f":"IFERROR('MMA Rev-Exp Region 5'!$AL$74/'MMA Rev-Exp Region 5'!$AL$9, 0)","v":{"v":0,"d":"$0.00"}},{"$f":"IFERROR('MMA Rev-Exp Region 5'!$AM$74/'MMA Rev-Exp Region 5'!$AM$9, 0)","v":{"v":0,"d":"$0.00"}},{"$f":"IFERROR('MMA Rev-Exp Region 5'!$AN$74/'MMA Rev-Exp Region 5'!$AN$9, 0)","v":{"v":0,"d":"$0.00"}},{"$f":"IFERROR('MMA Rev-Exp Region 5'!$AO$74/'MMA Rev-Exp Region 5'!$AO$9, 0)","v":{"v":0,"d":"$0.00"}},{"$f":"IFERROR('MMA Rev-Exp Region 5'!$AP$74/'MMA Rev-Exp Region 5'!$AP$9, 0)","v":{"v":0,"d":"$0.00"}},{"$f":"IFERROR('MMA Rev-Exp Region 5'!$AQ$74/'MMA Rev-Exp Region 5'!$AQ$9, 0)","v":{"v":0,"d":"$0.00"}},{"$f":"IFERROR('MMA Rev-Exp Region 5'!$AR$74/'MMA Rev-Exp Region 5'!$AR$9, 0)","v":{"v":0,"d":"$0.00"}},{"$f":"IFERROR('MMA Rev-Exp Region 5'!$AS$74/'MMA Rev-Exp Region 5'!$AS$9, 0)","v":{"v":0,"d":"$0.00"}},{"$f":"IFERROR('MMA Rev-Exp Region 5'!$AT$74/'MMA Rev-Exp Region 5'!$AT$9, 0)","v":{"v":0,"d":"$0.00"}},{"$f":"IFERROR('MMA Rev-Exp Region 5'!$AU$74/'MMA Rev-Exp Region 5'!$AU$9, 0)","v":{"v":0,"d":"$0.00"}}]
["MMA",null,null,2016,"2016-12-31","Q4","2017-12-31","Region 5","Operating Expense","Medical Benefits Expense","Expanded Benefits","10.4","Expanded Benefits Settlements",{"$f":"IFERROR('MMA Rev-Exp Region 5'!$AK$75/'MMA Rev-Exp Region 5'!$AK$9, 0)","v":{"v":0,"d":"$0.00"}},{"$f":"IFERROR('MMA Rev-Exp Region 5'!$AL$75/'MMA Rev-Exp Region 5'!$AL$9, 0)","v":{"v":0,"d":"$0.00"}},{"$f":"IFERROR('MMA Rev-Exp Region 5'!$AM$75/'MMA Rev-Exp Region 5'!$AM$9, 0)","v":{"v":0,"d":"$0.00"}},{"$f":"IFERROR('MMA Rev-Exp Region 5'!$AN$75/'MMA Rev-Exp Region 5'!$AN$9, 0)","v":{"v":0,"d":"$0.00"}},{"$f":"IFERROR('MMA Rev-Exp Region 5'!$AO$75/'MMA Rev-Exp Region 5'!$AO$9, 0)","v":{"v":0,"d":"$0.00"}},{"$f":"IFERROR('MMA Rev-Exp Region 5'!$AP$75/'MMA Rev-Exp Region 5'!$AP$9, 0)","v":{"v":0,"d":"$0.00"}},{"$f":"IFERROR('MMA Rev-Exp Region 5'!$AQ$75/'MMA Rev-Exp Region 5'!$AQ$9, 0)","v":{"v":0,"d":"$0.00"}},{"$f":"IFERROR('MMA Rev-Exp Region 5'!$AR$75/'MMA Rev-Exp Region 5'!$AR$9, 0)","v":{"v":0,"d":"$0.00"}},{"$f":"IFERROR('MMA Rev-Exp Region 5'!$AS$75/'MMA Rev-Exp Region 5'!$AS$9, 0)","v":{"v":0,"d":"$0.00"}},{"$f":"IFERROR('MMA Rev-Exp Region 5'!$AT$75/'MMA Rev-Exp Region 5'!$AT$9, 0)","v":{"v":0,"d":"$0.00"}},{"$f":"IFERROR('MMA Rev-Exp Region 5'!$AU$75/'MMA Rev-Exp Region 5'!$AU$9, 0)","v":{"v":0,"d":"$0.00"}}]
["MMA",null,null,2016,"2016-12-31","Q4","2017-12-31","Region 5","Operating Expense","Medical Benefits Expense","Other Medical","11.5","TPL & Fraud/Abuse Recoveries",{"$f":"IFERROR('MMA Rev-Exp Region 5'!$AK$81/'MMA Rev-Exp Region 5'!$AK$9, 0)","v":{"v":0,"d":"$0.00"}},{"$f":"IFERROR('MMA Rev-Exp Region 5'!$AL$81/'MMA Rev-Exp Region 5'!$AL$9, 0)","v":{"v":0,"d":"$0.00"}},{"$f":"IFERROR('MMA Rev-Exp Region 5'!$AM$81/'MMA Rev-Exp Region 5'!$AM$9, 0)","v":{"v":0,"d":"$0.00"}},{"$f":"IFERROR('MMA Rev-Exp Region 5'!$AN$81/'MMA Rev-Exp Region 5'!$AN$9, 0)","v":{"v":0,"d":"$0.00"}},{"$f":"IFERROR('MMA Rev-Exp Region 5'!$AO$81/'MMA Rev-Exp Region 5'!$AO$9, 0)","v":{"v":0,"d":"$0.00"}},{"$f":"IFERROR('MMA Rev-Exp Region 5'!$AP$81/'MMA Rev-Exp Region 5'!$AP$9, 0)","v":{"v":0,"d":"$0.00"}},{"$f":"IFERROR('MMA Rev-Exp Region 5'!$AQ$81/'MMA Rev-Exp Region 5'!$AQ$9, 0)","v":{"v":0,"d":"$0.00"}},{"$f":"IFERROR('MMA Rev-Exp Region 5'!$AR$81/'MMA Rev-Exp Region 5'!$AR$9, 0)","v":{"v":0,"d":"$0.00"}},{"$f":"IFERROR('MMA Rev-Exp Region 5'!$AS$81/'MMA Rev-Exp Region 5'!$AS$9, 0)","v":{"v":0,"d":"$0.00"}},{"$f":"IFERROR('MMA Rev-Exp Region 5'!$AT$81/'MMA Rev-Exp Region 5'!$AT$9, 0)","v":{"v":0,"d":"$0.00"}},{"$f":"IFERROR('MMA Rev-Exp Region 5'!$AU$81/'MMA Rev-Exp Region 5'!$AU$9, 0)","v":{"v":0,"d":"$0.00"}}]
["MMA",null,null,2016,"2016-12-31","Q4","2017-12-31","Region 5","Operating Expense","Medical Benefits Expense","Other Medical","11.6.1","Premium Deficiency Reserve",{"$f":"IFERROR('MMA Rev-Exp Region 5'!$AK$82/'MMA Rev-Exp Region 5'!$AK$9, 0)","v":{"v":0,"d":"$0.00"}},{"$f":"IFERROR('MMA Rev-Exp Region 5'!$AL$82/'MMA Rev-Exp Region 5'!$AL$9, 0)","v":{"v":0,"d":"$0.00"}},{"$f":"IFERROR('MMA Rev-Exp Region 5'!$AM$82/'MMA Rev-Exp Region 5'!$AM$9, 0)","v":{"v":0,"d":"$0.00"}},{"$f":"IFERROR('MMA Rev-Exp Region 5'!$AN$82/'MMA Rev-Exp Region 5'!$AN$9, 0)","v":{"v":0,"d":"$0.00"}},{"$f":"IFERROR('MMA Rev-Exp Region 5'!$AO$82/'MMA Rev-Exp Region 5'!$AO$9, 0)","v":{"v":0,"d":"$0.00"}},{"$f":"IFERROR('MMA Rev-Exp Region 5'!$AP$82/'MMA Rev-Exp Region 5'!$AP$9, 0)","v":{"v":0,"d":"$0.00"}},{"$f":"IFERROR('MMA Rev-Exp Region 5'!$AQ$82/'MMA Rev-Exp Region 5'!$AQ$9, 0)","v":{"v":0,"d":"$0.00"}},{"$f":"IFERROR('MMA Rev-Exp Region 5'!$AR$82/'MMA Rev-Exp Region 5'!$AR$9, 0)","v":{"v":0,"d":"$0.00"}},{"$f":"IFERROR('MMA Rev-Exp Region 5'!$AS$82/'MMA Rev-Exp Region 5'!$AS$9, 0)","v":{"v":0,"d":"$0.00"}},{"$f":"IFERROR('MMA Rev-Exp Region 5'!$AT$82/'MMA Rev-Exp Region 5'!$AT$9, 0)","v":{"v":0,"d":"$0.00"}},{"$f":"IFERROR('MMA Rev-Exp Region 5'!$AU$82/'MMA Rev-Exp Region 5'!$AU$9, 0)","v":{"v":0,"d":"$0.00"}}]
["MMA",null,null,2016,"2016-12-31","Q4","2017-12-31","Region 5","Operating Expense","Medical Benefits Expense","Other Medical","11.8","Reinsurance Premiums",{"$f":"IFERROR('MMA Rev-Exp Region 5'!$AK$84/'MMA Rev-Exp Region 5'!$AK$9, 0)","v":{"v":0,"d":"$0.00"}},{"$f":"IFERROR('MMA Rev-Exp Region 5'!$AL$84/'MMA Rev-Exp Region 5'!$AL$9, 0)","v":{"v":0,"d":"$0.00"}},{"$f":"IFERROR('MMA Rev-Exp Region 5'!$AM$84/'MMA Rev-Exp Region 5'!$AM$9, 0)","v":{"v":0,"d":"$0.00"}},{"$f":"IFERROR('MMA Rev-Exp Region 5'!$AN$84/'MMA Rev-Exp Region 5'!$AN$9, 0)","v":{"v":0,"d":"$0.00"}},{"$f":"IFERROR('MMA Rev-Exp Region 5'!$AO$84/'MMA Rev-Exp Region 5'!$AO$9, 0)","v":{"v":0,"d":"$0.00"}},{"$f":"IFERROR('MMA Rev-Exp Region 5'!$AP$84/'MMA Rev-Exp Region 5'!$AP$9, 0)","v":{"v":0,"d":"$0.00"}},{"$f":"IFERROR('MMA Rev-Exp Region 5'!$AQ$84/'MMA Rev-Exp Region 5'!$AQ$9, 0)","v":{"v":0,"d":"$0.00"}},{"$f":"IFERROR('MMA Rev-Exp Region 5'!$AR$84/'MMA Rev-Exp Region 5'!$AR$9, 0)","v":{"v":0,"d":"$0.00"}},{"$f":"IFERROR('MMA Rev-Exp Region 5'!$AS$84/'MMA Rev-Exp Region 5'!$AS$9, 0)","v":{"v":0,"d":"$0.00"}},{"$f":"IFERROR('MMA Rev-Exp Region 5'!$AT$84/'MMA Rev-Exp Region 5'!$AT$9, 0)","v":{"v":0,"d":"$0.00"}},{"$f":"IFERROR('MMA Rev-Exp Region 5'!$AU$84/'MMA Rev-Exp Region 5'!$AU$9, 0)","v":{"v":0,"d":"$0.00"}}]
["MMA",null,null,2016,"2016-12-31","Q4","2017-12-31","Region 5","Operating Expense","Medical Benefits Expense","Other Medical","11.9","Reinsurance Recoveries",{"$f":"IFERROR('MMA Rev-Exp Region 5'!$AK$85/'MMA Rev-Exp Region 5'!$AK$9, 0)","v":{"v":0,"d":"$0.00"}},{"$f":"IFERROR('MMA Rev-Exp Region 5'!$AL$85/'MMA Rev-Exp Region 5'!$AL$9, 0)","v":{"v":0,"d":"$0.00"}},{"$f":"IFERROR('MMA Rev-Exp Region 5'!$AM$85/'MMA Rev-Exp Region 5'!$AM$9, 0)","v":{"v":0,"d":"$0.00"}},{"$f":"IFERROR('MMA Rev-Exp Region 5'!$AN$85/'MMA Rev-Exp Region 5'!$AN$9, 0)","v":{"v":0,"d":"$0.00"}},{"$f":"IFERROR('MMA Rev-Exp Region 5'!$AO$85/'MMA Rev-Exp Region 5'!$AO$9, 0)","v":{"v":0,"d":"$0.00"}},{"$f":"IFERROR('MMA Rev-Exp Region 5'!$AP$85/'MMA Rev-Exp Region 5'!$AP$9, 0)","v":{"v":0,"d":"$0.00"}},{"$f":"IFERROR('MMA Rev-Exp Region 5'!$AQ$85/'MMA Rev-Exp Region 5'!$AQ$9, 0)","v":{"v":0,"d":"$0.00"}},{"$f":"IFERROR('MMA Rev-Exp Region 5'!$AR$85/'MMA Rev-Exp Region 5'!$AR$9, 0)","v":{"v":0,"d":"$0.00"}},{"$f":"IFERROR('MMA Rev-Exp Region 5'!$AS$85/'MMA Rev-Exp Region 5'!$AS$9, 0)","v":{"v":0,"d":"$0.00"}},{"$f":"IFERROR('MMA Rev-Exp Region 5'!$AT$85/'MMA Rev-Exp Region 5'!$AT$9, 0)","v":{"v":0,"d":"$0.00"}},{"$f":"IFERROR('MMA Rev-Exp Region 5'!$AU$85/'MMA Rev-Exp Region 5'!$AU$9, 0)","v":{"v":0,"d":"$0.00"}}]
["MMA",null,null,2016,"2016-12-31","Q4","2017-12-31","Region 5","Operating Expense","Administrative Expense","Administrative","12.1","Salaries & Benefits",{"$f":"IFERROR('MMA Rev-Exp Region 5'!$AK$90/'MMA Rev-Exp Region 5'!$AK$9, 0)","v":{"v":0,"d":"$0.00"}},{"$f":"IFERROR('MMA Rev-Exp Region 5'!$AL$90/'MMA Rev-Exp Region 5'!$AK$9, 0)","v":{"v":0,"d":"$0.00"}},{"$f":"IFERROR('MMA Rev-Exp Region 5'!$AM$90/'MMA Rev-Exp Region 5'!$AK$9, 0)","v":{"v":0,"d":"$0.00"}}]
["MMA",null,null,2016,"2016-12-31","Q4","2017-12-31","Region 5","Operating Expense","Administrative Expense","Administrative","12.2","Administrative Services",{"$f":"IFERROR('MMA Rev-Exp Region 5'!$AK$91/'MMA Rev-Exp Region 5'!$AK$9, 0)","v":{"v":0,"d":"$0.00"}},{"$f":"IFERROR('MMA Rev-Exp Region 5'!$AL$91/'MMA Rev-Exp Region 5'!$AK$9, 0)","v":{"v":0,"d":"$0.00"}},{"$f":"IFERROR('MMA Rev-Exp Region 5'!$AM$91/'MMA Rev-Exp Region 5'!$AK$9, 0)","v":{"v":0,"d":"$0.00"}}]
["MMA",null,null,2016,"2016-12-31","Q4","2017-12-31","Region 5","Operating Expense","Administrative Expense","Administrative","12.3","Information Systems",{"$f":"IFERROR('MMA Rev-Exp Region 5'!$AK$92/'MMA Rev-Exp Region 5'!$AK$9, 0)","v":{"v":0,"d":"$0.00"}},{"$f":"IFERROR('MMA Rev-Exp Region 5'!$AL$92/'MMA Rev-Exp Region 5'!$AK$9, 0)","v":{"v":0,"d":"$0.00"}},{"$f":"IFERROR('MMA Rev-Exp Region 5'!$AM$92/'MMA Rev-Exp Region 5'!$AK$9, 0)","v":{"v":0,"d":"$0.00"}}]
["MMA",null,null,2016,"2016-12-31","Q4","2017-12-31","Region 5","Operating Expense","Administrative Expense","Administrative","12.4","Marketing Expenses",{"$f":"IFERROR('MMA Rev-Exp Region 5'!$AK$93/'MMA Rev-Exp Region 5'!$AK$9, 0)","v":{"v":0,"d":"$0.00"}},{"$f":"IFERROR('MMA Rev-Exp Region 5'!$AL$93/'MMA Rev-Exp Region 5'!$AK$9, 0)","v":{"v":0,"d":"$0.00"}},{"$f":"IFERROR('MMA Rev-Exp Region 5'!$AM$93/'MMA Rev-Exp Region 5'!$AK$9, 0)","v":{"v":0,"d":"$0.00"}}]
["MMA",null,null,2016,"2016-12-31","Q4","2017-12-31","Region 5","Operating Expense","Administrative Expense","Administrative","12.5","General  Administration",{"$f":"IFERROR('MMA Rev-Exp Region 5'!$AK$94/'MMA Rev-Exp Region 5'!$AK$9, 0)","v":{"v":0,"d":"$0.00"}},{"$f":"IFERROR('MMA Rev-Exp Region 5'!$AL$94/'MMA Rev-Exp Region 5'!$AK$9, 0)","v":{"v":0,"d":"$0.00"}},{"$f":"IFERROR('MMA Rev-Exp Region 5'!$AM$94/'MMA Rev-Exp Region 5'!$AK$9, 0)","v":{"v":0,"d":"$0.00"}}]
["MMA",null,null,2016,"2016-12-31","Q4","2017-12-31","Region 5","Operating Expense","Administrative Expense","Administrative","12.6","Compliance/Regulatory",{"$f":"IFERROR('MMA Rev-Exp Region 5'!$AK$95/'MMA Rev-Exp Region 5'!$AK$9, 0)","v":{"v":0,"d":"$0.00"}},{"$f":"IFERROR('MMA Rev-Exp Region 5'!$AL$95/'MMA Rev-Exp Region 5'!$AK$9, 0)","v":{"v":0,"d":"$0.00"}},{"$f":"IFERROR('MMA Rev-Exp Region 5'!$AM$95/'MMA Rev-Exp Region 5'!$AK$9, 0)","v":{"v":0,"d":"$0.00"}}]
["MMA",null,null,2016,"2016-12-31","Q4","2017-12-31","Region 5","Operating Expense","Taxes & Fees","Taxes & Fees","13.1","State Premium tax",{"$f":"IFERROR('MMA Rev-Exp Region 5'!$AK$97/'MMA Rev-Exp Region 5'!$AK$9, 0)","v":{"v":0,"d":"$0.00"}}]
["MMA",null,null,2016,"2016-12-31","Q4","2017-12-31","Region 5","Operating Expense","Taxes & Fees","Taxes & Fees","13.2","Department of Insurance Assessments",{"$f":"IFERROR('MMA Rev-Exp Region 5'!$AK$98/'MMA Rev-Exp Region 5'!$AK$9, 0)","v":{"v":0,"d":"$0.00"}}]
["MMA",null,null,2016,"2016-12-31","Q4","2017-12-31","Region 5","Operating Expense","Taxes & Fees","Taxes & Fees","13.3","Section 9010 Health Insurance Providers Fee",{"$f":"IFERROR('MMA Rev-Exp Region 5'!$AK$99/'MMA Rev-Exp Region 5'!$AK$9, 0)","v":{"v":0,"d":"$0.00"}}]
["MMA",null,null,2016,"2016-12-31","Q4","2017-12-31","Region 5","Non-Operating Expense","Income Tax Expense","Income Tax Expense","16.0","Income Tax Expense",{"$f":"IFERROR('MMA Rev-Exp Region 5'!$AK$106/'MMA Rev-Exp Region 5'!$AK$9, 0)","v":{"v":0,"d":"$0.00"}}]
["MMA",null,null,2016,"2016-12-31","Q1","2017-03-31","Region 6","Operating Revenue","Capitation","Capitation",1.1,"Capitation",{"$f":"IFERROR('MMA Rev-Exp Region 6'!$D$11/'MMA Rev-Exp Region 6'!$D$9, 0)","v":{"v":0,"d":"$0.00"}},{"$f":"IFERROR('MMA Rev-Exp Region 6'!$E$11/'MMA Rev-Exp Region 6'!$E$9, 0)","v":{"v":0,"d":"$0.00"}},{"$f":"IFERROR('MMA Rev-Exp Region 6'!$F$11/'MMA Rev-Exp Region 6'!$F$9, 0)","v":{"v":0,"d":"$0.00"}},{"$f":"IFERROR('MMA Rev-Exp Region 6'!$G$11/'MMA Rev-Exp Region 6'!$G$9, 0)","v":{"v":0,"d":"$0.00"}},{"$f":"IFERROR('MMA Rev-Exp Region 6'!$H$11/'MMA Rev-Exp Region 6'!$H$9, 0)","v":{"v":0,"d":"$0.00"}},{"$f":"IFERROR('MMA Rev-Exp Region 6'!$I$11/'MMA Rev-Exp Region 6'!$I$9, 0)","v":{"v":0,"d":"$0.00"}},{"$f":"IFERROR('MMA Rev-Exp Region 6'!$J$11/'MMA Rev-Exp Region 6'!$J$9, 0)","v":{"v":0,"d":"$0.00"}},{"$f":"IFERROR('MMA Rev-Exp Region 6'!$K$11/'MMA Rev-Exp Region 6'!$K$9, 0)","v":{"v":0,"d":"$0.00"}},{"$f":"IFERROR('MMA Rev-Exp Region 6'!$L$11/'MMA Rev-Exp Region 6'!$L$9, 0)","v":{"v":0,"d":"$0.00"}},{"$f":"IFERROR('MMA Rev-Exp Region 6'!$M$11/'MMA Rev-Exp Region 6'!$M$9, 0)","v":{"v":0,"d":"$0.00"}},{"$f":"IFERROR('MMA Rev-Exp Region 6'!$N$11/'MMA Rev-Exp Region 6'!$N$9, 0)","v":{"v":0,"d":"$0.00"}}]
["MMA",null,null,2016,"2016-12-31","Q1","2017-03-31","Region 6","Operating Revenue","Kick Payments","Kick Payments - Transplant",1.2,"Transplant Kick Payments",{"$f":"IFERROR('MMA Rev-Exp Region 6'!$D$12/'MMA Rev-Exp Region 6'!$D$9, 0)","v":{"v":0,"d":"$0.00"}},{"$f":"IFERROR('MMA Rev-Exp Region 6'!$E$12/'MMA Rev-Exp Region 6'!$E$9, 0)","v":{"v":0,"d":"$0.00"}},{"$f":"IFERROR('MMA Rev-Exp Region 6'!$F$12/'MMA Rev-Exp Region 6'!$F$9, 0)","v":{"v":0,"d":"$0.00"}},{"$f":"IFERROR('MMA Rev-Exp Region 6'!$G$12/'MMA Rev-Exp Region 6'!$G$9, 0)","v":{"v":0,"d":"$0.00"}},{"$f":"IFERROR('MMA Rev-Exp Region 6'!$H$12/'MMA Rev-Exp Region 6'!$H$9, 0)","v":{"v":0,"d":"$0.00"}},{"$f":"IFERROR('MMA Rev-Exp Region 6'!$I$12/'MMA Rev-Exp Region 6'!$I$9, 0)","v":{"v":0,"d":"$0.00"}},{"$f":"IFERROR('MMA Rev-Exp Region 6'!$J$12/'MMA Rev-Exp Region 6'!$J$9, 0)","v":{"v":0,"d":"$0.00"}},{"$f":"IFERROR('MMA Rev-Exp Region 6'!$K$12/'MMA Rev-Exp Region 6'!$K$9, 0)","v":{"v":0,"d":"$0.00"}},{"$f":"IFERROR('MMA Rev-Exp Region 6'!$L$12/'MMA Rev-Exp Region 6'!$L$9, 0)","v":{"v":0,"d":"$0.00"}},{"$f":"IFERROR('MMA Rev-Exp Region 6'!$M$12/'MMA Rev-Exp Region 6'!$M$9, 0)","v":{"v":0,"d":"$0.00"}},{"$f":"IFERROR('MMA Rev-Exp Region 6'!$N$12/'MMA Rev-Exp Region 6'!$N$9, 0)","v":{"v":0,"d":"$0.00"}}]
["MMA",null,null,2016,"2016-12-31","Q1","2017-03-31","Region 6","Operating Revenue","Kick Payments","Kick Payments - Hep C","1.3","Hepatitis C Kick Payments",{"$f":"IFERROR('MMA Rev-Exp Region 6'!$D$13/'MMA Rev-Exp Region 6'!$D$9, 0)","v":{"v":0,"d":"$0.00"}},{"$f":"IFERROR('MMA Rev-Exp Region 6'!$E$13/'MMA Rev-Exp Region 6'!$E$9, 0)","v":{"v":0,"d":"$0.00"}},{"$f":"IFERROR('MMA Rev-Exp Region 6'!$F$13/'MMA Rev-Exp Region 6'!$F$9, 0)","v":{"v":0,"d":"$0.00"}},{"$f":"IFERROR('MMA Rev-Exp Region 6'!$G$13/'MMA Rev-Exp Region 6'!$G$9, 0)","v":{"v":0,"d":"$0.00"}},{"$f":"IFERROR('MMA Rev-Exp Region 6'!$H$13/'MMA Rev-Exp Region 6'!$H$9, 0)","v":{"v":0,"d":"$0.00"}},{"$f":"IFERROR('MMA Rev-Exp Region 6'!$I$13/'MMA Rev-Exp Region 6'!$I$9, 0)","v":{"v":0,"d":"$0.00"}},{"$f":"IFERROR('MMA Rev-Exp Region 6'!$J$13/'MMA Rev-Exp Region 6'!$J$9, 0)","v":{"v":0,"d":"$0.00"}},{"$f":"IFERROR('MMA Rev-Exp Region 6'!$K$13/'MMA Rev-Exp Region 6'!$K$9, 0)","v":{"v":0,"d":"$0.00"}},{"$f":"IFERROR('MMA Rev-Exp Region 6'!$L$13/'MMA Rev-Exp Region 6'!$L$9, 0)","v":{"v":0,"d":"$0.00"}},{"$f":"IFERROR('MMA Rev-Exp Region 6'!$M$13/'MMA Rev-Exp Region 6'!$M$9, 0)","v":{"v":0,"d":"$0.00"}},{"$f":"IFERROR('MMA Rev-Exp Region 6'!$N$13/'MMA Rev-Exp Region 6'!$N$9, 0)","v":{"v":0,"d":"$0.00"}}]
["MMA",null,null,2016,"2016-12-31","Q1","2017-03-31","Region 6","Operating Revenue","Kick Payments","Kick Payments - Maternity","1.4.1","Maternity Kick Payments",{"$f":"IFERROR('MMA Rev-Exp Region 6'!$D$14/'MMA Rev-Exp Region 6'!$D$9, 0)","v":{"v":0,"d":"$0.00"}},{"$f":"IFERROR('MMA Rev-Exp Region 6'!$E$14/'MMA Rev-Exp Region 6'!$E$9, 0)","v":{"v":0,"d":"$0.00"}},{"$f":"IFERROR('MMA Rev-Exp Region 6'!$F$14/'MMA Rev-Exp Region 6'!$F$9, 0)","v":{"v":0,"d":"$0.00"}},{"$f":"IFERROR('MMA Rev-Exp Region 6'!$G$14/'MMA Rev-Exp Region 6'!$G$9, 0)","v":{"v":0,"d":"$0.00"}},{"$f":"IFERROR('MMA Rev-Exp Region 6'!$H$14/'MMA Rev-Exp Region 6'!$H$9, 0)","v":{"v":0,"d":"$0.00"}},{"$f":"IFERROR('MMA Rev-Exp Region 6'!$I$14/'MMA Rev-Exp Region 6'!$I$9, 0)","v":{"v":0,"d":"$0.00"}},{"$f":"IFERROR('MMA Rev-Exp Region 6'!$J$14/'MMA Rev-Exp Region 6'!$J$9, 0)","v":{"v":0,"d":"$0.00"}},{"$f":"IFERROR('MMA Rev-Exp Region 6'!$K$14/'MMA Rev-Exp Region 6'!$K$9, 0)","v":{"v":0,"d":"$0.00"}},{"$f":"IFERROR('MMA Rev-Exp Region 6'!$L$14/'MMA Rev-Exp Region 6'!$L$9, 0)","v":{"v":0,"d":"$0.00"}},{"$f":"IFERROR('MMA Rev-Exp Region 6'!$M$14/'MMA Rev-Exp Region 6'!$M$9, 0)","v":{"v":0,"d":"$0.00"}},{"$f":"IFERROR('MMA Rev-Exp Region 6'!$N$14/'MMA Rev-Exp Region 6'!$N$9, 0)","v":{"v":0,"d":"$0.00"}}]
["MMA",null,null,2016,"2016-12-31","Q1","2017-03-31","Region 6","Operating Revenue","Other Revenue","Other Revenue - 9010","1.5","ACA § 9010 related payments",{"$f":"IFERROR('MMA Rev-Exp Region 6'!$D$15/'MMA Rev-Exp Region 6'!$D$9, 0)","v":{"v":0,"d":"$0.00"}},{"$f":"IFERROR('MMA Rev-Exp Region 6'!$E$15/'MMA Rev-Exp Region 6'!$E$9, 0)","v":{"v":0,"d":"$0.00"}},{"$f":"IFERROR('MMA Rev-Exp Region 6'!$F$15/'MMA Rev-Exp Region 6'!$F$9, 0)","v":{"v":0,"d":"$0.00"}},{"$f":"IFERROR('MMA Rev-Exp Region 6'!$G$15/'MMA Rev-Exp Region 6'!$G$9, 0)","v":{"v":0,"d":"$0.00"}},{"$f":"IFERROR('MMA Rev-Exp Region 6'!$H$15/'MMA Rev-Exp Region 6'!$H$9, 0)","v":{"v":0,"d":"$0.00"}},{"$f":"IFERROR('MMA Rev-Exp Region 6'!$I$15/'MMA Rev-Exp Region 6'!$I$9, 0)","v":{"v":0,"d":"$0.00"}},{"$f":"IFERROR('MMA Rev-Exp Region 6'!$J$15/'MMA Rev-Exp Region 6'!$J$9, 0)","v":{"v":0,"d":"$0.00"}},{"$f":"IFERROR('MMA Rev-Exp Region 6'!$K$15/'MMA Rev-Exp Region 6'!$K$9, 0)","v":{"v":0,"d":"$0.00"}},{"$f":"IFERROR('MMA Rev-Exp Region 6'!$L$15/'MMA Rev-Exp Region 6'!$L$9, 0)","v":{"v":0,"d":"$0.00"}},{"$f":"IFERROR('MMA Rev-Exp Region 6'!$M$15/'MMA Rev-Exp Region 6'!$M$9, 0)","v":{"v":0,"d":"$0.00"}},{"$f":"IFERROR('MMA Rev-Exp Region 6'!$N$15/'MMA Rev-Exp Region 6'!$N$9, 0)","v":{"v":0,"d":"$0.00"}}]
["MMA",null,null,2016,"2016-12-31","Q1","2017-03-31","Region 6","Operating Revenue","Other Revenue","Other Revenue","1.6","Other Revenue",{"$f":"IFERROR('MMA Rev-Exp Region 6'!$D$16/'MMA Rev-Exp Region 6'!$D$9, 0)","v":{"v":0,"d":"$0.00"}},{"$f":"IFERROR('MMA Rev-Exp Region 6'!$E$16/'MMA Rev-Exp Region 6'!$E$9, 0)","v":{"v":0,"d":"$0.00"}},{"$f":"IFERROR('MMA Rev-Exp Region 6'!$F$16/'MMA Rev-Exp Region 6'!$F$9, 0)","v":{"v":0,"d":"$0.00"}},{"$f":"IFERROR('MMA Rev-Exp Region 6'!$G$16/'MMA Rev-Exp Region 6'!$G$9, 0)","v":{"v":0,"d":"$0.00"}},{"$f":"IFERROR('MMA Rev-Exp Region 6'!$H$16/'MMA Rev-Exp Region 6'!$H$9, 0)","v":{"v":0,"d":"$0.00"}},{"$f":"IFERROR('MMA Rev-Exp Region 6'!$I$16/'MMA Rev-Exp Region 6'!$I$9, 0)","v":{"v":0,"d":"$0.00"}},{"$f":"IFERROR('MMA Rev-Exp Region 6'!$J$16/'MMA Rev-Exp Region 6'!$J$9, 0)","v":{"v":0,"d":"$0.00"}},{"$f":"IFERROR('MMA Rev-Exp Region 6'!$K$16/'MMA Rev-Exp Region 6'!$K$9, 0)","v":{"v":0,"d":"$0.00"}},{"$f":"IFERROR('MMA Rev-Exp Region 6'!$L$16/'MMA Rev-Exp Region 6'!$L$9, 0)","v":{"v":0,"d":"$0.00"}},{"$f":"IFERROR('MMA Rev-Exp Region 6'!$M$16/'MMA Rev-Exp Region 6'!$M$9, 0)","v":{"v":0,"d":"$0.00"}},{"$f":"IFERROR('MMA Rev-Exp Region 6'!$N$16/'MMA Rev-Exp Region 6'!$N$9, 0)","v":{"v":0,"d":"$0.00"}}]
["MMA",null,null,2016,"2016-12-31","Q1","2017-03-31","Region 6","Operating Expense","Medical Benefits Expense","Hospital Services",2.1,"Inpatient FFS",{"$f":"IFERROR('MMA Rev-Exp Region 6'!$D$20/'MMA Rev-Exp Region 6'!$D$9, 0)","v":{"v":0,"d":"$0.00"}},{"$f":"IFERROR('MMA Rev-Exp Region 6'!$E$20/'MMA Rev-Exp Region 6'!$E$9, 0)","v":{"v":0,"d":"$0.00"}},{"$f":"IFERROR('MMA Rev-Exp Region 6'!$F$20/'MMA Rev-Exp Region 6'!$F$9, 0)","v":{"v":0,"d":"$0.00"}},{"$f":"IFERROR('MMA Rev-Exp Region 6'!$G$20/'MMA Rev-Exp Region 6'!$G$9, 0)","v":{"v":0,"d":"$0.00"}},{"$f":"IFERROR('MMA Rev-Exp Region 6'!$H$20/'MMA Rev-Exp Region 6'!$H$9, 0)","v":{"v":0,"d":"$0.00"}},{"$f":"IFERROR('MMA Rev-Exp Region 6'!$I$20/'MMA Rev-Exp Region 6'!$I$9, 0)","v":{"v":0,"d":"$0.00"}},{"$f":"IFERROR('MMA Rev-Exp Region 6'!$J$20/'MMA Rev-Exp Region 6'!$J$9, 0)","v":{"v":0,"d":"$0.00"}},{"$f":"IFERROR('MMA Rev-Exp Region 6'!$K$20/'MMA Rev-Exp Region 6'!$K$9, 0)","v":{"v":0,"d":"$0.00"}},{"$f":"IFERROR('MMA Rev-Exp Region 6'!$L$20/'MMA Rev-Exp Region 6'!$L$9, 0)","v":{"v":0,"d":"$0.00"}},{"$f":"IFERROR('MMA Rev-Exp Region 6'!$M$20/'MMA Rev-Exp Region 6'!$M$9, 0)","v":{"v":0,"d":"$0.00"}},{"$f":"IFERROR('MMA Rev-Exp Region 6'!$N$20/'MMA Rev-Exp Region 6'!$N$9, 0)","v":{"v":0,"d":"$0.00"}}]
["MMA",null,null,2016,"2016-12-31","Q1","2017-03-31","Region 6","Operating Expense","Medical Benefits Expense","Hospital Services",2.2,"Ending IBNP for Inpatient Hospital Services",{"$f":"IFERROR('MMA Rev-Exp Region 6'!$D$21/'MMA Rev-Exp Region 6'!$D$9, 0)","v":{"v":0,"d":"$0.00"}},{"$f":"IFERROR('MMA Rev-Exp Region 6'!$E$21/'MMA Rev-Exp Region 6'!$E$9, 0)","v":{"v":0,"d":"$0.00"}},{"$f":"IFERROR('MMA Rev-Exp Region 6'!$F$21/'MMA Rev-Exp Region 6'!$F$9, 0)","v":{"v":0,"d":"$0.00"}},{"$f":"IFERROR('MMA Rev-Exp Region 6'!$G$21/'MMA Rev-Exp Region 6'!$G$9, 0)","v":{"v":0,"d":"$0.00"}},{"$f":"IFERROR('MMA Rev-Exp Region 6'!$H$21/'MMA Rev-Exp Region 6'!$H$9, 0)","v":{"v":0,"d":"$0.00"}},{"$f":"IFERROR('MMA Rev-Exp Region 6'!$I$21/'MMA Rev-Exp Region 6'!$I$9, 0)","v":{"v":0,"d":"$0.00"}},{"$f":"IFERROR('MMA Rev-Exp Region 6'!$J$21/'MMA Rev-Exp Region 6'!$J$9, 0)","v":{"v":0,"d":"$0.00"}},{"$f":"IFERROR('MMA Rev-Exp Region 6'!$K$21/'MMA Rev-Exp Region 6'!$K$9, 0)","v":{"v":0,"d":"$0.00"}},{"$f":"IFERROR('MMA Rev-Exp Region 6'!$L$21/'MMA Rev-Exp Region 6'!$L$9, 0)","v":{"v":0,"d":"$0.00"}},{"$f":"IFERROR('MMA Rev-Exp Region 6'!$M$21/'MMA Rev-Exp Region 6'!$M$9, 0)","v":{"v":0,"d":"$0.00"}},{"$f":"IFERROR('MMA Rev-Exp Region 6'!$N$21/'MMA Rev-Exp Region 6'!$N$9, 0)","v":{"v":0,"d":"$0.00"}}]
["MMA",null,null,2016,"2016-12-31","Q1","2017-03-31","Region 6","Operating Expense","Medical Benefits Expense","Hospital Services",2.3,"Outpatient FFS: ER",{"$f":"IFERROR('MMA Rev-Exp Region 6'!$D$22/'MMA Rev-Exp Region 6'!$D$9, 0)","v":{"v":0,"d":"$0.00"}},{"$f":"IFERROR('MMA Rev-Exp Region 6'!$E$22/'MMA Rev-Exp Region 6'!$E$9, 0)","v":{"v":0,"d":"$0.00"}},{"$f":"IFERROR('MMA Rev-Exp Region 6'!$F$22/'MMA Rev-Exp Region 6'!$F$9, 0)","v":{"v":0,"d":"$0.00"}},{"$f":"IFERROR('MMA Rev-Exp Region 6'!$G$22/'MMA Rev-Exp Region 6'!$G$9, 0)","v":{"v":0,"d":"$0.00"}},{"$f":"IFERROR('MMA Rev-Exp Region 6'!$H$22/'MMA Rev-Exp Region 6'!$H$9, 0)","v":{"v":0,"d":"$0.00"}},{"$f":"IFERROR('MMA Rev-Exp Region 6'!$I$22/'MMA Rev-Exp Region 6'!$I$9, 0)","v":{"v":0,"d":"$0.00"}},{"$f":"IFERROR('MMA Rev-Exp Region 6'!$J$22/'MMA Rev-Exp Region 6'!$J$9, 0)","v":{"v":0,"d":"$0.00"}},{"$f":"IFERROR('MMA Rev-Exp Region 6'!$K$22/'MMA Rev-Exp Region 6'!$K$9, 0)","v":{"v":0,"d":"$0.00"}},{"$f":"IFERROR('MMA Rev-Exp Region 6'!$L$22/'MMA Rev-Exp Region 6'!$L$9, 0)","v":{"v":0,"d":"$0.00"}},{"$f":"IFERROR('MMA Rev-Exp Region 6'!$M$22/'MMA Rev-Exp Region 6'!$M$9, 0)","v":{"v":0,"d":"$0.00"}},{"$f":"IFERROR('MMA Rev-Exp Region 6'!$N$22/'MMA Rev-Exp Region 6'!$N$9, 0)","v":{"v":0,"d":"$0.00"}}]
["MMA",null,null,2016,"2016-12-31","Q1","2017-03-31","Region 6","Operating Expense","Medical Benefits Expense","Hospital Services",2.4,"Outpatient FFS: Other than ER ",{"$f":"IFERROR('MMA Rev-Exp Region 6'!$D$23/'MMA Rev-Exp Region 6'!$D$9, 0)","v":{"v":0,"d":"$0.00"}},{"$f":"IFERROR('MMA Rev-Exp Region 6'!$E$23/'MMA Rev-Exp Region 6'!$E$9, 0)","v":{"v":0,"d":"$0.00"}},{"$f":"IFERROR('MMA Rev-Exp Region 6'!$F$23/'MMA Rev-Exp Region 6'!$F$9, 0)","v":{"v":0,"d":"$0.00"}},{"$f":"IFERROR('MMA Rev-Exp Region 6'!$G$23/'MMA Rev-Exp Region 6'!$G$9, 0)","v":{"v":0,"d":"$0.00"}},{"$f":"IFERROR('MMA Rev-Exp Region 6'!$H$23/'MMA Rev-Exp Region 6'!$H$9, 0)","v":{"v":0,"d":"$0.00"}},{"$f":"IFERROR('MMA Rev-Exp Region 6'!$I$23/'MMA Rev-Exp Region 6'!$I$9, 0)","v":{"v":0,"d":"$0.00"}},{"$f":"IFERROR('MMA Rev-Exp Region 6'!$J$23/'MMA Rev-Exp Region 6'!$J$9, 0)","v":{"v":0,"d":"$0.00"}},{"$f":"IFERROR('MMA Rev-Exp Region 6'!$K$23/'MMA Rev-Exp Region 6'!$K$9, 0)","v":{"v":0,"d":"$0.00"}},{"$f":"IFERROR('MMA Rev-Exp Region 6'!$L$23/'MMA Rev-Exp Region 6'!$L$9, 0)","v":{"v":0,"d":"$0.00"}},{"$f":"IFERROR('MMA Rev-Exp Region 6'!$M$23/'MMA Rev-Exp Region 6'!$M$9, 0)","v":{"v":0,"d":"$0.00"}},{"$f":"IFERROR('MMA Rev-Exp Region 6'!$N$23/'MMA Rev-Exp Region 6'!$N$9, 0)","v":{"v":0,"d":"$0.00"}}]
["MMA",null,null,2016,"2016-12-31","Q1","2017-03-31","Region 6","Operating Expense","Medical Benefits Expense","Hospital Services",2.5,"Ending IBNP for Outpatient Hospital Services",{"$f":"IFERROR('MMA Rev-Exp Region 6'!$D$24/'MMA Rev-Exp Region 6'!$D$9, 0)","v":{"v":0,"d":"$0.00"}},{"$f":"IFERROR('MMA Rev-Exp Region 6'!$E$24/'MMA Rev-Exp Region 6'!$E$9, 0)","v":{"v":0,"d":"$0.00"}},{"$f":"IFERROR('MMA Rev-Exp Region 6'!$F$24/'MMA Rev-Exp Region 6'!$F$9, 0)","v":{"v":0,"d":"$0.00"}},{"$f":"IFERROR('MMA Rev-Exp Region 6'!$G$24/'MMA Rev-Exp Region 6'!$G$9, 0)","v":{"v":0,"d":"$0.00"}},{"$f":"IFERROR('MMA Rev-Exp Region 6'!$H$24/'MMA Rev-Exp Region 6'!$H$9, 0)","v":{"v":0,"d":"$0.00"}},{"$f":"IFERROR('MMA Rev-Exp Region 6'!$I$24/'MMA Rev-Exp Region 6'!$I$9, 0)","v":{"v":0,"d":"$0.00"}},{"$f":"IFERROR('MMA Rev-Exp Region 6'!$J$24/'MMA Rev-Exp Region 6'!$J$9, 0)","v":{"v":0,"d":"$0.00"}},{"$f":"IFERROR('MMA Rev-Exp Region 6'!$K$24/'MMA Rev-Exp Region 6'!$K$9, 0)","v":{"v":0,"d":"$0.00"}},{"$f":"IFERROR('MMA Rev-Exp Region 6'!$L$24/'MMA Rev-Exp Region 6'!$L$9, 0)","v":{"v":0,"d":"$0.00"}},{"$f":"IFERROR('MMA Rev-Exp Region 6'!$M$24/'MMA Rev-Exp Region 6'!$M$9, 0)","v":{"v":0,"d":"$0.00"}},{"$f":"IFERROR('MMA Rev-Exp Region 6'!$N$24/'MMA Rev-Exp Region 6'!$N$9, 0)","v":{"v":0,"d":"$0.00"}}]
["MMA",null,null,2016,"2016-12-31","Q1","2017-03-31","Region 6","Operating Expense","Medical Benefits Expense","Hospital Services","2.6","Subcapitated Hospital Services",{"$f":"IFERROR('MMA Rev-Exp Region 6'!$D$25/'MMA Rev-Exp Region 6'!$D$9, 0)","v":{"v":0,"d":"$0.00"}},{"$f":"IFERROR('MMA Rev-Exp Region 6'!$E$25/'MMA Rev-Exp Region 6'!$E$9, 0)","v":{"v":0,"d":"$0.00"}},{"$f":"IFERROR('MMA Rev-Exp Region 6'!$F$25/'MMA Rev-Exp Region 6'!$F$9, 0)","v":{"v":0,"d":"$0.00"}},{"$f":"IFERROR('MMA Rev-Exp Region 6'!$G$25/'MMA Rev-Exp Region 6'!$G$9, 0)","v":{"v":0,"d":"$0.00"}},{"$f":"IFERROR('MMA Rev-Exp Region 6'!$H$25/'MMA Rev-Exp Region 6'!$H$9, 0)","v":{"v":0,"d":"$0.00"}},{"$f":"IFERROR('MMA Rev-Exp Region 6'!$I$25/'MMA Rev-Exp Region 6'!$I$9, 0)","v":{"v":0,"d":"$0.00"}},{"$f":"IFERROR('MMA Rev-Exp Region 6'!$J$25/'MMA Rev-Exp Region 6'!$J$9, 0)","v":{"v":0,"d":"$0.00"}},{"$f":"IFERROR('MMA Rev-Exp Region 6'!$K$25/'MMA Rev-Exp Region 6'!$K$9, 0)","v":{"v":0,"d":"$0.00"}},{"$f":"IFERROR('MMA Rev-Exp Region 6'!$L$25/'MMA Rev-Exp Region 6'!$L$9, 0)","v":{"v":0,"d":"$0.00"}},{"$f":"IFERROR('MMA Rev-Exp Region 6'!$M$25/'MMA Rev-Exp Region 6'!$M$9, 0)","v":{"v":0,"d":"$0.00"}},{"$f":"IFERROR('MMA Rev-Exp Region 6'!$N$25/'MMA Rev-Exp Region 6'!$N$9, 0)","v":{"v":0,"d":"$0.00"}}]
["MMA",null,null,2016,"2016-12-31","Q1","2017-03-31","Region 6","Operating Expense","Medical Benefits Expense","Hospital Services","2.7","Hospital Settlements",{"$f":"IFERROR('MMA Rev-Exp Region 6'!$D$26/'MMA Rev-Exp Region 6'!$D$9, 0)","v":{"v":0,"d":"$0.00"}},{"$f":"IFERROR('MMA Rev-Exp Region 6'!$E$26/'MMA Rev-Exp Region 6'!$E$9, 0)","v":{"v":0,"d":"$0.00"}},{"$f":"IFERROR('MMA Rev-Exp Region 6'!$F$26/'MMA Rev-Exp Region 6'!$F$9, 0)","v":{"v":0,"d":"$0.00"}},{"$f":"IFERROR('MMA Rev-Exp Region 6'!$G$26/'MMA Rev-Exp Region 6'!$G$9, 0)","v":{"v":0,"d":"$0.00"}},{"$f":"IFERROR('MMA Rev-Exp Region 6'!$H$26/'MMA Rev-Exp Region 6'!$H$9, 0)","v":{"v":0,"d":"$0.00"}},{"$f":"IFERROR('MMA Rev-Exp Region 6'!$I$26/'MMA Rev-Exp Region 6'!$I$9, 0)","v":{"v":0,"d":"$0.00"}},{"$f":"IFERROR('MMA Rev-Exp Region 6'!$J$26/'MMA Rev-Exp Region 6'!$J$9, 0)","v":{"v":0,"d":"$0.00"}},{"$f":"IFERROR('MMA Rev-Exp Region 6'!$K$26/'MMA Rev-Exp Region 6'!$K$9, 0)","v":{"v":0,"d":"$0.00"}},{"$f":"IFERROR('MMA Rev-Exp Region 6'!$L$26/'MMA Rev-Exp Region 6'!$L$9, 0)","v":{"v":0,"d":"$0.00"}},{"$f":"IFERROR('MMA Rev-Exp Region 6'!$M$26/'MMA Rev-Exp Region 6'!$M$9, 0)","v":{"v":0,"d":"$0.00"}},{"$f":"IFERROR('MMA Rev-Exp Region 6'!$N$26/'MMA Rev-Exp Region 6'!$N$9, 0)","v":{"v":0,"d":"$0.00"}}]
["MMA",null,null,2016,"2016-12-31","Q1","2017-03-31","Region 6","Operating Expense","Medical Benefits Expense","Hospital Services","2.7.1","Transplant Services",{"$f":"IFERROR('MMA Rev-Exp Region 6'!$D$27/'MMA Rev-Exp Region 6'!$D$9, 0)","v":{"v":0,"d":"$0.00"}},{"$f":"IFERROR('MMA Rev-Exp Region 6'!$E$27/'MMA Rev-Exp Region 6'!$E$9, 0)","v":{"v":0,"d":"$0.00"}},{"$f":"IFERROR('MMA Rev-Exp Region 6'!$F$27/'MMA Rev-Exp Region 6'!$F$9, 0)","v":{"v":0,"d":"$0.00"}},{"$f":"IFERROR('MMA Rev-Exp Region 6'!$G$27/'MMA Rev-Exp Region 6'!$G$9, 0)","v":{"v":0,"d":"$0.00"}},{"$f":"IFERROR('MMA Rev-Exp Region 6'!$H$27/'MMA Rev-Exp Region 6'!$H$9, 0)","v":{"v":0,"d":"$0.00"}},{"$f":"IFERROR('MMA Rev-Exp Region 6'!$I$27/'MMA Rev-Exp Region 6'!$I$9, 0)","v":{"v":0,"d":"$0.00"}},{"$f":"IFERROR('MMA Rev-Exp Region 6'!$J$27/'MMA Rev-Exp Region 6'!$J$9, 0)","v":{"v":0,"d":"$0.00"}},{"$f":"IFERROR('MMA Rev-Exp Region 6'!$K$27/'MMA Rev-Exp Region 6'!$K$9, 0)","v":{"v":0,"d":"$0.00"}},{"$f":"IFERROR('MMA Rev-Exp Region 6'!$L$27/'MMA Rev-Exp Region 6'!$L$9, 0)","v":{"v":0,"d":"$0.00"}},{"$f":"IFERROR('MMA Rev-Exp Region 6'!$M$27/'MMA Rev-Exp Region 6'!$M$9, 0)","v":{"v":0,"d":"$0.00"}},{"$f":"IFERROR('MMA Rev-Exp Region 6'!$N$27/'MMA Rev-Exp Region 6'!$N$9, 0)","v":{"v":0,"d":"$0.00"}}]
["MMA",null,null,2016,"2016-12-31","Q1","2017-03-31","Region 6","Operating Expense","Medical Benefits Expense","Professional Services",3.1,"Primary Care FFS",{"$f":"IFERROR('MMA Rev-Exp Region 6'!$D$29/'MMA Rev-Exp Region 6'!$D$9, 0)","v":{"v":0,"d":"$0.00"}},{"$f":"IFERROR('MMA Rev-Exp Region 6'!$E$29/'MMA Rev-Exp Region 6'!$E$9, 0)","v":{"v":0,"d":"$0.00"}},{"$f":"IFERROR('MMA Rev-Exp Region 6'!$F$29/'MMA Rev-Exp Region 6'!$F$9, 0)","v":{"v":0,"d":"$0.00"}},{"$f":"IFERROR('MMA Rev-Exp Region 6'!$G$29/'MMA Rev-Exp Region 6'!$G$9, 0)","v":{"v":0,"d":"$0.00"}},{"$f":"IFERROR('MMA Rev-Exp Region 6'!$H$29/'MMA Rev-Exp Region 6'!$H$9, 0)","v":{"v":0,"d":"$0.00"}},{"$f":"IFERROR('MMA Rev-Exp Region 6'!$I$29/'MMA Rev-Exp Region 6'!$I$9, 0)","v":{"v":0,"d":"$0.00"}},{"$f":"IFERROR('MMA Rev-Exp Region 6'!$J$29/'MMA Rev-Exp Region 6'!$J$9, 0)","v":{"v":0,"d":"$0.00"}},{"$f":"IFERROR('MMA Rev-Exp Region 6'!$K$29/'MMA Rev-Exp Region 6'!$K$9, 0)","v":{"v":0,"d":"$0.00"}},{"$f":"IFERROR('MMA Rev-Exp Region 6'!$L$29/'MMA Rev-Exp Region 6'!$L$9, 0)","v":{"v":0,"d":"$0.00"}},{"$f":"IFERROR('MMA Rev-Exp Region 6'!$M$29/'MMA Rev-Exp Region 6'!$M$9, 0)","v":{"v":0,"d":"$0.00"}},{"$f":"IFERROR('MMA Rev-Exp Region 6'!$N$29/'MMA Rev-Exp Region 6'!$N$9, 0)","v":{"v":0,"d":"$0.00"}}]
["MMA",null,null,2016,"2016-12-31","Q1","2017-03-31","Region 6","Operating Expense","Medical Benefits Expense","Professional Services",3.2,"Specialty Care FFS",{"$f":"IFERROR('MMA Rev-Exp Region 6'!$D$30/'MMA Rev-Exp Region 6'!$D$9, 0)","v":{"v":0,"d":"$0.00"}},{"$f":"IFERROR('MMA Rev-Exp Region 6'!$E$30/'MMA Rev-Exp Region 6'!$E$9, 0)","v":{"v":0,"d":"$0.00"}},{"$f":"IFERROR('MMA Rev-Exp Region 6'!$F$30/'MMA Rev-Exp Region 6'!$F$9, 0)","v":{"v":0,"d":"$0.00"}},{"$f":"IFERROR('MMA Rev-Exp Region 6'!$G$30/'MMA Rev-Exp Region 6'!$G$9, 0)","v":{"v":0,"d":"$0.00"}},{"$f":"IFERROR('MMA Rev-Exp Region 6'!$H$30/'MMA Rev-Exp Region 6'!$H$9, 0)","v":{"v":0,"d":"$0.00"}},{"$f":"IFERROR('MMA Rev-Exp Region 6'!$I$30/'MMA Rev-Exp Region 6'!$I$9, 0)","v":{"v":0,"d":"$0.00"}},{"$f":"IFERROR('MMA Rev-Exp Region 6'!$J$30/'MMA Rev-Exp Region 6'!$J$9, 0)","v":{"v":0,"d":"$0.00"}},{"$f":"IFERROR('MMA Rev-Exp Region 6'!$K$30/'MMA Rev-Exp Region 6'!$K$9, 0)","v":{"v":0,"d":"$0.00"}},{"$f":"IFERROR('MMA Rev-Exp Region 6'!$L$30/'MMA Rev-Exp Region 6'!$L$9, 0)","v":{"v":0,"d":"$0.00"}},{"$f":"IFERROR('MMA Rev-Exp Region 6'!$M$30/'MMA Rev-Exp Region 6'!$M$9, 0)","v":{"v":0,"d":"$0.00"}},{"$f":"IFERROR('MMA Rev-Exp Region 6'!$N$30/'MMA Rev-Exp Region 6'!$N$9, 0)","v":{"v":0,"d":"$0.00"}}]
["MMA",null,null,2016,"2016-12-31","Q1","2017-03-31","Region 6","Operating Expense","Medical Benefits Expense","Professional Services",3.3,"Other Professional FFS",{"$f":"IFERROR('MMA Rev-Exp Region 6'!$D$31/'MMA Rev-Exp Region 6'!$D$9, 0)","v":{"v":0,"d":"$0.00"}},{"$f":"IFERROR('MMA Rev-Exp Region 6'!$E$31/'MMA Rev-Exp Region 6'!$E$9, 0)","v":{"v":0,"d":"$0.00"}},{"$f":"IFERROR('MMA Rev-Exp Region 6'!$F$31/'MMA Rev-Exp Region 6'!$F$9, 0)","v":{"v":0,"d":"$0.00"}},{"$f":"IFERROR('MMA Rev-Exp Region 6'!$G$31/'MMA Rev-Exp Region 6'!$G$9, 0)","v":{"v":0,"d":"$0.00"}},{"$f":"IFERROR('MMA Rev-Exp Region 6'!$H$31/'MMA Rev-Exp Region 6'!$H$9, 0)","v":{"v":0,"d":"$0.00"}},{"$f":"IFERROR('MMA Rev-Exp Region 6'!$I$31/'MMA Rev-Exp Region 6'!$I$9, 0)","v":{"v":0,"d":"$0.00"}},{"$f":"IFERROR('MMA Rev-Exp Region 6'!$J$31/'MMA Rev-Exp Region 6'!$J$9, 0)","v":{"v":0,"d":"$0.00"}},{"$f":"IFERROR('MMA Rev-Exp Region 6'!$K$31/'MMA Rev-Exp Region 6'!$K$9, 0)","v":{"v":0,"d":"$0.00"}},{"$f":"IFERROR('MMA Rev-Exp Region 6'!$L$31/'MMA Rev-Exp Region 6'!$L$9, 0)","v":{"v":0,"d":"$0.00"}},{"$f":"IFERROR('MMA Rev-Exp Region 6'!$M$31/'MMA Rev-Exp Region 6'!$M$9, 0)","v":{"v":0,"d":"$0.00"}},{"$f":"IFERROR('MMA Rev-Exp Region 6'!$N$31/'MMA Rev-Exp Region 6'!$N$9, 0)","v":{"v":0,"d":"$0.00"}}]
["MMA",null,null,2016,"2016-12-31","Q1","2017-03-31","Region 6","Operating Expense","Medical Benefits Expense","Professional Services","3.4","§ 1202 PCP Payments to providers",{"$f":"IFERROR('MMA Rev-Exp Region 6'!$D$32/'MMA Rev-Exp Region 6'!$D$9, 0)","v":{"v":0,"d":"$0.00"}},{"$f":"IFERROR('MMA Rev-Exp Region 6'!$E$32/'MMA Rev-Exp Region 6'!$E$9, 0)","v":{"v":0,"d":"$0.00"}},{"$f":"IFERROR('MMA Rev-Exp Region 6'!$F$32/'MMA Rev-Exp Region 6'!$F$9, 0)","v":{"v":0,"d":"$0.00"}},{"$f":"IFERROR('MMA Rev-Exp Region 6'!$G$32/'MMA Rev-Exp Region 6'!$G$9, 0)","v":{"v":0,"d":"$0.00"}},{"$f":"IFERROR('MMA Rev-Exp Region 6'!$H$32/'MMA Rev-Exp Region 6'!$H$9, 0)","v":{"v":0,"d":"$0.00"}},{"$f":"IFERROR('MMA Rev-Exp Region 6'!$I$32/'MMA Rev-Exp Region 6'!$I$9, 0)","v":{"v":0,"d":"$0.00"}},{"$f":"IFERROR('MMA Rev-Exp Region 6'!$J$32/'MMA Rev-Exp Region 6'!$J$9, 0)","v":{"v":0,"d":"$0.00"}},{"$f":"IFERROR('MMA Rev-Exp Region 6'!$K$32/'MMA Rev-Exp Region 6'!$K$9, 0)","v":{"v":0,"d":"$0.00"}},{"$f":"IFERROR('MMA Rev-Exp Region 6'!$L$32/'MMA Rev-Exp Region 6'!$L$9, 0)","v":{"v":0,"d":"$0.00"}},{"$f":"IFERROR('MMA Rev-Exp Region 6'!$M$32/'MMA Rev-Exp Region 6'!$M$9, 0)","v":{"v":0,"d":"$0.00"}},{"$f":"IFERROR('MMA Rev-Exp Region 6'!$N$32/'MMA Rev-Exp Region 6'!$N$9, 0)","v":{"v":0,"d":"$0.00"}}]
["MMA",null,null,2016,"2016-12-31","Q1","2017-03-31","Region 6","Operating Expense","Medical Benefits Expense","Professional Services","3.5","Subcapitated Professional Services",{"$f":"IFERROR('MMA Rev-Exp Region 6'!$D$33/'MMA Rev-Exp Region 6'!$D$9, 0)","v":{"v":0,"d":"$0.00"}},{"$f":"IFERROR('MMA Rev-Exp Region 6'!$E$33/'MMA Rev-Exp Region 6'!$E$9, 0)","v":{"v":0,"d":"$0.00"}},{"$f":"IFERROR('MMA Rev-Exp Region 6'!$F$33/'MMA Rev-Exp Region 6'!$F$9, 0)","v":{"v":0,"d":"$0.00"}},{"$f":"IFERROR('MMA Rev-Exp Region 6'!$G$33/'MMA Rev-Exp Region 6'!$G$9, 0)","v":{"v":0,"d":"$0.00"}},{"$f":"IFERROR('MMA Rev-Exp Region 6'!$H$33/'MMA Rev-Exp Region 6'!$H$9, 0)","v":{"v":0,"d":"$0.00"}},{"$f":"IFERROR('MMA Rev-Exp Region 6'!$I$33/'MMA Rev-Exp Region 6'!$I$9, 0)","v":{"v":0,"d":"$0.00"}},{"$f":"IFERROR('MMA Rev-Exp Region 6'!$J$33/'MMA Rev-Exp Region 6'!$J$9, 0)","v":{"v":0,"d":"$0.00"}},{"$f":"IFERROR('MMA Rev-Exp Region 6'!$K$33/'MMA Rev-Exp Region 6'!$K$9, 0)","v":{"v":0,"d":"$0.00"}},{"$f":"IFERROR('MMA Rev-Exp Region 6'!$L$33/'MMA Rev-Exp Region 6'!$L$9, 0)","v":{"v":0,"d":"$0.00"}},{"$f":"IFERROR('MMA Rev-Exp Region 6'!$M$33/'MMA Rev-Exp Region 6'!$M$9, 0)","v":{"v":0,"d":"$0.00"}},{"$f":"IFERROR('MMA Rev-Exp Region 6'!$N$33/'MMA Rev-Exp Region 6'!$N$9, 0)","v":{"v":0,"d":"$0.00"}}]
["MMA",null,null,2016,"2016-12-31","Q1","2017-03-31","Region 6","Operating Expense","Medical Benefits Expense","Professional Services","3.6","Ending IBNP for Professional Services",{"$f":"IFERROR('MMA Rev-Exp Region 6'!$D$34/'MMA Rev-Exp Region 6'!$D$9, 0)","v":{"v":0,"d":"$0.00"}},{"$f":"IFERROR('MMA Rev-Exp Region 6'!$E$34/'MMA Rev-Exp Region 6'!$E$9, 0)","v":{"v":0,"d":"$0.00"}},{"$f":"IFERROR('MMA Rev-Exp Region 6'!$F$34/'MMA Rev-Exp Region 6'!$F$9, 0)","v":{"v":0,"d":"$0.00"}},{"$f":"IFERROR('MMA Rev-Exp Region 6'!$G$34/'MMA Rev-Exp Region 6'!$G$9, 0)","v":{"v":0,"d":"$0.00"}},{"$f":"IFERROR('MMA Rev-Exp Region 6'!$H$34/'MMA Rev-Exp Region 6'!$H$9, 0)","v":{"v":0,"d":"$0.00"}},{"$f":"IFERROR('MMA Rev-Exp Region 6'!$I$34/'MMA Rev-Exp Region 6'!$I$9, 0)","v":{"v":0,"d":"$0.00"}},{"$f":"IFERROR('MMA Rev-Exp Region 6'!$J$34/'MMA Rev-Exp Region 6'!$J$9, 0)","v":{"v":0,"d":"$0.00"}},{"$f":"IFERROR('MMA Rev-Exp Region 6'!$K$34/'MMA Rev-Exp Region 6'!$K$9, 0)","v":{"v":0,"d":"$0.00"}},{"$f":"IFERROR('MMA Rev-Exp Region 6'!$L$34/'MMA Rev-Exp Region 6'!$L$9, 0)","v":{"v":0,"d":"$0.00"}},{"$f":"IFERROR('MMA Rev-Exp Region 6'!$M$34/'MMA Rev-Exp Region 6'!$M$9, 0)","v":{"v":0,"d":"$0.00"}},{"$f":"IFERROR('MMA Rev-Exp Region 6'!$N$34/'MMA Rev-Exp Region 6'!$N$9, 0)","v":{"v":0,"d":"$0.00"}}]
["MMA",null,null,2016,"2016-12-31","Q1","2017-03-31","Region 6","Operating Expense","Medical Benefits Expense","Professional Services","3.7","Professional Services Settlements",{"$f":"IFERROR('MMA Rev-Exp Region 6'!$D$35/'MMA Rev-Exp Region 6'!$D$9, 0)","v":{"v":0,"d":"$0.00"}},{"$f":"IFERROR('MMA Rev-Exp Region 6'!$E$35/'MMA Rev-Exp Region 6'!$E$9, 0)","v":{"v":0,"d":"$0.00"}},{"$f":"IFERROR('MMA Rev-Exp Region 6'!$F$35/'MMA Rev-Exp Region 6'!$F$9, 0)","v":{"v":0,"d":"$0.00"}},{"$f":"IFERROR('MMA Rev-Exp Region 6'!$G$35/'MMA Rev-Exp Region 6'!$G$9, 0)","v":{"v":0,"d":"$0.00"}},{"$f":"IFERROR('MMA Rev-Exp Region 6'!$H$35/'MMA Rev-Exp Region 6'!$H$9, 0)","v":{"v":0,"d":"$0.00"}},{"$f":"IFERROR('MMA Rev-Exp Region 6'!$I$35/'MMA Rev-Exp Region 6'!$I$9, 0)","v":{"v":0,"d":"$0.00"}},{"$f":"IFERROR('MMA Rev-Exp Region 6'!$J$35/'MMA Rev-Exp Region 6'!$J$9, 0)","v":{"v":0,"d":"$0.00"}},{"$f":"IFERROR('MMA Rev-Exp Region 6'!$K$35/'MMA Rev-Exp Region 6'!$K$9, 0)","v":{"v":0,"d":"$0.00"}},{"$f":"IFERROR('MMA Rev-Exp Region 6'!$L$35/'MMA Rev-Exp Region 6'!$L$9, 0)","v":{"v":0,"d":"$0.00"}},{"$f":"IFERROR('MMA Rev-Exp Region 6'!$M$35/'MMA Rev-Exp Region 6'!$M$9, 0)","v":{"v":0,"d":"$0.00"}},{"$f":"IFERROR('MMA Rev-Exp Region 6'!$N$35/'MMA Rev-Exp Region 6'!$N$9, 0)","v":{"v":0,"d":"$0.00"}}]
["MMA",null,null,2016,"2016-12-31","Q1","2017-03-31","Region 6","Operating Expense","Medical Benefits Expense","Maternity Services","4.1.1","Maternity Services",{"$f":"IFERROR('MMA Rev-Exp Region 6'!$D$37/'MMA Rev-Exp Region 6'!$D$9, 0)","v":{"v":0,"d":"$0.00"}},{"$f":"IFERROR('MMA Rev-Exp Region 6'!$E$37/'MMA Rev-Exp Region 6'!$E$9, 0)","v":{"v":0,"d":"$0.00"}},{"$f":"IFERROR('MMA Rev-Exp Region 6'!$F$37/'MMA Rev-Exp Region 6'!$F$9, 0)","v":{"v":0,"d":"$0.00"}},{"$f":"IFERROR('MMA Rev-Exp Region 6'!$G$37/'MMA Rev-Exp Region 6'!$G$9, 0)","v":{"v":0,"d":"$0.00"}},{"$f":"IFERROR('MMA Rev-Exp Region 6'!$H$37/'MMA Rev-Exp Region 6'!$H$9, 0)","v":{"v":0,"d":"$0.00"}},{"$f":"IFERROR('MMA Rev-Exp Region 6'!$I$37/'MMA Rev-Exp Region 6'!$I$9, 0)","v":{"v":0,"d":"$0.00"}},{"$f":"IFERROR('MMA Rev-Exp Region 6'!$J$37/'MMA Rev-Exp Region 6'!$J$9, 0)","v":{"v":0,"d":"$0.00"}},{"$f":"IFERROR('MMA Rev-Exp Region 6'!$K$37/'MMA Rev-Exp Region 6'!$K$9, 0)","v":{"v":0,"d":"$0.00"}},{"$f":"IFERROR('MMA Rev-Exp Region 6'!$L$37/'MMA Rev-Exp Region 6'!$L$9, 0)","v":{"v":0,"d":"$0.00"}},{"$f":"IFERROR('MMA Rev-Exp Region 6'!$M$37/'MMA Rev-Exp Region 6'!$M$9, 0)","v":{"v":0,"d":"$0.00"}},{"$f":"IFERROR('MMA Rev-Exp Region 6'!$N$37/'MMA Rev-Exp Region 6'!$N$9, 0)","v":{"v":0,"d":"$0.00"}}]
["MMA",null,null,2016,"2016-12-31","Q1","2017-03-31","Region 6","Operating Expense","Medical Benefits Expense","Maternity Services","4.2.1","Ending IBNP for Maternity Services",{"$f":"IFERROR('MMA Rev-Exp Region 6'!$D$38/'MMA Rev-Exp Region 6'!$D$9, 0)","v":{"v":0,"d":"$0.00"}},{"$f":"IFERROR('MMA Rev-Exp Region 6'!$E$38/'MMA Rev-Exp Region 6'!$E$9, 0)","v":{"v":0,"d":"$0.00"}},{"$f":"IFERROR('MMA Rev-Exp Region 6'!$F$38/'MMA Rev-Exp Region 6'!$F$9, 0)","v":{"v":0,"d":"$0.00"}},{"$f":"IFERROR('MMA Rev-Exp Region 6'!$G$38/'MMA Rev-Exp Region 6'!$G$9, 0)","v":{"v":0,"d":"$0.00"}},{"$f":"IFERROR('MMA Rev-Exp Region 6'!$H$38/'MMA Rev-Exp Region 6'!$H$9, 0)","v":{"v":0,"d":"$0.00"}},{"$f":"IFERROR('MMA Rev-Exp Region 6'!$I$38/'MMA Rev-Exp Region 6'!$I$9, 0)","v":{"v":0,"d":"$0.00"}},{"$f":"IFERROR('MMA Rev-Exp Region 6'!$J$38/'MMA Rev-Exp Region 6'!$J$9, 0)","v":{"v":0,"d":"$0.00"}},{"$f":"IFERROR('MMA Rev-Exp Region 6'!$K$38/'MMA Rev-Exp Region 6'!$K$9, 0)","v":{"v":0,"d":"$0.00"}},{"$f":"IFERROR('MMA Rev-Exp Region 6'!$L$38/'MMA Rev-Exp Region 6'!$L$9, 0)","v":{"v":0,"d":"$0.00"}},{"$f":"IFERROR('MMA Rev-Exp Region 6'!$M$38/'MMA Rev-Exp Region 6'!$M$9, 0)","v":{"v":0,"d":"$0.00"}},{"$f":"IFERROR('MMA Rev-Exp Region 6'!$N$38/'MMA Rev-Exp Region 6'!$N$9, 0)","v":{"v":0,"d":"$0.00"}}]
["MMA",null,null,2016,"2016-12-31","Q1","2017-03-31","Region 6","Operating Expense","Medical Benefits Expense","Maternity Services","4.3.1","Maternity Settlements",{"$f":"IFERROR('MMA Rev-Exp Region 6'!$D$39/'MMA Rev-Exp Region 6'!$D$9, 0)","v":{"v":0,"d":"$0.00"}},{"$f":"IFERROR('MMA Rev-Exp Region 6'!$E$39/'MMA Rev-Exp Region 6'!$E$9, 0)","v":{"v":0,"d":"$0.00"}},{"$f":"IFERROR('MMA Rev-Exp Region 6'!$F$39/'MMA Rev-Exp Region 6'!$F$9, 0)","v":{"v":0,"d":"$0.00"}},{"$f":"IFERROR('MMA Rev-Exp Region 6'!$G$39/'MMA Rev-Exp Region 6'!$G$9, 0)","v":{"v":0,"d":"$0.00"}},{"$f":"IFERROR('MMA Rev-Exp Region 6'!$H$39/'MMA Rev-Exp Region 6'!$H$9, 0)","v":{"v":0,"d":"$0.00"}},{"$f":"IFERROR('MMA Rev-Exp Region 6'!$I$39/'MMA Rev-Exp Region 6'!$I$9, 0)","v":{"v":0,"d":"$0.00"}},{"$f":"IFERROR('MMA Rev-Exp Region 6'!$J$39/'MMA Rev-Exp Region 6'!$J$9, 0)","v":{"v":0,"d":"$0.00"}},{"$f":"IFERROR('MMA Rev-Exp Region 6'!$K$39/'MMA Rev-Exp Region 6'!$K$9, 0)","v":{"v":0,"d":"$0.00"}},{"$f":"IFERROR('MMA Rev-Exp Region 6'!$L$39/'MMA Rev-Exp Region 6'!$L$9, 0)","v":{"v":0,"d":"$0.00"}},{"$f":"IFERROR('MMA Rev-Exp Region 6'!$M$39/'MMA Rev-Exp Region 6'!$M$9, 0)","v":{"v":0,"d":"$0.00"}},{"$f":"IFERROR('MMA Rev-Exp Region 6'!$N$39/'MMA Rev-Exp Region 6'!$N$9, 0)","v":{"v":0,"d":"$0.00"}}]
["MMA",null,null,2016,"2016-12-31","Q1","2017-03-31","Region 6","Operating Expense","Medical Benefits Expense","Mental Health Services",5.1,"Mental Health & Substance Abuse FFS",{"$f":"IFERROR('MMA Rev-Exp Region 6'!$D$41/'MMA Rev-Exp Region 6'!$D$9, 0)","v":{"v":0,"d":"$0.00"}},{"$f":"IFERROR('MMA Rev-Exp Region 6'!$E$41/'MMA Rev-Exp Region 6'!$E$9, 0)","v":{"v":0,"d":"$0.00"}},{"$f":"IFERROR('MMA Rev-Exp Region 6'!$F$41/'MMA Rev-Exp Region 6'!$F$9, 0)","v":{"v":0,"d":"$0.00"}},{"$f":"IFERROR('MMA Rev-Exp Region 6'!$G$41/'MMA Rev-Exp Region 6'!$G$9, 0)","v":{"v":0,"d":"$0.00"}},{"$f":"IFERROR('MMA Rev-Exp Region 6'!$H$41/'MMA Rev-Exp Region 6'!$H$9, 0)","v":{"v":0,"d":"$0.00"}},{"$f":"IFERROR('MMA Rev-Exp Region 6'!$I$41/'MMA Rev-Exp Region 6'!$I$9, 0)","v":{"v":0,"d":"$0.00"}},{"$f":"IFERROR('MMA Rev-Exp Region 6'!$J$41/'MMA Rev-Exp Region 6'!$J$9, 0)","v":{"v":0,"d":"$0.00"}},{"$f":"IFERROR('MMA Rev-Exp Region 6'!$K$41/'MMA Rev-Exp Region 6'!$K$9, 0)","v":{"v":0,"d":"$0.00"}},{"$f":"IFERROR('MMA Rev-Exp Region 6'!$L$41/'MMA Rev-Exp Region 6'!$L$9, 0)","v":{"v":0,"d":"$0.00"}},{"$f":"IFERROR('MMA Rev-Exp Region 6'!$M$41/'MMA Rev-Exp Region 6'!$M$9, 0)","v":{"v":0,"d":"$0.00"}},{"$f":"IFERROR('MMA Rev-Exp Region 6'!$N$41/'MMA Rev-Exp Region 6'!$N$9, 0)","v":{"v":0,"d":"$0.00"}}]
["MMA",null,null,2016,"2016-12-31","Q1","2017-03-31","Region 6","Operating Expense","Medical Benefits Expense","Mental Health Services",5.2,"Mental Health & Substance Abuse Subcapitation",{"$f":"IFERROR('MMA Rev-Exp Region 6'!$D$42/'MMA Rev-Exp Region 6'!$D$9, 0)","v":{"v":0,"d":"$0.00"}},{"$f":"IFERROR('MMA Rev-Exp Region 6'!$E$42/'MMA Rev-Exp Region 6'!$E$9, 0)","v":{"v":0,"d":"$0.00"}},{"$f":"IFERROR('MMA Rev-Exp Region 6'!$F$42/'MMA Rev-Exp Region 6'!$F$9, 0)","v":{"v":0,"d":"$0.00"}},{"$f":"IFERROR('MMA Rev-Exp Region 6'!$G$42/'MMA Rev-Exp Region 6'!$G$9, 0)","v":{"v":0,"d":"$0.00"}},{"$f":"IFERROR('MMA Rev-Exp Region 6'!$H$42/'MMA Rev-Exp Region 6'!$H$9, 0)","v":{"v":0,"d":"$0.00"}},{"$f":"IFERROR('MMA Rev-Exp Region 6'!$I$42/'MMA Rev-Exp Region 6'!$I$9, 0)","v":{"v":0,"d":"$0.00"}},{"$f":"IFERROR('MMA Rev-Exp Region 6'!$J$42/'MMA Rev-Exp Region 6'!$J$9, 0)","v":{"v":0,"d":"$0.00"}},{"$f":"IFERROR('MMA Rev-Exp Region 6'!$K$42/'MMA Rev-Exp Region 6'!$K$9, 0)","v":{"v":0,"d":"$0.00"}},{"$f":"IFERROR('MMA Rev-Exp Region 6'!$L$42/'MMA Rev-Exp Region 6'!$L$9, 0)","v":{"v":0,"d":"$0.00"}},{"$f":"IFERROR('MMA Rev-Exp Region 6'!$M$42/'MMA Rev-Exp Region 6'!$M$9, 0)","v":{"v":0,"d":"$0.00"}},{"$f":"IFERROR('MMA Rev-Exp Region 6'!$N$42/'MMA Rev-Exp Region 6'!$N$9, 0)","v":{"v":0,"d":"$0.00"}}]
["MMA",null,null,2016,"2016-12-31","Q1","2017-03-31","Region 6","Operating Expense","Medical Benefits Expense","Mental Health Services",5.3,"Ending IBNP for Mental Health & Substance Abuse",{"$f":"IFERROR('MMA Rev-Exp Region 6'!$D$43/'MMA Rev-Exp Region 6'!$D$9, 0)","v":{"v":0,"d":"$0.00"}},{"$f":"IFERROR('MMA Rev-Exp Region 6'!$E$43/'MMA Rev-Exp Region 6'!$E$9, 0)","v":{"v":0,"d":"$0.00"}},{"$f":"IFERROR('MMA Rev-Exp Region 6'!$F$43/'MMA Rev-Exp Region 6'!$F$9, 0)","v":{"v":0,"d":"$0.00"}},{"$f":"IFERROR('MMA Rev-Exp Region 6'!$G$43/'MMA Rev-Exp Region 6'!$G$9, 0)","v":{"v":0,"d":"$0.00"}},{"$f":"IFERROR('MMA Rev-Exp Region 6'!$H$43/'MMA Rev-Exp Region 6'!$H$9, 0)","v":{"v":0,"d":"$0.00"}},{"$f":"IFERROR('MMA Rev-Exp Region 6'!$I$43/'MMA Rev-Exp Region 6'!$I$9, 0)","v":{"v":0,"d":"$0.00"}},{"$f":"IFERROR('MMA Rev-Exp Region 6'!$J$43/'MMA Rev-Exp Region 6'!$J$9, 0)","v":{"v":0,"d":"$0.00"}},{"$f":"IFERROR('MMA Rev-Exp Region 6'!$K$43/'MMA Rev-Exp Region 6'!$K$9, 0)","v":{"v":0,"d":"$0.00"}},{"$f":"IFERROR('MMA Rev-Exp Region 6'!$L$43/'MMA Rev-Exp Region 6'!$L$9, 0)","v":{"v":0,"d":"$0.00"}},{"$f":"IFERROR('MMA Rev-Exp Region 6'!$M$43/'MMA Rev-Exp Region 6'!$M$9, 0)","v":{"v":0,"d":"$0.00"}},{"$f":"IFERROR('MMA Rev-Exp Region 6'!$N$43/'MMA Rev-Exp Region 6'!$N$9, 0)","v":{"v":0,"d":"$0.00"}}]
["MMA",null,null,2016,"2016-12-31","Q1","2017-03-31","Region 6","Operating Expense","Medical Benefits Expense","Mental Health Services","5.4","Mental Health Settlements",{"$f":"IFERROR('MMA Rev-Exp Region 6'!$D$44/'MMA Rev-Exp Region 6'!$D$9, 0)","v":{"v":0,"d":"$0.00"}},{"$f":"IFERROR('MMA Rev-Exp Region 6'!$E$44/'MMA Rev-Exp Region 6'!$E$9, 0)","v":{"v":0,"d":"$0.00"}},{"$f":"IFERROR('MMA Rev-Exp Region 6'!$F$44/'MMA Rev-Exp Region 6'!$F$9, 0)","v":{"v":0,"d":"$0.00"}},{"$f":"IFERROR('MMA Rev-Exp Region 6'!$G$44/'MMA Rev-Exp Region 6'!$G$9, 0)","v":{"v":0,"d":"$0.00"}},{"$f":"IFERROR('MMA Rev-Exp Region 6'!$H$44/'MMA Rev-Exp Region 6'!$H$9, 0)","v":{"v":0,"d":"$0.00"}},{"$f":"IFERROR('MMA Rev-Exp Region 6'!$I$44/'MMA Rev-Exp Region 6'!$I$9, 0)","v":{"v":0,"d":"$0.00"}},{"$f":"IFERROR('MMA Rev-Exp Region 6'!$J$44/'MMA Rev-Exp Region 6'!$J$9, 0)","v":{"v":0,"d":"$0.00"}},{"$f":"IFERROR('MMA Rev-Exp Region 6'!$K$44/'MMA Rev-Exp Region 6'!$K$9, 0)","v":{"v":0,"d":"$0.00"}},{"$f":"IFERROR('MMA Rev-Exp Region 6'!$L$44/'MMA Rev-Exp Region 6'!$L$9, 0)","v":{"v":0,"d":"$0.00"}},{"$f":"IFERROR('MMA Rev-Exp Region 6'!$M$44/'MMA Rev-Exp Region 6'!$M$9, 0)","v":{"v":0,"d":"$0.00"}},{"$f":"IFERROR('MMA Rev-Exp Region 6'!$N$44/'MMA Rev-Exp Region 6'!$N$9, 0)","v":{"v":0,"d":"$0.00"}}]
["MMA",null,null,2016,"2016-12-31","Q1","2017-03-31","Region 6","Operating Expense","Medical Benefits Expense","Dental Services",6.1,"Dental FFS",{"$f":"IFERROR('MMA Rev-Exp Region 6'!$D$46/'MMA Rev-Exp Region 6'!$D$9, 0)","v":{"v":0,"d":"$0.00"}},{"$f":"IFERROR('MMA Rev-Exp Region 6'!$E$46/'MMA Rev-Exp Region 6'!$E$9, 0)","v":{"v":0,"d":"$0.00"}},{"$f":"IFERROR('MMA Rev-Exp Region 6'!$F$46/'MMA Rev-Exp Region 6'!$F$9, 0)","v":{"v":0,"d":"$0.00"}},{"$f":"IFERROR('MMA Rev-Exp Region 6'!$G$46/'MMA Rev-Exp Region 6'!$G$9, 0)","v":{"v":0,"d":"$0.00"}},{"$f":"IFERROR('MMA Rev-Exp Region 6'!$H$46/'MMA Rev-Exp Region 6'!$H$9, 0)","v":{"v":0,"d":"$0.00"}},{"$f":"IFERROR('MMA Rev-Exp Region 6'!$I$46/'MMA Rev-Exp Region 6'!$I$9, 0)","v":{"v":0,"d":"$0.00"}},{"$f":"IFERROR('MMA Rev-Exp Region 6'!$J$46/'MMA Rev-Exp Region 6'!$J$9, 0)","v":{"v":0,"d":"$0.00"}},{"$f":"IFERROR('MMA Rev-Exp Region 6'!$K$46/'MMA Rev-Exp Region 6'!$K$9, 0)","v":{"v":0,"d":"$0.00"}},{"$f":"IFERROR('MMA Rev-Exp Region 6'!$L$46/'MMA Rev-Exp Region 6'!$L$9, 0)","v":{"v":0,"d":"$0.00"}},{"$f":"IFERROR('MMA Rev-Exp Region 6'!$M$46/'MMA Rev-Exp Region 6'!$M$9, 0)","v":{"v":0,"d":"$0.00"}},{"$f":"IFERROR('MMA Rev-Exp Region 6'!$N$46/'MMA Rev-Exp Region 6'!$N$9, 0)","v":{"v":0,"d":"$0.00"}}]
["MMA",null,null,2016,"2016-12-31","Q1","2017-03-31","Region 6","Operating Expense","Medical Benefits Expense","Dental Services",6.2,"Dental Subcapitation",{"$f":"IFERROR('MMA Rev-Exp Region 6'!$D$47/'MMA Rev-Exp Region 6'!$D$9, 0)","v":{"v":0,"d":"$0.00"}},{"$f":"IFERROR('MMA Rev-Exp Region 6'!$E$47/'MMA Rev-Exp Region 6'!$E$9, 0)","v":{"v":0,"d":"$0.00"}},{"$f":"IFERROR('MMA Rev-Exp Region 6'!$F$47/'MMA Rev-Exp Region 6'!$F$9, 0)","v":{"v":0,"d":"$0.00"}},{"$f":"IFERROR('MMA Rev-Exp Region 6'!$G$47/'MMA Rev-Exp Region 6'!$G$9, 0)","v":{"v":0,"d":"$0.00"}},{"$f":"IFERROR('MMA Rev-Exp Region 6'!$H$47/'MMA Rev-Exp Region 6'!$H$9, 0)","v":{"v":0,"d":"$0.00"}},{"$f":"IFERROR('MMA Rev-Exp Region 6'!$I$47/'MMA Rev-Exp Region 6'!$I$9, 0)","v":{"v":0,"d":"$0.00"}},{"$f":"IFERROR('MMA Rev-Exp Region 6'!$J$47/'MMA Rev-Exp Region 6'!$J$9, 0)","v":{"v":0,"d":"$0.00"}},{"$f":"IFERROR('MMA Rev-Exp Region 6'!$K$47/'MMA Rev-Exp Region 6'!$K$9, 0)","v":{"v":0,"d":"$0.00"}},{"$f":"IFERROR('MMA Rev-Exp Region 6'!$L$47/'MMA Rev-Exp Region 6'!$L$9, 0)","v":{"v":0,"d":"$0.00"}},{"$f":"IFERROR('MMA Rev-Exp Region 6'!$M$47/'MMA Rev-Exp Region 6'!$M$9, 0)","v":{"v":0,"d":"$0.00"}},{"$f":"IFERROR('MMA Rev-Exp Region 6'!$N$47/'MMA Rev-Exp Region 6'!$N$9, 0)","v":{"v":0,"d":"$0.00"}}]
["MMA",null,null,2016,"2016-12-31","Q1","2017-03-31","Region 6","Operating Expense","Medical Benefits Expense","Dental Services",6.3,"Ending IBNP for Dental Services",{"$f":"IFERROR('MMA Rev-Exp Region 6'!$D$48/'MMA Rev-Exp Region 6'!$D$9, 0)","v":{"v":0,"d":"$0.00"}},{"$f":"IFERROR('MMA Rev-Exp Region 6'!$E$48/'MMA Rev-Exp Region 6'!$E$9, 0)","v":{"v":0,"d":"$0.00"}},{"$f":"IFERROR('MMA Rev-Exp Region 6'!$F$48/'MMA Rev-Exp Region 6'!$F$9, 0)","v":{"v":0,"d":"$0.00"}},{"$f":"IFERROR('MMA Rev-Exp Region 6'!$G$48/'MMA Rev-Exp Region 6'!$G$9, 0)","v":{"v":0,"d":"$0.00"}},{"$f":"IFERROR('MMA Rev-Exp Region 6'!$H$48/'MMA Rev-Exp Region 6'!$H$9, 0)","v":{"v":0,"d":"$0.00"}},{"$f":"IFERROR('MMA Rev-Exp Region 6'!$I$48/'MMA Rev-Exp Region 6'!$I$9, 0)","v":{"v":0,"d":"$0.00"}},{"$f":"IFERROR('MMA Rev-Exp Region 6'!$J$48/'MMA Rev-Exp Region 6'!$J$9, 0)","v":{"v":0,"d":"$0.00"}},{"$f":"IFERROR('MMA Rev-Exp Region 6'!$K$48/'MMA Rev-Exp Region 6'!$K$9, 0)","v":{"v":0,"d":"$0.00"}},{"$f":"IFERROR('MMA Rev-Exp Region 6'!$L$48/'MMA Rev-Exp Region 6'!$L$9, 0)","v":{"v":0,"d":"$0.00"}},{"$f":"IFERROR('MMA Rev-Exp Region 6'!$M$48/'MMA Rev-Exp Region 6'!$M$9, 0)","v":{"v":0,"d":"$0.00"}},{"$f":"IFERROR('MMA Rev-Exp Region 6'!$N$48/'MMA Rev-Exp Region 6'!$N$9, 0)","v":{"v":0,"d":"$0.00"}}]
["MMA",null,null,2016,"2016-12-31","Q1","2017-03-31","Region 6","Operating Expense","Medical Benefits Expense","Dental Services","6.4","Dental Settlements",{"$f":"IFERROR('MMA Rev-Exp Region 6'!$D$49/'MMA Rev-Exp Region 6'!$D$9, 0)","v":{"v":0,"d":"$0.00"}},{"$f":"IFERROR('MMA Rev-Exp Region 6'!$E$49/'MMA Rev-Exp Region 6'!$E$9, 0)","v":{"v":0,"d":"$0.00"}},{"$f":"IFERROR('MMA Rev-Exp Region 6'!$F$49/'MMA Rev-Exp Region 6'!$F$9, 0)","v":{"v":0,"d":"$0.00"}},{"$f":"IFERROR('MMA Rev-Exp Region 6'!$G$49/'MMA Rev-Exp Region 6'!$G$9, 0)","v":{"v":0,"d":"$0.00"}},{"$f":"IFERROR('MMA Rev-Exp Region 6'!$H$49/'MMA Rev-Exp Region 6'!$H$9, 0)","v":{"v":0,"d":"$0.00"}},{"$f":"IFERROR('MMA Rev-Exp Region 6'!$I$49/'MMA Rev-Exp Region 6'!$I$9, 0)","v":{"v":0,"d":"$0.00"}},{"$f":"IFERROR('MMA Rev-Exp Region 6'!$J$49/'MMA Rev-Exp Region 6'!$J$9, 0)","v":{"v":0,"d":"$0.00"}},{"$f":"IFERROR('MMA Rev-Exp Region 6'!$K$49/'MMA Rev-Exp Region 6'!$K$9, 0)","v":{"v":0,"d":"$0.00"}},{"$f":"IFERROR('MMA Rev-Exp Region 6'!$L$49/'MMA Rev-Exp Region 6'!$L$9, 0)","v":{"v":0,"d":"$0.00"}},{"$f":"IFERROR('MMA Rev-Exp Region 6'!$M$49/'MMA Rev-Exp Region 6'!$M$9, 0)","v":{"v":0,"d":"$0.00"}},{"$f":"IFERROR('MMA Rev-Exp Region 6'!$N$49/'MMA Rev-Exp Region 6'!$N$9, 0)","v":{"v":0,"d":"$0.00"}}]
["MMA",null,null,2016,"2016-12-31","Q1","2017-03-31","Region 6","Operating Expense","Medical Benefits Expense","Transportation Services",7.1,"Transportation FFS",{"$f":"IFERROR('MMA Rev-Exp Region 6'!$D$51/'MMA Rev-Exp Region 6'!$D$9, 0)","v":{"v":0,"d":"$0.00"}},{"$f":"IFERROR('MMA Rev-Exp Region 6'!$E$51/'MMA Rev-Exp Region 6'!$E$9, 0)","v":{"v":0,"d":"$0.00"}},{"$f":"IFERROR('MMA Rev-Exp Region 6'!$F$51/'MMA Rev-Exp Region 6'!$F$9, 0)","v":{"v":0,"d":"$0.00"}},{"$f":"IFERROR('MMA Rev-Exp Region 6'!$G$51/'MMA Rev-Exp Region 6'!$G$9, 0)","v":{"v":0,"d":"$0.00"}},{"$f":"IFERROR('MMA Rev-Exp Region 6'!$H$51/'MMA Rev-Exp Region 6'!$H$9, 0)","v":{"v":0,"d":"$0.00"}},{"$f":"IFERROR('MMA Rev-Exp Region 6'!$I$51/'MMA Rev-Exp Region 6'!$I$9, 0)","v":{"v":0,"d":"$0.00"}},{"$f":"IFERROR('MMA Rev-Exp Region 6'!$J$51/'MMA Rev-Exp Region 6'!$J$9, 0)","v":{"v":0,"d":"$0.00"}},{"$f":"IFERROR('MMA Rev-Exp Region 6'!$K$51/'MMA Rev-Exp Region 6'!$K$9, 0)","v":{"v":0,"d":"$0.00"}},{"$f":"IFERROR('MMA Rev-Exp Region 6'!$L$51/'MMA Rev-Exp Region 6'!$L$9, 0)","v":{"v":0,"d":"$0.00"}},{"$f":"IFERROR('MMA Rev-Exp Region 6'!$M$51/'MMA Rev-Exp Region 6'!$M$9, 0)","v":{"v":0,"d":"$0.00"}},{"$f":"IFERROR('MMA Rev-Exp Region 6'!$N$51/'MMA Rev-Exp Region 6'!$N$9, 0)","v":{"v":0,"d":"$0.00"}}]
["MMA",null,null,2016,"2016-12-31","Q1","2017-03-31","Region 6","Operating Expense","Medical Benefits Expense","Transportation Services",7.2,"Transportation Subcapitation",{"$f":"IFERROR('MMA Rev-Exp Region 6'!$D$52/'MMA Rev-Exp Region 6'!$D$9, 0)","v":{"v":0,"d":"$0.00"}},{"$f":"IFERROR('MMA Rev-Exp Region 6'!$E$52/'MMA Rev-Exp Region 6'!$E$9, 0)","v":{"v":0,"d":"$0.00"}},{"$f":"IFERROR('MMA Rev-Exp Region 6'!$F$52/'MMA Rev-Exp Region 6'!$F$9, 0)","v":{"v":0,"d":"$0.00"}},{"$f":"IFERROR('MMA Rev-Exp Region 6'!$G$52/'MMA Rev-Exp Region 6'!$G$9, 0)","v":{"v":0,"d":"$0.00"}},{"$f":"IFERROR('MMA Rev-Exp Region 6'!$H$52/'MMA Rev-Exp Region 6'!$H$9, 0)","v":{"v":0,"d":"$0.00"}},{"$f":"IFERROR('MMA Rev-Exp Region 6'!$I$52/'MMA Rev-Exp Region 6'!$I$9, 0)","v":{"v":0,"d":"$0.00"}},{"$f":"IFERROR('MMA Rev-Exp Region 6'!$J$52/'MMA Rev-Exp Region 6'!$J$9, 0)","v":{"v":0,"d":"$0.00"}},{"$f":"IFERROR('MMA Rev-Exp Region 6'!$K$52/'MMA Rev-Exp Region 6'!$K$9, 0)","v":{"v":0,"d":"$0.00"}},{"$f":"IFERROR('MMA Rev-Exp Region 6'!$L$52/'MMA Rev-Exp Region 6'!$L$9, 0)","v":{"v":0,"d":"$0.00"}},{"$f":"IFERROR('MMA Rev-Exp Region 6'!$M$52/'MMA Rev-Exp Region 6'!$M$9, 0)","v":{"v":0,"d":"$0.00"}},{"$f":"IFERROR('MMA Rev-Exp Region 6'!$N$52/'MMA Rev-Exp Region 6'!$N$9, 0)","v":{"v":0,"d":"$0.00"}}]
["MMA",null,null,2016,"2016-12-31","Q1","2017-03-31","Region 6","Operating Expense","Medical Benefits Expense","Transportation Services",7.3,"Ending IBNP for Transportation",{"$f":"IFERROR('MMA Rev-Exp Region 6'!$D$53/'MMA Rev-Exp Region 6'!$D$9, 0)","v":{"v":0,"d":"$0.00"}},{"$f":"IFERROR('MMA Rev-Exp Region 6'!$E$53/'MMA Rev-Exp Region 6'!$E$9, 0)","v":{"v":0,"d":"$0.00"}},{"$f":"IFERROR('MMA Rev-Exp Region 6'!$F$53/'MMA Rev-Exp Region 6'!$F$9, 0)","v":{"v":0,"d":"$0.00"}},{"$f":"IFERROR('MMA Rev-Exp Region 6'!$G$53/'MMA Rev-Exp Region 6'!$G$9, 0)","v":{"v":0,"d":"$0.00"}},{"$f":"IFERROR('MMA Rev-Exp Region 6'!$H$53/'MMA Rev-Exp Region 6'!$H$9, 0)","v":{"v":0,"d":"$0.00"}},{"$f":"IFERROR('MMA Rev-Exp Region 6'!$I$53/'MMA Rev-Exp Region 6'!$I$9, 0)","v":{"v":0,"d":"$0.00"}},{"$f":"IFERROR('MMA Rev-Exp Region 6'!$J$53/'MMA Rev-Exp Region 6'!$J$9, 0)","v":{"v":0,"d":"$0.00"}},{"$f":"IFERROR('MMA Rev-Exp Region 6'!$K$53/'MMA Rev-Exp Region 6'!$K$9, 0)","v":{"v":0,"d":"$0.00"}},{"$f":"IFERROR('MMA Rev-Exp Region 6'!$L$53/'MMA Rev-Exp Region 6'!$L$9, 0)","v":{"v":0,"d":"$0.00"}},{"$f":"IFERROR('MMA Rev-Exp Region 6'!$M$53/'MMA Rev-Exp Region 6'!$M$9, 0)","v":{"v":0,"d":"$0.00"}},{"$f":"IFERROR('MMA Rev-Exp Region 6'!$N$53/'MMA Rev-Exp Region 6'!$N$9, 0)","v":{"v":0,"d":"$0.00"}}]
["MMA",null,null,2016,"2016-12-31","Q1","2017-03-31","Region 6","Operating Expense","Medical Benefits Expense","Transportation Services","7.4","Transportation Settlements",{"$f":"IFERROR('MMA Rev-Exp Region 6'!$D$54/'MMA Rev-Exp Region 6'!$D$9, 0)","v":{"v":0,"d":"$0.00"}},{"$f":"IFERROR('MMA Rev-Exp Region 6'!$E$54/'MMA Rev-Exp Region 6'!$E$9, 0)","v":{"v":0,"d":"$0.00"}},{"$f":"IFERROR('MMA Rev-Exp Region 6'!$F$54/'MMA Rev-Exp Region 6'!$F$9, 0)","v":{"v":0,"d":"$0.00"}},{"$f":"IFERROR('MMA Rev-Exp Region 6'!$G$54/'MMA Rev-Exp Region 6'!$G$9, 0)","v":{"v":0,"d":"$0.00"}},{"$f":"IFERROR('MMA Rev-Exp Region 6'!$H$54/'MMA Rev-Exp Region 6'!$H$9, 0)","v":{"v":0,"d":"$0.00"}},{"$f":"IFERROR('MMA Rev-Exp Region 6'!$I$54/'MMA Rev-Exp Region 6'!$I$9, 0)","v":{"v":0,"d":"$0.00"}},{"$f":"IFERROR('MMA Rev-Exp Region 6'!$J$54/'MMA Rev-Exp Region 6'!$J$9, 0)","v":{"v":0,"d":"$0.00"}},{"$f":"IFERROR('MMA Rev-Exp Region 6'!$K$54/'MMA Rev-Exp Region 6'!$K$9, 0)","v":{"v":0,"d":"$0.00"}},{"$f":"IFERROR('MMA Rev-Exp Region 6'!$L$54/'MMA Rev-Exp Region 6'!$L$9, 0)","v":{"v":0,"d":"$0.00"}},{"$f":"IFERROR('MMA Rev-Exp Region 6'!$M$54/'MMA Rev-Exp Region 6'!$M$9, 0)","v":{"v":0,"d":"$0.00"}},{"$f":"IFERROR('MMA Rev-Exp Region 6'!$N$54/'MMA Rev-Exp Region 6'!$N$9, 0)","v":{"v":0,"d":"$0.00"}}]
["MMA",null,null,2016,"2016-12-31","Q1","2017-03-31","Region 6","Operating Expense","Medical Benefits Expense","Pharmacy Services",8.1,"Prescription Drugs FFS",{"$f":"IFERROR('MMA Rev-Exp Region 6'!$D$56/'MMA Rev-Exp Region 6'!$D$9, 0)","v":{"v":0,"d":"$0.00"}},{"$f":"IFERROR('MMA Rev-Exp Region 6'!$E$56/'MMA Rev-Exp Region 6'!$E$9, 0)","v":{"v":0,"d":"$0.00"}},{"$f":"IFERROR('MMA Rev-Exp Region 6'!$F$56/'MMA Rev-Exp Region 6'!$F$9, 0)","v":{"v":0,"d":"$0.00"}},{"$f":"IFERROR('MMA Rev-Exp Region 6'!$G$56/'MMA Rev-Exp Region 6'!$G$9, 0)","v":{"v":0,"d":"$0.00"}},{"$f":"IFERROR('MMA Rev-Exp Region 6'!$H$56/'MMA Rev-Exp Region 6'!$H$9, 0)","v":{"v":0,"d":"$0.00"}},{"$f":"IFERROR('MMA Rev-Exp Region 6'!$I$56/'MMA Rev-Exp Region 6'!$I$9, 0)","v":{"v":0,"d":"$0.00"}},{"$f":"IFERROR('MMA Rev-Exp Region 6'!$J$56/'MMA Rev-Exp Region 6'!$J$9, 0)","v":{"v":0,"d":"$0.00"}},{"$f":"IFERROR('MMA Rev-Exp Region 6'!$K$56/'MMA Rev-Exp Region 6'!$K$9, 0)","v":{"v":0,"d":"$0.00"}},{"$f":"IFERROR('MMA Rev-Exp Region 6'!$L$56/'MMA Rev-Exp Region 6'!$L$9, 0)","v":{"v":0,"d":"$0.00"}},{"$f":"IFERROR('MMA Rev-Exp Region 6'!$M$56/'MMA Rev-Exp Region 6'!$M$9, 0)","v":{"v":0,"d":"$0.00"}},{"$f":"IFERROR('MMA Rev-Exp Region 6'!$N$56/'MMA Rev-Exp Region 6'!$N$9, 0)","v":{"v":0,"d":"$0.00"}}]
["MMA",null,null,2016,"2016-12-31","Q1","2017-03-31","Region 6","Operating Expense","Medical Benefits Expense","Pharmacy Services","8.2","Hepatitis C Prescription Drug FFS",{"$f":"IFERROR('MMA Rev-Exp Region 6'!$D$57/'MMA Rev-Exp Region 6'!$D$9, 0)","v":{"v":0,"d":"$0.00"}},{"$f":"IFERROR('MMA Rev-Exp Region 6'!$E$57/'MMA Rev-Exp Region 6'!$E$9, 0)","v":{"v":0,"d":"$0.00"}},{"$f":"IFERROR('MMA Rev-Exp Region 6'!$F$57/'MMA Rev-Exp Region 6'!$F$9, 0)","v":{"v":0,"d":"$0.00"}},{"$f":"IFERROR('MMA Rev-Exp Region 6'!$G$57/'MMA Rev-Exp Region 6'!$G$9, 0)","v":{"v":0,"d":"$0.00"}},{"$f":"IFERROR('MMA Rev-Exp Region 6'!$H$57/'MMA Rev-Exp Region 6'!$H$9, 0)","v":{"v":0,"d":"$0.00"}},{"$f":"IFERROR('MMA Rev-Exp Region 6'!$I$57/'MMA Rev-Exp Region 6'!$I$9, 0)","v":{"v":0,"d":"$0.00"}},{"$f":"IFERROR('MMA Rev-Exp Region 6'!$J$57/'MMA Rev-Exp Region 6'!$J$9, 0)","v":{"v":0,"d":"$0.00"}},{"$f":"IFERROR('MMA Rev-Exp Region 6'!$K$57/'MMA Rev-Exp Region 6'!$K$9, 0)","v":{"v":0,"d":"$0.00"}},{"$f":"IFERROR('MMA Rev-Exp Region 6'!$L$57/'MMA Rev-Exp Region 6'!$L$9, 0)","v":{"v":0,"d":"$0.00"}},{"$f":"IFERROR('MMA Rev-Exp Region 6'!$M$57/'MMA Rev-Exp Region 6'!$M$9, 0)","v":{"v":0,"d":"$0.00"}},{"$f":"IFERROR('MMA Rev-Exp Region 6'!$N$57/'MMA Rev-Exp Region 6'!$N$9, 0)","v":{"v":0,"d":"$0.00"}}]
["MMA",null,null,2016,"2016-12-31","Q1","2017-03-31","Region 6","Operating Expense","Medical Benefits Expense","Pharmacy Services","8.3","Ending IBNP for Prescription Drugs",{"$f":"IFERROR('MMA Rev-Exp Region 6'!$D$58/'MMA Rev-Exp Region 6'!$D$9, 0)","v":{"v":0,"d":"$0.00"}},{"$f":"IFERROR('MMA Rev-Exp Region 6'!$E$58/'MMA Rev-Exp Region 6'!$E$9, 0)","v":{"v":0,"d":"$0.00"}},{"$f":"IFERROR('MMA Rev-Exp Region 6'!$F$58/'MMA Rev-Exp Region 6'!$F$9, 0)","v":{"v":0,"d":"$0.00"}},{"$f":"IFERROR('MMA Rev-Exp Region 6'!$G$58/'MMA Rev-Exp Region 6'!$G$9, 0)","v":{"v":0,"d":"$0.00"}},{"$f":"IFERROR('MMA Rev-Exp Region 6'!$H$58/'MMA Rev-Exp Region 6'!$H$9, 0)","v":{"v":0,"d":"$0.00"}},{"$f":"IFERROR('MMA Rev-Exp Region 6'!$I$58/'MMA Rev-Exp Region 6'!$I$9, 0)","v":{"v":0,"d":"$0.00"}},{"$f":"IFERROR('MMA Rev-Exp Region 6'!$J$58/'MMA Rev-Exp Region 6'!$J$9, 0)","v":{"v":0,"d":"$0.00"}},{"$f":"IFERROR('MMA Rev-Exp Region 6'!$K$58/'MMA Rev-Exp Region 6'!$K$9, 0)","v":{"v":0,"d":"$0.00"}},{"$f":"IFERROR('MMA Rev-Exp Region 6'!$L$58/'MMA Rev-Exp Region 6'!$L$9, 0)","v":{"v":0,"d":"$0.00"}},{"$f":"IFERROR('MMA Rev-Exp Region 6'!$M$58/'MMA Rev-Exp Region 6'!$M$9, 0)","v":{"v":0,"d":"$0.00"}},{"$f":"IFERROR('MMA Rev-Exp Region 6'!$N$58/'MMA Rev-Exp Region 6'!$N$9, 0)","v":{"v":0,"d":"$0.00"}}]
["MMA",null,null,2016,"2016-12-31","Q1","2017-03-31","Region 6","Operating Expense","Medical Benefits Expense","Pharmacy Services","8.4","Prescription Drug Rebates ",{"$f":"IFERROR('MMA Rev-Exp Region 6'!$D$59/'MMA Rev-Exp Region 6'!$D$9, 0)","v":{"v":0,"d":"$0.00"}},{"$f":"IFERROR('MMA Rev-Exp Region 6'!$E$59/'MMA Rev-Exp Region 6'!$E$9, 0)","v":{"v":0,"d":"$0.00"}},{"$f":"IFERROR('MMA Rev-Exp Region 6'!$F$59/'MMA Rev-Exp Region 6'!$F$9, 0)","v":{"v":0,"d":"$0.00"}},{"$f":"IFERROR('MMA Rev-Exp Region 6'!$G$59/'MMA Rev-Exp Region 6'!$G$9, 0)","v":{"v":0,"d":"$0.00"}},{"$f":"IFERROR('MMA Rev-Exp Region 6'!$H$59/'MMA Rev-Exp Region 6'!$H$9, 0)","v":{"v":0,"d":"$0.00"}},{"$f":"IFERROR('MMA Rev-Exp Region 6'!$I$59/'MMA Rev-Exp Region 6'!$I$9, 0)","v":{"v":0,"d":"$0.00"}},{"$f":"IFERROR('MMA Rev-Exp Region 6'!$J$59/'MMA Rev-Exp Region 6'!$J$9, 0)","v":{"v":0,"d":"$0.00"}},{"$f":"IFERROR('MMA Rev-Exp Region 6'!$K$59/'MMA Rev-Exp Region 6'!$K$9, 0)","v":{"v":0,"d":"$0.00"}},{"$f":"IFERROR('MMA Rev-Exp Region 6'!$L$59/'MMA Rev-Exp Region 6'!$L$9, 0)","v":{"v":0,"d":"$0.00"}},{"$f":"IFERROR('MMA Rev-Exp Region 6'!$M$59/'MMA Rev-Exp Region 6'!$M$9, 0)","v":{"v":0,"d":"$0.00"}},{"$f":"IFERROR('MMA Rev-Exp Region 6'!$N$59/'MMA Rev-Exp Region 6'!$N$9, 0)","v":{"v":0,"d":"$0.00"}}]
["MMA",null,null,2016,"2016-12-31","Q1","2017-03-31","Region 6","Operating Expense","Medical Benefits Expense","Pharmacy Services","8.5","Ending accrual for Rebates receivable",{"$f":"IFERROR('MMA Rev-Exp Region 6'!$D$60/'MMA Rev-Exp Region 6'!$D$9, 0)","v":{"v":0,"d":"$0.00"}},{"$f":"IFERROR('MMA Rev-Exp Region 6'!$E$60/'MMA Rev-Exp Region 6'!$E$9, 0)","v":{"v":0,"d":"$0.00"}},{"$f":"IFERROR('MMA Rev-Exp Region 6'!$F$60/'MMA Rev-Exp Region 6'!$F$9, 0)","v":{"v":0,"d":"$0.00"}},{"$f":"IFERROR('MMA Rev-Exp Region 6'!$G$60/'MMA Rev-Exp Region 6'!$G$9, 0)","v":{"v":0,"d":"$0.00"}},{"$f":"IFERROR('MMA Rev-Exp Region 6'!$H$60/'MMA Rev-Exp Region 6'!$H$9, 0)","v":{"v":0,"d":"$0.00"}},{"$f":"IFERROR('MMA Rev-Exp Region 6'!$I$60/'MMA Rev-Exp Region 6'!$I$9, 0)","v":{"v":0,"d":"$0.00"}},{"$f":"IFERROR('MMA Rev-Exp Region 6'!$J$60/'MMA Rev-Exp Region 6'!$J$9, 0)","v":{"v":0,"d":"$0.00"}},{"$f":"IFERROR('MMA Rev-Exp Region 6'!$K$60/'MMA Rev-Exp Region 6'!$K$9, 0)","v":{"v":0,"d":"$0.00"}},{"$f":"IFERROR('MMA Rev-Exp Region 6'!$L$60/'MMA Rev-Exp Region 6'!$L$9, 0)","v":{"v":0,"d":"$0.00"}},{"$f":"IFERROR('MMA Rev-Exp Region 6'!$M$60/'MMA Rev-Exp Region 6'!$M$9, 0)","v":{"v":0,"d":"$0.00"}},{"$f":"IFERROR('MMA Rev-Exp Region 6'!$N$60/'MMA Rev-Exp Region 6'!$N$9, 0)","v":{"v":0,"d":"$0.00"}}]
["MMA",null,null,2016,"2016-12-31","Q1","2017-03-31","Region 6","Operating Expense","Medical Benefits Expense","Pharmacy Services","8.6","Prescription Drugs Subcapitation",{"$f":"IFERROR('MMA Rev-Exp Region 6'!$D$61/'MMA Rev-Exp Region 6'!$D$9, 0)","v":{"v":0,"d":"$0.00"}},{"$f":"IFERROR('MMA Rev-Exp Region 6'!$E$61/'MMA Rev-Exp Region 6'!$E$9, 0)","v":{"v":0,"d":"$0.00"}},{"$f":"IFERROR('MMA Rev-Exp Region 6'!$F$61/'MMA Rev-Exp Region 6'!$F$9, 0)","v":{"v":0,"d":"$0.00"}},{"$f":"IFERROR('MMA Rev-Exp Region 6'!$G$61/'MMA Rev-Exp Region 6'!$G$9, 0)","v":{"v":0,"d":"$0.00"}},{"$f":"IFERROR('MMA Rev-Exp Region 6'!$H$61/'MMA Rev-Exp Region 6'!$H$9, 0)","v":{"v":0,"d":"$0.00"}},{"$f":"IFERROR('MMA Rev-Exp Region 6'!$I$61/'MMA Rev-Exp Region 6'!$I$9, 0)","v":{"v":0,"d":"$0.00"}},{"$f":"IFERROR('MMA Rev-Exp Region 6'!$J$61/'MMA Rev-Exp Region 6'!$J$9, 0)","v":{"v":0,"d":"$0.00"}},{"$f":"IFERROR('MMA Rev-Exp Region 6'!$K$61/'MMA Rev-Exp Region 6'!$K$9, 0)","v":{"v":0,"d":"$0.00"}},{"$f":"IFERROR('MMA Rev-Exp Region 6'!$L$61/'MMA Rev-Exp Region 6'!$L$9, 0)","v":{"v":0,"d":"$0.00"}},{"$f":"IFERROR('MMA Rev-Exp Region 6'!$M$61/'MMA Rev-Exp Region 6'!$M$9, 0)","v":{"v":0,"d":"$0.00"}},{"$f":"IFERROR('MMA Rev-Exp Region 6'!$N$61/'MMA Rev-Exp Region 6'!$N$9, 0)","v":{"v":0,"d":"$0.00"}}]
["MMA",null,null,2016,"2016-12-31","Q1","2017-03-31","Region 6","Operating Expense","Medical Benefits Expense","Pharmacy Services","8.7","Prescription Drug Settlements",{"$f":"IFERROR('MMA Rev-Exp Region 6'!$D$62/'MMA Rev-Exp Region 6'!$D$9, 0)","v":{"v":0,"d":"$0.00"}},{"$f":"IFERROR('MMA Rev-Exp Region 6'!$E$62/'MMA Rev-Exp Region 6'!$E$9, 0)","v":{"v":0,"d":"$0.00"}},{"$f":"IFERROR('MMA Rev-Exp Region 6'!$F$62/'MMA Rev-Exp Region 6'!$F$9, 0)","v":{"v":0,"d":"$0.00"}},{"$f":"IFERROR('MMA Rev-Exp Region 6'!$G$62/'MMA Rev-Exp Region 6'!$G$9, 0)","v":{"v":0,"d":"$0.00"}},{"$f":"IFERROR('MMA Rev-Exp Region 6'!$H$62/'MMA Rev-Exp Region 6'!$H$9, 0)","v":{"v":0,"d":"$0.00"}},{"$f":"IFERROR('MMA Rev-Exp Region 6'!$I$62/'MMA Rev-Exp Region 6'!$I$9, 0)","v":{"v":0,"d":"$0.00"}},{"$f":"IFERROR('MMA Rev-Exp Region 6'!$J$62/'MMA Rev-Exp Region 6'!$J$9, 0)","v":{"v":0,"d":"$0.00"}},{"$f":"IFERROR('MMA Rev-Exp Region 6'!$K$62/'MMA Rev-Exp Region 6'!$K$9, 0)","v":{"v":0,"d":"$0.00"}},{"$f":"IFERROR('MMA Rev-Exp Region 6'!$L$62/'MMA Rev-Exp Region 6'!$L$9, 0)","v":{"v":0,"d":"$0.00"}},{"$f":"IFERROR('MMA Rev-Exp Region 6'!$M$62/'MMA Rev-Exp Region 6'!$M$9, 0)","v":{"v":0,"d":"$0.00"}},{"$f":"IFERROR('MMA Rev-Exp Region 6'!$N$62/'MMA Rev-Exp Region 6'!$N$9, 0)","v":{"v":0,"d":"$0.00"}}]
["MMA",null,null,2016,"2016-12-31","Q1","2017-03-31","Region 6","Operating Expense","Medical Benefits Expense","Other MMA Services",9.1,"Home Health, Private Duty Nursing, Personal Care FFS",{"$f":"IFERROR('MMA Rev-Exp Region 6'!$D$64/'MMA Rev-Exp Region 6'!$D$9, 0)","v":{"v":0,"d":"$0.00"}},{"$f":"IFERROR('MMA Rev-Exp Region 6'!$E$64/'MMA Rev-Exp Region 6'!$E$9, 0)","v":{"v":0,"d":"$0.00"}},{"$f":"IFERROR('MMA Rev-Exp Region 6'!$F$64/'MMA Rev-Exp Region 6'!$F$9, 0)","v":{"v":0,"d":"$0.00"}},{"$f":"IFERROR('MMA Rev-Exp Region 6'!$G$64/'MMA Rev-Exp Region 6'!$G$9, 0)","v":{"v":0,"d":"$0.00"}},{"$f":"IFERROR('MMA Rev-Exp Region 6'!$H$64/'MMA Rev-Exp Region 6'!$H$9, 0)","v":{"v":0,"d":"$0.00"}},{"$f":"IFERROR('MMA Rev-Exp Region 6'!$I$64/'MMA Rev-Exp Region 6'!$I$9, 0)","v":{"v":0,"d":"$0.00"}},{"$f":"IFERROR('MMA Rev-Exp Region 6'!$J$64/'MMA Rev-Exp Region 6'!$J$9, 0)","v":{"v":0,"d":"$0.00"}},{"$f":"IFERROR('MMA Rev-Exp Region 6'!$K$64/'MMA Rev-Exp Region 6'!$K$9, 0)","v":{"v":0,"d":"$0.00"}},{"$f":"IFERROR('MMA Rev-Exp Region 6'!$L$64/'MMA Rev-Exp Region 6'!$L$9, 0)","v":{"v":0,"d":"$0.00"}},{"$f":"IFERROR('MMA Rev-Exp Region 6'!$M$64/'MMA Rev-Exp Region 6'!$M$9, 0)","v":{"v":0,"d":"$0.00"}},{"$f":"IFERROR('MMA Rev-Exp Region 6'!$N$64/'MMA Rev-Exp Region 6'!$N$9, 0)","v":{"v":0,"d":"$0.00"}}]
["MMA",null,null,2016,"2016-12-31","Q1","2017-03-31","Region 6","Operating Expense","Medical Benefits Expense","Other MMA Services","9.2","Hospice FFS",{"$f":"IFERROR('MMA Rev-Exp Region 6'!$D$65/'MMA Rev-Exp Region 6'!$D$9, 0)","v":{"v":0,"d":"$0.00"}},{"$f":"IFERROR('MMA Rev-Exp Region 6'!$E$65/'MMA Rev-Exp Region 6'!$E$9, 0)","v":{"v":0,"d":"$0.00"}},{"$f":"IFERROR('MMA Rev-Exp Region 6'!$F$65/'MMA Rev-Exp Region 6'!$F$9, 0)","v":{"v":0,"d":"$0.00"}},{"$f":"IFERROR('MMA Rev-Exp Region 6'!$G$65/'MMA Rev-Exp Region 6'!$G$9, 0)","v":{"v":0,"d":"$0.00"}},{"$f":"IFERROR('MMA Rev-Exp Region 6'!$H$65/'MMA Rev-Exp Region 6'!$H$9, 0)","v":{"v":0,"d":"$0.00"}},{"$f":"IFERROR('MMA Rev-Exp Region 6'!$I$65/'MMA Rev-Exp Region 6'!$I$9, 0)","v":{"v":0,"d":"$0.00"}},{"$f":"IFERROR('MMA Rev-Exp Region 6'!$J$65/'MMA Rev-Exp Region 6'!$J$9, 0)","v":{"v":0,"d":"$0.00"}},{"$f":"IFERROR('MMA Rev-Exp Region 6'!$K$65/'MMA Rev-Exp Region 6'!$K$9, 0)","v":{"v":0,"d":"$0.00"}},{"$f":"IFERROR('MMA Rev-Exp Region 6'!$L$65/'MMA Rev-Exp Region 6'!$L$9, 0)","v":{"v":0,"d":"$0.00"}},{"$f":"IFERROR('MMA Rev-Exp Region 6'!$M$65/'MMA Rev-Exp Region 6'!$M$9, 0)","v":{"v":0,"d":"$0.00"}},{"$f":"IFERROR('MMA Rev-Exp Region 6'!$N$65/'MMA Rev-Exp Region 6'!$N$9, 0)","v":{"v":0,"d":"$0.00"}}]
["MMA",null,null,2016,"2016-12-31","Q1","2017-03-31","Region 6","Operating Expense","Medical Benefits Expense","Other MMA Services","9.3","DME FFS",{"$f":"IFERROR('MMA Rev-Exp Region 6'!$D$66/'MMA Rev-Exp Region 6'!$D$9, 0)","v":{"v":0,"d":"$0.00"}},{"$f":"IFERROR('MMA Rev-Exp Region 6'!$E$66/'MMA Rev-Exp Region 6'!$E$9, 0)","v":{"v":0,"d":"$0.00"}},{"$f":"IFERROR('MMA Rev-Exp Region 6'!$F$66/'MMA Rev-Exp Region 6'!$F$9, 0)","v":{"v":0,"d":"$0.00"}},{"$f":"IFERROR('MMA Rev-Exp Region 6'!$G$66/'MMA Rev-Exp Region 6'!$G$9, 0)","v":{"v":0,"d":"$0.00"}},{"$f":"IFERROR('MMA Rev-Exp Region 6'!$H$66/'MMA Rev-Exp Region 6'!$H$9, 0)","v":{"v":0,"d":"$0.00"}},{"$f":"IFERROR('MMA Rev-Exp Region 6'!$I$66/'MMA Rev-Exp Region 6'!$I$9, 0)","v":{"v":0,"d":"$0.00"}},{"$f":"IFERROR('MMA Rev-Exp Region 6'!$J$66/'MMA Rev-Exp Region 6'!$J$9, 0)","v":{"v":0,"d":"$0.00"}},{"$f":"IFERROR('MMA Rev-Exp Region 6'!$K$66/'MMA Rev-Exp Region 6'!$K$9, 0)","v":{"v":0,"d":"$0.00"}},{"$f":"IFERROR('MMA Rev-Exp Region 6'!$L$66/'MMA Rev-Exp Region 6'!$L$9, 0)","v":{"v":0,"d":"$0.00"}},{"$f":"IFERROR('MMA Rev-Exp Region 6'!$M$66/'MMA Rev-Exp Region 6'!$M$9, 0)","v":{"v":0,"d":"$0.00"}},{"$f":"IFERROR('MMA Rev-Exp Region 6'!$N$66/'MMA Rev-Exp Region 6'!$N$9, 0)","v":{"v":0,"d":"$0.00"}}]
["MMA",null,null,2016,"2016-12-31","Q1","2017-03-31","Region 6","Operating Expense","Medical Benefits Expense","Other MMA Services","9.4","Other State Plan Services FFS",{"$f":"IFERROR('MMA Rev-Exp Region 6'!$D$67/'MMA Rev-Exp Region 6'!$D$9, 0)","v":{"v":0,"d":"$0.00"}},{"$f":"IFERROR('MMA Rev-Exp Region 6'!$E$67/'MMA Rev-Exp Region 6'!$E$9, 0)","v":{"v":0,"d":"$0.00"}},{"$f":"IFERROR('MMA Rev-Exp Region 6'!$F$67/'MMA Rev-Exp Region 6'!$F$9, 0)","v":{"v":0,"d":"$0.00"}},{"$f":"IFERROR('MMA Rev-Exp Region 6'!$G$67/'MMA Rev-Exp Region 6'!$G$9, 0)","v":{"v":0,"d":"$0.00"}},{"$f":"IFERROR('MMA Rev-Exp Region 6'!$H$67/'MMA Rev-Exp Region 6'!$H$9, 0)","v":{"v":0,"d":"$0.00"}},{"$f":"IFERROR('MMA Rev-Exp Region 6'!$I$67/'MMA Rev-Exp Region 6'!$I$9, 0)","v":{"v":0,"d":"$0.00"}},{"$f":"IFERROR('MMA Rev-Exp Region 6'!$J$67/'MMA Rev-Exp Region 6'!$J$9, 0)","v":{"v":0,"d":"$0.00"}},{"$f":"IFERROR('MMA Rev-Exp Region 6'!$K$67/'MMA Rev-Exp Region 6'!$K$9, 0)","v":{"v":0,"d":"$0.00"}},{"$f":"IFERROR('MMA Rev-Exp Region 6'!$L$67/'MMA Rev-Exp Region 6'!$L$9, 0)","v":{"v":0,"d":"$0.00"}},{"$f":"IFERROR('MMA Rev-Exp Region 6'!$M$67/'MMA Rev-Exp Region 6'!$M$9, 0)","v":{"v":0,"d":"$0.00"}},{"$f":"IFERROR('MMA Rev-Exp Region 6'!$N$67/'MMA Rev-Exp Region 6'!$N$9, 0)","v":{"v":0,"d":"$0.00"}}]
["MMA",null,null,2016,"2016-12-31","Q1","2017-03-31","Region 6","Operating Expense","Medical Benefits Expense","Other MMA Services","9.5","Other Services Subcapitation",{"$f":"IFERROR('MMA Rev-Exp Region 6'!$D$68/'MMA Rev-Exp Region 6'!$D$9, 0)","v":{"v":0,"d":"$0.00"}},{"$f":"IFERROR('MMA Rev-Exp Region 6'!$E$68/'MMA Rev-Exp Region 6'!$E$9, 0)","v":{"v":0,"d":"$0.00"}},{"$f":"IFERROR('MMA Rev-Exp Region 6'!$F$68/'MMA Rev-Exp Region 6'!$F$9, 0)","v":{"v":0,"d":"$0.00"}},{"$f":"IFERROR('MMA Rev-Exp Region 6'!$G$68/'MMA Rev-Exp Region 6'!$G$9, 0)","v":{"v":0,"d":"$0.00"}},{"$f":"IFERROR('MMA Rev-Exp Region 6'!$H$68/'MMA Rev-Exp Region 6'!$H$9, 0)","v":{"v":0,"d":"$0.00"}},{"$f":"IFERROR('MMA Rev-Exp Region 6'!$I$68/'MMA Rev-Exp Region 6'!$I$9, 0)","v":{"v":0,"d":"$0.00"}},{"$f":"IFERROR('MMA Rev-Exp Region 6'!$J$68/'MMA Rev-Exp Region 6'!$J$9, 0)","v":{"v":0,"d":"$0.00"}},{"$f":"IFERROR('MMA Rev-Exp Region 6'!$K$68/'MMA Rev-Exp Region 6'!$K$9, 0)","v":{"v":0,"d":"$0.00"}},{"$f":"IFERROR('MMA Rev-Exp Region 6'!$L$68/'MMA Rev-Exp Region 6'!$L$9, 0)","v":{"v":0,"d":"$0.00"}},{"$f":"IFERROR('MMA Rev-Exp Region 6'!$M$68/'MMA Rev-Exp Region 6'!$M$9, 0)","v":{"v":0,"d":"$0.00"}},{"$f":"IFERROR('MMA Rev-Exp Region 6'!$N$68/'MMA Rev-Exp Region 6'!$N$9, 0)","v":{"v":0,"d":"$0.00"}}]
["MMA",null,null,2016,"2016-12-31","Q1","2017-03-31","Region 6","Operating Expense","Medical Benefits Expense","Other MMA Services","9.6","Ending IBNP for Other Services",{"$f":"IFERROR('MMA Rev-Exp Region 6'!$D$69/'MMA Rev-Exp Region 6'!$D$9, 0)","v":{"v":0,"d":"$0.00"}},{"$f":"IFERROR('MMA Rev-Exp Region 6'!$E$69/'MMA Rev-Exp Region 6'!$E$9, 0)","v":{"v":0,"d":"$0.00"}},{"$f":"IFERROR('MMA Rev-Exp Region 6'!$F$69/'MMA Rev-Exp Region 6'!$F$9, 0)","v":{"v":0,"d":"$0.00"}},{"$f":"IFERROR('MMA Rev-Exp Region 6'!$G$69/'MMA Rev-Exp Region 6'!$G$9, 0)","v":{"v":0,"d":"$0.00"}},{"$f":"IFERROR('MMA Rev-Exp Region 6'!$H$69/'MMA Rev-Exp Region 6'!$H$9, 0)","v":{"v":0,"d":"$0.00"}},{"$f":"IFERROR('MMA Rev-Exp Region 6'!$I$69/'MMA Rev-Exp Region 6'!$I$9, 0)","v":{"v":0,"d":"$0.00"}},{"$f":"IFERROR('MMA Rev-Exp Region 6'!$J$69/'MMA Rev-Exp Region 6'!$J$9, 0)","v":{"v":0,"d":"$0.00"}},{"$f":"IFERROR('MMA Rev-Exp Region 6'!$K$69/'MMA Rev-Exp Region 6'!$K$9, 0)","v":{"v":0,"d":"$0.00"}},{"$f":"IFERROR('MMA Rev-Exp Region 6'!$L$69/'MMA Rev-Exp Region 6'!$L$9, 0)","v":{"v":0,"d":"$0.00"}},{"$f":"IFERROR('MMA Rev-Exp Region 6'!$M$69/'MMA Rev-Exp Region 6'!$M$9, 0)","v":{"v":0,"d":"$0.00"}},{"$f":"IFERROR('MMA Rev-Exp Region 6'!$N$69/'MMA Rev-Exp Region 6'!$N$9, 0)","v":{"v":0,"d":"$0.00"}}]
["MMA",null,null,2016,"2016-12-31","Q1","2017-03-31","Region 6","Operating Expense","Medical Benefits Expense","Other MMA Services","9.7","Other Services Settlements",{"$f":"IFERROR('MMA Rev-Exp Region 6'!$D$70/'MMA Rev-Exp Region 6'!$D$9, 0)","v":{"v":0,"d":"$0.00"}},{"$f":"IFERROR('MMA Rev-Exp Region 6'!$E$70/'MMA Rev-Exp Region 6'!$E$9, 0)","v":{"v":0,"d":"$0.00"}},{"$f":"IFERROR('MMA Rev-Exp Region 6'!$F$70/'MMA Rev-Exp Region 6'!$F$9, 0)","v":{"v":0,"d":"$0.00"}},{"$f":"IFERROR('MMA Rev-Exp Region 6'!$G$70/'MMA Rev-Exp Region 6'!$G$9, 0)","v":{"v":0,"d":"$0.00"}},{"$f":"IFERROR('MMA Rev-Exp Region 6'!$H$70/'MMA Rev-Exp Region 6'!$H$9, 0)","v":{"v":0,"d":"$0.00"}},{"$f":"IFERROR('MMA Rev-Exp Region 6'!$I$70/'MMA Rev-Exp Region 6'!$I$9, 0)","v":{"v":0,"d":"$0.00"}},{"$f":"IFERROR('MMA Rev-Exp Region 6'!$J$70/'MMA Rev-Exp Region 6'!$J$9, 0)","v":{"v":0,"d":"$0.00"}},{"$f":"IFERROR('MMA Rev-Exp Region 6'!$K$70/'MMA Rev-Exp Region 6'!$K$9, 0)","v":{"v":0,"d":"$0.00"}},{"$f":"IFERROR('MMA Rev-Exp Region 6'!$L$70/'MMA Rev-Exp Region 6'!$L$9, 0)","v":{"v":0,"d":"$0.00"}},{"$f":"IFERROR('MMA Rev-Exp Region 6'!$M$70/'MMA Rev-Exp Region 6'!$M$9, 0)","v":{"v":0,"d":"$0.00"}},{"$f":"IFERROR('MMA Rev-Exp Region 6'!$N$70/'MMA Rev-Exp Region 6'!$N$9, 0)","v":{"v":0,"d":"$0.00"}}]
["MMA",null,null,2016,"2016-12-31","Q1","2017-03-31","Region 6","Operating Expense","Medical Benefits Expense","Expanded Benefits","10.1","Expanded Benefits FFS",{"$f":"IFERROR('MMA Rev-Exp Region 6'!$D$72/'MMA Rev-Exp Region 6'!$D$9, 0)","v":{"v":0,"d":"$0.00"}},{"$f":"IFERROR('MMA Rev-Exp Region 6'!$E$72/'MMA Rev-Exp Region 6'!$E$9, 0)","v":{"v":0,"d":"$0.00"}},{"$f":"IFERROR('MMA Rev-Exp Region 6'!$F$72/'MMA Rev-Exp Region 6'!$F$9, 0)","v":{"v":0,"d":"$0.00"}},{"$f":"IFERROR('MMA Rev-Exp Region 6'!$G$72/'MMA Rev-Exp Region 6'!$G$9, 0)","v":{"v":0,"d":"$0.00"}},{"$f":"IFERROR('MMA Rev-Exp Region 6'!$H$72/'MMA Rev-Exp Region 6'!$H$9, 0)","v":{"v":0,"d":"$0.00"}},{"$f":"IFERROR('MMA Rev-Exp Region 6'!$I$72/'MMA Rev-Exp Region 6'!$I$9, 0)","v":{"v":0,"d":"$0.00"}},{"$f":"IFERROR('MMA Rev-Exp Region 6'!$J$72/'MMA Rev-Exp Region 6'!$J$9, 0)","v":{"v":0,"d":"$0.00"}},{"$f":"IFERROR('MMA Rev-Exp Region 6'!$K$72/'MMA Rev-Exp Region 6'!$K$9, 0)","v":{"v":0,"d":"$0.00"}},{"$f":"IFERROR('MMA Rev-Exp Region 6'!$L$72/'MMA Rev-Exp Region 6'!$L$9, 0)","v":{"v":0,"d":"$0.00"}},{"$f":"IFERROR('MMA Rev-Exp Region 6'!$M$72/'MMA Rev-Exp Region 6'!$M$9, 0)","v":{"v":0,"d":"$0.00"}},{"$f":"IFERROR('MMA Rev-Exp Region 6'!$N$72/'MMA Rev-Exp Region 6'!$N$9, 0)","v":{"v":0,"d":"$0.00"}}]
["MMA",null,null,2016,"2016-12-31","Q1","2017-03-31","Region 6","Operating Expense","Medical Benefits Expense","Expanded Benefits","10.2","Expanded benefits Subcapitation",{"$f":"IFERROR('MMA Rev-Exp Region 6'!$D$73/'MMA Rev-Exp Region 6'!$D$9, 0)","v":{"v":0,"d":"$0.00"}},{"$f":"IFERROR('MMA Rev-Exp Region 6'!$E$73/'MMA Rev-Exp Region 6'!$E$9, 0)","v":{"v":0,"d":"$0.00"}},{"$f":"IFERROR('MMA Rev-Exp Region 6'!$F$73/'MMA Rev-Exp Region 6'!$F$9, 0)","v":{"v":0,"d":"$0.00"}},{"$f":"IFERROR('MMA Rev-Exp Region 6'!$G$73/'MMA Rev-Exp Region 6'!$G$9, 0)","v":{"v":0,"d":"$0.00"}},{"$f":"IFERROR('MMA Rev-Exp Region 6'!$H$73/'MMA Rev-Exp Region 6'!$H$9, 0)","v":{"v":0,"d":"$0.00"}},{"$f":"IFERROR('MMA Rev-Exp Region 6'!$I$73/'MMA Rev-Exp Region 6'!$I$9, 0)","v":{"v":0,"d":"$0.00"}},{"$f":"IFERROR('MMA Rev-Exp Region 6'!$J$73/'MMA Rev-Exp Region 6'!$J$9, 0)","v":{"v":0,"d":"$0.00"}},{"$f":"IFERROR('MMA Rev-Exp Region 6'!$K$73/'MMA Rev-Exp Region 6'!$K$9, 0)","v":{"v":0,"d":"$0.00"}},{"$f":"IFERROR('MMA Rev-Exp Region 6'!$L$73/'MMA Rev-Exp Region 6'!$L$9, 0)","v":{"v":0,"d":"$0.00"}},{"$f":"IFERROR('MMA Rev-Exp Region 6'!$M$73/'MMA Rev-Exp Region 6'!$M$9, 0)","v":{"v":0,"d":"$0.00"}},{"$f":"IFERROR('MMA Rev-Exp Region 6'!$N$73/'MMA Rev-Exp Region 6'!$N$9, 0)","v":{"v":0,"d":"$0.00"}}]
["MMA",null,null,2016,"2016-12-31","Q1","2017-03-31","Region 6","Operating Expense","Medical Benefits Expense","Expanded Benefits","10.3","Ending IBNP for Expanded Benefits",{"$f":"IFERROR('MMA Rev-Exp Region 6'!$D$74/'MMA Rev-Exp Region 6'!$D$9, 0)","v":{"v":0,"d":"$0.00"}},{"$f":"IFERROR('MMA Rev-Exp Region 6'!$E$74/'MMA Rev-Exp Region 6'!$E$9, 0)","v":{"v":0,"d":"$0.00"}},{"$f":"IFERROR('MMA Rev-Exp Region 6'!$F$74/'MMA Rev-Exp Region 6'!$F$9, 0)","v":{"v":0,"d":"$0.00"}},{"$f":"IFERROR('MMA Rev-Exp Region 6'!$G$74/'MMA Rev-Exp Region 6'!$G$9, 0)","v":{"v":0,"d":"$0.00"}},{"$f":"IFERROR('MMA Rev-Exp Region 6'!$H$74/'MMA Rev-Exp Region 6'!$H$9, 0)","v":{"v":0,"d":"$0.00"}},{"$f":"IFERROR('MMA Rev-Exp Region 6'!$I$74/'MMA Rev-Exp Region 6'!$I$9, 0)","v":{"v":0,"d":"$0.00"}},{"$f":"IFERROR('MMA Rev-Exp Region 6'!$J$74/'MMA Rev-Exp Region 6'!$J$9, 0)","v":{"v":0,"d":"$0.00"}},{"$f":"IFERROR('MMA Rev-Exp Region 6'!$K$74/'MMA Rev-Exp Region 6'!$K$9, 0)","v":{"v":0,"d":"$0.00"}},{"$f":"IFERROR('MMA Rev-Exp Region 6'!$L$74/'MMA Rev-Exp Region 6'!$L$9, 0)","v":{"v":0,"d":"$0.00"}},{"$f":"IFERROR('MMA Rev-Exp Region 6'!$M$74/'MMA Rev-Exp Region 6'!$M$9, 0)","v":{"v":0,"d":"$0.00"}},{"$f":"IFERROR('MMA Rev-Exp Region 6'!$N$74/'MMA Rev-Exp Region 6'!$N$9, 0)","v":{"v":0,"d":"$0.00"}}]
["MMA",null,null,2016,"2016-12-31","Q1","2017-03-31","Region 6","Operating Expense","Medical Benefits Expense","Expanded Benefits","10.4","Expanded Benefits Settlements",{"$f":"IFERROR('MMA Rev-Exp Region 6'!$D$75/'MMA Rev-Exp Region 6'!$D$9, 0)","v":{"v":0,"d":"$0.00"}},{"$f":"IFERROR('MMA Rev-Exp Region 6'!$E$75/'MMA Rev-Exp Region 6'!$E$9, 0)","v":{"v":0,"d":"$0.00"}},{"$f":"IFERROR('MMA Rev-Exp Region 6'!$F$75/'MMA Rev-Exp Region 6'!$F$9, 0)","v":{"v":0,"d":"$0.00"}},{"$f":"IFERROR('MMA Rev-Exp Region 6'!$G$75/'MMA Rev-Exp Region 6'!$G$9, 0)","v":{"v":0,"d":"$0.00"}},{"$f":"IFERROR('MMA Rev-Exp Region 6'!$H$75/'MMA Rev-Exp Region 6'!$H$9, 0)","v":{"v":0,"d":"$0.00"}},{"$f":"IFERROR('MMA Rev-Exp Region 6'!$I$75/'MMA Rev-Exp Region 6'!$I$9, 0)","v":{"v":0,"d":"$0.00"}},{"$f":"IFERROR('MMA Rev-Exp Region 6'!$J$75/'MMA Rev-Exp Region 6'!$J$9, 0)","v":{"v":0,"d":"$0.00"}},{"$f":"IFERROR('MMA Rev-Exp Region 6'!$K$75/'MMA Rev-Exp Region 6'!$K$9, 0)","v":{"v":0,"d":"$0.00"}},{"$f":"IFERROR('MMA Rev-Exp Region 6'!$L$75/'MMA Rev-Exp Region 6'!$L$9, 0)","v":{"v":0,"d":"$0.00"}},{"$f":"IFERROR('MMA Rev-Exp Region 6'!$M$75/'MMA Rev-Exp Region 6'!$M$9, 0)","v":{"v":0,"d":"$0.00"}},{"$f":"IFERROR('MMA Rev-Exp Region 6'!$N$75/'MMA Rev-Exp Region 6'!$N$9, 0)","v":{"v":0,"d":"$0.00"}}]
["MMA",null,null,2016,"2016-12-31","Q1","2017-03-31","Region 6","Operating Expense","Medical Benefits Expense","Other Medical","11.5","TPL & Fraud/Abuse Recoveries",{"$f":"IFERROR('MMA Rev-Exp Region 6'!$D$81/'MMA Rev-Exp Region 6'!$D$9, 0)","v":{"v":0,"d":"$0.00"}},{"$f":"IFERROR('MMA Rev-Exp Region 6'!$E$81/'MMA Rev-Exp Region 6'!$E$9, 0)","v":{"v":0,"d":"$0.00"}},{"$f":"IFERROR('MMA Rev-Exp Region 6'!$F$81/'MMA Rev-Exp Region 6'!$F$9, 0)","v":{"v":0,"d":"$0.00"}},{"$f":"IFERROR('MMA Rev-Exp Region 6'!$G$81/'MMA Rev-Exp Region 6'!$G$9, 0)","v":{"v":0,"d":"$0.00"}},{"$f":"IFERROR('MMA Rev-Exp Region 6'!$H$81/'MMA Rev-Exp Region 6'!$H$9, 0)","v":{"v":0,"d":"$0.00"}},{"$f":"IFERROR('MMA Rev-Exp Region 6'!$I$81/'MMA Rev-Exp Region 6'!$I$9, 0)","v":{"v":0,"d":"$0.00"}},{"$f":"IFERROR('MMA Rev-Exp Region 6'!$J$81/'MMA Rev-Exp Region 6'!$J$9, 0)","v":{"v":0,"d":"$0.00"}},{"$f":"IFERROR('MMA Rev-Exp Region 6'!$K$81/'MMA Rev-Exp Region 6'!$K$9, 0)","v":{"v":0,"d":"$0.00"}},{"$f":"IFERROR('MMA Rev-Exp Region 6'!$L$81/'MMA Rev-Exp Region 6'!$L$9, 0)","v":{"v":0,"d":"$0.00"}},{"$f":"IFERROR('MMA Rev-Exp Region 6'!$M$81/'MMA Rev-Exp Region 6'!$M$9, 0)","v":{"v":0,"d":"$0.00"}},{"$f":"IFERROR('MMA Rev-Exp Region 6'!$N$81/'MMA Rev-Exp Region 6'!$N$9, 0)","v":{"v":0,"d":"$0.00"}}]
["MMA",null,null,2016,"2016-12-31","Q1","2017-03-31","Region 6","Operating Expense","Medical Benefits Expense","Other Medical","11.6.1","Premium Deficiency Reserve",{"$f":"IFERROR('MMA Rev-Exp Region 6'!$D$82/'MMA Rev-Exp Region 6'!$D$9, 0)","v":{"v":0,"d":"$0.00"}},{"$f":"IFERROR('MMA Rev-Exp Region 6'!$E$82/'MMA Rev-Exp Region 6'!$E$9, 0)","v":{"v":0,"d":"$0.00"}},{"$f":"IFERROR('MMA Rev-Exp Region 6'!$F$82/'MMA Rev-Exp Region 6'!$F$9, 0)","v":{"v":0,"d":"$0.00"}},{"$f":"IFERROR('MMA Rev-Exp Region 6'!$G$82/'MMA Rev-Exp Region 6'!$G$9, 0)","v":{"v":0,"d":"$0.00"}},{"$f":"IFERROR('MMA Rev-Exp Region 6'!$H$82/'MMA Rev-Exp Region 6'!$H$9, 0)","v":{"v":0,"d":"$0.00"}},{"$f":"IFERROR('MMA Rev-Exp Region 6'!$I$82/'MMA Rev-Exp Region 6'!$I$9, 0)","v":{"v":0,"d":"$0.00"}},{"$f":"IFERROR('MMA Rev-Exp Region 6'!$J$82/'MMA Rev-Exp Region 6'!$J$9, 0)","v":{"v":0,"d":"$0.00"}},{"$f":"IFERROR('MMA Rev-Exp Region 6'!$K$82/'MMA Rev-Exp Region 6'!$K$9, 0)","v":{"v":0,"d":"$0.00"}},{"$f":"IFERROR('MMA Rev-Exp Region 6'!$L$82/'MMA Rev-Exp Region 6'!$L$9, 0)","v":{"v":0,"d":"$0.00"}},{"$f":"IFERROR('MMA Rev-Exp Region 6'!$M$82/'MMA Rev-Exp Region 6'!$M$9, 0)","v":{"v":0,"d":"$0.00"}},{"$f":"IFERROR('MMA Rev-Exp Region 6'!$N$82/'MMA Rev-Exp Region 6'!$N$9, 0)","v":{"v":0,"d":"$0.00"}}]
["MMA",null,null,2016,"2016-12-31","Q1","2017-03-31","Region 6","Operating Expense","Medical Benefits Expense","Other Medical","11.8","Reinsurance Premiums",{"$f":"IFERROR('MMA Rev-Exp Region 6'!$D$84/'MMA Rev-Exp Region 6'!$D$9, 0)","v":{"v":0,"d":"$0.00"}},{"$f":"IFERROR('MMA Rev-Exp Region 6'!$E$84/'MMA Rev-Exp Region 6'!$E$9, 0)","v":{"v":0,"d":"$0.00"}},{"$f":"IFERROR('MMA Rev-Exp Region 6'!$F$84/'MMA Rev-Exp Region 6'!$F$9, 0)","v":{"v":0,"d":"$0.00"}},{"$f":"IFERROR('MMA Rev-Exp Region 6'!$G$84/'MMA Rev-Exp Region 6'!$G$9, 0)","v":{"v":0,"d":"$0.00"}},{"$f":"IFERROR('MMA Rev-Exp Region 6'!$H$84/'MMA Rev-Exp Region 6'!$H$9, 0)","v":{"v":0,"d":"$0.00"}},{"$f":"IFERROR('MMA Rev-Exp Region 6'!$I$84/'MMA Rev-Exp Region 6'!$I$9, 0)","v":{"v":0,"d":"$0.00"}},{"$f":"IFERROR('MMA Rev-Exp Region 6'!$J$84/'MMA Rev-Exp Region 6'!$J$9, 0)","v":{"v":0,"d":"$0.00"}},{"$f":"IFERROR('MMA Rev-Exp Region 6'!$K$84/'MMA Rev-Exp Region 6'!$K$9, 0)","v":{"v":0,"d":"$0.00"}},{"$f":"IFERROR('MMA Rev-Exp Region 6'!$L$84/'MMA Rev-Exp Region 6'!$L$9, 0)","v":{"v":0,"d":"$0.00"}},{"$f":"IFERROR('MMA Rev-Exp Region 6'!$M$84/'MMA Rev-Exp Region 6'!$M$9, 0)","v":{"v":0,"d":"$0.00"}},{"$f":"IFERROR('MMA Rev-Exp Region 6'!$N$84/'MMA Rev-Exp Region 6'!$N$9, 0)","v":{"v":0,"d":"$0.00"}}]
["MMA",null,null,2016,"2016-12-31","Q1","2017-03-31","Region 6","Operating Expense","Medical Benefits Expense","Other Medical","11.9","Reinsurance Recoveries",{"$f":"IFERROR('MMA Rev-Exp Region 6'!$D$85/'MMA Rev-Exp Region 6'!$D$9, 0)","v":{"v":0,"d":"$0.00"}},{"$f":"IFERROR('MMA Rev-Exp Region 6'!$E$85/'MMA Rev-Exp Region 6'!$E$9, 0)","v":{"v":0,"d":"$0.00"}},{"$f":"IFERROR('MMA Rev-Exp Region 6'!$F$85/'MMA Rev-Exp Region 6'!$F$9, 0)","v":{"v":0,"d":"$0.00"}},{"$f":"IFERROR('MMA Rev-Exp Region 6'!$G$85/'MMA Rev-Exp Region 6'!$G$9, 0)","v":{"v":0,"d":"$0.00"}},{"$f":"IFERROR('MMA Rev-Exp Region 6'!$H$85/'MMA Rev-Exp Region 6'!$H$9, 0)","v":{"v":0,"d":"$0.00"}},{"$f":"IFERROR('MMA Rev-Exp Region 6'!$I$85/'MMA Rev-Exp Region 6'!$I$9, 0)","v":{"v":0,"d":"$0.00"}},{"$f":"IFERROR('MMA Rev-Exp Region 6'!$J$85/'MMA Rev-Exp Region 6'!$J$9, 0)","v":{"v":0,"d":"$0.00"}},{"$f":"IFERROR('MMA Rev-Exp Region 6'!$K$85/'MMA Rev-Exp Region 6'!$K$9, 0)","v":{"v":0,"d":"$0.00"}},{"$f":"IFERROR('MMA Rev-Exp Region 6'!$L$85/'MMA Rev-Exp Region 6'!$L$9, 0)","v":{"v":0,"d":"$0.00"}},{"$f":"IFERROR('MMA Rev-Exp Region 6'!$M$85/'MMA Rev-Exp Region 6'!$M$9, 0)","v":{"v":0,"d":"$0.00"}},{"$f":"IFERROR('MMA Rev-Exp Region 6'!$N$85/'MMA Rev-Exp Region 6'!$N$9, 0)","v":{"v":0,"d":"$0.00"}}]
["MMA",null,null,2016,"2016-12-31","Q1","2017-03-31","Region 6","Operating Expense","Administrative Expense","Administrative","12.1","Salaries & Benefits",{"$f":"IFERROR('MMA Rev-Exp Region 6'!$D$90/'MMA Rev-Exp Region 6'!$D$9, 0)","v":{"v":0,"d":"$0.00"}},{"$f":"IFERROR('MMA Rev-Exp Region 6'!$E$90/'MMA Rev-Exp Region 6'!$D$9, 0)","v":{"v":0,"d":"$0.00"}},{"$f":"IFERROR('MMA Rev-Exp Region 6'!$F$90/'MMA Rev-Exp Region 6'!$D$9, 0)","v":{"v":0,"d":"$0.00"}},{"$f":"IFERROR('MMA Rev-Exp Region 6'!$G$90/'MMA Rev-Exp Region 6'!$G$9, 0)","v":{"v":0,"d":"$0.00"}},{"$f":"IFERROR('MMA Rev-Exp Region 6'!$H$90/'MMA Rev-Exp Region 6'!$H$9, 0)","v":{"v":0,"d":"$0.00"}},{"$f":"IFERROR('MMA Rev-Exp Region 6'!$I$90/'MMA Rev-Exp Region 6'!$I$9, 0)","v":{"v":0,"d":"$0.00"}},{"$f":"IFERROR('MMA Rev-Exp Region 6'!$J$90/'MMA Rev-Exp Region 6'!$J$9, 0)","v":{"v":0,"d":"$0.00"}},{"$f":"IFERROR('MMA Rev-Exp Region 6'!$K$90/'MMA Rev-Exp Region 6'!$K$9, 0)","v":{"v":0,"d":"$0.00"}},{"$f":"IFERROR('MMA Rev-Exp Region 6'!$L$90/'MMA Rev-Exp Region 6'!$L$9, 0)","v":{"v":0,"d":"$0.00"}},{"$f":"IFERROR('MMA Rev-Exp Region 6'!$M$90/'MMA Rev-Exp Region 6'!$M$9, 0)","v":{"v":0,"d":"$0.00"}},{"$f":"IFERROR('MMA Rev-Exp Region 6'!$N$90/'MMA Rev-Exp Region 6'!$N$9, 0)","v":{"v":0,"d":"$0.00"}}]
["MMA",null,null,2016,"2016-12-31","Q1","2017-03-31","Region 6","Operating Expense","Administrative Expense","Administrative","12.2","Administrative Services",{"$f":"IFERROR('MMA Rev-Exp Region 6'!$D$91/'MMA Rev-Exp Region 6'!$D$9, 0)","v":{"v":0,"d":"$0.00"}},{"$f":"IFERROR('MMA Rev-Exp Region 6'!$E$91/'MMA Rev-Exp Region 6'!$D$9, 0)","v":{"v":0,"d":"$0.00"}},{"$f":"IFERROR('MMA Rev-Exp Region 6'!$F$91/'MMA Rev-Exp Region 6'!$D$9, 0)","v":{"v":0,"d":"$0.00"}},{"$f":"IFERROR('MMA Rev-Exp Region 6'!$G$91/'MMA Rev-Exp Region 6'!$G$9, 0)","v":{"v":0,"d":"$0.00"}},{"$f":"IFERROR('MMA Rev-Exp Region 6'!$H$91/'MMA Rev-Exp Region 6'!$H$9, 0)","v":{"v":0,"d":"$0.00"}},{"$f":"IFERROR('MMA Rev-Exp Region 6'!$I$91/'MMA Rev-Exp Region 6'!$I$9, 0)","v":{"v":0,"d":"$0.00"}},{"$f":"IFERROR('MMA Rev-Exp Region 6'!$J$91/'MMA Rev-Exp Region 6'!$J$9, 0)","v":{"v":0,"d":"$0.00"}},{"$f":"IFERROR('MMA Rev-Exp Region 6'!$K$91/'MMA Rev-Exp Region 6'!$K$9, 0)","v":{"v":0,"d":"$0.00"}},{"$f":"IFERROR('MMA Rev-Exp Region 6'!$L$91/'MMA Rev-Exp Region 6'!$L$9, 0)","v":{"v":0,"d":"$0.00"}},{"$f":"IFERROR('MMA Rev-Exp Region 6'!$M$91/'MMA Rev-Exp Region 6'!$M$9, 0)","v":{"v":0,"d":"$0.00"}},{"$f":"IFERROR('MMA Rev-Exp Region 6'!$N$91/'MMA Rev-Exp Region 6'!$N$9, 0)","v":{"v":0,"d":"$0.00"}}]
["MMA",null,null,2016,"2016-12-31","Q1","2017-03-31","Region 6","Operating Expense","Administrative Expense","Administrative","12.3","Information Systems",{"$f":"IFERROR('MMA Rev-Exp Region 6'!$D$92/'MMA Rev-Exp Region 6'!$D$9, 0)","v":{"v":0,"d":"$0.00"}},{"$f":"IFERROR('MMA Rev-Exp Region 6'!$E$92/'MMA Rev-Exp Region 6'!$D$9, 0)","v":{"v":0,"d":"$0.00"}},{"$f":"IFERROR('MMA Rev-Exp Region 6'!$F$92/'MMA Rev-Exp Region 6'!$D$9, 0)","v":{"v":0,"d":"$0.00"}},{"$f":"IFERROR('MMA Rev-Exp Region 6'!$G$92/'MMA Rev-Exp Region 6'!$G$9, 0)","v":{"v":0,"d":"$0.00"}},{"$f":"IFERROR('MMA Rev-Exp Region 6'!$H$92/'MMA Rev-Exp Region 6'!$H$9, 0)","v":{"v":0,"d":"$0.00"}},{"$f":"IFERROR('MMA Rev-Exp Region 6'!$I$92/'MMA Rev-Exp Region 6'!$I$9, 0)","v":{"v":0,"d":"$0.00"}},{"$f":"IFERROR('MMA Rev-Exp Region 6'!$J$92/'MMA Rev-Exp Region 6'!$J$9, 0)","v":{"v":0,"d":"$0.00"}},{"$f":"IFERROR('MMA Rev-Exp Region 6'!$K$92/'MMA Rev-Exp Region 6'!$K$9, 0)","v":{"v":0,"d":"$0.00"}},{"$f":"IFERROR('MMA Rev-Exp Region 6'!$L$92/'MMA Rev-Exp Region 6'!$L$9, 0)","v":{"v":0,"d":"$0.00"}},{"$f":"IFERROR('MMA Rev-Exp Region 6'!$M$92/'MMA Rev-Exp Region 6'!$M$9, 0)","v":{"v":0,"d":"$0.00"}},{"$f":"IFERROR('MMA Rev-Exp Region 6'!$N$92/'MMA Rev-Exp Region 6'!$N$9, 0)","v":{"v":0,"d":"$0.00"}}]
["MMA",null,null,2016,"2016-12-31","Q1","2017-03-31","Region 6","Operating Expense","Administrative Expense","Administrative","12.4","Marketing Expenses",{"$f":"IFERROR('MMA Rev-Exp Region 6'!$D$93/'MMA Rev-Exp Region 6'!$D$9, 0)","v":{"v":0,"d":"$0.00"}},{"$f":"IFERROR('MMA Rev-Exp Region 6'!$E$93/'MMA Rev-Exp Region 6'!$D$9, 0)","v":{"v":0,"d":"$0.00"}},{"$f":"IFERROR('MMA Rev-Exp Region 6'!$F$93/'MMA Rev-Exp Region 6'!$D$9, 0)","v":{"v":0,"d":"$0.00"}},{"$f":"IFERROR('MMA Rev-Exp Region 6'!$G$93/'MMA Rev-Exp Region 6'!$G$9, 0)","v":{"v":0,"d":"$0.00"}},{"$f":"IFERROR('MMA Rev-Exp Region 6'!$H$93/'MMA Rev-Exp Region 6'!$H$9, 0)","v":{"v":0,"d":"$0.00"}},{"$f":"IFERROR('MMA Rev-Exp Region 6'!$I$93/'MMA Rev-Exp Region 6'!$I$9, 0)","v":{"v":0,"d":"$0.00"}},{"$f":"IFERROR('MMA Rev-Exp Region 6'!$J$93/'MMA Rev-Exp Region 6'!$J$9, 0)","v":{"v":0,"d":"$0.00"}},{"$f":"IFERROR('MMA Rev-Exp Region 6'!$K$93/'MMA Rev-Exp Region 6'!$K$9, 0)","v":{"v":0,"d":"$0.00"}},{"$f":"IFERROR('MMA Rev-Exp Region 6'!$L$93/'MMA Rev-Exp Region 6'!$L$9, 0)","v":{"v":0,"d":"$0.00"}},{"$f":"IFERROR('MMA Rev-Exp Region 6'!$M$93/'MMA Rev-Exp Region 6'!$M$9, 0)","v":{"v":0,"d":"$0.00"}},{"$f":"IFERROR('MMA Rev-Exp Region 6'!$N$93/'MMA Rev-Exp Region 6'!$N$9, 0)","v":{"v":0,"d":"$0.00"}}]
["MMA",null,null,2016,"2016-12-31","Q1","2017-03-31","Region 6","Operating Expense","Administrative Expense","Administrative","12.5","General  Administration",{"$f":"IFERROR('MMA Rev-Exp Region 6'!$D$94/'MMA Rev-Exp Region 6'!$D$9, 0)","v":{"v":0,"d":"$0.00"}},{"$f":"IFERROR('MMA Rev-Exp Region 6'!$E$94/'MMA Rev-Exp Region 6'!$D$9, 0)","v":{"v":0,"d":"$0.00"}},{"$f":"IFERROR('MMA Rev-Exp Region 6'!$F$94/'MMA Rev-Exp Region 6'!$D$9, 0)","v":{"v":0,"d":"$0.00"}},{"$f":"IFERROR('MMA Rev-Exp Region 6'!$G$94/'MMA Rev-Exp Region 6'!$G$9, 0)","v":{"v":0,"d":"$0.00"}},{"$f":"IFERROR('MMA Rev-Exp Region 6'!$H$94/'MMA Rev-Exp Region 6'!$H$9, 0)","v":{"v":0,"d":"$0.00"}},{"$f":"IFERROR('MMA Rev-Exp Region 6'!$I$94/'MMA Rev-Exp Region 6'!$I$9, 0)","v":{"v":0,"d":"$0.00"}},{"$f":"IFERROR('MMA Rev-Exp Region 6'!$J$94/'MMA Rev-Exp Region 6'!$J$9, 0)","v":{"v":0,"d":"$0.00"}},{"$f":"IFERROR('MMA Rev-Exp Region 6'!$K$94/'MMA Rev-Exp Region 6'!$K$9, 0)","v":{"v":0,"d":"$0.00"}},{"$f":"IFERROR('MMA Rev-Exp Region 6'!$L$94/'MMA Rev-Exp Region 6'!$L$9, 0)","v":{"v":0,"d":"$0.00"}},{"$f":"IFERROR('MMA Rev-Exp Region 6'!$M$94/'MMA Rev-Exp Region 6'!$M$9, 0)","v":{"v":0,"d":"$0.00"}},{"$f":"IFERROR('MMA Rev-Exp Region 6'!$N$94/'MMA Rev-Exp Region 6'!$N$9, 0)","v":{"v":0,"d":"$0.00"}}]
["MMA",null,null,2016,"2016-12-31","Q1","2017-03-31","Region 6","Operating Expense","Administrative Expense","Administrative","12.6","Compliance/Regulatory",{"$f":"IFERROR('MMA Rev-Exp Region 6'!$D$95/'MMA Rev-Exp Region 6'!$D$9, 0)","v":{"v":0,"d":"$0.00"}},{"$f":"IFERROR('MMA Rev-Exp Region 6'!$E$95/'MMA Rev-Exp Region 6'!$D$9, 0)","v":{"v":0,"d":"$0.00"}},{"$f":"IFERROR('MMA Rev-Exp Region 6'!$F$95/'MMA Rev-Exp Region 6'!$D$9, 0)","v":{"v":0,"d":"$0.00"}},{"$f":"IFERROR('MMA Rev-Exp Region 6'!$G$95/'MMA Rev-Exp Region 6'!$G$9, 0)","v":{"v":0,"d":"$0.00"}},{"$f":"IFERROR('MMA Rev-Exp Region 6'!$H$95/'MMA Rev-Exp Region 6'!$H$9, 0)","v":{"v":0,"d":"$0.00"}},{"$f":"IFERROR('MMA Rev-Exp Region 6'!$I$95/'MMA Rev-Exp Region 6'!$I$9, 0)","v":{"v":0,"d":"$0.00"}},{"$f":"IFERROR('MMA Rev-Exp Region 6'!$J$95/'MMA Rev-Exp Region 6'!$J$9, 0)","v":{"v":0,"d":"$0.00"}},{"$f":"IFERROR('MMA Rev-Exp Region 6'!$K$95/'MMA Rev-Exp Region 6'!$K$9, 0)","v":{"v":0,"d":"$0.00"}},{"$f":"IFERROR('MMA Rev-Exp Region 6'!$L$95/'MMA Rev-Exp Region 6'!$L$9, 0)","v":{"v":0,"d":"$0.00"}},{"$f":"IFERROR('MMA Rev-Exp Region 6'!$M$95/'MMA Rev-Exp Region 6'!$M$9, 0)","v":{"v":0,"d":"$0.00"}},{"$f":"IFERROR('MMA Rev-Exp Region 6'!$N$95/'MMA Rev-Exp Region 6'!$N$9, 0)","v":{"v":0,"d":"$0.00"}}]
["MMA",null,null,2016,"2016-12-31","Q1","2017-03-31","Region 6","Operating Expense","Taxes & Fees","Taxes & Fees","13.1","State Premium tax",{"$f":"IFERROR('MMA Rev-Exp Region 6'!$D$97/'MMA Rev-Exp Region 6'!$D$9, 0)","v":{"v":0,"d":"$0.00"}}]
["MMA",null,null,2016,"2016-12-31","Q1","2017-03-31","Region 6","Operating Expense","Taxes & Fees","Taxes & Fees","13.2","Department of Insurance Assessments",{"$f":"IFERROR('MMA Rev-Exp Region 6'!$D$98/'MMA Rev-Exp Region 6'!$D$9, 0)","v":{"v":0,"d":"$0.00"}}]
["MMA",null,null,2016,"2016-12-31","Q1","2017-03-31","Region 6","Operating Expense","Taxes & Fees","Taxes & Fees","13.3","Section 9010 Health Insurance Providers Fee",{"$f":"IFERROR('MMA Rev-Exp Region 6'!$D$99/'MMA Rev-Exp Region 6'!$D$9, 0)","v":{"v":0,"d":"$0.00"}}]
["MMA",null,null,2016,"2016-12-31","Q1","2017-03-31","Region 6","Non-Operating Expense","Income Tax Expense","Income Tax Expense","16.0","Income Tax Expense",{"$f":"IFERROR('MMA Rev-Exp Region 6'!$D$106/'MMA Rev-Exp Region 6'!$D$9, 0)","v":{"v":0,"d":"$0.00"}}]
["MMA",null,null,2016,"2016-12-31","Q2","2017-06-30","Region 6","Operating Revenue","Capitation","Capitation",1.1,"Capitation",{"$f":"IFERROR('MMA Rev-Exp Region 6'!$O$11/'MMA Rev-Exp Region 6'!$O$9, 0)","v":{"v":0,"d":"$0.00"}},{"$f":"IFERROR('MMA Rev-Exp Region 6'!$P$11/'MMA Rev-Exp Region 6'!$P$9, 0)","v":{"v":0,"d":"$0.00"}},{"$f":"IFERROR('MMA Rev-Exp Region 6'!$Q$11/'MMA Rev-Exp Region 6'!$Q$9, 0)","v":{"v":0,"d":"$0.00"}},{"$f":"IFERROR('MMA Rev-Exp Region 6'!$R$11/'MMA Rev-Exp Region 6'!$R$9, 0)","v":{"v":0,"d":"$0.00"}},{"$f":"IFERROR('MMA Rev-Exp Region 6'!$S$11/'MMA Rev-Exp Region 6'!$S$9, 0)","v":{"v":0,"d":"$0.00"}},{"$f":"IFERROR('MMA Rev-Exp Region 6'!$T$11/'MMA Rev-Exp Region 6'!$T$9, 0)","v":{"v":0,"d":"$0.00"}},{"$f":"IFERROR('MMA Rev-Exp Region 6'!$U$11/'MMA Rev-Exp Region 6'!$U$9, 0)","v":{"v":0,"d":"$0.00"}},{"$f":"IFERROR('MMA Rev-Exp Region 6'!$V$11/'MMA Rev-Exp Region 6'!$V$9, 0)","v":{"v":0,"d":"$0.00"}},{"$f":"IFERROR('MMA Rev-Exp Region 6'!$W$11/'MMA Rev-Exp Region 6'!$W$9, 0)","v":{"v":0,"d":"$0.00"}},{"$f":"IFERROR('MMA Rev-Exp Region 6'!$X$11/'MMA Rev-Exp Region 6'!$X$9, 0)","v":{"v":0,"d":"$0.00"}},{"$f":"IFERROR('MMA Rev-Exp Region 6'!$Y$11/'MMA Rev-Exp Region 6'!$Y$9, 0)","v":{"v":0,"d":"$0.00"}}]
["MMA",null,null,2016,"2016-12-31","Q2","2017-06-30","Region 6","Operating Revenue","Kick Payments","Kick Payments - Transplant",1.2,"Transplant Kick Payments",{"$f":"IFERROR('MMA Rev-Exp Region 6'!$O$12/'MMA Rev-Exp Region 6'!$O$9, 0)","v":{"v":0,"d":"$0.00"}},{"$f":"IFERROR('MMA Rev-Exp Region 6'!$P$12/'MMA Rev-Exp Region 6'!$P$9, 0)","v":{"v":0,"d":"$0.00"}},{"$f":"IFERROR('MMA Rev-Exp Region 6'!$Q$12/'MMA Rev-Exp Region 6'!$Q$9, 0)","v":{"v":0,"d":"$0.00"}},{"$f":"IFERROR('MMA Rev-Exp Region 6'!$R$12/'MMA Rev-Exp Region 6'!$R$9, 0)","v":{"v":0,"d":"$0.00"}},{"$f":"IFERROR('MMA Rev-Exp Region 6'!$S$12/'MMA Rev-Exp Region 6'!$S$9, 0)","v":{"v":0,"d":"$0.00"}},{"$f":"IFERROR('MMA Rev-Exp Region 6'!$T$12/'MMA Rev-Exp Region 6'!$T$9, 0)","v":{"v":0,"d":"$0.00"}},{"$f":"IFERROR('MMA Rev-Exp Region 6'!$U$12/'MMA Rev-Exp Region 6'!$U$9, 0)","v":{"v":0,"d":"$0.00"}},{"$f":"IFERROR('MMA Rev-Exp Region 6'!$V$12/'MMA Rev-Exp Region 6'!$V$9, 0)","v":{"v":0,"d":"$0.00"}},{"$f":"IFERROR('MMA Rev-Exp Region 6'!$W$12/'MMA Rev-Exp Region 6'!$W$9, 0)","v":{"v":0,"d":"$0.00"}},{"$f":"IFERROR('MMA Rev-Exp Region 6'!$X$12/'MMA Rev-Exp Region 6'!$X$9, 0)","v":{"v":0,"d":"$0.00"}},{"$f":"IFERROR('MMA Rev-Exp Region 6'!$Y$12/'MMA Rev-Exp Region 6'!$Y$9, 0)","v":{"v":0,"d":"$0.00"}}]
["MMA",null,null,2016,"2016-12-31","Q2","2017-06-30","Region 6","Operating Revenue","Kick Payments","Kick Payments - Hep C","1.3","Hepatitis C Kick Payments",{"$f":"IFERROR('MMA Rev-Exp Region 6'!$O$13/'MMA Rev-Exp Region 6'!$O$9, 0)","v":{"v":0,"d":"$0.00"}},{"$f":"IFERROR('MMA Rev-Exp Region 6'!$P$13/'MMA Rev-Exp Region 6'!$P$9, 0)","v":{"v":0,"d":"$0.00"}},{"$f":"IFERROR('MMA Rev-Exp Region 6'!$Q$13/'MMA Rev-Exp Region 6'!$Q$9, 0)","v":{"v":0,"d":"$0.00"}},{"$f":"IFERROR('MMA Rev-Exp Region 6'!$R$13/'MMA Rev-Exp Region 6'!$R$9, 0)","v":{"v":0,"d":"$0.00"}},{"$f":"IFERROR('MMA Rev-Exp Region 6'!$S$13/'MMA Rev-Exp Region 6'!$S$9, 0)","v":{"v":0,"d":"$0.00"}},{"$f":"IFERROR('MMA Rev-Exp Region 6'!$T$13/'MMA Rev-Exp Region 6'!$T$9, 0)","v":{"v":0,"d":"$0.00"}},{"$f":"IFERROR('MMA Rev-Exp Region 6'!$U$13/'MMA Rev-Exp Region 6'!$U$9, 0)","v":{"v":0,"d":"$0.00"}},{"$f":"IFERROR('MMA Rev-Exp Region 6'!$V$13/'MMA Rev-Exp Region 6'!$V$9, 0)","v":{"v":0,"d":"$0.00"}},{"$f":"IFERROR('MMA Rev-Exp Region 6'!$W$13/'MMA Rev-Exp Region 6'!$W$9, 0)","v":{"v":0,"d":"$0.00"}},{"$f":"IFERROR('MMA Rev-Exp Region 6'!$X$13/'MMA Rev-Exp Region 6'!$X$9, 0)","v":{"v":0,"d":"$0.00"}},{"$f":"IFERROR('MMA Rev-Exp Region 6'!$Y$13/'MMA Rev-Exp Region 6'!$Y$9, 0)","v":{"v":0,"d":"$0.00"}}]
["MMA",null,null,2016,"2016-12-31","Q2","2017-06-30","Region 6","Operating Revenue","Kick Payments","Kick Payments - Maternity","1.4.1","Maternity Kick Payments",{"$f":"IFERROR('MMA Rev-Exp Region 6'!$O$14/'MMA Rev-Exp Region 6'!$O$9, 0)","v":{"v":0,"d":"$0.00"}},{"$f":"IFERROR('MMA Rev-Exp Region 6'!$P$14/'MMA Rev-Exp Region 6'!$P$9, 0)","v":{"v":0,"d":"$0.00"}},{"$f":"IFERROR('MMA Rev-Exp Region 6'!$Q$14/'MMA Rev-Exp Region 6'!$Q$9, 0)","v":{"v":0,"d":"$0.00"}},{"$f":"IFERROR('MMA Rev-Exp Region 6'!$R$14/'MMA Rev-Exp Region 6'!$R$9, 0)","v":{"v":0,"d":"$0.00"}},{"$f":"IFERROR('MMA Rev-Exp Region 6'!$S$14/'MMA Rev-Exp Region 6'!$S$9, 0)","v":{"v":0,"d":"$0.00"}},{"$f":"IFERROR('MMA Rev-Exp Region 6'!$T$14/'MMA Rev-Exp Region 6'!$T$9, 0)","v":{"v":0,"d":"$0.00"}},{"$f":"IFERROR('MMA Rev-Exp Region 6'!$U$14/'MMA Rev-Exp Region 6'!$U$9, 0)","v":{"v":0,"d":"$0.00"}},{"$f":"IFERROR('MMA Rev-Exp Region 6'!$V$14/'MMA Rev-Exp Region 6'!$V$9, 0)","v":{"v":0,"d":"$0.00"}},{"$f":"IFERROR('MMA Rev-Exp Region 6'!$W$14/'MMA Rev-Exp Region 6'!$W$9, 0)","v":{"v":0,"d":"$0.00"}},{"$f":"IFERROR('MMA Rev-Exp Region 6'!$X$14/'MMA Rev-Exp Region 6'!$X$9, 0)","v":{"v":0,"d":"$0.00"}},{"$f":"IFERROR('MMA Rev-Exp Region 6'!$Y$14/'MMA Rev-Exp Region 6'!$Y$9, 0)","v":{"v":0,"d":"$0.00"}}]
["MMA",null,null,2016,"2016-12-31","Q2","2017-06-30","Region 6","Operating Revenue","Other Revenue","Other Revenue - 9010","1.5","ACA § 9010 related payments",{"$f":"IFERROR('MMA Rev-Exp Region 6'!$O$15/'MMA Rev-Exp Region 6'!$O$9, 0)","v":{"v":0,"d":"$0.00"}},{"$f":"IFERROR('MMA Rev-Exp Region 6'!$P$15/'MMA Rev-Exp Region 6'!$P$9, 0)","v":{"v":0,"d":"$0.00"}},{"$f":"IFERROR('MMA Rev-Exp Region 6'!$Q$15/'MMA Rev-Exp Region 6'!$Q$9, 0)","v":{"v":0,"d":"$0.00"}},{"$f":"IFERROR('MMA Rev-Exp Region 6'!$R$15/'MMA Rev-Exp Region 6'!$R$9, 0)","v":{"v":0,"d":"$0.00"}},{"$f":"IFERROR('MMA Rev-Exp Region 6'!$S$15/'MMA Rev-Exp Region 6'!$S$9, 0)","v":{"v":0,"d":"$0.00"}},{"$f":"IFERROR('MMA Rev-Exp Region 6'!$T$15/'MMA Rev-Exp Region 6'!$T$9, 0)","v":{"v":0,"d":"$0.00"}},{"$f":"IFERROR('MMA Rev-Exp Region 6'!$U$15/'MMA Rev-Exp Region 6'!$U$9, 0)","v":{"v":0,"d":"$0.00"}},{"$f":"IFERROR('MMA Rev-Exp Region 6'!$V$15/'MMA Rev-Exp Region 6'!$V$9, 0)","v":{"v":0,"d":"$0.00"}},{"$f":"IFERROR('MMA Rev-Exp Region 6'!$W$15/'MMA Rev-Exp Region 6'!$W$9, 0)","v":{"v":0,"d":"$0.00"}},{"$f":"IFERROR('MMA Rev-Exp Region 6'!$X$15/'MMA Rev-Exp Region 6'!$X$9, 0)","v":{"v":0,"d":"$0.00"}},{"$f":"IFERROR('MMA Rev-Exp Region 6'!$Y$15/'MMA Rev-Exp Region 6'!$Y$9, 0)","v":{"v":0,"d":"$0.00"}}]
["MMA",null,null,2016,"2016-12-31","Q2","2017-06-30","Region 6","Operating Revenue","Other Revenue","Other Revenue","1.6","Other Revenue",{"$f":"IFERROR('MMA Rev-Exp Region 6'!$O$16/'MMA Rev-Exp Region 6'!$O$9, 0)","v":{"v":0,"d":"$0.00"}},{"$f":"IFERROR('MMA Rev-Exp Region 6'!$P$16/'MMA Rev-Exp Region 6'!$P$9, 0)","v":{"v":0,"d":"$0.00"}},{"$f":"IFERROR('MMA Rev-Exp Region 6'!$Q$16/'MMA Rev-Exp Region 6'!$Q$9, 0)","v":{"v":0,"d":"$0.00"}},{"$f":"IFERROR('MMA Rev-Exp Region 6'!$R$16/'MMA Rev-Exp Region 6'!$R$9, 0)","v":{"v":0,"d":"$0.00"}},{"$f":"IFERROR('MMA Rev-Exp Region 6'!$S$16/'MMA Rev-Exp Region 6'!$S$9, 0)","v":{"v":0,"d":"$0.00"}},{"$f":"IFERROR('MMA Rev-Exp Region 6'!$T$16/'MMA Rev-Exp Region 6'!$T$9, 0)","v":{"v":0,"d":"$0.00"}},{"$f":"IFERROR('MMA Rev-Exp Region 6'!$U$16/'MMA Rev-Exp Region 6'!$U$9, 0)","v":{"v":0,"d":"$0.00"}},{"$f":"IFERROR('MMA Rev-Exp Region 6'!$V$16/'MMA Rev-Exp Region 6'!$V$9, 0)","v":{"v":0,"d":"$0.00"}},{"$f":"IFERROR('MMA Rev-Exp Region 6'!$W$16/'MMA Rev-Exp Region 6'!$W$9, 0)","v":{"v":0,"d":"$0.00"}},{"$f":"IFERROR('MMA Rev-Exp Region 6'!$X$16/'MMA Rev-Exp Region 6'!$X$9, 0)","v":{"v":0,"d":"$0.00"}},{"$f":"IFERROR('MMA Rev-Exp Region 6'!$Y$16/'MMA Rev-Exp Region 6'!$Y$9, 0)","v":{"v":0,"d":"$0.00"}}]
["MMA",null,null,2016,"2016-12-31","Q2","2017-06-30","Region 6","Operating Expense","Medical Benefits Expense","Hospital Services",2.1,"Inpatient FFS",{"$f":"IFERROR('MMA Rev-Exp Region 6'!$O$20/'MMA Rev-Exp Region 6'!$O$9, 0)","v":{"v":0,"d":"$0.00"}},{"$f":"IFERROR('MMA Rev-Exp Region 6'!$P$20/'MMA Rev-Exp Region 6'!$P$9, 0)","v":{"v":0,"d":"$0.00"}},{"$f":"IFERROR('MMA Rev-Exp Region 6'!$Q$20/'MMA Rev-Exp Region 6'!$Q$9, 0)","v":{"v":0,"d":"$0.00"}},{"$f":"IFERROR('MMA Rev-Exp Region 6'!$R$20/'MMA Rev-Exp Region 6'!$R$9, 0)","v":{"v":0,"d":"$0.00"}},{"$f":"IFERROR('MMA Rev-Exp Region 6'!$S$20/'MMA Rev-Exp Region 6'!$S$9, 0)","v":{"v":0,"d":"$0.00"}},{"$f":"IFERROR('MMA Rev-Exp Region 6'!$T$20/'MMA Rev-Exp Region 6'!$T$9, 0)","v":{"v":0,"d":"$0.00"}},{"$f":"IFERROR('MMA Rev-Exp Region 6'!$U$20/'MMA Rev-Exp Region 6'!$U$9, 0)","v":{"v":0,"d":"$0.00"}},{"$f":"IFERROR('MMA Rev-Exp Region 6'!$V$20/'MMA Rev-Exp Region 6'!$V$9, 0)","v":{"v":0,"d":"$0.00"}},{"$f":"IFERROR('MMA Rev-Exp Region 6'!$W$20/'MMA Rev-Exp Region 6'!$W$9, 0)","v":{"v":0,"d":"$0.00"}},{"$f":"IFERROR('MMA Rev-Exp Region 6'!$X$20/'MMA Rev-Exp Region 6'!$X$9, 0)","v":{"v":0,"d":"$0.00"}},{"$f":"IFERROR('MMA Rev-Exp Region 6'!$Y$20/'MMA Rev-Exp Region 6'!$Y$9, 0)","v":{"v":0,"d":"$0.00"}}]
["MMA",null,null,2016,"2016-12-31","Q2","2017-06-30","Region 6","Operating Expense","Medical Benefits Expense","Hospital Services",2.2,"Ending IBNP for Inpatient Hospital Services",{"$f":"IFERROR('MMA Rev-Exp Region 6'!$O$21/'MMA Rev-Exp Region 6'!$O$9, 0)","v":{"v":0,"d":"$0.00"}},{"$f":"IFERROR('MMA Rev-Exp Region 6'!$P$21/'MMA Rev-Exp Region 6'!$P$9, 0)","v":{"v":0,"d":"$0.00"}},{"$f":"IFERROR('MMA Rev-Exp Region 6'!$Q$21/'MMA Rev-Exp Region 6'!$Q$9, 0)","v":{"v":0,"d":"$0.00"}},{"$f":"IFERROR('MMA Rev-Exp Region 6'!$R$21/'MMA Rev-Exp Region 6'!$R$9, 0)","v":{"v":0,"d":"$0.00"}},{"$f":"IFERROR('MMA Rev-Exp Region 6'!$S$21/'MMA Rev-Exp Region 6'!$S$9, 0)","v":{"v":0,"d":"$0.00"}},{"$f":"IFERROR('MMA Rev-Exp Region 6'!$T$21/'MMA Rev-Exp Region 6'!$T$9, 0)","v":{"v":0,"d":"$0.00"}},{"$f":"IFERROR('MMA Rev-Exp Region 6'!$U$21/'MMA Rev-Exp Region 6'!$U$9, 0)","v":{"v":0,"d":"$0.00"}},{"$f":"IFERROR('MMA Rev-Exp Region 6'!$V$21/'MMA Rev-Exp Region 6'!$V$9, 0)","v":{"v":0,"d":"$0.00"}},{"$f":"IFERROR('MMA Rev-Exp Region 6'!$W$21/'MMA Rev-Exp Region 6'!$W$9, 0)","v":{"v":0,"d":"$0.00"}},{"$f":"IFERROR('MMA Rev-Exp Region 6'!$X$21/'MMA Rev-Exp Region 6'!$X$9, 0)","v":{"v":0,"d":"$0.00"}},{"$f":"IFERROR('MMA Rev-Exp Region 6'!$Y$21/'MMA Rev-Exp Region 6'!$Y$9, 0)","v":{"v":0,"d":"$0.00"}}]
["MMA",null,null,2016,"2016-12-31","Q2","2017-06-30","Region 6","Operating Expense","Medical Benefits Expense","Hospital Services",2.3,"Outpatient FFS: ER",{"$f":"IFERROR('MMA Rev-Exp Region 6'!$O$22/'MMA Rev-Exp Region 6'!$O$9, 0)","v":{"v":0,"d":"$0.00"}},{"$f":"IFERROR('MMA Rev-Exp Region 6'!$P$22/'MMA Rev-Exp Region 6'!$P$9, 0)","v":{"v":0,"d":"$0.00"}},{"$f":"IFERROR('MMA Rev-Exp Region 6'!$Q$22/'MMA Rev-Exp Region 6'!$Q$9, 0)","v":{"v":0,"d":"$0.00"}},{"$f":"IFERROR('MMA Rev-Exp Region 6'!$R$22/'MMA Rev-Exp Region 6'!$R$9, 0)","v":{"v":0,"d":"$0.00"}},{"$f":"IFERROR('MMA Rev-Exp Region 6'!$S$22/'MMA Rev-Exp Region 6'!$S$9, 0)","v":{"v":0,"d":"$0.00"}},{"$f":"IFERROR('MMA Rev-Exp Region 6'!$T$22/'MMA Rev-Exp Region 6'!$T$9, 0)","v":{"v":0,"d":"$0.00"}},{"$f":"IFERROR('MMA Rev-Exp Region 6'!$U$22/'MMA Rev-Exp Region 6'!$U$9, 0)","v":{"v":0,"d":"$0.00"}},{"$f":"IFERROR('MMA Rev-Exp Region 6'!$V$22/'MMA Rev-Exp Region 6'!$V$9, 0)","v":{"v":0,"d":"$0.00"}},{"$f":"IFERROR('MMA Rev-Exp Region 6'!$W$22/'MMA Rev-Exp Region 6'!$W$9, 0)","v":{"v":0,"d":"$0.00"}},{"$f":"IFERROR('MMA Rev-Exp Region 6'!$X$22/'MMA Rev-Exp Region 6'!$X$9, 0)","v":{"v":0,"d":"$0.00"}},{"$f":"IFERROR('MMA Rev-Exp Region 6'!$Y$22/'MMA Rev-Exp Region 6'!$Y$9, 0)","v":{"v":0,"d":"$0.00"}}]
["MMA",null,null,2016,"2016-12-31","Q2","2017-06-30","Region 6","Operating Expense","Medical Benefits Expense","Hospital Services",2.4,"Outpatient FFS: Other than ER ",{"$f":"IFERROR('MMA Rev-Exp Region 6'!$O$23/'MMA Rev-Exp Region 6'!$O$9, 0)","v":{"v":0,"d":"$0.00"}},{"$f":"IFERROR('MMA Rev-Exp Region 6'!$P$23/'MMA Rev-Exp Region 6'!$P$9, 0)","v":{"v":0,"d":"$0.00"}},{"$f":"IFERROR('MMA Rev-Exp Region 6'!$Q$23/'MMA Rev-Exp Region 6'!$Q$9, 0)","v":{"v":0,"d":"$0.00"}},{"$f":"IFERROR('MMA Rev-Exp Region 6'!$R$23/'MMA Rev-Exp Region 6'!$R$9, 0)","v":{"v":0,"d":"$0.00"}},{"$f":"IFERROR('MMA Rev-Exp Region 6'!$S$23/'MMA Rev-Exp Region 6'!$S$9, 0)","v":{"v":0,"d":"$0.00"}},{"$f":"IFERROR('MMA Rev-Exp Region 6'!$T$23/'MMA Rev-Exp Region 6'!$T$9, 0)","v":{"v":0,"d":"$0.00"}},{"$f":"IFERROR('MMA Rev-Exp Region 6'!$U$23/'MMA Rev-Exp Region 6'!$U$9, 0)","v":{"v":0,"d":"$0.00"}},{"$f":"IFERROR('MMA Rev-Exp Region 6'!$V$23/'MMA Rev-Exp Region 6'!$V$9, 0)","v":{"v":0,"d":"$0.00"}},{"$f":"IFERROR('MMA Rev-Exp Region 6'!$W$23/'MMA Rev-Exp Region 6'!$W$9, 0)","v":{"v":0,"d":"$0.00"}},{"$f":"IFERROR('MMA Rev-Exp Region 6'!$X$23/'MMA Rev-Exp Region 6'!$X$9, 0)","v":{"v":0,"d":"$0.00"}},{"$f":"IFERROR('MMA Rev-Exp Region 6'!$Y$23/'MMA Rev-Exp Region 6'!$Y$9, 0)","v":{"v":0,"d":"$0.00"}}]
["MMA",null,null,2016,"2016-12-31","Q2","2017-06-30","Region 6","Operating Expense","Medical Benefits Expense","Hospital Services",2.5,"Ending IBNP for Outpatient Hospital Services",{"$f":"IFERROR('MMA Rev-Exp Region 6'!$O$24/'MMA Rev-Exp Region 6'!$O$9, 0)","v":{"v":0,"d":"$0.00"}},{"$f":"IFERROR('MMA Rev-Exp Region 6'!$P$24/'MMA Rev-Exp Region 6'!$P$9, 0)","v":{"v":0,"d":"$0.00"}},{"$f":"IFERROR('MMA Rev-Exp Region 6'!$Q$24/'MMA Rev-Exp Region 6'!$Q$9, 0)","v":{"v":0,"d":"$0.00"}},{"$f":"IFERROR('MMA Rev-Exp Region 6'!$R$24/'MMA Rev-Exp Region 6'!$R$9, 0)","v":{"v":0,"d":"$0.00"}},{"$f":"IFERROR('MMA Rev-Exp Region 6'!$S$24/'MMA Rev-Exp Region 6'!$S$9, 0)","v":{"v":0,"d":"$0.00"}},{"$f":"IFERROR('MMA Rev-Exp Region 6'!$T$24/'MMA Rev-Exp Region 6'!$T$9, 0)","v":{"v":0,"d":"$0.00"}},{"$f":"IFERROR('MMA Rev-Exp Region 6'!$U$24/'MMA Rev-Exp Region 6'!$U$9, 0)","v":{"v":0,"d":"$0.00"}},{"$f":"IFERROR('MMA Rev-Exp Region 6'!$V$24/'MMA Rev-Exp Region 6'!$V$9, 0)","v":{"v":0,"d":"$0.00"}},{"$f":"IFERROR('MMA Rev-Exp Region 6'!$W$24/'MMA Rev-Exp Region 6'!$W$9, 0)","v":{"v":0,"d":"$0.00"}},{"$f":"IFERROR('MMA Rev-Exp Region 6'!$X$24/'MMA Rev-Exp Region 6'!$X$9, 0)","v":{"v":0,"d":"$0.00"}},{"$f":"IFERROR('MMA Rev-Exp Region 6'!$Y$24/'MMA Rev-Exp Region 6'!$Y$9, 0)","v":{"v":0,"d":"$0.00"}}]
["MMA",null,null,2016,"2016-12-31","Q2","2017-06-30","Region 6","Operating Expense","Medical Benefits Expense","Hospital Services","2.6","Subcapitated Hospital Services",{"$f":"IFERROR('MMA Rev-Exp Region 6'!$O$25/'MMA Rev-Exp Region 6'!$O$9, 0)","v":{"v":0,"d":"$0.00"}},{"$f":"IFERROR('MMA Rev-Exp Region 6'!$P$25/'MMA Rev-Exp Region 6'!$P$9, 0)","v":{"v":0,"d":"$0.00"}},{"$f":"IFERROR('MMA Rev-Exp Region 6'!$Q$25/'MMA Rev-Exp Region 6'!$Q$9, 0)","v":{"v":0,"d":"$0.00"}},{"$f":"IFERROR('MMA Rev-Exp Region 6'!$R$25/'MMA Rev-Exp Region 6'!$R$9, 0)","v":{"v":0,"d":"$0.00"}},{"$f":"IFERROR('MMA Rev-Exp Region 6'!$S$25/'MMA Rev-Exp Region 6'!$S$9, 0)","v":{"v":0,"d":"$0.00"}},{"$f":"IFERROR('MMA Rev-Exp Region 6'!$T$25/'MMA Rev-Exp Region 6'!$T$9, 0)","v":{"v":0,"d":"$0.00"}},{"$f":"IFERROR('MMA Rev-Exp Region 6'!$U$25/'MMA Rev-Exp Region 6'!$U$9, 0)","v":{"v":0,"d":"$0.00"}},{"$f":"IFERROR('MMA Rev-Exp Region 6'!$V$25/'MMA Rev-Exp Region 6'!$V$9, 0)","v":{"v":0,"d":"$0.00"}},{"$f":"IFERROR('MMA Rev-Exp Region 6'!$W$25/'MMA Rev-Exp Region 6'!$W$9, 0)","v":{"v":0,"d":"$0.00"}},{"$f":"IFERROR('MMA Rev-Exp Region 6'!$X$25/'MMA Rev-Exp Region 6'!$X$9, 0)","v":{"v":0,"d":"$0.00"}},{"$f":"IFERROR('MMA Rev-Exp Region 6'!$Y$25/'MMA Rev-Exp Region 6'!$Y$9, 0)","v":{"v":0,"d":"$0.00"}}]
["MMA",null,null,2016,"2016-12-31","Q2","2017-06-30","Region 6","Operating Expense","Medical Benefits Expense","Hospital Services","2.7","Hospital Settlements",{"$f":"IFERROR('MMA Rev-Exp Region 6'!$O$26/'MMA Rev-Exp Region 6'!$O$9, 0)","v":{"v":0,"d":"$0.00"}},{"$f":"IFERROR('MMA Rev-Exp Region 6'!$P$26/'MMA Rev-Exp Region 6'!$P$9, 0)","v":{"v":0,"d":"$0.00"}},{"$f":"IFERROR('MMA Rev-Exp Region 6'!$Q$26/'MMA Rev-Exp Region 6'!$Q$9, 0)","v":{"v":0,"d":"$0.00"}},{"$f":"IFERROR('MMA Rev-Exp Region 6'!$R$26/'MMA Rev-Exp Region 6'!$R$9, 0)","v":{"v":0,"d":"$0.00"}},{"$f":"IFERROR('MMA Rev-Exp Region 6'!$S$26/'MMA Rev-Exp Region 6'!$S$9, 0)","v":{"v":0,"d":"$0.00"}},{"$f":"IFERROR('MMA Rev-Exp Region 6'!$T$26/'MMA Rev-Exp Region 6'!$T$9, 0)","v":{"v":0,"d":"$0.00"}},{"$f":"IFERROR('MMA Rev-Exp Region 6'!$U$26/'MMA Rev-Exp Region 6'!$U$9, 0)","v":{"v":0,"d":"$0.00"}},{"$f":"IFERROR('MMA Rev-Exp Region 6'!$V$26/'MMA Rev-Exp Region 6'!$V$9, 0)","v":{"v":0,"d":"$0.00"}},{"$f":"IFERROR('MMA Rev-Exp Region 6'!$W$26/'MMA Rev-Exp Region 6'!$W$9, 0)","v":{"v":0,"d":"$0.00"}},{"$f":"IFERROR('MMA Rev-Exp Region 6'!$X$26/'MMA Rev-Exp Region 6'!$X$9, 0)","v":{"v":0,"d":"$0.00"}},{"$f":"IFERROR('MMA Rev-Exp Region 6'!$Y$26/'MMA Rev-Exp Region 6'!$Y$9, 0)","v":{"v":0,"d":"$0.00"}}]
["MMA",null,null,2016,"2016-12-31","Q2","2017-06-30","Region 6","Operating Expense","Medical Benefits Expense","Hospital Services","2.7.1","Transplant Services",{"$f":"IFERROR('MMA Rev-Exp Region 6'!$O$27/'MMA Rev-Exp Region 6'!$O$9, 0)","v":{"v":0,"d":"$0.00"}},{"$f":"IFERROR('MMA Rev-Exp Region 6'!$P$27/'MMA Rev-Exp Region 6'!$P$9, 0)","v":{"v":0,"d":"$0.00"}},{"$f":"IFERROR('MMA Rev-Exp Region 6'!$Q$27/'MMA Rev-Exp Region 6'!$Q$9, 0)","v":{"v":0,"d":"$0.00"}},{"$f":"IFERROR('MMA Rev-Exp Region 6'!$R$27/'MMA Rev-Exp Region 6'!$R$9, 0)","v":{"v":0,"d":"$0.00"}},{"$f":"IFERROR('MMA Rev-Exp Region 6'!$S$27/'MMA Rev-Exp Region 6'!$S$9, 0)","v":{"v":0,"d":"$0.00"}},{"$f":"IFERROR('MMA Rev-Exp Region 6'!$T$27/'MMA Rev-Exp Region 6'!$T$9, 0)","v":{"v":0,"d":"$0.00"}},{"$f":"IFERROR('MMA Rev-Exp Region 6'!$U$27/'MMA Rev-Exp Region 6'!$U$9, 0)","v":{"v":0,"d":"$0.00"}},{"$f":"IFERROR('MMA Rev-Exp Region 6'!$V$27/'MMA Rev-Exp Region 6'!$V$9, 0)","v":{"v":0,"d":"$0.00"}},{"$f":"IFERROR('MMA Rev-Exp Region 6'!$W$27/'MMA Rev-Exp Region 6'!$W$9, 0)","v":{"v":0,"d":"$0.00"}},{"$f":"IFERROR('MMA Rev-Exp Region 6'!$X$27/'MMA Rev-Exp Region 6'!$X$9, 0)","v":{"v":0,"d":"$0.00"}},{"$f":"IFERROR('MMA Rev-Exp Region 6'!$Y$27/'MMA Rev-Exp Region 6'!$Y$9, 0)","v":{"v":0,"d":"$0.00"}}]
["MMA",null,null,2016,"2016-12-31","Q2","2017-06-30","Region 6","Operating Expense","Medical Benefits Expense","Professional Services",3.1,"Primary Care FFS",{"$f":"IFERROR('MMA Rev-Exp Region 6'!$O$29/'MMA Rev-Exp Region 6'!$O$9, 0)","v":{"v":0,"d":"$0.00"}},{"$f":"IFERROR('MMA Rev-Exp Region 6'!$P$29/'MMA Rev-Exp Region 6'!$P$9, 0)","v":{"v":0,"d":"$0.00"}},{"$f":"IFERROR('MMA Rev-Exp Region 6'!$Q$29/'MMA Rev-Exp Region 6'!$Q$9, 0)","v":{"v":0,"d":"$0.00"}},{"$f":"IFERROR('MMA Rev-Exp Region 6'!$R$29/'MMA Rev-Exp Region 6'!$R$9, 0)","v":{"v":0,"d":"$0.00"}},{"$f":"IFERROR('MMA Rev-Exp Region 6'!$S$29/'MMA Rev-Exp Region 6'!$S$9, 0)","v":{"v":0,"d":"$0.00"}},{"$f":"IFERROR('MMA Rev-Exp Region 6'!$T$29/'MMA Rev-Exp Region 6'!$T$9, 0)","v":{"v":0,"d":"$0.00"}},{"$f":"IFERROR('MMA Rev-Exp Region 6'!$U$29/'MMA Rev-Exp Region 6'!$U$9, 0)","v":{"v":0,"d":"$0.00"}},{"$f":"IFERROR('MMA Rev-Exp Region 6'!$V$29/'MMA Rev-Exp Region 6'!$V$9, 0)","v":{"v":0,"d":"$0.00"}},{"$f":"IFERROR('MMA Rev-Exp Region 6'!$W$29/'MMA Rev-Exp Region 6'!$W$9, 0)","v":{"v":0,"d":"$0.00"}},{"$f":"IFERROR('MMA Rev-Exp Region 6'!$X$29/'MMA Rev-Exp Region 6'!$X$9, 0)","v":{"v":0,"d":"$0.00"}},{"$f":"IFERROR('MMA Rev-Exp Region 6'!$Y$29/'MMA Rev-Exp Region 6'!$Y$9, 0)","v":{"v":0,"d":"$0.00"}}]
["MMA",null,null,2016,"2016-12-31","Q2","2017-06-30","Region 6","Operating Expense","Medical Benefits Expense","Professional Services",3.2,"Specialty Care FFS",{"$f":"IFERROR('MMA Rev-Exp Region 6'!$O$30/'MMA Rev-Exp Region 6'!$O$9, 0)","v":{"v":0,"d":"$0.00"}},{"$f":"IFERROR('MMA Rev-Exp Region 6'!$P$30/'MMA Rev-Exp Region 6'!$P$9, 0)","v":{"v":0,"d":"$0.00"}},{"$f":"IFERROR('MMA Rev-Exp Region 6'!$Q$30/'MMA Rev-Exp Region 6'!$Q$9, 0)","v":{"v":0,"d":"$0.00"}},{"$f":"IFERROR('MMA Rev-Exp Region 6'!$R$30/'MMA Rev-Exp Region 6'!$R$9, 0)","v":{"v":0,"d":"$0.00"}},{"$f":"IFERROR('MMA Rev-Exp Region 6'!$S$30/'MMA Rev-Exp Region 6'!$S$9, 0)","v":{"v":0,"d":"$0.00"}},{"$f":"IFERROR('MMA Rev-Exp Region 6'!$T$30/'MMA Rev-Exp Region 6'!$T$9, 0)","v":{"v":0,"d":"$0.00"}},{"$f":"IFERROR('MMA Rev-Exp Region 6'!$U$30/'MMA Rev-Exp Region 6'!$U$9, 0)","v":{"v":0,"d":"$0.00"}},{"$f":"IFERROR('MMA Rev-Exp Region 6'!$V$30/'MMA Rev-Exp Region 6'!$V$9, 0)","v":{"v":0,"d":"$0.00"}},{"$f":"IFERROR('MMA Rev-Exp Region 6'!$W$30/'MMA Rev-Exp Region 6'!$W$9, 0)","v":{"v":0,"d":"$0.00"}},{"$f":"IFERROR('MMA Rev-Exp Region 6'!$X$30/'MMA Rev-Exp Region 6'!$X$9, 0)","v":{"v":0,"d":"$0.00"}},{"$f":"IFERROR('MMA Rev-Exp Region 6'!$Y$30/'MMA Rev-Exp Region 6'!$Y$9, 0)","v":{"v":0,"d":"$0.00"}}]
["MMA",null,null,2016,"2016-12-31","Q2","2017-06-30","Region 6","Operating Expense","Medical Benefits Expense","Professional Services",3.3,"Other Professional FFS",{"$f":"IFERROR('MMA Rev-Exp Region 6'!$O$31/'MMA Rev-Exp Region 6'!$O$9, 0)","v":{"v":0,"d":"$0.00"}},{"$f":"IFERROR('MMA Rev-Exp Region 6'!$P$31/'MMA Rev-Exp Region 6'!$P$9, 0)","v":{"v":0,"d":"$0.00"}},{"$f":"IFERROR('MMA Rev-Exp Region 6'!$Q$31/'MMA Rev-Exp Region 6'!$Q$9, 0)","v":{"v":0,"d":"$0.00"}},{"$f":"IFERROR('MMA Rev-Exp Region 6'!$R$31/'MMA Rev-Exp Region 6'!$R$9, 0)","v":{"v":0,"d":"$0.00"}},{"$f":"IFERROR('MMA Rev-Exp Region 6'!$S$31/'MMA Rev-Exp Region 6'!$S$9, 0)","v":{"v":0,"d":"$0.00"}},{"$f":"IFERROR('MMA Rev-Exp Region 6'!$T$31/'MMA Rev-Exp Region 6'!$T$9, 0)","v":{"v":0,"d":"$0.00"}},{"$f":"IFERROR('MMA Rev-Exp Region 6'!$U$31/'MMA Rev-Exp Region 6'!$U$9, 0)","v":{"v":0,"d":"$0.00"}},{"$f":"IFERROR('MMA Rev-Exp Region 6'!$V$31/'MMA Rev-Exp Region 6'!$V$9, 0)","v":{"v":0,"d":"$0.00"}},{"$f":"IFERROR('MMA Rev-Exp Region 6'!$W$31/'MMA Rev-Exp Region 6'!$W$9, 0)","v":{"v":0,"d":"$0.00"}},{"$f":"IFERROR('MMA Rev-Exp Region 6'!$X$31/'MMA Rev-Exp Region 6'!$X$9, 0)","v":{"v":0,"d":"$0.00"}},{"$f":"IFERROR('MMA Rev-Exp Region 6'!$Y$31/'MMA Rev-Exp Region 6'!$Y$9, 0)","v":{"v":0,"d":"$0.00"}}]
["MMA",null,null,2016,"2016-12-31","Q2","2017-06-30","Region 6","Operating Expense","Medical Benefits Expense","Professional Services","3.4","§ 1202 PCP Payments to providers",{"$f":"IFERROR('MMA Rev-Exp Region 6'!$O$32/'MMA Rev-Exp Region 6'!$O$9, 0)","v":{"v":0,"d":"$0.00"}},{"$f":"IFERROR('MMA Rev-Exp Region 6'!$P$32/'MMA Rev-Exp Region 6'!$P$9, 0)","v":{"v":0,"d":"$0.00"}},{"$f":"IFERROR('MMA Rev-Exp Region 6'!$Q$32/'MMA Rev-Exp Region 6'!$Q$9, 0)","v":{"v":0,"d":"$0.00"}},{"$f":"IFERROR('MMA Rev-Exp Region 6'!$R$32/'MMA Rev-Exp Region 6'!$R$9, 0)","v":{"v":0,"d":"$0.00"}},{"$f":"IFERROR('MMA Rev-Exp Region 6'!$S$32/'MMA Rev-Exp Region 6'!$S$9, 0)","v":{"v":0,"d":"$0.00"}},{"$f":"IFERROR('MMA Rev-Exp Region 6'!$T$32/'MMA Rev-Exp Region 6'!$T$9, 0)","v":{"v":0,"d":"$0.00"}},{"$f":"IFERROR('MMA Rev-Exp Region 6'!$U$32/'MMA Rev-Exp Region 6'!$U$9, 0)","v":{"v":0,"d":"$0.00"}},{"$f":"IFERROR('MMA Rev-Exp Region 6'!$V$32/'MMA Rev-Exp Region 6'!$V$9, 0)","v":{"v":0,"d":"$0.00"}},{"$f":"IFERROR('MMA Rev-Exp Region 6'!$W$32/'MMA Rev-Exp Region 6'!$W$9, 0)","v":{"v":0,"d":"$0.00"}},{"$f":"IFERROR('MMA Rev-Exp Region 6'!$X$32/'MMA Rev-Exp Region 6'!$X$9, 0)","v":{"v":0,"d":"$0.00"}},{"$f":"IFERROR('MMA Rev-Exp Region 6'!$Y$32/'MMA Rev-Exp Region 6'!$Y$9, 0)","v":{"v":0,"d":"$0.00"}}]
["MMA",null,null,2016,"2016-12-31","Q2","2017-06-30","Region 6","Operating Expense","Medical Benefits Expense","Professional Services","3.5","Subcapitated Professional Services",{"$f":"IFERROR('MMA Rev-Exp Region 6'!$O$33/'MMA Rev-Exp Region 6'!$O$9, 0)","v":{"v":0,"d":"$0.00"}},{"$f":"IFERROR('MMA Rev-Exp Region 6'!$P$33/'MMA Rev-Exp Region 6'!$P$9, 0)","v":{"v":0,"d":"$0.00"}},{"$f":"IFERROR('MMA Rev-Exp Region 6'!$Q$33/'MMA Rev-Exp Region 6'!$Q$9, 0)","v":{"v":0,"d":"$0.00"}},{"$f":"IFERROR('MMA Rev-Exp Region 6'!$R$33/'MMA Rev-Exp Region 6'!$R$9, 0)","v":{"v":0,"d":"$0.00"}},{"$f":"IFERROR('MMA Rev-Exp Region 6'!$S$33/'MMA Rev-Exp Region 6'!$S$9, 0)","v":{"v":0,"d":"$0.00"}},{"$f":"IFERROR('MMA Rev-Exp Region 6'!$T$33/'MMA Rev-Exp Region 6'!$T$9, 0)","v":{"v":0,"d":"$0.00"}},{"$f":"IFERROR('MMA Rev-Exp Region 6'!$U$33/'MMA Rev-Exp Region 6'!$U$9, 0)","v":{"v":0,"d":"$0.00"}},{"$f":"IFERROR('MMA Rev-Exp Region 6'!$V$33/'MMA Rev-Exp Region 6'!$V$9, 0)","v":{"v":0,"d":"$0.00"}},{"$f":"IFERROR('MMA Rev-Exp Region 6'!$W$33/'MMA Rev-Exp Region 6'!$W$9, 0)","v":{"v":0,"d":"$0.00"}},{"$f":"IFERROR('MMA Rev-Exp Region 6'!$X$33/'MMA Rev-Exp Region 6'!$X$9, 0)","v":{"v":0,"d":"$0.00"}},{"$f":"IFERROR('MMA Rev-Exp Region 6'!$Y$33/'MMA Rev-Exp Region 6'!$Y$9, 0)","v":{"v":0,"d":"$0.00"}}]
["MMA",null,null,2016,"2016-12-31","Q2","2017-06-30","Region 6","Operating Expense","Medical Benefits Expense","Professional Services","3.6","Ending IBNP for Professional Services",{"$f":"IFERROR('MMA Rev-Exp Region 6'!$O$34/'MMA Rev-Exp Region 6'!$O$9, 0)","v":{"v":0,"d":"$0.00"}},{"$f":"IFERROR('MMA Rev-Exp Region 6'!$P$34/'MMA Rev-Exp Region 6'!$P$9, 0)","v":{"v":0,"d":"$0.00"}},{"$f":"IFERROR('MMA Rev-Exp Region 6'!$Q$34/'MMA Rev-Exp Region 6'!$Q$9, 0)","v":{"v":0,"d":"$0.00"}},{"$f":"IFERROR('MMA Rev-Exp Region 6'!$R$34/'MMA Rev-Exp Region 6'!$R$9, 0)","v":{"v":0,"d":"$0.00"}},{"$f":"IFERROR('MMA Rev-Exp Region 6'!$S$34/'MMA Rev-Exp Region 6'!$S$9, 0)","v":{"v":0,"d":"$0.00"}},{"$f":"IFERROR('MMA Rev-Exp Region 6'!$T$34/'MMA Rev-Exp Region 6'!$T$9, 0)","v":{"v":0,"d":"$0.00"}},{"$f":"IFERROR('MMA Rev-Exp Region 6'!$U$34/'MMA Rev-Exp Region 6'!$U$9, 0)","v":{"v":0,"d":"$0.00"}},{"$f":"IFERROR('MMA Rev-Exp Region 6'!$V$34/'MMA Rev-Exp Region 6'!$V$9, 0)","v":{"v":0,"d":"$0.00"}},{"$f":"IFERROR('MMA Rev-Exp Region 6'!$W$34/'MMA Rev-Exp Region 6'!$W$9, 0)","v":{"v":0,"d":"$0.00"}},{"$f":"IFERROR('MMA Rev-Exp Region 6'!$X$34/'MMA Rev-Exp Region 6'!$X$9, 0)","v":{"v":0,"d":"$0.00"}},{"$f":"IFERROR('MMA Rev-Exp Region 6'!$Y$34/'MMA Rev-Exp Region 6'!$Y$9, 0)","v":{"v":0,"d":"$0.00"}}]
["MMA",null,null,2016,"2016-12-31","Q2","2017-06-30","Region 6","Operating Expense","Medical Benefits Expense","Professional Services","3.7","Professional Services Settlements",{"$f":"IFERROR('MMA Rev-Exp Region 6'!$O$35/'MMA Rev-Exp Region 6'!$O$9, 0)","v":{"v":0,"d":"$0.00"}},{"$f":"IFERROR('MMA Rev-Exp Region 6'!$P$35/'MMA Rev-Exp Region 6'!$P$9, 0)","v":{"v":0,"d":"$0.00"}},{"$f":"IFERROR('MMA Rev-Exp Region 6'!$Q$35/'MMA Rev-Exp Region 6'!$Q$9, 0)","v":{"v":0,"d":"$0.00"}},{"$f":"IFERROR('MMA Rev-Exp Region 6'!$R$35/'MMA Rev-Exp Region 6'!$R$9, 0)","v":{"v":0,"d":"$0.00"}},{"$f":"IFERROR('MMA Rev-Exp Region 6'!$S$35/'MMA Rev-Exp Region 6'!$S$9, 0)","v":{"v":0,"d":"$0.00"}},{"$f":"IFERROR('MMA Rev-Exp Region 6'!$T$35/'MMA Rev-Exp Region 6'!$T$9, 0)","v":{"v":0,"d":"$0.00"}},{"$f":"IFERROR('MMA Rev-Exp Region 6'!$U$35/'MMA Rev-Exp Region 6'!$U$9, 0)","v":{"v":0,"d":"$0.00"}},{"$f":"IFERROR('MMA Rev-Exp Region 6'!$V$35/'MMA Rev-Exp Region 6'!$V$9, 0)","v":{"v":0,"d":"$0.00"}},{"$f":"IFERROR('MMA Rev-Exp Region 6'!$W$35/'MMA Rev-Exp Region 6'!$W$9, 0)","v":{"v":0,"d":"$0.00"}},{"$f":"IFERROR('MMA Rev-Exp Region 6'!$X$35/'MMA Rev-Exp Region 6'!$X$9, 0)","v":{"v":0,"d":"$0.00"}},{"$f":"IFERROR('MMA Rev-Exp Region 6'!$Y$35/'MMA Rev-Exp Region 6'!$Y$9, 0)","v":{"v":0,"d":"$0.00"}}]
["MMA",null,null,2016,"2016-12-31","Q2","2017-06-30","Region 6","Operating Expense","Medical Benefits Expense","Maternity Services","4.1.1","Maternity Services",{"$f":"IFERROR('MMA Rev-Exp Region 6'!$O$37/'MMA Rev-Exp Region 6'!$O$9, 0)","v":{"v":0,"d":"$0.00"}},{"$f":"IFERROR('MMA Rev-Exp Region 6'!$P$37/'MMA Rev-Exp Region 6'!$P$9, 0)","v":{"v":0,"d":"$0.00"}},{"$f":"IFERROR('MMA Rev-Exp Region 6'!$Q$37/'MMA Rev-Exp Region 6'!$Q$9, 0)","v":{"v":0,"d":"$0.00"}},{"$f":"IFERROR('MMA Rev-Exp Region 6'!$R$37/'MMA Rev-Exp Region 6'!$R$9, 0)","v":{"v":0,"d":"$0.00"}},{"$f":"IFERROR('MMA Rev-Exp Region 6'!$S$37/'MMA Rev-Exp Region 6'!$S$9, 0)","v":{"v":0,"d":"$0.00"}},{"$f":"IFERROR('MMA Rev-Exp Region 6'!$T$37/'MMA Rev-Exp Region 6'!$T$9, 0)","v":{"v":0,"d":"$0.00"}},{"$f":"IFERROR('MMA Rev-Exp Region 6'!$U$37/'MMA Rev-Exp Region 6'!$U$9, 0)","v":{"v":0,"d":"$0.00"}},{"$f":"IFERROR('MMA Rev-Exp Region 6'!$V$37/'MMA Rev-Exp Region 6'!$V$9, 0)","v":{"v":0,"d":"$0.00"}},{"$f":"IFERROR('MMA Rev-Exp Region 6'!$W$37/'MMA Rev-Exp Region 6'!$W$9, 0)","v":{"v":0,"d":"$0.00"}},{"$f":"IFERROR('MMA Rev-Exp Region 6'!$X$37/'MMA Rev-Exp Region 6'!$X$9, 0)","v":{"v":0,"d":"$0.00"}},{"$f":"IFERROR('MMA Rev-Exp Region 6'!$Y$37/'MMA Rev-Exp Region 6'!$Y$9, 0)","v":{"v":0,"d":"$0.00"}}]
["MMA",null,null,2016,"2016-12-31","Q2","2017-06-30","Region 6","Operating Expense","Medical Benefits Expense","Maternity Services","4.2.1","Ending IBNP for Maternity Services",{"$f":"IFERROR('MMA Rev-Exp Region 6'!$O$38/'MMA Rev-Exp Region 6'!$O$9, 0)","v":{"v":0,"d":"$0.00"}},{"$f":"IFERROR('MMA Rev-Exp Region 6'!$P$38/'MMA Rev-Exp Region 6'!$P$9, 0)","v":{"v":0,"d":"$0.00"}},{"$f":"IFERROR('MMA Rev-Exp Region 6'!$Q$38/'MMA Rev-Exp Region 6'!$Q$9, 0)","v":{"v":0,"d":"$0.00"}},{"$f":"IFERROR('MMA Rev-Exp Region 6'!$R$38/'MMA Rev-Exp Region 6'!$R$9, 0)","v":{"v":0,"d":"$0.00"}},{"$f":"IFERROR('MMA Rev-Exp Region 6'!$S$38/'MMA Rev-Exp Region 6'!$S$9, 0)","v":{"v":0,"d":"$0.00"}},{"$f":"IFERROR('MMA Rev-Exp Region 6'!$T$38/'MMA Rev-Exp Region 6'!$T$9, 0)","v":{"v":0,"d":"$0.00"}},{"$f":"IFERROR('MMA Rev-Exp Region 6'!$U$38/'MMA Rev-Exp Region 6'!$U$9, 0)","v":{"v":0,"d":"$0.00"}},{"$f":"IFERROR('MMA Rev-Exp Region 6'!$V$38/'MMA Rev-Exp Region 6'!$V$9, 0)","v":{"v":0,"d":"$0.00"}},{"$f":"IFERROR('MMA Rev-Exp Region 6'!$W$38/'MMA Rev-Exp Region 6'!$W$9, 0)","v":{"v":0,"d":"$0.00"}},{"$f":"IFERROR('MMA Rev-Exp Region 6'!$X$38/'MMA Rev-Exp Region 6'!$X$9, 0)","v":{"v":0,"d":"$0.00"}},{"$f":"IFERROR('MMA Rev-Exp Region 6'!$Y$38/'MMA Rev-Exp Region 6'!$Y$9, 0)","v":{"v":0,"d":"$0.00"}}]
["MMA",null,null,2016,"2016-12-31","Q2","2017-06-30","Region 6","Operating Expense","Medical Benefits Expense","Maternity Services","4.3.1","Maternity Settlements",{"$f":"IFERROR('MMA Rev-Exp Region 6'!$O$39/'MMA Rev-Exp Region 6'!$O$9, 0)","v":{"v":0,"d":"$0.00"}},{"$f":"IFERROR('MMA Rev-Exp Region 6'!$P$39/'MMA Rev-Exp Region 6'!$P$9, 0)","v":{"v":0,"d":"$0.00"}},{"$f":"IFERROR('MMA Rev-Exp Region 6'!$Q$39/'MMA Rev-Exp Region 6'!$Q$9, 0)","v":{"v":0,"d":"$0.00"}},{"$f":"IFERROR('MMA Rev-Exp Region 6'!$R$39/'MMA Rev-Exp Region 6'!$R$9, 0)","v":{"v":0,"d":"$0.00"}},{"$f":"IFERROR('MMA Rev-Exp Region 6'!$S$39/'MMA Rev-Exp Region 6'!$S$9, 0)","v":{"v":0,"d":"$0.00"}},{"$f":"IFERROR('MMA Rev-Exp Region 6'!$T$39/'MMA Rev-Exp Region 6'!$T$9, 0)","v":{"v":0,"d":"$0.00"}},{"$f":"IFERROR('MMA Rev-Exp Region 6'!$U$39/'MMA Rev-Exp Region 6'!$U$9, 0)","v":{"v":0,"d":"$0.00"}},{"$f":"IFERROR('MMA Rev-Exp Region 6'!$V$39/'MMA Rev-Exp Region 6'!$V$9, 0)","v":{"v":0,"d":"$0.00"}},{"$f":"IFERROR('MMA Rev-Exp Region 6'!$W$39/'MMA Rev-Exp Region 6'!$W$9, 0)","v":{"v":0,"d":"$0.00"}},{"$f":"IFERROR('MMA Rev-Exp Region 6'!$X$39/'MMA Rev-Exp Region 6'!$X$9, 0)","v":{"v":0,"d":"$0.00"}},{"$f":"IFERROR('MMA Rev-Exp Region 6'!$Y$39/'MMA Rev-Exp Region 6'!$Y$9, 0)","v":{"v":0,"d":"$0.00"}}]
["MMA",null,null,2016,"2016-12-31","Q2","2017-06-30","Region 6","Operating Expense","Medical Benefits Expense","Mental Health Services",5.1,"Mental Health & Substance Abuse FFS",{"$f":"IFERROR('MMA Rev-Exp Region 6'!$O$41/'MMA Rev-Exp Region 6'!$O$9, 0)","v":{"v":0,"d":"$0.00"}},{"$f":"IFERROR('MMA Rev-Exp Region 6'!$P$41/'MMA Rev-Exp Region 6'!$P$9, 0)","v":{"v":0,"d":"$0.00"}},{"$f":"IFERROR('MMA Rev-Exp Region 6'!$Q$41/'MMA Rev-Exp Region 6'!$Q$9, 0)","v":{"v":0,"d":"$0.00"}},{"$f":"IFERROR('MMA Rev-Exp Region 6'!$R$41/'MMA Rev-Exp Region 6'!$R$9, 0)","v":{"v":0,"d":"$0.00"}},{"$f":"IFERROR('MMA Rev-Exp Region 6'!$S$41/'MMA Rev-Exp Region 6'!$S$9, 0)","v":{"v":0,"d":"$0.00"}},{"$f":"IFERROR('MMA Rev-Exp Region 6'!$T$41/'MMA Rev-Exp Region 6'!$T$9, 0)","v":{"v":0,"d":"$0.00"}},{"$f":"IFERROR('MMA Rev-Exp Region 6'!$U$41/'MMA Rev-Exp Region 6'!$U$9, 0)","v":{"v":0,"d":"$0.00"}},{"$f":"IFERROR('MMA Rev-Exp Region 6'!$V$41/'MMA Rev-Exp Region 6'!$V$9, 0)","v":{"v":0,"d":"$0.00"}},{"$f":"IFERROR('MMA Rev-Exp Region 6'!$W$41/'MMA Rev-Exp Region 6'!$W$9, 0)","v":{"v":0,"d":"$0.00"}},{"$f":"IFERROR('MMA Rev-Exp Region 6'!$X$41/'MMA Rev-Exp Region 6'!$X$9, 0)","v":{"v":0,"d":"$0.00"}},{"$f":"IFERROR('MMA Rev-Exp Region 6'!$Y$41/'MMA Rev-Exp Region 6'!$Y$9, 0)","v":{"v":0,"d":"$0.00"}}]
["MMA",null,null,2016,"2016-12-31","Q2","2017-06-30","Region 6","Operating Expense","Medical Benefits Expense","Mental Health Services",5.2,"Mental Health & Substance Abuse Subcapitation",{"$f":"IFERROR('MMA Rev-Exp Region 6'!$O$42/'MMA Rev-Exp Region 6'!$O$9, 0)","v":{"v":0,"d":"$0.00"}},{"$f":"IFERROR('MMA Rev-Exp Region 6'!$P$42/'MMA Rev-Exp Region 6'!$P$9, 0)","v":{"v":0,"d":"$0.00"}},{"$f":"IFERROR('MMA Rev-Exp Region 6'!$Q$42/'MMA Rev-Exp Region 6'!$Q$9, 0)","v":{"v":0,"d":"$0.00"}},{"$f":"IFERROR('MMA Rev-Exp Region 6'!$R$42/'MMA Rev-Exp Region 6'!$R$9, 0)","v":{"v":0,"d":"$0.00"}},{"$f":"IFERROR('MMA Rev-Exp Region 6'!$S$42/'MMA Rev-Exp Region 6'!$S$9, 0)","v":{"v":0,"d":"$0.00"}},{"$f":"IFERROR('MMA Rev-Exp Region 6'!$T$42/'MMA Rev-Exp Region 6'!$T$9, 0)","v":{"v":0,"d":"$0.00"}},{"$f":"IFERROR('MMA Rev-Exp Region 6'!$U$42/'MMA Rev-Exp Region 6'!$U$9, 0)","v":{"v":0,"d":"$0.00"}},{"$f":"IFERROR('MMA Rev-Exp Region 6'!$V$42/'MMA Rev-Exp Region 6'!$V$9, 0)","v":{"v":0,"d":"$0.00"}},{"$f":"IFERROR('MMA Rev-Exp Region 6'!$W$42/'MMA Rev-Exp Region 6'!$W$9, 0)","v":{"v":0,"d":"$0.00"}},{"$f":"IFERROR('MMA Rev-Exp Region 6'!$X$42/'MMA Rev-Exp Region 6'!$X$9, 0)","v":{"v":0,"d":"$0.00"}},{"$f":"IFERROR('MMA Rev-Exp Region 6'!$Y$42/'MMA Rev-Exp Region 6'!$Y$9, 0)","v":{"v":0,"d":"$0.00"}}]
["MMA",null,null,2016,"2016-12-31","Q2","2017-06-30","Region 6","Operating Expense","Medical Benefits Expense","Mental Health Services",5.3,"Ending IBNP for Mental Health & Substance Abuse",{"$f":"IFERROR('MMA Rev-Exp Region 6'!$O$43/'MMA Rev-Exp Region 6'!$O$9, 0)","v":{"v":0,"d":"$0.00"}},{"$f":"IFERROR('MMA Rev-Exp Region 6'!$P$43/'MMA Rev-Exp Region 6'!$P$9, 0)","v":{"v":0,"d":"$0.00"}},{"$f":"IFERROR('MMA Rev-Exp Region 6'!$Q$43/'MMA Rev-Exp Region 6'!$Q$9, 0)","v":{"v":0,"d":"$0.00"}},{"$f":"IFERROR('MMA Rev-Exp Region 6'!$R$43/'MMA Rev-Exp Region 6'!$R$9, 0)","v":{"v":0,"d":"$0.00"}},{"$f":"IFERROR('MMA Rev-Exp Region 6'!$S$43/'MMA Rev-Exp Region 6'!$S$9, 0)","v":{"v":0,"d":"$0.00"}},{"$f":"IFERROR('MMA Rev-Exp Region 6'!$T$43/'MMA Rev-Exp Region 6'!$T$9, 0)","v":{"v":0,"d":"$0.00"}},{"$f":"IFERROR('MMA Rev-Exp Region 6'!$U$43/'MMA Rev-Exp Region 6'!$U$9, 0)","v":{"v":0,"d":"$0.00"}},{"$f":"IFERROR('MMA Rev-Exp Region 6'!$V$43/'MMA Rev-Exp Region 6'!$V$9, 0)","v":{"v":0,"d":"$0.00"}},{"$f":"IFERROR('MMA Rev-Exp Region 6'!$W$43/'MMA Rev-Exp Region 6'!$W$9, 0)","v":{"v":0,"d":"$0.00"}},{"$f":"IFERROR('MMA Rev-Exp Region 6'!$X$43/'MMA Rev-Exp Region 6'!$X$9, 0)","v":{"v":0,"d":"$0.00"}},{"$f":"IFERROR('MMA Rev-Exp Region 6'!$Y$43/'MMA Rev-Exp Region 6'!$Y$9, 0)","v":{"v":0,"d":"$0.00"}}]
["MMA",null,null,2016,"2016-12-31","Q2","2017-06-30","Region 6","Operating Expense","Medical Benefits Expense","Mental Health Services","5.4","Mental Health Settlements",{"$f":"IFERROR('MMA Rev-Exp Region 6'!$O$44/'MMA Rev-Exp Region 6'!$O$9, 0)","v":{"v":0,"d":"$0.00"}},{"$f":"IFERROR('MMA Rev-Exp Region 6'!$P$44/'MMA Rev-Exp Region 6'!$P$9, 0)","v":{"v":0,"d":"$0.00"}},{"$f":"IFERROR('MMA Rev-Exp Region 6'!$Q$44/'MMA Rev-Exp Region 6'!$Q$9, 0)","v":{"v":0,"d":"$0.00"}},{"$f":"IFERROR('MMA Rev-Exp Region 6'!$R$44/'MMA Rev-Exp Region 6'!$R$9, 0)","v":{"v":0,"d":"$0.00"}},{"$f":"IFERROR('MMA Rev-Exp Region 6'!$S$44/'MMA Rev-Exp Region 6'!$S$9, 0)","v":{"v":0,"d":"$0.00"}},{"$f":"IFERROR('MMA Rev-Exp Region 6'!$T$44/'MMA Rev-Exp Region 6'!$T$9, 0)","v":{"v":0,"d":"$0.00"}},{"$f":"IFERROR('MMA Rev-Exp Region 6'!$U$44/'MMA Rev-Exp Region 6'!$U$9, 0)","v":{"v":0,"d":"$0.00"}},{"$f":"IFERROR('MMA Rev-Exp Region 6'!$V$44/'MMA Rev-Exp Region 6'!$V$9, 0)","v":{"v":0,"d":"$0.00"}},{"$f":"IFERROR('MMA Rev-Exp Region 6'!$W$44/'MMA Rev-Exp Region 6'!$W$9, 0)","v":{"v":0,"d":"$0.00"}},{"$f":"IFERROR('MMA Rev-Exp Region 6'!$X$44/'MMA Rev-Exp Region 6'!$X$9, 0)","v":{"v":0,"d":"$0.00"}},{"$f":"IFERROR('MMA Rev-Exp Region 6'!$Y$44/'MMA Rev-Exp Region 6'!$Y$9, 0)","v":{"v":0,"d":"$0.00"}}]
["MMA",null,null,2016,"2016-12-31","Q2","2017-06-30","Region 6","Operating Expense","Medical Benefits Expense","Dental Services",6.1,"Dental FFS",{"$f":"IFERROR('MMA Rev-Exp Region 6'!$O$46/'MMA Rev-Exp Region 6'!$O$9, 0)","v":{"v":0,"d":"$0.00"}},{"$f":"IFERROR('MMA Rev-Exp Region 6'!$P$46/'MMA Rev-Exp Region 6'!$P$9, 0)","v":{"v":0,"d":"$0.00"}},{"$f":"IFERROR('MMA Rev-Exp Region 6'!$Q$46/'MMA Rev-Exp Region 6'!$Q$9, 0)","v":{"v":0,"d":"$0.00"}},{"$f":"IFERROR('MMA Rev-Exp Region 6'!$R$46/'MMA Rev-Exp Region 6'!$R$9, 0)","v":{"v":0,"d":"$0.00"}},{"$f":"IFERROR('MMA Rev-Exp Region 6'!$S$46/'MMA Rev-Exp Region 6'!$S$9, 0)","v":{"v":0,"d":"$0.00"}},{"$f":"IFERROR('MMA Rev-Exp Region 6'!$T$46/'MMA Rev-Exp Region 6'!$T$9, 0)","v":{"v":0,"d":"$0.00"}},{"$f":"IFERROR('MMA Rev-Exp Region 6'!$U$46/'MMA Rev-Exp Region 6'!$U$9, 0)","v":{"v":0,"d":"$0.00"}},{"$f":"IFERROR('MMA Rev-Exp Region 6'!$V$46/'MMA Rev-Exp Region 6'!$V$9, 0)","v":{"v":0,"d":"$0.00"}},{"$f":"IFERROR('MMA Rev-Exp Region 6'!$W$46/'MMA Rev-Exp Region 6'!$W$9, 0)","v":{"v":0,"d":"$0.00"}},{"$f":"IFERROR('MMA Rev-Exp Region 6'!$X$46/'MMA Rev-Exp Region 6'!$X$9, 0)","v":{"v":0,"d":"$0.00"}},{"$f":"IFERROR('MMA Rev-Exp Region 6'!$Y$46/'MMA Rev-Exp Region 6'!$Y$9, 0)","v":{"v":0,"d":"$0.00"}}]
["MMA",null,null,2016,"2016-12-31","Q2","2017-06-30","Region 6","Operating Expense","Medical Benefits Expense","Dental Services",6.2,"Dental Subcapitation",{"$f":"IFERROR('MMA Rev-Exp Region 6'!$O$47/'MMA Rev-Exp Region 6'!$O$9, 0)","v":{"v":0,"d":"$0.00"}},{"$f":"IFERROR('MMA Rev-Exp Region 6'!$P$47/'MMA Rev-Exp Region 6'!$P$9, 0)","v":{"v":0,"d":"$0.00"}},{"$f":"IFERROR('MMA Rev-Exp Region 6'!$Q$47/'MMA Rev-Exp Region 6'!$Q$9, 0)","v":{"v":0,"d":"$0.00"}},{"$f":"IFERROR('MMA Rev-Exp Region 6'!$R$47/'MMA Rev-Exp Region 6'!$R$9, 0)","v":{"v":0,"d":"$0.00"}},{"$f":"IFERROR('MMA Rev-Exp Region 6'!$S$47/'MMA Rev-Exp Region 6'!$S$9, 0)","v":{"v":0,"d":"$0.00"}},{"$f":"IFERROR('MMA Rev-Exp Region 6'!$T$47/'MMA Rev-Exp Region 6'!$T$9, 0)","v":{"v":0,"d":"$0.00"}},{"$f":"IFERROR('MMA Rev-Exp Region 6'!$U$47/'MMA Rev-Exp Region 6'!$U$9, 0)","v":{"v":0,"d":"$0.00"}},{"$f":"IFERROR('MMA Rev-Exp Region 6'!$V$47/'MMA Rev-Exp Region 6'!$V$9, 0)","v":{"v":0,"d":"$0.00"}},{"$f":"IFERROR('MMA Rev-Exp Region 6'!$W$47/'MMA Rev-Exp Region 6'!$W$9, 0)","v":{"v":0,"d":"$0.00"}},{"$f":"IFERROR('MMA Rev-Exp Region 6'!$X$47/'MMA Rev-Exp Region 6'!$X$9, 0)","v":{"v":0,"d":"$0.00"}},{"$f":"IFERROR('MMA Rev-Exp Region 6'!$Y$47/'MMA Rev-Exp Region 6'!$Y$9, 0)","v":{"v":0,"d":"$0.00"}}]
["MMA",null,null,2016,"2016-12-31","Q2","2017-06-30","Region 6","Operating Expense","Medical Benefits Expense","Dental Services",6.3,"Ending IBNP for Dental Services",{"$f":"IFERROR('MMA Rev-Exp Region 6'!$O$48/'MMA Rev-Exp Region 6'!$O$9, 0)","v":{"v":0,"d":"$0.00"}},{"$f":"IFERROR('MMA Rev-Exp Region 6'!$P$48/'MMA Rev-Exp Region 6'!$P$9, 0)","v":{"v":0,"d":"$0.00"}},{"$f":"IFERROR('MMA Rev-Exp Region 6'!$Q$48/'MMA Rev-Exp Region 6'!$Q$9, 0)","v":{"v":0,"d":"$0.00"}},{"$f":"IFERROR('MMA Rev-Exp Region 6'!$R$48/'MMA Rev-Exp Region 6'!$R$9, 0)","v":{"v":0,"d":"$0.00"}},{"$f":"IFERROR('MMA Rev-Exp Region 6'!$S$48/'MMA Rev-Exp Region 6'!$S$9, 0)","v":{"v":0,"d":"$0.00"}},{"$f":"IFERROR('MMA Rev-Exp Region 6'!$T$48/'MMA Rev-Exp Region 6'!$T$9, 0)","v":{"v":0,"d":"$0.00"}},{"$f":"IFERROR('MMA Rev-Exp Region 6'!$U$48/'MMA Rev-Exp Region 6'!$U$9, 0)","v":{"v":0,"d":"$0.00"}},{"$f":"IFERROR('MMA Rev-Exp Region 6'!$V$48/'MMA Rev-Exp Region 6'!$V$9, 0)","v":{"v":0,"d":"$0.00"}},{"$f":"IFERROR('MMA Rev-Exp Region 6'!$W$48/'MMA Rev-Exp Region 6'!$W$9, 0)","v":{"v":0,"d":"$0.00"}},{"$f":"IFERROR('MMA Rev-Exp Region 6'!$X$48/'MMA Rev-Exp Region 6'!$X$9, 0)","v":{"v":0,"d":"$0.00"}},{"$f":"IFERROR('MMA Rev-Exp Region 6'!$Y$48/'MMA Rev-Exp Region 6'!$Y$9, 0)","v":{"v":0,"d":"$0.00"}}]
["MMA",null,null,2016,"2016-12-31","Q2","2017-06-30","Region 6","Operating Expense","Medical Benefits Expense","Dental Services","6.4","Dental Settlements",{"$f":"IFERROR('MMA Rev-Exp Region 6'!$O$49/'MMA Rev-Exp Region 6'!$O$9, 0)","v":{"v":0,"d":"$0.00"}},{"$f":"IFERROR('MMA Rev-Exp Region 6'!$P$49/'MMA Rev-Exp Region 6'!$P$9, 0)","v":{"v":0,"d":"$0.00"}},{"$f":"IFERROR('MMA Rev-Exp Region 6'!$Q$49/'MMA Rev-Exp Region 6'!$Q$9, 0)","v":{"v":0,"d":"$0.00"}},{"$f":"IFERROR('MMA Rev-Exp Region 6'!$R$49/'MMA Rev-Exp Region 6'!$R$9, 0)","v":{"v":0,"d":"$0.00"}},{"$f":"IFERROR('MMA Rev-Exp Region 6'!$S$49/'MMA Rev-Exp Region 6'!$S$9, 0)","v":{"v":0,"d":"$0.00"}},{"$f":"IFERROR('MMA Rev-Exp Region 6'!$T$49/'MMA Rev-Exp Region 6'!$T$9, 0)","v":{"v":0,"d":"$0.00"}},{"$f":"IFERROR('MMA Rev-Exp Region 6'!$U$49/'MMA Rev-Exp Region 6'!$U$9, 0)","v":{"v":0,"d":"$0.00"}},{"$f":"IFERROR('MMA Rev-Exp Region 6'!$V$49/'MMA Rev-Exp Region 6'!$V$9, 0)","v":{"v":0,"d":"$0.00"}},{"$f":"IFERROR('MMA Rev-Exp Region 6'!$W$49/'MMA Rev-Exp Region 6'!$W$9, 0)","v":{"v":0,"d":"$0.00"}},{"$f":"IFERROR('MMA Rev-Exp Region 6'!$X$49/'MMA Rev-Exp Region 6'!$X$9, 0)","v":{"v":0,"d":"$0.00"}},{"$f":"IFERROR('MMA Rev-Exp Region 6'!$Y$49/'MMA Rev-Exp Region 6'!$Y$9, 0)","v":{"v":0,"d":"$0.00"}}]
["MMA",null,null,2016,"2016-12-31","Q2","2017-06-30","Region 6","Operating Expense","Medical Benefits Expense","Transportation Services",7.1,"Transportation FFS",{"$f":"IFERROR('MMA Rev-Exp Region 6'!$O$51/'MMA Rev-Exp Region 6'!$O$9, 0)","v":{"v":0,"d":"$0.00"}},{"$f":"IFERROR('MMA Rev-Exp Region 6'!$P$51/'MMA Rev-Exp Region 6'!$P$9, 0)","v":{"v":0,"d":"$0.00"}},{"$f":"IFERROR('MMA Rev-Exp Region 6'!$Q$51/'MMA Rev-Exp Region 6'!$Q$9, 0)","v":{"v":0,"d":"$0.00"}},{"$f":"IFERROR('MMA Rev-Exp Region 6'!$R$51/'MMA Rev-Exp Region 6'!$R$9, 0)","v":{"v":0,"d":"$0.00"}},{"$f":"IFERROR('MMA Rev-Exp Region 6'!$S$51/'MMA Rev-Exp Region 6'!$S$9, 0)","v":{"v":0,"d":"$0.00"}},{"$f":"IFERROR('MMA Rev-Exp Region 6'!$T$51/'MMA Rev-Exp Region 6'!$T$9, 0)","v":{"v":0,"d":"$0.00"}},{"$f":"IFERROR('MMA Rev-Exp Region 6'!$U$51/'MMA Rev-Exp Region 6'!$U$9, 0)","v":{"v":0,"d":"$0.00"}},{"$f":"IFERROR('MMA Rev-Exp Region 6'!$V$51/'MMA Rev-Exp Region 6'!$V$9, 0)","v":{"v":0,"d":"$0.00"}},{"$f":"IFERROR('MMA Rev-Exp Region 6'!$W$51/'MMA Rev-Exp Region 6'!$W$9, 0)","v":{"v":0,"d":"$0.00"}},{"$f":"IFERROR('MMA Rev-Exp Region 6'!$X$51/'MMA Rev-Exp Region 6'!$X$9, 0)","v":{"v":0,"d":"$0.00"}},{"$f":"IFERROR('MMA Rev-Exp Region 6'!$Y$51/'MMA Rev-Exp Region 6'!$Y$9, 0)","v":{"v":0,"d":"$0.00"}}]
["MMA",null,null,2016,"2016-12-31","Q2","2017-06-30","Region 6","Operating Expense","Medical Benefits Expense","Transportation Services",7.2,"Transportation Subcapitation",{"$f":"IFERROR('MMA Rev-Exp Region 6'!$O$52/'MMA Rev-Exp Region 6'!$O$9, 0)","v":{"v":0,"d":"$0.00"}},{"$f":"IFERROR('MMA Rev-Exp Region 6'!$P$52/'MMA Rev-Exp Region 6'!$P$9, 0)","v":{"v":0,"d":"$0.00"}},{"$f":"IFERROR('MMA Rev-Exp Region 6'!$Q$52/'MMA Rev-Exp Region 6'!$Q$9, 0)","v":{"v":0,"d":"$0.00"}},{"$f":"IFERROR('MMA Rev-Exp Region 6'!$R$52/'MMA Rev-Exp Region 6'!$R$9, 0)","v":{"v":0,"d":"$0.00"}},{"$f":"IFERROR('MMA Rev-Exp Region 6'!$S$52/'MMA Rev-Exp Region 6'!$S$9, 0)","v":{"v":0,"d":"$0.00"}},{"$f":"IFERROR('MMA Rev-Exp Region 6'!$T$52/'MMA Rev-Exp Region 6'!$T$9, 0)","v":{"v":0,"d":"$0.00"}},{"$f":"IFERROR('MMA Rev-Exp Region 6'!$U$52/'MMA Rev-Exp Region 6'!$U$9, 0)","v":{"v":0,"d":"$0.00"}},{"$f":"IFERROR('MMA Rev-Exp Region 6'!$V$52/'MMA Rev-Exp Region 6'!$V$9, 0)","v":{"v":0,"d":"$0.00"}},{"$f":"IFERROR('MMA Rev-Exp Region 6'!$W$52/'MMA Rev-Exp Region 6'!$W$9, 0)","v":{"v":0,"d":"$0.00"}},{"$f":"IFERROR('MMA Rev-Exp Region 6'!$X$52/'MMA Rev-Exp Region 6'!$X$9, 0)","v":{"v":0,"d":"$0.00"}},{"$f":"IFERROR('MMA Rev-Exp Region 6'!$Y$52/'MMA Rev-Exp Region 6'!$Y$9, 0)","v":{"v":0,"d":"$0.00"}}]
["MMA",null,null,2016,"2016-12-31","Q2","2017-06-30","Region 6","Operating Expense","Medical Benefits Expense","Transportation Services",7.3,"Ending IBNP for Transportation",{"$f":"IFERROR('MMA Rev-Exp Region 6'!$O$53/'MMA Rev-Exp Region 6'!$O$9, 0)","v":{"v":0,"d":"$0.00"}},{"$f":"IFERROR('MMA Rev-Exp Region 6'!$P$53/'MMA Rev-Exp Region 6'!$P$9, 0)","v":{"v":0,"d":"$0.00"}},{"$f":"IFERROR('MMA Rev-Exp Region 6'!$Q$53/'MMA Rev-Exp Region 6'!$Q$9, 0)","v":{"v":0,"d":"$0.00"}},{"$f":"IFERROR('MMA Rev-Exp Region 6'!$R$53/'MMA Rev-Exp Region 6'!$R$9, 0)","v":{"v":0,"d":"$0.00"}},{"$f":"IFERROR('MMA Rev-Exp Region 6'!$S$53/'MMA Rev-Exp Region 6'!$S$9, 0)","v":{"v":0,"d":"$0.00"}},{"$f":"IFERROR('MMA Rev-Exp Region 6'!$T$53/'MMA Rev-Exp Region 6'!$T$9, 0)","v":{"v":0,"d":"$0.00"}},{"$f":"IFERROR('MMA Rev-Exp Region 6'!$U$53/'MMA Rev-Exp Region 6'!$U$9, 0)","v":{"v":0,"d":"$0.00"}},{"$f":"IFERROR('MMA Rev-Exp Region 6'!$V$53/'MMA Rev-Exp Region 6'!$V$9, 0)","v":{"v":0,"d":"$0.00"}},{"$f":"IFERROR('MMA Rev-Exp Region 6'!$W$53/'MMA Rev-Exp Region 6'!$W$9, 0)","v":{"v":0,"d":"$0.00"}},{"$f":"IFERROR('MMA Rev-Exp Region 6'!$X$53/'MMA Rev-Exp Region 6'!$X$9, 0)","v":{"v":0,"d":"$0.00"}},{"$f":"IFERROR('MMA Rev-Exp Region 6'!$Y$53/'MMA Rev-Exp Region 6'!$Y$9, 0)","v":{"v":0,"d":"$0.00"}}]
["MMA",null,null,2016,"2016-12-31","Q2","2017-06-30","Region 6","Operating Expense","Medical Benefits Expense","Transportation Services","7.4","Transportation Settlements",{"$f":"IFERROR('MMA Rev-Exp Region 6'!$O$54/'MMA Rev-Exp Region 6'!$O$9, 0)","v":{"v":0,"d":"$0.00"}},{"$f":"IFERROR('MMA Rev-Exp Region 6'!$P$54/'MMA Rev-Exp Region 6'!$P$9, 0)","v":{"v":0,"d":"$0.00"}},{"$f":"IFERROR('MMA Rev-Exp Region 6'!$Q$54/'MMA Rev-Exp Region 6'!$Q$9, 0)","v":{"v":0,"d":"$0.00"}},{"$f":"IFERROR('MMA Rev-Exp Region 6'!$R$54/'MMA Rev-Exp Region 6'!$R$9, 0)","v":{"v":0,"d":"$0.00"}},{"$f":"IFERROR('MMA Rev-Exp Region 6'!$S$54/'MMA Rev-Exp Region 6'!$S$9, 0)","v":{"v":0,"d":"$0.00"}},{"$f":"IFERROR('MMA Rev-Exp Region 6'!$T$54/'MMA Rev-Exp Region 6'!$T$9, 0)","v":{"v":0,"d":"$0.00"}},{"$f":"IFERROR('MMA Rev-Exp Region 6'!$U$54/'MMA Rev-Exp Region 6'!$U$9, 0)","v":{"v":0,"d":"$0.00"}},{"$f":"IFERROR('MMA Rev-Exp Region 6'!$V$54/'MMA Rev-Exp Region 6'!$V$9, 0)","v":{"v":0,"d":"$0.00"}},{"$f":"IFERROR('MMA Rev-Exp Region 6'!$W$54/'MMA Rev-Exp Region 6'!$W$9, 0)","v":{"v":0,"d":"$0.00"}},{"$f":"IFERROR('MMA Rev-Exp Region 6'!$X$54/'MMA Rev-Exp Region 6'!$X$9, 0)","v":{"v":0,"d":"$0.00"}},{"$f":"IFERROR('MMA Rev-Exp Region 6'!$Y$54/'MMA Rev-Exp Region 6'!$Y$9, 0)","v":{"v":0,"d":"$0.00"}}]
["MMA",null,null,2016,"2016-12-31","Q2","2017-06-30","Region 6","Operating Expense","Medical Benefits Expense","Pharmacy Services",8.1,"Prescription Drugs FFS",{"$f":"IFERROR('MMA Rev-Exp Region 6'!$O$56/'MMA Rev-Exp Region 6'!$O$9, 0)","v":{"v":0,"d":"$0.00"}},{"$f":"IFERROR('MMA Rev-Exp Region 6'!$P$56/'MMA Rev-Exp Region 6'!$P$9, 0)","v":{"v":0,"d":"$0.00"}},{"$f":"IFERROR('MMA Rev-Exp Region 6'!$Q$56/'MMA Rev-Exp Region 6'!$Q$9, 0)","v":{"v":0,"d":"$0.00"}},{"$f":"IFERROR('MMA Rev-Exp Region 6'!$R$56/'MMA Rev-Exp Region 6'!$R$9, 0)","v":{"v":0,"d":"$0.00"}},{"$f":"IFERROR('MMA Rev-Exp Region 6'!$S$56/'MMA Rev-Exp Region 6'!$S$9, 0)","v":{"v":0,"d":"$0.00"}},{"$f":"IFERROR('MMA Rev-Exp Region 6'!$T$56/'MMA Rev-Exp Region 6'!$T$9, 0)","v":{"v":0,"d":"$0.00"}},{"$f":"IFERROR('MMA Rev-Exp Region 6'!$U$56/'MMA Rev-Exp Region 6'!$U$9, 0)","v":{"v":0,"d":"$0.00"}},{"$f":"IFERROR('MMA Rev-Exp Region 6'!$V$56/'MMA Rev-Exp Region 6'!$V$9, 0)","v":{"v":0,"d":"$0.00"}},{"$f":"IFERROR('MMA Rev-Exp Region 6'!$W$56/'MMA Rev-Exp Region 6'!$W$9, 0)","v":{"v":0,"d":"$0.00"}},{"$f":"IFERROR('MMA Rev-Exp Region 6'!$X$56/'MMA Rev-Exp Region 6'!$X$9, 0)","v":{"v":0,"d":"$0.00"}},{"$f":"IFERROR('MMA Rev-Exp Region 6'!$Y$56/'MMA Rev-Exp Region 6'!$Y$9, 0)","v":{"v":0,"d":"$0.00"}}]
["MMA",null,null,2016,"2016-12-31","Q2","2017-06-30","Region 6","Operating Expense","Medical Benefits Expense","Pharmacy Services","8.2","Hepatitis C Prescription Drug FFS",{"$f":"IFERROR('MMA Rev-Exp Region 6'!$O$57/'MMA Rev-Exp Region 6'!$O$9, 0)","v":{"v":0,"d":"$0.00"}},{"$f":"IFERROR('MMA Rev-Exp Region 6'!$P$57/'MMA Rev-Exp Region 6'!$P$9, 0)","v":{"v":0,"d":"$0.00"}},{"$f":"IFERROR('MMA Rev-Exp Region 6'!$Q$57/'MMA Rev-Exp Region 6'!$Q$9, 0)","v":{"v":0,"d":"$0.00"}},{"$f":"IFERROR('MMA Rev-Exp Region 6'!$R$57/'MMA Rev-Exp Region 6'!$R$9, 0)","v":{"v":0,"d":"$0.00"}},{"$f":"IFERROR('MMA Rev-Exp Region 6'!$S$57/'MMA Rev-Exp Region 6'!$S$9, 0)","v":{"v":0,"d":"$0.00"}},{"$f":"IFERROR('MMA Rev-Exp Region 6'!$T$57/'MMA Rev-Exp Region 6'!$T$9, 0)","v":{"v":0,"d":"$0.00"}},{"$f":"IFERROR('MMA Rev-Exp Region 6'!$U$57/'MMA Rev-Exp Region 6'!$U$9, 0)","v":{"v":0,"d":"$0.00"}},{"$f":"IFERROR('MMA Rev-Exp Region 6'!$V$57/'MMA Rev-Exp Region 6'!$V$9, 0)","v":{"v":0,"d":"$0.00"}},{"$f":"IFERROR('MMA Rev-Exp Region 6'!$W$57/'MMA Rev-Exp Region 6'!$W$9, 0)","v":{"v":0,"d":"$0.00"}},{"$f":"IFERROR('MMA Rev-Exp Region 6'!$X$57/'MMA Rev-Exp Region 6'!$X$9, 0)","v":{"v":0,"d":"$0.00"}},{"$f":"IFERROR('MMA Rev-Exp Region 6'!$Y$57/'MMA Rev-Exp Region 6'!$Y$9, 0)","v":{"v":0,"d":"$0.00"}}]
["MMA",null,null,2016,"2016-12-31","Q2","2017-06-30","Region 6","Operating Expense","Medical Benefits Expense","Pharmacy Services","8.3","Ending IBNP for Prescription Drugs",{"$f":"IFERROR('MMA Rev-Exp Region 6'!$O$58/'MMA Rev-Exp Region 6'!$O$9, 0)","v":{"v":0,"d":"$0.00"}},{"$f":"IFERROR('MMA Rev-Exp Region 6'!$P$58/'MMA Rev-Exp Region 6'!$P$9, 0)","v":{"v":0,"d":"$0.00"}},{"$f":"IFERROR('MMA Rev-Exp Region 6'!$Q$58/'MMA Rev-Exp Region 6'!$Q$9, 0)","v":{"v":0,"d":"$0.00"}},{"$f":"IFERROR('MMA Rev-Exp Region 6'!$R$58/'MMA Rev-Exp Region 6'!$R$9, 0)","v":{"v":0,"d":"$0.00"}},{"$f":"IFERROR('MMA Rev-Exp Region 6'!$S$58/'MMA Rev-Exp Region 6'!$S$9, 0)","v":{"v":0,"d":"$0.00"}},{"$f":"IFERROR('MMA Rev-Exp Region 6'!$T$58/'MMA Rev-Exp Region 6'!$T$9, 0)","v":{"v":0,"d":"$0.00"}},{"$f":"IFERROR('MMA Rev-Exp Region 6'!$U$58/'MMA Rev-Exp Region 6'!$U$9, 0)","v":{"v":0,"d":"$0.00"}},{"$f":"IFERROR('MMA Rev-Exp Region 6'!$V$58/'MMA Rev-Exp Region 6'!$V$9, 0)","v":{"v":0,"d":"$0.00"}},{"$f":"IFERROR('MMA Rev-Exp Region 6'!$W$58/'MMA Rev-Exp Region 6'!$W$9, 0)","v":{"v":0,"d":"$0.00"}},{"$f":"IFERROR('MMA Rev-Exp Region 6'!$X$58/'MMA Rev-Exp Region 6'!$X$9, 0)","v":{"v":0,"d":"$0.00"}},{"$f":"IFERROR('MMA Rev-Exp Region 6'!$Y$58/'MMA Rev-Exp Region 6'!$Y$9, 0)","v":{"v":0,"d":"$0.00"}}]
["MMA",null,null,2016,"2016-12-31","Q2","2017-06-30","Region 6","Operating Expense","Medical Benefits Expense","Pharmacy Services","8.4","Prescription Drug Rebates ",{"$f":"IFERROR('MMA Rev-Exp Region 6'!$O$59/'MMA Rev-Exp Region 6'!$O$9, 0)","v":{"v":0,"d":"$0.00"}},{"$f":"IFERROR('MMA Rev-Exp Region 6'!$P$59/'MMA Rev-Exp Region 6'!$P$9, 0)","v":{"v":0,"d":"$0.00"}},{"$f":"IFERROR('MMA Rev-Exp Region 6'!$Q$59/'MMA Rev-Exp Region 6'!$Q$9, 0)","v":{"v":0,"d":"$0.00"}},{"$f":"IFERROR('MMA Rev-Exp Region 6'!$R$59/'MMA Rev-Exp Region 6'!$R$9, 0)","v":{"v":0,"d":"$0.00"}},{"$f":"IFERROR('MMA Rev-Exp Region 6'!$S$59/'MMA Rev-Exp Region 6'!$S$9, 0)","v":{"v":0,"d":"$0.00"}},{"$f":"IFERROR('MMA Rev-Exp Region 6'!$T$59/'MMA Rev-Exp Region 6'!$T$9, 0)","v":{"v":0,"d":"$0.00"}},{"$f":"IFERROR('MMA Rev-Exp Region 6'!$U$59/'MMA Rev-Exp Region 6'!$U$9, 0)","v":{"v":0,"d":"$0.00"}},{"$f":"IFERROR('MMA Rev-Exp Region 6'!$V$59/'MMA Rev-Exp Region 6'!$V$9, 0)","v":{"v":0,"d":"$0.00"}},{"$f":"IFERROR('MMA Rev-Exp Region 6'!$W$59/'MMA Rev-Exp Region 6'!$W$9, 0)","v":{"v":0,"d":"$0.00"}},{"$f":"IFERROR('MMA Rev-Exp Region 6'!$X$59/'MMA Rev-Exp Region 6'!$X$9, 0)","v":{"v":0,"d":"$0.00"}},{"$f":"IFERROR('MMA Rev-Exp Region 6'!$Y$59/'MMA Rev-Exp Region 6'!$Y$9, 0)","v":{"v":0,"d":"$0.00"}}]
["MMA",null,null,2016,"2016-12-31","Q2","2017-06-30","Region 6","Operating Expense","Medical Benefits Expense","Pharmacy Services","8.5","Ending accrual for Rebates receivable",{"$f":"IFERROR('MMA Rev-Exp Region 6'!$O$60/'MMA Rev-Exp Region 6'!$O$9, 0)","v":{"v":0,"d":"$0.00"}},{"$f":"IFERROR('MMA Rev-Exp Region 6'!$P$60/'MMA Rev-Exp Region 6'!$P$9, 0)","v":{"v":0,"d":"$0.00"}},{"$f":"IFERROR('MMA Rev-Exp Region 6'!$Q$60/'MMA Rev-Exp Region 6'!$Q$9, 0)","v":{"v":0,"d":"$0.00"}},{"$f":"IFERROR('MMA Rev-Exp Region 6'!$R$60/'MMA Rev-Exp Region 6'!$R$9, 0)","v":{"v":0,"d":"$0.00"}},{"$f":"IFERROR('MMA Rev-Exp Region 6'!$S$60/'MMA Rev-Exp Region 6'!$S$9, 0)","v":{"v":0,"d":"$0.00"}},{"$f":"IFERROR('MMA Rev-Exp Region 6'!$T$60/'MMA Rev-Exp Region 6'!$T$9, 0)","v":{"v":0,"d":"$0.00"}},{"$f":"IFERROR('MMA Rev-Exp Region 6'!$U$60/'MMA Rev-Exp Region 6'!$U$9, 0)","v":{"v":0,"d":"$0.00"}},{"$f":"IFERROR('MMA Rev-Exp Region 6'!$V$60/'MMA Rev-Exp Region 6'!$V$9, 0)","v":{"v":0,"d":"$0.00"}},{"$f":"IFERROR('MMA Rev-Exp Region 6'!$W$60/'MMA Rev-Exp Region 6'!$W$9, 0)","v":{"v":0,"d":"$0.00"}},{"$f":"IFERROR('MMA Rev-Exp Region 6'!$X$60/'MMA Rev-Exp Region 6'!$X$9, 0)","v":{"v":0,"d":"$0.00"}},{"$f":"IFERROR('MMA Rev-Exp Region 6'!$Y$60/'MMA Rev-Exp Region 6'!$Y$9, 0)","v":{"v":0,"d":"$0.00"}}]
["MMA",null,null,2016,"2016-12-31","Q2","2017-06-30","Region 6","Operating Expense","Medical Benefits Expense","Pharmacy Services","8.6","Prescription Drugs Subcapitation",{"$f":"IFERROR('MMA Rev-Exp Region 6'!$O$61/'MMA Rev-Exp Region 6'!$O$9, 0)","v":{"v":0,"d":"$0.00"}},{"$f":"IFERROR('MMA Rev-Exp Region 6'!$P$61/'MMA Rev-Exp Region 6'!$P$9, 0)","v":{"v":0,"d":"$0.00"}},{"$f":"IFERROR('MMA Rev-Exp Region 6'!$Q$61/'MMA Rev-Exp Region 6'!$Q$9, 0)","v":{"v":0,"d":"$0.00"}},{"$f":"IFERROR('MMA Rev-Exp Region 6'!$R$61/'MMA Rev-Exp Region 6'!$R$9, 0)","v":{"v":0,"d":"$0.00"}},{"$f":"IFERROR('MMA Rev-Exp Region 6'!$S$61/'MMA Rev-Exp Region 6'!$S$9, 0)","v":{"v":0,"d":"$0.00"}},{"$f":"IFERROR('MMA Rev-Exp Region 6'!$T$61/'MMA Rev-Exp Region 6'!$T$9, 0)","v":{"v":0,"d":"$0.00"}},{"$f":"IFERROR('MMA Rev-Exp Region 6'!$U$61/'MMA Rev-Exp Region 6'!$U$9, 0)","v":{"v":0,"d":"$0.00"}},{"$f":"IFERROR('MMA Rev-Exp Region 6'!$V$61/'MMA Rev-Exp Region 6'!$V$9, 0)","v":{"v":0,"d":"$0.00"}},{"$f":"IFERROR('MMA Rev-Exp Region 6'!$W$61/'MMA Rev-Exp Region 6'!$W$9, 0)","v":{"v":0,"d":"$0.00"}},{"$f":"IFERROR('MMA Rev-Exp Region 6'!$X$61/'MMA Rev-Exp Region 6'!$X$9, 0)","v":{"v":0,"d":"$0.00"}},{"$f":"IFERROR('MMA Rev-Exp Region 6'!$Y$61/'MMA Rev-Exp Region 6'!$Y$9, 0)","v":{"v":0,"d":"$0.00"}}]
["MMA",null,null,2016,"2016-12-31","Q2","2017-06-30","Region 6","Operating Expense","Medical Benefits Expense","Pharmacy Services","8.7","Prescription Drug Settlements",{"$f":"IFERROR('MMA Rev-Exp Region 6'!$O$62/'MMA Rev-Exp Region 6'!$O$9, 0)","v":{"v":0,"d":"$0.00"}},{"$f":"IFERROR('MMA Rev-Exp Region 6'!$P$62/'MMA Rev-Exp Region 6'!$P$9, 0)","v":{"v":0,"d":"$0.00"}},{"$f":"IFERROR('MMA Rev-Exp Region 6'!$Q$62/'MMA Rev-Exp Region 6'!$Q$9, 0)","v":{"v":0,"d":"$0.00"}},{"$f":"IFERROR('MMA Rev-Exp Region 6'!$R$62/'MMA Rev-Exp Region 6'!$R$9, 0)","v":{"v":0,"d":"$0.00"}},{"$f":"IFERROR('MMA Rev-Exp Region 6'!$S$62/'MMA Rev-Exp Region 6'!$S$9, 0)","v":{"v":0,"d":"$0.00"}},{"$f":"IFERROR('MMA Rev-Exp Region 6'!$T$62/'MMA Rev-Exp Region 6'!$T$9, 0)","v":{"v":0,"d":"$0.00"}},{"$f":"IFERROR('MMA Rev-Exp Region 6'!$U$62/'MMA Rev-Exp Region 6'!$U$9, 0)","v":{"v":0,"d":"$0.00"}},{"$f":"IFERROR('MMA Rev-Exp Region 6'!$V$62/'MMA Rev-Exp Region 6'!$V$9, 0)","v":{"v":0,"d":"$0.00"}},{"$f":"IFERROR('MMA Rev-Exp Region 6'!$W$62/'MMA Rev-Exp Region 6'!$W$9, 0)","v":{"v":0,"d":"$0.00"}},{"$f":"IFERROR('MMA Rev-Exp Region 6'!$X$62/'MMA Rev-Exp Region 6'!$X$9, 0)","v":{"v":0,"d":"$0.00"}},{"$f":"IFERROR('MMA Rev-Exp Region 6'!$Y$62/'MMA Rev-Exp Region 6'!$Y$9, 0)","v":{"v":0,"d":"$0.00"}}]
["MMA",null,null,2016,"2016-12-31","Q2","2017-06-30","Region 6","Operating Expense","Medical Benefits Expense","Other MMA Services",9.1,"Home Health, Private Duty Nursing, Personal Care FFS",{"$f":"IFERROR('MMA Rev-Exp Region 6'!$O$64/'MMA Rev-Exp Region 6'!$O$9, 0)","v":{"v":0,"d":"$0.00"}},{"$f":"IFERROR('MMA Rev-Exp Region 6'!$P$64/'MMA Rev-Exp Region 6'!$P$9, 0)","v":{"v":0,"d":"$0.00"}},{"$f":"IFERROR('MMA Rev-Exp Region 6'!$Q$64/'MMA Rev-Exp Region 6'!$Q$9, 0)","v":{"v":0,"d":"$0.00"}},{"$f":"IFERROR('MMA Rev-Exp Region 6'!$R$64/'MMA Rev-Exp Region 6'!$R$9, 0)","v":{"v":0,"d":"$0.00"}},{"$f":"IFERROR('MMA Rev-Exp Region 6'!$S$64/'MMA Rev-Exp Region 6'!$S$9, 0)","v":{"v":0,"d":"$0.00"}},{"$f":"IFERROR('MMA Rev-Exp Region 6'!$T$64/'MMA Rev-Exp Region 6'!$T$9, 0)","v":{"v":0,"d":"$0.00"}},{"$f":"IFERROR('MMA Rev-Exp Region 6'!$U$64/'MMA Rev-Exp Region 6'!$U$9, 0)","v":{"v":0,"d":"$0.00"}},{"$f":"IFERROR('MMA Rev-Exp Region 6'!$V$64/'MMA Rev-Exp Region 6'!$V$9, 0)","v":{"v":0,"d":"$0.00"}},{"$f":"IFERROR('MMA Rev-Exp Region 6'!$W$64/'MMA Rev-Exp Region 6'!$W$9, 0)","v":{"v":0,"d":"$0.00"}},{"$f":"IFERROR('MMA Rev-Exp Region 6'!$X$64/'MMA Rev-Exp Region 6'!$X$9, 0)","v":{"v":0,"d":"$0.00"}},{"$f":"IFERROR('MMA Rev-Exp Region 6'!$Y$64/'MMA Rev-Exp Region 6'!$Y$9, 0)","v":{"v":0,"d":"$0.00"}}]
["MMA",null,null,2016,"2016-12-31","Q2","2017-06-30","Region 6","Operating Expense","Medical Benefits Expense","Other MMA Services","9.2","Hospice FFS",{"$f":"IFERROR('MMA Rev-Exp Region 6'!$O$65/'MMA Rev-Exp Region 6'!$O$9, 0)","v":{"v":0,"d":"$0.00"}},{"$f":"IFERROR('MMA Rev-Exp Region 6'!$P$65/'MMA Rev-Exp Region 6'!$P$9, 0)","v":{"v":0,"d":"$0.00"}},{"$f":"IFERROR('MMA Rev-Exp Region 6'!$Q$65/'MMA Rev-Exp Region 6'!$Q$9, 0)","v":{"v":0,"d":"$0.00"}},{"$f":"IFERROR('MMA Rev-Exp Region 6'!$R$65/'MMA Rev-Exp Region 6'!$R$9, 0)","v":{"v":0,"d":"$0.00"}},{"$f":"IFERROR('MMA Rev-Exp Region 6'!$S$65/'MMA Rev-Exp Region 6'!$S$9, 0)","v":{"v":0,"d":"$0.00"}},{"$f":"IFERROR('MMA Rev-Exp Region 6'!$T$65/'MMA Rev-Exp Region 6'!$T$9, 0)","v":{"v":0,"d":"$0.00"}},{"$f":"IFERROR('MMA Rev-Exp Region 6'!$U$65/'MMA Rev-Exp Region 6'!$U$9, 0)","v":{"v":0,"d":"$0.00"}},{"$f":"IFERROR('MMA Rev-Exp Region 6'!$V$65/'MMA Rev-Exp Region 6'!$V$9, 0)","v":{"v":0,"d":"$0.00"}},{"$f":"IFERROR('MMA Rev-Exp Region 6'!$W$65/'MMA Rev-Exp Region 6'!$W$9, 0)","v":{"v":0,"d":"$0.00"}},{"$f":"IFERROR('MMA Rev-Exp Region 6'!$X$65/'MMA Rev-Exp Region 6'!$X$9, 0)","v":{"v":0,"d":"$0.00"}},{"$f":"IFERROR('MMA Rev-Exp Region 6'!$Y$65/'MMA Rev-Exp Region 6'!$Y$9, 0)","v":{"v":0,"d":"$0.00"}}]
["MMA",null,null,2016,"2016-12-31","Q2","2017-06-30","Region 6","Operating Expense","Medical Benefits Expense","Other MMA Services","9.3","DME FFS",{"$f":"IFERROR('MMA Rev-Exp Region 6'!$O$66/'MMA Rev-Exp Region 6'!$O$9, 0)","v":{"v":0,"d":"$0.00"}},{"$f":"IFERROR('MMA Rev-Exp Region 6'!$P$66/'MMA Rev-Exp Region 6'!$P$9, 0)","v":{"v":0,"d":"$0.00"}},{"$f":"IFERROR('MMA Rev-Exp Region 6'!$Q$66/'MMA Rev-Exp Region 6'!$Q$9, 0)","v":{"v":0,"d":"$0.00"}},{"$f":"IFERROR('MMA Rev-Exp Region 6'!$R$66/'MMA Rev-Exp Region 6'!$R$9, 0)","v":{"v":0,"d":"$0.00"}},{"$f":"IFERROR('MMA Rev-Exp Region 6'!$S$66/'MMA Rev-Exp Region 6'!$S$9, 0)","v":{"v":0,"d":"$0.00"}},{"$f":"IFERROR('MMA Rev-Exp Region 6'!$T$66/'MMA Rev-Exp Region 6'!$T$9, 0)","v":{"v":0,"d":"$0.00"}},{"$f":"IFERROR('MMA Rev-Exp Region 6'!$U$66/'MMA Rev-Exp Region 6'!$U$9, 0)","v":{"v":0,"d":"$0.00"}},{"$f":"IFERROR('MMA Rev-Exp Region 6'!$V$66/'MMA Rev-Exp Region 6'!$V$9, 0)","v":{"v":0,"d":"$0.00"}},{"$f":"IFERROR('MMA Rev-Exp Region 6'!$W$66/'MMA Rev-Exp Region 6'!$W$9, 0)","v":{"v":0,"d":"$0.00"}},{"$f":"IFERROR('MMA Rev-Exp Region 6'!$X$66/'MMA Rev-Exp Region 6'!$X$9, 0)","v":{"v":0,"d":"$0.00"}},{"$f":"IFERROR('MMA Rev-Exp Region 6'!$Y$66/'MMA Rev-Exp Region 6'!$Y$9, 0)","v":{"v":0,"d":"$0.00"}}]
["MMA",null,null,2016,"2016-12-31","Q2","2017-06-30","Region 6","Operating Expense","Medical Benefits Expense","Other MMA Services","9.4","Other State Plan Services FFS",{"$f":"IFERROR('MMA Rev-Exp Region 6'!$O$67/'MMA Rev-Exp Region 6'!$O$9, 0)","v":{"v":0,"d":"$0.00"}},{"$f":"IFERROR('MMA Rev-Exp Region 6'!$P$67/'MMA Rev-Exp Region 6'!$P$9, 0)","v":{"v":0,"d":"$0.00"}},{"$f":"IFERROR('MMA Rev-Exp Region 6'!$Q$67/'MMA Rev-Exp Region 6'!$Q$9, 0)","v":{"v":0,"d":"$0.00"}},{"$f":"IFERROR('MMA Rev-Exp Region 6'!$R$67/'MMA Rev-Exp Region 6'!$R$9, 0)","v":{"v":0,"d":"$0.00"}},{"$f":"IFERROR('MMA Rev-Exp Region 6'!$S$67/'MMA Rev-Exp Region 6'!$S$9, 0)","v":{"v":0,"d":"$0.00"}},{"$f":"IFERROR('MMA Rev-Exp Region 6'!$T$67/'MMA Rev-Exp Region 6'!$T$9, 0)","v":{"v":0,"d":"$0.00"}},{"$f":"IFERROR('MMA Rev-Exp Region 6'!$U$67/'MMA Rev-Exp Region 6'!$U$9, 0)","v":{"v":0,"d":"$0.00"}},{"$f":"IFERROR('MMA Rev-Exp Region 6'!$V$67/'MMA Rev-Exp Region 6'!$V$9, 0)","v":{"v":0,"d":"$0.00"}},{"$f":"IFERROR('MMA Rev-Exp Region 6'!$W$67/'MMA Rev-Exp Region 6'!$W$9, 0)","v":{"v":0,"d":"$0.00"}},{"$f":"IFERROR('MMA Rev-Exp Region 6'!$X$67/'MMA Rev-Exp Region 6'!$X$9, 0)","v":{"v":0,"d":"$0.00"}},{"$f":"IFERROR('MMA Rev-Exp Region 6'!$Y$67/'MMA Rev-Exp Region 6'!$Y$9, 0)","v":{"v":0,"d":"$0.00"}}]
["MMA",null,null,2016,"2016-12-31","Q2","2017-06-30","Region 6","Operating Expense","Medical Benefits Expense","Other MMA Services","9.5","Other Services Subcapitation",{"$f":"IFERROR('MMA Rev-Exp Region 6'!$O$68/'MMA Rev-Exp Region 6'!$O$9, 0)","v":{"v":0,"d":"$0.00"}},{"$f":"IFERROR('MMA Rev-Exp Region 6'!$P$68/'MMA Rev-Exp Region 6'!$P$9, 0)","v":{"v":0,"d":"$0.00"}},{"$f":"IFERROR('MMA Rev-Exp Region 6'!$Q$68/'MMA Rev-Exp Region 6'!$Q$9, 0)","v":{"v":0,"d":"$0.00"}},{"$f":"IFERROR('MMA Rev-Exp Region 6'!$R$68/'MMA Rev-Exp Region 6'!$R$9, 0)","v":{"v":0,"d":"$0.00"}},{"$f":"IFERROR('MMA Rev-Exp Region 6'!$S$68/'MMA Rev-Exp Region 6'!$S$9, 0)","v":{"v":0,"d":"$0.00"}},{"$f":"IFERROR('MMA Rev-Exp Region 6'!$T$68/'MMA Rev-Exp Region 6'!$T$9, 0)","v":{"v":0,"d":"$0.00"}},{"$f":"IFERROR('MMA Rev-Exp Region 6'!$U$68/'MMA Rev-Exp Region 6'!$U$9, 0)","v":{"v":0,"d":"$0.00"}},{"$f":"IFERROR('MMA Rev-Exp Region 6'!$V$68/'MMA Rev-Exp Region 6'!$V$9, 0)","v":{"v":0,"d":"$0.00"}},{"$f":"IFERROR('MMA Rev-Exp Region 6'!$W$68/'MMA Rev-Exp Region 6'!$W$9, 0)","v":{"v":0,"d":"$0.00"}},{"$f":"IFERROR('MMA Rev-Exp Region 6'!$X$68/'MMA Rev-Exp Region 6'!$X$9, 0)","v":{"v":0,"d":"$0.00"}},{"$f":"IFERROR('MMA Rev-Exp Region 6'!$Y$68/'MMA Rev-Exp Region 6'!$Y$9, 0)","v":{"v":0,"d":"$0.00"}}]
["MMA",null,null,2016,"2016-12-31","Q2","2017-06-30","Region 6","Operating Expense","Medical Benefits Expense","Other MMA Services","9.6","Ending IBNP for Other Services",{"$f":"IFERROR('MMA Rev-Exp Region 6'!$O$69/'MMA Rev-Exp Region 6'!$O$9, 0)","v":{"v":0,"d":"$0.00"}},{"$f":"IFERROR('MMA Rev-Exp Region 6'!$P$69/'MMA Rev-Exp Region 6'!$P$9, 0)","v":{"v":0,"d":"$0.00"}},{"$f":"IFERROR('MMA Rev-Exp Region 6'!$Q$69/'MMA Rev-Exp Region 6'!$Q$9, 0)","v":{"v":0,"d":"$0.00"}},{"$f":"IFERROR('MMA Rev-Exp Region 6'!$R$69/'MMA Rev-Exp Region 6'!$R$9, 0)","v":{"v":0,"d":"$0.00"}},{"$f":"IFERROR('MMA Rev-Exp Region 6'!$S$69/'MMA Rev-Exp Region 6'!$S$9, 0)","v":{"v":0,"d":"$0.00"}},{"$f":"IFERROR('MMA Rev-Exp Region 6'!$T$69/'MMA Rev-Exp Region 6'!$T$9, 0)","v":{"v":0,"d":"$0.00"}},{"$f":"IFERROR('MMA Rev-Exp Region 6'!$U$69/'MMA Rev-Exp Region 6'!$U$9, 0)","v":{"v":0,"d":"$0.00"}},{"$f":"IFERROR('MMA Rev-Exp Region 6'!$V$69/'MMA Rev-Exp Region 6'!$V$9, 0)","v":{"v":0,"d":"$0.00"}},{"$f":"IFERROR('MMA Rev-Exp Region 6'!$W$69/'MMA Rev-Exp Region 6'!$W$9, 0)","v":{"v":0,"d":"$0.00"}},{"$f":"IFERROR('MMA Rev-Exp Region 6'!$X$69/'MMA Rev-Exp Region 6'!$X$9, 0)","v":{"v":0,"d":"$0.00"}},{"$f":"IFERROR('MMA Rev-Exp Region 6'!$Y$69/'MMA Rev-Exp Region 6'!$Y$9, 0)","v":{"v":0,"d":"$0.00"}}]
["MMA",null,null,2016,"2016-12-31","Q2","2017-06-30","Region 6","Operating Expense","Medical Benefits Expense","Other MMA Services","9.7","Other Services Settlements",{"$f":"IFERROR('MMA Rev-Exp Region 6'!$O$70/'MMA Rev-Exp Region 6'!$O$9, 0)","v":{"v":0,"d":"$0.00"}},{"$f":"IFERROR('MMA Rev-Exp Region 6'!$P$70/'MMA Rev-Exp Region 6'!$P$9, 0)","v":{"v":0,"d":"$0.00"}},{"$f":"IFERROR('MMA Rev-Exp Region 6'!$Q$70/'MMA Rev-Exp Region 6'!$Q$9, 0)","v":{"v":0,"d":"$0.00"}},{"$f":"IFERROR('MMA Rev-Exp Region 6'!$R$70/'MMA Rev-Exp Region 6'!$R$9, 0)","v":{"v":0,"d":"$0.00"}},{"$f":"IFERROR('MMA Rev-Exp Region 6'!$S$70/'MMA Rev-Exp Region 6'!$S$9, 0)","v":{"v":0,"d":"$0.00"}},{"$f":"IFERROR('MMA Rev-Exp Region 6'!$T$70/'MMA Rev-Exp Region 6'!$T$9, 0)","v":{"v":0,"d":"$0.00"}},{"$f":"IFERROR('MMA Rev-Exp Region 6'!$U$70/'MMA Rev-Exp Region 6'!$U$9, 0)","v":{"v":0,"d":"$0.00"}},{"$f":"IFERROR('MMA Rev-Exp Region 6'!$V$70/'MMA Rev-Exp Region 6'!$V$9, 0)","v":{"v":0,"d":"$0.00"}},{"$f":"IFERROR('MMA Rev-Exp Region 6'!$W$70/'MMA Rev-Exp Region 6'!$W$9, 0)","v":{"v":0,"d":"$0.00"}},{"$f":"IFERROR('MMA Rev-Exp Region 6'!$X$70/'MMA Rev-Exp Region 6'!$X$9, 0)","v":{"v":0,"d":"$0.00"}},{"$f":"IFERROR('MMA Rev-Exp Region 6'!$Y$70/'MMA Rev-Exp Region 6'!$Y$9, 0)","v":{"v":0,"d":"$0.00"}}]
["MMA",null,null,2016,"2016-12-31","Q2","2017-06-30","Region 6","Operating Expense","Medical Benefits Expense","Expanded Benefits","10.1","Expanded Benefits FFS",{"$f":"IFERROR('MMA Rev-Exp Region 6'!$O$72/'MMA Rev-Exp Region 6'!$O$9, 0)","v":{"v":0,"d":"$0.00"}},{"$f":"IFERROR('MMA Rev-Exp Region 6'!$P$72/'MMA Rev-Exp Region 6'!$P$9, 0)","v":{"v":0,"d":"$0.00"}},{"$f":"IFERROR('MMA Rev-Exp Region 6'!$Q$72/'MMA Rev-Exp Region 6'!$Q$9, 0)","v":{"v":0,"d":"$0.00"}},{"$f":"IFERROR('MMA Rev-Exp Region 6'!$R$72/'MMA Rev-Exp Region 6'!$R$9, 0)","v":{"v":0,"d":"$0.00"}},{"$f":"IFERROR('MMA Rev-Exp Region 6'!$S$72/'MMA Rev-Exp Region 6'!$S$9, 0)","v":{"v":0,"d":"$0.00"}},{"$f":"IFERROR('MMA Rev-Exp Region 6'!$T$72/'MMA Rev-Exp Region 6'!$T$9, 0)","v":{"v":0,"d":"$0.00"}},{"$f":"IFERROR('MMA Rev-Exp Region 6'!$U$72/'MMA Rev-Exp Region 6'!$U$9, 0)","v":{"v":0,"d":"$0.00"}},{"$f":"IFERROR('MMA Rev-Exp Region 6'!$V$72/'MMA Rev-Exp Region 6'!$V$9, 0)","v":{"v":0,"d":"$0.00"}},{"$f":"IFERROR('MMA Rev-Exp Region 6'!$W$72/'MMA Rev-Exp Region 6'!$W$9, 0)","v":{"v":0,"d":"$0.00"}},{"$f":"IFERROR('MMA Rev-Exp Region 6'!$X$72/'MMA Rev-Exp Region 6'!$X$9, 0)","v":{"v":0,"d":"$0.00"}},{"$f":"IFERROR('MMA Rev-Exp Region 6'!$Y$72/'MMA Rev-Exp Region 6'!$Y$9, 0)","v":{"v":0,"d":"$0.00"}}]
["MMA",null,null,2016,"2016-12-31","Q2","2017-06-30","Region 6","Operating Expense","Medical Benefits Expense","Expanded Benefits","10.2","Expanded benefits Subcapitation",{"$f":"IFERROR('MMA Rev-Exp Region 6'!$O$73/'MMA Rev-Exp Region 6'!$O$9, 0)","v":{"v":0,"d":"$0.00"}},{"$f":"IFERROR('MMA Rev-Exp Region 6'!$P$73/'MMA Rev-Exp Region 6'!$P$9, 0)","v":{"v":0,"d":"$0.00"}},{"$f":"IFERROR('MMA Rev-Exp Region 6'!$Q$73/'MMA Rev-Exp Region 6'!$Q$9, 0)","v":{"v":0,"d":"$0.00"}},{"$f":"IFERROR('MMA Rev-Exp Region 6'!$R$73/'MMA Rev-Exp Region 6'!$R$9, 0)","v":{"v":0,"d":"$0.00"}},{"$f":"IFERROR('MMA Rev-Exp Region 6'!$S$73/'MMA Rev-Exp Region 6'!$S$9, 0)","v":{"v":0,"d":"$0.00"}},{"$f":"IFERROR('MMA Rev-Exp Region 6'!$T$73/'MMA Rev-Exp Region 6'!$T$9, 0)","v":{"v":0,"d":"$0.00"}},{"$f":"IFERROR('MMA Rev-Exp Region 6'!$U$73/'MMA Rev-Exp Region 6'!$U$9, 0)","v":{"v":0,"d":"$0.00"}},{"$f":"IFERROR('MMA Rev-Exp Region 6'!$V$73/'MMA Rev-Exp Region 6'!$V$9, 0)","v":{"v":0,"d":"$0.00"}},{"$f":"IFERROR('MMA Rev-Exp Region 6'!$W$73/'MMA Rev-Exp Region 6'!$W$9, 0)","v":{"v":0,"d":"$0.00"}},{"$f":"IFERROR('MMA Rev-Exp Region 6'!$X$73/'MMA Rev-Exp Region 6'!$X$9, 0)","v":{"v":0,"d":"$0.00"}},{"$f":"IFERROR('MMA Rev-Exp Region 6'!$Y$73/'MMA Rev-Exp Region 6'!$Y$9, 0)","v":{"v":0,"d":"$0.00"}}]
["MMA",null,null,2016,"2016-12-31","Q2","2017-06-30","Region 6","Operating Expense","Medical Benefits Expense","Expanded Benefits","10.3","Ending IBNP for Expanded Benefits",{"$f":"IFERROR('MMA Rev-Exp Region 6'!$O$74/'MMA Rev-Exp Region 6'!$O$9, 0)","v":{"v":0,"d":"$0.00"}},{"$f":"IFERROR('MMA Rev-Exp Region 6'!$P$74/'MMA Rev-Exp Region 6'!$P$9, 0)","v":{"v":0,"d":"$0.00"}},{"$f":"IFERROR('MMA Rev-Exp Region 6'!$Q$74/'MMA Rev-Exp Region 6'!$Q$9, 0)","v":{"v":0,"d":"$0.00"}},{"$f":"IFERROR('MMA Rev-Exp Region 6'!$R$74/'MMA Rev-Exp Region 6'!$R$9, 0)","v":{"v":0,"d":"$0.00"}},{"$f":"IFERROR('MMA Rev-Exp Region 6'!$S$74/'MMA Rev-Exp Region 6'!$S$9, 0)","v":{"v":0,"d":"$0.00"}},{"$f":"IFERROR('MMA Rev-Exp Region 6'!$T$74/'MMA Rev-Exp Region 6'!$T$9, 0)","v":{"v":0,"d":"$0.00"}},{"$f":"IFERROR('MMA Rev-Exp Region 6'!$U$74/'MMA Rev-Exp Region 6'!$U$9, 0)","v":{"v":0,"d":"$0.00"}},{"$f":"IFERROR('MMA Rev-Exp Region 6'!$V$74/'MMA Rev-Exp Region 6'!$V$9, 0)","v":{"v":0,"d":"$0.00"}},{"$f":"IFERROR('MMA Rev-Exp Region 6'!$W$74/'MMA Rev-Exp Region 6'!$W$9, 0)","v":{"v":0,"d":"$0.00"}},{"$f":"IFERROR('MMA Rev-Exp Region 6'!$X$74/'MMA Rev-Exp Region 6'!$X$9, 0)","v":{"v":0,"d":"$0.00"}},{"$f":"IFERROR('MMA Rev-Exp Region 6'!$Y$74/'MMA Rev-Exp Region 6'!$Y$9, 0)","v":{"v":0,"d":"$0.00"}}]
["MMA",null,null,2016,"2016-12-31","Q2","2017-06-30","Region 6","Operating Expense","Medical Benefits Expense","Expanded Benefits","10.4","Expanded Benefits Settlements",{"$f":"IFERROR('MMA Rev-Exp Region 6'!$O$75/'MMA Rev-Exp Region 6'!$O$9, 0)","v":{"v":0,"d":"$0.00"}},{"$f":"IFERROR('MMA Rev-Exp Region 6'!$P$75/'MMA Rev-Exp Region 6'!$P$9, 0)","v":{"v":0,"d":"$0.00"}},{"$f":"IFERROR('MMA Rev-Exp Region 6'!$Q$75/'MMA Rev-Exp Region 6'!$Q$9, 0)","v":{"v":0,"d":"$0.00"}},{"$f":"IFERROR('MMA Rev-Exp Region 6'!$R$75/'MMA Rev-Exp Region 6'!$R$9, 0)","v":{"v":0,"d":"$0.00"}},{"$f":"IFERROR('MMA Rev-Exp Region 6'!$S$75/'MMA Rev-Exp Region 6'!$S$9, 0)","v":{"v":0,"d":"$0.00"}},{"$f":"IFERROR('MMA Rev-Exp Region 6'!$T$75/'MMA Rev-Exp Region 6'!$T$9, 0)","v":{"v":0,"d":"$0.00"}},{"$f":"IFERROR('MMA Rev-Exp Region 6'!$U$75/'MMA Rev-Exp Region 6'!$U$9, 0)","v":{"v":0,"d":"$0.00"}},{"$f":"IFERROR('MMA Rev-Exp Region 6'!$V$75/'MMA Rev-Exp Region 6'!$V$9, 0)","v":{"v":0,"d":"$0.00"}},{"$f":"IFERROR('MMA Rev-Exp Region 6'!$W$75/'MMA Rev-Exp Region 6'!$W$9, 0)","v":{"v":0,"d":"$0.00"}},{"$f":"IFERROR('MMA Rev-Exp Region 6'!$X$75/'MMA Rev-Exp Region 6'!$X$9, 0)","v":{"v":0,"d":"$0.00"}},{"$f":"IFERROR('MMA Rev-Exp Region 6'!$Y$75/'MMA Rev-Exp Region 6'!$Y$9, 0)","v":{"v":0,"d":"$0.00"}}]
["MMA",null,null,2016,"2016-12-31","Q2","2017-06-30","Region 6","Operating Expense","Medical Benefits Expense","Other Medical","11.5","TPL & Fraud/Abuse Recoveries",{"$f":"IFERROR('MMA Rev-Exp Region 6'!$O$81/'MMA Rev-Exp Region 6'!$O$9, 0)","v":{"v":0,"d":"$0.00"}},{"$f":"IFERROR('MMA Rev-Exp Region 6'!$P$81/'MMA Rev-Exp Region 6'!$P$9, 0)","v":{"v":0,"d":"$0.00"}},{"$f":"IFERROR('MMA Rev-Exp Region 6'!$Q$81/'MMA Rev-Exp Region 6'!$Q$9, 0)","v":{"v":0,"d":"$0.00"}},{"$f":"IFERROR('MMA Rev-Exp Region 6'!$R$81/'MMA Rev-Exp Region 6'!$R$9, 0)","v":{"v":0,"d":"$0.00"}},{"$f":"IFERROR('MMA Rev-Exp Region 6'!$S$81/'MMA Rev-Exp Region 6'!$S$9, 0)","v":{"v":0,"d":"$0.00"}},{"$f":"IFERROR('MMA Rev-Exp Region 6'!$T$81/'MMA Rev-Exp Region 6'!$T$9, 0)","v":{"v":0,"d":"$0.00"}},{"$f":"IFERROR('MMA Rev-Exp Region 6'!$U$81/'MMA Rev-Exp Region 6'!$U$9, 0)","v":{"v":0,"d":"$0.00"}},{"$f":"IFERROR('MMA Rev-Exp Region 6'!$V$81/'MMA Rev-Exp Region 6'!$V$9, 0)","v":{"v":0,"d":"$0.00"}},{"$f":"IFERROR('MMA Rev-Exp Region 6'!$W$81/'MMA Rev-Exp Region 6'!$W$9, 0)","v":{"v":0,"d":"$0.00"}},{"$f":"IFERROR('MMA Rev-Exp Region 6'!$X$81/'MMA Rev-Exp Region 6'!$X$9, 0)","v":{"v":0,"d":"$0.00"}},{"$f":"IFERROR('MMA Rev-Exp Region 6'!$Y$81/'MMA Rev-Exp Region 6'!$Y$9, 0)","v":{"v":0,"d":"$0.00"}}]
["MMA",null,null,2016,"2016-12-31","Q2","2017-06-30","Region 6","Operating Expense","Medical Benefits Expense","Other Medical","11.6.1","Premium Deficiency Reserve",{"$f":"IFERROR('MMA Rev-Exp Region 6'!$O$82/'MMA Rev-Exp Region 6'!$O$9, 0)","v":{"v":0,"d":"$0.00"}},{"$f":"IFERROR('MMA Rev-Exp Region 6'!$P$82/'MMA Rev-Exp Region 6'!$P$9, 0)","v":{"v":0,"d":"$0.00"}},{"$f":"IFERROR('MMA Rev-Exp Region 6'!$Q$82/'MMA Rev-Exp Region 6'!$Q$9, 0)","v":{"v":0,"d":"$0.00"}},{"$f":"IFERROR('MMA Rev-Exp Region 6'!$R$82/'MMA Rev-Exp Region 6'!$R$9, 0)","v":{"v":0,"d":"$0.00"}},{"$f":"IFERROR('MMA Rev-Exp Region 6'!$S$82/'MMA Rev-Exp Region 6'!$S$9, 0)","v":{"v":0,"d":"$0.00"}},{"$f":"IFERROR('MMA Rev-Exp Region 6'!$T$82/'MMA Rev-Exp Region 6'!$T$9, 0)","v":{"v":0,"d":"$0.00"}},{"$f":"IFERROR('MMA Rev-Exp Region 6'!$U$82/'MMA Rev-Exp Region 6'!$U$9, 0)","v":{"v":0,"d":"$0.00"}},{"$f":"IFERROR('MMA Rev-Exp Region 6'!$V$82/'MMA Rev-Exp Region 6'!$V$9, 0)","v":{"v":0,"d":"$0.00"}},{"$f":"IFERROR('MMA Rev-Exp Region 6'!$W$82/'MMA Rev-Exp Region 6'!$W$9, 0)","v":{"v":0,"d":"$0.00"}},{"$f":"IFERROR('MMA Rev-Exp Region 6'!$X$82/'MMA Rev-Exp Region 6'!$X$9, 0)","v":{"v":0,"d":"$0.00"}},{"$f":"IFERROR('MMA Rev-Exp Region 6'!$Y$82/'MMA Rev-Exp Region 6'!$Y$9, 0)","v":{"v":0,"d":"$0.00"}}]
["MMA",null,null,2016,"2016-12-31","Q2","2017-06-30","Region 6","Operating Expense","Medical Benefits Expense","Other Medical","11.8","Reinsurance Premiums",{"$f":"IFERROR('MMA Rev-Exp Region 6'!$O$84/'MMA Rev-Exp Region 6'!$O$9, 0)","v":{"v":0,"d":"$0.00"}},{"$f":"IFERROR('MMA Rev-Exp Region 6'!$P$84/'MMA Rev-Exp Region 6'!$P$9, 0)","v":{"v":0,"d":"$0.00"}},{"$f":"IFERROR('MMA Rev-Exp Region 6'!$Q$84/'MMA Rev-Exp Region 6'!$Q$9, 0)","v":{"v":0,"d":"$0.00"}},{"$f":"IFERROR('MMA Rev-Exp Region 6'!$R$84/'MMA Rev-Exp Region 6'!$R$9, 0)","v":{"v":0,"d":"$0.00"}},{"$f":"IFERROR('MMA Rev-Exp Region 6'!$S$84/'MMA Rev-Exp Region 6'!$S$9, 0)","v":{"v":0,"d":"$0.00"}},{"$f":"IFERROR('MMA Rev-Exp Region 6'!$T$84/'MMA Rev-Exp Region 6'!$T$9, 0)","v":{"v":0,"d":"$0.00"}},{"$f":"IFERROR('MMA Rev-Exp Region 6'!$U$84/'MMA Rev-Exp Region 6'!$U$9, 0)","v":{"v":0,"d":"$0.00"}},{"$f":"IFERROR('MMA Rev-Exp Region 6'!$V$84/'MMA Rev-Exp Region 6'!$V$9, 0)","v":{"v":0,"d":"$0.00"}},{"$f":"IFERROR('MMA Rev-Exp Region 6'!$W$84/'MMA Rev-Exp Region 6'!$W$9, 0)","v":{"v":0,"d":"$0.00"}},{"$f":"IFERROR('MMA Rev-Exp Region 6'!$X$84/'MMA Rev-Exp Region 6'!$X$9, 0)","v":{"v":0,"d":"$0.00"}},{"$f":"IFERROR('MMA Rev-Exp Region 6'!$Y$84/'MMA Rev-Exp Region 6'!$Y$9, 0)","v":{"v":0,"d":"$0.00"}}]
["MMA",null,null,2016,"2016-12-31","Q2","2017-06-30","Region 6","Operating Expense","Medical Benefits Expense","Other Medical","11.9","Reinsurance Recoveries",{"$f":"IFERROR('MMA Rev-Exp Region 6'!$O$85/'MMA Rev-Exp Region 6'!$O$9, 0)","v":{"v":0,"d":"$0.00"}},{"$f":"IFERROR('MMA Rev-Exp Region 6'!$P$85/'MMA Rev-Exp Region 6'!$P$9, 0)","v":{"v":0,"d":"$0.00"}},{"$f":"IFERROR('MMA Rev-Exp Region 6'!$Q$85/'MMA Rev-Exp Region 6'!$Q$9, 0)","v":{"v":0,"d":"$0.00"}},{"$f":"IFERROR('MMA Rev-Exp Region 6'!$R$85/'MMA Rev-Exp Region 6'!$R$9, 0)","v":{"v":0,"d":"$0.00"}},{"$f":"IFERROR('MMA Rev-Exp Region 6'!$S$85/'MMA Rev-Exp Region 6'!$S$9, 0)","v":{"v":0,"d":"$0.00"}},{"$f":"IFERROR('MMA Rev-Exp Region 6'!$T$85/'MMA Rev-Exp Region 6'!$T$9, 0)","v":{"v":0,"d":"$0.00"}},{"$f":"IFERROR('MMA Rev-Exp Region 6'!$U$85/'MMA Rev-Exp Region 6'!$U$9, 0)","v":{"v":0,"d":"$0.00"}},{"$f":"IFERROR('MMA Rev-Exp Region 6'!$V$85/'MMA Rev-Exp Region 6'!$V$9, 0)","v":{"v":0,"d":"$0.00"}},{"$f":"IFERROR('MMA Rev-Exp Region 6'!$W$85/'MMA Rev-Exp Region 6'!$W$9, 0)","v":{"v":0,"d":"$0.00"}},{"$f":"IFERROR('MMA Rev-Exp Region 6'!$X$85/'MMA Rev-Exp Region 6'!$X$9, 0)","v":{"v":0,"d":"$0.00"}},{"$f":"IFERROR('MMA Rev-Exp Region 6'!$Y$85/'MMA Rev-Exp Region 6'!$Y$9, 0)","v":{"v":0,"d":"$0.00"}}]
["MMA",null,null,2016,"2016-12-31","Q2","2017-06-30","Region 6","Operating Expense","Administrative Expense","Administrative","12.1","Salaries & Benefits",{"$f":"IFERROR('MMA Rev-Exp Region 6'!$O$90/'MMA Rev-Exp Region 6'!$O$9, 0)","v":{"v":0,"d":"$0.00"}},{"$f":"IFERROR('MMA Rev-Exp Region 6'!$P$90/'MMA Rev-Exp Region 6'!$O$9, 0)","v":{"v":0,"d":"$0.00"}},{"$f":"IFERROR('MMA Rev-Exp Region 6'!$Q$90/'MMA Rev-Exp Region 6'!$O$9, 0)","v":{"v":0,"d":"$0.00"}},{"$f":"IFERROR('MMA Rev-Exp Region 6'!$R$90/'MMA Rev-Exp Region 6'!$R$9, 0)","v":{"v":0,"d":"$0.00"}},{"$f":"IFERROR('MMA Rev-Exp Region 6'!$S$90/'MMA Rev-Exp Region 6'!$S$9, 0)","v":{"v":0,"d":"$0.00"}},{"$f":"IFERROR('MMA Rev-Exp Region 6'!$T$90/'MMA Rev-Exp Region 6'!$T$9, 0)","v":{"v":0,"d":"$0.00"}},{"$f":"IFERROR('MMA Rev-Exp Region 6'!$U$90/'MMA Rev-Exp Region 6'!$U$9, 0)","v":{"v":0,"d":"$0.00"}},{"$f":"IFERROR('MMA Rev-Exp Region 6'!$V$90/'MMA Rev-Exp Region 6'!$V$9, 0)","v":{"v":0,"d":"$0.00"}},{"$f":"IFERROR('MMA Rev-Exp Region 6'!$W$90/'MMA Rev-Exp Region 6'!$W$9, 0)","v":{"v":0,"d":"$0.00"}},{"$f":"IFERROR('MMA Rev-Exp Region 6'!$X$90/'MMA Rev-Exp Region 6'!$X$9, 0)","v":{"v":0,"d":"$0.00"}},{"$f":"IFERROR('MMA Rev-Exp Region 6'!$Y$90/'MMA Rev-Exp Region 6'!$Y$9, 0)","v":{"v":0,"d":"$0.00"}}]
["MMA",null,null,2016,"2016-12-31","Q2","2017-06-30","Region 6","Operating Expense","Administrative Expense","Administrative","12.2","Administrative Services",{"$f":"IFERROR('MMA Rev-Exp Region 6'!$O$91/'MMA Rev-Exp Region 6'!$O$9, 0)","v":{"v":0,"d":"$0.00"}},{"$f":"IFERROR('MMA Rev-Exp Region 6'!$P$91/'MMA Rev-Exp Region 6'!$O$9, 0)","v":{"v":0,"d":"$0.00"}},{"$f":"IFERROR('MMA Rev-Exp Region 6'!$Q$91/'MMA Rev-Exp Region 6'!$O$9, 0)","v":{"v":0,"d":"$0.00"}},{"$f":"IFERROR('MMA Rev-Exp Region 6'!$R$91/'MMA Rev-Exp Region 6'!$R$9, 0)","v":{"v":0,"d":"$0.00"}},{"$f":"IFERROR('MMA Rev-Exp Region 6'!$S$91/'MMA Rev-Exp Region 6'!$S$9, 0)","v":{"v":0,"d":"$0.00"}},{"$f":"IFERROR('MMA Rev-Exp Region 6'!$T$91/'MMA Rev-Exp Region 6'!$T$9, 0)","v":{"v":0,"d":"$0.00"}},{"$f":"IFERROR('MMA Rev-Exp Region 6'!$U$91/'MMA Rev-Exp Region 6'!$U$9, 0)","v":{"v":0,"d":"$0.00"}},{"$f":"IFERROR('MMA Rev-Exp Region 6'!$V$91/'MMA Rev-Exp Region 6'!$V$9, 0)","v":{"v":0,"d":"$0.00"}},{"$f":"IFERROR('MMA Rev-Exp Region 6'!$W$91/'MMA Rev-Exp Region 6'!$W$9, 0)","v":{"v":0,"d":"$0.00"}},{"$f":"IFERROR('MMA Rev-Exp Region 6'!$X$91/'MMA Rev-Exp Region 6'!$X$9, 0)","v":{"v":0,"d":"$0.00"}},{"$f":"IFERROR('MMA Rev-Exp Region 6'!$Y$91/'MMA Rev-Exp Region 6'!$Y$9, 0)","v":{"v":0,"d":"$0.00"}}]
["MMA",null,null,2016,"2016-12-31","Q2","2017-06-30","Region 6","Operating Expense","Administrative Expense","Administrative","12.3","Information Systems",{"$f":"IFERROR('MMA Rev-Exp Region 6'!$O$92/'MMA Rev-Exp Region 6'!$O$9, 0)","v":{"v":0,"d":"$0.00"}},{"$f":"IFERROR('MMA Rev-Exp Region 6'!$P$92/'MMA Rev-Exp Region 6'!$O$9, 0)","v":{"v":0,"d":"$0.00"}},{"$f":"IFERROR('MMA Rev-Exp Region 6'!$Q$92/'MMA Rev-Exp Region 6'!$O$9, 0)","v":{"v":0,"d":"$0.00"}},{"$f":"IFERROR('MMA Rev-Exp Region 6'!$R$92/'MMA Rev-Exp Region 6'!$R$9, 0)","v":{"v":0,"d":"$0.00"}},{"$f":"IFERROR('MMA Rev-Exp Region 6'!$S$92/'MMA Rev-Exp Region 6'!$S$9, 0)","v":{"v":0,"d":"$0.00"}},{"$f":"IFERROR('MMA Rev-Exp Region 6'!$T$92/'MMA Rev-Exp Region 6'!$T$9, 0)","v":{"v":0,"d":"$0.00"}},{"$f":"IFERROR('MMA Rev-Exp Region 6'!$U$92/'MMA Rev-Exp Region 6'!$U$9, 0)","v":{"v":0,"d":"$0.00"}},{"$f":"IFERROR('MMA Rev-Exp Region 6'!$V$92/'MMA Rev-Exp Region 6'!$V$9, 0)","v":{"v":0,"d":"$0.00"}},{"$f":"IFERROR('MMA Rev-Exp Region 6'!$W$92/'MMA Rev-Exp Region 6'!$W$9, 0)","v":{"v":0,"d":"$0.00"}},{"$f":"IFERROR('MMA Rev-Exp Region 6'!$X$92/'MMA Rev-Exp Region 6'!$X$9, 0)","v":{"v":0,"d":"$0.00"}},{"$f":"IFERROR('MMA Rev-Exp Region 6'!$Y$92/'MMA Rev-Exp Region 6'!$Y$9, 0)","v":{"v":0,"d":"$0.00"}}]
["MMA",null,null,2016,"2016-12-31","Q2","2017-06-30","Region 6","Operating Expense","Administrative Expense","Administrative","12.4","Marketing Expenses",{"$f":"IFERROR('MMA Rev-Exp Region 6'!$O$93/'MMA Rev-Exp Region 6'!$O$9, 0)","v":{"v":0,"d":"$0.00"}},{"$f":"IFERROR('MMA Rev-Exp Region 6'!$P$93/'MMA Rev-Exp Region 6'!$O$9, 0)","v":{"v":0,"d":"$0.00"}},{"$f":"IFERROR('MMA Rev-Exp Region 6'!$Q$93/'MMA Rev-Exp Region 6'!$O$9, 0)","v":{"v":0,"d":"$0.00"}}]
["MMA",null,null,2016,"2016-12-31","Q2","2017-06-30","Region 6","Operating Expense","Administrative Expense","Administrative","12.5","General  Administration",{"$f":"IFERROR('MMA Rev-Exp Region 6'!$O$94/'MMA Rev-Exp Region 6'!$O$9, 0)","v":{"v":0,"d":"$0.00"}},{"$f":"IFERROR('MMA Rev-Exp Region 6'!$P$94/'MMA Rev-Exp Region 6'!$O$9, 0)","v":{"v":0,"d":"$0.00"}},{"$f":"IFERROR('MMA Rev-Exp Region 6'!$Q$94/'MMA Rev-Exp Region 6'!$O$9, 0)","v":{"v":0,"d":"$0.00"}}]
["MMA",null,null,2016,"2016-12-31","Q2","2017-06-30","Region 6","Operating Expense","Administrative Expense","Administrative","12.6","Compliance/Regulatory",{"$f":"IFERROR('MMA Rev-Exp Region 6'!$O$95/'MMA Rev-Exp Region 6'!$O$9, 0)","v":{"v":0,"d":"$0.00"}},{"$f":"IFERROR('MMA Rev-Exp Region 6'!$P$95/'MMA Rev-Exp Region 6'!$O$9, 0)","v":{"v":0,"d":"$0.00"}},{"$f":"IFERROR('MMA Rev-Exp Region 6'!$Q$95/'MMA Rev-Exp Region 6'!$O$9, 0)","v":{"v":0,"d":"$0.00"}}]
["MMA",null,null,2016,"2016-12-31","Q2","2017-06-30","Region 6","Operating Expense","Taxes & Fees","Taxes & Fees","13.1","State Premium tax",{"$f":"IFERROR('MMA Rev-Exp Region 6'!$O$97/'MMA Rev-Exp Region 6'!$O$9, 0)","v":{"v":0,"d":"$0.00"}}]
["MMA",null,null,2016,"2016-12-31","Q2","2017-06-30","Region 6","Operating Expense","Taxes & Fees","Taxes & Fees","13.2","Department of Insurance Assessments",{"$f":"IFERROR('MMA Rev-Exp Region 6'!$O$98/'MMA Rev-Exp Region 6'!$O$9, 0)","v":{"v":0,"d":"$0.00"}}]
["MMA",null,null,2016,"2016-12-31","Q2","2017-06-30","Region 6","Operating Expense","Taxes & Fees","Taxes & Fees","13.3","Section 9010 Health Insurance Providers Fee",{"$f":"IFERROR('MMA Rev-Exp Region 6'!$O$99/'MMA Rev-Exp Region 6'!$O$9, 0)","v":{"v":0,"d":"$0.00"}}]
["MMA",null,null,2016,"2016-12-31","Q2","2017-06-30","Region 6","Non-Operating Expense","Income Tax Expense","Income Tax Expense","16.0","Income Tax Expense",{"$f":"IFERROR('MMA Rev-Exp Region 6'!$O$106/'MMA Rev-Exp Region 6'!$O$9, 0)","v":{"v":0,"d":"$0.00"}}]
["MMA",null,null,2016,"2016-12-31","Q3","2017-09-30","Region 6","Operating Revenue","Capitation","Capitation",1.1,"Capitation",{"$f":"IFERROR('MMA Rev-Exp Region 6'!$Z$11/'MMA Rev-Exp Region 6'!$Z$9, 0)","v":{"v":0,"d":"$0.00"}},{"$f":"IFERROR('MMA Rev-Exp Region 6'!$AA$11/'MMA Rev-Exp Region 6'!$AA$9, 0)","v":{"v":0,"d":"$0.00"}},{"$f":"IFERROR('MMA Rev-Exp Region 6'!$AB$11/'MMA Rev-Exp Region 6'!$AB$9, 0)","v":{"v":0,"d":"$0.00"}},{"$f":"IFERROR('MMA Rev-Exp Region 6'!$AC$11/'MMA Rev-Exp Region 6'!$AC$9, 0)","v":{"v":0,"d":"$0.00"}},{"$f":"IFERROR('MMA Rev-Exp Region 6'!$AD$11/'MMA Rev-Exp Region 6'!$AD$9, 0)","v":{"v":0,"d":"$0.00"}},{"$f":"IFERROR('MMA Rev-Exp Region 6'!$AE$11/'MMA Rev-Exp Region 6'!$AE$9, 0)","v":{"v":0,"d":"$0.00"}},{"$f":"IFERROR('MMA Rev-Exp Region 6'!$AF$11/'MMA Rev-Exp Region 6'!$AF$9, 0)","v":{"v":0,"d":"$0.00"}},{"$f":"IFERROR('MMA Rev-Exp Region 6'!$AG$11/'MMA Rev-Exp Region 6'!$AG$9, 0)","v":{"v":0,"d":"$0.00"}},{"$f":"IFERROR('MMA Rev-Exp Region 6'!$AH$11/'MMA Rev-Exp Region 6'!$AH$9, 0)","v":{"v":0,"d":"$0.00"}},{"$f":"IFERROR('MMA Rev-Exp Region 6'!$AI$11/'MMA Rev-Exp Region 6'!$AI$9, 0)","v":{"v":0,"d":"$0.00"}},{"$f":"IFERROR('MMA Rev-Exp Region 6'!$AJ$11/'MMA Rev-Exp Region 6'!$AJ$9, 0)","v":{"v":0,"d":"$0.00"}}]
["MMA",null,null,2016,"2016-12-31","Q3","2017-09-30","Region 6","Operating Revenue","Kick Payments","Kick Payments - Transplant",1.2,"Transplant Kick Payments",{"$f":"IFERROR('MMA Rev-Exp Region 6'!$Z$12/'MMA Rev-Exp Region 6'!$Z$9, 0)","v":{"v":0,"d":"$0.00"}},{"$f":"IFERROR('MMA Rev-Exp Region 6'!$AA$12/'MMA Rev-Exp Region 6'!$AA$9, 0)","v":{"v":0,"d":"$0.00"}},{"$f":"IFERROR('MMA Rev-Exp Region 6'!$AB$12/'MMA Rev-Exp Region 6'!$AB$9, 0)","v":{"v":0,"d":"$0.00"}},{"$f":"IFERROR('MMA Rev-Exp Region 6'!$AC$12/'MMA Rev-Exp Region 6'!$AC$9, 0)","v":{"v":0,"d":"$0.00"}},{"$f":"IFERROR('MMA Rev-Exp Region 6'!$AD$12/'MMA Rev-Exp Region 6'!$AD$9, 0)","v":{"v":0,"d":"$0.00"}},{"$f":"IFERROR('MMA Rev-Exp Region 6'!$AE$12/'MMA Rev-Exp Region 6'!$AE$9, 0)","v":{"v":0,"d":"$0.00"}},{"$f":"IFERROR('MMA Rev-Exp Region 6'!$AF$12/'MMA Rev-Exp Region 6'!$AF$9, 0)","v":{"v":0,"d":"$0.00"}},{"$f":"IFERROR('MMA Rev-Exp Region 6'!$AG$12/'MMA Rev-Exp Region 6'!$AG$9, 0)","v":{"v":0,"d":"$0.00"}},{"$f":"IFERROR('MMA Rev-Exp Region 6'!$AH$12/'MMA Rev-Exp Region 6'!$AH$9, 0)","v":{"v":0,"d":"$0.00"}},{"$f":"IFERROR('MMA Rev-Exp Region 6'!$AI$12/'MMA Rev-Exp Region 6'!$AI$9, 0)","v":{"v":0,"d":"$0.00"}},{"$f":"IFERROR('MMA Rev-Exp Region 6'!$AJ$12/'MMA Rev-Exp Region 6'!$AJ$9, 0)","v":{"v":0,"d":"$0.00"}}]
["MMA",null,null,2016,"2016-12-31","Q3","2017-09-30","Region 6","Operating Revenue","Kick Payments","Kick Payments - Hep C","1.3","Hepatitis C Kick Payments",{"$f":"IFERROR('MMA Rev-Exp Region 6'!$Z$13/'MMA Rev-Exp Region 6'!$Z$9, 0)","v":{"v":0,"d":"$0.00"}},{"$f":"IFERROR('MMA Rev-Exp Region 6'!$AA$13/'MMA Rev-Exp Region 6'!$AA$9, 0)","v":{"v":0,"d":"$0.00"}},{"$f":"IFERROR('MMA Rev-Exp Region 6'!$AB$13/'MMA Rev-Exp Region 6'!$AB$9, 0)","v":{"v":0,"d":"$0.00"}},{"$f":"IFERROR('MMA Rev-Exp Region 6'!$AC$13/'MMA Rev-Exp Region 6'!$AC$9, 0)","v":{"v":0,"d":"$0.00"}},{"$f":"IFERROR('MMA Rev-Exp Region 6'!$AD$13/'MMA Rev-Exp Region 6'!$AD$9, 0)","v":{"v":0,"d":"$0.00"}},{"$f":"IFERROR('MMA Rev-Exp Region 6'!$AE$13/'MMA Rev-Exp Region 6'!$AE$9, 0)","v":{"v":0,"d":"$0.00"}},{"$f":"IFERROR('MMA Rev-Exp Region 6'!$AF$13/'MMA Rev-Exp Region 6'!$AF$9, 0)","v":{"v":0,"d":"$0.00"}},{"$f":"IFERROR('MMA Rev-Exp Region 6'!$AG$13/'MMA Rev-Exp Region 6'!$AG$9, 0)","v":{"v":0,"d":"$0.00"}},{"$f":"IFERROR('MMA Rev-Exp Region 6'!$AH$13/'MMA Rev-Exp Region 6'!$AH$9, 0)","v":{"v":0,"d":"$0.00"}},{"$f":"IFERROR('MMA Rev-Exp Region 6'!$AI$13/'MMA Rev-Exp Region 6'!$AI$9, 0)","v":{"v":0,"d":"$0.00"}},{"$f":"IFERROR('MMA Rev-Exp Region 6'!$AJ$13/'MMA Rev-Exp Region 6'!$AJ$9, 0)","v":{"v":0,"d":"$0.00"}}]
["MMA",null,null,2016,"2016-12-31","Q3","2017-09-30","Region 6","Operating Revenue","Kick Payments","Kick Payments - Maternity","1.4.1","Maternity Kick Payments",{"$f":"IFERROR('MMA Rev-Exp Region 6'!$Z$14/'MMA Rev-Exp Region 6'!$Z$9, 0)","v":{"v":0,"d":"$0.00"}},{"$f":"IFERROR('MMA Rev-Exp Region 6'!$AA$14/'MMA Rev-Exp Region 6'!$AA$9, 0)","v":{"v":0,"d":"$0.00"}},{"$f":"IFERROR('MMA Rev-Exp Region 6'!$AB$14/'MMA Rev-Exp Region 6'!$AB$9, 0)","v":{"v":0,"d":"$0.00"}},{"$f":"IFERROR('MMA Rev-Exp Region 6'!$AC$14/'MMA Rev-Exp Region 6'!$AC$9, 0)","v":{"v":0,"d":"$0.00"}},{"$f":"IFERROR('MMA Rev-Exp Region 6'!$AD$14/'MMA Rev-Exp Region 6'!$AD$9, 0)","v":{"v":0,"d":"$0.00"}},{"$f":"IFERROR('MMA Rev-Exp Region 6'!$AE$14/'MMA Rev-Exp Region 6'!$AE$9, 0)","v":{"v":0,"d":"$0.00"}},{"$f":"IFERROR('MMA Rev-Exp Region 6'!$AF$14/'MMA Rev-Exp Region 6'!$AF$9, 0)","v":{"v":0,"d":"$0.00"}},{"$f":"IFERROR('MMA Rev-Exp Region 6'!$AG$14/'MMA Rev-Exp Region 6'!$AG$9, 0)","v":{"v":0,"d":"$0.00"}},{"$f":"IFERROR('MMA Rev-Exp Region 6'!$AH$14/'MMA Rev-Exp Region 6'!$AH$9, 0)","v":{"v":0,"d":"$0.00"}},{"$f":"IFERROR('MMA Rev-Exp Region 6'!$AI$14/'MMA Rev-Exp Region 6'!$AI$9, 0)","v":{"v":0,"d":"$0.00"}},{"$f":"IFERROR('MMA Rev-Exp Region 6'!$AJ$14/'MMA Rev-Exp Region 6'!$AJ$9, 0)","v":{"v":0,"d":"$0.00"}}]
["MMA",null,null,2016,"2016-12-31","Q3","2017-09-30","Region 6","Operating Revenue","Other Revenue","Other Revenue - 9010","1.5","ACA § 9010 related payments",{"$f":"IFERROR('MMA Rev-Exp Region 6'!$Z$15/'MMA Rev-Exp Region 6'!$Z$9, 0)","v":{"v":0,"d":"$0.00"}},{"$f":"IFERROR('MMA Rev-Exp Region 6'!$AA$15/'MMA Rev-Exp Region 6'!$AA$9, 0)","v":{"v":0,"d":"$0.00"}},{"$f":"IFERROR('MMA Rev-Exp Region 6'!$AB$15/'MMA Rev-Exp Region 6'!$AB$9, 0)","v":{"v":0,"d":"$0.00"}},{"$f":"IFERROR('MMA Rev-Exp Region 6'!$AC$15/'MMA Rev-Exp Region 6'!$AC$9, 0)","v":{"v":0,"d":"$0.00"}},{"$f":"IFERROR('MMA Rev-Exp Region 6'!$AD$15/'MMA Rev-Exp Region 6'!$AD$9, 0)","v":{"v":0,"d":"$0.00"}},{"$f":"IFERROR('MMA Rev-Exp Region 6'!$AE$15/'MMA Rev-Exp Region 6'!$AE$9, 0)","v":{"v":0,"d":"$0.00"}},{"$f":"IFERROR('MMA Rev-Exp Region 6'!$AF$15/'MMA Rev-Exp Region 6'!$AF$9, 0)","v":{"v":0,"d":"$0.00"}},{"$f":"IFERROR('MMA Rev-Exp Region 6'!$AG$15/'MMA Rev-Exp Region 6'!$AG$9, 0)","v":{"v":0,"d":"$0.00"}},{"$f":"IFERROR('MMA Rev-Exp Region 6'!$AH$15/'MMA Rev-Exp Region 6'!$AH$9, 0)","v":{"v":0,"d":"$0.00"}},{"$f":"IFERROR('MMA Rev-Exp Region 6'!$AI$15/'MMA Rev-Exp Region 6'!$AI$9, 0)","v":{"v":0,"d":"$0.00"}},{"$f":"IFERROR('MMA Rev-Exp Region 6'!$AJ$15/'MMA Rev-Exp Region 6'!$AJ$9, 0)","v":{"v":0,"d":"$0.00"}}]
["MMA",null,null,2016,"2016-12-31","Q3","2017-09-30","Region 6","Operating Revenue","Other Revenue","Other Revenue","1.6","Other Revenue",{"$f":"IFERROR('MMA Rev-Exp Region 6'!$Z$16/'MMA Rev-Exp Region 6'!$Z$9, 0)","v":{"v":0,"d":"$0.00"}},{"$f":"IFERROR('MMA Rev-Exp Region 6'!$AA$16/'MMA Rev-Exp Region 6'!$AA$9, 0)","v":{"v":0,"d":"$0.00"}},{"$f":"IFERROR('MMA Rev-Exp Region 6'!$AB$16/'MMA Rev-Exp Region 6'!$AB$9, 0)","v":{"v":0,"d":"$0.00"}},{"$f":"IFERROR('MMA Rev-Exp Region 6'!$AC$16/'MMA Rev-Exp Region 6'!$AC$9, 0)","v":{"v":0,"d":"$0.00"}},{"$f":"IFERROR('MMA Rev-Exp Region 6'!$AD$16/'MMA Rev-Exp Region 6'!$AD$9, 0)","v":{"v":0,"d":"$0.00"}},{"$f":"IFERROR('MMA Rev-Exp Region 6'!$AE$16/'MMA Rev-Exp Region 6'!$AE$9, 0)","v":{"v":0,"d":"$0.00"}},{"$f":"IFERROR('MMA Rev-Exp Region 6'!$AF$16/'MMA Rev-Exp Region 6'!$AF$9, 0)","v":{"v":0,"d":"$0.00"}},{"$f":"IFERROR('MMA Rev-Exp Region 6'!$AG$16/'MMA Rev-Exp Region 6'!$AG$9, 0)","v":{"v":0,"d":"$0.00"}},{"$f":"IFERROR('MMA Rev-Exp Region 6'!$AH$16/'MMA Rev-Exp Region 6'!$AH$9, 0)","v":{"v":0,"d":"$0.00"}},{"$f":"IFERROR('MMA Rev-Exp Region 6'!$AI$16/'MMA Rev-Exp Region 6'!$AI$9, 0)","v":{"v":0,"d":"$0.00"}},{"$f":"IFERROR('MMA Rev-Exp Region 6'!$AJ$16/'MMA Rev-Exp Region 6'!$AJ$9, 0)","v":{"v":0,"d":"$0.00"}}]
["MMA",null,null,2016,"2016-12-31","Q3","2017-09-30","Region 6","Operating Expense","Medical Benefits Expense","Hospital Services",2.1,"Inpatient FFS",{"$f":"IFERROR('MMA Rev-Exp Region 6'!$Z$20/'MMA Rev-Exp Region 6'!$Z$9, 0)","v":{"v":0,"d":"$0.00"}},{"$f":"IFERROR('MMA Rev-Exp Region 6'!$AA$20/'MMA Rev-Exp Region 6'!$AA$9, 0)","v":{"v":0,"d":"$0.00"}},{"$f":"IFERROR('MMA Rev-Exp Region 6'!$AB$20/'MMA Rev-Exp Region 6'!$AB$9, 0)","v":{"v":0,"d":"$0.00"}},{"$f":"IFERROR('MMA Rev-Exp Region 6'!$AC$20/'MMA Rev-Exp Region 6'!$AC$9, 0)","v":{"v":0,"d":"$0.00"}},{"$f":"IFERROR('MMA Rev-Exp Region 6'!$AD$20/'MMA Rev-Exp Region 6'!$AD$9, 0)","v":{"v":0,"d":"$0.00"}},{"$f":"IFERROR('MMA Rev-Exp Region 6'!$AE$20/'MMA Rev-Exp Region 6'!$AE$9, 0)","v":{"v":0,"d":"$0.00"}},{"$f":"IFERROR('MMA Rev-Exp Region 6'!$AF$20/'MMA Rev-Exp Region 6'!$AF$9, 0)","v":{"v":0,"d":"$0.00"}},{"$f":"IFERROR('MMA Rev-Exp Region 6'!$AG$20/'MMA Rev-Exp Region 6'!$AG$9, 0)","v":{"v":0,"d":"$0.00"}},{"$f":"IFERROR('MMA Rev-Exp Region 6'!$AH$20/'MMA Rev-Exp Region 6'!$AH$9, 0)","v":{"v":0,"d":"$0.00"}},{"$f":"IFERROR('MMA Rev-Exp Region 6'!$AI$20/'MMA Rev-Exp Region 6'!$AI$9, 0)","v":{"v":0,"d":"$0.00"}},{"$f":"IFERROR('MMA Rev-Exp Region 6'!$AJ$20/'MMA Rev-Exp Region 6'!$AJ$9, 0)","v":{"v":0,"d":"$0.00"}}]
["MMA",null,null,2016,"2016-12-31","Q3","2017-09-30","Region 6","Operating Expense","Medical Benefits Expense","Hospital Services",2.2,"Ending IBNP for Inpatient Hospital Services",{"$f":"IFERROR('MMA Rev-Exp Region 6'!$Z$21/'MMA Rev-Exp Region 6'!$Z$9, 0)","v":{"v":0,"d":"$0.00"}},{"$f":"IFERROR('MMA Rev-Exp Region 6'!$AA$21/'MMA Rev-Exp Region 6'!$AA$9, 0)","v":{"v":0,"d":"$0.00"}},{"$f":"IFERROR('MMA Rev-Exp Region 6'!$AB$21/'MMA Rev-Exp Region 6'!$AB$9, 0)","v":{"v":0,"d":"$0.00"}},{"$f":"IFERROR('MMA Rev-Exp Region 6'!$AC$21/'MMA Rev-Exp Region 6'!$AC$9, 0)","v":{"v":0,"d":"$0.00"}},{"$f":"IFERROR('MMA Rev-Exp Region 6'!$AD$21/'MMA Rev-Exp Region 6'!$AD$9, 0)","v":{"v":0,"d":"$0.00"}},{"$f":"IFERROR('MMA Rev-Exp Region 6'!$AE$21/'MMA Rev-Exp Region 6'!$AE$9, 0)","v":{"v":0,"d":"$0.00"}},{"$f":"IFERROR('MMA Rev-Exp Region 6'!$AF$21/'MMA Rev-Exp Region 6'!$AF$9, 0)","v":{"v":0,"d":"$0.00"}},{"$f":"IFERROR('MMA Rev-Exp Region 6'!$AG$21/'MMA Rev-Exp Region 6'!$AG$9, 0)","v":{"v":0,"d":"$0.00"}},{"$f":"IFERROR('MMA Rev-Exp Region 6'!$AH$21/'MMA Rev-Exp Region 6'!$AH$9, 0)","v":{"v":0,"d":"$0.00"}},{"$f":"IFERROR('MMA Rev-Exp Region 6'!$AI$21/'MMA Rev-Exp Region 6'!$AI$9, 0)","v":{"v":0,"d":"$0.00"}},{"$f":"IFERROR('MMA Rev-Exp Region 6'!$AJ$21/'MMA Rev-Exp Region 6'!$AJ$9, 0)","v":{"v":0,"d":"$0.00"}}]
["MMA",null,null,2016,"2016-12-31","Q3","2017-09-30","Region 6","Operating Expense","Medical Benefits Expense","Hospital Services",2.3,"Outpatient FFS: ER",{"$f":"IFERROR('MMA Rev-Exp Region 6'!$Z$22/'MMA Rev-Exp Region 6'!$Z$9, 0)","v":{"v":0,"d":"$0.00"}},{"$f":"IFERROR('MMA Rev-Exp Region 6'!$AA$22/'MMA Rev-Exp Region 6'!$AA$9, 0)","v":{"v":0,"d":"$0.00"}},{"$f":"IFERROR('MMA Rev-Exp Region 6'!$AB$22/'MMA Rev-Exp Region 6'!$AB$9, 0)","v":{"v":0,"d":"$0.00"}},{"$f":"IFERROR('MMA Rev-Exp Region 6'!$AC$22/'MMA Rev-Exp Region 6'!$AC$9, 0)","v":{"v":0,"d":"$0.00"}},{"$f":"IFERROR('MMA Rev-Exp Region 6'!$AD$22/'MMA Rev-Exp Region 6'!$AD$9, 0)","v":{"v":0,"d":"$0.00"}},{"$f":"IFERROR('MMA Rev-Exp Region 6'!$AE$22/'MMA Rev-Exp Region 6'!$AE$9, 0)","v":{"v":0,"d":"$0.00"}},{"$f":"IFERROR('MMA Rev-Exp Region 6'!$AF$22/'MMA Rev-Exp Region 6'!$AF$9, 0)","v":{"v":0,"d":"$0.00"}},{"$f":"IFERROR('MMA Rev-Exp Region 6'!$AG$22/'MMA Rev-Exp Region 6'!$AG$9, 0)","v":{"v":0,"d":"$0.00"}},{"$f":"IFERROR('MMA Rev-Exp Region 6'!$AH$22/'MMA Rev-Exp Region 6'!$AH$9, 0)","v":{"v":0,"d":"$0.00"}},{"$f":"IFERROR('MMA Rev-Exp Region 6'!$AI$22/'MMA Rev-Exp Region 6'!$AI$9, 0)","v":{"v":0,"d":"$0.00"}},{"$f":"IFERROR('MMA Rev-Exp Region 6'!$AJ$22/'MMA Rev-Exp Region 6'!$AJ$9, 0)","v":{"v":0,"d":"$0.00"}}]
["MMA",null,null,2016,"2016-12-31","Q3","2017-09-30","Region 6","Operating Expense","Medical Benefits Expense","Hospital Services",2.4,"Outpatient FFS: Other than ER ",{"$f":"IFERROR('MMA Rev-Exp Region 6'!$Z$23/'MMA Rev-Exp Region 6'!$Z$9, 0)","v":{"v":0,"d":"$0.00"}},{"$f":"IFERROR('MMA Rev-Exp Region 6'!$AA$23/'MMA Rev-Exp Region 6'!$AA$9, 0)","v":{"v":0,"d":"$0.00"}},{"$f":"IFERROR('MMA Rev-Exp Region 6'!$AB$23/'MMA Rev-Exp Region 6'!$AB$9, 0)","v":{"v":0,"d":"$0.00"}},{"$f":"IFERROR('MMA Rev-Exp Region 6'!$AC$23/'MMA Rev-Exp Region 6'!$AC$9, 0)","v":{"v":0,"d":"$0.00"}},{"$f":"IFERROR('MMA Rev-Exp Region 6'!$AD$23/'MMA Rev-Exp Region 6'!$AD$9, 0)","v":{"v":0,"d":"$0.00"}},{"$f":"IFERROR('MMA Rev-Exp Region 6'!$AE$23/'MMA Rev-Exp Region 6'!$AE$9, 0)","v":{"v":0,"d":"$0.00"}},{"$f":"IFERROR('MMA Rev-Exp Region 6'!$AF$23/'MMA Rev-Exp Region 6'!$AF$9, 0)","v":{"v":0,"d":"$0.00"}},{"$f":"IFERROR('MMA Rev-Exp Region 6'!$AG$23/'MMA Rev-Exp Region 6'!$AG$9, 0)","v":{"v":0,"d":"$0.00"}},{"$f":"IFERROR('MMA Rev-Exp Region 6'!$AH$23/'MMA Rev-Exp Region 6'!$AH$9, 0)","v":{"v":0,"d":"$0.00"}},{"$f":"IFERROR('MMA Rev-Exp Region 6'!$AI$23/'MMA Rev-Exp Region 6'!$AI$9, 0)","v":{"v":0,"d":"$0.00"}},{"$f":"IFERROR('MMA Rev-Exp Region 6'!$AJ$23/'MMA Rev-Exp Region 6'!$AJ$9, 0)","v":{"v":0,"d":"$0.00"}}]
["MMA",null,null,2016,"2016-12-31","Q3","2017-09-30","Region 6","Operating Expense","Medical Benefits Expense","Hospital Services",2.5,"Ending IBNP for Outpatient Hospital Services",{"$f":"IFERROR('MMA Rev-Exp Region 6'!$Z$24/'MMA Rev-Exp Region 6'!$Z$9, 0)","v":{"v":0,"d":"$0.00"}},{"$f":"IFERROR('MMA Rev-Exp Region 6'!$AA$24/'MMA Rev-Exp Region 6'!$AA$9, 0)","v":{"v":0,"d":"$0.00"}},{"$f":"IFERROR('MMA Rev-Exp Region 6'!$AB$24/'MMA Rev-Exp Region 6'!$AB$9, 0)","v":{"v":0,"d":"$0.00"}},{"$f":"IFERROR('MMA Rev-Exp Region 6'!$AC$24/'MMA Rev-Exp Region 6'!$AC$9, 0)","v":{"v":0,"d":"$0.00"}},{"$f":"IFERROR('MMA Rev-Exp Region 6'!$AD$24/'MMA Rev-Exp Region 6'!$AD$9, 0)","v":{"v":0,"d":"$0.00"}},{"$f":"IFERROR('MMA Rev-Exp Region 6'!$AE$24/'MMA Rev-Exp Region 6'!$AE$9, 0)","v":{"v":0,"d":"$0.00"}},{"$f":"IFERROR('MMA Rev-Exp Region 6'!$AF$24/'MMA Rev-Exp Region 6'!$AF$9, 0)","v":{"v":0,"d":"$0.00"}},{"$f":"IFERROR('MMA Rev-Exp Region 6'!$AG$24/'MMA Rev-Exp Region 6'!$AG$9, 0)","v":{"v":0,"d":"$0.00"}},{"$f":"IFERROR('MMA Rev-Exp Region 6'!$AH$24/'MMA Rev-Exp Region 6'!$AH$9, 0)","v":{"v":0,"d":"$0.00"}},{"$f":"IFERROR('MMA Rev-Exp Region 6'!$AI$24/'MMA Rev-Exp Region 6'!$AI$9, 0)","v":{"v":0,"d":"$0.00"}},{"$f":"IFERROR('MMA Rev-Exp Region 6'!$AJ$24/'MMA Rev-Exp Region 6'!$AJ$9, 0)","v":{"v":0,"d":"$0.00"}}]
["MMA",null,null,2016,"2016-12-31","Q3","2017-09-30","Region 6","Operating Expense","Medical Benefits Expense","Hospital Services","2.6","Subcapitated Hospital Services",{"$f":"IFERROR('MMA Rev-Exp Region 6'!$Z$25/'MMA Rev-Exp Region 6'!$Z$9, 0)","v":{"v":0,"d":"$0.00"}},{"$f":"IFERROR('MMA Rev-Exp Region 6'!$AA$25/'MMA Rev-Exp Region 6'!$AA$9, 0)","v":{"v":0,"d":"$0.00"}},{"$f":"IFERROR('MMA Rev-Exp Region 6'!$AB$25/'MMA Rev-Exp Region 6'!$AB$9, 0)","v":{"v":0,"d":"$0.00"}},{"$f":"IFERROR('MMA Rev-Exp Region 6'!$AC$25/'MMA Rev-Exp Region 6'!$AC$9, 0)","v":{"v":0,"d":"$0.00"}},{"$f":"IFERROR('MMA Rev-Exp Region 6'!$AD$25/'MMA Rev-Exp Region 6'!$AD$9, 0)","v":{"v":0,"d":"$0.00"}},{"$f":"IFERROR('MMA Rev-Exp Region 6'!$AE$25/'MMA Rev-Exp Region 6'!$AE$9, 0)","v":{"v":0,"d":"$0.00"}},{"$f":"IFERROR('MMA Rev-Exp Region 6'!$AF$25/'MMA Rev-Exp Region 6'!$AF$9, 0)","v":{"v":0,"d":"$0.00"}},{"$f":"IFERROR('MMA Rev-Exp Region 6'!$AG$25/'MMA Rev-Exp Region 6'!$AG$9, 0)","v":{"v":0,"d":"$0.00"}},{"$f":"IFERROR('MMA Rev-Exp Region 6'!$AH$25/'MMA Rev-Exp Region 6'!$AH$9, 0)","v":{"v":0,"d":"$0.00"}},{"$f":"IFERROR('MMA Rev-Exp Region 6'!$AI$25/'MMA Rev-Exp Region 6'!$AI$9, 0)","v":{"v":0,"d":"$0.00"}},{"$f":"IFERROR('MMA Rev-Exp Region 6'!$AJ$25/'MMA Rev-Exp Region 6'!$AJ$9, 0)","v":{"v":0,"d":"$0.00"}}]
["MMA",null,null,2016,"2016-12-31","Q3","2017-09-30","Region 6","Operating Expense","Medical Benefits Expense","Hospital Services","2.7","Hospital Settlements",{"$f":"IFERROR('MMA Rev-Exp Region 6'!$Z$26/'MMA Rev-Exp Region 6'!$Z$9, 0)","v":{"v":0,"d":"$0.00"}},{"$f":"IFERROR('MMA Rev-Exp Region 6'!$AA$26/'MMA Rev-Exp Region 6'!$AA$9, 0)","v":{"v":0,"d":"$0.00"}},{"$f":"IFERROR('MMA Rev-Exp Region 6'!$AB$26/'MMA Rev-Exp Region 6'!$AB$9, 0)","v":{"v":0,"d":"$0.00"}},{"$f":"IFERROR('MMA Rev-Exp Region 6'!$AC$26/'MMA Rev-Exp Region 6'!$AC$9, 0)","v":{"v":0,"d":"$0.00"}},{"$f":"IFERROR('MMA Rev-Exp Region 6'!$AD$26/'MMA Rev-Exp Region 6'!$AD$9, 0)","v":{"v":0,"d":"$0.00"}},{"$f":"IFERROR('MMA Rev-Exp Region 6'!$AE$26/'MMA Rev-Exp Region 6'!$AE$9, 0)","v":{"v":0,"d":"$0.00"}},{"$f":"IFERROR('MMA Rev-Exp Region 6'!$AF$26/'MMA Rev-Exp Region 6'!$AF$9, 0)","v":{"v":0,"d":"$0.00"}},{"$f":"IFERROR('MMA Rev-Exp Region 6'!$AG$26/'MMA Rev-Exp Region 6'!$AG$9, 0)","v":{"v":0,"d":"$0.00"}},{"$f":"IFERROR('MMA Rev-Exp Region 6'!$AH$26/'MMA Rev-Exp Region 6'!$AH$9, 0)","v":{"v":0,"d":"$0.00"}},{"$f":"IFERROR('MMA Rev-Exp Region 6'!$AI$26/'MMA Rev-Exp Region 6'!$AI$9, 0)","v":{"v":0,"d":"$0.00"}},{"$f":"IFERROR('MMA Rev-Exp Region 6'!$AJ$26/'MMA Rev-Exp Region 6'!$AJ$9, 0)","v":{"v":0,"d":"$0.00"}}]
["MMA",null,null,2016,"2016-12-31","Q3","2017-09-30","Region 6","Operating Expense","Medical Benefits Expense","Hospital Services","2.7.1","Transplant Services",{"$f":"IFERROR('MMA Rev-Exp Region 6'!$Z$27/'MMA Rev-Exp Region 6'!$Z$9, 0)","v":{"v":0,"d":"$0.00"}},{"$f":"IFERROR('MMA Rev-Exp Region 6'!$AA$27/'MMA Rev-Exp Region 6'!$AA$9, 0)","v":{"v":0,"d":"$0.00"}},{"$f":"IFERROR('MMA Rev-Exp Region 6'!$AB$27/'MMA Rev-Exp Region 6'!$AB$9, 0)","v":{"v":0,"d":"$0.00"}},{"$f":"IFERROR('MMA Rev-Exp Region 6'!$AC$27/'MMA Rev-Exp Region 6'!$AC$9, 0)","v":{"v":0,"d":"$0.00"}},{"$f":"IFERROR('MMA Rev-Exp Region 6'!$AD$27/'MMA Rev-Exp Region 6'!$AD$9, 0)","v":{"v":0,"d":"$0.00"}},{"$f":"IFERROR('MMA Rev-Exp Region 6'!$AE$27/'MMA Rev-Exp Region 6'!$AE$9, 0)","v":{"v":0,"d":"$0.00"}},{"$f":"IFERROR('MMA Rev-Exp Region 6'!$AF$27/'MMA Rev-Exp Region 6'!$AF$9, 0)","v":{"v":0,"d":"$0.00"}},{"$f":"IFERROR('MMA Rev-Exp Region 6'!$AG$27/'MMA Rev-Exp Region 6'!$AG$9, 0)","v":{"v":0,"d":"$0.00"}},{"$f":"IFERROR('MMA Rev-Exp Region 6'!$AH$27/'MMA Rev-Exp Region 6'!$AH$9, 0)","v":{"v":0,"d":"$0.00"}},{"$f":"IFERROR('MMA Rev-Exp Region 6'!$AI$27/'MMA Rev-Exp Region 6'!$AI$9, 0)","v":{"v":0,"d":"$0.00"}},{"$f":"IFERROR('MMA Rev-Exp Region 6'!$AJ$27/'MMA Rev-Exp Region 6'!$AJ$9, 0)","v":{"v":0,"d":"$0.00"}}]
["MMA",null,null,2016,"2016-12-31","Q3","2017-09-30","Region 6","Operating Expense","Medical Benefits Expense","Professional Services",3.1,"Primary Care FFS",{"$f":"IFERROR('MMA Rev-Exp Region 6'!$Z$29/'MMA Rev-Exp Region 6'!$Z$9, 0)","v":{"v":0,"d":"$0.00"}},{"$f":"IFERROR('MMA Rev-Exp Region 6'!$AA$29/'MMA Rev-Exp Region 6'!$AA$9, 0)","v":{"v":0,"d":"$0.00"}},{"$f":"IFERROR('MMA Rev-Exp Region 6'!$AB$29/'MMA Rev-Exp Region 6'!$AB$9, 0)","v":{"v":0,"d":"$0.00"}},{"$f":"IFERROR('MMA Rev-Exp Region 6'!$AC$29/'MMA Rev-Exp Region 6'!$AC$9, 0)","v":{"v":0,"d":"$0.00"}},{"$f":"IFERROR('MMA Rev-Exp Region 6'!$AD$29/'MMA Rev-Exp Region 6'!$AD$9, 0)","v":{"v":0,"d":"$0.00"}},{"$f":"IFERROR('MMA Rev-Exp Region 6'!$AE$29/'MMA Rev-Exp Region 6'!$AE$9, 0)","v":{"v":0,"d":"$0.00"}},{"$f":"IFERROR('MMA Rev-Exp Region 6'!$AF$29/'MMA Rev-Exp Region 6'!$AF$9, 0)","v":{"v":0,"d":"$0.00"}},{"$f":"IFERROR('MMA Rev-Exp Region 6'!$AG$29/'MMA Rev-Exp Region 6'!$AG$9, 0)","v":{"v":0,"d":"$0.00"}},{"$f":"IFERROR('MMA Rev-Exp Region 6'!$AH$29/'MMA Rev-Exp Region 6'!$AH$9, 0)","v":{"v":0,"d":"$0.00"}},{"$f":"IFERROR('MMA Rev-Exp Region 6'!$AI$29/'MMA Rev-Exp Region 6'!$AI$9, 0)","v":{"v":0,"d":"$0.00"}},{"$f":"IFERROR('MMA Rev-Exp Region 6'!$AJ$29/'MMA Rev-Exp Region 6'!$AJ$9, 0)","v":{"v":0,"d":"$0.00"}}]
["MMA",null,null,2016,"2016-12-31","Q3","2017-09-30","Region 6","Operating Expense","Medical Benefits Expense","Professional Services",3.2,"Specialty Care FFS",{"$f":"IFERROR('MMA Rev-Exp Region 6'!$Z$30/'MMA Rev-Exp Region 6'!$Z$9, 0)","v":{"v":0,"d":"$0.00"}},{"$f":"IFERROR('MMA Rev-Exp Region 6'!$AA$30/'MMA Rev-Exp Region 6'!$AA$9, 0)","v":{"v":0,"d":"$0.00"}},{"$f":"IFERROR('MMA Rev-Exp Region 6'!$AB$30/'MMA Rev-Exp Region 6'!$AB$9, 0)","v":{"v":0,"d":"$0.00"}},{"$f":"IFERROR('MMA Rev-Exp Region 6'!$AC$30/'MMA Rev-Exp Region 6'!$AC$9, 0)","v":{"v":0,"d":"$0.00"}},{"$f":"IFERROR('MMA Rev-Exp Region 6'!$AD$30/'MMA Rev-Exp Region 6'!$AD$9, 0)","v":{"v":0,"d":"$0.00"}},{"$f":"IFERROR('MMA Rev-Exp Region 6'!$AE$30/'MMA Rev-Exp Region 6'!$AE$9, 0)","v":{"v":0,"d":"$0.00"}},{"$f":"IFERROR('MMA Rev-Exp Region 6'!$AF$30/'MMA Rev-Exp Region 6'!$AF$9, 0)","v":{"v":0,"d":"$0.00"}},{"$f":"IFERROR('MMA Rev-Exp Region 6'!$AG$30/'MMA Rev-Exp Region 6'!$AG$9, 0)","v":{"v":0,"d":"$0.00"}},{"$f":"IFERROR('MMA Rev-Exp Region 6'!$AH$30/'MMA Rev-Exp Region 6'!$AH$9, 0)","v":{"v":0,"d":"$0.00"}},{"$f":"IFERROR('MMA Rev-Exp Region 6'!$AI$30/'MMA Rev-Exp Region 6'!$AI$9, 0)","v":{"v":0,"d":"$0.00"}},{"$f":"IFERROR('MMA Rev-Exp Region 6'!$AJ$30/'MMA Rev-Exp Region 6'!$AJ$9, 0)","v":{"v":0,"d":"$0.00"}}]
["MMA",null,null,2016,"2016-12-31","Q3","2017-09-30","Region 6","Operating Expense","Medical Benefits Expense","Professional Services",3.3,"Other Professional FFS",{"$f":"IFERROR('MMA Rev-Exp Region 6'!$Z$31/'MMA Rev-Exp Region 6'!$Z$9, 0)","v":{"v":0,"d":"$0.00"}},{"$f":"IFERROR('MMA Rev-Exp Region 6'!$AA$31/'MMA Rev-Exp Region 6'!$AA$9, 0)","v":{"v":0,"d":"$0.00"}},{"$f":"IFERROR('MMA Rev-Exp Region 6'!$AB$31/'MMA Rev-Exp Region 6'!$AB$9, 0)","v":{"v":0,"d":"$0.00"}},{"$f":"IFERROR('MMA Rev-Exp Region 6'!$AC$31/'MMA Rev-Exp Region 6'!$AC$9, 0)","v":{"v":0,"d":"$0.00"}},{"$f":"IFERROR('MMA Rev-Exp Region 6'!$AD$31/'MMA Rev-Exp Region 6'!$AD$9, 0)","v":{"v":0,"d":"$0.00"}},{"$f":"IFERROR('MMA Rev-Exp Region 6'!$AE$31/'MMA Rev-Exp Region 6'!$AE$9, 0)","v":{"v":0,"d":"$0.00"}},{"$f":"IFERROR('MMA Rev-Exp Region 6'!$AF$31/'MMA Rev-Exp Region 6'!$AF$9, 0)","v":{"v":0,"d":"$0.00"}},{"$f":"IFERROR('MMA Rev-Exp Region 6'!$AG$31/'MMA Rev-Exp Region 6'!$AG$9, 0)","v":{"v":0,"d":"$0.00"}},{"$f":"IFERROR('MMA Rev-Exp Region 6'!$AH$31/'MMA Rev-Exp Region 6'!$AH$9, 0)","v":{"v":0,"d":"$0.00"}},{"$f":"IFERROR('MMA Rev-Exp Region 6'!$AI$31/'MMA Rev-Exp Region 6'!$AI$9, 0)","v":{"v":0,"d":"$0.00"}},{"$f":"IFERROR('MMA Rev-Exp Region 6'!$AJ$31/'MMA Rev-Exp Region 6'!$AJ$9, 0)","v":{"v":0,"d":"$0.00"}}]
["MMA",null,null,2016,"2016-12-31","Q3","2017-09-30","Region 6","Operating Expense","Medical Benefits Expense","Professional Services","3.4","§ 1202 PCP Payments to providers",{"$f":"IFERROR('MMA Rev-Exp Region 6'!$Z$32/'MMA Rev-Exp Region 6'!$Z$9, 0)","v":{"v":0,"d":"$0.00"}},{"$f":"IFERROR('MMA Rev-Exp Region 6'!$AA$32/'MMA Rev-Exp Region 6'!$AA$9, 0)","v":{"v":0,"d":"$0.00"}},{"$f":"IFERROR('MMA Rev-Exp Region 6'!$AB$32/'MMA Rev-Exp Region 6'!$AB$9, 0)","v":{"v":0,"d":"$0.00"}},{"$f":"IFERROR('MMA Rev-Exp Region 6'!$AC$32/'MMA Rev-Exp Region 6'!$AC$9, 0)","v":{"v":0,"d":"$0.00"}},{"$f":"IFERROR('MMA Rev-Exp Region 6'!$AD$32/'MMA Rev-Exp Region 6'!$AD$9, 0)","v":{"v":0,"d":"$0.00"}},{"$f":"IFERROR('MMA Rev-Exp Region 6'!$AE$32/'MMA Rev-Exp Region 6'!$AE$9, 0)","v":{"v":0,"d":"$0.00"}},{"$f":"IFERROR('MMA Rev-Exp Region 6'!$AF$32/'MMA Rev-Exp Region 6'!$AF$9, 0)","v":{"v":0,"d":"$0.00"}},{"$f":"IFERROR('MMA Rev-Exp Region 6'!$AG$32/'MMA Rev-Exp Region 6'!$AG$9, 0)","v":{"v":0,"d":"$0.00"}},{"$f":"IFERROR('MMA Rev-Exp Region 6'!$AH$32/'MMA Rev-Exp Region 6'!$AH$9, 0)","v":{"v":0,"d":"$0.00"}},{"$f":"IFERROR('MMA Rev-Exp Region 6'!$AI$32/'MMA Rev-Exp Region 6'!$AI$9, 0)","v":{"v":0,"d":"$0.00"}},{"$f":"IFERROR('MMA Rev-Exp Region 6'!$AJ$32/'MMA Rev-Exp Region 6'!$AJ$9, 0)","v":{"v":0,"d":"$0.00"}}]
["MMA",null,null,2016,"2016-12-31","Q3","2017-09-30","Region 6","Operating Expense","Medical Benefits Expense","Professional Services","3.5","Subcapitated Professional Services",{"$f":"IFERROR('MMA Rev-Exp Region 6'!$Z$33/'MMA Rev-Exp Region 6'!$Z$9, 0)","v":{"v":0,"d":"$0.00"}},{"$f":"IFERROR('MMA Rev-Exp Region 6'!$AA$33/'MMA Rev-Exp Region 6'!$AA$9, 0)","v":{"v":0,"d":"$0.00"}},{"$f":"IFERROR('MMA Rev-Exp Region 6'!$AB$33/'MMA Rev-Exp Region 6'!$AB$9, 0)","v":{"v":0,"d":"$0.00"}},{"$f":"IFERROR('MMA Rev-Exp Region 6'!$AC$33/'MMA Rev-Exp Region 6'!$AC$9, 0)","v":{"v":0,"d":"$0.00"}},{"$f":"IFERROR('MMA Rev-Exp Region 6'!$AD$33/'MMA Rev-Exp Region 6'!$AD$9, 0)","v":{"v":0,"d":"$0.00"}},{"$f":"IFERROR('MMA Rev-Exp Region 6'!$AE$33/'MMA Rev-Exp Region 6'!$AE$9, 0)","v":{"v":0,"d":"$0.00"}},{"$f":"IFERROR('MMA Rev-Exp Region 6'!$AF$33/'MMA Rev-Exp Region 6'!$AF$9, 0)","v":{"v":0,"d":"$0.00"}},{"$f":"IFERROR('MMA Rev-Exp Region 6'!$AG$33/'MMA Rev-Exp Region 6'!$AG$9, 0)","v":{"v":0,"d":"$0.00"}},{"$f":"IFERROR('MMA Rev-Exp Region 6'!$AH$33/'MMA Rev-Exp Region 6'!$AH$9, 0)","v":{"v":0,"d":"$0.00"}},{"$f":"IFERROR('MMA Rev-Exp Region 6'!$AI$33/'MMA Rev-Exp Region 6'!$AI$9, 0)","v":{"v":0,"d":"$0.00"}},{"$f":"IFERROR('MMA Rev-Exp Region 6'!$AJ$33/'MMA Rev-Exp Region 6'!$AJ$9, 0)","v":{"v":0,"d":"$0.00"}}]
["MMA",null,null,2016,"2016-12-31","Q3","2017-09-30","Region 6","Operating Expense","Medical Benefits Expense","Professional Services","3.6","Ending IBNP for Professional Services",{"$f":"IFERROR('MMA Rev-Exp Region 6'!$Z$34/'MMA Rev-Exp Region 6'!$Z$9, 0)","v":{"v":0,"d":"$0.00"}},{"$f":"IFERROR('MMA Rev-Exp Region 6'!$AA$34/'MMA Rev-Exp Region 6'!$AA$9, 0)","v":{"v":0,"d":"$0.00"}},{"$f":"IFERROR('MMA Rev-Exp Region 6'!$AB$34/'MMA Rev-Exp Region 6'!$AB$9, 0)","v":{"v":0,"d":"$0.00"}},{"$f":"IFERROR('MMA Rev-Exp Region 6'!$AC$34/'MMA Rev-Exp Region 6'!$AC$9, 0)","v":{"v":0,"d":"$0.00"}},{"$f":"IFERROR('MMA Rev-Exp Region 6'!$AD$34/'MMA Rev-Exp Region 6'!$AD$9, 0)","v":{"v":0,"d":"$0.00"}},{"$f":"IFERROR('MMA Rev-Exp Region 6'!$AE$34/'MMA Rev-Exp Region 6'!$AE$9, 0)","v":{"v":0,"d":"$0.00"}},{"$f":"IFERROR('MMA Rev-Exp Region 6'!$AF$34/'MMA Rev-Exp Region 6'!$AF$9, 0)","v":{"v":0,"d":"$0.00"}},{"$f":"IFERROR('MMA Rev-Exp Region 6'!$AG$34/'MMA Rev-Exp Region 6'!$AG$9, 0)","v":{"v":0,"d":"$0.00"}},{"$f":"IFERROR('MMA Rev-Exp Region 6'!$AH$34/'MMA Rev-Exp Region 6'!$AH$9, 0)","v":{"v":0,"d":"$0.00"}},{"$f":"IFERROR('MMA Rev-Exp Region 6'!$AI$34/'MMA Rev-Exp Region 6'!$AI$9, 0)","v":{"v":0,"d":"$0.00"}},{"$f":"IFERROR('MMA Rev-Exp Region 6'!$AJ$34/'MMA Rev-Exp Region 6'!$AJ$9, 0)","v":{"v":0,"d":"$0.00"}}]
["MMA",null,null,2016,"2016-12-31","Q3","2017-09-30","Region 6","Operating Expense","Medical Benefits Expense","Professional Services","3.7","Professional Services Settlements",{"$f":"IFERROR('MMA Rev-Exp Region 6'!$Z$35/'MMA Rev-Exp Region 6'!$Z$9, 0)","v":{"v":0,"d":"$0.00"}},{"$f":"IFERROR('MMA Rev-Exp Region 6'!$AA$35/'MMA Rev-Exp Region 6'!$AA$9, 0)","v":{"v":0,"d":"$0.00"}},{"$f":"IFERROR('MMA Rev-Exp Region 6'!$AB$35/'MMA Rev-Exp Region 6'!$AB$9, 0)","v":{"v":0,"d":"$0.00"}},{"$f":"IFERROR('MMA Rev-Exp Region 6'!$AC$35/'MMA Rev-Exp Region 6'!$AC$9, 0)","v":{"v":0,"d":"$0.00"}},{"$f":"IFERROR('MMA Rev-Exp Region 6'!$AD$35/'MMA Rev-Exp Region 6'!$AD$9, 0)","v":{"v":0,"d":"$0.00"}},{"$f":"IFERROR('MMA Rev-Exp Region 6'!$AE$35/'MMA Rev-Exp Region 6'!$AE$9, 0)","v":{"v":0,"d":"$0.00"}},{"$f":"IFERROR('MMA Rev-Exp Region 6'!$AF$35/'MMA Rev-Exp Region 6'!$AF$9, 0)","v":{"v":0,"d":"$0.00"}},{"$f":"IFERROR('MMA Rev-Exp Region 6'!$AG$35/'MMA Rev-Exp Region 6'!$AG$9, 0)","v":{"v":0,"d":"$0.00"}},{"$f":"IFERROR('MMA Rev-Exp Region 6'!$AH$35/'MMA Rev-Exp Region 6'!$AH$9, 0)","v":{"v":0,"d":"$0.00"}},{"$f":"IFERROR('MMA Rev-Exp Region 6'!$AI$35/'MMA Rev-Exp Region 6'!$AI$9, 0)","v":{"v":0,"d":"$0.00"}},{"$f":"IFERROR('MMA Rev-Exp Region 6'!$AJ$35/'MMA Rev-Exp Region 6'!$AJ$9, 0)","v":{"v":0,"d":"$0.00"}}]
["MMA",null,null,2016,"2016-12-31","Q3","2017-09-30","Region 6","Operating Expense","Medical Benefits Expense","Maternity Services","4.1.1","Maternity Services",{"$f":"IFERROR('MMA Rev-Exp Region 6'!$Z$37/'MMA Rev-Exp Region 6'!$Z$9, 0)","v":{"v":0,"d":"$0.00"}},{"$f":"IFERROR('MMA Rev-Exp Region 6'!$AA$37/'MMA Rev-Exp Region 6'!$AA$9, 0)","v":{"v":0,"d":"$0.00"}},{"$f":"IFERROR('MMA Rev-Exp Region 6'!$AB$37/'MMA Rev-Exp Region 6'!$AB$9, 0)","v":{"v":0,"d":"$0.00"}},{"$f":"IFERROR('MMA Rev-Exp Region 6'!$AC$37/'MMA Rev-Exp Region 6'!$AC$9, 0)","v":{"v":0,"d":"$0.00"}},{"$f":"IFERROR('MMA Rev-Exp Region 6'!$AD$37/'MMA Rev-Exp Region 6'!$AD$9, 0)","v":{"v":0,"d":"$0.00"}},{"$f":"IFERROR('MMA Rev-Exp Region 6'!$AE$37/'MMA Rev-Exp Region 6'!$AE$9, 0)","v":{"v":0,"d":"$0.00"}},{"$f":"IFERROR('MMA Rev-Exp Region 6'!$AF$37/'MMA Rev-Exp Region 6'!$AF$9, 0)","v":{"v":0,"d":"$0.00"}},{"$f":"IFERROR('MMA Rev-Exp Region 6'!$AG$37/'MMA Rev-Exp Region 6'!$AG$9, 0)","v":{"v":0,"d":"$0.00"}},{"$f":"IFERROR('MMA Rev-Exp Region 6'!$AH$37/'MMA Rev-Exp Region 6'!$AH$9, 0)","v":{"v":0,"d":"$0.00"}},{"$f":"IFERROR('MMA Rev-Exp Region 6'!$AI$37/'MMA Rev-Exp Region 6'!$AI$9, 0)","v":{"v":0,"d":"$0.00"}},{"$f":"IFERROR('MMA Rev-Exp Region 6'!$AJ$37/'MMA Rev-Exp Region 6'!$AJ$9, 0)","v":{"v":0,"d":"$0.00"}}]
["MMA",null,null,2016,"2016-12-31","Q3","2017-09-30","Region 6","Operating Expense","Medical Benefits Expense","Maternity Services","4.2.1","Ending IBNP for Maternity Services",{"$f":"IFERROR('MMA Rev-Exp Region 6'!$Z$38/'MMA Rev-Exp Region 6'!$Z$9, 0)","v":{"v":0,"d":"$0.00"}},{"$f":"IFERROR('MMA Rev-Exp Region 6'!$AA$38/'MMA Rev-Exp Region 6'!$AA$9, 0)","v":{"v":0,"d":"$0.00"}},{"$f":"IFERROR('MMA Rev-Exp Region 6'!$AB$38/'MMA Rev-Exp Region 6'!$AB$9, 0)","v":{"v":0,"d":"$0.00"}},{"$f":"IFERROR('MMA Rev-Exp Region 6'!$AC$38/'MMA Rev-Exp Region 6'!$AC$9, 0)","v":{"v":0,"d":"$0.00"}},{"$f":"IFERROR('MMA Rev-Exp Region 6'!$AD$38/'MMA Rev-Exp Region 6'!$AD$9, 0)","v":{"v":0,"d":"$0.00"}},{"$f":"IFERROR('MMA Rev-Exp Region 6'!$AE$38/'MMA Rev-Exp Region 6'!$AE$9, 0)","v":{"v":0,"d":"$0.00"}},{"$f":"IFERROR('MMA Rev-Exp Region 6'!$AF$38/'MMA Rev-Exp Region 6'!$AF$9, 0)","v":{"v":0,"d":"$0.00"}},{"$f":"IFERROR('MMA Rev-Exp Region 6'!$AG$38/'MMA Rev-Exp Region 6'!$AG$9, 0)","v":{"v":0,"d":"$0.00"}},{"$f":"IFERROR('MMA Rev-Exp Region 6'!$AH$38/'MMA Rev-Exp Region 6'!$AH$9, 0)","v":{"v":0,"d":"$0.00"}},{"$f":"IFERROR('MMA Rev-Exp Region 6'!$AI$38/'MMA Rev-Exp Region 6'!$AI$9, 0)","v":{"v":0,"d":"$0.00"}},{"$f":"IFERROR('MMA Rev-Exp Region 6'!$AJ$38/'MMA Rev-Exp Region 6'!$AJ$9, 0)","v":{"v":0,"d":"$0.00"}}]
["MMA",null,null,2016,"2016-12-31","Q3","2017-09-30","Region 6","Operating Expense","Medical Benefits Expense","Maternity Services","4.3.1","Maternity Settlements",{"$f":"IFERROR('MMA Rev-Exp Region 6'!$Z$39/'MMA Rev-Exp Region 6'!$Z$9, 0)","v":{"v":0,"d":"$0.00"}},{"$f":"IFERROR('MMA Rev-Exp Region 6'!$AA$39/'MMA Rev-Exp Region 6'!$AA$9, 0)","v":{"v":0,"d":"$0.00"}},{"$f":"IFERROR('MMA Rev-Exp Region 6'!$AB$39/'MMA Rev-Exp Region 6'!$AB$9, 0)","v":{"v":0,"d":"$0.00"}},{"$f":"IFERROR('MMA Rev-Exp Region 6'!$AC$39/'MMA Rev-Exp Region 6'!$AC$9, 0)","v":{"v":0,"d":"$0.00"}},{"$f":"IFERROR('MMA Rev-Exp Region 6'!$AD$39/'MMA Rev-Exp Region 6'!$AD$9, 0)","v":{"v":0,"d":"$0.00"}},{"$f":"IFERROR('MMA Rev-Exp Region 6'!$AE$39/'MMA Rev-Exp Region 6'!$AE$9, 0)","v":{"v":0,"d":"$0.00"}},{"$f":"IFERROR('MMA Rev-Exp Region 6'!$AF$39/'MMA Rev-Exp Region 6'!$AF$9, 0)","v":{"v":0,"d":"$0.00"}},{"$f":"IFERROR('MMA Rev-Exp Region 6'!$AG$39/'MMA Rev-Exp Region 6'!$AG$9, 0)","v":{"v":0,"d":"$0.00"}},{"$f":"IFERROR('MMA Rev-Exp Region 6'!$AH$39/'MMA Rev-Exp Region 6'!$AH$9, 0)","v":{"v":0,"d":"$0.00"}},{"$f":"IFERROR('MMA Rev-Exp Region 6'!$AI$39/'MMA Rev-Exp Region 6'!$AI$9, 0)","v":{"v":0,"d":"$0.00"}},{"$f":"IFERROR('MMA Rev-Exp Region 6'!$AJ$39/'MMA Rev-Exp Region 6'!$AJ$9, 0)","v":{"v":0,"d":"$0.00"}}]
["MMA",null,null,2016,"2016-12-31","Q3","2017-09-30","Region 6","Operating Expense","Medical Benefits Expense","Mental Health Services",5.1,"Mental Health & Substance Abuse FFS",{"$f":"IFERROR('MMA Rev-Exp Region 6'!$Z$41/'MMA Rev-Exp Region 6'!$Z$9, 0)","v":{"v":0,"d":"$0.00"}},{"$f":"IFERROR('MMA Rev-Exp Region 6'!$AA$41/'MMA Rev-Exp Region 6'!$AA$9, 0)","v":{"v":0,"d":"$0.00"}},{"$f":"IFERROR('MMA Rev-Exp Region 6'!$AB$41/'MMA Rev-Exp Region 6'!$AB$9, 0)","v":{"v":0,"d":"$0.00"}},{"$f":"IFERROR('MMA Rev-Exp Region 6'!$AC$41/'MMA Rev-Exp Region 6'!$AC$9, 0)","v":{"v":0,"d":"$0.00"}},{"$f":"IFERROR('MMA Rev-Exp Region 6'!$AD$41/'MMA Rev-Exp Region 6'!$AD$9, 0)","v":{"v":0,"d":"$0.00"}},{"$f":"IFERROR('MMA Rev-Exp Region 6'!$AE$41/'MMA Rev-Exp Region 6'!$AE$9, 0)","v":{"v":0,"d":"$0.00"}},{"$f":"IFERROR('MMA Rev-Exp Region 6'!$AF$41/'MMA Rev-Exp Region 6'!$AF$9, 0)","v":{"v":0,"d":"$0.00"}},{"$f":"IFERROR('MMA Rev-Exp Region 6'!$AG$41/'MMA Rev-Exp Region 6'!$AG$9, 0)","v":{"v":0,"d":"$0.00"}},{"$f":"IFERROR('MMA Rev-Exp Region 6'!$AH$41/'MMA Rev-Exp Region 6'!$AH$9, 0)","v":{"v":0,"d":"$0.00"}},{"$f":"IFERROR('MMA Rev-Exp Region 6'!$AI$41/'MMA Rev-Exp Region 6'!$AI$9, 0)","v":{"v":0,"d":"$0.00"}},{"$f":"IFERROR('MMA Rev-Exp Region 6'!$AJ$41/'MMA Rev-Exp Region 6'!$AJ$9, 0)","v":{"v":0,"d":"$0.00"}}]
["MMA",null,null,2016,"2016-12-31","Q3","2017-09-30","Region 6","Operating Expense","Medical Benefits Expense","Mental Health Services",5.2,"Mental Health & Substance Abuse Subcapitation",{"$f":"IFERROR('MMA Rev-Exp Region 6'!$Z$42/'MMA Rev-Exp Region 6'!$Z$9, 0)","v":{"v":0,"d":"$0.00"}},{"$f":"IFERROR('MMA Rev-Exp Region 6'!$AA$42/'MMA Rev-Exp Region 6'!$AA$9, 0)","v":{"v":0,"d":"$0.00"}},{"$f":"IFERROR('MMA Rev-Exp Region 6'!$AB$42/'MMA Rev-Exp Region 6'!$AB$9, 0)","v":{"v":0,"d":"$0.00"}},{"$f":"IFERROR('MMA Rev-Exp Region 6'!$AC$42/'MMA Rev-Exp Region 6'!$AC$9, 0)","v":{"v":0,"d":"$0.00"}},{"$f":"IFERROR('MMA Rev-Exp Region 6'!$AD$42/'MMA Rev-Exp Region 6'!$AD$9, 0)","v":{"v":0,"d":"$0.00"}},{"$f":"IFERROR('MMA Rev-Exp Region 6'!$AE$42/'MMA Rev-Exp Region 6'!$AE$9, 0)","v":{"v":0,"d":"$0.00"}},{"$f":"IFERROR('MMA Rev-Exp Region 6'!$AF$42/'MMA Rev-Exp Region 6'!$AF$9, 0)","v":{"v":0,"d":"$0.00"}},{"$f":"IFERROR('MMA Rev-Exp Region 6'!$AG$42/'MMA Rev-Exp Region 6'!$AG$9, 0)","v":{"v":0,"d":"$0.00"}},{"$f":"IFERROR('MMA Rev-Exp Region 6'!$AH$42/'MMA Rev-Exp Region 6'!$AH$9, 0)","v":{"v":0,"d":"$0.00"}},{"$f":"IFERROR('MMA Rev-Exp Region 6'!$AI$42/'MMA Rev-Exp Region 6'!$AI$9, 0)","v":{"v":0,"d":"$0.00"}},{"$f":"IFERROR('MMA Rev-Exp Region 6'!$AJ$42/'MMA Rev-Exp Region 6'!$AJ$9, 0)","v":{"v":0,"d":"$0.00"}}]
["MMA",null,null,2016,"2016-12-31","Q3","2017-09-30","Region 6","Operating Expense","Medical Benefits Expense","Mental Health Services",5.3,"Ending IBNP for Mental Health & Substance Abuse",{"$f":"IFERROR('MMA Rev-Exp Region 6'!$Z$43/'MMA Rev-Exp Region 6'!$Z$9, 0)","v":{"v":0,"d":"$0.00"}},{"$f":"IFERROR('MMA Rev-Exp Region 6'!$AA$43/'MMA Rev-Exp Region 6'!$AA$9, 0)","v":{"v":0,"d":"$0.00"}},{"$f":"IFERROR('MMA Rev-Exp Region 6'!$AB$43/'MMA Rev-Exp Region 6'!$AB$9, 0)","v":{"v":0,"d":"$0.00"}},{"$f":"IFERROR('MMA Rev-Exp Region 6'!$AC$43/'MMA Rev-Exp Region 6'!$AC$9, 0)","v":{"v":0,"d":"$0.00"}},{"$f":"IFERROR('MMA Rev-Exp Region 6'!$AD$43/'MMA Rev-Exp Region 6'!$AD$9, 0)","v":{"v":0,"d":"$0.00"}},{"$f":"IFERROR('MMA Rev-Exp Region 6'!$AE$43/'MMA Rev-Exp Region 6'!$AE$9, 0)","v":{"v":0,"d":"$0.00"}},{"$f":"IFERROR('MMA Rev-Exp Region 6'!$AF$43/'MMA Rev-Exp Region 6'!$AF$9, 0)","v":{"v":0,"d":"$0.00"}},{"$f":"IFERROR('MMA Rev-Exp Region 6'!$AG$43/'MMA Rev-Exp Region 6'!$AG$9, 0)","v":{"v":0,"d":"$0.00"}},{"$f":"IFERROR('MMA Rev-Exp Region 6'!$AH$43/'MMA Rev-Exp Region 6'!$AH$9, 0)","v":{"v":0,"d":"$0.00"}},{"$f":"IFERROR('MMA Rev-Exp Region 6'!$AI$43/'MMA Rev-Exp Region 6'!$AI$9, 0)","v":{"v":0,"d":"$0.00"}},{"$f":"IFERROR('MMA Rev-Exp Region 6'!$AJ$43/'MMA Rev-Exp Region 6'!$AJ$9, 0)","v":{"v":0,"d":"$0.00"}}]
["MMA",null,null,2016,"2016-12-31","Q3","2017-09-30","Region 6","Operating Expense","Medical Benefits Expense","Mental Health Services","5.4","Mental Health Settlements",{"$f":"IFERROR('MMA Rev-Exp Region 6'!$Z$44/'MMA Rev-Exp Region 6'!$Z$9, 0)","v":{"v":0,"d":"$0.00"}},{"$f":"IFERROR('MMA Rev-Exp Region 6'!$AA$44/'MMA Rev-Exp Region 6'!$AA$9, 0)","v":{"v":0,"d":"$0.00"}},{"$f":"IFERROR('MMA Rev-Exp Region 6'!$AB$44/'MMA Rev-Exp Region 6'!$AB$9, 0)","v":{"v":0,"d":"$0.00"}},{"$f":"IFERROR('MMA Rev-Exp Region 6'!$AC$44/'MMA Rev-Exp Region 6'!$AC$9, 0)","v":{"v":0,"d":"$0.00"}},{"$f":"IFERROR('MMA Rev-Exp Region 6'!$AD$44/'MMA Rev-Exp Region 6'!$AD$9, 0)","v":{"v":0,"d":"$0.00"}},{"$f":"IFERROR('MMA Rev-Exp Region 6'!$AE$44/'MMA Rev-Exp Region 6'!$AE$9, 0)","v":{"v":0,"d":"$0.00"}},{"$f":"IFERROR('MMA Rev-Exp Region 6'!$AF$44/'MMA Rev-Exp Region 6'!$AF$9, 0)","v":{"v":0,"d":"$0.00"}},{"$f":"IFERROR('MMA Rev-Exp Region 6'!$AG$44/'MMA Rev-Exp Region 6'!$AG$9, 0)","v":{"v":0,"d":"$0.00"}},{"$f":"IFERROR('MMA Rev-Exp Region 6'!$AH$44/'MMA Rev-Exp Region 6'!$AH$9, 0)","v":{"v":0,"d":"$0.00"}},{"$f":"IFERROR('MMA Rev-Exp Region 6'!$AI$44/'MMA Rev-Exp Region 6'!$AI$9, 0)","v":{"v":0,"d":"$0.00"}},{"$f":"IFERROR('MMA Rev-Exp Region 6'!$AJ$44/'MMA Rev-Exp Region 6'!$AJ$9, 0)","v":{"v":0,"d":"$0.00"}}]
["MMA",null,null,2016,"2016-12-31","Q3","2017-09-30","Region 6","Operating Expense","Medical Benefits Expense","Dental Services",6.1,"Dental FFS",{"$f":"IFERROR('MMA Rev-Exp Region 6'!$Z$46/'MMA Rev-Exp Region 6'!$Z$9, 0)","v":{"v":0,"d":"$0.00"}},{"$f":"IFERROR('MMA Rev-Exp Region 6'!$AA$46/'MMA Rev-Exp Region 6'!$AA$9, 0)","v":{"v":0,"d":"$0.00"}},{"$f":"IFERROR('MMA Rev-Exp Region 6'!$AB$46/'MMA Rev-Exp Region 6'!$AB$9, 0)","v":{"v":0,"d":"$0.00"}},{"$f":"IFERROR('MMA Rev-Exp Region 6'!$AC$46/'MMA Rev-Exp Region 6'!$AC$9, 0)","v":{"v":0,"d":"$0.00"}},{"$f":"IFERROR('MMA Rev-Exp Region 6'!$AD$46/'MMA Rev-Exp Region 6'!$AD$9, 0)","v":{"v":0,"d":"$0.00"}},{"$f":"IFERROR('MMA Rev-Exp Region 6'!$AE$46/'MMA Rev-Exp Region 6'!$AE$9, 0)","v":{"v":0,"d":"$0.00"}},{"$f":"IFERROR('MMA Rev-Exp Region 6'!$AF$46/'MMA Rev-Exp Region 6'!$AF$9, 0)","v":{"v":0,"d":"$0.00"}},{"$f":"IFERROR('MMA Rev-Exp Region 6'!$AG$46/'MMA Rev-Exp Region 6'!$AG$9, 0)","v":{"v":0,"d":"$0.00"}},{"$f":"IFERROR('MMA Rev-Exp Region 6'!$AH$46/'MMA Rev-Exp Region 6'!$AH$9, 0)","v":{"v":0,"d":"$0.00"}},{"$f":"IFERROR('MMA Rev-Exp Region 6'!$AI$46/'MMA Rev-Exp Region 6'!$AI$9, 0)","v":{"v":0,"d":"$0.00"}},{"$f":"IFERROR('MMA Rev-Exp Region 6'!$AJ$46/'MMA Rev-Exp Region 6'!$AJ$9, 0)","v":{"v":0,"d":"$0.00"}}]
["MMA",null,null,2016,"2016-12-31","Q3","2017-09-30","Region 6","Operating Expense","Medical Benefits Expense","Dental Services",6.2,"Dental Subcapitation",{"$f":"IFERROR('MMA Rev-Exp Region 6'!$Z$47/'MMA Rev-Exp Region 6'!$Z$9, 0)","v":{"v":0,"d":"$0.00"}},{"$f":"IFERROR('MMA Rev-Exp Region 6'!$AA$47/'MMA Rev-Exp Region 6'!$AA$9, 0)","v":{"v":0,"d":"$0.00"}},{"$f":"IFERROR('MMA Rev-Exp Region 6'!$AB$47/'MMA Rev-Exp Region 6'!$AB$9, 0)","v":{"v":0,"d":"$0.00"}},{"$f":"IFERROR('MMA Rev-Exp Region 6'!$AC$47/'MMA Rev-Exp Region 6'!$AC$9, 0)","v":{"v":0,"d":"$0.00"}},{"$f":"IFERROR('MMA Rev-Exp Region 6'!$AD$47/'MMA Rev-Exp Region 6'!$AD$9, 0)","v":{"v":0,"d":"$0.00"}},{"$f":"IFERROR('MMA Rev-Exp Region 6'!$AE$47/'MMA Rev-Exp Region 6'!$AE$9, 0)","v":{"v":0,"d":"$0.00"}},{"$f":"IFERROR('MMA Rev-Exp Region 6'!$AF$47/'MMA Rev-Exp Region 6'!$AF$9, 0)","v":{"v":0,"d":"$0.00"}},{"$f":"IFERROR('MMA Rev-Exp Region 6'!$AG$47/'MMA Rev-Exp Region 6'!$AG$9, 0)","v":{"v":0,"d":"$0.00"}},{"$f":"IFERROR('MMA Rev-Exp Region 6'!$AH$47/'MMA Rev-Exp Region 6'!$AH$9, 0)","v":{"v":0,"d":"$0.00"}},{"$f":"IFERROR('MMA Rev-Exp Region 6'!$AI$47/'MMA Rev-Exp Region 6'!$AI$9, 0)","v":{"v":0,"d":"$0.00"}},{"$f":"IFERROR('MMA Rev-Exp Region 6'!$AJ$47/'MMA Rev-Exp Region 6'!$AJ$9, 0)","v":{"v":0,"d":"$0.00"}}]
["MMA",null,null,2016,"2016-12-31","Q3","2017-09-30","Region 6","Operating Expense","Medical Benefits Expense","Dental Services",6.3,"Ending IBNP for Dental Services",{"$f":"IFERROR('MMA Rev-Exp Region 6'!$Z$48/'MMA Rev-Exp Region 6'!$Z$9, 0)","v":{"v":0,"d":"$0.00"}},{"$f":"IFERROR('MMA Rev-Exp Region 6'!$AA$48/'MMA Rev-Exp Region 6'!$AA$9, 0)","v":{"v":0,"d":"$0.00"}},{"$f":"IFERROR('MMA Rev-Exp Region 6'!$AB$48/'MMA Rev-Exp Region 6'!$AB$9, 0)","v":{"v":0,"d":"$0.00"}},{"$f":"IFERROR('MMA Rev-Exp Region 6'!$AC$48/'MMA Rev-Exp Region 6'!$AC$9, 0)","v":{"v":0,"d":"$0.00"}},{"$f":"IFERROR('MMA Rev-Exp Region 6'!$AD$48/'MMA Rev-Exp Region 6'!$AD$9, 0)","v":{"v":0,"d":"$0.00"}},{"$f":"IFERROR('MMA Rev-Exp Region 6'!$AE$48/'MMA Rev-Exp Region 6'!$AE$9, 0)","v":{"v":0,"d":"$0.00"}},{"$f":"IFERROR('MMA Rev-Exp Region 6'!$AF$48/'MMA Rev-Exp Region 6'!$AF$9, 0)","v":{"v":0,"d":"$0.00"}},{"$f":"IFERROR('MMA Rev-Exp Region 6'!$AG$48/'MMA Rev-Exp Region 6'!$AG$9, 0)","v":{"v":0,"d":"$0.00"}},{"$f":"IFERROR('MMA Rev-Exp Region 6'!$AH$48/'MMA Rev-Exp Region 6'!$AH$9, 0)","v":{"v":0,"d":"$0.00"}},{"$f":"IFERROR('MMA Rev-Exp Region 6'!$AI$48/'MMA Rev-Exp Region 6'!$AI$9, 0)","v":{"v":0,"d":"$0.00"}},{"$f":"IFERROR('MMA Rev-Exp Region 6'!$AJ$48/'MMA Rev-Exp Region 6'!$AJ$9, 0)","v":{"v":0,"d":"$0.00"}}]
["MMA",null,null,2016,"2016-12-31","Q3","2017-09-30","Region 6","Operating Expense","Medical Benefits Expense","Dental Services","6.4","Dental Settlements",{"$f":"IFERROR('MMA Rev-Exp Region 6'!$Z$49/'MMA Rev-Exp Region 6'!$Z$9, 0)","v":{"v":0,"d":"$0.00"}},{"$f":"IFERROR('MMA Rev-Exp Region 6'!$AA$49/'MMA Rev-Exp Region 6'!$AA$9, 0)","v":{"v":0,"d":"$0.00"}},{"$f":"IFERROR('MMA Rev-Exp Region 6'!$AB$49/'MMA Rev-Exp Region 6'!$AB$9, 0)","v":{"v":0,"d":"$0.00"}},{"$f":"IFERROR('MMA Rev-Exp Region 6'!$AC$49/'MMA Rev-Exp Region 6'!$AC$9, 0)","v":{"v":0,"d":"$0.00"}},{"$f":"IFERROR('MMA Rev-Exp Region 6'!$AD$49/'MMA Rev-Exp Region 6'!$AD$9, 0)","v":{"v":0,"d":"$0.00"}},{"$f":"IFERROR('MMA Rev-Exp Region 6'!$AE$49/'MMA Rev-Exp Region 6'!$AE$9, 0)","v":{"v":0,"d":"$0.00"}},{"$f":"IFERROR('MMA Rev-Exp Region 6'!$AF$49/'MMA Rev-Exp Region 6'!$AF$9, 0)","v":{"v":0,"d":"$0.00"}},{"$f":"IFERROR('MMA Rev-Exp Region 6'!$AG$49/'MMA Rev-Exp Region 6'!$AG$9, 0)","v":{"v":0,"d":"$0.00"}},{"$f":"IFERROR('MMA Rev-Exp Region 6'!$AH$49/'MMA Rev-Exp Region 6'!$AH$9, 0)","v":{"v":0,"d":"$0.00"}},{"$f":"IFERROR('MMA Rev-Exp Region 6'!$AI$49/'MMA Rev-Exp Region 6'!$AI$9, 0)","v":{"v":0,"d":"$0.00"}},{"$f":"IFERROR('MMA Rev-Exp Region 6'!$AJ$49/'MMA Rev-Exp Region 6'!$AJ$9, 0)","v":{"v":0,"d":"$0.00"}}]
["MMA",null,null,2016,"2016-12-31","Q3","2017-09-30","Region 6","Operating Expense","Medical Benefits Expense","Transportation Services",7.1,"Transportation FFS",{"$f":"IFERROR('MMA Rev-Exp Region 6'!$Z$51/'MMA Rev-Exp Region 6'!$Z$9, 0)","v":{"v":0,"d":"$0.00"}},{"$f":"IFERROR('MMA Rev-Exp Region 6'!$AA$51/'MMA Rev-Exp Region 6'!$AA$9, 0)","v":{"v":0,"d":"$0.00"}},{"$f":"IFERROR('MMA Rev-Exp Region 6'!$AB$51/'MMA Rev-Exp Region 6'!$AB$9, 0)","v":{"v":0,"d":"$0.00"}},{"$f":"IFERROR('MMA Rev-Exp Region 6'!$AC$51/'MMA Rev-Exp Region 6'!$AC$9, 0)","v":{"v":0,"d":"$0.00"}},{"$f":"IFERROR('MMA Rev-Exp Region 6'!$AD$51/'MMA Rev-Exp Region 6'!$AD$9, 0)","v":{"v":0,"d":"$0.00"}},{"$f":"IFERROR('MMA Rev-Exp Region 6'!$AE$51/'MMA Rev-Exp Region 6'!$AE$9, 0)","v":{"v":0,"d":"$0.00"}},{"$f":"IFERROR('MMA Rev-Exp Region 6'!$AF$51/'MMA Rev-Exp Region 6'!$AF$9, 0)","v":{"v":0,"d":"$0.00"}},{"$f":"IFERROR('MMA Rev-Exp Region 6'!$AG$51/'MMA Rev-Exp Region 6'!$AG$9, 0)","v":{"v":0,"d":"$0.00"}},{"$f":"IFERROR('MMA Rev-Exp Region 6'!$AH$51/'MMA Rev-Exp Region 6'!$AH$9, 0)","v":{"v":0,"d":"$0.00"}},{"$f":"IFERROR('MMA Rev-Exp Region 6'!$AI$51/'MMA Rev-Exp Region 6'!$AI$9, 0)","v":{"v":0,"d":"$0.00"}},{"$f":"IFERROR('MMA Rev-Exp Region 6'!$AJ$51/'MMA Rev-Exp Region 6'!$AJ$9, 0)","v":{"v":0,"d":"$0.00"}}]
["MMA",null,null,2016,"2016-12-31","Q3","2017-09-30","Region 6","Operating Expense","Medical Benefits Expense","Transportation Services",7.2,"Transportation Subcapitation",{"$f":"IFERROR('MMA Rev-Exp Region 6'!$Z$52/'MMA Rev-Exp Region 6'!$Z$9, 0)","v":{"v":0,"d":"$0.00"}},{"$f":"IFERROR('MMA Rev-Exp Region 6'!$AA$52/'MMA Rev-Exp Region 6'!$AA$9, 0)","v":{"v":0,"d":"$0.00"}},{"$f":"IFERROR('MMA Rev-Exp Region 6'!$AB$52/'MMA Rev-Exp Region 6'!$AB$9, 0)","v":{"v":0,"d":"$0.00"}},{"$f":"IFERROR('MMA Rev-Exp Region 6'!$AC$52/'MMA Rev-Exp Region 6'!$AC$9, 0)","v":{"v":0,"d":"$0.00"}},{"$f":"IFERROR('MMA Rev-Exp Region 6'!$AD$52/'MMA Rev-Exp Region 6'!$AD$9, 0)","v":{"v":0,"d":"$0.00"}},{"$f":"IFERROR('MMA Rev-Exp Region 6'!$AE$52/'MMA Rev-Exp Region 6'!$AE$9, 0)","v":{"v":0,"d":"$0.00"}},{"$f":"IFERROR('MMA Rev-Exp Region 6'!$AF$52/'MMA Rev-Exp Region 6'!$AF$9, 0)","v":{"v":0,"d":"$0.00"}},{"$f":"IFERROR('MMA Rev-Exp Region 6'!$AG$52/'MMA Rev-Exp Region 6'!$AG$9, 0)","v":{"v":0,"d":"$0.00"}},{"$f":"IFERROR('MMA Rev-Exp Region 6'!$AH$52/'MMA Rev-Exp Region 6'!$AH$9, 0)","v":{"v":0,"d":"$0.00"}},{"$f":"IFERROR('MMA Rev-Exp Region 6'!$AI$52/'MMA Rev-Exp Region 6'!$AI$9, 0)","v":{"v":0,"d":"$0.00"}},{"$f":"IFERROR('MMA Rev-Exp Region 6'!$AJ$52/'MMA Rev-Exp Region 6'!$AJ$9, 0)","v":{"v":0,"d":"$0.00"}}]
["MMA",null,null,2016,"2016-12-31","Q3","2017-09-30","Region 6","Operating Expense","Medical Benefits Expense","Transportation Services",7.3,"Ending IBNP for Transportation",{"$f":"IFERROR('MMA Rev-Exp Region 6'!$Z$53/'MMA Rev-Exp Region 6'!$Z$9, 0)","v":{"v":0,"d":"$0.00"}},{"$f":"IFERROR('MMA Rev-Exp Region 6'!$AA$53/'MMA Rev-Exp Region 6'!$AA$9, 0)","v":{"v":0,"d":"$0.00"}},{"$f":"IFERROR('MMA Rev-Exp Region 6'!$AB$53/'MMA Rev-Exp Region 6'!$AB$9, 0)","v":{"v":0,"d":"$0.00"}},{"$f":"IFERROR('MMA Rev-Exp Region 6'!$AC$53/'MMA Rev-Exp Region 6'!$AC$9, 0)","v":{"v":0,"d":"$0.00"}},{"$f":"IFERROR('MMA Rev-Exp Region 6'!$AD$53/'MMA Rev-Exp Region 6'!$AD$9, 0)","v":{"v":0,"d":"$0.00"}},{"$f":"IFERROR('MMA Rev-Exp Region 6'!$AE$53/'MMA Rev-Exp Region 6'!$AE$9, 0)","v":{"v":0,"d":"$0.00"}},{"$f":"IFERROR('MMA Rev-Exp Region 6'!$AF$53/'MMA Rev-Exp Region 6'!$AF$9, 0)","v":{"v":0,"d":"$0.00"}},{"$f":"IFERROR('MMA Rev-Exp Region 6'!$AG$53/'MMA Rev-Exp Region 6'!$AG$9, 0)","v":{"v":0,"d":"$0.00"}},{"$f":"IFERROR('MMA Rev-Exp Region 6'!$AH$53/'MMA Rev-Exp Region 6'!$AH$9, 0)","v":{"v":0,"d":"$0.00"}},{"$f":"IFERROR('MMA Rev-Exp Region 6'!$AI$53/'MMA Rev-Exp Region 6'!$AI$9, 0)","v":{"v":0,"d":"$0.00"}},{"$f":"IFERROR('MMA Rev-Exp Region 6'!$AJ$53/'MMA Rev-Exp Region 6'!$AJ$9, 0)","v":{"v":0,"d":"$0.00"}}]
["MMA",null,null,2016,"2016-12-31","Q3","2017-09-30","Region 6","Operating Expense","Medical Benefits Expense","Transportation Services","7.4","Transportation Settlements",{"$f":"IFERROR('MMA Rev-Exp Region 6'!$Z$54/'MMA Rev-Exp Region 6'!$Z$9, 0)","v":{"v":0,"d":"$0.00"}},{"$f":"IFERROR('MMA Rev-Exp Region 6'!$AA$54/'MMA Rev-Exp Region 6'!$AA$9, 0)","v":{"v":0,"d":"$0.00"}},{"$f":"IFERROR('MMA Rev-Exp Region 6'!$AB$54/'MMA Rev-Exp Region 6'!$AB$9, 0)","v":{"v":0,"d":"$0.00"}},{"$f":"IFERROR('MMA Rev-Exp Region 6'!$AC$54/'MMA Rev-Exp Region 6'!$AC$9, 0)","v":{"v":0,"d":"$0.00"}},{"$f":"IFERROR('MMA Rev-Exp Region 6'!$AD$54/'MMA Rev-Exp Region 6'!$AD$9, 0)","v":{"v":0,"d":"$0.00"}},{"$f":"IFERROR('MMA Rev-Exp Region 6'!$AE$54/'MMA Rev-Exp Region 6'!$AE$9, 0)","v":{"v":0,"d":"$0.00"}},{"$f":"IFERROR('MMA Rev-Exp Region 6'!$AF$54/'MMA Rev-Exp Region 6'!$AF$9, 0)","v":{"v":0,"d":"$0.00"}},{"$f":"IFERROR('MMA Rev-Exp Region 6'!$AG$54/'MMA Rev-Exp Region 6'!$AG$9, 0)","v":{"v":0,"d":"$0.00"}},{"$f":"IFERROR('MMA Rev-Exp Region 6'!$AH$54/'MMA Rev-Exp Region 6'!$AH$9, 0)","v":{"v":0,"d":"$0.00"}},{"$f":"IFERROR('MMA Rev-Exp Region 6'!$AI$54/'MMA Rev-Exp Region 6'!$AI$9, 0)","v":{"v":0,"d":"$0.00"}},{"$f":"IFERROR('MMA Rev-Exp Region 6'!$AJ$54/'MMA Rev-Exp Region 6'!$AJ$9, 0)","v":{"v":0,"d":"$0.00"}}]
["MMA",null,null,2016,"2016-12-31","Q3","2017-09-30","Region 6","Operating Expense","Medical Benefits Expense","Pharmacy Services",8.1,"Prescription Drugs FFS",{"$f":"IFERROR('MMA Rev-Exp Region 6'!$Z$56/'MMA Rev-Exp Region 6'!$Z$9, 0)","v":{"v":0,"d":"$0.00"}},{"$f":"IFERROR('MMA Rev-Exp Region 6'!$AA$56/'MMA Rev-Exp Region 6'!$AA$9, 0)","v":{"v":0,"d":"$0.00"}},{"$f":"IFERROR('MMA Rev-Exp Region 6'!$AB$56/'MMA Rev-Exp Region 6'!$AB$9, 0)","v":{"v":0,"d":"$0.00"}},{"$f":"IFERROR('MMA Rev-Exp Region 6'!$AC$56/'MMA Rev-Exp Region 6'!$AC$9, 0)","v":{"v":0,"d":"$0.00"}},{"$f":"IFERROR('MMA Rev-Exp Region 6'!$AD$56/'MMA Rev-Exp Region 6'!$AD$9, 0)","v":{"v":0,"d":"$0.00"}},{"$f":"IFERROR('MMA Rev-Exp Region 6'!$AE$56/'MMA Rev-Exp Region 6'!$AE$9, 0)","v":{"v":0,"d":"$0.00"}},{"$f":"IFERROR('MMA Rev-Exp Region 6'!$AF$56/'MMA Rev-Exp Region 6'!$AF$9, 0)","v":{"v":0,"d":"$0.00"}},{"$f":"IFERROR('MMA Rev-Exp Region 6'!$AG$56/'MMA Rev-Exp Region 6'!$AG$9, 0)","v":{"v":0,"d":"$0.00"}},{"$f":"IFERROR('MMA Rev-Exp Region 6'!$AH$56/'MMA Rev-Exp Region 6'!$AH$9, 0)","v":{"v":0,"d":"$0.00"}},{"$f":"IFERROR('MMA Rev-Exp Region 6'!$AI$56/'MMA Rev-Exp Region 6'!$AI$9, 0)","v":{"v":0,"d":"$0.00"}},{"$f":"IFERROR('MMA Rev-Exp Region 6'!$AJ$56/'MMA Rev-Exp Region 6'!$AJ$9, 0)","v":{"v":0,"d":"$0.00"}}]
["MMA",null,null,2016,"2016-12-31","Q3","2017-09-30","Region 6","Operating Expense","Medical Benefits Expense","Pharmacy Services","8.2","Hepatitis C Prescription Drug FFS",{"$f":"IFERROR('MMA Rev-Exp Region 6'!$Z$57/'MMA Rev-Exp Region 6'!$Z$9, 0)","v":{"v":0,"d":"$0.00"}},{"$f":"IFERROR('MMA Rev-Exp Region 6'!$AA$57/'MMA Rev-Exp Region 6'!$AA$9, 0)","v":{"v":0,"d":"$0.00"}},{"$f":"IFERROR('MMA Rev-Exp Region 6'!$AB$57/'MMA Rev-Exp Region 6'!$AB$9, 0)","v":{"v":0,"d":"$0.00"}},{"$f":"IFERROR('MMA Rev-Exp Region 6'!$AC$57/'MMA Rev-Exp Region 6'!$AC$9, 0)","v":{"v":0,"d":"$0.00"}},{"$f":"IFERROR('MMA Rev-Exp Region 6'!$AD$57/'MMA Rev-Exp Region 6'!$AD$9, 0)","v":{"v":0,"d":"$0.00"}},{"$f":"IFERROR('MMA Rev-Exp Region 6'!$AE$57/'MMA Rev-Exp Region 6'!$AE$9, 0)","v":{"v":0,"d":"$0.00"}},{"$f":"IFERROR('MMA Rev-Exp Region 6'!$AF$57/'MMA Rev-Exp Region 6'!$AF$9, 0)","v":{"v":0,"d":"$0.00"}},{"$f":"IFERROR('MMA Rev-Exp Region 6'!$AG$57/'MMA Rev-Exp Region 6'!$AG$9, 0)","v":{"v":0,"d":"$0.00"}},{"$f":"IFERROR('MMA Rev-Exp Region 6'!$AH$57/'MMA Rev-Exp Region 6'!$AH$9, 0)","v":{"v":0,"d":"$0.00"}},{"$f":"IFERROR('MMA Rev-Exp Region 6'!$AI$57/'MMA Rev-Exp Region 6'!$AI$9, 0)","v":{"v":0,"d":"$0.00"}},{"$f":"IFERROR('MMA Rev-Exp Region 6'!$AJ$57/'MMA Rev-Exp Region 6'!$AJ$9, 0)","v":{"v":0,"d":"$0.00"}}]
["MMA",null,null,2016,"2016-12-31","Q3","2017-09-30","Region 6","Operating Expense","Medical Benefits Expense","Pharmacy Services","8.3","Ending IBNP for Prescription Drugs",{"$f":"IFERROR('MMA Rev-Exp Region 6'!$Z$58/'MMA Rev-Exp Region 6'!$Z$9, 0)","v":{"v":0,"d":"$0.00"}},{"$f":"IFERROR('MMA Rev-Exp Region 6'!$AA$58/'MMA Rev-Exp Region 6'!$AA$9, 0)","v":{"v":0,"d":"$0.00"}},{"$f":"IFERROR('MMA Rev-Exp Region 6'!$AB$58/'MMA Rev-Exp Region 6'!$AB$9, 0)","v":{"v":0,"d":"$0.00"}},{"$f":"IFERROR('MMA Rev-Exp Region 6'!$AC$58/'MMA Rev-Exp Region 6'!$AC$9, 0)","v":{"v":0,"d":"$0.00"}},{"$f":"IFERROR('MMA Rev-Exp Region 6'!$AD$58/'MMA Rev-Exp Region 6'!$AD$9, 0)","v":{"v":0,"d":"$0.00"}},{"$f":"IFERROR('MMA Rev-Exp Region 6'!$AE$58/'MMA Rev-Exp Region 6'!$AE$9, 0)","v":{"v":0,"d":"$0.00"}},{"$f":"IFERROR('MMA Rev-Exp Region 6'!$AF$58/'MMA Rev-Exp Region 6'!$AF$9, 0)","v":{"v":0,"d":"$0.00"}},{"$f":"IFERROR('MMA Rev-Exp Region 6'!$AG$58/'MMA Rev-Exp Region 6'!$AG$9, 0)","v":{"v":0,"d":"$0.00"}},{"$f":"IFERROR('MMA Rev-Exp Region 6'!$AH$58/'MMA Rev-Exp Region 6'!$AH$9, 0)","v":{"v":0,"d":"$0.00"}},{"$f":"IFERROR('MMA Rev-Exp Region 6'!$AI$58/'MMA Rev-Exp Region 6'!$AI$9, 0)","v":{"v":0,"d":"$0.00"}},{"$f":"IFERROR('MMA Rev-Exp Region 6'!$AJ$58/'MMA Rev-Exp Region 6'!$AJ$9, 0)","v":{"v":0,"d":"$0.00"}}]
["MMA",null,null,2016,"2016-12-31","Q3","2017-09-30","Region 6","Operating Expense","Medical Benefits Expense","Pharmacy Services","8.4","Prescription Drug Rebates ",{"$f":"IFERROR('MMA Rev-Exp Region 6'!$Z$59/'MMA Rev-Exp Region 6'!$Z$9, 0)","v":{"v":0,"d":"$0.00"}},{"$f":"IFERROR('MMA Rev-Exp Region 6'!$AA$59/'MMA Rev-Exp Region 6'!$AA$9, 0)","v":{"v":0,"d":"$0.00"}},{"$f":"IFERROR('MMA Rev-Exp Region 6'!$AB$59/'MMA Rev-Exp Region 6'!$AB$9, 0)","v":{"v":0,"d":"$0.00"}},{"$f":"IFERROR('MMA Rev-Exp Region 6'!$AC$59/'MMA Rev-Exp Region 6'!$AC$9, 0)","v":{"v":0,"d":"$0.00"}},{"$f":"IFERROR('MMA Rev-Exp Region 6'!$AD$59/'MMA Rev-Exp Region 6'!$AD$9, 0)","v":{"v":0,"d":"$0.00"}},{"$f":"IFERROR('MMA Rev-Exp Region 6'!$AE$59/'MMA Rev-Exp Region 6'!$AE$9, 0)","v":{"v":0,"d":"$0.00"}},{"$f":"IFERROR('MMA Rev-Exp Region 6'!$AF$59/'MMA Rev-Exp Region 6'!$AF$9, 0)","v":{"v":0,"d":"$0.00"}},{"$f":"IFERROR('MMA Rev-Exp Region 6'!$AG$59/'MMA Rev-Exp Region 6'!$AG$9, 0)","v":{"v":0,"d":"$0.00"}},{"$f":"IFERROR('MMA Rev-Exp Region 6'!$AH$59/'MMA Rev-Exp Region 6'!$AH$9, 0)","v":{"v":0,"d":"$0.00"}},{"$f":"IFERROR('MMA Rev-Exp Region 6'!$AI$59/'MMA Rev-Exp Region 6'!$AI$9, 0)","v":{"v":0,"d":"$0.00"}},{"$f":"IFERROR('MMA Rev-Exp Region 6'!$AJ$59/'MMA Rev-Exp Region 6'!$AJ$9, 0)","v":{"v":0,"d":"$0.00"}}]
["MMA",null,null,2016,"2016-12-31","Q3","2017-09-30","Region 6","Operating Expense","Medical Benefits Expense","Pharmacy Services","8.5","Ending accrual for Rebates receivable",{"$f":"IFERROR('MMA Rev-Exp Region 6'!$Z$60/'MMA Rev-Exp Region 6'!$Z$9, 0)","v":{"v":0,"d":"$0.00"}},{"$f":"IFERROR('MMA Rev-Exp Region 6'!$AA$60/'MMA Rev-Exp Region 6'!$AA$9, 0)","v":{"v":0,"d":"$0.00"}},{"$f":"IFERROR('MMA Rev-Exp Region 6'!$AB$60/'MMA Rev-Exp Region 6'!$AB$9, 0)","v":{"v":0,"d":"$0.00"}},{"$f":"IFERROR('MMA Rev-Exp Region 6'!$AC$60/'MMA Rev-Exp Region 6'!$AC$9, 0)","v":{"v":0,"d":"$0.00"}},{"$f":"IFERROR('MMA Rev-Exp Region 6'!$AD$60/'MMA Rev-Exp Region 6'!$AD$9, 0)","v":{"v":0,"d":"$0.00"}},{"$f":"IFERROR('MMA Rev-Exp Region 6'!$AE$60/'MMA Rev-Exp Region 6'!$AE$9, 0)","v":{"v":0,"d":"$0.00"}},{"$f":"IFERROR('MMA Rev-Exp Region 6'!$AF$60/'MMA Rev-Exp Region 6'!$AF$9, 0)","v":{"v":0,"d":"$0.00"}},{"$f":"IFERROR('MMA Rev-Exp Region 6'!$AG$60/'MMA Rev-Exp Region 6'!$AG$9, 0)","v":{"v":0,"d":"$0.00"}},{"$f":"IFERROR('MMA Rev-Exp Region 6'!$AH$60/'MMA Rev-Exp Region 6'!$AH$9, 0)","v":{"v":0,"d":"$0.00"}},{"$f":"IFERROR('MMA Rev-Exp Region 6'!$AI$60/'MMA Rev-Exp Region 6'!$AI$9, 0)","v":{"v":0,"d":"$0.00"}},{"$f":"IFERROR('MMA Rev-Exp Region 6'!$AJ$60/'MMA Rev-Exp Region 6'!$AJ$9, 0)","v":{"v":0,"d":"$0.00"}}]
["MMA",null,null,2016,"2016-12-31","Q3","2017-09-30","Region 6","Operating Expense","Medical Benefits Expense","Pharmacy Services","8.6","Prescription Drugs Subcapitation",{"$f":"IFERROR('MMA Rev-Exp Region 6'!$Z$61/'MMA Rev-Exp Region 6'!$Z$9, 0)","v":{"v":0,"d":"$0.00"}},{"$f":"IFERROR('MMA Rev-Exp Region 6'!$AA$61/'MMA Rev-Exp Region 6'!$AA$9, 0)","v":{"v":0,"d":"$0.00"}},{"$f":"IFERROR('MMA Rev-Exp Region 6'!$AB$61/'MMA Rev-Exp Region 6'!$AB$9, 0)","v":{"v":0,"d":"$0.00"}},{"$f":"IFERROR('MMA Rev-Exp Region 6'!$AC$61/'MMA Rev-Exp Region 6'!$AC$9, 0)","v":{"v":0,"d":"$0.00"}},{"$f":"IFERROR('MMA Rev-Exp Region 6'!$AD$61/'MMA Rev-Exp Region 6'!$AD$9, 0)","v":{"v":0,"d":"$0.00"}},{"$f":"IFERROR('MMA Rev-Exp Region 6'!$AE$61/'MMA Rev-Exp Region 6'!$AE$9, 0)","v":{"v":0,"d":"$0.00"}},{"$f":"IFERROR('MMA Rev-Exp Region 6'!$AF$61/'MMA Rev-Exp Region 6'!$AF$9, 0)","v":{"v":0,"d":"$0.00"}},{"$f":"IFERROR('MMA Rev-Exp Region 6'!$AG$61/'MMA Rev-Exp Region 6'!$AG$9, 0)","v":{"v":0,"d":"$0.00"}},{"$f":"IFERROR('MMA Rev-Exp Region 6'!$AH$61/'MMA Rev-Exp Region 6'!$AH$9, 0)","v":{"v":0,"d":"$0.00"}},{"$f":"IFERROR('MMA Rev-Exp Region 6'!$AI$61/'MMA Rev-Exp Region 6'!$AI$9, 0)","v":{"v":0,"d":"$0.00"}},{"$f":"IFERROR('MMA Rev-Exp Region 6'!$AJ$61/'MMA Rev-Exp Region 6'!$AJ$9, 0)","v":{"v":0,"d":"$0.00"}}]
["MMA",null,null,2016,"2016-12-31","Q3","2017-09-30","Region 6","Operating Expense","Medical Benefits Expense","Pharmacy Services","8.7","Prescription Drug Settlements",{"$f":"IFERROR('MMA Rev-Exp Region 6'!$Z$62/'MMA Rev-Exp Region 6'!$Z$9, 0)","v":{"v":0,"d":"$0.00"}},{"$f":"IFERROR('MMA Rev-Exp Region 6'!$AA$62/'MMA Rev-Exp Region 6'!$AA$9, 0)","v":{"v":0,"d":"$0.00"}},{"$f":"IFERROR('MMA Rev-Exp Region 6'!$AB$62/'MMA Rev-Exp Region 6'!$AB$9, 0)","v":{"v":0,"d":"$0.00"}},{"$f":"IFERROR('MMA Rev-Exp Region 6'!$AC$62/'MMA Rev-Exp Region 6'!$AC$9, 0)","v":{"v":0,"d":"$0.00"}},{"$f":"IFERROR('MMA Rev-Exp Region 6'!$AD$62/'MMA Rev-Exp Region 6'!$AD$9, 0)","v":{"v":0,"d":"$0.00"}},{"$f":"IFERROR('MMA Rev-Exp Region 6'!$AE$62/'MMA Rev-Exp Region 6'!$AE$9, 0)","v":{"v":0,"d":"$0.00"}},{"$f":"IFERROR('MMA Rev-Exp Region 6'!$AF$62/'MMA Rev-Exp Region 6'!$AF$9, 0)","v":{"v":0,"d":"$0.00"}},{"$f":"IFERROR('MMA Rev-Exp Region 6'!$AG$62/'MMA Rev-Exp Region 6'!$AG$9, 0)","v":{"v":0,"d":"$0.00"}},{"$f":"IFERROR('MMA Rev-Exp Region 6'!$AH$62/'MMA Rev-Exp Region 6'!$AH$9, 0)","v":{"v":0,"d":"$0.00"}},{"$f":"IFERROR('MMA Rev-Exp Region 6'!$AI$62/'MMA Rev-Exp Region 6'!$AI$9, 0)","v":{"v":0,"d":"$0.00"}},{"$f":"IFERROR('MMA Rev-Exp Region 6'!$AJ$62/'MMA Rev-Exp Region 6'!$AJ$9, 0)","v":{"v":0,"d":"$0.00"}}]
["MMA",null,null,2016,"2016-12-31","Q3","2017-09-30","Region 6","Operating Expense","Medical Benefits Expense","Other MMA Services",9.1,"Home Health, Private Duty Nursing, Personal Care FFS",{"$f":"IFERROR('MMA Rev-Exp Region 6'!$Z$64/'MMA Rev-Exp Region 6'!$Z$9, 0)","v":{"v":0,"d":"$0.00"}},{"$f":"IFERROR('MMA Rev-Exp Region 6'!$AA$64/'MMA Rev-Exp Region 6'!$AA$9, 0)","v":{"v":0,"d":"$0.00"}},{"$f":"IFERROR('MMA Rev-Exp Region 6'!$AB$64/'MMA Rev-Exp Region 6'!$AB$9, 0)","v":{"v":0,"d":"$0.00"}},{"$f":"IFERROR('MMA Rev-Exp Region 6'!$AC$64/'MMA Rev-Exp Region 6'!$AC$9, 0)","v":{"v":0,"d":"$0.00"}},{"$f":"IFERROR('MMA Rev-Exp Region 6'!$AD$64/'MMA Rev-Exp Region 6'!$AD$9, 0)","v":{"v":0,"d":"$0.00"}},{"$f":"IFERROR('MMA Rev-Exp Region 6'!$AE$64/'MMA Rev-Exp Region 6'!$AE$9, 0)","v":{"v":0,"d":"$0.00"}},{"$f":"IFERROR('MMA Rev-Exp Region 6'!$AF$64/'MMA Rev-Exp Region 6'!$AF$9, 0)","v":{"v":0,"d":"$0.00"}},{"$f":"IFERROR('MMA Rev-Exp Region 6'!$AG$64/'MMA Rev-Exp Region 6'!$AG$9, 0)","v":{"v":0,"d":"$0.00"}},{"$f":"IFERROR('MMA Rev-Exp Region 6'!$AH$64/'MMA Rev-Exp Region 6'!$AH$9, 0)","v":{"v":0,"d":"$0.00"}},{"$f":"IFERROR('MMA Rev-Exp Region 6'!$AI$64/'MMA Rev-Exp Region 6'!$AI$9, 0)","v":{"v":0,"d":"$0.00"}},{"$f":"IFERROR('MMA Rev-Exp Region 6'!$AJ$64/'MMA Rev-Exp Region 6'!$AJ$9, 0)","v":{"v":0,"d":"$0.00"}}]
["MMA",null,null,2016,"2016-12-31","Q3","2017-09-30","Region 6","Operating Expense","Medical Benefits Expense","Other MMA Services","9.2","Hospice FFS",{"$f":"IFERROR('MMA Rev-Exp Region 6'!$Z$65/'MMA Rev-Exp Region 6'!$Z$9, 0)","v":{"v":0,"d":"$0.00"}},{"$f":"IFERROR('MMA Rev-Exp Region 6'!$AA$65/'MMA Rev-Exp Region 6'!$AA$9, 0)","v":{"v":0,"d":"$0.00"}},{"$f":"IFERROR('MMA Rev-Exp Region 6'!$AB$65/'MMA Rev-Exp Region 6'!$AB$9, 0)","v":{"v":0,"d":"$0.00"}},{"$f":"IFERROR('MMA Rev-Exp Region 6'!$AC$65/'MMA Rev-Exp Region 6'!$AC$9, 0)","v":{"v":0,"d":"$0.00"}},{"$f":"IFERROR('MMA Rev-Exp Region 6'!$AD$65/'MMA Rev-Exp Region 6'!$AD$9, 0)","v":{"v":0,"d":"$0.00"}},{"$f":"IFERROR('MMA Rev-Exp Region 6'!$AE$65/'MMA Rev-Exp Region 6'!$AE$9, 0)","v":{"v":0,"d":"$0.00"}},{"$f":"IFERROR('MMA Rev-Exp Region 6'!$AF$65/'MMA Rev-Exp Region 6'!$AF$9, 0)","v":{"v":0,"d":"$0.00"}},{"$f":"IFERROR('MMA Rev-Exp Region 6'!$AG$65/'MMA Rev-Exp Region 6'!$AG$9, 0)","v":{"v":0,"d":"$0.00"}},{"$f":"IFERROR('MMA Rev-Exp Region 6'!$AH$65/'MMA Rev-Exp Region 6'!$AH$9, 0)","v":{"v":0,"d":"$0.00"}},{"$f":"IFERROR('MMA Rev-Exp Region 6'!$AI$65/'MMA Rev-Exp Region 6'!$AI$9, 0)","v":{"v":0,"d":"$0.00"}},{"$f":"IFERROR('MMA Rev-Exp Region 6'!$AJ$65/'MMA Rev-Exp Region 6'!$AJ$9, 0)","v":{"v":0,"d":"$0.00"}}]
["MMA",null,null,2016,"2016-12-31","Q3","2017-09-30","Region 6","Operating Expense","Medical Benefits Expense","Other MMA Services","9.3","DME FFS",{"$f":"IFERROR('MMA Rev-Exp Region 6'!$Z$66/'MMA Rev-Exp Region 6'!$Z$9, 0)","v":{"v":0,"d":"$0.00"}},{"$f":"IFERROR('MMA Rev-Exp Region 6'!$AA$66/'MMA Rev-Exp Region 6'!$AA$9, 0)","v":{"v":0,"d":"$0.00"}},{"$f":"IFERROR('MMA Rev-Exp Region 6'!$AB$66/'MMA Rev-Exp Region 6'!$AB$9, 0)","v":{"v":0,"d":"$0.00"}},{"$f":"IFERROR('MMA Rev-Exp Region 6'!$AC$66/'MMA Rev-Exp Region 6'!$AC$9, 0)","v":{"v":0,"d":"$0.00"}},{"$f":"IFERROR('MMA Rev-Exp Region 6'!$AD$66/'MMA Rev-Exp Region 6'!$AD$9, 0)","v":{"v":0,"d":"$0.00"}},{"$f":"IFERROR('MMA Rev-Exp Region 6'!$AE$66/'MMA Rev-Exp Region 6'!$AE$9, 0)","v":{"v":0,"d":"$0.00"}},{"$f":"IFERROR('MMA Rev-Exp Region 6'!$AF$66/'MMA Rev-Exp Region 6'!$AF$9, 0)","v":{"v":0,"d":"$0.00"}},{"$f":"IFERROR('MMA Rev-Exp Region 6'!$AG$66/'MMA Rev-Exp Region 6'!$AG$9, 0)","v":{"v":0,"d":"$0.00"}},{"$f":"IFERROR('MMA Rev-Exp Region 6'!$AH$66/'MMA Rev-Exp Region 6'!$AH$9, 0)","v":{"v":0,"d":"$0.00"}},{"$f":"IFERROR('MMA Rev-Exp Region 6'!$AI$66/'MMA Rev-Exp Region 6'!$AI$9, 0)","v":{"v":0,"d":"$0.00"}},{"$f":"IFERROR('MMA Rev-Exp Region 6'!$AJ$66/'MMA Rev-Exp Region 6'!$AJ$9, 0)","v":{"v":0,"d":"$0.00"}}]
["MMA",null,null,2016,"2016-12-31","Q3","2017-09-30","Region 6","Operating Expense","Medical Benefits Expense","Other MMA Services","9.4","Other State Plan Services FFS",{"$f":"IFERROR('MMA Rev-Exp Region 6'!$Z$67/'MMA Rev-Exp Region 6'!$Z$9, 0)","v":{"v":0,"d":"$0.00"}},{"$f":"IFERROR('MMA Rev-Exp Region 6'!$AA$67/'MMA Rev-Exp Region 6'!$AA$9, 0)","v":{"v":0,"d":"$0.00"}},{"$f":"IFERROR('MMA Rev-Exp Region 6'!$AB$67/'MMA Rev-Exp Region 6'!$AB$9, 0)","v":{"v":0,"d":"$0.00"}},{"$f":"IFERROR('MMA Rev-Exp Region 6'!$AC$67/'MMA Rev-Exp Region 6'!$AC$9, 0)","v":{"v":0,"d":"$0.00"}},{"$f":"IFERROR('MMA Rev-Exp Region 6'!$AD$67/'MMA Rev-Exp Region 6'!$AD$9, 0)","v":{"v":0,"d":"$0.00"}},{"$f":"IFERROR('MMA Rev-Exp Region 6'!$AE$67/'MMA Rev-Exp Region 6'!$AE$9, 0)","v":{"v":0,"d":"$0.00"}},{"$f":"IFERROR('MMA Rev-Exp Region 6'!$AF$67/'MMA Rev-Exp Region 6'!$AF$9, 0)","v":{"v":0,"d":"$0.00"}},{"$f":"IFERROR('MMA Rev-Exp Region 6'!$AG$67/'MMA Rev-Exp Region 6'!$AG$9, 0)","v":{"v":0,"d":"$0.00"}},{"$f":"IFERROR('MMA Rev-Exp Region 6'!$AH$67/'MMA Rev-Exp Region 6'!$AH$9, 0)","v":{"v":0,"d":"$0.00"}},{"$f":"IFERROR('MMA Rev-Exp Region 6'!$AI$67/'MMA Rev-Exp Region 6'!$AI$9, 0)","v":{"v":0,"d":"$0.00"}},{"$f":"IFERROR('MMA Rev-Exp Region 6'!$AJ$67/'MMA Rev-Exp Region 6'!$AJ$9, 0)","v":{"v":0,"d":"$0.00"}}]
["MMA",null,null,2016,"2016-12-31","Q3","2017-09-30","Region 6","Operating Expense","Medical Benefits Expense","Other MMA Services","9.5","Other Services Subcapitation",{"$f":"IFERROR('MMA Rev-Exp Region 6'!$Z$68/'MMA Rev-Exp Region 6'!$Z$9, 0)","v":{"v":0,"d":"$0.00"}},{"$f":"IFERROR('MMA Rev-Exp Region 6'!$AA$68/'MMA Rev-Exp Region 6'!$AA$9, 0)","v":{"v":0,"d":"$0.00"}},{"$f":"IFERROR('MMA Rev-Exp Region 6'!$AB$68/'MMA Rev-Exp Region 6'!$AB$9, 0)","v":{"v":0,"d":"$0.00"}},{"$f":"IFERROR('MMA Rev-Exp Region 6'!$AC$68/'MMA Rev-Exp Region 6'!$AC$9, 0)","v":{"v":0,"d":"$0.00"}},{"$f":"IFERROR('MMA Rev-Exp Region 6'!$AD$68/'MMA Rev-Exp Region 6'!$AD$9, 0)","v":{"v":0,"d":"$0.00"}},{"$f":"IFERROR('MMA Rev-Exp Region 6'!$AE$68/'MMA Rev-Exp Region 6'!$AE$9, 0)","v":{"v":0,"d":"$0.00"}},{"$f":"IFERROR('MMA Rev-Exp Region 6'!$AF$68/'MMA Rev-Exp Region 6'!$AF$9, 0)","v":{"v":0,"d":"$0.00"}},{"$f":"IFERROR('MMA Rev-Exp Region 6'!$AG$68/'MMA Rev-Exp Region 6'!$AG$9, 0)","v":{"v":0,"d":"$0.00"}},{"$f":"IFERROR('MMA Rev-Exp Region 6'!$AH$68/'MMA Rev-Exp Region 6'!$AH$9, 0)","v":{"v":0,"d":"$0.00"}},{"$f":"IFERROR('MMA Rev-Exp Region 6'!$AI$68/'MMA Rev-Exp Region 6'!$AI$9, 0)","v":{"v":0,"d":"$0.00"}},{"$f":"IFERROR('MMA Rev-Exp Region 6'!$AJ$68/'MMA Rev-Exp Region 6'!$AJ$9, 0)","v":{"v":0,"d":"$0.00"}}]
["MMA",null,null,2016,"2016-12-31","Q3","2017-09-30","Region 6","Operating Expense","Medical Benefits Expense","Other MMA Services","9.6","Ending IBNP for Other Services",{"$f":"IFERROR('MMA Rev-Exp Region 6'!$Z$69/'MMA Rev-Exp Region 6'!$Z$9, 0)","v":{"v":0,"d":"$0.00"}},{"$f":"IFERROR('MMA Rev-Exp Region 6'!$AA$69/'MMA Rev-Exp Region 6'!$AA$9, 0)","v":{"v":0,"d":"$0.00"}},{"$f":"IFERROR('MMA Rev-Exp Region 6'!$AB$69/'MMA Rev-Exp Region 6'!$AB$9, 0)","v":{"v":0,"d":"$0.00"}},{"$f":"IFERROR('MMA Rev-Exp Region 6'!$AC$69/'MMA Rev-Exp Region 6'!$AC$9, 0)","v":{"v":0,"d":"$0.00"}},{"$f":"IFERROR('MMA Rev-Exp Region 6'!$AD$69/'MMA Rev-Exp Region 6'!$AD$9, 0)","v":{"v":0,"d":"$0.00"}},{"$f":"IFERROR('MMA Rev-Exp Region 6'!$AE$69/'MMA Rev-Exp Region 6'!$AE$9, 0)","v":{"v":0,"d":"$0.00"}},{"$f":"IFERROR('MMA Rev-Exp Region 6'!$AF$69/'MMA Rev-Exp Region 6'!$AF$9, 0)","v":{"v":0,"d":"$0.00"}},{"$f":"IFERROR('MMA Rev-Exp Region 6'!$AG$69/'MMA Rev-Exp Region 6'!$AG$9, 0)","v":{"v":0,"d":"$0.00"}},{"$f":"IFERROR('MMA Rev-Exp Region 6'!$AH$69/'MMA Rev-Exp Region 6'!$AH$9, 0)","v":{"v":0,"d":"$0.00"}},{"$f":"IFERROR('MMA Rev-Exp Region 6'!$AI$69/'MMA Rev-Exp Region 6'!$AI$9, 0)","v":{"v":0,"d":"$0.00"}},{"$f":"IFERROR('MMA Rev-Exp Region 6'!$AJ$69/'MMA Rev-Exp Region 6'!$AJ$9, 0)","v":{"v":0,"d":"$0.00"}}]
["MMA",null,null,2016,"2016-12-31","Q3","2017-09-30","Region 6","Operating Expense","Medical Benefits Expense","Other MMA Services","9.7","Other Services Settlements",{"$f":"IFERROR('MMA Rev-Exp Region 6'!$Z$70/'MMA Rev-Exp Region 6'!$Z$9, 0)","v":{"v":0,"d":"$0.00"}},{"$f":"IFERROR('MMA Rev-Exp Region 6'!$AA$70/'MMA Rev-Exp Region 6'!$AA$9, 0)","v":{"v":0,"d":"$0.00"}},{"$f":"IFERROR('MMA Rev-Exp Region 6'!$AB$70/'MMA Rev-Exp Region 6'!$AB$9, 0)","v":{"v":0,"d":"$0.00"}},{"$f":"IFERROR('MMA Rev-Exp Region 6'!$AC$70/'MMA Rev-Exp Region 6'!$AC$9, 0)","v":{"v":0,"d":"$0.00"}},{"$f":"IFERROR('MMA Rev-Exp Region 6'!$AD$70/'MMA Rev-Exp Region 6'!$AD$9, 0)","v":{"v":0,"d":"$0.00"}},{"$f":"IFERROR('MMA Rev-Exp Region 6'!$AE$70/'MMA Rev-Exp Region 6'!$AE$9, 0)","v":{"v":0,"d":"$0.00"}},{"$f":"IFERROR('MMA Rev-Exp Region 6'!$AF$70/'MMA Rev-Exp Region 6'!$AF$9, 0)","v":{"v":0,"d":"$0.00"}},{"$f":"IFERROR('MMA Rev-Exp Region 6'!$AG$70/'MMA Rev-Exp Region 6'!$AG$9, 0)","v":{"v":0,"d":"$0.00"}},{"$f":"IFERROR('MMA Rev-Exp Region 6'!$AH$70/'MMA Rev-Exp Region 6'!$AH$9, 0)","v":{"v":0,"d":"$0.00"}},{"$f":"IFERROR('MMA Rev-Exp Region 6'!$AI$70/'MMA Rev-Exp Region 6'!$AI$9, 0)","v":{"v":0,"d":"$0.00"}},{"$f":"IFERROR('MMA Rev-Exp Region 6'!$AJ$70/'MMA Rev-Exp Region 6'!$AJ$9, 0)","v":{"v":0,"d":"$0.00"}}]
["MMA",null,null,2016,"2016-12-31","Q3","2017-09-30","Region 6","Operating Expense","Medical Benefits Expense","Expanded Benefits","10.1","Expanded Benefits FFS",{"$f":"IFERROR('MMA Rev-Exp Region 6'!$Z$72/'MMA Rev-Exp Region 6'!$Z$9, 0)","v":{"v":0,"d":"$0.00"}},{"$f":"IFERROR('MMA Rev-Exp Region 6'!$AA$72/'MMA Rev-Exp Region 6'!$AA$9, 0)","v":{"v":0,"d":"$0.00"}},{"$f":"IFERROR('MMA Rev-Exp Region 6'!$AB$72/'MMA Rev-Exp Region 6'!$AB$9, 0)","v":{"v":0,"d":"$0.00"}},{"$f":"IFERROR('MMA Rev-Exp Region 6'!$AC$72/'MMA Rev-Exp Region 6'!$AC$9, 0)","v":{"v":0,"d":"$0.00"}},{"$f":"IFERROR('MMA Rev-Exp Region 6'!$AD$72/'MMA Rev-Exp Region 6'!$AD$9, 0)","v":{"v":0,"d":"$0.00"}},{"$f":"IFERROR('MMA Rev-Exp Region 6'!$AE$72/'MMA Rev-Exp Region 6'!$AE$9, 0)","v":{"v":0,"d":"$0.00"}},{"$f":"IFERROR('MMA Rev-Exp Region 6'!$AF$72/'MMA Rev-Exp Region 6'!$AF$9, 0)","v":{"v":0,"d":"$0.00"}},{"$f":"IFERROR('MMA Rev-Exp Region 6'!$AG$72/'MMA Rev-Exp Region 6'!$AG$9, 0)","v":{"v":0,"d":"$0.00"}},{"$f":"IFERROR('MMA Rev-Exp Region 6'!$AH$72/'MMA Rev-Exp Region 6'!$AH$9, 0)","v":{"v":0,"d":"$0.00"}},{"$f":"IFERROR('MMA Rev-Exp Region 6'!$AI$72/'MMA Rev-Exp Region 6'!$AI$9, 0)","v":{"v":0,"d":"$0.00"}},{"$f":"IFERROR('MMA Rev-Exp Region 6'!$AJ$72/'MMA Rev-Exp Region 6'!$AJ$9, 0)","v":{"v":0,"d":"$0.00"}}]
["MMA",null,null,2016,"2016-12-31","Q3","2017-09-30","Region 6","Operating Expense","Medical Benefits Expense","Expanded Benefits","10.2","Expanded benefits Subcapitation",{"$f":"IFERROR('MMA Rev-Exp Region 6'!$Z$73/'MMA Rev-Exp Region 6'!$Z$9, 0)","v":{"v":0,"d":"$0.00"}},{"$f":"IFERROR('MMA Rev-Exp Region 6'!$AA$73/'MMA Rev-Exp Region 6'!$AA$9, 0)","v":{"v":0,"d":"$0.00"}},{"$f":"IFERROR('MMA Rev-Exp Region 6'!$AB$73/'MMA Rev-Exp Region 6'!$AB$9, 0)","v":{"v":0,"d":"$0.00"}},{"$f":"IFERROR('MMA Rev-Exp Region 6'!$AC$73/'MMA Rev-Exp Region 6'!$AC$9, 0)","v":{"v":0,"d":"$0.00"}},{"$f":"IFERROR('MMA Rev-Exp Region 6'!$AD$73/'MMA Rev-Exp Region 6'!$AD$9, 0)","v":{"v":0,"d":"$0.00"}},{"$f":"IFERROR('MMA Rev-Exp Region 6'!$AE$73/'MMA Rev-Exp Region 6'!$AE$9, 0)","v":{"v":0,"d":"$0.00"}},{"$f":"IFERROR('MMA Rev-Exp Region 6'!$AF$73/'MMA Rev-Exp Region 6'!$AF$9, 0)","v":{"v":0,"d":"$0.00"}},{"$f":"IFERROR('MMA Rev-Exp Region 6'!$AG$73/'MMA Rev-Exp Region 6'!$AG$9, 0)","v":{"v":0,"d":"$0.00"}},{"$f":"IFERROR('MMA Rev-Exp Region 6'!$AH$73/'MMA Rev-Exp Region 6'!$AH$9, 0)","v":{"v":0,"d":"$0.00"}},{"$f":"IFERROR('MMA Rev-Exp Region 6'!$AI$73/'MMA Rev-Exp Region 6'!$AI$9, 0)","v":{"v":0,"d":"$0.00"}},{"$f":"IFERROR('MMA Rev-Exp Region 6'!$AJ$73/'MMA Rev-Exp Region 6'!$AJ$9, 0)","v":{"v":0,"d":"$0.00"}}]
["MMA",null,null,2016,"2016-12-31","Q3","2017-09-30","Region 6","Operating Expense","Medical Benefits Expense","Expanded Benefits","10.3","Ending IBNP for Expanded Benefits",{"$f":"IFERROR('MMA Rev-Exp Region 6'!$Z$74/'MMA Rev-Exp Region 6'!$Z$9, 0)","v":{"v":0,"d":"$0.00"}},{"$f":"IFERROR('MMA Rev-Exp Region 6'!$AA$74/'MMA Rev-Exp Region 6'!$AA$9, 0)","v":{"v":0,"d":"$0.00"}},{"$f":"IFERROR('MMA Rev-Exp Region 6'!$AB$74/'MMA Rev-Exp Region 6'!$AB$9, 0)","v":{"v":0,"d":"$0.00"}},{"$f":"IFERROR('MMA Rev-Exp Region 6'!$AC$74/'MMA Rev-Exp Region 6'!$AC$9, 0)","v":{"v":0,"d":"$0.00"}},{"$f":"IFERROR('MMA Rev-Exp Region 6'!$AD$74/'MMA Rev-Exp Region 6'!$AD$9, 0)","v":{"v":0,"d":"$0.00"}},{"$f":"IFERROR('MMA Rev-Exp Region 6'!$AE$74/'MMA Rev-Exp Region 6'!$AE$9, 0)","v":{"v":0,"d":"$0.00"}},{"$f":"IFERROR('MMA Rev-Exp Region 6'!$AF$74/'MMA Rev-Exp Region 6'!$AF$9, 0)","v":{"v":0,"d":"$0.00"}},{"$f":"IFERROR('MMA Rev-Exp Region 6'!$AG$74/'MMA Rev-Exp Region 6'!$AG$9, 0)","v":{"v":0,"d":"$0.00"}},{"$f":"IFERROR('MMA Rev-Exp Region 6'!$AH$74/'MMA Rev-Exp Region 6'!$AH$9, 0)","v":{"v":0,"d":"$0.00"}},{"$f":"IFERROR('MMA Rev-Exp Region 6'!$AI$74/'MMA Rev-Exp Region 6'!$AI$9, 0)","v":{"v":0,"d":"$0.00"}},{"$f":"IFERROR('MMA Rev-Exp Region 6'!$AJ$74/'MMA Rev-Exp Region 6'!$AJ$9, 0)","v":{"v":0,"d":"$0.00"}}]
["MMA",null,null,2016,"2016-12-31","Q3","2017-09-30","Region 6","Operating Expense","Medical Benefits Expense","Expanded Benefits","10.4","Expanded Benefits Settlements",{"$f":"IFERROR('MMA Rev-Exp Region 6'!$Z$75/'MMA Rev-Exp Region 6'!$Z$9, 0)","v":{"v":0,"d":"$0.00"}},{"$f":"IFERROR('MMA Rev-Exp Region 6'!$AA$75/'MMA Rev-Exp Region 6'!$AA$9, 0)","v":{"v":0,"d":"$0.00"}},{"$f":"IFERROR('MMA Rev-Exp Region 6'!$AB$75/'MMA Rev-Exp Region 6'!$AB$9, 0)","v":{"v":0,"d":"$0.00"}},{"$f":"IFERROR('MMA Rev-Exp Region 6'!$AC$75/'MMA Rev-Exp Region 6'!$AC$9, 0)","v":{"v":0,"d":"$0.00"}},{"$f":"IFERROR('MMA Rev-Exp Region 6'!$AD$75/'MMA Rev-Exp Region 6'!$AD$9, 0)","v":{"v":0,"d":"$0.00"}},{"$f":"IFERROR('MMA Rev-Exp Region 6'!$AE$75/'MMA Rev-Exp Region 6'!$AE$9, 0)","v":{"v":0,"d":"$0.00"}},{"$f":"IFERROR('MMA Rev-Exp Region 6'!$AF$75/'MMA Rev-Exp Region 6'!$AF$9, 0)","v":{"v":0,"d":"$0.00"}},{"$f":"IFERROR('MMA Rev-Exp Region 6'!$AG$75/'MMA Rev-Exp Region 6'!$AG$9, 0)","v":{"v":0,"d":"$0.00"}},{"$f":"IFERROR('MMA Rev-Exp Region 6'!$AH$75/'MMA Rev-Exp Region 6'!$AH$9, 0)","v":{"v":0,"d":"$0.00"}},{"$f":"IFERROR('MMA Rev-Exp Region 6'!$AI$75/'MMA Rev-Exp Region 6'!$AI$9, 0)","v":{"v":0,"d":"$0.00"}},{"$f":"IFERROR('MMA Rev-Exp Region 6'!$AJ$75/'MMA Rev-Exp Region 6'!$AJ$9, 0)","v":{"v":0,"d":"$0.00"}}]
["MMA",null,null,2016,"2016-12-31","Q3","2017-09-30","Region 6","Operating Expense","Medical Benefits Expense","Other Medical","11.5","TPL & Fraud/Abuse Recoveries",{"$f":"IFERROR('MMA Rev-Exp Region 6'!$Z$81/'MMA Rev-Exp Region 6'!$Z$9, 0)","v":{"v":0,"d":"$0.00"}},{"$f":"IFERROR('MMA Rev-Exp Region 6'!$AA$81/'MMA Rev-Exp Region 6'!$AA$9, 0)","v":{"v":0,"d":"$0.00"}},{"$f":"IFERROR('MMA Rev-Exp Region 6'!$AB$81/'MMA Rev-Exp Region 6'!$AB$9, 0)","v":{"v":0,"d":"$0.00"}},{"$f":"IFERROR('MMA Rev-Exp Region 6'!$AC$81/'MMA Rev-Exp Region 6'!$AC$9, 0)","v":{"v":0,"d":"$0.00"}},{"$f":"IFERROR('MMA Rev-Exp Region 6'!$AD$81/'MMA Rev-Exp Region 6'!$AD$9, 0)","v":{"v":0,"d":"$0.00"}},{"$f":"IFERROR('MMA Rev-Exp Region 6'!$AE$81/'MMA Rev-Exp Region 6'!$AE$9, 0)","v":{"v":0,"d":"$0.00"}},{"$f":"IFERROR('MMA Rev-Exp Region 6'!$AF$81/'MMA Rev-Exp Region 6'!$AF$9, 0)","v":{"v":0,"d":"$0.00"}},{"$f":"IFERROR('MMA Rev-Exp Region 6'!$AG$81/'MMA Rev-Exp Region 6'!$AG$9, 0)","v":{"v":0,"d":"$0.00"}},{"$f":"IFERROR('MMA Rev-Exp Region 6'!$AH$81/'MMA Rev-Exp Region 6'!$AH$9, 0)","v":{"v":0,"d":"$0.00"}},{"$f":"IFERROR('MMA Rev-Exp Region 6'!$AI$81/'MMA Rev-Exp Region 6'!$AI$9, 0)","v":{"v":0,"d":"$0.00"}},{"$f":"IFERROR('MMA Rev-Exp Region 6'!$AJ$81/'MMA Rev-Exp Region 6'!$AJ$9, 0)","v":{"v":0,"d":"$0.00"}}]
["MMA",null,null,2016,"2016-12-31","Q3","2017-09-30","Region 6","Operating Expense","Medical Benefits Expense","Other Medical","11.6.1","Premium Deficiency Reserve",{"$f":"IFERROR('MMA Rev-Exp Region 6'!$Z$82/'MMA Rev-Exp Region 6'!$Z$9, 0)","v":{"v":0,"d":"$0.00"}},{"$f":"IFERROR('MMA Rev-Exp Region 6'!$AA$82/'MMA Rev-Exp Region 6'!$AA$9, 0)","v":{"v":0,"d":"$0.00"}},{"$f":"IFERROR('MMA Rev-Exp Region 6'!$AB$82/'MMA Rev-Exp Region 6'!$AB$9, 0)","v":{"v":0,"d":"$0.00"}},{"$f":"IFERROR('MMA Rev-Exp Region 6'!$AC$82/'MMA Rev-Exp Region 6'!$AC$9, 0)","v":{"v":0,"d":"$0.00"}},{"$f":"IFERROR('MMA Rev-Exp Region 6'!$AD$82/'MMA Rev-Exp Region 6'!$AD$9, 0)","v":{"v":0,"d":"$0.00"}},{"$f":"IFERROR('MMA Rev-Exp Region 6'!$AE$82/'MMA Rev-Exp Region 6'!$AE$9, 0)","v":{"v":0,"d":"$0.00"}},{"$f":"IFERROR('MMA Rev-Exp Region 6'!$AF$82/'MMA Rev-Exp Region 6'!$AF$9, 0)","v":{"v":0,"d":"$0.00"}},{"$f":"IFERROR('MMA Rev-Exp Region 6'!$AG$82/'MMA Rev-Exp Region 6'!$AG$9, 0)","v":{"v":0,"d":"$0.00"}},{"$f":"IFERROR('MMA Rev-Exp Region 6'!$AH$82/'MMA Rev-Exp Region 6'!$AH$9, 0)","v":{"v":0,"d":"$0.00"}},{"$f":"IFERROR('MMA Rev-Exp Region 6'!$AI$82/'MMA Rev-Exp Region 6'!$AI$9, 0)","v":{"v":0,"d":"$0.00"}},{"$f":"IFERROR('MMA Rev-Exp Region 6'!$AJ$82/'MMA Rev-Exp Region 6'!$AJ$9, 0)","v":{"v":0,"d":"$0.00"}}]
["MMA",null,null,2016,"2016-12-31","Q3","2017-09-30","Region 6","Operating Expense","Medical Benefits Expense","Other Medical","11.8","Reinsurance Premiums",{"$f":"IFERROR('MMA Rev-Exp Region 6'!$Z$84/'MMA Rev-Exp Region 6'!$Z$9, 0)","v":{"v":0,"d":"$0.00"}},{"$f":"IFERROR('MMA Rev-Exp Region 6'!$AA$84/'MMA Rev-Exp Region 6'!$AA$9, 0)","v":{"v":0,"d":"$0.00"}},{"$f":"IFERROR('MMA Rev-Exp Region 6'!$AB$84/'MMA Rev-Exp Region 6'!$AB$9, 0)","v":{"v":0,"d":"$0.00"}},{"$f":"IFERROR('MMA Rev-Exp Region 6'!$AC$84/'MMA Rev-Exp Region 6'!$AC$9, 0)","v":{"v":0,"d":"$0.00"}},{"$f":"IFERROR('MMA Rev-Exp Region 6'!$AD$84/'MMA Rev-Exp Region 6'!$AD$9, 0)","v":{"v":0,"d":"$0.00"}},{"$f":"IFERROR('MMA Rev-Exp Region 6'!$AE$84/'MMA Rev-Exp Region 6'!$AE$9, 0)","v":{"v":0,"d":"$0.00"}},{"$f":"IFERROR('MMA Rev-Exp Region 6'!$AF$84/'MMA Rev-Exp Region 6'!$AF$9, 0)","v":{"v":0,"d":"$0.00"}},{"$f":"IFERROR('MMA Rev-Exp Region 6'!$AG$84/'MMA Rev-Exp Region 6'!$AG$9, 0)","v":{"v":0,"d":"$0.00"}},{"$f":"IFERROR('MMA Rev-Exp Region 6'!$AH$84/'MMA Rev-Exp Region 6'!$AH$9, 0)","v":{"v":0,"d":"$0.00"}},{"$f":"IFERROR('MMA Rev-Exp Region 6'!$AI$84/'MMA Rev-Exp Region 6'!$AI$9, 0)","v":{"v":0,"d":"$0.00"}},{"$f":"IFERROR('MMA Rev-Exp Region 6'!$AJ$84/'MMA Rev-Exp Region 6'!$AJ$9, 0)","v":{"v":0,"d":"$0.00"}}]
["MMA",null,null,2016,"2016-12-31","Q3","2017-09-30","Region 6","Operating Expense","Medical Benefits Expense","Other Medical","11.9","Reinsurance Recoveries",{"$f":"IFERROR('MMA Rev-Exp Region 6'!$Z$85/'MMA Rev-Exp Region 6'!$Z$9, 0)","v":{"v":0,"d":"$0.00"}},{"$f":"IFERROR('MMA Rev-Exp Region 6'!$AA$85/'MMA Rev-Exp Region 6'!$AA$9, 0)","v":{"v":0,"d":"$0.00"}},{"$f":"IFERROR('MMA Rev-Exp Region 6'!$AB$85/'MMA Rev-Exp Region 6'!$AB$9, 0)","v":{"v":0,"d":"$0.00"}},{"$f":"IFERROR('MMA Rev-Exp Region 6'!$AC$85/'MMA Rev-Exp Region 6'!$AC$9, 0)","v":{"v":0,"d":"$0.00"}},{"$f":"IFERROR('MMA Rev-Exp Region 6'!$AD$85/'MMA Rev-Exp Region 6'!$AD$9, 0)","v":{"v":0,"d":"$0.00"}},{"$f":"IFERROR('MMA Rev-Exp Region 6'!$AE$85/'MMA Rev-Exp Region 6'!$AE$9, 0)","v":{"v":0,"d":"$0.00"}},{"$f":"IFERROR('MMA Rev-Exp Region 6'!$AF$85/'MMA Rev-Exp Region 6'!$AF$9, 0)","v":{"v":0,"d":"$0.00"}},{"$f":"IFERROR('MMA Rev-Exp Region 6'!$AG$85/'MMA Rev-Exp Region 6'!$AG$9, 0)","v":{"v":0,"d":"$0.00"}},{"$f":"IFERROR('MMA Rev-Exp Region 6'!$AH$85/'MMA Rev-Exp Region 6'!$AH$9, 0)","v":{"v":0,"d":"$0.00"}},{"$f":"IFERROR('MMA Rev-Exp Region 6'!$AI$85/'MMA Rev-Exp Region 6'!$AI$9, 0)","v":{"v":0,"d":"$0.00"}},{"$f":"IFERROR('MMA Rev-Exp Region 6'!$AJ$85/'MMA Rev-Exp Region 6'!$AJ$9, 0)","v":{"v":0,"d":"$0.00"}}]
["MMA",null,null,2016,"2016-12-31","Q3","2017-09-30","Region 6","Operating Expense","Administrative Expense","Administrative","12.1","Salaries & Benefits",{"$f":"IFERROR('MMA Rev-Exp Region 6'!$Z$90/'MMA Rev-Exp Region 6'!$Z$9, 0)","v":{"v":0,"d":"$0.00"}},{"$f":"IFERROR('MMA Rev-Exp Region 6'!$AA$90/'MMA Rev-Exp Region 6'!$Z$9, 0)","v":{"v":0,"d":"$0.00"}},{"$f":"IFERROR('MMA Rev-Exp Region 6'!$AB$90/'MMA Rev-Exp Region 6'!$Z$9, 0)","v":{"v":0,"d":"$0.00"}}]
["MMA",null,null,2016,"2016-12-31","Q3","2017-09-30","Region 6","Operating Expense","Administrative Expense","Administrative","12.2","Administrative Services",{"$f":"IFERROR('MMA Rev-Exp Region 6'!$Z$91/'MMA Rev-Exp Region 6'!$Z$9, 0)","v":{"v":0,"d":"$0.00"}},{"$f":"IFERROR('MMA Rev-Exp Region 6'!$AA$91/'MMA Rev-Exp Region 6'!$Z$9, 0)","v":{"v":0,"d":"$0.00"}},{"$f":"IFERROR('MMA Rev-Exp Region 6'!$AB$91/'MMA Rev-Exp Region 6'!$Z$9, 0)","v":{"v":0,"d":"$0.00"}}]
["MMA",null,null,2016,"2016-12-31","Q3","2017-09-30","Region 6","Operating Expense","Administrative Expense","Administrative","12.3","Information Systems",{"$f":"IFERROR('MMA Rev-Exp Region 6'!$Z$92/'MMA Rev-Exp Region 6'!$Z$9, 0)","v":{"v":0,"d":"$0.00"}},{"$f":"IFERROR('MMA Rev-Exp Region 6'!$AA$92/'MMA Rev-Exp Region 6'!$Z$9, 0)","v":{"v":0,"d":"$0.00"}},{"$f":"IFERROR('MMA Rev-Exp Region 6'!$AB$92/'MMA Rev-Exp Region 6'!$Z$9, 0)","v":{"v":0,"d":"$0.00"}}]
["MMA",null,null,2016,"2016-12-31","Q3","2017-09-30","Region 6","Operating Expense","Administrative Expense","Administrative","12.4","Marketing Expenses",{"$f":"IFERROR('MMA Rev-Exp Region 6'!$Z$93/'MMA Rev-Exp Region 6'!$Z$9, 0)","v":{"v":0,"d":"$0.00"}},{"$f":"IFERROR('MMA Rev-Exp Region 6'!$AA$93/'MMA Rev-Exp Region 6'!$Z$9, 0)","v":{"v":0,"d":"$0.00"}},{"$f":"IFERROR('MMA Rev-Exp Region 6'!$AB$93/'MMA Rev-Exp Region 6'!$Z$9, 0)","v":{"v":0,"d":"$0.00"}}]
["MMA",null,null,2016,"2016-12-31","Q3","2017-09-30","Region 6","Operating Expense","Administrative Expense","Administrative","12.5","General  Administration",{"$f":"IFERROR('MMA Rev-Exp Region 6'!$Z$94/'MMA Rev-Exp Region 6'!$Z$9, 0)","v":{"v":0,"d":"$0.00"}},{"$f":"IFERROR('MMA Rev-Exp Region 6'!$AA$94/'MMA Rev-Exp Region 6'!$Z$9, 0)","v":{"v":0,"d":"$0.00"}},{"$f":"IFERROR('MMA Rev-Exp Region 6'!$AB$94/'MMA Rev-Exp Region 6'!$Z$9, 0)","v":{"v":0,"d":"$0.00"}}]
["MMA",null,null,2016,"2016-12-31","Q3","2017-09-30","Region 6","Operating Expense","Administrative Expense","Administrative","12.6","Compliance/Regulatory",{"$f":"IFERROR('MMA Rev-Exp Region 6'!$Z$95/'MMA Rev-Exp Region 6'!$Z$9, 0)","v":{"v":0,"d":"$0.00"}},{"$f":"IFERROR('MMA Rev-Exp Region 6'!$AA$95/'MMA Rev-Exp Region 6'!$Z$9, 0)","v":{"v":0,"d":"$0.00"}},{"$f":"IFERROR('MMA Rev-Exp Region 6'!$AB$95/'MMA Rev-Exp Region 6'!$Z$9, 0)","v":{"v":0,"d":"$0.00"}}]
["MMA",null,null,2016,"2016-12-31","Q3","2017-09-30","Region 6","Operating Expense","Taxes & Fees","Taxes & Fees","13.1","State Premium tax",{"$f":"IFERROR('MMA Rev-Exp Region 6'!$Z$97/'MMA Rev-Exp Region 6'!$Z$9, 0)","v":{"v":0,"d":"$0.00"}}]
["MMA",null,null,2016,"2016-12-31","Q3","2017-09-30","Region 6","Operating Expense","Taxes & Fees","Taxes & Fees","13.2","Department of Insurance Assessments",{"$f":"IFERROR('MMA Rev-Exp Region 6'!$Z$98/'MMA Rev-Exp Region 6'!$Z$9, 0)","v":{"v":0,"d":"$0.00"}}]
["MMA",null,null,2016,"2016-12-31","Q3","2017-09-30","Region 6","Operating Expense","Taxes & Fees","Taxes & Fees","13.3","Section 9010 Health Insurance Providers Fee",{"$f":"IFERROR('MMA Rev-Exp Region 6'!$Z$99/'MMA Rev-Exp Region 6'!$Z$9, 0)","v":{"v":0,"d":"$0.00"}}]
["MMA",null,null,2016,"2016-12-31","Q3","2017-09-30","Region 6","Non-Operating Expense","Income Tax Expense","Income Tax Expense","16.0","Income Tax Expense",{"$f":"IFERROR('MMA Rev-Exp Region 6'!$Z$106/'MMA Rev-Exp Region 6'!$Z$9, 0)","v":{"v":0,"d":"$0.00"}}]
["MMA",null,null,2016,"2016-12-31","Q4","2017-12-31","Region 6","Operating Revenue","Capitation","Capitation",1.1,"Capitation",{"$f":"IFERROR('MMA Rev-Exp Region 6'!$AK$11/'MMA Rev-Exp Region 6'!$AK$9, 0)","v":{"v":0,"d":"$0.00"}},{"$f":"IFERROR('MMA Rev-Exp Region 6'!$AL$11/'MMA Rev-Exp Region 6'!$AL$9, 0)","v":{"v":0,"d":"$0.00"}},{"$f":"IFERROR('MMA Rev-Exp Region 6'!$AM$11/'MMA Rev-Exp Region 6'!$AM$9, 0)","v":{"v":0,"d":"$0.00"}},{"$f":"IFERROR('MMA Rev-Exp Region 6'!$AN$11/'MMA Rev-Exp Region 6'!$AN$9, 0)","v":{"v":0,"d":"$0.00"}},{"$f":"IFERROR('MMA Rev-Exp Region 6'!$AO$11/'MMA Rev-Exp Region 6'!$AO$9, 0)","v":{"v":0,"d":"$0.00"}},{"$f":"IFERROR('MMA Rev-Exp Region 6'!$AP$11/'MMA Rev-Exp Region 6'!$AP$9, 0)","v":{"v":0,"d":"$0.00"}},{"$f":"IFERROR('MMA Rev-Exp Region 6'!$AQ$11/'MMA Rev-Exp Region 6'!$AQ$9, 0)","v":{"v":0,"d":"$0.00"}},{"$f":"IFERROR('MMA Rev-Exp Region 6'!$AR$11/'MMA Rev-Exp Region 6'!$AR$9, 0)","v":{"v":0,"d":"$0.00"}},{"$f":"IFERROR('MMA Rev-Exp Region 6'!$AS$11/'MMA Rev-Exp Region 6'!$AS$9, 0)","v":{"v":0,"d":"$0.00"}},{"$f":"IFERROR('MMA Rev-Exp Region 6'!$AT$11/'MMA Rev-Exp Region 6'!$AT$9, 0)","v":{"v":0,"d":"$0.00"}},{"$f":"IFERROR('MMA Rev-Exp Region 6'!$AU$11/'MMA Rev-Exp Region 6'!$AU$9, 0)","v":{"v":0,"d":"$0.00"}}]
["MMA",null,null,2016,"2016-12-31","Q4","2017-12-31","Region 6","Operating Revenue","Kick Payments","Kick Payments - Transplant",1.2,"Transplant Kick Payments",{"$f":"IFERROR('MMA Rev-Exp Region 6'!$AK$12/'MMA Rev-Exp Region 6'!$AK$9, 0)","v":{"v":0,"d":"$0.00"}},{"$f":"IFERROR('MMA Rev-Exp Region 6'!$AL$12/'MMA Rev-Exp Region 6'!$AL$9, 0)","v":{"v":0,"d":"$0.00"}},{"$f":"IFERROR('MMA Rev-Exp Region 6'!$AM$12/'MMA Rev-Exp Region 6'!$AM$9, 0)","v":{"v":0,"d":"$0.00"}},{"$f":"IFERROR('MMA Rev-Exp Region 6'!$AN$12/'MMA Rev-Exp Region 6'!$AN$9, 0)","v":{"v":0,"d":"$0.00"}},{"$f":"IFERROR('MMA Rev-Exp Region 6'!$AO$12/'MMA Rev-Exp Region 6'!$AO$9, 0)","v":{"v":0,"d":"$0.00"}},{"$f":"IFERROR('MMA Rev-Exp Region 6'!$AP$12/'MMA Rev-Exp Region 6'!$AP$9, 0)","v":{"v":0,"d":"$0.00"}},{"$f":"IFERROR('MMA Rev-Exp Region 6'!$AQ$12/'MMA Rev-Exp Region 6'!$AQ$9, 0)","v":{"v":0,"d":"$0.00"}},{"$f":"IFERROR('MMA Rev-Exp Region 6'!$AR$12/'MMA Rev-Exp Region 6'!$AR$9, 0)","v":{"v":0,"d":"$0.00"}},{"$f":"IFERROR('MMA Rev-Exp Region 6'!$AS$12/'MMA Rev-Exp Region 6'!$AS$9, 0)","v":{"v":0,"d":"$0.00"}},{"$f":"IFERROR('MMA Rev-Exp Region 6'!$AT$12/'MMA Rev-Exp Region 6'!$AT$9, 0)","v":{"v":0,"d":"$0.00"}},{"$f":"IFERROR('MMA Rev-Exp Region 6'!$AU$12/'MMA Rev-Exp Region 6'!$AU$9, 0)","v":{"v":0,"d":"$0.00"}}]
["MMA",null,null,2016,"2016-12-31","Q4","2017-12-31","Region 6","Operating Revenue","Kick Payments","Kick Payments - Hep C","1.3","Hepatitis C Kick Payments",{"$f":"IFERROR('MMA Rev-Exp Region 6'!$AK$13/'MMA Rev-Exp Region 6'!$AK$9, 0)","v":{"v":0,"d":"$0.00"}},{"$f":"IFERROR('MMA Rev-Exp Region 6'!$AL$13/'MMA Rev-Exp Region 6'!$AL$9, 0)","v":{"v":0,"d":"$0.00"}},{"$f":"IFERROR('MMA Rev-Exp Region 6'!$AM$13/'MMA Rev-Exp Region 6'!$AM$9, 0)","v":{"v":0,"d":"$0.00"}},{"$f":"IFERROR('MMA Rev-Exp Region 6'!$AN$13/'MMA Rev-Exp Region 6'!$AN$9, 0)","v":{"v":0,"d":"$0.00"}},{"$f":"IFERROR('MMA Rev-Exp Region 6'!$AO$13/'MMA Rev-Exp Region 6'!$AO$9, 0)","v":{"v":0,"d":"$0.00"}},{"$f":"IFERROR('MMA Rev-Exp Region 6'!$AP$13/'MMA Rev-Exp Region 6'!$AP$9, 0)","v":{"v":0,"d":"$0.00"}},{"$f":"IFERROR('MMA Rev-Exp Region 6'!$AQ$13/'MMA Rev-Exp Region 6'!$AQ$9, 0)","v":{"v":0,"d":"$0.00"}},{"$f":"IFERROR('MMA Rev-Exp Region 6'!$AR$13/'MMA Rev-Exp Region 6'!$AR$9, 0)","v":{"v":0,"d":"$0.00"}},{"$f":"IFERROR('MMA Rev-Exp Region 6'!$AS$13/'MMA Rev-Exp Region 6'!$AS$9, 0)","v":{"v":0,"d":"$0.00"}},{"$f":"IFERROR('MMA Rev-Exp Region 6'!$AT$13/'MMA Rev-Exp Region 6'!$AT$9, 0)","v":{"v":0,"d":"$0.00"}},{"$f":"IFERROR('MMA Rev-Exp Region 6'!$AU$13/'MMA Rev-Exp Region 6'!$AU$9, 0)","v":{"v":0,"d":"$0.00"}}]
["MMA",null,null,2016,"2016-12-31","Q4","2017-12-31","Region 6","Operating Revenue","Kick Payments","Kick Payments - Maternity","1.4.1","Maternity Kick Payments",{"$f":"IFERROR('MMA Rev-Exp Region 6'!$AK$14/'MMA Rev-Exp Region 6'!$AK$9, 0)","v":{"v":0,"d":"$0.00"}},{"$f":"IFERROR('MMA Rev-Exp Region 6'!$AL$14/'MMA Rev-Exp Region 6'!$AL$9, 0)","v":{"v":0,"d":"$0.00"}},{"$f":"IFERROR('MMA Rev-Exp Region 6'!$AM$14/'MMA Rev-Exp Region 6'!$AM$9, 0)","v":{"v":0,"d":"$0.00"}},{"$f":"IFERROR('MMA Rev-Exp Region 6'!$AN$14/'MMA Rev-Exp Region 6'!$AN$9, 0)","v":{"v":0,"d":"$0.00"}},{"$f":"IFERROR('MMA Rev-Exp Region 6'!$AO$14/'MMA Rev-Exp Region 6'!$AO$9, 0)","v":{"v":0,"d":"$0.00"}},{"$f":"IFERROR('MMA Rev-Exp Region 6'!$AP$14/'MMA Rev-Exp Region 6'!$AP$9, 0)","v":{"v":0,"d":"$0.00"}},{"$f":"IFERROR('MMA Rev-Exp Region 6'!$AQ$14/'MMA Rev-Exp Region 6'!$AQ$9, 0)","v":{"v":0,"d":"$0.00"}},{"$f":"IFERROR('MMA Rev-Exp Region 6'!$AR$14/'MMA Rev-Exp Region 6'!$AR$9, 0)","v":{"v":0,"d":"$0.00"}},{"$f":"IFERROR('MMA Rev-Exp Region 6'!$AS$14/'MMA Rev-Exp Region 6'!$AS$9, 0)","v":{"v":0,"d":"$0.00"}},{"$f":"IFERROR('MMA Rev-Exp Region 6'!$AT$14/'MMA Rev-Exp Region 6'!$AT$9, 0)","v":{"v":0,"d":"$0.00"}},{"$f":"IFERROR('MMA Rev-Exp Region 6'!$AU$14/'MMA Rev-Exp Region 6'!$AU$9, 0)","v":{"v":0,"d":"$0.00"}}]
["MMA",null,null,2016,"2016-12-31","Q4","2017-12-31","Region 6","Operating Revenue","Other Revenue","Other Revenue - 9010","1.5","ACA § 9010 related payments",{"$f":"IFERROR('MMA Rev-Exp Region 6'!$AK$15/'MMA Rev-Exp Region 6'!$AK$9, 0)","v":{"v":0,"d":"$0.00"}},{"$f":"IFERROR('MMA Rev-Exp Region 6'!$AL$15/'MMA Rev-Exp Region 6'!$AL$9, 0)","v":{"v":0,"d":"$0.00"}},{"$f":"IFERROR('MMA Rev-Exp Region 6'!$AM$15/'MMA Rev-Exp Region 6'!$AM$9, 0)","v":{"v":0,"d":"$0.00"}},{"$f":"IFERROR('MMA Rev-Exp Region 6'!$AN$15/'MMA Rev-Exp Region 6'!$AN$9, 0)","v":{"v":0,"d":"$0.00"}},{"$f":"IFERROR('MMA Rev-Exp Region 6'!$AO$15/'MMA Rev-Exp Region 6'!$AO$9, 0)","v":{"v":0,"d":"$0.00"}},{"$f":"IFERROR('MMA Rev-Exp Region 6'!$AP$15/'MMA Rev-Exp Region 6'!$AP$9, 0)","v":{"v":0,"d":"$0.00"}},{"$f":"IFERROR('MMA Rev-Exp Region 6'!$AQ$15/'MMA Rev-Exp Region 6'!$AQ$9, 0)","v":{"v":0,"d":"$0.00"}},{"$f":"IFERROR('MMA Rev-Exp Region 6'!$AR$15/'MMA Rev-Exp Region 6'!$AR$9, 0)","v":{"v":0,"d":"$0.00"}},{"$f":"IFERROR('MMA Rev-Exp Region 6'!$AS$15/'MMA Rev-Exp Region 6'!$AS$9, 0)","v":{"v":0,"d":"$0.00"}},{"$f":"IFERROR('MMA Rev-Exp Region 6'!$AT$15/'MMA Rev-Exp Region 6'!$AT$9, 0)","v":{"v":0,"d":"$0.00"}},{"$f":"IFERROR('MMA Rev-Exp Region 6'!$AU$15/'MMA Rev-Exp Region 6'!$AU$9, 0)","v":{"v":0,"d":"$0.00"}}]
["MMA",null,null,2016,"2016-12-31","Q4","2017-12-31","Region 6","Operating Revenue","Other Revenue","Other Revenue","1.6","Other Revenue",{"$f":"IFERROR('MMA Rev-Exp Region 6'!$AK$16/'MMA Rev-Exp Region 6'!$AK$9, 0)","v":{"v":0,"d":"$0.00"}},{"$f":"IFERROR('MMA Rev-Exp Region 6'!$AL$16/'MMA Rev-Exp Region 6'!$AL$9, 0)","v":{"v":0,"d":"$0.00"}},{"$f":"IFERROR('MMA Rev-Exp Region 6'!$AM$16/'MMA Rev-Exp Region 6'!$AM$9, 0)","v":{"v":0,"d":"$0.00"}},{"$f":"IFERROR('MMA Rev-Exp Region 6'!$AN$16/'MMA Rev-Exp Region 6'!$AN$9, 0)","v":{"v":0,"d":"$0.00"}},{"$f":"IFERROR('MMA Rev-Exp Region 6'!$AO$16/'MMA Rev-Exp Region 6'!$AO$9, 0)","v":{"v":0,"d":"$0.00"}},{"$f":"IFERROR('MMA Rev-Exp Region 6'!$AP$16/'MMA Rev-Exp Region 6'!$AP$9, 0)","v":{"v":0,"d":"$0.00"}},{"$f":"IFERROR('MMA Rev-Exp Region 6'!$AQ$16/'MMA Rev-Exp Region 6'!$AQ$9, 0)","v":{"v":0,"d":"$0.00"}},{"$f":"IFERROR('MMA Rev-Exp Region 6'!$AR$16/'MMA Rev-Exp Region 6'!$AR$9, 0)","v":{"v":0,"d":"$0.00"}},{"$f":"IFERROR('MMA Rev-Exp Region 6'!$AS$16/'MMA Rev-Exp Region 6'!$AS$9, 0)","v":{"v":0,"d":"$0.00"}},{"$f":"IFERROR('MMA Rev-Exp Region 6'!$AT$16/'MMA Rev-Exp Region 6'!$AT$9, 0)","v":{"v":0,"d":"$0.00"}},{"$f":"IFERROR('MMA Rev-Exp Region 6'!$AU$16/'MMA Rev-Exp Region 6'!$AU$9, 0)","v":{"v":0,"d":"$0.00"}}]
["MMA",null,null,2016,"2016-12-31","Q4","2017-12-31","Region 6","Operating Expense","Medical Benefits Expense","Hospital Services",2.1,"Inpatient FFS",{"$f":"IFERROR('MMA Rev-Exp Region 6'!$AK$20/'MMA Rev-Exp Region 6'!$AK$9, 0)","v":{"v":0,"d":"$0.00"}},{"$f":"IFERROR('MMA Rev-Exp Region 6'!$AL$20/'MMA Rev-Exp Region 6'!$AL$9, 0)","v":{"v":0,"d":"$0.00"}},{"$f":"IFERROR('MMA Rev-Exp Region 6'!$AM$20/'MMA Rev-Exp Region 6'!$AM$9, 0)","v":{"v":0,"d":"$0.00"}},{"$f":"IFERROR('MMA Rev-Exp Region 6'!$AN$20/'MMA Rev-Exp Region 6'!$AN$9, 0)","v":{"v":0,"d":"$0.00"}},{"$f":"IFERROR('MMA Rev-Exp Region 6'!$AO$20/'MMA Rev-Exp Region 6'!$AO$9, 0)","v":{"v":0,"d":"$0.00"}},{"$f":"IFERROR('MMA Rev-Exp Region 6'!$AP$20/'MMA Rev-Exp Region 6'!$AP$9, 0)","v":{"v":0,"d":"$0.00"}},{"$f":"IFERROR('MMA Rev-Exp Region 6'!$AQ$20/'MMA Rev-Exp Region 6'!$AQ$9, 0)","v":{"v":0,"d":"$0.00"}},{"$f":"IFERROR('MMA Rev-Exp Region 6'!$AR$20/'MMA Rev-Exp Region 6'!$AR$9, 0)","v":{"v":0,"d":"$0.00"}},{"$f":"IFERROR('MMA Rev-Exp Region 6'!$AS$20/'MMA Rev-Exp Region 6'!$AS$9, 0)","v":{"v":0,"d":"$0.00"}},{"$f":"IFERROR('MMA Rev-Exp Region 6'!$AT$20/'MMA Rev-Exp Region 6'!$AT$9, 0)","v":{"v":0,"d":"$0.00"}},{"$f":"IFERROR('MMA Rev-Exp Region 6'!$AU$20/'MMA Rev-Exp Region 6'!$AU$9, 0)","v":{"v":0,"d":"$0.00"}}]
["MMA",null,null,2016,"2016-12-31","Q4","2017-12-31","Region 6","Operating Expense","Medical Benefits Expense","Hospital Services",2.2,"Ending IBNP for Inpatient Hospital Services",{"$f":"IFERROR('MMA Rev-Exp Region 6'!$AK$21/'MMA Rev-Exp Region 6'!$AK$9, 0)","v":{"v":0,"d":"$0.00"}},{"$f":"IFERROR('MMA Rev-Exp Region 6'!$AL$21/'MMA Rev-Exp Region 6'!$AL$9, 0)","v":{"v":0,"d":"$0.00"}},{"$f":"IFERROR('MMA Rev-Exp Region 6'!$AM$21/'MMA Rev-Exp Region 6'!$AM$9, 0)","v":{"v":0,"d":"$0.00"}},{"$f":"IFERROR('MMA Rev-Exp Region 6'!$AN$21/'MMA Rev-Exp Region 6'!$AN$9, 0)","v":{"v":0,"d":"$0.00"}},{"$f":"IFERROR('MMA Rev-Exp Region 6'!$AO$21/'MMA Rev-Exp Region 6'!$AO$9, 0)","v":{"v":0,"d":"$0.00"}},{"$f":"IFERROR('MMA Rev-Exp Region 6'!$AP$21/'MMA Rev-Exp Region 6'!$AP$9, 0)","v":{"v":0,"d":"$0.00"}},{"$f":"IFERROR('MMA Rev-Exp Region 6'!$AQ$21/'MMA Rev-Exp Region 6'!$AQ$9, 0)","v":{"v":0,"d":"$0.00"}},{"$f":"IFERROR('MMA Rev-Exp Region 6'!$AR$21/'MMA Rev-Exp Region 6'!$AR$9, 0)","v":{"v":0,"d":"$0.00"}},{"$f":"IFERROR('MMA Rev-Exp Region 6'!$AS$21/'MMA Rev-Exp Region 6'!$AS$9, 0)","v":{"v":0,"d":"$0.00"}},{"$f":"IFERROR('MMA Rev-Exp Region 6'!$AT$21/'MMA Rev-Exp Region 6'!$AT$9, 0)","v":{"v":0,"d":"$0.00"}},{"$f":"IFERROR('MMA Rev-Exp Region 6'!$AU$21/'MMA Rev-Exp Region 6'!$AU$9, 0)","v":{"v":0,"d":"$0.00"}}]
["MMA",null,null,2016,"2016-12-31","Q4","2017-12-31","Region 6","Operating Expense","Medical Benefits Expense","Hospital Services",2.3,"Outpatient FFS: ER",{"$f":"IFERROR('MMA Rev-Exp Region 6'!$AK$22/'MMA Rev-Exp Region 6'!$AK$9, 0)","v":{"v":0,"d":"$0.00"}},{"$f":"IFERROR('MMA Rev-Exp Region 6'!$AL$22/'MMA Rev-Exp Region 6'!$AL$9, 0)","v":{"v":0,"d":"$0.00"}},{"$f":"IFERROR('MMA Rev-Exp Region 6'!$AM$22/'MMA Rev-Exp Region 6'!$AM$9, 0)","v":{"v":0,"d":"$0.00"}},{"$f":"IFERROR('MMA Rev-Exp Region 6'!$AN$22/'MMA Rev-Exp Region 6'!$AN$9, 0)","v":{"v":0,"d":"$0.00"}},{"$f":"IFERROR('MMA Rev-Exp Region 6'!$AO$22/'MMA Rev-Exp Region 6'!$AO$9, 0)","v":{"v":0,"d":"$0.00"}},{"$f":"IFERROR('MMA Rev-Exp Region 6'!$AP$22/'MMA Rev-Exp Region 6'!$AP$9, 0)","v":{"v":0,"d":"$0.00"}},{"$f":"IFERROR('MMA Rev-Exp Region 6'!$AQ$22/'MMA Rev-Exp Region 6'!$AQ$9, 0)","v":{"v":0,"d":"$0.00"}},{"$f":"IFERROR('MMA Rev-Exp Region 6'!$AR$22/'MMA Rev-Exp Region 6'!$AR$9, 0)","v":{"v":0,"d":"$0.00"}},{"$f":"IFERROR('MMA Rev-Exp Region 6'!$AS$22/'MMA Rev-Exp Region 6'!$AS$9, 0)","v":{"v":0,"d":"$0.00"}},{"$f":"IFERROR('MMA Rev-Exp Region 6'!$AT$22/'MMA Rev-Exp Region 6'!$AT$9, 0)","v":{"v":0,"d":"$0.00"}},{"$f":"IFERROR('MMA Rev-Exp Region 6'!$AU$22/'MMA Rev-Exp Region 6'!$AU$9, 0)","v":{"v":0,"d":"$0.00"}}]
["MMA",null,null,2016,"2016-12-31","Q4","2017-12-31","Region 6","Operating Expense","Medical Benefits Expense","Hospital Services",2.4,"Outpatient FFS: Other than ER ",{"$f":"IFERROR('MMA Rev-Exp Region 6'!$AK$23/'MMA Rev-Exp Region 6'!$AK$9, 0)","v":{"v":0,"d":"$0.00"}},{"$f":"IFERROR('MMA Rev-Exp Region 6'!$AL$23/'MMA Rev-Exp Region 6'!$AL$9, 0)","v":{"v":0,"d":"$0.00"}},{"$f":"IFERROR('MMA Rev-Exp Region 6'!$AM$23/'MMA Rev-Exp Region 6'!$AM$9, 0)","v":{"v":0,"d":"$0.00"}},{"$f":"IFERROR('MMA Rev-Exp Region 6'!$AN$23/'MMA Rev-Exp Region 6'!$AN$9, 0)","v":{"v":0,"d":"$0.00"}},{"$f":"IFERROR('MMA Rev-Exp Region 6'!$AO$23/'MMA Rev-Exp Region 6'!$AO$9, 0)","v":{"v":0,"d":"$0.00"}},{"$f":"IFERROR('MMA Rev-Exp Region 6'!$AP$23/'MMA Rev-Exp Region 6'!$AP$9, 0)","v":{"v":0,"d":"$0.00"}},{"$f":"IFERROR('MMA Rev-Exp Region 6'!$AQ$23/'MMA Rev-Exp Region 6'!$AQ$9, 0)","v":{"v":0,"d":"$0.00"}},{"$f":"IFERROR('MMA Rev-Exp Region 6'!$AR$23/'MMA Rev-Exp Region 6'!$AR$9, 0)","v":{"v":0,"d":"$0.00"}},{"$f":"IFERROR('MMA Rev-Exp Region 6'!$AS$23/'MMA Rev-Exp Region 6'!$AS$9, 0)","v":{"v":0,"d":"$0.00"}},{"$f":"IFERROR('MMA Rev-Exp Region 6'!$AT$23/'MMA Rev-Exp Region 6'!$AT$9, 0)","v":{"v":0,"d":"$0.00"}},{"$f":"IFERROR('MMA Rev-Exp Region 6'!$AU$23/'MMA Rev-Exp Region 6'!$AU$9, 0)","v":{"v":0,"d":"$0.00"}}]
["MMA",null,null,2016,"2016-12-31","Q4","2017-12-31","Region 6","Operating Expense","Medical Benefits Expense","Hospital Services",2.5,"Ending IBNP for Outpatient Hospital Services",{"$f":"IFERROR('MMA Rev-Exp Region 6'!$AK$24/'MMA Rev-Exp Region 6'!$AK$9, 0)","v":{"v":0,"d":"$0.00"}},{"$f":"IFERROR('MMA Rev-Exp Region 6'!$AL$24/'MMA Rev-Exp Region 6'!$AL$9, 0)","v":{"v":0,"d":"$0.00"}},{"$f":"IFERROR('MMA Rev-Exp Region 6'!$AM$24/'MMA Rev-Exp Region 6'!$AM$9, 0)","v":{"v":0,"d":"$0.00"}},{"$f":"IFERROR('MMA Rev-Exp Region 6'!$AN$24/'MMA Rev-Exp Region 6'!$AN$9, 0)","v":{"v":0,"d":"$0.00"}},{"$f":"IFERROR('MMA Rev-Exp Region 6'!$AO$24/'MMA Rev-Exp Region 6'!$AO$9, 0)","v":{"v":0,"d":"$0.00"}},{"$f":"IFERROR('MMA Rev-Exp Region 6'!$AP$24/'MMA Rev-Exp Region 6'!$AP$9, 0)","v":{"v":0,"d":"$0.00"}},{"$f":"IFERROR('MMA Rev-Exp Region 6'!$AQ$24/'MMA Rev-Exp Region 6'!$AQ$9, 0)","v":{"v":0,"d":"$0.00"}},{"$f":"IFERROR('MMA Rev-Exp Region 6'!$AR$24/'MMA Rev-Exp Region 6'!$AR$9, 0)","v":{"v":0,"d":"$0.00"}},{"$f":"IFERROR('MMA Rev-Exp Region 6'!$AS$24/'MMA Rev-Exp Region 6'!$AS$9, 0)","v":{"v":0,"d":"$0.00"}},{"$f":"IFERROR('MMA Rev-Exp Region 6'!$AT$24/'MMA Rev-Exp Region 6'!$AT$9, 0)","v":{"v":0,"d":"$0.00"}},{"$f":"IFERROR('MMA Rev-Exp Region 6'!$AU$24/'MMA Rev-Exp Region 6'!$AU$9, 0)","v":{"v":0,"d":"$0.00"}}]
["MMA",null,null,2016,"2016-12-31","Q4","2017-12-31","Region 6","Operating Expense","Medical Benefits Expense","Hospital Services","2.6","Subcapitated Hospital Services",{"$f":"IFERROR('MMA Rev-Exp Region 6'!$AK$25/'MMA Rev-Exp Region 6'!$AK$9, 0)","v":{"v":0,"d":"$0.00"}},{"$f":"IFERROR('MMA Rev-Exp Region 6'!$AL$25/'MMA Rev-Exp Region 6'!$AL$9, 0)","v":{"v":0,"d":"$0.00"}},{"$f":"IFERROR('MMA Rev-Exp Region 6'!$AM$25/'MMA Rev-Exp Region 6'!$AM$9, 0)","v":{"v":0,"d":"$0.00"}},{"$f":"IFERROR('MMA Rev-Exp Region 6'!$AN$25/'MMA Rev-Exp Region 6'!$AN$9, 0)","v":{"v":0,"d":"$0.00"}},{"$f":"IFERROR('MMA Rev-Exp Region 6'!$AO$25/'MMA Rev-Exp Region 6'!$AO$9, 0)","v":{"v":0,"d":"$0.00"}},{"$f":"IFERROR('MMA Rev-Exp Region 6'!$AP$25/'MMA Rev-Exp Region 6'!$AP$9, 0)","v":{"v":0,"d":"$0.00"}},{"$f":"IFERROR('MMA Rev-Exp Region 6'!$AQ$25/'MMA Rev-Exp Region 6'!$AQ$9, 0)","v":{"v":0,"d":"$0.00"}},{"$f":"IFERROR('MMA Rev-Exp Region 6'!$AR$25/'MMA Rev-Exp Region 6'!$AR$9, 0)","v":{"v":0,"d":"$0.00"}},{"$f":"IFERROR('MMA Rev-Exp Region 6'!$AS$25/'MMA Rev-Exp Region 6'!$AS$9, 0)","v":{"v":0,"d":"$0.00"}},{"$f":"IFERROR('MMA Rev-Exp Region 6'!$AT$25/'MMA Rev-Exp Region 6'!$AT$9, 0)","v":{"v":0,"d":"$0.00"}},{"$f":"IFERROR('MMA Rev-Exp Region 6'!$AU$25/'MMA Rev-Exp Region 6'!$AU$9, 0)","v":{"v":0,"d":"$0.00"}}]
["MMA",null,null,2016,"2016-12-31","Q4","2017-12-31","Region 6","Operating Expense","Medical Benefits Expense","Hospital Services","2.7","Hospital Settlements",{"$f":"IFERROR('MMA Rev-Exp Region 6'!$AK$26/'MMA Rev-Exp Region 6'!$AK$9, 0)","v":{"v":0,"d":"$0.00"}},{"$f":"IFERROR('MMA Rev-Exp Region 6'!$AL$26/'MMA Rev-Exp Region 6'!$AL$9, 0)","v":{"v":0,"d":"$0.00"}},{"$f":"IFERROR('MMA Rev-Exp Region 6'!$AM$26/'MMA Rev-Exp Region 6'!$AM$9, 0)","v":{"v":0,"d":"$0.00"}},{"$f":"IFERROR('MMA Rev-Exp Region 6'!$AN$26/'MMA Rev-Exp Region 6'!$AN$9, 0)","v":{"v":0,"d":"$0.00"}},{"$f":"IFERROR('MMA Rev-Exp Region 6'!$AO$26/'MMA Rev-Exp Region 6'!$AO$9, 0)","v":{"v":0,"d":"$0.00"}},{"$f":"IFERROR('MMA Rev-Exp Region 6'!$AP$26/'MMA Rev-Exp Region 6'!$AP$9, 0)","v":{"v":0,"d":"$0.00"}},{"$f":"IFERROR('MMA Rev-Exp Region 6'!$AQ$26/'MMA Rev-Exp Region 6'!$AQ$9, 0)","v":{"v":0,"d":"$0.00"}},{"$f":"IFERROR('MMA Rev-Exp Region 6'!$AR$26/'MMA Rev-Exp Region 6'!$AR$9, 0)","v":{"v":0,"d":"$0.00"}},{"$f":"IFERROR('MMA Rev-Exp Region 6'!$AS$26/'MMA Rev-Exp Region 6'!$AS$9, 0)","v":{"v":0,"d":"$0.00"}},{"$f":"IFERROR('MMA Rev-Exp Region 6'!$AT$26/'MMA Rev-Exp Region 6'!$AT$9, 0)","v":{"v":0,"d":"$0.00"}},{"$f":"IFERROR('MMA Rev-Exp Region 6'!$AU$26/'MMA Rev-Exp Region 6'!$AU$9, 0)","v":{"v":0,"d":"$0.00"}}]
["MMA",null,null,2016,"2016-12-31","Q4","2017-12-31","Region 6","Operating Expense","Medical Benefits Expense","Hospital Services","2.7.1","Transplant Services",{"$f":"IFERROR('MMA Rev-Exp Region 6'!$AK$27/'MMA Rev-Exp Region 6'!$AK$9, 0)","v":{"v":0,"d":"$0.00"}},{"$f":"IFERROR('MMA Rev-Exp Region 6'!$AL$27/'MMA Rev-Exp Region 6'!$AL$9, 0)","v":{"v":0,"d":"$0.00"}},{"$f":"IFERROR('MMA Rev-Exp Region 6'!$AM$27/'MMA Rev-Exp Region 6'!$AM$9, 0)","v":{"v":0,"d":"$0.00"}},{"$f":"IFERROR('MMA Rev-Exp Region 6'!$AN$27/'MMA Rev-Exp Region 6'!$AN$9, 0)","v":{"v":0,"d":"$0.00"}},{"$f":"IFERROR('MMA Rev-Exp Region 6'!$AO$27/'MMA Rev-Exp Region 6'!$AO$9, 0)","v":{"v":0,"d":"$0.00"}},{"$f":"IFERROR('MMA Rev-Exp Region 6'!$AP$27/'MMA Rev-Exp Region 6'!$AP$9, 0)","v":{"v":0,"d":"$0.00"}},{"$f":"IFERROR('MMA Rev-Exp Region 6'!$AQ$27/'MMA Rev-Exp Region 6'!$AQ$9, 0)","v":{"v":0,"d":"$0.00"}},{"$f":"IFERROR('MMA Rev-Exp Region 6'!$AR$27/'MMA Rev-Exp Region 6'!$AR$9, 0)","v":{"v":0,"d":"$0.00"}},{"$f":"IFERROR('MMA Rev-Exp Region 6'!$AS$27/'MMA Rev-Exp Region 6'!$AS$9, 0)","v":{"v":0,"d":"$0.00"}},{"$f":"IFERROR('MMA Rev-Exp Region 6'!$AT$27/'MMA Rev-Exp Region 6'!$AT$9, 0)","v":{"v":0,"d":"$0.00"}},{"$f":"IFERROR('MMA Rev-Exp Region 6'!$AU$27/'MMA Rev-Exp Region 6'!$AU$9, 0)","v":{"v":0,"d":"$0.00"}}]
["MMA",null,null,2016,"2016-12-31","Q4","2017-12-31","Region 6","Operating Expense","Medical Benefits Expense","Professional Services",3.1,"Primary Care FFS",{"$f":"IFERROR('MMA Rev-Exp Region 6'!$AK$29/'MMA Rev-Exp Region 6'!$AK$9, 0)","v":{"v":0,"d":"$0.00"}},{"$f":"IFERROR('MMA Rev-Exp Region 6'!$AL$29/'MMA Rev-Exp Region 6'!$AL$9, 0)","v":{"v":0,"d":"$0.00"}},{"$f":"IFERROR('MMA Rev-Exp Region 6'!$AM$29/'MMA Rev-Exp Region 6'!$AM$9, 0)","v":{"v":0,"d":"$0.00"}},{"$f":"IFERROR('MMA Rev-Exp Region 6'!$AN$29/'MMA Rev-Exp Region 6'!$AN$9, 0)","v":{"v":0,"d":"$0.00"}},{"$f":"IFERROR('MMA Rev-Exp Region 6'!$AO$29/'MMA Rev-Exp Region 6'!$AO$9, 0)","v":{"v":0,"d":"$0.00"}},{"$f":"IFERROR('MMA Rev-Exp Region 6'!$AP$29/'MMA Rev-Exp Region 6'!$AP$9, 0)","v":{"v":0,"d":"$0.00"}},{"$f":"IFERROR('MMA Rev-Exp Region 6'!$AQ$29/'MMA Rev-Exp Region 6'!$AQ$9, 0)","v":{"v":0,"d":"$0.00"}},{"$f":"IFERROR('MMA Rev-Exp Region 6'!$AR$29/'MMA Rev-Exp Region 6'!$AR$9, 0)","v":{"v":0,"d":"$0.00"}},{"$f":"IFERROR('MMA Rev-Exp Region 6'!$AS$29/'MMA Rev-Exp Region 6'!$AS$9, 0)","v":{"v":0,"d":"$0.00"}},{"$f":"IFERROR('MMA Rev-Exp Region 6'!$AT$29/'MMA Rev-Exp Region 6'!$AT$9, 0)","v":{"v":0,"d":"$0.00"}},{"$f":"IFERROR('MMA Rev-Exp Region 6'!$AU$29/'MMA Rev-Exp Region 6'!$AU$9, 0)","v":{"v":0,"d":"$0.00"}}]
["MMA",null,null,2016,"2016-12-31","Q4","2017-12-31","Region 6","Operating Expense","Medical Benefits Expense","Professional Services",3.2,"Specialty Care FFS",{"$f":"IFERROR('MMA Rev-Exp Region 6'!$AK$30/'MMA Rev-Exp Region 6'!$AK$9, 0)","v":{"v":0,"d":"$0.00"}},{"$f":"IFERROR('MMA Rev-Exp Region 6'!$AL$30/'MMA Rev-Exp Region 6'!$AL$9, 0)","v":{"v":0,"d":"$0.00"}},{"$f":"IFERROR('MMA Rev-Exp Region 6'!$AM$30/'MMA Rev-Exp Region 6'!$AM$9, 0)","v":{"v":0,"d":"$0.00"}},{"$f":"IFERROR('MMA Rev-Exp Region 6'!$AN$30/'MMA Rev-Exp Region 6'!$AN$9, 0)","v":{"v":0,"d":"$0.00"}},{"$f":"IFERROR('MMA Rev-Exp Region 6'!$AO$30/'MMA Rev-Exp Region 6'!$AO$9, 0)","v":{"v":0,"d":"$0.00"}},{"$f":"IFERROR('MMA Rev-Exp Region 6'!$AP$30/'MMA Rev-Exp Region 6'!$AP$9, 0)","v":{"v":0,"d":"$0.00"}},{"$f":"IFERROR('MMA Rev-Exp Region 6'!$AQ$30/'MMA Rev-Exp Region 6'!$AQ$9, 0)","v":{"v":0,"d":"$0.00"}},{"$f":"IFERROR('MMA Rev-Exp Region 6'!$AR$30/'MMA Rev-Exp Region 6'!$AR$9, 0)","v":{"v":0,"d":"$0.00"}},{"$f":"IFERROR('MMA Rev-Exp Region 6'!$AS$30/'MMA Rev-Exp Region 6'!$AS$9, 0)","v":{"v":0,"d":"$0.00"}},{"$f":"IFERROR('MMA Rev-Exp Region 6'!$AT$30/'MMA Rev-Exp Region 6'!$AT$9, 0)","v":{"v":0,"d":"$0.00"}},{"$f":"IFERROR('MMA Rev-Exp Region 6'!$AU$30/'MMA Rev-Exp Region 6'!$AU$9, 0)","v":{"v":0,"d":"$0.00"}}]
["MMA",null,null,2016,"2016-12-31","Q4","2017-12-31","Region 6","Operating Expense","Medical Benefits Expense","Professional Services",3.3,"Other Professional FFS",{"$f":"IFERROR('MMA Rev-Exp Region 6'!$AK$31/'MMA Rev-Exp Region 6'!$AK$9, 0)","v":{"v":0,"d":"$0.00"}},{"$f":"IFERROR('MMA Rev-Exp Region 6'!$AL$31/'MMA Rev-Exp Region 6'!$AL$9, 0)","v":{"v":0,"d":"$0.00"}},{"$f":"IFERROR('MMA Rev-Exp Region 6'!$AM$31/'MMA Rev-Exp Region 6'!$AM$9, 0)","v":{"v":0,"d":"$0.00"}},{"$f":"IFERROR('MMA Rev-Exp Region 6'!$AN$31/'MMA Rev-Exp Region 6'!$AN$9, 0)","v":{"v":0,"d":"$0.00"}},{"$f":"IFERROR('MMA Rev-Exp Region 6'!$AO$31/'MMA Rev-Exp Region 6'!$AO$9, 0)","v":{"v":0,"d":"$0.00"}},{"$f":"IFERROR('MMA Rev-Exp Region 6'!$AP$31/'MMA Rev-Exp Region 6'!$AP$9, 0)","v":{"v":0,"d":"$0.00"}},{"$f":"IFERROR('MMA Rev-Exp Region 6'!$AQ$31/'MMA Rev-Exp Region 6'!$AQ$9, 0)","v":{"v":0,"d":"$0.00"}},{"$f":"IFERROR('MMA Rev-Exp Region 6'!$AR$31/'MMA Rev-Exp Region 6'!$AR$9, 0)","v":{"v":0,"d":"$0.00"}},{"$f":"IFERROR('MMA Rev-Exp Region 6'!$AS$31/'MMA Rev-Exp Region 6'!$AS$9, 0)","v":{"v":0,"d":"$0.00"}},{"$f":"IFERROR('MMA Rev-Exp Region 6'!$AT$31/'MMA Rev-Exp Region 6'!$AT$9, 0)","v":{"v":0,"d":"$0.00"}},{"$f":"IFERROR('MMA Rev-Exp Region 6'!$AU$31/'MMA Rev-Exp Region 6'!$AU$9, 0)","v":{"v":0,"d":"$0.00"}}]
["MMA",null,null,2016,"2016-12-31","Q4","2017-12-31","Region 6","Operating Expense","Medical Benefits Expense","Professional Services","3.4","§ 1202 PCP Payments to providers",{"$f":"IFERROR('MMA Rev-Exp Region 6'!$AK$32/'MMA Rev-Exp Region 6'!$AK$9, 0)","v":{"v":0,"d":"$0.00"}},{"$f":"IFERROR('MMA Rev-Exp Region 6'!$AL$32/'MMA Rev-Exp Region 6'!$AL$9, 0)","v":{"v":0,"d":"$0.00"}},{"$f":"IFERROR('MMA Rev-Exp Region 6'!$AM$32/'MMA Rev-Exp Region 6'!$AM$9, 0)","v":{"v":0,"d":"$0.00"}},{"$f":"IFERROR('MMA Rev-Exp Region 6'!$AN$32/'MMA Rev-Exp Region 6'!$AN$9, 0)","v":{"v":0,"d":"$0.00"}},{"$f":"IFERROR('MMA Rev-Exp Region 6'!$AO$32/'MMA Rev-Exp Region 6'!$AO$9, 0)","v":{"v":0,"d":"$0.00"}},{"$f":"IFERROR('MMA Rev-Exp Region 6'!$AP$32/'MMA Rev-Exp Region 6'!$AP$9, 0)","v":{"v":0,"d":"$0.00"}},{"$f":"IFERROR('MMA Rev-Exp Region 6'!$AQ$32/'MMA Rev-Exp Region 6'!$AQ$9, 0)","v":{"v":0,"d":"$0.00"}},{"$f":"IFERROR('MMA Rev-Exp Region 6'!$AR$32/'MMA Rev-Exp Region 6'!$AR$9, 0)","v":{"v":0,"d":"$0.00"}},{"$f":"IFERROR('MMA Rev-Exp Region 6'!$AS$32/'MMA Rev-Exp Region 6'!$AS$9, 0)","v":{"v":0,"d":"$0.00"}},{"$f":"IFERROR('MMA Rev-Exp Region 6'!$AT$32/'MMA Rev-Exp Region 6'!$AT$9, 0)","v":{"v":0,"d":"$0.00"}},{"$f":"IFERROR('MMA Rev-Exp Region 6'!$AU$32/'MMA Rev-Exp Region 6'!$AU$9, 0)","v":{"v":0,"d":"$0.00"}}]
["MMA",null,null,2016,"2016-12-31","Q4","2017-12-31","Region 6","Operating Expense","Medical Benefits Expense","Professional Services","3.5","Subcapitated Professional Services",{"$f":"IFERROR('MMA Rev-Exp Region 6'!$AK$33/'MMA Rev-Exp Region 6'!$AK$9, 0)","v":{"v":0,"d":"$0.00"}},{"$f":"IFERROR('MMA Rev-Exp Region 6'!$AL$33/'MMA Rev-Exp Region 6'!$AL$9, 0)","v":{"v":0,"d":"$0.00"}},{"$f":"IFERROR('MMA Rev-Exp Region 6'!$AM$33/'MMA Rev-Exp Region 6'!$AM$9, 0)","v":{"v":0,"d":"$0.00"}},{"$f":"IFERROR('MMA Rev-Exp Region 6'!$AN$33/'MMA Rev-Exp Region 6'!$AN$9, 0)","v":{"v":0,"d":"$0.00"}},{"$f":"IFERROR('MMA Rev-Exp Region 6'!$AO$33/'MMA Rev-Exp Region 6'!$AO$9, 0)","v":{"v":0,"d":"$0.00"}},{"$f":"IFERROR('MMA Rev-Exp Region 6'!$AP$33/'MMA Rev-Exp Region 6'!$AP$9, 0)","v":{"v":0,"d":"$0.00"}},{"$f":"IFERROR('MMA Rev-Exp Region 6'!$AQ$33/'MMA Rev-Exp Region 6'!$AQ$9, 0)","v":{"v":0,"d":"$0.00"}},{"$f":"IFERROR('MMA Rev-Exp Region 6'!$AR$33/'MMA Rev-Exp Region 6'!$AR$9, 0)","v":{"v":0,"d":"$0.00"}},{"$f":"IFERROR('MMA Rev-Exp Region 6'!$AS$33/'MMA Rev-Exp Region 6'!$AS$9, 0)","v":{"v":0,"d":"$0.00"}},{"$f":"IFERROR('MMA Rev-Exp Region 6'!$AT$33/'MMA Rev-Exp Region 6'!$AT$9, 0)","v":{"v":0,"d":"$0.00"}},{"$f":"IFERROR('MMA Rev-Exp Region 6'!$AU$33/'MMA Rev-Exp Region 6'!$AU$9, 0)","v":{"v":0,"d":"$0.00"}}]
["MMA",null,null,2016,"2016-12-31","Q4","2017-12-31","Region 6","Operating Expense","Medical Benefits Expense","Professional Services","3.6","Ending IBNP for Professional Services",{"$f":"IFERROR('MMA Rev-Exp Region 6'!$AK$34/'MMA Rev-Exp Region 6'!$AK$9, 0)","v":{"v":0,"d":"$0.00"}},{"$f":"IFERROR('MMA Rev-Exp Region 6'!$AL$34/'MMA Rev-Exp Region 6'!$AL$9, 0)","v":{"v":0,"d":"$0.00"}},{"$f":"IFERROR('MMA Rev-Exp Region 6'!$AM$34/'MMA Rev-Exp Region 6'!$AM$9, 0)","v":{"v":0,"d":"$0.00"}},{"$f":"IFERROR('MMA Rev-Exp Region 6'!$AN$34/'MMA Rev-Exp Region 6'!$AN$9, 0)","v":{"v":0,"d":"$0.00"}},{"$f":"IFERROR('MMA Rev-Exp Region 6'!$AO$34/'MMA Rev-Exp Region 6'!$AO$9, 0)","v":{"v":0,"d":"$0.00"}},{"$f":"IFERROR('MMA Rev-Exp Region 6'!$AP$34/'MMA Rev-Exp Region 6'!$AP$9, 0)","v":{"v":0,"d":"$0.00"}},{"$f":"IFERROR('MMA Rev-Exp Region 6'!$AQ$34/'MMA Rev-Exp Region 6'!$AQ$9, 0)","v":{"v":0,"d":"$0.00"}},{"$f":"IFERROR('MMA Rev-Exp Region 6'!$AR$34/'MMA Rev-Exp Region 6'!$AR$9, 0)","v":{"v":0,"d":"$0.00"}},{"$f":"IFERROR('MMA Rev-Exp Region 6'!$AS$34/'MMA Rev-Exp Region 6'!$AS$9, 0)","v":{"v":0,"d":"$0.00"}},{"$f":"IFERROR('MMA Rev-Exp Region 6'!$AT$34/'MMA Rev-Exp Region 6'!$AT$9, 0)","v":{"v":0,"d":"$0.00"}},{"$f":"IFERROR('MMA Rev-Exp Region 6'!$AU$34/'MMA Rev-Exp Region 6'!$AU$9, 0)","v":{"v":0,"d":"$0.00"}}]
["MMA",null,null,2016,"2016-12-31","Q4","2017-12-31","Region 6","Operating Expense","Medical Benefits Expense","Professional Services","3.7","Professional Services Settlements",{"$f":"IFERROR('MMA Rev-Exp Region 6'!$AK$35/'MMA Rev-Exp Region 6'!$AK$9, 0)","v":{"v":0,"d":"$0.00"}},{"$f":"IFERROR('MMA Rev-Exp Region 6'!$AL$35/'MMA Rev-Exp Region 6'!$AL$9, 0)","v":{"v":0,"d":"$0.00"}},{"$f":"IFERROR('MMA Rev-Exp Region 6'!$AM$35/'MMA Rev-Exp Region 6'!$AM$9, 0)","v":{"v":0,"d":"$0.00"}},{"$f":"IFERROR('MMA Rev-Exp Region 6'!$AN$35/'MMA Rev-Exp Region 6'!$AN$9, 0)","v":{"v":0,"d":"$0.00"}},{"$f":"IFERROR('MMA Rev-Exp Region 6'!$AO$35/'MMA Rev-Exp Region 6'!$AO$9, 0)","v":{"v":0,"d":"$0.00"}},{"$f":"IFERROR('MMA Rev-Exp Region 6'!$AP$35/'MMA Rev-Exp Region 6'!$AP$9, 0)","v":{"v":0,"d":"$0.00"}},{"$f":"IFERROR('MMA Rev-Exp Region 6'!$AQ$35/'MMA Rev-Exp Region 6'!$AQ$9, 0)","v":{"v":0,"d":"$0.00"}},{"$f":"IFERROR('MMA Rev-Exp Region 6'!$AR$35/'MMA Rev-Exp Region 6'!$AR$9, 0)","v":{"v":0,"d":"$0.00"}},{"$f":"IFERROR('MMA Rev-Exp Region 6'!$AS$35/'MMA Rev-Exp Region 6'!$AS$9, 0)","v":{"v":0,"d":"$0.00"}},{"$f":"IFERROR('MMA Rev-Exp Region 6'!$AT$35/'MMA Rev-Exp Region 6'!$AT$9, 0)","v":{"v":0,"d":"$0.00"}},{"$f":"IFERROR('MMA Rev-Exp Region 6'!$AU$35/'MMA Rev-Exp Region 6'!$AU$9, 0)","v":{"v":0,"d":"$0.00"}}]
["MMA",null,null,2016,"2016-12-31","Q4","2017-12-31","Region 6","Operating Expense","Medical Benefits Expense","Maternity Services","4.1.1","Maternity Services",{"$f":"IFERROR('MMA Rev-Exp Region 6'!$AK$37/'MMA Rev-Exp Region 6'!$AK$9, 0)","v":{"v":0,"d":"$0.00"}},{"$f":"IFERROR('MMA Rev-Exp Region 6'!$AL$37/'MMA Rev-Exp Region 6'!$AL$9, 0)","v":{"v":0,"d":"$0.00"}},{"$f":"IFERROR('MMA Rev-Exp Region 6'!$AM$37/'MMA Rev-Exp Region 6'!$AM$9, 0)","v":{"v":0,"d":"$0.00"}},{"$f":"IFERROR('MMA Rev-Exp Region 6'!$AN$37/'MMA Rev-Exp Region 6'!$AN$9, 0)","v":{"v":0,"d":"$0.00"}},{"$f":"IFERROR('MMA Rev-Exp Region 6'!$AO$37/'MMA Rev-Exp Region 6'!$AO$9, 0)","v":{"v":0,"d":"$0.00"}},{"$f":"IFERROR('MMA Rev-Exp Region 6'!$AP$37/'MMA Rev-Exp Region 6'!$AP$9, 0)","v":{"v":0,"d":"$0.00"}},{"$f":"IFERROR('MMA Rev-Exp Region 6'!$AQ$37/'MMA Rev-Exp Region 6'!$AQ$9, 0)","v":{"v":0,"d":"$0.00"}},{"$f":"IFERROR('MMA Rev-Exp Region 6'!$AR$37/'MMA Rev-Exp Region 6'!$AR$9, 0)","v":{"v":0,"d":"$0.00"}},{"$f":"IFERROR('MMA Rev-Exp Region 6'!$AS$37/'MMA Rev-Exp Region 6'!$AS$9, 0)","v":{"v":0,"d":"$0.00"}},{"$f":"IFERROR('MMA Rev-Exp Region 6'!$AT$37/'MMA Rev-Exp Region 6'!$AT$9, 0)","v":{"v":0,"d":"$0.00"}},{"$f":"IFERROR('MMA Rev-Exp Region 6'!$AU$37/'MMA Rev-Exp Region 6'!$AU$9, 0)","v":{"v":0,"d":"$0.00"}}]
["MMA",null,null,2016,"2016-12-31","Q4","2017-12-31","Region 6","Operating Expense","Medical Benefits Expense","Maternity Services","4.2.1","Ending IBNP for Maternity Services",{"$f":"IFERROR('MMA Rev-Exp Region 6'!$AK$38/'MMA Rev-Exp Region 6'!$AK$9, 0)","v":{"v":0,"d":"$0.00"}},{"$f":"IFERROR('MMA Rev-Exp Region 6'!$AL$38/'MMA Rev-Exp Region 6'!$AL$9, 0)","v":{"v":0,"d":"$0.00"}},{"$f":"IFERROR('MMA Rev-Exp Region 6'!$AM$38/'MMA Rev-Exp Region 6'!$AM$9, 0)","v":{"v":0,"d":"$0.00"}},{"$f":"IFERROR('MMA Rev-Exp Region 6'!$AN$38/'MMA Rev-Exp Region 6'!$AN$9, 0)","v":{"v":0,"d":"$0.00"}},{"$f":"IFERROR('MMA Rev-Exp Region 6'!$AO$38/'MMA Rev-Exp Region 6'!$AO$9, 0)","v":{"v":0,"d":"$0.00"}},{"$f":"IFERROR('MMA Rev-Exp Region 6'!$AP$38/'MMA Rev-Exp Region 6'!$AP$9, 0)","v":{"v":0,"d":"$0.00"}},{"$f":"IFERROR('MMA Rev-Exp Region 6'!$AQ$38/'MMA Rev-Exp Region 6'!$AQ$9, 0)","v":{"v":0,"d":"$0.00"}},{"$f":"IFERROR('MMA Rev-Exp Region 6'!$AR$38/'MMA Rev-Exp Region 6'!$AR$9, 0)","v":{"v":0,"d":"$0.00"}},{"$f":"IFERROR('MMA Rev-Exp Region 6'!$AS$38/'MMA Rev-Exp Region 6'!$AS$9, 0)","v":{"v":0,"d":"$0.00"}},{"$f":"IFERROR('MMA Rev-Exp Region 6'!$AT$38/'MMA Rev-Exp Region 6'!$AT$9, 0)","v":{"v":0,"d":"$0.00"}},{"$f":"IFERROR('MMA Rev-Exp Region 6'!$AU$38/'MMA Rev-Exp Region 6'!$AU$9, 0)","v":{"v":0,"d":"$0.00"}}]
["MMA",null,null,2016,"2016-12-31","Q4","2017-12-31","Region 6","Operating Expense","Medical Benefits Expense","Maternity Services","4.3.1","Maternity Settlements",{"$f":"IFERROR('MMA Rev-Exp Region 6'!$AK$39/'MMA Rev-Exp Region 6'!$AK$9, 0)","v":{"v":0,"d":"$0.00"}},{"$f":"IFERROR('MMA Rev-Exp Region 6'!$AL$39/'MMA Rev-Exp Region 6'!$AL$9, 0)","v":{"v":0,"d":"$0.00"}},{"$f":"IFERROR('MMA Rev-Exp Region 6'!$AM$39/'MMA Rev-Exp Region 6'!$AM$9, 0)","v":{"v":0,"d":"$0.00"}},{"$f":"IFERROR('MMA Rev-Exp Region 6'!$AN$39/'MMA Rev-Exp Region 6'!$AN$9, 0)","v":{"v":0,"d":"$0.00"}},{"$f":"IFERROR('MMA Rev-Exp Region 6'!$AO$39/'MMA Rev-Exp Region 6'!$AO$9, 0)","v":{"v":0,"d":"$0.00"}},{"$f":"IFERROR('MMA Rev-Exp Region 6'!$AP$39/'MMA Rev-Exp Region 6'!$AP$9, 0)","v":{"v":0,"d":"$0.00"}},{"$f":"IFERROR('MMA Rev-Exp Region 6'!$AQ$39/'MMA Rev-Exp Region 6'!$AQ$9, 0)","v":{"v":0,"d":"$0.00"}},{"$f":"IFERROR('MMA Rev-Exp Region 6'!$AR$39/'MMA Rev-Exp Region 6'!$AR$9, 0)","v":{"v":0,"d":"$0.00"}},{"$f":"IFERROR('MMA Rev-Exp Region 6'!$AS$39/'MMA Rev-Exp Region 6'!$AS$9, 0)","v":{"v":0,"d":"$0.00"}},{"$f":"IFERROR('MMA Rev-Exp Region 6'!$AT$39/'MMA Rev-Exp Region 6'!$AT$9, 0)","v":{"v":0,"d":"$0.00"}},{"$f":"IFERROR('MMA Rev-Exp Region 6'!$AU$39/'MMA Rev-Exp Region 6'!$AU$9, 0)","v":{"v":0,"d":"$0.00"}}]
["MMA",null,null,2016,"2016-12-31","Q4","2017-12-31","Region 6","Operating Expense","Medical Benefits Expense","Mental Health Services",5.1,"Mental Health & Substance Abuse FFS",{"$f":"IFERROR('MMA Rev-Exp Region 6'!$AK$41/'MMA Rev-Exp Region 6'!$AK$9, 0)","v":{"v":0,"d":"$0.00"}},{"$f":"IFERROR('MMA Rev-Exp Region 6'!$AL$41/'MMA Rev-Exp Region 6'!$AL$9, 0)","v":{"v":0,"d":"$0.00"}},{"$f":"IFERROR('MMA Rev-Exp Region 6'!$AM$41/'MMA Rev-Exp Region 6'!$AM$9, 0)","v":{"v":0,"d":"$0.00"}},{"$f":"IFERROR('MMA Rev-Exp Region 6'!$AN$41/'MMA Rev-Exp Region 6'!$AN$9, 0)","v":{"v":0,"d":"$0.00"}},{"$f":"IFERROR('MMA Rev-Exp Region 6'!$AO$41/'MMA Rev-Exp Region 6'!$AO$9, 0)","v":{"v":0,"d":"$0.00"}},{"$f":"IFERROR('MMA Rev-Exp Region 6'!$AP$41/'MMA Rev-Exp Region 6'!$AP$9, 0)","v":{"v":0,"d":"$0.00"}},{"$f":"IFERROR('MMA Rev-Exp Region 6'!$AQ$41/'MMA Rev-Exp Region 6'!$AQ$9, 0)","v":{"v":0,"d":"$0.00"}},{"$f":"IFERROR('MMA Rev-Exp Region 6'!$AR$41/'MMA Rev-Exp Region 6'!$AR$9, 0)","v":{"v":0,"d":"$0.00"}},{"$f":"IFERROR('MMA Rev-Exp Region 6'!$AS$41/'MMA Rev-Exp Region 6'!$AS$9, 0)","v":{"v":0,"d":"$0.00"}},{"$f":"IFERROR('MMA Rev-Exp Region 6'!$AT$41/'MMA Rev-Exp Region 6'!$AT$9, 0)","v":{"v":0,"d":"$0.00"}},{"$f":"IFERROR('MMA Rev-Exp Region 6'!$AU$41/'MMA Rev-Exp Region 6'!$AU$9, 0)","v":{"v":0,"d":"$0.00"}}]
["MMA",null,null,2016,"2016-12-31","Q4","2017-12-31","Region 6","Operating Expense","Medical Benefits Expense","Mental Health Services",5.2,"Mental Health & Substance Abuse Subcapitation",{"$f":"IFERROR('MMA Rev-Exp Region 6'!$AK$42/'MMA Rev-Exp Region 6'!$AK$9, 0)","v":{"v":0,"d":"$0.00"}},{"$f":"IFERROR('MMA Rev-Exp Region 6'!$AL$42/'MMA Rev-Exp Region 6'!$AL$9, 0)","v":{"v":0,"d":"$0.00"}},{"$f":"IFERROR('MMA Rev-Exp Region 6'!$AM$42/'MMA Rev-Exp Region 6'!$AM$9, 0)","v":{"v":0,"d":"$0.00"}},{"$f":"IFERROR('MMA Rev-Exp Region 6'!$AN$42/'MMA Rev-Exp Region 6'!$AN$9, 0)","v":{"v":0,"d":"$0.00"}},{"$f":"IFERROR('MMA Rev-Exp Region 6'!$AO$42/'MMA Rev-Exp Region 6'!$AO$9, 0)","v":{"v":0,"d":"$0.00"}},{"$f":"IFERROR('MMA Rev-Exp Region 6'!$AP$42/'MMA Rev-Exp Region 6'!$AP$9, 0)","v":{"v":0,"d":"$0.00"}},{"$f":"IFERROR('MMA Rev-Exp Region 6'!$AQ$42/'MMA Rev-Exp Region 6'!$AQ$9, 0)","v":{"v":0,"d":"$0.00"}},{"$f":"IFERROR('MMA Rev-Exp Region 6'!$AR$42/'MMA Rev-Exp Region 6'!$AR$9, 0)","v":{"v":0,"d":"$0.00"}},{"$f":"IFERROR('MMA Rev-Exp Region 6'!$AS$42/'MMA Rev-Exp Region 6'!$AS$9, 0)","v":{"v":0,"d":"$0.00"}},{"$f":"IFERROR('MMA Rev-Exp Region 6'!$AT$42/'MMA Rev-Exp Region 6'!$AT$9, 0)","v":{"v":0,"d":"$0.00"}},{"$f":"IFERROR('MMA Rev-Exp Region 6'!$AU$42/'MMA Rev-Exp Region 6'!$AU$9, 0)","v":{"v":0,"d":"$0.00"}}]
["MMA",null,null,2016,"2016-12-31","Q4","2017-12-31","Region 6","Operating Expense","Medical Benefits Expense","Mental Health Services",5.3,"Ending IBNP for Mental Health & Substance Abuse",{"$f":"IFERROR('MMA Rev-Exp Region 6'!$AK$43/'MMA Rev-Exp Region 6'!$AK$9, 0)","v":{"v":0,"d":"$0.00"}},{"$f":"IFERROR('MMA Rev-Exp Region 6'!$AL$43/'MMA Rev-Exp Region 6'!$AL$9, 0)","v":{"v":0,"d":"$0.00"}},{"$f":"IFERROR('MMA Rev-Exp Region 6'!$AM$43/'MMA Rev-Exp Region 6'!$AM$9, 0)","v":{"v":0,"d":"$0.00"}},{"$f":"IFERROR('MMA Rev-Exp Region 6'!$AN$43/'MMA Rev-Exp Region 6'!$AN$9, 0)","v":{"v":0,"d":"$0.00"}},{"$f":"IFERROR('MMA Rev-Exp Region 6'!$AO$43/'MMA Rev-Exp Region 6'!$AO$9, 0)","v":{"v":0,"d":"$0.00"}},{"$f":"IFERROR('MMA Rev-Exp Region 6'!$AP$43/'MMA Rev-Exp Region 6'!$AP$9, 0)","v":{"v":0,"d":"$0.00"}},{"$f":"IFERROR('MMA Rev-Exp Region 6'!$AQ$43/'MMA Rev-Exp Region 6'!$AQ$9, 0)","v":{"v":0,"d":"$0.00"}},{"$f":"IFERROR('MMA Rev-Exp Region 6'!$AR$43/'MMA Rev-Exp Region 6'!$AR$9, 0)","v":{"v":0,"d":"$0.00"}},{"$f":"IFERROR('MMA Rev-Exp Region 6'!$AS$43/'MMA Rev-Exp Region 6'!$AS$9, 0)","v":{"v":0,"d":"$0.00"}},{"$f":"IFERROR('MMA Rev-Exp Region 6'!$AT$43/'MMA Rev-Exp Region 6'!$AT$9, 0)","v":{"v":0,"d":"$0.00"}},{"$f":"IFERROR('MMA Rev-Exp Region 6'!$AU$43/'MMA Rev-Exp Region 6'!$AU$9, 0)","v":{"v":0,"d":"$0.00"}}]
["MMA",null,null,2016,"2016-12-31","Q4","2017-12-31","Region 6","Operating Expense","Medical Benefits Expense","Mental Health Services","5.4","Mental Health Settlements",{"$f":"IFERROR('MMA Rev-Exp Region 6'!$AK$44/'MMA Rev-Exp Region 6'!$AK$9, 0)","v":{"v":0,"d":"$0.00"}},{"$f":"IFERROR('MMA Rev-Exp Region 6'!$AL$44/'MMA Rev-Exp Region 6'!$AL$9, 0)","v":{"v":0,"d":"$0.00"}},{"$f":"IFERROR('MMA Rev-Exp Region 6'!$AM$44/'MMA Rev-Exp Region 6'!$AM$9, 0)","v":{"v":0,"d":"$0.00"}},{"$f":"IFERROR('MMA Rev-Exp Region 6'!$AN$44/'MMA Rev-Exp Region 6'!$AN$9, 0)","v":{"v":0,"d":"$0.00"}},{"$f":"IFERROR('MMA Rev-Exp Region 6'!$AO$44/'MMA Rev-Exp Region 6'!$AO$9, 0)","v":{"v":0,"d":"$0.00"}},{"$f":"IFERROR('MMA Rev-Exp Region 6'!$AP$44/'MMA Rev-Exp Region 6'!$AP$9, 0)","v":{"v":0,"d":"$0.00"}},{"$f":"IFERROR('MMA Rev-Exp Region 6'!$AQ$44/'MMA Rev-Exp Region 6'!$AQ$9, 0)","v":{"v":0,"d":"$0.00"}},{"$f":"IFERROR('MMA Rev-Exp Region 6'!$AR$44/'MMA Rev-Exp Region 6'!$AR$9, 0)","v":{"v":0,"d":"$0.00"}},{"$f":"IFERROR('MMA Rev-Exp Region 6'!$AS$44/'MMA Rev-Exp Region 6'!$AS$9, 0)","v":{"v":0,"d":"$0.00"}},{"$f":"IFERROR('MMA Rev-Exp Region 6'!$AT$44/'MMA Rev-Exp Region 6'!$AT$9, 0)","v":{"v":0,"d":"$0.00"}},{"$f":"IFERROR('MMA Rev-Exp Region 6'!$AU$44/'MMA Rev-Exp Region 6'!$AU$9, 0)","v":{"v":0,"d":"$0.00"}}]
["MMA",null,null,2016,"2016-12-31","Q4","2017-12-31","Region 6","Operating Expense","Medical Benefits Expense","Dental Services",6.1,"Dental FFS",{"$f":"IFERROR('MMA Rev-Exp Region 6'!$AK$46/'MMA Rev-Exp Region 6'!$AK$9, 0)","v":{"v":0,"d":"$0.00"}},{"$f":"IFERROR('MMA Rev-Exp Region 6'!$AL$46/'MMA Rev-Exp Region 6'!$AL$9, 0)","v":{"v":0,"d":"$0.00"}},{"$f":"IFERROR('MMA Rev-Exp Region 6'!$AM$46/'MMA Rev-Exp Region 6'!$AM$9, 0)","v":{"v":0,"d":"$0.00"}},{"$f":"IFERROR('MMA Rev-Exp Region 6'!$AN$46/'MMA Rev-Exp Region 6'!$AN$9, 0)","v":{"v":0,"d":"$0.00"}},{"$f":"IFERROR('MMA Rev-Exp Region 6'!$AO$46/'MMA Rev-Exp Region 6'!$AO$9, 0)","v":{"v":0,"d":"$0.00"}},{"$f":"IFERROR('MMA Rev-Exp Region 6'!$AP$46/'MMA Rev-Exp Region 6'!$AP$9, 0)","v":{"v":0,"d":"$0.00"}},{"$f":"IFERROR('MMA Rev-Exp Region 6'!$AQ$46/'MMA Rev-Exp Region 6'!$AQ$9, 0)","v":{"v":0,"d":"$0.00"}},{"$f":"IFERROR('MMA Rev-Exp Region 6'!$AR$46/'MMA Rev-Exp Region 6'!$AR$9, 0)","v":{"v":0,"d":"$0.00"}},{"$f":"IFERROR('MMA Rev-Exp Region 6'!$AS$46/'MMA Rev-Exp Region 6'!$AS$9, 0)","v":{"v":0,"d":"$0.00"}},{"$f":"IFERROR('MMA Rev-Exp Region 6'!$AT$46/'MMA Rev-Exp Region 6'!$AT$9, 0)","v":{"v":0,"d":"$0.00"}},{"$f":"IFERROR('MMA Rev-Exp Region 6'!$AU$46/'MMA Rev-Exp Region 6'!$AU$9, 0)","v":{"v":0,"d":"$0.00"}}]
["MMA",null,null,2016,"2016-12-31","Q4","2017-12-31","Region 6","Operating Expense","Medical Benefits Expense","Dental Services",6.2,"Dental Subcapitation",{"$f":"IFERROR('MMA Rev-Exp Region 6'!$AK$47/'MMA Rev-Exp Region 6'!$AK$9, 0)","v":{"v":0,"d":"$0.00"}},{"$f":"IFERROR('MMA Rev-Exp Region 6'!$AL$47/'MMA Rev-Exp Region 6'!$AL$9, 0)","v":{"v":0,"d":"$0.00"}},{"$f":"IFERROR('MMA Rev-Exp Region 6'!$AM$47/'MMA Rev-Exp Region 6'!$AM$9, 0)","v":{"v":0,"d":"$0.00"}},{"$f":"IFERROR('MMA Rev-Exp Region 6'!$AN$47/'MMA Rev-Exp Region 6'!$AN$9, 0)","v":{"v":0,"d":"$0.00"}},{"$f":"IFERROR('MMA Rev-Exp Region 6'!$AO$47/'MMA Rev-Exp Region 6'!$AO$9, 0)","v":{"v":0,"d":"$0.00"}},{"$f":"IFERROR('MMA Rev-Exp Region 6'!$AP$47/'MMA Rev-Exp Region 6'!$AP$9, 0)","v":{"v":0,"d":"$0.00"}},{"$f":"IFERROR('MMA Rev-Exp Region 6'!$AQ$47/'MMA Rev-Exp Region 6'!$AQ$9, 0)","v":{"v":0,"d":"$0.00"}},{"$f":"IFERROR('MMA Rev-Exp Region 6'!$AR$47/'MMA Rev-Exp Region 6'!$AR$9, 0)","v":{"v":0,"d":"$0.00"}},{"$f":"IFERROR('MMA Rev-Exp Region 6'!$AS$47/'MMA Rev-Exp Region 6'!$AS$9, 0)","v":{"v":0,"d":"$0.00"}},{"$f":"IFERROR('MMA Rev-Exp Region 6'!$AT$47/'MMA Rev-Exp Region 6'!$AT$9, 0)","v":{"v":0,"d":"$0.00"}},{"$f":"IFERROR('MMA Rev-Exp Region 6'!$AU$47/'MMA Rev-Exp Region 6'!$AU$9, 0)","v":{"v":0,"d":"$0.00"}}]
["MMA",null,null,2016,"2016-12-31","Q4","2017-12-31","Region 6","Operating Expense","Medical Benefits Expense","Dental Services",6.3,"Ending IBNP for Dental Services",{"$f":"IFERROR('MMA Rev-Exp Region 6'!$AK$48/'MMA Rev-Exp Region 6'!$AK$9, 0)","v":{"v":0,"d":"$0.00"}},{"$f":"IFERROR('MMA Rev-Exp Region 6'!$AL$48/'MMA Rev-Exp Region 6'!$AL$9, 0)","v":{"v":0,"d":"$0.00"}},{"$f":"IFERROR('MMA Rev-Exp Region 6'!$AM$48/'MMA Rev-Exp Region 6'!$AM$9, 0)","v":{"v":0,"d":"$0.00"}},{"$f":"IFERROR('MMA Rev-Exp Region 6'!$AN$48/'MMA Rev-Exp Region 6'!$AN$9, 0)","v":{"v":0,"d":"$0.00"}},{"$f":"IFERROR('MMA Rev-Exp Region 6'!$AO$48/'MMA Rev-Exp Region 6'!$AO$9, 0)","v":{"v":0,"d":"$0.00"}},{"$f":"IFERROR('MMA Rev-Exp Region 6'!$AP$48/'MMA Rev-Exp Region 6'!$AP$9, 0)","v":{"v":0,"d":"$0.00"}},{"$f":"IFERROR('MMA Rev-Exp Region 6'!$AQ$48/'MMA Rev-Exp Region 6'!$AQ$9, 0)","v":{"v":0,"d":"$0.00"}},{"$f":"IFERROR('MMA Rev-Exp Region 6'!$AR$48/'MMA Rev-Exp Region 6'!$AR$9, 0)","v":{"v":0,"d":"$0.00"}},{"$f":"IFERROR('MMA Rev-Exp Region 6'!$AS$48/'MMA Rev-Exp Region 6'!$AS$9, 0)","v":{"v":0,"d":"$0.00"}},{"$f":"IFERROR('MMA Rev-Exp Region 6'!$AT$48/'MMA Rev-Exp Region 6'!$AT$9, 0)","v":{"v":0,"d":"$0.00"}},{"$f":"IFERROR('MMA Rev-Exp Region 6'!$AU$48/'MMA Rev-Exp Region 6'!$AU$9, 0)","v":{"v":0,"d":"$0.00"}}]
["MMA",null,null,2016,"2016-12-31","Q4","2017-12-31","Region 6","Operating Expense","Medical Benefits Expense","Dental Services","6.4","Dental Settlements",{"$f":"IFERROR('MMA Rev-Exp Region 6'!$AK$49/'MMA Rev-Exp Region 6'!$AK$9, 0)","v":{"v":0,"d":"$0.00"}},{"$f":"IFERROR('MMA Rev-Exp Region 6'!$AL$49/'MMA Rev-Exp Region 6'!$AL$9, 0)","v":{"v":0,"d":"$0.00"}},{"$f":"IFERROR('MMA Rev-Exp Region 6'!$AM$49/'MMA Rev-Exp Region 6'!$AM$9, 0)","v":{"v":0,"d":"$0.00"}},{"$f":"IFERROR('MMA Rev-Exp Region 6'!$AN$49/'MMA Rev-Exp Region 6'!$AN$9, 0)","v":{"v":0,"d":"$0.00"}},{"$f":"IFERROR('MMA Rev-Exp Region 6'!$AO$49/'MMA Rev-Exp Region 6'!$AO$9, 0)","v":{"v":0,"d":"$0.00"}},{"$f":"IFERROR('MMA Rev-Exp Region 6'!$AP$49/'MMA Rev-Exp Region 6'!$AP$9, 0)","v":{"v":0,"d":"$0.00"}},{"$f":"IFERROR('MMA Rev-Exp Region 6'!$AQ$49/'MMA Rev-Exp Region 6'!$AQ$9, 0)","v":{"v":0,"d":"$0.00"}},{"$f":"IFERROR('MMA Rev-Exp Region 6'!$AR$49/'MMA Rev-Exp Region 6'!$AR$9, 0)","v":{"v":0,"d":"$0.00"}},{"$f":"IFERROR('MMA Rev-Exp Region 6'!$AS$49/'MMA Rev-Exp Region 6'!$AS$9, 0)","v":{"v":0,"d":"$0.00"}},{"$f":"IFERROR('MMA Rev-Exp Region 6'!$AT$49/'MMA Rev-Exp Region 6'!$AT$9, 0)","v":{"v":0,"d":"$0.00"}},{"$f":"IFERROR('MMA Rev-Exp Region 6'!$AU$49/'MMA Rev-Exp Region 6'!$AU$9, 0)","v":{"v":0,"d":"$0.00"}}]
["MMA",null,null,2016,"2016-12-31","Q4","2017-12-31","Region 6","Operating Expense","Medical Benefits Expense","Transportation Services",7.1,"Transportation FFS",{"$f":"IFERROR('MMA Rev-Exp Region 6'!$AK$51/'MMA Rev-Exp Region 6'!$AK$9, 0)","v":{"v":0,"d":"$0.00"}},{"$f":"IFERROR('MMA Rev-Exp Region 6'!$AL$51/'MMA Rev-Exp Region 6'!$AL$9, 0)","v":{"v":0,"d":"$0.00"}},{"$f":"IFERROR('MMA Rev-Exp Region 6'!$AM$51/'MMA Rev-Exp Region 6'!$AM$9, 0)","v":{"v":0,"d":"$0.00"}},{"$f":"IFERROR('MMA Rev-Exp Region 6'!$AN$51/'MMA Rev-Exp Region 6'!$AN$9, 0)","v":{"v":0,"d":"$0.00"}},{"$f":"IFERROR('MMA Rev-Exp Region 6'!$AO$51/'MMA Rev-Exp Region 6'!$AO$9, 0)","v":{"v":0,"d":"$0.00"}},{"$f":"IFERROR('MMA Rev-Exp Region 6'!$AP$51/'MMA Rev-Exp Region 6'!$AP$9, 0)","v":{"v":0,"d":"$0.00"}},{"$f":"IFERROR('MMA Rev-Exp Region 6'!$AQ$51/'MMA Rev-Exp Region 6'!$AQ$9, 0)","v":{"v":0,"d":"$0.00"}},{"$f":"IFERROR('MMA Rev-Exp Region 6'!$AR$51/'MMA Rev-Exp Region 6'!$AR$9, 0)","v":{"v":0,"d":"$0.00"}},{"$f":"IFERROR('MMA Rev-Exp Region 6'!$AS$51/'MMA Rev-Exp Region 6'!$AS$9, 0)","v":{"v":0,"d":"$0.00"}},{"$f":"IFERROR('MMA Rev-Exp Region 6'!$AT$51/'MMA Rev-Exp Region 6'!$AT$9, 0)","v":{"v":0,"d":"$0.00"}},{"$f":"IFERROR('MMA Rev-Exp Region 6'!$AU$51/'MMA Rev-Exp Region 6'!$AU$9, 0)","v":{"v":0,"d":"$0.00"}}]
["MMA",null,null,2016,"2016-12-31","Q4","2017-12-31","Region 6","Operating Expense","Medical Benefits Expense","Transportation Services",7.2,"Transportation Subcapitation",{"$f":"IFERROR('MMA Rev-Exp Region 6'!$AK$52/'MMA Rev-Exp Region 6'!$AK$9, 0)","v":{"v":0,"d":"$0.00"}},{"$f":"IFERROR('MMA Rev-Exp Region 6'!$AL$52/'MMA Rev-Exp Region 6'!$AL$9, 0)","v":{"v":0,"d":"$0.00"}},{"$f":"IFERROR('MMA Rev-Exp Region 6'!$AM$52/'MMA Rev-Exp Region 6'!$AM$9, 0)","v":{"v":0,"d":"$0.00"}},{"$f":"IFERROR('MMA Rev-Exp Region 6'!$AN$52/'MMA Rev-Exp Region 6'!$AN$9, 0)","v":{"v":0,"d":"$0.00"}},{"$f":"IFERROR('MMA Rev-Exp Region 6'!$AO$52/'MMA Rev-Exp Region 6'!$AO$9, 0)","v":{"v":0,"d":"$0.00"}},{"$f":"IFERROR('MMA Rev-Exp Region 6'!$AP$52/'MMA Rev-Exp Region 6'!$AP$9, 0)","v":{"v":0,"d":"$0.00"}},{"$f":"IFERROR('MMA Rev-Exp Region 6'!$AQ$52/'MMA Rev-Exp Region 6'!$AQ$9, 0)","v":{"v":0,"d":"$0.00"}},{"$f":"IFERROR('MMA Rev-Exp Region 6'!$AR$52/'MMA Rev-Exp Region 6'!$AR$9, 0)","v":{"v":0,"d":"$0.00"}},{"$f":"IFERROR('MMA Rev-Exp Region 6'!$AS$52/'MMA Rev-Exp Region 6'!$AS$9, 0)","v":{"v":0,"d":"$0.00"}},{"$f":"IFERROR('MMA Rev-Exp Region 6'!$AT$52/'MMA Rev-Exp Region 6'!$AT$9, 0)","v":{"v":0,"d":"$0.00"}},{"$f":"IFERROR('MMA Rev-Exp Region 6'!$AU$52/'MMA Rev-Exp Region 6'!$AU$9, 0)","v":{"v":0,"d":"$0.00"}}]
["MMA",null,null,2016,"2016-12-31","Q4","2017-12-31","Region 6","Operating Expense","Medical Benefits Expense","Transportation Services",7.3,"Ending IBNP for Transportation",{"$f":"IFERROR('MMA Rev-Exp Region 6'!$AK$53/'MMA Rev-Exp Region 6'!$AK$9, 0)","v":{"v":0,"d":"$0.00"}},{"$f":"IFERROR('MMA Rev-Exp Region 6'!$AL$53/'MMA Rev-Exp Region 6'!$AL$9, 0)","v":{"v":0,"d":"$0.00"}},{"$f":"IFERROR('MMA Rev-Exp Region 6'!$AM$53/'MMA Rev-Exp Region 6'!$AM$9, 0)","v":{"v":0,"d":"$0.00"}},{"$f":"IFERROR('MMA Rev-Exp Region 6'!$AN$53/'MMA Rev-Exp Region 6'!$AN$9, 0)","v":{"v":0,"d":"$0.00"}},{"$f":"IFERROR('MMA Rev-Exp Region 6'!$AO$53/'MMA Rev-Exp Region 6'!$AO$9, 0)","v":{"v":0,"d":"$0.00"}},{"$f":"IFERROR('MMA Rev-Exp Region 6'!$AP$53/'MMA Rev-Exp Region 6'!$AP$9, 0)","v":{"v":0,"d":"$0.00"}},{"$f":"IFERROR('MMA Rev-Exp Region 6'!$AQ$53/'MMA Rev-Exp Region 6'!$AQ$9, 0)","v":{"v":0,"d":"$0.00"}},{"$f":"IFERROR('MMA Rev-Exp Region 6'!$AR$53/'MMA Rev-Exp Region 6'!$AR$9, 0)","v":{"v":0,"d":"$0.00"}},{"$f":"IFERROR('MMA Rev-Exp Region 6'!$AS$53/'MMA Rev-Exp Region 6'!$AS$9, 0)","v":{"v":0,"d":"$0.00"}},{"$f":"IFERROR('MMA Rev-Exp Region 6'!$AT$53/'MMA Rev-Exp Region 6'!$AT$9, 0)","v":{"v":0,"d":"$0.00"}},{"$f":"IFERROR('MMA Rev-Exp Region 6'!$AU$53/'MMA Rev-Exp Region 6'!$AU$9, 0)","v":{"v":0,"d":"$0.00"}}]
["MMA",null,null,2016,"2016-12-31","Q4","2017-12-31","Region 6","Operating Expense","Medical Benefits Expense","Transportation Services","7.4","Transportation Settlements",{"$f":"IFERROR('MMA Rev-Exp Region 6'!$AK$54/'MMA Rev-Exp Region 6'!$AK$9, 0)","v":{"v":0,"d":"$0.00"}},{"$f":"IFERROR('MMA Rev-Exp Region 6'!$AL$54/'MMA Rev-Exp Region 6'!$AL$9, 0)","v":{"v":0,"d":"$0.00"}},{"$f":"IFERROR('MMA Rev-Exp Region 6'!$AM$54/'MMA Rev-Exp Region 6'!$AM$9, 0)","v":{"v":0,"d":"$0.00"}},{"$f":"IFERROR('MMA Rev-Exp Region 6'!$AN$54/'MMA Rev-Exp Region 6'!$AN$9, 0)","v":{"v":0,"d":"$0.00"}},{"$f":"IFERROR('MMA Rev-Exp Region 6'!$AO$54/'MMA Rev-Exp Region 6'!$AO$9, 0)","v":{"v":0,"d":"$0.00"}},{"$f":"IFERROR('MMA Rev-Exp Region 6'!$AP$54/'MMA Rev-Exp Region 6'!$AP$9, 0)","v":{"v":0,"d":"$0.00"}},{"$f":"IFERROR('MMA Rev-Exp Region 6'!$AQ$54/'MMA Rev-Exp Region 6'!$AQ$9, 0)","v":{"v":0,"d":"$0.00"}},{"$f":"IFERROR('MMA Rev-Exp Region 6'!$AR$54/'MMA Rev-Exp Region 6'!$AR$9, 0)","v":{"v":0,"d":"$0.00"}},{"$f":"IFERROR('MMA Rev-Exp Region 6'!$AS$54/'MMA Rev-Exp Region 6'!$AS$9, 0)","v":{"v":0,"d":"$0.00"}},{"$f":"IFERROR('MMA Rev-Exp Region 6'!$AT$54/'MMA Rev-Exp Region 6'!$AT$9, 0)","v":{"v":0,"d":"$0.00"}},{"$f":"IFERROR('MMA Rev-Exp Region 6'!$AU$54/'MMA Rev-Exp Region 6'!$AU$9, 0)","v":{"v":0,"d":"$0.00"}}]
["MMA",null,null,2016,"2016-12-31","Q4","2017-12-31","Region 6","Operating Expense","Medical Benefits Expense","Pharmacy Services",8.1,"Prescription Drugs FFS",{"$f":"IFERROR('MMA Rev-Exp Region 6'!$AK$56/'MMA Rev-Exp Region 6'!$AK$9, 0)","v":{"v":0,"d":"$0.00"}},{"$f":"IFERROR('MMA Rev-Exp Region 6'!$AL$56/'MMA Rev-Exp Region 6'!$AL$9, 0)","v":{"v":0,"d":"$0.00"}},{"$f":"IFERROR('MMA Rev-Exp Region 6'!$AM$56/'MMA Rev-Exp Region 6'!$AM$9, 0)","v":{"v":0,"d":"$0.00"}},{"$f":"IFERROR('MMA Rev-Exp Region 6'!$AN$56/'MMA Rev-Exp Region 6'!$AN$9, 0)","v":{"v":0,"d":"$0.00"}},{"$f":"IFERROR('MMA Rev-Exp Region 6'!$AO$56/'MMA Rev-Exp Region 6'!$AO$9, 0)","v":{"v":0,"d":"$0.00"}},{"$f":"IFERROR('MMA Rev-Exp Region 6'!$AP$56/'MMA Rev-Exp Region 6'!$AP$9, 0)","v":{"v":0,"d":"$0.00"}},{"$f":"IFERROR('MMA Rev-Exp Region 6'!$AQ$56/'MMA Rev-Exp Region 6'!$AQ$9, 0)","v":{"v":0,"d":"$0.00"}},{"$f":"IFERROR('MMA Rev-Exp Region 6'!$AR$56/'MMA Rev-Exp Region 6'!$AR$9, 0)","v":{"v":0,"d":"$0.00"}},{"$f":"IFERROR('MMA Rev-Exp Region 6'!$AS$56/'MMA Rev-Exp Region 6'!$AS$9, 0)","v":{"v":0,"d":"$0.00"}},{"$f":"IFERROR('MMA Rev-Exp Region 6'!$AT$56/'MMA Rev-Exp Region 6'!$AT$9, 0)","v":{"v":0,"d":"$0.00"}},{"$f":"IFERROR('MMA Rev-Exp Region 6'!$AU$56/'MMA Rev-Exp Region 6'!$AU$9, 0)","v":{"v":0,"d":"$0.00"}}]
["MMA",null,null,2016,"2016-12-31","Q4","2017-12-31","Region 6","Operating Expense","Medical Benefits Expense","Pharmacy Services","8.2","Hepatitis C Prescription Drug FFS",{"$f":"IFERROR('MMA Rev-Exp Region 6'!$AK$57/'MMA Rev-Exp Region 6'!$AK$9, 0)","v":{"v":0,"d":"$0.00"}},{"$f":"IFERROR('MMA Rev-Exp Region 6'!$AL$57/'MMA Rev-Exp Region 6'!$AL$9, 0)","v":{"v":0,"d":"$0.00"}},{"$f":"IFERROR('MMA Rev-Exp Region 6'!$AM$57/'MMA Rev-Exp Region 6'!$AM$9, 0)","v":{"v":0,"d":"$0.00"}},{"$f":"IFERROR('MMA Rev-Exp Region 6'!$AN$57/'MMA Rev-Exp Region 6'!$AN$9, 0)","v":{"v":0,"d":"$0.00"}},{"$f":"IFERROR('MMA Rev-Exp Region 6'!$AO$57/'MMA Rev-Exp Region 6'!$AO$9, 0)","v":{"v":0,"d":"$0.00"}},{"$f":"IFERROR('MMA Rev-Exp Region 6'!$AP$57/'MMA Rev-Exp Region 6'!$AP$9, 0)","v":{"v":0,"d":"$0.00"}},{"$f":"IFERROR('MMA Rev-Exp Region 6'!$AQ$57/'MMA Rev-Exp Region 6'!$AQ$9, 0)","v":{"v":0,"d":"$0.00"}},{"$f":"IFERROR('MMA Rev-Exp Region 6'!$AR$57/'MMA Rev-Exp Region 6'!$AR$9, 0)","v":{"v":0,"d":"$0.00"}},{"$f":"IFERROR('MMA Rev-Exp Region 6'!$AS$57/'MMA Rev-Exp Region 6'!$AS$9, 0)","v":{"v":0,"d":"$0.00"}},{"$f":"IFERROR('MMA Rev-Exp Region 6'!$AT$57/'MMA Rev-Exp Region 6'!$AT$9, 0)","v":{"v":0,"d":"$0.00"}},{"$f":"IFERROR('MMA Rev-Exp Region 6'!$AU$57/'MMA Rev-Exp Region 6'!$AU$9, 0)","v":{"v":0,"d":"$0.00"}}]
["MMA",null,null,2016,"2016-12-31","Q4","2017-12-31","Region 6","Operating Expense","Medical Benefits Expense","Pharmacy Services","8.3","Ending IBNP for Prescription Drugs",{"$f":"IFERROR('MMA Rev-Exp Region 6'!$AK$58/'MMA Rev-Exp Region 6'!$AK$9, 0)","v":{"v":0,"d":"$0.00"}},{"$f":"IFERROR('MMA Rev-Exp Region 6'!$AL$58/'MMA Rev-Exp Region 6'!$AL$9, 0)","v":{"v":0,"d":"$0.00"}},{"$f":"IFERROR('MMA Rev-Exp Region 6'!$AM$58/'MMA Rev-Exp Region 6'!$AM$9, 0)","v":{"v":0,"d":"$0.00"}},{"$f":"IFERROR('MMA Rev-Exp Region 6'!$AN$58/'MMA Rev-Exp Region 6'!$AN$9, 0)","v":{"v":0,"d":"$0.00"}},{"$f":"IFERROR('MMA Rev-Exp Region 6'!$AO$58/'MMA Rev-Exp Region 6'!$AO$9, 0)","v":{"v":0,"d":"$0.00"}},{"$f":"IFERROR('MMA Rev-Exp Region 6'!$AP$58/'MMA Rev-Exp Region 6'!$AP$9, 0)","v":{"v":0,"d":"$0.00"}},{"$f":"IFERROR('MMA Rev-Exp Region 6'!$AQ$58/'MMA Rev-Exp Region 6'!$AQ$9, 0)","v":{"v":0,"d":"$0.00"}},{"$f":"IFERROR('MMA Rev-Exp Region 6'!$AR$58/'MMA Rev-Exp Region 6'!$AR$9, 0)","v":{"v":0,"d":"$0.00"}},{"$f":"IFERROR('MMA Rev-Exp Region 6'!$AS$58/'MMA Rev-Exp Region 6'!$AS$9, 0)","v":{"v":0,"d":"$0.00"}},{"$f":"IFERROR('MMA Rev-Exp Region 6'!$AT$58/'MMA Rev-Exp Region 6'!$AT$9, 0)","v":{"v":0,"d":"$0.00"}},{"$f":"IFERROR('MMA Rev-Exp Region 6'!$AU$58/'MMA Rev-Exp Region 6'!$AU$9, 0)","v":{"v":0,"d":"$0.00"}}]
["MMA",null,null,2016,"2016-12-31","Q4","2017-12-31","Region 6","Operating Expense","Medical Benefits Expense","Pharmacy Services","8.4","Prescription Drug Rebates ",{"$f":"IFERROR('MMA Rev-Exp Region 6'!$AK$59/'MMA Rev-Exp Region 6'!$AK$9, 0)","v":{"v":0,"d":"$0.00"}},{"$f":"IFERROR('MMA Rev-Exp Region 6'!$AL$59/'MMA Rev-Exp Region 6'!$AL$9, 0)","v":{"v":0,"d":"$0.00"}},{"$f":"IFERROR('MMA Rev-Exp Region 6'!$AM$59/'MMA Rev-Exp Region 6'!$AM$9, 0)","v":{"v":0,"d":"$0.00"}},{"$f":"IFERROR('MMA Rev-Exp Region 6'!$AN$59/'MMA Rev-Exp Region 6'!$AN$9, 0)","v":{"v":0,"d":"$0.00"}},{"$f":"IFERROR('MMA Rev-Exp Region 6'!$AO$59/'MMA Rev-Exp Region 6'!$AO$9, 0)","v":{"v":0,"d":"$0.00"}},{"$f":"IFERROR('MMA Rev-Exp Region 6'!$AP$59/'MMA Rev-Exp Region 6'!$AP$9, 0)","v":{"v":0,"d":"$0.00"}},{"$f":"IFERROR('MMA Rev-Exp Region 6'!$AQ$59/'MMA Rev-Exp Region 6'!$AQ$9, 0)","v":{"v":0,"d":"$0.00"}},{"$f":"IFERROR('MMA Rev-Exp Region 6'!$AR$59/'MMA Rev-Exp Region 6'!$AR$9, 0)","v":{"v":0,"d":"$0.00"}},{"$f":"IFERROR('MMA Rev-Exp Region 6'!$AS$59/'MMA Rev-Exp Region 6'!$AS$9, 0)","v":{"v":0,"d":"$0.00"}},{"$f":"IFERROR('MMA Rev-Exp Region 6'!$AT$59/'MMA Rev-Exp Region 6'!$AT$9, 0)","v":{"v":0,"d":"$0.00"}},{"$f":"IFERROR('MMA Rev-Exp Region 6'!$AU$59/'MMA Rev-Exp Region 6'!$AU$9, 0)","v":{"v":0,"d":"$0.00"}}]
["MMA",null,null,2016,"2016-12-31","Q4","2017-12-31","Region 6","Operating Expense","Medical Benefits Expense","Pharmacy Services","8.5","Ending accrual for Rebates receivable",{"$f":"IFERROR('MMA Rev-Exp Region 6'!$AK$60/'MMA Rev-Exp Region 6'!$AK$9, 0)","v":{"v":0,"d":"$0.00"}},{"$f":"IFERROR('MMA Rev-Exp Region 6'!$AL$60/'MMA Rev-Exp Region 6'!$AL$9, 0)","v":{"v":0,"d":"$0.00"}},{"$f":"IFERROR('MMA Rev-Exp Region 6'!$AM$60/'MMA Rev-Exp Region 6'!$AM$9, 0)","v":{"v":0,"d":"$0.00"}},{"$f":"IFERROR('MMA Rev-Exp Region 6'!$AN$60/'MMA Rev-Exp Region 6'!$AN$9, 0)","v":{"v":0,"d":"$0.00"}},{"$f":"IFERROR('MMA Rev-Exp Region 6'!$AO$60/'MMA Rev-Exp Region 6'!$AO$9, 0)","v":{"v":0,"d":"$0.00"}},{"$f":"IFERROR('MMA Rev-Exp Region 6'!$AP$60/'MMA Rev-Exp Region 6'!$AP$9, 0)","v":{"v":0,"d":"$0.00"}},{"$f":"IFERROR('MMA Rev-Exp Region 6'!$AQ$60/'MMA Rev-Exp Region 6'!$AQ$9, 0)","v":{"v":0,"d":"$0.00"}},{"$f":"IFERROR('MMA Rev-Exp Region 6'!$AR$60/'MMA Rev-Exp Region 6'!$AR$9, 0)","v":{"v":0,"d":"$0.00"}},{"$f":"IFERROR('MMA Rev-Exp Region 6'!$AS$60/'MMA Rev-Exp Region 6'!$AS$9, 0)","v":{"v":0,"d":"$0.00"}},{"$f":"IFERROR('MMA Rev-Exp Region 6'!$AT$60/'MMA Rev-Exp Region 6'!$AT$9, 0)","v":{"v":0,"d":"$0.00"}},{"$f":"IFERROR('MMA Rev-Exp Region 6'!$AU$60/'MMA Rev-Exp Region 6'!$AU$9, 0)","v":{"v":0,"d":"$0.00"}}]
["MMA",null,null,2016,"2016-12-31","Q4","2017-12-31","Region 6","Operating Expense","Medical Benefits Expense","Pharmacy Services","8.6","Prescription Drugs Subcapitation",{"$f":"IFERROR('MMA Rev-Exp Region 6'!$AK$61/'MMA Rev-Exp Region 6'!$AK$9, 0)","v":{"v":0,"d":"$0.00"}},{"$f":"IFERROR('MMA Rev-Exp Region 6'!$AL$61/'MMA Rev-Exp Region 6'!$AL$9, 0)","v":{"v":0,"d":"$0.00"}},{"$f":"IFERROR('MMA Rev-Exp Region 6'!$AM$61/'MMA Rev-Exp Region 6'!$AM$9, 0)","v":{"v":0,"d":"$0.00"}},{"$f":"IFERROR('MMA Rev-Exp Region 6'!$AN$61/'MMA Rev-Exp Region 6'!$AN$9, 0)","v":{"v":0,"d":"$0.00"}},{"$f":"IFERROR('MMA Rev-Exp Region 6'!$AO$61/'MMA Rev-Exp Region 6'!$AO$9, 0)","v":{"v":0,"d":"$0.00"}},{"$f":"IFERROR('MMA Rev-Exp Region 6'!$AP$61/'MMA Rev-Exp Region 6'!$AP$9, 0)","v":{"v":0,"d":"$0.00"}},{"$f":"IFERROR('MMA Rev-Exp Region 6'!$AQ$61/'MMA Rev-Exp Region 6'!$AQ$9, 0)","v":{"v":0,"d":"$0.00"}},{"$f":"IFERROR('MMA Rev-Exp Region 6'!$AR$61/'MMA Rev-Exp Region 6'!$AR$9, 0)","v":{"v":0,"d":"$0.00"}},{"$f":"IFERROR('MMA Rev-Exp Region 6'!$AS$61/'MMA Rev-Exp Region 6'!$AS$9, 0)","v":{"v":0,"d":"$0.00"}},{"$f":"IFERROR('MMA Rev-Exp Region 6'!$AT$61/'MMA Rev-Exp Region 6'!$AT$9, 0)","v":{"v":0,"d":"$0.00"}},{"$f":"IFERROR('MMA Rev-Exp Region 6'!$AU$61/'MMA Rev-Exp Region 6'!$AU$9, 0)","v":{"v":0,"d":"$0.00"}}]
["MMA",null,null,2016,"2016-12-31","Q4","2017-12-31","Region 6","Operating Expense","Medical Benefits Expense","Pharmacy Services","8.7","Prescription Drug Settlements",{"$f":"IFERROR('MMA Rev-Exp Region 6'!$AK$62/'MMA Rev-Exp Region 6'!$AK$9, 0)","v":{"v":0,"d":"$0.00"}},{"$f":"IFERROR('MMA Rev-Exp Region 6'!$AL$62/'MMA Rev-Exp Region 6'!$AL$9, 0)","v":{"v":0,"d":"$0.00"}},{"$f":"IFERROR('MMA Rev-Exp Region 6'!$AM$62/'MMA Rev-Exp Region 6'!$AM$9, 0)","v":{"v":0,"d":"$0.00"}},{"$f":"IFERROR('MMA Rev-Exp Region 6'!$AN$62/'MMA Rev-Exp Region 6'!$AN$9, 0)","v":{"v":0,"d":"$0.00"}},{"$f":"IFERROR('MMA Rev-Exp Region 6'!$AO$62/'MMA Rev-Exp Region 6'!$AO$9, 0)","v":{"v":0,"d":"$0.00"}},{"$f":"IFERROR('MMA Rev-Exp Region 6'!$AP$62/'MMA Rev-Exp Region 6'!$AP$9, 0)","v":{"v":0,"d":"$0.00"}},{"$f":"IFERROR('MMA Rev-Exp Region 6'!$AQ$62/'MMA Rev-Exp Region 6'!$AQ$9, 0)","v":{"v":0,"d":"$0.00"}},{"$f":"IFERROR('MMA Rev-Exp Region 6'!$AR$62/'MMA Rev-Exp Region 6'!$AR$9, 0)","v":{"v":0,"d":"$0.00"}},{"$f":"IFERROR('MMA Rev-Exp Region 6'!$AS$62/'MMA Rev-Exp Region 6'!$AS$9, 0)","v":{"v":0,"d":"$0.00"}},{"$f":"IFERROR('MMA Rev-Exp Region 6'!$AT$62/'MMA Rev-Exp Region 6'!$AT$9, 0)","v":{"v":0,"d":"$0.00"}},{"$f":"IFERROR('MMA Rev-Exp Region 6'!$AU$62/'MMA Rev-Exp Region 6'!$AU$9, 0)","v":{"v":0,"d":"$0.00"}}]
["MMA",null,null,2016,"2016-12-31","Q4","2017-12-31","Region 6","Operating Expense","Medical Benefits Expense","Other MMA Services",9.1,"Home Health, Private Duty Nursing, Personal Care FFS",{"$f":"IFERROR('MMA Rev-Exp Region 6'!$AK$64/'MMA Rev-Exp Region 6'!$AK$9, 0)","v":{"v":0,"d":"$0.00"}},{"$f":"IFERROR('MMA Rev-Exp Region 6'!$AL$64/'MMA Rev-Exp Region 6'!$AL$9, 0)","v":{"v":0,"d":"$0.00"}},{"$f":"IFERROR('MMA Rev-Exp Region 6'!$AM$64/'MMA Rev-Exp Region 6'!$AM$9, 0)","v":{"v":0,"d":"$0.00"}},{"$f":"IFERROR('MMA Rev-Exp Region 6'!$AN$64/'MMA Rev-Exp Region 6'!$AN$9, 0)","v":{"v":0,"d":"$0.00"}},{"$f":"IFERROR('MMA Rev-Exp Region 6'!$AO$64/'MMA Rev-Exp Region 6'!$AO$9, 0)","v":{"v":0,"d":"$0.00"}},{"$f":"IFERROR('MMA Rev-Exp Region 6'!$AP$64/'MMA Rev-Exp Region 6'!$AP$9, 0)","v":{"v":0,"d":"$0.00"}},{"$f":"IFERROR('MMA Rev-Exp Region 6'!$AQ$64/'MMA Rev-Exp Region 6'!$AQ$9, 0)","v":{"v":0,"d":"$0.00"}},{"$f":"IFERROR('MMA Rev-Exp Region 6'!$AR$64/'MMA Rev-Exp Region 6'!$AR$9, 0)","v":{"v":0,"d":"$0.00"}},{"$f":"IFERROR('MMA Rev-Exp Region 6'!$AS$64/'MMA Rev-Exp Region 6'!$AS$9, 0)","v":{"v":0,"d":"$0.00"}},{"$f":"IFERROR('MMA Rev-Exp Region 6'!$AT$64/'MMA Rev-Exp Region 6'!$AT$9, 0)","v":{"v":0,"d":"$0.00"}},{"$f":"IFERROR('MMA Rev-Exp Region 6'!$AU$64/'MMA Rev-Exp Region 6'!$AU$9, 0)","v":{"v":0,"d":"$0.00"}}]
["MMA",null,null,2016,"2016-12-31","Q4","2017-12-31","Region 6","Operating Expense","Medical Benefits Expense","Other MMA Services","9.2","Hospice FFS",{"$f":"IFERROR('MMA Rev-Exp Region 6'!$AK$65/'MMA Rev-Exp Region 6'!$AK$9, 0)","v":{"v":0,"d":"$0.00"}},{"$f":"IFERROR('MMA Rev-Exp Region 6'!$AL$65/'MMA Rev-Exp Region 6'!$AL$9, 0)","v":{"v":0,"d":"$0.00"}},{"$f":"IFERROR('MMA Rev-Exp Region 6'!$AM$65/'MMA Rev-Exp Region 6'!$AM$9, 0)","v":{"v":0,"d":"$0.00"}},{"$f":"IFERROR('MMA Rev-Exp Region 6'!$AN$65/'MMA Rev-Exp Region 6'!$AN$9, 0)","v":{"v":0,"d":"$0.00"}},{"$f":"IFERROR('MMA Rev-Exp Region 6'!$AO$65/'MMA Rev-Exp Region 6'!$AO$9, 0)","v":{"v":0,"d":"$0.00"}},{"$f":"IFERROR('MMA Rev-Exp Region 6'!$AP$65/'MMA Rev-Exp Region 6'!$AP$9, 0)","v":{"v":0,"d":"$0.00"}},{"$f":"IFERROR('MMA Rev-Exp Region 6'!$AQ$65/'MMA Rev-Exp Region 6'!$AQ$9, 0)","v":{"v":0,"d":"$0.00"}},{"$f":"IFERROR('MMA Rev-Exp Region 6'!$AR$65/'MMA Rev-Exp Region 6'!$AR$9, 0)","v":{"v":0,"d":"$0.00"}},{"$f":"IFERROR('MMA Rev-Exp Region 6'!$AS$65/'MMA Rev-Exp Region 6'!$AS$9, 0)","v":{"v":0,"d":"$0.00"}},{"$f":"IFERROR('MMA Rev-Exp Region 6'!$AT$65/'MMA Rev-Exp Region 6'!$AT$9, 0)","v":{"v":0,"d":"$0.00"}},{"$f":"IFERROR('MMA Rev-Exp Region 6'!$AU$65/'MMA Rev-Exp Region 6'!$AU$9, 0)","v":{"v":0,"d":"$0.00"}}]
["MMA",null,null,2016,"2016-12-31","Q4","2017-12-31","Region 6","Operating Expense","Medical Benefits Expense","Other MMA Services","9.3","DME FFS",{"$f":"IFERROR('MMA Rev-Exp Region 6'!$AK$66/'MMA Rev-Exp Region 6'!$AK$9, 0)","v":{"v":0,"d":"$0.00"}},{"$f":"IFERROR('MMA Rev-Exp Region 6'!$AL$66/'MMA Rev-Exp Region 6'!$AL$9, 0)","v":{"v":0,"d":"$0.00"}},{"$f":"IFERROR('MMA Rev-Exp Region 6'!$AM$66/'MMA Rev-Exp Region 6'!$AM$9, 0)","v":{"v":0,"d":"$0.00"}},{"$f":"IFERROR('MMA Rev-Exp Region 6'!$AN$66/'MMA Rev-Exp Region 6'!$AN$9, 0)","v":{"v":0,"d":"$0.00"}},{"$f":"IFERROR('MMA Rev-Exp Region 6'!$AO$66/'MMA Rev-Exp Region 6'!$AO$9, 0)","v":{"v":0,"d":"$0.00"}},{"$f":"IFERROR('MMA Rev-Exp Region 6'!$AP$66/'MMA Rev-Exp Region 6'!$AP$9, 0)","v":{"v":0,"d":"$0.00"}},{"$f":"IFERROR('MMA Rev-Exp Region 6'!$AQ$66/'MMA Rev-Exp Region 6'!$AQ$9, 0)","v":{"v":0,"d":"$0.00"}},{"$f":"IFERROR('MMA Rev-Exp Region 6'!$AR$66/'MMA Rev-Exp Region 6'!$AR$9, 0)","v":{"v":0,"d":"$0.00"}},{"$f":"IFERROR('MMA Rev-Exp Region 6'!$AS$66/'MMA Rev-Exp Region 6'!$AS$9, 0)","v":{"v":0,"d":"$0.00"}},{"$f":"IFERROR('MMA Rev-Exp Region 6'!$AT$66/'MMA Rev-Exp Region 6'!$AT$9, 0)","v":{"v":0,"d":"$0.00"}},{"$f":"IFERROR('MMA Rev-Exp Region 6'!$AU$66/'MMA Rev-Exp Region 6'!$AU$9, 0)","v":{"v":0,"d":"$0.00"}}]
["MMA",null,null,2016,"2016-12-31","Q4","2017-12-31","Region 6","Operating Expense","Medical Benefits Expense","Other MMA Services","9.4","Other State Plan Services FFS",{"$f":"IFERROR('MMA Rev-Exp Region 6'!$AK$67/'MMA Rev-Exp Region 6'!$AK$9, 0)","v":{"v":0,"d":"$0.00"}},{"$f":"IFERROR('MMA Rev-Exp Region 6'!$AL$67/'MMA Rev-Exp Region 6'!$AL$9, 0)","v":{"v":0,"d":"$0.00"}},{"$f":"IFERROR('MMA Rev-Exp Region 6'!$AM$67/'MMA Rev-Exp Region 6'!$AM$9, 0)","v":{"v":0,"d":"$0.00"}},{"$f":"IFERROR('MMA Rev-Exp Region 6'!$AN$67/'MMA Rev-Exp Region 6'!$AN$9, 0)","v":{"v":0,"d":"$0.00"}},{"$f":"IFERROR('MMA Rev-Exp Region 6'!$AO$67/'MMA Rev-Exp Region 6'!$AO$9, 0)","v":{"v":0,"d":"$0.00"}},{"$f":"IFERROR('MMA Rev-Exp Region 6'!$AP$67/'MMA Rev-Exp Region 6'!$AP$9, 0)","v":{"v":0,"d":"$0.00"}},{"$f":"IFERROR('MMA Rev-Exp Region 6'!$AQ$67/'MMA Rev-Exp Region 6'!$AQ$9, 0)","v":{"v":0,"d":"$0.00"}},{"$f":"IFERROR('MMA Rev-Exp Region 6'!$AR$67/'MMA Rev-Exp Region 6'!$AR$9, 0)","v":{"v":0,"d":"$0.00"}},{"$f":"IFERROR('MMA Rev-Exp Region 6'!$AS$67/'MMA Rev-Exp Region 6'!$AS$9, 0)","v":{"v":0,"d":"$0.00"}},{"$f":"IFERROR('MMA Rev-Exp Region 6'!$AT$67/'MMA Rev-Exp Region 6'!$AT$9, 0)","v":{"v":0,"d":"$0.00"}},{"$f":"IFERROR('MMA Rev-Exp Region 6'!$AU$67/'MMA Rev-Exp Region 6'!$AU$9, 0)","v":{"v":0,"d":"$0.00"}}]
["MMA",null,null,2016,"2016-12-31","Q4","2017-12-31","Region 6","Operating Expense","Medical Benefits Expense","Other MMA Services","9.5","Other Services Subcapitation",{"$f":"IFERROR('MMA Rev-Exp Region 6'!$AK$68/'MMA Rev-Exp Region 6'!$AK$9, 0)","v":{"v":0,"d":"$0.00"}},{"$f":"IFERROR('MMA Rev-Exp Region 6'!$AL$68/'MMA Rev-Exp Region 6'!$AL$9, 0)","v":{"v":0,"d":"$0.00"}},{"$f":"IFERROR('MMA Rev-Exp Region 6'!$AM$68/'MMA Rev-Exp Region 6'!$AM$9, 0)","v":{"v":0,"d":"$0.00"}},{"$f":"IFERROR('MMA Rev-Exp Region 6'!$AN$68/'MMA Rev-Exp Region 6'!$AN$9, 0)","v":{"v":0,"d":"$0.00"}},{"$f":"IFERROR('MMA Rev-Exp Region 6'!$AO$68/'MMA Rev-Exp Region 6'!$AO$9, 0)","v":{"v":0,"d":"$0.00"}},{"$f":"IFERROR('MMA Rev-Exp Region 6'!$AP$68/'MMA Rev-Exp Region 6'!$AP$9, 0)","v":{"v":0,"d":"$0.00"}},{"$f":"IFERROR('MMA Rev-Exp Region 6'!$AQ$68/'MMA Rev-Exp Region 6'!$AQ$9, 0)","v":{"v":0,"d":"$0.00"}},{"$f":"IFERROR('MMA Rev-Exp Region 6'!$AR$68/'MMA Rev-Exp Region 6'!$AR$9, 0)","v":{"v":0,"d":"$0.00"}},{"$f":"IFERROR('MMA Rev-Exp Region 6'!$AS$68/'MMA Rev-Exp Region 6'!$AS$9, 0)","v":{"v":0,"d":"$0.00"}},{"$f":"IFERROR('MMA Rev-Exp Region 6'!$AT$68/'MMA Rev-Exp Region 6'!$AT$9, 0)","v":{"v":0,"d":"$0.00"}},{"$f":"IFERROR('MMA Rev-Exp Region 6'!$AU$68/'MMA Rev-Exp Region 6'!$AU$9, 0)","v":{"v":0,"d":"$0.00"}}]
["MMA",null,null,2016,"2016-12-31","Q4","2017-12-31","Region 6","Operating Expense","Medical Benefits Expense","Other MMA Services","9.6","Ending IBNP for Other Services",{"$f":"IFERROR('MMA Rev-Exp Region 6'!$AK$69/'MMA Rev-Exp Region 6'!$AK$9, 0)","v":{"v":0,"d":"$0.00"}},{"$f":"IFERROR('MMA Rev-Exp Region 6'!$AL$69/'MMA Rev-Exp Region 6'!$AL$9, 0)","v":{"v":0,"d":"$0.00"}},{"$f":"IFERROR('MMA Rev-Exp Region 6'!$AM$69/'MMA Rev-Exp Region 6'!$AM$9, 0)","v":{"v":0,"d":"$0.00"}},{"$f":"IFERROR('MMA Rev-Exp Region 6'!$AN$69/'MMA Rev-Exp Region 6'!$AN$9, 0)","v":{"v":0,"d":"$0.00"}},{"$f":"IFERROR('MMA Rev-Exp Region 6'!$AO$69/'MMA Rev-Exp Region 6'!$AO$9, 0)","v":{"v":0,"d":"$0.00"}},{"$f":"IFERROR('MMA Rev-Exp Region 6'!$AP$69/'MMA Rev-Exp Region 6'!$AP$9, 0)","v":{"v":0,"d":"$0.00"}},{"$f":"IFERROR('MMA Rev-Exp Region 6'!$AQ$69/'MMA Rev-Exp Region 6'!$AQ$9, 0)","v":{"v":0,"d":"$0.00"}},{"$f":"IFERROR('MMA Rev-Exp Region 6'!$AR$69/'MMA Rev-Exp Region 6'!$AR$9, 0)","v":{"v":0,"d":"$0.00"}},{"$f":"IFERROR('MMA Rev-Exp Region 6'!$AS$69/'MMA Rev-Exp Region 6'!$AS$9, 0)","v":{"v":0,"d":"$0.00"}},{"$f":"IFERROR('MMA Rev-Exp Region 6'!$AT$69/'MMA Rev-Exp Region 6'!$AT$9, 0)","v":{"v":0,"d":"$0.00"}},{"$f":"IFERROR('MMA Rev-Exp Region 6'!$AU$69/'MMA Rev-Exp Region 6'!$AU$9, 0)","v":{"v":0,"d":"$0.00"}}]
["MMA",null,null,2016,"2016-12-31","Q4","2017-12-31","Region 6","Operating Expense","Medical Benefits Expense","Other MMA Services","9.7","Other Services Settlements",{"$f":"IFERROR('MMA Rev-Exp Region 6'!$AK$70/'MMA Rev-Exp Region 6'!$AK$9, 0)","v":{"v":0,"d":"$0.00"}},{"$f":"IFERROR('MMA Rev-Exp Region 6'!$AL$70/'MMA Rev-Exp Region 6'!$AL$9, 0)","v":{"v":0,"d":"$0.00"}},{"$f":"IFERROR('MMA Rev-Exp Region 6'!$AM$70/'MMA Rev-Exp Region 6'!$AM$9, 0)","v":{"v":0,"d":"$0.00"}},{"$f":"IFERROR('MMA Rev-Exp Region 6'!$AN$70/'MMA Rev-Exp Region 6'!$AN$9, 0)","v":{"v":0,"d":"$0.00"}},{"$f":"IFERROR('MMA Rev-Exp Region 6'!$AO$70/'MMA Rev-Exp Region 6'!$AO$9, 0)","v":{"v":0,"d":"$0.00"}},{"$f":"IFERROR('MMA Rev-Exp Region 6'!$AP$70/'MMA Rev-Exp Region 6'!$AP$9, 0)","v":{"v":0,"d":"$0.00"}},{"$f":"IFERROR('MMA Rev-Exp Region 6'!$AQ$70/'MMA Rev-Exp Region 6'!$AQ$9, 0)","v":{"v":0,"d":"$0.00"}},{"$f":"IFERROR('MMA Rev-Exp Region 6'!$AR$70/'MMA Rev-Exp Region 6'!$AR$9, 0)","v":{"v":0,"d":"$0.00"}},{"$f":"IFERROR('MMA Rev-Exp Region 6'!$AS$70/'MMA Rev-Exp Region 6'!$AS$9, 0)","v":{"v":0,"d":"$0.00"}},{"$f":"IFERROR('MMA Rev-Exp Region 6'!$AT$70/'MMA Rev-Exp Region 6'!$AT$9, 0)","v":{"v":0,"d":"$0.00"}},{"$f":"IFERROR('MMA Rev-Exp Region 6'!$AU$70/'MMA Rev-Exp Region 6'!$AU$9, 0)","v":{"v":0,"d":"$0.00"}}]
["MMA",null,null,2016,"2016-12-31","Q4","2017-12-31","Region 6","Operating Expense","Medical Benefits Expense","Expanded Benefits","10.1","Expanded Benefits FFS",{"$f":"IFERROR('MMA Rev-Exp Region 6'!$AK$72/'MMA Rev-Exp Region 6'!$AK$9, 0)","v":{"v":0,"d":"$0.00"}},{"$f":"IFERROR('MMA Rev-Exp Region 6'!$AL$72/'MMA Rev-Exp Region 6'!$AL$9, 0)","v":{"v":0,"d":"$0.00"}},{"$f":"IFERROR('MMA Rev-Exp Region 6'!$AM$72/'MMA Rev-Exp Region 6'!$AM$9, 0)","v":{"v":0,"d":"$0.00"}},{"$f":"IFERROR('MMA Rev-Exp Region 6'!$AN$72/'MMA Rev-Exp Region 6'!$AN$9, 0)","v":{"v":0,"d":"$0.00"}},{"$f":"IFERROR('MMA Rev-Exp Region 6'!$AO$72/'MMA Rev-Exp Region 6'!$AO$9, 0)","v":{"v":0,"d":"$0.00"}},{"$f":"IFERROR('MMA Rev-Exp Region 6'!$AP$72/'MMA Rev-Exp Region 6'!$AP$9, 0)","v":{"v":0,"d":"$0.00"}},{"$f":"IFERROR('MMA Rev-Exp Region 6'!$AQ$72/'MMA Rev-Exp Region 6'!$AQ$9, 0)","v":{"v":0,"d":"$0.00"}},{"$f":"IFERROR('MMA Rev-Exp Region 6'!$AR$72/'MMA Rev-Exp Region 6'!$AR$9, 0)","v":{"v":0,"d":"$0.00"}},{"$f":"IFERROR('MMA Rev-Exp Region 6'!$AS$72/'MMA Rev-Exp Region 6'!$AS$9, 0)","v":{"v":0,"d":"$0.00"}},{"$f":"IFERROR('MMA Rev-Exp Region 6'!$AT$72/'MMA Rev-Exp Region 6'!$AT$9, 0)","v":{"v":0,"d":"$0.00"}},{"$f":"IFERROR('MMA Rev-Exp Region 6'!$AU$72/'MMA Rev-Exp Region 6'!$AU$9, 0)","v":{"v":0,"d":"$0.00"}}]
["MMA",null,null,2016,"2016-12-31","Q4","2017-12-31","Region 6","Operating Expense","Medical Benefits Expense","Expanded Benefits","10.2","Expanded benefits Subcapitation",{"$f":"IFERROR('MMA Rev-Exp Region 6'!$AK$73/'MMA Rev-Exp Region 6'!$AK$9, 0)","v":{"v":0,"d":"$0.00"}},{"$f":"IFERROR('MMA Rev-Exp Region 6'!$AL$73/'MMA Rev-Exp Region 6'!$AL$9, 0)","v":{"v":0,"d":"$0.00"}},{"$f":"IFERROR('MMA Rev-Exp Region 6'!$AM$73/'MMA Rev-Exp Region 6'!$AM$9, 0)","v":{"v":0,"d":"$0.00"}},{"$f":"IFERROR('MMA Rev-Exp Region 6'!$AN$73/'MMA Rev-Exp Region 6'!$AN$9, 0)","v":{"v":0,"d":"$0.00"}},{"$f":"IFERROR('MMA Rev-Exp Region 6'!$AO$73/'MMA Rev-Exp Region 6'!$AO$9, 0)","v":{"v":0,"d":"$0.00"}},{"$f":"IFERROR('MMA Rev-Exp Region 6'!$AP$73/'MMA Rev-Exp Region 6'!$AP$9, 0)","v":{"v":0,"d":"$0.00"}},{"$f":"IFERROR('MMA Rev-Exp Region 6'!$AQ$73/'MMA Rev-Exp Region 6'!$AQ$9, 0)","v":{"v":0,"d":"$0.00"}},{"$f":"IFERROR('MMA Rev-Exp Region 6'!$AR$73/'MMA Rev-Exp Region 6'!$AR$9, 0)","v":{"v":0,"d":"$0.00"}},{"$f":"IFERROR('MMA Rev-Exp Region 6'!$AS$73/'MMA Rev-Exp Region 6'!$AS$9, 0)","v":{"v":0,"d":"$0.00"}},{"$f":"IFERROR('MMA Rev-Exp Region 6'!$AT$73/'MMA Rev-Exp Region 6'!$AT$9, 0)","v":{"v":0,"d":"$0.00"}},{"$f":"IFERROR('MMA Rev-Exp Region 6'!$AU$73/'MMA Rev-Exp Region 6'!$AU$9, 0)","v":{"v":0,"d":"$0.00"}}]
["MMA",null,null,2016,"2016-12-31","Q4","2017-12-31","Region 6","Operating Expense","Medical Benefits Expense","Expanded Benefits","10.3","Ending IBNP for Expanded Benefits",{"$f":"IFERROR('MMA Rev-Exp Region 6'!$AK$74/'MMA Rev-Exp Region 6'!$AK$9, 0)","v":{"v":0,"d":"$0.00"}},{"$f":"IFERROR('MMA Rev-Exp Region 6'!$AL$74/'MMA Rev-Exp Region 6'!$AL$9, 0)","v":{"v":0,"d":"$0.00"}},{"$f":"IFERROR('MMA Rev-Exp Region 6'!$AM$74/'MMA Rev-Exp Region 6'!$AM$9, 0)","v":{"v":0,"d":"$0.00"}},{"$f":"IFERROR('MMA Rev-Exp Region 6'!$AN$74/'MMA Rev-Exp Region 6'!$AN$9, 0)","v":{"v":0,"d":"$0.00"}},{"$f":"IFERROR('MMA Rev-Exp Region 6'!$AO$74/'MMA Rev-Exp Region 6'!$AO$9, 0)","v":{"v":0,"d":"$0.00"}},{"$f":"IFERROR('MMA Rev-Exp Region 6'!$AP$74/'MMA Rev-Exp Region 6'!$AP$9, 0)","v":{"v":0,"d":"$0.00"}},{"$f":"IFERROR('MMA Rev-Exp Region 6'!$AQ$74/'MMA Rev-Exp Region 6'!$AQ$9, 0)","v":{"v":0,"d":"$0.00"}},{"$f":"IFERROR('MMA Rev-Exp Region 6'!$AR$74/'MMA Rev-Exp Region 6'!$AR$9, 0)","v":{"v":0,"d":"$0.00"}},{"$f":"IFERROR('MMA Rev-Exp Region 6'!$AS$74/'MMA Rev-Exp Region 6'!$AS$9, 0)","v":{"v":0,"d":"$0.00"}},{"$f":"IFERROR('MMA Rev-Exp Region 6'!$AT$74/'MMA Rev-Exp Region 6'!$AT$9, 0)","v":{"v":0,"d":"$0.00"}},{"$f":"IFERROR('MMA Rev-Exp Region 6'!$AU$74/'MMA Rev-Exp Region 6'!$AU$9, 0)","v":{"v":0,"d":"$0.00"}}]
["MMA",null,null,2016,"2016-12-31","Q4","2017-12-31","Region 6","Operating Expense","Medical Benefits Expense","Expanded Benefits","10.4","Expanded Benefits Settlements",{"$f":"IFERROR('MMA Rev-Exp Region 6'!$AK$75/'MMA Rev-Exp Region 6'!$AK$9, 0)","v":{"v":0,"d":"$0.00"}},{"$f":"IFERROR('MMA Rev-Exp Region 6'!$AL$75/'MMA Rev-Exp Region 6'!$AL$9, 0)","v":{"v":0,"d":"$0.00"}},{"$f":"IFERROR('MMA Rev-Exp Region 6'!$AM$75/'MMA Rev-Exp Region 6'!$AM$9, 0)","v":{"v":0,"d":"$0.00"}},{"$f":"IFERROR('MMA Rev-Exp Region 6'!$AN$75/'MMA Rev-Exp Region 6'!$AN$9, 0)","v":{"v":0,"d":"$0.00"}},{"$f":"IFERROR('MMA Rev-Exp Region 6'!$AO$75/'MMA Rev-Exp Region 6'!$AO$9, 0)","v":{"v":0,"d":"$0.00"}},{"$f":"IFERROR('MMA Rev-Exp Region 6'!$AP$75/'MMA Rev-Exp Region 6'!$AP$9, 0)","v":{"v":0,"d":"$0.00"}},{"$f":"IFERROR('MMA Rev-Exp Region 6'!$AQ$75/'MMA Rev-Exp Region 6'!$AQ$9, 0)","v":{"v":0,"d":"$0.00"}},{"$f":"IFERROR('MMA Rev-Exp Region 6'!$AR$75/'MMA Rev-Exp Region 6'!$AR$9, 0)","v":{"v":0,"d":"$0.00"}},{"$f":"IFERROR('MMA Rev-Exp Region 6'!$AS$75/'MMA Rev-Exp Region 6'!$AS$9, 0)","v":{"v":0,"d":"$0.00"}},{"$f":"IFERROR('MMA Rev-Exp Region 6'!$AT$75/'MMA Rev-Exp Region 6'!$AT$9, 0)","v":{"v":0,"d":"$0.00"}},{"$f":"IFERROR('MMA Rev-Exp Region 6'!$AU$75/'MMA Rev-Exp Region 6'!$AU$9, 0)","v":{"v":0,"d":"$0.00"}}]
["MMA",null,null,2016,"2016-12-31","Q4","2017-12-31","Region 6","Operating Expense","Medical Benefits Expense","Other Medical","11.5","TPL & Fraud/Abuse Recoveries",{"$f":"IFERROR('MMA Rev-Exp Region 6'!$AK$81/'MMA Rev-Exp Region 6'!$AK$9, 0)","v":{"v":0,"d":"$0.00"}},{"$f":"IFERROR('MMA Rev-Exp Region 6'!$AL$81/'MMA Rev-Exp Region 6'!$AL$9, 0)","v":{"v":0,"d":"$0.00"}},{"$f":"IFERROR('MMA Rev-Exp Region 6'!$AM$81/'MMA Rev-Exp Region 6'!$AM$9, 0)","v":{"v":0,"d":"$0.00"}},{"$f":"IFERROR('MMA Rev-Exp Region 6'!$AN$81/'MMA Rev-Exp Region 6'!$AN$9, 0)","v":{"v":0,"d":"$0.00"}},{"$f":"IFERROR('MMA Rev-Exp Region 6'!$AO$81/'MMA Rev-Exp Region 6'!$AO$9, 0)","v":{"v":0,"d":"$0.00"}},{"$f":"IFERROR('MMA Rev-Exp Region 6'!$AP$81/'MMA Rev-Exp Region 6'!$AP$9, 0)","v":{"v":0,"d":"$0.00"}},{"$f":"IFERROR('MMA Rev-Exp Region 6'!$AQ$81/'MMA Rev-Exp Region 6'!$AQ$9, 0)","v":{"v":0,"d":"$0.00"}},{"$f":"IFERROR('MMA Rev-Exp Region 6'!$AR$81/'MMA Rev-Exp Region 6'!$AR$9, 0)","v":{"v":0,"d":"$0.00"}},{"$f":"IFERROR('MMA Rev-Exp Region 6'!$AS$81/'MMA Rev-Exp Region 6'!$AS$9, 0)","v":{"v":0,"d":"$0.00"}},{"$f":"IFERROR('MMA Rev-Exp Region 6'!$AT$81/'MMA Rev-Exp Region 6'!$AT$9, 0)","v":{"v":0,"d":"$0.00"}},{"$f":"IFERROR('MMA Rev-Exp Region 6'!$AU$81/'MMA Rev-Exp Region 6'!$AU$9, 0)","v":{"v":0,"d":"$0.00"}}]
["MMA",null,null,2016,"2016-12-31","Q4","2017-12-31","Region 6","Operating Expense","Medical Benefits Expense","Other Medical","11.6.1","Premium Deficiency Reserve",{"$f":"IFERROR('MMA Rev-Exp Region 6'!$AK$82/'MMA Rev-Exp Region 6'!$AK$9, 0)","v":{"v":0,"d":"$0.00"}},{"$f":"IFERROR('MMA Rev-Exp Region 6'!$AL$82/'MMA Rev-Exp Region 6'!$AL$9, 0)","v":{"v":0,"d":"$0.00"}},{"$f":"IFERROR('MMA Rev-Exp Region 6'!$AM$82/'MMA Rev-Exp Region 6'!$AM$9, 0)","v":{"v":0,"d":"$0.00"}},{"$f":"IFERROR('MMA Rev-Exp Region 6'!$AN$82/'MMA Rev-Exp Region 6'!$AN$9, 0)","v":{"v":0,"d":"$0.00"}},{"$f":"IFERROR('MMA Rev-Exp Region 6'!$AO$82/'MMA Rev-Exp Region 6'!$AO$9, 0)","v":{"v":0,"d":"$0.00"}},{"$f":"IFERROR('MMA Rev-Exp Region 6'!$AP$82/'MMA Rev-Exp Region 6'!$AP$9, 0)","v":{"v":0,"d":"$0.00"}},{"$f":"IFERROR('MMA Rev-Exp Region 6'!$AQ$82/'MMA Rev-Exp Region 6'!$AQ$9, 0)","v":{"v":0,"d":"$0.00"}},{"$f":"IFERROR('MMA Rev-Exp Region 6'!$AR$82/'MMA Rev-Exp Region 6'!$AR$9, 0)","v":{"v":0,"d":"$0.00"}},{"$f":"IFERROR('MMA Rev-Exp Region 6'!$AS$82/'MMA Rev-Exp Region 6'!$AS$9, 0)","v":{"v":0,"d":"$0.00"}},{"$f":"IFERROR('MMA Rev-Exp Region 6'!$AT$82/'MMA Rev-Exp Region 6'!$AT$9, 0)","v":{"v":0,"d":"$0.00"}},{"$f":"IFERROR('MMA Rev-Exp Region 6'!$AU$82/'MMA Rev-Exp Region 6'!$AU$9, 0)","v":{"v":0,"d":"$0.00"}}]
["MMA",null,null,2016,"2016-12-31","Q4","2017-12-31","Region 6","Operating Expense","Medical Benefits Expense","Other Medical","11.8","Reinsurance Premiums",{"$f":"IFERROR('MMA Rev-Exp Region 6'!$AK$84/'MMA Rev-Exp Region 6'!$AK$9, 0)","v":{"v":0,"d":"$0.00"}},{"$f":"IFERROR('MMA Rev-Exp Region 6'!$AL$84/'MMA Rev-Exp Region 6'!$AL$9, 0)","v":{"v":0,"d":"$0.00"}},{"$f":"IFERROR('MMA Rev-Exp Region 6'!$AM$84/'MMA Rev-Exp Region 6'!$AM$9, 0)","v":{"v":0,"d":"$0.00"}},{"$f":"IFERROR('MMA Rev-Exp Region 6'!$AN$84/'MMA Rev-Exp Region 6'!$AN$9, 0)","v":{"v":0,"d":"$0.00"}},{"$f":"IFERROR('MMA Rev-Exp Region 6'!$AO$84/'MMA Rev-Exp Region 6'!$AO$9, 0)","v":{"v":0,"d":"$0.00"}},{"$f":"IFERROR('MMA Rev-Exp Region 6'!$AP$84/'MMA Rev-Exp Region 6'!$AP$9, 0)","v":{"v":0,"d":"$0.00"}},{"$f":"IFERROR('MMA Rev-Exp Region 6'!$AQ$84/'MMA Rev-Exp Region 6'!$AQ$9, 0)","v":{"v":0,"d":"$0.00"}},{"$f":"IFERROR('MMA Rev-Exp Region 6'!$AR$84/'MMA Rev-Exp Region 6'!$AR$9, 0)","v":{"v":0,"d":"$0.00"}},{"$f":"IFERROR('MMA Rev-Exp Region 6'!$AS$84/'MMA Rev-Exp Region 6'!$AS$9, 0)","v":{"v":0,"d":"$0.00"}},{"$f":"IFERROR('MMA Rev-Exp Region 6'!$AT$84/'MMA Rev-Exp Region 6'!$AT$9, 0)","v":{"v":0,"d":"$0.00"}},{"$f":"IFERROR('MMA Rev-Exp Region 6'!$AU$84/'MMA Rev-Exp Region 6'!$AU$9, 0)","v":{"v":0,"d":"$0.00"}}]
["MMA",null,null,2016,"2016-12-31","Q4","2017-12-31","Region 6","Operating Expense","Medical Benefits Expense","Other Medical","11.9","Reinsurance Recoveries",{"$f":"IFERROR('MMA Rev-Exp Region 6'!$AK$85/'MMA Rev-Exp Region 6'!$AK$9, 0)","v":{"v":0,"d":"$0.00"}},{"$f":"IFERROR('MMA Rev-Exp Region 6'!$AL$85/'MMA Rev-Exp Region 6'!$AL$9, 0)","v":{"v":0,"d":"$0.00"}},{"$f":"IFERROR('MMA Rev-Exp Region 6'!$AM$85/'MMA Rev-Exp Region 6'!$AM$9, 0)","v":{"v":0,"d":"$0.00"}},{"$f":"IFERROR('MMA Rev-Exp Region 6'!$AN$85/'MMA Rev-Exp Region 6'!$AN$9, 0)","v":{"v":0,"d":"$0.00"}},{"$f":"IFERROR('MMA Rev-Exp Region 6'!$AO$85/'MMA Rev-Exp Region 6'!$AO$9, 0)","v":{"v":0,"d":"$0.00"}},{"$f":"IFERROR('MMA Rev-Exp Region 6'!$AP$85/'MMA Rev-Exp Region 6'!$AP$9, 0)","v":{"v":0,"d":"$0.00"}},{"$f":"IFERROR('MMA Rev-Exp Region 6'!$AQ$85/'MMA Rev-Exp Region 6'!$AQ$9, 0)","v":{"v":0,"d":"$0.00"}},{"$f":"IFERROR('MMA Rev-Exp Region 6'!$AR$85/'MMA Rev-Exp Region 6'!$AR$9, 0)","v":{"v":0,"d":"$0.00"}},{"$f":"IFERROR('MMA Rev-Exp Region 6'!$AS$85/'MMA Rev-Exp Region 6'!$AS$9, 0)","v":{"v":0,"d":"$0.00"}},{"$f":"IFERROR('MMA Rev-Exp Region 6'!$AT$85/'MMA Rev-Exp Region 6'!$AT$9, 0)","v":{"v":0,"d":"$0.00"}},{"$f":"IFERROR('MMA Rev-Exp Region 6'!$AU$85/'MMA Rev-Exp Region 6'!$AU$9, 0)","v":{"v":0,"d":"$0.00"}}]
["MMA",null,null,2016,"2016-12-31","Q4","2017-12-31","Region 6","Operating Expense","Administrative Expense","Administrative","12.1","Salaries & Benefits",{"$f":"IFERROR('MMA Rev-Exp Region 6'!$AK$90/'MMA Rev-Exp Region 6'!$AK$9, 0)","v":{"v":0,"d":"$0.00"}},{"$f":"IFERROR('MMA Rev-Exp Region 6'!$AL$90/'MMA Rev-Exp Region 6'!$AK$9, 0)","v":{"v":0,"d":"$0.00"}},{"$f":"IFERROR('MMA Rev-Exp Region 6'!$AM$90/'MMA Rev-Exp Region 6'!$AK$9, 0)","v":{"v":0,"d":"$0.00"}}]
["MMA",null,null,2016,"2016-12-31","Q4","2017-12-31","Region 6","Operating Expense","Administrative Expense","Administrative","12.2","Administrative Services",{"$f":"IFERROR('MMA Rev-Exp Region 6'!$AK$91/'MMA Rev-Exp Region 6'!$AK$9, 0)","v":{"v":0,"d":"$0.00"}},{"$f":"IFERROR('MMA Rev-Exp Region 6'!$AL$91/'MMA Rev-Exp Region 6'!$AK$9, 0)","v":{"v":0,"d":"$0.00"}},{"$f":"IFERROR('MMA Rev-Exp Region 6'!$AM$91/'MMA Rev-Exp Region 6'!$AK$9, 0)","v":{"v":0,"d":"$0.00"}}]
["MMA",null,null,2016,"2016-12-31","Q4","2017-12-31","Region 6","Operating Expense","Administrative Expense","Administrative","12.3","Information Systems",{"$f":"IFERROR('MMA Rev-Exp Region 6'!$AK$92/'MMA Rev-Exp Region 6'!$AK$9, 0)","v":{"v":0,"d":"$0.00"}},{"$f":"IFERROR('MMA Rev-Exp Region 6'!$AL$92/'MMA Rev-Exp Region 6'!$AK$9, 0)","v":{"v":0,"d":"$0.00"}},{"$f":"IFERROR('MMA Rev-Exp Region 6'!$AM$92/'MMA Rev-Exp Region 6'!$AK$9, 0)","v":{"v":0,"d":"$0.00"}}]
["MMA",null,null,2016,"2016-12-31","Q4","2017-12-31","Region 6","Operating Expense","Administrative Expense","Administrative","12.4","Marketing Expenses",{"$f":"IFERROR('MMA Rev-Exp Region 6'!$AK$93/'MMA Rev-Exp Region 6'!$AK$9, 0)","v":{"v":0,"d":"$0.00"}},{"$f":"IFERROR('MMA Rev-Exp Region 6'!$AL$93/'MMA Rev-Exp Region 6'!$AK$9, 0)","v":{"v":0,"d":"$0.00"}},{"$f":"IFERROR('MMA Rev-Exp Region 6'!$AM$93/'MMA Rev-Exp Region 6'!$AK$9, 0)","v":{"v":0,"d":"$0.00"}}]
["MMA",null,null,2016,"2016-12-31","Q4","2017-12-31","Region 6","Operating Expense","Administrative Expense","Administrative","12.5","General  Administration",{"$f":"IFERROR('MMA Rev-Exp Region 6'!$AK$94/'MMA Rev-Exp Region 6'!$AK$9, 0)","v":{"v":0,"d":"$0.00"}},{"$f":"IFERROR('MMA Rev-Exp Region 6'!$AL$94/'MMA Rev-Exp Region 6'!$AK$9, 0)","v":{"v":0,"d":"$0.00"}},{"$f":"IFERROR('MMA Rev-Exp Region 6'!$AM$94/'MMA Rev-Exp Region 6'!$AK$9, 0)","v":{"v":0,"d":"$0.00"}}]
["MMA",null,null,2016,"2016-12-31","Q4","2017-12-31","Region 6","Operating Expense","Administrative Expense","Administrative","12.6","Compliance/Regulatory",{"$f":"IFERROR('MMA Rev-Exp Region 6'!$AK$95/'MMA Rev-Exp Region 6'!$AK$9, 0)","v":{"v":0,"d":"$0.00"}},{"$f":"IFERROR('MMA Rev-Exp Region 6'!$AL$95/'MMA Rev-Exp Region 6'!$AK$9, 0)","v":{"v":0,"d":"$0.00"}},{"$f":"IFERROR('MMA Rev-Exp Region 6'!$AM$95/'MMA Rev-Exp Region 6'!$AK$9, 0)","v":{"v":0,"d":"$0.00"}}]
["MMA",null,null,2016,"2016-12-31","Q4","2017-12-31","Region 6","Operating Expense","Taxes & Fees","Taxes & Fees","13.1","State Premium tax",{"$f":"IFERROR('MMA Rev-Exp Region 6'!$AK$97/'MMA Rev-Exp Region 6'!$AK$9, 0)","v":{"v":0,"d":"$0.00"}}]
["MMA",null,null,2016,"2016-12-31","Q4","2017-12-31","Region 6","Operating Expense","Taxes & Fees","Taxes & Fees","13.2","Department of Insurance Assessments",{"$f":"IFERROR('MMA Rev-Exp Region 6'!$AK$98/'MMA Rev-Exp Region 6'!$AK$9, 0)","v":{"v":0,"d":"$0.00"}}]
["MMA",null,null,2016,"2016-12-31","Q4","2017-12-31","Region 6","Operating Expense","Taxes & Fees","Taxes & Fees","13.3","Section 9010 Health Insurance Providers Fee",{"$f":"IFERROR('MMA Rev-Exp Region 6'!$AK$99/'MMA Rev-Exp Region 6'!$AK$9, 0)","v":{"v":0,"d":"$0.00"}}]
["MMA",null,null,2016,"2016-12-31","Q4","2017-12-31","Region 6","Non-Operating Expense","Income Tax Expense","Income Tax Expense","16.0","Income Tax Expense",{"$f":"IFERROR('MMA Rev-Exp Region 6'!$AK$106/'MMA Rev-Exp Region 6'!$AK$9, 0)","v":{"v":0,"d":"$0.00"}}]
["MMA",null,null,2016,"2016-12-31","Q1","2017-03-31","Region 7","Operating Revenue","Capitation","Capitation",1.1,"Capitation",{"$f":"IFERROR('MMA Rev-Exp Region 7'!$D$11/'MMA Rev-Exp Region 7'!$D$9, 0)","v":{"v":0,"d":"$0.00"}},{"$f":"IFERROR('MMA Rev-Exp Region 7'!$E$11/'MMA Rev-Exp Region 7'!$E$9, 0)","v":{"v":0,"d":"$0.00"}},{"$f":"IFERROR('MMA Rev-Exp Region 7'!$F$11/'MMA Rev-Exp Region 7'!$F$9, 0)","v":{"v":0,"d":"$0.00"}},{"$f":"IFERROR('MMA Rev-Exp Region 7'!$G$11/'MMA Rev-Exp Region 7'!$G$9, 0)","v":{"v":0,"d":"$0.00"}},{"$f":"IFERROR('MMA Rev-Exp Region 7'!$H$11/'MMA Rev-Exp Region 7'!$H$9, 0)","v":{"v":0,"d":"$0.00"}},{"$f":"IFERROR('MMA Rev-Exp Region 7'!$I$11/'MMA Rev-Exp Region 7'!$I$9, 0)","v":{"v":0,"d":"$0.00"}},{"$f":"IFERROR('MMA Rev-Exp Region 7'!$J$11/'MMA Rev-Exp Region 7'!$J$9, 0)","v":{"v":0,"d":"$0.00"}},{"$f":"IFERROR('MMA Rev-Exp Region 7'!$K$11/'MMA Rev-Exp Region 7'!$K$9, 0)","v":{"v":0,"d":"$0.00"}},{"$f":"IFERROR('MMA Rev-Exp Region 7'!$L$11/'MMA Rev-Exp Region 7'!$L$9, 0)","v":{"v":0,"d":"$0.00"}},{"$f":"IFERROR('MMA Rev-Exp Region 7'!$M$11/'MMA Rev-Exp Region 7'!$M$9, 0)","v":{"v":0,"d":"$0.00"}},{"$f":"IFERROR('MMA Rev-Exp Region 7'!$N$11/'MMA Rev-Exp Region 7'!$N$9, 0)","v":{"v":0,"d":"$0.00"}}]
["MMA",null,null,2016,"2016-12-31","Q1","2017-03-31","Region 7","Operating Revenue","Kick Payments","Kick Payments - Transplant",1.2,"Transplant Kick Payments",{"$f":"IFERROR('MMA Rev-Exp Region 7'!$D$12/'MMA Rev-Exp Region 7'!$D$9, 0)","v":{"v":0,"d":"$0.00"}},{"$f":"IFERROR('MMA Rev-Exp Region 7'!$E$12/'MMA Rev-Exp Region 7'!$E$9, 0)","v":{"v":0,"d":"$0.00"}},{"$f":"IFERROR('MMA Rev-Exp Region 7'!$F$12/'MMA Rev-Exp Region 7'!$F$9, 0)","v":{"v":0,"d":"$0.00"}},{"$f":"IFERROR('MMA Rev-Exp Region 7'!$G$12/'MMA Rev-Exp Region 7'!$G$9, 0)","v":{"v":0,"d":"$0.00"}},{"$f":"IFERROR('MMA Rev-Exp Region 7'!$H$12/'MMA Rev-Exp Region 7'!$H$9, 0)","v":{"v":0,"d":"$0.00"}},{"$f":"IFERROR('MMA Rev-Exp Region 7'!$I$12/'MMA Rev-Exp Region 7'!$I$9, 0)","v":{"v":0,"d":"$0.00"}},{"$f":"IFERROR('MMA Rev-Exp Region 7'!$J$12/'MMA Rev-Exp Region 7'!$J$9, 0)","v":{"v":0,"d":"$0.00"}},{"$f":"IFERROR('MMA Rev-Exp Region 7'!$K$12/'MMA Rev-Exp Region 7'!$K$9, 0)","v":{"v":0,"d":"$0.00"}},{"$f":"IFERROR('MMA Rev-Exp Region 7'!$L$12/'MMA Rev-Exp Region 7'!$L$9, 0)","v":{"v":0,"d":"$0.00"}},{"$f":"IFERROR('MMA Rev-Exp Region 7'!$M$12/'MMA Rev-Exp Region 7'!$M$9, 0)","v":{"v":0,"d":"$0.00"}},{"$f":"IFERROR('MMA Rev-Exp Region 7'!$N$12/'MMA Rev-Exp Region 7'!$N$9, 0)","v":{"v":0,"d":"$0.00"}}]
["MMA",null,null,2016,"2016-12-31","Q1","2017-03-31","Region 7","Operating Revenue","Kick Payments","Kick Payments - Hep C","1.3","Hepatitis C Kick Payments",{"$f":"IFERROR('MMA Rev-Exp Region 7'!$D$13/'MMA Rev-Exp Region 7'!$D$9, 0)","v":{"v":0,"d":"$0.00"}},{"$f":"IFERROR('MMA Rev-Exp Region 7'!$E$13/'MMA Rev-Exp Region 7'!$E$9, 0)","v":{"v":0,"d":"$0.00"}},{"$f":"IFERROR('MMA Rev-Exp Region 7'!$F$13/'MMA Rev-Exp Region 7'!$F$9, 0)","v":{"v":0,"d":"$0.00"}},{"$f":"IFERROR('MMA Rev-Exp Region 7'!$G$13/'MMA Rev-Exp Region 7'!$G$9, 0)","v":{"v":0,"d":"$0.00"}},{"$f":"IFERROR('MMA Rev-Exp Region 7'!$H$13/'MMA Rev-Exp Region 7'!$H$9, 0)","v":{"v":0,"d":"$0.00"}},{"$f":"IFERROR('MMA Rev-Exp Region 7'!$I$13/'MMA Rev-Exp Region 7'!$I$9, 0)","v":{"v":0,"d":"$0.00"}},{"$f":"IFERROR('MMA Rev-Exp Region 7'!$J$13/'MMA Rev-Exp Region 7'!$J$9, 0)","v":{"v":0,"d":"$0.00"}},{"$f":"IFERROR('MMA Rev-Exp Region 7'!$K$13/'MMA Rev-Exp Region 7'!$K$9, 0)","v":{"v":0,"d":"$0.00"}},{"$f":"IFERROR('MMA Rev-Exp Region 7'!$L$13/'MMA Rev-Exp Region 7'!$L$9, 0)","v":{"v":0,"d":"$0.00"}},{"$f":"IFERROR('MMA Rev-Exp Region 7'!$M$13/'MMA Rev-Exp Region 7'!$M$9, 0)","v":{"v":0,"d":"$0.00"}},{"$f":"IFERROR('MMA Rev-Exp Region 7'!$N$13/'MMA Rev-Exp Region 7'!$N$9, 0)","v":{"v":0,"d":"$0.00"}}]
["MMA",null,null,2016,"2016-12-31","Q1","2017-03-31","Region 7","Operating Revenue","Kick Payments","Kick Payments - Maternity","1.4.1","Maternity Kick Payments",{"$f":"IFERROR('MMA Rev-Exp Region 7'!$D$14/'MMA Rev-Exp Region 7'!$D$9, 0)","v":{"v":0,"d":"$0.00"}},{"$f":"IFERROR('MMA Rev-Exp Region 7'!$E$14/'MMA Rev-Exp Region 7'!$E$9, 0)","v":{"v":0,"d":"$0.00"}},{"$f":"IFERROR('MMA Rev-Exp Region 7'!$F$14/'MMA Rev-Exp Region 7'!$F$9, 0)","v":{"v":0,"d":"$0.00"}},{"$f":"IFERROR('MMA Rev-Exp Region 7'!$G$14/'MMA Rev-Exp Region 7'!$G$9, 0)","v":{"v":0,"d":"$0.00"}},{"$f":"IFERROR('MMA Rev-Exp Region 7'!$H$14/'MMA Rev-Exp Region 7'!$H$9, 0)","v":{"v":0,"d":"$0.00"}},{"$f":"IFERROR('MMA Rev-Exp Region 7'!$I$14/'MMA Rev-Exp Region 7'!$I$9, 0)","v":{"v":0,"d":"$0.00"}},{"$f":"IFERROR('MMA Rev-Exp Region 7'!$J$14/'MMA Rev-Exp Region 7'!$J$9, 0)","v":{"v":0,"d":"$0.00"}},{"$f":"IFERROR('MMA Rev-Exp Region 7'!$K$14/'MMA Rev-Exp Region 7'!$K$9, 0)","v":{"v":0,"d":"$0.00"}},{"$f":"IFERROR('MMA Rev-Exp Region 7'!$L$14/'MMA Rev-Exp Region 7'!$L$9, 0)","v":{"v":0,"d":"$0.00"}},{"$f":"IFERROR('MMA Rev-Exp Region 7'!$M$14/'MMA Rev-Exp Region 7'!$M$9, 0)","v":{"v":0,"d":"$0.00"}},{"$f":"IFERROR('MMA Rev-Exp Region 7'!$N$14/'MMA Rev-Exp Region 7'!$N$9, 0)","v":{"v":0,"d":"$0.00"}}]
["MMA",null,null,2016,"2016-12-31","Q1","2017-03-31","Region 7","Operating Revenue","Other Revenue","Other Revenue - 9010","1.5","ACA § 9010 related payments",{"$f":"IFERROR('MMA Rev-Exp Region 7'!$D$15/'MMA Rev-Exp Region 7'!$D$9, 0)","v":{"v":0,"d":"$0.00"}},{"$f":"IFERROR('MMA Rev-Exp Region 7'!$E$15/'MMA Rev-Exp Region 7'!$E$9, 0)","v":{"v":0,"d":"$0.00"}},{"$f":"IFERROR('MMA Rev-Exp Region 7'!$F$15/'MMA Rev-Exp Region 7'!$F$9, 0)","v":{"v":0,"d":"$0.00"}},{"$f":"IFERROR('MMA Rev-Exp Region 7'!$G$15/'MMA Rev-Exp Region 7'!$G$9, 0)","v":{"v":0,"d":"$0.00"}},{"$f":"IFERROR('MMA Rev-Exp Region 7'!$H$15/'MMA Rev-Exp Region 7'!$H$9, 0)","v":{"v":0,"d":"$0.00"}},{"$f":"IFERROR('MMA Rev-Exp Region 7'!$I$15/'MMA Rev-Exp Region 7'!$I$9, 0)","v":{"v":0,"d":"$0.00"}},{"$f":"IFERROR('MMA Rev-Exp Region 7'!$J$15/'MMA Rev-Exp Region 7'!$J$9, 0)","v":{"v":0,"d":"$0.00"}},{"$f":"IFERROR('MMA Rev-Exp Region 7'!$K$15/'MMA Rev-Exp Region 7'!$K$9, 0)","v":{"v":0,"d":"$0.00"}},{"$f":"IFERROR('MMA Rev-Exp Region 7'!$L$15/'MMA Rev-Exp Region 7'!$L$9, 0)","v":{"v":0,"d":"$0.00"}},{"$f":"IFERROR('MMA Rev-Exp Region 7'!$M$15/'MMA Rev-Exp Region 7'!$M$9, 0)","v":{"v":0,"d":"$0.00"}},{"$f":"IFERROR('MMA Rev-Exp Region 7'!$N$15/'MMA Rev-Exp Region 7'!$N$9, 0)","v":{"v":0,"d":"$0.00"}}]
["MMA",null,null,2016,"2016-12-31","Q1","2017-03-31","Region 7","Operating Revenue","Other Revenue","Other Revenue","1.6","Other Revenue",{"$f":"IFERROR('MMA Rev-Exp Region 7'!$D$16/'MMA Rev-Exp Region 7'!$D$9, 0)","v":{"v":0,"d":"$0.00"}},{"$f":"IFERROR('MMA Rev-Exp Region 7'!$E$16/'MMA Rev-Exp Region 7'!$E$9, 0)","v":{"v":0,"d":"$0.00"}},{"$f":"IFERROR('MMA Rev-Exp Region 7'!$F$16/'MMA Rev-Exp Region 7'!$F$9, 0)","v":{"v":0,"d":"$0.00"}},{"$f":"IFERROR('MMA Rev-Exp Region 7'!$G$16/'MMA Rev-Exp Region 7'!$G$9, 0)","v":{"v":0,"d":"$0.00"}},{"$f":"IFERROR('MMA Rev-Exp Region 7'!$H$16/'MMA Rev-Exp Region 7'!$H$9, 0)","v":{"v":0,"d":"$0.00"}},{"$f":"IFERROR('MMA Rev-Exp Region 7'!$I$16/'MMA Rev-Exp Region 7'!$I$9, 0)","v":{"v":0,"d":"$0.00"}},{"$f":"IFERROR('MMA Rev-Exp Region 7'!$J$16/'MMA Rev-Exp Region 7'!$J$9, 0)","v":{"v":0,"d":"$0.00"}},{"$f":"IFERROR('MMA Rev-Exp Region 7'!$K$16/'MMA Rev-Exp Region 7'!$K$9, 0)","v":{"v":0,"d":"$0.00"}},{"$f":"IFERROR('MMA Rev-Exp Region 7'!$L$16/'MMA Rev-Exp Region 7'!$L$9, 0)","v":{"v":0,"d":"$0.00"}},{"$f":"IFERROR('MMA Rev-Exp Region 7'!$M$16/'MMA Rev-Exp Region 7'!$M$9, 0)","v":{"v":0,"d":"$0.00"}},{"$f":"IFERROR('MMA Rev-Exp Region 7'!$N$16/'MMA Rev-Exp Region 7'!$N$9, 0)","v":{"v":0,"d":"$0.00"}}]
["MMA",null,null,2016,"2016-12-31","Q1","2017-03-31","Region 7","Operating Expense","Medical Benefits Expense","Hospital Services",2.1,"Inpatient FFS",{"$f":"IFERROR('MMA Rev-Exp Region 7'!$D$20/'MMA Rev-Exp Region 7'!$D$9, 0)","v":{"v":0,"d":"$0.00"}},{"$f":"IFERROR('MMA Rev-Exp Region 7'!$E$20/'MMA Rev-Exp Region 7'!$E$9, 0)","v":{"v":0,"d":"$0.00"}},{"$f":"IFERROR('MMA Rev-Exp Region 7'!$F$20/'MMA Rev-Exp Region 7'!$F$9, 0)","v":{"v":0,"d":"$0.00"}},{"$f":"IFERROR('MMA Rev-Exp Region 7'!$G$20/'MMA Rev-Exp Region 7'!$G$9, 0)","v":{"v":0,"d":"$0.00"}},{"$f":"IFERROR('MMA Rev-Exp Region 7'!$H$20/'MMA Rev-Exp Region 7'!$H$9, 0)","v":{"v":0,"d":"$0.00"}},{"$f":"IFERROR('MMA Rev-Exp Region 7'!$I$20/'MMA Rev-Exp Region 7'!$I$9, 0)","v":{"v":0,"d":"$0.00"}},{"$f":"IFERROR('MMA Rev-Exp Region 7'!$J$20/'MMA Rev-Exp Region 7'!$J$9, 0)","v":{"v":0,"d":"$0.00"}},{"$f":"IFERROR('MMA Rev-Exp Region 7'!$K$20/'MMA Rev-Exp Region 7'!$K$9, 0)","v":{"v":0,"d":"$0.00"}},{"$f":"IFERROR('MMA Rev-Exp Region 7'!$L$20/'MMA Rev-Exp Region 7'!$L$9, 0)","v":{"v":0,"d":"$0.00"}},{"$f":"IFERROR('MMA Rev-Exp Region 7'!$M$20/'MMA Rev-Exp Region 7'!$M$9, 0)","v":{"v":0,"d":"$0.00"}},{"$f":"IFERROR('MMA Rev-Exp Region 7'!$N$20/'MMA Rev-Exp Region 7'!$N$9, 0)","v":{"v":0,"d":"$0.00"}}]
["MMA",null,null,2016,"2016-12-31","Q1","2017-03-31","Region 7","Operating Expense","Medical Benefits Expense","Hospital Services",2.2,"Ending IBNP for Inpatient Hospital Services",{"$f":"IFERROR('MMA Rev-Exp Region 7'!$D$21/'MMA Rev-Exp Region 7'!$D$9, 0)","v":{"v":0,"d":"$0.00"}},{"$f":"IFERROR('MMA Rev-Exp Region 7'!$E$21/'MMA Rev-Exp Region 7'!$E$9, 0)","v":{"v":0,"d":"$0.00"}},{"$f":"IFERROR('MMA Rev-Exp Region 7'!$F$21/'MMA Rev-Exp Region 7'!$F$9, 0)","v":{"v":0,"d":"$0.00"}},{"$f":"IFERROR('MMA Rev-Exp Region 7'!$G$21/'MMA Rev-Exp Region 7'!$G$9, 0)","v":{"v":0,"d":"$0.00"}},{"$f":"IFERROR('MMA Rev-Exp Region 7'!$H$21/'MMA Rev-Exp Region 7'!$H$9, 0)","v":{"v":0,"d":"$0.00"}},{"$f":"IFERROR('MMA Rev-Exp Region 7'!$I$21/'MMA Rev-Exp Region 7'!$I$9, 0)","v":{"v":0,"d":"$0.00"}},{"$f":"IFERROR('MMA Rev-Exp Region 7'!$J$21/'MMA Rev-Exp Region 7'!$J$9, 0)","v":{"v":0,"d":"$0.00"}},{"$f":"IFERROR('MMA Rev-Exp Region 7'!$K$21/'MMA Rev-Exp Region 7'!$K$9, 0)","v":{"v":0,"d":"$0.00"}},{"$f":"IFERROR('MMA Rev-Exp Region 7'!$L$21/'MMA Rev-Exp Region 7'!$L$9, 0)","v":{"v":0,"d":"$0.00"}},{"$f":"IFERROR('MMA Rev-Exp Region 7'!$M$21/'MMA Rev-Exp Region 7'!$M$9, 0)","v":{"v":0,"d":"$0.00"}},{"$f":"IFERROR('MMA Rev-Exp Region 7'!$N$21/'MMA Rev-Exp Region 7'!$N$9, 0)","v":{"v":0,"d":"$0.00"}}]
["MMA",null,null,2016,"2016-12-31","Q1","2017-03-31","Region 7","Operating Expense","Medical Benefits Expense","Hospital Services",2.3,"Outpatient FFS: ER",{"$f":"IFERROR('MMA Rev-Exp Region 7'!$D$22/'MMA Rev-Exp Region 7'!$D$9, 0)","v":{"v":0,"d":"$0.00"}},{"$f":"IFERROR('MMA Rev-Exp Region 7'!$E$22/'MMA Rev-Exp Region 7'!$E$9, 0)","v":{"v":0,"d":"$0.00"}},{"$f":"IFERROR('MMA Rev-Exp Region 7'!$F$22/'MMA Rev-Exp Region 7'!$F$9, 0)","v":{"v":0,"d":"$0.00"}},{"$f":"IFERROR('MMA Rev-Exp Region 7'!$G$22/'MMA Rev-Exp Region 7'!$G$9, 0)","v":{"v":0,"d":"$0.00"}},{"$f":"IFERROR('MMA Rev-Exp Region 7'!$H$22/'MMA Rev-Exp Region 7'!$H$9, 0)","v":{"v":0,"d":"$0.00"}},{"$f":"IFERROR('MMA Rev-Exp Region 7'!$I$22/'MMA Rev-Exp Region 7'!$I$9, 0)","v":{"v":0,"d":"$0.00"}},{"$f":"IFERROR('MMA Rev-Exp Region 7'!$J$22/'MMA Rev-Exp Region 7'!$J$9, 0)","v":{"v":0,"d":"$0.00"}},{"$f":"IFERROR('MMA Rev-Exp Region 7'!$K$22/'MMA Rev-Exp Region 7'!$K$9, 0)","v":{"v":0,"d":"$0.00"}},{"$f":"IFERROR('MMA Rev-Exp Region 7'!$L$22/'MMA Rev-Exp Region 7'!$L$9, 0)","v":{"v":0,"d":"$0.00"}},{"$f":"IFERROR('MMA Rev-Exp Region 7'!$M$22/'MMA Rev-Exp Region 7'!$M$9, 0)","v":{"v":0,"d":"$0.00"}},{"$f":"IFERROR('MMA Rev-Exp Region 7'!$N$22/'MMA Rev-Exp Region 7'!$N$9, 0)","v":{"v":0,"d":"$0.00"}}]
["MMA",null,null,2016,"2016-12-31","Q1","2017-03-31","Region 7","Operating Expense","Medical Benefits Expense","Hospital Services",2.4,"Outpatient FFS: Other than ER ",{"$f":"IFERROR('MMA Rev-Exp Region 7'!$D$23/'MMA Rev-Exp Region 7'!$D$9, 0)","v":{"v":0,"d":"$0.00"}},{"$f":"IFERROR('MMA Rev-Exp Region 7'!$E$23/'MMA Rev-Exp Region 7'!$E$9, 0)","v":{"v":0,"d":"$0.00"}},{"$f":"IFERROR('MMA Rev-Exp Region 7'!$F$23/'MMA Rev-Exp Region 7'!$F$9, 0)","v":{"v":0,"d":"$0.00"}},{"$f":"IFERROR('MMA Rev-Exp Region 7'!$G$23/'MMA Rev-Exp Region 7'!$G$9, 0)","v":{"v":0,"d":"$0.00"}},{"$f":"IFERROR('MMA Rev-Exp Region 7'!$H$23/'MMA Rev-Exp Region 7'!$H$9, 0)","v":{"v":0,"d":"$0.00"}},{"$f":"IFERROR('MMA Rev-Exp Region 7'!$I$23/'MMA Rev-Exp Region 7'!$I$9, 0)","v":{"v":0,"d":"$0.00"}},{"$f":"IFERROR('MMA Rev-Exp Region 7'!$J$23/'MMA Rev-Exp Region 7'!$J$9, 0)","v":{"v":0,"d":"$0.00"}},{"$f":"IFERROR('MMA Rev-Exp Region 7'!$K$23/'MMA Rev-Exp Region 7'!$K$9, 0)","v":{"v":0,"d":"$0.00"}},{"$f":"IFERROR('MMA Rev-Exp Region 7'!$L$23/'MMA Rev-Exp Region 7'!$L$9, 0)","v":{"v":0,"d":"$0.00"}},{"$f":"IFERROR('MMA Rev-Exp Region 7'!$M$23/'MMA Rev-Exp Region 7'!$M$9, 0)","v":{"v":0,"d":"$0.00"}},{"$f":"IFERROR('MMA Rev-Exp Region 7'!$N$23/'MMA Rev-Exp Region 7'!$N$9, 0)","v":{"v":0,"d":"$0.00"}}]
["MMA",null,null,2016,"2016-12-31","Q1","2017-03-31","Region 7","Operating Expense","Medical Benefits Expense","Hospital Services",2.5,"Ending IBNP for Outpatient Hospital Services",{"$f":"IFERROR('MMA Rev-Exp Region 7'!$D$24/'MMA Rev-Exp Region 7'!$D$9, 0)","v":{"v":0,"d":"$0.00"}},{"$f":"IFERROR('MMA Rev-Exp Region 7'!$E$24/'MMA Rev-Exp Region 7'!$E$9, 0)","v":{"v":0,"d":"$0.00"}},{"$f":"IFERROR('MMA Rev-Exp Region 7'!$F$24/'MMA Rev-Exp Region 7'!$F$9, 0)","v":{"v":0,"d":"$0.00"}},{"$f":"IFERROR('MMA Rev-Exp Region 7'!$G$24/'MMA Rev-Exp Region 7'!$G$9, 0)","v":{"v":0,"d":"$0.00"}},{"$f":"IFERROR('MMA Rev-Exp Region 7'!$H$24/'MMA Rev-Exp Region 7'!$H$9, 0)","v":{"v":0,"d":"$0.00"}},{"$f":"IFERROR('MMA Rev-Exp Region 7'!$I$24/'MMA Rev-Exp Region 7'!$I$9, 0)","v":{"v":0,"d":"$0.00"}},{"$f":"IFERROR('MMA Rev-Exp Region 7'!$J$24/'MMA Rev-Exp Region 7'!$J$9, 0)","v":{"v":0,"d":"$0.00"}},{"$f":"IFERROR('MMA Rev-Exp Region 7'!$K$24/'MMA Rev-Exp Region 7'!$K$9, 0)","v":{"v":0,"d":"$0.00"}},{"$f":"IFERROR('MMA Rev-Exp Region 7'!$L$24/'MMA Rev-Exp Region 7'!$L$9, 0)","v":{"v":0,"d":"$0.00"}},{"$f":"IFERROR('MMA Rev-Exp Region 7'!$M$24/'MMA Rev-Exp Region 7'!$M$9, 0)","v":{"v":0,"d":"$0.00"}},{"$f":"IFERROR('MMA Rev-Exp Region 7'!$N$24/'MMA Rev-Exp Region 7'!$N$9, 0)","v":{"v":0,"d":"$0.00"}}]
["MMA",null,null,2016,"2016-12-31","Q1","2017-03-31","Region 7","Operating Expense","Medical Benefits Expense","Hospital Services","2.6","Subcapitated Hospital Services",{"$f":"IFERROR('MMA Rev-Exp Region 7'!$D$25/'MMA Rev-Exp Region 7'!$D$9, 0)","v":{"v":0,"d":"$0.00"}},{"$f":"IFERROR('MMA Rev-Exp Region 7'!$E$25/'MMA Rev-Exp Region 7'!$E$9, 0)","v":{"v":0,"d":"$0.00"}},{"$f":"IFERROR('MMA Rev-Exp Region 7'!$F$25/'MMA Rev-Exp Region 7'!$F$9, 0)","v":{"v":0,"d":"$0.00"}},{"$f":"IFERROR('MMA Rev-Exp Region 7'!$G$25/'MMA Rev-Exp Region 7'!$G$9, 0)","v":{"v":0,"d":"$0.00"}},{"$f":"IFERROR('MMA Rev-Exp Region 7'!$H$25/'MMA Rev-Exp Region 7'!$H$9, 0)","v":{"v":0,"d":"$0.00"}},{"$f":"IFERROR('MMA Rev-Exp Region 7'!$I$25/'MMA Rev-Exp Region 7'!$I$9, 0)","v":{"v":0,"d":"$0.00"}},{"$f":"IFERROR('MMA Rev-Exp Region 7'!$J$25/'MMA Rev-Exp Region 7'!$J$9, 0)","v":{"v":0,"d":"$0.00"}},{"$f":"IFERROR('MMA Rev-Exp Region 7'!$K$25/'MMA Rev-Exp Region 7'!$K$9, 0)","v":{"v":0,"d":"$0.00"}},{"$f":"IFERROR('MMA Rev-Exp Region 7'!$L$25/'MMA Rev-Exp Region 7'!$L$9, 0)","v":{"v":0,"d":"$0.00"}},{"$f":"IFERROR('MMA Rev-Exp Region 7'!$M$25/'MMA Rev-Exp Region 7'!$M$9, 0)","v":{"v":0,"d":"$0.00"}},{"$f":"IFERROR('MMA Rev-Exp Region 7'!$N$25/'MMA Rev-Exp Region 7'!$N$9, 0)","v":{"v":0,"d":"$0.00"}}]
["MMA",null,null,2016,"2016-12-31","Q1","2017-03-31","Region 7","Operating Expense","Medical Benefits Expense","Hospital Services","2.7","Hospital Settlements",{"$f":"IFERROR('MMA Rev-Exp Region 7'!$D$26/'MMA Rev-Exp Region 7'!$D$9, 0)","v":{"v":0,"d":"$0.00"}},{"$f":"IFERROR('MMA Rev-Exp Region 7'!$E$26/'MMA Rev-Exp Region 7'!$E$9, 0)","v":{"v":0,"d":"$0.00"}},{"$f":"IFERROR('MMA Rev-Exp Region 7'!$F$26/'MMA Rev-Exp Region 7'!$F$9, 0)","v":{"v":0,"d":"$0.00"}},{"$f":"IFERROR('MMA Rev-Exp Region 7'!$G$26/'MMA Rev-Exp Region 7'!$G$9, 0)","v":{"v":0,"d":"$0.00"}},{"$f":"IFERROR('MMA Rev-Exp Region 7'!$H$26/'MMA Rev-Exp Region 7'!$H$9, 0)","v":{"v":0,"d":"$0.00"}},{"$f":"IFERROR('MMA Rev-Exp Region 7'!$I$26/'MMA Rev-Exp Region 7'!$I$9, 0)","v":{"v":0,"d":"$0.00"}},{"$f":"IFERROR('MMA Rev-Exp Region 7'!$J$26/'MMA Rev-Exp Region 7'!$J$9, 0)","v":{"v":0,"d":"$0.00"}},{"$f":"IFERROR('MMA Rev-Exp Region 7'!$K$26/'MMA Rev-Exp Region 7'!$K$9, 0)","v":{"v":0,"d":"$0.00"}},{"$f":"IFERROR('MMA Rev-Exp Region 7'!$L$26/'MMA Rev-Exp Region 7'!$L$9, 0)","v":{"v":0,"d":"$0.00"}},{"$f":"IFERROR('MMA Rev-Exp Region 7'!$M$26/'MMA Rev-Exp Region 7'!$M$9, 0)","v":{"v":0,"d":"$0.00"}},{"$f":"IFERROR('MMA Rev-Exp Region 7'!$N$26/'MMA Rev-Exp Region 7'!$N$9, 0)","v":{"v":0,"d":"$0.00"}}]
["MMA",null,null,2016,"2016-12-31","Q1","2017-03-31","Region 7","Operating Expense","Medical Benefits Expense","Hospital Services","2.7.1","Transplant Services",{"$f":"IFERROR('MMA Rev-Exp Region 7'!$D$27/'MMA Rev-Exp Region 7'!$D$9, 0)","v":{"v":0,"d":"$0.00"}},{"$f":"IFERROR('MMA Rev-Exp Region 7'!$E$27/'MMA Rev-Exp Region 7'!$E$9, 0)","v":{"v":0,"d":"$0.00"}},{"$f":"IFERROR('MMA Rev-Exp Region 7'!$F$27/'MMA Rev-Exp Region 7'!$F$9, 0)","v":{"v":0,"d":"$0.00"}},{"$f":"IFERROR('MMA Rev-Exp Region 7'!$G$27/'MMA Rev-Exp Region 7'!$G$9, 0)","v":{"v":0,"d":"$0.00"}},{"$f":"IFERROR('MMA Rev-Exp Region 7'!$H$27/'MMA Rev-Exp Region 7'!$H$9, 0)","v":{"v":0,"d":"$0.00"}},{"$f":"IFERROR('MMA Rev-Exp Region 7'!$I$27/'MMA Rev-Exp Region 7'!$I$9, 0)","v":{"v":0,"d":"$0.00"}},{"$f":"IFERROR('MMA Rev-Exp Region 7'!$J$27/'MMA Rev-Exp Region 7'!$J$9, 0)","v":{"v":0,"d":"$0.00"}},{"$f":"IFERROR('MMA Rev-Exp Region 7'!$K$27/'MMA Rev-Exp Region 7'!$K$9, 0)","v":{"v":0,"d":"$0.00"}},{"$f":"IFERROR('MMA Rev-Exp Region 7'!$L$27/'MMA Rev-Exp Region 7'!$L$9, 0)","v":{"v":0,"d":"$0.00"}},{"$f":"IFERROR('MMA Rev-Exp Region 7'!$M$27/'MMA Rev-Exp Region 7'!$M$9, 0)","v":{"v":0,"d":"$0.00"}},{"$f":"IFERROR('MMA Rev-Exp Region 7'!$N$27/'MMA Rev-Exp Region 7'!$N$9, 0)","v":{"v":0,"d":"$0.00"}}]
["MMA",null,null,2016,"2016-12-31","Q1","2017-03-31","Region 7","Operating Expense","Medical Benefits Expense","Professional Services",3.1,"Primary Care FFS",{"$f":"IFERROR('MMA Rev-Exp Region 7'!$D$29/'MMA Rev-Exp Region 7'!$D$9, 0)","v":{"v":0,"d":"$0.00"}},{"$f":"IFERROR('MMA Rev-Exp Region 7'!$E$29/'MMA Rev-Exp Region 7'!$E$9, 0)","v":{"v":0,"d":"$0.00"}},{"$f":"IFERROR('MMA Rev-Exp Region 7'!$F$29/'MMA Rev-Exp Region 7'!$F$9, 0)","v":{"v":0,"d":"$0.00"}},{"$f":"IFERROR('MMA Rev-Exp Region 7'!$G$29/'MMA Rev-Exp Region 7'!$G$9, 0)","v":{"v":0,"d":"$0.00"}},{"$f":"IFERROR('MMA Rev-Exp Region 7'!$H$29/'MMA Rev-Exp Region 7'!$H$9, 0)","v":{"v":0,"d":"$0.00"}},{"$f":"IFERROR('MMA Rev-Exp Region 7'!$I$29/'MMA Rev-Exp Region 7'!$I$9, 0)","v":{"v":0,"d":"$0.00"}},{"$f":"IFERROR('MMA Rev-Exp Region 7'!$J$29/'MMA Rev-Exp Region 7'!$J$9, 0)","v":{"v":0,"d":"$0.00"}},{"$f":"IFERROR('MMA Rev-Exp Region 7'!$K$29/'MMA Rev-Exp Region 7'!$K$9, 0)","v":{"v":0,"d":"$0.00"}},{"$f":"IFERROR('MMA Rev-Exp Region 7'!$L$29/'MMA Rev-Exp Region 7'!$L$9, 0)","v":{"v":0,"d":"$0.00"}},{"$f":"IFERROR('MMA Rev-Exp Region 7'!$M$29/'MMA Rev-Exp Region 7'!$M$9, 0)","v":{"v":0,"d":"$0.00"}},{"$f":"IFERROR('MMA Rev-Exp Region 7'!$N$29/'MMA Rev-Exp Region 7'!$N$9, 0)","v":{"v":0,"d":"$0.00"}}]
["MMA",null,null,2016,"2016-12-31","Q1","2017-03-31","Region 7","Operating Expense","Medical Benefits Expense","Professional Services",3.2,"Specialty Care FFS",{"$f":"IFERROR('MMA Rev-Exp Region 7'!$D$30/'MMA Rev-Exp Region 7'!$D$9, 0)","v":{"v":0,"d":"$0.00"}},{"$f":"IFERROR('MMA Rev-Exp Region 7'!$E$30/'MMA Rev-Exp Region 7'!$E$9, 0)","v":{"v":0,"d":"$0.00"}},{"$f":"IFERROR('MMA Rev-Exp Region 7'!$F$30/'MMA Rev-Exp Region 7'!$F$9, 0)","v":{"v":0,"d":"$0.00"}},{"$f":"IFERROR('MMA Rev-Exp Region 7'!$G$30/'MMA Rev-Exp Region 7'!$G$9, 0)","v":{"v":0,"d":"$0.00"}},{"$f":"IFERROR('MMA Rev-Exp Region 7'!$H$30/'MMA Rev-Exp Region 7'!$H$9, 0)","v":{"v":0,"d":"$0.00"}},{"$f":"IFERROR('MMA Rev-Exp Region 7'!$I$30/'MMA Rev-Exp Region 7'!$I$9, 0)","v":{"v":0,"d":"$0.00"}},{"$f":"IFERROR('MMA Rev-Exp Region 7'!$J$30/'MMA Rev-Exp Region 7'!$J$9, 0)","v":{"v":0,"d":"$0.00"}},{"$f":"IFERROR('MMA Rev-Exp Region 7'!$K$30/'MMA Rev-Exp Region 7'!$K$9, 0)","v":{"v":0,"d":"$0.00"}},{"$f":"IFERROR('MMA Rev-Exp Region 7'!$L$30/'MMA Rev-Exp Region 7'!$L$9, 0)","v":{"v":0,"d":"$0.00"}},{"$f":"IFERROR('MMA Rev-Exp Region 7'!$M$30/'MMA Rev-Exp Region 7'!$M$9, 0)","v":{"v":0,"d":"$0.00"}},{"$f":"IFERROR('MMA Rev-Exp Region 7'!$N$30/'MMA Rev-Exp Region 7'!$N$9, 0)","v":{"v":0,"d":"$0.00"}}]
["MMA",null,null,2016,"2016-12-31","Q1","2017-03-31","Region 7","Operating Expense","Medical Benefits Expense","Professional Services",3.3,"Other Professional FFS",{"$f":"IFERROR('MMA Rev-Exp Region 7'!$D$31/'MMA Rev-Exp Region 7'!$D$9, 0)","v":{"v":0,"d":"$0.00"}},{"$f":"IFERROR('MMA Rev-Exp Region 7'!$E$31/'MMA Rev-Exp Region 7'!$E$9, 0)","v":{"v":0,"d":"$0.00"}},{"$f":"IFERROR('MMA Rev-Exp Region 7'!$F$31/'MMA Rev-Exp Region 7'!$F$9, 0)","v":{"v":0,"d":"$0.00"}},{"$f":"IFERROR('MMA Rev-Exp Region 7'!$G$31/'MMA Rev-Exp Region 7'!$G$9, 0)","v":{"v":0,"d":"$0.00"}},{"$f":"IFERROR('MMA Rev-Exp Region 7'!$H$31/'MMA Rev-Exp Region 7'!$H$9, 0)","v":{"v":0,"d":"$0.00"}},{"$f":"IFERROR('MMA Rev-Exp Region 7'!$I$31/'MMA Rev-Exp Region 7'!$I$9, 0)","v":{"v":0,"d":"$0.00"}},{"$f":"IFERROR('MMA Rev-Exp Region 7'!$J$31/'MMA Rev-Exp Region 7'!$J$9, 0)","v":{"v":0,"d":"$0.00"}},{"$f":"IFERROR('MMA Rev-Exp Region 7'!$K$31/'MMA Rev-Exp Region 7'!$K$9, 0)","v":{"v":0,"d":"$0.00"}},{"$f":"IFERROR('MMA Rev-Exp Region 7'!$L$31/'MMA Rev-Exp Region 7'!$L$9, 0)","v":{"v":0,"d":"$0.00"}},{"$f":"IFERROR('MMA Rev-Exp Region 7'!$M$31/'MMA Rev-Exp Region 7'!$M$9, 0)","v":{"v":0,"d":"$0.00"}},{"$f":"IFERROR('MMA Rev-Exp Region 7'!$N$31/'MMA Rev-Exp Region 7'!$N$9, 0)","v":{"v":0,"d":"$0.00"}}]
["MMA",null,null,2016,"2016-12-31","Q1","2017-03-31","Region 7","Operating Expense","Medical Benefits Expense","Professional Services","3.4","§ 1202 PCP Payments to providers",{"$f":"IFERROR('MMA Rev-Exp Region 7'!$D$32/'MMA Rev-Exp Region 7'!$D$9, 0)","v":{"v":0,"d":"$0.00"}},{"$f":"IFERROR('MMA Rev-Exp Region 7'!$E$32/'MMA Rev-Exp Region 7'!$E$9, 0)","v":{"v":0,"d":"$0.00"}},{"$f":"IFERROR('MMA Rev-Exp Region 7'!$F$32/'MMA Rev-Exp Region 7'!$F$9, 0)","v":{"v":0,"d":"$0.00"}},{"$f":"IFERROR('MMA Rev-Exp Region 7'!$G$32/'MMA Rev-Exp Region 7'!$G$9, 0)","v":{"v":0,"d":"$0.00"}},{"$f":"IFERROR('MMA Rev-Exp Region 7'!$H$32/'MMA Rev-Exp Region 7'!$H$9, 0)","v":{"v":0,"d":"$0.00"}},{"$f":"IFERROR('MMA Rev-Exp Region 7'!$I$32/'MMA Rev-Exp Region 7'!$I$9, 0)","v":{"v":0,"d":"$0.00"}},{"$f":"IFERROR('MMA Rev-Exp Region 7'!$J$32/'MMA Rev-Exp Region 7'!$J$9, 0)","v":{"v":0,"d":"$0.00"}},{"$f":"IFERROR('MMA Rev-Exp Region 7'!$K$32/'MMA Rev-Exp Region 7'!$K$9, 0)","v":{"v":0,"d":"$0.00"}},{"$f":"IFERROR('MMA Rev-Exp Region 7'!$L$32/'MMA Rev-Exp Region 7'!$L$9, 0)","v":{"v":0,"d":"$0.00"}},{"$f":"IFERROR('MMA Rev-Exp Region 7'!$M$32/'MMA Rev-Exp Region 7'!$M$9, 0)","v":{"v":0,"d":"$0.00"}},{"$f":"IFERROR('MMA Rev-Exp Region 7'!$N$32/'MMA Rev-Exp Region 7'!$N$9, 0)","v":{"v":0,"d":"$0.00"}}]
["MMA",null,null,2016,"2016-12-31","Q1","2017-03-31","Region 7","Operating Expense","Medical Benefits Expense","Professional Services","3.5","Subcapitated Professional Services",{"$f":"IFERROR('MMA Rev-Exp Region 7'!$D$33/'MMA Rev-Exp Region 7'!$D$9, 0)","v":{"v":0,"d":"$0.00"}},{"$f":"IFERROR('MMA Rev-Exp Region 7'!$E$33/'MMA Rev-Exp Region 7'!$E$9, 0)","v":{"v":0,"d":"$0.00"}},{"$f":"IFERROR('MMA Rev-Exp Region 7'!$F$33/'MMA Rev-Exp Region 7'!$F$9, 0)","v":{"v":0,"d":"$0.00"}},{"$f":"IFERROR('MMA Rev-Exp Region 7'!$G$33/'MMA Rev-Exp Region 7'!$G$9, 0)","v":{"v":0,"d":"$0.00"}},{"$f":"IFERROR('MMA Rev-Exp Region 7'!$H$33/'MMA Rev-Exp Region 7'!$H$9, 0)","v":{"v":0,"d":"$0.00"}},{"$f":"IFERROR('MMA Rev-Exp Region 7'!$I$33/'MMA Rev-Exp Region 7'!$I$9, 0)","v":{"v":0,"d":"$0.00"}},{"$f":"IFERROR('MMA Rev-Exp Region 7'!$J$33/'MMA Rev-Exp Region 7'!$J$9, 0)","v":{"v":0,"d":"$0.00"}},{"$f":"IFERROR('MMA Rev-Exp Region 7'!$K$33/'MMA Rev-Exp Region 7'!$K$9, 0)","v":{"v":0,"d":"$0.00"}},{"$f":"IFERROR('MMA Rev-Exp Region 7'!$L$33/'MMA Rev-Exp Region 7'!$L$9, 0)","v":{"v":0,"d":"$0.00"}},{"$f":"IFERROR('MMA Rev-Exp Region 7'!$M$33/'MMA Rev-Exp Region 7'!$M$9, 0)","v":{"v":0,"d":"$0.00"}},{"$f":"IFERROR('MMA Rev-Exp Region 7'!$N$33/'MMA Rev-Exp Region 7'!$N$9, 0)","v":{"v":0,"d":"$0.00"}}]
["MMA",null,null,2016,"2016-12-31","Q1","2017-03-31","Region 7","Operating Expense","Medical Benefits Expense","Professional Services","3.6","Ending IBNP for Professional Services",{"$f":"IFERROR('MMA Rev-Exp Region 7'!$D$34/'MMA Rev-Exp Region 7'!$D$9, 0)","v":{"v":0,"d":"$0.00"}},{"$f":"IFERROR('MMA Rev-Exp Region 7'!$E$34/'MMA Rev-Exp Region 7'!$E$9, 0)","v":{"v":0,"d":"$0.00"}},{"$f":"IFERROR('MMA Rev-Exp Region 7'!$F$34/'MMA Rev-Exp Region 7'!$F$9, 0)","v":{"v":0,"d":"$0.00"}},{"$f":"IFERROR('MMA Rev-Exp Region 7'!$G$34/'MMA Rev-Exp Region 7'!$G$9, 0)","v":{"v":0,"d":"$0.00"}},{"$f":"IFERROR('MMA Rev-Exp Region 7'!$H$34/'MMA Rev-Exp Region 7'!$H$9, 0)","v":{"v":0,"d":"$0.00"}},{"$f":"IFERROR('MMA Rev-Exp Region 7'!$I$34/'MMA Rev-Exp Region 7'!$I$9, 0)","v":{"v":0,"d":"$0.00"}},{"$f":"IFERROR('MMA Rev-Exp Region 7'!$J$34/'MMA Rev-Exp Region 7'!$J$9, 0)","v":{"v":0,"d":"$0.00"}},{"$f":"IFERROR('MMA Rev-Exp Region 7'!$K$34/'MMA Rev-Exp Region 7'!$K$9, 0)","v":{"v":0,"d":"$0.00"}},{"$f":"IFERROR('MMA Rev-Exp Region 7'!$L$34/'MMA Rev-Exp Region 7'!$L$9, 0)","v":{"v":0,"d":"$0.00"}},{"$f":"IFERROR('MMA Rev-Exp Region 7'!$M$34/'MMA Rev-Exp Region 7'!$M$9, 0)","v":{"v":0,"d":"$0.00"}},{"$f":"IFERROR('MMA Rev-Exp Region 7'!$N$34/'MMA Rev-Exp Region 7'!$N$9, 0)","v":{"v":0,"d":"$0.00"}}]
["MMA",null,null,2016,"2016-12-31","Q1","2017-03-31","Region 7","Operating Expense","Medical Benefits Expense","Professional Services","3.7","Professional Services Settlements",{"$f":"IFERROR('MMA Rev-Exp Region 7'!$D$35/'MMA Rev-Exp Region 7'!$D$9, 0)","v":{"v":0,"d":"$0.00"}},{"$f":"IFERROR('MMA Rev-Exp Region 7'!$E$35/'MMA Rev-Exp Region 7'!$E$9, 0)","v":{"v":0,"d":"$0.00"}},{"$f":"IFERROR('MMA Rev-Exp Region 7'!$F$35/'MMA Rev-Exp Region 7'!$F$9, 0)","v":{"v":0,"d":"$0.00"}},{"$f":"IFERROR('MMA Rev-Exp Region 7'!$G$35/'MMA Rev-Exp Region 7'!$G$9, 0)","v":{"v":0,"d":"$0.00"}},{"$f":"IFERROR('MMA Rev-Exp Region 7'!$H$35/'MMA Rev-Exp Region 7'!$H$9, 0)","v":{"v":0,"d":"$0.00"}},{"$f":"IFERROR('MMA Rev-Exp Region 7'!$I$35/'MMA Rev-Exp Region 7'!$I$9, 0)","v":{"v":0,"d":"$0.00"}},{"$f":"IFERROR('MMA Rev-Exp Region 7'!$J$35/'MMA Rev-Exp Region 7'!$J$9, 0)","v":{"v":0,"d":"$0.00"}},{"$f":"IFERROR('MMA Rev-Exp Region 7'!$K$35/'MMA Rev-Exp Region 7'!$K$9, 0)","v":{"v":0,"d":"$0.00"}},{"$f":"IFERROR('MMA Rev-Exp Region 7'!$L$35/'MMA Rev-Exp Region 7'!$L$9, 0)","v":{"v":0,"d":"$0.00"}},{"$f":"IFERROR('MMA Rev-Exp Region 7'!$M$35/'MMA Rev-Exp Region 7'!$M$9, 0)","v":{"v":0,"d":"$0.00"}},{"$f":"IFERROR('MMA Rev-Exp Region 7'!$N$35/'MMA Rev-Exp Region 7'!$N$9, 0)","v":{"v":0,"d":"$0.00"}}]
["MMA",null,null,2016,"2016-12-31","Q1","2017-03-31","Region 7","Operating Expense","Medical Benefits Expense","Maternity Services","4.1.1","Maternity Services",{"$f":"IFERROR('MMA Rev-Exp Region 7'!$D$37/'MMA Rev-Exp Region 7'!$D$9, 0)","v":{"v":0,"d":"$0.00"}},{"$f":"IFERROR('MMA Rev-Exp Region 7'!$E$37/'MMA Rev-Exp Region 7'!$E$9, 0)","v":{"v":0,"d":"$0.00"}},{"$f":"IFERROR('MMA Rev-Exp Region 7'!$F$37/'MMA Rev-Exp Region 7'!$F$9, 0)","v":{"v":0,"d":"$0.00"}},{"$f":"IFERROR('MMA Rev-Exp Region 7'!$G$37/'MMA Rev-Exp Region 7'!$G$9, 0)","v":{"v":0,"d":"$0.00"}},{"$f":"IFERROR('MMA Rev-Exp Region 7'!$H$37/'MMA Rev-Exp Region 7'!$H$9, 0)","v":{"v":0,"d":"$0.00"}},{"$f":"IFERROR('MMA Rev-Exp Region 7'!$I$37/'MMA Rev-Exp Region 7'!$I$9, 0)","v":{"v":0,"d":"$0.00"}},{"$f":"IFERROR('MMA Rev-Exp Region 7'!$J$37/'MMA Rev-Exp Region 7'!$J$9, 0)","v":{"v":0,"d":"$0.00"}},{"$f":"IFERROR('MMA Rev-Exp Region 7'!$K$37/'MMA Rev-Exp Region 7'!$K$9, 0)","v":{"v":0,"d":"$0.00"}},{"$f":"IFERROR('MMA Rev-Exp Region 7'!$L$37/'MMA Rev-Exp Region 7'!$L$9, 0)","v":{"v":0,"d":"$0.00"}},{"$f":"IFERROR('MMA Rev-Exp Region 7'!$M$37/'MMA Rev-Exp Region 7'!$M$9, 0)","v":{"v":0,"d":"$0.00"}},{"$f":"IFERROR('MMA Rev-Exp Region 7'!$N$37/'MMA Rev-Exp Region 7'!$N$9, 0)","v":{"v":0,"d":"$0.00"}}]
["MMA",null,null,2016,"2016-12-31","Q1","2017-03-31","Region 7","Operating Expense","Medical Benefits Expense","Maternity Services","4.2.1","Ending IBNP for Maternity Services",{"$f":"IFERROR('MMA Rev-Exp Region 7'!$D$38/'MMA Rev-Exp Region 7'!$D$9, 0)","v":{"v":0,"d":"$0.00"}},{"$f":"IFERROR('MMA Rev-Exp Region 7'!$E$38/'MMA Rev-Exp Region 7'!$E$9, 0)","v":{"v":0,"d":"$0.00"}},{"$f":"IFERROR('MMA Rev-Exp Region 7'!$F$38/'MMA Rev-Exp Region 7'!$F$9, 0)","v":{"v":0,"d":"$0.00"}},{"$f":"IFERROR('MMA Rev-Exp Region 7'!$G$38/'MMA Rev-Exp Region 7'!$G$9, 0)","v":{"v":0,"d":"$0.00"}},{"$f":"IFERROR('MMA Rev-Exp Region 7'!$H$38/'MMA Rev-Exp Region 7'!$H$9, 0)","v":{"v":0,"d":"$0.00"}},{"$f":"IFERROR('MMA Rev-Exp Region 7'!$I$38/'MMA Rev-Exp Region 7'!$I$9, 0)","v":{"v":0,"d":"$0.00"}},{"$f":"IFERROR('MMA Rev-Exp Region 7'!$J$38/'MMA Rev-Exp Region 7'!$J$9, 0)","v":{"v":0,"d":"$0.00"}},{"$f":"IFERROR('MMA Rev-Exp Region 7'!$K$38/'MMA Rev-Exp Region 7'!$K$9, 0)","v":{"v":0,"d":"$0.00"}},{"$f":"IFERROR('MMA Rev-Exp Region 7'!$L$38/'MMA Rev-Exp Region 7'!$L$9, 0)","v":{"v":0,"d":"$0.00"}},{"$f":"IFERROR('MMA Rev-Exp Region 7'!$M$38/'MMA Rev-Exp Region 7'!$M$9, 0)","v":{"v":0,"d":"$0.00"}},{"$f":"IFERROR('MMA Rev-Exp Region 7'!$N$38/'MMA Rev-Exp Region 7'!$N$9, 0)","v":{"v":0,"d":"$0.00"}}]
["MMA",null,null,2016,"2016-12-31","Q1","2017-03-31","Region 7","Operating Expense","Medical Benefits Expense","Maternity Services","4.3.1","Maternity Settlements",{"$f":"IFERROR('MMA Rev-Exp Region 7'!$D$39/'MMA Rev-Exp Region 7'!$D$9, 0)","v":{"v":0,"d":"$0.00"}},{"$f":"IFERROR('MMA Rev-Exp Region 7'!$E$39/'MMA Rev-Exp Region 7'!$E$9, 0)","v":{"v":0,"d":"$0.00"}},{"$f":"IFERROR('MMA Rev-Exp Region 7'!$F$39/'MMA Rev-Exp Region 7'!$F$9, 0)","v":{"v":0,"d":"$0.00"}},{"$f":"IFERROR('MMA Rev-Exp Region 7'!$G$39/'MMA Rev-Exp Region 7'!$G$9, 0)","v":{"v":0,"d":"$0.00"}},{"$f":"IFERROR('MMA Rev-Exp Region 7'!$H$39/'MMA Rev-Exp Region 7'!$H$9, 0)","v":{"v":0,"d":"$0.00"}},{"$f":"IFERROR('MMA Rev-Exp Region 7'!$I$39/'MMA Rev-Exp Region 7'!$I$9, 0)","v":{"v":0,"d":"$0.00"}},{"$f":"IFERROR('MMA Rev-Exp Region 7'!$J$39/'MMA Rev-Exp Region 7'!$J$9, 0)","v":{"v":0,"d":"$0.00"}},{"$f":"IFERROR('MMA Rev-Exp Region 7'!$K$39/'MMA Rev-Exp Region 7'!$K$9, 0)","v":{"v":0,"d":"$0.00"}},{"$f":"IFERROR('MMA Rev-Exp Region 7'!$L$39/'MMA Rev-Exp Region 7'!$L$9, 0)","v":{"v":0,"d":"$0.00"}},{"$f":"IFERROR('MMA Rev-Exp Region 7'!$M$39/'MMA Rev-Exp Region 7'!$M$9, 0)","v":{"v":0,"d":"$0.00"}},{"$f":"IFERROR('MMA Rev-Exp Region 7'!$N$39/'MMA Rev-Exp Region 7'!$N$9, 0)","v":{"v":0,"d":"$0.00"}}]
["MMA",null,null,2016,"2016-12-31","Q1","2017-03-31","Region 7","Operating Expense","Medical Benefits Expense","Mental Health Services",5.1,"Mental Health & Substance Abuse FFS",{"$f":"IFERROR('MMA Rev-Exp Region 7'!$D$41/'MMA Rev-Exp Region 7'!$D$9, 0)","v":{"v":0,"d":"$0.00"}},{"$f":"IFERROR('MMA Rev-Exp Region 7'!$E$41/'MMA Rev-Exp Region 7'!$E$9, 0)","v":{"v":0,"d":"$0.00"}},{"$f":"IFERROR('MMA Rev-Exp Region 7'!$F$41/'MMA Rev-Exp Region 7'!$F$9, 0)","v":{"v":0,"d":"$0.00"}},{"$f":"IFERROR('MMA Rev-Exp Region 7'!$G$41/'MMA Rev-Exp Region 7'!$G$9, 0)","v":{"v":0,"d":"$0.00"}},{"$f":"IFERROR('MMA Rev-Exp Region 7'!$H$41/'MMA Rev-Exp Region 7'!$H$9, 0)","v":{"v":0,"d":"$0.00"}},{"$f":"IFERROR('MMA Rev-Exp Region 7'!$I$41/'MMA Rev-Exp Region 7'!$I$9, 0)","v":{"v":0,"d":"$0.00"}},{"$f":"IFERROR('MMA Rev-Exp Region 7'!$J$41/'MMA Rev-Exp Region 7'!$J$9, 0)","v":{"v":0,"d":"$0.00"}},{"$f":"IFERROR('MMA Rev-Exp Region 7'!$K$41/'MMA Rev-Exp Region 7'!$K$9, 0)","v":{"v":0,"d":"$0.00"}},{"$f":"IFERROR('MMA Rev-Exp Region 7'!$L$41/'MMA Rev-Exp Region 7'!$L$9, 0)","v":{"v":0,"d":"$0.00"}},{"$f":"IFERROR('MMA Rev-Exp Region 7'!$M$41/'MMA Rev-Exp Region 7'!$M$9, 0)","v":{"v":0,"d":"$0.00"}},{"$f":"IFERROR('MMA Rev-Exp Region 7'!$N$41/'MMA Rev-Exp Region 7'!$N$9, 0)","v":{"v":0,"d":"$0.00"}}]
["MMA",null,null,2016,"2016-12-31","Q1","2017-03-31","Region 7","Operating Expense","Medical Benefits Expense","Mental Health Services",5.2,"Mental Health & Substance Abuse Subcapitation",{"$f":"IFERROR('MMA Rev-Exp Region 7'!$D$42/'MMA Rev-Exp Region 7'!$D$9, 0)","v":{"v":0,"d":"$0.00"}},{"$f":"IFERROR('MMA Rev-Exp Region 7'!$E$42/'MMA Rev-Exp Region 7'!$E$9, 0)","v":{"v":0,"d":"$0.00"}},{"$f":"IFERROR('MMA Rev-Exp Region 7'!$F$42/'MMA Rev-Exp Region 7'!$F$9, 0)","v":{"v":0,"d":"$0.00"}},{"$f":"IFERROR('MMA Rev-Exp Region 7'!$G$42/'MMA Rev-Exp Region 7'!$G$9, 0)","v":{"v":0,"d":"$0.00"}},{"$f":"IFERROR('MMA Rev-Exp Region 7'!$H$42/'MMA Rev-Exp Region 7'!$H$9, 0)","v":{"v":0,"d":"$0.00"}},{"$f":"IFERROR('MMA Rev-Exp Region 7'!$I$42/'MMA Rev-Exp Region 7'!$I$9, 0)","v":{"v":0,"d":"$0.00"}},{"$f":"IFERROR('MMA Rev-Exp Region 7'!$J$42/'MMA Rev-Exp Region 7'!$J$9, 0)","v":{"v":0,"d":"$0.00"}},{"$f":"IFERROR('MMA Rev-Exp Region 7'!$K$42/'MMA Rev-Exp Region 7'!$K$9, 0)","v":{"v":0,"d":"$0.00"}},{"$f":"IFERROR('MMA Rev-Exp Region 7'!$L$42/'MMA Rev-Exp Region 7'!$L$9, 0)","v":{"v":0,"d":"$0.00"}},{"$f":"IFERROR('MMA Rev-Exp Region 7'!$M$42/'MMA Rev-Exp Region 7'!$M$9, 0)","v":{"v":0,"d":"$0.00"}},{"$f":"IFERROR('MMA Rev-Exp Region 7'!$N$42/'MMA Rev-Exp Region 7'!$N$9, 0)","v":{"v":0,"d":"$0.00"}}]
["MMA",null,null,2016,"2016-12-31","Q1","2017-03-31","Region 7","Operating Expense","Medical Benefits Expense","Mental Health Services",5.3,"Ending IBNP for Mental Health & Substance Abuse",{"$f":"IFERROR('MMA Rev-Exp Region 7'!$D$43/'MMA Rev-Exp Region 7'!$D$9, 0)","v":{"v":0,"d":"$0.00"}},{"$f":"IFERROR('MMA Rev-Exp Region 7'!$E$43/'MMA Rev-Exp Region 7'!$E$9, 0)","v":{"v":0,"d":"$0.00"}},{"$f":"IFERROR('MMA Rev-Exp Region 7'!$F$43/'MMA Rev-Exp Region 7'!$F$9, 0)","v":{"v":0,"d":"$0.00"}},{"$f":"IFERROR('MMA Rev-Exp Region 7'!$G$43/'MMA Rev-Exp Region 7'!$G$9, 0)","v":{"v":0,"d":"$0.00"}},{"$f":"IFERROR('MMA Rev-Exp Region 7'!$H$43/'MMA Rev-Exp Region 7'!$H$9, 0)","v":{"v":0,"d":"$0.00"}},{"$f":"IFERROR('MMA Rev-Exp Region 7'!$I$43/'MMA Rev-Exp Region 7'!$I$9, 0)","v":{"v":0,"d":"$0.00"}},{"$f":"IFERROR('MMA Rev-Exp Region 7'!$J$43/'MMA Rev-Exp Region 7'!$J$9, 0)","v":{"v":0,"d":"$0.00"}},{"$f":"IFERROR('MMA Rev-Exp Region 7'!$K$43/'MMA Rev-Exp Region 7'!$K$9, 0)","v":{"v":0,"d":"$0.00"}},{"$f":"IFERROR('MMA Rev-Exp Region 7'!$L$43/'MMA Rev-Exp Region 7'!$L$9, 0)","v":{"v":0,"d":"$0.00"}},{"$f":"IFERROR('MMA Rev-Exp Region 7'!$M$43/'MMA Rev-Exp Region 7'!$M$9, 0)","v":{"v":0,"d":"$0.00"}},{"$f":"IFERROR('MMA Rev-Exp Region 7'!$N$43/'MMA Rev-Exp Region 7'!$N$9, 0)","v":{"v":0,"d":"$0.00"}}]
["MMA",null,null,2016,"2016-12-31","Q1","2017-03-31","Region 7","Operating Expense","Medical Benefits Expense","Mental Health Services","5.4","Mental Health Settlements",{"$f":"IFERROR('MMA Rev-Exp Region 7'!$D$44/'MMA Rev-Exp Region 7'!$D$9, 0)","v":{"v":0,"d":"$0.00"}},{"$f":"IFERROR('MMA Rev-Exp Region 7'!$E$44/'MMA Rev-Exp Region 7'!$E$9, 0)","v":{"v":0,"d":"$0.00"}},{"$f":"IFERROR('MMA Rev-Exp Region 7'!$F$44/'MMA Rev-Exp Region 7'!$F$9, 0)","v":{"v":0,"d":"$0.00"}},{"$f":"IFERROR('MMA Rev-Exp Region 7'!$G$44/'MMA Rev-Exp Region 7'!$G$9, 0)","v":{"v":0,"d":"$0.00"}},{"$f":"IFERROR('MMA Rev-Exp Region 7'!$H$44/'MMA Rev-Exp Region 7'!$H$9, 0)","v":{"v":0,"d":"$0.00"}},{"$f":"IFERROR('MMA Rev-Exp Region 7'!$I$44/'MMA Rev-Exp Region 7'!$I$9, 0)","v":{"v":0,"d":"$0.00"}},{"$f":"IFERROR('MMA Rev-Exp Region 7'!$J$44/'MMA Rev-Exp Region 7'!$J$9, 0)","v":{"v":0,"d":"$0.00"}},{"$f":"IFERROR('MMA Rev-Exp Region 7'!$K$44/'MMA Rev-Exp Region 7'!$K$9, 0)","v":{"v":0,"d":"$0.00"}},{"$f":"IFERROR('MMA Rev-Exp Region 7'!$L$44/'MMA Rev-Exp Region 7'!$L$9, 0)","v":{"v":0,"d":"$0.00"}},{"$f":"IFERROR('MMA Rev-Exp Region 7'!$M$44/'MMA Rev-Exp Region 7'!$M$9, 0)","v":{"v":0,"d":"$0.00"}},{"$f":"IFERROR('MMA Rev-Exp Region 7'!$N$44/'MMA Rev-Exp Region 7'!$N$9, 0)","v":{"v":0,"d":"$0.00"}}]
["MMA",null,null,2016,"2016-12-31","Q1","2017-03-31","Region 7","Operating Expense","Medical Benefits Expense","Dental Services",6.1,"Dental FFS",{"$f":"IFERROR('MMA Rev-Exp Region 7'!$D$46/'MMA Rev-Exp Region 7'!$D$9, 0)","v":{"v":0,"d":"$0.00"}},{"$f":"IFERROR('MMA Rev-Exp Region 7'!$E$46/'MMA Rev-Exp Region 7'!$E$9, 0)","v":{"v":0,"d":"$0.00"}},{"$f":"IFERROR('MMA Rev-Exp Region 7'!$F$46/'MMA Rev-Exp Region 7'!$F$9, 0)","v":{"v":0,"d":"$0.00"}},{"$f":"IFERROR('MMA Rev-Exp Region 7'!$G$46/'MMA Rev-Exp Region 7'!$G$9, 0)","v":{"v":0,"d":"$0.00"}},{"$f":"IFERROR('MMA Rev-Exp Region 7'!$H$46/'MMA Rev-Exp Region 7'!$H$9, 0)","v":{"v":0,"d":"$0.00"}},{"$f":"IFERROR('MMA Rev-Exp Region 7'!$I$46/'MMA Rev-Exp Region 7'!$I$9, 0)","v":{"v":0,"d":"$0.00"}},{"$f":"IFERROR('MMA Rev-Exp Region 7'!$J$46/'MMA Rev-Exp Region 7'!$J$9, 0)","v":{"v":0,"d":"$0.00"}},{"$f":"IFERROR('MMA Rev-Exp Region 7'!$K$46/'MMA Rev-Exp Region 7'!$K$9, 0)","v":{"v":0,"d":"$0.00"}},{"$f":"IFERROR('MMA Rev-Exp Region 7'!$L$46/'MMA Rev-Exp Region 7'!$L$9, 0)","v":{"v":0,"d":"$0.00"}},{"$f":"IFERROR('MMA Rev-Exp Region 7'!$M$46/'MMA Rev-Exp Region 7'!$M$9, 0)","v":{"v":0,"d":"$0.00"}},{"$f":"IFERROR('MMA Rev-Exp Region 7'!$N$46/'MMA Rev-Exp Region 7'!$N$9, 0)","v":{"v":0,"d":"$0.00"}}]
["MMA",null,null,2016,"2016-12-31","Q1","2017-03-31","Region 7","Operating Expense","Medical Benefits Expense","Dental Services",6.2,"Dental Subcapitation",{"$f":"IFERROR('MMA Rev-Exp Region 7'!$D$47/'MMA Rev-Exp Region 7'!$D$9, 0)","v":{"v":0,"d":"$0.00"}},{"$f":"IFERROR('MMA Rev-Exp Region 7'!$E$47/'MMA Rev-Exp Region 7'!$E$9, 0)","v":{"v":0,"d":"$0.00"}},{"$f":"IFERROR('MMA Rev-Exp Region 7'!$F$47/'MMA Rev-Exp Region 7'!$F$9, 0)","v":{"v":0,"d":"$0.00"}},{"$f":"IFERROR('MMA Rev-Exp Region 7'!$G$47/'MMA Rev-Exp Region 7'!$G$9, 0)","v":{"v":0,"d":"$0.00"}},{"$f":"IFERROR('MMA Rev-Exp Region 7'!$H$47/'MMA Rev-Exp Region 7'!$H$9, 0)","v":{"v":0,"d":"$0.00"}},{"$f":"IFERROR('MMA Rev-Exp Region 7'!$I$47/'MMA Rev-Exp Region 7'!$I$9, 0)","v":{"v":0,"d":"$0.00"}},{"$f":"IFERROR('MMA Rev-Exp Region 7'!$J$47/'MMA Rev-Exp Region 7'!$J$9, 0)","v":{"v":0,"d":"$0.00"}},{"$f":"IFERROR('MMA Rev-Exp Region 7'!$K$47/'MMA Rev-Exp Region 7'!$K$9, 0)","v":{"v":0,"d":"$0.00"}},{"$f":"IFERROR('MMA Rev-Exp Region 7'!$L$47/'MMA Rev-Exp Region 7'!$L$9, 0)","v":{"v":0,"d":"$0.00"}},{"$f":"IFERROR('MMA Rev-Exp Region 7'!$M$47/'MMA Rev-Exp Region 7'!$M$9, 0)","v":{"v":0,"d":"$0.00"}},{"$f":"IFERROR('MMA Rev-Exp Region 7'!$N$47/'MMA Rev-Exp Region 7'!$N$9, 0)","v":{"v":0,"d":"$0.00"}}]
["MMA",null,null,2016,"2016-12-31","Q1","2017-03-31","Region 7","Operating Expense","Medical Benefits Expense","Dental Services",6.3,"Ending IBNP for Dental Services",{"$f":"IFERROR('MMA Rev-Exp Region 7'!$D$48/'MMA Rev-Exp Region 7'!$D$9, 0)","v":{"v":0,"d":"$0.00"}},{"$f":"IFERROR('MMA Rev-Exp Region 7'!$E$48/'MMA Rev-Exp Region 7'!$E$9, 0)","v":{"v":0,"d":"$0.00"}},{"$f":"IFERROR('MMA Rev-Exp Region 7'!$F$48/'MMA Rev-Exp Region 7'!$F$9, 0)","v":{"v":0,"d":"$0.00"}},{"$f":"IFERROR('MMA Rev-Exp Region 7'!$G$48/'MMA Rev-Exp Region 7'!$G$9, 0)","v":{"v":0,"d":"$0.00"}},{"$f":"IFERROR('MMA Rev-Exp Region 7'!$H$48/'MMA Rev-Exp Region 7'!$H$9, 0)","v":{"v":0,"d":"$0.00"}},{"$f":"IFERROR('MMA Rev-Exp Region 7'!$I$48/'MMA Rev-Exp Region 7'!$I$9, 0)","v":{"v":0,"d":"$0.00"}},{"$f":"IFERROR('MMA Rev-Exp Region 7'!$J$48/'MMA Rev-Exp Region 7'!$J$9, 0)","v":{"v":0,"d":"$0.00"}},{"$f":"IFERROR('MMA Rev-Exp Region 7'!$K$48/'MMA Rev-Exp Region 7'!$K$9, 0)","v":{"v":0,"d":"$0.00"}},{"$f":"IFERROR('MMA Rev-Exp Region 7'!$L$48/'MMA Rev-Exp Region 7'!$L$9, 0)","v":{"v":0,"d":"$0.00"}},{"$f":"IFERROR('MMA Rev-Exp Region 7'!$M$48/'MMA Rev-Exp Region 7'!$M$9, 0)","v":{"v":0,"d":"$0.00"}},{"$f":"IFERROR('MMA Rev-Exp Region 7'!$N$48/'MMA Rev-Exp Region 7'!$N$9, 0)","v":{"v":0,"d":"$0.00"}}]
["MMA",null,null,2016,"2016-12-31","Q1","2017-03-31","Region 7","Operating Expense","Medical Benefits Expense","Dental Services","6.4","Dental Settlements",{"$f":"IFERROR('MMA Rev-Exp Region 7'!$D$49/'MMA Rev-Exp Region 7'!$D$9, 0)","v":{"v":0,"d":"$0.00"}},{"$f":"IFERROR('MMA Rev-Exp Region 7'!$E$49/'MMA Rev-Exp Region 7'!$E$9, 0)","v":{"v":0,"d":"$0.00"}},{"$f":"IFERROR('MMA Rev-Exp Region 7'!$F$49/'MMA Rev-Exp Region 7'!$F$9, 0)","v":{"v":0,"d":"$0.00"}},{"$f":"IFERROR('MMA Rev-Exp Region 7'!$G$49/'MMA Rev-Exp Region 7'!$G$9, 0)","v":{"v":0,"d":"$0.00"}},{"$f":"IFERROR('MMA Rev-Exp Region 7'!$H$49/'MMA Rev-Exp Region 7'!$H$9, 0)","v":{"v":0,"d":"$0.00"}},{"$f":"IFERROR('MMA Rev-Exp Region 7'!$I$49/'MMA Rev-Exp Region 7'!$I$9, 0)","v":{"v":0,"d":"$0.00"}},{"$f":"IFERROR('MMA Rev-Exp Region 7'!$J$49/'MMA Rev-Exp Region 7'!$J$9, 0)","v":{"v":0,"d":"$0.00"}},{"$f":"IFERROR('MMA Rev-Exp Region 7'!$K$49/'MMA Rev-Exp Region 7'!$K$9, 0)","v":{"v":0,"d":"$0.00"}},{"$f":"IFERROR('MMA Rev-Exp Region 7'!$L$49/'MMA Rev-Exp Region 7'!$L$9, 0)","v":{"v":0,"d":"$0.00"}},{"$f":"IFERROR('MMA Rev-Exp Region 7'!$M$49/'MMA Rev-Exp Region 7'!$M$9, 0)","v":{"v":0,"d":"$0.00"}},{"$f":"IFERROR('MMA Rev-Exp Region 7'!$N$49/'MMA Rev-Exp Region 7'!$N$9, 0)","v":{"v":0,"d":"$0.00"}}]
["MMA",null,null,2016,"2016-12-31","Q1","2017-03-31","Region 7","Operating Expense","Medical Benefits Expense","Transportation Services",7.1,"Transportation FFS",{"$f":"IFERROR('MMA Rev-Exp Region 7'!$D$51/'MMA Rev-Exp Region 7'!$D$9, 0)","v":{"v":0,"d":"$0.00"}},{"$f":"IFERROR('MMA Rev-Exp Region 7'!$E$51/'MMA Rev-Exp Region 7'!$E$9, 0)","v":{"v":0,"d":"$0.00"}},{"$f":"IFERROR('MMA Rev-Exp Region 7'!$F$51/'MMA Rev-Exp Region 7'!$F$9, 0)","v":{"v":0,"d":"$0.00"}},{"$f":"IFERROR('MMA Rev-Exp Region 7'!$G$51/'MMA Rev-Exp Region 7'!$G$9, 0)","v":{"v":0,"d":"$0.00"}},{"$f":"IFERROR('MMA Rev-Exp Region 7'!$H$51/'MMA Rev-Exp Region 7'!$H$9, 0)","v":{"v":0,"d":"$0.00"}},{"$f":"IFERROR('MMA Rev-Exp Region 7'!$I$51/'MMA Rev-Exp Region 7'!$I$9, 0)","v":{"v":0,"d":"$0.00"}},{"$f":"IFERROR('MMA Rev-Exp Region 7'!$J$51/'MMA Rev-Exp Region 7'!$J$9, 0)","v":{"v":0,"d":"$0.00"}},{"$f":"IFERROR('MMA Rev-Exp Region 7'!$K$51/'MMA Rev-Exp Region 7'!$K$9, 0)","v":{"v":0,"d":"$0.00"}},{"$f":"IFERROR('MMA Rev-Exp Region 7'!$L$51/'MMA Rev-Exp Region 7'!$L$9, 0)","v":{"v":0,"d":"$0.00"}},{"$f":"IFERROR('MMA Rev-Exp Region 7'!$M$51/'MMA Rev-Exp Region 7'!$M$9, 0)","v":{"v":0,"d":"$0.00"}},{"$f":"IFERROR('MMA Rev-Exp Region 7'!$N$51/'MMA Rev-Exp Region 7'!$N$9, 0)","v":{"v":0,"d":"$0.00"}}]
["MMA",null,null,2016,"2016-12-31","Q1","2017-03-31","Region 7","Operating Expense","Medical Benefits Expense","Transportation Services",7.2,"Transportation Subcapitation",{"$f":"IFERROR('MMA Rev-Exp Region 7'!$D$52/'MMA Rev-Exp Region 7'!$D$9, 0)","v":{"v":0,"d":"$0.00"}},{"$f":"IFERROR('MMA Rev-Exp Region 7'!$E$52/'MMA Rev-Exp Region 7'!$E$9, 0)","v":{"v":0,"d":"$0.00"}},{"$f":"IFERROR('MMA Rev-Exp Region 7'!$F$52/'MMA Rev-Exp Region 7'!$F$9, 0)","v":{"v":0,"d":"$0.00"}},{"$f":"IFERROR('MMA Rev-Exp Region 7'!$G$52/'MMA Rev-Exp Region 7'!$G$9, 0)","v":{"v":0,"d":"$0.00"}},{"$f":"IFERROR('MMA Rev-Exp Region 7'!$H$52/'MMA Rev-Exp Region 7'!$H$9, 0)","v":{"v":0,"d":"$0.00"}},{"$f":"IFERROR('MMA Rev-Exp Region 7'!$I$52/'MMA Rev-Exp Region 7'!$I$9, 0)","v":{"v":0,"d":"$0.00"}},{"$f":"IFERROR('MMA Rev-Exp Region 7'!$J$52/'MMA Rev-Exp Region 7'!$J$9, 0)","v":{"v":0,"d":"$0.00"}},{"$f":"IFERROR('MMA Rev-Exp Region 7'!$K$52/'MMA Rev-Exp Region 7'!$K$9, 0)","v":{"v":0,"d":"$0.00"}},{"$f":"IFERROR('MMA Rev-Exp Region 7'!$L$52/'MMA Rev-Exp Region 7'!$L$9, 0)","v":{"v":0,"d":"$0.00"}},{"$f":"IFERROR('MMA Rev-Exp Region 7'!$M$52/'MMA Rev-Exp Region 7'!$M$9, 0)","v":{"v":0,"d":"$0.00"}},{"$f":"IFERROR('MMA Rev-Exp Region 7'!$N$52/'MMA Rev-Exp Region 7'!$N$9, 0)","v":{"v":0,"d":"$0.00"}}]
["MMA",null,null,2016,"2016-12-31","Q1","2017-03-31","Region 7","Operating Expense","Medical Benefits Expense","Transportation Services",7.3,"Ending IBNP for Transportation",{"$f":"IFERROR('MMA Rev-Exp Region 7'!$D$53/'MMA Rev-Exp Region 7'!$D$9, 0)","v":{"v":0,"d":"$0.00"}},{"$f":"IFERROR('MMA Rev-Exp Region 7'!$E$53/'MMA Rev-Exp Region 7'!$E$9, 0)","v":{"v":0,"d":"$0.00"}},{"$f":"IFERROR('MMA Rev-Exp Region 7'!$F$53/'MMA Rev-Exp Region 7'!$F$9, 0)","v":{"v":0,"d":"$0.00"}},{"$f":"IFERROR('MMA Rev-Exp Region 7'!$G$53/'MMA Rev-Exp Region 7'!$G$9, 0)","v":{"v":0,"d":"$0.00"}},{"$f":"IFERROR('MMA Rev-Exp Region 7'!$H$53/'MMA Rev-Exp Region 7'!$H$9, 0)","v":{"v":0,"d":"$0.00"}},{"$f":"IFERROR('MMA Rev-Exp Region 7'!$I$53/'MMA Rev-Exp Region 7'!$I$9, 0)","v":{"v":0,"d":"$0.00"}},{"$f":"IFERROR('MMA Rev-Exp Region 7'!$J$53/'MMA Rev-Exp Region 7'!$J$9, 0)","v":{"v":0,"d":"$0.00"}},{"$f":"IFERROR('MMA Rev-Exp Region 7'!$K$53/'MMA Rev-Exp Region 7'!$K$9, 0)","v":{"v":0,"d":"$0.00"}},{"$f":"IFERROR('MMA Rev-Exp Region 7'!$L$53/'MMA Rev-Exp Region 7'!$L$9, 0)","v":{"v":0,"d":"$0.00"}},{"$f":"IFERROR('MMA Rev-Exp Region 7'!$M$53/'MMA Rev-Exp Region 7'!$M$9, 0)","v":{"v":0,"d":"$0.00"}},{"$f":"IFERROR('MMA Rev-Exp Region 7'!$N$53/'MMA Rev-Exp Region 7'!$N$9, 0)","v":{"v":0,"d":"$0.00"}}]
["MMA",null,null,2016,"2016-12-31","Q1","2017-03-31","Region 7","Operating Expense","Medical Benefits Expense","Transportation Services","7.4","Transportation Settlements",{"$f":"IFERROR('MMA Rev-Exp Region 7'!$D$54/'MMA Rev-Exp Region 7'!$D$9, 0)","v":{"v":0,"d":"$0.00"}},{"$f":"IFERROR('MMA Rev-Exp Region 7'!$E$54/'MMA Rev-Exp Region 7'!$E$9, 0)","v":{"v":0,"d":"$0.00"}},{"$f":"IFERROR('MMA Rev-Exp Region 7'!$F$54/'MMA Rev-Exp Region 7'!$F$9, 0)","v":{"v":0,"d":"$0.00"}},{"$f":"IFERROR('MMA Rev-Exp Region 7'!$G$54/'MMA Rev-Exp Region 7'!$G$9, 0)","v":{"v":0,"d":"$0.00"}},{"$f":"IFERROR('MMA Rev-Exp Region 7'!$H$54/'MMA Rev-Exp Region 7'!$H$9, 0)","v":{"v":0,"d":"$0.00"}},{"$f":"IFERROR('MMA Rev-Exp Region 7'!$I$54/'MMA Rev-Exp Region 7'!$I$9, 0)","v":{"v":0,"d":"$0.00"}},{"$f":"IFERROR('MMA Rev-Exp Region 7'!$J$54/'MMA Rev-Exp Region 7'!$J$9, 0)","v":{"v":0,"d":"$0.00"}},{"$f":"IFERROR('MMA Rev-Exp Region 7'!$K$54/'MMA Rev-Exp Region 7'!$K$9, 0)","v":{"v":0,"d":"$0.00"}},{"$f":"IFERROR('MMA Rev-Exp Region 7'!$L$54/'MMA Rev-Exp Region 7'!$L$9, 0)","v":{"v":0,"d":"$0.00"}},{"$f":"IFERROR('MMA Rev-Exp Region 7'!$M$54/'MMA Rev-Exp Region 7'!$M$9, 0)","v":{"v":0,"d":"$0.00"}},{"$f":"IFERROR('MMA Rev-Exp Region 7'!$N$54/'MMA Rev-Exp Region 7'!$N$9, 0)","v":{"v":0,"d":"$0.00"}}]
["MMA",null,null,2016,"2016-12-31","Q1","2017-03-31","Region 7","Operating Expense","Medical Benefits Expense","Pharmacy Services",8.1,"Prescription Drugs FFS",{"$f":"IFERROR('MMA Rev-Exp Region 7'!$D$56/'MMA Rev-Exp Region 7'!$D$9, 0)","v":{"v":0,"d":"$0.00"}},{"$f":"IFERROR('MMA Rev-Exp Region 7'!$E$56/'MMA Rev-Exp Region 7'!$E$9, 0)","v":{"v":0,"d":"$0.00"}},{"$f":"IFERROR('MMA Rev-Exp Region 7'!$F$56/'MMA Rev-Exp Region 7'!$F$9, 0)","v":{"v":0,"d":"$0.00"}},{"$f":"IFERROR('MMA Rev-Exp Region 7'!$G$56/'MMA Rev-Exp Region 7'!$G$9, 0)","v":{"v":0,"d":"$0.00"}},{"$f":"IFERROR('MMA Rev-Exp Region 7'!$H$56/'MMA Rev-Exp Region 7'!$H$9, 0)","v":{"v":0,"d":"$0.00"}},{"$f":"IFERROR('MMA Rev-Exp Region 7'!$I$56/'MMA Rev-Exp Region 7'!$I$9, 0)","v":{"v":0,"d":"$0.00"}},{"$f":"IFERROR('MMA Rev-Exp Region 7'!$J$56/'MMA Rev-Exp Region 7'!$J$9, 0)","v":{"v":0,"d":"$0.00"}},{"$f":"IFERROR('MMA Rev-Exp Region 7'!$K$56/'MMA Rev-Exp Region 7'!$K$9, 0)","v":{"v":0,"d":"$0.00"}},{"$f":"IFERROR('MMA Rev-Exp Region 7'!$L$56/'MMA Rev-Exp Region 7'!$L$9, 0)","v":{"v":0,"d":"$0.00"}},{"$f":"IFERROR('MMA Rev-Exp Region 7'!$M$56/'MMA Rev-Exp Region 7'!$M$9, 0)","v":{"v":0,"d":"$0.00"}},{"$f":"IFERROR('MMA Rev-Exp Region 7'!$N$56/'MMA Rev-Exp Region 7'!$N$9, 0)","v":{"v":0,"d":"$0.00"}}]
["MMA",null,null,2016,"2016-12-31","Q1","2017-03-31","Region 7","Operating Expense","Medical Benefits Expense","Pharmacy Services","8.2","Hepatitis C Prescription Drug FFS",{"$f":"IFERROR('MMA Rev-Exp Region 7'!$D$57/'MMA Rev-Exp Region 7'!$D$9, 0)","v":{"v":0,"d":"$0.00"}},{"$f":"IFERROR('MMA Rev-Exp Region 7'!$E$57/'MMA Rev-Exp Region 7'!$E$9, 0)","v":{"v":0,"d":"$0.00"}},{"$f":"IFERROR('MMA Rev-Exp Region 7'!$F$57/'MMA Rev-Exp Region 7'!$F$9, 0)","v":{"v":0,"d":"$0.00"}},{"$f":"IFERROR('MMA Rev-Exp Region 7'!$G$57/'MMA Rev-Exp Region 7'!$G$9, 0)","v":{"v":0,"d":"$0.00"}},{"$f":"IFERROR('MMA Rev-Exp Region 7'!$H$57/'MMA Rev-Exp Region 7'!$H$9, 0)","v":{"v":0,"d":"$0.00"}},{"$f":"IFERROR('MMA Rev-Exp Region 7'!$I$57/'MMA Rev-Exp Region 7'!$I$9, 0)","v":{"v":0,"d":"$0.00"}},{"$f":"IFERROR('MMA Rev-Exp Region 7'!$J$57/'MMA Rev-Exp Region 7'!$J$9, 0)","v":{"v":0,"d":"$0.00"}},{"$f":"IFERROR('MMA Rev-Exp Region 7'!$K$57/'MMA Rev-Exp Region 7'!$K$9, 0)","v":{"v":0,"d":"$0.00"}},{"$f":"IFERROR('MMA Rev-Exp Region 7'!$L$57/'MMA Rev-Exp Region 7'!$L$9, 0)","v":{"v":0,"d":"$0.00"}},{"$f":"IFERROR('MMA Rev-Exp Region 7'!$M$57/'MMA Rev-Exp Region 7'!$M$9, 0)","v":{"v":0,"d":"$0.00"}},{"$f":"IFERROR('MMA Rev-Exp Region 7'!$N$57/'MMA Rev-Exp Region 7'!$N$9, 0)","v":{"v":0,"d":"$0.00"}}]
["MMA",null,null,2016,"2016-12-31","Q1","2017-03-31","Region 7","Operating Expense","Medical Benefits Expense","Pharmacy Services","8.3","Ending IBNP for Prescription Drugs",{"$f":"IFERROR('MMA Rev-Exp Region 7'!$D$58/'MMA Rev-Exp Region 7'!$D$9, 0)","v":{"v":0,"d":"$0.00"}},{"$f":"IFERROR('MMA Rev-Exp Region 7'!$E$58/'MMA Rev-Exp Region 7'!$E$9, 0)","v":{"v":0,"d":"$0.00"}},{"$f":"IFERROR('MMA Rev-Exp Region 7'!$F$58/'MMA Rev-Exp Region 7'!$F$9, 0)","v":{"v":0,"d":"$0.00"}},{"$f":"IFERROR('MMA Rev-Exp Region 7'!$G$58/'MMA Rev-Exp Region 7'!$G$9, 0)","v":{"v":0,"d":"$0.00"}},{"$f":"IFERROR('MMA Rev-Exp Region 7'!$H$58/'MMA Rev-Exp Region 7'!$H$9, 0)","v":{"v":0,"d":"$0.00"}},{"$f":"IFERROR('MMA Rev-Exp Region 7'!$I$58/'MMA Rev-Exp Region 7'!$I$9, 0)","v":{"v":0,"d":"$0.00"}},{"$f":"IFERROR('MMA Rev-Exp Region 7'!$J$58/'MMA Rev-Exp Region 7'!$J$9, 0)","v":{"v":0,"d":"$0.00"}},{"$f":"IFERROR('MMA Rev-Exp Region 7'!$K$58/'MMA Rev-Exp Region 7'!$K$9, 0)","v":{"v":0,"d":"$0.00"}},{"$f":"IFERROR('MMA Rev-Exp Region 7'!$L$58/'MMA Rev-Exp Region 7'!$L$9, 0)","v":{"v":0,"d":"$0.00"}},{"$f":"IFERROR('MMA Rev-Exp Region 7'!$M$58/'MMA Rev-Exp Region 7'!$M$9, 0)","v":{"v":0,"d":"$0.00"}},{"$f":"IFERROR('MMA Rev-Exp Region 7'!$N$58/'MMA Rev-Exp Region 7'!$N$9, 0)","v":{"v":0,"d":"$0.00"}}]
["MMA",null,null,2016,"2016-12-31","Q1","2017-03-31","Region 7","Operating Expense","Medical Benefits Expense","Pharmacy Services","8.4","Prescription Drug Rebates ",{"$f":"IFERROR('MMA Rev-Exp Region 7'!$D$59/'MMA Rev-Exp Region 7'!$D$9, 0)","v":{"v":0,"d":"$0.00"}},{"$f":"IFERROR('MMA Rev-Exp Region 7'!$E$59/'MMA Rev-Exp Region 7'!$E$9, 0)","v":{"v":0,"d":"$0.00"}},{"$f":"IFERROR('MMA Rev-Exp Region 7'!$F$59/'MMA Rev-Exp Region 7'!$F$9, 0)","v":{"v":0,"d":"$0.00"}},{"$f":"IFERROR('MMA Rev-Exp Region 7'!$G$59/'MMA Rev-Exp Region 7'!$G$9, 0)","v":{"v":0,"d":"$0.00"}},{"$f":"IFERROR('MMA Rev-Exp Region 7'!$H$59/'MMA Rev-Exp Region 7'!$H$9, 0)","v":{"v":0,"d":"$0.00"}},{"$f":"IFERROR('MMA Rev-Exp Region 7'!$I$59/'MMA Rev-Exp Region 7'!$I$9, 0)","v":{"v":0,"d":"$0.00"}},{"$f":"IFERROR('MMA Rev-Exp Region 7'!$J$59/'MMA Rev-Exp Region 7'!$J$9, 0)","v":{"v":0,"d":"$0.00"}},{"$f":"IFERROR('MMA Rev-Exp Region 7'!$K$59/'MMA Rev-Exp Region 7'!$K$9, 0)","v":{"v":0,"d":"$0.00"}},{"$f":"IFERROR('MMA Rev-Exp Region 7'!$L$59/'MMA Rev-Exp Region 7'!$L$9, 0)","v":{"v":0,"d":"$0.00"}},{"$f":"IFERROR('MMA Rev-Exp Region 7'!$M$59/'MMA Rev-Exp Region 7'!$M$9, 0)","v":{"v":0,"d":"$0.00"}},{"$f":"IFERROR('MMA Rev-Exp Region 7'!$N$59/'MMA Rev-Exp Region 7'!$N$9, 0)","v":{"v":0,"d":"$0.00"}}]
["MMA",null,null,2016,"2016-12-31","Q1","2017-03-31","Region 7","Operating Expense","Medical Benefits Expense","Pharmacy Services","8.5","Ending accrual for Rebates receivable",{"$f":"IFERROR('MMA Rev-Exp Region 7'!$D$60/'MMA Rev-Exp Region 7'!$D$9, 0)","v":{"v":0,"d":"$0.00"}},{"$f":"IFERROR('MMA Rev-Exp Region 7'!$E$60/'MMA Rev-Exp Region 7'!$E$9, 0)","v":{"v":0,"d":"$0.00"}},{"$f":"IFERROR('MMA Rev-Exp Region 7'!$F$60/'MMA Rev-Exp Region 7'!$F$9, 0)","v":{"v":0,"d":"$0.00"}},{"$f":"IFERROR('MMA Rev-Exp Region 7'!$G$60/'MMA Rev-Exp Region 7'!$G$9, 0)","v":{"v":0,"d":"$0.00"}},{"$f":"IFERROR('MMA Rev-Exp Region 7'!$H$60/'MMA Rev-Exp Region 7'!$H$9, 0)","v":{"v":0,"d":"$0.00"}},{"$f":"IFERROR('MMA Rev-Exp Region 7'!$I$60/'MMA Rev-Exp Region 7'!$I$9, 0)","v":{"v":0,"d":"$0.00"}},{"$f":"IFERROR('MMA Rev-Exp Region 7'!$J$60/'MMA Rev-Exp Region 7'!$J$9, 0)","v":{"v":0,"d":"$0.00"}},{"$f":"IFERROR('MMA Rev-Exp Region 7'!$K$60/'MMA Rev-Exp Region 7'!$K$9, 0)","v":{"v":0,"d":"$0.00"}},{"$f":"IFERROR('MMA Rev-Exp Region 7'!$L$60/'MMA Rev-Exp Region 7'!$L$9, 0)","v":{"v":0,"d":"$0.00"}},{"$f":"IFERROR('MMA Rev-Exp Region 7'!$M$60/'MMA Rev-Exp Region 7'!$M$9, 0)","v":{"v":0,"d":"$0.00"}},{"$f":"IFERROR('MMA Rev-Exp Region 7'!$N$60/'MMA Rev-Exp Region 7'!$N$9, 0)","v":{"v":0,"d":"$0.00"}}]
["MMA",null,null,2016,"2016-12-31","Q1","2017-03-31","Region 7","Operating Expense","Medical Benefits Expense","Pharmacy Services","8.6","Prescription Drugs Subcapitation",{"$f":"IFERROR('MMA Rev-Exp Region 7'!$D$61/'MMA Rev-Exp Region 7'!$D$9, 0)","v":{"v":0,"d":"$0.00"}},{"$f":"IFERROR('MMA Rev-Exp Region 7'!$E$61/'MMA Rev-Exp Region 7'!$E$9, 0)","v":{"v":0,"d":"$0.00"}},{"$f":"IFERROR('MMA Rev-Exp Region 7'!$F$61/'MMA Rev-Exp Region 7'!$F$9, 0)","v":{"v":0,"d":"$0.00"}},{"$f":"IFERROR('MMA Rev-Exp Region 7'!$G$61/'MMA Rev-Exp Region 7'!$G$9, 0)","v":{"v":0,"d":"$0.00"}},{"$f":"IFERROR('MMA Rev-Exp Region 7'!$H$61/'MMA Rev-Exp Region 7'!$H$9, 0)","v":{"v":0,"d":"$0.00"}},{"$f":"IFERROR('MMA Rev-Exp Region 7'!$I$61/'MMA Rev-Exp Region 7'!$I$9, 0)","v":{"v":0,"d":"$0.00"}},{"$f":"IFERROR('MMA Rev-Exp Region 7'!$J$61/'MMA Rev-Exp Region 7'!$J$9, 0)","v":{"v":0,"d":"$0.00"}},{"$f":"IFERROR('MMA Rev-Exp Region 7'!$K$61/'MMA Rev-Exp Region 7'!$K$9, 0)","v":{"v":0,"d":"$0.00"}},{"$f":"IFERROR('MMA Rev-Exp Region 7'!$L$61/'MMA Rev-Exp Region 7'!$L$9, 0)","v":{"v":0,"d":"$0.00"}},{"$f":"IFERROR('MMA Rev-Exp Region 7'!$M$61/'MMA Rev-Exp Region 7'!$M$9, 0)","v":{"v":0,"d":"$0.00"}},{"$f":"IFERROR('MMA Rev-Exp Region 7'!$N$61/'MMA Rev-Exp Region 7'!$N$9, 0)","v":{"v":0,"d":"$0.00"}}]
["MMA",null,null,2016,"2016-12-31","Q1","2017-03-31","Region 7","Operating Expense","Medical Benefits Expense","Pharmacy Services","8.7","Prescription Drug Settlements",{"$f":"IFERROR('MMA Rev-Exp Region 7'!$D$62/'MMA Rev-Exp Region 7'!$D$9, 0)","v":{"v":0,"d":"$0.00"}},{"$f":"IFERROR('MMA Rev-Exp Region 7'!$E$62/'MMA Rev-Exp Region 7'!$E$9, 0)","v":{"v":0,"d":"$0.00"}},{"$f":"IFERROR('MMA Rev-Exp Region 7'!$F$62/'MMA Rev-Exp Region 7'!$F$9, 0)","v":{"v":0,"d":"$0.00"}},{"$f":"IFERROR('MMA Rev-Exp Region 7'!$G$62/'MMA Rev-Exp Region 7'!$G$9, 0)","v":{"v":0,"d":"$0.00"}},{"$f":"IFERROR('MMA Rev-Exp Region 7'!$H$62/'MMA Rev-Exp Region 7'!$H$9, 0)","v":{"v":0,"d":"$0.00"}},{"$f":"IFERROR('MMA Rev-Exp Region 7'!$I$62/'MMA Rev-Exp Region 7'!$I$9, 0)","v":{"v":0,"d":"$0.00"}},{"$f":"IFERROR('MMA Rev-Exp Region 7'!$J$62/'MMA Rev-Exp Region 7'!$J$9, 0)","v":{"v":0,"d":"$0.00"}},{"$f":"IFERROR('MMA Rev-Exp Region 7'!$K$62/'MMA Rev-Exp Region 7'!$K$9, 0)","v":{"v":0,"d":"$0.00"}},{"$f":"IFERROR('MMA Rev-Exp Region 7'!$L$62/'MMA Rev-Exp Region 7'!$L$9, 0)","v":{"v":0,"d":"$0.00"}},{"$f":"IFERROR('MMA Rev-Exp Region 7'!$M$62/'MMA Rev-Exp Region 7'!$M$9, 0)","v":{"v":0,"d":"$0.00"}},{"$f":"IFERROR('MMA Rev-Exp Region 7'!$N$62/'MMA Rev-Exp Region 7'!$N$9, 0)","v":{"v":0,"d":"$0.00"}}]
["MMA",null,null,2016,"2016-12-31","Q1","2017-03-31","Region 7","Operating Expense","Medical Benefits Expense","Other MMA Services",9.1,"Home Health, Private Duty Nursing, Personal Care FFS",{"$f":"IFERROR('MMA Rev-Exp Region 7'!$D$64/'MMA Rev-Exp Region 7'!$D$9, 0)","v":{"v":0,"d":"$0.00"}},{"$f":"IFERROR('MMA Rev-Exp Region 7'!$E$64/'MMA Rev-Exp Region 7'!$E$9, 0)","v":{"v":0,"d":"$0.00"}},{"$f":"IFERROR('MMA Rev-Exp Region 7'!$F$64/'MMA Rev-Exp Region 7'!$F$9, 0)","v":{"v":0,"d":"$0.00"}},{"$f":"IFERROR('MMA Rev-Exp Region 7'!$G$64/'MMA Rev-Exp Region 7'!$G$9, 0)","v":{"v":0,"d":"$0.00"}},{"$f":"IFERROR('MMA Rev-Exp Region 7'!$H$64/'MMA Rev-Exp Region 7'!$H$9, 0)","v":{"v":0,"d":"$0.00"}},{"$f":"IFERROR('MMA Rev-Exp Region 7'!$I$64/'MMA Rev-Exp Region 7'!$I$9, 0)","v":{"v":0,"d":"$0.00"}},{"$f":"IFERROR('MMA Rev-Exp Region 7'!$J$64/'MMA Rev-Exp Region 7'!$J$9, 0)","v":{"v":0,"d":"$0.00"}},{"$f":"IFERROR('MMA Rev-Exp Region 7'!$K$64/'MMA Rev-Exp Region 7'!$K$9, 0)","v":{"v":0,"d":"$0.00"}},{"$f":"IFERROR('MMA Rev-Exp Region 7'!$L$64/'MMA Rev-Exp Region 7'!$L$9, 0)","v":{"v":0,"d":"$0.00"}},{"$f":"IFERROR('MMA Rev-Exp Region 7'!$M$64/'MMA Rev-Exp Region 7'!$M$9, 0)","v":{"v":0,"d":"$0.00"}},{"$f":"IFERROR('MMA Rev-Exp Region 7'!$N$64/'MMA Rev-Exp Region 7'!$N$9, 0)","v":{"v":0,"d":"$0.00"}}]
["MMA",null,null,2016,"2016-12-31","Q1","2017-03-31","Region 7","Operating Expense","Medical Benefits Expense","Other MMA Services","9.2","Hospice FFS",{"$f":"IFERROR('MMA Rev-Exp Region 7'!$D$65/'MMA Rev-Exp Region 7'!$D$9, 0)","v":{"v":0,"d":"$0.00"}},{"$f":"IFERROR('MMA Rev-Exp Region 7'!$E$65/'MMA Rev-Exp Region 7'!$E$9, 0)","v":{"v":0,"d":"$0.00"}},{"$f":"IFERROR('MMA Rev-Exp Region 7'!$F$65/'MMA Rev-Exp Region 7'!$F$9, 0)","v":{"v":0,"d":"$0.00"}},{"$f":"IFERROR('MMA Rev-Exp Region 7'!$G$65/'MMA Rev-Exp Region 7'!$G$9, 0)","v":{"v":0,"d":"$0.00"}},{"$f":"IFERROR('MMA Rev-Exp Region 7'!$H$65/'MMA Rev-Exp Region 7'!$H$9, 0)","v":{"v":0,"d":"$0.00"}},{"$f":"IFERROR('MMA Rev-Exp Region 7'!$I$65/'MMA Rev-Exp Region 7'!$I$9, 0)","v":{"v":0,"d":"$0.00"}},{"$f":"IFERROR('MMA Rev-Exp Region 7'!$J$65/'MMA Rev-Exp Region 7'!$J$9, 0)","v":{"v":0,"d":"$0.00"}},{"$f":"IFERROR('MMA Rev-Exp Region 7'!$K$65/'MMA Rev-Exp Region 7'!$K$9, 0)","v":{"v":0,"d":"$0.00"}},{"$f":"IFERROR('MMA Rev-Exp Region 7'!$L$65/'MMA Rev-Exp Region 7'!$L$9, 0)","v":{"v":0,"d":"$0.00"}},{"$f":"IFERROR('MMA Rev-Exp Region 7'!$M$65/'MMA Rev-Exp Region 7'!$M$9, 0)","v":{"v":0,"d":"$0.00"}},{"$f":"IFERROR('MMA Rev-Exp Region 7'!$N$65/'MMA Rev-Exp Region 7'!$N$9, 0)","v":{"v":0,"d":"$0.00"}}]
["MMA",null,null,2016,"2016-12-31","Q1","2017-03-31","Region 7","Operating Expense","Medical Benefits Expense","Other MMA Services","9.3","DME FFS",{"$f":"IFERROR('MMA Rev-Exp Region 7'!$D$66/'MMA Rev-Exp Region 7'!$D$9, 0)","v":{"v":0,"d":"$0.00"}},{"$f":"IFERROR('MMA Rev-Exp Region 7'!$E$66/'MMA Rev-Exp Region 7'!$E$9, 0)","v":{"v":0,"d":"$0.00"}},{"$f":"IFERROR('MMA Rev-Exp Region 7'!$F$66/'MMA Rev-Exp Region 7'!$F$9, 0)","v":{"v":0,"d":"$0.00"}},{"$f":"IFERROR('MMA Rev-Exp Region 7'!$G$66/'MMA Rev-Exp Region 7'!$G$9, 0)","v":{"v":0,"d":"$0.00"}},{"$f":"IFERROR('MMA Rev-Exp Region 7'!$H$66/'MMA Rev-Exp Region 7'!$H$9, 0)","v":{"v":0,"d":"$0.00"}},{"$f":"IFERROR('MMA Rev-Exp Region 7'!$I$66/'MMA Rev-Exp Region 7'!$I$9, 0)","v":{"v":0,"d":"$0.00"}},{"$f":"IFERROR('MMA Rev-Exp Region 7'!$J$66/'MMA Rev-Exp Region 7'!$J$9, 0)","v":{"v":0,"d":"$0.00"}},{"$f":"IFERROR('MMA Rev-Exp Region 7'!$K$66/'MMA Rev-Exp Region 7'!$K$9, 0)","v":{"v":0,"d":"$0.00"}},{"$f":"IFERROR('MMA Rev-Exp Region 7'!$L$66/'MMA Rev-Exp Region 7'!$L$9, 0)","v":{"v":0,"d":"$0.00"}},{"$f":"IFERROR('MMA Rev-Exp Region 7'!$M$66/'MMA Rev-Exp Region 7'!$M$9, 0)","v":{"v":0,"d":"$0.00"}},{"$f":"IFERROR('MMA Rev-Exp Region 7'!$N$66/'MMA Rev-Exp Region 7'!$N$9, 0)","v":{"v":0,"d":"$0.00"}}]
["MMA",null,null,2016,"2016-12-31","Q1","2017-03-31","Region 7","Operating Expense","Medical Benefits Expense","Other MMA Services","9.4","Other State Plan Services FFS",{"$f":"IFERROR('MMA Rev-Exp Region 7'!$D$67/'MMA Rev-Exp Region 7'!$D$9, 0)","v":{"v":0,"d":"$0.00"}},{"$f":"IFERROR('MMA Rev-Exp Region 7'!$E$67/'MMA Rev-Exp Region 7'!$E$9, 0)","v":{"v":0,"d":"$0.00"}},{"$f":"IFERROR('MMA Rev-Exp Region 7'!$F$67/'MMA Rev-Exp Region 7'!$F$9, 0)","v":{"v":0,"d":"$0.00"}},{"$f":"IFERROR('MMA Rev-Exp Region 7'!$G$67/'MMA Rev-Exp Region 7'!$G$9, 0)","v":{"v":0,"d":"$0.00"}},{"$f":"IFERROR('MMA Rev-Exp Region 7'!$H$67/'MMA Rev-Exp Region 7'!$H$9, 0)","v":{"v":0,"d":"$0.00"}},{"$f":"IFERROR('MMA Rev-Exp Region 7'!$I$67/'MMA Rev-Exp Region 7'!$I$9, 0)","v":{"v":0,"d":"$0.00"}},{"$f":"IFERROR('MMA Rev-Exp Region 7'!$J$67/'MMA Rev-Exp Region 7'!$J$9, 0)","v":{"v":0,"d":"$0.00"}},{"$f":"IFERROR('MMA Rev-Exp Region 7'!$K$67/'MMA Rev-Exp Region 7'!$K$9, 0)","v":{"v":0,"d":"$0.00"}},{"$f":"IFERROR('MMA Rev-Exp Region 7'!$L$67/'MMA Rev-Exp Region 7'!$L$9, 0)","v":{"v":0,"d":"$0.00"}},{"$f":"IFERROR('MMA Rev-Exp Region 7'!$M$67/'MMA Rev-Exp Region 7'!$M$9, 0)","v":{"v":0,"d":"$0.00"}},{"$f":"IFERROR('MMA Rev-Exp Region 7'!$N$67/'MMA Rev-Exp Region 7'!$N$9, 0)","v":{"v":0,"d":"$0.00"}}]
["MMA",null,null,2016,"2016-12-31","Q1","2017-03-31","Region 7","Operating Expense","Medical Benefits Expense","Other MMA Services","9.5","Other Services Subcapitation",{"$f":"IFERROR('MMA Rev-Exp Region 7'!$D$68/'MMA Rev-Exp Region 7'!$D$9, 0)","v":{"v":0,"d":"$0.00"}},{"$f":"IFERROR('MMA Rev-Exp Region 7'!$E$68/'MMA Rev-Exp Region 7'!$E$9, 0)","v":{"v":0,"d":"$0.00"}},{"$f":"IFERROR('MMA Rev-Exp Region 7'!$F$68/'MMA Rev-Exp Region 7'!$F$9, 0)","v":{"v":0,"d":"$0.00"}},{"$f":"IFERROR('MMA Rev-Exp Region 7'!$G$68/'MMA Rev-Exp Region 7'!$G$9, 0)","v":{"v":0,"d":"$0.00"}},{"$f":"IFERROR('MMA Rev-Exp Region 7'!$H$68/'MMA Rev-Exp Region 7'!$H$9, 0)","v":{"v":0,"d":"$0.00"}},{"$f":"IFERROR('MMA Rev-Exp Region 7'!$I$68/'MMA Rev-Exp Region 7'!$I$9, 0)","v":{"v":0,"d":"$0.00"}},{"$f":"IFERROR('MMA Rev-Exp Region 7'!$J$68/'MMA Rev-Exp Region 7'!$J$9, 0)","v":{"v":0,"d":"$0.00"}},{"$f":"IFERROR('MMA Rev-Exp Region 7'!$K$68/'MMA Rev-Exp Region 7'!$K$9, 0)","v":{"v":0,"d":"$0.00"}},{"$f":"IFERROR('MMA Rev-Exp Region 7'!$L$68/'MMA Rev-Exp Region 7'!$L$9, 0)","v":{"v":0,"d":"$0.00"}},{"$f":"IFERROR('MMA Rev-Exp Region 7'!$M$68/'MMA Rev-Exp Region 7'!$M$9, 0)","v":{"v":0,"d":"$0.00"}},{"$f":"IFERROR('MMA Rev-Exp Region 7'!$N$68/'MMA Rev-Exp Region 7'!$N$9, 0)","v":{"v":0,"d":"$0.00"}}]
["MMA",null,null,2016,"2016-12-31","Q1","2017-03-31","Region 7","Operating Expense","Medical Benefits Expense","Other MMA Services","9.6","Ending IBNP for Other Services",{"$f":"IFERROR('MMA Rev-Exp Region 7'!$D$69/'MMA Rev-Exp Region 7'!$D$9, 0)","v":{"v":0,"d":"$0.00"}},{"$f":"IFERROR('MMA Rev-Exp Region 7'!$E$69/'MMA Rev-Exp Region 7'!$E$9, 0)","v":{"v":0,"d":"$0.00"}},{"$f":"IFERROR('MMA Rev-Exp Region 7'!$F$69/'MMA Rev-Exp Region 7'!$F$9, 0)","v":{"v":0,"d":"$0.00"}},{"$f":"IFERROR('MMA Rev-Exp Region 7'!$G$69/'MMA Rev-Exp Region 7'!$G$9, 0)","v":{"v":0,"d":"$0.00"}},{"$f":"IFERROR('MMA Rev-Exp Region 7'!$H$69/'MMA Rev-Exp Region 7'!$H$9, 0)","v":{"v":0,"d":"$0.00"}},{"$f":"IFERROR('MMA Rev-Exp Region 7'!$I$69/'MMA Rev-Exp Region 7'!$I$9, 0)","v":{"v":0,"d":"$0.00"}},{"$f":"IFERROR('MMA Rev-Exp Region 7'!$J$69/'MMA Rev-Exp Region 7'!$J$9, 0)","v":{"v":0,"d":"$0.00"}},{"$f":"IFERROR('MMA Rev-Exp Region 7'!$K$69/'MMA Rev-Exp Region 7'!$K$9, 0)","v":{"v":0,"d":"$0.00"}},{"$f":"IFERROR('MMA Rev-Exp Region 7'!$L$69/'MMA Rev-Exp Region 7'!$L$9, 0)","v":{"v":0,"d":"$0.00"}},{"$f":"IFERROR('MMA Rev-Exp Region 7'!$M$69/'MMA Rev-Exp Region 7'!$M$9, 0)","v":{"v":0,"d":"$0.00"}},{"$f":"IFERROR('MMA Rev-Exp Region 7'!$N$69/'MMA Rev-Exp Region 7'!$N$9, 0)","v":{"v":0,"d":"$0.00"}}]
["MMA",null,null,2016,"2016-12-31","Q1","2017-03-31","Region 7","Operating Expense","Medical Benefits Expense","Other MMA Services","9.7","Other Services Settlements",{"$f":"IFERROR('MMA Rev-Exp Region 7'!$D$70/'MMA Rev-Exp Region 7'!$D$9, 0)","v":{"v":0,"d":"$0.00"}},{"$f":"IFERROR('MMA Rev-Exp Region 7'!$E$70/'MMA Rev-Exp Region 7'!$E$9, 0)","v":{"v":0,"d":"$0.00"}},{"$f":"IFERROR('MMA Rev-Exp Region 7'!$F$70/'MMA Rev-Exp Region 7'!$F$9, 0)","v":{"v":0,"d":"$0.00"}},{"$f":"IFERROR('MMA Rev-Exp Region 7'!$G$70/'MMA Rev-Exp Region 7'!$G$9, 0)","v":{"v":0,"d":"$0.00"}},{"$f":"IFERROR('MMA Rev-Exp Region 7'!$H$70/'MMA Rev-Exp Region 7'!$H$9, 0)","v":{"v":0,"d":"$0.00"}},{"$f":"IFERROR('MMA Rev-Exp Region 7'!$I$70/'MMA Rev-Exp Region 7'!$I$9, 0)","v":{"v":0,"d":"$0.00"}},{"$f":"IFERROR('MMA Rev-Exp Region 7'!$J$70/'MMA Rev-Exp Region 7'!$J$9, 0)","v":{"v":0,"d":"$0.00"}},{"$f":"IFERROR('MMA Rev-Exp Region 7'!$K$70/'MMA Rev-Exp Region 7'!$K$9, 0)","v":{"v":0,"d":"$0.00"}},{"$f":"IFERROR('MMA Rev-Exp Region 7'!$L$70/'MMA Rev-Exp Region 7'!$L$9, 0)","v":{"v":0,"d":"$0.00"}},{"$f":"IFERROR('MMA Rev-Exp Region 7'!$M$70/'MMA Rev-Exp Region 7'!$M$9, 0)","v":{"v":0,"d":"$0.00"}},{"$f":"IFERROR('MMA Rev-Exp Region 7'!$N$70/'MMA Rev-Exp Region 7'!$N$9, 0)","v":{"v":0,"d":"$0.00"}}]
["MMA",null,null,2016,"2016-12-31","Q1","2017-03-31","Region 7","Operating Expense","Medical Benefits Expense","Expanded Benefits","10.1","Expanded Benefits FFS",{"$f":"IFERROR('MMA Rev-Exp Region 7'!$D$72/'MMA Rev-Exp Region 7'!$D$9, 0)","v":{"v":0,"d":"$0.00"}},{"$f":"IFERROR('MMA Rev-Exp Region 7'!$E$72/'MMA Rev-Exp Region 7'!$E$9, 0)","v":{"v":0,"d":"$0.00"}},{"$f":"IFERROR('MMA Rev-Exp Region 7'!$F$72/'MMA Rev-Exp Region 7'!$F$9, 0)","v":{"v":0,"d":"$0.00"}},{"$f":"IFERROR('MMA Rev-Exp Region 7'!$G$72/'MMA Rev-Exp Region 7'!$G$9, 0)","v":{"v":0,"d":"$0.00"}},{"$f":"IFERROR('MMA Rev-Exp Region 7'!$H$72/'MMA Rev-Exp Region 7'!$H$9, 0)","v":{"v":0,"d":"$0.00"}},{"$f":"IFERROR('MMA Rev-Exp Region 7'!$I$72/'MMA Rev-Exp Region 7'!$I$9, 0)","v":{"v":0,"d":"$0.00"}},{"$f":"IFERROR('MMA Rev-Exp Region 7'!$J$72/'MMA Rev-Exp Region 7'!$J$9, 0)","v":{"v":0,"d":"$0.00"}},{"$f":"IFERROR('MMA Rev-Exp Region 7'!$K$72/'MMA Rev-Exp Region 7'!$K$9, 0)","v":{"v":0,"d":"$0.00"}},{"$f":"IFERROR('MMA Rev-Exp Region 7'!$L$72/'MMA Rev-Exp Region 7'!$L$9, 0)","v":{"v":0,"d":"$0.00"}},{"$f":"IFERROR('MMA Rev-Exp Region 7'!$M$72/'MMA Rev-Exp Region 7'!$M$9, 0)","v":{"v":0,"d":"$0.00"}},{"$f":"IFERROR('MMA Rev-Exp Region 7'!$N$72/'MMA Rev-Exp Region 7'!$N$9, 0)","v":{"v":0,"d":"$0.00"}}]
["MMA",null,null,2016,"2016-12-31","Q1","2017-03-31","Region 7","Operating Expense","Medical Benefits Expense","Expanded Benefits","10.2","Expanded benefits Subcapitation",{"$f":"IFERROR('MMA Rev-Exp Region 7'!$D$73/'MMA Rev-Exp Region 7'!$D$9, 0)","v":{"v":0,"d":"$0.00"}},{"$f":"IFERROR('MMA Rev-Exp Region 7'!$E$73/'MMA Rev-Exp Region 7'!$E$9, 0)","v":{"v":0,"d":"$0.00"}},{"$f":"IFERROR('MMA Rev-Exp Region 7'!$F$73/'MMA Rev-Exp Region 7'!$F$9, 0)","v":{"v":0,"d":"$0.00"}},{"$f":"IFERROR('MMA Rev-Exp Region 7'!$G$73/'MMA Rev-Exp Region 7'!$G$9, 0)","v":{"v":0,"d":"$0.00"}},{"$f":"IFERROR('MMA Rev-Exp Region 7'!$H$73/'MMA Rev-Exp Region 7'!$H$9, 0)","v":{"v":0,"d":"$0.00"}},{"$f":"IFERROR('MMA Rev-Exp Region 7'!$I$73/'MMA Rev-Exp Region 7'!$I$9, 0)","v":{"v":0,"d":"$0.00"}},{"$f":"IFERROR('MMA Rev-Exp Region 7'!$J$73/'MMA Rev-Exp Region 7'!$J$9, 0)","v":{"v":0,"d":"$0.00"}},{"$f":"IFERROR('MMA Rev-Exp Region 7'!$K$73/'MMA Rev-Exp Region 7'!$K$9, 0)","v":{"v":0,"d":"$0.00"}},{"$f":"IFERROR('MMA Rev-Exp Region 7'!$L$73/'MMA Rev-Exp Region 7'!$L$9, 0)","v":{"v":0,"d":"$0.00"}},{"$f":"IFERROR('MMA Rev-Exp Region 7'!$M$73/'MMA Rev-Exp Region 7'!$M$9, 0)","v":{"v":0,"d":"$0.00"}},{"$f":"IFERROR('MMA Rev-Exp Region 7'!$N$73/'MMA Rev-Exp Region 7'!$N$9, 0)","v":{"v":0,"d":"$0.00"}}]
["MMA",null,null,2016,"2016-12-31","Q1","2017-03-31","Region 7","Operating Expense","Medical Benefits Expense","Expanded Benefits","10.3","Ending IBNP for Expanded Benefits",{"$f":"IFERROR('MMA Rev-Exp Region 7'!$D$74/'MMA Rev-Exp Region 7'!$D$9, 0)","v":{"v":0,"d":"$0.00"}},{"$f":"IFERROR('MMA Rev-Exp Region 7'!$E$74/'MMA Rev-Exp Region 7'!$E$9, 0)","v":{"v":0,"d":"$0.00"}},{"$f":"IFERROR('MMA Rev-Exp Region 7'!$F$74/'MMA Rev-Exp Region 7'!$F$9, 0)","v":{"v":0,"d":"$0.00"}},{"$f":"IFERROR('MMA Rev-Exp Region 7'!$G$74/'MMA Rev-Exp Region 7'!$G$9, 0)","v":{"v":0,"d":"$0.00"}},{"$f":"IFERROR('MMA Rev-Exp Region 7'!$H$74/'MMA Rev-Exp Region 7'!$H$9, 0)","v":{"v":0,"d":"$0.00"}},{"$f":"IFERROR('MMA Rev-Exp Region 7'!$I$74/'MMA Rev-Exp Region 7'!$I$9, 0)","v":{"v":0,"d":"$0.00"}},{"$f":"IFERROR('MMA Rev-Exp Region 7'!$J$74/'MMA Rev-Exp Region 7'!$J$9, 0)","v":{"v":0,"d":"$0.00"}},{"$f":"IFERROR('MMA Rev-Exp Region 7'!$K$74/'MMA Rev-Exp Region 7'!$K$9, 0)","v":{"v":0,"d":"$0.00"}},{"$f":"IFERROR('MMA Rev-Exp Region 7'!$L$74/'MMA Rev-Exp Region 7'!$L$9, 0)","v":{"v":0,"d":"$0.00"}},{"$f":"IFERROR('MMA Rev-Exp Region 7'!$M$74/'MMA Rev-Exp Region 7'!$M$9, 0)","v":{"v":0,"d":"$0.00"}},{"$f":"IFERROR('MMA Rev-Exp Region 7'!$N$74/'MMA Rev-Exp Region 7'!$N$9, 0)","v":{"v":0,"d":"$0.00"}}]
["MMA",null,null,2016,"2016-12-31","Q1","2017-03-31","Region 7","Operating Expense","Medical Benefits Expense","Expanded Benefits","10.4","Expanded Benefits Settlements",{"$f":"IFERROR('MMA Rev-Exp Region 7'!$D$75/'MMA Rev-Exp Region 7'!$D$9, 0)","v":{"v":0,"d":"$0.00"}},{"$f":"IFERROR('MMA Rev-Exp Region 7'!$E$75/'MMA Rev-Exp Region 7'!$E$9, 0)","v":{"v":0,"d":"$0.00"}},{"$f":"IFERROR('MMA Rev-Exp Region 7'!$F$75/'MMA Rev-Exp Region 7'!$F$9, 0)","v":{"v":0,"d":"$0.00"}},{"$f":"IFERROR('MMA Rev-Exp Region 7'!$G$75/'MMA Rev-Exp Region 7'!$G$9, 0)","v":{"v":0,"d":"$0.00"}},{"$f":"IFERROR('MMA Rev-Exp Region 7'!$H$75/'MMA Rev-Exp Region 7'!$H$9, 0)","v":{"v":0,"d":"$0.00"}},{"$f":"IFERROR('MMA Rev-Exp Region 7'!$I$75/'MMA Rev-Exp Region 7'!$I$9, 0)","v":{"v":0,"d":"$0.00"}},{"$f":"IFERROR('MMA Rev-Exp Region 7'!$J$75/'MMA Rev-Exp Region 7'!$J$9, 0)","v":{"v":0,"d":"$0.00"}},{"$f":"IFERROR('MMA Rev-Exp Region 7'!$K$75/'MMA Rev-Exp Region 7'!$K$9, 0)","v":{"v":0,"d":"$0.00"}},{"$f":"IFERROR('MMA Rev-Exp Region 7'!$L$75/'MMA Rev-Exp Region 7'!$L$9, 0)","v":{"v":0,"d":"$0.00"}},{"$f":"IFERROR('MMA Rev-Exp Region 7'!$M$75/'MMA Rev-Exp Region 7'!$M$9, 0)","v":{"v":0,"d":"$0.00"}},{"$f":"IFERROR('MMA Rev-Exp Region 7'!$N$75/'MMA Rev-Exp Region 7'!$N$9, 0)","v":{"v":0,"d":"$0.00"}}]
["MMA",null,null,2016,"2016-12-31","Q1","2017-03-31","Region 7","Operating Expense","Medical Benefits Expense","Other Medical","11.5","TPL & Fraud/Abuse Recoveries",{"$f":"IFERROR('MMA Rev-Exp Region 7'!$D$81/'MMA Rev-Exp Region 7'!$D$9, 0)","v":{"v":0,"d":"$0.00"}},{"$f":"IFERROR('MMA Rev-Exp Region 7'!$E$81/'MMA Rev-Exp Region 7'!$E$9, 0)","v":{"v":0,"d":"$0.00"}},{"$f":"IFERROR('MMA Rev-Exp Region 7'!$F$81/'MMA Rev-Exp Region 7'!$F$9, 0)","v":{"v":0,"d":"$0.00"}},{"$f":"IFERROR('MMA Rev-Exp Region 7'!$G$81/'MMA Rev-Exp Region 7'!$G$9, 0)","v":{"v":0,"d":"$0.00"}},{"$f":"IFERROR('MMA Rev-Exp Region 7'!$H$81/'MMA Rev-Exp Region 7'!$H$9, 0)","v":{"v":0,"d":"$0.00"}},{"$f":"IFERROR('MMA Rev-Exp Region 7'!$I$81/'MMA Rev-Exp Region 7'!$I$9, 0)","v":{"v":0,"d":"$0.00"}},{"$f":"IFERROR('MMA Rev-Exp Region 7'!$J$81/'MMA Rev-Exp Region 7'!$J$9, 0)","v":{"v":0,"d":"$0.00"}},{"$f":"IFERROR('MMA Rev-Exp Region 7'!$K$81/'MMA Rev-Exp Region 7'!$K$9, 0)","v":{"v":0,"d":"$0.00"}},{"$f":"IFERROR('MMA Rev-Exp Region 7'!$L$81/'MMA Rev-Exp Region 7'!$L$9, 0)","v":{"v":0,"d":"$0.00"}},{"$f":"IFERROR('MMA Rev-Exp Region 7'!$M$81/'MMA Rev-Exp Region 7'!$M$9, 0)","v":{"v":0,"d":"$0.00"}},{"$f":"IFERROR('MMA Rev-Exp Region 7'!$N$81/'MMA Rev-Exp Region 7'!$N$9, 0)","v":{"v":0,"d":"$0.00"}}]
["MMA",null,null,2016,"2016-12-31","Q1","2017-03-31","Region 7","Operating Expense","Medical Benefits Expense","Other Medical","11.6.1","Premium Deficiency Reserve",{"$f":"IFERROR('MMA Rev-Exp Region 7'!$D$82/'MMA Rev-Exp Region 7'!$D$9, 0)","v":{"v":0,"d":"$0.00"}},{"$f":"IFERROR('MMA Rev-Exp Region 7'!$E$82/'MMA Rev-Exp Region 7'!$E$9, 0)","v":{"v":0,"d":"$0.00"}},{"$f":"IFERROR('MMA Rev-Exp Region 7'!$F$82/'MMA Rev-Exp Region 7'!$F$9, 0)","v":{"v":0,"d":"$0.00"}},{"$f":"IFERROR('MMA Rev-Exp Region 7'!$G$82/'MMA Rev-Exp Region 7'!$G$9, 0)","v":{"v":0,"d":"$0.00"}},{"$f":"IFERROR('MMA Rev-Exp Region 7'!$H$82/'MMA Rev-Exp Region 7'!$H$9, 0)","v":{"v":0,"d":"$0.00"}},{"$f":"IFERROR('MMA Rev-Exp Region 7'!$I$82/'MMA Rev-Exp Region 7'!$I$9, 0)","v":{"v":0,"d":"$0.00"}},{"$f":"IFERROR('MMA Rev-Exp Region 7'!$J$82/'MMA Rev-Exp Region 7'!$J$9, 0)","v":{"v":0,"d":"$0.00"}},{"$f":"IFERROR('MMA Rev-Exp Region 7'!$K$82/'MMA Rev-Exp Region 7'!$K$9, 0)","v":{"v":0,"d":"$0.00"}},{"$f":"IFERROR('MMA Rev-Exp Region 7'!$L$82/'MMA Rev-Exp Region 7'!$L$9, 0)","v":{"v":0,"d":"$0.00"}},{"$f":"IFERROR('MMA Rev-Exp Region 7'!$M$82/'MMA Rev-Exp Region 7'!$M$9, 0)","v":{"v":0,"d":"$0.00"}},{"$f":"IFERROR('MMA Rev-Exp Region 7'!$N$82/'MMA Rev-Exp Region 7'!$N$9, 0)","v":{"v":0,"d":"$0.00"}}]
["MMA",null,null,2016,"2016-12-31","Q1","2017-03-31","Region 7","Operating Expense","Medical Benefits Expense","Other Medical","11.8","Reinsurance Premiums",{"$f":"IFERROR('MMA Rev-Exp Region 7'!$D$84/'MMA Rev-Exp Region 7'!$D$9, 0)","v":{"v":0,"d":"$0.00"}},{"$f":"IFERROR('MMA Rev-Exp Region 7'!$E$84/'MMA Rev-Exp Region 7'!$E$9, 0)","v":{"v":0,"d":"$0.00"}},{"$f":"IFERROR('MMA Rev-Exp Region 7'!$F$84/'MMA Rev-Exp Region 7'!$F$9, 0)","v":{"v":0,"d":"$0.00"}},{"$f":"IFERROR('MMA Rev-Exp Region 7'!$G$84/'MMA Rev-Exp Region 7'!$G$9, 0)","v":{"v":0,"d":"$0.00"}},{"$f":"IFERROR('MMA Rev-Exp Region 7'!$H$84/'MMA Rev-Exp Region 7'!$H$9, 0)","v":{"v":0,"d":"$0.00"}},{"$f":"IFERROR('MMA Rev-Exp Region 7'!$I$84/'MMA Rev-Exp Region 7'!$I$9, 0)","v":{"v":0,"d":"$0.00"}},{"$f":"IFERROR('MMA Rev-Exp Region 7'!$J$84/'MMA Rev-Exp Region 7'!$J$9, 0)","v":{"v":0,"d":"$0.00"}},{"$f":"IFERROR('MMA Rev-Exp Region 7'!$K$84/'MMA Rev-Exp Region 7'!$K$9, 0)","v":{"v":0,"d":"$0.00"}},{"$f":"IFERROR('MMA Rev-Exp Region 7'!$L$84/'MMA Rev-Exp Region 7'!$L$9, 0)","v":{"v":0,"d":"$0.00"}},{"$f":"IFERROR('MMA Rev-Exp Region 7'!$M$84/'MMA Rev-Exp Region 7'!$M$9, 0)","v":{"v":0,"d":"$0.00"}},{"$f":"IFERROR('MMA Rev-Exp Region 7'!$N$84/'MMA Rev-Exp Region 7'!$N$9, 0)","v":{"v":0,"d":"$0.00"}}]
["MMA",null,null,2016,"2016-12-31","Q1","2017-03-31","Region 7","Operating Expense","Medical Benefits Expense","Other Medical","11.9","Reinsurance Recoveries",{"$f":"IFERROR('MMA Rev-Exp Region 7'!$D$85/'MMA Rev-Exp Region 7'!$D$9, 0)","v":{"v":0,"d":"$0.00"}},{"$f":"IFERROR('MMA Rev-Exp Region 7'!$E$85/'MMA Rev-Exp Region 7'!$E$9, 0)","v":{"v":0,"d":"$0.00"}},{"$f":"IFERROR('MMA Rev-Exp Region 7'!$F$85/'MMA Rev-Exp Region 7'!$F$9, 0)","v":{"v":0,"d":"$0.00"}},{"$f":"IFERROR('MMA Rev-Exp Region 7'!$G$85/'MMA Rev-Exp Region 7'!$G$9, 0)","v":{"v":0,"d":"$0.00"}},{"$f":"IFERROR('MMA Rev-Exp Region 7'!$H$85/'MMA Rev-Exp Region 7'!$H$9, 0)","v":{"v":0,"d":"$0.00"}},{"$f":"IFERROR('MMA Rev-Exp Region 7'!$I$85/'MMA Rev-Exp Region 7'!$I$9, 0)","v":{"v":0,"d":"$0.00"}},{"$f":"IFERROR('MMA Rev-Exp Region 7'!$J$85/'MMA Rev-Exp Region 7'!$J$9, 0)","v":{"v":0,"d":"$0.00"}},{"$f":"IFERROR('MMA Rev-Exp Region 7'!$K$85/'MMA Rev-Exp Region 7'!$K$9, 0)","v":{"v":0,"d":"$0.00"}},{"$f":"IFERROR('MMA Rev-Exp Region 7'!$L$85/'MMA Rev-Exp Region 7'!$L$9, 0)","v":{"v":0,"d":"$0.00"}},{"$f":"IFERROR('MMA Rev-Exp Region 7'!$M$85/'MMA Rev-Exp Region 7'!$M$9, 0)","v":{"v":0,"d":"$0.00"}},{"$f":"IFERROR('MMA Rev-Exp Region 7'!$N$85/'MMA Rev-Exp Region 7'!$N$9, 0)","v":{"v":0,"d":"$0.00"}}]
["MMA",null,null,2016,"2016-12-31","Q1","2017-03-31","Region 7","Operating Expense","Administrative Expense","Administrative","12.1","Salaries & Benefits",{"$f":"IFERROR('MMA Rev-Exp Region 7'!$D$90/'MMA Rev-Exp Region 7'!$D$9, 0)","v":{"v":0,"d":"$0.00"}},{"$f":"IFERROR('MMA Rev-Exp Region 7'!$E$90/'MMA Rev-Exp Region 7'!$D$9, 0)","v":{"v":0,"d":"$0.00"}},{"$f":"IFERROR('MMA Rev-Exp Region 7'!$F$90/'MMA Rev-Exp Region 7'!$D$9, 0)","v":{"v":0,"d":"$0.00"}},{"$f":"IFERROR('MMA Rev-Exp Region 7'!$G$90/'MMA Rev-Exp Region 7'!$G$9, 0)","v":{"v":0,"d":"$0.00"}},{"$f":"IFERROR('MMA Rev-Exp Region 7'!$H$90/'MMA Rev-Exp Region 7'!$H$9, 0)","v":{"v":0,"d":"$0.00"}},{"$f":"IFERROR('MMA Rev-Exp Region 7'!$I$90/'MMA Rev-Exp Region 7'!$I$9, 0)","v":{"v":0,"d":"$0.00"}},{"$f":"IFERROR('MMA Rev-Exp Region 7'!$J$90/'MMA Rev-Exp Region 7'!$J$9, 0)","v":{"v":0,"d":"$0.00"}},{"$f":"IFERROR('MMA Rev-Exp Region 7'!$K$90/'MMA Rev-Exp Region 7'!$K$9, 0)","v":{"v":0,"d":"$0.00"}},{"$f":"IFERROR('MMA Rev-Exp Region 7'!$L$90/'MMA Rev-Exp Region 7'!$L$9, 0)","v":{"v":0,"d":"$0.00"}},{"$f":"IFERROR('MMA Rev-Exp Region 7'!$M$90/'MMA Rev-Exp Region 7'!$M$9, 0)","v":{"v":0,"d":"$0.00"}},{"$f":"IFERROR('MMA Rev-Exp Region 7'!$N$90/'MMA Rev-Exp Region 7'!$N$9, 0)","v":{"v":0,"d":"$0.00"}}]
["MMA",null,null,2016,"2016-12-31","Q1","2017-03-31","Region 7","Operating Expense","Administrative Expense","Administrative","12.2","Administrative Services",{"$f":"IFERROR('MMA Rev-Exp Region 7'!$D$91/'MMA Rev-Exp Region 7'!$D$9, 0)","v":{"v":0,"d":"$0.00"}},{"$f":"IFERROR('MMA Rev-Exp Region 7'!$E$91/'MMA Rev-Exp Region 7'!$D$9, 0)","v":{"v":0,"d":"$0.00"}},{"$f":"IFERROR('MMA Rev-Exp Region 7'!$F$91/'MMA Rev-Exp Region 7'!$D$9, 0)","v":{"v":0,"d":"$0.00"}},{"$f":"IFERROR('MMA Rev-Exp Region 7'!$G$91/'MMA Rev-Exp Region 7'!$G$9, 0)","v":{"v":0,"d":"$0.00"}},{"$f":"IFERROR('MMA Rev-Exp Region 7'!$H$91/'MMA Rev-Exp Region 7'!$H$9, 0)","v":{"v":0,"d":"$0.00"}},{"$f":"IFERROR('MMA Rev-Exp Region 7'!$I$91/'MMA Rev-Exp Region 7'!$I$9, 0)","v":{"v":0,"d":"$0.00"}},{"$f":"IFERROR('MMA Rev-Exp Region 7'!$J$91/'MMA Rev-Exp Region 7'!$J$9, 0)","v":{"v":0,"d":"$0.00"}},{"$f":"IFERROR('MMA Rev-Exp Region 7'!$K$91/'MMA Rev-Exp Region 7'!$K$9, 0)","v":{"v":0,"d":"$0.00"}},{"$f":"IFERROR('MMA Rev-Exp Region 7'!$L$91/'MMA Rev-Exp Region 7'!$L$9, 0)","v":{"v":0,"d":"$0.00"}},{"$f":"IFERROR('MMA Rev-Exp Region 7'!$M$91/'MMA Rev-Exp Region 7'!$M$9, 0)","v":{"v":0,"d":"$0.00"}},{"$f":"IFERROR('MMA Rev-Exp Region 7'!$N$91/'MMA Rev-Exp Region 7'!$N$9, 0)","v":{"v":0,"d":"$0.00"}}]
["MMA",null,null,2016,"2016-12-31","Q1","2017-03-31","Region 7","Operating Expense","Administrative Expense","Administrative","12.3","Information Systems",{"$f":"IFERROR('MMA Rev-Exp Region 7'!$D$92/'MMA Rev-Exp Region 7'!$D$9, 0)","v":{"v":0,"d":"$0.00"}},{"$f":"IFERROR('MMA Rev-Exp Region 7'!$E$92/'MMA Rev-Exp Region 7'!$D$9, 0)","v":{"v":0,"d":"$0.00"}},{"$f":"IFERROR('MMA Rev-Exp Region 7'!$F$92/'MMA Rev-Exp Region 7'!$D$9, 0)","v":{"v":0,"d":"$0.00"}},{"$f":"IFERROR('MMA Rev-Exp Region 7'!$G$92/'MMA Rev-Exp Region 7'!$G$9, 0)","v":{"v":0,"d":"$0.00"}},{"$f":"IFERROR('MMA Rev-Exp Region 7'!$H$92/'MMA Rev-Exp Region 7'!$H$9, 0)","v":{"v":0,"d":"$0.00"}},{"$f":"IFERROR('MMA Rev-Exp Region 7'!$I$92/'MMA Rev-Exp Region 7'!$I$9, 0)","v":{"v":0,"d":"$0.00"}},{"$f":"IFERROR('MMA Rev-Exp Region 7'!$J$92/'MMA Rev-Exp Region 7'!$J$9, 0)","v":{"v":0,"d":"$0.00"}},{"$f":"IFERROR('MMA Rev-Exp Region 7'!$K$92/'MMA Rev-Exp Region 7'!$K$9, 0)","v":{"v":0,"d":"$0.00"}},{"$f":"IFERROR('MMA Rev-Exp Region 7'!$L$92/'MMA Rev-Exp Region 7'!$L$9, 0)","v":{"v":0,"d":"$0.00"}},{"$f":"IFERROR('MMA Rev-Exp Region 7'!$M$92/'MMA Rev-Exp Region 7'!$M$9, 0)","v":{"v":0,"d":"$0.00"}},{"$f":"IFERROR('MMA Rev-Exp Region 7'!$N$92/'MMA Rev-Exp Region 7'!$N$9, 0)","v":{"v":0,"d":"$0.00"}}]
["MMA",null,null,2016,"2016-12-31","Q1","2017-03-31","Region 7","Operating Expense","Administrative Expense","Administrative","12.4","Marketing Expenses",{"$f":"IFERROR('MMA Rev-Exp Region 7'!$D$93/'MMA Rev-Exp Region 7'!$D$9, 0)","v":{"v":0,"d":"$0.00"}},{"$f":"IFERROR('MMA Rev-Exp Region 7'!$E$93/'MMA Rev-Exp Region 7'!$D$9, 0)","v":{"v":0,"d":"$0.00"}},{"$f":"IFERROR('MMA Rev-Exp Region 7'!$F$93/'MMA Rev-Exp Region 7'!$D$9, 0)","v":{"v":0,"d":"$0.00"}},{"$f":"IFERROR('MMA Rev-Exp Region 7'!$G$93/'MMA Rev-Exp Region 7'!$G$9, 0)","v":{"v":0,"d":"$0.00"}},{"$f":"IFERROR('MMA Rev-Exp Region 7'!$H$93/'MMA Rev-Exp Region 7'!$H$9, 0)","v":{"v":0,"d":"$0.00"}},{"$f":"IFERROR('MMA Rev-Exp Region 7'!$I$93/'MMA Rev-Exp Region 7'!$I$9, 0)","v":{"v":0,"d":"$0.00"}},{"$f":"IFERROR('MMA Rev-Exp Region 7'!$J$93/'MMA Rev-Exp Region 7'!$J$9, 0)","v":{"v":0,"d":"$0.00"}},{"$f":"IFERROR('MMA Rev-Exp Region 7'!$K$93/'MMA Rev-Exp Region 7'!$K$9, 0)","v":{"v":0,"d":"$0.00"}},{"$f":"IFERROR('MMA Rev-Exp Region 7'!$L$93/'MMA Rev-Exp Region 7'!$L$9, 0)","v":{"v":0,"d":"$0.00"}},{"$f":"IFERROR('MMA Rev-Exp Region 7'!$M$93/'MMA Rev-Exp Region 7'!$M$9, 0)","v":{"v":0,"d":"$0.00"}},{"$f":"IFERROR('MMA Rev-Exp Region 7'!$N$93/'MMA Rev-Exp Region 7'!$N$9, 0)","v":{"v":0,"d":"$0.00"}}]
["MMA",null,null,2016,"2016-12-31","Q1","2017-03-31","Region 7","Operating Expense","Administrative Expense","Administrative","12.5","General  Administration",{"$f":"IFERROR('MMA Rev-Exp Region 7'!$D$94/'MMA Rev-Exp Region 7'!$D$9, 0)","v":{"v":0,"d":"$0.00"}},{"$f":"IFERROR('MMA Rev-Exp Region 7'!$E$94/'MMA Rev-Exp Region 7'!$D$9, 0)","v":{"v":0,"d":"$0.00"}},{"$f":"IFERROR('MMA Rev-Exp Region 7'!$F$94/'MMA Rev-Exp Region 7'!$D$9, 0)","v":{"v":0,"d":"$0.00"}},{"$f":"IFERROR('MMA Rev-Exp Region 7'!$G$94/'MMA Rev-Exp Region 7'!$G$9, 0)","v":{"v":0,"d":"$0.00"}},{"$f":"IFERROR('MMA Rev-Exp Region 7'!$H$94/'MMA Rev-Exp Region 7'!$H$9, 0)","v":{"v":0,"d":"$0.00"}},{"$f":"IFERROR('MMA Rev-Exp Region 7'!$I$94/'MMA Rev-Exp Region 7'!$I$9, 0)","v":{"v":0,"d":"$0.00"}},{"$f":"IFERROR('MMA Rev-Exp Region 7'!$J$94/'MMA Rev-Exp Region 7'!$J$9, 0)","v":{"v":0,"d":"$0.00"}},{"$f":"IFERROR('MMA Rev-Exp Region 7'!$K$94/'MMA Rev-Exp Region 7'!$K$9, 0)","v":{"v":0,"d":"$0.00"}},{"$f":"IFERROR('MMA Rev-Exp Region 7'!$L$94/'MMA Rev-Exp Region 7'!$L$9, 0)","v":{"v":0,"d":"$0.00"}},{"$f":"IFERROR('MMA Rev-Exp Region 7'!$M$94/'MMA Rev-Exp Region 7'!$M$9, 0)","v":{"v":0,"d":"$0.00"}},{"$f":"IFERROR('MMA Rev-Exp Region 7'!$N$94/'MMA Rev-Exp Region 7'!$N$9, 0)","v":{"v":0,"d":"$0.00"}}]
["MMA",null,null,2016,"2016-12-31","Q1","2017-03-31","Region 7","Operating Expense","Administrative Expense","Administrative","12.6","Compliance/Regulatory",{"$f":"IFERROR('MMA Rev-Exp Region 7'!$D$95/'MMA Rev-Exp Region 7'!$D$9, 0)","v":{"v":0,"d":"$0.00"}},{"$f":"IFERROR('MMA Rev-Exp Region 7'!$E$95/'MMA Rev-Exp Region 7'!$D$9, 0)","v":{"v":0,"d":"$0.00"}},{"$f":"IFERROR('MMA Rev-Exp Region 7'!$F$95/'MMA Rev-Exp Region 7'!$D$9, 0)","v":{"v":0,"d":"$0.00"}},{"$f":"IFERROR('MMA Rev-Exp Region 7'!$G$95/'MMA Rev-Exp Region 7'!$G$9, 0)","v":{"v":0,"d":"$0.00"}},{"$f":"IFERROR('MMA Rev-Exp Region 7'!$H$95/'MMA Rev-Exp Region 7'!$H$9, 0)","v":{"v":0,"d":"$0.00"}},{"$f":"IFERROR('MMA Rev-Exp Region 7'!$I$95/'MMA Rev-Exp Region 7'!$I$9, 0)","v":{"v":0,"d":"$0.00"}},{"$f":"IFERROR('MMA Rev-Exp Region 7'!$J$95/'MMA Rev-Exp Region 7'!$J$9, 0)","v":{"v":0,"d":"$0.00"}},{"$f":"IFERROR('MMA Rev-Exp Region 7'!$K$95/'MMA Rev-Exp Region 7'!$K$9, 0)","v":{"v":0,"d":"$0.00"}},{"$f":"IFERROR('MMA Rev-Exp Region 7'!$L$95/'MMA Rev-Exp Region 7'!$L$9, 0)","v":{"v":0,"d":"$0.00"}},{"$f":"IFERROR('MMA Rev-Exp Region 7'!$M$95/'MMA Rev-Exp Region 7'!$M$9, 0)","v":{"v":0,"d":"$0.00"}},{"$f":"IFERROR('MMA Rev-Exp Region 7'!$N$95/'MMA Rev-Exp Region 7'!$N$9, 0)","v":{"v":0,"d":"$0.00"}}]
["MMA",null,null,2016,"2016-12-31","Q1","2017-03-31","Region 7","Operating Expense","Taxes & Fees","Taxes & Fees","13.1","State Premium tax",{"$f":"IFERROR('MMA Rev-Exp Region 7'!$D$97/'MMA Rev-Exp Region 7'!$D$9, 0)","v":{"v":0,"d":"$0.00"}}]
["MMA",null,null,2016,"2016-12-31","Q1","2017-03-31","Region 7","Operating Expense","Taxes & Fees","Taxes & Fees","13.2","Department of Insurance Assessments",{"$f":"IFERROR('MMA Rev-Exp Region 7'!$D$98/'MMA Rev-Exp Region 7'!$D$9, 0)","v":{"v":0,"d":"$0.00"}}]
["MMA",null,null,2016,"2016-12-31","Q1","2017-03-31","Region 7","Operating Expense","Taxes & Fees","Taxes & Fees","13.3","Section 9010 Health Insurance Providers Fee",{"$f":"IFERROR('MMA Rev-Exp Region 7'!$D$99/'MMA Rev-Exp Region 7'!$D$9, 0)","v":{"v":0,"d":"$0.00"}}]
["MMA",null,null,2016,"2016-12-31","Q1","2017-03-31","Region 7","Non-Operating Expense","Income Tax Expense","Income Tax Expense","16.0","Income Tax Expense",{"$f":"IFERROR('MMA Rev-Exp Region 7'!$D$106/'MMA Rev-Exp Region 7'!$D$9, 0)","v":{"v":0,"d":"$0.00"}}]
["MMA",null,null,2016,"2016-12-31","Q2","2017-06-30","Region 7","Operating Revenue","Capitation","Capitation",1.1,"Capitation",{"$f":"IFERROR('MMA Rev-Exp Region 7'!$O$11/'MMA Rev-Exp Region 7'!$O$9, 0)","v":{"v":0,"d":"$0.00"}},{"$f":"IFERROR('MMA Rev-Exp Region 7'!$P$11/'MMA Rev-Exp Region 7'!$P$9, 0)","v":{"v":0,"d":"$0.00"}},{"$f":"IFERROR('MMA Rev-Exp Region 7'!$Q$11/'MMA Rev-Exp Region 7'!$Q$9, 0)","v":{"v":0,"d":"$0.00"}},{"$f":"IFERROR('MMA Rev-Exp Region 7'!$R$11/'MMA Rev-Exp Region 7'!$R$9, 0)","v":{"v":0,"d":"$0.00"}},{"$f":"IFERROR('MMA Rev-Exp Region 7'!$S$11/'MMA Rev-Exp Region 7'!$S$9, 0)","v":{"v":0,"d":"$0.00"}},{"$f":"IFERROR('MMA Rev-Exp Region 7'!$T$11/'MMA Rev-Exp Region 7'!$T$9, 0)","v":{"v":0,"d":"$0.00"}},{"$f":"IFERROR('MMA Rev-Exp Region 7'!$U$11/'MMA Rev-Exp Region 7'!$U$9, 0)","v":{"v":0,"d":"$0.00"}},{"$f":"IFERROR('MMA Rev-Exp Region 7'!$V$11/'MMA Rev-Exp Region 7'!$V$9, 0)","v":{"v":0,"d":"$0.00"}},{"$f":"IFERROR('MMA Rev-Exp Region 7'!$W$11/'MMA Rev-Exp Region 7'!$W$9, 0)","v":{"v":0,"d":"$0.00"}},{"$f":"IFERROR('MMA Rev-Exp Region 7'!$X$11/'MMA Rev-Exp Region 7'!$X$9, 0)","v":{"v":0,"d":"$0.00"}},{"$f":"IFERROR('MMA Rev-Exp Region 7'!$Y$11/'MMA Rev-Exp Region 7'!$Y$9, 0)","v":{"v":0,"d":"$0.00"}}]
["MMA",null,null,2016,"2016-12-31","Q2","2017-06-30","Region 7","Operating Revenue","Kick Payments","Kick Payments - Transplant",1.2,"Transplant Kick Payments",{"$f":"IFERROR('MMA Rev-Exp Region 7'!$O$12/'MMA Rev-Exp Region 7'!$O$9, 0)","v":{"v":0,"d":"$0.00"}},{"$f":"IFERROR('MMA Rev-Exp Region 7'!$P$12/'MMA Rev-Exp Region 7'!$P$9, 0)","v":{"v":0,"d":"$0.00"}},{"$f":"IFERROR('MMA Rev-Exp Region 7'!$Q$12/'MMA Rev-Exp Region 7'!$Q$9, 0)","v":{"v":0,"d":"$0.00"}},{"$f":"IFERROR('MMA Rev-Exp Region 7'!$R$12/'MMA Rev-Exp Region 7'!$R$9, 0)","v":{"v":0,"d":"$0.00"}},{"$f":"IFERROR('MMA Rev-Exp Region 7'!$S$12/'MMA Rev-Exp Region 7'!$S$9, 0)","v":{"v":0,"d":"$0.00"}},{"$f":"IFERROR('MMA Rev-Exp Region 7'!$T$12/'MMA Rev-Exp Region 7'!$T$9, 0)","v":{"v":0,"d":"$0.00"}},{"$f":"IFERROR('MMA Rev-Exp Region 7'!$U$12/'MMA Rev-Exp Region 7'!$U$9, 0)","v":{"v":0,"d":"$0.00"}},{"$f":"IFERROR('MMA Rev-Exp Region 7'!$V$12/'MMA Rev-Exp Region 7'!$V$9, 0)","v":{"v":0,"d":"$0.00"}},{"$f":"IFERROR('MMA Rev-Exp Region 7'!$W$12/'MMA Rev-Exp Region 7'!$W$9, 0)","v":{"v":0,"d":"$0.00"}},{"$f":"IFERROR('MMA Rev-Exp Region 7'!$X$12/'MMA Rev-Exp Region 7'!$X$9, 0)","v":{"v":0,"d":"$0.00"}},{"$f":"IFERROR('MMA Rev-Exp Region 7'!$Y$12/'MMA Rev-Exp Region 7'!$Y$9, 0)","v":{"v":0,"d":"$0.00"}}]
["MMA",null,null,2016,"2016-12-31","Q2","2017-06-30","Region 7","Operating Revenue","Kick Payments","Kick Payments - Hep C","1.3","Hepatitis C Kick Payments",{"$f":"IFERROR('MMA Rev-Exp Region 7'!$O$13/'MMA Rev-Exp Region 7'!$O$9, 0)","v":{"v":0,"d":"$0.00"}},{"$f":"IFERROR('MMA Rev-Exp Region 7'!$P$13/'MMA Rev-Exp Region 7'!$P$9, 0)","v":{"v":0,"d":"$0.00"}},{"$f":"IFERROR('MMA Rev-Exp Region 7'!$Q$13/'MMA Rev-Exp Region 7'!$Q$9, 0)","v":{"v":0,"d":"$0.00"}},{"$f":"IFERROR('MMA Rev-Exp Region 7'!$R$13/'MMA Rev-Exp Region 7'!$R$9, 0)","v":{"v":0,"d":"$0.00"}},{"$f":"IFERROR('MMA Rev-Exp Region 7'!$S$13/'MMA Rev-Exp Region 7'!$S$9, 0)","v":{"v":0,"d":"$0.00"}},{"$f":"IFERROR('MMA Rev-Exp Region 7'!$T$13/'MMA Rev-Exp Region 7'!$T$9, 0)","v":{"v":0,"d":"$0.00"}},{"$f":"IFERROR('MMA Rev-Exp Region 7'!$U$13/'MMA Rev-Exp Region 7'!$U$9, 0)","v":{"v":0,"d":"$0.00"}},{"$f":"IFERROR('MMA Rev-Exp Region 7'!$V$13/'MMA Rev-Exp Region 7'!$V$9, 0)","v":{"v":0,"d":"$0.00"}},{"$f":"IFERROR('MMA Rev-Exp Region 7'!$W$13/'MMA Rev-Exp Region 7'!$W$9, 0)","v":{"v":0,"d":"$0.00"}},{"$f":"IFERROR('MMA Rev-Exp Region 7'!$X$13/'MMA Rev-Exp Region 7'!$X$9, 0)","v":{"v":0,"d":"$0.00"}},{"$f":"IFERROR('MMA Rev-Exp Region 7'!$Y$13/'MMA Rev-Exp Region 7'!$Y$9, 0)","v":{"v":0,"d":"$0.00"}}]
["MMA",null,null,2016,"2016-12-31","Q2","2017-06-30","Region 7","Operating Revenue","Kick Payments","Kick Payments - Maternity","1.4.1","Maternity Kick Payments",{"$f":"IFERROR('MMA Rev-Exp Region 7'!$O$14/'MMA Rev-Exp Region 7'!$O$9, 0)","v":{"v":0,"d":"$0.00"}},{"$f":"IFERROR('MMA Rev-Exp Region 7'!$P$14/'MMA Rev-Exp Region 7'!$P$9, 0)","v":{"v":0,"d":"$0.00"}},{"$f":"IFERROR('MMA Rev-Exp Region 7'!$Q$14/'MMA Rev-Exp Region 7'!$Q$9, 0)","v":{"v":0,"d":"$0.00"}},{"$f":"IFERROR('MMA Rev-Exp Region 7'!$R$14/'MMA Rev-Exp Region 7'!$R$9, 0)","v":{"v":0,"d":"$0.00"}},{"$f":"IFERROR('MMA Rev-Exp Region 7'!$S$14/'MMA Rev-Exp Region 7'!$S$9, 0)","v":{"v":0,"d":"$0.00"}},{"$f":"IFERROR('MMA Rev-Exp Region 7'!$T$14/'MMA Rev-Exp Region 7'!$T$9, 0)","v":{"v":0,"d":"$0.00"}},{"$f":"IFERROR('MMA Rev-Exp Region 7'!$U$14/'MMA Rev-Exp Region 7'!$U$9, 0)","v":{"v":0,"d":"$0.00"}},{"$f":"IFERROR('MMA Rev-Exp Region 7'!$V$14/'MMA Rev-Exp Region 7'!$V$9, 0)","v":{"v":0,"d":"$0.00"}},{"$f":"IFERROR('MMA Rev-Exp Region 7'!$W$14/'MMA Rev-Exp Region 7'!$W$9, 0)","v":{"v":0,"d":"$0.00"}},{"$f":"IFERROR('MMA Rev-Exp Region 7'!$X$14/'MMA Rev-Exp Region 7'!$X$9, 0)","v":{"v":0,"d":"$0.00"}},{"$f":"IFERROR('MMA Rev-Exp Region 7'!$Y$14/'MMA Rev-Exp Region 7'!$Y$9, 0)","v":{"v":0,"d":"$0.00"}}]
["MMA",null,null,2016,"2016-12-31","Q2","2017-06-30","Region 7","Operating Revenue","Other Revenue","Other Revenue - 9010","1.5","ACA § 9010 related payments",{"$f":"IFERROR('MMA Rev-Exp Region 7'!$O$15/'MMA Rev-Exp Region 7'!$O$9, 0)","v":{"v":0,"d":"$0.00"}},{"$f":"IFERROR('MMA Rev-Exp Region 7'!$P$15/'MMA Rev-Exp Region 7'!$P$9, 0)","v":{"v":0,"d":"$0.00"}},{"$f":"IFERROR('MMA Rev-Exp Region 7'!$Q$15/'MMA Rev-Exp Region 7'!$Q$9, 0)","v":{"v":0,"d":"$0.00"}},{"$f":"IFERROR('MMA Rev-Exp Region 7'!$R$15/'MMA Rev-Exp Region 7'!$R$9, 0)","v":{"v":0,"d":"$0.00"}},{"$f":"IFERROR('MMA Rev-Exp Region 7'!$S$15/'MMA Rev-Exp Region 7'!$S$9, 0)","v":{"v":0,"d":"$0.00"}},{"$f":"IFERROR('MMA Rev-Exp Region 7'!$T$15/'MMA Rev-Exp Region 7'!$T$9, 0)","v":{"v":0,"d":"$0.00"}},{"$f":"IFERROR('MMA Rev-Exp Region 7'!$U$15/'MMA Rev-Exp Region 7'!$U$9, 0)","v":{"v":0,"d":"$0.00"}},{"$f":"IFERROR('MMA Rev-Exp Region 7'!$V$15/'MMA Rev-Exp Region 7'!$V$9, 0)","v":{"v":0,"d":"$0.00"}},{"$f":"IFERROR('MMA Rev-Exp Region 7'!$W$15/'MMA Rev-Exp Region 7'!$W$9, 0)","v":{"v":0,"d":"$0.00"}},{"$f":"IFERROR('MMA Rev-Exp Region 7'!$X$15/'MMA Rev-Exp Region 7'!$X$9, 0)","v":{"v":0,"d":"$0.00"}},{"$f":"IFERROR('MMA Rev-Exp Region 7'!$Y$15/'MMA Rev-Exp Region 7'!$Y$9, 0)","v":{"v":0,"d":"$0.00"}}]
["MMA",null,null,2016,"2016-12-31","Q2","2017-06-30","Region 7","Operating Revenue","Other Revenue","Other Revenue","1.6","Other Revenue",{"$f":"IFERROR('MMA Rev-Exp Region 7'!$O$16/'MMA Rev-Exp Region 7'!$O$9, 0)","v":{"v":0,"d":"$0.00"}},{"$f":"IFERROR('MMA Rev-Exp Region 7'!$P$16/'MMA Rev-Exp Region 7'!$P$9, 0)","v":{"v":0,"d":"$0.00"}},{"$f":"IFERROR('MMA Rev-Exp Region 7'!$Q$16/'MMA Rev-Exp Region 7'!$Q$9, 0)","v":{"v":0,"d":"$0.00"}},{"$f":"IFERROR('MMA Rev-Exp Region 7'!$R$16/'MMA Rev-Exp Region 7'!$R$9, 0)","v":{"v":0,"d":"$0.00"}},{"$f":"IFERROR('MMA Rev-Exp Region 7'!$S$16/'MMA Rev-Exp Region 7'!$S$9, 0)","v":{"v":0,"d":"$0.00"}},{"$f":"IFERROR('MMA Rev-Exp Region 7'!$T$16/'MMA Rev-Exp Region 7'!$T$9, 0)","v":{"v":0,"d":"$0.00"}},{"$f":"IFERROR('MMA Rev-Exp Region 7'!$U$16/'MMA Rev-Exp Region 7'!$U$9, 0)","v":{"v":0,"d":"$0.00"}},{"$f":"IFERROR('MMA Rev-Exp Region 7'!$V$16/'MMA Rev-Exp Region 7'!$V$9, 0)","v":{"v":0,"d":"$0.00"}},{"$f":"IFERROR('MMA Rev-Exp Region 7'!$W$16/'MMA Rev-Exp Region 7'!$W$9, 0)","v":{"v":0,"d":"$0.00"}},{"$f":"IFERROR('MMA Rev-Exp Region 7'!$X$16/'MMA Rev-Exp Region 7'!$X$9, 0)","v":{"v":0,"d":"$0.00"}},{"$f":"IFERROR('MMA Rev-Exp Region 7'!$Y$16/'MMA Rev-Exp Region 7'!$Y$9, 0)","v":{"v":0,"d":"$0.00"}}]
["MMA",null,null,2016,"2016-12-31","Q2","2017-06-30","Region 7","Operating Expense","Medical Benefits Expense","Hospital Services",2.1,"Inpatient FFS",{"$f":"IFERROR('MMA Rev-Exp Region 7'!$O$20/'MMA Rev-Exp Region 7'!$O$9, 0)","v":{"v":0,"d":"$0.00"}},{"$f":"IFERROR('MMA Rev-Exp Region 7'!$P$20/'MMA Rev-Exp Region 7'!$P$9, 0)","v":{"v":0,"d":"$0.00"}},{"$f":"IFERROR('MMA Rev-Exp Region 7'!$Q$20/'MMA Rev-Exp Region 7'!$Q$9, 0)","v":{"v":0,"d":"$0.00"}},{"$f":"IFERROR('MMA Rev-Exp Region 7'!$R$20/'MMA Rev-Exp Region 7'!$R$9, 0)","v":{"v":0,"d":"$0.00"}},{"$f":"IFERROR('MMA Rev-Exp Region 7'!$S$20/'MMA Rev-Exp Region 7'!$S$9, 0)","v":{"v":0,"d":"$0.00"}},{"$f":"IFERROR('MMA Rev-Exp Region 7'!$T$20/'MMA Rev-Exp Region 7'!$T$9, 0)","v":{"v":0,"d":"$0.00"}},{"$f":"IFERROR('MMA Rev-Exp Region 7'!$U$20/'MMA Rev-Exp Region 7'!$U$9, 0)","v":{"v":0,"d":"$0.00"}},{"$f":"IFERROR('MMA Rev-Exp Region 7'!$V$20/'MMA Rev-Exp Region 7'!$V$9, 0)","v":{"v":0,"d":"$0.00"}},{"$f":"IFERROR('MMA Rev-Exp Region 7'!$W$20/'MMA Rev-Exp Region 7'!$W$9, 0)","v":{"v":0,"d":"$0.00"}},{"$f":"IFERROR('MMA Rev-Exp Region 7'!$X$20/'MMA Rev-Exp Region 7'!$X$9, 0)","v":{"v":0,"d":"$0.00"}},{"$f":"IFERROR('MMA Rev-Exp Region 7'!$Y$20/'MMA Rev-Exp Region 7'!$Y$9, 0)","v":{"v":0,"d":"$0.00"}}]
["MMA",null,null,2016,"2016-12-31","Q2","2017-06-30","Region 7","Operating Expense","Medical Benefits Expense","Hospital Services",2.2,"Ending IBNP for Inpatient Hospital Services",{"$f":"IFERROR('MMA Rev-Exp Region 7'!$O$21/'MMA Rev-Exp Region 7'!$O$9, 0)","v":{"v":0,"d":"$0.00"}},{"$f":"IFERROR('MMA Rev-Exp Region 7'!$P$21/'MMA Rev-Exp Region 7'!$P$9, 0)","v":{"v":0,"d":"$0.00"}},{"$f":"IFERROR('MMA Rev-Exp Region 7'!$Q$21/'MMA Rev-Exp Region 7'!$Q$9, 0)","v":{"v":0,"d":"$0.00"}},{"$f":"IFERROR('MMA Rev-Exp Region 7'!$R$21/'MMA Rev-Exp Region 7'!$R$9, 0)","v":{"v":0,"d":"$0.00"}},{"$f":"IFERROR('MMA Rev-Exp Region 7'!$S$21/'MMA Rev-Exp Region 7'!$S$9, 0)","v":{"v":0,"d":"$0.00"}},{"$f":"IFERROR('MMA Rev-Exp Region 7'!$T$21/'MMA Rev-Exp Region 7'!$T$9, 0)","v":{"v":0,"d":"$0.00"}},{"$f":"IFERROR('MMA Rev-Exp Region 7'!$U$21/'MMA Rev-Exp Region 7'!$U$9, 0)","v":{"v":0,"d":"$0.00"}},{"$f":"IFERROR('MMA Rev-Exp Region 7'!$V$21/'MMA Rev-Exp Region 7'!$V$9, 0)","v":{"v":0,"d":"$0.00"}},{"$f":"IFERROR('MMA Rev-Exp Region 7'!$W$21/'MMA Rev-Exp Region 7'!$W$9, 0)","v":{"v":0,"d":"$0.00"}},{"$f":"IFERROR('MMA Rev-Exp Region 7'!$X$21/'MMA Rev-Exp Region 7'!$X$9, 0)","v":{"v":0,"d":"$0.00"}},{"$f":"IFERROR('MMA Rev-Exp Region 7'!$Y$21/'MMA Rev-Exp Region 7'!$Y$9, 0)","v":{"v":0,"d":"$0.00"}}]
["MMA",null,null,2016,"2016-12-31","Q2","2017-06-30","Region 7","Operating Expense","Medical Benefits Expense","Hospital Services",2.3,"Outpatient FFS: ER",{"$f":"IFERROR('MMA Rev-Exp Region 7'!$O$22/'MMA Rev-Exp Region 7'!$O$9, 0)","v":{"v":0,"d":"$0.00"}},{"$f":"IFERROR('MMA Rev-Exp Region 7'!$P$22/'MMA Rev-Exp Region 7'!$P$9, 0)","v":{"v":0,"d":"$0.00"}},{"$f":"IFERROR('MMA Rev-Exp Region 7'!$Q$22/'MMA Rev-Exp Region 7'!$Q$9, 0)","v":{"v":0,"d":"$0.00"}},{"$f":"IFERROR('MMA Rev-Exp Region 7'!$R$22/'MMA Rev-Exp Region 7'!$R$9, 0)","v":{"v":0,"d":"$0.00"}},{"$f":"IFERROR('MMA Rev-Exp Region 7'!$S$22/'MMA Rev-Exp Region 7'!$S$9, 0)","v":{"v":0,"d":"$0.00"}},{"$f":"IFERROR('MMA Rev-Exp Region 7'!$T$22/'MMA Rev-Exp Region 7'!$T$9, 0)","v":{"v":0,"d":"$0.00"}},{"$f":"IFERROR('MMA Rev-Exp Region 7'!$U$22/'MMA Rev-Exp Region 7'!$U$9, 0)","v":{"v":0,"d":"$0.00"}},{"$f":"IFERROR('MMA Rev-Exp Region 7'!$V$22/'MMA Rev-Exp Region 7'!$V$9, 0)","v":{"v":0,"d":"$0.00"}},{"$f":"IFERROR('MMA Rev-Exp Region 7'!$W$22/'MMA Rev-Exp Region 7'!$W$9, 0)","v":{"v":0,"d":"$0.00"}},{"$f":"IFERROR('MMA Rev-Exp Region 7'!$X$22/'MMA Rev-Exp Region 7'!$X$9, 0)","v":{"v":0,"d":"$0.00"}},{"$f":"IFERROR('MMA Rev-Exp Region 7'!$Y$22/'MMA Rev-Exp Region 7'!$Y$9, 0)","v":{"v":0,"d":"$0.00"}}]
["MMA",null,null,2016,"2016-12-31","Q2","2017-06-30","Region 7","Operating Expense","Medical Benefits Expense","Hospital Services",2.4,"Outpatient FFS: Other than ER ",{"$f":"IFERROR('MMA Rev-Exp Region 7'!$O$23/'MMA Rev-Exp Region 7'!$O$9, 0)","v":{"v":0,"d":"$0.00"}},{"$f":"IFERROR('MMA Rev-Exp Region 7'!$P$23/'MMA Rev-Exp Region 7'!$P$9, 0)","v":{"v":0,"d":"$0.00"}},{"$f":"IFERROR('MMA Rev-Exp Region 7'!$Q$23/'MMA Rev-Exp Region 7'!$Q$9, 0)","v":{"v":0,"d":"$0.00"}},{"$f":"IFERROR('MMA Rev-Exp Region 7'!$R$23/'MMA Rev-Exp Region 7'!$R$9, 0)","v":{"v":0,"d":"$0.00"}},{"$f":"IFERROR('MMA Rev-Exp Region 7'!$S$23/'MMA Rev-Exp Region 7'!$S$9, 0)","v":{"v":0,"d":"$0.00"}},{"$f":"IFERROR('MMA Rev-Exp Region 7'!$T$23/'MMA Rev-Exp Region 7'!$T$9, 0)","v":{"v":0,"d":"$0.00"}},{"$f":"IFERROR('MMA Rev-Exp Region 7'!$U$23/'MMA Rev-Exp Region 7'!$U$9, 0)","v":{"v":0,"d":"$0.00"}},{"$f":"IFERROR('MMA Rev-Exp Region 7'!$V$23/'MMA Rev-Exp Region 7'!$V$9, 0)","v":{"v":0,"d":"$0.00"}},{"$f":"IFERROR('MMA Rev-Exp Region 7'!$W$23/'MMA Rev-Exp Region 7'!$W$9, 0)","v":{"v":0,"d":"$0.00"}},{"$f":"IFERROR('MMA Rev-Exp Region 7'!$X$23/'MMA Rev-Exp Region 7'!$X$9, 0)","v":{"v":0,"d":"$0.00"}},{"$f":"IFERROR('MMA Rev-Exp Region 7'!$Y$23/'MMA Rev-Exp Region 7'!$Y$9, 0)","v":{"v":0,"d":"$0.00"}}]
["MMA",null,null,2016,"2016-12-31","Q2","2017-06-30","Region 7","Operating Expense","Medical Benefits Expense","Hospital Services",2.5,"Ending IBNP for Outpatient Hospital Services",{"$f":"IFERROR('MMA Rev-Exp Region 7'!$O$24/'MMA Rev-Exp Region 7'!$O$9, 0)","v":{"v":0,"d":"$0.00"}},{"$f":"IFERROR('MMA Rev-Exp Region 7'!$P$24/'MMA Rev-Exp Region 7'!$P$9, 0)","v":{"v":0,"d":"$0.00"}},{"$f":"IFERROR('MMA Rev-Exp Region 7'!$Q$24/'MMA Rev-Exp Region 7'!$Q$9, 0)","v":{"v":0,"d":"$0.00"}},{"$f":"IFERROR('MMA Rev-Exp Region 7'!$R$24/'MMA Rev-Exp Region 7'!$R$9, 0)","v":{"v":0,"d":"$0.00"}},{"$f":"IFERROR('MMA Rev-Exp Region 7'!$S$24/'MMA Rev-Exp Region 7'!$S$9, 0)","v":{"v":0,"d":"$0.00"}},{"$f":"IFERROR('MMA Rev-Exp Region 7'!$T$24/'MMA Rev-Exp Region 7'!$T$9, 0)","v":{"v":0,"d":"$0.00"}},{"$f":"IFERROR('MMA Rev-Exp Region 7'!$U$24/'MMA Rev-Exp Region 7'!$U$9, 0)","v":{"v":0,"d":"$0.00"}},{"$f":"IFERROR('MMA Rev-Exp Region 7'!$V$24/'MMA Rev-Exp Region 7'!$V$9, 0)","v":{"v":0,"d":"$0.00"}},{"$f":"IFERROR('MMA Rev-Exp Region 7'!$W$24/'MMA Rev-Exp Region 7'!$W$9, 0)","v":{"v":0,"d":"$0.00"}},{"$f":"IFERROR('MMA Rev-Exp Region 7'!$X$24/'MMA Rev-Exp Region 7'!$X$9, 0)","v":{"v":0,"d":"$0.00"}},{"$f":"IFERROR('MMA Rev-Exp Region 7'!$Y$24/'MMA Rev-Exp Region 7'!$Y$9, 0)","v":{"v":0,"d":"$0.00"}}]
["MMA",null,null,2016,"2016-12-31","Q2","2017-06-30","Region 7","Operating Expense","Medical Benefits Expense","Hospital Services","2.6","Subcapitated Hospital Services",{"$f":"IFERROR('MMA Rev-Exp Region 7'!$O$25/'MMA Rev-Exp Region 7'!$O$9, 0)","v":{"v":0,"d":"$0.00"}},{"$f":"IFERROR('MMA Rev-Exp Region 7'!$P$25/'MMA Rev-Exp Region 7'!$P$9, 0)","v":{"v":0,"d":"$0.00"}},{"$f":"IFERROR('MMA Rev-Exp Region 7'!$Q$25/'MMA Rev-Exp Region 7'!$Q$9, 0)","v":{"v":0,"d":"$0.00"}},{"$f":"IFERROR('MMA Rev-Exp Region 7'!$R$25/'MMA Rev-Exp Region 7'!$R$9, 0)","v":{"v":0,"d":"$0.00"}},{"$f":"IFERROR('MMA Rev-Exp Region 7'!$S$25/'MMA Rev-Exp Region 7'!$S$9, 0)","v":{"v":0,"d":"$0.00"}},{"$f":"IFERROR('MMA Rev-Exp Region 7'!$T$25/'MMA Rev-Exp Region 7'!$T$9, 0)","v":{"v":0,"d":"$0.00"}},{"$f":"IFERROR('MMA Rev-Exp Region 7'!$U$25/'MMA Rev-Exp Region 7'!$U$9, 0)","v":{"v":0,"d":"$0.00"}},{"$f":"IFERROR('MMA Rev-Exp Region 7'!$V$25/'MMA Rev-Exp Region 7'!$V$9, 0)","v":{"v":0,"d":"$0.00"}},{"$f":"IFERROR('MMA Rev-Exp Region 7'!$W$25/'MMA Rev-Exp Region 7'!$W$9, 0)","v":{"v":0,"d":"$0.00"}},{"$f":"IFERROR('MMA Rev-Exp Region 7'!$X$25/'MMA Rev-Exp Region 7'!$X$9, 0)","v":{"v":0,"d":"$0.00"}},{"$f":"IFERROR('MMA Rev-Exp Region 7'!$Y$25/'MMA Rev-Exp Region 7'!$Y$9, 0)","v":{"v":0,"d":"$0.00"}}]
["MMA",null,null,2016,"2016-12-31","Q2","2017-06-30","Region 7","Operating Expense","Medical Benefits Expense","Hospital Services","2.7","Hospital Settlements",{"$f":"IFERROR('MMA Rev-Exp Region 7'!$O$26/'MMA Rev-Exp Region 7'!$O$9, 0)","v":{"v":0,"d":"$0.00"}},{"$f":"IFERROR('MMA Rev-Exp Region 7'!$P$26/'MMA Rev-Exp Region 7'!$P$9, 0)","v":{"v":0,"d":"$0.00"}},{"$f":"IFERROR('MMA Rev-Exp Region 7'!$Q$26/'MMA Rev-Exp Region 7'!$Q$9, 0)","v":{"v":0,"d":"$0.00"}},{"$f":"IFERROR('MMA Rev-Exp Region 7'!$R$26/'MMA Rev-Exp Region 7'!$R$9, 0)","v":{"v":0,"d":"$0.00"}},{"$f":"IFERROR('MMA Rev-Exp Region 7'!$S$26/'MMA Rev-Exp Region 7'!$S$9, 0)","v":{"v":0,"d":"$0.00"}},{"$f":"IFERROR('MMA Rev-Exp Region 7'!$T$26/'MMA Rev-Exp Region 7'!$T$9, 0)","v":{"v":0,"d":"$0.00"}},{"$f":"IFERROR('MMA Rev-Exp Region 7'!$U$26/'MMA Rev-Exp Region 7'!$U$9, 0)","v":{"v":0,"d":"$0.00"}},{"$f":"IFERROR('MMA Rev-Exp Region 7'!$V$26/'MMA Rev-Exp Region 7'!$V$9, 0)","v":{"v":0,"d":"$0.00"}},{"$f":"IFERROR('MMA Rev-Exp Region 7'!$W$26/'MMA Rev-Exp Region 7'!$W$9, 0)","v":{"v":0,"d":"$0.00"}},{"$f":"IFERROR('MMA Rev-Exp Region 7'!$X$26/'MMA Rev-Exp Region 7'!$X$9, 0)","v":{"v":0,"d":"$0.00"}},{"$f":"IFERROR('MMA Rev-Exp Region 7'!$Y$26/'MMA Rev-Exp Region 7'!$Y$9, 0)","v":{"v":0,"d":"$0.00"}}]
["MMA",null,null,2016,"2016-12-31","Q2","2017-06-30","Region 7","Operating Expense","Medical Benefits Expense","Hospital Services","2.7.1","Transplant Services",{"$f":"IFERROR('MMA Rev-Exp Region 7'!$O$27/'MMA Rev-Exp Region 7'!$O$9, 0)","v":{"v":0,"d":"$0.00"}},{"$f":"IFERROR('MMA Rev-Exp Region 7'!$P$27/'MMA Rev-Exp Region 7'!$P$9, 0)","v":{"v":0,"d":"$0.00"}},{"$f":"IFERROR('MMA Rev-Exp Region 7'!$Q$27/'MMA Rev-Exp Region 7'!$Q$9, 0)","v":{"v":0,"d":"$0.00"}},{"$f":"IFERROR('MMA Rev-Exp Region 7'!$R$27/'MMA Rev-Exp Region 7'!$R$9, 0)","v":{"v":0,"d":"$0.00"}},{"$f":"IFERROR('MMA Rev-Exp Region 7'!$S$27/'MMA Rev-Exp Region 7'!$S$9, 0)","v":{"v":0,"d":"$0.00"}},{"$f":"IFERROR('MMA Rev-Exp Region 7'!$T$27/'MMA Rev-Exp Region 7'!$T$9, 0)","v":{"v":0,"d":"$0.00"}},{"$f":"IFERROR('MMA Rev-Exp Region 7'!$U$27/'MMA Rev-Exp Region 7'!$U$9, 0)","v":{"v":0,"d":"$0.00"}},{"$f":"IFERROR('MMA Rev-Exp Region 7'!$V$27/'MMA Rev-Exp Region 7'!$V$9, 0)","v":{"v":0,"d":"$0.00"}},{"$f":"IFERROR('MMA Rev-Exp Region 7'!$W$27/'MMA Rev-Exp Region 7'!$W$9, 0)","v":{"v":0,"d":"$0.00"}},{"$f":"IFERROR('MMA Rev-Exp Region 7'!$X$27/'MMA Rev-Exp Region 7'!$X$9, 0)","v":{"v":0,"d":"$0.00"}},{"$f":"IFERROR('MMA Rev-Exp Region 7'!$Y$27/'MMA Rev-Exp Region 7'!$Y$9, 0)","v":{"v":0,"d":"$0.00"}}]
["MMA",null,null,2016,"2016-12-31","Q2","2017-06-30","Region 7","Operating Expense","Medical Benefits Expense","Professional Services",3.1,"Primary Care FFS",{"$f":"IFERROR('MMA Rev-Exp Region 7'!$O$29/'MMA Rev-Exp Region 7'!$O$9, 0)","v":{"v":0,"d":"$0.00"}},{"$f":"IFERROR('MMA Rev-Exp Region 7'!$P$29/'MMA Rev-Exp Region 7'!$P$9, 0)","v":{"v":0,"d":"$0.00"}},{"$f":"IFERROR('MMA Rev-Exp Region 7'!$Q$29/'MMA Rev-Exp Region 7'!$Q$9, 0)","v":{"v":0,"d":"$0.00"}},{"$f":"IFERROR('MMA Rev-Exp Region 7'!$R$29/'MMA Rev-Exp Region 7'!$R$9, 0)","v":{"v":0,"d":"$0.00"}},{"$f":"IFERROR('MMA Rev-Exp Region 7'!$S$29/'MMA Rev-Exp Region 7'!$S$9, 0)","v":{"v":0,"d":"$0.00"}},{"$f":"IFERROR('MMA Rev-Exp Region 7'!$T$29/'MMA Rev-Exp Region 7'!$T$9, 0)","v":{"v":0,"d":"$0.00"}},{"$f":"IFERROR('MMA Rev-Exp Region 7'!$U$29/'MMA Rev-Exp Region 7'!$U$9, 0)","v":{"v":0,"d":"$0.00"}},{"$f":"IFERROR('MMA Rev-Exp Region 7'!$V$29/'MMA Rev-Exp Region 7'!$V$9, 0)","v":{"v":0,"d":"$0.00"}},{"$f":"IFERROR('MMA Rev-Exp Region 7'!$W$29/'MMA Rev-Exp Region 7'!$W$9, 0)","v":{"v":0,"d":"$0.00"}},{"$f":"IFERROR('MMA Rev-Exp Region 7'!$X$29/'MMA Rev-Exp Region 7'!$X$9, 0)","v":{"v":0,"d":"$0.00"}},{"$f":"IFERROR('MMA Rev-Exp Region 7'!$Y$29/'MMA Rev-Exp Region 7'!$Y$9, 0)","v":{"v":0,"d":"$0.00"}}]
["MMA",null,null,2016,"2016-12-31","Q2","2017-06-30","Region 7","Operating Expense","Medical Benefits Expense","Professional Services",3.2,"Specialty Care FFS",{"$f":"IFERROR('MMA Rev-Exp Region 7'!$O$30/'MMA Rev-Exp Region 7'!$O$9, 0)","v":{"v":0,"d":"$0.00"}},{"$f":"IFERROR('MMA Rev-Exp Region 7'!$P$30/'MMA Rev-Exp Region 7'!$P$9, 0)","v":{"v":0,"d":"$0.00"}},{"$f":"IFERROR('MMA Rev-Exp Region 7'!$Q$30/'MMA Rev-Exp Region 7'!$Q$9, 0)","v":{"v":0,"d":"$0.00"}},{"$f":"IFERROR('MMA Rev-Exp Region 7'!$R$30/'MMA Rev-Exp Region 7'!$R$9, 0)","v":{"v":0,"d":"$0.00"}},{"$f":"IFERROR('MMA Rev-Exp Region 7'!$S$30/'MMA Rev-Exp Region 7'!$S$9, 0)","v":{"v":0,"d":"$0.00"}},{"$f":"IFERROR('MMA Rev-Exp Region 7'!$T$30/'MMA Rev-Exp Region 7'!$T$9, 0)","v":{"v":0,"d":"$0.00"}},{"$f":"IFERROR('MMA Rev-Exp Region 7'!$U$30/'MMA Rev-Exp Region 7'!$U$9, 0)","v":{"v":0,"d":"$0.00"}},{"$f":"IFERROR('MMA Rev-Exp Region 7'!$V$30/'MMA Rev-Exp Region 7'!$V$9, 0)","v":{"v":0,"d":"$0.00"}},{"$f":"IFERROR('MMA Rev-Exp Region 7'!$W$30/'MMA Rev-Exp Region 7'!$W$9, 0)","v":{"v":0,"d":"$0.00"}},{"$f":"IFERROR('MMA Rev-Exp Region 7'!$X$30/'MMA Rev-Exp Region 7'!$X$9, 0)","v":{"v":0,"d":"$0.00"}},{"$f":"IFERROR('MMA Rev-Exp Region 7'!$Y$30/'MMA Rev-Exp Region 7'!$Y$9, 0)","v":{"v":0,"d":"$0.00"}}]
["MMA",null,null,2016,"2016-12-31","Q2","2017-06-30","Region 7","Operating Expense","Medical Benefits Expense","Professional Services",3.3,"Other Professional FFS",{"$f":"IFERROR('MMA Rev-Exp Region 7'!$O$31/'MMA Rev-Exp Region 7'!$O$9, 0)","v":{"v":0,"d":"$0.00"}},{"$f":"IFERROR('MMA Rev-Exp Region 7'!$P$31/'MMA Rev-Exp Region 7'!$P$9, 0)","v":{"v":0,"d":"$0.00"}},{"$f":"IFERROR('MMA Rev-Exp Region 7'!$Q$31/'MMA Rev-Exp Region 7'!$Q$9, 0)","v":{"v":0,"d":"$0.00"}},{"$f":"IFERROR('MMA Rev-Exp Region 7'!$R$31/'MMA Rev-Exp Region 7'!$R$9, 0)","v":{"v":0,"d":"$0.00"}},{"$f":"IFERROR('MMA Rev-Exp Region 7'!$S$31/'MMA Rev-Exp Region 7'!$S$9, 0)","v":{"v":0,"d":"$0.00"}},{"$f":"IFERROR('MMA Rev-Exp Region 7'!$T$31/'MMA Rev-Exp Region 7'!$T$9, 0)","v":{"v":0,"d":"$0.00"}},{"$f":"IFERROR('MMA Rev-Exp Region 7'!$U$31/'MMA Rev-Exp Region 7'!$U$9, 0)","v":{"v":0,"d":"$0.00"}},{"$f":"IFERROR('MMA Rev-Exp Region 7'!$V$31/'MMA Rev-Exp Region 7'!$V$9, 0)","v":{"v":0,"d":"$0.00"}},{"$f":"IFERROR('MMA Rev-Exp Region 7'!$W$31/'MMA Rev-Exp Region 7'!$W$9, 0)","v":{"v":0,"d":"$0.00"}},{"$f":"IFERROR('MMA Rev-Exp Region 7'!$X$31/'MMA Rev-Exp Region 7'!$X$9, 0)","v":{"v":0,"d":"$0.00"}},{"$f":"IFERROR('MMA Rev-Exp Region 7'!$Y$31/'MMA Rev-Exp Region 7'!$Y$9, 0)","v":{"v":0,"d":"$0.00"}}]
["MMA",null,null,2016,"2016-12-31","Q2","2017-06-30","Region 7","Operating Expense","Medical Benefits Expense","Professional Services","3.4","§ 1202 PCP Payments to providers",{"$f":"IFERROR('MMA Rev-Exp Region 7'!$O$32/'MMA Rev-Exp Region 7'!$O$9, 0)","v":{"v":0,"d":"$0.00"}},{"$f":"IFERROR('MMA Rev-Exp Region 7'!$P$32/'MMA Rev-Exp Region 7'!$P$9, 0)","v":{"v":0,"d":"$0.00"}},{"$f":"IFERROR('MMA Rev-Exp Region 7'!$Q$32/'MMA Rev-Exp Region 7'!$Q$9, 0)","v":{"v":0,"d":"$0.00"}},{"$f":"IFERROR('MMA Rev-Exp Region 7'!$R$32/'MMA Rev-Exp Region 7'!$R$9, 0)","v":{"v":0,"d":"$0.00"}},{"$f":"IFERROR('MMA Rev-Exp Region 7'!$S$32/'MMA Rev-Exp Region 7'!$S$9, 0)","v":{"v":0,"d":"$0.00"}},{"$f":"IFERROR('MMA Rev-Exp Region 7'!$T$32/'MMA Rev-Exp Region 7'!$T$9, 0)","v":{"v":0,"d":"$0.00"}},{"$f":"IFERROR('MMA Rev-Exp Region 7'!$U$32/'MMA Rev-Exp Region 7'!$U$9, 0)","v":{"v":0,"d":"$0.00"}},{"$f":"IFERROR('MMA Rev-Exp Region 7'!$V$32/'MMA Rev-Exp Region 7'!$V$9, 0)","v":{"v":0,"d":"$0.00"}},{"$f":"IFERROR('MMA Rev-Exp Region 7'!$W$32/'MMA Rev-Exp Region 7'!$W$9, 0)","v":{"v":0,"d":"$0.00"}},{"$f":"IFERROR('MMA Rev-Exp Region 7'!$X$32/'MMA Rev-Exp Region 7'!$X$9, 0)","v":{"v":0,"d":"$0.00"}},{"$f":"IFERROR('MMA Rev-Exp Region 7'!$Y$32/'MMA Rev-Exp Region 7'!$Y$9, 0)","v":{"v":0,"d":"$0.00"}}]
["MMA",null,null,2016,"2016-12-31","Q2","2017-06-30","Region 7","Operating Expense","Medical Benefits Expense","Professional Services","3.5","Subcapitated Professional Services",{"$f":"IFERROR('MMA Rev-Exp Region 7'!$O$33/'MMA Rev-Exp Region 7'!$O$9, 0)","v":{"v":0,"d":"$0.00"}},{"$f":"IFERROR('MMA Rev-Exp Region 7'!$P$33/'MMA Rev-Exp Region 7'!$P$9, 0)","v":{"v":0,"d":"$0.00"}},{"$f":"IFERROR('MMA Rev-Exp Region 7'!$Q$33/'MMA Rev-Exp Region 7'!$Q$9, 0)","v":{"v":0,"d":"$0.00"}},{"$f":"IFERROR('MMA Rev-Exp Region 7'!$R$33/'MMA Rev-Exp Region 7'!$R$9, 0)","v":{"v":0,"d":"$0.00"}},{"$f":"IFERROR('MMA Rev-Exp Region 7'!$S$33/'MMA Rev-Exp Region 7'!$S$9, 0)","v":{"v":0,"d":"$0.00"}},{"$f":"IFERROR('MMA Rev-Exp Region 7'!$T$33/'MMA Rev-Exp Region 7'!$T$9, 0)","v":{"v":0,"d":"$0.00"}},{"$f":"IFERROR('MMA Rev-Exp Region 7'!$U$33/'MMA Rev-Exp Region 7'!$U$9, 0)","v":{"v":0,"d":"$0.00"}},{"$f":"IFERROR('MMA Rev-Exp Region 7'!$V$33/'MMA Rev-Exp Region 7'!$V$9, 0)","v":{"v":0,"d":"$0.00"}},{"$f":"IFERROR('MMA Rev-Exp Region 7'!$W$33/'MMA Rev-Exp Region 7'!$W$9, 0)","v":{"v":0,"d":"$0.00"}},{"$f":"IFERROR('MMA Rev-Exp Region 7'!$X$33/'MMA Rev-Exp Region 7'!$X$9, 0)","v":{"v":0,"d":"$0.00"}},{"$f":"IFERROR('MMA Rev-Exp Region 7'!$Y$33/'MMA Rev-Exp Region 7'!$Y$9, 0)","v":{"v":0,"d":"$0.00"}}]
["MMA",null,null,2016,"2016-12-31","Q2","2017-06-30","Region 7","Operating Expense","Medical Benefits Expense","Professional Services","3.6","Ending IBNP for Professional Services",{"$f":"IFERROR('MMA Rev-Exp Region 7'!$O$34/'MMA Rev-Exp Region 7'!$O$9, 0)","v":{"v":0,"d":"$0.00"}},{"$f":"IFERROR('MMA Rev-Exp Region 7'!$P$34/'MMA Rev-Exp Region 7'!$P$9, 0)","v":{"v":0,"d":"$0.00"}},{"$f":"IFERROR('MMA Rev-Exp Region 7'!$Q$34/'MMA Rev-Exp Region 7'!$Q$9, 0)","v":{"v":0,"d":"$0.00"}},{"$f":"IFERROR('MMA Rev-Exp Region 7'!$R$34/'MMA Rev-Exp Region 7'!$R$9, 0)","v":{"v":0,"d":"$0.00"}},{"$f":"IFERROR('MMA Rev-Exp Region 7'!$S$34/'MMA Rev-Exp Region 7'!$S$9, 0)","v":{"v":0,"d":"$0.00"}},{"$f":"IFERROR('MMA Rev-Exp Region 7'!$T$34/'MMA Rev-Exp Region 7'!$T$9, 0)","v":{"v":0,"d":"$0.00"}},{"$f":"IFERROR('MMA Rev-Exp Region 7'!$U$34/'MMA Rev-Exp Region 7'!$U$9, 0)","v":{"v":0,"d":"$0.00"}},{"$f":"IFERROR('MMA Rev-Exp Region 7'!$V$34/'MMA Rev-Exp Region 7'!$V$9, 0)","v":{"v":0,"d":"$0.00"}},{"$f":"IFERROR('MMA Rev-Exp Region 7'!$W$34/'MMA Rev-Exp Region 7'!$W$9, 0)","v":{"v":0,"d":"$0.00"}},{"$f":"IFERROR('MMA Rev-Exp Region 7'!$X$34/'MMA Rev-Exp Region 7'!$X$9, 0)","v":{"v":0,"d":"$0.00"}},{"$f":"IFERROR('MMA Rev-Exp Region 7'!$Y$34/'MMA Rev-Exp Region 7'!$Y$9, 0)","v":{"v":0,"d":"$0.00"}}]
["MMA",null,null,2016,"2016-12-31","Q2","2017-06-30","Region 7","Operating Expense","Medical Benefits Expense","Professional Services","3.7","Professional Services Settlements",{"$f":"IFERROR('MMA Rev-Exp Region 7'!$O$35/'MMA Rev-Exp Region 7'!$O$9, 0)","v":{"v":0,"d":"$0.00"}},{"$f":"IFERROR('MMA Rev-Exp Region 7'!$P$35/'MMA Rev-Exp Region 7'!$P$9, 0)","v":{"v":0,"d":"$0.00"}},{"$f":"IFERROR('MMA Rev-Exp Region 7'!$Q$35/'MMA Rev-Exp Region 7'!$Q$9, 0)","v":{"v":0,"d":"$0.00"}},{"$f":"IFERROR('MMA Rev-Exp Region 7'!$R$35/'MMA Rev-Exp Region 7'!$R$9, 0)","v":{"v":0,"d":"$0.00"}},{"$f":"IFERROR('MMA Rev-Exp Region 7'!$S$35/'MMA Rev-Exp Region 7'!$S$9, 0)","v":{"v":0,"d":"$0.00"}},{"$f":"IFERROR('MMA Rev-Exp Region 7'!$T$35/'MMA Rev-Exp Region 7'!$T$9, 0)","v":{"v":0,"d":"$0.00"}},{"$f":"IFERROR('MMA Rev-Exp Region 7'!$U$35/'MMA Rev-Exp Region 7'!$U$9, 0)","v":{"v":0,"d":"$0.00"}},{"$f":"IFERROR('MMA Rev-Exp Region 7'!$V$35/'MMA Rev-Exp Region 7'!$V$9, 0)","v":{"v":0,"d":"$0.00"}},{"$f":"IFERROR('MMA Rev-Exp Region 7'!$W$35/'MMA Rev-Exp Region 7'!$W$9, 0)","v":{"v":0,"d":"$0.00"}},{"$f":"IFERROR('MMA Rev-Exp Region 7'!$X$35/'MMA Rev-Exp Region 7'!$X$9, 0)","v":{"v":0,"d":"$0.00"}},{"$f":"IFERROR('MMA Rev-Exp Region 7'!$Y$35/'MMA Rev-Exp Region 7'!$Y$9, 0)","v":{"v":0,"d":"$0.00"}}]
["MMA",null,null,2016,"2016-12-31","Q2","2017-06-30","Region 7","Operating Expense","Medical Benefits Expense","Maternity Services","4.1.1","Maternity Services",{"$f":"IFERROR('MMA Rev-Exp Region 7'!$O$37/'MMA Rev-Exp Region 7'!$O$9, 0)","v":{"v":0,"d":"$0.00"}},{"$f":"IFERROR('MMA Rev-Exp Region 7'!$P$37/'MMA Rev-Exp Region 7'!$P$9, 0)","v":{"v":0,"d":"$0.00"}},{"$f":"IFERROR('MMA Rev-Exp Region 7'!$Q$37/'MMA Rev-Exp Region 7'!$Q$9, 0)","v":{"v":0,"d":"$0.00"}},{"$f":"IFERROR('MMA Rev-Exp Region 7'!$R$37/'MMA Rev-Exp Region 7'!$R$9, 0)","v":{"v":0,"d":"$0.00"}},{"$f":"IFERROR('MMA Rev-Exp Region 7'!$S$37/'MMA Rev-Exp Region 7'!$S$9, 0)","v":{"v":0,"d":"$0.00"}},{"$f":"IFERROR('MMA Rev-Exp Region 7'!$T$37/'MMA Rev-Exp Region 7'!$T$9, 0)","v":{"v":0,"d":"$0.00"}},{"$f":"IFERROR('MMA Rev-Exp Region 7'!$U$37/'MMA Rev-Exp Region 7'!$U$9, 0)","v":{"v":0,"d":"$0.00"}},{"$f":"IFERROR('MMA Rev-Exp Region 7'!$V$37/'MMA Rev-Exp Region 7'!$V$9, 0)","v":{"v":0,"d":"$0.00"}},{"$f":"IFERROR('MMA Rev-Exp Region 7'!$W$37/'MMA Rev-Exp Region 7'!$W$9, 0)","v":{"v":0,"d":"$0.00"}},{"$f":"IFERROR('MMA Rev-Exp Region 7'!$X$37/'MMA Rev-Exp Region 7'!$X$9, 0)","v":{"v":0,"d":"$0.00"}},{"$f":"IFERROR('MMA Rev-Exp Region 7'!$Y$37/'MMA Rev-Exp Region 7'!$Y$9, 0)","v":{"v":0,"d":"$0.00"}}]
["MMA",null,null,2016,"2016-12-31","Q2","2017-06-30","Region 7","Operating Expense","Medical Benefits Expense","Maternity Services","4.2.1","Ending IBNP for Maternity Services",{"$f":"IFERROR('MMA Rev-Exp Region 7'!$O$38/'MMA Rev-Exp Region 7'!$O$9, 0)","v":{"v":0,"d":"$0.00"}},{"$f":"IFERROR('MMA Rev-Exp Region 7'!$P$38/'MMA Rev-Exp Region 7'!$P$9, 0)","v":{"v":0,"d":"$0.00"}},{"$f":"IFERROR('MMA Rev-Exp Region 7'!$Q$38/'MMA Rev-Exp Region 7'!$Q$9, 0)","v":{"v":0,"d":"$0.00"}},{"$f":"IFERROR('MMA Rev-Exp Region 7'!$R$38/'MMA Rev-Exp Region 7'!$R$9, 0)","v":{"v":0,"d":"$0.00"}},{"$f":"IFERROR('MMA Rev-Exp Region 7'!$S$38/'MMA Rev-Exp Region 7'!$S$9, 0)","v":{"v":0,"d":"$0.00"}},{"$f":"IFERROR('MMA Rev-Exp Region 7'!$T$38/'MMA Rev-Exp Region 7'!$T$9, 0)","v":{"v":0,"d":"$0.00"}},{"$f":"IFERROR('MMA Rev-Exp Region 7'!$U$38/'MMA Rev-Exp Region 7'!$U$9, 0)","v":{"v":0,"d":"$0.00"}},{"$f":"IFERROR('MMA Rev-Exp Region 7'!$V$38/'MMA Rev-Exp Region 7'!$V$9, 0)","v":{"v":0,"d":"$0.00"}},{"$f":"IFERROR('MMA Rev-Exp Region 7'!$W$38/'MMA Rev-Exp Region 7'!$W$9, 0)","v":{"v":0,"d":"$0.00"}},{"$f":"IFERROR('MMA Rev-Exp Region 7'!$X$38/'MMA Rev-Exp Region 7'!$X$9, 0)","v":{"v":0,"d":"$0.00"}},{"$f":"IFERROR('MMA Rev-Exp Region 7'!$Y$38/'MMA Rev-Exp Region 7'!$Y$9, 0)","v":{"v":0,"d":"$0.00"}}]
["MMA",null,null,2016,"2016-12-31","Q2","2017-06-30","Region 7","Operating Expense","Medical Benefits Expense","Maternity Services","4.3.1","Maternity Settlements",{"$f":"IFERROR('MMA Rev-Exp Region 7'!$O$39/'MMA Rev-Exp Region 7'!$O$9, 0)","v":{"v":0,"d":"$0.00"}},{"$f":"IFERROR('MMA Rev-Exp Region 7'!$P$39/'MMA Rev-Exp Region 7'!$P$9, 0)","v":{"v":0,"d":"$0.00"}},{"$f":"IFERROR('MMA Rev-Exp Region 7'!$Q$39/'MMA Rev-Exp Region 7'!$Q$9, 0)","v":{"v":0,"d":"$0.00"}},{"$f":"IFERROR('MMA Rev-Exp Region 7'!$R$39/'MMA Rev-Exp Region 7'!$R$9, 0)","v":{"v":0,"d":"$0.00"}},{"$f":"IFERROR('MMA Rev-Exp Region 7'!$S$39/'MMA Rev-Exp Region 7'!$S$9, 0)","v":{"v":0,"d":"$0.00"}},{"$f":"IFERROR('MMA Rev-Exp Region 7'!$T$39/'MMA Rev-Exp Region 7'!$T$9, 0)","v":{"v":0,"d":"$0.00"}},{"$f":"IFERROR('MMA Rev-Exp Region 7'!$U$39/'MMA Rev-Exp Region 7'!$U$9, 0)","v":{"v":0,"d":"$0.00"}},{"$f":"IFERROR('MMA Rev-Exp Region 7'!$V$39/'MMA Rev-Exp Region 7'!$V$9, 0)","v":{"v":0,"d":"$0.00"}},{"$f":"IFERROR('MMA Rev-Exp Region 7'!$W$39/'MMA Rev-Exp Region 7'!$W$9, 0)","v":{"v":0,"d":"$0.00"}},{"$f":"IFERROR('MMA Rev-Exp Region 7'!$X$39/'MMA Rev-Exp Region 7'!$X$9, 0)","v":{"v":0,"d":"$0.00"}},{"$f":"IFERROR('MMA Rev-Exp Region 7'!$Y$39/'MMA Rev-Exp Region 7'!$Y$9, 0)","v":{"v":0,"d":"$0.00"}}]
["MMA",null,null,2016,"2016-12-31","Q2","2017-06-30","Region 7","Operating Expense","Medical Benefits Expense","Mental Health Services",5.1,"Mental Health & Substance Abuse FFS",{"$f":"IFERROR('MMA Rev-Exp Region 7'!$O$41/'MMA Rev-Exp Region 7'!$O$9, 0)","v":{"v":0,"d":"$0.00"}},{"$f":"IFERROR('MMA Rev-Exp Region 7'!$P$41/'MMA Rev-Exp Region 7'!$P$9, 0)","v":{"v":0,"d":"$0.00"}},{"$f":"IFERROR('MMA Rev-Exp Region 7'!$Q$41/'MMA Rev-Exp Region 7'!$Q$9, 0)","v":{"v":0,"d":"$0.00"}},{"$f":"IFERROR('MMA Rev-Exp Region 7'!$R$41/'MMA Rev-Exp Region 7'!$R$9, 0)","v":{"v":0,"d":"$0.00"}},{"$f":"IFERROR('MMA Rev-Exp Region 7'!$S$41/'MMA Rev-Exp Region 7'!$S$9, 0)","v":{"v":0,"d":"$0.00"}},{"$f":"IFERROR('MMA Rev-Exp Region 7'!$T$41/'MMA Rev-Exp Region 7'!$T$9, 0)","v":{"v":0,"d":"$0.00"}},{"$f":"IFERROR('MMA Rev-Exp Region 7'!$U$41/'MMA Rev-Exp Region 7'!$U$9, 0)","v":{"v":0,"d":"$0.00"}},{"$f":"IFERROR('MMA Rev-Exp Region 7'!$V$41/'MMA Rev-Exp Region 7'!$V$9, 0)","v":{"v":0,"d":"$0.00"}},{"$f":"IFERROR('MMA Rev-Exp Region 7'!$W$41/'MMA Rev-Exp Region 7'!$W$9, 0)","v":{"v":0,"d":"$0.00"}},{"$f":"IFERROR('MMA Rev-Exp Region 7'!$X$41/'MMA Rev-Exp Region 7'!$X$9, 0)","v":{"v":0,"d":"$0.00"}},{"$f":"IFERROR('MMA Rev-Exp Region 7'!$Y$41/'MMA Rev-Exp Region 7'!$Y$9, 0)","v":{"v":0,"d":"$0.00"}}]
["MMA",null,null,2016,"2016-12-31","Q2","2017-06-30","Region 7","Operating Expense","Medical Benefits Expense","Mental Health Services",5.2,"Mental Health & Substance Abuse Subcapitation",{"$f":"IFERROR('MMA Rev-Exp Region 7'!$O$42/'MMA Rev-Exp Region 7'!$O$9, 0)","v":{"v":0,"d":"$0.00"}},{"$f":"IFERROR('MMA Rev-Exp Region 7'!$P$42/'MMA Rev-Exp Region 7'!$P$9, 0)","v":{"v":0,"d":"$0.00"}},{"$f":"IFERROR('MMA Rev-Exp Region 7'!$Q$42/'MMA Rev-Exp Region 7'!$Q$9, 0)","v":{"v":0,"d":"$0.00"}},{"$f":"IFERROR('MMA Rev-Exp Region 7'!$R$42/'MMA Rev-Exp Region 7'!$R$9, 0)","v":{"v":0,"d":"$0.00"}},{"$f":"IFERROR('MMA Rev-Exp Region 7'!$S$42/'MMA Rev-Exp Region 7'!$S$9, 0)","v":{"v":0,"d":"$0.00"}},{"$f":"IFERROR('MMA Rev-Exp Region 7'!$T$42/'MMA Rev-Exp Region 7'!$T$9, 0)","v":{"v":0,"d":"$0.00"}},{"$f":"IFERROR('MMA Rev-Exp Region 7'!$U$42/'MMA Rev-Exp Region 7'!$U$9, 0)","v":{"v":0,"d":"$0.00"}},{"$f":"IFERROR('MMA Rev-Exp Region 7'!$V$42/'MMA Rev-Exp Region 7'!$V$9, 0)","v":{"v":0,"d":"$0.00"}},{"$f":"IFERROR('MMA Rev-Exp Region 7'!$W$42/'MMA Rev-Exp Region 7'!$W$9, 0)","v":{"v":0,"d":"$0.00"}},{"$f":"IFERROR('MMA Rev-Exp Region 7'!$X$42/'MMA Rev-Exp Region 7'!$X$9, 0)","v":{"v":0,"d":"$0.00"}},{"$f":"IFERROR('MMA Rev-Exp Region 7'!$Y$42/'MMA Rev-Exp Region 7'!$Y$9, 0)","v":{"v":0,"d":"$0.00"}}]
["MMA",null,null,2016,"2016-12-31","Q2","2017-06-30","Region 7","Operating Expense","Medical Benefits Expense","Mental Health Services",5.3,"Ending IBNP for Mental Health & Substance Abuse",{"$f":"IFERROR('MMA Rev-Exp Region 7'!$O$43/'MMA Rev-Exp Region 7'!$O$9, 0)","v":{"v":0,"d":"$0.00"}},{"$f":"IFERROR('MMA Rev-Exp Region 7'!$P$43/'MMA Rev-Exp Region 7'!$P$9, 0)","v":{"v":0,"d":"$0.00"}},{"$f":"IFERROR('MMA Rev-Exp Region 7'!$Q$43/'MMA Rev-Exp Region 7'!$Q$9, 0)","v":{"v":0,"d":"$0.00"}},{"$f":"IFERROR('MMA Rev-Exp Region 7'!$R$43/'MMA Rev-Exp Region 7'!$R$9, 0)","v":{"v":0,"d":"$0.00"}},{"$f":"IFERROR('MMA Rev-Exp Region 7'!$S$43/'MMA Rev-Exp Region 7'!$S$9, 0)","v":{"v":0,"d":"$0.00"}},{"$f":"IFERROR('MMA Rev-Exp Region 7'!$T$43/'MMA Rev-Exp Region 7'!$T$9, 0)","v":{"v":0,"d":"$0.00"}},{"$f":"IFERROR('MMA Rev-Exp Region 7'!$U$43/'MMA Rev-Exp Region 7'!$U$9, 0)","v":{"v":0,"d":"$0.00"}},{"$f":"IFERROR('MMA Rev-Exp Region 7'!$V$43/'MMA Rev-Exp Region 7'!$V$9, 0)","v":{"v":0,"d":"$0.00"}},{"$f":"IFERROR('MMA Rev-Exp Region 7'!$W$43/'MMA Rev-Exp Region 7'!$W$9, 0)","v":{"v":0,"d":"$0.00"}},{"$f":"IFERROR('MMA Rev-Exp Region 7'!$X$43/'MMA Rev-Exp Region 7'!$X$9, 0)","v":{"v":0,"d":"$0.00"}},{"$f":"IFERROR('MMA Rev-Exp Region 7'!$Y$43/'MMA Rev-Exp Region 7'!$Y$9, 0)","v":{"v":0,"d":"$0.00"}}]
["MMA",null,null,2016,"2016-12-31","Q2","2017-06-30","Region 7","Operating Expense","Medical Benefits Expense","Mental Health Services","5.4","Mental Health Settlements",{"$f":"IFERROR('MMA Rev-Exp Region 7'!$O$44/'MMA Rev-Exp Region 7'!$O$9, 0)","v":{"v":0,"d":"$0.00"}},{"$f":"IFERROR('MMA Rev-Exp Region 7'!$P$44/'MMA Rev-Exp Region 7'!$P$9, 0)","v":{"v":0,"d":"$0.00"}},{"$f":"IFERROR('MMA Rev-Exp Region 7'!$Q$44/'MMA Rev-Exp Region 7'!$Q$9, 0)","v":{"v":0,"d":"$0.00"}},{"$f":"IFERROR('MMA Rev-Exp Region 7'!$R$44/'MMA Rev-Exp Region 7'!$R$9, 0)","v":{"v":0,"d":"$0.00"}},{"$f":"IFERROR('MMA Rev-Exp Region 7'!$S$44/'MMA Rev-Exp Region 7'!$S$9, 0)","v":{"v":0,"d":"$0.00"}},{"$f":"IFERROR('MMA Rev-Exp Region 7'!$T$44/'MMA Rev-Exp Region 7'!$T$9, 0)","v":{"v":0,"d":"$0.00"}},{"$f":"IFERROR('MMA Rev-Exp Region 7'!$U$44/'MMA Rev-Exp Region 7'!$U$9, 0)","v":{"v":0,"d":"$0.00"}},{"$f":"IFERROR('MMA Rev-Exp Region 7'!$V$44/'MMA Rev-Exp Region 7'!$V$9, 0)","v":{"v":0,"d":"$0.00"}},{"$f":"IFERROR('MMA Rev-Exp Region 7'!$W$44/'MMA Rev-Exp Region 7'!$W$9, 0)","v":{"v":0,"d":"$0.00"}},{"$f":"IFERROR('MMA Rev-Exp Region 7'!$X$44/'MMA Rev-Exp Region 7'!$X$9, 0)","v":{"v":0,"d":"$0.00"}},{"$f":"IFERROR('MMA Rev-Exp Region 7'!$Y$44/'MMA Rev-Exp Region 7'!$Y$9, 0)","v":{"v":0,"d":"$0.00"}}]
["MMA",null,null,2016,"2016-12-31","Q2","2017-06-30","Region 7","Operating Expense","Medical Benefits Expense","Dental Services",6.1,"Dental FFS",{"$f":"IFERROR('MMA Rev-Exp Region 7'!$O$46/'MMA Rev-Exp Region 7'!$O$9, 0)","v":{"v":0,"d":"$0.00"}},{"$f":"IFERROR('MMA Rev-Exp Region 7'!$P$46/'MMA Rev-Exp Region 7'!$P$9, 0)","v":{"v":0,"d":"$0.00"}},{"$f":"IFERROR('MMA Rev-Exp Region 7'!$Q$46/'MMA Rev-Exp Region 7'!$Q$9, 0)","v":{"v":0,"d":"$0.00"}},{"$f":"IFERROR('MMA Rev-Exp Region 7'!$R$46/'MMA Rev-Exp Region 7'!$R$9, 0)","v":{"v":0,"d":"$0.00"}},{"$f":"IFERROR('MMA Rev-Exp Region 7'!$S$46/'MMA Rev-Exp Region 7'!$S$9, 0)","v":{"v":0,"d":"$0.00"}},{"$f":"IFERROR('MMA Rev-Exp Region 7'!$T$46/'MMA Rev-Exp Region 7'!$T$9, 0)","v":{"v":0,"d":"$0.00"}},{"$f":"IFERROR('MMA Rev-Exp Region 7'!$U$46/'MMA Rev-Exp Region 7'!$U$9, 0)","v":{"v":0,"d":"$0.00"}},{"$f":"IFERROR('MMA Rev-Exp Region 7'!$V$46/'MMA Rev-Exp Region 7'!$V$9, 0)","v":{"v":0,"d":"$0.00"}},{"$f":"IFERROR('MMA Rev-Exp Region 7'!$W$46/'MMA Rev-Exp Region 7'!$W$9, 0)","v":{"v":0,"d":"$0.00"}},{"$f":"IFERROR('MMA Rev-Exp Region 7'!$X$46/'MMA Rev-Exp Region 7'!$X$9, 0)","v":{"v":0,"d":"$0.00"}},{"$f":"IFERROR('MMA Rev-Exp Region 7'!$Y$46/'MMA Rev-Exp Region 7'!$Y$9, 0)","v":{"v":0,"d":"$0.00"}}]
["MMA",null,null,2016,"2016-12-31","Q2","2017-06-30","Region 7","Operating Expense","Medical Benefits Expense","Dental Services",6.2,"Dental Subcapitation",{"$f":"IFERROR('MMA Rev-Exp Region 7'!$O$47/'MMA Rev-Exp Region 7'!$O$9, 0)","v":{"v":0,"d":"$0.00"}},{"$f":"IFERROR('MMA Rev-Exp Region 7'!$P$47/'MMA Rev-Exp Region 7'!$P$9, 0)","v":{"v":0,"d":"$0.00"}},{"$f":"IFERROR('MMA Rev-Exp Region 7'!$Q$47/'MMA Rev-Exp Region 7'!$Q$9, 0)","v":{"v":0,"d":"$0.00"}},{"$f":"IFERROR('MMA Rev-Exp Region 7'!$R$47/'MMA Rev-Exp Region 7'!$R$9, 0)","v":{"v":0,"d":"$0.00"}},{"$f":"IFERROR('MMA Rev-Exp Region 7'!$S$47/'MMA Rev-Exp Region 7'!$S$9, 0)","v":{"v":0,"d":"$0.00"}},{"$f":"IFERROR('MMA Rev-Exp Region 7'!$T$47/'MMA Rev-Exp Region 7'!$T$9, 0)","v":{"v":0,"d":"$0.00"}},{"$f":"IFERROR('MMA Rev-Exp Region 7'!$U$47/'MMA Rev-Exp Region 7'!$U$9, 0)","v":{"v":0,"d":"$0.00"}},{"$f":"IFERROR('MMA Rev-Exp Region 7'!$V$47/'MMA Rev-Exp Region 7'!$V$9, 0)","v":{"v":0,"d":"$0.00"}},{"$f":"IFERROR('MMA Rev-Exp Region 7'!$W$47/'MMA Rev-Exp Region 7'!$W$9, 0)","v":{"v":0,"d":"$0.00"}},{"$f":"IFERROR('MMA Rev-Exp Region 7'!$X$47/'MMA Rev-Exp Region 7'!$X$9, 0)","v":{"v":0,"d":"$0.00"}},{"$f":"IFERROR('MMA Rev-Exp Region 7'!$Y$47/'MMA Rev-Exp Region 7'!$Y$9, 0)","v":{"v":0,"d":"$0.00"}}]
["MMA",null,null,2016,"2016-12-31","Q2","2017-06-30","Region 7","Operating Expense","Medical Benefits Expense","Dental Services",6.3,"Ending IBNP for Dental Services",{"$f":"IFERROR('MMA Rev-Exp Region 7'!$O$48/'MMA Rev-Exp Region 7'!$O$9, 0)","v":{"v":0,"d":"$0.00"}},{"$f":"IFERROR('MMA Rev-Exp Region 7'!$P$48/'MMA Rev-Exp Region 7'!$P$9, 0)","v":{"v":0,"d":"$0.00"}},{"$f":"IFERROR('MMA Rev-Exp Region 7'!$Q$48/'MMA Rev-Exp Region 7'!$Q$9, 0)","v":{"v":0,"d":"$0.00"}},{"$f":"IFERROR('MMA Rev-Exp Region 7'!$R$48/'MMA Rev-Exp Region 7'!$R$9, 0)","v":{"v":0,"d":"$0.00"}},{"$f":"IFERROR('MMA Rev-Exp Region 7'!$S$48/'MMA Rev-Exp Region 7'!$S$9, 0)","v":{"v":0,"d":"$0.00"}},{"$f":"IFERROR('MMA Rev-Exp Region 7'!$T$48/'MMA Rev-Exp Region 7'!$T$9, 0)","v":{"v":0,"d":"$0.00"}},{"$f":"IFERROR('MMA Rev-Exp Region 7'!$U$48/'MMA Rev-Exp Region 7'!$U$9, 0)","v":{"v":0,"d":"$0.00"}},{"$f":"IFERROR('MMA Rev-Exp Region 7'!$V$48/'MMA Rev-Exp Region 7'!$V$9, 0)","v":{"v":0,"d":"$0.00"}},{"$f":"IFERROR('MMA Rev-Exp Region 7'!$W$48/'MMA Rev-Exp Region 7'!$W$9, 0)","v":{"v":0,"d":"$0.00"}},{"$f":"IFERROR('MMA Rev-Exp Region 7'!$X$48/'MMA Rev-Exp Region 7'!$X$9, 0)","v":{"v":0,"d":"$0.00"}},{"$f":"IFERROR('MMA Rev-Exp Region 7'!$Y$48/'MMA Rev-Exp Region 7'!$Y$9, 0)","v":{"v":0,"d":"$0.00"}}]
["MMA",null,null,2016,"2016-12-31","Q2","2017-06-30","Region 7","Operating Expense","Medical Benefits Expense","Dental Services","6.4","Dental Settlements",{"$f":"IFERROR('MMA Rev-Exp Region 7'!$O$49/'MMA Rev-Exp Region 7'!$O$9, 0)","v":{"v":0,"d":"$0.00"}},{"$f":"IFERROR('MMA Rev-Exp Region 7'!$P$49/'MMA Rev-Exp Region 7'!$P$9, 0)","v":{"v":0,"d":"$0.00"}},{"$f":"IFERROR('MMA Rev-Exp Region 7'!$Q$49/'MMA Rev-Exp Region 7'!$Q$9, 0)","v":{"v":0,"d":"$0.00"}},{"$f":"IFERROR('MMA Rev-Exp Region 7'!$R$49/'MMA Rev-Exp Region 7'!$R$9, 0)","v":{"v":0,"d":"$0.00"}},{"$f":"IFERROR('MMA Rev-Exp Region 7'!$S$49/'MMA Rev-Exp Region 7'!$S$9, 0)","v":{"v":0,"d":"$0.00"}},{"$f":"IFERROR('MMA Rev-Exp Region 7'!$T$49/'MMA Rev-Exp Region 7'!$T$9, 0)","v":{"v":0,"d":"$0.00"}},{"$f":"IFERROR('MMA Rev-Exp Region 7'!$U$49/'MMA Rev-Exp Region 7'!$U$9, 0)","v":{"v":0,"d":"$0.00"}},{"$f":"IFERROR('MMA Rev-Exp Region 7'!$V$49/'MMA Rev-Exp Region 7'!$V$9, 0)","v":{"v":0,"d":"$0.00"}},{"$f":"IFERROR('MMA Rev-Exp Region 7'!$W$49/'MMA Rev-Exp Region 7'!$W$9, 0)","v":{"v":0,"d":"$0.00"}},{"$f":"IFERROR('MMA Rev-Exp Region 7'!$X$49/'MMA Rev-Exp Region 7'!$X$9, 0)","v":{"v":0,"d":"$0.00"}},{"$f":"IFERROR('MMA Rev-Exp Region 7'!$Y$49/'MMA Rev-Exp Region 7'!$Y$9, 0)","v":{"v":0,"d":"$0.00"}}]
["MMA",null,null,2016,"2016-12-31","Q2","2017-06-30","Region 7","Operating Expense","Medical Benefits Expense","Transportation Services",7.1,"Transportation FFS",{"$f":"IFERROR('MMA Rev-Exp Region 7'!$O$51/'MMA Rev-Exp Region 7'!$O$9, 0)","v":{"v":0,"d":"$0.00"}},{"$f":"IFERROR('MMA Rev-Exp Region 7'!$P$51/'MMA Rev-Exp Region 7'!$P$9, 0)","v":{"v":0,"d":"$0.00"}},{"$f":"IFERROR('MMA Rev-Exp Region 7'!$Q$51/'MMA Rev-Exp Region 7'!$Q$9, 0)","v":{"v":0,"d":"$0.00"}},{"$f":"IFERROR('MMA Rev-Exp Region 7'!$R$51/'MMA Rev-Exp Region 7'!$R$9, 0)","v":{"v":0,"d":"$0.00"}},{"$f":"IFERROR('MMA Rev-Exp Region 7'!$S$51/'MMA Rev-Exp Region 7'!$S$9, 0)","v":{"v":0,"d":"$0.00"}},{"$f":"IFERROR('MMA Rev-Exp Region 7'!$T$51/'MMA Rev-Exp Region 7'!$T$9, 0)","v":{"v":0,"d":"$0.00"}},{"$f":"IFERROR('MMA Rev-Exp Region 7'!$U$51/'MMA Rev-Exp Region 7'!$U$9, 0)","v":{"v":0,"d":"$0.00"}},{"$f":"IFERROR('MMA Rev-Exp Region 7'!$V$51/'MMA Rev-Exp Region 7'!$V$9, 0)","v":{"v":0,"d":"$0.00"}},{"$f":"IFERROR('MMA Rev-Exp Region 7'!$W$51/'MMA Rev-Exp Region 7'!$W$9, 0)","v":{"v":0,"d":"$0.00"}},{"$f":"IFERROR('MMA Rev-Exp Region 7'!$X$51/'MMA Rev-Exp Region 7'!$X$9, 0)","v":{"v":0,"d":"$0.00"}},{"$f":"IFERROR('MMA Rev-Exp Region 7'!$Y$51/'MMA Rev-Exp Region 7'!$Y$9, 0)","v":{"v":0,"d":"$0.00"}}]
["MMA",null,null,2016,"2016-12-31","Q2","2017-06-30","Region 7","Operating Expense","Medical Benefits Expense","Transportation Services",7.2,"Transportation Subcapitation",{"$f":"IFERROR('MMA Rev-Exp Region 7'!$O$52/'MMA Rev-Exp Region 7'!$O$9, 0)","v":{"v":0,"d":"$0.00"}},{"$f":"IFERROR('MMA Rev-Exp Region 7'!$P$52/'MMA Rev-Exp Region 7'!$P$9, 0)","v":{"v":0,"d":"$0.00"}},{"$f":"IFERROR('MMA Rev-Exp Region 7'!$Q$52/'MMA Rev-Exp Region 7'!$Q$9, 0)","v":{"v":0,"d":"$0.00"}},{"$f":"IFERROR('MMA Rev-Exp Region 7'!$R$52/'MMA Rev-Exp Region 7'!$R$9, 0)","v":{"v":0,"d":"$0.00"}},{"$f":"IFERROR('MMA Rev-Exp Region 7'!$S$52/'MMA Rev-Exp Region 7'!$S$9, 0)","v":{"v":0,"d":"$0.00"}},{"$f":"IFERROR('MMA Rev-Exp Region 7'!$T$52/'MMA Rev-Exp Region 7'!$T$9, 0)","v":{"v":0,"d":"$0.00"}},{"$f":"IFERROR('MMA Rev-Exp Region 7'!$U$52/'MMA Rev-Exp Region 7'!$U$9, 0)","v":{"v":0,"d":"$0.00"}},{"$f":"IFERROR('MMA Rev-Exp Region 7'!$V$52/'MMA Rev-Exp Region 7'!$V$9, 0)","v":{"v":0,"d":"$0.00"}},{"$f":"IFERROR('MMA Rev-Exp Region 7'!$W$52/'MMA Rev-Exp Region 7'!$W$9, 0)","v":{"v":0,"d":"$0.00"}},{"$f":"IFERROR('MMA Rev-Exp Region 7'!$X$52/'MMA Rev-Exp Region 7'!$X$9, 0)","v":{"v":0,"d":"$0.00"}},{"$f":"IFERROR('MMA Rev-Exp Region 7'!$Y$52/'MMA Rev-Exp Region 7'!$Y$9, 0)","v":{"v":0,"d":"$0.00"}}]
["MMA",null,null,2016,"2016-12-31","Q2","2017-06-30","Region 7","Operating Expense","Medical Benefits Expense","Transportation Services",7.3,"Ending IBNP for Transportation",{"$f":"IFERROR('MMA Rev-Exp Region 7'!$O$53/'MMA Rev-Exp Region 7'!$O$9, 0)","v":{"v":0,"d":"$0.00"}},{"$f":"IFERROR('MMA Rev-Exp Region 7'!$P$53/'MMA Rev-Exp Region 7'!$P$9, 0)","v":{"v":0,"d":"$0.00"}},{"$f":"IFERROR('MMA Rev-Exp Region 7'!$Q$53/'MMA Rev-Exp Region 7'!$Q$9, 0)","v":{"v":0,"d":"$0.00"}},{"$f":"IFERROR('MMA Rev-Exp Region 7'!$R$53/'MMA Rev-Exp Region 7'!$R$9, 0)","v":{"v":0,"d":"$0.00"}},{"$f":"IFERROR('MMA Rev-Exp Region 7'!$S$53/'MMA Rev-Exp Region 7'!$S$9, 0)","v":{"v":0,"d":"$0.00"}},{"$f":"IFERROR('MMA Rev-Exp Region 7'!$T$53/'MMA Rev-Exp Region 7'!$T$9, 0)","v":{"v":0,"d":"$0.00"}},{"$f":"IFERROR('MMA Rev-Exp Region 7'!$U$53/'MMA Rev-Exp Region 7'!$U$9, 0)","v":{"v":0,"d":"$0.00"}},{"$f":"IFERROR('MMA Rev-Exp Region 7'!$V$53/'MMA Rev-Exp Region 7'!$V$9, 0)","v":{"v":0,"d":"$0.00"}},{"$f":"IFERROR('MMA Rev-Exp Region 7'!$W$53/'MMA Rev-Exp Region 7'!$W$9, 0)","v":{"v":0,"d":"$0.00"}},{"$f":"IFERROR('MMA Rev-Exp Region 7'!$X$53/'MMA Rev-Exp Region 7'!$X$9, 0)","v":{"v":0,"d":"$0.00"}},{"$f":"IFERROR('MMA Rev-Exp Region 7'!$Y$53/'MMA Rev-Exp Region 7'!$Y$9, 0)","v":{"v":0,"d":"$0.00"}}]
["MMA",null,null,2016,"2016-12-31","Q2","2017-06-30","Region 7","Operating Expense","Medical Benefits Expense","Transportation Services","7.4","Transportation Settlements",{"$f":"IFERROR('MMA Rev-Exp Region 7'!$O$54/'MMA Rev-Exp Region 7'!$O$9, 0)","v":{"v":0,"d":"$0.00"}},{"$f":"IFERROR('MMA Rev-Exp Region 7'!$P$54/'MMA Rev-Exp Region 7'!$P$9, 0)","v":{"v":0,"d":"$0.00"}},{"$f":"IFERROR('MMA Rev-Exp Region 7'!$Q$54/'MMA Rev-Exp Region 7'!$Q$9, 0)","v":{"v":0,"d":"$0.00"}},{"$f":"IFERROR('MMA Rev-Exp Region 7'!$R$54/'MMA Rev-Exp Region 7'!$R$9, 0)","v":{"v":0,"d":"$0.00"}},{"$f":"IFERROR('MMA Rev-Exp Region 7'!$S$54/'MMA Rev-Exp Region 7'!$S$9, 0)","v":{"v":0,"d":"$0.00"}},{"$f":"IFERROR('MMA Rev-Exp Region 7'!$T$54/'MMA Rev-Exp Region 7'!$T$9, 0)","v":{"v":0,"d":"$0.00"}},{"$f":"IFERROR('MMA Rev-Exp Region 7'!$U$54/'MMA Rev-Exp Region 7'!$U$9, 0)","v":{"v":0,"d":"$0.00"}},{"$f":"IFERROR('MMA Rev-Exp Region 7'!$V$54/'MMA Rev-Exp Region 7'!$V$9, 0)","v":{"v":0,"d":"$0.00"}},{"$f":"IFERROR('MMA Rev-Exp Region 7'!$W$54/'MMA Rev-Exp Region 7'!$W$9, 0)","v":{"v":0,"d":"$0.00"}},{"$f":"IFERROR('MMA Rev-Exp Region 7'!$X$54/'MMA Rev-Exp Region 7'!$X$9, 0)","v":{"v":0,"d":"$0.00"}},{"$f":"IFERROR('MMA Rev-Exp Region 7'!$Y$54/'MMA Rev-Exp Region 7'!$Y$9, 0)","v":{"v":0,"d":"$0.00"}}]
["MMA",null,null,2016,"2016-12-31","Q2","2017-06-30","Region 7","Operating Expense","Medical Benefits Expense","Pharmacy Services",8.1,"Prescription Drugs FFS",{"$f":"IFERROR('MMA Rev-Exp Region 7'!$O$56/'MMA Rev-Exp Region 7'!$O$9, 0)","v":{"v":0,"d":"$0.00"}},{"$f":"IFERROR('MMA Rev-Exp Region 7'!$P$56/'MMA Rev-Exp Region 7'!$P$9, 0)","v":{"v":0,"d":"$0.00"}},{"$f":"IFERROR('MMA Rev-Exp Region 7'!$Q$56/'MMA Rev-Exp Region 7'!$Q$9, 0)","v":{"v":0,"d":"$0.00"}},{"$f":"IFERROR('MMA Rev-Exp Region 7'!$R$56/'MMA Rev-Exp Region 7'!$R$9, 0)","v":{"v":0,"d":"$0.00"}},{"$f":"IFERROR('MMA Rev-Exp Region 7'!$S$56/'MMA Rev-Exp Region 7'!$S$9, 0)","v":{"v":0,"d":"$0.00"}},{"$f":"IFERROR('MMA Rev-Exp Region 7'!$T$56/'MMA Rev-Exp Region 7'!$T$9, 0)","v":{"v":0,"d":"$0.00"}},{"$f":"IFERROR('MMA Rev-Exp Region 7'!$U$56/'MMA Rev-Exp Region 7'!$U$9, 0)","v":{"v":0,"d":"$0.00"}},{"$f":"IFERROR('MMA Rev-Exp Region 7'!$V$56/'MMA Rev-Exp Region 7'!$V$9, 0)","v":{"v":0,"d":"$0.00"}},{"$f":"IFERROR('MMA Rev-Exp Region 7'!$W$56/'MMA Rev-Exp Region 7'!$W$9, 0)","v":{"v":0,"d":"$0.00"}},{"$f":"IFERROR('MMA Rev-Exp Region 7'!$X$56/'MMA Rev-Exp Region 7'!$X$9, 0)","v":{"v":0,"d":"$0.00"}},{"$f":"IFERROR('MMA Rev-Exp Region 7'!$Y$56/'MMA Rev-Exp Region 7'!$Y$9, 0)","v":{"v":0,"d":"$0.00"}}]
["MMA",null,null,2016,"2016-12-31","Q2","2017-06-30","Region 7","Operating Expense","Medical Benefits Expense","Pharmacy Services","8.2","Hepatitis C Prescription Drug FFS",{"$f":"IFERROR('MMA Rev-Exp Region 7'!$O$57/'MMA Rev-Exp Region 7'!$O$9, 0)","v":{"v":0,"d":"$0.00"}},{"$f":"IFERROR('MMA Rev-Exp Region 7'!$P$57/'MMA Rev-Exp Region 7'!$P$9, 0)","v":{"v":0,"d":"$0.00"}},{"$f":"IFERROR('MMA Rev-Exp Region 7'!$Q$57/'MMA Rev-Exp Region 7'!$Q$9, 0)","v":{"v":0,"d":"$0.00"}},{"$f":"IFERROR('MMA Rev-Exp Region 7'!$R$57/'MMA Rev-Exp Region 7'!$R$9, 0)","v":{"v":0,"d":"$0.00"}},{"$f":"IFERROR('MMA Rev-Exp Region 7'!$S$57/'MMA Rev-Exp Region 7'!$S$9, 0)","v":{"v":0,"d":"$0.00"}},{"$f":"IFERROR('MMA Rev-Exp Region 7'!$T$57/'MMA Rev-Exp Region 7'!$T$9, 0)","v":{"v":0,"d":"$0.00"}},{"$f":"IFERROR('MMA Rev-Exp Region 7'!$U$57/'MMA Rev-Exp Region 7'!$U$9, 0)","v":{"v":0,"d":"$0.00"}},{"$f":"IFERROR('MMA Rev-Exp Region 7'!$V$57/'MMA Rev-Exp Region 7'!$V$9, 0)","v":{"v":0,"d":"$0.00"}},{"$f":"IFERROR('MMA Rev-Exp Region 7'!$W$57/'MMA Rev-Exp Region 7'!$W$9, 0)","v":{"v":0,"d":"$0.00"}},{"$f":"IFERROR('MMA Rev-Exp Region 7'!$X$57/'MMA Rev-Exp Region 7'!$X$9, 0)","v":{"v":0,"d":"$0.00"}},{"$f":"IFERROR('MMA Rev-Exp Region 7'!$Y$57/'MMA Rev-Exp Region 7'!$Y$9, 0)","v":{"v":0,"d":"$0.00"}}]
["MMA",null,null,2016,"2016-12-31","Q2","2017-06-30","Region 7","Operating Expense","Medical Benefits Expense","Pharmacy Services","8.3","Ending IBNP for Prescription Drugs",{"$f":"IFERROR('MMA Rev-Exp Region 7'!$O$58/'MMA Rev-Exp Region 7'!$O$9, 0)","v":{"v":0,"d":"$0.00"}},{"$f":"IFERROR('MMA Rev-Exp Region 7'!$P$58/'MMA Rev-Exp Region 7'!$P$9, 0)","v":{"v":0,"d":"$0.00"}},{"$f":"IFERROR('MMA Rev-Exp Region 7'!$Q$58/'MMA Rev-Exp Region 7'!$Q$9, 0)","v":{"v":0,"d":"$0.00"}},{"$f":"IFERROR('MMA Rev-Exp Region 7'!$R$58/'MMA Rev-Exp Region 7'!$R$9, 0)","v":{"v":0,"d":"$0.00"}},{"$f":"IFERROR('MMA Rev-Exp Region 7'!$S$58/'MMA Rev-Exp Region 7'!$S$9, 0)","v":{"v":0,"d":"$0.00"}},{"$f":"IFERROR('MMA Rev-Exp Region 7'!$T$58/'MMA Rev-Exp Region 7'!$T$9, 0)","v":{"v":0,"d":"$0.00"}},{"$f":"IFERROR('MMA Rev-Exp Region 7'!$U$58/'MMA Rev-Exp Region 7'!$U$9, 0)","v":{"v":0,"d":"$0.00"}},{"$f":"IFERROR('MMA Rev-Exp Region 7'!$V$58/'MMA Rev-Exp Region 7'!$V$9, 0)","v":{"v":0,"d":"$0.00"}},{"$f":"IFERROR('MMA Rev-Exp Region 7'!$W$58/'MMA Rev-Exp Region 7'!$W$9, 0)","v":{"v":0,"d":"$0.00"}},{"$f":"IFERROR('MMA Rev-Exp Region 7'!$X$58/'MMA Rev-Exp Region 7'!$X$9, 0)","v":{"v":0,"d":"$0.00"}},{"$f":"IFERROR('MMA Rev-Exp Region 7'!$Y$58/'MMA Rev-Exp Region 7'!$Y$9, 0)","v":{"v":0,"d":"$0.00"}}]
["MMA",null,null,2016,"2016-12-31","Q2","2017-06-30","Region 7","Operating Expense","Medical Benefits Expense","Pharmacy Services","8.4","Prescription Drug Rebates ",{"$f":"IFERROR('MMA Rev-Exp Region 7'!$O$59/'MMA Rev-Exp Region 7'!$O$9, 0)","v":{"v":0,"d":"$0.00"}},{"$f":"IFERROR('MMA Rev-Exp Region 7'!$P$59/'MMA Rev-Exp Region 7'!$P$9, 0)","v":{"v":0,"d":"$0.00"}},{"$f":"IFERROR('MMA Rev-Exp Region 7'!$Q$59/'MMA Rev-Exp Region 7'!$Q$9, 0)","v":{"v":0,"d":"$0.00"}},{"$f":"IFERROR('MMA Rev-Exp Region 7'!$R$59/'MMA Rev-Exp Region 7'!$R$9, 0)","v":{"v":0,"d":"$0.00"}},{"$f":"IFERROR('MMA Rev-Exp Region 7'!$S$59/'MMA Rev-Exp Region 7'!$S$9, 0)","v":{"v":0,"d":"$0.00"}},{"$f":"IFERROR('MMA Rev-Exp Region 7'!$T$59/'MMA Rev-Exp Region 7'!$T$9, 0)","v":{"v":0,"d":"$0.00"}},{"$f":"IFERROR('MMA Rev-Exp Region 7'!$U$59/'MMA Rev-Exp Region 7'!$U$9, 0)","v":{"v":0,"d":"$0.00"}},{"$f":"IFERROR('MMA Rev-Exp Region 7'!$V$59/'MMA Rev-Exp Region 7'!$V$9, 0)","v":{"v":0,"d":"$0.00"}},{"$f":"IFERROR('MMA Rev-Exp Region 7'!$W$59/'MMA Rev-Exp Region 7'!$W$9, 0)","v":{"v":0,"d":"$0.00"}},{"$f":"IFERROR('MMA Rev-Exp Region 7'!$X$59/'MMA Rev-Exp Region 7'!$X$9, 0)","v":{"v":0,"d":"$0.00"}},{"$f":"IFERROR('MMA Rev-Exp Region 7'!$Y$59/'MMA Rev-Exp Region 7'!$Y$9, 0)","v":{"v":0,"d":"$0.00"}}]
["MMA",null,null,2016,"2016-12-31","Q2","2017-06-30","Region 7","Operating Expense","Medical Benefits Expense","Pharmacy Services","8.5","Ending accrual for Rebates receivable",{"$f":"IFERROR('MMA Rev-Exp Region 7'!$O$60/'MMA Rev-Exp Region 7'!$O$9, 0)","v":{"v":0,"d":"$0.00"}},{"$f":"IFERROR('MMA Rev-Exp Region 7'!$P$60/'MMA Rev-Exp Region 7'!$P$9, 0)","v":{"v":0,"d":"$0.00"}},{"$f":"IFERROR('MMA Rev-Exp Region 7'!$Q$60/'MMA Rev-Exp Region 7'!$Q$9, 0)","v":{"v":0,"d":"$0.00"}},{"$f":"IFERROR('MMA Rev-Exp Region 7'!$R$60/'MMA Rev-Exp Region 7'!$R$9, 0)","v":{"v":0,"d":"$0.00"}},{"$f":"IFERROR('MMA Rev-Exp Region 7'!$S$60/'MMA Rev-Exp Region 7'!$S$9, 0)","v":{"v":0,"d":"$0.00"}},{"$f":"IFERROR('MMA Rev-Exp Region 7'!$T$60/'MMA Rev-Exp Region 7'!$T$9, 0)","v":{"v":0,"d":"$0.00"}},{"$f":"IFERROR('MMA Rev-Exp Region 7'!$U$60/'MMA Rev-Exp Region 7'!$U$9, 0)","v":{"v":0,"d":"$0.00"}},{"$f":"IFERROR('MMA Rev-Exp Region 7'!$V$60/'MMA Rev-Exp Region 7'!$V$9, 0)","v":{"v":0,"d":"$0.00"}},{"$f":"IFERROR('MMA Rev-Exp Region 7'!$W$60/'MMA Rev-Exp Region 7'!$W$9, 0)","v":{"v":0,"d":"$0.00"}},{"$f":"IFERROR('MMA Rev-Exp Region 7'!$X$60/'MMA Rev-Exp Region 7'!$X$9, 0)","v":{"v":0,"d":"$0.00"}},{"$f":"IFERROR('MMA Rev-Exp Region 7'!$Y$60/'MMA Rev-Exp Region 7'!$Y$9, 0)","v":{"v":0,"d":"$0.00"}}]
["MMA",null,null,2016,"2016-12-31","Q2","2017-06-30","Region 7","Operating Expense","Medical Benefits Expense","Pharmacy Services","8.6","Prescription Drugs Subcapitation",{"$f":"IFERROR('MMA Rev-Exp Region 7'!$O$61/'MMA Rev-Exp Region 7'!$O$9, 0)","v":{"v":0,"d":"$0.00"}},{"$f":"IFERROR('MMA Rev-Exp Region 7'!$P$61/'MMA Rev-Exp Region 7'!$P$9, 0)","v":{"v":0,"d":"$0.00"}},{"$f":"IFERROR('MMA Rev-Exp Region 7'!$Q$61/'MMA Rev-Exp Region 7'!$Q$9, 0)","v":{"v":0,"d":"$0.00"}},{"$f":"IFERROR('MMA Rev-Exp Region 7'!$R$61/'MMA Rev-Exp Region 7'!$R$9, 0)","v":{"v":0,"d":"$0.00"}},{"$f":"IFERROR('MMA Rev-Exp Region 7'!$S$61/'MMA Rev-Exp Region 7'!$S$9, 0)","v":{"v":0,"d":"$0.00"}},{"$f":"IFERROR('MMA Rev-Exp Region 7'!$T$61/'MMA Rev-Exp Region 7'!$T$9, 0)","v":{"v":0,"d":"$0.00"}},{"$f":"IFERROR('MMA Rev-Exp Region 7'!$U$61/'MMA Rev-Exp Region 7'!$U$9, 0)","v":{"v":0,"d":"$0.00"}},{"$f":"IFERROR('MMA Rev-Exp Region 7'!$V$61/'MMA Rev-Exp Region 7'!$V$9, 0)","v":{"v":0,"d":"$0.00"}},{"$f":"IFERROR('MMA Rev-Exp Region 7'!$W$61/'MMA Rev-Exp Region 7'!$W$9, 0)","v":{"v":0,"d":"$0.00"}},{"$f":"IFERROR('MMA Rev-Exp Region 7'!$X$61/'MMA Rev-Exp Region 7'!$X$9, 0)","v":{"v":0,"d":"$0.00"}},{"$f":"IFERROR('MMA Rev-Exp Region 7'!$Y$61/'MMA Rev-Exp Region 7'!$Y$9, 0)","v":{"v":0,"d":"$0.00"}}]
["MMA",null,null,2016,"2016-12-31","Q2","2017-06-30","Region 7","Operating Expense","Medical Benefits Expense","Pharmacy Services","8.7","Prescription Drug Settlements",{"$f":"IFERROR('MMA Rev-Exp Region 7'!$O$62/'MMA Rev-Exp Region 7'!$O$9, 0)","v":{"v":0,"d":"$0.00"}},{"$f":"IFERROR('MMA Rev-Exp Region 7'!$P$62/'MMA Rev-Exp Region 7'!$P$9, 0)","v":{"v":0,"d":"$0.00"}},{"$f":"IFERROR('MMA Rev-Exp Region 7'!$Q$62/'MMA Rev-Exp Region 7'!$Q$9, 0)","v":{"v":0,"d":"$0.00"}},{"$f":"IFERROR('MMA Rev-Exp Region 7'!$R$62/'MMA Rev-Exp Region 7'!$R$9, 0)","v":{"v":0,"d":"$0.00"}},{"$f":"IFERROR('MMA Rev-Exp Region 7'!$S$62/'MMA Rev-Exp Region 7'!$S$9, 0)","v":{"v":0,"d":"$0.00"}},{"$f":"IFERROR('MMA Rev-Exp Region 7'!$T$62/'MMA Rev-Exp Region 7'!$T$9, 0)","v":{"v":0,"d":"$0.00"}},{"$f":"IFERROR('MMA Rev-Exp Region 7'!$U$62/'MMA Rev-Exp Region 7'!$U$9, 0)","v":{"v":0,"d":"$0.00"}},{"$f":"IFERROR('MMA Rev-Exp Region 7'!$V$62/'MMA Rev-Exp Region 7'!$V$9, 0)","v":{"v":0,"d":"$0.00"}},{"$f":"IFERROR('MMA Rev-Exp Region 7'!$W$62/'MMA Rev-Exp Region 7'!$W$9, 0)","v":{"v":0,"d":"$0.00"}},{"$f":"IFERROR('MMA Rev-Exp Region 7'!$X$62/'MMA Rev-Exp Region 7'!$X$9, 0)","v":{"v":0,"d":"$0.00"}},{"$f":"IFERROR('MMA Rev-Exp Region 7'!$Y$62/'MMA Rev-Exp Region 7'!$Y$9, 0)","v":{"v":0,"d":"$0.00"}}]
["MMA",null,null,2016,"2016-12-31","Q2","2017-06-30","Region 7","Operating Expense","Medical Benefits Expense","Other MMA Services",9.1,"Home Health, Private Duty Nursing, Personal Care FFS",{"$f":"IFERROR('MMA Rev-Exp Region 7'!$O$64/'MMA Rev-Exp Region 7'!$O$9, 0)","v":{"v":0,"d":"$0.00"}},{"$f":"IFERROR('MMA Rev-Exp Region 7'!$P$64/'MMA Rev-Exp Region 7'!$P$9, 0)","v":{"v":0,"d":"$0.00"}},{"$f":"IFERROR('MMA Rev-Exp Region 7'!$Q$64/'MMA Rev-Exp Region 7'!$Q$9, 0)","v":{"v":0,"d":"$0.00"}},{"$f":"IFERROR('MMA Rev-Exp Region 7'!$R$64/'MMA Rev-Exp Region 7'!$R$9, 0)","v":{"v":0,"d":"$0.00"}},{"$f":"IFERROR('MMA Rev-Exp Region 7'!$S$64/'MMA Rev-Exp Region 7'!$S$9, 0)","v":{"v":0,"d":"$0.00"}},{"$f":"IFERROR('MMA Rev-Exp Region 7'!$T$64/'MMA Rev-Exp Region 7'!$T$9, 0)","v":{"v":0,"d":"$0.00"}},{"$f":"IFERROR('MMA Rev-Exp Region 7'!$U$64/'MMA Rev-Exp Region 7'!$U$9, 0)","v":{"v":0,"d":"$0.00"}},{"$f":"IFERROR('MMA Rev-Exp Region 7'!$V$64/'MMA Rev-Exp Region 7'!$V$9, 0)","v":{"v":0,"d":"$0.00"}},{"$f":"IFERROR('MMA Rev-Exp Region 7'!$W$64/'MMA Rev-Exp Region 7'!$W$9, 0)","v":{"v":0,"d":"$0.00"}},{"$f":"IFERROR('MMA Rev-Exp Region 7'!$X$64/'MMA Rev-Exp Region 7'!$X$9, 0)","v":{"v":0,"d":"$0.00"}},{"$f":"IFERROR('MMA Rev-Exp Region 7'!$Y$64/'MMA Rev-Exp Region 7'!$Y$9, 0)","v":{"v":0,"d":"$0.00"}}]
["MMA",null,null,2016,"2016-12-31","Q2","2017-06-30","Region 7","Operating Expense","Medical Benefits Expense","Other MMA Services","9.2","Hospice FFS",{"$f":"IFERROR('MMA Rev-Exp Region 7'!$O$65/'MMA Rev-Exp Region 7'!$O$9, 0)","v":{"v":0,"d":"$0.00"}},{"$f":"IFERROR('MMA Rev-Exp Region 7'!$P$65/'MMA Rev-Exp Region 7'!$P$9, 0)","v":{"v":0,"d":"$0.00"}},{"$f":"IFERROR('MMA Rev-Exp Region 7'!$Q$65/'MMA Rev-Exp Region 7'!$Q$9, 0)","v":{"v":0,"d":"$0.00"}},{"$f":"IFERROR('MMA Rev-Exp Region 7'!$R$65/'MMA Rev-Exp Region 7'!$R$9, 0)","v":{"v":0,"d":"$0.00"}},{"$f":"IFERROR('MMA Rev-Exp Region 7'!$S$65/'MMA Rev-Exp Region 7'!$S$9, 0)","v":{"v":0,"d":"$0.00"}},{"$f":"IFERROR('MMA Rev-Exp Region 7'!$T$65/'MMA Rev-Exp Region 7'!$T$9, 0)","v":{"v":0,"d":"$0.00"}},{"$f":"IFERROR('MMA Rev-Exp Region 7'!$U$65/'MMA Rev-Exp Region 7'!$U$9, 0)","v":{"v":0,"d":"$0.00"}},{"$f":"IFERROR('MMA Rev-Exp Region 7'!$V$65/'MMA Rev-Exp Region 7'!$V$9, 0)","v":{"v":0,"d":"$0.00"}},{"$f":"IFERROR('MMA Rev-Exp Region 7'!$W$65/'MMA Rev-Exp Region 7'!$W$9, 0)","v":{"v":0,"d":"$0.00"}},{"$f":"IFERROR('MMA Rev-Exp Region 7'!$X$65/'MMA Rev-Exp Region 7'!$X$9, 0)","v":{"v":0,"d":"$0.00"}},{"$f":"IFERROR('MMA Rev-Exp Region 7'!$Y$65/'MMA Rev-Exp Region 7'!$Y$9, 0)","v":{"v":0,"d":"$0.00"}}]
["MMA",null,null,2016,"2016-12-31","Q2","2017-06-30","Region 7","Operating Expense","Medical Benefits Expense","Other MMA Services","9.3","DME FFS",{"$f":"IFERROR('MMA Rev-Exp Region 7'!$O$66/'MMA Rev-Exp Region 7'!$O$9, 0)","v":{"v":0,"d":"$0.00"}},{"$f":"IFERROR('MMA Rev-Exp Region 7'!$P$66/'MMA Rev-Exp Region 7'!$P$9, 0)","v":{"v":0,"d":"$0.00"}},{"$f":"IFERROR('MMA Rev-Exp Region 7'!$Q$66/'MMA Rev-Exp Region 7'!$Q$9, 0)","v":{"v":0,"d":"$0.00"}},{"$f":"IFERROR('MMA Rev-Exp Region 7'!$R$66/'MMA Rev-Exp Region 7'!$R$9, 0)","v":{"v":0,"d":"$0.00"}},{"$f":"IFERROR('MMA Rev-Exp Region 7'!$S$66/'MMA Rev-Exp Region 7'!$S$9, 0)","v":{"v":0,"d":"$0.00"}},{"$f":"IFERROR('MMA Rev-Exp Region 7'!$T$66/'MMA Rev-Exp Region 7'!$T$9, 0)","v":{"v":0,"d":"$0.00"}},{"$f":"IFERROR('MMA Rev-Exp Region 7'!$U$66/'MMA Rev-Exp Region 7'!$U$9, 0)","v":{"v":0,"d":"$0.00"}},{"$f":"IFERROR('MMA Rev-Exp Region 7'!$V$66/'MMA Rev-Exp Region 7'!$V$9, 0)","v":{"v":0,"d":"$0.00"}},{"$f":"IFERROR('MMA Rev-Exp Region 7'!$W$66/'MMA Rev-Exp Region 7'!$W$9, 0)","v":{"v":0,"d":"$0.00"}},{"$f":"IFERROR('MMA Rev-Exp Region 7'!$X$66/'MMA Rev-Exp Region 7'!$X$9, 0)","v":{"v":0,"d":"$0.00"}},{"$f":"IFERROR('MMA Rev-Exp Region 7'!$Y$66/'MMA Rev-Exp Region 7'!$Y$9, 0)","v":{"v":0,"d":"$0.00"}}]
["MMA",null,null,2016,"2016-12-31","Q2","2017-06-30","Region 7","Operating Expense","Medical Benefits Expense","Other MMA Services","9.4","Other State Plan Services FFS",{"$f":"IFERROR('MMA Rev-Exp Region 7'!$O$67/'MMA Rev-Exp Region 7'!$O$9, 0)","v":{"v":0,"d":"$0.00"}},{"$f":"IFERROR('MMA Rev-Exp Region 7'!$P$67/'MMA Rev-Exp Region 7'!$P$9, 0)","v":{"v":0,"d":"$0.00"}},{"$f":"IFERROR('MMA Rev-Exp Region 7'!$Q$67/'MMA Rev-Exp Region 7'!$Q$9, 0)","v":{"v":0,"d":"$0.00"}},{"$f":"IFERROR('MMA Rev-Exp Region 7'!$R$67/'MMA Rev-Exp Region 7'!$R$9, 0)","v":{"v":0,"d":"$0.00"}},{"$f":"IFERROR('MMA Rev-Exp Region 7'!$S$67/'MMA Rev-Exp Region 7'!$S$9, 0)","v":{"v":0,"d":"$0.00"}},{"$f":"IFERROR('MMA Rev-Exp Region 7'!$T$67/'MMA Rev-Exp Region 7'!$T$9, 0)","v":{"v":0,"d":"$0.00"}},{"$f":"IFERROR('MMA Rev-Exp Region 7'!$U$67/'MMA Rev-Exp Region 7'!$U$9, 0)","v":{"v":0,"d":"$0.00"}},{"$f":"IFERROR('MMA Rev-Exp Region 7'!$V$67/'MMA Rev-Exp Region 7'!$V$9, 0)","v":{"v":0,"d":"$0.00"}},{"$f":"IFERROR('MMA Rev-Exp Region 7'!$W$67/'MMA Rev-Exp Region 7'!$W$9, 0)","v":{"v":0,"d":"$0.00"}},{"$f":"IFERROR('MMA Rev-Exp Region 7'!$X$67/'MMA Rev-Exp Region 7'!$X$9, 0)","v":{"v":0,"d":"$0.00"}},{"$f":"IFERROR('MMA Rev-Exp Region 7'!$Y$67/'MMA Rev-Exp Region 7'!$Y$9, 0)","v":{"v":0,"d":"$0.00"}}]
["MMA",null,null,2016,"2016-12-31","Q2","2017-06-30","Region 7","Operating Expense","Medical Benefits Expense","Other MMA Services","9.5","Other Services Subcapitation",{"$f":"IFERROR('MMA Rev-Exp Region 7'!$O$68/'MMA Rev-Exp Region 7'!$O$9, 0)","v":{"v":0,"d":"$0.00"}},{"$f":"IFERROR('MMA Rev-Exp Region 7'!$P$68/'MMA Rev-Exp Region 7'!$P$9, 0)","v":{"v":0,"d":"$0.00"}},{"$f":"IFERROR('MMA Rev-Exp Region 7'!$Q$68/'MMA Rev-Exp Region 7'!$Q$9, 0)","v":{"v":0,"d":"$0.00"}},{"$f":"IFERROR('MMA Rev-Exp Region 7'!$R$68/'MMA Rev-Exp Region 7'!$R$9, 0)","v":{"v":0,"d":"$0.00"}},{"$f":"IFERROR('MMA Rev-Exp Region 7'!$S$68/'MMA Rev-Exp Region 7'!$S$9, 0)","v":{"v":0,"d":"$0.00"}},{"$f":"IFERROR('MMA Rev-Exp Region 7'!$T$68/'MMA Rev-Exp Region 7'!$T$9, 0)","v":{"v":0,"d":"$0.00"}},{"$f":"IFERROR('MMA Rev-Exp Region 7'!$U$68/'MMA Rev-Exp Region 7'!$U$9, 0)","v":{"v":0,"d":"$0.00"}},{"$f":"IFERROR('MMA Rev-Exp Region 7'!$V$68/'MMA Rev-Exp Region 7'!$V$9, 0)","v":{"v":0,"d":"$0.00"}},{"$f":"IFERROR('MMA Rev-Exp Region 7'!$W$68/'MMA Rev-Exp Region 7'!$W$9, 0)","v":{"v":0,"d":"$0.00"}},{"$f":"IFERROR('MMA Rev-Exp Region 7'!$X$68/'MMA Rev-Exp Region 7'!$X$9, 0)","v":{"v":0,"d":"$0.00"}},{"$f":"IFERROR('MMA Rev-Exp Region 7'!$Y$68/'MMA Rev-Exp Region 7'!$Y$9, 0)","v":{"v":0,"d":"$0.00"}}]
["MMA",null,null,2016,"2016-12-31","Q2","2017-06-30","Region 7","Operating Expense","Medical Benefits Expense","Other MMA Services","9.6","Ending IBNP for Other Services",{"$f":"IFERROR('MMA Rev-Exp Region 7'!$O$69/'MMA Rev-Exp Region 7'!$O$9, 0)","v":{"v":0,"d":"$0.00"}},{"$f":"IFERROR('MMA Rev-Exp Region 7'!$P$69/'MMA Rev-Exp Region 7'!$P$9, 0)","v":{"v":0,"d":"$0.00"}},{"$f":"IFERROR('MMA Rev-Exp Region 7'!$Q$69/'MMA Rev-Exp Region 7'!$Q$9, 0)","v":{"v":0,"d":"$0.00"}},{"$f":"IFERROR('MMA Rev-Exp Region 7'!$R$69/'MMA Rev-Exp Region 7'!$R$9, 0)","v":{"v":0,"d":"$0.00"}},{"$f":"IFERROR('MMA Rev-Exp Region 7'!$S$69/'MMA Rev-Exp Region 7'!$S$9, 0)","v":{"v":0,"d":"$0.00"}},{"$f":"IFERROR('MMA Rev-Exp Region 7'!$T$69/'MMA Rev-Exp Region 7'!$T$9, 0)","v":{"v":0,"d":"$0.00"}},{"$f":"IFERROR('MMA Rev-Exp Region 7'!$U$69/'MMA Rev-Exp Region 7'!$U$9, 0)","v":{"v":0,"d":"$0.00"}},{"$f":"IFERROR('MMA Rev-Exp Region 7'!$V$69/'MMA Rev-Exp Region 7'!$V$9, 0)","v":{"v":0,"d":"$0.00"}},{"$f":"IFERROR('MMA Rev-Exp Region 7'!$W$69/'MMA Rev-Exp Region 7'!$W$9, 0)","v":{"v":0,"d":"$0.00"}},{"$f":"IFERROR('MMA Rev-Exp Region 7'!$X$69/'MMA Rev-Exp Region 7'!$X$9, 0)","v":{"v":0,"d":"$0.00"}},{"$f":"IFERROR('MMA Rev-Exp Region 7'!$Y$69/'MMA Rev-Exp Region 7'!$Y$9, 0)","v":{"v":0,"d":"$0.00"}}]
["MMA",null,null,2016,"2016-12-31","Q2","2017-06-30","Region 7","Operating Expense","Medical Benefits Expense","Other MMA Services","9.7","Other Services Settlements",{"$f":"IFERROR('MMA Rev-Exp Region 7'!$O$70/'MMA Rev-Exp Region 7'!$O$9, 0)","v":{"v":0,"d":"$0.00"}},{"$f":"IFERROR('MMA Rev-Exp Region 7'!$P$70/'MMA Rev-Exp Region 7'!$P$9, 0)","v":{"v":0,"d":"$0.00"}},{"$f":"IFERROR('MMA Rev-Exp Region 7'!$Q$70/'MMA Rev-Exp Region 7'!$Q$9, 0)","v":{"v":0,"d":"$0.00"}},{"$f":"IFERROR('MMA Rev-Exp Region 7'!$R$70/'MMA Rev-Exp Region 7'!$R$9, 0)","v":{"v":0,"d":"$0.00"}},{"$f":"IFERROR('MMA Rev-Exp Region 7'!$S$70/'MMA Rev-Exp Region 7'!$S$9, 0)","v":{"v":0,"d":"$0.00"}},{"$f":"IFERROR('MMA Rev-Exp Region 7'!$T$70/'MMA Rev-Exp Region 7'!$T$9, 0)","v":{"v":0,"d":"$0.00"}},{"$f":"IFERROR('MMA Rev-Exp Region 7'!$U$70/'MMA Rev-Exp Region 7'!$U$9, 0)","v":{"v":0,"d":"$0.00"}},{"$f":"IFERROR('MMA Rev-Exp Region 7'!$V$70/'MMA Rev-Exp Region 7'!$V$9, 0)","v":{"v":0,"d":"$0.00"}},{"$f":"IFERROR('MMA Rev-Exp Region 7'!$W$70/'MMA Rev-Exp Region 7'!$W$9, 0)","v":{"v":0,"d":"$0.00"}},{"$f":"IFERROR('MMA Rev-Exp Region 7'!$X$70/'MMA Rev-Exp Region 7'!$X$9, 0)","v":{"v":0,"d":"$0.00"}},{"$f":"IFERROR('MMA Rev-Exp Region 7'!$Y$70/'MMA Rev-Exp Region 7'!$Y$9, 0)","v":{"v":0,"d":"$0.00"}}]
["MMA",null,null,2016,"2016-12-31","Q2","2017-06-30","Region 7","Operating Expense","Medical Benefits Expense","Expanded Benefits","10.1","Expanded Benefits FFS",{"$f":"IFERROR('MMA Rev-Exp Region 7'!$O$72/'MMA Rev-Exp Region 7'!$O$9, 0)","v":{"v":0,"d":"$0.00"}},{"$f":"IFERROR('MMA Rev-Exp Region 7'!$P$72/'MMA Rev-Exp Region 7'!$P$9, 0)","v":{"v":0,"d":"$0.00"}},{"$f":"IFERROR('MMA Rev-Exp Region 7'!$Q$72/'MMA Rev-Exp Region 7'!$Q$9, 0)","v":{"v":0,"d":"$0.00"}},{"$f":"IFERROR('MMA Rev-Exp Region 7'!$R$72/'MMA Rev-Exp Region 7'!$R$9, 0)","v":{"v":0,"d":"$0.00"}},{"$f":"IFERROR('MMA Rev-Exp Region 7'!$S$72/'MMA Rev-Exp Region 7'!$S$9, 0)","v":{"v":0,"d":"$0.00"}},{"$f":"IFERROR('MMA Rev-Exp Region 7'!$T$72/'MMA Rev-Exp Region 7'!$T$9, 0)","v":{"v":0,"d":"$0.00"}},{"$f":"IFERROR('MMA Rev-Exp Region 7'!$U$72/'MMA Rev-Exp Region 7'!$U$9, 0)","v":{"v":0,"d":"$0.00"}},{"$f":"IFERROR('MMA Rev-Exp Region 7'!$V$72/'MMA Rev-Exp Region 7'!$V$9, 0)","v":{"v":0,"d":"$0.00"}},{"$f":"IFERROR('MMA Rev-Exp Region 7'!$W$72/'MMA Rev-Exp Region 7'!$W$9, 0)","v":{"v":0,"d":"$0.00"}},{"$f":"IFERROR('MMA Rev-Exp Region 7'!$X$72/'MMA Rev-Exp Region 7'!$X$9, 0)","v":{"v":0,"d":"$0.00"}},{"$f":"IFERROR('MMA Rev-Exp Region 7'!$Y$72/'MMA Rev-Exp Region 7'!$Y$9, 0)","v":{"v":0,"d":"$0.00"}}]
["MMA",null,null,2016,"2016-12-31","Q2","2017-06-30","Region 7","Operating Expense","Medical Benefits Expense","Expanded Benefits","10.2","Expanded benefits Subcapitation",{"$f":"IFERROR('MMA Rev-Exp Region 7'!$O$73/'MMA Rev-Exp Region 7'!$O$9, 0)","v":{"v":0,"d":"$0.00"}},{"$f":"IFERROR('MMA Rev-Exp Region 7'!$P$73/'MMA Rev-Exp Region 7'!$P$9, 0)","v":{"v":0,"d":"$0.00"}},{"$f":"IFERROR('MMA Rev-Exp Region 7'!$Q$73/'MMA Rev-Exp Region 7'!$Q$9, 0)","v":{"v":0,"d":"$0.00"}},{"$f":"IFERROR('MMA Rev-Exp Region 7'!$R$73/'MMA Rev-Exp Region 7'!$R$9, 0)","v":{"v":0,"d":"$0.00"}},{"$f":"IFERROR('MMA Rev-Exp Region 7'!$S$73/'MMA Rev-Exp Region 7'!$S$9, 0)","v":{"v":0,"d":"$0.00"}},{"$f":"IFERROR('MMA Rev-Exp Region 7'!$T$73/'MMA Rev-Exp Region 7'!$T$9, 0)","v":{"v":0,"d":"$0.00"}},{"$f":"IFERROR('MMA Rev-Exp Region 7'!$U$73/'MMA Rev-Exp Region 7'!$U$9, 0)","v":{"v":0,"d":"$0.00"}},{"$f":"IFERROR('MMA Rev-Exp Region 7'!$V$73/'MMA Rev-Exp Region 7'!$V$9, 0)","v":{"v":0,"d":"$0.00"}},{"$f":"IFERROR('MMA Rev-Exp Region 7'!$W$73/'MMA Rev-Exp Region 7'!$W$9, 0)","v":{"v":0,"d":"$0.00"}},{"$f":"IFERROR('MMA Rev-Exp Region 7'!$X$73/'MMA Rev-Exp Region 7'!$X$9, 0)","v":{"v":0,"d":"$0.00"}},{"$f":"IFERROR('MMA Rev-Exp Region 7'!$Y$73/'MMA Rev-Exp Region 7'!$Y$9, 0)","v":{"v":0,"d":"$0.00"}}]
["MMA",null,null,2016,"2016-12-31","Q2","2017-06-30","Region 7","Operating Expense","Medical Benefits Expense","Expanded Benefits","10.3","Ending IBNP for Expanded Benefits",{"$f":"IFERROR('MMA Rev-Exp Region 7'!$O$74/'MMA Rev-Exp Region 7'!$O$9, 0)","v":{"v":0,"d":"$0.00"}},{"$f":"IFERROR('MMA Rev-Exp Region 7'!$P$74/'MMA Rev-Exp Region 7'!$P$9, 0)","v":{"v":0,"d":"$0.00"}},{"$f":"IFERROR('MMA Rev-Exp Region 7'!$Q$74/'MMA Rev-Exp Region 7'!$Q$9, 0)","v":{"v":0,"d":"$0.00"}},{"$f":"IFERROR('MMA Rev-Exp Region 7'!$R$74/'MMA Rev-Exp Region 7'!$R$9, 0)","v":{"v":0,"d":"$0.00"}},{"$f":"IFERROR('MMA Rev-Exp Region 7'!$S$74/'MMA Rev-Exp Region 7'!$S$9, 0)","v":{"v":0,"d":"$0.00"}},{"$f":"IFERROR('MMA Rev-Exp Region 7'!$T$74/'MMA Rev-Exp Region 7'!$T$9, 0)","v":{"v":0,"d":"$0.00"}},{"$f":"IFERROR('MMA Rev-Exp Region 7'!$U$74/'MMA Rev-Exp Region 7'!$U$9, 0)","v":{"v":0,"d":"$0.00"}},{"$f":"IFERROR('MMA Rev-Exp Region 7'!$V$74/'MMA Rev-Exp Region 7'!$V$9, 0)","v":{"v":0,"d":"$0.00"}},{"$f":"IFERROR('MMA Rev-Exp Region 7'!$W$74/'MMA Rev-Exp Region 7'!$W$9, 0)","v":{"v":0,"d":"$0.00"}},{"$f":"IFERROR('MMA Rev-Exp Region 7'!$X$74/'MMA Rev-Exp Region 7'!$X$9, 0)","v":{"v":0,"d":"$0.00"}},{"$f":"IFERROR('MMA Rev-Exp Region 7'!$Y$74/'MMA Rev-Exp Region 7'!$Y$9, 0)","v":{"v":0,"d":"$0.00"}}]
["MMA",null,null,2016,"2016-12-31","Q2","2017-06-30","Region 7","Operating Expense","Medical Benefits Expense","Expanded Benefits","10.4","Expanded Benefits Settlements",{"$f":"IFERROR('MMA Rev-Exp Region 7'!$O$75/'MMA Rev-Exp Region 7'!$O$9, 0)","v":{"v":0,"d":"$0.00"}},{"$f":"IFERROR('MMA Rev-Exp Region 7'!$P$75/'MMA Rev-Exp Region 7'!$P$9, 0)","v":{"v":0,"d":"$0.00"}},{"$f":"IFERROR('MMA Rev-Exp Region 7'!$Q$75/'MMA Rev-Exp Region 7'!$Q$9, 0)","v":{"v":0,"d":"$0.00"}},{"$f":"IFERROR('MMA Rev-Exp Region 7'!$R$75/'MMA Rev-Exp Region 7'!$R$9, 0)","v":{"v":0,"d":"$0.00"}},{"$f":"IFERROR('MMA Rev-Exp Region 7'!$S$75/'MMA Rev-Exp Region 7'!$S$9, 0)","v":{"v":0,"d":"$0.00"}},{"$f":"IFERROR('MMA Rev-Exp Region 7'!$T$75/'MMA Rev-Exp Region 7'!$T$9, 0)","v":{"v":0,"d":"$0.00"}},{"$f":"IFERROR('MMA Rev-Exp Region 7'!$U$75/'MMA Rev-Exp Region 7'!$U$9, 0)","v":{"v":0,"d":"$0.00"}},{"$f":"IFERROR('MMA Rev-Exp Region 7'!$V$75/'MMA Rev-Exp Region 7'!$V$9, 0)","v":{"v":0,"d":"$0.00"}},{"$f":"IFERROR('MMA Rev-Exp Region 7'!$W$75/'MMA Rev-Exp Region 7'!$W$9, 0)","v":{"v":0,"d":"$0.00"}},{"$f":"IFERROR('MMA Rev-Exp Region 7'!$X$75/'MMA Rev-Exp Region 7'!$X$9, 0)","v":{"v":0,"d":"$0.00"}},{"$f":"IFERROR('MMA Rev-Exp Region 7'!$Y$75/'MMA Rev-Exp Region 7'!$Y$9, 0)","v":{"v":0,"d":"$0.00"}}]
["MMA",null,null,2016,"2016-12-31","Q2","2017-06-30","Region 7","Operating Expense","Medical Benefits Expense","Other Medical","11.5","TPL & Fraud/Abuse Recoveries",{"$f":"IFERROR('MMA Rev-Exp Region 7'!$O$81/'MMA Rev-Exp Region 7'!$O$9, 0)","v":{"v":0,"d":"$0.00"}},{"$f":"IFERROR('MMA Rev-Exp Region 7'!$P$81/'MMA Rev-Exp Region 7'!$P$9, 0)","v":{"v":0,"d":"$0.00"}},{"$f":"IFERROR('MMA Rev-Exp Region 7'!$Q$81/'MMA Rev-Exp Region 7'!$Q$9, 0)","v":{"v":0,"d":"$0.00"}},{"$f":"IFERROR('MMA Rev-Exp Region 7'!$R$81/'MMA Rev-Exp Region 7'!$R$9, 0)","v":{"v":0,"d":"$0.00"}},{"$f":"IFERROR('MMA Rev-Exp Region 7'!$S$81/'MMA Rev-Exp Region 7'!$S$9, 0)","v":{"v":0,"d":"$0.00"}},{"$f":"IFERROR('MMA Rev-Exp Region 7'!$T$81/'MMA Rev-Exp Region 7'!$T$9, 0)","v":{"v":0,"d":"$0.00"}},{"$f":"IFERROR('MMA Rev-Exp Region 7'!$U$81/'MMA Rev-Exp Region 7'!$U$9, 0)","v":{"v":0,"d":"$0.00"}},{"$f":"IFERROR('MMA Rev-Exp Region 7'!$V$81/'MMA Rev-Exp Region 7'!$V$9, 0)","v":{"v":0,"d":"$0.00"}},{"$f":"IFERROR('MMA Rev-Exp Region 7'!$W$81/'MMA Rev-Exp Region 7'!$W$9, 0)","v":{"v":0,"d":"$0.00"}},{"$f":"IFERROR('MMA Rev-Exp Region 7'!$X$81/'MMA Rev-Exp Region 7'!$X$9, 0)","v":{"v":0,"d":"$0.00"}},{"$f":"IFERROR('MMA Rev-Exp Region 7'!$Y$81/'MMA Rev-Exp Region 7'!$Y$9, 0)","v":{"v":0,"d":"$0.00"}}]
["MMA",null,null,2016,"2016-12-31","Q2","2017-06-30","Region 7","Operating Expense","Medical Benefits Expense","Other Medical","11.6.1","Premium Deficiency Reserve",{"$f":"IFERROR('MMA Rev-Exp Region 7'!$O$82/'MMA Rev-Exp Region 7'!$O$9, 0)","v":{"v":0,"d":"$0.00"}},{"$f":"IFERROR('MMA Rev-Exp Region 7'!$P$82/'MMA Rev-Exp Region 7'!$P$9, 0)","v":{"v":0,"d":"$0.00"}},{"$f":"IFERROR('MMA Rev-Exp Region 7'!$Q$82/'MMA Rev-Exp Region 7'!$Q$9, 0)","v":{"v":0,"d":"$0.00"}},{"$f":"IFERROR('MMA Rev-Exp Region 7'!$R$82/'MMA Rev-Exp Region 7'!$R$9, 0)","v":{"v":0,"d":"$0.00"}},{"$f":"IFERROR('MMA Rev-Exp Region 7'!$S$82/'MMA Rev-Exp Region 7'!$S$9, 0)","v":{"v":0,"d":"$0.00"}},{"$f":"IFERROR('MMA Rev-Exp Region 7'!$T$82/'MMA Rev-Exp Region 7'!$T$9, 0)","v":{"v":0,"d":"$0.00"}},{"$f":"IFERROR('MMA Rev-Exp Region 7'!$U$82/'MMA Rev-Exp Region 7'!$U$9, 0)","v":{"v":0,"d":"$0.00"}},{"$f":"IFERROR('MMA Rev-Exp Region 7'!$V$82/'MMA Rev-Exp Region 7'!$V$9, 0)","v":{"v":0,"d":"$0.00"}},{"$f":"IFERROR('MMA Rev-Exp Region 7'!$W$82/'MMA Rev-Exp Region 7'!$W$9, 0)","v":{"v":0,"d":"$0.00"}},{"$f":"IFERROR('MMA Rev-Exp Region 7'!$X$82/'MMA Rev-Exp Region 7'!$X$9, 0)","v":{"v":0,"d":"$0.00"}},{"$f":"IFERROR('MMA Rev-Exp Region 7'!$Y$82/'MMA Rev-Exp Region 7'!$Y$9, 0)","v":{"v":0,"d":"$0.00"}}]
["MMA",null,null,2016,"2016-12-31","Q2","2017-06-30","Region 7","Operating Expense","Medical Benefits Expense","Other Medical","11.8","Reinsurance Premiums",{"$f":"IFERROR('MMA Rev-Exp Region 7'!$O$84/'MMA Rev-Exp Region 7'!$O$9, 0)","v":{"v":0,"d":"$0.00"}},{"$f":"IFERROR('MMA Rev-Exp Region 7'!$P$84/'MMA Rev-Exp Region 7'!$P$9, 0)","v":{"v":0,"d":"$0.00"}},{"$f":"IFERROR('MMA Rev-Exp Region 7'!$Q$84/'MMA Rev-Exp Region 7'!$Q$9, 0)","v":{"v":0,"d":"$0.00"}},{"$f":"IFERROR('MMA Rev-Exp Region 7'!$R$84/'MMA Rev-Exp Region 7'!$R$9, 0)","v":{"v":0,"d":"$0.00"}},{"$f":"IFERROR('MMA Rev-Exp Region 7'!$S$84/'MMA Rev-Exp Region 7'!$S$9, 0)","v":{"v":0,"d":"$0.00"}},{"$f":"IFERROR('MMA Rev-Exp Region 7'!$T$84/'MMA Rev-Exp Region 7'!$T$9, 0)","v":{"v":0,"d":"$0.00"}},{"$f":"IFERROR('MMA Rev-Exp Region 7'!$U$84/'MMA Rev-Exp Region 7'!$U$9, 0)","v":{"v":0,"d":"$0.00"}},{"$f":"IFERROR('MMA Rev-Exp Region 7'!$V$84/'MMA Rev-Exp Region 7'!$V$9, 0)","v":{"v":0,"d":"$0.00"}},{"$f":"IFERROR('MMA Rev-Exp Region 7'!$W$84/'MMA Rev-Exp Region 7'!$W$9, 0)","v":{"v":0,"d":"$0.00"}},{"$f":"IFERROR('MMA Rev-Exp Region 7'!$X$84/'MMA Rev-Exp Region 7'!$X$9, 0)","v":{"v":0,"d":"$0.00"}},{"$f":"IFERROR('MMA Rev-Exp Region 7'!$Y$84/'MMA Rev-Exp Region 7'!$Y$9, 0)","v":{"v":0,"d":"$0.00"}}]
["MMA",null,null,2016,"2016-12-31","Q2","2017-06-30","Region 7","Operating Expense","Medical Benefits Expense","Other Medical","11.9","Reinsurance Recoveries",{"$f":"IFERROR('MMA Rev-Exp Region 7'!$O$85/'MMA Rev-Exp Region 7'!$O$9, 0)","v":{"v":0,"d":"$0.00"}},{"$f":"IFERROR('MMA Rev-Exp Region 7'!$P$85/'MMA Rev-Exp Region 7'!$P$9, 0)","v":{"v":0,"d":"$0.00"}},{"$f":"IFERROR('MMA Rev-Exp Region 7'!$Q$85/'MMA Rev-Exp Region 7'!$Q$9, 0)","v":{"v":0,"d":"$0.00"}},{"$f":"IFERROR('MMA Rev-Exp Region 7'!$R$85/'MMA Rev-Exp Region 7'!$R$9, 0)","v":{"v":0,"d":"$0.00"}},{"$f":"IFERROR('MMA Rev-Exp Region 7'!$S$85/'MMA Rev-Exp Region 7'!$S$9, 0)","v":{"v":0,"d":"$0.00"}},{"$f":"IFERROR('MMA Rev-Exp Region 7'!$T$85/'MMA Rev-Exp Region 7'!$T$9, 0)","v":{"v":0,"d":"$0.00"}},{"$f":"IFERROR('MMA Rev-Exp Region 7'!$U$85/'MMA Rev-Exp Region 7'!$U$9, 0)","v":{"v":0,"d":"$0.00"}},{"$f":"IFERROR('MMA Rev-Exp Region 7'!$V$85/'MMA Rev-Exp Region 7'!$V$9, 0)","v":{"v":0,"d":"$0.00"}},{"$f":"IFERROR('MMA Rev-Exp Region 7'!$W$85/'MMA Rev-Exp Region 7'!$W$9, 0)","v":{"v":0,"d":"$0.00"}},{"$f":"IFERROR('MMA Rev-Exp Region 7'!$X$85/'MMA Rev-Exp Region 7'!$X$9, 0)","v":{"v":0,"d":"$0.00"}},{"$f":"IFERROR('MMA Rev-Exp Region 7'!$Y$85/'MMA Rev-Exp Region 7'!$Y$9, 0)","v":{"v":0,"d":"$0.00"}}]
["MMA",null,null,2016,"2016-12-31","Q2","2017-06-30","Region 7","Operating Expense","Administrative Expense","Administrative","12.1","Salaries & Benefits",{"$f":"IFERROR('MMA Rev-Exp Region 7'!$O$90/'MMA Rev-Exp Region 7'!$O$9, 0)","v":{"v":0,"d":"$0.00"}},{"$f":"IFERROR('MMA Rev-Exp Region 7'!$P$90/'MMA Rev-Exp Region 7'!$O$9, 0)","v":{"v":0,"d":"$0.00"}},{"$f":"IFERROR('MMA Rev-Exp Region 7'!$Q$90/'MMA Rev-Exp Region 7'!$O$9, 0)","v":{"v":0,"d":"$0.00"}},{"$f":"IFERROR('MMA Rev-Exp Region 7'!$R$90/'MMA Rev-Exp Region 7'!$R$9, 0)","v":{"v":0,"d":"$0.00"}},{"$f":"IFERROR('MMA Rev-Exp Region 7'!$S$90/'MMA Rev-Exp Region 7'!$S$9, 0)","v":{"v":0,"d":"$0.00"}},{"$f":"IFERROR('MMA Rev-Exp Region 7'!$T$90/'MMA Rev-Exp Region 7'!$T$9, 0)","v":{"v":0,"d":"$0.00"}},{"$f":"IFERROR('MMA Rev-Exp Region 7'!$U$90/'MMA Rev-Exp Region 7'!$U$9, 0)","v":{"v":0,"d":"$0.00"}},{"$f":"IFERROR('MMA Rev-Exp Region 7'!$V$90/'MMA Rev-Exp Region 7'!$V$9, 0)","v":{"v":0,"d":"$0.00"}},{"$f":"IFERROR('MMA Rev-Exp Region 7'!$W$90/'MMA Rev-Exp Region 7'!$W$9, 0)","v":{"v":0,"d":"$0.00"}},{"$f":"IFERROR('MMA Rev-Exp Region 7'!$X$90/'MMA Rev-Exp Region 7'!$X$9, 0)","v":{"v":0,"d":"$0.00"}},{"$f":"IFERROR('MMA Rev-Exp Region 7'!$Y$90/'MMA Rev-Exp Region 7'!$Y$9, 0)","v":{"v":0,"d":"$0.00"}}]
["MMA",null,null,2016,"2016-12-31","Q2","2017-06-30","Region 7","Operating Expense","Administrative Expense","Administrative","12.2","Administrative Services",{"$f":"IFERROR('MMA Rev-Exp Region 7'!$O$91/'MMA Rev-Exp Region 7'!$O$9, 0)","v":{"v":0,"d":"$0.00"}},{"$f":"IFERROR('MMA Rev-Exp Region 7'!$P$91/'MMA Rev-Exp Region 7'!$O$9, 0)","v":{"v":0,"d":"$0.00"}},{"$f":"IFERROR('MMA Rev-Exp Region 7'!$Q$91/'MMA Rev-Exp Region 7'!$O$9, 0)","v":{"v":0,"d":"$0.00"}},{"$f":"IFERROR('MMA Rev-Exp Region 7'!$R$91/'MMA Rev-Exp Region 7'!$R$9, 0)","v":{"v":0,"d":"$0.00"}},{"$f":"IFERROR('MMA Rev-Exp Region 7'!$S$91/'MMA Rev-Exp Region 7'!$S$9, 0)","v":{"v":0,"d":"$0.00"}},{"$f":"IFERROR('MMA Rev-Exp Region 7'!$T$91/'MMA Rev-Exp Region 7'!$T$9, 0)","v":{"v":0,"d":"$0.00"}},{"$f":"IFERROR('MMA Rev-Exp Region 7'!$U$91/'MMA Rev-Exp Region 7'!$U$9, 0)","v":{"v":0,"d":"$0.00"}},{"$f":"IFERROR('MMA Rev-Exp Region 7'!$V$91/'MMA Rev-Exp Region 7'!$V$9, 0)","v":{"v":0,"d":"$0.00"}},{"$f":"IFERROR('MMA Rev-Exp Region 7'!$W$91/'MMA Rev-Exp Region 7'!$W$9, 0)","v":{"v":0,"d":"$0.00"}},{"$f":"IFERROR('MMA Rev-Exp Region 7'!$X$91/'MMA Rev-Exp Region 7'!$X$9, 0)","v":{"v":0,"d":"$0.00"}},{"$f":"IFERROR('MMA Rev-Exp Region 7'!$Y$91/'MMA Rev-Exp Region 7'!$Y$9, 0)","v":{"v":0,"d":"$0.00"}}]
["MMA",null,null,2016,"2016-12-31","Q2","2017-06-30","Region 7","Operating Expense","Administrative Expense","Administrative","12.3","Information Systems",{"$f":"IFERROR('MMA Rev-Exp Region 7'!$O$92/'MMA Rev-Exp Region 7'!$O$9, 0)","v":{"v":0,"d":"$0.00"}},{"$f":"IFERROR('MMA Rev-Exp Region 7'!$P$92/'MMA Rev-Exp Region 7'!$O$9, 0)","v":{"v":0,"d":"$0.00"}},{"$f":"IFERROR('MMA Rev-Exp Region 7'!$Q$92/'MMA Rev-Exp Region 7'!$O$9, 0)","v":{"v":0,"d":"$0.00"}},{"$f":"IFERROR('MMA Rev-Exp Region 7'!$R$92/'MMA Rev-Exp Region 7'!$R$9, 0)","v":{"v":0,"d":"$0.00"}},{"$f":"IFERROR('MMA Rev-Exp Region 7'!$S$92/'MMA Rev-Exp Region 7'!$S$9, 0)","v":{"v":0,"d":"$0.00"}},{"$f":"IFERROR('MMA Rev-Exp Region 7'!$T$92/'MMA Rev-Exp Region 7'!$T$9, 0)","v":{"v":0,"d":"$0.00"}},{"$f":"IFERROR('MMA Rev-Exp Region 7'!$U$92/'MMA Rev-Exp Region 7'!$U$9, 0)","v":{"v":0,"d":"$0.00"}},{"$f":"IFERROR('MMA Rev-Exp Region 7'!$V$92/'MMA Rev-Exp Region 7'!$V$9, 0)","v":{"v":0,"d":"$0.00"}},{"$f":"IFERROR('MMA Rev-Exp Region 7'!$W$92/'MMA Rev-Exp Region 7'!$W$9, 0)","v":{"v":0,"d":"$0.00"}},{"$f":"IFERROR('MMA Rev-Exp Region 7'!$X$92/'MMA Rev-Exp Region 7'!$X$9, 0)","v":{"v":0,"d":"$0.00"}},{"$f":"IFERROR('MMA Rev-Exp Region 7'!$Y$92/'MMA Rev-Exp Region 7'!$Y$9, 0)","v":{"v":0,"d":"$0.00"}}]
["MMA",null,null,2016,"2016-12-31","Q2","2017-06-30","Region 7","Operating Expense","Administrative Expense","Administrative","12.4","Marketing Expenses",{"$f":"IFERROR('MMA Rev-Exp Region 7'!$O$93/'MMA Rev-Exp Region 7'!$O$9, 0)","v":{"v":0,"d":"$0.00"}},{"$f":"IFERROR('MMA Rev-Exp Region 7'!$P$93/'MMA Rev-Exp Region 7'!$O$9, 0)","v":{"v":0,"d":"$0.00"}},{"$f":"IFERROR('MMA Rev-Exp Region 7'!$Q$93/'MMA Rev-Exp Region 7'!$O$9, 0)","v":{"v":0,"d":"$0.00"}}]
["MMA",null,null,2016,"2016-12-31","Q2","2017-06-30","Region 7","Operating Expense","Administrative Expense","Administrative","12.5","General  Administration",{"$f":"IFERROR('MMA Rev-Exp Region 7'!$O$94/'MMA Rev-Exp Region 7'!$O$9, 0)","v":{"v":0,"d":"$0.00"}},{"$f":"IFERROR('MMA Rev-Exp Region 7'!$P$94/'MMA Rev-Exp Region 7'!$O$9, 0)","v":{"v":0,"d":"$0.00"}},{"$f":"IFERROR('MMA Rev-Exp Region 7'!$Q$94/'MMA Rev-Exp Region 7'!$O$9, 0)","v":{"v":0,"d":"$0.00"}}]
["MMA",null,null,2016,"2016-12-31","Q2","2017-06-30","Region 7","Operating Expense","Administrative Expense","Administrative","12.6","Compliance/Regulatory",{"$f":"IFERROR('MMA Rev-Exp Region 7'!$O$95/'MMA Rev-Exp Region 7'!$O$9, 0)","v":{"v":0,"d":"$0.00"}},{"$f":"IFERROR('MMA Rev-Exp Region 7'!$P$95/'MMA Rev-Exp Region 7'!$O$9, 0)","v":{"v":0,"d":"$0.00"}},{"$f":"IFERROR('MMA Rev-Exp Region 7'!$Q$95/'MMA Rev-Exp Region 7'!$O$9, 0)","v":{"v":0,"d":"$0.00"}}]
["MMA",null,null,2016,"2016-12-31","Q2","2017-06-30","Region 7","Operating Expense","Taxes & Fees","Taxes & Fees","13.1","State Premium tax",{"$f":"IFERROR('MMA Rev-Exp Region 7'!$O$97/'MMA Rev-Exp Region 7'!$O$9, 0)","v":{"v":0,"d":"$0.00"}}]
["MMA",null,null,2016,"2016-12-31","Q2","2017-06-30","Region 7","Operating Expense","Taxes & Fees","Taxes & Fees","13.2","Department of Insurance Assessments",{"$f":"IFERROR('MMA Rev-Exp Region 7'!$O$98/'MMA Rev-Exp Region 7'!$O$9, 0)","v":{"v":0,"d":"$0.00"}}]
["MMA",null,null,2016,"2016-12-31","Q2","2017-06-30","Region 7","Operating Expense","Taxes & Fees","Taxes & Fees","13.3","Section 9010 Health Insurance Providers Fee",{"$f":"IFERROR('MMA Rev-Exp Region 7'!$O$99/'MMA Rev-Exp Region 7'!$O$9, 0)","v":{"v":0,"d":"$0.00"}}]
["MMA",null,null,2016,"2016-12-31","Q2","2017-06-30","Region 7","Non-Operating Expense","Income Tax Expense","Income Tax Expense","16.0","Income Tax Expense",{"$f":"IFERROR('MMA Rev-Exp Region 7'!$O$106/'MMA Rev-Exp Region 7'!$O$9, 0)","v":{"v":0,"d":"$0.00"}}]
["MMA",null,null,2016,"2016-12-31","Q3","2017-09-30","Region 7","Operating Revenue","Capitation","Capitation",1.1,"Capitation",{"$f":"IFERROR('MMA Rev-Exp Region 7'!$Z$11/'MMA Rev-Exp Region 7'!$Z$9, 0)","v":{"v":0,"d":"$0.00"}},{"$f":"IFERROR('MMA Rev-Exp Region 7'!$AA$11/'MMA Rev-Exp Region 7'!$AA$9, 0)","v":{"v":0,"d":"$0.00"}},{"$f":"IFERROR('MMA Rev-Exp Region 7'!$AB$11/'MMA Rev-Exp Region 7'!$AB$9, 0)","v":{"v":0,"d":"$0.00"}},{"$f":"IFERROR('MMA Rev-Exp Region 7'!$AC$11/'MMA Rev-Exp Region 7'!$AC$9, 0)","v":{"v":0,"d":"$0.00"}},{"$f":"IFERROR('MMA Rev-Exp Region 7'!$AD$11/'MMA Rev-Exp Region 7'!$AD$9, 0)","v":{"v":0,"d":"$0.00"}},{"$f":"IFERROR('MMA Rev-Exp Region 7'!$AE$11/'MMA Rev-Exp Region 7'!$AE$9, 0)","v":{"v":0,"d":"$0.00"}},{"$f":"IFERROR('MMA Rev-Exp Region 7'!$AF$11/'MMA Rev-Exp Region 7'!$AF$9, 0)","v":{"v":0,"d":"$0.00"}},{"$f":"IFERROR('MMA Rev-Exp Region 7'!$AG$11/'MMA Rev-Exp Region 7'!$AG$9, 0)","v":{"v":0,"d":"$0.00"}},{"$f":"IFERROR('MMA Rev-Exp Region 7'!$AH$11/'MMA Rev-Exp Region 7'!$AH$9, 0)","v":{"v":0,"d":"$0.00"}},{"$f":"IFERROR('MMA Rev-Exp Region 7'!$AI$11/'MMA Rev-Exp Region 7'!$AI$9, 0)","v":{"v":0,"d":"$0.00"}},{"$f":"IFERROR('MMA Rev-Exp Region 7'!$AJ$11/'MMA Rev-Exp Region 7'!$AJ$9, 0)","v":{"v":0,"d":"$0.00"}}]
["MMA",null,null,2016,"2016-12-31","Q3","2017-09-30","Region 7","Operating Revenue","Kick Payments","Kick Payments - Transplant",1.2,"Transplant Kick Payments",{"$f":"IFERROR('MMA Rev-Exp Region 7'!$Z$12/'MMA Rev-Exp Region 7'!$Z$9, 0)","v":{"v":0,"d":"$0.00"}},{"$f":"IFERROR('MMA Rev-Exp Region 7'!$AA$12/'MMA Rev-Exp Region 7'!$AA$9, 0)","v":{"v":0,"d":"$0.00"}},{"$f":"IFERROR('MMA Rev-Exp Region 7'!$AB$12/'MMA Rev-Exp Region 7'!$AB$9, 0)","v":{"v":0,"d":"$0.00"}},{"$f":"IFERROR('MMA Rev-Exp Region 7'!$AC$12/'MMA Rev-Exp Region 7'!$AC$9, 0)","v":{"v":0,"d":"$0.00"}},{"$f":"IFERROR('MMA Rev-Exp Region 7'!$AD$12/'MMA Rev-Exp Region 7'!$AD$9, 0)","v":{"v":0,"d":"$0.00"}},{"$f":"IFERROR('MMA Rev-Exp Region 7'!$AE$12/'MMA Rev-Exp Region 7'!$AE$9, 0)","v":{"v":0,"d":"$0.00"}},{"$f":"IFERROR('MMA Rev-Exp Region 7'!$AF$12/'MMA Rev-Exp Region 7'!$AF$9, 0)","v":{"v":0,"d":"$0.00"}},{"$f":"IFERROR('MMA Rev-Exp Region 7'!$AG$12/'MMA Rev-Exp Region 7'!$AG$9, 0)","v":{"v":0,"d":"$0.00"}},{"$f":"IFERROR('MMA Rev-Exp Region 7'!$AH$12/'MMA Rev-Exp Region 7'!$AH$9, 0)","v":{"v":0,"d":"$0.00"}},{"$f":"IFERROR('MMA Rev-Exp Region 7'!$AI$12/'MMA Rev-Exp Region 7'!$AI$9, 0)","v":{"v":0,"d":"$0.00"}},{"$f":"IFERROR('MMA Rev-Exp Region 7'!$AJ$12/'MMA Rev-Exp Region 7'!$AJ$9, 0)","v":{"v":0,"d":"$0.00"}}]
["MMA",null,null,2016,"2016-12-31","Q3","2017-09-30","Region 7","Operating Revenue","Kick Payments","Kick Payments - Hep C","1.3","Hepatitis C Kick Payments",{"$f":"IFERROR('MMA Rev-Exp Region 7'!$Z$13/'MMA Rev-Exp Region 7'!$Z$9, 0)","v":{"v":0,"d":"$0.00"}},{"$f":"IFERROR('MMA Rev-Exp Region 7'!$AA$13/'MMA Rev-Exp Region 7'!$AA$9, 0)","v":{"v":0,"d":"$0.00"}},{"$f":"IFERROR('MMA Rev-Exp Region 7'!$AB$13/'MMA Rev-Exp Region 7'!$AB$9, 0)","v":{"v":0,"d":"$0.00"}},{"$f":"IFERROR('MMA Rev-Exp Region 7'!$AC$13/'MMA Rev-Exp Region 7'!$AC$9, 0)","v":{"v":0,"d":"$0.00"}},{"$f":"IFERROR('MMA Rev-Exp Region 7'!$AD$13/'MMA Rev-Exp Region 7'!$AD$9, 0)","v":{"v":0,"d":"$0.00"}},{"$f":"IFERROR('MMA Rev-Exp Region 7'!$AE$13/'MMA Rev-Exp Region 7'!$AE$9, 0)","v":{"v":0,"d":"$0.00"}},{"$f":"IFERROR('MMA Rev-Exp Region 7'!$AF$13/'MMA Rev-Exp Region 7'!$AF$9, 0)","v":{"v":0,"d":"$0.00"}},{"$f":"IFERROR('MMA Rev-Exp Region 7'!$AG$13/'MMA Rev-Exp Region 7'!$AG$9, 0)","v":{"v":0,"d":"$0.00"}},{"$f":"IFERROR('MMA Rev-Exp Region 7'!$AH$13/'MMA Rev-Exp Region 7'!$AH$9, 0)","v":{"v":0,"d":"$0.00"}},{"$f":"IFERROR('MMA Rev-Exp Region 7'!$AI$13/'MMA Rev-Exp Region 7'!$AI$9, 0)","v":{"v":0,"d":"$0.00"}},{"$f":"IFERROR('MMA Rev-Exp Region 7'!$AJ$13/'MMA Rev-Exp Region 7'!$AJ$9, 0)","v":{"v":0,"d":"$0.00"}}]
["MMA",null,null,2016,"2016-12-31","Q3","2017-09-30","Region 7","Operating Revenue","Kick Payments","Kick Payments - Maternity","1.4.1","Maternity Kick Payments",{"$f":"IFERROR('MMA Rev-Exp Region 7'!$Z$14/'MMA Rev-Exp Region 7'!$Z$9, 0)","v":{"v":0,"d":"$0.00"}},{"$f":"IFERROR('MMA Rev-Exp Region 7'!$AA$14/'MMA Rev-Exp Region 7'!$AA$9, 0)","v":{"v":0,"d":"$0.00"}},{"$f":"IFERROR('MMA Rev-Exp Region 7'!$AB$14/'MMA Rev-Exp Region 7'!$AB$9, 0)","v":{"v":0,"d":"$0.00"}},{"$f":"IFERROR('MMA Rev-Exp Region 7'!$AC$14/'MMA Rev-Exp Region 7'!$AC$9, 0)","v":{"v":0,"d":"$0.00"}},{"$f":"IFERROR('MMA Rev-Exp Region 7'!$AD$14/'MMA Rev-Exp Region 7'!$AD$9, 0)","v":{"v":0,"d":"$0.00"}},{"$f":"IFERROR('MMA Rev-Exp Region 7'!$AE$14/'MMA Rev-Exp Region 7'!$AE$9, 0)","v":{"v":0,"d":"$0.00"}},{"$f":"IFERROR('MMA Rev-Exp Region 7'!$AF$14/'MMA Rev-Exp Region 7'!$AF$9, 0)","v":{"v":0,"d":"$0.00"}},{"$f":"IFERROR('MMA Rev-Exp Region 7'!$AG$14/'MMA Rev-Exp Region 7'!$AG$9, 0)","v":{"v":0,"d":"$0.00"}},{"$f":"IFERROR('MMA Rev-Exp Region 7'!$AH$14/'MMA Rev-Exp Region 7'!$AH$9, 0)","v":{"v":0,"d":"$0.00"}},{"$f":"IFERROR('MMA Rev-Exp Region 7'!$AI$14/'MMA Rev-Exp Region 7'!$AI$9, 0)","v":{"v":0,"d":"$0.00"}},{"$f":"IFERROR('MMA Rev-Exp Region 7'!$AJ$14/'MMA Rev-Exp Region 7'!$AJ$9, 0)","v":{"v":0,"d":"$0.00"}}]
["MMA",null,null,2016,"2016-12-31","Q3","2017-09-30","Region 7","Operating Revenue","Other Revenue","Other Revenue - 9010","1.5","ACA § 9010 related payments",{"$f":"IFERROR('MMA Rev-Exp Region 7'!$Z$15/'MMA Rev-Exp Region 7'!$Z$9, 0)","v":{"v":0,"d":"$0.00"}},{"$f":"IFERROR('MMA Rev-Exp Region 7'!$AA$15/'MMA Rev-Exp Region 7'!$AA$9, 0)","v":{"v":0,"d":"$0.00"}},{"$f":"IFERROR('MMA Rev-Exp Region 7'!$AB$15/'MMA Rev-Exp Region 7'!$AB$9, 0)","v":{"v":0,"d":"$0.00"}},{"$f":"IFERROR('MMA Rev-Exp Region 7'!$AC$15/'MMA Rev-Exp Region 7'!$AC$9, 0)","v":{"v":0,"d":"$0.00"}},{"$f":"IFERROR('MMA Rev-Exp Region 7'!$AD$15/'MMA Rev-Exp Region 7'!$AD$9, 0)","v":{"v":0,"d":"$0.00"}},{"$f":"IFERROR('MMA Rev-Exp Region 7'!$AE$15/'MMA Rev-Exp Region 7'!$AE$9, 0)","v":{"v":0,"d":"$0.00"}},{"$f":"IFERROR('MMA Rev-Exp Region 7'!$AF$15/'MMA Rev-Exp Region 7'!$AF$9, 0)","v":{"v":0,"d":"$0.00"}},{"$f":"IFERROR('MMA Rev-Exp Region 7'!$AG$15/'MMA Rev-Exp Region 7'!$AG$9, 0)","v":{"v":0,"d":"$0.00"}},{"$f":"IFERROR('MMA Rev-Exp Region 7'!$AH$15/'MMA Rev-Exp Region 7'!$AH$9, 0)","v":{"v":0,"d":"$0.00"}},{"$f":"IFERROR('MMA Rev-Exp Region 7'!$AI$15/'MMA Rev-Exp Region 7'!$AI$9, 0)","v":{"v":0,"d":"$0.00"}},{"$f":"IFERROR('MMA Rev-Exp Region 7'!$AJ$15/'MMA Rev-Exp Region 7'!$AJ$9, 0)","v":{"v":0,"d":"$0.00"}}]
["MMA",null,null,2016,"2016-12-31","Q3","2017-09-30","Region 7","Operating Revenue","Other Revenue","Other Revenue","1.6","Other Revenue",{"$f":"IFERROR('MMA Rev-Exp Region 7'!$Z$16/'MMA Rev-Exp Region 7'!$Z$9, 0)","v":{"v":0,"d":"$0.00"}},{"$f":"IFERROR('MMA Rev-Exp Region 7'!$AA$16/'MMA Rev-Exp Region 7'!$AA$9, 0)","v":{"v":0,"d":"$0.00"}},{"$f":"IFERROR('MMA Rev-Exp Region 7'!$AB$16/'MMA Rev-Exp Region 7'!$AB$9, 0)","v":{"v":0,"d":"$0.00"}},{"$f":"IFERROR('MMA Rev-Exp Region 7'!$AC$16/'MMA Rev-Exp Region 7'!$AC$9, 0)","v":{"v":0,"d":"$0.00"}},{"$f":"IFERROR('MMA Rev-Exp Region 7'!$AD$16/'MMA Rev-Exp Region 7'!$AD$9, 0)","v":{"v":0,"d":"$0.00"}},{"$f":"IFERROR('MMA Rev-Exp Region 7'!$AE$16/'MMA Rev-Exp Region 7'!$AE$9, 0)","v":{"v":0,"d":"$0.00"}},{"$f":"IFERROR('MMA Rev-Exp Region 7'!$AF$16/'MMA Rev-Exp Region 7'!$AF$9, 0)","v":{"v":0,"d":"$0.00"}},{"$f":"IFERROR('MMA Rev-Exp Region 7'!$AG$16/'MMA Rev-Exp Region 7'!$AG$9, 0)","v":{"v":0,"d":"$0.00"}},{"$f":"IFERROR('MMA Rev-Exp Region 7'!$AH$16/'MMA Rev-Exp Region 7'!$AH$9, 0)","v":{"v":0,"d":"$0.00"}},{"$f":"IFERROR('MMA Rev-Exp Region 7'!$AI$16/'MMA Rev-Exp Region 7'!$AI$9, 0)","v":{"v":0,"d":"$0.00"}},{"$f":"IFERROR('MMA Rev-Exp Region 7'!$AJ$16/'MMA Rev-Exp Region 7'!$AJ$9, 0)","v":{"v":0,"d":"$0.00"}}]
["MMA",null,null,2016,"2016-12-31","Q3","2017-09-30","Region 7","Operating Expense","Medical Benefits Expense","Hospital Services",2.1,"Inpatient FFS",{"$f":"IFERROR('MMA Rev-Exp Region 7'!$Z$20/'MMA Rev-Exp Region 7'!$Z$9, 0)","v":{"v":0,"d":"$0.00"}},{"$f":"IFERROR('MMA Rev-Exp Region 7'!$AA$20/'MMA Rev-Exp Region 7'!$AA$9, 0)","v":{"v":0,"d":"$0.00"}},{"$f":"IFERROR('MMA Rev-Exp Region 7'!$AB$20/'MMA Rev-Exp Region 7'!$AB$9, 0)","v":{"v":0,"d":"$0.00"}},{"$f":"IFERROR('MMA Rev-Exp Region 7'!$AC$20/'MMA Rev-Exp Region 7'!$AC$9, 0)","v":{"v":0,"d":"$0.00"}},{"$f":"IFERROR('MMA Rev-Exp Region 7'!$AD$20/'MMA Rev-Exp Region 7'!$AD$9, 0)","v":{"v":0,"d":"$0.00"}},{"$f":"IFERROR('MMA Rev-Exp Region 7'!$AE$20/'MMA Rev-Exp Region 7'!$AE$9, 0)","v":{"v":0,"d":"$0.00"}},{"$f":"IFERROR('MMA Rev-Exp Region 7'!$AF$20/'MMA Rev-Exp Region 7'!$AF$9, 0)","v":{"v":0,"d":"$0.00"}},{"$f":"IFERROR('MMA Rev-Exp Region 7'!$AG$20/'MMA Rev-Exp Region 7'!$AG$9, 0)","v":{"v":0,"d":"$0.00"}},{"$f":"IFERROR('MMA Rev-Exp Region 7'!$AH$20/'MMA Rev-Exp Region 7'!$AH$9, 0)","v":{"v":0,"d":"$0.00"}},{"$f":"IFERROR('MMA Rev-Exp Region 7'!$AI$20/'MMA Rev-Exp Region 7'!$AI$9, 0)","v":{"v":0,"d":"$0.00"}},{"$f":"IFERROR('MMA Rev-Exp Region 7'!$AJ$20/'MMA Rev-Exp Region 7'!$AJ$9, 0)","v":{"v":0,"d":"$0.00"}}]
["MMA",null,null,2016,"2016-12-31","Q3","2017-09-30","Region 7","Operating Expense","Medical Benefits Expense","Hospital Services",2.2,"Ending IBNP for Inpatient Hospital Services",{"$f":"IFERROR('MMA Rev-Exp Region 7'!$Z$21/'MMA Rev-Exp Region 7'!$Z$9, 0)","v":{"v":0,"d":"$0.00"}},{"$f":"IFERROR('MMA Rev-Exp Region 7'!$AA$21/'MMA Rev-Exp Region 7'!$AA$9, 0)","v":{"v":0,"d":"$0.00"}},{"$f":"IFERROR('MMA Rev-Exp Region 7'!$AB$21/'MMA Rev-Exp Region 7'!$AB$9, 0)","v":{"v":0,"d":"$0.00"}},{"$f":"IFERROR('MMA Rev-Exp Region 7'!$AC$21/'MMA Rev-Exp Region 7'!$AC$9, 0)","v":{"v":0,"d":"$0.00"}},{"$f":"IFERROR('MMA Rev-Exp Region 7'!$AD$21/'MMA Rev-Exp Region 7'!$AD$9, 0)","v":{"v":0,"d":"$0.00"}},{"$f":"IFERROR('MMA Rev-Exp Region 7'!$AE$21/'MMA Rev-Exp Region 7'!$AE$9, 0)","v":{"v":0,"d":"$0.00"}},{"$f":"IFERROR('MMA Rev-Exp Region 7'!$AF$21/'MMA Rev-Exp Region 7'!$AF$9, 0)","v":{"v":0,"d":"$0.00"}},{"$f":"IFERROR('MMA Rev-Exp Region 7'!$AG$21/'MMA Rev-Exp Region 7'!$AG$9, 0)","v":{"v":0,"d":"$0.00"}},{"$f":"IFERROR('MMA Rev-Exp Region 7'!$AH$21/'MMA Rev-Exp Region 7'!$AH$9, 0)","v":{"v":0,"d":"$0.00"}},{"$f":"IFERROR('MMA Rev-Exp Region 7'!$AI$21/'MMA Rev-Exp Region 7'!$AI$9, 0)","v":{"v":0,"d":"$0.00"}},{"$f":"IFERROR('MMA Rev-Exp Region 7'!$AJ$21/'MMA Rev-Exp Region 7'!$AJ$9, 0)","v":{"v":0,"d":"$0.00"}}]
["MMA",null,null,2016,"2016-12-31","Q3","2017-09-30","Region 7","Operating Expense","Medical Benefits Expense","Hospital Services",2.3,"Outpatient FFS: ER",{"$f":"IFERROR('MMA Rev-Exp Region 7'!$Z$22/'MMA Rev-Exp Region 7'!$Z$9, 0)","v":{"v":0,"d":"$0.00"}},{"$f":"IFERROR('MMA Rev-Exp Region 7'!$AA$22/'MMA Rev-Exp Region 7'!$AA$9, 0)","v":{"v":0,"d":"$0.00"}},{"$f":"IFERROR('MMA Rev-Exp Region 7'!$AB$22/'MMA Rev-Exp Region 7'!$AB$9, 0)","v":{"v":0,"d":"$0.00"}},{"$f":"IFERROR('MMA Rev-Exp Region 7'!$AC$22/'MMA Rev-Exp Region 7'!$AC$9, 0)","v":{"v":0,"d":"$0.00"}},{"$f":"IFERROR('MMA Rev-Exp Region 7'!$AD$22/'MMA Rev-Exp Region 7'!$AD$9, 0)","v":{"v":0,"d":"$0.00"}},{"$f":"IFERROR('MMA Rev-Exp Region 7'!$AE$22/'MMA Rev-Exp Region 7'!$AE$9, 0)","v":{"v":0,"d":"$0.00"}},{"$f":"IFERROR('MMA Rev-Exp Region 7'!$AF$22/'MMA Rev-Exp Region 7'!$AF$9, 0)","v":{"v":0,"d":"$0.00"}},{"$f":"IFERROR('MMA Rev-Exp Region 7'!$AG$22/'MMA Rev-Exp Region 7'!$AG$9, 0)","v":{"v":0,"d":"$0.00"}},{"$f":"IFERROR('MMA Rev-Exp Region 7'!$AH$22/'MMA Rev-Exp Region 7'!$AH$9, 0)","v":{"v":0,"d":"$0.00"}},{"$f":"IFERROR('MMA Rev-Exp Region 7'!$AI$22/'MMA Rev-Exp Region 7'!$AI$9, 0)","v":{"v":0,"d":"$0.00"}},{"$f":"IFERROR('MMA Rev-Exp Region 7'!$AJ$22/'MMA Rev-Exp Region 7'!$AJ$9, 0)","v":{"v":0,"d":"$0.00"}}]
["MMA",null,null,2016,"2016-12-31","Q3","2017-09-30","Region 7","Operating Expense","Medical Benefits Expense","Hospital Services",2.4,"Outpatient FFS: Other than ER ",{"$f":"IFERROR('MMA Rev-Exp Region 7'!$Z$23/'MMA Rev-Exp Region 7'!$Z$9, 0)","v":{"v":0,"d":"$0.00"}},{"$f":"IFERROR('MMA Rev-Exp Region 7'!$AA$23/'MMA Rev-Exp Region 7'!$AA$9, 0)","v":{"v":0,"d":"$0.00"}},{"$f":"IFERROR('MMA Rev-Exp Region 7'!$AB$23/'MMA Rev-Exp Region 7'!$AB$9, 0)","v":{"v":0,"d":"$0.00"}},{"$f":"IFERROR('MMA Rev-Exp Region 7'!$AC$23/'MMA Rev-Exp Region 7'!$AC$9, 0)","v":{"v":0,"d":"$0.00"}},{"$f":"IFERROR('MMA Rev-Exp Region 7'!$AD$23/'MMA Rev-Exp Region 7'!$AD$9, 0)","v":{"v":0,"d":"$0.00"}},{"$f":"IFERROR('MMA Rev-Exp Region 7'!$AE$23/'MMA Rev-Exp Region 7'!$AE$9, 0)","v":{"v":0,"d":"$0.00"}},{"$f":"IFERROR('MMA Rev-Exp Region 7'!$AF$23/'MMA Rev-Exp Region 7'!$AF$9, 0)","v":{"v":0,"d":"$0.00"}},{"$f":"IFERROR('MMA Rev-Exp Region 7'!$AG$23/'MMA Rev-Exp Region 7'!$AG$9, 0)","v":{"v":0,"d":"$0.00"}},{"$f":"IFERROR('MMA Rev-Exp Region 7'!$AH$23/'MMA Rev-Exp Region 7'!$AH$9, 0)","v":{"v":0,"d":"$0.00"}},{"$f":"IFERROR('MMA Rev-Exp Region 7'!$AI$23/'MMA Rev-Exp Region 7'!$AI$9, 0)","v":{"v":0,"d":"$0.00"}},{"$f":"IFERROR('MMA Rev-Exp Region 7'!$AJ$23/'MMA Rev-Exp Region 7'!$AJ$9, 0)","v":{"v":0,"d":"$0.00"}}]
["MMA",null,null,2016,"2016-12-31","Q3","2017-09-30","Region 7","Operating Expense","Medical Benefits Expense","Hospital Services",2.5,"Ending IBNP for Outpatient Hospital Services",{"$f":"IFERROR('MMA Rev-Exp Region 7'!$Z$24/'MMA Rev-Exp Region 7'!$Z$9, 0)","v":{"v":0,"d":"$0.00"}},{"$f":"IFERROR('MMA Rev-Exp Region 7'!$AA$24/'MMA Rev-Exp Region 7'!$AA$9, 0)","v":{"v":0,"d":"$0.00"}},{"$f":"IFERROR('MMA Rev-Exp Region 7'!$AB$24/'MMA Rev-Exp Region 7'!$AB$9, 0)","v":{"v":0,"d":"$0.00"}},{"$f":"IFERROR('MMA Rev-Exp Region 7'!$AC$24/'MMA Rev-Exp Region 7'!$AC$9, 0)","v":{"v":0,"d":"$0.00"}},{"$f":"IFERROR('MMA Rev-Exp Region 7'!$AD$24/'MMA Rev-Exp Region 7'!$AD$9, 0)","v":{"v":0,"d":"$0.00"}},{"$f":"IFERROR('MMA Rev-Exp Region 7'!$AE$24/'MMA Rev-Exp Region 7'!$AE$9, 0)","v":{"v":0,"d":"$0.00"}},{"$f":"IFERROR('MMA Rev-Exp Region 7'!$AF$24/'MMA Rev-Exp Region 7'!$AF$9, 0)","v":{"v":0,"d":"$0.00"}},{"$f":"IFERROR('MMA Rev-Exp Region 7'!$AG$24/'MMA Rev-Exp Region 7'!$AG$9, 0)","v":{"v":0,"d":"$0.00"}},{"$f":"IFERROR('MMA Rev-Exp Region 7'!$AH$24/'MMA Rev-Exp Region 7'!$AH$9, 0)","v":{"v":0,"d":"$0.00"}},{"$f":"IFERROR('MMA Rev-Exp Region 7'!$AI$24/'MMA Rev-Exp Region 7'!$AI$9, 0)","v":{"v":0,"d":"$0.00"}},{"$f":"IFERROR('MMA Rev-Exp Region 7'!$AJ$24/'MMA Rev-Exp Region 7'!$AJ$9, 0)","v":{"v":0,"d":"$0.00"}}]
["MMA",null,null,2016,"2016-12-31","Q3","2017-09-30","Region 7","Operating Expense","Medical Benefits Expense","Hospital Services","2.6","Subcapitated Hospital Services",{"$f":"IFERROR('MMA Rev-Exp Region 7'!$Z$25/'MMA Rev-Exp Region 7'!$Z$9, 0)","v":{"v":0,"d":"$0.00"}},{"$f":"IFERROR('MMA Rev-Exp Region 7'!$AA$25/'MMA Rev-Exp Region 7'!$AA$9, 0)","v":{"v":0,"d":"$0.00"}},{"$f":"IFERROR('MMA Rev-Exp Region 7'!$AB$25/'MMA Rev-Exp Region 7'!$AB$9, 0)","v":{"v":0,"d":"$0.00"}},{"$f":"IFERROR('MMA Rev-Exp Region 7'!$AC$25/'MMA Rev-Exp Region 7'!$AC$9, 0)","v":{"v":0,"d":"$0.00"}},{"$f":"IFERROR('MMA Rev-Exp Region 7'!$AD$25/'MMA Rev-Exp Region 7'!$AD$9, 0)","v":{"v":0,"d":"$0.00"}},{"$f":"IFERROR('MMA Rev-Exp Region 7'!$AE$25/'MMA Rev-Exp Region 7'!$AE$9, 0)","v":{"v":0,"d":"$0.00"}},{"$f":"IFERROR('MMA Rev-Exp Region 7'!$AF$25/'MMA Rev-Exp Region 7'!$AF$9, 0)","v":{"v":0,"d":"$0.00"}},{"$f":"IFERROR('MMA Rev-Exp Region 7'!$AG$25/'MMA Rev-Exp Region 7'!$AG$9, 0)","v":{"v":0,"d":"$0.00"}},{"$f":"IFERROR('MMA Rev-Exp Region 7'!$AH$25/'MMA Rev-Exp Region 7'!$AH$9, 0)","v":{"v":0,"d":"$0.00"}},{"$f":"IFERROR('MMA Rev-Exp Region 7'!$AI$25/'MMA Rev-Exp Region 7'!$AI$9, 0)","v":{"v":0,"d":"$0.00"}},{"$f":"IFERROR('MMA Rev-Exp Region 7'!$AJ$25/'MMA Rev-Exp Region 7'!$AJ$9, 0)","v":{"v":0,"d":"$0.00"}}]
["MMA",null,null,2016,"2016-12-31","Q3","2017-09-30","Region 7","Operating Expense","Medical Benefits Expense","Hospital Services","2.7","Hospital Settlements",{"$f":"IFERROR('MMA Rev-Exp Region 7'!$Z$26/'MMA Rev-Exp Region 7'!$Z$9, 0)","v":{"v":0,"d":"$0.00"}},{"$f":"IFERROR('MMA Rev-Exp Region 7'!$AA$26/'MMA Rev-Exp Region 7'!$AA$9, 0)","v":{"v":0,"d":"$0.00"}},{"$f":"IFERROR('MMA Rev-Exp Region 7'!$AB$26/'MMA Rev-Exp Region 7'!$AB$9, 0)","v":{"v":0,"d":"$0.00"}},{"$f":"IFERROR('MMA Rev-Exp Region 7'!$AC$26/'MMA Rev-Exp Region 7'!$AC$9, 0)","v":{"v":0,"d":"$0.00"}},{"$f":"IFERROR('MMA Rev-Exp Region 7'!$AD$26/'MMA Rev-Exp Region 7'!$AD$9, 0)","v":{"v":0,"d":"$0.00"}},{"$f":"IFERROR('MMA Rev-Exp Region 7'!$AE$26/'MMA Rev-Exp Region 7'!$AE$9, 0)","v":{"v":0,"d":"$0.00"}},{"$f":"IFERROR('MMA Rev-Exp Region 7'!$AF$26/'MMA Rev-Exp Region 7'!$AF$9, 0)","v":{"v":0,"d":"$0.00"}},{"$f":"IFERROR('MMA Rev-Exp Region 7'!$AG$26/'MMA Rev-Exp Region 7'!$AG$9, 0)","v":{"v":0,"d":"$0.00"}},{"$f":"IFERROR('MMA Rev-Exp Region 7'!$AH$26/'MMA Rev-Exp Region 7'!$AH$9, 0)","v":{"v":0,"d":"$0.00"}},{"$f":"IFERROR('MMA Rev-Exp Region 7'!$AI$26/'MMA Rev-Exp Region 7'!$AI$9, 0)","v":{"v":0,"d":"$0.00"}},{"$f":"IFERROR('MMA Rev-Exp Region 7'!$AJ$26/'MMA Rev-Exp Region 7'!$AJ$9, 0)","v":{"v":0,"d":"$0.00"}}]
["MMA",null,null,2016,"2016-12-31","Q3","2017-09-30","Region 7","Operating Expense","Medical Benefits Expense","Hospital Services","2.7.1","Transplant Services",{"$f":"IFERROR('MMA Rev-Exp Region 7'!$Z$27/'MMA Rev-Exp Region 7'!$Z$9, 0)","v":{"v":0,"d":"$0.00"}},{"$f":"IFERROR('MMA Rev-Exp Region 7'!$AA$27/'MMA Rev-Exp Region 7'!$AA$9, 0)","v":{"v":0,"d":"$0.00"}},{"$f":"IFERROR('MMA Rev-Exp Region 7'!$AB$27/'MMA Rev-Exp Region 7'!$AB$9, 0)","v":{"v":0,"d":"$0.00"}},{"$f":"IFERROR('MMA Rev-Exp Region 7'!$AC$27/'MMA Rev-Exp Region 7'!$AC$9, 0)","v":{"v":0,"d":"$0.00"}},{"$f":"IFERROR('MMA Rev-Exp Region 7'!$AD$27/'MMA Rev-Exp Region 7'!$AD$9, 0)","v":{"v":0,"d":"$0.00"}},{"$f":"IFERROR('MMA Rev-Exp Region 7'!$AE$27/'MMA Rev-Exp Region 7'!$AE$9, 0)","v":{"v":0,"d":"$0.00"}},{"$f":"IFERROR('MMA Rev-Exp Region 7'!$AF$27/'MMA Rev-Exp Region 7'!$AF$9, 0)","v":{"v":0,"d":"$0.00"}},{"$f":"IFERROR('MMA Rev-Exp Region 7'!$AG$27/'MMA Rev-Exp Region 7'!$AG$9, 0)","v":{"v":0,"d":"$0.00"}},{"$f":"IFERROR('MMA Rev-Exp Region 7'!$AH$27/'MMA Rev-Exp Region 7'!$AH$9, 0)","v":{"v":0,"d":"$0.00"}},{"$f":"IFERROR('MMA Rev-Exp Region 7'!$AI$27/'MMA Rev-Exp Region 7'!$AI$9, 0)","v":{"v":0,"d":"$0.00"}},{"$f":"IFERROR('MMA Rev-Exp Region 7'!$AJ$27/'MMA Rev-Exp Region 7'!$AJ$9, 0)","v":{"v":0,"d":"$0.00"}}]
["MMA",null,null,2016,"2016-12-31","Q3","2017-09-30","Region 7","Operating Expense","Medical Benefits Expense","Professional Services",3.1,"Primary Care FFS",{"$f":"IFERROR('MMA Rev-Exp Region 7'!$Z$29/'MMA Rev-Exp Region 7'!$Z$9, 0)","v":{"v":0,"d":"$0.00"}},{"$f":"IFERROR('MMA Rev-Exp Region 7'!$AA$29/'MMA Rev-Exp Region 7'!$AA$9, 0)","v":{"v":0,"d":"$0.00"}},{"$f":"IFERROR('MMA Rev-Exp Region 7'!$AB$29/'MMA Rev-Exp Region 7'!$AB$9, 0)","v":{"v":0,"d":"$0.00"}},{"$f":"IFERROR('MMA Rev-Exp Region 7'!$AC$29/'MMA Rev-Exp Region 7'!$AC$9, 0)","v":{"v":0,"d":"$0.00"}},{"$f":"IFERROR('MMA Rev-Exp Region 7'!$AD$29/'MMA Rev-Exp Region 7'!$AD$9, 0)","v":{"v":0,"d":"$0.00"}},{"$f":"IFERROR('MMA Rev-Exp Region 7'!$AE$29/'MMA Rev-Exp Region 7'!$AE$9, 0)","v":{"v":0,"d":"$0.00"}},{"$f":"IFERROR('MMA Rev-Exp Region 7'!$AF$29/'MMA Rev-Exp Region 7'!$AF$9, 0)","v":{"v":0,"d":"$0.00"}},{"$f":"IFERROR('MMA Rev-Exp Region 7'!$AG$29/'MMA Rev-Exp Region 7'!$AG$9, 0)","v":{"v":0,"d":"$0.00"}},{"$f":"IFERROR('MMA Rev-Exp Region 7'!$AH$29/'MMA Rev-Exp Region 7'!$AH$9, 0)","v":{"v":0,"d":"$0.00"}},{"$f":"IFERROR('MMA Rev-Exp Region 7'!$AI$29/'MMA Rev-Exp Region 7'!$AI$9, 0)","v":{"v":0,"d":"$0.00"}},{"$f":"IFERROR('MMA Rev-Exp Region 7'!$AJ$29/'MMA Rev-Exp Region 7'!$AJ$9, 0)","v":{"v":0,"d":"$0.00"}}]
["MMA",null,null,2016,"2016-12-31","Q3","2017-09-30","Region 7","Operating Expense","Medical Benefits Expense","Professional Services",3.2,"Specialty Care FFS",{"$f":"IFERROR('MMA Rev-Exp Region 7'!$Z$30/'MMA Rev-Exp Region 7'!$Z$9, 0)","v":{"v":0,"d":"$0.00"}},{"$f":"IFERROR('MMA Rev-Exp Region 7'!$AA$30/'MMA Rev-Exp Region 7'!$AA$9, 0)","v":{"v":0,"d":"$0.00"}},{"$f":"IFERROR('MMA Rev-Exp Region 7'!$AB$30/'MMA Rev-Exp Region 7'!$AB$9, 0)","v":{"v":0,"d":"$0.00"}},{"$f":"IFERROR('MMA Rev-Exp Region 7'!$AC$30/'MMA Rev-Exp Region 7'!$AC$9, 0)","v":{"v":0,"d":"$0.00"}},{"$f":"IFERROR('MMA Rev-Exp Region 7'!$AD$30/'MMA Rev-Exp Region 7'!$AD$9, 0)","v":{"v":0,"d":"$0.00"}},{"$f":"IFERROR('MMA Rev-Exp Region 7'!$AE$30/'MMA Rev-Exp Region 7'!$AE$9, 0)","v":{"v":0,"d":"$0.00"}},{"$f":"IFERROR('MMA Rev-Exp Region 7'!$AF$30/'MMA Rev-Exp Region 7'!$AF$9, 0)","v":{"v":0,"d":"$0.00"}},{"$f":"IFERROR('MMA Rev-Exp Region 7'!$AG$30/'MMA Rev-Exp Region 7'!$AG$9, 0)","v":{"v":0,"d":"$0.00"}},{"$f":"IFERROR('MMA Rev-Exp Region 7'!$AH$30/'MMA Rev-Exp Region 7'!$AH$9, 0)","v":{"v":0,"d":"$0.00"}},{"$f":"IFERROR('MMA Rev-Exp Region 7'!$AI$30/'MMA Rev-Exp Region 7'!$AI$9, 0)","v":{"v":0,"d":"$0.00"}},{"$f":"IFERROR('MMA Rev-Exp Region 7'!$AJ$30/'MMA Rev-Exp Region 7'!$AJ$9, 0)","v":{"v":0,"d":"$0.00"}}]
["MMA",null,null,2016,"2016-12-31","Q3","2017-09-30","Region 7","Operating Expense","Medical Benefits Expense","Professional Services",3.3,"Other Professional FFS",{"$f":"IFERROR('MMA Rev-Exp Region 7'!$Z$31/'MMA Rev-Exp Region 7'!$Z$9, 0)","v":{"v":0,"d":"$0.00"}},{"$f":"IFERROR('MMA Rev-Exp Region 7'!$AA$31/'MMA Rev-Exp Region 7'!$AA$9, 0)","v":{"v":0,"d":"$0.00"}},{"$f":"IFERROR('MMA Rev-Exp Region 7'!$AB$31/'MMA Rev-Exp Region 7'!$AB$9, 0)","v":{"v":0,"d":"$0.00"}},{"$f":"IFERROR('MMA Rev-Exp Region 7'!$AC$31/'MMA Rev-Exp Region 7'!$AC$9, 0)","v":{"v":0,"d":"$0.00"}},{"$f":"IFERROR('MMA Rev-Exp Region 7'!$AD$31/'MMA Rev-Exp Region 7'!$AD$9, 0)","v":{"v":0,"d":"$0.00"}},{"$f":"IFERROR('MMA Rev-Exp Region 7'!$AE$31/'MMA Rev-Exp Region 7'!$AE$9, 0)","v":{"v":0,"d":"$0.00"}},{"$f":"IFERROR('MMA Rev-Exp Region 7'!$AF$31/'MMA Rev-Exp Region 7'!$AF$9, 0)","v":{"v":0,"d":"$0.00"}},{"$f":"IFERROR('MMA Rev-Exp Region 7'!$AG$31/'MMA Rev-Exp Region 7'!$AG$9, 0)","v":{"v":0,"d":"$0.00"}},{"$f":"IFERROR('MMA Rev-Exp Region 7'!$AH$31/'MMA Rev-Exp Region 7'!$AH$9, 0)","v":{"v":0,"d":"$0.00"}},{"$f":"IFERROR('MMA Rev-Exp Region 7'!$AI$31/'MMA Rev-Exp Region 7'!$AI$9, 0)","v":{"v":0,"d":"$0.00"}},{"$f":"IFERROR('MMA Rev-Exp Region 7'!$AJ$31/'MMA Rev-Exp Region 7'!$AJ$9, 0)","v":{"v":0,"d":"$0.00"}}]
["MMA",null,null,2016,"2016-12-31","Q3","2017-09-30","Region 7","Operating Expense","Medical Benefits Expense","Professional Services","3.4","§ 1202 PCP Payments to providers",{"$f":"IFERROR('MMA Rev-Exp Region 7'!$Z$32/'MMA Rev-Exp Region 7'!$Z$9, 0)","v":{"v":0,"d":"$0.00"}},{"$f":"IFERROR('MMA Rev-Exp Region 7'!$AA$32/'MMA Rev-Exp Region 7'!$AA$9, 0)","v":{"v":0,"d":"$0.00"}},{"$f":"IFERROR('MMA Rev-Exp Region 7'!$AB$32/'MMA Rev-Exp Region 7'!$AB$9, 0)","v":{"v":0,"d":"$0.00"}},{"$f":"IFERROR('MMA Rev-Exp Region 7'!$AC$32/'MMA Rev-Exp Region 7'!$AC$9, 0)","v":{"v":0,"d":"$0.00"}},{"$f":"IFERROR('MMA Rev-Exp Region 7'!$AD$32/'MMA Rev-Exp Region 7'!$AD$9, 0)","v":{"v":0,"d":"$0.00"}},{"$f":"IFERROR('MMA Rev-Exp Region 7'!$AE$32/'MMA Rev-Exp Region 7'!$AE$9, 0)","v":{"v":0,"d":"$0.00"}},{"$f":"IFERROR('MMA Rev-Exp Region 7'!$AF$32/'MMA Rev-Exp Region 7'!$AF$9, 0)","v":{"v":0,"d":"$0.00"}},{"$f":"IFERROR('MMA Rev-Exp Region 7'!$AG$32/'MMA Rev-Exp Region 7'!$AG$9, 0)","v":{"v":0,"d":"$0.00"}},{"$f":"IFERROR('MMA Rev-Exp Region 7'!$AH$32/'MMA Rev-Exp Region 7'!$AH$9, 0)","v":{"v":0,"d":"$0.00"}},{"$f":"IFERROR('MMA Rev-Exp Region 7'!$AI$32/'MMA Rev-Exp Region 7'!$AI$9, 0)","v":{"v":0,"d":"$0.00"}},{"$f":"IFERROR('MMA Rev-Exp Region 7'!$AJ$32/'MMA Rev-Exp Region 7'!$AJ$9, 0)","v":{"v":0,"d":"$0.00"}}]
["MMA",null,null,2016,"2016-12-31","Q3","2017-09-30","Region 7","Operating Expense","Medical Benefits Expense","Professional Services","3.5","Subcapitated Professional Services",{"$f":"IFERROR('MMA Rev-Exp Region 7'!$Z$33/'MMA Rev-Exp Region 7'!$Z$9, 0)","v":{"v":0,"d":"$0.00"}},{"$f":"IFERROR('MMA Rev-Exp Region 7'!$AA$33/'MMA Rev-Exp Region 7'!$AA$9, 0)","v":{"v":0,"d":"$0.00"}},{"$f":"IFERROR('MMA Rev-Exp Region 7'!$AB$33/'MMA Rev-Exp Region 7'!$AB$9, 0)","v":{"v":0,"d":"$0.00"}},{"$f":"IFERROR('MMA Rev-Exp Region 7'!$AC$33/'MMA Rev-Exp Region 7'!$AC$9, 0)","v":{"v":0,"d":"$0.00"}},{"$f":"IFERROR('MMA Rev-Exp Region 7'!$AD$33/'MMA Rev-Exp Region 7'!$AD$9, 0)","v":{"v":0,"d":"$0.00"}},{"$f":"IFERROR('MMA Rev-Exp Region 7'!$AE$33/'MMA Rev-Exp Region 7'!$AE$9, 0)","v":{"v":0,"d":"$0.00"}},{"$f":"IFERROR('MMA Rev-Exp Region 7'!$AF$33/'MMA Rev-Exp Region 7'!$AF$9, 0)","v":{"v":0,"d":"$0.00"}},{"$f":"IFERROR('MMA Rev-Exp Region 7'!$AG$33/'MMA Rev-Exp Region 7'!$AG$9, 0)","v":{"v":0,"d":"$0.00"}},{"$f":"IFERROR('MMA Rev-Exp Region 7'!$AH$33/'MMA Rev-Exp Region 7'!$AH$9, 0)","v":{"v":0,"d":"$0.00"}},{"$f":"IFERROR('MMA Rev-Exp Region 7'!$AI$33/'MMA Rev-Exp Region 7'!$AI$9, 0)","v":{"v":0,"d":"$0.00"}},{"$f":"IFERROR('MMA Rev-Exp Region 7'!$AJ$33/'MMA Rev-Exp Region 7'!$AJ$9, 0)","v":{"v":0,"d":"$0.00"}}]
["MMA",null,null,2016,"2016-12-31","Q3","2017-09-30","Region 7","Operating Expense","Medical Benefits Expense","Professional Services","3.6","Ending IBNP for Professional Services",{"$f":"IFERROR('MMA Rev-Exp Region 7'!$Z$34/'MMA Rev-Exp Region 7'!$Z$9, 0)","v":{"v":0,"d":"$0.00"}},{"$f":"IFERROR('MMA Rev-Exp Region 7'!$AA$34/'MMA Rev-Exp Region 7'!$AA$9, 0)","v":{"v":0,"d":"$0.00"}},{"$f":"IFERROR('MMA Rev-Exp Region 7'!$AB$34/'MMA Rev-Exp Region 7'!$AB$9, 0)","v":{"v":0,"d":"$0.00"}},{"$f":"IFERROR('MMA Rev-Exp Region 7'!$AC$34/'MMA Rev-Exp Region 7'!$AC$9, 0)","v":{"v":0,"d":"$0.00"}},{"$f":"IFERROR('MMA Rev-Exp Region 7'!$AD$34/'MMA Rev-Exp Region 7'!$AD$9, 0)","v":{"v":0,"d":"$0.00"}},{"$f":"IFERROR('MMA Rev-Exp Region 7'!$AE$34/'MMA Rev-Exp Region 7'!$AE$9, 0)","v":{"v":0,"d":"$0.00"}},{"$f":"IFERROR('MMA Rev-Exp Region 7'!$AF$34/'MMA Rev-Exp Region 7'!$AF$9, 0)","v":{"v":0,"d":"$0.00"}},{"$f":"IFERROR('MMA Rev-Exp Region 7'!$AG$34/'MMA Rev-Exp Region 7'!$AG$9, 0)","v":{"v":0,"d":"$0.00"}},{"$f":"IFERROR('MMA Rev-Exp Region 7'!$AH$34/'MMA Rev-Exp Region 7'!$AH$9, 0)","v":{"v":0,"d":"$0.00"}},{"$f":"IFERROR('MMA Rev-Exp Region 7'!$AI$34/'MMA Rev-Exp Region 7'!$AI$9, 0)","v":{"v":0,"d":"$0.00"}},{"$f":"IFERROR('MMA Rev-Exp Region 7'!$AJ$34/'MMA Rev-Exp Region 7'!$AJ$9, 0)","v":{"v":0,"d":"$0.00"}}]
["MMA",null,null,2016,"2016-12-31","Q3","2017-09-30","Region 7","Operating Expense","Medical Benefits Expense","Professional Services","3.7","Professional Services Settlements",{"$f":"IFERROR('MMA Rev-Exp Region 7'!$Z$35/'MMA Rev-Exp Region 7'!$Z$9, 0)","v":{"v":0,"d":"$0.00"}},{"$f":"IFERROR('MMA Rev-Exp Region 7'!$AA$35/'MMA Rev-Exp Region 7'!$AA$9, 0)","v":{"v":0,"d":"$0.00"}},{"$f":"IFERROR('MMA Rev-Exp Region 7'!$AB$35/'MMA Rev-Exp Region 7'!$AB$9, 0)","v":{"v":0,"d":"$0.00"}},{"$f":"IFERROR('MMA Rev-Exp Region 7'!$AC$35/'MMA Rev-Exp Region 7'!$AC$9, 0)","v":{"v":0,"d":"$0.00"}},{"$f":"IFERROR('MMA Rev-Exp Region 7'!$AD$35/'MMA Rev-Exp Region 7'!$AD$9, 0)","v":{"v":0,"d":"$0.00"}},{"$f":"IFERROR('MMA Rev-Exp Region 7'!$AE$35/'MMA Rev-Exp Region 7'!$AE$9, 0)","v":{"v":0,"d":"$0.00"}},{"$f":"IFERROR('MMA Rev-Exp Region 7'!$AF$35/'MMA Rev-Exp Region 7'!$AF$9, 0)","v":{"v":0,"d":"$0.00"}},{"$f":"IFERROR('MMA Rev-Exp Region 7'!$AG$35/'MMA Rev-Exp Region 7'!$AG$9, 0)","v":{"v":0,"d":"$0.00"}},{"$f":"IFERROR('MMA Rev-Exp Region 7'!$AH$35/'MMA Rev-Exp Region 7'!$AH$9, 0)","v":{"v":0,"d":"$0.00"}},{"$f":"IFERROR('MMA Rev-Exp Region 7'!$AI$35/'MMA Rev-Exp Region 7'!$AI$9, 0)","v":{"v":0,"d":"$0.00"}},{"$f":"IFERROR('MMA Rev-Exp Region 7'!$AJ$35/'MMA Rev-Exp Region 7'!$AJ$9, 0)","v":{"v":0,"d":"$0.00"}}]
["MMA",null,null,2016,"2016-12-31","Q3","2017-09-30","Region 7","Operating Expense","Medical Benefits Expense","Maternity Services","4.1.1","Maternity Services",{"$f":"IFERROR('MMA Rev-Exp Region 7'!$Z$37/'MMA Rev-Exp Region 7'!$Z$9, 0)","v":{"v":0,"d":"$0.00"}},{"$f":"IFERROR('MMA Rev-Exp Region 7'!$AA$37/'MMA Rev-Exp Region 7'!$AA$9, 0)","v":{"v":0,"d":"$0.00"}},{"$f":"IFERROR('MMA Rev-Exp Region 7'!$AB$37/'MMA Rev-Exp Region 7'!$AB$9, 0)","v":{"v":0,"d":"$0.00"}},{"$f":"IFERROR('MMA Rev-Exp Region 7'!$AC$37/'MMA Rev-Exp Region 7'!$AC$9, 0)","v":{"v":0,"d":"$0.00"}},{"$f":"IFERROR('MMA Rev-Exp Region 7'!$AD$37/'MMA Rev-Exp Region 7'!$AD$9, 0)","v":{"v":0,"d":"$0.00"}},{"$f":"IFERROR('MMA Rev-Exp Region 7'!$AE$37/'MMA Rev-Exp Region 7'!$AE$9, 0)","v":{"v":0,"d":"$0.00"}},{"$f":"IFERROR('MMA Rev-Exp Region 7'!$AF$37/'MMA Rev-Exp Region 7'!$AF$9, 0)","v":{"v":0,"d":"$0.00"}},{"$f":"IFERROR('MMA Rev-Exp Region 7'!$AG$37/'MMA Rev-Exp Region 7'!$AG$9, 0)","v":{"v":0,"d":"$0.00"}},{"$f":"IFERROR('MMA Rev-Exp Region 7'!$AH$37/'MMA Rev-Exp Region 7'!$AH$9, 0)","v":{"v":0,"d":"$0.00"}},{"$f":"IFERROR('MMA Rev-Exp Region 7'!$AI$37/'MMA Rev-Exp Region 7'!$AI$9, 0)","v":{"v":0,"d":"$0.00"}},{"$f":"IFERROR('MMA Rev-Exp Region 7'!$AJ$37/'MMA Rev-Exp Region 7'!$AJ$9, 0)","v":{"v":0,"d":"$0.00"}}]
["MMA",null,null,2016,"2016-12-31","Q3","2017-09-30","Region 7","Operating Expense","Medical Benefits Expense","Maternity Services","4.2.1","Ending IBNP for Maternity Services",{"$f":"IFERROR('MMA Rev-Exp Region 7'!$Z$38/'MMA Rev-Exp Region 7'!$Z$9, 0)","v":{"v":0,"d":"$0.00"}},{"$f":"IFERROR('MMA Rev-Exp Region 7'!$AA$38/'MMA Rev-Exp Region 7'!$AA$9, 0)","v":{"v":0,"d":"$0.00"}},{"$f":"IFERROR('MMA Rev-Exp Region 7'!$AB$38/'MMA Rev-Exp Region 7'!$AB$9, 0)","v":{"v":0,"d":"$0.00"}},{"$f":"IFERROR('MMA Rev-Exp Region 7'!$AC$38/'MMA Rev-Exp Region 7'!$AC$9, 0)","v":{"v":0,"d":"$0.00"}},{"$f":"IFERROR('MMA Rev-Exp Region 7'!$AD$38/'MMA Rev-Exp Region 7'!$AD$9, 0)","v":{"v":0,"d":"$0.00"}},{"$f":"IFERROR('MMA Rev-Exp Region 7'!$AE$38/'MMA Rev-Exp Region 7'!$AE$9, 0)","v":{"v":0,"d":"$0.00"}},{"$f":"IFERROR('MMA Rev-Exp Region 7'!$AF$38/'MMA Rev-Exp Region 7'!$AF$9, 0)","v":{"v":0,"d":"$0.00"}},{"$f":"IFERROR('MMA Rev-Exp Region 7'!$AG$38/'MMA Rev-Exp Region 7'!$AG$9, 0)","v":{"v":0,"d":"$0.00"}},{"$f":"IFERROR('MMA Rev-Exp Region 7'!$AH$38/'MMA Rev-Exp Region 7'!$AH$9, 0)","v":{"v":0,"d":"$0.00"}},{"$f":"IFERROR('MMA Rev-Exp Region 7'!$AI$38/'MMA Rev-Exp Region 7'!$AI$9, 0)","v":{"v":0,"d":"$0.00"}},{"$f":"IFERROR('MMA Rev-Exp Region 7'!$AJ$38/'MMA Rev-Exp Region 7'!$AJ$9, 0)","v":{"v":0,"d":"$0.00"}}]
["MMA",null,null,2016,"2016-12-31","Q3","2017-09-30","Region 7","Operating Expense","Medical Benefits Expense","Maternity Services","4.3.1","Maternity Settlements",{"$f":"IFERROR('MMA Rev-Exp Region 7'!$Z$39/'MMA Rev-Exp Region 7'!$Z$9, 0)","v":{"v":0,"d":"$0.00"}},{"$f":"IFERROR('MMA Rev-Exp Region 7'!$AA$39/'MMA Rev-Exp Region 7'!$AA$9, 0)","v":{"v":0,"d":"$0.00"}},{"$f":"IFERROR('MMA Rev-Exp Region 7'!$AB$39/'MMA Rev-Exp Region 7'!$AB$9, 0)","v":{"v":0,"d":"$0.00"}},{"$f":"IFERROR('MMA Rev-Exp Region 7'!$AC$39/'MMA Rev-Exp Region 7'!$AC$9, 0)","v":{"v":0,"d":"$0.00"}},{"$f":"IFERROR('MMA Rev-Exp Region 7'!$AD$39/'MMA Rev-Exp Region 7'!$AD$9, 0)","v":{"v":0,"d":"$0.00"}},{"$f":"IFERROR('MMA Rev-Exp Region 7'!$AE$39/'MMA Rev-Exp Region 7'!$AE$9, 0)","v":{"v":0,"d":"$0.00"}},{"$f":"IFERROR('MMA Rev-Exp Region 7'!$AF$39/'MMA Rev-Exp Region 7'!$AF$9, 0)","v":{"v":0,"d":"$0.00"}},{"$f":"IFERROR('MMA Rev-Exp Region 7'!$AG$39/'MMA Rev-Exp Region 7'!$AG$9, 0)","v":{"v":0,"d":"$0.00"}},{"$f":"IFERROR('MMA Rev-Exp Region 7'!$AH$39/'MMA Rev-Exp Region 7'!$AH$9, 0)","v":{"v":0,"d":"$0.00"}},{"$f":"IFERROR('MMA Rev-Exp Region 7'!$AI$39/'MMA Rev-Exp Region 7'!$AI$9, 0)","v":{"v":0,"d":"$0.00"}},{"$f":"IFERROR('MMA Rev-Exp Region 7'!$AJ$39/'MMA Rev-Exp Region 7'!$AJ$9, 0)","v":{"v":0,"d":"$0.00"}}]
["MMA",null,null,2016,"2016-12-31","Q3","2017-09-30","Region 7","Operating Expense","Medical Benefits Expense","Mental Health Services",5.1,"Mental Health & Substance Abuse FFS",{"$f":"IFERROR('MMA Rev-Exp Region 7'!$Z$41/'MMA Rev-Exp Region 7'!$Z$9, 0)","v":{"v":0,"d":"$0.00"}},{"$f":"IFERROR('MMA Rev-Exp Region 7'!$AA$41/'MMA Rev-Exp Region 7'!$AA$9, 0)","v":{"v":0,"d":"$0.00"}},{"$f":"IFERROR('MMA Rev-Exp Region 7'!$AB$41/'MMA Rev-Exp Region 7'!$AB$9, 0)","v":{"v":0,"d":"$0.00"}},{"$f":"IFERROR('MMA Rev-Exp Region 7'!$AC$41/'MMA Rev-Exp Region 7'!$AC$9, 0)","v":{"v":0,"d":"$0.00"}},{"$f":"IFERROR('MMA Rev-Exp Region 7'!$AD$41/'MMA Rev-Exp Region 7'!$AD$9, 0)","v":{"v":0,"d":"$0.00"}},{"$f":"IFERROR('MMA Rev-Exp Region 7'!$AE$41/'MMA Rev-Exp Region 7'!$AE$9, 0)","v":{"v":0,"d":"$0.00"}},{"$f":"IFERROR('MMA Rev-Exp Region 7'!$AF$41/'MMA Rev-Exp Region 7'!$AF$9, 0)","v":{"v":0,"d":"$0.00"}},{"$f":"IFERROR('MMA Rev-Exp Region 7'!$AG$41/'MMA Rev-Exp Region 7'!$AG$9, 0)","v":{"v":0,"d":"$0.00"}},{"$f":"IFERROR('MMA Rev-Exp Region 7'!$AH$41/'MMA Rev-Exp Region 7'!$AH$9, 0)","v":{"v":0,"d":"$0.00"}},{"$f":"IFERROR('MMA Rev-Exp Region 7'!$AI$41/'MMA Rev-Exp Region 7'!$AI$9, 0)","v":{"v":0,"d":"$0.00"}},{"$f":"IFERROR('MMA Rev-Exp Region 7'!$AJ$41/'MMA Rev-Exp Region 7'!$AJ$9, 0)","v":{"v":0,"d":"$0.00"}}]
["MMA",null,null,2016,"2016-12-31","Q3","2017-09-30","Region 7","Operating Expense","Medical Benefits Expense","Mental Health Services",5.2,"Mental Health & Substance Abuse Subcapitation",{"$f":"IFERROR('MMA Rev-Exp Region 7'!$Z$42/'MMA Rev-Exp Region 7'!$Z$9, 0)","v":{"v":0,"d":"$0.00"}},{"$f":"IFERROR('MMA Rev-Exp Region 7'!$AA$42/'MMA Rev-Exp Region 7'!$AA$9, 0)","v":{"v":0,"d":"$0.00"}},{"$f":"IFERROR('MMA Rev-Exp Region 7'!$AB$42/'MMA Rev-Exp Region 7'!$AB$9, 0)","v":{"v":0,"d":"$0.00"}},{"$f":"IFERROR('MMA Rev-Exp Region 7'!$AC$42/'MMA Rev-Exp Region 7'!$AC$9, 0)","v":{"v":0,"d":"$0.00"}},{"$f":"IFERROR('MMA Rev-Exp Region 7'!$AD$42/'MMA Rev-Exp Region 7'!$AD$9, 0)","v":{"v":0,"d":"$0.00"}},{"$f":"IFERROR('MMA Rev-Exp Region 7'!$AE$42/'MMA Rev-Exp Region 7'!$AE$9, 0)","v":{"v":0,"d":"$0.00"}},{"$f":"IFERROR('MMA Rev-Exp Region 7'!$AF$42/'MMA Rev-Exp Region 7'!$AF$9, 0)","v":{"v":0,"d":"$0.00"}},{"$f":"IFERROR('MMA Rev-Exp Region 7'!$AG$42/'MMA Rev-Exp Region 7'!$AG$9, 0)","v":{"v":0,"d":"$0.00"}},{"$f":"IFERROR('MMA Rev-Exp Region 7'!$AH$42/'MMA Rev-Exp Region 7'!$AH$9, 0)","v":{"v":0,"d":"$0.00"}},{"$f":"IFERROR('MMA Rev-Exp Region 7'!$AI$42/'MMA Rev-Exp Region 7'!$AI$9, 0)","v":{"v":0,"d":"$0.00"}},{"$f":"IFERROR('MMA Rev-Exp Region 7'!$AJ$42/'MMA Rev-Exp Region 7'!$AJ$9, 0)","v":{"v":0,"d":"$0.00"}}]
["MMA",null,null,2016,"2016-12-31","Q3","2017-09-30","Region 7","Operating Expense","Medical Benefits Expense","Mental Health Services",5.3,"Ending IBNP for Mental Health & Substance Abuse",{"$f":"IFERROR('MMA Rev-Exp Region 7'!$Z$43/'MMA Rev-Exp Region 7'!$Z$9, 0)","v":{"v":0,"d":"$0.00"}},{"$f":"IFERROR('MMA Rev-Exp Region 7'!$AA$43/'MMA Rev-Exp Region 7'!$AA$9, 0)","v":{"v":0,"d":"$0.00"}},{"$f":"IFERROR('MMA Rev-Exp Region 7'!$AB$43/'MMA Rev-Exp Region 7'!$AB$9, 0)","v":{"v":0,"d":"$0.00"}},{"$f":"IFERROR('MMA Rev-Exp Region 7'!$AC$43/'MMA Rev-Exp Region 7'!$AC$9, 0)","v":{"v":0,"d":"$0.00"}},{"$f":"IFERROR('MMA Rev-Exp Region 7'!$AD$43/'MMA Rev-Exp Region 7'!$AD$9, 0)","v":{"v":0,"d":"$0.00"}},{"$f":"IFERROR('MMA Rev-Exp Region 7'!$AE$43/'MMA Rev-Exp Region 7'!$AE$9, 0)","v":{"v":0,"d":"$0.00"}},{"$f":"IFERROR('MMA Rev-Exp Region 7'!$AF$43/'MMA Rev-Exp Region 7'!$AF$9, 0)","v":{"v":0,"d":"$0.00"}},{"$f":"IFERROR('MMA Rev-Exp Region 7'!$AG$43/'MMA Rev-Exp Region 7'!$AG$9, 0)","v":{"v":0,"d":"$0.00"}},{"$f":"IFERROR('MMA Rev-Exp Region 7'!$AH$43/'MMA Rev-Exp Region 7'!$AH$9, 0)","v":{"v":0,"d":"$0.00"}},{"$f":"IFERROR('MMA Rev-Exp Region 7'!$AI$43/'MMA Rev-Exp Region 7'!$AI$9, 0)","v":{"v":0,"d":"$0.00"}},{"$f":"IFERROR('MMA Rev-Exp Region 7'!$AJ$43/'MMA Rev-Exp Region 7'!$AJ$9, 0)","v":{"v":0,"d":"$0.00"}}]
["MMA",null,null,2016,"2016-12-31","Q3","2017-09-30","Region 7","Operating Expense","Medical Benefits Expense","Mental Health Services","5.4","Mental Health Settlements",{"$f":"IFERROR('MMA Rev-Exp Region 7'!$Z$44/'MMA Rev-Exp Region 7'!$Z$9, 0)","v":{"v":0,"d":"$0.00"}},{"$f":"IFERROR('MMA Rev-Exp Region 7'!$AA$44/'MMA Rev-Exp Region 7'!$AA$9, 0)","v":{"v":0,"d":"$0.00"}},{"$f":"IFERROR('MMA Rev-Exp Region 7'!$AB$44/'MMA Rev-Exp Region 7'!$AB$9, 0)","v":{"v":0,"d":"$0.00"}},{"$f":"IFERROR('MMA Rev-Exp Region 7'!$AC$44/'MMA Rev-Exp Region 7'!$AC$9, 0)","v":{"v":0,"d":"$0.00"}},{"$f":"IFERROR('MMA Rev-Exp Region 7'!$AD$44/'MMA Rev-Exp Region 7'!$AD$9, 0)","v":{"v":0,"d":"$0.00"}},{"$f":"IFERROR('MMA Rev-Exp Region 7'!$AE$44/'MMA Rev-Exp Region 7'!$AE$9, 0)","v":{"v":0,"d":"$0.00"}},{"$f":"IFERROR('MMA Rev-Exp Region 7'!$AF$44/'MMA Rev-Exp Region 7'!$AF$9, 0)","v":{"v":0,"d":"$0.00"}},{"$f":"IFERROR('MMA Rev-Exp Region 7'!$AG$44/'MMA Rev-Exp Region 7'!$AG$9, 0)","v":{"v":0,"d":"$0.00"}},{"$f":"IFERROR('MMA Rev-Exp Region 7'!$AH$44/'MMA Rev-Exp Region 7'!$AH$9, 0)","v":{"v":0,"d":"$0.00"}},{"$f":"IFERROR('MMA Rev-Exp Region 7'!$AI$44/'MMA Rev-Exp Region 7'!$AI$9, 0)","v":{"v":0,"d":"$0.00"}},{"$f":"IFERROR('MMA Rev-Exp Region 7'!$AJ$44/'MMA Rev-Exp Region 7'!$AJ$9, 0)","v":{"v":0,"d":"$0.00"}}]
["MMA",null,null,2016,"2016-12-31","Q3","2017-09-30","Region 7","Operating Expense","Medical Benefits Expense","Dental Services",6.1,"Dental FFS",{"$f":"IFERROR('MMA Rev-Exp Region 7'!$Z$46/'MMA Rev-Exp Region 7'!$Z$9, 0)","v":{"v":0,"d":"$0.00"}},{"$f":"IFERROR('MMA Rev-Exp Region 7'!$AA$46/'MMA Rev-Exp Region 7'!$AA$9, 0)","v":{"v":0,"d":"$0.00"}},{"$f":"IFERROR('MMA Rev-Exp Region 7'!$AB$46/'MMA Rev-Exp Region 7'!$AB$9, 0)","v":{"v":0,"d":"$0.00"}},{"$f":"IFERROR('MMA Rev-Exp Region 7'!$AC$46/'MMA Rev-Exp Region 7'!$AC$9, 0)","v":{"v":0,"d":"$0.00"}},{"$f":"IFERROR('MMA Rev-Exp Region 7'!$AD$46/'MMA Rev-Exp Region 7'!$AD$9, 0)","v":{"v":0,"d":"$0.00"}},{"$f":"IFERROR('MMA Rev-Exp Region 7'!$AE$46/'MMA Rev-Exp Region 7'!$AE$9, 0)","v":{"v":0,"d":"$0.00"}},{"$f":"IFERROR('MMA Rev-Exp Region 7'!$AF$46/'MMA Rev-Exp Region 7'!$AF$9, 0)","v":{"v":0,"d":"$0.00"}},{"$f":"IFERROR('MMA Rev-Exp Region 7'!$AG$46/'MMA Rev-Exp Region 7'!$AG$9, 0)","v":{"v":0,"d":"$0.00"}},{"$f":"IFERROR('MMA Rev-Exp Region 7'!$AH$46/'MMA Rev-Exp Region 7'!$AH$9, 0)","v":{"v":0,"d":"$0.00"}},{"$f":"IFERROR('MMA Rev-Exp Region 7'!$AI$46/'MMA Rev-Exp Region 7'!$AI$9, 0)","v":{"v":0,"d":"$0.00"}},{"$f":"IFERROR('MMA Rev-Exp Region 7'!$AJ$46/'MMA Rev-Exp Region 7'!$AJ$9, 0)","v":{"v":0,"d":"$0.00"}}]
["MMA",null,null,2016,"2016-12-31","Q3","2017-09-30","Region 7","Operating Expense","Medical Benefits Expense","Dental Services",6.2,"Dental Subcapitation",{"$f":"IFERROR('MMA Rev-Exp Region 7'!$Z$47/'MMA Rev-Exp Region 7'!$Z$9, 0)","v":{"v":0,"d":"$0.00"}},{"$f":"IFERROR('MMA Rev-Exp Region 7'!$AA$47/'MMA Rev-Exp Region 7'!$AA$9, 0)","v":{"v":0,"d":"$0.00"}},{"$f":"IFERROR('MMA Rev-Exp Region 7'!$AB$47/'MMA Rev-Exp Region 7'!$AB$9, 0)","v":{"v":0,"d":"$0.00"}},{"$f":"IFERROR('MMA Rev-Exp Region 7'!$AC$47/'MMA Rev-Exp Region 7'!$AC$9, 0)","v":{"v":0,"d":"$0.00"}},{"$f":"IFERROR('MMA Rev-Exp Region 7'!$AD$47/'MMA Rev-Exp Region 7'!$AD$9, 0)","v":{"v":0,"d":"$0.00"}},{"$f":"IFERROR('MMA Rev-Exp Region 7'!$AE$47/'MMA Rev-Exp Region 7'!$AE$9, 0)","v":{"v":0,"d":"$0.00"}},{"$f":"IFERROR('MMA Rev-Exp Region 7'!$AF$47/'MMA Rev-Exp Region 7'!$AF$9, 0)","v":{"v":0,"d":"$0.00"}},{"$f":"IFERROR('MMA Rev-Exp Region 7'!$AG$47/'MMA Rev-Exp Region 7'!$AG$9, 0)","v":{"v":0,"d":"$0.00"}},{"$f":"IFERROR('MMA Rev-Exp Region 7'!$AH$47/'MMA Rev-Exp Region 7'!$AH$9, 0)","v":{"v":0,"d":"$0.00"}},{"$f":"IFERROR('MMA Rev-Exp Region 7'!$AI$47/'MMA Rev-Exp Region 7'!$AI$9, 0)","v":{"v":0,"d":"$0.00"}},{"$f":"IFERROR('MMA Rev-Exp Region 7'!$AJ$47/'MMA Rev-Exp Region 7'!$AJ$9, 0)","v":{"v":0,"d":"$0.00"}}]
["MMA",null,null,2016,"2016-12-31","Q3","2017-09-30","Region 7","Operating Expense","Medical Benefits Expense","Dental Services",6.3,"Ending IBNP for Dental Services",{"$f":"IFERROR('MMA Rev-Exp Region 7'!$Z$48/'MMA Rev-Exp Region 7'!$Z$9, 0)","v":{"v":0,"d":"$0.00"}},{"$f":"IFERROR('MMA Rev-Exp Region 7'!$AA$48/'MMA Rev-Exp Region 7'!$AA$9, 0)","v":{"v":0,"d":"$0.00"}},{"$f":"IFERROR('MMA Rev-Exp Region 7'!$AB$48/'MMA Rev-Exp Region 7'!$AB$9, 0)","v":{"v":0,"d":"$0.00"}},{"$f":"IFERROR('MMA Rev-Exp Region 7'!$AC$48/'MMA Rev-Exp Region 7'!$AC$9, 0)","v":{"v":0,"d":"$0.00"}},{"$f":"IFERROR('MMA Rev-Exp Region 7'!$AD$48/'MMA Rev-Exp Region 7'!$AD$9, 0)","v":{"v":0,"d":"$0.00"}},{"$f":"IFERROR('MMA Rev-Exp Region 7'!$AE$48/'MMA Rev-Exp Region 7'!$AE$9, 0)","v":{"v":0,"d":"$0.00"}},{"$f":"IFERROR('MMA Rev-Exp Region 7'!$AF$48/'MMA Rev-Exp Region 7'!$AF$9, 0)","v":{"v":0,"d":"$0.00"}},{"$f":"IFERROR('MMA Rev-Exp Region 7'!$AG$48/'MMA Rev-Exp Region 7'!$AG$9, 0)","v":{"v":0,"d":"$0.00"}},{"$f":"IFERROR('MMA Rev-Exp Region 7'!$AH$48/'MMA Rev-Exp Region 7'!$AH$9, 0)","v":{"v":0,"d":"$0.00"}},{"$f":"IFERROR('MMA Rev-Exp Region 7'!$AI$48/'MMA Rev-Exp Region 7'!$AI$9, 0)","v":{"v":0,"d":"$0.00"}},{"$f":"IFERROR('MMA Rev-Exp Region 7'!$AJ$48/'MMA Rev-Exp Region 7'!$AJ$9, 0)","v":{"v":0,"d":"$0.00"}}]
["MMA",null,null,2016,"2016-12-31","Q3","2017-09-30","Region 7","Operating Expense","Medical Benefits Expense","Dental Services","6.4","Dental Settlements",{"$f":"IFERROR('MMA Rev-Exp Region 7'!$Z$49/'MMA Rev-Exp Region 7'!$Z$9, 0)","v":{"v":0,"d":"$0.00"}},{"$f":"IFERROR('MMA Rev-Exp Region 7'!$AA$49/'MMA Rev-Exp Region 7'!$AA$9, 0)","v":{"v":0,"d":"$0.00"}},{"$f":"IFERROR('MMA Rev-Exp Region 7'!$AB$49/'MMA Rev-Exp Region 7'!$AB$9, 0)","v":{"v":0,"d":"$0.00"}},{"$f":"IFERROR('MMA Rev-Exp Region 7'!$AC$49/'MMA Rev-Exp Region 7'!$AC$9, 0)","v":{"v":0,"d":"$0.00"}},{"$f":"IFERROR('MMA Rev-Exp Region 7'!$AD$49/'MMA Rev-Exp Region 7'!$AD$9, 0)","v":{"v":0,"d":"$0.00"}},{"$f":"IFERROR('MMA Rev-Exp Region 7'!$AE$49/'MMA Rev-Exp Region 7'!$AE$9, 0)","v":{"v":0,"d":"$0.00"}},{"$f":"IFERROR('MMA Rev-Exp Region 7'!$AF$49/'MMA Rev-Exp Region 7'!$AF$9, 0)","v":{"v":0,"d":"$0.00"}},{"$f":"IFERROR('MMA Rev-Exp Region 7'!$AG$49/'MMA Rev-Exp Region 7'!$AG$9, 0)","v":{"v":0,"d":"$0.00"}},{"$f":"IFERROR('MMA Rev-Exp Region 7'!$AH$49/'MMA Rev-Exp Region 7'!$AH$9, 0)","v":{"v":0,"d":"$0.00"}},{"$f":"IFERROR('MMA Rev-Exp Region 7'!$AI$49/'MMA Rev-Exp Region 7'!$AI$9, 0)","v":{"v":0,"d":"$0.00"}},{"$f":"IFERROR('MMA Rev-Exp Region 7'!$AJ$49/'MMA Rev-Exp Region 7'!$AJ$9, 0)","v":{"v":0,"d":"$0.00"}}]
["MMA",null,null,2016,"2016-12-31","Q3","2017-09-30","Region 7","Operating Expense","Medical Benefits Expense","Transportation Services",7.1,"Transportation FFS",{"$f":"IFERROR('MMA Rev-Exp Region 7'!$Z$51/'MMA Rev-Exp Region 7'!$Z$9, 0)","v":{"v":0,"d":"$0.00"}},{"$f":"IFERROR('MMA Rev-Exp Region 7'!$AA$51/'MMA Rev-Exp Region 7'!$AA$9, 0)","v":{"v":0,"d":"$0.00"}},{"$f":"IFERROR('MMA Rev-Exp Region 7'!$AB$51/'MMA Rev-Exp Region 7'!$AB$9, 0)","v":{"v":0,"d":"$0.00"}},{"$f":"IFERROR('MMA Rev-Exp Region 7'!$AC$51/'MMA Rev-Exp Region 7'!$AC$9, 0)","v":{"v":0,"d":"$0.00"}},{"$f":"IFERROR('MMA Rev-Exp Region 7'!$AD$51/'MMA Rev-Exp Region 7'!$AD$9, 0)","v":{"v":0,"d":"$0.00"}},{"$f":"IFERROR('MMA Rev-Exp Region 7'!$AE$51/'MMA Rev-Exp Region 7'!$AE$9, 0)","v":{"v":0,"d":"$0.00"}},{"$f":"IFERROR('MMA Rev-Exp Region 7'!$AF$51/'MMA Rev-Exp Region 7'!$AF$9, 0)","v":{"v":0,"d":"$0.00"}},{"$f":"IFERROR('MMA Rev-Exp Region 7'!$AG$51/'MMA Rev-Exp Region 7'!$AG$9, 0)","v":{"v":0,"d":"$0.00"}},{"$f":"IFERROR('MMA Rev-Exp Region 7'!$AH$51/'MMA Rev-Exp Region 7'!$AH$9, 0)","v":{"v":0,"d":"$0.00"}},{"$f":"IFERROR('MMA Rev-Exp Region 7'!$AI$51/'MMA Rev-Exp Region 7'!$AI$9, 0)","v":{"v":0,"d":"$0.00"}},{"$f":"IFERROR('MMA Rev-Exp Region 7'!$AJ$51/'MMA Rev-Exp Region 7'!$AJ$9, 0)","v":{"v":0,"d":"$0.00"}}]
["MMA",null,null,2016,"2016-12-31","Q3","2017-09-30","Region 7","Operating Expense","Medical Benefits Expense","Transportation Services",7.2,"Transportation Subcapitation",{"$f":"IFERROR('MMA Rev-Exp Region 7'!$Z$52/'MMA Rev-Exp Region 7'!$Z$9, 0)","v":{"v":0,"d":"$0.00"}},{"$f":"IFERROR('MMA Rev-Exp Region 7'!$AA$52/'MMA Rev-Exp Region 7'!$AA$9, 0)","v":{"v":0,"d":"$0.00"}},{"$f":"IFERROR('MMA Rev-Exp Region 7'!$AB$52/'MMA Rev-Exp Region 7'!$AB$9, 0)","v":{"v":0,"d":"$0.00"}},{"$f":"IFERROR('MMA Rev-Exp Region 7'!$AC$52/'MMA Rev-Exp Region 7'!$AC$9, 0)","v":{"v":0,"d":"$0.00"}},{"$f":"IFERROR('MMA Rev-Exp Region 7'!$AD$52/'MMA Rev-Exp Region 7'!$AD$9, 0)","v":{"v":0,"d":"$0.00"}},{"$f":"IFERROR('MMA Rev-Exp Region 7'!$AE$52/'MMA Rev-Exp Region 7'!$AE$9, 0)","v":{"v":0,"d":"$0.00"}},{"$f":"IFERROR('MMA Rev-Exp Region 7'!$AF$52/'MMA Rev-Exp Region 7'!$AF$9, 0)","v":{"v":0,"d":"$0.00"}},{"$f":"IFERROR('MMA Rev-Exp Region 7'!$AG$52/'MMA Rev-Exp Region 7'!$AG$9, 0)","v":{"v":0,"d":"$0.00"}},{"$f":"IFERROR('MMA Rev-Exp Region 7'!$AH$52/'MMA Rev-Exp Region 7'!$AH$9, 0)","v":{"v":0,"d":"$0.00"}},{"$f":"IFERROR('MMA Rev-Exp Region 7'!$AI$52/'MMA Rev-Exp Region 7'!$AI$9, 0)","v":{"v":0,"d":"$0.00"}},{"$f":"IFERROR('MMA Rev-Exp Region 7'!$AJ$52/'MMA Rev-Exp Region 7'!$AJ$9, 0)","v":{"v":0,"d":"$0.00"}}]
["MMA",null,null,2016,"2016-12-31","Q3","2017-09-30","Region 7","Operating Expense","Medical Benefits Expense","Transportation Services",7.3,"Ending IBNP for Transportation",{"$f":"IFERROR('MMA Rev-Exp Region 7'!$Z$53/'MMA Rev-Exp Region 7'!$Z$9, 0)","v":{"v":0,"d":"$0.00"}},{"$f":"IFERROR('MMA Rev-Exp Region 7'!$AA$53/'MMA Rev-Exp Region 7'!$AA$9, 0)","v":{"v":0,"d":"$0.00"}},{"$f":"IFERROR('MMA Rev-Exp Region 7'!$AB$53/'MMA Rev-Exp Region 7'!$AB$9, 0)","v":{"v":0,"d":"$0.00"}},{"$f":"IFERROR('MMA Rev-Exp Region 7'!$AC$53/'MMA Rev-Exp Region 7'!$AC$9, 0)","v":{"v":0,"d":"$0.00"}},{"$f":"IFERROR('MMA Rev-Exp Region 7'!$AD$53/'MMA Rev-Exp Region 7'!$AD$9, 0)","v":{"v":0,"d":"$0.00"}},{"$f":"IFERROR('MMA Rev-Exp Region 7'!$AE$53/'MMA Rev-Exp Region 7'!$AE$9, 0)","v":{"v":0,"d":"$0.00"}},{"$f":"IFERROR('MMA Rev-Exp Region 7'!$AF$53/'MMA Rev-Exp Region 7'!$AF$9, 0)","v":{"v":0,"d":"$0.00"}},{"$f":"IFERROR('MMA Rev-Exp Region 7'!$AG$53/'MMA Rev-Exp Region 7'!$AG$9, 0)","v":{"v":0,"d":"$0.00"}},{"$f":"IFERROR('MMA Rev-Exp Region 7'!$AH$53/'MMA Rev-Exp Region 7'!$AH$9, 0)","v":{"v":0,"d":"$0.00"}},{"$f":"IFERROR('MMA Rev-Exp Region 7'!$AI$53/'MMA Rev-Exp Region 7'!$AI$9, 0)","v":{"v":0,"d":"$0.00"}},{"$f":"IFERROR('MMA Rev-Exp Region 7'!$AJ$53/'MMA Rev-Exp Region 7'!$AJ$9, 0)","v":{"v":0,"d":"$0.00"}}]
["MMA",null,null,2016,"2016-12-31","Q3","2017-09-30","Region 7","Operating Expense","Medical Benefits Expense","Transportation Services","7.4","Transportation Settlements",{"$f":"IFERROR('MMA Rev-Exp Region 7'!$Z$54/'MMA Rev-Exp Region 7'!$Z$9, 0)","v":{"v":0,"d":"$0.00"}},{"$f":"IFERROR('MMA Rev-Exp Region 7'!$AA$54/'MMA Rev-Exp Region 7'!$AA$9, 0)","v":{"v":0,"d":"$0.00"}},{"$f":"IFERROR('MMA Rev-Exp Region 7'!$AB$54/'MMA Rev-Exp Region 7'!$AB$9, 0)","v":{"v":0,"d":"$0.00"}},{"$f":"IFERROR('MMA Rev-Exp Region 7'!$AC$54/'MMA Rev-Exp Region 7'!$AC$9, 0)","v":{"v":0,"d":"$0.00"}},{"$f":"IFERROR('MMA Rev-Exp Region 7'!$AD$54/'MMA Rev-Exp Region 7'!$AD$9, 0)","v":{"v":0,"d":"$0.00"}},{"$f":"IFERROR('MMA Rev-Exp Region 7'!$AE$54/'MMA Rev-Exp Region 7'!$AE$9, 0)","v":{"v":0,"d":"$0.00"}},{"$f":"IFERROR('MMA Rev-Exp Region 7'!$AF$54/'MMA Rev-Exp Region 7'!$AF$9, 0)","v":{"v":0,"d":"$0.00"}},{"$f":"IFERROR('MMA Rev-Exp Region 7'!$AG$54/'MMA Rev-Exp Region 7'!$AG$9, 0)","v":{"v":0,"d":"$0.00"}},{"$f":"IFERROR('MMA Rev-Exp Region 7'!$AH$54/'MMA Rev-Exp Region 7'!$AH$9, 0)","v":{"v":0,"d":"$0.00"}},{"$f":"IFERROR('MMA Rev-Exp Region 7'!$AI$54/'MMA Rev-Exp Region 7'!$AI$9, 0)","v":{"v":0,"d":"$0.00"}},{"$f":"IFERROR('MMA Rev-Exp Region 7'!$AJ$54/'MMA Rev-Exp Region 7'!$AJ$9, 0)","v":{"v":0,"d":"$0.00"}}]
["MMA",null,null,2016,"2016-12-31","Q3","2017-09-30","Region 7","Operating Expense","Medical Benefits Expense","Pharmacy Services",8.1,"Prescription Drugs FFS",{"$f":"IFERROR('MMA Rev-Exp Region 7'!$Z$56/'MMA Rev-Exp Region 7'!$Z$9, 0)","v":{"v":0,"d":"$0.00"}},{"$f":"IFERROR('MMA Rev-Exp Region 7'!$AA$56/'MMA Rev-Exp Region 7'!$AA$9, 0)","v":{"v":0,"d":"$0.00"}},{"$f":"IFERROR('MMA Rev-Exp Region 7'!$AB$56/'MMA Rev-Exp Region 7'!$AB$9, 0)","v":{"v":0,"d":"$0.00"}},{"$f":"IFERROR('MMA Rev-Exp Region 7'!$AC$56/'MMA Rev-Exp Region 7'!$AC$9, 0)","v":{"v":0,"d":"$0.00"}},{"$f":"IFERROR('MMA Rev-Exp Region 7'!$AD$56/'MMA Rev-Exp Region 7'!$AD$9, 0)","v":{"v":0,"d":"$0.00"}},{"$f":"IFERROR('MMA Rev-Exp Region 7'!$AE$56/'MMA Rev-Exp Region 7'!$AE$9, 0)","v":{"v":0,"d":"$0.00"}},{"$f":"IFERROR('MMA Rev-Exp Region 7'!$AF$56/'MMA Rev-Exp Region 7'!$AF$9, 0)","v":{"v":0,"d":"$0.00"}},{"$f":"IFERROR('MMA Rev-Exp Region 7'!$AG$56/'MMA Rev-Exp Region 7'!$AG$9, 0)","v":{"v":0,"d":"$0.00"}},{"$f":"IFERROR('MMA Rev-Exp Region 7'!$AH$56/'MMA Rev-Exp Region 7'!$AH$9, 0)","v":{"v":0,"d":"$0.00"}},{"$f":"IFERROR('MMA Rev-Exp Region 7'!$AI$56/'MMA Rev-Exp Region 7'!$AI$9, 0)","v":{"v":0,"d":"$0.00"}},{"$f":"IFERROR('MMA Rev-Exp Region 7'!$AJ$56/'MMA Rev-Exp Region 7'!$AJ$9, 0)","v":{"v":0,"d":"$0.00"}}]
["MMA",null,null,2016,"2016-12-31","Q3","2017-09-30","Region 7","Operating Expense","Medical Benefits Expense","Pharmacy Services","8.2","Hepatitis C Prescription Drug FFS",{"$f":"IFERROR('MMA Rev-Exp Region 7'!$Z$57/'MMA Rev-Exp Region 7'!$Z$9, 0)","v":{"v":0,"d":"$0.00"}},{"$f":"IFERROR('MMA Rev-Exp Region 7'!$AA$57/'MMA Rev-Exp Region 7'!$AA$9, 0)","v":{"v":0,"d":"$0.00"}},{"$f":"IFERROR('MMA Rev-Exp Region 7'!$AB$57/'MMA Rev-Exp Region 7'!$AB$9, 0)","v":{"v":0,"d":"$0.00"}},{"$f":"IFERROR('MMA Rev-Exp Region 7'!$AC$57/'MMA Rev-Exp Region 7'!$AC$9, 0)","v":{"v":0,"d":"$0.00"}},{"$f":"IFERROR('MMA Rev-Exp Region 7'!$AD$57/'MMA Rev-Exp Region 7'!$AD$9, 0)","v":{"v":0,"d":"$0.00"}},{"$f":"IFERROR('MMA Rev-Exp Region 7'!$AE$57/'MMA Rev-Exp Region 7'!$AE$9, 0)","v":{"v":0,"d":"$0.00"}},{"$f":"IFERROR('MMA Rev-Exp Region 7'!$AF$57/'MMA Rev-Exp Region 7'!$AF$9, 0)","v":{"v":0,"d":"$0.00"}},{"$f":"IFERROR('MMA Rev-Exp Region 7'!$AG$57/'MMA Rev-Exp Region 7'!$AG$9, 0)","v":{"v":0,"d":"$0.00"}},{"$f":"IFERROR('MMA Rev-Exp Region 7'!$AH$57/'MMA Rev-Exp Region 7'!$AH$9, 0)","v":{"v":0,"d":"$0.00"}},{"$f":"IFERROR('MMA Rev-Exp Region 7'!$AI$57/'MMA Rev-Exp Region 7'!$AI$9, 0)","v":{"v":0,"d":"$0.00"}},{"$f":"IFERROR('MMA Rev-Exp Region 7'!$AJ$57/'MMA Rev-Exp Region 7'!$AJ$9, 0)","v":{"v":0,"d":"$0.00"}}]
["MMA",null,null,2016,"2016-12-31","Q3","2017-09-30","Region 7","Operating Expense","Medical Benefits Expense","Pharmacy Services","8.3","Ending IBNP for Prescription Drugs",{"$f":"IFERROR('MMA Rev-Exp Region 7'!$Z$58/'MMA Rev-Exp Region 7'!$Z$9, 0)","v":{"v":0,"d":"$0.00"}},{"$f":"IFERROR('MMA Rev-Exp Region 7'!$AA$58/'MMA Rev-Exp Region 7'!$AA$9, 0)","v":{"v":0,"d":"$0.00"}},{"$f":"IFERROR('MMA Rev-Exp Region 7'!$AB$58/'MMA Rev-Exp Region 7'!$AB$9, 0)","v":{"v":0,"d":"$0.00"}},{"$f":"IFERROR('MMA Rev-Exp Region 7'!$AC$58/'MMA Rev-Exp Region 7'!$AC$9, 0)","v":{"v":0,"d":"$0.00"}},{"$f":"IFERROR('MMA Rev-Exp Region 7'!$AD$58/'MMA Rev-Exp Region 7'!$AD$9, 0)","v":{"v":0,"d":"$0.00"}},{"$f":"IFERROR('MMA Rev-Exp Region 7'!$AE$58/'MMA Rev-Exp Region 7'!$AE$9, 0)","v":{"v":0,"d":"$0.00"}},{"$f":"IFERROR('MMA Rev-Exp Region 7'!$AF$58/'MMA Rev-Exp Region 7'!$AF$9, 0)","v":{"v":0,"d":"$0.00"}},{"$f":"IFERROR('MMA Rev-Exp Region 7'!$AG$58/'MMA Rev-Exp Region 7'!$AG$9, 0)","v":{"v":0,"d":"$0.00"}},{"$f":"IFERROR('MMA Rev-Exp Region 7'!$AH$58/'MMA Rev-Exp Region 7'!$AH$9, 0)","v":{"v":0,"d":"$0.00"}},{"$f":"IFERROR('MMA Rev-Exp Region 7'!$AI$58/'MMA Rev-Exp Region 7'!$AI$9, 0)","v":{"v":0,"d":"$0.00"}},{"$f":"IFERROR('MMA Rev-Exp Region 7'!$AJ$58/'MMA Rev-Exp Region 7'!$AJ$9, 0)","v":{"v":0,"d":"$0.00"}}]
["MMA",null,null,2016,"2016-12-31","Q3","2017-09-30","Region 7","Operating Expense","Medical Benefits Expense","Pharmacy Services","8.4","Prescription Drug Rebates ",{"$f":"IFERROR('MMA Rev-Exp Region 7'!$Z$59/'MMA Rev-Exp Region 7'!$Z$9, 0)","v":{"v":0,"d":"$0.00"}},{"$f":"IFERROR('MMA Rev-Exp Region 7'!$AA$59/'MMA Rev-Exp Region 7'!$AA$9, 0)","v":{"v":0,"d":"$0.00"}},{"$f":"IFERROR('MMA Rev-Exp Region 7'!$AB$59/'MMA Rev-Exp Region 7'!$AB$9, 0)","v":{"v":0,"d":"$0.00"}},{"$f":"IFERROR('MMA Rev-Exp Region 7'!$AC$59/'MMA Rev-Exp Region 7'!$AC$9, 0)","v":{"v":0,"d":"$0.00"}},{"$f":"IFERROR('MMA Rev-Exp Region 7'!$AD$59/'MMA Rev-Exp Region 7'!$AD$9, 0)","v":{"v":0,"d":"$0.00"}},{"$f":"IFERROR('MMA Rev-Exp Region 7'!$AE$59/'MMA Rev-Exp Region 7'!$AE$9, 0)","v":{"v":0,"d":"$0.00"}},{"$f":"IFERROR('MMA Rev-Exp Region 7'!$AF$59/'MMA Rev-Exp Region 7'!$AF$9, 0)","v":{"v":0,"d":"$0.00"}},{"$f":"IFERROR('MMA Rev-Exp Region 7'!$AG$59/'MMA Rev-Exp Region 7'!$AG$9, 0)","v":{"v":0,"d":"$0.00"}},{"$f":"IFERROR('MMA Rev-Exp Region 7'!$AH$59/'MMA Rev-Exp Region 7'!$AH$9, 0)","v":{"v":0,"d":"$0.00"}},{"$f":"IFERROR('MMA Rev-Exp Region 7'!$AI$59/'MMA Rev-Exp Region 7'!$AI$9, 0)","v":{"v":0,"d":"$0.00"}},{"$f":"IFERROR('MMA Rev-Exp Region 7'!$AJ$59/'MMA Rev-Exp Region 7'!$AJ$9, 0)","v":{"v":0,"d":"$0.00"}}]
["MMA",null,null,2016,"2016-12-31","Q3","2017-09-30","Region 7","Operating Expense","Medical Benefits Expense","Pharmacy Services","8.5","Ending accrual for Rebates receivable",{"$f":"IFERROR('MMA Rev-Exp Region 7'!$Z$60/'MMA Rev-Exp Region 7'!$Z$9, 0)","v":{"v":0,"d":"$0.00"}},{"$f":"IFERROR('MMA Rev-Exp Region 7'!$AA$60/'MMA Rev-Exp Region 7'!$AA$9, 0)","v":{"v":0,"d":"$0.00"}},{"$f":"IFERROR('MMA Rev-Exp Region 7'!$AB$60/'MMA Rev-Exp Region 7'!$AB$9, 0)","v":{"v":0,"d":"$0.00"}},{"$f":"IFERROR('MMA Rev-Exp Region 7'!$AC$60/'MMA Rev-Exp Region 7'!$AC$9, 0)","v":{"v":0,"d":"$0.00"}},{"$f":"IFERROR('MMA Rev-Exp Region 7'!$AD$60/'MMA Rev-Exp Region 7'!$AD$9, 0)","v":{"v":0,"d":"$0.00"}},{"$f":"IFERROR('MMA Rev-Exp Region 7'!$AE$60/'MMA Rev-Exp Region 7'!$AE$9, 0)","v":{"v":0,"d":"$0.00"}},{"$f":"IFERROR('MMA Rev-Exp Region 7'!$AF$60/'MMA Rev-Exp Region 7'!$AF$9, 0)","v":{"v":0,"d":"$0.00"}},{"$f":"IFERROR('MMA Rev-Exp Region 7'!$AG$60/'MMA Rev-Exp Region 7'!$AG$9, 0)","v":{"v":0,"d":"$0.00"}},{"$f":"IFERROR('MMA Rev-Exp Region 7'!$AH$60/'MMA Rev-Exp Region 7'!$AH$9, 0)","v":{"v":0,"d":"$0.00"}},{"$f":"IFERROR('MMA Rev-Exp Region 7'!$AI$60/'MMA Rev-Exp Region 7'!$AI$9, 0)","v":{"v":0,"d":"$0.00"}},{"$f":"IFERROR('MMA Rev-Exp Region 7'!$AJ$60/'MMA Rev-Exp Region 7'!$AJ$9, 0)","v":{"v":0,"d":"$0.00"}}]
["MMA",null,null,2016,"2016-12-31","Q3","2017-09-30","Region 7","Operating Expense","Medical Benefits Expense","Pharmacy Services","8.6","Prescription Drugs Subcapitation",{"$f":"IFERROR('MMA Rev-Exp Region 7'!$Z$61/'MMA Rev-Exp Region 7'!$Z$9, 0)","v":{"v":0,"d":"$0.00"}},{"$f":"IFERROR('MMA Rev-Exp Region 7'!$AA$61/'MMA Rev-Exp Region 7'!$AA$9, 0)","v":{"v":0,"d":"$0.00"}},{"$f":"IFERROR('MMA Rev-Exp Region 7'!$AB$61/'MMA Rev-Exp Region 7'!$AB$9, 0)","v":{"v":0,"d":"$0.00"}},{"$f":"IFERROR('MMA Rev-Exp Region 7'!$AC$61/'MMA Rev-Exp Region 7'!$AC$9, 0)","v":{"v":0,"d":"$0.00"}},{"$f":"IFERROR('MMA Rev-Exp Region 7'!$AD$61/'MMA Rev-Exp Region 7'!$AD$9, 0)","v":{"v":0,"d":"$0.00"}},{"$f":"IFERROR('MMA Rev-Exp Region 7'!$AE$61/'MMA Rev-Exp Region 7'!$AE$9, 0)","v":{"v":0,"d":"$0.00"}},{"$f":"IFERROR('MMA Rev-Exp Region 7'!$AF$61/'MMA Rev-Exp Region 7'!$AF$9, 0)","v":{"v":0,"d":"$0.00"}},{"$f":"IFERROR('MMA Rev-Exp Region 7'!$AG$61/'MMA Rev-Exp Region 7'!$AG$9, 0)","v":{"v":0,"d":"$0.00"}},{"$f":"IFERROR('MMA Rev-Exp Region 7'!$AH$61/'MMA Rev-Exp Region 7'!$AH$9, 0)","v":{"v":0,"d":"$0.00"}},{"$f":"IFERROR('MMA Rev-Exp Region 7'!$AI$61/'MMA Rev-Exp Region 7'!$AI$9, 0)","v":{"v":0,"d":"$0.00"}},{"$f":"IFERROR('MMA Rev-Exp Region 7'!$AJ$61/'MMA Rev-Exp Region 7'!$AJ$9, 0)","v":{"v":0,"d":"$0.00"}}]
["MMA",null,null,2016,"2016-12-31","Q3","2017-09-30","Region 7","Operating Expense","Medical Benefits Expense","Pharmacy Services","8.7","Prescription Drug Settlements",{"$f":"IFERROR('MMA Rev-Exp Region 7'!$Z$62/'MMA Rev-Exp Region 7'!$Z$9, 0)","v":{"v":0,"d":"$0.00"}},{"$f":"IFERROR('MMA Rev-Exp Region 7'!$AA$62/'MMA Rev-Exp Region 7'!$AA$9, 0)","v":{"v":0,"d":"$0.00"}},{"$f":"IFERROR('MMA Rev-Exp Region 7'!$AB$62/'MMA Rev-Exp Region 7'!$AB$9, 0)","v":{"v":0,"d":"$0.00"}},{"$f":"IFERROR('MMA Rev-Exp Region 7'!$AC$62/'MMA Rev-Exp Region 7'!$AC$9, 0)","v":{"v":0,"d":"$0.00"}},{"$f":"IFERROR('MMA Rev-Exp Region 7'!$AD$62/'MMA Rev-Exp Region 7'!$AD$9, 0)","v":{"v":0,"d":"$0.00"}},{"$f":"IFERROR('MMA Rev-Exp Region 7'!$AE$62/'MMA Rev-Exp Region 7'!$AE$9, 0)","v":{"v":0,"d":"$0.00"}},{"$f":"IFERROR('MMA Rev-Exp Region 7'!$AF$62/'MMA Rev-Exp Region 7'!$AF$9, 0)","v":{"v":0,"d":"$0.00"}},{"$f":"IFERROR('MMA Rev-Exp Region 7'!$AG$62/'MMA Rev-Exp Region 7'!$AG$9, 0)","v":{"v":0,"d":"$0.00"}},{"$f":"IFERROR('MMA Rev-Exp Region 7'!$AH$62/'MMA Rev-Exp Region 7'!$AH$9, 0)","v":{"v":0,"d":"$0.00"}},{"$f":"IFERROR('MMA Rev-Exp Region 7'!$AI$62/'MMA Rev-Exp Region 7'!$AI$9, 0)","v":{"v":0,"d":"$0.00"}},{"$f":"IFERROR('MMA Rev-Exp Region 7'!$AJ$62/'MMA Rev-Exp Region 7'!$AJ$9, 0)","v":{"v":0,"d":"$0.00"}}]
["MMA",null,null,2016,"2016-12-31","Q3","2017-09-30","Region 7","Operating Expense","Medical Benefits Expense","Other MMA Services",9.1,"Home Health, Private Duty Nursing, Personal Care FFS",{"$f":"IFERROR('MMA Rev-Exp Region 7'!$Z$64/'MMA Rev-Exp Region 7'!$Z$9, 0)","v":{"v":0,"d":"$0.00"}},{"$f":"IFERROR('MMA Rev-Exp Region 7'!$AA$64/'MMA Rev-Exp Region 7'!$AA$9, 0)","v":{"v":0,"d":"$0.00"}},{"$f":"IFERROR('MMA Rev-Exp Region 7'!$AB$64/'MMA Rev-Exp Region 7'!$AB$9, 0)","v":{"v":0,"d":"$0.00"}},{"$f":"IFERROR('MMA Rev-Exp Region 7'!$AC$64/'MMA Rev-Exp Region 7'!$AC$9, 0)","v":{"v":0,"d":"$0.00"}},{"$f":"IFERROR('MMA Rev-Exp Region 7'!$AD$64/'MMA Rev-Exp Region 7'!$AD$9, 0)","v":{"v":0,"d":"$0.00"}},{"$f":"IFERROR('MMA Rev-Exp Region 7'!$AE$64/'MMA Rev-Exp Region 7'!$AE$9, 0)","v":{"v":0,"d":"$0.00"}},{"$f":"IFERROR('MMA Rev-Exp Region 7'!$AF$64/'MMA Rev-Exp Region 7'!$AF$9, 0)","v":{"v":0,"d":"$0.00"}},{"$f":"IFERROR('MMA Rev-Exp Region 7'!$AG$64/'MMA Rev-Exp Region 7'!$AG$9, 0)","v":{"v":0,"d":"$0.00"}},{"$f":"IFERROR('MMA Rev-Exp Region 7'!$AH$64/'MMA Rev-Exp Region 7'!$AH$9, 0)","v":{"v":0,"d":"$0.00"}},{"$f":"IFERROR('MMA Rev-Exp Region 7'!$AI$64/'MMA Rev-Exp Region 7'!$AI$9, 0)","v":{"v":0,"d":"$0.00"}},{"$f":"IFERROR('MMA Rev-Exp Region 7'!$AJ$64/'MMA Rev-Exp Region 7'!$AJ$9, 0)","v":{"v":0,"d":"$0.00"}}]
["MMA",null,null,2016,"2016-12-31","Q3","2017-09-30","Region 7","Operating Expense","Medical Benefits Expense","Other MMA Services","9.2","Hospice FFS",{"$f":"IFERROR('MMA Rev-Exp Region 7'!$Z$65/'MMA Rev-Exp Region 7'!$Z$9, 0)","v":{"v":0,"d":"$0.00"}},{"$f":"IFERROR('MMA Rev-Exp Region 7'!$AA$65/'MMA Rev-Exp Region 7'!$AA$9, 0)","v":{"v":0,"d":"$0.00"}},{"$f":"IFERROR('MMA Rev-Exp Region 7'!$AB$65/'MMA Rev-Exp Region 7'!$AB$9, 0)","v":{"v":0,"d":"$0.00"}},{"$f":"IFERROR('MMA Rev-Exp Region 7'!$AC$65/'MMA Rev-Exp Region 7'!$AC$9, 0)","v":{"v":0,"d":"$0.00"}},{"$f":"IFERROR('MMA Rev-Exp Region 7'!$AD$65/'MMA Rev-Exp Region 7'!$AD$9, 0)","v":{"v":0,"d":"$0.00"}},{"$f":"IFERROR('MMA Rev-Exp Region 7'!$AE$65/'MMA Rev-Exp Region 7'!$AE$9, 0)","v":{"v":0,"d":"$0.00"}},{"$f":"IFERROR('MMA Rev-Exp Region 7'!$AF$65/'MMA Rev-Exp Region 7'!$AF$9, 0)","v":{"v":0,"d":"$0.00"}},{"$f":"IFERROR('MMA Rev-Exp Region 7'!$AG$65/'MMA Rev-Exp Region 7'!$AG$9, 0)","v":{"v":0,"d":"$0.00"}},{"$f":"IFERROR('MMA Rev-Exp Region 7'!$AH$65/'MMA Rev-Exp Region 7'!$AH$9, 0)","v":{"v":0,"d":"$0.00"}},{"$f":"IFERROR('MMA Rev-Exp Region 7'!$AI$65/'MMA Rev-Exp Region 7'!$AI$9, 0)","v":{"v":0,"d":"$0.00"}},{"$f":"IFERROR('MMA Rev-Exp Region 7'!$AJ$65/'MMA Rev-Exp Region 7'!$AJ$9, 0)","v":{"v":0,"d":"$0.00"}}]
["MMA",null,null,2016,"2016-12-31","Q3","2017-09-30","Region 7","Operating Expense","Medical Benefits Expense","Other MMA Services","9.3","DME FFS",{"$f":"IFERROR('MMA Rev-Exp Region 7'!$Z$66/'MMA Rev-Exp Region 7'!$Z$9, 0)","v":{"v":0,"d":"$0.00"}},{"$f":"IFERROR('MMA Rev-Exp Region 7'!$AA$66/'MMA Rev-Exp Region 7'!$AA$9, 0)","v":{"v":0,"d":"$0.00"}},{"$f":"IFERROR('MMA Rev-Exp Region 7'!$AB$66/'MMA Rev-Exp Region 7'!$AB$9, 0)","v":{"v":0,"d":"$0.00"}},{"$f":"IFERROR('MMA Rev-Exp Region 7'!$AC$66/'MMA Rev-Exp Region 7'!$AC$9, 0)","v":{"v":0,"d":"$0.00"}},{"$f":"IFERROR('MMA Rev-Exp Region 7'!$AD$66/'MMA Rev-Exp Region 7'!$AD$9, 0)","v":{"v":0,"d":"$0.00"}},{"$f":"IFERROR('MMA Rev-Exp Region 7'!$AE$66/'MMA Rev-Exp Region 7'!$AE$9, 0)","v":{"v":0,"d":"$0.00"}},{"$f":"IFERROR('MMA Rev-Exp Region 7'!$AF$66/'MMA Rev-Exp Region 7'!$AF$9, 0)","v":{"v":0,"d":"$0.00"}},{"$f":"IFERROR('MMA Rev-Exp Region 7'!$AG$66/'MMA Rev-Exp Region 7'!$AG$9, 0)","v":{"v":0,"d":"$0.00"}},{"$f":"IFERROR('MMA Rev-Exp Region 7'!$AH$66/'MMA Rev-Exp Region 7'!$AH$9, 0)","v":{"v":0,"d":"$0.00"}},{"$f":"IFERROR('MMA Rev-Exp Region 7'!$AI$66/'MMA Rev-Exp Region 7'!$AI$9, 0)","v":{"v":0,"d":"$0.00"}},{"$f":"IFERROR('MMA Rev-Exp Region 7'!$AJ$66/'MMA Rev-Exp Region 7'!$AJ$9, 0)","v":{"v":0,"d":"$0.00"}}]
["MMA",null,null,2016,"2016-12-31","Q3","2017-09-30","Region 7","Operating Expense","Medical Benefits Expense","Other MMA Services","9.4","Other State Plan Services FFS",{"$f":"IFERROR('MMA Rev-Exp Region 7'!$Z$67/'MMA Rev-Exp Region 7'!$Z$9, 0)","v":{"v":0,"d":"$0.00"}},{"$f":"IFERROR('MMA Rev-Exp Region 7'!$AA$67/'MMA Rev-Exp Region 7'!$AA$9, 0)","v":{"v":0,"d":"$0.00"}},{"$f":"IFERROR('MMA Rev-Exp Region 7'!$AB$67/'MMA Rev-Exp Region 7'!$AB$9, 0)","v":{"v":0,"d":"$0.00"}},{"$f":"IFERROR('MMA Rev-Exp Region 7'!$AC$67/'MMA Rev-Exp Region 7'!$AC$9, 0)","v":{"v":0,"d":"$0.00"}},{"$f":"IFERROR('MMA Rev-Exp Region 7'!$AD$67/'MMA Rev-Exp Region 7'!$AD$9, 0)","v":{"v":0,"d":"$0.00"}},{"$f":"IFERROR('MMA Rev-Exp Region 7'!$AE$67/'MMA Rev-Exp Region 7'!$AE$9, 0)","v":{"v":0,"d":"$0.00"}},{"$f":"IFERROR('MMA Rev-Exp Region 7'!$AF$67/'MMA Rev-Exp Region 7'!$AF$9, 0)","v":{"v":0,"d":"$0.00"}},{"$f":"IFERROR('MMA Rev-Exp Region 7'!$AG$67/'MMA Rev-Exp Region 7'!$AG$9, 0)","v":{"v":0,"d":"$0.00"}},{"$f":"IFERROR('MMA Rev-Exp Region 7'!$AH$67/'MMA Rev-Exp Region 7'!$AH$9, 0)","v":{"v":0,"d":"$0.00"}},{"$f":"IFERROR('MMA Rev-Exp Region 7'!$AI$67/'MMA Rev-Exp Region 7'!$AI$9, 0)","v":{"v":0,"d":"$0.00"}},{"$f":"IFERROR('MMA Rev-Exp Region 7'!$AJ$67/'MMA Rev-Exp Region 7'!$AJ$9, 0)","v":{"v":0,"d":"$0.00"}}]
["MMA",null,null,2016,"2016-12-31","Q3","2017-09-30","Region 7","Operating Expense","Medical Benefits Expense","Other MMA Services","9.5","Other Services Subcapitation",{"$f":"IFERROR('MMA Rev-Exp Region 7'!$Z$68/'MMA Rev-Exp Region 7'!$Z$9, 0)","v":{"v":0,"d":"$0.00"}},{"$f":"IFERROR('MMA Rev-Exp Region 7'!$AA$68/'MMA Rev-Exp Region 7'!$AA$9, 0)","v":{"v":0,"d":"$0.00"}},{"$f":"IFERROR('MMA Rev-Exp Region 7'!$AB$68/'MMA Rev-Exp Region 7'!$AB$9, 0)","v":{"v":0,"d":"$0.00"}},{"$f":"IFERROR('MMA Rev-Exp Region 7'!$AC$68/'MMA Rev-Exp Region 7'!$AC$9, 0)","v":{"v":0,"d":"$0.00"}},{"$f":"IFERROR('MMA Rev-Exp Region 7'!$AD$68/'MMA Rev-Exp Region 7'!$AD$9, 0)","v":{"v":0,"d":"$0.00"}},{"$f":"IFERROR('MMA Rev-Exp Region 7'!$AE$68/'MMA Rev-Exp Region 7'!$AE$9, 0)","v":{"v":0,"d":"$0.00"}},{"$f":"IFERROR('MMA Rev-Exp Region 7'!$AF$68/'MMA Rev-Exp Region 7'!$AF$9, 0)","v":{"v":0,"d":"$0.00"}},{"$f":"IFERROR('MMA Rev-Exp Region 7'!$AG$68/'MMA Rev-Exp Region 7'!$AG$9, 0)","v":{"v":0,"d":"$0.00"}},{"$f":"IFERROR('MMA Rev-Exp Region 7'!$AH$68/'MMA Rev-Exp Region 7'!$AH$9, 0)","v":{"v":0,"d":"$0.00"}},{"$f":"IFERROR('MMA Rev-Exp Region 7'!$AI$68/'MMA Rev-Exp Region 7'!$AI$9, 0)","v":{"v":0,"d":"$0.00"}},{"$f":"IFERROR('MMA Rev-Exp Region 7'!$AJ$68/'MMA Rev-Exp Region 7'!$AJ$9, 0)","v":{"v":0,"d":"$0.00"}}]
["MMA",null,null,2016,"2016-12-31","Q3","2017-09-30","Region 7","Operating Expense","Medical Benefits Expense","Other MMA Services","9.6","Ending IBNP for Other Services",{"$f":"IFERROR('MMA Rev-Exp Region 7'!$Z$69/'MMA Rev-Exp Region 7'!$Z$9, 0)","v":{"v":0,"d":"$0.00"}},{"$f":"IFERROR('MMA Rev-Exp Region 7'!$AA$69/'MMA Rev-Exp Region 7'!$AA$9, 0)","v":{"v":0,"d":"$0.00"}},{"$f":"IFERROR('MMA Rev-Exp Region 7'!$AB$69/'MMA Rev-Exp Region 7'!$AB$9, 0)","v":{"v":0,"d":"$0.00"}},{"$f":"IFERROR('MMA Rev-Exp Region 7'!$AC$69/'MMA Rev-Exp Region 7'!$AC$9, 0)","v":{"v":0,"d":"$0.00"}},{"$f":"IFERROR('MMA Rev-Exp Region 7'!$AD$69/'MMA Rev-Exp Region 7'!$AD$9, 0)","v":{"v":0,"d":"$0.00"}},{"$f":"IFERROR('MMA Rev-Exp Region 7'!$AE$69/'MMA Rev-Exp Region 7'!$AE$9, 0)","v":{"v":0,"d":"$0.00"}},{"$f":"IFERROR('MMA Rev-Exp Region 7'!$AF$69/'MMA Rev-Exp Region 7'!$AF$9, 0)","v":{"v":0,"d":"$0.00"}},{"$f":"IFERROR('MMA Rev-Exp Region 7'!$AG$69/'MMA Rev-Exp Region 7'!$AG$9, 0)","v":{"v":0,"d":"$0.00"}},{"$f":"IFERROR('MMA Rev-Exp Region 7'!$AH$69/'MMA Rev-Exp Region 7'!$AH$9, 0)","v":{"v":0,"d":"$0.00"}},{"$f":"IFERROR('MMA Rev-Exp Region 7'!$AI$69/'MMA Rev-Exp Region 7'!$AI$9, 0)","v":{"v":0,"d":"$0.00"}},{"$f":"IFERROR('MMA Rev-Exp Region 7'!$AJ$69/'MMA Rev-Exp Region 7'!$AJ$9, 0)","v":{"v":0,"d":"$0.00"}}]
["MMA",null,null,2016,"2016-12-31","Q3","2017-09-30","Region 7","Operating Expense","Medical Benefits Expense","Other MMA Services","9.7","Other Services Settlements",{"$f":"IFERROR('MMA Rev-Exp Region 7'!$Z$70/'MMA Rev-Exp Region 7'!$Z$9, 0)","v":{"v":0,"d":"$0.00"}},{"$f":"IFERROR('MMA Rev-Exp Region 7'!$AA$70/'MMA Rev-Exp Region 7'!$AA$9, 0)","v":{"v":0,"d":"$0.00"}},{"$f":"IFERROR('MMA Rev-Exp Region 7'!$AB$70/'MMA Rev-Exp Region 7'!$AB$9, 0)","v":{"v":0,"d":"$0.00"}},{"$f":"IFERROR('MMA Rev-Exp Region 7'!$AC$70/'MMA Rev-Exp Region 7'!$AC$9, 0)","v":{"v":0,"d":"$0.00"}},{"$f":"IFERROR('MMA Rev-Exp Region 7'!$AD$70/'MMA Rev-Exp Region 7'!$AD$9, 0)","v":{"v":0,"d":"$0.00"}},{"$f":"IFERROR('MMA Rev-Exp Region 7'!$AE$70/'MMA Rev-Exp Region 7'!$AE$9, 0)","v":{"v":0,"d":"$0.00"}},{"$f":"IFERROR('MMA Rev-Exp Region 7'!$AF$70/'MMA Rev-Exp Region 7'!$AF$9, 0)","v":{"v":0,"d":"$0.00"}},{"$f":"IFERROR('MMA Rev-Exp Region 7'!$AG$70/'MMA Rev-Exp Region 7'!$AG$9, 0)","v":{"v":0,"d":"$0.00"}},{"$f":"IFERROR('MMA Rev-Exp Region 7'!$AH$70/'MMA Rev-Exp Region 7'!$AH$9, 0)","v":{"v":0,"d":"$0.00"}},{"$f":"IFERROR('MMA Rev-Exp Region 7'!$AI$70/'MMA Rev-Exp Region 7'!$AI$9, 0)","v":{"v":0,"d":"$0.00"}},{"$f":"IFERROR('MMA Rev-Exp Region 7'!$AJ$70/'MMA Rev-Exp Region 7'!$AJ$9, 0)","v":{"v":0,"d":"$0.00"}}]
["MMA",null,null,2016,"2016-12-31","Q3","2017-09-30","Region 7","Operating Expense","Medical Benefits Expense","Expanded Benefits","10.1","Expanded Benefits FFS",{"$f":"IFERROR('MMA Rev-Exp Region 7'!$Z$72/'MMA Rev-Exp Region 7'!$Z$9, 0)","v":{"v":0,"d":"$0.00"}},{"$f":"IFERROR('MMA Rev-Exp Region 7'!$AA$72/'MMA Rev-Exp Region 7'!$AA$9, 0)","v":{"v":0,"d":"$0.00"}},{"$f":"IFERROR('MMA Rev-Exp Region 7'!$AB$72/'MMA Rev-Exp Region 7'!$AB$9, 0)","v":{"v":0,"d":"$0.00"}},{"$f":"IFERROR('MMA Rev-Exp Region 7'!$AC$72/'MMA Rev-Exp Region 7'!$AC$9, 0)","v":{"v":0,"d":"$0.00"}},{"$f":"IFERROR('MMA Rev-Exp Region 7'!$AD$72/'MMA Rev-Exp Region 7'!$AD$9, 0)","v":{"v":0,"d":"$0.00"}},{"$f":"IFERROR('MMA Rev-Exp Region 7'!$AE$72/'MMA Rev-Exp Region 7'!$AE$9, 0)","v":{"v":0,"d":"$0.00"}},{"$f":"IFERROR('MMA Rev-Exp Region 7'!$AF$72/'MMA Rev-Exp Region 7'!$AF$9, 0)","v":{"v":0,"d":"$0.00"}},{"$f":"IFERROR('MMA Rev-Exp Region 7'!$AG$72/'MMA Rev-Exp Region 7'!$AG$9, 0)","v":{"v":0,"d":"$0.00"}},{"$f":"IFERROR('MMA Rev-Exp Region 7'!$AH$72/'MMA Rev-Exp Region 7'!$AH$9, 0)","v":{"v":0,"d":"$0.00"}},{"$f":"IFERROR('MMA Rev-Exp Region 7'!$AI$72/'MMA Rev-Exp Region 7'!$AI$9, 0)","v":{"v":0,"d":"$0.00"}},{"$f":"IFERROR('MMA Rev-Exp Region 7'!$AJ$72/'MMA Rev-Exp Region 7'!$AJ$9, 0)","v":{"v":0,"d":"$0.00"}}]
["MMA",null,null,2016,"2016-12-31","Q3","2017-09-30","Region 7","Operating Expense","Medical Benefits Expense","Expanded Benefits","10.2","Expanded benefits Subcapitation",{"$f":"IFERROR('MMA Rev-Exp Region 7'!$Z$73/'MMA Rev-Exp Region 7'!$Z$9, 0)","v":{"v":0,"d":"$0.00"}},{"$f":"IFERROR('MMA Rev-Exp Region 7'!$AA$73/'MMA Rev-Exp Region 7'!$AA$9, 0)","v":{"v":0,"d":"$0.00"}},{"$f":"IFERROR('MMA Rev-Exp Region 7'!$AB$73/'MMA Rev-Exp Region 7'!$AB$9, 0)","v":{"v":0,"d":"$0.00"}},{"$f":"IFERROR('MMA Rev-Exp Region 7'!$AC$73/'MMA Rev-Exp Region 7'!$AC$9, 0)","v":{"v":0,"d":"$0.00"}},{"$f":"IFERROR('MMA Rev-Exp Region 7'!$AD$73/'MMA Rev-Exp Region 7'!$AD$9, 0)","v":{"v":0,"d":"$0.00"}},{"$f":"IFERROR('MMA Rev-Exp Region 7'!$AE$73/'MMA Rev-Exp Region 7'!$AE$9, 0)","v":{"v":0,"d":"$0.00"}},{"$f":"IFERROR('MMA Rev-Exp Region 7'!$AF$73/'MMA Rev-Exp Region 7'!$AF$9, 0)","v":{"v":0,"d":"$0.00"}},{"$f":"IFERROR('MMA Rev-Exp Region 7'!$AG$73/'MMA Rev-Exp Region 7'!$AG$9, 0)","v":{"v":0,"d":"$0.00"}},{"$f":"IFERROR('MMA Rev-Exp Region 7'!$AH$73/'MMA Rev-Exp Region 7'!$AH$9, 0)","v":{"v":0,"d":"$0.00"}},{"$f":"IFERROR('MMA Rev-Exp Region 7'!$AI$73/'MMA Rev-Exp Region 7'!$AI$9, 0)","v":{"v":0,"d":"$0.00"}},{"$f":"IFERROR('MMA Rev-Exp Region 7'!$AJ$73/'MMA Rev-Exp Region 7'!$AJ$9, 0)","v":{"v":0,"d":"$0.00"}}]
["MMA",null,null,2016,"2016-12-31","Q3","2017-09-30","Region 7","Operating Expense","Medical Benefits Expense","Expanded Benefits","10.3","Ending IBNP for Expanded Benefits",{"$f":"IFERROR('MMA Rev-Exp Region 7'!$Z$74/'MMA Rev-Exp Region 7'!$Z$9, 0)","v":{"v":0,"d":"$0.00"}},{"$f":"IFERROR('MMA Rev-Exp Region 7'!$AA$74/'MMA Rev-Exp Region 7'!$AA$9, 0)","v":{"v":0,"d":"$0.00"}},{"$f":"IFERROR('MMA Rev-Exp Region 7'!$AB$74/'MMA Rev-Exp Region 7'!$AB$9, 0)","v":{"v":0,"d":"$0.00"}},{"$f":"IFERROR('MMA Rev-Exp Region 7'!$AC$74/'MMA Rev-Exp Region 7'!$AC$9, 0)","v":{"v":0,"d":"$0.00"}},{"$f":"IFERROR('MMA Rev-Exp Region 7'!$AD$74/'MMA Rev-Exp Region 7'!$AD$9, 0)","v":{"v":0,"d":"$0.00"}},{"$f":"IFERROR('MMA Rev-Exp Region 7'!$AE$74/'MMA Rev-Exp Region 7'!$AE$9, 0)","v":{"v":0,"d":"$0.00"}},{"$f":"IFERROR('MMA Rev-Exp Region 7'!$AF$74/'MMA Rev-Exp Region 7'!$AF$9, 0)","v":{"v":0,"d":"$0.00"}},{"$f":"IFERROR('MMA Rev-Exp Region 7'!$AG$74/'MMA Rev-Exp Region 7'!$AG$9, 0)","v":{"v":0,"d":"$0.00"}},{"$f":"IFERROR('MMA Rev-Exp Region 7'!$AH$74/'MMA Rev-Exp Region 7'!$AH$9, 0)","v":{"v":0,"d":"$0.00"}},{"$f":"IFERROR('MMA Rev-Exp Region 7'!$AI$74/'MMA Rev-Exp Region 7'!$AI$9, 0)","v":{"v":0,"d":"$0.00"}},{"$f":"IFERROR('MMA Rev-Exp Region 7'!$AJ$74/'MMA Rev-Exp Region 7'!$AJ$9, 0)","v":{"v":0,"d":"$0.00"}}]
["MMA",null,null,2016,"2016-12-31","Q3","2017-09-30","Region 7","Operating Expense","Medical Benefits Expense","Expanded Benefits","10.4","Expanded Benefits Settlements",{"$f":"IFERROR('MMA Rev-Exp Region 7'!$Z$75/'MMA Rev-Exp Region 7'!$Z$9, 0)","v":{"v":0,"d":"$0.00"}},{"$f":"IFERROR('MMA Rev-Exp Region 7'!$AA$75/'MMA Rev-Exp Region 7'!$AA$9, 0)","v":{"v":0,"d":"$0.00"}},{"$f":"IFERROR('MMA Rev-Exp Region 7'!$AB$75/'MMA Rev-Exp Region 7'!$AB$9, 0)","v":{"v":0,"d":"$0.00"}},{"$f":"IFERROR('MMA Rev-Exp Region 7'!$AC$75/'MMA Rev-Exp Region 7'!$AC$9, 0)","v":{"v":0,"d":"$0.00"}},{"$f":"IFERROR('MMA Rev-Exp Region 7'!$AD$75/'MMA Rev-Exp Region 7'!$AD$9, 0)","v":{"v":0,"d":"$0.00"}},{"$f":"IFERROR('MMA Rev-Exp Region 7'!$AE$75/'MMA Rev-Exp Region 7'!$AE$9, 0)","v":{"v":0,"d":"$0.00"}},{"$f":"IFERROR('MMA Rev-Exp Region 7'!$AF$75/'MMA Rev-Exp Region 7'!$AF$9, 0)","v":{"v":0,"d":"$0.00"}},{"$f":"IFERROR('MMA Rev-Exp Region 7'!$AG$75/'MMA Rev-Exp Region 7'!$AG$9, 0)","v":{"v":0,"d":"$0.00"}},{"$f":"IFERROR('MMA Rev-Exp Region 7'!$AH$75/'MMA Rev-Exp Region 7'!$AH$9, 0)","v":{"v":0,"d":"$0.00"}},{"$f":"IFERROR('MMA Rev-Exp Region 7'!$AI$75/'MMA Rev-Exp Region 7'!$AI$9, 0)","v":{"v":0,"d":"$0.00"}},{"$f":"IFERROR('MMA Rev-Exp Region 7'!$AJ$75/'MMA Rev-Exp Region 7'!$AJ$9, 0)","v":{"v":0,"d":"$0.00"}}]
["MMA",null,null,2016,"2016-12-31","Q3","2017-09-30","Region 7","Operating Expense","Medical Benefits Expense","Other Medical","11.5","TPL & Fraud/Abuse Recoveries",{"$f":"IFERROR('MMA Rev-Exp Region 7'!$Z$81/'MMA Rev-Exp Region 7'!$Z$9, 0)","v":{"v":0,"d":"$0.00"}},{"$f":"IFERROR('MMA Rev-Exp Region 7'!$AA$81/'MMA Rev-Exp Region 7'!$AA$9, 0)","v":{"v":0,"d":"$0.00"}},{"$f":"IFERROR('MMA Rev-Exp Region 7'!$AB$81/'MMA Rev-Exp Region 7'!$AB$9, 0)","v":{"v":0,"d":"$0.00"}},{"$f":"IFERROR('MMA Rev-Exp Region 7'!$AC$81/'MMA Rev-Exp Region 7'!$AC$9, 0)","v":{"v":0,"d":"$0.00"}},{"$f":"IFERROR('MMA Rev-Exp Region 7'!$AD$81/'MMA Rev-Exp Region 7'!$AD$9, 0)","v":{"v":0,"d":"$0.00"}},{"$f":"IFERROR('MMA Rev-Exp Region 7'!$AE$81/'MMA Rev-Exp Region 7'!$AE$9, 0)","v":{"v":0,"d":"$0.00"}},{"$f":"IFERROR('MMA Rev-Exp Region 7'!$AF$81/'MMA Rev-Exp Region 7'!$AF$9, 0)","v":{"v":0,"d":"$0.00"}},{"$f":"IFERROR('MMA Rev-Exp Region 7'!$AG$81/'MMA Rev-Exp Region 7'!$AG$9, 0)","v":{"v":0,"d":"$0.00"}},{"$f":"IFERROR('MMA Rev-Exp Region 7'!$AH$81/'MMA Rev-Exp Region 7'!$AH$9, 0)","v":{"v":0,"d":"$0.00"}},{"$f":"IFERROR('MMA Rev-Exp Region 7'!$AI$81/'MMA Rev-Exp Region 7'!$AI$9, 0)","v":{"v":0,"d":"$0.00"}},{"$f":"IFERROR('MMA Rev-Exp Region 7'!$AJ$81/'MMA Rev-Exp Region 7'!$AJ$9, 0)","v":{"v":0,"d":"$0.00"}}]
["MMA",null,null,2016,"2016-12-31","Q3","2017-09-30","Region 7","Operating Expense","Medical Benefits Expense","Other Medical","11.6.1","Premium Deficiency Reserve",{"$f":"IFERROR('MMA Rev-Exp Region 7'!$Z$82/'MMA Rev-Exp Region 7'!$Z$9, 0)","v":{"v":0,"d":"$0.00"}},{"$f":"IFERROR('MMA Rev-Exp Region 7'!$AA$82/'MMA Rev-Exp Region 7'!$AA$9, 0)","v":{"v":0,"d":"$0.00"}},{"$f":"IFERROR('MMA Rev-Exp Region 7'!$AB$82/'MMA Rev-Exp Region 7'!$AB$9, 0)","v":{"v":0,"d":"$0.00"}},{"$f":"IFERROR('MMA Rev-Exp Region 7'!$AC$82/'MMA Rev-Exp Region 7'!$AC$9, 0)","v":{"v":0,"d":"$0.00"}},{"$f":"IFERROR('MMA Rev-Exp Region 7'!$AD$82/'MMA Rev-Exp Region 7'!$AD$9, 0)","v":{"v":0,"d":"$0.00"}},{"$f":"IFERROR('MMA Rev-Exp Region 7'!$AE$82/'MMA Rev-Exp Region 7'!$AE$9, 0)","v":{"v":0,"d":"$0.00"}},{"$f":"IFERROR('MMA Rev-Exp Region 7'!$AF$82/'MMA Rev-Exp Region 7'!$AF$9, 0)","v":{"v":0,"d":"$0.00"}},{"$f":"IFERROR('MMA Rev-Exp Region 7'!$AG$82/'MMA Rev-Exp Region 7'!$AG$9, 0)","v":{"v":0,"d":"$0.00"}},{"$f":"IFERROR('MMA Rev-Exp Region 7'!$AH$82/'MMA Rev-Exp Region 7'!$AH$9, 0)","v":{"v":0,"d":"$0.00"}},{"$f":"IFERROR('MMA Rev-Exp Region 7'!$AI$82/'MMA Rev-Exp Region 7'!$AI$9, 0)","v":{"v":0,"d":"$0.00"}},{"$f":"IFERROR('MMA Rev-Exp Region 7'!$AJ$82/'MMA Rev-Exp Region 7'!$AJ$9, 0)","v":{"v":0,"d":"$0.00"}}]
["MMA",null,null,2016,"2016-12-31","Q3","2017-09-30","Region 7","Operating Expense","Medical Benefits Expense","Other Medical","11.8","Reinsurance Premiums",{"$f":"IFERROR('MMA Rev-Exp Region 7'!$Z$84/'MMA Rev-Exp Region 7'!$Z$9, 0)","v":{"v":0,"d":"$0.00"}},{"$f":"IFERROR('MMA Rev-Exp Region 7'!$AA$84/'MMA Rev-Exp Region 7'!$AA$9, 0)","v":{"v":0,"d":"$0.00"}},{"$f":"IFERROR('MMA Rev-Exp Region 7'!$AB$84/'MMA Rev-Exp Region 7'!$AB$9, 0)","v":{"v":0,"d":"$0.00"}},{"$f":"IFERROR('MMA Rev-Exp Region 7'!$AC$84/'MMA Rev-Exp Region 7'!$AC$9, 0)","v":{"v":0,"d":"$0.00"}},{"$f":"IFERROR('MMA Rev-Exp Region 7'!$AD$84/'MMA Rev-Exp Region 7'!$AD$9, 0)","v":{"v":0,"d":"$0.00"}},{"$f":"IFERROR('MMA Rev-Exp Region 7'!$AE$84/'MMA Rev-Exp Region 7'!$AE$9, 0)","v":{"v":0,"d":"$0.00"}},{"$f":"IFERROR('MMA Rev-Exp Region 7'!$AF$84/'MMA Rev-Exp Region 7'!$AF$9, 0)","v":{"v":0,"d":"$0.00"}},{"$f":"IFERROR('MMA Rev-Exp Region 7'!$AG$84/'MMA Rev-Exp Region 7'!$AG$9, 0)","v":{"v":0,"d":"$0.00"}},{"$f":"IFERROR('MMA Rev-Exp Region 7'!$AH$84/'MMA Rev-Exp Region 7'!$AH$9, 0)","v":{"v":0,"d":"$0.00"}},{"$f":"IFERROR('MMA Rev-Exp Region 7'!$AI$84/'MMA Rev-Exp Region 7'!$AI$9, 0)","v":{"v":0,"d":"$0.00"}},{"$f":"IFERROR('MMA Rev-Exp Region 7'!$AJ$84/'MMA Rev-Exp Region 7'!$AJ$9, 0)","v":{"v":0,"d":"$0.00"}}]
["MMA",null,null,2016,"2016-12-31","Q3","2017-09-30","Region 7","Operating Expense","Medical Benefits Expense","Other Medical","11.9","Reinsurance Recoveries",{"$f":"IFERROR('MMA Rev-Exp Region 7'!$Z$85/'MMA Rev-Exp Region 7'!$Z$9, 0)","v":{"v":0,"d":"$0.00"}},{"$f":"IFERROR('MMA Rev-Exp Region 7'!$AA$85/'MMA Rev-Exp Region 7'!$AA$9, 0)","v":{"v":0,"d":"$0.00"}},{"$f":"IFERROR('MMA Rev-Exp Region 7'!$AB$85/'MMA Rev-Exp Region 7'!$AB$9, 0)","v":{"v":0,"d":"$0.00"}},{"$f":"IFERROR('MMA Rev-Exp Region 7'!$AC$85/'MMA Rev-Exp Region 7'!$AC$9, 0)","v":{"v":0,"d":"$0.00"}},{"$f":"IFERROR('MMA Rev-Exp Region 7'!$AD$85/'MMA Rev-Exp Region 7'!$AD$9, 0)","v":{"v":0,"d":"$0.00"}},{"$f":"IFERROR('MMA Rev-Exp Region 7'!$AE$85/'MMA Rev-Exp Region 7'!$AE$9, 0)","v":{"v":0,"d":"$0.00"}},{"$f":"IFERROR('MMA Rev-Exp Region 7'!$AF$85/'MMA Rev-Exp Region 7'!$AF$9, 0)","v":{"v":0,"d":"$0.00"}},{"$f":"IFERROR('MMA Rev-Exp Region 7'!$AG$85/'MMA Rev-Exp Region 7'!$AG$9, 0)","v":{"v":0,"d":"$0.00"}},{"$f":"IFERROR('MMA Rev-Exp Region 7'!$AH$85/'MMA Rev-Exp Region 7'!$AH$9, 0)","v":{"v":0,"d":"$0.00"}},{"$f":"IFERROR('MMA Rev-Exp Region 7'!$AI$85/'MMA Rev-Exp Region 7'!$AI$9, 0)","v":{"v":0,"d":"$0.00"}},{"$f":"IFERROR('MMA Rev-Exp Region 7'!$AJ$85/'MMA Rev-Exp Region 7'!$AJ$9, 0)","v":{"v":0,"d":"$0.00"}}]
["MMA",null,null,2016,"2016-12-31","Q3","2017-09-30","Region 7","Operating Expense","Administrative Expense","Administrative","12.1","Salaries & Benefits",{"$f":"IFERROR('MMA Rev-Exp Region 7'!$Z$90/'MMA Rev-Exp Region 7'!$Z$9, 0)","v":{"v":0,"d":"$0.00"}},{"$f":"IFERROR('MMA Rev-Exp Region 7'!$AA$90/'MMA Rev-Exp Region 7'!$Z$9, 0)","v":{"v":0,"d":"$0.00"}},{"$f":"IFERROR('MMA Rev-Exp Region 7'!$AB$90/'MMA Rev-Exp Region 7'!$Z$9, 0)","v":{"v":0,"d":"$0.00"}}]
["MMA",null,null,2016,"2016-12-31","Q3","2017-09-30","Region 7","Operating Expense","Administrative Expense","Administrative","12.2","Administrative Services",{"$f":"IFERROR('MMA Rev-Exp Region 7'!$Z$91/'MMA Rev-Exp Region 7'!$Z$9, 0)","v":{"v":0,"d":"$0.00"}},{"$f":"IFERROR('MMA Rev-Exp Region 7'!$AA$91/'MMA Rev-Exp Region 7'!$Z$9, 0)","v":{"v":0,"d":"$0.00"}},{"$f":"IFERROR('MMA Rev-Exp Region 7'!$AB$91/'MMA Rev-Exp Region 7'!$Z$9, 0)","v":{"v":0,"d":"$0.00"}}]
["MMA",null,null,2016,"2016-12-31","Q3","2017-09-30","Region 7","Operating Expense","Administrative Expense","Administrative","12.3","Information Systems",{"$f":"IFERROR('MMA Rev-Exp Region 7'!$Z$92/'MMA Rev-Exp Region 7'!$Z$9, 0)","v":{"v":0,"d":"$0.00"}},{"$f":"IFERROR('MMA Rev-Exp Region 7'!$AA$92/'MMA Rev-Exp Region 7'!$Z$9, 0)","v":{"v":0,"d":"$0.00"}},{"$f":"IFERROR('MMA Rev-Exp Region 7'!$AB$92/'MMA Rev-Exp Region 7'!$Z$9, 0)","v":{"v":0,"d":"$0.00"}}]
["MMA",null,null,2016,"2016-12-31","Q3","2017-09-30","Region 7","Operating Expense","Administrative Expense","Administrative","12.4","Marketing Expenses",{"$f":"IFERROR('MMA Rev-Exp Region 7'!$Z$93/'MMA Rev-Exp Region 7'!$Z$9, 0)","v":{"v":0,"d":"$0.00"}},{"$f":"IFERROR('MMA Rev-Exp Region 7'!$AA$93/'MMA Rev-Exp Region 7'!$Z$9, 0)","v":{"v":0,"d":"$0.00"}},{"$f":"IFERROR('MMA Rev-Exp Region 7'!$AB$93/'MMA Rev-Exp Region 7'!$Z$9, 0)","v":{"v":0,"d":"$0.00"}}]
["MMA",null,null,2016,"2016-12-31","Q3","2017-09-30","Region 7","Operating Expense","Administrative Expense","Administrative","12.5","General  Administration",{"$f":"IFERROR('MMA Rev-Exp Region 7'!$Z$94/'MMA Rev-Exp Region 7'!$Z$9, 0)","v":{"v":0,"d":"$0.00"}},{"$f":"IFERROR('MMA Rev-Exp Region 7'!$AA$94/'MMA Rev-Exp Region 7'!$Z$9, 0)","v":{"v":0,"d":"$0.00"}},{"$f":"IFERROR('MMA Rev-Exp Region 7'!$AB$94/'MMA Rev-Exp Region 7'!$Z$9, 0)","v":{"v":0,"d":"$0.00"}}]
["MMA",null,null,2016,"2016-12-31","Q3","2017-09-30","Region 7","Operating Expense","Administrative Expense","Administrative","12.6","Compliance/Regulatory",{"$f":"IFERROR('MMA Rev-Exp Region 7'!$Z$95/'MMA Rev-Exp Region 7'!$Z$9, 0)","v":{"v":0,"d":"$0.00"}},{"$f":"IFERROR('MMA Rev-Exp Region 7'!$AA$95/'MMA Rev-Exp Region 7'!$Z$9, 0)","v":{"v":0,"d":"$0.00"}},{"$f":"IFERROR('MMA Rev-Exp Region 7'!$AB$95/'MMA Rev-Exp Region 7'!$Z$9, 0)","v":{"v":0,"d":"$0.00"}}]
["MMA",null,null,2016,"2016-12-31","Q3","2017-09-30","Region 7","Operating Expense","Taxes & Fees","Taxes & Fees","13.1","State Premium tax",{"$f":"IFERROR('MMA Rev-Exp Region 7'!$Z$97/'MMA Rev-Exp Region 7'!$Z$9, 0)","v":{"v":0,"d":"$0.00"}}]
["MMA",null,null,2016,"2016-12-31","Q3","2017-09-30","Region 7","Operating Expense","Taxes & Fees","Taxes & Fees","13.2","Department of Insurance Assessments",{"$f":"IFERROR('MMA Rev-Exp Region 7'!$Z$98/'MMA Rev-Exp Region 7'!$Z$9, 0)","v":{"v":0,"d":"$0.00"}}]
["MMA",null,null,2016,"2016-12-31","Q3","2017-09-30","Region 7","Operating Expense","Taxes & Fees","Taxes & Fees","13.3","Section 9010 Health Insurance Providers Fee",{"$f":"IFERROR('MMA Rev-Exp Region 7'!$Z$99/'MMA Rev-Exp Region 7'!$Z$9, 0)","v":{"v":0,"d":"$0.00"}}]
["MMA",null,null,2016,"2016-12-31","Q3","2017-09-30","Region 7","Non-Operating Expense","Income Tax Expense","Income Tax Expense","16.0","Income Tax Expense",{"$f":"IFERROR('MMA Rev-Exp Region 7'!$Z$106/'MMA Rev-Exp Region 7'!$Z$9, 0)","v":{"v":0,"d":"$0.00"}}]
["MMA",null,null,2016,"2016-12-31","Q4","2017-12-31","Region 7","Operating Revenue","Capitation","Capitation",1.1,"Capitation",{"$f":"IFERROR('MMA Rev-Exp Region 7'!$AK$11/'MMA Rev-Exp Region 7'!$AK$9, 0)","v":{"v":0,"d":"$0.00"}},{"$f":"IFERROR('MMA Rev-Exp Region 7'!$AL$11/'MMA Rev-Exp Region 7'!$AL$9, 0)","v":{"v":0,"d":"$0.00"}},{"$f":"IFERROR('MMA Rev-Exp Region 7'!$AM$11/'MMA Rev-Exp Region 7'!$AM$9, 0)","v":{"v":0,"d":"$0.00"}},{"$f":"IFERROR('MMA Rev-Exp Region 7'!$AN$11/'MMA Rev-Exp Region 7'!$AN$9, 0)","v":{"v":0,"d":"$0.00"}},{"$f":"IFERROR('MMA Rev-Exp Region 7'!$AO$11/'MMA Rev-Exp Region 7'!$AO$9, 0)","v":{"v":0,"d":"$0.00"}},{"$f":"IFERROR('MMA Rev-Exp Region 7'!$AP$11/'MMA Rev-Exp Region 7'!$AP$9, 0)","v":{"v":0,"d":"$0.00"}},{"$f":"IFERROR('MMA Rev-Exp Region 7'!$AQ$11/'MMA Rev-Exp Region 7'!$AQ$9, 0)","v":{"v":0,"d":"$0.00"}},{"$f":"IFERROR('MMA Rev-Exp Region 7'!$AR$11/'MMA Rev-Exp Region 7'!$AR$9, 0)","v":{"v":0,"d":"$0.00"}},{"$f":"IFERROR('MMA Rev-Exp Region 7'!$AS$11/'MMA Rev-Exp Region 7'!$AS$9, 0)","v":{"v":0,"d":"$0.00"}},{"$f":"IFERROR('MMA Rev-Exp Region 7'!$AT$11/'MMA Rev-Exp Region 7'!$AT$9, 0)","v":{"v":0,"d":"$0.00"}},{"$f":"IFERROR('MMA Rev-Exp Region 7'!$AU$11/'MMA Rev-Exp Region 7'!$AU$9, 0)","v":{"v":0,"d":"$0.00"}}]
["MMA",null,null,2016,"2016-12-31","Q4","2017-12-31","Region 7","Operating Revenue","Kick Payments","Kick Payments - Transplant",1.2,"Transplant Kick Payments",{"$f":"IFERROR('MMA Rev-Exp Region 7'!$AK$12/'MMA Rev-Exp Region 7'!$AK$9, 0)","v":{"v":0,"d":"$0.00"}},{"$f":"IFERROR('MMA Rev-Exp Region 7'!$AL$12/'MMA Rev-Exp Region 7'!$AL$9, 0)","v":{"v":0,"d":"$0.00"}},{"$f":"IFERROR('MMA Rev-Exp Region 7'!$AM$12/'MMA Rev-Exp Region 7'!$AM$9, 0)","v":{"v":0,"d":"$0.00"}},{"$f":"IFERROR('MMA Rev-Exp Region 7'!$AN$12/'MMA Rev-Exp Region 7'!$AN$9, 0)","v":{"v":0,"d":"$0.00"}},{"$f":"IFERROR('MMA Rev-Exp Region 7'!$AO$12/'MMA Rev-Exp Region 7'!$AO$9, 0)","v":{"v":0,"d":"$0.00"}},{"$f":"IFERROR('MMA Rev-Exp Region 7'!$AP$12/'MMA Rev-Exp Region 7'!$AP$9, 0)","v":{"v":0,"d":"$0.00"}},{"$f":"IFERROR('MMA Rev-Exp Region 7'!$AQ$12/'MMA Rev-Exp Region 7'!$AQ$9, 0)","v":{"v":0,"d":"$0.00"}},{"$f":"IFERROR('MMA Rev-Exp Region 7'!$AR$12/'MMA Rev-Exp Region 7'!$AR$9, 0)","v":{"v":0,"d":"$0.00"}},{"$f":"IFERROR('MMA Rev-Exp Region 7'!$AS$12/'MMA Rev-Exp Region 7'!$AS$9, 0)","v":{"v":0,"d":"$0.00"}},{"$f":"IFERROR('MMA Rev-Exp Region 7'!$AT$12/'MMA Rev-Exp Region 7'!$AT$9, 0)","v":{"v":0,"d":"$0.00"}},{"$f":"IFERROR('MMA Rev-Exp Region 7'!$AU$12/'MMA Rev-Exp Region 7'!$AU$9, 0)","v":{"v":0,"d":"$0.00"}}]
["MMA",null,null,2016,"2016-12-31","Q4","2017-12-31","Region 7","Operating Revenue","Kick Payments","Kick Payments - Hep C","1.3","Hepatitis C Kick Payments",{"$f":"IFERROR('MMA Rev-Exp Region 7'!$AK$13/'MMA Rev-Exp Region 7'!$AK$9, 0)","v":{"v":0,"d":"$0.00"}},{"$f":"IFERROR('MMA Rev-Exp Region 7'!$AL$13/'MMA Rev-Exp Region 7'!$AL$9, 0)","v":{"v":0,"d":"$0.00"}},{"$f":"IFERROR('MMA Rev-Exp Region 7'!$AM$13/'MMA Rev-Exp Region 7'!$AM$9, 0)","v":{"v":0,"d":"$0.00"}},{"$f":"IFERROR('MMA Rev-Exp Region 7'!$AN$13/'MMA Rev-Exp Region 7'!$AN$9, 0)","v":{"v":0,"d":"$0.00"}},{"$f":"IFERROR('MMA Rev-Exp Region 7'!$AO$13/'MMA Rev-Exp Region 7'!$AO$9, 0)","v":{"v":0,"d":"$0.00"}},{"$f":"IFERROR('MMA Rev-Exp Region 7'!$AP$13/'MMA Rev-Exp Region 7'!$AP$9, 0)","v":{"v":0,"d":"$0.00"}},{"$f":"IFERROR('MMA Rev-Exp Region 7'!$AQ$13/'MMA Rev-Exp Region 7'!$AQ$9, 0)","v":{"v":0,"d":"$0.00"}},{"$f":"IFERROR('MMA Rev-Exp Region 7'!$AR$13/'MMA Rev-Exp Region 7'!$AR$9, 0)","v":{"v":0,"d":"$0.00"}},{"$f":"IFERROR('MMA Rev-Exp Region 7'!$AS$13/'MMA Rev-Exp Region 7'!$AS$9, 0)","v":{"v":0,"d":"$0.00"}},{"$f":"IFERROR('MMA Rev-Exp Region 7'!$AT$13/'MMA Rev-Exp Region 7'!$AT$9, 0)","v":{"v":0,"d":"$0.00"}},{"$f":"IFERROR('MMA Rev-Exp Region 7'!$AU$13/'MMA Rev-Exp Region 7'!$AU$9, 0)","v":{"v":0,"d":"$0.00"}}]
["MMA",null,null,2016,"2016-12-31","Q4","2017-12-31","Region 7","Operating Revenue","Kick Payments","Kick Payments - Maternity","1.4.1","Maternity Kick Payments",{"$f":"IFERROR('MMA Rev-Exp Region 7'!$AK$14/'MMA Rev-Exp Region 7'!$AK$9, 0)","v":{"v":0,"d":"$0.00"}},{"$f":"IFERROR('MMA Rev-Exp Region 7'!$AL$14/'MMA Rev-Exp Region 7'!$AL$9, 0)","v":{"v":0,"d":"$0.00"}},{"$f":"IFERROR('MMA Rev-Exp Region 7'!$AM$14/'MMA Rev-Exp Region 7'!$AM$9, 0)","v":{"v":0,"d":"$0.00"}},{"$f":"IFERROR('MMA Rev-Exp Region 7'!$AN$14/'MMA Rev-Exp Region 7'!$AN$9, 0)","v":{"v":0,"d":"$0.00"}},{"$f":"IFERROR('MMA Rev-Exp Region 7'!$AO$14/'MMA Rev-Exp Region 7'!$AO$9, 0)","v":{"v":0,"d":"$0.00"}},{"$f":"IFERROR('MMA Rev-Exp Region 7'!$AP$14/'MMA Rev-Exp Region 7'!$AP$9, 0)","v":{"v":0,"d":"$0.00"}},{"$f":"IFERROR('MMA Rev-Exp Region 7'!$AQ$14/'MMA Rev-Exp Region 7'!$AQ$9, 0)","v":{"v":0,"d":"$0.00"}},{"$f":"IFERROR('MMA Rev-Exp Region 7'!$AR$14/'MMA Rev-Exp Region 7'!$AR$9, 0)","v":{"v":0,"d":"$0.00"}},{"$f":"IFERROR('MMA Rev-Exp Region 7'!$AS$14/'MMA Rev-Exp Region 7'!$AS$9, 0)","v":{"v":0,"d":"$0.00"}},{"$f":"IFERROR('MMA Rev-Exp Region 7'!$AT$14/'MMA Rev-Exp Region 7'!$AT$9, 0)","v":{"v":0,"d":"$0.00"}},{"$f":"IFERROR('MMA Rev-Exp Region 7'!$AU$14/'MMA Rev-Exp Region 7'!$AU$9, 0)","v":{"v":0,"d":"$0.00"}}]
["MMA",null,null,2016,"2016-12-31","Q4","2017-12-31","Region 7","Operating Revenue","Other Revenue","Other Revenue - 9010","1.5","ACA § 9010 related payments",{"$f":"IFERROR('MMA Rev-Exp Region 7'!$AK$15/'MMA Rev-Exp Region 7'!$AK$9, 0)","v":{"v":0,"d":"$0.00"}},{"$f":"IFERROR('MMA Rev-Exp Region 7'!$AL$15/'MMA Rev-Exp Region 7'!$AL$9, 0)","v":{"v":0,"d":"$0.00"}},{"$f":"IFERROR('MMA Rev-Exp Region 7'!$AM$15/'MMA Rev-Exp Region 7'!$AM$9, 0)","v":{"v":0,"d":"$0.00"}},{"$f":"IFERROR('MMA Rev-Exp Region 7'!$AN$15/'MMA Rev-Exp Region 7'!$AN$9, 0)","v":{"v":0,"d":"$0.00"}},{"$f":"IFERROR('MMA Rev-Exp Region 7'!$AO$15/'MMA Rev-Exp Region 7'!$AO$9, 0)","v":{"v":0,"d":"$0.00"}},{"$f":"IFERROR('MMA Rev-Exp Region 7'!$AP$15/'MMA Rev-Exp Region 7'!$AP$9, 0)","v":{"v":0,"d":"$0.00"}},{"$f":"IFERROR('MMA Rev-Exp Region 7'!$AQ$15/'MMA Rev-Exp Region 7'!$AQ$9, 0)","v":{"v":0,"d":"$0.00"}},{"$f":"IFERROR('MMA Rev-Exp Region 7'!$AR$15/'MMA Rev-Exp Region 7'!$AR$9, 0)","v":{"v":0,"d":"$0.00"}},{"$f":"IFERROR('MMA Rev-Exp Region 7'!$AS$15/'MMA Rev-Exp Region 7'!$AS$9, 0)","v":{"v":0,"d":"$0.00"}},{"$f":"IFERROR('MMA Rev-Exp Region 7'!$AT$15/'MMA Rev-Exp Region 7'!$AT$9, 0)","v":{"v":0,"d":"$0.00"}},{"$f":"IFERROR('MMA Rev-Exp Region 7'!$AU$15/'MMA Rev-Exp Region 7'!$AU$9, 0)","v":{"v":0,"d":"$0.00"}}]
["MMA",null,null,2016,"2016-12-31","Q4","2017-12-31","Region 7","Operating Revenue","Other Revenue","Other Revenue","1.6","Other Revenue",{"$f":"IFERROR('MMA Rev-Exp Region 7'!$AK$16/'MMA Rev-Exp Region 7'!$AK$9, 0)","v":{"v":0,"d":"$0.00"}},{"$f":"IFERROR('MMA Rev-Exp Region 7'!$AL$16/'MMA Rev-Exp Region 7'!$AL$9, 0)","v":{"v":0,"d":"$0.00"}},{"$f":"IFERROR('MMA Rev-Exp Region 7'!$AM$16/'MMA Rev-Exp Region 7'!$AM$9, 0)","v":{"v":0,"d":"$0.00"}},{"$f":"IFERROR('MMA Rev-Exp Region 7'!$AN$16/'MMA Rev-Exp Region 7'!$AN$9, 0)","v":{"v":0,"d":"$0.00"}},{"$f":"IFERROR('MMA Rev-Exp Region 7'!$AO$16/'MMA Rev-Exp Region 7'!$AO$9, 0)","v":{"v":0,"d":"$0.00"}},{"$f":"IFERROR('MMA Rev-Exp Region 7'!$AP$16/'MMA Rev-Exp Region 7'!$AP$9, 0)","v":{"v":0,"d":"$0.00"}},{"$f":"IFERROR('MMA Rev-Exp Region 7'!$AQ$16/'MMA Rev-Exp Region 7'!$AQ$9, 0)","v":{"v":0,"d":"$0.00"}},{"$f":"IFERROR('MMA Rev-Exp Region 7'!$AR$16/'MMA Rev-Exp Region 7'!$AR$9, 0)","v":{"v":0,"d":"$0.00"}},{"$f":"IFERROR('MMA Rev-Exp Region 7'!$AS$16/'MMA Rev-Exp Region 7'!$AS$9, 0)","v":{"v":0,"d":"$0.00"}},{"$f":"IFERROR('MMA Rev-Exp Region 7'!$AT$16/'MMA Rev-Exp Region 7'!$AT$9, 0)","v":{"v":0,"d":"$0.00"}},{"$f":"IFERROR('MMA Rev-Exp Region 7'!$AU$16/'MMA Rev-Exp Region 7'!$AU$9, 0)","v":{"v":0,"d":"$0.00"}}]
["MMA",null,null,2016,"2016-12-31","Q4","2017-12-31","Region 7","Operating Expense","Medical Benefits Expense","Hospital Services",2.1,"Inpatient FFS",{"$f":"IFERROR('MMA Rev-Exp Region 7'!$AK$20/'MMA Rev-Exp Region 7'!$AK$9, 0)","v":{"v":0,"d":"$0.00"}},{"$f":"IFERROR('MMA Rev-Exp Region 7'!$AL$20/'MMA Rev-Exp Region 7'!$AL$9, 0)","v":{"v":0,"d":"$0.00"}},{"$f":"IFERROR('MMA Rev-Exp Region 7'!$AM$20/'MMA Rev-Exp Region 7'!$AM$9, 0)","v":{"v":0,"d":"$0.00"}},{"$f":"IFERROR('MMA Rev-Exp Region 7'!$AN$20/'MMA Rev-Exp Region 7'!$AN$9, 0)","v":{"v":0,"d":"$0.00"}},{"$f":"IFERROR('MMA Rev-Exp Region 7'!$AO$20/'MMA Rev-Exp Region 7'!$AO$9, 0)","v":{"v":0,"d":"$0.00"}},{"$f":"IFERROR('MMA Rev-Exp Region 7'!$AP$20/'MMA Rev-Exp Region 7'!$AP$9, 0)","v":{"v":0,"d":"$0.00"}},{"$f":"IFERROR('MMA Rev-Exp Region 7'!$AQ$20/'MMA Rev-Exp Region 7'!$AQ$9, 0)","v":{"v":0,"d":"$0.00"}},{"$f":"IFERROR('MMA Rev-Exp Region 7'!$AR$20/'MMA Rev-Exp Region 7'!$AR$9, 0)","v":{"v":0,"d":"$0.00"}},{"$f":"IFERROR('MMA Rev-Exp Region 7'!$AS$20/'MMA Rev-Exp Region 7'!$AS$9, 0)","v":{"v":0,"d":"$0.00"}},{"$f":"IFERROR('MMA Rev-Exp Region 7'!$AT$20/'MMA Rev-Exp Region 7'!$AT$9, 0)","v":{"v":0,"d":"$0.00"}},{"$f":"IFERROR('MMA Rev-Exp Region 7'!$AU$20/'MMA Rev-Exp Region 7'!$AU$9, 0)","v":{"v":0,"d":"$0.00"}}]
["MMA",null,null,2016,"2016-12-31","Q4","2017-12-31","Region 7","Operating Expense","Medical Benefits Expense","Hospital Services",2.2,"Ending IBNP for Inpatient Hospital Services",{"$f":"IFERROR('MMA Rev-Exp Region 7'!$AK$21/'MMA Rev-Exp Region 7'!$AK$9, 0)","v":{"v":0,"d":"$0.00"}},{"$f":"IFERROR('MMA Rev-Exp Region 7'!$AL$21/'MMA Rev-Exp Region 7'!$AL$9, 0)","v":{"v":0,"d":"$0.00"}},{"$f":"IFERROR('MMA Rev-Exp Region 7'!$AM$21/'MMA Rev-Exp Region 7'!$AM$9, 0)","v":{"v":0,"d":"$0.00"}},{"$f":"IFERROR('MMA Rev-Exp Region 7'!$AN$21/'MMA Rev-Exp Region 7'!$AN$9, 0)","v":{"v":0,"d":"$0.00"}},{"$f":"IFERROR('MMA Rev-Exp Region 7'!$AO$21/'MMA Rev-Exp Region 7'!$AO$9, 0)","v":{"v":0,"d":"$0.00"}},{"$f":"IFERROR('MMA Rev-Exp Region 7'!$AP$21/'MMA Rev-Exp Region 7'!$AP$9, 0)","v":{"v":0,"d":"$0.00"}},{"$f":"IFERROR('MMA Rev-Exp Region 7'!$AQ$21/'MMA Rev-Exp Region 7'!$AQ$9, 0)","v":{"v":0,"d":"$0.00"}},{"$f":"IFERROR('MMA Rev-Exp Region 7'!$AR$21/'MMA Rev-Exp Region 7'!$AR$9, 0)","v":{"v":0,"d":"$0.00"}},{"$f":"IFERROR('MMA Rev-Exp Region 7'!$AS$21/'MMA Rev-Exp Region 7'!$AS$9, 0)","v":{"v":0,"d":"$0.00"}},{"$f":"IFERROR('MMA Rev-Exp Region 7'!$AT$21/'MMA Rev-Exp Region 7'!$AT$9, 0)","v":{"v":0,"d":"$0.00"}},{"$f":"IFERROR('MMA Rev-Exp Region 7'!$AU$21/'MMA Rev-Exp Region 7'!$AU$9, 0)","v":{"v":0,"d":"$0.00"}}]
["MMA",null,null,2016,"2016-12-31","Q4","2017-12-31","Region 7","Operating Expense","Medical Benefits Expense","Hospital Services",2.3,"Outpatient FFS: ER",{"$f":"IFERROR('MMA Rev-Exp Region 7'!$AK$22/'MMA Rev-Exp Region 7'!$AK$9, 0)","v":{"v":0,"d":"$0.00"}},{"$f":"IFERROR('MMA Rev-Exp Region 7'!$AL$22/'MMA Rev-Exp Region 7'!$AL$9, 0)","v":{"v":0,"d":"$0.00"}},{"$f":"IFERROR('MMA Rev-Exp Region 7'!$AM$22/'MMA Rev-Exp Region 7'!$AM$9, 0)","v":{"v":0,"d":"$0.00"}},{"$f":"IFERROR('MMA Rev-Exp Region 7'!$AN$22/'MMA Rev-Exp Region 7'!$AN$9, 0)","v":{"v":0,"d":"$0.00"}},{"$f":"IFERROR('MMA Rev-Exp Region 7'!$AO$22/'MMA Rev-Exp Region 7'!$AO$9, 0)","v":{"v":0,"d":"$0.00"}},{"$f":"IFERROR('MMA Rev-Exp Region 7'!$AP$22/'MMA Rev-Exp Region 7'!$AP$9, 0)","v":{"v":0,"d":"$0.00"}},{"$f":"IFERROR('MMA Rev-Exp Region 7'!$AQ$22/'MMA Rev-Exp Region 7'!$AQ$9, 0)","v":{"v":0,"d":"$0.00"}},{"$f":"IFERROR('MMA Rev-Exp Region 7'!$AR$22/'MMA Rev-Exp Region 7'!$AR$9, 0)","v":{"v":0,"d":"$0.00"}},{"$f":"IFERROR('MMA Rev-Exp Region 7'!$AS$22/'MMA Rev-Exp Region 7'!$AS$9, 0)","v":{"v":0,"d":"$0.00"}},{"$f":"IFERROR('MMA Rev-Exp Region 7'!$AT$22/'MMA Rev-Exp Region 7'!$AT$9, 0)","v":{"v":0,"d":"$0.00"}},{"$f":"IFERROR('MMA Rev-Exp Region 7'!$AU$22/'MMA Rev-Exp Region 7'!$AU$9, 0)","v":{"v":0,"d":"$0.00"}}]
["MMA",null,null,2016,"2016-12-31","Q4","2017-12-31","Region 7","Operating Expense","Medical Benefits Expense","Hospital Services",2.4,"Outpatient FFS: Other than ER ",{"$f":"IFERROR('MMA Rev-Exp Region 7'!$AK$23/'MMA Rev-Exp Region 7'!$AK$9, 0)","v":{"v":0,"d":"$0.00"}},{"$f":"IFERROR('MMA Rev-Exp Region 7'!$AL$23/'MMA Rev-Exp Region 7'!$AL$9, 0)","v":{"v":0,"d":"$0.00"}},{"$f":"IFERROR('MMA Rev-Exp Region 7'!$AM$23/'MMA Rev-Exp Region 7'!$AM$9, 0)","v":{"v":0,"d":"$0.00"}},{"$f":"IFERROR('MMA Rev-Exp Region 7'!$AN$23/'MMA Rev-Exp Region 7'!$AN$9, 0)","v":{"v":0,"d":"$0.00"}},{"$f":"IFERROR('MMA Rev-Exp Region 7'!$AO$23/'MMA Rev-Exp Region 7'!$AO$9, 0)","v":{"v":0,"d":"$0.00"}},{"$f":"IFERROR('MMA Rev-Exp Region 7'!$AP$23/'MMA Rev-Exp Region 7'!$AP$9, 0)","v":{"v":0,"d":"$0.00"}},{"$f":"IFERROR('MMA Rev-Exp Region 7'!$AQ$23/'MMA Rev-Exp Region 7'!$AQ$9, 0)","v":{"v":0,"d":"$0.00"}},{"$f":"IFERROR('MMA Rev-Exp Region 7'!$AR$23/'MMA Rev-Exp Region 7'!$AR$9, 0)","v":{"v":0,"d":"$0.00"}},{"$f":"IFERROR('MMA Rev-Exp Region 7'!$AS$23/'MMA Rev-Exp Region 7'!$AS$9, 0)","v":{"v":0,"d":"$0.00"}},{"$f":"IFERROR('MMA Rev-Exp Region 7'!$AT$23/'MMA Rev-Exp Region 7'!$AT$9, 0)","v":{"v":0,"d":"$0.00"}},{"$f":"IFERROR('MMA Rev-Exp Region 7'!$AU$23/'MMA Rev-Exp Region 7'!$AU$9, 0)","v":{"v":0,"d":"$0.00"}}]
["MMA",null,null,2016,"2016-12-31","Q4","2017-12-31","Region 7","Operating Expense","Medical Benefits Expense","Hospital Services",2.5,"Ending IBNP for Outpatient Hospital Services",{"$f":"IFERROR('MMA Rev-Exp Region 7'!$AK$24/'MMA Rev-Exp Region 7'!$AK$9, 0)","v":{"v":0,"d":"$0.00"}},{"$f":"IFERROR('MMA Rev-Exp Region 7'!$AL$24/'MMA Rev-Exp Region 7'!$AL$9, 0)","v":{"v":0,"d":"$0.00"}},{"$f":"IFERROR('MMA Rev-Exp Region 7'!$AM$24/'MMA Rev-Exp Region 7'!$AM$9, 0)","v":{"v":0,"d":"$0.00"}},{"$f":"IFERROR('MMA Rev-Exp Region 7'!$AN$24/'MMA Rev-Exp Region 7'!$AN$9, 0)","v":{"v":0,"d":"$0.00"}},{"$f":"IFERROR('MMA Rev-Exp Region 7'!$AO$24/'MMA Rev-Exp Region 7'!$AO$9, 0)","v":{"v":0,"d":"$0.00"}},{"$f":"IFERROR('MMA Rev-Exp Region 7'!$AP$24/'MMA Rev-Exp Region 7'!$AP$9, 0)","v":{"v":0,"d":"$0.00"}},{"$f":"IFERROR('MMA Rev-Exp Region 7'!$AQ$24/'MMA Rev-Exp Region 7'!$AQ$9, 0)","v":{"v":0,"d":"$0.00"}},{"$f":"IFERROR('MMA Rev-Exp Region 7'!$AR$24/'MMA Rev-Exp Region 7'!$AR$9, 0)","v":{"v":0,"d":"$0.00"}},{"$f":"IFERROR('MMA Rev-Exp Region 7'!$AS$24/'MMA Rev-Exp Region 7'!$AS$9, 0)","v":{"v":0,"d":"$0.00"}},{"$f":"IFERROR('MMA Rev-Exp Region 7'!$AT$24/'MMA Rev-Exp Region 7'!$AT$9, 0)","v":{"v":0,"d":"$0.00"}},{"$f":"IFERROR('MMA Rev-Exp Region 7'!$AU$24/'MMA Rev-Exp Region 7'!$AU$9, 0)","v":{"v":0,"d":"$0.00"}}]
["MMA",null,null,2016,"2016-12-31","Q4","2017-12-31","Region 7","Operating Expense","Medical Benefits Expense","Hospital Services","2.6","Subcapitated Hospital Services",{"$f":"IFERROR('MMA Rev-Exp Region 7'!$AK$25/'MMA Rev-Exp Region 7'!$AK$9, 0)","v":{"v":0,"d":"$0.00"}},{"$f":"IFERROR('MMA Rev-Exp Region 7'!$AL$25/'MMA Rev-Exp Region 7'!$AL$9, 0)","v":{"v":0,"d":"$0.00"}},{"$f":"IFERROR('MMA Rev-Exp Region 7'!$AM$25/'MMA Rev-Exp Region 7'!$AM$9, 0)","v":{"v":0,"d":"$0.00"}},{"$f":"IFERROR('MMA Rev-Exp Region 7'!$AN$25/'MMA Rev-Exp Region 7'!$AN$9, 0)","v":{"v":0,"d":"$0.00"}},{"$f":"IFERROR('MMA Rev-Exp Region 7'!$AO$25/'MMA Rev-Exp Region 7'!$AO$9, 0)","v":{"v":0,"d":"$0.00"}},{"$f":"IFERROR('MMA Rev-Exp Region 7'!$AP$25/'MMA Rev-Exp Region 7'!$AP$9, 0)","v":{"v":0,"d":"$0.00"}},{"$f":"IFERROR('MMA Rev-Exp Region 7'!$AQ$25/'MMA Rev-Exp Region 7'!$AQ$9, 0)","v":{"v":0,"d":"$0.00"}},{"$f":"IFERROR('MMA Rev-Exp Region 7'!$AR$25/'MMA Rev-Exp Region 7'!$AR$9, 0)","v":{"v":0,"d":"$0.00"}},{"$f":"IFERROR('MMA Rev-Exp Region 7'!$AS$25/'MMA Rev-Exp Region 7'!$AS$9, 0)","v":{"v":0,"d":"$0.00"}},{"$f":"IFERROR('MMA Rev-Exp Region 7'!$AT$25/'MMA Rev-Exp Region 7'!$AT$9, 0)","v":{"v":0,"d":"$0.00"}},{"$f":"IFERROR('MMA Rev-Exp Region 7'!$AU$25/'MMA Rev-Exp Region 7'!$AU$9, 0)","v":{"v":0,"d":"$0.00"}}]
["MMA",null,null,2016,"2016-12-31","Q4","2017-12-31","Region 7","Operating Expense","Medical Benefits Expense","Hospital Services","2.7","Hospital Settlements",{"$f":"IFERROR('MMA Rev-Exp Region 7'!$AK$26/'MMA Rev-Exp Region 7'!$AK$9, 0)","v":{"v":0,"d":"$0.00"}},{"$f":"IFERROR('MMA Rev-Exp Region 7'!$AL$26/'MMA Rev-Exp Region 7'!$AL$9, 0)","v":{"v":0,"d":"$0.00"}},{"$f":"IFERROR('MMA Rev-Exp Region 7'!$AM$26/'MMA Rev-Exp Region 7'!$AM$9, 0)","v":{"v":0,"d":"$0.00"}},{"$f":"IFERROR('MMA Rev-Exp Region 7'!$AN$26/'MMA Rev-Exp Region 7'!$AN$9, 0)","v":{"v":0,"d":"$0.00"}},{"$f":"IFERROR('MMA Rev-Exp Region 7'!$AO$26/'MMA Rev-Exp Region 7'!$AO$9, 0)","v":{"v":0,"d":"$0.00"}},{"$f":"IFERROR('MMA Rev-Exp Region 7'!$AP$26/'MMA Rev-Exp Region 7'!$AP$9, 0)","v":{"v":0,"d":"$0.00"}},{"$f":"IFERROR('MMA Rev-Exp Region 7'!$AQ$26/'MMA Rev-Exp Region 7'!$AQ$9, 0)","v":{"v":0,"d":"$0.00"}},{"$f":"IFERROR('MMA Rev-Exp Region 7'!$AR$26/'MMA Rev-Exp Region 7'!$AR$9, 0)","v":{"v":0,"d":"$0.00"}},{"$f":"IFERROR('MMA Rev-Exp Region 7'!$AS$26/'MMA Rev-Exp Region 7'!$AS$9, 0)","v":{"v":0,"d":"$0.00"}},{"$f":"IFERROR('MMA Rev-Exp Region 7'!$AT$26/'MMA Rev-Exp Region 7'!$AT$9, 0)","v":{"v":0,"d":"$0.00"}},{"$f":"IFERROR('MMA Rev-Exp Region 7'!$AU$26/'MMA Rev-Exp Region 7'!$AU$9, 0)","v":{"v":0,"d":"$0.00"}}]
["MMA",null,null,2016,"2016-12-31","Q4","2017-12-31","Region 7","Operating Expense","Medical Benefits Expense","Hospital Services","2.7.1","Transplant Services",{"$f":"IFERROR('MMA Rev-Exp Region 7'!$AK$27/'MMA Rev-Exp Region 7'!$AK$9, 0)","v":{"v":0,"d":"$0.00"}},{"$f":"IFERROR('MMA Rev-Exp Region 7'!$AL$27/'MMA Rev-Exp Region 7'!$AL$9, 0)","v":{"v":0,"d":"$0.00"}},{"$f":"IFERROR('MMA Rev-Exp Region 7'!$AM$27/'MMA Rev-Exp Region 7'!$AM$9, 0)","v":{"v":0,"d":"$0.00"}},{"$f":"IFERROR('MMA Rev-Exp Region 7'!$AN$27/'MMA Rev-Exp Region 7'!$AN$9, 0)","v":{"v":0,"d":"$0.00"}},{"$f":"IFERROR('MMA Rev-Exp Region 7'!$AO$27/'MMA Rev-Exp Region 7'!$AO$9, 0)","v":{"v":0,"d":"$0.00"}},{"$f":"IFERROR('MMA Rev-Exp Region 7'!$AP$27/'MMA Rev-Exp Region 7'!$AP$9, 0)","v":{"v":0,"d":"$0.00"}},{"$f":"IFERROR('MMA Rev-Exp Region 7'!$AQ$27/'MMA Rev-Exp Region 7'!$AQ$9, 0)","v":{"v":0,"d":"$0.00"}},{"$f":"IFERROR('MMA Rev-Exp Region 7'!$AR$27/'MMA Rev-Exp Region 7'!$AR$9, 0)","v":{"v":0,"d":"$0.00"}},{"$f":"IFERROR('MMA Rev-Exp Region 7'!$AS$27/'MMA Rev-Exp Region 7'!$AS$9, 0)","v":{"v":0,"d":"$0.00"}},{"$f":"IFERROR('MMA Rev-Exp Region 7'!$AT$27/'MMA Rev-Exp Region 7'!$AT$9, 0)","v":{"v":0,"d":"$0.00"}},{"$f":"IFERROR('MMA Rev-Exp Region 7'!$AU$27/'MMA Rev-Exp Region 7'!$AU$9, 0)","v":{"v":0,"d":"$0.00"}}]
["MMA",null,null,2016,"2016-12-31","Q4","2017-12-31","Region 7","Operating Expense","Medical Benefits Expense","Professional Services",3.1,"Primary Care FFS",{"$f":"IFERROR('MMA Rev-Exp Region 7'!$AK$29/'MMA Rev-Exp Region 7'!$AK$9, 0)","v":{"v":0,"d":"$0.00"}},{"$f":"IFERROR('MMA Rev-Exp Region 7'!$AL$29/'MMA Rev-Exp Region 7'!$AL$9, 0)","v":{"v":0,"d":"$0.00"}},{"$f":"IFERROR('MMA Rev-Exp Region 7'!$AM$29/'MMA Rev-Exp Region 7'!$AM$9, 0)","v":{"v":0,"d":"$0.00"}},{"$f":"IFERROR('MMA Rev-Exp Region 7'!$AN$29/'MMA Rev-Exp Region 7'!$AN$9, 0)","v":{"v":0,"d":"$0.00"}},{"$f":"IFERROR('MMA Rev-Exp Region 7'!$AO$29/'MMA Rev-Exp Region 7'!$AO$9, 0)","v":{"v":0,"d":"$0.00"}},{"$f":"IFERROR('MMA Rev-Exp Region 7'!$AP$29/'MMA Rev-Exp Region 7'!$AP$9, 0)","v":{"v":0,"d":"$0.00"}},{"$f":"IFERROR('MMA Rev-Exp Region 7'!$AQ$29/'MMA Rev-Exp Region 7'!$AQ$9, 0)","v":{"v":0,"d":"$0.00"}},{"$f":"IFERROR('MMA Rev-Exp Region 7'!$AR$29/'MMA Rev-Exp Region 7'!$AR$9, 0)","v":{"v":0,"d":"$0.00"}},{"$f":"IFERROR('MMA Rev-Exp Region 7'!$AS$29/'MMA Rev-Exp Region 7'!$AS$9, 0)","v":{"v":0,"d":"$0.00"}},{"$f":"IFERROR('MMA Rev-Exp Region 7'!$AT$29/'MMA Rev-Exp Region 7'!$AT$9, 0)","v":{"v":0,"d":"$0.00"}},{"$f":"IFERROR('MMA Rev-Exp Region 7'!$AU$29/'MMA Rev-Exp Region 7'!$AU$9, 0)","v":{"v":0,"d":"$0.00"}}]
["MMA",null,null,2016,"2016-12-31","Q4","2017-12-31","Region 7","Operating Expense","Medical Benefits Expense","Professional Services",3.2,"Specialty Care FFS",{"$f":"IFERROR('MMA Rev-Exp Region 7'!$AK$30/'MMA Rev-Exp Region 7'!$AK$9, 0)","v":{"v":0,"d":"$0.00"}},{"$f":"IFERROR('MMA Rev-Exp Region 7'!$AL$30/'MMA Rev-Exp Region 7'!$AL$9, 0)","v":{"v":0,"d":"$0.00"}},{"$f":"IFERROR('MMA Rev-Exp Region 7'!$AM$30/'MMA Rev-Exp Region 7'!$AM$9, 0)","v":{"v":0,"d":"$0.00"}},{"$f":"IFERROR('MMA Rev-Exp Region 7'!$AN$30/'MMA Rev-Exp Region 7'!$AN$9, 0)","v":{"v":0,"d":"$0.00"}},{"$f":"IFERROR('MMA Rev-Exp Region 7'!$AO$30/'MMA Rev-Exp Region 7'!$AO$9, 0)","v":{"v":0,"d":"$0.00"}},{"$f":"IFERROR('MMA Rev-Exp Region 7'!$AP$30/'MMA Rev-Exp Region 7'!$AP$9, 0)","v":{"v":0,"d":"$0.00"}},{"$f":"IFERROR('MMA Rev-Exp Region 7'!$AQ$30/'MMA Rev-Exp Region 7'!$AQ$9, 0)","v":{"v":0,"d":"$0.00"}},{"$f":"IFERROR('MMA Rev-Exp Region 7'!$AR$30/'MMA Rev-Exp Region 7'!$AR$9, 0)","v":{"v":0,"d":"$0.00"}},{"$f":"IFERROR('MMA Rev-Exp Region 7'!$AS$30/'MMA Rev-Exp Region 7'!$AS$9, 0)","v":{"v":0,"d":"$0.00"}},{"$f":"IFERROR('MMA Rev-Exp Region 7'!$AT$30/'MMA Rev-Exp Region 7'!$AT$9, 0)","v":{"v":0,"d":"$0.00"}},{"$f":"IFERROR('MMA Rev-Exp Region 7'!$AU$30/'MMA Rev-Exp Region 7'!$AU$9, 0)","v":{"v":0,"d":"$0.00"}}]
["MMA",null,null,2016,"2016-12-31","Q4","2017-12-31","Region 7","Operating Expense","Medical Benefits Expense","Professional Services",3.3,"Other Professional FFS",{"$f":"IFERROR('MMA Rev-Exp Region 7'!$AK$31/'MMA Rev-Exp Region 7'!$AK$9, 0)","v":{"v":0,"d":"$0.00"}},{"$f":"IFERROR('MMA Rev-Exp Region 7'!$AL$31/'MMA Rev-Exp Region 7'!$AL$9, 0)","v":{"v":0,"d":"$0.00"}},{"$f":"IFERROR('MMA Rev-Exp Region 7'!$AM$31/'MMA Rev-Exp Region 7'!$AM$9, 0)","v":{"v":0,"d":"$0.00"}},{"$f":"IFERROR('MMA Rev-Exp Region 7'!$AN$31/'MMA Rev-Exp Region 7'!$AN$9, 0)","v":{"v":0,"d":"$0.00"}},{"$f":"IFERROR('MMA Rev-Exp Region 7'!$AO$31/'MMA Rev-Exp Region 7'!$AO$9, 0)","v":{"v":0,"d":"$0.00"}},{"$f":"IFERROR('MMA Rev-Exp Region 7'!$AP$31/'MMA Rev-Exp Region 7'!$AP$9, 0)","v":{"v":0,"d":"$0.00"}},{"$f":"IFERROR('MMA Rev-Exp Region 7'!$AQ$31/'MMA Rev-Exp Region 7'!$AQ$9, 0)","v":{"v":0,"d":"$0.00"}},{"$f":"IFERROR('MMA Rev-Exp Region 7'!$AR$31/'MMA Rev-Exp Region 7'!$AR$9, 0)","v":{"v":0,"d":"$0.00"}},{"$f":"IFERROR('MMA Rev-Exp Region 7'!$AS$31/'MMA Rev-Exp Region 7'!$AS$9, 0)","v":{"v":0,"d":"$0.00"}},{"$f":"IFERROR('MMA Rev-Exp Region 7'!$AT$31/'MMA Rev-Exp Region 7'!$AT$9, 0)","v":{"v":0,"d":"$0.00"}},{"$f":"IFERROR('MMA Rev-Exp Region 7'!$AU$31/'MMA Rev-Exp Region 7'!$AU$9, 0)","v":{"v":0,"d":"$0.00"}}]
["MMA",null,null,2016,"2016-12-31","Q4","2017-12-31","Region 7","Operating Expense","Medical Benefits Expense","Professional Services","3.4","§ 1202 PCP Payments to providers",{"$f":"IFERROR('MMA Rev-Exp Region 7'!$AK$32/'MMA Rev-Exp Region 7'!$AK$9, 0)","v":{"v":0,"d":"$0.00"}},{"$f":"IFERROR('MMA Rev-Exp Region 7'!$AL$32/'MMA Rev-Exp Region 7'!$AL$9, 0)","v":{"v":0,"d":"$0.00"}},{"$f":"IFERROR('MMA Rev-Exp Region 7'!$AM$32/'MMA Rev-Exp Region 7'!$AM$9, 0)","v":{"v":0,"d":"$0.00"}},{"$f":"IFERROR('MMA Rev-Exp Region 7'!$AN$32/'MMA Rev-Exp Region 7'!$AN$9, 0)","v":{"v":0,"d":"$0.00"}},{"$f":"IFERROR('MMA Rev-Exp Region 7'!$AO$32/'MMA Rev-Exp Region 7'!$AO$9, 0)","v":{"v":0,"d":"$0.00"}},{"$f":"IFERROR('MMA Rev-Exp Region 7'!$AP$32/'MMA Rev-Exp Region 7'!$AP$9, 0)","v":{"v":0,"d":"$0.00"}},{"$f":"IFERROR('MMA Rev-Exp Region 7'!$AQ$32/'MMA Rev-Exp Region 7'!$AQ$9, 0)","v":{"v":0,"d":"$0.00"}},{"$f":"IFERROR('MMA Rev-Exp Region 7'!$AR$32/'MMA Rev-Exp Region 7'!$AR$9, 0)","v":{"v":0,"d":"$0.00"}},{"$f":"IFERROR('MMA Rev-Exp Region 7'!$AS$32/'MMA Rev-Exp Region 7'!$AS$9, 0)","v":{"v":0,"d":"$0.00"}},{"$f":"IFERROR('MMA Rev-Exp Region 7'!$AT$32/'MMA Rev-Exp Region 7'!$AT$9, 0)","v":{"v":0,"d":"$0.00"}},{"$f":"IFERROR('MMA Rev-Exp Region 7'!$AU$32/'MMA Rev-Exp Region 7'!$AU$9, 0)","v":{"v":0,"d":"$0.00"}}]
["MMA",null,null,2016,"2016-12-31","Q4","2017-12-31","Region 7","Operating Expense","Medical Benefits Expense","Professional Services","3.5","Subcapitated Professional Services",{"$f":"IFERROR('MMA Rev-Exp Region 7'!$AK$33/'MMA Rev-Exp Region 7'!$AK$9, 0)","v":{"v":0,"d":"$0.00"}},{"$f":"IFERROR('MMA Rev-Exp Region 7'!$AL$33/'MMA Rev-Exp Region 7'!$AL$9, 0)","v":{"v":0,"d":"$0.00"}},{"$f":"IFERROR('MMA Rev-Exp Region 7'!$AM$33/'MMA Rev-Exp Region 7'!$AM$9, 0)","v":{"v":0,"d":"$0.00"}},{"$f":"IFERROR('MMA Rev-Exp Region 7'!$AN$33/'MMA Rev-Exp Region 7'!$AN$9, 0)","v":{"v":0,"d":"$0.00"}},{"$f":"IFERROR('MMA Rev-Exp Region 7'!$AO$33/'MMA Rev-Exp Region 7'!$AO$9, 0)","v":{"v":0,"d":"$0.00"}},{"$f":"IFERROR('MMA Rev-Exp Region 7'!$AP$33/'MMA Rev-Exp Region 7'!$AP$9, 0)","v":{"v":0,"d":"$0.00"}},{"$f":"IFERROR('MMA Rev-Exp Region 7'!$AQ$33/'MMA Rev-Exp Region 7'!$AQ$9, 0)","v":{"v":0,"d":"$0.00"}},{"$f":"IFERROR('MMA Rev-Exp Region 7'!$AR$33/'MMA Rev-Exp Region 7'!$AR$9, 0)","v":{"v":0,"d":"$0.00"}},{"$f":"IFERROR('MMA Rev-Exp Region 7'!$AS$33/'MMA Rev-Exp Region 7'!$AS$9, 0)","v":{"v":0,"d":"$0.00"}},{"$f":"IFERROR('MMA Rev-Exp Region 7'!$AT$33/'MMA Rev-Exp Region 7'!$AT$9, 0)","v":{"v":0,"d":"$0.00"}},{"$f":"IFERROR('MMA Rev-Exp Region 7'!$AU$33/'MMA Rev-Exp Region 7'!$AU$9, 0)","v":{"v":0,"d":"$0.00"}}]
["MMA",null,null,2016,"2016-12-31","Q4","2017-12-31","Region 7","Operating Expense","Medical Benefits Expense","Professional Services","3.6","Ending IBNP for Professional Services",{"$f":"IFERROR('MMA Rev-Exp Region 7'!$AK$34/'MMA Rev-Exp Region 7'!$AK$9, 0)","v":{"v":0,"d":"$0.00"}},{"$f":"IFERROR('MMA Rev-Exp Region 7'!$AL$34/'MMA Rev-Exp Region 7'!$AL$9, 0)","v":{"v":0,"d":"$0.00"}},{"$f":"IFERROR('MMA Rev-Exp Region 7'!$AM$34/'MMA Rev-Exp Region 7'!$AM$9, 0)","v":{"v":0,"d":"$0.00"}},{"$f":"IFERROR('MMA Rev-Exp Region 7'!$AN$34/'MMA Rev-Exp Region 7'!$AN$9, 0)","v":{"v":0,"d":"$0.00"}},{"$f":"IFERROR('MMA Rev-Exp Region 7'!$AO$34/'MMA Rev-Exp Region 7'!$AO$9, 0)","v":{"v":0,"d":"$0.00"}},{"$f":"IFERROR('MMA Rev-Exp Region 7'!$AP$34/'MMA Rev-Exp Region 7'!$AP$9, 0)","v":{"v":0,"d":"$0.00"}},{"$f":"IFERROR('MMA Rev-Exp Region 7'!$AQ$34/'MMA Rev-Exp Region 7'!$AQ$9, 0)","v":{"v":0,"d":"$0.00"}},{"$f":"IFERROR('MMA Rev-Exp Region 7'!$AR$34/'MMA Rev-Exp Region 7'!$AR$9, 0)","v":{"v":0,"d":"$0.00"}},{"$f":"IFERROR('MMA Rev-Exp Region 7'!$AS$34/'MMA Rev-Exp Region 7'!$AS$9, 0)","v":{"v":0,"d":"$0.00"}},{"$f":"IFERROR('MMA Rev-Exp Region 7'!$AT$34/'MMA Rev-Exp Region 7'!$AT$9, 0)","v":{"v":0,"d":"$0.00"}},{"$f":"IFERROR('MMA Rev-Exp Region 7'!$AU$34/'MMA Rev-Exp Region 7'!$AU$9, 0)","v":{"v":0,"d":"$0.00"}}]
["MMA",null,null,2016,"2016-12-31","Q4","2017-12-31","Region 7","Operating Expense","Medical Benefits Expense","Professional Services","3.7","Professional Services Settlements",{"$f":"IFERROR('MMA Rev-Exp Region 7'!$AK$35/'MMA Rev-Exp Region 7'!$AK$9, 0)","v":{"v":0,"d":"$0.00"}},{"$f":"IFERROR('MMA Rev-Exp Region 7'!$AL$35/'MMA Rev-Exp Region 7'!$AL$9, 0)","v":{"v":0,"d":"$0.00"}},{"$f":"IFERROR('MMA Rev-Exp Region 7'!$AM$35/'MMA Rev-Exp Region 7'!$AM$9, 0)","v":{"v":0,"d":"$0.00"}},{"$f":"IFERROR('MMA Rev-Exp Region 7'!$AN$35/'MMA Rev-Exp Region 7'!$AN$9, 0)","v":{"v":0,"d":"$0.00"}},{"$f":"IFERROR('MMA Rev-Exp Region 7'!$AO$35/'MMA Rev-Exp Region 7'!$AO$9, 0)","v":{"v":0,"d":"$0.00"}},{"$f":"IFERROR('MMA Rev-Exp Region 7'!$AP$35/'MMA Rev-Exp Region 7'!$AP$9, 0)","v":{"v":0,"d":"$0.00"}},{"$f":"IFERROR('MMA Rev-Exp Region 7'!$AQ$35/'MMA Rev-Exp Region 7'!$AQ$9, 0)","v":{"v":0,"d":"$0.00"}},{"$f":"IFERROR('MMA Rev-Exp Region 7'!$AR$35/'MMA Rev-Exp Region 7'!$AR$9, 0)","v":{"v":0,"d":"$0.00"}},{"$f":"IFERROR('MMA Rev-Exp Region 7'!$AS$35/'MMA Rev-Exp Region 7'!$AS$9, 0)","v":{"v":0,"d":"$0.00"}},{"$f":"IFERROR('MMA Rev-Exp Region 7'!$AT$35/'MMA Rev-Exp Region 7'!$AT$9, 0)","v":{"v":0,"d":"$0.00"}},{"$f":"IFERROR('MMA Rev-Exp Region 7'!$AU$35/'MMA Rev-Exp Region 7'!$AU$9, 0)","v":{"v":0,"d":"$0.00"}}]
["MMA",null,null,2016,"2016-12-31","Q4","2017-12-31","Region 7","Operating Expense","Medical Benefits Expense","Maternity Services","4.1.1","Maternity Services",{"$f":"IFERROR('MMA Rev-Exp Region 7'!$AK$37/'MMA Rev-Exp Region 7'!$AK$9, 0)","v":{"v":0,"d":"$0.00"}},{"$f":"IFERROR('MMA Rev-Exp Region 7'!$AL$37/'MMA Rev-Exp Region 7'!$AL$9, 0)","v":{"v":0,"d":"$0.00"}},{"$f":"IFERROR('MMA Rev-Exp Region 7'!$AM$37/'MMA Rev-Exp Region 7'!$AM$9, 0)","v":{"v":0,"d":"$0.00"}},{"$f":"IFERROR('MMA Rev-Exp Region 7'!$AN$37/'MMA Rev-Exp Region 7'!$AN$9, 0)","v":{"v":0,"d":"$0.00"}},{"$f":"IFERROR('MMA Rev-Exp Region 7'!$AO$37/'MMA Rev-Exp Region 7'!$AO$9, 0)","v":{"v":0,"d":"$0.00"}},{"$f":"IFERROR('MMA Rev-Exp Region 7'!$AP$37/'MMA Rev-Exp Region 7'!$AP$9, 0)","v":{"v":0,"d":"$0.00"}},{"$f":"IFERROR('MMA Rev-Exp Region 7'!$AQ$37/'MMA Rev-Exp Region 7'!$AQ$9, 0)","v":{"v":0,"d":"$0.00"}},{"$f":"IFERROR('MMA Rev-Exp Region 7'!$AR$37/'MMA Rev-Exp Region 7'!$AR$9, 0)","v":{"v":0,"d":"$0.00"}},{"$f":"IFERROR('MMA Rev-Exp Region 7'!$AS$37/'MMA Rev-Exp Region 7'!$AS$9, 0)","v":{"v":0,"d":"$0.00"}},{"$f":"IFERROR('MMA Rev-Exp Region 7'!$AT$37/'MMA Rev-Exp Region 7'!$AT$9, 0)","v":{"v":0,"d":"$0.00"}},{"$f":"IFERROR('MMA Rev-Exp Region 7'!$AU$37/'MMA Rev-Exp Region 7'!$AU$9, 0)","v":{"v":0,"d":"$0.00"}}]
["MMA",null,null,2016,"2016-12-31","Q4","2017-12-31","Region 7","Operating Expense","Medical Benefits Expense","Maternity Services","4.2.1","Ending IBNP for Maternity Services",{"$f":"IFERROR('MMA Rev-Exp Region 7'!$AK$38/'MMA Rev-Exp Region 7'!$AK$9, 0)","v":{"v":0,"d":"$0.00"}},{"$f":"IFERROR('MMA Rev-Exp Region 7'!$AL$38/'MMA Rev-Exp Region 7'!$AL$9, 0)","v":{"v":0,"d":"$0.00"}},{"$f":"IFERROR('MMA Rev-Exp Region 7'!$AM$38/'MMA Rev-Exp Region 7'!$AM$9, 0)","v":{"v":0,"d":"$0.00"}},{"$f":"IFERROR('MMA Rev-Exp Region 7'!$AN$38/'MMA Rev-Exp Region 7'!$AN$9, 0)","v":{"v":0,"d":"$0.00"}},{"$f":"IFERROR('MMA Rev-Exp Region 7'!$AO$38/'MMA Rev-Exp Region 7'!$AO$9, 0)","v":{"v":0,"d":"$0.00"}},{"$f":"IFERROR('MMA Rev-Exp Region 7'!$AP$38/'MMA Rev-Exp Region 7'!$AP$9, 0)","v":{"v":0,"d":"$0.00"}},{"$f":"IFERROR('MMA Rev-Exp Region 7'!$AQ$38/'MMA Rev-Exp Region 7'!$AQ$9, 0)","v":{"v":0,"d":"$0.00"}},{"$f":"IFERROR('MMA Rev-Exp Region 7'!$AR$38/'MMA Rev-Exp Region 7'!$AR$9, 0)","v":{"v":0,"d":"$0.00"}},{"$f":"IFERROR('MMA Rev-Exp Region 7'!$AS$38/'MMA Rev-Exp Region 7'!$AS$9, 0)","v":{"v":0,"d":"$0.00"}},{"$f":"IFERROR('MMA Rev-Exp Region 7'!$AT$38/'MMA Rev-Exp Region 7'!$AT$9, 0)","v":{"v":0,"d":"$0.00"}},{"$f":"IFERROR('MMA Rev-Exp Region 7'!$AU$38/'MMA Rev-Exp Region 7'!$AU$9, 0)","v":{"v":0,"d":"$0.00"}}]
["MMA",null,null,2016,"2016-12-31","Q4","2017-12-31","Region 7","Operating Expense","Medical Benefits Expense","Maternity Services","4.3.1","Maternity Settlements",{"$f":"IFERROR('MMA Rev-Exp Region 7'!$AK$39/'MMA Rev-Exp Region 7'!$AK$9, 0)","v":{"v":0,"d":"$0.00"}},{"$f":"IFERROR('MMA Rev-Exp Region 7'!$AL$39/'MMA Rev-Exp Region 7'!$AL$9, 0)","v":{"v":0,"d":"$0.00"}},{"$f":"IFERROR('MMA Rev-Exp Region 7'!$AM$39/'MMA Rev-Exp Region 7'!$AM$9, 0)","v":{"v":0,"d":"$0.00"}},{"$f":"IFERROR('MMA Rev-Exp Region 7'!$AN$39/'MMA Rev-Exp Region 7'!$AN$9, 0)","v":{"v":0,"d":"$0.00"}},{"$f":"IFERROR('MMA Rev-Exp Region 7'!$AO$39/'MMA Rev-Exp Region 7'!$AO$9, 0)","v":{"v":0,"d":"$0.00"}},{"$f":"IFERROR('MMA Rev-Exp Region 7'!$AP$39/'MMA Rev-Exp Region 7'!$AP$9, 0)","v":{"v":0,"d":"$0.00"}},{"$f":"IFERROR('MMA Rev-Exp Region 7'!$AQ$39/'MMA Rev-Exp Region 7'!$AQ$9, 0)","v":{"v":0,"d":"$0.00"}},{"$f":"IFERROR('MMA Rev-Exp Region 7'!$AR$39/'MMA Rev-Exp Region 7'!$AR$9, 0)","v":{"v":0,"d":"$0.00"}},{"$f":"IFERROR('MMA Rev-Exp Region 7'!$AS$39/'MMA Rev-Exp Region 7'!$AS$9, 0)","v":{"v":0,"d":"$0.00"}},{"$f":"IFERROR('MMA Rev-Exp Region 7'!$AT$39/'MMA Rev-Exp Region 7'!$AT$9, 0)","v":{"v":0,"d":"$0.00"}},{"$f":"IFERROR('MMA Rev-Exp Region 7'!$AU$39/'MMA Rev-Exp Region 7'!$AU$9, 0)","v":{"v":0,"d":"$0.00"}}]
["MMA",null,null,2016,"2016-12-31","Q4","2017-12-31","Region 7","Operating Expense","Medical Benefits Expense","Mental Health Services",5.1,"Mental Health & Substance Abuse FFS",{"$f":"IFERROR('MMA Rev-Exp Region 7'!$AK$41/'MMA Rev-Exp Region 7'!$AK$9, 0)","v":{"v":0,"d":"$0.00"}},{"$f":"IFERROR('MMA Rev-Exp Region 7'!$AL$41/'MMA Rev-Exp Region 7'!$AL$9, 0)","v":{"v":0,"d":"$0.00"}},{"$f":"IFERROR('MMA Rev-Exp Region 7'!$AM$41/'MMA Rev-Exp Region 7'!$AM$9, 0)","v":{"v":0,"d":"$0.00"}},{"$f":"IFERROR('MMA Rev-Exp Region 7'!$AN$41/'MMA Rev-Exp Region 7'!$AN$9, 0)","v":{"v":0,"d":"$0.00"}},{"$f":"IFERROR('MMA Rev-Exp Region 7'!$AO$41/'MMA Rev-Exp Region 7'!$AO$9, 0)","v":{"v":0,"d":"$0.00"}},{"$f":"IFERROR('MMA Rev-Exp Region 7'!$AP$41/'MMA Rev-Exp Region 7'!$AP$9, 0)","v":{"v":0,"d":"$0.00"}},{"$f":"IFERROR('MMA Rev-Exp Region 7'!$AQ$41/'MMA Rev-Exp Region 7'!$AQ$9, 0)","v":{"v":0,"d":"$0.00"}},{"$f":"IFERROR('MMA Rev-Exp Region 7'!$AR$41/'MMA Rev-Exp Region 7'!$AR$9, 0)","v":{"v":0,"d":"$0.00"}},{"$f":"IFERROR('MMA Rev-Exp Region 7'!$AS$41/'MMA Rev-Exp Region 7'!$AS$9, 0)","v":{"v":0,"d":"$0.00"}},{"$f":"IFERROR('MMA Rev-Exp Region 7'!$AT$41/'MMA Rev-Exp Region 7'!$AT$9, 0)","v":{"v":0,"d":"$0.00"}},{"$f":"IFERROR('MMA Rev-Exp Region 7'!$AU$41/'MMA Rev-Exp Region 7'!$AU$9, 0)","v":{"v":0,"d":"$0.00"}}]
["MMA",null,null,2016,"2016-12-31","Q4","2017-12-31","Region 7","Operating Expense","Medical Benefits Expense","Mental Health Services",5.2,"Mental Health & Substance Abuse Subcapitation",{"$f":"IFERROR('MMA Rev-Exp Region 7'!$AK$42/'MMA Rev-Exp Region 7'!$AK$9, 0)","v":{"v":0,"d":"$0.00"}},{"$f":"IFERROR('MMA Rev-Exp Region 7'!$AL$42/'MMA Rev-Exp Region 7'!$AL$9, 0)","v":{"v":0,"d":"$0.00"}},{"$f":"IFERROR('MMA Rev-Exp Region 7'!$AM$42/'MMA Rev-Exp Region 7'!$AM$9, 0)","v":{"v":0,"d":"$0.00"}},{"$f":"IFERROR('MMA Rev-Exp Region 7'!$AN$42/'MMA Rev-Exp Region 7'!$AN$9, 0)","v":{"v":0,"d":"$0.00"}},{"$f":"IFERROR('MMA Rev-Exp Region 7'!$AO$42/'MMA Rev-Exp Region 7'!$AO$9, 0)","v":{"v":0,"d":"$0.00"}},{"$f":"IFERROR('MMA Rev-Exp Region 7'!$AP$42/'MMA Rev-Exp Region 7'!$AP$9, 0)","v":{"v":0,"d":"$0.00"}},{"$f":"IFERROR('MMA Rev-Exp Region 7'!$AQ$42/'MMA Rev-Exp Region 7'!$AQ$9, 0)","v":{"v":0,"d":"$0.00"}},{"$f":"IFERROR('MMA Rev-Exp Region 7'!$AR$42/'MMA Rev-Exp Region 7'!$AR$9, 0)","v":{"v":0,"d":"$0.00"}},{"$f":"IFERROR('MMA Rev-Exp Region 7'!$AS$42/'MMA Rev-Exp Region 7'!$AS$9, 0)","v":{"v":0,"d":"$0.00"}},{"$f":"IFERROR('MMA Rev-Exp Region 7'!$AT$42/'MMA Rev-Exp Region 7'!$AT$9, 0)","v":{"v":0,"d":"$0.00"}},{"$f":"IFERROR('MMA Rev-Exp Region 7'!$AU$42/'MMA Rev-Exp Region 7'!$AU$9, 0)","v":{"v":0,"d":"$0.00"}}]
["MMA",null,null,2016,"2016-12-31","Q4","2017-12-31","Region 7","Operating Expense","Medical Benefits Expense","Mental Health Services",5.3,"Ending IBNP for Mental Health & Substance Abuse",{"$f":"IFERROR('MMA Rev-Exp Region 7'!$AK$43/'MMA Rev-Exp Region 7'!$AK$9, 0)","v":{"v":0,"d":"$0.00"}},{"$f":"IFERROR('MMA Rev-Exp Region 7'!$AL$43/'MMA Rev-Exp Region 7'!$AL$9, 0)","v":{"v":0,"d":"$0.00"}},{"$f":"IFERROR('MMA Rev-Exp Region 7'!$AM$43/'MMA Rev-Exp Region 7'!$AM$9, 0)","v":{"v":0,"d":"$0.00"}},{"$f":"IFERROR('MMA Rev-Exp Region 7'!$AN$43/'MMA Rev-Exp Region 7'!$AN$9, 0)","v":{"v":0,"d":"$0.00"}},{"$f":"IFERROR('MMA Rev-Exp Region 7'!$AO$43/'MMA Rev-Exp Region 7'!$AO$9, 0)","v":{"v":0,"d":"$0.00"}},{"$f":"IFERROR('MMA Rev-Exp Region 7'!$AP$43/'MMA Rev-Exp Region 7'!$AP$9, 0)","v":{"v":0,"d":"$0.00"}},{"$f":"IFERROR('MMA Rev-Exp Region 7'!$AQ$43/'MMA Rev-Exp Region 7'!$AQ$9, 0)","v":{"v":0,"d":"$0.00"}},{"$f":"IFERROR('MMA Rev-Exp Region 7'!$AR$43/'MMA Rev-Exp Region 7'!$AR$9, 0)","v":{"v":0,"d":"$0.00"}},{"$f":"IFERROR('MMA Rev-Exp Region 7'!$AS$43/'MMA Rev-Exp Region 7'!$AS$9, 0)","v":{"v":0,"d":"$0.00"}},{"$f":"IFERROR('MMA Rev-Exp Region 7'!$AT$43/'MMA Rev-Exp Region 7'!$AT$9, 0)","v":{"v":0,"d":"$0.00"}},{"$f":"IFERROR('MMA Rev-Exp Region 7'!$AU$43/'MMA Rev-Exp Region 7'!$AU$9, 0)","v":{"v":0,"d":"$0.00"}}]
["MMA",null,null,2016,"2016-12-31","Q4","2017-12-31","Region 7","Operating Expense","Medical Benefits Expense","Mental Health Services","5.4","Mental Health Settlements",{"$f":"IFERROR('MMA Rev-Exp Region 7'!$AK$44/'MMA Rev-Exp Region 7'!$AK$9, 0)","v":{"v":0,"d":"$0.00"}},{"$f":"IFERROR('MMA Rev-Exp Region 7'!$AL$44/'MMA Rev-Exp Region 7'!$AL$9, 0)","v":{"v":0,"d":"$0.00"}},{"$f":"IFERROR('MMA Rev-Exp Region 7'!$AM$44/'MMA Rev-Exp Region 7'!$AM$9, 0)","v":{"v":0,"d":"$0.00"}},{"$f":"IFERROR('MMA Rev-Exp Region 7'!$AN$44/'MMA Rev-Exp Region 7'!$AN$9, 0)","v":{"v":0,"d":"$0.00"}},{"$f":"IFERROR('MMA Rev-Exp Region 7'!$AO$44/'MMA Rev-Exp Region 7'!$AO$9, 0)","v":{"v":0,"d":"$0.00"}},{"$f":"IFERROR('MMA Rev-Exp Region 7'!$AP$44/'MMA Rev-Exp Region 7'!$AP$9, 0)","v":{"v":0,"d":"$0.00"}},{"$f":"IFERROR('MMA Rev-Exp Region 7'!$AQ$44/'MMA Rev-Exp Region 7'!$AQ$9, 0)","v":{"v":0,"d":"$0.00"}},{"$f":"IFERROR('MMA Rev-Exp Region 7'!$AR$44/'MMA Rev-Exp Region 7'!$AR$9, 0)","v":{"v":0,"d":"$0.00"}},{"$f":"IFERROR('MMA Rev-Exp Region 7'!$AS$44/'MMA Rev-Exp Region 7'!$AS$9, 0)","v":{"v":0,"d":"$0.00"}},{"$f":"IFERROR('MMA Rev-Exp Region 7'!$AT$44/'MMA Rev-Exp Region 7'!$AT$9, 0)","v":{"v":0,"d":"$0.00"}},{"$f":"IFERROR('MMA Rev-Exp Region 7'!$AU$44/'MMA Rev-Exp Region 7'!$AU$9, 0)","v":{"v":0,"d":"$0.00"}}]
["MMA",null,null,2016,"2016-12-31","Q4","2017-12-31","Region 7","Operating Expense","Medical Benefits Expense","Dental Services",6.1,"Dental FFS",{"$f":"IFERROR('MMA Rev-Exp Region 7'!$AK$46/'MMA Rev-Exp Region 7'!$AK$9, 0)","v":{"v":0,"d":"$0.00"}},{"$f":"IFERROR('MMA Rev-Exp Region 7'!$AL$46/'MMA Rev-Exp Region 7'!$AL$9, 0)","v":{"v":0,"d":"$0.00"}},{"$f":"IFERROR('MMA Rev-Exp Region 7'!$AM$46/'MMA Rev-Exp Region 7'!$AM$9, 0)","v":{"v":0,"d":"$0.00"}},{"$f":"IFERROR('MMA Rev-Exp Region 7'!$AN$46/'MMA Rev-Exp Region 7'!$AN$9, 0)","v":{"v":0,"d":"$0.00"}},{"$f":"IFERROR('MMA Rev-Exp Region 7'!$AO$46/'MMA Rev-Exp Region 7'!$AO$9, 0)","v":{"v":0,"d":"$0.00"}},{"$f":"IFERROR('MMA Rev-Exp Region 7'!$AP$46/'MMA Rev-Exp Region 7'!$AP$9, 0)","v":{"v":0,"d":"$0.00"}},{"$f":"IFERROR('MMA Rev-Exp Region 7'!$AQ$46/'MMA Rev-Exp Region 7'!$AQ$9, 0)","v":{"v":0,"d":"$0.00"}},{"$f":"IFERROR('MMA Rev-Exp Region 7'!$AR$46/'MMA Rev-Exp Region 7'!$AR$9, 0)","v":{"v":0,"d":"$0.00"}},{"$f":"IFERROR('MMA Rev-Exp Region 7'!$AS$46/'MMA Rev-Exp Region 7'!$AS$9, 0)","v":{"v":0,"d":"$0.00"}},{"$f":"IFERROR('MMA Rev-Exp Region 7'!$AT$46/'MMA Rev-Exp Region 7'!$AT$9, 0)","v":{"v":0,"d":"$0.00"}},{"$f":"IFERROR('MMA Rev-Exp Region 7'!$AU$46/'MMA Rev-Exp Region 7'!$AU$9, 0)","v":{"v":0,"d":"$0.00"}}]
["MMA",null,null,2016,"2016-12-31","Q4","2017-12-31","Region 7","Operating Expense","Medical Benefits Expense","Dental Services",6.2,"Dental Subcapitation",{"$f":"IFERROR('MMA Rev-Exp Region 7'!$AK$47/'MMA Rev-Exp Region 7'!$AK$9, 0)","v":{"v":0,"d":"$0.00"}},{"$f":"IFERROR('MMA Rev-Exp Region 7'!$AL$47/'MMA Rev-Exp Region 7'!$AL$9, 0)","v":{"v":0,"d":"$0.00"}},{"$f":"IFERROR('MMA Rev-Exp Region 7'!$AM$47/'MMA Rev-Exp Region 7'!$AM$9, 0)","v":{"v":0,"d":"$0.00"}},{"$f":"IFERROR('MMA Rev-Exp Region 7'!$AN$47/'MMA Rev-Exp Region 7'!$AN$9, 0)","v":{"v":0,"d":"$0.00"}},{"$f":"IFERROR('MMA Rev-Exp Region 7'!$AO$47/'MMA Rev-Exp Region 7'!$AO$9, 0)","v":{"v":0,"d":"$0.00"}},{"$f":"IFERROR('MMA Rev-Exp Region 7'!$AP$47/'MMA Rev-Exp Region 7'!$AP$9, 0)","v":{"v":0,"d":"$0.00"}},{"$f":"IFERROR('MMA Rev-Exp Region 7'!$AQ$47/'MMA Rev-Exp Region 7'!$AQ$9, 0)","v":{"v":0,"d":"$0.00"}},{"$f":"IFERROR('MMA Rev-Exp Region 7'!$AR$47/'MMA Rev-Exp Region 7'!$AR$9, 0)","v":{"v":0,"d":"$0.00"}},{"$f":"IFERROR('MMA Rev-Exp Region 7'!$AS$47/'MMA Rev-Exp Region 7'!$AS$9, 0)","v":{"v":0,"d":"$0.00"}},{"$f":"IFERROR('MMA Rev-Exp Region 7'!$AT$47/'MMA Rev-Exp Region 7'!$AT$9, 0)","v":{"v":0,"d":"$0.00"}},{"$f":"IFERROR('MMA Rev-Exp Region 7'!$AU$47/'MMA Rev-Exp Region 7'!$AU$9, 0)","v":{"v":0,"d":"$0.00"}}]
["MMA",null,null,2016,"2016-12-31","Q4","2017-12-31","Region 7","Operating Expense","Medical Benefits Expense","Dental Services",6.3,"Ending IBNP for Dental Services",{"$f":"IFERROR('MMA Rev-Exp Region 7'!$AK$48/'MMA Rev-Exp Region 7'!$AK$9, 0)","v":{"v":0,"d":"$0.00"}},{"$f":"IFERROR('MMA Rev-Exp Region 7'!$AL$48/'MMA Rev-Exp Region 7'!$AL$9, 0)","v":{"v":0,"d":"$0.00"}},{"$f":"IFERROR('MMA Rev-Exp Region 7'!$AM$48/'MMA Rev-Exp Region 7'!$AM$9, 0)","v":{"v":0,"d":"$0.00"}},{"$f":"IFERROR('MMA Rev-Exp Region 7'!$AN$48/'MMA Rev-Exp Region 7'!$AN$9, 0)","v":{"v":0,"d":"$0.00"}},{"$f":"IFERROR('MMA Rev-Exp Region 7'!$AO$48/'MMA Rev-Exp Region 7'!$AO$9, 0)","v":{"v":0,"d":"$0.00"}},{"$f":"IFERROR('MMA Rev-Exp Region 7'!$AP$48/'MMA Rev-Exp Region 7'!$AP$9, 0)","v":{"v":0,"d":"$0.00"}},{"$f":"IFERROR('MMA Rev-Exp Region 7'!$AQ$48/'MMA Rev-Exp Region 7'!$AQ$9, 0)","v":{"v":0,"d":"$0.00"}},{"$f":"IFERROR('MMA Rev-Exp Region 7'!$AR$48/'MMA Rev-Exp Region 7'!$AR$9, 0)","v":{"v":0,"d":"$0.00"}},{"$f":"IFERROR('MMA Rev-Exp Region 7'!$AS$48/'MMA Rev-Exp Region 7'!$AS$9, 0)","v":{"v":0,"d":"$0.00"}},{"$f":"IFERROR('MMA Rev-Exp Region 7'!$AT$48/'MMA Rev-Exp Region 7'!$AT$9, 0)","v":{"v":0,"d":"$0.00"}},{"$f":"IFERROR('MMA Rev-Exp Region 7'!$AU$48/'MMA Rev-Exp Region 7'!$AU$9, 0)","v":{"v":0,"d":"$0.00"}}]
["MMA",null,null,2016,"2016-12-31","Q4","2017-12-31","Region 7","Operating Expense","Medical Benefits Expense","Dental Services","6.4","Dental Settlements",{"$f":"IFERROR('MMA Rev-Exp Region 7'!$AK$49/'MMA Rev-Exp Region 7'!$AK$9, 0)","v":{"v":0,"d":"$0.00"}},{"$f":"IFERROR('MMA Rev-Exp Region 7'!$AL$49/'MMA Rev-Exp Region 7'!$AL$9, 0)","v":{"v":0,"d":"$0.00"}},{"$f":"IFERROR('MMA Rev-Exp Region 7'!$AM$49/'MMA Rev-Exp Region 7'!$AM$9, 0)","v":{"v":0,"d":"$0.00"}},{"$f":"IFERROR('MMA Rev-Exp Region 7'!$AN$49/'MMA Rev-Exp Region 7'!$AN$9, 0)","v":{"v":0,"d":"$0.00"}},{"$f":"IFERROR('MMA Rev-Exp Region 7'!$AO$49/'MMA Rev-Exp Region 7'!$AO$9, 0)","v":{"v":0,"d":"$0.00"}},{"$f":"IFERROR('MMA Rev-Exp Region 7'!$AP$49/'MMA Rev-Exp Region 7'!$AP$9, 0)","v":{"v":0,"d":"$0.00"}},{"$f":"IFERROR('MMA Rev-Exp Region 7'!$AQ$49/'MMA Rev-Exp Region 7'!$AQ$9, 0)","v":{"v":0,"d":"$0.00"}},{"$f":"IFERROR('MMA Rev-Exp Region 7'!$AR$49/'MMA Rev-Exp Region 7'!$AR$9, 0)","v":{"v":0,"d":"$0.00"}},{"$f":"IFERROR('MMA Rev-Exp Region 7'!$AS$49/'MMA Rev-Exp Region 7'!$AS$9, 0)","v":{"v":0,"d":"$0.00"}},{"$f":"IFERROR('MMA Rev-Exp Region 7'!$AT$49/'MMA Rev-Exp Region 7'!$AT$9, 0)","v":{"v":0,"d":"$0.00"}},{"$f":"IFERROR('MMA Rev-Exp Region 7'!$AU$49/'MMA Rev-Exp Region 7'!$AU$9, 0)","v":{"v":0,"d":"$0.00"}}]
["MMA",null,null,2016,"2016-12-31","Q4","2017-12-31","Region 7","Operating Expense","Medical Benefits Expense","Transportation Services",7.1,"Transportation FFS",{"$f":"IFERROR('MMA Rev-Exp Region 7'!$AK$51/'MMA Rev-Exp Region 7'!$AK$9, 0)","v":{"v":0,"d":"$0.00"}},{"$f":"IFERROR('MMA Rev-Exp Region 7'!$AL$51/'MMA Rev-Exp Region 7'!$AL$9, 0)","v":{"v":0,"d":"$0.00"}},{"$f":"IFERROR('MMA Rev-Exp Region 7'!$AM$51/'MMA Rev-Exp Region 7'!$AM$9, 0)","v":{"v":0,"d":"$0.00"}},{"$f":"IFERROR('MMA Rev-Exp Region 7'!$AN$51/'MMA Rev-Exp Region 7'!$AN$9, 0)","v":{"v":0,"d":"$0.00"}},{"$f":"IFERROR('MMA Rev-Exp Region 7'!$AO$51/'MMA Rev-Exp Region 7'!$AO$9, 0)","v":{"v":0,"d":"$0.00"}},{"$f":"IFERROR('MMA Rev-Exp Region 7'!$AP$51/'MMA Rev-Exp Region 7'!$AP$9, 0)","v":{"v":0,"d":"$0.00"}},{"$f":"IFERROR('MMA Rev-Exp Region 7'!$AQ$51/'MMA Rev-Exp Region 7'!$AQ$9, 0)","v":{"v":0,"d":"$0.00"}},{"$f":"IFERROR('MMA Rev-Exp Region 7'!$AR$51/'MMA Rev-Exp Region 7'!$AR$9, 0)","v":{"v":0,"d":"$0.00"}},{"$f":"IFERROR('MMA Rev-Exp Region 7'!$AS$51/'MMA Rev-Exp Region 7'!$AS$9, 0)","v":{"v":0,"d":"$0.00"}},{"$f":"IFERROR('MMA Rev-Exp Region 7'!$AT$51/'MMA Rev-Exp Region 7'!$AT$9, 0)","v":{"v":0,"d":"$0.00"}},{"$f":"IFERROR('MMA Rev-Exp Region 7'!$AU$51/'MMA Rev-Exp Region 7'!$AU$9, 0)","v":{"v":0,"d":"$0.00"}}]
["MMA",null,null,2016,"2016-12-31","Q4","2017-12-31","Region 7","Operating Expense","Medical Benefits Expense","Transportation Services",7.2,"Transportation Subcapitation",{"$f":"IFERROR('MMA Rev-Exp Region 7'!$AK$52/'MMA Rev-Exp Region 7'!$AK$9, 0)","v":{"v":0,"d":"$0.00"}},{"$f":"IFERROR('MMA Rev-Exp Region 7'!$AL$52/'MMA Rev-Exp Region 7'!$AL$9, 0)","v":{"v":0,"d":"$0.00"}},{"$f":"IFERROR('MMA Rev-Exp Region 7'!$AM$52/'MMA Rev-Exp Region 7'!$AM$9, 0)","v":{"v":0,"d":"$0.00"}},{"$f":"IFERROR('MMA Rev-Exp Region 7'!$AN$52/'MMA Rev-Exp Region 7'!$AN$9, 0)","v":{"v":0,"d":"$0.00"}},{"$f":"IFERROR('MMA Rev-Exp Region 7'!$AO$52/'MMA Rev-Exp Region 7'!$AO$9, 0)","v":{"v":0,"d":"$0.00"}},{"$f":"IFERROR('MMA Rev-Exp Region 7'!$AP$52/'MMA Rev-Exp Region 7'!$AP$9, 0)","v":{"v":0,"d":"$0.00"}},{"$f":"IFERROR('MMA Rev-Exp Region 7'!$AQ$52/'MMA Rev-Exp Region 7'!$AQ$9, 0)","v":{"v":0,"d":"$0.00"}},{"$f":"IFERROR('MMA Rev-Exp Region 7'!$AR$52/'MMA Rev-Exp Region 7'!$AR$9, 0)","v":{"v":0,"d":"$0.00"}},{"$f":"IFERROR('MMA Rev-Exp Region 7'!$AS$52/'MMA Rev-Exp Region 7'!$AS$9, 0)","v":{"v":0,"d":"$0.00"}},{"$f":"IFERROR('MMA Rev-Exp Region 7'!$AT$52/'MMA Rev-Exp Region 7'!$AT$9, 0)","v":{"v":0,"d":"$0.00"}},{"$f":"IFERROR('MMA Rev-Exp Region 7'!$AU$52/'MMA Rev-Exp Region 7'!$AU$9, 0)","v":{"v":0,"d":"$0.00"}}]
["MMA",null,null,2016,"2016-12-31","Q4","2017-12-31","Region 7","Operating Expense","Medical Benefits Expense","Transportation Services",7.3,"Ending IBNP for Transportation",{"$f":"IFERROR('MMA Rev-Exp Region 7'!$AK$53/'MMA Rev-Exp Region 7'!$AK$9, 0)","v":{"v":0,"d":"$0.00"}},{"$f":"IFERROR('MMA Rev-Exp Region 7'!$AL$53/'MMA Rev-Exp Region 7'!$AL$9, 0)","v":{"v":0,"d":"$0.00"}},{"$f":"IFERROR('MMA Rev-Exp Region 7'!$AM$53/'MMA Rev-Exp Region 7'!$AM$9, 0)","v":{"v":0,"d":"$0.00"}},{"$f":"IFERROR('MMA Rev-Exp Region 7'!$AN$53/'MMA Rev-Exp Region 7'!$AN$9, 0)","v":{"v":0,"d":"$0.00"}},{"$f":"IFERROR('MMA Rev-Exp Region 7'!$AO$53/'MMA Rev-Exp Region 7'!$AO$9, 0)","v":{"v":0,"d":"$0.00"}},{"$f":"IFERROR('MMA Rev-Exp Region 7'!$AP$53/'MMA Rev-Exp Region 7'!$AP$9, 0)","v":{"v":0,"d":"$0.00"}},{"$f":"IFERROR('MMA Rev-Exp Region 7'!$AQ$53/'MMA Rev-Exp Region 7'!$AQ$9, 0)","v":{"v":0,"d":"$0.00"}},{"$f":"IFERROR('MMA Rev-Exp Region 7'!$AR$53/'MMA Rev-Exp Region 7'!$AR$9, 0)","v":{"v":0,"d":"$0.00"}},{"$f":"IFERROR('MMA Rev-Exp Region 7'!$AS$53/'MMA Rev-Exp Region 7'!$AS$9, 0)","v":{"v":0,"d":"$0.00"}},{"$f":"IFERROR('MMA Rev-Exp Region 7'!$AT$53/'MMA Rev-Exp Region 7'!$AT$9, 0)","v":{"v":0,"d":"$0.00"}},{"$f":"IFERROR('MMA Rev-Exp Region 7'!$AU$53/'MMA Rev-Exp Region 7'!$AU$9, 0)","v":{"v":0,"d":"$0.00"}}]
["MMA",null,null,2016,"2016-12-31","Q4","2017-12-31","Region 7","Operating Expense","Medical Benefits Expense","Transportation Services","7.4","Transportation Settlements",{"$f":"IFERROR('MMA Rev-Exp Region 7'!$AK$54/'MMA Rev-Exp Region 7'!$AK$9, 0)","v":{"v":0,"d":"$0.00"}},{"$f":"IFERROR('MMA Rev-Exp Region 7'!$AL$54/'MMA Rev-Exp Region 7'!$AL$9, 0)","v":{"v":0,"d":"$0.00"}},{"$f":"IFERROR('MMA Rev-Exp Region 7'!$AM$54/'MMA Rev-Exp Region 7'!$AM$9, 0)","v":{"v":0,"d":"$0.00"}},{"$f":"IFERROR('MMA Rev-Exp Region 7'!$AN$54/'MMA Rev-Exp Region 7'!$AN$9, 0)","v":{"v":0,"d":"$0.00"}},{"$f":"IFERROR('MMA Rev-Exp Region 7'!$AO$54/'MMA Rev-Exp Region 7'!$AO$9, 0)","v":{"v":0,"d":"$0.00"}},{"$f":"IFERROR('MMA Rev-Exp Region 7'!$AP$54/'MMA Rev-Exp Region 7'!$AP$9, 0)","v":{"v":0,"d":"$0.00"}},{"$f":"IFERROR('MMA Rev-Exp Region 7'!$AQ$54/'MMA Rev-Exp Region 7'!$AQ$9, 0)","v":{"v":0,"d":"$0.00"}},{"$f":"IFERROR('MMA Rev-Exp Region 7'!$AR$54/'MMA Rev-Exp Region 7'!$AR$9, 0)","v":{"v":0,"d":"$0.00"}},{"$f":"IFERROR('MMA Rev-Exp Region 7'!$AS$54/'MMA Rev-Exp Region 7'!$AS$9, 0)","v":{"v":0,"d":"$0.00"}},{"$f":"IFERROR('MMA Rev-Exp Region 7'!$AT$54/'MMA Rev-Exp Region 7'!$AT$9, 0)","v":{"v":0,"d":"$0.00"}},{"$f":"IFERROR('MMA Rev-Exp Region 7'!$AU$54/'MMA Rev-Exp Region 7'!$AU$9, 0)","v":{"v":0,"d":"$0.00"}}]
["MMA",null,null,2016,"2016-12-31","Q4","2017-12-31","Region 7","Operating Expense","Medical Benefits Expense","Pharmacy Services",8.1,"Prescription Drugs FFS",{"$f":"IFERROR('MMA Rev-Exp Region 7'!$AK$56/'MMA Rev-Exp Region 7'!$AK$9, 0)","v":{"v":0,"d":"$0.00"}},{"$f":"IFERROR('MMA Rev-Exp Region 7'!$AL$56/'MMA Rev-Exp Region 7'!$AL$9, 0)","v":{"v":0,"d":"$0.00"}},{"$f":"IFERROR('MMA Rev-Exp Region 7'!$AM$56/'MMA Rev-Exp Region 7'!$AM$9, 0)","v":{"v":0,"d":"$0.00"}},{"$f":"IFERROR('MMA Rev-Exp Region 7'!$AN$56/'MMA Rev-Exp Region 7'!$AN$9, 0)","v":{"v":0,"d":"$0.00"}},{"$f":"IFERROR('MMA Rev-Exp Region 7'!$AO$56/'MMA Rev-Exp Region 7'!$AO$9, 0)","v":{"v":0,"d":"$0.00"}},{"$f":"IFERROR('MMA Rev-Exp Region 7'!$AP$56/'MMA Rev-Exp Region 7'!$AP$9, 0)","v":{"v":0,"d":"$0.00"}},{"$f":"IFERROR('MMA Rev-Exp Region 7'!$AQ$56/'MMA Rev-Exp Region 7'!$AQ$9, 0)","v":{"v":0,"d":"$0.00"}},{"$f":"IFERROR('MMA Rev-Exp Region 7'!$AR$56/'MMA Rev-Exp Region 7'!$AR$9, 0)","v":{"v":0,"d":"$0.00"}},{"$f":"IFERROR('MMA Rev-Exp Region 7'!$AS$56/'MMA Rev-Exp Region 7'!$AS$9, 0)","v":{"v":0,"d":"$0.00"}},{"$f":"IFERROR('MMA Rev-Exp Region 7'!$AT$56/'MMA Rev-Exp Region 7'!$AT$9, 0)","v":{"v":0,"d":"$0.00"}},{"$f":"IFERROR('MMA Rev-Exp Region 7'!$AU$56/'MMA Rev-Exp Region 7'!$AU$9, 0)","v":{"v":0,"d":"$0.00"}}]
["MMA",null,null,2016,"2016-12-31","Q4","2017-12-31","Region 7","Operating Expense","Medical Benefits Expense","Pharmacy Services","8.2","Hepatitis C Prescription Drug FFS",{"$f":"IFERROR('MMA Rev-Exp Region 7'!$AK$57/'MMA Rev-Exp Region 7'!$AK$9, 0)","v":{"v":0,"d":"$0.00"}},{"$f":"IFERROR('MMA Rev-Exp Region 7'!$AL$57/'MMA Rev-Exp Region 7'!$AL$9, 0)","v":{"v":0,"d":"$0.00"}},{"$f":"IFERROR('MMA Rev-Exp Region 7'!$AM$57/'MMA Rev-Exp Region 7'!$AM$9, 0)","v":{"v":0,"d":"$0.00"}},{"$f":"IFERROR('MMA Rev-Exp Region 7'!$AN$57/'MMA Rev-Exp Region 7'!$AN$9, 0)","v":{"v":0,"d":"$0.00"}},{"$f":"IFERROR('MMA Rev-Exp Region 7'!$AO$57/'MMA Rev-Exp Region 7'!$AO$9, 0)","v":{"v":0,"d":"$0.00"}},{"$f":"IFERROR('MMA Rev-Exp Region 7'!$AP$57/'MMA Rev-Exp Region 7'!$AP$9, 0)","v":{"v":0,"d":"$0.00"}},{"$f":"IFERROR('MMA Rev-Exp Region 7'!$AQ$57/'MMA Rev-Exp Region 7'!$AQ$9, 0)","v":{"v":0,"d":"$0.00"}},{"$f":"IFERROR('MMA Rev-Exp Region 7'!$AR$57/'MMA Rev-Exp Region 7'!$AR$9, 0)","v":{"v":0,"d":"$0.00"}},{"$f":"IFERROR('MMA Rev-Exp Region 7'!$AS$57/'MMA Rev-Exp Region 7'!$AS$9, 0)","v":{"v":0,"d":"$0.00"}},{"$f":"IFERROR('MMA Rev-Exp Region 7'!$AT$57/'MMA Rev-Exp Region 7'!$AT$9, 0)","v":{"v":0,"d":"$0.00"}},{"$f":"IFERROR('MMA Rev-Exp Region 7'!$AU$57/'MMA Rev-Exp Region 7'!$AU$9, 0)","v":{"v":0,"d":"$0.00"}}]
["MMA",null,null,2016,"2016-12-31","Q4","2017-12-31","Region 7","Operating Expense","Medical Benefits Expense","Pharmacy Services","8.3","Ending IBNP for Prescription Drugs",{"$f":"IFERROR('MMA Rev-Exp Region 7'!$AK$58/'MMA Rev-Exp Region 7'!$AK$9, 0)","v":{"v":0,"d":"$0.00"}},{"$f":"IFERROR('MMA Rev-Exp Region 7'!$AL$58/'MMA Rev-Exp Region 7'!$AL$9, 0)","v":{"v":0,"d":"$0.00"}},{"$f":"IFERROR('MMA Rev-Exp Region 7'!$AM$58/'MMA Rev-Exp Region 7'!$AM$9, 0)","v":{"v":0,"d":"$0.00"}},{"$f":"IFERROR('MMA Rev-Exp Region 7'!$AN$58/'MMA Rev-Exp Region 7'!$AN$9, 0)","v":{"v":0,"d":"$0.00"}},{"$f":"IFERROR('MMA Rev-Exp Region 7'!$AO$58/'MMA Rev-Exp Region 7'!$AO$9, 0)","v":{"v":0,"d":"$0.00"}},{"$f":"IFERROR('MMA Rev-Exp Region 7'!$AP$58/'MMA Rev-Exp Region 7'!$AP$9, 0)","v":{"v":0,"d":"$0.00"}},{"$f":"IFERROR('MMA Rev-Exp Region 7'!$AQ$58/'MMA Rev-Exp Region 7'!$AQ$9, 0)","v":{"v":0,"d":"$0.00"}},{"$f":"IFERROR('MMA Rev-Exp Region 7'!$AR$58/'MMA Rev-Exp Region 7'!$AR$9, 0)","v":{"v":0,"d":"$0.00"}},{"$f":"IFERROR('MMA Rev-Exp Region 7'!$AS$58/'MMA Rev-Exp Region 7'!$AS$9, 0)","v":{"v":0,"d":"$0.00"}},{"$f":"IFERROR('MMA Rev-Exp Region 7'!$AT$58/'MMA Rev-Exp Region 7'!$AT$9, 0)","v":{"v":0,"d":"$0.00"}},{"$f":"IFERROR('MMA Rev-Exp Region 7'!$AU$58/'MMA Rev-Exp Region 7'!$AU$9, 0)","v":{"v":0,"d":"$0.00"}}]
["MMA",null,null,2016,"2016-12-31","Q4","2017-12-31","Region 7","Operating Expense","Medical Benefits Expense","Pharmacy Services","8.4","Prescription Drug Rebates ",{"$f":"IFERROR('MMA Rev-Exp Region 7'!$AK$59/'MMA Rev-Exp Region 7'!$AK$9, 0)","v":{"v":0,"d":"$0.00"}},{"$f":"IFERROR('MMA Rev-Exp Region 7'!$AL$59/'MMA Rev-Exp Region 7'!$AL$9, 0)","v":{"v":0,"d":"$0.00"}},{"$f":"IFERROR('MMA Rev-Exp Region 7'!$AM$59/'MMA Rev-Exp Region 7'!$AM$9, 0)","v":{"v":0,"d":"$0.00"}},{"$f":"IFERROR('MMA Rev-Exp Region 7'!$AN$59/'MMA Rev-Exp Region 7'!$AN$9, 0)","v":{"v":0,"d":"$0.00"}},{"$f":"IFERROR('MMA Rev-Exp Region 7'!$AO$59/'MMA Rev-Exp Region 7'!$AO$9, 0)","v":{"v":0,"d":"$0.00"}},{"$f":"IFERROR('MMA Rev-Exp Region 7'!$AP$59/'MMA Rev-Exp Region 7'!$AP$9, 0)","v":{"v":0,"d":"$0.00"}},{"$f":"IFERROR('MMA Rev-Exp Region 7'!$AQ$59/'MMA Rev-Exp Region 7'!$AQ$9, 0)","v":{"v":0,"d":"$0.00"}},{"$f":"IFERROR('MMA Rev-Exp Region 7'!$AR$59/'MMA Rev-Exp Region 7'!$AR$9, 0)","v":{"v":0,"d":"$0.00"}},{"$f":"IFERROR('MMA Rev-Exp Region 7'!$AS$59/'MMA Rev-Exp Region 7'!$AS$9, 0)","v":{"v":0,"d":"$0.00"}},{"$f":"IFERROR('MMA Rev-Exp Region 7'!$AT$59/'MMA Rev-Exp Region 7'!$AT$9, 0)","v":{"v":0,"d":"$0.00"}},{"$f":"IFERROR('MMA Rev-Exp Region 7'!$AU$59/'MMA Rev-Exp Region 7'!$AU$9, 0)","v":{"v":0,"d":"$0.00"}}]
["MMA",null,null,2016,"2016-12-31","Q4","2017-12-31","Region 7","Operating Expense","Medical Benefits Expense","Pharmacy Services","8.5","Ending accrual for Rebates receivable",{"$f":"IFERROR('MMA Rev-Exp Region 7'!$AK$60/'MMA Rev-Exp Region 7'!$AK$9, 0)","v":{"v":0,"d":"$0.00"}},{"$f":"IFERROR('MMA Rev-Exp Region 7'!$AL$60/'MMA Rev-Exp Region 7'!$AL$9, 0)","v":{"v":0,"d":"$0.00"}},{"$f":"IFERROR('MMA Rev-Exp Region 7'!$AM$60/'MMA Rev-Exp Region 7'!$AM$9, 0)","v":{"v":0,"d":"$0.00"}},{"$f":"IFERROR('MMA Rev-Exp Region 7'!$AN$60/'MMA Rev-Exp Region 7'!$AN$9, 0)","v":{"v":0,"d":"$0.00"}},{"$f":"IFERROR('MMA Rev-Exp Region 7'!$AO$60/'MMA Rev-Exp Region 7'!$AO$9, 0)","v":{"v":0,"d":"$0.00"}},{"$f":"IFERROR('MMA Rev-Exp Region 7'!$AP$60/'MMA Rev-Exp Region 7'!$AP$9, 0)","v":{"v":0,"d":"$0.00"}},{"$f":"IFERROR('MMA Rev-Exp Region 7'!$AQ$60/'MMA Rev-Exp Region 7'!$AQ$9, 0)","v":{"v":0,"d":"$0.00"}},{"$f":"IFERROR('MMA Rev-Exp Region 7'!$AR$60/'MMA Rev-Exp Region 7'!$AR$9, 0)","v":{"v":0,"d":"$0.00"}},{"$f":"IFERROR('MMA Rev-Exp Region 7'!$AS$60/'MMA Rev-Exp Region 7'!$AS$9, 0)","v":{"v":0,"d":"$0.00"}},{"$f":"IFERROR('MMA Rev-Exp Region 7'!$AT$60/'MMA Rev-Exp Region 7'!$AT$9, 0)","v":{"v":0,"d":"$0.00"}},{"$f":"IFERROR('MMA Rev-Exp Region 7'!$AU$60/'MMA Rev-Exp Region 7'!$AU$9, 0)","v":{"v":0,"d":"$0.00"}}]
["MMA",null,null,2016,"2016-12-31","Q4","2017-12-31","Region 7","Operating Expense","Medical Benefits Expense","Pharmacy Services","8.6","Prescription Drugs Subcapitation",{"$f":"IFERROR('MMA Rev-Exp Region 7'!$AK$61/'MMA Rev-Exp Region 7'!$AK$9, 0)","v":{"v":0,"d":"$0.00"}},{"$f":"IFERROR('MMA Rev-Exp Region 7'!$AL$61/'MMA Rev-Exp Region 7'!$AL$9, 0)","v":{"v":0,"d":"$0.00"}},{"$f":"IFERROR('MMA Rev-Exp Region 7'!$AM$61/'MMA Rev-Exp Region 7'!$AM$9, 0)","v":{"v":0,"d":"$0.00"}},{"$f":"IFERROR('MMA Rev-Exp Region 7'!$AN$61/'MMA Rev-Exp Region 7'!$AN$9, 0)","v":{"v":0,"d":"$0.00"}},{"$f":"IFERROR('MMA Rev-Exp Region 7'!$AO$61/'MMA Rev-Exp Region 7'!$AO$9, 0)","v":{"v":0,"d":"$0.00"}},{"$f":"IFERROR('MMA Rev-Exp Region 7'!$AP$61/'MMA Rev-Exp Region 7'!$AP$9, 0)","v":{"v":0,"d":"$0.00"}},{"$f":"IFERROR('MMA Rev-Exp Region 7'!$AQ$61/'MMA Rev-Exp Region 7'!$AQ$9, 0)","v":{"v":0,"d":"$0.00"}},{"$f":"IFERROR('MMA Rev-Exp Region 7'!$AR$61/'MMA Rev-Exp Region 7'!$AR$9, 0)","v":{"v":0,"d":"$0.00"}},{"$f":"IFERROR('MMA Rev-Exp Region 7'!$AS$61/'MMA Rev-Exp Region 7'!$AS$9, 0)","v":{"v":0,"d":"$0.00"}},{"$f":"IFERROR('MMA Rev-Exp Region 7'!$AT$61/'MMA Rev-Exp Region 7'!$AT$9, 0)","v":{"v":0,"d":"$0.00"}},{"$f":"IFERROR('MMA Rev-Exp Region 7'!$AU$61/'MMA Rev-Exp Region 7'!$AU$9, 0)","v":{"v":0,"d":"$0.00"}}]
["MMA",null,null,2016,"2016-12-31","Q4","2017-12-31","Region 7","Operating Expense","Medical Benefits Expense","Pharmacy Services","8.7","Prescription Drug Settlements",{"$f":"IFERROR('MMA Rev-Exp Region 7'!$AK$62/'MMA Rev-Exp Region 7'!$AK$9, 0)","v":{"v":0,"d":"$0.00"}},{"$f":"IFERROR('MMA Rev-Exp Region 7'!$AL$62/'MMA Rev-Exp Region 7'!$AL$9, 0)","v":{"v":0,"d":"$0.00"}},{"$f":"IFERROR('MMA Rev-Exp Region 7'!$AM$62/'MMA Rev-Exp Region 7'!$AM$9, 0)","v":{"v":0,"d":"$0.00"}},{"$f":"IFERROR('MMA Rev-Exp Region 7'!$AN$62/'MMA Rev-Exp Region 7'!$AN$9, 0)","v":{"v":0,"d":"$0.00"}},{"$f":"IFERROR('MMA Rev-Exp Region 7'!$AO$62/'MMA Rev-Exp Region 7'!$AO$9, 0)","v":{"v":0,"d":"$0.00"}},{"$f":"IFERROR('MMA Rev-Exp Region 7'!$AP$62/'MMA Rev-Exp Region 7'!$AP$9, 0)","v":{"v":0,"d":"$0.00"}},{"$f":"IFERROR('MMA Rev-Exp Region 7'!$AQ$62/'MMA Rev-Exp Region 7'!$AQ$9, 0)","v":{"v":0,"d":"$0.00"}},{"$f":"IFERROR('MMA Rev-Exp Region 7'!$AR$62/'MMA Rev-Exp Region 7'!$AR$9, 0)","v":{"v":0,"d":"$0.00"}},{"$f":"IFERROR('MMA Rev-Exp Region 7'!$AS$62/'MMA Rev-Exp Region 7'!$AS$9, 0)","v":{"v":0,"d":"$0.00"}},{"$f":"IFERROR('MMA Rev-Exp Region 7'!$AT$62/'MMA Rev-Exp Region 7'!$AT$9, 0)","v":{"v":0,"d":"$0.00"}},{"$f":"IFERROR('MMA Rev-Exp Region 7'!$AU$62/'MMA Rev-Exp Region 7'!$AU$9, 0)","v":{"v":0,"d":"$0.00"}}]
["MMA",null,null,2016,"2016-12-31","Q4","2017-12-31","Region 7","Operating Expense","Medical Benefits Expense","Other MMA Services",9.1,"Home Health, Private Duty Nursing, Personal Care FFS",{"$f":"IFERROR('MMA Rev-Exp Region 7'!$AK$64/'MMA Rev-Exp Region 7'!$AK$9, 0)","v":{"v":0,"d":"$0.00"}},{"$f":"IFERROR('MMA Rev-Exp Region 7'!$AL$64/'MMA Rev-Exp Region 7'!$AL$9, 0)","v":{"v":0,"d":"$0.00"}},{"$f":"IFERROR('MMA Rev-Exp Region 7'!$AM$64/'MMA Rev-Exp Region 7'!$AM$9, 0)","v":{"v":0,"d":"$0.00"}},{"$f":"IFERROR('MMA Rev-Exp Region 7'!$AN$64/'MMA Rev-Exp Region 7'!$AN$9, 0)","v":{"v":0,"d":"$0.00"}},{"$f":"IFERROR('MMA Rev-Exp Region 7'!$AO$64/'MMA Rev-Exp Region 7'!$AO$9, 0)","v":{"v":0,"d":"$0.00"}},{"$f":"IFERROR('MMA Rev-Exp Region 7'!$AP$64/'MMA Rev-Exp Region 7'!$AP$9, 0)","v":{"v":0,"d":"$0.00"}},{"$f":"IFERROR('MMA Rev-Exp Region 7'!$AQ$64/'MMA Rev-Exp Region 7'!$AQ$9, 0)","v":{"v":0,"d":"$0.00"}},{"$f":"IFERROR('MMA Rev-Exp Region 7'!$AR$64/'MMA Rev-Exp Region 7'!$AR$9, 0)","v":{"v":0,"d":"$0.00"}},{"$f":"IFERROR('MMA Rev-Exp Region 7'!$AS$64/'MMA Rev-Exp Region 7'!$AS$9, 0)","v":{"v":0,"d":"$0.00"}},{"$f":"IFERROR('MMA Rev-Exp Region 7'!$AT$64/'MMA Rev-Exp Region 7'!$AT$9, 0)","v":{"v":0,"d":"$0.00"}},{"$f":"IFERROR('MMA Rev-Exp Region 7'!$AU$64/'MMA Rev-Exp Region 7'!$AU$9, 0)","v":{"v":0,"d":"$0.00"}}]
["MMA",null,null,2016,"2016-12-31","Q4","2017-12-31","Region 7","Operating Expense","Medical Benefits Expense","Other MMA Services","9.2","Hospice FFS",{"$f":"IFERROR('MMA Rev-Exp Region 7'!$AK$65/'MMA Rev-Exp Region 7'!$AK$9, 0)","v":{"v":0,"d":"$0.00"}},{"$f":"IFERROR('MMA Rev-Exp Region 7'!$AL$65/'MMA Rev-Exp Region 7'!$AL$9, 0)","v":{"v":0,"d":"$0.00"}},{"$f":"IFERROR('MMA Rev-Exp Region 7'!$AM$65/'MMA Rev-Exp Region 7'!$AM$9, 0)","v":{"v":0,"d":"$0.00"}},{"$f":"IFERROR('MMA Rev-Exp Region 7'!$AN$65/'MMA Rev-Exp Region 7'!$AN$9, 0)","v":{"v":0,"d":"$0.00"}},{"$f":"IFERROR('MMA Rev-Exp Region 7'!$AO$65/'MMA Rev-Exp Region 7'!$AO$9, 0)","v":{"v":0,"d":"$0.00"}},{"$f":"IFERROR('MMA Rev-Exp Region 7'!$AP$65/'MMA Rev-Exp Region 7'!$AP$9, 0)","v":{"v":0,"d":"$0.00"}},{"$f":"IFERROR('MMA Rev-Exp Region 7'!$AQ$65/'MMA Rev-Exp Region 7'!$AQ$9, 0)","v":{"v":0,"d":"$0.00"}},{"$f":"IFERROR('MMA Rev-Exp Region 7'!$AR$65/'MMA Rev-Exp Region 7'!$AR$9, 0)","v":{"v":0,"d":"$0.00"}},{"$f":"IFERROR('MMA Rev-Exp Region 7'!$AS$65/'MMA Rev-Exp Region 7'!$AS$9, 0)","v":{"v":0,"d":"$0.00"}},{"$f":"IFERROR('MMA Rev-Exp Region 7'!$AT$65/'MMA Rev-Exp Region 7'!$AT$9, 0)","v":{"v":0,"d":"$0.00"}},{"$f":"IFERROR('MMA Rev-Exp Region 7'!$AU$65/'MMA Rev-Exp Region 7'!$AU$9, 0)","v":{"v":0,"d":"$0.00"}}]
["MMA",null,null,2016,"2016-12-31","Q4","2017-12-31","Region 7","Operating Expense","Medical Benefits Expense","Other MMA Services","9.3","DME FFS",{"$f":"IFERROR('MMA Rev-Exp Region 7'!$AK$66/'MMA Rev-Exp Region 7'!$AK$9, 0)","v":{"v":0,"d":"$0.00"}},{"$f":"IFERROR('MMA Rev-Exp Region 7'!$AL$66/'MMA Rev-Exp Region 7'!$AL$9, 0)","v":{"v":0,"d":"$0.00"}},{"$f":"IFERROR('MMA Rev-Exp Region 7'!$AM$66/'MMA Rev-Exp Region 7'!$AM$9, 0)","v":{"v":0,"d":"$0.00"}},{"$f":"IFERROR('MMA Rev-Exp Region 7'!$AN$66/'MMA Rev-Exp Region 7'!$AN$9, 0)","v":{"v":0,"d":"$0.00"}},{"$f":"IFERROR('MMA Rev-Exp Region 7'!$AO$66/'MMA Rev-Exp Region 7'!$AO$9, 0)","v":{"v":0,"d":"$0.00"}},{"$f":"IFERROR('MMA Rev-Exp Region 7'!$AP$66/'MMA Rev-Exp Region 7'!$AP$9, 0)","v":{"v":0,"d":"$0.00"}},{"$f":"IFERROR('MMA Rev-Exp Region 7'!$AQ$66/'MMA Rev-Exp Region 7'!$AQ$9, 0)","v":{"v":0,"d":"$0.00"}},{"$f":"IFERROR('MMA Rev-Exp Region 7'!$AR$66/'MMA Rev-Exp Region 7'!$AR$9, 0)","v":{"v":0,"d":"$0.00"}},{"$f":"IFERROR('MMA Rev-Exp Region 7'!$AS$66/'MMA Rev-Exp Region 7'!$AS$9, 0)","v":{"v":0,"d":"$0.00"}},{"$f":"IFERROR('MMA Rev-Exp Region 7'!$AT$66/'MMA Rev-Exp Region 7'!$AT$9, 0)","v":{"v":0,"d":"$0.00"}},{"$f":"IFERROR('MMA Rev-Exp Region 7'!$AU$66/'MMA Rev-Exp Region 7'!$AU$9, 0)","v":{"v":0,"d":"$0.00"}}]
["MMA",null,null,2016,"2016-12-31","Q4","2017-12-31","Region 7","Operating Expense","Medical Benefits Expense","Other MMA Services","9.4","Other State Plan Services FFS",{"$f":"IFERROR('MMA Rev-Exp Region 7'!$AK$67/'MMA Rev-Exp Region 7'!$AK$9, 0)","v":{"v":0,"d":"$0.00"}},{"$f":"IFERROR('MMA Rev-Exp Region 7'!$AL$67/'MMA Rev-Exp Region 7'!$AL$9, 0)","v":{"v":0,"d":"$0.00"}},{"$f":"IFERROR('MMA Rev-Exp Region 7'!$AM$67/'MMA Rev-Exp Region 7'!$AM$9, 0)","v":{"v":0,"d":"$0.00"}},{"$f":"IFERROR('MMA Rev-Exp Region 7'!$AN$67/'MMA Rev-Exp Region 7'!$AN$9, 0)","v":{"v":0,"d":"$0.00"}},{"$f":"IFERROR('MMA Rev-Exp Region 7'!$AO$67/'MMA Rev-Exp Region 7'!$AO$9, 0)","v":{"v":0,"d":"$0.00"}},{"$f":"IFERROR('MMA Rev-Exp Region 7'!$AP$67/'MMA Rev-Exp Region 7'!$AP$9, 0)","v":{"v":0,"d":"$0.00"}},{"$f":"IFERROR('MMA Rev-Exp Region 7'!$AQ$67/'MMA Rev-Exp Region 7'!$AQ$9, 0)","v":{"v":0,"d":"$0.00"}},{"$f":"IFERROR('MMA Rev-Exp Region 7'!$AR$67/'MMA Rev-Exp Region 7'!$AR$9, 0)","v":{"v":0,"d":"$0.00"}},{"$f":"IFERROR('MMA Rev-Exp Region 7'!$AS$67/'MMA Rev-Exp Region 7'!$AS$9, 0)","v":{"v":0,"d":"$0.00"}},{"$f":"IFERROR('MMA Rev-Exp Region 7'!$AT$67/'MMA Rev-Exp Region 7'!$AT$9, 0)","v":{"v":0,"d":"$0.00"}},{"$f":"IFERROR('MMA Rev-Exp Region 7'!$AU$67/'MMA Rev-Exp Region 7'!$AU$9, 0)","v":{"v":0,"d":"$0.00"}}]
["MMA",null,null,2016,"2016-12-31","Q4","2017-12-31","Region 7","Operating Expense","Medical Benefits Expense","Other MMA Services","9.5","Other Services Subcapitation",{"$f":"IFERROR('MMA Rev-Exp Region 7'!$AK$68/'MMA Rev-Exp Region 7'!$AK$9, 0)","v":{"v":0,"d":"$0.00"}},{"$f":"IFERROR('MMA Rev-Exp Region 7'!$AL$68/'MMA Rev-Exp Region 7'!$AL$9, 0)","v":{"v":0,"d":"$0.00"}},{"$f":"IFERROR('MMA Rev-Exp Region 7'!$AM$68/'MMA Rev-Exp Region 7'!$AM$9, 0)","v":{"v":0,"d":"$0.00"}},{"$f":"IFERROR('MMA Rev-Exp Region 7'!$AN$68/'MMA Rev-Exp Region 7'!$AN$9, 0)","v":{"v":0,"d":"$0.00"}},{"$f":"IFERROR('MMA Rev-Exp Region 7'!$AO$68/'MMA Rev-Exp Region 7'!$AO$9, 0)","v":{"v":0,"d":"$0.00"}},{"$f":"IFERROR('MMA Rev-Exp Region 7'!$AP$68/'MMA Rev-Exp Region 7'!$AP$9, 0)","v":{"v":0,"d":"$0.00"}},{"$f":"IFERROR('MMA Rev-Exp Region 7'!$AQ$68/'MMA Rev-Exp Region 7'!$AQ$9, 0)","v":{"v":0,"d":"$0.00"}},{"$f":"IFERROR('MMA Rev-Exp Region 7'!$AR$68/'MMA Rev-Exp Region 7'!$AR$9, 0)","v":{"v":0,"d":"$0.00"}},{"$f":"IFERROR('MMA Rev-Exp Region 7'!$AS$68/'MMA Rev-Exp Region 7'!$AS$9, 0)","v":{"v":0,"d":"$0.00"}},{"$f":"IFERROR('MMA Rev-Exp Region 7'!$AT$68/'MMA Rev-Exp Region 7'!$AT$9, 0)","v":{"v":0,"d":"$0.00"}},{"$f":"IFERROR('MMA Rev-Exp Region 7'!$AU$68/'MMA Rev-Exp Region 7'!$AU$9, 0)","v":{"v":0,"d":"$0.00"}}]
["MMA",null,null,2016,"2016-12-31","Q4","2017-12-31","Region 7","Operating Expense","Medical Benefits Expense","Other MMA Services","9.6","Ending IBNP for Other Services",{"$f":"IFERROR('MMA Rev-Exp Region 7'!$AK$69/'MMA Rev-Exp Region 7'!$AK$9, 0)","v":{"v":0,"d":"$0.00"}},{"$f":"IFERROR('MMA Rev-Exp Region 7'!$AL$69/'MMA Rev-Exp Region 7'!$AL$9, 0)","v":{"v":0,"d":"$0.00"}},{"$f":"IFERROR('MMA Rev-Exp Region 7'!$AM$69/'MMA Rev-Exp Region 7'!$AM$9, 0)","v":{"v":0,"d":"$0.00"}},{"$f":"IFERROR('MMA Rev-Exp Region 7'!$AN$69/'MMA Rev-Exp Region 7'!$AN$9, 0)","v":{"v":0,"d":"$0.00"}},{"$f":"IFERROR('MMA Rev-Exp Region 7'!$AO$69/'MMA Rev-Exp Region 7'!$AO$9, 0)","v":{"v":0,"d":"$0.00"}},{"$f":"IFERROR('MMA Rev-Exp Region 7'!$AP$69/'MMA Rev-Exp Region 7'!$AP$9, 0)","v":{"v":0,"d":"$0.00"}},{"$f":"IFERROR('MMA Rev-Exp Region 7'!$AQ$69/'MMA Rev-Exp Region 7'!$AQ$9, 0)","v":{"v":0,"d":"$0.00"}},{"$f":"IFERROR('MMA Rev-Exp Region 7'!$AR$69/'MMA Rev-Exp Region 7'!$AR$9, 0)","v":{"v":0,"d":"$0.00"}},{"$f":"IFERROR('MMA Rev-Exp Region 7'!$AS$69/'MMA Rev-Exp Region 7'!$AS$9, 0)","v":{"v":0,"d":"$0.00"}},{"$f":"IFERROR('MMA Rev-Exp Region 7'!$AT$69/'MMA Rev-Exp Region 7'!$AT$9, 0)","v":{"v":0,"d":"$0.00"}},{"$f":"IFERROR('MMA Rev-Exp Region 7'!$AU$69/'MMA Rev-Exp Region 7'!$AU$9, 0)","v":{"v":0,"d":"$0.00"}}]
["MMA",null,null,2016,"2016-12-31","Q4","2017-12-31","Region 7","Operating Expense","Medical Benefits Expense","Other MMA Services","9.7","Other Services Settlements",{"$f":"IFERROR('MMA Rev-Exp Region 7'!$AK$70/'MMA Rev-Exp Region 7'!$AK$9, 0)","v":{"v":0,"d":"$0.00"}},{"$f":"IFERROR('MMA Rev-Exp Region 7'!$AL$70/'MMA Rev-Exp Region 7'!$AL$9, 0)","v":{"v":0,"d":"$0.00"}},{"$f":"IFERROR('MMA Rev-Exp Region 7'!$AM$70/'MMA Rev-Exp Region 7'!$AM$9, 0)","v":{"v":0,"d":"$0.00"}},{"$f":"IFERROR('MMA Rev-Exp Region 7'!$AN$70/'MMA Rev-Exp Region 7'!$AN$9, 0)","v":{"v":0,"d":"$0.00"}},{"$f":"IFERROR('MMA Rev-Exp Region 7'!$AO$70/'MMA Rev-Exp Region 7'!$AO$9, 0)","v":{"v":0,"d":"$0.00"}},{"$f":"IFERROR('MMA Rev-Exp Region 7'!$AP$70/'MMA Rev-Exp Region 7'!$AP$9, 0)","v":{"v":0,"d":"$0.00"}},{"$f":"IFERROR('MMA Rev-Exp Region 7'!$AQ$70/'MMA Rev-Exp Region 7'!$AQ$9, 0)","v":{"v":0,"d":"$0.00"}},{"$f":"IFERROR('MMA Rev-Exp Region 7'!$AR$70/'MMA Rev-Exp Region 7'!$AR$9, 0)","v":{"v":0,"d":"$0.00"}},{"$f":"IFERROR('MMA Rev-Exp Region 7'!$AS$70/'MMA Rev-Exp Region 7'!$AS$9, 0)","v":{"v":0,"d":"$0.00"}},{"$f":"IFERROR('MMA Rev-Exp Region 7'!$AT$70/'MMA Rev-Exp Region 7'!$AT$9, 0)","v":{"v":0,"d":"$0.00"}},{"$f":"IFERROR('MMA Rev-Exp Region 7'!$AU$70/'MMA Rev-Exp Region 7'!$AU$9, 0)","v":{"v":0,"d":"$0.00"}}]
["MMA",null,null,2016,"2016-12-31","Q4","2017-12-31","Region 7","Operating Expense","Medical Benefits Expense","Expanded Benefits","10.1","Expanded Benefits FFS",{"$f":"IFERROR('MMA Rev-Exp Region 7'!$AK$72/'MMA Rev-Exp Region 7'!$AK$9, 0)","v":{"v":0,"d":"$0.00"}},{"$f":"IFERROR('MMA Rev-Exp Region 7'!$AL$72/'MMA Rev-Exp Region 7'!$AL$9, 0)","v":{"v":0,"d":"$0.00"}},{"$f":"IFERROR('MMA Rev-Exp Region 7'!$AM$72/'MMA Rev-Exp Region 7'!$AM$9, 0)","v":{"v":0,"d":"$0.00"}},{"$f":"IFERROR('MMA Rev-Exp Region 7'!$AN$72/'MMA Rev-Exp Region 7'!$AN$9, 0)","v":{"v":0,"d":"$0.00"}},{"$f":"IFERROR('MMA Rev-Exp Region 7'!$AO$72/'MMA Rev-Exp Region 7'!$AO$9, 0)","v":{"v":0,"d":"$0.00"}},{"$f":"IFERROR('MMA Rev-Exp Region 7'!$AP$72/'MMA Rev-Exp Region 7'!$AP$9, 0)","v":{"v":0,"d":"$0.00"}},{"$f":"IFERROR('MMA Rev-Exp Region 7'!$AQ$72/'MMA Rev-Exp Region 7'!$AQ$9, 0)","v":{"v":0,"d":"$0.00"}},{"$f":"IFERROR('MMA Rev-Exp Region 7'!$AR$72/'MMA Rev-Exp Region 7'!$AR$9, 0)","v":{"v":0,"d":"$0.00"}},{"$f":"IFERROR('MMA Rev-Exp Region 7'!$AS$72/'MMA Rev-Exp Region 7'!$AS$9, 0)","v":{"v":0,"d":"$0.00"}},{"$f":"IFERROR('MMA Rev-Exp Region 7'!$AT$72/'MMA Rev-Exp Region 7'!$AT$9, 0)","v":{"v":0,"d":"$0.00"}},{"$f":"IFERROR('MMA Rev-Exp Region 7'!$AU$72/'MMA Rev-Exp Region 7'!$AU$9, 0)","v":{"v":0,"d":"$0.00"}}]
["MMA",null,null,2016,"2016-12-31","Q4","2017-12-31","Region 7","Operating Expense","Medical Benefits Expense","Expanded Benefits","10.2","Expanded benefits Subcapitation",{"$f":"IFERROR('MMA Rev-Exp Region 7'!$AK$73/'MMA Rev-Exp Region 7'!$AK$9, 0)","v":{"v":0,"d":"$0.00"}},{"$f":"IFERROR('MMA Rev-Exp Region 7'!$AL$73/'MMA Rev-Exp Region 7'!$AL$9, 0)","v":{"v":0,"d":"$0.00"}},{"$f":"IFERROR('MMA Rev-Exp Region 7'!$AM$73/'MMA Rev-Exp Region 7'!$AM$9, 0)","v":{"v":0,"d":"$0.00"}},{"$f":"IFERROR('MMA Rev-Exp Region 7'!$AN$73/'MMA Rev-Exp Region 7'!$AN$9, 0)","v":{"v":0,"d":"$0.00"}},{"$f":"IFERROR('MMA Rev-Exp Region 7'!$AO$73/'MMA Rev-Exp Region 7'!$AO$9, 0)","v":{"v":0,"d":"$0.00"}},{"$f":"IFERROR('MMA Rev-Exp Region 7'!$AP$73/'MMA Rev-Exp Region 7'!$AP$9, 0)","v":{"v":0,"d":"$0.00"}},{"$f":"IFERROR('MMA Rev-Exp Region 7'!$AQ$73/'MMA Rev-Exp Region 7'!$AQ$9, 0)","v":{"v":0,"d":"$0.00"}},{"$f":"IFERROR('MMA Rev-Exp Region 7'!$AR$73/'MMA Rev-Exp Region 7'!$AR$9, 0)","v":{"v":0,"d":"$0.00"}},{"$f":"IFERROR('MMA Rev-Exp Region 7'!$AS$73/'MMA Rev-Exp Region 7'!$AS$9, 0)","v":{"v":0,"d":"$0.00"}},{"$f":"IFERROR('MMA Rev-Exp Region 7'!$AT$73/'MMA Rev-Exp Region 7'!$AT$9, 0)","v":{"v":0,"d":"$0.00"}},{"$f":"IFERROR('MMA Rev-Exp Region 7'!$AU$73/'MMA Rev-Exp Region 7'!$AU$9, 0)","v":{"v":0,"d":"$0.00"}}]
["MMA",null,null,2016,"2016-12-31","Q4","2017-12-31","Region 7","Operating Expense","Medical Benefits Expense","Expanded Benefits","10.3","Ending IBNP for Expanded Benefits",{"$f":"IFERROR('MMA Rev-Exp Region 7'!$AK$74/'MMA Rev-Exp Region 7'!$AK$9, 0)","v":{"v":0,"d":"$0.00"}},{"$f":"IFERROR('MMA Rev-Exp Region 7'!$AL$74/'MMA Rev-Exp Region 7'!$AL$9, 0)","v":{"v":0,"d":"$0.00"}},{"$f":"IFERROR('MMA Rev-Exp Region 7'!$AM$74/'MMA Rev-Exp Region 7'!$AM$9, 0)","v":{"v":0,"d":"$0.00"}},{"$f":"IFERROR('MMA Rev-Exp Region 7'!$AN$74/'MMA Rev-Exp Region 7'!$AN$9, 0)","v":{"v":0,"d":"$0.00"}},{"$f":"IFERROR('MMA Rev-Exp Region 7'!$AO$74/'MMA Rev-Exp Region 7'!$AO$9, 0)","v":{"v":0,"d":"$0.00"}},{"$f":"IFERROR('MMA Rev-Exp Region 7'!$AP$74/'MMA Rev-Exp Region 7'!$AP$9, 0)","v":{"v":0,"d":"$0.00"}},{"$f":"IFERROR('MMA Rev-Exp Region 7'!$AQ$74/'MMA Rev-Exp Region 7'!$AQ$9, 0)","v":{"v":0,"d":"$0.00"}},{"$f":"IFERROR('MMA Rev-Exp Region 7'!$AR$74/'MMA Rev-Exp Region 7'!$AR$9, 0)","v":{"v":0,"d":"$0.00"}},{"$f":"IFERROR('MMA Rev-Exp Region 7'!$AS$74/'MMA Rev-Exp Region 7'!$AS$9, 0)","v":{"v":0,"d":"$0.00"}},{"$f":"IFERROR('MMA Rev-Exp Region 7'!$AT$74/'MMA Rev-Exp Region 7'!$AT$9, 0)","v":{"v":0,"d":"$0.00"}},{"$f":"IFERROR('MMA Rev-Exp Region 7'!$AU$74/'MMA Rev-Exp Region 7'!$AU$9, 0)","v":{"v":0,"d":"$0.00"}}]
["MMA",null,null,2016,"2016-12-31","Q4","2017-12-31","Region 7","Operating Expense","Medical Benefits Expense","Expanded Benefits","10.4","Expanded Benefits Settlements",{"$f":"IFERROR('MMA Rev-Exp Region 7'!$AK$75/'MMA Rev-Exp Region 7'!$AK$9, 0)","v":{"v":0,"d":"$0.00"}},{"$f":"IFERROR('MMA Rev-Exp Region 7'!$AL$75/'MMA Rev-Exp Region 7'!$AL$9, 0)","v":{"v":0,"d":"$0.00"}},{"$f":"IFERROR('MMA Rev-Exp Region 7'!$AM$75/'MMA Rev-Exp Region 7'!$AM$9, 0)","v":{"v":0,"d":"$0.00"}},{"$f":"IFERROR('MMA Rev-Exp Region 7'!$AN$75/'MMA Rev-Exp Region 7'!$AN$9, 0)","v":{"v":0,"d":"$0.00"}},{"$f":"IFERROR('MMA Rev-Exp Region 7'!$AO$75/'MMA Rev-Exp Region 7'!$AO$9, 0)","v":{"v":0,"d":"$0.00"}},{"$f":"IFERROR('MMA Rev-Exp Region 7'!$AP$75/'MMA Rev-Exp Region 7'!$AP$9, 0)","v":{"v":0,"d":"$0.00"}},{"$f":"IFERROR('MMA Rev-Exp Region 7'!$AQ$75/'MMA Rev-Exp Region 7'!$AQ$9, 0)","v":{"v":0,"d":"$0.00"}},{"$f":"IFERROR('MMA Rev-Exp Region 7'!$AR$75/'MMA Rev-Exp Region 7'!$AR$9, 0)","v":{"v":0,"d":"$0.00"}},{"$f":"IFERROR('MMA Rev-Exp Region 7'!$AS$75/'MMA Rev-Exp Region 7'!$AS$9, 0)","v":{"v":0,"d":"$0.00"}},{"$f":"IFERROR('MMA Rev-Exp Region 7'!$AT$75/'MMA Rev-Exp Region 7'!$AT$9, 0)","v":{"v":0,"d":"$0.00"}},{"$f":"IFERROR('MMA Rev-Exp Region 7'!$AU$75/'MMA Rev-Exp Region 7'!$AU$9, 0)","v":{"v":0,"d":"$0.00"}}]
["MMA",null,null,2016,"2016-12-31","Q4","2017-12-31","Region 7","Operating Expense","Medical Benefits Expense","Other Medical","11.5","TPL & Fraud/Abuse Recoveries",{"$f":"IFERROR('MMA Rev-Exp Region 7'!$AK$81/'MMA Rev-Exp Region 7'!$AK$9, 0)","v":{"v":0,"d":"$0.00"}},{"$f":"IFERROR('MMA Rev-Exp Region 7'!$AL$81/'MMA Rev-Exp Region 7'!$AL$9, 0)","v":{"v":0,"d":"$0.00"}},{"$f":"IFERROR('MMA Rev-Exp Region 7'!$AM$81/'MMA Rev-Exp Region 7'!$AM$9, 0)","v":{"v":0,"d":"$0.00"}},{"$f":"IFERROR('MMA Rev-Exp Region 7'!$AN$81/'MMA Rev-Exp Region 7'!$AN$9, 0)","v":{"v":0,"d":"$0.00"}},{"$f":"IFERROR('MMA Rev-Exp Region 7'!$AO$81/'MMA Rev-Exp Region 7'!$AO$9, 0)","v":{"v":0,"d":"$0.00"}},{"$f":"IFERROR('MMA Rev-Exp Region 7'!$AP$81/'MMA Rev-Exp Region 7'!$AP$9, 0)","v":{"v":0,"d":"$0.00"}},{"$f":"IFERROR('MMA Rev-Exp Region 7'!$AQ$81/'MMA Rev-Exp Region 7'!$AQ$9, 0)","v":{"v":0,"d":"$0.00"}},{"$f":"IFERROR('MMA Rev-Exp Region 7'!$AR$81/'MMA Rev-Exp Region 7'!$AR$9, 0)","v":{"v":0,"d":"$0.00"}},{"$f":"IFERROR('MMA Rev-Exp Region 7'!$AS$81/'MMA Rev-Exp Region 7'!$AS$9, 0)","v":{"v":0,"d":"$0.00"}},{"$f":"IFERROR('MMA Rev-Exp Region 7'!$AT$81/'MMA Rev-Exp Region 7'!$AT$9, 0)","v":{"v":0,"d":"$0.00"}},{"$f":"IFERROR('MMA Rev-Exp Region 7'!$AU$81/'MMA Rev-Exp Region 7'!$AU$9, 0)","v":{"v":0,"d":"$0.00"}}]
["MMA",null,null,2016,"2016-12-31","Q4","2017-12-31","Region 7","Operating Expense","Medical Benefits Expense","Other Medical","11.6.1","Premium Deficiency Reserve",{"$f":"IFERROR('MMA Rev-Exp Region 7'!$AK$82/'MMA Rev-Exp Region 7'!$AK$9, 0)","v":{"v":0,"d":"$0.00"}},{"$f":"IFERROR('MMA Rev-Exp Region 7'!$AL$82/'MMA Rev-Exp Region 7'!$AL$9, 0)","v":{"v":0,"d":"$0.00"}},{"$f":"IFERROR('MMA Rev-Exp Region 7'!$AM$82/'MMA Rev-Exp Region 7'!$AM$9, 0)","v":{"v":0,"d":"$0.00"}},{"$f":"IFERROR('MMA Rev-Exp Region 7'!$AN$82/'MMA Rev-Exp Region 7'!$AN$9, 0)","v":{"v":0,"d":"$0.00"}},{"$f":"IFERROR('MMA Rev-Exp Region 7'!$AO$82/'MMA Rev-Exp Region 7'!$AO$9, 0)","v":{"v":0,"d":"$0.00"}},{"$f":"IFERROR('MMA Rev-Exp Region 7'!$AP$82/'MMA Rev-Exp Region 7'!$AP$9, 0)","v":{"v":0,"d":"$0.00"}},{"$f":"IFERROR('MMA Rev-Exp Region 7'!$AQ$82/'MMA Rev-Exp Region 7'!$AQ$9, 0)","v":{"v":0,"d":"$0.00"}},{"$f":"IFERROR('MMA Rev-Exp Region 7'!$AR$82/'MMA Rev-Exp Region 7'!$AR$9, 0)","v":{"v":0,"d":"$0.00"}},{"$f":"IFERROR('MMA Rev-Exp Region 7'!$AS$82/'MMA Rev-Exp Region 7'!$AS$9, 0)","v":{"v":0,"d":"$0.00"}},{"$f":"IFERROR('MMA Rev-Exp Region 7'!$AT$82/'MMA Rev-Exp Region 7'!$AT$9, 0)","v":{"v":0,"d":"$0.00"}},{"$f":"IFERROR('MMA Rev-Exp Region 7'!$AU$82/'MMA Rev-Exp Region 7'!$AU$9, 0)","v":{"v":0,"d":"$0.00"}}]
["MMA",null,null,2016,"2016-12-31","Q4","2017-12-31","Region 7","Operating Expense","Medical Benefits Expense","Other Medical","11.8","Reinsurance Premiums",{"$f":"IFERROR('MMA Rev-Exp Region 7'!$AK$84/'MMA Rev-Exp Region 7'!$AK$9, 0)","v":{"v":0,"d":"$0.00"}},{"$f":"IFERROR('MMA Rev-Exp Region 7'!$AL$84/'MMA Rev-Exp Region 7'!$AL$9, 0)","v":{"v":0,"d":"$0.00"}},{"$f":"IFERROR('MMA Rev-Exp Region 7'!$AM$84/'MMA Rev-Exp Region 7'!$AM$9, 0)","v":{"v":0,"d":"$0.00"}},{"$f":"IFERROR('MMA Rev-Exp Region 7'!$AN$84/'MMA Rev-Exp Region 7'!$AN$9, 0)","v":{"v":0,"d":"$0.00"}},{"$f":"IFERROR('MMA Rev-Exp Region 7'!$AO$84/'MMA Rev-Exp Region 7'!$AO$9, 0)","v":{"v":0,"d":"$0.00"}},{"$f":"IFERROR('MMA Rev-Exp Region 7'!$AP$84/'MMA Rev-Exp Region 7'!$AP$9, 0)","v":{"v":0,"d":"$0.00"}},{"$f":"IFERROR('MMA Rev-Exp Region 7'!$AQ$84/'MMA Rev-Exp Region 7'!$AQ$9, 0)","v":{"v":0,"d":"$0.00"}},{"$f":"IFERROR('MMA Rev-Exp Region 7'!$AR$84/'MMA Rev-Exp Region 7'!$AR$9, 0)","v":{"v":0,"d":"$0.00"}},{"$f":"IFERROR('MMA Rev-Exp Region 7'!$AS$84/'MMA Rev-Exp Region 7'!$AS$9, 0)","v":{"v":0,"d":"$0.00"}},{"$f":"IFERROR('MMA Rev-Exp Region 7'!$AT$84/'MMA Rev-Exp Region 7'!$AT$9, 0)","v":{"v":0,"d":"$0.00"}},{"$f":"IFERROR('MMA Rev-Exp Region 7'!$AU$84/'MMA Rev-Exp Region 7'!$AU$9, 0)","v":{"v":0,"d":"$0.00"}}]
["MMA",null,null,2016,"2016-12-31","Q4","2017-12-31","Region 7","Operating Expense","Medical Benefits Expense","Other Medical","11.9","Reinsurance Recoveries",{"$f":"IFERROR('MMA Rev-Exp Region 7'!$AK$85/'MMA Rev-Exp Region 7'!$AK$9, 0)","v":{"v":0,"d":"$0.00"}},{"$f":"IFERROR('MMA Rev-Exp Region 7'!$AL$85/'MMA Rev-Exp Region 7'!$AL$9, 0)","v":{"v":0,"d":"$0.00"}},{"$f":"IFERROR('MMA Rev-Exp Region 7'!$AM$85/'MMA Rev-Exp Region 7'!$AM$9, 0)","v":{"v":0,"d":"$0.00"}},{"$f":"IFERROR('MMA Rev-Exp Region 7'!$AN$85/'MMA Rev-Exp Region 7'!$AN$9, 0)","v":{"v":0,"d":"$0.00"}},{"$f":"IFERROR('MMA Rev-Exp Region 7'!$AO$85/'MMA Rev-Exp Region 7'!$AO$9, 0)","v":{"v":0,"d":"$0.00"}},{"$f":"IFERROR('MMA Rev-Exp Region 7'!$AP$85/'MMA Rev-Exp Region 7'!$AP$9, 0)","v":{"v":0,"d":"$0.00"}},{"$f":"IFERROR('MMA Rev-Exp Region 7'!$AQ$85/'MMA Rev-Exp Region 7'!$AQ$9, 0)","v":{"v":0,"d":"$0.00"}},{"$f":"IFERROR('MMA Rev-Exp Region 7'!$AR$85/'MMA Rev-Exp Region 7'!$AR$9, 0)","v":{"v":0,"d":"$0.00"}},{"$f":"IFERROR('MMA Rev-Exp Region 7'!$AS$85/'MMA Rev-Exp Region 7'!$AS$9, 0)","v":{"v":0,"d":"$0.00"}},{"$f":"IFERROR('MMA Rev-Exp Region 7'!$AT$85/'MMA Rev-Exp Region 7'!$AT$9, 0)","v":{"v":0,"d":"$0.00"}},{"$f":"IFERROR('MMA Rev-Exp Region 7'!$AU$85/'MMA Rev-Exp Region 7'!$AU$9, 0)","v":{"v":0,"d":"$0.00"}}]
["MMA",null,null,2016,"2016-12-31","Q4","2017-12-31","Region 7","Operating Expense","Administrative Expense","Administrative","12.1","Salaries & Benefits",{"$f":"IFERROR('MMA Rev-Exp Region 7'!$AK$90/'MMA Rev-Exp Region 7'!$AK$9, 0)","v":{"v":0,"d":"$0.00"}},{"$f":"IFERROR('MMA Rev-Exp Region 7'!$AL$90/'MMA Rev-Exp Region 7'!$AK$9, 0)","v":{"v":0,"d":"$0.00"}},{"$f":"IFERROR('MMA Rev-Exp Region 7'!$AM$90/'MMA Rev-Exp Region 7'!$AK$9, 0)","v":{"v":0,"d":"$0.00"}}]
["MMA",null,null,2016,"2016-12-31","Q4","2017-12-31","Region 7","Operating Expense","Administrative Expense","Administrative","12.2","Administrative Services",{"$f":"IFERROR('MMA Rev-Exp Region 7'!$AK$91/'MMA Rev-Exp Region 7'!$AK$9, 0)","v":{"v":0,"d":"$0.00"}},{"$f":"IFERROR('MMA Rev-Exp Region 7'!$AL$91/'MMA Rev-Exp Region 7'!$AK$9, 0)","v":{"v":0,"d":"$0.00"}},{"$f":"IFERROR('MMA Rev-Exp Region 7'!$AM$91/'MMA Rev-Exp Region 7'!$AK$9, 0)","v":{"v":0,"d":"$0.00"}}]
["MMA",null,null,2016,"2016-12-31","Q4","2017-12-31","Region 7","Operating Expense","Administrative Expense","Administrative","12.3","Information Systems",{"$f":"IFERROR('MMA Rev-Exp Region 7'!$AK$92/'MMA Rev-Exp Region 7'!$AK$9, 0)","v":{"v":0,"d":"$0.00"}},{"$f":"IFERROR('MMA Rev-Exp Region 7'!$AL$92/'MMA Rev-Exp Region 7'!$AK$9, 0)","v":{"v":0,"d":"$0.00"}},{"$f":"IFERROR('MMA Rev-Exp Region 7'!$AM$92/'MMA Rev-Exp Region 7'!$AK$9, 0)","v":{"v":0,"d":"$0.00"}}]
["MMA",null,null,2016,"2016-12-31","Q4","2017-12-31","Region 7","Operating Expense","Administrative Expense","Administrative","12.4","Marketing Expenses",{"$f":"IFERROR('MMA Rev-Exp Region 7'!$AK$93/'MMA Rev-Exp Region 7'!$AK$9, 0)","v":{"v":0,"d":"$0.00"}},{"$f":"IFERROR('MMA Rev-Exp Region 7'!$AL$93/'MMA Rev-Exp Region 7'!$AK$9, 0)","v":{"v":0,"d":"$0.00"}},{"$f":"IFERROR('MMA Rev-Exp Region 7'!$AM$93/'MMA Rev-Exp Region 7'!$AK$9, 0)","v":{"v":0,"d":"$0.00"}}]
["MMA",null,null,2016,"2016-12-31","Q4","2017-12-31","Region 7","Operating Expense","Administrative Expense","Administrative","12.5","General  Administration",{"$f":"IFERROR('MMA Rev-Exp Region 7'!$AK$94/'MMA Rev-Exp Region 7'!$AK$9, 0)","v":{"v":0,"d":"$0.00"}},{"$f":"IFERROR('MMA Rev-Exp Region 7'!$AL$94/'MMA Rev-Exp Region 7'!$AK$9, 0)","v":{"v":0,"d":"$0.00"}},{"$f":"IFERROR('MMA Rev-Exp Region 7'!$AM$94/'MMA Rev-Exp Region 7'!$AK$9, 0)","v":{"v":0,"d":"$0.00"}}]
["MMA",null,null,2016,"2016-12-31","Q4","2017-12-31","Region 7","Operating Expense","Administrative Expense","Administrative","12.6","Compliance/Regulatory",{"$f":"IFERROR('MMA Rev-Exp Region 7'!$AK$95/'MMA Rev-Exp Region 7'!$AK$9, 0)","v":{"v":0,"d":"$0.00"}},{"$f":"IFERROR('MMA Rev-Exp Region 7'!$AL$95/'MMA Rev-Exp Region 7'!$AK$9, 0)","v":{"v":0,"d":"$0.00"}},{"$f":"IFERROR('MMA Rev-Exp Region 7'!$AM$95/'MMA Rev-Exp Region 7'!$AK$9, 0)","v":{"v":0,"d":"$0.00"}}]
["MMA",null,null,2016,"2016-12-31","Q4","2017-12-31","Region 7","Operating Expense","Taxes & Fees","Taxes & Fees","13.1","State Premium tax",{"$f":"IFERROR('MMA Rev-Exp Region 7'!$AK$97/'MMA Rev-Exp Region 7'!$AK$9, 0)","v":{"v":0,"d":"$0.00"}}]
["MMA",null,null,2016,"2016-12-31","Q4","2017-12-31","Region 7","Operating Expense","Taxes & Fees","Taxes & Fees","13.2","Department of Insurance Assessments",{"$f":"IFERROR('MMA Rev-Exp Region 7'!$AK$98/'MMA Rev-Exp Region 7'!$AK$9, 0)","v":{"v":0,"d":"$0.00"}}]
["MMA",null,null,2016,"2016-12-31","Q4","2017-12-31","Region 7","Operating Expense","Taxes & Fees","Taxes & Fees","13.3","Section 9010 Health Insurance Providers Fee",{"$f":"IFERROR('MMA Rev-Exp Region 7'!$AK$99/'MMA Rev-Exp Region 7'!$AK$9, 0)","v":{"v":0,"d":"$0.00"}}]
["MMA",null,null,2016,"2016-12-31","Q4","2017-12-31","Region 7","Non-Operating Expense","Income Tax Expense","Income Tax Expense","16.0","Income Tax Expense",{"$f":"IFERROR('MMA Rev-Exp Region 7'!$AK$106/'MMA Rev-Exp Region 7'!$AK$9, 0)","v":{"v":0,"d":"$0.00"}}]
["MMA",null,null,2016,"2016-12-31","Q1","2017-03-31","Region 8","Operating Revenue","Capitation","Capitation",1.1,"Capitation",{"$f":"IFERROR('MMA Rev-Exp Region 8'!$D$11/'MMA Rev-Exp Region 8'!$D$9, 0)","v":{"v":0,"d":"$0.00"}},{"$f":"IFERROR('MMA Rev-Exp Region 8'!$E$11/'MMA Rev-Exp Region 8'!$E$9, 0)","v":{"v":0,"d":"$0.00"}},{"$f":"IFERROR('MMA Rev-Exp Region 8'!$F$11/'MMA Rev-Exp Region 8'!$F$9, 0)","v":{"v":0,"d":"$0.00"}},{"$f":"IFERROR('MMA Rev-Exp Region 8'!$G$11/'MMA Rev-Exp Region 8'!$G$9, 0)","v":{"v":0,"d":"$0.00"}},{"$f":"IFERROR('MMA Rev-Exp Region 8'!$H$11/'MMA Rev-Exp Region 8'!$H$9, 0)","v":{"v":0,"d":"$0.00"}},{"$f":"IFERROR('MMA Rev-Exp Region 8'!$I$11/'MMA Rev-Exp Region 8'!$I$9, 0)","v":{"v":0,"d":"$0.00"}},{"$f":"IFERROR('MMA Rev-Exp Region 8'!$J$11/'MMA Rev-Exp Region 8'!$J$9, 0)","v":{"v":0,"d":"$0.00"}},{"$f":"IFERROR('MMA Rev-Exp Region 8'!$K$11/'MMA Rev-Exp Region 8'!$K$9, 0)","v":{"v":0,"d":"$0.00"}},{"$f":"IFERROR('MMA Rev-Exp Region 8'!$L$11/'MMA Rev-Exp Region 8'!$L$9, 0)","v":{"v":0,"d":"$0.00"}},{"$f":"IFERROR('MMA Rev-Exp Region 8'!$M$11/'MMA Rev-Exp Region 8'!$M$9, 0)","v":{"v":0,"d":"$0.00"}},{"$f":"IFERROR('MMA Rev-Exp Region 8'!$N$11/'MMA Rev-Exp Region 8'!$N$9, 0)","v":{"v":0,"d":"$0.00"}}]
["MMA",null,null,2016,"2016-12-31","Q1","2017-03-31","Region 8","Operating Revenue","Kick Payments","Kick Payments - Transplant",1.2,"Transplant Kick Payments",{"$f":"IFERROR('MMA Rev-Exp Region 8'!$D$12/'MMA Rev-Exp Region 8'!$D$9, 0)","v":{"v":0,"d":"$0.00"}},{"$f":"IFERROR('MMA Rev-Exp Region 8'!$E$12/'MMA Rev-Exp Region 8'!$E$9, 0)","v":{"v":0,"d":"$0.00"}},{"$f":"IFERROR('MMA Rev-Exp Region 8'!$F$12/'MMA Rev-Exp Region 8'!$F$9, 0)","v":{"v":0,"d":"$0.00"}},{"$f":"IFERROR('MMA Rev-Exp Region 8'!$G$12/'MMA Rev-Exp Region 8'!$G$9, 0)","v":{"v":0,"d":"$0.00"}},{"$f":"IFERROR('MMA Rev-Exp Region 8'!$H$12/'MMA Rev-Exp Region 8'!$H$9, 0)","v":{"v":0,"d":"$0.00"}},{"$f":"IFERROR('MMA Rev-Exp Region 8'!$I$12/'MMA Rev-Exp Region 8'!$I$9, 0)","v":{"v":0,"d":"$0.00"}},{"$f":"IFERROR('MMA Rev-Exp Region 8'!$J$12/'MMA Rev-Exp Region 8'!$J$9, 0)","v":{"v":0,"d":"$0.00"}},{"$f":"IFERROR('MMA Rev-Exp Region 8'!$K$12/'MMA Rev-Exp Region 8'!$K$9, 0)","v":{"v":0,"d":"$0.00"}},{"$f":"IFERROR('MMA Rev-Exp Region 8'!$L$12/'MMA Rev-Exp Region 8'!$L$9, 0)","v":{"v":0,"d":"$0.00"}},{"$f":"IFERROR('MMA Rev-Exp Region 8'!$M$12/'MMA Rev-Exp Region 8'!$M$9, 0)","v":{"v":0,"d":"$0.00"}},{"$f":"IFERROR('MMA Rev-Exp Region 8'!$N$12/'MMA Rev-Exp Region 8'!$N$9, 0)","v":{"v":0,"d":"$0.00"}}]
["MMA",null,null,2016,"2016-12-31","Q1","2017-03-31","Region 8","Operating Revenue","Kick Payments","Kick Payments - Hep C","1.3","Hepatitis C Kick Payments",{"$f":"IFERROR('MMA Rev-Exp Region 8'!$D$13/'MMA Rev-Exp Region 8'!$D$9, 0)","v":{"v":0,"d":"$0.00"}},{"$f":"IFERROR('MMA Rev-Exp Region 8'!$E$13/'MMA Rev-Exp Region 8'!$E$9, 0)","v":{"v":0,"d":"$0.00"}},{"$f":"IFERROR('MMA Rev-Exp Region 8'!$F$13/'MMA Rev-Exp Region 8'!$F$9, 0)","v":{"v":0,"d":"$0.00"}},{"$f":"IFERROR('MMA Rev-Exp Region 8'!$G$13/'MMA Rev-Exp Region 8'!$G$9, 0)","v":{"v":0,"d":"$0.00"}},{"$f":"IFERROR('MMA Rev-Exp Region 8'!$H$13/'MMA Rev-Exp Region 8'!$H$9, 0)","v":{"v":0,"d":"$0.00"}},{"$f":"IFERROR('MMA Rev-Exp Region 8'!$I$13/'MMA Rev-Exp Region 8'!$I$9, 0)","v":{"v":0,"d":"$0.00"}},{"$f":"IFERROR('MMA Rev-Exp Region 8'!$J$13/'MMA Rev-Exp Region 8'!$J$9, 0)","v":{"v":0,"d":"$0.00"}},{"$f":"IFERROR('MMA Rev-Exp Region 8'!$K$13/'MMA Rev-Exp Region 8'!$K$9, 0)","v":{"v":0,"d":"$0.00"}},{"$f":"IFERROR('MMA Rev-Exp Region 8'!$L$13/'MMA Rev-Exp Region 8'!$L$9, 0)","v":{"v":0,"d":"$0.00"}},{"$f":"IFERROR('MMA Rev-Exp Region 8'!$M$13/'MMA Rev-Exp Region 8'!$M$9, 0)","v":{"v":0,"d":"$0.00"}},{"$f":"IFERROR('MMA Rev-Exp Region 8'!$N$13/'MMA Rev-Exp Region 8'!$N$9, 0)","v":{"v":0,"d":"$0.00"}}]
["MMA",null,null,2016,"2016-12-31","Q1","2017-03-31","Region 8","Operating Revenue","Kick Payments","Kick Payments - Maternity","1.4.1","Maternity Kick Payments",{"$f":"IFERROR('MMA Rev-Exp Region 8'!$D$14/'MMA Rev-Exp Region 8'!$D$9, 0)","v":{"v":0,"d":"$0.00"}},{"$f":"IFERROR('MMA Rev-Exp Region 8'!$E$14/'MMA Rev-Exp Region 8'!$E$9, 0)","v":{"v":0,"d":"$0.00"}},{"$f":"IFERROR('MMA Rev-Exp Region 8'!$F$14/'MMA Rev-Exp Region 8'!$F$9, 0)","v":{"v":0,"d":"$0.00"}},{"$f":"IFERROR('MMA Rev-Exp Region 8'!$G$14/'MMA Rev-Exp Region 8'!$G$9, 0)","v":{"v":0,"d":"$0.00"}},{"$f":"IFERROR('MMA Rev-Exp Region 8'!$H$14/'MMA Rev-Exp Region 8'!$H$9, 0)","v":{"v":0,"d":"$0.00"}},{"$f":"IFERROR('MMA Rev-Exp Region 8'!$I$14/'MMA Rev-Exp Region 8'!$I$9, 0)","v":{"v":0,"d":"$0.00"}},{"$f":"IFERROR('MMA Rev-Exp Region 8'!$J$14/'MMA Rev-Exp Region 8'!$J$9, 0)","v":{"v":0,"d":"$0.00"}},{"$f":"IFERROR('MMA Rev-Exp Region 8'!$K$14/'MMA Rev-Exp Region 8'!$K$9, 0)","v":{"v":0,"d":"$0.00"}},{"$f":"IFERROR('MMA Rev-Exp Region 8'!$L$14/'MMA Rev-Exp Region 8'!$L$9, 0)","v":{"v":0,"d":"$0.00"}},{"$f":"IFERROR('MMA Rev-Exp Region 8'!$M$14/'MMA Rev-Exp Region 8'!$M$9, 0)","v":{"v":0,"d":"$0.00"}},{"$f":"IFERROR('MMA Rev-Exp Region 8'!$N$14/'MMA Rev-Exp Region 8'!$N$9, 0)","v":{"v":0,"d":"$0.00"}}]
["MMA",null,null,2016,"2016-12-31","Q1","2017-03-31","Region 8","Operating Revenue","Other Revenue","Other Revenue - 9010","1.5","ACA § 9010 related payments",{"$f":"IFERROR('MMA Rev-Exp Region 8'!$D$15/'MMA Rev-Exp Region 8'!$D$9, 0)","v":{"v":0,"d":"$0.00"}},{"$f":"IFERROR('MMA Rev-Exp Region 8'!$E$15/'MMA Rev-Exp Region 8'!$E$9, 0)","v":{"v":0,"d":"$0.00"}},{"$f":"IFERROR('MMA Rev-Exp Region 8'!$F$15/'MMA Rev-Exp Region 8'!$F$9, 0)","v":{"v":0,"d":"$0.00"}},{"$f":"IFERROR('MMA Rev-Exp Region 8'!$G$15/'MMA Rev-Exp Region 8'!$G$9, 0)","v":{"v":0,"d":"$0.00"}},{"$f":"IFERROR('MMA Rev-Exp Region 8'!$H$15/'MMA Rev-Exp Region 8'!$H$9, 0)","v":{"v":0,"d":"$0.00"}},{"$f":"IFERROR('MMA Rev-Exp Region 8'!$I$15/'MMA Rev-Exp Region 8'!$I$9, 0)","v":{"v":0,"d":"$0.00"}},{"$f":"IFERROR('MMA Rev-Exp Region 8'!$J$15/'MMA Rev-Exp Region 8'!$J$9, 0)","v":{"v":0,"d":"$0.00"}},{"$f":"IFERROR('MMA Rev-Exp Region 8'!$K$15/'MMA Rev-Exp Region 8'!$K$9, 0)","v":{"v":0,"d":"$0.00"}},{"$f":"IFERROR('MMA Rev-Exp Region 8'!$L$15/'MMA Rev-Exp Region 8'!$L$9, 0)","v":{"v":0,"d":"$0.00"}},{"$f":"IFERROR('MMA Rev-Exp Region 8'!$M$15/'MMA Rev-Exp Region 8'!$M$9, 0)","v":{"v":0,"d":"$0.00"}},{"$f":"IFERROR('MMA Rev-Exp Region 8'!$N$15/'MMA Rev-Exp Region 8'!$N$9, 0)","v":{"v":0,"d":"$0.00"}}]
["MMA",null,null,2016,"2016-12-31","Q1","2017-03-31","Region 8","Operating Revenue","Other Revenue","Other Revenue","1.6","Other Revenue",{"$f":"IFERROR('MMA Rev-Exp Region 8'!$D$16/'MMA Rev-Exp Region 8'!$D$9, 0)","v":{"v":0,"d":"$0.00"}},{"$f":"IFERROR('MMA Rev-Exp Region 8'!$E$16/'MMA Rev-Exp Region 8'!$E$9, 0)","v":{"v":0,"d":"$0.00"}},{"$f":"IFERROR('MMA Rev-Exp Region 8'!$F$16/'MMA Rev-Exp Region 8'!$F$9, 0)","v":{"v":0,"d":"$0.00"}},{"$f":"IFERROR('MMA Rev-Exp Region 8'!$G$16/'MMA Rev-Exp Region 8'!$G$9, 0)","v":{"v":0,"d":"$0.00"}},{"$f":"IFERROR('MMA Rev-Exp Region 8'!$H$16/'MMA Rev-Exp Region 8'!$H$9, 0)","v":{"v":0,"d":"$0.00"}},{"$f":"IFERROR('MMA Rev-Exp Region 8'!$I$16/'MMA Rev-Exp Region 8'!$I$9, 0)","v":{"v":0,"d":"$0.00"}},{"$f":"IFERROR('MMA Rev-Exp Region 8'!$J$16/'MMA Rev-Exp Region 8'!$J$9, 0)","v":{"v":0,"d":"$0.00"}},{"$f":"IFERROR('MMA Rev-Exp Region 8'!$K$16/'MMA Rev-Exp Region 8'!$K$9, 0)","v":{"v":0,"d":"$0.00"}},{"$f":"IFERROR('MMA Rev-Exp Region 8'!$L$16/'MMA Rev-Exp Region 8'!$L$9, 0)","v":{"v":0,"d":"$0.00"}},{"$f":"IFERROR('MMA Rev-Exp Region 8'!$M$16/'MMA Rev-Exp Region 8'!$M$9, 0)","v":{"v":0,"d":"$0.00"}},{"$f":"IFERROR('MMA Rev-Exp Region 8'!$N$16/'MMA Rev-Exp Region 8'!$N$9, 0)","v":{"v":0,"d":"$0.00"}}]
["MMA",null,null,2016,"2016-12-31","Q1","2017-03-31","Region 8","Operating Expense","Medical Benefits Expense","Hospital Services",2.1,"Inpatient FFS",{"$f":"IFERROR('MMA Rev-Exp Region 8'!$D$20/'MMA Rev-Exp Region 8'!$D$9, 0)","v":{"v":0,"d":"$0.00"}},{"$f":"IFERROR('MMA Rev-Exp Region 8'!$E$20/'MMA Rev-Exp Region 8'!$E$9, 0)","v":{"v":0,"d":"$0.00"}},{"$f":"IFERROR('MMA Rev-Exp Region 8'!$F$20/'MMA Rev-Exp Region 8'!$F$9, 0)","v":{"v":0,"d":"$0.00"}},{"$f":"IFERROR('MMA Rev-Exp Region 8'!$G$20/'MMA Rev-Exp Region 8'!$G$9, 0)","v":{"v":0,"d":"$0.00"}},{"$f":"IFERROR('MMA Rev-Exp Region 8'!$H$20/'MMA Rev-Exp Region 8'!$H$9, 0)","v":{"v":0,"d":"$0.00"}},{"$f":"IFERROR('MMA Rev-Exp Region 8'!$I$20/'MMA Rev-Exp Region 8'!$I$9, 0)","v":{"v":0,"d":"$0.00"}},{"$f":"IFERROR('MMA Rev-Exp Region 8'!$J$20/'MMA Rev-Exp Region 8'!$J$9, 0)","v":{"v":0,"d":"$0.00"}},{"$f":"IFERROR('MMA Rev-Exp Region 8'!$K$20/'MMA Rev-Exp Region 8'!$K$9, 0)","v":{"v":0,"d":"$0.00"}},{"$f":"IFERROR('MMA Rev-Exp Region 8'!$L$20/'MMA Rev-Exp Region 8'!$L$9, 0)","v":{"v":0,"d":"$0.00"}},{"$f":"IFERROR('MMA Rev-Exp Region 8'!$M$20/'MMA Rev-Exp Region 8'!$M$9, 0)","v":{"v":0,"d":"$0.00"}},{"$f":"IFERROR('MMA Rev-Exp Region 8'!$N$20/'MMA Rev-Exp Region 8'!$N$9, 0)","v":{"v":0,"d":"$0.00"}}]
["MMA",null,null,2016,"2016-12-31","Q1","2017-03-31","Region 8","Operating Expense","Medical Benefits Expense","Hospital Services",2.2,"Ending IBNP for Inpatient Hospital Services",{"$f":"IFERROR('MMA Rev-Exp Region 8'!$D$21/'MMA Rev-Exp Region 8'!$D$9, 0)","v":{"v":0,"d":"$0.00"}},{"$f":"IFERROR('MMA Rev-Exp Region 8'!$E$21/'MMA Rev-Exp Region 8'!$E$9, 0)","v":{"v":0,"d":"$0.00"}},{"$f":"IFERROR('MMA Rev-Exp Region 8'!$F$21/'MMA Rev-Exp Region 8'!$F$9, 0)","v":{"v":0,"d":"$0.00"}},{"$f":"IFERROR('MMA Rev-Exp Region 8'!$G$21/'MMA Rev-Exp Region 8'!$G$9, 0)","v":{"v":0,"d":"$0.00"}},{"$f":"IFERROR('MMA Rev-Exp Region 8'!$H$21/'MMA Rev-Exp Region 8'!$H$9, 0)","v":{"v":0,"d":"$0.00"}},{"$f":"IFERROR('MMA Rev-Exp Region 8'!$I$21/'MMA Rev-Exp Region 8'!$I$9, 0)","v":{"v":0,"d":"$0.00"}},{"$f":"IFERROR('MMA Rev-Exp Region 8'!$J$21/'MMA Rev-Exp Region 8'!$J$9, 0)","v":{"v":0,"d":"$0.00"}},{"$f":"IFERROR('MMA Rev-Exp Region 8'!$K$21/'MMA Rev-Exp Region 8'!$K$9, 0)","v":{"v":0,"d":"$0.00"}},{"$f":"IFERROR('MMA Rev-Exp Region 8'!$L$21/'MMA Rev-Exp Region 8'!$L$9, 0)","v":{"v":0,"d":"$0.00"}},{"$f":"IFERROR('MMA Rev-Exp Region 8'!$M$21/'MMA Rev-Exp Region 8'!$M$9, 0)","v":{"v":0,"d":"$0.00"}},{"$f":"IFERROR('MMA Rev-Exp Region 8'!$N$21/'MMA Rev-Exp Region 8'!$N$9, 0)","v":{"v":0,"d":"$0.00"}}]
["MMA",null,null,2016,"2016-12-31","Q1","2017-03-31","Region 8","Operating Expense","Medical Benefits Expense","Hospital Services",2.3,"Outpatient FFS: ER",{"$f":"IFERROR('MMA Rev-Exp Region 8'!$D$22/'MMA Rev-Exp Region 8'!$D$9, 0)","v":{"v":0,"d":"$0.00"}},{"$f":"IFERROR('MMA Rev-Exp Region 8'!$E$22/'MMA Rev-Exp Region 8'!$E$9, 0)","v":{"v":0,"d":"$0.00"}},{"$f":"IFERROR('MMA Rev-Exp Region 8'!$F$22/'MMA Rev-Exp Region 8'!$F$9, 0)","v":{"v":0,"d":"$0.00"}},{"$f":"IFERROR('MMA Rev-Exp Region 8'!$G$22/'MMA Rev-Exp Region 8'!$G$9, 0)","v":{"v":0,"d":"$0.00"}},{"$f":"IFERROR('MMA Rev-Exp Region 8'!$H$22/'MMA Rev-Exp Region 8'!$H$9, 0)","v":{"v":0,"d":"$0.00"}},{"$f":"IFERROR('MMA Rev-Exp Region 8'!$I$22/'MMA Rev-Exp Region 8'!$I$9, 0)","v":{"v":0,"d":"$0.00"}},{"$f":"IFERROR('MMA Rev-Exp Region 8'!$J$22/'MMA Rev-Exp Region 8'!$J$9, 0)","v":{"v":0,"d":"$0.00"}},{"$f":"IFERROR('MMA Rev-Exp Region 8'!$K$22/'MMA Rev-Exp Region 8'!$K$9, 0)","v":{"v":0,"d":"$0.00"}},{"$f":"IFERROR('MMA Rev-Exp Region 8'!$L$22/'MMA Rev-Exp Region 8'!$L$9, 0)","v":{"v":0,"d":"$0.00"}},{"$f":"IFERROR('MMA Rev-Exp Region 8'!$M$22/'MMA Rev-Exp Region 8'!$M$9, 0)","v":{"v":0,"d":"$0.00"}},{"$f":"IFERROR('MMA Rev-Exp Region 8'!$N$22/'MMA Rev-Exp Region 8'!$N$9, 0)","v":{"v":0,"d":"$0.00"}}]
["MMA",null,null,2016,"2016-12-31","Q1","2017-03-31","Region 8","Operating Expense","Medical Benefits Expense","Hospital Services",2.4,"Outpatient FFS: Other than ER ",{"$f":"IFERROR('MMA Rev-Exp Region 8'!$D$23/'MMA Rev-Exp Region 8'!$D$9, 0)","v":{"v":0,"d":"$0.00"}},{"$f":"IFERROR('MMA Rev-Exp Region 8'!$E$23/'MMA Rev-Exp Region 8'!$E$9, 0)","v":{"v":0,"d":"$0.00"}},{"$f":"IFERROR('MMA Rev-Exp Region 8'!$F$23/'MMA Rev-Exp Region 8'!$F$9, 0)","v":{"v":0,"d":"$0.00"}},{"$f":"IFERROR('MMA Rev-Exp Region 8'!$G$23/'MMA Rev-Exp Region 8'!$G$9, 0)","v":{"v":0,"d":"$0.00"}},{"$f":"IFERROR('MMA Rev-Exp Region 8'!$H$23/'MMA Rev-Exp Region 8'!$H$9, 0)","v":{"v":0,"d":"$0.00"}},{"$f":"IFERROR('MMA Rev-Exp Region 8'!$I$23/'MMA Rev-Exp Region 8'!$I$9, 0)","v":{"v":0,"d":"$0.00"}},{"$f":"IFERROR('MMA Rev-Exp Region 8'!$J$23/'MMA Rev-Exp Region 8'!$J$9, 0)","v":{"v":0,"d":"$0.00"}},{"$f":"IFERROR('MMA Rev-Exp Region 8'!$K$23/'MMA Rev-Exp Region 8'!$K$9, 0)","v":{"v":0,"d":"$0.00"}},{"$f":"IFERROR('MMA Rev-Exp Region 8'!$L$23/'MMA Rev-Exp Region 8'!$L$9, 0)","v":{"v":0,"d":"$0.00"}},{"$f":"IFERROR('MMA Rev-Exp Region 8'!$M$23/'MMA Rev-Exp Region 8'!$M$9, 0)","v":{"v":0,"d":"$0.00"}},{"$f":"IFERROR('MMA Rev-Exp Region 8'!$N$23/'MMA Rev-Exp Region 8'!$N$9, 0)","v":{"v":0,"d":"$0.00"}}]
["MMA",null,null,2016,"2016-12-31","Q1","2017-03-31","Region 8","Operating Expense","Medical Benefits Expense","Hospital Services",2.5,"Ending IBNP for Outpatient Hospital Services",{"$f":"IFERROR('MMA Rev-Exp Region 8'!$D$24/'MMA Rev-Exp Region 8'!$D$9, 0)","v":{"v":0,"d":"$0.00"}},{"$f":"IFERROR('MMA Rev-Exp Region 8'!$E$24/'MMA Rev-Exp Region 8'!$E$9, 0)","v":{"v":0,"d":"$0.00"}},{"$f":"IFERROR('MMA Rev-Exp Region 8'!$F$24/'MMA Rev-Exp Region 8'!$F$9, 0)","v":{"v":0,"d":"$0.00"}},{"$f":"IFERROR('MMA Rev-Exp Region 8'!$G$24/'MMA Rev-Exp Region 8'!$G$9, 0)","v":{"v":0,"d":"$0.00"}},{"$f":"IFERROR('MMA Rev-Exp Region 8'!$H$24/'MMA Rev-Exp Region 8'!$H$9, 0)","v":{"v":0,"d":"$0.00"}},{"$f":"IFERROR('MMA Rev-Exp Region 8'!$I$24/'MMA Rev-Exp Region 8'!$I$9, 0)","v":{"v":0,"d":"$0.00"}},{"$f":"IFERROR('MMA Rev-Exp Region 8'!$J$24/'MMA Rev-Exp Region 8'!$J$9, 0)","v":{"v":0,"d":"$0.00"}},{"$f":"IFERROR('MMA Rev-Exp Region 8'!$K$24/'MMA Rev-Exp Region 8'!$K$9, 0)","v":{"v":0,"d":"$0.00"}},{"$f":"IFERROR('MMA Rev-Exp Region 8'!$L$24/'MMA Rev-Exp Region 8'!$L$9, 0)","v":{"v":0,"d":"$0.00"}},{"$f":"IFERROR('MMA Rev-Exp Region 8'!$M$24/'MMA Rev-Exp Region 8'!$M$9, 0)","v":{"v":0,"d":"$0.00"}},{"$f":"IFERROR('MMA Rev-Exp Region 8'!$N$24/'MMA Rev-Exp Region 8'!$N$9, 0)","v":{"v":0,"d":"$0.00"}}]
["MMA",null,null,2016,"2016-12-31","Q1","2017-03-31","Region 8","Operating Expense","Medical Benefits Expense","Hospital Services","2.6","Subcapitated Hospital Services",{"$f":"IFERROR('MMA Rev-Exp Region 8'!$D$25/'MMA Rev-Exp Region 8'!$D$9, 0)","v":{"v":0,"d":"$0.00"}},{"$f":"IFERROR('MMA Rev-Exp Region 8'!$E$25/'MMA Rev-Exp Region 8'!$E$9, 0)","v":{"v":0,"d":"$0.00"}},{"$f":"IFERROR('MMA Rev-Exp Region 8'!$F$25/'MMA Rev-Exp Region 8'!$F$9, 0)","v":{"v":0,"d":"$0.00"}},{"$f":"IFERROR('MMA Rev-Exp Region 8'!$G$25/'MMA Rev-Exp Region 8'!$G$9, 0)","v":{"v":0,"d":"$0.00"}},{"$f":"IFERROR('MMA Rev-Exp Region 8'!$H$25/'MMA Rev-Exp Region 8'!$H$9, 0)","v":{"v":0,"d":"$0.00"}},{"$f":"IFERROR('MMA Rev-Exp Region 8'!$I$25/'MMA Rev-Exp Region 8'!$I$9, 0)","v":{"v":0,"d":"$0.00"}},{"$f":"IFERROR('MMA Rev-Exp Region 8'!$J$25/'MMA Rev-Exp Region 8'!$J$9, 0)","v":{"v":0,"d":"$0.00"}},{"$f":"IFERROR('MMA Rev-Exp Region 8'!$K$25/'MMA Rev-Exp Region 8'!$K$9, 0)","v":{"v":0,"d":"$0.00"}},{"$f":"IFERROR('MMA Rev-Exp Region 8'!$L$25/'MMA Rev-Exp Region 8'!$L$9, 0)","v":{"v":0,"d":"$0.00"}},{"$f":"IFERROR('MMA Rev-Exp Region 8'!$M$25/'MMA Rev-Exp Region 8'!$M$9, 0)","v":{"v":0,"d":"$0.00"}},{"$f":"IFERROR('MMA Rev-Exp Region 8'!$N$25/'MMA Rev-Exp Region 8'!$N$9, 0)","v":{"v":0,"d":"$0.00"}}]
["MMA",null,null,2016,"2016-12-31","Q1","2017-03-31","Region 8","Operating Expense","Medical Benefits Expense","Hospital Services","2.7","Hospital Settlements",{"$f":"IFERROR('MMA Rev-Exp Region 8'!$D$26/'MMA Rev-Exp Region 8'!$D$9, 0)","v":{"v":0,"d":"$0.00"}},{"$f":"IFERROR('MMA Rev-Exp Region 8'!$E$26/'MMA Rev-Exp Region 8'!$E$9, 0)","v":{"v":0,"d":"$0.00"}},{"$f":"IFERROR('MMA Rev-Exp Region 8'!$F$26/'MMA Rev-Exp Region 8'!$F$9, 0)","v":{"v":0,"d":"$0.00"}},{"$f":"IFERROR('MMA Rev-Exp Region 8'!$G$26/'MMA Rev-Exp Region 8'!$G$9, 0)","v":{"v":0,"d":"$0.00"}},{"$f":"IFERROR('MMA Rev-Exp Region 8'!$H$26/'MMA Rev-Exp Region 8'!$H$9, 0)","v":{"v":0,"d":"$0.00"}},{"$f":"IFERROR('MMA Rev-Exp Region 8'!$I$26/'MMA Rev-Exp Region 8'!$I$9, 0)","v":{"v":0,"d":"$0.00"}},{"$f":"IFERROR('MMA Rev-Exp Region 8'!$J$26/'MMA Rev-Exp Region 8'!$J$9, 0)","v":{"v":0,"d":"$0.00"}},{"$f":"IFERROR('MMA Rev-Exp Region 8'!$K$26/'MMA Rev-Exp Region 8'!$K$9, 0)","v":{"v":0,"d":"$0.00"}},{"$f":"IFERROR('MMA Rev-Exp Region 8'!$L$26/'MMA Rev-Exp Region 8'!$L$9, 0)","v":{"v":0,"d":"$0.00"}},{"$f":"IFERROR('MMA Rev-Exp Region 8'!$M$26/'MMA Rev-Exp Region 8'!$M$9, 0)","v":{"v":0,"d":"$0.00"}},{"$f":"IFERROR('MMA Rev-Exp Region 8'!$N$26/'MMA Rev-Exp Region 8'!$N$9, 0)","v":{"v":0,"d":"$0.00"}}]
["MMA",null,null,2016,"2016-12-31","Q1","2017-03-31","Region 8","Operating Expense","Medical Benefits Expense","Hospital Services","2.7.1","Transplant Services",{"$f":"IFERROR('MMA Rev-Exp Region 8'!$D$27/'MMA Rev-Exp Region 8'!$D$9, 0)","v":{"v":0,"d":"$0.00"}},{"$f":"IFERROR('MMA Rev-Exp Region 8'!$E$27/'MMA Rev-Exp Region 8'!$E$9, 0)","v":{"v":0,"d":"$0.00"}},{"$f":"IFERROR('MMA Rev-Exp Region 8'!$F$27/'MMA Rev-Exp Region 8'!$F$9, 0)","v":{"v":0,"d":"$0.00"}},{"$f":"IFERROR('MMA Rev-Exp Region 8'!$G$27/'MMA Rev-Exp Region 8'!$G$9, 0)","v":{"v":0,"d":"$0.00"}},{"$f":"IFERROR('MMA Rev-Exp Region 8'!$H$27/'MMA Rev-Exp Region 8'!$H$9, 0)","v":{"v":0,"d":"$0.00"}},{"$f":"IFERROR('MMA Rev-Exp Region 8'!$I$27/'MMA Rev-Exp Region 8'!$I$9, 0)","v":{"v":0,"d":"$0.00"}},{"$f":"IFERROR('MMA Rev-Exp Region 8'!$J$27/'MMA Rev-Exp Region 8'!$J$9, 0)","v":{"v":0,"d":"$0.00"}},{"$f":"IFERROR('MMA Rev-Exp Region 8'!$K$27/'MMA Rev-Exp Region 8'!$K$9, 0)","v":{"v":0,"d":"$0.00"}},{"$f":"IFERROR('MMA Rev-Exp Region 8'!$L$27/'MMA Rev-Exp Region 8'!$L$9, 0)","v":{"v":0,"d":"$0.00"}},{"$f":"IFERROR('MMA Rev-Exp Region 8'!$M$27/'MMA Rev-Exp Region 8'!$M$9, 0)","v":{"v":0,"d":"$0.00"}},{"$f":"IFERROR('MMA Rev-Exp Region 8'!$N$27/'MMA Rev-Exp Region 8'!$N$9, 0)","v":{"v":0,"d":"$0.00"}}]
["MMA",null,null,2016,"2016-12-31","Q1","2017-03-31","Region 8","Operating Expense","Medical Benefits Expense","Professional Services",3.1,"Primary Care FFS",{"$f":"IFERROR('MMA Rev-Exp Region 8'!$D$29/'MMA Rev-Exp Region 8'!$D$9, 0)","v":{"v":0,"d":"$0.00"}},{"$f":"IFERROR('MMA Rev-Exp Region 8'!$E$29/'MMA Rev-Exp Region 8'!$E$9, 0)","v":{"v":0,"d":"$0.00"}},{"$f":"IFERROR('MMA Rev-Exp Region 8'!$F$29/'MMA Rev-Exp Region 8'!$F$9, 0)","v":{"v":0,"d":"$0.00"}},{"$f":"IFERROR('MMA Rev-Exp Region 8'!$G$29/'MMA Rev-Exp Region 8'!$G$9, 0)","v":{"v":0,"d":"$0.00"}},{"$f":"IFERROR('MMA Rev-Exp Region 8'!$H$29/'MMA Rev-Exp Region 8'!$H$9, 0)","v":{"v":0,"d":"$0.00"}},{"$f":"IFERROR('MMA Rev-Exp Region 8'!$I$29/'MMA Rev-Exp Region 8'!$I$9, 0)","v":{"v":0,"d":"$0.00"}},{"$f":"IFERROR('MMA Rev-Exp Region 8'!$J$29/'MMA Rev-Exp Region 8'!$J$9, 0)","v":{"v":0,"d":"$0.00"}},{"$f":"IFERROR('MMA Rev-Exp Region 8'!$K$29/'MMA Rev-Exp Region 8'!$K$9, 0)","v":{"v":0,"d":"$0.00"}},{"$f":"IFERROR('MMA Rev-Exp Region 8'!$L$29/'MMA Rev-Exp Region 8'!$L$9, 0)","v":{"v":0,"d":"$0.00"}},{"$f":"IFERROR('MMA Rev-Exp Region 8'!$M$29/'MMA Rev-Exp Region 8'!$M$9, 0)","v":{"v":0,"d":"$0.00"}},{"$f":"IFERROR('MMA Rev-Exp Region 8'!$N$29/'MMA Rev-Exp Region 8'!$N$9, 0)","v":{"v":0,"d":"$0.00"}}]
["MMA",null,null,2016,"2016-12-31","Q1","2017-03-31","Region 8","Operating Expense","Medical Benefits Expense","Professional Services",3.2,"Specialty Care FFS",{"$f":"IFERROR('MMA Rev-Exp Region 8'!$D$30/'MMA Rev-Exp Region 8'!$D$9, 0)","v":{"v":0,"d":"$0.00"}},{"$f":"IFERROR('MMA Rev-Exp Region 8'!$E$30/'MMA Rev-Exp Region 8'!$E$9, 0)","v":{"v":0,"d":"$0.00"}},{"$f":"IFERROR('MMA Rev-Exp Region 8'!$F$30/'MMA Rev-Exp Region 8'!$F$9, 0)","v":{"v":0,"d":"$0.00"}},{"$f":"IFERROR('MMA Rev-Exp Region 8'!$G$30/'MMA Rev-Exp Region 8'!$G$9, 0)","v":{"v":0,"d":"$0.00"}},{"$f":"IFERROR('MMA Rev-Exp Region 8'!$H$30/'MMA Rev-Exp Region 8'!$H$9, 0)","v":{"v":0,"d":"$0.00"}},{"$f":"IFERROR('MMA Rev-Exp Region 8'!$I$30/'MMA Rev-Exp Region 8'!$I$9, 0)","v":{"v":0,"d":"$0.00"}},{"$f":"IFERROR('MMA Rev-Exp Region 8'!$J$30/'MMA Rev-Exp Region 8'!$J$9, 0)","v":{"v":0,"d":"$0.00"}},{"$f":"IFERROR('MMA Rev-Exp Region 8'!$K$30/'MMA Rev-Exp Region 8'!$K$9, 0)","v":{"v":0,"d":"$0.00"}},{"$f":"IFERROR('MMA Rev-Exp Region 8'!$L$30/'MMA Rev-Exp Region 8'!$L$9, 0)","v":{"v":0,"d":"$0.00"}},{"$f":"IFERROR('MMA Rev-Exp Region 8'!$M$30/'MMA Rev-Exp Region 8'!$M$9, 0)","v":{"v":0,"d":"$0.00"}},{"$f":"IFERROR('MMA Rev-Exp Region 8'!$N$30/'MMA Rev-Exp Region 8'!$N$9, 0)","v":{"v":0,"d":"$0.00"}}]
["MMA",null,null,2016,"2016-12-31","Q1","2017-03-31","Region 8","Operating Expense","Medical Benefits Expense","Professional Services",3.3,"Other Professional FFS",{"$f":"IFERROR('MMA Rev-Exp Region 8'!$D$31/'MMA Rev-Exp Region 8'!$D$9, 0)","v":{"v":0,"d":"$0.00"}},{"$f":"IFERROR('MMA Rev-Exp Region 8'!$E$31/'MMA Rev-Exp Region 8'!$E$9, 0)","v":{"v":0,"d":"$0.00"}},{"$f":"IFERROR('MMA Rev-Exp Region 8'!$F$31/'MMA Rev-Exp Region 8'!$F$9, 0)","v":{"v":0,"d":"$0.00"}},{"$f":"IFERROR('MMA Rev-Exp Region 8'!$G$31/'MMA Rev-Exp Region 8'!$G$9, 0)","v":{"v":0,"d":"$0.00"}},{"$f":"IFERROR('MMA Rev-Exp Region 8'!$H$31/'MMA Rev-Exp Region 8'!$H$9, 0)","v":{"v":0,"d":"$0.00"}},{"$f":"IFERROR('MMA Rev-Exp Region 8'!$I$31/'MMA Rev-Exp Region 8'!$I$9, 0)","v":{"v":0,"d":"$0.00"}},{"$f":"IFERROR('MMA Rev-Exp Region 8'!$J$31/'MMA Rev-Exp Region 8'!$J$9, 0)","v":{"v":0,"d":"$0.00"}},{"$f":"IFERROR('MMA Rev-Exp Region 8'!$K$31/'MMA Rev-Exp Region 8'!$K$9, 0)","v":{"v":0,"d":"$0.00"}},{"$f":"IFERROR('MMA Rev-Exp Region 8'!$L$31/'MMA Rev-Exp Region 8'!$L$9, 0)","v":{"v":0,"d":"$0.00"}},{"$f":"IFERROR('MMA Rev-Exp Region 8'!$M$31/'MMA Rev-Exp Region 8'!$M$9, 0)","v":{"v":0,"d":"$0.00"}},{"$f":"IFERROR('MMA Rev-Exp Region 8'!$N$31/'MMA Rev-Exp Region 8'!$N$9, 0)","v":{"v":0,"d":"$0.00"}}]
["MMA",null,null,2016,"2016-12-31","Q1","2017-03-31","Region 8","Operating Expense","Medical Benefits Expense","Professional Services","3.4","§ 1202 PCP Payments to providers",{"$f":"IFERROR('MMA Rev-Exp Region 8'!$D$32/'MMA Rev-Exp Region 8'!$D$9, 0)","v":{"v":0,"d":"$0.00"}},{"$f":"IFERROR('MMA Rev-Exp Region 8'!$E$32/'MMA Rev-Exp Region 8'!$E$9, 0)","v":{"v":0,"d":"$0.00"}},{"$f":"IFERROR('MMA Rev-Exp Region 8'!$F$32/'MMA Rev-Exp Region 8'!$F$9, 0)","v":{"v":0,"d":"$0.00"}},{"$f":"IFERROR('MMA Rev-Exp Region 8'!$G$32/'MMA Rev-Exp Region 8'!$G$9, 0)","v":{"v":0,"d":"$0.00"}},{"$f":"IFERROR('MMA Rev-Exp Region 8'!$H$32/'MMA Rev-Exp Region 8'!$H$9, 0)","v":{"v":0,"d":"$0.00"}},{"$f":"IFERROR('MMA Rev-Exp Region 8'!$I$32/'MMA Rev-Exp Region 8'!$I$9, 0)","v":{"v":0,"d":"$0.00"}},{"$f":"IFERROR('MMA Rev-Exp Region 8'!$J$32/'MMA Rev-Exp Region 8'!$J$9, 0)","v":{"v":0,"d":"$0.00"}},{"$f":"IFERROR('MMA Rev-Exp Region 8'!$K$32/'MMA Rev-Exp Region 8'!$K$9, 0)","v":{"v":0,"d":"$0.00"}},{"$f":"IFERROR('MMA Rev-Exp Region 8'!$L$32/'MMA Rev-Exp Region 8'!$L$9, 0)","v":{"v":0,"d":"$0.00"}},{"$f":"IFERROR('MMA Rev-Exp Region 8'!$M$32/'MMA Rev-Exp Region 8'!$M$9, 0)","v":{"v":0,"d":"$0.00"}},{"$f":"IFERROR('MMA Rev-Exp Region 8'!$N$32/'MMA Rev-Exp Region 8'!$N$9, 0)","v":{"v":0,"d":"$0.00"}}]
["MMA",null,null,2016,"2016-12-31","Q1","2017-03-31","Region 8","Operating Expense","Medical Benefits Expense","Professional Services","3.5","Subcapitated Professional Services",{"$f":"IFERROR('MMA Rev-Exp Region 8'!$D$33/'MMA Rev-Exp Region 8'!$D$9, 0)","v":{"v":0,"d":"$0.00"}},{"$f":"IFERROR('MMA Rev-Exp Region 8'!$E$33/'MMA Rev-Exp Region 8'!$E$9, 0)","v":{"v":0,"d":"$0.00"}},{"$f":"IFERROR('MMA Rev-Exp Region 8'!$F$33/'MMA Rev-Exp Region 8'!$F$9, 0)","v":{"v":0,"d":"$0.00"}},{"$f":"IFERROR('MMA Rev-Exp Region 8'!$G$33/'MMA Rev-Exp Region 8'!$G$9, 0)","v":{"v":0,"d":"$0.00"}},{"$f":"IFERROR('MMA Rev-Exp Region 8'!$H$33/'MMA Rev-Exp Region 8'!$H$9, 0)","v":{"v":0,"d":"$0.00"}},{"$f":"IFERROR('MMA Rev-Exp Region 8'!$I$33/'MMA Rev-Exp Region 8'!$I$9, 0)","v":{"v":0,"d":"$0.00"}},{"$f":"IFERROR('MMA Rev-Exp Region 8'!$J$33/'MMA Rev-Exp Region 8'!$J$9, 0)","v":{"v":0,"d":"$0.00"}},{"$f":"IFERROR('MMA Rev-Exp Region 8'!$K$33/'MMA Rev-Exp Region 8'!$K$9, 0)","v":{"v":0,"d":"$0.00"}},{"$f":"IFERROR('MMA Rev-Exp Region 8'!$L$33/'MMA Rev-Exp Region 8'!$L$9, 0)","v":{"v":0,"d":"$0.00"}},{"$f":"IFERROR('MMA Rev-Exp Region 8'!$M$33/'MMA Rev-Exp Region 8'!$M$9, 0)","v":{"v":0,"d":"$0.00"}},{"$f":"IFERROR('MMA Rev-Exp Region 8'!$N$33/'MMA Rev-Exp Region 8'!$N$9, 0)","v":{"v":0,"d":"$0.00"}}]
["MMA",null,null,2016,"2016-12-31","Q1","2017-03-31","Region 8","Operating Expense","Medical Benefits Expense","Professional Services","3.6","Ending IBNP for Professional Services",{"$f":"IFERROR('MMA Rev-Exp Region 8'!$D$34/'MMA Rev-Exp Region 8'!$D$9, 0)","v":{"v":0,"d":"$0.00"}},{"$f":"IFERROR('MMA Rev-Exp Region 8'!$E$34/'MMA Rev-Exp Region 8'!$E$9, 0)","v":{"v":0,"d":"$0.00"}},{"$f":"IFERROR('MMA Rev-Exp Region 8'!$F$34/'MMA Rev-Exp Region 8'!$F$9, 0)","v":{"v":0,"d":"$0.00"}},{"$f":"IFERROR('MMA Rev-Exp Region 8'!$G$34/'MMA Rev-Exp Region 8'!$G$9, 0)","v":{"v":0,"d":"$0.00"}},{"$f":"IFERROR('MMA Rev-Exp Region 8'!$H$34/'MMA Rev-Exp Region 8'!$H$9, 0)","v":{"v":0,"d":"$0.00"}},{"$f":"IFERROR('MMA Rev-Exp Region 8'!$I$34/'MMA Rev-Exp Region 8'!$I$9, 0)","v":{"v":0,"d":"$0.00"}},{"$f":"IFERROR('MMA Rev-Exp Region 8'!$J$34/'MMA Rev-Exp Region 8'!$J$9, 0)","v":{"v":0,"d":"$0.00"}},{"$f":"IFERROR('MMA Rev-Exp Region 8'!$K$34/'MMA Rev-Exp Region 8'!$K$9, 0)","v":{"v":0,"d":"$0.00"}},{"$f":"IFERROR('MMA Rev-Exp Region 8'!$L$34/'MMA Rev-Exp Region 8'!$L$9, 0)","v":{"v":0,"d":"$0.00"}},{"$f":"IFERROR('MMA Rev-Exp Region 8'!$M$34/'MMA Rev-Exp Region 8'!$M$9, 0)","v":{"v":0,"d":"$0.00"}},{"$f":"IFERROR('MMA Rev-Exp Region 8'!$N$34/'MMA Rev-Exp Region 8'!$N$9, 0)","v":{"v":0,"d":"$0.00"}}]
["MMA",null,null,2016,"2016-12-31","Q1","2017-03-31","Region 8","Operating Expense","Medical Benefits Expense","Professional Services","3.7","Professional Services Settlements",{"$f":"IFERROR('MMA Rev-Exp Region 8'!$D$35/'MMA Rev-Exp Region 8'!$D$9, 0)","v":{"v":0,"d":"$0.00"}},{"$f":"IFERROR('MMA Rev-Exp Region 8'!$E$35/'MMA Rev-Exp Region 8'!$E$9, 0)","v":{"v":0,"d":"$0.00"}},{"$f":"IFERROR('MMA Rev-Exp Region 8'!$F$35/'MMA Rev-Exp Region 8'!$F$9, 0)","v":{"v":0,"d":"$0.00"}},{"$f":"IFERROR('MMA Rev-Exp Region 8'!$G$35/'MMA Rev-Exp Region 8'!$G$9, 0)","v":{"v":0,"d":"$0.00"}},{"$f":"IFERROR('MMA Rev-Exp Region 8'!$H$35/'MMA Rev-Exp Region 8'!$H$9, 0)","v":{"v":0,"d":"$0.00"}},{"$f":"IFERROR('MMA Rev-Exp Region 8'!$I$35/'MMA Rev-Exp Region 8'!$I$9, 0)","v":{"v":0,"d":"$0.00"}},{"$f":"IFERROR('MMA Rev-Exp Region 8'!$J$35/'MMA Rev-Exp Region 8'!$J$9, 0)","v":{"v":0,"d":"$0.00"}},{"$f":"IFERROR('MMA Rev-Exp Region 8'!$K$35/'MMA Rev-Exp Region 8'!$K$9, 0)","v":{"v":0,"d":"$0.00"}},{"$f":"IFERROR('MMA Rev-Exp Region 8'!$L$35/'MMA Rev-Exp Region 8'!$L$9, 0)","v":{"v":0,"d":"$0.00"}},{"$f":"IFERROR('MMA Rev-Exp Region 8'!$M$35/'MMA Rev-Exp Region 8'!$M$9, 0)","v":{"v":0,"d":"$0.00"}},{"$f":"IFERROR('MMA Rev-Exp Region 8'!$N$35/'MMA Rev-Exp Region 8'!$N$9, 0)","v":{"v":0,"d":"$0.00"}}]
["MMA",null,null,2016,"2016-12-31","Q1","2017-03-31","Region 8","Operating Expense","Medical Benefits Expense","Maternity Services","4.1.1","Maternity Services",{"$f":"IFERROR('MMA Rev-Exp Region 8'!$D$37/'MMA Rev-Exp Region 8'!$D$9, 0)","v":{"v":0,"d":"$0.00"}},{"$f":"IFERROR('MMA Rev-Exp Region 8'!$E$37/'MMA Rev-Exp Region 8'!$E$9, 0)","v":{"v":0,"d":"$0.00"}},{"$f":"IFERROR('MMA Rev-Exp Region 8'!$F$37/'MMA Rev-Exp Region 8'!$F$9, 0)","v":{"v":0,"d":"$0.00"}},{"$f":"IFERROR('MMA Rev-Exp Region 8'!$G$37/'MMA Rev-Exp Region 8'!$G$9, 0)","v":{"v":0,"d":"$0.00"}},{"$f":"IFERROR('MMA Rev-Exp Region 8'!$H$37/'MMA Rev-Exp Region 8'!$H$9, 0)","v":{"v":0,"d":"$0.00"}},{"$f":"IFERROR('MMA Rev-Exp Region 8'!$I$37/'MMA Rev-Exp Region 8'!$I$9, 0)","v":{"v":0,"d":"$0.00"}},{"$f":"IFERROR('MMA Rev-Exp Region 8'!$J$37/'MMA Rev-Exp Region 8'!$J$9, 0)","v":{"v":0,"d":"$0.00"}},{"$f":"IFERROR('MMA Rev-Exp Region 8'!$K$37/'MMA Rev-Exp Region 8'!$K$9, 0)","v":{"v":0,"d":"$0.00"}},{"$f":"IFERROR('MMA Rev-Exp Region 8'!$L$37/'MMA Rev-Exp Region 8'!$L$9, 0)","v":{"v":0,"d":"$0.00"}},{"$f":"IFERROR('MMA Rev-Exp Region 8'!$M$37/'MMA Rev-Exp Region 8'!$M$9, 0)","v":{"v":0,"d":"$0.00"}},{"$f":"IFERROR('MMA Rev-Exp Region 8'!$N$37/'MMA Rev-Exp Region 8'!$N$9, 0)","v":{"v":0,"d":"$0.00"}}]
["MMA",null,null,2016,"2016-12-31","Q1","2017-03-31","Region 8","Operating Expense","Medical Benefits Expense","Maternity Services","4.2.1","Ending IBNP for Maternity Services",{"$f":"IFERROR('MMA Rev-Exp Region 8'!$D$38/'MMA Rev-Exp Region 8'!$D$9, 0)","v":{"v":0,"d":"$0.00"}},{"$f":"IFERROR('MMA Rev-Exp Region 8'!$E$38/'MMA Rev-Exp Region 8'!$E$9, 0)","v":{"v":0,"d":"$0.00"}},{"$f":"IFERROR('MMA Rev-Exp Region 8'!$F$38/'MMA Rev-Exp Region 8'!$F$9, 0)","v":{"v":0,"d":"$0.00"}},{"$f":"IFERROR('MMA Rev-Exp Region 8'!$G$38/'MMA Rev-Exp Region 8'!$G$9, 0)","v":{"v":0,"d":"$0.00"}},{"$f":"IFERROR('MMA Rev-Exp Region 8'!$H$38/'MMA Rev-Exp Region 8'!$H$9, 0)","v":{"v":0,"d":"$0.00"}},{"$f":"IFERROR('MMA Rev-Exp Region 8'!$I$38/'MMA Rev-Exp Region 8'!$I$9, 0)","v":{"v":0,"d":"$0.00"}},{"$f":"IFERROR('MMA Rev-Exp Region 8'!$J$38/'MMA Rev-Exp Region 8'!$J$9, 0)","v":{"v":0,"d":"$0.00"}},{"$f":"IFERROR('MMA Rev-Exp Region 8'!$K$38/'MMA Rev-Exp Region 8'!$K$9, 0)","v":{"v":0,"d":"$0.00"}},{"$f":"IFERROR('MMA Rev-Exp Region 8'!$L$38/'MMA Rev-Exp Region 8'!$L$9, 0)","v":{"v":0,"d":"$0.00"}},{"$f":"IFERROR('MMA Rev-Exp Region 8'!$M$38/'MMA Rev-Exp Region 8'!$M$9, 0)","v":{"v":0,"d":"$0.00"}},{"$f":"IFERROR('MMA Rev-Exp Region 8'!$N$38/'MMA Rev-Exp Region 8'!$N$9, 0)","v":{"v":0,"d":"$0.00"}}]
["MMA",null,null,2016,"2016-12-31","Q1","2017-03-31","Region 8","Operating Expense","Medical Benefits Expense","Maternity Services","4.3.1","Maternity Settlements",{"$f":"IFERROR('MMA Rev-Exp Region 8'!$D$39/'MMA Rev-Exp Region 8'!$D$9, 0)","v":{"v":0,"d":"$0.00"}},{"$f":"IFERROR('MMA Rev-Exp Region 8'!$E$39/'MMA Rev-Exp Region 8'!$E$9, 0)","v":{"v":0,"d":"$0.00"}},{"$f":"IFERROR('MMA Rev-Exp Region 8'!$F$39/'MMA Rev-Exp Region 8'!$F$9, 0)","v":{"v":0,"d":"$0.00"}},{"$f":"IFERROR('MMA Rev-Exp Region 8'!$G$39/'MMA Rev-Exp Region 8'!$G$9, 0)","v":{"v":0,"d":"$0.00"}},{"$f":"IFERROR('MMA Rev-Exp Region 8'!$H$39/'MMA Rev-Exp Region 8'!$H$9, 0)","v":{"v":0,"d":"$0.00"}},{"$f":"IFERROR('MMA Rev-Exp Region 8'!$I$39/'MMA Rev-Exp Region 8'!$I$9, 0)","v":{"v":0,"d":"$0.00"}},{"$f":"IFERROR('MMA Rev-Exp Region 8'!$J$39/'MMA Rev-Exp Region 8'!$J$9, 0)","v":{"v":0,"d":"$0.00"}},{"$f":"IFERROR('MMA Rev-Exp Region 8'!$K$39/'MMA Rev-Exp Region 8'!$K$9, 0)","v":{"v":0,"d":"$0.00"}},{"$f":"IFERROR('MMA Rev-Exp Region 8'!$L$39/'MMA Rev-Exp Region 8'!$L$9, 0)","v":{"v":0,"d":"$0.00"}},{"$f":"IFERROR('MMA Rev-Exp Region 8'!$M$39/'MMA Rev-Exp Region 8'!$M$9, 0)","v":{"v":0,"d":"$0.00"}},{"$f":"IFERROR('MMA Rev-Exp Region 8'!$N$39/'MMA Rev-Exp Region 8'!$N$9, 0)","v":{"v":0,"d":"$0.00"}}]
["MMA",null,null,2016,"2016-12-31","Q1","2017-03-31","Region 8","Operating Expense","Medical Benefits Expense","Mental Health Services",5.1,"Mental Health & Substance Abuse FFS",{"$f":"IFERROR('MMA Rev-Exp Region 8'!$D$41/'MMA Rev-Exp Region 8'!$D$9, 0)","v":{"v":0,"d":"$0.00"}},{"$f":"IFERROR('MMA Rev-Exp Region 8'!$E$41/'MMA Rev-Exp Region 8'!$E$9, 0)","v":{"v":0,"d":"$0.00"}},{"$f":"IFERROR('MMA Rev-Exp Region 8'!$F$41/'MMA Rev-Exp Region 8'!$F$9, 0)","v":{"v":0,"d":"$0.00"}},{"$f":"IFERROR('MMA Rev-Exp Region 8'!$G$41/'MMA Rev-Exp Region 8'!$G$9, 0)","v":{"v":0,"d":"$0.00"}},{"$f":"IFERROR('MMA Rev-Exp Region 8'!$H$41/'MMA Rev-Exp Region 8'!$H$9, 0)","v":{"v":0,"d":"$0.00"}},{"$f":"IFERROR('MMA Rev-Exp Region 8'!$I$41/'MMA Rev-Exp Region 8'!$I$9, 0)","v":{"v":0,"d":"$0.00"}},{"$f":"IFERROR('MMA Rev-Exp Region 8'!$J$41/'MMA Rev-Exp Region 8'!$J$9, 0)","v":{"v":0,"d":"$0.00"}},{"$f":"IFERROR('MMA Rev-Exp Region 8'!$K$41/'MMA Rev-Exp Region 8'!$K$9, 0)","v":{"v":0,"d":"$0.00"}},{"$f":"IFERROR('MMA Rev-Exp Region 8'!$L$41/'MMA Rev-Exp Region 8'!$L$9, 0)","v":{"v":0,"d":"$0.00"}},{"$f":"IFERROR('MMA Rev-Exp Region 8'!$M$41/'MMA Rev-Exp Region 8'!$M$9, 0)","v":{"v":0,"d":"$0.00"}},{"$f":"IFERROR('MMA Rev-Exp Region 8'!$N$41/'MMA Rev-Exp Region 8'!$N$9, 0)","v":{"v":0,"d":"$0.00"}}]
["MMA",null,null,2016,"2016-12-31","Q1","2017-03-31","Region 8","Operating Expense","Medical Benefits Expense","Mental Health Services",5.2,"Mental Health & Substance Abuse Subcapitation",{"$f":"IFERROR('MMA Rev-Exp Region 8'!$D$42/'MMA Rev-Exp Region 8'!$D$9, 0)","v":{"v":0,"d":"$0.00"}},{"$f":"IFERROR('MMA Rev-Exp Region 8'!$E$42/'MMA Rev-Exp Region 8'!$E$9, 0)","v":{"v":0,"d":"$0.00"}},{"$f":"IFERROR('MMA Rev-Exp Region 8'!$F$42/'MMA Rev-Exp Region 8'!$F$9, 0)","v":{"v":0,"d":"$0.00"}},{"$f":"IFERROR('MMA Rev-Exp Region 8'!$G$42/'MMA Rev-Exp Region 8'!$G$9, 0)","v":{"v":0,"d":"$0.00"}},{"$f":"IFERROR('MMA Rev-Exp Region 8'!$H$42/'MMA Rev-Exp Region 8'!$H$9, 0)","v":{"v":0,"d":"$0.00"}},{"$f":"IFERROR('MMA Rev-Exp Region 8'!$I$42/'MMA Rev-Exp Region 8'!$I$9, 0)","v":{"v":0,"d":"$0.00"}},{"$f":"IFERROR('MMA Rev-Exp Region 8'!$J$42/'MMA Rev-Exp Region 8'!$J$9, 0)","v":{"v":0,"d":"$0.00"}},{"$f":"IFERROR('MMA Rev-Exp Region 8'!$K$42/'MMA Rev-Exp Region 8'!$K$9, 0)","v":{"v":0,"d":"$0.00"}},{"$f":"IFERROR('MMA Rev-Exp Region 8'!$L$42/'MMA Rev-Exp Region 8'!$L$9, 0)","v":{"v":0,"d":"$0.00"}},{"$f":"IFERROR('MMA Rev-Exp Region 8'!$M$42/'MMA Rev-Exp Region 8'!$M$9, 0)","v":{"v":0,"d":"$0.00"}},{"$f":"IFERROR('MMA Rev-Exp Region 8'!$N$42/'MMA Rev-Exp Region 8'!$N$9, 0)","v":{"v":0,"d":"$0.00"}}]
["MMA",null,null,2016,"2016-12-31","Q1","2017-03-31","Region 8","Operating Expense","Medical Benefits Expense","Mental Health Services",5.3,"Ending IBNP for Mental Health & Substance Abuse",{"$f":"IFERROR('MMA Rev-Exp Region 8'!$D$43/'MMA Rev-Exp Region 8'!$D$9, 0)","v":{"v":0,"d":"$0.00"}},{"$f":"IFERROR('MMA Rev-Exp Region 8'!$E$43/'MMA Rev-Exp Region 8'!$E$9, 0)","v":{"v":0,"d":"$0.00"}},{"$f":"IFERROR('MMA Rev-Exp Region 8'!$F$43/'MMA Rev-Exp Region 8'!$F$9, 0)","v":{"v":0,"d":"$0.00"}},{"$f":"IFERROR('MMA Rev-Exp Region 8'!$G$43/'MMA Rev-Exp Region 8'!$G$9, 0)","v":{"v":0,"d":"$0.00"}},{"$f":"IFERROR('MMA Rev-Exp Region 8'!$H$43/'MMA Rev-Exp Region 8'!$H$9, 0)","v":{"v":0,"d":"$0.00"}},{"$f":"IFERROR('MMA Rev-Exp Region 8'!$I$43/'MMA Rev-Exp Region 8'!$I$9, 0)","v":{"v":0,"d":"$0.00"}},{"$f":"IFERROR('MMA Rev-Exp Region 8'!$J$43/'MMA Rev-Exp Region 8'!$J$9, 0)","v":{"v":0,"d":"$0.00"}},{"$f":"IFERROR('MMA Rev-Exp Region 8'!$K$43/'MMA Rev-Exp Region 8'!$K$9, 0)","v":{"v":0,"d":"$0.00"}},{"$f":"IFERROR('MMA Rev-Exp Region 8'!$L$43/'MMA Rev-Exp Region 8'!$L$9, 0)","v":{"v":0,"d":"$0.00"}},{"$f":"IFERROR('MMA Rev-Exp Region 8'!$M$43/'MMA Rev-Exp Region 8'!$M$9, 0)","v":{"v":0,"d":"$0.00"}},{"$f":"IFERROR('MMA Rev-Exp Region 8'!$N$43/'MMA Rev-Exp Region 8'!$N$9, 0)","v":{"v":0,"d":"$0.00"}}]
["MMA",null,null,2016,"2016-12-31","Q1","2017-03-31","Region 8","Operating Expense","Medical Benefits Expense","Mental Health Services","5.4","Mental Health Settlements",{"$f":"IFERROR('MMA Rev-Exp Region 8'!$D$44/'MMA Rev-Exp Region 8'!$D$9, 0)","v":{"v":0,"d":"$0.00"}},{"$f":"IFERROR('MMA Rev-Exp Region 8'!$E$44/'MMA Rev-Exp Region 8'!$E$9, 0)","v":{"v":0,"d":"$0.00"}},{"$f":"IFERROR('MMA Rev-Exp Region 8'!$F$44/'MMA Rev-Exp Region 8'!$F$9, 0)","v":{"v":0,"d":"$0.00"}},{"$f":"IFERROR('MMA Rev-Exp Region 8'!$G$44/'MMA Rev-Exp Region 8'!$G$9, 0)","v":{"v":0,"d":"$0.00"}},{"$f":"IFERROR('MMA Rev-Exp Region 8'!$H$44/'MMA Rev-Exp Region 8'!$H$9, 0)","v":{"v":0,"d":"$0.00"}},{"$f":"IFERROR('MMA Rev-Exp Region 8'!$I$44/'MMA Rev-Exp Region 8'!$I$9, 0)","v":{"v":0,"d":"$0.00"}},{"$f":"IFERROR('MMA Rev-Exp Region 8'!$J$44/'MMA Rev-Exp Region 8'!$J$9, 0)","v":{"v":0,"d":"$0.00"}},{"$f":"IFERROR('MMA Rev-Exp Region 8'!$K$44/'MMA Rev-Exp Region 8'!$K$9, 0)","v":{"v":0,"d":"$0.00"}},{"$f":"IFERROR('MMA Rev-Exp Region 8'!$L$44/'MMA Rev-Exp Region 8'!$L$9, 0)","v":{"v":0,"d":"$0.00"}},{"$f":"IFERROR('MMA Rev-Exp Region 8'!$M$44/'MMA Rev-Exp Region 8'!$M$9, 0)","v":{"v":0,"d":"$0.00"}},{"$f":"IFERROR('MMA Rev-Exp Region 8'!$N$44/'MMA Rev-Exp Region 8'!$N$9, 0)","v":{"v":0,"d":"$0.00"}}]
["MMA",null,null,2016,"2016-12-31","Q1","2017-03-31","Region 8","Operating Expense","Medical Benefits Expense","Dental Services",6.1,"Dental FFS",{"$f":"IFERROR('MMA Rev-Exp Region 8'!$D$46/'MMA Rev-Exp Region 8'!$D$9, 0)","v":{"v":0,"d":"$0.00"}},{"$f":"IFERROR('MMA Rev-Exp Region 8'!$E$46/'MMA Rev-Exp Region 8'!$E$9, 0)","v":{"v":0,"d":"$0.00"}},{"$f":"IFERROR('MMA Rev-Exp Region 8'!$F$46/'MMA Rev-Exp Region 8'!$F$9, 0)","v":{"v":0,"d":"$0.00"}},{"$f":"IFERROR('MMA Rev-Exp Region 8'!$G$46/'MMA Rev-Exp Region 8'!$G$9, 0)","v":{"v":0,"d":"$0.00"}},{"$f":"IFERROR('MMA Rev-Exp Region 8'!$H$46/'MMA Rev-Exp Region 8'!$H$9, 0)","v":{"v":0,"d":"$0.00"}},{"$f":"IFERROR('MMA Rev-Exp Region 8'!$I$46/'MMA Rev-Exp Region 8'!$I$9, 0)","v":{"v":0,"d":"$0.00"}},{"$f":"IFERROR('MMA Rev-Exp Region 8'!$J$46/'MMA Rev-Exp Region 8'!$J$9, 0)","v":{"v":0,"d":"$0.00"}},{"$f":"IFERROR('MMA Rev-Exp Region 8'!$K$46/'MMA Rev-Exp Region 8'!$K$9, 0)","v":{"v":0,"d":"$0.00"}},{"$f":"IFERROR('MMA Rev-Exp Region 8'!$L$46/'MMA Rev-Exp Region 8'!$L$9, 0)","v":{"v":0,"d":"$0.00"}},{"$f":"IFERROR('MMA Rev-Exp Region 8'!$M$46/'MMA Rev-Exp Region 8'!$M$9, 0)","v":{"v":0,"d":"$0.00"}},{"$f":"IFERROR('MMA Rev-Exp Region 8'!$N$46/'MMA Rev-Exp Region 8'!$N$9, 0)","v":{"v":0,"d":"$0.00"}}]
["MMA",null,null,2016,"2016-12-31","Q1","2017-03-31","Region 8","Operating Expense","Medical Benefits Expense","Dental Services",6.2,"Dental Subcapitation",{"$f":"IFERROR('MMA Rev-Exp Region 8'!$D$47/'MMA Rev-Exp Region 8'!$D$9, 0)","v":{"v":0,"d":"$0.00"}},{"$f":"IFERROR('MMA Rev-Exp Region 8'!$E$47/'MMA Rev-Exp Region 8'!$E$9, 0)","v":{"v":0,"d":"$0.00"}},{"$f":"IFERROR('MMA Rev-Exp Region 8'!$F$47/'MMA Rev-Exp Region 8'!$F$9, 0)","v":{"v":0,"d":"$0.00"}},{"$f":"IFERROR('MMA Rev-Exp Region 8'!$G$47/'MMA Rev-Exp Region 8'!$G$9, 0)","v":{"v":0,"d":"$0.00"}},{"$f":"IFERROR('MMA Rev-Exp Region 8'!$H$47/'MMA Rev-Exp Region 8'!$H$9, 0)","v":{"v":0,"d":"$0.00"}},{"$f":"IFERROR('MMA Rev-Exp Region 8'!$I$47/'MMA Rev-Exp Region 8'!$I$9, 0)","v":{"v":0,"d":"$0.00"}},{"$f":"IFERROR('MMA Rev-Exp Region 8'!$J$47/'MMA Rev-Exp Region 8'!$J$9, 0)","v":{"v":0,"d":"$0.00"}},{"$f":"IFERROR('MMA Rev-Exp Region 8'!$K$47/'MMA Rev-Exp Region 8'!$K$9, 0)","v":{"v":0,"d":"$0.00"}},{"$f":"IFERROR('MMA Rev-Exp Region 8'!$L$47/'MMA Rev-Exp Region 8'!$L$9, 0)","v":{"v":0,"d":"$0.00"}},{"$f":"IFERROR('MMA Rev-Exp Region 8'!$M$47/'MMA Rev-Exp Region 8'!$M$9, 0)","v":{"v":0,"d":"$0.00"}},{"$f":"IFERROR('MMA Rev-Exp Region 8'!$N$47/'MMA Rev-Exp Region 8'!$N$9, 0)","v":{"v":0,"d":"$0.00"}}]
["MMA",null,null,2016,"2016-12-31","Q1","2017-03-31","Region 8","Operating Expense","Medical Benefits Expense","Dental Services",6.3,"Ending IBNP for Dental Services",{"$f":"IFERROR('MMA Rev-Exp Region 8'!$D$48/'MMA Rev-Exp Region 8'!$D$9, 0)","v":{"v":0,"d":"$0.00"}},{"$f":"IFERROR('MMA Rev-Exp Region 8'!$E$48/'MMA Rev-Exp Region 8'!$E$9, 0)","v":{"v":0,"d":"$0.00"}},{"$f":"IFERROR('MMA Rev-Exp Region 8'!$F$48/'MMA Rev-Exp Region 8'!$F$9, 0)","v":{"v":0,"d":"$0.00"}},{"$f":"IFERROR('MMA Rev-Exp Region 8'!$G$48/'MMA Rev-Exp Region 8'!$G$9, 0)","v":{"v":0,"d":"$0.00"}},{"$f":"IFERROR('MMA Rev-Exp Region 8'!$H$48/'MMA Rev-Exp Region 8'!$H$9, 0)","v":{"v":0,"d":"$0.00"}},{"$f":"IFERROR('MMA Rev-Exp Region 8'!$I$48/'MMA Rev-Exp Region 8'!$I$9, 0)","v":{"v":0,"d":"$0.00"}},{"$f":"IFERROR('MMA Rev-Exp Region 8'!$J$48/'MMA Rev-Exp Region 8'!$J$9, 0)","v":{"v":0,"d":"$0.00"}},{"$f":"IFERROR('MMA Rev-Exp Region 8'!$K$48/'MMA Rev-Exp Region 8'!$K$9, 0)","v":{"v":0,"d":"$0.00"}},{"$f":"IFERROR('MMA Rev-Exp Region 8'!$L$48/'MMA Rev-Exp Region 8'!$L$9, 0)","v":{"v":0,"d":"$0.00"}},{"$f":"IFERROR('MMA Rev-Exp Region 8'!$M$48/'MMA Rev-Exp Region 8'!$M$9, 0)","v":{"v":0,"d":"$0.00"}},{"$f":"IFERROR('MMA Rev-Exp Region 8'!$N$48/'MMA Rev-Exp Region 8'!$N$9, 0)","v":{"v":0,"d":"$0.00"}}]
["MMA",null,null,2016,"2016-12-31","Q1","2017-03-31","Region 8","Operating Expense","Medical Benefits Expense","Dental Services","6.4","Dental Settlements",{"$f":"IFERROR('MMA Rev-Exp Region 8'!$D$49/'MMA Rev-Exp Region 8'!$D$9, 0)","v":{"v":0,"d":"$0.00"}},{"$f":"IFERROR('MMA Rev-Exp Region 8'!$E$49/'MMA Rev-Exp Region 8'!$E$9, 0)","v":{"v":0,"d":"$0.00"}},{"$f":"IFERROR('MMA Rev-Exp Region 8'!$F$49/'MMA Rev-Exp Region 8'!$F$9, 0)","v":{"v":0,"d":"$0.00"}},{"$f":"IFERROR('MMA Rev-Exp Region 8'!$G$49/'MMA Rev-Exp Region 8'!$G$9, 0)","v":{"v":0,"d":"$0.00"}},{"$f":"IFERROR('MMA Rev-Exp Region 8'!$H$49/'MMA Rev-Exp Region 8'!$H$9, 0)","v":{"v":0,"d":"$0.00"}},{"$f":"IFERROR('MMA Rev-Exp Region 8'!$I$49/'MMA Rev-Exp Region 8'!$I$9, 0)","v":{"v":0,"d":"$0.00"}},{"$f":"IFERROR('MMA Rev-Exp Region 8'!$J$49/'MMA Rev-Exp Region 8'!$J$9, 0)","v":{"v":0,"d":"$0.00"}},{"$f":"IFERROR('MMA Rev-Exp Region 8'!$K$49/'MMA Rev-Exp Region 8'!$K$9, 0)","v":{"v":0,"d":"$0.00"}},{"$f":"IFERROR('MMA Rev-Exp Region 8'!$L$49/'MMA Rev-Exp Region 8'!$L$9, 0)","v":{"v":0,"d":"$0.00"}},{"$f":"IFERROR('MMA Rev-Exp Region 8'!$M$49/'MMA Rev-Exp Region 8'!$M$9, 0)","v":{"v":0,"d":"$0.00"}},{"$f":"IFERROR('MMA Rev-Exp Region 8'!$N$49/'MMA Rev-Exp Region 8'!$N$9, 0)","v":{"v":0,"d":"$0.00"}}]
["MMA",null,null,2016,"2016-12-31","Q1","2017-03-31","Region 8","Operating Expense","Medical Benefits Expense","Transportation Services",7.1,"Transportation FFS",{"$f":"IFERROR('MMA Rev-Exp Region 8'!$D$51/'MMA Rev-Exp Region 8'!$D$9, 0)","v":{"v":0,"d":"$0.00"}},{"$f":"IFERROR('MMA Rev-Exp Region 8'!$E$51/'MMA Rev-Exp Region 8'!$E$9, 0)","v":{"v":0,"d":"$0.00"}},{"$f":"IFERROR('MMA Rev-Exp Region 8'!$F$51/'MMA Rev-Exp Region 8'!$F$9, 0)","v":{"v":0,"d":"$0.00"}},{"$f":"IFERROR('MMA Rev-Exp Region 8'!$G$51/'MMA Rev-Exp Region 8'!$G$9, 0)","v":{"v":0,"d":"$0.00"}},{"$f":"IFERROR('MMA Rev-Exp Region 8'!$H$51/'MMA Rev-Exp Region 8'!$H$9, 0)","v":{"v":0,"d":"$0.00"}},{"$f":"IFERROR('MMA Rev-Exp Region 8'!$I$51/'MMA Rev-Exp Region 8'!$I$9, 0)","v":{"v":0,"d":"$0.00"}},{"$f":"IFERROR('MMA Rev-Exp Region 8'!$J$51/'MMA Rev-Exp Region 8'!$J$9, 0)","v":{"v":0,"d":"$0.00"}},{"$f":"IFERROR('MMA Rev-Exp Region 8'!$K$51/'MMA Rev-Exp Region 8'!$K$9, 0)","v":{"v":0,"d":"$0.00"}},{"$f":"IFERROR('MMA Rev-Exp Region 8'!$L$51/'MMA Rev-Exp Region 8'!$L$9, 0)","v":{"v":0,"d":"$0.00"}},{"$f":"IFERROR('MMA Rev-Exp Region 8'!$M$51/'MMA Rev-Exp Region 8'!$M$9, 0)","v":{"v":0,"d":"$0.00"}},{"$f":"IFERROR('MMA Rev-Exp Region 8'!$N$51/'MMA Rev-Exp Region 8'!$N$9, 0)","v":{"v":0,"d":"$0.00"}}]
["MMA",null,null,2016,"2016-12-31","Q1","2017-03-31","Region 8","Operating Expense","Medical Benefits Expense","Transportation Services",7.2,"Transportation Subcapitation",{"$f":"IFERROR('MMA Rev-Exp Region 8'!$D$52/'MMA Rev-Exp Region 8'!$D$9, 0)","v":{"v":0,"d":"$0.00"}},{"$f":"IFERROR('MMA Rev-Exp Region 8'!$E$52/'MMA Rev-Exp Region 8'!$E$9, 0)","v":{"v":0,"d":"$0.00"}},{"$f":"IFERROR('MMA Rev-Exp Region 8'!$F$52/'MMA Rev-Exp Region 8'!$F$9, 0)","v":{"v":0,"d":"$0.00"}},{"$f":"IFERROR('MMA Rev-Exp Region 8'!$G$52/'MMA Rev-Exp Region 8'!$G$9, 0)","v":{"v":0,"d":"$0.00"}},{"$f":"IFERROR('MMA Rev-Exp Region 8'!$H$52/'MMA Rev-Exp Region 8'!$H$9, 0)","v":{"v":0,"d":"$0.00"}},{"$f":"IFERROR('MMA Rev-Exp Region 8'!$I$52/'MMA Rev-Exp Region 8'!$I$9, 0)","v":{"v":0,"d":"$0.00"}},{"$f":"IFERROR('MMA Rev-Exp Region 8'!$J$52/'MMA Rev-Exp Region 8'!$J$9, 0)","v":{"v":0,"d":"$0.00"}},{"$f":"IFERROR('MMA Rev-Exp Region 8'!$K$52/'MMA Rev-Exp Region 8'!$K$9, 0)","v":{"v":0,"d":"$0.00"}},{"$f":"IFERROR('MMA Rev-Exp Region 8'!$L$52/'MMA Rev-Exp Region 8'!$L$9, 0)","v":{"v":0,"d":"$0.00"}},{"$f":"IFERROR('MMA Rev-Exp Region 8'!$M$52/'MMA Rev-Exp Region 8'!$M$9, 0)","v":{"v":0,"d":"$0.00"}},{"$f":"IFERROR('MMA Rev-Exp Region 8'!$N$52/'MMA Rev-Exp Region 8'!$N$9, 0)","v":{"v":0,"d":"$0.00"}}]
["MMA",null,null,2016,"2016-12-31","Q1","2017-03-31","Region 8","Operating Expense","Medical Benefits Expense","Transportation Services",7.3,"Ending IBNP for Transportation",{"$f":"IFERROR('MMA Rev-Exp Region 8'!$D$53/'MMA Rev-Exp Region 8'!$D$9, 0)","v":{"v":0,"d":"$0.00"}},{"$f":"IFERROR('MMA Rev-Exp Region 8'!$E$53/'MMA Rev-Exp Region 8'!$E$9, 0)","v":{"v":0,"d":"$0.00"}},{"$f":"IFERROR('MMA Rev-Exp Region 8'!$F$53/'MMA Rev-Exp Region 8'!$F$9, 0)","v":{"v":0,"d":"$0.00"}},{"$f":"IFERROR('MMA Rev-Exp Region 8'!$G$53/'MMA Rev-Exp Region 8'!$G$9, 0)","v":{"v":0,"d":"$0.00"}},{"$f":"IFERROR('MMA Rev-Exp Region 8'!$H$53/'MMA Rev-Exp Region 8'!$H$9, 0)","v":{"v":0,"d":"$0.00"}},{"$f":"IFERROR('MMA Rev-Exp Region 8'!$I$53/'MMA Rev-Exp Region 8'!$I$9, 0)","v":{"v":0,"d":"$0.00"}},{"$f":"IFERROR('MMA Rev-Exp Region 8'!$J$53/'MMA Rev-Exp Region 8'!$J$9, 0)","v":{"v":0,"d":"$0.00"}},{"$f":"IFERROR('MMA Rev-Exp Region 8'!$K$53/'MMA Rev-Exp Region 8'!$K$9, 0)","v":{"v":0,"d":"$0.00"}},{"$f":"IFERROR('MMA Rev-Exp Region 8'!$L$53/'MMA Rev-Exp Region 8'!$L$9, 0)","v":{"v":0,"d":"$0.00"}},{"$f":"IFERROR('MMA Rev-Exp Region 8'!$M$53/'MMA Rev-Exp Region 8'!$M$9, 0)","v":{"v":0,"d":"$0.00"}},{"$f":"IFERROR('MMA Rev-Exp Region 8'!$N$53/'MMA Rev-Exp Region 8'!$N$9, 0)","v":{"v":0,"d":"$0.00"}}]
["MMA",null,null,2016,"2016-12-31","Q1","2017-03-31","Region 8","Operating Expense","Medical Benefits Expense","Transportation Services","7.4","Transportation Settlements",{"$f":"IFERROR('MMA Rev-Exp Region 8'!$D$54/'MMA Rev-Exp Region 8'!$D$9, 0)","v":{"v":0,"d":"$0.00"}},{"$f":"IFERROR('MMA Rev-Exp Region 8'!$E$54/'MMA Rev-Exp Region 8'!$E$9, 0)","v":{"v":0,"d":"$0.00"}},{"$f":"IFERROR('MMA Rev-Exp Region 8'!$F$54/'MMA Rev-Exp Region 8'!$F$9, 0)","v":{"v":0,"d":"$0.00"}},{"$f":"IFERROR('MMA Rev-Exp Region 8'!$G$54/'MMA Rev-Exp Region 8'!$G$9, 0)","v":{"v":0,"d":"$0.00"}},{"$f":"IFERROR('MMA Rev-Exp Region 8'!$H$54/'MMA Rev-Exp Region 8'!$H$9, 0)","v":{"v":0,"d":"$0.00"}},{"$f":"IFERROR('MMA Rev-Exp Region 8'!$I$54/'MMA Rev-Exp Region 8'!$I$9, 0)","v":{"v":0,"d":"$0.00"}},{"$f":"IFERROR('MMA Rev-Exp Region 8'!$J$54/'MMA Rev-Exp Region 8'!$J$9, 0)","v":{"v":0,"d":"$0.00"}},{"$f":"IFERROR('MMA Rev-Exp Region 8'!$K$54/'MMA Rev-Exp Region 8'!$K$9, 0)","v":{"v":0,"d":"$0.00"}},{"$f":"IFERROR('MMA Rev-Exp Region 8'!$L$54/'MMA Rev-Exp Region 8'!$L$9, 0)","v":{"v":0,"d":"$0.00"}},{"$f":"IFERROR('MMA Rev-Exp Region 8'!$M$54/'MMA Rev-Exp Region 8'!$M$9, 0)","v":{"v":0,"d":"$0.00"}},{"$f":"IFERROR('MMA Rev-Exp Region 8'!$N$54/'MMA Rev-Exp Region 8'!$N$9, 0)","v":{"v":0,"d":"$0.00"}}]
["MMA",null,null,2016,"2016-12-31","Q1","2017-03-31","Region 8","Operating Expense","Medical Benefits Expense","Pharmacy Services",8.1,"Prescription Drugs FFS",{"$f":"IFERROR('MMA Rev-Exp Region 8'!$D$56/'MMA Rev-Exp Region 8'!$D$9, 0)","v":{"v":0,"d":"$0.00"}},{"$f":"IFERROR('MMA Rev-Exp Region 8'!$E$56/'MMA Rev-Exp Region 8'!$E$9, 0)","v":{"v":0,"d":"$0.00"}},{"$f":"IFERROR('MMA Rev-Exp Region 8'!$F$56/'MMA Rev-Exp Region 8'!$F$9, 0)","v":{"v":0,"d":"$0.00"}},{"$f":"IFERROR('MMA Rev-Exp Region 8'!$G$56/'MMA Rev-Exp Region 8'!$G$9, 0)","v":{"v":0,"d":"$0.00"}},{"$f":"IFERROR('MMA Rev-Exp Region 8'!$H$56/'MMA Rev-Exp Region 8'!$H$9, 0)","v":{"v":0,"d":"$0.00"}},{"$f":"IFERROR('MMA Rev-Exp Region 8'!$I$56/'MMA Rev-Exp Region 8'!$I$9, 0)","v":{"v":0,"d":"$0.00"}},{"$f":"IFERROR('MMA Rev-Exp Region 8'!$J$56/'MMA Rev-Exp Region 8'!$J$9, 0)","v":{"v":0,"d":"$0.00"}},{"$f":"IFERROR('MMA Rev-Exp Region 8'!$K$56/'MMA Rev-Exp Region 8'!$K$9, 0)","v":{"v":0,"d":"$0.00"}},{"$f":"IFERROR('MMA Rev-Exp Region 8'!$L$56/'MMA Rev-Exp Region 8'!$L$9, 0)","v":{"v":0,"d":"$0.00"}},{"$f":"IFERROR('MMA Rev-Exp Region 8'!$M$56/'MMA Rev-Exp Region 8'!$M$9, 0)","v":{"v":0,"d":"$0.00"}},{"$f":"IFERROR('MMA Rev-Exp Region 8'!$N$56/'MMA Rev-Exp Region 8'!$N$9, 0)","v":{"v":0,"d":"$0.00"}}]
["MMA",null,null,2016,"2016-12-31","Q1","2017-03-31","Region 8","Operating Expense","Medical Benefits Expense","Pharmacy Services","8.2","Hepatitis C Prescription Drug FFS",{"$f":"IFERROR('MMA Rev-Exp Region 8'!$D$57/'MMA Rev-Exp Region 8'!$D$9, 0)","v":{"v":0,"d":"$0.00"}},{"$f":"IFERROR('MMA Rev-Exp Region 8'!$E$57/'MMA Rev-Exp Region 8'!$E$9, 0)","v":{"v":0,"d":"$0.00"}},{"$f":"IFERROR('MMA Rev-Exp Region 8'!$F$57/'MMA Rev-Exp Region 8'!$F$9, 0)","v":{"v":0,"d":"$0.00"}},{"$f":"IFERROR('MMA Rev-Exp Region 8'!$G$57/'MMA Rev-Exp Region 8'!$G$9, 0)","v":{"v":0,"d":"$0.00"}},{"$f":"IFERROR('MMA Rev-Exp Region 8'!$H$57/'MMA Rev-Exp Region 8'!$H$9, 0)","v":{"v":0,"d":"$0.00"}},{"$f":"IFERROR('MMA Rev-Exp Region 8'!$I$57/'MMA Rev-Exp Region 8'!$I$9, 0)","v":{"v":0,"d":"$0.00"}},{"$f":"IFERROR('MMA Rev-Exp Region 8'!$J$57/'MMA Rev-Exp Region 8'!$J$9, 0)","v":{"v":0,"d":"$0.00"}},{"$f":"IFERROR('MMA Rev-Exp Region 8'!$K$57/'MMA Rev-Exp Region 8'!$K$9, 0)","v":{"v":0,"d":"$0.00"}},{"$f":"IFERROR('MMA Rev-Exp Region 8'!$L$57/'MMA Rev-Exp Region 8'!$L$9, 0)","v":{"v":0,"d":"$0.00"}},{"$f":"IFERROR('MMA Rev-Exp Region 8'!$M$57/'MMA Rev-Exp Region 8'!$M$9, 0)","v":{"v":0,"d":"$0.00"}},{"$f":"IFERROR('MMA Rev-Exp Region 8'!$N$57/'MMA Rev-Exp Region 8'!$N$9, 0)","v":{"v":0,"d":"$0.00"}}]
["MMA",null,null,2016,"2016-12-31","Q1","2017-03-31","Region 8","Operating Expense","Medical Benefits Expense","Pharmacy Services","8.3","Ending IBNP for Prescription Drugs",{"$f":"IFERROR('MMA Rev-Exp Region 8'!$D$58/'MMA Rev-Exp Region 8'!$D$9, 0)","v":{"v":0,"d":"$0.00"}},{"$f":"IFERROR('MMA Rev-Exp Region 8'!$E$58/'MMA Rev-Exp Region 8'!$E$9, 0)","v":{"v":0,"d":"$0.00"}},{"$f":"IFERROR('MMA Rev-Exp Region 8'!$F$58/'MMA Rev-Exp Region 8'!$F$9, 0)","v":{"v":0,"d":"$0.00"}},{"$f":"IFERROR('MMA Rev-Exp Region 8'!$G$58/'MMA Rev-Exp Region 8'!$G$9, 0)","v":{"v":0,"d":"$0.00"}},{"$f":"IFERROR('MMA Rev-Exp Region 8'!$H$58/'MMA Rev-Exp Region 8'!$H$9, 0)","v":{"v":0,"d":"$0.00"}},{"$f":"IFERROR('MMA Rev-Exp Region 8'!$I$58/'MMA Rev-Exp Region 8'!$I$9, 0)","v":{"v":0,"d":"$0.00"}},{"$f":"IFERROR('MMA Rev-Exp Region 8'!$J$58/'MMA Rev-Exp Region 8'!$J$9, 0)","v":{"v":0,"d":"$0.00"}},{"$f":"IFERROR('MMA Rev-Exp Region 8'!$K$58/'MMA Rev-Exp Region 8'!$K$9, 0)","v":{"v":0,"d":"$0.00"}},{"$f":"IFERROR('MMA Rev-Exp Region 8'!$L$58/'MMA Rev-Exp Region 8'!$L$9, 0)","v":{"v":0,"d":"$0.00"}},{"$f":"IFERROR('MMA Rev-Exp Region 8'!$M$58/'MMA Rev-Exp Region 8'!$M$9, 0)","v":{"v":0,"d":"$0.00"}},{"$f":"IFERROR('MMA Rev-Exp Region 8'!$N$58/'MMA Rev-Exp Region 8'!$N$9, 0)","v":{"v":0,"d":"$0.00"}}]
["MMA",null,null,2016,"2016-12-31","Q1","2017-03-31","Region 8","Operating Expense","Medical Benefits Expense","Pharmacy Services","8.4","Prescription Drug Rebates ",{"$f":"IFERROR('MMA Rev-Exp Region 8'!$D$59/'MMA Rev-Exp Region 8'!$D$9, 0)","v":{"v":0,"d":"$0.00"}},{"$f":"IFERROR('MMA Rev-Exp Region 8'!$E$59/'MMA Rev-Exp Region 8'!$E$9, 0)","v":{"v":0,"d":"$0.00"}},{"$f":"IFERROR('MMA Rev-Exp Region 8'!$F$59/'MMA Rev-Exp Region 8'!$F$9, 0)","v":{"v":0,"d":"$0.00"}},{"$f":"IFERROR('MMA Rev-Exp Region 8'!$G$59/'MMA Rev-Exp Region 8'!$G$9, 0)","v":{"v":0,"d":"$0.00"}},{"$f":"IFERROR('MMA Rev-Exp Region 8'!$H$59/'MMA Rev-Exp Region 8'!$H$9, 0)","v":{"v":0,"d":"$0.00"}},{"$f":"IFERROR('MMA Rev-Exp Region 8'!$I$59/'MMA Rev-Exp Region 8'!$I$9, 0)","v":{"v":0,"d":"$0.00"}},{"$f":"IFERROR('MMA Rev-Exp Region 8'!$J$59/'MMA Rev-Exp Region 8'!$J$9, 0)","v":{"v":0,"d":"$0.00"}},{"$f":"IFERROR('MMA Rev-Exp Region 8'!$K$59/'MMA Rev-Exp Region 8'!$K$9, 0)","v":{"v":0,"d":"$0.00"}},{"$f":"IFERROR('MMA Rev-Exp Region 8'!$L$59/'MMA Rev-Exp Region 8'!$L$9, 0)","v":{"v":0,"d":"$0.00"}},{"$f":"IFERROR('MMA Rev-Exp Region 8'!$M$59/'MMA Rev-Exp Region 8'!$M$9, 0)","v":{"v":0,"d":"$0.00"}},{"$f":"IFERROR('MMA Rev-Exp Region 8'!$N$59/'MMA Rev-Exp Region 8'!$N$9, 0)","v":{"v":0,"d":"$0.00"}}]
["MMA",null,null,2016,"2016-12-31","Q1","2017-03-31","Region 8","Operating Expense","Medical Benefits Expense","Pharmacy Services","8.5","Ending accrual for Rebates receivable",{"$f":"IFERROR('MMA Rev-Exp Region 8'!$D$60/'MMA Rev-Exp Region 8'!$D$9, 0)","v":{"v":0,"d":"$0.00"}},{"$f":"IFERROR('MMA Rev-Exp Region 8'!$E$60/'MMA Rev-Exp Region 8'!$E$9, 0)","v":{"v":0,"d":"$0.00"}},{"$f":"IFERROR('MMA Rev-Exp Region 8'!$F$60/'MMA Rev-Exp Region 8'!$F$9, 0)","v":{"v":0,"d":"$0.00"}},{"$f":"IFERROR('MMA Rev-Exp Region 8'!$G$60/'MMA Rev-Exp Region 8'!$G$9, 0)","v":{"v":0,"d":"$0.00"}},{"$f":"IFERROR('MMA Rev-Exp Region 8'!$H$60/'MMA Rev-Exp Region 8'!$H$9, 0)","v":{"v":0,"d":"$0.00"}},{"$f":"IFERROR('MMA Rev-Exp Region 8'!$I$60/'MMA Rev-Exp Region 8'!$I$9, 0)","v":{"v":0,"d":"$0.00"}},{"$f":"IFERROR('MMA Rev-Exp Region 8'!$J$60/'MMA Rev-Exp Region 8'!$J$9, 0)","v":{"v":0,"d":"$0.00"}},{"$f":"IFERROR('MMA Rev-Exp Region 8'!$K$60/'MMA Rev-Exp Region 8'!$K$9, 0)","v":{"v":0,"d":"$0.00"}},{"$f":"IFERROR('MMA Rev-Exp Region 8'!$L$60/'MMA Rev-Exp Region 8'!$L$9, 0)","v":{"v":0,"d":"$0.00"}},{"$f":"IFERROR('MMA Rev-Exp Region 8'!$M$60/'MMA Rev-Exp Region 8'!$M$9, 0)","v":{"v":0,"d":"$0.00"}},{"$f":"IFERROR('MMA Rev-Exp Region 8'!$N$60/'MMA Rev-Exp Region 8'!$N$9, 0)","v":{"v":0,"d":"$0.00"}}]
["MMA",null,null,2016,"2016-12-31","Q1","2017-03-31","Region 8","Operating Expense","Medical Benefits Expense","Pharmacy Services","8.6","Prescription Drugs Subcapitation",{"$f":"IFERROR('MMA Rev-Exp Region 8'!$D$61/'MMA Rev-Exp Region 8'!$D$9, 0)","v":{"v":0,"d":"$0.00"}},{"$f":"IFERROR('MMA Rev-Exp Region 8'!$E$61/'MMA Rev-Exp Region 8'!$E$9, 0)","v":{"v":0,"d":"$0.00"}},{"$f":"IFERROR('MMA Rev-Exp Region 8'!$F$61/'MMA Rev-Exp Region 8'!$F$9, 0)","v":{"v":0,"d":"$0.00"}},{"$f":"IFERROR('MMA Rev-Exp Region 8'!$G$61/'MMA Rev-Exp Region 8'!$G$9, 0)","v":{"v":0,"d":"$0.00"}},{"$f":"IFERROR('MMA Rev-Exp Region 8'!$H$61/'MMA Rev-Exp Region 8'!$H$9, 0)","v":{"v":0,"d":"$0.00"}},{"$f":"IFERROR('MMA Rev-Exp Region 8'!$I$61/'MMA Rev-Exp Region 8'!$I$9, 0)","v":{"v":0,"d":"$0.00"}},{"$f":"IFERROR('MMA Rev-Exp Region 8'!$J$61/'MMA Rev-Exp Region 8'!$J$9, 0)","v":{"v":0,"d":"$0.00"}},{"$f":"IFERROR('MMA Rev-Exp Region 8'!$K$61/'MMA Rev-Exp Region 8'!$K$9, 0)","v":{"v":0,"d":"$0.00"}},{"$f":"IFERROR('MMA Rev-Exp Region 8'!$L$61/'MMA Rev-Exp Region 8'!$L$9, 0)","v":{"v":0,"d":"$0.00"}},{"$f":"IFERROR('MMA Rev-Exp Region 8'!$M$61/'MMA Rev-Exp Region 8'!$M$9, 0)","v":{"v":0,"d":"$0.00"}},{"$f":"IFERROR('MMA Rev-Exp Region 8'!$N$61/'MMA Rev-Exp Region 8'!$N$9, 0)","v":{"v":0,"d":"$0.00"}}]
["MMA",null,null,2016,"2016-12-31","Q1","2017-03-31","Region 8","Operating Expense","Medical Benefits Expense","Pharmacy Services","8.7","Prescription Drug Settlements",{"$f":"IFERROR('MMA Rev-Exp Region 8'!$D$62/'MMA Rev-Exp Region 8'!$D$9, 0)","v":{"v":0,"d":"$0.00"}},{"$f":"IFERROR('MMA Rev-Exp Region 8'!$E$62/'MMA Rev-Exp Region 8'!$E$9, 0)","v":{"v":0,"d":"$0.00"}},{"$f":"IFERROR('MMA Rev-Exp Region 8'!$F$62/'MMA Rev-Exp Region 8'!$F$9, 0)","v":{"v":0,"d":"$0.00"}},{"$f":"IFERROR('MMA Rev-Exp Region 8'!$G$62/'MMA Rev-Exp Region 8'!$G$9, 0)","v":{"v":0,"d":"$0.00"}},{"$f":"IFERROR('MMA Rev-Exp Region 8'!$H$62/'MMA Rev-Exp Region 8'!$H$9, 0)","v":{"v":0,"d":"$0.00"}},{"$f":"IFERROR('MMA Rev-Exp Region 8'!$I$62/'MMA Rev-Exp Region 8'!$I$9, 0)","v":{"v":0,"d":"$0.00"}},{"$f":"IFERROR('MMA Rev-Exp Region 8'!$J$62/'MMA Rev-Exp Region 8'!$J$9, 0)","v":{"v":0,"d":"$0.00"}},{"$f":"IFERROR('MMA Rev-Exp Region 8'!$K$62/'MMA Rev-Exp Region 8'!$K$9, 0)","v":{"v":0,"d":"$0.00"}},{"$f":"IFERROR('MMA Rev-Exp Region 8'!$L$62/'MMA Rev-Exp Region 8'!$L$9, 0)","v":{"v":0,"d":"$0.00"}},{"$f":"IFERROR('MMA Rev-Exp Region 8'!$M$62/'MMA Rev-Exp Region 8'!$M$9, 0)","v":{"v":0,"d":"$0.00"}},{"$f":"IFERROR('MMA Rev-Exp Region 8'!$N$62/'MMA Rev-Exp Region 8'!$N$9, 0)","v":{"v":0,"d":"$0.00"}}]
["MMA",null,null,2016,"2016-12-31","Q1","2017-03-31","Region 8","Operating Expense","Medical Benefits Expense","Other MMA Services",9.1,"Home Health, Private Duty Nursing, Personal Care FFS",{"$f":"IFERROR('MMA Rev-Exp Region 8'!$D$64/'MMA Rev-Exp Region 8'!$D$9, 0)","v":{"v":0,"d":"$0.00"}},{"$f":"IFERROR('MMA Rev-Exp Region 8'!$E$64/'MMA Rev-Exp Region 8'!$E$9, 0)","v":{"v":0,"d":"$0.00"}},{"$f":"IFERROR('MMA Rev-Exp Region 8'!$F$64/'MMA Rev-Exp Region 8'!$F$9, 0)","v":{"v":0,"d":"$0.00"}},{"$f":"IFERROR('MMA Rev-Exp Region 8'!$G$64/'MMA Rev-Exp Region 8'!$G$9, 0)","v":{"v":0,"d":"$0.00"}},{"$f":"IFERROR('MMA Rev-Exp Region 8'!$H$64/'MMA Rev-Exp Region 8'!$H$9, 0)","v":{"v":0,"d":"$0.00"}},{"$f":"IFERROR('MMA Rev-Exp Region 8'!$I$64/'MMA Rev-Exp Region 8'!$I$9, 0)","v":{"v":0,"d":"$0.00"}},{"$f":"IFERROR('MMA Rev-Exp Region 8'!$J$64/'MMA Rev-Exp Region 8'!$J$9, 0)","v":{"v":0,"d":"$0.00"}},{"$f":"IFERROR('MMA Rev-Exp Region 8'!$K$64/'MMA Rev-Exp Region 8'!$K$9, 0)","v":{"v":0,"d":"$0.00"}},{"$f":"IFERROR('MMA Rev-Exp Region 8'!$L$64/'MMA Rev-Exp Region 8'!$L$9, 0)","v":{"v":0,"d":"$0.00"}},{"$f":"IFERROR('MMA Rev-Exp Region 8'!$M$64/'MMA Rev-Exp Region 8'!$M$9, 0)","v":{"v":0,"d":"$0.00"}},{"$f":"IFERROR('MMA Rev-Exp Region 8'!$N$64/'MMA Rev-Exp Region 8'!$N$9, 0)","v":{"v":0,"d":"$0.00"}}]
["MMA",null,null,2016,"2016-12-31","Q1","2017-03-31","Region 8","Operating Expense","Medical Benefits Expense","Other MMA Services","9.2","Hospice FFS",{"$f":"IFERROR('MMA Rev-Exp Region 8'!$D$65/'MMA Rev-Exp Region 8'!$D$9, 0)","v":{"v":0,"d":"$0.00"}},{"$f":"IFERROR('MMA Rev-Exp Region 8'!$E$65/'MMA Rev-Exp Region 8'!$E$9, 0)","v":{"v":0,"d":"$0.00"}},{"$f":"IFERROR('MMA Rev-Exp Region 8'!$F$65/'MMA Rev-Exp Region 8'!$F$9, 0)","v":{"v":0,"d":"$0.00"}},{"$f":"IFERROR('MMA Rev-Exp Region 8'!$G$65/'MMA Rev-Exp Region 8'!$G$9, 0)","v":{"v":0,"d":"$0.00"}},{"$f":"IFERROR('MMA Rev-Exp Region 8'!$H$65/'MMA Rev-Exp Region 8'!$H$9, 0)","v":{"v":0,"d":"$0.00"}},{"$f":"IFERROR('MMA Rev-Exp Region 8'!$I$65/'MMA Rev-Exp Region 8'!$I$9, 0)","v":{"v":0,"d":"$0.00"}},{"$f":"IFERROR('MMA Rev-Exp Region 8'!$J$65/'MMA Rev-Exp Region 8'!$J$9, 0)","v":{"v":0,"d":"$0.00"}},{"$f":"IFERROR('MMA Rev-Exp Region 8'!$K$65/'MMA Rev-Exp Region 8'!$K$9, 0)","v":{"v":0,"d":"$0.00"}},{"$f":"IFERROR('MMA Rev-Exp Region 8'!$L$65/'MMA Rev-Exp Region 8'!$L$9, 0)","v":{"v":0,"d":"$0.00"}},{"$f":"IFERROR('MMA Rev-Exp Region 8'!$M$65/'MMA Rev-Exp Region 8'!$M$9, 0)","v":{"v":0,"d":"$0.00"}},{"$f":"IFERROR('MMA Rev-Exp Region 8'!$N$65/'MMA Rev-Exp Region 8'!$N$9, 0)","v":{"v":0,"d":"$0.00"}}]
["MMA",null,null,2016,"2016-12-31","Q1","2017-03-31","Region 8","Operating Expense","Medical Benefits Expense","Other MMA Services","9.3","DME FFS",{"$f":"IFERROR('MMA Rev-Exp Region 8'!$D$66/'MMA Rev-Exp Region 8'!$D$9, 0)","v":{"v":0,"d":"$0.00"}},{"$f":"IFERROR('MMA Rev-Exp Region 8'!$E$66/'MMA Rev-Exp Region 8'!$E$9, 0)","v":{"v":0,"d":"$0.00"}},{"$f":"IFERROR('MMA Rev-Exp Region 8'!$F$66/'MMA Rev-Exp Region 8'!$F$9, 0)","v":{"v":0,"d":"$0.00"}},{"$f":"IFERROR('MMA Rev-Exp Region 8'!$G$66/'MMA Rev-Exp Region 8'!$G$9, 0)","v":{"v":0,"d":"$0.00"}},{"$f":"IFERROR('MMA Rev-Exp Region 8'!$H$66/'MMA Rev-Exp Region 8'!$H$9, 0)","v":{"v":0,"d":"$0.00"}},{"$f":"IFERROR('MMA Rev-Exp Region 8'!$I$66/'MMA Rev-Exp Region 8'!$I$9, 0)","v":{"v":0,"d":"$0.00"}},{"$f":"IFERROR('MMA Rev-Exp Region 8'!$J$66/'MMA Rev-Exp Region 8'!$J$9, 0)","v":{"v":0,"d":"$0.00"}},{"$f":"IFERROR('MMA Rev-Exp Region 8'!$K$66/'MMA Rev-Exp Region 8'!$K$9, 0)","v":{"v":0,"d":"$0.00"}},{"$f":"IFERROR('MMA Rev-Exp Region 8'!$L$66/'MMA Rev-Exp Region 8'!$L$9, 0)","v":{"v":0,"d":"$0.00"}},{"$f":"IFERROR('MMA Rev-Exp Region 8'!$M$66/'MMA Rev-Exp Region 8'!$M$9, 0)","v":{"v":0,"d":"$0.00"}},{"$f":"IFERROR('MMA Rev-Exp Region 8'!$N$66/'MMA Rev-Exp Region 8'!$N$9, 0)","v":{"v":0,"d":"$0.00"}}]
["MMA",null,null,2016,"2016-12-31","Q1","2017-03-31","Region 8","Operating Expense","Medical Benefits Expense","Other MMA Services","9.4","Other State Plan Services FFS",{"$f":"IFERROR('MMA Rev-Exp Region 8'!$D$67/'MMA Rev-Exp Region 8'!$D$9, 0)","v":{"v":0,"d":"$0.00"}},{"$f":"IFERROR('MMA Rev-Exp Region 8'!$E$67/'MMA Rev-Exp Region 8'!$E$9, 0)","v":{"v":0,"d":"$0.00"}},{"$f":"IFERROR('MMA Rev-Exp Region 8'!$F$67/'MMA Rev-Exp Region 8'!$F$9, 0)","v":{"v":0,"d":"$0.00"}},{"$f":"IFERROR('MMA Rev-Exp Region 8'!$G$67/'MMA Rev-Exp Region 8'!$G$9, 0)","v":{"v":0,"d":"$0.00"}},{"$f":"IFERROR('MMA Rev-Exp Region 8'!$H$67/'MMA Rev-Exp Region 8'!$H$9, 0)","v":{"v":0,"d":"$0.00"}},{"$f":"IFERROR('MMA Rev-Exp Region 8'!$I$67/'MMA Rev-Exp Region 8'!$I$9, 0)","v":{"v":0,"d":"$0.00"}},{"$f":"IFERROR('MMA Rev-Exp Region 8'!$J$67/'MMA Rev-Exp Region 8'!$J$9, 0)","v":{"v":0,"d":"$0.00"}},{"$f":"IFERROR('MMA Rev-Exp Region 8'!$K$67/'MMA Rev-Exp Region 8'!$K$9, 0)","v":{"v":0,"d":"$0.00"}},{"$f":"IFERROR('MMA Rev-Exp Region 8'!$L$67/'MMA Rev-Exp Region 8'!$L$9, 0)","v":{"v":0,"d":"$0.00"}},{"$f":"IFERROR('MMA Rev-Exp Region 8'!$M$67/'MMA Rev-Exp Region 8'!$M$9, 0)","v":{"v":0,"d":"$0.00"}},{"$f":"IFERROR('MMA Rev-Exp Region 8'!$N$67/'MMA Rev-Exp Region 8'!$N$9, 0)","v":{"v":0,"d":"$0.00"}}]
["MMA",null,null,2016,"2016-12-31","Q1","2017-03-31","Region 8","Operating Expense","Medical Benefits Expense","Other MMA Services","9.5","Other Services Subcapitation",{"$f":"IFERROR('MMA Rev-Exp Region 8'!$D$68/'MMA Rev-Exp Region 8'!$D$9, 0)","v":{"v":0,"d":"$0.00"}},{"$f":"IFERROR('MMA Rev-Exp Region 8'!$E$68/'MMA Rev-Exp Region 8'!$E$9, 0)","v":{"v":0,"d":"$0.00"}},{"$f":"IFERROR('MMA Rev-Exp Region 8'!$F$68/'MMA Rev-Exp Region 8'!$F$9, 0)","v":{"v":0,"d":"$0.00"}},{"$f":"IFERROR('MMA Rev-Exp Region 8'!$G$68/'MMA Rev-Exp Region 8'!$G$9, 0)","v":{"v":0,"d":"$0.00"}},{"$f":"IFERROR('MMA Rev-Exp Region 8'!$H$68/'MMA Rev-Exp Region 8'!$H$9, 0)","v":{"v":0,"d":"$0.00"}},{"$f":"IFERROR('MMA Rev-Exp Region 8'!$I$68/'MMA Rev-Exp Region 8'!$I$9, 0)","v":{"v":0,"d":"$0.00"}},{"$f":"IFERROR('MMA Rev-Exp Region 8'!$J$68/'MMA Rev-Exp Region 8'!$J$9, 0)","v":{"v":0,"d":"$0.00"}},{"$f":"IFERROR('MMA Rev-Exp Region 8'!$K$68/'MMA Rev-Exp Region 8'!$K$9, 0)","v":{"v":0,"d":"$0.00"}},{"$f":"IFERROR('MMA Rev-Exp Region 8'!$L$68/'MMA Rev-Exp Region 8'!$L$9, 0)","v":{"v":0,"d":"$0.00"}},{"$f":"IFERROR('MMA Rev-Exp Region 8'!$M$68/'MMA Rev-Exp Region 8'!$M$9, 0)","v":{"v":0,"d":"$0.00"}},{"$f":"IFERROR('MMA Rev-Exp Region 8'!$N$68/'MMA Rev-Exp Region 8'!$N$9, 0)","v":{"v":0,"d":"$0.00"}}]
["MMA",null,null,2016,"2016-12-31","Q1","2017-03-31","Region 8","Operating Expense","Medical Benefits Expense","Other MMA Services","9.6","Ending IBNP for Other Services",{"$f":"IFERROR('MMA Rev-Exp Region 8'!$D$69/'MMA Rev-Exp Region 8'!$D$9, 0)","v":{"v":0,"d":"$0.00"}},{"$f":"IFERROR('MMA Rev-Exp Region 8'!$E$69/'MMA Rev-Exp Region 8'!$E$9, 0)","v":{"v":0,"d":"$0.00"}},{"$f":"IFERROR('MMA Rev-Exp Region 8'!$F$69/'MMA Rev-Exp Region 8'!$F$9, 0)","v":{"v":0,"d":"$0.00"}},{"$f":"IFERROR('MMA Rev-Exp Region 8'!$G$69/'MMA Rev-Exp Region 8'!$G$9, 0)","v":{"v":0,"d":"$0.00"}},{"$f":"IFERROR('MMA Rev-Exp Region 8'!$H$69/'MMA Rev-Exp Region 8'!$H$9, 0)","v":{"v":0,"d":"$0.00"}},{"$f":"IFERROR('MMA Rev-Exp Region 8'!$I$69/'MMA Rev-Exp Region 8'!$I$9, 0)","v":{"v":0,"d":"$0.00"}},{"$f":"IFERROR('MMA Rev-Exp Region 8'!$J$69/'MMA Rev-Exp Region 8'!$J$9, 0)","v":{"v":0,"d":"$0.00"}},{"$f":"IFERROR('MMA Rev-Exp Region 8'!$K$69/'MMA Rev-Exp Region 8'!$K$9, 0)","v":{"v":0,"d":"$0.00"}},{"$f":"IFERROR('MMA Rev-Exp Region 8'!$L$69/'MMA Rev-Exp Region 8'!$L$9, 0)","v":{"v":0,"d":"$0.00"}},{"$f":"IFERROR('MMA Rev-Exp Region 8'!$M$69/'MMA Rev-Exp Region 8'!$M$9, 0)","v":{"v":0,"d":"$0.00"}},{"$f":"IFERROR('MMA Rev-Exp Region 8'!$N$69/'MMA Rev-Exp Region 8'!$N$9, 0)","v":{"v":0,"d":"$0.00"}}]
["MMA",null,null,2016,"2016-12-31","Q1","2017-03-31","Region 8","Operating Expense","Medical Benefits Expense","Other MMA Services","9.7","Other Services Settlements",{"$f":"IFERROR('MMA Rev-Exp Region 8'!$D$70/'MMA Rev-Exp Region 8'!$D$9, 0)","v":{"v":0,"d":"$0.00"}},{"$f":"IFERROR('MMA Rev-Exp Region 8'!$E$70/'MMA Rev-Exp Region 8'!$E$9, 0)","v":{"v":0,"d":"$0.00"}},{"$f":"IFERROR('MMA Rev-Exp Region 8'!$F$70/'MMA Rev-Exp Region 8'!$F$9, 0)","v":{"v":0,"d":"$0.00"}},{"$f":"IFERROR('MMA Rev-Exp Region 8'!$G$70/'MMA Rev-Exp Region 8'!$G$9, 0)","v":{"v":0,"d":"$0.00"}},{"$f":"IFERROR('MMA Rev-Exp Region 8'!$H$70/'MMA Rev-Exp Region 8'!$H$9, 0)","v":{"v":0,"d":"$0.00"}},{"$f":"IFERROR('MMA Rev-Exp Region 8'!$I$70/'MMA Rev-Exp Region 8'!$I$9, 0)","v":{"v":0,"d":"$0.00"}},{"$f":"IFERROR('MMA Rev-Exp Region 8'!$J$70/'MMA Rev-Exp Region 8'!$J$9, 0)","v":{"v":0,"d":"$0.00"}},{"$f":"IFERROR('MMA Rev-Exp Region 8'!$K$70/'MMA Rev-Exp Region 8'!$K$9, 0)","v":{"v":0,"d":"$0.00"}},{"$f":"IFERROR('MMA Rev-Exp Region 8'!$L$70/'MMA Rev-Exp Region 8'!$L$9, 0)","v":{"v":0,"d":"$0.00"}},{"$f":"IFERROR('MMA Rev-Exp Region 8'!$M$70/'MMA Rev-Exp Region 8'!$M$9, 0)","v":{"v":0,"d":"$0.00"}},{"$f":"IFERROR('MMA Rev-Exp Region 8'!$N$70/'MMA Rev-Exp Region 8'!$N$9, 0)","v":{"v":0,"d":"$0.00"}}]
["MMA",null,null,2016,"2016-12-31","Q1","2017-03-31","Region 8","Operating Expense","Medical Benefits Expense","Expanded Benefits","10.1","Expanded Benefits FFS",{"$f":"IFERROR('MMA Rev-Exp Region 8'!$D$72/'MMA Rev-Exp Region 8'!$D$9, 0)","v":{"v":0,"d":"$0.00"}},{"$f":"IFERROR('MMA Rev-Exp Region 8'!$E$72/'MMA Rev-Exp Region 8'!$E$9, 0)","v":{"v":0,"d":"$0.00"}},{"$f":"IFERROR('MMA Rev-Exp Region 8'!$F$72/'MMA Rev-Exp Region 8'!$F$9, 0)","v":{"v":0,"d":"$0.00"}},{"$f":"IFERROR('MMA Rev-Exp Region 8'!$G$72/'MMA Rev-Exp Region 8'!$G$9, 0)","v":{"v":0,"d":"$0.00"}},{"$f":"IFERROR('MMA Rev-Exp Region 8'!$H$72/'MMA Rev-Exp Region 8'!$H$9, 0)","v":{"v":0,"d":"$0.00"}},{"$f":"IFERROR('MMA Rev-Exp Region 8'!$I$72/'MMA Rev-Exp Region 8'!$I$9, 0)","v":{"v":0,"d":"$0.00"}},{"$f":"IFERROR('MMA Rev-Exp Region 8'!$J$72/'MMA Rev-Exp Region 8'!$J$9, 0)","v":{"v":0,"d":"$0.00"}},{"$f":"IFERROR('MMA Rev-Exp Region 8'!$K$72/'MMA Rev-Exp Region 8'!$K$9, 0)","v":{"v":0,"d":"$0.00"}},{"$f":"IFERROR('MMA Rev-Exp Region 8'!$L$72/'MMA Rev-Exp Region 8'!$L$9, 0)","v":{"v":0,"d":"$0.00"}},{"$f":"IFERROR('MMA Rev-Exp Region 8'!$M$72/'MMA Rev-Exp Region 8'!$M$9, 0)","v":{"v":0,"d":"$0.00"}},{"$f":"IFERROR('MMA Rev-Exp Region 8'!$N$72/'MMA Rev-Exp Region 8'!$N$9, 0)","v":{"v":0,"d":"$0.00"}}]
["MMA",null,null,2016,"2016-12-31","Q1","2017-03-31","Region 8","Operating Expense","Medical Benefits Expense","Expanded Benefits","10.2","Expanded benefits Subcapitation",{"$f":"IFERROR('MMA Rev-Exp Region 8'!$D$73/'MMA Rev-Exp Region 8'!$D$9, 0)","v":{"v":0,"d":"$0.00"}},{"$f":"IFERROR('MMA Rev-Exp Region 8'!$E$73/'MMA Rev-Exp Region 8'!$E$9, 0)","v":{"v":0,"d":"$0.00"}},{"$f":"IFERROR('MMA Rev-Exp Region 8'!$F$73/'MMA Rev-Exp Region 8'!$F$9, 0)","v":{"v":0,"d":"$0.00"}},{"$f":"IFERROR('MMA Rev-Exp Region 8'!$G$73/'MMA Rev-Exp Region 8'!$G$9, 0)","v":{"v":0,"d":"$0.00"}},{"$f":"IFERROR('MMA Rev-Exp Region 8'!$H$73/'MMA Rev-Exp Region 8'!$H$9, 0)","v":{"v":0,"d":"$0.00"}},{"$f":"IFERROR('MMA Rev-Exp Region 8'!$I$73/'MMA Rev-Exp Region 8'!$I$9, 0)","v":{"v":0,"d":"$0.00"}},{"$f":"IFERROR('MMA Rev-Exp Region 8'!$J$73/'MMA Rev-Exp Region 8'!$J$9, 0)","v":{"v":0,"d":"$0.00"}},{"$f":"IFERROR('MMA Rev-Exp Region 8'!$K$73/'MMA Rev-Exp Region 8'!$K$9, 0)","v":{"v":0,"d":"$0.00"}},{"$f":"IFERROR('MMA Rev-Exp Region 8'!$L$73/'MMA Rev-Exp Region 8'!$L$9, 0)","v":{"v":0,"d":"$0.00"}},{"$f":"IFERROR('MMA Rev-Exp Region 8'!$M$73/'MMA Rev-Exp Region 8'!$M$9, 0)","v":{"v":0,"d":"$0.00"}},{"$f":"IFERROR('MMA Rev-Exp Region 8'!$N$73/'MMA Rev-Exp Region 8'!$N$9, 0)","v":{"v":0,"d":"$0.00"}}]
["MMA",null,null,2016,"2016-12-31","Q1","2017-03-31","Region 8","Operating Expense","Medical Benefits Expense","Expanded Benefits","10.3","Ending IBNP for Expanded Benefits",{"$f":"IFERROR('MMA Rev-Exp Region 8'!$D$74/'MMA Rev-Exp Region 8'!$D$9, 0)","v":{"v":0,"d":"$0.00"}},{"$f":"IFERROR('MMA Rev-Exp Region 8'!$E$74/'MMA Rev-Exp Region 8'!$E$9, 0)","v":{"v":0,"d":"$0.00"}},{"$f":"IFERROR('MMA Rev-Exp Region 8'!$F$74/'MMA Rev-Exp Region 8'!$F$9, 0)","v":{"v":0,"d":"$0.00"}},{"$f":"IFERROR('MMA Rev-Exp Region 8'!$G$74/'MMA Rev-Exp Region 8'!$G$9, 0)","v":{"v":0,"d":"$0.00"}},{"$f":"IFERROR('MMA Rev-Exp Region 8'!$H$74/'MMA Rev-Exp Region 8'!$H$9, 0)","v":{"v":0,"d":"$0.00"}},{"$f":"IFERROR('MMA Rev-Exp Region 8'!$I$74/'MMA Rev-Exp Region 8'!$I$9, 0)","v":{"v":0,"d":"$0.00"}},{"$f":"IFERROR('MMA Rev-Exp Region 8'!$J$74/'MMA Rev-Exp Region 8'!$J$9, 0)","v":{"v":0,"d":"$0.00"}},{"$f":"IFERROR('MMA Rev-Exp Region 8'!$K$74/'MMA Rev-Exp Region 8'!$K$9, 0)","v":{"v":0,"d":"$0.00"}},{"$f":"IFERROR('MMA Rev-Exp Region 8'!$L$74/'MMA Rev-Exp Region 8'!$L$9, 0)","v":{"v":0,"d":"$0.00"}},{"$f":"IFERROR('MMA Rev-Exp Region 8'!$M$74/'MMA Rev-Exp Region 8'!$M$9, 0)","v":{"v":0,"d":"$0.00"}},{"$f":"IFERROR('MMA Rev-Exp Region 8'!$N$74/'MMA Rev-Exp Region 8'!$N$9, 0)","v":{"v":0,"d":"$0.00"}}]
["MMA",null,null,2016,"2016-12-31","Q1","2017-03-31","Region 8","Operating Expense","Medical Benefits Expense","Expanded Benefits","10.4","Expanded Benefits Settlements",{"$f":"IFERROR('MMA Rev-Exp Region 8'!$D$75/'MMA Rev-Exp Region 8'!$D$9, 0)","v":{"v":0,"d":"$0.00"}},{"$f":"IFERROR('MMA Rev-Exp Region 8'!$E$75/'MMA Rev-Exp Region 8'!$E$9, 0)","v":{"v":0,"d":"$0.00"}},{"$f":"IFERROR('MMA Rev-Exp Region 8'!$F$75/'MMA Rev-Exp Region 8'!$F$9, 0)","v":{"v":0,"d":"$0.00"}},{"$f":"IFERROR('MMA Rev-Exp Region 8'!$G$75/'MMA Rev-Exp Region 8'!$G$9, 0)","v":{"v":0,"d":"$0.00"}},{"$f":"IFERROR('MMA Rev-Exp Region 8'!$H$75/'MMA Rev-Exp Region 8'!$H$9, 0)","v":{"v":0,"d":"$0.00"}},{"$f":"IFERROR('MMA Rev-Exp Region 8'!$I$75/'MMA Rev-Exp Region 8'!$I$9, 0)","v":{"v":0,"d":"$0.00"}},{"$f":"IFERROR('MMA Rev-Exp Region 8'!$J$75/'MMA Rev-Exp Region 8'!$J$9, 0)","v":{"v":0,"d":"$0.00"}},{"$f":"IFERROR('MMA Rev-Exp Region 8'!$K$75/'MMA Rev-Exp Region 8'!$K$9, 0)","v":{"v":0,"d":"$0.00"}},{"$f":"IFERROR('MMA Rev-Exp Region 8'!$L$75/'MMA Rev-Exp Region 8'!$L$9, 0)","v":{"v":0,"d":"$0.00"}},{"$f":"IFERROR('MMA Rev-Exp Region 8'!$M$75/'MMA Rev-Exp Region 8'!$M$9, 0)","v":{"v":0,"d":"$0.00"}},{"$f":"IFERROR('MMA Rev-Exp Region 8'!$N$75/'MMA Rev-Exp Region 8'!$N$9, 0)","v":{"v":0,"d":"$0.00"}}]
["MMA",null,null,2016,"2016-12-31","Q1","2017-03-31","Region 8","Operating Expense","Medical Benefits Expense","Other Medical","11.5","TPL & Fraud/Abuse Recoveries",{"$f":"IFERROR('MMA Rev-Exp Region 8'!$D$81/'MMA Rev-Exp Region 8'!$D$9, 0)","v":{"v":0,"d":"$0.00"}},{"$f":"IFERROR('MMA Rev-Exp Region 8'!$E$81/'MMA Rev-Exp Region 8'!$E$9, 0)","v":{"v":0,"d":"$0.00"}},{"$f":"IFERROR('MMA Rev-Exp Region 8'!$F$81/'MMA Rev-Exp Region 8'!$F$9, 0)","v":{"v":0,"d":"$0.00"}},{"$f":"IFERROR('MMA Rev-Exp Region 8'!$G$81/'MMA Rev-Exp Region 8'!$G$9, 0)","v":{"v":0,"d":"$0.00"}},{"$f":"IFERROR('MMA Rev-Exp Region 8'!$H$81/'MMA Rev-Exp Region 8'!$H$9, 0)","v":{"v":0,"d":"$0.00"}},{"$f":"IFERROR('MMA Rev-Exp Region 8'!$I$81/'MMA Rev-Exp Region 8'!$I$9, 0)","v":{"v":0,"d":"$0.00"}},{"$f":"IFERROR('MMA Rev-Exp Region 8'!$J$81/'MMA Rev-Exp Region 8'!$J$9, 0)","v":{"v":0,"d":"$0.00"}},{"$f":"IFERROR('MMA Rev-Exp Region 8'!$K$81/'MMA Rev-Exp Region 8'!$K$9, 0)","v":{"v":0,"d":"$0.00"}},{"$f":"IFERROR('MMA Rev-Exp Region 8'!$L$81/'MMA Rev-Exp Region 8'!$L$9, 0)","v":{"v":0,"d":"$0.00"}},{"$f":"IFERROR('MMA Rev-Exp Region 8'!$M$81/'MMA Rev-Exp Region 8'!$M$9, 0)","v":{"v":0,"d":"$0.00"}},{"$f":"IFERROR('MMA Rev-Exp Region 8'!$N$81/'MMA Rev-Exp Region 8'!$N$9, 0)","v":{"v":0,"d":"$0.00"}}]
["MMA",null,null,2016,"2016-12-31","Q1","2017-03-31","Region 8","Operating Expense","Medical Benefits Expense","Other Medical","11.6.1","Premium Deficiency Reserve",{"$f":"IFERROR('MMA Rev-Exp Region 8'!$D$82/'MMA Rev-Exp Region 8'!$D$9, 0)","v":{"v":0,"d":"$0.00"}},{"$f":"IFERROR('MMA Rev-Exp Region 8'!$E$82/'MMA Rev-Exp Region 8'!$E$9, 0)","v":{"v":0,"d":"$0.00"}},{"$f":"IFERROR('MMA Rev-Exp Region 8'!$F$82/'MMA Rev-Exp Region 8'!$F$9, 0)","v":{"v":0,"d":"$0.00"}},{"$f":"IFERROR('MMA Rev-Exp Region 8'!$G$82/'MMA Rev-Exp Region 8'!$G$9, 0)","v":{"v":0,"d":"$0.00"}},{"$f":"IFERROR('MMA Rev-Exp Region 8'!$H$82/'MMA Rev-Exp Region 8'!$H$9, 0)","v":{"v":0,"d":"$0.00"}},{"$f":"IFERROR('MMA Rev-Exp Region 8'!$I$82/'MMA Rev-Exp Region 8'!$I$9, 0)","v":{"v":0,"d":"$0.00"}},{"$f":"IFERROR('MMA Rev-Exp Region 8'!$J$82/'MMA Rev-Exp Region 8'!$J$9, 0)","v":{"v":0,"d":"$0.00"}},{"$f":"IFERROR('MMA Rev-Exp Region 8'!$K$82/'MMA Rev-Exp Region 8'!$K$9, 0)","v":{"v":0,"d":"$0.00"}},{"$f":"IFERROR('MMA Rev-Exp Region 8'!$L$82/'MMA Rev-Exp Region 8'!$L$9, 0)","v":{"v":0,"d":"$0.00"}},{"$f":"IFERROR('MMA Rev-Exp Region 8'!$M$82/'MMA Rev-Exp Region 8'!$M$9, 0)","v":{"v":0,"d":"$0.00"}},{"$f":"IFERROR('MMA Rev-Exp Region 8'!$N$82/'MMA Rev-Exp Region 8'!$N$9, 0)","v":{"v":0,"d":"$0.00"}}]
["MMA",null,null,2016,"2016-12-31","Q1","2017-03-31","Region 8","Operating Expense","Medical Benefits Expense","Other Medical","11.8","Reinsurance Premiums",{"$f":"IFERROR('MMA Rev-Exp Region 8'!$D$84/'MMA Rev-Exp Region 8'!$D$9, 0)","v":{"v":0,"d":"$0.00"}},{"$f":"IFERROR('MMA Rev-Exp Region 8'!$E$84/'MMA Rev-Exp Region 8'!$E$9, 0)","v":{"v":0,"d":"$0.00"}},{"$f":"IFERROR('MMA Rev-Exp Region 8'!$F$84/'MMA Rev-Exp Region 8'!$F$9, 0)","v":{"v":0,"d":"$0.00"}},{"$f":"IFERROR('MMA Rev-Exp Region 8'!$G$84/'MMA Rev-Exp Region 8'!$G$9, 0)","v":{"v":0,"d":"$0.00"}},{"$f":"IFERROR('MMA Rev-Exp Region 8'!$H$84/'MMA Rev-Exp Region 8'!$H$9, 0)","v":{"v":0,"d":"$0.00"}},{"$f":"IFERROR('MMA Rev-Exp Region 8'!$I$84/'MMA Rev-Exp Region 8'!$I$9, 0)","v":{"v":0,"d":"$0.00"}},{"$f":"IFERROR('MMA Rev-Exp Region 8'!$J$84/'MMA Rev-Exp Region 8'!$J$9, 0)","v":{"v":0,"d":"$0.00"}},{"$f":"IFERROR('MMA Rev-Exp Region 8'!$K$84/'MMA Rev-Exp Region 8'!$K$9, 0)","v":{"v":0,"d":"$0.00"}},{"$f":"IFERROR('MMA Rev-Exp Region 8'!$L$84/'MMA Rev-Exp Region 8'!$L$9, 0)","v":{"v":0,"d":"$0.00"}},{"$f":"IFERROR('MMA Rev-Exp Region 8'!$M$84/'MMA Rev-Exp Region 8'!$M$9, 0)","v":{"v":0,"d":"$0.00"}},{"$f":"IFERROR('MMA Rev-Exp Region 8'!$N$84/'MMA Rev-Exp Region 8'!$N$9, 0)","v":{"v":0,"d":"$0.00"}}]
["MMA",null,null,2016,"2016-12-31","Q1","2017-03-31","Region 8","Operating Expense","Medical Benefits Expense","Other Medical","11.9","Reinsurance Recoveries",{"$f":"IFERROR('MMA Rev-Exp Region 8'!$D$85/'MMA Rev-Exp Region 8'!$D$9, 0)","v":{"v":0,"d":"$0.00"}},{"$f":"IFERROR('MMA Rev-Exp Region 8'!$E$85/'MMA Rev-Exp Region 8'!$E$9, 0)","v":{"v":0,"d":"$0.00"}},{"$f":"IFERROR('MMA Rev-Exp Region 8'!$F$85/'MMA Rev-Exp Region 8'!$F$9, 0)","v":{"v":0,"d":"$0.00"}},{"$f":"IFERROR('MMA Rev-Exp Region 8'!$G$85/'MMA Rev-Exp Region 8'!$G$9, 0)","v":{"v":0,"d":"$0.00"}},{"$f":"IFERROR('MMA Rev-Exp Region 8'!$H$85/'MMA Rev-Exp Region 8'!$H$9, 0)","v":{"v":0,"d":"$0.00"}},{"$f":"IFERROR('MMA Rev-Exp Region 8'!$I$85/'MMA Rev-Exp Region 8'!$I$9, 0)","v":{"v":0,"d":"$0.00"}},{"$f":"IFERROR('MMA Rev-Exp Region 8'!$J$85/'MMA Rev-Exp Region 8'!$J$9, 0)","v":{"v":0,"d":"$0.00"}},{"$f":"IFERROR('MMA Rev-Exp Region 8'!$K$85/'MMA Rev-Exp Region 8'!$K$9, 0)","v":{"v":0,"d":"$0.00"}},{"$f":"IFERROR('MMA Rev-Exp Region 8'!$L$85/'MMA Rev-Exp Region 8'!$L$9, 0)","v":{"v":0,"d":"$0.00"}},{"$f":"IFERROR('MMA Rev-Exp Region 8'!$M$85/'MMA Rev-Exp Region 8'!$M$9, 0)","v":{"v":0,"d":"$0.00"}},{"$f":"IFERROR('MMA Rev-Exp Region 8'!$N$85/'MMA Rev-Exp Region 8'!$N$9, 0)","v":{"v":0,"d":"$0.00"}}]
["MMA",null,null,2016,"2016-12-31","Q1","2017-03-31","Region 8","Operating Expense","Administrative Expense","Administrative","12.1","Salaries & Benefits",{"$f":"IFERROR('MMA Rev-Exp Region 8'!$D$90/'MMA Rev-Exp Region 8'!$D$9, 0)","v":{"v":0,"d":"$0.00"}},{"$f":"IFERROR('MMA Rev-Exp Region 8'!$E$90/'MMA Rev-Exp Region 8'!$D$9, 0)","v":{"v":0,"d":"$0.00"}},{"$f":"IFERROR('MMA Rev-Exp Region 8'!$F$90/'MMA Rev-Exp Region 8'!$D$9, 0)","v":{"v":0,"d":"$0.00"}},{"$f":"IFERROR('MMA Rev-Exp Region 8'!$G$90/'MMA Rev-Exp Region 8'!$G$9, 0)","v":{"v":0,"d":"$0.00"}},{"$f":"IFERROR('MMA Rev-Exp Region 8'!$H$90/'MMA Rev-Exp Region 8'!$H$9, 0)","v":{"v":0,"d":"$0.00"}},{"$f":"IFERROR('MMA Rev-Exp Region 8'!$I$90/'MMA Rev-Exp Region 8'!$I$9, 0)","v":{"v":0,"d":"$0.00"}},{"$f":"IFERROR('MMA Rev-Exp Region 8'!$J$90/'MMA Rev-Exp Region 8'!$J$9, 0)","v":{"v":0,"d":"$0.00"}},{"$f":"IFERROR('MMA Rev-Exp Region 8'!$K$90/'MMA Rev-Exp Region 8'!$K$9, 0)","v":{"v":0,"d":"$0.00"}},{"$f":"IFERROR('MMA Rev-Exp Region 8'!$L$90/'MMA Rev-Exp Region 8'!$L$9, 0)","v":{"v":0,"d":"$0.00"}},{"$f":"IFERROR('MMA Rev-Exp Region 8'!$M$90/'MMA Rev-Exp Region 8'!$M$9, 0)","v":{"v":0,"d":"$0.00"}},{"$f":"IFERROR('MMA Rev-Exp Region 8'!$N$90/'MMA Rev-Exp Region 8'!$N$9, 0)","v":{"v":0,"d":"$0.00"}}]
["MMA",null,null,2016,"2016-12-31","Q1","2017-03-31","Region 8","Operating Expense","Administrative Expense","Administrative","12.2","Administrative Services",{"$f":"IFERROR('MMA Rev-Exp Region 8'!$D$91/'MMA Rev-Exp Region 8'!$D$9, 0)","v":{"v":0,"d":"$0.00"}},{"$f":"IFERROR('MMA Rev-Exp Region 8'!$E$91/'MMA Rev-Exp Region 8'!$D$9, 0)","v":{"v":0,"d":"$0.00"}},{"$f":"IFERROR('MMA Rev-Exp Region 8'!$F$91/'MMA Rev-Exp Region 8'!$D$9, 0)","v":{"v":0,"d":"$0.00"}},{"$f":"IFERROR('MMA Rev-Exp Region 8'!$G$91/'MMA Rev-Exp Region 8'!$G$9, 0)","v":{"v":0,"d":"$0.00"}},{"$f":"IFERROR('MMA Rev-Exp Region 8'!$H$91/'MMA Rev-Exp Region 8'!$H$9, 0)","v":{"v":0,"d":"$0.00"}},{"$f":"IFERROR('MMA Rev-Exp Region 8'!$I$91/'MMA Rev-Exp Region 8'!$I$9, 0)","v":{"v":0,"d":"$0.00"}},{"$f":"IFERROR('MMA Rev-Exp Region 8'!$J$91/'MMA Rev-Exp Region 8'!$J$9, 0)","v":{"v":0,"d":"$0.00"}},{"$f":"IFERROR('MMA Rev-Exp Region 8'!$K$91/'MMA Rev-Exp Region 8'!$K$9, 0)","v":{"v":0,"d":"$0.00"}},{"$f":"IFERROR('MMA Rev-Exp Region 8'!$L$91/'MMA Rev-Exp Region 8'!$L$9, 0)","v":{"v":0,"d":"$0.00"}},{"$f":"IFERROR('MMA Rev-Exp Region 8'!$M$91/'MMA Rev-Exp Region 8'!$M$9, 0)","v":{"v":0,"d":"$0.00"}},{"$f":"IFERROR('MMA Rev-Exp Region 8'!$N$91/'MMA Rev-Exp Region 8'!$N$9, 0)","v":{"v":0,"d":"$0.00"}}]
["MMA",null,null,2016,"2016-12-31","Q1","2017-03-31","Region 8","Operating Expense","Administrative Expense","Administrative","12.3","Information Systems",{"$f":"IFERROR('MMA Rev-Exp Region 8'!$D$92/'MMA Rev-Exp Region 8'!$D$9, 0)","v":{"v":0,"d":"$0.00"}},{"$f":"IFERROR('MMA Rev-Exp Region 8'!$E$92/'MMA Rev-Exp Region 8'!$D$9, 0)","v":{"v":0,"d":"$0.00"}},{"$f":"IFERROR('MMA Rev-Exp Region 8'!$F$92/'MMA Rev-Exp Region 8'!$D$9, 0)","v":{"v":0,"d":"$0.00"}},{"$f":"IFERROR('MMA Rev-Exp Region 8'!$G$92/'MMA Rev-Exp Region 8'!$G$9, 0)","v":{"v":0,"d":"$0.00"}},{"$f":"IFERROR('MMA Rev-Exp Region 8'!$H$92/'MMA Rev-Exp Region 8'!$H$9, 0)","v":{"v":0,"d":"$0.00"}},{"$f":"IFERROR('MMA Rev-Exp Region 8'!$I$92/'MMA Rev-Exp Region 8'!$I$9, 0)","v":{"v":0,"d":"$0.00"}},{"$f":"IFERROR('MMA Rev-Exp Region 8'!$J$92/'MMA Rev-Exp Region 8'!$J$9, 0)","v":{"v":0,"d":"$0.00"}},{"$f":"IFERROR('MMA Rev-Exp Region 8'!$K$92/'MMA Rev-Exp Region 8'!$K$9, 0)","v":{"v":0,"d":"$0.00"}},{"$f":"IFERROR('MMA Rev-Exp Region 8'!$L$92/'MMA Rev-Exp Region 8'!$L$9, 0)","v":{"v":0,"d":"$0.00"}},{"$f":"IFERROR('MMA Rev-Exp Region 8'!$M$92/'MMA Rev-Exp Region 8'!$M$9, 0)","v":{"v":0,"d":"$0.00"}},{"$f":"IFERROR('MMA Rev-Exp Region 8'!$N$92/'MMA Rev-Exp Region 8'!$N$9, 0)","v":{"v":0,"d":"$0.00"}}]
["MMA",null,null,2016,"2016-12-31","Q1","2017-03-31","Region 8","Operating Expense","Administrative Expense","Administrative","12.4","Marketing Expenses",{"$f":"IFERROR('MMA Rev-Exp Region 8'!$D$93/'MMA Rev-Exp Region 8'!$D$9, 0)","v":{"v":0,"d":"$0.00"}},{"$f":"IFERROR('MMA Rev-Exp Region 8'!$E$93/'MMA Rev-Exp Region 8'!$D$9, 0)","v":{"v":0,"d":"$0.00"}},{"$f":"IFERROR('MMA Rev-Exp Region 8'!$F$93/'MMA Rev-Exp Region 8'!$D$9, 0)","v":{"v":0,"d":"$0.00"}},{"$f":"IFERROR('MMA Rev-Exp Region 8'!$G$93/'MMA Rev-Exp Region 8'!$G$9, 0)","v":{"v":0,"d":"$0.00"}},{"$f":"IFERROR('MMA Rev-Exp Region 8'!$H$93/'MMA Rev-Exp Region 8'!$H$9, 0)","v":{"v":0,"d":"$0.00"}},{"$f":"IFERROR('MMA Rev-Exp Region 8'!$I$93/'MMA Rev-Exp Region 8'!$I$9, 0)","v":{"v":0,"d":"$0.00"}},{"$f":"IFERROR('MMA Rev-Exp Region 8'!$J$93/'MMA Rev-Exp Region 8'!$J$9, 0)","v":{"v":0,"d":"$0.00"}},{"$f":"IFERROR('MMA Rev-Exp Region 8'!$K$93/'MMA Rev-Exp Region 8'!$K$9, 0)","v":{"v":0,"d":"$0.00"}},{"$f":"IFERROR('MMA Rev-Exp Region 8'!$L$93/'MMA Rev-Exp Region 8'!$L$9, 0)","v":{"v":0,"d":"$0.00"}},{"$f":"IFERROR('MMA Rev-Exp Region 8'!$M$93/'MMA Rev-Exp Region 8'!$M$9, 0)","v":{"v":0,"d":"$0.00"}},{"$f":"IFERROR('MMA Rev-Exp Region 8'!$N$93/'MMA Rev-Exp Region 8'!$N$9, 0)","v":{"v":0,"d":"$0.00"}}]
["MMA",null,null,2016,"2016-12-31","Q1","2017-03-31","Region 8","Operating Expense","Administrative Expense","Administrative","12.5","General  Administration",{"$f":"IFERROR('MMA Rev-Exp Region 8'!$D$94/'MMA Rev-Exp Region 8'!$D$9, 0)","v":{"v":0,"d":"$0.00"}},{"$f":"IFERROR('MMA Rev-Exp Region 8'!$E$94/'MMA Rev-Exp Region 8'!$D$9, 0)","v":{"v":0,"d":"$0.00"}},{"$f":"IFERROR('MMA Rev-Exp Region 8'!$F$94/'MMA Rev-Exp Region 8'!$D$9, 0)","v":{"v":0,"d":"$0.00"}},{"$f":"IFERROR('MMA Rev-Exp Region 8'!$G$94/'MMA Rev-Exp Region 8'!$G$9, 0)","v":{"v":0,"d":"$0.00"}},{"$f":"IFERROR('MMA Rev-Exp Region 8'!$H$94/'MMA Rev-Exp Region 8'!$H$9, 0)","v":{"v":0,"d":"$0.00"}},{"$f":"IFERROR('MMA Rev-Exp Region 8'!$I$94/'MMA Rev-Exp Region 8'!$I$9, 0)","v":{"v":0,"d":"$0.00"}},{"$f":"IFERROR('MMA Rev-Exp Region 8'!$J$94/'MMA Rev-Exp Region 8'!$J$9, 0)","v":{"v":0,"d":"$0.00"}},{"$f":"IFERROR('MMA Rev-Exp Region 8'!$K$94/'MMA Rev-Exp Region 8'!$K$9, 0)","v":{"v":0,"d":"$0.00"}},{"$f":"IFERROR('MMA Rev-Exp Region 8'!$L$94/'MMA Rev-Exp Region 8'!$L$9, 0)","v":{"v":0,"d":"$0.00"}},{"$f":"IFERROR('MMA Rev-Exp Region 8'!$M$94/'MMA Rev-Exp Region 8'!$M$9, 0)","v":{"v":0,"d":"$0.00"}},{"$f":"IFERROR('MMA Rev-Exp Region 8'!$N$94/'MMA Rev-Exp Region 8'!$N$9, 0)","v":{"v":0,"d":"$0.00"}}]
["MMA",null,null,2016,"2016-12-31","Q1","2017-03-31","Region 8","Operating Expense","Administrative Expense","Administrative","12.6","Compliance/Regulatory",{"$f":"IFERROR('MMA Rev-Exp Region 8'!$D$95/'MMA Rev-Exp Region 8'!$D$9, 0)","v":{"v":0,"d":"$0.00"}},{"$f":"IFERROR('MMA Rev-Exp Region 8'!$E$95/'MMA Rev-Exp Region 8'!$D$9, 0)","v":{"v":0,"d":"$0.00"}},{"$f":"IFERROR('MMA Rev-Exp Region 8'!$F$95/'MMA Rev-Exp Region 8'!$D$9, 0)","v":{"v":0,"d":"$0.00"}},{"$f":"IFERROR('MMA Rev-Exp Region 8'!$G$95/'MMA Rev-Exp Region 8'!$G$9, 0)","v":{"v":0,"d":"$0.00"}},{"$f":"IFERROR('MMA Rev-Exp Region 8'!$H$95/'MMA Rev-Exp Region 8'!$H$9, 0)","v":{"v":0,"d":"$0.00"}},{"$f":"IFERROR('MMA Rev-Exp Region 8'!$I$95/'MMA Rev-Exp Region 8'!$I$9, 0)","v":{"v":0,"d":"$0.00"}},{"$f":"IFERROR('MMA Rev-Exp Region 8'!$J$95/'MMA Rev-Exp Region 8'!$J$9, 0)","v":{"v":0,"d":"$0.00"}},{"$f":"IFERROR('MMA Rev-Exp Region 8'!$K$95/'MMA Rev-Exp Region 8'!$K$9, 0)","v":{"v":0,"d":"$0.00"}},{"$f":"IFERROR('MMA Rev-Exp Region 8'!$L$95/'MMA Rev-Exp Region 8'!$L$9, 0)","v":{"v":0,"d":"$0.00"}},{"$f":"IFERROR('MMA Rev-Exp Region 8'!$M$95/'MMA Rev-Exp Region 8'!$M$9, 0)","v":{"v":0,"d":"$0.00"}},{"$f":"IFERROR('MMA Rev-Exp Region 8'!$N$95/'MMA Rev-Exp Region 8'!$N$9, 0)","v":{"v":0,"d":"$0.00"}}]
["MMA",null,null,2016,"2016-12-31","Q1","2017-03-31","Region 8","Operating Expense","Taxes & Fees","Taxes & Fees","13.1","State Premium tax",{"$f":"IFERROR('MMA Rev-Exp Region 8'!$D$97/'MMA Rev-Exp Region 8'!$D$9, 0)","v":{"v":0,"d":"$0.00"}}]
["MMA",null,null,2016,"2016-12-31","Q1","2017-03-31","Region 8","Operating Expense","Taxes & Fees","Taxes & Fees","13.2","Department of Insurance Assessments",{"$f":"IFERROR('MMA Rev-Exp Region 8'!$D$98/'MMA Rev-Exp Region 8'!$D$9, 0)","v":{"v":0,"d":"$0.00"}}]
["MMA",null,null,2016,"2016-12-31","Q1","2017-03-31","Region 8","Operating Expense","Taxes & Fees","Taxes & Fees","13.3","Section 9010 Health Insurance Providers Fee",{"$f":"IFERROR('MMA Rev-Exp Region 8'!$D$99/'MMA Rev-Exp Region 8'!$D$9, 0)","v":{"v":0,"d":"$0.00"}}]
["MMA",null,null,2016,"2016-12-31","Q1","2017-03-31","Region 8","Non-Operating Expense","Income Tax Expense","Income Tax Expense","16.0","Income Tax Expense",{"$f":"IFERROR('MMA Rev-Exp Region 8'!$D$106/'MMA Rev-Exp Region 8'!$D$9, 0)","v":{"v":0,"d":"$0.00"}}]
["MMA",null,null,2016,"2016-12-31","Q2","2017-06-30","Region 8","Operating Revenue","Capitation","Capitation",1.1,"Capitation",{"$f":"IFERROR('MMA Rev-Exp Region 8'!$O$11/'MMA Rev-Exp Region 8'!$O$9, 0)","v":{"v":0,"d":"$0.00"}},{"$f":"IFERROR('MMA Rev-Exp Region 8'!$P$11/'MMA Rev-Exp Region 8'!$P$9, 0)","v":{"v":0,"d":"$0.00"}},{"$f":"IFERROR('MMA Rev-Exp Region 8'!$Q$11/'MMA Rev-Exp Region 8'!$Q$9, 0)","v":{"v":0,"d":"$0.00"}},{"$f":"IFERROR('MMA Rev-Exp Region 8'!$R$11/'MMA Rev-Exp Region 8'!$R$9, 0)","v":{"v":0,"d":"$0.00"}},{"$f":"IFERROR('MMA Rev-Exp Region 8'!$S$11/'MMA Rev-Exp Region 8'!$S$9, 0)","v":{"v":0,"d":"$0.00"}},{"$f":"IFERROR('MMA Rev-Exp Region 8'!$T$11/'MMA Rev-Exp Region 8'!$T$9, 0)","v":{"v":0,"d":"$0.00"}},{"$f":"IFERROR('MMA Rev-Exp Region 8'!$U$11/'MMA Rev-Exp Region 8'!$U$9, 0)","v":{"v":0,"d":"$0.00"}},{"$f":"IFERROR('MMA Rev-Exp Region 8'!$V$11/'MMA Rev-Exp Region 8'!$V$9, 0)","v":{"v":0,"d":"$0.00"}},{"$f":"IFERROR('MMA Rev-Exp Region 8'!$W$11/'MMA Rev-Exp Region 8'!$W$9, 0)","v":{"v":0,"d":"$0.00"}},{"$f":"IFERROR('MMA Rev-Exp Region 8'!$X$11/'MMA Rev-Exp Region 8'!$X$9, 0)","v":{"v":0,"d":"$0.00"}},{"$f":"IFERROR('MMA Rev-Exp Region 8'!$Y$11/'MMA Rev-Exp Region 8'!$Y$9, 0)","v":{"v":0,"d":"$0.00"}}]
["MMA",null,null,2016,"2016-12-31","Q2","2017-06-30","Region 8","Operating Revenue","Kick Payments","Kick Payments - Transplant",1.2,"Transplant Kick Payments",{"$f":"IFERROR('MMA Rev-Exp Region 8'!$O$12/'MMA Rev-Exp Region 8'!$O$9, 0)","v":{"v":0,"d":"$0.00"}},{"$f":"IFERROR('MMA Rev-Exp Region 8'!$P$12/'MMA Rev-Exp Region 8'!$P$9, 0)","v":{"v":0,"d":"$0.00"}},{"$f":"IFERROR('MMA Rev-Exp Region 8'!$Q$12/'MMA Rev-Exp Region 8'!$Q$9, 0)","v":{"v":0,"d":"$0.00"}},{"$f":"IFERROR('MMA Rev-Exp Region 8'!$R$12/'MMA Rev-Exp Region 8'!$R$9, 0)","v":{"v":0,"d":"$0.00"}},{"$f":"IFERROR('MMA Rev-Exp Region 8'!$S$12/'MMA Rev-Exp Region 8'!$S$9, 0)","v":{"v":0,"d":"$0.00"}},{"$f":"IFERROR('MMA Rev-Exp Region 8'!$T$12/'MMA Rev-Exp Region 8'!$T$9, 0)","v":{"v":0,"d":"$0.00"}},{"$f":"IFERROR('MMA Rev-Exp Region 8'!$U$12/'MMA Rev-Exp Region 8'!$U$9, 0)","v":{"v":0,"d":"$0.00"}},{"$f":"IFERROR('MMA Rev-Exp Region 8'!$V$12/'MMA Rev-Exp Region 8'!$V$9, 0)","v":{"v":0,"d":"$0.00"}},{"$f":"IFERROR('MMA Rev-Exp Region 8'!$W$12/'MMA Rev-Exp Region 8'!$W$9, 0)","v":{"v":0,"d":"$0.00"}},{"$f":"IFERROR('MMA Rev-Exp Region 8'!$X$12/'MMA Rev-Exp Region 8'!$X$9, 0)","v":{"v":0,"d":"$0.00"}},{"$f":"IFERROR('MMA Rev-Exp Region 8'!$Y$12/'MMA Rev-Exp Region 8'!$Y$9, 0)","v":{"v":0,"d":"$0.00"}}]
["MMA",null,null,2016,"2016-12-31","Q2","2017-06-30","Region 8","Operating Revenue","Kick Payments","Kick Payments - Hep C","1.3","Hepatitis C Kick Payments",{"$f":"IFERROR('MMA Rev-Exp Region 8'!$O$13/'MMA Rev-Exp Region 8'!$O$9, 0)","v":{"v":0,"d":"$0.00"}},{"$f":"IFERROR('MMA Rev-Exp Region 8'!$P$13/'MMA Rev-Exp Region 8'!$P$9, 0)","v":{"v":0,"d":"$0.00"}},{"$f":"IFERROR('MMA Rev-Exp Region 8'!$Q$13/'MMA Rev-Exp Region 8'!$Q$9, 0)","v":{"v":0,"d":"$0.00"}},{"$f":"IFERROR('MMA Rev-Exp Region 8'!$R$13/'MMA Rev-Exp Region 8'!$R$9, 0)","v":{"v":0,"d":"$0.00"}},{"$f":"IFERROR('MMA Rev-Exp Region 8'!$S$13/'MMA Rev-Exp Region 8'!$S$9, 0)","v":{"v":0,"d":"$0.00"}},{"$f":"IFERROR('MMA Rev-Exp Region 8'!$T$13/'MMA Rev-Exp Region 8'!$T$9, 0)","v":{"v":0,"d":"$0.00"}},{"$f":"IFERROR('MMA Rev-Exp Region 8'!$U$13/'MMA Rev-Exp Region 8'!$U$9, 0)","v":{"v":0,"d":"$0.00"}},{"$f":"IFERROR('MMA Rev-Exp Region 8'!$V$13/'MMA Rev-Exp Region 8'!$V$9, 0)","v":{"v":0,"d":"$0.00"}},{"$f":"IFERROR('MMA Rev-Exp Region 8'!$W$13/'MMA Rev-Exp Region 8'!$W$9, 0)","v":{"v":0,"d":"$0.00"}},{"$f":"IFERROR('MMA Rev-Exp Region 8'!$X$13/'MMA Rev-Exp Region 8'!$X$9, 0)","v":{"v":0,"d":"$0.00"}},{"$f":"IFERROR('MMA Rev-Exp Region 8'!$Y$13/'MMA Rev-Exp Region 8'!$Y$9, 0)","v":{"v":0,"d":"$0.00"}}]
["MMA",null,null,2016,"2016-12-31","Q2","2017-06-30","Region 8","Operating Revenue","Kick Payments","Kick Payments - Maternity","1.4.1","Maternity Kick Payments",{"$f":"IFERROR('MMA Rev-Exp Region 8'!$O$14/'MMA Rev-Exp Region 8'!$O$9, 0)","v":{"v":0,"d":"$0.00"}},{"$f":"IFERROR('MMA Rev-Exp Region 8'!$P$14/'MMA Rev-Exp Region 8'!$P$9, 0)","v":{"v":0,"d":"$0.00"}},{"$f":"IFERROR('MMA Rev-Exp Region 8'!$Q$14/'MMA Rev-Exp Region 8'!$Q$9, 0)","v":{"v":0,"d":"$0.00"}},{"$f":"IFERROR('MMA Rev-Exp Region 8'!$R$14/'MMA Rev-Exp Region 8'!$R$9, 0)","v":{"v":0,"d":"$0.00"}},{"$f":"IFERROR('MMA Rev-Exp Region 8'!$S$14/'MMA Rev-Exp Region 8'!$S$9, 0)","v":{"v":0,"d":"$0.00"}},{"$f":"IFERROR('MMA Rev-Exp Region 8'!$T$14/'MMA Rev-Exp Region 8'!$T$9, 0)","v":{"v":0,"d":"$0.00"}},{"$f":"IFERROR('MMA Rev-Exp Region 8'!$U$14/'MMA Rev-Exp Region 8'!$U$9, 0)","v":{"v":0,"d":"$0.00"}},{"$f":"IFERROR('MMA Rev-Exp Region 8'!$V$14/'MMA Rev-Exp Region 8'!$V$9, 0)","v":{"v":0,"d":"$0.00"}},{"$f":"IFERROR('MMA Rev-Exp Region 8'!$W$14/'MMA Rev-Exp Region 8'!$W$9, 0)","v":{"v":0,"d":"$0.00"}},{"$f":"IFERROR('MMA Rev-Exp Region 8'!$X$14/'MMA Rev-Exp Region 8'!$X$9, 0)","v":{"v":0,"d":"$0.00"}},{"$f":"IFERROR('MMA Rev-Exp Region 8'!$Y$14/'MMA Rev-Exp Region 8'!$Y$9, 0)","v":{"v":0,"d":"$0.00"}}]
["MMA",null,null,2016,"2016-12-31","Q2","2017-06-30","Region 8","Operating Revenue","Other Revenue","Other Revenue - 9010","1.5","ACA § 9010 related payments",{"$f":"IFERROR('MMA Rev-Exp Region 8'!$O$15/'MMA Rev-Exp Region 8'!$O$9, 0)","v":{"v":0,"d":"$0.00"}},{"$f":"IFERROR('MMA Rev-Exp Region 8'!$P$15/'MMA Rev-Exp Region 8'!$P$9, 0)","v":{"v":0,"d":"$0.00"}},{"$f":"IFERROR('MMA Rev-Exp Region 8'!$Q$15/'MMA Rev-Exp Region 8'!$Q$9, 0)","v":{"v":0,"d":"$0.00"}},{"$f":"IFERROR('MMA Rev-Exp Region 8'!$R$15/'MMA Rev-Exp Region 8'!$R$9, 0)","v":{"v":0,"d":"$0.00"}},{"$f":"IFERROR('MMA Rev-Exp Region 8'!$S$15/'MMA Rev-Exp Region 8'!$S$9, 0)","v":{"v":0,"d":"$0.00"}},{"$f":"IFERROR('MMA Rev-Exp Region 8'!$T$15/'MMA Rev-Exp Region 8'!$T$9, 0)","v":{"v":0,"d":"$0.00"}},{"$f":"IFERROR('MMA Rev-Exp Region 8'!$U$15/'MMA Rev-Exp Region 8'!$U$9, 0)","v":{"v":0,"d":"$0.00"}},{"$f":"IFERROR('MMA Rev-Exp Region 8'!$V$15/'MMA Rev-Exp Region 8'!$V$9, 0)","v":{"v":0,"d":"$0.00"}},{"$f":"IFERROR('MMA Rev-Exp Region 8'!$W$15/'MMA Rev-Exp Region 8'!$W$9, 0)","v":{"v":0,"d":"$0.00"}},{"$f":"IFERROR('MMA Rev-Exp Region 8'!$X$15/'MMA Rev-Exp Region 8'!$X$9, 0)","v":{"v":0,"d":"$0.00"}},{"$f":"IFERROR('MMA Rev-Exp Region 8'!$Y$15/'MMA Rev-Exp Region 8'!$Y$9, 0)","v":{"v":0,"d":"$0.00"}}]
["MMA",null,null,2016,"2016-12-31","Q2","2017-06-30","Region 8","Operating Revenue","Other Revenue","Other Revenue","1.6","Other Revenue",{"$f":"IFERROR('MMA Rev-Exp Region 8'!$O$16/'MMA Rev-Exp Region 8'!$O$9, 0)","v":{"v":0,"d":"$0.00"}},{"$f":"IFERROR('MMA Rev-Exp Region 8'!$P$16/'MMA Rev-Exp Region 8'!$P$9, 0)","v":{"v":0,"d":"$0.00"}},{"$f":"IFERROR('MMA Rev-Exp Region 8'!$Q$16/'MMA Rev-Exp Region 8'!$Q$9, 0)","v":{"v":0,"d":"$0.00"}},{"$f":"IFERROR('MMA Rev-Exp Region 8'!$R$16/'MMA Rev-Exp Region 8'!$R$9, 0)","v":{"v":0,"d":"$0.00"}},{"$f":"IFERROR('MMA Rev-Exp Region 8'!$S$16/'MMA Rev-Exp Region 8'!$S$9, 0)","v":{"v":0,"d":"$0.00"}},{"$f":"IFERROR('MMA Rev-Exp Region 8'!$T$16/'MMA Rev-Exp Region 8'!$T$9, 0)","v":{"v":0,"d":"$0.00"}},{"$f":"IFERROR('MMA Rev-Exp Region 8'!$U$16/'MMA Rev-Exp Region 8'!$U$9, 0)","v":{"v":0,"d":"$0.00"}},{"$f":"IFERROR('MMA Rev-Exp Region 8'!$V$16/'MMA Rev-Exp Region 8'!$V$9, 0)","v":{"v":0,"d":"$0.00"}},{"$f":"IFERROR('MMA Rev-Exp Region 8'!$W$16/'MMA Rev-Exp Region 8'!$W$9, 0)","v":{"v":0,"d":"$0.00"}},{"$f":"IFERROR('MMA Rev-Exp Region 8'!$X$16/'MMA Rev-Exp Region 8'!$X$9, 0)","v":{"v":0,"d":"$0.00"}},{"$f":"IFERROR('MMA Rev-Exp Region 8'!$Y$16/'MMA Rev-Exp Region 8'!$Y$9, 0)","v":{"v":0,"d":"$0.00"}}]
["MMA",null,null,2016,"2016-12-31","Q2","2017-06-30","Region 8","Operating Expense","Medical Benefits Expense","Hospital Services",2.1,"Inpatient FFS",{"$f":"IFERROR('MMA Rev-Exp Region 8'!$O$20/'MMA Rev-Exp Region 8'!$O$9, 0)","v":{"v":0,"d":"$0.00"}},{"$f":"IFERROR('MMA Rev-Exp Region 8'!$P$20/'MMA Rev-Exp Region 8'!$P$9, 0)","v":{"v":0,"d":"$0.00"}},{"$f":"IFERROR('MMA Rev-Exp Region 8'!$Q$20/'MMA Rev-Exp Region 8'!$Q$9, 0)","v":{"v":0,"d":"$0.00"}},{"$f":"IFERROR('MMA Rev-Exp Region 8'!$R$20/'MMA Rev-Exp Region 8'!$R$9, 0)","v":{"v":0,"d":"$0.00"}},{"$f":"IFERROR('MMA Rev-Exp Region 8'!$S$20/'MMA Rev-Exp Region 8'!$S$9, 0)","v":{"v":0,"d":"$0.00"}},{"$f":"IFERROR('MMA Rev-Exp Region 8'!$T$20/'MMA Rev-Exp Region 8'!$T$9, 0)","v":{"v":0,"d":"$0.00"}},{"$f":"IFERROR('MMA Rev-Exp Region 8'!$U$20/'MMA Rev-Exp Region 8'!$U$9, 0)","v":{"v":0,"d":"$0.00"}},{"$f":"IFERROR('MMA Rev-Exp Region 8'!$V$20/'MMA Rev-Exp Region 8'!$V$9, 0)","v":{"v":0,"d":"$0.00"}},{"$f":"IFERROR('MMA Rev-Exp Region 8'!$W$20/'MMA Rev-Exp Region 8'!$W$9, 0)","v":{"v":0,"d":"$0.00"}},{"$f":"IFERROR('MMA Rev-Exp Region 8'!$X$20/'MMA Rev-Exp Region 8'!$X$9, 0)","v":{"v":0,"d":"$0.00"}},{"$f":"IFERROR('MMA Rev-Exp Region 8'!$Y$20/'MMA Rev-Exp Region 8'!$Y$9, 0)","v":{"v":0,"d":"$0.00"}}]
["MMA",null,null,2016,"2016-12-31","Q2","2017-06-30","Region 8","Operating Expense","Medical Benefits Expense","Hospital Services",2.2,"Ending IBNP for Inpatient Hospital Services",{"$f":"IFERROR('MMA Rev-Exp Region 8'!$O$21/'MMA Rev-Exp Region 8'!$O$9, 0)","v":{"v":0,"d":"$0.00"}},{"$f":"IFERROR('MMA Rev-Exp Region 8'!$P$21/'MMA Rev-Exp Region 8'!$P$9, 0)","v":{"v":0,"d":"$0.00"}},{"$f":"IFERROR('MMA Rev-Exp Region 8'!$Q$21/'MMA Rev-Exp Region 8'!$Q$9, 0)","v":{"v":0,"d":"$0.00"}},{"$f":"IFERROR('MMA Rev-Exp Region 8'!$R$21/'MMA Rev-Exp Region 8'!$R$9, 0)","v":{"v":0,"d":"$0.00"}},{"$f":"IFERROR('MMA Rev-Exp Region 8'!$S$21/'MMA Rev-Exp Region 8'!$S$9, 0)","v":{"v":0,"d":"$0.00"}},{"$f":"IFERROR('MMA Rev-Exp Region 8'!$T$21/'MMA Rev-Exp Region 8'!$T$9, 0)","v":{"v":0,"d":"$0.00"}},{"$f":"IFERROR('MMA Rev-Exp Region 8'!$U$21/'MMA Rev-Exp Region 8'!$U$9, 0)","v":{"v":0,"d":"$0.00"}},{"$f":"IFERROR('MMA Rev-Exp Region 8'!$V$21/'MMA Rev-Exp Region 8'!$V$9, 0)","v":{"v":0,"d":"$0.00"}},{"$f":"IFERROR('MMA Rev-Exp Region 8'!$W$21/'MMA Rev-Exp Region 8'!$W$9, 0)","v":{"v":0,"d":"$0.00"}},{"$f":"IFERROR('MMA Rev-Exp Region 8'!$X$21/'MMA Rev-Exp Region 8'!$X$9, 0)","v":{"v":0,"d":"$0.00"}},{"$f":"IFERROR('MMA Rev-Exp Region 8'!$Y$21/'MMA Rev-Exp Region 8'!$Y$9, 0)","v":{"v":0,"d":"$0.00"}}]
["MMA",null,null,2016,"2016-12-31","Q2","2017-06-30","Region 8","Operating Expense","Medical Benefits Expense","Hospital Services",2.3,"Outpatient FFS: ER",{"$f":"IFERROR('MMA Rev-Exp Region 8'!$O$22/'MMA Rev-Exp Region 8'!$O$9, 0)","v":{"v":0,"d":"$0.00"}},{"$f":"IFERROR('MMA Rev-Exp Region 8'!$P$22/'MMA Rev-Exp Region 8'!$P$9, 0)","v":{"v":0,"d":"$0.00"}},{"$f":"IFERROR('MMA Rev-Exp Region 8'!$Q$22/'MMA Rev-Exp Region 8'!$Q$9, 0)","v":{"v":0,"d":"$0.00"}},{"$f":"IFERROR('MMA Rev-Exp Region 8'!$R$22/'MMA Rev-Exp Region 8'!$R$9, 0)","v":{"v":0,"d":"$0.00"}},{"$f":"IFERROR('MMA Rev-Exp Region 8'!$S$22/'MMA Rev-Exp Region 8'!$S$9, 0)","v":{"v":0,"d":"$0.00"}},{"$f":"IFERROR('MMA Rev-Exp Region 8'!$T$22/'MMA Rev-Exp Region 8'!$T$9, 0)","v":{"v":0,"d":"$0.00"}},{"$f":"IFERROR('MMA Rev-Exp Region 8'!$U$22/'MMA Rev-Exp Region 8'!$U$9, 0)","v":{"v":0,"d":"$0.00"}},{"$f":"IFERROR('MMA Rev-Exp Region 8'!$V$22/'MMA Rev-Exp Region 8'!$V$9, 0)","v":{"v":0,"d":"$0.00"}},{"$f":"IFERROR('MMA Rev-Exp Region 8'!$W$22/'MMA Rev-Exp Region 8'!$W$9, 0)","v":{"v":0,"d":"$0.00"}},{"$f":"IFERROR('MMA Rev-Exp Region 8'!$X$22/'MMA Rev-Exp Region 8'!$X$9, 0)","v":{"v":0,"d":"$0.00"}},{"$f":"IFERROR('MMA Rev-Exp Region 8'!$Y$22/'MMA Rev-Exp Region 8'!$Y$9, 0)","v":{"v":0,"d":"$0.00"}}]
["MMA",null,null,2016,"2016-12-31","Q2","2017-06-30","Region 8","Operating Expense","Medical Benefits Expense","Hospital Services",2.4,"Outpatient FFS: Other than ER ",{"$f":"IFERROR('MMA Rev-Exp Region 8'!$O$23/'MMA Rev-Exp Region 8'!$O$9, 0)","v":{"v":0,"d":"$0.00"}},{"$f":"IFERROR('MMA Rev-Exp Region 8'!$P$23/'MMA Rev-Exp Region 8'!$P$9, 0)","v":{"v":0,"d":"$0.00"}},{"$f":"IFERROR('MMA Rev-Exp Region 8'!$Q$23/'MMA Rev-Exp Region 8'!$Q$9, 0)","v":{"v":0,"d":"$0.00"}},{"$f":"IFERROR('MMA Rev-Exp Region 8'!$R$23/'MMA Rev-Exp Region 8'!$R$9, 0)","v":{"v":0,"d":"$0.00"}},{"$f":"IFERROR('MMA Rev-Exp Region 8'!$S$23/'MMA Rev-Exp Region 8'!$S$9, 0)","v":{"v":0,"d":"$0.00"}},{"$f":"IFERROR('MMA Rev-Exp Region 8'!$T$23/'MMA Rev-Exp Region 8'!$T$9, 0)","v":{"v":0,"d":"$0.00"}},{"$f":"IFERROR('MMA Rev-Exp Region 8'!$U$23/'MMA Rev-Exp Region 8'!$U$9, 0)","v":{"v":0,"d":"$0.00"}},{"$f":"IFERROR('MMA Rev-Exp Region 8'!$V$23/'MMA Rev-Exp Region 8'!$V$9, 0)","v":{"v":0,"d":"$0.00"}},{"$f":"IFERROR('MMA Rev-Exp Region 8'!$W$23/'MMA Rev-Exp Region 8'!$W$9, 0)","v":{"v":0,"d":"$0.00"}},{"$f":"IFERROR('MMA Rev-Exp Region 8'!$X$23/'MMA Rev-Exp Region 8'!$X$9, 0)","v":{"v":0,"d":"$0.00"}},{"$f":"IFERROR('MMA Rev-Exp Region 8'!$Y$23/'MMA Rev-Exp Region 8'!$Y$9, 0)","v":{"v":0,"d":"$0.00"}}]
["MMA",null,null,2016,"2016-12-31","Q2","2017-06-30","Region 8","Operating Expense","Medical Benefits Expense","Hospital Services",2.5,"Ending IBNP for Outpatient Hospital Services",{"$f":"IFERROR('MMA Rev-Exp Region 8'!$O$24/'MMA Rev-Exp Region 8'!$O$9, 0)","v":{"v":0,"d":"$0.00"}},{"$f":"IFERROR('MMA Rev-Exp Region 8'!$P$24/'MMA Rev-Exp Region 8'!$P$9, 0)","v":{"v":0,"d":"$0.00"}},{"$f":"IFERROR('MMA Rev-Exp Region 8'!$Q$24/'MMA Rev-Exp Region 8'!$Q$9, 0)","v":{"v":0,"d":"$0.00"}},{"$f":"IFERROR('MMA Rev-Exp Region 8'!$R$24/'MMA Rev-Exp Region 8'!$R$9, 0)","v":{"v":0,"d":"$0.00"}},{"$f":"IFERROR('MMA Rev-Exp Region 8'!$S$24/'MMA Rev-Exp Region 8'!$S$9, 0)","v":{"v":0,"d":"$0.00"}},{"$f":"IFERROR('MMA Rev-Exp Region 8'!$T$24/'MMA Rev-Exp Region 8'!$T$9, 0)","v":{"v":0,"d":"$0.00"}},{"$f":"IFERROR('MMA Rev-Exp Region 8'!$U$24/'MMA Rev-Exp Region 8'!$U$9, 0)","v":{"v":0,"d":"$0.00"}},{"$f":"IFERROR('MMA Rev-Exp Region 8'!$V$24/'MMA Rev-Exp Region 8'!$V$9, 0)","v":{"v":0,"d":"$0.00"}},{"$f":"IFERROR('MMA Rev-Exp Region 8'!$W$24/'MMA Rev-Exp Region 8'!$W$9, 0)","v":{"v":0,"d":"$0.00"}},{"$f":"IFERROR('MMA Rev-Exp Region 8'!$X$24/'MMA Rev-Exp Region 8'!$X$9, 0)","v":{"v":0,"d":"$0.00"}},{"$f":"IFERROR('MMA Rev-Exp Region 8'!$Y$24/'MMA Rev-Exp Region 8'!$Y$9, 0)","v":{"v":0,"d":"$0.00"}}]
["MMA",null,null,2016,"2016-12-31","Q2","2017-06-30","Region 8","Operating Expense","Medical Benefits Expense","Hospital Services","2.6","Subcapitated Hospital Services",{"$f":"IFERROR('MMA Rev-Exp Region 8'!$O$25/'MMA Rev-Exp Region 8'!$O$9, 0)","v":{"v":0,"d":"$0.00"}},{"$f":"IFERROR('MMA Rev-Exp Region 8'!$P$25/'MMA Rev-Exp Region 8'!$P$9, 0)","v":{"v":0,"d":"$0.00"}},{"$f":"IFERROR('MMA Rev-Exp Region 8'!$Q$25/'MMA Rev-Exp Region 8'!$Q$9, 0)","v":{"v":0,"d":"$0.00"}},{"$f":"IFERROR('MMA Rev-Exp Region 8'!$R$25/'MMA Rev-Exp Region 8'!$R$9, 0)","v":{"v":0,"d":"$0.00"}},{"$f":"IFERROR('MMA Rev-Exp Region 8'!$S$25/'MMA Rev-Exp Region 8'!$S$9, 0)","v":{"v":0,"d":"$0.00"}},{"$f":"IFERROR('MMA Rev-Exp Region 8'!$T$25/'MMA Rev-Exp Region 8'!$T$9, 0)","v":{"v":0,"d":"$0.00"}},{"$f":"IFERROR('MMA Rev-Exp Region 8'!$U$25/'MMA Rev-Exp Region 8'!$U$9, 0)","v":{"v":0,"d":"$0.00"}},{"$f":"IFERROR('MMA Rev-Exp Region 8'!$V$25/'MMA Rev-Exp Region 8'!$V$9, 0)","v":{"v":0,"d":"$0.00"}},{"$f":"IFERROR('MMA Rev-Exp Region 8'!$W$25/'MMA Rev-Exp Region 8'!$W$9, 0)","v":{"v":0,"d":"$0.00"}},{"$f":"IFERROR('MMA Rev-Exp Region 8'!$X$25/'MMA Rev-Exp Region 8'!$X$9, 0)","v":{"v":0,"d":"$0.00"}},{"$f":"IFERROR('MMA Rev-Exp Region 8'!$Y$25/'MMA Rev-Exp Region 8'!$Y$9, 0)","v":{"v":0,"d":"$0.00"}}]
["MMA",null,null,2016,"2016-12-31","Q2","2017-06-30","Region 8","Operating Expense","Medical Benefits Expense","Hospital Services","2.7","Hospital Settlements",{"$f":"IFERROR('MMA Rev-Exp Region 8'!$O$26/'MMA Rev-Exp Region 8'!$O$9, 0)","v":{"v":0,"d":"$0.00"}},{"$f":"IFERROR('MMA Rev-Exp Region 8'!$P$26/'MMA Rev-Exp Region 8'!$P$9, 0)","v":{"v":0,"d":"$0.00"}},{"$f":"IFERROR('MMA Rev-Exp Region 8'!$Q$26/'MMA Rev-Exp Region 8'!$Q$9, 0)","v":{"v":0,"d":"$0.00"}},{"$f":"IFERROR('MMA Rev-Exp Region 8'!$R$26/'MMA Rev-Exp Region 8'!$R$9, 0)","v":{"v":0,"d":"$0.00"}},{"$f":"IFERROR('MMA Rev-Exp Region 8'!$S$26/'MMA Rev-Exp Region 8'!$S$9, 0)","v":{"v":0,"d":"$0.00"}},{"$f":"IFERROR('MMA Rev-Exp Region 8'!$T$26/'MMA Rev-Exp Region 8'!$T$9, 0)","v":{"v":0,"d":"$0.00"}},{"$f":"IFERROR('MMA Rev-Exp Region 8'!$U$26/'MMA Rev-Exp Region 8'!$U$9, 0)","v":{"v":0,"d":"$0.00"}},{"$f":"IFERROR('MMA Rev-Exp Region 8'!$V$26/'MMA Rev-Exp Region 8'!$V$9, 0)","v":{"v":0,"d":"$0.00"}},{"$f":"IFERROR('MMA Rev-Exp Region 8'!$W$26/'MMA Rev-Exp Region 8'!$W$9, 0)","v":{"v":0,"d":"$0.00"}},{"$f":"IFERROR('MMA Rev-Exp Region 8'!$X$26/'MMA Rev-Exp Region 8'!$X$9, 0)","v":{"v":0,"d":"$0.00"}},{"$f":"IFERROR('MMA Rev-Exp Region 8'!$Y$26/'MMA Rev-Exp Region 8'!$Y$9, 0)","v":{"v":0,"d":"$0.00"}}]
["MMA",null,null,2016,"2016-12-31","Q2","2017-06-30","Region 8","Operating Expense","Medical Benefits Expense","Hospital Services","2.7.1","Transplant Services",{"$f":"IFERROR('MMA Rev-Exp Region 8'!$O$27/'MMA Rev-Exp Region 8'!$O$9, 0)","v":{"v":0,"d":"$0.00"}},{"$f":"IFERROR('MMA Rev-Exp Region 8'!$P$27/'MMA Rev-Exp Region 8'!$P$9, 0)","v":{"v":0,"d":"$0.00"}},{"$f":"IFERROR('MMA Rev-Exp Region 8'!$Q$27/'MMA Rev-Exp Region 8'!$Q$9, 0)","v":{"v":0,"d":"$0.00"}},{"$f":"IFERROR('MMA Rev-Exp Region 8'!$R$27/'MMA Rev-Exp Region 8'!$R$9, 0)","v":{"v":0,"d":"$0.00"}},{"$f":"IFERROR('MMA Rev-Exp Region 8'!$S$27/'MMA Rev-Exp Region 8'!$S$9, 0)","v":{"v":0,"d":"$0.00"}},{"$f":"IFERROR('MMA Rev-Exp Region 8'!$T$27/'MMA Rev-Exp Region 8'!$T$9, 0)","v":{"v":0,"d":"$0.00"}},{"$f":"IFERROR('MMA Rev-Exp Region 8'!$U$27/'MMA Rev-Exp Region 8'!$U$9, 0)","v":{"v":0,"d":"$0.00"}},{"$f":"IFERROR('MMA Rev-Exp Region 8'!$V$27/'MMA Rev-Exp Region 8'!$V$9, 0)","v":{"v":0,"d":"$0.00"}},{"$f":"IFERROR('MMA Rev-Exp Region 8'!$W$27/'MMA Rev-Exp Region 8'!$W$9, 0)","v":{"v":0,"d":"$0.00"}},{"$f":"IFERROR('MMA Rev-Exp Region 8'!$X$27/'MMA Rev-Exp Region 8'!$X$9, 0)","v":{"v":0,"d":"$0.00"}},{"$f":"IFERROR('MMA Rev-Exp Region 8'!$Y$27/'MMA Rev-Exp Region 8'!$Y$9, 0)","v":{"v":0,"d":"$0.00"}}]
["MMA",null,null,2016,"2016-12-31","Q2","2017-06-30","Region 8","Operating Expense","Medical Benefits Expense","Professional Services",3.1,"Primary Care FFS",{"$f":"IFERROR('MMA Rev-Exp Region 8'!$O$29/'MMA Rev-Exp Region 8'!$O$9, 0)","v":{"v":0,"d":"$0.00"}},{"$f":"IFERROR('MMA Rev-Exp Region 8'!$P$29/'MMA Rev-Exp Region 8'!$P$9, 0)","v":{"v":0,"d":"$0.00"}},{"$f":"IFERROR('MMA Rev-Exp Region 8'!$Q$29/'MMA Rev-Exp Region 8'!$Q$9, 0)","v":{"v":0,"d":"$0.00"}},{"$f":"IFERROR('MMA Rev-Exp Region 8'!$R$29/'MMA Rev-Exp Region 8'!$R$9, 0)","v":{"v":0,"d":"$0.00"}},{"$f":"IFERROR('MMA Rev-Exp Region 8'!$S$29/'MMA Rev-Exp Region 8'!$S$9, 0)","v":{"v":0,"d":"$0.00"}},{"$f":"IFERROR('MMA Rev-Exp Region 8'!$T$29/'MMA Rev-Exp Region 8'!$T$9, 0)","v":{"v":0,"d":"$0.00"}},{"$f":"IFERROR('MMA Rev-Exp Region 8'!$U$29/'MMA Rev-Exp Region 8'!$U$9, 0)","v":{"v":0,"d":"$0.00"}},{"$f":"IFERROR('MMA Rev-Exp Region 8'!$V$29/'MMA Rev-Exp Region 8'!$V$9, 0)","v":{"v":0,"d":"$0.00"}},{"$f":"IFERROR('MMA Rev-Exp Region 8'!$W$29/'MMA Rev-Exp Region 8'!$W$9, 0)","v":{"v":0,"d":"$0.00"}},{"$f":"IFERROR('MMA Rev-Exp Region 8'!$X$29/'MMA Rev-Exp Region 8'!$X$9, 0)","v":{"v":0,"d":"$0.00"}},{"$f":"IFERROR('MMA Rev-Exp Region 8'!$Y$29/'MMA Rev-Exp Region 8'!$Y$9, 0)","v":{"v":0,"d":"$0.00"}}]
["MMA",null,null,2016,"2016-12-31","Q2","2017-06-30","Region 8","Operating Expense","Medical Benefits Expense","Professional Services",3.2,"Specialty Care FFS",{"$f":"IFERROR('MMA Rev-Exp Region 8'!$O$30/'MMA Rev-Exp Region 8'!$O$9, 0)","v":{"v":0,"d":"$0.00"}},{"$f":"IFERROR('MMA Rev-Exp Region 8'!$P$30/'MMA Rev-Exp Region 8'!$P$9, 0)","v":{"v":0,"d":"$0.00"}},{"$f":"IFERROR('MMA Rev-Exp Region 8'!$Q$30/'MMA Rev-Exp Region 8'!$Q$9, 0)","v":{"v":0,"d":"$0.00"}},{"$f":"IFERROR('MMA Rev-Exp Region 8'!$R$30/'MMA Rev-Exp Region 8'!$R$9, 0)","v":{"v":0,"d":"$0.00"}},{"$f":"IFERROR('MMA Rev-Exp Region 8'!$S$30/'MMA Rev-Exp Region 8'!$S$9, 0)","v":{"v":0,"d":"$0.00"}},{"$f":"IFERROR('MMA Rev-Exp Region 8'!$T$30/'MMA Rev-Exp Region 8'!$T$9, 0)","v":{"v":0,"d":"$0.00"}},{"$f":"IFERROR('MMA Rev-Exp Region 8'!$U$30/'MMA Rev-Exp Region 8'!$U$9, 0)","v":{"v":0,"d":"$0.00"}},{"$f":"IFERROR('MMA Rev-Exp Region 8'!$V$30/'MMA Rev-Exp Region 8'!$V$9, 0)","v":{"v":0,"d":"$0.00"}},{"$f":"IFERROR('MMA Rev-Exp Region 8'!$W$30/'MMA Rev-Exp Region 8'!$W$9, 0)","v":{"v":0,"d":"$0.00"}},{"$f":"IFERROR('MMA Rev-Exp Region 8'!$X$30/'MMA Rev-Exp Region 8'!$X$9, 0)","v":{"v":0,"d":"$0.00"}},{"$f":"IFERROR('MMA Rev-Exp Region 8'!$Y$30/'MMA Rev-Exp Region 8'!$Y$9, 0)","v":{"v":0,"d":"$0.00"}}]
["MMA",null,null,2016,"2016-12-31","Q2","2017-06-30","Region 8","Operating Expense","Medical Benefits Expense","Professional Services",3.3,"Other Professional FFS",{"$f":"IFERROR('MMA Rev-Exp Region 8'!$O$31/'MMA Rev-Exp Region 8'!$O$9, 0)","v":{"v":0,"d":"$0.00"}},{"$f":"IFERROR('MMA Rev-Exp Region 8'!$P$31/'MMA Rev-Exp Region 8'!$P$9, 0)","v":{"v":0,"d":"$0.00"}},{"$f":"IFERROR('MMA Rev-Exp Region 8'!$Q$31/'MMA Rev-Exp Region 8'!$Q$9, 0)","v":{"v":0,"d":"$0.00"}},{"$f":"IFERROR('MMA Rev-Exp Region 8'!$R$31/'MMA Rev-Exp Region 8'!$R$9, 0)","v":{"v":0,"d":"$0.00"}},{"$f":"IFERROR('MMA Rev-Exp Region 8'!$S$31/'MMA Rev-Exp Region 8'!$S$9, 0)","v":{"v":0,"d":"$0.00"}},{"$f":"IFERROR('MMA Rev-Exp Region 8'!$T$31/'MMA Rev-Exp Region 8'!$T$9, 0)","v":{"v":0,"d":"$0.00"}},{"$f":"IFERROR('MMA Rev-Exp Region 8'!$U$31/'MMA Rev-Exp Region 8'!$U$9, 0)","v":{"v":0,"d":"$0.00"}},{"$f":"IFERROR('MMA Rev-Exp Region 8'!$V$31/'MMA Rev-Exp Region 8'!$V$9, 0)","v":{"v":0,"d":"$0.00"}},{"$f":"IFERROR('MMA Rev-Exp Region 8'!$W$31/'MMA Rev-Exp Region 8'!$W$9, 0)","v":{"v":0,"d":"$0.00"}},{"$f":"IFERROR('MMA Rev-Exp Region 8'!$X$31/'MMA Rev-Exp Region 8'!$X$9, 0)","v":{"v":0,"d":"$0.00"}},{"$f":"IFERROR('MMA Rev-Exp Region 8'!$Y$31/'MMA Rev-Exp Region 8'!$Y$9, 0)","v":{"v":0,"d":"$0.00"}}]
["MMA",null,null,2016,"2016-12-31","Q2","2017-06-30","Region 8","Operating Expense","Medical Benefits Expense","Professional Services","3.4","§ 1202 PCP Payments to providers",{"$f":"IFERROR('MMA Rev-Exp Region 8'!$O$32/'MMA Rev-Exp Region 8'!$O$9, 0)","v":{"v":0,"d":"$0.00"}},{"$f":"IFERROR('MMA Rev-Exp Region 8'!$P$32/'MMA Rev-Exp Region 8'!$P$9, 0)","v":{"v":0,"d":"$0.00"}},{"$f":"IFERROR('MMA Rev-Exp Region 8'!$Q$32/'MMA Rev-Exp Region 8'!$Q$9, 0)","v":{"v":0,"d":"$0.00"}},{"$f":"IFERROR('MMA Rev-Exp Region 8'!$R$32/'MMA Rev-Exp Region 8'!$R$9, 0)","v":{"v":0,"d":"$0.00"}},{"$f":"IFERROR('MMA Rev-Exp Region 8'!$S$32/'MMA Rev-Exp Region 8'!$S$9, 0)","v":{"v":0,"d":"$0.00"}},{"$f":"IFERROR('MMA Rev-Exp Region 8'!$T$32/'MMA Rev-Exp Region 8'!$T$9, 0)","v":{"v":0,"d":"$0.00"}},{"$f":"IFERROR('MMA Rev-Exp Region 8'!$U$32/'MMA Rev-Exp Region 8'!$U$9, 0)","v":{"v":0,"d":"$0.00"}},{"$f":"IFERROR('MMA Rev-Exp Region 8'!$V$32/'MMA Rev-Exp Region 8'!$V$9, 0)","v":{"v":0,"d":"$0.00"}},{"$f":"IFERROR('MMA Rev-Exp Region 8'!$W$32/'MMA Rev-Exp Region 8'!$W$9, 0)","v":{"v":0,"d":"$0.00"}},{"$f":"IFERROR('MMA Rev-Exp Region 8'!$X$32/'MMA Rev-Exp Region 8'!$X$9, 0)","v":{"v":0,"d":"$0.00"}},{"$f":"IFERROR('MMA Rev-Exp Region 8'!$Y$32/'MMA Rev-Exp Region 8'!$Y$9, 0)","v":{"v":0,"d":"$0.00"}}]
["MMA",null,null,2016,"2016-12-31","Q2","2017-06-30","Region 8","Operating Expense","Medical Benefits Expense","Professional Services","3.5","Subcapitated Professional Services",{"$f":"IFERROR('MMA Rev-Exp Region 8'!$O$33/'MMA Rev-Exp Region 8'!$O$9, 0)","v":{"v":0,"d":"$0.00"}},{"$f":"IFERROR('MMA Rev-Exp Region 8'!$P$33/'MMA Rev-Exp Region 8'!$P$9, 0)","v":{"v":0,"d":"$0.00"}},{"$f":"IFERROR('MMA Rev-Exp Region 8'!$Q$33/'MMA Rev-Exp Region 8'!$Q$9, 0)","v":{"v":0,"d":"$0.00"}},{"$f":"IFERROR('MMA Rev-Exp Region 8'!$R$33/'MMA Rev-Exp Region 8'!$R$9, 0)","v":{"v":0,"d":"$0.00"}},{"$f":"IFERROR('MMA Rev-Exp Region 8'!$S$33/'MMA Rev-Exp Region 8'!$S$9, 0)","v":{"v":0,"d":"$0.00"}},{"$f":"IFERROR('MMA Rev-Exp Region 8'!$T$33/'MMA Rev-Exp Region 8'!$T$9, 0)","v":{"v":0,"d":"$0.00"}},{"$f":"IFERROR('MMA Rev-Exp Region 8'!$U$33/'MMA Rev-Exp Region 8'!$U$9, 0)","v":{"v":0,"d":"$0.00"}},{"$f":"IFERROR('MMA Rev-Exp Region 8'!$V$33/'MMA Rev-Exp Region 8'!$V$9, 0)","v":{"v":0,"d":"$0.00"}},{"$f":"IFERROR('MMA Rev-Exp Region 8'!$W$33/'MMA Rev-Exp Region 8'!$W$9, 0)","v":{"v":0,"d":"$0.00"}},{"$f":"IFERROR('MMA Rev-Exp Region 8'!$X$33/'MMA Rev-Exp Region 8'!$X$9, 0)","v":{"v":0,"d":"$0.00"}},{"$f":"IFERROR('MMA Rev-Exp Region 8'!$Y$33/'MMA Rev-Exp Region 8'!$Y$9, 0)","v":{"v":0,"d":"$0.00"}}]
["MMA",null,null,2016,"2016-12-31","Q2","2017-06-30","Region 8","Operating Expense","Medical Benefits Expense","Professional Services","3.6","Ending IBNP for Professional Services",{"$f":"IFERROR('MMA Rev-Exp Region 8'!$O$34/'MMA Rev-Exp Region 8'!$O$9, 0)","v":{"v":0,"d":"$0.00"}},{"$f":"IFERROR('MMA Rev-Exp Region 8'!$P$34/'MMA Rev-Exp Region 8'!$P$9, 0)","v":{"v":0,"d":"$0.00"}},{"$f":"IFERROR('MMA Rev-Exp Region 8'!$Q$34/'MMA Rev-Exp Region 8'!$Q$9, 0)","v":{"v":0,"d":"$0.00"}},{"$f":"IFERROR('MMA Rev-Exp Region 8'!$R$34/'MMA Rev-Exp Region 8'!$R$9, 0)","v":{"v":0,"d":"$0.00"}},{"$f":"IFERROR('MMA Rev-Exp Region 8'!$S$34/'MMA Rev-Exp Region 8'!$S$9, 0)","v":{"v":0,"d":"$0.00"}},{"$f":"IFERROR('MMA Rev-Exp Region 8'!$T$34/'MMA Rev-Exp Region 8'!$T$9, 0)","v":{"v":0,"d":"$0.00"}},{"$f":"IFERROR('MMA Rev-Exp Region 8'!$U$34/'MMA Rev-Exp Region 8'!$U$9, 0)","v":{"v":0,"d":"$0.00"}},{"$f":"IFERROR('MMA Rev-Exp Region 8'!$V$34/'MMA Rev-Exp Region 8'!$V$9, 0)","v":{"v":0,"d":"$0.00"}},{"$f":"IFERROR('MMA Rev-Exp Region 8'!$W$34/'MMA Rev-Exp Region 8'!$W$9, 0)","v":{"v":0,"d":"$0.00"}},{"$f":"IFERROR('MMA Rev-Exp Region 8'!$X$34/'MMA Rev-Exp Region 8'!$X$9, 0)","v":{"v":0,"d":"$0.00"}},{"$f":"IFERROR('MMA Rev-Exp Region 8'!$Y$34/'MMA Rev-Exp Region 8'!$Y$9, 0)","v":{"v":0,"d":"$0.00"}}]
["MMA",null,null,2016,"2016-12-31","Q2","2017-06-30","Region 8","Operating Expense","Medical Benefits Expense","Professional Services","3.7","Professional Services Settlements",{"$f":"IFERROR('MMA Rev-Exp Region 8'!$O$35/'MMA Rev-Exp Region 8'!$O$9, 0)","v":{"v":0,"d":"$0.00"}},{"$f":"IFERROR('MMA Rev-Exp Region 8'!$P$35/'MMA Rev-Exp Region 8'!$P$9, 0)","v":{"v":0,"d":"$0.00"}},{"$f":"IFERROR('MMA Rev-Exp Region 8'!$Q$35/'MMA Rev-Exp Region 8'!$Q$9, 0)","v":{"v":0,"d":"$0.00"}},{"$f":"IFERROR('MMA Rev-Exp Region 8'!$R$35/'MMA Rev-Exp Region 8'!$R$9, 0)","v":{"v":0,"d":"$0.00"}},{"$f":"IFERROR('MMA Rev-Exp Region 8'!$S$35/'MMA Rev-Exp Region 8'!$S$9, 0)","v":{"v":0,"d":"$0.00"}},{"$f":"IFERROR('MMA Rev-Exp Region 8'!$T$35/'MMA Rev-Exp Region 8'!$T$9, 0)","v":{"v":0,"d":"$0.00"}},{"$f":"IFERROR('MMA Rev-Exp Region 8'!$U$35/'MMA Rev-Exp Region 8'!$U$9, 0)","v":{"v":0,"d":"$0.00"}},{"$f":"IFERROR('MMA Rev-Exp Region 8'!$V$35/'MMA Rev-Exp Region 8'!$V$9, 0)","v":{"v":0,"d":"$0.00"}},{"$f":"IFERROR('MMA Rev-Exp Region 8'!$W$35/'MMA Rev-Exp Region 8'!$W$9, 0)","v":{"v":0,"d":"$0.00"}},{"$f":"IFERROR('MMA Rev-Exp Region 8'!$X$35/'MMA Rev-Exp Region 8'!$X$9, 0)","v":{"v":0,"d":"$0.00"}},{"$f":"IFERROR('MMA Rev-Exp Region 8'!$Y$35/'MMA Rev-Exp Region 8'!$Y$9, 0)","v":{"v":0,"d":"$0.00"}}]
["MMA",null,null,2016,"2016-12-31","Q2","2017-06-30","Region 8","Operating Expense","Medical Benefits Expense","Maternity Services","4.1.1","Maternity Services",{"$f":"IFERROR('MMA Rev-Exp Region 8'!$O$37/'MMA Rev-Exp Region 8'!$O$9, 0)","v":{"v":0,"d":"$0.00"}},{"$f":"IFERROR('MMA Rev-Exp Region 8'!$P$37/'MMA Rev-Exp Region 8'!$P$9, 0)","v":{"v":0,"d":"$0.00"}},{"$f":"IFERROR('MMA Rev-Exp Region 8'!$Q$37/'MMA Rev-Exp Region 8'!$Q$9, 0)","v":{"v":0,"d":"$0.00"}},{"$f":"IFERROR('MMA Rev-Exp Region 8'!$R$37/'MMA Rev-Exp Region 8'!$R$9, 0)","v":{"v":0,"d":"$0.00"}},{"$f":"IFERROR('MMA Rev-Exp Region 8'!$S$37/'MMA Rev-Exp Region 8'!$S$9, 0)","v":{"v":0,"d":"$0.00"}},{"$f":"IFERROR('MMA Rev-Exp Region 8'!$T$37/'MMA Rev-Exp Region 8'!$T$9, 0)","v":{"v":0,"d":"$0.00"}},{"$f":"IFERROR('MMA Rev-Exp Region 8'!$U$37/'MMA Rev-Exp Region 8'!$U$9, 0)","v":{"v":0,"d":"$0.00"}},{"$f":"IFERROR('MMA Rev-Exp Region 8'!$V$37/'MMA Rev-Exp Region 8'!$V$9, 0)","v":{"v":0,"d":"$0.00"}},{"$f":"IFERROR('MMA Rev-Exp Region 8'!$W$37/'MMA Rev-Exp Region 8'!$W$9, 0)","v":{"v":0,"d":"$0.00"}},{"$f":"IFERROR('MMA Rev-Exp Region 8'!$X$37/'MMA Rev-Exp Region 8'!$X$9, 0)","v":{"v":0,"d":"$0.00"}},{"$f":"IFERROR('MMA Rev-Exp Region 8'!$Y$37/'MMA Rev-Exp Region 8'!$Y$9, 0)","v":{"v":0,"d":"$0.00"}}]
["MMA",null,null,2016,"2016-12-31","Q2","2017-06-30","Region 8","Operating Expense","Medical Benefits Expense","Maternity Services","4.2.1","Ending IBNP for Maternity Services",{"$f":"IFERROR('MMA Rev-Exp Region 8'!$O$38/'MMA Rev-Exp Region 8'!$O$9, 0)","v":{"v":0,"d":"$0.00"}},{"$f":"IFERROR('MMA Rev-Exp Region 8'!$P$38/'MMA Rev-Exp Region 8'!$P$9, 0)","v":{"v":0,"d":"$0.00"}},{"$f":"IFERROR('MMA Rev-Exp Region 8'!$Q$38/'MMA Rev-Exp Region 8'!$Q$9, 0)","v":{"v":0,"d":"$0.00"}},{"$f":"IFERROR('MMA Rev-Exp Region 8'!$R$38/'MMA Rev-Exp Region 8'!$R$9, 0)","v":{"v":0,"d":"$0.00"}},{"$f":"IFERROR('MMA Rev-Exp Region 8'!$S$38/'MMA Rev-Exp Region 8'!$S$9, 0)","v":{"v":0,"d":"$0.00"}},{"$f":"IFERROR('MMA Rev-Exp Region 8'!$T$38/'MMA Rev-Exp Region 8'!$T$9, 0)","v":{"v":0,"d":"$0.00"}},{"$f":"IFERROR('MMA Rev-Exp Region 8'!$U$38/'MMA Rev-Exp Region 8'!$U$9, 0)","v":{"v":0,"d":"$0.00"}},{"$f":"IFERROR('MMA Rev-Exp Region 8'!$V$38/'MMA Rev-Exp Region 8'!$V$9, 0)","v":{"v":0,"d":"$0.00"}},{"$f":"IFERROR('MMA Rev-Exp Region 8'!$W$38/'MMA Rev-Exp Region 8'!$W$9, 0)","v":{"v":0,"d":"$0.00"}},{"$f":"IFERROR('MMA Rev-Exp Region 8'!$X$38/'MMA Rev-Exp Region 8'!$X$9, 0)","v":{"v":0,"d":"$0.00"}},{"$f":"IFERROR('MMA Rev-Exp Region 8'!$Y$38/'MMA Rev-Exp Region 8'!$Y$9, 0)","v":{"v":0,"d":"$0.00"}}]
["MMA",null,null,2016,"2016-12-31","Q2","2017-06-30","Region 8","Operating Expense","Medical Benefits Expense","Maternity Services","4.3.1","Maternity Settlements",{"$f":"IFERROR('MMA Rev-Exp Region 8'!$O$39/'MMA Rev-Exp Region 8'!$O$9, 0)","v":{"v":0,"d":"$0.00"}},{"$f":"IFERROR('MMA Rev-Exp Region 8'!$P$39/'MMA Rev-Exp Region 8'!$P$9, 0)","v":{"v":0,"d":"$0.00"}},{"$f":"IFERROR('MMA Rev-Exp Region 8'!$Q$39/'MMA Rev-Exp Region 8'!$Q$9, 0)","v":{"v":0,"d":"$0.00"}},{"$f":"IFERROR('MMA Rev-Exp Region 8'!$R$39/'MMA Rev-Exp Region 8'!$R$9, 0)","v":{"v":0,"d":"$0.00"}},{"$f":"IFERROR('MMA Rev-Exp Region 8'!$S$39/'MMA Rev-Exp Region 8'!$S$9, 0)","v":{"v":0,"d":"$0.00"}},{"$f":"IFERROR('MMA Rev-Exp Region 8'!$T$39/'MMA Rev-Exp Region 8'!$T$9, 0)","v":{"v":0,"d":"$0.00"}},{"$f":"IFERROR('MMA Rev-Exp Region 8'!$U$39/'MMA Rev-Exp Region 8'!$U$9, 0)","v":{"v":0,"d":"$0.00"}},{"$f":"IFERROR('MMA Rev-Exp Region 8'!$V$39/'MMA Rev-Exp Region 8'!$V$9, 0)","v":{"v":0,"d":"$0.00"}},{"$f":"IFERROR('MMA Rev-Exp Region 8'!$W$39/'MMA Rev-Exp Region 8'!$W$9, 0)","v":{"v":0,"d":"$0.00"}},{"$f":"IFERROR('MMA Rev-Exp Region 8'!$X$39/'MMA Rev-Exp Region 8'!$X$9, 0)","v":{"v":0,"d":"$0.00"}},{"$f":"IFERROR('MMA Rev-Exp Region 8'!$Y$39/'MMA Rev-Exp Region 8'!$Y$9, 0)","v":{"v":0,"d":"$0.00"}}]
["MMA",null,null,2016,"2016-12-31","Q2","2017-06-30","Region 8","Operating Expense","Medical Benefits Expense","Mental Health Services",5.1,"Mental Health & Substance Abuse FFS",{"$f":"IFERROR('MMA Rev-Exp Region 8'!$O$41/'MMA Rev-Exp Region 8'!$O$9, 0)","v":{"v":0,"d":"$0.00"}},{"$f":"IFERROR('MMA Rev-Exp Region 8'!$P$41/'MMA Rev-Exp Region 8'!$P$9, 0)","v":{"v":0,"d":"$0.00"}},{"$f":"IFERROR('MMA Rev-Exp Region 8'!$Q$41/'MMA Rev-Exp Region 8'!$Q$9, 0)","v":{"v":0,"d":"$0.00"}},{"$f":"IFERROR('MMA Rev-Exp Region 8'!$R$41/'MMA Rev-Exp Region 8'!$R$9, 0)","v":{"v":0,"d":"$0.00"}},{"$f":"IFERROR('MMA Rev-Exp Region 8'!$S$41/'MMA Rev-Exp Region 8'!$S$9, 0)","v":{"v":0,"d":"$0.00"}},{"$f":"IFERROR('MMA Rev-Exp Region 8'!$T$41/'MMA Rev-Exp Region 8'!$T$9, 0)","v":{"v":0,"d":"$0.00"}},{"$f":"IFERROR('MMA Rev-Exp Region 8'!$U$41/'MMA Rev-Exp Region 8'!$U$9, 0)","v":{"v":0,"d":"$0.00"}},{"$f":"IFERROR('MMA Rev-Exp Region 8'!$V$41/'MMA Rev-Exp Region 8'!$V$9, 0)","v":{"v":0,"d":"$0.00"}},{"$f":"IFERROR('MMA Rev-Exp Region 8'!$W$41/'MMA Rev-Exp Region 8'!$W$9, 0)","v":{"v":0,"d":"$0.00"}},{"$f":"IFERROR('MMA Rev-Exp Region 8'!$X$41/'MMA Rev-Exp Region 8'!$X$9, 0)","v":{"v":0,"d":"$0.00"}},{"$f":"IFERROR('MMA Rev-Exp Region 8'!$Y$41/'MMA Rev-Exp Region 8'!$Y$9, 0)","v":{"v":0,"d":"$0.00"}}]
["MMA",null,null,2016,"2016-12-31","Q2","2017-06-30","Region 8","Operating Expense","Medical Benefits Expense","Mental Health Services",5.2,"Mental Health & Substance Abuse Subcapitation",{"$f":"IFERROR('MMA Rev-Exp Region 8'!$O$42/'MMA Rev-Exp Region 8'!$O$9, 0)","v":{"v":0,"d":"$0.00"}},{"$f":"IFERROR('MMA Rev-Exp Region 8'!$P$42/'MMA Rev-Exp Region 8'!$P$9, 0)","v":{"v":0,"d":"$0.00"}},{"$f":"IFERROR('MMA Rev-Exp Region 8'!$Q$42/'MMA Rev-Exp Region 8'!$Q$9, 0)","v":{"v":0,"d":"$0.00"}},{"$f":"IFERROR('MMA Rev-Exp Region 8'!$R$42/'MMA Rev-Exp Region 8'!$R$9, 0)","v":{"v":0,"d":"$0.00"}},{"$f":"IFERROR('MMA Rev-Exp Region 8'!$S$42/'MMA Rev-Exp Region 8'!$S$9, 0)","v":{"v":0,"d":"$0.00"}},{"$f":"IFERROR('MMA Rev-Exp Region 8'!$T$42/'MMA Rev-Exp Region 8'!$T$9, 0)","v":{"v":0,"d":"$0.00"}},{"$f":"IFERROR('MMA Rev-Exp Region 8'!$U$42/'MMA Rev-Exp Region 8'!$U$9, 0)","v":{"v":0,"d":"$0.00"}},{"$f":"IFERROR('MMA Rev-Exp Region 8'!$V$42/'MMA Rev-Exp Region 8'!$V$9, 0)","v":{"v":0,"d":"$0.00"}},{"$f":"IFERROR('MMA Rev-Exp Region 8'!$W$42/'MMA Rev-Exp Region 8'!$W$9, 0)","v":{"v":0,"d":"$0.00"}},{"$f":"IFERROR('MMA Rev-Exp Region 8'!$X$42/'MMA Rev-Exp Region 8'!$X$9, 0)","v":{"v":0,"d":"$0.00"}},{"$f":"IFERROR('MMA Rev-Exp Region 8'!$Y$42/'MMA Rev-Exp Region 8'!$Y$9, 0)","v":{"v":0,"d":"$0.00"}}]
["MMA",null,null,2016,"2016-12-31","Q2","2017-06-30","Region 8","Operating Expense","Medical Benefits Expense","Mental Health Services",5.3,"Ending IBNP for Mental Health & Substance Abuse",{"$f":"IFERROR('MMA Rev-Exp Region 8'!$O$43/'MMA Rev-Exp Region 8'!$O$9, 0)","v":{"v":0,"d":"$0.00"}},{"$f":"IFERROR('MMA Rev-Exp Region 8'!$P$43/'MMA Rev-Exp Region 8'!$P$9, 0)","v":{"v":0,"d":"$0.00"}},{"$f":"IFERROR('MMA Rev-Exp Region 8'!$Q$43/'MMA Rev-Exp Region 8'!$Q$9, 0)","v":{"v":0,"d":"$0.00"}},{"$f":"IFERROR('MMA Rev-Exp Region 8'!$R$43/'MMA Rev-Exp Region 8'!$R$9, 0)","v":{"v":0,"d":"$0.00"}},{"$f":"IFERROR('MMA Rev-Exp Region 8'!$S$43/'MMA Rev-Exp Region 8'!$S$9, 0)","v":{"v":0,"d":"$0.00"}},{"$f":"IFERROR('MMA Rev-Exp Region 8'!$T$43/'MMA Rev-Exp Region 8'!$T$9, 0)","v":{"v":0,"d":"$0.00"}},{"$f":"IFERROR('MMA Rev-Exp Region 8'!$U$43/'MMA Rev-Exp Region 8'!$U$9, 0)","v":{"v":0,"d":"$0.00"}},{"$f":"IFERROR('MMA Rev-Exp Region 8'!$V$43/'MMA Rev-Exp Region 8'!$V$9, 0)","v":{"v":0,"d":"$0.00"}},{"$f":"IFERROR('MMA Rev-Exp Region 8'!$W$43/'MMA Rev-Exp Region 8'!$W$9, 0)","v":{"v":0,"d":"$0.00"}},{"$f":"IFERROR('MMA Rev-Exp Region 8'!$X$43/'MMA Rev-Exp Region 8'!$X$9, 0)","v":{"v":0,"d":"$0.00"}},{"$f":"IFERROR('MMA Rev-Exp Region 8'!$Y$43/'MMA Rev-Exp Region 8'!$Y$9, 0)","v":{"v":0,"d":"$0.00"}}]
["MMA",null,null,2016,"2016-12-31","Q2","2017-06-30","Region 8","Operating Expense","Medical Benefits Expense","Mental Health Services","5.4","Mental Health Settlements",{"$f":"IFERROR('MMA Rev-Exp Region 8'!$O$44/'MMA Rev-Exp Region 8'!$O$9, 0)","v":{"v":0,"d":"$0.00"}},{"$f":"IFERROR('MMA Rev-Exp Region 8'!$P$44/'MMA Rev-Exp Region 8'!$P$9, 0)","v":{"v":0,"d":"$0.00"}},{"$f":"IFERROR('MMA Rev-Exp Region 8'!$Q$44/'MMA Rev-Exp Region 8'!$Q$9, 0)","v":{"v":0,"d":"$0.00"}},{"$f":"IFERROR('MMA Rev-Exp Region 8'!$R$44/'MMA Rev-Exp Region 8'!$R$9, 0)","v":{"v":0,"d":"$0.00"}},{"$f":"IFERROR('MMA Rev-Exp Region 8'!$S$44/'MMA Rev-Exp Region 8'!$S$9, 0)","v":{"v":0,"d":"$0.00"}},{"$f":"IFERROR('MMA Rev-Exp Region 8'!$T$44/'MMA Rev-Exp Region 8'!$T$9, 0)","v":{"v":0,"d":"$0.00"}},{"$f":"IFERROR('MMA Rev-Exp Region 8'!$U$44/'MMA Rev-Exp Region 8'!$U$9, 0)","v":{"v":0,"d":"$0.00"}},{"$f":"IFERROR('MMA Rev-Exp Region 8'!$V$44/'MMA Rev-Exp Region 8'!$V$9, 0)","v":{"v":0,"d":"$0.00"}},{"$f":"IFERROR('MMA Rev-Exp Region 8'!$W$44/'MMA Rev-Exp Region 8'!$W$9, 0)","v":{"v":0,"d":"$0.00"}},{"$f":"IFERROR('MMA Rev-Exp Region 8'!$X$44/'MMA Rev-Exp Region 8'!$X$9, 0)","v":{"v":0,"d":"$0.00"}},{"$f":"IFERROR('MMA Rev-Exp Region 8'!$Y$44/'MMA Rev-Exp Region 8'!$Y$9, 0)","v":{"v":0,"d":"$0.00"}}]
["MMA",null,null,2016,"2016-12-31","Q2","2017-06-30","Region 8","Operating Expense","Medical Benefits Expense","Dental Services",6.1,"Dental FFS",{"$f":"IFERROR('MMA Rev-Exp Region 8'!$O$46/'MMA Rev-Exp Region 8'!$O$9, 0)","v":{"v":0,"d":"$0.00"}},{"$f":"IFERROR('MMA Rev-Exp Region 8'!$P$46/'MMA Rev-Exp Region 8'!$P$9, 0)","v":{"v":0,"d":"$0.00"}},{"$f":"IFERROR('MMA Rev-Exp Region 8'!$Q$46/'MMA Rev-Exp Region 8'!$Q$9, 0)","v":{"v":0,"d":"$0.00"}},{"$f":"IFERROR('MMA Rev-Exp Region 8'!$R$46/'MMA Rev-Exp Region 8'!$R$9, 0)","v":{"v":0,"d":"$0.00"}},{"$f":"IFERROR('MMA Rev-Exp Region 8'!$S$46/'MMA Rev-Exp Region 8'!$S$9, 0)","v":{"v":0,"d":"$0.00"}},{"$f":"IFERROR('MMA Rev-Exp Region 8'!$T$46/'MMA Rev-Exp Region 8'!$T$9, 0)","v":{"v":0,"d":"$0.00"}},{"$f":"IFERROR('MMA Rev-Exp Region 8'!$U$46/'MMA Rev-Exp Region 8'!$U$9, 0)","v":{"v":0,"d":"$0.00"}},{"$f":"IFERROR('MMA Rev-Exp Region 8'!$V$46/'MMA Rev-Exp Region 8'!$V$9, 0)","v":{"v":0,"d":"$0.00"}},{"$f":"IFERROR('MMA Rev-Exp Region 8'!$W$46/'MMA Rev-Exp Region 8'!$W$9, 0)","v":{"v":0,"d":"$0.00"}},{"$f":"IFERROR('MMA Rev-Exp Region 8'!$X$46/'MMA Rev-Exp Region 8'!$X$9, 0)","v":{"v":0,"d":"$0.00"}},{"$f":"IFERROR('MMA Rev-Exp Region 8'!$Y$46/'MMA Rev-Exp Region 8'!$Y$9, 0)","v":{"v":0,"d":"$0.00"}}]
["MMA",null,null,2016,"2016-12-31","Q2","2017-06-30","Region 8","Operating Expense","Medical Benefits Expense","Dental Services",6.2,"Dental Subcapitation",{"$f":"IFERROR('MMA Rev-Exp Region 8'!$O$47/'MMA Rev-Exp Region 8'!$O$9, 0)","v":{"v":0,"d":"$0.00"}},{"$f":"IFERROR('MMA Rev-Exp Region 8'!$P$47/'MMA Rev-Exp Region 8'!$P$9, 0)","v":{"v":0,"d":"$0.00"}},{"$f":"IFERROR('MMA Rev-Exp Region 8'!$Q$47/'MMA Rev-Exp Region 8'!$Q$9, 0)","v":{"v":0,"d":"$0.00"}},{"$f":"IFERROR('MMA Rev-Exp Region 8'!$R$47/'MMA Rev-Exp Region 8'!$R$9, 0)","v":{"v":0,"d":"$0.00"}},{"$f":"IFERROR('MMA Rev-Exp Region 8'!$S$47/'MMA Rev-Exp Region 8'!$S$9, 0)","v":{"v":0,"d":"$0.00"}},{"$f":"IFERROR('MMA Rev-Exp Region 8'!$T$47/'MMA Rev-Exp Region 8'!$T$9, 0)","v":{"v":0,"d":"$0.00"}},{"$f":"IFERROR('MMA Rev-Exp Region 8'!$U$47/'MMA Rev-Exp Region 8'!$U$9, 0)","v":{"v":0,"d":"$0.00"}},{"$f":"IFERROR('MMA Rev-Exp Region 8'!$V$47/'MMA Rev-Exp Region 8'!$V$9, 0)","v":{"v":0,"d":"$0.00"}},{"$f":"IFERROR('MMA Rev-Exp Region 8'!$W$47/'MMA Rev-Exp Region 8'!$W$9, 0)","v":{"v":0,"d":"$0.00"}},{"$f":"IFERROR('MMA Rev-Exp Region 8'!$X$47/'MMA Rev-Exp Region 8'!$X$9, 0)","v":{"v":0,"d":"$0.00"}},{"$f":"IFERROR('MMA Rev-Exp Region 8'!$Y$47/'MMA Rev-Exp Region 8'!$Y$9, 0)","v":{"v":0,"d":"$0.00"}}]
["MMA",null,null,2016,"2016-12-31","Q2","2017-06-30","Region 8","Operating Expense","Medical Benefits Expense","Dental Services",6.3,"Ending IBNP for Dental Services",{"$f":"IFERROR('MMA Rev-Exp Region 8'!$O$48/'MMA Rev-Exp Region 8'!$O$9, 0)","v":{"v":0,"d":"$0.00"}},{"$f":"IFERROR('MMA Rev-Exp Region 8'!$P$48/'MMA Rev-Exp Region 8'!$P$9, 0)","v":{"v":0,"d":"$0.00"}},{"$f":"IFERROR('MMA Rev-Exp Region 8'!$Q$48/'MMA Rev-Exp Region 8'!$Q$9, 0)","v":{"v":0,"d":"$0.00"}},{"$f":"IFERROR('MMA Rev-Exp Region 8'!$R$48/'MMA Rev-Exp Region 8'!$R$9, 0)","v":{"v":0,"d":"$0.00"}},{"$f":"IFERROR('MMA Rev-Exp Region 8'!$S$48/'MMA Rev-Exp Region 8'!$S$9, 0)","v":{"v":0,"d":"$0.00"}},{"$f":"IFERROR('MMA Rev-Exp Region 8'!$T$48/'MMA Rev-Exp Region 8'!$T$9, 0)","v":{"v":0,"d":"$0.00"}},{"$f":"IFERROR('MMA Rev-Exp Region 8'!$U$48/'MMA Rev-Exp Region 8'!$U$9, 0)","v":{"v":0,"d":"$0.00"}},{"$f":"IFERROR('MMA Rev-Exp Region 8'!$V$48/'MMA Rev-Exp Region 8'!$V$9, 0)","v":{"v":0,"d":"$0.00"}},{"$f":"IFERROR('MMA Rev-Exp Region 8'!$W$48/'MMA Rev-Exp Region 8'!$W$9, 0)","v":{"v":0,"d":"$0.00"}},{"$f":"IFERROR('MMA Rev-Exp Region 8'!$X$48/'MMA Rev-Exp Region 8'!$X$9, 0)","v":{"v":0,"d":"$0.00"}},{"$f":"IFERROR('MMA Rev-Exp Region 8'!$Y$48/'MMA Rev-Exp Region 8'!$Y$9, 0)","v":{"v":0,"d":"$0.00"}}]
["MMA",null,null,2016,"2016-12-31","Q2","2017-06-30","Region 8","Operating Expense","Medical Benefits Expense","Dental Services","6.4","Dental Settlements",{"$f":"IFERROR('MMA Rev-Exp Region 8'!$O$49/'MMA Rev-Exp Region 8'!$O$9, 0)","v":{"v":0,"d":"$0.00"}},{"$f":"IFERROR('MMA Rev-Exp Region 8'!$P$49/'MMA Rev-Exp Region 8'!$P$9, 0)","v":{"v":0,"d":"$0.00"}},{"$f":"IFERROR('MMA Rev-Exp Region 8'!$Q$49/'MMA Rev-Exp Region 8'!$Q$9, 0)","v":{"v":0,"d":"$0.00"}},{"$f":"IFERROR('MMA Rev-Exp Region 8'!$R$49/'MMA Rev-Exp Region 8'!$R$9, 0)","v":{"v":0,"d":"$0.00"}},{"$f":"IFERROR('MMA Rev-Exp Region 8'!$S$49/'MMA Rev-Exp Region 8'!$S$9, 0)","v":{"v":0,"d":"$0.00"}},{"$f":"IFERROR('MMA Rev-Exp Region 8'!$T$49/'MMA Rev-Exp Region 8'!$T$9, 0)","v":{"v":0,"d":"$0.00"}},{"$f":"IFERROR('MMA Rev-Exp Region 8'!$U$49/'MMA Rev-Exp Region 8'!$U$9, 0)","v":{"v":0,"d":"$0.00"}},{"$f":"IFERROR('MMA Rev-Exp Region 8'!$V$49/'MMA Rev-Exp Region 8'!$V$9, 0)","v":{"v":0,"d":"$0.00"}},{"$f":"IFERROR('MMA Rev-Exp Region 8'!$W$49/'MMA Rev-Exp Region 8'!$W$9, 0)","v":{"v":0,"d":"$0.00"}},{"$f":"IFERROR('MMA Rev-Exp Region 8'!$X$49/'MMA Rev-Exp Region 8'!$X$9, 0)","v":{"v":0,"d":"$0.00"}},{"$f":"IFERROR('MMA Rev-Exp Region 8'!$Y$49/'MMA Rev-Exp Region 8'!$Y$9, 0)","v":{"v":0,"d":"$0.00"}}]
["MMA",null,null,2016,"2016-12-31","Q2","2017-06-30","Region 8","Operating Expense","Medical Benefits Expense","Transportation Services",7.1,"Transportation FFS",{"$f":"IFERROR('MMA Rev-Exp Region 8'!$O$51/'MMA Rev-Exp Region 8'!$O$9, 0)","v":{"v":0,"d":"$0.00"}},{"$f":"IFERROR('MMA Rev-Exp Region 8'!$P$51/'MMA Rev-Exp Region 8'!$P$9, 0)","v":{"v":0,"d":"$0.00"}},{"$f":"IFERROR('MMA Rev-Exp Region 8'!$Q$51/'MMA Rev-Exp Region 8'!$Q$9, 0)","v":{"v":0,"d":"$0.00"}},{"$f":"IFERROR('MMA Rev-Exp Region 8'!$R$51/'MMA Rev-Exp Region 8'!$R$9, 0)","v":{"v":0,"d":"$0.00"}},{"$f":"IFERROR('MMA Rev-Exp Region 8'!$S$51/'MMA Rev-Exp Region 8'!$S$9, 0)","v":{"v":0,"d":"$0.00"}},{"$f":"IFERROR('MMA Rev-Exp Region 8'!$T$51/'MMA Rev-Exp Region 8'!$T$9, 0)","v":{"v":0,"d":"$0.00"}},{"$f":"IFERROR('MMA Rev-Exp Region 8'!$U$51/'MMA Rev-Exp Region 8'!$U$9, 0)","v":{"v":0,"d":"$0.00"}},{"$f":"IFERROR('MMA Rev-Exp Region 8'!$V$51/'MMA Rev-Exp Region 8'!$V$9, 0)","v":{"v":0,"d":"$0.00"}},{"$f":"IFERROR('MMA Rev-Exp Region 8'!$W$51/'MMA Rev-Exp Region 8'!$W$9, 0)","v":{"v":0,"d":"$0.00"}},{"$f":"IFERROR('MMA Rev-Exp Region 8'!$X$51/'MMA Rev-Exp Region 8'!$X$9, 0)","v":{"v":0,"d":"$0.00"}},{"$f":"IFERROR('MMA Rev-Exp Region 8'!$Y$51/'MMA Rev-Exp Region 8'!$Y$9, 0)","v":{"v":0,"d":"$0.00"}}]
["MMA",null,null,2016,"2016-12-31","Q2","2017-06-30","Region 8","Operating Expense","Medical Benefits Expense","Transportation Services",7.2,"Transportation Subcapitation",{"$f":"IFERROR('MMA Rev-Exp Region 8'!$O$52/'MMA Rev-Exp Region 8'!$O$9, 0)","v":{"v":0,"d":"$0.00"}},{"$f":"IFERROR('MMA Rev-Exp Region 8'!$P$52/'MMA Rev-Exp Region 8'!$P$9, 0)","v":{"v":0,"d":"$0.00"}},{"$f":"IFERROR('MMA Rev-Exp Region 8'!$Q$52/'MMA Rev-Exp Region 8'!$Q$9, 0)","v":{"v":0,"d":"$0.00"}},{"$f":"IFERROR('MMA Rev-Exp Region 8'!$R$52/'MMA Rev-Exp Region 8'!$R$9, 0)","v":{"v":0,"d":"$0.00"}},{"$f":"IFERROR('MMA Rev-Exp Region 8'!$S$52/'MMA Rev-Exp Region 8'!$S$9, 0)","v":{"v":0,"d":"$0.00"}},{"$f":"IFERROR('MMA Rev-Exp Region 8'!$T$52/'MMA Rev-Exp Region 8'!$T$9, 0)","v":{"v":0,"d":"$0.00"}},{"$f":"IFERROR('MMA Rev-Exp Region 8'!$U$52/'MMA Rev-Exp Region 8'!$U$9, 0)","v":{"v":0,"d":"$0.00"}},{"$f":"IFERROR('MMA Rev-Exp Region 8'!$V$52/'MMA Rev-Exp Region 8'!$V$9, 0)","v":{"v":0,"d":"$0.00"}},{"$f":"IFERROR('MMA Rev-Exp Region 8'!$W$52/'MMA Rev-Exp Region 8'!$W$9, 0)","v":{"v":0,"d":"$0.00"}},{"$f":"IFERROR('MMA Rev-Exp Region 8'!$X$52/'MMA Rev-Exp Region 8'!$X$9, 0)","v":{"v":0,"d":"$0.00"}},{"$f":"IFERROR('MMA Rev-Exp Region 8'!$Y$52/'MMA Rev-Exp Region 8'!$Y$9, 0)","v":{"v":0,"d":"$0.00"}}]
["MMA",null,null,2016,"2016-12-31","Q2","2017-06-30","Region 8","Operating Expense","Medical Benefits Expense","Transportation Services",7.3,"Ending IBNP for Transportation",{"$f":"IFERROR('MMA Rev-Exp Region 8'!$O$53/'MMA Rev-Exp Region 8'!$O$9, 0)","v":{"v":0,"d":"$0.00"}},{"$f":"IFERROR('MMA Rev-Exp Region 8'!$P$53/'MMA Rev-Exp Region 8'!$P$9, 0)","v":{"v":0,"d":"$0.00"}},{"$f":"IFERROR('MMA Rev-Exp Region 8'!$Q$53/'MMA Rev-Exp Region 8'!$Q$9, 0)","v":{"v":0,"d":"$0.00"}},{"$f":"IFERROR('MMA Rev-Exp Region 8'!$R$53/'MMA Rev-Exp Region 8'!$R$9, 0)","v":{"v":0,"d":"$0.00"}},{"$f":"IFERROR('MMA Rev-Exp Region 8'!$S$53/'MMA Rev-Exp Region 8'!$S$9, 0)","v":{"v":0,"d":"$0.00"}},{"$f":"IFERROR('MMA Rev-Exp Region 8'!$T$53/'MMA Rev-Exp Region 8'!$T$9, 0)","v":{"v":0,"d":"$0.00"}},{"$f":"IFERROR('MMA Rev-Exp Region 8'!$U$53/'MMA Rev-Exp Region 8'!$U$9, 0)","v":{"v":0,"d":"$0.00"}},{"$f":"IFERROR('MMA Rev-Exp Region 8'!$V$53/'MMA Rev-Exp Region 8'!$V$9, 0)","v":{"v":0,"d":"$0.00"}},{"$f":"IFERROR('MMA Rev-Exp Region 8'!$W$53/'MMA Rev-Exp Region 8'!$W$9, 0)","v":{"v":0,"d":"$0.00"}},{"$f":"IFERROR('MMA Rev-Exp Region 8'!$X$53/'MMA Rev-Exp Region 8'!$X$9, 0)","v":{"v":0,"d":"$0.00"}},{"$f":"IFERROR('MMA Rev-Exp Region 8'!$Y$53/'MMA Rev-Exp Region 8'!$Y$9, 0)","v":{"v":0,"d":"$0.00"}}]
["MMA",null,null,2016,"2016-12-31","Q2","2017-06-30","Region 8","Operating Expense","Medical Benefits Expense","Transportation Services","7.4","Transportation Settlements",{"$f":"IFERROR('MMA Rev-Exp Region 8'!$O$54/'MMA Rev-Exp Region 8'!$O$9, 0)","v":{"v":0,"d":"$0.00"}},{"$f":"IFERROR('MMA Rev-Exp Region 8'!$P$54/'MMA Rev-Exp Region 8'!$P$9, 0)","v":{"v":0,"d":"$0.00"}},{"$f":"IFERROR('MMA Rev-Exp Region 8'!$Q$54/'MMA Rev-Exp Region 8'!$Q$9, 0)","v":{"v":0,"d":"$0.00"}},{"$f":"IFERROR('MMA Rev-Exp Region 8'!$R$54/'MMA Rev-Exp Region 8'!$R$9, 0)","v":{"v":0,"d":"$0.00"}},{"$f":"IFERROR('MMA Rev-Exp Region 8'!$S$54/'MMA Rev-Exp Region 8'!$S$9, 0)","v":{"v":0,"d":"$0.00"}},{"$f":"IFERROR('MMA Rev-Exp Region 8'!$T$54/'MMA Rev-Exp Region 8'!$T$9, 0)","v":{"v":0,"d":"$0.00"}},{"$f":"IFERROR('MMA Rev-Exp Region 8'!$U$54/'MMA Rev-Exp Region 8'!$U$9, 0)","v":{"v":0,"d":"$0.00"}},{"$f":"IFERROR('MMA Rev-Exp Region 8'!$V$54/'MMA Rev-Exp Region 8'!$V$9, 0)","v":{"v":0,"d":"$0.00"}},{"$f":"IFERROR('MMA Rev-Exp Region 8'!$W$54/'MMA Rev-Exp Region 8'!$W$9, 0)","v":{"v":0,"d":"$0.00"}},{"$f":"IFERROR('MMA Rev-Exp Region 8'!$X$54/'MMA Rev-Exp Region 8'!$X$9, 0)","v":{"v":0,"d":"$0.00"}},{"$f":"IFERROR('MMA Rev-Exp Region 8'!$Y$54/'MMA Rev-Exp Region 8'!$Y$9, 0)","v":{"v":0,"d":"$0.00"}}]
["MMA",null,null,2016,"2016-12-31","Q2","2017-06-30","Region 8","Operating Expense","Medical Benefits Expense","Pharmacy Services",8.1,"Prescription Drugs FFS",{"$f":"IFERROR('MMA Rev-Exp Region 8'!$O$56/'MMA Rev-Exp Region 8'!$O$9, 0)","v":{"v":0,"d":"$0.00"}},{"$f":"IFERROR('MMA Rev-Exp Region 8'!$P$56/'MMA Rev-Exp Region 8'!$P$9, 0)","v":{"v":0,"d":"$0.00"}},{"$f":"IFERROR('MMA Rev-Exp Region 8'!$Q$56/'MMA Rev-Exp Region 8'!$Q$9, 0)","v":{"v":0,"d":"$0.00"}},{"$f":"IFERROR('MMA Rev-Exp Region 8'!$R$56/'MMA Rev-Exp Region 8'!$R$9, 0)","v":{"v":0,"d":"$0.00"}},{"$f":"IFERROR('MMA Rev-Exp Region 8'!$S$56/'MMA Rev-Exp Region 8'!$S$9, 0)","v":{"v":0,"d":"$0.00"}},{"$f":"IFERROR('MMA Rev-Exp Region 8'!$T$56/'MMA Rev-Exp Region 8'!$T$9, 0)","v":{"v":0,"d":"$0.00"}},{"$f":"IFERROR('MMA Rev-Exp Region 8'!$U$56/'MMA Rev-Exp Region 8'!$U$9, 0)","v":{"v":0,"d":"$0.00"}},{"$f":"IFERROR('MMA Rev-Exp Region 8'!$V$56/'MMA Rev-Exp Region 8'!$V$9, 0)","v":{"v":0,"d":"$0.00"}},{"$f":"IFERROR('MMA Rev-Exp Region 8'!$W$56/'MMA Rev-Exp Region 8'!$W$9, 0)","v":{"v":0,"d":"$0.00"}},{"$f":"IFERROR('MMA Rev-Exp Region 8'!$X$56/'MMA Rev-Exp Region 8'!$X$9, 0)","v":{"v":0,"d":"$0.00"}},{"$f":"IFERROR('MMA Rev-Exp Region 8'!$Y$56/'MMA Rev-Exp Region 8'!$Y$9, 0)","v":{"v":0,"d":"$0.00"}}]
["MMA",null,null,2016,"2016-12-31","Q2","2017-06-30","Region 8","Operating Expense","Medical Benefits Expense","Pharmacy Services","8.2","Hepatitis C Prescription Drug FFS",{"$f":"IFERROR('MMA Rev-Exp Region 8'!$O$57/'MMA Rev-Exp Region 8'!$O$9, 0)","v":{"v":0,"d":"$0.00"}},{"$f":"IFERROR('MMA Rev-Exp Region 8'!$P$57/'MMA Rev-Exp Region 8'!$P$9, 0)","v":{"v":0,"d":"$0.00"}},{"$f":"IFERROR('MMA Rev-Exp Region 8'!$Q$57/'MMA Rev-Exp Region 8'!$Q$9, 0)","v":{"v":0,"d":"$0.00"}},{"$f":"IFERROR('MMA Rev-Exp Region 8'!$R$57/'MMA Rev-Exp Region 8'!$R$9, 0)","v":{"v":0,"d":"$0.00"}},{"$f":"IFERROR('MMA Rev-Exp Region 8'!$S$57/'MMA Rev-Exp Region 8'!$S$9, 0)","v":{"v":0,"d":"$0.00"}},{"$f":"IFERROR('MMA Rev-Exp Region 8'!$T$57/'MMA Rev-Exp Region 8'!$T$9, 0)","v":{"v":0,"d":"$0.00"}},{"$f":"IFERROR('MMA Rev-Exp Region 8'!$U$57/'MMA Rev-Exp Region 8'!$U$9, 0)","v":{"v":0,"d":"$0.00"}},{"$f":"IFERROR('MMA Rev-Exp Region 8'!$V$57/'MMA Rev-Exp Region 8'!$V$9, 0)","v":{"v":0,"d":"$0.00"}},{"$f":"IFERROR('MMA Rev-Exp Region 8'!$W$57/'MMA Rev-Exp Region 8'!$W$9, 0)","v":{"v":0,"d":"$0.00"}},{"$f":"IFERROR('MMA Rev-Exp Region 8'!$X$57/'MMA Rev-Exp Region 8'!$X$9, 0)","v":{"v":0,"d":"$0.00"}},{"$f":"IFERROR('MMA Rev-Exp Region 8'!$Y$57/'MMA Rev-Exp Region 8'!$Y$9, 0)","v":{"v":0,"d":"$0.00"}}]
["MMA",null,null,2016,"2016-12-31","Q2","2017-06-30","Region 8","Operating Expense","Medical Benefits Expense","Pharmacy Services","8.3","Ending IBNP for Prescription Drugs",{"$f":"IFERROR('MMA Rev-Exp Region 8'!$O$58/'MMA Rev-Exp Region 8'!$O$9, 0)","v":{"v":0,"d":"$0.00"}},{"$f":"IFERROR('MMA Rev-Exp Region 8'!$P$58/'MMA Rev-Exp Region 8'!$P$9, 0)","v":{"v":0,"d":"$0.00"}},{"$f":"IFERROR('MMA Rev-Exp Region 8'!$Q$58/'MMA Rev-Exp Region 8'!$Q$9, 0)","v":{"v":0,"d":"$0.00"}},{"$f":"IFERROR('MMA Rev-Exp Region 8'!$R$58/'MMA Rev-Exp Region 8'!$R$9, 0)","v":{"v":0,"d":"$0.00"}},{"$f":"IFERROR('MMA Rev-Exp Region 8'!$S$58/'MMA Rev-Exp Region 8'!$S$9, 0)","v":{"v":0,"d":"$0.00"}},{"$f":"IFERROR('MMA Rev-Exp Region 8'!$T$58/'MMA Rev-Exp Region 8'!$T$9, 0)","v":{"v":0,"d":"$0.00"}},{"$f":"IFERROR('MMA Rev-Exp Region 8'!$U$58/'MMA Rev-Exp Region 8'!$U$9, 0)","v":{"v":0,"d":"$0.00"}},{"$f":"IFERROR('MMA Rev-Exp Region 8'!$V$58/'MMA Rev-Exp Region 8'!$V$9, 0)","v":{"v":0,"d":"$0.00"}},{"$f":"IFERROR('MMA Rev-Exp Region 8'!$W$58/'MMA Rev-Exp Region 8'!$W$9, 0)","v":{"v":0,"d":"$0.00"}},{"$f":"IFERROR('MMA Rev-Exp Region 8'!$X$58/'MMA Rev-Exp Region 8'!$X$9, 0)","v":{"v":0,"d":"$0.00"}},{"$f":"IFERROR('MMA Rev-Exp Region 8'!$Y$58/'MMA Rev-Exp Region 8'!$Y$9, 0)","v":{"v":0,"d":"$0.00"}}]
["MMA",null,null,2016,"2016-12-31","Q2","2017-06-30","Region 8","Operating Expense","Medical Benefits Expense","Pharmacy Services","8.4","Prescription Drug Rebates ",{"$f":"IFERROR('MMA Rev-Exp Region 8'!$O$59/'MMA Rev-Exp Region 8'!$O$9, 0)","v":{"v":0,"d":"$0.00"}},{"$f":"IFERROR('MMA Rev-Exp Region 8'!$P$59/'MMA Rev-Exp Region 8'!$P$9, 0)","v":{"v":0,"d":"$0.00"}},{"$f":"IFERROR('MMA Rev-Exp Region 8'!$Q$59/'MMA Rev-Exp Region 8'!$Q$9, 0)","v":{"v":0,"d":"$0.00"}},{"$f":"IFERROR('MMA Rev-Exp Region 8'!$R$59/'MMA Rev-Exp Region 8'!$R$9, 0)","v":{"v":0,"d":"$0.00"}},{"$f":"IFERROR('MMA Rev-Exp Region 8'!$S$59/'MMA Rev-Exp Region 8'!$S$9, 0)","v":{"v":0,"d":"$0.00"}},{"$f":"IFERROR('MMA Rev-Exp Region 8'!$T$59/'MMA Rev-Exp Region 8'!$T$9, 0)","v":{"v":0,"d":"$0.00"}},{"$f":"IFERROR('MMA Rev-Exp Region 8'!$U$59/'MMA Rev-Exp Region 8'!$U$9, 0)","v":{"v":0,"d":"$0.00"}},{"$f":"IFERROR('MMA Rev-Exp Region 8'!$V$59/'MMA Rev-Exp Region 8'!$V$9, 0)","v":{"v":0,"d":"$0.00"}},{"$f":"IFERROR('MMA Rev-Exp Region 8'!$W$59/'MMA Rev-Exp Region 8'!$W$9, 0)","v":{"v":0,"d":"$0.00"}},{"$f":"IFERROR('MMA Rev-Exp Region 8'!$X$59/'MMA Rev-Exp Region 8'!$X$9, 0)","v":{"v":0,"d":"$0.00"}},{"$f":"IFERROR('MMA Rev-Exp Region 8'!$Y$59/'MMA Rev-Exp Region 8'!$Y$9, 0)","v":{"v":0,"d":"$0.00"}}]
["MMA",null,null,2016,"2016-12-31","Q2","2017-06-30","Region 8","Operating Expense","Medical Benefits Expense","Pharmacy Services","8.5","Ending accrual for Rebates receivable",{"$f":"IFERROR('MMA Rev-Exp Region 8'!$O$60/'MMA Rev-Exp Region 8'!$O$9, 0)","v":{"v":0,"d":"$0.00"}},{"$f":"IFERROR('MMA Rev-Exp Region 8'!$P$60/'MMA Rev-Exp Region 8'!$P$9, 0)","v":{"v":0,"d":"$0.00"}},{"$f":"IFERROR('MMA Rev-Exp Region 8'!$Q$60/'MMA Rev-Exp Region 8'!$Q$9, 0)","v":{"v":0,"d":"$0.00"}},{"$f":"IFERROR('MMA Rev-Exp Region 8'!$R$60/'MMA Rev-Exp Region 8'!$R$9, 0)","v":{"v":0,"d":"$0.00"}},{"$f":"IFERROR('MMA Rev-Exp Region 8'!$S$60/'MMA Rev-Exp Region 8'!$S$9, 0)","v":{"v":0,"d":"$0.00"}},{"$f":"IFERROR('MMA Rev-Exp Region 8'!$T$60/'MMA Rev-Exp Region 8'!$T$9, 0)","v":{"v":0,"d":"$0.00"}},{"$f":"IFERROR('MMA Rev-Exp Region 8'!$U$60/'MMA Rev-Exp Region 8'!$U$9, 0)","v":{"v":0,"d":"$0.00"}},{"$f":"IFERROR('MMA Rev-Exp Region 8'!$V$60/'MMA Rev-Exp Region 8'!$V$9, 0)","v":{"v":0,"d":"$0.00"}},{"$f":"IFERROR('MMA Rev-Exp Region 8'!$W$60/'MMA Rev-Exp Region 8'!$W$9, 0)","v":{"v":0,"d":"$0.00"}},{"$f":"IFERROR('MMA Rev-Exp Region 8'!$X$60/'MMA Rev-Exp Region 8'!$X$9, 0)","v":{"v":0,"d":"$0.00"}},{"$f":"IFERROR('MMA Rev-Exp Region 8'!$Y$60/'MMA Rev-Exp Region 8'!$Y$9, 0)","v":{"v":0,"d":"$0.00"}}]
["MMA",null,null,2016,"2016-12-31","Q2","2017-06-30","Region 8","Operating Expense","Medical Benefits Expense","Pharmacy Services","8.6","Prescription Drugs Subcapitation",{"$f":"IFERROR('MMA Rev-Exp Region 8'!$O$61/'MMA Rev-Exp Region 8'!$O$9, 0)","v":{"v":0,"d":"$0.00"}},{"$f":"IFERROR('MMA Rev-Exp Region 8'!$P$61/'MMA Rev-Exp Region 8'!$P$9, 0)","v":{"v":0,"d":"$0.00"}},{"$f":"IFERROR('MMA Rev-Exp Region 8'!$Q$61/'MMA Rev-Exp Region 8'!$Q$9, 0)","v":{"v":0,"d":"$0.00"}},{"$f":"IFERROR('MMA Rev-Exp Region 8'!$R$61/'MMA Rev-Exp Region 8'!$R$9, 0)","v":{"v":0,"d":"$0.00"}},{"$f":"IFERROR('MMA Rev-Exp Region 8'!$S$61/'MMA Rev-Exp Region 8'!$S$9, 0)","v":{"v":0,"d":"$0.00"}},{"$f":"IFERROR('MMA Rev-Exp Region 8'!$T$61/'MMA Rev-Exp Region 8'!$T$9, 0)","v":{"v":0,"d":"$0.00"}},{"$f":"IFERROR('MMA Rev-Exp Region 8'!$U$61/'MMA Rev-Exp Region 8'!$U$9, 0)","v":{"v":0,"d":"$0.00"}},{"$f":"IFERROR('MMA Rev-Exp Region 8'!$V$61/'MMA Rev-Exp Region 8'!$V$9, 0)","v":{"v":0,"d":"$0.00"}},{"$f":"IFERROR('MMA Rev-Exp Region 8'!$W$61/'MMA Rev-Exp Region 8'!$W$9, 0)","v":{"v":0,"d":"$0.00"}},{"$f":"IFERROR('MMA Rev-Exp Region 8'!$X$61/'MMA Rev-Exp Region 8'!$X$9, 0)","v":{"v":0,"d":"$0.00"}},{"$f":"IFERROR('MMA Rev-Exp Region 8'!$Y$61/'MMA Rev-Exp Region 8'!$Y$9, 0)","v":{"v":0,"d":"$0.00"}}]
["MMA",null,null,2016,"2016-12-31","Q2","2017-06-30","Region 8","Operating Expense","Medical Benefits Expense","Pharmacy Services","8.7","Prescription Drug Settlements",{"$f":"IFERROR('MMA Rev-Exp Region 8'!$O$62/'MMA Rev-Exp Region 8'!$O$9, 0)","v":{"v":0,"d":"$0.00"}},{"$f":"IFERROR('MMA Rev-Exp Region 8'!$P$62/'MMA Rev-Exp Region 8'!$P$9, 0)","v":{"v":0,"d":"$0.00"}},{"$f":"IFERROR('MMA Rev-Exp Region 8'!$Q$62/'MMA Rev-Exp Region 8'!$Q$9, 0)","v":{"v":0,"d":"$0.00"}},{"$f":"IFERROR('MMA Rev-Exp Region 8'!$R$62/'MMA Rev-Exp Region 8'!$R$9, 0)","v":{"v":0,"d":"$0.00"}},{"$f":"IFERROR('MMA Rev-Exp Region 8'!$S$62/'MMA Rev-Exp Region 8'!$S$9, 0)","v":{"v":0,"d":"$0.00"}},{"$f":"IFERROR('MMA Rev-Exp Region 8'!$T$62/'MMA Rev-Exp Region 8'!$T$9, 0)","v":{"v":0,"d":"$0.00"}},{"$f":"IFERROR('MMA Rev-Exp Region 8'!$U$62/'MMA Rev-Exp Region 8'!$U$9, 0)","v":{"v":0,"d":"$0.00"}},{"$f":"IFERROR('MMA Rev-Exp Region 8'!$V$62/'MMA Rev-Exp Region 8'!$V$9, 0)","v":{"v":0,"d":"$0.00"}},{"$f":"IFERROR('MMA Rev-Exp Region 8'!$W$62/'MMA Rev-Exp Region 8'!$W$9, 0)","v":{"v":0,"d":"$0.00"}},{"$f":"IFERROR('MMA Rev-Exp Region 8'!$X$62/'MMA Rev-Exp Region 8'!$X$9, 0)","v":{"v":0,"d":"$0.00"}},{"$f":"IFERROR('MMA Rev-Exp Region 8'!$Y$62/'MMA Rev-Exp Region 8'!$Y$9, 0)","v":{"v":0,"d":"$0.00"}}]
["MMA",null,null,2016,"2016-12-31","Q2","2017-06-30","Region 8","Operating Expense","Medical Benefits Expense","Other MMA Services",9.1,"Home Health, Private Duty Nursing, Personal Care FFS",{"$f":"IFERROR('MMA Rev-Exp Region 8'!$O$64/'MMA Rev-Exp Region 8'!$O$9, 0)","v":{"v":0,"d":"$0.00"}},{"$f":"IFERROR('MMA Rev-Exp Region 8'!$P$64/'MMA Rev-Exp Region 8'!$P$9, 0)","v":{"v":0,"d":"$0.00"}},{"$f":"IFERROR('MMA Rev-Exp Region 8'!$Q$64/'MMA Rev-Exp Region 8'!$Q$9, 0)","v":{"v":0,"d":"$0.00"}},{"$f":"IFERROR('MMA Rev-Exp Region 8'!$R$64/'MMA Rev-Exp Region 8'!$R$9, 0)","v":{"v":0,"d":"$0.00"}},{"$f":"IFERROR('MMA Rev-Exp Region 8'!$S$64/'MMA Rev-Exp Region 8'!$S$9, 0)","v":{"v":0,"d":"$0.00"}},{"$f":"IFERROR('MMA Rev-Exp Region 8'!$T$64/'MMA Rev-Exp Region 8'!$T$9, 0)","v":{"v":0,"d":"$0.00"}},{"$f":"IFERROR('MMA Rev-Exp Region 8'!$U$64/'MMA Rev-Exp Region 8'!$U$9, 0)","v":{"v":0,"d":"$0.00"}},{"$f":"IFERROR('MMA Rev-Exp Region 8'!$V$64/'MMA Rev-Exp Region 8'!$V$9, 0)","v":{"v":0,"d":"$0.00"}},{"$f":"IFERROR('MMA Rev-Exp Region 8'!$W$64/'MMA Rev-Exp Region 8'!$W$9, 0)","v":{"v":0,"d":"$0.00"}},{"$f":"IFERROR('MMA Rev-Exp Region 8'!$X$64/'MMA Rev-Exp Region 8'!$X$9, 0)","v":{"v":0,"d":"$0.00"}},{"$f":"IFERROR('MMA Rev-Exp Region 8'!$Y$64/'MMA Rev-Exp Region 8'!$Y$9, 0)","v":{"v":0,"d":"$0.00"}}]
["MMA",null,null,2016,"2016-12-31","Q2","2017-06-30","Region 8","Operating Expense","Medical Benefits Expense","Other MMA Services","9.2","Hospice FFS",{"$f":"IFERROR('MMA Rev-Exp Region 8'!$O$65/'MMA Rev-Exp Region 8'!$O$9, 0)","v":{"v":0,"d":"$0.00"}},{"$f":"IFERROR('MMA Rev-Exp Region 8'!$P$65/'MMA Rev-Exp Region 8'!$P$9, 0)","v":{"v":0,"d":"$0.00"}},{"$f":"IFERROR('MMA Rev-Exp Region 8'!$Q$65/'MMA Rev-Exp Region 8'!$Q$9, 0)","v":{"v":0,"d":"$0.00"}},{"$f":"IFERROR('MMA Rev-Exp Region 8'!$R$65/'MMA Rev-Exp Region 8'!$R$9, 0)","v":{"v":0,"d":"$0.00"}},{"$f":"IFERROR('MMA Rev-Exp Region 8'!$S$65/'MMA Rev-Exp Region 8'!$S$9, 0)","v":{"v":0,"d":"$0.00"}},{"$f":"IFERROR('MMA Rev-Exp Region 8'!$T$65/'MMA Rev-Exp Region 8'!$T$9, 0)","v":{"v":0,"d":"$0.00"}},{"$f":"IFERROR('MMA Rev-Exp Region 8'!$U$65/'MMA Rev-Exp Region 8'!$U$9, 0)","v":{"v":0,"d":"$0.00"}},{"$f":"IFERROR('MMA Rev-Exp Region 8'!$V$65/'MMA Rev-Exp Region 8'!$V$9, 0)","v":{"v":0,"d":"$0.00"}},{"$f":"IFERROR('MMA Rev-Exp Region 8'!$W$65/'MMA Rev-Exp Region 8'!$W$9, 0)","v":{"v":0,"d":"$0.00"}},{"$f":"IFERROR('MMA Rev-Exp Region 8'!$X$65/'MMA Rev-Exp Region 8'!$X$9, 0)","v":{"v":0,"d":"$0.00"}},{"$f":"IFERROR('MMA Rev-Exp Region 8'!$Y$65/'MMA Rev-Exp Region 8'!$Y$9, 0)","v":{"v":0,"d":"$0.00"}}]
["MMA",null,null,2016,"2016-12-31","Q2","2017-06-30","Region 8","Operating Expense","Medical Benefits Expense","Other MMA Services","9.3","DME FFS",{"$f":"IFERROR('MMA Rev-Exp Region 8'!$O$66/'MMA Rev-Exp Region 8'!$O$9, 0)","v":{"v":0,"d":"$0.00"}},{"$f":"IFERROR('MMA Rev-Exp Region 8'!$P$66/'MMA Rev-Exp Region 8'!$P$9, 0)","v":{"v":0,"d":"$0.00"}},{"$f":"IFERROR('MMA Rev-Exp Region 8'!$Q$66/'MMA Rev-Exp Region 8'!$Q$9, 0)","v":{"v":0,"d":"$0.00"}},{"$f":"IFERROR('MMA Rev-Exp Region 8'!$R$66/'MMA Rev-Exp Region 8'!$R$9, 0)","v":{"v":0,"d":"$0.00"}},{"$f":"IFERROR('MMA Rev-Exp Region 8'!$S$66/'MMA Rev-Exp Region 8'!$S$9, 0)","v":{"v":0,"d":"$0.00"}},{"$f":"IFERROR('MMA Rev-Exp Region 8'!$T$66/'MMA Rev-Exp Region 8'!$T$9, 0)","v":{"v":0,"d":"$0.00"}},{"$f":"IFERROR('MMA Rev-Exp Region 8'!$U$66/'MMA Rev-Exp Region 8'!$U$9, 0)","v":{"v":0,"d":"$0.00"}},{"$f":"IFERROR('MMA Rev-Exp Region 8'!$V$66/'MMA Rev-Exp Region 8'!$V$9, 0)","v":{"v":0,"d":"$0.00"}},{"$f":"IFERROR('MMA Rev-Exp Region 8'!$W$66/'MMA Rev-Exp Region 8'!$W$9, 0)","v":{"v":0,"d":"$0.00"}},{"$f":"IFERROR('MMA Rev-Exp Region 8'!$X$66/'MMA Rev-Exp Region 8'!$X$9, 0)","v":{"v":0,"d":"$0.00"}},{"$f":"IFERROR('MMA Rev-Exp Region 8'!$Y$66/'MMA Rev-Exp Region 8'!$Y$9, 0)","v":{"v":0,"d":"$0.00"}}]
["MMA",null,null,2016,"2016-12-31","Q2","2017-06-30","Region 8","Operating Expense","Medical Benefits Expense","Other MMA Services","9.4","Other State Plan Services FFS",{"$f":"IFERROR('MMA Rev-Exp Region 8'!$O$67/'MMA Rev-Exp Region 8'!$O$9, 0)","v":{"v":0,"d":"$0.00"}},{"$f":"IFERROR('MMA Rev-Exp Region 8'!$P$67/'MMA Rev-Exp Region 8'!$P$9, 0)","v":{"v":0,"d":"$0.00"}},{"$f":"IFERROR('MMA Rev-Exp Region 8'!$Q$67/'MMA Rev-Exp Region 8'!$Q$9, 0)","v":{"v":0,"d":"$0.00"}},{"$f":"IFERROR('MMA Rev-Exp Region 8'!$R$67/'MMA Rev-Exp Region 8'!$R$9, 0)","v":{"v":0,"d":"$0.00"}},{"$f":"IFERROR('MMA Rev-Exp Region 8'!$S$67/'MMA Rev-Exp Region 8'!$S$9, 0)","v":{"v":0,"d":"$0.00"}},{"$f":"IFERROR('MMA Rev-Exp Region 8'!$T$67/'MMA Rev-Exp Region 8'!$T$9, 0)","v":{"v":0,"d":"$0.00"}},{"$f":"IFERROR('MMA Rev-Exp Region 8'!$U$67/'MMA Rev-Exp Region 8'!$U$9, 0)","v":{"v":0,"d":"$0.00"}},{"$f":"IFERROR('MMA Rev-Exp Region 8'!$V$67/'MMA Rev-Exp Region 8'!$V$9, 0)","v":{"v":0,"d":"$0.00"}},{"$f":"IFERROR('MMA Rev-Exp Region 8'!$W$67/'MMA Rev-Exp Region 8'!$W$9, 0)","v":{"v":0,"d":"$0.00"}},{"$f":"IFERROR('MMA Rev-Exp Region 8'!$X$67/'MMA Rev-Exp Region 8'!$X$9, 0)","v":{"v":0,"d":"$0.00"}},{"$f":"IFERROR('MMA Rev-Exp Region 8'!$Y$67/'MMA Rev-Exp Region 8'!$Y$9, 0)","v":{"v":0,"d":"$0.00"}}]
["MMA",null,null,2016,"2016-12-31","Q2","2017-06-30","Region 8","Operating Expense","Medical Benefits Expense","Other MMA Services","9.5","Other Services Subcapitation",{"$f":"IFERROR('MMA Rev-Exp Region 8'!$O$68/'MMA Rev-Exp Region 8'!$O$9, 0)","v":{"v":0,"d":"$0.00"}},{"$f":"IFERROR('MMA Rev-Exp Region 8'!$P$68/'MMA Rev-Exp Region 8'!$P$9, 0)","v":{"v":0,"d":"$0.00"}},{"$f":"IFERROR('MMA Rev-Exp Region 8'!$Q$68/'MMA Rev-Exp Region 8'!$Q$9, 0)","v":{"v":0,"d":"$0.00"}},{"$f":"IFERROR('MMA Rev-Exp Region 8'!$R$68/'MMA Rev-Exp Region 8'!$R$9, 0)","v":{"v":0,"d":"$0.00"}},{"$f":"IFERROR('MMA Rev-Exp Region 8'!$S$68/'MMA Rev-Exp Region 8'!$S$9, 0)","v":{"v":0,"d":"$0.00"}},{"$f":"IFERROR('MMA Rev-Exp Region 8'!$T$68/'MMA Rev-Exp Region 8'!$T$9, 0)","v":{"v":0,"d":"$0.00"}},{"$f":"IFERROR('MMA Rev-Exp Region 8'!$U$68/'MMA Rev-Exp Region 8'!$U$9, 0)","v":{"v":0,"d":"$0.00"}},{"$f":"IFERROR('MMA Rev-Exp Region 8'!$V$68/'MMA Rev-Exp Region 8'!$V$9, 0)","v":{"v":0,"d":"$0.00"}},{"$f":"IFERROR('MMA Rev-Exp Region 8'!$W$68/'MMA Rev-Exp Region 8'!$W$9, 0)","v":{"v":0,"d":"$0.00"}},{"$f":"IFERROR('MMA Rev-Exp Region 8'!$X$68/'MMA Rev-Exp Region 8'!$X$9, 0)","v":{"v":0,"d":"$0.00"}},{"$f":"IFERROR('MMA Rev-Exp Region 8'!$Y$68/'MMA Rev-Exp Region 8'!$Y$9, 0)","v":{"v":0,"d":"$0.00"}}]
["MMA",null,null,2016,"2016-12-31","Q2","2017-06-30","Region 8","Operating Expense","Medical Benefits Expense","Other MMA Services","9.6","Ending IBNP for Other Services",{"$f":"IFERROR('MMA Rev-Exp Region 8'!$O$69/'MMA Rev-Exp Region 8'!$O$9, 0)","v":{"v":0,"d":"$0.00"}},{"$f":"IFERROR('MMA Rev-Exp Region 8'!$P$69/'MMA Rev-Exp Region 8'!$P$9, 0)","v":{"v":0,"d":"$0.00"}},{"$f":"IFERROR('MMA Rev-Exp Region 8'!$Q$69/'MMA Rev-Exp Region 8'!$Q$9, 0)","v":{"v":0,"d":"$0.00"}},{"$f":"IFERROR('MMA Rev-Exp Region 8'!$R$69/'MMA Rev-Exp Region 8'!$R$9, 0)","v":{"v":0,"d":"$0.00"}},{"$f":"IFERROR('MMA Rev-Exp Region 8'!$S$69/'MMA Rev-Exp Region 8'!$S$9, 0)","v":{"v":0,"d":"$0.00"}},{"$f":"IFERROR('MMA Rev-Exp Region 8'!$T$69/'MMA Rev-Exp Region 8'!$T$9, 0)","v":{"v":0,"d":"$0.00"}},{"$f":"IFERROR('MMA Rev-Exp Region 8'!$U$69/'MMA Rev-Exp Region 8'!$U$9, 0)","v":{"v":0,"d":"$0.00"}},{"$f":"IFERROR('MMA Rev-Exp Region 8'!$V$69/'MMA Rev-Exp Region 8'!$V$9, 0)","v":{"v":0,"d":"$0.00"}},{"$f":"IFERROR('MMA Rev-Exp Region 8'!$W$69/'MMA Rev-Exp Region 8'!$W$9, 0)","v":{"v":0,"d":"$0.00"}},{"$f":"IFERROR('MMA Rev-Exp Region 8'!$X$69/'MMA Rev-Exp Region 8'!$X$9, 0)","v":{"v":0,"d":"$0.00"}},{"$f":"IFERROR('MMA Rev-Exp Region 8'!$Y$69/'MMA Rev-Exp Region 8'!$Y$9, 0)","v":{"v":0,"d":"$0.00"}}]
["MMA",null,null,2016,"2016-12-31","Q2","2017-06-30","Region 8","Operating Expense","Medical Benefits Expense","Other MMA Services","9.7","Other Services Settlements",{"$f":"IFERROR('MMA Rev-Exp Region 8'!$O$70/'MMA Rev-Exp Region 8'!$O$9, 0)","v":{"v":0,"d":"$0.00"}},{"$f":"IFERROR('MMA Rev-Exp Region 8'!$P$70/'MMA Rev-Exp Region 8'!$P$9, 0)","v":{"v":0,"d":"$0.00"}},{"$f":"IFERROR('MMA Rev-Exp Region 8'!$Q$70/'MMA Rev-Exp Region 8'!$Q$9, 0)","v":{"v":0,"d":"$0.00"}},{"$f":"IFERROR('MMA Rev-Exp Region 8'!$R$70/'MMA Rev-Exp Region 8'!$R$9, 0)","v":{"v":0,"d":"$0.00"}},{"$f":"IFERROR('MMA Rev-Exp Region 8'!$S$70/'MMA Rev-Exp Region 8'!$S$9, 0)","v":{"v":0,"d":"$0.00"}},{"$f":"IFERROR('MMA Rev-Exp Region 8'!$T$70/'MMA Rev-Exp Region 8'!$T$9, 0)","v":{"v":0,"d":"$0.00"}},{"$f":"IFERROR('MMA Rev-Exp Region 8'!$U$70/'MMA Rev-Exp Region 8'!$U$9, 0)","v":{"v":0,"d":"$0.00"}},{"$f":"IFERROR('MMA Rev-Exp Region 8'!$V$70/'MMA Rev-Exp Region 8'!$V$9, 0)","v":{"v":0,"d":"$0.00"}},{"$f":"IFERROR('MMA Rev-Exp Region 8'!$W$70/'MMA Rev-Exp Region 8'!$W$9, 0)","v":{"v":0,"d":"$0.00"}},{"$f":"IFERROR('MMA Rev-Exp Region 8'!$X$70/'MMA Rev-Exp Region 8'!$X$9, 0)","v":{"v":0,"d":"$0.00"}},{"$f":"IFERROR('MMA Rev-Exp Region 8'!$Y$70/'MMA Rev-Exp Region 8'!$Y$9, 0)","v":{"v":0,"d":"$0.00"}}]
["MMA",null,null,2016,"2016-12-31","Q2","2017-06-30","Region 8","Operating Expense","Medical Benefits Expense","Expanded Benefits","10.1","Expanded Benefits FFS",{"$f":"IFERROR('MMA Rev-Exp Region 8'!$O$72/'MMA Rev-Exp Region 8'!$O$9, 0)","v":{"v":0,"d":"$0.00"}},{"$f":"IFERROR('MMA Rev-Exp Region 8'!$P$72/'MMA Rev-Exp Region 8'!$P$9, 0)","v":{"v":0,"d":"$0.00"}},{"$f":"IFERROR('MMA Rev-Exp Region 8'!$Q$72/'MMA Rev-Exp Region 8'!$Q$9, 0)","v":{"v":0,"d":"$0.00"}},{"$f":"IFERROR('MMA Rev-Exp Region 8'!$R$72/'MMA Rev-Exp Region 8'!$R$9, 0)","v":{"v":0,"d":"$0.00"}},{"$f":"IFERROR('MMA Rev-Exp Region 8'!$S$72/'MMA Rev-Exp Region 8'!$S$9, 0)","v":{"v":0,"d":"$0.00"}},{"$f":"IFERROR('MMA Rev-Exp Region 8'!$T$72/'MMA Rev-Exp Region 8'!$T$9, 0)","v":{"v":0,"d":"$0.00"}},{"$f":"IFERROR('MMA Rev-Exp Region 8'!$U$72/'MMA Rev-Exp Region 8'!$U$9, 0)","v":{"v":0,"d":"$0.00"}},{"$f":"IFERROR('MMA Rev-Exp Region 8'!$V$72/'MMA Rev-Exp Region 8'!$V$9, 0)","v":{"v":0,"d":"$0.00"}},{"$f":"IFERROR('MMA Rev-Exp Region 8'!$W$72/'MMA Rev-Exp Region 8'!$W$9, 0)","v":{"v":0,"d":"$0.00"}},{"$f":"IFERROR('MMA Rev-Exp Region 8'!$X$72/'MMA Rev-Exp Region 8'!$X$9, 0)","v":{"v":0,"d":"$0.00"}},{"$f":"IFERROR('MMA Rev-Exp Region 8'!$Y$72/'MMA Rev-Exp Region 8'!$Y$9, 0)","v":{"v":0,"d":"$0.00"}}]
["MMA",null,null,2016,"2016-12-31","Q2","2017-06-30","Region 8","Operating Expense","Medical Benefits Expense","Expanded Benefits","10.2","Expanded benefits Subcapitation",{"$f":"IFERROR('MMA Rev-Exp Region 8'!$O$73/'MMA Rev-Exp Region 8'!$O$9, 0)","v":{"v":0,"d":"$0.00"}},{"$f":"IFERROR('MMA Rev-Exp Region 8'!$P$73/'MMA Rev-Exp Region 8'!$P$9, 0)","v":{"v":0,"d":"$0.00"}},{"$f":"IFERROR('MMA Rev-Exp Region 8'!$Q$73/'MMA Rev-Exp Region 8'!$Q$9, 0)","v":{"v":0,"d":"$0.00"}},{"$f":"IFERROR('MMA Rev-Exp Region 8'!$R$73/'MMA Rev-Exp Region 8'!$R$9, 0)","v":{"v":0,"d":"$0.00"}},{"$f":"IFERROR('MMA Rev-Exp Region 8'!$S$73/'MMA Rev-Exp Region 8'!$S$9, 0)","v":{"v":0,"d":"$0.00"}},{"$f":"IFERROR('MMA Rev-Exp Region 8'!$T$73/'MMA Rev-Exp Region 8'!$T$9, 0)","v":{"v":0,"d":"$0.00"}},{"$f":"IFERROR('MMA Rev-Exp Region 8'!$U$73/'MMA Rev-Exp Region 8'!$U$9, 0)","v":{"v":0,"d":"$0.00"}},{"$f":"IFERROR('MMA Rev-Exp Region 8'!$V$73/'MMA Rev-Exp Region 8'!$V$9, 0)","v":{"v":0,"d":"$0.00"}},{"$f":"IFERROR('MMA Rev-Exp Region 8'!$W$73/'MMA Rev-Exp Region 8'!$W$9, 0)","v":{"v":0,"d":"$0.00"}},{"$f":"IFERROR('MMA Rev-Exp Region 8'!$X$73/'MMA Rev-Exp Region 8'!$X$9, 0)","v":{"v":0,"d":"$0.00"}},{"$f":"IFERROR('MMA Rev-Exp Region 8'!$Y$73/'MMA Rev-Exp Region 8'!$Y$9, 0)","v":{"v":0,"d":"$0.00"}}]
["MMA",null,null,2016,"2016-12-31","Q2","2017-06-30","Region 8","Operating Expense","Medical Benefits Expense","Expanded Benefits","10.3","Ending IBNP for Expanded Benefits",{"$f":"IFERROR('MMA Rev-Exp Region 8'!$O$74/'MMA Rev-Exp Region 8'!$O$9, 0)","v":{"v":0,"d":"$0.00"}},{"$f":"IFERROR('MMA Rev-Exp Region 8'!$P$74/'MMA Rev-Exp Region 8'!$P$9, 0)","v":{"v":0,"d":"$0.00"}},{"$f":"IFERROR('MMA Rev-Exp Region 8'!$Q$74/'MMA Rev-Exp Region 8'!$Q$9, 0)","v":{"v":0,"d":"$0.00"}},{"$f":"IFERROR('MMA Rev-Exp Region 8'!$R$74/'MMA Rev-Exp Region 8'!$R$9, 0)","v":{"v":0,"d":"$0.00"}},{"$f":"IFERROR('MMA Rev-Exp Region 8'!$S$74/'MMA Rev-Exp Region 8'!$S$9, 0)","v":{"v":0,"d":"$0.00"}},{"$f":"IFERROR('MMA Rev-Exp Region 8'!$T$74/'MMA Rev-Exp Region 8'!$T$9, 0)","v":{"v":0,"d":"$0.00"}},{"$f":"IFERROR('MMA Rev-Exp Region 8'!$U$74/'MMA Rev-Exp Region 8'!$U$9, 0)","v":{"v":0,"d":"$0.00"}},{"$f":"IFERROR('MMA Rev-Exp Region 8'!$V$74/'MMA Rev-Exp Region 8'!$V$9, 0)","v":{"v":0,"d":"$0.00"}},{"$f":"IFERROR('MMA Rev-Exp Region 8'!$W$74/'MMA Rev-Exp Region 8'!$W$9, 0)","v":{"v":0,"d":"$0.00"}},{"$f":"IFERROR('MMA Rev-Exp Region 8'!$X$74/'MMA Rev-Exp Region 8'!$X$9, 0)","v":{"v":0,"d":"$0.00"}},{"$f":"IFERROR('MMA Rev-Exp Region 8'!$Y$74/'MMA Rev-Exp Region 8'!$Y$9, 0)","v":{"v":0,"d":"$0.00"}}]
["MMA",null,null,2016,"2016-12-31","Q2","2017-06-30","Region 8","Operating Expense","Medical Benefits Expense","Expanded Benefits","10.4","Expanded Benefits Settlements",{"$f":"IFERROR('MMA Rev-Exp Region 8'!$O$75/'MMA Rev-Exp Region 8'!$O$9, 0)","v":{"v":0,"d":"$0.00"}},{"$f":"IFERROR('MMA Rev-Exp Region 8'!$P$75/'MMA Rev-Exp Region 8'!$P$9, 0)","v":{"v":0,"d":"$0.00"}},{"$f":"IFERROR('MMA Rev-Exp Region 8'!$Q$75/'MMA Rev-Exp Region 8'!$Q$9, 0)","v":{"v":0,"d":"$0.00"}},{"$f":"IFERROR('MMA Rev-Exp Region 8'!$R$75/'MMA Rev-Exp Region 8'!$R$9, 0)","v":{"v":0,"d":"$0.00"}},{"$f":"IFERROR('MMA Rev-Exp Region 8'!$S$75/'MMA Rev-Exp Region 8'!$S$9, 0)","v":{"v":0,"d":"$0.00"}},{"$f":"IFERROR('MMA Rev-Exp Region 8'!$T$75/'MMA Rev-Exp Region 8'!$T$9, 0)","v":{"v":0,"d":"$0.00"}},{"$f":"IFERROR('MMA Rev-Exp Region 8'!$U$75/'MMA Rev-Exp Region 8'!$U$9, 0)","v":{"v":0,"d":"$0.00"}},{"$f":"IFERROR('MMA Rev-Exp Region 8'!$V$75/'MMA Rev-Exp Region 8'!$V$9, 0)","v":{"v":0,"d":"$0.00"}},{"$f":"IFERROR('MMA Rev-Exp Region 8'!$W$75/'MMA Rev-Exp Region 8'!$W$9, 0)","v":{"v":0,"d":"$0.00"}},{"$f":"IFERROR('MMA Rev-Exp Region 8'!$X$75/'MMA Rev-Exp Region 8'!$X$9, 0)","v":{"v":0,"d":"$0.00"}},{"$f":"IFERROR('MMA Rev-Exp Region 8'!$Y$75/'MMA Rev-Exp Region 8'!$Y$9, 0)","v":{"v":0,"d":"$0.00"}}]
["MMA",null,null,2016,"2016-12-31","Q2","2017-06-30","Region 8","Operating Expense","Medical Benefits Expense","Other Medical","11.5","TPL & Fraud/Abuse Recoveries",{"$f":"IFERROR('MMA Rev-Exp Region 8'!$O$81/'MMA Rev-Exp Region 8'!$O$9, 0)","v":{"v":0,"d":"$0.00"}},{"$f":"IFERROR('MMA Rev-Exp Region 8'!$P$81/'MMA Rev-Exp Region 8'!$P$9, 0)","v":{"v":0,"d":"$0.00"}},{"$f":"IFERROR('MMA Rev-Exp Region 8'!$Q$81/'MMA Rev-Exp Region 8'!$Q$9, 0)","v":{"v":0,"d":"$0.00"}},{"$f":"IFERROR('MMA Rev-Exp Region 8'!$R$81/'MMA Rev-Exp Region 8'!$R$9, 0)","v":{"v":0,"d":"$0.00"}},{"$f":"IFERROR('MMA Rev-Exp Region 8'!$S$81/'MMA Rev-Exp Region 8'!$S$9, 0)","v":{"v":0,"d":"$0.00"}},{"$f":"IFERROR('MMA Rev-Exp Region 8'!$T$81/'MMA Rev-Exp Region 8'!$T$9, 0)","v":{"v":0,"d":"$0.00"}},{"$f":"IFERROR('MMA Rev-Exp Region 8'!$U$81/'MMA Rev-Exp Region 8'!$U$9, 0)","v":{"v":0,"d":"$0.00"}},{"$f":"IFERROR('MMA Rev-Exp Region 8'!$V$81/'MMA Rev-Exp Region 8'!$V$9, 0)","v":{"v":0,"d":"$0.00"}},{"$f":"IFERROR('MMA Rev-Exp Region 8'!$W$81/'MMA Rev-Exp Region 8'!$W$9, 0)","v":{"v":0,"d":"$0.00"}},{"$f":"IFERROR('MMA Rev-Exp Region 8'!$X$81/'MMA Rev-Exp Region 8'!$X$9, 0)","v":{"v":0,"d":"$0.00"}},{"$f":"IFERROR('MMA Rev-Exp Region 8'!$Y$81/'MMA Rev-Exp Region 8'!$Y$9, 0)","v":{"v":0,"d":"$0.00"}}]
["MMA",null,null,2016,"2016-12-31","Q2","2017-06-30","Region 8","Operating Expense","Medical Benefits Expense","Other Medical","11.6.1","Premium Deficiency Reserve",{"$f":"IFERROR('MMA Rev-Exp Region 8'!$O$82/'MMA Rev-Exp Region 8'!$O$9, 0)","v":{"v":0,"d":"$0.00"}},{"$f":"IFERROR('MMA Rev-Exp Region 8'!$P$82/'MMA Rev-Exp Region 8'!$P$9, 0)","v":{"v":0,"d":"$0.00"}},{"$f":"IFERROR('MMA Rev-Exp Region 8'!$Q$82/'MMA Rev-Exp Region 8'!$Q$9, 0)","v":{"v":0,"d":"$0.00"}},{"$f":"IFERROR('MMA Rev-Exp Region 8'!$R$82/'MMA Rev-Exp Region 8'!$R$9, 0)","v":{"v":0,"d":"$0.00"}},{"$f":"IFERROR('MMA Rev-Exp Region 8'!$S$82/'MMA Rev-Exp Region 8'!$S$9, 0)","v":{"v":0,"d":"$0.00"}},{"$f":"IFERROR('MMA Rev-Exp Region 8'!$T$82/'MMA Rev-Exp Region 8'!$T$9, 0)","v":{"v":0,"d":"$0.00"}},{"$f":"IFERROR('MMA Rev-Exp Region 8'!$U$82/'MMA Rev-Exp Region 8'!$U$9, 0)","v":{"v":0,"d":"$0.00"}},{"$f":"IFERROR('MMA Rev-Exp Region 8'!$V$82/'MMA Rev-Exp Region 8'!$V$9, 0)","v":{"v":0,"d":"$0.00"}},{"$f":"IFERROR('MMA Rev-Exp Region 8'!$W$82/'MMA Rev-Exp Region 8'!$W$9, 0)","v":{"v":0,"d":"$0.00"}},{"$f":"IFERROR('MMA Rev-Exp Region 8'!$X$82/'MMA Rev-Exp Region 8'!$X$9, 0)","v":{"v":0,"d":"$0.00"}},{"$f":"IFERROR('MMA Rev-Exp Region 8'!$Y$82/'MMA Rev-Exp Region 8'!$Y$9, 0)","v":{"v":0,"d":"$0.00"}}]
["MMA",null,null,2016,"2016-12-31","Q2","2017-06-30","Region 8","Operating Expense","Medical Benefits Expense","Other Medical","11.8","Reinsurance Premiums",{"$f":"IFERROR('MMA Rev-Exp Region 8'!$O$84/'MMA Rev-Exp Region 8'!$O$9, 0)","v":{"v":0,"d":"$0.00"}},{"$f":"IFERROR('MMA Rev-Exp Region 8'!$P$84/'MMA Rev-Exp Region 8'!$P$9, 0)","v":{"v":0,"d":"$0.00"}},{"$f":"IFERROR('MMA Rev-Exp Region 8'!$Q$84/'MMA Rev-Exp Region 8'!$Q$9, 0)","v":{"v":0,"d":"$0.00"}},{"$f":"IFERROR('MMA Rev-Exp Region 8'!$R$84/'MMA Rev-Exp Region 8'!$R$9, 0)","v":{"v":0,"d":"$0.00"}},{"$f":"IFERROR('MMA Rev-Exp Region 8'!$S$84/'MMA Rev-Exp Region 8'!$S$9, 0)","v":{"v":0,"d":"$0.00"}},{"$f":"IFERROR('MMA Rev-Exp Region 8'!$T$84/'MMA Rev-Exp Region 8'!$T$9, 0)","v":{"v":0,"d":"$0.00"}},{"$f":"IFERROR('MMA Rev-Exp Region 8'!$U$84/'MMA Rev-Exp Region 8'!$U$9, 0)","v":{"v":0,"d":"$0.00"}},{"$f":"IFERROR('MMA Rev-Exp Region 8'!$V$84/'MMA Rev-Exp Region 8'!$V$9, 0)","v":{"v":0,"d":"$0.00"}},{"$f":"IFERROR('MMA Rev-Exp Region 8'!$W$84/'MMA Rev-Exp Region 8'!$W$9, 0)","v":{"v":0,"d":"$0.00"}},{"$f":"IFERROR('MMA Rev-Exp Region 8'!$X$84/'MMA Rev-Exp Region 8'!$X$9, 0)","v":{"v":0,"d":"$0.00"}},{"$f":"IFERROR('MMA Rev-Exp Region 8'!$Y$84/'MMA Rev-Exp Region 8'!$Y$9, 0)","v":{"v":0,"d":"$0.00"}}]
["MMA",null,null,2016,"2016-12-31","Q2","2017-06-30","Region 8","Operating Expense","Medical Benefits Expense","Other Medical","11.9","Reinsurance Recoveries",{"$f":"IFERROR('MMA Rev-Exp Region 8'!$O$85/'MMA Rev-Exp Region 8'!$O$9, 0)","v":{"v":0,"d":"$0.00"}},{"$f":"IFERROR('MMA Rev-Exp Region 8'!$P$85/'MMA Rev-Exp Region 8'!$P$9, 0)","v":{"v":0,"d":"$0.00"}},{"$f":"IFERROR('MMA Rev-Exp Region 8'!$Q$85/'MMA Rev-Exp Region 8'!$Q$9, 0)","v":{"v":0,"d":"$0.00"}},{"$f":"IFERROR('MMA Rev-Exp Region 8'!$R$85/'MMA Rev-Exp Region 8'!$R$9, 0)","v":{"v":0,"d":"$0.00"}},{"$f":"IFERROR('MMA Rev-Exp Region 8'!$S$85/'MMA Rev-Exp Region 8'!$S$9, 0)","v":{"v":0,"d":"$0.00"}},{"$f":"IFERROR('MMA Rev-Exp Region 8'!$T$85/'MMA Rev-Exp Region 8'!$T$9, 0)","v":{"v":0,"d":"$0.00"}},{"$f":"IFERROR('MMA Rev-Exp Region 8'!$U$85/'MMA Rev-Exp Region 8'!$U$9, 0)","v":{"v":0,"d":"$0.00"}},{"$f":"IFERROR('MMA Rev-Exp Region 8'!$V$85/'MMA Rev-Exp Region 8'!$V$9, 0)","v":{"v":0,"d":"$0.00"}},{"$f":"IFERROR('MMA Rev-Exp Region 8'!$W$85/'MMA Rev-Exp Region 8'!$W$9, 0)","v":{"v":0,"d":"$0.00"}},{"$f":"IFERROR('MMA Rev-Exp Region 8'!$X$85/'MMA Rev-Exp Region 8'!$X$9, 0)","v":{"v":0,"d":"$0.00"}},{"$f":"IFERROR('MMA Rev-Exp Region 8'!$Y$85/'MMA Rev-Exp Region 8'!$Y$9, 0)","v":{"v":0,"d":"$0.00"}}]
["MMA",null,null,2016,"2016-12-31","Q2","2017-06-30","Region 8","Operating Expense","Administrative Expense","Administrative","12.1","Salaries & Benefits",{"$f":"IFERROR('MMA Rev-Exp Region 8'!$O$90/'MMA Rev-Exp Region 8'!$O$9, 0)","v":{"v":0,"d":"$0.00"}},{"$f":"IFERROR('MMA Rev-Exp Region 8'!$P$90/'MMA Rev-Exp Region 8'!$O$9, 0)","v":{"v":0,"d":"$0.00"}},{"$f":"IFERROR('MMA Rev-Exp Region 8'!$Q$90/'MMA Rev-Exp Region 8'!$O$9, 0)","v":{"v":0,"d":"$0.00"}},{"$f":"IFERROR('MMA Rev-Exp Region 8'!$R$90/'MMA Rev-Exp Region 8'!$R$9, 0)","v":{"v":0,"d":"$0.00"}},{"$f":"IFERROR('MMA Rev-Exp Region 8'!$S$90/'MMA Rev-Exp Region 8'!$S$9, 0)","v":{"v":0,"d":"$0.00"}},{"$f":"IFERROR('MMA Rev-Exp Region 8'!$T$90/'MMA Rev-Exp Region 8'!$T$9, 0)","v":{"v":0,"d":"$0.00"}},{"$f":"IFERROR('MMA Rev-Exp Region 8'!$U$90/'MMA Rev-Exp Region 8'!$U$9, 0)","v":{"v":0,"d":"$0.00"}},{"$f":"IFERROR('MMA Rev-Exp Region 8'!$V$90/'MMA Rev-Exp Region 8'!$V$9, 0)","v":{"v":0,"d":"$0.00"}},{"$f":"IFERROR('MMA Rev-Exp Region 8'!$W$90/'MMA Rev-Exp Region 8'!$W$9, 0)","v":{"v":0,"d":"$0.00"}},{"$f":"IFERROR('MMA Rev-Exp Region 8'!$X$90/'MMA Rev-Exp Region 8'!$X$9, 0)","v":{"v":0,"d":"$0.00"}},{"$f":"IFERROR('MMA Rev-Exp Region 8'!$Y$90/'MMA Rev-Exp Region 8'!$Y$9, 0)","v":{"v":0,"d":"$0.00"}}]
["MMA",null,null,2016,"2016-12-31","Q2","2017-06-30","Region 8","Operating Expense","Administrative Expense","Administrative","12.2","Administrative Services",{"$f":"IFERROR('MMA Rev-Exp Region 8'!$O$91/'MMA Rev-Exp Region 8'!$O$9, 0)","v":{"v":0,"d":"$0.00"}},{"$f":"IFERROR('MMA Rev-Exp Region 8'!$P$91/'MMA Rev-Exp Region 8'!$O$9, 0)","v":{"v":0,"d":"$0.00"}},{"$f":"IFERROR('MMA Rev-Exp Region 8'!$Q$91/'MMA Rev-Exp Region 8'!$O$9, 0)","v":{"v":0,"d":"$0.00"}},{"$f":"IFERROR('MMA Rev-Exp Region 8'!$R$91/'MMA Rev-Exp Region 8'!$R$9, 0)","v":{"v":0,"d":"$0.00"}},{"$f":"IFERROR('MMA Rev-Exp Region 8'!$S$91/'MMA Rev-Exp Region 8'!$S$9, 0)","v":{"v":0,"d":"$0.00"}},{"$f":"IFERROR('MMA Rev-Exp Region 8'!$T$91/'MMA Rev-Exp Region 8'!$T$9, 0)","v":{"v":0,"d":"$0.00"}},{"$f":"IFERROR('MMA Rev-Exp Region 8'!$U$91/'MMA Rev-Exp Region 8'!$U$9, 0)","v":{"v":0,"d":"$0.00"}},{"$f":"IFERROR('MMA Rev-Exp Region 8'!$V$91/'MMA Rev-Exp Region 8'!$V$9, 0)","v":{"v":0,"d":"$0.00"}},{"$f":"IFERROR('MMA Rev-Exp Region 8'!$W$91/'MMA Rev-Exp Region 8'!$W$9, 0)","v":{"v":0,"d":"$0.00"}},{"$f":"IFERROR('MMA Rev-Exp Region 8'!$X$91/'MMA Rev-Exp Region 8'!$X$9, 0)","v":{"v":0,"d":"$0.00"}},{"$f":"IFERROR('MMA Rev-Exp Region 8'!$Y$91/'MMA Rev-Exp Region 8'!$Y$9, 0)","v":{"v":0,"d":"$0.00"}}]
["MMA",null,null,2016,"2016-12-31","Q2","2017-06-30","Region 8","Operating Expense","Administrative Expense","Administrative","12.3","Information Systems",{"$f":"IFERROR('MMA Rev-Exp Region 8'!$O$92/'MMA Rev-Exp Region 8'!$O$9, 0)","v":{"v":0,"d":"$0.00"}},{"$f":"IFERROR('MMA Rev-Exp Region 8'!$P$92/'MMA Rev-Exp Region 8'!$O$9, 0)","v":{"v":0,"d":"$0.00"}},{"$f":"IFERROR('MMA Rev-Exp Region 8'!$Q$92/'MMA Rev-Exp Region 8'!$O$9, 0)","v":{"v":0,"d":"$0.00"}},{"$f":"IFERROR('MMA Rev-Exp Region 8'!$R$92/'MMA Rev-Exp Region 8'!$R$9, 0)","v":{"v":0,"d":"$0.00"}},{"$f":"IFERROR('MMA Rev-Exp Region 8'!$S$92/'MMA Rev-Exp Region 8'!$S$9, 0)","v":{"v":0,"d":"$0.00"}},{"$f":"IFERROR('MMA Rev-Exp Region 8'!$T$92/'MMA Rev-Exp Region 8'!$T$9, 0)","v":{"v":0,"d":"$0.00"}},{"$f":"IFERROR('MMA Rev-Exp Region 8'!$U$92/'MMA Rev-Exp Region 8'!$U$9, 0)","v":{"v":0,"d":"$0.00"}},{"$f":"IFERROR('MMA Rev-Exp Region 8'!$V$92/'MMA Rev-Exp Region 8'!$V$9, 0)","v":{"v":0,"d":"$0.00"}},{"$f":"IFERROR('MMA Rev-Exp Region 8'!$W$92/'MMA Rev-Exp Region 8'!$W$9, 0)","v":{"v":0,"d":"$0.00"}},{"$f":"IFERROR('MMA Rev-Exp Region 8'!$X$92/'MMA Rev-Exp Region 8'!$X$9, 0)","v":{"v":0,"d":"$0.00"}},{"$f":"IFERROR('MMA Rev-Exp Region 8'!$Y$92/'MMA Rev-Exp Region 8'!$Y$9, 0)","v":{"v":0,"d":"$0.00"}}]
["MMA",null,null,2016,"2016-12-31","Q2","2017-06-30","Region 8","Operating Expense","Administrative Expense","Administrative","12.4","Marketing Expenses",{"$f":"IFERROR('MMA Rev-Exp Region 8'!$O$93/'MMA Rev-Exp Region 8'!$O$9, 0)","v":{"v":0,"d":"$0.00"}},{"$f":"IFERROR('MMA Rev-Exp Region 8'!$P$93/'MMA Rev-Exp Region 8'!$O$9, 0)","v":{"v":0,"d":"$0.00"}},{"$f":"IFERROR('MMA Rev-Exp Region 8'!$Q$93/'MMA Rev-Exp Region 8'!$O$9, 0)","v":{"v":0,"d":"$0.00"}}]
["MMA",null,null,2016,"2016-12-31","Q2","2017-06-30","Region 8","Operating Expense","Administrative Expense","Administrative","12.5","General  Administration",{"$f":"IFERROR('MMA Rev-Exp Region 8'!$O$94/'MMA Rev-Exp Region 8'!$O$9, 0)","v":{"v":0,"d":"$0.00"}},{"$f":"IFERROR('MMA Rev-Exp Region 8'!$P$94/'MMA Rev-Exp Region 8'!$O$9, 0)","v":{"v":0,"d":"$0.00"}},{"$f":"IFERROR('MMA Rev-Exp Region 8'!$Q$94/'MMA Rev-Exp Region 8'!$O$9, 0)","v":{"v":0,"d":"$0.00"}}]
["MMA",null,null,2016,"2016-12-31","Q2","2017-06-30","Region 8","Operating Expense","Administrative Expense","Administrative","12.6","Compliance/Regulatory",{"$f":"IFERROR('MMA Rev-Exp Region 8'!$O$95/'MMA Rev-Exp Region 8'!$O$9, 0)","v":{"v":0,"d":"$0.00"}},{"$f":"IFERROR('MMA Rev-Exp Region 8'!$P$95/'MMA Rev-Exp Region 8'!$O$9, 0)","v":{"v":0,"d":"$0.00"}},{"$f":"IFERROR('MMA Rev-Exp Region 8'!$Q$95/'MMA Rev-Exp Region 8'!$O$9, 0)","v":{"v":0,"d":"$0.00"}}]
["MMA",null,null,2016,"2016-12-31","Q2","2017-06-30","Region 8","Operating Expense","Taxes & Fees","Taxes & Fees","13.1","State Premium tax",{"$f":"IFERROR('MMA Rev-Exp Region 8'!$O$97/'MMA Rev-Exp Region 8'!$O$9, 0)","v":{"v":0,"d":"$0.00"}}]
["MMA",null,null,2016,"2016-12-31","Q2","2017-06-30","Region 8","Operating Expense","Taxes & Fees","Taxes & Fees","13.2","Department of Insurance Assessments",{"$f":"IFERROR('MMA Rev-Exp Region 8'!$O$98/'MMA Rev-Exp Region 8'!$O$9, 0)","v":{"v":0,"d":"$0.00"}}]
["MMA",null,null,2016,"2016-12-31","Q2","2017-06-30","Region 8","Operating Expense","Taxes & Fees","Taxes & Fees","13.3","Section 9010 Health Insurance Providers Fee",{"$f":"IFERROR('MMA Rev-Exp Region 8'!$O$99/'MMA Rev-Exp Region 8'!$O$9, 0)","v":{"v":0,"d":"$0.00"}}]
["MMA",null,null,2016,"2016-12-31","Q2","2017-06-30","Region 8","Non-Operating Expense","Income Tax Expense","Income Tax Expense","16.0","Income Tax Expense",{"$f":"IFERROR('MMA Rev-Exp Region 8'!$O$106/'MMA Rev-Exp Region 8'!$O$9, 0)","v":{"v":0,"d":"$0.00"}}]
["MMA",null,null,2016,"2016-12-31","Q3","2017-09-30","Region 8","Operating Revenue","Capitation","Capitation",1.1,"Capitation",{"$f":"IFERROR('MMA Rev-Exp Region 8'!$Z$11/'MMA Rev-Exp Region 8'!$Z$9, 0)","v":{"v":0,"d":"$0.00"}},{"$f":"IFERROR('MMA Rev-Exp Region 8'!$AA$11/'MMA Rev-Exp Region 8'!$AA$9, 0)","v":{"v":0,"d":"$0.00"}},{"$f":"IFERROR('MMA Rev-Exp Region 8'!$AB$11/'MMA Rev-Exp Region 8'!$AB$9, 0)","v":{"v":0,"d":"$0.00"}},{"$f":"IFERROR('MMA Rev-Exp Region 8'!$AC$11/'MMA Rev-Exp Region 8'!$AC$9, 0)","v":{"v":0,"d":"$0.00"}},{"$f":"IFERROR('MMA Rev-Exp Region 8'!$AD$11/'MMA Rev-Exp Region 8'!$AD$9, 0)","v":{"v":0,"d":"$0.00"}},{"$f":"IFERROR('MMA Rev-Exp Region 8'!$AE$11/'MMA Rev-Exp Region 8'!$AE$9, 0)","v":{"v":0,"d":"$0.00"}},{"$f":"IFERROR('MMA Rev-Exp Region 8'!$AF$11/'MMA Rev-Exp Region 8'!$AF$9, 0)","v":{"v":0,"d":"$0.00"}},{"$f":"IFERROR('MMA Rev-Exp Region 8'!$AG$11/'MMA Rev-Exp Region 8'!$AG$9, 0)","v":{"v":0,"d":"$0.00"}},{"$f":"IFERROR('MMA Rev-Exp Region 8'!$AH$11/'MMA Rev-Exp Region 8'!$AH$9, 0)","v":{"v":0,"d":"$0.00"}},{"$f":"IFERROR('MMA Rev-Exp Region 8'!$AI$11/'MMA Rev-Exp Region 8'!$AI$9, 0)","v":{"v":0,"d":"$0.00"}},{"$f":"IFERROR('MMA Rev-Exp Region 8'!$AJ$11/'MMA Rev-Exp Region 8'!$AJ$9, 0)","v":{"v":0,"d":"$0.00"}}]
["MMA",null,null,2016,"2016-12-31","Q3","2017-09-30","Region 8","Operating Revenue","Kick Payments","Kick Payments - Transplant",1.2,"Transplant Kick Payments",{"$f":"IFERROR('MMA Rev-Exp Region 8'!$Z$12/'MMA Rev-Exp Region 8'!$Z$9, 0)","v":{"v":0,"d":"$0.00"}},{"$f":"IFERROR('MMA Rev-Exp Region 8'!$AA$12/'MMA Rev-Exp Region 8'!$AA$9, 0)","v":{"v":0,"d":"$0.00"}},{"$f":"IFERROR('MMA Rev-Exp Region 8'!$AB$12/'MMA Rev-Exp Region 8'!$AB$9, 0)","v":{"v":0,"d":"$0.00"}},{"$f":"IFERROR('MMA Rev-Exp Region 8'!$AC$12/'MMA Rev-Exp Region 8'!$AC$9, 0)","v":{"v":0,"d":"$0.00"}},{"$f":"IFERROR('MMA Rev-Exp Region 8'!$AD$12/'MMA Rev-Exp Region 8'!$AD$9, 0)","v":{"v":0,"d":"$0.00"}},{"$f":"IFERROR('MMA Rev-Exp Region 8'!$AE$12/'MMA Rev-Exp Region 8'!$AE$9, 0)","v":{"v":0,"d":"$0.00"}},{"$f":"IFERROR('MMA Rev-Exp Region 8'!$AF$12/'MMA Rev-Exp Region 8'!$AF$9, 0)","v":{"v":0,"d":"$0.00"}},{"$f":"IFERROR('MMA Rev-Exp Region 8'!$AG$12/'MMA Rev-Exp Region 8'!$AG$9, 0)","v":{"v":0,"d":"$0.00"}},{"$f":"IFERROR('MMA Rev-Exp Region 8'!$AH$12/'MMA Rev-Exp Region 8'!$AH$9, 0)","v":{"v":0,"d":"$0.00"}},{"$f":"IFERROR('MMA Rev-Exp Region 8'!$AI$12/'MMA Rev-Exp Region 8'!$AI$9, 0)","v":{"v":0,"d":"$0.00"}},{"$f":"IFERROR('MMA Rev-Exp Region 8'!$AJ$12/'MMA Rev-Exp Region 8'!$AJ$9, 0)","v":{"v":0,"d":"$0.00"}}]
["MMA",null,null,2016,"2016-12-31","Q3","2017-09-30","Region 8","Operating Revenue","Kick Payments","Kick Payments - Hep C","1.3","Hepatitis C Kick Payments",{"$f":"IFERROR('MMA Rev-Exp Region 8'!$Z$13/'MMA Rev-Exp Region 8'!$Z$9, 0)","v":{"v":0,"d":"$0.00"}},{"$f":"IFERROR('MMA Rev-Exp Region 8'!$AA$13/'MMA Rev-Exp Region 8'!$AA$9, 0)","v":{"v":0,"d":"$0.00"}},{"$f":"IFERROR('MMA Rev-Exp Region 8'!$AB$13/'MMA Rev-Exp Region 8'!$AB$9, 0)","v":{"v":0,"d":"$0.00"}},{"$f":"IFERROR('MMA Rev-Exp Region 8'!$AC$13/'MMA Rev-Exp Region 8'!$AC$9, 0)","v":{"v":0,"d":"$0.00"}},{"$f":"IFERROR('MMA Rev-Exp Region 8'!$AD$13/'MMA Rev-Exp Region 8'!$AD$9, 0)","v":{"v":0,"d":"$0.00"}},{"$f":"IFERROR('MMA Rev-Exp Region 8'!$AE$13/'MMA Rev-Exp Region 8'!$AE$9, 0)","v":{"v":0,"d":"$0.00"}},{"$f":"IFERROR('MMA Rev-Exp Region 8'!$AF$13/'MMA Rev-Exp Region 8'!$AF$9, 0)","v":{"v":0,"d":"$0.00"}},{"$f":"IFERROR('MMA Rev-Exp Region 8'!$AG$13/'MMA Rev-Exp Region 8'!$AG$9, 0)","v":{"v":0,"d":"$0.00"}},{"$f":"IFERROR('MMA Rev-Exp Region 8'!$AH$13/'MMA Rev-Exp Region 8'!$AH$9, 0)","v":{"v":0,"d":"$0.00"}},{"$f":"IFERROR('MMA Rev-Exp Region 8'!$AI$13/'MMA Rev-Exp Region 8'!$AI$9, 0)","v":{"v":0,"d":"$0.00"}},{"$f":"IFERROR('MMA Rev-Exp Region 8'!$AJ$13/'MMA Rev-Exp Region 8'!$AJ$9, 0)","v":{"v":0,"d":"$0.00"}}]
["MMA",null,null,2016,"2016-12-31","Q3","2017-09-30","Region 8","Operating Revenue","Kick Payments","Kick Payments - Maternity","1.4.1","Maternity Kick Payments",{"$f":"IFERROR('MMA Rev-Exp Region 8'!$Z$14/'MMA Rev-Exp Region 8'!$Z$9, 0)","v":{"v":0,"d":"$0.00"}},{"$f":"IFERROR('MMA Rev-Exp Region 8'!$AA$14/'MMA Rev-Exp Region 8'!$AA$9, 0)","v":{"v":0,"d":"$0.00"}},{"$f":"IFERROR('MMA Rev-Exp Region 8'!$AB$14/'MMA Rev-Exp Region 8'!$AB$9, 0)","v":{"v":0,"d":"$0.00"}},{"$f":"IFERROR('MMA Rev-Exp Region 8'!$AC$14/'MMA Rev-Exp Region 8'!$AC$9, 0)","v":{"v":0,"d":"$0.00"}},{"$f":"IFERROR('MMA Rev-Exp Region 8'!$AD$14/'MMA Rev-Exp Region 8'!$AD$9, 0)","v":{"v":0,"d":"$0.00"}},{"$f":"IFERROR('MMA Rev-Exp Region 8'!$AE$14/'MMA Rev-Exp Region 8'!$AE$9, 0)","v":{"v":0,"d":"$0.00"}},{"$f":"IFERROR('MMA Rev-Exp Region 8'!$AF$14/'MMA Rev-Exp Region 8'!$AF$9, 0)","v":{"v":0,"d":"$0.00"}},{"$f":"IFERROR('MMA Rev-Exp Region 8'!$AG$14/'MMA Rev-Exp Region 8'!$AG$9, 0)","v":{"v":0,"d":"$0.00"}},{"$f":"IFERROR('MMA Rev-Exp Region 8'!$AH$14/'MMA Rev-Exp Region 8'!$AH$9, 0)","v":{"v":0,"d":"$0.00"}},{"$f":"IFERROR('MMA Rev-Exp Region 8'!$AI$14/'MMA Rev-Exp Region 8'!$AI$9, 0)","v":{"v":0,"d":"$0.00"}},{"$f":"IFERROR('MMA Rev-Exp Region 8'!$AJ$14/'MMA Rev-Exp Region 8'!$AJ$9, 0)","v":{"v":0,"d":"$0.00"}}]
["MMA",null,null,2016,"2016-12-31","Q3","2017-09-30","Region 8","Operating Revenue","Other Revenue","Other Revenue - 9010","1.5","ACA § 9010 related payments",{"$f":"IFERROR('MMA Rev-Exp Region 8'!$Z$15/'MMA Rev-Exp Region 8'!$Z$9, 0)","v":{"v":0,"d":"$0.00"}},{"$f":"IFERROR('MMA Rev-Exp Region 8'!$AA$15/'MMA Rev-Exp Region 8'!$AA$9, 0)","v":{"v":0,"d":"$0.00"}},{"$f":"IFERROR('MMA Rev-Exp Region 8'!$AB$15/'MMA Rev-Exp Region 8'!$AB$9, 0)","v":{"v":0,"d":"$0.00"}},{"$f":"IFERROR('MMA Rev-Exp Region 8'!$AC$15/'MMA Rev-Exp Region 8'!$AC$9, 0)","v":{"v":0,"d":"$0.00"}},{"$f":"IFERROR('MMA Rev-Exp Region 8'!$AD$15/'MMA Rev-Exp Region 8'!$AD$9, 0)","v":{"v":0,"d":"$0.00"}},{"$f":"IFERROR('MMA Rev-Exp Region 8'!$AE$15/'MMA Rev-Exp Region 8'!$AE$9, 0)","v":{"v":0,"d":"$0.00"}},{"$f":"IFERROR('MMA Rev-Exp Region 8'!$AF$15/'MMA Rev-Exp Region 8'!$AF$9, 0)","v":{"v":0,"d":"$0.00"}},{"$f":"IFERROR('MMA Rev-Exp Region 8'!$AG$15/'MMA Rev-Exp Region 8'!$AG$9, 0)","v":{"v":0,"d":"$0.00"}},{"$f":"IFERROR('MMA Rev-Exp Region 8'!$AH$15/'MMA Rev-Exp Region 8'!$AH$9, 0)","v":{"v":0,"d":"$0.00"}},{"$f":"IFERROR('MMA Rev-Exp Region 8'!$AI$15/'MMA Rev-Exp Region 8'!$AI$9, 0)","v":{"v":0,"d":"$0.00"}},{"$f":"IFERROR('MMA Rev-Exp Region 8'!$AJ$15/'MMA Rev-Exp Region 8'!$AJ$9, 0)","v":{"v":0,"d":"$0.00"}}]
["MMA",null,null,2016,"2016-12-31","Q3","2017-09-30","Region 8","Operating Revenue","Other Revenue","Other Revenue","1.6","Other Revenue",{"$f":"IFERROR('MMA Rev-Exp Region 8'!$Z$16/'MMA Rev-Exp Region 8'!$Z$9, 0)","v":{"v":0,"d":"$0.00"}},{"$f":"IFERROR('MMA Rev-Exp Region 8'!$AA$16/'MMA Rev-Exp Region 8'!$AA$9, 0)","v":{"v":0,"d":"$0.00"}},{"$f":"IFERROR('MMA Rev-Exp Region 8'!$AB$16/'MMA Rev-Exp Region 8'!$AB$9, 0)","v":{"v":0,"d":"$0.00"}},{"$f":"IFERROR('MMA Rev-Exp Region 8'!$AC$16/'MMA Rev-Exp Region 8'!$AC$9, 0)","v":{"v":0,"d":"$0.00"}},{"$f":"IFERROR('MMA Rev-Exp Region 8'!$AD$16/'MMA Rev-Exp Region 8'!$AD$9, 0)","v":{"v":0,"d":"$0.00"}},{"$f":"IFERROR('MMA Rev-Exp Region 8'!$AE$16/'MMA Rev-Exp Region 8'!$AE$9, 0)","v":{"v":0,"d":"$0.00"}},{"$f":"IFERROR('MMA Rev-Exp Region 8'!$AF$16/'MMA Rev-Exp Region 8'!$AF$9, 0)","v":{"v":0,"d":"$0.00"}},{"$f":"IFERROR('MMA Rev-Exp Region 8'!$AG$16/'MMA Rev-Exp Region 8'!$AG$9, 0)","v":{"v":0,"d":"$0.00"}},{"$f":"IFERROR('MMA Rev-Exp Region 8'!$AH$16/'MMA Rev-Exp Region 8'!$AH$9, 0)","v":{"v":0,"d":"$0.00"}},{"$f":"IFERROR('MMA Rev-Exp Region 8'!$AI$16/'MMA Rev-Exp Region 8'!$AI$9, 0)","v":{"v":0,"d":"$0.00"}},{"$f":"IFERROR('MMA Rev-Exp Region 8'!$AJ$16/'MMA Rev-Exp Region 8'!$AJ$9, 0)","v":{"v":0,"d":"$0.00"}}]
["MMA",null,null,2016,"2016-12-31","Q3","2017-09-30","Region 8","Operating Expense","Medical Benefits Expense","Hospital Services",2.1,"Inpatient FFS",{"$f":"IFERROR('MMA Rev-Exp Region 8'!$Z$20/'MMA Rev-Exp Region 8'!$Z$9, 0)","v":{"v":0,"d":"$0.00"}},{"$f":"IFERROR('MMA Rev-Exp Region 8'!$AA$20/'MMA Rev-Exp Region 8'!$AA$9, 0)","v":{"v":0,"d":"$0.00"}},{"$f":"IFERROR('MMA Rev-Exp Region 8'!$AB$20/'MMA Rev-Exp Region 8'!$AB$9, 0)","v":{"v":0,"d":"$0.00"}},{"$f":"IFERROR('MMA Rev-Exp Region 8'!$AC$20/'MMA Rev-Exp Region 8'!$AC$9, 0)","v":{"v":0,"d":"$0.00"}},{"$f":"IFERROR('MMA Rev-Exp Region 8'!$AD$20/'MMA Rev-Exp Region 8'!$AD$9, 0)","v":{"v":0,"d":"$0.00"}},{"$f":"IFERROR('MMA Rev-Exp Region 8'!$AE$20/'MMA Rev-Exp Region 8'!$AE$9, 0)","v":{"v":0,"d":"$0.00"}},{"$f":"IFERROR('MMA Rev-Exp Region 8'!$AF$20/'MMA Rev-Exp Region 8'!$AF$9, 0)","v":{"v":0,"d":"$0.00"}},{"$f":"IFERROR('MMA Rev-Exp Region 8'!$AG$20/'MMA Rev-Exp Region 8'!$AG$9, 0)","v":{"v":0,"d":"$0.00"}},{"$f":"IFERROR('MMA Rev-Exp Region 8'!$AH$20/'MMA Rev-Exp Region 8'!$AH$9, 0)","v":{"v":0,"d":"$0.00"}},{"$f":"IFERROR('MMA Rev-Exp Region 8'!$AI$20/'MMA Rev-Exp Region 8'!$AI$9, 0)","v":{"v":0,"d":"$0.00"}},{"$f":"IFERROR('MMA Rev-Exp Region 8'!$AJ$20/'MMA Rev-Exp Region 8'!$AJ$9, 0)","v":{"v":0,"d":"$0.00"}}]
["MMA",null,null,2016,"2016-12-31","Q3","2017-09-30","Region 8","Operating Expense","Medical Benefits Expense","Hospital Services",2.2,"Ending IBNP for Inpatient Hospital Services",{"$f":"IFERROR('MMA Rev-Exp Region 8'!$Z$21/'MMA Rev-Exp Region 8'!$Z$9, 0)","v":{"v":0,"d":"$0.00"}},{"$f":"IFERROR('MMA Rev-Exp Region 8'!$AA$21/'MMA Rev-Exp Region 8'!$AA$9, 0)","v":{"v":0,"d":"$0.00"}},{"$f":"IFERROR('MMA Rev-Exp Region 8'!$AB$21/'MMA Rev-Exp Region 8'!$AB$9, 0)","v":{"v":0,"d":"$0.00"}},{"$f":"IFERROR('MMA Rev-Exp Region 8'!$AC$21/'MMA Rev-Exp Region 8'!$AC$9, 0)","v":{"v":0,"d":"$0.00"}},{"$f":"IFERROR('MMA Rev-Exp Region 8'!$AD$21/'MMA Rev-Exp Region 8'!$AD$9, 0)","v":{"v":0,"d":"$0.00"}},{"$f":"IFERROR('MMA Rev-Exp Region 8'!$AE$21/'MMA Rev-Exp Region 8'!$AE$9, 0)","v":{"v":0,"d":"$0.00"}},{"$f":"IFERROR('MMA Rev-Exp Region 8'!$AF$21/'MMA Rev-Exp Region 8'!$AF$9, 0)","v":{"v":0,"d":"$0.00"}},{"$f":"IFERROR('MMA Rev-Exp Region 8'!$AG$21/'MMA Rev-Exp Region 8'!$AG$9, 0)","v":{"v":0,"d":"$0.00"}},{"$f":"IFERROR('MMA Rev-Exp Region 8'!$AH$21/'MMA Rev-Exp Region 8'!$AH$9, 0)","v":{"v":0,"d":"$0.00"}},{"$f":"IFERROR('MMA Rev-Exp Region 8'!$AI$21/'MMA Rev-Exp Region 8'!$AI$9, 0)","v":{"v":0,"d":"$0.00"}},{"$f":"IFERROR('MMA Rev-Exp Region 8'!$AJ$21/'MMA Rev-Exp Region 8'!$AJ$9, 0)","v":{"v":0,"d":"$0.00"}}]
["MMA",null,null,2016,"2016-12-31","Q3","2017-09-30","Region 8","Operating Expense","Medical Benefits Expense","Hospital Services",2.3,"Outpatient FFS: ER",{"$f":"IFERROR('MMA Rev-Exp Region 8'!$Z$22/'MMA Rev-Exp Region 8'!$Z$9, 0)","v":{"v":0,"d":"$0.00"}},{"$f":"IFERROR('MMA Rev-Exp Region 8'!$AA$22/'MMA Rev-Exp Region 8'!$AA$9, 0)","v":{"v":0,"d":"$0.00"}},{"$f":"IFERROR('MMA Rev-Exp Region 8'!$AB$22/'MMA Rev-Exp Region 8'!$AB$9, 0)","v":{"v":0,"d":"$0.00"}},{"$f":"IFERROR('MMA Rev-Exp Region 8'!$AC$22/'MMA Rev-Exp Region 8'!$AC$9, 0)","v":{"v":0,"d":"$0.00"}},{"$f":"IFERROR('MMA Rev-Exp Region 8'!$AD$22/'MMA Rev-Exp Region 8'!$AD$9, 0)","v":{"v":0,"d":"$0.00"}},{"$f":"IFERROR('MMA Rev-Exp Region 8'!$AE$22/'MMA Rev-Exp Region 8'!$AE$9, 0)","v":{"v":0,"d":"$0.00"}},{"$f":"IFERROR('MMA Rev-Exp Region 8'!$AF$22/'MMA Rev-Exp Region 8'!$AF$9, 0)","v":{"v":0,"d":"$0.00"}},{"$f":"IFERROR('MMA Rev-Exp Region 8'!$AG$22/'MMA Rev-Exp Region 8'!$AG$9, 0)","v":{"v":0,"d":"$0.00"}},{"$f":"IFERROR('MMA Rev-Exp Region 8'!$AH$22/'MMA Rev-Exp Region 8'!$AH$9, 0)","v":{"v":0,"d":"$0.00"}},{"$f":"IFERROR('MMA Rev-Exp Region 8'!$AI$22/'MMA Rev-Exp Region 8'!$AI$9, 0)","v":{"v":0,"d":"$0.00"}},{"$f":"IFERROR('MMA Rev-Exp Region 8'!$AJ$22/'MMA Rev-Exp Region 8'!$AJ$9, 0)","v":{"v":0,"d":"$0.00"}}]
["MMA",null,null,2016,"2016-12-31","Q3","2017-09-30","Region 8","Operating Expense","Medical Benefits Expense","Hospital Services",2.4,"Outpatient FFS: Other than ER ",{"$f":"IFERROR('MMA Rev-Exp Region 8'!$Z$23/'MMA Rev-Exp Region 8'!$Z$9, 0)","v":{"v":0,"d":"$0.00"}},{"$f":"IFERROR('MMA Rev-Exp Region 8'!$AA$23/'MMA Rev-Exp Region 8'!$AA$9, 0)","v":{"v":0,"d":"$0.00"}},{"$f":"IFERROR('MMA Rev-Exp Region 8'!$AB$23/'MMA Rev-Exp Region 8'!$AB$9, 0)","v":{"v":0,"d":"$0.00"}},{"$f":"IFERROR('MMA Rev-Exp Region 8'!$AC$23/'MMA Rev-Exp Region 8'!$AC$9, 0)","v":{"v":0,"d":"$0.00"}},{"$f":"IFERROR('MMA Rev-Exp Region 8'!$AD$23/'MMA Rev-Exp Region 8'!$AD$9, 0)","v":{"v":0,"d":"$0.00"}},{"$f":"IFERROR('MMA Rev-Exp Region 8'!$AE$23/'MMA Rev-Exp Region 8'!$AE$9, 0)","v":{"v":0,"d":"$0.00"}},{"$f":"IFERROR('MMA Rev-Exp Region 8'!$AF$23/'MMA Rev-Exp Region 8'!$AF$9, 0)","v":{"v":0,"d":"$0.00"}},{"$f":"IFERROR('MMA Rev-Exp Region 8'!$AG$23/'MMA Rev-Exp Region 8'!$AG$9, 0)","v":{"v":0,"d":"$0.00"}},{"$f":"IFERROR('MMA Rev-Exp Region 8'!$AH$23/'MMA Rev-Exp Region 8'!$AH$9, 0)","v":{"v":0,"d":"$0.00"}},{"$f":"IFERROR('MMA Rev-Exp Region 8'!$AI$23/'MMA Rev-Exp Region 8'!$AI$9, 0)","v":{"v":0,"d":"$0.00"}},{"$f":"IFERROR('MMA Rev-Exp Region 8'!$AJ$23/'MMA Rev-Exp Region 8'!$AJ$9, 0)","v":{"v":0,"d":"$0.00"}}]
["MMA",null,null,2016,"2016-12-31","Q3","2017-09-30","Region 8","Operating Expense","Medical Benefits Expense","Hospital Services",2.5,"Ending IBNP for Outpatient Hospital Services",{"$f":"IFERROR('MMA Rev-Exp Region 8'!$Z$24/'MMA Rev-Exp Region 8'!$Z$9, 0)","v":{"v":0,"d":"$0.00"}},{"$f":"IFERROR('MMA Rev-Exp Region 8'!$AA$24/'MMA Rev-Exp Region 8'!$AA$9, 0)","v":{"v":0,"d":"$0.00"}},{"$f":"IFERROR('MMA Rev-Exp Region 8'!$AB$24/'MMA Rev-Exp Region 8'!$AB$9, 0)","v":{"v":0,"d":"$0.00"}},{"$f":"IFERROR('MMA Rev-Exp Region 8'!$AC$24/'MMA Rev-Exp Region 8'!$AC$9, 0)","v":{"v":0,"d":"$0.00"}},{"$f":"IFERROR('MMA Rev-Exp Region 8'!$AD$24/'MMA Rev-Exp Region 8'!$AD$9, 0)","v":{"v":0,"d":"$0.00"}},{"$f":"IFERROR('MMA Rev-Exp Region 8'!$AE$24/'MMA Rev-Exp Region 8'!$AE$9, 0)","v":{"v":0,"d":"$0.00"}},{"$f":"IFERROR('MMA Rev-Exp Region 8'!$AF$24/'MMA Rev-Exp Region 8'!$AF$9, 0)","v":{"v":0,"d":"$0.00"}},{"$f":"IFERROR('MMA Rev-Exp Region 8'!$AG$24/'MMA Rev-Exp Region 8'!$AG$9, 0)","v":{"v":0,"d":"$0.00"}},{"$f":"IFERROR('MMA Rev-Exp Region 8'!$AH$24/'MMA Rev-Exp Region 8'!$AH$9, 0)","v":{"v":0,"d":"$0.00"}},{"$f":"IFERROR('MMA Rev-Exp Region 8'!$AI$24/'MMA Rev-Exp Region 8'!$AI$9, 0)","v":{"v":0,"d":"$0.00"}},{"$f":"IFERROR('MMA Rev-Exp Region 8'!$AJ$24/'MMA Rev-Exp Region 8'!$AJ$9, 0)","v":{"v":0,"d":"$0.00"}}]
["MMA",null,null,2016,"2016-12-31","Q3","2017-09-30","Region 8","Operating Expense","Medical Benefits Expense","Hospital Services","2.6","Subcapitated Hospital Services",{"$f":"IFERROR('MMA Rev-Exp Region 8'!$Z$25/'MMA Rev-Exp Region 8'!$Z$9, 0)","v":{"v":0,"d":"$0.00"}},{"$f":"IFERROR('MMA Rev-Exp Region 8'!$AA$25/'MMA Rev-Exp Region 8'!$AA$9, 0)","v":{"v":0,"d":"$0.00"}},{"$f":"IFERROR('MMA Rev-Exp Region 8'!$AB$25/'MMA Rev-Exp Region 8'!$AB$9, 0)","v":{"v":0,"d":"$0.00"}},{"$f":"IFERROR('MMA Rev-Exp Region 8'!$AC$25/'MMA Rev-Exp Region 8'!$AC$9, 0)","v":{"v":0,"d":"$0.00"}},{"$f":"IFERROR('MMA Rev-Exp Region 8'!$AD$25/'MMA Rev-Exp Region 8'!$AD$9, 0)","v":{"v":0,"d":"$0.00"}},{"$f":"IFERROR('MMA Rev-Exp Region 8'!$AE$25/'MMA Rev-Exp Region 8'!$AE$9, 0)","v":{"v":0,"d":"$0.00"}},{"$f":"IFERROR('MMA Rev-Exp Region 8'!$AF$25/'MMA Rev-Exp Region 8'!$AF$9, 0)","v":{"v":0,"d":"$0.00"}},{"$f":"IFERROR('MMA Rev-Exp Region 8'!$AG$25/'MMA Rev-Exp Region 8'!$AG$9, 0)","v":{"v":0,"d":"$0.00"}},{"$f":"IFERROR('MMA Rev-Exp Region 8'!$AH$25/'MMA Rev-Exp Region 8'!$AH$9, 0)","v":{"v":0,"d":"$0.00"}},{"$f":"IFERROR('MMA Rev-Exp Region 8'!$AI$25/'MMA Rev-Exp Region 8'!$AI$9, 0)","v":{"v":0,"d":"$0.00"}},{"$f":"IFERROR('MMA Rev-Exp Region 8'!$AJ$25/'MMA Rev-Exp Region 8'!$AJ$9, 0)","v":{"v":0,"d":"$0.00"}}]
["MMA",null,null,2016,"2016-12-31","Q3","2017-09-30","Region 8","Operating Expense","Medical Benefits Expense","Hospital Services","2.7","Hospital Settlements",{"$f":"IFERROR('MMA Rev-Exp Region 8'!$Z$26/'MMA Rev-Exp Region 8'!$Z$9, 0)","v":{"v":0,"d":"$0.00"}},{"$f":"IFERROR('MMA Rev-Exp Region 8'!$AA$26/'MMA Rev-Exp Region 8'!$AA$9, 0)","v":{"v":0,"d":"$0.00"}},{"$f":"IFERROR('MMA Rev-Exp Region 8'!$AB$26/'MMA Rev-Exp Region 8'!$AB$9, 0)","v":{"v":0,"d":"$0.00"}},{"$f":"IFERROR('MMA Rev-Exp Region 8'!$AC$26/'MMA Rev-Exp Region 8'!$AC$9, 0)","v":{"v":0,"d":"$0.00"}},{"$f":"IFERROR('MMA Rev-Exp Region 8'!$AD$26/'MMA Rev-Exp Region 8'!$AD$9, 0)","v":{"v":0,"d":"$0.00"}},{"$f":"IFERROR('MMA Rev-Exp Region 8'!$AE$26/'MMA Rev-Exp Region 8'!$AE$9, 0)","v":{"v":0,"d":"$0.00"}},{"$f":"IFERROR('MMA Rev-Exp Region 8'!$AF$26/'MMA Rev-Exp Region 8'!$AF$9, 0)","v":{"v":0,"d":"$0.00"}},{"$f":"IFERROR('MMA Rev-Exp Region 8'!$AG$26/'MMA Rev-Exp Region 8'!$AG$9, 0)","v":{"v":0,"d":"$0.00"}},{"$f":"IFERROR('MMA Rev-Exp Region 8'!$AH$26/'MMA Rev-Exp Region 8'!$AH$9, 0)","v":{"v":0,"d":"$0.00"}},{"$f":"IFERROR('MMA Rev-Exp Region 8'!$AI$26/'MMA Rev-Exp Region 8'!$AI$9, 0)","v":{"v":0,"d":"$0.00"}},{"$f":"IFERROR('MMA Rev-Exp Region 8'!$AJ$26/'MMA Rev-Exp Region 8'!$AJ$9, 0)","v":{"v":0,"d":"$0.00"}}]
["MMA",null,null,2016,"2016-12-31","Q3","2017-09-30","Region 8","Operating Expense","Medical Benefits Expense","Hospital Services","2.7.1","Transplant Services",{"$f":"IFERROR('MMA Rev-Exp Region 8'!$Z$27/'MMA Rev-Exp Region 8'!$Z$9, 0)","v":{"v":0,"d":"$0.00"}},{"$f":"IFERROR('MMA Rev-Exp Region 8'!$AA$27/'MMA Rev-Exp Region 8'!$AA$9, 0)","v":{"v":0,"d":"$0.00"}},{"$f":"IFERROR('MMA Rev-Exp Region 8'!$AB$27/'MMA Rev-Exp Region 8'!$AB$9, 0)","v":{"v":0,"d":"$0.00"}},{"$f":"IFERROR('MMA Rev-Exp Region 8'!$AC$27/'MMA Rev-Exp Region 8'!$AC$9, 0)","v":{"v":0,"d":"$0.00"}},{"$f":"IFERROR('MMA Rev-Exp Region 8'!$AD$27/'MMA Rev-Exp Region 8'!$AD$9, 0)","v":{"v":0,"d":"$0.00"}},{"$f":"IFERROR('MMA Rev-Exp Region 8'!$AE$27/'MMA Rev-Exp Region 8'!$AE$9, 0)","v":{"v":0,"d":"$0.00"}},{"$f":"IFERROR('MMA Rev-Exp Region 8'!$AF$27/'MMA Rev-Exp Region 8'!$AF$9, 0)","v":{"v":0,"d":"$0.00"}},{"$f":"IFERROR('MMA Rev-Exp Region 8'!$AG$27/'MMA Rev-Exp Region 8'!$AG$9, 0)","v":{"v":0,"d":"$0.00"}},{"$f":"IFERROR('MMA Rev-Exp Region 8'!$AH$27/'MMA Rev-Exp Region 8'!$AH$9, 0)","v":{"v":0,"d":"$0.00"}},{"$f":"IFERROR('MMA Rev-Exp Region 8'!$AI$27/'MMA Rev-Exp Region 8'!$AI$9, 0)","v":{"v":0,"d":"$0.00"}},{"$f":"IFERROR('MMA Rev-Exp Region 8'!$AJ$27/'MMA Rev-Exp Region 8'!$AJ$9, 0)","v":{"v":0,"d":"$0.00"}}]
["MMA",null,null,2016,"2016-12-31","Q3","2017-09-30","Region 8","Operating Expense","Medical Benefits Expense","Professional Services",3.1,"Primary Care FFS",{"$f":"IFERROR('MMA Rev-Exp Region 8'!$Z$29/'MMA Rev-Exp Region 8'!$Z$9, 0)","v":{"v":0,"d":"$0.00"}},{"$f":"IFERROR('MMA Rev-Exp Region 8'!$AA$29/'MMA Rev-Exp Region 8'!$AA$9, 0)","v":{"v":0,"d":"$0.00"}},{"$f":"IFERROR('MMA Rev-Exp Region 8'!$AB$29/'MMA Rev-Exp Region 8'!$AB$9, 0)","v":{"v":0,"d":"$0.00"}},{"$f":"IFERROR('MMA Rev-Exp Region 8'!$AC$29/'MMA Rev-Exp Region 8'!$AC$9, 0)","v":{"v":0,"d":"$0.00"}},{"$f":"IFERROR('MMA Rev-Exp Region 8'!$AD$29/'MMA Rev-Exp Region 8'!$AD$9, 0)","v":{"v":0,"d":"$0.00"}},{"$f":"IFERROR('MMA Rev-Exp Region 8'!$AE$29/'MMA Rev-Exp Region 8'!$AE$9, 0)","v":{"v":0,"d":"$0.00"}},{"$f":"IFERROR('MMA Rev-Exp Region 8'!$AF$29/'MMA Rev-Exp Region 8'!$AF$9, 0)","v":{"v":0,"d":"$0.00"}},{"$f":"IFERROR('MMA Rev-Exp Region 8'!$AG$29/'MMA Rev-Exp Region 8'!$AG$9, 0)","v":{"v":0,"d":"$0.00"}},{"$f":"IFERROR('MMA Rev-Exp Region 8'!$AH$29/'MMA Rev-Exp Region 8'!$AH$9, 0)","v":{"v":0,"d":"$0.00"}},{"$f":"IFERROR('MMA Rev-Exp Region 8'!$AI$29/'MMA Rev-Exp Region 8'!$AI$9, 0)","v":{"v":0,"d":"$0.00"}},{"$f":"IFERROR('MMA Rev-Exp Region 8'!$AJ$29/'MMA Rev-Exp Region 8'!$AJ$9, 0)","v":{"v":0,"d":"$0.00"}}]
["MMA",null,null,2016,"2016-12-31","Q3","2017-09-30","Region 8","Operating Expense","Medical Benefits Expense","Professional Services",3.2,"Specialty Care FFS",{"$f":"IFERROR('MMA Rev-Exp Region 8'!$Z$30/'MMA Rev-Exp Region 8'!$Z$9, 0)","v":{"v":0,"d":"$0.00"}},{"$f":"IFERROR('MMA Rev-Exp Region 8'!$AA$30/'MMA Rev-Exp Region 8'!$AA$9, 0)","v":{"v":0,"d":"$0.00"}},{"$f":"IFERROR('MMA Rev-Exp Region 8'!$AB$30/'MMA Rev-Exp Region 8'!$AB$9, 0)","v":{"v":0,"d":"$0.00"}},{"$f":"IFERROR('MMA Rev-Exp Region 8'!$AC$30/'MMA Rev-Exp Region 8'!$AC$9, 0)","v":{"v":0,"d":"$0.00"}},{"$f":"IFERROR('MMA Rev-Exp Region 8'!$AD$30/'MMA Rev-Exp Region 8'!$AD$9, 0)","v":{"v":0,"d":"$0.00"}},{"$f":"IFERROR('MMA Rev-Exp Region 8'!$AE$30/'MMA Rev-Exp Region 8'!$AE$9, 0)","v":{"v":0,"d":"$0.00"}},{"$f":"IFERROR('MMA Rev-Exp Region 8'!$AF$30/'MMA Rev-Exp Region 8'!$AF$9, 0)","v":{"v":0,"d":"$0.00"}},{"$f":"IFERROR('MMA Rev-Exp Region 8'!$AG$30/'MMA Rev-Exp Region 8'!$AG$9, 0)","v":{"v":0,"d":"$0.00"}},{"$f":"IFERROR('MMA Rev-Exp Region 8'!$AH$30/'MMA Rev-Exp Region 8'!$AH$9, 0)","v":{"v":0,"d":"$0.00"}},{"$f":"IFERROR('MMA Rev-Exp Region 8'!$AI$30/'MMA Rev-Exp Region 8'!$AI$9, 0)","v":{"v":0,"d":"$0.00"}},{"$f":"IFERROR('MMA Rev-Exp Region 8'!$AJ$30/'MMA Rev-Exp Region 8'!$AJ$9, 0)","v":{"v":0,"d":"$0.00"}}]
["MMA",null,null,2016,"2016-12-31","Q3","2017-09-30","Region 8","Operating Expense","Medical Benefits Expense","Professional Services",3.3,"Other Professional FFS",{"$f":"IFERROR('MMA Rev-Exp Region 8'!$Z$31/'MMA Rev-Exp Region 8'!$Z$9, 0)","v":{"v":0,"d":"$0.00"}},{"$f":"IFERROR('MMA Rev-Exp Region 8'!$AA$31/'MMA Rev-Exp Region 8'!$AA$9, 0)","v":{"v":0,"d":"$0.00"}},{"$f":"IFERROR('MMA Rev-Exp Region 8'!$AB$31/'MMA Rev-Exp Region 8'!$AB$9, 0)","v":{"v":0,"d":"$0.00"}},{"$f":"IFERROR('MMA Rev-Exp Region 8'!$AC$31/'MMA Rev-Exp Region 8'!$AC$9, 0)","v":{"v":0,"d":"$0.00"}},{"$f":"IFERROR('MMA Rev-Exp Region 8'!$AD$31/'MMA Rev-Exp Region 8'!$AD$9, 0)","v":{"v":0,"d":"$0.00"}},{"$f":"IFERROR('MMA Rev-Exp Region 8'!$AE$31/'MMA Rev-Exp Region 8'!$AE$9, 0)","v":{"v":0,"d":"$0.00"}},{"$f":"IFERROR('MMA Rev-Exp Region 8'!$AF$31/'MMA Rev-Exp Region 8'!$AF$9, 0)","v":{"v":0,"d":"$0.00"}},{"$f":"IFERROR('MMA Rev-Exp Region 8'!$AG$31/'MMA Rev-Exp Region 8'!$AG$9, 0)","v":{"v":0,"d":"$0.00"}},{"$f":"IFERROR('MMA Rev-Exp Region 8'!$AH$31/'MMA Rev-Exp Region 8'!$AH$9, 0)","v":{"v":0,"d":"$0.00"}},{"$f":"IFERROR('MMA Rev-Exp Region 8'!$AI$31/'MMA Rev-Exp Region 8'!$AI$9, 0)","v":{"v":0,"d":"$0.00"}},{"$f":"IFERROR('MMA Rev-Exp Region 8'!$AJ$31/'MMA Rev-Exp Region 8'!$AJ$9, 0)","v":{"v":0,"d":"$0.00"}}]
["MMA",null,null,2016,"2016-12-31","Q3","2017-09-30","Region 8","Operating Expense","Medical Benefits Expense","Professional Services","3.4","§ 1202 PCP Payments to providers",{"$f":"IFERROR('MMA Rev-Exp Region 8'!$Z$32/'MMA Rev-Exp Region 8'!$Z$9, 0)","v":{"v":0,"d":"$0.00"}},{"$f":"IFERROR('MMA Rev-Exp Region 8'!$AA$32/'MMA Rev-Exp Region 8'!$AA$9, 0)","v":{"v":0,"d":"$0.00"}},{"$f":"IFERROR('MMA Rev-Exp Region 8'!$AB$32/'MMA Rev-Exp Region 8'!$AB$9, 0)","v":{"v":0,"d":"$0.00"}},{"$f":"IFERROR('MMA Rev-Exp Region 8'!$AC$32/'MMA Rev-Exp Region 8'!$AC$9, 0)","v":{"v":0,"d":"$0.00"}},{"$f":"IFERROR('MMA Rev-Exp Region 8'!$AD$32/'MMA Rev-Exp Region 8'!$AD$9, 0)","v":{"v":0,"d":"$0.00"}},{"$f":"IFERROR('MMA Rev-Exp Region 8'!$AE$32/'MMA Rev-Exp Region 8'!$AE$9, 0)","v":{"v":0,"d":"$0.00"}},{"$f":"IFERROR('MMA Rev-Exp Region 8'!$AF$32/'MMA Rev-Exp Region 8'!$AF$9, 0)","v":{"v":0,"d":"$0.00"}},{"$f":"IFERROR('MMA Rev-Exp Region 8'!$AG$32/'MMA Rev-Exp Region 8'!$AG$9, 0)","v":{"v":0,"d":"$0.00"}},{"$f":"IFERROR('MMA Rev-Exp Region 8'!$AH$32/'MMA Rev-Exp Region 8'!$AH$9, 0)","v":{"v":0,"d":"$0.00"}},{"$f":"IFERROR('MMA Rev-Exp Region 8'!$AI$32/'MMA Rev-Exp Region 8'!$AI$9, 0)","v":{"v":0,"d":"$0.00"}},{"$f":"IFERROR('MMA Rev-Exp Region 8'!$AJ$32/'MMA Rev-Exp Region 8'!$AJ$9, 0)","v":{"v":0,"d":"$0.00"}}]
["MMA",null,null,2016,"2016-12-31","Q3","2017-09-30","Region 8","Operating Expense","Medical Benefits Expense","Professional Services","3.5","Subcapitated Professional Services",{"$f":"IFERROR('MMA Rev-Exp Region 8'!$Z$33/'MMA Rev-Exp Region 8'!$Z$9, 0)","v":{"v":0,"d":"$0.00"}},{"$f":"IFERROR('MMA Rev-Exp Region 8'!$AA$33/'MMA Rev-Exp Region 8'!$AA$9, 0)","v":{"v":0,"d":"$0.00"}},{"$f":"IFERROR('MMA Rev-Exp Region 8'!$AB$33/'MMA Rev-Exp Region 8'!$AB$9, 0)","v":{"v":0,"d":"$0.00"}},{"$f":"IFERROR('MMA Rev-Exp Region 8'!$AC$33/'MMA Rev-Exp Region 8'!$AC$9, 0)","v":{"v":0,"d":"$0.00"}},{"$f":"IFERROR('MMA Rev-Exp Region 8'!$AD$33/'MMA Rev-Exp Region 8'!$AD$9, 0)","v":{"v":0,"d":"$0.00"}},{"$f":"IFERROR('MMA Rev-Exp Region 8'!$AE$33/'MMA Rev-Exp Region 8'!$AE$9, 0)","v":{"v":0,"d":"$0.00"}},{"$f":"IFERROR('MMA Rev-Exp Region 8'!$AF$33/'MMA Rev-Exp Region 8'!$AF$9, 0)","v":{"v":0,"d":"$0.00"}},{"$f":"IFERROR('MMA Rev-Exp Region 8'!$AG$33/'MMA Rev-Exp Region 8'!$AG$9, 0)","v":{"v":0,"d":"$0.00"}},{"$f":"IFERROR('MMA Rev-Exp Region 8'!$AH$33/'MMA Rev-Exp Region 8'!$AH$9, 0)","v":{"v":0,"d":"$0.00"}},{"$f":"IFERROR('MMA Rev-Exp Region 8'!$AI$33/'MMA Rev-Exp Region 8'!$AI$9, 0)","v":{"v":0,"d":"$0.00"}},{"$f":"IFERROR('MMA Rev-Exp Region 8'!$AJ$33/'MMA Rev-Exp Region 8'!$AJ$9, 0)","v":{"v":0,"d":"$0.00"}}]
["MMA",null,null,2016,"2016-12-31","Q3","2017-09-30","Region 8","Operating Expense","Medical Benefits Expense","Professional Services","3.6","Ending IBNP for Professional Services",{"$f":"IFERROR('MMA Rev-Exp Region 8'!$Z$34/'MMA Rev-Exp Region 8'!$Z$9, 0)","v":{"v":0,"d":"$0.00"}},{"$f":"IFERROR('MMA Rev-Exp Region 8'!$AA$34/'MMA Rev-Exp Region 8'!$AA$9, 0)","v":{"v":0,"d":"$0.00"}},{"$f":"IFERROR('MMA Rev-Exp Region 8'!$AB$34/'MMA Rev-Exp Region 8'!$AB$9, 0)","v":{"v":0,"d":"$0.00"}},{"$f":"IFERROR('MMA Rev-Exp Region 8'!$AC$34/'MMA Rev-Exp Region 8'!$AC$9, 0)","v":{"v":0,"d":"$0.00"}},{"$f":"IFERROR('MMA Rev-Exp Region 8'!$AD$34/'MMA Rev-Exp Region 8'!$AD$9, 0)","v":{"v":0,"d":"$0.00"}},{"$f":"IFERROR('MMA Rev-Exp Region 8'!$AE$34/'MMA Rev-Exp Region 8'!$AE$9, 0)","v":{"v":0,"d":"$0.00"}},{"$f":"IFERROR('MMA Rev-Exp Region 8'!$AF$34/'MMA Rev-Exp Region 8'!$AF$9, 0)","v":{"v":0,"d":"$0.00"}},{"$f":"IFERROR('MMA Rev-Exp Region 8'!$AG$34/'MMA Rev-Exp Region 8'!$AG$9, 0)","v":{"v":0,"d":"$0.00"}},{"$f":"IFERROR('MMA Rev-Exp Region 8'!$AH$34/'MMA Rev-Exp Region 8'!$AH$9, 0)","v":{"v":0,"d":"$0.00"}},{"$f":"IFERROR('MMA Rev-Exp Region 8'!$AI$34/'MMA Rev-Exp Region 8'!$AI$9, 0)","v":{"v":0,"d":"$0.00"}},{"$f":"IFERROR('MMA Rev-Exp Region 8'!$AJ$34/'MMA Rev-Exp Region 8'!$AJ$9, 0)","v":{"v":0,"d":"$0.00"}}]
["MMA",null,null,2016,"2016-12-31","Q3","2017-09-30","Region 8","Operating Expense","Medical Benefits Expense","Professional Services","3.7","Professional Services Settlements",{"$f":"IFERROR('MMA Rev-Exp Region 8'!$Z$35/'MMA Rev-Exp Region 8'!$Z$9, 0)","v":{"v":0,"d":"$0.00"}},{"$f":"IFERROR('MMA Rev-Exp Region 8'!$AA$35/'MMA Rev-Exp Region 8'!$AA$9, 0)","v":{"v":0,"d":"$0.00"}},{"$f":"IFERROR('MMA Rev-Exp Region 8'!$AB$35/'MMA Rev-Exp Region 8'!$AB$9, 0)","v":{"v":0,"d":"$0.00"}},{"$f":"IFERROR('MMA Rev-Exp Region 8'!$AC$35/'MMA Rev-Exp Region 8'!$AC$9, 0)","v":{"v":0,"d":"$0.00"}},{"$f":"IFERROR('MMA Rev-Exp Region 8'!$AD$35/'MMA Rev-Exp Region 8'!$AD$9, 0)","v":{"v":0,"d":"$0.00"}},{"$f":"IFERROR('MMA Rev-Exp Region 8'!$AE$35/'MMA Rev-Exp Region 8'!$AE$9, 0)","v":{"v":0,"d":"$0.00"}},{"$f":"IFERROR('MMA Rev-Exp Region 8'!$AF$35/'MMA Rev-Exp Region 8'!$AF$9, 0)","v":{"v":0,"d":"$0.00"}},{"$f":"IFERROR('MMA Rev-Exp Region 8'!$AG$35/'MMA Rev-Exp Region 8'!$AG$9, 0)","v":{"v":0,"d":"$0.00"}},{"$f":"IFERROR('MMA Rev-Exp Region 8'!$AH$35/'MMA Rev-Exp Region 8'!$AH$9, 0)","v":{"v":0,"d":"$0.00"}},{"$f":"IFERROR('MMA Rev-Exp Region 8'!$AI$35/'MMA Rev-Exp Region 8'!$AI$9, 0)","v":{"v":0,"d":"$0.00"}},{"$f":"IFERROR('MMA Rev-Exp Region 8'!$AJ$35/'MMA Rev-Exp Region 8'!$AJ$9, 0)","v":{"v":0,"d":"$0.00"}}]
["MMA",null,null,2016,"2016-12-31","Q3","2017-09-30","Region 8","Operating Expense","Medical Benefits Expense","Maternity Services","4.1.1","Maternity Services",{"$f":"IFERROR('MMA Rev-Exp Region 8'!$Z$37/'MMA Rev-Exp Region 8'!$Z$9, 0)","v":{"v":0,"d":"$0.00"}},{"$f":"IFERROR('MMA Rev-Exp Region 8'!$AA$37/'MMA Rev-Exp Region 8'!$AA$9, 0)","v":{"v":0,"d":"$0.00"}},{"$f":"IFERROR('MMA Rev-Exp Region 8'!$AB$37/'MMA Rev-Exp Region 8'!$AB$9, 0)","v":{"v":0,"d":"$0.00"}},{"$f":"IFERROR('MMA Rev-Exp Region 8'!$AC$37/'MMA Rev-Exp Region 8'!$AC$9, 0)","v":{"v":0,"d":"$0.00"}},{"$f":"IFERROR('MMA Rev-Exp Region 8'!$AD$37/'MMA Rev-Exp Region 8'!$AD$9, 0)","v":{"v":0,"d":"$0.00"}},{"$f":"IFERROR('MMA Rev-Exp Region 8'!$AE$37/'MMA Rev-Exp Region 8'!$AE$9, 0)","v":{"v":0,"d":"$0.00"}},{"$f":"IFERROR('MMA Rev-Exp Region 8'!$AF$37/'MMA Rev-Exp Region 8'!$AF$9, 0)","v":{"v":0,"d":"$0.00"}},{"$f":"IFERROR('MMA Rev-Exp Region 8'!$AG$37/'MMA Rev-Exp Region 8'!$AG$9, 0)","v":{"v":0,"d":"$0.00"}},{"$f":"IFERROR('MMA Rev-Exp Region 8'!$AH$37/'MMA Rev-Exp Region 8'!$AH$9, 0)","v":{"v":0,"d":"$0.00"}},{"$f":"IFERROR('MMA Rev-Exp Region 8'!$AI$37/'MMA Rev-Exp Region 8'!$AI$9, 0)","v":{"v":0,"d":"$0.00"}},{"$f":"IFERROR('MMA Rev-Exp Region 8'!$AJ$37/'MMA Rev-Exp Region 8'!$AJ$9, 0)","v":{"v":0,"d":"$0.00"}}]
["MMA",null,null,2016,"2016-12-31","Q3","2017-09-30","Region 8","Operating Expense","Medical Benefits Expense","Maternity Services","4.2.1","Ending IBNP for Maternity Services",{"$f":"IFERROR('MMA Rev-Exp Region 8'!$Z$38/'MMA Rev-Exp Region 8'!$Z$9, 0)","v":{"v":0,"d":"$0.00"}},{"$f":"IFERROR('MMA Rev-Exp Region 8'!$AA$38/'MMA Rev-Exp Region 8'!$AA$9, 0)","v":{"v":0,"d":"$0.00"}},{"$f":"IFERROR('MMA Rev-Exp Region 8'!$AB$38/'MMA Rev-Exp Region 8'!$AB$9, 0)","v":{"v":0,"d":"$0.00"}},{"$f":"IFERROR('MMA Rev-Exp Region 8'!$AC$38/'MMA Rev-Exp Region 8'!$AC$9, 0)","v":{"v":0,"d":"$0.00"}},{"$f":"IFERROR('MMA Rev-Exp Region 8'!$AD$38/'MMA Rev-Exp Region 8'!$AD$9, 0)","v":{"v":0,"d":"$0.00"}},{"$f":"IFERROR('MMA Rev-Exp Region 8'!$AE$38/'MMA Rev-Exp Region 8'!$AE$9, 0)","v":{"v":0,"d":"$0.00"}},{"$f":"IFERROR('MMA Rev-Exp Region 8'!$AF$38/'MMA Rev-Exp Region 8'!$AF$9, 0)","v":{"v":0,"d":"$0.00"}},{"$f":"IFERROR('MMA Rev-Exp Region 8'!$AG$38/'MMA Rev-Exp Region 8'!$AG$9, 0)","v":{"v":0,"d":"$0.00"}},{"$f":"IFERROR('MMA Rev-Exp Region 8'!$AH$38/'MMA Rev-Exp Region 8'!$AH$9, 0)","v":{"v":0,"d":"$0.00"}},{"$f":"IFERROR('MMA Rev-Exp Region 8'!$AI$38/'MMA Rev-Exp Region 8'!$AI$9, 0)","v":{"v":0,"d":"$0.00"}},{"$f":"IFERROR('MMA Rev-Exp Region 8'!$AJ$38/'MMA Rev-Exp Region 8'!$AJ$9, 0)","v":{"v":0,"d":"$0.00"}}]
["MMA",null,null,2016,"2016-12-31","Q3","2017-09-30","Region 8","Operating Expense","Medical Benefits Expense","Maternity Services","4.3.1","Maternity Settlements",{"$f":"IFERROR('MMA Rev-Exp Region 8'!$Z$39/'MMA Rev-Exp Region 8'!$Z$9, 0)","v":{"v":0,"d":"$0.00"}},{"$f":"IFERROR('MMA Rev-Exp Region 8'!$AA$39/'MMA Rev-Exp Region 8'!$AA$9, 0)","v":{"v":0,"d":"$0.00"}},{"$f":"IFERROR('MMA Rev-Exp Region 8'!$AB$39/'MMA Rev-Exp Region 8'!$AB$9, 0)","v":{"v":0,"d":"$0.00"}},{"$f":"IFERROR('MMA Rev-Exp Region 8'!$AC$39/'MMA Rev-Exp Region 8'!$AC$9, 0)","v":{"v":0,"d":"$0.00"}},{"$f":"IFERROR('MMA Rev-Exp Region 8'!$AD$39/'MMA Rev-Exp Region 8'!$AD$9, 0)","v":{"v":0,"d":"$0.00"}},{"$f":"IFERROR('MMA Rev-Exp Region 8'!$AE$39/'MMA Rev-Exp Region 8'!$AE$9, 0)","v":{"v":0,"d":"$0.00"}},{"$f":"IFERROR('MMA Rev-Exp Region 8'!$AF$39/'MMA Rev-Exp Region 8'!$AF$9, 0)","v":{"v":0,"d":"$0.00"}},{"$f":"IFERROR('MMA Rev-Exp Region 8'!$AG$39/'MMA Rev-Exp Region 8'!$AG$9, 0)","v":{"v":0,"d":"$0.00"}},{"$f":"IFERROR('MMA Rev-Exp Region 8'!$AH$39/'MMA Rev-Exp Region 8'!$AH$9, 0)","v":{"v":0,"d":"$0.00"}},{"$f":"IFERROR('MMA Rev-Exp Region 8'!$AI$39/'MMA Rev-Exp Region 8'!$AI$9, 0)","v":{"v":0,"d":"$0.00"}},{"$f":"IFERROR('MMA Rev-Exp Region 8'!$AJ$39/'MMA Rev-Exp Region 8'!$AJ$9, 0)","v":{"v":0,"d":"$0.00"}}]
["MMA",null,null,2016,"2016-12-31","Q3","2017-09-30","Region 8","Operating Expense","Medical Benefits Expense","Mental Health Services",5.1,"Mental Health & Substance Abuse FFS",{"$f":"IFERROR('MMA Rev-Exp Region 8'!$Z$41/'MMA Rev-Exp Region 8'!$Z$9, 0)","v":{"v":0,"d":"$0.00"}},{"$f":"IFERROR('MMA Rev-Exp Region 8'!$AA$41/'MMA Rev-Exp Region 8'!$AA$9, 0)","v":{"v":0,"d":"$0.00"}},{"$f":"IFERROR('MMA Rev-Exp Region 8'!$AB$41/'MMA Rev-Exp Region 8'!$AB$9, 0)","v":{"v":0,"d":"$0.00"}},{"$f":"IFERROR('MMA Rev-Exp Region 8'!$AC$41/'MMA Rev-Exp Region 8'!$AC$9, 0)","v":{"v":0,"d":"$0.00"}},{"$f":"IFERROR('MMA Rev-Exp Region 8'!$AD$41/'MMA Rev-Exp Region 8'!$AD$9, 0)","v":{"v":0,"d":"$0.00"}},{"$f":"IFERROR('MMA Rev-Exp Region 8'!$AE$41/'MMA Rev-Exp Region 8'!$AE$9, 0)","v":{"v":0,"d":"$0.00"}},{"$f":"IFERROR('MMA Rev-Exp Region 8'!$AF$41/'MMA Rev-Exp Region 8'!$AF$9, 0)","v":{"v":0,"d":"$0.00"}},{"$f":"IFERROR('MMA Rev-Exp Region 8'!$AG$41/'MMA Rev-Exp Region 8'!$AG$9, 0)","v":{"v":0,"d":"$0.00"}},{"$f":"IFERROR('MMA Rev-Exp Region 8'!$AH$41/'MMA Rev-Exp Region 8'!$AH$9, 0)","v":{"v":0,"d":"$0.00"}},{"$f":"IFERROR('MMA Rev-Exp Region 8'!$AI$41/'MMA Rev-Exp Region 8'!$AI$9, 0)","v":{"v":0,"d":"$0.00"}},{"$f":"IFERROR('MMA Rev-Exp Region 8'!$AJ$41/'MMA Rev-Exp Region 8'!$AJ$9, 0)","v":{"v":0,"d":"$0.00"}}]
["MMA",null,null,2016,"2016-12-31","Q3","2017-09-30","Region 8","Operating Expense","Medical Benefits Expense","Mental Health Services",5.2,"Mental Health & Substance Abuse Subcapitation",{"$f":"IFERROR('MMA Rev-Exp Region 8'!$Z$42/'MMA Rev-Exp Region 8'!$Z$9, 0)","v":{"v":0,"d":"$0.00"}},{"$f":"IFERROR('MMA Rev-Exp Region 8'!$AA$42/'MMA Rev-Exp Region 8'!$AA$9, 0)","v":{"v":0,"d":"$0.00"}},{"$f":"IFERROR('MMA Rev-Exp Region 8'!$AB$42/'MMA Rev-Exp Region 8'!$AB$9, 0)","v":{"v":0,"d":"$0.00"}},{"$f":"IFERROR('MMA Rev-Exp Region 8'!$AC$42/'MMA Rev-Exp Region 8'!$AC$9, 0)","v":{"v":0,"d":"$0.00"}},{"$f":"IFERROR('MMA Rev-Exp Region 8'!$AD$42/'MMA Rev-Exp Region 8'!$AD$9, 0)","v":{"v":0,"d":"$0.00"}},{"$f":"IFERROR('MMA Rev-Exp Region 8'!$AE$42/'MMA Rev-Exp Region 8'!$AE$9, 0)","v":{"v":0,"d":"$0.00"}},{"$f":"IFERROR('MMA Rev-Exp Region 8'!$AF$42/'MMA Rev-Exp Region 8'!$AF$9, 0)","v":{"v":0,"d":"$0.00"}},{"$f":"IFERROR('MMA Rev-Exp Region 8'!$AG$42/'MMA Rev-Exp Region 8'!$AG$9, 0)","v":{"v":0,"d":"$0.00"}},{"$f":"IFERROR('MMA Rev-Exp Region 8'!$AH$42/'MMA Rev-Exp Region 8'!$AH$9, 0)","v":{"v":0,"d":"$0.00"}},{"$f":"IFERROR('MMA Rev-Exp Region 8'!$AI$42/'MMA Rev-Exp Region 8'!$AI$9, 0)","v":{"v":0,"d":"$0.00"}},{"$f":"IFERROR('MMA Rev-Exp Region 8'!$AJ$42/'MMA Rev-Exp Region 8'!$AJ$9, 0)","v":{"v":0,"d":"$0.00"}}]
["MMA",null,null,2016,"2016-12-31","Q3","2017-09-30","Region 8","Operating Expense","Medical Benefits Expense","Mental Health Services",5.3,"Ending IBNP for Mental Health & Substance Abuse",{"$f":"IFERROR('MMA Rev-Exp Region 8'!$Z$43/'MMA Rev-Exp Region 8'!$Z$9, 0)","v":{"v":0,"d":"$0.00"}},{"$f":"IFERROR('MMA Rev-Exp Region 8'!$AA$43/'MMA Rev-Exp Region 8'!$AA$9, 0)","v":{"v":0,"d":"$0.00"}},{"$f":"IFERROR('MMA Rev-Exp Region 8'!$AB$43/'MMA Rev-Exp Region 8'!$AB$9, 0)","v":{"v":0,"d":"$0.00"}},{"$f":"IFERROR('MMA Rev-Exp Region 8'!$AC$43/'MMA Rev-Exp Region 8'!$AC$9, 0)","v":{"v":0,"d":"$0.00"}},{"$f":"IFERROR('MMA Rev-Exp Region 8'!$AD$43/'MMA Rev-Exp Region 8'!$AD$9, 0)","v":{"v":0,"d":"$0.00"}},{"$f":"IFERROR('MMA Rev-Exp Region 8'!$AE$43/'MMA Rev-Exp Region 8'!$AE$9, 0)","v":{"v":0,"d":"$0.00"}},{"$f":"IFERROR('MMA Rev-Exp Region 8'!$AF$43/'MMA Rev-Exp Region 8'!$AF$9, 0)","v":{"v":0,"d":"$0.00"}},{"$f":"IFERROR('MMA Rev-Exp Region 8'!$AG$43/'MMA Rev-Exp Region 8'!$AG$9, 0)","v":{"v":0,"d":"$0.00"}},{"$f":"IFERROR('MMA Rev-Exp Region 8'!$AH$43/'MMA Rev-Exp Region 8'!$AH$9, 0)","v":{"v":0,"d":"$0.00"}},{"$f":"IFERROR('MMA Rev-Exp Region 8'!$AI$43/'MMA Rev-Exp Region 8'!$AI$9, 0)","v":{"v":0,"d":"$0.00"}},{"$f":"IFERROR('MMA Rev-Exp Region 8'!$AJ$43/'MMA Rev-Exp Region 8'!$AJ$9, 0)","v":{"v":0,"d":"$0.00"}}]
["MMA",null,null,2016,"2016-12-31","Q3","2017-09-30","Region 8","Operating Expense","Medical Benefits Expense","Mental Health Services","5.4","Mental Health Settlements",{"$f":"IFERROR('MMA Rev-Exp Region 8'!$Z$44/'MMA Rev-Exp Region 8'!$Z$9, 0)","v":{"v":0,"d":"$0.00"}},{"$f":"IFERROR('MMA Rev-Exp Region 8'!$AA$44/'MMA Rev-Exp Region 8'!$AA$9, 0)","v":{"v":0,"d":"$0.00"}},{"$f":"IFERROR('MMA Rev-Exp Region 8'!$AB$44/'MMA Rev-Exp Region 8'!$AB$9, 0)","v":{"v":0,"d":"$0.00"}},{"$f":"IFERROR('MMA Rev-Exp Region 8'!$AC$44/'MMA Rev-Exp Region 8'!$AC$9, 0)","v":{"v":0,"d":"$0.00"}},{"$f":"IFERROR('MMA Rev-Exp Region 8'!$AD$44/'MMA Rev-Exp Region 8'!$AD$9, 0)","v":{"v":0,"d":"$0.00"}},{"$f":"IFERROR('MMA Rev-Exp Region 8'!$AE$44/'MMA Rev-Exp Region 8'!$AE$9, 0)","v":{"v":0,"d":"$0.00"}},{"$f":"IFERROR('MMA Rev-Exp Region 8'!$AF$44/'MMA Rev-Exp Region 8'!$AF$9, 0)","v":{"v":0,"d":"$0.00"}},{"$f":"IFERROR('MMA Rev-Exp Region 8'!$AG$44/'MMA Rev-Exp Region 8'!$AG$9, 0)","v":{"v":0,"d":"$0.00"}},{"$f":"IFERROR('MMA Rev-Exp Region 8'!$AH$44/'MMA Rev-Exp Region 8'!$AH$9, 0)","v":{"v":0,"d":"$0.00"}},{"$f":"IFERROR('MMA Rev-Exp Region 8'!$AI$44/'MMA Rev-Exp Region 8'!$AI$9, 0)","v":{"v":0,"d":"$0.00"}},{"$f":"IFERROR('MMA Rev-Exp Region 8'!$AJ$44/'MMA Rev-Exp Region 8'!$AJ$9, 0)","v":{"v":0,"d":"$0.00"}}]
["MMA",null,null,2016,"2016-12-31","Q3","2017-09-30","Region 8","Operating Expense","Medical Benefits Expense","Dental Services",6.1,"Dental FFS",{"$f":"IFERROR('MMA Rev-Exp Region 8'!$Z$46/'MMA Rev-Exp Region 8'!$Z$9, 0)","v":{"v":0,"d":"$0.00"}},{"$f":"IFERROR('MMA Rev-Exp Region 8'!$AA$46/'MMA Rev-Exp Region 8'!$AA$9, 0)","v":{"v":0,"d":"$0.00"}},{"$f":"IFERROR('MMA Rev-Exp Region 8'!$AB$46/'MMA Rev-Exp Region 8'!$AB$9, 0)","v":{"v":0,"d":"$0.00"}},{"$f":"IFERROR('MMA Rev-Exp Region 8'!$AC$46/'MMA Rev-Exp Region 8'!$AC$9, 0)","v":{"v":0,"d":"$0.00"}},{"$f":"IFERROR('MMA Rev-Exp Region 8'!$AD$46/'MMA Rev-Exp Region 8'!$AD$9, 0)","v":{"v":0,"d":"$0.00"}},{"$f":"IFERROR('MMA Rev-Exp Region 8'!$AE$46/'MMA Rev-Exp Region 8'!$AE$9, 0)","v":{"v":0,"d":"$0.00"}},{"$f":"IFERROR('MMA Rev-Exp Region 8'!$AF$46/'MMA Rev-Exp Region 8'!$AF$9, 0)","v":{"v":0,"d":"$0.00"}},{"$f":"IFERROR('MMA Rev-Exp Region 8'!$AG$46/'MMA Rev-Exp Region 8'!$AG$9, 0)","v":{"v":0,"d":"$0.00"}},{"$f":"IFERROR('MMA Rev-Exp Region 8'!$AH$46/'MMA Rev-Exp Region 8'!$AH$9, 0)","v":{"v":0,"d":"$0.00"}},{"$f":"IFERROR('MMA Rev-Exp Region 8'!$AI$46/'MMA Rev-Exp Region 8'!$AI$9, 0)","v":{"v":0,"d":"$0.00"}},{"$f":"IFERROR('MMA Rev-Exp Region 8'!$AJ$46/'MMA Rev-Exp Region 8'!$AJ$9, 0)","v":{"v":0,"d":"$0.00"}}]
["MMA",null,null,2016,"2016-12-31","Q3","2017-09-30","Region 8","Operating Expense","Medical Benefits Expense","Dental Services",6.2,"Dental Subcapitation",{"$f":"IFERROR('MMA Rev-Exp Region 8'!$Z$47/'MMA Rev-Exp Region 8'!$Z$9, 0)","v":{"v":0,"d":"$0.00"}},{"$f":"IFERROR('MMA Rev-Exp Region 8'!$AA$47/'MMA Rev-Exp Region 8'!$AA$9, 0)","v":{"v":0,"d":"$0.00"}},{"$f":"IFERROR('MMA Rev-Exp Region 8'!$AB$47/'MMA Rev-Exp Region 8'!$AB$9, 0)","v":{"v":0,"d":"$0.00"}},{"$f":"IFERROR('MMA Rev-Exp Region 8'!$AC$47/'MMA Rev-Exp Region 8'!$AC$9, 0)","v":{"v":0,"d":"$0.00"}},{"$f":"IFERROR('MMA Rev-Exp Region 8'!$AD$47/'MMA Rev-Exp Region 8'!$AD$9, 0)","v":{"v":0,"d":"$0.00"}},{"$f":"IFERROR('MMA Rev-Exp Region 8'!$AE$47/'MMA Rev-Exp Region 8'!$AE$9, 0)","v":{"v":0,"d":"$0.00"}},{"$f":"IFERROR('MMA Rev-Exp Region 8'!$AF$47/'MMA Rev-Exp Region 8'!$AF$9, 0)","v":{"v":0,"d":"$0.00"}},{"$f":"IFERROR('MMA Rev-Exp Region 8'!$AG$47/'MMA Rev-Exp Region 8'!$AG$9, 0)","v":{"v":0,"d":"$0.00"}},{"$f":"IFERROR('MMA Rev-Exp Region 8'!$AH$47/'MMA Rev-Exp Region 8'!$AH$9, 0)","v":{"v":0,"d":"$0.00"}},{"$f":"IFERROR('MMA Rev-Exp Region 8'!$AI$47/'MMA Rev-Exp Region 8'!$AI$9, 0)","v":{"v":0,"d":"$0.00"}},{"$f":"IFERROR('MMA Rev-Exp Region 8'!$AJ$47/'MMA Rev-Exp Region 8'!$AJ$9, 0)","v":{"v":0,"d":"$0.00"}}]
["MMA",null,null,2016,"2016-12-31","Q3","2017-09-30","Region 8","Operating Expense","Medical Benefits Expense","Dental Services",6.3,"Ending IBNP for Dental Services",{"$f":"IFERROR('MMA Rev-Exp Region 8'!$Z$48/'MMA Rev-Exp Region 8'!$Z$9, 0)","v":{"v":0,"d":"$0.00"}},{"$f":"IFERROR('MMA Rev-Exp Region 8'!$AA$48/'MMA Rev-Exp Region 8'!$AA$9, 0)","v":{"v":0,"d":"$0.00"}},{"$f":"IFERROR('MMA Rev-Exp Region 8'!$AB$48/'MMA Rev-Exp Region 8'!$AB$9, 0)","v":{"v":0,"d":"$0.00"}},{"$f":"IFERROR('MMA Rev-Exp Region 8'!$AC$48/'MMA Rev-Exp Region 8'!$AC$9, 0)","v":{"v":0,"d":"$0.00"}},{"$f":"IFERROR('MMA Rev-Exp Region 8'!$AD$48/'MMA Rev-Exp Region 8'!$AD$9, 0)","v":{"v":0,"d":"$0.00"}},{"$f":"IFERROR('MMA Rev-Exp Region 8'!$AE$48/'MMA Rev-Exp Region 8'!$AE$9, 0)","v":{"v":0,"d":"$0.00"}},{"$f":"IFERROR('MMA Rev-Exp Region 8'!$AF$48/'MMA Rev-Exp Region 8'!$AF$9, 0)","v":{"v":0,"d":"$0.00"}},{"$f":"IFERROR('MMA Rev-Exp Region 8'!$AG$48/'MMA Rev-Exp Region 8'!$AG$9, 0)","v":{"v":0,"d":"$0.00"}},{"$f":"IFERROR('MMA Rev-Exp Region 8'!$AH$48/'MMA Rev-Exp Region 8'!$AH$9, 0)","v":{"v":0,"d":"$0.00"}},{"$f":"IFERROR('MMA Rev-Exp Region 8'!$AI$48/'MMA Rev-Exp Region 8'!$AI$9, 0)","v":{"v":0,"d":"$0.00"}},{"$f":"IFERROR('MMA Rev-Exp Region 8'!$AJ$48/'MMA Rev-Exp Region 8'!$AJ$9, 0)","v":{"v":0,"d":"$0.00"}}]
["MMA",null,null,2016,"2016-12-31","Q3","2017-09-30","Region 8","Operating Expense","Medical Benefits Expense","Dental Services","6.4","Dental Settlements",{"$f":"IFERROR('MMA Rev-Exp Region 8'!$Z$49/'MMA Rev-Exp Region 8'!$Z$9, 0)","v":{"v":0,"d":"$0.00"}},{"$f":"IFERROR('MMA Rev-Exp Region 8'!$AA$49/'MMA Rev-Exp Region 8'!$AA$9, 0)","v":{"v":0,"d":"$0.00"}},{"$f":"IFERROR('MMA Rev-Exp Region 8'!$AB$49/'MMA Rev-Exp Region 8'!$AB$9, 0)","v":{"v":0,"d":"$0.00"}},{"$f":"IFERROR('MMA Rev-Exp Region 8'!$AC$49/'MMA Rev-Exp Region 8'!$AC$9, 0)","v":{"v":0,"d":"$0.00"}},{"$f":"IFERROR('MMA Rev-Exp Region 8'!$AD$49/'MMA Rev-Exp Region 8'!$AD$9, 0)","v":{"v":0,"d":"$0.00"}},{"$f":"IFERROR('MMA Rev-Exp Region 8'!$AE$49/'MMA Rev-Exp Region 8'!$AE$9, 0)","v":{"v":0,"d":"$0.00"}},{"$f":"IFERROR('MMA Rev-Exp Region 8'!$AF$49/'MMA Rev-Exp Region 8'!$AF$9, 0)","v":{"v":0,"d":"$0.00"}},{"$f":"IFERROR('MMA Rev-Exp Region 8'!$AG$49/'MMA Rev-Exp Region 8'!$AG$9, 0)","v":{"v":0,"d":"$0.00"}},{"$f":"IFERROR('MMA Rev-Exp Region 8'!$AH$49/'MMA Rev-Exp Region 8'!$AH$9, 0)","v":{"v":0,"d":"$0.00"}},{"$f":"IFERROR('MMA Rev-Exp Region 8'!$AI$49/'MMA Rev-Exp Region 8'!$AI$9, 0)","v":{"v":0,"d":"$0.00"}},{"$f":"IFERROR('MMA Rev-Exp Region 8'!$AJ$49/'MMA Rev-Exp Region 8'!$AJ$9, 0)","v":{"v":0,"d":"$0.00"}}]
["MMA",null,null,2016,"2016-12-31","Q3","2017-09-30","Region 8","Operating Expense","Medical Benefits Expense","Transportation Services",7.1,"Transportation FFS",{"$f":"IFERROR('MMA Rev-Exp Region 8'!$Z$51/'MMA Rev-Exp Region 8'!$Z$9, 0)","v":{"v":0,"d":"$0.00"}},{"$f":"IFERROR('MMA Rev-Exp Region 8'!$AA$51/'MMA Rev-Exp Region 8'!$AA$9, 0)","v":{"v":0,"d":"$0.00"}},{"$f":"IFERROR('MMA Rev-Exp Region 8'!$AB$51/'MMA Rev-Exp Region 8'!$AB$9, 0)","v":{"v":0,"d":"$0.00"}},{"$f":"IFERROR('MMA Rev-Exp Region 8'!$AC$51/'MMA Rev-Exp Region 8'!$AC$9, 0)","v":{"v":0,"d":"$0.00"}},{"$f":"IFERROR('MMA Rev-Exp Region 8'!$AD$51/'MMA Rev-Exp Region 8'!$AD$9, 0)","v":{"v":0,"d":"$0.00"}},{"$f":"IFERROR('MMA Rev-Exp Region 8'!$AE$51/'MMA Rev-Exp Region 8'!$AE$9, 0)","v":{"v":0,"d":"$0.00"}},{"$f":"IFERROR('MMA Rev-Exp Region 8'!$AF$51/'MMA Rev-Exp Region 8'!$AF$9, 0)","v":{"v":0,"d":"$0.00"}},{"$f":"IFERROR('MMA Rev-Exp Region 8'!$AG$51/'MMA Rev-Exp Region 8'!$AG$9, 0)","v":{"v":0,"d":"$0.00"}},{"$f":"IFERROR('MMA Rev-Exp Region 8'!$AH$51/'MMA Rev-Exp Region 8'!$AH$9, 0)","v":{"v":0,"d":"$0.00"}},{"$f":"IFERROR('MMA Rev-Exp Region 8'!$AI$51/'MMA Rev-Exp Region 8'!$AI$9, 0)","v":{"v":0,"d":"$0.00"}},{"$f":"IFERROR('MMA Rev-Exp Region 8'!$AJ$51/'MMA Rev-Exp Region 8'!$AJ$9, 0)","v":{"v":0,"d":"$0.00"}}]
["MMA",null,null,2016,"2016-12-31","Q3","2017-09-30","Region 8","Operating Expense","Medical Benefits Expense","Transportation Services",7.2,"Transportation Subcapitation",{"$f":"IFERROR('MMA Rev-Exp Region 8'!$Z$52/'MMA Rev-Exp Region 8'!$Z$9, 0)","v":{"v":0,"d":"$0.00"}},{"$f":"IFERROR('MMA Rev-Exp Region 8'!$AA$52/'MMA Rev-Exp Region 8'!$AA$9, 0)","v":{"v":0,"d":"$0.00"}},{"$f":"IFERROR('MMA Rev-Exp Region 8'!$AB$52/'MMA Rev-Exp Region 8'!$AB$9, 0)","v":{"v":0,"d":"$0.00"}},{"$f":"IFERROR('MMA Rev-Exp Region 8'!$AC$52/'MMA Rev-Exp Region 8'!$AC$9, 0)","v":{"v":0,"d":"$0.00"}},{"$f":"IFERROR('MMA Rev-Exp Region 8'!$AD$52/'MMA Rev-Exp Region 8'!$AD$9, 0)","v":{"v":0,"d":"$0.00"}},{"$f":"IFERROR('MMA Rev-Exp Region 8'!$AE$52/'MMA Rev-Exp Region 8'!$AE$9, 0)","v":{"v":0,"d":"$0.00"}},{"$f":"IFERROR('MMA Rev-Exp Region 8'!$AF$52/'MMA Rev-Exp Region 8'!$AF$9, 0)","v":{"v":0,"d":"$0.00"}},{"$f":"IFERROR('MMA Rev-Exp Region 8'!$AG$52/'MMA Rev-Exp Region 8'!$AG$9, 0)","v":{"v":0,"d":"$0.00"}},{"$f":"IFERROR('MMA Rev-Exp Region 8'!$AH$52/'MMA Rev-Exp Region 8'!$AH$9, 0)","v":{"v":0,"d":"$0.00"}},{"$f":"IFERROR('MMA Rev-Exp Region 8'!$AI$52/'MMA Rev-Exp Region 8'!$AI$9, 0)","v":{"v":0,"d":"$0.00"}},{"$f":"IFERROR('MMA Rev-Exp Region 8'!$AJ$52/'MMA Rev-Exp Region 8'!$AJ$9, 0)","v":{"v":0,"d":"$0.00"}}]
["MMA",null,null,2016,"2016-12-31","Q3","2017-09-30","Region 8","Operating Expense","Medical Benefits Expense","Transportation Services",7.3,"Ending IBNP for Transportation",{"$f":"IFERROR('MMA Rev-Exp Region 8'!$Z$53/'MMA Rev-Exp Region 8'!$Z$9, 0)","v":{"v":0,"d":"$0.00"}},{"$f":"IFERROR('MMA Rev-Exp Region 8'!$AA$53/'MMA Rev-Exp Region 8'!$AA$9, 0)","v":{"v":0,"d":"$0.00"}},{"$f":"IFERROR('MMA Rev-Exp Region 8'!$AB$53/'MMA Rev-Exp Region 8'!$AB$9, 0)","v":{"v":0,"d":"$0.00"}},{"$f":"IFERROR('MMA Rev-Exp Region 8'!$AC$53/'MMA Rev-Exp Region 8'!$AC$9, 0)","v":{"v":0,"d":"$0.00"}},{"$f":"IFERROR('MMA Rev-Exp Region 8'!$AD$53/'MMA Rev-Exp Region 8'!$AD$9, 0)","v":{"v":0,"d":"$0.00"}},{"$f":"IFERROR('MMA Rev-Exp Region 8'!$AE$53/'MMA Rev-Exp Region 8'!$AE$9, 0)","v":{"v":0,"d":"$0.00"}},{"$f":"IFERROR('MMA Rev-Exp Region 8'!$AF$53/'MMA Rev-Exp Region 8'!$AF$9, 0)","v":{"v":0,"d":"$0.00"}},{"$f":"IFERROR('MMA Rev-Exp Region 8'!$AG$53/'MMA Rev-Exp Region 8'!$AG$9, 0)","v":{"v":0,"d":"$0.00"}},{"$f":"IFERROR('MMA Rev-Exp Region 8'!$AH$53/'MMA Rev-Exp Region 8'!$AH$9, 0)","v":{"v":0,"d":"$0.00"}},{"$f":"IFERROR('MMA Rev-Exp Region 8'!$AI$53/'MMA Rev-Exp Region 8'!$AI$9, 0)","v":{"v":0,"d":"$0.00"}},{"$f":"IFERROR('MMA Rev-Exp Region 8'!$AJ$53/'MMA Rev-Exp Region 8'!$AJ$9, 0)","v":{"v":0,"d":"$0.00"}}]
["MMA",null,null,2016,"2016-12-31","Q3","2017-09-30","Region 8","Operating Expense","Medical Benefits Expense","Transportation Services","7.4","Transportation Settlements",{"$f":"IFERROR('MMA Rev-Exp Region 8'!$Z$54/'MMA Rev-Exp Region 8'!$Z$9, 0)","v":{"v":0,"d":"$0.00"}},{"$f":"IFERROR('MMA Rev-Exp Region 8'!$AA$54/'MMA Rev-Exp Region 8'!$AA$9, 0)","v":{"v":0,"d":"$0.00"}},{"$f":"IFERROR('MMA Rev-Exp Region 8'!$AB$54/'MMA Rev-Exp Region 8'!$AB$9, 0)","v":{"v":0,"d":"$0.00"}},{"$f":"IFERROR('MMA Rev-Exp Region 8'!$AC$54/'MMA Rev-Exp Region 8'!$AC$9, 0)","v":{"v":0,"d":"$0.00"}},{"$f":"IFERROR('MMA Rev-Exp Region 8'!$AD$54/'MMA Rev-Exp Region 8'!$AD$9, 0)","v":{"v":0,"d":"$0.00"}},{"$f":"IFERROR('MMA Rev-Exp Region 8'!$AE$54/'MMA Rev-Exp Region 8'!$AE$9, 0)","v":{"v":0,"d":"$0.00"}},{"$f":"IFERROR('MMA Rev-Exp Region 8'!$AF$54/'MMA Rev-Exp Region 8'!$AF$9, 0)","v":{"v":0,"d":"$0.00"}},{"$f":"IFERROR('MMA Rev-Exp Region 8'!$AG$54/'MMA Rev-Exp Region 8'!$AG$9, 0)","v":{"v":0,"d":"$0.00"}},{"$f":"IFERROR('MMA Rev-Exp Region 8'!$AH$54/'MMA Rev-Exp Region 8'!$AH$9, 0)","v":{"v":0,"d":"$0.00"}},{"$f":"IFERROR('MMA Rev-Exp Region 8'!$AI$54/'MMA Rev-Exp Region 8'!$AI$9, 0)","v":{"v":0,"d":"$0.00"}},{"$f":"IFERROR('MMA Rev-Exp Region 8'!$AJ$54/'MMA Rev-Exp Region 8'!$AJ$9, 0)","v":{"v":0,"d":"$0.00"}}]
["MMA",null,null,2016,"2016-12-31","Q3","2017-09-30","Region 8","Operating Expense","Medical Benefits Expense","Pharmacy Services",8.1,"Prescription Drugs FFS",{"$f":"IFERROR('MMA Rev-Exp Region 8'!$Z$56/'MMA Rev-Exp Region 8'!$Z$9, 0)","v":{"v":0,"d":"$0.00"}},{"$f":"IFERROR('MMA Rev-Exp Region 8'!$AA$56/'MMA Rev-Exp Region 8'!$AA$9, 0)","v":{"v":0,"d":"$0.00"}},{"$f":"IFERROR('MMA Rev-Exp Region 8'!$AB$56/'MMA Rev-Exp Region 8'!$AB$9, 0)","v":{"v":0,"d":"$0.00"}},{"$f":"IFERROR('MMA Rev-Exp Region 8'!$AC$56/'MMA Rev-Exp Region 8'!$AC$9, 0)","v":{"v":0,"d":"$0.00"}},{"$f":"IFERROR('MMA Rev-Exp Region 8'!$AD$56/'MMA Rev-Exp Region 8'!$AD$9, 0)","v":{"v":0,"d":"$0.00"}},{"$f":"IFERROR('MMA Rev-Exp Region 8'!$AE$56/'MMA Rev-Exp Region 8'!$AE$9, 0)","v":{"v":0,"d":"$0.00"}},{"$f":"IFERROR('MMA Rev-Exp Region 8'!$AF$56/'MMA Rev-Exp Region 8'!$AF$9, 0)","v":{"v":0,"d":"$0.00"}},{"$f":"IFERROR('MMA Rev-Exp Region 8'!$AG$56/'MMA Rev-Exp Region 8'!$AG$9, 0)","v":{"v":0,"d":"$0.00"}},{"$f":"IFERROR('MMA Rev-Exp Region 8'!$AH$56/'MMA Rev-Exp Region 8'!$AH$9, 0)","v":{"v":0,"d":"$0.00"}},{"$f":"IFERROR('MMA Rev-Exp Region 8'!$AI$56/'MMA Rev-Exp Region 8'!$AI$9, 0)","v":{"v":0,"d":"$0.00"}},{"$f":"IFERROR('MMA Rev-Exp Region 8'!$AJ$56/'MMA Rev-Exp Region 8'!$AJ$9, 0)","v":{"v":0,"d":"$0.00"}}]
["MMA",null,null,2016,"2016-12-31","Q3","2017-09-30","Region 8","Operating Expense","Medical Benefits Expense","Pharmacy Services","8.2","Hepatitis C Prescription Drug FFS",{"$f":"IFERROR('MMA Rev-Exp Region 8'!$Z$57/'MMA Rev-Exp Region 8'!$Z$9, 0)","v":{"v":0,"d":"$0.00"}},{"$f":"IFERROR('MMA Rev-Exp Region 8'!$AA$57/'MMA Rev-Exp Region 8'!$AA$9, 0)","v":{"v":0,"d":"$0.00"}},{"$f":"IFERROR('MMA Rev-Exp Region 8'!$AB$57/'MMA Rev-Exp Region 8'!$AB$9, 0)","v":{"v":0,"d":"$0.00"}},{"$f":"IFERROR('MMA Rev-Exp Region 8'!$AC$57/'MMA Rev-Exp Region 8'!$AC$9, 0)","v":{"v":0,"d":"$0.00"}},{"$f":"IFERROR('MMA Rev-Exp Region 8'!$AD$57/'MMA Rev-Exp Region 8'!$AD$9, 0)","v":{"v":0,"d":"$0.00"}},{"$f":"IFERROR('MMA Rev-Exp Region 8'!$AE$57/'MMA Rev-Exp Region 8'!$AE$9, 0)","v":{"v":0,"d":"$0.00"}},{"$f":"IFERROR('MMA Rev-Exp Region 8'!$AF$57/'MMA Rev-Exp Region 8'!$AF$9, 0)","v":{"v":0,"d":"$0.00"}},{"$f":"IFERROR('MMA Rev-Exp Region 8'!$AG$57/'MMA Rev-Exp Region 8'!$AG$9, 0)","v":{"v":0,"d":"$0.00"}},{"$f":"IFERROR('MMA Rev-Exp Region 8'!$AH$57/'MMA Rev-Exp Region 8'!$AH$9, 0)","v":{"v":0,"d":"$0.00"}},{"$f":"IFERROR('MMA Rev-Exp Region 8'!$AI$57/'MMA Rev-Exp Region 8'!$AI$9, 0)","v":{"v":0,"d":"$0.00"}},{"$f":"IFERROR('MMA Rev-Exp Region 8'!$AJ$57/'MMA Rev-Exp Region 8'!$AJ$9, 0)","v":{"v":0,"d":"$0.00"}}]
["MMA",null,null,2016,"2016-12-31","Q3","2017-09-30","Region 8","Operating Expense","Medical Benefits Expense","Pharmacy Services","8.3","Ending IBNP for Prescription Drugs",{"$f":"IFERROR('MMA Rev-Exp Region 8'!$Z$58/'MMA Rev-Exp Region 8'!$Z$9, 0)","v":{"v":0,"d":"$0.00"}},{"$f":"IFERROR('MMA Rev-Exp Region 8'!$AA$58/'MMA Rev-Exp Region 8'!$AA$9, 0)","v":{"v":0,"d":"$0.00"}},{"$f":"IFERROR('MMA Rev-Exp Region 8'!$AB$58/'MMA Rev-Exp Region 8'!$AB$9, 0)","v":{"v":0,"d":"$0.00"}},{"$f":"IFERROR('MMA Rev-Exp Region 8'!$AC$58/'MMA Rev-Exp Region 8'!$AC$9, 0)","v":{"v":0,"d":"$0.00"}},{"$f":"IFERROR('MMA Rev-Exp Region 8'!$AD$58/'MMA Rev-Exp Region 8'!$AD$9, 0)","v":{"v":0,"d":"$0.00"}},{"$f":"IFERROR('MMA Rev-Exp Region 8'!$AE$58/'MMA Rev-Exp Region 8'!$AE$9, 0)","v":{"v":0,"d":"$0.00"}},{"$f":"IFERROR('MMA Rev-Exp Region 8'!$AF$58/'MMA Rev-Exp Region 8'!$AF$9, 0)","v":{"v":0,"d":"$0.00"}},{"$f":"IFERROR('MMA Rev-Exp Region 8'!$AG$58/'MMA Rev-Exp Region 8'!$AG$9, 0)","v":{"v":0,"d":"$0.00"}},{"$f":"IFERROR('MMA Rev-Exp Region 8'!$AH$58/'MMA Rev-Exp Region 8'!$AH$9, 0)","v":{"v":0,"d":"$0.00"}},{"$f":"IFERROR('MMA Rev-Exp Region 8'!$AI$58/'MMA Rev-Exp Region 8'!$AI$9, 0)","v":{"v":0,"d":"$0.00"}},{"$f":"IFERROR('MMA Rev-Exp Region 8'!$AJ$58/'MMA Rev-Exp Region 8'!$AJ$9, 0)","v":{"v":0,"d":"$0.00"}}]
["MMA",null,null,2016,"2016-12-31","Q3","2017-09-30","Region 8","Operating Expense","Medical Benefits Expense","Pharmacy Services","8.4","Prescription Drug Rebates ",{"$f":"IFERROR('MMA Rev-Exp Region 8'!$Z$59/'MMA Rev-Exp Region 8'!$Z$9, 0)","v":{"v":0,"d":"$0.00"}},{"$f":"IFERROR('MMA Rev-Exp Region 8'!$AA$59/'MMA Rev-Exp Region 8'!$AA$9, 0)","v":{"v":0,"d":"$0.00"}},{"$f":"IFERROR('MMA Rev-Exp Region 8'!$AB$59/'MMA Rev-Exp Region 8'!$AB$9, 0)","v":{"v":0,"d":"$0.00"}},{"$f":"IFERROR('MMA Rev-Exp Region 8'!$AC$59/'MMA Rev-Exp Region 8'!$AC$9, 0)","v":{"v":0,"d":"$0.00"}},{"$f":"IFERROR('MMA Rev-Exp Region 8'!$AD$59/'MMA Rev-Exp Region 8'!$AD$9, 0)","v":{"v":0,"d":"$0.00"}},{"$f":"IFERROR('MMA Rev-Exp Region 8'!$AE$59/'MMA Rev-Exp Region 8'!$AE$9, 0)","v":{"v":0,"d":"$0.00"}},{"$f":"IFERROR('MMA Rev-Exp Region 8'!$AF$59/'MMA Rev-Exp Region 8'!$AF$9, 0)","v":{"v":0,"d":"$0.00"}},{"$f":"IFERROR('MMA Rev-Exp Region 8'!$AG$59/'MMA Rev-Exp Region 8'!$AG$9, 0)","v":{"v":0,"d":"$0.00"}},{"$f":"IFERROR('MMA Rev-Exp Region 8'!$AH$59/'MMA Rev-Exp Region 8'!$AH$9, 0)","v":{"v":0,"d":"$0.00"}},{"$f":"IFERROR('MMA Rev-Exp Region 8'!$AI$59/'MMA Rev-Exp Region 8'!$AI$9, 0)","v":{"v":0,"d":"$0.00"}},{"$f":"IFERROR('MMA Rev-Exp Region 8'!$AJ$59/'MMA Rev-Exp Region 8'!$AJ$9, 0)","v":{"v":0,"d":"$0.00"}}]
["MMA",null,null,2016,"2016-12-31","Q3","2017-09-30","Region 8","Operating Expense","Medical Benefits Expense","Pharmacy Services","8.5","Ending accrual for Rebates receivable",{"$f":"IFERROR('MMA Rev-Exp Region 8'!$Z$60/'MMA Rev-Exp Region 8'!$Z$9, 0)","v":{"v":0,"d":"$0.00"}},{"$f":"IFERROR('MMA Rev-Exp Region 8'!$AA$60/'MMA Rev-Exp Region 8'!$AA$9, 0)","v":{"v":0,"d":"$0.00"}},{"$f":"IFERROR('MMA Rev-Exp Region 8'!$AB$60/'MMA Rev-Exp Region 8'!$AB$9, 0)","v":{"v":0,"d":"$0.00"}},{"$f":"IFERROR('MMA Rev-Exp Region 8'!$AC$60/'MMA Rev-Exp Region 8'!$AC$9, 0)","v":{"v":0,"d":"$0.00"}},{"$f":"IFERROR('MMA Rev-Exp Region 8'!$AD$60/'MMA Rev-Exp Region 8'!$AD$9, 0)","v":{"v":0,"d":"$0.00"}},{"$f":"IFERROR('MMA Rev-Exp Region 8'!$AE$60/'MMA Rev-Exp Region 8'!$AE$9, 0)","v":{"v":0,"d":"$0.00"}},{"$f":"IFERROR('MMA Rev-Exp Region 8'!$AF$60/'MMA Rev-Exp Region 8'!$AF$9, 0)","v":{"v":0,"d":"$0.00"}},{"$f":"IFERROR('MMA Rev-Exp Region 8'!$AG$60/'MMA Rev-Exp Region 8'!$AG$9, 0)","v":{"v":0,"d":"$0.00"}},{"$f":"IFERROR('MMA Rev-Exp Region 8'!$AH$60/'MMA Rev-Exp Region 8'!$AH$9, 0)","v":{"v":0,"d":"$0.00"}},{"$f":"IFERROR('MMA Rev-Exp Region 8'!$AI$60/'MMA Rev-Exp Region 8'!$AI$9, 0)","v":{"v":0,"d":"$0.00"}},{"$f":"IFERROR('MMA Rev-Exp Region 8'!$AJ$60/'MMA Rev-Exp Region 8'!$AJ$9, 0)","v":{"v":0,"d":"$0.00"}}]
["MMA",null,null,2016,"2016-12-31","Q3","2017-09-30","Region 8","Operating Expense","Medical Benefits Expense","Pharmacy Services","8.6","Prescription Drugs Subcapitation",{"$f":"IFERROR('MMA Rev-Exp Region 8'!$Z$61/'MMA Rev-Exp Region 8'!$Z$9, 0)","v":{"v":0,"d":"$0.00"}},{"$f":"IFERROR('MMA Rev-Exp Region 8'!$AA$61/'MMA Rev-Exp Region 8'!$AA$9, 0)","v":{"v":0,"d":"$0.00"}},{"$f":"IFERROR('MMA Rev-Exp Region 8'!$AB$61/'MMA Rev-Exp Region 8'!$AB$9, 0)","v":{"v":0,"d":"$0.00"}},{"$f":"IFERROR('MMA Rev-Exp Region 8'!$AC$61/'MMA Rev-Exp Region 8'!$AC$9, 0)","v":{"v":0,"d":"$0.00"}},{"$f":"IFERROR('MMA Rev-Exp Region 8'!$AD$61/'MMA Rev-Exp Region 8'!$AD$9, 0)","v":{"v":0,"d":"$0.00"}},{"$f":"IFERROR('MMA Rev-Exp Region 8'!$AE$61/'MMA Rev-Exp Region 8'!$AE$9, 0)","v":{"v":0,"d":"$0.00"}},{"$f":"IFERROR('MMA Rev-Exp Region 8'!$AF$61/'MMA Rev-Exp Region 8'!$AF$9, 0)","v":{"v":0,"d":"$0.00"}},{"$f":"IFERROR('MMA Rev-Exp Region 8'!$AG$61/'MMA Rev-Exp Region 8'!$AG$9, 0)","v":{"v":0,"d":"$0.00"}},{"$f":"IFERROR('MMA Rev-Exp Region 8'!$AH$61/'MMA Rev-Exp Region 8'!$AH$9, 0)","v":{"v":0,"d":"$0.00"}},{"$f":"IFERROR('MMA Rev-Exp Region 8'!$AI$61/'MMA Rev-Exp Region 8'!$AI$9, 0)","v":{"v":0,"d":"$0.00"}},{"$f":"IFERROR('MMA Rev-Exp Region 8'!$AJ$61/'MMA Rev-Exp Region 8'!$AJ$9, 0)","v":{"v":0,"d":"$0.00"}}]
["MMA",null,null,2016,"2016-12-31","Q3","2017-09-30","Region 8","Operating Expense","Medical Benefits Expense","Pharmacy Services","8.7","Prescription Drug Settlements",{"$f":"IFERROR('MMA Rev-Exp Region 8'!$Z$62/'MMA Rev-Exp Region 8'!$Z$9, 0)","v":{"v":0,"d":"$0.00"}},{"$f":"IFERROR('MMA Rev-Exp Region 8'!$AA$62/'MMA Rev-Exp Region 8'!$AA$9, 0)","v":{"v":0,"d":"$0.00"}},{"$f":"IFERROR('MMA Rev-Exp Region 8'!$AB$62/'MMA Rev-Exp Region 8'!$AB$9, 0)","v":{"v":0,"d":"$0.00"}},{"$f":"IFERROR('MMA Rev-Exp Region 8'!$AC$62/'MMA Rev-Exp Region 8'!$AC$9, 0)","v":{"v":0,"d":"$0.00"}},{"$f":"IFERROR('MMA Rev-Exp Region 8'!$AD$62/'MMA Rev-Exp Region 8'!$AD$9, 0)","v":{"v":0,"d":"$0.00"}},{"$f":"IFERROR('MMA Rev-Exp Region 8'!$AE$62/'MMA Rev-Exp Region 8'!$AE$9, 0)","v":{"v":0,"d":"$0.00"}},{"$f":"IFERROR('MMA Rev-Exp Region 8'!$AF$62/'MMA Rev-Exp Region 8'!$AF$9, 0)","v":{"v":0,"d":"$0.00"}},{"$f":"IFERROR('MMA Rev-Exp Region 8'!$AG$62/'MMA Rev-Exp Region 8'!$AG$9, 0)","v":{"v":0,"d":"$0.00"}},{"$f":"IFERROR('MMA Rev-Exp Region 8'!$AH$62/'MMA Rev-Exp Region 8'!$AH$9, 0)","v":{"v":0,"d":"$0.00"}},{"$f":"IFERROR('MMA Rev-Exp Region 8'!$AI$62/'MMA Rev-Exp Region 8'!$AI$9, 0)","v":{"v":0,"d":"$0.00"}},{"$f":"IFERROR('MMA Rev-Exp Region 8'!$AJ$62/'MMA Rev-Exp Region 8'!$AJ$9, 0)","v":{"v":0,"d":"$0.00"}}]
["MMA",null,null,2016,"2016-12-31","Q3","2017-09-30","Region 8","Operating Expense","Medical Benefits Expense","Other MMA Services",9.1,"Home Health, Private Duty Nursing, Personal Care FFS",{"$f":"IFERROR('MMA Rev-Exp Region 8'!$Z$64/'MMA Rev-Exp Region 8'!$Z$9, 0)","v":{"v":0,"d":"$0.00"}},{"$f":"IFERROR('MMA Rev-Exp Region 8'!$AA$64/'MMA Rev-Exp Region 8'!$AA$9, 0)","v":{"v":0,"d":"$0.00"}},{"$f":"IFERROR('MMA Rev-Exp Region 8'!$AB$64/'MMA Rev-Exp Region 8'!$AB$9, 0)","v":{"v":0,"d":"$0.00"}},{"$f":"IFERROR('MMA Rev-Exp Region 8'!$AC$64/'MMA Rev-Exp Region 8'!$AC$9, 0)","v":{"v":0,"d":"$0.00"}},{"$f":"IFERROR('MMA Rev-Exp Region 8'!$AD$64/'MMA Rev-Exp Region 8'!$AD$9, 0)","v":{"v":0,"d":"$0.00"}},{"$f":"IFERROR('MMA Rev-Exp Region 8'!$AE$64/'MMA Rev-Exp Region 8'!$AE$9, 0)","v":{"v":0,"d":"$0.00"}},{"$f":"IFERROR('MMA Rev-Exp Region 8'!$AF$64/'MMA Rev-Exp Region 8'!$AF$9, 0)","v":{"v":0,"d":"$0.00"}},{"$f":"IFERROR('MMA Rev-Exp Region 8'!$AG$64/'MMA Rev-Exp Region 8'!$AG$9, 0)","v":{"v":0,"d":"$0.00"}},{"$f":"IFERROR('MMA Rev-Exp Region 8'!$AH$64/'MMA Rev-Exp Region 8'!$AH$9, 0)","v":{"v":0,"d":"$0.00"}},{"$f":"IFERROR('MMA Rev-Exp Region 8'!$AI$64/'MMA Rev-Exp Region 8'!$AI$9, 0)","v":{"v":0,"d":"$0.00"}},{"$f":"IFERROR('MMA Rev-Exp Region 8'!$AJ$64/'MMA Rev-Exp Region 8'!$AJ$9, 0)","v":{"v":0,"d":"$0.00"}}]
["MMA",null,null,2016,"2016-12-31","Q3","2017-09-30","Region 8","Operating Expense","Medical Benefits Expense","Other MMA Services","9.2","Hospice FFS",{"$f":"IFERROR('MMA Rev-Exp Region 8'!$Z$65/'MMA Rev-Exp Region 8'!$Z$9, 0)","v":{"v":0,"d":"$0.00"}},{"$f":"IFERROR('MMA Rev-Exp Region 8'!$AA$65/'MMA Rev-Exp Region 8'!$AA$9, 0)","v":{"v":0,"d":"$0.00"}},{"$f":"IFERROR('MMA Rev-Exp Region 8'!$AB$65/'MMA Rev-Exp Region 8'!$AB$9, 0)","v":{"v":0,"d":"$0.00"}},{"$f":"IFERROR('MMA Rev-Exp Region 8'!$AC$65/'MMA Rev-Exp Region 8'!$AC$9, 0)","v":{"v":0,"d":"$0.00"}},{"$f":"IFERROR('MMA Rev-Exp Region 8'!$AD$65/'MMA Rev-Exp Region 8'!$AD$9, 0)","v":{"v":0,"d":"$0.00"}},{"$f":"IFERROR('MMA Rev-Exp Region 8'!$AE$65/'MMA Rev-Exp Region 8'!$AE$9, 0)","v":{"v":0,"d":"$0.00"}},{"$f":"IFERROR('MMA Rev-Exp Region 8'!$AF$65/'MMA Rev-Exp Region 8'!$AF$9, 0)","v":{"v":0,"d":"$0.00"}},{"$f":"IFERROR('MMA Rev-Exp Region 8'!$AG$65/'MMA Rev-Exp Region 8'!$AG$9, 0)","v":{"v":0,"d":"$0.00"}},{"$f":"IFERROR('MMA Rev-Exp Region 8'!$AH$65/'MMA Rev-Exp Region 8'!$AH$9, 0)","v":{"v":0,"d":"$0.00"}},{"$f":"IFERROR('MMA Rev-Exp Region 8'!$AI$65/'MMA Rev-Exp Region 8'!$AI$9, 0)","v":{"v":0,"d":"$0.00"}},{"$f":"IFERROR('MMA Rev-Exp Region 8'!$AJ$65/'MMA Rev-Exp Region 8'!$AJ$9, 0)","v":{"v":0,"d":"$0.00"}}]
["MMA",null,null,2016,"2016-12-31","Q3","2017-09-30","Region 8","Operating Expense","Medical Benefits Expense","Other MMA Services","9.3","DME FFS",{"$f":"IFERROR('MMA Rev-Exp Region 8'!$Z$66/'MMA Rev-Exp Region 8'!$Z$9, 0)","v":{"v":0,"d":"$0.00"}},{"$f":"IFERROR('MMA Rev-Exp Region 8'!$AA$66/'MMA Rev-Exp Region 8'!$AA$9, 0)","v":{"v":0,"d":"$0.00"}},{"$f":"IFERROR('MMA Rev-Exp Region 8'!$AB$66/'MMA Rev-Exp Region 8'!$AB$9, 0)","v":{"v":0,"d":"$0.00"}},{"$f":"IFERROR('MMA Rev-Exp Region 8'!$AC$66/'MMA Rev-Exp Region 8'!$AC$9, 0)","v":{"v":0,"d":"$0.00"}},{"$f":"IFERROR('MMA Rev-Exp Region 8'!$AD$66/'MMA Rev-Exp Region 8'!$AD$9, 0)","v":{"v":0,"d":"$0.00"}},{"$f":"IFERROR('MMA Rev-Exp Region 8'!$AE$66/'MMA Rev-Exp Region 8'!$AE$9, 0)","v":{"v":0,"d":"$0.00"}},{"$f":"IFERROR('MMA Rev-Exp Region 8'!$AF$66/'MMA Rev-Exp Region 8'!$AF$9, 0)","v":{"v":0,"d":"$0.00"}},{"$f":"IFERROR('MMA Rev-Exp Region 8'!$AG$66/'MMA Rev-Exp Region 8'!$AG$9, 0)","v":{"v":0,"d":"$0.00"}},{"$f":"IFERROR('MMA Rev-Exp Region 8'!$AH$66/'MMA Rev-Exp Region 8'!$AH$9, 0)","v":{"v":0,"d":"$0.00"}},{"$f":"IFERROR('MMA Rev-Exp Region 8'!$AI$66/'MMA Rev-Exp Region 8'!$AI$9, 0)","v":{"v":0,"d":"$0.00"}},{"$f":"IFERROR('MMA Rev-Exp Region 8'!$AJ$66/'MMA Rev-Exp Region 8'!$AJ$9, 0)","v":{"v":0,"d":"$0.00"}}]
["MMA",null,null,2016,"2016-12-31","Q3","2017-09-30","Region 8","Operating Expense","Medical Benefits Expense","Other MMA Services","9.4","Other State Plan Services FFS",{"$f":"IFERROR('MMA Rev-Exp Region 8'!$Z$67/'MMA Rev-Exp Region 8'!$Z$9, 0)","v":{"v":0,"d":"$0.00"}},{"$f":"IFERROR('MMA Rev-Exp Region 8'!$AA$67/'MMA Rev-Exp Region 8'!$AA$9, 0)","v":{"v":0,"d":"$0.00"}},{"$f":"IFERROR('MMA Rev-Exp Region 8'!$AB$67/'MMA Rev-Exp Region 8'!$AB$9, 0)","v":{"v":0,"d":"$0.00"}},{"$f":"IFERROR('MMA Rev-Exp Region 8'!$AC$67/'MMA Rev-Exp Region 8'!$AC$9, 0)","v":{"v":0,"d":"$0.00"}},{"$f":"IFERROR('MMA Rev-Exp Region 8'!$AD$67/'MMA Rev-Exp Region 8'!$AD$9, 0)","v":{"v":0,"d":"$0.00"}},{"$f":"IFERROR('MMA Rev-Exp Region 8'!$AE$67/'MMA Rev-Exp Region 8'!$AE$9, 0)","v":{"v":0,"d":"$0.00"}},{"$f":"IFERROR('MMA Rev-Exp Region 8'!$AF$67/'MMA Rev-Exp Region 8'!$AF$9, 0)","v":{"v":0,"d":"$0.00"}},{"$f":"IFERROR('MMA Rev-Exp Region 8'!$AG$67/'MMA Rev-Exp Region 8'!$AG$9, 0)","v":{"v":0,"d":"$0.00"}},{"$f":"IFERROR('MMA Rev-Exp Region 8'!$AH$67/'MMA Rev-Exp Region 8'!$AH$9, 0)","v":{"v":0,"d":"$0.00"}},{"$f":"IFERROR('MMA Rev-Exp Region 8'!$AI$67/'MMA Rev-Exp Region 8'!$AI$9, 0)","v":{"v":0,"d":"$0.00"}},{"$f":"IFERROR('MMA Rev-Exp Region 8'!$AJ$67/'MMA Rev-Exp Region 8'!$AJ$9, 0)","v":{"v":0,"d":"$0.00"}}]
["MMA",null,null,2016,"2016-12-31","Q3","2017-09-30","Region 8","Operating Expense","Medical Benefits Expense","Other MMA Services","9.5","Other Services Subcapitation",{"$f":"IFERROR('MMA Rev-Exp Region 8'!$Z$68/'MMA Rev-Exp Region 8'!$Z$9, 0)","v":{"v":0,"d":"$0.00"}},{"$f":"IFERROR('MMA Rev-Exp Region 8'!$AA$68/'MMA Rev-Exp Region 8'!$AA$9, 0)","v":{"v":0,"d":"$0.00"}},{"$f":"IFERROR('MMA Rev-Exp Region 8'!$AB$68/'MMA Rev-Exp Region 8'!$AB$9, 0)","v":{"v":0,"d":"$0.00"}},{"$f":"IFERROR('MMA Rev-Exp Region 8'!$AC$68/'MMA Rev-Exp Region 8'!$AC$9, 0)","v":{"v":0,"d":"$0.00"}},{"$f":"IFERROR('MMA Rev-Exp Region 8'!$AD$68/'MMA Rev-Exp Region 8'!$AD$9, 0)","v":{"v":0,"d":"$0.00"}},{"$f":"IFERROR('MMA Rev-Exp Region 8'!$AE$68/'MMA Rev-Exp Region 8'!$AE$9, 0)","v":{"v":0,"d":"$0.00"}},{"$f":"IFERROR('MMA Rev-Exp Region 8'!$AF$68/'MMA Rev-Exp Region 8'!$AF$9, 0)","v":{"v":0,"d":"$0.00"}},{"$f":"IFERROR('MMA Rev-Exp Region 8'!$AG$68/'MMA Rev-Exp Region 8'!$AG$9, 0)","v":{"v":0,"d":"$0.00"}},{"$f":"IFERROR('MMA Rev-Exp Region 8'!$AH$68/'MMA Rev-Exp Region 8'!$AH$9, 0)","v":{"v":0,"d":"$0.00"}},{"$f":"IFERROR('MMA Rev-Exp Region 8'!$AI$68/'MMA Rev-Exp Region 8'!$AI$9, 0)","v":{"v":0,"d":"$0.00"}},{"$f":"IFERROR('MMA Rev-Exp Region 8'!$AJ$68/'MMA Rev-Exp Region 8'!$AJ$9, 0)","v":{"v":0,"d":"$0.00"}}]
["MMA",null,null,2016,"2016-12-31","Q3","2017-09-30","Region 8","Operating Expense","Medical Benefits Expense","Other MMA Services","9.6","Ending IBNP for Other Services",{"$f":"IFERROR('MMA Rev-Exp Region 8'!$Z$69/'MMA Rev-Exp Region 8'!$Z$9, 0)","v":{"v":0,"d":"$0.00"}},{"$f":"IFERROR('MMA Rev-Exp Region 8'!$AA$69/'MMA Rev-Exp Region 8'!$AA$9, 0)","v":{"v":0,"d":"$0.00"}},{"$f":"IFERROR('MMA Rev-Exp Region 8'!$AB$69/'MMA Rev-Exp Region 8'!$AB$9, 0)","v":{"v":0,"d":"$0.00"}},{"$f":"IFERROR('MMA Rev-Exp Region 8'!$AC$69/'MMA Rev-Exp Region 8'!$AC$9, 0)","v":{"v":0,"d":"$0.00"}},{"$f":"IFERROR('MMA Rev-Exp Region 8'!$AD$69/'MMA Rev-Exp Region 8'!$AD$9, 0)","v":{"v":0,"d":"$0.00"}},{"$f":"IFERROR('MMA Rev-Exp Region 8'!$AE$69/'MMA Rev-Exp Region 8'!$AE$9, 0)","v":{"v":0,"d":"$0.00"}},{"$f":"IFERROR('MMA Rev-Exp Region 8'!$AF$69/'MMA Rev-Exp Region 8'!$AF$9, 0)","v":{"v":0,"d":"$0.00"}},{"$f":"IFERROR('MMA Rev-Exp Region 8'!$AG$69/'MMA Rev-Exp Region 8'!$AG$9, 0)","v":{"v":0,"d":"$0.00"}},{"$f":"IFERROR('MMA Rev-Exp Region 8'!$AH$69/'MMA Rev-Exp Region 8'!$AH$9, 0)","v":{"v":0,"d":"$0.00"}},{"$f":"IFERROR('MMA Rev-Exp Region 8'!$AI$69/'MMA Rev-Exp Region 8'!$AI$9, 0)","v":{"v":0,"d":"$0.00"}},{"$f":"IFERROR('MMA Rev-Exp Region 8'!$AJ$69/'MMA Rev-Exp Region 8'!$AJ$9, 0)","v":{"v":0,"d":"$0.00"}}]
["MMA",null,null,2016,"2016-12-31","Q3","2017-09-30","Region 8","Operating Expense","Medical Benefits Expense","Other MMA Services","9.7","Other Services Settlements",{"$f":"IFERROR('MMA Rev-Exp Region 8'!$Z$70/'MMA Rev-Exp Region 8'!$Z$9, 0)","v":{"v":0,"d":"$0.00"}},{"$f":"IFERROR('MMA Rev-Exp Region 8'!$AA$70/'MMA Rev-Exp Region 8'!$AA$9, 0)","v":{"v":0,"d":"$0.00"}},{"$f":"IFERROR('MMA Rev-Exp Region 8'!$AB$70/'MMA Rev-Exp Region 8'!$AB$9, 0)","v":{"v":0,"d":"$0.00"}},{"$f":"IFERROR('MMA Rev-Exp Region 8'!$AC$70/'MMA Rev-Exp Region 8'!$AC$9, 0)","v":{"v":0,"d":"$0.00"}},{"$f":"IFERROR('MMA Rev-Exp Region 8'!$AD$70/'MMA Rev-Exp Region 8'!$AD$9, 0)","v":{"v":0,"d":"$0.00"}},{"$f":"IFERROR('MMA Rev-Exp Region 8'!$AE$70/'MMA Rev-Exp Region 8'!$AE$9, 0)","v":{"v":0,"d":"$0.00"}},{"$f":"IFERROR('MMA Rev-Exp Region 8'!$AF$70/'MMA Rev-Exp Region 8'!$AF$9, 0)","v":{"v":0,"d":"$0.00"}},{"$f":"IFERROR('MMA Rev-Exp Region 8'!$AG$70/'MMA Rev-Exp Region 8'!$AG$9, 0)","v":{"v":0,"d":"$0.00"}},{"$f":"IFERROR('MMA Rev-Exp Region 8'!$AH$70/'MMA Rev-Exp Region 8'!$AH$9, 0)","v":{"v":0,"d":"$0.00"}},{"$f":"IFERROR('MMA Rev-Exp Region 8'!$AI$70/'MMA Rev-Exp Region 8'!$AI$9, 0)","v":{"v":0,"d":"$0.00"}},{"$f":"IFERROR('MMA Rev-Exp Region 8'!$AJ$70/'MMA Rev-Exp Region 8'!$AJ$9, 0)","v":{"v":0,"d":"$0.00"}}]
["MMA",null,null,2016,"2016-12-31","Q3","2017-09-30","Region 8","Operating Expense","Medical Benefits Expense","Expanded Benefits","10.1","Expanded Benefits FFS",{"$f":"IFERROR('MMA Rev-Exp Region 8'!$Z$72/'MMA Rev-Exp Region 8'!$Z$9, 0)","v":{"v":0,"d":"$0.00"}},{"$f":"IFERROR('MMA Rev-Exp Region 8'!$AA$72/'MMA Rev-Exp Region 8'!$AA$9, 0)","v":{"v":0,"d":"$0.00"}},{"$f":"IFERROR('MMA Rev-Exp Region 8'!$AB$72/'MMA Rev-Exp Region 8'!$AB$9, 0)","v":{"v":0,"d":"$0.00"}},{"$f":"IFERROR('MMA Rev-Exp Region 8'!$AC$72/'MMA Rev-Exp Region 8'!$AC$9, 0)","v":{"v":0,"d":"$0.00"}},{"$f":"IFERROR('MMA Rev-Exp Region 8'!$AD$72/'MMA Rev-Exp Region 8'!$AD$9, 0)","v":{"v":0,"d":"$0.00"}},{"$f":"IFERROR('MMA Rev-Exp Region 8'!$AE$72/'MMA Rev-Exp Region 8'!$AE$9, 0)","v":{"v":0,"d":"$0.00"}},{"$f":"IFERROR('MMA Rev-Exp Region 8'!$AF$72/'MMA Rev-Exp Region 8'!$AF$9, 0)","v":{"v":0,"d":"$0.00"}},{"$f":"IFERROR('MMA Rev-Exp Region 8'!$AG$72/'MMA Rev-Exp Region 8'!$AG$9, 0)","v":{"v":0,"d":"$0.00"}},{"$f":"IFERROR('MMA Rev-Exp Region 8'!$AH$72/'MMA Rev-Exp Region 8'!$AH$9, 0)","v":{"v":0,"d":"$0.00"}},{"$f":"IFERROR('MMA Rev-Exp Region 8'!$AI$72/'MMA Rev-Exp Region 8'!$AI$9, 0)","v":{"v":0,"d":"$0.00"}},{"$f":"IFERROR('MMA Rev-Exp Region 8'!$AJ$72/'MMA Rev-Exp Region 8'!$AJ$9, 0)","v":{"v":0,"d":"$0.00"}}]
["MMA",null,null,2016,"2016-12-31","Q3","2017-09-30","Region 8","Operating Expense","Medical Benefits Expense","Expanded Benefits","10.2","Expanded benefits Subcapitation",{"$f":"IFERROR('MMA Rev-Exp Region 8'!$Z$73/'MMA Rev-Exp Region 8'!$Z$9, 0)","v":{"v":0,"d":"$0.00"}},{"$f":"IFERROR('MMA Rev-Exp Region 8'!$AA$73/'MMA Rev-Exp Region 8'!$AA$9, 0)","v":{"v":0,"d":"$0.00"}},{"$f":"IFERROR('MMA Rev-Exp Region 8'!$AB$73/'MMA Rev-Exp Region 8'!$AB$9, 0)","v":{"v":0,"d":"$0.00"}},{"$f":"IFERROR('MMA Rev-Exp Region 8'!$AC$73/'MMA Rev-Exp Region 8'!$AC$9, 0)","v":{"v":0,"d":"$0.00"}},{"$f":"IFERROR('MMA Rev-Exp Region 8'!$AD$73/'MMA Rev-Exp Region 8'!$AD$9, 0)","v":{"v":0,"d":"$0.00"}},{"$f":"IFERROR('MMA Rev-Exp Region 8'!$AE$73/'MMA Rev-Exp Region 8'!$AE$9, 0)","v":{"v":0,"d":"$0.00"}},{"$f":"IFERROR('MMA Rev-Exp Region 8'!$AF$73/'MMA Rev-Exp Region 8'!$AF$9, 0)","v":{"v":0,"d":"$0.00"}},{"$f":"IFERROR('MMA Rev-Exp Region 8'!$AG$73/'MMA Rev-Exp Region 8'!$AG$9, 0)","v":{"v":0,"d":"$0.00"}},{"$f":"IFERROR('MMA Rev-Exp Region 8'!$AH$73/'MMA Rev-Exp Region 8'!$AH$9, 0)","v":{"v":0,"d":"$0.00"}},{"$f":"IFERROR('MMA Rev-Exp Region 8'!$AI$73/'MMA Rev-Exp Region 8'!$AI$9, 0)","v":{"v":0,"d":"$0.00"}},{"$f":"IFERROR('MMA Rev-Exp Region 8'!$AJ$73/'MMA Rev-Exp Region 8'!$AJ$9, 0)","v":{"v":0,"d":"$0.00"}}]
["MMA",null,null,2016,"2016-12-31","Q3","2017-09-30","Region 8","Operating Expense","Medical Benefits Expense","Expanded Benefits","10.3","Ending IBNP for Expanded Benefits",{"$f":"IFERROR('MMA Rev-Exp Region 8'!$Z$74/'MMA Rev-Exp Region 8'!$Z$9, 0)","v":{"v":0,"d":"$0.00"}},{"$f":"IFERROR('MMA Rev-Exp Region 8'!$AA$74/'MMA Rev-Exp Region 8'!$AA$9, 0)","v":{"v":0,"d":"$0.00"}},{"$f":"IFERROR('MMA Rev-Exp Region 8'!$AB$74/'MMA Rev-Exp Region 8'!$AB$9, 0)","v":{"v":0,"d":"$0.00"}},{"$f":"IFERROR('MMA Rev-Exp Region 8'!$AC$74/'MMA Rev-Exp Region 8'!$AC$9, 0)","v":{"v":0,"d":"$0.00"}},{"$f":"IFERROR('MMA Rev-Exp Region 8'!$AD$74/'MMA Rev-Exp Region 8'!$AD$9, 0)","v":{"v":0,"d":"$0.00"}},{"$f":"IFERROR('MMA Rev-Exp Region 8'!$AE$74/'MMA Rev-Exp Region 8'!$AE$9, 0)","v":{"v":0,"d":"$0.00"}},{"$f":"IFERROR('MMA Rev-Exp Region 8'!$AF$74/'MMA Rev-Exp Region 8'!$AF$9, 0)","v":{"v":0,"d":"$0.00"}},{"$f":"IFERROR('MMA Rev-Exp Region 8'!$AG$74/'MMA Rev-Exp Region 8'!$AG$9, 0)","v":{"v":0,"d":"$0.00"}},{"$f":"IFERROR('MMA Rev-Exp Region 8'!$AH$74/'MMA Rev-Exp Region 8'!$AH$9, 0)","v":{"v":0,"d":"$0.00"}},{"$f":"IFERROR('MMA Rev-Exp Region 8'!$AI$74/'MMA Rev-Exp Region 8'!$AI$9, 0)","v":{"v":0,"d":"$0.00"}},{"$f":"IFERROR('MMA Rev-Exp Region 8'!$AJ$74/'MMA Rev-Exp Region 8'!$AJ$9, 0)","v":{"v":0,"d":"$0.00"}}]
["MMA",null,null,2016,"2016-12-31","Q3","2017-09-30","Region 8","Operating Expense","Medical Benefits Expense","Expanded Benefits","10.4","Expanded Benefits Settlements",{"$f":"IFERROR('MMA Rev-Exp Region 8'!$Z$75/'MMA Rev-Exp Region 8'!$Z$9, 0)","v":{"v":0,"d":"$0.00"}},{"$f":"IFERROR('MMA Rev-Exp Region 8'!$AA$75/'MMA Rev-Exp Region 8'!$AA$9, 0)","v":{"v":0,"d":"$0.00"}},{"$f":"IFERROR('MMA Rev-Exp Region 8'!$AB$75/'MMA Rev-Exp Region 8'!$AB$9, 0)","v":{"v":0,"d":"$0.00"}},{"$f":"IFERROR('MMA Rev-Exp Region 8'!$AC$75/'MMA Rev-Exp Region 8'!$AC$9, 0)","v":{"v":0,"d":"$0.00"}},{"$f":"IFERROR('MMA Rev-Exp Region 8'!$AD$75/'MMA Rev-Exp Region 8'!$AD$9, 0)","v":{"v":0,"d":"$0.00"}},{"$f":"IFERROR('MMA Rev-Exp Region 8'!$AE$75/'MMA Rev-Exp Region 8'!$AE$9, 0)","v":{"v":0,"d":"$0.00"}},{"$f":"IFERROR('MMA Rev-Exp Region 8'!$AF$75/'MMA Rev-Exp Region 8'!$AF$9, 0)","v":{"v":0,"d":"$0.00"}},{"$f":"IFERROR('MMA Rev-Exp Region 8'!$AG$75/'MMA Rev-Exp Region 8'!$AG$9, 0)","v":{"v":0,"d":"$0.00"}},{"$f":"IFERROR('MMA Rev-Exp Region 8'!$AH$75/'MMA Rev-Exp Region 8'!$AH$9, 0)","v":{"v":0,"d":"$0.00"}},{"$f":"IFERROR('MMA Rev-Exp Region 8'!$AI$75/'MMA Rev-Exp Region 8'!$AI$9, 0)","v":{"v":0,"d":"$0.00"}},{"$f":"IFERROR('MMA Rev-Exp Region 8'!$AJ$75/'MMA Rev-Exp Region 8'!$AJ$9, 0)","v":{"v":0,"d":"$0.00"}}]
["MMA",null,null,2016,"2016-12-31","Q3","2017-09-30","Region 8","Operating Expense","Medical Benefits Expense","Other Medical","11.5","TPL & Fraud/Abuse Recoveries",{"$f":"IFERROR('MMA Rev-Exp Region 8'!$Z$81/'MMA Rev-Exp Region 8'!$Z$9, 0)","v":{"v":0,"d":"$0.00"}},{"$f":"IFERROR('MMA Rev-Exp Region 8'!$AA$81/'MMA Rev-Exp Region 8'!$AA$9, 0)","v":{"v":0,"d":"$0.00"}},{"$f":"IFERROR('MMA Rev-Exp Region 8'!$AB$81/'MMA Rev-Exp Region 8'!$AB$9, 0)","v":{"v":0,"d":"$0.00"}},{"$f":"IFERROR('MMA Rev-Exp Region 8'!$AC$81/'MMA Rev-Exp Region 8'!$AC$9, 0)","v":{"v":0,"d":"$0.00"}},{"$f":"IFERROR('MMA Rev-Exp Region 8'!$AD$81/'MMA Rev-Exp Region 8'!$AD$9, 0)","v":{"v":0,"d":"$0.00"}},{"$f":"IFERROR('MMA Rev-Exp Region 8'!$AE$81/'MMA Rev-Exp Region 8'!$AE$9, 0)","v":{"v":0,"d":"$0.00"}},{"$f":"IFERROR('MMA Rev-Exp Region 8'!$AF$81/'MMA Rev-Exp Region 8'!$AF$9, 0)","v":{"v":0,"d":"$0.00"}},{"$f":"IFERROR('MMA Rev-Exp Region 8'!$AG$81/'MMA Rev-Exp Region 8'!$AG$9, 0)","v":{"v":0,"d":"$0.00"}},{"$f":"IFERROR('MMA Rev-Exp Region 8'!$AH$81/'MMA Rev-Exp Region 8'!$AH$9, 0)","v":{"v":0,"d":"$0.00"}},{"$f":"IFERROR('MMA Rev-Exp Region 8'!$AI$81/'MMA Rev-Exp Region 8'!$AI$9, 0)","v":{"v":0,"d":"$0.00"}},{"$f":"IFERROR('MMA Rev-Exp Region 8'!$AJ$81/'MMA Rev-Exp Region 8'!$AJ$9, 0)","v":{"v":0,"d":"$0.00"}}]
["MMA",null,null,2016,"2016-12-31","Q3","2017-09-30","Region 8","Operating Expense","Medical Benefits Expense","Other Medical","11.6.1","Premium Deficiency Reserve",{"$f":"IFERROR('MMA Rev-Exp Region 8'!$Z$82/'MMA Rev-Exp Region 8'!$Z$9, 0)","v":{"v":0,"d":"$0.00"}},{"$f":"IFERROR('MMA Rev-Exp Region 8'!$AA$82/'MMA Rev-Exp Region 8'!$AA$9, 0)","v":{"v":0,"d":"$0.00"}},{"$f":"IFERROR('MMA Rev-Exp Region 8'!$AB$82/'MMA Rev-Exp Region 8'!$AB$9, 0)","v":{"v":0,"d":"$0.00"}},{"$f":"IFERROR('MMA Rev-Exp Region 8'!$AC$82/'MMA Rev-Exp Region 8'!$AC$9, 0)","v":{"v":0,"d":"$0.00"}},{"$f":"IFERROR('MMA Rev-Exp Region 8'!$AD$82/'MMA Rev-Exp Region 8'!$AD$9, 0)","v":{"v":0,"d":"$0.00"}},{"$f":"IFERROR('MMA Rev-Exp Region 8'!$AE$82/'MMA Rev-Exp Region 8'!$AE$9, 0)","v":{"v":0,"d":"$0.00"}},{"$f":"IFERROR('MMA Rev-Exp Region 8'!$AF$82/'MMA Rev-Exp Region 8'!$AF$9, 0)","v":{"v":0,"d":"$0.00"}},{"$f":"IFERROR('MMA Rev-Exp Region 8'!$AG$82/'MMA Rev-Exp Region 8'!$AG$9, 0)","v":{"v":0,"d":"$0.00"}},{"$f":"IFERROR('MMA Rev-Exp Region 8'!$AH$82/'MMA Rev-Exp Region 8'!$AH$9, 0)","v":{"v":0,"d":"$0.00"}},{"$f":"IFERROR('MMA Rev-Exp Region 8'!$AI$82/'MMA Rev-Exp Region 8'!$AI$9, 0)","v":{"v":0,"d":"$0.00"}},{"$f":"IFERROR('MMA Rev-Exp Region 8'!$AJ$82/'MMA Rev-Exp Region 8'!$AJ$9, 0)","v":{"v":0,"d":"$0.00"}}]
["MMA",null,null,2016,"2016-12-31","Q3","2017-09-30","Region 8","Operating Expense","Medical Benefits Expense","Other Medical","11.8","Reinsurance Premiums",{"$f":"IFERROR('MMA Rev-Exp Region 8'!$Z$84/'MMA Rev-Exp Region 8'!$Z$9, 0)","v":{"v":0,"d":"$0.00"}},{"$f":"IFERROR('MMA Rev-Exp Region 8'!$AA$84/'MMA Rev-Exp Region 8'!$AA$9, 0)","v":{"v":0,"d":"$0.00"}},{"$f":"IFERROR('MMA Rev-Exp Region 8'!$AB$84/'MMA Rev-Exp Region 8'!$AB$9, 0)","v":{"v":0,"d":"$0.00"}},{"$f":"IFERROR('MMA Rev-Exp Region 8'!$AC$84/'MMA Rev-Exp Region 8'!$AC$9, 0)","v":{"v":0,"d":"$0.00"}},{"$f":"IFERROR('MMA Rev-Exp Region 8'!$AD$84/'MMA Rev-Exp Region 8'!$AD$9, 0)","v":{"v":0,"d":"$0.00"}},{"$f":"IFERROR('MMA Rev-Exp Region 8'!$AE$84/'MMA Rev-Exp Region 8'!$AE$9, 0)","v":{"v":0,"d":"$0.00"}},{"$f":"IFERROR('MMA Rev-Exp Region 8'!$AF$84/'MMA Rev-Exp Region 8'!$AF$9, 0)","v":{"v":0,"d":"$0.00"}},{"$f":"IFERROR('MMA Rev-Exp Region 8'!$AG$84/'MMA Rev-Exp Region 8'!$AG$9, 0)","v":{"v":0,"d":"$0.00"}},{"$f":"IFERROR('MMA Rev-Exp Region 8'!$AH$84/'MMA Rev-Exp Region 8'!$AH$9, 0)","v":{"v":0,"d":"$0.00"}},{"$f":"IFERROR('MMA Rev-Exp Region 8'!$AI$84/'MMA Rev-Exp Region 8'!$AI$9, 0)","v":{"v":0,"d":"$0.00"}},{"$f":"IFERROR('MMA Rev-Exp Region 8'!$AJ$84/'MMA Rev-Exp Region 8'!$AJ$9, 0)","v":{"v":0,"d":"$0.00"}}]
["MMA",null,null,2016,"2016-12-31","Q3","2017-09-30","Region 8","Operating Expense","Medical Benefits Expense","Other Medical","11.9","Reinsurance Recoveries",{"$f":"IFERROR('MMA Rev-Exp Region 8'!$Z$85/'MMA Rev-Exp Region 8'!$Z$9, 0)","v":{"v":0,"d":"$0.00"}},{"$f":"IFERROR('MMA Rev-Exp Region 8'!$AA$85/'MMA Rev-Exp Region 8'!$AA$9, 0)","v":{"v":0,"d":"$0.00"}},{"$f":"IFERROR('MMA Rev-Exp Region 8'!$AB$85/'MMA Rev-Exp Region 8'!$AB$9, 0)","v":{"v":0,"d":"$0.00"}},{"$f":"IFERROR('MMA Rev-Exp Region 8'!$AC$85/'MMA Rev-Exp Region 8'!$AC$9, 0)","v":{"v":0,"d":"$0.00"}},{"$f":"IFERROR('MMA Rev-Exp Region 8'!$AD$85/'MMA Rev-Exp Region 8'!$AD$9, 0)","v":{"v":0,"d":"$0.00"}},{"$f":"IFERROR('MMA Rev-Exp Region 8'!$AE$85/'MMA Rev-Exp Region 8'!$AE$9, 0)","v":{"v":0,"d":"$0.00"}},{"$f":"IFERROR('MMA Rev-Exp Region 8'!$AF$85/'MMA Rev-Exp Region 8'!$AF$9, 0)","v":{"v":0,"d":"$0.00"}},{"$f":"IFERROR('MMA Rev-Exp Region 8'!$AG$85/'MMA Rev-Exp Region 8'!$AG$9, 0)","v":{"v":0,"d":"$0.00"}},{"$f":"IFERROR('MMA Rev-Exp Region 8'!$AH$85/'MMA Rev-Exp Region 8'!$AH$9, 0)","v":{"v":0,"d":"$0.00"}},{"$f":"IFERROR('MMA Rev-Exp Region 8'!$AI$85/'MMA Rev-Exp Region 8'!$AI$9, 0)","v":{"v":0,"d":"$0.00"}},{"$f":"IFERROR('MMA Rev-Exp Region 8'!$AJ$85/'MMA Rev-Exp Region 8'!$AJ$9, 0)","v":{"v":0,"d":"$0.00"}}]
["MMA",null,null,2016,"2016-12-31","Q3","2017-09-30","Region 8","Operating Expense","Administrative Expense","Administrative","12.1","Salaries & Benefits",{"$f":"IFERROR('MMA Rev-Exp Region 8'!$Z$90/'MMA Rev-Exp Region 8'!$Z$9, 0)","v":{"v":0,"d":"$0.00"}},{"$f":"IFERROR('MMA Rev-Exp Region 8'!$AA$90/'MMA Rev-Exp Region 8'!$Z$9, 0)","v":{"v":0,"d":"$0.00"}},{"$f":"IFERROR('MMA Rev-Exp Region 8'!$AB$90/'MMA Rev-Exp Region 8'!$Z$9, 0)","v":{"v":0,"d":"$0.00"}}]
["MMA",null,null,2016,"2016-12-31","Q3","2017-09-30","Region 8","Operating Expense","Administrative Expense","Administrative","12.2","Administrative Services",{"$f":"IFERROR('MMA Rev-Exp Region 8'!$Z$91/'MMA Rev-Exp Region 8'!$Z$9, 0)","v":{"v":0,"d":"$0.00"}},{"$f":"IFERROR('MMA Rev-Exp Region 8'!$AA$91/'MMA Rev-Exp Region 8'!$Z$9, 0)","v":{"v":0,"d":"$0.00"}},{"$f":"IFERROR('MMA Rev-Exp Region 8'!$AB$91/'MMA Rev-Exp Region 8'!$Z$9, 0)","v":{"v":0,"d":"$0.00"}}]
["MMA",null,null,2016,"2016-12-31","Q3","2017-09-30","Region 8","Operating Expense","Administrative Expense","Administrative","12.3","Information Systems",{"$f":"IFERROR('MMA Rev-Exp Region 8'!$Z$92/'MMA Rev-Exp Region 8'!$Z$9, 0)","v":{"v":0,"d":"$0.00"}},{"$f":"IFERROR('MMA Rev-Exp Region 8'!$AA$92/'MMA Rev-Exp Region 8'!$Z$9, 0)","v":{"v":0,"d":"$0.00"}},{"$f":"IFERROR('MMA Rev-Exp Region 8'!$AB$92/'MMA Rev-Exp Region 8'!$Z$9, 0)","v":{"v":0,"d":"$0.00"}}]
["MMA",null,null,2016,"2016-12-31","Q3","2017-09-30","Region 8","Operating Expense","Administrative Expense","Administrative","12.4","Marketing Expenses",{"$f":"IFERROR('MMA Rev-Exp Region 8'!$Z$93/'MMA Rev-Exp Region 8'!$Z$9, 0)","v":{"v":0,"d":"$0.00"}},{"$f":"IFERROR('MMA Rev-Exp Region 8'!$AA$93/'MMA Rev-Exp Region 8'!$Z$9, 0)","v":{"v":0,"d":"$0.00"}},{"$f":"IFERROR('MMA Rev-Exp Region 8'!$AB$93/'MMA Rev-Exp Region 8'!$Z$9, 0)","v":{"v":0,"d":"$0.00"}}]
["MMA",null,null,2016,"2016-12-31","Q3","2017-09-30","Region 8","Operating Expense","Administrative Expense","Administrative","12.5","General  Administration",{"$f":"IFERROR('MMA Rev-Exp Region 8'!$Z$94/'MMA Rev-Exp Region 8'!$Z$9, 0)","v":{"v":0,"d":"$0.00"}},{"$f":"IFERROR('MMA Rev-Exp Region 8'!$AA$94/'MMA Rev-Exp Region 8'!$Z$9, 0)","v":{"v":0,"d":"$0.00"}},{"$f":"IFERROR('MMA Rev-Exp Region 8'!$AB$94/'MMA Rev-Exp Region 8'!$Z$9, 0)","v":{"v":0,"d":"$0.00"}}]
["MMA",null,null,2016,"2016-12-31","Q3","2017-09-30","Region 8","Operating Expense","Administrative Expense","Administrative","12.6","Compliance/Regulatory",{"$f":"IFERROR('MMA Rev-Exp Region 8'!$Z$95/'MMA Rev-Exp Region 8'!$Z$9, 0)","v":{"v":0,"d":"$0.00"}},{"$f":"IFERROR('MMA Rev-Exp Region 8'!$AA$95/'MMA Rev-Exp Region 8'!$Z$9, 0)","v":{"v":0,"d":"$0.00"}},{"$f":"IFERROR('MMA Rev-Exp Region 8'!$AB$95/'MMA Rev-Exp Region 8'!$Z$9, 0)","v":{"v":0,"d":"$0.00"}}]
["MMA",null,null,2016,"2016-12-31","Q3","2017-09-30","Region 8","Operating Expense","Taxes & Fees","Taxes & Fees","13.1","State Premium tax",{"$f":"IFERROR('MMA Rev-Exp Region 8'!$Z$97/'MMA Rev-Exp Region 8'!$Z$9, 0)","v":{"v":0,"d":"$0.00"}}]
["MMA",null,null,2016,"2016-12-31","Q3","2017-09-30","Region 8","Operating Expense","Taxes & Fees","Taxes & Fees","13.2","Department of Insurance Assessments",{"$f":"IFERROR('MMA Rev-Exp Region 8'!$Z$98/'MMA Rev-Exp Region 8'!$Z$9, 0)","v":{"v":0,"d":"$0.00"}}]
["MMA",null,null,2016,"2016-12-31","Q3","2017-09-30","Region 8","Operating Expense","Taxes & Fees","Taxes & Fees","13.3","Section 9010 Health Insurance Providers Fee",{"$f":"IFERROR('MMA Rev-Exp Region 8'!$Z$99/'MMA Rev-Exp Region 8'!$Z$9, 0)","v":{"v":0,"d":"$0.00"}}]
["MMA",null,null,2016,"2016-12-31","Q3","2017-09-30","Region 8","Non-Operating Expense","Income Tax Expense","Income Tax Expense","16.0","Income Tax Expense",{"$f":"IFERROR('MMA Rev-Exp Region 8'!$Z$106/'MMA Rev-Exp Region 8'!$Z$9, 0)","v":{"v":0,"d":"$0.00"}}]
["MMA",null,null,2016,"2016-12-31","Q4","2017-12-31","Region 8","Operating Revenue","Capitation","Capitation",1.1,"Capitation",{"$f":"IFERROR('MMA Rev-Exp Region 8'!$AK$11/'MMA Rev-Exp Region 8'!$AK$9, 0)","v":{"v":0,"d":"$0.00"}},{"$f":"IFERROR('MMA Rev-Exp Region 8'!$AL$11/'MMA Rev-Exp Region 8'!$AL$9, 0)","v":{"v":0,"d":"$0.00"}},{"$f":"IFERROR('MMA Rev-Exp Region 8'!$AM$11/'MMA Rev-Exp Region 8'!$AM$9, 0)","v":{"v":0,"d":"$0.00"}},{"$f":"IFERROR('MMA Rev-Exp Region 8'!$AN$11/'MMA Rev-Exp Region 8'!$AN$9, 0)","v":{"v":0,"d":"$0.00"}},{"$f":"IFERROR('MMA Rev-Exp Region 8'!$AO$11/'MMA Rev-Exp Region 8'!$AO$9, 0)","v":{"v":0,"d":"$0.00"}},{"$f":"IFERROR('MMA Rev-Exp Region 8'!$AP$11/'MMA Rev-Exp Region 8'!$AP$9, 0)","v":{"v":0,"d":"$0.00"}},{"$f":"IFERROR('MMA Rev-Exp Region 8'!$AQ$11/'MMA Rev-Exp Region 8'!$AQ$9, 0)","v":{"v":0,"d":"$0.00"}},{"$f":"IFERROR('MMA Rev-Exp Region 8'!$AR$11/'MMA Rev-Exp Region 8'!$AR$9, 0)","v":{"v":0,"d":"$0.00"}},{"$f":"IFERROR('MMA Rev-Exp Region 8'!$AS$11/'MMA Rev-Exp Region 8'!$AS$9, 0)","v":{"v":0,"d":"$0.00"}},{"$f":"IFERROR('MMA Rev-Exp Region 8'!$AT$11/'MMA Rev-Exp Region 8'!$AT$9, 0)","v":{"v":0,"d":"$0.00"}},{"$f":"IFERROR('MMA Rev-Exp Region 8'!$AU$11/'MMA Rev-Exp Region 8'!$AU$9, 0)","v":{"v":0,"d":"$0.00"}}]
["MMA",null,null,2016,"2016-12-31","Q4","2017-12-31","Region 8","Operating Revenue","Kick Payments","Kick Payments - Transplant",1.2,"Transplant Kick Payments",{"$f":"IFERROR('MMA Rev-Exp Region 8'!$AK$12/'MMA Rev-Exp Region 8'!$AK$9, 0)","v":{"v":0,"d":"$0.00"}},{"$f":"IFERROR('MMA Rev-Exp Region 8'!$AL$12/'MMA Rev-Exp Region 8'!$AL$9, 0)","v":{"v":0,"d":"$0.00"}},{"$f":"IFERROR('MMA Rev-Exp Region 8'!$AM$12/'MMA Rev-Exp Region 8'!$AM$9, 0)","v":{"v":0,"d":"$0.00"}},{"$f":"IFERROR('MMA Rev-Exp Region 8'!$AN$12/'MMA Rev-Exp Region 8'!$AN$9, 0)","v":{"v":0,"d":"$0.00"}},{"$f":"IFERROR('MMA Rev-Exp Region 8'!$AO$12/'MMA Rev-Exp Region 8'!$AO$9, 0)","v":{"v":0,"d":"$0.00"}},{"$f":"IFERROR('MMA Rev-Exp Region 8'!$AP$12/'MMA Rev-Exp Region 8'!$AP$9, 0)","v":{"v":0,"d":"$0.00"}},{"$f":"IFERROR('MMA Rev-Exp Region 8'!$AQ$12/'MMA Rev-Exp Region 8'!$AQ$9, 0)","v":{"v":0,"d":"$0.00"}},{"$f":"IFERROR('MMA Rev-Exp Region 8'!$AR$12/'MMA Rev-Exp Region 8'!$AR$9, 0)","v":{"v":0,"d":"$0.00"}},{"$f":"IFERROR('MMA Rev-Exp Region 8'!$AS$12/'MMA Rev-Exp Region 8'!$AS$9, 0)","v":{"v":0,"d":"$0.00"}},{"$f":"IFERROR('MMA Rev-Exp Region 8'!$AT$12/'MMA Rev-Exp Region 8'!$AT$9, 0)","v":{"v":0,"d":"$0.00"}},{"$f":"IFERROR('MMA Rev-Exp Region 8'!$AU$12/'MMA Rev-Exp Region 8'!$AU$9, 0)","v":{"v":0,"d":"$0.00"}}]
["MMA",null,null,2016,"2016-12-31","Q4","2017-12-31","Region 8","Operating Revenue","Kick Payments","Kick Payments - Hep C","1.3","Hepatitis C Kick Payments",{"$f":"IFERROR('MMA Rev-Exp Region 8'!$AK$13/'MMA Rev-Exp Region 8'!$AK$9, 0)","v":{"v":0,"d":"$0.00"}},{"$f":"IFERROR('MMA Rev-Exp Region 8'!$AL$13/'MMA Rev-Exp Region 8'!$AL$9, 0)","v":{"v":0,"d":"$0.00"}},{"$f":"IFERROR('MMA Rev-Exp Region 8'!$AM$13/'MMA Rev-Exp Region 8'!$AM$9, 0)","v":{"v":0,"d":"$0.00"}},{"$f":"IFERROR('MMA Rev-Exp Region 8'!$AN$13/'MMA Rev-Exp Region 8'!$AN$9, 0)","v":{"v":0,"d":"$0.00"}},{"$f":"IFERROR('MMA Rev-Exp Region 8'!$AO$13/'MMA Rev-Exp Region 8'!$AO$9, 0)","v":{"v":0,"d":"$0.00"}},{"$f":"IFERROR('MMA Rev-Exp Region 8'!$AP$13/'MMA Rev-Exp Region 8'!$AP$9, 0)","v":{"v":0,"d":"$0.00"}},{"$f":"IFERROR('MMA Rev-Exp Region 8'!$AQ$13/'MMA Rev-Exp Region 8'!$AQ$9, 0)","v":{"v":0,"d":"$0.00"}},{"$f":"IFERROR('MMA Rev-Exp Region 8'!$AR$13/'MMA Rev-Exp Region 8'!$AR$9, 0)","v":{"v":0,"d":"$0.00"}},{"$f":"IFERROR('MMA Rev-Exp Region 8'!$AS$13/'MMA Rev-Exp Region 8'!$AS$9, 0)","v":{"v":0,"d":"$0.00"}},{"$f":"IFERROR('MMA Rev-Exp Region 8'!$AT$13/'MMA Rev-Exp Region 8'!$AT$9, 0)","v":{"v":0,"d":"$0.00"}},{"$f":"IFERROR('MMA Rev-Exp Region 8'!$AU$13/'MMA Rev-Exp Region 8'!$AU$9, 0)","v":{"v":0,"d":"$0.00"}}]
["MMA",null,null,2016,"2016-12-31","Q4","2017-12-31","Region 8","Operating Revenue","Kick Payments","Kick Payments - Maternity","1.4.1","Maternity Kick Payments",{"$f":"IFERROR('MMA Rev-Exp Region 8'!$AK$14/'MMA Rev-Exp Region 8'!$AK$9, 0)","v":{"v":0,"d":"$0.00"}},{"$f":"IFERROR('MMA Rev-Exp Region 8'!$AL$14/'MMA Rev-Exp Region 8'!$AL$9, 0)","v":{"v":0,"d":"$0.00"}},{"$f":"IFERROR('MMA Rev-Exp Region 8'!$AM$14/'MMA Rev-Exp Region 8'!$AM$9, 0)","v":{"v":0,"d":"$0.00"}},{"$f":"IFERROR('MMA Rev-Exp Region 8'!$AN$14/'MMA Rev-Exp Region 8'!$AN$9, 0)","v":{"v":0,"d":"$0.00"}},{"$f":"IFERROR('MMA Rev-Exp Region 8'!$AO$14/'MMA Rev-Exp Region 8'!$AO$9, 0)","v":{"v":0,"d":"$0.00"}},{"$f":"IFERROR('MMA Rev-Exp Region 8'!$AP$14/'MMA Rev-Exp Region 8'!$AP$9, 0)","v":{"v":0,"d":"$0.00"}},{"$f":"IFERROR('MMA Rev-Exp Region 8'!$AQ$14/'MMA Rev-Exp Region 8'!$AQ$9, 0)","v":{"v":0,"d":"$0.00"}},{"$f":"IFERROR('MMA Rev-Exp Region 8'!$AR$14/'MMA Rev-Exp Region 8'!$AR$9, 0)","v":{"v":0,"d":"$0.00"}},{"$f":"IFERROR('MMA Rev-Exp Region 8'!$AS$14/'MMA Rev-Exp Region 8'!$AS$9, 0)","v":{"v":0,"d":"$0.00"}},{"$f":"IFERROR('MMA Rev-Exp Region 8'!$AT$14/'MMA Rev-Exp Region 8'!$AT$9, 0)","v":{"v":0,"d":"$0.00"}},{"$f":"IFERROR('MMA Rev-Exp Region 8'!$AU$14/'MMA Rev-Exp Region 8'!$AU$9, 0)","v":{"v":0,"d":"$0.00"}}]
["MMA",null,null,2016,"2016-12-31","Q4","2017-12-31","Region 8","Operating Revenue","Other Revenue","Other Revenue - 9010","1.5","ACA § 9010 related payments",{"$f":"IFERROR('MMA Rev-Exp Region 8'!$AK$15/'MMA Rev-Exp Region 8'!$AK$9, 0)","v":{"v":0,"d":"$0.00"}},{"$f":"IFERROR('MMA Rev-Exp Region 8'!$AL$15/'MMA Rev-Exp Region 8'!$AL$9, 0)","v":{"v":0,"d":"$0.00"}},{"$f":"IFERROR('MMA Rev-Exp Region 8'!$AM$15/'MMA Rev-Exp Region 8'!$AM$9, 0)","v":{"v":0,"d":"$0.00"}},{"$f":"IFERROR('MMA Rev-Exp Region 8'!$AN$15/'MMA Rev-Exp Region 8'!$AN$9, 0)","v":{"v":0,"d":"$0.00"}},{"$f":"IFERROR('MMA Rev-Exp Region 8'!$AO$15/'MMA Rev-Exp Region 8'!$AO$9, 0)","v":{"v":0,"d":"$0.00"}},{"$f":"IFERROR('MMA Rev-Exp Region 8'!$AP$15/'MMA Rev-Exp Region 8'!$AP$9, 0)","v":{"v":0,"d":"$0.00"}},{"$f":"IFERROR('MMA Rev-Exp Region 8'!$AQ$15/'MMA Rev-Exp Region 8'!$AQ$9, 0)","v":{"v":0,"d":"$0.00"}},{"$f":"IFERROR('MMA Rev-Exp Region 8'!$AR$15/'MMA Rev-Exp Region 8'!$AR$9, 0)","v":{"v":0,"d":"$0.00"}},{"$f":"IFERROR('MMA Rev-Exp Region 8'!$AS$15/'MMA Rev-Exp Region 8'!$AS$9, 0)","v":{"v":0,"d":"$0.00"}},{"$f":"IFERROR('MMA Rev-Exp Region 8'!$AT$15/'MMA Rev-Exp Region 8'!$AT$9, 0)","v":{"v":0,"d":"$0.00"}},{"$f":"IFERROR('MMA Rev-Exp Region 8'!$AU$15/'MMA Rev-Exp Region 8'!$AU$9, 0)","v":{"v":0,"d":"$0.00"}}]
["MMA",null,null,2016,"2016-12-31","Q4","2017-12-31","Region 8","Operating Revenue","Other Revenue","Other Revenue","1.6","Other Revenue",{"$f":"IFERROR('MMA Rev-Exp Region 8'!$AK$16/'MMA Rev-Exp Region 8'!$AK$9, 0)","v":{"v":0,"d":"$0.00"}},{"$f":"IFERROR('MMA Rev-Exp Region 8'!$AL$16/'MMA Rev-Exp Region 8'!$AL$9, 0)","v":{"v":0,"d":"$0.00"}},{"$f":"IFERROR('MMA Rev-Exp Region 8'!$AM$16/'MMA Rev-Exp Region 8'!$AM$9, 0)","v":{"v":0,"d":"$0.00"}},{"$f":"IFERROR('MMA Rev-Exp Region 8'!$AN$16/'MMA Rev-Exp Region 8'!$AN$9, 0)","v":{"v":0,"d":"$0.00"}},{"$f":"IFERROR('MMA Rev-Exp Region 8'!$AO$16/'MMA Rev-Exp Region 8'!$AO$9, 0)","v":{"v":0,"d":"$0.00"}},{"$f":"IFERROR('MMA Rev-Exp Region 8'!$AP$16/'MMA Rev-Exp Region 8'!$AP$9, 0)","v":{"v":0,"d":"$0.00"}},{"$f":"IFERROR('MMA Rev-Exp Region 8'!$AQ$16/'MMA Rev-Exp Region 8'!$AQ$9, 0)","v":{"v":0,"d":"$0.00"}},{"$f":"IFERROR('MMA Rev-Exp Region 8'!$AR$16/'MMA Rev-Exp Region 8'!$AR$9, 0)","v":{"v":0,"d":"$0.00"}},{"$f":"IFERROR('MMA Rev-Exp Region 8'!$AS$16/'MMA Rev-Exp Region 8'!$AS$9, 0)","v":{"v":0,"d":"$0.00"}},{"$f":"IFERROR('MMA Rev-Exp Region 8'!$AT$16/'MMA Rev-Exp Region 8'!$AT$9, 0)","v":{"v":0,"d":"$0.00"}},{"$f":"IFERROR('MMA Rev-Exp Region 8'!$AU$16/'MMA Rev-Exp Region 8'!$AU$9, 0)","v":{"v":0,"d":"$0.00"}}]
["MMA",null,null,2016,"2016-12-31","Q4","2017-12-31","Region 8","Operating Expense","Medical Benefits Expense","Hospital Services",2.1,"Inpatient FFS",{"$f":"IFERROR('MMA Rev-Exp Region 8'!$AK$20/'MMA Rev-Exp Region 8'!$AK$9, 0)","v":{"v":0,"d":"$0.00"}},{"$f":"IFERROR('MMA Rev-Exp Region 8'!$AL$20/'MMA Rev-Exp Region 8'!$AL$9, 0)","v":{"v":0,"d":"$0.00"}},{"$f":"IFERROR('MMA Rev-Exp Region 8'!$AM$20/'MMA Rev-Exp Region 8'!$AM$9, 0)","v":{"v":0,"d":"$0.00"}},{"$f":"IFERROR('MMA Rev-Exp Region 8'!$AN$20/'MMA Rev-Exp Region 8'!$AN$9, 0)","v":{"v":0,"d":"$0.00"}},{"$f":"IFERROR('MMA Rev-Exp Region 8'!$AO$20/'MMA Rev-Exp Region 8'!$AO$9, 0)","v":{"v":0,"d":"$0.00"}},{"$f":"IFERROR('MMA Rev-Exp Region 8'!$AP$20/'MMA Rev-Exp Region 8'!$AP$9, 0)","v":{"v":0,"d":"$0.00"}},{"$f":"IFERROR('MMA Rev-Exp Region 8'!$AQ$20/'MMA Rev-Exp Region 8'!$AQ$9, 0)","v":{"v":0,"d":"$0.00"}},{"$f":"IFERROR('MMA Rev-Exp Region 8'!$AR$20/'MMA Rev-Exp Region 8'!$AR$9, 0)","v":{"v":0,"d":"$0.00"}},{"$f":"IFERROR('MMA Rev-Exp Region 8'!$AS$20/'MMA Rev-Exp Region 8'!$AS$9, 0)","v":{"v":0,"d":"$0.00"}},{"$f":"IFERROR('MMA Rev-Exp Region 8'!$AT$20/'MMA Rev-Exp Region 8'!$AT$9, 0)","v":{"v":0,"d":"$0.00"}},{"$f":"IFERROR('MMA Rev-Exp Region 8'!$AU$20/'MMA Rev-Exp Region 8'!$AU$9, 0)","v":{"v":0,"d":"$0.00"}}]
["MMA",null,null,2016,"2016-12-31","Q4","2017-12-31","Region 8","Operating Expense","Medical Benefits Expense","Hospital Services",2.2,"Ending IBNP for Inpatient Hospital Services",{"$f":"IFERROR('MMA Rev-Exp Region 8'!$AK$21/'MMA Rev-Exp Region 8'!$AK$9, 0)","v":{"v":0,"d":"$0.00"}},{"$f":"IFERROR('MMA Rev-Exp Region 8'!$AL$21/'MMA Rev-Exp Region 8'!$AL$9, 0)","v":{"v":0,"d":"$0.00"}},{"$f":"IFERROR('MMA Rev-Exp Region 8'!$AM$21/'MMA Rev-Exp Region 8'!$AM$9, 0)","v":{"v":0,"d":"$0.00"}},{"$f":"IFERROR('MMA Rev-Exp Region 8'!$AN$21/'MMA Rev-Exp Region 8'!$AN$9, 0)","v":{"v":0,"d":"$0.00"}},{"$f":"IFERROR('MMA Rev-Exp Region 8'!$AO$21/'MMA Rev-Exp Region 8'!$AO$9, 0)","v":{"v":0,"d":"$0.00"}},{"$f":"IFERROR('MMA Rev-Exp Region 8'!$AP$21/'MMA Rev-Exp Region 8'!$AP$9, 0)","v":{"v":0,"d":"$0.00"}},{"$f":"IFERROR('MMA Rev-Exp Region 8'!$AQ$21/'MMA Rev-Exp Region 8'!$AQ$9, 0)","v":{"v":0,"d":"$0.00"}},{"$f":"IFERROR('MMA Rev-Exp Region 8'!$AR$21/'MMA Rev-Exp Region 8'!$AR$9, 0)","v":{"v":0,"d":"$0.00"}},{"$f":"IFERROR('MMA Rev-Exp Region 8'!$AS$21/'MMA Rev-Exp Region 8'!$AS$9, 0)","v":{"v":0,"d":"$0.00"}},{"$f":"IFERROR('MMA Rev-Exp Region 8'!$AT$21/'MMA Rev-Exp Region 8'!$AT$9, 0)","v":{"v":0,"d":"$0.00"}},{"$f":"IFERROR('MMA Rev-Exp Region 8'!$AU$21/'MMA Rev-Exp Region 8'!$AU$9, 0)","v":{"v":0,"d":"$0.00"}}]
["MMA",null,null,2016,"2016-12-31","Q4","2017-12-31","Region 8","Operating Expense","Medical Benefits Expense","Hospital Services",2.3,"Outpatient FFS: ER",{"$f":"IFERROR('MMA Rev-Exp Region 8'!$AK$22/'MMA Rev-Exp Region 8'!$AK$9, 0)","v":{"v":0,"d":"$0.00"}},{"$f":"IFERROR('MMA Rev-Exp Region 8'!$AL$22/'MMA Rev-Exp Region 8'!$AL$9, 0)","v":{"v":0,"d":"$0.00"}},{"$f":"IFERROR('MMA Rev-Exp Region 8'!$AM$22/'MMA Rev-Exp Region 8'!$AM$9, 0)","v":{"v":0,"d":"$0.00"}},{"$f":"IFERROR('MMA Rev-Exp Region 8'!$AN$22/'MMA Rev-Exp Region 8'!$AN$9, 0)","v":{"v":0,"d":"$0.00"}},{"$f":"IFERROR('MMA Rev-Exp Region 8'!$AO$22/'MMA Rev-Exp Region 8'!$AO$9, 0)","v":{"v":0,"d":"$0.00"}},{"$f":"IFERROR('MMA Rev-Exp Region 8'!$AP$22/'MMA Rev-Exp Region 8'!$AP$9, 0)","v":{"v":0,"d":"$0.00"}},{"$f":"IFERROR('MMA Rev-Exp Region 8'!$AQ$22/'MMA Rev-Exp Region 8'!$AQ$9, 0)","v":{"v":0,"d":"$0.00"}},{"$f":"IFERROR('MMA Rev-Exp Region 8'!$AR$22/'MMA Rev-Exp Region 8'!$AR$9, 0)","v":{"v":0,"d":"$0.00"}},{"$f":"IFERROR('MMA Rev-Exp Region 8'!$AS$22/'MMA Rev-Exp Region 8'!$AS$9, 0)","v":{"v":0,"d":"$0.00"}},{"$f":"IFERROR('MMA Rev-Exp Region 8'!$AT$22/'MMA Rev-Exp Region 8'!$AT$9, 0)","v":{"v":0,"d":"$0.00"}},{"$f":"IFERROR('MMA Rev-Exp Region 8'!$AU$22/'MMA Rev-Exp Region 8'!$AU$9, 0)","v":{"v":0,"d":"$0.00"}}]
["MMA",null,null,2016,"2016-12-31","Q4","2017-12-31","Region 8","Operating Expense","Medical Benefits Expense","Hospital Services",2.4,"Outpatient FFS: Other than ER ",{"$f":"IFERROR('MMA Rev-Exp Region 8'!$AK$23/'MMA Rev-Exp Region 8'!$AK$9, 0)","v":{"v":0,"d":"$0.00"}},{"$f":"IFERROR('MMA Rev-Exp Region 8'!$AL$23/'MMA Rev-Exp Region 8'!$AL$9, 0)","v":{"v":0,"d":"$0.00"}},{"$f":"IFERROR('MMA Rev-Exp Region 8'!$AM$23/'MMA Rev-Exp Region 8'!$AM$9, 0)","v":{"v":0,"d":"$0.00"}},{"$f":"IFERROR('MMA Rev-Exp Region 8'!$AN$23/'MMA Rev-Exp Region 8'!$AN$9, 0)","v":{"v":0,"d":"$0.00"}},{"$f":"IFERROR('MMA Rev-Exp Region 8'!$AO$23/'MMA Rev-Exp Region 8'!$AO$9, 0)","v":{"v":0,"d":"$0.00"}},{"$f":"IFERROR('MMA Rev-Exp Region 8'!$AP$23/'MMA Rev-Exp Region 8'!$AP$9, 0)","v":{"v":0,"d":"$0.00"}},{"$f":"IFERROR('MMA Rev-Exp Region 8'!$AQ$23/'MMA Rev-Exp Region 8'!$AQ$9, 0)","v":{"v":0,"d":"$0.00"}},{"$f":"IFERROR('MMA Rev-Exp Region 8'!$AR$23/'MMA Rev-Exp Region 8'!$AR$9, 0)","v":{"v":0,"d":"$0.00"}},{"$f":"IFERROR('MMA Rev-Exp Region 8'!$AS$23/'MMA Rev-Exp Region 8'!$AS$9, 0)","v":{"v":0,"d":"$0.00"}},{"$f":"IFERROR('MMA Rev-Exp Region 8'!$AT$23/'MMA Rev-Exp Region 8'!$AT$9, 0)","v":{"v":0,"d":"$0.00"}},{"$f":"IFERROR('MMA Rev-Exp Region 8'!$AU$23/'MMA Rev-Exp Region 8'!$AU$9, 0)","v":{"v":0,"d":"$0.00"}}]
["MMA",null,null,2016,"2016-12-31","Q4","2017-12-31","Region 8","Operating Expense","Medical Benefits Expense","Hospital Services",2.5,"Ending IBNP for Outpatient Hospital Services",{"$f":"IFERROR('MMA Rev-Exp Region 8'!$AK$24/'MMA Rev-Exp Region 8'!$AK$9, 0)","v":{"v":0,"d":"$0.00"}},{"$f":"IFERROR('MMA Rev-Exp Region 8'!$AL$24/'MMA Rev-Exp Region 8'!$AL$9, 0)","v":{"v":0,"d":"$0.00"}},{"$f":"IFERROR('MMA Rev-Exp Region 8'!$AM$24/'MMA Rev-Exp Region 8'!$AM$9, 0)","v":{"v":0,"d":"$0.00"}},{"$f":"IFERROR('MMA Rev-Exp Region 8'!$AN$24/'MMA Rev-Exp Region 8'!$AN$9, 0)","v":{"v":0,"d":"$0.00"}},{"$f":"IFERROR('MMA Rev-Exp Region 8'!$AO$24/'MMA Rev-Exp Region 8'!$AO$9, 0)","v":{"v":0,"d":"$0.00"}},{"$f":"IFERROR('MMA Rev-Exp Region 8'!$AP$24/'MMA Rev-Exp Region 8'!$AP$9, 0)","v":{"v":0,"d":"$0.00"}},{"$f":"IFERROR('MMA Rev-Exp Region 8'!$AQ$24/'MMA Rev-Exp Region 8'!$AQ$9, 0)","v":{"v":0,"d":"$0.00"}},{"$f":"IFERROR('MMA Rev-Exp Region 8'!$AR$24/'MMA Rev-Exp Region 8'!$AR$9, 0)","v":{"v":0,"d":"$0.00"}},{"$f":"IFERROR('MMA Rev-Exp Region 8'!$AS$24/'MMA Rev-Exp Region 8'!$AS$9, 0)","v":{"v":0,"d":"$0.00"}},{"$f":"IFERROR('MMA Rev-Exp Region 8'!$AT$24/'MMA Rev-Exp Region 8'!$AT$9, 0)","v":{"v":0,"d":"$0.00"}},{"$f":"IFERROR('MMA Rev-Exp Region 8'!$AU$24/'MMA Rev-Exp Region 8'!$AU$9, 0)","v":{"v":0,"d":"$0.00"}}]
["MMA",null,null,2016,"2016-12-31","Q4","2017-12-31","Region 8","Operating Expense","Medical Benefits Expense","Hospital Services","2.6","Subcapitated Hospital Services",{"$f":"IFERROR('MMA Rev-Exp Region 8'!$AK$25/'MMA Rev-Exp Region 8'!$AK$9, 0)","v":{"v":0,"d":"$0.00"}},{"$f":"IFERROR('MMA Rev-Exp Region 8'!$AL$25/'MMA Rev-Exp Region 8'!$AL$9, 0)","v":{"v":0,"d":"$0.00"}},{"$f":"IFERROR('MMA Rev-Exp Region 8'!$AM$25/'MMA Rev-Exp Region 8'!$AM$9, 0)","v":{"v":0,"d":"$0.00"}},{"$f":"IFERROR('MMA Rev-Exp Region 8'!$AN$25/'MMA Rev-Exp Region 8'!$AN$9, 0)","v":{"v":0,"d":"$0.00"}},{"$f":"IFERROR('MMA Rev-Exp Region 8'!$AO$25/'MMA Rev-Exp Region 8'!$AO$9, 0)","v":{"v":0,"d":"$0.00"}},{"$f":"IFERROR('MMA Rev-Exp Region 8'!$AP$25/'MMA Rev-Exp Region 8'!$AP$9, 0)","v":{"v":0,"d":"$0.00"}},{"$f":"IFERROR('MMA Rev-Exp Region 8'!$AQ$25/'MMA Rev-Exp Region 8'!$AQ$9, 0)","v":{"v":0,"d":"$0.00"}},{"$f":"IFERROR('MMA Rev-Exp Region 8'!$AR$25/'MMA Rev-Exp Region 8'!$AR$9, 0)","v":{"v":0,"d":"$0.00"}},{"$f":"IFERROR('MMA Rev-Exp Region 8'!$AS$25/'MMA Rev-Exp Region 8'!$AS$9, 0)","v":{"v":0,"d":"$0.00"}},{"$f":"IFERROR('MMA Rev-Exp Region 8'!$AT$25/'MMA Rev-Exp Region 8'!$AT$9, 0)","v":{"v":0,"d":"$0.00"}},{"$f":"IFERROR('MMA Rev-Exp Region 8'!$AU$25/'MMA Rev-Exp Region 8'!$AU$9, 0)","v":{"v":0,"d":"$0.00"}}]
["MMA",null,null,2016,"2016-12-31","Q4","2017-12-31","Region 8","Operating Expense","Medical Benefits Expense","Hospital Services","2.7","Hospital Settlements",{"$f":"IFERROR('MMA Rev-Exp Region 8'!$AK$26/'MMA Rev-Exp Region 8'!$AK$9, 0)","v":{"v":0,"d":"$0.00"}},{"$f":"IFERROR('MMA Rev-Exp Region 8'!$AL$26/'MMA Rev-Exp Region 8'!$AL$9, 0)","v":{"v":0,"d":"$0.00"}},{"$f":"IFERROR('MMA Rev-Exp Region 8'!$AM$26/'MMA Rev-Exp Region 8'!$AM$9, 0)","v":{"v":0,"d":"$0.00"}},{"$f":"IFERROR('MMA Rev-Exp Region 8'!$AN$26/'MMA Rev-Exp Region 8'!$AN$9, 0)","v":{"v":0,"d":"$0.00"}},{"$f":"IFERROR('MMA Rev-Exp Region 8'!$AO$26/'MMA Rev-Exp Region 8'!$AO$9, 0)","v":{"v":0,"d":"$0.00"}},{"$f":"IFERROR('MMA Rev-Exp Region 8'!$AP$26/'MMA Rev-Exp Region 8'!$AP$9, 0)","v":{"v":0,"d":"$0.00"}},{"$f":"IFERROR('MMA Rev-Exp Region 8'!$AQ$26/'MMA Rev-Exp Region 8'!$AQ$9, 0)","v":{"v":0,"d":"$0.00"}},{"$f":"IFERROR('MMA Rev-Exp Region 8'!$AR$26/'MMA Rev-Exp Region 8'!$AR$9, 0)","v":{"v":0,"d":"$0.00"}},{"$f":"IFERROR('MMA Rev-Exp Region 8'!$AS$26/'MMA Rev-Exp Region 8'!$AS$9, 0)","v":{"v":0,"d":"$0.00"}},{"$f":"IFERROR('MMA Rev-Exp Region 8'!$AT$26/'MMA Rev-Exp Region 8'!$AT$9, 0)","v":{"v":0,"d":"$0.00"}},{"$f":"IFERROR('MMA Rev-Exp Region 8'!$AU$26/'MMA Rev-Exp Region 8'!$AU$9, 0)","v":{"v":0,"d":"$0.00"}}]
["MMA",null,null,2016,"2016-12-31","Q4","2017-12-31","Region 8","Operating Expense","Medical Benefits Expense","Hospital Services","2.7.1","Transplant Services",{"$f":"IFERROR('MMA Rev-Exp Region 8'!$AK$27/'MMA Rev-Exp Region 8'!$AK$9, 0)","v":{"v":0,"d":"$0.00"}},{"$f":"IFERROR('MMA Rev-Exp Region 8'!$AL$27/'MMA Rev-Exp Region 8'!$AL$9, 0)","v":{"v":0,"d":"$0.00"}},{"$f":"IFERROR('MMA Rev-Exp Region 8'!$AM$27/'MMA Rev-Exp Region 8'!$AM$9, 0)","v":{"v":0,"d":"$0.00"}},{"$f":"IFERROR('MMA Rev-Exp Region 8'!$AN$27/'MMA Rev-Exp Region 8'!$AN$9, 0)","v":{"v":0,"d":"$0.00"}},{"$f":"IFERROR('MMA Rev-Exp Region 8'!$AO$27/'MMA Rev-Exp Region 8'!$AO$9, 0)","v":{"v":0,"d":"$0.00"}},{"$f":"IFERROR('MMA Rev-Exp Region 8'!$AP$27/'MMA Rev-Exp Region 8'!$AP$9, 0)","v":{"v":0,"d":"$0.00"}},{"$f":"IFERROR('MMA Rev-Exp Region 8'!$AQ$27/'MMA Rev-Exp Region 8'!$AQ$9, 0)","v":{"v":0,"d":"$0.00"}},{"$f":"IFERROR('MMA Rev-Exp Region 8'!$AR$27/'MMA Rev-Exp Region 8'!$AR$9, 0)","v":{"v":0,"d":"$0.00"}},{"$f":"IFERROR('MMA Rev-Exp Region 8'!$AS$27/'MMA Rev-Exp Region 8'!$AS$9, 0)","v":{"v":0,"d":"$0.00"}},{"$f":"IFERROR('MMA Rev-Exp Region 8'!$AT$27/'MMA Rev-Exp Region 8'!$AT$9, 0)","v":{"v":0,"d":"$0.00"}},{"$f":"IFERROR('MMA Rev-Exp Region 8'!$AU$27/'MMA Rev-Exp Region 8'!$AU$9, 0)","v":{"v":0,"d":"$0.00"}}]
["MMA",null,null,2016,"2016-12-31","Q4","2017-12-31","Region 8","Operating Expense","Medical Benefits Expense","Professional Services",3.1,"Primary Care FFS",{"$f":"IFERROR('MMA Rev-Exp Region 8'!$AK$29/'MMA Rev-Exp Region 8'!$AK$9, 0)","v":{"v":0,"d":"$0.00"}},{"$f":"IFERROR('MMA Rev-Exp Region 8'!$AL$29/'MMA Rev-Exp Region 8'!$AL$9, 0)","v":{"v":0,"d":"$0.00"}},{"$f":"IFERROR('MMA Rev-Exp Region 8'!$AM$29/'MMA Rev-Exp Region 8'!$AM$9, 0)","v":{"v":0,"d":"$0.00"}},{"$f":"IFERROR('MMA Rev-Exp Region 8'!$AN$29/'MMA Rev-Exp Region 8'!$AN$9, 0)","v":{"v":0,"d":"$0.00"}},{"$f":"IFERROR('MMA Rev-Exp Region 8'!$AO$29/'MMA Rev-Exp Region 8'!$AO$9, 0)","v":{"v":0,"d":"$0.00"}},{"$f":"IFERROR('MMA Rev-Exp Region 8'!$AP$29/'MMA Rev-Exp Region 8'!$AP$9, 0)","v":{"v":0,"d":"$0.00"}},{"$f":"IFERROR('MMA Rev-Exp Region 8'!$AQ$29/'MMA Rev-Exp Region 8'!$AQ$9, 0)","v":{"v":0,"d":"$0.00"}},{"$f":"IFERROR('MMA Rev-Exp Region 8'!$AR$29/'MMA Rev-Exp Region 8'!$AR$9, 0)","v":{"v":0,"d":"$0.00"}},{"$f":"IFERROR('MMA Rev-Exp Region 8'!$AS$29/'MMA Rev-Exp Region 8'!$AS$9, 0)","v":{"v":0,"d":"$0.00"}},{"$f":"IFERROR('MMA Rev-Exp Region 8'!$AT$29/'MMA Rev-Exp Region 8'!$AT$9, 0)","v":{"v":0,"d":"$0.00"}},{"$f":"IFERROR('MMA Rev-Exp Region 8'!$AU$29/'MMA Rev-Exp Region 8'!$AU$9, 0)","v":{"v":0,"d":"$0.00"}}]
["MMA",null,null,2016,"2016-12-31","Q4","2017-12-31","Region 8","Operating Expense","Medical Benefits Expense","Professional Services",3.2,"Specialty Care FFS",{"$f":"IFERROR('MMA Rev-Exp Region 8'!$AK$30/'MMA Rev-Exp Region 8'!$AK$9, 0)","v":{"v":0,"d":"$0.00"}},{"$f":"IFERROR('MMA Rev-Exp Region 8'!$AL$30/'MMA Rev-Exp Region 8'!$AL$9, 0)","v":{"v":0,"d":"$0.00"}},{"$f":"IFERROR('MMA Rev-Exp Region 8'!$AM$30/'MMA Rev-Exp Region 8'!$AM$9, 0)","v":{"v":0,"d":"$0.00"}},{"$f":"IFERROR('MMA Rev-Exp Region 8'!$AN$30/'MMA Rev-Exp Region 8'!$AN$9, 0)","v":{"v":0,"d":"$0.00"}},{"$f":"IFERROR('MMA Rev-Exp Region 8'!$AO$30/'MMA Rev-Exp Region 8'!$AO$9, 0)","v":{"v":0,"d":"$0.00"}},{"$f":"IFERROR('MMA Rev-Exp Region 8'!$AP$30/'MMA Rev-Exp Region 8'!$AP$9, 0)","v":{"v":0,"d":"$0.00"}},{"$f":"IFERROR('MMA Rev-Exp Region 8'!$AQ$30/'MMA Rev-Exp Region 8'!$AQ$9, 0)","v":{"v":0,"d":"$0.00"}},{"$f":"IFERROR('MMA Rev-Exp Region 8'!$AR$30/'MMA Rev-Exp Region 8'!$AR$9, 0)","v":{"v":0,"d":"$0.00"}},{"$f":"IFERROR('MMA Rev-Exp Region 8'!$AS$30/'MMA Rev-Exp Region 8'!$AS$9, 0)","v":{"v":0,"d":"$0.00"}},{"$f":"IFERROR('MMA Rev-Exp Region 8'!$AT$30/'MMA Rev-Exp Region 8'!$AT$9, 0)","v":{"v":0,"d":"$0.00"}},{"$f":"IFERROR('MMA Rev-Exp Region 8'!$AU$30/'MMA Rev-Exp Region 8'!$AU$9, 0)","v":{"v":0,"d":"$0.00"}}]
["MMA",null,null,2016,"2016-12-31","Q4","2017-12-31","Region 8","Operating Expense","Medical Benefits Expense","Professional Services",3.3,"Other Professional FFS",{"$f":"IFERROR('MMA Rev-Exp Region 8'!$AK$31/'MMA Rev-Exp Region 8'!$AK$9, 0)","v":{"v":0,"d":"$0.00"}},{"$f":"IFERROR('MMA Rev-Exp Region 8'!$AL$31/'MMA Rev-Exp Region 8'!$AL$9, 0)","v":{"v":0,"d":"$0.00"}},{"$f":"IFERROR('MMA Rev-Exp Region 8'!$AM$31/'MMA Rev-Exp Region 8'!$AM$9, 0)","v":{"v":0,"d":"$0.00"}},{"$f":"IFERROR('MMA Rev-Exp Region 8'!$AN$31/'MMA Rev-Exp Region 8'!$AN$9, 0)","v":{"v":0,"d":"$0.00"}},{"$f":"IFERROR('MMA Rev-Exp Region 8'!$AO$31/'MMA Rev-Exp Region 8'!$AO$9, 0)","v":{"v":0,"d":"$0.00"}},{"$f":"IFERROR('MMA Rev-Exp Region 8'!$AP$31/'MMA Rev-Exp Region 8'!$AP$9, 0)","v":{"v":0,"d":"$0.00"}},{"$f":"IFERROR('MMA Rev-Exp Region 8'!$AQ$31/'MMA Rev-Exp Region 8'!$AQ$9, 0)","v":{"v":0,"d":"$0.00"}},{"$f":"IFERROR('MMA Rev-Exp Region 8'!$AR$31/'MMA Rev-Exp Region 8'!$AR$9, 0)","v":{"v":0,"d":"$0.00"}},{"$f":"IFERROR('MMA Rev-Exp Region 8'!$AS$31/'MMA Rev-Exp Region 8'!$AS$9, 0)","v":{"v":0,"d":"$0.00"}},{"$f":"IFERROR('MMA Rev-Exp Region 8'!$AT$31/'MMA Rev-Exp Region 8'!$AT$9, 0)","v":{"v":0,"d":"$0.00"}},{"$f":"IFERROR('MMA Rev-Exp Region 8'!$AU$31/'MMA Rev-Exp Region 8'!$AU$9, 0)","v":{"v":0,"d":"$0.00"}}]
["MMA",null,null,2016,"2016-12-31","Q4","2017-12-31","Region 8","Operating Expense","Medical Benefits Expense","Professional Services","3.4","§ 1202 PCP Payments to providers",{"$f":"IFERROR('MMA Rev-Exp Region 8'!$AK$32/'MMA Rev-Exp Region 8'!$AK$9, 0)","v":{"v":0,"d":"$0.00"}},{"$f":"IFERROR('MMA Rev-Exp Region 8'!$AL$32/'MMA Rev-Exp Region 8'!$AL$9, 0)","v":{"v":0,"d":"$0.00"}},{"$f":"IFERROR('MMA Rev-Exp Region 8'!$AM$32/'MMA Rev-Exp Region 8'!$AM$9, 0)","v":{"v":0,"d":"$0.00"}},{"$f":"IFERROR('MMA Rev-Exp Region 8'!$AN$32/'MMA Rev-Exp Region 8'!$AN$9, 0)","v":{"v":0,"d":"$0.00"}},{"$f":"IFERROR('MMA Rev-Exp Region 8'!$AO$32/'MMA Rev-Exp Region 8'!$AO$9, 0)","v":{"v":0,"d":"$0.00"}},{"$f":"IFERROR('MMA Rev-Exp Region 8'!$AP$32/'MMA Rev-Exp Region 8'!$AP$9, 0)","v":{"v":0,"d":"$0.00"}},{"$f":"IFERROR('MMA Rev-Exp Region 8'!$AQ$32/'MMA Rev-Exp Region 8'!$AQ$9, 0)","v":{"v":0,"d":"$0.00"}},{"$f":"IFERROR('MMA Rev-Exp Region 8'!$AR$32/'MMA Rev-Exp Region 8'!$AR$9, 0)","v":{"v":0,"d":"$0.00"}},{"$f":"IFERROR('MMA Rev-Exp Region 8'!$AS$32/'MMA Rev-Exp Region 8'!$AS$9, 0)","v":{"v":0,"d":"$0.00"}},{"$f":"IFERROR('MMA Rev-Exp Region 8'!$AT$32/'MMA Rev-Exp Region 8'!$AT$9, 0)","v":{"v":0,"d":"$0.00"}},{"$f":"IFERROR('MMA Rev-Exp Region 8'!$AU$32/'MMA Rev-Exp Region 8'!$AU$9, 0)","v":{"v":0,"d":"$0.00"}}]
["MMA",null,null,2016,"2016-12-31","Q4","2017-12-31","Region 8","Operating Expense","Medical Benefits Expense","Professional Services","3.5","Subcapitated Professional Services",{"$f":"IFERROR('MMA Rev-Exp Region 8'!$AK$33/'MMA Rev-Exp Region 8'!$AK$9, 0)","v":{"v":0,"d":"$0.00"}},{"$f":"IFERROR('MMA Rev-Exp Region 8'!$AL$33/'MMA Rev-Exp Region 8'!$AL$9, 0)","v":{"v":0,"d":"$0.00"}},{"$f":"IFERROR('MMA Rev-Exp Region 8'!$AM$33/'MMA Rev-Exp Region 8'!$AM$9, 0)","v":{"v":0,"d":"$0.00"}},{"$f":"IFERROR('MMA Rev-Exp Region 8'!$AN$33/'MMA Rev-Exp Region 8'!$AN$9, 0)","v":{"v":0,"d":"$0.00"}},{"$f":"IFERROR('MMA Rev-Exp Region 8'!$AO$33/'MMA Rev-Exp Region 8'!$AO$9, 0)","v":{"v":0,"d":"$0.00"}},{"$f":"IFERROR('MMA Rev-Exp Region 8'!$AP$33/'MMA Rev-Exp Region 8'!$AP$9, 0)","v":{"v":0,"d":"$0.00"}},{"$f":"IFERROR('MMA Rev-Exp Region 8'!$AQ$33/'MMA Rev-Exp Region 8'!$AQ$9, 0)","v":{"v":0,"d":"$0.00"}},{"$f":"IFERROR('MMA Rev-Exp Region 8'!$AR$33/'MMA Rev-Exp Region 8'!$AR$9, 0)","v":{"v":0,"d":"$0.00"}},{"$f":"IFERROR('MMA Rev-Exp Region 8'!$AS$33/'MMA Rev-Exp Region 8'!$AS$9, 0)","v":{"v":0,"d":"$0.00"}},{"$f":"IFERROR('MMA Rev-Exp Region 8'!$AT$33/'MMA Rev-Exp Region 8'!$AT$9, 0)","v":{"v":0,"d":"$0.00"}},{"$f":"IFERROR('MMA Rev-Exp Region 8'!$AU$33/'MMA Rev-Exp Region 8'!$AU$9, 0)","v":{"v":0,"d":"$0.00"}}]
["MMA",null,null,2016,"2016-12-31","Q4","2017-12-31","Region 8","Operating Expense","Medical Benefits Expense","Professional Services","3.6","Ending IBNP for Professional Services",{"$f":"IFERROR('MMA Rev-Exp Region 8'!$AK$34/'MMA Rev-Exp Region 8'!$AK$9, 0)","v":{"v":0,"d":"$0.00"}},{"$f":"IFERROR('MMA Rev-Exp Region 8'!$AL$34/'MMA Rev-Exp Region 8'!$AL$9, 0)","v":{"v":0,"d":"$0.00"}},{"$f":"IFERROR('MMA Rev-Exp Region 8'!$AM$34/'MMA Rev-Exp Region 8'!$AM$9, 0)","v":{"v":0,"d":"$0.00"}},{"$f":"IFERROR('MMA Rev-Exp Region 8'!$AN$34/'MMA Rev-Exp Region 8'!$AN$9, 0)","v":{"v":0,"d":"$0.00"}},{"$f":"IFERROR('MMA Rev-Exp Region 8'!$AO$34/'MMA Rev-Exp Region 8'!$AO$9, 0)","v":{"v":0,"d":"$0.00"}},{"$f":"IFERROR('MMA Rev-Exp Region 8'!$AP$34/'MMA Rev-Exp Region 8'!$AP$9, 0)","v":{"v":0,"d":"$0.00"}},{"$f":"IFERROR('MMA Rev-Exp Region 8'!$AQ$34/'MMA Rev-Exp Region 8'!$AQ$9, 0)","v":{"v":0,"d":"$0.00"}},{"$f":"IFERROR('MMA Rev-Exp Region 8'!$AR$34/'MMA Rev-Exp Region 8'!$AR$9, 0)","v":{"v":0,"d":"$0.00"}},{"$f":"IFERROR('MMA Rev-Exp Region 8'!$AS$34/'MMA Rev-Exp Region 8'!$AS$9, 0)","v":{"v":0,"d":"$0.00"}},{"$f":"IFERROR('MMA Rev-Exp Region 8'!$AT$34/'MMA Rev-Exp Region 8'!$AT$9, 0)","v":{"v":0,"d":"$0.00"}},{"$f":"IFERROR('MMA Rev-Exp Region 8'!$AU$34/'MMA Rev-Exp Region 8'!$AU$9, 0)","v":{"v":0,"d":"$0.00"}}]
["MMA",null,null,2016,"2016-12-31","Q4","2017-12-31","Region 8","Operating Expense","Medical Benefits Expense","Professional Services","3.7","Professional Services Settlements",{"$f":"IFERROR('MMA Rev-Exp Region 8'!$AK$35/'MMA Rev-Exp Region 8'!$AK$9, 0)","v":{"v":0,"d":"$0.00"}},{"$f":"IFERROR('MMA Rev-Exp Region 8'!$AL$35/'MMA Rev-Exp Region 8'!$AL$9, 0)","v":{"v":0,"d":"$0.00"}},{"$f":"IFERROR('MMA Rev-Exp Region 8'!$AM$35/'MMA Rev-Exp Region 8'!$AM$9, 0)","v":{"v":0,"d":"$0.00"}},{"$f":"IFERROR('MMA Rev-Exp Region 8'!$AN$35/'MMA Rev-Exp Region 8'!$AN$9, 0)","v":{"v":0,"d":"$0.00"}},{"$f":"IFERROR('MMA Rev-Exp Region 8'!$AO$35/'MMA Rev-Exp Region 8'!$AO$9, 0)","v":{"v":0,"d":"$0.00"}},{"$f":"IFERROR('MMA Rev-Exp Region 8'!$AP$35/'MMA Rev-Exp Region 8'!$AP$9, 0)","v":{"v":0,"d":"$0.00"}},{"$f":"IFERROR('MMA Rev-Exp Region 8'!$AQ$35/'MMA Rev-Exp Region 8'!$AQ$9, 0)","v":{"v":0,"d":"$0.00"}},{"$f":"IFERROR('MMA Rev-Exp Region 8'!$AR$35/'MMA Rev-Exp Region 8'!$AR$9, 0)","v":{"v":0,"d":"$0.00"}},{"$f":"IFERROR('MMA Rev-Exp Region 8'!$AS$35/'MMA Rev-Exp Region 8'!$AS$9, 0)","v":{"v":0,"d":"$0.00"}},{"$f":"IFERROR('MMA Rev-Exp Region 8'!$AT$35/'MMA Rev-Exp Region 8'!$AT$9, 0)","v":{"v":0,"d":"$0.00"}},{"$f":"IFERROR('MMA Rev-Exp Region 8'!$AU$35/'MMA Rev-Exp Region 8'!$AU$9, 0)","v":{"v":0,"d":"$0.00"}}]
["MMA",null,null,2016,"2016-12-31","Q4","2017-12-31","Region 8","Operating Expense","Medical Benefits Expense","Maternity Services","4.1.1","Maternity Services",{"$f":"IFERROR('MMA Rev-Exp Region 8'!$AK$37/'MMA Rev-Exp Region 8'!$AK$9, 0)","v":{"v":0,"d":"$0.00"}},{"$f":"IFERROR('MMA Rev-Exp Region 8'!$AL$37/'MMA Rev-Exp Region 8'!$AL$9, 0)","v":{"v":0,"d":"$0.00"}},{"$f":"IFERROR('MMA Rev-Exp Region 8'!$AM$37/'MMA Rev-Exp Region 8'!$AM$9, 0)","v":{"v":0,"d":"$0.00"}},{"$f":"IFERROR('MMA Rev-Exp Region 8'!$AN$37/'MMA Rev-Exp Region 8'!$AN$9, 0)","v":{"v":0,"d":"$0.00"}},{"$f":"IFERROR('MMA Rev-Exp Region 8'!$AO$37/'MMA Rev-Exp Region 8'!$AO$9, 0)","v":{"v":0,"d":"$0.00"}},{"$f":"IFERROR('MMA Rev-Exp Region 8'!$AP$37/'MMA Rev-Exp Region 8'!$AP$9, 0)","v":{"v":0,"d":"$0.00"}},{"$f":"IFERROR('MMA Rev-Exp Region 8'!$AQ$37/'MMA Rev-Exp Region 8'!$AQ$9, 0)","v":{"v":0,"d":"$0.00"}},{"$f":"IFERROR('MMA Rev-Exp Region 8'!$AR$37/'MMA Rev-Exp Region 8'!$AR$9, 0)","v":{"v":0,"d":"$0.00"}},{"$f":"IFERROR('MMA Rev-Exp Region 8'!$AS$37/'MMA Rev-Exp Region 8'!$AS$9, 0)","v":{"v":0,"d":"$0.00"}},{"$f":"IFERROR('MMA Rev-Exp Region 8'!$AT$37/'MMA Rev-Exp Region 8'!$AT$9, 0)","v":{"v":0,"d":"$0.00"}},{"$f":"IFERROR('MMA Rev-Exp Region 8'!$AU$37/'MMA Rev-Exp Region 8'!$AU$9, 0)","v":{"v":0,"d":"$0.00"}}]
["MMA",null,null,2016,"2016-12-31","Q4","2017-12-31","Region 8","Operating Expense","Medical Benefits Expense","Maternity Services","4.2.1","Ending IBNP for Maternity Services",{"$f":"IFERROR('MMA Rev-Exp Region 8'!$AK$38/'MMA Rev-Exp Region 8'!$AK$9, 0)","v":{"v":0,"d":"$0.00"}},{"$f":"IFERROR('MMA Rev-Exp Region 8'!$AL$38/'MMA Rev-Exp Region 8'!$AL$9, 0)","v":{"v":0,"d":"$0.00"}},{"$f":"IFERROR('MMA Rev-Exp Region 8'!$AM$38/'MMA Rev-Exp Region 8'!$AM$9, 0)","v":{"v":0,"d":"$0.00"}},{"$f":"IFERROR('MMA Rev-Exp Region 8'!$AN$38/'MMA Rev-Exp Region 8'!$AN$9, 0)","v":{"v":0,"d":"$0.00"}},{"$f":"IFERROR('MMA Rev-Exp Region 8'!$AO$38/'MMA Rev-Exp Region 8'!$AO$9, 0)","v":{"v":0,"d":"$0.00"}},{"$f":"IFERROR('MMA Rev-Exp Region 8'!$AP$38/'MMA Rev-Exp Region 8'!$AP$9, 0)","v":{"v":0,"d":"$0.00"}},{"$f":"IFERROR('MMA Rev-Exp Region 8'!$AQ$38/'MMA Rev-Exp Region 8'!$AQ$9, 0)","v":{"v":0,"d":"$0.00"}},{"$f":"IFERROR('MMA Rev-Exp Region 8'!$AR$38/'MMA Rev-Exp Region 8'!$AR$9, 0)","v":{"v":0,"d":"$0.00"}},{"$f":"IFERROR('MMA Rev-Exp Region 8'!$AS$38/'MMA Rev-Exp Region 8'!$AS$9, 0)","v":{"v":0,"d":"$0.00"}},{"$f":"IFERROR('MMA Rev-Exp Region 8'!$AT$38/'MMA Rev-Exp Region 8'!$AT$9, 0)","v":{"v":0,"d":"$0.00"}},{"$f":"IFERROR('MMA Rev-Exp Region 8'!$AU$38/'MMA Rev-Exp Region 8'!$AU$9, 0)","v":{"v":0,"d":"$0.00"}}]
["MMA",null,null,2016,"2016-12-31","Q4","2017-12-31","Region 8","Operating Expense","Medical Benefits Expense","Maternity Services","4.3.1","Maternity Settlements",{"$f":"IFERROR('MMA Rev-Exp Region 8'!$AK$39/'MMA Rev-Exp Region 8'!$AK$9, 0)","v":{"v":0,"d":"$0.00"}},{"$f":"IFERROR('MMA Rev-Exp Region 8'!$AL$39/'MMA Rev-Exp Region 8'!$AL$9, 0)","v":{"v":0,"d":"$0.00"}},{"$f":"IFERROR('MMA Rev-Exp Region 8'!$AM$39/'MMA Rev-Exp Region 8'!$AM$9, 0)","v":{"v":0,"d":"$0.00"}},{"$f":"IFERROR('MMA Rev-Exp Region 8'!$AN$39/'MMA Rev-Exp Region 8'!$AN$9, 0)","v":{"v":0,"d":"$0.00"}},{"$f":"IFERROR('MMA Rev-Exp Region 8'!$AO$39/'MMA Rev-Exp Region 8'!$AO$9, 0)","v":{"v":0,"d":"$0.00"}},{"$f":"IFERROR('MMA Rev-Exp Region 8'!$AP$39/'MMA Rev-Exp Region 8'!$AP$9, 0)","v":{"v":0,"d":"$0.00"}},{"$f":"IFERROR('MMA Rev-Exp Region 8'!$AQ$39/'MMA Rev-Exp Region 8'!$AQ$9, 0)","v":{"v":0,"d":"$0.00"}},{"$f":"IFERROR('MMA Rev-Exp Region 8'!$AR$39/'MMA Rev-Exp Region 8'!$AR$9, 0)","v":{"v":0,"d":"$0.00"}},{"$f":"IFERROR('MMA Rev-Exp Region 8'!$AS$39/'MMA Rev-Exp Region 8'!$AS$9, 0)","v":{"v":0,"d":"$0.00"}},{"$f":"IFERROR('MMA Rev-Exp Region 8'!$AT$39/'MMA Rev-Exp Region 8'!$AT$9, 0)","v":{"v":0,"d":"$0.00"}},{"$f":"IFERROR('MMA Rev-Exp Region 8'!$AU$39/'MMA Rev-Exp Region 8'!$AU$9, 0)","v":{"v":0,"d":"$0.00"}}]
["MMA",null,null,2016,"2016-12-31","Q4","2017-12-31","Region 8","Operating Expense","Medical Benefits Expense","Mental Health Services",5.1,"Mental Health & Substance Abuse FFS",{"$f":"IFERROR('MMA Rev-Exp Region 8'!$AK$41/'MMA Rev-Exp Region 8'!$AK$9, 0)","v":{"v":0,"d":"$0.00"}},{"$f":"IFERROR('MMA Rev-Exp Region 8'!$AL$41/'MMA Rev-Exp Region 8'!$AL$9, 0)","v":{"v":0,"d":"$0.00"}},{"$f":"IFERROR('MMA Rev-Exp Region 8'!$AM$41/'MMA Rev-Exp Region 8'!$AM$9, 0)","v":{"v":0,"d":"$0.00"}},{"$f":"IFERROR('MMA Rev-Exp Region 8'!$AN$41/'MMA Rev-Exp Region 8'!$AN$9, 0)","v":{"v":0,"d":"$0.00"}},{"$f":"IFERROR('MMA Rev-Exp Region 8'!$AO$41/'MMA Rev-Exp Region 8'!$AO$9, 0)","v":{"v":0,"d":"$0.00"}},{"$f":"IFERROR('MMA Rev-Exp Region 8'!$AP$41/'MMA Rev-Exp Region 8'!$AP$9, 0)","v":{"v":0,"d":"$0.00"}},{"$f":"IFERROR('MMA Rev-Exp Region 8'!$AQ$41/'MMA Rev-Exp Region 8'!$AQ$9, 0)","v":{"v":0,"d":"$0.00"}},{"$f":"IFERROR('MMA Rev-Exp Region 8'!$AR$41/'MMA Rev-Exp Region 8'!$AR$9, 0)","v":{"v":0,"d":"$0.00"}},{"$f":"IFERROR('MMA Rev-Exp Region 8'!$AS$41/'MMA Rev-Exp Region 8'!$AS$9, 0)","v":{"v":0,"d":"$0.00"}},{"$f":"IFERROR('MMA Rev-Exp Region 8'!$AT$41/'MMA Rev-Exp Region 8'!$AT$9, 0)","v":{"v":0,"d":"$0.00"}},{"$f":"IFERROR('MMA Rev-Exp Region 8'!$AU$41/'MMA Rev-Exp Region 8'!$AU$9, 0)","v":{"v":0,"d":"$0.00"}}]
["MMA",null,null,2016,"2016-12-31","Q4","2017-12-31","Region 8","Operating Expense","Medical Benefits Expense","Mental Health Services",5.2,"Mental Health & Substance Abuse Subcapitation",{"$f":"IFERROR('MMA Rev-Exp Region 8'!$AK$42/'MMA Rev-Exp Region 8'!$AK$9, 0)","v":{"v":0,"d":"$0.00"}},{"$f":"IFERROR('MMA Rev-Exp Region 8'!$AL$42/'MMA Rev-Exp Region 8'!$AL$9, 0)","v":{"v":0,"d":"$0.00"}},{"$f":"IFERROR('MMA Rev-Exp Region 8'!$AM$42/'MMA Rev-Exp Region 8'!$AM$9, 0)","v":{"v":0,"d":"$0.00"}},{"$f":"IFERROR('MMA Rev-Exp Region 8'!$AN$42/'MMA Rev-Exp Region 8'!$AN$9, 0)","v":{"v":0,"d":"$0.00"}},{"$f":"IFERROR('MMA Rev-Exp Region 8'!$AO$42/'MMA Rev-Exp Region 8'!$AO$9, 0)","v":{"v":0,"d":"$0.00"}},{"$f":"IFERROR('MMA Rev-Exp Region 8'!$AP$42/'MMA Rev-Exp Region 8'!$AP$9, 0)","v":{"v":0,"d":"$0.00"}},{"$f":"IFERROR('MMA Rev-Exp Region 8'!$AQ$42/'MMA Rev-Exp Region 8'!$AQ$9, 0)","v":{"v":0,"d":"$0.00"}},{"$f":"IFERROR('MMA Rev-Exp Region 8'!$AR$42/'MMA Rev-Exp Region 8'!$AR$9, 0)","v":{"v":0,"d":"$0.00"}},{"$f":"IFERROR('MMA Rev-Exp Region 8'!$AS$42/'MMA Rev-Exp Region 8'!$AS$9, 0)","v":{"v":0,"d":"$0.00"}},{"$f":"IFERROR('MMA Rev-Exp Region 8'!$AT$42/'MMA Rev-Exp Region 8'!$AT$9, 0)","v":{"v":0,"d":"$0.00"}},{"$f":"IFERROR('MMA Rev-Exp Region 8'!$AU$42/'MMA Rev-Exp Region 8'!$AU$9, 0)","v":{"v":0,"d":"$0.00"}}]
["MMA",null,null,2016,"2016-12-31","Q4","2017-12-31","Region 8","Operating Expense","Medical Benefits Expense","Mental Health Services",5.3,"Ending IBNP for Mental Health & Substance Abuse",{"$f":"IFERROR('MMA Rev-Exp Region 8'!$AK$43/'MMA Rev-Exp Region 8'!$AK$9, 0)","v":{"v":0,"d":"$0.00"}},{"$f":"IFERROR('MMA Rev-Exp Region 8'!$AL$43/'MMA Rev-Exp Region 8'!$AL$9, 0)","v":{"v":0,"d":"$0.00"}},{"$f":"IFERROR('MMA Rev-Exp Region 8'!$AM$43/'MMA Rev-Exp Region 8'!$AM$9, 0)","v":{"v":0,"d":"$0.00"}},{"$f":"IFERROR('MMA Rev-Exp Region 8'!$AN$43/'MMA Rev-Exp Region 8'!$AN$9, 0)","v":{"v":0,"d":"$0.00"}},{"$f":"IFERROR('MMA Rev-Exp Region 8'!$AO$43/'MMA Rev-Exp Region 8'!$AO$9, 0)","v":{"v":0,"d":"$0.00"}},{"$f":"IFERROR('MMA Rev-Exp Region 8'!$AP$43/'MMA Rev-Exp Region 8'!$AP$9, 0)","v":{"v":0,"d":"$0.00"}},{"$f":"IFERROR('MMA Rev-Exp Region 8'!$AQ$43/'MMA Rev-Exp Region 8'!$AQ$9, 0)","v":{"v":0,"d":"$0.00"}},{"$f":"IFERROR('MMA Rev-Exp Region 8'!$AR$43/'MMA Rev-Exp Region 8'!$AR$9, 0)","v":{"v":0,"d":"$0.00"}},{"$f":"IFERROR('MMA Rev-Exp Region 8'!$AS$43/'MMA Rev-Exp Region 8'!$AS$9, 0)","v":{"v":0,"d":"$0.00"}},{"$f":"IFERROR('MMA Rev-Exp Region 8'!$AT$43/'MMA Rev-Exp Region 8'!$AT$9, 0)","v":{"v":0,"d":"$0.00"}},{"$f":"IFERROR('MMA Rev-Exp Region 8'!$AU$43/'MMA Rev-Exp Region 8'!$AU$9, 0)","v":{"v":0,"d":"$0.00"}}]
["MMA",null,null,2016,"2016-12-31","Q4","2017-12-31","Region 8","Operating Expense","Medical Benefits Expense","Mental Health Services","5.4","Mental Health Settlements",{"$f":"IFERROR('MMA Rev-Exp Region 8'!$AK$44/'MMA Rev-Exp Region 8'!$AK$9, 0)","v":{"v":0,"d":"$0.00"}},{"$f":"IFERROR('MMA Rev-Exp Region 8'!$AL$44/'MMA Rev-Exp Region 8'!$AL$9, 0)","v":{"v":0,"d":"$0.00"}},{"$f":"IFERROR('MMA Rev-Exp Region 8'!$AM$44/'MMA Rev-Exp Region 8'!$AM$9, 0)","v":{"v":0,"d":"$0.00"}},{"$f":"IFERROR('MMA Rev-Exp Region 8'!$AN$44/'MMA Rev-Exp Region 8'!$AN$9, 0)","v":{"v":0,"d":"$0.00"}},{"$f":"IFERROR('MMA Rev-Exp Region 8'!$AO$44/'MMA Rev-Exp Region 8'!$AO$9, 0)","v":{"v":0,"d":"$0.00"}},{"$f":"IFERROR('MMA Rev-Exp Region 8'!$AP$44/'MMA Rev-Exp Region 8'!$AP$9, 0)","v":{"v":0,"d":"$0.00"}},{"$f":"IFERROR('MMA Rev-Exp Region 8'!$AQ$44/'MMA Rev-Exp Region 8'!$AQ$9, 0)","v":{"v":0,"d":"$0.00"}},{"$f":"IFERROR('MMA Rev-Exp Region 8'!$AR$44/'MMA Rev-Exp Region 8'!$AR$9, 0)","v":{"v":0,"d":"$0.00"}},{"$f":"IFERROR('MMA Rev-Exp Region 8'!$AS$44/'MMA Rev-Exp Region 8'!$AS$9, 0)","v":{"v":0,"d":"$0.00"}},{"$f":"IFERROR('MMA Rev-Exp Region 8'!$AT$44/'MMA Rev-Exp Region 8'!$AT$9, 0)","v":{"v":0,"d":"$0.00"}},{"$f":"IFERROR('MMA Rev-Exp Region 8'!$AU$44/'MMA Rev-Exp Region 8'!$AU$9, 0)","v":{"v":0,"d":"$0.00"}}]
["MMA",null,null,2016,"2016-12-31","Q4","2017-12-31","Region 8","Operating Expense","Medical Benefits Expense","Dental Services",6.1,"Dental FFS",{"$f":"IFERROR('MMA Rev-Exp Region 8'!$AK$46/'MMA Rev-Exp Region 8'!$AK$9, 0)","v":{"v":0,"d":"$0.00"}},{"$f":"IFERROR('MMA Rev-Exp Region 8'!$AL$46/'MMA Rev-Exp Region 8'!$AL$9, 0)","v":{"v":0,"d":"$0.00"}},{"$f":"IFERROR('MMA Rev-Exp Region 8'!$AM$46/'MMA Rev-Exp Region 8'!$AM$9, 0)","v":{"v":0,"d":"$0.00"}},{"$f":"IFERROR('MMA Rev-Exp Region 8'!$AN$46/'MMA Rev-Exp Region 8'!$AN$9, 0)","v":{"v":0,"d":"$0.00"}},{"$f":"IFERROR('MMA Rev-Exp Region 8'!$AO$46/'MMA Rev-Exp Region 8'!$AO$9, 0)","v":{"v":0,"d":"$0.00"}},{"$f":"IFERROR('MMA Rev-Exp Region 8'!$AP$46/'MMA Rev-Exp Region 8'!$AP$9, 0)","v":{"v":0,"d":"$0.00"}},{"$f":"IFERROR('MMA Rev-Exp Region 8'!$AQ$46/'MMA Rev-Exp Region 8'!$AQ$9, 0)","v":{"v":0,"d":"$0.00"}},{"$f":"IFERROR('MMA Rev-Exp Region 8'!$AR$46/'MMA Rev-Exp Region 8'!$AR$9, 0)","v":{"v":0,"d":"$0.00"}},{"$f":"IFERROR('MMA Rev-Exp Region 8'!$AS$46/'MMA Rev-Exp Region 8'!$AS$9, 0)","v":{"v":0,"d":"$0.00"}},{"$f":"IFERROR('MMA Rev-Exp Region 8'!$AT$46/'MMA Rev-Exp Region 8'!$AT$9, 0)","v":{"v":0,"d":"$0.00"}},{"$f":"IFERROR('MMA Rev-Exp Region 8'!$AU$46/'MMA Rev-Exp Region 8'!$AU$9, 0)","v":{"v":0,"d":"$0.00"}}]
["MMA",null,null,2016,"2016-12-31","Q4","2017-12-31","Region 8","Operating Expense","Medical Benefits Expense","Dental Services",6.2,"Dental Subcapitation",{"$f":"IFERROR('MMA Rev-Exp Region 8'!$AK$47/'MMA Rev-Exp Region 8'!$AK$9, 0)","v":{"v":0,"d":"$0.00"}},{"$f":"IFERROR('MMA Rev-Exp Region 8'!$AL$47/'MMA Rev-Exp Region 8'!$AL$9, 0)","v":{"v":0,"d":"$0.00"}},{"$f":"IFERROR('MMA Rev-Exp Region 8'!$AM$47/'MMA Rev-Exp Region 8'!$AM$9, 0)","v":{"v":0,"d":"$0.00"}},{"$f":"IFERROR('MMA Rev-Exp Region 8'!$AN$47/'MMA Rev-Exp Region 8'!$AN$9, 0)","v":{"v":0,"d":"$0.00"}},{"$f":"IFERROR('MMA Rev-Exp Region 8'!$AO$47/'MMA Rev-Exp Region 8'!$AO$9, 0)","v":{"v":0,"d":"$0.00"}},{"$f":"IFERROR('MMA Rev-Exp Region 8'!$AP$47/'MMA Rev-Exp Region 8'!$AP$9, 0)","v":{"v":0,"d":"$0.00"}},{"$f":"IFERROR('MMA Rev-Exp Region 8'!$AQ$47/'MMA Rev-Exp Region 8'!$AQ$9, 0)","v":{"v":0,"d":"$0.00"}},{"$f":"IFERROR('MMA Rev-Exp Region 8'!$AR$47/'MMA Rev-Exp Region 8'!$AR$9, 0)","v":{"v":0,"d":"$0.00"}},{"$f":"IFERROR('MMA Rev-Exp Region 8'!$AS$47/'MMA Rev-Exp Region 8'!$AS$9, 0)","v":{"v":0,"d":"$0.00"}},{"$f":"IFERROR('MMA Rev-Exp Region 8'!$AT$47/'MMA Rev-Exp Region 8'!$AT$9, 0)","v":{"v":0,"d":"$0.00"}},{"$f":"IFERROR('MMA Rev-Exp Region 8'!$AU$47/'MMA Rev-Exp Region 8'!$AU$9, 0)","v":{"v":0,"d":"$0.00"}}]
["MMA",null,null,2016,"2016-12-31","Q4","2017-12-31","Region 8","Operating Expense","Medical Benefits Expense","Dental Services",6.3,"Ending IBNP for Dental Services",{"$f":"IFERROR('MMA Rev-Exp Region 8'!$AK$48/'MMA Rev-Exp Region 8'!$AK$9, 0)","v":{"v":0,"d":"$0.00"}},{"$f":"IFERROR('MMA Rev-Exp Region 8'!$AL$48/'MMA Rev-Exp Region 8'!$AL$9, 0)","v":{"v":0,"d":"$0.00"}},{"$f":"IFERROR('MMA Rev-Exp Region 8'!$AM$48/'MMA Rev-Exp Region 8'!$AM$9, 0)","v":{"v":0,"d":"$0.00"}},{"$f":"IFERROR('MMA Rev-Exp Region 8'!$AN$48/'MMA Rev-Exp Region 8'!$AN$9, 0)","v":{"v":0,"d":"$0.00"}},{"$f":"IFERROR('MMA Rev-Exp Region 8'!$AO$48/'MMA Rev-Exp Region 8'!$AO$9, 0)","v":{"v":0,"d":"$0.00"}},{"$f":"IFERROR('MMA Rev-Exp Region 8'!$AP$48/'MMA Rev-Exp Region 8'!$AP$9, 0)","v":{"v":0,"d":"$0.00"}},{"$f":"IFERROR('MMA Rev-Exp Region 8'!$AQ$48/'MMA Rev-Exp Region 8'!$AQ$9, 0)","v":{"v":0,"d":"$0.00"}},{"$f":"IFERROR('MMA Rev-Exp Region 8'!$AR$48/'MMA Rev-Exp Region 8'!$AR$9, 0)","v":{"v":0,"d":"$0.00"}},{"$f":"IFERROR('MMA Rev-Exp Region 8'!$AS$48/'MMA Rev-Exp Region 8'!$AS$9, 0)","v":{"v":0,"d":"$0.00"}},{"$f":"IFERROR('MMA Rev-Exp Region 8'!$AT$48/'MMA Rev-Exp Region 8'!$AT$9, 0)","v":{"v":0,"d":"$0.00"}},{"$f":"IFERROR('MMA Rev-Exp Region 8'!$AU$48/'MMA Rev-Exp Region 8'!$AU$9, 0)","v":{"v":0,"d":"$0.00"}}]
["MMA",null,null,2016,"2016-12-31","Q4","2017-12-31","Region 8","Operating Expense","Medical Benefits Expense","Dental Services","6.4","Dental Settlements",{"$f":"IFERROR('MMA Rev-Exp Region 8'!$AK$49/'MMA Rev-Exp Region 8'!$AK$9, 0)","v":{"v":0,"d":"$0.00"}},{"$f":"IFERROR('MMA Rev-Exp Region 8'!$AL$49/'MMA Rev-Exp Region 8'!$AL$9, 0)","v":{"v":0,"d":"$0.00"}},{"$f":"IFERROR('MMA Rev-Exp Region 8'!$AM$49/'MMA Rev-Exp Region 8'!$AM$9, 0)","v":{"v":0,"d":"$0.00"}},{"$f":"IFERROR('MMA Rev-Exp Region 8'!$AN$49/'MMA Rev-Exp Region 8'!$AN$9, 0)","v":{"v":0,"d":"$0.00"}},{"$f":"IFERROR('MMA Rev-Exp Region 8'!$AO$49/'MMA Rev-Exp Region 8'!$AO$9, 0)","v":{"v":0,"d":"$0.00"}},{"$f":"IFERROR('MMA Rev-Exp Region 8'!$AP$49/'MMA Rev-Exp Region 8'!$AP$9, 0)","v":{"v":0,"d":"$0.00"}},{"$f":"IFERROR('MMA Rev-Exp Region 8'!$AQ$49/'MMA Rev-Exp Region 8'!$AQ$9, 0)","v":{"v":0,"d":"$0.00"}},{"$f":"IFERROR('MMA Rev-Exp Region 8'!$AR$49/'MMA Rev-Exp Region 8'!$AR$9, 0)","v":{"v":0,"d":"$0.00"}},{"$f":"IFERROR('MMA Rev-Exp Region 8'!$AS$49/'MMA Rev-Exp Region 8'!$AS$9, 0)","v":{"v":0,"d":"$0.00"}},{"$f":"IFERROR('MMA Rev-Exp Region 8'!$AT$49/'MMA Rev-Exp Region 8'!$AT$9, 0)","v":{"v":0,"d":"$0.00"}},{"$f":"IFERROR('MMA Rev-Exp Region 8'!$AU$49/'MMA Rev-Exp Region 8'!$AU$9, 0)","v":{"v":0,"d":"$0.00"}}]
["MMA",null,null,2016,"2016-12-31","Q4","2017-12-31","Region 8","Operating Expense","Medical Benefits Expense","Transportation Services",7.1,"Transportation FFS",{"$f":"IFERROR('MMA Rev-Exp Region 8'!$AK$51/'MMA Rev-Exp Region 8'!$AK$9, 0)","v":{"v":0,"d":"$0.00"}},{"$f":"IFERROR('MMA Rev-Exp Region 8'!$AL$51/'MMA Rev-Exp Region 8'!$AL$9, 0)","v":{"v":0,"d":"$0.00"}},{"$f":"IFERROR('MMA Rev-Exp Region 8'!$AM$51/'MMA Rev-Exp Region 8'!$AM$9, 0)","v":{"v":0,"d":"$0.00"}},{"$f":"IFERROR('MMA Rev-Exp Region 8'!$AN$51/'MMA Rev-Exp Region 8'!$AN$9, 0)","v":{"v":0,"d":"$0.00"}},{"$f":"IFERROR('MMA Rev-Exp Region 8'!$AO$51/'MMA Rev-Exp Region 8'!$AO$9, 0)","v":{"v":0,"d":"$0.00"}},{"$f":"IFERROR('MMA Rev-Exp Region 8'!$AP$51/'MMA Rev-Exp Region 8'!$AP$9, 0)","v":{"v":0,"d":"$0.00"}},{"$f":"IFERROR('MMA Rev-Exp Region 8'!$AQ$51/'MMA Rev-Exp Region 8'!$AQ$9, 0)","v":{"v":0,"d":"$0.00"}},{"$f":"IFERROR('MMA Rev-Exp Region 8'!$AR$51/'MMA Rev-Exp Region 8'!$AR$9, 0)","v":{"v":0,"d":"$0.00"}},{"$f":"IFERROR('MMA Rev-Exp Region 8'!$AS$51/'MMA Rev-Exp Region 8'!$AS$9, 0)","v":{"v":0,"d":"$0.00"}},{"$f":"IFERROR('MMA Rev-Exp Region 8'!$AT$51/'MMA Rev-Exp Region 8'!$AT$9, 0)","v":{"v":0,"d":"$0.00"}},{"$f":"IFERROR('MMA Rev-Exp Region 8'!$AU$51/'MMA Rev-Exp Region 8'!$AU$9, 0)","v":{"v":0,"d":"$0.00"}}]
["MMA",null,null,2016,"2016-12-31","Q4","2017-12-31","Region 8","Operating Expense","Medical Benefits Expense","Transportation Services",7.2,"Transportation Subcapitation",{"$f":"IFERROR('MMA Rev-Exp Region 8'!$AK$52/'MMA Rev-Exp Region 8'!$AK$9, 0)","v":{"v":0,"d":"$0.00"}},{"$f":"IFERROR('MMA Rev-Exp Region 8'!$AL$52/'MMA Rev-Exp Region 8'!$AL$9, 0)","v":{"v":0,"d":"$0.00"}},{"$f":"IFERROR('MMA Rev-Exp Region 8'!$AM$52/'MMA Rev-Exp Region 8'!$AM$9, 0)","v":{"v":0,"d":"$0.00"}},{"$f":"IFERROR('MMA Rev-Exp Region 8'!$AN$52/'MMA Rev-Exp Region 8'!$AN$9, 0)","v":{"v":0,"d":"$0.00"}},{"$f":"IFERROR('MMA Rev-Exp Region 8'!$AO$52/'MMA Rev-Exp Region 8'!$AO$9, 0)","v":{"v":0,"d":"$0.00"}},{"$f":"IFERROR('MMA Rev-Exp Region 8'!$AP$52/'MMA Rev-Exp Region 8'!$AP$9, 0)","v":{"v":0,"d":"$0.00"}},{"$f":"IFERROR('MMA Rev-Exp Region 8'!$AQ$52/'MMA Rev-Exp Region 8'!$AQ$9, 0)","v":{"v":0,"d":"$0.00"}},{"$f":"IFERROR('MMA Rev-Exp Region 8'!$AR$52/'MMA Rev-Exp Region 8'!$AR$9, 0)","v":{"v":0,"d":"$0.00"}},{"$f":"IFERROR('MMA Rev-Exp Region 8'!$AS$52/'MMA Rev-Exp Region 8'!$AS$9, 0)","v":{"v":0,"d":"$0.00"}},{"$f":"IFERROR('MMA Rev-Exp Region 8'!$AT$52/'MMA Rev-Exp Region 8'!$AT$9, 0)","v":{"v":0,"d":"$0.00"}},{"$f":"IFERROR('MMA Rev-Exp Region 8'!$AU$52/'MMA Rev-Exp Region 8'!$AU$9, 0)","v":{"v":0,"d":"$0.00"}}]
["MMA",null,null,2016,"2016-12-31","Q4","2017-12-31","Region 8","Operating Expense","Medical Benefits Expense","Transportation Services",7.3,"Ending IBNP for Transportation",{"$f":"IFERROR('MMA Rev-Exp Region 8'!$AK$53/'MMA Rev-Exp Region 8'!$AK$9, 0)","v":{"v":0,"d":"$0.00"}},{"$f":"IFERROR('MMA Rev-Exp Region 8'!$AL$53/'MMA Rev-Exp Region 8'!$AL$9, 0)","v":{"v":0,"d":"$0.00"}},{"$f":"IFERROR('MMA Rev-Exp Region 8'!$AM$53/'MMA Rev-Exp Region 8'!$AM$9, 0)","v":{"v":0,"d":"$0.00"}},{"$f":"IFERROR('MMA Rev-Exp Region 8'!$AN$53/'MMA Rev-Exp Region 8'!$AN$9, 0)","v":{"v":0,"d":"$0.00"}},{"$f":"IFERROR('MMA Rev-Exp Region 8'!$AO$53/'MMA Rev-Exp Region 8'!$AO$9, 0)","v":{"v":0,"d":"$0.00"}},{"$f":"IFERROR('MMA Rev-Exp Region 8'!$AP$53/'MMA Rev-Exp Region 8'!$AP$9, 0)","v":{"v":0,"d":"$0.00"}},{"$f":"IFERROR('MMA Rev-Exp Region 8'!$AQ$53/'MMA Rev-Exp Region 8'!$AQ$9, 0)","v":{"v":0,"d":"$0.00"}},{"$f":"IFERROR('MMA Rev-Exp Region 8'!$AR$53/'MMA Rev-Exp Region 8'!$AR$9, 0)","v":{"v":0,"d":"$0.00"}},{"$f":"IFERROR('MMA Rev-Exp Region 8'!$AS$53/'MMA Rev-Exp Region 8'!$AS$9, 0)","v":{"v":0,"d":"$0.00"}},{"$f":"IFERROR('MMA Rev-Exp Region 8'!$AT$53/'MMA Rev-Exp Region 8'!$AT$9, 0)","v":{"v":0,"d":"$0.00"}},{"$f":"IFERROR('MMA Rev-Exp Region 8'!$AU$53/'MMA Rev-Exp Region 8'!$AU$9, 0)","v":{"v":0,"d":"$0.00"}}]
["MMA",null,null,2016,"2016-12-31","Q4","2017-12-31","Region 8","Operating Expense","Medical Benefits Expense","Transportation Services","7.4","Transportation Settlements",{"$f":"IFERROR('MMA Rev-Exp Region 8'!$AK$54/'MMA Rev-Exp Region 8'!$AK$9, 0)","v":{"v":0,"d":"$0.00"}},{"$f":"IFERROR('MMA Rev-Exp Region 8'!$AL$54/'MMA Rev-Exp Region 8'!$AL$9, 0)","v":{"v":0,"d":"$0.00"}},{"$f":"IFERROR('MMA Rev-Exp Region 8'!$AM$54/'MMA Rev-Exp Region 8'!$AM$9, 0)","v":{"v":0,"d":"$0.00"}},{"$f":"IFERROR('MMA Rev-Exp Region 8'!$AN$54/'MMA Rev-Exp Region 8'!$AN$9, 0)","v":{"v":0,"d":"$0.00"}},{"$f":"IFERROR('MMA Rev-Exp Region 8'!$AO$54/'MMA Rev-Exp Region 8'!$AO$9, 0)","v":{"v":0,"d":"$0.00"}},{"$f":"IFERROR('MMA Rev-Exp Region 8'!$AP$54/'MMA Rev-Exp Region 8'!$AP$9, 0)","v":{"v":0,"d":"$0.00"}},{"$f":"IFERROR('MMA Rev-Exp Region 8'!$AQ$54/'MMA Rev-Exp Region 8'!$AQ$9, 0)","v":{"v":0,"d":"$0.00"}},{"$f":"IFERROR('MMA Rev-Exp Region 8'!$AR$54/'MMA Rev-Exp Region 8'!$AR$9, 0)","v":{"v":0,"d":"$0.00"}},{"$f":"IFERROR('MMA Rev-Exp Region 8'!$AS$54/'MMA Rev-Exp Region 8'!$AS$9, 0)","v":{"v":0,"d":"$0.00"}},{"$f":"IFERROR('MMA Rev-Exp Region 8'!$AT$54/'MMA Rev-Exp Region 8'!$AT$9, 0)","v":{"v":0,"d":"$0.00"}},{"$f":"IFERROR('MMA Rev-Exp Region 8'!$AU$54/'MMA Rev-Exp Region 8'!$AU$9, 0)","v":{"v":0,"d":"$0.00"}}]
["MMA",null,null,2016,"2016-12-31","Q4","2017-12-31","Region 8","Operating Expense","Medical Benefits Expense","Pharmacy Services",8.1,"Prescription Drugs FFS",{"$f":"IFERROR('MMA Rev-Exp Region 8'!$AK$56/'MMA Rev-Exp Region 8'!$AK$9, 0)","v":{"v":0,"d":"$0.00"}},{"$f":"IFERROR('MMA Rev-Exp Region 8'!$AL$56/'MMA Rev-Exp Region 8'!$AL$9, 0)","v":{"v":0,"d":"$0.00"}},{"$f":"IFERROR('MMA Rev-Exp Region 8'!$AM$56/'MMA Rev-Exp Region 8'!$AM$9, 0)","v":{"v":0,"d":"$0.00"}},{"$f":"IFERROR('MMA Rev-Exp Region 8'!$AN$56/'MMA Rev-Exp Region 8'!$AN$9, 0)","v":{"v":0,"d":"$0.00"}},{"$f":"IFERROR('MMA Rev-Exp Region 8'!$AO$56/'MMA Rev-Exp Region 8'!$AO$9, 0)","v":{"v":0,"d":"$0.00"}},{"$f":"IFERROR('MMA Rev-Exp Region 8'!$AP$56/'MMA Rev-Exp Region 8'!$AP$9, 0)","v":{"v":0,"d":"$0.00"}},{"$f":"IFERROR('MMA Rev-Exp Region 8'!$AQ$56/'MMA Rev-Exp Region 8'!$AQ$9, 0)","v":{"v":0,"d":"$0.00"}},{"$f":"IFERROR('MMA Rev-Exp Region 8'!$AR$56/'MMA Rev-Exp Region 8'!$AR$9, 0)","v":{"v":0,"d":"$0.00"}},{"$f":"IFERROR('MMA Rev-Exp Region 8'!$AS$56/'MMA Rev-Exp Region 8'!$AS$9, 0)","v":{"v":0,"d":"$0.00"}},{"$f":"IFERROR('MMA Rev-Exp Region 8'!$AT$56/'MMA Rev-Exp Region 8'!$AT$9, 0)","v":{"v":0,"d":"$0.00"}},{"$f":"IFERROR('MMA Rev-Exp Region 8'!$AU$56/'MMA Rev-Exp Region 8'!$AU$9, 0)","v":{"v":0,"d":"$0.00"}}]
["MMA",null,null,2016,"2016-12-31","Q4","2017-12-31","Region 8","Operating Expense","Medical Benefits Expense","Pharmacy Services","8.2","Hepatitis C Prescription Drug FFS",{"$f":"IFERROR('MMA Rev-Exp Region 8'!$AK$57/'MMA Rev-Exp Region 8'!$AK$9, 0)","v":{"v":0,"d":"$0.00"}},{"$f":"IFERROR('MMA Rev-Exp Region 8'!$AL$57/'MMA Rev-Exp Region 8'!$AL$9, 0)","v":{"v":0,"d":"$0.00"}},{"$f":"IFERROR('MMA Rev-Exp Region 8'!$AM$57/'MMA Rev-Exp Region 8'!$AM$9, 0)","v":{"v":0,"d":"$0.00"}},{"$f":"IFERROR('MMA Rev-Exp Region 8'!$AN$57/'MMA Rev-Exp Region 8'!$AN$9, 0)","v":{"v":0,"d":"$0.00"}},{"$f":"IFERROR('MMA Rev-Exp Region 8'!$AO$57/'MMA Rev-Exp Region 8'!$AO$9, 0)","v":{"v":0,"d":"$0.00"}},{"$f":"IFERROR('MMA Rev-Exp Region 8'!$AP$57/'MMA Rev-Exp Region 8'!$AP$9, 0)","v":{"v":0,"d":"$0.00"}},{"$f":"IFERROR('MMA Rev-Exp Region 8'!$AQ$57/'MMA Rev-Exp Region 8'!$AQ$9, 0)","v":{"v":0,"d":"$0.00"}},{"$f":"IFERROR('MMA Rev-Exp Region 8'!$AR$57/'MMA Rev-Exp Region 8'!$AR$9, 0)","v":{"v":0,"d":"$0.00"}},{"$f":"IFERROR('MMA Rev-Exp Region 8'!$AS$57/'MMA Rev-Exp Region 8'!$AS$9, 0)","v":{"v":0,"d":"$0.00"}},{"$f":"IFERROR('MMA Rev-Exp Region 8'!$AT$57/'MMA Rev-Exp Region 8'!$AT$9, 0)","v":{"v":0,"d":"$0.00"}},{"$f":"IFERROR('MMA Rev-Exp Region 8'!$AU$57/'MMA Rev-Exp Region 8'!$AU$9, 0)","v":{"v":0,"d":"$0.00"}}]
["MMA",null,null,2016,"2016-12-31","Q4","2017-12-31","Region 8","Operating Expense","Medical Benefits Expense","Pharmacy Services","8.3","Ending IBNP for Prescription Drugs",{"$f":"IFERROR('MMA Rev-Exp Region 8'!$AK$58/'MMA Rev-Exp Region 8'!$AK$9, 0)","v":{"v":0,"d":"$0.00"}},{"$f":"IFERROR('MMA Rev-Exp Region 8'!$AL$58/'MMA Rev-Exp Region 8'!$AL$9, 0)","v":{"v":0,"d":"$0.00"}},{"$f":"IFERROR('MMA Rev-Exp Region 8'!$AM$58/'MMA Rev-Exp Region 8'!$AM$9, 0)","v":{"v":0,"d":"$0.00"}},{"$f":"IFERROR('MMA Rev-Exp Region 8'!$AN$58/'MMA Rev-Exp Region 8'!$AN$9, 0)","v":{"v":0,"d":"$0.00"}},{"$f":"IFERROR('MMA Rev-Exp Region 8'!$AO$58/'MMA Rev-Exp Region 8'!$AO$9, 0)","v":{"v":0,"d":"$0.00"}},{"$f":"IFERROR('MMA Rev-Exp Region 8'!$AP$58/'MMA Rev-Exp Region 8'!$AP$9, 0)","v":{"v":0,"d":"$0.00"}},{"$f":"IFERROR('MMA Rev-Exp Region 8'!$AQ$58/'MMA Rev-Exp Region 8'!$AQ$9, 0)","v":{"v":0,"d":"$0.00"}},{"$f":"IFERROR('MMA Rev-Exp Region 8'!$AR$58/'MMA Rev-Exp Region 8'!$AR$9, 0)","v":{"v":0,"d":"$0.00"}},{"$f":"IFERROR('MMA Rev-Exp Region 8'!$AS$58/'MMA Rev-Exp Region 8'!$AS$9, 0)","v":{"v":0,"d":"$0.00"}},{"$f":"IFERROR('MMA Rev-Exp Region 8'!$AT$58/'MMA Rev-Exp Region 8'!$AT$9, 0)","v":{"v":0,"d":"$0.00"}},{"$f":"IFERROR('MMA Rev-Exp Region 8'!$AU$58/'MMA Rev-Exp Region 8'!$AU$9, 0)","v":{"v":0,"d":"$0.00"}}]
["MMA",null,null,2016,"2016-12-31","Q4","2017-12-31","Region 8","Operating Expense","Medical Benefits Expense","Pharmacy Services","8.4","Prescription Drug Rebates ",{"$f":"IFERROR('MMA Rev-Exp Region 8'!$AK$59/'MMA Rev-Exp Region 8'!$AK$9, 0)","v":{"v":0,"d":"$0.00"}},{"$f":"IFERROR('MMA Rev-Exp Region 8'!$AL$59/'MMA Rev-Exp Region 8'!$AL$9, 0)","v":{"v":0,"d":"$0.00"}},{"$f":"IFERROR('MMA Rev-Exp Region 8'!$AM$59/'MMA Rev-Exp Region 8'!$AM$9, 0)","v":{"v":0,"d":"$0.00"}},{"$f":"IFERROR('MMA Rev-Exp Region 8'!$AN$59/'MMA Rev-Exp Region 8'!$AN$9, 0)","v":{"v":0,"d":"$0.00"}},{"$f":"IFERROR('MMA Rev-Exp Region 8'!$AO$59/'MMA Rev-Exp Region 8'!$AO$9, 0)","v":{"v":0,"d":"$0.00"}},{"$f":"IFERROR('MMA Rev-Exp Region 8'!$AP$59/'MMA Rev-Exp Region 8'!$AP$9, 0)","v":{"v":0,"d":"$0.00"}},{"$f":"IFERROR('MMA Rev-Exp Region 8'!$AQ$59/'MMA Rev-Exp Region 8'!$AQ$9, 0)","v":{"v":0,"d":"$0.00"}},{"$f":"IFERROR('MMA Rev-Exp Region 8'!$AR$59/'MMA Rev-Exp Region 8'!$AR$9, 0)","v":{"v":0,"d":"$0.00"}},{"$f":"IFERROR('MMA Rev-Exp Region 8'!$AS$59/'MMA Rev-Exp Region 8'!$AS$9, 0)","v":{"v":0,"d":"$0.00"}},{"$f":"IFERROR('MMA Rev-Exp Region 8'!$AT$59/'MMA Rev-Exp Region 8'!$AT$9, 0)","v":{"v":0,"d":"$0.00"}},{"$f":"IFERROR('MMA Rev-Exp Region 8'!$AU$59/'MMA Rev-Exp Region 8'!$AU$9, 0)","v":{"v":0,"d":"$0.00"}}]
["MMA",null,null,2016,"2016-12-31","Q4","2017-12-31","Region 8","Operating Expense","Medical Benefits Expense","Pharmacy Services","8.5","Ending accrual for Rebates receivable",{"$f":"IFERROR('MMA Rev-Exp Region 8'!$AK$60/'MMA Rev-Exp Region 8'!$AK$9, 0)","v":{"v":0,"d":"$0.00"}},{"$f":"IFERROR('MMA Rev-Exp Region 8'!$AL$60/'MMA Rev-Exp Region 8'!$AL$9, 0)","v":{"v":0,"d":"$0.00"}},{"$f":"IFERROR('MMA Rev-Exp Region 8'!$AM$60/'MMA Rev-Exp Region 8'!$AM$9, 0)","v":{"v":0,"d":"$0.00"}},{"$f":"IFERROR('MMA Rev-Exp Region 8'!$AN$60/'MMA Rev-Exp Region 8'!$AN$9, 0)","v":{"v":0,"d":"$0.00"}},{"$f":"IFERROR('MMA Rev-Exp Region 8'!$AO$60/'MMA Rev-Exp Region 8'!$AO$9, 0)","v":{"v":0,"d":"$0.00"}},{"$f":"IFERROR('MMA Rev-Exp Region 8'!$AP$60/'MMA Rev-Exp Region 8'!$AP$9, 0)","v":{"v":0,"d":"$0.00"}},{"$f":"IFERROR('MMA Rev-Exp Region 8'!$AQ$60/'MMA Rev-Exp Region 8'!$AQ$9, 0)","v":{"v":0,"d":"$0.00"}},{"$f":"IFERROR('MMA Rev-Exp Region 8'!$AR$60/'MMA Rev-Exp Region 8'!$AR$9, 0)","v":{"v":0,"d":"$0.00"}},{"$f":"IFERROR('MMA Rev-Exp Region 8'!$AS$60/'MMA Rev-Exp Region 8'!$AS$9, 0)","v":{"v":0,"d":"$0.00"}},{"$f":"IFERROR('MMA Rev-Exp Region 8'!$AT$60/'MMA Rev-Exp Region 8'!$AT$9, 0)","v":{"v":0,"d":"$0.00"}},{"$f":"IFERROR('MMA Rev-Exp Region 8'!$AU$60/'MMA Rev-Exp Region 8'!$AU$9, 0)","v":{"v":0,"d":"$0.00"}}]
["MMA",null,null,2016,"2016-12-31","Q4","2017-12-31","Region 8","Operating Expense","Medical Benefits Expense","Pharmacy Services","8.6","Prescription Drugs Subcapitation",{"$f":"IFERROR('MMA Rev-Exp Region 8'!$AK$61/'MMA Rev-Exp Region 8'!$AK$9, 0)","v":{"v":0,"d":"$0.00"}},{"$f":"IFERROR('MMA Rev-Exp Region 8'!$AL$61/'MMA Rev-Exp Region 8'!$AL$9, 0)","v":{"v":0,"d":"$0.00"}},{"$f":"IFERROR('MMA Rev-Exp Region 8'!$AM$61/'MMA Rev-Exp Region 8'!$AM$9, 0)","v":{"v":0,"d":"$0.00"}},{"$f":"IFERROR('MMA Rev-Exp Region 8'!$AN$61/'MMA Rev-Exp Region 8'!$AN$9, 0)","v":{"v":0,"d":"$0.00"}},{"$f":"IFERROR('MMA Rev-Exp Region 8'!$AO$61/'MMA Rev-Exp Region 8'!$AO$9, 0)","v":{"v":0,"d":"$0.00"}},{"$f":"IFERROR('MMA Rev-Exp Region 8'!$AP$61/'MMA Rev-Exp Region 8'!$AP$9, 0)","v":{"v":0,"d":"$0.00"}},{"$f":"IFERROR('MMA Rev-Exp Region 8'!$AQ$61/'MMA Rev-Exp Region 8'!$AQ$9, 0)","v":{"v":0,"d":"$0.00"}},{"$f":"IFERROR('MMA Rev-Exp Region 8'!$AR$61/'MMA Rev-Exp Region 8'!$AR$9, 0)","v":{"v":0,"d":"$0.00"}},{"$f":"IFERROR('MMA Rev-Exp Region 8'!$AS$61/'MMA Rev-Exp Region 8'!$AS$9, 0)","v":{"v":0,"d":"$0.00"}},{"$f":"IFERROR('MMA Rev-Exp Region 8'!$AT$61/'MMA Rev-Exp Region 8'!$AT$9, 0)","v":{"v":0,"d":"$0.00"}},{"$f":"IFERROR('MMA Rev-Exp Region 8'!$AU$61/'MMA Rev-Exp Region 8'!$AU$9, 0)","v":{"v":0,"d":"$0.00"}}]
["MMA",null,null,2016,"2016-12-31","Q4","2017-12-31","Region 8","Operating Expense","Medical Benefits Expense","Pharmacy Services","8.7","Prescription Drug Settlements",{"$f":"IFERROR('MMA Rev-Exp Region 8'!$AK$62/'MMA Rev-Exp Region 8'!$AK$9, 0)","v":{"v":0,"d":"$0.00"}},{"$f":"IFERROR('MMA Rev-Exp Region 8'!$AL$62/'MMA Rev-Exp Region 8'!$AL$9, 0)","v":{"v":0,"d":"$0.00"}},{"$f":"IFERROR('MMA Rev-Exp Region 8'!$AM$62/'MMA Rev-Exp Region 8'!$AM$9, 0)","v":{"v":0,"d":"$0.00"}},{"$f":"IFERROR('MMA Rev-Exp Region 8'!$AN$62/'MMA Rev-Exp Region 8'!$AN$9, 0)","v":{"v":0,"d":"$0.00"}},{"$f":"IFERROR('MMA Rev-Exp Region 8'!$AO$62/'MMA Rev-Exp Region 8'!$AO$9, 0)","v":{"v":0,"d":"$0.00"}},{"$f":"IFERROR('MMA Rev-Exp Region 8'!$AP$62/'MMA Rev-Exp Region 8'!$AP$9, 0)","v":{"v":0,"d":"$0.00"}},{"$f":"IFERROR('MMA Rev-Exp Region 8'!$AQ$62/'MMA Rev-Exp Region 8'!$AQ$9, 0)","v":{"v":0,"d":"$0.00"}},{"$f":"IFERROR('MMA Rev-Exp Region 8'!$AR$62/'MMA Rev-Exp Region 8'!$AR$9, 0)","v":{"v":0,"d":"$0.00"}},{"$f":"IFERROR('MMA Rev-Exp Region 8'!$AS$62/'MMA Rev-Exp Region 8'!$AS$9, 0)","v":{"v":0,"d":"$0.00"}},{"$f":"IFERROR('MMA Rev-Exp Region 8'!$AT$62/'MMA Rev-Exp Region 8'!$AT$9, 0)","v":{"v":0,"d":"$0.00"}},{"$f":"IFERROR('MMA Rev-Exp Region 8'!$AU$62/'MMA Rev-Exp Region 8'!$AU$9, 0)","v":{"v":0,"d":"$0.00"}}]
["MMA",null,null,2016,"2016-12-31","Q4","2017-12-31","Region 8","Operating Expense","Medical Benefits Expense","Other MMA Services",9.1,"Home Health, Private Duty Nursing, Personal Care FFS",{"$f":"IFERROR('MMA Rev-Exp Region 8'!$AK$64/'MMA Rev-Exp Region 8'!$AK$9, 0)","v":{"v":0,"d":"$0.00"}},{"$f":"IFERROR('MMA Rev-Exp Region 8'!$AL$64/'MMA Rev-Exp Region 8'!$AL$9, 0)","v":{"v":0,"d":"$0.00"}},{"$f":"IFERROR('MMA Rev-Exp Region 8'!$AM$64/'MMA Rev-Exp Region 8'!$AM$9, 0)","v":{"v":0,"d":"$0.00"}},{"$f":"IFERROR('MMA Rev-Exp Region 8'!$AN$64/'MMA Rev-Exp Region 8'!$AN$9, 0)","v":{"v":0,"d":"$0.00"}},{"$f":"IFERROR('MMA Rev-Exp Region 8'!$AO$64/'MMA Rev-Exp Region 8'!$AO$9, 0)","v":{"v":0,"d":"$0.00"}},{"$f":"IFERROR('MMA Rev-Exp Region 8'!$AP$64/'MMA Rev-Exp Region 8'!$AP$9, 0)","v":{"v":0,"d":"$0.00"}},{"$f":"IFERROR('MMA Rev-Exp Region 8'!$AQ$64/'MMA Rev-Exp Region 8'!$AQ$9, 0)","v":{"v":0,"d":"$0.00"}},{"$f":"IFERROR('MMA Rev-Exp Region 8'!$AR$64/'MMA Rev-Exp Region 8'!$AR$9, 0)","v":{"v":0,"d":"$0.00"}},{"$f":"IFERROR('MMA Rev-Exp Region 8'!$AS$64/'MMA Rev-Exp Region 8'!$AS$9, 0)","v":{"v":0,"d":"$0.00"}},{"$f":"IFERROR('MMA Rev-Exp Region 8'!$AT$64/'MMA Rev-Exp Region 8'!$AT$9, 0)","v":{"v":0,"d":"$0.00"}},{"$f":"IFERROR('MMA Rev-Exp Region 8'!$AU$64/'MMA Rev-Exp Region 8'!$AU$9, 0)","v":{"v":0,"d":"$0.00"}}]
["MMA",null,null,2016,"2016-12-31","Q4","2017-12-31","Region 8","Operating Expense","Medical Benefits Expense","Other MMA Services","9.2","Hospice FFS",{"$f":"IFERROR('MMA Rev-Exp Region 8'!$AK$65/'MMA Rev-Exp Region 8'!$AK$9, 0)","v":{"v":0,"d":"$0.00"}},{"$f":"IFERROR('MMA Rev-Exp Region 8'!$AL$65/'MMA Rev-Exp Region 8'!$AL$9, 0)","v":{"v":0,"d":"$0.00"}},{"$f":"IFERROR('MMA Rev-Exp Region 8'!$AM$65/'MMA Rev-Exp Region 8'!$AM$9, 0)","v":{"v":0,"d":"$0.00"}},{"$f":"IFERROR('MMA Rev-Exp Region 8'!$AN$65/'MMA Rev-Exp Region 8'!$AN$9, 0)","v":{"v":0,"d":"$0.00"}},{"$f":"IFERROR('MMA Rev-Exp Region 8'!$AO$65/'MMA Rev-Exp Region 8'!$AO$9, 0)","v":{"v":0,"d":"$0.00"}},{"$f":"IFERROR('MMA Rev-Exp Region 8'!$AP$65/'MMA Rev-Exp Region 8'!$AP$9, 0)","v":{"v":0,"d":"$0.00"}},{"$f":"IFERROR('MMA Rev-Exp Region 8'!$AQ$65/'MMA Rev-Exp Region 8'!$AQ$9, 0)","v":{"v":0,"d":"$0.00"}},{"$f":"IFERROR('MMA Rev-Exp Region 8'!$AR$65/'MMA Rev-Exp Region 8'!$AR$9, 0)","v":{"v":0,"d":"$0.00"}},{"$f":"IFERROR('MMA Rev-Exp Region 8'!$AS$65/'MMA Rev-Exp Region 8'!$AS$9, 0)","v":{"v":0,"d":"$0.00"}},{"$f":"IFERROR('MMA Rev-Exp Region 8'!$AT$65/'MMA Rev-Exp Region 8'!$AT$9, 0)","v":{"v":0,"d":"$0.00"}},{"$f":"IFERROR('MMA Rev-Exp Region 8'!$AU$65/'MMA Rev-Exp Region 8'!$AU$9, 0)","v":{"v":0,"d":"$0.00"}}]
["MMA",null,null,2016,"2016-12-31","Q4","2017-12-31","Region 8","Operating Expense","Medical Benefits Expense","Other MMA Services","9.3","DME FFS",{"$f":"IFERROR('MMA Rev-Exp Region 8'!$AK$66/'MMA Rev-Exp Region 8'!$AK$9, 0)","v":{"v":0,"d":"$0.00"}},{"$f":"IFERROR('MMA Rev-Exp Region 8'!$AL$66/'MMA Rev-Exp Region 8'!$AL$9, 0)","v":{"v":0,"d":"$0.00"}},{"$f":"IFERROR('MMA Rev-Exp Region 8'!$AM$66/'MMA Rev-Exp Region 8'!$AM$9, 0)","v":{"v":0,"d":"$0.00"}},{"$f":"IFERROR('MMA Rev-Exp Region 8'!$AN$66/'MMA Rev-Exp Region 8'!$AN$9, 0)","v":{"v":0,"d":"$0.00"}},{"$f":"IFERROR('MMA Rev-Exp Region 8'!$AO$66/'MMA Rev-Exp Region 8'!$AO$9, 0)","v":{"v":0,"d":"$0.00"}},{"$f":"IFERROR('MMA Rev-Exp Region 8'!$AP$66/'MMA Rev-Exp Region 8'!$AP$9, 0)","v":{"v":0,"d":"$0.00"}},{"$f":"IFERROR('MMA Rev-Exp Region 8'!$AQ$66/'MMA Rev-Exp Region 8'!$AQ$9, 0)","v":{"v":0,"d":"$0.00"}},{"$f":"IFERROR('MMA Rev-Exp Region 8'!$AR$66/'MMA Rev-Exp Region 8'!$AR$9, 0)","v":{"v":0,"d":"$0.00"}},{"$f":"IFERROR('MMA Rev-Exp Region 8'!$AS$66/'MMA Rev-Exp Region 8'!$AS$9, 0)","v":{"v":0,"d":"$0.00"}},{"$f":"IFERROR('MMA Rev-Exp Region 8'!$AT$66/'MMA Rev-Exp Region 8'!$AT$9, 0)","v":{"v":0,"d":"$0.00"}},{"$f":"IFERROR('MMA Rev-Exp Region 8'!$AU$66/'MMA Rev-Exp Region 8'!$AU$9, 0)","v":{"v":0,"d":"$0.00"}}]
["MMA",null,null,2016,"2016-12-31","Q4","2017-12-31","Region 8","Operating Expense","Medical Benefits Expense","Other MMA Services","9.4","Other State Plan Services FFS",{"$f":"IFERROR('MMA Rev-Exp Region 8'!$AK$67/'MMA Rev-Exp Region 8'!$AK$9, 0)","v":{"v":0,"d":"$0.00"}},{"$f":"IFERROR('MMA Rev-Exp Region 8'!$AL$67/'MMA Rev-Exp Region 8'!$AL$9, 0)","v":{"v":0,"d":"$0.00"}},{"$f":"IFERROR('MMA Rev-Exp Region 8'!$AM$67/'MMA Rev-Exp Region 8'!$AM$9, 0)","v":{"v":0,"d":"$0.00"}},{"$f":"IFERROR('MMA Rev-Exp Region 8'!$AN$67/'MMA Rev-Exp Region 8'!$AN$9, 0)","v":{"v":0,"d":"$0.00"}},{"$f":"IFERROR('MMA Rev-Exp Region 8'!$AO$67/'MMA Rev-Exp Region 8'!$AO$9, 0)","v":{"v":0,"d":"$0.00"}},{"$f":"IFERROR('MMA Rev-Exp Region 8'!$AP$67/'MMA Rev-Exp Region 8'!$AP$9, 0)","v":{"v":0,"d":"$0.00"}},{"$f":"IFERROR('MMA Rev-Exp Region 8'!$AQ$67/'MMA Rev-Exp Region 8'!$AQ$9, 0)","v":{"v":0,"d":"$0.00"}},{"$f":"IFERROR('MMA Rev-Exp Region 8'!$AR$67/'MMA Rev-Exp Region 8'!$AR$9, 0)","v":{"v":0,"d":"$0.00"}},{"$f":"IFERROR('MMA Rev-Exp Region 8'!$AS$67/'MMA Rev-Exp Region 8'!$AS$9, 0)","v":{"v":0,"d":"$0.00"}},{"$f":"IFERROR('MMA Rev-Exp Region 8'!$AT$67/'MMA Rev-Exp Region 8'!$AT$9, 0)","v":{"v":0,"d":"$0.00"}},{"$f":"IFERROR('MMA Rev-Exp Region 8'!$AU$67/'MMA Rev-Exp Region 8'!$AU$9, 0)","v":{"v":0,"d":"$0.00"}}]
["MMA",null,null,2016,"2016-12-31","Q4","2017-12-31","Region 8","Operating Expense","Medical Benefits Expense","Other MMA Services","9.5","Other Services Subcapitation",{"$f":"IFERROR('MMA Rev-Exp Region 8'!$AK$68/'MMA Rev-Exp Region 8'!$AK$9, 0)","v":{"v":0,"d":"$0.00"}},{"$f":"IFERROR('MMA Rev-Exp Region 8'!$AL$68/'MMA Rev-Exp Region 8'!$AL$9, 0)","v":{"v":0,"d":"$0.00"}},{"$f":"IFERROR('MMA Rev-Exp Region 8'!$AM$68/'MMA Rev-Exp Region 8'!$AM$9, 0)","v":{"v":0,"d":"$0.00"}},{"$f":"IFERROR('MMA Rev-Exp Region 8'!$AN$68/'MMA Rev-Exp Region 8'!$AN$9, 0)","v":{"v":0,"d":"$0.00"}},{"$f":"IFERROR('MMA Rev-Exp Region 8'!$AO$68/'MMA Rev-Exp Region 8'!$AO$9, 0)","v":{"v":0,"d":"$0.00"}},{"$f":"IFERROR('MMA Rev-Exp Region 8'!$AP$68/'MMA Rev-Exp Region 8'!$AP$9, 0)","v":{"v":0,"d":"$0.00"}},{"$f":"IFERROR('MMA Rev-Exp Region 8'!$AQ$68/'MMA Rev-Exp Region 8'!$AQ$9, 0)","v":{"v":0,"d":"$0.00"}},{"$f":"IFERROR('MMA Rev-Exp Region 8'!$AR$68/'MMA Rev-Exp Region 8'!$AR$9, 0)","v":{"v":0,"d":"$0.00"}},{"$f":"IFERROR('MMA Rev-Exp Region 8'!$AS$68/'MMA Rev-Exp Region 8'!$AS$9, 0)","v":{"v":0,"d":"$0.00"}},{"$f":"IFERROR('MMA Rev-Exp Region 8'!$AT$68/'MMA Rev-Exp Region 8'!$AT$9, 0)","v":{"v":0,"d":"$0.00"}},{"$f":"IFERROR('MMA Rev-Exp Region 8'!$AU$68/'MMA Rev-Exp Region 8'!$AU$9, 0)","v":{"v":0,"d":"$0.00"}}]
["MMA",null,null,2016,"2016-12-31","Q4","2017-12-31","Region 8","Operating Expense","Medical Benefits Expense","Other MMA Services","9.6","Ending IBNP for Other Services",{"$f":"IFERROR('MMA Rev-Exp Region 8'!$AK$69/'MMA Rev-Exp Region 8'!$AK$9, 0)","v":{"v":0,"d":"$0.00"}},{"$f":"IFERROR('MMA Rev-Exp Region 8'!$AL$69/'MMA Rev-Exp Region 8'!$AL$9, 0)","v":{"v":0,"d":"$0.00"}},{"$f":"IFERROR('MMA Rev-Exp Region 8'!$AM$69/'MMA Rev-Exp Region 8'!$AM$9, 0)","v":{"v":0,"d":"$0.00"}},{"$f":"IFERROR('MMA Rev-Exp Region 8'!$AN$69/'MMA Rev-Exp Region 8'!$AN$9, 0)","v":{"v":0,"d":"$0.00"}},{"$f":"IFERROR('MMA Rev-Exp Region 8'!$AO$69/'MMA Rev-Exp Region 8'!$AO$9, 0)","v":{"v":0,"d":"$0.00"}},{"$f":"IFERROR('MMA Rev-Exp Region 8'!$AP$69/'MMA Rev-Exp Region 8'!$AP$9, 0)","v":{"v":0,"d":"$0.00"}},{"$f":"IFERROR('MMA Rev-Exp Region 8'!$AQ$69/'MMA Rev-Exp Region 8'!$AQ$9, 0)","v":{"v":0,"d":"$0.00"}},{"$f":"IFERROR('MMA Rev-Exp Region 8'!$AR$69/'MMA Rev-Exp Region 8'!$AR$9, 0)","v":{"v":0,"d":"$0.00"}},{"$f":"IFERROR('MMA Rev-Exp Region 8'!$AS$69/'MMA Rev-Exp Region 8'!$AS$9, 0)","v":{"v":0,"d":"$0.00"}},{"$f":"IFERROR('MMA Rev-Exp Region 8'!$AT$69/'MMA Rev-Exp Region 8'!$AT$9, 0)","v":{"v":0,"d":"$0.00"}},{"$f":"IFERROR('MMA Rev-Exp Region 8'!$AU$69/'MMA Rev-Exp Region 8'!$AU$9, 0)","v":{"v":0,"d":"$0.00"}}]
["MMA",null,null,2016,"2016-12-31","Q4","2017-12-31","Region 8","Operating Expense","Medical Benefits Expense","Other MMA Services","9.7","Other Services Settlements",{"$f":"IFERROR('MMA Rev-Exp Region 8'!$AK$70/'MMA Rev-Exp Region 8'!$AK$9, 0)","v":{"v":0,"d":"$0.00"}},{"$f":"IFERROR('MMA Rev-Exp Region 8'!$AL$70/'MMA Rev-Exp Region 8'!$AL$9, 0)","v":{"v":0,"d":"$0.00"}},{"$f":"IFERROR('MMA Rev-Exp Region 8'!$AM$70/'MMA Rev-Exp Region 8'!$AM$9, 0)","v":{"v":0,"d":"$0.00"}},{"$f":"IFERROR('MMA Rev-Exp Region 8'!$AN$70/'MMA Rev-Exp Region 8'!$AN$9, 0)","v":{"v":0,"d":"$0.00"}},{"$f":"IFERROR('MMA Rev-Exp Region 8'!$AO$70/'MMA Rev-Exp Region 8'!$AO$9, 0)","v":{"v":0,"d":"$0.00"}},{"$f":"IFERROR('MMA Rev-Exp Region 8'!$AP$70/'MMA Rev-Exp Region 8'!$AP$9, 0)","v":{"v":0,"d":"$0.00"}},{"$f":"IFERROR('MMA Rev-Exp Region 8'!$AQ$70/'MMA Rev-Exp Region 8'!$AQ$9, 0)","v":{"v":0,"d":"$0.00"}},{"$f":"IFERROR('MMA Rev-Exp Region 8'!$AR$70/'MMA Rev-Exp Region 8'!$AR$9, 0)","v":{"v":0,"d":"$0.00"}},{"$f":"IFERROR('MMA Rev-Exp Region 8'!$AS$70/'MMA Rev-Exp Region 8'!$AS$9, 0)","v":{"v":0,"d":"$0.00"}},{"$f":"IFERROR('MMA Rev-Exp Region 8'!$AT$70/'MMA Rev-Exp Region 8'!$AT$9, 0)","v":{"v":0,"d":"$0.00"}},{"$f":"IFERROR('MMA Rev-Exp Region 8'!$AU$70/'MMA Rev-Exp Region 8'!$AU$9, 0)","v":{"v":0,"d":"$0.00"}}]
["MMA",null,null,2016,"2016-12-31","Q4","2017-12-31","Region 8","Operating Expense","Medical Benefits Expense","Expanded Benefits","10.1","Expanded Benefits FFS",{"$f":"IFERROR('MMA Rev-Exp Region 8'!$AK$72/'MMA Rev-Exp Region 8'!$AK$9, 0)","v":{"v":0,"d":"$0.00"}},{"$f":"IFERROR('MMA Rev-Exp Region 8'!$AL$72/'MMA Rev-Exp Region 8'!$AL$9, 0)","v":{"v":0,"d":"$0.00"}},{"$f":"IFERROR('MMA Rev-Exp Region 8'!$AM$72/'MMA Rev-Exp Region 8'!$AM$9, 0)","v":{"v":0,"d":"$0.00"}},{"$f":"IFERROR('MMA Rev-Exp Region 8'!$AN$72/'MMA Rev-Exp Region 8'!$AN$9, 0)","v":{"v":0,"d":"$0.00"}},{"$f":"IFERROR('MMA Rev-Exp Region 8'!$AO$72/'MMA Rev-Exp Region 8'!$AO$9, 0)","v":{"v":0,"d":"$0.00"}},{"$f":"IFERROR('MMA Rev-Exp Region 8'!$AP$72/'MMA Rev-Exp Region 8'!$AP$9, 0)","v":{"v":0,"d":"$0.00"}},{"$f":"IFERROR('MMA Rev-Exp Region 8'!$AQ$72/'MMA Rev-Exp Region 8'!$AQ$9, 0)","v":{"v":0,"d":"$0.00"}},{"$f":"IFERROR('MMA Rev-Exp Region 8'!$AR$72/'MMA Rev-Exp Region 8'!$AR$9, 0)","v":{"v":0,"d":"$0.00"}},{"$f":"IFERROR('MMA Rev-Exp Region 8'!$AS$72/'MMA Rev-Exp Region 8'!$AS$9, 0)","v":{"v":0,"d":"$0.00"}},{"$f":"IFERROR('MMA Rev-Exp Region 8'!$AT$72/'MMA Rev-Exp Region 8'!$AT$9, 0)","v":{"v":0,"d":"$0.00"}},{"$f":"IFERROR('MMA Rev-Exp Region 8'!$AU$72/'MMA Rev-Exp Region 8'!$AU$9, 0)","v":{"v":0,"d":"$0.00"}}]
["MMA",null,null,2016,"2016-12-31","Q4","2017-12-31","Region 8","Operating Expense","Medical Benefits Expense","Expanded Benefits","10.2","Expanded benefits Subcapitation",{"$f":"IFERROR('MMA Rev-Exp Region 8'!$AK$73/'MMA Rev-Exp Region 8'!$AK$9, 0)","v":{"v":0,"d":"$0.00"}},{"$f":"IFERROR('MMA Rev-Exp Region 8'!$AL$73/'MMA Rev-Exp Region 8'!$AL$9, 0)","v":{"v":0,"d":"$0.00"}},{"$f":"IFERROR('MMA Rev-Exp Region 8'!$AM$73/'MMA Rev-Exp Region 8'!$AM$9, 0)","v":{"v":0,"d":"$0.00"}},{"$f":"IFERROR('MMA Rev-Exp Region 8'!$AN$73/'MMA Rev-Exp Region 8'!$AN$9, 0)","v":{"v":0,"d":"$0.00"}},{"$f":"IFERROR('MMA Rev-Exp Region 8'!$AO$73/'MMA Rev-Exp Region 8'!$AO$9, 0)","v":{"v":0,"d":"$0.00"}},{"$f":"IFERROR('MMA Rev-Exp Region 8'!$AP$73/'MMA Rev-Exp Region 8'!$AP$9, 0)","v":{"v":0,"d":"$0.00"}},{"$f":"IFERROR('MMA Rev-Exp Region 8'!$AQ$73/'MMA Rev-Exp Region 8'!$AQ$9, 0)","v":{"v":0,"d":"$0.00"}},{"$f":"IFERROR('MMA Rev-Exp Region 8'!$AR$73/'MMA Rev-Exp Region 8'!$AR$9, 0)","v":{"v":0,"d":"$0.00"}},{"$f":"IFERROR('MMA Rev-Exp Region 8'!$AS$73/'MMA Rev-Exp Region 8'!$AS$9, 0)","v":{"v":0,"d":"$0.00"}},{"$f":"IFERROR('MMA Rev-Exp Region 8'!$AT$73/'MMA Rev-Exp Region 8'!$AT$9, 0)","v":{"v":0,"d":"$0.00"}},{"$f":"IFERROR('MMA Rev-Exp Region 8'!$AU$73/'MMA Rev-Exp Region 8'!$AU$9, 0)","v":{"v":0,"d":"$0.00"}}]
["MMA",null,null,2016,"2016-12-31","Q4","2017-12-31","Region 8","Operating Expense","Medical Benefits Expense","Expanded Benefits","10.3","Ending IBNP for Expanded Benefits",{"$f":"IFERROR('MMA Rev-Exp Region 8'!$AK$74/'MMA Rev-Exp Region 8'!$AK$9, 0)","v":{"v":0,"d":"$0.00"}},{"$f":"IFERROR('MMA Rev-Exp Region 8'!$AL$74/'MMA Rev-Exp Region 8'!$AL$9, 0)","v":{"v":0,"d":"$0.00"}},{"$f":"IFERROR('MMA Rev-Exp Region 8'!$AM$74/'MMA Rev-Exp Region 8'!$AM$9, 0)","v":{"v":0,"d":"$0.00"}},{"$f":"IFERROR('MMA Rev-Exp Region 8'!$AN$74/'MMA Rev-Exp Region 8'!$AN$9, 0)","v":{"v":0,"d":"$0.00"}},{"$f":"IFERROR('MMA Rev-Exp Region 8'!$AO$74/'MMA Rev-Exp Region 8'!$AO$9, 0)","v":{"v":0,"d":"$0.00"}},{"$f":"IFERROR('MMA Rev-Exp Region 8'!$AP$74/'MMA Rev-Exp Region 8'!$AP$9, 0)","v":{"v":0,"d":"$0.00"}},{"$f":"IFERROR('MMA Rev-Exp Region 8'!$AQ$74/'MMA Rev-Exp Region 8'!$AQ$9, 0)","v":{"v":0,"d":"$0.00"}},{"$f":"IFERROR('MMA Rev-Exp Region 8'!$AR$74/'MMA Rev-Exp Region 8'!$AR$9, 0)","v":{"v":0,"d":"$0.00"}},{"$f":"IFERROR('MMA Rev-Exp Region 8'!$AS$74/'MMA Rev-Exp Region 8'!$AS$9, 0)","v":{"v":0,"d":"$0.00"}},{"$f":"IFERROR('MMA Rev-Exp Region 8'!$AT$74/'MMA Rev-Exp Region 8'!$AT$9, 0)","v":{"v":0,"d":"$0.00"}},{"$f":"IFERROR('MMA Rev-Exp Region 8'!$AU$74/'MMA Rev-Exp Region 8'!$AU$9, 0)","v":{"v":0,"d":"$0.00"}}]
["MMA",null,null,2016,"2016-12-31","Q4","2017-12-31","Region 8","Operating Expense","Medical Benefits Expense","Expanded Benefits","10.4","Expanded Benefits Settlements",{"$f":"IFERROR('MMA Rev-Exp Region 8'!$AK$75/'MMA Rev-Exp Region 8'!$AK$9, 0)","v":{"v":0,"d":"$0.00"}},{"$f":"IFERROR('MMA Rev-Exp Region 8'!$AL$75/'MMA Rev-Exp Region 8'!$AL$9, 0)","v":{"v":0,"d":"$0.00"}},{"$f":"IFERROR('MMA Rev-Exp Region 8'!$AM$75/'MMA Rev-Exp Region 8'!$AM$9, 0)","v":{"v":0,"d":"$0.00"}},{"$f":"IFERROR('MMA Rev-Exp Region 8'!$AN$75/'MMA Rev-Exp Region 8'!$AN$9, 0)","v":{"v":0,"d":"$0.00"}},{"$f":"IFERROR('MMA Rev-Exp Region 8'!$AO$75/'MMA Rev-Exp Region 8'!$AO$9, 0)","v":{"v":0,"d":"$0.00"}},{"$f":"IFERROR('MMA Rev-Exp Region 8'!$AP$75/'MMA Rev-Exp Region 8'!$AP$9, 0)","v":{"v":0,"d":"$0.00"}},{"$f":"IFERROR('MMA Rev-Exp Region 8'!$AQ$75/'MMA Rev-Exp Region 8'!$AQ$9, 0)","v":{"v":0,"d":"$0.00"}},{"$f":"IFERROR('MMA Rev-Exp Region 8'!$AR$75/'MMA Rev-Exp Region 8'!$AR$9, 0)","v":{"v":0,"d":"$0.00"}},{"$f":"IFERROR('MMA Rev-Exp Region 8'!$AS$75/'MMA Rev-Exp Region 8'!$AS$9, 0)","v":{"v":0,"d":"$0.00"}},{"$f":"IFERROR('MMA Rev-Exp Region 8'!$AT$75/'MMA Rev-Exp Region 8'!$AT$9, 0)","v":{"v":0,"d":"$0.00"}},{"$f":"IFERROR('MMA Rev-Exp Region 8'!$AU$75/'MMA Rev-Exp Region 8'!$AU$9, 0)","v":{"v":0,"d":"$0.00"}}]
["MMA",null,null,2016,"2016-12-31","Q4","2017-12-31","Region 8","Operating Expense","Medical Benefits Expense","Other Medical","11.5","TPL & Fraud/Abuse Recoveries",{"$f":"IFERROR('MMA Rev-Exp Region 8'!$AK$81/'MMA Rev-Exp Region 8'!$AK$9, 0)","v":{"v":0,"d":"$0.00"}},{"$f":"IFERROR('MMA Rev-Exp Region 8'!$AL$81/'MMA Rev-Exp Region 8'!$AL$9, 0)","v":{"v":0,"d":"$0.00"}},{"$f":"IFERROR('MMA Rev-Exp Region 8'!$AM$81/'MMA Rev-Exp Region 8'!$AM$9, 0)","v":{"v":0,"d":"$0.00"}},{"$f":"IFERROR('MMA Rev-Exp Region 8'!$AN$81/'MMA Rev-Exp Region 8'!$AN$9, 0)","v":{"v":0,"d":"$0.00"}},{"$f":"IFERROR('MMA Rev-Exp Region 8'!$AO$81/'MMA Rev-Exp Region 8'!$AO$9, 0)","v":{"v":0,"d":"$0.00"}},{"$f":"IFERROR('MMA Rev-Exp Region 8'!$AP$81/'MMA Rev-Exp Region 8'!$AP$9, 0)","v":{"v":0,"d":"$0.00"}},{"$f":"IFERROR('MMA Rev-Exp Region 8'!$AQ$81/'MMA Rev-Exp Region 8'!$AQ$9, 0)","v":{"v":0,"d":"$0.00"}},{"$f":"IFERROR('MMA Rev-Exp Region 8'!$AR$81/'MMA Rev-Exp Region 8'!$AR$9, 0)","v":{"v":0,"d":"$0.00"}},{"$f":"IFERROR('MMA Rev-Exp Region 8'!$AS$81/'MMA Rev-Exp Region 8'!$AS$9, 0)","v":{"v":0,"d":"$0.00"}},{"$f":"IFERROR('MMA Rev-Exp Region 8'!$AT$81/'MMA Rev-Exp Region 8'!$AT$9, 0)","v":{"v":0,"d":"$0.00"}},{"$f":"IFERROR('MMA Rev-Exp Region 8'!$AU$81/'MMA Rev-Exp Region 8'!$AU$9, 0)","v":{"v":0,"d":"$0.00"}}]
["MMA",null,null,2016,"2016-12-31","Q4","2017-12-31","Region 8","Operating Expense","Medical Benefits Expense","Other Medical","11.6.1","Premium Deficiency Reserve",{"$f":"IFERROR('MMA Rev-Exp Region 8'!$AK$82/'MMA Rev-Exp Region 8'!$AK$9, 0)","v":{"v":0,"d":"$0.00"}},{"$f":"IFERROR('MMA Rev-Exp Region 8'!$AL$82/'MMA Rev-Exp Region 8'!$AL$9, 0)","v":{"v":0,"d":"$0.00"}},{"$f":"IFERROR('MMA Rev-Exp Region 8'!$AM$82/'MMA Rev-Exp Region 8'!$AM$9, 0)","v":{"v":0,"d":"$0.00"}},{"$f":"IFERROR('MMA Rev-Exp Region 8'!$AN$82/'MMA Rev-Exp Region 8'!$AN$9, 0)","v":{"v":0,"d":"$0.00"}},{"$f":"IFERROR('MMA Rev-Exp Region 8'!$AO$82/'MMA Rev-Exp Region 8'!$AO$9, 0)","v":{"v":0,"d":"$0.00"}},{"$f":"IFERROR('MMA Rev-Exp Region 8'!$AP$82/'MMA Rev-Exp Region 8'!$AP$9, 0)","v":{"v":0,"d":"$0.00"}},{"$f":"IFERROR('MMA Rev-Exp Region 8'!$AQ$82/'MMA Rev-Exp Region 8'!$AQ$9, 0)","v":{"v":0,"d":"$0.00"}},{"$f":"IFERROR('MMA Rev-Exp Region 8'!$AR$82/'MMA Rev-Exp Region 8'!$AR$9, 0)","v":{"v":0,"d":"$0.00"}},{"$f":"IFERROR('MMA Rev-Exp Region 8'!$AS$82/'MMA Rev-Exp Region 8'!$AS$9, 0)","v":{"v":0,"d":"$0.00"}},{"$f":"IFERROR('MMA Rev-Exp Region 8'!$AT$82/'MMA Rev-Exp Region 8'!$AT$9, 0)","v":{"v":0,"d":"$0.00"}},{"$f":"IFERROR('MMA Rev-Exp Region 8'!$AU$82/'MMA Rev-Exp Region 8'!$AU$9, 0)","v":{"v":0,"d":"$0.00"}}]
["MMA",null,null,2016,"2016-12-31","Q4","2017-12-31","Region 8","Operating Expense","Medical Benefits Expense","Other Medical","11.8","Reinsurance Premiums",{"$f":"IFERROR('MMA Rev-Exp Region 8'!$AK$84/'MMA Rev-Exp Region 8'!$AK$9, 0)","v":{"v":0,"d":"$0.00"}},{"$f":"IFERROR('MMA Rev-Exp Region 8'!$AL$84/'MMA Rev-Exp Region 8'!$AL$9, 0)","v":{"v":0,"d":"$0.00"}},{"$f":"IFERROR('MMA Rev-Exp Region 8'!$AM$84/'MMA Rev-Exp Region 8'!$AM$9, 0)","v":{"v":0,"d":"$0.00"}},{"$f":"IFERROR('MMA Rev-Exp Region 8'!$AN$84/'MMA Rev-Exp Region 8'!$AN$9, 0)","v":{"v":0,"d":"$0.00"}},{"$f":"IFERROR('MMA Rev-Exp Region 8'!$AO$84/'MMA Rev-Exp Region 8'!$AO$9, 0)","v":{"v":0,"d":"$0.00"}},{"$f":"IFERROR('MMA Rev-Exp Region 8'!$AP$84/'MMA Rev-Exp Region 8'!$AP$9, 0)","v":{"v":0,"d":"$0.00"}},{"$f":"IFERROR('MMA Rev-Exp Region 8'!$AQ$84/'MMA Rev-Exp Region 8'!$AQ$9, 0)","v":{"v":0,"d":"$0.00"}},{"$f":"IFERROR('MMA Rev-Exp Region 8'!$AR$84/'MMA Rev-Exp Region 8'!$AR$9, 0)","v":{"v":0,"d":"$0.00"}},{"$f":"IFERROR('MMA Rev-Exp Region 8'!$AS$84/'MMA Rev-Exp Region 8'!$AS$9, 0)","v":{"v":0,"d":"$0.00"}},{"$f":"IFERROR('MMA Rev-Exp Region 8'!$AT$84/'MMA Rev-Exp Region 8'!$AT$9, 0)","v":{"v":0,"d":"$0.00"}},{"$f":"IFERROR('MMA Rev-Exp Region 8'!$AU$84/'MMA Rev-Exp Region 8'!$AU$9, 0)","v":{"v":0,"d":"$0.00"}}]
["MMA",null,null,2016,"2016-12-31","Q4","2017-12-31","Region 8","Operating Expense","Medical Benefits Expense","Other Medical","11.9","Reinsurance Recoveries",{"$f":"IFERROR('MMA Rev-Exp Region 8'!$AK$85/'MMA Rev-Exp Region 8'!$AK$9, 0)","v":{"v":0,"d":"$0.00"}},{"$f":"IFERROR('MMA Rev-Exp Region 8'!$AL$85/'MMA Rev-Exp Region 8'!$AL$9, 0)","v":{"v":0,"d":"$0.00"}},{"$f":"IFERROR('MMA Rev-Exp Region 8'!$AM$85/'MMA Rev-Exp Region 8'!$AM$9, 0)","v":{"v":0,"d":"$0.00"}},{"$f":"IFERROR('MMA Rev-Exp Region 8'!$AN$85/'MMA Rev-Exp Region 8'!$AN$9, 0)","v":{"v":0,"d":"$0.00"}},{"$f":"IFERROR('MMA Rev-Exp Region 8'!$AO$85/'MMA Rev-Exp Region 8'!$AO$9, 0)","v":{"v":0,"d":"$0.00"}},{"$f":"IFERROR('MMA Rev-Exp Region 8'!$AP$85/'MMA Rev-Exp Region 8'!$AP$9, 0)","v":{"v":0,"d":"$0.00"}},{"$f":"IFERROR('MMA Rev-Exp Region 8'!$AQ$85/'MMA Rev-Exp Region 8'!$AQ$9, 0)","v":{"v":0,"d":"$0.00"}},{"$f":"IFERROR('MMA Rev-Exp Region 8'!$AR$85/'MMA Rev-Exp Region 8'!$AR$9, 0)","v":{"v":0,"d":"$0.00"}},{"$f":"IFERROR('MMA Rev-Exp Region 8'!$AS$85/'MMA Rev-Exp Region 8'!$AS$9, 0)","v":{"v":0,"d":"$0.00"}},{"$f":"IFERROR('MMA Rev-Exp Region 8'!$AT$85/'MMA Rev-Exp Region 8'!$AT$9, 0)","v":{"v":0,"d":"$0.00"}},{"$f":"IFERROR('MMA Rev-Exp Region 8'!$AU$85/'MMA Rev-Exp Region 8'!$AU$9, 0)","v":{"v":0,"d":"$0.00"}}]
["MMA",null,null,2016,"2016-12-31","Q4","2017-12-31","Region 8","Operating Expense","Administrative Expense","Administrative","12.1","Salaries & Benefits",{"$f":"IFERROR('MMA Rev-Exp Region 8'!$AK$90/'MMA Rev-Exp Region 8'!$AK$9, 0)","v":{"v":0,"d":"$0.00"}},{"$f":"IFERROR('MMA Rev-Exp Region 8'!$AL$90/'MMA Rev-Exp Region 8'!$AK$9, 0)","v":{"v":0,"d":"$0.00"}},{"$f":"IFERROR('MMA Rev-Exp Region 8'!$AM$90/'MMA Rev-Exp Region 8'!$AK$9, 0)","v":{"v":0,"d":"$0.00"}}]
["MMA",null,null,2016,"2016-12-31","Q4","2017-12-31","Region 8","Operating Expense","Administrative Expense","Administrative","12.2","Administrative Services",{"$f":"IFERROR('MMA Rev-Exp Region 8'!$AK$91/'MMA Rev-Exp Region 8'!$AK$9, 0)","v":{"v":0,"d":"$0.00"}},{"$f":"IFERROR('MMA Rev-Exp Region 8'!$AL$91/'MMA Rev-Exp Region 8'!$AK$9, 0)","v":{"v":0,"d":"$0.00"}},{"$f":"IFERROR('MMA Rev-Exp Region 8'!$AM$91/'MMA Rev-Exp Region 8'!$AK$9, 0)","v":{"v":0,"d":"$0.00"}}]
["MMA",null,null,2016,"2016-12-31","Q4","2017-12-31","Region 8","Operating Expense","Administrative Expense","Administrative","12.3","Information Systems",{"$f":"IFERROR('MMA Rev-Exp Region 8'!$AK$92/'MMA Rev-Exp Region 8'!$AK$9, 0)","v":{"v":0,"d":"$0.00"}},{"$f":"IFERROR('MMA Rev-Exp Region 8'!$AL$92/'MMA Rev-Exp Region 8'!$AK$9, 0)","v":{"v":0,"d":"$0.00"}},{"$f":"IFERROR('MMA Rev-Exp Region 8'!$AM$92/'MMA Rev-Exp Region 8'!$AK$9, 0)","v":{"v":0,"d":"$0.00"}}]
["MMA",null,null,2016,"2016-12-31","Q4","2017-12-31","Region 8","Operating Expense","Administrative Expense","Administrative","12.4","Marketing Expenses",{"$f":"IFERROR('MMA Rev-Exp Region 8'!$AK$93/'MMA Rev-Exp Region 8'!$AK$9, 0)","v":{"v":0,"d":"$0.00"}},{"$f":"IFERROR('MMA Rev-Exp Region 8'!$AL$93/'MMA Rev-Exp Region 8'!$AK$9, 0)","v":{"v":0,"d":"$0.00"}},{"$f":"IFERROR('MMA Rev-Exp Region 8'!$AM$93/'MMA Rev-Exp Region 8'!$AK$9, 0)","v":{"v":0,"d":"$0.00"}}]
["MMA",null,null,2016,"2016-12-31","Q4","2017-12-31","Region 8","Operating Expense","Administrative Expense","Administrative","12.5","General  Administration",{"$f":"IFERROR('MMA Rev-Exp Region 8'!$AK$94/'MMA Rev-Exp Region 8'!$AK$9, 0)","v":{"v":0,"d":"$0.00"}},{"$f":"IFERROR('MMA Rev-Exp Region 8'!$AL$94/'MMA Rev-Exp Region 8'!$AK$9, 0)","v":{"v":0,"d":"$0.00"}},{"$f":"IFERROR('MMA Rev-Exp Region 8'!$AM$94/'MMA Rev-Exp Region 8'!$AK$9, 0)","v":{"v":0,"d":"$0.00"}}]
["MMA",null,null,2016,"2016-12-31","Q4","2017-12-31","Region 8","Operating Expense","Administrative Expense","Administrative","12.6","Compliance/Regulatory",{"$f":"IFERROR('MMA Rev-Exp Region 8'!$AK$95/'MMA Rev-Exp Region 8'!$AK$9, 0)","v":{"v":0,"d":"$0.00"}},{"$f":"IFERROR('MMA Rev-Exp Region 8'!$AL$95/'MMA Rev-Exp Region 8'!$AK$9, 0)","v":{"v":0,"d":"$0.00"}},{"$f":"IFERROR('MMA Rev-Exp Region 8'!$AM$95/'MMA Rev-Exp Region 8'!$AK$9, 0)","v":{"v":0,"d":"$0.00"}}]
["MMA",null,null,2016,"2016-12-31","Q4","2017-12-31","Region 8","Operating Expense","Taxes & Fees","Taxes & Fees","13.1","State Premium tax",{"$f":"IFERROR('MMA Rev-Exp Region 8'!$AK$97/'MMA Rev-Exp Region 8'!$AK$9, 0)","v":{"v":0,"d":"$0.00"}}]
["MMA",null,null,2016,"2016-12-31","Q4","2017-12-31","Region 8","Operating Expense","Taxes & Fees","Taxes & Fees","13.2","Department of Insurance Assessments",{"$f":"IFERROR('MMA Rev-Exp Region 8'!$AK$98/'MMA Rev-Exp Region 8'!$AK$9, 0)","v":{"v":0,"d":"$0.00"}}]
["MMA",null,null,2016,"2016-12-31","Q4","2017-12-31","Region 8","Operating Expense","Taxes & Fees","Taxes & Fees","13.3","Section 9010 Health Insurance Providers Fee",{"$f":"IFERROR('MMA Rev-Exp Region 8'!$AK$99/'MMA Rev-Exp Region 8'!$AK$9, 0)","v":{"v":0,"d":"$0.00"}}]
["MMA",null,null,2016,"2016-12-31","Q4","2017-12-31","Region 8","Non-Operating Expense","Income Tax Expense","Income Tax Expense","16.0","Income Tax Expense",{"$f":"IFERROR('MMA Rev-Exp Region 8'!$AK$106/'MMA Rev-Exp Region 8'!$AK$9, 0)","v":{"v":0,"d":"$0.00"}}]
["MMA",null,null,2016,"2016-12-31","Q1","2017-03-31","Region 9","Operating Revenue","Capitation","Capitation",1.1,"Capitation",{"$f":"IFERROR('MMA Rev-Exp Region 9'!$D$11/'MMA Rev-Exp Region 9'!$D$9, 0)","v":{"v":0,"d":"$0.00"}},{"$f":"IFERROR('MMA Rev-Exp Region 9'!$E$11/'MMA Rev-Exp Region 9'!$E$9, 0)","v":{"v":0,"d":"$0.00"}},{"$f":"IFERROR('MMA Rev-Exp Region 9'!$F$11/'MMA Rev-Exp Region 9'!$F$9, 0)","v":{"v":0,"d":"$0.00"}},{"$f":"IFERROR('MMA Rev-Exp Region 9'!$G$11/'MMA Rev-Exp Region 9'!$G$9, 0)","v":{"v":0,"d":"$0.00"}},{"$f":"IFERROR('MMA Rev-Exp Region 9'!$H$11/'MMA Rev-Exp Region 9'!$H$9, 0)","v":{"v":0,"d":"$0.00"}},{"$f":"IFERROR('MMA Rev-Exp Region 9'!$I$11/'MMA Rev-Exp Region 9'!$I$9, 0)","v":{"v":0,"d":"$0.00"}},{"$f":"IFERROR('MMA Rev-Exp Region 9'!$J$11/'MMA Rev-Exp Region 9'!$J$9, 0)","v":{"v":0,"d":"$0.00"}},{"$f":"IFERROR('MMA Rev-Exp Region 9'!$K$11/'MMA Rev-Exp Region 9'!$K$9, 0)","v":{"v":0,"d":"$0.00"}},{"$f":"IFERROR('MMA Rev-Exp Region 9'!$L$11/'MMA Rev-Exp Region 9'!$L$9, 0)","v":{"v":0,"d":"$0.00"}},{"$f":"IFERROR('MMA Rev-Exp Region 9'!$M$11/'MMA Rev-Exp Region 9'!$M$9, 0)","v":{"v":0,"d":"$0.00"}},{"$f":"IFERROR('MMA Rev-Exp Region 9'!$N$11/'MMA Rev-Exp Region 9'!$N$9, 0)","v":{"v":0,"d":"$0.00"}}]
["MMA",null,null,2016,"2016-12-31","Q1","2017-03-31","Region 9","Operating Revenue","Kick Payments","Kick Payments - Transplant",1.2,"Transplant Kick Payments",{"$f":"IFERROR('MMA Rev-Exp Region 9'!$D$12/'MMA Rev-Exp Region 9'!$D$9, 0)","v":{"v":0,"d":"$0.00"}},{"$f":"IFERROR('MMA Rev-Exp Region 9'!$E$12/'MMA Rev-Exp Region 9'!$E$9, 0)","v":{"v":0,"d":"$0.00"}},{"$f":"IFERROR('MMA Rev-Exp Region 9'!$F$12/'MMA Rev-Exp Region 9'!$F$9, 0)","v":{"v":0,"d":"$0.00"}},{"$f":"IFERROR('MMA Rev-Exp Region 9'!$G$12/'MMA Rev-Exp Region 9'!$G$9, 0)","v":{"v":0,"d":"$0.00"}},{"$f":"IFERROR('MMA Rev-Exp Region 9'!$H$12/'MMA Rev-Exp Region 9'!$H$9, 0)","v":{"v":0,"d":"$0.00"}},{"$f":"IFERROR('MMA Rev-Exp Region 9'!$I$12/'MMA Rev-Exp Region 9'!$I$9, 0)","v":{"v":0,"d":"$0.00"}},{"$f":"IFERROR('MMA Rev-Exp Region 9'!$J$12/'MMA Rev-Exp Region 9'!$J$9, 0)","v":{"v":0,"d":"$0.00"}},{"$f":"IFERROR('MMA Rev-Exp Region 9'!$K$12/'MMA Rev-Exp Region 9'!$K$9, 0)","v":{"v":0,"d":"$0.00"}},{"$f":"IFERROR('MMA Rev-Exp Region 9'!$L$12/'MMA Rev-Exp Region 9'!$L$9, 0)","v":{"v":0,"d":"$0.00"}},{"$f":"IFERROR('MMA Rev-Exp Region 9'!$M$12/'MMA Rev-Exp Region 9'!$M$9, 0)","v":{"v":0,"d":"$0.00"}},{"$f":"IFERROR('MMA Rev-Exp Region 9'!$N$12/'MMA Rev-Exp Region 9'!$N$9, 0)","v":{"v":0,"d":"$0.00"}}]
["MMA",null,null,2016,"2016-12-31","Q1","2017-03-31","Region 9","Operating Revenue","Kick Payments","Kick Payments - Hep C","1.3","Hepatitis C Kick Payments",{"$f":"IFERROR('MMA Rev-Exp Region 9'!$D$13/'MMA Rev-Exp Region 9'!$D$9, 0)","v":{"v":0,"d":"$0.00"}},{"$f":"IFERROR('MMA Rev-Exp Region 9'!$E$13/'MMA Rev-Exp Region 9'!$E$9, 0)","v":{"v":0,"d":"$0.00"}},{"$f":"IFERROR('MMA Rev-Exp Region 9'!$F$13/'MMA Rev-Exp Region 9'!$F$9, 0)","v":{"v":0,"d":"$0.00"}},{"$f":"IFERROR('MMA Rev-Exp Region 9'!$G$13/'MMA Rev-Exp Region 9'!$G$9, 0)","v":{"v":0,"d":"$0.00"}},{"$f":"IFERROR('MMA Rev-Exp Region 9'!$H$13/'MMA Rev-Exp Region 9'!$H$9, 0)","v":{"v":0,"d":"$0.00"}},{"$f":"IFERROR('MMA Rev-Exp Region 9'!$I$13/'MMA Rev-Exp Region 9'!$I$9, 0)","v":{"v":0,"d":"$0.00"}},{"$f":"IFERROR('MMA Rev-Exp Region 9'!$J$13/'MMA Rev-Exp Region 9'!$J$9, 0)","v":{"v":0,"d":"$0.00"}},{"$f":"IFERROR('MMA Rev-Exp Region 9'!$K$13/'MMA Rev-Exp Region 9'!$K$9, 0)","v":{"v":0,"d":"$0.00"}},{"$f":"IFERROR('MMA Rev-Exp Region 9'!$L$13/'MMA Rev-Exp Region 9'!$L$9, 0)","v":{"v":0,"d":"$0.00"}},{"$f":"IFERROR('MMA Rev-Exp Region 9'!$M$13/'MMA Rev-Exp Region 9'!$M$9, 0)","v":{"v":0,"d":"$0.00"}},{"$f":"IFERROR('MMA Rev-Exp Region 9'!$N$13/'MMA Rev-Exp Region 9'!$N$9, 0)","v":{"v":0,"d":"$0.00"}}]
["MMA",null,null,2016,"2016-12-31","Q1","2017-03-31","Region 9","Operating Revenue","Kick Payments","Kick Payments - Maternity","1.4.1","Maternity Kick Payments",{"$f":"IFERROR('MMA Rev-Exp Region 9'!$D$14/'MMA Rev-Exp Region 9'!$D$9, 0)","v":{"v":0,"d":"$0.00"}},{"$f":"IFERROR('MMA Rev-Exp Region 9'!$E$14/'MMA Rev-Exp Region 9'!$E$9, 0)","v":{"v":0,"d":"$0.00"}},{"$f":"IFERROR('MMA Rev-Exp Region 9'!$F$14/'MMA Rev-Exp Region 9'!$F$9, 0)","v":{"v":0,"d":"$0.00"}},{"$f":"IFERROR('MMA Rev-Exp Region 9'!$G$14/'MMA Rev-Exp Region 9'!$G$9, 0)","v":{"v":0,"d":"$0.00"}},{"$f":"IFERROR('MMA Rev-Exp Region 9'!$H$14/'MMA Rev-Exp Region 9'!$H$9, 0)","v":{"v":0,"d":"$0.00"}},{"$f":"IFERROR('MMA Rev-Exp Region 9'!$I$14/'MMA Rev-Exp Region 9'!$I$9, 0)","v":{"v":0,"d":"$0.00"}},{"$f":"IFERROR('MMA Rev-Exp Region 9'!$J$14/'MMA Rev-Exp Region 9'!$J$9, 0)","v":{"v":0,"d":"$0.00"}},{"$f":"IFERROR('MMA Rev-Exp Region 9'!$K$14/'MMA Rev-Exp Region 9'!$K$9, 0)","v":{"v":0,"d":"$0.00"}},{"$f":"IFERROR('MMA Rev-Exp Region 9'!$L$14/'MMA Rev-Exp Region 9'!$L$9, 0)","v":{"v":0,"d":"$0.00"}},{"$f":"IFERROR('MMA Rev-Exp Region 9'!$M$14/'MMA Rev-Exp Region 9'!$M$9, 0)","v":{"v":0,"d":"$0.00"}},{"$f":"IFERROR('MMA Rev-Exp Region 9'!$N$14/'MMA Rev-Exp Region 9'!$N$9, 0)","v":{"v":0,"d":"$0.00"}}]
["MMA",null,null,2016,"2016-12-31","Q1","2017-03-31","Region 9","Operating Revenue","Other Revenue","Other Revenue - 9010","1.5","ACA § 9010 related payments",{"$f":"IFERROR('MMA Rev-Exp Region 9'!$D$15/'MMA Rev-Exp Region 9'!$D$9, 0)","v":{"v":0,"d":"$0.00"}},{"$f":"IFERROR('MMA Rev-Exp Region 9'!$E$15/'MMA Rev-Exp Region 9'!$E$9, 0)","v":{"v":0,"d":"$0.00"}},{"$f":"IFERROR('MMA Rev-Exp Region 9'!$F$15/'MMA Rev-Exp Region 9'!$F$9, 0)","v":{"v":0,"d":"$0.00"}},{"$f":"IFERROR('MMA Rev-Exp Region 9'!$G$15/'MMA Rev-Exp Region 9'!$G$9, 0)","v":{"v":0,"d":"$0.00"}},{"$f":"IFERROR('MMA Rev-Exp Region 9'!$H$15/'MMA Rev-Exp Region 9'!$H$9, 0)","v":{"v":0,"d":"$0.00"}},{"$f":"IFERROR('MMA Rev-Exp Region 9'!$I$15/'MMA Rev-Exp Region 9'!$I$9, 0)","v":{"v":0,"d":"$0.00"}},{"$f":"IFERROR('MMA Rev-Exp Region 9'!$J$15/'MMA Rev-Exp Region 9'!$J$9, 0)","v":{"v":0,"d":"$0.00"}},{"$f":"IFERROR('MMA Rev-Exp Region 9'!$K$15/'MMA Rev-Exp Region 9'!$K$9, 0)","v":{"v":0,"d":"$0.00"}},{"$f":"IFERROR('MMA Rev-Exp Region 9'!$L$15/'MMA Rev-Exp Region 9'!$L$9, 0)","v":{"v":0,"d":"$0.00"}},{"$f":"IFERROR('MMA Rev-Exp Region 9'!$M$15/'MMA Rev-Exp Region 9'!$M$9, 0)","v":{"v":0,"d":"$0.00"}},{"$f":"IFERROR('MMA Rev-Exp Region 9'!$N$15/'MMA Rev-Exp Region 9'!$N$9, 0)","v":{"v":0,"d":"$0.00"}}]
["MMA",null,null,2016,"2016-12-31","Q1","2017-03-31","Region 9","Operating Revenue","Other Revenue","Other Revenue","1.6","Other Revenue",{"$f":"IFERROR('MMA Rev-Exp Region 9'!$D$16/'MMA Rev-Exp Region 9'!$D$9, 0)","v":{"v":0,"d":"$0.00"}},{"$f":"IFERROR('MMA Rev-Exp Region 9'!$E$16/'MMA Rev-Exp Region 9'!$E$9, 0)","v":{"v":0,"d":"$0.00"}},{"$f":"IFERROR('MMA Rev-Exp Region 9'!$F$16/'MMA Rev-Exp Region 9'!$F$9, 0)","v":{"v":0,"d":"$0.00"}},{"$f":"IFERROR('MMA Rev-Exp Region 9'!$G$16/'MMA Rev-Exp Region 9'!$G$9, 0)","v":{"v":0,"d":"$0.00"}},{"$f":"IFERROR('MMA Rev-Exp Region 9'!$H$16/'MMA Rev-Exp Region 9'!$H$9, 0)","v":{"v":0,"d":"$0.00"}},{"$f":"IFERROR('MMA Rev-Exp Region 9'!$I$16/'MMA Rev-Exp Region 9'!$I$9, 0)","v":{"v":0,"d":"$0.00"}},{"$f":"IFERROR('MMA Rev-Exp Region 9'!$J$16/'MMA Rev-Exp Region 9'!$J$9, 0)","v":{"v":0,"d":"$0.00"}},{"$f":"IFERROR('MMA Rev-Exp Region 9'!$K$16/'MMA Rev-Exp Region 9'!$K$9, 0)","v":{"v":0,"d":"$0.00"}},{"$f":"IFERROR('MMA Rev-Exp Region 9'!$L$16/'MMA Rev-Exp Region 9'!$L$9, 0)","v":{"v":0,"d":"$0.00"}},{"$f":"IFERROR('MMA Rev-Exp Region 9'!$M$16/'MMA Rev-Exp Region 9'!$M$9, 0)","v":{"v":0,"d":"$0.00"}},{"$f":"IFERROR('MMA Rev-Exp Region 9'!$N$16/'MMA Rev-Exp Region 9'!$N$9, 0)","v":{"v":0,"d":"$0.00"}}]
["MMA",null,null,2016,"2016-12-31","Q1","2017-03-31","Region 9","Operating Expense","Medical Benefits Expense","Hospital Services",2.1,"Inpatient FFS",{"$f":"IFERROR('MMA Rev-Exp Region 9'!$D$20/'MMA Rev-Exp Region 9'!$D$9, 0)","v":{"v":0,"d":"$0.00"}},{"$f":"IFERROR('MMA Rev-Exp Region 9'!$E$20/'MMA Rev-Exp Region 9'!$E$9, 0)","v":{"v":0,"d":"$0.00"}},{"$f":"IFERROR('MMA Rev-Exp Region 9'!$F$20/'MMA Rev-Exp Region 9'!$F$9, 0)","v":{"v":0,"d":"$0.00"}},{"$f":"IFERROR('MMA Rev-Exp Region 9'!$G$20/'MMA Rev-Exp Region 9'!$G$9, 0)","v":{"v":0,"d":"$0.00"}},{"$f":"IFERROR('MMA Rev-Exp Region 9'!$H$20/'MMA Rev-Exp Region 9'!$H$9, 0)","v":{"v":0,"d":"$0.00"}},{"$f":"IFERROR('MMA Rev-Exp Region 9'!$I$20/'MMA Rev-Exp Region 9'!$I$9, 0)","v":{"v":0,"d":"$0.00"}},{"$f":"IFERROR('MMA Rev-Exp Region 9'!$J$20/'MMA Rev-Exp Region 9'!$J$9, 0)","v":{"v":0,"d":"$0.00"}},{"$f":"IFERROR('MMA Rev-Exp Region 9'!$K$20/'MMA Rev-Exp Region 9'!$K$9, 0)","v":{"v":0,"d":"$0.00"}},{"$f":"IFERROR('MMA Rev-Exp Region 9'!$L$20/'MMA Rev-Exp Region 9'!$L$9, 0)","v":{"v":0,"d":"$0.00"}},{"$f":"IFERROR('MMA Rev-Exp Region 9'!$M$20/'MMA Rev-Exp Region 9'!$M$9, 0)","v":{"v":0,"d":"$0.00"}},{"$f":"IFERROR('MMA Rev-Exp Region 9'!$N$20/'MMA Rev-Exp Region 9'!$N$9, 0)","v":{"v":0,"d":"$0.00"}}]
["MMA",null,null,2016,"2016-12-31","Q1","2017-03-31","Region 9","Operating Expense","Medical Benefits Expense","Hospital Services",2.2,"Ending IBNP for Inpatient Hospital Services",{"$f":"IFERROR('MMA Rev-Exp Region 9'!$D$21/'MMA Rev-Exp Region 9'!$D$9, 0)","v":{"v":0,"d":"$0.00"}},{"$f":"IFERROR('MMA Rev-Exp Region 9'!$E$21/'MMA Rev-Exp Region 9'!$E$9, 0)","v":{"v":0,"d":"$0.00"}},{"$f":"IFERROR('MMA Rev-Exp Region 9'!$F$21/'MMA Rev-Exp Region 9'!$F$9, 0)","v":{"v":0,"d":"$0.00"}},{"$f":"IFERROR('MMA Rev-Exp Region 9'!$G$21/'MMA Rev-Exp Region 9'!$G$9, 0)","v":{"v":0,"d":"$0.00"}},{"$f":"IFERROR('MMA Rev-Exp Region 9'!$H$21/'MMA Rev-Exp Region 9'!$H$9, 0)","v":{"v":0,"d":"$0.00"}},{"$f":"IFERROR('MMA Rev-Exp Region 9'!$I$21/'MMA Rev-Exp Region 9'!$I$9, 0)","v":{"v":0,"d":"$0.00"}},{"$f":"IFERROR('MMA Rev-Exp Region 9'!$J$21/'MMA Rev-Exp Region 9'!$J$9, 0)","v":{"v":0,"d":"$0.00"}},{"$f":"IFERROR('MMA Rev-Exp Region 9'!$K$21/'MMA Rev-Exp Region 9'!$K$9, 0)","v":{"v":0,"d":"$0.00"}},{"$f":"IFERROR('MMA Rev-Exp Region 9'!$L$21/'MMA Rev-Exp Region 9'!$L$9, 0)","v":{"v":0,"d":"$0.00"}},{"$f":"IFERROR('MMA Rev-Exp Region 9'!$M$21/'MMA Rev-Exp Region 9'!$M$9, 0)","v":{"v":0,"d":"$0.00"}},{"$f":"IFERROR('MMA Rev-Exp Region 9'!$N$21/'MMA Rev-Exp Region 9'!$N$9, 0)","v":{"v":0,"d":"$0.00"}}]
["MMA",null,null,2016,"2016-12-31","Q1","2017-03-31","Region 9","Operating Expense","Medical Benefits Expense","Hospital Services",2.3,"Outpatient FFS: ER",{"$f":"IFERROR('MMA Rev-Exp Region 9'!$D$22/'MMA Rev-Exp Region 9'!$D$9, 0)","v":{"v":0,"d":"$0.00"}},{"$f":"IFERROR('MMA Rev-Exp Region 9'!$E$22/'MMA Rev-Exp Region 9'!$E$9, 0)","v":{"v":0,"d":"$0.00"}},{"$f":"IFERROR('MMA Rev-Exp Region 9'!$F$22/'MMA Rev-Exp Region 9'!$F$9, 0)","v":{"v":0,"d":"$0.00"}},{"$f":"IFERROR('MMA Rev-Exp Region 9'!$G$22/'MMA Rev-Exp Region 9'!$G$9, 0)","v":{"v":0,"d":"$0.00"}},{"$f":"IFERROR('MMA Rev-Exp Region 9'!$H$22/'MMA Rev-Exp Region 9'!$H$9, 0)","v":{"v":0,"d":"$0.00"}},{"$f":"IFERROR('MMA Rev-Exp Region 9'!$I$22/'MMA Rev-Exp Region 9'!$I$9, 0)","v":{"v":0,"d":"$0.00"}},{"$f":"IFERROR('MMA Rev-Exp Region 9'!$J$22/'MMA Rev-Exp Region 9'!$J$9, 0)","v":{"v":0,"d":"$0.00"}},{"$f":"IFERROR('MMA Rev-Exp Region 9'!$K$22/'MMA Rev-Exp Region 9'!$K$9, 0)","v":{"v":0,"d":"$0.00"}},{"$f":"IFERROR('MMA Rev-Exp Region 9'!$L$22/'MMA Rev-Exp Region 9'!$L$9, 0)","v":{"v":0,"d":"$0.00"}},{"$f":"IFERROR('MMA Rev-Exp Region 9'!$M$22/'MMA Rev-Exp Region 9'!$M$9, 0)","v":{"v":0,"d":"$0.00"}},{"$f":"IFERROR('MMA Rev-Exp Region 9'!$N$22/'MMA Rev-Exp Region 9'!$N$9, 0)","v":{"v":0,"d":"$0.00"}}]
["MMA",null,null,2016,"2016-12-31","Q1","2017-03-31","Region 9","Operating Expense","Medical Benefits Expense","Hospital Services",2.4,"Outpatient FFS: Other than ER ",{"$f":"IFERROR('MMA Rev-Exp Region 9'!$D$23/'MMA Rev-Exp Region 9'!$D$9, 0)","v":{"v":0,"d":"$0.00"}},{"$f":"IFERROR('MMA Rev-Exp Region 9'!$E$23/'MMA Rev-Exp Region 9'!$E$9, 0)","v":{"v":0,"d":"$0.00"}},{"$f":"IFERROR('MMA Rev-Exp Region 9'!$F$23/'MMA Rev-Exp Region 9'!$F$9, 0)","v":{"v":0,"d":"$0.00"}},{"$f":"IFERROR('MMA Rev-Exp Region 9'!$G$23/'MMA Rev-Exp Region 9'!$G$9, 0)","v":{"v":0,"d":"$0.00"}},{"$f":"IFERROR('MMA Rev-Exp Region 9'!$H$23/'MMA Rev-Exp Region 9'!$H$9, 0)","v":{"v":0,"d":"$0.00"}},{"$f":"IFERROR('MMA Rev-Exp Region 9'!$I$23/'MMA Rev-Exp Region 9'!$I$9, 0)","v":{"v":0,"d":"$0.00"}},{"$f":"IFERROR('MMA Rev-Exp Region 9'!$J$23/'MMA Rev-Exp Region 9'!$J$9, 0)","v":{"v":0,"d":"$0.00"}},{"$f":"IFERROR('MMA Rev-Exp Region 9'!$K$23/'MMA Rev-Exp Region 9'!$K$9, 0)","v":{"v":0,"d":"$0.00"}},{"$f":"IFERROR('MMA Rev-Exp Region 9'!$L$23/'MMA Rev-Exp Region 9'!$L$9, 0)","v":{"v":0,"d":"$0.00"}},{"$f":"IFERROR('MMA Rev-Exp Region 9'!$M$23/'MMA Rev-Exp Region 9'!$M$9, 0)","v":{"v":0,"d":"$0.00"}},{"$f":"IFERROR('MMA Rev-Exp Region 9'!$N$23/'MMA Rev-Exp Region 9'!$N$9, 0)","v":{"v":0,"d":"$0.00"}}]
["MMA",null,null,2016,"2016-12-31","Q1","2017-03-31","Region 9","Operating Expense","Medical Benefits Expense","Hospital Services",2.5,"Ending IBNP for Outpatient Hospital Services",{"$f":"IFERROR('MMA Rev-Exp Region 9'!$D$24/'MMA Rev-Exp Region 9'!$D$9, 0)","v":{"v":0,"d":"$0.00"}},{"$f":"IFERROR('MMA Rev-Exp Region 9'!$E$24/'MMA Rev-Exp Region 9'!$E$9, 0)","v":{"v":0,"d":"$0.00"}},{"$f":"IFERROR('MMA Rev-Exp Region 9'!$F$24/'MMA Rev-Exp Region 9'!$F$9, 0)","v":{"v":0,"d":"$0.00"}},{"$f":"IFERROR('MMA Rev-Exp Region 9'!$G$24/'MMA Rev-Exp Region 9'!$G$9, 0)","v":{"v":0,"d":"$0.00"}},{"$f":"IFERROR('MMA Rev-Exp Region 9'!$H$24/'MMA Rev-Exp Region 9'!$H$9, 0)","v":{"v":0,"d":"$0.00"}},{"$f":"IFERROR('MMA Rev-Exp Region 9'!$I$24/'MMA Rev-Exp Region 9'!$I$9, 0)","v":{"v":0,"d":"$0.00"}},{"$f":"IFERROR('MMA Rev-Exp Region 9'!$J$24/'MMA Rev-Exp Region 9'!$J$9, 0)","v":{"v":0,"d":"$0.00"}},{"$f":"IFERROR('MMA Rev-Exp Region 9'!$K$24/'MMA Rev-Exp Region 9'!$K$9, 0)","v":{"v":0,"d":"$0.00"}},{"$f":"IFERROR('MMA Rev-Exp Region 9'!$L$24/'MMA Rev-Exp Region 9'!$L$9, 0)","v":{"v":0,"d":"$0.00"}},{"$f":"IFERROR('MMA Rev-Exp Region 9'!$M$24/'MMA Rev-Exp Region 9'!$M$9, 0)","v":{"v":0,"d":"$0.00"}},{"$f":"IFERROR('MMA Rev-Exp Region 9'!$N$24/'MMA Rev-Exp Region 9'!$N$9, 0)","v":{"v":0,"d":"$0.00"}}]
["MMA",null,null,2016,"2016-12-31","Q1","2017-03-31","Region 9","Operating Expense","Medical Benefits Expense","Hospital Services","2.6","Subcapitated Hospital Services",{"$f":"IFERROR('MMA Rev-Exp Region 9'!$D$25/'MMA Rev-Exp Region 9'!$D$9, 0)","v":{"v":0,"d":"$0.00"}},{"$f":"IFERROR('MMA Rev-Exp Region 9'!$E$25/'MMA Rev-Exp Region 9'!$E$9, 0)","v":{"v":0,"d":"$0.00"}},{"$f":"IFERROR('MMA Rev-Exp Region 9'!$F$25/'MMA Rev-Exp Region 9'!$F$9, 0)","v":{"v":0,"d":"$0.00"}},{"$f":"IFERROR('MMA Rev-Exp Region 9'!$G$25/'MMA Rev-Exp Region 9'!$G$9, 0)","v":{"v":0,"d":"$0.00"}},{"$f":"IFERROR('MMA Rev-Exp Region 9'!$H$25/'MMA Rev-Exp Region 9'!$H$9, 0)","v":{"v":0,"d":"$0.00"}},{"$f":"IFERROR('MMA Rev-Exp Region 9'!$I$25/'MMA Rev-Exp Region 9'!$I$9, 0)","v":{"v":0,"d":"$0.00"}},{"$f":"IFERROR('MMA Rev-Exp Region 9'!$J$25/'MMA Rev-Exp Region 9'!$J$9, 0)","v":{"v":0,"d":"$0.00"}},{"$f":"IFERROR('MMA Rev-Exp Region 9'!$K$25/'MMA Rev-Exp Region 9'!$K$9, 0)","v":{"v":0,"d":"$0.00"}},{"$f":"IFERROR('MMA Rev-Exp Region 9'!$L$25/'MMA Rev-Exp Region 9'!$L$9, 0)","v":{"v":0,"d":"$0.00"}},{"$f":"IFERROR('MMA Rev-Exp Region 9'!$M$25/'MMA Rev-Exp Region 9'!$M$9, 0)","v":{"v":0,"d":"$0.00"}},{"$f":"IFERROR('MMA Rev-Exp Region 9'!$N$25/'MMA Rev-Exp Region 9'!$N$9, 0)","v":{"v":0,"d":"$0.00"}}]
["MMA",null,null,2016,"2016-12-31","Q1","2017-03-31","Region 9","Operating Expense","Medical Benefits Expense","Hospital Services","2.7","Hospital Settlements",{"$f":"IFERROR('MMA Rev-Exp Region 9'!$D$26/'MMA Rev-Exp Region 9'!$D$9, 0)","v":{"v":0,"d":"$0.00"}},{"$f":"IFERROR('MMA Rev-Exp Region 9'!$E$26/'MMA Rev-Exp Region 9'!$E$9, 0)","v":{"v":0,"d":"$0.00"}},{"$f":"IFERROR('MMA Rev-Exp Region 9'!$F$26/'MMA Rev-Exp Region 9'!$F$9, 0)","v":{"v":0,"d":"$0.00"}},{"$f":"IFERROR('MMA Rev-Exp Region 9'!$G$26/'MMA Rev-Exp Region 9'!$G$9, 0)","v":{"v":0,"d":"$0.00"}},{"$f":"IFERROR('MMA Rev-Exp Region 9'!$H$26/'MMA Rev-Exp Region 9'!$H$9, 0)","v":{"v":0,"d":"$0.00"}},{"$f":"IFERROR('MMA Rev-Exp Region 9'!$I$26/'MMA Rev-Exp Region 9'!$I$9, 0)","v":{"v":0,"d":"$0.00"}},{"$f":"IFERROR('MMA Rev-Exp Region 9'!$J$26/'MMA Rev-Exp Region 9'!$J$9, 0)","v":{"v":0,"d":"$0.00"}},{"$f":"IFERROR('MMA Rev-Exp Region 9'!$K$26/'MMA Rev-Exp Region 9'!$K$9, 0)","v":{"v":0,"d":"$0.00"}},{"$f":"IFERROR('MMA Rev-Exp Region 9'!$L$26/'MMA Rev-Exp Region 9'!$L$9, 0)","v":{"v":0,"d":"$0.00"}},{"$f":"IFERROR('MMA Rev-Exp Region 9'!$M$26/'MMA Rev-Exp Region 9'!$M$9, 0)","v":{"v":0,"d":"$0.00"}},{"$f":"IFERROR('MMA Rev-Exp Region 9'!$N$26/'MMA Rev-Exp Region 9'!$N$9, 0)","v":{"v":0,"d":"$0.00"}}]
["MMA",null,null,2016,"2016-12-31","Q1","2017-03-31","Region 9","Operating Expense","Medical Benefits Expense","Hospital Services","2.7.1","Transplant Services",{"$f":"IFERROR('MMA Rev-Exp Region 9'!$D$27/'MMA Rev-Exp Region 9'!$D$9, 0)","v":{"v":0,"d":"$0.00"}},{"$f":"IFERROR('MMA Rev-Exp Region 9'!$E$27/'MMA Rev-Exp Region 9'!$E$9, 0)","v":{"v":0,"d":"$0.00"}},{"$f":"IFERROR('MMA Rev-Exp Region 9'!$F$27/'MMA Rev-Exp Region 9'!$F$9, 0)","v":{"v":0,"d":"$0.00"}},{"$f":"IFERROR('MMA Rev-Exp Region 9'!$G$27/'MMA Rev-Exp Region 9'!$G$9, 0)","v":{"v":0,"d":"$0.00"}},{"$f":"IFERROR('MMA Rev-Exp Region 9'!$H$27/'MMA Rev-Exp Region 9'!$H$9, 0)","v":{"v":0,"d":"$0.00"}},{"$f":"IFERROR('MMA Rev-Exp Region 9'!$I$27/'MMA Rev-Exp Region 9'!$I$9, 0)","v":{"v":0,"d":"$0.00"}},{"$f":"IFERROR('MMA Rev-Exp Region 9'!$J$27/'MMA Rev-Exp Region 9'!$J$9, 0)","v":{"v":0,"d":"$0.00"}},{"$f":"IFERROR('MMA Rev-Exp Region 9'!$K$27/'MMA Rev-Exp Region 9'!$K$9, 0)","v":{"v":0,"d":"$0.00"}},{"$f":"IFERROR('MMA Rev-Exp Region 9'!$L$27/'MMA Rev-Exp Region 9'!$L$9, 0)","v":{"v":0,"d":"$0.00"}},{"$f":"IFERROR('MMA Rev-Exp Region 9'!$M$27/'MMA Rev-Exp Region 9'!$M$9, 0)","v":{"v":0,"d":"$0.00"}},{"$f":"IFERROR('MMA Rev-Exp Region 9'!$N$27/'MMA Rev-Exp Region 9'!$N$9, 0)","v":{"v":0,"d":"$0.00"}}]
["MMA",null,null,2016,"2016-12-31","Q1","2017-03-31","Region 9","Operating Expense","Medical Benefits Expense","Professional Services",3.1,"Primary Care FFS",{"$f":"IFERROR('MMA Rev-Exp Region 9'!$D$29/'MMA Rev-Exp Region 9'!$D$9, 0)","v":{"v":0,"d":"$0.00"}},{"$f":"IFERROR('MMA Rev-Exp Region 9'!$E$29/'MMA Rev-Exp Region 9'!$E$9, 0)","v":{"v":0,"d":"$0.00"}},{"$f":"IFERROR('MMA Rev-Exp Region 9'!$F$29/'MMA Rev-Exp Region 9'!$F$9, 0)","v":{"v":0,"d":"$0.00"}},{"$f":"IFERROR('MMA Rev-Exp Region 9'!$G$29/'MMA Rev-Exp Region 9'!$G$9, 0)","v":{"v":0,"d":"$0.00"}},{"$f":"IFERROR('MMA Rev-Exp Region 9'!$H$29/'MMA Rev-Exp Region 9'!$H$9, 0)","v":{"v":0,"d":"$0.00"}},{"$f":"IFERROR('MMA Rev-Exp Region 9'!$I$29/'MMA Rev-Exp Region 9'!$I$9, 0)","v":{"v":0,"d":"$0.00"}},{"$f":"IFERROR('MMA Rev-Exp Region 9'!$J$29/'MMA Rev-Exp Region 9'!$J$9, 0)","v":{"v":0,"d":"$0.00"}},{"$f":"IFERROR('MMA Rev-Exp Region 9'!$K$29/'MMA Rev-Exp Region 9'!$K$9, 0)","v":{"v":0,"d":"$0.00"}},{"$f":"IFERROR('MMA Rev-Exp Region 9'!$L$29/'MMA Rev-Exp Region 9'!$L$9, 0)","v":{"v":0,"d":"$0.00"}},{"$f":"IFERROR('MMA Rev-Exp Region 9'!$M$29/'MMA Rev-Exp Region 9'!$M$9, 0)","v":{"v":0,"d":"$0.00"}},{"$f":"IFERROR('MMA Rev-Exp Region 9'!$N$29/'MMA Rev-Exp Region 9'!$N$9, 0)","v":{"v":0,"d":"$0.00"}}]
["MMA",null,null,2016,"2016-12-31","Q1","2017-03-31","Region 9","Operating Expense","Medical Benefits Expense","Professional Services",3.2,"Specialty Care FFS",{"$f":"IFERROR('MMA Rev-Exp Region 9'!$D$30/'MMA Rev-Exp Region 9'!$D$9, 0)","v":{"v":0,"d":"$0.00"}},{"$f":"IFERROR('MMA Rev-Exp Region 9'!$E$30/'MMA Rev-Exp Region 9'!$E$9, 0)","v":{"v":0,"d":"$0.00"}},{"$f":"IFERROR('MMA Rev-Exp Region 9'!$F$30/'MMA Rev-Exp Region 9'!$F$9, 0)","v":{"v":0,"d":"$0.00"}},{"$f":"IFERROR('MMA Rev-Exp Region 9'!$G$30/'MMA Rev-Exp Region 9'!$G$9, 0)","v":{"v":0,"d":"$0.00"}},{"$f":"IFERROR('MMA Rev-Exp Region 9'!$H$30/'MMA Rev-Exp Region 9'!$H$9, 0)","v":{"v":0,"d":"$0.00"}},{"$f":"IFERROR('MMA Rev-Exp Region 9'!$I$30/'MMA Rev-Exp Region 9'!$I$9, 0)","v":{"v":0,"d":"$0.00"}},{"$f":"IFERROR('MMA Rev-Exp Region 9'!$J$30/'MMA Rev-Exp Region 9'!$J$9, 0)","v":{"v":0,"d":"$0.00"}},{"$f":"IFERROR('MMA Rev-Exp Region 9'!$K$30/'MMA Rev-Exp Region 9'!$K$9, 0)","v":{"v":0,"d":"$0.00"}},{"$f":"IFERROR('MMA Rev-Exp Region 9'!$L$30/'MMA Rev-Exp Region 9'!$L$9, 0)","v":{"v":0,"d":"$0.00"}},{"$f":"IFERROR('MMA Rev-Exp Region 9'!$M$30/'MMA Rev-Exp Region 9'!$M$9, 0)","v":{"v":0,"d":"$0.00"}},{"$f":"IFERROR('MMA Rev-Exp Region 9'!$N$30/'MMA Rev-Exp Region 9'!$N$9, 0)","v":{"v":0,"d":"$0.00"}}]
["MMA",null,null,2016,"2016-12-31","Q1","2017-03-31","Region 9","Operating Expense","Medical Benefits Expense","Professional Services",3.3,"Other Professional FFS",{"$f":"IFERROR('MMA Rev-Exp Region 9'!$D$31/'MMA Rev-Exp Region 9'!$D$9, 0)","v":{"v":0,"d":"$0.00"}},{"$f":"IFERROR('MMA Rev-Exp Region 9'!$E$31/'MMA Rev-Exp Region 9'!$E$9, 0)","v":{"v":0,"d":"$0.00"}},{"$f":"IFERROR('MMA Rev-Exp Region 9'!$F$31/'MMA Rev-Exp Region 9'!$F$9, 0)","v":{"v":0,"d":"$0.00"}},{"$f":"IFERROR('MMA Rev-Exp Region 9'!$G$31/'MMA Rev-Exp Region 9'!$G$9, 0)","v":{"v":0,"d":"$0.00"}},{"$f":"IFERROR('MMA Rev-Exp Region 9'!$H$31/'MMA Rev-Exp Region 9'!$H$9, 0)","v":{"v":0,"d":"$0.00"}},{"$f":"IFERROR('MMA Rev-Exp Region 9'!$I$31/'MMA Rev-Exp Region 9'!$I$9, 0)","v":{"v":0,"d":"$0.00"}},{"$f":"IFERROR('MMA Rev-Exp Region 9'!$J$31/'MMA Rev-Exp Region 9'!$J$9, 0)","v":{"v":0,"d":"$0.00"}},{"$f":"IFERROR('MMA Rev-Exp Region 9'!$K$31/'MMA Rev-Exp Region 9'!$K$9, 0)","v":{"v":0,"d":"$0.00"}},{"$f":"IFERROR('MMA Rev-Exp Region 9'!$L$31/'MMA Rev-Exp Region 9'!$L$9, 0)","v":{"v":0,"d":"$0.00"}},{"$f":"IFERROR('MMA Rev-Exp Region 9'!$M$31/'MMA Rev-Exp Region 9'!$M$9, 0)","v":{"v":0,"d":"$0.00"}},{"$f":"IFERROR('MMA Rev-Exp Region 9'!$N$31/'MMA Rev-Exp Region 9'!$N$9, 0)","v":{"v":0,"d":"$0.00"}}]
["MMA",null,null,2016,"2016-12-31","Q1","2017-03-31","Region 9","Operating Expense","Medical Benefits Expense","Professional Services","3.4","§ 1202 PCP Payments to providers",{"$f":"IFERROR('MMA Rev-Exp Region 9'!$D$32/'MMA Rev-Exp Region 9'!$D$9, 0)","v":{"v":0,"d":"$0.00"}},{"$f":"IFERROR('MMA Rev-Exp Region 9'!$E$32/'MMA Rev-Exp Region 9'!$E$9, 0)","v":{"v":0,"d":"$0.00"}},{"$f":"IFERROR('MMA Rev-Exp Region 9'!$F$32/'MMA Rev-Exp Region 9'!$F$9, 0)","v":{"v":0,"d":"$0.00"}},{"$f":"IFERROR('MMA Rev-Exp Region 9'!$G$32/'MMA Rev-Exp Region 9'!$G$9, 0)","v":{"v":0,"d":"$0.00"}},{"$f":"IFERROR('MMA Rev-Exp Region 9'!$H$32/'MMA Rev-Exp Region 9'!$H$9, 0)","v":{"v":0,"d":"$0.00"}},{"$f":"IFERROR('MMA Rev-Exp Region 9'!$I$32/'MMA Rev-Exp Region 9'!$I$9, 0)","v":{"v":0,"d":"$0.00"}},{"$f":"IFERROR('MMA Rev-Exp Region 9'!$J$32/'MMA Rev-Exp Region 9'!$J$9, 0)","v":{"v":0,"d":"$0.00"}},{"$f":"IFERROR('MMA Rev-Exp Region 9'!$K$32/'MMA Rev-Exp Region 9'!$K$9, 0)","v":{"v":0,"d":"$0.00"}},{"$f":"IFERROR('MMA Rev-Exp Region 9'!$L$32/'MMA Rev-Exp Region 9'!$L$9, 0)","v":{"v":0,"d":"$0.00"}},{"$f":"IFERROR('MMA Rev-Exp Region 9'!$M$32/'MMA Rev-Exp Region 9'!$M$9, 0)","v":{"v":0,"d":"$0.00"}},{"$f":"IFERROR('MMA Rev-Exp Region 9'!$N$32/'MMA Rev-Exp Region 9'!$N$9, 0)","v":{"v":0,"d":"$0.00"}}]
["MMA",null,null,2016,"2016-12-31","Q1","2017-03-31","Region 9","Operating Expense","Medical Benefits Expense","Professional Services","3.5","Subcapitated Professional Services",{"$f":"IFERROR('MMA Rev-Exp Region 9'!$D$33/'MMA Rev-Exp Region 9'!$D$9, 0)","v":{"v":0,"d":"$0.00"}},{"$f":"IFERROR('MMA Rev-Exp Region 9'!$E$33/'MMA Rev-Exp Region 9'!$E$9, 0)","v":{"v":0,"d":"$0.00"}},{"$f":"IFERROR('MMA Rev-Exp Region 9'!$F$33/'MMA Rev-Exp Region 9'!$F$9, 0)","v":{"v":0,"d":"$0.00"}},{"$f":"IFERROR('MMA Rev-Exp Region 9'!$G$33/'MMA Rev-Exp Region 9'!$G$9, 0)","v":{"v":0,"d":"$0.00"}},{"$f":"IFERROR('MMA Rev-Exp Region 9'!$H$33/'MMA Rev-Exp Region 9'!$H$9, 0)","v":{"v":0,"d":"$0.00"}},{"$f":"IFERROR('MMA Rev-Exp Region 9'!$I$33/'MMA Rev-Exp Region 9'!$I$9, 0)","v":{"v":0,"d":"$0.00"}},{"$f":"IFERROR('MMA Rev-Exp Region 9'!$J$33/'MMA Rev-Exp Region 9'!$J$9, 0)","v":{"v":0,"d":"$0.00"}},{"$f":"IFERROR('MMA Rev-Exp Region 9'!$K$33/'MMA Rev-Exp Region 9'!$K$9, 0)","v":{"v":0,"d":"$0.00"}},{"$f":"IFERROR('MMA Rev-Exp Region 9'!$L$33/'MMA Rev-Exp Region 9'!$L$9, 0)","v":{"v":0,"d":"$0.00"}},{"$f":"IFERROR('MMA Rev-Exp Region 9'!$M$33/'MMA Rev-Exp Region 9'!$M$9, 0)","v":{"v":0,"d":"$0.00"}},{"$f":"IFERROR('MMA Rev-Exp Region 9'!$N$33/'MMA Rev-Exp Region 9'!$N$9, 0)","v":{"v":0,"d":"$0.00"}}]
["MMA",null,null,2016,"2016-12-31","Q1","2017-03-31","Region 9","Operating Expense","Medical Benefits Expense","Professional Services","3.6","Ending IBNP for Professional Services",{"$f":"IFERROR('MMA Rev-Exp Region 9'!$D$34/'MMA Rev-Exp Region 9'!$D$9, 0)","v":{"v":0,"d":"$0.00"}},{"$f":"IFERROR('MMA Rev-Exp Region 9'!$E$34/'MMA Rev-Exp Region 9'!$E$9, 0)","v":{"v":0,"d":"$0.00"}},{"$f":"IFERROR('MMA Rev-Exp Region 9'!$F$34/'MMA Rev-Exp Region 9'!$F$9, 0)","v":{"v":0,"d":"$0.00"}},{"$f":"IFERROR('MMA Rev-Exp Region 9'!$G$34/'MMA Rev-Exp Region 9'!$G$9, 0)","v":{"v":0,"d":"$0.00"}},{"$f":"IFERROR('MMA Rev-Exp Region 9'!$H$34/'MMA Rev-Exp Region 9'!$H$9, 0)","v":{"v":0,"d":"$0.00"}},{"$f":"IFERROR('MMA Rev-Exp Region 9'!$I$34/'MMA Rev-Exp Region 9'!$I$9, 0)","v":{"v":0,"d":"$0.00"}},{"$f":"IFERROR('MMA Rev-Exp Region 9'!$J$34/'MMA Rev-Exp Region 9'!$J$9, 0)","v":{"v":0,"d":"$0.00"}},{"$f":"IFERROR('MMA Rev-Exp Region 9'!$K$34/'MMA Rev-Exp Region 9'!$K$9, 0)","v":{"v":0,"d":"$0.00"}},{"$f":"IFERROR('MMA Rev-Exp Region 9'!$L$34/'MMA Rev-Exp Region 9'!$L$9, 0)","v":{"v":0,"d":"$0.00"}},{"$f":"IFERROR('MMA Rev-Exp Region 9'!$M$34/'MMA Rev-Exp Region 9'!$M$9, 0)","v":{"v":0,"d":"$0.00"}},{"$f":"IFERROR('MMA Rev-Exp Region 9'!$N$34/'MMA Rev-Exp Region 9'!$N$9, 0)","v":{"v":0,"d":"$0.00"}}]
["MMA",null,null,2016,"2016-12-31","Q1","2017-03-31","Region 9","Operating Expense","Medical Benefits Expense","Professional Services","3.7","Professional Services Settlements",{"$f":"IFERROR('MMA Rev-Exp Region 9'!$D$35/'MMA Rev-Exp Region 9'!$D$9, 0)","v":{"v":0,"d":"$0.00"}},{"$f":"IFERROR('MMA Rev-Exp Region 9'!$E$35/'MMA Rev-Exp Region 9'!$E$9, 0)","v":{"v":0,"d":"$0.00"}},{"$f":"IFERROR('MMA Rev-Exp Region 9'!$F$35/'MMA Rev-Exp Region 9'!$F$9, 0)","v":{"v":0,"d":"$0.00"}},{"$f":"IFERROR('MMA Rev-Exp Region 9'!$G$35/'MMA Rev-Exp Region 9'!$G$9, 0)","v":{"v":0,"d":"$0.00"}},{"$f":"IFERROR('MMA Rev-Exp Region 9'!$H$35/'MMA Rev-Exp Region 9'!$H$9, 0)","v":{"v":0,"d":"$0.00"}},{"$f":"IFERROR('MMA Rev-Exp Region 9'!$I$35/'MMA Rev-Exp Region 9'!$I$9, 0)","v":{"v":0,"d":"$0.00"}},{"$f":"IFERROR('MMA Rev-Exp Region 9'!$J$35/'MMA Rev-Exp Region 9'!$J$9, 0)","v":{"v":0,"d":"$0.00"}},{"$f":"IFERROR('MMA Rev-Exp Region 9'!$K$35/'MMA Rev-Exp Region 9'!$K$9, 0)","v":{"v":0,"d":"$0.00"}},{"$f":"IFERROR('MMA Rev-Exp Region 9'!$L$35/'MMA Rev-Exp Region 9'!$L$9, 0)","v":{"v":0,"d":"$0.00"}},{"$f":"IFERROR('MMA Rev-Exp Region 9'!$M$35/'MMA Rev-Exp Region 9'!$M$9, 0)","v":{"v":0,"d":"$0.00"}},{"$f":"IFERROR('MMA Rev-Exp Region 9'!$N$35/'MMA Rev-Exp Region 9'!$N$9, 0)","v":{"v":0,"d":"$0.00"}}]
["MMA",null,null,2016,"2016-12-31","Q1","2017-03-31","Region 9","Operating Expense","Medical Benefits Expense","Maternity Services","4.1.1","Maternity Services",{"$f":"IFERROR('MMA Rev-Exp Region 9'!$D$37/'MMA Rev-Exp Region 9'!$D$9, 0)","v":{"v":0,"d":"$0.00"}},{"$f":"IFERROR('MMA Rev-Exp Region 9'!$E$37/'MMA Rev-Exp Region 9'!$E$9, 0)","v":{"v":0,"d":"$0.00"}},{"$f":"IFERROR('MMA Rev-Exp Region 9'!$F$37/'MMA Rev-Exp Region 9'!$F$9, 0)","v":{"v":0,"d":"$0.00"}},{"$f":"IFERROR('MMA Rev-Exp Region 9'!$G$37/'MMA Rev-Exp Region 9'!$G$9, 0)","v":{"v":0,"d":"$0.00"}},{"$f":"IFERROR('MMA Rev-Exp Region 9'!$H$37/'MMA Rev-Exp Region 9'!$H$9, 0)","v":{"v":0,"d":"$0.00"}},{"$f":"IFERROR('MMA Rev-Exp Region 9'!$I$37/'MMA Rev-Exp Region 9'!$I$9, 0)","v":{"v":0,"d":"$0.00"}},{"$f":"IFERROR('MMA Rev-Exp Region 9'!$J$37/'MMA Rev-Exp Region 9'!$J$9, 0)","v":{"v":0,"d":"$0.00"}},{"$f":"IFERROR('MMA Rev-Exp Region 9'!$K$37/'MMA Rev-Exp Region 9'!$K$9, 0)","v":{"v":0,"d":"$0.00"}},{"$f":"IFERROR('MMA Rev-Exp Region 9'!$L$37/'MMA Rev-Exp Region 9'!$L$9, 0)","v":{"v":0,"d":"$0.00"}},{"$f":"IFERROR('MMA Rev-Exp Region 9'!$M$37/'MMA Rev-Exp Region 9'!$M$9, 0)","v":{"v":0,"d":"$0.00"}},{"$f":"IFERROR('MMA Rev-Exp Region 9'!$N$37/'MMA Rev-Exp Region 9'!$N$9, 0)","v":{"v":0,"d":"$0.00"}}]
["MMA",null,null,2016,"2016-12-31","Q1","2017-03-31","Region 9","Operating Expense","Medical Benefits Expense","Maternity Services","4.2.1","Ending IBNP for Maternity Services",{"$f":"IFERROR('MMA Rev-Exp Region 9'!$D$38/'MMA Rev-Exp Region 9'!$D$9, 0)","v":{"v":0,"d":"$0.00"}},{"$f":"IFERROR('MMA Rev-Exp Region 9'!$E$38/'MMA Rev-Exp Region 9'!$E$9, 0)","v":{"v":0,"d":"$0.00"}},{"$f":"IFERROR('MMA Rev-Exp Region 9'!$F$38/'MMA Rev-Exp Region 9'!$F$9, 0)","v":{"v":0,"d":"$0.00"}},{"$f":"IFERROR('MMA Rev-Exp Region 9'!$G$38/'MMA Rev-Exp Region 9'!$G$9, 0)","v":{"v":0,"d":"$0.00"}},{"$f":"IFERROR('MMA Rev-Exp Region 9'!$H$38/'MMA Rev-Exp Region 9'!$H$9, 0)","v":{"v":0,"d":"$0.00"}},{"$f":"IFERROR('MMA Rev-Exp Region 9'!$I$38/'MMA Rev-Exp Region 9'!$I$9, 0)","v":{"v":0,"d":"$0.00"}},{"$f":"IFERROR('MMA Rev-Exp Region 9'!$J$38/'MMA Rev-Exp Region 9'!$J$9, 0)","v":{"v":0,"d":"$0.00"}},{"$f":"IFERROR('MMA Rev-Exp Region 9'!$K$38/'MMA Rev-Exp Region 9'!$K$9, 0)","v":{"v":0,"d":"$0.00"}},{"$f":"IFERROR('MMA Rev-Exp Region 9'!$L$38/'MMA Rev-Exp Region 9'!$L$9, 0)","v":{"v":0,"d":"$0.00"}},{"$f":"IFERROR('MMA Rev-Exp Region 9'!$M$38/'MMA Rev-Exp Region 9'!$M$9, 0)","v":{"v":0,"d":"$0.00"}},{"$f":"IFERROR('MMA Rev-Exp Region 9'!$N$38/'MMA Rev-Exp Region 9'!$N$9, 0)","v":{"v":0,"d":"$0.00"}}]
["MMA",null,null,2016,"2016-12-31","Q1","2017-03-31","Region 9","Operating Expense","Medical Benefits Expense","Maternity Services","4.3.1","Maternity Settlements",{"$f":"IFERROR('MMA Rev-Exp Region 9'!$D$39/'MMA Rev-Exp Region 9'!$D$9, 0)","v":{"v":0,"d":"$0.00"}},{"$f":"IFERROR('MMA Rev-Exp Region 9'!$E$39/'MMA Rev-Exp Region 9'!$E$9, 0)","v":{"v":0,"d":"$0.00"}},{"$f":"IFERROR('MMA Rev-Exp Region 9'!$F$39/'MMA Rev-Exp Region 9'!$F$9, 0)","v":{"v":0,"d":"$0.00"}},{"$f":"IFERROR('MMA Rev-Exp Region 9'!$G$39/'MMA Rev-Exp Region 9'!$G$9, 0)","v":{"v":0,"d":"$0.00"}},{"$f":"IFERROR('MMA Rev-Exp Region 9'!$H$39/'MMA Rev-Exp Region 9'!$H$9, 0)","v":{"v":0,"d":"$0.00"}},{"$f":"IFERROR('MMA Rev-Exp Region 9'!$I$39/'MMA Rev-Exp Region 9'!$I$9, 0)","v":{"v":0,"d":"$0.00"}},{"$f":"IFERROR('MMA Rev-Exp Region 9'!$J$39/'MMA Rev-Exp Region 9'!$J$9, 0)","v":{"v":0,"d":"$0.00"}},{"$f":"IFERROR('MMA Rev-Exp Region 9'!$K$39/'MMA Rev-Exp Region 9'!$K$9, 0)","v":{"v":0,"d":"$0.00"}},{"$f":"IFERROR('MMA Rev-Exp Region 9'!$L$39/'MMA Rev-Exp Region 9'!$L$9, 0)","v":{"v":0,"d":"$0.00"}},{"$f":"IFERROR('MMA Rev-Exp Region 9'!$M$39/'MMA Rev-Exp Region 9'!$M$9, 0)","v":{"v":0,"d":"$0.00"}},{"$f":"IFERROR('MMA Rev-Exp Region 9'!$N$39/'MMA Rev-Exp Region 9'!$N$9, 0)","v":{"v":0,"d":"$0.00"}}]
["MMA",null,null,2016,"2016-12-31","Q1","2017-03-31","Region 9","Operating Expense","Medical Benefits Expense","Mental Health Services",5.1,"Mental Health & Substance Abuse FFS",{"$f":"IFERROR('MMA Rev-Exp Region 9'!$D$41/'MMA Rev-Exp Region 9'!$D$9, 0)","v":{"v":0,"d":"$0.00"}},{"$f":"IFERROR('MMA Rev-Exp Region 9'!$E$41/'MMA Rev-Exp Region 9'!$E$9, 0)","v":{"v":0,"d":"$0.00"}},{"$f":"IFERROR('MMA Rev-Exp Region 9'!$F$41/'MMA Rev-Exp Region 9'!$F$9, 0)","v":{"v":0,"d":"$0.00"}},{"$f":"IFERROR('MMA Rev-Exp Region 9'!$G$41/'MMA Rev-Exp Region 9'!$G$9, 0)","v":{"v":0,"d":"$0.00"}},{"$f":"IFERROR('MMA Rev-Exp Region 9'!$H$41/'MMA Rev-Exp Region 9'!$H$9, 0)","v":{"v":0,"d":"$0.00"}},{"$f":"IFERROR('MMA Rev-Exp Region 9'!$I$41/'MMA Rev-Exp Region 9'!$I$9, 0)","v":{"v":0,"d":"$0.00"}},{"$f":"IFERROR('MMA Rev-Exp Region 9'!$J$41/'MMA Rev-Exp Region 9'!$J$9, 0)","v":{"v":0,"d":"$0.00"}},{"$f":"IFERROR('MMA Rev-Exp Region 9'!$K$41/'MMA Rev-Exp Region 9'!$K$9, 0)","v":{"v":0,"d":"$0.00"}},{"$f":"IFERROR('MMA Rev-Exp Region 9'!$L$41/'MMA Rev-Exp Region 9'!$L$9, 0)","v":{"v":0,"d":"$0.00"}},{"$f":"IFERROR('MMA Rev-Exp Region 9'!$M$41/'MMA Rev-Exp Region 9'!$M$9, 0)","v":{"v":0,"d":"$0.00"}},{"$f":"IFERROR('MMA Rev-Exp Region 9'!$N$41/'MMA Rev-Exp Region 9'!$N$9, 0)","v":{"v":0,"d":"$0.00"}}]
["MMA",null,null,2016,"2016-12-31","Q1","2017-03-31","Region 9","Operating Expense","Medical Benefits Expense","Mental Health Services",5.2,"Mental Health & Substance Abuse Subcapitation",{"$f":"IFERROR('MMA Rev-Exp Region 9'!$D$42/'MMA Rev-Exp Region 9'!$D$9, 0)","v":{"v":0,"d":"$0.00"}},{"$f":"IFERROR('MMA Rev-Exp Region 9'!$E$42/'MMA Rev-Exp Region 9'!$E$9, 0)","v":{"v":0,"d":"$0.00"}},{"$f":"IFERROR('MMA Rev-Exp Region 9'!$F$42/'MMA Rev-Exp Region 9'!$F$9, 0)","v":{"v":0,"d":"$0.00"}},{"$f":"IFERROR('MMA Rev-Exp Region 9'!$G$42/'MMA Rev-Exp Region 9'!$G$9, 0)","v":{"v":0,"d":"$0.00"}},{"$f":"IFERROR('MMA Rev-Exp Region 9'!$H$42/'MMA Rev-Exp Region 9'!$H$9, 0)","v":{"v":0,"d":"$0.00"}},{"$f":"IFERROR('MMA Rev-Exp Region 9'!$I$42/'MMA Rev-Exp Region 9'!$I$9, 0)","v":{"v":0,"d":"$0.00"}},{"$f":"IFERROR('MMA Rev-Exp Region 9'!$J$42/'MMA Rev-Exp Region 9'!$J$9, 0)","v":{"v":0,"d":"$0.00"}},{"$f":"IFERROR('MMA Rev-Exp Region 9'!$K$42/'MMA Rev-Exp Region 9'!$K$9, 0)","v":{"v":0,"d":"$0.00"}},{"$f":"IFERROR('MMA Rev-Exp Region 9'!$L$42/'MMA Rev-Exp Region 9'!$L$9, 0)","v":{"v":0,"d":"$0.00"}},{"$f":"IFERROR('MMA Rev-Exp Region 9'!$M$42/'MMA Rev-Exp Region 9'!$M$9, 0)","v":{"v":0,"d":"$0.00"}},{"$f":"IFERROR('MMA Rev-Exp Region 9'!$N$42/'MMA Rev-Exp Region 9'!$N$9, 0)","v":{"v":0,"d":"$0.00"}}]
["MMA",null,null,2016,"2016-12-31","Q1","2017-03-31","Region 9","Operating Expense","Medical Benefits Expense","Mental Health Services",5.3,"Ending IBNP for Mental Health & Substance Abuse",{"$f":"IFERROR('MMA Rev-Exp Region 9'!$D$43/'MMA Rev-Exp Region 9'!$D$9, 0)","v":{"v":0,"d":"$0.00"}},{"$f":"IFERROR('MMA Rev-Exp Region 9'!$E$43/'MMA Rev-Exp Region 9'!$E$9, 0)","v":{"v":0,"d":"$0.00"}},{"$f":"IFERROR('MMA Rev-Exp Region 9'!$F$43/'MMA Rev-Exp Region 9'!$F$9, 0)","v":{"v":0,"d":"$0.00"}},{"$f":"IFERROR('MMA Rev-Exp Region 9'!$G$43/'MMA Rev-Exp Region 9'!$G$9, 0)","v":{"v":0,"d":"$0.00"}},{"$f":"IFERROR('MMA Rev-Exp Region 9'!$H$43/'MMA Rev-Exp Region 9'!$H$9, 0)","v":{"v":0,"d":"$0.00"}},{"$f":"IFERROR('MMA Rev-Exp Region 9'!$I$43/'MMA Rev-Exp Region 9'!$I$9, 0)","v":{"v":0,"d":"$0.00"}},{"$f":"IFERROR('MMA Rev-Exp Region 9'!$J$43/'MMA Rev-Exp Region 9'!$J$9, 0)","v":{"v":0,"d":"$0.00"}},{"$f":"IFERROR('MMA Rev-Exp Region 9'!$K$43/'MMA Rev-Exp Region 9'!$K$9, 0)","v":{"v":0,"d":"$0.00"}},{"$f":"IFERROR('MMA Rev-Exp Region 9'!$L$43/'MMA Rev-Exp Region 9'!$L$9, 0)","v":{"v":0,"d":"$0.00"}},{"$f":"IFERROR('MMA Rev-Exp Region 9'!$M$43/'MMA Rev-Exp Region 9'!$M$9, 0)","v":{"v":0,"d":"$0.00"}},{"$f":"IFERROR('MMA Rev-Exp Region 9'!$N$43/'MMA Rev-Exp Region 9'!$N$9, 0)","v":{"v":0,"d":"$0.00"}}]
["MMA",null,null,2016,"2016-12-31","Q1","2017-03-31","Region 9","Operating Expense","Medical Benefits Expense","Mental Health Services","5.4","Mental Health Settlements",{"$f":"IFERROR('MMA Rev-Exp Region 9'!$D$44/'MMA Rev-Exp Region 9'!$D$9, 0)","v":{"v":0,"d":"$0.00"}},{"$f":"IFERROR('MMA Rev-Exp Region 9'!$E$44/'MMA Rev-Exp Region 9'!$E$9, 0)","v":{"v":0,"d":"$0.00"}},{"$f":"IFERROR('MMA Rev-Exp Region 9'!$F$44/'MMA Rev-Exp Region 9'!$F$9, 0)","v":{"v":0,"d":"$0.00"}},{"$f":"IFERROR('MMA Rev-Exp Region 9'!$G$44/'MMA Rev-Exp Region 9'!$G$9, 0)","v":{"v":0,"d":"$0.00"}},{"$f":"IFERROR('MMA Rev-Exp Region 9'!$H$44/'MMA Rev-Exp Region 9'!$H$9, 0)","v":{"v":0,"d":"$0.00"}},{"$f":"IFERROR('MMA Rev-Exp Region 9'!$I$44/'MMA Rev-Exp Region 9'!$I$9, 0)","v":{"v":0,"d":"$0.00"}},{"$f":"IFERROR('MMA Rev-Exp Region 9'!$J$44/'MMA Rev-Exp Region 9'!$J$9, 0)","v":{"v":0,"d":"$0.00"}},{"$f":"IFERROR('MMA Rev-Exp Region 9'!$K$44/'MMA Rev-Exp Region 9'!$K$9, 0)","v":{"v":0,"d":"$0.00"}},{"$f":"IFERROR('MMA Rev-Exp Region 9'!$L$44/'MMA Rev-Exp Region 9'!$L$9, 0)","v":{"v":0,"d":"$0.00"}},{"$f":"IFERROR('MMA Rev-Exp Region 9'!$M$44/'MMA Rev-Exp Region 9'!$M$9, 0)","v":{"v":0,"d":"$0.00"}},{"$f":"IFERROR('MMA Rev-Exp Region 9'!$N$44/'MMA Rev-Exp Region 9'!$N$9, 0)","v":{"v":0,"d":"$0.00"}}]
["MMA",null,null,2016,"2016-12-31","Q1","2017-03-31","Region 9","Operating Expense","Medical Benefits Expense","Dental Services",6.1,"Dental FFS",{"$f":"IFERROR('MMA Rev-Exp Region 9'!$D$46/'MMA Rev-Exp Region 9'!$D$9, 0)","v":{"v":0,"d":"$0.00"}},{"$f":"IFERROR('MMA Rev-Exp Region 9'!$E$46/'MMA Rev-Exp Region 9'!$E$9, 0)","v":{"v":0,"d":"$0.00"}},{"$f":"IFERROR('MMA Rev-Exp Region 9'!$F$46/'MMA Rev-Exp Region 9'!$F$9, 0)","v":{"v":0,"d":"$0.00"}},{"$f":"IFERROR('MMA Rev-Exp Region 9'!$G$46/'MMA Rev-Exp Region 9'!$G$9, 0)","v":{"v":0,"d":"$0.00"}},{"$f":"IFERROR('MMA Rev-Exp Region 9'!$H$46/'MMA Rev-Exp Region 9'!$H$9, 0)","v":{"v":0,"d":"$0.00"}},{"$f":"IFERROR('MMA Rev-Exp Region 9'!$I$46/'MMA Rev-Exp Region 9'!$I$9, 0)","v":{"v":0,"d":"$0.00"}},{"$f":"IFERROR('MMA Rev-Exp Region 9'!$J$46/'MMA Rev-Exp Region 9'!$J$9, 0)","v":{"v":0,"d":"$0.00"}},{"$f":"IFERROR('MMA Rev-Exp Region 9'!$K$46/'MMA Rev-Exp Region 9'!$K$9, 0)","v":{"v":0,"d":"$0.00"}},{"$f":"IFERROR('MMA Rev-Exp Region 9'!$L$46/'MMA Rev-Exp Region 9'!$L$9, 0)","v":{"v":0,"d":"$0.00"}},{"$f":"IFERROR('MMA Rev-Exp Region 9'!$M$46/'MMA Rev-Exp Region 9'!$M$9, 0)","v":{"v":0,"d":"$0.00"}},{"$f":"IFERROR('MMA Rev-Exp Region 9'!$N$46/'MMA Rev-Exp Region 9'!$N$9, 0)","v":{"v":0,"d":"$0.00"}}]
["MMA",null,null,2016,"2016-12-31","Q1","2017-03-31","Region 9","Operating Expense","Medical Benefits Expense","Dental Services",6.2,"Dental Subcapitation",{"$f":"IFERROR('MMA Rev-Exp Region 9'!$D$47/'MMA Rev-Exp Region 9'!$D$9, 0)","v":{"v":0,"d":"$0.00"}},{"$f":"IFERROR('MMA Rev-Exp Region 9'!$E$47/'MMA Rev-Exp Region 9'!$E$9, 0)","v":{"v":0,"d":"$0.00"}},{"$f":"IFERROR('MMA Rev-Exp Region 9'!$F$47/'MMA Rev-Exp Region 9'!$F$9, 0)","v":{"v":0,"d":"$0.00"}},{"$f":"IFERROR('MMA Rev-Exp Region 9'!$G$47/'MMA Rev-Exp Region 9'!$G$9, 0)","v":{"v":0,"d":"$0.00"}},{"$f":"IFERROR('MMA Rev-Exp Region 9'!$H$47/'MMA Rev-Exp Region 9'!$H$9, 0)","v":{"v":0,"d":"$0.00"}},{"$f":"IFERROR('MMA Rev-Exp Region 9'!$I$47/'MMA Rev-Exp Region 9'!$I$9, 0)","v":{"v":0,"d":"$0.00"}},{"$f":"IFERROR('MMA Rev-Exp Region 9'!$J$47/'MMA Rev-Exp Region 9'!$J$9, 0)","v":{"v":0,"d":"$0.00"}},{"$f":"IFERROR('MMA Rev-Exp Region 9'!$K$47/'MMA Rev-Exp Region 9'!$K$9, 0)","v":{"v":0,"d":"$0.00"}},{"$f":"IFERROR('MMA Rev-Exp Region 9'!$L$47/'MMA Rev-Exp Region 9'!$L$9, 0)","v":{"v":0,"d":"$0.00"}},{"$f":"IFERROR('MMA Rev-Exp Region 9'!$M$47/'MMA Rev-Exp Region 9'!$M$9, 0)","v":{"v":0,"d":"$0.00"}},{"$f":"IFERROR('MMA Rev-Exp Region 9'!$N$47/'MMA Rev-Exp Region 9'!$N$9, 0)","v":{"v":0,"d":"$0.00"}}]
["MMA",null,null,2016,"2016-12-31","Q1","2017-03-31","Region 9","Operating Expense","Medical Benefits Expense","Dental Services",6.3,"Ending IBNP for Dental Services",{"$f":"IFERROR('MMA Rev-Exp Region 9'!$D$48/'MMA Rev-Exp Region 9'!$D$9, 0)","v":{"v":0,"d":"$0.00"}},{"$f":"IFERROR('MMA Rev-Exp Region 9'!$E$48/'MMA Rev-Exp Region 9'!$E$9, 0)","v":{"v":0,"d":"$0.00"}},{"$f":"IFERROR('MMA Rev-Exp Region 9'!$F$48/'MMA Rev-Exp Region 9'!$F$9, 0)","v":{"v":0,"d":"$0.00"}},{"$f":"IFERROR('MMA Rev-Exp Region 9'!$G$48/'MMA Rev-Exp Region 9'!$G$9, 0)","v":{"v":0,"d":"$0.00"}},{"$f":"IFERROR('MMA Rev-Exp Region 9'!$H$48/'MMA Rev-Exp Region 9'!$H$9, 0)","v":{"v":0,"d":"$0.00"}},{"$f":"IFERROR('MMA Rev-Exp Region 9'!$I$48/'MMA Rev-Exp Region 9'!$I$9, 0)","v":{"v":0,"d":"$0.00"}},{"$f":"IFERROR('MMA Rev-Exp Region 9'!$J$48/'MMA Rev-Exp Region 9'!$J$9, 0)","v":{"v":0,"d":"$0.00"}},{"$f":"IFERROR('MMA Rev-Exp Region 9'!$K$48/'MMA Rev-Exp Region 9'!$K$9, 0)","v":{"v":0,"d":"$0.00"}},{"$f":"IFERROR('MMA Rev-Exp Region 9'!$L$48/'MMA Rev-Exp Region 9'!$L$9, 0)","v":{"v":0,"d":"$0.00"}},{"$f":"IFERROR('MMA Rev-Exp Region 9'!$M$48/'MMA Rev-Exp Region 9'!$M$9, 0)","v":{"v":0,"d":"$0.00"}},{"$f":"IFERROR('MMA Rev-Exp Region 9'!$N$48/'MMA Rev-Exp Region 9'!$N$9, 0)","v":{"v":0,"d":"$0.00"}}]
["MMA",null,null,2016,"2016-12-31","Q1","2017-03-31","Region 9","Operating Expense","Medical Benefits Expense","Dental Services","6.4","Dental Settlements",{"$f":"IFERROR('MMA Rev-Exp Region 9'!$D$49/'MMA Rev-Exp Region 9'!$D$9, 0)","v":{"v":0,"d":"$0.00"}},{"$f":"IFERROR('MMA Rev-Exp Region 9'!$E$49/'MMA Rev-Exp Region 9'!$E$9, 0)","v":{"v":0,"d":"$0.00"}},{"$f":"IFERROR('MMA Rev-Exp Region 9'!$F$49/'MMA Rev-Exp Region 9'!$F$9, 0)","v":{"v":0,"d":"$0.00"}},{"$f":"IFERROR('MMA Rev-Exp Region 9'!$G$49/'MMA Rev-Exp Region 9'!$G$9, 0)","v":{"v":0,"d":"$0.00"}},{"$f":"IFERROR('MMA Rev-Exp Region 9'!$H$49/'MMA Rev-Exp Region 9'!$H$9, 0)","v":{"v":0,"d":"$0.00"}},{"$f":"IFERROR('MMA Rev-Exp Region 9'!$I$49/'MMA Rev-Exp Region 9'!$I$9, 0)","v":{"v":0,"d":"$0.00"}},{"$f":"IFERROR('MMA Rev-Exp Region 9'!$J$49/'MMA Rev-Exp Region 9'!$J$9, 0)","v":{"v":0,"d":"$0.00"}},{"$f":"IFERROR('MMA Rev-Exp Region 9'!$K$49/'MMA Rev-Exp Region 9'!$K$9, 0)","v":{"v":0,"d":"$0.00"}},{"$f":"IFERROR('MMA Rev-Exp Region 9'!$L$49/'MMA Rev-Exp Region 9'!$L$9, 0)","v":{"v":0,"d":"$0.00"}},{"$f":"IFERROR('MMA Rev-Exp Region 9'!$M$49/'MMA Rev-Exp Region 9'!$M$9, 0)","v":{"v":0,"d":"$0.00"}},{"$f":"IFERROR('MMA Rev-Exp Region 9'!$N$49/'MMA Rev-Exp Region 9'!$N$9, 0)","v":{"v":0,"d":"$0.00"}}]
["MMA",null,null,2016,"2016-12-31","Q1","2017-03-31","Region 9","Operating Expense","Medical Benefits Expense","Transportation Services",7.1,"Transportation FFS",{"$f":"IFERROR('MMA Rev-Exp Region 9'!$D$51/'MMA Rev-Exp Region 9'!$D$9, 0)","v":{"v":0,"d":"$0.00"}},{"$f":"IFERROR('MMA Rev-Exp Region 9'!$E$51/'MMA Rev-Exp Region 9'!$E$9, 0)","v":{"v":0,"d":"$0.00"}},{"$f":"IFERROR('MMA Rev-Exp Region 9'!$F$51/'MMA Rev-Exp Region 9'!$F$9, 0)","v":{"v":0,"d":"$0.00"}},{"$f":"IFERROR('MMA Rev-Exp Region 9'!$G$51/'MMA Rev-Exp Region 9'!$G$9, 0)","v":{"v":0,"d":"$0.00"}},{"$f":"IFERROR('MMA Rev-Exp Region 9'!$H$51/'MMA Rev-Exp Region 9'!$H$9, 0)","v":{"v":0,"d":"$0.00"}},{"$f":"IFERROR('MMA Rev-Exp Region 9'!$I$51/'MMA Rev-Exp Region 9'!$I$9, 0)","v":{"v":0,"d":"$0.00"}},{"$f":"IFERROR('MMA Rev-Exp Region 9'!$J$51/'MMA Rev-Exp Region 9'!$J$9, 0)","v":{"v":0,"d":"$0.00"}},{"$f":"IFERROR('MMA Rev-Exp Region 9'!$K$51/'MMA Rev-Exp Region 9'!$K$9, 0)","v":{"v":0,"d":"$0.00"}},{"$f":"IFERROR('MMA Rev-Exp Region 9'!$L$51/'MMA Rev-Exp Region 9'!$L$9, 0)","v":{"v":0,"d":"$0.00"}},{"$f":"IFERROR('MMA Rev-Exp Region 9'!$M$51/'MMA Rev-Exp Region 9'!$M$9, 0)","v":{"v":0,"d":"$0.00"}},{"$f":"IFERROR('MMA Rev-Exp Region 9'!$N$51/'MMA Rev-Exp Region 9'!$N$9, 0)","v":{"v":0,"d":"$0.00"}}]
["MMA",null,null,2016,"2016-12-31","Q1","2017-03-31","Region 9","Operating Expense","Medical Benefits Expense","Transportation Services",7.2,"Transportation Subcapitation",{"$f":"IFERROR('MMA Rev-Exp Region 9'!$D$52/'MMA Rev-Exp Region 9'!$D$9, 0)","v":{"v":0,"d":"$0.00"}},{"$f":"IFERROR('MMA Rev-Exp Region 9'!$E$52/'MMA Rev-Exp Region 9'!$E$9, 0)","v":{"v":0,"d":"$0.00"}},{"$f":"IFERROR('MMA Rev-Exp Region 9'!$F$52/'MMA Rev-Exp Region 9'!$F$9, 0)","v":{"v":0,"d":"$0.00"}},{"$f":"IFERROR('MMA Rev-Exp Region 9'!$G$52/'MMA Rev-Exp Region 9'!$G$9, 0)","v":{"v":0,"d":"$0.00"}},{"$f":"IFERROR('MMA Rev-Exp Region 9'!$H$52/'MMA Rev-Exp Region 9'!$H$9, 0)","v":{"v":0,"d":"$0.00"}},{"$f":"IFERROR('MMA Rev-Exp Region 9'!$I$52/'MMA Rev-Exp Region 9'!$I$9, 0)","v":{"v":0,"d":"$0.00"}},{"$f":"IFERROR('MMA Rev-Exp Region 9'!$J$52/'MMA Rev-Exp Region 9'!$J$9, 0)","v":{"v":0,"d":"$0.00"}},{"$f":"IFERROR('MMA Rev-Exp Region 9'!$K$52/'MMA Rev-Exp Region 9'!$K$9, 0)","v":{"v":0,"d":"$0.00"}},{"$f":"IFERROR('MMA Rev-Exp Region 9'!$L$52/'MMA Rev-Exp Region 9'!$L$9, 0)","v":{"v":0,"d":"$0.00"}},{"$f":"IFERROR('MMA Rev-Exp Region 9'!$M$52/'MMA Rev-Exp Region 9'!$M$9, 0)","v":{"v":0,"d":"$0.00"}},{"$f":"IFERROR('MMA Rev-Exp Region 9'!$N$52/'MMA Rev-Exp Region 9'!$N$9, 0)","v":{"v":0,"d":"$0.00"}}]
["MMA",null,null,2016,"2016-12-31","Q1","2017-03-31","Region 9","Operating Expense","Medical Benefits Expense","Transportation Services",7.3,"Ending IBNP for Transportation",{"$f":"IFERROR('MMA Rev-Exp Region 9'!$D$53/'MMA Rev-Exp Region 9'!$D$9, 0)","v":{"v":0,"d":"$0.00"}},{"$f":"IFERROR('MMA Rev-Exp Region 9'!$E$53/'MMA Rev-Exp Region 9'!$E$9, 0)","v":{"v":0,"d":"$0.00"}},{"$f":"IFERROR('MMA Rev-Exp Region 9'!$F$53/'MMA Rev-Exp Region 9'!$F$9, 0)","v":{"v":0,"d":"$0.00"}},{"$f":"IFERROR('MMA Rev-Exp Region 9'!$G$53/'MMA Rev-Exp Region 9'!$G$9, 0)","v":{"v":0,"d":"$0.00"}},{"$f":"IFERROR('MMA Rev-Exp Region 9'!$H$53/'MMA Rev-Exp Region 9'!$H$9, 0)","v":{"v":0,"d":"$0.00"}},{"$f":"IFERROR('MMA Rev-Exp Region 9'!$I$53/'MMA Rev-Exp Region 9'!$I$9, 0)","v":{"v":0,"d":"$0.00"}},{"$f":"IFERROR('MMA Rev-Exp Region 9'!$J$53/'MMA Rev-Exp Region 9'!$J$9, 0)","v":{"v":0,"d":"$0.00"}},{"$f":"IFERROR('MMA Rev-Exp Region 9'!$K$53/'MMA Rev-Exp Region 9'!$K$9, 0)","v":{"v":0,"d":"$0.00"}},{"$f":"IFERROR('MMA Rev-Exp Region 9'!$L$53/'MMA Rev-Exp Region 9'!$L$9, 0)","v":{"v":0,"d":"$0.00"}},{"$f":"IFERROR('MMA Rev-Exp Region 9'!$M$53/'MMA Rev-Exp Region 9'!$M$9, 0)","v":{"v":0,"d":"$0.00"}},{"$f":"IFERROR('MMA Rev-Exp Region 9'!$N$53/'MMA Rev-Exp Region 9'!$N$9, 0)","v":{"v":0,"d":"$0.00"}}]
["MMA",null,null,2016,"2016-12-31","Q1","2017-03-31","Region 9","Operating Expense","Medical Benefits Expense","Transportation Services","7.4","Transportation Settlements",{"$f":"IFERROR('MMA Rev-Exp Region 9'!$D$54/'MMA Rev-Exp Region 9'!$D$9, 0)","v":{"v":0,"d":"$0.00"}},{"$f":"IFERROR('MMA Rev-Exp Region 9'!$E$54/'MMA Rev-Exp Region 9'!$E$9, 0)","v":{"v":0,"d":"$0.00"}},{"$f":"IFERROR('MMA Rev-Exp Region 9'!$F$54/'MMA Rev-Exp Region 9'!$F$9, 0)","v":{"v":0,"d":"$0.00"}},{"$f":"IFERROR('MMA Rev-Exp Region 9'!$G$54/'MMA Rev-Exp Region 9'!$G$9, 0)","v":{"v":0,"d":"$0.00"}},{"$f":"IFERROR('MMA Rev-Exp Region 9'!$H$54/'MMA Rev-Exp Region 9'!$H$9, 0)","v":{"v":0,"d":"$0.00"}},{"$f":"IFERROR('MMA Rev-Exp Region 9'!$I$54/'MMA Rev-Exp Region 9'!$I$9, 0)","v":{"v":0,"d":"$0.00"}},{"$f":"IFERROR('MMA Rev-Exp Region 9'!$J$54/'MMA Rev-Exp Region 9'!$J$9, 0)","v":{"v":0,"d":"$0.00"}},{"$f":"IFERROR('MMA Rev-Exp Region 9'!$K$54/'MMA Rev-Exp Region 9'!$K$9, 0)","v":{"v":0,"d":"$0.00"}},{"$f":"IFERROR('MMA Rev-Exp Region 9'!$L$54/'MMA Rev-Exp Region 9'!$L$9, 0)","v":{"v":0,"d":"$0.00"}},{"$f":"IFERROR('MMA Rev-Exp Region 9'!$M$54/'MMA Rev-Exp Region 9'!$M$9, 0)","v":{"v":0,"d":"$0.00"}},{"$f":"IFERROR('MMA Rev-Exp Region 9'!$N$54/'MMA Rev-Exp Region 9'!$N$9, 0)","v":{"v":0,"d":"$0.00"}}]
["MMA",null,null,2016,"2016-12-31","Q1","2017-03-31","Region 9","Operating Expense","Medical Benefits Expense","Pharmacy Services",8.1,"Prescription Drugs FFS",{"$f":"IFERROR('MMA Rev-Exp Region 9'!$D$56/'MMA Rev-Exp Region 9'!$D$9, 0)","v":{"v":0,"d":"$0.00"}},{"$f":"IFERROR('MMA Rev-Exp Region 9'!$E$56/'MMA Rev-Exp Region 9'!$E$9, 0)","v":{"v":0,"d":"$0.00"}},{"$f":"IFERROR('MMA Rev-Exp Region 9'!$F$56/'MMA Rev-Exp Region 9'!$F$9, 0)","v":{"v":0,"d":"$0.00"}},{"$f":"IFERROR('MMA Rev-Exp Region 9'!$G$56/'MMA Rev-Exp Region 9'!$G$9, 0)","v":{"v":0,"d":"$0.00"}},{"$f":"IFERROR('MMA Rev-Exp Region 9'!$H$56/'MMA Rev-Exp Region 9'!$H$9, 0)","v":{"v":0,"d":"$0.00"}},{"$f":"IFERROR('MMA Rev-Exp Region 9'!$I$56/'MMA Rev-Exp Region 9'!$I$9, 0)","v":{"v":0,"d":"$0.00"}},{"$f":"IFERROR('MMA Rev-Exp Region 9'!$J$56/'MMA Rev-Exp Region 9'!$J$9, 0)","v":{"v":0,"d":"$0.00"}},{"$f":"IFERROR('MMA Rev-Exp Region 9'!$K$56/'MMA Rev-Exp Region 9'!$K$9, 0)","v":{"v":0,"d":"$0.00"}},{"$f":"IFERROR('MMA Rev-Exp Region 9'!$L$56/'MMA Rev-Exp Region 9'!$L$9, 0)","v":{"v":0,"d":"$0.00"}},{"$f":"IFERROR('MMA Rev-Exp Region 9'!$M$56/'MMA Rev-Exp Region 9'!$M$9, 0)","v":{"v":0,"d":"$0.00"}},{"$f":"IFERROR('MMA Rev-Exp Region 9'!$N$56/'MMA Rev-Exp Region 9'!$N$9, 0)","v":{"v":0,"d":"$0.00"}}]
["MMA",null,null,2016,"2016-12-31","Q1","2017-03-31","Region 9","Operating Expense","Medical Benefits Expense","Pharmacy Services","8.2","Hepatitis C Prescription Drug FFS",{"$f":"IFERROR('MMA Rev-Exp Region 9'!$D$57/'MMA Rev-Exp Region 9'!$D$9, 0)","v":{"v":0,"d":"$0.00"}},{"$f":"IFERROR('MMA Rev-Exp Region 9'!$E$57/'MMA Rev-Exp Region 9'!$E$9, 0)","v":{"v":0,"d":"$0.00"}},{"$f":"IFERROR('MMA Rev-Exp Region 9'!$F$57/'MMA Rev-Exp Region 9'!$F$9, 0)","v":{"v":0,"d":"$0.00"}},{"$f":"IFERROR('MMA Rev-Exp Region 9'!$G$57/'MMA Rev-Exp Region 9'!$G$9, 0)","v":{"v":0,"d":"$0.00"}},{"$f":"IFERROR('MMA Rev-Exp Region 9'!$H$57/'MMA Rev-Exp Region 9'!$H$9, 0)","v":{"v":0,"d":"$0.00"}},{"$f":"IFERROR('MMA Rev-Exp Region 9'!$I$57/'MMA Rev-Exp Region 9'!$I$9, 0)","v":{"v":0,"d":"$0.00"}},{"$f":"IFERROR('MMA Rev-Exp Region 9'!$J$57/'MMA Rev-Exp Region 9'!$J$9, 0)","v":{"v":0,"d":"$0.00"}},{"$f":"IFERROR('MMA Rev-Exp Region 9'!$K$57/'MMA Rev-Exp Region 9'!$K$9, 0)","v":{"v":0,"d":"$0.00"}},{"$f":"IFERROR('MMA Rev-Exp Region 9'!$L$57/'MMA Rev-Exp Region 9'!$L$9, 0)","v":{"v":0,"d":"$0.00"}},{"$f":"IFERROR('MMA Rev-Exp Region 9'!$M$57/'MMA Rev-Exp Region 9'!$M$9, 0)","v":{"v":0,"d":"$0.00"}},{"$f":"IFERROR('MMA Rev-Exp Region 9'!$N$57/'MMA Rev-Exp Region 9'!$N$9, 0)","v":{"v":0,"d":"$0.00"}}]
["MMA",null,null,2016,"2016-12-31","Q1","2017-03-31","Region 9","Operating Expense","Medical Benefits Expense","Pharmacy Services","8.3","Ending IBNP for Prescription Drugs",{"$f":"IFERROR('MMA Rev-Exp Region 9'!$D$58/'MMA Rev-Exp Region 9'!$D$9, 0)","v":{"v":0,"d":"$0.00"}},{"$f":"IFERROR('MMA Rev-Exp Region 9'!$E$58/'MMA Rev-Exp Region 9'!$E$9, 0)","v":{"v":0,"d":"$0.00"}},{"$f":"IFERROR('MMA Rev-Exp Region 9'!$F$58/'MMA Rev-Exp Region 9'!$F$9, 0)","v":{"v":0,"d":"$0.00"}},{"$f":"IFERROR('MMA Rev-Exp Region 9'!$G$58/'MMA Rev-Exp Region 9'!$G$9, 0)","v":{"v":0,"d":"$0.00"}},{"$f":"IFERROR('MMA Rev-Exp Region 9'!$H$58/'MMA Rev-Exp Region 9'!$H$9, 0)","v":{"v":0,"d":"$0.00"}},{"$f":"IFERROR('MMA Rev-Exp Region 9'!$I$58/'MMA Rev-Exp Region 9'!$I$9, 0)","v":{"v":0,"d":"$0.00"}},{"$f":"IFERROR('MMA Rev-Exp Region 9'!$J$58/'MMA Rev-Exp Region 9'!$J$9, 0)","v":{"v":0,"d":"$0.00"}},{"$f":"IFERROR('MMA Rev-Exp Region 9'!$K$58/'MMA Rev-Exp Region 9'!$K$9, 0)","v":{"v":0,"d":"$0.00"}},{"$f":"IFERROR('MMA Rev-Exp Region 9'!$L$58/'MMA Rev-Exp Region 9'!$L$9, 0)","v":{"v":0,"d":"$0.00"}},{"$f":"IFERROR('MMA Rev-Exp Region 9'!$M$58/'MMA Rev-Exp Region 9'!$M$9, 0)","v":{"v":0,"d":"$0.00"}},{"$f":"IFERROR('MMA Rev-Exp Region 9'!$N$58/'MMA Rev-Exp Region 9'!$N$9, 0)","v":{"v":0,"d":"$0.00"}}]
["MMA",null,null,2016,"2016-12-31","Q1","2017-03-31","Region 9","Operating Expense","Medical Benefits Expense","Pharmacy Services","8.4","Prescription Drug Rebates ",{"$f":"IFERROR('MMA Rev-Exp Region 9'!$D$59/'MMA Rev-Exp Region 9'!$D$9, 0)","v":{"v":0,"d":"$0.00"}},{"$f":"IFERROR('MMA Rev-Exp Region 9'!$E$59/'MMA Rev-Exp Region 9'!$E$9, 0)","v":{"v":0,"d":"$0.00"}},{"$f":"IFERROR('MMA Rev-Exp Region 9'!$F$59/'MMA Rev-Exp Region 9'!$F$9, 0)","v":{"v":0,"d":"$0.00"}},{"$f":"IFERROR('MMA Rev-Exp Region 9'!$G$59/'MMA Rev-Exp Region 9'!$G$9, 0)","v":{"v":0,"d":"$0.00"}},{"$f":"IFERROR('MMA Rev-Exp Region 9'!$H$59/'MMA Rev-Exp Region 9'!$H$9, 0)","v":{"v":0,"d":"$0.00"}},{"$f":"IFERROR('MMA Rev-Exp Region 9'!$I$59/'MMA Rev-Exp Region 9'!$I$9, 0)","v":{"v":0,"d":"$0.00"}},{"$f":"IFERROR('MMA Rev-Exp Region 9'!$J$59/'MMA Rev-Exp Region 9'!$J$9, 0)","v":{"v":0,"d":"$0.00"}},{"$f":"IFERROR('MMA Rev-Exp Region 9'!$K$59/'MMA Rev-Exp Region 9'!$K$9, 0)","v":{"v":0,"d":"$0.00"}},{"$f":"IFERROR('MMA Rev-Exp Region 9'!$L$59/'MMA Rev-Exp Region 9'!$L$9, 0)","v":{"v":0,"d":"$0.00"}},{"$f":"IFERROR('MMA Rev-Exp Region 9'!$M$59/'MMA Rev-Exp Region 9'!$M$9, 0)","v":{"v":0,"d":"$0.00"}},{"$f":"IFERROR('MMA Rev-Exp Region 9'!$N$59/'MMA Rev-Exp Region 9'!$N$9, 0)","v":{"v":0,"d":"$0.00"}}]
["MMA",null,null,2016,"2016-12-31","Q1","2017-03-31","Region 9","Operating Expense","Medical Benefits Expense","Pharmacy Services","8.5","Ending accrual for Rebates receivable",{"$f":"IFERROR('MMA Rev-Exp Region 9'!$D$60/'MMA Rev-Exp Region 9'!$D$9, 0)","v":{"v":0,"d":"$0.00"}},{"$f":"IFERROR('MMA Rev-Exp Region 9'!$E$60/'MMA Rev-Exp Region 9'!$E$9, 0)","v":{"v":0,"d":"$0.00"}},{"$f":"IFERROR('MMA Rev-Exp Region 9'!$F$60/'MMA Rev-Exp Region 9'!$F$9, 0)","v":{"v":0,"d":"$0.00"}},{"$f":"IFERROR('MMA Rev-Exp Region 9'!$G$60/'MMA Rev-Exp Region 9'!$G$9, 0)","v":{"v":0,"d":"$0.00"}},{"$f":"IFERROR('MMA Rev-Exp Region 9'!$H$60/'MMA Rev-Exp Region 9'!$H$9, 0)","v":{"v":0,"d":"$0.00"}},{"$f":"IFERROR('MMA Rev-Exp Region 9'!$I$60/'MMA Rev-Exp Region 9'!$I$9, 0)","v":{"v":0,"d":"$0.00"}},{"$f":"IFERROR('MMA Rev-Exp Region 9'!$J$60/'MMA Rev-Exp Region 9'!$J$9, 0)","v":{"v":0,"d":"$0.00"}},{"$f":"IFERROR('MMA Rev-Exp Region 9'!$K$60/'MMA Rev-Exp Region 9'!$K$9, 0)","v":{"v":0,"d":"$0.00"}},{"$f":"IFERROR('MMA Rev-Exp Region 9'!$L$60/'MMA Rev-Exp Region 9'!$L$9, 0)","v":{"v":0,"d":"$0.00"}},{"$f":"IFERROR('MMA Rev-Exp Region 9'!$M$60/'MMA Rev-Exp Region 9'!$M$9, 0)","v":{"v":0,"d":"$0.00"}},{"$f":"IFERROR('MMA Rev-Exp Region 9'!$N$60/'MMA Rev-Exp Region 9'!$N$9, 0)","v":{"v":0,"d":"$0.00"}}]
["MMA",null,null,2016,"2016-12-31","Q1","2017-03-31","Region 9","Operating Expense","Medical Benefits Expense","Pharmacy Services","8.6","Prescription Drugs Subcapitation",{"$f":"IFERROR('MMA Rev-Exp Region 9'!$D$61/'MMA Rev-Exp Region 9'!$D$9, 0)","v":{"v":0,"d":"$0.00"}},{"$f":"IFERROR('MMA Rev-Exp Region 9'!$E$61/'MMA Rev-Exp Region 9'!$E$9, 0)","v":{"v":0,"d":"$0.00"}},{"$f":"IFERROR('MMA Rev-Exp Region 9'!$F$61/'MMA Rev-Exp Region 9'!$F$9, 0)","v":{"v":0,"d":"$0.00"}},{"$f":"IFERROR('MMA Rev-Exp Region 9'!$G$61/'MMA Rev-Exp Region 9'!$G$9, 0)","v":{"v":0,"d":"$0.00"}},{"$f":"IFERROR('MMA Rev-Exp Region 9'!$H$61/'MMA Rev-Exp Region 9'!$H$9, 0)","v":{"v":0,"d":"$0.00"}},{"$f":"IFERROR('MMA Rev-Exp Region 9'!$I$61/'MMA Rev-Exp Region 9'!$I$9, 0)","v":{"v":0,"d":"$0.00"}},{"$f":"IFERROR('MMA Rev-Exp Region 9'!$J$61/'MMA Rev-Exp Region 9'!$J$9, 0)","v":{"v":0,"d":"$0.00"}},{"$f":"IFERROR('MMA Rev-Exp Region 9'!$K$61/'MMA Rev-Exp Region 9'!$K$9, 0)","v":{"v":0,"d":"$0.00"}},{"$f":"IFERROR('MMA Rev-Exp Region 9'!$L$61/'MMA Rev-Exp Region 9'!$L$9, 0)","v":{"v":0,"d":"$0.00"}},{"$f":"IFERROR('MMA Rev-Exp Region 9'!$M$61/'MMA Rev-Exp Region 9'!$M$9, 0)","v":{"v":0,"d":"$0.00"}},{"$f":"IFERROR('MMA Rev-Exp Region 9'!$N$61/'MMA Rev-Exp Region 9'!$N$9, 0)","v":{"v":0,"d":"$0.00"}}]
["MMA",null,null,2016,"2016-12-31","Q1","2017-03-31","Region 9","Operating Expense","Medical Benefits Expense","Pharmacy Services","8.7","Prescription Drug Settlements",{"$f":"IFERROR('MMA Rev-Exp Region 9'!$D$62/'MMA Rev-Exp Region 9'!$D$9, 0)","v":{"v":0,"d":"$0.00"}},{"$f":"IFERROR('MMA Rev-Exp Region 9'!$E$62/'MMA Rev-Exp Region 9'!$E$9, 0)","v":{"v":0,"d":"$0.00"}},{"$f":"IFERROR('MMA Rev-Exp Region 9'!$F$62/'MMA Rev-Exp Region 9'!$F$9, 0)","v":{"v":0,"d":"$0.00"}},{"$f":"IFERROR('MMA Rev-Exp Region 9'!$G$62/'MMA Rev-Exp Region 9'!$G$9, 0)","v":{"v":0,"d":"$0.00"}},{"$f":"IFERROR('MMA Rev-Exp Region 9'!$H$62/'MMA Rev-Exp Region 9'!$H$9, 0)","v":{"v":0,"d":"$0.00"}},{"$f":"IFERROR('MMA Rev-Exp Region 9'!$I$62/'MMA Rev-Exp Region 9'!$I$9, 0)","v":{"v":0,"d":"$0.00"}},{"$f":"IFERROR('MMA Rev-Exp Region 9'!$J$62/'MMA Rev-Exp Region 9'!$J$9, 0)","v":{"v":0,"d":"$0.00"}},{"$f":"IFERROR('MMA Rev-Exp Region 9'!$K$62/'MMA Rev-Exp Region 9'!$K$9, 0)","v":{"v":0,"d":"$0.00"}},{"$f":"IFERROR('MMA Rev-Exp Region 9'!$L$62/'MMA Rev-Exp Region 9'!$L$9, 0)","v":{"v":0,"d":"$0.00"}},{"$f":"IFERROR('MMA Rev-Exp Region 9'!$M$62/'MMA Rev-Exp Region 9'!$M$9, 0)","v":{"v":0,"d":"$0.00"}},{"$f":"IFERROR('MMA Rev-Exp Region 9'!$N$62/'MMA Rev-Exp Region 9'!$N$9, 0)","v":{"v":0,"d":"$0.00"}}]
["MMA",null,null,2016,"2016-12-31","Q1","2017-03-31","Region 9","Operating Expense","Medical Benefits Expense","Other MMA Services",9.1,"Home Health, Private Duty Nursing, Personal Care FFS",{"$f":"IFERROR('MMA Rev-Exp Region 9'!$D$64/'MMA Rev-Exp Region 9'!$D$9, 0)","v":{"v":0,"d":"$0.00"}},{"$f":"IFERROR('MMA Rev-Exp Region 9'!$E$64/'MMA Rev-Exp Region 9'!$E$9, 0)","v":{"v":0,"d":"$0.00"}},{"$f":"IFERROR('MMA Rev-Exp Region 9'!$F$64/'MMA Rev-Exp Region 9'!$F$9, 0)","v":{"v":0,"d":"$0.00"}},{"$f":"IFERROR('MMA Rev-Exp Region 9'!$G$64/'MMA Rev-Exp Region 9'!$G$9, 0)","v":{"v":0,"d":"$0.00"}},{"$f":"IFERROR('MMA Rev-Exp Region 9'!$H$64/'MMA Rev-Exp Region 9'!$H$9, 0)","v":{"v":0,"d":"$0.00"}},{"$f":"IFERROR('MMA Rev-Exp Region 9'!$I$64/'MMA Rev-Exp Region 9'!$I$9, 0)","v":{"v":0,"d":"$0.00"}},{"$f":"IFERROR('MMA Rev-Exp Region 9'!$J$64/'MMA Rev-Exp Region 9'!$J$9, 0)","v":{"v":0,"d":"$0.00"}},{"$f":"IFERROR('MMA Rev-Exp Region 9'!$K$64/'MMA Rev-Exp Region 9'!$K$9, 0)","v":{"v":0,"d":"$0.00"}},{"$f":"IFERROR('MMA Rev-Exp Region 9'!$L$64/'MMA Rev-Exp Region 9'!$L$9, 0)","v":{"v":0,"d":"$0.00"}},{"$f":"IFERROR('MMA Rev-Exp Region 9'!$M$64/'MMA Rev-Exp Region 9'!$M$9, 0)","v":{"v":0,"d":"$0.00"}},{"$f":"IFERROR('MMA Rev-Exp Region 9'!$N$64/'MMA Rev-Exp Region 9'!$N$9, 0)","v":{"v":0,"d":"$0.00"}}]
["MMA",null,null,2016,"2016-12-31","Q1","2017-03-31","Region 9","Operating Expense","Medical Benefits Expense","Other MMA Services","9.2","Hospice FFS",{"$f":"IFERROR('MMA Rev-Exp Region 9'!$D$65/'MMA Rev-Exp Region 9'!$D$9, 0)","v":{"v":0,"d":"$0.00"}},{"$f":"IFERROR('MMA Rev-Exp Region 9'!$E$65/'MMA Rev-Exp Region 9'!$E$9, 0)","v":{"v":0,"d":"$0.00"}},{"$f":"IFERROR('MMA Rev-Exp Region 9'!$F$65/'MMA Rev-Exp Region 9'!$F$9, 0)","v":{"v":0,"d":"$0.00"}},{"$f":"IFERROR('MMA Rev-Exp Region 9'!$G$65/'MMA Rev-Exp Region 9'!$G$9, 0)","v":{"v":0,"d":"$0.00"}},{"$f":"IFERROR('MMA Rev-Exp Region 9'!$H$65/'MMA Rev-Exp Region 9'!$H$9, 0)","v":{"v":0,"d":"$0.00"}},{"$f":"IFERROR('MMA Rev-Exp Region 9'!$I$65/'MMA Rev-Exp Region 9'!$I$9, 0)","v":{"v":0,"d":"$0.00"}},{"$f":"IFERROR('MMA Rev-Exp Region 9'!$J$65/'MMA Rev-Exp Region 9'!$J$9, 0)","v":{"v":0,"d":"$0.00"}},{"$f":"IFERROR('MMA Rev-Exp Region 9'!$K$65/'MMA Rev-Exp Region 9'!$K$9, 0)","v":{"v":0,"d":"$0.00"}},{"$f":"IFERROR('MMA Rev-Exp Region 9'!$L$65/'MMA Rev-Exp Region 9'!$L$9, 0)","v":{"v":0,"d":"$0.00"}},{"$f":"IFERROR('MMA Rev-Exp Region 9'!$M$65/'MMA Rev-Exp Region 9'!$M$9, 0)","v":{"v":0,"d":"$0.00"}},{"$f":"IFERROR('MMA Rev-Exp Region 9'!$N$65/'MMA Rev-Exp Region 9'!$N$9, 0)","v":{"v":0,"d":"$0.00"}}]
["MMA",null,null,2016,"2016-12-31","Q1","2017-03-31","Region 9","Operating Expense","Medical Benefits Expense","Other MMA Services","9.3","DME FFS",{"$f":"IFERROR('MMA Rev-Exp Region 9'!$D$66/'MMA Rev-Exp Region 9'!$D$9, 0)","v":{"v":0,"d":"$0.00"}},{"$f":"IFERROR('MMA Rev-Exp Region 9'!$E$66/'MMA Rev-Exp Region 9'!$E$9, 0)","v":{"v":0,"d":"$0.00"}},{"$f":"IFERROR('MMA Rev-Exp Region 9'!$F$66/'MMA Rev-Exp Region 9'!$F$9, 0)","v":{"v":0,"d":"$0.00"}},{"$f":"IFERROR('MMA Rev-Exp Region 9'!$G$66/'MMA Rev-Exp Region 9'!$G$9, 0)","v":{"v":0,"d":"$0.00"}},{"$f":"IFERROR('MMA Rev-Exp Region 9'!$H$66/'MMA Rev-Exp Region 9'!$H$9, 0)","v":{"v":0,"d":"$0.00"}},{"$f":"IFERROR('MMA Rev-Exp Region 9'!$I$66/'MMA Rev-Exp Region 9'!$I$9, 0)","v":{"v":0,"d":"$0.00"}},{"$f":"IFERROR('MMA Rev-Exp Region 9'!$J$66/'MMA Rev-Exp Region 9'!$J$9, 0)","v":{"v":0,"d":"$0.00"}},{"$f":"IFERROR('MMA Rev-Exp Region 9'!$K$66/'MMA Rev-Exp Region 9'!$K$9, 0)","v":{"v":0,"d":"$0.00"}},{"$f":"IFERROR('MMA Rev-Exp Region 9'!$L$66/'MMA Rev-Exp Region 9'!$L$9, 0)","v":{"v":0,"d":"$0.00"}},{"$f":"IFERROR('MMA Rev-Exp Region 9'!$M$66/'MMA Rev-Exp Region 9'!$M$9, 0)","v":{"v":0,"d":"$0.00"}},{"$f":"IFERROR('MMA Rev-Exp Region 9'!$N$66/'MMA Rev-Exp Region 9'!$N$9, 0)","v":{"v":0,"d":"$0.00"}}]
["MMA",null,null,2016,"2016-12-31","Q1","2017-03-31","Region 9","Operating Expense","Medical Benefits Expense","Other MMA Services","9.4","Other State Plan Services FFS",{"$f":"IFERROR('MMA Rev-Exp Region 9'!$D$67/'MMA Rev-Exp Region 9'!$D$9, 0)","v":{"v":0,"d":"$0.00"}},{"$f":"IFERROR('MMA Rev-Exp Region 9'!$E$67/'MMA Rev-Exp Region 9'!$E$9, 0)","v":{"v":0,"d":"$0.00"}},{"$f":"IFERROR('MMA Rev-Exp Region 9'!$F$67/'MMA Rev-Exp Region 9'!$F$9, 0)","v":{"v":0,"d":"$0.00"}},{"$f":"IFERROR('MMA Rev-Exp Region 9'!$G$67/'MMA Rev-Exp Region 9'!$G$9, 0)","v":{"v":0,"d":"$0.00"}},{"$f":"IFERROR('MMA Rev-Exp Region 9'!$H$67/'MMA Rev-Exp Region 9'!$H$9, 0)","v":{"v":0,"d":"$0.00"}},{"$f":"IFERROR('MMA Rev-Exp Region 9'!$I$67/'MMA Rev-Exp Region 9'!$I$9, 0)","v":{"v":0,"d":"$0.00"}},{"$f":"IFERROR('MMA Rev-Exp Region 9'!$J$67/'MMA Rev-Exp Region 9'!$J$9, 0)","v":{"v":0,"d":"$0.00"}},{"$f":"IFERROR('MMA Rev-Exp Region 9'!$K$67/'MMA Rev-Exp Region 9'!$K$9, 0)","v":{"v":0,"d":"$0.00"}},{"$f":"IFERROR('MMA Rev-Exp Region 9'!$L$67/'MMA Rev-Exp Region 9'!$L$9, 0)","v":{"v":0,"d":"$0.00"}},{"$f":"IFERROR('MMA Rev-Exp Region 9'!$M$67/'MMA Rev-Exp Region 9'!$M$9, 0)","v":{"v":0,"d":"$0.00"}},{"$f":"IFERROR('MMA Rev-Exp Region 9'!$N$67/'MMA Rev-Exp Region 9'!$N$9, 0)","v":{"v":0,"d":"$0.00"}}]
["MMA",null,null,2016,"2016-12-31","Q1","2017-03-31","Region 9","Operating Expense","Medical Benefits Expense","Other MMA Services","9.5","Other Services Subcapitation",{"$f":"IFERROR('MMA Rev-Exp Region 9'!$D$68/'MMA Rev-Exp Region 9'!$D$9, 0)","v":{"v":0,"d":"$0.00"}},{"$f":"IFERROR('MMA Rev-Exp Region 9'!$E$68/'MMA Rev-Exp Region 9'!$E$9, 0)","v":{"v":0,"d":"$0.00"}},{"$f":"IFERROR('MMA Rev-Exp Region 9'!$F$68/'MMA Rev-Exp Region 9'!$F$9, 0)","v":{"v":0,"d":"$0.00"}},{"$f":"IFERROR('MMA Rev-Exp Region 9'!$G$68/'MMA Rev-Exp Region 9'!$G$9, 0)","v":{"v":0,"d":"$0.00"}},{"$f":"IFERROR('MMA Rev-Exp Region 9'!$H$68/'MMA Rev-Exp Region 9'!$H$9, 0)","v":{"v":0,"d":"$0.00"}},{"$f":"IFERROR('MMA Rev-Exp Region 9'!$I$68/'MMA Rev-Exp Region 9'!$I$9, 0)","v":{"v":0,"d":"$0.00"}},{"$f":"IFERROR('MMA Rev-Exp Region 9'!$J$68/'MMA Rev-Exp Region 9'!$J$9, 0)","v":{"v":0,"d":"$0.00"}},{"$f":"IFERROR('MMA Rev-Exp Region 9'!$K$68/'MMA Rev-Exp Region 9'!$K$9, 0)","v":{"v":0,"d":"$0.00"}},{"$f":"IFERROR('MMA Rev-Exp Region 9'!$L$68/'MMA Rev-Exp Region 9'!$L$9, 0)","v":{"v":0,"d":"$0.00"}},{"$f":"IFERROR('MMA Rev-Exp Region 9'!$M$68/'MMA Rev-Exp Region 9'!$M$9, 0)","v":{"v":0,"d":"$0.00"}},{"$f":"IFERROR('MMA Rev-Exp Region 9'!$N$68/'MMA Rev-Exp Region 9'!$N$9, 0)","v":{"v":0,"d":"$0.00"}}]
["MMA",null,null,2016,"2016-12-31","Q1","2017-03-31","Region 9","Operating Expense","Medical Benefits Expense","Other MMA Services","9.6","Ending IBNP for Other Services",{"$f":"IFERROR('MMA Rev-Exp Region 9'!$D$69/'MMA Rev-Exp Region 9'!$D$9, 0)","v":{"v":0,"d":"$0.00"}},{"$f":"IFERROR('MMA Rev-Exp Region 9'!$E$69/'MMA Rev-Exp Region 9'!$E$9, 0)","v":{"v":0,"d":"$0.00"}},{"$f":"IFERROR('MMA Rev-Exp Region 9'!$F$69/'MMA Rev-Exp Region 9'!$F$9, 0)","v":{"v":0,"d":"$0.00"}},{"$f":"IFERROR('MMA Rev-Exp Region 9'!$G$69/'MMA Rev-Exp Region 9'!$G$9, 0)","v":{"v":0,"d":"$0.00"}},{"$f":"IFERROR('MMA Rev-Exp Region 9'!$H$69/'MMA Rev-Exp Region 9'!$H$9, 0)","v":{"v":0,"d":"$0.00"}},{"$f":"IFERROR('MMA Rev-Exp Region 9'!$I$69/'MMA Rev-Exp Region 9'!$I$9, 0)","v":{"v":0,"d":"$0.00"}},{"$f":"IFERROR('MMA Rev-Exp Region 9'!$J$69/'MMA Rev-Exp Region 9'!$J$9, 0)","v":{"v":0,"d":"$0.00"}},{"$f":"IFERROR('MMA Rev-Exp Region 9'!$K$69/'MMA Rev-Exp Region 9'!$K$9, 0)","v":{"v":0,"d":"$0.00"}},{"$f":"IFERROR('MMA Rev-Exp Region 9'!$L$69/'MMA Rev-Exp Region 9'!$L$9, 0)","v":{"v":0,"d":"$0.00"}},{"$f":"IFERROR('MMA Rev-Exp Region 9'!$M$69/'MMA Rev-Exp Region 9'!$M$9, 0)","v":{"v":0,"d":"$0.00"}},{"$f":"IFERROR('MMA Rev-Exp Region 9'!$N$69/'MMA Rev-Exp Region 9'!$N$9, 0)","v":{"v":0,"d":"$0.00"}}]
["MMA",null,null,2016,"2016-12-31","Q1","2017-03-31","Region 9","Operating Expense","Medical Benefits Expense","Other MMA Services","9.7","Other Services Settlements",{"$f":"IFERROR('MMA Rev-Exp Region 9'!$D$70/'MMA Rev-Exp Region 9'!$D$9, 0)","v":{"v":0,"d":"$0.00"}},{"$f":"IFERROR('MMA Rev-Exp Region 9'!$E$70/'MMA Rev-Exp Region 9'!$E$9, 0)","v":{"v":0,"d":"$0.00"}},{"$f":"IFERROR('MMA Rev-Exp Region 9'!$F$70/'MMA Rev-Exp Region 9'!$F$9, 0)","v":{"v":0,"d":"$0.00"}},{"$f":"IFERROR('MMA Rev-Exp Region 9'!$G$70/'MMA Rev-Exp Region 9'!$G$9, 0)","v":{"v":0,"d":"$0.00"}},{"$f":"IFERROR('MMA Rev-Exp Region 9'!$H$70/'MMA Rev-Exp Region 9'!$H$9, 0)","v":{"v":0,"d":"$0.00"}},{"$f":"IFERROR('MMA Rev-Exp Region 9'!$I$70/'MMA Rev-Exp Region 9'!$I$9, 0)","v":{"v":0,"d":"$0.00"}},{"$f":"IFERROR('MMA Rev-Exp Region 9'!$J$70/'MMA Rev-Exp Region 9'!$J$9, 0)","v":{"v":0,"d":"$0.00"}},{"$f":"IFERROR('MMA Rev-Exp Region 9'!$K$70/'MMA Rev-Exp Region 9'!$K$9, 0)","v":{"v":0,"d":"$0.00"}},{"$f":"IFERROR('MMA Rev-Exp Region 9'!$L$70/'MMA Rev-Exp Region 9'!$L$9, 0)","v":{"v":0,"d":"$0.00"}},{"$f":"IFERROR('MMA Rev-Exp Region 9'!$M$70/'MMA Rev-Exp Region 9'!$M$9, 0)","v":{"v":0,"d":"$0.00"}},{"$f":"IFERROR('MMA Rev-Exp Region 9'!$N$70/'MMA Rev-Exp Region 9'!$N$9, 0)","v":{"v":0,"d":"$0.00"}}]
["MMA",null,null,2016,"2016-12-31","Q1","2017-03-31","Region 9","Operating Expense","Medical Benefits Expense","Expanded Benefits","10.1","Expanded Benefits FFS",{"$f":"IFERROR('MMA Rev-Exp Region 9'!$D$72/'MMA Rev-Exp Region 9'!$D$9, 0)","v":{"v":0,"d":"$0.00"}},{"$f":"IFERROR('MMA Rev-Exp Region 9'!$E$72/'MMA Rev-Exp Region 9'!$E$9, 0)","v":{"v":0,"d":"$0.00"}},{"$f":"IFERROR('MMA Rev-Exp Region 9'!$F$72/'MMA Rev-Exp Region 9'!$F$9, 0)","v":{"v":0,"d":"$0.00"}},{"$f":"IFERROR('MMA Rev-Exp Region 9'!$G$72/'MMA Rev-Exp Region 9'!$G$9, 0)","v":{"v":0,"d":"$0.00"}},{"$f":"IFERROR('MMA Rev-Exp Region 9'!$H$72/'MMA Rev-Exp Region 9'!$H$9, 0)","v":{"v":0,"d":"$0.00"}},{"$f":"IFERROR('MMA Rev-Exp Region 9'!$I$72/'MMA Rev-Exp Region 9'!$I$9, 0)","v":{"v":0,"d":"$0.00"}},{"$f":"IFERROR('MMA Rev-Exp Region 9'!$J$72/'MMA Rev-Exp Region 9'!$J$9, 0)","v":{"v":0,"d":"$0.00"}},{"$f":"IFERROR('MMA Rev-Exp Region 9'!$K$72/'MMA Rev-Exp Region 9'!$K$9, 0)","v":{"v":0,"d":"$0.00"}},{"$f":"IFERROR('MMA Rev-Exp Region 9'!$L$72/'MMA Rev-Exp Region 9'!$L$9, 0)","v":{"v":0,"d":"$0.00"}},{"$f":"IFERROR('MMA Rev-Exp Region 9'!$M$72/'MMA Rev-Exp Region 9'!$M$9, 0)","v":{"v":0,"d":"$0.00"}},{"$f":"IFERROR('MMA Rev-Exp Region 9'!$N$72/'MMA Rev-Exp Region 9'!$N$9, 0)","v":{"v":0,"d":"$0.00"}}]
["MMA",null,null,2016,"2016-12-31","Q1","2017-03-31","Region 9","Operating Expense","Medical Benefits Expense","Expanded Benefits","10.2","Expanded benefits Subcapitation",{"$f":"IFERROR('MMA Rev-Exp Region 9'!$D$73/'MMA Rev-Exp Region 9'!$D$9, 0)","v":{"v":0,"d":"$0.00"}},{"$f":"IFERROR('MMA Rev-Exp Region 9'!$E$73/'MMA Rev-Exp Region 9'!$E$9, 0)","v":{"v":0,"d":"$0.00"}},{"$f":"IFERROR('MMA Rev-Exp Region 9'!$F$73/'MMA Rev-Exp Region 9'!$F$9, 0)","v":{"v":0,"d":"$0.00"}},{"$f":"IFERROR('MMA Rev-Exp Region 9'!$G$73/'MMA Rev-Exp Region 9'!$G$9, 0)","v":{"v":0,"d":"$0.00"}},{"$f":"IFERROR('MMA Rev-Exp Region 9'!$H$73/'MMA Rev-Exp Region 9'!$H$9, 0)","v":{"v":0,"d":"$0.00"}},{"$f":"IFERROR('MMA Rev-Exp Region 9'!$I$73/'MMA Rev-Exp Region 9'!$I$9, 0)","v":{"v":0,"d":"$0.00"}},{"$f":"IFERROR('MMA Rev-Exp Region 9'!$J$73/'MMA Rev-Exp Region 9'!$J$9, 0)","v":{"v":0,"d":"$0.00"}},{"$f":"IFERROR('MMA Rev-Exp Region 9'!$K$73/'MMA Rev-Exp Region 9'!$K$9, 0)","v":{"v":0,"d":"$0.00"}},{"$f":"IFERROR('MMA Rev-Exp Region 9'!$L$73/'MMA Rev-Exp Region 9'!$L$9, 0)","v":{"v":0,"d":"$0.00"}},{"$f":"IFERROR('MMA Rev-Exp Region 9'!$M$73/'MMA Rev-Exp Region 9'!$M$9, 0)","v":{"v":0,"d":"$0.00"}},{"$f":"IFERROR('MMA Rev-Exp Region 9'!$N$73/'MMA Rev-Exp Region 9'!$N$9, 0)","v":{"v":0,"d":"$0.00"}}]
["MMA",null,null,2016,"2016-12-31","Q1","2017-03-31","Region 9","Operating Expense","Medical Benefits Expense","Expanded Benefits","10.3","Ending IBNP for Expanded Benefits",{"$f":"IFERROR('MMA Rev-Exp Region 9'!$D$74/'MMA Rev-Exp Region 9'!$D$9, 0)","v":{"v":0,"d":"$0.00"}},{"$f":"IFERROR('MMA Rev-Exp Region 9'!$E$74/'MMA Rev-Exp Region 9'!$E$9, 0)","v":{"v":0,"d":"$0.00"}},{"$f":"IFERROR('MMA Rev-Exp Region 9'!$F$74/'MMA Rev-Exp Region 9'!$F$9, 0)","v":{"v":0,"d":"$0.00"}},{"$f":"IFERROR('MMA Rev-Exp Region 9'!$G$74/'MMA Rev-Exp Region 9'!$G$9, 0)","v":{"v":0,"d":"$0.00"}},{"$f":"IFERROR('MMA Rev-Exp Region 9'!$H$74/'MMA Rev-Exp Region 9'!$H$9, 0)","v":{"v":0,"d":"$0.00"}},{"$f":"IFERROR('MMA Rev-Exp Region 9'!$I$74/'MMA Rev-Exp Region 9'!$I$9, 0)","v":{"v":0,"d":"$0.00"}},{"$f":"IFERROR('MMA Rev-Exp Region 9'!$J$74/'MMA Rev-Exp Region 9'!$J$9, 0)","v":{"v":0,"d":"$0.00"}},{"$f":"IFERROR('MMA Rev-Exp Region 9'!$K$74/'MMA Rev-Exp Region 9'!$K$9, 0)","v":{"v":0,"d":"$0.00"}},{"$f":"IFERROR('MMA Rev-Exp Region 9'!$L$74/'MMA Rev-Exp Region 9'!$L$9, 0)","v":{"v":0,"d":"$0.00"}},{"$f":"IFERROR('MMA Rev-Exp Region 9'!$M$74/'MMA Rev-Exp Region 9'!$M$9, 0)","v":{"v":0,"d":"$0.00"}},{"$f":"IFERROR('MMA Rev-Exp Region 9'!$N$74/'MMA Rev-Exp Region 9'!$N$9, 0)","v":{"v":0,"d":"$0.00"}}]
["MMA",null,null,2016,"2016-12-31","Q1","2017-03-31","Region 9","Operating Expense","Medical Benefits Expense","Expanded Benefits","10.4","Expanded Benefits Settlements",{"$f":"IFERROR('MMA Rev-Exp Region 9'!$D$75/'MMA Rev-Exp Region 9'!$D$9, 0)","v":{"v":0,"d":"$0.00"}},{"$f":"IFERROR('MMA Rev-Exp Region 9'!$E$75/'MMA Rev-Exp Region 9'!$E$9, 0)","v":{"v":0,"d":"$0.00"}},{"$f":"IFERROR('MMA Rev-Exp Region 9'!$F$75/'MMA Rev-Exp Region 9'!$F$9, 0)","v":{"v":0,"d":"$0.00"}},{"$f":"IFERROR('MMA Rev-Exp Region 9'!$G$75/'MMA Rev-Exp Region 9'!$G$9, 0)","v":{"v":0,"d":"$0.00"}},{"$f":"IFERROR('MMA Rev-Exp Region 9'!$H$75/'MMA Rev-Exp Region 9'!$H$9, 0)","v":{"v":0,"d":"$0.00"}},{"$f":"IFERROR('MMA Rev-Exp Region 9'!$I$75/'MMA Rev-Exp Region 9'!$I$9, 0)","v":{"v":0,"d":"$0.00"}},{"$f":"IFERROR('MMA Rev-Exp Region 9'!$J$75/'MMA Rev-Exp Region 9'!$J$9, 0)","v":{"v":0,"d":"$0.00"}},{"$f":"IFERROR('MMA Rev-Exp Region 9'!$K$75/'MMA Rev-Exp Region 9'!$K$9, 0)","v":{"v":0,"d":"$0.00"}},{"$f":"IFERROR('MMA Rev-Exp Region 9'!$L$75/'MMA Rev-Exp Region 9'!$L$9, 0)","v":{"v":0,"d":"$0.00"}},{"$f":"IFERROR('MMA Rev-Exp Region 9'!$M$75/'MMA Rev-Exp Region 9'!$M$9, 0)","v":{"v":0,"d":"$0.00"}},{"$f":"IFERROR('MMA Rev-Exp Region 9'!$N$75/'MMA Rev-Exp Region 9'!$N$9, 0)","v":{"v":0,"d":"$0.00"}}]
["MMA",null,null,2016,"2016-12-31","Q1","2017-03-31","Region 9","Operating Expense","Medical Benefits Expense","Other Medical","11.5","TPL & Fraud/Abuse Recoveries",{"$f":"IFERROR('MMA Rev-Exp Region 9'!$D$81/'MMA Rev-Exp Region 9'!$D$9, 0)","v":{"v":0,"d":"$0.00"}},{"$f":"IFERROR('MMA Rev-Exp Region 9'!$E$81/'MMA Rev-Exp Region 9'!$E$9, 0)","v":{"v":0,"d":"$0.00"}},{"$f":"IFERROR('MMA Rev-Exp Region 9'!$F$81/'MMA Rev-Exp Region 9'!$F$9, 0)","v":{"v":0,"d":"$0.00"}},{"$f":"IFERROR('MMA Rev-Exp Region 9'!$G$81/'MMA Rev-Exp Region 9'!$G$9, 0)","v":{"v":0,"d":"$0.00"}},{"$f":"IFERROR('MMA Rev-Exp Region 9'!$H$81/'MMA Rev-Exp Region 9'!$H$9, 0)","v":{"v":0,"d":"$0.00"}},{"$f":"IFERROR('MMA Rev-Exp Region 9'!$I$81/'MMA Rev-Exp Region 9'!$I$9, 0)","v":{"v":0,"d":"$0.00"}},{"$f":"IFERROR('MMA Rev-Exp Region 9'!$J$81/'MMA Rev-Exp Region 9'!$J$9, 0)","v":{"v":0,"d":"$0.00"}},{"$f":"IFERROR('MMA Rev-Exp Region 9'!$K$81/'MMA Rev-Exp Region 9'!$K$9, 0)","v":{"v":0,"d":"$0.00"}},{"$f":"IFERROR('MMA Rev-Exp Region 9'!$L$81/'MMA Rev-Exp Region 9'!$L$9, 0)","v":{"v":0,"d":"$0.00"}},{"$f":"IFERROR('MMA Rev-Exp Region 9'!$M$81/'MMA Rev-Exp Region 9'!$M$9, 0)","v":{"v":0,"d":"$0.00"}},{"$f":"IFERROR('MMA Rev-Exp Region 9'!$N$81/'MMA Rev-Exp Region 9'!$N$9, 0)","v":{"v":0,"d":"$0.00"}}]
["MMA",null,null,2016,"2016-12-31","Q1","2017-03-31","Region 9","Operating Expense","Medical Benefits Expense","Other Medical","11.6.1","Premium Deficiency Reserve",{"$f":"IFERROR('MMA Rev-Exp Region 9'!$D$82/'MMA Rev-Exp Region 9'!$D$9, 0)","v":{"v":0,"d":"$0.00"}},{"$f":"IFERROR('MMA Rev-Exp Region 9'!$E$82/'MMA Rev-Exp Region 9'!$E$9, 0)","v":{"v":0,"d":"$0.00"}},{"$f":"IFERROR('MMA Rev-Exp Region 9'!$F$82/'MMA Rev-Exp Region 9'!$F$9, 0)","v":{"v":0,"d":"$0.00"}},{"$f":"IFERROR('MMA Rev-Exp Region 9'!$G$82/'MMA Rev-Exp Region 9'!$G$9, 0)","v":{"v":0,"d":"$0.00"}},{"$f":"IFERROR('MMA Rev-Exp Region 9'!$H$82/'MMA Rev-Exp Region 9'!$H$9, 0)","v":{"v":0,"d":"$0.00"}},{"$f":"IFERROR('MMA Rev-Exp Region 9'!$I$82/'MMA Rev-Exp Region 9'!$I$9, 0)","v":{"v":0,"d":"$0.00"}},{"$f":"IFERROR('MMA Rev-Exp Region 9'!$J$82/'MMA Rev-Exp Region 9'!$J$9, 0)","v":{"v":0,"d":"$0.00"}},{"$f":"IFERROR('MMA Rev-Exp Region 9'!$K$82/'MMA Rev-Exp Region 9'!$K$9, 0)","v":{"v":0,"d":"$0.00"}},{"$f":"IFERROR('MMA Rev-Exp Region 9'!$L$82/'MMA Rev-Exp Region 9'!$L$9, 0)","v":{"v":0,"d":"$0.00"}},{"$f":"IFERROR('MMA Rev-Exp Region 9'!$M$82/'MMA Rev-Exp Region 9'!$M$9, 0)","v":{"v":0,"d":"$0.00"}},{"$f":"IFERROR('MMA Rev-Exp Region 9'!$N$82/'MMA Rev-Exp Region 9'!$N$9, 0)","v":{"v":0,"d":"$0.00"}}]
["MMA",null,null,2016,"2016-12-31","Q1","2017-03-31","Region 9","Operating Expense","Medical Benefits Expense","Other Medical","11.8","Reinsurance Premiums",{"$f":"IFERROR('MMA Rev-Exp Region 9'!$D$84/'MMA Rev-Exp Region 9'!$D$9, 0)","v":{"v":0,"d":"$0.00"}},{"$f":"IFERROR('MMA Rev-Exp Region 9'!$E$84/'MMA Rev-Exp Region 9'!$E$9, 0)","v":{"v":0,"d":"$0.00"}},{"$f":"IFERROR('MMA Rev-Exp Region 9'!$F$84/'MMA Rev-Exp Region 9'!$F$9, 0)","v":{"v":0,"d":"$0.00"}},{"$f":"IFERROR('MMA Rev-Exp Region 9'!$G$84/'MMA Rev-Exp Region 9'!$G$9, 0)","v":{"v":0,"d":"$0.00"}},{"$f":"IFERROR('MMA Rev-Exp Region 9'!$H$84/'MMA Rev-Exp Region 9'!$H$9, 0)","v":{"v":0,"d":"$0.00"}},{"$f":"IFERROR('MMA Rev-Exp Region 9'!$I$84/'MMA Rev-Exp Region 9'!$I$9, 0)","v":{"v":0,"d":"$0.00"}},{"$f":"IFERROR('MMA Rev-Exp Region 9'!$J$84/'MMA Rev-Exp Region 9'!$J$9, 0)","v":{"v":0,"d":"$0.00"}},{"$f":"IFERROR('MMA Rev-Exp Region 9'!$K$84/'MMA Rev-Exp Region 9'!$K$9, 0)","v":{"v":0,"d":"$0.00"}},{"$f":"IFERROR('MMA Rev-Exp Region 9'!$L$84/'MMA Rev-Exp Region 9'!$L$9, 0)","v":{"v":0,"d":"$0.00"}},{"$f":"IFERROR('MMA Rev-Exp Region 9'!$M$84/'MMA Rev-Exp Region 9'!$M$9, 0)","v":{"v":0,"d":"$0.00"}},{"$f":"IFERROR('MMA Rev-Exp Region 9'!$N$84/'MMA Rev-Exp Region 9'!$N$9, 0)","v":{"v":0,"d":"$0.00"}}]
["MMA",null,null,2016,"2016-12-31","Q1","2017-03-31","Region 9","Operating Expense","Medical Benefits Expense","Other Medical","11.9","Reinsurance Recoveries",{"$f":"IFERROR('MMA Rev-Exp Region 9'!$D$85/'MMA Rev-Exp Region 9'!$D$9, 0)","v":{"v":0,"d":"$0.00"}},{"$f":"IFERROR('MMA Rev-Exp Region 9'!$E$85/'MMA Rev-Exp Region 9'!$E$9, 0)","v":{"v":0,"d":"$0.00"}},{"$f":"IFERROR('MMA Rev-Exp Region 9'!$F$85/'MMA Rev-Exp Region 9'!$F$9, 0)","v":{"v":0,"d":"$0.00"}},{"$f":"IFERROR('MMA Rev-Exp Region 9'!$G$85/'MMA Rev-Exp Region 9'!$G$9, 0)","v":{"v":0,"d":"$0.00"}},{"$f":"IFERROR('MMA Rev-Exp Region 9'!$H$85/'MMA Rev-Exp Region 9'!$H$9, 0)","v":{"v":0,"d":"$0.00"}},{"$f":"IFERROR('MMA Rev-Exp Region 9'!$I$85/'MMA Rev-Exp Region 9'!$I$9, 0)","v":{"v":0,"d":"$0.00"}},{"$f":"IFERROR('MMA Rev-Exp Region 9'!$J$85/'MMA Rev-Exp Region 9'!$J$9, 0)","v":{"v":0,"d":"$0.00"}},{"$f":"IFERROR('MMA Rev-Exp Region 9'!$K$85/'MMA Rev-Exp Region 9'!$K$9, 0)","v":{"v":0,"d":"$0.00"}},{"$f":"IFERROR('MMA Rev-Exp Region 9'!$L$85/'MMA Rev-Exp Region 9'!$L$9, 0)","v":{"v":0,"d":"$0.00"}},{"$f":"IFERROR('MMA Rev-Exp Region 9'!$M$85/'MMA Rev-Exp Region 9'!$M$9, 0)","v":{"v":0,"d":"$0.00"}},{"$f":"IFERROR('MMA Rev-Exp Region 9'!$N$85/'MMA Rev-Exp Region 9'!$N$9, 0)","v":{"v":0,"d":"$0.00"}}]
["MMA",null,null,2016,"2016-12-31","Q1","2017-03-31","Region 9","Operating Expense","Administrative Expense","Administrative","12.1","Salaries & Benefits",{"$f":"IFERROR('MMA Rev-Exp Region 9'!$D$90/'MMA Rev-Exp Region 9'!$D$9, 0)","v":{"v":0,"d":"$0.00"}},{"$f":"IFERROR('MMA Rev-Exp Region 9'!$E$90/'MMA Rev-Exp Region 9'!$D$9, 0)","v":{"v":0,"d":"$0.00"}},{"$f":"IFERROR('MMA Rev-Exp Region 9'!$F$90/'MMA Rev-Exp Region 9'!$D$9, 0)","v":{"v":0,"d":"$0.00"}},{"$f":"IFERROR('MMA Rev-Exp Region 9'!$G$90/'MMA Rev-Exp Region 9'!$G$9, 0)","v":{"v":0,"d":"$0.00"}},{"$f":"IFERROR('MMA Rev-Exp Region 9'!$H$90/'MMA Rev-Exp Region 9'!$H$9, 0)","v":{"v":0,"d":"$0.00"}},{"$f":"IFERROR('MMA Rev-Exp Region 9'!$I$90/'MMA Rev-Exp Region 9'!$I$9, 0)","v":{"v":0,"d":"$0.00"}},{"$f":"IFERROR('MMA Rev-Exp Region 9'!$J$90/'MMA Rev-Exp Region 9'!$J$9, 0)","v":{"v":0,"d":"$0.00"}},{"$f":"IFERROR('MMA Rev-Exp Region 9'!$K$90/'MMA Rev-Exp Region 9'!$K$9, 0)","v":{"v":0,"d":"$0.00"}},{"$f":"IFERROR('MMA Rev-Exp Region 9'!$L$90/'MMA Rev-Exp Region 9'!$L$9, 0)","v":{"v":0,"d":"$0.00"}},{"$f":"IFERROR('MMA Rev-Exp Region 9'!$M$90/'MMA Rev-Exp Region 9'!$M$9, 0)","v":{"v":0,"d":"$0.00"}},{"$f":"IFERROR('MMA Rev-Exp Region 9'!$N$90/'MMA Rev-Exp Region 9'!$N$9, 0)","v":{"v":0,"d":"$0.00"}}]
["MMA",null,null,2016,"2016-12-31","Q1","2017-03-31","Region 9","Operating Expense","Administrative Expense","Administrative","12.2","Administrative Services",{"$f":"IFERROR('MMA Rev-Exp Region 9'!$D$91/'MMA Rev-Exp Region 9'!$D$9, 0)","v":{"v":0,"d":"$0.00"}},{"$f":"IFERROR('MMA Rev-Exp Region 9'!$E$91/'MMA Rev-Exp Region 9'!$D$9, 0)","v":{"v":0,"d":"$0.00"}},{"$f":"IFERROR('MMA Rev-Exp Region 9'!$F$91/'MMA Rev-Exp Region 9'!$D$9, 0)","v":{"v":0,"d":"$0.00"}},{"$f":"IFERROR('MMA Rev-Exp Region 9'!$G$91/'MMA Rev-Exp Region 9'!$G$9, 0)","v":{"v":0,"d":"$0.00"}},{"$f":"IFERROR('MMA Rev-Exp Region 9'!$H$91/'MMA Rev-Exp Region 9'!$H$9, 0)","v":{"v":0,"d":"$0.00"}},{"$f":"IFERROR('MMA Rev-Exp Region 9'!$I$91/'MMA Rev-Exp Region 9'!$I$9, 0)","v":{"v":0,"d":"$0.00"}},{"$f":"IFERROR('MMA Rev-Exp Region 9'!$J$91/'MMA Rev-Exp Region 9'!$J$9, 0)","v":{"v":0,"d":"$0.00"}},{"$f":"IFERROR('MMA Rev-Exp Region 9'!$K$91/'MMA Rev-Exp Region 9'!$K$9, 0)","v":{"v":0,"d":"$0.00"}},{"$f":"IFERROR('MMA Rev-Exp Region 9'!$L$91/'MMA Rev-Exp Region 9'!$L$9, 0)","v":{"v":0,"d":"$0.00"}},{"$f":"IFERROR('MMA Rev-Exp Region 9'!$M$91/'MMA Rev-Exp Region 9'!$M$9, 0)","v":{"v":0,"d":"$0.00"}},{"$f":"IFERROR('MMA Rev-Exp Region 9'!$N$91/'MMA Rev-Exp Region 9'!$N$9, 0)","v":{"v":0,"d":"$0.00"}}]
["MMA",null,null,2016,"2016-12-31","Q1","2017-03-31","Region 9","Operating Expense","Administrative Expense","Administrative","12.3","Information Systems",{"$f":"IFERROR('MMA Rev-Exp Region 9'!$D$92/'MMA Rev-Exp Region 9'!$D$9, 0)","v":{"v":0,"d":"$0.00"}},{"$f":"IFERROR('MMA Rev-Exp Region 9'!$E$92/'MMA Rev-Exp Region 9'!$D$9, 0)","v":{"v":0,"d":"$0.00"}},{"$f":"IFERROR('MMA Rev-Exp Region 9'!$F$92/'MMA Rev-Exp Region 9'!$D$9, 0)","v":{"v":0,"d":"$0.00"}},{"$f":"IFERROR('MMA Rev-Exp Region 9'!$G$92/'MMA Rev-Exp Region 9'!$G$9, 0)","v":{"v":0,"d":"$0.00"}},{"$f":"IFERROR('MMA Rev-Exp Region 9'!$H$92/'MMA Rev-Exp Region 9'!$H$9, 0)","v":{"v":0,"d":"$0.00"}},{"$f":"IFERROR('MMA Rev-Exp Region 9'!$I$92/'MMA Rev-Exp Region 9'!$I$9, 0)","v":{"v":0,"d":"$0.00"}},{"$f":"IFERROR('MMA Rev-Exp Region 9'!$J$92/'MMA Rev-Exp Region 9'!$J$9, 0)","v":{"v":0,"d":"$0.00"}},{"$f":"IFERROR('MMA Rev-Exp Region 9'!$K$92/'MMA Rev-Exp Region 9'!$K$9, 0)","v":{"v":0,"d":"$0.00"}},{"$f":"IFERROR('MMA Rev-Exp Region 9'!$L$92/'MMA Rev-Exp Region 9'!$L$9, 0)","v":{"v":0,"d":"$0.00"}},{"$f":"IFERROR('MMA Rev-Exp Region 9'!$M$92/'MMA Rev-Exp Region 9'!$M$9, 0)","v":{"v":0,"d":"$0.00"}},{"$f":"IFERROR('MMA Rev-Exp Region 9'!$N$92/'MMA Rev-Exp Region 9'!$N$9, 0)","v":{"v":0,"d":"$0.00"}}]
["MMA",null,null,2016,"2016-12-31","Q1","2017-03-31","Region 9","Operating Expense","Administrative Expense","Administrative","12.4","Marketing Expenses",{"$f":"IFERROR('MMA Rev-Exp Region 9'!$D$93/'MMA Rev-Exp Region 9'!$D$9, 0)","v":{"v":0,"d":"$0.00"}},{"$f":"IFERROR('MMA Rev-Exp Region 9'!$E$93/'MMA Rev-Exp Region 9'!$D$9, 0)","v":{"v":0,"d":"$0.00"}},{"$f":"IFERROR('MMA Rev-Exp Region 9'!$F$93/'MMA Rev-Exp Region 9'!$D$9, 0)","v":{"v":0,"d":"$0.00"}},{"$f":"IFERROR('MMA Rev-Exp Region 9'!$G$93/'MMA Rev-Exp Region 9'!$G$9, 0)","v":{"v":0,"d":"$0.00"}},{"$f":"IFERROR('MMA Rev-Exp Region 9'!$H$93/'MMA Rev-Exp Region 9'!$H$9, 0)","v":{"v":0,"d":"$0.00"}},{"$f":"IFERROR('MMA Rev-Exp Region 9'!$I$93/'MMA Rev-Exp Region 9'!$I$9, 0)","v":{"v":0,"d":"$0.00"}},{"$f":"IFERROR('MMA Rev-Exp Region 9'!$J$93/'MMA Rev-Exp Region 9'!$J$9, 0)","v":{"v":0,"d":"$0.00"}},{"$f":"IFERROR('MMA Rev-Exp Region 9'!$K$93/'MMA Rev-Exp Region 9'!$K$9, 0)","v":{"v":0,"d":"$0.00"}},{"$f":"IFERROR('MMA Rev-Exp Region 9'!$L$93/'MMA Rev-Exp Region 9'!$L$9, 0)","v":{"v":0,"d":"$0.00"}},{"$f":"IFERROR('MMA Rev-Exp Region 9'!$M$93/'MMA Rev-Exp Region 9'!$M$9, 0)","v":{"v":0,"d":"$0.00"}},{"$f":"IFERROR('MMA Rev-Exp Region 9'!$N$93/'MMA Rev-Exp Region 9'!$N$9, 0)","v":{"v":0,"d":"$0.00"}}]
["MMA",null,null,2016,"2016-12-31","Q1","2017-03-31","Region 9","Operating Expense","Administrative Expense","Administrative","12.5","General  Administration",{"$f":"IFERROR('MMA Rev-Exp Region 9'!$D$94/'MMA Rev-Exp Region 9'!$D$9, 0)","v":{"v":0,"d":"$0.00"}},{"$f":"IFERROR('MMA Rev-Exp Region 9'!$E$94/'MMA Rev-Exp Region 9'!$D$9, 0)","v":{"v":0,"d":"$0.00"}},{"$f":"IFERROR('MMA Rev-Exp Region 9'!$F$94/'MMA Rev-Exp Region 9'!$D$9, 0)","v":{"v":0,"d":"$0.00"}},{"$f":"IFERROR('MMA Rev-Exp Region 9'!$G$94/'MMA Rev-Exp Region 9'!$G$9, 0)","v":{"v":0,"d":"$0.00"}},{"$f":"IFERROR('MMA Rev-Exp Region 9'!$H$94/'MMA Rev-Exp Region 9'!$H$9, 0)","v":{"v":0,"d":"$0.00"}},{"$f":"IFERROR('MMA Rev-Exp Region 9'!$I$94/'MMA Rev-Exp Region 9'!$I$9, 0)","v":{"v":0,"d":"$0.00"}},{"$f":"IFERROR('MMA Rev-Exp Region 9'!$J$94/'MMA Rev-Exp Region 9'!$J$9, 0)","v":{"v":0,"d":"$0.00"}},{"$f":"IFERROR('MMA Rev-Exp Region 9'!$K$94/'MMA Rev-Exp Region 9'!$K$9, 0)","v":{"v":0,"d":"$0.00"}},{"$f":"IFERROR('MMA Rev-Exp Region 9'!$L$94/'MMA Rev-Exp Region 9'!$L$9, 0)","v":{"v":0,"d":"$0.00"}},{"$f":"IFERROR('MMA Rev-Exp Region 9'!$M$94/'MMA Rev-Exp Region 9'!$M$9, 0)","v":{"v":0,"d":"$0.00"}},{"$f":"IFERROR('MMA Rev-Exp Region 9'!$N$94/'MMA Rev-Exp Region 9'!$N$9, 0)","v":{"v":0,"d":"$0.00"}}]
["MMA",null,null,2016,"2016-12-31","Q1","2017-03-31","Region 9","Operating Expense","Administrative Expense","Administrative","12.6","Compliance/Regulatory",{"$f":"IFERROR('MMA Rev-Exp Region 9'!$D$95/'MMA Rev-Exp Region 9'!$D$9, 0)","v":{"v":0,"d":"$0.00"}},{"$f":"IFERROR('MMA Rev-Exp Region 9'!$E$95/'MMA Rev-Exp Region 9'!$D$9, 0)","v":{"v":0,"d":"$0.00"}},{"$f":"IFERROR('MMA Rev-Exp Region 9'!$F$95/'MMA Rev-Exp Region 9'!$D$9, 0)","v":{"v":0,"d":"$0.00"}},{"$f":"IFERROR('MMA Rev-Exp Region 9'!$G$95/'MMA Rev-Exp Region 9'!$G$9, 0)","v":{"v":0,"d":"$0.00"}},{"$f":"IFERROR('MMA Rev-Exp Region 9'!$H$95/'MMA Rev-Exp Region 9'!$H$9, 0)","v":{"v":0,"d":"$0.00"}},{"$f":"IFERROR('MMA Rev-Exp Region 9'!$I$95/'MMA Rev-Exp Region 9'!$I$9, 0)","v":{"v":0,"d":"$0.00"}},{"$f":"IFERROR('MMA Rev-Exp Region 9'!$J$95/'MMA Rev-Exp Region 9'!$J$9, 0)","v":{"v":0,"d":"$0.00"}},{"$f":"IFERROR('MMA Rev-Exp Region 9'!$K$95/'MMA Rev-Exp Region 9'!$K$9, 0)","v":{"v":0,"d":"$0.00"}},{"$f":"IFERROR('MMA Rev-Exp Region 9'!$L$95/'MMA Rev-Exp Region 9'!$L$9, 0)","v":{"v":0,"d":"$0.00"}},{"$f":"IFERROR('MMA Rev-Exp Region 9'!$M$95/'MMA Rev-Exp Region 9'!$M$9, 0)","v":{"v":0,"d":"$0.00"}},{"$f":"IFERROR('MMA Rev-Exp Region 9'!$N$95/'MMA Rev-Exp Region 9'!$N$9, 0)","v":{"v":0,"d":"$0.00"}}]
["MMA",null,null,2016,"2016-12-31","Q1","2017-03-31","Region 9","Operating Expense","Taxes & Fees","Taxes & Fees","13.1","State Premium tax",{"$f":"IFERROR('MMA Rev-Exp Region 9'!$D$97/'MMA Rev-Exp Region 9'!$D$9, 0)","v":{"v":0,"d":"$0.00"}}]
["MMA",null,null,2016,"2016-12-31","Q1","2017-03-31","Region 9","Operating Expense","Taxes & Fees","Taxes & Fees","13.2","Department of Insurance Assessments",{"$f":"IFERROR('MMA Rev-Exp Region 9'!$D$98/'MMA Rev-Exp Region 9'!$D$9, 0)","v":{"v":0,"d":"$0.00"}}]
["MMA",null,null,2016,"2016-12-31","Q1","2017-03-31","Region 9","Operating Expense","Taxes & Fees","Taxes & Fees","13.3","Section 9010 Health Insurance Providers Fee",{"$f":"IFERROR('MMA Rev-Exp Region 9'!$D$99/'MMA Rev-Exp Region 9'!$D$9, 0)","v":{"v":0,"d":"$0.00"}}]
["MMA",null,null,2016,"2016-12-31","Q1","2017-03-31","Region 9","Non-Operating Expense","Income Tax Expense","Income Tax Expense","16.0","Income Tax Expense",{"$f":"IFERROR('MMA Rev-Exp Region 9'!$D$106/'MMA Rev-Exp Region 9'!$D$9, 0)","v":{"v":0,"d":"$0.00"}}]
["MMA",null,null,2016,"2016-12-31","Q2","2017-06-30","Region 9","Operating Revenue","Capitation","Capitation",1.1,"Capitation",{"$f":"IFERROR('MMA Rev-Exp Region 9'!$O$11/'MMA Rev-Exp Region 9'!$O$9, 0)","v":{"v":0,"d":"$0.00"}},{"$f":"IFERROR('MMA Rev-Exp Region 9'!$P$11/'MMA Rev-Exp Region 9'!$P$9, 0)","v":{"v":0,"d":"$0.00"}},{"$f":"IFERROR('MMA Rev-Exp Region 9'!$Q$11/'MMA Rev-Exp Region 9'!$Q$9, 0)","v":{"v":0,"d":"$0.00"}},{"$f":"IFERROR('MMA Rev-Exp Region 9'!$R$11/'MMA Rev-Exp Region 9'!$R$9, 0)","v":{"v":0,"d":"$0.00"}},{"$f":"IFERROR('MMA Rev-Exp Region 9'!$S$11/'MMA Rev-Exp Region 9'!$S$9, 0)","v":{"v":0,"d":"$0.00"}},{"$f":"IFERROR('MMA Rev-Exp Region 9'!$T$11/'MMA Rev-Exp Region 9'!$T$9, 0)","v":{"v":0,"d":"$0.00"}},{"$f":"IFERROR('MMA Rev-Exp Region 9'!$U$11/'MMA Rev-Exp Region 9'!$U$9, 0)","v":{"v":0,"d":"$0.00"}},{"$f":"IFERROR('MMA Rev-Exp Region 9'!$V$11/'MMA Rev-Exp Region 9'!$V$9, 0)","v":{"v":0,"d":"$0.00"}},{"$f":"IFERROR('MMA Rev-Exp Region 9'!$W$11/'MMA Rev-Exp Region 9'!$W$9, 0)","v":{"v":0,"d":"$0.00"}},{"$f":"IFERROR('MMA Rev-Exp Region 9'!$X$11/'MMA Rev-Exp Region 9'!$X$9, 0)","v":{"v":0,"d":"$0.00"}},{"$f":"IFERROR('MMA Rev-Exp Region 9'!$Y$11/'MMA Rev-Exp Region 9'!$Y$9, 0)","v":{"v":0,"d":"$0.00"}}]
["MMA",null,null,2016,"2016-12-31","Q2","2017-06-30","Region 9","Operating Revenue","Kick Payments","Kick Payments - Transplant",1.2,"Transplant Kick Payments",{"$f":"IFERROR('MMA Rev-Exp Region 9'!$O$12/'MMA Rev-Exp Region 9'!$O$9, 0)","v":{"v":0,"d":"$0.00"}},{"$f":"IFERROR('MMA Rev-Exp Region 9'!$P$12/'MMA Rev-Exp Region 9'!$P$9, 0)","v":{"v":0,"d":"$0.00"}},{"$f":"IFERROR('MMA Rev-Exp Region 9'!$Q$12/'MMA Rev-Exp Region 9'!$Q$9, 0)","v":{"v":0,"d":"$0.00"}},{"$f":"IFERROR('MMA Rev-Exp Region 9'!$R$12/'MMA Rev-Exp Region 9'!$R$9, 0)","v":{"v":0,"d":"$0.00"}},{"$f":"IFERROR('MMA Rev-Exp Region 9'!$S$12/'MMA Rev-Exp Region 9'!$S$9, 0)","v":{"v":0,"d":"$0.00"}},{"$f":"IFERROR('MMA Rev-Exp Region 9'!$T$12/'MMA Rev-Exp Region 9'!$T$9, 0)","v":{"v":0,"d":"$0.00"}},{"$f":"IFERROR('MMA Rev-Exp Region 9'!$U$12/'MMA Rev-Exp Region 9'!$U$9, 0)","v":{"v":0,"d":"$0.00"}},{"$f":"IFERROR('MMA Rev-Exp Region 9'!$V$12/'MMA Rev-Exp Region 9'!$V$9, 0)","v":{"v":0,"d":"$0.00"}},{"$f":"IFERROR('MMA Rev-Exp Region 9'!$W$12/'MMA Rev-Exp Region 9'!$W$9, 0)","v":{"v":0,"d":"$0.00"}},{"$f":"IFERROR('MMA Rev-Exp Region 9'!$X$12/'MMA Rev-Exp Region 9'!$X$9, 0)","v":{"v":0,"d":"$0.00"}},{"$f":"IFERROR('MMA Rev-Exp Region 9'!$Y$12/'MMA Rev-Exp Region 9'!$Y$9, 0)","v":{"v":0,"d":"$0.00"}}]
["MMA",null,null,2016,"2016-12-31","Q2","2017-06-30","Region 9","Operating Revenue","Kick Payments","Kick Payments - Hep C","1.3","Hepatitis C Kick Payments",{"$f":"IFERROR('MMA Rev-Exp Region 9'!$O$13/'MMA Rev-Exp Region 9'!$O$9, 0)","v":{"v":0,"d":"$0.00"}},{"$f":"IFERROR('MMA Rev-Exp Region 9'!$P$13/'MMA Rev-Exp Region 9'!$P$9, 0)","v":{"v":0,"d":"$0.00"}},{"$f":"IFERROR('MMA Rev-Exp Region 9'!$Q$13/'MMA Rev-Exp Region 9'!$Q$9, 0)","v":{"v":0,"d":"$0.00"}},{"$f":"IFERROR('MMA Rev-Exp Region 9'!$R$13/'MMA Rev-Exp Region 9'!$R$9, 0)","v":{"v":0,"d":"$0.00"}},{"$f":"IFERROR('MMA Rev-Exp Region 9'!$S$13/'MMA Rev-Exp Region 9'!$S$9, 0)","v":{"v":0,"d":"$0.00"}},{"$f":"IFERROR('MMA Rev-Exp Region 9'!$T$13/'MMA Rev-Exp Region 9'!$T$9, 0)","v":{"v":0,"d":"$0.00"}},{"$f":"IFERROR('MMA Rev-Exp Region 9'!$U$13/'MMA Rev-Exp Region 9'!$U$9, 0)","v":{"v":0,"d":"$0.00"}},{"$f":"IFERROR('MMA Rev-Exp Region 9'!$V$13/'MMA Rev-Exp Region 9'!$V$9, 0)","v":{"v":0,"d":"$0.00"}},{"$f":"IFERROR('MMA Rev-Exp Region 9'!$W$13/'MMA Rev-Exp Region 9'!$W$9, 0)","v":{"v":0,"d":"$0.00"}},{"$f":"IFERROR('MMA Rev-Exp Region 9'!$X$13/'MMA Rev-Exp Region 9'!$X$9, 0)","v":{"v":0,"d":"$0.00"}},{"$f":"IFERROR('MMA Rev-Exp Region 9'!$Y$13/'MMA Rev-Exp Region 9'!$Y$9, 0)","v":{"v":0,"d":"$0.00"}}]
["MMA",null,null,2016,"2016-12-31","Q2","2017-06-30","Region 9","Operating Revenue","Kick Payments","Kick Payments - Maternity","1.4.1","Maternity Kick Payments",{"$f":"IFERROR('MMA Rev-Exp Region 9'!$O$14/'MMA Rev-Exp Region 9'!$O$9, 0)","v":{"v":0,"d":"$0.00"}},{"$f":"IFERROR('MMA Rev-Exp Region 9'!$P$14/'MMA Rev-Exp Region 9'!$P$9, 0)","v":{"v":0,"d":"$0.00"}},{"$f":"IFERROR('MMA Rev-Exp Region 9'!$Q$14/'MMA Rev-Exp Region 9'!$Q$9, 0)","v":{"v":0,"d":"$0.00"}},{"$f":"IFERROR('MMA Rev-Exp Region 9'!$R$14/'MMA Rev-Exp Region 9'!$R$9, 0)","v":{"v":0,"d":"$0.00"}},{"$f":"IFERROR('MMA Rev-Exp Region 9'!$S$14/'MMA Rev-Exp Region 9'!$S$9, 0)","v":{"v":0,"d":"$0.00"}},{"$f":"IFERROR('MMA Rev-Exp Region 9'!$T$14/'MMA Rev-Exp Region 9'!$T$9, 0)","v":{"v":0,"d":"$0.00"}},{"$f":"IFERROR('MMA Rev-Exp Region 9'!$U$14/'MMA Rev-Exp Region 9'!$U$9, 0)","v":{"v":0,"d":"$0.00"}},{"$f":"IFERROR('MMA Rev-Exp Region 9'!$V$14/'MMA Rev-Exp Region 9'!$V$9, 0)","v":{"v":0,"d":"$0.00"}},{"$f":"IFERROR('MMA Rev-Exp Region 9'!$W$14/'MMA Rev-Exp Region 9'!$W$9, 0)","v":{"v":0,"d":"$0.00"}},{"$f":"IFERROR('MMA Rev-Exp Region 9'!$X$14/'MMA Rev-Exp Region 9'!$X$9, 0)","v":{"v":0,"d":"$0.00"}},{"$f":"IFERROR('MMA Rev-Exp Region 9'!$Y$14/'MMA Rev-Exp Region 9'!$Y$9, 0)","v":{"v":0,"d":"$0.00"}}]
["MMA",null,null,2016,"2016-12-31","Q2","2017-06-30","Region 9","Operating Revenue","Other Revenue","Other Revenue - 9010","1.5","ACA § 9010 related payments",{"$f":"IFERROR('MMA Rev-Exp Region 9'!$O$15/'MMA Rev-Exp Region 9'!$O$9, 0)","v":{"v":0,"d":"$0.00"}},{"$f":"IFERROR('MMA Rev-Exp Region 9'!$P$15/'MMA Rev-Exp Region 9'!$P$9, 0)","v":{"v":0,"d":"$0.00"}},{"$f":"IFERROR('MMA Rev-Exp Region 9'!$Q$15/'MMA Rev-Exp Region 9'!$Q$9, 0)","v":{"v":0,"d":"$0.00"}},{"$f":"IFERROR('MMA Rev-Exp Region 9'!$R$15/'MMA Rev-Exp Region 9'!$R$9, 0)","v":{"v":0,"d":"$0.00"}},{"$f":"IFERROR('MMA Rev-Exp Region 9'!$S$15/'MMA Rev-Exp Region 9'!$S$9, 0)","v":{"v":0,"d":"$0.00"}},{"$f":"IFERROR('MMA Rev-Exp Region 9'!$T$15/'MMA Rev-Exp Region 9'!$T$9, 0)","v":{"v":0,"d":"$0.00"}},{"$f":"IFERROR('MMA Rev-Exp Region 9'!$U$15/'MMA Rev-Exp Region 9'!$U$9, 0)","v":{"v":0,"d":"$0.00"}},{"$f":"IFERROR('MMA Rev-Exp Region 9'!$V$15/'MMA Rev-Exp Region 9'!$V$9, 0)","v":{"v":0,"d":"$0.00"}},{"$f":"IFERROR('MMA Rev-Exp Region 9'!$W$15/'MMA Rev-Exp Region 9'!$W$9, 0)","v":{"v":0,"d":"$0.00"}},{"$f":"IFERROR('MMA Rev-Exp Region 9'!$X$15/'MMA Rev-Exp Region 9'!$X$9, 0)","v":{"v":0,"d":"$0.00"}},{"$f":"IFERROR('MMA Rev-Exp Region 9'!$Y$15/'MMA Rev-Exp Region 9'!$Y$9, 0)","v":{"v":0,"d":"$0.00"}}]
["MMA",null,null,2016,"2016-12-31","Q2","2017-06-30","Region 9","Operating Revenue","Other Revenue","Other Revenue","1.6","Other Revenue",{"$f":"IFERROR('MMA Rev-Exp Region 9'!$O$16/'MMA Rev-Exp Region 9'!$O$9, 0)","v":{"v":0,"d":"$0.00"}},{"$f":"IFERROR('MMA Rev-Exp Region 9'!$P$16/'MMA Rev-Exp Region 9'!$P$9, 0)","v":{"v":0,"d":"$0.00"}},{"$f":"IFERROR('MMA Rev-Exp Region 9'!$Q$16/'MMA Rev-Exp Region 9'!$Q$9, 0)","v":{"v":0,"d":"$0.00"}},{"$f":"IFERROR('MMA Rev-Exp Region 9'!$R$16/'MMA Rev-Exp Region 9'!$R$9, 0)","v":{"v":0,"d":"$0.00"}},{"$f":"IFERROR('MMA Rev-Exp Region 9'!$S$16/'MMA Rev-Exp Region 9'!$S$9, 0)","v":{"v":0,"d":"$0.00"}},{"$f":"IFERROR('MMA Rev-Exp Region 9'!$T$16/'MMA Rev-Exp Region 9'!$T$9, 0)","v":{"v":0,"d":"$0.00"}},{"$f":"IFERROR('MMA Rev-Exp Region 9'!$U$16/'MMA Rev-Exp Region 9'!$U$9, 0)","v":{"v":0,"d":"$0.00"}},{"$f":"IFERROR('MMA Rev-Exp Region 9'!$V$16/'MMA Rev-Exp Region 9'!$V$9, 0)","v":{"v":0,"d":"$0.00"}},{"$f":"IFERROR('MMA Rev-Exp Region 9'!$W$16/'MMA Rev-Exp Region 9'!$W$9, 0)","v":{"v":0,"d":"$0.00"}},{"$f":"IFERROR('MMA Rev-Exp Region 9'!$X$16/'MMA Rev-Exp Region 9'!$X$9, 0)","v":{"v":0,"d":"$0.00"}},{"$f":"IFERROR('MMA Rev-Exp Region 9'!$Y$16/'MMA Rev-Exp Region 9'!$Y$9, 0)","v":{"v":0,"d":"$0.00"}}]
["MMA",null,null,2016,"2016-12-31","Q2","2017-06-30","Region 9","Operating Expense","Medical Benefits Expense","Hospital Services",2.1,"Inpatient FFS",{"$f":"IFERROR('MMA Rev-Exp Region 9'!$O$20/'MMA Rev-Exp Region 9'!$O$9, 0)","v":{"v":0,"d":"$0.00"}},{"$f":"IFERROR('MMA Rev-Exp Region 9'!$P$20/'MMA Rev-Exp Region 9'!$P$9, 0)","v":{"v":0,"d":"$0.00"}},{"$f":"IFERROR('MMA Rev-Exp Region 9'!$Q$20/'MMA Rev-Exp Region 9'!$Q$9, 0)","v":{"v":0,"d":"$0.00"}},{"$f":"IFERROR('MMA Rev-Exp Region 9'!$R$20/'MMA Rev-Exp Region 9'!$R$9, 0)","v":{"v":0,"d":"$0.00"}},{"$f":"IFERROR('MMA Rev-Exp Region 9'!$S$20/'MMA Rev-Exp Region 9'!$S$9, 0)","v":{"v":0,"d":"$0.00"}},{"$f":"IFERROR('MMA Rev-Exp Region 9'!$T$20/'MMA Rev-Exp Region 9'!$T$9, 0)","v":{"v":0,"d":"$0.00"}},{"$f":"IFERROR('MMA Rev-Exp Region 9'!$U$20/'MMA Rev-Exp Region 9'!$U$9, 0)","v":{"v":0,"d":"$0.00"}},{"$f":"IFERROR('MMA Rev-Exp Region 9'!$V$20/'MMA Rev-Exp Region 9'!$V$9, 0)","v":{"v":0,"d":"$0.00"}},{"$f":"IFERROR('MMA Rev-Exp Region 9'!$W$20/'MMA Rev-Exp Region 9'!$W$9, 0)","v":{"v":0,"d":"$0.00"}},{"$f":"IFERROR('MMA Rev-Exp Region 9'!$X$20/'MMA Rev-Exp Region 9'!$X$9, 0)","v":{"v":0,"d":"$0.00"}},{"$f":"IFERROR('MMA Rev-Exp Region 9'!$Y$20/'MMA Rev-Exp Region 9'!$Y$9, 0)","v":{"v":0,"d":"$0.00"}}]
["MMA",null,null,2016,"2016-12-31","Q2","2017-06-30","Region 9","Operating Expense","Medical Benefits Expense","Hospital Services",2.2,"Ending IBNP for Inpatient Hospital Services",{"$f":"IFERROR('MMA Rev-Exp Region 9'!$O$21/'MMA Rev-Exp Region 9'!$O$9, 0)","v":{"v":0,"d":"$0.00"}},{"$f":"IFERROR('MMA Rev-Exp Region 9'!$P$21/'MMA Rev-Exp Region 9'!$P$9, 0)","v":{"v":0,"d":"$0.00"}},{"$f":"IFERROR('MMA Rev-Exp Region 9'!$Q$21/'MMA Rev-Exp Region 9'!$Q$9, 0)","v":{"v":0,"d":"$0.00"}},{"$f":"IFERROR('MMA Rev-Exp Region 9'!$R$21/'MMA Rev-Exp Region 9'!$R$9, 0)","v":{"v":0,"d":"$0.00"}},{"$f":"IFERROR('MMA Rev-Exp Region 9'!$S$21/'MMA Rev-Exp Region 9'!$S$9, 0)","v":{"v":0,"d":"$0.00"}},{"$f":"IFERROR('MMA Rev-Exp Region 9'!$T$21/'MMA Rev-Exp Region 9'!$T$9, 0)","v":{"v":0,"d":"$0.00"}},{"$f":"IFERROR('MMA Rev-Exp Region 9'!$U$21/'MMA Rev-Exp Region 9'!$U$9, 0)","v":{"v":0,"d":"$0.00"}},{"$f":"IFERROR('MMA Rev-Exp Region 9'!$V$21/'MMA Rev-Exp Region 9'!$V$9, 0)","v":{"v":0,"d":"$0.00"}},{"$f":"IFERROR('MMA Rev-Exp Region 9'!$W$21/'MMA Rev-Exp Region 9'!$W$9, 0)","v":{"v":0,"d":"$0.00"}},{"$f":"IFERROR('MMA Rev-Exp Region 9'!$X$21/'MMA Rev-Exp Region 9'!$X$9, 0)","v":{"v":0,"d":"$0.00"}},{"$f":"IFERROR('MMA Rev-Exp Region 9'!$Y$21/'MMA Rev-Exp Region 9'!$Y$9, 0)","v":{"v":0,"d":"$0.00"}}]
["MMA",null,null,2016,"2016-12-31","Q2","2017-06-30","Region 9","Operating Expense","Medical Benefits Expense","Hospital Services",2.3,"Outpatient FFS: ER",{"$f":"IFERROR('MMA Rev-Exp Region 9'!$O$22/'MMA Rev-Exp Region 9'!$O$9, 0)","v":{"v":0,"d":"$0.00"}},{"$f":"IFERROR('MMA Rev-Exp Region 9'!$P$22/'MMA Rev-Exp Region 9'!$P$9, 0)","v":{"v":0,"d":"$0.00"}},{"$f":"IFERROR('MMA Rev-Exp Region 9'!$Q$22/'MMA Rev-Exp Region 9'!$Q$9, 0)","v":{"v":0,"d":"$0.00"}},{"$f":"IFERROR('MMA Rev-Exp Region 9'!$R$22/'MMA Rev-Exp Region 9'!$R$9, 0)","v":{"v":0,"d":"$0.00"}},{"$f":"IFERROR('MMA Rev-Exp Region 9'!$S$22/'MMA Rev-Exp Region 9'!$S$9, 0)","v":{"v":0,"d":"$0.00"}},{"$f":"IFERROR('MMA Rev-Exp Region 9'!$T$22/'MMA Rev-Exp Region 9'!$T$9, 0)","v":{"v":0,"d":"$0.00"}},{"$f":"IFERROR('MMA Rev-Exp Region 9'!$U$22/'MMA Rev-Exp Region 9'!$U$9, 0)","v":{"v":0,"d":"$0.00"}},{"$f":"IFERROR('MMA Rev-Exp Region 9'!$V$22/'MMA Rev-Exp Region 9'!$V$9, 0)","v":{"v":0,"d":"$0.00"}},{"$f":"IFERROR('MMA Rev-Exp Region 9'!$W$22/'MMA Rev-Exp Region 9'!$W$9, 0)","v":{"v":0,"d":"$0.00"}},{"$f":"IFERROR('MMA Rev-Exp Region 9'!$X$22/'MMA Rev-Exp Region 9'!$X$9, 0)","v":{"v":0,"d":"$0.00"}},{"$f":"IFERROR('MMA Rev-Exp Region 9'!$Y$22/'MMA Rev-Exp Region 9'!$Y$9, 0)","v":{"v":0,"d":"$0.00"}}]
["MMA",null,null,2016,"2016-12-31","Q2","2017-06-30","Region 9","Operating Expense","Medical Benefits Expense","Hospital Services",2.4,"Outpatient FFS: Other than ER ",{"$f":"IFERROR('MMA Rev-Exp Region 9'!$O$23/'MMA Rev-Exp Region 9'!$O$9, 0)","v":{"v":0,"d":"$0.00"}},{"$f":"IFERROR('MMA Rev-Exp Region 9'!$P$23/'MMA Rev-Exp Region 9'!$P$9, 0)","v":{"v":0,"d":"$0.00"}},{"$f":"IFERROR('MMA Rev-Exp Region 9'!$Q$23/'MMA Rev-Exp Region 9'!$Q$9, 0)","v":{"v":0,"d":"$0.00"}},{"$f":"IFERROR('MMA Rev-Exp Region 9'!$R$23/'MMA Rev-Exp Region 9'!$R$9, 0)","v":{"v":0,"d":"$0.00"}},{"$f":"IFERROR('MMA Rev-Exp Region 9'!$S$23/'MMA Rev-Exp Region 9'!$S$9, 0)","v":{"v":0,"d":"$0.00"}},{"$f":"IFERROR('MMA Rev-Exp Region 9'!$T$23/'MMA Rev-Exp Region 9'!$T$9, 0)","v":{"v":0,"d":"$0.00"}},{"$f":"IFERROR('MMA Rev-Exp Region 9'!$U$23/'MMA Rev-Exp Region 9'!$U$9, 0)","v":{"v":0,"d":"$0.00"}},{"$f":"IFERROR('MMA Rev-Exp Region 9'!$V$23/'MMA Rev-Exp Region 9'!$V$9, 0)","v":{"v":0,"d":"$0.00"}},{"$f":"IFERROR('MMA Rev-Exp Region 9'!$W$23/'MMA Rev-Exp Region 9'!$W$9, 0)","v":{"v":0,"d":"$0.00"}},{"$f":"IFERROR('MMA Rev-Exp Region 9'!$X$23/'MMA Rev-Exp Region 9'!$X$9, 0)","v":{"v":0,"d":"$0.00"}},{"$f":"IFERROR('MMA Rev-Exp Region 9'!$Y$23/'MMA Rev-Exp Region 9'!$Y$9, 0)","v":{"v":0,"d":"$0.00"}}]
["MMA",null,null,2016,"2016-12-31","Q2","2017-06-30","Region 9","Operating Expense","Medical Benefits Expense","Hospital Services",2.5,"Ending IBNP for Outpatient Hospital Services",{"$f":"IFERROR('MMA Rev-Exp Region 9'!$O$24/'MMA Rev-Exp Region 9'!$O$9, 0)","v":{"v":0,"d":"$0.00"}},{"$f":"IFERROR('MMA Rev-Exp Region 9'!$P$24/'MMA Rev-Exp Region 9'!$P$9, 0)","v":{"v":0,"d":"$0.00"}},{"$f":"IFERROR('MMA Rev-Exp Region 9'!$Q$24/'MMA Rev-Exp Region 9'!$Q$9, 0)","v":{"v":0,"d":"$0.00"}},{"$f":"IFERROR('MMA Rev-Exp Region 9'!$R$24/'MMA Rev-Exp Region 9'!$R$9, 0)","v":{"v":0,"d":"$0.00"}},{"$f":"IFERROR('MMA Rev-Exp Region 9'!$S$24/'MMA Rev-Exp Region 9'!$S$9, 0)","v":{"v":0,"d":"$0.00"}},{"$f":"IFERROR('MMA Rev-Exp Region 9'!$T$24/'MMA Rev-Exp Region 9'!$T$9, 0)","v":{"v":0,"d":"$0.00"}},{"$f":"IFERROR('MMA Rev-Exp Region 9'!$U$24/'MMA Rev-Exp Region 9'!$U$9, 0)","v":{"v":0,"d":"$0.00"}},{"$f":"IFERROR('MMA Rev-Exp Region 9'!$V$24/'MMA Rev-Exp Region 9'!$V$9, 0)","v":{"v":0,"d":"$0.00"}},{"$f":"IFERROR('MMA Rev-Exp Region 9'!$W$24/'MMA Rev-Exp Region 9'!$W$9, 0)","v":{"v":0,"d":"$0.00"}},{"$f":"IFERROR('MMA Rev-Exp Region 9'!$X$24/'MMA Rev-Exp Region 9'!$X$9, 0)","v":{"v":0,"d":"$0.00"}},{"$f":"IFERROR('MMA Rev-Exp Region 9'!$Y$24/'MMA Rev-Exp Region 9'!$Y$9, 0)","v":{"v":0,"d":"$0.00"}}]
["MMA",null,null,2016,"2016-12-31","Q2","2017-06-30","Region 9","Operating Expense","Medical Benefits Expense","Hospital Services","2.6","Subcapitated Hospital Services",{"$f":"IFERROR('MMA Rev-Exp Region 9'!$O$25/'MMA Rev-Exp Region 9'!$O$9, 0)","v":{"v":0,"d":"$0.00"}},{"$f":"IFERROR('MMA Rev-Exp Region 9'!$P$25/'MMA Rev-Exp Region 9'!$P$9, 0)","v":{"v":0,"d":"$0.00"}},{"$f":"IFERROR('MMA Rev-Exp Region 9'!$Q$25/'MMA Rev-Exp Region 9'!$Q$9, 0)","v":{"v":0,"d":"$0.00"}},{"$f":"IFERROR('MMA Rev-Exp Region 9'!$R$25/'MMA Rev-Exp Region 9'!$R$9, 0)","v":{"v":0,"d":"$0.00"}},{"$f":"IFERROR('MMA Rev-Exp Region 9'!$S$25/'MMA Rev-Exp Region 9'!$S$9, 0)","v":{"v":0,"d":"$0.00"}},{"$f":"IFERROR('MMA Rev-Exp Region 9'!$T$25/'MMA Rev-Exp Region 9'!$T$9, 0)","v":{"v":0,"d":"$0.00"}},{"$f":"IFERROR('MMA Rev-Exp Region 9'!$U$25/'MMA Rev-Exp Region 9'!$U$9, 0)","v":{"v":0,"d":"$0.00"}},{"$f":"IFERROR('MMA Rev-Exp Region 9'!$V$25/'MMA Rev-Exp Region 9'!$V$9, 0)","v":{"v":0,"d":"$0.00"}},{"$f":"IFERROR('MMA Rev-Exp Region 9'!$W$25/'MMA Rev-Exp Region 9'!$W$9, 0)","v":{"v":0,"d":"$0.00"}},{"$f":"IFERROR('MMA Rev-Exp Region 9'!$X$25/'MMA Rev-Exp Region 9'!$X$9, 0)","v":{"v":0,"d":"$0.00"}},{"$f":"IFERROR('MMA Rev-Exp Region 9'!$Y$25/'MMA Rev-Exp Region 9'!$Y$9, 0)","v":{"v":0,"d":"$0.00"}}]
["MMA",null,null,2016,"2016-12-31","Q2","2017-06-30","Region 9","Operating Expense","Medical Benefits Expense","Hospital Services","2.7","Hospital Settlements",{"$f":"IFERROR('MMA Rev-Exp Region 9'!$O$26/'MMA Rev-Exp Region 9'!$O$9, 0)","v":{"v":0,"d":"$0.00"}},{"$f":"IFERROR('MMA Rev-Exp Region 9'!$P$26/'MMA Rev-Exp Region 9'!$P$9, 0)","v":{"v":0,"d":"$0.00"}},{"$f":"IFERROR('MMA Rev-Exp Region 9'!$Q$26/'MMA Rev-Exp Region 9'!$Q$9, 0)","v":{"v":0,"d":"$0.00"}},{"$f":"IFERROR('MMA Rev-Exp Region 9'!$R$26/'MMA Rev-Exp Region 9'!$R$9, 0)","v":{"v":0,"d":"$0.00"}},{"$f":"IFERROR('MMA Rev-Exp Region 9'!$S$26/'MMA Rev-Exp Region 9'!$S$9, 0)","v":{"v":0,"d":"$0.00"}},{"$f":"IFERROR('MMA Rev-Exp Region 9'!$T$26/'MMA Rev-Exp Region 9'!$T$9, 0)","v":{"v":0,"d":"$0.00"}},{"$f":"IFERROR('MMA Rev-Exp Region 9'!$U$26/'MMA Rev-Exp Region 9'!$U$9, 0)","v":{"v":0,"d":"$0.00"}},{"$f":"IFERROR('MMA Rev-Exp Region 9'!$V$26/'MMA Rev-Exp Region 9'!$V$9, 0)","v":{"v":0,"d":"$0.00"}},{"$f":"IFERROR('MMA Rev-Exp Region 9'!$W$26/'MMA Rev-Exp Region 9'!$W$9, 0)","v":{"v":0,"d":"$0.00"}},{"$f":"IFERROR('MMA Rev-Exp Region 9'!$X$26/'MMA Rev-Exp Region 9'!$X$9, 0)","v":{"v":0,"d":"$0.00"}},{"$f":"IFERROR('MMA Rev-Exp Region 9'!$Y$26/'MMA Rev-Exp Region 9'!$Y$9, 0)","v":{"v":0,"d":"$0.00"}}]
["MMA",null,null,2016,"2016-12-31","Q2","2017-06-30","Region 9","Operating Expense","Medical Benefits Expense","Hospital Services","2.7.1","Transplant Services",{"$f":"IFERROR('MMA Rev-Exp Region 9'!$O$27/'MMA Rev-Exp Region 9'!$O$9, 0)","v":{"v":0,"d":"$0.00"}},{"$f":"IFERROR('MMA Rev-Exp Region 9'!$P$27/'MMA Rev-Exp Region 9'!$P$9, 0)","v":{"v":0,"d":"$0.00"}},{"$f":"IFERROR('MMA Rev-Exp Region 9'!$Q$27/'MMA Rev-Exp Region 9'!$Q$9, 0)","v":{"v":0,"d":"$0.00"}},{"$f":"IFERROR('MMA Rev-Exp Region 9'!$R$27/'MMA Rev-Exp Region 9'!$R$9, 0)","v":{"v":0,"d":"$0.00"}},{"$f":"IFERROR('MMA Rev-Exp Region 9'!$S$27/'MMA Rev-Exp Region 9'!$S$9, 0)","v":{"v":0,"d":"$0.00"}},{"$f":"IFERROR('MMA Rev-Exp Region 9'!$T$27/'MMA Rev-Exp Region 9'!$T$9, 0)","v":{"v":0,"d":"$0.00"}},{"$f":"IFERROR('MMA Rev-Exp Region 9'!$U$27/'MMA Rev-Exp Region 9'!$U$9, 0)","v":{"v":0,"d":"$0.00"}},{"$f":"IFERROR('MMA Rev-Exp Region 9'!$V$27/'MMA Rev-Exp Region 9'!$V$9, 0)","v":{"v":0,"d":"$0.00"}},{"$f":"IFERROR('MMA Rev-Exp Region 9'!$W$27/'MMA Rev-Exp Region 9'!$W$9, 0)","v":{"v":0,"d":"$0.00"}},{"$f":"IFERROR('MMA Rev-Exp Region 9'!$X$27/'MMA Rev-Exp Region 9'!$X$9, 0)","v":{"v":0,"d":"$0.00"}},{"$f":"IFERROR('MMA Rev-Exp Region 9'!$Y$27/'MMA Rev-Exp Region 9'!$Y$9, 0)","v":{"v":0,"d":"$0.00"}}]
["MMA",null,null,2016,"2016-12-31","Q2","2017-06-30","Region 9","Operating Expense","Medical Benefits Expense","Professional Services",3.1,"Primary Care FFS",{"$f":"IFERROR('MMA Rev-Exp Region 9'!$O$29/'MMA Rev-Exp Region 9'!$O$9, 0)","v":{"v":0,"d":"$0.00"}},{"$f":"IFERROR('MMA Rev-Exp Region 9'!$P$29/'MMA Rev-Exp Region 9'!$P$9, 0)","v":{"v":0,"d":"$0.00"}},{"$f":"IFERROR('MMA Rev-Exp Region 9'!$Q$29/'MMA Rev-Exp Region 9'!$Q$9, 0)","v":{"v":0,"d":"$0.00"}},{"$f":"IFERROR('MMA Rev-Exp Region 9'!$R$29/'MMA Rev-Exp Region 9'!$R$9, 0)","v":{"v":0,"d":"$0.00"}},{"$f":"IFERROR('MMA Rev-Exp Region 9'!$S$29/'MMA Rev-Exp Region 9'!$S$9, 0)","v":{"v":0,"d":"$0.00"}},{"$f":"IFERROR('MMA Rev-Exp Region 9'!$T$29/'MMA Rev-Exp Region 9'!$T$9, 0)","v":{"v":0,"d":"$0.00"}},{"$f":"IFERROR('MMA Rev-Exp Region 9'!$U$29/'MMA Rev-Exp Region 9'!$U$9, 0)","v":{"v":0,"d":"$0.00"}},{"$f":"IFERROR('MMA Rev-Exp Region 9'!$V$29/'MMA Rev-Exp Region 9'!$V$9, 0)","v":{"v":0,"d":"$0.00"}},{"$f":"IFERROR('MMA Rev-Exp Region 9'!$W$29/'MMA Rev-Exp Region 9'!$W$9, 0)","v":{"v":0,"d":"$0.00"}},{"$f":"IFERROR('MMA Rev-Exp Region 9'!$X$29/'MMA Rev-Exp Region 9'!$X$9, 0)","v":{"v":0,"d":"$0.00"}},{"$f":"IFERROR('MMA Rev-Exp Region 9'!$Y$29/'MMA Rev-Exp Region 9'!$Y$9, 0)","v":{"v":0,"d":"$0.00"}}]
["MMA",null,null,2016,"2016-12-31","Q2","2017-06-30","Region 9","Operating Expense","Medical Benefits Expense","Professional Services",3.2,"Specialty Care FFS",{"$f":"IFERROR('MMA Rev-Exp Region 9'!$O$30/'MMA Rev-Exp Region 9'!$O$9, 0)","v":{"v":0,"d":"$0.00"}},{"$f":"IFERROR('MMA Rev-Exp Region 9'!$P$30/'MMA Rev-Exp Region 9'!$P$9, 0)","v":{"v":0,"d":"$0.00"}},{"$f":"IFERROR('MMA Rev-Exp Region 9'!$Q$30/'MMA Rev-Exp Region 9'!$Q$9, 0)","v":{"v":0,"d":"$0.00"}},{"$f":"IFERROR('MMA Rev-Exp Region 9'!$R$30/'MMA Rev-Exp Region 9'!$R$9, 0)","v":{"v":0,"d":"$0.00"}},{"$f":"IFERROR('MMA Rev-Exp Region 9'!$S$30/'MMA Rev-Exp Region 9'!$S$9, 0)","v":{"v":0,"d":"$0.00"}},{"$f":"IFERROR('MMA Rev-Exp Region 9'!$T$30/'MMA Rev-Exp Region 9'!$T$9, 0)","v":{"v":0,"d":"$0.00"}},{"$f":"IFERROR('MMA Rev-Exp Region 9'!$U$30/'MMA Rev-Exp Region 9'!$U$9, 0)","v":{"v":0,"d":"$0.00"}},{"$f":"IFERROR('MMA Rev-Exp Region 9'!$V$30/'MMA Rev-Exp Region 9'!$V$9, 0)","v":{"v":0,"d":"$0.00"}},{"$f":"IFERROR('MMA Rev-Exp Region 9'!$W$30/'MMA Rev-Exp Region 9'!$W$9, 0)","v":{"v":0,"d":"$0.00"}},{"$f":"IFERROR('MMA Rev-Exp Region 9'!$X$30/'MMA Rev-Exp Region 9'!$X$9, 0)","v":{"v":0,"d":"$0.00"}},{"$f":"IFERROR('MMA Rev-Exp Region 9'!$Y$30/'MMA Rev-Exp Region 9'!$Y$9, 0)","v":{"v":0,"d":"$0.00"}}]
["MMA",null,null,2016,"2016-12-31","Q2","2017-06-30","Region 9","Operating Expense","Medical Benefits Expense","Professional Services",3.3,"Other Professional FFS",{"$f":"IFERROR('MMA Rev-Exp Region 9'!$O$31/'MMA Rev-Exp Region 9'!$O$9, 0)","v":{"v":0,"d":"$0.00"}},{"$f":"IFERROR('MMA Rev-Exp Region 9'!$P$31/'MMA Rev-Exp Region 9'!$P$9, 0)","v":{"v":0,"d":"$0.00"}},{"$f":"IFERROR('MMA Rev-Exp Region 9'!$Q$31/'MMA Rev-Exp Region 9'!$Q$9, 0)","v":{"v":0,"d":"$0.00"}},{"$f":"IFERROR('MMA Rev-Exp Region 9'!$R$31/'MMA Rev-Exp Region 9'!$R$9, 0)","v":{"v":0,"d":"$0.00"}},{"$f":"IFERROR('MMA Rev-Exp Region 9'!$S$31/'MMA Rev-Exp Region 9'!$S$9, 0)","v":{"v":0,"d":"$0.00"}},{"$f":"IFERROR('MMA Rev-Exp Region 9'!$T$31/'MMA Rev-Exp Region 9'!$T$9, 0)","v":{"v":0,"d":"$0.00"}},{"$f":"IFERROR('MMA Rev-Exp Region 9'!$U$31/'MMA Rev-Exp Region 9'!$U$9, 0)","v":{"v":0,"d":"$0.00"}},{"$f":"IFERROR('MMA Rev-Exp Region 9'!$V$31/'MMA Rev-Exp Region 9'!$V$9, 0)","v":{"v":0,"d":"$0.00"}},{"$f":"IFERROR('MMA Rev-Exp Region 9'!$W$31/'MMA Rev-Exp Region 9'!$W$9, 0)","v":{"v":0,"d":"$0.00"}},{"$f":"IFERROR('MMA Rev-Exp Region 9'!$X$31/'MMA Rev-Exp Region 9'!$X$9, 0)","v":{"v":0,"d":"$0.00"}},{"$f":"IFERROR('MMA Rev-Exp Region 9'!$Y$31/'MMA Rev-Exp Region 9'!$Y$9, 0)","v":{"v":0,"d":"$0.00"}}]
["MMA",null,null,2016,"2016-12-31","Q2","2017-06-30","Region 9","Operating Expense","Medical Benefits Expense","Professional Services","3.4","§ 1202 PCP Payments to providers",{"$f":"IFERROR('MMA Rev-Exp Region 9'!$O$32/'MMA Rev-Exp Region 9'!$O$9, 0)","v":{"v":0,"d":"$0.00"}},{"$f":"IFERROR('MMA Rev-Exp Region 9'!$P$32/'MMA Rev-Exp Region 9'!$P$9, 0)","v":{"v":0,"d":"$0.00"}},{"$f":"IFERROR('MMA Rev-Exp Region 9'!$Q$32/'MMA Rev-Exp Region 9'!$Q$9, 0)","v":{"v":0,"d":"$0.00"}},{"$f":"IFERROR('MMA Rev-Exp Region 9'!$R$32/'MMA Rev-Exp Region 9'!$R$9, 0)","v":{"v":0,"d":"$0.00"}},{"$f":"IFERROR('MMA Rev-Exp Region 9'!$S$32/'MMA Rev-Exp Region 9'!$S$9, 0)","v":{"v":0,"d":"$0.00"}},{"$f":"IFERROR('MMA Rev-Exp Region 9'!$T$32/'MMA Rev-Exp Region 9'!$T$9, 0)","v":{"v":0,"d":"$0.00"}},{"$f":"IFERROR('MMA Rev-Exp Region 9'!$U$32/'MMA Rev-Exp Region 9'!$U$9, 0)","v":{"v":0,"d":"$0.00"}},{"$f":"IFERROR('MMA Rev-Exp Region 9'!$V$32/'MMA Rev-Exp Region 9'!$V$9, 0)","v":{"v":0,"d":"$0.00"}},{"$f":"IFERROR('MMA Rev-Exp Region 9'!$W$32/'MMA Rev-Exp Region 9'!$W$9, 0)","v":{"v":0,"d":"$0.00"}},{"$f":"IFERROR('MMA Rev-Exp Region 9'!$X$32/'MMA Rev-Exp Region 9'!$X$9, 0)","v":{"v":0,"d":"$0.00"}},{"$f":"IFERROR('MMA Rev-Exp Region 9'!$Y$32/'MMA Rev-Exp Region 9'!$Y$9, 0)","v":{"v":0,"d":"$0.00"}}]
["MMA",null,null,2016,"2016-12-31","Q2","2017-06-30","Region 9","Operating Expense","Medical Benefits Expense","Professional Services","3.5","Subcapitated Professional Services",{"$f":"IFERROR('MMA Rev-Exp Region 9'!$O$33/'MMA Rev-Exp Region 9'!$O$9, 0)","v":{"v":0,"d":"$0.00"}},{"$f":"IFERROR('MMA Rev-Exp Region 9'!$P$33/'MMA Rev-Exp Region 9'!$P$9, 0)","v":{"v":0,"d":"$0.00"}},{"$f":"IFERROR('MMA Rev-Exp Region 9'!$Q$33/'MMA Rev-Exp Region 9'!$Q$9, 0)","v":{"v":0,"d":"$0.00"}},{"$f":"IFERROR('MMA Rev-Exp Region 9'!$R$33/'MMA Rev-Exp Region 9'!$R$9, 0)","v":{"v":0,"d":"$0.00"}},{"$f":"IFERROR('MMA Rev-Exp Region 9'!$S$33/'MMA Rev-Exp Region 9'!$S$9, 0)","v":{"v":0,"d":"$0.00"}},{"$f":"IFERROR('MMA Rev-Exp Region 9'!$T$33/'MMA Rev-Exp Region 9'!$T$9, 0)","v":{"v":0,"d":"$0.00"}},{"$f":"IFERROR('MMA Rev-Exp Region 9'!$U$33/'MMA Rev-Exp Region 9'!$U$9, 0)","v":{"v":0,"d":"$0.00"}},{"$f":"IFERROR('MMA Rev-Exp Region 9'!$V$33/'MMA Rev-Exp Region 9'!$V$9, 0)","v":{"v":0,"d":"$0.00"}},{"$f":"IFERROR('MMA Rev-Exp Region 9'!$W$33/'MMA Rev-Exp Region 9'!$W$9, 0)","v":{"v":0,"d":"$0.00"}},{"$f":"IFERROR('MMA Rev-Exp Region 9'!$X$33/'MMA Rev-Exp Region 9'!$X$9, 0)","v":{"v":0,"d":"$0.00"}},{"$f":"IFERROR('MMA Rev-Exp Region 9'!$Y$33/'MMA Rev-Exp Region 9'!$Y$9, 0)","v":{"v":0,"d":"$0.00"}}]
["MMA",null,null,2016,"2016-12-31","Q2","2017-06-30","Region 9","Operating Expense","Medical Benefits Expense","Professional Services","3.6","Ending IBNP for Professional Services",{"$f":"IFERROR('MMA Rev-Exp Region 9'!$O$34/'MMA Rev-Exp Region 9'!$O$9, 0)","v":{"v":0,"d":"$0.00"}},{"$f":"IFERROR('MMA Rev-Exp Region 9'!$P$34/'MMA Rev-Exp Region 9'!$P$9, 0)","v":{"v":0,"d":"$0.00"}},{"$f":"IFERROR('MMA Rev-Exp Region 9'!$Q$34/'MMA Rev-Exp Region 9'!$Q$9, 0)","v":{"v":0,"d":"$0.00"}},{"$f":"IFERROR('MMA Rev-Exp Region 9'!$R$34/'MMA Rev-Exp Region 9'!$R$9, 0)","v":{"v":0,"d":"$0.00"}},{"$f":"IFERROR('MMA Rev-Exp Region 9'!$S$34/'MMA Rev-Exp Region 9'!$S$9, 0)","v":{"v":0,"d":"$0.00"}},{"$f":"IFERROR('MMA Rev-Exp Region 9'!$T$34/'MMA Rev-Exp Region 9'!$T$9, 0)","v":{"v":0,"d":"$0.00"}},{"$f":"IFERROR('MMA Rev-Exp Region 9'!$U$34/'MMA Rev-Exp Region 9'!$U$9, 0)","v":{"v":0,"d":"$0.00"}},{"$f":"IFERROR('MMA Rev-Exp Region 9'!$V$34/'MMA Rev-Exp Region 9'!$V$9, 0)","v":{"v":0,"d":"$0.00"}},{"$f":"IFERROR('MMA Rev-Exp Region 9'!$W$34/'MMA Rev-Exp Region 9'!$W$9, 0)","v":{"v":0,"d":"$0.00"}},{"$f":"IFERROR('MMA Rev-Exp Region 9'!$X$34/'MMA Rev-Exp Region 9'!$X$9, 0)","v":{"v":0,"d":"$0.00"}},{"$f":"IFERROR('MMA Rev-Exp Region 9'!$Y$34/'MMA Rev-Exp Region 9'!$Y$9, 0)","v":{"v":0,"d":"$0.00"}}]
["MMA",null,null,2016,"2016-12-31","Q2","2017-06-30","Region 9","Operating Expense","Medical Benefits Expense","Professional Services","3.7","Professional Services Settlements",{"$f":"IFERROR('MMA Rev-Exp Region 9'!$O$35/'MMA Rev-Exp Region 9'!$O$9, 0)","v":{"v":0,"d":"$0.00"}},{"$f":"IFERROR('MMA Rev-Exp Region 9'!$P$35/'MMA Rev-Exp Region 9'!$P$9, 0)","v":{"v":0,"d":"$0.00"}},{"$f":"IFERROR('MMA Rev-Exp Region 9'!$Q$35/'MMA Rev-Exp Region 9'!$Q$9, 0)","v":{"v":0,"d":"$0.00"}},{"$f":"IFERROR('MMA Rev-Exp Region 9'!$R$35/'MMA Rev-Exp Region 9'!$R$9, 0)","v":{"v":0,"d":"$0.00"}},{"$f":"IFERROR('MMA Rev-Exp Region 9'!$S$35/'MMA Rev-Exp Region 9'!$S$9, 0)","v":{"v":0,"d":"$0.00"}},{"$f":"IFERROR('MMA Rev-Exp Region 9'!$T$35/'MMA Rev-Exp Region 9'!$T$9, 0)","v":{"v":0,"d":"$0.00"}},{"$f":"IFERROR('MMA Rev-Exp Region 9'!$U$35/'MMA Rev-Exp Region 9'!$U$9, 0)","v":{"v":0,"d":"$0.00"}},{"$f":"IFERROR('MMA Rev-Exp Region 9'!$V$35/'MMA Rev-Exp Region 9'!$V$9, 0)","v":{"v":0,"d":"$0.00"}},{"$f":"IFERROR('MMA Rev-Exp Region 9'!$W$35/'MMA Rev-Exp Region 9'!$W$9, 0)","v":{"v":0,"d":"$0.00"}},{"$f":"IFERROR('MMA Rev-Exp Region 9'!$X$35/'MMA Rev-Exp Region 9'!$X$9, 0)","v":{"v":0,"d":"$0.00"}},{"$f":"IFERROR('MMA Rev-Exp Region 9'!$Y$35/'MMA Rev-Exp Region 9'!$Y$9, 0)","v":{"v":0,"d":"$0.00"}}]
["MMA",null,null,2016,"2016-12-31","Q2","2017-06-30","Region 9","Operating Expense","Medical Benefits Expense","Maternity Services","4.1.1","Maternity Services",{"$f":"IFERROR('MMA Rev-Exp Region 9'!$O$37/'MMA Rev-Exp Region 9'!$O$9, 0)","v":{"v":0,"d":"$0.00"}},{"$f":"IFERROR('MMA Rev-Exp Region 9'!$P$37/'MMA Rev-Exp Region 9'!$P$9, 0)","v":{"v":0,"d":"$0.00"}},{"$f":"IFERROR('MMA Rev-Exp Region 9'!$Q$37/'MMA Rev-Exp Region 9'!$Q$9, 0)","v":{"v":0,"d":"$0.00"}},{"$f":"IFERROR('MMA Rev-Exp Region 9'!$R$37/'MMA Rev-Exp Region 9'!$R$9, 0)","v":{"v":0,"d":"$0.00"}},{"$f":"IFERROR('MMA Rev-Exp Region 9'!$S$37/'MMA Rev-Exp Region 9'!$S$9, 0)","v":{"v":0,"d":"$0.00"}},{"$f":"IFERROR('MMA Rev-Exp Region 9'!$T$37/'MMA Rev-Exp Region 9'!$T$9, 0)","v":{"v":0,"d":"$0.00"}},{"$f":"IFERROR('MMA Rev-Exp Region 9'!$U$37/'MMA Rev-Exp Region 9'!$U$9, 0)","v":{"v":0,"d":"$0.00"}},{"$f":"IFERROR('MMA Rev-Exp Region 9'!$V$37/'MMA Rev-Exp Region 9'!$V$9, 0)","v":{"v":0,"d":"$0.00"}},{"$f":"IFERROR('MMA Rev-Exp Region 9'!$W$37/'MMA Rev-Exp Region 9'!$W$9, 0)","v":{"v":0,"d":"$0.00"}},{"$f":"IFERROR('MMA Rev-Exp Region 9'!$X$37/'MMA Rev-Exp Region 9'!$X$9, 0)","v":{"v":0,"d":"$0.00"}},{"$f":"IFERROR('MMA Rev-Exp Region 9'!$Y$37/'MMA Rev-Exp Region 9'!$Y$9, 0)","v":{"v":0,"d":"$0.00"}}]
["MMA",null,null,2016,"2016-12-31","Q2","2017-06-30","Region 9","Operating Expense","Medical Benefits Expense","Maternity Services","4.2.1","Ending IBNP for Maternity Services",{"$f":"IFERROR('MMA Rev-Exp Region 9'!$O$38/'MMA Rev-Exp Region 9'!$O$9, 0)","v":{"v":0,"d":"$0.00"}},{"$f":"IFERROR('MMA Rev-Exp Region 9'!$P$38/'MMA Rev-Exp Region 9'!$P$9, 0)","v":{"v":0,"d":"$0.00"}},{"$f":"IFERROR('MMA Rev-Exp Region 9'!$Q$38/'MMA Rev-Exp Region 9'!$Q$9, 0)","v":{"v":0,"d":"$0.00"}},{"$f":"IFERROR('MMA Rev-Exp Region 9'!$R$38/'MMA Rev-Exp Region 9'!$R$9, 0)","v":{"v":0,"d":"$0.00"}},{"$f":"IFERROR('MMA Rev-Exp Region 9'!$S$38/'MMA Rev-Exp Region 9'!$S$9, 0)","v":{"v":0,"d":"$0.00"}},{"$f":"IFERROR('MMA Rev-Exp Region 9'!$T$38/'MMA Rev-Exp Region 9'!$T$9, 0)","v":{"v":0,"d":"$0.00"}},{"$f":"IFERROR('MMA Rev-Exp Region 9'!$U$38/'MMA Rev-Exp Region 9'!$U$9, 0)","v":{"v":0,"d":"$0.00"}},{"$f":"IFERROR('MMA Rev-Exp Region 9'!$V$38/'MMA Rev-Exp Region 9'!$V$9, 0)","v":{"v":0,"d":"$0.00"}},{"$f":"IFERROR('MMA Rev-Exp Region 9'!$W$38/'MMA Rev-Exp Region 9'!$W$9, 0)","v":{"v":0,"d":"$0.00"}},{"$f":"IFERROR('MMA Rev-Exp Region 9'!$X$38/'MMA Rev-Exp Region 9'!$X$9, 0)","v":{"v":0,"d":"$0.00"}},{"$f":"IFERROR('MMA Rev-Exp Region 9'!$Y$38/'MMA Rev-Exp Region 9'!$Y$9, 0)","v":{"v":0,"d":"$0.00"}}]
["MMA",null,null,2016,"2016-12-31","Q2","2017-06-30","Region 9","Operating Expense","Medical Benefits Expense","Maternity Services","4.3.1","Maternity Settlements",{"$f":"IFERROR('MMA Rev-Exp Region 9'!$O$39/'MMA Rev-Exp Region 9'!$O$9, 0)","v":{"v":0,"d":"$0.00"}},{"$f":"IFERROR('MMA Rev-Exp Region 9'!$P$39/'MMA Rev-Exp Region 9'!$P$9, 0)","v":{"v":0,"d":"$0.00"}},{"$f":"IFERROR('MMA Rev-Exp Region 9'!$Q$39/'MMA Rev-Exp Region 9'!$Q$9, 0)","v":{"v":0,"d":"$0.00"}},{"$f":"IFERROR('MMA Rev-Exp Region 9'!$R$39/'MMA Rev-Exp Region 9'!$R$9, 0)","v":{"v":0,"d":"$0.00"}},{"$f":"IFERROR('MMA Rev-Exp Region 9'!$S$39/'MMA Rev-Exp Region 9'!$S$9, 0)","v":{"v":0,"d":"$0.00"}},{"$f":"IFERROR('MMA Rev-Exp Region 9'!$T$39/'MMA Rev-Exp Region 9'!$T$9, 0)","v":{"v":0,"d":"$0.00"}},{"$f":"IFERROR('MMA Rev-Exp Region 9'!$U$39/'MMA Rev-Exp Region 9'!$U$9, 0)","v":{"v":0,"d":"$0.00"}},{"$f":"IFERROR('MMA Rev-Exp Region 9'!$V$39/'MMA Rev-Exp Region 9'!$V$9, 0)","v":{"v":0,"d":"$0.00"}},{"$f":"IFERROR('MMA Rev-Exp Region 9'!$W$39/'MMA Rev-Exp Region 9'!$W$9, 0)","v":{"v":0,"d":"$0.00"}},{"$f":"IFERROR('MMA Rev-Exp Region 9'!$X$39/'MMA Rev-Exp Region 9'!$X$9, 0)","v":{"v":0,"d":"$0.00"}},{"$f":"IFERROR('MMA Rev-Exp Region 9'!$Y$39/'MMA Rev-Exp Region 9'!$Y$9, 0)","v":{"v":0,"d":"$0.00"}}]
["MMA",null,null,2016,"2016-12-31","Q2","2017-06-30","Region 9","Operating Expense","Medical Benefits Expense","Mental Health Services",5.1,"Mental Health & Substance Abuse FFS",{"$f":"IFERROR('MMA Rev-Exp Region 9'!$O$41/'MMA Rev-Exp Region 9'!$O$9, 0)","v":{"v":0,"d":"$0.00"}},{"$f":"IFERROR('MMA Rev-Exp Region 9'!$P$41/'MMA Rev-Exp Region 9'!$P$9, 0)","v":{"v":0,"d":"$0.00"}},{"$f":"IFERROR('MMA Rev-Exp Region 9'!$Q$41/'MMA Rev-Exp Region 9'!$Q$9, 0)","v":{"v":0,"d":"$0.00"}},{"$f":"IFERROR('MMA Rev-Exp Region 9'!$R$41/'MMA Rev-Exp Region 9'!$R$9, 0)","v":{"v":0,"d":"$0.00"}},{"$f":"IFERROR('MMA Rev-Exp Region 9'!$S$41/'MMA Rev-Exp Region 9'!$S$9, 0)","v":{"v":0,"d":"$0.00"}},{"$f":"IFERROR('MMA Rev-Exp Region 9'!$T$41/'MMA Rev-Exp Region 9'!$T$9, 0)","v":{"v":0,"d":"$0.00"}},{"$f":"IFERROR('MMA Rev-Exp Region 9'!$U$41/'MMA Rev-Exp Region 9'!$U$9, 0)","v":{"v":0,"d":"$0.00"}},{"$f":"IFERROR('MMA Rev-Exp Region 9'!$V$41/'MMA Rev-Exp Region 9'!$V$9, 0)","v":{"v":0,"d":"$0.00"}},{"$f":"IFERROR('MMA Rev-Exp Region 9'!$W$41/'MMA Rev-Exp Region 9'!$W$9, 0)","v":{"v":0,"d":"$0.00"}},{"$f":"IFERROR('MMA Rev-Exp Region 9'!$X$41/'MMA Rev-Exp Region 9'!$X$9, 0)","v":{"v":0,"d":"$0.00"}},{"$f":"IFERROR('MMA Rev-Exp Region 9'!$Y$41/'MMA Rev-Exp Region 9'!$Y$9, 0)","v":{"v":0,"d":"$0.00"}}]
["MMA",null,null,2016,"2016-12-31","Q2","2017-06-30","Region 9","Operating Expense","Medical Benefits Expense","Mental Health Services",5.2,"Mental Health & Substance Abuse Subcapitation",{"$f":"IFERROR('MMA Rev-Exp Region 9'!$O$42/'MMA Rev-Exp Region 9'!$O$9, 0)","v":{"v":0,"d":"$0.00"}},{"$f":"IFERROR('MMA Rev-Exp Region 9'!$P$42/'MMA Rev-Exp Region 9'!$P$9, 0)","v":{"v":0,"d":"$0.00"}},{"$f":"IFERROR('MMA Rev-Exp Region 9'!$Q$42/'MMA Rev-Exp Region 9'!$Q$9, 0)","v":{"v":0,"d":"$0.00"}},{"$f":"IFERROR('MMA Rev-Exp Region 9'!$R$42/'MMA Rev-Exp Region 9'!$R$9, 0)","v":{"v":0,"d":"$0.00"}},{"$f":"IFERROR('MMA Rev-Exp Region 9'!$S$42/'MMA Rev-Exp Region 9'!$S$9, 0)","v":{"v":0,"d":"$0.00"}},{"$f":"IFERROR('MMA Rev-Exp Region 9'!$T$42/'MMA Rev-Exp Region 9'!$T$9, 0)","v":{"v":0,"d":"$0.00"}},{"$f":"IFERROR('MMA Rev-Exp Region 9'!$U$42/'MMA Rev-Exp Region 9'!$U$9, 0)","v":{"v":0,"d":"$0.00"}},{"$f":"IFERROR('MMA Rev-Exp Region 9'!$V$42/'MMA Rev-Exp Region 9'!$V$9, 0)","v":{"v":0,"d":"$0.00"}},{"$f":"IFERROR('MMA Rev-Exp Region 9'!$W$42/'MMA Rev-Exp Region 9'!$W$9, 0)","v":{"v":0,"d":"$0.00"}},{"$f":"IFERROR('MMA Rev-Exp Region 9'!$X$42/'MMA Rev-Exp Region 9'!$X$9, 0)","v":{"v":0,"d":"$0.00"}},{"$f":"IFERROR('MMA Rev-Exp Region 9'!$Y$42/'MMA Rev-Exp Region 9'!$Y$9, 0)","v":{"v":0,"d":"$0.00"}}]
["MMA",null,null,2016,"2016-12-31","Q2","2017-06-30","Region 9","Operating Expense","Medical Benefits Expense","Mental Health Services",5.3,"Ending IBNP for Mental Health & Substance Abuse",{"$f":"IFERROR('MMA Rev-Exp Region 9'!$O$43/'MMA Rev-Exp Region 9'!$O$9, 0)","v":{"v":0,"d":"$0.00"}},{"$f":"IFERROR('MMA Rev-Exp Region 9'!$P$43/'MMA Rev-Exp Region 9'!$P$9, 0)","v":{"v":0,"d":"$0.00"}},{"$f":"IFERROR('MMA Rev-Exp Region 9'!$Q$43/'MMA Rev-Exp Region 9'!$Q$9, 0)","v":{"v":0,"d":"$0.00"}},{"$f":"IFERROR('MMA Rev-Exp Region 9'!$R$43/'MMA Rev-Exp Region 9'!$R$9, 0)","v":{"v":0,"d":"$0.00"}},{"$f":"IFERROR('MMA Rev-Exp Region 9'!$S$43/'MMA Rev-Exp Region 9'!$S$9, 0)","v":{"v":0,"d":"$0.00"}},{"$f":"IFERROR('MMA Rev-Exp Region 9'!$T$43/'MMA Rev-Exp Region 9'!$T$9, 0)","v":{"v":0,"d":"$0.00"}},{"$f":"IFERROR('MMA Rev-Exp Region 9'!$U$43/'MMA Rev-Exp Region 9'!$U$9, 0)","v":{"v":0,"d":"$0.00"}},{"$f":"IFERROR('MMA Rev-Exp Region 9'!$V$43/'MMA Rev-Exp Region 9'!$V$9, 0)","v":{"v":0,"d":"$0.00"}},{"$f":"IFERROR('MMA Rev-Exp Region 9'!$W$43/'MMA Rev-Exp Region 9'!$W$9, 0)","v":{"v":0,"d":"$0.00"}},{"$f":"IFERROR('MMA Rev-Exp Region 9'!$X$43/'MMA Rev-Exp Region 9'!$X$9, 0)","v":{"v":0,"d":"$0.00"}},{"$f":"IFERROR('MMA Rev-Exp Region 9'!$Y$43/'MMA Rev-Exp Region 9'!$Y$9, 0)","v":{"v":0,"d":"$0.00"}}]
["MMA",null,null,2016,"2016-12-31","Q2","2017-06-30","Region 9","Operating Expense","Medical Benefits Expense","Mental Health Services","5.4","Mental Health Settlements",{"$f":"IFERROR('MMA Rev-Exp Region 9'!$O$44/'MMA Rev-Exp Region 9'!$O$9, 0)","v":{"v":0,"d":"$0.00"}},{"$f":"IFERROR('MMA Rev-Exp Region 9'!$P$44/'MMA Rev-Exp Region 9'!$P$9, 0)","v":{"v":0,"d":"$0.00"}},{"$f":"IFERROR('MMA Rev-Exp Region 9'!$Q$44/'MMA Rev-Exp Region 9'!$Q$9, 0)","v":{"v":0,"d":"$0.00"}},{"$f":"IFERROR('MMA Rev-Exp Region 9'!$R$44/'MMA Rev-Exp Region 9'!$R$9, 0)","v":{"v":0,"d":"$0.00"}},{"$f":"IFERROR('MMA Rev-Exp Region 9'!$S$44/'MMA Rev-Exp Region 9'!$S$9, 0)","v":{"v":0,"d":"$0.00"}},{"$f":"IFERROR('MMA Rev-Exp Region 9'!$T$44/'MMA Rev-Exp Region 9'!$T$9, 0)","v":{"v":0,"d":"$0.00"}},{"$f":"IFERROR('MMA Rev-Exp Region 9'!$U$44/'MMA Rev-Exp Region 9'!$U$9, 0)","v":{"v":0,"d":"$0.00"}},{"$f":"IFERROR('MMA Rev-Exp Region 9'!$V$44/'MMA Rev-Exp Region 9'!$V$9, 0)","v":{"v":0,"d":"$0.00"}},{"$f":"IFERROR('MMA Rev-Exp Region 9'!$W$44/'MMA Rev-Exp Region 9'!$W$9, 0)","v":{"v":0,"d":"$0.00"}},{"$f":"IFERROR('MMA Rev-Exp Region 9'!$X$44/'MMA Rev-Exp Region 9'!$X$9, 0)","v":{"v":0,"d":"$0.00"}},{"$f":"IFERROR('MMA Rev-Exp Region 9'!$Y$44/'MMA Rev-Exp Region 9'!$Y$9, 0)","v":{"v":0,"d":"$0.00"}}]
["MMA",null,null,2016,"2016-12-31","Q2","2017-06-30","Region 9","Operating Expense","Medical Benefits Expense","Dental Services",6.1,"Dental FFS",{"$f":"IFERROR('MMA Rev-Exp Region 9'!$O$46/'MMA Rev-Exp Region 9'!$O$9, 0)","v":{"v":0,"d":"$0.00"}},{"$f":"IFERROR('MMA Rev-Exp Region 9'!$P$46/'MMA Rev-Exp Region 9'!$P$9, 0)","v":{"v":0,"d":"$0.00"}},{"$f":"IFERROR('MMA Rev-Exp Region 9'!$Q$46/'MMA Rev-Exp Region 9'!$Q$9, 0)","v":{"v":0,"d":"$0.00"}},{"$f":"IFERROR('MMA Rev-Exp Region 9'!$R$46/'MMA Rev-Exp Region 9'!$R$9, 0)","v":{"v":0,"d":"$0.00"}},{"$f":"IFERROR('MMA Rev-Exp Region 9'!$S$46/'MMA Rev-Exp Region 9'!$S$9, 0)","v":{"v":0,"d":"$0.00"}},{"$f":"IFERROR('MMA Rev-Exp Region 9'!$T$46/'MMA Rev-Exp Region 9'!$T$9, 0)","v":{"v":0,"d":"$0.00"}},{"$f":"IFERROR('MMA Rev-Exp Region 9'!$U$46/'MMA Rev-Exp Region 9'!$U$9, 0)","v":{"v":0,"d":"$0.00"}},{"$f":"IFERROR('MMA Rev-Exp Region 9'!$V$46/'MMA Rev-Exp Region 9'!$V$9, 0)","v":{"v":0,"d":"$0.00"}},{"$f":"IFERROR('MMA Rev-Exp Region 9'!$W$46/'MMA Rev-Exp Region 9'!$W$9, 0)","v":{"v":0,"d":"$0.00"}},{"$f":"IFERROR('MMA Rev-Exp Region 9'!$X$46/'MMA Rev-Exp Region 9'!$X$9, 0)","v":{"v":0,"d":"$0.00"}},{"$f":"IFERROR('MMA Rev-Exp Region 9'!$Y$46/'MMA Rev-Exp Region 9'!$Y$9, 0)","v":{"v":0,"d":"$0.00"}}]
["MMA",null,null,2016,"2016-12-31","Q2","2017-06-30","Region 9","Operating Expense","Medical Benefits Expense","Dental Services",6.2,"Dental Subcapitation",{"$f":"IFERROR('MMA Rev-Exp Region 9'!$O$47/'MMA Rev-Exp Region 9'!$O$9, 0)","v":{"v":0,"d":"$0.00"}},{"$f":"IFERROR('MMA Rev-Exp Region 9'!$P$47/'MMA Rev-Exp Region 9'!$P$9, 0)","v":{"v":0,"d":"$0.00"}},{"$f":"IFERROR('MMA Rev-Exp Region 9'!$Q$47/'MMA Rev-Exp Region 9'!$Q$9, 0)","v":{"v":0,"d":"$0.00"}},{"$f":"IFERROR('MMA Rev-Exp Region 9'!$R$47/'MMA Rev-Exp Region 9'!$R$9, 0)","v":{"v":0,"d":"$0.00"}},{"$f":"IFERROR('MMA Rev-Exp Region 9'!$S$47/'MMA Rev-Exp Region 9'!$S$9, 0)","v":{"v":0,"d":"$0.00"}},{"$f":"IFERROR('MMA Rev-Exp Region 9'!$T$47/'MMA Rev-Exp Region 9'!$T$9, 0)","v":{"v":0,"d":"$0.00"}},{"$f":"IFERROR('MMA Rev-Exp Region 9'!$U$47/'MMA Rev-Exp Region 9'!$U$9, 0)","v":{"v":0,"d":"$0.00"}},{"$f":"IFERROR('MMA Rev-Exp Region 9'!$V$47/'MMA Rev-Exp Region 9'!$V$9, 0)","v":{"v":0,"d":"$0.00"}},{"$f":"IFERROR('MMA Rev-Exp Region 9'!$W$47/'MMA Rev-Exp Region 9'!$W$9, 0)","v":{"v":0,"d":"$0.00"}},{"$f":"IFERROR('MMA Rev-Exp Region 9'!$X$47/'MMA Rev-Exp Region 9'!$X$9, 0)","v":{"v":0,"d":"$0.00"}},{"$f":"IFERROR('MMA Rev-Exp Region 9'!$Y$47/'MMA Rev-Exp Region 9'!$Y$9, 0)","v":{"v":0,"d":"$0.00"}}]
["MMA",null,null,2016,"2016-12-31","Q2","2017-06-30","Region 9","Operating Expense","Medical Benefits Expense","Dental Services",6.3,"Ending IBNP for Dental Services",{"$f":"IFERROR('MMA Rev-Exp Region 9'!$O$48/'MMA Rev-Exp Region 9'!$O$9, 0)","v":{"v":0,"d":"$0.00"}},{"$f":"IFERROR('MMA Rev-Exp Region 9'!$P$48/'MMA Rev-Exp Region 9'!$P$9, 0)","v":{"v":0,"d":"$0.00"}},{"$f":"IFERROR('MMA Rev-Exp Region 9'!$Q$48/'MMA Rev-Exp Region 9'!$Q$9, 0)","v":{"v":0,"d":"$0.00"}},{"$f":"IFERROR('MMA Rev-Exp Region 9'!$R$48/'MMA Rev-Exp Region 9'!$R$9, 0)","v":{"v":0,"d":"$0.00"}},{"$f":"IFERROR('MMA Rev-Exp Region 9'!$S$48/'MMA Rev-Exp Region 9'!$S$9, 0)","v":{"v":0,"d":"$0.00"}},{"$f":"IFERROR('MMA Rev-Exp Region 9'!$T$48/'MMA Rev-Exp Region 9'!$T$9, 0)","v":{"v":0,"d":"$0.00"}},{"$f":"IFERROR('MMA Rev-Exp Region 9'!$U$48/'MMA Rev-Exp Region 9'!$U$9, 0)","v":{"v":0,"d":"$0.00"}},{"$f":"IFERROR('MMA Rev-Exp Region 9'!$V$48/'MMA Rev-Exp Region 9'!$V$9, 0)","v":{"v":0,"d":"$0.00"}},{"$f":"IFERROR('MMA Rev-Exp Region 9'!$W$48/'MMA Rev-Exp Region 9'!$W$9, 0)","v":{"v":0,"d":"$0.00"}},{"$f":"IFERROR('MMA Rev-Exp Region 9'!$X$48/'MMA Rev-Exp Region 9'!$X$9, 0)","v":{"v":0,"d":"$0.00"}},{"$f":"IFERROR('MMA Rev-Exp Region 9'!$Y$48/'MMA Rev-Exp Region 9'!$Y$9, 0)","v":{"v":0,"d":"$0.00"}}]
["MMA",null,null,2016,"2016-12-31","Q2","2017-06-30","Region 9","Operating Expense","Medical Benefits Expense","Dental Services","6.4","Dental Settlements",{"$f":"IFERROR('MMA Rev-Exp Region 9'!$O$49/'MMA Rev-Exp Region 9'!$O$9, 0)","v":{"v":0,"d":"$0.00"}},{"$f":"IFERROR('MMA Rev-Exp Region 9'!$P$49/'MMA Rev-Exp Region 9'!$P$9, 0)","v":{"v":0,"d":"$0.00"}},{"$f":"IFERROR('MMA Rev-Exp Region 9'!$Q$49/'MMA Rev-Exp Region 9'!$Q$9, 0)","v":{"v":0,"d":"$0.00"}},{"$f":"IFERROR('MMA Rev-Exp Region 9'!$R$49/'MMA Rev-Exp Region 9'!$R$9, 0)","v":{"v":0,"d":"$0.00"}},{"$f":"IFERROR('MMA Rev-Exp Region 9'!$S$49/'MMA Rev-Exp Region 9'!$S$9, 0)","v":{"v":0,"d":"$0.00"}},{"$f":"IFERROR('MMA Rev-Exp Region 9'!$T$49/'MMA Rev-Exp Region 9'!$T$9, 0)","v":{"v":0,"d":"$0.00"}},{"$f":"IFERROR('MMA Rev-Exp Region 9'!$U$49/'MMA Rev-Exp Region 9'!$U$9, 0)","v":{"v":0,"d":"$0.00"}},{"$f":"IFERROR('MMA Rev-Exp Region 9'!$V$49/'MMA Rev-Exp Region 9'!$V$9, 0)","v":{"v":0,"d":"$0.00"}},{"$f":"IFERROR('MMA Rev-Exp Region 9'!$W$49/'MMA Rev-Exp Region 9'!$W$9, 0)","v":{"v":0,"d":"$0.00"}},{"$f":"IFERROR('MMA Rev-Exp Region 9'!$X$49/'MMA Rev-Exp Region 9'!$X$9, 0)","v":{"v":0,"d":"$0.00"}},{"$f":"IFERROR('MMA Rev-Exp Region 9'!$Y$49/'MMA Rev-Exp Region 9'!$Y$9, 0)","v":{"v":0,"d":"$0.00"}}]
["MMA",null,null,2016,"2016-12-31","Q2","2017-06-30","Region 9","Operating Expense","Medical Benefits Expense","Transportation Services",7.1,"Transportation FFS",{"$f":"IFERROR('MMA Rev-Exp Region 9'!$O$51/'MMA Rev-Exp Region 9'!$O$9, 0)","v":{"v":0,"d":"$0.00"}},{"$f":"IFERROR('MMA Rev-Exp Region 9'!$P$51/'MMA Rev-Exp Region 9'!$P$9, 0)","v":{"v":0,"d":"$0.00"}},{"$f":"IFERROR('MMA Rev-Exp Region 9'!$Q$51/'MMA Rev-Exp Region 9'!$Q$9, 0)","v":{"v":0,"d":"$0.00"}},{"$f":"IFERROR('MMA Rev-Exp Region 9'!$R$51/'MMA Rev-Exp Region 9'!$R$9, 0)","v":{"v":0,"d":"$0.00"}},{"$f":"IFERROR('MMA Rev-Exp Region 9'!$S$51/'MMA Rev-Exp Region 9'!$S$9, 0)","v":{"v":0,"d":"$0.00"}},{"$f":"IFERROR('MMA Rev-Exp Region 9'!$T$51/'MMA Rev-Exp Region 9'!$T$9, 0)","v":{"v":0,"d":"$0.00"}},{"$f":"IFERROR('MMA Rev-Exp Region 9'!$U$51/'MMA Rev-Exp Region 9'!$U$9, 0)","v":{"v":0,"d":"$0.00"}},{"$f":"IFERROR('MMA Rev-Exp Region 9'!$V$51/'MMA Rev-Exp Region 9'!$V$9, 0)","v":{"v":0,"d":"$0.00"}},{"$f":"IFERROR('MMA Rev-Exp Region 9'!$W$51/'MMA Rev-Exp Region 9'!$W$9, 0)","v":{"v":0,"d":"$0.00"}},{"$f":"IFERROR('MMA Rev-Exp Region 9'!$X$51/'MMA Rev-Exp Region 9'!$X$9, 0)","v":{"v":0,"d":"$0.00"}},{"$f":"IFERROR('MMA Rev-Exp Region 9'!$Y$51/'MMA Rev-Exp Region 9'!$Y$9, 0)","v":{"v":0,"d":"$0.00"}}]
["MMA",null,null,2016,"2016-12-31","Q2","2017-06-30","Region 9","Operating Expense","Medical Benefits Expense","Transportation Services",7.2,"Transportation Subcapitation",{"$f":"IFERROR('MMA Rev-Exp Region 9'!$O$52/'MMA Rev-Exp Region 9'!$O$9, 0)","v":{"v":0,"d":"$0.00"}},{"$f":"IFERROR('MMA Rev-Exp Region 9'!$P$52/'MMA Rev-Exp Region 9'!$P$9, 0)","v":{"v":0,"d":"$0.00"}},{"$f":"IFERROR('MMA Rev-Exp Region 9'!$Q$52/'MMA Rev-Exp Region 9'!$Q$9, 0)","v":{"v":0,"d":"$0.00"}},{"$f":"IFERROR('MMA Rev-Exp Region 9'!$R$52/'MMA Rev-Exp Region 9'!$R$9, 0)","v":{"v":0,"d":"$0.00"}},{"$f":"IFERROR('MMA Rev-Exp Region 9'!$S$52/'MMA Rev-Exp Region 9'!$S$9, 0)","v":{"v":0,"d":"$0.00"}},{"$f":"IFERROR('MMA Rev-Exp Region 9'!$T$52/'MMA Rev-Exp Region 9'!$T$9, 0)","v":{"v":0,"d":"$0.00"}},{"$f":"IFERROR('MMA Rev-Exp Region 9'!$U$52/'MMA Rev-Exp Region 9'!$U$9, 0)","v":{"v":0,"d":"$0.00"}},{"$f":"IFERROR('MMA Rev-Exp Region 9'!$V$52/'MMA Rev-Exp Region 9'!$V$9, 0)","v":{"v":0,"d":"$0.00"}},{"$f":"IFERROR('MMA Rev-Exp Region 9'!$W$52/'MMA Rev-Exp Region 9'!$W$9, 0)","v":{"v":0,"d":"$0.00"}},{"$f":"IFERROR('MMA Rev-Exp Region 9'!$X$52/'MMA Rev-Exp Region 9'!$X$9, 0)","v":{"v":0,"d":"$0.00"}},{"$f":"IFERROR('MMA Rev-Exp Region 9'!$Y$52/'MMA Rev-Exp Region 9'!$Y$9, 0)","v":{"v":0,"d":"$0.00"}}]
["MMA",null,null,2016,"2016-12-31","Q2","2017-06-30","Region 9","Operating Expense","Medical Benefits Expense","Transportation Services",7.3,"Ending IBNP for Transportation",{"$f":"IFERROR('MMA Rev-Exp Region 9'!$O$53/'MMA Rev-Exp Region 9'!$O$9, 0)","v":{"v":0,"d":"$0.00"}},{"$f":"IFERROR('MMA Rev-Exp Region 9'!$P$53/'MMA Rev-Exp Region 9'!$P$9, 0)","v":{"v":0,"d":"$0.00"}},{"$f":"IFERROR('MMA Rev-Exp Region 9'!$Q$53/'MMA Rev-Exp Region 9'!$Q$9, 0)","v":{"v":0,"d":"$0.00"}},{"$f":"IFERROR('MMA Rev-Exp Region 9'!$R$53/'MMA Rev-Exp Region 9'!$R$9, 0)","v":{"v":0,"d":"$0.00"}},{"$f":"IFERROR('MMA Rev-Exp Region 9'!$S$53/'MMA Rev-Exp Region 9'!$S$9, 0)","v":{"v":0,"d":"$0.00"}},{"$f":"IFERROR('MMA Rev-Exp Region 9'!$T$53/'MMA Rev-Exp Region 9'!$T$9, 0)","v":{"v":0,"d":"$0.00"}},{"$f":"IFERROR('MMA Rev-Exp Region 9'!$U$53/'MMA Rev-Exp Region 9'!$U$9, 0)","v":{"v":0,"d":"$0.00"}},{"$f":"IFERROR('MMA Rev-Exp Region 9'!$V$53/'MMA Rev-Exp Region 9'!$V$9, 0)","v":{"v":0,"d":"$0.00"}},{"$f":"IFERROR('MMA Rev-Exp Region 9'!$W$53/'MMA Rev-Exp Region 9'!$W$9, 0)","v":{"v":0,"d":"$0.00"}},{"$f":"IFERROR('MMA Rev-Exp Region 9'!$X$53/'MMA Rev-Exp Region 9'!$X$9, 0)","v":{"v":0,"d":"$0.00"}},{"$f":"IFERROR('MMA Rev-Exp Region 9'!$Y$53/'MMA Rev-Exp Region 9'!$Y$9, 0)","v":{"v":0,"d":"$0.00"}}]
["MMA",null,null,2016,"2016-12-31","Q2","2017-06-30","Region 9","Operating Expense","Medical Benefits Expense","Transportation Services","7.4","Transportation Settlements",{"$f":"IFERROR('MMA Rev-Exp Region 9'!$O$54/'MMA Rev-Exp Region 9'!$O$9, 0)","v":{"v":0,"d":"$0.00"}},{"$f":"IFERROR('MMA Rev-Exp Region 9'!$P$54/'MMA Rev-Exp Region 9'!$P$9, 0)","v":{"v":0,"d":"$0.00"}},{"$f":"IFERROR('MMA Rev-Exp Region 9'!$Q$54/'MMA Rev-Exp Region 9'!$Q$9, 0)","v":{"v":0,"d":"$0.00"}},{"$f":"IFERROR('MMA Rev-Exp Region 9'!$R$54/'MMA Rev-Exp Region 9'!$R$9, 0)","v":{"v":0,"d":"$0.00"}},{"$f":"IFERROR('MMA Rev-Exp Region 9'!$S$54/'MMA Rev-Exp Region 9'!$S$9, 0)","v":{"v":0,"d":"$0.00"}},{"$f":"IFERROR('MMA Rev-Exp Region 9'!$T$54/'MMA Rev-Exp Region 9'!$T$9, 0)","v":{"v":0,"d":"$0.00"}},{"$f":"IFERROR('MMA Rev-Exp Region 9'!$U$54/'MMA Rev-Exp Region 9'!$U$9, 0)","v":{"v":0,"d":"$0.00"}},{"$f":"IFERROR('MMA Rev-Exp Region 9'!$V$54/'MMA Rev-Exp Region 9'!$V$9, 0)","v":{"v":0,"d":"$0.00"}},{"$f":"IFERROR('MMA Rev-Exp Region 9'!$W$54/'MMA Rev-Exp Region 9'!$W$9, 0)","v":{"v":0,"d":"$0.00"}},{"$f":"IFERROR('MMA Rev-Exp Region 9'!$X$54/'MMA Rev-Exp Region 9'!$X$9, 0)","v":{"v":0,"d":"$0.00"}},{"$f":"IFERROR('MMA Rev-Exp Region 9'!$Y$54/'MMA Rev-Exp Region 9'!$Y$9, 0)","v":{"v":0,"d":"$0.00"}}]
["MMA",null,null,2016,"2016-12-31","Q2","2017-06-30","Region 9","Operating Expense","Medical Benefits Expense","Pharmacy Services",8.1,"Prescription Drugs FFS",{"$f":"IFERROR('MMA Rev-Exp Region 9'!$O$56/'MMA Rev-Exp Region 9'!$O$9, 0)","v":{"v":0,"d":"$0.00"}},{"$f":"IFERROR('MMA Rev-Exp Region 9'!$P$56/'MMA Rev-Exp Region 9'!$P$9, 0)","v":{"v":0,"d":"$0.00"}},{"$f":"IFERROR('MMA Rev-Exp Region 9'!$Q$56/'MMA Rev-Exp Region 9'!$Q$9, 0)","v":{"v":0,"d":"$0.00"}},{"$f":"IFERROR('MMA Rev-Exp Region 9'!$R$56/'MMA Rev-Exp Region 9'!$R$9, 0)","v":{"v":0,"d":"$0.00"}},{"$f":"IFERROR('MMA Rev-Exp Region 9'!$S$56/'MMA Rev-Exp Region 9'!$S$9, 0)","v":{"v":0,"d":"$0.00"}},{"$f":"IFERROR('MMA Rev-Exp Region 9'!$T$56/'MMA Rev-Exp Region 9'!$T$9, 0)","v":{"v":0,"d":"$0.00"}},{"$f":"IFERROR('MMA Rev-Exp Region 9'!$U$56/'MMA Rev-Exp Region 9'!$U$9, 0)","v":{"v":0,"d":"$0.00"}},{"$f":"IFERROR('MMA Rev-Exp Region 9'!$V$56/'MMA Rev-Exp Region 9'!$V$9, 0)","v":{"v":0,"d":"$0.00"}},{"$f":"IFERROR('MMA Rev-Exp Region 9'!$W$56/'MMA Rev-Exp Region 9'!$W$9, 0)","v":{"v":0,"d":"$0.00"}},{"$f":"IFERROR('MMA Rev-Exp Region 9'!$X$56/'MMA Rev-Exp Region 9'!$X$9, 0)","v":{"v":0,"d":"$0.00"}},{"$f":"IFERROR('MMA Rev-Exp Region 9'!$Y$56/'MMA Rev-Exp Region 9'!$Y$9, 0)","v":{"v":0,"d":"$0.00"}}]
["MMA",null,null,2016,"2016-12-31","Q2","2017-06-30","Region 9","Operating Expense","Medical Benefits Expense","Pharmacy Services","8.2","Hepatitis C Prescription Drug FFS",{"$f":"IFERROR('MMA Rev-Exp Region 9'!$O$57/'MMA Rev-Exp Region 9'!$O$9, 0)","v":{"v":0,"d":"$0.00"}},{"$f":"IFERROR('MMA Rev-Exp Region 9'!$P$57/'MMA Rev-Exp Region 9'!$P$9, 0)","v":{"v":0,"d":"$0.00"}},{"$f":"IFERROR('MMA Rev-Exp Region 9'!$Q$57/'MMA Rev-Exp Region 9'!$Q$9, 0)","v":{"v":0,"d":"$0.00"}},{"$f":"IFERROR('MMA Rev-Exp Region 9'!$R$57/'MMA Rev-Exp Region 9'!$R$9, 0)","v":{"v":0,"d":"$0.00"}},{"$f":"IFERROR('MMA Rev-Exp Region 9'!$S$57/'MMA Rev-Exp Region 9'!$S$9, 0)","v":{"v":0,"d":"$0.00"}},{"$f":"IFERROR('MMA Rev-Exp Region 9'!$T$57/'MMA Rev-Exp Region 9'!$T$9, 0)","v":{"v":0,"d":"$0.00"}},{"$f":"IFERROR('MMA Rev-Exp Region 9'!$U$57/'MMA Rev-Exp Region 9'!$U$9, 0)","v":{"v":0,"d":"$0.00"}},{"$f":"IFERROR('MMA Rev-Exp Region 9'!$V$57/'MMA Rev-Exp Region 9'!$V$9, 0)","v":{"v":0,"d":"$0.00"}},{"$f":"IFERROR('MMA Rev-Exp Region 9'!$W$57/'MMA Rev-Exp Region 9'!$W$9, 0)","v":{"v":0,"d":"$0.00"}},{"$f":"IFERROR('MMA Rev-Exp Region 9'!$X$57/'MMA Rev-Exp Region 9'!$X$9, 0)","v":{"v":0,"d":"$0.00"}},{"$f":"IFERROR('MMA Rev-Exp Region 9'!$Y$57/'MMA Rev-Exp Region 9'!$Y$9, 0)","v":{"v":0,"d":"$0.00"}}]
["MMA",null,null,2016,"2016-12-31","Q2","2017-06-30","Region 9","Operating Expense","Medical Benefits Expense","Pharmacy Services","8.3","Ending IBNP for Prescription Drugs",{"$f":"IFERROR('MMA Rev-Exp Region 9'!$O$58/'MMA Rev-Exp Region 9'!$O$9, 0)","v":{"v":0,"d":"$0.00"}},{"$f":"IFERROR('MMA Rev-Exp Region 9'!$P$58/'MMA Rev-Exp Region 9'!$P$9, 0)","v":{"v":0,"d":"$0.00"}},{"$f":"IFERROR('MMA Rev-Exp Region 9'!$Q$58/'MMA Rev-Exp Region 9'!$Q$9, 0)","v":{"v":0,"d":"$0.00"}},{"$f":"IFERROR('MMA Rev-Exp Region 9'!$R$58/'MMA Rev-Exp Region 9'!$R$9, 0)","v":{"v":0,"d":"$0.00"}},{"$f":"IFERROR('MMA Rev-Exp Region 9'!$S$58/'MMA Rev-Exp Region 9'!$S$9, 0)","v":{"v":0,"d":"$0.00"}},{"$f":"IFERROR('MMA Rev-Exp Region 9'!$T$58/'MMA Rev-Exp Region 9'!$T$9, 0)","v":{"v":0,"d":"$0.00"}},{"$f":"IFERROR('MMA Rev-Exp Region 9'!$U$58/'MMA Rev-Exp Region 9'!$U$9, 0)","v":{"v":0,"d":"$0.00"}},{"$f":"IFERROR('MMA Rev-Exp Region 9'!$V$58/'MMA Rev-Exp Region 9'!$V$9, 0)","v":{"v":0,"d":"$0.00"}},{"$f":"IFERROR('MMA Rev-Exp Region 9'!$W$58/'MMA Rev-Exp Region 9'!$W$9, 0)","v":{"v":0,"d":"$0.00"}},{"$f":"IFERROR('MMA Rev-Exp Region 9'!$X$58/'MMA Rev-Exp Region 9'!$X$9, 0)","v":{"v":0,"d":"$0.00"}},{"$f":"IFERROR('MMA Rev-Exp Region 9'!$Y$58/'MMA Rev-Exp Region 9'!$Y$9, 0)","v":{"v":0,"d":"$0.00"}}]
["MMA",null,null,2016,"2016-12-31","Q2","2017-06-30","Region 9","Operating Expense","Medical Benefits Expense","Pharmacy Services","8.4","Prescription Drug Rebates ",{"$f":"IFERROR('MMA Rev-Exp Region 9'!$O$59/'MMA Rev-Exp Region 9'!$O$9, 0)","v":{"v":0,"d":"$0.00"}},{"$f":"IFERROR('MMA Rev-Exp Region 9'!$P$59/'MMA Rev-Exp Region 9'!$P$9, 0)","v":{"v":0,"d":"$0.00"}},{"$f":"IFERROR('MMA Rev-Exp Region 9'!$Q$59/'MMA Rev-Exp Region 9'!$Q$9, 0)","v":{"v":0,"d":"$0.00"}},{"$f":"IFERROR('MMA Rev-Exp Region 9'!$R$59/'MMA Rev-Exp Region 9'!$R$9, 0)","v":{"v":0,"d":"$0.00"}},{"$f":"IFERROR('MMA Rev-Exp Region 9'!$S$59/'MMA Rev-Exp Region 9'!$S$9, 0)","v":{"v":0,"d":"$0.00"}},{"$f":"IFERROR('MMA Rev-Exp Region 9'!$T$59/'MMA Rev-Exp Region 9'!$T$9, 0)","v":{"v":0,"d":"$0.00"}},{"$f":"IFERROR('MMA Rev-Exp Region 9'!$U$59/'MMA Rev-Exp Region 9'!$U$9, 0)","v":{"v":0,"d":"$0.00"}},{"$f":"IFERROR('MMA Rev-Exp Region 9'!$V$59/'MMA Rev-Exp Region 9'!$V$9, 0)","v":{"v":0,"d":"$0.00"}},{"$f":"IFERROR('MMA Rev-Exp Region 9'!$W$59/'MMA Rev-Exp Region 9'!$W$9, 0)","v":{"v":0,"d":"$0.00"}},{"$f":"IFERROR('MMA Rev-Exp Region 9'!$X$59/'MMA Rev-Exp Region 9'!$X$9, 0)","v":{"v":0,"d":"$0.00"}},{"$f":"IFERROR('MMA Rev-Exp Region 9'!$Y$59/'MMA Rev-Exp Region 9'!$Y$9, 0)","v":{"v":0,"d":"$0.00"}}]
["MMA",null,null,2016,"2016-12-31","Q2","2017-06-30","Region 9","Operating Expense","Medical Benefits Expense","Pharmacy Services","8.5","Ending accrual for Rebates receivable",{"$f":"IFERROR('MMA Rev-Exp Region 9'!$O$60/'MMA Rev-Exp Region 9'!$O$9, 0)","v":{"v":0,"d":"$0.00"}},{"$f":"IFERROR('MMA Rev-Exp Region 9'!$P$60/'MMA Rev-Exp Region 9'!$P$9, 0)","v":{"v":0,"d":"$0.00"}},{"$f":"IFERROR('MMA Rev-Exp Region 9'!$Q$60/'MMA Rev-Exp Region 9'!$Q$9, 0)","v":{"v":0,"d":"$0.00"}},{"$f":"IFERROR('MMA Rev-Exp Region 9'!$R$60/'MMA Rev-Exp Region 9'!$R$9, 0)","v":{"v":0,"d":"$0.00"}},{"$f":"IFERROR('MMA Rev-Exp Region 9'!$S$60/'MMA Rev-Exp Region 9'!$S$9, 0)","v":{"v":0,"d":"$0.00"}},{"$f":"IFERROR('MMA Rev-Exp Region 9'!$T$60/'MMA Rev-Exp Region 9'!$T$9, 0)","v":{"v":0,"d":"$0.00"}},{"$f":"IFERROR('MMA Rev-Exp Region 9'!$U$60/'MMA Rev-Exp Region 9'!$U$9, 0)","v":{"v":0,"d":"$0.00"}},{"$f":"IFERROR('MMA Rev-Exp Region 9'!$V$60/'MMA Rev-Exp Region 9'!$V$9, 0)","v":{"v":0,"d":"$0.00"}},{"$f":"IFERROR('MMA Rev-Exp Region 9'!$W$60/'MMA Rev-Exp Region 9'!$W$9, 0)","v":{"v":0,"d":"$0.00"}},{"$f":"IFERROR('MMA Rev-Exp Region 9'!$X$60/'MMA Rev-Exp Region 9'!$X$9, 0)","v":{"v":0,"d":"$0.00"}},{"$f":"IFERROR('MMA Rev-Exp Region 9'!$Y$60/'MMA Rev-Exp Region 9'!$Y$9, 0)","v":{"v":0,"d":"$0.00"}}]
["MMA",null,null,2016,"2016-12-31","Q2","2017-06-30","Region 9","Operating Expense","Medical Benefits Expense","Pharmacy Services","8.6","Prescription Drugs Subcapitation",{"$f":"IFERROR('MMA Rev-Exp Region 9'!$O$61/'MMA Rev-Exp Region 9'!$O$9, 0)","v":{"v":0,"d":"$0.00"}},{"$f":"IFERROR('MMA Rev-Exp Region 9'!$P$61/'MMA Rev-Exp Region 9'!$P$9, 0)","v":{"v":0,"d":"$0.00"}},{"$f":"IFERROR('MMA Rev-Exp Region 9'!$Q$61/'MMA Rev-Exp Region 9'!$Q$9, 0)","v":{"v":0,"d":"$0.00"}},{"$f":"IFERROR('MMA Rev-Exp Region 9'!$R$61/'MMA Rev-Exp Region 9'!$R$9, 0)","v":{"v":0,"d":"$0.00"}},{"$f":"IFERROR('MMA Rev-Exp Region 9'!$S$61/'MMA Rev-Exp Region 9'!$S$9, 0)","v":{"v":0,"d":"$0.00"}},{"$f":"IFERROR('MMA Rev-Exp Region 9'!$T$61/'MMA Rev-Exp Region 9'!$T$9, 0)","v":{"v":0,"d":"$0.00"}},{"$f":"IFERROR('MMA Rev-Exp Region 9'!$U$61/'MMA Rev-Exp Region 9'!$U$9, 0)","v":{"v":0,"d":"$0.00"}},{"$f":"IFERROR('MMA Rev-Exp Region 9'!$V$61/'MMA Rev-Exp Region 9'!$V$9, 0)","v":{"v":0,"d":"$0.00"}},{"$f":"IFERROR('MMA Rev-Exp Region 9'!$W$61/'MMA Rev-Exp Region 9'!$W$9, 0)","v":{"v":0,"d":"$0.00"}},{"$f":"IFERROR('MMA Rev-Exp Region 9'!$X$61/'MMA Rev-Exp Region 9'!$X$9, 0)","v":{"v":0,"d":"$0.00"}},{"$f":"IFERROR('MMA Rev-Exp Region 9'!$Y$61/'MMA Rev-Exp Region 9'!$Y$9, 0)","v":{"v":0,"d":"$0.00"}}]
["MMA",null,null,2016,"2016-12-31","Q2","2017-06-30","Region 9","Operating Expense","Medical Benefits Expense","Pharmacy Services","8.7","Prescription Drug Settlements",{"$f":"IFERROR('MMA Rev-Exp Region 9'!$O$62/'MMA Rev-Exp Region 9'!$O$9, 0)","v":{"v":0,"d":"$0.00"}},{"$f":"IFERROR('MMA Rev-Exp Region 9'!$P$62/'MMA Rev-Exp Region 9'!$P$9, 0)","v":{"v":0,"d":"$0.00"}},{"$f":"IFERROR('MMA Rev-Exp Region 9'!$Q$62/'MMA Rev-Exp Region 9'!$Q$9, 0)","v":{"v":0,"d":"$0.00"}},{"$f":"IFERROR('MMA Rev-Exp Region 9'!$R$62/'MMA Rev-Exp Region 9'!$R$9, 0)","v":{"v":0,"d":"$0.00"}},{"$f":"IFERROR('MMA Rev-Exp Region 9'!$S$62/'MMA Rev-Exp Region 9'!$S$9, 0)","v":{"v":0,"d":"$0.00"}},{"$f":"IFERROR('MMA Rev-Exp Region 9'!$T$62/'MMA Rev-Exp Region 9'!$T$9, 0)","v":{"v":0,"d":"$0.00"}},{"$f":"IFERROR('MMA Rev-Exp Region 9'!$U$62/'MMA Rev-Exp Region 9'!$U$9, 0)","v":{"v":0,"d":"$0.00"}},{"$f":"IFERROR('MMA Rev-Exp Region 9'!$V$62/'MMA Rev-Exp Region 9'!$V$9, 0)","v":{"v":0,"d":"$0.00"}},{"$f":"IFERROR('MMA Rev-Exp Region 9'!$W$62/'MMA Rev-Exp Region 9'!$W$9, 0)","v":{"v":0,"d":"$0.00"}},{"$f":"IFERROR('MMA Rev-Exp Region 9'!$X$62/'MMA Rev-Exp Region 9'!$X$9, 0)","v":{"v":0,"d":"$0.00"}},{"$f":"IFERROR('MMA Rev-Exp Region 9'!$Y$62/'MMA Rev-Exp Region 9'!$Y$9, 0)","v":{"v":0,"d":"$0.00"}}]
["MMA",null,null,2016,"2016-12-31","Q2","2017-06-30","Region 9","Operating Expense","Medical Benefits Expense","Other MMA Services",9.1,"Home Health, Private Duty Nursing, Personal Care FFS",{"$f":"IFERROR('MMA Rev-Exp Region 9'!$O$64/'MMA Rev-Exp Region 9'!$O$9, 0)","v":{"v":0,"d":"$0.00"}},{"$f":"IFERROR('MMA Rev-Exp Region 9'!$P$64/'MMA Rev-Exp Region 9'!$P$9, 0)","v":{"v":0,"d":"$0.00"}},{"$f":"IFERROR('MMA Rev-Exp Region 9'!$Q$64/'MMA Rev-Exp Region 9'!$Q$9, 0)","v":{"v":0,"d":"$0.00"}},{"$f":"IFERROR('MMA Rev-Exp Region 9'!$R$64/'MMA Rev-Exp Region 9'!$R$9, 0)","v":{"v":0,"d":"$0.00"}},{"$f":"IFERROR('MMA Rev-Exp Region 9'!$S$64/'MMA Rev-Exp Region 9'!$S$9, 0)","v":{"v":0,"d":"$0.00"}},{"$f":"IFERROR('MMA Rev-Exp Region 9'!$T$64/'MMA Rev-Exp Region 9'!$T$9, 0)","v":{"v":0,"d":"$0.00"}},{"$f":"IFERROR('MMA Rev-Exp Region 9'!$U$64/'MMA Rev-Exp Region 9'!$U$9, 0)","v":{"v":0,"d":"$0.00"}},{"$f":"IFERROR('MMA Rev-Exp Region 9'!$V$64/'MMA Rev-Exp Region 9'!$V$9, 0)","v":{"v":0,"d":"$0.00"}},{"$f":"IFERROR('MMA Rev-Exp Region 9'!$W$64/'MMA Rev-Exp Region 9'!$W$9, 0)","v":{"v":0,"d":"$0.00"}},{"$f":"IFERROR('MMA Rev-Exp Region 9'!$X$64/'MMA Rev-Exp Region 9'!$X$9, 0)","v":{"v":0,"d":"$0.00"}},{"$f":"IFERROR('MMA Rev-Exp Region 9'!$Y$64/'MMA Rev-Exp Region 9'!$Y$9, 0)","v":{"v":0,"d":"$0.00"}}]
["MMA",null,null,2016,"2016-12-31","Q2","2017-06-30","Region 9","Operating Expense","Medical Benefits Expense","Other MMA Services","9.2","Hospice FFS",{"$f":"IFERROR('MMA Rev-Exp Region 9'!$O$65/'MMA Rev-Exp Region 9'!$O$9, 0)","v":{"v":0,"d":"$0.00"}},{"$f":"IFERROR('MMA Rev-Exp Region 9'!$P$65/'MMA Rev-Exp Region 9'!$P$9, 0)","v":{"v":0,"d":"$0.00"}},{"$f":"IFERROR('MMA Rev-Exp Region 9'!$Q$65/'MMA Rev-Exp Region 9'!$Q$9, 0)","v":{"v":0,"d":"$0.00"}},{"$f":"IFERROR('MMA Rev-Exp Region 9'!$R$65/'MMA Rev-Exp Region 9'!$R$9, 0)","v":{"v":0,"d":"$0.00"}},{"$f":"IFERROR('MMA Rev-Exp Region 9'!$S$65/'MMA Rev-Exp Region 9'!$S$9, 0)","v":{"v":0,"d":"$0.00"}},{"$f":"IFERROR('MMA Rev-Exp Region 9'!$T$65/'MMA Rev-Exp Region 9'!$T$9, 0)","v":{"v":0,"d":"$0.00"}},{"$f":"IFERROR('MMA Rev-Exp Region 9'!$U$65/'MMA Rev-Exp Region 9'!$U$9, 0)","v":{"v":0,"d":"$0.00"}},{"$f":"IFERROR('MMA Rev-Exp Region 9'!$V$65/'MMA Rev-Exp Region 9'!$V$9, 0)","v":{"v":0,"d":"$0.00"}},{"$f":"IFERROR('MMA Rev-Exp Region 9'!$W$65/'MMA Rev-Exp Region 9'!$W$9, 0)","v":{"v":0,"d":"$0.00"}},{"$f":"IFERROR('MMA Rev-Exp Region 9'!$X$65/'MMA Rev-Exp Region 9'!$X$9, 0)","v":{"v":0,"d":"$0.00"}},{"$f":"IFERROR('MMA Rev-Exp Region 9'!$Y$65/'MMA Rev-Exp Region 9'!$Y$9, 0)","v":{"v":0,"d":"$0.00"}}]
["MMA",null,null,2016,"2016-12-31","Q2","2017-06-30","Region 9","Operating Expense","Medical Benefits Expense","Other MMA Services","9.3","DME FFS",{"$f":"IFERROR('MMA Rev-Exp Region 9'!$O$66/'MMA Rev-Exp Region 9'!$O$9, 0)","v":{"v":0,"d":"$0.00"}},{"$f":"IFERROR('MMA Rev-Exp Region 9'!$P$66/'MMA Rev-Exp Region 9'!$P$9, 0)","v":{"v":0,"d":"$0.00"}},{"$f":"IFERROR('MMA Rev-Exp Region 9'!$Q$66/'MMA Rev-Exp Region 9'!$Q$9, 0)","v":{"v":0,"d":"$0.00"}},{"$f":"IFERROR('MMA Rev-Exp Region 9'!$R$66/'MMA Rev-Exp Region 9'!$R$9, 0)","v":{"v":0,"d":"$0.00"}},{"$f":"IFERROR('MMA Rev-Exp Region 9'!$S$66/'MMA Rev-Exp Region 9'!$S$9, 0)","v":{"v":0,"d":"$0.00"}},{"$f":"IFERROR('MMA Rev-Exp Region 9'!$T$66/'MMA Rev-Exp Region 9'!$T$9, 0)","v":{"v":0,"d":"$0.00"}},{"$f":"IFERROR('MMA Rev-Exp Region 9'!$U$66/'MMA Rev-Exp Region 9'!$U$9, 0)","v":{"v":0,"d":"$0.00"}},{"$f":"IFERROR('MMA Rev-Exp Region 9'!$V$66/'MMA Rev-Exp Region 9'!$V$9, 0)","v":{"v":0,"d":"$0.00"}},{"$f":"IFERROR('MMA Rev-Exp Region 9'!$W$66/'MMA Rev-Exp Region 9'!$W$9, 0)","v":{"v":0,"d":"$0.00"}},{"$f":"IFERROR('MMA Rev-Exp Region 9'!$X$66/'MMA Rev-Exp Region 9'!$X$9, 0)","v":{"v":0,"d":"$0.00"}},{"$f":"IFERROR('MMA Rev-Exp Region 9'!$Y$66/'MMA Rev-Exp Region 9'!$Y$9, 0)","v":{"v":0,"d":"$0.00"}}]
["MMA",null,null,2016,"2016-12-31","Q2","2017-06-30","Region 9","Operating Expense","Medical Benefits Expense","Other MMA Services","9.4","Other State Plan Services FFS",{"$f":"IFERROR('MMA Rev-Exp Region 9'!$O$67/'MMA Rev-Exp Region 9'!$O$9, 0)","v":{"v":0,"d":"$0.00"}},{"$f":"IFERROR('MMA Rev-Exp Region 9'!$P$67/'MMA Rev-Exp Region 9'!$P$9, 0)","v":{"v":0,"d":"$0.00"}},{"$f":"IFERROR('MMA Rev-Exp Region 9'!$Q$67/'MMA Rev-Exp Region 9'!$Q$9, 0)","v":{"v":0,"d":"$0.00"}},{"$f":"IFERROR('MMA Rev-Exp Region 9'!$R$67/'MMA Rev-Exp Region 9'!$R$9, 0)","v":{"v":0,"d":"$0.00"}},{"$f":"IFERROR('MMA Rev-Exp Region 9'!$S$67/'MMA Rev-Exp Region 9'!$S$9, 0)","v":{"v":0,"d":"$0.00"}},{"$f":"IFERROR('MMA Rev-Exp Region 9'!$T$67/'MMA Rev-Exp Region 9'!$T$9, 0)","v":{"v":0,"d":"$0.00"}},{"$f":"IFERROR('MMA Rev-Exp Region 9'!$U$67/'MMA Rev-Exp Region 9'!$U$9, 0)","v":{"v":0,"d":"$0.00"}},{"$f":"IFERROR('MMA Rev-Exp Region 9'!$V$67/'MMA Rev-Exp Region 9'!$V$9, 0)","v":{"v":0,"d":"$0.00"}},{"$f":"IFERROR('MMA Rev-Exp Region 9'!$W$67/'MMA Rev-Exp Region 9'!$W$9, 0)","v":{"v":0,"d":"$0.00"}},{"$f":"IFERROR('MMA Rev-Exp Region 9'!$X$67/'MMA Rev-Exp Region 9'!$X$9, 0)","v":{"v":0,"d":"$0.00"}},{"$f":"IFERROR('MMA Rev-Exp Region 9'!$Y$67/'MMA Rev-Exp Region 9'!$Y$9, 0)","v":{"v":0,"d":"$0.00"}}]
["MMA",null,null,2016,"2016-12-31","Q2","2017-06-30","Region 9","Operating Expense","Medical Benefits Expense","Other MMA Services","9.5","Other Services Subcapitation",{"$f":"IFERROR('MMA Rev-Exp Region 9'!$O$68/'MMA Rev-Exp Region 9'!$O$9, 0)","v":{"v":0,"d":"$0.00"}},{"$f":"IFERROR('MMA Rev-Exp Region 9'!$P$68/'MMA Rev-Exp Region 9'!$P$9, 0)","v":{"v":0,"d":"$0.00"}},{"$f":"IFERROR('MMA Rev-Exp Region 9'!$Q$68/'MMA Rev-Exp Region 9'!$Q$9, 0)","v":{"v":0,"d":"$0.00"}},{"$f":"IFERROR('MMA Rev-Exp Region 9'!$R$68/'MMA Rev-Exp Region 9'!$R$9, 0)","v":{"v":0,"d":"$0.00"}},{"$f":"IFERROR('MMA Rev-Exp Region 9'!$S$68/'MMA Rev-Exp Region 9'!$S$9, 0)","v":{"v":0,"d":"$0.00"}},{"$f":"IFERROR('MMA Rev-Exp Region 9'!$T$68/'MMA Rev-Exp Region 9'!$T$9, 0)","v":{"v":0,"d":"$0.00"}},{"$f":"IFERROR('MMA Rev-Exp Region 9'!$U$68/'MMA Rev-Exp Region 9'!$U$9, 0)","v":{"v":0,"d":"$0.00"}},{"$f":"IFERROR('MMA Rev-Exp Region 9'!$V$68/'MMA Rev-Exp Region 9'!$V$9, 0)","v":{"v":0,"d":"$0.00"}},{"$f":"IFERROR('MMA Rev-Exp Region 9'!$W$68/'MMA Rev-Exp Region 9'!$W$9, 0)","v":{"v":0,"d":"$0.00"}},{"$f":"IFERROR('MMA Rev-Exp Region 9'!$X$68/'MMA Rev-Exp Region 9'!$X$9, 0)","v":{"v":0,"d":"$0.00"}},{"$f":"IFERROR('MMA Rev-Exp Region 9'!$Y$68/'MMA Rev-Exp Region 9'!$Y$9, 0)","v":{"v":0,"d":"$0.00"}}]
["MMA",null,null,2016,"2016-12-31","Q2","2017-06-30","Region 9","Operating Expense","Medical Benefits Expense","Other MMA Services","9.6","Ending IBNP for Other Services",{"$f":"IFERROR('MMA Rev-Exp Region 9'!$O$69/'MMA Rev-Exp Region 9'!$O$9, 0)","v":{"v":0,"d":"$0.00"}},{"$f":"IFERROR('MMA Rev-Exp Region 9'!$P$69/'MMA Rev-Exp Region 9'!$P$9, 0)","v":{"v":0,"d":"$0.00"}},{"$f":"IFERROR('MMA Rev-Exp Region 9'!$Q$69/'MMA Rev-Exp Region 9'!$Q$9, 0)","v":{"v":0,"d":"$0.00"}},{"$f":"IFERROR('MMA Rev-Exp Region 9'!$R$69/'MMA Rev-Exp Region 9'!$R$9, 0)","v":{"v":0,"d":"$0.00"}},{"$f":"IFERROR('MMA Rev-Exp Region 9'!$S$69/'MMA Rev-Exp Region 9'!$S$9, 0)","v":{"v":0,"d":"$0.00"}},{"$f":"IFERROR('MMA Rev-Exp Region 9'!$T$69/'MMA Rev-Exp Region 9'!$T$9, 0)","v":{"v":0,"d":"$0.00"}},{"$f":"IFERROR('MMA Rev-Exp Region 9'!$U$69/'MMA Rev-Exp Region 9'!$U$9, 0)","v":{"v":0,"d":"$0.00"}},{"$f":"IFERROR('MMA Rev-Exp Region 9'!$V$69/'MMA Rev-Exp Region 9'!$V$9, 0)","v":{"v":0,"d":"$0.00"}},{"$f":"IFERROR('MMA Rev-Exp Region 9'!$W$69/'MMA Rev-Exp Region 9'!$W$9, 0)","v":{"v":0,"d":"$0.00"}},{"$f":"IFERROR('MMA Rev-Exp Region 9'!$X$69/'MMA Rev-Exp Region 9'!$X$9, 0)","v":{"v":0,"d":"$0.00"}},{"$f":"IFERROR('MMA Rev-Exp Region 9'!$Y$69/'MMA Rev-Exp Region 9'!$Y$9, 0)","v":{"v":0,"d":"$0.00"}}]
["MMA",null,null,2016,"2016-12-31","Q2","2017-06-30","Region 9","Operating Expense","Medical Benefits Expense","Other MMA Services","9.7","Other Services Settlements",{"$f":"IFERROR('MMA Rev-Exp Region 9'!$O$70/'MMA Rev-Exp Region 9'!$O$9, 0)","v":{"v":0,"d":"$0.00"}},{"$f":"IFERROR('MMA Rev-Exp Region 9'!$P$70/'MMA Rev-Exp Region 9'!$P$9, 0)","v":{"v":0,"d":"$0.00"}},{"$f":"IFERROR('MMA Rev-Exp Region 9'!$Q$70/'MMA Rev-Exp Region 9'!$Q$9, 0)","v":{"v":0,"d":"$0.00"}},{"$f":"IFERROR('MMA Rev-Exp Region 9'!$R$70/'MMA Rev-Exp Region 9'!$R$9, 0)","v":{"v":0,"d":"$0.00"}},{"$f":"IFERROR('MMA Rev-Exp Region 9'!$S$70/'MMA Rev-Exp Region 9'!$S$9, 0)","v":{"v":0,"d":"$0.00"}},{"$f":"IFERROR('MMA Rev-Exp Region 9'!$T$70/'MMA Rev-Exp Region 9'!$T$9, 0)","v":{"v":0,"d":"$0.00"}},{"$f":"IFERROR('MMA Rev-Exp Region 9'!$U$70/'MMA Rev-Exp Region 9'!$U$9, 0)","v":{"v":0,"d":"$0.00"}},{"$f":"IFERROR('MMA Rev-Exp Region 9'!$V$70/'MMA Rev-Exp Region 9'!$V$9, 0)","v":{"v":0,"d":"$0.00"}},{"$f":"IFERROR('MMA Rev-Exp Region 9'!$W$70/'MMA Rev-Exp Region 9'!$W$9, 0)","v":{"v":0,"d":"$0.00"}},{"$f":"IFERROR('MMA Rev-Exp Region 9'!$X$70/'MMA Rev-Exp Region 9'!$X$9, 0)","v":{"v":0,"d":"$0.00"}},{"$f":"IFERROR('MMA Rev-Exp Region 9'!$Y$70/'MMA Rev-Exp Region 9'!$Y$9, 0)","v":{"v":0,"d":"$0.00"}}]
["MMA",null,null,2016,"2016-12-31","Q2","2017-06-30","Region 9","Operating Expense","Medical Benefits Expense","Expanded Benefits","10.1","Expanded Benefits FFS",{"$f":"IFERROR('MMA Rev-Exp Region 9'!$O$72/'MMA Rev-Exp Region 9'!$O$9, 0)","v":{"v":0,"d":"$0.00"}},{"$f":"IFERROR('MMA Rev-Exp Region 9'!$P$72/'MMA Rev-Exp Region 9'!$P$9, 0)","v":{"v":0,"d":"$0.00"}},{"$f":"IFERROR('MMA Rev-Exp Region 9'!$Q$72/'MMA Rev-Exp Region 9'!$Q$9, 0)","v":{"v":0,"d":"$0.00"}},{"$f":"IFERROR('MMA Rev-Exp Region 9'!$R$72/'MMA Rev-Exp Region 9'!$R$9, 0)","v":{"v":0,"d":"$0.00"}},{"$f":"IFERROR('MMA Rev-Exp Region 9'!$S$72/'MMA Rev-Exp Region 9'!$S$9, 0)","v":{"v":0,"d":"$0.00"}},{"$f":"IFERROR('MMA Rev-Exp Region 9'!$T$72/'MMA Rev-Exp Region 9'!$T$9, 0)","v":{"v":0,"d":"$0.00"}},{"$f":"IFERROR('MMA Rev-Exp Region 9'!$U$72/'MMA Rev-Exp Region 9'!$U$9, 0)","v":{"v":0,"d":"$0.00"}},{"$f":"IFERROR('MMA Rev-Exp Region 9'!$V$72/'MMA Rev-Exp Region 9'!$V$9, 0)","v":{"v":0,"d":"$0.00"}},{"$f":"IFERROR('MMA Rev-Exp Region 9'!$W$72/'MMA Rev-Exp Region 9'!$W$9, 0)","v":{"v":0,"d":"$0.00"}},{"$f":"IFERROR('MMA Rev-Exp Region 9'!$X$72/'MMA Rev-Exp Region 9'!$X$9, 0)","v":{"v":0,"d":"$0.00"}},{"$f":"IFERROR('MMA Rev-Exp Region 9'!$Y$72/'MMA Rev-Exp Region 9'!$Y$9, 0)","v":{"v":0,"d":"$0.00"}}]
["MMA",null,null,2016,"2016-12-31","Q2","2017-06-30","Region 9","Operating Expense","Medical Benefits Expense","Expanded Benefits","10.2","Expanded benefits Subcapitation",{"$f":"IFERROR('MMA Rev-Exp Region 9'!$O$73/'MMA Rev-Exp Region 9'!$O$9, 0)","v":{"v":0,"d":"$0.00"}},{"$f":"IFERROR('MMA Rev-Exp Region 9'!$P$73/'MMA Rev-Exp Region 9'!$P$9, 0)","v":{"v":0,"d":"$0.00"}},{"$f":"IFERROR('MMA Rev-Exp Region 9'!$Q$73/'MMA Rev-Exp Region 9'!$Q$9, 0)","v":{"v":0,"d":"$0.00"}},{"$f":"IFERROR('MMA Rev-Exp Region 9'!$R$73/'MMA Rev-Exp Region 9'!$R$9, 0)","v":{"v":0,"d":"$0.00"}},{"$f":"IFERROR('MMA Rev-Exp Region 9'!$S$73/'MMA Rev-Exp Region 9'!$S$9, 0)","v":{"v":0,"d":"$0.00"}},{"$f":"IFERROR('MMA Rev-Exp Region 9'!$T$73/'MMA Rev-Exp Region 9'!$T$9, 0)","v":{"v":0,"d":"$0.00"}},{"$f":"IFERROR('MMA Rev-Exp Region 9'!$U$73/'MMA Rev-Exp Region 9'!$U$9, 0)","v":{"v":0,"d":"$0.00"}},{"$f":"IFERROR('MMA Rev-Exp Region 9'!$V$73/'MMA Rev-Exp Region 9'!$V$9, 0)","v":{"v":0,"d":"$0.00"}},{"$f":"IFERROR('MMA Rev-Exp Region 9'!$W$73/'MMA Rev-Exp Region 9'!$W$9, 0)","v":{"v":0,"d":"$0.00"}},{"$f":"IFERROR('MMA Rev-Exp Region 9'!$X$73/'MMA Rev-Exp Region 9'!$X$9, 0)","v":{"v":0,"d":"$0.00"}},{"$f":"IFERROR('MMA Rev-Exp Region 9'!$Y$73/'MMA Rev-Exp Region 9'!$Y$9, 0)","v":{"v":0,"d":"$0.00"}}]
["MMA",null,null,2016,"2016-12-31","Q2","2017-06-30","Region 9","Operating Expense","Medical Benefits Expense","Expanded Benefits","10.3","Ending IBNP for Expanded Benefits",{"$f":"IFERROR('MMA Rev-Exp Region 9'!$O$74/'MMA Rev-Exp Region 9'!$O$9, 0)","v":{"v":0,"d":"$0.00"}},{"$f":"IFERROR('MMA Rev-Exp Region 9'!$P$74/'MMA Rev-Exp Region 9'!$P$9, 0)","v":{"v":0,"d":"$0.00"}},{"$f":"IFERROR('MMA Rev-Exp Region 9'!$Q$74/'MMA Rev-Exp Region 9'!$Q$9, 0)","v":{"v":0,"d":"$0.00"}},{"$f":"IFERROR('MMA Rev-Exp Region 9'!$R$74/'MMA Rev-Exp Region 9'!$R$9, 0)","v":{"v":0,"d":"$0.00"}},{"$f":"IFERROR('MMA Rev-Exp Region 9'!$S$74/'MMA Rev-Exp Region 9'!$S$9, 0)","v":{"v":0,"d":"$0.00"}},{"$f":"IFERROR('MMA Rev-Exp Region 9'!$T$74/'MMA Rev-Exp Region 9'!$T$9, 0)","v":{"v":0,"d":"$0.00"}},{"$f":"IFERROR('MMA Rev-Exp Region 9'!$U$74/'MMA Rev-Exp Region 9'!$U$9, 0)","v":{"v":0,"d":"$0.00"}},{"$f":"IFERROR('MMA Rev-Exp Region 9'!$V$74/'MMA Rev-Exp Region 9'!$V$9, 0)","v":{"v":0,"d":"$0.00"}},{"$f":"IFERROR('MMA Rev-Exp Region 9'!$W$74/'MMA Rev-Exp Region 9'!$W$9, 0)","v":{"v":0,"d":"$0.00"}},{"$f":"IFERROR('MMA Rev-Exp Region 9'!$X$74/'MMA Rev-Exp Region 9'!$X$9, 0)","v":{"v":0,"d":"$0.00"}},{"$f":"IFERROR('MMA Rev-Exp Region 9'!$Y$74/'MMA Rev-Exp Region 9'!$Y$9, 0)","v":{"v":0,"d":"$0.00"}}]
["MMA",null,null,2016,"2016-12-31","Q2","2017-06-30","Region 9","Operating Expense","Medical Benefits Expense","Expanded Benefits","10.4","Expanded Benefits Settlements",{"$f":"IFERROR('MMA Rev-Exp Region 9'!$O$75/'MMA Rev-Exp Region 9'!$O$9, 0)","v":{"v":0,"d":"$0.00"}},{"$f":"IFERROR('MMA Rev-Exp Region 9'!$P$75/'MMA Rev-Exp Region 9'!$P$9, 0)","v":{"v":0,"d":"$0.00"}},{"$f":"IFERROR('MMA Rev-Exp Region 9'!$Q$75/'MMA Rev-Exp Region 9'!$Q$9, 0)","v":{"v":0,"d":"$0.00"}},{"$f":"IFERROR('MMA Rev-Exp Region 9'!$R$75/'MMA Rev-Exp Region 9'!$R$9, 0)","v":{"v":0,"d":"$0.00"}},{"$f":"IFERROR('MMA Rev-Exp Region 9'!$S$75/'MMA Rev-Exp Region 9'!$S$9, 0)","v":{"v":0,"d":"$0.00"}},{"$f":"IFERROR('MMA Rev-Exp Region 9'!$T$75/'MMA Rev-Exp Region 9'!$T$9, 0)","v":{"v":0,"d":"$0.00"}},{"$f":"IFERROR('MMA Rev-Exp Region 9'!$U$75/'MMA Rev-Exp Region 9'!$U$9, 0)","v":{"v":0,"d":"$0.00"}},{"$f":"IFERROR('MMA Rev-Exp Region 9'!$V$75/'MMA Rev-Exp Region 9'!$V$9, 0)","v":{"v":0,"d":"$0.00"}},{"$f":"IFERROR('MMA Rev-Exp Region 9'!$W$75/'MMA Rev-Exp Region 9'!$W$9, 0)","v":{"v":0,"d":"$0.00"}},{"$f":"IFERROR('MMA Rev-Exp Region 9'!$X$75/'MMA Rev-Exp Region 9'!$X$9, 0)","v":{"v":0,"d":"$0.00"}},{"$f":"IFERROR('MMA Rev-Exp Region 9'!$Y$75/'MMA Rev-Exp Region 9'!$Y$9, 0)","v":{"v":0,"d":"$0.00"}}]
["MMA",null,null,2016,"2016-12-31","Q2","2017-06-30","Region 9","Operating Expense","Medical Benefits Expense","Other Medical","11.5","TPL & Fraud/Abuse Recoveries",{"$f":"IFERROR('MMA Rev-Exp Region 9'!$O$81/'MMA Rev-Exp Region 9'!$O$9, 0)","v":{"v":0,"d":"$0.00"}},{"$f":"IFERROR('MMA Rev-Exp Region 9'!$P$81/'MMA Rev-Exp Region 9'!$P$9, 0)","v":{"v":0,"d":"$0.00"}},{"$f":"IFERROR('MMA Rev-Exp Region 9'!$Q$81/'MMA Rev-Exp Region 9'!$Q$9, 0)","v":{"v":0,"d":"$0.00"}},{"$f":"IFERROR('MMA Rev-Exp Region 9'!$R$81/'MMA Rev-Exp Region 9'!$R$9, 0)","v":{"v":0,"d":"$0.00"}},{"$f":"IFERROR('MMA Rev-Exp Region 9'!$S$81/'MMA Rev-Exp Region 9'!$S$9, 0)","v":{"v":0,"d":"$0.00"}},{"$f":"IFERROR('MMA Rev-Exp Region 9'!$T$81/'MMA Rev-Exp Region 9'!$T$9, 0)","v":{"v":0,"d":"$0.00"}},{"$f":"IFERROR('MMA Rev-Exp Region 9'!$U$81/'MMA Rev-Exp Region 9'!$U$9, 0)","v":{"v":0,"d":"$0.00"}},{"$f":"IFERROR('MMA Rev-Exp Region 9'!$V$81/'MMA Rev-Exp Region 9'!$V$9, 0)","v":{"v":0,"d":"$0.00"}},{"$f":"IFERROR('MMA Rev-Exp Region 9'!$W$81/'MMA Rev-Exp Region 9'!$W$9, 0)","v":{"v":0,"d":"$0.00"}},{"$f":"IFERROR('MMA Rev-Exp Region 9'!$X$81/'MMA Rev-Exp Region 9'!$X$9, 0)","v":{"v":0,"d":"$0.00"}},{"$f":"IFERROR('MMA Rev-Exp Region 9'!$Y$81/'MMA Rev-Exp Region 9'!$Y$9, 0)","v":{"v":0,"d":"$0.00"}}]
["MMA",null,null,2016,"2016-12-31","Q2","2017-06-30","Region 9","Operating Expense","Medical Benefits Expense","Other Medical","11.6.1","Premium Deficiency Reserve",{"$f":"IFERROR('MMA Rev-Exp Region 9'!$O$82/'MMA Rev-Exp Region 9'!$O$9, 0)","v":{"v":0,"d":"$0.00"}},{"$f":"IFERROR('MMA Rev-Exp Region 9'!$P$82/'MMA Rev-Exp Region 9'!$P$9, 0)","v":{"v":0,"d":"$0.00"}},{"$f":"IFERROR('MMA Rev-Exp Region 9'!$Q$82/'MMA Rev-Exp Region 9'!$Q$9, 0)","v":{"v":0,"d":"$0.00"}},{"$f":"IFERROR('MMA Rev-Exp Region 9'!$R$82/'MMA Rev-Exp Region 9'!$R$9, 0)","v":{"v":0,"d":"$0.00"}},{"$f":"IFERROR('MMA Rev-Exp Region 9'!$S$82/'MMA Rev-Exp Region 9'!$S$9, 0)","v":{"v":0,"d":"$0.00"}},{"$f":"IFERROR('MMA Rev-Exp Region 9'!$T$82/'MMA Rev-Exp Region 9'!$T$9, 0)","v":{"v":0,"d":"$0.00"}},{"$f":"IFERROR('MMA Rev-Exp Region 9'!$U$82/'MMA Rev-Exp Region 9'!$U$9, 0)","v":{"v":0,"d":"$0.00"}},{"$f":"IFERROR('MMA Rev-Exp Region 9'!$V$82/'MMA Rev-Exp Region 9'!$V$9, 0)","v":{"v":0,"d":"$0.00"}},{"$f":"IFERROR('MMA Rev-Exp Region 9'!$W$82/'MMA Rev-Exp Region 9'!$W$9, 0)","v":{"v":0,"d":"$0.00"}},{"$f":"IFERROR('MMA Rev-Exp Region 9'!$X$82/'MMA Rev-Exp Region 9'!$X$9, 0)","v":{"v":0,"d":"$0.00"}},{"$f":"IFERROR('MMA Rev-Exp Region 9'!$Y$82/'MMA Rev-Exp Region 9'!$Y$9, 0)","v":{"v":0,"d":"$0.00"}}]
["MMA",null,null,2016,"2016-12-31","Q2","2017-06-30","Region 9","Operating Expense","Medical Benefits Expense","Other Medical","11.8","Reinsurance Premiums",{"$f":"IFERROR('MMA Rev-Exp Region 9'!$O$84/'MMA Rev-Exp Region 9'!$O$9, 0)","v":{"v":0,"d":"$0.00"}},{"$f":"IFERROR('MMA Rev-Exp Region 9'!$P$84/'MMA Rev-Exp Region 9'!$P$9, 0)","v":{"v":0,"d":"$0.00"}},{"$f":"IFERROR('MMA Rev-Exp Region 9'!$Q$84/'MMA Rev-Exp Region 9'!$Q$9, 0)","v":{"v":0,"d":"$0.00"}},{"$f":"IFERROR('MMA Rev-Exp Region 9'!$R$84/'MMA Rev-Exp Region 9'!$R$9, 0)","v":{"v":0,"d":"$0.00"}},{"$f":"IFERROR('MMA Rev-Exp Region 9'!$S$84/'MMA Rev-Exp Region 9'!$S$9, 0)","v":{"v":0,"d":"$0.00"}},{"$f":"IFERROR('MMA Rev-Exp Region 9'!$T$84/'MMA Rev-Exp Region 9'!$T$9, 0)","v":{"v":0,"d":"$0.00"}},{"$f":"IFERROR('MMA Rev-Exp Region 9'!$U$84/'MMA Rev-Exp Region 9'!$U$9, 0)","v":{"v":0,"d":"$0.00"}},{"$f":"IFERROR('MMA Rev-Exp Region 9'!$V$84/'MMA Rev-Exp Region 9'!$V$9, 0)","v":{"v":0,"d":"$0.00"}},{"$f":"IFERROR('MMA Rev-Exp Region 9'!$W$84/'MMA Rev-Exp Region 9'!$W$9, 0)","v":{"v":0,"d":"$0.00"}},{"$f":"IFERROR('MMA Rev-Exp Region 9'!$X$84/'MMA Rev-Exp Region 9'!$X$9, 0)","v":{"v":0,"d":"$0.00"}},{"$f":"IFERROR('MMA Rev-Exp Region 9'!$Y$84/'MMA Rev-Exp Region 9'!$Y$9, 0)","v":{"v":0,"d":"$0.00"}}]
["MMA",null,null,2016,"2016-12-31","Q2","2017-06-30","Region 9","Operating Expense","Medical Benefits Expense","Other Medical","11.9","Reinsurance Recoveries",{"$f":"IFERROR('MMA Rev-Exp Region 9'!$O$85/'MMA Rev-Exp Region 9'!$O$9, 0)","v":{"v":0,"d":"$0.00"}},{"$f":"IFERROR('MMA Rev-Exp Region 9'!$P$85/'MMA Rev-Exp Region 9'!$P$9, 0)","v":{"v":0,"d":"$0.00"}},{"$f":"IFERROR('MMA Rev-Exp Region 9'!$Q$85/'MMA Rev-Exp Region 9'!$Q$9, 0)","v":{"v":0,"d":"$0.00"}},{"$f":"IFERROR('MMA Rev-Exp Region 9'!$R$85/'MMA Rev-Exp Region 9'!$R$9, 0)","v":{"v":0,"d":"$0.00"}},{"$f":"IFERROR('MMA Rev-Exp Region 9'!$S$85/'MMA Rev-Exp Region 9'!$S$9, 0)","v":{"v":0,"d":"$0.00"}},{"$f":"IFERROR('MMA Rev-Exp Region 9'!$T$85/'MMA Rev-Exp Region 9'!$T$9, 0)","v":{"v":0,"d":"$0.00"}},{"$f":"IFERROR('MMA Rev-Exp Region 9'!$U$85/'MMA Rev-Exp Region 9'!$U$9, 0)","v":{"v":0,"d":"$0.00"}},{"$f":"IFERROR('MMA Rev-Exp Region 9'!$V$85/'MMA Rev-Exp Region 9'!$V$9, 0)","v":{"v":0,"d":"$0.00"}},{"$f":"IFERROR('MMA Rev-Exp Region 9'!$W$85/'MMA Rev-Exp Region 9'!$W$9, 0)","v":{"v":0,"d":"$0.00"}},{"$f":"IFERROR('MMA Rev-Exp Region 9'!$X$85/'MMA Rev-Exp Region 9'!$X$9, 0)","v":{"v":0,"d":"$0.00"}},{"$f":"IFERROR('MMA Rev-Exp Region 9'!$Y$85/'MMA Rev-Exp Region 9'!$Y$9, 0)","v":{"v":0,"d":"$0.00"}}]
["MMA",null,null,2016,"2016-12-31","Q2","2017-06-30","Region 9","Operating Expense","Administrative Expense","Administrative","12.1","Salaries & Benefits",{"$f":"IFERROR('MMA Rev-Exp Region 9'!$O$90/'MMA Rev-Exp Region 9'!$O$9, 0)","v":{"v":0,"d":"$0.00"}},{"$f":"IFERROR('MMA Rev-Exp Region 9'!$P$90/'MMA Rev-Exp Region 9'!$O$9, 0)","v":{"v":0,"d":"$0.00"}},{"$f":"IFERROR('MMA Rev-Exp Region 9'!$Q$90/'MMA Rev-Exp Region 9'!$O$9, 0)","v":{"v":0,"d":"$0.00"}},{"$f":"IFERROR('MMA Rev-Exp Region 9'!$R$90/'MMA Rev-Exp Region 9'!$R$9, 0)","v":{"v":0,"d":"$0.00"}},{"$f":"IFERROR('MMA Rev-Exp Region 9'!$S$90/'MMA Rev-Exp Region 9'!$S$9, 0)","v":{"v":0,"d":"$0.00"}},{"$f":"IFERROR('MMA Rev-Exp Region 9'!$T$90/'MMA Rev-Exp Region 9'!$T$9, 0)","v":{"v":0,"d":"$0.00"}},{"$f":"IFERROR('MMA Rev-Exp Region 9'!$U$90/'MMA Rev-Exp Region 9'!$U$9, 0)","v":{"v":0,"d":"$0.00"}},{"$f":"IFERROR('MMA Rev-Exp Region 9'!$V$90/'MMA Rev-Exp Region 9'!$V$9, 0)","v":{"v":0,"d":"$0.00"}},{"$f":"IFERROR('MMA Rev-Exp Region 9'!$W$90/'MMA Rev-Exp Region 9'!$W$9, 0)","v":{"v":0,"d":"$0.00"}},{"$f":"IFERROR('MMA Rev-Exp Region 9'!$X$90/'MMA Rev-Exp Region 9'!$X$9, 0)","v":{"v":0,"d":"$0.00"}},{"$f":"IFERROR('MMA Rev-Exp Region 9'!$Y$90/'MMA Rev-Exp Region 9'!$Y$9, 0)","v":{"v":0,"d":"$0.00"}}]
["MMA",null,null,2016,"2016-12-31","Q2","2017-06-30","Region 9","Operating Expense","Administrative Expense","Administrative","12.2","Administrative Services",{"$f":"IFERROR('MMA Rev-Exp Region 9'!$O$91/'MMA Rev-Exp Region 9'!$O$9, 0)","v":{"v":0,"d":"$0.00"}},{"$f":"IFERROR('MMA Rev-Exp Region 9'!$P$91/'MMA Rev-Exp Region 9'!$O$9, 0)","v":{"v":0,"d":"$0.00"}},{"$f":"IFERROR('MMA Rev-Exp Region 9'!$Q$91/'MMA Rev-Exp Region 9'!$O$9, 0)","v":{"v":0,"d":"$0.00"}},{"$f":"IFERROR('MMA Rev-Exp Region 9'!$R$91/'MMA Rev-Exp Region 9'!$R$9, 0)","v":{"v":0,"d":"$0.00"}},{"$f":"IFERROR('MMA Rev-Exp Region 9'!$S$91/'MMA Rev-Exp Region 9'!$S$9, 0)","v":{"v":0,"d":"$0.00"}},{"$f":"IFERROR('MMA Rev-Exp Region 9'!$T$91/'MMA Rev-Exp Region 9'!$T$9, 0)","v":{"v":0,"d":"$0.00"}},{"$f":"IFERROR('MMA Rev-Exp Region 9'!$U$91/'MMA Rev-Exp Region 9'!$U$9, 0)","v":{"v":0,"d":"$0.00"}},{"$f":"IFERROR('MMA Rev-Exp Region 9'!$V$91/'MMA Rev-Exp Region 9'!$V$9, 0)","v":{"v":0,"d":"$0.00"}},{"$f":"IFERROR('MMA Rev-Exp Region 9'!$W$91/'MMA Rev-Exp Region 9'!$W$9, 0)","v":{"v":0,"d":"$0.00"}},{"$f":"IFERROR('MMA Rev-Exp Region 9'!$X$91/'MMA Rev-Exp Region 9'!$X$9, 0)","v":{"v":0,"d":"$0.00"}},{"$f":"IFERROR('MMA Rev-Exp Region 9'!$Y$91/'MMA Rev-Exp Region 9'!$Y$9, 0)","v":{"v":0,"d":"$0.00"}}]
["MMA",null,null,2016,"2016-12-31","Q2","2017-06-30","Region 9","Operating Expense","Administrative Expense","Administrative","12.3","Information Systems",{"$f":"IFERROR('MMA Rev-Exp Region 9'!$O$92/'MMA Rev-Exp Region 9'!$O$9, 0)","v":{"v":0,"d":"$0.00"}},{"$f":"IFERROR('MMA Rev-Exp Region 9'!$P$92/'MMA Rev-Exp Region 9'!$O$9, 0)","v":{"v":0,"d":"$0.00"}},{"$f":"IFERROR('MMA Rev-Exp Region 9'!$Q$92/'MMA Rev-Exp Region 9'!$O$9, 0)","v":{"v":0,"d":"$0.00"}},{"$f":"IFERROR('MMA Rev-Exp Region 9'!$R$92/'MMA Rev-Exp Region 9'!$R$9, 0)","v":{"v":0,"d":"$0.00"}},{"$f":"IFERROR('MMA Rev-Exp Region 9'!$S$92/'MMA Rev-Exp Region 9'!$S$9, 0)","v":{"v":0,"d":"$0.00"}},{"$f":"IFERROR('MMA Rev-Exp Region 9'!$T$92/'MMA Rev-Exp Region 9'!$T$9, 0)","v":{"v":0,"d":"$0.00"}},{"$f":"IFERROR('MMA Rev-Exp Region 9'!$U$92/'MMA Rev-Exp Region 9'!$U$9, 0)","v":{"v":0,"d":"$0.00"}},{"$f":"IFERROR('MMA Rev-Exp Region 9'!$V$92/'MMA Rev-Exp Region 9'!$V$9, 0)","v":{"v":0,"d":"$0.00"}},{"$f":"IFERROR('MMA Rev-Exp Region 9'!$W$92/'MMA Rev-Exp Region 9'!$W$9, 0)","v":{"v":0,"d":"$0.00"}},{"$f":"IFERROR('MMA Rev-Exp Region 9'!$X$92/'MMA Rev-Exp Region 9'!$X$9, 0)","v":{"v":0,"d":"$0.00"}},{"$f":"IFERROR('MMA Rev-Exp Region 9'!$Y$92/'MMA Rev-Exp Region 9'!$Y$9, 0)","v":{"v":0,"d":"$0.00"}}]
["MMA",null,null,2016,"2016-12-31","Q2","2017-06-30","Region 9","Operating Expense","Administrative Expense","Administrative","12.4","Marketing Expenses",{"$f":"IFERROR('MMA Rev-Exp Region 9'!$O$93/'MMA Rev-Exp Region 9'!$O$9, 0)","v":{"v":0,"d":"$0.00"}},{"$f":"IFERROR('MMA Rev-Exp Region 9'!$P$93/'MMA Rev-Exp Region 9'!$O$9, 0)","v":{"v":0,"d":"$0.00"}},{"$f":"IFERROR('MMA Rev-Exp Region 9'!$Q$93/'MMA Rev-Exp Region 9'!$O$9, 0)","v":{"v":0,"d":"$0.00"}}]
["MMA",null,null,2016,"2016-12-31","Q2","2017-06-30","Region 9","Operating Expense","Administrative Expense","Administrative","12.5","General  Administration",{"$f":"IFERROR('MMA Rev-Exp Region 9'!$O$94/'MMA Rev-Exp Region 9'!$O$9, 0)","v":{"v":0,"d":"$0.00"}},{"$f":"IFERROR('MMA Rev-Exp Region 9'!$P$94/'MMA Rev-Exp Region 9'!$O$9, 0)","v":{"v":0,"d":"$0.00"}},{"$f":"IFERROR('MMA Rev-Exp Region 9'!$Q$94/'MMA Rev-Exp Region 9'!$O$9, 0)","v":{"v":0,"d":"$0.00"}}]
["MMA",null,null,2016,"2016-12-31","Q2","2017-06-30","Region 9","Operating Expense","Administrative Expense","Administrative","12.6","Compliance/Regulatory",{"$f":"IFERROR('MMA Rev-Exp Region 9'!$O$95/'MMA Rev-Exp Region 9'!$O$9, 0)","v":{"v":0,"d":"$0.00"}},{"$f":"IFERROR('MMA Rev-Exp Region 9'!$P$95/'MMA Rev-Exp Region 9'!$O$9, 0)","v":{"v":0,"d":"$0.00"}},{"$f":"IFERROR('MMA Rev-Exp Region 9'!$Q$95/'MMA Rev-Exp Region 9'!$O$9, 0)","v":{"v":0,"d":"$0.00"}}]
["MMA",null,null,2016,"2016-12-31","Q2","2017-06-30","Region 9","Operating Expense","Taxes & Fees","Taxes & Fees","13.1","State Premium tax",{"$f":"IFERROR('MMA Rev-Exp Region 9'!$O$97/'MMA Rev-Exp Region 9'!$O$9, 0)","v":{"v":0,"d":"$0.00"}}]
["MMA",null,null,2016,"2016-12-31","Q2","2017-06-30","Region 9","Operating Expense","Taxes & Fees","Taxes & Fees","13.2","Department of Insurance Assessments",{"$f":"IFERROR('MMA Rev-Exp Region 9'!$O$98/'MMA Rev-Exp Region 9'!$O$9, 0)","v":{"v":0,"d":"$0.00"}}]
["MMA",null,null,2016,"2016-12-31","Q2","2017-06-30","Region 9","Operating Expense","Taxes & Fees","Taxes & Fees","13.3","Section 9010 Health Insurance Providers Fee",{"$f":"IFERROR('MMA Rev-Exp Region 9'!$O$99/'MMA Rev-Exp Region 9'!$O$9, 0)","v":{"v":0,"d":"$0.00"}}]
["MMA",null,null,2016,"2016-12-31","Q2","2017-06-30","Region 9","Non-Operating Expense","Income Tax Expense","Income Tax Expense","16.0","Income Tax Expense",{"$f":"IFERROR('MMA Rev-Exp Region 9'!$O$106/'MMA Rev-Exp Region 9'!$O$9, 0)","v":{"v":0,"d":"$0.00"}}]
["MMA",null,null,2016,"2016-12-31","Q3","2017-09-30","Region 9","Operating Revenue","Capitation","Capitation",1.1,"Capitation",{"$f":"IFERROR('MMA Rev-Exp Region 9'!$Z$11/'MMA Rev-Exp Region 9'!$Z$9, 0)","v":{"v":0,"d":"$0.00"}},{"$f":"IFERROR('MMA Rev-Exp Region 9'!$AA$11/'MMA Rev-Exp Region 9'!$AA$9, 0)","v":{"v":0,"d":"$0.00"}},{"$f":"IFERROR('MMA Rev-Exp Region 9'!$AB$11/'MMA Rev-Exp Region 9'!$AB$9, 0)","v":{"v":0,"d":"$0.00"}},{"$f":"IFERROR('MMA Rev-Exp Region 9'!$AC$11/'MMA Rev-Exp Region 9'!$AC$9, 0)","v":{"v":0,"d":"$0.00"}},{"$f":"IFERROR('MMA Rev-Exp Region 9'!$AD$11/'MMA Rev-Exp Region 9'!$AD$9, 0)","v":{"v":0,"d":"$0.00"}},{"$f":"IFERROR('MMA Rev-Exp Region 9'!$AE$11/'MMA Rev-Exp Region 9'!$AE$9, 0)","v":{"v":0,"d":"$0.00"}},{"$f":"IFERROR('MMA Rev-Exp Region 9'!$AF$11/'MMA Rev-Exp Region 9'!$AF$9, 0)","v":{"v":0,"d":"$0.00"}},{"$f":"IFERROR('MMA Rev-Exp Region 9'!$AG$11/'MMA Rev-Exp Region 9'!$AG$9, 0)","v":{"v":0,"d":"$0.00"}},{"$f":"IFERROR('MMA Rev-Exp Region 9'!$AH$11/'MMA Rev-Exp Region 9'!$AH$9, 0)","v":{"v":0,"d":"$0.00"}},{"$f":"IFERROR('MMA Rev-Exp Region 9'!$AI$11/'MMA Rev-Exp Region 9'!$AI$9, 0)","v":{"v":0,"d":"$0.00"}},{"$f":"IFERROR('MMA Rev-Exp Region 9'!$AJ$11/'MMA Rev-Exp Region 9'!$AJ$9, 0)","v":{"v":0,"d":"$0.00"}}]
["MMA",null,null,2016,"2016-12-31","Q3","2017-09-30","Region 9","Operating Revenue","Kick Payments","Kick Payments - Transplant",1.2,"Transplant Kick Payments",{"$f":"IFERROR('MMA Rev-Exp Region 9'!$Z$12/'MMA Rev-Exp Region 9'!$Z$9, 0)","v":{"v":0,"d":"$0.00"}},{"$f":"IFERROR('MMA Rev-Exp Region 9'!$AA$12/'MMA Rev-Exp Region 9'!$AA$9, 0)","v":{"v":0,"d":"$0.00"}},{"$f":"IFERROR('MMA Rev-Exp Region 9'!$AB$12/'MMA Rev-Exp Region 9'!$AB$9, 0)","v":{"v":0,"d":"$0.00"}},{"$f":"IFERROR('MMA Rev-Exp Region 9'!$AC$12/'MMA Rev-Exp Region 9'!$AC$9, 0)","v":{"v":0,"d":"$0.00"}},{"$f":"IFERROR('MMA Rev-Exp Region 9'!$AD$12/'MMA Rev-Exp Region 9'!$AD$9, 0)","v":{"v":0,"d":"$0.00"}},{"$f":"IFERROR('MMA Rev-Exp Region 9'!$AE$12/'MMA Rev-Exp Region 9'!$AE$9, 0)","v":{"v":0,"d":"$0.00"}},{"$f":"IFERROR('MMA Rev-Exp Region 9'!$AF$12/'MMA Rev-Exp Region 9'!$AF$9, 0)","v":{"v":0,"d":"$0.00"}},{"$f":"IFERROR('MMA Rev-Exp Region 9'!$AG$12/'MMA Rev-Exp Region 9'!$AG$9, 0)","v":{"v":0,"d":"$0.00"}},{"$f":"IFERROR('MMA Rev-Exp Region 9'!$AH$12/'MMA Rev-Exp Region 9'!$AH$9, 0)","v":{"v":0,"d":"$0.00"}},{"$f":"IFERROR('MMA Rev-Exp Region 9'!$AI$12/'MMA Rev-Exp Region 9'!$AI$9, 0)","v":{"v":0,"d":"$0.00"}},{"$f":"IFERROR('MMA Rev-Exp Region 9'!$AJ$12/'MMA Rev-Exp Region 9'!$AJ$9, 0)","v":{"v":0,"d":"$0.00"}}]
["MMA",null,null,2016,"2016-12-31","Q3","2017-09-30","Region 9","Operating Revenue","Kick Payments","Kick Payments - Hep C","1.3","Hepatitis C Kick Payments",{"$f":"IFERROR('MMA Rev-Exp Region 9'!$Z$13/'MMA Rev-Exp Region 9'!$Z$9, 0)","v":{"v":0,"d":"$0.00"}},{"$f":"IFERROR('MMA Rev-Exp Region 9'!$AA$13/'MMA Rev-Exp Region 9'!$AA$9, 0)","v":{"v":0,"d":"$0.00"}},{"$f":"IFERROR('MMA Rev-Exp Region 9'!$AB$13/'MMA Rev-Exp Region 9'!$AB$9, 0)","v":{"v":0,"d":"$0.00"}},{"$f":"IFERROR('MMA Rev-Exp Region 9'!$AC$13/'MMA Rev-Exp Region 9'!$AC$9, 0)","v":{"v":0,"d":"$0.00"}},{"$f":"IFERROR('MMA Rev-Exp Region 9'!$AD$13/'MMA Rev-Exp Region 9'!$AD$9, 0)","v":{"v":0,"d":"$0.00"}},{"$f":"IFERROR('MMA Rev-Exp Region 9'!$AE$13/'MMA Rev-Exp Region 9'!$AE$9, 0)","v":{"v":0,"d":"$0.00"}},{"$f":"IFERROR('MMA Rev-Exp Region 9'!$AF$13/'MMA Rev-Exp Region 9'!$AF$9, 0)","v":{"v":0,"d":"$0.00"}},{"$f":"IFERROR('MMA Rev-Exp Region 9'!$AG$13/'MMA Rev-Exp Region 9'!$AG$9, 0)","v":{"v":0,"d":"$0.00"}},{"$f":"IFERROR('MMA Rev-Exp Region 9'!$AH$13/'MMA Rev-Exp Region 9'!$AH$9, 0)","v":{"v":0,"d":"$0.00"}},{"$f":"IFERROR('MMA Rev-Exp Region 9'!$AI$13/'MMA Rev-Exp Region 9'!$AI$9, 0)","v":{"v":0,"d":"$0.00"}},{"$f":"IFERROR('MMA Rev-Exp Region 9'!$AJ$13/'MMA Rev-Exp Region 9'!$AJ$9, 0)","v":{"v":0,"d":"$0.00"}}]
["MMA",null,null,2016,"2016-12-31","Q3","2017-09-30","Region 9","Operating Revenue","Kick Payments","Kick Payments - Maternity","1.4.1","Maternity Kick Payments",{"$f":"IFERROR('MMA Rev-Exp Region 9'!$Z$14/'MMA Rev-Exp Region 9'!$Z$9, 0)","v":{"v":0,"d":"$0.00"}},{"$f":"IFERROR('MMA Rev-Exp Region 9'!$AA$14/'MMA Rev-Exp Region 9'!$AA$9, 0)","v":{"v":0,"d":"$0.00"}},{"$f":"IFERROR('MMA Rev-Exp Region 9'!$AB$14/'MMA Rev-Exp Region 9'!$AB$9, 0)","v":{"v":0,"d":"$0.00"}},{"$f":"IFERROR('MMA Rev-Exp Region 9'!$AC$14/'MMA Rev-Exp Region 9'!$AC$9, 0)","v":{"v":0,"d":"$0.00"}},{"$f":"IFERROR('MMA Rev-Exp Region 9'!$AD$14/'MMA Rev-Exp Region 9'!$AD$9, 0)","v":{"v":0,"d":"$0.00"}},{"$f":"IFERROR('MMA Rev-Exp Region 9'!$AE$14/'MMA Rev-Exp Region 9'!$AE$9, 0)","v":{"v":0,"d":"$0.00"}},{"$f":"IFERROR('MMA Rev-Exp Region 9'!$AF$14/'MMA Rev-Exp Region 9'!$AF$9, 0)","v":{"v":0,"d":"$0.00"}},{"$f":"IFERROR('MMA Rev-Exp Region 9'!$AG$14/'MMA Rev-Exp Region 9'!$AG$9, 0)","v":{"v":0,"d":"$0.00"}},{"$f":"IFERROR('MMA Rev-Exp Region 9'!$AH$14/'MMA Rev-Exp Region 9'!$AH$9, 0)","v":{"v":0,"d":"$0.00"}},{"$f":"IFERROR('MMA Rev-Exp Region 9'!$AI$14/'MMA Rev-Exp Region 9'!$AI$9, 0)","v":{"v":0,"d":"$0.00"}},{"$f":"IFERROR('MMA Rev-Exp Region 9'!$AJ$14/'MMA Rev-Exp Region 9'!$AJ$9, 0)","v":{"v":0,"d":"$0.00"}}]
["MMA",null,null,2016,"2016-12-31","Q3","2017-09-30","Region 9","Operating Revenue","Other Revenue","Other Revenue - 9010","1.5","ACA § 9010 related payments",{"$f":"IFERROR('MMA Rev-Exp Region 9'!$Z$15/'MMA Rev-Exp Region 9'!$Z$9, 0)","v":{"v":0,"d":"$0.00"}},{"$f":"IFERROR('MMA Rev-Exp Region 9'!$AA$15/'MMA Rev-Exp Region 9'!$AA$9, 0)","v":{"v":0,"d":"$0.00"}},{"$f":"IFERROR('MMA Rev-Exp Region 9'!$AB$15/'MMA Rev-Exp Region 9'!$AB$9, 0)","v":{"v":0,"d":"$0.00"}},{"$f":"IFERROR('MMA Rev-Exp Region 9'!$AC$15/'MMA Rev-Exp Region 9'!$AC$9, 0)","v":{"v":0,"d":"$0.00"}},{"$f":"IFERROR('MMA Rev-Exp Region 9'!$AD$15/'MMA Rev-Exp Region 9'!$AD$9, 0)","v":{"v":0,"d":"$0.00"}},{"$f":"IFERROR('MMA Rev-Exp Region 9'!$AE$15/'MMA Rev-Exp Region 9'!$AE$9, 0)","v":{"v":0,"d":"$0.00"}},{"$f":"IFERROR('MMA Rev-Exp Region 9'!$AF$15/'MMA Rev-Exp Region 9'!$AF$9, 0)","v":{"v":0,"d":"$0.00"}},{"$f":"IFERROR('MMA Rev-Exp Region 9'!$AG$15/'MMA Rev-Exp Region 9'!$AG$9, 0)","v":{"v":0,"d":"$0.00"}},{"$f":"IFERROR('MMA Rev-Exp Region 9'!$AH$15/'MMA Rev-Exp Region 9'!$AH$9, 0)","v":{"v":0,"d":"$0.00"}},{"$f":"IFERROR('MMA Rev-Exp Region 9'!$AI$15/'MMA Rev-Exp Region 9'!$AI$9, 0)","v":{"v":0,"d":"$0.00"}},{"$f":"IFERROR('MMA Rev-Exp Region 9'!$AJ$15/'MMA Rev-Exp Region 9'!$AJ$9, 0)","v":{"v":0,"d":"$0.00"}}]
["MMA",null,null,2016,"2016-12-31","Q3","2017-09-30","Region 9","Operating Revenue","Other Revenue","Other Revenue","1.6","Other Revenue",{"$f":"IFERROR('MMA Rev-Exp Region 9'!$Z$16/'MMA Rev-Exp Region 9'!$Z$9, 0)","v":{"v":0,"d":"$0.00"}},{"$f":"IFERROR('MMA Rev-Exp Region 9'!$AA$16/'MMA Rev-Exp Region 9'!$AA$9, 0)","v":{"v":0,"d":"$0.00"}},{"$f":"IFERROR('MMA Rev-Exp Region 9'!$AB$16/'MMA Rev-Exp Region 9'!$AB$9, 0)","v":{"v":0,"d":"$0.00"}},{"$f":"IFERROR('MMA Rev-Exp Region 9'!$AC$16/'MMA Rev-Exp Region 9'!$AC$9, 0)","v":{"v":0,"d":"$0.00"}},{"$f":"IFERROR('MMA Rev-Exp Region 9'!$AD$16/'MMA Rev-Exp Region 9'!$AD$9, 0)","v":{"v":0,"d":"$0.00"}},{"$f":"IFERROR('MMA Rev-Exp Region 9'!$AE$16/'MMA Rev-Exp Region 9'!$AE$9, 0)","v":{"v":0,"d":"$0.00"}},{"$f":"IFERROR('MMA Rev-Exp Region 9'!$AF$16/'MMA Rev-Exp Region 9'!$AF$9, 0)","v":{"v":0,"d":"$0.00"}},{"$f":"IFERROR('MMA Rev-Exp Region 9'!$AG$16/'MMA Rev-Exp Region 9'!$AG$9, 0)","v":{"v":0,"d":"$0.00"}},{"$f":"IFERROR('MMA Rev-Exp Region 9'!$AH$16/'MMA Rev-Exp Region 9'!$AH$9, 0)","v":{"v":0,"d":"$0.00"}},{"$f":"IFERROR('MMA Rev-Exp Region 9'!$AI$16/'MMA Rev-Exp Region 9'!$AI$9, 0)","v":{"v":0,"d":"$0.00"}},{"$f":"IFERROR('MMA Rev-Exp Region 9'!$AJ$16/'MMA Rev-Exp Region 9'!$AJ$9, 0)","v":{"v":0,"d":"$0.00"}}]
["MMA",null,null,2016,"2016-12-31","Q3","2017-09-30","Region 9","Operating Expense","Medical Benefits Expense","Hospital Services",2.1,"Inpatient FFS",{"$f":"IFERROR('MMA Rev-Exp Region 9'!$Z$20/'MMA Rev-Exp Region 9'!$Z$9, 0)","v":{"v":0,"d":"$0.00"}},{"$f":"IFERROR('MMA Rev-Exp Region 9'!$AA$20/'MMA Rev-Exp Region 9'!$AA$9, 0)","v":{"v":0,"d":"$0.00"}},{"$f":"IFERROR('MMA Rev-Exp Region 9'!$AB$20/'MMA Rev-Exp Region 9'!$AB$9, 0)","v":{"v":0,"d":"$0.00"}},{"$f":"IFERROR('MMA Rev-Exp Region 9'!$AC$20/'MMA Rev-Exp Region 9'!$AC$9, 0)","v":{"v":0,"d":"$0.00"}},{"$f":"IFERROR('MMA Rev-Exp Region 9'!$AD$20/'MMA Rev-Exp Region 9'!$AD$9, 0)","v":{"v":0,"d":"$0.00"}},{"$f":"IFERROR('MMA Rev-Exp Region 9'!$AE$20/'MMA Rev-Exp Region 9'!$AE$9, 0)","v":{"v":0,"d":"$0.00"}},{"$f":"IFERROR('MMA Rev-Exp Region 9'!$AF$20/'MMA Rev-Exp Region 9'!$AF$9, 0)","v":{"v":0,"d":"$0.00"}},{"$f":"IFERROR('MMA Rev-Exp Region 9'!$AG$20/'MMA Rev-Exp Region 9'!$AG$9, 0)","v":{"v":0,"d":"$0.00"}},{"$f":"IFERROR('MMA Rev-Exp Region 9'!$AH$20/'MMA Rev-Exp Region 9'!$AH$9, 0)","v":{"v":0,"d":"$0.00"}},{"$f":"IFERROR('MMA Rev-Exp Region 9'!$AI$20/'MMA Rev-Exp Region 9'!$AI$9, 0)","v":{"v":0,"d":"$0.00"}},{"$f":"IFERROR('MMA Rev-Exp Region 9'!$AJ$20/'MMA Rev-Exp Region 9'!$AJ$9, 0)","v":{"v":0,"d":"$0.00"}}]
["MMA",null,null,2016,"2016-12-31","Q3","2017-09-30","Region 9","Operating Expense","Medical Benefits Expense","Hospital Services",2.2,"Ending IBNP for Inpatient Hospital Services",{"$f":"IFERROR('MMA Rev-Exp Region 9'!$Z$21/'MMA Rev-Exp Region 9'!$Z$9, 0)","v":{"v":0,"d":"$0.00"}},{"$f":"IFERROR('MMA Rev-Exp Region 9'!$AA$21/'MMA Rev-Exp Region 9'!$AA$9, 0)","v":{"v":0,"d":"$0.00"}},{"$f":"IFERROR('MMA Rev-Exp Region 9'!$AB$21/'MMA Rev-Exp Region 9'!$AB$9, 0)","v":{"v":0,"d":"$0.00"}},{"$f":"IFERROR('MMA Rev-Exp Region 9'!$AC$21/'MMA Rev-Exp Region 9'!$AC$9, 0)","v":{"v":0,"d":"$0.00"}},{"$f":"IFERROR('MMA Rev-Exp Region 9'!$AD$21/'MMA Rev-Exp Region 9'!$AD$9, 0)","v":{"v":0,"d":"$0.00"}},{"$f":"IFERROR('MMA Rev-Exp Region 9'!$AE$21/'MMA Rev-Exp Region 9'!$AE$9, 0)","v":{"v":0,"d":"$0.00"}},{"$f":"IFERROR('MMA Rev-Exp Region 9'!$AF$21/'MMA Rev-Exp Region 9'!$AF$9, 0)","v":{"v":0,"d":"$0.00"}},{"$f":"IFERROR('MMA Rev-Exp Region 9'!$AG$21/'MMA Rev-Exp Region 9'!$AG$9, 0)","v":{"v":0,"d":"$0.00"}},{"$f":"IFERROR('MMA Rev-Exp Region 9'!$AH$21/'MMA Rev-Exp Region 9'!$AH$9, 0)","v":{"v":0,"d":"$0.00"}},{"$f":"IFERROR('MMA Rev-Exp Region 9'!$AI$21/'MMA Rev-Exp Region 9'!$AI$9, 0)","v":{"v":0,"d":"$0.00"}},{"$f":"IFERROR('MMA Rev-Exp Region 9'!$AJ$21/'MMA Rev-Exp Region 9'!$AJ$9, 0)","v":{"v":0,"d":"$0.00"}}]
["MMA",null,null,2016,"2016-12-31","Q3","2017-09-30","Region 9","Operating Expense","Medical Benefits Expense","Hospital Services",2.3,"Outpatient FFS: ER",{"$f":"IFERROR('MMA Rev-Exp Region 9'!$Z$22/'MMA Rev-Exp Region 9'!$Z$9, 0)","v":{"v":0,"d":"$0.00"}},{"$f":"IFERROR('MMA Rev-Exp Region 9'!$AA$22/'MMA Rev-Exp Region 9'!$AA$9, 0)","v":{"v":0,"d":"$0.00"}},{"$f":"IFERROR('MMA Rev-Exp Region 9'!$AB$22/'MMA Rev-Exp Region 9'!$AB$9, 0)","v":{"v":0,"d":"$0.00"}},{"$f":"IFERROR('MMA Rev-Exp Region 9'!$AC$22/'MMA Rev-Exp Region 9'!$AC$9, 0)","v":{"v":0,"d":"$0.00"}},{"$f":"IFERROR('MMA Rev-Exp Region 9'!$AD$22/'MMA Rev-Exp Region 9'!$AD$9, 0)","v":{"v":0,"d":"$0.00"}},{"$f":"IFERROR('MMA Rev-Exp Region 9'!$AE$22/'MMA Rev-Exp Region 9'!$AE$9, 0)","v":{"v":0,"d":"$0.00"}},{"$f":"IFERROR('MMA Rev-Exp Region 9'!$AF$22/'MMA Rev-Exp Region 9'!$AF$9, 0)","v":{"v":0,"d":"$0.00"}},{"$f":"IFERROR('MMA Rev-Exp Region 9'!$AG$22/'MMA Rev-Exp Region 9'!$AG$9, 0)","v":{"v":0,"d":"$0.00"}},{"$f":"IFERROR('MMA Rev-Exp Region 9'!$AH$22/'MMA Rev-Exp Region 9'!$AH$9, 0)","v":{"v":0,"d":"$0.00"}},{"$f":"IFERROR('MMA Rev-Exp Region 9'!$AI$22/'MMA Rev-Exp Region 9'!$AI$9, 0)","v":{"v":0,"d":"$0.00"}},{"$f":"IFERROR('MMA Rev-Exp Region 9'!$AJ$22/'MMA Rev-Exp Region 9'!$AJ$9, 0)","v":{"v":0,"d":"$0.00"}}]
["MMA",null,null,2016,"2016-12-31","Q3","2017-09-30","Region 9","Operating Expense","Medical Benefits Expense","Hospital Services",2.4,"Outpatient FFS: Other than ER ",{"$f":"IFERROR('MMA Rev-Exp Region 9'!$Z$23/'MMA Rev-Exp Region 9'!$Z$9, 0)","v":{"v":0,"d":"$0.00"}},{"$f":"IFERROR('MMA Rev-Exp Region 9'!$AA$23/'MMA Rev-Exp Region 9'!$AA$9, 0)","v":{"v":0,"d":"$0.00"}},{"$f":"IFERROR('MMA Rev-Exp Region 9'!$AB$23/'MMA Rev-Exp Region 9'!$AB$9, 0)","v":{"v":0,"d":"$0.00"}},{"$f":"IFERROR('MMA Rev-Exp Region 9'!$AC$23/'MMA Rev-Exp Region 9'!$AC$9, 0)","v":{"v":0,"d":"$0.00"}},{"$f":"IFERROR('MMA Rev-Exp Region 9'!$AD$23/'MMA Rev-Exp Region 9'!$AD$9, 0)","v":{"v":0,"d":"$0.00"}},{"$f":"IFERROR('MMA Rev-Exp Region 9'!$AE$23/'MMA Rev-Exp Region 9'!$AE$9, 0)","v":{"v":0,"d":"$0.00"}},{"$f":"IFERROR('MMA Rev-Exp Region 9'!$AF$23/'MMA Rev-Exp Region 9'!$AF$9, 0)","v":{"v":0,"d":"$0.00"}},{"$f":"IFERROR('MMA Rev-Exp Region 9'!$AG$23/'MMA Rev-Exp Region 9'!$AG$9, 0)","v":{"v":0,"d":"$0.00"}},{"$f":"IFERROR('MMA Rev-Exp Region 9'!$AH$23/'MMA Rev-Exp Region 9'!$AH$9, 0)","v":{"v":0,"d":"$0.00"}},{"$f":"IFERROR('MMA Rev-Exp Region 9'!$AI$23/'MMA Rev-Exp Region 9'!$AI$9, 0)","v":{"v":0,"d":"$0.00"}},{"$f":"IFERROR('MMA Rev-Exp Region 9'!$AJ$23/'MMA Rev-Exp Region 9'!$AJ$9, 0)","v":{"v":0,"d":"$0.00"}}]
["MMA",null,null,2016,"2016-12-31","Q3","2017-09-30","Region 9","Operating Expense","Medical Benefits Expense","Hospital Services",2.5,"Ending IBNP for Outpatient Hospital Services",{"$f":"IFERROR('MMA Rev-Exp Region 9'!$Z$24/'MMA Rev-Exp Region 9'!$Z$9, 0)","v":{"v":0,"d":"$0.00"}},{"$f":"IFERROR('MMA Rev-Exp Region 9'!$AA$24/'MMA Rev-Exp Region 9'!$AA$9, 0)","v":{"v":0,"d":"$0.00"}},{"$f":"IFERROR('MMA Rev-Exp Region 9'!$AB$24/'MMA Rev-Exp Region 9'!$AB$9, 0)","v":{"v":0,"d":"$0.00"}},{"$f":"IFERROR('MMA Rev-Exp Region 9'!$AC$24/'MMA Rev-Exp Region 9'!$AC$9, 0)","v":{"v":0,"d":"$0.00"}},{"$f":"IFERROR('MMA Rev-Exp Region 9'!$AD$24/'MMA Rev-Exp Region 9'!$AD$9, 0)","v":{"v":0,"d":"$0.00"}},{"$f":"IFERROR('MMA Rev-Exp Region 9'!$AE$24/'MMA Rev-Exp Region 9'!$AE$9, 0)","v":{"v":0,"d":"$0.00"}},{"$f":"IFERROR('MMA Rev-Exp Region 9'!$AF$24/'MMA Rev-Exp Region 9'!$AF$9, 0)","v":{"v":0,"d":"$0.00"}},{"$f":"IFERROR('MMA Rev-Exp Region 9'!$AG$24/'MMA Rev-Exp Region 9'!$AG$9, 0)","v":{"v":0,"d":"$0.00"}},{"$f":"IFERROR('MMA Rev-Exp Region 9'!$AH$24/'MMA Rev-Exp Region 9'!$AH$9, 0)","v":{"v":0,"d":"$0.00"}},{"$f":"IFERROR('MMA Rev-Exp Region 9'!$AI$24/'MMA Rev-Exp Region 9'!$AI$9, 0)","v":{"v":0,"d":"$0.00"}},{"$f":"IFERROR('MMA Rev-Exp Region 9'!$AJ$24/'MMA Rev-Exp Region 9'!$AJ$9, 0)","v":{"v":0,"d":"$0.00"}}]
["MMA",null,null,2016,"2016-12-31","Q3","2017-09-30","Region 9","Operating Expense","Medical Benefits Expense","Hospital Services","2.6","Subcapitated Hospital Services",{"$f":"IFERROR('MMA Rev-Exp Region 9'!$Z$25/'MMA Rev-Exp Region 9'!$Z$9, 0)","v":{"v":0,"d":"$0.00"}},{"$f":"IFERROR('MMA Rev-Exp Region 9'!$AA$25/'MMA Rev-Exp Region 9'!$AA$9, 0)","v":{"v":0,"d":"$0.00"}},{"$f":"IFERROR('MMA Rev-Exp Region 9'!$AB$25/'MMA Rev-Exp Region 9'!$AB$9, 0)","v":{"v":0,"d":"$0.00"}},{"$f":"IFERROR('MMA Rev-Exp Region 9'!$AC$25/'MMA Rev-Exp Region 9'!$AC$9, 0)","v":{"v":0,"d":"$0.00"}},{"$f":"IFERROR('MMA Rev-Exp Region 9'!$AD$25/'MMA Rev-Exp Region 9'!$AD$9, 0)","v":{"v":0,"d":"$0.00"}},{"$f":"IFERROR('MMA Rev-Exp Region 9'!$AE$25/'MMA Rev-Exp Region 9'!$AE$9, 0)","v":{"v":0,"d":"$0.00"}},{"$f":"IFERROR('MMA Rev-Exp Region 9'!$AF$25/'MMA Rev-Exp Region 9'!$AF$9, 0)","v":{"v":0,"d":"$0.00"}},{"$f":"IFERROR('MMA Rev-Exp Region 9'!$AG$25/'MMA Rev-Exp Region 9'!$AG$9, 0)","v":{"v":0,"d":"$0.00"}},{"$f":"IFERROR('MMA Rev-Exp Region 9'!$AH$25/'MMA Rev-Exp Region 9'!$AH$9, 0)","v":{"v":0,"d":"$0.00"}},{"$f":"IFERROR('MMA Rev-Exp Region 9'!$AI$25/'MMA Rev-Exp Region 9'!$AI$9, 0)","v":{"v":0,"d":"$0.00"}},{"$f":"IFERROR('MMA Rev-Exp Region 9'!$AJ$25/'MMA Rev-Exp Region 9'!$AJ$9, 0)","v":{"v":0,"d":"$0.00"}}]
["MMA",null,null,2016,"2016-12-31","Q3","2017-09-30","Region 9","Operating Expense","Medical Benefits Expense","Hospital Services","2.7","Hospital Settlements",{"$f":"IFERROR('MMA Rev-Exp Region 9'!$Z$26/'MMA Rev-Exp Region 9'!$Z$9, 0)","v":{"v":0,"d":"$0.00"}},{"$f":"IFERROR('MMA Rev-Exp Region 9'!$AA$26/'MMA Rev-Exp Region 9'!$AA$9, 0)","v":{"v":0,"d":"$0.00"}},{"$f":"IFERROR('MMA Rev-Exp Region 9'!$AB$26/'MMA Rev-Exp Region 9'!$AB$9, 0)","v":{"v":0,"d":"$0.00"}},{"$f":"IFERROR('MMA Rev-Exp Region 9'!$AC$26/'MMA Rev-Exp Region 9'!$AC$9, 0)","v":{"v":0,"d":"$0.00"}},{"$f":"IFERROR('MMA Rev-Exp Region 9'!$AD$26/'MMA Rev-Exp Region 9'!$AD$9, 0)","v":{"v":0,"d":"$0.00"}},{"$f":"IFERROR('MMA Rev-Exp Region 9'!$AE$26/'MMA Rev-Exp Region 9'!$AE$9, 0)","v":{"v":0,"d":"$0.00"}},{"$f":"IFERROR('MMA Rev-Exp Region 9'!$AF$26/'MMA Rev-Exp Region 9'!$AF$9, 0)","v":{"v":0,"d":"$0.00"}},{"$f":"IFERROR('MMA Rev-Exp Region 9'!$AG$26/'MMA Rev-Exp Region 9'!$AG$9, 0)","v":{"v":0,"d":"$0.00"}},{"$f":"IFERROR('MMA Rev-Exp Region 9'!$AH$26/'MMA Rev-Exp Region 9'!$AH$9, 0)","v":{"v":0,"d":"$0.00"}},{"$f":"IFERROR('MMA Rev-Exp Region 9'!$AI$26/'MMA Rev-Exp Region 9'!$AI$9, 0)","v":{"v":0,"d":"$0.00"}},{"$f":"IFERROR('MMA Rev-Exp Region 9'!$AJ$26/'MMA Rev-Exp Region 9'!$AJ$9, 0)","v":{"v":0,"d":"$0.00"}}]
["MMA",null,null,2016,"2016-12-31","Q3","2017-09-30","Region 9","Operating Expense","Medical Benefits Expense","Hospital Services","2.7.1","Transplant Services",{"$f":"IFERROR('MMA Rev-Exp Region 9'!$Z$27/'MMA Rev-Exp Region 9'!$Z$9, 0)","v":{"v":0,"d":"$0.00"}},{"$f":"IFERROR('MMA Rev-Exp Region 9'!$AA$27/'MMA Rev-Exp Region 9'!$AA$9, 0)","v":{"v":0,"d":"$0.00"}},{"$f":"IFERROR('MMA Rev-Exp Region 9'!$AB$27/'MMA Rev-Exp Region 9'!$AB$9, 0)","v":{"v":0,"d":"$0.00"}},{"$f":"IFERROR('MMA Rev-Exp Region 9'!$AC$27/'MMA Rev-Exp Region 9'!$AC$9, 0)","v":{"v":0,"d":"$0.00"}},{"$f":"IFERROR('MMA Rev-Exp Region 9'!$AD$27/'MMA Rev-Exp Region 9'!$AD$9, 0)","v":{"v":0,"d":"$0.00"}},{"$f":"IFERROR('MMA Rev-Exp Region 9'!$AE$27/'MMA Rev-Exp Region 9'!$AE$9, 0)","v":{"v":0,"d":"$0.00"}},{"$f":"IFERROR('MMA Rev-Exp Region 9'!$AF$27/'MMA Rev-Exp Region 9'!$AF$9, 0)","v":{"v":0,"d":"$0.00"}},{"$f":"IFERROR('MMA Rev-Exp Region 9'!$AG$27/'MMA Rev-Exp Region 9'!$AG$9, 0)","v":{"v":0,"d":"$0.00"}},{"$f":"IFERROR('MMA Rev-Exp Region 9'!$AH$27/'MMA Rev-Exp Region 9'!$AH$9, 0)","v":{"v":0,"d":"$0.00"}},{"$f":"IFERROR('MMA Rev-Exp Region 9'!$AI$27/'MMA Rev-Exp Region 9'!$AI$9, 0)","v":{"v":0,"d":"$0.00"}},{"$f":"IFERROR('MMA Rev-Exp Region 9'!$AJ$27/'MMA Rev-Exp Region 9'!$AJ$9, 0)","v":{"v":0,"d":"$0.00"}}]
["MMA",null,null,2016,"2016-12-31","Q3","2017-09-30","Region 9","Operating Expense","Medical Benefits Expense","Professional Services",3.1,"Primary Care FFS",{"$f":"IFERROR('MMA Rev-Exp Region 9'!$Z$29/'MMA Rev-Exp Region 9'!$Z$9, 0)","v":{"v":0,"d":"$0.00"}},{"$f":"IFERROR('MMA Rev-Exp Region 9'!$AA$29/'MMA Rev-Exp Region 9'!$AA$9, 0)","v":{"v":0,"d":"$0.00"}},{"$f":"IFERROR('MMA Rev-Exp Region 9'!$AB$29/'MMA Rev-Exp Region 9'!$AB$9, 0)","v":{"v":0,"d":"$0.00"}},{"$f":"IFERROR('MMA Rev-Exp Region 9'!$AC$29/'MMA Rev-Exp Region 9'!$AC$9, 0)","v":{"v":0,"d":"$0.00"}},{"$f":"IFERROR('MMA Rev-Exp Region 9'!$AD$29/'MMA Rev-Exp Region 9'!$AD$9, 0)","v":{"v":0,"d":"$0.00"}},{"$f":"IFERROR('MMA Rev-Exp Region 9'!$AE$29/'MMA Rev-Exp Region 9'!$AE$9, 0)","v":{"v":0,"d":"$0.00"}},{"$f":"IFERROR('MMA Rev-Exp Region 9'!$AF$29/'MMA Rev-Exp Region 9'!$AF$9, 0)","v":{"v":0,"d":"$0.00"}},{"$f":"IFERROR('MMA Rev-Exp Region 9'!$AG$29/'MMA Rev-Exp Region 9'!$AG$9, 0)","v":{"v":0,"d":"$0.00"}},{"$f":"IFERROR('MMA Rev-Exp Region 9'!$AH$29/'MMA Rev-Exp Region 9'!$AH$9, 0)","v":{"v":0,"d":"$0.00"}},{"$f":"IFERROR('MMA Rev-Exp Region 9'!$AI$29/'MMA Rev-Exp Region 9'!$AI$9, 0)","v":{"v":0,"d":"$0.00"}},{"$f":"IFERROR('MMA Rev-Exp Region 9'!$AJ$29/'MMA Rev-Exp Region 9'!$AJ$9, 0)","v":{"v":0,"d":"$0.00"}}]
["MMA",null,null,2016,"2016-12-31","Q3","2017-09-30","Region 9","Operating Expense","Medical Benefits Expense","Professional Services",3.2,"Specialty Care FFS",{"$f":"IFERROR('MMA Rev-Exp Region 9'!$Z$30/'MMA Rev-Exp Region 9'!$Z$9, 0)","v":{"v":0,"d":"$0.00"}},{"$f":"IFERROR('MMA Rev-Exp Region 9'!$AA$30/'MMA Rev-Exp Region 9'!$AA$9, 0)","v":{"v":0,"d":"$0.00"}},{"$f":"IFERROR('MMA Rev-Exp Region 9'!$AB$30/'MMA Rev-Exp Region 9'!$AB$9, 0)","v":{"v":0,"d":"$0.00"}},{"$f":"IFERROR('MMA Rev-Exp Region 9'!$AC$30/'MMA Rev-Exp Region 9'!$AC$9, 0)","v":{"v":0,"d":"$0.00"}},{"$f":"IFERROR('MMA Rev-Exp Region 9'!$AD$30/'MMA Rev-Exp Region 9'!$AD$9, 0)","v":{"v":0,"d":"$0.00"}},{"$f":"IFERROR('MMA Rev-Exp Region 9'!$AE$30/'MMA Rev-Exp Region 9'!$AE$9, 0)","v":{"v":0,"d":"$0.00"}},{"$f":"IFERROR('MMA Rev-Exp Region 9'!$AF$30/'MMA Rev-Exp Region 9'!$AF$9, 0)","v":{"v":0,"d":"$0.00"}},{"$f":"IFERROR('MMA Rev-Exp Region 9'!$AG$30/'MMA Rev-Exp Region 9'!$AG$9, 0)","v":{"v":0,"d":"$0.00"}},{"$f":"IFERROR('MMA Rev-Exp Region 9'!$AH$30/'MMA Rev-Exp Region 9'!$AH$9, 0)","v":{"v":0,"d":"$0.00"}},{"$f":"IFERROR('MMA Rev-Exp Region 9'!$AI$30/'MMA Rev-Exp Region 9'!$AI$9, 0)","v":{"v":0,"d":"$0.00"}},{"$f":"IFERROR('MMA Rev-Exp Region 9'!$AJ$30/'MMA Rev-Exp Region 9'!$AJ$9, 0)","v":{"v":0,"d":"$0.00"}}]
["MMA",null,null,2016,"2016-12-31","Q3","2017-09-30","Region 9","Operating Expense","Medical Benefits Expense","Professional Services",3.3,"Other Professional FFS",{"$f":"IFERROR('MMA Rev-Exp Region 9'!$Z$31/'MMA Rev-Exp Region 9'!$Z$9, 0)","v":{"v":0,"d":"$0.00"}},{"$f":"IFERROR('MMA Rev-Exp Region 9'!$AA$31/'MMA Rev-Exp Region 9'!$AA$9, 0)","v":{"v":0,"d":"$0.00"}},{"$f":"IFERROR('MMA Rev-Exp Region 9'!$AB$31/'MMA Rev-Exp Region 9'!$AB$9, 0)","v":{"v":0,"d":"$0.00"}},{"$f":"IFERROR('MMA Rev-Exp Region 9'!$AC$31/'MMA Rev-Exp Region 9'!$AC$9, 0)","v":{"v":0,"d":"$0.00"}},{"$f":"IFERROR('MMA Rev-Exp Region 9'!$AD$31/'MMA Rev-Exp Region 9'!$AD$9, 0)","v":{"v":0,"d":"$0.00"}},{"$f":"IFERROR('MMA Rev-Exp Region 9'!$AE$31/'MMA Rev-Exp Region 9'!$AE$9, 0)","v":{"v":0,"d":"$0.00"}},{"$f":"IFERROR('MMA Rev-Exp Region 9'!$AF$31/'MMA Rev-Exp Region 9'!$AF$9, 0)","v":{"v":0,"d":"$0.00"}},{"$f":"IFERROR('MMA Rev-Exp Region 9'!$AG$31/'MMA Rev-Exp Region 9'!$AG$9, 0)","v":{"v":0,"d":"$0.00"}},{"$f":"IFERROR('MMA Rev-Exp Region 9'!$AH$31/'MMA Rev-Exp Region 9'!$AH$9, 0)","v":{"v":0,"d":"$0.00"}},{"$f":"IFERROR('MMA Rev-Exp Region 9'!$AI$31/'MMA Rev-Exp Region 9'!$AI$9, 0)","v":{"v":0,"d":"$0.00"}},{"$f":"IFERROR('MMA Rev-Exp Region 9'!$AJ$31/'MMA Rev-Exp Region 9'!$AJ$9, 0)","v":{"v":0,"d":"$0.00"}}]
["MMA",null,null,2016,"2016-12-31","Q3","2017-09-30","Region 9","Operating Expense","Medical Benefits Expense","Professional Services","3.4","§ 1202 PCP Payments to providers",{"$f":"IFERROR('MMA Rev-Exp Region 9'!$Z$32/'MMA Rev-Exp Region 9'!$Z$9, 0)","v":{"v":0,"d":"$0.00"}},{"$f":"IFERROR('MMA Rev-Exp Region 9'!$AA$32/'MMA Rev-Exp Region 9'!$AA$9, 0)","v":{"v":0,"d":"$0.00"}},{"$f":"IFERROR('MMA Rev-Exp Region 9'!$AB$32/'MMA Rev-Exp Region 9'!$AB$9, 0)","v":{"v":0,"d":"$0.00"}},{"$f":"IFERROR('MMA Rev-Exp Region 9'!$AC$32/'MMA Rev-Exp Region 9'!$AC$9, 0)","v":{"v":0,"d":"$0.00"}},{"$f":"IFERROR('MMA Rev-Exp Region 9'!$AD$32/'MMA Rev-Exp Region 9'!$AD$9, 0)","v":{"v":0,"d":"$0.00"}},{"$f":"IFERROR('MMA Rev-Exp Region 9'!$AE$32/'MMA Rev-Exp Region 9'!$AE$9, 0)","v":{"v":0,"d":"$0.00"}},{"$f":"IFERROR('MMA Rev-Exp Region 9'!$AF$32/'MMA Rev-Exp Region 9'!$AF$9, 0)","v":{"v":0,"d":"$0.00"}},{"$f":"IFERROR('MMA Rev-Exp Region 9'!$AG$32/'MMA Rev-Exp Region 9'!$AG$9, 0)","v":{"v":0,"d":"$0.00"}},{"$f":"IFERROR('MMA Rev-Exp Region 9'!$AH$32/'MMA Rev-Exp Region 9'!$AH$9, 0)","v":{"v":0,"d":"$0.00"}},{"$f":"IFERROR('MMA Rev-Exp Region 9'!$AI$32/'MMA Rev-Exp Region 9'!$AI$9, 0)","v":{"v":0,"d":"$0.00"}},{"$f":"IFERROR('MMA Rev-Exp Region 9'!$AJ$32/'MMA Rev-Exp Region 9'!$AJ$9, 0)","v":{"v":0,"d":"$0.00"}}]
["MMA",null,null,2016,"2016-12-31","Q3","2017-09-30","Region 9","Operating Expense","Medical Benefits Expense","Professional Services","3.5","Subcapitated Professional Services",{"$f":"IFERROR('MMA Rev-Exp Region 9'!$Z$33/'MMA Rev-Exp Region 9'!$Z$9, 0)","v":{"v":0,"d":"$0.00"}},{"$f":"IFERROR('MMA Rev-Exp Region 9'!$AA$33/'MMA Rev-Exp Region 9'!$AA$9, 0)","v":{"v":0,"d":"$0.00"}},{"$f":"IFERROR('MMA Rev-Exp Region 9'!$AB$33/'MMA Rev-Exp Region 9'!$AB$9, 0)","v":{"v":0,"d":"$0.00"}},{"$f":"IFERROR('MMA Rev-Exp Region 9'!$AC$33/'MMA Rev-Exp Region 9'!$AC$9, 0)","v":{"v":0,"d":"$0.00"}},{"$f":"IFERROR('MMA Rev-Exp Region 9'!$AD$33/'MMA Rev-Exp Region 9'!$AD$9, 0)","v":{"v":0,"d":"$0.00"}},{"$f":"IFERROR('MMA Rev-Exp Region 9'!$AE$33/'MMA Rev-Exp Region 9'!$AE$9, 0)","v":{"v":0,"d":"$0.00"}},{"$f":"IFERROR('MMA Rev-Exp Region 9'!$AF$33/'MMA Rev-Exp Region 9'!$AF$9, 0)","v":{"v":0,"d":"$0.00"}},{"$f":"IFERROR('MMA Rev-Exp Region 9'!$AG$33/'MMA Rev-Exp Region 9'!$AG$9, 0)","v":{"v":0,"d":"$0.00"}},{"$f":"IFERROR('MMA Rev-Exp Region 9'!$AH$33/'MMA Rev-Exp Region 9'!$AH$9, 0)","v":{"v":0,"d":"$0.00"}},{"$f":"IFERROR('MMA Rev-Exp Region 9'!$AI$33/'MMA Rev-Exp Region 9'!$AI$9, 0)","v":{"v":0,"d":"$0.00"}},{"$f":"IFERROR('MMA Rev-Exp Region 9'!$AJ$33/'MMA Rev-Exp Region 9'!$AJ$9, 0)","v":{"v":0,"d":"$0.00"}}]
["MMA",null,null,2016,"2016-12-31","Q3","2017-09-30","Region 9","Operating Expense","Medical Benefits Expense","Professional Services","3.6","Ending IBNP for Professional Services",{"$f":"IFERROR('MMA Rev-Exp Region 9'!$Z$34/'MMA Rev-Exp Region 9'!$Z$9, 0)","v":{"v":0,"d":"$0.00"}},{"$f":"IFERROR('MMA Rev-Exp Region 9'!$AA$34/'MMA Rev-Exp Region 9'!$AA$9, 0)","v":{"v":0,"d":"$0.00"}},{"$f":"IFERROR('MMA Rev-Exp Region 9'!$AB$34/'MMA Rev-Exp Region 9'!$AB$9, 0)","v":{"v":0,"d":"$0.00"}},{"$f":"IFERROR('MMA Rev-Exp Region 9'!$AC$34/'MMA Rev-Exp Region 9'!$AC$9, 0)","v":{"v":0,"d":"$0.00"}},{"$f":"IFERROR('MMA Rev-Exp Region 9'!$AD$34/'MMA Rev-Exp Region 9'!$AD$9, 0)","v":{"v":0,"d":"$0.00"}},{"$f":"IFERROR('MMA Rev-Exp Region 9'!$AE$34/'MMA Rev-Exp Region 9'!$AE$9, 0)","v":{"v":0,"d":"$0.00"}},{"$f":"IFERROR('MMA Rev-Exp Region 9'!$AF$34/'MMA Rev-Exp Region 9'!$AF$9, 0)","v":{"v":0,"d":"$0.00"}},{"$f":"IFERROR('MMA Rev-Exp Region 9'!$AG$34/'MMA Rev-Exp Region 9'!$AG$9, 0)","v":{"v":0,"d":"$0.00"}},{"$f":"IFERROR('MMA Rev-Exp Region 9'!$AH$34/'MMA Rev-Exp Region 9'!$AH$9, 0)","v":{"v":0,"d":"$0.00"}},{"$f":"IFERROR('MMA Rev-Exp Region 9'!$AI$34/'MMA Rev-Exp Region 9'!$AI$9, 0)","v":{"v":0,"d":"$0.00"}},{"$f":"IFERROR('MMA Rev-Exp Region 9'!$AJ$34/'MMA Rev-Exp Region 9'!$AJ$9, 0)","v":{"v":0,"d":"$0.00"}}]
["MMA",null,null,2016,"2016-12-31","Q3","2017-09-30","Region 9","Operating Expense","Medical Benefits Expense","Professional Services","3.7","Professional Services Settlements",{"$f":"IFERROR('MMA Rev-Exp Region 9'!$Z$35/'MMA Rev-Exp Region 9'!$Z$9, 0)","v":{"v":0,"d":"$0.00"}},{"$f":"IFERROR('MMA Rev-Exp Region 9'!$AA$35/'MMA Rev-Exp Region 9'!$AA$9, 0)","v":{"v":0,"d":"$0.00"}},{"$f":"IFERROR('MMA Rev-Exp Region 9'!$AB$35/'MMA Rev-Exp Region 9'!$AB$9, 0)","v":{"v":0,"d":"$0.00"}},{"$f":"IFERROR('MMA Rev-Exp Region 9'!$AC$35/'MMA Rev-Exp Region 9'!$AC$9, 0)","v":{"v":0,"d":"$0.00"}},{"$f":"IFERROR('MMA Rev-Exp Region 9'!$AD$35/'MMA Rev-Exp Region 9'!$AD$9, 0)","v":{"v":0,"d":"$0.00"}},{"$f":"IFERROR('MMA Rev-Exp Region 9'!$AE$35/'MMA Rev-Exp Region 9'!$AE$9, 0)","v":{"v":0,"d":"$0.00"}},{"$f":"IFERROR('MMA Rev-Exp Region 9'!$AF$35/'MMA Rev-Exp Region 9'!$AF$9, 0)","v":{"v":0,"d":"$0.00"}},{"$f":"IFERROR('MMA Rev-Exp Region 9'!$AG$35/'MMA Rev-Exp Region 9'!$AG$9, 0)","v":{"v":0,"d":"$0.00"}},{"$f":"IFERROR('MMA Rev-Exp Region 9'!$AH$35/'MMA Rev-Exp Region 9'!$AH$9, 0)","v":{"v":0,"d":"$0.00"}},{"$f":"IFERROR('MMA Rev-Exp Region 9'!$AI$35/'MMA Rev-Exp Region 9'!$AI$9, 0)","v":{"v":0,"d":"$0.00"}},{"$f":"IFERROR('MMA Rev-Exp Region 9'!$AJ$35/'MMA Rev-Exp Region 9'!$AJ$9, 0)","v":{"v":0,"d":"$0.00"}}]
["MMA",null,null,2016,"2016-12-31","Q3","2017-09-30","Region 9","Operating Expense","Medical Benefits Expense","Maternity Services","4.1.1","Maternity Services",{"$f":"IFERROR('MMA Rev-Exp Region 9'!$Z$37/'MMA Rev-Exp Region 9'!$Z$9, 0)","v":{"v":0,"d":"$0.00"}},{"$f":"IFERROR('MMA Rev-Exp Region 9'!$AA$37/'MMA Rev-Exp Region 9'!$AA$9, 0)","v":{"v":0,"d":"$0.00"}},{"$f":"IFERROR('MMA Rev-Exp Region 9'!$AB$37/'MMA Rev-Exp Region 9'!$AB$9, 0)","v":{"v":0,"d":"$0.00"}},{"$f":"IFERROR('MMA Rev-Exp Region 9'!$AC$37/'MMA Rev-Exp Region 9'!$AC$9, 0)","v":{"v":0,"d":"$0.00"}},{"$f":"IFERROR('MMA Rev-Exp Region 9'!$AD$37/'MMA Rev-Exp Region 9'!$AD$9, 0)","v":{"v":0,"d":"$0.00"}},{"$f":"IFERROR('MMA Rev-Exp Region 9'!$AE$37/'MMA Rev-Exp Region 9'!$AE$9, 0)","v":{"v":0,"d":"$0.00"}},{"$f":"IFERROR('MMA Rev-Exp Region 9'!$AF$37/'MMA Rev-Exp Region 9'!$AF$9, 0)","v":{"v":0,"d":"$0.00"}},{"$f":"IFERROR('MMA Rev-Exp Region 9'!$AG$37/'MMA Rev-Exp Region 9'!$AG$9, 0)","v":{"v":0,"d":"$0.00"}},{"$f":"IFERROR('MMA Rev-Exp Region 9'!$AH$37/'MMA Rev-Exp Region 9'!$AH$9, 0)","v":{"v":0,"d":"$0.00"}},{"$f":"IFERROR('MMA Rev-Exp Region 9'!$AI$37/'MMA Rev-Exp Region 9'!$AI$9, 0)","v":{"v":0,"d":"$0.00"}},{"$f":"IFERROR('MMA Rev-Exp Region 9'!$AJ$37/'MMA Rev-Exp Region 9'!$AJ$9, 0)","v":{"v":0,"d":"$0.00"}}]
["MMA",null,null,2016,"2016-12-31","Q3","2017-09-30","Region 9","Operating Expense","Medical Benefits Expense","Maternity Services","4.2.1","Ending IBNP for Maternity Services",{"$f":"IFERROR('MMA Rev-Exp Region 9'!$Z$38/'MMA Rev-Exp Region 9'!$Z$9, 0)","v":{"v":0,"d":"$0.00"}},{"$f":"IFERROR('MMA Rev-Exp Region 9'!$AA$38/'MMA Rev-Exp Region 9'!$AA$9, 0)","v":{"v":0,"d":"$0.00"}},{"$f":"IFERROR('MMA Rev-Exp Region 9'!$AB$38/'MMA Rev-Exp Region 9'!$AB$9, 0)","v":{"v":0,"d":"$0.00"}},{"$f":"IFERROR('MMA Rev-Exp Region 9'!$AC$38/'MMA Rev-Exp Region 9'!$AC$9, 0)","v":{"v":0,"d":"$0.00"}},{"$f":"IFERROR('MMA Rev-Exp Region 9'!$AD$38/'MMA Rev-Exp Region 9'!$AD$9, 0)","v":{"v":0,"d":"$0.00"}},{"$f":"IFERROR('MMA Rev-Exp Region 9'!$AE$38/'MMA Rev-Exp Region 9'!$AE$9, 0)","v":{"v":0,"d":"$0.00"}},{"$f":"IFERROR('MMA Rev-Exp Region 9'!$AF$38/'MMA Rev-Exp Region 9'!$AF$9, 0)","v":{"v":0,"d":"$0.00"}},{"$f":"IFERROR('MMA Rev-Exp Region 9'!$AG$38/'MMA Rev-Exp Region 9'!$AG$9, 0)","v":{"v":0,"d":"$0.00"}},{"$f":"IFERROR('MMA Rev-Exp Region 9'!$AH$38/'MMA Rev-Exp Region 9'!$AH$9, 0)","v":{"v":0,"d":"$0.00"}},{"$f":"IFERROR('MMA Rev-Exp Region 9'!$AI$38/'MMA Rev-Exp Region 9'!$AI$9, 0)","v":{"v":0,"d":"$0.00"}},{"$f":"IFERROR('MMA Rev-Exp Region 9'!$AJ$38/'MMA Rev-Exp Region 9'!$AJ$9, 0)","v":{"v":0,"d":"$0.00"}}]
["MMA",null,null,2016,"2016-12-31","Q3","2017-09-30","Region 9","Operating Expense","Medical Benefits Expense","Maternity Services","4.3.1","Maternity Settlements",{"$f":"IFERROR('MMA Rev-Exp Region 9'!$Z$39/'MMA Rev-Exp Region 9'!$Z$9, 0)","v":{"v":0,"d":"$0.00"}},{"$f":"IFERROR('MMA Rev-Exp Region 9'!$AA$39/'MMA Rev-Exp Region 9'!$AA$9, 0)","v":{"v":0,"d":"$0.00"}},{"$f":"IFERROR('MMA Rev-Exp Region 9'!$AB$39/'MMA Rev-Exp Region 9'!$AB$9, 0)","v":{"v":0,"d":"$0.00"}},{"$f":"IFERROR('MMA Rev-Exp Region 9'!$AC$39/'MMA Rev-Exp Region 9'!$AC$9, 0)","v":{"v":0,"d":"$0.00"}},{"$f":"IFERROR('MMA Rev-Exp Region 9'!$AD$39/'MMA Rev-Exp Region 9'!$AD$9, 0)","v":{"v":0,"d":"$0.00"}},{"$f":"IFERROR('MMA Rev-Exp Region 9'!$AE$39/'MMA Rev-Exp Region 9'!$AE$9, 0)","v":{"v":0,"d":"$0.00"}},{"$f":"IFERROR('MMA Rev-Exp Region 9'!$AF$39/'MMA Rev-Exp Region 9'!$AF$9, 0)","v":{"v":0,"d":"$0.00"}},{"$f":"IFERROR('MMA Rev-Exp Region 9'!$AG$39/'MMA Rev-Exp Region 9'!$AG$9, 0)","v":{"v":0,"d":"$0.00"}},{"$f":"IFERROR('MMA Rev-Exp Region 9'!$AH$39/'MMA Rev-Exp Region 9'!$AH$9, 0)","v":{"v":0,"d":"$0.00"}},{"$f":"IFERROR('MMA Rev-Exp Region 9'!$AI$39/'MMA Rev-Exp Region 9'!$AI$9, 0)","v":{"v":0,"d":"$0.00"}},{"$f":"IFERROR('MMA Rev-Exp Region 9'!$AJ$39/'MMA Rev-Exp Region 9'!$AJ$9, 0)","v":{"v":0,"d":"$0.00"}}]
["MMA",null,null,2016,"2016-12-31","Q3","2017-09-30","Region 9","Operating Expense","Medical Benefits Expense","Mental Health Services",5.1,"Mental Health & Substance Abuse FFS",{"$f":"IFERROR('MMA Rev-Exp Region 9'!$Z$41/'MMA Rev-Exp Region 9'!$Z$9, 0)","v":{"v":0,"d":"$0.00"}},{"$f":"IFERROR('MMA Rev-Exp Region 9'!$AA$41/'MMA Rev-Exp Region 9'!$AA$9, 0)","v":{"v":0,"d":"$0.00"}},{"$f":"IFERROR('MMA Rev-Exp Region 9'!$AB$41/'MMA Rev-Exp Region 9'!$AB$9, 0)","v":{"v":0,"d":"$0.00"}},{"$f":"IFERROR('MMA Rev-Exp Region 9'!$AC$41/'MMA Rev-Exp Region 9'!$AC$9, 0)","v":{"v":0,"d":"$0.00"}},{"$f":"IFERROR('MMA Rev-Exp Region 9'!$AD$41/'MMA Rev-Exp Region 9'!$AD$9, 0)","v":{"v":0,"d":"$0.00"}},{"$f":"IFERROR('MMA Rev-Exp Region 9'!$AE$41/'MMA Rev-Exp Region 9'!$AE$9, 0)","v":{"v":0,"d":"$0.00"}},{"$f":"IFERROR('MMA Rev-Exp Region 9'!$AF$41/'MMA Rev-Exp Region 9'!$AF$9, 0)","v":{"v":0,"d":"$0.00"}},{"$f":"IFERROR('MMA Rev-Exp Region 9'!$AG$41/'MMA Rev-Exp Region 9'!$AG$9, 0)","v":{"v":0,"d":"$0.00"}},{"$f":"IFERROR('MMA Rev-Exp Region 9'!$AH$41/'MMA Rev-Exp Region 9'!$AH$9, 0)","v":{"v":0,"d":"$0.00"}},{"$f":"IFERROR('MMA Rev-Exp Region 9'!$AI$41/'MMA Rev-Exp Region 9'!$AI$9, 0)","v":{"v":0,"d":"$0.00"}},{"$f":"IFERROR('MMA Rev-Exp Region 9'!$AJ$41/'MMA Rev-Exp Region 9'!$AJ$9, 0)","v":{"v":0,"d":"$0.00"}}]
["MMA",null,null,2016,"2016-12-31","Q3","2017-09-30","Region 9","Operating Expense","Medical Benefits Expense","Mental Health Services",5.2,"Mental Health & Substance Abuse Subcapitation",{"$f":"IFERROR('MMA Rev-Exp Region 9'!$Z$42/'MMA Rev-Exp Region 9'!$Z$9, 0)","v":{"v":0,"d":"$0.00"}},{"$f":"IFERROR('MMA Rev-Exp Region 9'!$AA$42/'MMA Rev-Exp Region 9'!$AA$9, 0)","v":{"v":0,"d":"$0.00"}},{"$f":"IFERROR('MMA Rev-Exp Region 9'!$AB$42/'MMA Rev-Exp Region 9'!$AB$9, 0)","v":{"v":0,"d":"$0.00"}},{"$f":"IFERROR('MMA Rev-Exp Region 9'!$AC$42/'MMA Rev-Exp Region 9'!$AC$9, 0)","v":{"v":0,"d":"$0.00"}},{"$f":"IFERROR('MMA Rev-Exp Region 9'!$AD$42/'MMA Rev-Exp Region 9'!$AD$9, 0)","v":{"v":0,"d":"$0.00"}},{"$f":"IFERROR('MMA Rev-Exp Region 9'!$AE$42/'MMA Rev-Exp Region 9'!$AE$9, 0)","v":{"v":0,"d":"$0.00"}},{"$f":"IFERROR('MMA Rev-Exp Region 9'!$AF$42/'MMA Rev-Exp Region 9'!$AF$9, 0)","v":{"v":0,"d":"$0.00"}},{"$f":"IFERROR('MMA Rev-Exp Region 9'!$AG$42/'MMA Rev-Exp Region 9'!$AG$9, 0)","v":{"v":0,"d":"$0.00"}},{"$f":"IFERROR('MMA Rev-Exp Region 9'!$AH$42/'MMA Rev-Exp Region 9'!$AH$9, 0)","v":{"v":0,"d":"$0.00"}},{"$f":"IFERROR('MMA Rev-Exp Region 9'!$AI$42/'MMA Rev-Exp Region 9'!$AI$9, 0)","v":{"v":0,"d":"$0.00"}},{"$f":"IFERROR('MMA Rev-Exp Region 9'!$AJ$42/'MMA Rev-Exp Region 9'!$AJ$9, 0)","v":{"v":0,"d":"$0.00"}}]
["MMA",null,null,2016,"2016-12-31","Q3","2017-09-30","Region 9","Operating Expense","Medical Benefits Expense","Mental Health Services",5.3,"Ending IBNP for Mental Health & Substance Abuse",{"$f":"IFERROR('MMA Rev-Exp Region 9'!$Z$43/'MMA Rev-Exp Region 9'!$Z$9, 0)","v":{"v":0,"d":"$0.00"}},{"$f":"IFERROR('MMA Rev-Exp Region 9'!$AA$43/'MMA Rev-Exp Region 9'!$AA$9, 0)","v":{"v":0,"d":"$0.00"}},{"$f":"IFERROR('MMA Rev-Exp Region 9'!$AB$43/'MMA Rev-Exp Region 9'!$AB$9, 0)","v":{"v":0,"d":"$0.00"}},{"$f":"IFERROR('MMA Rev-Exp Region 9'!$AC$43/'MMA Rev-Exp Region 9'!$AC$9, 0)","v":{"v":0,"d":"$0.00"}},{"$f":"IFERROR('MMA Rev-Exp Region 9'!$AD$43/'MMA Rev-Exp Region 9'!$AD$9, 0)","v":{"v":0,"d":"$0.00"}},{"$f":"IFERROR('MMA Rev-Exp Region 9'!$AE$43/'MMA Rev-Exp Region 9'!$AE$9, 0)","v":{"v":0,"d":"$0.00"}},{"$f":"IFERROR('MMA Rev-Exp Region 9'!$AF$43/'MMA Rev-Exp Region 9'!$AF$9, 0)","v":{"v":0,"d":"$0.00"}},{"$f":"IFERROR('MMA Rev-Exp Region 9'!$AG$43/'MMA Rev-Exp Region 9'!$AG$9, 0)","v":{"v":0,"d":"$0.00"}},{"$f":"IFERROR('MMA Rev-Exp Region 9'!$AH$43/'MMA Rev-Exp Region 9'!$AH$9, 0)","v":{"v":0,"d":"$0.00"}},{"$f":"IFERROR('MMA Rev-Exp Region 9'!$AI$43/'MMA Rev-Exp Region 9'!$AI$9, 0)","v":{"v":0,"d":"$0.00"}},{"$f":"IFERROR('MMA Rev-Exp Region 9'!$AJ$43/'MMA Rev-Exp Region 9'!$AJ$9, 0)","v":{"v":0,"d":"$0.00"}}]
["MMA",null,null,2016,"2016-12-31","Q3","2017-09-30","Region 9","Operating Expense","Medical Benefits Expense","Mental Health Services","5.4","Mental Health Settlements",{"$f":"IFERROR('MMA Rev-Exp Region 9'!$Z$44/'MMA Rev-Exp Region 9'!$Z$9, 0)","v":{"v":0,"d":"$0.00"}},{"$f":"IFERROR('MMA Rev-Exp Region 9'!$AA$44/'MMA Rev-Exp Region 9'!$AA$9, 0)","v":{"v":0,"d":"$0.00"}},{"$f":"IFERROR('MMA Rev-Exp Region 9'!$AB$44/'MMA Rev-Exp Region 9'!$AB$9, 0)","v":{"v":0,"d":"$0.00"}},{"$f":"IFERROR('MMA Rev-Exp Region 9'!$AC$44/'MMA Rev-Exp Region 9'!$AC$9, 0)","v":{"v":0,"d":"$0.00"}},{"$f":"IFERROR('MMA Rev-Exp Region 9'!$AD$44/'MMA Rev-Exp Region 9'!$AD$9, 0)","v":{"v":0,"d":"$0.00"}},{"$f":"IFERROR('MMA Rev-Exp Region 9'!$AE$44/'MMA Rev-Exp Region 9'!$AE$9, 0)","v":{"v":0,"d":"$0.00"}},{"$f":"IFERROR('MMA Rev-Exp Region 9'!$AF$44/'MMA Rev-Exp Region 9'!$AF$9, 0)","v":{"v":0,"d":"$0.00"}},{"$f":"IFERROR('MMA Rev-Exp Region 9'!$AG$44/'MMA Rev-Exp Region 9'!$AG$9, 0)","v":{"v":0,"d":"$0.00"}},{"$f":"IFERROR('MMA Rev-Exp Region 9'!$AH$44/'MMA Rev-Exp Region 9'!$AH$9, 0)","v":{"v":0,"d":"$0.00"}},{"$f":"IFERROR('MMA Rev-Exp Region 9'!$AI$44/'MMA Rev-Exp Region 9'!$AI$9, 0)","v":{"v":0,"d":"$0.00"}},{"$f":"IFERROR('MMA Rev-Exp Region 9'!$AJ$44/'MMA Rev-Exp Region 9'!$AJ$9, 0)","v":{"v":0,"d":"$0.00"}}]
["MMA",null,null,2016,"2016-12-31","Q3","2017-09-30","Region 9","Operating Expense","Medical Benefits Expense","Dental Services",6.1,"Dental FFS",{"$f":"IFERROR('MMA Rev-Exp Region 9'!$Z$46/'MMA Rev-Exp Region 9'!$Z$9, 0)","v":{"v":0,"d":"$0.00"}},{"$f":"IFERROR('MMA Rev-Exp Region 9'!$AA$46/'MMA Rev-Exp Region 9'!$AA$9, 0)","v":{"v":0,"d":"$0.00"}},{"$f":"IFERROR('MMA Rev-Exp Region 9'!$AB$46/'MMA Rev-Exp Region 9'!$AB$9, 0)","v":{"v":0,"d":"$0.00"}},{"$f":"IFERROR('MMA Rev-Exp Region 9'!$AC$46/'MMA Rev-Exp Region 9'!$AC$9, 0)","v":{"v":0,"d":"$0.00"}},{"$f":"IFERROR('MMA Rev-Exp Region 9'!$AD$46/'MMA Rev-Exp Region 9'!$AD$9, 0)","v":{"v":0,"d":"$0.00"}},{"$f":"IFERROR('MMA Rev-Exp Region 9'!$AE$46/'MMA Rev-Exp Region 9'!$AE$9, 0)","v":{"v":0,"d":"$0.00"}},{"$f":"IFERROR('MMA Rev-Exp Region 9'!$AF$46/'MMA Rev-Exp Region 9'!$AF$9, 0)","v":{"v":0,"d":"$0.00"}},{"$f":"IFERROR('MMA Rev-Exp Region 9'!$AG$46/'MMA Rev-Exp Region 9'!$AG$9, 0)","v":{"v":0,"d":"$0.00"}},{"$f":"IFERROR('MMA Rev-Exp Region 9'!$AH$46/'MMA Rev-Exp Region 9'!$AH$9, 0)","v":{"v":0,"d":"$0.00"}},{"$f":"IFERROR('MMA Rev-Exp Region 9'!$AI$46/'MMA Rev-Exp Region 9'!$AI$9, 0)","v":{"v":0,"d":"$0.00"}},{"$f":"IFERROR('MMA Rev-Exp Region 9'!$AJ$46/'MMA Rev-Exp Region 9'!$AJ$9, 0)","v":{"v":0,"d":"$0.00"}}]
["MMA",null,null,2016,"2016-12-31","Q3","2017-09-30","Region 9","Operating Expense","Medical Benefits Expense","Dental Services",6.2,"Dental Subcapitation",{"$f":"IFERROR('MMA Rev-Exp Region 9'!$Z$47/'MMA Rev-Exp Region 9'!$Z$9, 0)","v":{"v":0,"d":"$0.00"}},{"$f":"IFERROR('MMA Rev-Exp Region 9'!$AA$47/'MMA Rev-Exp Region 9'!$AA$9, 0)","v":{"v":0,"d":"$0.00"}},{"$f":"IFERROR('MMA Rev-Exp Region 9'!$AB$47/'MMA Rev-Exp Region 9'!$AB$9, 0)","v":{"v":0,"d":"$0.00"}},{"$f":"IFERROR('MMA Rev-Exp Region 9'!$AC$47/'MMA Rev-Exp Region 9'!$AC$9, 0)","v":{"v":0,"d":"$0.00"}},{"$f":"IFERROR('MMA Rev-Exp Region 9'!$AD$47/'MMA Rev-Exp Region 9'!$AD$9, 0)","v":{"v":0,"d":"$0.00"}},{"$f":"IFERROR('MMA Rev-Exp Region 9'!$AE$47/'MMA Rev-Exp Region 9'!$AE$9, 0)","v":{"v":0,"d":"$0.00"}},{"$f":"IFERROR('MMA Rev-Exp Region 9'!$AF$47/'MMA Rev-Exp Region 9'!$AF$9, 0)","v":{"v":0,"d":"$0.00"}},{"$f":"IFERROR('MMA Rev-Exp Region 9'!$AG$47/'MMA Rev-Exp Region 9'!$AG$9, 0)","v":{"v":0,"d":"$0.00"}},{"$f":"IFERROR('MMA Rev-Exp Region 9'!$AH$47/'MMA Rev-Exp Region 9'!$AH$9, 0)","v":{"v":0,"d":"$0.00"}},{"$f":"IFERROR('MMA Rev-Exp Region 9'!$AI$47/'MMA Rev-Exp Region 9'!$AI$9, 0)","v":{"v":0,"d":"$0.00"}},{"$f":"IFERROR('MMA Rev-Exp Region 9'!$AJ$47/'MMA Rev-Exp Region 9'!$AJ$9, 0)","v":{"v":0,"d":"$0.00"}}]
["MMA",null,null,2016,"2016-12-31","Q3","2017-09-30","Region 9","Operating Expense","Medical Benefits Expense","Dental Services",6.3,"Ending IBNP for Dental Services",{"$f":"IFERROR('MMA Rev-Exp Region 9'!$Z$48/'MMA Rev-Exp Region 9'!$Z$9, 0)","v":{"v":0,"d":"$0.00"}},{"$f":"IFERROR('MMA Rev-Exp Region 9'!$AA$48/'MMA Rev-Exp Region 9'!$AA$9, 0)","v":{"v":0,"d":"$0.00"}},{"$f":"IFERROR('MMA Rev-Exp Region 9'!$AB$48/'MMA Rev-Exp Region 9'!$AB$9, 0)","v":{"v":0,"d":"$0.00"}},{"$f":"IFERROR('MMA Rev-Exp Region 9'!$AC$48/'MMA Rev-Exp Region 9'!$AC$9, 0)","v":{"v":0,"d":"$0.00"}},{"$f":"IFERROR('MMA Rev-Exp Region 9'!$AD$48/'MMA Rev-Exp Region 9'!$AD$9, 0)","v":{"v":0,"d":"$0.00"}},{"$f":"IFERROR('MMA Rev-Exp Region 9'!$AE$48/'MMA Rev-Exp Region 9'!$AE$9, 0)","v":{"v":0,"d":"$0.00"}},{"$f":"IFERROR('MMA Rev-Exp Region 9'!$AF$48/'MMA Rev-Exp Region 9'!$AF$9, 0)","v":{"v":0,"d":"$0.00"}},{"$f":"IFERROR('MMA Rev-Exp Region 9'!$AG$48/'MMA Rev-Exp Region 9'!$AG$9, 0)","v":{"v":0,"d":"$0.00"}},{"$f":"IFERROR('MMA Rev-Exp Region 9'!$AH$48/'MMA Rev-Exp Region 9'!$AH$9, 0)","v":{"v":0,"d":"$0.00"}},{"$f":"IFERROR('MMA Rev-Exp Region 9'!$AI$48/'MMA Rev-Exp Region 9'!$AI$9, 0)","v":{"v":0,"d":"$0.00"}},{"$f":"IFERROR('MMA Rev-Exp Region 9'!$AJ$48/'MMA Rev-Exp Region 9'!$AJ$9, 0)","v":{"v":0,"d":"$0.00"}}]
["MMA",null,null,2016,"2016-12-31","Q3","2017-09-30","Region 9","Operating Expense","Medical Benefits Expense","Dental Services","6.4","Dental Settlements",{"$f":"IFERROR('MMA Rev-Exp Region 9'!$Z$49/'MMA Rev-Exp Region 9'!$Z$9, 0)","v":{"v":0,"d":"$0.00"}},{"$f":"IFERROR('MMA Rev-Exp Region 9'!$AA$49/'MMA Rev-Exp Region 9'!$AA$9, 0)","v":{"v":0,"d":"$0.00"}},{"$f":"IFERROR('MMA Rev-Exp Region 9'!$AB$49/'MMA Rev-Exp Region 9'!$AB$9, 0)","v":{"v":0,"d":"$0.00"}},{"$f":"IFERROR('MMA Rev-Exp Region 9'!$AC$49/'MMA Rev-Exp Region 9'!$AC$9, 0)","v":{"v":0,"d":"$0.00"}},{"$f":"IFERROR('MMA Rev-Exp Region 9'!$AD$49/'MMA Rev-Exp Region 9'!$AD$9, 0)","v":{"v":0,"d":"$0.00"}},{"$f":"IFERROR('MMA Rev-Exp Region 9'!$AE$49/'MMA Rev-Exp Region 9'!$AE$9, 0)","v":{"v":0,"d":"$0.00"}},{"$f":"IFERROR('MMA Rev-Exp Region 9'!$AF$49/'MMA Rev-Exp Region 9'!$AF$9, 0)","v":{"v":0,"d":"$0.00"}},{"$f":"IFERROR('MMA Rev-Exp Region 9'!$AG$49/'MMA Rev-Exp Region 9'!$AG$9, 0)","v":{"v":0,"d":"$0.00"}},{"$f":"IFERROR('MMA Rev-Exp Region 9'!$AH$49/'MMA Rev-Exp Region 9'!$AH$9, 0)","v":{"v":0,"d":"$0.00"}},{"$f":"IFERROR('MMA Rev-Exp Region 9'!$AI$49/'MMA Rev-Exp Region 9'!$AI$9, 0)","v":{"v":0,"d":"$0.00"}},{"$f":"IFERROR('MMA Rev-Exp Region 9'!$AJ$49/'MMA Rev-Exp Region 9'!$AJ$9, 0)","v":{"v":0,"d":"$0.00"}}]
["MMA",null,null,2016,"2016-12-31","Q3","2017-09-30","Region 9","Operating Expense","Medical Benefits Expense","Transportation Services",7.1,"Transportation FFS",{"$f":"IFERROR('MMA Rev-Exp Region 9'!$Z$51/'MMA Rev-Exp Region 9'!$Z$9, 0)","v":{"v":0,"d":"$0.00"}},{"$f":"IFERROR('MMA Rev-Exp Region 9'!$AA$51/'MMA Rev-Exp Region 9'!$AA$9, 0)","v":{"v":0,"d":"$0.00"}},{"$f":"IFERROR('MMA Rev-Exp Region 9'!$AB$51/'MMA Rev-Exp Region 9'!$AB$9, 0)","v":{"v":0,"d":"$0.00"}},{"$f":"IFERROR('MMA Rev-Exp Region 9'!$AC$51/'MMA Rev-Exp Region 9'!$AC$9, 0)","v":{"v":0,"d":"$0.00"}},{"$f":"IFERROR('MMA Rev-Exp Region 9'!$AD$51/'MMA Rev-Exp Region 9'!$AD$9, 0)","v":{"v":0,"d":"$0.00"}},{"$f":"IFERROR('MMA Rev-Exp Region 9'!$AE$51/'MMA Rev-Exp Region 9'!$AE$9, 0)","v":{"v":0,"d":"$0.00"}},{"$f":"IFERROR('MMA Rev-Exp Region 9'!$AF$51/'MMA Rev-Exp Region 9'!$AF$9, 0)","v":{"v":0,"d":"$0.00"}},{"$f":"IFERROR('MMA Rev-Exp Region 9'!$AG$51/'MMA Rev-Exp Region 9'!$AG$9, 0)","v":{"v":0,"d":"$0.00"}},{"$f":"IFERROR('MMA Rev-Exp Region 9'!$AH$51/'MMA Rev-Exp Region 9'!$AH$9, 0)","v":{"v":0,"d":"$0.00"}},{"$f":"IFERROR('MMA Rev-Exp Region 9'!$AI$51/'MMA Rev-Exp Region 9'!$AI$9, 0)","v":{"v":0,"d":"$0.00"}},{"$f":"IFERROR('MMA Rev-Exp Region 9'!$AJ$51/'MMA Rev-Exp Region 9'!$AJ$9, 0)","v":{"v":0,"d":"$0.00"}}]
["MMA",null,null,2016,"2016-12-31","Q3","2017-09-30","Region 9","Operating Expense","Medical Benefits Expense","Transportation Services",7.2,"Transportation Subcapitation",{"$f":"IFERROR('MMA Rev-Exp Region 9'!$Z$52/'MMA Rev-Exp Region 9'!$Z$9, 0)","v":{"v":0,"d":"$0.00"}},{"$f":"IFERROR('MMA Rev-Exp Region 9'!$AA$52/'MMA Rev-Exp Region 9'!$AA$9, 0)","v":{"v":0,"d":"$0.00"}},{"$f":"IFERROR('MMA Rev-Exp Region 9'!$AB$52/'MMA Rev-Exp Region 9'!$AB$9, 0)","v":{"v":0,"d":"$0.00"}},{"$f":"IFERROR('MMA Rev-Exp Region 9'!$AC$52/'MMA Rev-Exp Region 9'!$AC$9, 0)","v":{"v":0,"d":"$0.00"}},{"$f":"IFERROR('MMA Rev-Exp Region 9'!$AD$52/'MMA Rev-Exp Region 9'!$AD$9, 0)","v":{"v":0,"d":"$0.00"}},{"$f":"IFERROR('MMA Rev-Exp Region 9'!$AE$52/'MMA Rev-Exp Region 9'!$AE$9, 0)","v":{"v":0,"d":"$0.00"}},{"$f":"IFERROR('MMA Rev-Exp Region 9'!$AF$52/'MMA Rev-Exp Region 9'!$AF$9, 0)","v":{"v":0,"d":"$0.00"}},{"$f":"IFERROR('MMA Rev-Exp Region 9'!$AG$52/'MMA Rev-Exp Region 9'!$AG$9, 0)","v":{"v":0,"d":"$0.00"}},{"$f":"IFERROR('MMA Rev-Exp Region 9'!$AH$52/'MMA Rev-Exp Region 9'!$AH$9, 0)","v":{"v":0,"d":"$0.00"}},{"$f":"IFERROR('MMA Rev-Exp Region 9'!$AI$52/'MMA Rev-Exp Region 9'!$AI$9, 0)","v":{"v":0,"d":"$0.00"}},{"$f":"IFERROR('MMA Rev-Exp Region 9'!$AJ$52/'MMA Rev-Exp Region 9'!$AJ$9, 0)","v":{"v":0,"d":"$0.00"}}]
["MMA",null,null,2016,"2016-12-31","Q3","2017-09-30","Region 9","Operating Expense","Medical Benefits Expense","Transportation Services",7.3,"Ending IBNP for Transportation",{"$f":"IFERROR('MMA Rev-Exp Region 9'!$Z$53/'MMA Rev-Exp Region 9'!$Z$9, 0)","v":{"v":0,"d":"$0.00"}},{"$f":"IFERROR('MMA Rev-Exp Region 9'!$AA$53/'MMA Rev-Exp Region 9'!$AA$9, 0)","v":{"v":0,"d":"$0.00"}},{"$f":"IFERROR('MMA Rev-Exp Region 9'!$AB$53/'MMA Rev-Exp Region 9'!$AB$9, 0)","v":{"v":0,"d":"$0.00"}},{"$f":"IFERROR('MMA Rev-Exp Region 9'!$AC$53/'MMA Rev-Exp Region 9'!$AC$9, 0)","v":{"v":0,"d":"$0.00"}},{"$f":"IFERROR('MMA Rev-Exp Region 9'!$AD$53/'MMA Rev-Exp Region 9'!$AD$9, 0)","v":{"v":0,"d":"$0.00"}},{"$f":"IFERROR('MMA Rev-Exp Region 9'!$AE$53/'MMA Rev-Exp Region 9'!$AE$9, 0)","v":{"v":0,"d":"$0.00"}},{"$f":"IFERROR('MMA Rev-Exp Region 9'!$AF$53/'MMA Rev-Exp Region 9'!$AF$9, 0)","v":{"v":0,"d":"$0.00"}},{"$f":"IFERROR('MMA Rev-Exp Region 9'!$AG$53/'MMA Rev-Exp Region 9'!$AG$9, 0)","v":{"v":0,"d":"$0.00"}},{"$f":"IFERROR('MMA Rev-Exp Region 9'!$AH$53/'MMA Rev-Exp Region 9'!$AH$9, 0)","v":{"v":0,"d":"$0.00"}},{"$f":"IFERROR('MMA Rev-Exp Region 9'!$AI$53/'MMA Rev-Exp Region 9'!$AI$9, 0)","v":{"v":0,"d":"$0.00"}},{"$f":"IFERROR('MMA Rev-Exp Region 9'!$AJ$53/'MMA Rev-Exp Region 9'!$AJ$9, 0)","v":{"v":0,"d":"$0.00"}}]
["MMA",null,null,2016,"2016-12-31","Q3","2017-09-30","Region 9","Operating Expense","Medical Benefits Expense","Transportation Services","7.4","Transportation Settlements",{"$f":"IFERROR('MMA Rev-Exp Region 9'!$Z$54/'MMA Rev-Exp Region 9'!$Z$9, 0)","v":{"v":0,"d":"$0.00"}},{"$f":"IFERROR('MMA Rev-Exp Region 9'!$AA$54/'MMA Rev-Exp Region 9'!$AA$9, 0)","v":{"v":0,"d":"$0.00"}},{"$f":"IFERROR('MMA Rev-Exp Region 9'!$AB$54/'MMA Rev-Exp Region 9'!$AB$9, 0)","v":{"v":0,"d":"$0.00"}},{"$f":"IFERROR('MMA Rev-Exp Region 9'!$AC$54/'MMA Rev-Exp Region 9'!$AC$9, 0)","v":{"v":0,"d":"$0.00"}},{"$f":"IFERROR('MMA Rev-Exp Region 9'!$AD$54/'MMA Rev-Exp Region 9'!$AD$9, 0)","v":{"v":0,"d":"$0.00"}},{"$f":"IFERROR('MMA Rev-Exp Region 9'!$AE$54/'MMA Rev-Exp Region 9'!$AE$9, 0)","v":{"v":0,"d":"$0.00"}},{"$f":"IFERROR('MMA Rev-Exp Region 9'!$AF$54/'MMA Rev-Exp Region 9'!$AF$9, 0)","v":{"v":0,"d":"$0.00"}},{"$f":"IFERROR('MMA Rev-Exp Region 9'!$AG$54/'MMA Rev-Exp Region 9'!$AG$9, 0)","v":{"v":0,"d":"$0.00"}},{"$f":"IFERROR('MMA Rev-Exp Region 9'!$AH$54/'MMA Rev-Exp Region 9'!$AH$9, 0)","v":{"v":0,"d":"$0.00"}},{"$f":"IFERROR('MMA Rev-Exp Region 9'!$AI$54/'MMA Rev-Exp Region 9'!$AI$9, 0)","v":{"v":0,"d":"$0.00"}},{"$f":"IFERROR('MMA Rev-Exp Region 9'!$AJ$54/'MMA Rev-Exp Region 9'!$AJ$9, 0)","v":{"v":0,"d":"$0.00"}}]
["MMA",null,null,2016,"2016-12-31","Q3","2017-09-30","Region 9","Operating Expense","Medical Benefits Expense","Pharmacy Services",8.1,"Prescription Drugs FFS",{"$f":"IFERROR('MMA Rev-Exp Region 9'!$Z$56/'MMA Rev-Exp Region 9'!$Z$9, 0)","v":{"v":0,"d":"$0.00"}},{"$f":"IFERROR('MMA Rev-Exp Region 9'!$AA$56/'MMA Rev-Exp Region 9'!$AA$9, 0)","v":{"v":0,"d":"$0.00"}},{"$f":"IFERROR('MMA Rev-Exp Region 9'!$AB$56/'MMA Rev-Exp Region 9'!$AB$9, 0)","v":{"v":0,"d":"$0.00"}},{"$f":"IFERROR('MMA Rev-Exp Region 9'!$AC$56/'MMA Rev-Exp Region 9'!$AC$9, 0)","v":{"v":0,"d":"$0.00"}},{"$f":"IFERROR('MMA Rev-Exp Region 9'!$AD$56/'MMA Rev-Exp Region 9'!$AD$9, 0)","v":{"v":0,"d":"$0.00"}},{"$f":"IFERROR('MMA Rev-Exp Region 9'!$AE$56/'MMA Rev-Exp Region 9'!$AE$9, 0)","v":{"v":0,"d":"$0.00"}},{"$f":"IFERROR('MMA Rev-Exp Region 9'!$AF$56/'MMA Rev-Exp Region 9'!$AF$9, 0)","v":{"v":0,"d":"$0.00"}},{"$f":"IFERROR('MMA Rev-Exp Region 9'!$AG$56/'MMA Rev-Exp Region 9'!$AG$9, 0)","v":{"v":0,"d":"$0.00"}},{"$f":"IFERROR('MMA Rev-Exp Region 9'!$AH$56/'MMA Rev-Exp Region 9'!$AH$9, 0)","v":{"v":0,"d":"$0.00"}},{"$f":"IFERROR('MMA Rev-Exp Region 9'!$AI$56/'MMA Rev-Exp Region 9'!$AI$9, 0)","v":{"v":0,"d":"$0.00"}},{"$f":"IFERROR('MMA Rev-Exp Region 9'!$AJ$56/'MMA Rev-Exp Region 9'!$AJ$9, 0)","v":{"v":0,"d":"$0.00"}}]
["MMA",null,null,2016,"2016-12-31","Q3","2017-09-30","Region 9","Operating Expense","Medical Benefits Expense","Pharmacy Services","8.2","Hepatitis C Prescription Drug FFS",{"$f":"IFERROR('MMA Rev-Exp Region 9'!$Z$57/'MMA Rev-Exp Region 9'!$Z$9, 0)","v":{"v":0,"d":"$0.00"}},{"$f":"IFERROR('MMA Rev-Exp Region 9'!$AA$57/'MMA Rev-Exp Region 9'!$AA$9, 0)","v":{"v":0,"d":"$0.00"}},{"$f":"IFERROR('MMA Rev-Exp Region 9'!$AB$57/'MMA Rev-Exp Region 9'!$AB$9, 0)","v":{"v":0,"d":"$0.00"}},{"$f":"IFERROR('MMA Rev-Exp Region 9'!$AC$57/'MMA Rev-Exp Region 9'!$AC$9, 0)","v":{"v":0,"d":"$0.00"}},{"$f":"IFERROR('MMA Rev-Exp Region 9'!$AD$57/'MMA Rev-Exp Region 9'!$AD$9, 0)","v":{"v":0,"d":"$0.00"}},{"$f":"IFERROR('MMA Rev-Exp Region 9'!$AE$57/'MMA Rev-Exp Region 9'!$AE$9, 0)","v":{"v":0,"d":"$0.00"}},{"$f":"IFERROR('MMA Rev-Exp Region 9'!$AF$57/'MMA Rev-Exp Region 9'!$AF$9, 0)","v":{"v":0,"d":"$0.00"}},{"$f":"IFERROR('MMA Rev-Exp Region 9'!$AG$57/'MMA Rev-Exp Region 9'!$AG$9, 0)","v":{"v":0,"d":"$0.00"}},{"$f":"IFERROR('MMA Rev-Exp Region 9'!$AH$57/'MMA Rev-Exp Region 9'!$AH$9, 0)","v":{"v":0,"d":"$0.00"}},{"$f":"IFERROR('MMA Rev-Exp Region 9'!$AI$57/'MMA Rev-Exp Region 9'!$AI$9, 0)","v":{"v":0,"d":"$0.00"}},{"$f":"IFERROR('MMA Rev-Exp Region 9'!$AJ$57/'MMA Rev-Exp Region 9'!$AJ$9, 0)","v":{"v":0,"d":"$0.00"}}]
["MMA",null,null,2016,"2016-12-31","Q3","2017-09-30","Region 9","Operating Expense","Medical Benefits Expense","Pharmacy Services","8.3","Ending IBNP for Prescription Drugs",{"$f":"IFERROR('MMA Rev-Exp Region 9'!$Z$58/'MMA Rev-Exp Region 9'!$Z$9, 0)","v":{"v":0,"d":"$0.00"}},{"$f":"IFERROR('MMA Rev-Exp Region 9'!$AA$58/'MMA Rev-Exp Region 9'!$AA$9, 0)","v":{"v":0,"d":"$0.00"}},{"$f":"IFERROR('MMA Rev-Exp Region 9'!$AB$58/'MMA Rev-Exp Region 9'!$AB$9, 0)","v":{"v":0,"d":"$0.00"}},{"$f":"IFERROR('MMA Rev-Exp Region 9'!$AC$58/'MMA Rev-Exp Region 9'!$AC$9, 0)","v":{"v":0,"d":"$0.00"}},{"$f":"IFERROR('MMA Rev-Exp Region 9'!$AD$58/'MMA Rev-Exp Region 9'!$AD$9, 0)","v":{"v":0,"d":"$0.00"}},{"$f":"IFERROR('MMA Rev-Exp Region 9'!$AE$58/'MMA Rev-Exp Region 9'!$AE$9, 0)","v":{"v":0,"d":"$0.00"}},{"$f":"IFERROR('MMA Rev-Exp Region 9'!$AF$58/'MMA Rev-Exp Region 9'!$AF$9, 0)","v":{"v":0,"d":"$0.00"}},{"$f":"IFERROR('MMA Rev-Exp Region 9'!$AG$58/'MMA Rev-Exp Region 9'!$AG$9, 0)","v":{"v":0,"d":"$0.00"}},{"$f":"IFERROR('MMA Rev-Exp Region 9'!$AH$58/'MMA Rev-Exp Region 9'!$AH$9, 0)","v":{"v":0,"d":"$0.00"}},{"$f":"IFERROR('MMA Rev-Exp Region 9'!$AI$58/'MMA Rev-Exp Region 9'!$AI$9, 0)","v":{"v":0,"d":"$0.00"}},{"$f":"IFERROR('MMA Rev-Exp Region 9'!$AJ$58/'MMA Rev-Exp Region 9'!$AJ$9, 0)","v":{"v":0,"d":"$0.00"}}]
["MMA",null,null,2016,"2016-12-31","Q3","2017-09-30","Region 9","Operating Expense","Medical Benefits Expense","Pharmacy Services","8.4","Prescription Drug Rebates ",{"$f":"IFERROR('MMA Rev-Exp Region 9'!$Z$59/'MMA Rev-Exp Region 9'!$Z$9, 0)","v":{"v":0,"d":"$0.00"}},{"$f":"IFERROR('MMA Rev-Exp Region 9'!$AA$59/'MMA Rev-Exp Region 9'!$AA$9, 0)","v":{"v":0,"d":"$0.00"}},{"$f":"IFERROR('MMA Rev-Exp Region 9'!$AB$59/'MMA Rev-Exp Region 9'!$AB$9, 0)","v":{"v":0,"d":"$0.00"}},{"$f":"IFERROR('MMA Rev-Exp Region 9'!$AC$59/'MMA Rev-Exp Region 9'!$AC$9, 0)","v":{"v":0,"d":"$0.00"}},{"$f":"IFERROR('MMA Rev-Exp Region 9'!$AD$59/'MMA Rev-Exp Region 9'!$AD$9, 0)","v":{"v":0,"d":"$0.00"}},{"$f":"IFERROR('MMA Rev-Exp Region 9'!$AE$59/'MMA Rev-Exp Region 9'!$AE$9, 0)","v":{"v":0,"d":"$0.00"}},{"$f":"IFERROR('MMA Rev-Exp Region 9'!$AF$59/'MMA Rev-Exp Region 9'!$AF$9, 0)","v":{"v":0,"d":"$0.00"}},{"$f":"IFERROR('MMA Rev-Exp Region 9'!$AG$59/'MMA Rev-Exp Region 9'!$AG$9, 0)","v":{"v":0,"d":"$0.00"}},{"$f":"IFERROR('MMA Rev-Exp Region 9'!$AH$59/'MMA Rev-Exp Region 9'!$AH$9, 0)","v":{"v":0,"d":"$0.00"}},{"$f":"IFERROR('MMA Rev-Exp Region 9'!$AI$59/'MMA Rev-Exp Region 9'!$AI$9, 0)","v":{"v":0,"d":"$0.00"}},{"$f":"IFERROR('MMA Rev-Exp Region 9'!$AJ$59/'MMA Rev-Exp Region 9'!$AJ$9, 0)","v":{"v":0,"d":"$0.00"}}]
["MMA",null,null,2016,"2016-12-31","Q3","2017-09-30","Region 9","Operating Expense","Medical Benefits Expense","Pharmacy Services","8.5","Ending accrual for Rebates receivable",{"$f":"IFERROR('MMA Rev-Exp Region 9'!$Z$60/'MMA Rev-Exp Region 9'!$Z$9, 0)","v":{"v":0,"d":"$0.00"}},{"$f":"IFERROR('MMA Rev-Exp Region 9'!$AA$60/'MMA Rev-Exp Region 9'!$AA$9, 0)","v":{"v":0,"d":"$0.00"}},{"$f":"IFERROR('MMA Rev-Exp Region 9'!$AB$60/'MMA Rev-Exp Region 9'!$AB$9, 0)","v":{"v":0,"d":"$0.00"}},{"$f":"IFERROR('MMA Rev-Exp Region 9'!$AC$60/'MMA Rev-Exp Region 9'!$AC$9, 0)","v":{"v":0,"d":"$0.00"}},{"$f":"IFERROR('MMA Rev-Exp Region 9'!$AD$60/'MMA Rev-Exp Region 9'!$AD$9, 0)","v":{"v":0,"d":"$0.00"}},{"$f":"IFERROR('MMA Rev-Exp Region 9'!$AE$60/'MMA Rev-Exp Region 9'!$AE$9, 0)","v":{"v":0,"d":"$0.00"}},{"$f":"IFERROR('MMA Rev-Exp Region 9'!$AF$60/'MMA Rev-Exp Region 9'!$AF$9, 0)","v":{"v":0,"d":"$0.00"}},{"$f":"IFERROR('MMA Rev-Exp Region 9'!$AG$60/'MMA Rev-Exp Region 9'!$AG$9, 0)","v":{"v":0,"d":"$0.00"}},{"$f":"IFERROR('MMA Rev-Exp Region 9'!$AH$60/'MMA Rev-Exp Region 9'!$AH$9, 0)","v":{"v":0,"d":"$0.00"}},{"$f":"IFERROR('MMA Rev-Exp Region 9'!$AI$60/'MMA Rev-Exp Region 9'!$AI$9, 0)","v":{"v":0,"d":"$0.00"}},{"$f":"IFERROR('MMA Rev-Exp Region 9'!$AJ$60/'MMA Rev-Exp Region 9'!$AJ$9, 0)","v":{"v":0,"d":"$0.00"}}]
["MMA",null,null,2016,"2016-12-31","Q3","2017-09-30","Region 9","Operating Expense","Medical Benefits Expense","Pharmacy Services","8.6","Prescription Drugs Subcapitation",{"$f":"IFERROR('MMA Rev-Exp Region 9'!$Z$61/'MMA Rev-Exp Region 9'!$Z$9, 0)","v":{"v":0,"d":"$0.00"}},{"$f":"IFERROR('MMA Rev-Exp Region 9'!$AA$61/'MMA Rev-Exp Region 9'!$AA$9, 0)","v":{"v":0,"d":"$0.00"}},{"$f":"IFERROR('MMA Rev-Exp Region 9'!$AB$61/'MMA Rev-Exp Region 9'!$AB$9, 0)","v":{"v":0,"d":"$0.00"}},{"$f":"IFERROR('MMA Rev-Exp Region 9'!$AC$61/'MMA Rev-Exp Region 9'!$AC$9, 0)","v":{"v":0,"d":"$0.00"}},{"$f":"IFERROR('MMA Rev-Exp Region 9'!$AD$61/'MMA Rev-Exp Region 9'!$AD$9, 0)","v":{"v":0,"d":"$0.00"}},{"$f":"IFERROR('MMA Rev-Exp Region 9'!$AE$61/'MMA Rev-Exp Region 9'!$AE$9, 0)","v":{"v":0,"d":"$0.00"}},{"$f":"IFERROR('MMA Rev-Exp Region 9'!$AF$61/'MMA Rev-Exp Region 9'!$AF$9, 0)","v":{"v":0,"d":"$0.00"}},{"$f":"IFERROR('MMA Rev-Exp Region 9'!$AG$61/'MMA Rev-Exp Region 9'!$AG$9, 0)","v":{"v":0,"d":"$0.00"}},{"$f":"IFERROR('MMA Rev-Exp Region 9'!$AH$61/'MMA Rev-Exp Region 9'!$AH$9, 0)","v":{"v":0,"d":"$0.00"}},{"$f":"IFERROR('MMA Rev-Exp Region 9'!$AI$61/'MMA Rev-Exp Region 9'!$AI$9, 0)","v":{"v":0,"d":"$0.00"}},{"$f":"IFERROR('MMA Rev-Exp Region 9'!$AJ$61/'MMA Rev-Exp Region 9'!$AJ$9, 0)","v":{"v":0,"d":"$0.00"}}]
["MMA",null,null,2016,"2016-12-31","Q3","2017-09-30","Region 9","Operating Expense","Medical Benefits Expense","Pharmacy Services","8.7","Prescription Drug Settlements",{"$f":"IFERROR('MMA Rev-Exp Region 9'!$Z$62/'MMA Rev-Exp Region 9'!$Z$9, 0)","v":{"v":0,"d":"$0.00"}},{"$f":"IFERROR('MMA Rev-Exp Region 9'!$AA$62/'MMA Rev-Exp Region 9'!$AA$9, 0)","v":{"v":0,"d":"$0.00"}},{"$f":"IFERROR('MMA Rev-Exp Region 9'!$AB$62/'MMA Rev-Exp Region 9'!$AB$9, 0)","v":{"v":0,"d":"$0.00"}},{"$f":"IFERROR('MMA Rev-Exp Region 9'!$AC$62/'MMA Rev-Exp Region 9'!$AC$9, 0)","v":{"v":0,"d":"$0.00"}},{"$f":"IFERROR('MMA Rev-Exp Region 9'!$AD$62/'MMA Rev-Exp Region 9'!$AD$9, 0)","v":{"v":0,"d":"$0.00"}},{"$f":"IFERROR('MMA Rev-Exp Region 9'!$AE$62/'MMA Rev-Exp Region 9'!$AE$9, 0)","v":{"v":0,"d":"$0.00"}},{"$f":"IFERROR('MMA Rev-Exp Region 9'!$AF$62/'MMA Rev-Exp Region 9'!$AF$9, 0)","v":{"v":0,"d":"$0.00"}},{"$f":"IFERROR('MMA Rev-Exp Region 9'!$AG$62/'MMA Rev-Exp Region 9'!$AG$9, 0)","v":{"v":0,"d":"$0.00"}},{"$f":"IFERROR('MMA Rev-Exp Region 9'!$AH$62/'MMA Rev-Exp Region 9'!$AH$9, 0)","v":{"v":0,"d":"$0.00"}},{"$f":"IFERROR('MMA Rev-Exp Region 9'!$AI$62/'MMA Rev-Exp Region 9'!$AI$9, 0)","v":{"v":0,"d":"$0.00"}},{"$f":"IFERROR('MMA Rev-Exp Region 9'!$AJ$62/'MMA Rev-Exp Region 9'!$AJ$9, 0)","v":{"v":0,"d":"$0.00"}}]
["MMA",null,null,2016,"2016-12-31","Q3","2017-09-30","Region 9","Operating Expense","Medical Benefits Expense","Other MMA Services",9.1,"Home Health, Private Duty Nursing, Personal Care FFS",{"$f":"IFERROR('MMA Rev-Exp Region 9'!$Z$64/'MMA Rev-Exp Region 9'!$Z$9, 0)","v":{"v":0,"d":"$0.00"}},{"$f":"IFERROR('MMA Rev-Exp Region 9'!$AA$64/'MMA Rev-Exp Region 9'!$AA$9, 0)","v":{"v":0,"d":"$0.00"}},{"$f":"IFERROR('MMA Rev-Exp Region 9'!$AB$64/'MMA Rev-Exp Region 9'!$AB$9, 0)","v":{"v":0,"d":"$0.00"}},{"$f":"IFERROR('MMA Rev-Exp Region 9'!$AC$64/'MMA Rev-Exp Region 9'!$AC$9, 0)","v":{"v":0,"d":"$0.00"}},{"$f":"IFERROR('MMA Rev-Exp Region 9'!$AD$64/'MMA Rev-Exp Region 9'!$AD$9, 0)","v":{"v":0,"d":"$0.00"}},{"$f":"IFERROR('MMA Rev-Exp Region 9'!$AE$64/'MMA Rev-Exp Region 9'!$AE$9, 0)","v":{"v":0,"d":"$0.00"}},{"$f":"IFERROR('MMA Rev-Exp Region 9'!$AF$64/'MMA Rev-Exp Region 9'!$AF$9, 0)","v":{"v":0,"d":"$0.00"}},{"$f":"IFERROR('MMA Rev-Exp Region 9'!$AG$64/'MMA Rev-Exp Region 9'!$AG$9, 0)","v":{"v":0,"d":"$0.00"}},{"$f":"IFERROR('MMA Rev-Exp Region 9'!$AH$64/'MMA Rev-Exp Region 9'!$AH$9, 0)","v":{"v":0,"d":"$0.00"}},{"$f":"IFERROR('MMA Rev-Exp Region 9'!$AI$64/'MMA Rev-Exp Region 9'!$AI$9, 0)","v":{"v":0,"d":"$0.00"}},{"$f":"IFERROR('MMA Rev-Exp Region 9'!$AJ$64/'MMA Rev-Exp Region 9'!$AJ$9, 0)","v":{"v":0,"d":"$0.00"}}]
["MMA",null,null,2016,"2016-12-31","Q3","2017-09-30","Region 9","Operating Expense","Medical Benefits Expense","Other MMA Services","9.2","Hospice FFS",{"$f":"IFERROR('MMA Rev-Exp Region 9'!$Z$65/'MMA Rev-Exp Region 9'!$Z$9, 0)","v":{"v":0,"d":"$0.00"}},{"$f":"IFERROR('MMA Rev-Exp Region 9'!$AA$65/'MMA Rev-Exp Region 9'!$AA$9, 0)","v":{"v":0,"d":"$0.00"}},{"$f":"IFERROR('MMA Rev-Exp Region 9'!$AB$65/'MMA Rev-Exp Region 9'!$AB$9, 0)","v":{"v":0,"d":"$0.00"}},{"$f":"IFERROR('MMA Rev-Exp Region 9'!$AC$65/'MMA Rev-Exp Region 9'!$AC$9, 0)","v":{"v":0,"d":"$0.00"}},{"$f":"IFERROR('MMA Rev-Exp Region 9'!$AD$65/'MMA Rev-Exp Region 9'!$AD$9, 0)","v":{"v":0,"d":"$0.00"}},{"$f":"IFERROR('MMA Rev-Exp Region 9'!$AE$65/'MMA Rev-Exp Region 9'!$AE$9, 0)","v":{"v":0,"d":"$0.00"}},{"$f":"IFERROR('MMA Rev-Exp Region 9'!$AF$65/'MMA Rev-Exp Region 9'!$AF$9, 0)","v":{"v":0,"d":"$0.00"}},{"$f":"IFERROR('MMA Rev-Exp Region 9'!$AG$65/'MMA Rev-Exp Region 9'!$AG$9, 0)","v":{"v":0,"d":"$0.00"}},{"$f":"IFERROR('MMA Rev-Exp Region 9'!$AH$65/'MMA Rev-Exp Region 9'!$AH$9, 0)","v":{"v":0,"d":"$0.00"}},{"$f":"IFERROR('MMA Rev-Exp Region 9'!$AI$65/'MMA Rev-Exp Region 9'!$AI$9, 0)","v":{"v":0,"d":"$0.00"}},{"$f":"IFERROR('MMA Rev-Exp Region 9'!$AJ$65/'MMA Rev-Exp Region 9'!$AJ$9, 0)","v":{"v":0,"d":"$0.00"}}]
["MMA",null,null,2016,"2016-12-31","Q3","2017-09-30","Region 9","Operating Expense","Medical Benefits Expense","Other MMA Services","9.3","DME FFS",{"$f":"IFERROR('MMA Rev-Exp Region 9'!$Z$66/'MMA Rev-Exp Region 9'!$Z$9, 0)","v":{"v":0,"d":"$0.00"}},{"$f":"IFERROR('MMA Rev-Exp Region 9'!$AA$66/'MMA Rev-Exp Region 9'!$AA$9, 0)","v":{"v":0,"d":"$0.00"}},{"$f":"IFERROR('MMA Rev-Exp Region 9'!$AB$66/'MMA Rev-Exp Region 9'!$AB$9, 0)","v":{"v":0,"d":"$0.00"}},{"$f":"IFERROR('MMA Rev-Exp Region 9'!$AC$66/'MMA Rev-Exp Region 9'!$AC$9, 0)","v":{"v":0,"d":"$0.00"}},{"$f":"IFERROR('MMA Rev-Exp Region 9'!$AD$66/'MMA Rev-Exp Region 9'!$AD$9, 0)","v":{"v":0,"d":"$0.00"}},{"$f":"IFERROR('MMA Rev-Exp Region 9'!$AE$66/'MMA Rev-Exp Region 9'!$AE$9, 0)","v":{"v":0,"d":"$0.00"}},{"$f":"IFERROR('MMA Rev-Exp Region 9'!$AF$66/'MMA Rev-Exp Region 9'!$AF$9, 0)","v":{"v":0,"d":"$0.00"}},{"$f":"IFERROR('MMA Rev-Exp Region 9'!$AG$66/'MMA Rev-Exp Region 9'!$AG$9, 0)","v":{"v":0,"d":"$0.00"}},{"$f":"IFERROR('MMA Rev-Exp Region 9'!$AH$66/'MMA Rev-Exp Region 9'!$AH$9, 0)","v":{"v":0,"d":"$0.00"}},{"$f":"IFERROR('MMA Rev-Exp Region 9'!$AI$66/'MMA Rev-Exp Region 9'!$AI$9, 0)","v":{"v":0,"d":"$0.00"}},{"$f":"IFERROR('MMA Rev-Exp Region 9'!$AJ$66/'MMA Rev-Exp Region 9'!$AJ$9, 0)","v":{"v":0,"d":"$0.00"}}]
["MMA",null,null,2016,"2016-12-31","Q3","2017-09-30","Region 9","Operating Expense","Medical Benefits Expense","Other MMA Services","9.4","Other State Plan Services FFS",{"$f":"IFERROR('MMA Rev-Exp Region 9'!$Z$67/'MMA Rev-Exp Region 9'!$Z$9, 0)","v":{"v":0,"d":"$0.00"}},{"$f":"IFERROR('MMA Rev-Exp Region 9'!$AA$67/'MMA Rev-Exp Region 9'!$AA$9, 0)","v":{"v":0,"d":"$0.00"}},{"$f":"IFERROR('MMA Rev-Exp Region 9'!$AB$67/'MMA Rev-Exp Region 9'!$AB$9, 0)","v":{"v":0,"d":"$0.00"}},{"$f":"IFERROR('MMA Rev-Exp Region 9'!$AC$67/'MMA Rev-Exp Region 9'!$AC$9, 0)","v":{"v":0,"d":"$0.00"}},{"$f":"IFERROR('MMA Rev-Exp Region 9'!$AD$67/'MMA Rev-Exp Region 9'!$AD$9, 0)","v":{"v":0,"d":"$0.00"}},{"$f":"IFERROR('MMA Rev-Exp Region 9'!$AE$67/'MMA Rev-Exp Region 9'!$AE$9, 0)","v":{"v":0,"d":"$0.00"}},{"$f":"IFERROR('MMA Rev-Exp Region 9'!$AF$67/'MMA Rev-Exp Region 9'!$AF$9, 0)","v":{"v":0,"d":"$0.00"}},{"$f":"IFERROR('MMA Rev-Exp Region 9'!$AG$67/'MMA Rev-Exp Region 9'!$AG$9, 0)","v":{"v":0,"d":"$0.00"}},{"$f":"IFERROR('MMA Rev-Exp Region 9'!$AH$67/'MMA Rev-Exp Region 9'!$AH$9, 0)","v":{"v":0,"d":"$0.00"}},{"$f":"IFERROR('MMA Rev-Exp Region 9'!$AI$67/'MMA Rev-Exp Region 9'!$AI$9, 0)","v":{"v":0,"d":"$0.00"}},{"$f":"IFERROR('MMA Rev-Exp Region 9'!$AJ$67/'MMA Rev-Exp Region 9'!$AJ$9, 0)","v":{"v":0,"d":"$0.00"}}]
["MMA",null,null,2016,"2016-12-31","Q3","2017-09-30","Region 9","Operating Expense","Medical Benefits Expense","Other MMA Services","9.5","Other Services Subcapitation",{"$f":"IFERROR('MMA Rev-Exp Region 9'!$Z$68/'MMA Rev-Exp Region 9'!$Z$9, 0)","v":{"v":0,"d":"$0.00"}},{"$f":"IFERROR('MMA Rev-Exp Region 9'!$AA$68/'MMA Rev-Exp Region 9'!$AA$9, 0)","v":{"v":0,"d":"$0.00"}},{"$f":"IFERROR('MMA Rev-Exp Region 9'!$AB$68/'MMA Rev-Exp Region 9'!$AB$9, 0)","v":{"v":0,"d":"$0.00"}},{"$f":"IFERROR('MMA Rev-Exp Region 9'!$AC$68/'MMA Rev-Exp Region 9'!$AC$9, 0)","v":{"v":0,"d":"$0.00"}},{"$f":"IFERROR('MMA Rev-Exp Region 9'!$AD$68/'MMA Rev-Exp Region 9'!$AD$9, 0)","v":{"v":0,"d":"$0.00"}},{"$f":"IFERROR('MMA Rev-Exp Region 9'!$AE$68/'MMA Rev-Exp Region 9'!$AE$9, 0)","v":{"v":0,"d":"$0.00"}},{"$f":"IFERROR('MMA Rev-Exp Region 9'!$AF$68/'MMA Rev-Exp Region 9'!$AF$9, 0)","v":{"v":0,"d":"$0.00"}},{"$f":"IFERROR('MMA Rev-Exp Region 9'!$AG$68/'MMA Rev-Exp Region 9'!$AG$9, 0)","v":{"v":0,"d":"$0.00"}},{"$f":"IFERROR('MMA Rev-Exp Region 9'!$AH$68/'MMA Rev-Exp Region 9'!$AH$9, 0)","v":{"v":0,"d":"$0.00"}},{"$f":"IFERROR('MMA Rev-Exp Region 9'!$AI$68/'MMA Rev-Exp Region 9'!$AI$9, 0)","v":{"v":0,"d":"$0.00"}},{"$f":"IFERROR('MMA Rev-Exp Region 9'!$AJ$68/'MMA Rev-Exp Region 9'!$AJ$9, 0)","v":{"v":0,"d":"$0.00"}}]
["MMA",null,null,2016,"2016-12-31","Q3","2017-09-30","Region 9","Operating Expense","Medical Benefits Expense","Other MMA Services","9.6","Ending IBNP for Other Services",{"$f":"IFERROR('MMA Rev-Exp Region 9'!$Z$69/'MMA Rev-Exp Region 9'!$Z$9, 0)","v":{"v":0,"d":"$0.00"}},{"$f":"IFERROR('MMA Rev-Exp Region 9'!$AA$69/'MMA Rev-Exp Region 9'!$AA$9, 0)","v":{"v":0,"d":"$0.00"}},{"$f":"IFERROR('MMA Rev-Exp Region 9'!$AB$69/'MMA Rev-Exp Region 9'!$AB$9, 0)","v":{"v":0,"d":"$0.00"}},{"$f":"IFERROR('MMA Rev-Exp Region 9'!$AC$69/'MMA Rev-Exp Region 9'!$AC$9, 0)","v":{"v":0,"d":"$0.00"}},{"$f":"IFERROR('MMA Rev-Exp Region 9'!$AD$69/'MMA Rev-Exp Region 9'!$AD$9, 0)","v":{"v":0,"d":"$0.00"}},{"$f":"IFERROR('MMA Rev-Exp Region 9'!$AE$69/'MMA Rev-Exp Region 9'!$AE$9, 0)","v":{"v":0,"d":"$0.00"}},{"$f":"IFERROR('MMA Rev-Exp Region 9'!$AF$69/'MMA Rev-Exp Region 9'!$AF$9, 0)","v":{"v":0,"d":"$0.00"}},{"$f":"IFERROR('MMA Rev-Exp Region 9'!$AG$69/'MMA Rev-Exp Region 9'!$AG$9, 0)","v":{"v":0,"d":"$0.00"}},{"$f":"IFERROR('MMA Rev-Exp Region 9'!$AH$69/'MMA Rev-Exp Region 9'!$AH$9, 0)","v":{"v":0,"d":"$0.00"}},{"$f":"IFERROR('MMA Rev-Exp Region 9'!$AI$69/'MMA Rev-Exp Region 9'!$AI$9, 0)","v":{"v":0,"d":"$0.00"}},{"$f":"IFERROR('MMA Rev-Exp Region 9'!$AJ$69/'MMA Rev-Exp Region 9'!$AJ$9, 0)","v":{"v":0,"d":"$0.00"}}]
["MMA",null,null,2016,"2016-12-31","Q3","2017-09-30","Region 9","Operating Expense","Medical Benefits Expense","Other MMA Services","9.7","Other Services Settlements",{"$f":"IFERROR('MMA Rev-Exp Region 9'!$Z$70/'MMA Rev-Exp Region 9'!$Z$9, 0)","v":{"v":0,"d":"$0.00"}},{"$f":"IFERROR('MMA Rev-Exp Region 9'!$AA$70/'MMA Rev-Exp Region 9'!$AA$9, 0)","v":{"v":0,"d":"$0.00"}},{"$f":"IFERROR('MMA Rev-Exp Region 9'!$AB$70/'MMA Rev-Exp Region 9'!$AB$9, 0)","v":{"v":0,"d":"$0.00"}},{"$f":"IFERROR('MMA Rev-Exp Region 9'!$AC$70/'MMA Rev-Exp Region 9'!$AC$9, 0)","v":{"v":0,"d":"$0.00"}},{"$f":"IFERROR('MMA Rev-Exp Region 9'!$AD$70/'MMA Rev-Exp Region 9'!$AD$9, 0)","v":{"v":0,"d":"$0.00"}},{"$f":"IFERROR('MMA Rev-Exp Region 9'!$AE$70/'MMA Rev-Exp Region 9'!$AE$9, 0)","v":{"v":0,"d":"$0.00"}},{"$f":"IFERROR('MMA Rev-Exp Region 9'!$AF$70/'MMA Rev-Exp Region 9'!$AF$9, 0)","v":{"v":0,"d":"$0.00"}},{"$f":"IFERROR('MMA Rev-Exp Region 9'!$AG$70/'MMA Rev-Exp Region 9'!$AG$9, 0)","v":{"v":0,"d":"$0.00"}},{"$f":"IFERROR('MMA Rev-Exp Region 9'!$AH$70/'MMA Rev-Exp Region 9'!$AH$9, 0)","v":{"v":0,"d":"$0.00"}},{"$f":"IFERROR('MMA Rev-Exp Region 9'!$AI$70/'MMA Rev-Exp Region 9'!$AI$9, 0)","v":{"v":0,"d":"$0.00"}},{"$f":"IFERROR('MMA Rev-Exp Region 9'!$AJ$70/'MMA Rev-Exp Region 9'!$AJ$9, 0)","v":{"v":0,"d":"$0.00"}}]
["MMA",null,null,2016,"2016-12-31","Q3","2017-09-30","Region 9","Operating Expense","Medical Benefits Expense","Expanded Benefits","10.1","Expanded Benefits FFS",{"$f":"IFERROR('MMA Rev-Exp Region 9'!$Z$72/'MMA Rev-Exp Region 9'!$Z$9, 0)","v":{"v":0,"d":"$0.00"}},{"$f":"IFERROR('MMA Rev-Exp Region 9'!$AA$72/'MMA Rev-Exp Region 9'!$AA$9, 0)","v":{"v":0,"d":"$0.00"}},{"$f":"IFERROR('MMA Rev-Exp Region 9'!$AB$72/'MMA Rev-Exp Region 9'!$AB$9, 0)","v":{"v":0,"d":"$0.00"}},{"$f":"IFERROR('MMA Rev-Exp Region 9'!$AC$72/'MMA Rev-Exp Region 9'!$AC$9, 0)","v":{"v":0,"d":"$0.00"}},{"$f":"IFERROR('MMA Rev-Exp Region 9'!$AD$72/'MMA Rev-Exp Region 9'!$AD$9, 0)","v":{"v":0,"d":"$0.00"}},{"$f":"IFERROR('MMA Rev-Exp Region 9'!$AE$72/'MMA Rev-Exp Region 9'!$AE$9, 0)","v":{"v":0,"d":"$0.00"}},{"$f":"IFERROR('MMA Rev-Exp Region 9'!$AF$72/'MMA Rev-Exp Region 9'!$AF$9, 0)","v":{"v":0,"d":"$0.00"}},{"$f":"IFERROR('MMA Rev-Exp Region 9'!$AG$72/'MMA Rev-Exp Region 9'!$AG$9, 0)","v":{"v":0,"d":"$0.00"}},{"$f":"IFERROR('MMA Rev-Exp Region 9'!$AH$72/'MMA Rev-Exp Region 9'!$AH$9, 0)","v":{"v":0,"d":"$0.00"}},{"$f":"IFERROR('MMA Rev-Exp Region 9'!$AI$72/'MMA Rev-Exp Region 9'!$AI$9, 0)","v":{"v":0,"d":"$0.00"}},{"$f":"IFERROR('MMA Rev-Exp Region 9'!$AJ$72/'MMA Rev-Exp Region 9'!$AJ$9, 0)","v":{"v":0,"d":"$0.00"}}]
["MMA",null,null,2016,"2016-12-31","Q3","2017-09-30","Region 9","Operating Expense","Medical Benefits Expense","Expanded Benefits","10.2","Expanded benefits Subcapitation",{"$f":"IFERROR('MMA Rev-Exp Region 9'!$Z$73/'MMA Rev-Exp Region 9'!$Z$9, 0)","v":{"v":0,"d":"$0.00"}},{"$f":"IFERROR('MMA Rev-Exp Region 9'!$AA$73/'MMA Rev-Exp Region 9'!$AA$9, 0)","v":{"v":0,"d":"$0.00"}},{"$f":"IFERROR('MMA Rev-Exp Region 9'!$AB$73/'MMA Rev-Exp Region 9'!$AB$9, 0)","v":{"v":0,"d":"$0.00"}},{"$f":"IFERROR('MMA Rev-Exp Region 9'!$AC$73/'MMA Rev-Exp Region 9'!$AC$9, 0)","v":{"v":0,"d":"$0.00"}},{"$f":"IFERROR('MMA Rev-Exp Region 9'!$AD$73/'MMA Rev-Exp Region 9'!$AD$9, 0)","v":{"v":0,"d":"$0.00"}},{"$f":"IFERROR('MMA Rev-Exp Region 9'!$AE$73/'MMA Rev-Exp Region 9'!$AE$9, 0)","v":{"v":0,"d":"$0.00"}},{"$f":"IFERROR('MMA Rev-Exp Region 9'!$AF$73/'MMA Rev-Exp Region 9'!$AF$9, 0)","v":{"v":0,"d":"$0.00"}},{"$f":"IFERROR('MMA Rev-Exp Region 9'!$AG$73/'MMA Rev-Exp Region 9'!$AG$9, 0)","v":{"v":0,"d":"$0.00"}},{"$f":"IFERROR('MMA Rev-Exp Region 9'!$AH$73/'MMA Rev-Exp Region 9'!$AH$9, 0)","v":{"v":0,"d":"$0.00"}},{"$f":"IFERROR('MMA Rev-Exp Region 9'!$AI$73/'MMA Rev-Exp Region 9'!$AI$9, 0)","v":{"v":0,"d":"$0.00"}},{"$f":"IFERROR('MMA Rev-Exp Region 9'!$AJ$73/'MMA Rev-Exp Region 9'!$AJ$9, 0)","v":{"v":0,"d":"$0.00"}}]
["MMA",null,null,2016,"2016-12-31","Q3","2017-09-30","Region 9","Operating Expense","Medical Benefits Expense","Expanded Benefits","10.3","Ending IBNP for Expanded Benefits",{"$f":"IFERROR('MMA Rev-Exp Region 9'!$Z$74/'MMA Rev-Exp Region 9'!$Z$9, 0)","v":{"v":0,"d":"$0.00"}},{"$f":"IFERROR('MMA Rev-Exp Region 9'!$AA$74/'MMA Rev-Exp Region 9'!$AA$9, 0)","v":{"v":0,"d":"$0.00"}},{"$f":"IFERROR('MMA Rev-Exp Region 9'!$AB$74/'MMA Rev-Exp Region 9'!$AB$9, 0)","v":{"v":0,"d":"$0.00"}},{"$f":"IFERROR('MMA Rev-Exp Region 9'!$AC$74/'MMA Rev-Exp Region 9'!$AC$9, 0)","v":{"v":0,"d":"$0.00"}},{"$f":"IFERROR('MMA Rev-Exp Region 9'!$AD$74/'MMA Rev-Exp Region 9'!$AD$9, 0)","v":{"v":0,"d":"$0.00"}},{"$f":"IFERROR('MMA Rev-Exp Region 9'!$AE$74/'MMA Rev-Exp Region 9'!$AE$9, 0)","v":{"v":0,"d":"$0.00"}},{"$f":"IFERROR('MMA Rev-Exp Region 9'!$AF$74/'MMA Rev-Exp Region 9'!$AF$9, 0)","v":{"v":0,"d":"$0.00"}},{"$f":"IFERROR('MMA Rev-Exp Region 9'!$AG$74/'MMA Rev-Exp Region 9'!$AG$9, 0)","v":{"v":0,"d":"$0.00"}},{"$f":"IFERROR('MMA Rev-Exp Region 9'!$AH$74/'MMA Rev-Exp Region 9'!$AH$9, 0)","v":{"v":0,"d":"$0.00"}},{"$f":"IFERROR('MMA Rev-Exp Region 9'!$AI$74/'MMA Rev-Exp Region 9'!$AI$9, 0)","v":{"v":0,"d":"$0.00"}},{"$f":"IFERROR('MMA Rev-Exp Region 9'!$AJ$74/'MMA Rev-Exp Region 9'!$AJ$9, 0)","v":{"v":0,"d":"$0.00"}}]
["MMA",null,null,2016,"2016-12-31","Q3","2017-09-30","Region 9","Operating Expense","Medical Benefits Expense","Expanded Benefits","10.4","Expanded Benefits Settlements",{"$f":"IFERROR('MMA Rev-Exp Region 9'!$Z$75/'MMA Rev-Exp Region 9'!$Z$9, 0)","v":{"v":0,"d":"$0.00"}},{"$f":"IFERROR('MMA Rev-Exp Region 9'!$AA$75/'MMA Rev-Exp Region 9'!$AA$9, 0)","v":{"v":0,"d":"$0.00"}},{"$f":"IFERROR('MMA Rev-Exp Region 9'!$AB$75/'MMA Rev-Exp Region 9'!$AB$9, 0)","v":{"v":0,"d":"$0.00"}},{"$f":"IFERROR('MMA Rev-Exp Region 9'!$AC$75/'MMA Rev-Exp Region 9'!$AC$9, 0)","v":{"v":0,"d":"$0.00"}},{"$f":"IFERROR('MMA Rev-Exp Region 9'!$AD$75/'MMA Rev-Exp Region 9'!$AD$9, 0)","v":{"v":0,"d":"$0.00"}},{"$f":"IFERROR('MMA Rev-Exp Region 9'!$AE$75/'MMA Rev-Exp Region 9'!$AE$9, 0)","v":{"v":0,"d":"$0.00"}},{"$f":"IFERROR('MMA Rev-Exp Region 9'!$AF$75/'MMA Rev-Exp Region 9'!$AF$9, 0)","v":{"v":0,"d":"$0.00"}},{"$f":"IFERROR('MMA Rev-Exp Region 9'!$AG$75/'MMA Rev-Exp Region 9'!$AG$9, 0)","v":{"v":0,"d":"$0.00"}},{"$f":"IFERROR('MMA Rev-Exp Region 9'!$AH$75/'MMA Rev-Exp Region 9'!$AH$9, 0)","v":{"v":0,"d":"$0.00"}},{"$f":"IFERROR('MMA Rev-Exp Region 9'!$AI$75/'MMA Rev-Exp Region 9'!$AI$9, 0)","v":{"v":0,"d":"$0.00"}},{"$f":"IFERROR('MMA Rev-Exp Region 9'!$AJ$75/'MMA Rev-Exp Region 9'!$AJ$9, 0)","v":{"v":0,"d":"$0.00"}}]
["MMA",null,null,2016,"2016-12-31","Q3","2017-09-30","Region 9","Operating Expense","Medical Benefits Expense","Other Medical","11.5","TPL & Fraud/Abuse Recoveries",{"$f":"IFERROR('MMA Rev-Exp Region 9'!$Z$81/'MMA Rev-Exp Region 9'!$Z$9, 0)","v":{"v":0,"d":"$0.00"}},{"$f":"IFERROR('MMA Rev-Exp Region 9'!$AA$81/'MMA Rev-Exp Region 9'!$AA$9, 0)","v":{"v":0,"d":"$0.00"}},{"$f":"IFERROR('MMA Rev-Exp Region 9'!$AB$81/'MMA Rev-Exp Region 9'!$AB$9, 0)","v":{"v":0,"d":"$0.00"}},{"$f":"IFERROR('MMA Rev-Exp Region 9'!$AC$81/'MMA Rev-Exp Region 9'!$AC$9, 0)","v":{"v":0,"d":"$0.00"}},{"$f":"IFERROR('MMA Rev-Exp Region 9'!$AD$81/'MMA Rev-Exp Region 9'!$AD$9, 0)","v":{"v":0,"d":"$0.00"}},{"$f":"IFERROR('MMA Rev-Exp Region 9'!$AE$81/'MMA Rev-Exp Region 9'!$AE$9, 0)","v":{"v":0,"d":"$0.00"}},{"$f":"IFERROR('MMA Rev-Exp Region 9'!$AF$81/'MMA Rev-Exp Region 9'!$AF$9, 0)","v":{"v":0,"d":"$0.00"}},{"$f":"IFERROR('MMA Rev-Exp Region 9'!$AG$81/'MMA Rev-Exp Region 9'!$AG$9, 0)","v":{"v":0,"d":"$0.00"}},{"$f":"IFERROR('MMA Rev-Exp Region 9'!$AH$81/'MMA Rev-Exp Region 9'!$AH$9, 0)","v":{"v":0,"d":"$0.00"}},{"$f":"IFERROR('MMA Rev-Exp Region 9'!$AI$81/'MMA Rev-Exp Region 9'!$AI$9, 0)","v":{"v":0,"d":"$0.00"}},{"$f":"IFERROR('MMA Rev-Exp Region 9'!$AJ$81/'MMA Rev-Exp Region 9'!$AJ$9, 0)","v":{"v":0,"d":"$0.00"}}]
["MMA",null,null,2016,"2016-12-31","Q3","2017-09-30","Region 9","Operating Expense","Medical Benefits Expense","Other Medical","11.6.1","Premium Deficiency Reserve",{"$f":"IFERROR('MMA Rev-Exp Region 9'!$Z$82/'MMA Rev-Exp Region 9'!$Z$9, 0)","v":{"v":0,"d":"$0.00"}},{"$f":"IFERROR('MMA Rev-Exp Region 9'!$AA$82/'MMA Rev-Exp Region 9'!$AA$9, 0)","v":{"v":0,"d":"$0.00"}},{"$f":"IFERROR('MMA Rev-Exp Region 9'!$AB$82/'MMA Rev-Exp Region 9'!$AB$9, 0)","v":{"v":0,"d":"$0.00"}},{"$f":"IFERROR('MMA Rev-Exp Region 9'!$AC$82/'MMA Rev-Exp Region 9'!$AC$9, 0)","v":{"v":0,"d":"$0.00"}},{"$f":"IFERROR('MMA Rev-Exp Region 9'!$AD$82/'MMA Rev-Exp Region 9'!$AD$9, 0)","v":{"v":0,"d":"$0.00"}},{"$f":"IFERROR('MMA Rev-Exp Region 9'!$AE$82/'MMA Rev-Exp Region 9'!$AE$9, 0)","v":{"v":0,"d":"$0.00"}},{"$f":"IFERROR('MMA Rev-Exp Region 9'!$AF$82/'MMA Rev-Exp Region 9'!$AF$9, 0)","v":{"v":0,"d":"$0.00"}},{"$f":"IFERROR('MMA Rev-Exp Region 9'!$AG$82/'MMA Rev-Exp Region 9'!$AG$9, 0)","v":{"v":0,"d":"$0.00"}},{"$f":"IFERROR('MMA Rev-Exp Region 9'!$AH$82/'MMA Rev-Exp Region 9'!$AH$9, 0)","v":{"v":0,"d":"$0.00"}},{"$f":"IFERROR('MMA Rev-Exp Region 9'!$AI$82/'MMA Rev-Exp Region 9'!$AI$9, 0)","v":{"v":0,"d":"$0.00"}},{"$f":"IFERROR('MMA Rev-Exp Region 9'!$AJ$82/'MMA Rev-Exp Region 9'!$AJ$9, 0)","v":{"v":0,"d":"$0.00"}}]
["MMA",null,null,2016,"2016-12-31","Q3","2017-09-30","Region 9","Operating Expense","Medical Benefits Expense","Other Medical","11.8","Reinsurance Premiums",{"$f":"IFERROR('MMA Rev-Exp Region 9'!$Z$84/'MMA Rev-Exp Region 9'!$Z$9, 0)","v":{"v":0,"d":"$0.00"}},{"$f":"IFERROR('MMA Rev-Exp Region 9'!$AA$84/'MMA Rev-Exp Region 9'!$AA$9, 0)","v":{"v":0,"d":"$0.00"}},{"$f":"IFERROR('MMA Rev-Exp Region 9'!$AB$84/'MMA Rev-Exp Region 9'!$AB$9, 0)","v":{"v":0,"d":"$0.00"}},{"$f":"IFERROR('MMA Rev-Exp Region 9'!$AC$84/'MMA Rev-Exp Region 9'!$AC$9, 0)","v":{"v":0,"d":"$0.00"}},{"$f":"IFERROR('MMA Rev-Exp Region 9'!$AD$84/'MMA Rev-Exp Region 9'!$AD$9, 0)","v":{"v":0,"d":"$0.00"}},{"$f":"IFERROR('MMA Rev-Exp Region 9'!$AE$84/'MMA Rev-Exp Region 9'!$AE$9, 0)","v":{"v":0,"d":"$0.00"}},{"$f":"IFERROR('MMA Rev-Exp Region 9'!$AF$84/'MMA Rev-Exp Region 9'!$AF$9, 0)","v":{"v":0,"d":"$0.00"}},{"$f":"IFERROR('MMA Rev-Exp Region 9'!$AG$84/'MMA Rev-Exp Region 9'!$AG$9, 0)","v":{"v":0,"d":"$0.00"}},{"$f":"IFERROR('MMA Rev-Exp Region 9'!$AH$84/'MMA Rev-Exp Region 9'!$AH$9, 0)","v":{"v":0,"d":"$0.00"}},{"$f":"IFERROR('MMA Rev-Exp Region 9'!$AI$84/'MMA Rev-Exp Region 9'!$AI$9, 0)","v":{"v":0,"d":"$0.00"}},{"$f":"IFERROR('MMA Rev-Exp Region 9'!$AJ$84/'MMA Rev-Exp Region 9'!$AJ$9, 0)","v":{"v":0,"d":"$0.00"}}]
["MMA",null,null,2016,"2016-12-31","Q3","2017-09-30","Region 9","Operating Expense","Medical Benefits Expense","Other Medical","11.9","Reinsurance Recoveries",{"$f":"IFERROR('MMA Rev-Exp Region 9'!$Z$85/'MMA Rev-Exp Region 9'!$Z$9, 0)","v":{"v":0,"d":"$0.00"}},{"$f":"IFERROR('MMA Rev-Exp Region 9'!$AA$85/'MMA Rev-Exp Region 9'!$AA$9, 0)","v":{"v":0,"d":"$0.00"}},{"$f":"IFERROR('MMA Rev-Exp Region 9'!$AB$85/'MMA Rev-Exp Region 9'!$AB$9, 0)","v":{"v":0,"d":"$0.00"}},{"$f":"IFERROR('MMA Rev-Exp Region 9'!$AC$85/'MMA Rev-Exp Region 9'!$AC$9, 0)","v":{"v":0,"d":"$0.00"}},{"$f":"IFERROR('MMA Rev-Exp Region 9'!$AD$85/'MMA Rev-Exp Region 9'!$AD$9, 0)","v":{"v":0,"d":"$0.00"}},{"$f":"IFERROR('MMA Rev-Exp Region 9'!$AE$85/'MMA Rev-Exp Region 9'!$AE$9, 0)","v":{"v":0,"d":"$0.00"}},{"$f":"IFERROR('MMA Rev-Exp Region 9'!$AF$85/'MMA Rev-Exp Region 9'!$AF$9, 0)","v":{"v":0,"d":"$0.00"}},{"$f":"IFERROR('MMA Rev-Exp Region 9'!$AG$85/'MMA Rev-Exp Region 9'!$AG$9, 0)","v":{"v":0,"d":"$0.00"}},{"$f":"IFERROR('MMA Rev-Exp Region 9'!$AH$85/'MMA Rev-Exp Region 9'!$AH$9, 0)","v":{"v":0,"d":"$0.00"}},{"$f":"IFERROR('MMA Rev-Exp Region 9'!$AI$85/'MMA Rev-Exp Region 9'!$AI$9, 0)","v":{"v":0,"d":"$0.00"}},{"$f":"IFERROR('MMA Rev-Exp Region 9'!$AJ$85/'MMA Rev-Exp Region 9'!$AJ$9, 0)","v":{"v":0,"d":"$0.00"}}]
["MMA",null,null,2016,"2016-12-31","Q3","2017-09-30","Region 9","Operating Expense","Administrative Expense","Administrative","12.1","Salaries & Benefits",{"$f":"IFERROR('MMA Rev-Exp Region 9'!$Z$90/'MMA Rev-Exp Region 9'!$Z$9, 0)","v":{"v":0,"d":"$0.00"}},{"$f":"IFERROR('MMA Rev-Exp Region 9'!$AA$90/'MMA Rev-Exp Region 9'!$Z$9, 0)","v":{"v":0,"d":"$0.00"}},{"$f":"IFERROR('MMA Rev-Exp Region 9'!$AB$90/'MMA Rev-Exp Region 9'!$Z$9, 0)","v":{"v":0,"d":"$0.00"}}]
["MMA",null,null,2016,"2016-12-31","Q3","2017-09-30","Region 9","Operating Expense","Administrative Expense","Administrative","12.2","Administrative Services",{"$f":"IFERROR('MMA Rev-Exp Region 9'!$Z$91/'MMA Rev-Exp Region 9'!$Z$9, 0)","v":{"v":0,"d":"$0.00"}},{"$f":"IFERROR('MMA Rev-Exp Region 9'!$AA$91/'MMA Rev-Exp Region 9'!$Z$9, 0)","v":{"v":0,"d":"$0.00"}},{"$f":"IFERROR('MMA Rev-Exp Region 9'!$AB$91/'MMA Rev-Exp Region 9'!$Z$9, 0)","v":{"v":0,"d":"$0.00"}}]
["MMA",null,null,2016,"2016-12-31","Q3","2017-09-30","Region 9","Operating Expense","Administrative Expense","Administrative","12.3","Information Systems",{"$f":"IFERROR('MMA Rev-Exp Region 9'!$Z$92/'MMA Rev-Exp Region 9'!$Z$9, 0)","v":{"v":0,"d":"$0.00"}},{"$f":"IFERROR('MMA Rev-Exp Region 9'!$AA$92/'MMA Rev-Exp Region 9'!$Z$9, 0)","v":{"v":0,"d":"$0.00"}},{"$f":"IFERROR('MMA Rev-Exp Region 9'!$AB$92/'MMA Rev-Exp Region 9'!$Z$9, 0)","v":{"v":0,"d":"$0.00"}}]
["MMA",null,null,2016,"2016-12-31","Q3","2017-09-30","Region 9","Operating Expense","Administrative Expense","Administrative","12.4","Marketing Expenses",{"$f":"IFERROR('MMA Rev-Exp Region 9'!$Z$93/'MMA Rev-Exp Region 9'!$Z$9, 0)","v":{"v":0,"d":"$0.00"}},{"$f":"IFERROR('MMA Rev-Exp Region 9'!$AA$93/'MMA Rev-Exp Region 9'!$Z$9, 0)","v":{"v":0,"d":"$0.00"}},{"$f":"IFERROR('MMA Rev-Exp Region 9'!$AB$93/'MMA Rev-Exp Region 9'!$Z$9, 0)","v":{"v":0,"d":"$0.00"}}]
["MMA",null,null,2016,"2016-12-31","Q3","2017-09-30","Region 9","Operating Expense","Administrative Expense","Administrative","12.5","General  Administration",{"$f":"IFERROR('MMA Rev-Exp Region 9'!$Z$94/'MMA Rev-Exp Region 9'!$Z$9, 0)","v":{"v":0,"d":"$0.00"}},{"$f":"IFERROR('MMA Rev-Exp Region 9'!$AA$94/'MMA Rev-Exp Region 9'!$Z$9, 0)","v":{"v":0,"d":"$0.00"}},{"$f":"IFERROR('MMA Rev-Exp Region 9'!$AB$94/'MMA Rev-Exp Region 9'!$Z$9, 0)","v":{"v":0,"d":"$0.00"}}]
["MMA",null,null,2016,"2016-12-31","Q3","2017-09-30","Region 9","Operating Expense","Administrative Expense","Administrative","12.6","Compliance/Regulatory",{"$f":"IFERROR('MMA Rev-Exp Region 9'!$Z$95/'MMA Rev-Exp Region 9'!$Z$9, 0)","v":{"v":0,"d":"$0.00"}},{"$f":"IFERROR('MMA Rev-Exp Region 9'!$AA$95/'MMA Rev-Exp Region 9'!$Z$9, 0)","v":{"v":0,"d":"$0.00"}},{"$f":"IFERROR('MMA Rev-Exp Region 9'!$AB$95/'MMA Rev-Exp Region 9'!$Z$9, 0)","v":{"v":0,"d":"$0.00"}}]
["MMA",null,null,2016,"2016-12-31","Q3","2017-09-30","Region 9","Operating Expense","Taxes & Fees","Taxes & Fees","13.1","State Premium tax",{"$f":"IFERROR('MMA Rev-Exp Region 9'!$Z$97/'MMA Rev-Exp Region 9'!$Z$9, 0)","v":{"v":0,"d":"$0.00"}}]
["MMA",null,null,2016,"2016-12-31","Q3","2017-09-30","Region 9","Operating Expense","Taxes & Fees","Taxes & Fees","13.2","Department of Insurance Assessments",{"$f":"IFERROR('MMA Rev-Exp Region 9'!$Z$98/'MMA Rev-Exp Region 9'!$Z$9, 0)","v":{"v":0,"d":"$0.00"}}]
["MMA",null,null,2016,"2016-12-31","Q3","2017-09-30","Region 9","Operating Expense","Taxes & Fees","Taxes & Fees","13.3","Section 9010 Health Insurance Providers Fee",{"$f":"IFERROR('MMA Rev-Exp Region 9'!$Z$99/'MMA Rev-Exp Region 9'!$Z$9, 0)","v":{"v":0,"d":"$0.00"}}]
["MMA",null,null,2016,"2016-12-31","Q3","2017-09-30","Region 9","Non-Operating Expense","Income Tax Expense","Income Tax Expense","16.0","Income Tax Expense",{"$f":"IFERROR('MMA Rev-Exp Region 9'!$Z$106/'MMA Rev-Exp Region 9'!$Z$9, 0)","v":{"v":0,"d":"$0.00"}}]
["MMA",null,null,2016,"2016-12-31","Q4","2017-12-31","Region 9","Operating Revenue","Capitation","Capitation",1.1,"Capitation",{"$f":"IFERROR('MMA Rev-Exp Region 9'!$AK$11/'MMA Rev-Exp Region 9'!$AK$9, 0)","v":{"v":0,"d":"$0.00"}},{"$f":"IFERROR('MMA Rev-Exp Region 9'!$AL$11/'MMA Rev-Exp Region 9'!$AL$9, 0)","v":{"v":0,"d":"$0.00"}},{"$f":"IFERROR('MMA Rev-Exp Region 9'!$AM$11/'MMA Rev-Exp Region 9'!$AM$9, 0)","v":{"v":0,"d":"$0.00"}},{"$f":"IFERROR('MMA Rev-Exp Region 9'!$AN$11/'MMA Rev-Exp Region 9'!$AN$9, 0)","v":{"v":0,"d":"$0.00"}},{"$f":"IFERROR('MMA Rev-Exp Region 9'!$AO$11/'MMA Rev-Exp Region 9'!$AO$9, 0)","v":{"v":0,"d":"$0.00"}},{"$f":"IFERROR('MMA Rev-Exp Region 9'!$AP$11/'MMA Rev-Exp Region 9'!$AP$9, 0)","v":{"v":0,"d":"$0.00"}},{"$f":"IFERROR('MMA Rev-Exp Region 9'!$AQ$11/'MMA Rev-Exp Region 9'!$AQ$9, 0)","v":{"v":0,"d":"$0.00"}},{"$f":"IFERROR('MMA Rev-Exp Region 9'!$AR$11/'MMA Rev-Exp Region 9'!$AR$9, 0)","v":{"v":0,"d":"$0.00"}},{"$f":"IFERROR('MMA Rev-Exp Region 9'!$AS$11/'MMA Rev-Exp Region 9'!$AS$9, 0)","v":{"v":0,"d":"$0.00"}},{"$f":"IFERROR('MMA Rev-Exp Region 9'!$AT$11/'MMA Rev-Exp Region 9'!$AT$9, 0)","v":{"v":0,"d":"$0.00"}},{"$f":"IFERROR('MMA Rev-Exp Region 9'!$AU$11/'MMA Rev-Exp Region 9'!$AU$9, 0)","v":{"v":0,"d":"$0.00"}}]
["MMA",null,null,2016,"2016-12-31","Q4","2017-12-31","Region 9","Operating Revenue","Kick Payments","Kick Payments - Transplant",1.2,"Transplant Kick Payments",{"$f":"IFERROR('MMA Rev-Exp Region 9'!$AK$12/'MMA Rev-Exp Region 9'!$AK$9, 0)","v":{"v":0,"d":"$0.00"}},{"$f":"IFERROR('MMA Rev-Exp Region 9'!$AL$12/'MMA Rev-Exp Region 9'!$AL$9, 0)","v":{"v":0,"d":"$0.00"}},{"$f":"IFERROR('MMA Rev-Exp Region 9'!$AM$12/'MMA Rev-Exp Region 9'!$AM$9, 0)","v":{"v":0,"d":"$0.00"}},{"$f":"IFERROR('MMA Rev-Exp Region 9'!$AN$12/'MMA Rev-Exp Region 9'!$AN$9, 0)","v":{"v":0,"d":"$0.00"}},{"$f":"IFERROR('MMA Rev-Exp Region 9'!$AO$12/'MMA Rev-Exp Region 9'!$AO$9, 0)","v":{"v":0,"d":"$0.00"}},{"$f":"IFERROR('MMA Rev-Exp Region 9'!$AP$12/'MMA Rev-Exp Region 9'!$AP$9, 0)","v":{"v":0,"d":"$0.00"}},{"$f":"IFERROR('MMA Rev-Exp Region 9'!$AQ$12/'MMA Rev-Exp Region 9'!$AQ$9, 0)","v":{"v":0,"d":"$0.00"}},{"$f":"IFERROR('MMA Rev-Exp Region 9'!$AR$12/'MMA Rev-Exp Region 9'!$AR$9, 0)","v":{"v":0,"d":"$0.00"}},{"$f":"IFERROR('MMA Rev-Exp Region 9'!$AS$12/'MMA Rev-Exp Region 9'!$AS$9, 0)","v":{"v":0,"d":"$0.00"}},{"$f":"IFERROR('MMA Rev-Exp Region 9'!$AT$12/'MMA Rev-Exp Region 9'!$AT$9, 0)","v":{"v":0,"d":"$0.00"}},{"$f":"IFERROR('MMA Rev-Exp Region 9'!$AU$12/'MMA Rev-Exp Region 9'!$AU$9, 0)","v":{"v":0,"d":"$0.00"}}]
["MMA",null,null,2016,"2016-12-31","Q4","2017-12-31","Region 9","Operating Revenue","Kick Payments","Kick Payments - Hep C","1.3","Hepatitis C Kick Payments",{"$f":"IFERROR('MMA Rev-Exp Region 9'!$AK$13/'MMA Rev-Exp Region 9'!$AK$9, 0)","v":{"v":0,"d":"$0.00"}},{"$f":"IFERROR('MMA Rev-Exp Region 9'!$AL$13/'MMA Rev-Exp Region 9'!$AL$9, 0)","v":{"v":0,"d":"$0.00"}},{"$f":"IFERROR('MMA Rev-Exp Region 9'!$AM$13/'MMA Rev-Exp Region 9'!$AM$9, 0)","v":{"v":0,"d":"$0.00"}},{"$f":"IFERROR('MMA Rev-Exp Region 9'!$AN$13/'MMA Rev-Exp Region 9'!$AN$9, 0)","v":{"v":0,"d":"$0.00"}},{"$f":"IFERROR('MMA Rev-Exp Region 9'!$AO$13/'MMA Rev-Exp Region 9'!$AO$9, 0)","v":{"v":0,"d":"$0.00"}},{"$f":"IFERROR('MMA Rev-Exp Region 9'!$AP$13/'MMA Rev-Exp Region 9'!$AP$9, 0)","v":{"v":0,"d":"$0.00"}},{"$f":"IFERROR('MMA Rev-Exp Region 9'!$AQ$13/'MMA Rev-Exp Region 9'!$AQ$9, 0)","v":{"v":0,"d":"$0.00"}},{"$f":"IFERROR('MMA Rev-Exp Region 9'!$AR$13/'MMA Rev-Exp Region 9'!$AR$9, 0)","v":{"v":0,"d":"$0.00"}},{"$f":"IFERROR('MMA Rev-Exp Region 9'!$AS$13/'MMA Rev-Exp Region 9'!$AS$9, 0)","v":{"v":0,"d":"$0.00"}},{"$f":"IFERROR('MMA Rev-Exp Region 9'!$AT$13/'MMA Rev-Exp Region 9'!$AT$9, 0)","v":{"v":0,"d":"$0.00"}},{"$f":"IFERROR('MMA Rev-Exp Region 9'!$AU$13/'MMA Rev-Exp Region 9'!$AU$9, 0)","v":{"v":0,"d":"$0.00"}}]
["MMA",null,null,2016,"2016-12-31","Q4","2017-12-31","Region 9","Operating Revenue","Kick Payments","Kick Payments - Maternity","1.4.1","Maternity Kick Payments",{"$f":"IFERROR('MMA Rev-Exp Region 9'!$AK$14/'MMA Rev-Exp Region 9'!$AK$9, 0)","v":{"v":0,"d":"$0.00"}},{"$f":"IFERROR('MMA Rev-Exp Region 9'!$AL$14/'MMA Rev-Exp Region 9'!$AL$9, 0)","v":{"v":0,"d":"$0.00"}},{"$f":"IFERROR('MMA Rev-Exp Region 9'!$AM$14/'MMA Rev-Exp Region 9'!$AM$9, 0)","v":{"v":0,"d":"$0.00"}},{"$f":"IFERROR('MMA Rev-Exp Region 9'!$AN$14/'MMA Rev-Exp Region 9'!$AN$9, 0)","v":{"v":0,"d":"$0.00"}},{"$f":"IFERROR('MMA Rev-Exp Region 9'!$AO$14/'MMA Rev-Exp Region 9'!$AO$9, 0)","v":{"v":0,"d":"$0.00"}},{"$f":"IFERROR('MMA Rev-Exp Region 9'!$AP$14/'MMA Rev-Exp Region 9'!$AP$9, 0)","v":{"v":0,"d":"$0.00"}},{"$f":"IFERROR('MMA Rev-Exp Region 9'!$AQ$14/'MMA Rev-Exp Region 9'!$AQ$9, 0)","v":{"v":0,"d":"$0.00"}},{"$f":"IFERROR('MMA Rev-Exp Region 9'!$AR$14/'MMA Rev-Exp Region 9'!$AR$9, 0)","v":{"v":0,"d":"$0.00"}},{"$f":"IFERROR('MMA Rev-Exp Region 9'!$AS$14/'MMA Rev-Exp Region 9'!$AS$9, 0)","v":{"v":0,"d":"$0.00"}},{"$f":"IFERROR('MMA Rev-Exp Region 9'!$AT$14/'MMA Rev-Exp Region 9'!$AT$9, 0)","v":{"v":0,"d":"$0.00"}},{"$f":"IFERROR('MMA Rev-Exp Region 9'!$AU$14/'MMA Rev-Exp Region 9'!$AU$9, 0)","v":{"v":0,"d":"$0.00"}}]
["MMA",null,null,2016,"2016-12-31","Q4","2017-12-31","Region 9","Operating Revenue","Other Revenue","Other Revenue - 9010","1.5","ACA § 9010 related payments",{"$f":"IFERROR('MMA Rev-Exp Region 9'!$AK$15/'MMA Rev-Exp Region 9'!$AK$9, 0)","v":{"v":0,"d":"$0.00"}},{"$f":"IFERROR('MMA Rev-Exp Region 9'!$AL$15/'MMA Rev-Exp Region 9'!$AL$9, 0)","v":{"v":0,"d":"$0.00"}},{"$f":"IFERROR('MMA Rev-Exp Region 9'!$AM$15/'MMA Rev-Exp Region 9'!$AM$9, 0)","v":{"v":0,"d":"$0.00"}},{"$f":"IFERROR('MMA Rev-Exp Region 9'!$AN$15/'MMA Rev-Exp Region 9'!$AN$9, 0)","v":{"v":0,"d":"$0.00"}},{"$f":"IFERROR('MMA Rev-Exp Region 9'!$AO$15/'MMA Rev-Exp Region 9'!$AO$9, 0)","v":{"v":0,"d":"$0.00"}},{"$f":"IFERROR('MMA Rev-Exp Region 9'!$AP$15/'MMA Rev-Exp Region 9'!$AP$9, 0)","v":{"v":0,"d":"$0.00"}},{"$f":"IFERROR('MMA Rev-Exp Region 9'!$AQ$15/'MMA Rev-Exp Region 9'!$AQ$9, 0)","v":{"v":0,"d":"$0.00"}},{"$f":"IFERROR('MMA Rev-Exp Region 9'!$AR$15/'MMA Rev-Exp Region 9'!$AR$9, 0)","v":{"v":0,"d":"$0.00"}},{"$f":"IFERROR('MMA Rev-Exp Region 9'!$AS$15/'MMA Rev-Exp Region 9'!$AS$9, 0)","v":{"v":0,"d":"$0.00"}},{"$f":"IFERROR('MMA Rev-Exp Region 9'!$AT$15/'MMA Rev-Exp Region 9'!$AT$9, 0)","v":{"v":0,"d":"$0.00"}},{"$f":"IFERROR('MMA Rev-Exp Region 9'!$AU$15/'MMA Rev-Exp Region 9'!$AU$9, 0)","v":{"v":0,"d":"$0.00"}}]
["MMA",null,null,2016,"2016-12-31","Q4","2017-12-31","Region 9","Operating Revenue","Other Revenue","Other Revenue","1.6","Other Revenue",{"$f":"IFERROR('MMA Rev-Exp Region 9'!$AK$16/'MMA Rev-Exp Region 9'!$AK$9, 0)","v":{"v":0,"d":"$0.00"}},{"$f":"IFERROR('MMA Rev-Exp Region 9'!$AL$16/'MMA Rev-Exp Region 9'!$AL$9, 0)","v":{"v":0,"d":"$0.00"}},{"$f":"IFERROR('MMA Rev-Exp Region 9'!$AM$16/'MMA Rev-Exp Region 9'!$AM$9, 0)","v":{"v":0,"d":"$0.00"}},{"$f":"IFERROR('MMA Rev-Exp Region 9'!$AN$16/'MMA Rev-Exp Region 9'!$AN$9, 0)","v":{"v":0,"d":"$0.00"}},{"$f":"IFERROR('MMA Rev-Exp Region 9'!$AO$16/'MMA Rev-Exp Region 9'!$AO$9, 0)","v":{"v":0,"d":"$0.00"}},{"$f":"IFERROR('MMA Rev-Exp Region 9'!$AP$16/'MMA Rev-Exp Region 9'!$AP$9, 0)","v":{"v":0,"d":"$0.00"}},{"$f":"IFERROR('MMA Rev-Exp Region 9'!$AQ$16/'MMA Rev-Exp Region 9'!$AQ$9, 0)","v":{"v":0,"d":"$0.00"}},{"$f":"IFERROR('MMA Rev-Exp Region 9'!$AR$16/'MMA Rev-Exp Region 9'!$AR$9, 0)","v":{"v":0,"d":"$0.00"}},{"$f":"IFERROR('MMA Rev-Exp Region 9'!$AS$16/'MMA Rev-Exp Region 9'!$AS$9, 0)","v":{"v":0,"d":"$0.00"}},{"$f":"IFERROR('MMA Rev-Exp Region 9'!$AT$16/'MMA Rev-Exp Region 9'!$AT$9, 0)","v":{"v":0,"d":"$0.00"}},{"$f":"IFERROR('MMA Rev-Exp Region 9'!$AU$16/'MMA Rev-Exp Region 9'!$AU$9, 0)","v":{"v":0,"d":"$0.00"}}]
["MMA",null,null,2016,"2016-12-31","Q4","2017-12-31","Region 9","Operating Expense","Medical Benefits Expense","Hospital Services",2.1,"Inpatient FFS",{"$f":"IFERROR('MMA Rev-Exp Region 9'!$AK$20/'MMA Rev-Exp Region 9'!$AK$9, 0)","v":{"v":0,"d":"$0.00"}},{"$f":"IFERROR('MMA Rev-Exp Region 9'!$AL$20/'MMA Rev-Exp Region 9'!$AL$9, 0)","v":{"v":0,"d":"$0.00"}},{"$f":"IFERROR('MMA Rev-Exp Region 9'!$AM$20/'MMA Rev-Exp Region 9'!$AM$9, 0)","v":{"v":0,"d":"$0.00"}},{"$f":"IFERROR('MMA Rev-Exp Region 9'!$AN$20/'MMA Rev-Exp Region 9'!$AN$9, 0)","v":{"v":0,"d":"$0.00"}},{"$f":"IFERROR('MMA Rev-Exp Region 9'!$AO$20/'MMA Rev-Exp Region 9'!$AO$9, 0)","v":{"v":0,"d":"$0.00"}},{"$f":"IFERROR('MMA Rev-Exp Region 9'!$AP$20/'MMA Rev-Exp Region 9'!$AP$9, 0)","v":{"v":0,"d":"$0.00"}},{"$f":"IFERROR('MMA Rev-Exp Region 9'!$AQ$20/'MMA Rev-Exp Region 9'!$AQ$9, 0)","v":{"v":0,"d":"$0.00"}},{"$f":"IFERROR('MMA Rev-Exp Region 9'!$AR$20/'MMA Rev-Exp Region 9'!$AR$9, 0)","v":{"v":0,"d":"$0.00"}},{"$f":"IFERROR('MMA Rev-Exp Region 9'!$AS$20/'MMA Rev-Exp Region 9'!$AS$9, 0)","v":{"v":0,"d":"$0.00"}},{"$f":"IFERROR('MMA Rev-Exp Region 9'!$AT$20/'MMA Rev-Exp Region 9'!$AT$9, 0)","v":{"v":0,"d":"$0.00"}},{"$f":"IFERROR('MMA Rev-Exp Region 9'!$AU$20/'MMA Rev-Exp Region 9'!$AU$9, 0)","v":{"v":0,"d":"$0.00"}}]
["MMA",null,null,2016,"2016-12-31","Q4","2017-12-31","Region 9","Operating Expense","Medical Benefits Expense","Hospital Services",2.2,"Ending IBNP for Inpatient Hospital Services",{"$f":"IFERROR('MMA Rev-Exp Region 9'!$AK$21/'MMA Rev-Exp Region 9'!$AK$9, 0)","v":{"v":0,"d":"$0.00"}},{"$f":"IFERROR('MMA Rev-Exp Region 9'!$AL$21/'MMA Rev-Exp Region 9'!$AL$9, 0)","v":{"v":0,"d":"$0.00"}},{"$f":"IFERROR('MMA Rev-Exp Region 9'!$AM$21/'MMA Rev-Exp Region 9'!$AM$9, 0)","v":{"v":0,"d":"$0.00"}},{"$f":"IFERROR('MMA Rev-Exp Region 9'!$AN$21/'MMA Rev-Exp Region 9'!$AN$9, 0)","v":{"v":0,"d":"$0.00"}},{"$f":"IFERROR('MMA Rev-Exp Region 9'!$AO$21/'MMA Rev-Exp Region 9'!$AO$9, 0)","v":{"v":0,"d":"$0.00"}},{"$f":"IFERROR('MMA Rev-Exp Region 9'!$AP$21/'MMA Rev-Exp Region 9'!$AP$9, 0)","v":{"v":0,"d":"$0.00"}},{"$f":"IFERROR('MMA Rev-Exp Region 9'!$AQ$21/'MMA Rev-Exp Region 9'!$AQ$9, 0)","v":{"v":0,"d":"$0.00"}},{"$f":"IFERROR('MMA Rev-Exp Region 9'!$AR$21/'MMA Rev-Exp Region 9'!$AR$9, 0)","v":{"v":0,"d":"$0.00"}},{"$f":"IFERROR('MMA Rev-Exp Region 9'!$AS$21/'MMA Rev-Exp Region 9'!$AS$9, 0)","v":{"v":0,"d":"$0.00"}},{"$f":"IFERROR('MMA Rev-Exp Region 9'!$AT$21/'MMA Rev-Exp Region 9'!$AT$9, 0)","v":{"v":0,"d":"$0.00"}},{"$f":"IFERROR('MMA Rev-Exp Region 9'!$AU$21/'MMA Rev-Exp Region 9'!$AU$9, 0)","v":{"v":0,"d":"$0.00"}}]
["MMA",null,null,2016,"2016-12-31","Q4","2017-12-31","Region 9","Operating Expense","Medical Benefits Expense","Hospital Services",2.3,"Outpatient FFS: ER",{"$f":"IFERROR('MMA Rev-Exp Region 9'!$AK$22/'MMA Rev-Exp Region 9'!$AK$9, 0)","v":{"v":0,"d":"$0.00"}},{"$f":"IFERROR('MMA Rev-Exp Region 9'!$AL$22/'MMA Rev-Exp Region 9'!$AL$9, 0)","v":{"v":0,"d":"$0.00"}},{"$f":"IFERROR('MMA Rev-Exp Region 9'!$AM$22/'MMA Rev-Exp Region 9'!$AM$9, 0)","v":{"v":0,"d":"$0.00"}},{"$f":"IFERROR('MMA Rev-Exp Region 9'!$AN$22/'MMA Rev-Exp Region 9'!$AN$9, 0)","v":{"v":0,"d":"$0.00"}},{"$f":"IFERROR('MMA Rev-Exp Region 9'!$AO$22/'MMA Rev-Exp Region 9'!$AO$9, 0)","v":{"v":0,"d":"$0.00"}},{"$f":"IFERROR('MMA Rev-Exp Region 9'!$AP$22/'MMA Rev-Exp Region 9'!$AP$9, 0)","v":{"v":0,"d":"$0.00"}},{"$f":"IFERROR('MMA Rev-Exp Region 9'!$AQ$22/'MMA Rev-Exp Region 9'!$AQ$9, 0)","v":{"v":0,"d":"$0.00"}},{"$f":"IFERROR('MMA Rev-Exp Region 9'!$AR$22/'MMA Rev-Exp Region 9'!$AR$9, 0)","v":{"v":0,"d":"$0.00"}},{"$f":"IFERROR('MMA Rev-Exp Region 9'!$AS$22/'MMA Rev-Exp Region 9'!$AS$9, 0)","v":{"v":0,"d":"$0.00"}},{"$f":"IFERROR('MMA Rev-Exp Region 9'!$AT$22/'MMA Rev-Exp Region 9'!$AT$9, 0)","v":{"v":0,"d":"$0.00"}},{"$f":"IFERROR('MMA Rev-Exp Region 9'!$AU$22/'MMA Rev-Exp Region 9'!$AU$9, 0)","v":{"v":0,"d":"$0.00"}}]
["MMA",null,null,2016,"2016-12-31","Q4","2017-12-31","Region 9","Operating Expense","Medical Benefits Expense","Hospital Services",2.4,"Outpatient FFS: Other than ER ",{"$f":"IFERROR('MMA Rev-Exp Region 9'!$AK$23/'MMA Rev-Exp Region 9'!$AK$9, 0)","v":{"v":0,"d":"$0.00"}},{"$f":"IFERROR('MMA Rev-Exp Region 9'!$AL$23/'MMA Rev-Exp Region 9'!$AL$9, 0)","v":{"v":0,"d":"$0.00"}},{"$f":"IFERROR('MMA Rev-Exp Region 9'!$AM$23/'MMA Rev-Exp Region 9'!$AM$9, 0)","v":{"v":0,"d":"$0.00"}},{"$f":"IFERROR('MMA Rev-Exp Region 9'!$AN$23/'MMA Rev-Exp Region 9'!$AN$9, 0)","v":{"v":0,"d":"$0.00"}},{"$f":"IFERROR('MMA Rev-Exp Region 9'!$AO$23/'MMA Rev-Exp Region 9'!$AO$9, 0)","v":{"v":0,"d":"$0.00"}},{"$f":"IFERROR('MMA Rev-Exp Region 9'!$AP$23/'MMA Rev-Exp Region 9'!$AP$9, 0)","v":{"v":0,"d":"$0.00"}},{"$f":"IFERROR('MMA Rev-Exp Region 9'!$AQ$23/'MMA Rev-Exp Region 9'!$AQ$9, 0)","v":{"v":0,"d":"$0.00"}},{"$f":"IFERROR('MMA Rev-Exp Region 9'!$AR$23/'MMA Rev-Exp Region 9'!$AR$9, 0)","v":{"v":0,"d":"$0.00"}},{"$f":"IFERROR('MMA Rev-Exp Region 9'!$AS$23/'MMA Rev-Exp Region 9'!$AS$9, 0)","v":{"v":0,"d":"$0.00"}},{"$f":"IFERROR('MMA Rev-Exp Region 9'!$AT$23/'MMA Rev-Exp Region 9'!$AT$9, 0)","v":{"v":0,"d":"$0.00"}},{"$f":"IFERROR('MMA Rev-Exp Region 9'!$AU$23/'MMA Rev-Exp Region 9'!$AU$9, 0)","v":{"v":0,"d":"$0.00"}}]
["MMA",null,null,2016,"2016-12-31","Q4","2017-12-31","Region 9","Operating Expense","Medical Benefits Expense","Hospital Services",2.5,"Ending IBNP for Outpatient Hospital Services",{"$f":"IFERROR('MMA Rev-Exp Region 9'!$AK$24/'MMA Rev-Exp Region 9'!$AK$9, 0)","v":{"v":0,"d":"$0.00"}},{"$f":"IFERROR('MMA Rev-Exp Region 9'!$AL$24/'MMA Rev-Exp Region 9'!$AL$9, 0)","v":{"v":0,"d":"$0.00"}},{"$f":"IFERROR('MMA Rev-Exp Region 9'!$AM$24/'MMA Rev-Exp Region 9'!$AM$9, 0)","v":{"v":0,"d":"$0.00"}},{"$f":"IFERROR('MMA Rev-Exp Region 9'!$AN$24/'MMA Rev-Exp Region 9'!$AN$9, 0)","v":{"v":0,"d":"$0.00"}},{"$f":"IFERROR('MMA Rev-Exp Region 9'!$AO$24/'MMA Rev-Exp Region 9'!$AO$9, 0)","v":{"v":0,"d":"$0.00"}},{"$f":"IFERROR('MMA Rev-Exp Region 9'!$AP$24/'MMA Rev-Exp Region 9'!$AP$9, 0)","v":{"v":0,"d":"$0.00"}},{"$f":"IFERROR('MMA Rev-Exp Region 9'!$AQ$24/'MMA Rev-Exp Region 9'!$AQ$9, 0)","v":{"v":0,"d":"$0.00"}},{"$f":"IFERROR('MMA Rev-Exp Region 9'!$AR$24/'MMA Rev-Exp Region 9'!$AR$9, 0)","v":{"v":0,"d":"$0.00"}},{"$f":"IFERROR('MMA Rev-Exp Region 9'!$AS$24/'MMA Rev-Exp Region 9'!$AS$9, 0)","v":{"v":0,"d":"$0.00"}},{"$f":"IFERROR('MMA Rev-Exp Region 9'!$AT$24/'MMA Rev-Exp Region 9'!$AT$9, 0)","v":{"v":0,"d":"$0.00"}},{"$f":"IFERROR('MMA Rev-Exp Region 9'!$AU$24/'MMA Rev-Exp Region 9'!$AU$9, 0)","v":{"v":0,"d":"$0.00"}}]
["MMA",null,null,2016,"2016-12-31","Q4","2017-12-31","Region 9","Operating Expense","Medical Benefits Expense","Hospital Services","2.6","Subcapitated Hospital Services",{"$f":"IFERROR('MMA Rev-Exp Region 9'!$AK$25/'MMA Rev-Exp Region 9'!$AK$9, 0)","v":{"v":0,"d":"$0.00"}},{"$f":"IFERROR('MMA Rev-Exp Region 9'!$AL$25/'MMA Rev-Exp Region 9'!$AL$9, 0)","v":{"v":0,"d":"$0.00"}},{"$f":"IFERROR('MMA Rev-Exp Region 9'!$AM$25/'MMA Rev-Exp Region 9'!$AM$9, 0)","v":{"v":0,"d":"$0.00"}},{"$f":"IFERROR('MMA Rev-Exp Region 9'!$AN$25/'MMA Rev-Exp Region 9'!$AN$9, 0)","v":{"v":0,"d":"$0.00"}},{"$f":"IFERROR('MMA Rev-Exp Region 9'!$AO$25/'MMA Rev-Exp Region 9'!$AO$9, 0)","v":{"v":0,"d":"$0.00"}},{"$f":"IFERROR('MMA Rev-Exp Region 9'!$AP$25/'MMA Rev-Exp Region 9'!$AP$9, 0)","v":{"v":0,"d":"$0.00"}},{"$f":"IFERROR('MMA Rev-Exp Region 9'!$AQ$25/'MMA Rev-Exp Region 9'!$AQ$9, 0)","v":{"v":0,"d":"$0.00"}},{"$f":"IFERROR('MMA Rev-Exp Region 9'!$AR$25/'MMA Rev-Exp Region 9'!$AR$9, 0)","v":{"v":0,"d":"$0.00"}},{"$f":"IFERROR('MMA Rev-Exp Region 9'!$AS$25/'MMA Rev-Exp Region 9'!$AS$9, 0)","v":{"v":0,"d":"$0.00"}},{"$f":"IFERROR('MMA Rev-Exp Region 9'!$AT$25/'MMA Rev-Exp Region 9'!$AT$9, 0)","v":{"v":0,"d":"$0.00"}},{"$f":"IFERROR('MMA Rev-Exp Region 9'!$AU$25/'MMA Rev-Exp Region 9'!$AU$9, 0)","v":{"v":0,"d":"$0.00"}}]
["MMA",null,null,2016,"2016-12-31","Q4","2017-12-31","Region 9","Operating Expense","Medical Benefits Expense","Hospital Services","2.7","Hospital Settlements",{"$f":"IFERROR('MMA Rev-Exp Region 9'!$AK$26/'MMA Rev-Exp Region 9'!$AK$9, 0)","v":{"v":0,"d":"$0.00"}},{"$f":"IFERROR('MMA Rev-Exp Region 9'!$AL$26/'MMA Rev-Exp Region 9'!$AL$9, 0)","v":{"v":0,"d":"$0.00"}},{"$f":"IFERROR('MMA Rev-Exp Region 9'!$AM$26/'MMA Rev-Exp Region 9'!$AM$9, 0)","v":{"v":0,"d":"$0.00"}},{"$f":"IFERROR('MMA Rev-Exp Region 9'!$AN$26/'MMA Rev-Exp Region 9'!$AN$9, 0)","v":{"v":0,"d":"$0.00"}},{"$f":"IFERROR('MMA Rev-Exp Region 9'!$AO$26/'MMA Rev-Exp Region 9'!$AO$9, 0)","v":{"v":0,"d":"$0.00"}},{"$f":"IFERROR('MMA Rev-Exp Region 9'!$AP$26/'MMA Rev-Exp Region 9'!$AP$9, 0)","v":{"v":0,"d":"$0.00"}},{"$f":"IFERROR('MMA Rev-Exp Region 9'!$AQ$26/'MMA Rev-Exp Region 9'!$AQ$9, 0)","v":{"v":0,"d":"$0.00"}},{"$f":"IFERROR('MMA Rev-Exp Region 9'!$AR$26/'MMA Rev-Exp Region 9'!$AR$9, 0)","v":{"v":0,"d":"$0.00"}},{"$f":"IFERROR('MMA Rev-Exp Region 9'!$AS$26/'MMA Rev-Exp Region 9'!$AS$9, 0)","v":{"v":0,"d":"$0.00"}},{"$f":"IFERROR('MMA Rev-Exp Region 9'!$AT$26/'MMA Rev-Exp Region 9'!$AT$9, 0)","v":{"v":0,"d":"$0.00"}},{"$f":"IFERROR('MMA Rev-Exp Region 9'!$AU$26/'MMA Rev-Exp Region 9'!$AU$9, 0)","v":{"v":0,"d":"$0.00"}}]
["MMA",null,null,2016,"2016-12-31","Q4","2017-12-31","Region 9","Operating Expense","Medical Benefits Expense","Hospital Services","2.7.1","Transplant Services",{"$f":"IFERROR('MMA Rev-Exp Region 9'!$AK$27/'MMA Rev-Exp Region 9'!$AK$9, 0)","v":{"v":0,"d":"$0.00"}},{"$f":"IFERROR('MMA Rev-Exp Region 9'!$AL$27/'MMA Rev-Exp Region 9'!$AL$9, 0)","v":{"v":0,"d":"$0.00"}},{"$f":"IFERROR('MMA Rev-Exp Region 9'!$AM$27/'MMA Rev-Exp Region 9'!$AM$9, 0)","v":{"v":0,"d":"$0.00"}},{"$f":"IFERROR('MMA Rev-Exp Region 9'!$AN$27/'MMA Rev-Exp Region 9'!$AN$9, 0)","v":{"v":0,"d":"$0.00"}},{"$f":"IFERROR('MMA Rev-Exp Region 9'!$AO$27/'MMA Rev-Exp Region 9'!$AO$9, 0)","v":{"v":0,"d":"$0.00"}},{"$f":"IFERROR('MMA Rev-Exp Region 9'!$AP$27/'MMA Rev-Exp Region 9'!$AP$9, 0)","v":{"v":0,"d":"$0.00"}},{"$f":"IFERROR('MMA Rev-Exp Region 9'!$AQ$27/'MMA Rev-Exp Region 9'!$AQ$9, 0)","v":{"v":0,"d":"$0.00"}},{"$f":"IFERROR('MMA Rev-Exp Region 9'!$AR$27/'MMA Rev-Exp Region 9'!$AR$9, 0)","v":{"v":0,"d":"$0.00"}},{"$f":"IFERROR('MMA Rev-Exp Region 9'!$AS$27/'MMA Rev-Exp Region 9'!$AS$9, 0)","v":{"v":0,"d":"$0.00"}},{"$f":"IFERROR('MMA Rev-Exp Region 9'!$AT$27/'MMA Rev-Exp Region 9'!$AT$9, 0)","v":{"v":0,"d":"$0.00"}},{"$f":"IFERROR('MMA Rev-Exp Region 9'!$AU$27/'MMA Rev-Exp Region 9'!$AU$9, 0)","v":{"v":0,"d":"$0.00"}}]
["MMA",null,null,2016,"2016-12-31","Q4","2017-12-31","Region 9","Operating Expense","Medical Benefits Expense","Professional Services",3.1,"Primary Care FFS",{"$f":"IFERROR('MMA Rev-Exp Region 9'!$AK$29/'MMA Rev-Exp Region 9'!$AK$9, 0)","v":{"v":0,"d":"$0.00"}},{"$f":"IFERROR('MMA Rev-Exp Region 9'!$AL$29/'MMA Rev-Exp Region 9'!$AL$9, 0)","v":{"v":0,"d":"$0.00"}},{"$f":"IFERROR('MMA Rev-Exp Region 9'!$AM$29/'MMA Rev-Exp Region 9'!$AM$9, 0)","v":{"v":0,"d":"$0.00"}},{"$f":"IFERROR('MMA Rev-Exp Region 9'!$AN$29/'MMA Rev-Exp Region 9'!$AN$9, 0)","v":{"v":0,"d":"$0.00"}},{"$f":"IFERROR('MMA Rev-Exp Region 9'!$AO$29/'MMA Rev-Exp Region 9'!$AO$9, 0)","v":{"v":0,"d":"$0.00"}},{"$f":"IFERROR('MMA Rev-Exp Region 9'!$AP$29/'MMA Rev-Exp Region 9'!$AP$9, 0)","v":{"v":0,"d":"$0.00"}},{"$f":"IFERROR('MMA Rev-Exp Region 9'!$AQ$29/'MMA Rev-Exp Region 9'!$AQ$9, 0)","v":{"v":0,"d":"$0.00"}},{"$f":"IFERROR('MMA Rev-Exp Region 9'!$AR$29/'MMA Rev-Exp Region 9'!$AR$9, 0)","v":{"v":0,"d":"$0.00"}},{"$f":"IFERROR('MMA Rev-Exp Region 9'!$AS$29/'MMA Rev-Exp Region 9'!$AS$9, 0)","v":{"v":0,"d":"$0.00"}},{"$f":"IFERROR('MMA Rev-Exp Region 9'!$AT$29/'MMA Rev-Exp Region 9'!$AT$9, 0)","v":{"v":0,"d":"$0.00"}},{"$f":"IFERROR('MMA Rev-Exp Region 9'!$AU$29/'MMA Rev-Exp Region 9'!$AU$9, 0)","v":{"v":0,"d":"$0.00"}}]
["MMA",null,null,2016,"2016-12-31","Q4","2017-12-31","Region 9","Operating Expense","Medical Benefits Expense","Professional Services",3.2,"Specialty Care FFS",{"$f":"IFERROR('MMA Rev-Exp Region 9'!$AK$30/'MMA Rev-Exp Region 9'!$AK$9, 0)","v":{"v":0,"d":"$0.00"}},{"$f":"IFERROR('MMA Rev-Exp Region 9'!$AL$30/'MMA Rev-Exp Region 9'!$AL$9, 0)","v":{"v":0,"d":"$0.00"}},{"$f":"IFERROR('MMA Rev-Exp Region 9'!$AM$30/'MMA Rev-Exp Region 9'!$AM$9, 0)","v":{"v":0,"d":"$0.00"}},{"$f":"IFERROR('MMA Rev-Exp Region 9'!$AN$30/'MMA Rev-Exp Region 9'!$AN$9, 0)","v":{"v":0,"d":"$0.00"}},{"$f":"IFERROR('MMA Rev-Exp Region 9'!$AO$30/'MMA Rev-Exp Region 9'!$AO$9, 0)","v":{"v":0,"d":"$0.00"}},{"$f":"IFERROR('MMA Rev-Exp Region 9'!$AP$30/'MMA Rev-Exp Region 9'!$AP$9, 0)","v":{"v":0,"d":"$0.00"}},{"$f":"IFERROR('MMA Rev-Exp Region 9'!$AQ$30/'MMA Rev-Exp Region 9'!$AQ$9, 0)","v":{"v":0,"d":"$0.00"}},{"$f":"IFERROR('MMA Rev-Exp Region 9'!$AR$30/'MMA Rev-Exp Region 9'!$AR$9, 0)","v":{"v":0,"d":"$0.00"}},{"$f":"IFERROR('MMA Rev-Exp Region 9'!$AS$30/'MMA Rev-Exp Region 9'!$AS$9, 0)","v":{"v":0,"d":"$0.00"}},{"$f":"IFERROR('MMA Rev-Exp Region 9'!$AT$30/'MMA Rev-Exp Region 9'!$AT$9, 0)","v":{"v":0,"d":"$0.00"}},{"$f":"IFERROR('MMA Rev-Exp Region 9'!$AU$30/'MMA Rev-Exp Region 9'!$AU$9, 0)","v":{"v":0,"d":"$0.00"}}]
["MMA",null,null,2016,"2016-12-31","Q4","2017-12-31","Region 9","Operating Expense","Medical Benefits Expense","Professional Services",3.3,"Other Professional FFS",{"$f":"IFERROR('MMA Rev-Exp Region 9'!$AK$31/'MMA Rev-Exp Region 9'!$AK$9, 0)","v":{"v":0,"d":"$0.00"}},{"$f":"IFERROR('MMA Rev-Exp Region 9'!$AL$31/'MMA Rev-Exp Region 9'!$AL$9, 0)","v":{"v":0,"d":"$0.00"}},{"$f":"IFERROR('MMA Rev-Exp Region 9'!$AM$31/'MMA Rev-Exp Region 9'!$AM$9, 0)","v":{"v":0,"d":"$0.00"}},{"$f":"IFERROR('MMA Rev-Exp Region 9'!$AN$31/'MMA Rev-Exp Region 9'!$AN$9, 0)","v":{"v":0,"d":"$0.00"}},{"$f":"IFERROR('MMA Rev-Exp Region 9'!$AO$31/'MMA Rev-Exp Region 9'!$AO$9, 0)","v":{"v":0,"d":"$0.00"}},{"$f":"IFERROR('MMA Rev-Exp Region 9'!$AP$31/'MMA Rev-Exp Region 9'!$AP$9, 0)","v":{"v":0,"d":"$0.00"}},{"$f":"IFERROR('MMA Rev-Exp Region 9'!$AQ$31/'MMA Rev-Exp Region 9'!$AQ$9, 0)","v":{"v":0,"d":"$0.00"}},{"$f":"IFERROR('MMA Rev-Exp Region 9'!$AR$31/'MMA Rev-Exp Region 9'!$AR$9, 0)","v":{"v":0,"d":"$0.00"}},{"$f":"IFERROR('MMA Rev-Exp Region 9'!$AS$31/'MMA Rev-Exp Region 9'!$AS$9, 0)","v":{"v":0,"d":"$0.00"}},{"$f":"IFERROR('MMA Rev-Exp Region 9'!$AT$31/'MMA Rev-Exp Region 9'!$AT$9, 0)","v":{"v":0,"d":"$0.00"}},{"$f":"IFERROR('MMA Rev-Exp Region 9'!$AU$31/'MMA Rev-Exp Region 9'!$AU$9, 0)","v":{"v":0,"d":"$0.00"}}]
["MMA",null,null,2016,"2016-12-31","Q4","2017-12-31","Region 9","Operating Expense","Medical Benefits Expense","Professional Services","3.4","§ 1202 PCP Payments to providers",{"$f":"IFERROR('MMA Rev-Exp Region 9'!$AK$32/'MMA Rev-Exp Region 9'!$AK$9, 0)","v":{"v":0,"d":"$0.00"}},{"$f":"IFERROR('MMA Rev-Exp Region 9'!$AL$32/'MMA Rev-Exp Region 9'!$AL$9, 0)","v":{"v":0,"d":"$0.00"}},{"$f":"IFERROR('MMA Rev-Exp Region 9'!$AM$32/'MMA Rev-Exp Region 9'!$AM$9, 0)","v":{"v":0,"d":"$0.00"}},{"$f":"IFERROR('MMA Rev-Exp Region 9'!$AN$32/'MMA Rev-Exp Region 9'!$AN$9, 0)","v":{"v":0,"d":"$0.00"}},{"$f":"IFERROR('MMA Rev-Exp Region 9'!$AO$32/'MMA Rev-Exp Region 9'!$AO$9, 0)","v":{"v":0,"d":"$0.00"}},{"$f":"IFERROR('MMA Rev-Exp Region 9'!$AP$32/'MMA Rev-Exp Region 9'!$AP$9, 0)","v":{"v":0,"d":"$0.00"}},{"$f":"IFERROR('MMA Rev-Exp Region 9'!$AQ$32/'MMA Rev-Exp Region 9'!$AQ$9, 0)","v":{"v":0,"d":"$0.00"}},{"$f":"IFERROR('MMA Rev-Exp Region 9'!$AR$32/'MMA Rev-Exp Region 9'!$AR$9, 0)","v":{"v":0,"d":"$0.00"}},{"$f":"IFERROR('MMA Rev-Exp Region 9'!$AS$32/'MMA Rev-Exp Region 9'!$AS$9, 0)","v":{"v":0,"d":"$0.00"}},{"$f":"IFERROR('MMA Rev-Exp Region 9'!$AT$32/'MMA Rev-Exp Region 9'!$AT$9, 0)","v":{"v":0,"d":"$0.00"}},{"$f":"IFERROR('MMA Rev-Exp Region 9'!$AU$32/'MMA Rev-Exp Region 9'!$AU$9, 0)","v":{"v":0,"d":"$0.00"}}]
["MMA",null,null,2016,"2016-12-31","Q4","2017-12-31","Region 9","Operating Expense","Medical Benefits Expense","Professional Services","3.5","Subcapitated Professional Services",{"$f":"IFERROR('MMA Rev-Exp Region 9'!$AK$33/'MMA Rev-Exp Region 9'!$AK$9, 0)","v":{"v":0,"d":"$0.00"}},{"$f":"IFERROR('MMA Rev-Exp Region 9'!$AL$33/'MMA Rev-Exp Region 9'!$AL$9, 0)","v":{"v":0,"d":"$0.00"}},{"$f":"IFERROR('MMA Rev-Exp Region 9'!$AM$33/'MMA Rev-Exp Region 9'!$AM$9, 0)","v":{"v":0,"d":"$0.00"}},{"$f":"IFERROR('MMA Rev-Exp Region 9'!$AN$33/'MMA Rev-Exp Region 9'!$AN$9, 0)","v":{"v":0,"d":"$0.00"}},{"$f":"IFERROR('MMA Rev-Exp Region 9'!$AO$33/'MMA Rev-Exp Region 9'!$AO$9, 0)","v":{"v":0,"d":"$0.00"}},{"$f":"IFERROR('MMA Rev-Exp Region 9'!$AP$33/'MMA Rev-Exp Region 9'!$AP$9, 0)","v":{"v":0,"d":"$0.00"}},{"$f":"IFERROR('MMA Rev-Exp Region 9'!$AQ$33/'MMA Rev-Exp Region 9'!$AQ$9, 0)","v":{"v":0,"d":"$0.00"}},{"$f":"IFERROR('MMA Rev-Exp Region 9'!$AR$33/'MMA Rev-Exp Region 9'!$AR$9, 0)","v":{"v":0,"d":"$0.00"}},{"$f":"IFERROR('MMA Rev-Exp Region 9'!$AS$33/'MMA Rev-Exp Region 9'!$AS$9, 0)","v":{"v":0,"d":"$0.00"}},{"$f":"IFERROR('MMA Rev-Exp Region 9'!$AT$33/'MMA Rev-Exp Region 9'!$AT$9, 0)","v":{"v":0,"d":"$0.00"}},{"$f":"IFERROR('MMA Rev-Exp Region 9'!$AU$33/'MMA Rev-Exp Region 9'!$AU$9, 0)","v":{"v":0,"d":"$0.00"}}]
["MMA",null,null,2016,"2016-12-31","Q4","2017-12-31","Region 9","Operating Expense","Medical Benefits Expense","Professional Services","3.6","Ending IBNP for Professional Services",{"$f":"IFERROR('MMA Rev-Exp Region 9'!$AK$34/'MMA Rev-Exp Region 9'!$AK$9, 0)","v":{"v":0,"d":"$0.00"}},{"$f":"IFERROR('MMA Rev-Exp Region 9'!$AL$34/'MMA Rev-Exp Region 9'!$AL$9, 0)","v":{"v":0,"d":"$0.00"}},{"$f":"IFERROR('MMA Rev-Exp Region 9'!$AM$34/'MMA Rev-Exp Region 9'!$AM$9, 0)","v":{"v":0,"d":"$0.00"}},{"$f":"IFERROR('MMA Rev-Exp Region 9'!$AN$34/'MMA Rev-Exp Region 9'!$AN$9, 0)","v":{"v":0,"d":"$0.00"}},{"$f":"IFERROR('MMA Rev-Exp Region 9'!$AO$34/'MMA Rev-Exp Region 9'!$AO$9, 0)","v":{"v":0,"d":"$0.00"}},{"$f":"IFERROR('MMA Rev-Exp Region 9'!$AP$34/'MMA Rev-Exp Region 9'!$AP$9, 0)","v":{"v":0,"d":"$0.00"}},{"$f":"IFERROR('MMA Rev-Exp Region 9'!$AQ$34/'MMA Rev-Exp Region 9'!$AQ$9, 0)","v":{"v":0,"d":"$0.00"}},{"$f":"IFERROR('MMA Rev-Exp Region 9'!$AR$34/'MMA Rev-Exp Region 9'!$AR$9, 0)","v":{"v":0,"d":"$0.00"}},{"$f":"IFERROR('MMA Rev-Exp Region 9'!$AS$34/'MMA Rev-Exp Region 9'!$AS$9, 0)","v":{"v":0,"d":"$0.00"}},{"$f":"IFERROR('MMA Rev-Exp Region 9'!$AT$34/'MMA Rev-Exp Region 9'!$AT$9, 0)","v":{"v":0,"d":"$0.00"}},{"$f":"IFERROR('MMA Rev-Exp Region 9'!$AU$34/'MMA Rev-Exp Region 9'!$AU$9, 0)","v":{"v":0,"d":"$0.00"}}]
["MMA",null,null,2016,"2016-12-31","Q4","2017-12-31","Region 9","Operating Expense","Medical Benefits Expense","Professional Services","3.7","Professional Services Settlements",{"$f":"IFERROR('MMA Rev-Exp Region 9'!$AK$35/'MMA Rev-Exp Region 9'!$AK$9, 0)","v":{"v":0,"d":"$0.00"}},{"$f":"IFERROR('MMA Rev-Exp Region 9'!$AL$35/'MMA Rev-Exp Region 9'!$AL$9, 0)","v":{"v":0,"d":"$0.00"}},{"$f":"IFERROR('MMA Rev-Exp Region 9'!$AM$35/'MMA Rev-Exp Region 9'!$AM$9, 0)","v":{"v":0,"d":"$0.00"}},{"$f":"IFERROR('MMA Rev-Exp Region 9'!$AN$35/'MMA Rev-Exp Region 9'!$AN$9, 0)","v":{"v":0,"d":"$0.00"}},{"$f":"IFERROR('MMA Rev-Exp Region 9'!$AO$35/'MMA Rev-Exp Region 9'!$AO$9, 0)","v":{"v":0,"d":"$0.00"}},{"$f":"IFERROR('MMA Rev-Exp Region 9'!$AP$35/'MMA Rev-Exp Region 9'!$AP$9, 0)","v":{"v":0,"d":"$0.00"}},{"$f":"IFERROR('MMA Rev-Exp Region 9'!$AQ$35/'MMA Rev-Exp Region 9'!$AQ$9, 0)","v":{"v":0,"d":"$0.00"}},{"$f":"IFERROR('MMA Rev-Exp Region 9'!$AR$35/'MMA Rev-Exp Region 9'!$AR$9, 0)","v":{"v":0,"d":"$0.00"}},{"$f":"IFERROR('MMA Rev-Exp Region 9'!$AS$35/'MMA Rev-Exp Region 9'!$AS$9, 0)","v":{"v":0,"d":"$0.00"}},{"$f":"IFERROR('MMA Rev-Exp Region 9'!$AT$35/'MMA Rev-Exp Region 9'!$AT$9, 0)","v":{"v":0,"d":"$0.00"}},{"$f":"IFERROR('MMA Rev-Exp Region 9'!$AU$35/'MMA Rev-Exp Region 9'!$AU$9, 0)","v":{"v":0,"d":"$0.00"}}]
["MMA",null,null,2016,"2016-12-31","Q4","2017-12-31","Region 9","Operating Expense","Medical Benefits Expense","Maternity Services","4.1.1","Maternity Services",{"$f":"IFERROR('MMA Rev-Exp Region 9'!$AK$37/'MMA Rev-Exp Region 9'!$AK$9, 0)","v":{"v":0,"d":"$0.00"}},{"$f":"IFERROR('MMA Rev-Exp Region 9'!$AL$37/'MMA Rev-Exp Region 9'!$AL$9, 0)","v":{"v":0,"d":"$0.00"}},{"$f":"IFERROR('MMA Rev-Exp Region 9'!$AM$37/'MMA Rev-Exp Region 9'!$AM$9, 0)","v":{"v":0,"d":"$0.00"}},{"$f":"IFERROR('MMA Rev-Exp Region 9'!$AN$37/'MMA Rev-Exp Region 9'!$AN$9, 0)","v":{"v":0,"d":"$0.00"}},{"$f":"IFERROR('MMA Rev-Exp Region 9'!$AO$37/'MMA Rev-Exp Region 9'!$AO$9, 0)","v":{"v":0,"d":"$0.00"}},{"$f":"IFERROR('MMA Rev-Exp Region 9'!$AP$37/'MMA Rev-Exp Region 9'!$AP$9, 0)","v":{"v":0,"d":"$0.00"}},{"$f":"IFERROR('MMA Rev-Exp Region 9'!$AQ$37/'MMA Rev-Exp Region 9'!$AQ$9, 0)","v":{"v":0,"d":"$0.00"}},{"$f":"IFERROR('MMA Rev-Exp Region 9'!$AR$37/'MMA Rev-Exp Region 9'!$AR$9, 0)","v":{"v":0,"d":"$0.00"}},{"$f":"IFERROR('MMA Rev-Exp Region 9'!$AS$37/'MMA Rev-Exp Region 9'!$AS$9, 0)","v":{"v":0,"d":"$0.00"}},{"$f":"IFERROR('MMA Rev-Exp Region 9'!$AT$37/'MMA Rev-Exp Region 9'!$AT$9, 0)","v":{"v":0,"d":"$0.00"}},{"$f":"IFERROR('MMA Rev-Exp Region 9'!$AU$37/'MMA Rev-Exp Region 9'!$AU$9, 0)","v":{"v":0,"d":"$0.00"}}]
["MMA",null,null,2016,"2016-12-31","Q4","2017-12-31","Region 9","Operating Expense","Medical Benefits Expense","Maternity Services","4.2.1","Ending IBNP for Maternity Services",{"$f":"IFERROR('MMA Rev-Exp Region 9'!$AK$38/'MMA Rev-Exp Region 9'!$AK$9, 0)","v":{"v":0,"d":"$0.00"}},{"$f":"IFERROR('MMA Rev-Exp Region 9'!$AL$38/'MMA Rev-Exp Region 9'!$AL$9, 0)","v":{"v":0,"d":"$0.00"}},{"$f":"IFERROR('MMA Rev-Exp Region 9'!$AM$38/'MMA Rev-Exp Region 9'!$AM$9, 0)","v":{"v":0,"d":"$0.00"}},{"$f":"IFERROR('MMA Rev-Exp Region 9'!$AN$38/'MMA Rev-Exp Region 9'!$AN$9, 0)","v":{"v":0,"d":"$0.00"}},{"$f":"IFERROR('MMA Rev-Exp Region 9'!$AO$38/'MMA Rev-Exp Region 9'!$AO$9, 0)","v":{"v":0,"d":"$0.00"}},{"$f":"IFERROR('MMA Rev-Exp Region 9'!$AP$38/'MMA Rev-Exp Region 9'!$AP$9, 0)","v":{"v":0,"d":"$0.00"}},{"$f":"IFERROR('MMA Rev-Exp Region 9'!$AQ$38/'MMA Rev-Exp Region 9'!$AQ$9, 0)","v":{"v":0,"d":"$0.00"}},{"$f":"IFERROR('MMA Rev-Exp Region 9'!$AR$38/'MMA Rev-Exp Region 9'!$AR$9, 0)","v":{"v":0,"d":"$0.00"}},{"$f":"IFERROR('MMA Rev-Exp Region 9'!$AS$38/'MMA Rev-Exp Region 9'!$AS$9, 0)","v":{"v":0,"d":"$0.00"}},{"$f":"IFERROR('MMA Rev-Exp Region 9'!$AT$38/'MMA Rev-Exp Region 9'!$AT$9, 0)","v":{"v":0,"d":"$0.00"}},{"$f":"IFERROR('MMA Rev-Exp Region 9'!$AU$38/'MMA Rev-Exp Region 9'!$AU$9, 0)","v":{"v":0,"d":"$0.00"}}]
["MMA",null,null,2016,"2016-12-31","Q4","2017-12-31","Region 9","Operating Expense","Medical Benefits Expense","Maternity Services","4.3.1","Maternity Settlements",{"$f":"IFERROR('MMA Rev-Exp Region 9'!$AK$39/'MMA Rev-Exp Region 9'!$AK$9, 0)","v":{"v":0,"d":"$0.00"}},{"$f":"IFERROR('MMA Rev-Exp Region 9'!$AL$39/'MMA Rev-Exp Region 9'!$AL$9, 0)","v":{"v":0,"d":"$0.00"}},{"$f":"IFERROR('MMA Rev-Exp Region 9'!$AM$39/'MMA Rev-Exp Region 9'!$AM$9, 0)","v":{"v":0,"d":"$0.00"}},{"$f":"IFERROR('MMA Rev-Exp Region 9'!$AN$39/'MMA Rev-Exp Region 9'!$AN$9, 0)","v":{"v":0,"d":"$0.00"}},{"$f":"IFERROR('MMA Rev-Exp Region 9'!$AO$39/'MMA Rev-Exp Region 9'!$AO$9, 0)","v":{"v":0,"d":"$0.00"}},{"$f":"IFERROR('MMA Rev-Exp Region 9'!$AP$39/'MMA Rev-Exp Region 9'!$AP$9, 0)","v":{"v":0,"d":"$0.00"}},{"$f":"IFERROR('MMA Rev-Exp Region 9'!$AQ$39/'MMA Rev-Exp Region 9'!$AQ$9, 0)","v":{"v":0,"d":"$0.00"}},{"$f":"IFERROR('MMA Rev-Exp Region 9'!$AR$39/'MMA Rev-Exp Region 9'!$AR$9, 0)","v":{"v":0,"d":"$0.00"}},{"$f":"IFERROR('MMA Rev-Exp Region 9'!$AS$39/'MMA Rev-Exp Region 9'!$AS$9, 0)","v":{"v":0,"d":"$0.00"}},{"$f":"IFERROR('MMA Rev-Exp Region 9'!$AT$39/'MMA Rev-Exp Region 9'!$AT$9, 0)","v":{"v":0,"d":"$0.00"}},{"$f":"IFERROR('MMA Rev-Exp Region 9'!$AU$39/'MMA Rev-Exp Region 9'!$AU$9, 0)","v":{"v":0,"d":"$0.00"}}]
["MMA",null,null,2016,"2016-12-31","Q4","2017-12-31","Region 9","Operating Expense","Medical Benefits Expense","Mental Health Services",5.1,"Mental Health & Substance Abuse FFS",{"$f":"IFERROR('MMA Rev-Exp Region 9'!$AK$41/'MMA Rev-Exp Region 9'!$AK$9, 0)","v":{"v":0,"d":"$0.00"}},{"$f":"IFERROR('MMA Rev-Exp Region 9'!$AL$41/'MMA Rev-Exp Region 9'!$AL$9, 0)","v":{"v":0,"d":"$0.00"}},{"$f":"IFERROR('MMA Rev-Exp Region 9'!$AM$41/'MMA Rev-Exp Region 9'!$AM$9, 0)","v":{"v":0,"d":"$0.00"}},{"$f":"IFERROR('MMA Rev-Exp Region 9'!$AN$41/'MMA Rev-Exp Region 9'!$AN$9, 0)","v":{"v":0,"d":"$0.00"}},{"$f":"IFERROR('MMA Rev-Exp Region 9'!$AO$41/'MMA Rev-Exp Region 9'!$AO$9, 0)","v":{"v":0,"d":"$0.00"}},{"$f":"IFERROR('MMA Rev-Exp Region 9'!$AP$41/'MMA Rev-Exp Region 9'!$AP$9, 0)","v":{"v":0,"d":"$0.00"}},{"$f":"IFERROR('MMA Rev-Exp Region 9'!$AQ$41/'MMA Rev-Exp Region 9'!$AQ$9, 0)","v":{"v":0,"d":"$0.00"}},{"$f":"IFERROR('MMA Rev-Exp Region 9'!$AR$41/'MMA Rev-Exp Region 9'!$AR$9, 0)","v":{"v":0,"d":"$0.00"}},{"$f":"IFERROR('MMA Rev-Exp Region 9'!$AS$41/'MMA Rev-Exp Region 9'!$AS$9, 0)","v":{"v":0,"d":"$0.00"}},{"$f":"IFERROR('MMA Rev-Exp Region 9'!$AT$41/'MMA Rev-Exp Region 9'!$AT$9, 0)","v":{"v":0,"d":"$0.00"}},{"$f":"IFERROR('MMA Rev-Exp Region 9'!$AU$41/'MMA Rev-Exp Region 9'!$AU$9, 0)","v":{"v":0,"d":"$0.00"}}]
["MMA",null,null,2016,"2016-12-31","Q4","2017-12-31","Region 9","Operating Expense","Medical Benefits Expense","Mental Health Services",5.2,"Mental Health & Substance Abuse Subcapitation",{"$f":"IFERROR('MMA Rev-Exp Region 9'!$AK$42/'MMA Rev-Exp Region 9'!$AK$9, 0)","v":{"v":0,"d":"$0.00"}},{"$f":"IFERROR('MMA Rev-Exp Region 9'!$AL$42/'MMA Rev-Exp Region 9'!$AL$9, 0)","v":{"v":0,"d":"$0.00"}},{"$f":"IFERROR('MMA Rev-Exp Region 9'!$AM$42/'MMA Rev-Exp Region 9'!$AM$9, 0)","v":{"v":0,"d":"$0.00"}},{"$f":"IFERROR('MMA Rev-Exp Region 9'!$AN$42/'MMA Rev-Exp Region 9'!$AN$9, 0)","v":{"v":0,"d":"$0.00"}},{"$f":"IFERROR('MMA Rev-Exp Region 9'!$AO$42/'MMA Rev-Exp Region 9'!$AO$9, 0)","v":{"v":0,"d":"$0.00"}},{"$f":"IFERROR('MMA Rev-Exp Region 9'!$AP$42/'MMA Rev-Exp Region 9'!$AP$9, 0)","v":{"v":0,"d":"$0.00"}},{"$f":"IFERROR('MMA Rev-Exp Region 9'!$AQ$42/'MMA Rev-Exp Region 9'!$AQ$9, 0)","v":{"v":0,"d":"$0.00"}},{"$f":"IFERROR('MMA Rev-Exp Region 9'!$AR$42/'MMA Rev-Exp Region 9'!$AR$9, 0)","v":{"v":0,"d":"$0.00"}},{"$f":"IFERROR('MMA Rev-Exp Region 9'!$AS$42/'MMA Rev-Exp Region 9'!$AS$9, 0)","v":{"v":0,"d":"$0.00"}},{"$f":"IFERROR('MMA Rev-Exp Region 9'!$AT$42/'MMA Rev-Exp Region 9'!$AT$9, 0)","v":{"v":0,"d":"$0.00"}},{"$f":"IFERROR('MMA Rev-Exp Region 9'!$AU$42/'MMA Rev-Exp Region 9'!$AU$9, 0)","v":{"v":0,"d":"$0.00"}}]
["MMA",null,null,2016,"2016-12-31","Q4","2017-12-31","Region 9","Operating Expense","Medical Benefits Expense","Mental Health Services",5.3,"Ending IBNP for Mental Health & Substance Abuse",{"$f":"IFERROR('MMA Rev-Exp Region 9'!$AK$43/'MMA Rev-Exp Region 9'!$AK$9, 0)","v":{"v":0,"d":"$0.00"}},{"$f":"IFERROR('MMA Rev-Exp Region 9'!$AL$43/'MMA Rev-Exp Region 9'!$AL$9, 0)","v":{"v":0,"d":"$0.00"}},{"$f":"IFERROR('MMA Rev-Exp Region 9'!$AM$43/'MMA Rev-Exp Region 9'!$AM$9, 0)","v":{"v":0,"d":"$0.00"}},{"$f":"IFERROR('MMA Rev-Exp Region 9'!$AN$43/'MMA Rev-Exp Region 9'!$AN$9, 0)","v":{"v":0,"d":"$0.00"}},{"$f":"IFERROR('MMA Rev-Exp Region 9'!$AO$43/'MMA Rev-Exp Region 9'!$AO$9, 0)","v":{"v":0,"d":"$0.00"}},{"$f":"IFERROR('MMA Rev-Exp Region 9'!$AP$43/'MMA Rev-Exp Region 9'!$AP$9, 0)","v":{"v":0,"d":"$0.00"}},{"$f":"IFERROR('MMA Rev-Exp Region 9'!$AQ$43/'MMA Rev-Exp Region 9'!$AQ$9, 0)","v":{"v":0,"d":"$0.00"}},{"$f":"IFERROR('MMA Rev-Exp Region 9'!$AR$43/'MMA Rev-Exp Region 9'!$AR$9, 0)","v":{"v":0,"d":"$0.00"}},{"$f":"IFERROR('MMA Rev-Exp Region 9'!$AS$43/'MMA Rev-Exp Region 9'!$AS$9, 0)","v":{"v":0,"d":"$0.00"}},{"$f":"IFERROR('MMA Rev-Exp Region 9'!$AT$43/'MMA Rev-Exp Region 9'!$AT$9, 0)","v":{"v":0,"d":"$0.00"}},{"$f":"IFERROR('MMA Rev-Exp Region 9'!$AU$43/'MMA Rev-Exp Region 9'!$AU$9, 0)","v":{"v":0,"d":"$0.00"}}]
["MMA",null,null,2016,"2016-12-31","Q4","2017-12-31","Region 9","Operating Expense","Medical Benefits Expense","Mental Health Services","5.4","Mental Health Settlements",{"$f":"IFERROR('MMA Rev-Exp Region 9'!$AK$44/'MMA Rev-Exp Region 9'!$AK$9, 0)","v":{"v":0,"d":"$0.00"}},{"$f":"IFERROR('MMA Rev-Exp Region 9'!$AL$44/'MMA Rev-Exp Region 9'!$AL$9, 0)","v":{"v":0,"d":"$0.00"}},{"$f":"IFERROR('MMA Rev-Exp Region 9'!$AM$44/'MMA Rev-Exp Region 9'!$AM$9, 0)","v":{"v":0,"d":"$0.00"}},{"$f":"IFERROR('MMA Rev-Exp Region 9'!$AN$44/'MMA Rev-Exp Region 9'!$AN$9, 0)","v":{"v":0,"d":"$0.00"}},{"$f":"IFERROR('MMA Rev-Exp Region 9'!$AO$44/'MMA Rev-Exp Region 9'!$AO$9, 0)","v":{"v":0,"d":"$0.00"}},{"$f":"IFERROR('MMA Rev-Exp Region 9'!$AP$44/'MMA Rev-Exp Region 9'!$AP$9, 0)","v":{"v":0,"d":"$0.00"}},{"$f":"IFERROR('MMA Rev-Exp Region 9'!$AQ$44/'MMA Rev-Exp Region 9'!$AQ$9, 0)","v":{"v":0,"d":"$0.00"}},{"$f":"IFERROR('MMA Rev-Exp Region 9'!$AR$44/'MMA Rev-Exp Region 9'!$AR$9, 0)","v":{"v":0,"d":"$0.00"}},{"$f":"IFERROR('MMA Rev-Exp Region 9'!$AS$44/'MMA Rev-Exp Region 9'!$AS$9, 0)","v":{"v":0,"d":"$0.00"}},{"$f":"IFERROR('MMA Rev-Exp Region 9'!$AT$44/'MMA Rev-Exp Region 9'!$AT$9, 0)","v":{"v":0,"d":"$0.00"}},{"$f":"IFERROR('MMA Rev-Exp Region 9'!$AU$44/'MMA Rev-Exp Region 9'!$AU$9, 0)","v":{"v":0,"d":"$0.00"}}]
["MMA",null,null,2016,"2016-12-31","Q4","2017-12-31","Region 9","Operating Expense","Medical Benefits Expense","Dental Services",6.1,"Dental FFS",{"$f":"IFERROR('MMA Rev-Exp Region 9'!$AK$46/'MMA Rev-Exp Region 9'!$AK$9, 0)","v":{"v":0,"d":"$0.00"}},{"$f":"IFERROR('MMA Rev-Exp Region 9'!$AL$46/'MMA Rev-Exp Region 9'!$AL$9, 0)","v":{"v":0,"d":"$0.00"}},{"$f":"IFERROR('MMA Rev-Exp Region 9'!$AM$46/'MMA Rev-Exp Region 9'!$AM$9, 0)","v":{"v":0,"d":"$0.00"}},{"$f":"IFERROR('MMA Rev-Exp Region 9'!$AN$46/'MMA Rev-Exp Region 9'!$AN$9, 0)","v":{"v":0,"d":"$0.00"}},{"$f":"IFERROR('MMA Rev-Exp Region 9'!$AO$46/'MMA Rev-Exp Region 9'!$AO$9, 0)","v":{"v":0,"d":"$0.00"}},{"$f":"IFERROR('MMA Rev-Exp Region 9'!$AP$46/'MMA Rev-Exp Region 9'!$AP$9, 0)","v":{"v":0,"d":"$0.00"}},{"$f":"IFERROR('MMA Rev-Exp Region 9'!$AQ$46/'MMA Rev-Exp Region 9'!$AQ$9, 0)","v":{"v":0,"d":"$0.00"}},{"$f":"IFERROR('MMA Rev-Exp Region 9'!$AR$46/'MMA Rev-Exp Region 9'!$AR$9, 0)","v":{"v":0,"d":"$0.00"}},{"$f":"IFERROR('MMA Rev-Exp Region 9'!$AS$46/'MMA Rev-Exp Region 9'!$AS$9, 0)","v":{"v":0,"d":"$0.00"}},{"$f":"IFERROR('MMA Rev-Exp Region 9'!$AT$46/'MMA Rev-Exp Region 9'!$AT$9, 0)","v":{"v":0,"d":"$0.00"}},{"$f":"IFERROR('MMA Rev-Exp Region 9'!$AU$46/'MMA Rev-Exp Region 9'!$AU$9, 0)","v":{"v":0,"d":"$0.00"}}]
["MMA",null,null,2016,"2016-12-31","Q4","2017-12-31","Region 9","Operating Expense","Medical Benefits Expense","Dental Services",6.2,"Dental Subcapitation",{"$f":"IFERROR('MMA Rev-Exp Region 9'!$AK$47/'MMA Rev-Exp Region 9'!$AK$9, 0)","v":{"v":0,"d":"$0.00"}},{"$f":"IFERROR('MMA Rev-Exp Region 9'!$AL$47/'MMA Rev-Exp Region 9'!$AL$9, 0)","v":{"v":0,"d":"$0.00"}},{"$f":"IFERROR('MMA Rev-Exp Region 9'!$AM$47/'MMA Rev-Exp Region 9'!$AM$9, 0)","v":{"v":0,"d":"$0.00"}},{"$f":"IFERROR('MMA Rev-Exp Region 9'!$AN$47/'MMA Rev-Exp Region 9'!$AN$9, 0)","v":{"v":0,"d":"$0.00"}},{"$f":"IFERROR('MMA Rev-Exp Region 9'!$AO$47/'MMA Rev-Exp Region 9'!$AO$9, 0)","v":{"v":0,"d":"$0.00"}},{"$f":"IFERROR('MMA Rev-Exp Region 9'!$AP$47/'MMA Rev-Exp Region 9'!$AP$9, 0)","v":{"v":0,"d":"$0.00"}},{"$f":"IFERROR('MMA Rev-Exp Region 9'!$AQ$47/'MMA Rev-Exp Region 9'!$AQ$9, 0)","v":{"v":0,"d":"$0.00"}},{"$f":"IFERROR('MMA Rev-Exp Region 9'!$AR$47/'MMA Rev-Exp Region 9'!$AR$9, 0)","v":{"v":0,"d":"$0.00"}},{"$f":"IFERROR('MMA Rev-Exp Region 9'!$AS$47/'MMA Rev-Exp Region 9'!$AS$9, 0)","v":{"v":0,"d":"$0.00"}},{"$f":"IFERROR('MMA Rev-Exp Region 9'!$AT$47/'MMA Rev-Exp Region 9'!$AT$9, 0)","v":{"v":0,"d":"$0.00"}},{"$f":"IFERROR('MMA Rev-Exp Region 9'!$AU$47/'MMA Rev-Exp Region 9'!$AU$9, 0)","v":{"v":0,"d":"$0.00"}}]
["MMA",null,null,2016,"2016-12-31","Q4","2017-12-31","Region 9","Operating Expense","Medical Benefits Expense","Dental Services",6.3,"Ending IBNP for Dental Services",{"$f":"IFERROR('MMA Rev-Exp Region 9'!$AK$48/'MMA Rev-Exp Region 9'!$AK$9, 0)","v":{"v":0,"d":"$0.00"}},{"$f":"IFERROR('MMA Rev-Exp Region 9'!$AL$48/'MMA Rev-Exp Region 9'!$AL$9, 0)","v":{"v":0,"d":"$0.00"}},{"$f":"IFERROR('MMA Rev-Exp Region 9'!$AM$48/'MMA Rev-Exp Region 9'!$AM$9, 0)","v":{"v":0,"d":"$0.00"}},{"$f":"IFERROR('MMA Rev-Exp Region 9'!$AN$48/'MMA Rev-Exp Region 9'!$AN$9, 0)","v":{"v":0,"d":"$0.00"}},{"$f":"IFERROR('MMA Rev-Exp Region 9'!$AO$48/'MMA Rev-Exp Region 9'!$AO$9, 0)","v":{"v":0,"d":"$0.00"}},{"$f":"IFERROR('MMA Rev-Exp Region 9'!$AP$48/'MMA Rev-Exp Region 9'!$AP$9, 0)","v":{"v":0,"d":"$0.00"}},{"$f":"IFERROR('MMA Rev-Exp Region 9'!$AQ$48/'MMA Rev-Exp Region 9'!$AQ$9, 0)","v":{"v":0,"d":"$0.00"}},{"$f":"IFERROR('MMA Rev-Exp Region 9'!$AR$48/'MMA Rev-Exp Region 9'!$AR$9, 0)","v":{"v":0,"d":"$0.00"}},{"$f":"IFERROR('MMA Rev-Exp Region 9'!$AS$48/'MMA Rev-Exp Region 9'!$AS$9, 0)","v":{"v":0,"d":"$0.00"}},{"$f":"IFERROR('MMA Rev-Exp Region 9'!$AT$48/'MMA Rev-Exp Region 9'!$AT$9, 0)","v":{"v":0,"d":"$0.00"}},{"$f":"IFERROR('MMA Rev-Exp Region 9'!$AU$48/'MMA Rev-Exp Region 9'!$AU$9, 0)","v":{"v":0,"d":"$0.00"}}]
["MMA",null,null,2016,"2016-12-31","Q4","2017-12-31","Region 9","Operating Expense","Medical Benefits Expense","Dental Services","6.4","Dental Settlements",{"$f":"IFERROR('MMA Rev-Exp Region 9'!$AK$49/'MMA Rev-Exp Region 9'!$AK$9, 0)","v":{"v":0,"d":"$0.00"}},{"$f":"IFERROR('MMA Rev-Exp Region 9'!$AL$49/'MMA Rev-Exp Region 9'!$AL$9, 0)","v":{"v":0,"d":"$0.00"}},{"$f":"IFERROR('MMA Rev-Exp Region 9'!$AM$49/'MMA Rev-Exp Region 9'!$AM$9, 0)","v":{"v":0,"d":"$0.00"}},{"$f":"IFERROR('MMA Rev-Exp Region 9'!$AN$49/'MMA Rev-Exp Region 9'!$AN$9, 0)","v":{"v":0,"d":"$0.00"}},{"$f":"IFERROR('MMA Rev-Exp Region 9'!$AO$49/'MMA Rev-Exp Region 9'!$AO$9, 0)","v":{"v":0,"d":"$0.00"}},{"$f":"IFERROR('MMA Rev-Exp Region 9'!$AP$49/'MMA Rev-Exp Region 9'!$AP$9, 0)","v":{"v":0,"d":"$0.00"}},{"$f":"IFERROR('MMA Rev-Exp Region 9'!$AQ$49/'MMA Rev-Exp Region 9'!$AQ$9, 0)","v":{"v":0,"d":"$0.00"}},{"$f":"IFERROR('MMA Rev-Exp Region 9'!$AR$49/'MMA Rev-Exp Region 9'!$AR$9, 0)","v":{"v":0,"d":"$0.00"}},{"$f":"IFERROR('MMA Rev-Exp Region 9'!$AS$49/'MMA Rev-Exp Region 9'!$AS$9, 0)","v":{"v":0,"d":"$0.00"}},{"$f":"IFERROR('MMA Rev-Exp Region 9'!$AT$49/'MMA Rev-Exp Region 9'!$AT$9, 0)","v":{"v":0,"d":"$0.00"}},{"$f":"IFERROR('MMA Rev-Exp Region 9'!$AU$49/'MMA Rev-Exp Region 9'!$AU$9, 0)","v":{"v":0,"d":"$0.00"}}]
["MMA",null,null,2016,"2016-12-31","Q4","2017-12-31","Region 9","Operating Expense","Medical Benefits Expense","Transportation Services",7.1,"Transportation FFS",{"$f":"IFERROR('MMA Rev-Exp Region 9'!$AK$51/'MMA Rev-Exp Region 9'!$AK$9, 0)","v":{"v":0,"d":"$0.00"}},{"$f":"IFERROR('MMA Rev-Exp Region 9'!$AL$51/'MMA Rev-Exp Region 9'!$AL$9, 0)","v":{"v":0,"d":"$0.00"}},{"$f":"IFERROR('MMA Rev-Exp Region 9'!$AM$51/'MMA Rev-Exp Region 9'!$AM$9, 0)","v":{"v":0,"d":"$0.00"}},{"$f":"IFERROR('MMA Rev-Exp Region 9'!$AN$51/'MMA Rev-Exp Region 9'!$AN$9, 0)","v":{"v":0,"d":"$0.00"}},{"$f":"IFERROR('MMA Rev-Exp Region 9'!$AO$51/'MMA Rev-Exp Region 9'!$AO$9, 0)","v":{"v":0,"d":"$0.00"}},{"$f":"IFERROR('MMA Rev-Exp Region 9'!$AP$51/'MMA Rev-Exp Region 9'!$AP$9, 0)","v":{"v":0,"d":"$0.00"}},{"$f":"IFERROR('MMA Rev-Exp Region 9'!$AQ$51/'MMA Rev-Exp Region 9'!$AQ$9, 0)","v":{"v":0,"d":"$0.00"}},{"$f":"IFERROR('MMA Rev-Exp Region 9'!$AR$51/'MMA Rev-Exp Region 9'!$AR$9, 0)","v":{"v":0,"d":"$0.00"}},{"$f":"IFERROR('MMA Rev-Exp Region 9'!$AS$51/'MMA Rev-Exp Region 9'!$AS$9, 0)","v":{"v":0,"d":"$0.00"}},{"$f":"IFERROR('MMA Rev-Exp Region 9'!$AT$51/'MMA Rev-Exp Region 9'!$AT$9, 0)","v":{"v":0,"d":"$0.00"}},{"$f":"IFERROR('MMA Rev-Exp Region 9'!$AU$51/'MMA Rev-Exp Region 9'!$AU$9, 0)","v":{"v":0,"d":"$0.00"}}]
["MMA",null,null,2016,"2016-12-31","Q4","2017-12-31","Region 9","Operating Expense","Medical Benefits Expense","Transportation Services",7.2,"Transportation Subcapitation",{"$f":"IFERROR('MMA Rev-Exp Region 9'!$AK$52/'MMA Rev-Exp Region 9'!$AK$9, 0)","v":{"v":0,"d":"$0.00"}},{"$f":"IFERROR('MMA Rev-Exp Region 9'!$AL$52/'MMA Rev-Exp Region 9'!$AL$9, 0)","v":{"v":0,"d":"$0.00"}},{"$f":"IFERROR('MMA Rev-Exp Region 9'!$AM$52/'MMA Rev-Exp Region 9'!$AM$9, 0)","v":{"v":0,"d":"$0.00"}},{"$f":"IFERROR('MMA Rev-Exp Region 9'!$AN$52/'MMA Rev-Exp Region 9'!$AN$9, 0)","v":{"v":0,"d":"$0.00"}},{"$f":"IFERROR('MMA Rev-Exp Region 9'!$AO$52/'MMA Rev-Exp Region 9'!$AO$9, 0)","v":{"v":0,"d":"$0.00"}},{"$f":"IFERROR('MMA Rev-Exp Region 9'!$AP$52/'MMA Rev-Exp Region 9'!$AP$9, 0)","v":{"v":0,"d":"$0.00"}},{"$f":"IFERROR('MMA Rev-Exp Region 9'!$AQ$52/'MMA Rev-Exp Region 9'!$AQ$9, 0)","v":{"v":0,"d":"$0.00"}},{"$f":"IFERROR('MMA Rev-Exp Region 9'!$AR$52/'MMA Rev-Exp Region 9'!$AR$9, 0)","v":{"v":0,"d":"$0.00"}},{"$f":"IFERROR('MMA Rev-Exp Region 9'!$AS$52/'MMA Rev-Exp Region 9'!$AS$9, 0)","v":{"v":0,"d":"$0.00"}},{"$f":"IFERROR('MMA Rev-Exp Region 9'!$AT$52/'MMA Rev-Exp Region 9'!$AT$9, 0)","v":{"v":0,"d":"$0.00"}},{"$f":"IFERROR('MMA Rev-Exp Region 9'!$AU$52/'MMA Rev-Exp Region 9'!$AU$9, 0)","v":{"v":0,"d":"$0.00"}}]
["MMA",null,null,2016,"2016-12-31","Q4","2017-12-31","Region 9","Operating Expense","Medical Benefits Expense","Transportation Services",7.3,"Ending IBNP for Transportation",{"$f":"IFERROR('MMA Rev-Exp Region 9'!$AK$53/'MMA Rev-Exp Region 9'!$AK$9, 0)","v":{"v":0,"d":"$0.00"}},{"$f":"IFERROR('MMA Rev-Exp Region 9'!$AL$53/'MMA Rev-Exp Region 9'!$AL$9, 0)","v":{"v":0,"d":"$0.00"}},{"$f":"IFERROR('MMA Rev-Exp Region 9'!$AM$53/'MMA Rev-Exp Region 9'!$AM$9, 0)","v":{"v":0,"d":"$0.00"}},{"$f":"IFERROR('MMA Rev-Exp Region 9'!$AN$53/'MMA Rev-Exp Region 9'!$AN$9, 0)","v":{"v":0,"d":"$0.00"}},{"$f":"IFERROR('MMA Rev-Exp Region 9'!$AO$53/'MMA Rev-Exp Region 9'!$AO$9, 0)","v":{"v":0,"d":"$0.00"}},{"$f":"IFERROR('MMA Rev-Exp Region 9'!$AP$53/'MMA Rev-Exp Region 9'!$AP$9, 0)","v":{"v":0,"d":"$0.00"}},{"$f":"IFERROR('MMA Rev-Exp Region 9'!$AQ$53/'MMA Rev-Exp Region 9'!$AQ$9, 0)","v":{"v":0,"d":"$0.00"}},{"$f":"IFERROR('MMA Rev-Exp Region 9'!$AR$53/'MMA Rev-Exp Region 9'!$AR$9, 0)","v":{"v":0,"d":"$0.00"}},{"$f":"IFERROR('MMA Rev-Exp Region 9'!$AS$53/'MMA Rev-Exp Region 9'!$AS$9, 0)","v":{"v":0,"d":"$0.00"}},{"$f":"IFERROR('MMA Rev-Exp Region 9'!$AT$53/'MMA Rev-Exp Region 9'!$AT$9, 0)","v":{"v":0,"d":"$0.00"}},{"$f":"IFERROR('MMA Rev-Exp Region 9'!$AU$53/'MMA Rev-Exp Region 9'!$AU$9, 0)","v":{"v":0,"d":"$0.00"}}]
["MMA",null,null,2016,"2016-12-31","Q4","2017-12-31","Region 9","Operating Expense","Medical Benefits Expense","Transportation Services","7.4","Transportation Settlements",{"$f":"IFERROR('MMA Rev-Exp Region 9'!$AK$54/'MMA Rev-Exp Region 9'!$AK$9, 0)","v":{"v":0,"d":"$0.00"}},{"$f":"IFERROR('MMA Rev-Exp Region 9'!$AL$54/'MMA Rev-Exp Region 9'!$AL$9, 0)","v":{"v":0,"d":"$0.00"}},{"$f":"IFERROR('MMA Rev-Exp Region 9'!$AM$54/'MMA Rev-Exp Region 9'!$AM$9, 0)","v":{"v":0,"d":"$0.00"}},{"$f":"IFERROR('MMA Rev-Exp Region 9'!$AN$54/'MMA Rev-Exp Region 9'!$AN$9, 0)","v":{"v":0,"d":"$0.00"}},{"$f":"IFERROR('MMA Rev-Exp Region 9'!$AO$54/'MMA Rev-Exp Region 9'!$AO$9, 0)","v":{"v":0,"d":"$0.00"}},{"$f":"IFERROR('MMA Rev-Exp Region 9'!$AP$54/'MMA Rev-Exp Region 9'!$AP$9, 0)","v":{"v":0,"d":"$0.00"}},{"$f":"IFERROR('MMA Rev-Exp Region 9'!$AQ$54/'MMA Rev-Exp Region 9'!$AQ$9, 0)","v":{"v":0,"d":"$0.00"}},{"$f":"IFERROR('MMA Rev-Exp Region 9'!$AR$54/'MMA Rev-Exp Region 9'!$AR$9, 0)","v":{"v":0,"d":"$0.00"}},{"$f":"IFERROR('MMA Rev-Exp Region 9'!$AS$54/'MMA Rev-Exp Region 9'!$AS$9, 0)","v":{"v":0,"d":"$0.00"}},{"$f":"IFERROR('MMA Rev-Exp Region 9'!$AT$54/'MMA Rev-Exp Region 9'!$AT$9, 0)","v":{"v":0,"d":"$0.00"}},{"$f":"IFERROR('MMA Rev-Exp Region 9'!$AU$54/'MMA Rev-Exp Region 9'!$AU$9, 0)","v":{"v":0,"d":"$0.00"}}]
["MMA",null,null,2016,"2016-12-31","Q4","2017-12-31","Region 9","Operating Expense","Medical Benefits Expense","Pharmacy Services",8.1,"Prescription Drugs FFS",{"$f":"IFERROR('MMA Rev-Exp Region 9'!$AK$56/'MMA Rev-Exp Region 9'!$AK$9, 0)","v":{"v":0,"d":"$0.00"}},{"$f":"IFERROR('MMA Rev-Exp Region 9'!$AL$56/'MMA Rev-Exp Region 9'!$AL$9, 0)","v":{"v":0,"d":"$0.00"}},{"$f":"IFERROR('MMA Rev-Exp Region 9'!$AM$56/'MMA Rev-Exp Region 9'!$AM$9, 0)","v":{"v":0,"d":"$0.00"}},{"$f":"IFERROR('MMA Rev-Exp Region 9'!$AN$56/'MMA Rev-Exp Region 9'!$AN$9, 0)","v":{"v":0,"d":"$0.00"}},{"$f":"IFERROR('MMA Rev-Exp Region 9'!$AO$56/'MMA Rev-Exp Region 9'!$AO$9, 0)","v":{"v":0,"d":"$0.00"}},{"$f":"IFERROR('MMA Rev-Exp Region 9'!$AP$56/'MMA Rev-Exp Region 9'!$AP$9, 0)","v":{"v":0,"d":"$0.00"}},{"$f":"IFERROR('MMA Rev-Exp Region 9'!$AQ$56/'MMA Rev-Exp Region 9'!$AQ$9, 0)","v":{"v":0,"d":"$0.00"}},{"$f":"IFERROR('MMA Rev-Exp Region 9'!$AR$56/'MMA Rev-Exp Region 9'!$AR$9, 0)","v":{"v":0,"d":"$0.00"}},{"$f":"IFERROR('MMA Rev-Exp Region 9'!$AS$56/'MMA Rev-Exp Region 9'!$AS$9, 0)","v":{"v":0,"d":"$0.00"}},{"$f":"IFERROR('MMA Rev-Exp Region 9'!$AT$56/'MMA Rev-Exp Region 9'!$AT$9, 0)","v":{"v":0,"d":"$0.00"}},{"$f":"IFERROR('MMA Rev-Exp Region 9'!$AU$56/'MMA Rev-Exp Region 9'!$AU$9, 0)","v":{"v":0,"d":"$0.00"}}]
["MMA",null,null,2016,"2016-12-31","Q4","2017-12-31","Region 9","Operating Expense","Medical Benefits Expense","Pharmacy Services","8.2","Hepatitis C Prescription Drug FFS",{"$f":"IFERROR('MMA Rev-Exp Region 9'!$AK$57/'MMA Rev-Exp Region 9'!$AK$9, 0)","v":{"v":0,"d":"$0.00"}},{"$f":"IFERROR('MMA Rev-Exp Region 9'!$AL$57/'MMA Rev-Exp Region 9'!$AL$9, 0)","v":{"v":0,"d":"$0.00"}},{"$f":"IFERROR('MMA Rev-Exp Region 9'!$AM$57/'MMA Rev-Exp Region 9'!$AM$9, 0)","v":{"v":0,"d":"$0.00"}},{"$f":"IFERROR('MMA Rev-Exp Region 9'!$AN$57/'MMA Rev-Exp Region 9'!$AN$9, 0)","v":{"v":0,"d":"$0.00"}},{"$f":"IFERROR('MMA Rev-Exp Region 9'!$AO$57/'MMA Rev-Exp Region 9'!$AO$9, 0)","v":{"v":0,"d":"$0.00"}},{"$f":"IFERROR('MMA Rev-Exp Region 9'!$AP$57/'MMA Rev-Exp Region 9'!$AP$9, 0)","v":{"v":0,"d":"$0.00"}},{"$f":"IFERROR('MMA Rev-Exp Region 9'!$AQ$57/'MMA Rev-Exp Region 9'!$AQ$9, 0)","v":{"v":0,"d":"$0.00"}},{"$f":"IFERROR('MMA Rev-Exp Region 9'!$AR$57/'MMA Rev-Exp Region 9'!$AR$9, 0)","v":{"v":0,"d":"$0.00"}},{"$f":"IFERROR('MMA Rev-Exp Region 9'!$AS$57/'MMA Rev-Exp Region 9'!$AS$9, 0)","v":{"v":0,"d":"$0.00"}},{"$f":"IFERROR('MMA Rev-Exp Region 9'!$AT$57/'MMA Rev-Exp Region 9'!$AT$9, 0)","v":{"v":0,"d":"$0.00"}},{"$f":"IFERROR('MMA Rev-Exp Region 9'!$AU$57/'MMA Rev-Exp Region 9'!$AU$9, 0)","v":{"v":0,"d":"$0.00"}}]
["MMA",null,null,2016,"2016-12-31","Q4","2017-12-31","Region 9","Operating Expense","Medical Benefits Expense","Pharmacy Services","8.3","Ending IBNP for Prescription Drugs",{"$f":"IFERROR('MMA Rev-Exp Region 9'!$AK$58/'MMA Rev-Exp Region 9'!$AK$9, 0)","v":{"v":0,"d":"$0.00"}},{"$f":"IFERROR('MMA Rev-Exp Region 9'!$AL$58/'MMA Rev-Exp Region 9'!$AL$9, 0)","v":{"v":0,"d":"$0.00"}},{"$f":"IFERROR('MMA Rev-Exp Region 9'!$AM$58/'MMA Rev-Exp Region 9'!$AM$9, 0)","v":{"v":0,"d":"$0.00"}},{"$f":"IFERROR('MMA Rev-Exp Region 9'!$AN$58/'MMA Rev-Exp Region 9'!$AN$9, 0)","v":{"v":0,"d":"$0.00"}},{"$f":"IFERROR('MMA Rev-Exp Region 9'!$AO$58/'MMA Rev-Exp Region 9'!$AO$9, 0)","v":{"v":0,"d":"$0.00"}},{"$f":"IFERROR('MMA Rev-Exp Region 9'!$AP$58/'MMA Rev-Exp Region 9'!$AP$9, 0)","v":{"v":0,"d":"$0.00"}},{"$f":"IFERROR('MMA Rev-Exp Region 9'!$AQ$58/'MMA Rev-Exp Region 9'!$AQ$9, 0)","v":{"v":0,"d":"$0.00"}},{"$f":"IFERROR('MMA Rev-Exp Region 9'!$AR$58/'MMA Rev-Exp Region 9'!$AR$9, 0)","v":{"v":0,"d":"$0.00"}},{"$f":"IFERROR('MMA Rev-Exp Region 9'!$AS$58/'MMA Rev-Exp Region 9'!$AS$9, 0)","v":{"v":0,"d":"$0.00"}},{"$f":"IFERROR('MMA Rev-Exp Region 9'!$AT$58/'MMA Rev-Exp Region 9'!$AT$9, 0)","v":{"v":0,"d":"$0.00"}},{"$f":"IFERROR('MMA Rev-Exp Region 9'!$AU$58/'MMA Rev-Exp Region 9'!$AU$9, 0)","v":{"v":0,"d":"$0.00"}}]
["MMA",null,null,2016,"2016-12-31","Q4","2017-12-31","Region 9","Operating Expense","Medical Benefits Expense","Pharmacy Services","8.4","Prescription Drug Rebates ",{"$f":"IFERROR('MMA Rev-Exp Region 9'!$AK$59/'MMA Rev-Exp Region 9'!$AK$9, 0)","v":{"v":0,"d":"$0.00"}},{"$f":"IFERROR('MMA Rev-Exp Region 9'!$AL$59/'MMA Rev-Exp Region 9'!$AL$9, 0)","v":{"v":0,"d":"$0.00"}},{"$f":"IFERROR('MMA Rev-Exp Region 9'!$AM$59/'MMA Rev-Exp Region 9'!$AM$9, 0)","v":{"v":0,"d":"$0.00"}},{"$f":"IFERROR('MMA Rev-Exp Region 9'!$AN$59/'MMA Rev-Exp Region 9'!$AN$9, 0)","v":{"v":0,"d":"$0.00"}},{"$f":"IFERROR('MMA Rev-Exp Region 9'!$AO$59/'MMA Rev-Exp Region 9'!$AO$9, 0)","v":{"v":0,"d":"$0.00"}},{"$f":"IFERROR('MMA Rev-Exp Region 9'!$AP$59/'MMA Rev-Exp Region 9'!$AP$9, 0)","v":{"v":0,"d":"$0.00"}},{"$f":"IFERROR('MMA Rev-Exp Region 9'!$AQ$59/'MMA Rev-Exp Region 9'!$AQ$9, 0)","v":{"v":0,"d":"$0.00"}},{"$f":"IFERROR('MMA Rev-Exp Region 9'!$AR$59/'MMA Rev-Exp Region 9'!$AR$9, 0)","v":{"v":0,"d":"$0.00"}},{"$f":"IFERROR('MMA Rev-Exp Region 9'!$AS$59/'MMA Rev-Exp Region 9'!$AS$9, 0)","v":{"v":0,"d":"$0.00"}},{"$f":"IFERROR('MMA Rev-Exp Region 9'!$AT$59/'MMA Rev-Exp Region 9'!$AT$9, 0)","v":{"v":0,"d":"$0.00"}},{"$f":"IFERROR('MMA Rev-Exp Region 9'!$AU$59/'MMA Rev-Exp Region 9'!$AU$9, 0)","v":{"v":0,"d":"$0.00"}}]
["MMA",null,null,2016,"2016-12-31","Q4","2017-12-31","Region 9","Operating Expense","Medical Benefits Expense","Pharmacy Services","8.5","Ending accrual for Rebates receivable",{"$f":"IFERROR('MMA Rev-Exp Region 9'!$AK$60/'MMA Rev-Exp Region 9'!$AK$9, 0)","v":{"v":0,"d":"$0.00"}},{"$f":"IFERROR('MMA Rev-Exp Region 9'!$AL$60/'MMA Rev-Exp Region 9'!$AL$9, 0)","v":{"v":0,"d":"$0.00"}},{"$f":"IFERROR('MMA Rev-Exp Region 9'!$AM$60/'MMA Rev-Exp Region 9'!$AM$9, 0)","v":{"v":0,"d":"$0.00"}},{"$f":"IFERROR('MMA Rev-Exp Region 9'!$AN$60/'MMA Rev-Exp Region 9'!$AN$9, 0)","v":{"v":0,"d":"$0.00"}},{"$f":"IFERROR('MMA Rev-Exp Region 9'!$AO$60/'MMA Rev-Exp Region 9'!$AO$9, 0)","v":{"v":0,"d":"$0.00"}},{"$f":"IFERROR('MMA Rev-Exp Region 9'!$AP$60/'MMA Rev-Exp Region 9'!$AP$9, 0)","v":{"v":0,"d":"$0.00"}},{"$f":"IFERROR('MMA Rev-Exp Region 9'!$AQ$60/'MMA Rev-Exp Region 9'!$AQ$9, 0)","v":{"v":0,"d":"$0.00"}},{"$f":"IFERROR('MMA Rev-Exp Region 9'!$AR$60/'MMA Rev-Exp Region 9'!$AR$9, 0)","v":{"v":0,"d":"$0.00"}},{"$f":"IFERROR('MMA Rev-Exp Region 9'!$AS$60/'MMA Rev-Exp Region 9'!$AS$9, 0)","v":{"v":0,"d":"$0.00"}},{"$f":"IFERROR('MMA Rev-Exp Region 9'!$AT$60/'MMA Rev-Exp Region 9'!$AT$9, 0)","v":{"v":0,"d":"$0.00"}},{"$f":"IFERROR('MMA Rev-Exp Region 9'!$AU$60/'MMA Rev-Exp Region 9'!$AU$9, 0)","v":{"v":0,"d":"$0.00"}}]
["MMA",null,null,2016,"2016-12-31","Q4","2017-12-31","Region 9","Operating Expense","Medical Benefits Expense","Pharmacy Services","8.6","Prescription Drugs Subcapitation",{"$f":"IFERROR('MMA Rev-Exp Region 9'!$AK$61/'MMA Rev-Exp Region 9'!$AK$9, 0)","v":{"v":0,"d":"$0.00"}},{"$f":"IFERROR('MMA Rev-Exp Region 9'!$AL$61/'MMA Rev-Exp Region 9'!$AL$9, 0)","v":{"v":0,"d":"$0.00"}},{"$f":"IFERROR('MMA Rev-Exp Region 9'!$AM$61/'MMA Rev-Exp Region 9'!$AM$9, 0)","v":{"v":0,"d":"$0.00"}},{"$f":"IFERROR('MMA Rev-Exp Region 9'!$AN$61/'MMA Rev-Exp Region 9'!$AN$9, 0)","v":{"v":0,"d":"$0.00"}},{"$f":"IFERROR('MMA Rev-Exp Region 9'!$AO$61/'MMA Rev-Exp Region 9'!$AO$9, 0)","v":{"v":0,"d":"$0.00"}},{"$f":"IFERROR('MMA Rev-Exp Region 9'!$AP$61/'MMA Rev-Exp Region 9'!$AP$9, 0)","v":{"v":0,"d":"$0.00"}},{"$f":"IFERROR('MMA Rev-Exp Region 9'!$AQ$61/'MMA Rev-Exp Region 9'!$AQ$9, 0)","v":{"v":0,"d":"$0.00"}},{"$f":"IFERROR('MMA Rev-Exp Region 9'!$AR$61/'MMA Rev-Exp Region 9'!$AR$9, 0)","v":{"v":0,"d":"$0.00"}},{"$f":"IFERROR('MMA Rev-Exp Region 9'!$AS$61/'MMA Rev-Exp Region 9'!$AS$9, 0)","v":{"v":0,"d":"$0.00"}},{"$f":"IFERROR('MMA Rev-Exp Region 9'!$AT$61/'MMA Rev-Exp Region 9'!$AT$9, 0)","v":{"v":0,"d":"$0.00"}},{"$f":"IFERROR('MMA Rev-Exp Region 9'!$AU$61/'MMA Rev-Exp Region 9'!$AU$9, 0)","v":{"v":0,"d":"$0.00"}}]
["MMA",null,null,2016,"2016-12-31","Q4","2017-12-31","Region 9","Operating Expense","Medical Benefits Expense","Pharmacy Services","8.7","Prescription Drug Settlements",{"$f":"IFERROR('MMA Rev-Exp Region 9'!$AK$62/'MMA Rev-Exp Region 9'!$AK$9, 0)","v":{"v":0,"d":"$0.00"}},{"$f":"IFERROR('MMA Rev-Exp Region 9'!$AL$62/'MMA Rev-Exp Region 9'!$AL$9, 0)","v":{"v":0,"d":"$0.00"}},{"$f":"IFERROR('MMA Rev-Exp Region 9'!$AM$62/'MMA Rev-Exp Region 9'!$AM$9, 0)","v":{"v":0,"d":"$0.00"}},{"$f":"IFERROR('MMA Rev-Exp Region 9'!$AN$62/'MMA Rev-Exp Region 9'!$AN$9, 0)","v":{"v":0,"d":"$0.00"}},{"$f":"IFERROR('MMA Rev-Exp Region 9'!$AO$62/'MMA Rev-Exp Region 9'!$AO$9, 0)","v":{"v":0,"d":"$0.00"}},{"$f":"IFERROR('MMA Rev-Exp Region 9'!$AP$62/'MMA Rev-Exp Region 9'!$AP$9, 0)","v":{"v":0,"d":"$0.00"}},{"$f":"IFERROR('MMA Rev-Exp Region 9'!$AQ$62/'MMA Rev-Exp Region 9'!$AQ$9, 0)","v":{"v":0,"d":"$0.00"}},{"$f":"IFERROR('MMA Rev-Exp Region 9'!$AR$62/'MMA Rev-Exp Region 9'!$AR$9, 0)","v":{"v":0,"d":"$0.00"}},{"$f":"IFERROR('MMA Rev-Exp Region 9'!$AS$62/'MMA Rev-Exp Region 9'!$AS$9, 0)","v":{"v":0,"d":"$0.00"}},{"$f":"IFERROR('MMA Rev-Exp Region 9'!$AT$62/'MMA Rev-Exp Region 9'!$AT$9, 0)","v":{"v":0,"d":"$0.00"}},{"$f":"IFERROR('MMA Rev-Exp Region 9'!$AU$62/'MMA Rev-Exp Region 9'!$AU$9, 0)","v":{"v":0,"d":"$0.00"}}]
["MMA",null,null,2016,"2016-12-31","Q4","2017-12-31","Region 9","Operating Expense","Medical Benefits Expense","Other MMA Services",9.1,"Home Health, Private Duty Nursing, Personal Care FFS",{"$f":"IFERROR('MMA Rev-Exp Region 9'!$AK$64/'MMA Rev-Exp Region 9'!$AK$9, 0)","v":{"v":0,"d":"$0.00"}},{"$f":"IFERROR('MMA Rev-Exp Region 9'!$AL$64/'MMA Rev-Exp Region 9'!$AL$9, 0)","v":{"v":0,"d":"$0.00"}},{"$f":"IFERROR('MMA Rev-Exp Region 9'!$AM$64/'MMA Rev-Exp Region 9'!$AM$9, 0)","v":{"v":0,"d":"$0.00"}},{"$f":"IFERROR('MMA Rev-Exp Region 9'!$AN$64/'MMA Rev-Exp Region 9'!$AN$9, 0)","v":{"v":0,"d":"$0.00"}},{"$f":"IFERROR('MMA Rev-Exp Region 9'!$AO$64/'MMA Rev-Exp Region 9'!$AO$9, 0)","v":{"v":0,"d":"$0.00"}},{"$f":"IFERROR('MMA Rev-Exp Region 9'!$AP$64/'MMA Rev-Exp Region 9'!$AP$9, 0)","v":{"v":0,"d":"$0.00"}},{"$f":"IFERROR('MMA Rev-Exp Region 9'!$AQ$64/'MMA Rev-Exp Region 9'!$AQ$9, 0)","v":{"v":0,"d":"$0.00"}},{"$f":"IFERROR('MMA Rev-Exp Region 9'!$AR$64/'MMA Rev-Exp Region 9'!$AR$9, 0)","v":{"v":0,"d":"$0.00"}},{"$f":"IFERROR('MMA Rev-Exp Region 9'!$AS$64/'MMA Rev-Exp Region 9'!$AS$9, 0)","v":{"v":0,"d":"$0.00"}},{"$f":"IFERROR('MMA Rev-Exp Region 9'!$AT$64/'MMA Rev-Exp Region 9'!$AT$9, 0)","v":{"v":0,"d":"$0.00"}},{"$f":"IFERROR('MMA Rev-Exp Region 9'!$AU$64/'MMA Rev-Exp Region 9'!$AU$9, 0)","v":{"v":0,"d":"$0.00"}}]
["MMA",null,null,2016,"2016-12-31","Q4","2017-12-31","Region 9","Operating Expense","Medical Benefits Expense","Other MMA Services","9.2","Hospice FFS",{"$f":"IFERROR('MMA Rev-Exp Region 9'!$AK$65/'MMA Rev-Exp Region 9'!$AK$9, 0)","v":{"v":0,"d":"$0.00"}},{"$f":"IFERROR('MMA Rev-Exp Region 9'!$AL$65/'MMA Rev-Exp Region 9'!$AL$9, 0)","v":{"v":0,"d":"$0.00"}},{"$f":"IFERROR('MMA Rev-Exp Region 9'!$AM$65/'MMA Rev-Exp Region 9'!$AM$9, 0)","v":{"v":0,"d":"$0.00"}},{"$f":"IFERROR('MMA Rev-Exp Region 9'!$AN$65/'MMA Rev-Exp Region 9'!$AN$9, 0)","v":{"v":0,"d":"$0.00"}},{"$f":"IFERROR('MMA Rev-Exp Region 9'!$AO$65/'MMA Rev-Exp Region 9'!$AO$9, 0)","v":{"v":0,"d":"$0.00"}},{"$f":"IFERROR('MMA Rev-Exp Region 9'!$AP$65/'MMA Rev-Exp Region 9'!$AP$9, 0)","v":{"v":0,"d":"$0.00"}},{"$f":"IFERROR('MMA Rev-Exp Region 9'!$AQ$65/'MMA Rev-Exp Region 9'!$AQ$9, 0)","v":{"v":0,"d":"$0.00"}},{"$f":"IFERROR('MMA Rev-Exp Region 9'!$AR$65/'MMA Rev-Exp Region 9'!$AR$9, 0)","v":{"v":0,"d":"$0.00"}},{"$f":"IFERROR('MMA Rev-Exp Region 9'!$AS$65/'MMA Rev-Exp Region 9'!$AS$9, 0)","v":{"v":0,"d":"$0.00"}},{"$f":"IFERROR('MMA Rev-Exp Region 9'!$AT$65/'MMA Rev-Exp Region 9'!$AT$9, 0)","v":{"v":0,"d":"$0.00"}},{"$f":"IFERROR('MMA Rev-Exp Region 9'!$AU$65/'MMA Rev-Exp Region 9'!$AU$9, 0)","v":{"v":0,"d":"$0.00"}}]
["MMA",null,null,2016,"2016-12-31","Q4","2017-12-31","Region 9","Operating Expense","Medical Benefits Expense","Other MMA Services","9.3","DME FFS",{"$f":"IFERROR('MMA Rev-Exp Region 9'!$AK$66/'MMA Rev-Exp Region 9'!$AK$9, 0)","v":{"v":0,"d":"$0.00"}},{"$f":"IFERROR('MMA Rev-Exp Region 9'!$AL$66/'MMA Rev-Exp Region 9'!$AL$9, 0)","v":{"v":0,"d":"$0.00"}},{"$f":"IFERROR('MMA Rev-Exp Region 9'!$AM$66/'MMA Rev-Exp Region 9'!$AM$9, 0)","v":{"v":0,"d":"$0.00"}},{"$f":"IFERROR('MMA Rev-Exp Region 9'!$AN$66/'MMA Rev-Exp Region 9'!$AN$9, 0)","v":{"v":0,"d":"$0.00"}},{"$f":"IFERROR('MMA Rev-Exp Region 9'!$AO$66/'MMA Rev-Exp Region 9'!$AO$9, 0)","v":{"v":0,"d":"$0.00"}},{"$f":"IFERROR('MMA Rev-Exp Region 9'!$AP$66/'MMA Rev-Exp Region 9'!$AP$9, 0)","v":{"v":0,"d":"$0.00"}},{"$f":"IFERROR('MMA Rev-Exp Region 9'!$AQ$66/'MMA Rev-Exp Region 9'!$AQ$9, 0)","v":{"v":0,"d":"$0.00"}},{"$f":"IFERROR('MMA Rev-Exp Region 9'!$AR$66/'MMA Rev-Exp Region 9'!$AR$9, 0)","v":{"v":0,"d":"$0.00"}},{"$f":"IFERROR('MMA Rev-Exp Region 9'!$AS$66/'MMA Rev-Exp Region 9'!$AS$9, 0)","v":{"v":0,"d":"$0.00"}},{"$f":"IFERROR('MMA Rev-Exp Region 9'!$AT$66/'MMA Rev-Exp Region 9'!$AT$9, 0)","v":{"v":0,"d":"$0.00"}},{"$f":"IFERROR('MMA Rev-Exp Region 9'!$AU$66/'MMA Rev-Exp Region 9'!$AU$9, 0)","v":{"v":0,"d":"$0.00"}}]
["MMA",null,null,2016,"2016-12-31","Q4","2017-12-31","Region 9","Operating Expense","Medical Benefits Expense","Other MMA Services","9.4","Other State Plan Services FFS",{"$f":"IFERROR('MMA Rev-Exp Region 9'!$AK$67/'MMA Rev-Exp Region 9'!$AK$9, 0)","v":{"v":0,"d":"$0.00"}},{"$f":"IFERROR('MMA Rev-Exp Region 9'!$AL$67/'MMA Rev-Exp Region 9'!$AL$9, 0)","v":{"v":0,"d":"$0.00"}},{"$f":"IFERROR('MMA Rev-Exp Region 9'!$AM$67/'MMA Rev-Exp Region 9'!$AM$9, 0)","v":{"v":0,"d":"$0.00"}},{"$f":"IFERROR('MMA Rev-Exp Region 9'!$AN$67/'MMA Rev-Exp Region 9'!$AN$9, 0)","v":{"v":0,"d":"$0.00"}},{"$f":"IFERROR('MMA Rev-Exp Region 9'!$AO$67/'MMA Rev-Exp Region 9'!$AO$9, 0)","v":{"v":0,"d":"$0.00"}},{"$f":"IFERROR('MMA Rev-Exp Region 9'!$AP$67/'MMA Rev-Exp Region 9'!$AP$9, 0)","v":{"v":0,"d":"$0.00"}},{"$f":"IFERROR('MMA Rev-Exp Region 9'!$AQ$67/'MMA Rev-Exp Region 9'!$AQ$9, 0)","v":{"v":0,"d":"$0.00"}},{"$f":"IFERROR('MMA Rev-Exp Region 9'!$AR$67/'MMA Rev-Exp Region 9'!$AR$9, 0)","v":{"v":0,"d":"$0.00"}},{"$f":"IFERROR('MMA Rev-Exp Region 9'!$AS$67/'MMA Rev-Exp Region 9'!$AS$9, 0)","v":{"v":0,"d":"$0.00"}},{"$f":"IFERROR('MMA Rev-Exp Region 9'!$AT$67/'MMA Rev-Exp Region 9'!$AT$9, 0)","v":{"v":0,"d":"$0.00"}},{"$f":"IFERROR('MMA Rev-Exp Region 9'!$AU$67/'MMA Rev-Exp Region 9'!$AU$9, 0)","v":{"v":0,"d":"$0.00"}}]
["MMA",null,null,2016,"2016-12-31","Q4","2017-12-31","Region 9","Operating Expense","Medical Benefits Expense","Other MMA Services","9.5","Other Services Subcapitation",{"$f":"IFERROR('MMA Rev-Exp Region 9'!$AK$68/'MMA Rev-Exp Region 9'!$AK$9, 0)","v":{"v":0,"d":"$0.00"}},{"$f":"IFERROR('MMA Rev-Exp Region 9'!$AL$68/'MMA Rev-Exp Region 9'!$AL$9, 0)","v":{"v":0,"d":"$0.00"}},{"$f":"IFERROR('MMA Rev-Exp Region 9'!$AM$68/'MMA Rev-Exp Region 9'!$AM$9, 0)","v":{"v":0,"d":"$0.00"}},{"$f":"IFERROR('MMA Rev-Exp Region 9'!$AN$68/'MMA Rev-Exp Region 9'!$AN$9, 0)","v":{"v":0,"d":"$0.00"}},{"$f":"IFERROR('MMA Rev-Exp Region 9'!$AO$68/'MMA Rev-Exp Region 9'!$AO$9, 0)","v":{"v":0,"d":"$0.00"}},{"$f":"IFERROR('MMA Rev-Exp Region 9'!$AP$68/'MMA Rev-Exp Region 9'!$AP$9, 0)","v":{"v":0,"d":"$0.00"}},{"$f":"IFERROR('MMA Rev-Exp Region 9'!$AQ$68/'MMA Rev-Exp Region 9'!$AQ$9, 0)","v":{"v":0,"d":"$0.00"}},{"$f":"IFERROR('MMA Rev-Exp Region 9'!$AR$68/'MMA Rev-Exp Region 9'!$AR$9, 0)","v":{"v":0,"d":"$0.00"}},{"$f":"IFERROR('MMA Rev-Exp Region 9'!$AS$68/'MMA Rev-Exp Region 9'!$AS$9, 0)","v":{"v":0,"d":"$0.00"}},{"$f":"IFERROR('MMA Rev-Exp Region 9'!$AT$68/'MMA Rev-Exp Region 9'!$AT$9, 0)","v":{"v":0,"d":"$0.00"}},{"$f":"IFERROR('MMA Rev-Exp Region 9'!$AU$68/'MMA Rev-Exp Region 9'!$AU$9, 0)","v":{"v":0,"d":"$0.00"}}]
["MMA",null,null,2016,"2016-12-31","Q4","2017-12-31","Region 9","Operating Expense","Medical Benefits Expense","Other MMA Services","9.6","Ending IBNP for Other Services",{"$f":"IFERROR('MMA Rev-Exp Region 9'!$AK$69/'MMA Rev-Exp Region 9'!$AK$9, 0)","v":{"v":0,"d":"$0.00"}},{"$f":"IFERROR('MMA Rev-Exp Region 9'!$AL$69/'MMA Rev-Exp Region 9'!$AL$9, 0)","v":{"v":0,"d":"$0.00"}},{"$f":"IFERROR('MMA Rev-Exp Region 9'!$AM$69/'MMA Rev-Exp Region 9'!$AM$9, 0)","v":{"v":0,"d":"$0.00"}},{"$f":"IFERROR('MMA Rev-Exp Region 9'!$AN$69/'MMA Rev-Exp Region 9'!$AN$9, 0)","v":{"v":0,"d":"$0.00"}},{"$f":"IFERROR('MMA Rev-Exp Region 9'!$AO$69/'MMA Rev-Exp Region 9'!$AO$9, 0)","v":{"v":0,"d":"$0.00"}},{"$f":"IFERROR('MMA Rev-Exp Region 9'!$AP$69/'MMA Rev-Exp Region 9'!$AP$9, 0)","v":{"v":0,"d":"$0.00"}},{"$f":"IFERROR('MMA Rev-Exp Region 9'!$AQ$69/'MMA Rev-Exp Region 9'!$AQ$9, 0)","v":{"v":0,"d":"$0.00"}},{"$f":"IFERROR('MMA Rev-Exp Region 9'!$AR$69/'MMA Rev-Exp Region 9'!$AR$9, 0)","v":{"v":0,"d":"$0.00"}},{"$f":"IFERROR('MMA Rev-Exp Region 9'!$AS$69/'MMA Rev-Exp Region 9'!$AS$9, 0)","v":{"v":0,"d":"$0.00"}},{"$f":"IFERROR('MMA Rev-Exp Region 9'!$AT$69/'MMA Rev-Exp Region 9'!$AT$9, 0)","v":{"v":0,"d":"$0.00"}},{"$f":"IFERROR('MMA Rev-Exp Region 9'!$AU$69/'MMA Rev-Exp Region 9'!$AU$9, 0)","v":{"v":0,"d":"$0.00"}}]
["MMA",null,null,2016,"2016-12-31","Q4","2017-12-31","Region 9","Operating Expense","Medical Benefits Expense","Other MMA Services","9.7","Other Services Settlements",{"$f":"IFERROR('MMA Rev-Exp Region 9'!$AK$70/'MMA Rev-Exp Region 9'!$AK$9, 0)","v":{"v":0,"d":"$0.00"}},{"$f":"IFERROR('MMA Rev-Exp Region 9'!$AL$70/'MMA Rev-Exp Region 9'!$AL$9, 0)","v":{"v":0,"d":"$0.00"}},{"$f":"IFERROR('MMA Rev-Exp Region 9'!$AM$70/'MMA Rev-Exp Region 9'!$AM$9, 0)","v":{"v":0,"d":"$0.00"}},{"$f":"IFERROR('MMA Rev-Exp Region 9'!$AN$70/'MMA Rev-Exp Region 9'!$AN$9, 0)","v":{"v":0,"d":"$0.00"}},{"$f":"IFERROR('MMA Rev-Exp Region 9'!$AO$70/'MMA Rev-Exp Region 9'!$AO$9, 0)","v":{"v":0,"d":"$0.00"}},{"$f":"IFERROR('MMA Rev-Exp Region 9'!$AP$70/'MMA Rev-Exp Region 9'!$AP$9, 0)","v":{"v":0,"d":"$0.00"}},{"$f":"IFERROR('MMA Rev-Exp Region 9'!$AQ$70/'MMA Rev-Exp Region 9'!$AQ$9, 0)","v":{"v":0,"d":"$0.00"}},{"$f":"IFERROR('MMA Rev-Exp Region 9'!$AR$70/'MMA Rev-Exp Region 9'!$AR$9, 0)","v":{"v":0,"d":"$0.00"}},{"$f":"IFERROR('MMA Rev-Exp Region 9'!$AS$70/'MMA Rev-Exp Region 9'!$AS$9, 0)","v":{"v":0,"d":"$0.00"}},{"$f":"IFERROR('MMA Rev-Exp Region 9'!$AT$70/'MMA Rev-Exp Region 9'!$AT$9, 0)","v":{"v":0,"d":"$0.00"}},{"$f":"IFERROR('MMA Rev-Exp Region 9'!$AU$70/'MMA Rev-Exp Region 9'!$AU$9, 0)","v":{"v":0,"d":"$0.00"}}]
["MMA",null,null,2016,"2016-12-31","Q4","2017-12-31","Region 9","Operating Expense","Medical Benefits Expense","Expanded Benefits","10.1","Expanded Benefits FFS",{"$f":"IFERROR('MMA Rev-Exp Region 9'!$AK$72/'MMA Rev-Exp Region 9'!$AK$9, 0)","v":{"v":0,"d":"$0.00"}},{"$f":"IFERROR('MMA Rev-Exp Region 9'!$AL$72/'MMA Rev-Exp Region 9'!$AL$9, 0)","v":{"v":0,"d":"$0.00"}},{"$f":"IFERROR('MMA Rev-Exp Region 9'!$AM$72/'MMA Rev-Exp Region 9'!$AM$9, 0)","v":{"v":0,"d":"$0.00"}},{"$f":"IFERROR('MMA Rev-Exp Region 9'!$AN$72/'MMA Rev-Exp Region 9'!$AN$9, 0)","v":{"v":0,"d":"$0.00"}},{"$f":"IFERROR('MMA Rev-Exp Region 9'!$AO$72/'MMA Rev-Exp Region 9'!$AO$9, 0)","v":{"v":0,"d":"$0.00"}},{"$f":"IFERROR('MMA Rev-Exp Region 9'!$AP$72/'MMA Rev-Exp Region 9'!$AP$9, 0)","v":{"v":0,"d":"$0.00"}},{"$f":"IFERROR('MMA Rev-Exp Region 9'!$AQ$72/'MMA Rev-Exp Region 9'!$AQ$9, 0)","v":{"v":0,"d":"$0.00"}},{"$f":"IFERROR('MMA Rev-Exp Region 9'!$AR$72/'MMA Rev-Exp Region 9'!$AR$9, 0)","v":{"v":0,"d":"$0.00"}},{"$f":"IFERROR('MMA Rev-Exp Region 9'!$AS$72/'MMA Rev-Exp Region 9'!$AS$9, 0)","v":{"v":0,"d":"$0.00"}},{"$f":"IFERROR('MMA Rev-Exp Region 9'!$AT$72/'MMA Rev-Exp Region 9'!$AT$9, 0)","v":{"v":0,"d":"$0.00"}},{"$f":"IFERROR('MMA Rev-Exp Region 9'!$AU$72/'MMA Rev-Exp Region 9'!$AU$9, 0)","v":{"v":0,"d":"$0.00"}}]
["MMA",null,null,2016,"2016-12-31","Q4","2017-12-31","Region 9","Operating Expense","Medical Benefits Expense","Expanded Benefits","10.2","Expanded benefits Subcapitation",{"$f":"IFERROR('MMA Rev-Exp Region 9'!$AK$73/'MMA Rev-Exp Region 9'!$AK$9, 0)","v":{"v":0,"d":"$0.00"}},{"$f":"IFERROR('MMA Rev-Exp Region 9'!$AL$73/'MMA Rev-Exp Region 9'!$AL$9, 0)","v":{"v":0,"d":"$0.00"}},{"$f":"IFERROR('MMA Rev-Exp Region 9'!$AM$73/'MMA Rev-Exp Region 9'!$AM$9, 0)","v":{"v":0,"d":"$0.00"}},{"$f":"IFERROR('MMA Rev-Exp Region 9'!$AN$73/'MMA Rev-Exp Region 9'!$AN$9, 0)","v":{"v":0,"d":"$0.00"}},{"$f":"IFERROR('MMA Rev-Exp Region 9'!$AO$73/'MMA Rev-Exp Region 9'!$AO$9, 0)","v":{"v":0,"d":"$0.00"}},{"$f":"IFERROR('MMA Rev-Exp Region 9'!$AP$73/'MMA Rev-Exp Region 9'!$AP$9, 0)","v":{"v":0,"d":"$0.00"}},{"$f":"IFERROR('MMA Rev-Exp Region 9'!$AQ$73/'MMA Rev-Exp Region 9'!$AQ$9, 0)","v":{"v":0,"d":"$0.00"}},{"$f":"IFERROR('MMA Rev-Exp Region 9'!$AR$73/'MMA Rev-Exp Region 9'!$AR$9, 0)","v":{"v":0,"d":"$0.00"}},{"$f":"IFERROR('MMA Rev-Exp Region 9'!$AS$73/'MMA Rev-Exp Region 9'!$AS$9, 0)","v":{"v":0,"d":"$0.00"}},{"$f":"IFERROR('MMA Rev-Exp Region 9'!$AT$73/'MMA Rev-Exp Region 9'!$AT$9, 0)","v":{"v":0,"d":"$0.00"}},{"$f":"IFERROR('MMA Rev-Exp Region 9'!$AU$73/'MMA Rev-Exp Region 9'!$AU$9, 0)","v":{"v":0,"d":"$0.00"}}]
["MMA",null,null,2016,"2016-12-31","Q4","2017-12-31","Region 9","Operating Expense","Medical Benefits Expense","Expanded Benefits","10.3","Ending IBNP for Expanded Benefits",{"$f":"IFERROR('MMA Rev-Exp Region 9'!$AK$74/'MMA Rev-Exp Region 9'!$AK$9, 0)","v":{"v":0,"d":"$0.00"}},{"$f":"IFERROR('MMA Rev-Exp Region 9'!$AL$74/'MMA Rev-Exp Region 9'!$AL$9, 0)","v":{"v":0,"d":"$0.00"}},{"$f":"IFERROR('MMA Rev-Exp Region 9'!$AM$74/'MMA Rev-Exp Region 9'!$AM$9, 0)","v":{"v":0,"d":"$0.00"}},{"$f":"IFERROR('MMA Rev-Exp Region 9'!$AN$74/'MMA Rev-Exp Region 9'!$AN$9, 0)","v":{"v":0,"d":"$0.00"}},{"$f":"IFERROR('MMA Rev-Exp Region 9'!$AO$74/'MMA Rev-Exp Region 9'!$AO$9, 0)","v":{"v":0,"d":"$0.00"}},{"$f":"IFERROR('MMA Rev-Exp Region 9'!$AP$74/'MMA Rev-Exp Region 9'!$AP$9, 0)","v":{"v":0,"d":"$0.00"}},{"$f":"IFERROR('MMA Rev-Exp Region 9'!$AQ$74/'MMA Rev-Exp Region 9'!$AQ$9, 0)","v":{"v":0,"d":"$0.00"}},{"$f":"IFERROR('MMA Rev-Exp Region 9'!$AR$74/'MMA Rev-Exp Region 9'!$AR$9, 0)","v":{"v":0,"d":"$0.00"}},{"$f":"IFERROR('MMA Rev-Exp Region 9'!$AS$74/'MMA Rev-Exp Region 9'!$AS$9, 0)","v":{"v":0,"d":"$0.00"}},{"$f":"IFERROR('MMA Rev-Exp Region 9'!$AT$74/'MMA Rev-Exp Region 9'!$AT$9, 0)","v":{"v":0,"d":"$0.00"}},{"$f":"IFERROR('MMA Rev-Exp Region 9'!$AU$74/'MMA Rev-Exp Region 9'!$AU$9, 0)","v":{"v":0,"d":"$0.00"}}]
["MMA",null,null,2016,"2016-12-31","Q4","2017-12-31","Region 9","Operating Expense","Medical Benefits Expense","Expanded Benefits","10.4","Expanded Benefits Settlements",{"$f":"IFERROR('MMA Rev-Exp Region 9'!$AK$75/'MMA Rev-Exp Region 9'!$AK$9, 0)","v":{"v":0,"d":"$0.00"}},{"$f":"IFERROR('MMA Rev-Exp Region 9'!$AL$75/'MMA Rev-Exp Region 9'!$AL$9, 0)","v":{"v":0,"d":"$0.00"}},{"$f":"IFERROR('MMA Rev-Exp Region 9'!$AM$75/'MMA Rev-Exp Region 9'!$AM$9, 0)","v":{"v":0,"d":"$0.00"}},{"$f":"IFERROR('MMA Rev-Exp Region 9'!$AN$75/'MMA Rev-Exp Region 9'!$AN$9, 0)","v":{"v":0,"d":"$0.00"}},{"$f":"IFERROR('MMA Rev-Exp Region 9'!$AO$75/'MMA Rev-Exp Region 9'!$AO$9, 0)","v":{"v":0,"d":"$0.00"}},{"$f":"IFERROR('MMA Rev-Exp Region 9'!$AP$75/'MMA Rev-Exp Region 9'!$AP$9, 0)","v":{"v":0,"d":"$0.00"}},{"$f":"IFERROR('MMA Rev-Exp Region 9'!$AQ$75/'MMA Rev-Exp Region 9'!$AQ$9, 0)","v":{"v":0,"d":"$0.00"}},{"$f":"IFERROR('MMA Rev-Exp Region 9'!$AR$75/'MMA Rev-Exp Region 9'!$AR$9, 0)","v":{"v":0,"d":"$0.00"}},{"$f":"IFERROR('MMA Rev-Exp Region 9'!$AS$75/'MMA Rev-Exp Region 9'!$AS$9, 0)","v":{"v":0,"d":"$0.00"}},{"$f":"IFERROR('MMA Rev-Exp Region 9'!$AT$75/'MMA Rev-Exp Region 9'!$AT$9, 0)","v":{"v":0,"d":"$0.00"}},{"$f":"IFERROR('MMA Rev-Exp Region 9'!$AU$75/'MMA Rev-Exp Region 9'!$AU$9, 0)","v":{"v":0,"d":"$0.00"}}]
["MMA",null,null,2016,"2016-12-31","Q4","2017-12-31","Region 9","Operating Expense","Medical Benefits Expense","Other Medical","11.5","TPL & Fraud/Abuse Recoveries",{"$f":"IFERROR('MMA Rev-Exp Region 9'!$AK$81/'MMA Rev-Exp Region 9'!$AK$9, 0)","v":{"v":0,"d":"$0.00"}},{"$f":"IFERROR('MMA Rev-Exp Region 9'!$AL$81/'MMA Rev-Exp Region 9'!$AL$9, 0)","v":{"v":0,"d":"$0.00"}},{"$f":"IFERROR('MMA Rev-Exp Region 9'!$AM$81/'MMA Rev-Exp Region 9'!$AM$9, 0)","v":{"v":0,"d":"$0.00"}},{"$f":"IFERROR('MMA Rev-Exp Region 9'!$AN$81/'MMA Rev-Exp Region 9'!$AN$9, 0)","v":{"v":0,"d":"$0.00"}},{"$f":"IFERROR('MMA Rev-Exp Region 9'!$AO$81/'MMA Rev-Exp Region 9'!$AO$9, 0)","v":{"v":0,"d":"$0.00"}},{"$f":"IFERROR('MMA Rev-Exp Region 9'!$AP$81/'MMA Rev-Exp Region 9'!$AP$9, 0)","v":{"v":0,"d":"$0.00"}},{"$f":"IFERROR('MMA Rev-Exp Region 9'!$AQ$81/'MMA Rev-Exp Region 9'!$AQ$9, 0)","v":{"v":0,"d":"$0.00"}},{"$f":"IFERROR('MMA Rev-Exp Region 9'!$AR$81/'MMA Rev-Exp Region 9'!$AR$9, 0)","v":{"v":0,"d":"$0.00"}},{"$f":"IFERROR('MMA Rev-Exp Region 9'!$AS$81/'MMA Rev-Exp Region 9'!$AS$9, 0)","v":{"v":0,"d":"$0.00"}},{"$f":"IFERROR('MMA Rev-Exp Region 9'!$AT$81/'MMA Rev-Exp Region 9'!$AT$9, 0)","v":{"v":0,"d":"$0.00"}},{"$f":"IFERROR('MMA Rev-Exp Region 9'!$AU$81/'MMA Rev-Exp Region 9'!$AU$9, 0)","v":{"v":0,"d":"$0.00"}}]
["MMA",null,null,2016,"2016-12-31","Q4","2017-12-31","Region 9","Operating Expense","Medical Benefits Expense","Other Medical","11.6.1","Premium Deficiency Reserve",{"$f":"IFERROR('MMA Rev-Exp Region 9'!$AK$82/'MMA Rev-Exp Region 9'!$AK$9, 0)","v":{"v":0,"d":"$0.00"}},{"$f":"IFERROR('MMA Rev-Exp Region 9'!$AL$82/'MMA Rev-Exp Region 9'!$AL$9, 0)","v":{"v":0,"d":"$0.00"}},{"$f":"IFERROR('MMA Rev-Exp Region 9'!$AM$82/'MMA Rev-Exp Region 9'!$AM$9, 0)","v":{"v":0,"d":"$0.00"}},{"$f":"IFERROR('MMA Rev-Exp Region 9'!$AN$82/'MMA Rev-Exp Region 9'!$AN$9, 0)","v":{"v":0,"d":"$0.00"}},{"$f":"IFERROR('MMA Rev-Exp Region 9'!$AO$82/'MMA Rev-Exp Region 9'!$AO$9, 0)","v":{"v":0,"d":"$0.00"}},{"$f":"IFERROR('MMA Rev-Exp Region 9'!$AP$82/'MMA Rev-Exp Region 9'!$AP$9, 0)","v":{"v":0,"d":"$0.00"}},{"$f":"IFERROR('MMA Rev-Exp Region 9'!$AQ$82/'MMA Rev-Exp Region 9'!$AQ$9, 0)","v":{"v":0,"d":"$0.00"}},{"$f":"IFERROR('MMA Rev-Exp Region 9'!$AR$82/'MMA Rev-Exp Region 9'!$AR$9, 0)","v":{"v":0,"d":"$0.00"}},{"$f":"IFERROR('MMA Rev-Exp Region 9'!$AS$82/'MMA Rev-Exp Region 9'!$AS$9, 0)","v":{"v":0,"d":"$0.00"}},{"$f":"IFERROR('MMA Rev-Exp Region 9'!$AT$82/'MMA Rev-Exp Region 9'!$AT$9, 0)","v":{"v":0,"d":"$0.00"}},{"$f":"IFERROR('MMA Rev-Exp Region 9'!$AU$82/'MMA Rev-Exp Region 9'!$AU$9, 0)","v":{"v":0,"d":"$0.00"}}]
["MMA",null,null,2016,"2016-12-31","Q4","2017-12-31","Region 9","Operating Expense","Medical Benefits Expense","Other Medical","11.8","Reinsurance Premiums",{"$f":"IFERROR('MMA Rev-Exp Region 9'!$AK$84/'MMA Rev-Exp Region 9'!$AK$9, 0)","v":{"v":0,"d":"$0.00"}},{"$f":"IFERROR('MMA Rev-Exp Region 9'!$AL$84/'MMA Rev-Exp Region 9'!$AL$9, 0)","v":{"v":0,"d":"$0.00"}},{"$f":"IFERROR('MMA Rev-Exp Region 9'!$AM$84/'MMA Rev-Exp Region 9'!$AM$9, 0)","v":{"v":0,"d":"$0.00"}},{"$f":"IFERROR('MMA Rev-Exp Region 9'!$AN$84/'MMA Rev-Exp Region 9'!$AN$9, 0)","v":{"v":0,"d":"$0.00"}},{"$f":"IFERROR('MMA Rev-Exp Region 9'!$AO$84/'MMA Rev-Exp Region 9'!$AO$9, 0)","v":{"v":0,"d":"$0.00"}},{"$f":"IFERROR('MMA Rev-Exp Region 9'!$AP$84/'MMA Rev-Exp Region 9'!$AP$9, 0)","v":{"v":0,"d":"$0.00"}},{"$f":"IFERROR('MMA Rev-Exp Region 9'!$AQ$84/'MMA Rev-Exp Region 9'!$AQ$9, 0)","v":{"v":0,"d":"$0.00"}},{"$f":"IFERROR('MMA Rev-Exp Region 9'!$AR$84/'MMA Rev-Exp Region 9'!$AR$9, 0)","v":{"v":0,"d":"$0.00"}},{"$f":"IFERROR('MMA Rev-Exp Region 9'!$AS$84/'MMA Rev-Exp Region 9'!$AS$9, 0)","v":{"v":0,"d":"$0.00"}},{"$f":"IFERROR('MMA Rev-Exp Region 9'!$AT$84/'MMA Rev-Exp Region 9'!$AT$9, 0)","v":{"v":0,"d":"$0.00"}},{"$f":"IFERROR('MMA Rev-Exp Region 9'!$AU$84/'MMA Rev-Exp Region 9'!$AU$9, 0)","v":{"v":0,"d":"$0.00"}}]
["MMA",null,null,2016,"2016-12-31","Q4","2017-12-31","Region 9","Operating Expense","Medical Benefits Expense","Other Medical","11.9","Reinsurance Recoveries",{"$f":"IFERROR('MMA Rev-Exp Region 9'!$AK$85/'MMA Rev-Exp Region 9'!$AK$9, 0)","v":{"v":0,"d":"$0.00"}},{"$f":"IFERROR('MMA Rev-Exp Region 9'!$AL$85/'MMA Rev-Exp Region 9'!$AL$9, 0)","v":{"v":0,"d":"$0.00"}},{"$f":"IFERROR('MMA Rev-Exp Region 9'!$AM$85/'MMA Rev-Exp Region 9'!$AM$9, 0)","v":{"v":0,"d":"$0.00"}},{"$f":"IFERROR('MMA Rev-Exp Region 9'!$AN$85/'MMA Rev-Exp Region 9'!$AN$9, 0)","v":{"v":0,"d":"$0.00"}},{"$f":"IFERROR('MMA Rev-Exp Region 9'!$AO$85/'MMA Rev-Exp Region 9'!$AO$9, 0)","v":{"v":0,"d":"$0.00"}},{"$f":"IFERROR('MMA Rev-Exp Region 9'!$AP$85/'MMA Rev-Exp Region 9'!$AP$9, 0)","v":{"v":0,"d":"$0.00"}},{"$f":"IFERROR('MMA Rev-Exp Region 9'!$AQ$85/'MMA Rev-Exp Region 9'!$AQ$9, 0)","v":{"v":0,"d":"$0.00"}},{"$f":"IFERROR('MMA Rev-Exp Region 9'!$AR$85/'MMA Rev-Exp Region 9'!$AR$9, 0)","v":{"v":0,"d":"$0.00"}},{"$f":"IFERROR('MMA Rev-Exp Region 9'!$AS$85/'MMA Rev-Exp Region 9'!$AS$9, 0)","v":{"v":0,"d":"$0.00"}},{"$f":"IFERROR('MMA Rev-Exp Region 9'!$AT$85/'MMA Rev-Exp Region 9'!$AT$9, 0)","v":{"v":0,"d":"$0.00"}},{"$f":"IFERROR('MMA Rev-Exp Region 9'!$AU$85/'MMA Rev-Exp Region 9'!$AU$9, 0)","v":{"v":0,"d":"$0.00"}}]
["MMA",null,null,2016,"2016-12-31","Q4","2017-12-31","Region 9","Operating Expense","Administrative Expense","Administrative","12.1","Salaries & Benefits",{"$f":"IFERROR('MMA Rev-Exp Region 9'!$AK$90/'MMA Rev-Exp Region 9'!$AK$9, 0)","v":{"v":0,"d":"$0.00"}},{"$f":"IFERROR('MMA Rev-Exp Region 9'!$AL$90/'MMA Rev-Exp Region 9'!$AK$9, 0)","v":{"v":0,"d":"$0.00"}},{"$f":"IFERROR('MMA Rev-Exp Region 9'!$AM$90/'MMA Rev-Exp Region 9'!$AK$9, 0)","v":{"v":0,"d":"$0.00"}}]
["MMA",null,null,2016,"2016-12-31","Q4","2017-12-31","Region 9","Operating Expense","Administrative Expense","Administrative","12.2","Administrative Services",{"$f":"IFERROR('MMA Rev-Exp Region 9'!$AK$91/'MMA Rev-Exp Region 9'!$AK$9, 0)","v":{"v":0,"d":"$0.00"}},{"$f":"IFERROR('MMA Rev-Exp Region 9'!$AL$91/'MMA Rev-Exp Region 9'!$AK$9, 0)","v":{"v":0,"d":"$0.00"}},{"$f":"IFERROR('MMA Rev-Exp Region 9'!$AM$91/'MMA Rev-Exp Region 9'!$AK$9, 0)","v":{"v":0,"d":"$0.00"}}]
["MMA",null,null,2016,"2016-12-31","Q4","2017-12-31","Region 9","Operating Expense","Administrative Expense","Administrative","12.3","Information Systems",{"$f":"IFERROR('MMA Rev-Exp Region 9'!$AK$92/'MMA Rev-Exp Region 9'!$AK$9, 0)","v":{"v":0,"d":"$0.00"}},{"$f":"IFERROR('MMA Rev-Exp Region 9'!$AL$92/'MMA Rev-Exp Region 9'!$AK$9, 0)","v":{"v":0,"d":"$0.00"}},{"$f":"IFERROR('MMA Rev-Exp Region 9'!$AM$92/'MMA Rev-Exp Region 9'!$AK$9, 0)","v":{"v":0,"d":"$0.00"}}]
["MMA",null,null,2016,"2016-12-31","Q4","2017-12-31","Region 9","Operating Expense","Administrative Expense","Administrative","12.4","Marketing Expenses",{"$f":"IFERROR('MMA Rev-Exp Region 9'!$AK$93/'MMA Rev-Exp Region 9'!$AK$9, 0)","v":{"v":0,"d":"$0.00"}},{"$f":"IFERROR('MMA Rev-Exp Region 9'!$AL$93/'MMA Rev-Exp Region 9'!$AK$9, 0)","v":{"v":0,"d":"$0.00"}},{"$f":"IFERROR('MMA Rev-Exp Region 9'!$AM$93/'MMA Rev-Exp Region 9'!$AK$9, 0)","v":{"v":0,"d":"$0.00"}}]
["MMA",null,null,2016,"2016-12-31","Q4","2017-12-31","Region 9","Operating Expense","Administrative Expense","Administrative","12.5","General  Administration",{"$f":"IFERROR('MMA Rev-Exp Region 9'!$AK$94/'MMA Rev-Exp Region 9'!$AK$9, 0)","v":{"v":0,"d":"$0.00"}},{"$f":"IFERROR('MMA Rev-Exp Region 9'!$AL$94/'MMA Rev-Exp Region 9'!$AK$9, 0)","v":{"v":0,"d":"$0.00"}},{"$f":"IFERROR('MMA Rev-Exp Region 9'!$AM$94/'MMA Rev-Exp Region 9'!$AK$9, 0)","v":{"v":0,"d":"$0.00"}}]
["MMA",null,null,2016,"2016-12-31","Q4","2017-12-31","Region 9","Operating Expense","Administrative Expense","Administrative","12.6","Compliance/Regulatory",{"$f":"IFERROR('MMA Rev-Exp Region 9'!$AK$95/'MMA Rev-Exp Region 9'!$AK$9, 0)","v":{"v":0,"d":"$0.00"}},{"$f":"IFERROR('MMA Rev-Exp Region 9'!$AL$95/'MMA Rev-Exp Region 9'!$AK$9, 0)","v":{"v":0,"d":"$0.00"}},{"$f":"IFERROR('MMA Rev-Exp Region 9'!$AM$95/'MMA Rev-Exp Region 9'!$AK$9, 0)","v":{"v":0,"d":"$0.00"}}]
["MMA",null,null,2016,"2016-12-31","Q4","2017-12-31","Region 9","Operating Expense","Taxes & Fees","Taxes & Fees","13.1","State Premium tax",{"$f":"IFERROR('MMA Rev-Exp Region 9'!$AK$97/'MMA Rev-Exp Region 9'!$AK$9, 0)","v":{"v":0,"d":"$0.00"}}]
["MMA",null,null,2016,"2016-12-31","Q4","2017-12-31","Region 9","Operating Expense","Taxes & Fees","Taxes & Fees","13.2","Department of Insurance Assessments",{"$f":"IFERROR('MMA Rev-Exp Region 9'!$AK$98/'MMA Rev-Exp Region 9'!$AK$9, 0)","v":{"v":0,"d":"$0.00"}}]
["MMA",null,null,2016,"2016-12-31","Q4","2017-12-31","Region 9","Operating Expense","Taxes & Fees","Taxes & Fees","13.3","Section 9010 Health Insurance Providers Fee",{"$f":"IFERROR('MMA Rev-Exp Region 9'!$AK$99/'MMA Rev-Exp Region 9'!$AK$9, 0)","v":{"v":0,"d":"$0.00"}}]
["MMA",null,null,2016,"2016-12-31","Q4","2017-12-31","Region 9","Non-Operating Expense","Income Tax Expense","Income Tax Expense","16.0","Income Tax Expense",{"$f":"IFERROR('MMA Rev-Exp Region 9'!$AK$106/'MMA Rev-Exp Region 9'!$AK$9, 0)","v":{"v":0,"d":"$0.00"}}]
["MMA",null,null,2016,"2016-12-31","Q1","2017-03-31","Region 10","Operating Revenue","Capitation","Capitation",1.1,"Capitation",{"$f":"IFERROR('MMA Rev-Exp Region 10'!$D$11/'MMA Rev-Exp Region 10'!$D$9, 0)","v":{"v":0,"d":"$0.00"}},{"$f":"IFERROR('MMA Rev-Exp Region 10'!$E$11/'MMA Rev-Exp Region 10'!$E$9, 0)","v":{"v":0,"d":"$0.00"}},{"$f":"IFERROR('MMA Rev-Exp Region 10'!$F$11/'MMA Rev-Exp Region 10'!$F$9, 0)","v":{"v":0,"d":"$0.00"}},{"$f":"IFERROR('MMA Rev-Exp Region 10'!$G$11/'MMA Rev-Exp Region 10'!$G$9, 0)","v":{"v":0,"d":"$0.00"}},{"$f":"IFERROR('MMA Rev-Exp Region 10'!$H$11/'MMA Rev-Exp Region 10'!$H$9, 0)","v":{"v":0,"d":"$0.00"}},{"$f":"IFERROR('MMA Rev-Exp Region 10'!$I$11/'MMA Rev-Exp Region 10'!$I$9, 0)","v":{"v":0,"d":"$0.00"}},{"$f":"IFERROR('MMA Rev-Exp Region 10'!$J$11/'MMA Rev-Exp Region 10'!$J$9, 0)","v":{"v":0,"d":"$0.00"}},{"$f":"IFERROR('MMA Rev-Exp Region 10'!$K$11/'MMA Rev-Exp Region 10'!$K$9, 0)","v":{"v":0,"d":"$0.00"}},{"$f":"IFERROR('MMA Rev-Exp Region 10'!$L$11/'MMA Rev-Exp Region 10'!$L$9, 0)","v":{"v":0,"d":"$0.00"}},{"$f":"IFERROR('MMA Rev-Exp Region 10'!$M$11/'MMA Rev-Exp Region 10'!$M$9, 0)","v":{"v":0,"d":"$0.00"}},{"$f":"IFERROR('MMA Rev-Exp Region 10'!$N$11/'MMA Rev-Exp Region 10'!$N$9, 0)","v":{"v":0,"d":"$0.00"}}]
["MMA",null,null,2016,"2016-12-31","Q1","2017-03-31","Region 10","Operating Revenue","Kick Payments","Kick Payments - Transplant",1.2,"Transplant Kick Payments",{"$f":"IFERROR('MMA Rev-Exp Region 10'!$D$12/'MMA Rev-Exp Region 10'!$D$9, 0)","v":{"v":0,"d":"$0.00"}},{"$f":"IFERROR('MMA Rev-Exp Region 10'!$E$12/'MMA Rev-Exp Region 10'!$E$9, 0)","v":{"v":0,"d":"$0.00"}},{"$f":"IFERROR('MMA Rev-Exp Region 10'!$F$12/'MMA Rev-Exp Region 10'!$F$9, 0)","v":{"v":0,"d":"$0.00"}},{"$f":"IFERROR('MMA Rev-Exp Region 10'!$G$12/'MMA Rev-Exp Region 10'!$G$9, 0)","v":{"v":0,"d":"$0.00"}},{"$f":"IFERROR('MMA Rev-Exp Region 10'!$H$12/'MMA Rev-Exp Region 10'!$H$9, 0)","v":{"v":0,"d":"$0.00"}},{"$f":"IFERROR('MMA Rev-Exp Region 10'!$I$12/'MMA Rev-Exp Region 10'!$I$9, 0)","v":{"v":0,"d":"$0.00"}},{"$f":"IFERROR('MMA Rev-Exp Region 10'!$J$12/'MMA Rev-Exp Region 10'!$J$9, 0)","v":{"v":0,"d":"$0.00"}},{"$f":"IFERROR('MMA Rev-Exp Region 10'!$K$12/'MMA Rev-Exp Region 10'!$K$9, 0)","v":{"v":0,"d":"$0.00"}},{"$f":"IFERROR('MMA Rev-Exp Region 10'!$L$12/'MMA Rev-Exp Region 10'!$L$9, 0)","v":{"v":0,"d":"$0.00"}},{"$f":"IFERROR('MMA Rev-Exp Region 10'!$M$12/'MMA Rev-Exp Region 10'!$M$9, 0)","v":{"v":0,"d":"$0.00"}},{"$f":"IFERROR('MMA Rev-Exp Region 10'!$N$12/'MMA Rev-Exp Region 10'!$N$9, 0)","v":{"v":0,"d":"$0.00"}}]
["MMA",null,null,2016,"2016-12-31","Q1","2017-03-31","Region 10","Operating Revenue","Kick Payments","Kick Payments - Hep C","1.3","Hepatitis C Kick Payments",{"$f":"IFERROR('MMA Rev-Exp Region 10'!$D$13/'MMA Rev-Exp Region 10'!$D$9, 0)","v":{"v":0,"d":"$0.00"}},{"$f":"IFERROR('MMA Rev-Exp Region 10'!$E$13/'MMA Rev-Exp Region 10'!$E$9, 0)","v":{"v":0,"d":"$0.00"}},{"$f":"IFERROR('MMA Rev-Exp Region 10'!$F$13/'MMA Rev-Exp Region 10'!$F$9, 0)","v":{"v":0,"d":"$0.00"}},{"$f":"IFERROR('MMA Rev-Exp Region 10'!$G$13/'MMA Rev-Exp Region 10'!$G$9, 0)","v":{"v":0,"d":"$0.00"}},{"$f":"IFERROR('MMA Rev-Exp Region 10'!$H$13/'MMA Rev-Exp Region 10'!$H$9, 0)","v":{"v":0,"d":"$0.00"}},{"$f":"IFERROR('MMA Rev-Exp Region 10'!$I$13/'MMA Rev-Exp Region 10'!$I$9, 0)","v":{"v":0,"d":"$0.00"}},{"$f":"IFERROR('MMA Rev-Exp Region 10'!$J$13/'MMA Rev-Exp Region 10'!$J$9, 0)","v":{"v":0,"d":"$0.00"}},{"$f":"IFERROR('MMA Rev-Exp Region 10'!$K$13/'MMA Rev-Exp Region 10'!$K$9, 0)","v":{"v":0,"d":"$0.00"}},{"$f":"IFERROR('MMA Rev-Exp Region 10'!$L$13/'MMA Rev-Exp Region 10'!$L$9, 0)","v":{"v":0,"d":"$0.00"}},{"$f":"IFERROR('MMA Rev-Exp Region 10'!$M$13/'MMA Rev-Exp Region 10'!$M$9, 0)","v":{"v":0,"d":"$0.00"}},{"$f":"IFERROR('MMA Rev-Exp Region 10'!$N$13/'MMA Rev-Exp Region 10'!$N$9, 0)","v":{"v":0,"d":"$0.00"}}]
["MMA",null,null,2016,"2016-12-31","Q1","2017-03-31","Region 10","Operating Revenue","Kick Payments","Kick Payments - Maternity","1.4.1","Maternity Kick Payments",{"$f":"IFERROR('MMA Rev-Exp Region 10'!$D$14/'MMA Rev-Exp Region 10'!$D$9, 0)","v":{"v":0,"d":"$0.00"}},{"$f":"IFERROR('MMA Rev-Exp Region 10'!$E$14/'MMA Rev-Exp Region 10'!$E$9, 0)","v":{"v":0,"d":"$0.00"}},{"$f":"IFERROR('MMA Rev-Exp Region 10'!$F$14/'MMA Rev-Exp Region 10'!$F$9, 0)","v":{"v":0,"d":"$0.00"}},{"$f":"IFERROR('MMA Rev-Exp Region 10'!$G$14/'MMA Rev-Exp Region 10'!$G$9, 0)","v":{"v":0,"d":"$0.00"}},{"$f":"IFERROR('MMA Rev-Exp Region 10'!$H$14/'MMA Rev-Exp Region 10'!$H$9, 0)","v":{"v":0,"d":"$0.00"}},{"$f":"IFERROR('MMA Rev-Exp Region 10'!$I$14/'MMA Rev-Exp Region 10'!$I$9, 0)","v":{"v":0,"d":"$0.00"}},{"$f":"IFERROR('MMA Rev-Exp Region 10'!$J$14/'MMA Rev-Exp Region 10'!$J$9, 0)","v":{"v":0,"d":"$0.00"}},{"$f":"IFERROR('MMA Rev-Exp Region 10'!$K$14/'MMA Rev-Exp Region 10'!$K$9, 0)","v":{"v":0,"d":"$0.00"}},{"$f":"IFERROR('MMA Rev-Exp Region 10'!$L$14/'MMA Rev-Exp Region 10'!$L$9, 0)","v":{"v":0,"d":"$0.00"}},{"$f":"IFERROR('MMA Rev-Exp Region 10'!$M$14/'MMA Rev-Exp Region 10'!$M$9, 0)","v":{"v":0,"d":"$0.00"}},{"$f":"IFERROR('MMA Rev-Exp Region 10'!$N$14/'MMA Rev-Exp Region 10'!$N$9, 0)","v":{"v":0,"d":"$0.00"}}]
["MMA",null,null,2016,"2016-12-31","Q1","2017-03-31","Region 10","Operating Revenue","Other Revenue","Other Revenue - 9010","1.5","ACA § 9010 related payments",{"$f":"IFERROR('MMA Rev-Exp Region 10'!$D$15/'MMA Rev-Exp Region 10'!$D$9, 0)","v":{"v":0,"d":"$0.00"}},{"$f":"IFERROR('MMA Rev-Exp Region 10'!$E$15/'MMA Rev-Exp Region 10'!$E$9, 0)","v":{"v":0,"d":"$0.00"}},{"$f":"IFERROR('MMA Rev-Exp Region 10'!$F$15/'MMA Rev-Exp Region 10'!$F$9, 0)","v":{"v":0,"d":"$0.00"}},{"$f":"IFERROR('MMA Rev-Exp Region 10'!$G$15/'MMA Rev-Exp Region 10'!$G$9, 0)","v":{"v":0,"d":"$0.00"}},{"$f":"IFERROR('MMA Rev-Exp Region 10'!$H$15/'MMA Rev-Exp Region 10'!$H$9, 0)","v":{"v":0,"d":"$0.00"}},{"$f":"IFERROR('MMA Rev-Exp Region 10'!$I$15/'MMA Rev-Exp Region 10'!$I$9, 0)","v":{"v":0,"d":"$0.00"}},{"$f":"IFERROR('MMA Rev-Exp Region 10'!$J$15/'MMA Rev-Exp Region 10'!$J$9, 0)","v":{"v":0,"d":"$0.00"}},{"$f":"IFERROR('MMA Rev-Exp Region 10'!$K$15/'MMA Rev-Exp Region 10'!$K$9, 0)","v":{"v":0,"d":"$0.00"}},{"$f":"IFERROR('MMA Rev-Exp Region 10'!$L$15/'MMA Rev-Exp Region 10'!$L$9, 0)","v":{"v":0,"d":"$0.00"}},{"$f":"IFERROR('MMA Rev-Exp Region 10'!$M$15/'MMA Rev-Exp Region 10'!$M$9, 0)","v":{"v":0,"d":"$0.00"}},{"$f":"IFERROR('MMA Rev-Exp Region 10'!$N$15/'MMA Rev-Exp Region 10'!$N$9, 0)","v":{"v":0,"d":"$0.00"}}]
["MMA",null,null,2016,"2016-12-31","Q1","2017-03-31","Region 10","Operating Revenue","Other Revenue","Other Revenue","1.6","Other Revenue",{"$f":"IFERROR('MMA Rev-Exp Region 10'!$D$16/'MMA Rev-Exp Region 10'!$D$9, 0)","v":{"v":0,"d":"$0.00"}},{"$f":"IFERROR('MMA Rev-Exp Region 10'!$E$16/'MMA Rev-Exp Region 10'!$E$9, 0)","v":{"v":0,"d":"$0.00"}},{"$f":"IFERROR('MMA Rev-Exp Region 10'!$F$16/'MMA Rev-Exp Region 10'!$F$9, 0)","v":{"v":0,"d":"$0.00"}},{"$f":"IFERROR('MMA Rev-Exp Region 10'!$G$16/'MMA Rev-Exp Region 10'!$G$9, 0)","v":{"v":0,"d":"$0.00"}},{"$f":"IFERROR('MMA Rev-Exp Region 10'!$H$16/'MMA Rev-Exp Region 10'!$H$9, 0)","v":{"v":0,"d":"$0.00"}},{"$f":"IFERROR('MMA Rev-Exp Region 10'!$I$16/'MMA Rev-Exp Region 10'!$I$9, 0)","v":{"v":0,"d":"$0.00"}},{"$f":"IFERROR('MMA Rev-Exp Region 10'!$J$16/'MMA Rev-Exp Region 10'!$J$9, 0)","v":{"v":0,"d":"$0.00"}},{"$f":"IFERROR('MMA Rev-Exp Region 10'!$K$16/'MMA Rev-Exp Region 10'!$K$9, 0)","v":{"v":0,"d":"$0.00"}},{"$f":"IFERROR('MMA Rev-Exp Region 10'!$L$16/'MMA Rev-Exp Region 10'!$L$9, 0)","v":{"v":0,"d":"$0.00"}},{"$f":"IFERROR('MMA Rev-Exp Region 10'!$M$16/'MMA Rev-Exp Region 10'!$M$9, 0)","v":{"v":0,"d":"$0.00"}},{"$f":"IFERROR('MMA Rev-Exp Region 10'!$N$16/'MMA Rev-Exp Region 10'!$N$9, 0)","v":{"v":0,"d":"$0.00"}}]
["MMA",null,null,2016,"2016-12-31","Q1","2017-03-31","Region 10","Operating Expense","Medical Benefits Expense","Hospital Services",2.1,"Inpatient FFS",{"$f":"IFERROR('MMA Rev-Exp Region 10'!$D$20/'MMA Rev-Exp Region 10'!$D$9, 0)","v":{"v":0,"d":"$0.00"}},{"$f":"IFERROR('MMA Rev-Exp Region 10'!$E$20/'MMA Rev-Exp Region 10'!$E$9, 0)","v":{"v":0,"d":"$0.00"}},{"$f":"IFERROR('MMA Rev-Exp Region 10'!$F$20/'MMA Rev-Exp Region 10'!$F$9, 0)","v":{"v":0,"d":"$0.00"}},{"$f":"IFERROR('MMA Rev-Exp Region 10'!$G$20/'MMA Rev-Exp Region 10'!$G$9, 0)","v":{"v":0,"d":"$0.00"}},{"$f":"IFERROR('MMA Rev-Exp Region 10'!$H$20/'MMA Rev-Exp Region 10'!$H$9, 0)","v":{"v":0,"d":"$0.00"}},{"$f":"IFERROR('MMA Rev-Exp Region 10'!$I$20/'MMA Rev-Exp Region 10'!$I$9, 0)","v":{"v":0,"d":"$0.00"}},{"$f":"IFERROR('MMA Rev-Exp Region 10'!$J$20/'MMA Rev-Exp Region 10'!$J$9, 0)","v":{"v":0,"d":"$0.00"}},{"$f":"IFERROR('MMA Rev-Exp Region 10'!$K$20/'MMA Rev-Exp Region 10'!$K$9, 0)","v":{"v":0,"d":"$0.00"}},{"$f":"IFERROR('MMA Rev-Exp Region 10'!$L$20/'MMA Rev-Exp Region 10'!$L$9, 0)","v":{"v":0,"d":"$0.00"}},{"$f":"IFERROR('MMA Rev-Exp Region 10'!$M$20/'MMA Rev-Exp Region 10'!$M$9, 0)","v":{"v":0,"d":"$0.00"}},{"$f":"IFERROR('MMA Rev-Exp Region 10'!$N$20/'MMA Rev-Exp Region 10'!$N$9, 0)","v":{"v":0,"d":"$0.00"}}]
["MMA",null,null,2016,"2016-12-31","Q1","2017-03-31","Region 10","Operating Expense","Medical Benefits Expense","Hospital Services",2.2,"Ending IBNP for Inpatient Hospital Services",{"$f":"IFERROR('MMA Rev-Exp Region 10'!$D$21/'MMA Rev-Exp Region 10'!$D$9, 0)","v":{"v":0,"d":"$0.00"}},{"$f":"IFERROR('MMA Rev-Exp Region 10'!$E$21/'MMA Rev-Exp Region 10'!$E$9, 0)","v":{"v":0,"d":"$0.00"}},{"$f":"IFERROR('MMA Rev-Exp Region 10'!$F$21/'MMA Rev-Exp Region 10'!$F$9, 0)","v":{"v":0,"d":"$0.00"}},{"$f":"IFERROR('MMA Rev-Exp Region 10'!$G$21/'MMA Rev-Exp Region 10'!$G$9, 0)","v":{"v":0,"d":"$0.00"}},{"$f":"IFERROR('MMA Rev-Exp Region 10'!$H$21/'MMA Rev-Exp Region 10'!$H$9, 0)","v":{"v":0,"d":"$0.00"}},{"$f":"IFERROR('MMA Rev-Exp Region 10'!$I$21/'MMA Rev-Exp Region 10'!$I$9, 0)","v":{"v":0,"d":"$0.00"}},{"$f":"IFERROR('MMA Rev-Exp Region 10'!$J$21/'MMA Rev-Exp Region 10'!$J$9, 0)","v":{"v":0,"d":"$0.00"}},{"$f":"IFERROR('MMA Rev-Exp Region 10'!$K$21/'MMA Rev-Exp Region 10'!$K$9, 0)","v":{"v":0,"d":"$0.00"}},{"$f":"IFERROR('MMA Rev-Exp Region 10'!$L$21/'MMA Rev-Exp Region 10'!$L$9, 0)","v":{"v":0,"d":"$0.00"}},{"$f":"IFERROR('MMA Rev-Exp Region 10'!$M$21/'MMA Rev-Exp Region 10'!$M$9, 0)","v":{"v":0,"d":"$0.00"}},{"$f":"IFERROR('MMA Rev-Exp Region 10'!$N$21/'MMA Rev-Exp Region 10'!$N$9, 0)","v":{"v":0,"d":"$0.00"}}]
["MMA",null,null,2016,"2016-12-31","Q1","2017-03-31","Region 10","Operating Expense","Medical Benefits Expense","Hospital Services",2.3,"Outpatient FFS: ER",{"$f":"IFERROR('MMA Rev-Exp Region 10'!$D$22/'MMA Rev-Exp Region 10'!$D$9, 0)","v":{"v":0,"d":"$0.00"}},{"$f":"IFERROR('MMA Rev-Exp Region 10'!$E$22/'MMA Rev-Exp Region 10'!$E$9, 0)","v":{"v":0,"d":"$0.00"}},{"$f":"IFERROR('MMA Rev-Exp Region 10'!$F$22/'MMA Rev-Exp Region 10'!$F$9, 0)","v":{"v":0,"d":"$0.00"}},{"$f":"IFERROR('MMA Rev-Exp Region 10'!$G$22/'MMA Rev-Exp Region 10'!$G$9, 0)","v":{"v":0,"d":"$0.00"}},{"$f":"IFERROR('MMA Rev-Exp Region 10'!$H$22/'MMA Rev-Exp Region 10'!$H$9, 0)","v":{"v":0,"d":"$0.00"}},{"$f":"IFERROR('MMA Rev-Exp Region 10'!$I$22/'MMA Rev-Exp Region 10'!$I$9, 0)","v":{"v":0,"d":"$0.00"}},{"$f":"IFERROR('MMA Rev-Exp Region 10'!$J$22/'MMA Rev-Exp Region 10'!$J$9, 0)","v":{"v":0,"d":"$0.00"}},{"$f":"IFERROR('MMA Rev-Exp Region 10'!$K$22/'MMA Rev-Exp Region 10'!$K$9, 0)","v":{"v":0,"d":"$0.00"}},{"$f":"IFERROR('MMA Rev-Exp Region 10'!$L$22/'MMA Rev-Exp Region 10'!$L$9, 0)","v":{"v":0,"d":"$0.00"}},{"$f":"IFERROR('MMA Rev-Exp Region 10'!$M$22/'MMA Rev-Exp Region 10'!$M$9, 0)","v":{"v":0,"d":"$0.00"}},{"$f":"IFERROR('MMA Rev-Exp Region 10'!$N$22/'MMA Rev-Exp Region 10'!$N$9, 0)","v":{"v":0,"d":"$0.00"}}]
["MMA",null,null,2016,"2016-12-31","Q1","2017-03-31","Region 10","Operating Expense","Medical Benefits Expense","Hospital Services",2.4,"Outpatient FFS: Other than ER ",{"$f":"IFERROR('MMA Rev-Exp Region 10'!$D$23/'MMA Rev-Exp Region 10'!$D$9, 0)","v":{"v":0,"d":"$0.00"}},{"$f":"IFERROR('MMA Rev-Exp Region 10'!$E$23/'MMA Rev-Exp Region 10'!$E$9, 0)","v":{"v":0,"d":"$0.00"}},{"$f":"IFERROR('MMA Rev-Exp Region 10'!$F$23/'MMA Rev-Exp Region 10'!$F$9, 0)","v":{"v":0,"d":"$0.00"}},{"$f":"IFERROR('MMA Rev-Exp Region 10'!$G$23/'MMA Rev-Exp Region 10'!$G$9, 0)","v":{"v":0,"d":"$0.00"}},{"$f":"IFERROR('MMA Rev-Exp Region 10'!$H$23/'MMA Rev-Exp Region 10'!$H$9, 0)","v":{"v":0,"d":"$0.00"}},{"$f":"IFERROR('MMA Rev-Exp Region 10'!$I$23/'MMA Rev-Exp Region 10'!$I$9, 0)","v":{"v":0,"d":"$0.00"}},{"$f":"IFERROR('MMA Rev-Exp Region 10'!$J$23/'MMA Rev-Exp Region 10'!$J$9, 0)","v":{"v":0,"d":"$0.00"}},{"$f":"IFERROR('MMA Rev-Exp Region 10'!$K$23/'MMA Rev-Exp Region 10'!$K$9, 0)","v":{"v":0,"d":"$0.00"}},{"$f":"IFERROR('MMA Rev-Exp Region 10'!$L$23/'MMA Rev-Exp Region 10'!$L$9, 0)","v":{"v":0,"d":"$0.00"}},{"$f":"IFERROR('MMA Rev-Exp Region 10'!$M$23/'MMA Rev-Exp Region 10'!$M$9, 0)","v":{"v":0,"d":"$0.00"}},{"$f":"IFERROR('MMA Rev-Exp Region 10'!$N$23/'MMA Rev-Exp Region 10'!$N$9, 0)","v":{"v":0,"d":"$0.00"}}]
["MMA",null,null,2016,"2016-12-31","Q1","2017-03-31","Region 10","Operating Expense","Medical Benefits Expense","Hospital Services",2.5,"Ending IBNP for Outpatient Hospital Services",{"$f":"IFERROR('MMA Rev-Exp Region 10'!$D$24/'MMA Rev-Exp Region 10'!$D$9, 0)","v":{"v":0,"d":"$0.00"}},{"$f":"IFERROR('MMA Rev-Exp Region 10'!$E$24/'MMA Rev-Exp Region 10'!$E$9, 0)","v":{"v":0,"d":"$0.00"}},{"$f":"IFERROR('MMA Rev-Exp Region 10'!$F$24/'MMA Rev-Exp Region 10'!$F$9, 0)","v":{"v":0,"d":"$0.00"}},{"$f":"IFERROR('MMA Rev-Exp Region 10'!$G$24/'MMA Rev-Exp Region 10'!$G$9, 0)","v":{"v":0,"d":"$0.00"}},{"$f":"IFERROR('MMA Rev-Exp Region 10'!$H$24/'MMA Rev-Exp Region 10'!$H$9, 0)","v":{"v":0,"d":"$0.00"}},{"$f":"IFERROR('MMA Rev-Exp Region 10'!$I$24/'MMA Rev-Exp Region 10'!$I$9, 0)","v":{"v":0,"d":"$0.00"}},{"$f":"IFERROR('MMA Rev-Exp Region 10'!$J$24/'MMA Rev-Exp Region 10'!$J$9, 0)","v":{"v":0,"d":"$0.00"}},{"$f":"IFERROR('MMA Rev-Exp Region 10'!$K$24/'MMA Rev-Exp Region 10'!$K$9, 0)","v":{"v":0,"d":"$0.00"}},{"$f":"IFERROR('MMA Rev-Exp Region 10'!$L$24/'MMA Rev-Exp Region 10'!$L$9, 0)","v":{"v":0,"d":"$0.00"}},{"$f":"IFERROR('MMA Rev-Exp Region 10'!$M$24/'MMA Rev-Exp Region 10'!$M$9, 0)","v":{"v":0,"d":"$0.00"}},{"$f":"IFERROR('MMA Rev-Exp Region 10'!$N$24/'MMA Rev-Exp Region 10'!$N$9, 0)","v":{"v":0,"d":"$0.00"}}]
["MMA",null,null,2016,"2016-12-31","Q1","2017-03-31","Region 10","Operating Expense","Medical Benefits Expense","Hospital Services","2.6","Subcapitated Hospital Services",{"$f":"IFERROR('MMA Rev-Exp Region 10'!$D$25/'MMA Rev-Exp Region 10'!$D$9, 0)","v":{"v":0,"d":"$0.00"}},{"$f":"IFERROR('MMA Rev-Exp Region 10'!$E$25/'MMA Rev-Exp Region 10'!$E$9, 0)","v":{"v":0,"d":"$0.00"}},{"$f":"IFERROR('MMA Rev-Exp Region 10'!$F$25/'MMA Rev-Exp Region 10'!$F$9, 0)","v":{"v":0,"d":"$0.00"}},{"$f":"IFERROR('MMA Rev-Exp Region 10'!$G$25/'MMA Rev-Exp Region 10'!$G$9, 0)","v":{"v":0,"d":"$0.00"}},{"$f":"IFERROR('MMA Rev-Exp Region 10'!$H$25/'MMA Rev-Exp Region 10'!$H$9, 0)","v":{"v":0,"d":"$0.00"}},{"$f":"IFERROR('MMA Rev-Exp Region 10'!$I$25/'MMA Rev-Exp Region 10'!$I$9, 0)","v":{"v":0,"d":"$0.00"}},{"$f":"IFERROR('MMA Rev-Exp Region 10'!$J$25/'MMA Rev-Exp Region 10'!$J$9, 0)","v":{"v":0,"d":"$0.00"}},{"$f":"IFERROR('MMA Rev-Exp Region 10'!$K$25/'MMA Rev-Exp Region 10'!$K$9, 0)","v":{"v":0,"d":"$0.00"}},{"$f":"IFERROR('MMA Rev-Exp Region 10'!$L$25/'MMA Rev-Exp Region 10'!$L$9, 0)","v":{"v":0,"d":"$0.00"}},{"$f":"IFERROR('MMA Rev-Exp Region 10'!$M$25/'MMA Rev-Exp Region 10'!$M$9, 0)","v":{"v":0,"d":"$0.00"}},{"$f":"IFERROR('MMA Rev-Exp Region 10'!$N$25/'MMA Rev-Exp Region 10'!$N$9, 0)","v":{"v":0,"d":"$0.00"}}]
["MMA",null,null,2016,"2016-12-31","Q1","2017-03-31","Region 10","Operating Expense","Medical Benefits Expense","Hospital Services","2.7","Hospital Settlements",{"$f":"IFERROR('MMA Rev-Exp Region 10'!$D$26/'MMA Rev-Exp Region 10'!$D$9, 0)","v":{"v":0,"d":"$0.00"}},{"$f":"IFERROR('MMA Rev-Exp Region 10'!$E$26/'MMA Rev-Exp Region 10'!$E$9, 0)","v":{"v":0,"d":"$0.00"}},{"$f":"IFERROR('MMA Rev-Exp Region 10'!$F$26/'MMA Rev-Exp Region 10'!$F$9, 0)","v":{"v":0,"d":"$0.00"}},{"$f":"IFERROR('MMA Rev-Exp Region 10'!$G$26/'MMA Rev-Exp Region 10'!$G$9, 0)","v":{"v":0,"d":"$0.00"}},{"$f":"IFERROR('MMA Rev-Exp Region 10'!$H$26/'MMA Rev-Exp Region 10'!$H$9, 0)","v":{"v":0,"d":"$0.00"}},{"$f":"IFERROR('MMA Rev-Exp Region 10'!$I$26/'MMA Rev-Exp Region 10'!$I$9, 0)","v":{"v":0,"d":"$0.00"}},{"$f":"IFERROR('MMA Rev-Exp Region 10'!$J$26/'MMA Rev-Exp Region 10'!$J$9, 0)","v":{"v":0,"d":"$0.00"}},{"$f":"IFERROR('MMA Rev-Exp Region 10'!$K$26/'MMA Rev-Exp Region 10'!$K$9, 0)","v":{"v":0,"d":"$0.00"}},{"$f":"IFERROR('MMA Rev-Exp Region 10'!$L$26/'MMA Rev-Exp Region 10'!$L$9, 0)","v":{"v":0,"d":"$0.00"}},{"$f":"IFERROR('MMA Rev-Exp Region 10'!$M$26/'MMA Rev-Exp Region 10'!$M$9, 0)","v":{"v":0,"d":"$0.00"}},{"$f":"IFERROR('MMA Rev-Exp Region 10'!$N$26/'MMA Rev-Exp Region 10'!$N$9, 0)","v":{"v":0,"d":"$0.00"}}]
["MMA",null,null,2016,"2016-12-31","Q1","2017-03-31","Region 10","Operating Expense","Medical Benefits Expense","Hospital Services","2.7.1","Transplant Services",{"$f":"IFERROR('MMA Rev-Exp Region 10'!$D$27/'MMA Rev-Exp Region 10'!$D$9, 0)","v":{"v":0,"d":"$0.00"}},{"$f":"IFERROR('MMA Rev-Exp Region 10'!$E$27/'MMA Rev-Exp Region 10'!$E$9, 0)","v":{"v":0,"d":"$0.00"}},{"$f":"IFERROR('MMA Rev-Exp Region 10'!$F$27/'MMA Rev-Exp Region 10'!$F$9, 0)","v":{"v":0,"d":"$0.00"}},{"$f":"IFERROR('MMA Rev-Exp Region 10'!$G$27/'MMA Rev-Exp Region 10'!$G$9, 0)","v":{"v":0,"d":"$0.00"}},{"$f":"IFERROR('MMA Rev-Exp Region 10'!$H$27/'MMA Rev-Exp Region 10'!$H$9, 0)","v":{"v":0,"d":"$0.00"}},{"$f":"IFERROR('MMA Rev-Exp Region 10'!$I$27/'MMA Rev-Exp Region 10'!$I$9, 0)","v":{"v":0,"d":"$0.00"}},{"$f":"IFERROR('MMA Rev-Exp Region 10'!$J$27/'MMA Rev-Exp Region 10'!$J$9, 0)","v":{"v":0,"d":"$0.00"}},{"$f":"IFERROR('MMA Rev-Exp Region 10'!$K$27/'MMA Rev-Exp Region 10'!$K$9, 0)","v":{"v":0,"d":"$0.00"}},{"$f":"IFERROR('MMA Rev-Exp Region 10'!$L$27/'MMA Rev-Exp Region 10'!$L$9, 0)","v":{"v":0,"d":"$0.00"}},{"$f":"IFERROR('MMA Rev-Exp Region 10'!$M$27/'MMA Rev-Exp Region 10'!$M$9, 0)","v":{"v":0,"d":"$0.00"}},{"$f":"IFERROR('MMA Rev-Exp Region 10'!$N$27/'MMA Rev-Exp Region 10'!$N$9, 0)","v":{"v":0,"d":"$0.00"}}]
["MMA",null,null,2016,"2016-12-31","Q1","2017-03-31","Region 10","Operating Expense","Medical Benefits Expense","Professional Services",3.1,"Primary Care FFS",{"$f":"IFERROR('MMA Rev-Exp Region 10'!$D$29/'MMA Rev-Exp Region 10'!$D$9, 0)","v":{"v":0,"d":"$0.00"}},{"$f":"IFERROR('MMA Rev-Exp Region 10'!$E$29/'MMA Rev-Exp Region 10'!$E$9, 0)","v":{"v":0,"d":"$0.00"}},{"$f":"IFERROR('MMA Rev-Exp Region 10'!$F$29/'MMA Rev-Exp Region 10'!$F$9, 0)","v":{"v":0,"d":"$0.00"}},{"$f":"IFERROR('MMA Rev-Exp Region 10'!$G$29/'MMA Rev-Exp Region 10'!$G$9, 0)","v":{"v":0,"d":"$0.00"}},{"$f":"IFERROR('MMA Rev-Exp Region 10'!$H$29/'MMA Rev-Exp Region 10'!$H$9, 0)","v":{"v":0,"d":"$0.00"}},{"$f":"IFERROR('MMA Rev-Exp Region 10'!$I$29/'MMA Rev-Exp Region 10'!$I$9, 0)","v":{"v":0,"d":"$0.00"}},{"$f":"IFERROR('MMA Rev-Exp Region 10'!$J$29/'MMA Rev-Exp Region 10'!$J$9, 0)","v":{"v":0,"d":"$0.00"}},{"$f":"IFERROR('MMA Rev-Exp Region 10'!$K$29/'MMA Rev-Exp Region 10'!$K$9, 0)","v":{"v":0,"d":"$0.00"}},{"$f":"IFERROR('MMA Rev-Exp Region 10'!$L$29/'MMA Rev-Exp Region 10'!$L$9, 0)","v":{"v":0,"d":"$0.00"}},{"$f":"IFERROR('MMA Rev-Exp Region 10'!$M$29/'MMA Rev-Exp Region 10'!$M$9, 0)","v":{"v":0,"d":"$0.00"}},{"$f":"IFERROR('MMA Rev-Exp Region 10'!$N$29/'MMA Rev-Exp Region 10'!$N$9, 0)","v":{"v":0,"d":"$0.00"}}]
["MMA",null,null,2016,"2016-12-31","Q1","2017-03-31","Region 10","Operating Expense","Medical Benefits Expense","Professional Services",3.2,"Specialty Care FFS",{"$f":"IFERROR('MMA Rev-Exp Region 10'!$D$30/'MMA Rev-Exp Region 10'!$D$9, 0)","v":{"v":0,"d":"$0.00"}},{"$f":"IFERROR('MMA Rev-Exp Region 10'!$E$30/'MMA Rev-Exp Region 10'!$E$9, 0)","v":{"v":0,"d":"$0.00"}},{"$f":"IFERROR('MMA Rev-Exp Region 10'!$F$30/'MMA Rev-Exp Region 10'!$F$9, 0)","v":{"v":0,"d":"$0.00"}},{"$f":"IFERROR('MMA Rev-Exp Region 10'!$G$30/'MMA Rev-Exp Region 10'!$G$9, 0)","v":{"v":0,"d":"$0.00"}},{"$f":"IFERROR('MMA Rev-Exp Region 10'!$H$30/'MMA Rev-Exp Region 10'!$H$9, 0)","v":{"v":0,"d":"$0.00"}},{"$f":"IFERROR('MMA Rev-Exp Region 10'!$I$30/'MMA Rev-Exp Region 10'!$I$9, 0)","v":{"v":0,"d":"$0.00"}},{"$f":"IFERROR('MMA Rev-Exp Region 10'!$J$30/'MMA Rev-Exp Region 10'!$J$9, 0)","v":{"v":0,"d":"$0.00"}},{"$f":"IFERROR('MMA Rev-Exp Region 10'!$K$30/'MMA Rev-Exp Region 10'!$K$9, 0)","v":{"v":0,"d":"$0.00"}},{"$f":"IFERROR('MMA Rev-Exp Region 10'!$L$30/'MMA Rev-Exp Region 10'!$L$9, 0)","v":{"v":0,"d":"$0.00"}},{"$f":"IFERROR('MMA Rev-Exp Region 10'!$M$30/'MMA Rev-Exp Region 10'!$M$9, 0)","v":{"v":0,"d":"$0.00"}},{"$f":"IFERROR('MMA Rev-Exp Region 10'!$N$30/'MMA Rev-Exp Region 10'!$N$9, 0)","v":{"v":0,"d":"$0.00"}}]
["MMA",null,null,2016,"2016-12-31","Q1","2017-03-31","Region 10","Operating Expense","Medical Benefits Expense","Professional Services",3.3,"Other Professional FFS",{"$f":"IFERROR('MMA Rev-Exp Region 10'!$D$31/'MMA Rev-Exp Region 10'!$D$9, 0)","v":{"v":0,"d":"$0.00"}},{"$f":"IFERROR('MMA Rev-Exp Region 10'!$E$31/'MMA Rev-Exp Region 10'!$E$9, 0)","v":{"v":0,"d":"$0.00"}},{"$f":"IFERROR('MMA Rev-Exp Region 10'!$F$31/'MMA Rev-Exp Region 10'!$F$9, 0)","v":{"v":0,"d":"$0.00"}},{"$f":"IFERROR('MMA Rev-Exp Region 10'!$G$31/'MMA Rev-Exp Region 10'!$G$9, 0)","v":{"v":0,"d":"$0.00"}},{"$f":"IFERROR('MMA Rev-Exp Region 10'!$H$31/'MMA Rev-Exp Region 10'!$H$9, 0)","v":{"v":0,"d":"$0.00"}},{"$f":"IFERROR('MMA Rev-Exp Region 10'!$I$31/'MMA Rev-Exp Region 10'!$I$9, 0)","v":{"v":0,"d":"$0.00"}},{"$f":"IFERROR('MMA Rev-Exp Region 10'!$J$31/'MMA Rev-Exp Region 10'!$J$9, 0)","v":{"v":0,"d":"$0.00"}},{"$f":"IFERROR('MMA Rev-Exp Region 10'!$K$31/'MMA Rev-Exp Region 10'!$K$9, 0)","v":{"v":0,"d":"$0.00"}},{"$f":"IFERROR('MMA Rev-Exp Region 10'!$L$31/'MMA Rev-Exp Region 10'!$L$9, 0)","v":{"v":0,"d":"$0.00"}},{"$f":"IFERROR('MMA Rev-Exp Region 10'!$M$31/'MMA Rev-Exp Region 10'!$M$9, 0)","v":{"v":0,"d":"$0.00"}},{"$f":"IFERROR('MMA Rev-Exp Region 10'!$N$31/'MMA Rev-Exp Region 10'!$N$9, 0)","v":{"v":0,"d":"$0.00"}}]
["MMA",null,null,2016,"2016-12-31","Q1","2017-03-31","Region 10","Operating Expense","Medical Benefits Expense","Professional Services","3.4","§ 1202 PCP Payments to providers",{"$f":"IFERROR('MMA Rev-Exp Region 10'!$D$32/'MMA Rev-Exp Region 10'!$D$9, 0)","v":{"v":0,"d":"$0.00"}},{"$f":"IFERROR('MMA Rev-Exp Region 10'!$E$32/'MMA Rev-Exp Region 10'!$E$9, 0)","v":{"v":0,"d":"$0.00"}},{"$f":"IFERROR('MMA Rev-Exp Region 10'!$F$32/'MMA Rev-Exp Region 10'!$F$9, 0)","v":{"v":0,"d":"$0.00"}},{"$f":"IFERROR('MMA Rev-Exp Region 10'!$G$32/'MMA Rev-Exp Region 10'!$G$9, 0)","v":{"v":0,"d":"$0.00"}},{"$f":"IFERROR('MMA Rev-Exp Region 10'!$H$32/'MMA Rev-Exp Region 10'!$H$9, 0)","v":{"v":0,"d":"$0.00"}},{"$f":"IFERROR('MMA Rev-Exp Region 10'!$I$32/'MMA Rev-Exp Region 10'!$I$9, 0)","v":{"v":0,"d":"$0.00"}},{"$f":"IFERROR('MMA Rev-Exp Region 10'!$J$32/'MMA Rev-Exp Region 10'!$J$9, 0)","v":{"v":0,"d":"$0.00"}},{"$f":"IFERROR('MMA Rev-Exp Region 10'!$K$32/'MMA Rev-Exp Region 10'!$K$9, 0)","v":{"v":0,"d":"$0.00"}},{"$f":"IFERROR('MMA Rev-Exp Region 10'!$L$32/'MMA Rev-Exp Region 10'!$L$9, 0)","v":{"v":0,"d":"$0.00"}},{"$f":"IFERROR('MMA Rev-Exp Region 10'!$M$32/'MMA Rev-Exp Region 10'!$M$9, 0)","v":{"v":0,"d":"$0.00"}},{"$f":"IFERROR('MMA Rev-Exp Region 10'!$N$32/'MMA Rev-Exp Region 10'!$N$9, 0)","v":{"v":0,"d":"$0.00"}}]
["MMA",null,null,2016,"2016-12-31","Q1","2017-03-31","Region 10","Operating Expense","Medical Benefits Expense","Professional Services","3.5","Subcapitated Professional Services",{"$f":"IFERROR('MMA Rev-Exp Region 10'!$D$33/'MMA Rev-Exp Region 10'!$D$9, 0)","v":{"v":0,"d":"$0.00"}},{"$f":"IFERROR('MMA Rev-Exp Region 10'!$E$33/'MMA Rev-Exp Region 10'!$E$9, 0)","v":{"v":0,"d":"$0.00"}},{"$f":"IFERROR('MMA Rev-Exp Region 10'!$F$33/'MMA Rev-Exp Region 10'!$F$9, 0)","v":{"v":0,"d":"$0.00"}},{"$f":"IFERROR('MMA Rev-Exp Region 10'!$G$33/'MMA Rev-Exp Region 10'!$G$9, 0)","v":{"v":0,"d":"$0.00"}},{"$f":"IFERROR('MMA Rev-Exp Region 10'!$H$33/'MMA Rev-Exp Region 10'!$H$9, 0)","v":{"v":0,"d":"$0.00"}},{"$f":"IFERROR('MMA Rev-Exp Region 10'!$I$33/'MMA Rev-Exp Region 10'!$I$9, 0)","v":{"v":0,"d":"$0.00"}},{"$f":"IFERROR('MMA Rev-Exp Region 10'!$J$33/'MMA Rev-Exp Region 10'!$J$9, 0)","v":{"v":0,"d":"$0.00"}},{"$f":"IFERROR('MMA Rev-Exp Region 10'!$K$33/'MMA Rev-Exp Region 10'!$K$9, 0)","v":{"v":0,"d":"$0.00"}},{"$f":"IFERROR('MMA Rev-Exp Region 10'!$L$33/'MMA Rev-Exp Region 10'!$L$9, 0)","v":{"v":0,"d":"$0.00"}},{"$f":"IFERROR('MMA Rev-Exp Region 10'!$M$33/'MMA Rev-Exp Region 10'!$M$9, 0)","v":{"v":0,"d":"$0.00"}},{"$f":"IFERROR('MMA Rev-Exp Region 10'!$N$33/'MMA Rev-Exp Region 10'!$N$9, 0)","v":{"v":0,"d":"$0.00"}}]
["MMA",null,null,2016,"2016-12-31","Q1","2017-03-31","Region 10","Operating Expense","Medical Benefits Expense","Professional Services","3.6","Ending IBNP for Professional Services",{"$f":"IFERROR('MMA Rev-Exp Region 10'!$D$34/'MMA Rev-Exp Region 10'!$D$9, 0)","v":{"v":0,"d":"$0.00"}},{"$f":"IFERROR('MMA Rev-Exp Region 10'!$E$34/'MMA Rev-Exp Region 10'!$E$9, 0)","v":{"v":0,"d":"$0.00"}},{"$f":"IFERROR('MMA Rev-Exp Region 10'!$F$34/'MMA Rev-Exp Region 10'!$F$9, 0)","v":{"v":0,"d":"$0.00"}},{"$f":"IFERROR('MMA Rev-Exp Region 10'!$G$34/'MMA Rev-Exp Region 10'!$G$9, 0)","v":{"v":0,"d":"$0.00"}},{"$f":"IFERROR('MMA Rev-Exp Region 10'!$H$34/'MMA Rev-Exp Region 10'!$H$9, 0)","v":{"v":0,"d":"$0.00"}},{"$f":"IFERROR('MMA Rev-Exp Region 10'!$I$34/'MMA Rev-Exp Region 10'!$I$9, 0)","v":{"v":0,"d":"$0.00"}},{"$f":"IFERROR('MMA Rev-Exp Region 10'!$J$34/'MMA Rev-Exp Region 10'!$J$9, 0)","v":{"v":0,"d":"$0.00"}},{"$f":"IFERROR('MMA Rev-Exp Region 10'!$K$34/'MMA Rev-Exp Region 10'!$K$9, 0)","v":{"v":0,"d":"$0.00"}},{"$f":"IFERROR('MMA Rev-Exp Region 10'!$L$34/'MMA Rev-Exp Region 10'!$L$9, 0)","v":{"v":0,"d":"$0.00"}},{"$f":"IFERROR('MMA Rev-Exp Region 10'!$M$34/'MMA Rev-Exp Region 10'!$M$9, 0)","v":{"v":0,"d":"$0.00"}},{"$f":"IFERROR('MMA Rev-Exp Region 10'!$N$34/'MMA Rev-Exp Region 10'!$N$9, 0)","v":{"v":0,"d":"$0.00"}}]
["MMA",null,null,2016,"2016-12-31","Q1","2017-03-31","Region 10","Operating Expense","Medical Benefits Expense","Professional Services","3.7","Professional Services Settlements",{"$f":"IFERROR('MMA Rev-Exp Region 10'!$D$35/'MMA Rev-Exp Region 10'!$D$9, 0)","v":{"v":0,"d":"$0.00"}},{"$f":"IFERROR('MMA Rev-Exp Region 10'!$E$35/'MMA Rev-Exp Region 10'!$E$9, 0)","v":{"v":0,"d":"$0.00"}},{"$f":"IFERROR('MMA Rev-Exp Region 10'!$F$35/'MMA Rev-Exp Region 10'!$F$9, 0)","v":{"v":0,"d":"$0.00"}},{"$f":"IFERROR('MMA Rev-Exp Region 10'!$G$35/'MMA Rev-Exp Region 10'!$G$9, 0)","v":{"v":0,"d":"$0.00"}},{"$f":"IFERROR('MMA Rev-Exp Region 10'!$H$35/'MMA Rev-Exp Region 10'!$H$9, 0)","v":{"v":0,"d":"$0.00"}},{"$f":"IFERROR('MMA Rev-Exp Region 10'!$I$35/'MMA Rev-Exp Region 10'!$I$9, 0)","v":{"v":0,"d":"$0.00"}},{"$f":"IFERROR('MMA Rev-Exp Region 10'!$J$35/'MMA Rev-Exp Region 10'!$J$9, 0)","v":{"v":0,"d":"$0.00"}},{"$f":"IFERROR('MMA Rev-Exp Region 10'!$K$35/'MMA Rev-Exp Region 10'!$K$9, 0)","v":{"v":0,"d":"$0.00"}},{"$f":"IFERROR('MMA Rev-Exp Region 10'!$L$35/'MMA Rev-Exp Region 10'!$L$9, 0)","v":{"v":0,"d":"$0.00"}},{"$f":"IFERROR('MMA Rev-Exp Region 10'!$M$35/'MMA Rev-Exp Region 10'!$M$9, 0)","v":{"v":0,"d":"$0.00"}},{"$f":"IFERROR('MMA Rev-Exp Region 10'!$N$35/'MMA Rev-Exp Region 10'!$N$9, 0)","v":{"v":0,"d":"$0.00"}}]
["MMA",null,null,2016,"2016-12-31","Q1","2017-03-31","Region 10","Operating Expense","Medical Benefits Expense","Maternity Services","4.1.1","Maternity Services",{"$f":"IFERROR('MMA Rev-Exp Region 10'!$D$37/'MMA Rev-Exp Region 10'!$D$9, 0)","v":{"v":0,"d":"$0.00"}},{"$f":"IFERROR('MMA Rev-Exp Region 10'!$E$37/'MMA Rev-Exp Region 10'!$E$9, 0)","v":{"v":0,"d":"$0.00"}},{"$f":"IFERROR('MMA Rev-Exp Region 10'!$F$37/'MMA Rev-Exp Region 10'!$F$9, 0)","v":{"v":0,"d":"$0.00"}},{"$f":"IFERROR('MMA Rev-Exp Region 10'!$G$37/'MMA Rev-Exp Region 10'!$G$9, 0)","v":{"v":0,"d":"$0.00"}},{"$f":"IFERROR('MMA Rev-Exp Region 10'!$H$37/'MMA Rev-Exp Region 10'!$H$9, 0)","v":{"v":0,"d":"$0.00"}},{"$f":"IFERROR('MMA Rev-Exp Region 10'!$I$37/'MMA Rev-Exp Region 10'!$I$9, 0)","v":{"v":0,"d":"$0.00"}},{"$f":"IFERROR('MMA Rev-Exp Region 10'!$J$37/'MMA Rev-Exp Region 10'!$J$9, 0)","v":{"v":0,"d":"$0.00"}},{"$f":"IFERROR('MMA Rev-Exp Region 10'!$K$37/'MMA Rev-Exp Region 10'!$K$9, 0)","v":{"v":0,"d":"$0.00"}},{"$f":"IFERROR('MMA Rev-Exp Region 10'!$L$37/'MMA Rev-Exp Region 10'!$L$9, 0)","v":{"v":0,"d":"$0.00"}},{"$f":"IFERROR('MMA Rev-Exp Region 10'!$M$37/'MMA Rev-Exp Region 10'!$M$9, 0)","v":{"v":0,"d":"$0.00"}},{"$f":"IFERROR('MMA Rev-Exp Region 10'!$N$37/'MMA Rev-Exp Region 10'!$N$9, 0)","v":{"v":0,"d":"$0.00"}}]
["MMA",null,null,2016,"2016-12-31","Q1","2017-03-31","Region 10","Operating Expense","Medical Benefits Expense","Maternity Services","4.2.1","Ending IBNP for Maternity Services",{"$f":"IFERROR('MMA Rev-Exp Region 10'!$D$38/'MMA Rev-Exp Region 10'!$D$9, 0)","v":{"v":0,"d":"$0.00"}},{"$f":"IFERROR('MMA Rev-Exp Region 10'!$E$38/'MMA Rev-Exp Region 10'!$E$9, 0)","v":{"v":0,"d":"$0.00"}},{"$f":"IFERROR('MMA Rev-Exp Region 10'!$F$38/'MMA Rev-Exp Region 10'!$F$9, 0)","v":{"v":0,"d":"$0.00"}},{"$f":"IFERROR('MMA Rev-Exp Region 10'!$G$38/'MMA Rev-Exp Region 10'!$G$9, 0)","v":{"v":0,"d":"$0.00"}},{"$f":"IFERROR('MMA Rev-Exp Region 10'!$H$38/'MMA Rev-Exp Region 10'!$H$9, 0)","v":{"v":0,"d":"$0.00"}},{"$f":"IFERROR('MMA Rev-Exp Region 10'!$I$38/'MMA Rev-Exp Region 10'!$I$9, 0)","v":{"v":0,"d":"$0.00"}},{"$f":"IFERROR('MMA Rev-Exp Region 10'!$J$38/'MMA Rev-Exp Region 10'!$J$9, 0)","v":{"v":0,"d":"$0.00"}},{"$f":"IFERROR('MMA Rev-Exp Region 10'!$K$38/'MMA Rev-Exp Region 10'!$K$9, 0)","v":{"v":0,"d":"$0.00"}},{"$f":"IFERROR('MMA Rev-Exp Region 10'!$L$38/'MMA Rev-Exp Region 10'!$L$9, 0)","v":{"v":0,"d":"$0.00"}},{"$f":"IFERROR('MMA Rev-Exp Region 10'!$M$38/'MMA Rev-Exp Region 10'!$M$9, 0)","v":{"v":0,"d":"$0.00"}},{"$f":"IFERROR('MMA Rev-Exp Region 10'!$N$38/'MMA Rev-Exp Region 10'!$N$9, 0)","v":{"v":0,"d":"$0.00"}}]
["MMA",null,null,2016,"2016-12-31","Q1","2017-03-31","Region 10","Operating Expense","Medical Benefits Expense","Maternity Services","4.3.1","Maternity Settlements",{"$f":"IFERROR('MMA Rev-Exp Region 10'!$D$39/'MMA Rev-Exp Region 10'!$D$9, 0)","v":{"v":0,"d":"$0.00"}},{"$f":"IFERROR('MMA Rev-Exp Region 10'!$E$39/'MMA Rev-Exp Region 10'!$E$9, 0)","v":{"v":0,"d":"$0.00"}},{"$f":"IFERROR('MMA Rev-Exp Region 10'!$F$39/'MMA Rev-Exp Region 10'!$F$9, 0)","v":{"v":0,"d":"$0.00"}},{"$f":"IFERROR('MMA Rev-Exp Region 10'!$G$39/'MMA Rev-Exp Region 10'!$G$9, 0)","v":{"v":0,"d":"$0.00"}},{"$f":"IFERROR('MMA Rev-Exp Region 10'!$H$39/'MMA Rev-Exp Region 10'!$H$9, 0)","v":{"v":0,"d":"$0.00"}},{"$f":"IFERROR('MMA Rev-Exp Region 10'!$I$39/'MMA Rev-Exp Region 10'!$I$9, 0)","v":{"v":0,"d":"$0.00"}},{"$f":"IFERROR('MMA Rev-Exp Region 10'!$J$39/'MMA Rev-Exp Region 10'!$J$9, 0)","v":{"v":0,"d":"$0.00"}},{"$f":"IFERROR('MMA Rev-Exp Region 10'!$K$39/'MMA Rev-Exp Region 10'!$K$9, 0)","v":{"v":0,"d":"$0.00"}},{"$f":"IFERROR('MMA Rev-Exp Region 10'!$L$39/'MMA Rev-Exp Region 10'!$L$9, 0)","v":{"v":0,"d":"$0.00"}},{"$f":"IFERROR('MMA Rev-Exp Region 10'!$M$39/'MMA Rev-Exp Region 10'!$M$9, 0)","v":{"v":0,"d":"$0.00"}},{"$f":"IFERROR('MMA Rev-Exp Region 10'!$N$39/'MMA Rev-Exp Region 10'!$N$9, 0)","v":{"v":0,"d":"$0.00"}}]
["MMA",null,null,2016,"2016-12-31","Q1","2017-03-31","Region 10","Operating Expense","Medical Benefits Expense","Mental Health Services",5.1,"Mental Health & Substance Abuse FFS",{"$f":"IFERROR('MMA Rev-Exp Region 10'!$D$41/'MMA Rev-Exp Region 10'!$D$9, 0)","v":{"v":0,"d":"$0.00"}},{"$f":"IFERROR('MMA Rev-Exp Region 10'!$E$41/'MMA Rev-Exp Region 10'!$E$9, 0)","v":{"v":0,"d":"$0.00"}},{"$f":"IFERROR('MMA Rev-Exp Region 10'!$F$41/'MMA Rev-Exp Region 10'!$F$9, 0)","v":{"v":0,"d":"$0.00"}},{"$f":"IFERROR('MMA Rev-Exp Region 10'!$G$41/'MMA Rev-Exp Region 10'!$G$9, 0)","v":{"v":0,"d":"$0.00"}},{"$f":"IFERROR('MMA Rev-Exp Region 10'!$H$41/'MMA Rev-Exp Region 10'!$H$9, 0)","v":{"v":0,"d":"$0.00"}},{"$f":"IFERROR('MMA Rev-Exp Region 10'!$I$41/'MMA Rev-Exp Region 10'!$I$9, 0)","v":{"v":0,"d":"$0.00"}},{"$f":"IFERROR('MMA Rev-Exp Region 10'!$J$41/'MMA Rev-Exp Region 10'!$J$9, 0)","v":{"v":0,"d":"$0.00"}},{"$f":"IFERROR('MMA Rev-Exp Region 10'!$K$41/'MMA Rev-Exp Region 10'!$K$9, 0)","v":{"v":0,"d":"$0.00"}},{"$f":"IFERROR('MMA Rev-Exp Region 10'!$L$41/'MMA Rev-Exp Region 10'!$L$9, 0)","v":{"v":0,"d":"$0.00"}},{"$f":"IFERROR('MMA Rev-Exp Region 10'!$M$41/'MMA Rev-Exp Region 10'!$M$9, 0)","v":{"v":0,"d":"$0.00"}},{"$f":"IFERROR('MMA Rev-Exp Region 10'!$N$41/'MMA Rev-Exp Region 10'!$N$9, 0)","v":{"v":0,"d":"$0.00"}}]
["MMA",null,null,2016,"2016-12-31","Q1","2017-03-31","Region 10","Operating Expense","Medical Benefits Expense","Mental Health Services",5.2,"Mental Health & Substance Abuse Subcapitation",{"$f":"IFERROR('MMA Rev-Exp Region 10'!$D$42/'MMA Rev-Exp Region 10'!$D$9, 0)","v":{"v":0,"d":"$0.00"}},{"$f":"IFERROR('MMA Rev-Exp Region 10'!$E$42/'MMA Rev-Exp Region 10'!$E$9, 0)","v":{"v":0,"d":"$0.00"}},{"$f":"IFERROR('MMA Rev-Exp Region 10'!$F$42/'MMA Rev-Exp Region 10'!$F$9, 0)","v":{"v":0,"d":"$0.00"}},{"$f":"IFERROR('MMA Rev-Exp Region 10'!$G$42/'MMA Rev-Exp Region 10'!$G$9, 0)","v":{"v":0,"d":"$0.00"}},{"$f":"IFERROR('MMA Rev-Exp Region 10'!$H$42/'MMA Rev-Exp Region 10'!$H$9, 0)","v":{"v":0,"d":"$0.00"}},{"$f":"IFERROR('MMA Rev-Exp Region 10'!$I$42/'MMA Rev-Exp Region 10'!$I$9, 0)","v":{"v":0,"d":"$0.00"}},{"$f":"IFERROR('MMA Rev-Exp Region 10'!$J$42/'MMA Rev-Exp Region 10'!$J$9, 0)","v":{"v":0,"d":"$0.00"}},{"$f":"IFERROR('MMA Rev-Exp Region 10'!$K$42/'MMA Rev-Exp Region 10'!$K$9, 0)","v":{"v":0,"d":"$0.00"}},{"$f":"IFERROR('MMA Rev-Exp Region 10'!$L$42/'MMA Rev-Exp Region 10'!$L$9, 0)","v":{"v":0,"d":"$0.00"}},{"$f":"IFERROR('MMA Rev-Exp Region 10'!$M$42/'MMA Rev-Exp Region 10'!$M$9, 0)","v":{"v":0,"d":"$0.00"}},{"$f":"IFERROR('MMA Rev-Exp Region 10'!$N$42/'MMA Rev-Exp Region 10'!$N$9, 0)","v":{"v":0,"d":"$0.00"}}]
["MMA",null,null,2016,"2016-12-31","Q1","2017-03-31","Region 10","Operating Expense","Medical Benefits Expense","Mental Health Services",5.3,"Ending IBNP for Mental Health & Substance Abuse",{"$f":"IFERROR('MMA Rev-Exp Region 10'!$D$43/'MMA Rev-Exp Region 10'!$D$9, 0)","v":{"v":0,"d":"$0.00"}},{"$f":"IFERROR('MMA Rev-Exp Region 10'!$E$43/'MMA Rev-Exp Region 10'!$E$9, 0)","v":{"v":0,"d":"$0.00"}},{"$f":"IFERROR('MMA Rev-Exp Region 10'!$F$43/'MMA Rev-Exp Region 10'!$F$9, 0)","v":{"v":0,"d":"$0.00"}},{"$f":"IFERROR('MMA Rev-Exp Region 10'!$G$43/'MMA Rev-Exp Region 10'!$G$9, 0)","v":{"v":0,"d":"$0.00"}},{"$f":"IFERROR('MMA Rev-Exp Region 10'!$H$43/'MMA Rev-Exp Region 10'!$H$9, 0)","v":{"v":0,"d":"$0.00"}},{"$f":"IFERROR('MMA Rev-Exp Region 10'!$I$43/'MMA Rev-Exp Region 10'!$I$9, 0)","v":{"v":0,"d":"$0.00"}},{"$f":"IFERROR('MMA Rev-Exp Region 10'!$J$43/'MMA Rev-Exp Region 10'!$J$9, 0)","v":{"v":0,"d":"$0.00"}},{"$f":"IFERROR('MMA Rev-Exp Region 10'!$K$43/'MMA Rev-Exp Region 10'!$K$9, 0)","v":{"v":0,"d":"$0.00"}},{"$f":"IFERROR('MMA Rev-Exp Region 10'!$L$43/'MMA Rev-Exp Region 10'!$L$9, 0)","v":{"v":0,"d":"$0.00"}},{"$f":"IFERROR('MMA Rev-Exp Region 10'!$M$43/'MMA Rev-Exp Region 10'!$M$9, 0)","v":{"v":0,"d":"$0.00"}},{"$f":"IFERROR('MMA Rev-Exp Region 10'!$N$43/'MMA Rev-Exp Region 10'!$N$9, 0)","v":{"v":0,"d":"$0.00"}}]
["MMA",null,null,2016,"2016-12-31","Q1","2017-03-31","Region 10","Operating Expense","Medical Benefits Expense","Mental Health Services","5.4","Mental Health Settlements",{"$f":"IFERROR('MMA Rev-Exp Region 10'!$D$44/'MMA Rev-Exp Region 10'!$D$9, 0)","v":{"v":0,"d":"$0.00"}},{"$f":"IFERROR('MMA Rev-Exp Region 10'!$E$44/'MMA Rev-Exp Region 10'!$E$9, 0)","v":{"v":0,"d":"$0.00"}},{"$f":"IFERROR('MMA Rev-Exp Region 10'!$F$44/'MMA Rev-Exp Region 10'!$F$9, 0)","v":{"v":0,"d":"$0.00"}},{"$f":"IFERROR('MMA Rev-Exp Region 10'!$G$44/'MMA Rev-Exp Region 10'!$G$9, 0)","v":{"v":0,"d":"$0.00"}},{"$f":"IFERROR('MMA Rev-Exp Region 10'!$H$44/'MMA Rev-Exp Region 10'!$H$9, 0)","v":{"v":0,"d":"$0.00"}},{"$f":"IFERROR('MMA Rev-Exp Region 10'!$I$44/'MMA Rev-Exp Region 10'!$I$9, 0)","v":{"v":0,"d":"$0.00"}},{"$f":"IFERROR('MMA Rev-Exp Region 10'!$J$44/'MMA Rev-Exp Region 10'!$J$9, 0)","v":{"v":0,"d":"$0.00"}},{"$f":"IFERROR('MMA Rev-Exp Region 10'!$K$44/'MMA Rev-Exp Region 10'!$K$9, 0)","v":{"v":0,"d":"$0.00"}},{"$f":"IFERROR('MMA Rev-Exp Region 10'!$L$44/'MMA Rev-Exp Region 10'!$L$9, 0)","v":{"v":0,"d":"$0.00"}},{"$f":"IFERROR('MMA Rev-Exp Region 10'!$M$44/'MMA Rev-Exp Region 10'!$M$9, 0)","v":{"v":0,"d":"$0.00"}},{"$f":"IFERROR('MMA Rev-Exp Region 10'!$N$44/'MMA Rev-Exp Region 10'!$N$9, 0)","v":{"v":0,"d":"$0.00"}}]
["MMA",null,null,2016,"2016-12-31","Q1","2017-03-31","Region 10","Operating Expense","Medical Benefits Expense","Dental Services",6.1,"Dental FFS",{"$f":"IFERROR('MMA Rev-Exp Region 10'!$D$46/'MMA Rev-Exp Region 10'!$D$9, 0)","v":{"v":0,"d":"$0.00"}},{"$f":"IFERROR('MMA Rev-Exp Region 10'!$E$46/'MMA Rev-Exp Region 10'!$E$9, 0)","v":{"v":0,"d":"$0.00"}},{"$f":"IFERROR('MMA Rev-Exp Region 10'!$F$46/'MMA Rev-Exp Region 10'!$F$9, 0)","v":{"v":0,"d":"$0.00"}},{"$f":"IFERROR('MMA Rev-Exp Region 10'!$G$46/'MMA Rev-Exp Region 10'!$G$9, 0)","v":{"v":0,"d":"$0.00"}},{"$f":"IFERROR('MMA Rev-Exp Region 10'!$H$46/'MMA Rev-Exp Region 10'!$H$9, 0)","v":{"v":0,"d":"$0.00"}},{"$f":"IFERROR('MMA Rev-Exp Region 10'!$I$46/'MMA Rev-Exp Region 10'!$I$9, 0)","v":{"v":0,"d":"$0.00"}},{"$f":"IFERROR('MMA Rev-Exp Region 10'!$J$46/'MMA Rev-Exp Region 10'!$J$9, 0)","v":{"v":0,"d":"$0.00"}},{"$f":"IFERROR('MMA Rev-Exp Region 10'!$K$46/'MMA Rev-Exp Region 10'!$K$9, 0)","v":{"v":0,"d":"$0.00"}},{"$f":"IFERROR('MMA Rev-Exp Region 10'!$L$46/'MMA Rev-Exp Region 10'!$L$9, 0)","v":{"v":0,"d":"$0.00"}},{"$f":"IFERROR('MMA Rev-Exp Region 10'!$M$46/'MMA Rev-Exp Region 10'!$M$9, 0)","v":{"v":0,"d":"$0.00"}},{"$f":"IFERROR('MMA Rev-Exp Region 10'!$N$46/'MMA Rev-Exp Region 10'!$N$9, 0)","v":{"v":0,"d":"$0.00"}}]
["MMA",null,null,2016,"2016-12-31","Q1","2017-03-31","Region 10","Operating Expense","Medical Benefits Expense","Dental Services",6.2,"Dental Subcapitation",{"$f":"IFERROR('MMA Rev-Exp Region 10'!$D$47/'MMA Rev-Exp Region 10'!$D$9, 0)","v":{"v":0,"d":"$0.00"}},{"$f":"IFERROR('MMA Rev-Exp Region 10'!$E$47/'MMA Rev-Exp Region 10'!$E$9, 0)","v":{"v":0,"d":"$0.00"}},{"$f":"IFERROR('MMA Rev-Exp Region 10'!$F$47/'MMA Rev-Exp Region 10'!$F$9, 0)","v":{"v":0,"d":"$0.00"}},{"$f":"IFERROR('MMA Rev-Exp Region 10'!$G$47/'MMA Rev-Exp Region 10'!$G$9, 0)","v":{"v":0,"d":"$0.00"}},{"$f":"IFERROR('MMA Rev-Exp Region 10'!$H$47/'MMA Rev-Exp Region 10'!$H$9, 0)","v":{"v":0,"d":"$0.00"}},{"$f":"IFERROR('MMA Rev-Exp Region 10'!$I$47/'MMA Rev-Exp Region 10'!$I$9, 0)","v":{"v":0,"d":"$0.00"}},{"$f":"IFERROR('MMA Rev-Exp Region 10'!$J$47/'MMA Rev-Exp Region 10'!$J$9, 0)","v":{"v":0,"d":"$0.00"}},{"$f":"IFERROR('MMA Rev-Exp Region 10'!$K$47/'MMA Rev-Exp Region 10'!$K$9, 0)","v":{"v":0,"d":"$0.00"}},{"$f":"IFERROR('MMA Rev-Exp Region 10'!$L$47/'MMA Rev-Exp Region 10'!$L$9, 0)","v":{"v":0,"d":"$0.00"}},{"$f":"IFERROR('MMA Rev-Exp Region 10'!$M$47/'MMA Rev-Exp Region 10'!$M$9, 0)","v":{"v":0,"d":"$0.00"}},{"$f":"IFERROR('MMA Rev-Exp Region 10'!$N$47/'MMA Rev-Exp Region 10'!$N$9, 0)","v":{"v":0,"d":"$0.00"}}]
["MMA",null,null,2016,"2016-12-31","Q1","2017-03-31","Region 10","Operating Expense","Medical Benefits Expense","Dental Services",6.3,"Ending IBNP for Dental Services",{"$f":"IFERROR('MMA Rev-Exp Region 10'!$D$48/'MMA Rev-Exp Region 10'!$D$9, 0)","v":{"v":0,"d":"$0.00"}},{"$f":"IFERROR('MMA Rev-Exp Region 10'!$E$48/'MMA Rev-Exp Region 10'!$E$9, 0)","v":{"v":0,"d":"$0.00"}},{"$f":"IFERROR('MMA Rev-Exp Region 10'!$F$48/'MMA Rev-Exp Region 10'!$F$9, 0)","v":{"v":0,"d":"$0.00"}},{"$f":"IFERROR('MMA Rev-Exp Region 10'!$G$48/'MMA Rev-Exp Region 10'!$G$9, 0)","v":{"v":0,"d":"$0.00"}},{"$f":"IFERROR('MMA Rev-Exp Region 10'!$H$48/'MMA Rev-Exp Region 10'!$H$9, 0)","v":{"v":0,"d":"$0.00"}},{"$f":"IFERROR('MMA Rev-Exp Region 10'!$I$48/'MMA Rev-Exp Region 10'!$I$9, 0)","v":{"v":0,"d":"$0.00"}},{"$f":"IFERROR('MMA Rev-Exp Region 10'!$J$48/'MMA Rev-Exp Region 10'!$J$9, 0)","v":{"v":0,"d":"$0.00"}},{"$f":"IFERROR('MMA Rev-Exp Region 10'!$K$48/'MMA Rev-Exp Region 10'!$K$9, 0)","v":{"v":0,"d":"$0.00"}},{"$f":"IFERROR('MMA Rev-Exp Region 10'!$L$48/'MMA Rev-Exp Region 10'!$L$9, 0)","v":{"v":0,"d":"$0.00"}},{"$f":"IFERROR('MMA Rev-Exp Region 10'!$M$48/'MMA Rev-Exp Region 10'!$M$9, 0)","v":{"v":0,"d":"$0.00"}},{"$f":"IFERROR('MMA Rev-Exp Region 10'!$N$48/'MMA Rev-Exp Region 10'!$N$9, 0)","v":{"v":0,"d":"$0.00"}}]
["MMA",null,null,2016,"2016-12-31","Q1","2017-03-31","Region 10","Operating Expense","Medical Benefits Expense","Dental Services","6.4","Dental Settlements",{"$f":"IFERROR('MMA Rev-Exp Region 10'!$D$49/'MMA Rev-Exp Region 10'!$D$9, 0)","v":{"v":0,"d":"$0.00"}},{"$f":"IFERROR('MMA Rev-Exp Region 10'!$E$49/'MMA Rev-Exp Region 10'!$E$9, 0)","v":{"v":0,"d":"$0.00"}},{"$f":"IFERROR('MMA Rev-Exp Region 10'!$F$49/'MMA Rev-Exp Region 10'!$F$9, 0)","v":{"v":0,"d":"$0.00"}},{"$f":"IFERROR('MMA Rev-Exp Region 10'!$G$49/'MMA Rev-Exp Region 10'!$G$9, 0)","v":{"v":0,"d":"$0.00"}},{"$f":"IFERROR('MMA Rev-Exp Region 10'!$H$49/'MMA Rev-Exp Region 10'!$H$9, 0)","v":{"v":0,"d":"$0.00"}},{"$f":"IFERROR('MMA Rev-Exp Region 10'!$I$49/'MMA Rev-Exp Region 10'!$I$9, 0)","v":{"v":0,"d":"$0.00"}},{"$f":"IFERROR('MMA Rev-Exp Region 10'!$J$49/'MMA Rev-Exp Region 10'!$J$9, 0)","v":{"v":0,"d":"$0.00"}},{"$f":"IFERROR('MMA Rev-Exp Region 10'!$K$49/'MMA Rev-Exp Region 10'!$K$9, 0)","v":{"v":0,"d":"$0.00"}},{"$f":"IFERROR('MMA Rev-Exp Region 10'!$L$49/'MMA Rev-Exp Region 10'!$L$9, 0)","v":{"v":0,"d":"$0.00"}},{"$f":"IFERROR('MMA Rev-Exp Region 10'!$M$49/'MMA Rev-Exp Region 10'!$M$9, 0)","v":{"v":0,"d":"$0.00"}},{"$f":"IFERROR('MMA Rev-Exp Region 10'!$N$49/'MMA Rev-Exp Region 10'!$N$9, 0)","v":{"v":0,"d":"$0.00"}}]
["MMA",null,null,2016,"2016-12-31","Q1","2017-03-31","Region 10","Operating Expense","Medical Benefits Expense","Transportation Services",7.1,"Transportation FFS",{"$f":"IFERROR('MMA Rev-Exp Region 10'!$D$51/'MMA Rev-Exp Region 10'!$D$9, 0)","v":{"v":0,"d":"$0.00"}},{"$f":"IFERROR('MMA Rev-Exp Region 10'!$E$51/'MMA Rev-Exp Region 10'!$E$9, 0)","v":{"v":0,"d":"$0.00"}},{"$f":"IFERROR('MMA Rev-Exp Region 10'!$F$51/'MMA Rev-Exp Region 10'!$F$9, 0)","v":{"v":0,"d":"$0.00"}},{"$f":"IFERROR('MMA Rev-Exp Region 10'!$G$51/'MMA Rev-Exp Region 10'!$G$9, 0)","v":{"v":0,"d":"$0.00"}},{"$f":"IFERROR('MMA Rev-Exp Region 10'!$H$51/'MMA Rev-Exp Region 10'!$H$9, 0)","v":{"v":0,"d":"$0.00"}},{"$f":"IFERROR('MMA Rev-Exp Region 10'!$I$51/'MMA Rev-Exp Region 10'!$I$9, 0)","v":{"v":0,"d":"$0.00"}},{"$f":"IFERROR('MMA Rev-Exp Region 10'!$J$51/'MMA Rev-Exp Region 10'!$J$9, 0)","v":{"v":0,"d":"$0.00"}},{"$f":"IFERROR('MMA Rev-Exp Region 10'!$K$51/'MMA Rev-Exp Region 10'!$K$9, 0)","v":{"v":0,"d":"$0.00"}},{"$f":"IFERROR('MMA Rev-Exp Region 10'!$L$51/'MMA Rev-Exp Region 10'!$L$9, 0)","v":{"v":0,"d":"$0.00"}},{"$f":"IFERROR('MMA Rev-Exp Region 10'!$M$51/'MMA Rev-Exp Region 10'!$M$9, 0)","v":{"v":0,"d":"$0.00"}},{"$f":"IFERROR('MMA Rev-Exp Region 10'!$N$51/'MMA Rev-Exp Region 10'!$N$9, 0)","v":{"v":0,"d":"$0.00"}}]
["MMA",null,null,2016,"2016-12-31","Q1","2017-03-31","Region 10","Operating Expense","Medical Benefits Expense","Transportation Services",7.2,"Transportation Subcapitation",{"$f":"IFERROR('MMA Rev-Exp Region 10'!$D$52/'MMA Rev-Exp Region 10'!$D$9, 0)","v":{"v":0,"d":"$0.00"}},{"$f":"IFERROR('MMA Rev-Exp Region 10'!$E$52/'MMA Rev-Exp Region 10'!$E$9, 0)","v":{"v":0,"d":"$0.00"}},{"$f":"IFERROR('MMA Rev-Exp Region 10'!$F$52/'MMA Rev-Exp Region 10'!$F$9, 0)","v":{"v":0,"d":"$0.00"}},{"$f":"IFERROR('MMA Rev-Exp Region 10'!$G$52/'MMA Rev-Exp Region 10'!$G$9, 0)","v":{"v":0,"d":"$0.00"}},{"$f":"IFERROR('MMA Rev-Exp Region 10'!$H$52/'MMA Rev-Exp Region 10'!$H$9, 0)","v":{"v":0,"d":"$0.00"}},{"$f":"IFERROR('MMA Rev-Exp Region 10'!$I$52/'MMA Rev-Exp Region 10'!$I$9, 0)","v":{"v":0,"d":"$0.00"}},{"$f":"IFERROR('MMA Rev-Exp Region 10'!$J$52/'MMA Rev-Exp Region 10'!$J$9, 0)","v":{"v":0,"d":"$0.00"}},{"$f":"IFERROR('MMA Rev-Exp Region 10'!$K$52/'MMA Rev-Exp Region 10'!$K$9, 0)","v":{"v":0,"d":"$0.00"}},{"$f":"IFERROR('MMA Rev-Exp Region 10'!$L$52/'MMA Rev-Exp Region 10'!$L$9, 0)","v":{"v":0,"d":"$0.00"}},{"$f":"IFERROR('MMA Rev-Exp Region 10'!$M$52/'MMA Rev-Exp Region 10'!$M$9, 0)","v":{"v":0,"d":"$0.00"}},{"$f":"IFERROR('MMA Rev-Exp Region 10'!$N$52/'MMA Rev-Exp Region 10'!$N$9, 0)","v":{"v":0,"d":"$0.00"}}]
["MMA",null,null,2016,"2016-12-31","Q1","2017-03-31","Region 10","Operating Expense","Medical Benefits Expense","Transportation Services",7.3,"Ending IBNP for Transportation",{"$f":"IFERROR('MMA Rev-Exp Region 10'!$D$53/'MMA Rev-Exp Region 10'!$D$9, 0)","v":{"v":0,"d":"$0.00"}},{"$f":"IFERROR('MMA Rev-Exp Region 10'!$E$53/'MMA Rev-Exp Region 10'!$E$9, 0)","v":{"v":0,"d":"$0.00"}},{"$f":"IFERROR('MMA Rev-Exp Region 10'!$F$53/'MMA Rev-Exp Region 10'!$F$9, 0)","v":{"v":0,"d":"$0.00"}},{"$f":"IFERROR('MMA Rev-Exp Region 10'!$G$53/'MMA Rev-Exp Region 10'!$G$9, 0)","v":{"v":0,"d":"$0.00"}},{"$f":"IFERROR('MMA Rev-Exp Region 10'!$H$53/'MMA Rev-Exp Region 10'!$H$9, 0)","v":{"v":0,"d":"$0.00"}},{"$f":"IFERROR('MMA Rev-Exp Region 10'!$I$53/'MMA Rev-Exp Region 10'!$I$9, 0)","v":{"v":0,"d":"$0.00"}},{"$f":"IFERROR('MMA Rev-Exp Region 10'!$J$53/'MMA Rev-Exp Region 10'!$J$9, 0)","v":{"v":0,"d":"$0.00"}},{"$f":"IFERROR('MMA Rev-Exp Region 10'!$K$53/'MMA Rev-Exp Region 10'!$K$9, 0)","v":{"v":0,"d":"$0.00"}},{"$f":"IFERROR('MMA Rev-Exp Region 10'!$L$53/'MMA Rev-Exp Region 10'!$L$9, 0)","v":{"v":0,"d":"$0.00"}},{"$f":"IFERROR('MMA Rev-Exp Region 10'!$M$53/'MMA Rev-Exp Region 10'!$M$9, 0)","v":{"v":0,"d":"$0.00"}},{"$f":"IFERROR('MMA Rev-Exp Region 10'!$N$53/'MMA Rev-Exp Region 10'!$N$9, 0)","v":{"v":0,"d":"$0.00"}}]
["MMA",null,null,2016,"2016-12-31","Q1","2017-03-31","Region 10","Operating Expense","Medical Benefits Expense","Transportation Services","7.4","Transportation Settlements",{"$f":"IFERROR('MMA Rev-Exp Region 10'!$D$54/'MMA Rev-Exp Region 10'!$D$9, 0)","v":{"v":0,"d":"$0.00"}},{"$f":"IFERROR('MMA Rev-Exp Region 10'!$E$54/'MMA Rev-Exp Region 10'!$E$9, 0)","v":{"v":0,"d":"$0.00"}},{"$f":"IFERROR('MMA Rev-Exp Region 10'!$F$54/'MMA Rev-Exp Region 10'!$F$9, 0)","v":{"v":0,"d":"$0.00"}},{"$f":"IFERROR('MMA Rev-Exp Region 10'!$G$54/'MMA Rev-Exp Region 10'!$G$9, 0)","v":{"v":0,"d":"$0.00"}},{"$f":"IFERROR('MMA Rev-Exp Region 10'!$H$54/'MMA Rev-Exp Region 10'!$H$9, 0)","v":{"v":0,"d":"$0.00"}},{"$f":"IFERROR('MMA Rev-Exp Region 10'!$I$54/'MMA Rev-Exp Region 10'!$I$9, 0)","v":{"v":0,"d":"$0.00"}},{"$f":"IFERROR('MMA Rev-Exp Region 10'!$J$54/'MMA Rev-Exp Region 10'!$J$9, 0)","v":{"v":0,"d":"$0.00"}},{"$f":"IFERROR('MMA Rev-Exp Region 10'!$K$54/'MMA Rev-Exp Region 10'!$K$9, 0)","v":{"v":0,"d":"$0.00"}},{"$f":"IFERROR('MMA Rev-Exp Region 10'!$L$54/'MMA Rev-Exp Region 10'!$L$9, 0)","v":{"v":0,"d":"$0.00"}},{"$f":"IFERROR('MMA Rev-Exp Region 10'!$M$54/'MMA Rev-Exp Region 10'!$M$9, 0)","v":{"v":0,"d":"$0.00"}},{"$f":"IFERROR('MMA Rev-Exp Region 10'!$N$54/'MMA Rev-Exp Region 10'!$N$9, 0)","v":{"v":0,"d":"$0.00"}}]
["MMA",null,null,2016,"2016-12-31","Q1","2017-03-31","Region 10","Operating Expense","Medical Benefits Expense","Pharmacy Services",8.1,"Prescription Drugs FFS",{"$f":"IFERROR('MMA Rev-Exp Region 10'!$D$56/'MMA Rev-Exp Region 10'!$D$9, 0)","v":{"v":0,"d":"$0.00"}},{"$f":"IFERROR('MMA Rev-Exp Region 10'!$E$56/'MMA Rev-Exp Region 10'!$E$9, 0)","v":{"v":0,"d":"$0.00"}},{"$f":"IFERROR('MMA Rev-Exp Region 10'!$F$56/'MMA Rev-Exp Region 10'!$F$9, 0)","v":{"v":0,"d":"$0.00"}},{"$f":"IFERROR('MMA Rev-Exp Region 10'!$G$56/'MMA Rev-Exp Region 10'!$G$9, 0)","v":{"v":0,"d":"$0.00"}},{"$f":"IFERROR('MMA Rev-Exp Region 10'!$H$56/'MMA Rev-Exp Region 10'!$H$9, 0)","v":{"v":0,"d":"$0.00"}},{"$f":"IFERROR('MMA Rev-Exp Region 10'!$I$56/'MMA Rev-Exp Region 10'!$I$9, 0)","v":{"v":0,"d":"$0.00"}},{"$f":"IFERROR('MMA Rev-Exp Region 10'!$J$56/'MMA Rev-Exp Region 10'!$J$9, 0)","v":{"v":0,"d":"$0.00"}},{"$f":"IFERROR('MMA Rev-Exp Region 10'!$K$56/'MMA Rev-Exp Region 10'!$K$9, 0)","v":{"v":0,"d":"$0.00"}},{"$f":"IFERROR('MMA Rev-Exp Region 10'!$L$56/'MMA Rev-Exp Region 10'!$L$9, 0)","v":{"v":0,"d":"$0.00"}},{"$f":"IFERROR('MMA Rev-Exp Region 10'!$M$56/'MMA Rev-Exp Region 10'!$M$9, 0)","v":{"v":0,"d":"$0.00"}},{"$f":"IFERROR('MMA Rev-Exp Region 10'!$N$56/'MMA Rev-Exp Region 10'!$N$9, 0)","v":{"v":0,"d":"$0.00"}}]
["MMA",null,null,2016,"2016-12-31","Q1","2017-03-31","Region 10","Operating Expense","Medical Benefits Expense","Pharmacy Services","8.2","Hepatitis C Prescription Drug FFS",{"$f":"IFERROR('MMA Rev-Exp Region 10'!$D$57/'MMA Rev-Exp Region 10'!$D$9, 0)","v":{"v":0,"d":"$0.00"}},{"$f":"IFERROR('MMA Rev-Exp Region 10'!$E$57/'MMA Rev-Exp Region 10'!$E$9, 0)","v":{"v":0,"d":"$0.00"}},{"$f":"IFERROR('MMA Rev-Exp Region 10'!$F$57/'MMA Rev-Exp Region 10'!$F$9, 0)","v":{"v":0,"d":"$0.00"}},{"$f":"IFERROR('MMA Rev-Exp Region 10'!$G$57/'MMA Rev-Exp Region 10'!$G$9, 0)","v":{"v":0,"d":"$0.00"}},{"$f":"IFERROR('MMA Rev-Exp Region 10'!$H$57/'MMA Rev-Exp Region 10'!$H$9, 0)","v":{"v":0,"d":"$0.00"}},{"$f":"IFERROR('MMA Rev-Exp Region 10'!$I$57/'MMA Rev-Exp Region 10'!$I$9, 0)","v":{"v":0,"d":"$0.00"}},{"$f":"IFERROR('MMA Rev-Exp Region 10'!$J$57/'MMA Rev-Exp Region 10'!$J$9, 0)","v":{"v":0,"d":"$0.00"}},{"$f":"IFERROR('MMA Rev-Exp Region 10'!$K$57/'MMA Rev-Exp Region 10'!$K$9, 0)","v":{"v":0,"d":"$0.00"}},{"$f":"IFERROR('MMA Rev-Exp Region 10'!$L$57/'MMA Rev-Exp Region 10'!$L$9, 0)","v":{"v":0,"d":"$0.00"}},{"$f":"IFERROR('MMA Rev-Exp Region 10'!$M$57/'MMA Rev-Exp Region 10'!$M$9, 0)","v":{"v":0,"d":"$0.00"}},{"$f":"IFERROR('MMA Rev-Exp Region 10'!$N$57/'MMA Rev-Exp Region 10'!$N$9, 0)","v":{"v":0,"d":"$0.00"}}]
["MMA",null,null,2016,"2016-12-31","Q1","2017-03-31","Region 10","Operating Expense","Medical Benefits Expense","Pharmacy Services","8.3","Ending IBNP for Prescription Drugs",{"$f":"IFERROR('MMA Rev-Exp Region 10'!$D$58/'MMA Rev-Exp Region 10'!$D$9, 0)","v":{"v":0,"d":"$0.00"}},{"$f":"IFERROR('MMA Rev-Exp Region 10'!$E$58/'MMA Rev-Exp Region 10'!$E$9, 0)","v":{"v":0,"d":"$0.00"}},{"$f":"IFERROR('MMA Rev-Exp Region 10'!$F$58/'MMA Rev-Exp Region 10'!$F$9, 0)","v":{"v":0,"d":"$0.00"}},{"$f":"IFERROR('MMA Rev-Exp Region 10'!$G$58/'MMA Rev-Exp Region 10'!$G$9, 0)","v":{"v":0,"d":"$0.00"}},{"$f":"IFERROR('MMA Rev-Exp Region 10'!$H$58/'MMA Rev-Exp Region 10'!$H$9, 0)","v":{"v":0,"d":"$0.00"}},{"$f":"IFERROR('MMA Rev-Exp Region 10'!$I$58/'MMA Rev-Exp Region 10'!$I$9, 0)","v":{"v":0,"d":"$0.00"}},{"$f":"IFERROR('MMA Rev-Exp Region 10'!$J$58/'MMA Rev-Exp Region 10'!$J$9, 0)","v":{"v":0,"d":"$0.00"}},{"$f":"IFERROR('MMA Rev-Exp Region 10'!$K$58/'MMA Rev-Exp Region 10'!$K$9, 0)","v":{"v":0,"d":"$0.00"}},{"$f":"IFERROR('MMA Rev-Exp Region 10'!$L$58/'MMA Rev-Exp Region 10'!$L$9, 0)","v":{"v":0,"d":"$0.00"}},{"$f":"IFERROR('MMA Rev-Exp Region 10'!$M$58/'MMA Rev-Exp Region 10'!$M$9, 0)","v":{"v":0,"d":"$0.00"}},{"$f":"IFERROR('MMA Rev-Exp Region 10'!$N$58/'MMA Rev-Exp Region 10'!$N$9, 0)","v":{"v":0,"d":"$0.00"}}]
["MMA",null,null,2016,"2016-12-31","Q1","2017-03-31","Region 10","Operating Expense","Medical Benefits Expense","Pharmacy Services","8.4","Prescription Drug Rebates ",{"$f":"IFERROR('MMA Rev-Exp Region 10'!$D$59/'MMA Rev-Exp Region 10'!$D$9, 0)","v":{"v":0,"d":"$0.00"}},{"$f":"IFERROR('MMA Rev-Exp Region 10'!$E$59/'MMA Rev-Exp Region 10'!$E$9, 0)","v":{"v":0,"d":"$0.00"}},{"$f":"IFERROR('MMA Rev-Exp Region 10'!$F$59/'MMA Rev-Exp Region 10'!$F$9, 0)","v":{"v":0,"d":"$0.00"}},{"$f":"IFERROR('MMA Rev-Exp Region 10'!$G$59/'MMA Rev-Exp Region 10'!$G$9, 0)","v":{"v":0,"d":"$0.00"}},{"$f":"IFERROR('MMA Rev-Exp Region 10'!$H$59/'MMA Rev-Exp Region 10'!$H$9, 0)","v":{"v":0,"d":"$0.00"}},{"$f":"IFERROR('MMA Rev-Exp Region 10'!$I$59/'MMA Rev-Exp Region 10'!$I$9, 0)","v":{"v":0,"d":"$0.00"}},{"$f":"IFERROR('MMA Rev-Exp Region 10'!$J$59/'MMA Rev-Exp Region 10'!$J$9, 0)","v":{"v":0,"d":"$0.00"}},{"$f":"IFERROR('MMA Rev-Exp Region 10'!$K$59/'MMA Rev-Exp Region 10'!$K$9, 0)","v":{"v":0,"d":"$0.00"}},{"$f":"IFERROR('MMA Rev-Exp Region 10'!$L$59/'MMA Rev-Exp Region 10'!$L$9, 0)","v":{"v":0,"d":"$0.00"}},{"$f":"IFERROR('MMA Rev-Exp Region 10'!$M$59/'MMA Rev-Exp Region 10'!$M$9, 0)","v":{"v":0,"d":"$0.00"}},{"$f":"IFERROR('MMA Rev-Exp Region 10'!$N$59/'MMA Rev-Exp Region 10'!$N$9, 0)","v":{"v":0,"d":"$0.00"}}]
["MMA",null,null,2016,"2016-12-31","Q1","2017-03-31","Region 10","Operating Expense","Medical Benefits Expense","Pharmacy Services","8.5","Ending accrual for Rebates receivable",{"$f":"IFERROR('MMA Rev-Exp Region 10'!$D$60/'MMA Rev-Exp Region 10'!$D$9, 0)","v":{"v":0,"d":"$0.00"}},{"$f":"IFERROR('MMA Rev-Exp Region 10'!$E$60/'MMA Rev-Exp Region 10'!$E$9, 0)","v":{"v":0,"d":"$0.00"}},{"$f":"IFERROR('MMA Rev-Exp Region 10'!$F$60/'MMA Rev-Exp Region 10'!$F$9, 0)","v":{"v":0,"d":"$0.00"}},{"$f":"IFERROR('MMA Rev-Exp Region 10'!$G$60/'MMA Rev-Exp Region 10'!$G$9, 0)","v":{"v":0,"d":"$0.00"}},{"$f":"IFERROR('MMA Rev-Exp Region 10'!$H$60/'MMA Rev-Exp Region 10'!$H$9, 0)","v":{"v":0,"d":"$0.00"}},{"$f":"IFERROR('MMA Rev-Exp Region 10'!$I$60/'MMA Rev-Exp Region 10'!$I$9, 0)","v":{"v":0,"d":"$0.00"}},{"$f":"IFERROR('MMA Rev-Exp Region 10'!$J$60/'MMA Rev-Exp Region 10'!$J$9, 0)","v":{"v":0,"d":"$0.00"}},{"$f":"IFERROR('MMA Rev-Exp Region 10'!$K$60/'MMA Rev-Exp Region 10'!$K$9, 0)","v":{"v":0,"d":"$0.00"}},{"$f":"IFERROR('MMA Rev-Exp Region 10'!$L$60/'MMA Rev-Exp Region 10'!$L$9, 0)","v":{"v":0,"d":"$0.00"}},{"$f":"IFERROR('MMA Rev-Exp Region 10'!$M$60/'MMA Rev-Exp Region 10'!$M$9, 0)","v":{"v":0,"d":"$0.00"}},{"$f":"IFERROR('MMA Rev-Exp Region 10'!$N$60/'MMA Rev-Exp Region 10'!$N$9, 0)","v":{"v":0,"d":"$0.00"}}]
["MMA",null,null,2016,"2016-12-31","Q1","2017-03-31","Region 10","Operating Expense","Medical Benefits Expense","Pharmacy Services","8.6","Prescription Drugs Subcapitation",{"$f":"IFERROR('MMA Rev-Exp Region 10'!$D$61/'MMA Rev-Exp Region 10'!$D$9, 0)","v":{"v":0,"d":"$0.00"}},{"$f":"IFERROR('MMA Rev-Exp Region 10'!$E$61/'MMA Rev-Exp Region 10'!$E$9, 0)","v":{"v":0,"d":"$0.00"}},{"$f":"IFERROR('MMA Rev-Exp Region 10'!$F$61/'MMA Rev-Exp Region 10'!$F$9, 0)","v":{"v":0,"d":"$0.00"}},{"$f":"IFERROR('MMA Rev-Exp Region 10'!$G$61/'MMA Rev-Exp Region 10'!$G$9, 0)","v":{"v":0,"d":"$0.00"}},{"$f":"IFERROR('MMA Rev-Exp Region 10'!$H$61/'MMA Rev-Exp Region 10'!$H$9, 0)","v":{"v":0,"d":"$0.00"}},{"$f":"IFERROR('MMA Rev-Exp Region 10'!$I$61/'MMA Rev-Exp Region 10'!$I$9, 0)","v":{"v":0,"d":"$0.00"}},{"$f":"IFERROR('MMA Rev-Exp Region 10'!$J$61/'MMA Rev-Exp Region 10'!$J$9, 0)","v":{"v":0,"d":"$0.00"}},{"$f":"IFERROR('MMA Rev-Exp Region 10'!$K$61/'MMA Rev-Exp Region 10'!$K$9, 0)","v":{"v":0,"d":"$0.00"}},{"$f":"IFERROR('MMA Rev-Exp Region 10'!$L$61/'MMA Rev-Exp Region 10'!$L$9, 0)","v":{"v":0,"d":"$0.00"}},{"$f":"IFERROR('MMA Rev-Exp Region 10'!$M$61/'MMA Rev-Exp Region 10'!$M$9, 0)","v":{"v":0,"d":"$0.00"}},{"$f":"IFERROR('MMA Rev-Exp Region 10'!$N$61/'MMA Rev-Exp Region 10'!$N$9, 0)","v":{"v":0,"d":"$0.00"}}]
["MMA",null,null,2016,"2016-12-31","Q1","2017-03-31","Region 10","Operating Expense","Medical Benefits Expense","Pharmacy Services","8.7","Prescription Drug Settlements",{"$f":"IFERROR('MMA Rev-Exp Region 10'!$D$62/'MMA Rev-Exp Region 10'!$D$9, 0)","v":{"v":0,"d":"$0.00"}},{"$f":"IFERROR('MMA Rev-Exp Region 10'!$E$62/'MMA Rev-Exp Region 10'!$E$9, 0)","v":{"v":0,"d":"$0.00"}},{"$f":"IFERROR('MMA Rev-Exp Region 10'!$F$62/'MMA Rev-Exp Region 10'!$F$9, 0)","v":{"v":0,"d":"$0.00"}},{"$f":"IFERROR('MMA Rev-Exp Region 10'!$G$62/'MMA Rev-Exp Region 10'!$G$9, 0)","v":{"v":0,"d":"$0.00"}},{"$f":"IFERROR('MMA Rev-Exp Region 10'!$H$62/'MMA Rev-Exp Region 10'!$H$9, 0)","v":{"v":0,"d":"$0.00"}},{"$f":"IFERROR('MMA Rev-Exp Region 10'!$I$62/'MMA Rev-Exp Region 10'!$I$9, 0)","v":{"v":0,"d":"$0.00"}},{"$f":"IFERROR('MMA Rev-Exp Region 10'!$J$62/'MMA Rev-Exp Region 10'!$J$9, 0)","v":{"v":0,"d":"$0.00"}},{"$f":"IFERROR('MMA Rev-Exp Region 10'!$K$62/'MMA Rev-Exp Region 10'!$K$9, 0)","v":{"v":0,"d":"$0.00"}},{"$f":"IFERROR('MMA Rev-Exp Region 10'!$L$62/'MMA Rev-Exp Region 10'!$L$9, 0)","v":{"v":0,"d":"$0.00"}},{"$f":"IFERROR('MMA Rev-Exp Region 10'!$M$62/'MMA Rev-Exp Region 10'!$M$9, 0)","v":{"v":0,"d":"$0.00"}},{"$f":"IFERROR('MMA Rev-Exp Region 10'!$N$62/'MMA Rev-Exp Region 10'!$N$9, 0)","v":{"v":0,"d":"$0.00"}}]
["MMA",null,null,2016,"2016-12-31","Q1","2017-03-31","Region 10","Operating Expense","Medical Benefits Expense","Other MMA Services",9.1,"Home Health, Private Duty Nursing, Personal Care FFS",{"$f":"IFERROR('MMA Rev-Exp Region 10'!$D$64/'MMA Rev-Exp Region 10'!$D$9, 0)","v":{"v":0,"d":"$0.00"}},{"$f":"IFERROR('MMA Rev-Exp Region 10'!$E$64/'MMA Rev-Exp Region 10'!$E$9, 0)","v":{"v":0,"d":"$0.00"}},{"$f":"IFERROR('MMA Rev-Exp Region 10'!$F$64/'MMA Rev-Exp Region 10'!$F$9, 0)","v":{"v":0,"d":"$0.00"}},{"$f":"IFERROR('MMA Rev-Exp Region 10'!$G$64/'MMA Rev-Exp Region 10'!$G$9, 0)","v":{"v":0,"d":"$0.00"}},{"$f":"IFERROR('MMA Rev-Exp Region 10'!$H$64/'MMA Rev-Exp Region 10'!$H$9, 0)","v":{"v":0,"d":"$0.00"}},{"$f":"IFERROR('MMA Rev-Exp Region 10'!$I$64/'MMA Rev-Exp Region 10'!$I$9, 0)","v":{"v":0,"d":"$0.00"}},{"$f":"IFERROR('MMA Rev-Exp Region 10'!$J$64/'MMA Rev-Exp Region 10'!$J$9, 0)","v":{"v":0,"d":"$0.00"}},{"$f":"IFERROR('MMA Rev-Exp Region 10'!$K$64/'MMA Rev-Exp Region 10'!$K$9, 0)","v":{"v":0,"d":"$0.00"}},{"$f":"IFERROR('MMA Rev-Exp Region 10'!$L$64/'MMA Rev-Exp Region 10'!$L$9, 0)","v":{"v":0,"d":"$0.00"}},{"$f":"IFERROR('MMA Rev-Exp Region 10'!$M$64/'MMA Rev-Exp Region 10'!$M$9, 0)","v":{"v":0,"d":"$0.00"}},{"$f":"IFERROR('MMA Rev-Exp Region 10'!$N$64/'MMA Rev-Exp Region 10'!$N$9, 0)","v":{"v":0,"d":"$0.00"}}]
["MMA",null,null,2016,"2016-12-31","Q1","2017-03-31","Region 10","Operating Expense","Medical Benefits Expense","Other MMA Services","9.2","Hospice FFS",{"$f":"IFERROR('MMA Rev-Exp Region 10'!$D$65/'MMA Rev-Exp Region 10'!$D$9, 0)","v":{"v":0,"d":"$0.00"}},{"$f":"IFERROR('MMA Rev-Exp Region 10'!$E$65/'MMA Rev-Exp Region 10'!$E$9, 0)","v":{"v":0,"d":"$0.00"}},{"$f":"IFERROR('MMA Rev-Exp Region 10'!$F$65/'MMA Rev-Exp Region 10'!$F$9, 0)","v":{"v":0,"d":"$0.00"}},{"$f":"IFERROR('MMA Rev-Exp Region 10'!$G$65/'MMA Rev-Exp Region 10'!$G$9, 0)","v":{"v":0,"d":"$0.00"}},{"$f":"IFERROR('MMA Rev-Exp Region 10'!$H$65/'MMA Rev-Exp Region 10'!$H$9, 0)","v":{"v":0,"d":"$0.00"}},{"$f":"IFERROR('MMA Rev-Exp Region 10'!$I$65/'MMA Rev-Exp Region 10'!$I$9, 0)","v":{"v":0,"d":"$0.00"}},{"$f":"IFERROR('MMA Rev-Exp Region 10'!$J$65/'MMA Rev-Exp Region 10'!$J$9, 0)","v":{"v":0,"d":"$0.00"}},{"$f":"IFERROR('MMA Rev-Exp Region 10'!$K$65/'MMA Rev-Exp Region 10'!$K$9, 0)","v":{"v":0,"d":"$0.00"}},{"$f":"IFERROR('MMA Rev-Exp Region 10'!$L$65/'MMA Rev-Exp Region 10'!$L$9, 0)","v":{"v":0,"d":"$0.00"}},{"$f":"IFERROR('MMA Rev-Exp Region 10'!$M$65/'MMA Rev-Exp Region 10'!$M$9, 0)","v":{"v":0,"d":"$0.00"}},{"$f":"IFERROR('MMA Rev-Exp Region 10'!$N$65/'MMA Rev-Exp Region 10'!$N$9, 0)","v":{"v":0,"d":"$0.00"}}]
["MMA",null,null,2016,"2016-12-31","Q1","2017-03-31","Region 10","Operating Expense","Medical Benefits Expense","Other MMA Services","9.3","DME FFS",{"$f":"IFERROR('MMA Rev-Exp Region 10'!$D$66/'MMA Rev-Exp Region 10'!$D$9, 0)","v":{"v":0,"d":"$0.00"}},{"$f":"IFERROR('MMA Rev-Exp Region 10'!$E$66/'MMA Rev-Exp Region 10'!$E$9, 0)","v":{"v":0,"d":"$0.00"}},{"$f":"IFERROR('MMA Rev-Exp Region 10'!$F$66/'MMA Rev-Exp Region 10'!$F$9, 0)","v":{"v":0,"d":"$0.00"}},{"$f":"IFERROR('MMA Rev-Exp Region 10'!$G$66/'MMA Rev-Exp Region 10'!$G$9, 0)","v":{"v":0,"d":"$0.00"}},{"$f":"IFERROR('MMA Rev-Exp Region 10'!$H$66/'MMA Rev-Exp Region 10'!$H$9, 0)","v":{"v":0,"d":"$0.00"}},{"$f":"IFERROR('MMA Rev-Exp Region 10'!$I$66/'MMA Rev-Exp Region 10'!$I$9, 0)","v":{"v":0,"d":"$0.00"}},{"$f":"IFERROR('MMA Rev-Exp Region 10'!$J$66/'MMA Rev-Exp Region 10'!$J$9, 0)","v":{"v":0,"d":"$0.00"}},{"$f":"IFERROR('MMA Rev-Exp Region 10'!$K$66/'MMA Rev-Exp Region 10'!$K$9, 0)","v":{"v":0,"d":"$0.00"}},{"$f":"IFERROR('MMA Rev-Exp Region 10'!$L$66/'MMA Rev-Exp Region 10'!$L$9, 0)","v":{"v":0,"d":"$0.00"}},{"$f":"IFERROR('MMA Rev-Exp Region 10'!$M$66/'MMA Rev-Exp Region 10'!$M$9, 0)","v":{"v":0,"d":"$0.00"}},{"$f":"IFERROR('MMA Rev-Exp Region 10'!$N$66/'MMA Rev-Exp Region 10'!$N$9, 0)","v":{"v":0,"d":"$0.00"}}]
["MMA",null,null,2016,"2016-12-31","Q1","2017-03-31","Region 10","Operating Expense","Medical Benefits Expense","Other MMA Services","9.4","Other State Plan Services FFS",{"$f":"IFERROR('MMA Rev-Exp Region 10'!$D$67/'MMA Rev-Exp Region 10'!$D$9, 0)","v":{"v":0,"d":"$0.00"}},{"$f":"IFERROR('MMA Rev-Exp Region 10'!$E$67/'MMA Rev-Exp Region 10'!$E$9, 0)","v":{"v":0,"d":"$0.00"}},{"$f":"IFERROR('MMA Rev-Exp Region 10'!$F$67/'MMA Rev-Exp Region 10'!$F$9, 0)","v":{"v":0,"d":"$0.00"}},{"$f":"IFERROR('MMA Rev-Exp Region 10'!$G$67/'MMA Rev-Exp Region 10'!$G$9, 0)","v":{"v":0,"d":"$0.00"}},{"$f":"IFERROR('MMA Rev-Exp Region 10'!$H$67/'MMA Rev-Exp Region 10'!$H$9, 0)","v":{"v":0,"d":"$0.00"}},{"$f":"IFERROR('MMA Rev-Exp Region 10'!$I$67/'MMA Rev-Exp Region 10'!$I$9, 0)","v":{"v":0,"d":"$0.00"}},{"$f":"IFERROR('MMA Rev-Exp Region 10'!$J$67/'MMA Rev-Exp Region 10'!$J$9, 0)","v":{"v":0,"d":"$0.00"}},{"$f":"IFERROR('MMA Rev-Exp Region 10'!$K$67/'MMA Rev-Exp Region 10'!$K$9, 0)","v":{"v":0,"d":"$0.00"}},{"$f":"IFERROR('MMA Rev-Exp Region 10'!$L$67/'MMA Rev-Exp Region 10'!$L$9, 0)","v":{"v":0,"d":"$0.00"}},{"$f":"IFERROR('MMA Rev-Exp Region 10'!$M$67/'MMA Rev-Exp Region 10'!$M$9, 0)","v":{"v":0,"d":"$0.00"}},{"$f":"IFERROR('MMA Rev-Exp Region 10'!$N$67/'MMA Rev-Exp Region 10'!$N$9, 0)","v":{"v":0,"d":"$0.00"}}]
["MMA",null,null,2016,"2016-12-31","Q1","2017-03-31","Region 10","Operating Expense","Medical Benefits Expense","Other MMA Services","9.5","Other Services Subcapitation",{"$f":"IFERROR('MMA Rev-Exp Region 10'!$D$68/'MMA Rev-Exp Region 10'!$D$9, 0)","v":{"v":0,"d":"$0.00"}},{"$f":"IFERROR('MMA Rev-Exp Region 10'!$E$68/'MMA Rev-Exp Region 10'!$E$9, 0)","v":{"v":0,"d":"$0.00"}},{"$f":"IFERROR('MMA Rev-Exp Region 10'!$F$68/'MMA Rev-Exp Region 10'!$F$9, 0)","v":{"v":0,"d":"$0.00"}},{"$f":"IFERROR('MMA Rev-Exp Region 10'!$G$68/'MMA Rev-Exp Region 10'!$G$9, 0)","v":{"v":0,"d":"$0.00"}},{"$f":"IFERROR('MMA Rev-Exp Region 10'!$H$68/'MMA Rev-Exp Region 10'!$H$9, 0)","v":{"v":0,"d":"$0.00"}},{"$f":"IFERROR('MMA Rev-Exp Region 10'!$I$68/'MMA Rev-Exp Region 10'!$I$9, 0)","v":{"v":0,"d":"$0.00"}},{"$f":"IFERROR('MMA Rev-Exp Region 10'!$J$68/'MMA Rev-Exp Region 10'!$J$9, 0)","v":{"v":0,"d":"$0.00"}},{"$f":"IFERROR('MMA Rev-Exp Region 10'!$K$68/'MMA Rev-Exp Region 10'!$K$9, 0)","v":{"v":0,"d":"$0.00"}},{"$f":"IFERROR('MMA Rev-Exp Region 10'!$L$68/'MMA Rev-Exp Region 10'!$L$9, 0)","v":{"v":0,"d":"$0.00"}},{"$f":"IFERROR('MMA Rev-Exp Region 10'!$M$68/'MMA Rev-Exp Region 10'!$M$9, 0)","v":{"v":0,"d":"$0.00"}},{"$f":"IFERROR('MMA Rev-Exp Region 10'!$N$68/'MMA Rev-Exp Region 10'!$N$9, 0)","v":{"v":0,"d":"$0.00"}}]
["MMA",null,null,2016,"2016-12-31","Q1","2017-03-31","Region 10","Operating Expense","Medical Benefits Expense","Other MMA Services","9.6","Ending IBNP for Other Services",{"$f":"IFERROR('MMA Rev-Exp Region 10'!$D$69/'MMA Rev-Exp Region 10'!$D$9, 0)","v":{"v":0,"d":"$0.00"}},{"$f":"IFERROR('MMA Rev-Exp Region 10'!$E$69/'MMA Rev-Exp Region 10'!$E$9, 0)","v":{"v":0,"d":"$0.00"}},{"$f":"IFERROR('MMA Rev-Exp Region 10'!$F$69/'MMA Rev-Exp Region 10'!$F$9, 0)","v":{"v":0,"d":"$0.00"}},{"$f":"IFERROR('MMA Rev-Exp Region 10'!$G$69/'MMA Rev-Exp Region 10'!$G$9, 0)","v":{"v":0,"d":"$0.00"}},{"$f":"IFERROR('MMA Rev-Exp Region 10'!$H$69/'MMA Rev-Exp Region 10'!$H$9, 0)","v":{"v":0,"d":"$0.00"}},{"$f":"IFERROR('MMA Rev-Exp Region 10'!$I$69/'MMA Rev-Exp Region 10'!$I$9, 0)","v":{"v":0,"d":"$0.00"}},{"$f":"IFERROR('MMA Rev-Exp Region 10'!$J$69/'MMA Rev-Exp Region 10'!$J$9, 0)","v":{"v":0,"d":"$0.00"}},{"$f":"IFERROR('MMA Rev-Exp Region 10'!$K$69/'MMA Rev-Exp Region 10'!$K$9, 0)","v":{"v":0,"d":"$0.00"}},{"$f":"IFERROR('MMA Rev-Exp Region 10'!$L$69/'MMA Rev-Exp Region 10'!$L$9, 0)","v":{"v":0,"d":"$0.00"}},{"$f":"IFERROR('MMA Rev-Exp Region 10'!$M$69/'MMA Rev-Exp Region 10'!$M$9, 0)","v":{"v":0,"d":"$0.00"}},{"$f":"IFERROR('MMA Rev-Exp Region 10'!$N$69/'MMA Rev-Exp Region 10'!$N$9, 0)","v":{"v":0,"d":"$0.00"}}]
["MMA",null,null,2016,"2016-12-31","Q1","2017-03-31","Region 10","Operating Expense","Medical Benefits Expense","Other MMA Services","9.7","Other Services Settlements",{"$f":"IFERROR('MMA Rev-Exp Region 10'!$D$70/'MMA Rev-Exp Region 10'!$D$9, 0)","v":{"v":0,"d":"$0.00"}},{"$f":"IFERROR('MMA Rev-Exp Region 10'!$E$70/'MMA Rev-Exp Region 10'!$E$9, 0)","v":{"v":0,"d":"$0.00"}},{"$f":"IFERROR('MMA Rev-Exp Region 10'!$F$70/'MMA Rev-Exp Region 10'!$F$9, 0)","v":{"v":0,"d":"$0.00"}},{"$f":"IFERROR('MMA Rev-Exp Region 10'!$G$70/'MMA Rev-Exp Region 10'!$G$9, 0)","v":{"v":0,"d":"$0.00"}},{"$f":"IFERROR('MMA Rev-Exp Region 10'!$H$70/'MMA Rev-Exp Region 10'!$H$9, 0)","v":{"v":0,"d":"$0.00"}},{"$f":"IFERROR('MMA Rev-Exp Region 10'!$I$70/'MMA Rev-Exp Region 10'!$I$9, 0)","v":{"v":0,"d":"$0.00"}},{"$f":"IFERROR('MMA Rev-Exp Region 10'!$J$70/'MMA Rev-Exp Region 10'!$J$9, 0)","v":{"v":0,"d":"$0.00"}},{"$f":"IFERROR('MMA Rev-Exp Region 10'!$K$70/'MMA Rev-Exp Region 10'!$K$9, 0)","v":{"v":0,"d":"$0.00"}},{"$f":"IFERROR('MMA Rev-Exp Region 10'!$L$70/'MMA Rev-Exp Region 10'!$L$9, 0)","v":{"v":0,"d":"$0.00"}},{"$f":"IFERROR('MMA Rev-Exp Region 10'!$M$70/'MMA Rev-Exp Region 10'!$M$9, 0)","v":{"v":0,"d":"$0.00"}},{"$f":"IFERROR('MMA Rev-Exp Region 10'!$N$70/'MMA Rev-Exp Region 10'!$N$9, 0)","v":{"v":0,"d":"$0.00"}}]
["MMA",null,null,2016,"2016-12-31","Q1","2017-03-31","Region 10","Operating Expense","Medical Benefits Expense","Expanded Benefits","10.1","Expanded Benefits FFS",{"$f":"IFERROR('MMA Rev-Exp Region 10'!$D$72/'MMA Rev-Exp Region 10'!$D$9, 0)","v":{"v":0,"d":"$0.00"}},{"$f":"IFERROR('MMA Rev-Exp Region 10'!$E$72/'MMA Rev-Exp Region 10'!$E$9, 0)","v":{"v":0,"d":"$0.00"}},{"$f":"IFERROR('MMA Rev-Exp Region 10'!$F$72/'MMA Rev-Exp Region 10'!$F$9, 0)","v":{"v":0,"d":"$0.00"}},{"$f":"IFERROR('MMA Rev-Exp Region 10'!$G$72/'MMA Rev-Exp Region 10'!$G$9, 0)","v":{"v":0,"d":"$0.00"}},{"$f":"IFERROR('MMA Rev-Exp Region 10'!$H$72/'MMA Rev-Exp Region 10'!$H$9, 0)","v":{"v":0,"d":"$0.00"}},{"$f":"IFERROR('MMA Rev-Exp Region 10'!$I$72/'MMA Rev-Exp Region 10'!$I$9, 0)","v":{"v":0,"d":"$0.00"}},{"$f":"IFERROR('MMA Rev-Exp Region 10'!$J$72/'MMA Rev-Exp Region 10'!$J$9, 0)","v":{"v":0,"d":"$0.00"}},{"$f":"IFERROR('MMA Rev-Exp Region 10'!$K$72/'MMA Rev-Exp Region 10'!$K$9, 0)","v":{"v":0,"d":"$0.00"}},{"$f":"IFERROR('MMA Rev-Exp Region 10'!$L$72/'MMA Rev-Exp Region 10'!$L$9, 0)","v":{"v":0,"d":"$0.00"}},{"$f":"IFERROR('MMA Rev-Exp Region 10'!$M$72/'MMA Rev-Exp Region 10'!$M$9, 0)","v":{"v":0,"d":"$0.00"}},{"$f":"IFERROR('MMA Rev-Exp Region 10'!$N$72/'MMA Rev-Exp Region 10'!$N$9, 0)","v":{"v":0,"d":"$0.00"}}]
["MMA",null,null,2016,"2016-12-31","Q1","2017-03-31","Region 10","Operating Expense","Medical Benefits Expense","Expanded Benefits","10.2","Expanded benefits Subcapitation",{"$f":"IFERROR('MMA Rev-Exp Region 10'!$D$73/'MMA Rev-Exp Region 10'!$D$9, 0)","v":{"v":0,"d":"$0.00"}},{"$f":"IFERROR('MMA Rev-Exp Region 10'!$E$73/'MMA Rev-Exp Region 10'!$E$9, 0)","v":{"v":0,"d":"$0.00"}},{"$f":"IFERROR('MMA Rev-Exp Region 10'!$F$73/'MMA Rev-Exp Region 10'!$F$9, 0)","v":{"v":0,"d":"$0.00"}},{"$f":"IFERROR('MMA Rev-Exp Region 10'!$G$73/'MMA Rev-Exp Region 10'!$G$9, 0)","v":{"v":0,"d":"$0.00"}},{"$f":"IFERROR('MMA Rev-Exp Region 10'!$H$73/'MMA Rev-Exp Region 10'!$H$9, 0)","v":{"v":0,"d":"$0.00"}},{"$f":"IFERROR('MMA Rev-Exp Region 10'!$I$73/'MMA Rev-Exp Region 10'!$I$9, 0)","v":{"v":0,"d":"$0.00"}},{"$f":"IFERROR('MMA Rev-Exp Region 10'!$J$73/'MMA Rev-Exp Region 10'!$J$9, 0)","v":{"v":0,"d":"$0.00"}},{"$f":"IFERROR('MMA Rev-Exp Region 10'!$K$73/'MMA Rev-Exp Region 10'!$K$9, 0)","v":{"v":0,"d":"$0.00"}},{"$f":"IFERROR('MMA Rev-Exp Region 10'!$L$73/'MMA Rev-Exp Region 10'!$L$9, 0)","v":{"v":0,"d":"$0.00"}},{"$f":"IFERROR('MMA Rev-Exp Region 10'!$M$73/'MMA Rev-Exp Region 10'!$M$9, 0)","v":{"v":0,"d":"$0.00"}},{"$f":"IFERROR('MMA Rev-Exp Region 10'!$N$73/'MMA Rev-Exp Region 10'!$N$9, 0)","v":{"v":0,"d":"$0.00"}}]
["MMA",null,null,2016,"2016-12-31","Q1","2017-03-31","Region 10","Operating Expense","Medical Benefits Expense","Expanded Benefits","10.3","Ending IBNP for Expanded Benefits",{"$f":"IFERROR('MMA Rev-Exp Region 10'!$D$74/'MMA Rev-Exp Region 10'!$D$9, 0)","v":{"v":0,"d":"$0.00"}},{"$f":"IFERROR('MMA Rev-Exp Region 10'!$E$74/'MMA Rev-Exp Region 10'!$E$9, 0)","v":{"v":0,"d":"$0.00"}},{"$f":"IFERROR('MMA Rev-Exp Region 10'!$F$74/'MMA Rev-Exp Region 10'!$F$9, 0)","v":{"v":0,"d":"$0.00"}},{"$f":"IFERROR('MMA Rev-Exp Region 10'!$G$74/'MMA Rev-Exp Region 10'!$G$9, 0)","v":{"v":0,"d":"$0.00"}},{"$f":"IFERROR('MMA Rev-Exp Region 10'!$H$74/'MMA Rev-Exp Region 10'!$H$9, 0)","v":{"v":0,"d":"$0.00"}},{"$f":"IFERROR('MMA Rev-Exp Region 10'!$I$74/'MMA Rev-Exp Region 10'!$I$9, 0)","v":{"v":0,"d":"$0.00"}},{"$f":"IFERROR('MMA Rev-Exp Region 10'!$J$74/'MMA Rev-Exp Region 10'!$J$9, 0)","v":{"v":0,"d":"$0.00"}},{"$f":"IFERROR('MMA Rev-Exp Region 10'!$K$74/'MMA Rev-Exp Region 10'!$K$9, 0)","v":{"v":0,"d":"$0.00"}},{"$f":"IFERROR('MMA Rev-Exp Region 10'!$L$74/'MMA Rev-Exp Region 10'!$L$9, 0)","v":{"v":0,"d":"$0.00"}},{"$f":"IFERROR('MMA Rev-Exp Region 10'!$M$74/'MMA Rev-Exp Region 10'!$M$9, 0)","v":{"v":0,"d":"$0.00"}},{"$f":"IFERROR('MMA Rev-Exp Region 10'!$N$74/'MMA Rev-Exp Region 10'!$N$9, 0)","v":{"v":0,"d":"$0.00"}}]
["MMA",null,null,2016,"2016-12-31","Q1","2017-03-31","Region 10","Operating Expense","Medical Benefits Expense","Expanded Benefits","10.4","Expanded Benefits Settlements",{"$f":"IFERROR('MMA Rev-Exp Region 10'!$D$75/'MMA Rev-Exp Region 10'!$D$9, 0)","v":{"v":0,"d":"$0.00"}},{"$f":"IFERROR('MMA Rev-Exp Region 10'!$E$75/'MMA Rev-Exp Region 10'!$E$9, 0)","v":{"v":0,"d":"$0.00"}},{"$f":"IFERROR('MMA Rev-Exp Region 10'!$F$75/'MMA Rev-Exp Region 10'!$F$9, 0)","v":{"v":0,"d":"$0.00"}},{"$f":"IFERROR('MMA Rev-Exp Region 10'!$G$75/'MMA Rev-Exp Region 10'!$G$9, 0)","v":{"v":0,"d":"$0.00"}},{"$f":"IFERROR('MMA Rev-Exp Region 10'!$H$75/'MMA Rev-Exp Region 10'!$H$9, 0)","v":{"v":0,"d":"$0.00"}},{"$f":"IFERROR('MMA Rev-Exp Region 10'!$I$75/'MMA Rev-Exp Region 10'!$I$9, 0)","v":{"v":0,"d":"$0.00"}},{"$f":"IFERROR('MMA Rev-Exp Region 10'!$J$75/'MMA Rev-Exp Region 10'!$J$9, 0)","v":{"v":0,"d":"$0.00"}},{"$f":"IFERROR('MMA Rev-Exp Region 10'!$K$75/'MMA Rev-Exp Region 10'!$K$9, 0)","v":{"v":0,"d":"$0.00"}},{"$f":"IFERROR('MMA Rev-Exp Region 10'!$L$75/'MMA Rev-Exp Region 10'!$L$9, 0)","v":{"v":0,"d":"$0.00"}},{"$f":"IFERROR('MMA Rev-Exp Region 10'!$M$75/'MMA Rev-Exp Region 10'!$M$9, 0)","v":{"v":0,"d":"$0.00"}},{"$f":"IFERROR('MMA Rev-Exp Region 10'!$N$75/'MMA Rev-Exp Region 10'!$N$9, 0)","v":{"v":0,"d":"$0.00"}}]
["MMA",null,null,2016,"2016-12-31","Q1","2017-03-31","Region 10","Operating Expense","Medical Benefits Expense","Other Medical","11.5","TPL & Fraud/Abuse Recoveries",{"$f":"IFERROR('MMA Rev-Exp Region 10'!$D$81/'MMA Rev-Exp Region 10'!$D$9, 0)","v":{"v":0,"d":"$0.00"}},{"$f":"IFERROR('MMA Rev-Exp Region 10'!$E$81/'MMA Rev-Exp Region 10'!$E$9, 0)","v":{"v":0,"d":"$0.00"}},{"$f":"IFERROR('MMA Rev-Exp Region 10'!$F$81/'MMA Rev-Exp Region 10'!$F$9, 0)","v":{"v":0,"d":"$0.00"}},{"$f":"IFERROR('MMA Rev-Exp Region 10'!$G$81/'MMA Rev-Exp Region 10'!$G$9, 0)","v":{"v":0,"d":"$0.00"}},{"$f":"IFERROR('MMA Rev-Exp Region 10'!$H$81/'MMA Rev-Exp Region 10'!$H$9, 0)","v":{"v":0,"d":"$0.00"}},{"$f":"IFERROR('MMA Rev-Exp Region 10'!$I$81/'MMA Rev-Exp Region 10'!$I$9, 0)","v":{"v":0,"d":"$0.00"}},{"$f":"IFERROR('MMA Rev-Exp Region 10'!$J$81/'MMA Rev-Exp Region 10'!$J$9, 0)","v":{"v":0,"d":"$0.00"}},{"$f":"IFERROR('MMA Rev-Exp Region 10'!$K$81/'MMA Rev-Exp Region 10'!$K$9, 0)","v":{"v":0,"d":"$0.00"}},{"$f":"IFERROR('MMA Rev-Exp Region 10'!$L$81/'MMA Rev-Exp Region 10'!$L$9, 0)","v":{"v":0,"d":"$0.00"}},{"$f":"IFERROR('MMA Rev-Exp Region 10'!$M$81/'MMA Rev-Exp Region 10'!$M$9, 0)","v":{"v":0,"d":"$0.00"}},{"$f":"IFERROR('MMA Rev-Exp Region 10'!$N$81/'MMA Rev-Exp Region 10'!$N$9, 0)","v":{"v":0,"d":"$0.00"}}]
["MMA",null,null,2016,"2016-12-31","Q1","2017-03-31","Region 10","Operating Expense","Medical Benefits Expense","Other Medical","11.6.1","Premium Deficiency Reserve",{"$f":"IFERROR('MMA Rev-Exp Region 10'!$D$82/'MMA Rev-Exp Region 10'!$D$9, 0)","v":{"v":0,"d":"$0.00"}},{"$f":"IFERROR('MMA Rev-Exp Region 10'!$E$82/'MMA Rev-Exp Region 10'!$E$9, 0)","v":{"v":0,"d":"$0.00"}},{"$f":"IFERROR('MMA Rev-Exp Region 10'!$F$82/'MMA Rev-Exp Region 10'!$F$9, 0)","v":{"v":0,"d":"$0.00"}},{"$f":"IFERROR('MMA Rev-Exp Region 10'!$G$82/'MMA Rev-Exp Region 10'!$G$9, 0)","v":{"v":0,"d":"$0.00"}},{"$f":"IFERROR('MMA Rev-Exp Region 10'!$H$82/'MMA Rev-Exp Region 10'!$H$9, 0)","v":{"v":0,"d":"$0.00"}},{"$f":"IFERROR('MMA Rev-Exp Region 10'!$I$82/'MMA Rev-Exp Region 10'!$I$9, 0)","v":{"v":0,"d":"$0.00"}},{"$f":"IFERROR('MMA Rev-Exp Region 10'!$J$82/'MMA Rev-Exp Region 10'!$J$9, 0)","v":{"v":0,"d":"$0.00"}},{"$f":"IFERROR('MMA Rev-Exp Region 10'!$K$82/'MMA Rev-Exp Region 10'!$K$9, 0)","v":{"v":0,"d":"$0.00"}},{"$f":"IFERROR('MMA Rev-Exp Region 10'!$L$82/'MMA Rev-Exp Region 10'!$L$9, 0)","v":{"v":0,"d":"$0.00"}},{"$f":"IFERROR('MMA Rev-Exp Region 10'!$M$82/'MMA Rev-Exp Region 10'!$M$9, 0)","v":{"v":0,"d":"$0.00"}},{"$f":"IFERROR('MMA Rev-Exp Region 10'!$N$82/'MMA Rev-Exp Region 10'!$N$9, 0)","v":{"v":0,"d":"$0.00"}}]
["MMA",null,null,2016,"2016-12-31","Q1","2017-03-31","Region 10","Operating Expense","Medical Benefits Expense","Other Medical","11.8","Reinsurance Premiums",{"$f":"IFERROR('MMA Rev-Exp Region 10'!$D$84/'MMA Rev-Exp Region 10'!$D$9, 0)","v":{"v":0,"d":"$0.00"}},{"$f":"IFERROR('MMA Rev-Exp Region 10'!$E$84/'MMA Rev-Exp Region 10'!$E$9, 0)","v":{"v":0,"d":"$0.00"}},{"$f":"IFERROR('MMA Rev-Exp Region 10'!$F$84/'MMA Rev-Exp Region 10'!$F$9, 0)","v":{"v":0,"d":"$0.00"}},{"$f":"IFERROR('MMA Rev-Exp Region 10'!$G$84/'MMA Rev-Exp Region 10'!$G$9, 0)","v":{"v":0,"d":"$0.00"}},{"$f":"IFERROR('MMA Rev-Exp Region 10'!$H$84/'MMA Rev-Exp Region 10'!$H$9, 0)","v":{"v":0,"d":"$0.00"}},{"$f":"IFERROR('MMA Rev-Exp Region 10'!$I$84/'MMA Rev-Exp Region 10'!$I$9, 0)","v":{"v":0,"d":"$0.00"}},{"$f":"IFERROR('MMA Rev-Exp Region 10'!$J$84/'MMA Rev-Exp Region 10'!$J$9, 0)","v":{"v":0,"d":"$0.00"}},{"$f":"IFERROR('MMA Rev-Exp Region 10'!$K$84/'MMA Rev-Exp Region 10'!$K$9, 0)","v":{"v":0,"d":"$0.00"}},{"$f":"IFERROR('MMA Rev-Exp Region 10'!$L$84/'MMA Rev-Exp Region 10'!$L$9, 0)","v":{"v":0,"d":"$0.00"}},{"$f":"IFERROR('MMA Rev-Exp Region 10'!$M$84/'MMA Rev-Exp Region 10'!$M$9, 0)","v":{"v":0,"d":"$0.00"}},{"$f":"IFERROR('MMA Rev-Exp Region 10'!$N$84/'MMA Rev-Exp Region 10'!$N$9, 0)","v":{"v":0,"d":"$0.00"}}]
["MMA",null,null,2016,"2016-12-31","Q1","2017-03-31","Region 10","Operating Expense","Medical Benefits Expense","Other Medical","11.9","Reinsurance Recoveries",{"$f":"IFERROR('MMA Rev-Exp Region 10'!$D$85/'MMA Rev-Exp Region 10'!$D$9, 0)","v":{"v":0,"d":"$0.00"}},{"$f":"IFERROR('MMA Rev-Exp Region 10'!$E$85/'MMA Rev-Exp Region 10'!$E$9, 0)","v":{"v":0,"d":"$0.00"}},{"$f":"IFERROR('MMA Rev-Exp Region 10'!$F$85/'MMA Rev-Exp Region 10'!$F$9, 0)","v":{"v":0,"d":"$0.00"}},{"$f":"IFERROR('MMA Rev-Exp Region 10'!$G$85/'MMA Rev-Exp Region 10'!$G$9, 0)","v":{"v":0,"d":"$0.00"}},{"$f":"IFERROR('MMA Rev-Exp Region 10'!$H$85/'MMA Rev-Exp Region 10'!$H$9, 0)","v":{"v":0,"d":"$0.00"}},{"$f":"IFERROR('MMA Rev-Exp Region 10'!$I$85/'MMA Rev-Exp Region 10'!$I$9, 0)","v":{"v":0,"d":"$0.00"}},{"$f":"IFERROR('MMA Rev-Exp Region 10'!$J$85/'MMA Rev-Exp Region 10'!$J$9, 0)","v":{"v":0,"d":"$0.00"}},{"$f":"IFERROR('MMA Rev-Exp Region 10'!$K$85/'MMA Rev-Exp Region 10'!$K$9, 0)","v":{"v":0,"d":"$0.00"}},{"$f":"IFERROR('MMA Rev-Exp Region 10'!$L$85/'MMA Rev-Exp Region 10'!$L$9, 0)","v":{"v":0,"d":"$0.00"}},{"$f":"IFERROR('MMA Rev-Exp Region 10'!$M$85/'MMA Rev-Exp Region 10'!$M$9, 0)","v":{"v":0,"d":"$0.00"}},{"$f":"IFERROR('MMA Rev-Exp Region 10'!$N$85/'MMA Rev-Exp Region 10'!$N$9, 0)","v":{"v":0,"d":"$0.00"}}]
["MMA",null,null,2016,"2016-12-31","Q1","2017-03-31","Region 10","Operating Expense","Administrative Expense","Administrative","12.1","Salaries & Benefits",{"$f":"IFERROR('MMA Rev-Exp Region 10'!$D$90/'MMA Rev-Exp Region 10'!$D$9, 0)","v":{"v":0,"d":"$0.00"}},{"$f":"IFERROR('MMA Rev-Exp Region 10'!$E$90/'MMA Rev-Exp Region 10'!$D$9, 0)","v":{"v":0,"d":"$0.00"}},{"$f":"IFERROR('MMA Rev-Exp Region 10'!$F$90/'MMA Rev-Exp Region 10'!$D$9, 0)","v":{"v":0,"d":"$0.00"}},{"$f":"IFERROR('MMA Rev-Exp Region 10'!$G$90/'MMA Rev-Exp Region 10'!$G$9, 0)","v":{"v":0,"d":"$0.00"}},{"$f":"IFERROR('MMA Rev-Exp Region 10'!$H$90/'MMA Rev-Exp Region 10'!$H$9, 0)","v":{"v":0,"d":"$0.00"}},{"$f":"IFERROR('MMA Rev-Exp Region 10'!$I$90/'MMA Rev-Exp Region 10'!$I$9, 0)","v":{"v":0,"d":"$0.00"}},{"$f":"IFERROR('MMA Rev-Exp Region 10'!$J$90/'MMA Rev-Exp Region 10'!$J$9, 0)","v":{"v":0,"d":"$0.00"}},{"$f":"IFERROR('MMA Rev-Exp Region 10'!$K$90/'MMA Rev-Exp Region 10'!$K$9, 0)","v":{"v":0,"d":"$0.00"}},{"$f":"IFERROR('MMA Rev-Exp Region 10'!$L$90/'MMA Rev-Exp Region 10'!$L$9, 0)","v":{"v":0,"d":"$0.00"}},{"$f":"IFERROR('MMA Rev-Exp Region 10'!$M$90/'MMA Rev-Exp Region 10'!$M$9, 0)","v":{"v":0,"d":"$0.00"}},{"$f":"IFERROR('MMA Rev-Exp Region 10'!$N$90/'MMA Rev-Exp Region 10'!$N$9, 0)","v":{"v":0,"d":"$0.00"}}]
["MMA",null,null,2016,"2016-12-31","Q1","2017-03-31","Region 10","Operating Expense","Administrative Expense","Administrative","12.2","Administrative Services",{"$f":"IFERROR('MMA Rev-Exp Region 10'!$D$91/'MMA Rev-Exp Region 10'!$D$9, 0)","v":{"v":0,"d":"$0.00"}},{"$f":"IFERROR('MMA Rev-Exp Region 10'!$E$91/'MMA Rev-Exp Region 10'!$D$9, 0)","v":{"v":0,"d":"$0.00"}},{"$f":"IFERROR('MMA Rev-Exp Region 10'!$F$91/'MMA Rev-Exp Region 10'!$D$9, 0)","v":{"v":0,"d":"$0.00"}},{"$f":"IFERROR('MMA Rev-Exp Region 10'!$G$91/'MMA Rev-Exp Region 10'!$G$9, 0)","v":{"v":0,"d":"$0.00"}},{"$f":"IFERROR('MMA Rev-Exp Region 10'!$H$91/'MMA Rev-Exp Region 10'!$H$9, 0)","v":{"v":0,"d":"$0.00"}},{"$f":"IFERROR('MMA Rev-Exp Region 10'!$I$91/'MMA Rev-Exp Region 10'!$I$9, 0)","v":{"v":0,"d":"$0.00"}},{"$f":"IFERROR('MMA Rev-Exp Region 10'!$J$91/'MMA Rev-Exp Region 10'!$J$9, 0)","v":{"v":0,"d":"$0.00"}},{"$f":"IFERROR('MMA Rev-Exp Region 10'!$K$91/'MMA Rev-Exp Region 10'!$K$9, 0)","v":{"v":0,"d":"$0.00"}},{"$f":"IFERROR('MMA Rev-Exp Region 10'!$L$91/'MMA Rev-Exp Region 10'!$L$9, 0)","v":{"v":0,"d":"$0.00"}},{"$f":"IFERROR('MMA Rev-Exp Region 10'!$M$91/'MMA Rev-Exp Region 10'!$M$9, 0)","v":{"v":0,"d":"$0.00"}},{"$f":"IFERROR('MMA Rev-Exp Region 10'!$N$91/'MMA Rev-Exp Region 10'!$N$9, 0)","v":{"v":0,"d":"$0.00"}}]
["MMA",null,null,2016,"2016-12-31","Q1","2017-03-31","Region 10","Operating Expense","Administrative Expense","Administrative","12.3","Information Systems",{"$f":"IFERROR('MMA Rev-Exp Region 10'!$D$92/'MMA Rev-Exp Region 10'!$D$9, 0)","v":{"v":0,"d":"$0.00"}},{"$f":"IFERROR('MMA Rev-Exp Region 10'!$E$92/'MMA Rev-Exp Region 10'!$D$9, 0)","v":{"v":0,"d":"$0.00"}},{"$f":"IFERROR('MMA Rev-Exp Region 10'!$F$92/'MMA Rev-Exp Region 10'!$D$9, 0)","v":{"v":0,"d":"$0.00"}},{"$f":"IFERROR('MMA Rev-Exp Region 10'!$G$92/'MMA Rev-Exp Region 10'!$G$9, 0)","v":{"v":0,"d":"$0.00"}},{"$f":"IFERROR('MMA Rev-Exp Region 10'!$H$92/'MMA Rev-Exp Region 10'!$H$9, 0)","v":{"v":0,"d":"$0.00"}},{"$f":"IFERROR('MMA Rev-Exp Region 10'!$I$92/'MMA Rev-Exp Region 10'!$I$9, 0)","v":{"v":0,"d":"$0.00"}},{"$f":"IFERROR('MMA Rev-Exp Region 10'!$J$92/'MMA Rev-Exp Region 10'!$J$9, 0)","v":{"v":0,"d":"$0.00"}},{"$f":"IFERROR('MMA Rev-Exp Region 10'!$K$92/'MMA Rev-Exp Region 10'!$K$9, 0)","v":{"v":0,"d":"$0.00"}},{"$f":"IFERROR('MMA Rev-Exp Region 10'!$L$92/'MMA Rev-Exp Region 10'!$L$9, 0)","v":{"v":0,"d":"$0.00"}},{"$f":"IFERROR('MMA Rev-Exp Region 10'!$M$92/'MMA Rev-Exp Region 10'!$M$9, 0)","v":{"v":0,"d":"$0.00"}},{"$f":"IFERROR('MMA Rev-Exp Region 10'!$N$92/'MMA Rev-Exp Region 10'!$N$9, 0)","v":{"v":0,"d":"$0.00"}}]
["MMA",null,null,2016,"2016-12-31","Q1","2017-03-31","Region 10","Operating Expense","Administrative Expense","Administrative","12.4","Marketing Expenses",{"$f":"IFERROR('MMA Rev-Exp Region 10'!$D$93/'MMA Rev-Exp Region 10'!$D$9, 0)","v":{"v":0,"d":"$0.00"}},{"$f":"IFERROR('MMA Rev-Exp Region 10'!$E$93/'MMA Rev-Exp Region 10'!$D$9, 0)","v":{"v":0,"d":"$0.00"}},{"$f":"IFERROR('MMA Rev-Exp Region 10'!$F$93/'MMA Rev-Exp Region 10'!$D$9, 0)","v":{"v":0,"d":"$0.00"}},{"$f":"IFERROR('MMA Rev-Exp Region 10'!$G$93/'MMA Rev-Exp Region 10'!$G$9, 0)","v":{"v":0,"d":"$0.00"}},{"$f":"IFERROR('MMA Rev-Exp Region 10'!$H$93/'MMA Rev-Exp Region 10'!$H$9, 0)","v":{"v":0,"d":"$0.00"}},{"$f":"IFERROR('MMA Rev-Exp Region 10'!$I$93/'MMA Rev-Exp Region 10'!$I$9, 0)","v":{"v":0,"d":"$0.00"}},{"$f":"IFERROR('MMA Rev-Exp Region 10'!$J$93/'MMA Rev-Exp Region 10'!$J$9, 0)","v":{"v":0,"d":"$0.00"}},{"$f":"IFERROR('MMA Rev-Exp Region 10'!$K$93/'MMA Rev-Exp Region 10'!$K$9, 0)","v":{"v":0,"d":"$0.00"}},{"$f":"IFERROR('MMA Rev-Exp Region 10'!$L$93/'MMA Rev-Exp Region 10'!$L$9, 0)","v":{"v":0,"d":"$0.00"}},{"$f":"IFERROR('MMA Rev-Exp Region 10'!$M$93/'MMA Rev-Exp Region 10'!$M$9, 0)","v":{"v":0,"d":"$0.00"}},{"$f":"IFERROR('MMA Rev-Exp Region 10'!$N$93/'MMA Rev-Exp Region 10'!$N$9, 0)","v":{"v":0,"d":"$0.00"}}]
["MMA",null,null,2016,"2016-12-31","Q1","2017-03-31","Region 10","Operating Expense","Administrative Expense","Administrative","12.5","General  Administration",{"$f":"IFERROR('MMA Rev-Exp Region 10'!$D$94/'MMA Rev-Exp Region 10'!$D$9, 0)","v":{"v":0,"d":"$0.00"}},{"$f":"IFERROR('MMA Rev-Exp Region 10'!$E$94/'MMA Rev-Exp Region 10'!$D$9, 0)","v":{"v":0,"d":"$0.00"}},{"$f":"IFERROR('MMA Rev-Exp Region 10'!$F$94/'MMA Rev-Exp Region 10'!$D$9, 0)","v":{"v":0,"d":"$0.00"}},{"$f":"IFERROR('MMA Rev-Exp Region 10'!$G$94/'MMA Rev-Exp Region 10'!$G$9, 0)","v":{"v":0,"d":"$0.00"}},{"$f":"IFERROR('MMA Rev-Exp Region 10'!$H$94/'MMA Rev-Exp Region 10'!$H$9, 0)","v":{"v":0,"d":"$0.00"}},{"$f":"IFERROR('MMA Rev-Exp Region 10'!$I$94/'MMA Rev-Exp Region 10'!$I$9, 0)","v":{"v":0,"d":"$0.00"}},{"$f":"IFERROR('MMA Rev-Exp Region 10'!$J$94/'MMA Rev-Exp Region 10'!$J$9, 0)","v":{"v":0,"d":"$0.00"}},{"$f":"IFERROR('MMA Rev-Exp Region 10'!$K$94/'MMA Rev-Exp Region 10'!$K$9, 0)","v":{"v":0,"d":"$0.00"}},{"$f":"IFERROR('MMA Rev-Exp Region 10'!$L$94/'MMA Rev-Exp Region 10'!$L$9, 0)","v":{"v":0,"d":"$0.00"}},{"$f":"IFERROR('MMA Rev-Exp Region 10'!$M$94/'MMA Rev-Exp Region 10'!$M$9, 0)","v":{"v":0,"d":"$0.00"}},{"$f":"IFERROR('MMA Rev-Exp Region 10'!$N$94/'MMA Rev-Exp Region 10'!$N$9, 0)","v":{"v":0,"d":"$0.00"}}]
["MMA",null,null,2016,"2016-12-31","Q1","2017-03-31","Region 10","Operating Expense","Administrative Expense","Administrative","12.6","Compliance/Regulatory",{"$f":"IFERROR('MMA Rev-Exp Region 10'!$D$95/'MMA Rev-Exp Region 10'!$D$9, 0)","v":{"v":0,"d":"$0.00"}},{"$f":"IFERROR('MMA Rev-Exp Region 10'!$E$95/'MMA Rev-Exp Region 10'!$D$9, 0)","v":{"v":0,"d":"$0.00"}},{"$f":"IFERROR('MMA Rev-Exp Region 10'!$F$95/'MMA Rev-Exp Region 10'!$D$9, 0)","v":{"v":0,"d":"$0.00"}},{"$f":"IFERROR('MMA Rev-Exp Region 10'!$G$95/'MMA Rev-Exp Region 10'!$G$9, 0)","v":{"v":0,"d":"$0.00"}},{"$f":"IFERROR('MMA Rev-Exp Region 10'!$H$95/'MMA Rev-Exp Region 10'!$H$9, 0)","v":{"v":0,"d":"$0.00"}},{"$f":"IFERROR('MMA Rev-Exp Region 10'!$I$95/'MMA Rev-Exp Region 10'!$I$9, 0)","v":{"v":0,"d":"$0.00"}},{"$f":"IFERROR('MMA Rev-Exp Region 10'!$J$95/'MMA Rev-Exp Region 10'!$J$9, 0)","v":{"v":0,"d":"$0.00"}},{"$f":"IFERROR('MMA Rev-Exp Region 10'!$K$95/'MMA Rev-Exp Region 10'!$K$9, 0)","v":{"v":0,"d":"$0.00"}},{"$f":"IFERROR('MMA Rev-Exp Region 10'!$L$95/'MMA Rev-Exp Region 10'!$L$9, 0)","v":{"v":0,"d":"$0.00"}},{"$f":"IFERROR('MMA Rev-Exp Region 10'!$M$95/'MMA Rev-Exp Region 10'!$M$9, 0)","v":{"v":0,"d":"$0.00"}},{"$f":"IFERROR('MMA Rev-Exp Region 10'!$N$95/'MMA Rev-Exp Region 10'!$N$9, 0)","v":{"v":0,"d":"$0.00"}}]
["MMA",null,null,2016,"2016-12-31","Q1","2017-03-31","Region 10","Operating Expense","Taxes & Fees","Taxes & Fees","13.1","State Premium tax",{"$f":"IFERROR('MMA Rev-Exp Region 10'!$D$97/'MMA Rev-Exp Region 10'!$D$9, 0)","v":{"v":0,"d":"$0.00"}}]
["MMA",null,null,2016,"2016-12-31","Q1","2017-03-31","Region 10","Operating Expense","Taxes & Fees","Taxes & Fees","13.2","Department of Insurance Assessments",{"$f":"IFERROR('MMA Rev-Exp Region 10'!$D$98/'MMA Rev-Exp Region 10'!$D$9, 0)","v":{"v":0,"d":"$0.00"}}]
["MMA",null,null,2016,"2016-12-31","Q1","2017-03-31","Region 10","Operating Expense","Taxes & Fees","Taxes & Fees","13.3","Section 9010 Health Insurance Providers Fee",{"$f":"IFERROR('MMA Rev-Exp Region 10'!$D$99/'MMA Rev-Exp Region 10'!$D$9, 0)","v":{"v":0,"d":"$0.00"}}]
["MMA",null,null,2016,"2016-12-31","Q1","2017-03-31","Region 10","Non-Operating Expense","Income Tax Expense","Income Tax Expense","16.0","Income Tax Expense",{"$f":"IFERROR('MMA Rev-Exp Region 10'!$D$106/'MMA Rev-Exp Region 10'!$D$9, 0)","v":{"v":0,"d":"$0.00"}}]
["MMA",null,null,2016,"2016-12-31","Q2","2017-06-30","Region 10","Operating Revenue","Capitation","Capitation",1.1,"Capitation",{"$f":"IFERROR('MMA Rev-Exp Region 10'!$O$11/'MMA Rev-Exp Region 10'!$O$9, 0)","v":{"v":0,"d":"$0.00"}},{"$f":"IFERROR('MMA Rev-Exp Region 10'!$P$11/'MMA Rev-Exp Region 10'!$P$9, 0)","v":{"v":0,"d":"$0.00"}},{"$f":"IFERROR('MMA Rev-Exp Region 10'!$Q$11/'MMA Rev-Exp Region 10'!$Q$9, 0)","v":{"v":0,"d":"$0.00"}},{"$f":"IFERROR('MMA Rev-Exp Region 10'!$R$11/'MMA Rev-Exp Region 10'!$R$9, 0)","v":{"v":0,"d":"$0.00"}},{"$f":"IFERROR('MMA Rev-Exp Region 10'!$S$11/'MMA Rev-Exp Region 10'!$S$9, 0)","v":{"v":0,"d":"$0.00"}},{"$f":"IFERROR('MMA Rev-Exp Region 10'!$T$11/'MMA Rev-Exp Region 10'!$T$9, 0)","v":{"v":0,"d":"$0.00"}},{"$f":"IFERROR('MMA Rev-Exp Region 10'!$U$11/'MMA Rev-Exp Region 10'!$U$9, 0)","v":{"v":0,"d":"$0.00"}},{"$f":"IFERROR('MMA Rev-Exp Region 10'!$V$11/'MMA Rev-Exp Region 10'!$V$9, 0)","v":{"v":0,"d":"$0.00"}},{"$f":"IFERROR('MMA Rev-Exp Region 10'!$W$11/'MMA Rev-Exp Region 10'!$W$9, 0)","v":{"v":0,"d":"$0.00"}},{"$f":"IFERROR('MMA Rev-Exp Region 10'!$X$11/'MMA Rev-Exp Region 10'!$X$9, 0)","v":{"v":0,"d":"$0.00"}},{"$f":"IFERROR('MMA Rev-Exp Region 10'!$Y$11/'MMA Rev-Exp Region 10'!$Y$9, 0)","v":{"v":0,"d":"$0.00"}}]
["MMA",null,null,2016,"2016-12-31","Q2","2017-06-30","Region 10","Operating Revenue","Kick Payments","Kick Payments - Transplant",1.2,"Transplant Kick Payments",{"$f":"IFERROR('MMA Rev-Exp Region 10'!$O$12/'MMA Rev-Exp Region 10'!$O$9, 0)","v":{"v":0,"d":"$0.00"}},{"$f":"IFERROR('MMA Rev-Exp Region 10'!$P$12/'MMA Rev-Exp Region 10'!$P$9, 0)","v":{"v":0,"d":"$0.00"}},{"$f":"IFERROR('MMA Rev-Exp Region 10'!$Q$12/'MMA Rev-Exp Region 10'!$Q$9, 0)","v":{"v":0,"d":"$0.00"}},{"$f":"IFERROR('MMA Rev-Exp Region 10'!$R$12/'MMA Rev-Exp Region 10'!$R$9, 0)","v":{"v":0,"d":"$0.00"}},{"$f":"IFERROR('MMA Rev-Exp Region 10'!$S$12/'MMA Rev-Exp Region 10'!$S$9, 0)","v":{"v":0,"d":"$0.00"}},{"$f":"IFERROR('MMA Rev-Exp Region 10'!$T$12/'MMA Rev-Exp Region 10'!$T$9, 0)","v":{"v":0,"d":"$0.00"}},{"$f":"IFERROR('MMA Rev-Exp Region 10'!$U$12/'MMA Rev-Exp Region 10'!$U$9, 0)","v":{"v":0,"d":"$0.00"}},{"$f":"IFERROR('MMA Rev-Exp Region 10'!$V$12/'MMA Rev-Exp Region 10'!$V$9, 0)","v":{"v":0,"d":"$0.00"}},{"$f":"IFERROR('MMA Rev-Exp Region 10'!$W$12/'MMA Rev-Exp Region 10'!$W$9, 0)","v":{"v":0,"d":"$0.00"}},{"$f":"IFERROR('MMA Rev-Exp Region 10'!$X$12/'MMA Rev-Exp Region 10'!$X$9, 0)","v":{"v":0,"d":"$0.00"}},{"$f":"IFERROR('MMA Rev-Exp Region 10'!$Y$12/'MMA Rev-Exp Region 10'!$Y$9, 0)","v":{"v":0,"d":"$0.00"}}]
["MMA",null,null,2016,"2016-12-31","Q2","2017-06-30","Region 10","Operating Revenue","Kick Payments","Kick Payments - Hep C","1.3","Hepatitis C Kick Payments",{"$f":"IFERROR('MMA Rev-Exp Region 10'!$O$13/'MMA Rev-Exp Region 10'!$O$9, 0)","v":{"v":0,"d":"$0.00"}},{"$f":"IFERROR('MMA Rev-Exp Region 10'!$P$13/'MMA Rev-Exp Region 10'!$P$9, 0)","v":{"v":0,"d":"$0.00"}},{"$f":"IFERROR('MMA Rev-Exp Region 10'!$Q$13/'MMA Rev-Exp Region 10'!$Q$9, 0)","v":{"v":0,"d":"$0.00"}},{"$f":"IFERROR('MMA Rev-Exp Region 10'!$R$13/'MMA Rev-Exp Region 10'!$R$9, 0)","v":{"v":0,"d":"$0.00"}},{"$f":"IFERROR('MMA Rev-Exp Region 10'!$S$13/'MMA Rev-Exp Region 10'!$S$9, 0)","v":{"v":0,"d":"$0.00"}},{"$f":"IFERROR('MMA Rev-Exp Region 10'!$T$13/'MMA Rev-Exp Region 10'!$T$9, 0)","v":{"v":0,"d":"$0.00"}},{"$f":"IFERROR('MMA Rev-Exp Region 10'!$U$13/'MMA Rev-Exp Region 10'!$U$9, 0)","v":{"v":0,"d":"$0.00"}},{"$f":"IFERROR('MMA Rev-Exp Region 10'!$V$13/'MMA Rev-Exp Region 10'!$V$9, 0)","v":{"v":0,"d":"$0.00"}},{"$f":"IFERROR('MMA Rev-Exp Region 10'!$W$13/'MMA Rev-Exp Region 10'!$W$9, 0)","v":{"v":0,"d":"$0.00"}},{"$f":"IFERROR('MMA Rev-Exp Region 10'!$X$13/'MMA Rev-Exp Region 10'!$X$9, 0)","v":{"v":0,"d":"$0.00"}},{"$f":"IFERROR('MMA Rev-Exp Region 10'!$Y$13/'MMA Rev-Exp Region 10'!$Y$9, 0)","v":{"v":0,"d":"$0.00"}}]
["MMA",null,null,2016,"2016-12-31","Q2","2017-06-30","Region 10","Operating Revenue","Kick Payments","Kick Payments - Maternity","1.4.1","Maternity Kick Payments",{"$f":"IFERROR('MMA Rev-Exp Region 10'!$O$14/'MMA Rev-Exp Region 10'!$O$9, 0)","v":{"v":0,"d":"$0.00"}},{"$f":"IFERROR('MMA Rev-Exp Region 10'!$P$14/'MMA Rev-Exp Region 10'!$P$9, 0)","v":{"v":0,"d":"$0.00"}},{"$f":"IFERROR('MMA Rev-Exp Region 10'!$Q$14/'MMA Rev-Exp Region 10'!$Q$9, 0)","v":{"v":0,"d":"$0.00"}},{"$f":"IFERROR('MMA Rev-Exp Region 10'!$R$14/'MMA Rev-Exp Region 10'!$R$9, 0)","v":{"v":0,"d":"$0.00"}},{"$f":"IFERROR('MMA Rev-Exp Region 10'!$S$14/'MMA Rev-Exp Region 10'!$S$9, 0)","v":{"v":0,"d":"$0.00"}},{"$f":"IFERROR('MMA Rev-Exp Region 10'!$T$14/'MMA Rev-Exp Region 10'!$T$9, 0)","v":{"v":0,"d":"$0.00"}},{"$f":"IFERROR('MMA Rev-Exp Region 10'!$U$14/'MMA Rev-Exp Region 10'!$U$9, 0)","v":{"v":0,"d":"$0.00"}},{"$f":"IFERROR('MMA Rev-Exp Region 10'!$V$14/'MMA Rev-Exp Region 10'!$V$9, 0)","v":{"v":0,"d":"$0.00"}},{"$f":"IFERROR('MMA Rev-Exp Region 10'!$W$14/'MMA Rev-Exp Region 10'!$W$9, 0)","v":{"v":0,"d":"$0.00"}},{"$f":"IFERROR('MMA Rev-Exp Region 10'!$X$14/'MMA Rev-Exp Region 10'!$X$9, 0)","v":{"v":0,"d":"$0.00"}},{"$f":"IFERROR('MMA Rev-Exp Region 10'!$Y$14/'MMA Rev-Exp Region 10'!$Y$9, 0)","v":{"v":0,"d":"$0.00"}}]
["MMA",null,null,2016,"2016-12-31","Q2","2017-06-30","Region 10","Operating Revenue","Other Revenue","Other Revenue - 9010","1.5","ACA § 9010 related payments",{"$f":"IFERROR('MMA Rev-Exp Region 10'!$O$15/'MMA Rev-Exp Region 10'!$O$9, 0)","v":{"v":0,"d":"$0.00"}},{"$f":"IFERROR('MMA Rev-Exp Region 10'!$P$15/'MMA Rev-Exp Region 10'!$P$9, 0)","v":{"v":0,"d":"$0.00"}},{"$f":"IFERROR('MMA Rev-Exp Region 10'!$Q$15/'MMA Rev-Exp Region 10'!$Q$9, 0)","v":{"v":0,"d":"$0.00"}},{"$f":"IFERROR('MMA Rev-Exp Region 10'!$R$15/'MMA Rev-Exp Region 10'!$R$9, 0)","v":{"v":0,"d":"$0.00"}},{"$f":"IFERROR('MMA Rev-Exp Region 10'!$S$15/'MMA Rev-Exp Region 10'!$S$9, 0)","v":{"v":0,"d":"$0.00"}},{"$f":"IFERROR('MMA Rev-Exp Region 10'!$T$15/'MMA Rev-Exp Region 10'!$T$9, 0)","v":{"v":0,"d":"$0.00"}},{"$f":"IFERROR('MMA Rev-Exp Region 10'!$U$15/'MMA Rev-Exp Region 10'!$U$9, 0)","v":{"v":0,"d":"$0.00"}},{"$f":"IFERROR('MMA Rev-Exp Region 10'!$V$15/'MMA Rev-Exp Region 10'!$V$9, 0)","v":{"v":0,"d":"$0.00"}},{"$f":"IFERROR('MMA Rev-Exp Region 10'!$W$15/'MMA Rev-Exp Region 10'!$W$9, 0)","v":{"v":0,"d":"$0.00"}},{"$f":"IFERROR('MMA Rev-Exp Region 10'!$X$15/'MMA Rev-Exp Region 10'!$X$9, 0)","v":{"v":0,"d":"$0.00"}},{"$f":"IFERROR('MMA Rev-Exp Region 10'!$Y$15/'MMA Rev-Exp Region 10'!$Y$9, 0)","v":{"v":0,"d":"$0.00"}}]
["MMA",null,null,2016,"2016-12-31","Q2","2017-06-30","Region 10","Operating Revenue","Other Revenue","Other Revenue","1.6","Other Revenue",{"$f":"IFERROR('MMA Rev-Exp Region 10'!$O$16/'MMA Rev-Exp Region 10'!$O$9, 0)","v":{"v":0,"d":"$0.00"}},{"$f":"IFERROR('MMA Rev-Exp Region 10'!$P$16/'MMA Rev-Exp Region 10'!$P$9, 0)","v":{"v":0,"d":"$0.00"}},{"$f":"IFERROR('MMA Rev-Exp Region 10'!$Q$16/'MMA Rev-Exp Region 10'!$Q$9, 0)","v":{"v":0,"d":"$0.00"}},{"$f":"IFERROR('MMA Rev-Exp Region 10'!$R$16/'MMA Rev-Exp Region 10'!$R$9, 0)","v":{"v":0,"d":"$0.00"}},{"$f":"IFERROR('MMA Rev-Exp Region 10'!$S$16/'MMA Rev-Exp Region 10'!$S$9, 0)","v":{"v":0,"d":"$0.00"}},{"$f":"IFERROR('MMA Rev-Exp Region 10'!$T$16/'MMA Rev-Exp Region 10'!$T$9, 0)","v":{"v":0,"d":"$0.00"}},{"$f":"IFERROR('MMA Rev-Exp Region 10'!$U$16/'MMA Rev-Exp Region 10'!$U$9, 0)","v":{"v":0,"d":"$0.00"}},{"$f":"IFERROR('MMA Rev-Exp Region 10'!$V$16/'MMA Rev-Exp Region 10'!$V$9, 0)","v":{"v":0,"d":"$0.00"}},{"$f":"IFERROR('MMA Rev-Exp Region 10'!$W$16/'MMA Rev-Exp Region 10'!$W$9, 0)","v":{"v":0,"d":"$0.00"}},{"$f":"IFERROR('MMA Rev-Exp Region 10'!$X$16/'MMA Rev-Exp Region 10'!$X$9, 0)","v":{"v":0,"d":"$0.00"}},{"$f":"IFERROR('MMA Rev-Exp Region 10'!$Y$16/'MMA Rev-Exp Region 10'!$Y$9, 0)","v":{"v":0,"d":"$0.00"}}]
["MMA",null,null,2016,"2016-12-31","Q2","2017-06-30","Region 10","Operating Expense","Medical Benefits Expense","Hospital Services",2.1,"Inpatient FFS",{"$f":"IFERROR('MMA Rev-Exp Region 10'!$O$20/'MMA Rev-Exp Region 10'!$O$9, 0)","v":{"v":0,"d":"$0.00"}},{"$f":"IFERROR('MMA Rev-Exp Region 10'!$P$20/'MMA Rev-Exp Region 10'!$P$9, 0)","v":{"v":0,"d":"$0.00"}},{"$f":"IFERROR('MMA Rev-Exp Region 10'!$Q$20/'MMA Rev-Exp Region 10'!$Q$9, 0)","v":{"v":0,"d":"$0.00"}},{"$f":"IFERROR('MMA Rev-Exp Region 10'!$R$20/'MMA Rev-Exp Region 10'!$R$9, 0)","v":{"v":0,"d":"$0.00"}},{"$f":"IFERROR('MMA Rev-Exp Region 10'!$S$20/'MMA Rev-Exp Region 10'!$S$9, 0)","v":{"v":0,"d":"$0.00"}},{"$f":"IFERROR('MMA Rev-Exp Region 10'!$T$20/'MMA Rev-Exp Region 10'!$T$9, 0)","v":{"v":0,"d":"$0.00"}},{"$f":"IFERROR('MMA Rev-Exp Region 10'!$U$20/'MMA Rev-Exp Region 10'!$U$9, 0)","v":{"v":0,"d":"$0.00"}},{"$f":"IFERROR('MMA Rev-Exp Region 10'!$V$20/'MMA Rev-Exp Region 10'!$V$9, 0)","v":{"v":0,"d":"$0.00"}},{"$f":"IFERROR('MMA Rev-Exp Region 10'!$W$20/'MMA Rev-Exp Region 10'!$W$9, 0)","v":{"v":0,"d":"$0.00"}},{"$f":"IFERROR('MMA Rev-Exp Region 10'!$X$20/'MMA Rev-Exp Region 10'!$X$9, 0)","v":{"v":0,"d":"$0.00"}},{"$f":"IFERROR('MMA Rev-Exp Region 10'!$Y$20/'MMA Rev-Exp Region 10'!$Y$9, 0)","v":{"v":0,"d":"$0.00"}}]
["MMA",null,null,2016,"2016-12-31","Q2","2017-06-30","Region 10","Operating Expense","Medical Benefits Expense","Hospital Services",2.2,"Ending IBNP for Inpatient Hospital Services",{"$f":"IFERROR('MMA Rev-Exp Region 10'!$O$21/'MMA Rev-Exp Region 10'!$O$9, 0)","v":{"v":0,"d":"$0.00"}},{"$f":"IFERROR('MMA Rev-Exp Region 10'!$P$21/'MMA Rev-Exp Region 10'!$P$9, 0)","v":{"v":0,"d":"$0.00"}},{"$f":"IFERROR('MMA Rev-Exp Region 10'!$Q$21/'MMA Rev-Exp Region 10'!$Q$9, 0)","v":{"v":0,"d":"$0.00"}},{"$f":"IFERROR('MMA Rev-Exp Region 10'!$R$21/'MMA Rev-Exp Region 10'!$R$9, 0)","v":{"v":0,"d":"$0.00"}},{"$f":"IFERROR('MMA Rev-Exp Region 10'!$S$21/'MMA Rev-Exp Region 10'!$S$9, 0)","v":{"v":0,"d":"$0.00"}},{"$f":"IFERROR('MMA Rev-Exp Region 10'!$T$21/'MMA Rev-Exp Region 10'!$T$9, 0)","v":{"v":0,"d":"$0.00"}},{"$f":"IFERROR('MMA Rev-Exp Region 10'!$U$21/'MMA Rev-Exp Region 10'!$U$9, 0)","v":{"v":0,"d":"$0.00"}},{"$f":"IFERROR('MMA Rev-Exp Region 10'!$V$21/'MMA Rev-Exp Region 10'!$V$9, 0)","v":{"v":0,"d":"$0.00"}},{"$f":"IFERROR('MMA Rev-Exp Region 10'!$W$21/'MMA Rev-Exp Region 10'!$W$9, 0)","v":{"v":0,"d":"$0.00"}},{"$f":"IFERROR('MMA Rev-Exp Region 10'!$X$21/'MMA Rev-Exp Region 10'!$X$9, 0)","v":{"v":0,"d":"$0.00"}},{"$f":"IFERROR('MMA Rev-Exp Region 10'!$Y$21/'MMA Rev-Exp Region 10'!$Y$9, 0)","v":{"v":0,"d":"$0.00"}}]
["MMA",null,null,2016,"2016-12-31","Q2","2017-06-30","Region 10","Operating Expense","Medical Benefits Expense","Hospital Services",2.3,"Outpatient FFS: ER",{"$f":"IFERROR('MMA Rev-Exp Region 10'!$O$22/'MMA Rev-Exp Region 10'!$O$9, 0)","v":{"v":0,"d":"$0.00"}},{"$f":"IFERROR('MMA Rev-Exp Region 10'!$P$22/'MMA Rev-Exp Region 10'!$P$9, 0)","v":{"v":0,"d":"$0.00"}},{"$f":"IFERROR('MMA Rev-Exp Region 10'!$Q$22/'MMA Rev-Exp Region 10'!$Q$9, 0)","v":{"v":0,"d":"$0.00"}},{"$f":"IFERROR('MMA Rev-Exp Region 10'!$R$22/'MMA Rev-Exp Region 10'!$R$9, 0)","v":{"v":0,"d":"$0.00"}},{"$f":"IFERROR('MMA Rev-Exp Region 10'!$S$22/'MMA Rev-Exp Region 10'!$S$9, 0)","v":{"v":0,"d":"$0.00"}},{"$f":"IFERROR('MMA Rev-Exp Region 10'!$T$22/'MMA Rev-Exp Region 10'!$T$9, 0)","v":{"v":0,"d":"$0.00"}},{"$f":"IFERROR('MMA Rev-Exp Region 10'!$U$22/'MMA Rev-Exp Region 10'!$U$9, 0)","v":{"v":0,"d":"$0.00"}},{"$f":"IFERROR('MMA Rev-Exp Region 10'!$V$22/'MMA Rev-Exp Region 10'!$V$9, 0)","v":{"v":0,"d":"$0.00"}},{"$f":"IFERROR('MMA Rev-Exp Region 10'!$W$22/'MMA Rev-Exp Region 10'!$W$9, 0)","v":{"v":0,"d":"$0.00"}},{"$f":"IFERROR('MMA Rev-Exp Region 10'!$X$22/'MMA Rev-Exp Region 10'!$X$9, 0)","v":{"v":0,"d":"$0.00"}},{"$f":"IFERROR('MMA Rev-Exp Region 10'!$Y$22/'MMA Rev-Exp Region 10'!$Y$9, 0)","v":{"v":0,"d":"$0.00"}}]
["MMA",null,null,2016,"2016-12-31","Q2","2017-06-30","Region 10","Operating Expense","Medical Benefits Expense","Hospital Services",2.4,"Outpatient FFS: Other than ER ",{"$f":"IFERROR('MMA Rev-Exp Region 10'!$O$23/'MMA Rev-Exp Region 10'!$O$9, 0)","v":{"v":0,"d":"$0.00"}},{"$f":"IFERROR('MMA Rev-Exp Region 10'!$P$23/'MMA Rev-Exp Region 10'!$P$9, 0)","v":{"v":0,"d":"$0.00"}},{"$f":"IFERROR('MMA Rev-Exp Region 10'!$Q$23/'MMA Rev-Exp Region 10'!$Q$9, 0)","v":{"v":0,"d":"$0.00"}},{"$f":"IFERROR('MMA Rev-Exp Region 10'!$R$23/'MMA Rev-Exp Region 10'!$R$9, 0)","v":{"v":0,"d":"$0.00"}},{"$f":"IFERROR('MMA Rev-Exp Region 10'!$S$23/'MMA Rev-Exp Region 10'!$S$9, 0)","v":{"v":0,"d":"$0.00"}},{"$f":"IFERROR('MMA Rev-Exp Region 10'!$T$23/'MMA Rev-Exp Region 10'!$T$9, 0)","v":{"v":0,"d":"$0.00"}},{"$f":"IFERROR('MMA Rev-Exp Region 10'!$U$23/'MMA Rev-Exp Region 10'!$U$9, 0)","v":{"v":0,"d":"$0.00"}},{"$f":"IFERROR('MMA Rev-Exp Region 10'!$V$23/'MMA Rev-Exp Region 10'!$V$9, 0)","v":{"v":0,"d":"$0.00"}},{"$f":"IFERROR('MMA Rev-Exp Region 10'!$W$23/'MMA Rev-Exp Region 10'!$W$9, 0)","v":{"v":0,"d":"$0.00"}},{"$f":"IFERROR('MMA Rev-Exp Region 10'!$X$23/'MMA Rev-Exp Region 10'!$X$9, 0)","v":{"v":0,"d":"$0.00"}},{"$f":"IFERROR('MMA Rev-Exp Region 10'!$Y$23/'MMA Rev-Exp Region 10'!$Y$9, 0)","v":{"v":0,"d":"$0.00"}}]
["MMA",null,null,2016,"2016-12-31","Q2","2017-06-30","Region 10","Operating Expense","Medical Benefits Expense","Hospital Services",2.5,"Ending IBNP for Outpatient Hospital Services",{"$f":"IFERROR('MMA Rev-Exp Region 10'!$O$24/'MMA Rev-Exp Region 10'!$O$9, 0)","v":{"v":0,"d":"$0.00"}},{"$f":"IFERROR('MMA Rev-Exp Region 10'!$P$24/'MMA Rev-Exp Region 10'!$P$9, 0)","v":{"v":0,"d":"$0.00"}},{"$f":"IFERROR('MMA Rev-Exp Region 10'!$Q$24/'MMA Rev-Exp Region 10'!$Q$9, 0)","v":{"v":0,"d":"$0.00"}},{"$f":"IFERROR('MMA Rev-Exp Region 10'!$R$24/'MMA Rev-Exp Region 10'!$R$9, 0)","v":{"v":0,"d":"$0.00"}},{"$f":"IFERROR('MMA Rev-Exp Region 10'!$S$24/'MMA Rev-Exp Region 10'!$S$9, 0)","v":{"v":0,"d":"$0.00"}},{"$f":"IFERROR('MMA Rev-Exp Region 10'!$T$24/'MMA Rev-Exp Region 10'!$T$9, 0)","v":{"v":0,"d":"$0.00"}},{"$f":"IFERROR('MMA Rev-Exp Region 10'!$U$24/'MMA Rev-Exp Region 10'!$U$9, 0)","v":{"v":0,"d":"$0.00"}},{"$f":"IFERROR('MMA Rev-Exp Region 10'!$V$24/'MMA Rev-Exp Region 10'!$V$9, 0)","v":{"v":0,"d":"$0.00"}},{"$f":"IFERROR('MMA Rev-Exp Region 10'!$W$24/'MMA Rev-Exp Region 10'!$W$9, 0)","v":{"v":0,"d":"$0.00"}},{"$f":"IFERROR('MMA Rev-Exp Region 10'!$X$24/'MMA Rev-Exp Region 10'!$X$9, 0)","v":{"v":0,"d":"$0.00"}},{"$f":"IFERROR('MMA Rev-Exp Region 10'!$Y$24/'MMA Rev-Exp Region 10'!$Y$9, 0)","v":{"v":0,"d":"$0.00"}}]
["MMA",null,null,2016,"2016-12-31","Q2","2017-06-30","Region 10","Operating Expense","Medical Benefits Expense","Hospital Services","2.6","Subcapitated Hospital Services",{"$f":"IFERROR('MMA Rev-Exp Region 10'!$O$25/'MMA Rev-Exp Region 10'!$O$9, 0)","v":{"v":0,"d":"$0.00"}},{"$f":"IFERROR('MMA Rev-Exp Region 10'!$P$25/'MMA Rev-Exp Region 10'!$P$9, 0)","v":{"v":0,"d":"$0.00"}},{"$f":"IFERROR('MMA Rev-Exp Region 10'!$Q$25/'MMA Rev-Exp Region 10'!$Q$9, 0)","v":{"v":0,"d":"$0.00"}},{"$f":"IFERROR('MMA Rev-Exp Region 10'!$R$25/'MMA Rev-Exp Region 10'!$R$9, 0)","v":{"v":0,"d":"$0.00"}},{"$f":"IFERROR('MMA Rev-Exp Region 10'!$S$25/'MMA Rev-Exp Region 10'!$S$9, 0)","v":{"v":0,"d":"$0.00"}},{"$f":"IFERROR('MMA Rev-Exp Region 10'!$T$25/'MMA Rev-Exp Region 10'!$T$9, 0)","v":{"v":0,"d":"$0.00"}},{"$f":"IFERROR('MMA Rev-Exp Region 10'!$U$25/'MMA Rev-Exp Region 10'!$U$9, 0)","v":{"v":0,"d":"$0.00"}},{"$f":"IFERROR('MMA Rev-Exp Region 10'!$V$25/'MMA Rev-Exp Region 10'!$V$9, 0)","v":{"v":0,"d":"$0.00"}},{"$f":"IFERROR('MMA Rev-Exp Region 10'!$W$25/'MMA Rev-Exp Region 10'!$W$9, 0)","v":{"v":0,"d":"$0.00"}},{"$f":"IFERROR('MMA Rev-Exp Region 10'!$X$25/'MMA Rev-Exp Region 10'!$X$9, 0)","v":{"v":0,"d":"$0.00"}},{"$f":"IFERROR('MMA Rev-Exp Region 10'!$Y$25/'MMA Rev-Exp Region 10'!$Y$9, 0)","v":{"v":0,"d":"$0.00"}}]
["MMA",null,null,2016,"2016-12-31","Q2","2017-06-30","Region 10","Operating Expense","Medical Benefits Expense","Hospital Services","2.7","Hospital Settlements",{"$f":"IFERROR('MMA Rev-Exp Region 10'!$O$26/'MMA Rev-Exp Region 10'!$O$9, 0)","v":{"v":0,"d":"$0.00"}},{"$f":"IFERROR('MMA Rev-Exp Region 10'!$P$26/'MMA Rev-Exp Region 10'!$P$9, 0)","v":{"v":0,"d":"$0.00"}},{"$f":"IFERROR('MMA Rev-Exp Region 10'!$Q$26/'MMA Rev-Exp Region 10'!$Q$9, 0)","v":{"v":0,"d":"$0.00"}},{"$f":"IFERROR('MMA Rev-Exp Region 10'!$R$26/'MMA Rev-Exp Region 10'!$R$9, 0)","v":{"v":0,"d":"$0.00"}},{"$f":"IFERROR('MMA Rev-Exp Region 10'!$S$26/'MMA Rev-Exp Region 10'!$S$9, 0)","v":{"v":0,"d":"$0.00"}},{"$f":"IFERROR('MMA Rev-Exp Region 10'!$T$26/'MMA Rev-Exp Region 10'!$T$9, 0)","v":{"v":0,"d":"$0.00"}},{"$f":"IFERROR('MMA Rev-Exp Region 10'!$U$26/'MMA Rev-Exp Region 10'!$U$9, 0)","v":{"v":0,"d":"$0.00"}},{"$f":"IFERROR('MMA Rev-Exp Region 10'!$V$26/'MMA Rev-Exp Region 10'!$V$9, 0)","v":{"v":0,"d":"$0.00"}},{"$f":"IFERROR('MMA Rev-Exp Region 10'!$W$26/'MMA Rev-Exp Region 10'!$W$9, 0)","v":{"v":0,"d":"$0.00"}},{"$f":"IFERROR('MMA Rev-Exp Region 10'!$X$26/'MMA Rev-Exp Region 10'!$X$9, 0)","v":{"v":0,"d":"$0.00"}},{"$f":"IFERROR('MMA Rev-Exp Region 10'!$Y$26/'MMA Rev-Exp Region 10'!$Y$9, 0)","v":{"v":0,"d":"$0.00"}}]
["MMA",null,null,2016,"2016-12-31","Q2","2017-06-30","Region 10","Operating Expense","Medical Benefits Expense","Hospital Services","2.7.1","Transplant Services",{"$f":"IFERROR('MMA Rev-Exp Region 10'!$O$27/'MMA Rev-Exp Region 10'!$O$9, 0)","v":{"v":0,"d":"$0.00"}},{"$f":"IFERROR('MMA Rev-Exp Region 10'!$P$27/'MMA Rev-Exp Region 10'!$P$9, 0)","v":{"v":0,"d":"$0.00"}},{"$f":"IFERROR('MMA Rev-Exp Region 10'!$Q$27/'MMA Rev-Exp Region 10'!$Q$9, 0)","v":{"v":0,"d":"$0.00"}},{"$f":"IFERROR('MMA Rev-Exp Region 10'!$R$27/'MMA Rev-Exp Region 10'!$R$9, 0)","v":{"v":0,"d":"$0.00"}},{"$f":"IFERROR('MMA Rev-Exp Region 10'!$S$27/'MMA Rev-Exp Region 10'!$S$9, 0)","v":{"v":0,"d":"$0.00"}},{"$f":"IFERROR('MMA Rev-Exp Region 10'!$T$27/'MMA Rev-Exp Region 10'!$T$9, 0)","v":{"v":0,"d":"$0.00"}},{"$f":"IFERROR('MMA Rev-Exp Region 10'!$U$27/'MMA Rev-Exp Region 10'!$U$9, 0)","v":{"v":0,"d":"$0.00"}},{"$f":"IFERROR('MMA Rev-Exp Region 10'!$V$27/'MMA Rev-Exp Region 10'!$V$9, 0)","v":{"v":0,"d":"$0.00"}},{"$f":"IFERROR('MMA Rev-Exp Region 10'!$W$27/'MMA Rev-Exp Region 10'!$W$9, 0)","v":{"v":0,"d":"$0.00"}},{"$f":"IFERROR('MMA Rev-Exp Region 10'!$X$27/'MMA Rev-Exp Region 10'!$X$9, 0)","v":{"v":0,"d":"$0.00"}},{"$f":"IFERROR('MMA Rev-Exp Region 10'!$Y$27/'MMA Rev-Exp Region 10'!$Y$9, 0)","v":{"v":0,"d":"$0.00"}}]
["MMA",null,null,2016,"2016-12-31","Q2","2017-06-30","Region 10","Operating Expense","Medical Benefits Expense","Professional Services",3.1,"Primary Care FFS",{"$f":"IFERROR('MMA Rev-Exp Region 10'!$O$29/'MMA Rev-Exp Region 10'!$O$9, 0)","v":{"v":0,"d":"$0.00"}},{"$f":"IFERROR('MMA Rev-Exp Region 10'!$P$29/'MMA Rev-Exp Region 10'!$P$9, 0)","v":{"v":0,"d":"$0.00"}},{"$f":"IFERROR('MMA Rev-Exp Region 10'!$Q$29/'MMA Rev-Exp Region 10'!$Q$9, 0)","v":{"v":0,"d":"$0.00"}},{"$f":"IFERROR('MMA Rev-Exp Region 10'!$R$29/'MMA Rev-Exp Region 10'!$R$9, 0)","v":{"v":0,"d":"$0.00"}},{"$f":"IFERROR('MMA Rev-Exp Region 10'!$S$29/'MMA Rev-Exp Region 10'!$S$9, 0)","v":{"v":0,"d":"$0.00"}},{"$f":"IFERROR('MMA Rev-Exp Region 10'!$T$29/'MMA Rev-Exp Region 10'!$T$9, 0)","v":{"v":0,"d":"$0.00"}},{"$f":"IFERROR('MMA Rev-Exp Region 10'!$U$29/'MMA Rev-Exp Region 10'!$U$9, 0)","v":{"v":0,"d":"$0.00"}},{"$f":"IFERROR('MMA Rev-Exp Region 10'!$V$29/'MMA Rev-Exp Region 10'!$V$9, 0)","v":{"v":0,"d":"$0.00"}},{"$f":"IFERROR('MMA Rev-Exp Region 10'!$W$29/'MMA Rev-Exp Region 10'!$W$9, 0)","v":{"v":0,"d":"$0.00"}},{"$f":"IFERROR('MMA Rev-Exp Region 10'!$X$29/'MMA Rev-Exp Region 10'!$X$9, 0)","v":{"v":0,"d":"$0.00"}},{"$f":"IFERROR('MMA Rev-Exp Region 10'!$Y$29/'MMA Rev-Exp Region 10'!$Y$9, 0)","v":{"v":0,"d":"$0.00"}}]
["MMA",null,null,2016,"2016-12-31","Q2","2017-06-30","Region 10","Operating Expense","Medical Benefits Expense","Professional Services",3.2,"Specialty Care FFS",{"$f":"IFERROR('MMA Rev-Exp Region 10'!$O$30/'MMA Rev-Exp Region 10'!$O$9, 0)","v":{"v":0,"d":"$0.00"}},{"$f":"IFERROR('MMA Rev-Exp Region 10'!$P$30/'MMA Rev-Exp Region 10'!$P$9, 0)","v":{"v":0,"d":"$0.00"}},{"$f":"IFERROR('MMA Rev-Exp Region 10'!$Q$30/'MMA Rev-Exp Region 10'!$Q$9, 0)","v":{"v":0,"d":"$0.00"}},{"$f":"IFERROR('MMA Rev-Exp Region 10'!$R$30/'MMA Rev-Exp Region 10'!$R$9, 0)","v":{"v":0,"d":"$0.00"}},{"$f":"IFERROR('MMA Rev-Exp Region 10'!$S$30/'MMA Rev-Exp Region 10'!$S$9, 0)","v":{"v":0,"d":"$0.00"}},{"$f":"IFERROR('MMA Rev-Exp Region 10'!$T$30/'MMA Rev-Exp Region 10'!$T$9, 0)","v":{"v":0,"d":"$0.00"}},{"$f":"IFERROR('MMA Rev-Exp Region 10'!$U$30/'MMA Rev-Exp Region 10'!$U$9, 0)","v":{"v":0,"d":"$0.00"}},{"$f":"IFERROR('MMA Rev-Exp Region 10'!$V$30/'MMA Rev-Exp Region 10'!$V$9, 0)","v":{"v":0,"d":"$0.00"}},{"$f":"IFERROR('MMA Rev-Exp Region 10'!$W$30/'MMA Rev-Exp Region 10'!$W$9, 0)","v":{"v":0,"d":"$0.00"}},{"$f":"IFERROR('MMA Rev-Exp Region 10'!$X$30/'MMA Rev-Exp Region 10'!$X$9, 0)","v":{"v":0,"d":"$0.00"}},{"$f":"IFERROR('MMA Rev-Exp Region 10'!$Y$30/'MMA Rev-Exp Region 10'!$Y$9, 0)","v":{"v":0,"d":"$0.00"}}]
["MMA",null,null,2016,"2016-12-31","Q2","2017-06-30","Region 10","Operating Expense","Medical Benefits Expense","Professional Services",3.3,"Other Professional FFS",{"$f":"IFERROR('MMA Rev-Exp Region 10'!$O$31/'MMA Rev-Exp Region 10'!$O$9, 0)","v":{"v":0,"d":"$0.00"}},{"$f":"IFERROR('MMA Rev-Exp Region 10'!$P$31/'MMA Rev-Exp Region 10'!$P$9, 0)","v":{"v":0,"d":"$0.00"}},{"$f":"IFERROR('MMA Rev-Exp Region 10'!$Q$31/'MMA Rev-Exp Region 10'!$Q$9, 0)","v":{"v":0,"d":"$0.00"}},{"$f":"IFERROR('MMA Rev-Exp Region 10'!$R$31/'MMA Rev-Exp Region 10'!$R$9, 0)","v":{"v":0,"d":"$0.00"}},{"$f":"IFERROR('MMA Rev-Exp Region 10'!$S$31/'MMA Rev-Exp Region 10'!$S$9, 0)","v":{"v":0,"d":"$0.00"}},{"$f":"IFERROR('MMA Rev-Exp Region 10'!$T$31/'MMA Rev-Exp Region 10'!$T$9, 0)","v":{"v":0,"d":"$0.00"}},{"$f":"IFERROR('MMA Rev-Exp Region 10'!$U$31/'MMA Rev-Exp Region 10'!$U$9, 0)","v":{"v":0,"d":"$0.00"}},{"$f":"IFERROR('MMA Rev-Exp Region 10'!$V$31/'MMA Rev-Exp Region 10'!$V$9, 0)","v":{"v":0,"d":"$0.00"}},{"$f":"IFERROR('MMA Rev-Exp Region 10'!$W$31/'MMA Rev-Exp Region 10'!$W$9, 0)","v":{"v":0,"d":"$0.00"}},{"$f":"IFERROR('MMA Rev-Exp Region 10'!$X$31/'MMA Rev-Exp Region 10'!$X$9, 0)","v":{"v":0,"d":"$0.00"}},{"$f":"IFERROR('MMA Rev-Exp Region 10'!$Y$31/'MMA Rev-Exp Region 10'!$Y$9, 0)","v":{"v":0,"d":"$0.00"}}]
["MMA",null,null,2016,"2016-12-31","Q2","2017-06-30","Region 10","Operating Expense","Medical Benefits Expense","Professional Services","3.4","§ 1202 PCP Payments to providers",{"$f":"IFERROR('MMA Rev-Exp Region 10'!$O$32/'MMA Rev-Exp Region 10'!$O$9, 0)","v":{"v":0,"d":"$0.00"}},{"$f":"IFERROR('MMA Rev-Exp Region 10'!$P$32/'MMA Rev-Exp Region 10'!$P$9, 0)","v":{"v":0,"d":"$0.00"}},{"$f":"IFERROR('MMA Rev-Exp Region 10'!$Q$32/'MMA Rev-Exp Region 10'!$Q$9, 0)","v":{"v":0,"d":"$0.00"}},{"$f":"IFERROR('MMA Rev-Exp Region 10'!$R$32/'MMA Rev-Exp Region 10'!$R$9, 0)","v":{"v":0,"d":"$0.00"}},{"$f":"IFERROR('MMA Rev-Exp Region 10'!$S$32/'MMA Rev-Exp Region 10'!$S$9, 0)","v":{"v":0,"d":"$0.00"}},{"$f":"IFERROR('MMA Rev-Exp Region 10'!$T$32/'MMA Rev-Exp Region 10'!$T$9, 0)","v":{"v":0,"d":"$0.00"}},{"$f":"IFERROR('MMA Rev-Exp Region 10'!$U$32/'MMA Rev-Exp Region 10'!$U$9, 0)","v":{"v":0,"d":"$0.00"}},{"$f":"IFERROR('MMA Rev-Exp Region 10'!$V$32/'MMA Rev-Exp Region 10'!$V$9, 0)","v":{"v":0,"d":"$0.00"}},{"$f":"IFERROR('MMA Rev-Exp Region 10'!$W$32/'MMA Rev-Exp Region 10'!$W$9, 0)","v":{"v":0,"d":"$0.00"}},{"$f":"IFERROR('MMA Rev-Exp Region 10'!$X$32/'MMA Rev-Exp Region 10'!$X$9, 0)","v":{"v":0,"d":"$0.00"}},{"$f":"IFERROR('MMA Rev-Exp Region 10'!$Y$32/'MMA Rev-Exp Region 10'!$Y$9, 0)","v":{"v":0,"d":"$0.00"}}]
["MMA",null,null,2016,"2016-12-31","Q2","2017-06-30","Region 10","Operating Expense","Medical Benefits Expense","Professional Services","3.5","Subcapitated Professional Services",{"$f":"IFERROR('MMA Rev-Exp Region 10'!$O$33/'MMA Rev-Exp Region 10'!$O$9, 0)","v":{"v":0,"d":"$0.00"}},{"$f":"IFERROR('MMA Rev-Exp Region 10'!$P$33/'MMA Rev-Exp Region 10'!$P$9, 0)","v":{"v":0,"d":"$0.00"}},{"$f":"IFERROR('MMA Rev-Exp Region 10'!$Q$33/'MMA Rev-Exp Region 10'!$Q$9, 0)","v":{"v":0,"d":"$0.00"}},{"$f":"IFERROR('MMA Rev-Exp Region 10'!$R$33/'MMA Rev-Exp Region 10'!$R$9, 0)","v":{"v":0,"d":"$0.00"}},{"$f":"IFERROR('MMA Rev-Exp Region 10'!$S$33/'MMA Rev-Exp Region 10'!$S$9, 0)","v":{"v":0,"d":"$0.00"}},{"$f":"IFERROR('MMA Rev-Exp Region 10'!$T$33/'MMA Rev-Exp Region 10'!$T$9, 0)","v":{"v":0,"d":"$0.00"}},{"$f":"IFERROR('MMA Rev-Exp Region 10'!$U$33/'MMA Rev-Exp Region 10'!$U$9, 0)","v":{"v":0,"d":"$0.00"}},{"$f":"IFERROR('MMA Rev-Exp Region 10'!$V$33/'MMA Rev-Exp Region 10'!$V$9, 0)","v":{"v":0,"d":"$0.00"}},{"$f":"IFERROR('MMA Rev-Exp Region 10'!$W$33/'MMA Rev-Exp Region 10'!$W$9, 0)","v":{"v":0,"d":"$0.00"}},{"$f":"IFERROR('MMA Rev-Exp Region 10'!$X$33/'MMA Rev-Exp Region 10'!$X$9, 0)","v":{"v":0,"d":"$0.00"}},{"$f":"IFERROR('MMA Rev-Exp Region 10'!$Y$33/'MMA Rev-Exp Region 10'!$Y$9, 0)","v":{"v":0,"d":"$0.00"}}]
["MMA",null,null,2016,"2016-12-31","Q2","2017-06-30","Region 10","Operating Expense","Medical Benefits Expense","Professional Services","3.6","Ending IBNP for Professional Services",{"$f":"IFERROR('MMA Rev-Exp Region 10'!$O$34/'MMA Rev-Exp Region 10'!$O$9, 0)","v":{"v":0,"d":"$0.00"}},{"$f":"IFERROR('MMA Rev-Exp Region 10'!$P$34/'MMA Rev-Exp Region 10'!$P$9, 0)","v":{"v":0,"d":"$0.00"}},{"$f":"IFERROR('MMA Rev-Exp Region 10'!$Q$34/'MMA Rev-Exp Region 10'!$Q$9, 0)","v":{"v":0,"d":"$0.00"}},{"$f":"IFERROR('MMA Rev-Exp Region 10'!$R$34/'MMA Rev-Exp Region 10'!$R$9, 0)","v":{"v":0,"d":"$0.00"}},{"$f":"IFERROR('MMA Rev-Exp Region 10'!$S$34/'MMA Rev-Exp Region 10'!$S$9, 0)","v":{"v":0,"d":"$0.00"}},{"$f":"IFERROR('MMA Rev-Exp Region 10'!$T$34/'MMA Rev-Exp Region 10'!$T$9, 0)","v":{"v":0,"d":"$0.00"}},{"$f":"IFERROR('MMA Rev-Exp Region 10'!$U$34/'MMA Rev-Exp Region 10'!$U$9, 0)","v":{"v":0,"d":"$0.00"}},{"$f":"IFERROR('MMA Rev-Exp Region 10'!$V$34/'MMA Rev-Exp Region 10'!$V$9, 0)","v":{"v":0,"d":"$0.00"}},{"$f":"IFERROR('MMA Rev-Exp Region 10'!$W$34/'MMA Rev-Exp Region 10'!$W$9, 0)","v":{"v":0,"d":"$0.00"}},{"$f":"IFERROR('MMA Rev-Exp Region 10'!$X$34/'MMA Rev-Exp Region 10'!$X$9, 0)","v":{"v":0,"d":"$0.00"}},{"$f":"IFERROR('MMA Rev-Exp Region 10'!$Y$34/'MMA Rev-Exp Region 10'!$Y$9, 0)","v":{"v":0,"d":"$0.00"}}]
["MMA",null,null,2016,"2016-12-31","Q2","2017-06-30","Region 10","Operating Expense","Medical Benefits Expense","Professional Services","3.7","Professional Services Settlements",{"$f":"IFERROR('MMA Rev-Exp Region 10'!$O$35/'MMA Rev-Exp Region 10'!$O$9, 0)","v":{"v":0,"d":"$0.00"}},{"$f":"IFERROR('MMA Rev-Exp Region 10'!$P$35/'MMA Rev-Exp Region 10'!$P$9, 0)","v":{"v":0,"d":"$0.00"}},{"$f":"IFERROR('MMA Rev-Exp Region 10'!$Q$35/'MMA Rev-Exp Region 10'!$Q$9, 0)","v":{"v":0,"d":"$0.00"}},{"$f":"IFERROR('MMA Rev-Exp Region 10'!$R$35/'MMA Rev-Exp Region 10'!$R$9, 0)","v":{"v":0,"d":"$0.00"}},{"$f":"IFERROR('MMA Rev-Exp Region 10'!$S$35/'MMA Rev-Exp Region 10'!$S$9, 0)","v":{"v":0,"d":"$0.00"}},{"$f":"IFERROR('MMA Rev-Exp Region 10'!$T$35/'MMA Rev-Exp Region 10'!$T$9, 0)","v":{"v":0,"d":"$0.00"}},{"$f":"IFERROR('MMA Rev-Exp Region 10'!$U$35/'MMA Rev-Exp Region 10'!$U$9, 0)","v":{"v":0,"d":"$0.00"}},{"$f":"IFERROR('MMA Rev-Exp Region 10'!$V$35/'MMA Rev-Exp Region 10'!$V$9, 0)","v":{"v":0,"d":"$0.00"}},{"$f":"IFERROR('MMA Rev-Exp Region 10'!$W$35/'MMA Rev-Exp Region 10'!$W$9, 0)","v":{"v":0,"d":"$0.00"}},{"$f":"IFERROR('MMA Rev-Exp Region 10'!$X$35/'MMA Rev-Exp Region 10'!$X$9, 0)","v":{"v":0,"d":"$0.00"}},{"$f":"IFERROR('MMA Rev-Exp Region 10'!$Y$35/'MMA Rev-Exp Region 10'!$Y$9, 0)","v":{"v":0,"d":"$0.00"}}]
["MMA",null,null,2016,"2016-12-31","Q2","2017-06-30","Region 10","Operating Expense","Medical Benefits Expense","Maternity Services","4.1.1","Maternity Services",{"$f":"IFERROR('MMA Rev-Exp Region 10'!$O$37/'MMA Rev-Exp Region 10'!$O$9, 0)","v":{"v":0,"d":"$0.00"}},{"$f":"IFERROR('MMA Rev-Exp Region 10'!$P$37/'MMA Rev-Exp Region 10'!$P$9, 0)","v":{"v":0,"d":"$0.00"}},{"$f":"IFERROR('MMA Rev-Exp Region 10'!$Q$37/'MMA Rev-Exp Region 10'!$Q$9, 0)","v":{"v":0,"d":"$0.00"}},{"$f":"IFERROR('MMA Rev-Exp Region 10'!$R$37/'MMA Rev-Exp Region 10'!$R$9, 0)","v":{"v":0,"d":"$0.00"}},{"$f":"IFERROR('MMA Rev-Exp Region 10'!$S$37/'MMA Rev-Exp Region 10'!$S$9, 0)","v":{"v":0,"d":"$0.00"}},{"$f":"IFERROR('MMA Rev-Exp Region 10'!$T$37/'MMA Rev-Exp Region 10'!$T$9, 0)","v":{"v":0,"d":"$0.00"}},{"$f":"IFERROR('MMA Rev-Exp Region 10'!$U$37/'MMA Rev-Exp Region 10'!$U$9, 0)","v":{"v":0,"d":"$0.00"}},{"$f":"IFERROR('MMA Rev-Exp Region 10'!$V$37/'MMA Rev-Exp Region 10'!$V$9, 0)","v":{"v":0,"d":"$0.00"}},{"$f":"IFERROR('MMA Rev-Exp Region 10'!$W$37/'MMA Rev-Exp Region 10'!$W$9, 0)","v":{"v":0,"d":"$0.00"}},{"$f":"IFERROR('MMA Rev-Exp Region 10'!$X$37/'MMA Rev-Exp Region 10'!$X$9, 0)","v":{"v":0,"d":"$0.00"}},{"$f":"IFERROR('MMA Rev-Exp Region 10'!$Y$37/'MMA Rev-Exp Region 10'!$Y$9, 0)","v":{"v":0,"d":"$0.00"}}]
["MMA",null,null,2016,"2016-12-31","Q2","2017-06-30","Region 10","Operating Expense","Medical Benefits Expense","Maternity Services","4.2.1","Ending IBNP for Maternity Services",{"$f":"IFERROR('MMA Rev-Exp Region 10'!$O$38/'MMA Rev-Exp Region 10'!$O$9, 0)","v":{"v":0,"d":"$0.00"}},{"$f":"IFERROR('MMA Rev-Exp Region 10'!$P$38/'MMA Rev-Exp Region 10'!$P$9, 0)","v":{"v":0,"d":"$0.00"}},{"$f":"IFERROR('MMA Rev-Exp Region 10'!$Q$38/'MMA Rev-Exp Region 10'!$Q$9, 0)","v":{"v":0,"d":"$0.00"}},{"$f":"IFERROR('MMA Rev-Exp Region 10'!$R$38/'MMA Rev-Exp Region 10'!$R$9, 0)","v":{"v":0,"d":"$0.00"}},{"$f":"IFERROR('MMA Rev-Exp Region 10'!$S$38/'MMA Rev-Exp Region 10'!$S$9, 0)","v":{"v":0,"d":"$0.00"}},{"$f":"IFERROR('MMA Rev-Exp Region 10'!$T$38/'MMA Rev-Exp Region 10'!$T$9, 0)","v":{"v":0,"d":"$0.00"}},{"$f":"IFERROR('MMA Rev-Exp Region 10'!$U$38/'MMA Rev-Exp Region 10'!$U$9, 0)","v":{"v":0,"d":"$0.00"}},{"$f":"IFERROR('MMA Rev-Exp Region 10'!$V$38/'MMA Rev-Exp Region 10'!$V$9, 0)","v":{"v":0,"d":"$0.00"}},{"$f":"IFERROR('MMA Rev-Exp Region 10'!$W$38/'MMA Rev-Exp Region 10'!$W$9, 0)","v":{"v":0,"d":"$0.00"}},{"$f":"IFERROR('MMA Rev-Exp Region 10'!$X$38/'MMA Rev-Exp Region 10'!$X$9, 0)","v":{"v":0,"d":"$0.00"}},{"$f":"IFERROR('MMA Rev-Exp Region 10'!$Y$38/'MMA Rev-Exp Region 10'!$Y$9, 0)","v":{"v":0,"d":"$0.00"}}]
["MMA",null,null,2016,"2016-12-31","Q2","2017-06-30","Region 10","Operating Expense","Medical Benefits Expense","Maternity Services","4.3.1","Maternity Settlements",{"$f":"IFERROR('MMA Rev-Exp Region 10'!$O$39/'MMA Rev-Exp Region 10'!$O$9, 0)","v":{"v":0,"d":"$0.00"}},{"$f":"IFERROR('MMA Rev-Exp Region 10'!$P$39/'MMA Rev-Exp Region 10'!$P$9, 0)","v":{"v":0,"d":"$0.00"}},{"$f":"IFERROR('MMA Rev-Exp Region 10'!$Q$39/'MMA Rev-Exp Region 10'!$Q$9, 0)","v":{"v":0,"d":"$0.00"}},{"$f":"IFERROR('MMA Rev-Exp Region 10'!$R$39/'MMA Rev-Exp Region 10'!$R$9, 0)","v":{"v":0,"d":"$0.00"}},{"$f":"IFERROR('MMA Rev-Exp Region 10'!$S$39/'MMA Rev-Exp Region 10'!$S$9, 0)","v":{"v":0,"d":"$0.00"}},{"$f":"IFERROR('MMA Rev-Exp Region 10'!$T$39/'MMA Rev-Exp Region 10'!$T$9, 0)","v":{"v":0,"d":"$0.00"}},{"$f":"IFERROR('MMA Rev-Exp Region 10'!$U$39/'MMA Rev-Exp Region 10'!$U$9, 0)","v":{"v":0,"d":"$0.00"}},{"$f":"IFERROR('MMA Rev-Exp Region 10'!$V$39/'MMA Rev-Exp Region 10'!$V$9, 0)","v":{"v":0,"d":"$0.00"}},{"$f":"IFERROR('MMA Rev-Exp Region 10'!$W$39/'MMA Rev-Exp Region 10'!$W$9, 0)","v":{"v":0,"d":"$0.00"}},{"$f":"IFERROR('MMA Rev-Exp Region 10'!$X$39/'MMA Rev-Exp Region 10'!$X$9, 0)","v":{"v":0,"d":"$0.00"}},{"$f":"IFERROR('MMA Rev-Exp Region 10'!$Y$39/'MMA Rev-Exp Region 10'!$Y$9, 0)","v":{"v":0,"d":"$0.00"}}]
["MMA",null,null,2016,"2016-12-31","Q2","2017-06-30","Region 10","Operating Expense","Medical Benefits Expense","Mental Health Services",5.1,"Mental Health & Substance Abuse FFS",{"$f":"IFERROR('MMA Rev-Exp Region 10'!$O$41/'MMA Rev-Exp Region 10'!$O$9, 0)","v":{"v":0,"d":"$0.00"}},{"$f":"IFERROR('MMA Rev-Exp Region 10'!$P$41/'MMA Rev-Exp Region 10'!$P$9, 0)","v":{"v":0,"d":"$0.00"}},{"$f":"IFERROR('MMA Rev-Exp Region 10'!$Q$41/'MMA Rev-Exp Region 10'!$Q$9, 0)","v":{"v":0,"d":"$0.00"}},{"$f":"IFERROR('MMA Rev-Exp Region 10'!$R$41/'MMA Rev-Exp Region 10'!$R$9, 0)","v":{"v":0,"d":"$0.00"}},{"$f":"IFERROR('MMA Rev-Exp Region 10'!$S$41/'MMA Rev-Exp Region 10'!$S$9, 0)","v":{"v":0,"d":"$0.00"}},{"$f":"IFERROR('MMA Rev-Exp Region 10'!$T$41/'MMA Rev-Exp Region 10'!$T$9, 0)","v":{"v":0,"d":"$0.00"}},{"$f":"IFERROR('MMA Rev-Exp Region 10'!$U$41/'MMA Rev-Exp Region 10'!$U$9, 0)","v":{"v":0,"d":"$0.00"}},{"$f":"IFERROR('MMA Rev-Exp Region 10'!$V$41/'MMA Rev-Exp Region 10'!$V$9, 0)","v":{"v":0,"d":"$0.00"}},{"$f":"IFERROR('MMA Rev-Exp Region 10'!$W$41/'MMA Rev-Exp Region 10'!$W$9, 0)","v":{"v":0,"d":"$0.00"}},{"$f":"IFERROR('MMA Rev-Exp Region 10'!$X$41/'MMA Rev-Exp Region 10'!$X$9, 0)","v":{"v":0,"d":"$0.00"}},{"$f":"IFERROR('MMA Rev-Exp Region 10'!$Y$41/'MMA Rev-Exp Region 10'!$Y$9, 0)","v":{"v":0,"d":"$0.00"}}]
["MMA",null,null,2016,"2016-12-31","Q2","2017-06-30","Region 10","Operating Expense","Medical Benefits Expense","Mental Health Services",5.2,"Mental Health & Substance Abuse Subcapitation",{"$f":"IFERROR('MMA Rev-Exp Region 10'!$O$42/'MMA Rev-Exp Region 10'!$O$9, 0)","v":{"v":0,"d":"$0.00"}},{"$f":"IFERROR('MMA Rev-Exp Region 10'!$P$42/'MMA Rev-Exp Region 10'!$P$9, 0)","v":{"v":0,"d":"$0.00"}},{"$f":"IFERROR('MMA Rev-Exp Region 10'!$Q$42/'MMA Rev-Exp Region 10'!$Q$9, 0)","v":{"v":0,"d":"$0.00"}},{"$f":"IFERROR('MMA Rev-Exp Region 10'!$R$42/'MMA Rev-Exp Region 10'!$R$9, 0)","v":{"v":0,"d":"$0.00"}},{"$f":"IFERROR('MMA Rev-Exp Region 10'!$S$42/'MMA Rev-Exp Region 10'!$S$9, 0)","v":{"v":0,"d":"$0.00"}},{"$f":"IFERROR('MMA Rev-Exp Region 10'!$T$42/'MMA Rev-Exp Region 10'!$T$9, 0)","v":{"v":0,"d":"$0.00"}},{"$f":"IFERROR('MMA Rev-Exp Region 10'!$U$42/'MMA Rev-Exp Region 10'!$U$9, 0)","v":{"v":0,"d":"$0.00"}},{"$f":"IFERROR('MMA Rev-Exp Region 10'!$V$42/'MMA Rev-Exp Region 10'!$V$9, 0)","v":{"v":0,"d":"$0.00"}},{"$f":"IFERROR('MMA Rev-Exp Region 10'!$W$42/'MMA Rev-Exp Region 10'!$W$9, 0)","v":{"v":0,"d":"$0.00"}},{"$f":"IFERROR('MMA Rev-Exp Region 10'!$X$42/'MMA Rev-Exp Region 10'!$X$9, 0)","v":{"v":0,"d":"$0.00"}},{"$f":"IFERROR('MMA Rev-Exp Region 10'!$Y$42/'MMA Rev-Exp Region 10'!$Y$9, 0)","v":{"v":0,"d":"$0.00"}}]
["MMA",null,null,2016,"2016-12-31","Q2","2017-06-30","Region 10","Operating Expense","Medical Benefits Expense","Mental Health Services",5.3,"Ending IBNP for Mental Health & Substance Abuse",{"$f":"IFERROR('MMA Rev-Exp Region 10'!$O$43/'MMA Rev-Exp Region 10'!$O$9, 0)","v":{"v":0,"d":"$0.00"}},{"$f":"IFERROR('MMA Rev-Exp Region 10'!$P$43/'MMA Rev-Exp Region 10'!$P$9, 0)","v":{"v":0,"d":"$0.00"}},{"$f":"IFERROR('MMA Rev-Exp Region 10'!$Q$43/'MMA Rev-Exp Region 10'!$Q$9, 0)","v":{"v":0,"d":"$0.00"}},{"$f":"IFERROR('MMA Rev-Exp Region 10'!$R$43/'MMA Rev-Exp Region 10'!$R$9, 0)","v":{"v":0,"d":"$0.00"}},{"$f":"IFERROR('MMA Rev-Exp Region 10'!$S$43/'MMA Rev-Exp Region 10'!$S$9, 0)","v":{"v":0,"d":"$0.00"}},{"$f":"IFERROR('MMA Rev-Exp Region 10'!$T$43/'MMA Rev-Exp Region 10'!$T$9, 0)","v":{"v":0,"d":"$0.00"}},{"$f":"IFERROR('MMA Rev-Exp Region 10'!$U$43/'MMA Rev-Exp Region 10'!$U$9, 0)","v":{"v":0,"d":"$0.00"}},{"$f":"IFERROR('MMA Rev-Exp Region 10'!$V$43/'MMA Rev-Exp Region 10'!$V$9, 0)","v":{"v":0,"d":"$0.00"}},{"$f":"IFERROR('MMA Rev-Exp Region 10'!$W$43/'MMA Rev-Exp Region 10'!$W$9, 0)","v":{"v":0,"d":"$0.00"}},{"$f":"IFERROR('MMA Rev-Exp Region 10'!$X$43/'MMA Rev-Exp Region 10'!$X$9, 0)","v":{"v":0,"d":"$0.00"}},{"$f":"IFERROR('MMA Rev-Exp Region 10'!$Y$43/'MMA Rev-Exp Region 10'!$Y$9, 0)","v":{"v":0,"d":"$0.00"}}]
["MMA",null,null,2016,"2016-12-31","Q2","2017-06-30","Region 10","Operating Expense","Medical Benefits Expense","Mental Health Services","5.4","Mental Health Settlements",{"$f":"IFERROR('MMA Rev-Exp Region 10'!$O$44/'MMA Rev-Exp Region 10'!$O$9, 0)","v":{"v":0,"d":"$0.00"}},{"$f":"IFERROR('MMA Rev-Exp Region 10'!$P$44/'MMA Rev-Exp Region 10'!$P$9, 0)","v":{"v":0,"d":"$0.00"}},{"$f":"IFERROR('MMA Rev-Exp Region 10'!$Q$44/'MMA Rev-Exp Region 10'!$Q$9, 0)","v":{"v":0,"d":"$0.00"}},{"$f":"IFERROR('MMA Rev-Exp Region 10'!$R$44/'MMA Rev-Exp Region 10'!$R$9, 0)","v":{"v":0,"d":"$0.00"}},{"$f":"IFERROR('MMA Rev-Exp Region 10'!$S$44/'MMA Rev-Exp Region 10'!$S$9, 0)","v":{"v":0,"d":"$0.00"}},{"$f":"IFERROR('MMA Rev-Exp Region 10'!$T$44/'MMA Rev-Exp Region 10'!$T$9, 0)","v":{"v":0,"d":"$0.00"}},{"$f":"IFERROR('MMA Rev-Exp Region 10'!$U$44/'MMA Rev-Exp Region 10'!$U$9, 0)","v":{"v":0,"d":"$0.00"}},{"$f":"IFERROR('MMA Rev-Exp Region 10'!$V$44/'MMA Rev-Exp Region 10'!$V$9, 0)","v":{"v":0,"d":"$0.00"}},{"$f":"IFERROR('MMA Rev-Exp Region 10'!$W$44/'MMA Rev-Exp Region 10'!$W$9, 0)","v":{"v":0,"d":"$0.00"}},{"$f":"IFERROR('MMA Rev-Exp Region 10'!$X$44/'MMA Rev-Exp Region 10'!$X$9, 0)","v":{"v":0,"d":"$0.00"}},{"$f":"IFERROR('MMA Rev-Exp Region 10'!$Y$44/'MMA Rev-Exp Region 10'!$Y$9, 0)","v":{"v":0,"d":"$0.00"}}]
["MMA",null,null,2016,"2016-12-31","Q2","2017-06-30","Region 10","Operating Expense","Medical Benefits Expense","Dental Services",6.1,"Dental FFS",{"$f":"IFERROR('MMA Rev-Exp Region 10'!$O$46/'MMA Rev-Exp Region 10'!$O$9, 0)","v":{"v":0,"d":"$0.00"}},{"$f":"IFERROR('MMA Rev-Exp Region 10'!$P$46/'MMA Rev-Exp Region 10'!$P$9, 0)","v":{"v":0,"d":"$0.00"}},{"$f":"IFERROR('MMA Rev-Exp Region 10'!$Q$46/'MMA Rev-Exp Region 10'!$Q$9, 0)","v":{"v":0,"d":"$0.00"}},{"$f":"IFERROR('MMA Rev-Exp Region 10'!$R$46/'MMA Rev-Exp Region 10'!$R$9, 0)","v":{"v":0,"d":"$0.00"}},{"$f":"IFERROR('MMA Rev-Exp Region 10'!$S$46/'MMA Rev-Exp Region 10'!$S$9, 0)","v":{"v":0,"d":"$0.00"}},{"$f":"IFERROR('MMA Rev-Exp Region 10'!$T$46/'MMA Rev-Exp Region 10'!$T$9, 0)","v":{"v":0,"d":"$0.00"}},{"$f":"IFERROR('MMA Rev-Exp Region 10'!$U$46/'MMA Rev-Exp Region 10'!$U$9, 0)","v":{"v":0,"d":"$0.00"}},{"$f":"IFERROR('MMA Rev-Exp Region 10'!$V$46/'MMA Rev-Exp Region 10'!$V$9, 0)","v":{"v":0,"d":"$0.00"}},{"$f":"IFERROR('MMA Rev-Exp Region 10'!$W$46/'MMA Rev-Exp Region 10'!$W$9, 0)","v":{"v":0,"d":"$0.00"}},{"$f":"IFERROR('MMA Rev-Exp Region 10'!$X$46/'MMA Rev-Exp Region 10'!$X$9, 0)","v":{"v":0,"d":"$0.00"}},{"$f":"IFERROR('MMA Rev-Exp Region 10'!$Y$46/'MMA Rev-Exp Region 10'!$Y$9, 0)","v":{"v":0,"d":"$0.00"}}]
["MMA",null,null,2016,"2016-12-31","Q2","2017-06-30","Region 10","Operating Expense","Medical Benefits Expense","Dental Services",6.2,"Dental Subcapitation",{"$f":"IFERROR('MMA Rev-Exp Region 10'!$O$47/'MMA Rev-Exp Region 10'!$O$9, 0)","v":{"v":0,"d":"$0.00"}},{"$f":"IFERROR('MMA Rev-Exp Region 10'!$P$47/'MMA Rev-Exp Region 10'!$P$9, 0)","v":{"v":0,"d":"$0.00"}},{"$f":"IFERROR('MMA Rev-Exp Region 10'!$Q$47/'MMA Rev-Exp Region 10'!$Q$9, 0)","v":{"v":0,"d":"$0.00"}},{"$f":"IFERROR('MMA Rev-Exp Region 10'!$R$47/'MMA Rev-Exp Region 10'!$R$9, 0)","v":{"v":0,"d":"$0.00"}},{"$f":"IFERROR('MMA Rev-Exp Region 10'!$S$47/'MMA Rev-Exp Region 10'!$S$9, 0)","v":{"v":0,"d":"$0.00"}},{"$f":"IFERROR('MMA Rev-Exp Region 10'!$T$47/'MMA Rev-Exp Region 10'!$T$9, 0)","v":{"v":0,"d":"$0.00"}},{"$f":"IFERROR('MMA Rev-Exp Region 10'!$U$47/'MMA Rev-Exp Region 10'!$U$9, 0)","v":{"v":0,"d":"$0.00"}},{"$f":"IFERROR('MMA Rev-Exp Region 10'!$V$47/'MMA Rev-Exp Region 10'!$V$9, 0)","v":{"v":0,"d":"$0.00"}},{"$f":"IFERROR('MMA Rev-Exp Region 10'!$W$47/'MMA Rev-Exp Region 10'!$W$9, 0)","v":{"v":0,"d":"$0.00"}},{"$f":"IFERROR('MMA Rev-Exp Region 10'!$X$47/'MMA Rev-Exp Region 10'!$X$9, 0)","v":{"v":0,"d":"$0.00"}},{"$f":"IFERROR('MMA Rev-Exp Region 10'!$Y$47/'MMA Rev-Exp Region 10'!$Y$9, 0)","v":{"v":0,"d":"$0.00"}}]
["MMA",null,null,2016,"2016-12-31","Q2","2017-06-30","Region 10","Operating Expense","Medical Benefits Expense","Dental Services",6.3,"Ending IBNP for Dental Services",{"$f":"IFERROR('MMA Rev-Exp Region 10'!$O$48/'MMA Rev-Exp Region 10'!$O$9, 0)","v":{"v":0,"d":"$0.00"}},{"$f":"IFERROR('MMA Rev-Exp Region 10'!$P$48/'MMA Rev-Exp Region 10'!$P$9, 0)","v":{"v":0,"d":"$0.00"}},{"$f":"IFERROR('MMA Rev-Exp Region 10'!$Q$48/'MMA Rev-Exp Region 10'!$Q$9, 0)","v":{"v":0,"d":"$0.00"}},{"$f":"IFERROR('MMA Rev-Exp Region 10'!$R$48/'MMA Rev-Exp Region 10'!$R$9, 0)","v":{"v":0,"d":"$0.00"}},{"$f":"IFERROR('MMA Rev-Exp Region 10'!$S$48/'MMA Rev-Exp Region 10'!$S$9, 0)","v":{"v":0,"d":"$0.00"}},{"$f":"IFERROR('MMA Rev-Exp Region 10'!$T$48/'MMA Rev-Exp Region 10'!$T$9, 0)","v":{"v":0,"d":"$0.00"}},{"$f":"IFERROR('MMA Rev-Exp Region 10'!$U$48/'MMA Rev-Exp Region 10'!$U$9, 0)","v":{"v":0,"d":"$0.00"}},{"$f":"IFERROR('MMA Rev-Exp Region 10'!$V$48/'MMA Rev-Exp Region 10'!$V$9, 0)","v":{"v":0,"d":"$0.00"}},{"$f":"IFERROR('MMA Rev-Exp Region 10'!$W$48/'MMA Rev-Exp Region 10'!$W$9, 0)","v":{"v":0,"d":"$0.00"}},{"$f":"IFERROR('MMA Rev-Exp Region 10'!$X$48/'MMA Rev-Exp Region 10'!$X$9, 0)","v":{"v":0,"d":"$0.00"}},{"$f":"IFERROR('MMA Rev-Exp Region 10'!$Y$48/'MMA Rev-Exp Region 10'!$Y$9, 0)","v":{"v":0,"d":"$0.00"}}]
["MMA",null,null,2016,"2016-12-31","Q2","2017-06-30","Region 10","Operating Expense","Medical Benefits Expense","Dental Services","6.4","Dental Settlements",{"$f":"IFERROR('MMA Rev-Exp Region 10'!$O$49/'MMA Rev-Exp Region 10'!$O$9, 0)","v":{"v":0,"d":"$0.00"}},{"$f":"IFERROR('MMA Rev-Exp Region 10'!$P$49/'MMA Rev-Exp Region 10'!$P$9, 0)","v":{"v":0,"d":"$0.00"}},{"$f":"IFERROR('MMA Rev-Exp Region 10'!$Q$49/'MMA Rev-Exp Region 10'!$Q$9, 0)","v":{"v":0,"d":"$0.00"}},{"$f":"IFERROR('MMA Rev-Exp Region 10'!$R$49/'MMA Rev-Exp Region 10'!$R$9, 0)","v":{"v":0,"d":"$0.00"}},{"$f":"IFERROR('MMA Rev-Exp Region 10'!$S$49/'MMA Rev-Exp Region 10'!$S$9, 0)","v":{"v":0,"d":"$0.00"}},{"$f":"IFERROR('MMA Rev-Exp Region 10'!$T$49/'MMA Rev-Exp Region 10'!$T$9, 0)","v":{"v":0,"d":"$0.00"}},{"$f":"IFERROR('MMA Rev-Exp Region 10'!$U$49/'MMA Rev-Exp Region 10'!$U$9, 0)","v":{"v":0,"d":"$0.00"}},{"$f":"IFERROR('MMA Rev-Exp Region 10'!$V$49/'MMA Rev-Exp Region 10'!$V$9, 0)","v":{"v":0,"d":"$0.00"}},{"$f":"IFERROR('MMA Rev-Exp Region 10'!$W$49/'MMA Rev-Exp Region 10'!$W$9, 0)","v":{"v":0,"d":"$0.00"}},{"$f":"IFERROR('MMA Rev-Exp Region 10'!$X$49/'MMA Rev-Exp Region 10'!$X$9, 0)","v":{"v":0,"d":"$0.00"}},{"$f":"IFERROR('MMA Rev-Exp Region 10'!$Y$49/'MMA Rev-Exp Region 10'!$Y$9, 0)","v":{"v":0,"d":"$0.00"}}]
["MMA",null,null,2016,"2016-12-31","Q2","2017-06-30","Region 10","Operating Expense","Medical Benefits Expense","Transportation Services",7.1,"Transportation FFS",{"$f":"IFERROR('MMA Rev-Exp Region 10'!$O$51/'MMA Rev-Exp Region 10'!$O$9, 0)","v":{"v":0,"d":"$0.00"}},{"$f":"IFERROR('MMA Rev-Exp Region 10'!$P$51/'MMA Rev-Exp Region 10'!$P$9, 0)","v":{"v":0,"d":"$0.00"}},{"$f":"IFERROR('MMA Rev-Exp Region 10'!$Q$51/'MMA Rev-Exp Region 10'!$Q$9, 0)","v":{"v":0,"d":"$0.00"}},{"$f":"IFERROR('MMA Rev-Exp Region 10'!$R$51/'MMA Rev-Exp Region 10'!$R$9, 0)","v":{"v":0,"d":"$0.00"}},{"$f":"IFERROR('MMA Rev-Exp Region 10'!$S$51/'MMA Rev-Exp Region 10'!$S$9, 0)","v":{"v":0,"d":"$0.00"}},{"$f":"IFERROR('MMA Rev-Exp Region 10'!$T$51/'MMA Rev-Exp Region 10'!$T$9, 0)","v":{"v":0,"d":"$0.00"}},{"$f":"IFERROR('MMA Rev-Exp Region 10'!$U$51/'MMA Rev-Exp Region 10'!$U$9, 0)","v":{"v":0,"d":"$0.00"}},{"$f":"IFERROR('MMA Rev-Exp Region 10'!$V$51/'MMA Rev-Exp Region 10'!$V$9, 0)","v":{"v":0,"d":"$0.00"}},{"$f":"IFERROR('MMA Rev-Exp Region 10'!$W$51/'MMA Rev-Exp Region 10'!$W$9, 0)","v":{"v":0,"d":"$0.00"}},{"$f":"IFERROR('MMA Rev-Exp Region 10'!$X$51/'MMA Rev-Exp Region 10'!$X$9, 0)","v":{"v":0,"d":"$0.00"}},{"$f":"IFERROR('MMA Rev-Exp Region 10'!$Y$51/'MMA Rev-Exp Region 10'!$Y$9, 0)","v":{"v":0,"d":"$0.00"}}]
["MMA",null,null,2016,"2016-12-31","Q2","2017-06-30","Region 10","Operating Expense","Medical Benefits Expense","Transportation Services",7.2,"Transportation Subcapitation",{"$f":"IFERROR('MMA Rev-Exp Region 10'!$O$52/'MMA Rev-Exp Region 10'!$O$9, 0)","v":{"v":0,"d":"$0.00"}},{"$f":"IFERROR('MMA Rev-Exp Region 10'!$P$52/'MMA Rev-Exp Region 10'!$P$9, 0)","v":{"v":0,"d":"$0.00"}},{"$f":"IFERROR('MMA Rev-Exp Region 10'!$Q$52/'MMA Rev-Exp Region 10'!$Q$9, 0)","v":{"v":0,"d":"$0.00"}},{"$f":"IFERROR('MMA Rev-Exp Region 10'!$R$52/'MMA Rev-Exp Region 10'!$R$9, 0)","v":{"v":0,"d":"$0.00"}},{"$f":"IFERROR('MMA Rev-Exp Region 10'!$S$52/'MMA Rev-Exp Region 10'!$S$9, 0)","v":{"v":0,"d":"$0.00"}},{"$f":"IFERROR('MMA Rev-Exp Region 10'!$T$52/'MMA Rev-Exp Region 10'!$T$9, 0)","v":{"v":0,"d":"$0.00"}},{"$f":"IFERROR('MMA Rev-Exp Region 10'!$U$52/'MMA Rev-Exp Region 10'!$U$9, 0)","v":{"v":0,"d":"$0.00"}},{"$f":"IFERROR('MMA Rev-Exp Region 10'!$V$52/'MMA Rev-Exp Region 10'!$V$9, 0)","v":{"v":0,"d":"$0.00"}},{"$f":"IFERROR('MMA Rev-Exp Region 10'!$W$52/'MMA Rev-Exp Region 10'!$W$9, 0)","v":{"v":0,"d":"$0.00"}},{"$f":"IFERROR('MMA Rev-Exp Region 10'!$X$52/'MMA Rev-Exp Region 10'!$X$9, 0)","v":{"v":0,"d":"$0.00"}},{"$f":"IFERROR('MMA Rev-Exp Region 10'!$Y$52/'MMA Rev-Exp Region 10'!$Y$9, 0)","v":{"v":0,"d":"$0.00"}}]
["MMA",null,null,2016,"2016-12-31","Q2","2017-06-30","Region 10","Operating Expense","Medical Benefits Expense","Transportation Services",7.3,"Ending IBNP for Transportation",{"$f":"IFERROR('MMA Rev-Exp Region 10'!$O$53/'MMA Rev-Exp Region 10'!$O$9, 0)","v":{"v":0,"d":"$0.00"}},{"$f":"IFERROR('MMA Rev-Exp Region 10'!$P$53/'MMA Rev-Exp Region 10'!$P$9, 0)","v":{"v":0,"d":"$0.00"}},{"$f":"IFERROR('MMA Rev-Exp Region 10'!$Q$53/'MMA Rev-Exp Region 10'!$Q$9, 0)","v":{"v":0,"d":"$0.00"}},{"$f":"IFERROR('MMA Rev-Exp Region 10'!$R$53/'MMA Rev-Exp Region 10'!$R$9, 0)","v":{"v":0,"d":"$0.00"}},{"$f":"IFERROR('MMA Rev-Exp Region 10'!$S$53/'MMA Rev-Exp Region 10'!$S$9, 0)","v":{"v":0,"d":"$0.00"}},{"$f":"IFERROR('MMA Rev-Exp Region 10'!$T$53/'MMA Rev-Exp Region 10'!$T$9, 0)","v":{"v":0,"d":"$0.00"}},{"$f":"IFERROR('MMA Rev-Exp Region 10'!$U$53/'MMA Rev-Exp Region 10'!$U$9, 0)","v":{"v":0,"d":"$0.00"}},{"$f":"IFERROR('MMA Rev-Exp Region 10'!$V$53/'MMA Rev-Exp Region 10'!$V$9, 0)","v":{"v":0,"d":"$0.00"}},{"$f":"IFERROR('MMA Rev-Exp Region 10'!$W$53/'MMA Rev-Exp Region 10'!$W$9, 0)","v":{"v":0,"d":"$0.00"}},{"$f":"IFERROR('MMA Rev-Exp Region 10'!$X$53/'MMA Rev-Exp Region 10'!$X$9, 0)","v":{"v":0,"d":"$0.00"}},{"$f":"IFERROR('MMA Rev-Exp Region 10'!$Y$53/'MMA Rev-Exp Region 10'!$Y$9, 0)","v":{"v":0,"d":"$0.00"}}]
["MMA",null,null,2016,"2016-12-31","Q2","2017-06-30","Region 10","Operating Expense","Medical Benefits Expense","Transportation Services","7.4","Transportation Settlements",{"$f":"IFERROR('MMA Rev-Exp Region 10'!$O$54/'MMA Rev-Exp Region 10'!$O$9, 0)","v":{"v":0,"d":"$0.00"}},{"$f":"IFERROR('MMA Rev-Exp Region 10'!$P$54/'MMA Rev-Exp Region 10'!$P$9, 0)","v":{"v":0,"d":"$0.00"}},{"$f":"IFERROR('MMA Rev-Exp Region 10'!$Q$54/'MMA Rev-Exp Region 10'!$Q$9, 0)","v":{"v":0,"d":"$0.00"}},{"$f":"IFERROR('MMA Rev-Exp Region 10'!$R$54/'MMA Rev-Exp Region 10'!$R$9, 0)","v":{"v":0,"d":"$0.00"}},{"$f":"IFERROR('MMA Rev-Exp Region 10'!$S$54/'MMA Rev-Exp Region 10'!$S$9, 0)","v":{"v":0,"d":"$0.00"}},{"$f":"IFERROR('MMA Rev-Exp Region 10'!$T$54/'MMA Rev-Exp Region 10'!$T$9, 0)","v":{"v":0,"d":"$0.00"}},{"$f":"IFERROR('MMA Rev-Exp Region 10'!$U$54/'MMA Rev-Exp Region 10'!$U$9, 0)","v":{"v":0,"d":"$0.00"}},{"$f":"IFERROR('MMA Rev-Exp Region 10'!$V$54/'MMA Rev-Exp Region 10'!$V$9, 0)","v":{"v":0,"d":"$0.00"}},{"$f":"IFERROR('MMA Rev-Exp Region 10'!$W$54/'MMA Rev-Exp Region 10'!$W$9, 0)","v":{"v":0,"d":"$0.00"}},{"$f":"IFERROR('MMA Rev-Exp Region 10'!$X$54/'MMA Rev-Exp Region 10'!$X$9, 0)","v":{"v":0,"d":"$0.00"}},{"$f":"IFERROR('MMA Rev-Exp Region 10'!$Y$54/'MMA Rev-Exp Region 10'!$Y$9, 0)","v":{"v":0,"d":"$0.00"}}]
["MMA",null,null,2016,"2016-12-31","Q2","2017-06-30","Region 10","Operating Expense","Medical Benefits Expense","Pharmacy Services",8.1,"Prescription Drugs FFS",{"$f":"IFERROR('MMA Rev-Exp Region 10'!$O$56/'MMA Rev-Exp Region 10'!$O$9, 0)","v":{"v":0,"d":"$0.00"}},{"$f":"IFERROR('MMA Rev-Exp Region 10'!$P$56/'MMA Rev-Exp Region 10'!$P$9, 0)","v":{"v":0,"d":"$0.00"}},{"$f":"IFERROR('MMA Rev-Exp Region 10'!$Q$56/'MMA Rev-Exp Region 10'!$Q$9, 0)","v":{"v":0,"d":"$0.00"}},{"$f":"IFERROR('MMA Rev-Exp Region 10'!$R$56/'MMA Rev-Exp Region 10'!$R$9, 0)","v":{"v":0,"d":"$0.00"}},{"$f":"IFERROR('MMA Rev-Exp Region 10'!$S$56/'MMA Rev-Exp Region 10'!$S$9, 0)","v":{"v":0,"d":"$0.00"}},{"$f":"IFERROR('MMA Rev-Exp Region 10'!$T$56/'MMA Rev-Exp Region 10'!$T$9, 0)","v":{"v":0,"d":"$0.00"}},{"$f":"IFERROR('MMA Rev-Exp Region 10'!$U$56/'MMA Rev-Exp Region 10'!$U$9, 0)","v":{"v":0,"d":"$0.00"}},{"$f":"IFERROR('MMA Rev-Exp Region 10'!$V$56/'MMA Rev-Exp Region 10'!$V$9, 0)","v":{"v":0,"d":"$0.00"}},{"$f":"IFERROR('MMA Rev-Exp Region 10'!$W$56/'MMA Rev-Exp Region 10'!$W$9, 0)","v":{"v":0,"d":"$0.00"}},{"$f":"IFERROR('MMA Rev-Exp Region 10'!$X$56/'MMA Rev-Exp Region 10'!$X$9, 0)","v":{"v":0,"d":"$0.00"}},{"$f":"IFERROR('MMA Rev-Exp Region 10'!$Y$56/'MMA Rev-Exp Region 10'!$Y$9, 0)","v":{"v":0,"d":"$0.00"}}]
["MMA",null,null,2016,"2016-12-31","Q2","2017-06-30","Region 10","Operating Expense","Medical Benefits Expense","Pharmacy Services","8.2","Hepatitis C Prescription Drug FFS",{"$f":"IFERROR('MMA Rev-Exp Region 10'!$O$57/'MMA Rev-Exp Region 10'!$O$9, 0)","v":{"v":0,"d":"$0.00"}},{"$f":"IFERROR('MMA Rev-Exp Region 10'!$P$57/'MMA Rev-Exp Region 10'!$P$9, 0)","v":{"v":0,"d":"$0.00"}},{"$f":"IFERROR('MMA Rev-Exp Region 10'!$Q$57/'MMA Rev-Exp Region 10'!$Q$9, 0)","v":{"v":0,"d":"$0.00"}},{"$f":"IFERROR('MMA Rev-Exp Region 10'!$R$57/'MMA Rev-Exp Region 10'!$R$9, 0)","v":{"v":0,"d":"$0.00"}},{"$f":"IFERROR('MMA Rev-Exp Region 10'!$S$57/'MMA Rev-Exp Region 10'!$S$9, 0)","v":{"v":0,"d":"$0.00"}},{"$f":"IFERROR('MMA Rev-Exp Region 10'!$T$57/'MMA Rev-Exp Region 10'!$T$9, 0)","v":{"v":0,"d":"$0.00"}},{"$f":"IFERROR('MMA Rev-Exp Region 10'!$U$57/'MMA Rev-Exp Region 10'!$U$9, 0)","v":{"v":0,"d":"$0.00"}},{"$f":"IFERROR('MMA Rev-Exp Region 10'!$V$57/'MMA Rev-Exp Region 10'!$V$9, 0)","v":{"v":0,"d":"$0.00"}},{"$f":"IFERROR('MMA Rev-Exp Region 10'!$W$57/'MMA Rev-Exp Region 10'!$W$9, 0)","v":{"v":0,"d":"$0.00"}},{"$f":"IFERROR('MMA Rev-Exp Region 10'!$X$57/'MMA Rev-Exp Region 10'!$X$9, 0)","v":{"v":0,"d":"$0.00"}},{"$f":"IFERROR('MMA Rev-Exp Region 10'!$Y$57/'MMA Rev-Exp Region 10'!$Y$9, 0)","v":{"v":0,"d":"$0.00"}}]
["MMA",null,null,2016,"2016-12-31","Q2","2017-06-30","Region 10","Operating Expense","Medical Benefits Expense","Pharmacy Services","8.3","Ending IBNP for Prescription Drugs",{"$f":"IFERROR('MMA Rev-Exp Region 10'!$O$58/'MMA Rev-Exp Region 10'!$O$9, 0)","v":{"v":0,"d":"$0.00"}},{"$f":"IFERROR('MMA Rev-Exp Region 10'!$P$58/'MMA Rev-Exp Region 10'!$P$9, 0)","v":{"v":0,"d":"$0.00"}},{"$f":"IFERROR('MMA Rev-Exp Region 10'!$Q$58/'MMA Rev-Exp Region 10'!$Q$9, 0)","v":{"v":0,"d":"$0.00"}},{"$f":"IFERROR('MMA Rev-Exp Region 10'!$R$58/'MMA Rev-Exp Region 10'!$R$9, 0)","v":{"v":0,"d":"$0.00"}},{"$f":"IFERROR('MMA Rev-Exp Region 10'!$S$58/'MMA Rev-Exp Region 10'!$S$9, 0)","v":{"v":0,"d":"$0.00"}},{"$f":"IFERROR('MMA Rev-Exp Region 10'!$T$58/'MMA Rev-Exp Region 10'!$T$9, 0)","v":{"v":0,"d":"$0.00"}},{"$f":"IFERROR('MMA Rev-Exp Region 10'!$U$58/'MMA Rev-Exp Region 10'!$U$9, 0)","v":{"v":0,"d":"$0.00"}},{"$f":"IFERROR('MMA Rev-Exp Region 10'!$V$58/'MMA Rev-Exp Region 10'!$V$9, 0)","v":{"v":0,"d":"$0.00"}},{"$f":"IFERROR('MMA Rev-Exp Region 10'!$W$58/'MMA Rev-Exp Region 10'!$W$9, 0)","v":{"v":0,"d":"$0.00"}},{"$f":"IFERROR('MMA Rev-Exp Region 10'!$X$58/'MMA Rev-Exp Region 10'!$X$9, 0)","v":{"v":0,"d":"$0.00"}},{"$f":"IFERROR('MMA Rev-Exp Region 10'!$Y$58/'MMA Rev-Exp Region 10'!$Y$9, 0)","v":{"v":0,"d":"$0.00"}}]
["MMA",null,null,2016,"2016-12-31","Q2","2017-06-30","Region 10","Operating Expense","Medical Benefits Expense","Pharmacy Services","8.4","Prescription Drug Rebates ",{"$f":"IFERROR('MMA Rev-Exp Region 10'!$O$59/'MMA Rev-Exp Region 10'!$O$9, 0)","v":{"v":0,"d":"$0.00"}},{"$f":"IFERROR('MMA Rev-Exp Region 10'!$P$59/'MMA Rev-Exp Region 10'!$P$9, 0)","v":{"v":0,"d":"$0.00"}},{"$f":"IFERROR('MMA Rev-Exp Region 10'!$Q$59/'MMA Rev-Exp Region 10'!$Q$9, 0)","v":{"v":0,"d":"$0.00"}},{"$f":"IFERROR('MMA Rev-Exp Region 10'!$R$59/'MMA Rev-Exp Region 10'!$R$9, 0)","v":{"v":0,"d":"$0.00"}},{"$f":"IFERROR('MMA Rev-Exp Region 10'!$S$59/'MMA Rev-Exp Region 10'!$S$9, 0)","v":{"v":0,"d":"$0.00"}},{"$f":"IFERROR('MMA Rev-Exp Region 10'!$T$59/'MMA Rev-Exp Region 10'!$T$9, 0)","v":{"v":0,"d":"$0.00"}},{"$f":"IFERROR('MMA Rev-Exp Region 10'!$U$59/'MMA Rev-Exp Region 10'!$U$9, 0)","v":{"v":0,"d":"$0.00"}},{"$f":"IFERROR('MMA Rev-Exp Region 10'!$V$59/'MMA Rev-Exp Region 10'!$V$9, 0)","v":{"v":0,"d":"$0.00"}},{"$f":"IFERROR('MMA Rev-Exp Region 10'!$W$59/'MMA Rev-Exp Region 10'!$W$9, 0)","v":{"v":0,"d":"$0.00"}},{"$f":"IFERROR('MMA Rev-Exp Region 10'!$X$59/'MMA Rev-Exp Region 10'!$X$9, 0)","v":{"v":0,"d":"$0.00"}},{"$f":"IFERROR('MMA Rev-Exp Region 10'!$Y$59/'MMA Rev-Exp Region 10'!$Y$9, 0)","v":{"v":0,"d":"$0.00"}}]
["MMA",null,null,2016,"2016-12-31","Q2","2017-06-30","Region 10","Operating Expense","Medical Benefits Expense","Pharmacy Services","8.5","Ending accrual for Rebates receivable",{"$f":"IFERROR('MMA Rev-Exp Region 10'!$O$60/'MMA Rev-Exp Region 10'!$O$9, 0)","v":{"v":0,"d":"$0.00"}},{"$f":"IFERROR('MMA Rev-Exp Region 10'!$P$60/'MMA Rev-Exp Region 10'!$P$9, 0)","v":{"v":0,"d":"$0.00"}},{"$f":"IFERROR('MMA Rev-Exp Region 10'!$Q$60/'MMA Rev-Exp Region 10'!$Q$9, 0)","v":{"v":0,"d":"$0.00"}},{"$f":"IFERROR('MMA Rev-Exp Region 10'!$R$60/'MMA Rev-Exp Region 10'!$R$9, 0)","v":{"v":0,"d":"$0.00"}},{"$f":"IFERROR('MMA Rev-Exp Region 10'!$S$60/'MMA Rev-Exp Region 10'!$S$9, 0)","v":{"v":0,"d":"$0.00"}},{"$f":"IFERROR('MMA Rev-Exp Region 10'!$T$60/'MMA Rev-Exp Region 10'!$T$9, 0)","v":{"v":0,"d":"$0.00"}},{"$f":"IFERROR('MMA Rev-Exp Region 10'!$U$60/'MMA Rev-Exp Region 10'!$U$9, 0)","v":{"v":0,"d":"$0.00"}},{"$f":"IFERROR('MMA Rev-Exp Region 10'!$V$60/'MMA Rev-Exp Region 10'!$V$9, 0)","v":{"v":0,"d":"$0.00"}},{"$f":"IFERROR('MMA Rev-Exp Region 10'!$W$60/'MMA Rev-Exp Region 10'!$W$9, 0)","v":{"v":0,"d":"$0.00"}},{"$f":"IFERROR('MMA Rev-Exp Region 10'!$X$60/'MMA Rev-Exp Region 10'!$X$9, 0)","v":{"v":0,"d":"$0.00"}},{"$f":"IFERROR('MMA Rev-Exp Region 10'!$Y$60/'MMA Rev-Exp Region 10'!$Y$9, 0)","v":{"v":0,"d":"$0.00"}}]
["MMA",null,null,2016,"2016-12-31","Q2","2017-06-30","Region 10","Operating Expense","Medical Benefits Expense","Pharmacy Services","8.6","Prescription Drugs Subcapitation",{"$f":"IFERROR('MMA Rev-Exp Region 10'!$O$61/'MMA Rev-Exp Region 10'!$O$9, 0)","v":{"v":0,"d":"$0.00"}},{"$f":"IFERROR('MMA Rev-Exp Region 10'!$P$61/'MMA Rev-Exp Region 10'!$P$9, 0)","v":{"v":0,"d":"$0.00"}},{"$f":"IFERROR('MMA Rev-Exp Region 10'!$Q$61/'MMA Rev-Exp Region 10'!$Q$9, 0)","v":{"v":0,"d":"$0.00"}},{"$f":"IFERROR('MMA Rev-Exp Region 10'!$R$61/'MMA Rev-Exp Region 10'!$R$9, 0)","v":{"v":0,"d":"$0.00"}},{"$f":"IFERROR('MMA Rev-Exp Region 10'!$S$61/'MMA Rev-Exp Region 10'!$S$9, 0)","v":{"v":0,"d":"$0.00"}},{"$f":"IFERROR('MMA Rev-Exp Region 10'!$T$61/'MMA Rev-Exp Region 10'!$T$9, 0)","v":{"v":0,"d":"$0.00"}},{"$f":"IFERROR('MMA Rev-Exp Region 10'!$U$61/'MMA Rev-Exp Region 10'!$U$9, 0)","v":{"v":0,"d":"$0.00"}},{"$f":"IFERROR('MMA Rev-Exp Region 10'!$V$61/'MMA Rev-Exp Region 10'!$V$9, 0)","v":{"v":0,"d":"$0.00"}},{"$f":"IFERROR('MMA Rev-Exp Region 10'!$W$61/'MMA Rev-Exp Region 10'!$W$9, 0)","v":{"v":0,"d":"$0.00"}},{"$f":"IFERROR('MMA Rev-Exp Region 10'!$X$61/'MMA Rev-Exp Region 10'!$X$9, 0)","v":{"v":0,"d":"$0.00"}},{"$f":"IFERROR('MMA Rev-Exp Region 10'!$Y$61/'MMA Rev-Exp Region 10'!$Y$9, 0)","v":{"v":0,"d":"$0.00"}}]
["MMA",null,null,2016,"2016-12-31","Q2","2017-06-30","Region 10","Operating Expense","Medical Benefits Expense","Pharmacy Services","8.7","Prescription Drug Settlements",{"$f":"IFERROR('MMA Rev-Exp Region 10'!$O$62/'MMA Rev-Exp Region 10'!$O$9, 0)","v":{"v":0,"d":"$0.00"}},{"$f":"IFERROR('MMA Rev-Exp Region 10'!$P$62/'MMA Rev-Exp Region 10'!$P$9, 0)","v":{"v":0,"d":"$0.00"}},{"$f":"IFERROR('MMA Rev-Exp Region 10'!$Q$62/'MMA Rev-Exp Region 10'!$Q$9, 0)","v":{"v":0,"d":"$0.00"}},{"$f":"IFERROR('MMA Rev-Exp Region 10'!$R$62/'MMA Rev-Exp Region 10'!$R$9, 0)","v":{"v":0,"d":"$0.00"}},{"$f":"IFERROR('MMA Rev-Exp Region 10'!$S$62/'MMA Rev-Exp Region 10'!$S$9, 0)","v":{"v":0,"d":"$0.00"}},{"$f":"IFERROR('MMA Rev-Exp Region 10'!$T$62/'MMA Rev-Exp Region 10'!$T$9, 0)","v":{"v":0,"d":"$0.00"}},{"$f":"IFERROR('MMA Rev-Exp Region 10'!$U$62/'MMA Rev-Exp Region 10'!$U$9, 0)","v":{"v":0,"d":"$0.00"}},{"$f":"IFERROR('MMA Rev-Exp Region 10'!$V$62/'MMA Rev-Exp Region 10'!$V$9, 0)","v":{"v":0,"d":"$0.00"}},{"$f":"IFERROR('MMA Rev-Exp Region 10'!$W$62/'MMA Rev-Exp Region 10'!$W$9, 0)","v":{"v":0,"d":"$0.00"}},{"$f":"IFERROR('MMA Rev-Exp Region 10'!$X$62/'MMA Rev-Exp Region 10'!$X$9, 0)","v":{"v":0,"d":"$0.00"}},{"$f":"IFERROR('MMA Rev-Exp Region 10'!$Y$62/'MMA Rev-Exp Region 10'!$Y$9, 0)","v":{"v":0,"d":"$0.00"}}]
["MMA",null,null,2016,"2016-12-31","Q2","2017-06-30","Region 10","Operating Expense","Medical Benefits Expense","Other MMA Services",9.1,"Home Health, Private Duty Nursing, Personal Care FFS",{"$f":"IFERROR('MMA Rev-Exp Region 10'!$O$64/'MMA Rev-Exp Region 10'!$O$9, 0)","v":{"v":0,"d":"$0.00"}},{"$f":"IFERROR('MMA Rev-Exp Region 10'!$P$64/'MMA Rev-Exp Region 10'!$P$9, 0)","v":{"v":0,"d":"$0.00"}},{"$f":"IFERROR('MMA Rev-Exp Region 10'!$Q$64/'MMA Rev-Exp Region 10'!$Q$9, 0)","v":{"v":0,"d":"$0.00"}},{"$f":"IFERROR('MMA Rev-Exp Region 10'!$R$64/'MMA Rev-Exp Region 10'!$R$9, 0)","v":{"v":0,"d":"$0.00"}},{"$f":"IFERROR('MMA Rev-Exp Region 10'!$S$64/'MMA Rev-Exp Region 10'!$S$9, 0)","v":{"v":0,"d":"$0.00"}},{"$f":"IFERROR('MMA Rev-Exp Region 10'!$T$64/'MMA Rev-Exp Region 10'!$T$9, 0)","v":{"v":0,"d":"$0.00"}},{"$f":"IFERROR('MMA Rev-Exp Region 10'!$U$64/'MMA Rev-Exp Region 10'!$U$9, 0)","v":{"v":0,"d":"$0.00"}},{"$f":"IFERROR('MMA Rev-Exp Region 10'!$V$64/'MMA Rev-Exp Region 10'!$V$9, 0)","v":{"v":0,"d":"$0.00"}},{"$f":"IFERROR('MMA Rev-Exp Region 10'!$W$64/'MMA Rev-Exp Region 10'!$W$9, 0)","v":{"v":0,"d":"$0.00"}},{"$f":"IFERROR('MMA Rev-Exp Region 10'!$X$64/'MMA Rev-Exp Region 10'!$X$9, 0)","v":{"v":0,"d":"$0.00"}},{"$f":"IFERROR('MMA Rev-Exp Region 10'!$Y$64/'MMA Rev-Exp Region 10'!$Y$9, 0)","v":{"v":0,"d":"$0.00"}}]
["MMA",null,null,2016,"2016-12-31","Q2","2017-06-30","Region 10","Operating Expense","Medical Benefits Expense","Other MMA Services","9.2","Hospice FFS",{"$f":"IFERROR('MMA Rev-Exp Region 10'!$O$65/'MMA Rev-Exp Region 10'!$O$9, 0)","v":{"v":0,"d":"$0.00"}},{"$f":"IFERROR('MMA Rev-Exp Region 10'!$P$65/'MMA Rev-Exp Region 10'!$P$9, 0)","v":{"v":0,"d":"$0.00"}},{"$f":"IFERROR('MMA Rev-Exp Region 10'!$Q$65/'MMA Rev-Exp Region 10'!$Q$9, 0)","v":{"v":0,"d":"$0.00"}},{"$f":"IFERROR('MMA Rev-Exp Region 10'!$R$65/'MMA Rev-Exp Region 10'!$R$9, 0)","v":{"v":0,"d":"$0.00"}},{"$f":"IFERROR('MMA Rev-Exp Region 10'!$S$65/'MMA Rev-Exp Region 10'!$S$9, 0)","v":{"v":0,"d":"$0.00"}},{"$f":"IFERROR('MMA Rev-Exp Region 10'!$T$65/'MMA Rev-Exp Region 10'!$T$9, 0)","v":{"v":0,"d":"$0.00"}},{"$f":"IFERROR('MMA Rev-Exp Region 10'!$U$65/'MMA Rev-Exp Region 10'!$U$9, 0)","v":{"v":0,"d":"$0.00"}},{"$f":"IFERROR('MMA Rev-Exp Region 10'!$V$65/'MMA Rev-Exp Region 10'!$V$9, 0)","v":{"v":0,"d":"$0.00"}},{"$f":"IFERROR('MMA Rev-Exp Region 10'!$W$65/'MMA Rev-Exp Region 10'!$W$9, 0)","v":{"v":0,"d":"$0.00"}},{"$f":"IFERROR('MMA Rev-Exp Region 10'!$X$65/'MMA Rev-Exp Region 10'!$X$9, 0)","v":{"v":0,"d":"$0.00"}},{"$f":"IFERROR('MMA Rev-Exp Region 10'!$Y$65/'MMA Rev-Exp Region 10'!$Y$9, 0)","v":{"v":0,"d":"$0.00"}}]
["MMA",null,null,2016,"2016-12-31","Q2","2017-06-30","Region 10","Operating Expense","Medical Benefits Expense","Other MMA Services","9.3","DME FFS",{"$f":"IFERROR('MMA Rev-Exp Region 10'!$O$66/'MMA Rev-Exp Region 10'!$O$9, 0)","v":{"v":0,"d":"$0.00"}},{"$f":"IFERROR('MMA Rev-Exp Region 10'!$P$66/'MMA Rev-Exp Region 10'!$P$9, 0)","v":{"v":0,"d":"$0.00"}},{"$f":"IFERROR('MMA Rev-Exp Region 10'!$Q$66/'MMA Rev-Exp Region 10'!$Q$9, 0)","v":{"v":0,"d":"$0.00"}},{"$f":"IFERROR('MMA Rev-Exp Region 10'!$R$66/'MMA Rev-Exp Region 10'!$R$9, 0)","v":{"v":0,"d":"$0.00"}},{"$f":"IFERROR('MMA Rev-Exp Region 10'!$S$66/'MMA Rev-Exp Region 10'!$S$9, 0)","v":{"v":0,"d":"$0.00"}},{"$f":"IFERROR('MMA Rev-Exp Region 10'!$T$66/'MMA Rev-Exp Region 10'!$T$9, 0)","v":{"v":0,"d":"$0.00"}},{"$f":"IFERROR('MMA Rev-Exp Region 10'!$U$66/'MMA Rev-Exp Region 10'!$U$9, 0)","v":{"v":0,"d":"$0.00"}},{"$f":"IFERROR('MMA Rev-Exp Region 10'!$V$66/'MMA Rev-Exp Region 10'!$V$9, 0)","v":{"v":0,"d":"$0.00"}},{"$f":"IFERROR('MMA Rev-Exp Region 10'!$W$66/'MMA Rev-Exp Region 10'!$W$9, 0)","v":{"v":0,"d":"$0.00"}},{"$f":"IFERROR('MMA Rev-Exp Region 10'!$X$66/'MMA Rev-Exp Region 10'!$X$9, 0)","v":{"v":0,"d":"$0.00"}},{"$f":"IFERROR('MMA Rev-Exp Region 10'!$Y$66/'MMA Rev-Exp Region 10'!$Y$9, 0)","v":{"v":0,"d":"$0.00"}}]
["MMA",null,null,2016,"2016-12-31","Q2","2017-06-30","Region 10","Operating Expense","Medical Benefits Expense","Other MMA Services","9.4","Other State Plan Services FFS",{"$f":"IFERROR('MMA Rev-Exp Region 10'!$O$67/'MMA Rev-Exp Region 10'!$O$9, 0)","v":{"v":0,"d":"$0.00"}},{"$f":"IFERROR('MMA Rev-Exp Region 10'!$P$67/'MMA Rev-Exp Region 10'!$P$9, 0)","v":{"v":0,"d":"$0.00"}},{"$f":"IFERROR('MMA Rev-Exp Region 10'!$Q$67/'MMA Rev-Exp Region 10'!$Q$9, 0)","v":{"v":0,"d":"$0.00"}},{"$f":"IFERROR('MMA Rev-Exp Region 10'!$R$67/'MMA Rev-Exp Region 10'!$R$9, 0)","v":{"v":0,"d":"$0.00"}},{"$f":"IFERROR('MMA Rev-Exp Region 10'!$S$67/'MMA Rev-Exp Region 10'!$S$9, 0)","v":{"v":0,"d":"$0.00"}},{"$f":"IFERROR('MMA Rev-Exp Region 10'!$T$67/'MMA Rev-Exp Region 10'!$T$9, 0)","v":{"v":0,"d":"$0.00"}},{"$f":"IFERROR('MMA Rev-Exp Region 10'!$U$67/'MMA Rev-Exp Region 10'!$U$9, 0)","v":{"v":0,"d":"$0.00"}},{"$f":"IFERROR('MMA Rev-Exp Region 10'!$V$67/'MMA Rev-Exp Region 10'!$V$9, 0)","v":{"v":0,"d":"$0.00"}},{"$f":"IFERROR('MMA Rev-Exp Region 10'!$W$67/'MMA Rev-Exp Region 10'!$W$9, 0)","v":{"v":0,"d":"$0.00"}},{"$f":"IFERROR('MMA Rev-Exp Region 10'!$X$67/'MMA Rev-Exp Region 10'!$X$9, 0)","v":{"v":0,"d":"$0.00"}},{"$f":"IFERROR('MMA Rev-Exp Region 10'!$Y$67/'MMA Rev-Exp Region 10'!$Y$9, 0)","v":{"v":0,"d":"$0.00"}}]
["MMA",null,null,2016,"2016-12-31","Q2","2017-06-30","Region 10","Operating Expense","Medical Benefits Expense","Other MMA Services","9.5","Other Services Subcapitation",{"$f":"IFERROR('MMA Rev-Exp Region 10'!$O$68/'MMA Rev-Exp Region 10'!$O$9, 0)","v":{"v":0,"d":"$0.00"}},{"$f":"IFERROR('MMA Rev-Exp Region 10'!$P$68/'MMA Rev-Exp Region 10'!$P$9, 0)","v":{"v":0,"d":"$0.00"}},{"$f":"IFERROR('MMA Rev-Exp Region 10'!$Q$68/'MMA Rev-Exp Region 10'!$Q$9, 0)","v":{"v":0,"d":"$0.00"}},{"$f":"IFERROR('MMA Rev-Exp Region 10'!$R$68/'MMA Rev-Exp Region 10'!$R$9, 0)","v":{"v":0,"d":"$0.00"}},{"$f":"IFERROR('MMA Rev-Exp Region 10'!$S$68/'MMA Rev-Exp Region 10'!$S$9, 0)","v":{"v":0,"d":"$0.00"}},{"$f":"IFERROR('MMA Rev-Exp Region 10'!$T$68/'MMA Rev-Exp Region 10'!$T$9, 0)","v":{"v":0,"d":"$0.00"}},{"$f":"IFERROR('MMA Rev-Exp Region 10'!$U$68/'MMA Rev-Exp Region 10'!$U$9, 0)","v":{"v":0,"d":"$0.00"}},{"$f":"IFERROR('MMA Rev-Exp Region 10'!$V$68/'MMA Rev-Exp Region 10'!$V$9, 0)","v":{"v":0,"d":"$0.00"}},{"$f":"IFERROR('MMA Rev-Exp Region 10'!$W$68/'MMA Rev-Exp Region 10'!$W$9, 0)","v":{"v":0,"d":"$0.00"}},{"$f":"IFERROR('MMA Rev-Exp Region 10'!$X$68/'MMA Rev-Exp Region 10'!$X$9, 0)","v":{"v":0,"d":"$0.00"}},{"$f":"IFERROR('MMA Rev-Exp Region 10'!$Y$68/'MMA Rev-Exp Region 10'!$Y$9, 0)","v":{"v":0,"d":"$0.00"}}]
["MMA",null,null,2016,"2016-12-31","Q2","2017-06-30","Region 10","Operating Expense","Medical Benefits Expense","Other MMA Services","9.6","Ending IBNP for Other Services",{"$f":"IFERROR('MMA Rev-Exp Region 10'!$O$69/'MMA Rev-Exp Region 10'!$O$9, 0)","v":{"v":0,"d":"$0.00"}},{"$f":"IFERROR('MMA Rev-Exp Region 10'!$P$69/'MMA Rev-Exp Region 10'!$P$9, 0)","v":{"v":0,"d":"$0.00"}},{"$f":"IFERROR('MMA Rev-Exp Region 10'!$Q$69/'MMA Rev-Exp Region 10'!$Q$9, 0)","v":{"v":0,"d":"$0.00"}},{"$f":"IFERROR('MMA Rev-Exp Region 10'!$R$69/'MMA Rev-Exp Region 10'!$R$9, 0)","v":{"v":0,"d":"$0.00"}},{"$f":"IFERROR('MMA Rev-Exp Region 10'!$S$69/'MMA Rev-Exp Region 10'!$S$9, 0)","v":{"v":0,"d":"$0.00"}},{"$f":"IFERROR('MMA Rev-Exp Region 10'!$T$69/'MMA Rev-Exp Region 10'!$T$9, 0)","v":{"v":0,"d":"$0.00"}},{"$f":"IFERROR('MMA Rev-Exp Region 10'!$U$69/'MMA Rev-Exp Region 10'!$U$9, 0)","v":{"v":0,"d":"$0.00"}},{"$f":"IFERROR('MMA Rev-Exp Region 10'!$V$69/'MMA Rev-Exp Region 10'!$V$9, 0)","v":{"v":0,"d":"$0.00"}},{"$f":"IFERROR('MMA Rev-Exp Region 10'!$W$69/'MMA Rev-Exp Region 10'!$W$9, 0)","v":{"v":0,"d":"$0.00"}},{"$f":"IFERROR('MMA Rev-Exp Region 10'!$X$69/'MMA Rev-Exp Region 10'!$X$9, 0)","v":{"v":0,"d":"$0.00"}},{"$f":"IFERROR('MMA Rev-Exp Region 10'!$Y$69/'MMA Rev-Exp Region 10'!$Y$9, 0)","v":{"v":0,"d":"$0.00"}}]
["MMA",null,null,2016,"2016-12-31","Q2","2017-06-30","Region 10","Operating Expense","Medical Benefits Expense","Other MMA Services","9.7","Other Services Settlements",{"$f":"IFERROR('MMA Rev-Exp Region 10'!$O$70/'MMA Rev-Exp Region 10'!$O$9, 0)","v":{"v":0,"d":"$0.00"}},{"$f":"IFERROR('MMA Rev-Exp Region 10'!$P$70/'MMA Rev-Exp Region 10'!$P$9, 0)","v":{"v":0,"d":"$0.00"}},{"$f":"IFERROR('MMA Rev-Exp Region 10'!$Q$70/'MMA Rev-Exp Region 10'!$Q$9, 0)","v":{"v":0,"d":"$0.00"}},{"$f":"IFERROR('MMA Rev-Exp Region 10'!$R$70/'MMA Rev-Exp Region 10'!$R$9, 0)","v":{"v":0,"d":"$0.00"}},{"$f":"IFERROR('MMA Rev-Exp Region 10'!$S$70/'MMA Rev-Exp Region 10'!$S$9, 0)","v":{"v":0,"d":"$0.00"}},{"$f":"IFERROR('MMA Rev-Exp Region 10'!$T$70/'MMA Rev-Exp Region 10'!$T$9, 0)","v":{"v":0,"d":"$0.00"}},{"$f":"IFERROR('MMA Rev-Exp Region 10'!$U$70/'MMA Rev-Exp Region 10'!$U$9, 0)","v":{"v":0,"d":"$0.00"}},{"$f":"IFERROR('MMA Rev-Exp Region 10'!$V$70/'MMA Rev-Exp Region 10'!$V$9, 0)","v":{"v":0,"d":"$0.00"}},{"$f":"IFERROR('MMA Rev-Exp Region 10'!$W$70/'MMA Rev-Exp Region 10'!$W$9, 0)","v":{"v":0,"d":"$0.00"}},{"$f":"IFERROR('MMA Rev-Exp Region 10'!$X$70/'MMA Rev-Exp Region 10'!$X$9, 0)","v":{"v":0,"d":"$0.00"}},{"$f":"IFERROR('MMA Rev-Exp Region 10'!$Y$70/'MMA Rev-Exp Region 10'!$Y$9, 0)","v":{"v":0,"d":"$0.00"}}]
["MMA",null,null,2016,"2016-12-31","Q2","2017-06-30","Region 10","Operating Expense","Medical Benefits Expense","Expanded Benefits","10.1","Expanded Benefits FFS",{"$f":"IFERROR('MMA Rev-Exp Region 10'!$O$72/'MMA Rev-Exp Region 10'!$O$9, 0)","v":{"v":0,"d":"$0.00"}},{"$f":"IFERROR('MMA Rev-Exp Region 10'!$P$72/'MMA Rev-Exp Region 10'!$P$9, 0)","v":{"v":0,"d":"$0.00"}},{"$f":"IFERROR('MMA Rev-Exp Region 10'!$Q$72/'MMA Rev-Exp Region 10'!$Q$9, 0)","v":{"v":0,"d":"$0.00"}},{"$f":"IFERROR('MMA Rev-Exp Region 10'!$R$72/'MMA Rev-Exp Region 10'!$R$9, 0)","v":{"v":0,"d":"$0.00"}},{"$f":"IFERROR('MMA Rev-Exp Region 10'!$S$72/'MMA Rev-Exp Region 10'!$S$9, 0)","v":{"v":0,"d":"$0.00"}},{"$f":"IFERROR('MMA Rev-Exp Region 10'!$T$72/'MMA Rev-Exp Region 10'!$T$9, 0)","v":{"v":0,"d":"$0.00"}},{"$f":"IFERROR('MMA Rev-Exp Region 10'!$U$72/'MMA Rev-Exp Region 10'!$U$9, 0)","v":{"v":0,"d":"$0.00"}},{"$f":"IFERROR('MMA Rev-Exp Region 10'!$V$72/'MMA Rev-Exp Region 10'!$V$9, 0)","v":{"v":0,"d":"$0.00"}},{"$f":"IFERROR('MMA Rev-Exp Region 10'!$W$72/'MMA Rev-Exp Region 10'!$W$9, 0)","v":{"v":0,"d":"$0.00"}},{"$f":"IFERROR('MMA Rev-Exp Region 10'!$X$72/'MMA Rev-Exp Region 10'!$X$9, 0)","v":{"v":0,"d":"$0.00"}},{"$f":"IFERROR('MMA Rev-Exp Region 10'!$Y$72/'MMA Rev-Exp Region 10'!$Y$9, 0)","v":{"v":0,"d":"$0.00"}}]
["MMA",null,null,2016,"2016-12-31","Q2","2017-06-30","Region 10","Operating Expense","Medical Benefits Expense","Expanded Benefits","10.2","Expanded benefits Subcapitation",{"$f":"IFERROR('MMA Rev-Exp Region 10'!$O$73/'MMA Rev-Exp Region 10'!$O$9, 0)","v":{"v":0,"d":"$0.00"}},{"$f":"IFERROR('MMA Rev-Exp Region 10'!$P$73/'MMA Rev-Exp Region 10'!$P$9, 0)","v":{"v":0,"d":"$0.00"}},{"$f":"IFERROR('MMA Rev-Exp Region 10'!$Q$73/'MMA Rev-Exp Region 10'!$Q$9, 0)","v":{"v":0,"d":"$0.00"}},{"$f":"IFERROR('MMA Rev-Exp Region 10'!$R$73/'MMA Rev-Exp Region 10'!$R$9, 0)","v":{"v":0,"d":"$0.00"}},{"$f":"IFERROR('MMA Rev-Exp Region 10'!$S$73/'MMA Rev-Exp Region 10'!$S$9, 0)","v":{"v":0,"d":"$0.00"}},{"$f":"IFERROR('MMA Rev-Exp Region 10'!$T$73/'MMA Rev-Exp Region 10'!$T$9, 0)","v":{"v":0,"d":"$0.00"}},{"$f":"IFERROR('MMA Rev-Exp Region 10'!$U$73/'MMA Rev-Exp Region 10'!$U$9, 0)","v":{"v":0,"d":"$0.00"}},{"$f":"IFERROR('MMA Rev-Exp Region 10'!$V$73/'MMA Rev-Exp Region 10'!$V$9, 0)","v":{"v":0,"d":"$0.00"}},{"$f":"IFERROR('MMA Rev-Exp Region 10'!$W$73/'MMA Rev-Exp Region 10'!$W$9, 0)","v":{"v":0,"d":"$0.00"}},{"$f":"IFERROR('MMA Rev-Exp Region 10'!$X$73/'MMA Rev-Exp Region 10'!$X$9, 0)","v":{"v":0,"d":"$0.00"}},{"$f":"IFERROR('MMA Rev-Exp Region 10'!$Y$73/'MMA Rev-Exp Region 10'!$Y$9, 0)","v":{"v":0,"d":"$0.00"}}]
["MMA",null,null,2016,"2016-12-31","Q2","2017-06-30","Region 10","Operating Expense","Medical Benefits Expense","Expanded Benefits","10.3","Ending IBNP for Expanded Benefits",{"$f":"IFERROR('MMA Rev-Exp Region 10'!$O$74/'MMA Rev-Exp Region 10'!$O$9, 0)","v":{"v":0,"d":"$0.00"}},{"$f":"IFERROR('MMA Rev-Exp Region 10'!$P$74/'MMA Rev-Exp Region 10'!$P$9, 0)","v":{"v":0,"d":"$0.00"}},{"$f":"IFERROR('MMA Rev-Exp Region 10'!$Q$74/'MMA Rev-Exp Region 10'!$Q$9, 0)","v":{"v":0,"d":"$0.00"}},{"$f":"IFERROR('MMA Rev-Exp Region 10'!$R$74/'MMA Rev-Exp Region 10'!$R$9, 0)","v":{"v":0,"d":"$0.00"}},{"$f":"IFERROR('MMA Rev-Exp Region 10'!$S$74/'MMA Rev-Exp Region 10'!$S$9, 0)","v":{"v":0,"d":"$0.00"}},{"$f":"IFERROR('MMA Rev-Exp Region 10'!$T$74/'MMA Rev-Exp Region 10'!$T$9, 0)","v":{"v":0,"d":"$0.00"}},{"$f":"IFERROR('MMA Rev-Exp Region 10'!$U$74/'MMA Rev-Exp Region 10'!$U$9, 0)","v":{"v":0,"d":"$0.00"}},{"$f":"IFERROR('MMA Rev-Exp Region 10'!$V$74/'MMA Rev-Exp Region 10'!$V$9, 0)","v":{"v":0,"d":"$0.00"}},{"$f":"IFERROR('MMA Rev-Exp Region 10'!$W$74/'MMA Rev-Exp Region 10'!$W$9, 0)","v":{"v":0,"d":"$0.00"}},{"$f":"IFERROR('MMA Rev-Exp Region 10'!$X$74/'MMA Rev-Exp Region 10'!$X$9, 0)","v":{"v":0,"d":"$0.00"}},{"$f":"IFERROR('MMA Rev-Exp Region 10'!$Y$74/'MMA Rev-Exp Region 10'!$Y$9, 0)","v":{"v":0,"d":"$0.00"}}]
["MMA",null,null,2016,"2016-12-31","Q2","2017-06-30","Region 10","Operating Expense","Medical Benefits Expense","Expanded Benefits","10.4","Expanded Benefits Settlements",{"$f":"IFERROR('MMA Rev-Exp Region 10'!$O$75/'MMA Rev-Exp Region 10'!$O$9, 0)","v":{"v":0,"d":"$0.00"}},{"$f":"IFERROR('MMA Rev-Exp Region 10'!$P$75/'MMA Rev-Exp Region 10'!$P$9, 0)","v":{"v":0,"d":"$0.00"}},{"$f":"IFERROR('MMA Rev-Exp Region 10'!$Q$75/'MMA Rev-Exp Region 10'!$Q$9, 0)","v":{"v":0,"d":"$0.00"}},{"$f":"IFERROR('MMA Rev-Exp Region 10'!$R$75/'MMA Rev-Exp Region 10'!$R$9, 0)","v":{"v":0,"d":"$0.00"}},{"$f":"IFERROR('MMA Rev-Exp Region 10'!$S$75/'MMA Rev-Exp Region 10'!$S$9, 0)","v":{"v":0,"d":"$0.00"}},{"$f":"IFERROR('MMA Rev-Exp Region 10'!$T$75/'MMA Rev-Exp Region 10'!$T$9, 0)","v":{"v":0,"d":"$0.00"}},{"$f":"IFERROR('MMA Rev-Exp Region 10'!$U$75/'MMA Rev-Exp Region 10'!$U$9, 0)","v":{"v":0,"d":"$0.00"}},{"$f":"IFERROR('MMA Rev-Exp Region 10'!$V$75/'MMA Rev-Exp Region 10'!$V$9, 0)","v":{"v":0,"d":"$0.00"}},{"$f":"IFERROR('MMA Rev-Exp Region 10'!$W$75/'MMA Rev-Exp Region 10'!$W$9, 0)","v":{"v":0,"d":"$0.00"}},{"$f":"IFERROR('MMA Rev-Exp Region 10'!$X$75/'MMA Rev-Exp Region 10'!$X$9, 0)","v":{"v":0,"d":"$0.00"}},{"$f":"IFERROR('MMA Rev-Exp Region 10'!$Y$75/'MMA Rev-Exp Region 10'!$Y$9, 0)","v":{"v":0,"d":"$0.00"}}]
["MMA",null,null,2016,"2016-12-31","Q2","2017-06-30","Region 10","Operating Expense","Medical Benefits Expense","Other Medical","11.5","TPL & Fraud/Abuse Recoveries",{"$f":"IFERROR('MMA Rev-Exp Region 10'!$O$81/'MMA Rev-Exp Region 10'!$O$9, 0)","v":{"v":0,"d":"$0.00"}},{"$f":"IFERROR('MMA Rev-Exp Region 10'!$P$81/'MMA Rev-Exp Region 10'!$P$9, 0)","v":{"v":0,"d":"$0.00"}},{"$f":"IFERROR('MMA Rev-Exp Region 10'!$Q$81/'MMA Rev-Exp Region 10'!$Q$9, 0)","v":{"v":0,"d":"$0.00"}},{"$f":"IFERROR('MMA Rev-Exp Region 10'!$R$81/'MMA Rev-Exp Region 10'!$R$9, 0)","v":{"v":0,"d":"$0.00"}},{"$f":"IFERROR('MMA Rev-Exp Region 10'!$S$81/'MMA Rev-Exp Region 10'!$S$9, 0)","v":{"v":0,"d":"$0.00"}},{"$f":"IFERROR('MMA Rev-Exp Region 10'!$T$81/'MMA Rev-Exp Region 10'!$T$9, 0)","v":{"v":0,"d":"$0.00"}},{"$f":"IFERROR('MMA Rev-Exp Region 10'!$U$81/'MMA Rev-Exp Region 10'!$U$9, 0)","v":{"v":0,"d":"$0.00"}},{"$f":"IFERROR('MMA Rev-Exp Region 10'!$V$81/'MMA Rev-Exp Region 10'!$V$9, 0)","v":{"v":0,"d":"$0.00"}},{"$f":"IFERROR('MMA Rev-Exp Region 10'!$W$81/'MMA Rev-Exp Region 10'!$W$9, 0)","v":{"v":0,"d":"$0.00"}},{"$f":"IFERROR('MMA Rev-Exp Region 10'!$X$81/'MMA Rev-Exp Region 10'!$X$9, 0)","v":{"v":0,"d":"$0.00"}},{"$f":"IFERROR('MMA Rev-Exp Region 10'!$Y$81/'MMA Rev-Exp Region 10'!$Y$9, 0)","v":{"v":0,"d":"$0.00"}}]
["MMA",null,null,2016,"2016-12-31","Q2","2017-06-30","Region 10","Operating Expense","Medical Benefits Expense","Other Medical","11.6.1","Premium Deficiency Reserve",{"$f":"IFERROR('MMA Rev-Exp Region 10'!$O$82/'MMA Rev-Exp Region 10'!$O$9, 0)","v":{"v":0,"d":"$0.00"}},{"$f":"IFERROR('MMA Rev-Exp Region 10'!$P$82/'MMA Rev-Exp Region 10'!$P$9, 0)","v":{"v":0,"d":"$0.00"}},{"$f":"IFERROR('MMA Rev-Exp Region 10'!$Q$82/'MMA Rev-Exp Region 10'!$Q$9, 0)","v":{"v":0,"d":"$0.00"}},{"$f":"IFERROR('MMA Rev-Exp Region 10'!$R$82/'MMA Rev-Exp Region 10'!$R$9, 0)","v":{"v":0,"d":"$0.00"}},{"$f":"IFERROR('MMA Rev-Exp Region 10'!$S$82/'MMA Rev-Exp Region 10'!$S$9, 0)","v":{"v":0,"d":"$0.00"}},{"$f":"IFERROR('MMA Rev-Exp Region 10'!$T$82/'MMA Rev-Exp Region 10'!$T$9, 0)","v":{"v":0,"d":"$0.00"}},{"$f":"IFERROR('MMA Rev-Exp Region 10'!$U$82/'MMA Rev-Exp Region 10'!$U$9, 0)","v":{"v":0,"d":"$0.00"}},{"$f":"IFERROR('MMA Rev-Exp Region 10'!$V$82/'MMA Rev-Exp Region 10'!$V$9, 0)","v":{"v":0,"d":"$0.00"}},{"$f":"IFERROR('MMA Rev-Exp Region 10'!$W$82/'MMA Rev-Exp Region 10'!$W$9, 0)","v":{"v":0,"d":"$0.00"}},{"$f":"IFERROR('MMA Rev-Exp Region 10'!$X$82/'MMA Rev-Exp Region 10'!$X$9, 0)","v":{"v":0,"d":"$0.00"}},{"$f":"IFERROR('MMA Rev-Exp Region 10'!$Y$82/'MMA Rev-Exp Region 10'!$Y$9, 0)","v":{"v":0,"d":"$0.00"}}]
["MMA",null,null,2016,"2016-12-31","Q2","2017-06-30","Region 10","Operating Expense","Medical Benefits Expense","Other Medical","11.8","Reinsurance Premiums",{"$f":"IFERROR('MMA Rev-Exp Region 10'!$O$84/'MMA Rev-Exp Region 10'!$O$9, 0)","v":{"v":0,"d":"$0.00"}},{"$f":"IFERROR('MMA Rev-Exp Region 10'!$P$84/'MMA Rev-Exp Region 10'!$P$9, 0)","v":{"v":0,"d":"$0.00"}},{"$f":"IFERROR('MMA Rev-Exp Region 10'!$Q$84/'MMA Rev-Exp Region 10'!$Q$9, 0)","v":{"v":0,"d":"$0.00"}},{"$f":"IFERROR('MMA Rev-Exp Region 10'!$R$84/'MMA Rev-Exp Region 10'!$R$9, 0)","v":{"v":0,"d":"$0.00"}},{"$f":"IFERROR('MMA Rev-Exp Region 10'!$S$84/'MMA Rev-Exp Region 10'!$S$9, 0)","v":{"v":0,"d":"$0.00"}},{"$f":"IFERROR('MMA Rev-Exp Region 10'!$T$84/'MMA Rev-Exp Region 10'!$T$9, 0)","v":{"v":0,"d":"$0.00"}},{"$f":"IFERROR('MMA Rev-Exp Region 10'!$U$84/'MMA Rev-Exp Region 10'!$U$9, 0)","v":{"v":0,"d":"$0.00"}},{"$f":"IFERROR('MMA Rev-Exp Region 10'!$V$84/'MMA Rev-Exp Region 10'!$V$9, 0)","v":{"v":0,"d":"$0.00"}},{"$f":"IFERROR('MMA Rev-Exp Region 10'!$W$84/'MMA Rev-Exp Region 10'!$W$9, 0)","v":{"v":0,"d":"$0.00"}},{"$f":"IFERROR('MMA Rev-Exp Region 10'!$X$84/'MMA Rev-Exp Region 10'!$X$9, 0)","v":{"v":0,"d":"$0.00"}},{"$f":"IFERROR('MMA Rev-Exp Region 10'!$Y$84/'MMA Rev-Exp Region 10'!$Y$9, 0)","v":{"v":0,"d":"$0.00"}}]
["MMA",null,null,2016,"2016-12-31","Q2","2017-06-30","Region 10","Operating Expense","Medical Benefits Expense","Other Medical","11.9","Reinsurance Recoveries",{"$f":"IFERROR('MMA Rev-Exp Region 10'!$O$85/'MMA Rev-Exp Region 10'!$O$9, 0)","v":{"v":0,"d":"$0.00"}},{"$f":"IFERROR('MMA Rev-Exp Region 10'!$P$85/'MMA Rev-Exp Region 10'!$P$9, 0)","v":{"v":0,"d":"$0.00"}},{"$f":"IFERROR('MMA Rev-Exp Region 10'!$Q$85/'MMA Rev-Exp Region 10'!$Q$9, 0)","v":{"v":0,"d":"$0.00"}},{"$f":"IFERROR('MMA Rev-Exp Region 10'!$R$85/'MMA Rev-Exp Region 10'!$R$9, 0)","v":{"v":0,"d":"$0.00"}},{"$f":"IFERROR('MMA Rev-Exp Region 10'!$S$85/'MMA Rev-Exp Region 10'!$S$9, 0)","v":{"v":0,"d":"$0.00"}},{"$f":"IFERROR('MMA Rev-Exp Region 10'!$T$85/'MMA Rev-Exp Region 10'!$T$9, 0)","v":{"v":0,"d":"$0.00"}},{"$f":"IFERROR('MMA Rev-Exp Region 10'!$U$85/'MMA Rev-Exp Region 10'!$U$9, 0)","v":{"v":0,"d":"$0.00"}},{"$f":"IFERROR('MMA Rev-Exp Region 10'!$V$85/'MMA Rev-Exp Region 10'!$V$9, 0)","v":{"v":0,"d":"$0.00"}},{"$f":"IFERROR('MMA Rev-Exp Region 10'!$W$85/'MMA Rev-Exp Region 10'!$W$9, 0)","v":{"v":0,"d":"$0.00"}},{"$f":"IFERROR('MMA Rev-Exp Region 10'!$X$85/'MMA Rev-Exp Region 10'!$X$9, 0)","v":{"v":0,"d":"$0.00"}},{"$f":"IFERROR('MMA Rev-Exp Region 10'!$Y$85/'MMA Rev-Exp Region 10'!$Y$9, 0)","v":{"v":0,"d":"$0.00"}}]
["MMA",null,null,2016,"2016-12-31","Q2","2017-06-30","Region 10","Operating Expense","Administrative Expense","Administrative","12.1","Salaries & Benefits",{"$f":"IFERROR('MMA Rev-Exp Region 10'!$O$90/'MMA Rev-Exp Region 10'!$O$9, 0)","v":{"v":0,"d":"$0.00"}},{"$f":"IFERROR('MMA Rev-Exp Region 10'!$P$90/'MMA Rev-Exp Region 10'!$O$9, 0)","v":{"v":0,"d":"$0.00"}},{"$f":"IFERROR('MMA Rev-Exp Region 10'!$Q$90/'MMA Rev-Exp Region 10'!$O$9, 0)","v":{"v":0,"d":"$0.00"}},{"$f":"IFERROR('MMA Rev-Exp Region 10'!$R$90/'MMA Rev-Exp Region 10'!$R$9, 0)","v":{"v":0,"d":"$0.00"}},{"$f":"IFERROR('MMA Rev-Exp Region 10'!$S$90/'MMA Rev-Exp Region 10'!$S$9, 0)","v":{"v":0,"d":"$0.00"}},{"$f":"IFERROR('MMA Rev-Exp Region 10'!$T$90/'MMA Rev-Exp Region 10'!$T$9, 0)","v":{"v":0,"d":"$0.00"}},{"$f":"IFERROR('MMA Rev-Exp Region 10'!$U$90/'MMA Rev-Exp Region 10'!$U$9, 0)","v":{"v":0,"d":"$0.00"}},{"$f":"IFERROR('MMA Rev-Exp Region 10'!$V$90/'MMA Rev-Exp Region 10'!$V$9, 0)","v":{"v":0,"d":"$0.00"}},{"$f":"IFERROR('MMA Rev-Exp Region 10'!$W$90/'MMA Rev-Exp Region 10'!$W$9, 0)","v":{"v":0,"d":"$0.00"}},{"$f":"IFERROR('MMA Rev-Exp Region 10'!$X$90/'MMA Rev-Exp Region 10'!$X$9, 0)","v":{"v":0,"d":"$0.00"}},{"$f":"IFERROR('MMA Rev-Exp Region 10'!$Y$90/'MMA Rev-Exp Region 10'!$Y$9, 0)","v":{"v":0,"d":"$0.00"}}]
["MMA",null,null,2016,"2016-12-31","Q2","2017-06-30","Region 10","Operating Expense","Administrative Expense","Administrative","12.2","Administrative Services",{"$f":"IFERROR('MMA Rev-Exp Region 10'!$O$91/'MMA Rev-Exp Region 10'!$O$9, 0)","v":{"v":0,"d":"$0.00"}},{"$f":"IFERROR('MMA Rev-Exp Region 10'!$P$91/'MMA Rev-Exp Region 10'!$O$9, 0)","v":{"v":0,"d":"$0.00"}},{"$f":"IFERROR('MMA Rev-Exp Region 10'!$Q$91/'MMA Rev-Exp Region 10'!$O$9, 0)","v":{"v":0,"d":"$0.00"}},{"$f":"IFERROR('MMA Rev-Exp Region 10'!$R$91/'MMA Rev-Exp Region 10'!$R$9, 0)","v":{"v":0,"d":"$0.00"}},{"$f":"IFERROR('MMA Rev-Exp Region 10'!$S$91/'MMA Rev-Exp Region 10'!$S$9, 0)","v":{"v":0,"d":"$0.00"}},{"$f":"IFERROR('MMA Rev-Exp Region 10'!$T$91/'MMA Rev-Exp Region 10'!$T$9, 0)","v":{"v":0,"d":"$0.00"}},{"$f":"IFERROR('MMA Rev-Exp Region 10'!$U$91/'MMA Rev-Exp Region 10'!$U$9, 0)","v":{"v":0,"d":"$0.00"}},{"$f":"IFERROR('MMA Rev-Exp Region 10'!$V$91/'MMA Rev-Exp Region 10'!$V$9, 0)","v":{"v":0,"d":"$0.00"}},{"$f":"IFERROR('MMA Rev-Exp Region 10'!$W$91/'MMA Rev-Exp Region 10'!$W$9, 0)","v":{"v":0,"d":"$0.00"}},{"$f":"IFERROR('MMA Rev-Exp Region 10'!$X$91/'MMA Rev-Exp Region 10'!$X$9, 0)","v":{"v":0,"d":"$0.00"}},{"$f":"IFERROR('MMA Rev-Exp Region 10'!$Y$91/'MMA Rev-Exp Region 10'!$Y$9, 0)","v":{"v":0,"d":"$0.00"}}]
["MMA",null,null,2016,"2016-12-31","Q2","2017-06-30","Region 10","Operating Expense","Administrative Expense","Administrative","12.3","Information Systems",{"$f":"IFERROR('MMA Rev-Exp Region 10'!$O$92/'MMA Rev-Exp Region 10'!$O$9, 0)","v":{"v":0,"d":"$0.00"}},{"$f":"IFERROR('MMA Rev-Exp Region 10'!$P$92/'MMA Rev-Exp Region 10'!$O$9, 0)","v":{"v":0,"d":"$0.00"}},{"$f":"IFERROR('MMA Rev-Exp Region 10'!$Q$92/'MMA Rev-Exp Region 10'!$O$9, 0)","v":{"v":0,"d":"$0.00"}},{"$f":"IFERROR('MMA Rev-Exp Region 10'!$R$92/'MMA Rev-Exp Region 10'!$R$9, 0)","v":{"v":0,"d":"$0.00"}},{"$f":"IFERROR('MMA Rev-Exp Region 10'!$S$92/'MMA Rev-Exp Region 10'!$S$9, 0)","v":{"v":0,"d":"$0.00"}},{"$f":"IFERROR('MMA Rev-Exp Region 10'!$T$92/'MMA Rev-Exp Region 10'!$T$9, 0)","v":{"v":0,"d":"$0.00"}},{"$f":"IFERROR('MMA Rev-Exp Region 10'!$U$92/'MMA Rev-Exp Region 10'!$U$9, 0)","v":{"v":0,"d":"$0.00"}},{"$f":"IFERROR('MMA Rev-Exp Region 10'!$V$92/'MMA Rev-Exp Region 10'!$V$9, 0)","v":{"v":0,"d":"$0.00"}},{"$f":"IFERROR('MMA Rev-Exp Region 10'!$W$92/'MMA Rev-Exp Region 10'!$W$9, 0)","v":{"v":0,"d":"$0.00"}},{"$f":"IFERROR('MMA Rev-Exp Region 10'!$X$92/'MMA Rev-Exp Region 10'!$X$9, 0)","v":{"v":0,"d":"$0.00"}},{"$f":"IFERROR('MMA Rev-Exp Region 10'!$Y$92/'MMA Rev-Exp Region 10'!$Y$9, 0)","v":{"v":0,"d":"$0.00"}}]
["MMA",null,null,2016,"2016-12-31","Q2","2017-06-30","Region 10","Operating Expense","Administrative Expense","Administrative","12.4","Marketing Expenses",{"$f":"IFERROR('MMA Rev-Exp Region 10'!$O$93/'MMA Rev-Exp Region 10'!$O$9, 0)","v":{"v":0,"d":"$0.00"}},{"$f":"IFERROR('MMA Rev-Exp Region 10'!$P$93/'MMA Rev-Exp Region 10'!$O$9, 0)","v":{"v":0,"d":"$0.00"}},{"$f":"IFERROR('MMA Rev-Exp Region 10'!$Q$93/'MMA Rev-Exp Region 10'!$O$9, 0)","v":{"v":0,"d":"$0.00"}}]
["MMA",null,null,2016,"2016-12-31","Q2","2017-06-30","Region 10","Operating Expense","Administrative Expense","Administrative","12.5","General  Administration",{"$f":"IFERROR('MMA Rev-Exp Region 10'!$O$94/'MMA Rev-Exp Region 10'!$O$9, 0)","v":{"v":0,"d":"$0.00"}},{"$f":"IFERROR('MMA Rev-Exp Region 10'!$P$94/'MMA Rev-Exp Region 10'!$O$9, 0)","v":{"v":0,"d":"$0.00"}},{"$f":"IFERROR('MMA Rev-Exp Region 10'!$Q$94/'MMA Rev-Exp Region 10'!$O$9, 0)","v":{"v":0,"d":"$0.00"}}]
["MMA",null,null,2016,"2016-12-31","Q2","2017-06-30","Region 10","Operating Expense","Administrative Expense","Administrative","12.6","Compliance/Regulatory",{"$f":"IFERROR('MMA Rev-Exp Region 10'!$O$95/'MMA Rev-Exp Region 10'!$O$9, 0)","v":{"v":0,"d":"$0.00"}},{"$f":"IFERROR('MMA Rev-Exp Region 10'!$P$95/'MMA Rev-Exp Region 10'!$O$9, 0)","v":{"v":0,"d":"$0.00"}},{"$f":"IFERROR('MMA Rev-Exp Region 10'!$Q$95/'MMA Rev-Exp Region 10'!$O$9, 0)","v":{"v":0,"d":"$0.00"}}]
["MMA",null,null,2016,"2016-12-31","Q2","2017-06-30","Region 10","Operating Expense","Taxes & Fees","Taxes & Fees","13.1","State Premium tax",{"$f":"IFERROR('MMA Rev-Exp Region 10'!$O$97/'MMA Rev-Exp Region 10'!$O$9, 0)","v":{"v":0,"d":"$0.00"}}]
["MMA",null,null,2016,"2016-12-31","Q2","2017-06-30","Region 10","Operating Expense","Taxes & Fees","Taxes & Fees","13.2","Department of Insurance Assessments",{"$f":"IFERROR('MMA Rev-Exp Region 10'!$O$98/'MMA Rev-Exp Region 10'!$O$9, 0)","v":{"v":0,"d":"$0.00"}}]
["MMA",null,null,2016,"2016-12-31","Q2","2017-06-30","Region 10","Operating Expense","Taxes & Fees","Taxes & Fees","13.3","Section 9010 Health Insurance Providers Fee",{"$f":"IFERROR('MMA Rev-Exp Region 10'!$O$99/'MMA Rev-Exp Region 10'!$O$9, 0)","v":{"v":0,"d":"$0.00"}}]
["MMA",null,null,2016,"2016-12-31","Q2","2017-06-30","Region 10","Non-Operating Expense","Income Tax Expense","Income Tax Expense","16.0","Income Tax Expense",{"$f":"IFERROR('MMA Rev-Exp Region 10'!$O$106/'MMA Rev-Exp Region 10'!$O$9, 0)","v":{"v":0,"d":"$0.00"}}]
["MMA",null,null,2016,"2016-12-31","Q3","2017-09-30","Region 10","Operating Revenue","Capitation","Capitation",1.1,"Capitation",{"$f":"IFERROR('MMA Rev-Exp Region 10'!$Z$11/'MMA Rev-Exp Region 10'!$Z$9, 0)","v":{"v":0,"d":"$0.00"}},{"$f":"IFERROR('MMA Rev-Exp Region 10'!$AA$11/'MMA Rev-Exp Region 10'!$AA$9, 0)","v":{"v":0,"d":"$0.00"}},{"$f":"IFERROR('MMA Rev-Exp Region 10'!$AB$11/'MMA Rev-Exp Region 10'!$AB$9, 0)","v":{"v":0,"d":"$0.00"}},{"$f":"IFERROR('MMA Rev-Exp Region 10'!$AC$11/'MMA Rev-Exp Region 10'!$AC$9, 0)","v":{"v":0,"d":"$0.00"}},{"$f":"IFERROR('MMA Rev-Exp Region 10'!$AD$11/'MMA Rev-Exp Region 10'!$AD$9, 0)","v":{"v":0,"d":"$0.00"}},{"$f":"IFERROR('MMA Rev-Exp Region 10'!$AE$11/'MMA Rev-Exp Region 10'!$AE$9, 0)","v":{"v":0,"d":"$0.00"}},{"$f":"IFERROR('MMA Rev-Exp Region 10'!$AF$11/'MMA Rev-Exp Region 10'!$AF$9, 0)","v":{"v":0,"d":"$0.00"}},{"$f":"IFERROR('MMA Rev-Exp Region 10'!$AG$11/'MMA Rev-Exp Region 10'!$AG$9, 0)","v":{"v":0,"d":"$0.00"}},{"$f":"IFERROR('MMA Rev-Exp Region 10'!$AH$11/'MMA Rev-Exp Region 10'!$AH$9, 0)","v":{"v":0,"d":"$0.00"}},{"$f":"IFERROR('MMA Rev-Exp Region 10'!$AI$11/'MMA Rev-Exp Region 10'!$AI$9, 0)","v":{"v":0,"d":"$0.00"}},{"$f":"IFERROR('MMA Rev-Exp Region 10'!$AJ$11/'MMA Rev-Exp Region 10'!$AJ$9, 0)","v":{"v":0,"d":"$0.00"}}]
["MMA",null,null,2016,"2016-12-31","Q3","2017-09-30","Region 10","Operating Revenue","Kick Payments","Kick Payments - Transplant",1.2,"Transplant Kick Payments",{"$f":"IFERROR('MMA Rev-Exp Region 10'!$Z$12/'MMA Rev-Exp Region 10'!$Z$9, 0)","v":{"v":0,"d":"$0.00"}},{"$f":"IFERROR('MMA Rev-Exp Region 10'!$AA$12/'MMA Rev-Exp Region 10'!$AA$9, 0)","v":{"v":0,"d":"$0.00"}},{"$f":"IFERROR('MMA Rev-Exp Region 10'!$AB$12/'MMA Rev-Exp Region 10'!$AB$9, 0)","v":{"v":0,"d":"$0.00"}},{"$f":"IFERROR('MMA Rev-Exp Region 10'!$AC$12/'MMA Rev-Exp Region 10'!$AC$9, 0)","v":{"v":0,"d":"$0.00"}},{"$f":"IFERROR('MMA Rev-Exp Region 10'!$AD$12/'MMA Rev-Exp Region 10'!$AD$9, 0)","v":{"v":0,"d":"$0.00"}},{"$f":"IFERROR('MMA Rev-Exp Region 10'!$AE$12/'MMA Rev-Exp Region 10'!$AE$9, 0)","v":{"v":0,"d":"$0.00"}},{"$f":"IFERROR('MMA Rev-Exp Region 10'!$AF$12/'MMA Rev-Exp Region 10'!$AF$9, 0)","v":{"v":0,"d":"$0.00"}},{"$f":"IFERROR('MMA Rev-Exp Region 10'!$AG$12/'MMA Rev-Exp Region 10'!$AG$9, 0)","v":{"v":0,"d":"$0.00"}},{"$f":"IFERROR('MMA Rev-Exp Region 10'!$AH$12/'MMA Rev-Exp Region 10'!$AH$9, 0)","v":{"v":0,"d":"$0.00"}},{"$f":"IFERROR('MMA Rev-Exp Region 10'!$AI$12/'MMA Rev-Exp Region 10'!$AI$9, 0)","v":{"v":0,"d":"$0.00"}},{"$f":"IFERROR('MMA Rev-Exp Region 10'!$AJ$12/'MMA Rev-Exp Region 10'!$AJ$9, 0)","v":{"v":0,"d":"$0.00"}}]
["MMA",null,null,2016,"2016-12-31","Q3","2017-09-30","Region 10","Operating Revenue","Kick Payments","Kick Payments - Hep C","1.3","Hepatitis C Kick Payments",{"$f":"IFERROR('MMA Rev-Exp Region 10'!$Z$13/'MMA Rev-Exp Region 10'!$Z$9, 0)","v":{"v":0,"d":"$0.00"}},{"$f":"IFERROR('MMA Rev-Exp Region 10'!$AA$13/'MMA Rev-Exp Region 10'!$AA$9, 0)","v":{"v":0,"d":"$0.00"}},{"$f":"IFERROR('MMA Rev-Exp Region 10'!$AB$13/'MMA Rev-Exp Region 10'!$AB$9, 0)","v":{"v":0,"d":"$0.00"}},{"$f":"IFERROR('MMA Rev-Exp Region 10'!$AC$13/'MMA Rev-Exp Region 10'!$AC$9, 0)","v":{"v":0,"d":"$0.00"}},{"$f":"IFERROR('MMA Rev-Exp Region 10'!$AD$13/'MMA Rev-Exp Region 10'!$AD$9, 0)","v":{"v":0,"d":"$0.00"}},{"$f":"IFERROR('MMA Rev-Exp Region 10'!$AE$13/'MMA Rev-Exp Region 10'!$AE$9, 0)","v":{"v":0,"d":"$0.00"}},{"$f":"IFERROR('MMA Rev-Exp Region 10'!$AF$13/'MMA Rev-Exp Region 10'!$AF$9, 0)","v":{"v":0,"d":"$0.00"}},{"$f":"IFERROR('MMA Rev-Exp Region 10'!$AG$13/'MMA Rev-Exp Region 10'!$AG$9, 0)","v":{"v":0,"d":"$0.00"}},{"$f":"IFERROR('MMA Rev-Exp Region 10'!$AH$13/'MMA Rev-Exp Region 10'!$AH$9, 0)","v":{"v":0,"d":"$0.00"}},{"$f":"IFERROR('MMA Rev-Exp Region 10'!$AI$13/'MMA Rev-Exp Region 10'!$AI$9, 0)","v":{"v":0,"d":"$0.00"}},{"$f":"IFERROR('MMA Rev-Exp Region 10'!$AJ$13/'MMA Rev-Exp Region 10'!$AJ$9, 0)","v":{"v":0,"d":"$0.00"}}]
["MMA",null,null,2016,"2016-12-31","Q3","2017-09-30","Region 10","Operating Revenue","Kick Payments","Kick Payments - Maternity","1.4.1","Maternity Kick Payments",{"$f":"IFERROR('MMA Rev-Exp Region 10'!$Z$14/'MMA Rev-Exp Region 10'!$Z$9, 0)","v":{"v":0,"d":"$0.00"}},{"$f":"IFERROR('MMA Rev-Exp Region 10'!$AA$14/'MMA Rev-Exp Region 10'!$AA$9, 0)","v":{"v":0,"d":"$0.00"}},{"$f":"IFERROR('MMA Rev-Exp Region 10'!$AB$14/'MMA Rev-Exp Region 10'!$AB$9, 0)","v":{"v":0,"d":"$0.00"}},{"$f":"IFERROR('MMA Rev-Exp Region 10'!$AC$14/'MMA Rev-Exp Region 10'!$AC$9, 0)","v":{"v":0,"d":"$0.00"}},{"$f":"IFERROR('MMA Rev-Exp Region 10'!$AD$14/'MMA Rev-Exp Region 10'!$AD$9, 0)","v":{"v":0,"d":"$0.00"}},{"$f":"IFERROR('MMA Rev-Exp Region 10'!$AE$14/'MMA Rev-Exp Region 10'!$AE$9, 0)","v":{"v":0,"d":"$0.00"}},{"$f":"IFERROR('MMA Rev-Exp Region 10'!$AF$14/'MMA Rev-Exp Region 10'!$AF$9, 0)","v":{"v":0,"d":"$0.00"}},{"$f":"IFERROR('MMA Rev-Exp Region 10'!$AG$14/'MMA Rev-Exp Region 10'!$AG$9, 0)","v":{"v":0,"d":"$0.00"}},{"$f":"IFERROR('MMA Rev-Exp Region 10'!$AH$14/'MMA Rev-Exp Region 10'!$AH$9, 0)","v":{"v":0,"d":"$0.00"}},{"$f":"IFERROR('MMA Rev-Exp Region 10'!$AI$14/'MMA Rev-Exp Region 10'!$AI$9, 0)","v":{"v":0,"d":"$0.00"}},{"$f":"IFERROR('MMA Rev-Exp Region 10'!$AJ$14/'MMA Rev-Exp Region 10'!$AJ$9, 0)","v":{"v":0,"d":"$0.00"}}]
["MMA",null,null,2016,"2016-12-31","Q3","2017-09-30","Region 10","Operating Revenue","Other Revenue","Other Revenue - 9010","1.5","ACA § 9010 related payments",{"$f":"IFERROR('MMA Rev-Exp Region 10'!$Z$15/'MMA Rev-Exp Region 10'!$Z$9, 0)","v":{"v":0,"d":"$0.00"}},{"$f":"IFERROR('MMA Rev-Exp Region 10'!$AA$15/'MMA Rev-Exp Region 10'!$AA$9, 0)","v":{"v":0,"d":"$0.00"}},{"$f":"IFERROR('MMA Rev-Exp Region 10'!$AB$15/'MMA Rev-Exp Region 10'!$AB$9, 0)","v":{"v":0,"d":"$0.00"}},{"$f":"IFERROR('MMA Rev-Exp Region 10'!$AC$15/'MMA Rev-Exp Region 10'!$AC$9, 0)","v":{"v":0,"d":"$0.00"}},{"$f":"IFERROR('MMA Rev-Exp Region 10'!$AD$15/'MMA Rev-Exp Region 10'!$AD$9, 0)","v":{"v":0,"d":"$0.00"}},{"$f":"IFERROR('MMA Rev-Exp Region 10'!$AE$15/'MMA Rev-Exp Region 10'!$AE$9, 0)","v":{"v":0,"d":"$0.00"}},{"$f":"IFERROR('MMA Rev-Exp Region 10'!$AF$15/'MMA Rev-Exp Region 10'!$AF$9, 0)","v":{"v":0,"d":"$0.00"}},{"$f":"IFERROR('MMA Rev-Exp Region 10'!$AG$15/'MMA Rev-Exp Region 10'!$AG$9, 0)","v":{"v":0,"d":"$0.00"}},{"$f":"IFERROR('MMA Rev-Exp Region 10'!$AH$15/'MMA Rev-Exp Region 10'!$AH$9, 0)","v":{"v":0,"d":"$0.00"}},{"$f":"IFERROR('MMA Rev-Exp Region 10'!$AI$15/'MMA Rev-Exp Region 10'!$AI$9, 0)","v":{"v":0,"d":"$0.00"}},{"$f":"IFERROR('MMA Rev-Exp Region 10'!$AJ$15/'MMA Rev-Exp Region 10'!$AJ$9, 0)","v":{"v":0,"d":"$0.00"}}]
["MMA",null,null,2016,"2016-12-31","Q3","2017-09-30","Region 10","Operating Revenue","Other Revenue","Other Revenue","1.6","Other Revenue",{"$f":"IFERROR('MMA Rev-Exp Region 10'!$Z$16/'MMA Rev-Exp Region 10'!$Z$9, 0)","v":{"v":0,"d":"$0.00"}},{"$f":"IFERROR('MMA Rev-Exp Region 10'!$AA$16/'MMA Rev-Exp Region 10'!$AA$9, 0)","v":{"v":0,"d":"$0.00"}},{"$f":"IFERROR('MMA Rev-Exp Region 10'!$AB$16/'MMA Rev-Exp Region 10'!$AB$9, 0)","v":{"v":0,"d":"$0.00"}},{"$f":"IFERROR('MMA Rev-Exp Region 10'!$AC$16/'MMA Rev-Exp Region 10'!$AC$9, 0)","v":{"v":0,"d":"$0.00"}},{"$f":"IFERROR('MMA Rev-Exp Region 10'!$AD$16/'MMA Rev-Exp Region 10'!$AD$9, 0)","v":{"v":0,"d":"$0.00"}},{"$f":"IFERROR('MMA Rev-Exp Region 10'!$AE$16/'MMA Rev-Exp Region 10'!$AE$9, 0)","v":{"v":0,"d":"$0.00"}},{"$f":"IFERROR('MMA Rev-Exp Region 10'!$AF$16/'MMA Rev-Exp Region 10'!$AF$9, 0)","v":{"v":0,"d":"$0.00"}},{"$f":"IFERROR('MMA Rev-Exp Region 10'!$AG$16/'MMA Rev-Exp Region 10'!$AG$9, 0)","v":{"v":0,"d":"$0.00"}},{"$f":"IFERROR('MMA Rev-Exp Region 10'!$AH$16/'MMA Rev-Exp Region 10'!$AH$9, 0)","v":{"v":0,"d":"$0.00"}},{"$f":"IFERROR('MMA Rev-Exp Region 10'!$AI$16/'MMA Rev-Exp Region 10'!$AI$9, 0)","v":{"v":0,"d":"$0.00"}},{"$f":"IFERROR('MMA Rev-Exp Region 10'!$AJ$16/'MMA Rev-Exp Region 10'!$AJ$9, 0)","v":{"v":0,"d":"$0.00"}}]
["MMA",null,null,2016,"2016-12-31","Q3","2017-09-30","Region 10","Operating Expense","Medical Benefits Expense","Hospital Services",2.1,"Inpatient FFS",{"$f":"IFERROR('MMA Rev-Exp Region 10'!$Z$20/'MMA Rev-Exp Region 10'!$Z$9, 0)","v":{"v":0,"d":"$0.00"}},{"$f":"IFERROR('MMA Rev-Exp Region 10'!$AA$20/'MMA Rev-Exp Region 10'!$AA$9, 0)","v":{"v":0,"d":"$0.00"}},{"$f":"IFERROR('MMA Rev-Exp Region 10'!$AB$20/'MMA Rev-Exp Region 10'!$AB$9, 0)","v":{"v":0,"d":"$0.00"}},{"$f":"IFERROR('MMA Rev-Exp Region 10'!$AC$20/'MMA Rev-Exp Region 10'!$AC$9, 0)","v":{"v":0,"d":"$0.00"}},{"$f":"IFERROR('MMA Rev-Exp Region 10'!$AD$20/'MMA Rev-Exp Region 10'!$AD$9, 0)","v":{"v":0,"d":"$0.00"}},{"$f":"IFERROR('MMA Rev-Exp Region 10'!$AE$20/'MMA Rev-Exp Region 10'!$AE$9, 0)","v":{"v":0,"d":"$0.00"}},{"$f":"IFERROR('MMA Rev-Exp Region 10'!$AF$20/'MMA Rev-Exp Region 10'!$AF$9, 0)","v":{"v":0,"d":"$0.00"}},{"$f":"IFERROR('MMA Rev-Exp Region 10'!$AG$20/'MMA Rev-Exp Region 10'!$AG$9, 0)","v":{"v":0,"d":"$0.00"}},{"$f":"IFERROR('MMA Rev-Exp Region 10'!$AH$20/'MMA Rev-Exp Region 10'!$AH$9, 0)","v":{"v":0,"d":"$0.00"}},{"$f":"IFERROR('MMA Rev-Exp Region 10'!$AI$20/'MMA Rev-Exp Region 10'!$AI$9, 0)","v":{"v":0,"d":"$0.00"}},{"$f":"IFERROR('MMA Rev-Exp Region 10'!$AJ$20/'MMA Rev-Exp Region 10'!$AJ$9, 0)","v":{"v":0,"d":"$0.00"}}]
["MMA",null,null,2016,"2016-12-31","Q3","2017-09-30","Region 10","Operating Expense","Medical Benefits Expense","Hospital Services",2.2,"Ending IBNP for Inpatient Hospital Services",{"$f":"IFERROR('MMA Rev-Exp Region 10'!$Z$21/'MMA Rev-Exp Region 10'!$Z$9, 0)","v":{"v":0,"d":"$0.00"}},{"$f":"IFERROR('MMA Rev-Exp Region 10'!$AA$21/'MMA Rev-Exp Region 10'!$AA$9, 0)","v":{"v":0,"d":"$0.00"}},{"$f":"IFERROR('MMA Rev-Exp Region 10'!$AB$21/'MMA Rev-Exp Region 10'!$AB$9, 0)","v":{"v":0,"d":"$0.00"}},{"$f":"IFERROR('MMA Rev-Exp Region 10'!$AC$21/'MMA Rev-Exp Region 10'!$AC$9, 0)","v":{"v":0,"d":"$0.00"}},{"$f":"IFERROR('MMA Rev-Exp Region 10'!$AD$21/'MMA Rev-Exp Region 10'!$AD$9, 0)","v":{"v":0,"d":"$0.00"}},{"$f":"IFERROR('MMA Rev-Exp Region 10'!$AE$21/'MMA Rev-Exp Region 10'!$AE$9, 0)","v":{"v":0,"d":"$0.00"}},{"$f":"IFERROR('MMA Rev-Exp Region 10'!$AF$21/'MMA Rev-Exp Region 10'!$AF$9, 0)","v":{"v":0,"d":"$0.00"}},{"$f":"IFERROR('MMA Rev-Exp Region 10'!$AG$21/'MMA Rev-Exp Region 10'!$AG$9, 0)","v":{"v":0,"d":"$0.00"}},{"$f":"IFERROR('MMA Rev-Exp Region 10'!$AH$21/'MMA Rev-Exp Region 10'!$AH$9, 0)","v":{"v":0,"d":"$0.00"}},{"$f":"IFERROR('MMA Rev-Exp Region 10'!$AI$21/'MMA Rev-Exp Region 10'!$AI$9, 0)","v":{"v":0,"d":"$0.00"}},{"$f":"IFERROR('MMA Rev-Exp Region 10'!$AJ$21/'MMA Rev-Exp Region 10'!$AJ$9, 0)","v":{"v":0,"d":"$0.00"}}]
["MMA",null,null,2016,"2016-12-31","Q3","2017-09-30","Region 10","Operating Expense","Medical Benefits Expense","Hospital Services",2.3,"Outpatient FFS: ER",{"$f":"IFERROR('MMA Rev-Exp Region 10'!$Z$22/'MMA Rev-Exp Region 10'!$Z$9, 0)","v":{"v":0,"d":"$0.00"}},{"$f":"IFERROR('MMA Rev-Exp Region 10'!$AA$22/'MMA Rev-Exp Region 10'!$AA$9, 0)","v":{"v":0,"d":"$0.00"}},{"$f":"IFERROR('MMA Rev-Exp Region 10'!$AB$22/'MMA Rev-Exp Region 10'!$AB$9, 0)","v":{"v":0,"d":"$0.00"}},{"$f":"IFERROR('MMA Rev-Exp Region 10'!$AC$22/'MMA Rev-Exp Region 10'!$AC$9, 0)","v":{"v":0,"d":"$0.00"}},{"$f":"IFERROR('MMA Rev-Exp Region 10'!$AD$22/'MMA Rev-Exp Region 10'!$AD$9, 0)","v":{"v":0,"d":"$0.00"}},{"$f":"IFERROR('MMA Rev-Exp Region 10'!$AE$22/'MMA Rev-Exp Region 10'!$AE$9, 0)","v":{"v":0,"d":"$0.00"}},{"$f":"IFERROR('MMA Rev-Exp Region 10'!$AF$22/'MMA Rev-Exp Region 10'!$AF$9, 0)","v":{"v":0,"d":"$0.00"}},{"$f":"IFERROR('MMA Rev-Exp Region 10'!$AG$22/'MMA Rev-Exp Region 10'!$AG$9, 0)","v":{"v":0,"d":"$0.00"}},{"$f":"IFERROR('MMA Rev-Exp Region 10'!$AH$22/'MMA Rev-Exp Region 10'!$AH$9, 0)","v":{"v":0,"d":"$0.00"}},{"$f":"IFERROR('MMA Rev-Exp Region 10'!$AI$22/'MMA Rev-Exp Region 10'!$AI$9, 0)","v":{"v":0,"d":"$0.00"}},{"$f":"IFERROR('MMA Rev-Exp Region 10'!$AJ$22/'MMA Rev-Exp Region 10'!$AJ$9, 0)","v":{"v":0,"d":"$0.00"}}]
["MMA",null,null,2016,"2016-12-31","Q3","2017-09-30","Region 10","Operating Expense","Medical Benefits Expense","Hospital Services",2.4,"Outpatient FFS: Other than ER ",{"$f":"IFERROR('MMA Rev-Exp Region 10'!$Z$23/'MMA Rev-Exp Region 10'!$Z$9, 0)","v":{"v":0,"d":"$0.00"}},{"$f":"IFERROR('MMA Rev-Exp Region 10'!$AA$23/'MMA Rev-Exp Region 10'!$AA$9, 0)","v":{"v":0,"d":"$0.00"}},{"$f":"IFERROR('MMA Rev-Exp Region 10'!$AB$23/'MMA Rev-Exp Region 10'!$AB$9, 0)","v":{"v":0,"d":"$0.00"}},{"$f":"IFERROR('MMA Rev-Exp Region 10'!$AC$23/'MMA Rev-Exp Region 10'!$AC$9, 0)","v":{"v":0,"d":"$0.00"}},{"$f":"IFERROR('MMA Rev-Exp Region 10'!$AD$23/'MMA Rev-Exp Region 10'!$AD$9, 0)","v":{"v":0,"d":"$0.00"}},{"$f":"IFERROR('MMA Rev-Exp Region 10'!$AE$23/'MMA Rev-Exp Region 10'!$AE$9, 0)","v":{"v":0,"d":"$0.00"}},{"$f":"IFERROR('MMA Rev-Exp Region 10'!$AF$23/'MMA Rev-Exp Region 10'!$AF$9, 0)","v":{"v":0,"d":"$0.00"}},{"$f":"IFERROR('MMA Rev-Exp Region 10'!$AG$23/'MMA Rev-Exp Region 10'!$AG$9, 0)","v":{"v":0,"d":"$0.00"}},{"$f":"IFERROR('MMA Rev-Exp Region 10'!$AH$23/'MMA Rev-Exp Region 10'!$AH$9, 0)","v":{"v":0,"d":"$0.00"}},{"$f":"IFERROR('MMA Rev-Exp Region 10'!$AI$23/'MMA Rev-Exp Region 10'!$AI$9, 0)","v":{"v":0,"d":"$0.00"}},{"$f":"IFERROR('MMA Rev-Exp Region 10'!$AJ$23/'MMA Rev-Exp Region 10'!$AJ$9, 0)","v":{"v":0,"d":"$0.00"}}]
["MMA",null,null,2016,"2016-12-31","Q3","2017-09-30","Region 10","Operating Expense","Medical Benefits Expense","Hospital Services",2.5,"Ending IBNP for Outpatient Hospital Services",{"$f":"IFERROR('MMA Rev-Exp Region 10'!$Z$24/'MMA Rev-Exp Region 10'!$Z$9, 0)","v":{"v":0,"d":"$0.00"}},{"$f":"IFERROR('MMA Rev-Exp Region 10'!$AA$24/'MMA Rev-Exp Region 10'!$AA$9, 0)","v":{"v":0,"d":"$0.00"}},{"$f":"IFERROR('MMA Rev-Exp Region 10'!$AB$24/'MMA Rev-Exp Region 10'!$AB$9, 0)","v":{"v":0,"d":"$0.00"}},{"$f":"IFERROR('MMA Rev-Exp Region 10'!$AC$24/'MMA Rev-Exp Region 10'!$AC$9, 0)","v":{"v":0,"d":"$0.00"}},{"$f":"IFERROR('MMA Rev-Exp Region 10'!$AD$24/'MMA Rev-Exp Region 10'!$AD$9, 0)","v":{"v":0,"d":"$0.00"}},{"$f":"IFERROR('MMA Rev-Exp Region 10'!$AE$24/'MMA Rev-Exp Region 10'!$AE$9, 0)","v":{"v":0,"d":"$0.00"}},{"$f":"IFERROR('MMA Rev-Exp Region 10'!$AF$24/'MMA Rev-Exp Region 10'!$AF$9, 0)","v":{"v":0,"d":"$0.00"}},{"$f":"IFERROR('MMA Rev-Exp Region 10'!$AG$24/'MMA Rev-Exp Region 10'!$AG$9, 0)","v":{"v":0,"d":"$0.00"}},{"$f":"IFERROR('MMA Rev-Exp Region 10'!$AH$24/'MMA Rev-Exp Region 10'!$AH$9, 0)","v":{"v":0,"d":"$0.00"}},{"$f":"IFERROR('MMA Rev-Exp Region 10'!$AI$24/'MMA Rev-Exp Region 10'!$AI$9, 0)","v":{"v":0,"d":"$0.00"}},{"$f":"IFERROR('MMA Rev-Exp Region 10'!$AJ$24/'MMA Rev-Exp Region 10'!$AJ$9, 0)","v":{"v":0,"d":"$0.00"}}]
["MMA",null,null,2016,"2016-12-31","Q3","2017-09-30","Region 10","Operating Expense","Medical Benefits Expense","Hospital Services","2.6","Subcapitated Hospital Services",{"$f":"IFERROR('MMA Rev-Exp Region 10'!$Z$25/'MMA Rev-Exp Region 10'!$Z$9, 0)","v":{"v":0,"d":"$0.00"}},{"$f":"IFERROR('MMA Rev-Exp Region 10'!$AA$25/'MMA Rev-Exp Region 10'!$AA$9, 0)","v":{"v":0,"d":"$0.00"}},{"$f":"IFERROR('MMA Rev-Exp Region 10'!$AB$25/'MMA Rev-Exp Region 10'!$AB$9, 0)","v":{"v":0,"d":"$0.00"}},{"$f":"IFERROR('MMA Rev-Exp Region 10'!$AC$25/'MMA Rev-Exp Region 10'!$AC$9, 0)","v":{"v":0,"d":"$0.00"}},{"$f":"IFERROR('MMA Rev-Exp Region 10'!$AD$25/'MMA Rev-Exp Region 10'!$AD$9, 0)","v":{"v":0,"d":"$0.00"}},{"$f":"IFERROR('MMA Rev-Exp Region 10'!$AE$25/'MMA Rev-Exp Region 10'!$AE$9, 0)","v":{"v":0,"d":"$0.00"}},{"$f":"IFERROR('MMA Rev-Exp Region 10'!$AF$25/'MMA Rev-Exp Region 10'!$AF$9, 0)","v":{"v":0,"d":"$0.00"}},{"$f":"IFERROR('MMA Rev-Exp Region 10'!$AG$25/'MMA Rev-Exp Region 10'!$AG$9, 0)","v":{"v":0,"d":"$0.00"}},{"$f":"IFERROR('MMA Rev-Exp Region 10'!$AH$25/'MMA Rev-Exp Region 10'!$AH$9, 0)","v":{"v":0,"d":"$0.00"}},{"$f":"IFERROR('MMA Rev-Exp Region 10'!$AI$25/'MMA Rev-Exp Region 10'!$AI$9, 0)","v":{"v":0,"d":"$0.00"}},{"$f":"IFERROR('MMA Rev-Exp Region 10'!$AJ$25/'MMA Rev-Exp Region 10'!$AJ$9, 0)","v":{"v":0,"d":"$0.00"}}]
["MMA",null,null,2016,"2016-12-31","Q3","2017-09-30","Region 10","Operating Expense","Medical Benefits Expense","Hospital Services","2.7","Hospital Settlements",{"$f":"IFERROR('MMA Rev-Exp Region 10'!$Z$26/'MMA Rev-Exp Region 10'!$Z$9, 0)","v":{"v":0,"d":"$0.00"}},{"$f":"IFERROR('MMA Rev-Exp Region 10'!$AA$26/'MMA Rev-Exp Region 10'!$AA$9, 0)","v":{"v":0,"d":"$0.00"}},{"$f":"IFERROR('MMA Rev-Exp Region 10'!$AB$26/'MMA Rev-Exp Region 10'!$AB$9, 0)","v":{"v":0,"d":"$0.00"}},{"$f":"IFERROR('MMA Rev-Exp Region 10'!$AC$26/'MMA Rev-Exp Region 10'!$AC$9, 0)","v":{"v":0,"d":"$0.00"}},{"$f":"IFERROR('MMA Rev-Exp Region 10'!$AD$26/'MMA Rev-Exp Region 10'!$AD$9, 0)","v":{"v":0,"d":"$0.00"}},{"$f":"IFERROR('MMA Rev-Exp Region 10'!$AE$26/'MMA Rev-Exp Region 10'!$AE$9, 0)","v":{"v":0,"d":"$0.00"}},{"$f":"IFERROR('MMA Rev-Exp Region 10'!$AF$26/'MMA Rev-Exp Region 10'!$AF$9, 0)","v":{"v":0,"d":"$0.00"}},{"$f":"IFERROR('MMA Rev-Exp Region 10'!$AG$26/'MMA Rev-Exp Region 10'!$AG$9, 0)","v":{"v":0,"d":"$0.00"}},{"$f":"IFERROR('MMA Rev-Exp Region 10'!$AH$26/'MMA Rev-Exp Region 10'!$AH$9, 0)","v":{"v":0,"d":"$0.00"}},{"$f":"IFERROR('MMA Rev-Exp Region 10'!$AI$26/'MMA Rev-Exp Region 10'!$AI$9, 0)","v":{"v":0,"d":"$0.00"}},{"$f":"IFERROR('MMA Rev-Exp Region 10'!$AJ$26/'MMA Rev-Exp Region 10'!$AJ$9, 0)","v":{"v":0,"d":"$0.00"}}]
["MMA",null,null,2016,"2016-12-31","Q3","2017-09-30","Region 10","Operating Expense","Medical Benefits Expense","Hospital Services","2.7.1","Transplant Services",{"$f":"IFERROR('MMA Rev-Exp Region 10'!$Z$27/'MMA Rev-Exp Region 10'!$Z$9, 0)","v":{"v":0,"d":"$0.00"}},{"$f":"IFERROR('MMA Rev-Exp Region 10'!$AA$27/'MMA Rev-Exp Region 10'!$AA$9, 0)","v":{"v":0,"d":"$0.00"}},{"$f":"IFERROR('MMA Rev-Exp Region 10'!$AB$27/'MMA Rev-Exp Region 10'!$AB$9, 0)","v":{"v":0,"d":"$0.00"}},{"$f":"IFERROR('MMA Rev-Exp Region 10'!$AC$27/'MMA Rev-Exp Region 10'!$AC$9, 0)","v":{"v":0,"d":"$0.00"}},{"$f":"IFERROR('MMA Rev-Exp Region 10'!$AD$27/'MMA Rev-Exp Region 10'!$AD$9, 0)","v":{"v":0,"d":"$0.00"}},{"$f":"IFERROR('MMA Rev-Exp Region 10'!$AE$27/'MMA Rev-Exp Region 10'!$AE$9, 0)","v":{"v":0,"d":"$0.00"}},{"$f":"IFERROR('MMA Rev-Exp Region 10'!$AF$27/'MMA Rev-Exp Region 10'!$AF$9, 0)","v":{"v":0,"d":"$0.00"}},{"$f":"IFERROR('MMA Rev-Exp Region 10'!$AG$27/'MMA Rev-Exp Region 10'!$AG$9, 0)","v":{"v":0,"d":"$0.00"}},{"$f":"IFERROR('MMA Rev-Exp Region 10'!$AH$27/'MMA Rev-Exp Region 10'!$AH$9, 0)","v":{"v":0,"d":"$0.00"}},{"$f":"IFERROR('MMA Rev-Exp Region 10'!$AI$27/'MMA Rev-Exp Region 10'!$AI$9, 0)","v":{"v":0,"d":"$0.00"}},{"$f":"IFERROR('MMA Rev-Exp Region 10'!$AJ$27/'MMA Rev-Exp Region 10'!$AJ$9, 0)","v":{"v":0,"d":"$0.00"}}]
["MMA",null,null,2016,"2016-12-31","Q3","2017-09-30","Region 10","Operating Expense","Medical Benefits Expense","Professional Services",3.1,"Primary Care FFS",{"$f":"IFERROR('MMA Rev-Exp Region 10'!$Z$29/'MMA Rev-Exp Region 10'!$Z$9, 0)","v":{"v":0,"d":"$0.00"}},{"$f":"IFERROR('MMA Rev-Exp Region 10'!$AA$29/'MMA Rev-Exp Region 10'!$AA$9, 0)","v":{"v":0,"d":"$0.00"}},{"$f":"IFERROR('MMA Rev-Exp Region 10'!$AB$29/'MMA Rev-Exp Region 10'!$AB$9, 0)","v":{"v":0,"d":"$0.00"}},{"$f":"IFERROR('MMA Rev-Exp Region 10'!$AC$29/'MMA Rev-Exp Region 10'!$AC$9, 0)","v":{"v":0,"d":"$0.00"}},{"$f":"IFERROR('MMA Rev-Exp Region 10'!$AD$29/'MMA Rev-Exp Region 10'!$AD$9, 0)","v":{"v":0,"d":"$0.00"}},{"$f":"IFERROR('MMA Rev-Exp Region 10'!$AE$29/'MMA Rev-Exp Region 10'!$AE$9, 0)","v":{"v":0,"d":"$0.00"}},{"$f":"IFERROR('MMA Rev-Exp Region 10'!$AF$29/'MMA Rev-Exp Region 10'!$AF$9, 0)","v":{"v":0,"d":"$0.00"}},{"$f":"IFERROR('MMA Rev-Exp Region 10'!$AG$29/'MMA Rev-Exp Region 10'!$AG$9, 0)","v":{"v":0,"d":"$0.00"}},{"$f":"IFERROR('MMA Rev-Exp Region 10'!$AH$29/'MMA Rev-Exp Region 10'!$AH$9, 0)","v":{"v":0,"d":"$0.00"}},{"$f":"IFERROR('MMA Rev-Exp Region 10'!$AI$29/'MMA Rev-Exp Region 10'!$AI$9, 0)","v":{"v":0,"d":"$0.00"}},{"$f":"IFERROR('MMA Rev-Exp Region 10'!$AJ$29/'MMA Rev-Exp Region 10'!$AJ$9, 0)","v":{"v":0,"d":"$0.00"}}]
["MMA",null,null,2016,"2016-12-31","Q3","2017-09-30","Region 10","Operating Expense","Medical Benefits Expense","Professional Services",3.2,"Specialty Care FFS",{"$f":"IFERROR('MMA Rev-Exp Region 10'!$Z$30/'MMA Rev-Exp Region 10'!$Z$9, 0)","v":{"v":0,"d":"$0.00"}},{"$f":"IFERROR('MMA Rev-Exp Region 10'!$AA$30/'MMA Rev-Exp Region 10'!$AA$9, 0)","v":{"v":0,"d":"$0.00"}},{"$f":"IFERROR('MMA Rev-Exp Region 10'!$AB$30/'MMA Rev-Exp Region 10'!$AB$9, 0)","v":{"v":0,"d":"$0.00"}},{"$f":"IFERROR('MMA Rev-Exp Region 10'!$AC$30/'MMA Rev-Exp Region 10'!$AC$9, 0)","v":{"v":0,"d":"$0.00"}},{"$f":"IFERROR('MMA Rev-Exp Region 10'!$AD$30/'MMA Rev-Exp Region 10'!$AD$9, 0)","v":{"v":0,"d":"$0.00"}},{"$f":"IFERROR('MMA Rev-Exp Region 10'!$AE$30/'MMA Rev-Exp Region 10'!$AE$9, 0)","v":{"v":0,"d":"$0.00"}},{"$f":"IFERROR('MMA Rev-Exp Region 10'!$AF$30/'MMA Rev-Exp Region 10'!$AF$9, 0)","v":{"v":0,"d":"$0.00"}},{"$f":"IFERROR('MMA Rev-Exp Region 10'!$AG$30/'MMA Rev-Exp Region 10'!$AG$9, 0)","v":{"v":0,"d":"$0.00"}},{"$f":"IFERROR('MMA Rev-Exp Region 10'!$AH$30/'MMA Rev-Exp Region 10'!$AH$9, 0)","v":{"v":0,"d":"$0.00"}},{"$f":"IFERROR('MMA Rev-Exp Region 10'!$AI$30/'MMA Rev-Exp Region 10'!$AI$9, 0)","v":{"v":0,"d":"$0.00"}},{"$f":"IFERROR('MMA Rev-Exp Region 10'!$AJ$30/'MMA Rev-Exp Region 10'!$AJ$9, 0)","v":{"v":0,"d":"$0.00"}}]
["MMA",null,null,2016,"2016-12-31","Q3","2017-09-30","Region 10","Operating Expense","Medical Benefits Expense","Professional Services",3.3,"Other Professional FFS",{"$f":"IFERROR('MMA Rev-Exp Region 10'!$Z$31/'MMA Rev-Exp Region 10'!$Z$9, 0)","v":{"v":0,"d":"$0.00"}},{"$f":"IFERROR('MMA Rev-Exp Region 10'!$AA$31/'MMA Rev-Exp Region 10'!$AA$9, 0)","v":{"v":0,"d":"$0.00"}},{"$f":"IFERROR('MMA Rev-Exp Region 10'!$AB$31/'MMA Rev-Exp Region 10'!$AB$9, 0)","v":{"v":0,"d":"$0.00"}},{"$f":"IFERROR('MMA Rev-Exp Region 10'!$AC$31/'MMA Rev-Exp Region 10'!$AC$9, 0)","v":{"v":0,"d":"$0.00"}},{"$f":"IFERROR('MMA Rev-Exp Region 10'!$AD$31/'MMA Rev-Exp Region 10'!$AD$9, 0)","v":{"v":0,"d":"$0.00"}},{"$f":"IFERROR('MMA Rev-Exp Region 10'!$AE$31/'MMA Rev-Exp Region 10'!$AE$9, 0)","v":{"v":0,"d":"$0.00"}},{"$f":"IFERROR('MMA Rev-Exp Region 10'!$AF$31/'MMA Rev-Exp Region 10'!$AF$9, 0)","v":{"v":0,"d":"$0.00"}},{"$f":"IFERROR('MMA Rev-Exp Region 10'!$AG$31/'MMA Rev-Exp Region 10'!$AG$9, 0)","v":{"v":0,"d":"$0.00"}},{"$f":"IFERROR('MMA Rev-Exp Region 10'!$AH$31/'MMA Rev-Exp Region 10'!$AH$9, 0)","v":{"v":0,"d":"$0.00"}},{"$f":"IFERROR('MMA Rev-Exp Region 10'!$AI$31/'MMA Rev-Exp Region 10'!$AI$9, 0)","v":{"v":0,"d":"$0.00"}},{"$f":"IFERROR('MMA Rev-Exp Region 10'!$AJ$31/'MMA Rev-Exp Region 10'!$AJ$9, 0)","v":{"v":0,"d":"$0.00"}}]
["MMA",null,null,2016,"2016-12-31","Q3","2017-09-30","Region 10","Operating Expense","Medical Benefits Expense","Professional Services","3.4","§ 1202 PCP Payments to providers",{"$f":"IFERROR('MMA Rev-Exp Region 10'!$Z$32/'MMA Rev-Exp Region 10'!$Z$9, 0)","v":{"v":0,"d":"$0.00"}},{"$f":"IFERROR('MMA Rev-Exp Region 10'!$AA$32/'MMA Rev-Exp Region 10'!$AA$9, 0)","v":{"v":0,"d":"$0.00"}},{"$f":"IFERROR('MMA Rev-Exp Region 10'!$AB$32/'MMA Rev-Exp Region 10'!$AB$9, 0)","v":{"v":0,"d":"$0.00"}},{"$f":"IFERROR('MMA Rev-Exp Region 10'!$AC$32/'MMA Rev-Exp Region 10'!$AC$9, 0)","v":{"v":0,"d":"$0.00"}},{"$f":"IFERROR('MMA Rev-Exp Region 10'!$AD$32/'MMA Rev-Exp Region 10'!$AD$9, 0)","v":{"v":0,"d":"$0.00"}},{"$f":"IFERROR('MMA Rev-Exp Region 10'!$AE$32/'MMA Rev-Exp Region 10'!$AE$9, 0)","v":{"v":0,"d":"$0.00"}},{"$f":"IFERROR('MMA Rev-Exp Region 10'!$AF$32/'MMA Rev-Exp Region 10'!$AF$9, 0)","v":{"v":0,"d":"$0.00"}},{"$f":"IFERROR('MMA Rev-Exp Region 10'!$AG$32/'MMA Rev-Exp Region 10'!$AG$9, 0)","v":{"v":0,"d":"$0.00"}},{"$f":"IFERROR('MMA Rev-Exp Region 10'!$AH$32/'MMA Rev-Exp Region 10'!$AH$9, 0)","v":{"v":0,"d":"$0.00"}},{"$f":"IFERROR('MMA Rev-Exp Region 10'!$AI$32/'MMA Rev-Exp Region 10'!$AI$9, 0)","v":{"v":0,"d":"$0.00"}},{"$f":"IFERROR('MMA Rev-Exp Region 10'!$AJ$32/'MMA Rev-Exp Region 10'!$AJ$9, 0)","v":{"v":0,"d":"$0.00"}}]
["MMA",null,null,2016,"2016-12-31","Q3","2017-09-30","Region 10","Operating Expense","Medical Benefits Expense","Professional Services","3.5","Subcapitated Professional Services",{"$f":"IFERROR('MMA Rev-Exp Region 10'!$Z$33/'MMA Rev-Exp Region 10'!$Z$9, 0)","v":{"v":0,"d":"$0.00"}},{"$f":"IFERROR('MMA Rev-Exp Region 10'!$AA$33/'MMA Rev-Exp Region 10'!$AA$9, 0)","v":{"v":0,"d":"$0.00"}},{"$f":"IFERROR('MMA Rev-Exp Region 10'!$AB$33/'MMA Rev-Exp Region 10'!$AB$9, 0)","v":{"v":0,"d":"$0.00"}},{"$f":"IFERROR('MMA Rev-Exp Region 10'!$AC$33/'MMA Rev-Exp Region 10'!$AC$9, 0)","v":{"v":0,"d":"$0.00"}},{"$f":"IFERROR('MMA Rev-Exp Region 10'!$AD$33/'MMA Rev-Exp Region 10'!$AD$9, 0)","v":{"v":0,"d":"$0.00"}},{"$f":"IFERROR('MMA Rev-Exp Region 10'!$AE$33/'MMA Rev-Exp Region 10'!$AE$9, 0)","v":{"v":0,"d":"$0.00"}},{"$f":"IFERROR('MMA Rev-Exp Region 10'!$AF$33/'MMA Rev-Exp Region 10'!$AF$9, 0)","v":{"v":0,"d":"$0.00"}},{"$f":"IFERROR('MMA Rev-Exp Region 10'!$AG$33/'MMA Rev-Exp Region 10'!$AG$9, 0)","v":{"v":0,"d":"$0.00"}},{"$f":"IFERROR('MMA Rev-Exp Region 10'!$AH$33/'MMA Rev-Exp Region 10'!$AH$9, 0)","v":{"v":0,"d":"$0.00"}},{"$f":"IFERROR('MMA Rev-Exp Region 10'!$AI$33/'MMA Rev-Exp Region 10'!$AI$9, 0)","v":{"v":0,"d":"$0.00"}},{"$f":"IFERROR('MMA Rev-Exp Region 10'!$AJ$33/'MMA Rev-Exp Region 10'!$AJ$9, 0)","v":{"v":0,"d":"$0.00"}}]
["MMA",null,null,2016,"2016-12-31","Q3","2017-09-30","Region 10","Operating Expense","Medical Benefits Expense","Professional Services","3.6","Ending IBNP for Professional Services",{"$f":"IFERROR('MMA Rev-Exp Region 10'!$Z$34/'MMA Rev-Exp Region 10'!$Z$9, 0)","v":{"v":0,"d":"$0.00"}},{"$f":"IFERROR('MMA Rev-Exp Region 10'!$AA$34/'MMA Rev-Exp Region 10'!$AA$9, 0)","v":{"v":0,"d":"$0.00"}},{"$f":"IFERROR('MMA Rev-Exp Region 10'!$AB$34/'MMA Rev-Exp Region 10'!$AB$9, 0)","v":{"v":0,"d":"$0.00"}},{"$f":"IFERROR('MMA Rev-Exp Region 10'!$AC$34/'MMA Rev-Exp Region 10'!$AC$9, 0)","v":{"v":0,"d":"$0.00"}},{"$f":"IFERROR('MMA Rev-Exp Region 10'!$AD$34/'MMA Rev-Exp Region 10'!$AD$9, 0)","v":{"v":0,"d":"$0.00"}},{"$f":"IFERROR('MMA Rev-Exp Region 10'!$AE$34/'MMA Rev-Exp Region 10'!$AE$9, 0)","v":{"v":0,"d":"$0.00"}},{"$f":"IFERROR('MMA Rev-Exp Region 10'!$AF$34/'MMA Rev-Exp Region 10'!$AF$9, 0)","v":{"v":0,"d":"$0.00"}},{"$f":"IFERROR('MMA Rev-Exp Region 10'!$AG$34/'MMA Rev-Exp Region 10'!$AG$9, 0)","v":{"v":0,"d":"$0.00"}},{"$f":"IFERROR('MMA Rev-Exp Region 10'!$AH$34/'MMA Rev-Exp Region 10'!$AH$9, 0)","v":{"v":0,"d":"$0.00"}},{"$f":"IFERROR('MMA Rev-Exp Region 10'!$AI$34/'MMA Rev-Exp Region 10'!$AI$9, 0)","v":{"v":0,"d":"$0.00"}},{"$f":"IFERROR('MMA Rev-Exp Region 10'!$AJ$34/'MMA Rev-Exp Region 10'!$AJ$9, 0)","v":{"v":0,"d":"$0.00"}}]
["MMA",null,null,2016,"2016-12-31","Q3","2017-09-30","Region 10","Operating Expense","Medical Benefits Expense","Professional Services","3.7","Professional Services Settlements",{"$f":"IFERROR('MMA Rev-Exp Region 10'!$Z$35/'MMA Rev-Exp Region 10'!$Z$9, 0)","v":{"v":0,"d":"$0.00"}},{"$f":"IFERROR('MMA Rev-Exp Region 10'!$AA$35/'MMA Rev-Exp Region 10'!$AA$9, 0)","v":{"v":0,"d":"$0.00"}},{"$f":"IFERROR('MMA Rev-Exp Region 10'!$AB$35/'MMA Rev-Exp Region 10'!$AB$9, 0)","v":{"v":0,"d":"$0.00"}},{"$f":"IFERROR('MMA Rev-Exp Region 10'!$AC$35/'MMA Rev-Exp Region 10'!$AC$9, 0)","v":{"v":0,"d":"$0.00"}},{"$f":"IFERROR('MMA Rev-Exp Region 10'!$AD$35/'MMA Rev-Exp Region 10'!$AD$9, 0)","v":{"v":0,"d":"$0.00"}},{"$f":"IFERROR('MMA Rev-Exp Region 10'!$AE$35/'MMA Rev-Exp Region 10'!$AE$9, 0)","v":{"v":0,"d":"$0.00"}},{"$f":"IFERROR('MMA Rev-Exp Region 10'!$AF$35/'MMA Rev-Exp Region 10'!$AF$9, 0)","v":{"v":0,"d":"$0.00"}},{"$f":"IFERROR('MMA Rev-Exp Region 10'!$AG$35/'MMA Rev-Exp Region 10'!$AG$9, 0)","v":{"v":0,"d":"$0.00"}},{"$f":"IFERROR('MMA Rev-Exp Region 10'!$AH$35/'MMA Rev-Exp Region 10'!$AH$9, 0)","v":{"v":0,"d":"$0.00"}},{"$f":"IFERROR('MMA Rev-Exp Region 10'!$AI$35/'MMA Rev-Exp Region 10'!$AI$9, 0)","v":{"v":0,"d":"$0.00"}},{"$f":"IFERROR('MMA Rev-Exp Region 10'!$AJ$35/'MMA Rev-Exp Region 10'!$AJ$9, 0)","v":{"v":0,"d":"$0.00"}}]
["MMA",null,null,2016,"2016-12-31","Q3","2017-09-30","Region 10","Operating Expense","Medical Benefits Expense","Maternity Services","4.1.1","Maternity Services",{"$f":"IFERROR('MMA Rev-Exp Region 10'!$Z$37/'MMA Rev-Exp Region 10'!$Z$9, 0)","v":{"v":0,"d":"$0.00"}},{"$f":"IFERROR('MMA Rev-Exp Region 10'!$AA$37/'MMA Rev-Exp Region 10'!$AA$9, 0)","v":{"v":0,"d":"$0.00"}},{"$f":"IFERROR('MMA Rev-Exp Region 10'!$AB$37/'MMA Rev-Exp Region 10'!$AB$9, 0)","v":{"v":0,"d":"$0.00"}},{"$f":"IFERROR('MMA Rev-Exp Region 10'!$AC$37/'MMA Rev-Exp Region 10'!$AC$9, 0)","v":{"v":0,"d":"$0.00"}},{"$f":"IFERROR('MMA Rev-Exp Region 10'!$AD$37/'MMA Rev-Exp Region 10'!$AD$9, 0)","v":{"v":0,"d":"$0.00"}},{"$f":"IFERROR('MMA Rev-Exp Region 10'!$AE$37/'MMA Rev-Exp Region 10'!$AE$9, 0)","v":{"v":0,"d":"$0.00"}},{"$f":"IFERROR('MMA Rev-Exp Region 10'!$AF$37/'MMA Rev-Exp Region 10'!$AF$9, 0)","v":{"v":0,"d":"$0.00"}},{"$f":"IFERROR('MMA Rev-Exp Region 10'!$AG$37/'MMA Rev-Exp Region 10'!$AG$9, 0)","v":{"v":0,"d":"$0.00"}},{"$f":"IFERROR('MMA Rev-Exp Region 10'!$AH$37/'MMA Rev-Exp Region 10'!$AH$9, 0)","v":{"v":0,"d":"$0.00"}},{"$f":"IFERROR('MMA Rev-Exp Region 10'!$AI$37/'MMA Rev-Exp Region 10'!$AI$9, 0)","v":{"v":0,"d":"$0.00"}},{"$f":"IFERROR('MMA Rev-Exp Region 10'!$AJ$37/'MMA Rev-Exp Region 10'!$AJ$9, 0)","v":{"v":0,"d":"$0.00"}}]
["MMA",null,null,2016,"2016-12-31","Q3","2017-09-30","Region 10","Operating Expense","Medical Benefits Expense","Maternity Services","4.2.1","Ending IBNP for Maternity Services",{"$f":"IFERROR('MMA Rev-Exp Region 10'!$Z$38/'MMA Rev-Exp Region 10'!$Z$9, 0)","v":{"v":0,"d":"$0.00"}},{"$f":"IFERROR('MMA Rev-Exp Region 10'!$AA$38/'MMA Rev-Exp Region 10'!$AA$9, 0)","v":{"v":0,"d":"$0.00"}},{"$f":"IFERROR('MMA Rev-Exp Region 10'!$AB$38/'MMA Rev-Exp Region 10'!$AB$9, 0)","v":{"v":0,"d":"$0.00"}},{"$f":"IFERROR('MMA Rev-Exp Region 10'!$AC$38/'MMA Rev-Exp Region 10'!$AC$9, 0)","v":{"v":0,"d":"$0.00"}},{"$f":"IFERROR('MMA Rev-Exp Region 10'!$AD$38/'MMA Rev-Exp Region 10'!$AD$9, 0)","v":{"v":0,"d":"$0.00"}},{"$f":"IFERROR('MMA Rev-Exp Region 10'!$AE$38/'MMA Rev-Exp Region 10'!$AE$9, 0)","v":{"v":0,"d":"$0.00"}},{"$f":"IFERROR('MMA Rev-Exp Region 10'!$AF$38/'MMA Rev-Exp Region 10'!$AF$9, 0)","v":{"v":0,"d":"$0.00"}},{"$f":"IFERROR('MMA Rev-Exp Region 10'!$AG$38/'MMA Rev-Exp Region 10'!$AG$9, 0)","v":{"v":0,"d":"$0.00"}},{"$f":"IFERROR('MMA Rev-Exp Region 10'!$AH$38/'MMA Rev-Exp Region 10'!$AH$9, 0)","v":{"v":0,"d":"$0.00"}},{"$f":"IFERROR('MMA Rev-Exp Region 10'!$AI$38/'MMA Rev-Exp Region 10'!$AI$9, 0)","v":{"v":0,"d":"$0.00"}},{"$f":"IFERROR('MMA Rev-Exp Region 10'!$AJ$38/'MMA Rev-Exp Region 10'!$AJ$9, 0)","v":{"v":0,"d":"$0.00"}}]
["MMA",null,null,2016,"2016-12-31","Q3","2017-09-30","Region 10","Operating Expense","Medical Benefits Expense","Maternity Services","4.3.1","Maternity Settlements",{"$f":"IFERROR('MMA Rev-Exp Region 10'!$Z$39/'MMA Rev-Exp Region 10'!$Z$9, 0)","v":{"v":0,"d":"$0.00"}},{"$f":"IFERROR('MMA Rev-Exp Region 10'!$AA$39/'MMA Rev-Exp Region 10'!$AA$9, 0)","v":{"v":0,"d":"$0.00"}},{"$f":"IFERROR('MMA Rev-Exp Region 10'!$AB$39/'MMA Rev-Exp Region 10'!$AB$9, 0)","v":{"v":0,"d":"$0.00"}},{"$f":"IFERROR('MMA Rev-Exp Region 10'!$AC$39/'MMA Rev-Exp Region 10'!$AC$9, 0)","v":{"v":0,"d":"$0.00"}},{"$f":"IFERROR('MMA Rev-Exp Region 10'!$AD$39/'MMA Rev-Exp Region 10'!$AD$9, 0)","v":{"v":0,"d":"$0.00"}},{"$f":"IFERROR('MMA Rev-Exp Region 10'!$AE$39/'MMA Rev-Exp Region 10'!$AE$9, 0)","v":{"v":0,"d":"$0.00"}},{"$f":"IFERROR('MMA Rev-Exp Region 10'!$AF$39/'MMA Rev-Exp Region 10'!$AF$9, 0)","v":{"v":0,"d":"$0.00"}},{"$f":"IFERROR('MMA Rev-Exp Region 10'!$AG$39/'MMA Rev-Exp Region 10'!$AG$9, 0)","v":{"v":0,"d":"$0.00"}},{"$f":"IFERROR('MMA Rev-Exp Region 10'!$AH$39/'MMA Rev-Exp Region 10'!$AH$9, 0)","v":{"v":0,"d":"$0.00"}},{"$f":"IFERROR('MMA Rev-Exp Region 10'!$AI$39/'MMA Rev-Exp Region 10'!$AI$9, 0)","v":{"v":0,"d":"$0.00"}},{"$f":"IFERROR('MMA Rev-Exp Region 10'!$AJ$39/'MMA Rev-Exp Region 10'!$AJ$9, 0)","v":{"v":0,"d":"$0.00"}}]
["MMA",null,null,2016,"2016-12-31","Q3","2017-09-30","Region 10","Operating Expense","Medical Benefits Expense","Mental Health Services",5.1,"Mental Health & Substance Abuse FFS",{"$f":"IFERROR('MMA Rev-Exp Region 10'!$Z$41/'MMA Rev-Exp Region 10'!$Z$9, 0)","v":{"v":0,"d":"$0.00"}},{"$f":"IFERROR('MMA Rev-Exp Region 10'!$AA$41/'MMA Rev-Exp Region 10'!$AA$9, 0)","v":{"v":0,"d":"$0.00"}},{"$f":"IFERROR('MMA Rev-Exp Region 10'!$AB$41/'MMA Rev-Exp Region 10'!$AB$9, 0)","v":{"v":0,"d":"$0.00"}},{"$f":"IFERROR('MMA Rev-Exp Region 10'!$AC$41/'MMA Rev-Exp Region 10'!$AC$9, 0)","v":{"v":0,"d":"$0.00"}},{"$f":"IFERROR('MMA Rev-Exp Region 10'!$AD$41/'MMA Rev-Exp Region 10'!$AD$9, 0)","v":{"v":0,"d":"$0.00"}},{"$f":"IFERROR('MMA Rev-Exp Region 10'!$AE$41/'MMA Rev-Exp Region 10'!$AE$9, 0)","v":{"v":0,"d":"$0.00"}},{"$f":"IFERROR('MMA Rev-Exp Region 10'!$AF$41/'MMA Rev-Exp Region 10'!$AF$9, 0)","v":{"v":0,"d":"$0.00"}},{"$f":"IFERROR('MMA Rev-Exp Region 10'!$AG$41/'MMA Rev-Exp Region 10'!$AG$9, 0)","v":{"v":0,"d":"$0.00"}},{"$f":"IFERROR('MMA Rev-Exp Region 10'!$AH$41/'MMA Rev-Exp Region 10'!$AH$9, 0)","v":{"v":0,"d":"$0.00"}},{"$f":"IFERROR('MMA Rev-Exp Region 10'!$AI$41/'MMA Rev-Exp Region 10'!$AI$9, 0)","v":{"v":0,"d":"$0.00"}},{"$f":"IFERROR('MMA Rev-Exp Region 10'!$AJ$41/'MMA Rev-Exp Region 10'!$AJ$9, 0)","v":{"v":0,"d":"$0.00"}}]
["MMA",null,null,2016,"2016-12-31","Q3","2017-09-30","Region 10","Operating Expense","Medical Benefits Expense","Mental Health Services",5.2,"Mental Health & Substance Abuse Subcapitation",{"$f":"IFERROR('MMA Rev-Exp Region 10'!$Z$42/'MMA Rev-Exp Region 10'!$Z$9, 0)","v":{"v":0,"d":"$0.00"}},{"$f":"IFERROR('MMA Rev-Exp Region 10'!$AA$42/'MMA Rev-Exp Region 10'!$AA$9, 0)","v":{"v":0,"d":"$0.00"}},{"$f":"IFERROR('MMA Rev-Exp Region 10'!$AB$42/'MMA Rev-Exp Region 10'!$AB$9, 0)","v":{"v":0,"d":"$0.00"}},{"$f":"IFERROR('MMA Rev-Exp Region 10'!$AC$42/'MMA Rev-Exp Region 10'!$AC$9, 0)","v":{"v":0,"d":"$0.00"}},{"$f":"IFERROR('MMA Rev-Exp Region 10'!$AD$42/'MMA Rev-Exp Region 10'!$AD$9, 0)","v":{"v":0,"d":"$0.00"}},{"$f":"IFERROR('MMA Rev-Exp Region 10'!$AE$42/'MMA Rev-Exp Region 10'!$AE$9, 0)","v":{"v":0,"d":"$0.00"}},{"$f":"IFERROR('MMA Rev-Exp Region 10'!$AF$42/'MMA Rev-Exp Region 10'!$AF$9, 0)","v":{"v":0,"d":"$0.00"}},{"$f":"IFERROR('MMA Rev-Exp Region 10'!$AG$42/'MMA Rev-Exp Region 10'!$AG$9, 0)","v":{"v":0,"d":"$0.00"}},{"$f":"IFERROR('MMA Rev-Exp Region 10'!$AH$42/'MMA Rev-Exp Region 10'!$AH$9, 0)","v":{"v":0,"d":"$0.00"}},{"$f":"IFERROR('MMA Rev-Exp Region 10'!$AI$42/'MMA Rev-Exp Region 10'!$AI$9, 0)","v":{"v":0,"d":"$0.00"}},{"$f":"IFERROR('MMA Rev-Exp Region 10'!$AJ$42/'MMA Rev-Exp Region 10'!$AJ$9, 0)","v":{"v":0,"d":"$0.00"}}]
["MMA",null,null,2016,"2016-12-31","Q3","2017-09-30","Region 10","Operating Expense","Medical Benefits Expense","Mental Health Services",5.3,"Ending IBNP for Mental Health & Substance Abuse",{"$f":"IFERROR('MMA Rev-Exp Region 10'!$Z$43/'MMA Rev-Exp Region 10'!$Z$9, 0)","v":{"v":0,"d":"$0.00"}},{"$f":"IFERROR('MMA Rev-Exp Region 10'!$AA$43/'MMA Rev-Exp Region 10'!$AA$9, 0)","v":{"v":0,"d":"$0.00"}},{"$f":"IFERROR('MMA Rev-Exp Region 10'!$AB$43/'MMA Rev-Exp Region 10'!$AB$9, 0)","v":{"v":0,"d":"$0.00"}},{"$f":"IFERROR('MMA Rev-Exp Region 10'!$AC$43/'MMA Rev-Exp Region 10'!$AC$9, 0)","v":{"v":0,"d":"$0.00"}},{"$f":"IFERROR('MMA Rev-Exp Region 10'!$AD$43/'MMA Rev-Exp Region 10'!$AD$9, 0)","v":{"v":0,"d":"$0.00"}},{"$f":"IFERROR('MMA Rev-Exp Region 10'!$AE$43/'MMA Rev-Exp Region 10'!$AE$9, 0)","v":{"v":0,"d":"$0.00"}},{"$f":"IFERROR('MMA Rev-Exp Region 10'!$AF$43/'MMA Rev-Exp Region 10'!$AF$9, 0)","v":{"v":0,"d":"$0.00"}},{"$f":"IFERROR('MMA Rev-Exp Region 10'!$AG$43/'MMA Rev-Exp Region 10'!$AG$9, 0)","v":{"v":0,"d":"$0.00"}},{"$f":"IFERROR('MMA Rev-Exp Region 10'!$AH$43/'MMA Rev-Exp Region 10'!$AH$9, 0)","v":{"v":0,"d":"$0.00"}},{"$f":"IFERROR('MMA Rev-Exp Region 10'!$AI$43/'MMA Rev-Exp Region 10'!$AI$9, 0)","v":{"v":0,"d":"$0.00"}},{"$f":"IFERROR('MMA Rev-Exp Region 10'!$AJ$43/'MMA Rev-Exp Region 10'!$AJ$9, 0)","v":{"v":0,"d":"$0.00"}}]
["MMA",null,null,2016,"2016-12-31","Q3","2017-09-30","Region 10","Operating Expense","Medical Benefits Expense","Mental Health Services","5.4","Mental Health Settlements",{"$f":"IFERROR('MMA Rev-Exp Region 10'!$Z$44/'MMA Rev-Exp Region 10'!$Z$9, 0)","v":{"v":0,"d":"$0.00"}},{"$f":"IFERROR('MMA Rev-Exp Region 10'!$AA$44/'MMA Rev-Exp Region 10'!$AA$9, 0)","v":{"v":0,"d":"$0.00"}},{"$f":"IFERROR('MMA Rev-Exp Region 10'!$AB$44/'MMA Rev-Exp Region 10'!$AB$9, 0)","v":{"v":0,"d":"$0.00"}},{"$f":"IFERROR('MMA Rev-Exp Region 10'!$AC$44/'MMA Rev-Exp Region 10'!$AC$9, 0)","v":{"v":0,"d":"$0.00"}},{"$f":"IFERROR('MMA Rev-Exp Region 10'!$AD$44/'MMA Rev-Exp Region 10'!$AD$9, 0)","v":{"v":0,"d":"$0.00"}},{"$f":"IFERROR('MMA Rev-Exp Region 10'!$AE$44/'MMA Rev-Exp Region 10'!$AE$9, 0)","v":{"v":0,"d":"$0.00"}},{"$f":"IFERROR('MMA Rev-Exp Region 10'!$AF$44/'MMA Rev-Exp Region 10'!$AF$9, 0)","v":{"v":0,"d":"$0.00"}},{"$f":"IFERROR('MMA Rev-Exp Region 10'!$AG$44/'MMA Rev-Exp Region 10'!$AG$9, 0)","v":{"v":0,"d":"$0.00"}},{"$f":"IFERROR('MMA Rev-Exp Region 10'!$AH$44/'MMA Rev-Exp Region 10'!$AH$9, 0)","v":{"v":0,"d":"$0.00"}},{"$f":"IFERROR('MMA Rev-Exp Region 10'!$AI$44/'MMA Rev-Exp Region 10'!$AI$9, 0)","v":{"v":0,"d":"$0.00"}},{"$f":"IFERROR('MMA Rev-Exp Region 10'!$AJ$44/'MMA Rev-Exp Region 10'!$AJ$9, 0)","v":{"v":0,"d":"$0.00"}}]
["MMA",null,null,2016,"2016-12-31","Q3","2017-09-30","Region 10","Operating Expense","Medical Benefits Expense","Dental Services",6.1,"Dental FFS",{"$f":"IFERROR('MMA Rev-Exp Region 10'!$Z$46/'MMA Rev-Exp Region 10'!$Z$9, 0)","v":{"v":0,"d":"$0.00"}},{"$f":"IFERROR('MMA Rev-Exp Region 10'!$AA$46/'MMA Rev-Exp Region 10'!$AA$9, 0)","v":{"v":0,"d":"$0.00"}},{"$f":"IFERROR('MMA Rev-Exp Region 10'!$AB$46/'MMA Rev-Exp Region 10'!$AB$9, 0)","v":{"v":0,"d":"$0.00"}},{"$f":"IFERROR('MMA Rev-Exp Region 10'!$AC$46/'MMA Rev-Exp Region 10'!$AC$9, 0)","v":{"v":0,"d":"$0.00"}},{"$f":"IFERROR('MMA Rev-Exp Region 10'!$AD$46/'MMA Rev-Exp Region 10'!$AD$9, 0)","v":{"v":0,"d":"$0.00"}},{"$f":"IFERROR('MMA Rev-Exp Region 10'!$AE$46/'MMA Rev-Exp Region 10'!$AE$9, 0)","v":{"v":0,"d":"$0.00"}},{"$f":"IFERROR('MMA Rev-Exp Region 10'!$AF$46/'MMA Rev-Exp Region 10'!$AF$9, 0)","v":{"v":0,"d":"$0.00"}},{"$f":"IFERROR('MMA Rev-Exp Region 10'!$AG$46/'MMA Rev-Exp Region 10'!$AG$9, 0)","v":{"v":0,"d":"$0.00"}},{"$f":"IFERROR('MMA Rev-Exp Region 10'!$AH$46/'MMA Rev-Exp Region 10'!$AH$9, 0)","v":{"v":0,"d":"$0.00"}},{"$f":"IFERROR('MMA Rev-Exp Region 10'!$AI$46/'MMA Rev-Exp Region 10'!$AI$9, 0)","v":{"v":0,"d":"$0.00"}},{"$f":"IFERROR('MMA Rev-Exp Region 10'!$AJ$46/'MMA Rev-Exp Region 10'!$AJ$9, 0)","v":{"v":0,"d":"$0.00"}}]
["MMA",null,null,2016,"2016-12-31","Q3","2017-09-30","Region 10","Operating Expense","Medical Benefits Expense","Dental Services",6.2,"Dental Subcapitation",{"$f":"IFERROR('MMA Rev-Exp Region 10'!$Z$47/'MMA Rev-Exp Region 10'!$Z$9, 0)","v":{"v":0,"d":"$0.00"}},{"$f":"IFERROR('MMA Rev-Exp Region 10'!$AA$47/'MMA Rev-Exp Region 10'!$AA$9, 0)","v":{"v":0,"d":"$0.00"}},{"$f":"IFERROR('MMA Rev-Exp Region 10'!$AB$47/'MMA Rev-Exp Region 10'!$AB$9, 0)","v":{"v":0,"d":"$0.00"}},{"$f":"IFERROR('MMA Rev-Exp Region 10'!$AC$47/'MMA Rev-Exp Region 10'!$AC$9, 0)","v":{"v":0,"d":"$0.00"}},{"$f":"IFERROR('MMA Rev-Exp Region 10'!$AD$47/'MMA Rev-Exp Region 10'!$AD$9, 0)","v":{"v":0,"d":"$0.00"}},{"$f":"IFERROR('MMA Rev-Exp Region 10'!$AE$47/'MMA Rev-Exp Region 10'!$AE$9, 0)","v":{"v":0,"d":"$0.00"}},{"$f":"IFERROR('MMA Rev-Exp Region 10'!$AF$47/'MMA Rev-Exp Region 10'!$AF$9, 0)","v":{"v":0,"d":"$0.00"}},{"$f":"IFERROR('MMA Rev-Exp Region 10'!$AG$47/'MMA Rev-Exp Region 10'!$AG$9, 0)","v":{"v":0,"d":"$0.00"}},{"$f":"IFERROR('MMA Rev-Exp Region 10'!$AH$47/'MMA Rev-Exp Region 10'!$AH$9, 0)","v":{"v":0,"d":"$0.00"}},{"$f":"IFERROR('MMA Rev-Exp Region 10'!$AI$47/'MMA Rev-Exp Region 10'!$AI$9, 0)","v":{"v":0,"d":"$0.00"}},{"$f":"IFERROR('MMA Rev-Exp Region 10'!$AJ$47/'MMA Rev-Exp Region 10'!$AJ$9, 0)","v":{"v":0,"d":"$0.00"}}]
["MMA",null,null,2016,"2016-12-31","Q3","2017-09-30","Region 10","Operating Expense","Medical Benefits Expense","Dental Services",6.3,"Ending IBNP for Dental Services",{"$f":"IFERROR('MMA Rev-Exp Region 10'!$Z$48/'MMA Rev-Exp Region 10'!$Z$9, 0)","v":{"v":0,"d":"$0.00"}},{"$f":"IFERROR('MMA Rev-Exp Region 10'!$AA$48/'MMA Rev-Exp Region 10'!$AA$9, 0)","v":{"v":0,"d":"$0.00"}},{"$f":"IFERROR('MMA Rev-Exp Region 10'!$AB$48/'MMA Rev-Exp Region 10'!$AB$9, 0)","v":{"v":0,"d":"$0.00"}},{"$f":"IFERROR('MMA Rev-Exp Region 10'!$AC$48/'MMA Rev-Exp Region 10'!$AC$9, 0)","v":{"v":0,"d":"$0.00"}},{"$f":"IFERROR('MMA Rev-Exp Region 10'!$AD$48/'MMA Rev-Exp Region 10'!$AD$9, 0)","v":{"v":0,"d":"$0.00"}},{"$f":"IFERROR('MMA Rev-Exp Region 10'!$AE$48/'MMA Rev-Exp Region 10'!$AE$9, 0)","v":{"v":0,"d":"$0.00"}},{"$f":"IFERROR('MMA Rev-Exp Region 10'!$AF$48/'MMA Rev-Exp Region 10'!$AF$9, 0)","v":{"v":0,"d":"$0.00"}},{"$f":"IFERROR('MMA Rev-Exp Region 10'!$AG$48/'MMA Rev-Exp Region 10'!$AG$9, 0)","v":{"v":0,"d":"$0.00"}},{"$f":"IFERROR('MMA Rev-Exp Region 10'!$AH$48/'MMA Rev-Exp Region 10'!$AH$9, 0)","v":{"v":0,"d":"$0.00"}},{"$f":"IFERROR('MMA Rev-Exp Region 10'!$AI$48/'MMA Rev-Exp Region 10'!$AI$9, 0)","v":{"v":0,"d":"$0.00"}},{"$f":"IFERROR('MMA Rev-Exp Region 10'!$AJ$48/'MMA Rev-Exp Region 10'!$AJ$9, 0)","v":{"v":0,"d":"$0.00"}}]
["MMA",null,null,2016,"2016-12-31","Q3","2017-09-30","Region 10","Operating Expense","Medical Benefits Expense","Dental Services","6.4","Dental Settlements",{"$f":"IFERROR('MMA Rev-Exp Region 10'!$Z$49/'MMA Rev-Exp Region 10'!$Z$9, 0)","v":{"v":0,"d":"$0.00"}},{"$f":"IFERROR('MMA Rev-Exp Region 10'!$AA$49/'MMA Rev-Exp Region 10'!$AA$9, 0)","v":{"v":0,"d":"$0.00"}},{"$f":"IFERROR('MMA Rev-Exp Region 10'!$AB$49/'MMA Rev-Exp Region 10'!$AB$9, 0)","v":{"v":0,"d":"$0.00"}},{"$f":"IFERROR('MMA Rev-Exp Region 10'!$AC$49/'MMA Rev-Exp Region 10'!$AC$9, 0)","v":{"v":0,"d":"$0.00"}},{"$f":"IFERROR('MMA Rev-Exp Region 10'!$AD$49/'MMA Rev-Exp Region 10'!$AD$9, 0)","v":{"v":0,"d":"$0.00"}},{"$f":"IFERROR('MMA Rev-Exp Region 10'!$AE$49/'MMA Rev-Exp Region 10'!$AE$9, 0)","v":{"v":0,"d":"$0.00"}},{"$f":"IFERROR('MMA Rev-Exp Region 10'!$AF$49/'MMA Rev-Exp Region 10'!$AF$9, 0)","v":{"v":0,"d":"$0.00"}},{"$f":"IFERROR('MMA Rev-Exp Region 10'!$AG$49/'MMA Rev-Exp Region 10'!$AG$9, 0)","v":{"v":0,"d":"$0.00"}},{"$f":"IFERROR('MMA Rev-Exp Region 10'!$AH$49/'MMA Rev-Exp Region 10'!$AH$9, 0)","v":{"v":0,"d":"$0.00"}},{"$f":"IFERROR('MMA Rev-Exp Region 10'!$AI$49/'MMA Rev-Exp Region 10'!$AI$9, 0)","v":{"v":0,"d":"$0.00"}},{"$f":"IFERROR('MMA Rev-Exp Region 10'!$AJ$49/'MMA Rev-Exp Region 10'!$AJ$9, 0)","v":{"v":0,"d":"$0.00"}}]
["MMA",null,null,2016,"2016-12-31","Q3","2017-09-30","Region 10","Operating Expense","Medical Benefits Expense","Transportation Services",7.1,"Transportation FFS",{"$f":"IFERROR('MMA Rev-Exp Region 10'!$Z$51/'MMA Rev-Exp Region 10'!$Z$9, 0)","v":{"v":0,"d":"$0.00"}},{"$f":"IFERROR('MMA Rev-Exp Region 10'!$AA$51/'MMA Rev-Exp Region 10'!$AA$9, 0)","v":{"v":0,"d":"$0.00"}},{"$f":"IFERROR('MMA Rev-Exp Region 10'!$AB$51/'MMA Rev-Exp Region 10'!$AB$9, 0)","v":{"v":0,"d":"$0.00"}},{"$f":"IFERROR('MMA Rev-Exp Region 10'!$AC$51/'MMA Rev-Exp Region 10'!$AC$9, 0)","v":{"v":0,"d":"$0.00"}},{"$f":"IFERROR('MMA Rev-Exp Region 10'!$AD$51/'MMA Rev-Exp Region 10'!$AD$9, 0)","v":{"v":0,"d":"$0.00"}},{"$f":"IFERROR('MMA Rev-Exp Region 10'!$AE$51/'MMA Rev-Exp Region 10'!$AE$9, 0)","v":{"v":0,"d":"$0.00"}},{"$f":"IFERROR('MMA Rev-Exp Region 10'!$AF$51/'MMA Rev-Exp Region 10'!$AF$9, 0)","v":{"v":0,"d":"$0.00"}},{"$f":"IFERROR('MMA Rev-Exp Region 10'!$AG$51/'MMA Rev-Exp Region 10'!$AG$9, 0)","v":{"v":0,"d":"$0.00"}},{"$f":"IFERROR('MMA Rev-Exp Region 10'!$AH$51/'MMA Rev-Exp Region 10'!$AH$9, 0)","v":{"v":0,"d":"$0.00"}},{"$f":"IFERROR('MMA Rev-Exp Region 10'!$AI$51/'MMA Rev-Exp Region 10'!$AI$9, 0)","v":{"v":0,"d":"$0.00"}},{"$f":"IFERROR('MMA Rev-Exp Region 10'!$AJ$51/'MMA Rev-Exp Region 10'!$AJ$9, 0)","v":{"v":0,"d":"$0.00"}}]
["MMA",null,null,2016,"2016-12-31","Q3","2017-09-30","Region 10","Operating Expense","Medical Benefits Expense","Transportation Services",7.2,"Transportation Subcapitation",{"$f":"IFERROR('MMA Rev-Exp Region 10'!$Z$52/'MMA Rev-Exp Region 10'!$Z$9, 0)","v":{"v":0,"d":"$0.00"}},{"$f":"IFERROR('MMA Rev-Exp Region 10'!$AA$52/'MMA Rev-Exp Region 10'!$AA$9, 0)","v":{"v":0,"d":"$0.00"}},{"$f":"IFERROR('MMA Rev-Exp Region 10'!$AB$52/'MMA Rev-Exp Region 10'!$AB$9, 0)","v":{"v":0,"d":"$0.00"}},{"$f":"IFERROR('MMA Rev-Exp Region 10'!$AC$52/'MMA Rev-Exp Region 10'!$AC$9, 0)","v":{"v":0,"d":"$0.00"}},{"$f":"IFERROR('MMA Rev-Exp Region 10'!$AD$52/'MMA Rev-Exp Region 10'!$AD$9, 0)","v":{"v":0,"d":"$0.00"}},{"$f":"IFERROR('MMA Rev-Exp Region 10'!$AE$52/'MMA Rev-Exp Region 10'!$AE$9, 0)","v":{"v":0,"d":"$0.00"}},{"$f":"IFERROR('MMA Rev-Exp Region 10'!$AF$52/'MMA Rev-Exp Region 10'!$AF$9, 0)","v":{"v":0,"d":"$0.00"}},{"$f":"IFERROR('MMA Rev-Exp Region 10'!$AG$52/'MMA Rev-Exp Region 10'!$AG$9, 0)","v":{"v":0,"d":"$0.00"}},{"$f":"IFERROR('MMA Rev-Exp Region 10'!$AH$52/'MMA Rev-Exp Region 10'!$AH$9, 0)","v":{"v":0,"d":"$0.00"}},{"$f":"IFERROR('MMA Rev-Exp Region 10'!$AI$52/'MMA Rev-Exp Region 10'!$AI$9, 0)","v":{"v":0,"d":"$0.00"}},{"$f":"IFERROR('MMA Rev-Exp Region 10'!$AJ$52/'MMA Rev-Exp Region 10'!$AJ$9, 0)","v":{"v":0,"d":"$0.00"}}]
["MMA",null,null,2016,"2016-12-31","Q3","2017-09-30","Region 10","Operating Expense","Medical Benefits Expense","Transportation Services",7.3,"Ending IBNP for Transportation",{"$f":"IFERROR('MMA Rev-Exp Region 10'!$Z$53/'MMA Rev-Exp Region 10'!$Z$9, 0)","v":{"v":0,"d":"$0.00"}},{"$f":"IFERROR('MMA Rev-Exp Region 10'!$AA$53/'MMA Rev-Exp Region 10'!$AA$9, 0)","v":{"v":0,"d":"$0.00"}},{"$f":"IFERROR('MMA Rev-Exp Region 10'!$AB$53/'MMA Rev-Exp Region 10'!$AB$9, 0)","v":{"v":0,"d":"$0.00"}},{"$f":"IFERROR('MMA Rev-Exp Region 10'!$AC$53/'MMA Rev-Exp Region 10'!$AC$9, 0)","v":{"v":0,"d":"$0.00"}},{"$f":"IFERROR('MMA Rev-Exp Region 10'!$AD$53/'MMA Rev-Exp Region 10'!$AD$9, 0)","v":{"v":0,"d":"$0.00"}},{"$f":"IFERROR('MMA Rev-Exp Region 10'!$AE$53/'MMA Rev-Exp Region 10'!$AE$9, 0)","v":{"v":0,"d":"$0.00"}},{"$f":"IFERROR('MMA Rev-Exp Region 10'!$AF$53/'MMA Rev-Exp Region 10'!$AF$9, 0)","v":{"v":0,"d":"$0.00"}},{"$f":"IFERROR('MMA Rev-Exp Region 10'!$AG$53/'MMA Rev-Exp Region 10'!$AG$9, 0)","v":{"v":0,"d":"$0.00"}},{"$f":"IFERROR('MMA Rev-Exp Region 10'!$AH$53/'MMA Rev-Exp Region 10'!$AH$9, 0)","v":{"v":0,"d":"$0.00"}},{"$f":"IFERROR('MMA Rev-Exp Region 10'!$AI$53/'MMA Rev-Exp Region 10'!$AI$9, 0)","v":{"v":0,"d":"$0.00"}},{"$f":"IFERROR('MMA Rev-Exp Region 10'!$AJ$53/'MMA Rev-Exp Region 10'!$AJ$9, 0)","v":{"v":0,"d":"$0.00"}}]
["MMA",null,null,2016,"2016-12-31","Q3","2017-09-30","Region 10","Operating Expense","Medical Benefits Expense","Transportation Services","7.4","Transportation Settlements",{"$f":"IFERROR('MMA Rev-Exp Region 10'!$Z$54/'MMA Rev-Exp Region 10'!$Z$9, 0)","v":{"v":0,"d":"$0.00"}},{"$f":"IFERROR('MMA Rev-Exp Region 10'!$AA$54/'MMA Rev-Exp Region 10'!$AA$9, 0)","v":{"v":0,"d":"$0.00"}},{"$f":"IFERROR('MMA Rev-Exp Region 10'!$AB$54/'MMA Rev-Exp Region 10'!$AB$9, 0)","v":{"v":0,"d":"$0.00"}},{"$f":"IFERROR('MMA Rev-Exp Region 10'!$AC$54/'MMA Rev-Exp Region 10'!$AC$9, 0)","v":{"v":0,"d":"$0.00"}},{"$f":"IFERROR('MMA Rev-Exp Region 10'!$AD$54/'MMA Rev-Exp Region 10'!$AD$9, 0)","v":{"v":0,"d":"$0.00"}},{"$f":"IFERROR('MMA Rev-Exp Region 10'!$AE$54/'MMA Rev-Exp Region 10'!$AE$9, 0)","v":{"v":0,"d":"$0.00"}},{"$f":"IFERROR('MMA Rev-Exp Region 10'!$AF$54/'MMA Rev-Exp Region 10'!$AF$9, 0)","v":{"v":0,"d":"$0.00"}},{"$f":"IFERROR('MMA Rev-Exp Region 10'!$AG$54/'MMA Rev-Exp Region 10'!$AG$9, 0)","v":{"v":0,"d":"$0.00"}},{"$f":"IFERROR('MMA Rev-Exp Region 10'!$AH$54/'MMA Rev-Exp Region 10'!$AH$9, 0)","v":{"v":0,"d":"$0.00"}},{"$f":"IFERROR('MMA Rev-Exp Region 10'!$AI$54/'MMA Rev-Exp Region 10'!$AI$9, 0)","v":{"v":0,"d":"$0.00"}},{"$f":"IFERROR('MMA Rev-Exp Region 10'!$AJ$54/'MMA Rev-Exp Region 10'!$AJ$9, 0)","v":{"v":0,"d":"$0.00"}}]
["MMA",null,null,2016,"2016-12-31","Q3","2017-09-30","Region 10","Operating Expense","Medical Benefits Expense","Pharmacy Services",8.1,"Prescription Drugs FFS",{"$f":"IFERROR('MMA Rev-Exp Region 10'!$Z$56/'MMA Rev-Exp Region 10'!$Z$9, 0)","v":{"v":0,"d":"$0.00"}},{"$f":"IFERROR('MMA Rev-Exp Region 10'!$AA$56/'MMA Rev-Exp Region 10'!$AA$9, 0)","v":{"v":0,"d":"$0.00"}},{"$f":"IFERROR('MMA Rev-Exp Region 10'!$AB$56/'MMA Rev-Exp Region 10'!$AB$9, 0)","v":{"v":0,"d":"$0.00"}},{"$f":"IFERROR('MMA Rev-Exp Region 10'!$AC$56/'MMA Rev-Exp Region 10'!$AC$9, 0)","v":{"v":0,"d":"$0.00"}},{"$f":"IFERROR('MMA Rev-Exp Region 10'!$AD$56/'MMA Rev-Exp Region 10'!$AD$9, 0)","v":{"v":0,"d":"$0.00"}},{"$f":"IFERROR('MMA Rev-Exp Region 10'!$AE$56/'MMA Rev-Exp Region 10'!$AE$9, 0)","v":{"v":0,"d":"$0.00"}},{"$f":"IFERROR('MMA Rev-Exp Region 10'!$AF$56/'MMA Rev-Exp Region 10'!$AF$9, 0)","v":{"v":0,"d":"$0.00"}},{"$f":"IFERROR('MMA Rev-Exp Region 10'!$AG$56/'MMA Rev-Exp Region 10'!$AG$9, 0)","v":{"v":0,"d":"$0.00"}},{"$f":"IFERROR('MMA Rev-Exp Region 10'!$AH$56/'MMA Rev-Exp Region 10'!$AH$9, 0)","v":{"v":0,"d":"$0.00"}},{"$f":"IFERROR('MMA Rev-Exp Region 10'!$AI$56/'MMA Rev-Exp Region 10'!$AI$9, 0)","v":{"v":0,"d":"$0.00"}},{"$f":"IFERROR('MMA Rev-Exp Region 10'!$AJ$56/'MMA Rev-Exp Region 10'!$AJ$9, 0)","v":{"v":0,"d":"$0.00"}}]
["MMA",null,null,2016,"2016-12-31","Q3","2017-09-30","Region 10","Operating Expense","Medical Benefits Expense","Pharmacy Services","8.2","Hepatitis C Prescription Drug FFS",{"$f":"IFERROR('MMA Rev-Exp Region 10'!$Z$57/'MMA Rev-Exp Region 10'!$Z$9, 0)","v":{"v":0,"d":"$0.00"}},{"$f":"IFERROR('MMA Rev-Exp Region 10'!$AA$57/'MMA Rev-Exp Region 10'!$AA$9, 0)","v":{"v":0,"d":"$0.00"}},{"$f":"IFERROR('MMA Rev-Exp Region 10'!$AB$57/'MMA Rev-Exp Region 10'!$AB$9, 0)","v":{"v":0,"d":"$0.00"}},{"$f":"IFERROR('MMA Rev-Exp Region 10'!$AC$57/'MMA Rev-Exp Region 10'!$AC$9, 0)","v":{"v":0,"d":"$0.00"}},{"$f":"IFERROR('MMA Rev-Exp Region 10'!$AD$57/'MMA Rev-Exp Region 10'!$AD$9, 0)","v":{"v":0,"d":"$0.00"}},{"$f":"IFERROR('MMA Rev-Exp Region 10'!$AE$57/'MMA Rev-Exp Region 10'!$AE$9, 0)","v":{"v":0,"d":"$0.00"}},{"$f":"IFERROR('MMA Rev-Exp Region 10'!$AF$57/'MMA Rev-Exp Region 10'!$AF$9, 0)","v":{"v":0,"d":"$0.00"}},{"$f":"IFERROR('MMA Rev-Exp Region 10'!$AG$57/'MMA Rev-Exp Region 10'!$AG$9, 0)","v":{"v":0,"d":"$0.00"}},{"$f":"IFERROR('MMA Rev-Exp Region 10'!$AH$57/'MMA Rev-Exp Region 10'!$AH$9, 0)","v":{"v":0,"d":"$0.00"}},{"$f":"IFERROR('MMA Rev-Exp Region 10'!$AI$57/'MMA Rev-Exp Region 10'!$AI$9, 0)","v":{"v":0,"d":"$0.00"}},{"$f":"IFERROR('MMA Rev-Exp Region 10'!$AJ$57/'MMA Rev-Exp Region 10'!$AJ$9, 0)","v":{"v":0,"d":"$0.00"}}]
["MMA",null,null,2016,"2016-12-31","Q3","2017-09-30","Region 10","Operating Expense","Medical Benefits Expense","Pharmacy Services","8.3","Ending IBNP for Prescription Drugs",{"$f":"IFERROR('MMA Rev-Exp Region 10'!$Z$58/'MMA Rev-Exp Region 10'!$Z$9, 0)","v":{"v":0,"d":"$0.00"}},{"$f":"IFERROR('MMA Rev-Exp Region 10'!$AA$58/'MMA Rev-Exp Region 10'!$AA$9, 0)","v":{"v":0,"d":"$0.00"}},{"$f":"IFERROR('MMA Rev-Exp Region 10'!$AB$58/'MMA Rev-Exp Region 10'!$AB$9, 0)","v":{"v":0,"d":"$0.00"}},{"$f":"IFERROR('MMA Rev-Exp Region 10'!$AC$58/'MMA Rev-Exp Region 10'!$AC$9, 0)","v":{"v":0,"d":"$0.00"}},{"$f":"IFERROR('MMA Rev-Exp Region 10'!$AD$58/'MMA Rev-Exp Region 10'!$AD$9, 0)","v":{"v":0,"d":"$0.00"}},{"$f":"IFERROR('MMA Rev-Exp Region 10'!$AE$58/'MMA Rev-Exp Region 10'!$AE$9, 0)","v":{"v":0,"d":"$0.00"}},{"$f":"IFERROR('MMA Rev-Exp Region 10'!$AF$58/'MMA Rev-Exp Region 10'!$AF$9, 0)","v":{"v":0,"d":"$0.00"}},{"$f":"IFERROR('MMA Rev-Exp Region 10'!$AG$58/'MMA Rev-Exp Region 10'!$AG$9, 0)","v":{"v":0,"d":"$0.00"}},{"$f":"IFERROR('MMA Rev-Exp Region 10'!$AH$58/'MMA Rev-Exp Region 10'!$AH$9, 0)","v":{"v":0,"d":"$0.00"}},{"$f":"IFERROR('MMA Rev-Exp Region 10'!$AI$58/'MMA Rev-Exp Region 10'!$AI$9, 0)","v":{"v":0,"d":"$0.00"}},{"$f":"IFERROR('MMA Rev-Exp Region 10'!$AJ$58/'MMA Rev-Exp Region 10'!$AJ$9, 0)","v":{"v":0,"d":"$0.00"}}]
["MMA",null,null,2016,"2016-12-31","Q3","2017-09-30","Region 10","Operating Expense","Medical Benefits Expense","Pharmacy Services","8.4","Prescription Drug Rebates ",{"$f":"IFERROR('MMA Rev-Exp Region 10'!$Z$59/'MMA Rev-Exp Region 10'!$Z$9, 0)","v":{"v":0,"d":"$0.00"}},{"$f":"IFERROR('MMA Rev-Exp Region 10'!$AA$59/'MMA Rev-Exp Region 10'!$AA$9, 0)","v":{"v":0,"d":"$0.00"}},{"$f":"IFERROR('MMA Rev-Exp Region 10'!$AB$59/'MMA Rev-Exp Region 10'!$AB$9, 0)","v":{"v":0,"d":"$0.00"}},{"$f":"IFERROR('MMA Rev-Exp Region 10'!$AC$59/'MMA Rev-Exp Region 10'!$AC$9, 0)","v":{"v":0,"d":"$0.00"}},{"$f":"IFERROR('MMA Rev-Exp Region 10'!$AD$59/'MMA Rev-Exp Region 10'!$AD$9, 0)","v":{"v":0,"d":"$0.00"}},{"$f":"IFERROR('MMA Rev-Exp Region 10'!$AE$59/'MMA Rev-Exp Region 10'!$AE$9, 0)","v":{"v":0,"d":"$0.00"}},{"$f":"IFERROR('MMA Rev-Exp Region 10'!$AF$59/'MMA Rev-Exp Region 10'!$AF$9, 0)","v":{"v":0,"d":"$0.00"}},{"$f":"IFERROR('MMA Rev-Exp Region 10'!$AG$59/'MMA Rev-Exp Region 10'!$AG$9, 0)","v":{"v":0,"d":"$0.00"}},{"$f":"IFERROR('MMA Rev-Exp Region 10'!$AH$59/'MMA Rev-Exp Region 10'!$AH$9, 0)","v":{"v":0,"d":"$0.00"}},{"$f":"IFERROR('MMA Rev-Exp Region 10'!$AI$59/'MMA Rev-Exp Region 10'!$AI$9, 0)","v":{"v":0,"d":"$0.00"}},{"$f":"IFERROR('MMA Rev-Exp Region 10'!$AJ$59/'MMA Rev-Exp Region 10'!$AJ$9, 0)","v":{"v":0,"d":"$0.00"}}]
["MMA",null,null,2016,"2016-12-31","Q3","2017-09-30","Region 10","Operating Expense","Medical Benefits Expense","Pharmacy Services","8.5","Ending accrual for Rebates receivable",{"$f":"IFERROR('MMA Rev-Exp Region 10'!$Z$60/'MMA Rev-Exp Region 10'!$Z$9, 0)","v":{"v":0,"d":"$0.00"}},{"$f":"IFERROR('MMA Rev-Exp Region 10'!$AA$60/'MMA Rev-Exp Region 10'!$AA$9, 0)","v":{"v":0,"d":"$0.00"}},{"$f":"IFERROR('MMA Rev-Exp Region 10'!$AB$60/'MMA Rev-Exp Region 10'!$AB$9, 0)","v":{"v":0,"d":"$0.00"}},{"$f":"IFERROR('MMA Rev-Exp Region 10'!$AC$60/'MMA Rev-Exp Region 10'!$AC$9, 0)","v":{"v":0,"d":"$0.00"}},{"$f":"IFERROR('MMA Rev-Exp Region 10'!$AD$60/'MMA Rev-Exp Region 10'!$AD$9, 0)","v":{"v":0,"d":"$0.00"}},{"$f":"IFERROR('MMA Rev-Exp Region 10'!$AE$60/'MMA Rev-Exp Region 10'!$AE$9, 0)","v":{"v":0,"d":"$0.00"}},{"$f":"IFERROR('MMA Rev-Exp Region 10'!$AF$60/'MMA Rev-Exp Region 10'!$AF$9, 0)","v":{"v":0,"d":"$0.00"}},{"$f":"IFERROR('MMA Rev-Exp Region 10'!$AG$60/'MMA Rev-Exp Region 10'!$AG$9, 0)","v":{"v":0,"d":"$0.00"}},{"$f":"IFERROR('MMA Rev-Exp Region 10'!$AH$60/'MMA Rev-Exp Region 10'!$AH$9, 0)","v":{"v":0,"d":"$0.00"}},{"$f":"IFERROR('MMA Rev-Exp Region 10'!$AI$60/'MMA Rev-Exp Region 10'!$AI$9, 0)","v":{"v":0,"d":"$0.00"}},{"$f":"IFERROR('MMA Rev-Exp Region 10'!$AJ$60/'MMA Rev-Exp Region 10'!$AJ$9, 0)","v":{"v":0,"d":"$0.00"}}]
["MMA",null,null,2016,"2016-12-31","Q3","2017-09-30","Region 10","Operating Expense","Medical Benefits Expense","Pharmacy Services","8.6","Prescription Drugs Subcapitation",{"$f":"IFERROR('MMA Rev-Exp Region 10'!$Z$61/'MMA Rev-Exp Region 10'!$Z$9, 0)","v":{"v":0,"d":"$0.00"}},{"$f":"IFERROR('MMA Rev-Exp Region 10'!$AA$61/'MMA Rev-Exp Region 10'!$AA$9, 0)","v":{"v":0,"d":"$0.00"}},{"$f":"IFERROR('MMA Rev-Exp Region 10'!$AB$61/'MMA Rev-Exp Region 10'!$AB$9, 0)","v":{"v":0,"d":"$0.00"}},{"$f":"IFERROR('MMA Rev-Exp Region 10'!$AC$61/'MMA Rev-Exp Region 10'!$AC$9, 0)","v":{"v":0,"d":"$0.00"}},{"$f":"IFERROR('MMA Rev-Exp Region 10'!$AD$61/'MMA Rev-Exp Region 10'!$AD$9, 0)","v":{"v":0,"d":"$0.00"}},{"$f":"IFERROR('MMA Rev-Exp Region 10'!$AE$61/'MMA Rev-Exp Region 10'!$AE$9, 0)","v":{"v":0,"d":"$0.00"}},{"$f":"IFERROR('MMA Rev-Exp Region 10'!$AF$61/'MMA Rev-Exp Region 10'!$AF$9, 0)","v":{"v":0,"d":"$0.00"}},{"$f":"IFERROR('MMA Rev-Exp Region 10'!$AG$61/'MMA Rev-Exp Region 10'!$AG$9, 0)","v":{"v":0,"d":"$0.00"}},{"$f":"IFERROR('MMA Rev-Exp Region 10'!$AH$61/'MMA Rev-Exp Region 10'!$AH$9, 0)","v":{"v":0,"d":"$0.00"}},{"$f":"IFERROR('MMA Rev-Exp Region 10'!$AI$61/'MMA Rev-Exp Region 10'!$AI$9, 0)","v":{"v":0,"d":"$0.00"}},{"$f":"IFERROR('MMA Rev-Exp Region 10'!$AJ$61/'MMA Rev-Exp Region 10'!$AJ$9, 0)","v":{"v":0,"d":"$0.00"}}]
["MMA",null,null,2016,"2016-12-31","Q3","2017-09-30","Region 10","Operating Expense","Medical Benefits Expense","Pharmacy Services","8.7","Prescription Drug Settlements",{"$f":"IFERROR('MMA Rev-Exp Region 10'!$Z$62/'MMA Rev-Exp Region 10'!$Z$9, 0)","v":{"v":0,"d":"$0.00"}},{"$f":"IFERROR('MMA Rev-Exp Region 10'!$AA$62/'MMA Rev-Exp Region 10'!$AA$9, 0)","v":{"v":0,"d":"$0.00"}},{"$f":"IFERROR('MMA Rev-Exp Region 10'!$AB$62/'MMA Rev-Exp Region 10'!$AB$9, 0)","v":{"v":0,"d":"$0.00"}},{"$f":"IFERROR('MMA Rev-Exp Region 10'!$AC$62/'MMA Rev-Exp Region 10'!$AC$9, 0)","v":{"v":0,"d":"$0.00"}},{"$f":"IFERROR('MMA Rev-Exp Region 10'!$AD$62/'MMA Rev-Exp Region 10'!$AD$9, 0)","v":{"v":0,"d":"$0.00"}},{"$f":"IFERROR('MMA Rev-Exp Region 10'!$AE$62/'MMA Rev-Exp Region 10'!$AE$9, 0)","v":{"v":0,"d":"$0.00"}},{"$f":"IFERROR('MMA Rev-Exp Region 10'!$AF$62/'MMA Rev-Exp Region 10'!$AF$9, 0)","v":{"v":0,"d":"$0.00"}},{"$f":"IFERROR('MMA Rev-Exp Region 10'!$AG$62/'MMA Rev-Exp Region 10'!$AG$9, 0)","v":{"v":0,"d":"$0.00"}},{"$f":"IFERROR('MMA Rev-Exp Region 10'!$AH$62/'MMA Rev-Exp Region 10'!$AH$9, 0)","v":{"v":0,"d":"$0.00"}},{"$f":"IFERROR('MMA Rev-Exp Region 10'!$AI$62/'MMA Rev-Exp Region 10'!$AI$9, 0)","v":{"v":0,"d":"$0.00"}},{"$f":"IFERROR('MMA Rev-Exp Region 10'!$AJ$62/'MMA Rev-Exp Region 10'!$AJ$9, 0)","v":{"v":0,"d":"$0.00"}}]
["MMA",null,null,2016,"2016-12-31","Q3","2017-09-30","Region 10","Operating Expense","Medical Benefits Expense","Other MMA Services",9.1,"Home Health, Private Duty Nursing, Personal Care FFS",{"$f":"IFERROR('MMA Rev-Exp Region 10'!$Z$64/'MMA Rev-Exp Region 10'!$Z$9, 0)","v":{"v":0,"d":"$0.00"}},{"$f":"IFERROR('MMA Rev-Exp Region 10'!$AA$64/'MMA Rev-Exp Region 10'!$AA$9, 0)","v":{"v":0,"d":"$0.00"}},{"$f":"IFERROR('MMA Rev-Exp Region 10'!$AB$64/'MMA Rev-Exp Region 10'!$AB$9, 0)","v":{"v":0,"d":"$0.00"}},{"$f":"IFERROR('MMA Rev-Exp Region 10'!$AC$64/'MMA Rev-Exp Region 10'!$AC$9, 0)","v":{"v":0,"d":"$0.00"}},{"$f":"IFERROR('MMA Rev-Exp Region 10'!$AD$64/'MMA Rev-Exp Region 10'!$AD$9, 0)","v":{"v":0,"d":"$0.00"}},{"$f":"IFERROR('MMA Rev-Exp Region 10'!$AE$64/'MMA Rev-Exp Region 10'!$AE$9, 0)","v":{"v":0,"d":"$0.00"}},{"$f":"IFERROR('MMA Rev-Exp Region 10'!$AF$64/'MMA Rev-Exp Region 10'!$AF$9, 0)","v":{"v":0,"d":"$0.00"}},{"$f":"IFERROR('MMA Rev-Exp Region 10'!$AG$64/'MMA Rev-Exp Region 10'!$AG$9, 0)","v":{"v":0,"d":"$0.00"}},{"$f":"IFERROR('MMA Rev-Exp Region 10'!$AH$64/'MMA Rev-Exp Region 10'!$AH$9, 0)","v":{"v":0,"d":"$0.00"}},{"$f":"IFERROR('MMA Rev-Exp Region 10'!$AI$64/'MMA Rev-Exp Region 10'!$AI$9, 0)","v":{"v":0,"d":"$0.00"}},{"$f":"IFERROR('MMA Rev-Exp Region 10'!$AJ$64/'MMA Rev-Exp Region 10'!$AJ$9, 0)","v":{"v":0,"d":"$0.00"}}]
["MMA",null,null,2016,"2016-12-31","Q3","2017-09-30","Region 10","Operating Expense","Medical Benefits Expense","Other MMA Services","9.2","Hospice FFS",{"$f":"IFERROR('MMA Rev-Exp Region 10'!$Z$65/'MMA Rev-Exp Region 10'!$Z$9, 0)","v":{"v":0,"d":"$0.00"}},{"$f":"IFERROR('MMA Rev-Exp Region 10'!$AA$65/'MMA Rev-Exp Region 10'!$AA$9, 0)","v":{"v":0,"d":"$0.00"}},{"$f":"IFERROR('MMA Rev-Exp Region 10'!$AB$65/'MMA Rev-Exp Region 10'!$AB$9, 0)","v":{"v":0,"d":"$0.00"}},{"$f":"IFERROR('MMA Rev-Exp Region 10'!$AC$65/'MMA Rev-Exp Region 10'!$AC$9, 0)","v":{"v":0,"d":"$0.00"}},{"$f":"IFERROR('MMA Rev-Exp Region 10'!$AD$65/'MMA Rev-Exp Region 10'!$AD$9, 0)","v":{"v":0,"d":"$0.00"}},{"$f":"IFERROR('MMA Rev-Exp Region 10'!$AE$65/'MMA Rev-Exp Region 10'!$AE$9, 0)","v":{"v":0,"d":"$0.00"}},{"$f":"IFERROR('MMA Rev-Exp Region 10'!$AF$65/'MMA Rev-Exp Region 10'!$AF$9, 0)","v":{"v":0,"d":"$0.00"}},{"$f":"IFERROR('MMA Rev-Exp Region 10'!$AG$65/'MMA Rev-Exp Region 10'!$AG$9, 0)","v":{"v":0,"d":"$0.00"}},{"$f":"IFERROR('MMA Rev-Exp Region 10'!$AH$65/'MMA Rev-Exp Region 10'!$AH$9, 0)","v":{"v":0,"d":"$0.00"}},{"$f":"IFERROR('MMA Rev-Exp Region 10'!$AI$65/'MMA Rev-Exp Region 10'!$AI$9, 0)","v":{"v":0,"d":"$0.00"}},{"$f":"IFERROR('MMA Rev-Exp Region 10'!$AJ$65/'MMA Rev-Exp Region 10'!$AJ$9, 0)","v":{"v":0,"d":"$0.00"}}]
["MMA",null,null,2016,"2016-12-31","Q3","2017-09-30","Region 10","Operating Expense","Medical Benefits Expense","Other MMA Services","9.3","DME FFS",{"$f":"IFERROR('MMA Rev-Exp Region 10'!$Z$66/'MMA Rev-Exp Region 10'!$Z$9, 0)","v":{"v":0,"d":"$0.00"}},{"$f":"IFERROR('MMA Rev-Exp Region 10'!$AA$66/'MMA Rev-Exp Region 10'!$AA$9, 0)","v":{"v":0,"d":"$0.00"}},{"$f":"IFERROR('MMA Rev-Exp Region 10'!$AB$66/'MMA Rev-Exp Region 10'!$AB$9, 0)","v":{"v":0,"d":"$0.00"}},{"$f":"IFERROR('MMA Rev-Exp Region 10'!$AC$66/'MMA Rev-Exp Region 10'!$AC$9, 0)","v":{"v":0,"d":"$0.00"}},{"$f":"IFERROR('MMA Rev-Exp Region 10'!$AD$66/'MMA Rev-Exp Region 10'!$AD$9, 0)","v":{"v":0,"d":"$0.00"}},{"$f":"IFERROR('MMA Rev-Exp Region 10'!$AE$66/'MMA Rev-Exp Region 10'!$AE$9, 0)","v":{"v":0,"d":"$0.00"}},{"$f":"IFERROR('MMA Rev-Exp Region 10'!$AF$66/'MMA Rev-Exp Region 10'!$AF$9, 0)","v":{"v":0,"d":"$0.00"}},{"$f":"IFERROR('MMA Rev-Exp Region 10'!$AG$66/'MMA Rev-Exp Region 10'!$AG$9, 0)","v":{"v":0,"d":"$0.00"}},{"$f":"IFERROR('MMA Rev-Exp Region 10'!$AH$66/'MMA Rev-Exp Region 10'!$AH$9, 0)","v":{"v":0,"d":"$0.00"}},{"$f":"IFERROR('MMA Rev-Exp Region 10'!$AI$66/'MMA Rev-Exp Region 10'!$AI$9, 0)","v":{"v":0,"d":"$0.00"}},{"$f":"IFERROR('MMA Rev-Exp Region 10'!$AJ$66/'MMA Rev-Exp Region 10'!$AJ$9, 0)","v":{"v":0,"d":"$0.00"}}]
["MMA",null,null,2016,"2016-12-31","Q3","2017-09-30","Region 10","Operating Expense","Medical Benefits Expense","Other MMA Services","9.4","Other State Plan Services FFS",{"$f":"IFERROR('MMA Rev-Exp Region 10'!$Z$67/'MMA Rev-Exp Region 10'!$Z$9, 0)","v":{"v":0,"d":"$0.00"}},{"$f":"IFERROR('MMA Rev-Exp Region 10'!$AA$67/'MMA Rev-Exp Region 10'!$AA$9, 0)","v":{"v":0,"d":"$0.00"}},{"$f":"IFERROR('MMA Rev-Exp Region 10'!$AB$67/'MMA Rev-Exp Region 10'!$AB$9, 0)","v":{"v":0,"d":"$0.00"}},{"$f":"IFERROR('MMA Rev-Exp Region 10'!$AC$67/'MMA Rev-Exp Region 10'!$AC$9, 0)","v":{"v":0,"d":"$0.00"}},{"$f":"IFERROR('MMA Rev-Exp Region 10'!$AD$67/'MMA Rev-Exp Region 10'!$AD$9, 0)","v":{"v":0,"d":"$0.00"}},{"$f":"IFERROR('MMA Rev-Exp Region 10'!$AE$67/'MMA Rev-Exp Region 10'!$AE$9, 0)","v":{"v":0,"d":"$0.00"}},{"$f":"IFERROR('MMA Rev-Exp Region 10'!$AF$67/'MMA Rev-Exp Region 10'!$AF$9, 0)","v":{"v":0,"d":"$0.00"}},{"$f":"IFERROR('MMA Rev-Exp Region 10'!$AG$67/'MMA Rev-Exp Region 10'!$AG$9, 0)","v":{"v":0,"d":"$0.00"}},{"$f":"IFERROR('MMA Rev-Exp Region 10'!$AH$67/'MMA Rev-Exp Region 10'!$AH$9, 0)","v":{"v":0,"d":"$0.00"}},{"$f":"IFERROR('MMA Rev-Exp Region 10'!$AI$67/'MMA Rev-Exp Region 10'!$AI$9, 0)","v":{"v":0,"d":"$0.00"}},{"$f":"IFERROR('MMA Rev-Exp Region 10'!$AJ$67/'MMA Rev-Exp Region 10'!$AJ$9, 0)","v":{"v":0,"d":"$0.00"}}]
["MMA",null,null,2016,"2016-12-31","Q3","2017-09-30","Region 10","Operating Expense","Medical Benefits Expense","Other MMA Services","9.5","Other Services Subcapitation",{"$f":"IFERROR('MMA Rev-Exp Region 10'!$Z$68/'MMA Rev-Exp Region 10'!$Z$9, 0)","v":{"v":0,"d":"$0.00"}},{"$f":"IFERROR('MMA Rev-Exp Region 10'!$AA$68/'MMA Rev-Exp Region 10'!$AA$9, 0)","v":{"v":0,"d":"$0.00"}},{"$f":"IFERROR('MMA Rev-Exp Region 10'!$AB$68/'MMA Rev-Exp Region 10'!$AB$9, 0)","v":{"v":0,"d":"$0.00"}},{"$f":"IFERROR('MMA Rev-Exp Region 10'!$AC$68/'MMA Rev-Exp Region 10'!$AC$9, 0)","v":{"v":0,"d":"$0.00"}},{"$f":"IFERROR('MMA Rev-Exp Region 10'!$AD$68/'MMA Rev-Exp Region 10'!$AD$9, 0)","v":{"v":0,"d":"$0.00"}},{"$f":"IFERROR('MMA Rev-Exp Region 10'!$AE$68/'MMA Rev-Exp Region 10'!$AE$9, 0)","v":{"v":0,"d":"$0.00"}},{"$f":"IFERROR('MMA Rev-Exp Region 10'!$AF$68/'MMA Rev-Exp Region 10'!$AF$9, 0)","v":{"v":0,"d":"$0.00"}},{"$f":"IFERROR('MMA Rev-Exp Region 10'!$AG$68/'MMA Rev-Exp Region 10'!$AG$9, 0)","v":{"v":0,"d":"$0.00"}},{"$f":"IFERROR('MMA Rev-Exp Region 10'!$AH$68/'MMA Rev-Exp Region 10'!$AH$9, 0)","v":{"v":0,"d":"$0.00"}},{"$f":"IFERROR('MMA Rev-Exp Region 10'!$AI$68/'MMA Rev-Exp Region 10'!$AI$9, 0)","v":{"v":0,"d":"$0.00"}},{"$f":"IFERROR('MMA Rev-Exp Region 10'!$AJ$68/'MMA Rev-Exp Region 10'!$AJ$9, 0)","v":{"v":0,"d":"$0.00"}}]
["MMA",null,null,2016,"2016-12-31","Q3","2017-09-30","Region 10","Operating Expense","Medical Benefits Expense","Other MMA Services","9.6","Ending IBNP for Other Services",{"$f":"IFERROR('MMA Rev-Exp Region 10'!$Z$69/'MMA Rev-Exp Region 10'!$Z$9, 0)","v":{"v":0,"d":"$0.00"}},{"$f":"IFERROR('MMA Rev-Exp Region 10'!$AA$69/'MMA Rev-Exp Region 10'!$AA$9, 0)","v":{"v":0,"d":"$0.00"}},{"$f":"IFERROR('MMA Rev-Exp Region 10'!$AB$69/'MMA Rev-Exp Region 10'!$AB$9, 0)","v":{"v":0,"d":"$0.00"}},{"$f":"IFERROR('MMA Rev-Exp Region 10'!$AC$69/'MMA Rev-Exp Region 10'!$AC$9, 0)","v":{"v":0,"d":"$0.00"}},{"$f":"IFERROR('MMA Rev-Exp Region 10'!$AD$69/'MMA Rev-Exp Region 10'!$AD$9, 0)","v":{"v":0,"d":"$0.00"}},{"$f":"IFERROR('MMA Rev-Exp Region 10'!$AE$69/'MMA Rev-Exp Region 10'!$AE$9, 0)","v":{"v":0,"d":"$0.00"}},{"$f":"IFERROR('MMA Rev-Exp Region 10'!$AF$69/'MMA Rev-Exp Region 10'!$AF$9, 0)","v":{"v":0,"d":"$0.00"}},{"$f":"IFERROR('MMA Rev-Exp Region 10'!$AG$69/'MMA Rev-Exp Region 10'!$AG$9, 0)","v":{"v":0,"d":"$0.00"}},{"$f":"IFERROR('MMA Rev-Exp Region 10'!$AH$69/'MMA Rev-Exp Region 10'!$AH$9, 0)","v":{"v":0,"d":"$0.00"}},{"$f":"IFERROR('MMA Rev-Exp Region 10'!$AI$69/'MMA Rev-Exp Region 10'!$AI$9, 0)","v":{"v":0,"d":"$0.00"}},{"$f":"IFERROR('MMA Rev-Exp Region 10'!$AJ$69/'MMA Rev-Exp Region 10'!$AJ$9, 0)","v":{"v":0,"d":"$0.00"}}]
["MMA",null,null,2016,"2016-12-31","Q3","2017-09-30","Region 10","Operating Expense","Medical Benefits Expense","Other MMA Services","9.7","Other Services Settlements",{"$f":"IFERROR('MMA Rev-Exp Region 10'!$Z$70/'MMA Rev-Exp Region 10'!$Z$9, 0)","v":{"v":0,"d":"$0.00"}},{"$f":"IFERROR('MMA Rev-Exp Region 10'!$AA$70/'MMA Rev-Exp Region 10'!$AA$9, 0)","v":{"v":0,"d":"$0.00"}},{"$f":"IFERROR('MMA Rev-Exp Region 10'!$AB$70/'MMA Rev-Exp Region 10'!$AB$9, 0)","v":{"v":0,"d":"$0.00"}},{"$f":"IFERROR('MMA Rev-Exp Region 10'!$AC$70/'MMA Rev-Exp Region 10'!$AC$9, 0)","v":{"v":0,"d":"$0.00"}},{"$f":"IFERROR('MMA Rev-Exp Region 10'!$AD$70/'MMA Rev-Exp Region 10'!$AD$9, 0)","v":{"v":0,"d":"$0.00"}},{"$f":"IFERROR('MMA Rev-Exp Region 10'!$AE$70/'MMA Rev-Exp Region 10'!$AE$9, 0)","v":{"v":0,"d":"$0.00"}},{"$f":"IFERROR('MMA Rev-Exp Region 10'!$AF$70/'MMA Rev-Exp Region 10'!$AF$9, 0)","v":{"v":0,"d":"$0.00"}},{"$f":"IFERROR('MMA Rev-Exp Region 10'!$AG$70/'MMA Rev-Exp Region 10'!$AG$9, 0)","v":{"v":0,"d":"$0.00"}},{"$f":"IFERROR('MMA Rev-Exp Region 10'!$AH$70/'MMA Rev-Exp Region 10'!$AH$9, 0)","v":{"v":0,"d":"$0.00"}},{"$f":"IFERROR('MMA Rev-Exp Region 10'!$AI$70/'MMA Rev-Exp Region 10'!$AI$9, 0)","v":{"v":0,"d":"$0.00"}},{"$f":"IFERROR('MMA Rev-Exp Region 10'!$AJ$70/'MMA Rev-Exp Region 10'!$AJ$9, 0)","v":{"v":0,"d":"$0.00"}}]
["MMA",null,null,2016,"2016-12-31","Q3","2017-09-30","Region 10","Operating Expense","Medical Benefits Expense","Expanded Benefits","10.1","Expanded Benefits FFS",{"$f":"IFERROR('MMA Rev-Exp Region 10'!$Z$72/'MMA Rev-Exp Region 10'!$Z$9, 0)","v":{"v":0,"d":"$0.00"}},{"$f":"IFERROR('MMA Rev-Exp Region 10'!$AA$72/'MMA Rev-Exp Region 10'!$AA$9, 0)","v":{"v":0,"d":"$0.00"}},{"$f":"IFERROR('MMA Rev-Exp Region 10'!$AB$72/'MMA Rev-Exp Region 10'!$AB$9, 0)","v":{"v":0,"d":"$0.00"}},{"$f":"IFERROR('MMA Rev-Exp Region 10'!$AC$72/'MMA Rev-Exp Region 10'!$AC$9, 0)","v":{"v":0,"d":"$0.00"}},{"$f":"IFERROR('MMA Rev-Exp Region 10'!$AD$72/'MMA Rev-Exp Region 10'!$AD$9, 0)","v":{"v":0,"d":"$0.00"}},{"$f":"IFERROR('MMA Rev-Exp Region 10'!$AE$72/'MMA Rev-Exp Region 10'!$AE$9, 0)","v":{"v":0,"d":"$0.00"}},{"$f":"IFERROR('MMA Rev-Exp Region 10'!$AF$72/'MMA Rev-Exp Region 10'!$AF$9, 0)","v":{"v":0,"d":"$0.00"}},{"$f":"IFERROR('MMA Rev-Exp Region 10'!$AG$72/'MMA Rev-Exp Region 10'!$AG$9, 0)","v":{"v":0,"d":"$0.00"}},{"$f":"IFERROR('MMA Rev-Exp Region 10'!$AH$72/'MMA Rev-Exp Region 10'!$AH$9, 0)","v":{"v":0,"d":"$0.00"}},{"$f":"IFERROR('MMA Rev-Exp Region 10'!$AI$72/'MMA Rev-Exp Region 10'!$AI$9, 0)","v":{"v":0,"d":"$0.00"}},{"$f":"IFERROR('MMA Rev-Exp Region 10'!$AJ$72/'MMA Rev-Exp Region 10'!$AJ$9, 0)","v":{"v":0,"d":"$0.00"}}]
["MMA",null,null,2016,"2016-12-31","Q3","2017-09-30","Region 10","Operating Expense","Medical Benefits Expense","Expanded Benefits","10.2","Expanded benefits Subcapitation",{"$f":"IFERROR('MMA Rev-Exp Region 10'!$Z$73/'MMA Rev-Exp Region 10'!$Z$9, 0)","v":{"v":0,"d":"$0.00"}},{"$f":"IFERROR('MMA Rev-Exp Region 10'!$AA$73/'MMA Rev-Exp Region 10'!$AA$9, 0)","v":{"v":0,"d":"$0.00"}},{"$f":"IFERROR('MMA Rev-Exp Region 10'!$AB$73/'MMA Rev-Exp Region 10'!$AB$9, 0)","v":{"v":0,"d":"$0.00"}},{"$f":"IFERROR('MMA Rev-Exp Region 10'!$AC$73/'MMA Rev-Exp Region 10'!$AC$9, 0)","v":{"v":0,"d":"$0.00"}},{"$f":"IFERROR('MMA Rev-Exp Region 10'!$AD$73/'MMA Rev-Exp Region 10'!$AD$9, 0)","v":{"v":0,"d":"$0.00"}},{"$f":"IFERROR('MMA Rev-Exp Region 10'!$AE$73/'MMA Rev-Exp Region 10'!$AE$9, 0)","v":{"v":0,"d":"$0.00"}},{"$f":"IFERROR('MMA Rev-Exp Region 10'!$AF$73/'MMA Rev-Exp Region 10'!$AF$9, 0)","v":{"v":0,"d":"$0.00"}},{"$f":"IFERROR('MMA Rev-Exp Region 10'!$AG$73/'MMA Rev-Exp Region 10'!$AG$9, 0)","v":{"v":0,"d":"$0.00"}},{"$f":"IFERROR('MMA Rev-Exp Region 10'!$AH$73/'MMA Rev-Exp Region 10'!$AH$9, 0)","v":{"v":0,"d":"$0.00"}},{"$f":"IFERROR('MMA Rev-Exp Region 10'!$AI$73/'MMA Rev-Exp Region 10'!$AI$9, 0)","v":{"v":0,"d":"$0.00"}},{"$f":"IFERROR('MMA Rev-Exp Region 10'!$AJ$73/'MMA Rev-Exp Region 10'!$AJ$9, 0)","v":{"v":0,"d":"$0.00"}}]
["MMA",null,null,2016,"2016-12-31","Q3","2017-09-30","Region 10","Operating Expense","Medical Benefits Expense","Expanded Benefits","10.3","Ending IBNP for Expanded Benefits",{"$f":"IFERROR('MMA Rev-Exp Region 10'!$Z$74/'MMA Rev-Exp Region 10'!$Z$9, 0)","v":{"v":0,"d":"$0.00"}},{"$f":"IFERROR('MMA Rev-Exp Region 10'!$AA$74/'MMA Rev-Exp Region 10'!$AA$9, 0)","v":{"v":0,"d":"$0.00"}},{"$f":"IFERROR('MMA Rev-Exp Region 10'!$AB$74/'MMA Rev-Exp Region 10'!$AB$9, 0)","v":{"v":0,"d":"$0.00"}},{"$f":"IFERROR('MMA Rev-Exp Region 10'!$AC$74/'MMA Rev-Exp Region 10'!$AC$9, 0)","v":{"v":0,"d":"$0.00"}},{"$f":"IFERROR('MMA Rev-Exp Region 10'!$AD$74/'MMA Rev-Exp Region 10'!$AD$9, 0)","v":{"v":0,"d":"$0.00"}},{"$f":"IFERROR('MMA Rev-Exp Region 10'!$AE$74/'MMA Rev-Exp Region 10'!$AE$9, 0)","v":{"v":0,"d":"$0.00"}},{"$f":"IFERROR('MMA Rev-Exp Region 10'!$AF$74/'MMA Rev-Exp Region 10'!$AF$9, 0)","v":{"v":0,"d":"$0.00"}},{"$f":"IFERROR('MMA Rev-Exp Region 10'!$AG$74/'MMA Rev-Exp Region 10'!$AG$9, 0)","v":{"v":0,"d":"$0.00"}},{"$f":"IFERROR('MMA Rev-Exp Region 10'!$AH$74/'MMA Rev-Exp Region 10'!$AH$9, 0)","v":{"v":0,"d":"$0.00"}},{"$f":"IFERROR('MMA Rev-Exp Region 10'!$AI$74/'MMA Rev-Exp Region 10'!$AI$9, 0)","v":{"v":0,"d":"$0.00"}},{"$f":"IFERROR('MMA Rev-Exp Region 10'!$AJ$74/'MMA Rev-Exp Region 10'!$AJ$9, 0)","v":{"v":0,"d":"$0.00"}}]
["MMA",null,null,2016,"2016-12-31","Q3","2017-09-30","Region 10","Operating Expense","Medical Benefits Expense","Expanded Benefits","10.4","Expanded Benefits Settlements",{"$f":"IFERROR('MMA Rev-Exp Region 10'!$Z$75/'MMA Rev-Exp Region 10'!$Z$9, 0)","v":{"v":0,"d":"$0.00"}},{"$f":"IFERROR('MMA Rev-Exp Region 10'!$AA$75/'MMA Rev-Exp Region 10'!$AA$9, 0)","v":{"v":0,"d":"$0.00"}},{"$f":"IFERROR('MMA Rev-Exp Region 10'!$AB$75/'MMA Rev-Exp Region 10'!$AB$9, 0)","v":{"v":0,"d":"$0.00"}},{"$f":"IFERROR('MMA Rev-Exp Region 10'!$AC$75/'MMA Rev-Exp Region 10'!$AC$9, 0)","v":{"v":0,"d":"$0.00"}},{"$f":"IFERROR('MMA Rev-Exp Region 10'!$AD$75/'MMA Rev-Exp Region 10'!$AD$9, 0)","v":{"v":0,"d":"$0.00"}},{"$f":"IFERROR('MMA Rev-Exp Region 10'!$AE$75/'MMA Rev-Exp Region 10'!$AE$9, 0)","v":{"v":0,"d":"$0.00"}},{"$f":"IFERROR('MMA Rev-Exp Region 10'!$AF$75/'MMA Rev-Exp Region 10'!$AF$9, 0)","v":{"v":0,"d":"$0.00"}},{"$f":"IFERROR('MMA Rev-Exp Region 10'!$AG$75/'MMA Rev-Exp Region 10'!$AG$9, 0)","v":{"v":0,"d":"$0.00"}},{"$f":"IFERROR('MMA Rev-Exp Region 10'!$AH$75/'MMA Rev-Exp Region 10'!$AH$9, 0)","v":{"v":0,"d":"$0.00"}},{"$f":"IFERROR('MMA Rev-Exp Region 10'!$AI$75/'MMA Rev-Exp Region 10'!$AI$9, 0)","v":{"v":0,"d":"$0.00"}},{"$f":"IFERROR('MMA Rev-Exp Region 10'!$AJ$75/'MMA Rev-Exp Region 10'!$AJ$9, 0)","v":{"v":0,"d":"$0.00"}}]
["MMA",null,null,2016,"2016-12-31","Q3","2017-09-30","Region 10","Operating Expense","Medical Benefits Expense","Other Medical","11.5","TPL & Fraud/Abuse Recoveries",{"$f":"IFERROR('MMA Rev-Exp Region 10'!$Z$81/'MMA Rev-Exp Region 10'!$Z$9, 0)","v":{"v":0,"d":"$0.00"}},{"$f":"IFERROR('MMA Rev-Exp Region 10'!$AA$81/'MMA Rev-Exp Region 10'!$AA$9, 0)","v":{"v":0,"d":"$0.00"}},{"$f":"IFERROR('MMA Rev-Exp Region 10'!$AB$81/'MMA Rev-Exp Region 10'!$AB$9, 0)","v":{"v":0,"d":"$0.00"}},{"$f":"IFERROR('MMA Rev-Exp Region 10'!$AC$81/'MMA Rev-Exp Region 10'!$AC$9, 0)","v":{"v":0,"d":"$0.00"}},{"$f":"IFERROR('MMA Rev-Exp Region 10'!$AD$81/'MMA Rev-Exp Region 10'!$AD$9, 0)","v":{"v":0,"d":"$0.00"}},{"$f":"IFERROR('MMA Rev-Exp Region 10'!$AE$81/'MMA Rev-Exp Region 10'!$AE$9, 0)","v":{"v":0,"d":"$0.00"}},{"$f":"IFERROR('MMA Rev-Exp Region 10'!$AF$81/'MMA Rev-Exp Region 10'!$AF$9, 0)","v":{"v":0,"d":"$0.00"}},{"$f":"IFERROR('MMA Rev-Exp Region 10'!$AG$81/'MMA Rev-Exp Region 10'!$AG$9, 0)","v":{"v":0,"d":"$0.00"}},{"$f":"IFERROR('MMA Rev-Exp Region 10'!$AH$81/'MMA Rev-Exp Region 10'!$AH$9, 0)","v":{"v":0,"d":"$0.00"}},{"$f":"IFERROR('MMA Rev-Exp Region 10'!$AI$81/'MMA Rev-Exp Region 10'!$AI$9, 0)","v":{"v":0,"d":"$0.00"}},{"$f":"IFERROR('MMA Rev-Exp Region 10'!$AJ$81/'MMA Rev-Exp Region 10'!$AJ$9, 0)","v":{"v":0,"d":"$0.00"}}]
["MMA",null,null,2016,"2016-12-31","Q3","2017-09-30","Region 10","Operating Expense","Medical Benefits Expense","Other Medical","11.6.1","Premium Deficiency Reserve",{"$f":"IFERROR('MMA Rev-Exp Region 10'!$Z$82/'MMA Rev-Exp Region 10'!$Z$9, 0)","v":{"v":0,"d":"$0.00"}},{"$f":"IFERROR('MMA Rev-Exp Region 10'!$AA$82/'MMA Rev-Exp Region 10'!$AA$9, 0)","v":{"v":0,"d":"$0.00"}},{"$f":"IFERROR('MMA Rev-Exp Region 10'!$AB$82/'MMA Rev-Exp Region 10'!$AB$9, 0)","v":{"v":0,"d":"$0.00"}},{"$f":"IFERROR('MMA Rev-Exp Region 10'!$AC$82/'MMA Rev-Exp Region 10'!$AC$9, 0)","v":{"v":0,"d":"$0.00"}},{"$f":"IFERROR('MMA Rev-Exp Region 10'!$AD$82/'MMA Rev-Exp Region 10'!$AD$9, 0)","v":{"v":0,"d":"$0.00"}},{"$f":"IFERROR('MMA Rev-Exp Region 10'!$AE$82/'MMA Rev-Exp Region 10'!$AE$9, 0)","v":{"v":0,"d":"$0.00"}},{"$f":"IFERROR('MMA Rev-Exp Region 10'!$AF$82/'MMA Rev-Exp Region 10'!$AF$9, 0)","v":{"v":0,"d":"$0.00"}},{"$f":"IFERROR('MMA Rev-Exp Region 10'!$AG$82/'MMA Rev-Exp Region 10'!$AG$9, 0)","v":{"v":0,"d":"$0.00"}},{"$f":"IFERROR('MMA Rev-Exp Region 10'!$AH$82/'MMA Rev-Exp Region 10'!$AH$9, 0)","v":{"v":0,"d":"$0.00"}},{"$f":"IFERROR('MMA Rev-Exp Region 10'!$AI$82/'MMA Rev-Exp Region 10'!$AI$9, 0)","v":{"v":0,"d":"$0.00"}},{"$f":"IFERROR('MMA Rev-Exp Region 10'!$AJ$82/'MMA Rev-Exp Region 10'!$AJ$9, 0)","v":{"v":0,"d":"$0.00"}}]
["MMA",null,null,2016,"2016-12-31","Q3","2017-09-30","Region 10","Operating Expense","Medical Benefits Expense","Other Medical","11.8","Reinsurance Premiums",{"$f":"IFERROR('MMA Rev-Exp Region 10'!$Z$84/'MMA Rev-Exp Region 10'!$Z$9, 0)","v":{"v":0,"d":"$0.00"}},{"$f":"IFERROR('MMA Rev-Exp Region 10'!$AA$84/'MMA Rev-Exp Region 10'!$AA$9, 0)","v":{"v":0,"d":"$0.00"}},{"$f":"IFERROR('MMA Rev-Exp Region 10'!$AB$84/'MMA Rev-Exp Region 10'!$AB$9, 0)","v":{"v":0,"d":"$0.00"}},{"$f":"IFERROR('MMA Rev-Exp Region 10'!$AC$84/'MMA Rev-Exp Region 10'!$AC$9, 0)","v":{"v":0,"d":"$0.00"}},{"$f":"IFERROR('MMA Rev-Exp Region 10'!$AD$84/'MMA Rev-Exp Region 10'!$AD$9, 0)","v":{"v":0,"d":"$0.00"}},{"$f":"IFERROR('MMA Rev-Exp Region 10'!$AE$84/'MMA Rev-Exp Region 10'!$AE$9, 0)","v":{"v":0,"d":"$0.00"}},{"$f":"IFERROR('MMA Rev-Exp Region 10'!$AF$84/'MMA Rev-Exp Region 10'!$AF$9, 0)","v":{"v":0,"d":"$0.00"}},{"$f":"IFERROR('MMA Rev-Exp Region 10'!$AG$84/'MMA Rev-Exp Region 10'!$AG$9, 0)","v":{"v":0,"d":"$0.00"}},{"$f":"IFERROR('MMA Rev-Exp Region 10'!$AH$84/'MMA Rev-Exp Region 10'!$AH$9, 0)","v":{"v":0,"d":"$0.00"}},{"$f":"IFERROR('MMA Rev-Exp Region 10'!$AI$84/'MMA Rev-Exp Region 10'!$AI$9, 0)","v":{"v":0,"d":"$0.00"}},{"$f":"IFERROR('MMA Rev-Exp Region 10'!$AJ$84/'MMA Rev-Exp Region 10'!$AJ$9, 0)","v":{"v":0,"d":"$0.00"}}]
["MMA",null,null,2016,"2016-12-31","Q3","2017-09-30","Region 10","Operating Expense","Medical Benefits Expense","Other Medical","11.9","Reinsurance Recoveries",{"$f":"IFERROR('MMA Rev-Exp Region 10'!$Z$85/'MMA Rev-Exp Region 10'!$Z$9, 0)","v":{"v":0,"d":"$0.00"}},{"$f":"IFERROR('MMA Rev-Exp Region 10'!$AA$85/'MMA Rev-Exp Region 10'!$AA$9, 0)","v":{"v":0,"d":"$0.00"}},{"$f":"IFERROR('MMA Rev-Exp Region 10'!$AB$85/'MMA Rev-Exp Region 10'!$AB$9, 0)","v":{"v":0,"d":"$0.00"}},{"$f":"IFERROR('MMA Rev-Exp Region 10'!$AC$85/'MMA Rev-Exp Region 10'!$AC$9, 0)","v":{"v":0,"d":"$0.00"}},{"$f":"IFERROR('MMA Rev-Exp Region 10'!$AD$85/'MMA Rev-Exp Region 10'!$AD$9, 0)","v":{"v":0,"d":"$0.00"}},{"$f":"IFERROR('MMA Rev-Exp Region 10'!$AE$85/'MMA Rev-Exp Region 10'!$AE$9, 0)","v":{"v":0,"d":"$0.00"}},{"$f":"IFERROR('MMA Rev-Exp Region 10'!$AF$85/'MMA Rev-Exp Region 10'!$AF$9, 0)","v":{"v":0,"d":"$0.00"}},{"$f":"IFERROR('MMA Rev-Exp Region 10'!$AG$85/'MMA Rev-Exp Region 10'!$AG$9, 0)","v":{"v":0,"d":"$0.00"}},{"$f":"IFERROR('MMA Rev-Exp Region 10'!$AH$85/'MMA Rev-Exp Region 10'!$AH$9, 0)","v":{"v":0,"d":"$0.00"}},{"$f":"IFERROR('MMA Rev-Exp Region 10'!$AI$85/'MMA Rev-Exp Region 10'!$AI$9, 0)","v":{"v":0,"d":"$0.00"}},{"$f":"IFERROR('MMA Rev-Exp Region 10'!$AJ$85/'MMA Rev-Exp Region 10'!$AJ$9, 0)","v":{"v":0,"d":"$0.00"}}]
["MMA",null,null,2016,"2016-12-31","Q3","2017-09-30","Region 10","Operating Expense","Administrative Expense","Administrative","12.1","Salaries & Benefits",{"$f":"IFERROR('MMA Rev-Exp Region 10'!$Z$90/'MMA Rev-Exp Region 10'!$Z$9, 0)","v":{"v":0,"d":"$0.00"}},{"$f":"IFERROR('MMA Rev-Exp Region 10'!$AA$90/'MMA Rev-Exp Region 10'!$Z$9, 0)","v":{"v":0,"d":"$0.00"}},{"$f":"IFERROR('MMA Rev-Exp Region 10'!$AB$90/'MMA Rev-Exp Region 10'!$Z$9, 0)","v":{"v":0,"d":"$0.00"}}]
["MMA",null,null,2016,"2016-12-31","Q3","2017-09-30","Region 10","Operating Expense","Administrative Expense","Administrative","12.2","Administrative Services",{"$f":"IFERROR('MMA Rev-Exp Region 10'!$Z$91/'MMA Rev-Exp Region 10'!$Z$9, 0)","v":{"v":0,"d":"$0.00"}},{"$f":"IFERROR('MMA Rev-Exp Region 10'!$AA$91/'MMA Rev-Exp Region 10'!$Z$9, 0)","v":{"v":0,"d":"$0.00"}},{"$f":"IFERROR('MMA Rev-Exp Region 10'!$AB$91/'MMA Rev-Exp Region 10'!$Z$9, 0)","v":{"v":0,"d":"$0.00"}}]
["MMA",null,null,2016,"2016-12-31","Q3","2017-09-30","Region 10","Operating Expense","Administrative Expense","Administrative","12.3","Information Systems",{"$f":"IFERROR('MMA Rev-Exp Region 10'!$Z$92/'MMA Rev-Exp Region 10'!$Z$9, 0)","v":{"v":0,"d":"$0.00"}},{"$f":"IFERROR('MMA Rev-Exp Region 10'!$AA$92/'MMA Rev-Exp Region 10'!$Z$9, 0)","v":{"v":0,"d":"$0.00"}},{"$f":"IFERROR('MMA Rev-Exp Region 10'!$AB$92/'MMA Rev-Exp Region 10'!$Z$9, 0)","v":{"v":0,"d":"$0.00"}}]
["MMA",null,null,2016,"2016-12-31","Q3","2017-09-30","Region 10","Operating Expense","Administrative Expense","Administrative","12.4","Marketing Expenses",{"$f":"IFERROR('MMA Rev-Exp Region 10'!$Z$93/'MMA Rev-Exp Region 10'!$Z$9, 0)","v":{"v":0,"d":"$0.00"}},{"$f":"IFERROR('MMA Rev-Exp Region 10'!$AA$93/'MMA Rev-Exp Region 10'!$Z$9, 0)","v":{"v":0,"d":"$0.00"}},{"$f":"IFERROR('MMA Rev-Exp Region 10'!$AB$93/'MMA Rev-Exp Region 10'!$Z$9, 0)","v":{"v":0,"d":"$0.00"}}]
["MMA",null,null,2016,"2016-12-31","Q3","2017-09-30","Region 10","Operating Expense","Administrative Expense","Administrative","12.5","General  Administration",{"$f":"IFERROR('MMA Rev-Exp Region 10'!$Z$94/'MMA Rev-Exp Region 10'!$Z$9, 0)","v":{"v":0,"d":"$0.00"}},{"$f":"IFERROR('MMA Rev-Exp Region 10'!$AA$94/'MMA Rev-Exp Region 10'!$Z$9, 0)","v":{"v":0,"d":"$0.00"}},{"$f":"IFERROR('MMA Rev-Exp Region 10'!$AB$94/'MMA Rev-Exp Region 10'!$Z$9, 0)","v":{"v":0,"d":"$0.00"}}]
["MMA",null,null,2016,"2016-12-31","Q3","2017-09-30","Region 10","Operating Expense","Administrative Expense","Administrative","12.6","Compliance/Regulatory",{"$f":"IFERROR('MMA Rev-Exp Region 10'!$Z$95/'MMA Rev-Exp Region 10'!$Z$9, 0)","v":{"v":0,"d":"$0.00"}},{"$f":"IFERROR('MMA Rev-Exp Region 10'!$AA$95/'MMA Rev-Exp Region 10'!$Z$9, 0)","v":{"v":0,"d":"$0.00"}},{"$f":"IFERROR('MMA Rev-Exp Region 10'!$AB$95/'MMA Rev-Exp Region 10'!$Z$9, 0)","v":{"v":0,"d":"$0.00"}}]
["MMA",null,null,2016,"2016-12-31","Q3","2017-09-30","Region 10","Operating Expense","Taxes & Fees","Taxes & Fees","13.1","State Premium tax",{"$f":"IFERROR('MMA Rev-Exp Region 10'!$Z$97/'MMA Rev-Exp Region 10'!$Z$9, 0)","v":{"v":0,"d":"$0.00"}}]
["MMA",null,null,2016,"2016-12-31","Q3","2017-09-30","Region 10","Operating Expense","Taxes & Fees","Taxes & Fees","13.2","Department of Insurance Assessments",{"$f":"IFERROR('MMA Rev-Exp Region 10'!$Z$98/'MMA Rev-Exp Region 10'!$Z$9, 0)","v":{"v":0,"d":"$0.00"}}]
["MMA",null,null,2016,"2016-12-31","Q3","2017-09-30","Region 10","Operating Expense","Taxes & Fees","Taxes & Fees","13.3","Section 9010 Health Insurance Providers Fee",{"$f":"IFERROR('MMA Rev-Exp Region 10'!$Z$99/'MMA Rev-Exp Region 10'!$Z$9, 0)","v":{"v":0,"d":"$0.00"}}]
["MMA",null,null,2016,"2016-12-31","Q3","2017-09-30","Region 10","Non-Operating Expense","Income Tax Expense","Income Tax Expense","16.0","Income Tax Expense",{"$f":"IFERROR('MMA Rev-Exp Region 10'!$Z$106/'MMA Rev-Exp Region 10'!$Z$9, 0)","v":{"v":0,"d":"$0.00"}}]
["MMA",null,null,2016,"2016-12-31","Q4","2017-12-31","Region 10","Operating Revenue","Capitation","Capitation",1.1,"Capitation",{"$f":"IFERROR('MMA Rev-Exp Region 10'!$AK$11/'MMA Rev-Exp Region 10'!$AK$9, 0)","v":{"v":0,"d":"$0.00"}},{"$f":"IFERROR('MMA Rev-Exp Region 10'!$AL$11/'MMA Rev-Exp Region 10'!$AL$9, 0)","v":{"v":0,"d":"$0.00"}},{"$f":"IFERROR('MMA Rev-Exp Region 10'!$AM$11/'MMA Rev-Exp Region 10'!$AM$9, 0)","v":{"v":0,"d":"$0.00"}},{"$f":"IFERROR('MMA Rev-Exp Region 10'!$AN$11/'MMA Rev-Exp Region 10'!$AN$9, 0)","v":{"v":0,"d":"$0.00"}},{"$f":"IFERROR('MMA Rev-Exp Region 10'!$AO$11/'MMA Rev-Exp Region 10'!$AO$9, 0)","v":{"v":0,"d":"$0.00"}},{"$f":"IFERROR('MMA Rev-Exp Region 10'!$AP$11/'MMA Rev-Exp Region 10'!$AP$9, 0)","v":{"v":0,"d":"$0.00"}},{"$f":"IFERROR('MMA Rev-Exp Region 10'!$AQ$11/'MMA Rev-Exp Region 10'!$AQ$9, 0)","v":{"v":0,"d":"$0.00"}},{"$f":"IFERROR('MMA Rev-Exp Region 10'!$AR$11/'MMA Rev-Exp Region 10'!$AR$9, 0)","v":{"v":0,"d":"$0.00"}},{"$f":"IFERROR('MMA Rev-Exp Region 10'!$AS$11/'MMA Rev-Exp Region 10'!$AS$9, 0)","v":{"v":0,"d":"$0.00"}},{"$f":"IFERROR('MMA Rev-Exp Region 10'!$AT$11/'MMA Rev-Exp Region 10'!$AT$9, 0)","v":{"v":0,"d":"$0.00"}},{"$f":"IFERROR('MMA Rev-Exp Region 10'!$AU$11/'MMA Rev-Exp Region 10'!$AU$9, 0)","v":{"v":0,"d":"$0.00"}}]
["MMA",null,null,2016,"2016-12-31","Q4","2017-12-31","Region 10","Operating Revenue","Kick Payments","Kick Payments - Transplant",1.2,"Transplant Kick Payments",{"$f":"IFERROR('MMA Rev-Exp Region 10'!$AK$12/'MMA Rev-Exp Region 10'!$AK$9, 0)","v":{"v":0,"d":"$0.00"}},{"$f":"IFERROR('MMA Rev-Exp Region 10'!$AL$12/'MMA Rev-Exp Region 10'!$AL$9, 0)","v":{"v":0,"d":"$0.00"}},{"$f":"IFERROR('MMA Rev-Exp Region 10'!$AM$12/'MMA Rev-Exp Region 10'!$AM$9, 0)","v":{"v":0,"d":"$0.00"}},{"$f":"IFERROR('MMA Rev-Exp Region 10'!$AN$12/'MMA Rev-Exp Region 10'!$AN$9, 0)","v":{"v":0,"d":"$0.00"}},{"$f":"IFERROR('MMA Rev-Exp Region 10'!$AO$12/'MMA Rev-Exp Region 10'!$AO$9, 0)","v":{"v":0,"d":"$0.00"}},{"$f":"IFERROR('MMA Rev-Exp Region 10'!$AP$12/'MMA Rev-Exp Region 10'!$AP$9, 0)","v":{"v":0,"d":"$0.00"}},{"$f":"IFERROR('MMA Rev-Exp Region 10'!$AQ$12/'MMA Rev-Exp Region 10'!$AQ$9, 0)","v":{"v":0,"d":"$0.00"}},{"$f":"IFERROR('MMA Rev-Exp Region 10'!$AR$12/'MMA Rev-Exp Region 10'!$AR$9, 0)","v":{"v":0,"d":"$0.00"}},{"$f":"IFERROR('MMA Rev-Exp Region 10'!$AS$12/'MMA Rev-Exp Region 10'!$AS$9, 0)","v":{"v":0,"d":"$0.00"}},{"$f":"IFERROR('MMA Rev-Exp Region 10'!$AT$12/'MMA Rev-Exp Region 10'!$AT$9, 0)","v":{"v":0,"d":"$0.00"}},{"$f":"IFERROR('MMA Rev-Exp Region 10'!$AU$12/'MMA Rev-Exp Region 10'!$AU$9, 0)","v":{"v":0,"d":"$0.00"}}]
["MMA",null,null,2016,"2016-12-31","Q4","2017-12-31","Region 10","Operating Revenue","Kick Payments","Kick Payments - Hep C","1.3","Hepatitis C Kick Payments",{"$f":"IFERROR('MMA Rev-Exp Region 10'!$AK$13/'MMA Rev-Exp Region 10'!$AK$9, 0)","v":{"v":0,"d":"$0.00"}},{"$f":"IFERROR('MMA Rev-Exp Region 10'!$AL$13/'MMA Rev-Exp Region 10'!$AL$9, 0)","v":{"v":0,"d":"$0.00"}},{"$f":"IFERROR('MMA Rev-Exp Region 10'!$AM$13/'MMA Rev-Exp Region 10'!$AM$9, 0)","v":{"v":0,"d":"$0.00"}},{"$f":"IFERROR('MMA Rev-Exp Region 10'!$AN$13/'MMA Rev-Exp Region 10'!$AN$9, 0)","v":{"v":0,"d":"$0.00"}},{"$f":"IFERROR('MMA Rev-Exp Region 10'!$AO$13/'MMA Rev-Exp Region 10'!$AO$9, 0)","v":{"v":0,"d":"$0.00"}},{"$f":"IFERROR('MMA Rev-Exp Region 10'!$AP$13/'MMA Rev-Exp Region 10'!$AP$9, 0)","v":{"v":0,"d":"$0.00"}},{"$f":"IFERROR('MMA Rev-Exp Region 10'!$AQ$13/'MMA Rev-Exp Region 10'!$AQ$9, 0)","v":{"v":0,"d":"$0.00"}},{"$f":"IFERROR('MMA Rev-Exp Region 10'!$AR$13/'MMA Rev-Exp Region 10'!$AR$9, 0)","v":{"v":0,"d":"$0.00"}},{"$f":"IFERROR('MMA Rev-Exp Region 10'!$AS$13/'MMA Rev-Exp Region 10'!$AS$9, 0)","v":{"v":0,"d":"$0.00"}},{"$f":"IFERROR('MMA Rev-Exp Region 10'!$AT$13/'MMA Rev-Exp Region 10'!$AT$9, 0)","v":{"v":0,"d":"$0.00"}},{"$f":"IFERROR('MMA Rev-Exp Region 10'!$AU$13/'MMA Rev-Exp Region 10'!$AU$9, 0)","v":{"v":0,"d":"$0.00"}}]
["MMA",null,null,2016,"2016-12-31","Q4","2017-12-31","Region 10","Operating Revenue","Kick Payments","Kick Payments - Maternity","1.4.1","Maternity Kick Payments",{"$f":"IFERROR('MMA Rev-Exp Region 10'!$AK$14/'MMA Rev-Exp Region 10'!$AK$9, 0)","v":{"v":0,"d":"$0.00"}},{"$f":"IFERROR('MMA Rev-Exp Region 10'!$AL$14/'MMA Rev-Exp Region 10'!$AL$9, 0)","v":{"v":0,"d":"$0.00"}},{"$f":"IFERROR('MMA Rev-Exp Region 10'!$AM$14/'MMA Rev-Exp Region 10'!$AM$9, 0)","v":{"v":0,"d":"$0.00"}},{"$f":"IFERROR('MMA Rev-Exp Region 10'!$AN$14/'MMA Rev-Exp Region 10'!$AN$9, 0)","v":{"v":0,"d":"$0.00"}},{"$f":"IFERROR('MMA Rev-Exp Region 10'!$AO$14/'MMA Rev-Exp Region 10'!$AO$9, 0)","v":{"v":0,"d":"$0.00"}},{"$f":"IFERROR('MMA Rev-Exp Region 10'!$AP$14/'MMA Rev-Exp Region 10'!$AP$9, 0)","v":{"v":0,"d":"$0.00"}},{"$f":"IFERROR('MMA Rev-Exp Region 10'!$AQ$14/'MMA Rev-Exp Region 10'!$AQ$9, 0)","v":{"v":0,"d":"$0.00"}},{"$f":"IFERROR('MMA Rev-Exp Region 10'!$AR$14/'MMA Rev-Exp Region 10'!$AR$9, 0)","v":{"v":0,"d":"$0.00"}},{"$f":"IFERROR('MMA Rev-Exp Region 10'!$AS$14/'MMA Rev-Exp Region 10'!$AS$9, 0)","v":{"v":0,"d":"$0.00"}},{"$f":"IFERROR('MMA Rev-Exp Region 10'!$AT$14/'MMA Rev-Exp Region 10'!$AT$9, 0)","v":{"v":0,"d":"$0.00"}},{"$f":"IFERROR('MMA Rev-Exp Region 10'!$AU$14/'MMA Rev-Exp Region 10'!$AU$9, 0)","v":{"v":0,"d":"$0.00"}}]
["MMA",null,null,2016,"2016-12-31","Q4","2017-12-31","Region 10","Operating Revenue","Other Revenue","Other Revenue - 9010","1.5","ACA § 9010 related payments",{"$f":"IFERROR('MMA Rev-Exp Region 10'!$AK$15/'MMA Rev-Exp Region 10'!$AK$9, 0)","v":{"v":0,"d":"$0.00"}},{"$f":"IFERROR('MMA Rev-Exp Region 10'!$AL$15/'MMA Rev-Exp Region 10'!$AL$9, 0)","v":{"v":0,"d":"$0.00"}},{"$f":"IFERROR('MMA Rev-Exp Region 10'!$AM$15/'MMA Rev-Exp Region 10'!$AM$9, 0)","v":{"v":0,"d":"$0.00"}},{"$f":"IFERROR('MMA Rev-Exp Region 10'!$AN$15/'MMA Rev-Exp Region 10'!$AN$9, 0)","v":{"v":0,"d":"$0.00"}},{"$f":"IFERROR('MMA Rev-Exp Region 10'!$AO$15/'MMA Rev-Exp Region 10'!$AO$9, 0)","v":{"v":0,"d":"$0.00"}},{"$f":"IFERROR('MMA Rev-Exp Region 10'!$AP$15/'MMA Rev-Exp Region 10'!$AP$9, 0)","v":{"v":0,"d":"$0.00"}},{"$f":"IFERROR('MMA Rev-Exp Region 10'!$AQ$15/'MMA Rev-Exp Region 10'!$AQ$9, 0)","v":{"v":0,"d":"$0.00"}},{"$f":"IFERROR('MMA Rev-Exp Region 10'!$AR$15/'MMA Rev-Exp Region 10'!$AR$9, 0)","v":{"v":0,"d":"$0.00"}},{"$f":"IFERROR('MMA Rev-Exp Region 10'!$AS$15/'MMA Rev-Exp Region 10'!$AS$9, 0)","v":{"v":0,"d":"$0.00"}},{"$f":"IFERROR('MMA Rev-Exp Region 10'!$AT$15/'MMA Rev-Exp Region 10'!$AT$9, 0)","v":{"v":0,"d":"$0.00"}},{"$f":"IFERROR('MMA Rev-Exp Region 10'!$AU$15/'MMA Rev-Exp Region 10'!$AU$9, 0)","v":{"v":0,"d":"$0.00"}}]
["MMA",null,null,2016,"2016-12-31","Q4","2017-12-31","Region 10","Operating Revenue","Other Revenue","Other Revenue","1.6","Other Revenue",{"$f":"IFERROR('MMA Rev-Exp Region 10'!$AK$16/'MMA Rev-Exp Region 10'!$AK$9, 0)","v":{"v":0,"d":"$0.00"}},{"$f":"IFERROR('MMA Rev-Exp Region 10'!$AL$16/'MMA Rev-Exp Region 10'!$AL$9, 0)","v":{"v":0,"d":"$0.00"}},{"$f":"IFERROR('MMA Rev-Exp Region 10'!$AM$16/'MMA Rev-Exp Region 10'!$AM$9, 0)","v":{"v":0,"d":"$0.00"}},{"$f":"IFERROR('MMA Rev-Exp Region 10'!$AN$16/'MMA Rev-Exp Region 10'!$AN$9, 0)","v":{"v":0,"d":"$0.00"}},{"$f":"IFERROR('MMA Rev-Exp Region 10'!$AO$16/'MMA Rev-Exp Region 10'!$AO$9, 0)","v":{"v":0,"d":"$0.00"}},{"$f":"IFERROR('MMA Rev-Exp Region 10'!$AP$16/'MMA Rev-Exp Region 10'!$AP$9, 0)","v":{"v":0,"d":"$0.00"}},{"$f":"IFERROR('MMA Rev-Exp Region 10'!$AQ$16/'MMA Rev-Exp Region 10'!$AQ$9, 0)","v":{"v":0,"d":"$0.00"}},{"$f":"IFERROR('MMA Rev-Exp Region 10'!$AR$16/'MMA Rev-Exp Region 10'!$AR$9, 0)","v":{"v":0,"d":"$0.00"}},{"$f":"IFERROR('MMA Rev-Exp Region 10'!$AS$16/'MMA Rev-Exp Region 10'!$AS$9, 0)","v":{"v":0,"d":"$0.00"}},{"$f":"IFERROR('MMA Rev-Exp Region 10'!$AT$16/'MMA Rev-Exp Region 10'!$AT$9, 0)","v":{"v":0,"d":"$0.00"}},{"$f":"IFERROR('MMA Rev-Exp Region 10'!$AU$16/'MMA Rev-Exp Region 10'!$AU$9, 0)","v":{"v":0,"d":"$0.00"}}]
["MMA",null,null,2016,"2016-12-31","Q4","2017-12-31","Region 10","Operating Expense","Medical Benefits Expense","Hospital Services",2.1,"Inpatient FFS",{"$f":"IFERROR('MMA Rev-Exp Region 10'!$AK$20/'MMA Rev-Exp Region 10'!$AK$9, 0)","v":{"v":0,"d":"$0.00"}},{"$f":"IFERROR('MMA Rev-Exp Region 10'!$AL$20/'MMA Rev-Exp Region 10'!$AL$9, 0)","v":{"v":0,"d":"$0.00"}},{"$f":"IFERROR('MMA Rev-Exp Region 10'!$AM$20/'MMA Rev-Exp Region 10'!$AM$9, 0)","v":{"v":0,"d":"$0.00"}},{"$f":"IFERROR('MMA Rev-Exp Region 10'!$AN$20/'MMA Rev-Exp Region 10'!$AN$9, 0)","v":{"v":0,"d":"$0.00"}},{"$f":"IFERROR('MMA Rev-Exp Region 10'!$AO$20/'MMA Rev-Exp Region 10'!$AO$9, 0)","v":{"v":0,"d":"$0.00"}},{"$f":"IFERROR('MMA Rev-Exp Region 10'!$AP$20/'MMA Rev-Exp Region 10'!$AP$9, 0)","v":{"v":0,"d":"$0.00"}},{"$f":"IFERROR('MMA Rev-Exp Region 10'!$AQ$20/'MMA Rev-Exp Region 10'!$AQ$9, 0)","v":{"v":0,"d":"$0.00"}},{"$f":"IFERROR('MMA Rev-Exp Region 10'!$AR$20/'MMA Rev-Exp Region 10'!$AR$9, 0)","v":{"v":0,"d":"$0.00"}},{"$f":"IFERROR('MMA Rev-Exp Region 10'!$AS$20/'MMA Rev-Exp Region 10'!$AS$9, 0)","v":{"v":0,"d":"$0.00"}},{"$f":"IFERROR('MMA Rev-Exp Region 10'!$AT$20/'MMA Rev-Exp Region 10'!$AT$9, 0)","v":{"v":0,"d":"$0.00"}},{"$f":"IFERROR('MMA Rev-Exp Region 10'!$AU$20/'MMA Rev-Exp Region 10'!$AU$9, 0)","v":{"v":0,"d":"$0.00"}}]
["MMA",null,null,2016,"2016-12-31","Q4","2017-12-31","Region 10","Operating Expense","Medical Benefits Expense","Hospital Services",2.2,"Ending IBNP for Inpatient Hospital Services",{"$f":"IFERROR('MMA Rev-Exp Region 10'!$AK$21/'MMA Rev-Exp Region 10'!$AK$9, 0)","v":{"v":0,"d":"$0.00"}},{"$f":"IFERROR('MMA Rev-Exp Region 10'!$AL$21/'MMA Rev-Exp Region 10'!$AL$9, 0)","v":{"v":0,"d":"$0.00"}},{"$f":"IFERROR('MMA Rev-Exp Region 10'!$AM$21/'MMA Rev-Exp Region 10'!$AM$9, 0)","v":{"v":0,"d":"$0.00"}},{"$f":"IFERROR('MMA Rev-Exp Region 10'!$AN$21/'MMA Rev-Exp Region 10'!$AN$9, 0)","v":{"v":0,"d":"$0.00"}},{"$f":"IFERROR('MMA Rev-Exp Region 10'!$AO$21/'MMA Rev-Exp Region 10'!$AO$9, 0)","v":{"v":0,"d":"$0.00"}},{"$f":"IFERROR('MMA Rev-Exp Region 10'!$AP$21/'MMA Rev-Exp Region 10'!$AP$9, 0)","v":{"v":0,"d":"$0.00"}},{"$f":"IFERROR('MMA Rev-Exp Region 10'!$AQ$21/'MMA Rev-Exp Region 10'!$AQ$9, 0)","v":{"v":0,"d":"$0.00"}},{"$f":"IFERROR('MMA Rev-Exp Region 10'!$AR$21/'MMA Rev-Exp Region 10'!$AR$9, 0)","v":{"v":0,"d":"$0.00"}},{"$f":"IFERROR('MMA Rev-Exp Region 10'!$AS$21/'MMA Rev-Exp Region 10'!$AS$9, 0)","v":{"v":0,"d":"$0.00"}},{"$f":"IFERROR('MMA Rev-Exp Region 10'!$AT$21/'MMA Rev-Exp Region 10'!$AT$9, 0)","v":{"v":0,"d":"$0.00"}},{"$f":"IFERROR('MMA Rev-Exp Region 10'!$AU$21/'MMA Rev-Exp Region 10'!$AU$9, 0)","v":{"v":0,"d":"$0.00"}}]
["MMA",null,null,2016,"2016-12-31","Q4","2017-12-31","Region 10","Operating Expense","Medical Benefits Expense","Hospital Services",2.3,"Outpatient FFS: ER",{"$f":"IFERROR('MMA Rev-Exp Region 10'!$AK$22/'MMA Rev-Exp Region 10'!$AK$9, 0)","v":{"v":0,"d":"$0.00"}},{"$f":"IFERROR('MMA Rev-Exp Region 10'!$AL$22/'MMA Rev-Exp Region 10'!$AL$9, 0)","v":{"v":0,"d":"$0.00"}},{"$f":"IFERROR('MMA Rev-Exp Region 10'!$AM$22/'MMA Rev-Exp Region 10'!$AM$9, 0)","v":{"v":0,"d":"$0.00"}},{"$f":"IFERROR('MMA Rev-Exp Region 10'!$AN$22/'MMA Rev-Exp Region 10'!$AN$9, 0)","v":{"v":0,"d":"$0.00"}},{"$f":"IFERROR('MMA Rev-Exp Region 10'!$AO$22/'MMA Rev-Exp Region 10'!$AO$9, 0)","v":{"v":0,"d":"$0.00"}},{"$f":"IFERROR('MMA Rev-Exp Region 10'!$AP$22/'MMA Rev-Exp Region 10'!$AP$9, 0)","v":{"v":0,"d":"$0.00"}},{"$f":"IFERROR('MMA Rev-Exp Region 10'!$AQ$22/'MMA Rev-Exp Region 10'!$AQ$9, 0)","v":{"v":0,"d":"$0.00"}},{"$f":"IFERROR('MMA Rev-Exp Region 10'!$AR$22/'MMA Rev-Exp Region 10'!$AR$9, 0)","v":{"v":0,"d":"$0.00"}},{"$f":"IFERROR('MMA Rev-Exp Region 10'!$AS$22/'MMA Rev-Exp Region 10'!$AS$9, 0)","v":{"v":0,"d":"$0.00"}},{"$f":"IFERROR('MMA Rev-Exp Region 10'!$AT$22/'MMA Rev-Exp Region 10'!$AT$9, 0)","v":{"v":0,"d":"$0.00"}},{"$f":"IFERROR('MMA Rev-Exp Region 10'!$AU$22/'MMA Rev-Exp Region 10'!$AU$9, 0)","v":{"v":0,"d":"$0.00"}}]
["MMA",null,null,2016,"2016-12-31","Q4","2017-12-31","Region 10","Operating Expense","Medical Benefits Expense","Hospital Services",2.4,"Outpatient FFS: Other than ER ",{"$f":"IFERROR('MMA Rev-Exp Region 10'!$AK$23/'MMA Rev-Exp Region 10'!$AK$9, 0)","v":{"v":0,"d":"$0.00"}},{"$f":"IFERROR('MMA Rev-Exp Region 10'!$AL$23/'MMA Rev-Exp Region 10'!$AL$9, 0)","v":{"v":0,"d":"$0.00"}},{"$f":"IFERROR('MMA Rev-Exp Region 10'!$AM$23/'MMA Rev-Exp Region 10'!$AM$9, 0)","v":{"v":0,"d":"$0.00"}},{"$f":"IFERROR('MMA Rev-Exp Region 10'!$AN$23/'MMA Rev-Exp Region 10'!$AN$9, 0)","v":{"v":0,"d":"$0.00"}},{"$f":"IFERROR('MMA Rev-Exp Region 10'!$AO$23/'MMA Rev-Exp Region 10'!$AO$9, 0)","v":{"v":0,"d":"$0.00"}},{"$f":"IFERROR('MMA Rev-Exp Region 10'!$AP$23/'MMA Rev-Exp Region 10'!$AP$9, 0)","v":{"v":0,"d":"$0.00"}},{"$f":"IFERROR('MMA Rev-Exp Region 10'!$AQ$23/'MMA Rev-Exp Region 10'!$AQ$9, 0)","v":{"v":0,"d":"$0.00"}},{"$f":"IFERROR('MMA Rev-Exp Region 10'!$AR$23/'MMA Rev-Exp Region 10'!$AR$9, 0)","v":{"v":0,"d":"$0.00"}},{"$f":"IFERROR('MMA Rev-Exp Region 10'!$AS$23/'MMA Rev-Exp Region 10'!$AS$9, 0)","v":{"v":0,"d":"$0.00"}},{"$f":"IFERROR('MMA Rev-Exp Region 10'!$AT$23/'MMA Rev-Exp Region 10'!$AT$9, 0)","v":{"v":0,"d":"$0.00"}},{"$f":"IFERROR('MMA Rev-Exp Region 10'!$AU$23/'MMA Rev-Exp Region 10'!$AU$9, 0)","v":{"v":0,"d":"$0.00"}}]
["MMA",null,null,2016,"2016-12-31","Q4","2017-12-31","Region 10","Operating Expense","Medical Benefits Expense","Hospital Services",2.5,"Ending IBNP for Outpatient Hospital Services",{"$f":"IFERROR('MMA Rev-Exp Region 10'!$AK$24/'MMA Rev-Exp Region 10'!$AK$9, 0)","v":{"v":0,"d":"$0.00"}},{"$f":"IFERROR('MMA Rev-Exp Region 10'!$AL$24/'MMA Rev-Exp Region 10'!$AL$9, 0)","v":{"v":0,"d":"$0.00"}},{"$f":"IFERROR('MMA Rev-Exp Region 10'!$AM$24/'MMA Rev-Exp Region 10'!$AM$9, 0)","v":{"v":0,"d":"$0.00"}},{"$f":"IFERROR('MMA Rev-Exp Region 10'!$AN$24/'MMA Rev-Exp Region 10'!$AN$9, 0)","v":{"v":0,"d":"$0.00"}},{"$f":"IFERROR('MMA Rev-Exp Region 10'!$AO$24/'MMA Rev-Exp Region 10'!$AO$9, 0)","v":{"v":0,"d":"$0.00"}},{"$f":"IFERROR('MMA Rev-Exp Region 10'!$AP$24/'MMA Rev-Exp Region 10'!$AP$9, 0)","v":{"v":0,"d":"$0.00"}},{"$f":"IFERROR('MMA Rev-Exp Region 10'!$AQ$24/'MMA Rev-Exp Region 10'!$AQ$9, 0)","v":{"v":0,"d":"$0.00"}},{"$f":"IFERROR('MMA Rev-Exp Region 10'!$AR$24/'MMA Rev-Exp Region 10'!$AR$9, 0)","v":{"v":0,"d":"$0.00"}},{"$f":"IFERROR('MMA Rev-Exp Region 10'!$AS$24/'MMA Rev-Exp Region 10'!$AS$9, 0)","v":{"v":0,"d":"$0.00"}},{"$f":"IFERROR('MMA Rev-Exp Region 10'!$AT$24/'MMA Rev-Exp Region 10'!$AT$9, 0)","v":{"v":0,"d":"$0.00"}},{"$f":"IFERROR('MMA Rev-Exp Region 10'!$AU$24/'MMA Rev-Exp Region 10'!$AU$9, 0)","v":{"v":0,"d":"$0.00"}}]
["MMA",null,null,2016,"2016-12-31","Q4","2017-12-31","Region 10","Operating Expense","Medical Benefits Expense","Hospital Services","2.6","Subcapitated Hospital Services",{"$f":"IFERROR('MMA Rev-Exp Region 10'!$AK$25/'MMA Rev-Exp Region 10'!$AK$9, 0)","v":{"v":0,"d":"$0.00"}},{"$f":"IFERROR('MMA Rev-Exp Region 10'!$AL$25/'MMA Rev-Exp Region 10'!$AL$9, 0)","v":{"v":0,"d":"$0.00"}},{"$f":"IFERROR('MMA Rev-Exp Region 10'!$AM$25/'MMA Rev-Exp Region 10'!$AM$9, 0)","v":{"v":0,"d":"$0.00"}},{"$f":"IFERROR('MMA Rev-Exp Region 10'!$AN$25/'MMA Rev-Exp Region 10'!$AN$9, 0)","v":{"v":0,"d":"$0.00"}},{"$f":"IFERROR('MMA Rev-Exp Region 10'!$AO$25/'MMA Rev-Exp Region 10'!$AO$9, 0)","v":{"v":0,"d":"$0.00"}},{"$f":"IFERROR('MMA Rev-Exp Region 10'!$AP$25/'MMA Rev-Exp Region 10'!$AP$9, 0)","v":{"v":0,"d":"$0.00"}},{"$f":"IFERROR('MMA Rev-Exp Region 10'!$AQ$25/'MMA Rev-Exp Region 10'!$AQ$9, 0)","v":{"v":0,"d":"$0.00"}},{"$f":"IFERROR('MMA Rev-Exp Region 10'!$AR$25/'MMA Rev-Exp Region 10'!$AR$9, 0)","v":{"v":0,"d":"$0.00"}},{"$f":"IFERROR('MMA Rev-Exp Region 10'!$AS$25/'MMA Rev-Exp Region 10'!$AS$9, 0)","v":{"v":0,"d":"$0.00"}},{"$f":"IFERROR('MMA Rev-Exp Region 10'!$AT$25/'MMA Rev-Exp Region 10'!$AT$9, 0)","v":{"v":0,"d":"$0.00"}},{"$f":"IFERROR('MMA Rev-Exp Region 10'!$AU$25/'MMA Rev-Exp Region 10'!$AU$9, 0)","v":{"v":0,"d":"$0.00"}}]
["MMA",null,null,2016,"2016-12-31","Q4","2017-12-31","Region 10","Operating Expense","Medical Benefits Expense","Hospital Services","2.7","Hospital Settlements",{"$f":"IFERROR('MMA Rev-Exp Region 10'!$AK$26/'MMA Rev-Exp Region 10'!$AK$9, 0)","v":{"v":0,"d":"$0.00"}},{"$f":"IFERROR('MMA Rev-Exp Region 10'!$AL$26/'MMA Rev-Exp Region 10'!$AL$9, 0)","v":{"v":0,"d":"$0.00"}},{"$f":"IFERROR('MMA Rev-Exp Region 10'!$AM$26/'MMA Rev-Exp Region 10'!$AM$9, 0)","v":{"v":0,"d":"$0.00"}},{"$f":"IFERROR('MMA Rev-Exp Region 10'!$AN$26/'MMA Rev-Exp Region 10'!$AN$9, 0)","v":{"v":0,"d":"$0.00"}},{"$f":"IFERROR('MMA Rev-Exp Region 10'!$AO$26/'MMA Rev-Exp Region 10'!$AO$9, 0)","v":{"v":0,"d":"$0.00"}},{"$f":"IFERROR('MMA Rev-Exp Region 10'!$AP$26/'MMA Rev-Exp Region 10'!$AP$9, 0)","v":{"v":0,"d":"$0.00"}},{"$f":"IFERROR('MMA Rev-Exp Region 10'!$AQ$26/'MMA Rev-Exp Region 10'!$AQ$9, 0)","v":{"v":0,"d":"$0.00"}},{"$f":"IFERROR('MMA Rev-Exp Region 10'!$AR$26/'MMA Rev-Exp Region 10'!$AR$9, 0)","v":{"v":0,"d":"$0.00"}},{"$f":"IFERROR('MMA Rev-Exp Region 10'!$AS$26/'MMA Rev-Exp Region 10'!$AS$9, 0)","v":{"v":0,"d":"$0.00"}},{"$f":"IFERROR('MMA Rev-Exp Region 10'!$AT$26/'MMA Rev-Exp Region 10'!$AT$9, 0)","v":{"v":0,"d":"$0.00"}},{"$f":"IFERROR('MMA Rev-Exp Region 10'!$AU$26/'MMA Rev-Exp Region 10'!$AU$9, 0)","v":{"v":0,"d":"$0.00"}}]
["MMA",null,null,2016,"2016-12-31","Q4","2017-12-31","Region 10","Operating Expense","Medical Benefits Expense","Hospital Services","2.7.1","Transplant Services",{"$f":"IFERROR('MMA Rev-Exp Region 10'!$AK$27/'MMA Rev-Exp Region 10'!$AK$9, 0)","v":{"v":0,"d":"$0.00"}},{"$f":"IFERROR('MMA Rev-Exp Region 10'!$AL$27/'MMA Rev-Exp Region 10'!$AL$9, 0)","v":{"v":0,"d":"$0.00"}},{"$f":"IFERROR('MMA Rev-Exp Region 10'!$AM$27/'MMA Rev-Exp Region 10'!$AM$9, 0)","v":{"v":0,"d":"$0.00"}},{"$f":"IFERROR('MMA Rev-Exp Region 10'!$AN$27/'MMA Rev-Exp Region 10'!$AN$9, 0)","v":{"v":0,"d":"$0.00"}},{"$f":"IFERROR('MMA Rev-Exp Region 10'!$AO$27/'MMA Rev-Exp Region 10'!$AO$9, 0)","v":{"v":0,"d":"$0.00"}},{"$f":"IFERROR('MMA Rev-Exp Region 10'!$AP$27/'MMA Rev-Exp Region 10'!$AP$9, 0)","v":{"v":0,"d":"$0.00"}},{"$f":"IFERROR('MMA Rev-Exp Region 10'!$AQ$27/'MMA Rev-Exp Region 10'!$AQ$9, 0)","v":{"v":0,"d":"$0.00"}},{"$f":"IFERROR('MMA Rev-Exp Region 10'!$AR$27/'MMA Rev-Exp Region 10'!$AR$9, 0)","v":{"v":0,"d":"$0.00"}},{"$f":"IFERROR('MMA Rev-Exp Region 10'!$AS$27/'MMA Rev-Exp Region 10'!$AS$9, 0)","v":{"v":0,"d":"$0.00"}},{"$f":"IFERROR('MMA Rev-Exp Region 10'!$AT$27/'MMA Rev-Exp Region 10'!$AT$9, 0)","v":{"v":0,"d":"$0.00"}},{"$f":"IFERROR('MMA Rev-Exp Region 10'!$AU$27/'MMA Rev-Exp Region 10'!$AU$9, 0)","v":{"v":0,"d":"$0.00"}}]
["MMA",null,null,2016,"2016-12-31","Q4","2017-12-31","Region 10","Operating Expense","Medical Benefits Expense","Professional Services",3.1,"Primary Care FFS",{"$f":"IFERROR('MMA Rev-Exp Region 10'!$AK$29/'MMA Rev-Exp Region 10'!$AK$9, 0)","v":{"v":0,"d":"$0.00"}},{"$f":"IFERROR('MMA Rev-Exp Region 10'!$AL$29/'MMA Rev-Exp Region 10'!$AL$9, 0)","v":{"v":0,"d":"$0.00"}},{"$f":"IFERROR('MMA Rev-Exp Region 10'!$AM$29/'MMA Rev-Exp Region 10'!$AM$9, 0)","v":{"v":0,"d":"$0.00"}},{"$f":"IFERROR('MMA Rev-Exp Region 10'!$AN$29/'MMA Rev-Exp Region 10'!$AN$9, 0)","v":{"v":0,"d":"$0.00"}},{"$f":"IFERROR('MMA Rev-Exp Region 10'!$AO$29/'MMA Rev-Exp Region 10'!$AO$9, 0)","v":{"v":0,"d":"$0.00"}},{"$f":"IFERROR('MMA Rev-Exp Region 10'!$AP$29/'MMA Rev-Exp Region 10'!$AP$9, 0)","v":{"v":0,"d":"$0.00"}},{"$f":"IFERROR('MMA Rev-Exp Region 10'!$AQ$29/'MMA Rev-Exp Region 10'!$AQ$9, 0)","v":{"v":0,"d":"$0.00"}},{"$f":"IFERROR('MMA Rev-Exp Region 10'!$AR$29/'MMA Rev-Exp Region 10'!$AR$9, 0)","v":{"v":0,"d":"$0.00"}},{"$f":"IFERROR('MMA Rev-Exp Region 10'!$AS$29/'MMA Rev-Exp Region 10'!$AS$9, 0)","v":{"v":0,"d":"$0.00"}},{"$f":"IFERROR('MMA Rev-Exp Region 10'!$AT$29/'MMA Rev-Exp Region 10'!$AT$9, 0)","v":{"v":0,"d":"$0.00"}},{"$f":"IFERROR('MMA Rev-Exp Region 10'!$AU$29/'MMA Rev-Exp Region 10'!$AU$9, 0)","v":{"v":0,"d":"$0.00"}}]
["MMA",null,null,2016,"2016-12-31","Q4","2017-12-31","Region 10","Operating Expense","Medical Benefits Expense","Professional Services",3.2,"Specialty Care FFS",{"$f":"IFERROR('MMA Rev-Exp Region 10'!$AK$30/'MMA Rev-Exp Region 10'!$AK$9, 0)","v":{"v":0,"d":"$0.00"}},{"$f":"IFERROR('MMA Rev-Exp Region 10'!$AL$30/'MMA Rev-Exp Region 10'!$AL$9, 0)","v":{"v":0,"d":"$0.00"}},{"$f":"IFERROR('MMA Rev-Exp Region 10'!$AM$30/'MMA Rev-Exp Region 10'!$AM$9, 0)","v":{"v":0,"d":"$0.00"}},{"$f":"IFERROR('MMA Rev-Exp Region 10'!$AN$30/'MMA Rev-Exp Region 10'!$AN$9, 0)","v":{"v":0,"d":"$0.00"}},{"$f":"IFERROR('MMA Rev-Exp Region 10'!$AO$30/'MMA Rev-Exp Region 10'!$AO$9, 0)","v":{"v":0,"d":"$0.00"}},{"$f":"IFERROR('MMA Rev-Exp Region 10'!$AP$30/'MMA Rev-Exp Region 10'!$AP$9, 0)","v":{"v":0,"d":"$0.00"}},{"$f":"IFERROR('MMA Rev-Exp Region 10'!$AQ$30/'MMA Rev-Exp Region 10'!$AQ$9, 0)","v":{"v":0,"d":"$0.00"}},{"$f":"IFERROR('MMA Rev-Exp Region 10'!$AR$30/'MMA Rev-Exp Region 10'!$AR$9, 0)","v":{"v":0,"d":"$0.00"}},{"$f":"IFERROR('MMA Rev-Exp Region 10'!$AS$30/'MMA Rev-Exp Region 10'!$AS$9, 0)","v":{"v":0,"d":"$0.00"}},{"$f":"IFERROR('MMA Rev-Exp Region 10'!$AT$30/'MMA Rev-Exp Region 10'!$AT$9, 0)","v":{"v":0,"d":"$0.00"}},{"$f":"IFERROR('MMA Rev-Exp Region 10'!$AU$30/'MMA Rev-Exp Region 10'!$AU$9, 0)","v":{"v":0,"d":"$0.00"}}]
["MMA",null,null,2016,"2016-12-31","Q4","2017-12-31","Region 10","Operating Expense","Medical Benefits Expense","Professional Services",3.3,"Other Professional FFS",{"$f":"IFERROR('MMA Rev-Exp Region 10'!$AK$31/'MMA Rev-Exp Region 10'!$AK$9, 0)","v":{"v":0,"d":"$0.00"}},{"$f":"IFERROR('MMA Rev-Exp Region 10'!$AL$31/'MMA Rev-Exp Region 10'!$AL$9, 0)","v":{"v":0,"d":"$0.00"}},{"$f":"IFERROR('MMA Rev-Exp Region 10'!$AM$31/'MMA Rev-Exp Region 10'!$AM$9, 0)","v":{"v":0,"d":"$0.00"}},{"$f":"IFERROR('MMA Rev-Exp Region 10'!$AN$31/'MMA Rev-Exp Region 10'!$AN$9, 0)","v":{"v":0,"d":"$0.00"}},{"$f":"IFERROR('MMA Rev-Exp Region 10'!$AO$31/'MMA Rev-Exp Region 10'!$AO$9, 0)","v":{"v":0,"d":"$0.00"}},{"$f":"IFERROR('MMA Rev-Exp Region 10'!$AP$31/'MMA Rev-Exp Region 10'!$AP$9, 0)","v":{"v":0,"d":"$0.00"}},{"$f":"IFERROR('MMA Rev-Exp Region 10'!$AQ$31/'MMA Rev-Exp Region 10'!$AQ$9, 0)","v":{"v":0,"d":"$0.00"}},{"$f":"IFERROR('MMA Rev-Exp Region 10'!$AR$31/'MMA Rev-Exp Region 10'!$AR$9, 0)","v":{"v":0,"d":"$0.00"}},{"$f":"IFERROR('MMA Rev-Exp Region 10'!$AS$31/'MMA Rev-Exp Region 10'!$AS$9, 0)","v":{"v":0,"d":"$0.00"}},{"$f":"IFERROR('MMA Rev-Exp Region 10'!$AT$31/'MMA Rev-Exp Region 10'!$AT$9, 0)","v":{"v":0,"d":"$0.00"}},{"$f":"IFERROR('MMA Rev-Exp Region 10'!$AU$31/'MMA Rev-Exp Region 10'!$AU$9, 0)","v":{"v":0,"d":"$0.00"}}]
["MMA",null,null,2016,"2016-12-31","Q4","2017-12-31","Region 10","Operating Expense","Medical Benefits Expense","Professional Services","3.4","§ 1202 PCP Payments to providers",{"$f":"IFERROR('MMA Rev-Exp Region 10'!$AK$32/'MMA Rev-Exp Region 10'!$AK$9, 0)","v":{"v":0,"d":"$0.00"}},{"$f":"IFERROR('MMA Rev-Exp Region 10'!$AL$32/'MMA Rev-Exp Region 10'!$AL$9, 0)","v":{"v":0,"d":"$0.00"}},{"$f":"IFERROR('MMA Rev-Exp Region 10'!$AM$32/'MMA Rev-Exp Region 10'!$AM$9, 0)","v":{"v":0,"d":"$0.00"}},{"$f":"IFERROR('MMA Rev-Exp Region 10'!$AN$32/'MMA Rev-Exp Region 10'!$AN$9, 0)","v":{"v":0,"d":"$0.00"}},{"$f":"IFERROR('MMA Rev-Exp Region 10'!$AO$32/'MMA Rev-Exp Region 10'!$AO$9, 0)","v":{"v":0,"d":"$0.00"}},{"$f":"IFERROR('MMA Rev-Exp Region 10'!$AP$32/'MMA Rev-Exp Region 10'!$AP$9, 0)","v":{"v":0,"d":"$0.00"}},{"$f":"IFERROR('MMA Rev-Exp Region 10'!$AQ$32/'MMA Rev-Exp Region 10'!$AQ$9, 0)","v":{"v":0,"d":"$0.00"}},{"$f":"IFERROR('MMA Rev-Exp Region 10'!$AR$32/'MMA Rev-Exp Region 10'!$AR$9, 0)","v":{"v":0,"d":"$0.00"}},{"$f":"IFERROR('MMA Rev-Exp Region 10'!$AS$32/'MMA Rev-Exp Region 10'!$AS$9, 0)","v":{"v":0,"d":"$0.00"}},{"$f":"IFERROR('MMA Rev-Exp Region 10'!$AT$32/'MMA Rev-Exp Region 10'!$AT$9, 0)","v":{"v":0,"d":"$0.00"}},{"$f":"IFERROR('MMA Rev-Exp Region 10'!$AU$32/'MMA Rev-Exp Region 10'!$AU$9, 0)","v":{"v":0,"d":"$0.00"}}]
["MMA",null,null,2016,"2016-12-31","Q4","2017-12-31","Region 10","Operating Expense","Medical Benefits Expense","Professional Services","3.5","Subcapitated Professional Services",{"$f":"IFERROR('MMA Rev-Exp Region 10'!$AK$33/'MMA Rev-Exp Region 10'!$AK$9, 0)","v":{"v":0,"d":"$0.00"}},{"$f":"IFERROR('MMA Rev-Exp Region 10'!$AL$33/'MMA Rev-Exp Region 10'!$AL$9, 0)","v":{"v":0,"d":"$0.00"}},{"$f":"IFERROR('MMA Rev-Exp Region 10'!$AM$33/'MMA Rev-Exp Region 10'!$AM$9, 0)","v":{"v":0,"d":"$0.00"}},{"$f":"IFERROR('MMA Rev-Exp Region 10'!$AN$33/'MMA Rev-Exp Region 10'!$AN$9, 0)","v":{"v":0,"d":"$0.00"}},{"$f":"IFERROR('MMA Rev-Exp Region 10'!$AO$33/'MMA Rev-Exp Region 10'!$AO$9, 0)","v":{"v":0,"d":"$0.00"}},{"$f":"IFERROR('MMA Rev-Exp Region 10'!$AP$33/'MMA Rev-Exp Region 10'!$AP$9, 0)","v":{"v":0,"d":"$0.00"}},{"$f":"IFERROR('MMA Rev-Exp Region 10'!$AQ$33/'MMA Rev-Exp Region 10'!$AQ$9, 0)","v":{"v":0,"d":"$0.00"}},{"$f":"IFERROR('MMA Rev-Exp Region 10'!$AR$33/'MMA Rev-Exp Region 10'!$AR$9, 0)","v":{"v":0,"d":"$0.00"}},{"$f":"IFERROR('MMA Rev-Exp Region 10'!$AS$33/'MMA Rev-Exp Region 10'!$AS$9, 0)","v":{"v":0,"d":"$0.00"}},{"$f":"IFERROR('MMA Rev-Exp Region 10'!$AT$33/'MMA Rev-Exp Region 10'!$AT$9, 0)","v":{"v":0,"d":"$0.00"}},{"$f":"IFERROR('MMA Rev-Exp Region 10'!$AU$33/'MMA Rev-Exp Region 10'!$AU$9, 0)","v":{"v":0,"d":"$0.00"}}]
["MMA",null,null,2016,"2016-12-31","Q4","2017-12-31","Region 10","Operating Expense","Medical Benefits Expense","Professional Services","3.6","Ending IBNP for Professional Services",{"$f":"IFERROR('MMA Rev-Exp Region 10'!$AK$34/'MMA Rev-Exp Region 10'!$AK$9, 0)","v":{"v":0,"d":"$0.00"}},{"$f":"IFERROR('MMA Rev-Exp Region 10'!$AL$34/'MMA Rev-Exp Region 10'!$AL$9, 0)","v":{"v":0,"d":"$0.00"}},{"$f":"IFERROR('MMA Rev-Exp Region 10'!$AM$34/'MMA Rev-Exp Region 10'!$AM$9, 0)","v":{"v":0,"d":"$0.00"}},{"$f":"IFERROR('MMA Rev-Exp Region 10'!$AN$34/'MMA Rev-Exp Region 10'!$AN$9, 0)","v":{"v":0,"d":"$0.00"}},{"$f":"IFERROR('MMA Rev-Exp Region 10'!$AO$34/'MMA Rev-Exp Region 10'!$AO$9, 0)","v":{"v":0,"d":"$0.00"}},{"$f":"IFERROR('MMA Rev-Exp Region 10'!$AP$34/'MMA Rev-Exp Region 10'!$AP$9, 0)","v":{"v":0,"d":"$0.00"}},{"$f":"IFERROR('MMA Rev-Exp Region 10'!$AQ$34/'MMA Rev-Exp Region 10'!$AQ$9, 0)","v":{"v":0,"d":"$0.00"}},{"$f":"IFERROR('MMA Rev-Exp Region 10'!$AR$34/'MMA Rev-Exp Region 10'!$AR$9, 0)","v":{"v":0,"d":"$0.00"}},{"$f":"IFERROR('MMA Rev-Exp Region 10'!$AS$34/'MMA Rev-Exp Region 10'!$AS$9, 0)","v":{"v":0,"d":"$0.00"}},{"$f":"IFERROR('MMA Rev-Exp Region 10'!$AT$34/'MMA Rev-Exp Region 10'!$AT$9, 0)","v":{"v":0,"d":"$0.00"}},{"$f":"IFERROR('MMA Rev-Exp Region 10'!$AU$34/'MMA Rev-Exp Region 10'!$AU$9, 0)","v":{"v":0,"d":"$0.00"}}]
["MMA",null,null,2016,"2016-12-31","Q4","2017-12-31","Region 10","Operating Expense","Medical Benefits Expense","Professional Services","3.7","Professional Services Settlements",{"$f":"IFERROR('MMA Rev-Exp Region 10'!$AK$35/'MMA Rev-Exp Region 10'!$AK$9, 0)","v":{"v":0,"d":"$0.00"}},{"$f":"IFERROR('MMA Rev-Exp Region 10'!$AL$35/'MMA Rev-Exp Region 10'!$AL$9, 0)","v":{"v":0,"d":"$0.00"}},{"$f":"IFERROR('MMA Rev-Exp Region 10'!$AM$35/'MMA Rev-Exp Region 10'!$AM$9, 0)","v":{"v":0,"d":"$0.00"}},{"$f":"IFERROR('MMA Rev-Exp Region 10'!$AN$35/'MMA Rev-Exp Region 10'!$AN$9, 0)","v":{"v":0,"d":"$0.00"}},{"$f":"IFERROR('MMA Rev-Exp Region 10'!$AO$35/'MMA Rev-Exp Region 10'!$AO$9, 0)","v":{"v":0,"d":"$0.00"}},{"$f":"IFERROR('MMA Rev-Exp Region 10'!$AP$35/'MMA Rev-Exp Region 10'!$AP$9, 0)","v":{"v":0,"d":"$0.00"}},{"$f":"IFERROR('MMA Rev-Exp Region 10'!$AQ$35/'MMA Rev-Exp Region 10'!$AQ$9, 0)","v":{"v":0,"d":"$0.00"}},{"$f":"IFERROR('MMA Rev-Exp Region 10'!$AR$35/'MMA Rev-Exp Region 10'!$AR$9, 0)","v":{"v":0,"d":"$0.00"}},{"$f":"IFERROR('MMA Rev-Exp Region 10'!$AS$35/'MMA Rev-Exp Region 10'!$AS$9, 0)","v":{"v":0,"d":"$0.00"}},{"$f":"IFERROR('MMA Rev-Exp Region 10'!$AT$35/'MMA Rev-Exp Region 10'!$AT$9, 0)","v":{"v":0,"d":"$0.00"}},{"$f":"IFERROR('MMA Rev-Exp Region 10'!$AU$35/'MMA Rev-Exp Region 10'!$AU$9, 0)","v":{"v":0,"d":"$0.00"}}]
["MMA",null,null,2016,"2016-12-31","Q4","2017-12-31","Region 10","Operating Expense","Medical Benefits Expense","Maternity Services","4.1.1","Maternity Services",{"$f":"IFERROR('MMA Rev-Exp Region 10'!$AK$37/'MMA Rev-Exp Region 10'!$AK$9, 0)","v":{"v":0,"d":"$0.00"}},{"$f":"IFERROR('MMA Rev-Exp Region 10'!$AL$37/'MMA Rev-Exp Region 10'!$AL$9, 0)","v":{"v":0,"d":"$0.00"}},{"$f":"IFERROR('MMA Rev-Exp Region 10'!$AM$37/'MMA Rev-Exp Region 10'!$AM$9, 0)","v":{"v":0,"d":"$0.00"}},{"$f":"IFERROR('MMA Rev-Exp Region 10'!$AN$37/'MMA Rev-Exp Region 10'!$AN$9, 0)","v":{"v":0,"d":"$0.00"}},{"$f":"IFERROR('MMA Rev-Exp Region 10'!$AO$37/'MMA Rev-Exp Region 10'!$AO$9, 0)","v":{"v":0,"d":"$0.00"}},{"$f":"IFERROR('MMA Rev-Exp Region 10'!$AP$37/'MMA Rev-Exp Region 10'!$AP$9, 0)","v":{"v":0,"d":"$0.00"}},{"$f":"IFERROR('MMA Rev-Exp Region 10'!$AQ$37/'MMA Rev-Exp Region 10'!$AQ$9, 0)","v":{"v":0,"d":"$0.00"}},{"$f":"IFERROR('MMA Rev-Exp Region 10'!$AR$37/'MMA Rev-Exp Region 10'!$AR$9, 0)","v":{"v":0,"d":"$0.00"}},{"$f":"IFERROR('MMA Rev-Exp Region 10'!$AS$37/'MMA Rev-Exp Region 10'!$AS$9, 0)","v":{"v":0,"d":"$0.00"}},{"$f":"IFERROR('MMA Rev-Exp Region 10'!$AT$37/'MMA Rev-Exp Region 10'!$AT$9, 0)","v":{"v":0,"d":"$0.00"}},{"$f":"IFERROR('MMA Rev-Exp Region 10'!$AU$37/'MMA Rev-Exp Region 10'!$AU$9, 0)","v":{"v":0,"d":"$0.00"}}]
["MMA",null,null,2016,"2016-12-31","Q4","2017-12-31","Region 10","Operating Expense","Medical Benefits Expense","Maternity Services","4.2.1","Ending IBNP for Maternity Services",{"$f":"IFERROR('MMA Rev-Exp Region 10'!$AK$38/'MMA Rev-Exp Region 10'!$AK$9, 0)","v":{"v":0,"d":"$0.00"}},{"$f":"IFERROR('MMA Rev-Exp Region 10'!$AL$38/'MMA Rev-Exp Region 10'!$AL$9, 0)","v":{"v":0,"d":"$0.00"}},{"$f":"IFERROR('MMA Rev-Exp Region 10'!$AM$38/'MMA Rev-Exp Region 10'!$AM$9, 0)","v":{"v":0,"d":"$0.00"}},{"$f":"IFERROR('MMA Rev-Exp Region 10'!$AN$38/'MMA Rev-Exp Region 10'!$AN$9, 0)","v":{"v":0,"d":"$0.00"}},{"$f":"IFERROR('MMA Rev-Exp Region 10'!$AO$38/'MMA Rev-Exp Region 10'!$AO$9, 0)","v":{"v":0,"d":"$0.00"}},{"$f":"IFERROR('MMA Rev-Exp Region 10'!$AP$38/'MMA Rev-Exp Region 10'!$AP$9, 0)","v":{"v":0,"d":"$0.00"}},{"$f":"IFERROR('MMA Rev-Exp Region 10'!$AQ$38/'MMA Rev-Exp Region 10'!$AQ$9, 0)","v":{"v":0,"d":"$0.00"}},{"$f":"IFERROR('MMA Rev-Exp Region 10'!$AR$38/'MMA Rev-Exp Region 10'!$AR$9, 0)","v":{"v":0,"d":"$0.00"}},{"$f":"IFERROR('MMA Rev-Exp Region 10'!$AS$38/'MMA Rev-Exp Region 10'!$AS$9, 0)","v":{"v":0,"d":"$0.00"}},{"$f":"IFERROR('MMA Rev-Exp Region 10'!$AT$38/'MMA Rev-Exp Region 10'!$AT$9, 0)","v":{"v":0,"d":"$0.00"}},{"$f":"IFERROR('MMA Rev-Exp Region 10'!$AU$38/'MMA Rev-Exp Region 10'!$AU$9, 0)","v":{"v":0,"d":"$0.00"}}]
["MMA",null,null,2016,"2016-12-31","Q4","2017-12-31","Region 10","Operating Expense","Medical Benefits Expense","Maternity Services","4.3.1","Maternity Settlements",{"$f":"IFERROR('MMA Rev-Exp Region 10'!$AK$39/'MMA Rev-Exp Region 10'!$AK$9, 0)","v":{"v":0,"d":"$0.00"}},{"$f":"IFERROR('MMA Rev-Exp Region 10'!$AL$39/'MMA Rev-Exp Region 10'!$AL$9, 0)","v":{"v":0,"d":"$0.00"}},{"$f":"IFERROR('MMA Rev-Exp Region 10'!$AM$39/'MMA Rev-Exp Region 10'!$AM$9, 0)","v":{"v":0,"d":"$0.00"}},{"$f":"IFERROR('MMA Rev-Exp Region 10'!$AN$39/'MMA Rev-Exp Region 10'!$AN$9, 0)","v":{"v":0,"d":"$0.00"}},{"$f":"IFERROR('MMA Rev-Exp Region 10'!$AO$39/'MMA Rev-Exp Region 10'!$AO$9, 0)","v":{"v":0,"d":"$0.00"}},{"$f":"IFERROR('MMA Rev-Exp Region 10'!$AP$39/'MMA Rev-Exp Region 10'!$AP$9, 0)","v":{"v":0,"d":"$0.00"}},{"$f":"IFERROR('MMA Rev-Exp Region 10'!$AQ$39/'MMA Rev-Exp Region 10'!$AQ$9, 0)","v":{"v":0,"d":"$0.00"}},{"$f":"IFERROR('MMA Rev-Exp Region 10'!$AR$39/'MMA Rev-Exp Region 10'!$AR$9, 0)","v":{"v":0,"d":"$0.00"}},{"$f":"IFERROR('MMA Rev-Exp Region 10'!$AS$39/'MMA Rev-Exp Region 10'!$AS$9, 0)","v":{"v":0,"d":"$0.00"}},{"$f":"IFERROR('MMA Rev-Exp Region 10'!$AT$39/'MMA Rev-Exp Region 10'!$AT$9, 0)","v":{"v":0,"d":"$0.00"}},{"$f":"IFERROR('MMA Rev-Exp Region 10'!$AU$39/'MMA Rev-Exp Region 10'!$AU$9, 0)","v":{"v":0,"d":"$0.00"}}]
["MMA",null,null,2016,"2016-12-31","Q4","2017-12-31","Region 10","Operating Expense","Medical Benefits Expense","Mental Health Services",5.1,"Mental Health & Substance Abuse FFS",{"$f":"IFERROR('MMA Rev-Exp Region 10'!$AK$41/'MMA Rev-Exp Region 10'!$AK$9, 0)","v":{"v":0,"d":"$0.00"}},{"$f":"IFERROR('MMA Rev-Exp Region 10'!$AL$41/'MMA Rev-Exp Region 10'!$AL$9, 0)","v":{"v":0,"d":"$0.00"}},{"$f":"IFERROR('MMA Rev-Exp Region 10'!$AM$41/'MMA Rev-Exp Region 10'!$AM$9, 0)","v":{"v":0,"d":"$0.00"}},{"$f":"IFERROR('MMA Rev-Exp Region 10'!$AN$41/'MMA Rev-Exp Region 10'!$AN$9, 0)","v":{"v":0,"d":"$0.00"}},{"$f":"IFERROR('MMA Rev-Exp Region 10'!$AO$41/'MMA Rev-Exp Region 10'!$AO$9, 0)","v":{"v":0,"d":"$0.00"}},{"$f":"IFERROR('MMA Rev-Exp Region 10'!$AP$41/'MMA Rev-Exp Region 10'!$AP$9, 0)","v":{"v":0,"d":"$0.00"}},{"$f":"IFERROR('MMA Rev-Exp Region 10'!$AQ$41/'MMA Rev-Exp Region 10'!$AQ$9, 0)","v":{"v":0,"d":"$0.00"}},{"$f":"IFERROR('MMA Rev-Exp Region 10'!$AR$41/'MMA Rev-Exp Region 10'!$AR$9, 0)","v":{"v":0,"d":"$0.00"}},{"$f":"IFERROR('MMA Rev-Exp Region 10'!$AS$41/'MMA Rev-Exp Region 10'!$AS$9, 0)","v":{"v":0,"d":"$0.00"}},{"$f":"IFERROR('MMA Rev-Exp Region 10'!$AT$41/'MMA Rev-Exp Region 10'!$AT$9, 0)","v":{"v":0,"d":"$0.00"}},{"$f":"IFERROR('MMA Rev-Exp Region 10'!$AU$41/'MMA Rev-Exp Region 10'!$AU$9, 0)","v":{"v":0,"d":"$0.00"}}]
["MMA",null,null,2016,"2016-12-31","Q4","2017-12-31","Region 10","Operating Expense","Medical Benefits Expense","Mental Health Services",5.2,"Mental Health & Substance Abuse Subcapitation",{"$f":"IFERROR('MMA Rev-Exp Region 10'!$AK$42/'MMA Rev-Exp Region 10'!$AK$9, 0)","v":{"v":0,"d":"$0.00"}},{"$f":"IFERROR('MMA Rev-Exp Region 10'!$AL$42/'MMA Rev-Exp Region 10'!$AL$9, 0)","v":{"v":0,"d":"$0.00"}},{"$f":"IFERROR('MMA Rev-Exp Region 10'!$AM$42/'MMA Rev-Exp Region 10'!$AM$9, 0)","v":{"v":0,"d":"$0.00"}},{"$f":"IFERROR('MMA Rev-Exp Region 10'!$AN$42/'MMA Rev-Exp Region 10'!$AN$9, 0)","v":{"v":0,"d":"$0.00"}},{"$f":"IFERROR('MMA Rev-Exp Region 10'!$AO$42/'MMA Rev-Exp Region 10'!$AO$9, 0)","v":{"v":0,"d":"$0.00"}},{"$f":"IFERROR('MMA Rev-Exp Region 10'!$AP$42/'MMA Rev-Exp Region 10'!$AP$9, 0)","v":{"v":0,"d":"$0.00"}},{"$f":"IFERROR('MMA Rev-Exp Region 10'!$AQ$42/'MMA Rev-Exp Region 10'!$AQ$9, 0)","v":{"v":0,"d":"$0.00"}},{"$f":"IFERROR('MMA Rev-Exp Region 10'!$AR$42/'MMA Rev-Exp Region 10'!$AR$9, 0)","v":{"v":0,"d":"$0.00"}},{"$f":"IFERROR('MMA Rev-Exp Region 10'!$AS$42/'MMA Rev-Exp Region 10'!$AS$9, 0)","v":{"v":0,"d":"$0.00"}},{"$f":"IFERROR('MMA Rev-Exp Region 10'!$AT$42/'MMA Rev-Exp Region 10'!$AT$9, 0)","v":{"v":0,"d":"$0.00"}},{"$f":"IFERROR('MMA Rev-Exp Region 10'!$AU$42/'MMA Rev-Exp Region 10'!$AU$9, 0)","v":{"v":0,"d":"$0.00"}}]
["MMA",null,null,2016,"2016-12-31","Q4","2017-12-31","Region 10","Operating Expense","Medical Benefits Expense","Mental Health Services",5.3,"Ending IBNP for Mental Health & Substance Abuse",{"$f":"IFERROR('MMA Rev-Exp Region 10'!$AK$43/'MMA Rev-Exp Region 10'!$AK$9, 0)","v":{"v":0,"d":"$0.00"}},{"$f":"IFERROR('MMA Rev-Exp Region 10'!$AL$43/'MMA Rev-Exp Region 10'!$AL$9, 0)","v":{"v":0,"d":"$0.00"}},{"$f":"IFERROR('MMA Rev-Exp Region 10'!$AM$43/'MMA Rev-Exp Region 10'!$AM$9, 0)","v":{"v":0,"d":"$0.00"}},{"$f":"IFERROR('MMA Rev-Exp Region 10'!$AN$43/'MMA Rev-Exp Region 10'!$AN$9, 0)","v":{"v":0,"d":"$0.00"}},{"$f":"IFERROR('MMA Rev-Exp Region 10'!$AO$43/'MMA Rev-Exp Region 10'!$AO$9, 0)","v":{"v":0,"d":"$0.00"}},{"$f":"IFERROR('MMA Rev-Exp Region 10'!$AP$43/'MMA Rev-Exp Region 10'!$AP$9, 0)","v":{"v":0,"d":"$0.00"}},{"$f":"IFERROR('MMA Rev-Exp Region 10'!$AQ$43/'MMA Rev-Exp Region 10'!$AQ$9, 0)","v":{"v":0,"d":"$0.00"}},{"$f":"IFERROR('MMA Rev-Exp Region 10'!$AR$43/'MMA Rev-Exp Region 10'!$AR$9, 0)","v":{"v":0,"d":"$0.00"}},{"$f":"IFERROR('MMA Rev-Exp Region 10'!$AS$43/'MMA Rev-Exp Region 10'!$AS$9, 0)","v":{"v":0,"d":"$0.00"}},{"$f":"IFERROR('MMA Rev-Exp Region 10'!$AT$43/'MMA Rev-Exp Region 10'!$AT$9, 0)","v":{"v":0,"d":"$0.00"}},{"$f":"IFERROR('MMA Rev-Exp Region 10'!$AU$43/'MMA Rev-Exp Region 10'!$AU$9, 0)","v":{"v":0,"d":"$0.00"}}]
["MMA",null,null,2016,"2016-12-31","Q4","2017-12-31","Region 10","Operating Expense","Medical Benefits Expense","Mental Health Services","5.4","Mental Health Settlements",{"$f":"IFERROR('MMA Rev-Exp Region 10'!$AK$44/'MMA Rev-Exp Region 10'!$AK$9, 0)","v":{"v":0,"d":"$0.00"}},{"$f":"IFERROR('MMA Rev-Exp Region 10'!$AL$44/'MMA Rev-Exp Region 10'!$AL$9, 0)","v":{"v":0,"d":"$0.00"}},{"$f":"IFERROR('MMA Rev-Exp Region 10'!$AM$44/'MMA Rev-Exp Region 10'!$AM$9, 0)","v":{"v":0,"d":"$0.00"}},{"$f":"IFERROR('MMA Rev-Exp Region 10'!$AN$44/'MMA Rev-Exp Region 10'!$AN$9, 0)","v":{"v":0,"d":"$0.00"}},{"$f":"IFERROR('MMA Rev-Exp Region 10'!$AO$44/'MMA Rev-Exp Region 10'!$AO$9, 0)","v":{"v":0,"d":"$0.00"}},{"$f":"IFERROR('MMA Rev-Exp Region 10'!$AP$44/'MMA Rev-Exp Region 10'!$AP$9, 0)","v":{"v":0,"d":"$0.00"}},{"$f":"IFERROR('MMA Rev-Exp Region 10'!$AQ$44/'MMA Rev-Exp Region 10'!$AQ$9, 0)","v":{"v":0,"d":"$0.00"}},{"$f":"IFERROR('MMA Rev-Exp Region 10'!$AR$44/'MMA Rev-Exp Region 10'!$AR$9, 0)","v":{"v":0,"d":"$0.00"}},{"$f":"IFERROR('MMA Rev-Exp Region 10'!$AS$44/'MMA Rev-Exp Region 10'!$AS$9, 0)","v":{"v":0,"d":"$0.00"}},{"$f":"IFERROR('MMA Rev-Exp Region 10'!$AT$44/'MMA Rev-Exp Region 10'!$AT$9, 0)","v":{"v":0,"d":"$0.00"}},{"$f":"IFERROR('MMA Rev-Exp Region 10'!$AU$44/'MMA Rev-Exp Region 10'!$AU$9, 0)","v":{"v":0,"d":"$0.00"}}]
["MMA",null,null,2016,"2016-12-31","Q4","2017-12-31","Region 10","Operating Expense","Medical Benefits Expense","Dental Services",6.1,"Dental FFS",{"$f":"IFERROR('MMA Rev-Exp Region 10'!$AK$46/'MMA Rev-Exp Region 10'!$AK$9, 0)","v":{"v":0,"d":"$0.00"}},{"$f":"IFERROR('MMA Rev-Exp Region 10'!$AL$46/'MMA Rev-Exp Region 10'!$AL$9, 0)","v":{"v":0,"d":"$0.00"}},{"$f":"IFERROR('MMA Rev-Exp Region 10'!$AM$46/'MMA Rev-Exp Region 10'!$AM$9, 0)","v":{"v":0,"d":"$0.00"}},{"$f":"IFERROR('MMA Rev-Exp Region 10'!$AN$46/'MMA Rev-Exp Region 10'!$AN$9, 0)","v":{"v":0,"d":"$0.00"}},{"$f":"IFERROR('MMA Rev-Exp Region 10'!$AO$46/'MMA Rev-Exp Region 10'!$AO$9, 0)","v":{"v":0,"d":"$0.00"}},{"$f":"IFERROR('MMA Rev-Exp Region 10'!$AP$46/'MMA Rev-Exp Region 10'!$AP$9, 0)","v":{"v":0,"d":"$0.00"}},{"$f":"IFERROR('MMA Rev-Exp Region 10'!$AQ$46/'MMA Rev-Exp Region 10'!$AQ$9, 0)","v":{"v":0,"d":"$0.00"}},{"$f":"IFERROR('MMA Rev-Exp Region 10'!$AR$46/'MMA Rev-Exp Region 10'!$AR$9, 0)","v":{"v":0,"d":"$0.00"}},{"$f":"IFERROR('MMA Rev-Exp Region 10'!$AS$46/'MMA Rev-Exp Region 10'!$AS$9, 0)","v":{"v":0,"d":"$0.00"}},{"$f":"IFERROR('MMA Rev-Exp Region 10'!$AT$46/'MMA Rev-Exp Region 10'!$AT$9, 0)","v":{"v":0,"d":"$0.00"}},{"$f":"IFERROR('MMA Rev-Exp Region 10'!$AU$46/'MMA Rev-Exp Region 10'!$AU$9, 0)","v":{"v":0,"d":"$0.00"}}]
["MMA",null,null,2016,"2016-12-31","Q4","2017-12-31","Region 10","Operating Expense","Medical Benefits Expense","Dental Services",6.2,"Dental Subcapitation",{"$f":"IFERROR('MMA Rev-Exp Region 10'!$AK$47/'MMA Rev-Exp Region 10'!$AK$9, 0)","v":{"v":0,"d":"$0.00"}},{"$f":"IFERROR('MMA Rev-Exp Region 10'!$AL$47/'MMA Rev-Exp Region 10'!$AL$9, 0)","v":{"v":0,"d":"$0.00"}},{"$f":"IFERROR('MMA Rev-Exp Region 10'!$AM$47/'MMA Rev-Exp Region 10'!$AM$9, 0)","v":{"v":0,"d":"$0.00"}},{"$f":"IFERROR('MMA Rev-Exp Region 10'!$AN$47/'MMA Rev-Exp Region 10'!$AN$9, 0)","v":{"v":0,"d":"$0.00"}},{"$f":"IFERROR('MMA Rev-Exp Region 10'!$AO$47/'MMA Rev-Exp Region 10'!$AO$9, 0)","v":{"v":0,"d":"$0.00"}},{"$f":"IFERROR('MMA Rev-Exp Region 10'!$AP$47/'MMA Rev-Exp Region 10'!$AP$9, 0)","v":{"v":0,"d":"$0.00"}},{"$f":"IFERROR('MMA Rev-Exp Region 10'!$AQ$47/'MMA Rev-Exp Region 10'!$AQ$9, 0)","v":{"v":0,"d":"$0.00"}},{"$f":"IFERROR('MMA Rev-Exp Region 10'!$AR$47/'MMA Rev-Exp Region 10'!$AR$9, 0)","v":{"v":0,"d":"$0.00"}},{"$f":"IFERROR('MMA Rev-Exp Region 10'!$AS$47/'MMA Rev-Exp Region 10'!$AS$9, 0)","v":{"v":0,"d":"$0.00"}},{"$f":"IFERROR('MMA Rev-Exp Region 10'!$AT$47/'MMA Rev-Exp Region 10'!$AT$9, 0)","v":{"v":0,"d":"$0.00"}},{"$f":"IFERROR('MMA Rev-Exp Region 10'!$AU$47/'MMA Rev-Exp Region 10'!$AU$9, 0)","v":{"v":0,"d":"$0.00"}}]
["MMA",null,null,2016,"2016-12-31","Q4","2017-12-31","Region 10","Operating Expense","Medical Benefits Expense","Dental Services",6.3,"Ending IBNP for Dental Services",{"$f":"IFERROR('MMA Rev-Exp Region 10'!$AK$48/'MMA Rev-Exp Region 10'!$AK$9, 0)","v":{"v":0,"d":"$0.00"}},{"$f":"IFERROR('MMA Rev-Exp Region 10'!$AL$48/'MMA Rev-Exp Region 10'!$AL$9, 0)","v":{"v":0,"d":"$0.00"}},{"$f":"IFERROR('MMA Rev-Exp Region 10'!$AM$48/'MMA Rev-Exp Region 10'!$AM$9, 0)","v":{"v":0,"d":"$0.00"}},{"$f":"IFERROR('MMA Rev-Exp Region 10'!$AN$48/'MMA Rev-Exp Region 10'!$AN$9, 0)","v":{"v":0,"d":"$0.00"}},{"$f":"IFERROR('MMA Rev-Exp Region 10'!$AO$48/'MMA Rev-Exp Region 10'!$AO$9, 0)","v":{"v":0,"d":"$0.00"}},{"$f":"IFERROR('MMA Rev-Exp Region 10'!$AP$48/'MMA Rev-Exp Region 10'!$AP$9, 0)","v":{"v":0,"d":"$0.00"}},{"$f":"IFERROR('MMA Rev-Exp Region 10'!$AQ$48/'MMA Rev-Exp Region 10'!$AQ$9, 0)","v":{"v":0,"d":"$0.00"}},{"$f":"IFERROR('MMA Rev-Exp Region 10'!$AR$48/'MMA Rev-Exp Region 10'!$AR$9, 0)","v":{"v":0,"d":"$0.00"}},{"$f":"IFERROR('MMA Rev-Exp Region 10'!$AS$48/'MMA Rev-Exp Region 10'!$AS$9, 0)","v":{"v":0,"d":"$0.00"}},{"$f":"IFERROR('MMA Rev-Exp Region 10'!$AT$48/'MMA Rev-Exp Region 10'!$AT$9, 0)","v":{"v":0,"d":"$0.00"}},{"$f":"IFERROR('MMA Rev-Exp Region 10'!$AU$48/'MMA Rev-Exp Region 10'!$AU$9, 0)","v":{"v":0,"d":"$0.00"}}]
["MMA",null,null,2016,"2016-12-31","Q4","2017-12-31","Region 10","Operating Expense","Medical Benefits Expense","Dental Services","6.4","Dental Settlements",{"$f":"IFERROR('MMA Rev-Exp Region 10'!$AK$49/'MMA Rev-Exp Region 10'!$AK$9, 0)","v":{"v":0,"d":"$0.00"}},{"$f":"IFERROR('MMA Rev-Exp Region 10'!$AL$49/'MMA Rev-Exp Region 10'!$AL$9, 0)","v":{"v":0,"d":"$0.00"}},{"$f":"IFERROR('MMA Rev-Exp Region 10'!$AM$49/'MMA Rev-Exp Region 10'!$AM$9, 0)","v":{"v":0,"d":"$0.00"}},{"$f":"IFERROR('MMA Rev-Exp Region 10'!$AN$49/'MMA Rev-Exp Region 10'!$AN$9, 0)","v":{"v":0,"d":"$0.00"}},{"$f":"IFERROR('MMA Rev-Exp Region 10'!$AO$49/'MMA Rev-Exp Region 10'!$AO$9, 0)","v":{"v":0,"d":"$0.00"}},{"$f":"IFERROR('MMA Rev-Exp Region 10'!$AP$49/'MMA Rev-Exp Region 10'!$AP$9, 0)","v":{"v":0,"d":"$0.00"}},{"$f":"IFERROR('MMA Rev-Exp Region 10'!$AQ$49/'MMA Rev-Exp Region 10'!$AQ$9, 0)","v":{"v":0,"d":"$0.00"}},{"$f":"IFERROR('MMA Rev-Exp Region 10'!$AR$49/'MMA Rev-Exp Region 10'!$AR$9, 0)","v":{"v":0,"d":"$0.00"}},{"$f":"IFERROR('MMA Rev-Exp Region 10'!$AS$49/'MMA Rev-Exp Region 10'!$AS$9, 0)","v":{"v":0,"d":"$0.00"}},{"$f":"IFERROR('MMA Rev-Exp Region 10'!$AT$49/'MMA Rev-Exp Region 10'!$AT$9, 0)","v":{"v":0,"d":"$0.00"}},{"$f":"IFERROR('MMA Rev-Exp Region 10'!$AU$49/'MMA Rev-Exp Region 10'!$AU$9, 0)","v":{"v":0,"d":"$0.00"}}]
["MMA",null,null,2016,"2016-12-31","Q4","2017-12-31","Region 10","Operating Expense","Medical Benefits Expense","Transportation Services",7.1,"Transportation FFS",{"$f":"IFERROR('MMA Rev-Exp Region 10'!$AK$51/'MMA Rev-Exp Region 10'!$AK$9, 0)","v":{"v":0,"d":"$0.00"}},{"$f":"IFERROR('MMA Rev-Exp Region 10'!$AL$51/'MMA Rev-Exp Region 10'!$AL$9, 0)","v":{"v":0,"d":"$0.00"}},{"$f":"IFERROR('MMA Rev-Exp Region 10'!$AM$51/'MMA Rev-Exp Region 10'!$AM$9, 0)","v":{"v":0,"d":"$0.00"}},{"$f":"IFERROR('MMA Rev-Exp Region 10'!$AN$51/'MMA Rev-Exp Region 10'!$AN$9, 0)","v":{"v":0,"d":"$0.00"}},{"$f":"IFERROR('MMA Rev-Exp Region 10'!$AO$51/'MMA Rev-Exp Region 10'!$AO$9, 0)","v":{"v":0,"d":"$0.00"}},{"$f":"IFERROR('MMA Rev-Exp Region 10'!$AP$51/'MMA Rev-Exp Region 10'!$AP$9, 0)","v":{"v":0,"d":"$0.00"}},{"$f":"IFERROR('MMA Rev-Exp Region 10'!$AQ$51/'MMA Rev-Exp Region 10'!$AQ$9, 0)","v":{"v":0,"d":"$0.00"}},{"$f":"IFERROR('MMA Rev-Exp Region 10'!$AR$51/'MMA Rev-Exp Region 10'!$AR$9, 0)","v":{"v":0,"d":"$0.00"}},{"$f":"IFERROR('MMA Rev-Exp Region 10'!$AS$51/'MMA Rev-Exp Region 10'!$AS$9, 0)","v":{"v":0,"d":"$0.00"}},{"$f":"IFERROR('MMA Rev-Exp Region 10'!$AT$51/'MMA Rev-Exp Region 10'!$AT$9, 0)","v":{"v":0,"d":"$0.00"}},{"$f":"IFERROR('MMA Rev-Exp Region 10'!$AU$51/'MMA Rev-Exp Region 10'!$AU$9, 0)","v":{"v":0,"d":"$0.00"}}]
["MMA",null,null,2016,"2016-12-31","Q4","2017-12-31","Region 10","Operating Expense","Medical Benefits Expense","Transportation Services",7.2,"Transportation Subcapitation",{"$f":"IFERROR('MMA Rev-Exp Region 10'!$AK$52/'MMA Rev-Exp Region 10'!$AK$9, 0)","v":{"v":0,"d":"$0.00"}},{"$f":"IFERROR('MMA Rev-Exp Region 10'!$AL$52/'MMA Rev-Exp Region 10'!$AL$9, 0)","v":{"v":0,"d":"$0.00"}},{"$f":"IFERROR('MMA Rev-Exp Region 10'!$AM$52/'MMA Rev-Exp Region 10'!$AM$9, 0)","v":{"v":0,"d":"$0.00"}},{"$f":"IFERROR('MMA Rev-Exp Region 10'!$AN$52/'MMA Rev-Exp Region 10'!$AN$9, 0)","v":{"v":0,"d":"$0.00"}},{"$f":"IFERROR('MMA Rev-Exp Region 10'!$AO$52/'MMA Rev-Exp Region 10'!$AO$9, 0)","v":{"v":0,"d":"$0.00"}},{"$f":"IFERROR('MMA Rev-Exp Region 10'!$AP$52/'MMA Rev-Exp Region 10'!$AP$9, 0)","v":{"v":0,"d":"$0.00"}},{"$f":"IFERROR('MMA Rev-Exp Region 10'!$AQ$52/'MMA Rev-Exp Region 10'!$AQ$9, 0)","v":{"v":0,"d":"$0.00"}},{"$f":"IFERROR('MMA Rev-Exp Region 10'!$AR$52/'MMA Rev-Exp Region 10'!$AR$9, 0)","v":{"v":0,"d":"$0.00"}},{"$f":"IFERROR('MMA Rev-Exp Region 10'!$AS$52/'MMA Rev-Exp Region 10'!$AS$9, 0)","v":{"v":0,"d":"$0.00"}},{"$f":"IFERROR('MMA Rev-Exp Region 10'!$AT$52/'MMA Rev-Exp Region 10'!$AT$9, 0)","v":{"v":0,"d":"$0.00"}},{"$f":"IFERROR('MMA Rev-Exp Region 10'!$AU$52/'MMA Rev-Exp Region 10'!$AU$9, 0)","v":{"v":0,"d":"$0.00"}}]
["MMA",null,null,2016,"2016-12-31","Q4","2017-12-31","Region 10","Operating Expense","Medical Benefits Expense","Transportation Services",7.3,"Ending IBNP for Transportation",{"$f":"IFERROR('MMA Rev-Exp Region 10'!$AK$53/'MMA Rev-Exp Region 10'!$AK$9, 0)","v":{"v":0,"d":"$0.00"}},{"$f":"IFERROR('MMA Rev-Exp Region 10'!$AL$53/'MMA Rev-Exp Region 10'!$AL$9, 0)","v":{"v":0,"d":"$0.00"}},{"$f":"IFERROR('MMA Rev-Exp Region 10'!$AM$53/'MMA Rev-Exp Region 10'!$AM$9, 0)","v":{"v":0,"d":"$0.00"}},{"$f":"IFERROR('MMA Rev-Exp Region 10'!$AN$53/'MMA Rev-Exp Region 10'!$AN$9, 0)","v":{"v":0,"d":"$0.00"}},{"$f":"IFERROR('MMA Rev-Exp Region 10'!$AO$53/'MMA Rev-Exp Region 10'!$AO$9, 0)","v":{"v":0,"d":"$0.00"}},{"$f":"IFERROR('MMA Rev-Exp Region 10'!$AP$53/'MMA Rev-Exp Region 10'!$AP$9, 0)","v":{"v":0,"d":"$0.00"}},{"$f":"IFERROR('MMA Rev-Exp Region 10'!$AQ$53/'MMA Rev-Exp Region 10'!$AQ$9, 0)","v":{"v":0,"d":"$0.00"}},{"$f":"IFERROR('MMA Rev-Exp Region 10'!$AR$53/'MMA Rev-Exp Region 10'!$AR$9, 0)","v":{"v":0,"d":"$0.00"}},{"$f":"IFERROR('MMA Rev-Exp Region 10'!$AS$53/'MMA Rev-Exp Region 10'!$AS$9, 0)","v":{"v":0,"d":"$0.00"}},{"$f":"IFERROR('MMA Rev-Exp Region 10'!$AT$53/'MMA Rev-Exp Region 10'!$AT$9, 0)","v":{"v":0,"d":"$0.00"}},{"$f":"IFERROR('MMA Rev-Exp Region 10'!$AU$53/'MMA Rev-Exp Region 10'!$AU$9, 0)","v":{"v":0,"d":"$0.00"}}]
["MMA",null,null,2016,"2016-12-31","Q4","2017-12-31","Region 10","Operating Expense","Medical Benefits Expense","Transportation Services","7.4","Transportation Settlements",{"$f":"IFERROR('MMA Rev-Exp Region 10'!$AK$54/'MMA Rev-Exp Region 10'!$AK$9, 0)","v":{"v":0,"d":"$0.00"}},{"$f":"IFERROR('MMA Rev-Exp Region 10'!$AL$54/'MMA Rev-Exp Region 10'!$AL$9, 0)","v":{"v":0,"d":"$0.00"}},{"$f":"IFERROR('MMA Rev-Exp Region 10'!$AM$54/'MMA Rev-Exp Region 10'!$AM$9, 0)","v":{"v":0,"d":"$0.00"}},{"$f":"IFERROR('MMA Rev-Exp Region 10'!$AN$54/'MMA Rev-Exp Region 10'!$AN$9, 0)","v":{"v":0,"d":"$0.00"}},{"$f":"IFERROR('MMA Rev-Exp Region 10'!$AO$54/'MMA Rev-Exp Region 10'!$AO$9, 0)","v":{"v":0,"d":"$0.00"}},{"$f":"IFERROR('MMA Rev-Exp Region 10'!$AP$54/'MMA Rev-Exp Region 10'!$AP$9, 0)","v":{"v":0,"d":"$0.00"}},{"$f":"IFERROR('MMA Rev-Exp Region 10'!$AQ$54/'MMA Rev-Exp Region 10'!$AQ$9, 0)","v":{"v":0,"d":"$0.00"}},{"$f":"IFERROR('MMA Rev-Exp Region 10'!$AR$54/'MMA Rev-Exp Region 10'!$AR$9, 0)","v":{"v":0,"d":"$0.00"}},{"$f":"IFERROR('MMA Rev-Exp Region 10'!$AS$54/'MMA Rev-Exp Region 10'!$AS$9, 0)","v":{"v":0,"d":"$0.00"}},{"$f":"IFERROR('MMA Rev-Exp Region 10'!$AT$54/'MMA Rev-Exp Region 10'!$AT$9, 0)","v":{"v":0,"d":"$0.00"}},{"$f":"IFERROR('MMA Rev-Exp Region 10'!$AU$54/'MMA Rev-Exp Region 10'!$AU$9, 0)","v":{"v":0,"d":"$0.00"}}]
["MMA",null,null,2016,"2016-12-31","Q4","2017-12-31","Region 10","Operating Expense","Medical Benefits Expense","Pharmacy Services",8.1,"Prescription Drugs FFS",{"$f":"IFERROR('MMA Rev-Exp Region 10'!$AK$56/'MMA Rev-Exp Region 10'!$AK$9, 0)","v":{"v":0,"d":"$0.00"}},{"$f":"IFERROR('MMA Rev-Exp Region 10'!$AL$56/'MMA Rev-Exp Region 10'!$AL$9, 0)","v":{"v":0,"d":"$0.00"}},{"$f":"IFERROR('MMA Rev-Exp Region 10'!$AM$56/'MMA Rev-Exp Region 10'!$AM$9, 0)","v":{"v":0,"d":"$0.00"}},{"$f":"IFERROR('MMA Rev-Exp Region 10'!$AN$56/'MMA Rev-Exp Region 10'!$AN$9, 0)","v":{"v":0,"d":"$0.00"}},{"$f":"IFERROR('MMA Rev-Exp Region 10'!$AO$56/'MMA Rev-Exp Region 10'!$AO$9, 0)","v":{"v":0,"d":"$0.00"}},{"$f":"IFERROR('MMA Rev-Exp Region 10'!$AP$56/'MMA Rev-Exp Region 10'!$AP$9, 0)","v":{"v":0,"d":"$0.00"}},{"$f":"IFERROR('MMA Rev-Exp Region 10'!$AQ$56/'MMA Rev-Exp Region 10'!$AQ$9, 0)","v":{"v":0,"d":"$0.00"}},{"$f":"IFERROR('MMA Rev-Exp Region 10'!$AR$56/'MMA Rev-Exp Region 10'!$AR$9, 0)","v":{"v":0,"d":"$0.00"}},{"$f":"IFERROR('MMA Rev-Exp Region 10'!$AS$56/'MMA Rev-Exp Region 10'!$AS$9, 0)","v":{"v":0,"d":"$0.00"}},{"$f":"IFERROR('MMA Rev-Exp Region 10'!$AT$56/'MMA Rev-Exp Region 10'!$AT$9, 0)","v":{"v":0,"d":"$0.00"}},{"$f":"IFERROR('MMA Rev-Exp Region 10'!$AU$56/'MMA Rev-Exp Region 10'!$AU$9, 0)","v":{"v":0,"d":"$0.00"}}]
["MMA",null,null,2016,"2016-12-31","Q4","2017-12-31","Region 10","Operating Expense","Medical Benefits Expense","Pharmacy Services","8.2","Hepatitis C Prescription Drug FFS",{"$f":"IFERROR('MMA Rev-Exp Region 10'!$AK$57/'MMA Rev-Exp Region 10'!$AK$9, 0)","v":{"v":0,"d":"$0.00"}},{"$f":"IFERROR('MMA Rev-Exp Region 10'!$AL$57/'MMA Rev-Exp Region 10'!$AL$9, 0)","v":{"v":0,"d":"$0.00"}},{"$f":"IFERROR('MMA Rev-Exp Region 10'!$AM$57/'MMA Rev-Exp Region 10'!$AM$9, 0)","v":{"v":0,"d":"$0.00"}},{"$f":"IFERROR('MMA Rev-Exp Region 10'!$AN$57/'MMA Rev-Exp Region 10'!$AN$9, 0)","v":{"v":0,"d":"$0.00"}},{"$f":"IFERROR('MMA Rev-Exp Region 10'!$AO$57/'MMA Rev-Exp Region 10'!$AO$9, 0)","v":{"v":0,"d":"$0.00"}},{"$f":"IFERROR('MMA Rev-Exp Region 10'!$AP$57/'MMA Rev-Exp Region 10'!$AP$9, 0)","v":{"v":0,"d":"$0.00"}},{"$f":"IFERROR('MMA Rev-Exp Region 10'!$AQ$57/'MMA Rev-Exp Region 10'!$AQ$9, 0)","v":{"v":0,"d":"$0.00"}},{"$f":"IFERROR('MMA Rev-Exp Region 10'!$AR$57/'MMA Rev-Exp Region 10'!$AR$9, 0)","v":{"v":0,"d":"$0.00"}},{"$f":"IFERROR('MMA Rev-Exp Region 10'!$AS$57/'MMA Rev-Exp Region 10'!$AS$9, 0)","v":{"v":0,"d":"$0.00"}},{"$f":"IFERROR('MMA Rev-Exp Region 10'!$AT$57/'MMA Rev-Exp Region 10'!$AT$9, 0)","v":{"v":0,"d":"$0.00"}},{"$f":"IFERROR('MMA Rev-Exp Region 10'!$AU$57/'MMA Rev-Exp Region 10'!$AU$9, 0)","v":{"v":0,"d":"$0.00"}}]
["MMA",null,null,2016,"2016-12-31","Q4","2017-12-31","Region 10","Operating Expense","Medical Benefits Expense","Pharmacy Services","8.3","Ending IBNP for Prescription Drugs",{"$f":"IFERROR('MMA Rev-Exp Region 10'!$AK$58/'MMA Rev-Exp Region 10'!$AK$9, 0)","v":{"v":0,"d":"$0.00"}},{"$f":"IFERROR('MMA Rev-Exp Region 10'!$AL$58/'MMA Rev-Exp Region 10'!$AL$9, 0)","v":{"v":0,"d":"$0.00"}},{"$f":"IFERROR('MMA Rev-Exp Region 10'!$AM$58/'MMA Rev-Exp Region 10'!$AM$9, 0)","v":{"v":0,"d":"$0.00"}},{"$f":"IFERROR('MMA Rev-Exp Region 10'!$AN$58/'MMA Rev-Exp Region 10'!$AN$9, 0)","v":{"v":0,"d":"$0.00"}},{"$f":"IFERROR('MMA Rev-Exp Region 10'!$AO$58/'MMA Rev-Exp Region 10'!$AO$9, 0)","v":{"v":0,"d":"$0.00"}},{"$f":"IFERROR('MMA Rev-Exp Region 10'!$AP$58/'MMA Rev-Exp Region 10'!$AP$9, 0)","v":{"v":0,"d":"$0.00"}},{"$f":"IFERROR('MMA Rev-Exp Region 10'!$AQ$58/'MMA Rev-Exp Region 10'!$AQ$9, 0)","v":{"v":0,"d":"$0.00"}},{"$f":"IFERROR('MMA Rev-Exp Region 10'!$AR$58/'MMA Rev-Exp Region 10'!$AR$9, 0)","v":{"v":0,"d":"$0.00"}},{"$f":"IFERROR('MMA Rev-Exp Region 10'!$AS$58/'MMA Rev-Exp Region 10'!$AS$9, 0)","v":{"v":0,"d":"$0.00"}},{"$f":"IFERROR('MMA Rev-Exp Region 10'!$AT$58/'MMA Rev-Exp Region 10'!$AT$9, 0)","v":{"v":0,"d":"$0.00"}},{"$f":"IFERROR('MMA Rev-Exp Region 10'!$AU$58/'MMA Rev-Exp Region 10'!$AU$9, 0)","v":{"v":0,"d":"$0.00"}}]
["MMA",null,null,2016,"2016-12-31","Q4","2017-12-31","Region 10","Operating Expense","Medical Benefits Expense","Pharmacy Services","8.4","Prescription Drug Rebates ",{"$f":"IFERROR('MMA Rev-Exp Region 10'!$AK$59/'MMA Rev-Exp Region 10'!$AK$9, 0)","v":{"v":0,"d":"$0.00"}},{"$f":"IFERROR('MMA Rev-Exp Region 10'!$AL$59/'MMA Rev-Exp Region 10'!$AL$9, 0)","v":{"v":0,"d":"$0.00"}},{"$f":"IFERROR('MMA Rev-Exp Region 10'!$AM$59/'MMA Rev-Exp Region 10'!$AM$9, 0)","v":{"v":0,"d":"$0.00"}},{"$f":"IFERROR('MMA Rev-Exp Region 10'!$AN$59/'MMA Rev-Exp Region 10'!$AN$9, 0)","v":{"v":0,"d":"$0.00"}},{"$f":"IFERROR('MMA Rev-Exp Region 10'!$AO$59/'MMA Rev-Exp Region 10'!$AO$9, 0)","v":{"v":0,"d":"$0.00"}},{"$f":"IFERROR('MMA Rev-Exp Region 10'!$AP$59/'MMA Rev-Exp Region 10'!$AP$9, 0)","v":{"v":0,"d":"$0.00"}},{"$f":"IFERROR('MMA Rev-Exp Region 10'!$AQ$59/'MMA Rev-Exp Region 10'!$AQ$9, 0)","v":{"v":0,"d":"$0.00"}},{"$f":"IFERROR('MMA Rev-Exp Region 10'!$AR$59/'MMA Rev-Exp Region 10'!$AR$9, 0)","v":{"v":0,"d":"$0.00"}},{"$f":"IFERROR('MMA Rev-Exp Region 10'!$AS$59/'MMA Rev-Exp Region 10'!$AS$9, 0)","v":{"v":0,"d":"$0.00"}},{"$f":"IFERROR('MMA Rev-Exp Region 10'!$AT$59/'MMA Rev-Exp Region 10'!$AT$9, 0)","v":{"v":0,"d":"$0.00"}},{"$f":"IFERROR('MMA Rev-Exp Region 10'!$AU$59/'MMA Rev-Exp Region 10'!$AU$9, 0)","v":{"v":0,"d":"$0.00"}}]
["MMA",null,null,2016,"2016-12-31","Q4","2017-12-31","Region 10","Operating Expense","Medical Benefits Expense","Pharmacy Services","8.5","Ending accrual for Rebates receivable",{"$f":"IFERROR('MMA Rev-Exp Region 10'!$AK$60/'MMA Rev-Exp Region 10'!$AK$9, 0)","v":{"v":0,"d":"$0.00"}},{"$f":"IFERROR('MMA Rev-Exp Region 10'!$AL$60/'MMA Rev-Exp Region 10'!$AL$9, 0)","v":{"v":0,"d":"$0.00"}},{"$f":"IFERROR('MMA Rev-Exp Region 10'!$AM$60/'MMA Rev-Exp Region 10'!$AM$9, 0)","v":{"v":0,"d":"$0.00"}},{"$f":"IFERROR('MMA Rev-Exp Region 10'!$AN$60/'MMA Rev-Exp Region 10'!$AN$9, 0)","v":{"v":0,"d":"$0.00"}},{"$f":"IFERROR('MMA Rev-Exp Region 10'!$AO$60/'MMA Rev-Exp Region 10'!$AO$9, 0)","v":{"v":0,"d":"$0.00"}},{"$f":"IFERROR('MMA Rev-Exp Region 10'!$AP$60/'MMA Rev-Exp Region 10'!$AP$9, 0)","v":{"v":0,"d":"$0.00"}},{"$f":"IFERROR('MMA Rev-Exp Region 10'!$AQ$60/'MMA Rev-Exp Region 10'!$AQ$9, 0)","v":{"v":0,"d":"$0.00"}},{"$f":"IFERROR('MMA Rev-Exp Region 10'!$AR$60/'MMA Rev-Exp Region 10'!$AR$9, 0)","v":{"v":0,"d":"$0.00"}},{"$f":"IFERROR('MMA Rev-Exp Region 10'!$AS$60/'MMA Rev-Exp Region 10'!$AS$9, 0)","v":{"v":0,"d":"$0.00"}},{"$f":"IFERROR('MMA Rev-Exp Region 10'!$AT$60/'MMA Rev-Exp Region 10'!$AT$9, 0)","v":{"v":0,"d":"$0.00"}},{"$f":"IFERROR('MMA Rev-Exp Region 10'!$AU$60/'MMA Rev-Exp Region 10'!$AU$9, 0)","v":{"v":0,"d":"$0.00"}}]
["MMA",null,null,2016,"2016-12-31","Q4","2017-12-31","Region 10","Operating Expense","Medical Benefits Expense","Pharmacy Services","8.6","Prescription Drugs Subcapitation",{"$f":"IFERROR('MMA Rev-Exp Region 10'!$AK$61/'MMA Rev-Exp Region 10'!$AK$9, 0)","v":{"v":0,"d":"$0.00"}},{"$f":"IFERROR('MMA Rev-Exp Region 10'!$AL$61/'MMA Rev-Exp Region 10'!$AL$9, 0)","v":{"v":0,"d":"$0.00"}},{"$f":"IFERROR('MMA Rev-Exp Region 10'!$AM$61/'MMA Rev-Exp Region 10'!$AM$9, 0)","v":{"v":0,"d":"$0.00"}},{"$f":"IFERROR('MMA Rev-Exp Region 10'!$AN$61/'MMA Rev-Exp Region 10'!$AN$9, 0)","v":{"v":0,"d":"$0.00"}},{"$f":"IFERROR('MMA Rev-Exp Region 10'!$AO$61/'MMA Rev-Exp Region 10'!$AO$9, 0)","v":{"v":0,"d":"$0.00"}},{"$f":"IFERROR('MMA Rev-Exp Region 10'!$AP$61/'MMA Rev-Exp Region 10'!$AP$9, 0)","v":{"v":0,"d":"$0.00"}},{"$f":"IFERROR('MMA Rev-Exp Region 10'!$AQ$61/'MMA Rev-Exp Region 10'!$AQ$9, 0)","v":{"v":0,"d":"$0.00"}},{"$f":"IFERROR('MMA Rev-Exp Region 10'!$AR$61/'MMA Rev-Exp Region 10'!$AR$9, 0)","v":{"v":0,"d":"$0.00"}},{"$f":"IFERROR('MMA Rev-Exp Region 10'!$AS$61/'MMA Rev-Exp Region 10'!$AS$9, 0)","v":{"v":0,"d":"$0.00"}},{"$f":"IFERROR('MMA Rev-Exp Region 10'!$AT$61/'MMA Rev-Exp Region 10'!$AT$9, 0)","v":{"v":0,"d":"$0.00"}},{"$f":"IFERROR('MMA Rev-Exp Region 10'!$AU$61/'MMA Rev-Exp Region 10'!$AU$9, 0)","v":{"v":0,"d":"$0.00"}}]
["MMA",null,null,2016,"2016-12-31","Q4","2017-12-31","Region 10","Operating Expense","Medical Benefits Expense","Pharmacy Services","8.7","Prescription Drug Settlements",{"$f":"IFERROR('MMA Rev-Exp Region 10'!$AK$62/'MMA Rev-Exp Region 10'!$AK$9, 0)","v":{"v":0,"d":"$0.00"}},{"$f":"IFERROR('MMA Rev-Exp Region 10'!$AL$62/'MMA Rev-Exp Region 10'!$AL$9, 0)","v":{"v":0,"d":"$0.00"}},{"$f":"IFERROR('MMA Rev-Exp Region 10'!$AM$62/'MMA Rev-Exp Region 10'!$AM$9, 0)","v":{"v":0,"d":"$0.00"}},{"$f":"IFERROR('MMA Rev-Exp Region 10'!$AN$62/'MMA Rev-Exp Region 10'!$AN$9, 0)","v":{"v":0,"d":"$0.00"}},{"$f":"IFERROR('MMA Rev-Exp Region 10'!$AO$62/'MMA Rev-Exp Region 10'!$AO$9, 0)","v":{"v":0,"d":"$0.00"}},{"$f":"IFERROR('MMA Rev-Exp Region 10'!$AP$62/'MMA Rev-Exp Region 10'!$AP$9, 0)","v":{"v":0,"d":"$0.00"}},{"$f":"IFERROR('MMA Rev-Exp Region 10'!$AQ$62/'MMA Rev-Exp Region 10'!$AQ$9, 0)","v":{"v":0,"d":"$0.00"}},{"$f":"IFERROR('MMA Rev-Exp Region 10'!$AR$62/'MMA Rev-Exp Region 10'!$AR$9, 0)","v":{"v":0,"d":"$0.00"}},{"$f":"IFERROR('MMA Rev-Exp Region 10'!$AS$62/'MMA Rev-Exp Region 10'!$AS$9, 0)","v":{"v":0,"d":"$0.00"}},{"$f":"IFERROR('MMA Rev-Exp Region 10'!$AT$62/'MMA Rev-Exp Region 10'!$AT$9, 0)","v":{"v":0,"d":"$0.00"}},{"$f":"IFERROR('MMA Rev-Exp Region 10'!$AU$62/'MMA Rev-Exp Region 10'!$AU$9, 0)","v":{"v":0,"d":"$0.00"}}]
["MMA",null,null,2016,"2016-12-31","Q4","2017-12-31","Region 10","Operating Expense","Medical Benefits Expense","Other MMA Services",9.1,"Home Health, Private Duty Nursing, Personal Care FFS",{"$f":"IFERROR('MMA Rev-Exp Region 10'!$AK$64/'MMA Rev-Exp Region 10'!$AK$9, 0)","v":{"v":0,"d":"$0.00"}},{"$f":"IFERROR('MMA Rev-Exp Region 10'!$AL$64/'MMA Rev-Exp Region 10'!$AL$9, 0)","v":{"v":0,"d":"$0.00"}},{"$f":"IFERROR('MMA Rev-Exp Region 10'!$AM$64/'MMA Rev-Exp Region 10'!$AM$9, 0)","v":{"v":0,"d":"$0.00"}},{"$f":"IFERROR('MMA Rev-Exp Region 10'!$AN$64/'MMA Rev-Exp Region 10'!$AN$9, 0)","v":{"v":0,"d":"$0.00"}},{"$f":"IFERROR('MMA Rev-Exp Region 10'!$AO$64/'MMA Rev-Exp Region 10'!$AO$9, 0)","v":{"v":0,"d":"$0.00"}},{"$f":"IFERROR('MMA Rev-Exp Region 10'!$AP$64/'MMA Rev-Exp Region 10'!$AP$9, 0)","v":{"v":0,"d":"$0.00"}},{"$f":"IFERROR('MMA Rev-Exp Region 10'!$AQ$64/'MMA Rev-Exp Region 10'!$AQ$9, 0)","v":{"v":0,"d":"$0.00"}},{"$f":"IFERROR('MMA Rev-Exp Region 10'!$AR$64/'MMA Rev-Exp Region 10'!$AR$9, 0)","v":{"v":0,"d":"$0.00"}},{"$f":"IFERROR('MMA Rev-Exp Region 10'!$AS$64/'MMA Rev-Exp Region 10'!$AS$9, 0)","v":{"v":0,"d":"$0.00"}},{"$f":"IFERROR('MMA Rev-Exp Region 10'!$AT$64/'MMA Rev-Exp Region 10'!$AT$9, 0)","v":{"v":0,"d":"$0.00"}},{"$f":"IFERROR('MMA Rev-Exp Region 10'!$AU$64/'MMA Rev-Exp Region 10'!$AU$9, 0)","v":{"v":0,"d":"$0.00"}}]
["MMA",null,null,2016,"2016-12-31","Q4","2017-12-31","Region 10","Operating Expense","Medical Benefits Expense","Other MMA Services","9.2","Hospice FFS",{"$f":"IFERROR('MMA Rev-Exp Region 10'!$AK$65/'MMA Rev-Exp Region 10'!$AK$9, 0)","v":{"v":0,"d":"$0.00"}},{"$f":"IFERROR('MMA Rev-Exp Region 10'!$AL$65/'MMA Rev-Exp Region 10'!$AL$9, 0)","v":{"v":0,"d":"$0.00"}},{"$f":"IFERROR('MMA Rev-Exp Region 10'!$AM$65/'MMA Rev-Exp Region 10'!$AM$9, 0)","v":{"v":0,"d":"$0.00"}},{"$f":"IFERROR('MMA Rev-Exp Region 10'!$AN$65/'MMA Rev-Exp Region 10'!$AN$9, 0)","v":{"v":0,"d":"$0.00"}},{"$f":"IFERROR('MMA Rev-Exp Region 10'!$AO$65/'MMA Rev-Exp Region 10'!$AO$9, 0)","v":{"v":0,"d":"$0.00"}},{"$f":"IFERROR('MMA Rev-Exp Region 10'!$AP$65/'MMA Rev-Exp Region 10'!$AP$9, 0)","v":{"v":0,"d":"$0.00"}},{"$f":"IFERROR('MMA Rev-Exp Region 10'!$AQ$65/'MMA Rev-Exp Region 10'!$AQ$9, 0)","v":{"v":0,"d":"$0.00"}},{"$f":"IFERROR('MMA Rev-Exp Region 10'!$AR$65/'MMA Rev-Exp Region 10'!$AR$9, 0)","v":{"v":0,"d":"$0.00"}},{"$f":"IFERROR('MMA Rev-Exp Region 10'!$AS$65/'MMA Rev-Exp Region 10'!$AS$9, 0)","v":{"v":0,"d":"$0.00"}},{"$f":"IFERROR('MMA Rev-Exp Region 10'!$AT$65/'MMA Rev-Exp Region 10'!$AT$9, 0)","v":{"v":0,"d":"$0.00"}},{"$f":"IFERROR('MMA Rev-Exp Region 10'!$AU$65/'MMA Rev-Exp Region 10'!$AU$9, 0)","v":{"v":0,"d":"$0.00"}}]
["MMA",null,null,2016,"2016-12-31","Q4","2017-12-31","Region 10","Operating Expense","Medical Benefits Expense","Other MMA Services","9.3","DME FFS",{"$f":"IFERROR('MMA Rev-Exp Region 10'!$AK$66/'MMA Rev-Exp Region 10'!$AK$9, 0)","v":{"v":0,"d":"$0.00"}},{"$f":"IFERROR('MMA Rev-Exp Region 10'!$AL$66/'MMA Rev-Exp Region 10'!$AL$9, 0)","v":{"v":0,"d":"$0.00"}},{"$f":"IFERROR('MMA Rev-Exp Region 10'!$AM$66/'MMA Rev-Exp Region 10'!$AM$9, 0)","v":{"v":0,"d":"$0.00"}},{"$f":"IFERROR('MMA Rev-Exp Region 10'!$AN$66/'MMA Rev-Exp Region 10'!$AN$9, 0)","v":{"v":0,"d":"$0.00"}},{"$f":"IFERROR('MMA Rev-Exp Region 10'!$AO$66/'MMA Rev-Exp Region 10'!$AO$9, 0)","v":{"v":0,"d":"$0.00"}},{"$f":"IFERROR('MMA Rev-Exp Region 10'!$AP$66/'MMA Rev-Exp Region 10'!$AP$9, 0)","v":{"v":0,"d":"$0.00"}},{"$f":"IFERROR('MMA Rev-Exp Region 10'!$AQ$66/'MMA Rev-Exp Region 10'!$AQ$9, 0)","v":{"v":0,"d":"$0.00"}},{"$f":"IFERROR('MMA Rev-Exp Region 10'!$AR$66/'MMA Rev-Exp Region 10'!$AR$9, 0)","v":{"v":0,"d":"$0.00"}},{"$f":"IFERROR('MMA Rev-Exp Region 10'!$AS$66/'MMA Rev-Exp Region 10'!$AS$9, 0)","v":{"v":0,"d":"$0.00"}},{"$f":"IFERROR('MMA Rev-Exp Region 10'!$AT$66/'MMA Rev-Exp Region 10'!$AT$9, 0)","v":{"v":0,"d":"$0.00"}},{"$f":"IFERROR('MMA Rev-Exp Region 10'!$AU$66/'MMA Rev-Exp Region 10'!$AU$9, 0)","v":{"v":0,"d":"$0.00"}}]
["MMA",null,null,2016,"2016-12-31","Q4","2017-12-31","Region 10","Operating Expense","Medical Benefits Expense","Other MMA Services","9.4","Other State Plan Services FFS",{"$f":"IFERROR('MMA Rev-Exp Region 10'!$AK$67/'MMA Rev-Exp Region 10'!$AK$9, 0)","v":{"v":0,"d":"$0.00"}},{"$f":"IFERROR('MMA Rev-Exp Region 10'!$AL$67/'MMA Rev-Exp Region 10'!$AL$9, 0)","v":{"v":0,"d":"$0.00"}},{"$f":"IFERROR('MMA Rev-Exp Region 10'!$AM$67/'MMA Rev-Exp Region 10'!$AM$9, 0)","v":{"v":0,"d":"$0.00"}},{"$f":"IFERROR('MMA Rev-Exp Region 10'!$AN$67/'MMA Rev-Exp Region 10'!$AN$9, 0)","v":{"v":0,"d":"$0.00"}},{"$f":"IFERROR('MMA Rev-Exp Region 10'!$AO$67/'MMA Rev-Exp Region 10'!$AO$9, 0)","v":{"v":0,"d":"$0.00"}},{"$f":"IFERROR('MMA Rev-Exp Region 10'!$AP$67/'MMA Rev-Exp Region 10'!$AP$9, 0)","v":{"v":0,"d":"$0.00"}},{"$f":"IFERROR('MMA Rev-Exp Region 10'!$AQ$67/'MMA Rev-Exp Region 10'!$AQ$9, 0)","v":{"v":0,"d":"$0.00"}},{"$f":"IFERROR('MMA Rev-Exp Region 10'!$AR$67/'MMA Rev-Exp Region 10'!$AR$9, 0)","v":{"v":0,"d":"$0.00"}},{"$f":"IFERROR('MMA Rev-Exp Region 10'!$AS$67/'MMA Rev-Exp Region 10'!$AS$9, 0)","v":{"v":0,"d":"$0.00"}},{"$f":"IFERROR('MMA Rev-Exp Region 10'!$AT$67/'MMA Rev-Exp Region 10'!$AT$9, 0)","v":{"v":0,"d":"$0.00"}},{"$f":"IFERROR('MMA Rev-Exp Region 10'!$AU$67/'MMA Rev-Exp Region 10'!$AU$9, 0)","v":{"v":0,"d":"$0.00"}}]
["MMA",null,null,2016,"2016-12-31","Q4","2017-12-31","Region 10","Operating Expense","Medical Benefits Expense","Other MMA Services","9.5","Other Services Subcapitation",{"$f":"IFERROR('MMA Rev-Exp Region 10'!$AK$68/'MMA Rev-Exp Region 10'!$AK$9, 0)","v":{"v":0,"d":"$0.00"}},{"$f":"IFERROR('MMA Rev-Exp Region 10'!$AL$68/'MMA Rev-Exp Region 10'!$AL$9, 0)","v":{"v":0,"d":"$0.00"}},{"$f":"IFERROR('MMA Rev-Exp Region 10'!$AM$68/'MMA Rev-Exp Region 10'!$AM$9, 0)","v":{"v":0,"d":"$0.00"}},{"$f":"IFERROR('MMA Rev-Exp Region 10'!$AN$68/'MMA Rev-Exp Region 10'!$AN$9, 0)","v":{"v":0,"d":"$0.00"}},{"$f":"IFERROR('MMA Rev-Exp Region 10'!$AO$68/'MMA Rev-Exp Region 10'!$AO$9, 0)","v":{"v":0,"d":"$0.00"}},{"$f":"IFERROR('MMA Rev-Exp Region 10'!$AP$68/'MMA Rev-Exp Region 10'!$AP$9, 0)","v":{"v":0,"d":"$0.00"}},{"$f":"IFERROR('MMA Rev-Exp Region 10'!$AQ$68/'MMA Rev-Exp Region 10'!$AQ$9, 0)","v":{"v":0,"d":"$0.00"}},{"$f":"IFERROR('MMA Rev-Exp Region 10'!$AR$68/'MMA Rev-Exp Region 10'!$AR$9, 0)","v":{"v":0,"d":"$0.00"}},{"$f":"IFERROR('MMA Rev-Exp Region 10'!$AS$68/'MMA Rev-Exp Region 10'!$AS$9, 0)","v":{"v":0,"d":"$0.00"}},{"$f":"IFERROR('MMA Rev-Exp Region 10'!$AT$68/'MMA Rev-Exp Region 10'!$AT$9, 0)","v":{"v":0,"d":"$0.00"}},{"$f":"IFERROR('MMA Rev-Exp Region 10'!$AU$68/'MMA Rev-Exp Region 10'!$AU$9, 0)","v":{"v":0,"d":"$0.00"}}]
["MMA",null,null,2016,"2016-12-31","Q4","2017-12-31","Region 10","Operating Expense","Medical Benefits Expense","Other MMA Services","9.6","Ending IBNP for Other Services",{"$f":"IFERROR('MMA Rev-Exp Region 10'!$AK$69/'MMA Rev-Exp Region 10'!$AK$9, 0)","v":{"v":0,"d":"$0.00"}},{"$f":"IFERROR('MMA Rev-Exp Region 10'!$AL$69/'MMA Rev-Exp Region 10'!$AL$9, 0)","v":{"v":0,"d":"$0.00"}},{"$f":"IFERROR('MMA Rev-Exp Region 10'!$AM$69/'MMA Rev-Exp Region 10'!$AM$9, 0)","v":{"v":0,"d":"$0.00"}},{"$f":"IFERROR('MMA Rev-Exp Region 10'!$AN$69/'MMA Rev-Exp Region 10'!$AN$9, 0)","v":{"v":0,"d":"$0.00"}},{"$f":"IFERROR('MMA Rev-Exp Region 10'!$AO$69/'MMA Rev-Exp Region 10'!$AO$9, 0)","v":{"v":0,"d":"$0.00"}},{"$f":"IFERROR('MMA Rev-Exp Region 10'!$AP$69/'MMA Rev-Exp Region 10'!$AP$9, 0)","v":{"v":0,"d":"$0.00"}},{"$f":"IFERROR('MMA Rev-Exp Region 10'!$AQ$69/'MMA Rev-Exp Region 10'!$AQ$9, 0)","v":{"v":0,"d":"$0.00"}},{"$f":"IFERROR('MMA Rev-Exp Region 10'!$AR$69/'MMA Rev-Exp Region 10'!$AR$9, 0)","v":{"v":0,"d":"$0.00"}},{"$f":"IFERROR('MMA Rev-Exp Region 10'!$AS$69/'MMA Rev-Exp Region 10'!$AS$9, 0)","v":{"v":0,"d":"$0.00"}},{"$f":"IFERROR('MMA Rev-Exp Region 10'!$AT$69/'MMA Rev-Exp Region 10'!$AT$9, 0)","v":{"v":0,"d":"$0.00"}},{"$f":"IFERROR('MMA Rev-Exp Region 10'!$AU$69/'MMA Rev-Exp Region 10'!$AU$9, 0)","v":{"v":0,"d":"$0.00"}}]
["MMA",null,null,2016,"2016-12-31","Q4","2017-12-31","Region 10","Operating Expense","Medical Benefits Expense","Other MMA Services","9.7","Other Services Settlements",{"$f":"IFERROR('MMA Rev-Exp Region 10'!$AK$70/'MMA Rev-Exp Region 10'!$AK$9, 0)","v":{"v":0,"d":"$0.00"}},{"$f":"IFERROR('MMA Rev-Exp Region 10'!$AL$70/'MMA Rev-Exp Region 10'!$AL$9, 0)","v":{"v":0,"d":"$0.00"}},{"$f":"IFERROR('MMA Rev-Exp Region 10'!$AM$70/'MMA Rev-Exp Region 10'!$AM$9, 0)","v":{"v":0,"d":"$0.00"}},{"$f":"IFERROR('MMA Rev-Exp Region 10'!$AN$70/'MMA Rev-Exp Region 10'!$AN$9, 0)","v":{"v":0,"d":"$0.00"}},{"$f":"IFERROR('MMA Rev-Exp Region 10'!$AO$70/'MMA Rev-Exp Region 10'!$AO$9, 0)","v":{"v":0,"d":"$0.00"}},{"$f":"IFERROR('MMA Rev-Exp Region 10'!$AP$70/'MMA Rev-Exp Region 10'!$AP$9, 0)","v":{"v":0,"d":"$0.00"}},{"$f":"IFERROR('MMA Rev-Exp Region 10'!$AQ$70/'MMA Rev-Exp Region 10'!$AQ$9, 0)","v":{"v":0,"d":"$0.00"}},{"$f":"IFERROR('MMA Rev-Exp Region 10'!$AR$70/'MMA Rev-Exp Region 10'!$AR$9, 0)","v":{"v":0,"d":"$0.00"}},{"$f":"IFERROR('MMA Rev-Exp Region 10'!$AS$70/'MMA Rev-Exp Region 10'!$AS$9, 0)","v":{"v":0,"d":"$0.00"}},{"$f":"IFERROR('MMA Rev-Exp Region 10'!$AT$70/'MMA Rev-Exp Region 10'!$AT$9, 0)","v":{"v":0,"d":"$0.00"}},{"$f":"IFERROR('MMA Rev-Exp Region 10'!$AU$70/'MMA Rev-Exp Region 10'!$AU$9, 0)","v":{"v":0,"d":"$0.00"}}]
["MMA",null,null,2016,"2016-12-31","Q4","2017-12-31","Region 10","Operating Expense","Medical Benefits Expense","Expanded Benefits","10.1","Expanded Benefits FFS",{"$f":"IFERROR('MMA Rev-Exp Region 10'!$AK$72/'MMA Rev-Exp Region 10'!$AK$9, 0)","v":{"v":0,"d":"$0.00"}},{"$f":"IFERROR('MMA Rev-Exp Region 10'!$AL$72/'MMA Rev-Exp Region 10'!$AL$9, 0)","v":{"v":0,"d":"$0.00"}},{"$f":"IFERROR('MMA Rev-Exp Region 10'!$AM$72/'MMA Rev-Exp Region 10'!$AM$9, 0)","v":{"v":0,"d":"$0.00"}},{"$f":"IFERROR('MMA Rev-Exp Region 10'!$AN$72/'MMA Rev-Exp Region 10'!$AN$9, 0)","v":{"v":0,"d":"$0.00"}},{"$f":"IFERROR('MMA Rev-Exp Region 10'!$AO$72/'MMA Rev-Exp Region 10'!$AO$9, 0)","v":{"v":0,"d":"$0.00"}},{"$f":"IFERROR('MMA Rev-Exp Region 10'!$AP$72/'MMA Rev-Exp Region 10'!$AP$9, 0)","v":{"v":0,"d":"$0.00"}},{"$f":"IFERROR('MMA Rev-Exp Region 10'!$AQ$72/'MMA Rev-Exp Region 10'!$AQ$9, 0)","v":{"v":0,"d":"$0.00"}},{"$f":"IFERROR('MMA Rev-Exp Region 10'!$AR$72/'MMA Rev-Exp Region 10'!$AR$9, 0)","v":{"v":0,"d":"$0.00"}},{"$f":"IFERROR('MMA Rev-Exp Region 10'!$AS$72/'MMA Rev-Exp Region 10'!$AS$9, 0)","v":{"v":0,"d":"$0.00"}},{"$f":"IFERROR('MMA Rev-Exp Region 10'!$AT$72/'MMA Rev-Exp Region 10'!$AT$9, 0)","v":{"v":0,"d":"$0.00"}},{"$f":"IFERROR('MMA Rev-Exp Region 10'!$AU$72/'MMA Rev-Exp Region 10'!$AU$9, 0)","v":{"v":0,"d":"$0.00"}}]
["MMA",null,null,2016,"2016-12-31","Q4","2017-12-31","Region 10","Operating Expense","Medical Benefits Expense","Expanded Benefits","10.2","Expanded benefits Subcapitation",{"$f":"IFERROR('MMA Rev-Exp Region 10'!$AK$73/'MMA Rev-Exp Region 10'!$AK$9, 0)","v":{"v":0,"d":"$0.00"}},{"$f":"IFERROR('MMA Rev-Exp Region 10'!$AL$73/'MMA Rev-Exp Region 10'!$AL$9, 0)","v":{"v":0,"d":"$0.00"}},{"$f":"IFERROR('MMA Rev-Exp Region 10'!$AM$73/'MMA Rev-Exp Region 10'!$AM$9, 0)","v":{"v":0,"d":"$0.00"}},{"$f":"IFERROR('MMA Rev-Exp Region 10'!$AN$73/'MMA Rev-Exp Region 10'!$AN$9, 0)","v":{"v":0,"d":"$0.00"}},{"$f":"IFERROR('MMA Rev-Exp Region 10'!$AO$73/'MMA Rev-Exp Region 10'!$AO$9, 0)","v":{"v":0,"d":"$0.00"}},{"$f":"IFERROR('MMA Rev-Exp Region 10'!$AP$73/'MMA Rev-Exp Region 10'!$AP$9, 0)","v":{"v":0,"d":"$0.00"}},{"$f":"IFERROR('MMA Rev-Exp Region 10'!$AQ$73/'MMA Rev-Exp Region 10'!$AQ$9, 0)","v":{"v":0,"d":"$0.00"}},{"$f":"IFERROR('MMA Rev-Exp Region 10'!$AR$73/'MMA Rev-Exp Region 10'!$AR$9, 0)","v":{"v":0,"d":"$0.00"}},{"$f":"IFERROR('MMA Rev-Exp Region 10'!$AS$73/'MMA Rev-Exp Region 10'!$AS$9, 0)","v":{"v":0,"d":"$0.00"}},{"$f":"IFERROR('MMA Rev-Exp Region 10'!$AT$73/'MMA Rev-Exp Region 10'!$AT$9, 0)","v":{"v":0,"d":"$0.00"}},{"$f":"IFERROR('MMA Rev-Exp Region 10'!$AU$73/'MMA Rev-Exp Region 10'!$AU$9, 0)","v":{"v":0,"d":"$0.00"}}]
["MMA",null,null,2016,"2016-12-31","Q4","2017-12-31","Region 10","Operating Expense","Medical Benefits Expense","Expanded Benefits","10.3","Ending IBNP for Expanded Benefits",{"$f":"IFERROR('MMA Rev-Exp Region 10'!$AK$74/'MMA Rev-Exp Region 10'!$AK$9, 0)","v":{"v":0,"d":"$0.00"}},{"$f":"IFERROR('MMA Rev-Exp Region 10'!$AL$74/'MMA Rev-Exp Region 10'!$AL$9, 0)","v":{"v":0,"d":"$0.00"}},{"$f":"IFERROR('MMA Rev-Exp Region 10'!$AM$74/'MMA Rev-Exp Region 10'!$AM$9, 0)","v":{"v":0,"d":"$0.00"}},{"$f":"IFERROR('MMA Rev-Exp Region 10'!$AN$74/'MMA Rev-Exp Region 10'!$AN$9, 0)","v":{"v":0,"d":"$0.00"}},{"$f":"IFERROR('MMA Rev-Exp Region 10'!$AO$74/'MMA Rev-Exp Region 10'!$AO$9, 0)","v":{"v":0,"d":"$0.00"}},{"$f":"IFERROR('MMA Rev-Exp Region 10'!$AP$74/'MMA Rev-Exp Region 10'!$AP$9, 0)","v":{"v":0,"d":"$0.00"}},{"$f":"IFERROR('MMA Rev-Exp Region 10'!$AQ$74/'MMA Rev-Exp Region 10'!$AQ$9, 0)","v":{"v":0,"d":"$0.00"}},{"$f":"IFERROR('MMA Rev-Exp Region 10'!$AR$74/'MMA Rev-Exp Region 10'!$AR$9, 0)","v":{"v":0,"d":"$0.00"}},{"$f":"IFERROR('MMA Rev-Exp Region 10'!$AS$74/'MMA Rev-Exp Region 10'!$AS$9, 0)","v":{"v":0,"d":"$0.00"}},{"$f":"IFERROR('MMA Rev-Exp Region 10'!$AT$74/'MMA Rev-Exp Region 10'!$AT$9, 0)","v":{"v":0,"d":"$0.00"}},{"$f":"IFERROR('MMA Rev-Exp Region 10'!$AU$74/'MMA Rev-Exp Region 10'!$AU$9, 0)","v":{"v":0,"d":"$0.00"}}]
["MMA",null,null,2016,"2016-12-31","Q4","2017-12-31","Region 10","Operating Expense","Medical Benefits Expense","Expanded Benefits","10.4","Expanded Benefits Settlements",{"$f":"IFERROR('MMA Rev-Exp Region 10'!$AK$75/'MMA Rev-Exp Region 10'!$AK$9, 0)","v":{"v":0,"d":"$0.00"}},{"$f":"IFERROR('MMA Rev-Exp Region 10'!$AL$75/'MMA Rev-Exp Region 10'!$AL$9, 0)","v":{"v":0,"d":"$0.00"}},{"$f":"IFERROR('MMA Rev-Exp Region 10'!$AM$75/'MMA Rev-Exp Region 10'!$AM$9, 0)","v":{"v":0,"d":"$0.00"}},{"$f":"IFERROR('MMA Rev-Exp Region 10'!$AN$75/'MMA Rev-Exp Region 10'!$AN$9, 0)","v":{"v":0,"d":"$0.00"}},{"$f":"IFERROR('MMA Rev-Exp Region 10'!$AO$75/'MMA Rev-Exp Region 10'!$AO$9, 0)","v":{"v":0,"d":"$0.00"}},{"$f":"IFERROR('MMA Rev-Exp Region 10'!$AP$75/'MMA Rev-Exp Region 10'!$AP$9, 0)","v":{"v":0,"d":"$0.00"}},{"$f":"IFERROR('MMA Rev-Exp Region 10'!$AQ$75/'MMA Rev-Exp Region 10'!$AQ$9, 0)","v":{"v":0,"d":"$0.00"}},{"$f":"IFERROR('MMA Rev-Exp Region 10'!$AR$75/'MMA Rev-Exp Region 10'!$AR$9, 0)","v":{"v":0,"d":"$0.00"}},{"$f":"IFERROR('MMA Rev-Exp Region 10'!$AS$75/'MMA Rev-Exp Region 10'!$AS$9, 0)","v":{"v":0,"d":"$0.00"}},{"$f":"IFERROR('MMA Rev-Exp Region 10'!$AT$75/'MMA Rev-Exp Region 10'!$AT$9, 0)","v":{"v":0,"d":"$0.00"}},{"$f":"IFERROR('MMA Rev-Exp Region 10'!$AU$75/'MMA Rev-Exp Region 10'!$AU$9, 0)","v":{"v":0,"d":"$0.00"}}]
["MMA",null,null,2016,"2016-12-31","Q4","2017-12-31","Region 10","Operating Expense","Medical Benefits Expense","Other Medical","11.5","TPL & Fraud/Abuse Recoveries",{"$f":"IFERROR('MMA Rev-Exp Region 10'!$AK$81/'MMA Rev-Exp Region 10'!$AK$9, 0)","v":{"v":0,"d":"$0.00"}},{"$f":"IFERROR('MMA Rev-Exp Region 10'!$AL$81/'MMA Rev-Exp Region 10'!$AL$9, 0)","v":{"v":0,"d":"$0.00"}},{"$f":"IFERROR('MMA Rev-Exp Region 10'!$AM$81/'MMA Rev-Exp Region 10'!$AM$9, 0)","v":{"v":0,"d":"$0.00"}},{"$f":"IFERROR('MMA Rev-Exp Region 10'!$AN$81/'MMA Rev-Exp Region 10'!$AN$9, 0)","v":{"v":0,"d":"$0.00"}},{"$f":"IFERROR('MMA Rev-Exp Region 10'!$AO$81/'MMA Rev-Exp Region 10'!$AO$9, 0)","v":{"v":0,"d":"$0.00"}},{"$f":"IFERROR('MMA Rev-Exp Region 10'!$AP$81/'MMA Rev-Exp Region 10'!$AP$9, 0)","v":{"v":0,"d":"$0.00"}},{"$f":"IFERROR('MMA Rev-Exp Region 10'!$AQ$81/'MMA Rev-Exp Region 10'!$AQ$9, 0)","v":{"v":0,"d":"$0.00"}},{"$f":"IFERROR('MMA Rev-Exp Region 10'!$AR$81/'MMA Rev-Exp Region 10'!$AR$9, 0)","v":{"v":0,"d":"$0.00"}},{"$f":"IFERROR('MMA Rev-Exp Region 10'!$AS$81/'MMA Rev-Exp Region 10'!$AS$9, 0)","v":{"v":0,"d":"$0.00"}},{"$f":"IFERROR('MMA Rev-Exp Region 10'!$AT$81/'MMA Rev-Exp Region 10'!$AT$9, 0)","v":{"v":0,"d":"$0.00"}},{"$f":"IFERROR('MMA Rev-Exp Region 10'!$AU$81/'MMA Rev-Exp Region 10'!$AU$9, 0)","v":{"v":0,"d":"$0.00"}}]
["MMA",null,null,2016,"2016-12-31","Q4","2017-12-31","Region 10","Operating Expense","Medical Benefits Expense","Other Medical","11.6.1","Premium Deficiency Reserve",{"$f":"IFERROR('MMA Rev-Exp Region 10'!$AK$82/'MMA Rev-Exp Region 10'!$AK$9, 0)","v":{"v":0,"d":"$0.00"}},{"$f":"IFERROR('MMA Rev-Exp Region 10'!$AL$82/'MMA Rev-Exp Region 10'!$AL$9, 0)","v":{"v":0,"d":"$0.00"}},{"$f":"IFERROR('MMA Rev-Exp Region 10'!$AM$82/'MMA Rev-Exp Region 10'!$AM$9, 0)","v":{"v":0,"d":"$0.00"}},{"$f":"IFERROR('MMA Rev-Exp Region 10'!$AN$82/'MMA Rev-Exp Region 10'!$AN$9, 0)","v":{"v":0,"d":"$0.00"}},{"$f":"IFERROR('MMA Rev-Exp Region 10'!$AO$82/'MMA Rev-Exp Region 10'!$AO$9, 0)","v":{"v":0,"d":"$0.00"}},{"$f":"IFERROR('MMA Rev-Exp Region 10'!$AP$82/'MMA Rev-Exp Region 10'!$AP$9, 0)","v":{"v":0,"d":"$0.00"}},{"$f":"IFERROR('MMA Rev-Exp Region 10'!$AQ$82/'MMA Rev-Exp Region 10'!$AQ$9, 0)","v":{"v":0,"d":"$0.00"}},{"$f":"IFERROR('MMA Rev-Exp Region 10'!$AR$82/'MMA Rev-Exp Region 10'!$AR$9, 0)","v":{"v":0,"d":"$0.00"}},{"$f":"IFERROR('MMA Rev-Exp Region 10'!$AS$82/'MMA Rev-Exp Region 10'!$AS$9, 0)","v":{"v":0,"d":"$0.00"}},{"$f":"IFERROR('MMA Rev-Exp Region 10'!$AT$82/'MMA Rev-Exp Region 10'!$AT$9, 0)","v":{"v":0,"d":"$0.00"}},{"$f":"IFERROR('MMA Rev-Exp Region 10'!$AU$82/'MMA Rev-Exp Region 10'!$AU$9, 0)","v":{"v":0,"d":"$0.00"}}]
["MMA",null,null,2016,"2016-12-31","Q4","2017-12-31","Region 10","Operating Expense","Medical Benefits Expense","Other Medical","11.8","Reinsurance Premiums",{"$f":"IFERROR('MMA Rev-Exp Region 10'!$AK$84/'MMA Rev-Exp Region 10'!$AK$9, 0)","v":{"v":0,"d":"$0.00"}},{"$f":"IFERROR('MMA Rev-Exp Region 10'!$AL$84/'MMA Rev-Exp Region 10'!$AL$9, 0)","v":{"v":0,"d":"$0.00"}},{"$f":"IFERROR('MMA Rev-Exp Region 10'!$AM$84/'MMA Rev-Exp Region 10'!$AM$9, 0)","v":{"v":0,"d":"$0.00"}},{"$f":"IFERROR('MMA Rev-Exp Region 10'!$AN$84/'MMA Rev-Exp Region 10'!$AN$9, 0)","v":{"v":0,"d":"$0.00"}},{"$f":"IFERROR('MMA Rev-Exp Region 10'!$AO$84/'MMA Rev-Exp Region 10'!$AO$9, 0)","v":{"v":0,"d":"$0.00"}},{"$f":"IFERROR('MMA Rev-Exp Region 10'!$AP$84/'MMA Rev-Exp Region 10'!$AP$9, 0)","v":{"v":0,"d":"$0.00"}},{"$f":"IFERROR('MMA Rev-Exp Region 10'!$AQ$84/'MMA Rev-Exp Region 10'!$AQ$9, 0)","v":{"v":0,"d":"$0.00"}},{"$f":"IFERROR('MMA Rev-Exp Region 10'!$AR$84/'MMA Rev-Exp Region 10'!$AR$9, 0)","v":{"v":0,"d":"$0.00"}},{"$f":"IFERROR('MMA Rev-Exp Region 10'!$AS$84/'MMA Rev-Exp Region 10'!$AS$9, 0)","v":{"v":0,"d":"$0.00"}},{"$f":"IFERROR('MMA Rev-Exp Region 10'!$AT$84/'MMA Rev-Exp Region 10'!$AT$9, 0)","v":{"v":0,"d":"$0.00"}},{"$f":"IFERROR('MMA Rev-Exp Region 10'!$AU$84/'MMA Rev-Exp Region 10'!$AU$9, 0)","v":{"v":0,"d":"$0.00"}}]
["MMA",null,null,2016,"2016-12-31","Q4","2017-12-31","Region 10","Operating Expense","Medical Benefits Expense","Other Medical","11.9","Reinsurance Recoveries",{"$f":"IFERROR('MMA Rev-Exp Region 10'!$AK$85/'MMA Rev-Exp Region 10'!$AK$9, 0)","v":{"v":0,"d":"$0.00"}},{"$f":"IFERROR('MMA Rev-Exp Region 10'!$AL$85/'MMA Rev-Exp Region 10'!$AL$9, 0)","v":{"v":0,"d":"$0.00"}},{"$f":"IFERROR('MMA Rev-Exp Region 10'!$AM$85/'MMA Rev-Exp Region 10'!$AM$9, 0)","v":{"v":0,"d":"$0.00"}},{"$f":"IFERROR('MMA Rev-Exp Region 10'!$AN$85/'MMA Rev-Exp Region 10'!$AN$9, 0)","v":{"v":0,"d":"$0.00"}},{"$f":"IFERROR('MMA Rev-Exp Region 10'!$AO$85/'MMA Rev-Exp Region 10'!$AO$9, 0)","v":{"v":0,"d":"$0.00"}},{"$f":"IFERROR('MMA Rev-Exp Region 10'!$AP$85/'MMA Rev-Exp Region 10'!$AP$9, 0)","v":{"v":0,"d":"$0.00"}},{"$f":"IFERROR('MMA Rev-Exp Region 10'!$AQ$85/'MMA Rev-Exp Region 10'!$AQ$9, 0)","v":{"v":0,"d":"$0.00"}},{"$f":"IFERROR('MMA Rev-Exp Region 10'!$AR$85/'MMA Rev-Exp Region 10'!$AR$9, 0)","v":{"v":0,"d":"$0.00"}},{"$f":"IFERROR('MMA Rev-Exp Region 10'!$AS$85/'MMA Rev-Exp Region 10'!$AS$9, 0)","v":{"v":0,"d":"$0.00"}},{"$f":"IFERROR('MMA Rev-Exp Region 10'!$AT$85/'MMA Rev-Exp Region 10'!$AT$9, 0)","v":{"v":0,"d":"$0.00"}},{"$f":"IFERROR('MMA Rev-Exp Region 10'!$AU$85/'MMA Rev-Exp Region 10'!$AU$9, 0)","v":{"v":0,"d":"$0.00"}}]
["MMA",null,null,2016,"2016-12-31","Q4","2017-12-31","Region 10","Operating Expense","Administrative Expense","Administrative","12.1","Salaries & Benefits",{"$f":"IFERROR('MMA Rev-Exp Region 10'!$AK$90/'MMA Rev-Exp Region 10'!$AK$9, 0)","v":{"v":0,"d":"$0.00"}},{"$f":"IFERROR('MMA Rev-Exp Region 10'!$AL$90/'MMA Rev-Exp Region 10'!$AK$9, 0)","v":{"v":0,"d":"$0.00"}},{"$f":"IFERROR('MMA Rev-Exp Region 10'!$AM$90/'MMA Rev-Exp Region 10'!$AK$9, 0)","v":{"v":0,"d":"$0.00"}}]
["MMA",null,null,2016,"2016-12-31","Q4","2017-12-31","Region 10","Operating Expense","Administrative Expense","Administrative","12.2","Administrative Services",{"$f":"IFERROR('MMA Rev-Exp Region 10'!$AK$91/'MMA Rev-Exp Region 10'!$AK$9, 0)","v":{"v":0,"d":"$0.00"}},{"$f":"IFERROR('MMA Rev-Exp Region 10'!$AL$91/'MMA Rev-Exp Region 10'!$AK$9, 0)","v":{"v":0,"d":"$0.00"}},{"$f":"IFERROR('MMA Rev-Exp Region 10'!$AM$91/'MMA Rev-Exp Region 10'!$AK$9, 0)","v":{"v":0,"d":"$0.00"}}]
["MMA",null,null,2016,"2016-12-31","Q4","2017-12-31","Region 10","Operating Expense","Administrative Expense","Administrative","12.3","Information Systems",{"$f":"IFERROR('MMA Rev-Exp Region 10'!$AK$92/'MMA Rev-Exp Region 10'!$AK$9, 0)","v":{"v":0,"d":"$0.00"}},{"$f":"IFERROR('MMA Rev-Exp Region 10'!$AL$92/'MMA Rev-Exp Region 10'!$AK$9, 0)","v":{"v":0,"d":"$0.00"}},{"$f":"IFERROR('MMA Rev-Exp Region 10'!$AM$92/'MMA Rev-Exp Region 10'!$AK$9, 0)","v":{"v":0,"d":"$0.00"}}]
["MMA",null,null,2016,"2016-12-31","Q4","2017-12-31","Region 10","Operating Expense","Administrative Expense","Administrative","12.4","Marketing Expenses",{"$f":"IFERROR('MMA Rev-Exp Region 10'!$AK$93/'MMA Rev-Exp Region 10'!$AK$9, 0)","v":{"v":0,"d":"$0.00"}},{"$f":"IFERROR('MMA Rev-Exp Region 10'!$AL$93/'MMA Rev-Exp Region 10'!$AK$9, 0)","v":{"v":0,"d":"$0.00"}},{"$f":"IFERROR('MMA Rev-Exp Region 10'!$AM$93/'MMA Rev-Exp Region 10'!$AK$9, 0)","v":{"v":0,"d":"$0.00"}}]
["MMA",null,null,2016,"2016-12-31","Q4","2017-12-31","Region 10","Operating Expense","Administrative Expense","Administrative","12.5","General  Administration",{"$f":"IFERROR('MMA Rev-Exp Region 10'!$AK$94/'MMA Rev-Exp Region 10'!$AK$9, 0)","v":{"v":0,"d":"$0.00"}},{"$f":"IFERROR('MMA Rev-Exp Region 10'!$AL$94/'MMA Rev-Exp Region 10'!$AK$9, 0)","v":{"v":0,"d":"$0.00"}},{"$f":"IFERROR('MMA Rev-Exp Region 10'!$AM$94/'MMA Rev-Exp Region 10'!$AK$9, 0)","v":{"v":0,"d":"$0.00"}}]
["MMA",null,null,2016,"2016-12-31","Q4","2017-12-31","Region 10","Operating Expense","Administrative Expense","Administrative","12.6","Compliance/Regulatory",{"$f":"IFERROR('MMA Rev-Exp Region 10'!$AK$95/'MMA Rev-Exp Region 10'!$AK$9, 0)","v":{"v":0,"d":"$0.00"}},{"$f":"IFERROR('MMA Rev-Exp Region 10'!$AL$95/'MMA Rev-Exp Region 10'!$AK$9, 0)","v":{"v":0,"d":"$0.00"}},{"$f":"IFERROR('MMA Rev-Exp Region 10'!$AM$95/'MMA Rev-Exp Region 10'!$AK$9, 0)","v":{"v":0,"d":"$0.00"}}]
["MMA",null,null,2016,"2016-12-31","Q4","2017-12-31","Region 10","Operating Expense","Taxes & Fees","Taxes & Fees","13.1","State Premium tax",{"$f":"IFERROR('MMA Rev-Exp Region 10'!$AK$97/'MMA Rev-Exp Region 10'!$AK$9, 0)","v":{"v":0,"d":"$0.00"}}]
["MMA",null,null,2016,"2016-12-31","Q4","2017-12-31","Region 10","Operating Expense","Taxes & Fees","Taxes & Fees","13.2","Department of Insurance Assessments",{"$f":"IFERROR('MMA Rev-Exp Region 10'!$AK$98/'MMA Rev-Exp Region 10'!$AK$9, 0)","v":{"v":0,"d":"$0.00"}}]
["MMA",null,null,2016,"2016-12-31","Q4","2017-12-31","Region 10","Operating Expense","Taxes & Fees","Taxes & Fees","13.3","Section 9010 Health Insurance Providers Fee",{"$f":"IFERROR('MMA Rev-Exp Region 10'!$AK$99/'MMA Rev-Exp Region 10'!$AK$9, 0)","v":{"v":0,"d":"$0.00"}}]
["MMA",null,null,2016,"2016-12-31","Q4","2017-12-31","Region 10","Non-Operating Expense","Income Tax Expense","Income Tax Expense","16.0","Income Tax Expense",{"$f":"IFERROR('MMA Rev-Exp Region 10'!$AK$106/'MMA Rev-Exp Region 10'!$AK$9, 0)","v":{"v":0,"d":"$0.00"}}]
["MMA",null,null,2016,"2016-12-31","Q1","2017-03-31","Region 11","Operating Revenue","Capitation","Capitation",1.1,"Capitation",{"$f":"IFERROR('MMA Rev-Exp Region 11'!$D$11/'MMA Rev-Exp Region 11'!$D$9, 0)","v":{"v":0,"d":"$0.00"}},{"$f":"IFERROR('MMA Rev-Exp Region 11'!$E$11/'MMA Rev-Exp Region 11'!$E$9, 0)","v":{"v":0,"d":"$0.00"}},{"$f":"IFERROR('MMA Rev-Exp Region 11'!$F$11/'MMA Rev-Exp Region 11'!$F$9, 0)","v":{"v":0,"d":"$0.00"}},{"$f":"IFERROR('MMA Rev-Exp Region 11'!$G$11/'MMA Rev-Exp Region 11'!$G$9, 0)","v":{"v":0,"d":"$0.00"}},{"$f":"IFERROR('MMA Rev-Exp Region 11'!$H$11/'MMA Rev-Exp Region 11'!$H$9, 0)","v":{"v":0,"d":"$0.00"}},{"$f":"IFERROR('MMA Rev-Exp Region 11'!$I$11/'MMA Rev-Exp Region 11'!$I$9, 0)","v":{"v":0,"d":"$0.00"}},{"$f":"IFERROR('MMA Rev-Exp Region 11'!$J$11/'MMA Rev-Exp Region 11'!$J$9, 0)","v":{"v":0,"d":"$0.00"}},{"$f":"IFERROR('MMA Rev-Exp Region 11'!$K$11/'MMA Rev-Exp Region 11'!$K$9, 0)","v":{"v":0,"d":"$0.00"}},{"$f":"IFERROR('MMA Rev-Exp Region 11'!$L$11/'MMA Rev-Exp Region 11'!$L$9, 0)","v":{"v":0,"d":"$0.00"}},{"$f":"IFERROR('MMA Rev-Exp Region 11'!$M$11/'MMA Rev-Exp Region 11'!$M$9, 0)","v":{"v":0,"d":"$0.00"}},{"$f":"IFERROR('MMA Rev-Exp Region 11'!$N$11/'MMA Rev-Exp Region 11'!$N$9, 0)","v":{"v":0,"d":"$0.00"}}]
["MMA",null,null,2016,"2016-12-31","Q1","2017-03-31","Region 11","Operating Revenue","Kick Payments","Kick Payments - Transplant",1.2,"Transplant Kick Payments",{"$f":"IFERROR('MMA Rev-Exp Region 11'!$D$12/'MMA Rev-Exp Region 11'!$D$9, 0)","v":{"v":0,"d":"$0.00"}},{"$f":"IFERROR('MMA Rev-Exp Region 11'!$E$12/'MMA Rev-Exp Region 11'!$E$9, 0)","v":{"v":0,"d":"$0.00"}},{"$f":"IFERROR('MMA Rev-Exp Region 11'!$F$12/'MMA Rev-Exp Region 11'!$F$9, 0)","v":{"v":0,"d":"$0.00"}},{"$f":"IFERROR('MMA Rev-Exp Region 11'!$G$12/'MMA Rev-Exp Region 11'!$G$9, 0)","v":{"v":0,"d":"$0.00"}},{"$f":"IFERROR('MMA Rev-Exp Region 11'!$H$12/'MMA Rev-Exp Region 11'!$H$9, 0)","v":{"v":0,"d":"$0.00"}},{"$f":"IFERROR('MMA Rev-Exp Region 11'!$I$12/'MMA Rev-Exp Region 11'!$I$9, 0)","v":{"v":0,"d":"$0.00"}},{"$f":"IFERROR('MMA Rev-Exp Region 11'!$J$12/'MMA Rev-Exp Region 11'!$J$9, 0)","v":{"v":0,"d":"$0.00"}},{"$f":"IFERROR('MMA Rev-Exp Region 11'!$K$12/'MMA Rev-Exp Region 11'!$K$9, 0)","v":{"v":0,"d":"$0.00"}},{"$f":"IFERROR('MMA Rev-Exp Region 11'!$L$12/'MMA Rev-Exp Region 11'!$L$9, 0)","v":{"v":0,"d":"$0.00"}},{"$f":"IFERROR('MMA Rev-Exp Region 11'!$M$12/'MMA Rev-Exp Region 11'!$M$9, 0)","v":{"v":0,"d":"$0.00"}},{"$f":"IFERROR('MMA Rev-Exp Region 11'!$N$12/'MMA Rev-Exp Region 11'!$N$9, 0)","v":{"v":0,"d":"$0.00"}}]
["MMA",null,null,2016,"2016-12-31","Q1","2017-03-31","Region 11","Operating Revenue","Kick Payments","Kick Payments - Hep C","1.3","Hepatitis C Kick Payments",{"$f":"IFERROR('MMA Rev-Exp Region 11'!$D$13/'MMA Rev-Exp Region 11'!$D$9, 0)","v":{"v":0,"d":"$0.00"}},{"$f":"IFERROR('MMA Rev-Exp Region 11'!$E$13/'MMA Rev-Exp Region 11'!$E$9, 0)","v":{"v":0,"d":"$0.00"}},{"$f":"IFERROR('MMA Rev-Exp Region 11'!$F$13/'MMA Rev-Exp Region 11'!$F$9, 0)","v":{"v":0,"d":"$0.00"}},{"$f":"IFERROR('MMA Rev-Exp Region 11'!$G$13/'MMA Rev-Exp Region 11'!$G$9, 0)","v":{"v":0,"d":"$0.00"}},{"$f":"IFERROR('MMA Rev-Exp Region 11'!$H$13/'MMA Rev-Exp Region 11'!$H$9, 0)","v":{"v":0,"d":"$0.00"}},{"$f":"IFERROR('MMA Rev-Exp Region 11'!$I$13/'MMA Rev-Exp Region 11'!$I$9, 0)","v":{"v":0,"d":"$0.00"}},{"$f":"IFERROR('MMA Rev-Exp Region 11'!$J$13/'MMA Rev-Exp Region 11'!$J$9, 0)","v":{"v":0,"d":"$0.00"}},{"$f":"IFERROR('MMA Rev-Exp Region 11'!$K$13/'MMA Rev-Exp Region 11'!$K$9, 0)","v":{"v":0,"d":"$0.00"}},{"$f":"IFERROR('MMA Rev-Exp Region 11'!$L$13/'MMA Rev-Exp Region 11'!$L$9, 0)","v":{"v":0,"d":"$0.00"}},{"$f":"IFERROR('MMA Rev-Exp Region 11'!$M$13/'MMA Rev-Exp Region 11'!$M$9, 0)","v":{"v":0,"d":"$0.00"}},{"$f":"IFERROR('MMA Rev-Exp Region 11'!$N$13/'MMA Rev-Exp Region 11'!$N$9, 0)","v":{"v":0,"d":"$0.00"}}]
["MMA",null,null,2016,"2016-12-31","Q1","2017-03-31","Region 11","Operating Revenue","Kick Payments","Kick Payments - Maternity","1.4.1","Maternity Kick Payments",{"$f":"IFERROR('MMA Rev-Exp Region 11'!$D$14/'MMA Rev-Exp Region 11'!$D$9, 0)","v":{"v":0,"d":"$0.00"}},{"$f":"IFERROR('MMA Rev-Exp Region 11'!$E$14/'MMA Rev-Exp Region 11'!$E$9, 0)","v":{"v":0,"d":"$0.00"}},{"$f":"IFERROR('MMA Rev-Exp Region 11'!$F$14/'MMA Rev-Exp Region 11'!$F$9, 0)","v":{"v":0,"d":"$0.00"}},{"$f":"IFERROR('MMA Rev-Exp Region 11'!$G$14/'MMA Rev-Exp Region 11'!$G$9, 0)","v":{"v":0,"d":"$0.00"}},{"$f":"IFERROR('MMA Rev-Exp Region 11'!$H$14/'MMA Rev-Exp Region 11'!$H$9, 0)","v":{"v":0,"d":"$0.00"}},{"$f":"IFERROR('MMA Rev-Exp Region 11'!$I$14/'MMA Rev-Exp Region 11'!$I$9, 0)","v":{"v":0,"d":"$0.00"}},{"$f":"IFERROR('MMA Rev-Exp Region 11'!$J$14/'MMA Rev-Exp Region 11'!$J$9, 0)","v":{"v":0,"d":"$0.00"}},{"$f":"IFERROR('MMA Rev-Exp Region 11'!$K$14/'MMA Rev-Exp Region 11'!$K$9, 0)","v":{"v":0,"d":"$0.00"}},{"$f":"IFERROR('MMA Rev-Exp Region 11'!$L$14/'MMA Rev-Exp Region 11'!$L$9, 0)","v":{"v":0,"d":"$0.00"}},{"$f":"IFERROR('MMA Rev-Exp Region 11'!$M$14/'MMA Rev-Exp Region 11'!$M$9, 0)","v":{"v":0,"d":"$0.00"}},{"$f":"IFERROR('MMA Rev-Exp Region 11'!$N$14/'MMA Rev-Exp Region 11'!$N$9, 0)","v":{"v":0,"d":"$0.00"}}]
["MMA",null,null,2016,"2016-12-31","Q1","2017-03-31","Region 11","Operating Revenue","Other Revenue","Other Revenue - 9010","1.5","ACA § 9010 related payments",{"$f":"IFERROR('MMA Rev-Exp Region 11'!$D$15/'MMA Rev-Exp Region 11'!$D$9, 0)","v":{"v":0,"d":"$0.00"}},{"$f":"IFERROR('MMA Rev-Exp Region 11'!$E$15/'MMA Rev-Exp Region 11'!$E$9, 0)","v":{"v":0,"d":"$0.00"}},{"$f":"IFERROR('MMA Rev-Exp Region 11'!$F$15/'MMA Rev-Exp Region 11'!$F$9, 0)","v":{"v":0,"d":"$0.00"}},{"$f":"IFERROR('MMA Rev-Exp Region 11'!$G$15/'MMA Rev-Exp Region 11'!$G$9, 0)","v":{"v":0,"d":"$0.00"}},{"$f":"IFERROR('MMA Rev-Exp Region 11'!$H$15/'MMA Rev-Exp Region 11'!$H$9, 0)","v":{"v":0,"d":"$0.00"}},{"$f":"IFERROR('MMA Rev-Exp Region 11'!$I$15/'MMA Rev-Exp Region 11'!$I$9, 0)","v":{"v":0,"d":"$0.00"}},{"$f":"IFERROR('MMA Rev-Exp Region 11'!$J$15/'MMA Rev-Exp Region 11'!$J$9, 0)","v":{"v":0,"d":"$0.00"}},{"$f":"IFERROR('MMA Rev-Exp Region 11'!$K$15/'MMA Rev-Exp Region 11'!$K$9, 0)","v":{"v":0,"d":"$0.00"}},{"$f":"IFERROR('MMA Rev-Exp Region 11'!$L$15/'MMA Rev-Exp Region 11'!$L$9, 0)","v":{"v":0,"d":"$0.00"}},{"$f":"IFERROR('MMA Rev-Exp Region 11'!$M$15/'MMA Rev-Exp Region 11'!$M$9, 0)","v":{"v":0,"d":"$0.00"}},{"$f":"IFERROR('MMA Rev-Exp Region 11'!$N$15/'MMA Rev-Exp Region 11'!$N$9, 0)","v":{"v":0,"d":"$0.00"}}]
["MMA",null,null,2016,"2016-12-31","Q1","2017-03-31","Region 11","Operating Revenue","Other Revenue","Other Revenue","1.6","Other Revenue",{"$f":"IFERROR('MMA Rev-Exp Region 11'!$D$16/'MMA Rev-Exp Region 11'!$D$9, 0)","v":{"v":0,"d":"$0.00"}},{"$f":"IFERROR('MMA Rev-Exp Region 11'!$E$16/'MMA Rev-Exp Region 11'!$E$9, 0)","v":{"v":0,"d":"$0.00"}},{"$f":"IFERROR('MMA Rev-Exp Region 11'!$F$16/'MMA Rev-Exp Region 11'!$F$9, 0)","v":{"v":0,"d":"$0.00"}},{"$f":"IFERROR('MMA Rev-Exp Region 11'!$G$16/'MMA Rev-Exp Region 11'!$G$9, 0)","v":{"v":0,"d":"$0.00"}},{"$f":"IFERROR('MMA Rev-Exp Region 11'!$H$16/'MMA Rev-Exp Region 11'!$H$9, 0)","v":{"v":0,"d":"$0.00"}},{"$f":"IFERROR('MMA Rev-Exp Region 11'!$I$16/'MMA Rev-Exp Region 11'!$I$9, 0)","v":{"v":0,"d":"$0.00"}},{"$f":"IFERROR('MMA Rev-Exp Region 11'!$J$16/'MMA Rev-Exp Region 11'!$J$9, 0)","v":{"v":0,"d":"$0.00"}},{"$f":"IFERROR('MMA Rev-Exp Region 11'!$K$16/'MMA Rev-Exp Region 11'!$K$9, 0)","v":{"v":0,"d":"$0.00"}},{"$f":"IFERROR('MMA Rev-Exp Region 11'!$L$16/'MMA Rev-Exp Region 11'!$L$9, 0)","v":{"v":0,"d":"$0.00"}},{"$f":"IFERROR('MMA Rev-Exp Region 11'!$M$16/'MMA Rev-Exp Region 11'!$M$9, 0)","v":{"v":0,"d":"$0.00"}},{"$f":"IFERROR('MMA Rev-Exp Region 11'!$N$16/'MMA Rev-Exp Region 11'!$N$9, 0)","v":{"v":0,"d":"$0.00"}}]
["MMA",null,null,2016,"2016-12-31","Q1","2017-03-31","Region 11","Operating Expense","Medical Benefits Expense","Hospital Services",2.1,"Inpatient FFS",{"$f":"IFERROR('MMA Rev-Exp Region 11'!$D$20/'MMA Rev-Exp Region 11'!$D$9, 0)","v":{"v":0,"d":"$0.00"}},{"$f":"IFERROR('MMA Rev-Exp Region 11'!$E$20/'MMA Rev-Exp Region 11'!$E$9, 0)","v":{"v":0,"d":"$0.00"}},{"$f":"IFERROR('MMA Rev-Exp Region 11'!$F$20/'MMA Rev-Exp Region 11'!$F$9, 0)","v":{"v":0,"d":"$0.00"}},{"$f":"IFERROR('MMA Rev-Exp Region 11'!$G$20/'MMA Rev-Exp Region 11'!$G$9, 0)","v":{"v":0,"d":"$0.00"}},{"$f":"IFERROR('MMA Rev-Exp Region 11'!$H$20/'MMA Rev-Exp Region 11'!$H$9, 0)","v":{"v":0,"d":"$0.00"}},{"$f":"IFERROR('MMA Rev-Exp Region 11'!$I$20/'MMA Rev-Exp Region 11'!$I$9, 0)","v":{"v":0,"d":"$0.00"}},{"$f":"IFERROR('MMA Rev-Exp Region 11'!$J$20/'MMA Rev-Exp Region 11'!$J$9, 0)","v":{"v":0,"d":"$0.00"}},{"$f":"IFERROR('MMA Rev-Exp Region 11'!$K$20/'MMA Rev-Exp Region 11'!$K$9, 0)","v":{"v":0,"d":"$0.00"}},{"$f":"IFERROR('MMA Rev-Exp Region 11'!$L$20/'MMA Rev-Exp Region 11'!$L$9, 0)","v":{"v":0,"d":"$0.00"}},{"$f":"IFERROR('MMA Rev-Exp Region 11'!$M$20/'MMA Rev-Exp Region 11'!$M$9, 0)","v":{"v":0,"d":"$0.00"}},{"$f":"IFERROR('MMA Rev-Exp Region 11'!$N$20/'MMA Rev-Exp Region 11'!$N$9, 0)","v":{"v":0,"d":"$0.00"}}]
["MMA",null,null,2016,"2016-12-31","Q1","2017-03-31","Region 11","Operating Expense","Medical Benefits Expense","Hospital Services",2.2,"Ending IBNP for Inpatient Hospital Services",{"$f":"IFERROR('MMA Rev-Exp Region 11'!$D$21/'MMA Rev-Exp Region 11'!$D$9, 0)","v":{"v":0,"d":"$0.00"}},{"$f":"IFERROR('MMA Rev-Exp Region 11'!$E$21/'MMA Rev-Exp Region 11'!$E$9, 0)","v":{"v":0,"d":"$0.00"}},{"$f":"IFERROR('MMA Rev-Exp Region 11'!$F$21/'MMA Rev-Exp Region 11'!$F$9, 0)","v":{"v":0,"d":"$0.00"}},{"$f":"IFERROR('MMA Rev-Exp Region 11'!$G$21/'MMA Rev-Exp Region 11'!$G$9, 0)","v":{"v":0,"d":"$0.00"}},{"$f":"IFERROR('MMA Rev-Exp Region 11'!$H$21/'MMA Rev-Exp Region 11'!$H$9, 0)","v":{"v":0,"d":"$0.00"}},{"$f":"IFERROR('MMA Rev-Exp Region 11'!$I$21/'MMA Rev-Exp Region 11'!$I$9, 0)","v":{"v":0,"d":"$0.00"}},{"$f":"IFERROR('MMA Rev-Exp Region 11'!$J$21/'MMA Rev-Exp Region 11'!$J$9, 0)","v":{"v":0,"d":"$0.00"}},{"$f":"IFERROR('MMA Rev-Exp Region 11'!$K$21/'MMA Rev-Exp Region 11'!$K$9, 0)","v":{"v":0,"d":"$0.00"}},{"$f":"IFERROR('MMA Rev-Exp Region 11'!$L$21/'MMA Rev-Exp Region 11'!$L$9, 0)","v":{"v":0,"d":"$0.00"}},{"$f":"IFERROR('MMA Rev-Exp Region 11'!$M$21/'MMA Rev-Exp Region 11'!$M$9, 0)","v":{"v":0,"d":"$0.00"}},{"$f":"IFERROR('MMA Rev-Exp Region 11'!$N$21/'MMA Rev-Exp Region 11'!$N$9, 0)","v":{"v":0,"d":"$0.00"}}]
["MMA",null,null,2016,"2016-12-31","Q1","2017-03-31","Region 11","Operating Expense","Medical Benefits Expense","Hospital Services",2.3,"Outpatient FFS: ER",{"$f":"IFERROR('MMA Rev-Exp Region 11'!$D$22/'MMA Rev-Exp Region 11'!$D$9, 0)","v":{"v":0,"d":"$0.00"}},{"$f":"IFERROR('MMA Rev-Exp Region 11'!$E$22/'MMA Rev-Exp Region 11'!$E$9, 0)","v":{"v":0,"d":"$0.00"}},{"$f":"IFERROR('MMA Rev-Exp Region 11'!$F$22/'MMA Rev-Exp Region 11'!$F$9, 0)","v":{"v":0,"d":"$0.00"}},{"$f":"IFERROR('MMA Rev-Exp Region 11'!$G$22/'MMA Rev-Exp Region 11'!$G$9, 0)","v":{"v":0,"d":"$0.00"}},{"$f":"IFERROR('MMA Rev-Exp Region 11'!$H$22/'MMA Rev-Exp Region 11'!$H$9, 0)","v":{"v":0,"d":"$0.00"}},{"$f":"IFERROR('MMA Rev-Exp Region 11'!$I$22/'MMA Rev-Exp Region 11'!$I$9, 0)","v":{"v":0,"d":"$0.00"}},{"$f":"IFERROR('MMA Rev-Exp Region 11'!$J$22/'MMA Rev-Exp Region 11'!$J$9, 0)","v":{"v":0,"d":"$0.00"}},{"$f":"IFERROR('MMA Rev-Exp Region 11'!$K$22/'MMA Rev-Exp Region 11'!$K$9, 0)","v":{"v":0,"d":"$0.00"}},{"$f":"IFERROR('MMA Rev-Exp Region 11'!$L$22/'MMA Rev-Exp Region 11'!$L$9, 0)","v":{"v":0,"d":"$0.00"}},{"$f":"IFERROR('MMA Rev-Exp Region 11'!$M$22/'MMA Rev-Exp Region 11'!$M$9, 0)","v":{"v":0,"d":"$0.00"}},{"$f":"IFERROR('MMA Rev-Exp Region 11'!$N$22/'MMA Rev-Exp Region 11'!$N$9, 0)","v":{"v":0,"d":"$0.00"}}]
["MMA",null,null,2016,"2016-12-31","Q1","2017-03-31","Region 11","Operating Expense","Medical Benefits Expense","Hospital Services",2.4,"Outpatient FFS: Other than ER ",{"$f":"IFERROR('MMA Rev-Exp Region 11'!$D$23/'MMA Rev-Exp Region 11'!$D$9, 0)","v":{"v":0,"d":"$0.00"}},{"$f":"IFERROR('MMA Rev-Exp Region 11'!$E$23/'MMA Rev-Exp Region 11'!$E$9, 0)","v":{"v":0,"d":"$0.00"}},{"$f":"IFERROR('MMA Rev-Exp Region 11'!$F$23/'MMA Rev-Exp Region 11'!$F$9, 0)","v":{"v":0,"d":"$0.00"}},{"$f":"IFERROR('MMA Rev-Exp Region 11'!$G$23/'MMA Rev-Exp Region 11'!$G$9, 0)","v":{"v":0,"d":"$0.00"}},{"$f":"IFERROR('MMA Rev-Exp Region 11'!$H$23/'MMA Rev-Exp Region 11'!$H$9, 0)","v":{"v":0,"d":"$0.00"}},{"$f":"IFERROR('MMA Rev-Exp Region 11'!$I$23/'MMA Rev-Exp Region 11'!$I$9, 0)","v":{"v":0,"d":"$0.00"}},{"$f":"IFERROR('MMA Rev-Exp Region 11'!$J$23/'MMA Rev-Exp Region 11'!$J$9, 0)","v":{"v":0,"d":"$0.00"}},{"$f":"IFERROR('MMA Rev-Exp Region 11'!$K$23/'MMA Rev-Exp Region 11'!$K$9, 0)","v":{"v":0,"d":"$0.00"}},{"$f":"IFERROR('MMA Rev-Exp Region 11'!$L$23/'MMA Rev-Exp Region 11'!$L$9, 0)","v":{"v":0,"d":"$0.00"}},{"$f":"IFERROR('MMA Rev-Exp Region 11'!$M$23/'MMA Rev-Exp Region 11'!$M$9, 0)","v":{"v":0,"d":"$0.00"}},{"$f":"IFERROR('MMA Rev-Exp Region 11'!$N$23/'MMA Rev-Exp Region 11'!$N$9, 0)","v":{"v":0,"d":"$0.00"}}]
["MMA",null,null,2016,"2016-12-31","Q1","2017-03-31","Region 11","Operating Expense","Medical Benefits Expense","Hospital Services",2.5,"Ending IBNP for Outpatient Hospital Services",{"$f":"IFERROR('MMA Rev-Exp Region 11'!$D$24/'MMA Rev-Exp Region 11'!$D$9, 0)","v":{"v":0,"d":"$0.00"}},{"$f":"IFERROR('MMA Rev-Exp Region 11'!$E$24/'MMA Rev-Exp Region 11'!$E$9, 0)","v":{"v":0,"d":"$0.00"}},{"$f":"IFERROR('MMA Rev-Exp Region 11'!$F$24/'MMA Rev-Exp Region 11'!$F$9, 0)","v":{"v":0,"d":"$0.00"}},{"$f":"IFERROR('MMA Rev-Exp Region 11'!$G$24/'MMA Rev-Exp Region 11'!$G$9, 0)","v":{"v":0,"d":"$0.00"}},{"$f":"IFERROR('MMA Rev-Exp Region 11'!$H$24/'MMA Rev-Exp Region 11'!$H$9, 0)","v":{"v":0,"d":"$0.00"}},{"$f":"IFERROR('MMA Rev-Exp Region 11'!$I$24/'MMA Rev-Exp Region 11'!$I$9, 0)","v":{"v":0,"d":"$0.00"}},{"$f":"IFERROR('MMA Rev-Exp Region 11'!$J$24/'MMA Rev-Exp Region 11'!$J$9, 0)","v":{"v":0,"d":"$0.00"}},{"$f":"IFERROR('MMA Rev-Exp Region 11'!$K$24/'MMA Rev-Exp Region 11'!$K$9, 0)","v":{"v":0,"d":"$0.00"}},{"$f":"IFERROR('MMA Rev-Exp Region 11'!$L$24/'MMA Rev-Exp Region 11'!$L$9, 0)","v":{"v":0,"d":"$0.00"}},{"$f":"IFERROR('MMA Rev-Exp Region 11'!$M$24/'MMA Rev-Exp Region 11'!$M$9, 0)","v":{"v":0,"d":"$0.00"}},{"$f":"IFERROR('MMA Rev-Exp Region 11'!$N$24/'MMA Rev-Exp Region 11'!$N$9, 0)","v":{"v":0,"d":"$0.00"}}]
["MMA",null,null,2016,"2016-12-31","Q1","2017-03-31","Region 11","Operating Expense","Medical Benefits Expense","Hospital Services","2.6","Subcapitated Hospital Services",{"$f":"IFERROR('MMA Rev-Exp Region 11'!$D$25/'MMA Rev-Exp Region 11'!$D$9, 0)","v":{"v":0,"d":"$0.00"}},{"$f":"IFERROR('MMA Rev-Exp Region 11'!$E$25/'MMA Rev-Exp Region 11'!$E$9, 0)","v":{"v":0,"d":"$0.00"}},{"$f":"IFERROR('MMA Rev-Exp Region 11'!$F$25/'MMA Rev-Exp Region 11'!$F$9, 0)","v":{"v":0,"d":"$0.00"}},{"$f":"IFERROR('MMA Rev-Exp Region 11'!$G$25/'MMA Rev-Exp Region 11'!$G$9, 0)","v":{"v":0,"d":"$0.00"}},{"$f":"IFERROR('MMA Rev-Exp Region 11'!$H$25/'MMA Rev-Exp Region 11'!$H$9, 0)","v":{"v":0,"d":"$0.00"}},{"$f":"IFERROR('MMA Rev-Exp Region 11'!$I$25/'MMA Rev-Exp Region 11'!$I$9, 0)","v":{"v":0,"d":"$0.00"}},{"$f":"IFERROR('MMA Rev-Exp Region 11'!$J$25/'MMA Rev-Exp Region 11'!$J$9, 0)","v":{"v":0,"d":"$0.00"}},{"$f":"IFERROR('MMA Rev-Exp Region 11'!$K$25/'MMA Rev-Exp Region 11'!$K$9, 0)","v":{"v":0,"d":"$0.00"}},{"$f":"IFERROR('MMA Rev-Exp Region 11'!$L$25/'MMA Rev-Exp Region 11'!$L$9, 0)","v":{"v":0,"d":"$0.00"}},{"$f":"IFERROR('MMA Rev-Exp Region 11'!$M$25/'MMA Rev-Exp Region 11'!$M$9, 0)","v":{"v":0,"d":"$0.00"}},{"$f":"IFERROR('MMA Rev-Exp Region 11'!$N$25/'MMA Rev-Exp Region 11'!$N$9, 0)","v":{"v":0,"d":"$0.00"}}]
["MMA",null,null,2016,"2016-12-31","Q1","2017-03-31","Region 11","Operating Expense","Medical Benefits Expense","Hospital Services","2.7","Hospital Settlements",{"$f":"IFERROR('MMA Rev-Exp Region 11'!$D$26/'MMA Rev-Exp Region 11'!$D$9, 0)","v":{"v":0,"d":"$0.00"}},{"$f":"IFERROR('MMA Rev-Exp Region 11'!$E$26/'MMA Rev-Exp Region 11'!$E$9, 0)","v":{"v":0,"d":"$0.00"}},{"$f":"IFERROR('MMA Rev-Exp Region 11'!$F$26/'MMA Rev-Exp Region 11'!$F$9, 0)","v":{"v":0,"d":"$0.00"}},{"$f":"IFERROR('MMA Rev-Exp Region 11'!$G$26/'MMA Rev-Exp Region 11'!$G$9, 0)","v":{"v":0,"d":"$0.00"}},{"$f":"IFERROR('MMA Rev-Exp Region 11'!$H$26/'MMA Rev-Exp Region 11'!$H$9, 0)","v":{"v":0,"d":"$0.00"}},{"$f":"IFERROR('MMA Rev-Exp Region 11'!$I$26/'MMA Rev-Exp Region 11'!$I$9, 0)","v":{"v":0,"d":"$0.00"}},{"$f":"IFERROR('MMA Rev-Exp Region 11'!$J$26/'MMA Rev-Exp Region 11'!$J$9, 0)","v":{"v":0,"d":"$0.00"}},{"$f":"IFERROR('MMA Rev-Exp Region 11'!$K$26/'MMA Rev-Exp Region 11'!$K$9, 0)","v":{"v":0,"d":"$0.00"}},{"$f":"IFERROR('MMA Rev-Exp Region 11'!$L$26/'MMA Rev-Exp Region 11'!$L$9, 0)","v":{"v":0,"d":"$0.00"}},{"$f":"IFERROR('MMA Rev-Exp Region 11'!$M$26/'MMA Rev-Exp Region 11'!$M$9, 0)","v":{"v":0,"d":"$0.00"}},{"$f":"IFERROR('MMA Rev-Exp Region 11'!$N$26/'MMA Rev-Exp Region 11'!$N$9, 0)","v":{"v":0,"d":"$0.00"}}]
["MMA",null,null,2016,"2016-12-31","Q1","2017-03-31","Region 11","Operating Expense","Medical Benefits Expense","Hospital Services","2.7.1","Transplant Services",{"$f":"IFERROR('MMA Rev-Exp Region 11'!$D$27/'MMA Rev-Exp Region 11'!$D$9, 0)","v":{"v":0,"d":"$0.00"}},{"$f":"IFERROR('MMA Rev-Exp Region 11'!$E$27/'MMA Rev-Exp Region 11'!$E$9, 0)","v":{"v":0,"d":"$0.00"}},{"$f":"IFERROR('MMA Rev-Exp Region 11'!$F$27/'MMA Rev-Exp Region 11'!$F$9, 0)","v":{"v":0,"d":"$0.00"}},{"$f":"IFERROR('MMA Rev-Exp Region 11'!$G$27/'MMA Rev-Exp Region 11'!$G$9, 0)","v":{"v":0,"d":"$0.00"}},{"$f":"IFERROR('MMA Rev-Exp Region 11'!$H$27/'MMA Rev-Exp Region 11'!$H$9, 0)","v":{"v":0,"d":"$0.00"}},{"$f":"IFERROR('MMA Rev-Exp Region 11'!$I$27/'MMA Rev-Exp Region 11'!$I$9, 0)","v":{"v":0,"d":"$0.00"}},{"$f":"IFERROR('MMA Rev-Exp Region 11'!$J$27/'MMA Rev-Exp Region 11'!$J$9, 0)","v":{"v":0,"d":"$0.00"}},{"$f":"IFERROR('MMA Rev-Exp Region 11'!$K$27/'MMA Rev-Exp Region 11'!$K$9, 0)","v":{"v":0,"d":"$0.00"}},{"$f":"IFERROR('MMA Rev-Exp Region 11'!$L$27/'MMA Rev-Exp Region 11'!$L$9, 0)","v":{"v":0,"d":"$0.00"}},{"$f":"IFERROR('MMA Rev-Exp Region 11'!$M$27/'MMA Rev-Exp Region 11'!$M$9, 0)","v":{"v":0,"d":"$0.00"}},{"$f":"IFERROR('MMA Rev-Exp Region 11'!$N$27/'MMA Rev-Exp Region 11'!$N$9, 0)","v":{"v":0,"d":"$0.00"}}]
["MMA",null,null,2016,"2016-12-31","Q1","2017-03-31","Region 11","Operating Expense","Medical Benefits Expense","Professional Services",3.1,"Primary Care FFS",{"$f":"IFERROR('MMA Rev-Exp Region 11'!$D$29/'MMA Rev-Exp Region 11'!$D$9, 0)","v":{"v":0,"d":"$0.00"}},{"$f":"IFERROR('MMA Rev-Exp Region 11'!$E$29/'MMA Rev-Exp Region 11'!$E$9, 0)","v":{"v":0,"d":"$0.00"}},{"$f":"IFERROR('MMA Rev-Exp Region 11'!$F$29/'MMA Rev-Exp Region 11'!$F$9, 0)","v":{"v":0,"d":"$0.00"}},{"$f":"IFERROR('MMA Rev-Exp Region 11'!$G$29/'MMA Rev-Exp Region 11'!$G$9, 0)","v":{"v":0,"d":"$0.00"}},{"$f":"IFERROR('MMA Rev-Exp Region 11'!$H$29/'MMA Rev-Exp Region 11'!$H$9, 0)","v":{"v":0,"d":"$0.00"}},{"$f":"IFERROR('MMA Rev-Exp Region 11'!$I$29/'MMA Rev-Exp Region 11'!$I$9, 0)","v":{"v":0,"d":"$0.00"}},{"$f":"IFERROR('MMA Rev-Exp Region 11'!$J$29/'MMA Rev-Exp Region 11'!$J$9, 0)","v":{"v":0,"d":"$0.00"}},{"$f":"IFERROR('MMA Rev-Exp Region 11'!$K$29/'MMA Rev-Exp Region 11'!$K$9, 0)","v":{"v":0,"d":"$0.00"}},{"$f":"IFERROR('MMA Rev-Exp Region 11'!$L$29/'MMA Rev-Exp Region 11'!$L$9, 0)","v":{"v":0,"d":"$0.00"}},{"$f":"IFERROR('MMA Rev-Exp Region 11'!$M$29/'MMA Rev-Exp Region 11'!$M$9, 0)","v":{"v":0,"d":"$0.00"}},{"$f":"IFERROR('MMA Rev-Exp Region 11'!$N$29/'MMA Rev-Exp Region 11'!$N$9, 0)","v":{"v":0,"d":"$0.00"}}]
["MMA",null,null,2016,"2016-12-31","Q1","2017-03-31","Region 11","Operating Expense","Medical Benefits Expense","Professional Services",3.2,"Specialty Care FFS",{"$f":"IFERROR('MMA Rev-Exp Region 11'!$D$30/'MMA Rev-Exp Region 11'!$D$9, 0)","v":{"v":0,"d":"$0.00"}},{"$f":"IFERROR('MMA Rev-Exp Region 11'!$E$30/'MMA Rev-Exp Region 11'!$E$9, 0)","v":{"v":0,"d":"$0.00"}},{"$f":"IFERROR('MMA Rev-Exp Region 11'!$F$30/'MMA Rev-Exp Region 11'!$F$9, 0)","v":{"v":0,"d":"$0.00"}},{"$f":"IFERROR('MMA Rev-Exp Region 11'!$G$30/'MMA Rev-Exp Region 11'!$G$9, 0)","v":{"v":0,"d":"$0.00"}},{"$f":"IFERROR('MMA Rev-Exp Region 11'!$H$30/'MMA Rev-Exp Region 11'!$H$9, 0)","v":{"v":0,"d":"$0.00"}},{"$f":"IFERROR('MMA Rev-Exp Region 11'!$I$30/'MMA Rev-Exp Region 11'!$I$9, 0)","v":{"v":0,"d":"$0.00"}},{"$f":"IFERROR('MMA Rev-Exp Region 11'!$J$30/'MMA Rev-Exp Region 11'!$J$9, 0)","v":{"v":0,"d":"$0.00"}},{"$f":"IFERROR('MMA Rev-Exp Region 11'!$K$30/'MMA Rev-Exp Region 11'!$K$9, 0)","v":{"v":0,"d":"$0.00"}},{"$f":"IFERROR('MMA Rev-Exp Region 11'!$L$30/'MMA Rev-Exp Region 11'!$L$9, 0)","v":{"v":0,"d":"$0.00"}},{"$f":"IFERROR('MMA Rev-Exp Region 11'!$M$30/'MMA Rev-Exp Region 11'!$M$9, 0)","v":{"v":0,"d":"$0.00"}},{"$f":"IFERROR('MMA Rev-Exp Region 11'!$N$30/'MMA Rev-Exp Region 11'!$N$9, 0)","v":{"v":0,"d":"$0.00"}}]
["MMA",null,null,2016,"2016-12-31","Q1","2017-03-31","Region 11","Operating Expense","Medical Benefits Expense","Professional Services",3.3,"Other Professional FFS",{"$f":"IFERROR('MMA Rev-Exp Region 11'!$D$31/'MMA Rev-Exp Region 11'!$D$9, 0)","v":{"v":0,"d":"$0.00"}},{"$f":"IFERROR('MMA Rev-Exp Region 11'!$E$31/'MMA Rev-Exp Region 11'!$E$9, 0)","v":{"v":0,"d":"$0.00"}},{"$f":"IFERROR('MMA Rev-Exp Region 11'!$F$31/'MMA Rev-Exp Region 11'!$F$9, 0)","v":{"v":0,"d":"$0.00"}},{"$f":"IFERROR('MMA Rev-Exp Region 11'!$G$31/'MMA Rev-Exp Region 11'!$G$9, 0)","v":{"v":0,"d":"$0.00"}},{"$f":"IFERROR('MMA Rev-Exp Region 11'!$H$31/'MMA Rev-Exp Region 11'!$H$9, 0)","v":{"v":0,"d":"$0.00"}},{"$f":"IFERROR('MMA Rev-Exp Region 11'!$I$31/'MMA Rev-Exp Region 11'!$I$9, 0)","v":{"v":0,"d":"$0.00"}},{"$f":"IFERROR('MMA Rev-Exp Region 11'!$J$31/'MMA Rev-Exp Region 11'!$J$9, 0)","v":{"v":0,"d":"$0.00"}},{"$f":"IFERROR('MMA Rev-Exp Region 11'!$K$31/'MMA Rev-Exp Region 11'!$K$9, 0)","v":{"v":0,"d":"$0.00"}},{"$f":"IFERROR('MMA Rev-Exp Region 11'!$L$31/'MMA Rev-Exp Region 11'!$L$9, 0)","v":{"v":0,"d":"$0.00"}},{"$f":"IFERROR('MMA Rev-Exp Region 11'!$M$31/'MMA Rev-Exp Region 11'!$M$9, 0)","v":{"v":0,"d":"$0.00"}},{"$f":"IFERROR('MMA Rev-Exp Region 11'!$N$31/'MMA Rev-Exp Region 11'!$N$9, 0)","v":{"v":0,"d":"$0.00"}}]
["MMA",null,null,2016,"2016-12-31","Q1","2017-03-31","Region 11","Operating Expense","Medical Benefits Expense","Professional Services","3.4","§ 1202 PCP Payments to providers",{"$f":"IFERROR('MMA Rev-Exp Region 11'!$D$32/'MMA Rev-Exp Region 11'!$D$9, 0)","v":{"v":0,"d":"$0.00"}},{"$f":"IFERROR('MMA Rev-Exp Region 11'!$E$32/'MMA Rev-Exp Region 11'!$E$9, 0)","v":{"v":0,"d":"$0.00"}},{"$f":"IFERROR('MMA Rev-Exp Region 11'!$F$32/'MMA Rev-Exp Region 11'!$F$9, 0)","v":{"v":0,"d":"$0.00"}},{"$f":"IFERROR('MMA Rev-Exp Region 11'!$G$32/'MMA Rev-Exp Region 11'!$G$9, 0)","v":{"v":0,"d":"$0.00"}},{"$f":"IFERROR('MMA Rev-Exp Region 11'!$H$32/'MMA Rev-Exp Region 11'!$H$9, 0)","v":{"v":0,"d":"$0.00"}},{"$f":"IFERROR('MMA Rev-Exp Region 11'!$I$32/'MMA Rev-Exp Region 11'!$I$9, 0)","v":{"v":0,"d":"$0.00"}},{"$f":"IFERROR('MMA Rev-Exp Region 11'!$J$32/'MMA Rev-Exp Region 11'!$J$9, 0)","v":{"v":0,"d":"$0.00"}},{"$f":"IFERROR('MMA Rev-Exp Region 11'!$K$32/'MMA Rev-Exp Region 11'!$K$9, 0)","v":{"v":0,"d":"$0.00"}},{"$f":"IFERROR('MMA Rev-Exp Region 11'!$L$32/'MMA Rev-Exp Region 11'!$L$9, 0)","v":{"v":0,"d":"$0.00"}},{"$f":"IFERROR('MMA Rev-Exp Region 11'!$M$32/'MMA Rev-Exp Region 11'!$M$9, 0)","v":{"v":0,"d":"$0.00"}},{"$f":"IFERROR('MMA Rev-Exp Region 11'!$N$32/'MMA Rev-Exp Region 11'!$N$9, 0)","v":{"v":0,"d":"$0.00"}}]
["MMA",null,null,2016,"2016-12-31","Q1","2017-03-31","Region 11","Operating Expense","Medical Benefits Expense","Professional Services","3.5","Subcapitated Professional Services",{"$f":"IFERROR('MMA Rev-Exp Region 11'!$D$33/'MMA Rev-Exp Region 11'!$D$9, 0)","v":{"v":0,"d":"$0.00"}},{"$f":"IFERROR('MMA Rev-Exp Region 11'!$E$33/'MMA Rev-Exp Region 11'!$E$9, 0)","v":{"v":0,"d":"$0.00"}},{"$f":"IFERROR('MMA Rev-Exp Region 11'!$F$33/'MMA Rev-Exp Region 11'!$F$9, 0)","v":{"v":0,"d":"$0.00"}},{"$f":"IFERROR('MMA Rev-Exp Region 11'!$G$33/'MMA Rev-Exp Region 11'!$G$9, 0)","v":{"v":0,"d":"$0.00"}},{"$f":"IFERROR('MMA Rev-Exp Region 11'!$H$33/'MMA Rev-Exp Region 11'!$H$9, 0)","v":{"v":0,"d":"$0.00"}},{"$f":"IFERROR('MMA Rev-Exp Region 11'!$I$33/'MMA Rev-Exp Region 11'!$I$9, 0)","v":{"v":0,"d":"$0.00"}},{"$f":"IFERROR('MMA Rev-Exp Region 11'!$J$33/'MMA Rev-Exp Region 11'!$J$9, 0)","v":{"v":0,"d":"$0.00"}},{"$f":"IFERROR('MMA Rev-Exp Region 11'!$K$33/'MMA Rev-Exp Region 11'!$K$9, 0)","v":{"v":0,"d":"$0.00"}},{"$f":"IFERROR('MMA Rev-Exp Region 11'!$L$33/'MMA Rev-Exp Region 11'!$L$9, 0)","v":{"v":0,"d":"$0.00"}},{"$f":"IFERROR('MMA Rev-Exp Region 11'!$M$33/'MMA Rev-Exp Region 11'!$M$9, 0)","v":{"v":0,"d":"$0.00"}},{"$f":"IFERROR('MMA Rev-Exp Region 11'!$N$33/'MMA Rev-Exp Region 11'!$N$9, 0)","v":{"v":0,"d":"$0.00"}}]
["MMA",null,null,2016,"2016-12-31","Q1","2017-03-31","Region 11","Operating Expense","Medical Benefits Expense","Professional Services","3.6","Ending IBNP for Professional Services",{"$f":"IFERROR('MMA Rev-Exp Region 11'!$D$34/'MMA Rev-Exp Region 11'!$D$9, 0)","v":{"v":0,"d":"$0.00"}},{"$f":"IFERROR('MMA Rev-Exp Region 11'!$E$34/'MMA Rev-Exp Region 11'!$E$9, 0)","v":{"v":0,"d":"$0.00"}},{"$f":"IFERROR('MMA Rev-Exp Region 11'!$F$34/'MMA Rev-Exp Region 11'!$F$9, 0)","v":{"v":0,"d":"$0.00"}},{"$f":"IFERROR('MMA Rev-Exp Region 11'!$G$34/'MMA Rev-Exp Region 11'!$G$9, 0)","v":{"v":0,"d":"$0.00"}},{"$f":"IFERROR('MMA Rev-Exp Region 11'!$H$34/'MMA Rev-Exp Region 11'!$H$9, 0)","v":{"v":0,"d":"$0.00"}},{"$f":"IFERROR('MMA Rev-Exp Region 11'!$I$34/'MMA Rev-Exp Region 11'!$I$9, 0)","v":{"v":0,"d":"$0.00"}},{"$f":"IFERROR('MMA Rev-Exp Region 11'!$J$34/'MMA Rev-Exp Region 11'!$J$9, 0)","v":{"v":0,"d":"$0.00"}},{"$f":"IFERROR('MMA Rev-Exp Region 11'!$K$34/'MMA Rev-Exp Region 11'!$K$9, 0)","v":{"v":0,"d":"$0.00"}},{"$f":"IFERROR('MMA Rev-Exp Region 11'!$L$34/'MMA Rev-Exp Region 11'!$L$9, 0)","v":{"v":0,"d":"$0.00"}},{"$f":"IFERROR('MMA Rev-Exp Region 11'!$M$34/'MMA Rev-Exp Region 11'!$M$9, 0)","v":{"v":0,"d":"$0.00"}},{"$f":"IFERROR('MMA Rev-Exp Region 11'!$N$34/'MMA Rev-Exp Region 11'!$N$9, 0)","v":{"v":0,"d":"$0.00"}}]
["MMA",null,null,2016,"2016-12-31","Q1","2017-03-31","Region 11","Operating Expense","Medical Benefits Expense","Professional Services","3.7","Professional Services Settlements",{"$f":"IFERROR('MMA Rev-Exp Region 11'!$D$35/'MMA Rev-Exp Region 11'!$D$9, 0)","v":{"v":0,"d":"$0.00"}},{"$f":"IFERROR('MMA Rev-Exp Region 11'!$E$35/'MMA Rev-Exp Region 11'!$E$9, 0)","v":{"v":0,"d":"$0.00"}},{"$f":"IFERROR('MMA Rev-Exp Region 11'!$F$35/'MMA Rev-Exp Region 11'!$F$9, 0)","v":{"v":0,"d":"$0.00"}},{"$f":"IFERROR('MMA Rev-Exp Region 11'!$G$35/'MMA Rev-Exp Region 11'!$G$9, 0)","v":{"v":0,"d":"$0.00"}},{"$f":"IFERROR('MMA Rev-Exp Region 11'!$H$35/'MMA Rev-Exp Region 11'!$H$9, 0)","v":{"v":0,"d":"$0.00"}},{"$f":"IFERROR('MMA Rev-Exp Region 11'!$I$35/'MMA Rev-Exp Region 11'!$I$9, 0)","v":{"v":0,"d":"$0.00"}},{"$f":"IFERROR('MMA Rev-Exp Region 11'!$J$35/'MMA Rev-Exp Region 11'!$J$9, 0)","v":{"v":0,"d":"$0.00"}},{"$f":"IFERROR('MMA Rev-Exp Region 11'!$K$35/'MMA Rev-Exp Region 11'!$K$9, 0)","v":{"v":0,"d":"$0.00"}},{"$f":"IFERROR('MMA Rev-Exp Region 11'!$L$35/'MMA Rev-Exp Region 11'!$L$9, 0)","v":{"v":0,"d":"$0.00"}},{"$f":"IFERROR('MMA Rev-Exp Region 11'!$M$35/'MMA Rev-Exp Region 11'!$M$9, 0)","v":{"v":0,"d":"$0.00"}},{"$f":"IFERROR('MMA Rev-Exp Region 11'!$N$35/'MMA Rev-Exp Region 11'!$N$9, 0)","v":{"v":0,"d":"$0.00"}}]
["MMA",null,null,2016,"2016-12-31","Q1","2017-03-31","Region 11","Operating Expense","Medical Benefits Expense","Maternity Services","4.1.1","Maternity Services",{"$f":"IFERROR('MMA Rev-Exp Region 11'!$D$37/'MMA Rev-Exp Region 11'!$D$9, 0)","v":{"v":0,"d":"$0.00"}},{"$f":"IFERROR('MMA Rev-Exp Region 11'!$E$37/'MMA Rev-Exp Region 11'!$E$9, 0)","v":{"v":0,"d":"$0.00"}},{"$f":"IFERROR('MMA Rev-Exp Region 11'!$F$37/'MMA Rev-Exp Region 11'!$F$9, 0)","v":{"v":0,"d":"$0.00"}},{"$f":"IFERROR('MMA Rev-Exp Region 11'!$G$37/'MMA Rev-Exp Region 11'!$G$9, 0)","v":{"v":0,"d":"$0.00"}},{"$f":"IFERROR('MMA Rev-Exp Region 11'!$H$37/'MMA Rev-Exp Region 11'!$H$9, 0)","v":{"v":0,"d":"$0.00"}},{"$f":"IFERROR('MMA Rev-Exp Region 11'!$I$37/'MMA Rev-Exp Region 11'!$I$9, 0)","v":{"v":0,"d":"$0.00"}},{"$f":"IFERROR('MMA Rev-Exp Region 11'!$J$37/'MMA Rev-Exp Region 11'!$J$9, 0)","v":{"v":0,"d":"$0.00"}},{"$f":"IFERROR('MMA Rev-Exp Region 11'!$K$37/'MMA Rev-Exp Region 11'!$K$9, 0)","v":{"v":0,"d":"$0.00"}},{"$f":"IFERROR('MMA Rev-Exp Region 11'!$L$37/'MMA Rev-Exp Region 11'!$L$9, 0)","v":{"v":0,"d":"$0.00"}},{"$f":"IFERROR('MMA Rev-Exp Region 11'!$M$37/'MMA Rev-Exp Region 11'!$M$9, 0)","v":{"v":0,"d":"$0.00"}},{"$f":"IFERROR('MMA Rev-Exp Region 11'!$N$37/'MMA Rev-Exp Region 11'!$N$9, 0)","v":{"v":0,"d":"$0.00"}}]
["MMA",null,null,2016,"2016-12-31","Q1","2017-03-31","Region 11","Operating Expense","Medical Benefits Expense","Maternity Services","4.2.1","Ending IBNP for Maternity Services",{"$f":"IFERROR('MMA Rev-Exp Region 11'!$D$38/'MMA Rev-Exp Region 11'!$D$9, 0)","v":{"v":0,"d":"$0.00"}},{"$f":"IFERROR('MMA Rev-Exp Region 11'!$E$38/'MMA Rev-Exp Region 11'!$E$9, 0)","v":{"v":0,"d":"$0.00"}},{"$f":"IFERROR('MMA Rev-Exp Region 11'!$F$38/'MMA Rev-Exp Region 11'!$F$9, 0)","v":{"v":0,"d":"$0.00"}},{"$f":"IFERROR('MMA Rev-Exp Region 11'!$G$38/'MMA Rev-Exp Region 11'!$G$9, 0)","v":{"v":0,"d":"$0.00"}},{"$f":"IFERROR('MMA Rev-Exp Region 11'!$H$38/'MMA Rev-Exp Region 11'!$H$9, 0)","v":{"v":0,"d":"$0.00"}},{"$f":"IFERROR('MMA Rev-Exp Region 11'!$I$38/'MMA Rev-Exp Region 11'!$I$9, 0)","v":{"v":0,"d":"$0.00"}},{"$f":"IFERROR('MMA Rev-Exp Region 11'!$J$38/'MMA Rev-Exp Region 11'!$J$9, 0)","v":{"v":0,"d":"$0.00"}},{"$f":"IFERROR('MMA Rev-Exp Region 11'!$K$38/'MMA Rev-Exp Region 11'!$K$9, 0)","v":{"v":0,"d":"$0.00"}},{"$f":"IFERROR('MMA Rev-Exp Region 11'!$L$38/'MMA Rev-Exp Region 11'!$L$9, 0)","v":{"v":0,"d":"$0.00"}},{"$f":"IFERROR('MMA Rev-Exp Region 11'!$M$38/'MMA Rev-Exp Region 11'!$M$9, 0)","v":{"v":0,"d":"$0.00"}},{"$f":"IFERROR('MMA Rev-Exp Region 11'!$N$38/'MMA Rev-Exp Region 11'!$N$9, 0)","v":{"v":0,"d":"$0.00"}}]
["MMA",null,null,2016,"2016-12-31","Q1","2017-03-31","Region 11","Operating Expense","Medical Benefits Expense","Maternity Services","4.3.1","Maternity Settlements",{"$f":"IFERROR('MMA Rev-Exp Region 11'!$D$39/'MMA Rev-Exp Region 11'!$D$9, 0)","v":{"v":0,"d":"$0.00"}},{"$f":"IFERROR('MMA Rev-Exp Region 11'!$E$39/'MMA Rev-Exp Region 11'!$E$9, 0)","v":{"v":0,"d":"$0.00"}},{"$f":"IFERROR('MMA Rev-Exp Region 11'!$F$39/'MMA Rev-Exp Region 11'!$F$9, 0)","v":{"v":0,"d":"$0.00"}},{"$f":"IFERROR('MMA Rev-Exp Region 11'!$G$39/'MMA Rev-Exp Region 11'!$G$9, 0)","v":{"v":0,"d":"$0.00"}},{"$f":"IFERROR('MMA Rev-Exp Region 11'!$H$39/'MMA Rev-Exp Region 11'!$H$9, 0)","v":{"v":0,"d":"$0.00"}},{"$f":"IFERROR('MMA Rev-Exp Region 11'!$I$39/'MMA Rev-Exp Region 11'!$I$9, 0)","v":{"v":0,"d":"$0.00"}},{"$f":"IFERROR('MMA Rev-Exp Region 11'!$J$39/'MMA Rev-Exp Region 11'!$J$9, 0)","v":{"v":0,"d":"$0.00"}},{"$f":"IFERROR('MMA Rev-Exp Region 11'!$K$39/'MMA Rev-Exp Region 11'!$K$9, 0)","v":{"v":0,"d":"$0.00"}},{"$f":"IFERROR('MMA Rev-Exp Region 11'!$L$39/'MMA Rev-Exp Region 11'!$L$9, 0)","v":{"v":0,"d":"$0.00"}},{"$f":"IFERROR('MMA Rev-Exp Region 11'!$M$39/'MMA Rev-Exp Region 11'!$M$9, 0)","v":{"v":0,"d":"$0.00"}},{"$f":"IFERROR('MMA Rev-Exp Region 11'!$N$39/'MMA Rev-Exp Region 11'!$N$9, 0)","v":{"v":0,"d":"$0.00"}}]
["MMA",null,null,2016,"2016-12-31","Q1","2017-03-31","Region 11","Operating Expense","Medical Benefits Expense","Mental Health Services",5.1,"Mental Health & Substance Abuse FFS",{"$f":"IFERROR('MMA Rev-Exp Region 11'!$D$41/'MMA Rev-Exp Region 11'!$D$9, 0)","v":{"v":0,"d":"$0.00"}},{"$f":"IFERROR('MMA Rev-Exp Region 11'!$E$41/'MMA Rev-Exp Region 11'!$E$9, 0)","v":{"v":0,"d":"$0.00"}},{"$f":"IFERROR('MMA Rev-Exp Region 11'!$F$41/'MMA Rev-Exp Region 11'!$F$9, 0)","v":{"v":0,"d":"$0.00"}},{"$f":"IFERROR('MMA Rev-Exp Region 11'!$G$41/'MMA Rev-Exp Region 11'!$G$9, 0)","v":{"v":0,"d":"$0.00"}},{"$f":"IFERROR('MMA Rev-Exp Region 11'!$H$41/'MMA Rev-Exp Region 11'!$H$9, 0)","v":{"v":0,"d":"$0.00"}},{"$f":"IFERROR('MMA Rev-Exp Region 11'!$I$41/'MMA Rev-Exp Region 11'!$I$9, 0)","v":{"v":0,"d":"$0.00"}},{"$f":"IFERROR('MMA Rev-Exp Region 11'!$J$41/'MMA Rev-Exp Region 11'!$J$9, 0)","v":{"v":0,"d":"$0.00"}},{"$f":"IFERROR('MMA Rev-Exp Region 11'!$K$41/'MMA Rev-Exp Region 11'!$K$9, 0)","v":{"v":0,"d":"$0.00"}},{"$f":"IFERROR('MMA Rev-Exp Region 11'!$L$41/'MMA Rev-Exp Region 11'!$L$9, 0)","v":{"v":0,"d":"$0.00"}},{"$f":"IFERROR('MMA Rev-Exp Region 11'!$M$41/'MMA Rev-Exp Region 11'!$M$9, 0)","v":{"v":0,"d":"$0.00"}},{"$f":"IFERROR('MMA Rev-Exp Region 11'!$N$41/'MMA Rev-Exp Region 11'!$N$9, 0)","v":{"v":0,"d":"$0.00"}}]
["MMA",null,null,2016,"2016-12-31","Q1","2017-03-31","Region 11","Operating Expense","Medical Benefits Expense","Mental Health Services",5.2,"Mental Health & Substance Abuse Subcapitation",{"$f":"IFERROR('MMA Rev-Exp Region 11'!$D$42/'MMA Rev-Exp Region 11'!$D$9, 0)","v":{"v":0,"d":"$0.00"}},{"$f":"IFERROR('MMA Rev-Exp Region 11'!$E$42/'MMA Rev-Exp Region 11'!$E$9, 0)","v":{"v":0,"d":"$0.00"}},{"$f":"IFERROR('MMA Rev-Exp Region 11'!$F$42/'MMA Rev-Exp Region 11'!$F$9, 0)","v":{"v":0,"d":"$0.00"}},{"$f":"IFERROR('MMA Rev-Exp Region 11'!$G$42/'MMA Rev-Exp Region 11'!$G$9, 0)","v":{"v":0,"d":"$0.00"}},{"$f":"IFERROR('MMA Rev-Exp Region 11'!$H$42/'MMA Rev-Exp Region 11'!$H$9, 0)","v":{"v":0,"d":"$0.00"}},{"$f":"IFERROR('MMA Rev-Exp Region 11'!$I$42/'MMA Rev-Exp Region 11'!$I$9, 0)","v":{"v":0,"d":"$0.00"}},{"$f":"IFERROR('MMA Rev-Exp Region 11'!$J$42/'MMA Rev-Exp Region 11'!$J$9, 0)","v":{"v":0,"d":"$0.00"}},{"$f":"IFERROR('MMA Rev-Exp Region 11'!$K$42/'MMA Rev-Exp Region 11'!$K$9, 0)","v":{"v":0,"d":"$0.00"}},{"$f":"IFERROR('MMA Rev-Exp Region 11'!$L$42/'MMA Rev-Exp Region 11'!$L$9, 0)","v":{"v":0,"d":"$0.00"}},{"$f":"IFERROR('MMA Rev-Exp Region 11'!$M$42/'MMA Rev-Exp Region 11'!$M$9, 0)","v":{"v":0,"d":"$0.00"}},{"$f":"IFERROR('MMA Rev-Exp Region 11'!$N$42/'MMA Rev-Exp Region 11'!$N$9, 0)","v":{"v":0,"d":"$0.00"}}]
["MMA",null,null,2016,"2016-12-31","Q1","2017-03-31","Region 11","Operating Expense","Medical Benefits Expense","Mental Health Services",5.3,"Ending IBNP for Mental Health & Substance Abuse",{"$f":"IFERROR('MMA Rev-Exp Region 11'!$D$43/'MMA Rev-Exp Region 11'!$D$9, 0)","v":{"v":0,"d":"$0.00"}},{"$f":"IFERROR('MMA Rev-Exp Region 11'!$E$43/'MMA Rev-Exp Region 11'!$E$9, 0)","v":{"v":0,"d":"$0.00"}},{"$f":"IFERROR('MMA Rev-Exp Region 11'!$F$43/'MMA Rev-Exp Region 11'!$F$9, 0)","v":{"v":0,"d":"$0.00"}},{"$f":"IFERROR('MMA Rev-Exp Region 11'!$G$43/'MMA Rev-Exp Region 11'!$G$9, 0)","v":{"v":0,"d":"$0.00"}},{"$f":"IFERROR('MMA Rev-Exp Region 11'!$H$43/'MMA Rev-Exp Region 11'!$H$9, 0)","v":{"v":0,"d":"$0.00"}},{"$f":"IFERROR('MMA Rev-Exp Region 11'!$I$43/'MMA Rev-Exp Region 11'!$I$9, 0)","v":{"v":0,"d":"$0.00"}},{"$f":"IFERROR('MMA Rev-Exp Region 11'!$J$43/'MMA Rev-Exp Region 11'!$J$9, 0)","v":{"v":0,"d":"$0.00"}},{"$f":"IFERROR('MMA Rev-Exp Region 11'!$K$43/'MMA Rev-Exp Region 11'!$K$9, 0)","v":{"v":0,"d":"$0.00"}},{"$f":"IFERROR('MMA Rev-Exp Region 11'!$L$43/'MMA Rev-Exp Region 11'!$L$9, 0)","v":{"v":0,"d":"$0.00"}},{"$f":"IFERROR('MMA Rev-Exp Region 11'!$M$43/'MMA Rev-Exp Region 11'!$M$9, 0)","v":{"v":0,"d":"$0.00"}},{"$f":"IFERROR('MMA Rev-Exp Region 11'!$N$43/'MMA Rev-Exp Region 11'!$N$9, 0)","v":{"v":0,"d":"$0.00"}}]
["MMA",null,null,2016,"2016-12-31","Q1","2017-03-31","Region 11","Operating Expense","Medical Benefits Expense","Mental Health Services","5.4","Mental Health Settlements",{"$f":"IFERROR('MMA Rev-Exp Region 11'!$D$44/'MMA Rev-Exp Region 11'!$D$9, 0)","v":{"v":0,"d":"$0.00"}},{"$f":"IFERROR('MMA Rev-Exp Region 11'!$E$44/'MMA Rev-Exp Region 11'!$E$9, 0)","v":{"v":0,"d":"$0.00"}},{"$f":"IFERROR('MMA Rev-Exp Region 11'!$F$44/'MMA Rev-Exp Region 11'!$F$9, 0)","v":{"v":0,"d":"$0.00"}},{"$f":"IFERROR('MMA Rev-Exp Region 11'!$G$44/'MMA Rev-Exp Region 11'!$G$9, 0)","v":{"v":0,"d":"$0.00"}},{"$f":"IFERROR('MMA Rev-Exp Region 11'!$H$44/'MMA Rev-Exp Region 11'!$H$9, 0)","v":{"v":0,"d":"$0.00"}},{"$f":"IFERROR('MMA Rev-Exp Region 11'!$I$44/'MMA Rev-Exp Region 11'!$I$9, 0)","v":{"v":0,"d":"$0.00"}},{"$f":"IFERROR('MMA Rev-Exp Region 11'!$J$44/'MMA Rev-Exp Region 11'!$J$9, 0)","v":{"v":0,"d":"$0.00"}},{"$f":"IFERROR('MMA Rev-Exp Region 11'!$K$44/'MMA Rev-Exp Region 11'!$K$9, 0)","v":{"v":0,"d":"$0.00"}},{"$f":"IFERROR('MMA Rev-Exp Region 11'!$L$44/'MMA Rev-Exp Region 11'!$L$9, 0)","v":{"v":0,"d":"$0.00"}},{"$f":"IFERROR('MMA Rev-Exp Region 11'!$M$44/'MMA Rev-Exp Region 11'!$M$9, 0)","v":{"v":0,"d":"$0.00"}},{"$f":"IFERROR('MMA Rev-Exp Region 11'!$N$44/'MMA Rev-Exp Region 11'!$N$9, 0)","v":{"v":0,"d":"$0.00"}}]
["MMA",null,null,2016,"2016-12-31","Q1","2017-03-31","Region 11","Operating Expense","Medical Benefits Expense","Dental Services",6.1,"Dental FFS",{"$f":"IFERROR('MMA Rev-Exp Region 11'!$D$46/'MMA Rev-Exp Region 11'!$D$9, 0)","v":{"v":0,"d":"$0.00"}},{"$f":"IFERROR('MMA Rev-Exp Region 11'!$E$46/'MMA Rev-Exp Region 11'!$E$9, 0)","v":{"v":0,"d":"$0.00"}},{"$f":"IFERROR('MMA Rev-Exp Region 11'!$F$46/'MMA Rev-Exp Region 11'!$F$9, 0)","v":{"v":0,"d":"$0.00"}},{"$f":"IFERROR('MMA Rev-Exp Region 11'!$G$46/'MMA Rev-Exp Region 11'!$G$9, 0)","v":{"v":0,"d":"$0.00"}},{"$f":"IFERROR('MMA Rev-Exp Region 11'!$H$46/'MMA Rev-Exp Region 11'!$H$9, 0)","v":{"v":0,"d":"$0.00"}},{"$f":"IFERROR('MMA Rev-Exp Region 11'!$I$46/'MMA Rev-Exp Region 11'!$I$9, 0)","v":{"v":0,"d":"$0.00"}},{"$f":"IFERROR('MMA Rev-Exp Region 11'!$J$46/'MMA Rev-Exp Region 11'!$J$9, 0)","v":{"v":0,"d":"$0.00"}},{"$f":"IFERROR('MMA Rev-Exp Region 11'!$K$46/'MMA Rev-Exp Region 11'!$K$9, 0)","v":{"v":0,"d":"$0.00"}},{"$f":"IFERROR('MMA Rev-Exp Region 11'!$L$46/'MMA Rev-Exp Region 11'!$L$9, 0)","v":{"v":0,"d":"$0.00"}},{"$f":"IFERROR('MMA Rev-Exp Region 11'!$M$46/'MMA Rev-Exp Region 11'!$M$9, 0)","v":{"v":0,"d":"$0.00"}},{"$f":"IFERROR('MMA Rev-Exp Region 11'!$N$46/'MMA Rev-Exp Region 11'!$N$9, 0)","v":{"v":0,"d":"$0.00"}}]
["MMA",null,null,2016,"2016-12-31","Q1","2017-03-31","Region 11","Operating Expense","Medical Benefits Expense","Dental Services",6.2,"Dental Subcapitation",{"$f":"IFERROR('MMA Rev-Exp Region 11'!$D$47/'MMA Rev-Exp Region 11'!$D$9, 0)","v":{"v":0,"d":"$0.00"}},{"$f":"IFERROR('MMA Rev-Exp Region 11'!$E$47/'MMA Rev-Exp Region 11'!$E$9, 0)","v":{"v":0,"d":"$0.00"}},{"$f":"IFERROR('MMA Rev-Exp Region 11'!$F$47/'MMA Rev-Exp Region 11'!$F$9, 0)","v":{"v":0,"d":"$0.00"}},{"$f":"IFERROR('MMA Rev-Exp Region 11'!$G$47/'MMA Rev-Exp Region 11'!$G$9, 0)","v":{"v":0,"d":"$0.00"}},{"$f":"IFERROR('MMA Rev-Exp Region 11'!$H$47/'MMA Rev-Exp Region 11'!$H$9, 0)","v":{"v":0,"d":"$0.00"}},{"$f":"IFERROR('MMA Rev-Exp Region 11'!$I$47/'MMA Rev-Exp Region 11'!$I$9, 0)","v":{"v":0,"d":"$0.00"}},{"$f":"IFERROR('MMA Rev-Exp Region 11'!$J$47/'MMA Rev-Exp Region 11'!$J$9, 0)","v":{"v":0,"d":"$0.00"}},{"$f":"IFERROR('MMA Rev-Exp Region 11'!$K$47/'MMA Rev-Exp Region 11'!$K$9, 0)","v":{"v":0,"d":"$0.00"}},{"$f":"IFERROR('MMA Rev-Exp Region 11'!$L$47/'MMA Rev-Exp Region 11'!$L$9, 0)","v":{"v":0,"d":"$0.00"}},{"$f":"IFERROR('MMA Rev-Exp Region 11'!$M$47/'MMA Rev-Exp Region 11'!$M$9, 0)","v":{"v":0,"d":"$0.00"}},{"$f":"IFERROR('MMA Rev-Exp Region 11'!$N$47/'MMA Rev-Exp Region 11'!$N$9, 0)","v":{"v":0,"d":"$0.00"}}]
["MMA",null,null,2016,"2016-12-31","Q1","2017-03-31","Region 11","Operating Expense","Medical Benefits Expense","Dental Services",6.3,"Ending IBNP for Dental Services",{"$f":"IFERROR('MMA Rev-Exp Region 11'!$D$48/'MMA Rev-Exp Region 11'!$D$9, 0)","v":{"v":0,"d":"$0.00"}},{"$f":"IFERROR('MMA Rev-Exp Region 11'!$E$48/'MMA Rev-Exp Region 11'!$E$9, 0)","v":{"v":0,"d":"$0.00"}},{"$f":"IFERROR('MMA Rev-Exp Region 11'!$F$48/'MMA Rev-Exp Region 11'!$F$9, 0)","v":{"v":0,"d":"$0.00"}},{"$f":"IFERROR('MMA Rev-Exp Region 11'!$G$48/'MMA Rev-Exp Region 11'!$G$9, 0)","v":{"v":0,"d":"$0.00"}},{"$f":"IFERROR('MMA Rev-Exp Region 11'!$H$48/'MMA Rev-Exp Region 11'!$H$9, 0)","v":{"v":0,"d":"$0.00"}},{"$f":"IFERROR('MMA Rev-Exp Region 11'!$I$48/'MMA Rev-Exp Region 11'!$I$9, 0)","v":{"v":0,"d":"$0.00"}},{"$f":"IFERROR('MMA Rev-Exp Region 11'!$J$48/'MMA Rev-Exp Region 11'!$J$9, 0)","v":{"v":0,"d":"$0.00"}},{"$f":"IFERROR('MMA Rev-Exp Region 11'!$K$48/'MMA Rev-Exp Region 11'!$K$9, 0)","v":{"v":0,"d":"$0.00"}},{"$f":"IFERROR('MMA Rev-Exp Region 11'!$L$48/'MMA Rev-Exp Region 11'!$L$9, 0)","v":{"v":0,"d":"$0.00"}},{"$f":"IFERROR('MMA Rev-Exp Region 11'!$M$48/'MMA Rev-Exp Region 11'!$M$9, 0)","v":{"v":0,"d":"$0.00"}},{"$f":"IFERROR('MMA Rev-Exp Region 11'!$N$48/'MMA Rev-Exp Region 11'!$N$9, 0)","v":{"v":0,"d":"$0.00"}}]
["MMA",null,null,2016,"2016-12-31","Q1","2017-03-31","Region 11","Operating Expense","Medical Benefits Expense","Dental Services","6.4","Dental Settlements",{"$f":"IFERROR('MMA Rev-Exp Region 11'!$D$49/'MMA Rev-Exp Region 11'!$D$9, 0)","v":{"v":0,"d":"$0.00"}},{"$f":"IFERROR('MMA Rev-Exp Region 11'!$E$49/'MMA Rev-Exp Region 11'!$E$9, 0)","v":{"v":0,"d":"$0.00"}},{"$f":"IFERROR('MMA Rev-Exp Region 11'!$F$49/'MMA Rev-Exp Region 11'!$F$9, 0)","v":{"v":0,"d":"$0.00"}},{"$f":"IFERROR('MMA Rev-Exp Region 11'!$G$49/'MMA Rev-Exp Region 11'!$G$9, 0)","v":{"v":0,"d":"$0.00"}},{"$f":"IFERROR('MMA Rev-Exp Region 11'!$H$49/'MMA Rev-Exp Region 11'!$H$9, 0)","v":{"v":0,"d":"$0.00"}},{"$f":"IFERROR('MMA Rev-Exp Region 11'!$I$49/'MMA Rev-Exp Region 11'!$I$9, 0)","v":{"v":0,"d":"$0.00"}},{"$f":"IFERROR('MMA Rev-Exp Region 11'!$J$49/'MMA Rev-Exp Region 11'!$J$9, 0)","v":{"v":0,"d":"$0.00"}},{"$f":"IFERROR('MMA Rev-Exp Region 11'!$K$49/'MMA Rev-Exp Region 11'!$K$9, 0)","v":{"v":0,"d":"$0.00"}},{"$f":"IFERROR('MMA Rev-Exp Region 11'!$L$49/'MMA Rev-Exp Region 11'!$L$9, 0)","v":{"v":0,"d":"$0.00"}},{"$f":"IFERROR('MMA Rev-Exp Region 11'!$M$49/'MMA Rev-Exp Region 11'!$M$9, 0)","v":{"v":0,"d":"$0.00"}},{"$f":"IFERROR('MMA Rev-Exp Region 11'!$N$49/'MMA Rev-Exp Region 11'!$N$9, 0)","v":{"v":0,"d":"$0.00"}}]
["MMA",null,null,2016,"2016-12-31","Q1","2017-03-31","Region 11","Operating Expense","Medical Benefits Expense","Transportation Services",7.1,"Transportation FFS",{"$f":"IFERROR('MMA Rev-Exp Region 11'!$D$51/'MMA Rev-Exp Region 11'!$D$9, 0)","v":{"v":0,"d":"$0.00"}},{"$f":"IFERROR('MMA Rev-Exp Region 11'!$E$51/'MMA Rev-Exp Region 11'!$E$9, 0)","v":{"v":0,"d":"$0.00"}},{"$f":"IFERROR('MMA Rev-Exp Region 11'!$F$51/'MMA Rev-Exp Region 11'!$F$9, 0)","v":{"v":0,"d":"$0.00"}},{"$f":"IFERROR('MMA Rev-Exp Region 11'!$G$51/'MMA Rev-Exp Region 11'!$G$9, 0)","v":{"v":0,"d":"$0.00"}},{"$f":"IFERROR('MMA Rev-Exp Region 11'!$H$51/'MMA Rev-Exp Region 11'!$H$9, 0)","v":{"v":0,"d":"$0.00"}},{"$f":"IFERROR('MMA Rev-Exp Region 11'!$I$51/'MMA Rev-Exp Region 11'!$I$9, 0)","v":{"v":0,"d":"$0.00"}},{"$f":"IFERROR('MMA Rev-Exp Region 11'!$J$51/'MMA Rev-Exp Region 11'!$J$9, 0)","v":{"v":0,"d":"$0.00"}},{"$f":"IFERROR('MMA Rev-Exp Region 11'!$K$51/'MMA Rev-Exp Region 11'!$K$9, 0)","v":{"v":0,"d":"$0.00"}},{"$f":"IFERROR('MMA Rev-Exp Region 11'!$L$51/'MMA Rev-Exp Region 11'!$L$9, 0)","v":{"v":0,"d":"$0.00"}},{"$f":"IFERROR('MMA Rev-Exp Region 11'!$M$51/'MMA Rev-Exp Region 11'!$M$9, 0)","v":{"v":0,"d":"$0.00"}},{"$f":"IFERROR('MMA Rev-Exp Region 11'!$N$51/'MMA Rev-Exp Region 11'!$N$9, 0)","v":{"v":0,"d":"$0.00"}}]
["MMA",null,null,2016,"2016-12-31","Q1","2017-03-31","Region 11","Operating Expense","Medical Benefits Expense","Transportation Services",7.2,"Transportation Subcapitation",{"$f":"IFERROR('MMA Rev-Exp Region 11'!$D$52/'MMA Rev-Exp Region 11'!$D$9, 0)","v":{"v":0,"d":"$0.00"}},{"$f":"IFERROR('MMA Rev-Exp Region 11'!$E$52/'MMA Rev-Exp Region 11'!$E$9, 0)","v":{"v":0,"d":"$0.00"}},{"$f":"IFERROR('MMA Rev-Exp Region 11'!$F$52/'MMA Rev-Exp Region 11'!$F$9, 0)","v":{"v":0,"d":"$0.00"}},{"$f":"IFERROR('MMA Rev-Exp Region 11'!$G$52/'MMA Rev-Exp Region 11'!$G$9, 0)","v":{"v":0,"d":"$0.00"}},{"$f":"IFERROR('MMA Rev-Exp Region 11'!$H$52/'MMA Rev-Exp Region 11'!$H$9, 0)","v":{"v":0,"d":"$0.00"}},{"$f":"IFERROR('MMA Rev-Exp Region 11'!$I$52/'MMA Rev-Exp Region 11'!$I$9, 0)","v":{"v":0,"d":"$0.00"}},{"$f":"IFERROR('MMA Rev-Exp Region 11'!$J$52/'MMA Rev-Exp Region 11'!$J$9, 0)","v":{"v":0,"d":"$0.00"}},{"$f":"IFERROR('MMA Rev-Exp Region 11'!$K$52/'MMA Rev-Exp Region 11'!$K$9, 0)","v":{"v":0,"d":"$0.00"}},{"$f":"IFERROR('MMA Rev-Exp Region 11'!$L$52/'MMA Rev-Exp Region 11'!$L$9, 0)","v":{"v":0,"d":"$0.00"}},{"$f":"IFERROR('MMA Rev-Exp Region 11'!$M$52/'MMA Rev-Exp Region 11'!$M$9, 0)","v":{"v":0,"d":"$0.00"}},{"$f":"IFERROR('MMA Rev-Exp Region 11'!$N$52/'MMA Rev-Exp Region 11'!$N$9, 0)","v":{"v":0,"d":"$0.00"}}]
["MMA",null,null,2016,"2016-12-31","Q1","2017-03-31","Region 11","Operating Expense","Medical Benefits Expense","Transportation Services",7.3,"Ending IBNP for Transportation",{"$f":"IFERROR('MMA Rev-Exp Region 11'!$D$53/'MMA Rev-Exp Region 11'!$D$9, 0)","v":{"v":0,"d":"$0.00"}},{"$f":"IFERROR('MMA Rev-Exp Region 11'!$E$53/'MMA Rev-Exp Region 11'!$E$9, 0)","v":{"v":0,"d":"$0.00"}},{"$f":"IFERROR('MMA Rev-Exp Region 11'!$F$53/'MMA Rev-Exp Region 11'!$F$9, 0)","v":{"v":0,"d":"$0.00"}},{"$f":"IFERROR('MMA Rev-Exp Region 11'!$G$53/'MMA Rev-Exp Region 11'!$G$9, 0)","v":{"v":0,"d":"$0.00"}},{"$f":"IFERROR('MMA Rev-Exp Region 11'!$H$53/'MMA Rev-Exp Region 11'!$H$9, 0)","v":{"v":0,"d":"$0.00"}},{"$f":"IFERROR('MMA Rev-Exp Region 11'!$I$53/'MMA Rev-Exp Region 11'!$I$9, 0)","v":{"v":0,"d":"$0.00"}},{"$f":"IFERROR('MMA Rev-Exp Region 11'!$J$53/'MMA Rev-Exp Region 11'!$J$9, 0)","v":{"v":0,"d":"$0.00"}},{"$f":"IFERROR('MMA Rev-Exp Region 11'!$K$53/'MMA Rev-Exp Region 11'!$K$9, 0)","v":{"v":0,"d":"$0.00"}},{"$f":"IFERROR('MMA Rev-Exp Region 11'!$L$53/'MMA Rev-Exp Region 11'!$L$9, 0)","v":{"v":0,"d":"$0.00"}},{"$f":"IFERROR('MMA Rev-Exp Region 11'!$M$53/'MMA Rev-Exp Region 11'!$M$9, 0)","v":{"v":0,"d":"$0.00"}},{"$f":"IFERROR('MMA Rev-Exp Region 11'!$N$53/'MMA Rev-Exp Region 11'!$N$9, 0)","v":{"v":0,"d":"$0.00"}}]
["MMA",null,null,2016,"2016-12-31","Q1","2017-03-31","Region 11","Operating Expense","Medical Benefits Expense","Transportation Services","7.4","Transportation Settlements",{"$f":"IFERROR('MMA Rev-Exp Region 11'!$D$54/'MMA Rev-Exp Region 11'!$D$9, 0)","v":{"v":0,"d":"$0.00"}},{"$f":"IFERROR('MMA Rev-Exp Region 11'!$E$54/'MMA Rev-Exp Region 11'!$E$9, 0)","v":{"v":0,"d":"$0.00"}},{"$f":"IFERROR('MMA Rev-Exp Region 11'!$F$54/'MMA Rev-Exp Region 11'!$F$9, 0)","v":{"v":0,"d":"$0.00"}},{"$f":"IFERROR('MMA Rev-Exp Region 11'!$G$54/'MMA Rev-Exp Region 11'!$G$9, 0)","v":{"v":0,"d":"$0.00"}},{"$f":"IFERROR('MMA Rev-Exp Region 11'!$H$54/'MMA Rev-Exp Region 11'!$H$9, 0)","v":{"v":0,"d":"$0.00"}},{"$f":"IFERROR('MMA Rev-Exp Region 11'!$I$54/'MMA Rev-Exp Region 11'!$I$9, 0)","v":{"v":0,"d":"$0.00"}},{"$f":"IFERROR('MMA Rev-Exp Region 11'!$J$54/'MMA Rev-Exp Region 11'!$J$9, 0)","v":{"v":0,"d":"$0.00"}},{"$f":"IFERROR('MMA Rev-Exp Region 11'!$K$54/'MMA Rev-Exp Region 11'!$K$9, 0)","v":{"v":0,"d":"$0.00"}},{"$f":"IFERROR('MMA Rev-Exp Region 11'!$L$54/'MMA Rev-Exp Region 11'!$L$9, 0)","v":{"v":0,"d":"$0.00"}},{"$f":"IFERROR('MMA Rev-Exp Region 11'!$M$54/'MMA Rev-Exp Region 11'!$M$9, 0)","v":{"v":0,"d":"$0.00"}},{"$f":"IFERROR('MMA Rev-Exp Region 11'!$N$54/'MMA Rev-Exp Region 11'!$N$9, 0)","v":{"v":0,"d":"$0.00"}}]
["MMA",null,null,2016,"2016-12-31","Q1","2017-03-31","Region 11","Operating Expense","Medical Benefits Expense","Pharmacy Services",8.1,"Prescription Drugs FFS",{"$f":"IFERROR('MMA Rev-Exp Region 11'!$D$56/'MMA Rev-Exp Region 11'!$D$9, 0)","v":{"v":0,"d":"$0.00"}},{"$f":"IFERROR('MMA Rev-Exp Region 11'!$E$56/'MMA Rev-Exp Region 11'!$E$9, 0)","v":{"v":0,"d":"$0.00"}},{"$f":"IFERROR('MMA Rev-Exp Region 11'!$F$56/'MMA Rev-Exp Region 11'!$F$9, 0)","v":{"v":0,"d":"$0.00"}},{"$f":"IFERROR('MMA Rev-Exp Region 11'!$G$56/'MMA Rev-Exp Region 11'!$G$9, 0)","v":{"v":0,"d":"$0.00"}},{"$f":"IFERROR('MMA Rev-Exp Region 11'!$H$56/'MMA Rev-Exp Region 11'!$H$9, 0)","v":{"v":0,"d":"$0.00"}},{"$f":"IFERROR('MMA Rev-Exp Region 11'!$I$56/'MMA Rev-Exp Region 11'!$I$9, 0)","v":{"v":0,"d":"$0.00"}},{"$f":"IFERROR('MMA Rev-Exp Region 11'!$J$56/'MMA Rev-Exp Region 11'!$J$9, 0)","v":{"v":0,"d":"$0.00"}},{"$f":"IFERROR('MMA Rev-Exp Region 11'!$K$56/'MMA Rev-Exp Region 11'!$K$9, 0)","v":{"v":0,"d":"$0.00"}},{"$f":"IFERROR('MMA Rev-Exp Region 11'!$L$56/'MMA Rev-Exp Region 11'!$L$9, 0)","v":{"v":0,"d":"$0.00"}},{"$f":"IFERROR('MMA Rev-Exp Region 11'!$M$56/'MMA Rev-Exp Region 11'!$M$9, 0)","v":{"v":0,"d":"$0.00"}},{"$f":"IFERROR('MMA Rev-Exp Region 11'!$N$56/'MMA Rev-Exp Region 11'!$N$9, 0)","v":{"v":0,"d":"$0.00"}}]
["MMA",null,null,2016,"2016-12-31","Q1","2017-03-31","Region 11","Operating Expense","Medical Benefits Expense","Pharmacy Services","8.2","Hepatitis C Prescription Drug FFS",{"$f":"IFERROR('MMA Rev-Exp Region 11'!$D$57/'MMA Rev-Exp Region 11'!$D$9, 0)","v":{"v":0,"d":"$0.00"}},{"$f":"IFERROR('MMA Rev-Exp Region 11'!$E$57/'MMA Rev-Exp Region 11'!$E$9, 0)","v":{"v":0,"d":"$0.00"}},{"$f":"IFERROR('MMA Rev-Exp Region 11'!$F$57/'MMA Rev-Exp Region 11'!$F$9, 0)","v":{"v":0,"d":"$0.00"}},{"$f":"IFERROR('MMA Rev-Exp Region 11'!$G$57/'MMA Rev-Exp Region 11'!$G$9, 0)","v":{"v":0,"d":"$0.00"}},{"$f":"IFERROR('MMA Rev-Exp Region 11'!$H$57/'MMA Rev-Exp Region 11'!$H$9, 0)","v":{"v":0,"d":"$0.00"}},{"$f":"IFERROR('MMA Rev-Exp Region 11'!$I$57/'MMA Rev-Exp Region 11'!$I$9, 0)","v":{"v":0,"d":"$0.00"}},{"$f":"IFERROR('MMA Rev-Exp Region 11'!$J$57/'MMA Rev-Exp Region 11'!$J$9, 0)","v":{"v":0,"d":"$0.00"}},{"$f":"IFERROR('MMA Rev-Exp Region 11'!$K$57/'MMA Rev-Exp Region 11'!$K$9, 0)","v":{"v":0,"d":"$0.00"}},{"$f":"IFERROR('MMA Rev-Exp Region 11'!$L$57/'MMA Rev-Exp Region 11'!$L$9, 0)","v":{"v":0,"d":"$0.00"}},{"$f":"IFERROR('MMA Rev-Exp Region 11'!$M$57/'MMA Rev-Exp Region 11'!$M$9, 0)","v":{"v":0,"d":"$0.00"}},{"$f":"IFERROR('MMA Rev-Exp Region 11'!$N$57/'MMA Rev-Exp Region 11'!$N$9, 0)","v":{"v":0,"d":"$0.00"}}]
["MMA",null,null,2016,"2016-12-31","Q1","2017-03-31","Region 11","Operating Expense","Medical Benefits Expense","Pharmacy Services","8.3","Ending IBNP for Prescription Drugs",{"$f":"IFERROR('MMA Rev-Exp Region 11'!$D$58/'MMA Rev-Exp Region 11'!$D$9, 0)","v":{"v":0,"d":"$0.00"}},{"$f":"IFERROR('MMA Rev-Exp Region 11'!$E$58/'MMA Rev-Exp Region 11'!$E$9, 0)","v":{"v":0,"d":"$0.00"}},{"$f":"IFERROR('MMA Rev-Exp Region 11'!$F$58/'MMA Rev-Exp Region 11'!$F$9, 0)","v":{"v":0,"d":"$0.00"}},{"$f":"IFERROR('MMA Rev-Exp Region 11'!$G$58/'MMA Rev-Exp Region 11'!$G$9, 0)","v":{"v":0,"d":"$0.00"}},{"$f":"IFERROR('MMA Rev-Exp Region 11'!$H$58/'MMA Rev-Exp Region 11'!$H$9, 0)","v":{"v":0,"d":"$0.00"}},{"$f":"IFERROR('MMA Rev-Exp Region 11'!$I$58/'MMA Rev-Exp Region 11'!$I$9, 0)","v":{"v":0,"d":"$0.00"}},{"$f":"IFERROR('MMA Rev-Exp Region 11'!$J$58/'MMA Rev-Exp Region 11'!$J$9, 0)","v":{"v":0,"d":"$0.00"}},{"$f":"IFERROR('MMA Rev-Exp Region 11'!$K$58/'MMA Rev-Exp Region 11'!$K$9, 0)","v":{"v":0,"d":"$0.00"}},{"$f":"IFERROR('MMA Rev-Exp Region 11'!$L$58/'MMA Rev-Exp Region 11'!$L$9, 0)","v":{"v":0,"d":"$0.00"}},{"$f":"IFERROR('MMA Rev-Exp Region 11'!$M$58/'MMA Rev-Exp Region 11'!$M$9, 0)","v":{"v":0,"d":"$0.00"}},{"$f":"IFERROR('MMA Rev-Exp Region 11'!$N$58/'MMA Rev-Exp Region 11'!$N$9, 0)","v":{"v":0,"d":"$0.00"}}]
["MMA",null,null,2016,"2016-12-31","Q1","2017-03-31","Region 11","Operating Expense","Medical Benefits Expense","Pharmacy Services","8.4","Prescription Drug Rebates ",{"$f":"IFERROR('MMA Rev-Exp Region 11'!$D$59/'MMA Rev-Exp Region 11'!$D$9, 0)","v":{"v":0,"d":"$0.00"}},{"$f":"IFERROR('MMA Rev-Exp Region 11'!$E$59/'MMA Rev-Exp Region 11'!$E$9, 0)","v":{"v":0,"d":"$0.00"}},{"$f":"IFERROR('MMA Rev-Exp Region 11'!$F$59/'MMA Rev-Exp Region 11'!$F$9, 0)","v":{"v":0,"d":"$0.00"}},{"$f":"IFERROR('MMA Rev-Exp Region 11'!$G$59/'MMA Rev-Exp Region 11'!$G$9, 0)","v":{"v":0,"d":"$0.00"}},{"$f":"IFERROR('MMA Rev-Exp Region 11'!$H$59/'MMA Rev-Exp Region 11'!$H$9, 0)","v":{"v":0,"d":"$0.00"}},{"$f":"IFERROR('MMA Rev-Exp Region 11'!$I$59/'MMA Rev-Exp Region 11'!$I$9, 0)","v":{"v":0,"d":"$0.00"}},{"$f":"IFERROR('MMA Rev-Exp Region 11'!$J$59/'MMA Rev-Exp Region 11'!$J$9, 0)","v":{"v":0,"d":"$0.00"}},{"$f":"IFERROR('MMA Rev-Exp Region 11'!$K$59/'MMA Rev-Exp Region 11'!$K$9, 0)","v":{"v":0,"d":"$0.00"}},{"$f":"IFERROR('MMA Rev-Exp Region 11'!$L$59/'MMA Rev-Exp Region 11'!$L$9, 0)","v":{"v":0,"d":"$0.00"}},{"$f":"IFERROR('MMA Rev-Exp Region 11'!$M$59/'MMA Rev-Exp Region 11'!$M$9, 0)","v":{"v":0,"d":"$0.00"}},{"$f":"IFERROR('MMA Rev-Exp Region 11'!$N$59/'MMA Rev-Exp Region 11'!$N$9, 0)","v":{"v":0,"d":"$0.00"}}]
["MMA",null,null,2016,"2016-12-31","Q1","2017-03-31","Region 11","Operating Expense","Medical Benefits Expense","Pharmacy Services","8.5","Ending accrual for Rebates receivable",{"$f":"IFERROR('MMA Rev-Exp Region 11'!$D$60/'MMA Rev-Exp Region 11'!$D$9, 0)","v":{"v":0,"d":"$0.00"}},{"$f":"IFERROR('MMA Rev-Exp Region 11'!$E$60/'MMA Rev-Exp Region 11'!$E$9, 0)","v":{"v":0,"d":"$0.00"}},{"$f":"IFERROR('MMA Rev-Exp Region 11'!$F$60/'MMA Rev-Exp Region 11'!$F$9, 0)","v":{"v":0,"d":"$0.00"}},{"$f":"IFERROR('MMA Rev-Exp Region 11'!$G$60/'MMA Rev-Exp Region 11'!$G$9, 0)","v":{"v":0,"d":"$0.00"}},{"$f":"IFERROR('MMA Rev-Exp Region 11'!$H$60/'MMA Rev-Exp Region 11'!$H$9, 0)","v":{"v":0,"d":"$0.00"}},{"$f":"IFERROR('MMA Rev-Exp Region 11'!$I$60/'MMA Rev-Exp Region 11'!$I$9, 0)","v":{"v":0,"d":"$0.00"}},{"$f":"IFERROR('MMA Rev-Exp Region 11'!$J$60/'MMA Rev-Exp Region 11'!$J$9, 0)","v":{"v":0,"d":"$0.00"}},{"$f":"IFERROR('MMA Rev-Exp Region 11'!$K$60/'MMA Rev-Exp Region 11'!$K$9, 0)","v":{"v":0,"d":"$0.00"}},{"$f":"IFERROR('MMA Rev-Exp Region 11'!$L$60/'MMA Rev-Exp Region 11'!$L$9, 0)","v":{"v":0,"d":"$0.00"}},{"$f":"IFERROR('MMA Rev-Exp Region 11'!$M$60/'MMA Rev-Exp Region 11'!$M$9, 0)","v":{"v":0,"d":"$0.00"}},{"$f":"IFERROR('MMA Rev-Exp Region 11'!$N$60/'MMA Rev-Exp Region 11'!$N$9, 0)","v":{"v":0,"d":"$0.00"}}]
["MMA",null,null,2016,"2016-12-31","Q1","2017-03-31","Region 11","Operating Expense","Medical Benefits Expense","Pharmacy Services","8.6","Prescription Drugs Subcapitation",{"$f":"IFERROR('MMA Rev-Exp Region 11'!$D$61/'MMA Rev-Exp Region 11'!$D$9, 0)","v":{"v":0,"d":"$0.00"}},{"$f":"IFERROR('MMA Rev-Exp Region 11'!$E$61/'MMA Rev-Exp Region 11'!$E$9, 0)","v":{"v":0,"d":"$0.00"}},{"$f":"IFERROR('MMA Rev-Exp Region 11'!$F$61/'MMA Rev-Exp Region 11'!$F$9, 0)","v":{"v":0,"d":"$0.00"}},{"$f":"IFERROR('MMA Rev-Exp Region 11'!$G$61/'MMA Rev-Exp Region 11'!$G$9, 0)","v":{"v":0,"d":"$0.00"}},{"$f":"IFERROR('MMA Rev-Exp Region 11'!$H$61/'MMA Rev-Exp Region 11'!$H$9, 0)","v":{"v":0,"d":"$0.00"}},{"$f":"IFERROR('MMA Rev-Exp Region 11'!$I$61/'MMA Rev-Exp Region 11'!$I$9, 0)","v":{"v":0,"d":"$0.00"}},{"$f":"IFERROR('MMA Rev-Exp Region 11'!$J$61/'MMA Rev-Exp Region 11'!$J$9, 0)","v":{"v":0,"d":"$0.00"}},{"$f":"IFERROR('MMA Rev-Exp Region 11'!$K$61/'MMA Rev-Exp Region 11'!$K$9, 0)","v":{"v":0,"d":"$0.00"}},{"$f":"IFERROR('MMA Rev-Exp Region 11'!$L$61/'MMA Rev-Exp Region 11'!$L$9, 0)","v":{"v":0,"d":"$0.00"}},{"$f":"IFERROR('MMA Rev-Exp Region 11'!$M$61/'MMA Rev-Exp Region 11'!$M$9, 0)","v":{"v":0,"d":"$0.00"}},{"$f":"IFERROR('MMA Rev-Exp Region 11'!$N$61/'MMA Rev-Exp Region 11'!$N$9, 0)","v":{"v":0,"d":"$0.00"}}]
["MMA",null,null,2016,"2016-12-31","Q1","2017-03-31","Region 11","Operating Expense","Medical Benefits Expense","Pharmacy Services","8.7","Prescription Drug Settlements",{"$f":"IFERROR('MMA Rev-Exp Region 11'!$D$62/'MMA Rev-Exp Region 11'!$D$9, 0)","v":{"v":0,"d":"$0.00"}},{"$f":"IFERROR('MMA Rev-Exp Region 11'!$E$62/'MMA Rev-Exp Region 11'!$E$9, 0)","v":{"v":0,"d":"$0.00"}},{"$f":"IFERROR('MMA Rev-Exp Region 11'!$F$62/'MMA Rev-Exp Region 11'!$F$9, 0)","v":{"v":0,"d":"$0.00"}},{"$f":"IFERROR('MMA Rev-Exp Region 11'!$G$62/'MMA Rev-Exp Region 11'!$G$9, 0)","v":{"v":0,"d":"$0.00"}},{"$f":"IFERROR('MMA Rev-Exp Region 11'!$H$62/'MMA Rev-Exp Region 11'!$H$9, 0)","v":{"v":0,"d":"$0.00"}},{"$f":"IFERROR('MMA Rev-Exp Region 11'!$I$62/'MMA Rev-Exp Region 11'!$I$9, 0)","v":{"v":0,"d":"$0.00"}},{"$f":"IFERROR('MMA Rev-Exp Region 11'!$J$62/'MMA Rev-Exp Region 11'!$J$9, 0)","v":{"v":0,"d":"$0.00"}},{"$f":"IFERROR('MMA Rev-Exp Region 11'!$K$62/'MMA Rev-Exp Region 11'!$K$9, 0)","v":{"v":0,"d":"$0.00"}},{"$f":"IFERROR('MMA Rev-Exp Region 11'!$L$62/'MMA Rev-Exp Region 11'!$L$9, 0)","v":{"v":0,"d":"$0.00"}},{"$f":"IFERROR('MMA Rev-Exp Region 11'!$M$62/'MMA Rev-Exp Region 11'!$M$9, 0)","v":{"v":0,"d":"$0.00"}},{"$f":"IFERROR('MMA Rev-Exp Region 11'!$N$62/'MMA Rev-Exp Region 11'!$N$9, 0)","v":{"v":0,"d":"$0.00"}}]
["MMA",null,null,2016,"2016-12-31","Q1","2017-03-31","Region 11","Operating Expense","Medical Benefits Expense","Other MMA Services",9.1,"Home Health, Private Duty Nursing, Personal Care FFS",{"$f":"IFERROR('MMA Rev-Exp Region 11'!$D$64/'MMA Rev-Exp Region 11'!$D$9, 0)","v":{"v":0,"d":"$0.00"}},{"$f":"IFERROR('MMA Rev-Exp Region 11'!$E$64/'MMA Rev-Exp Region 11'!$E$9, 0)","v":{"v":0,"d":"$0.00"}},{"$f":"IFERROR('MMA Rev-Exp Region 11'!$F$64/'MMA Rev-Exp Region 11'!$F$9, 0)","v":{"v":0,"d":"$0.00"}},{"$f":"IFERROR('MMA Rev-Exp Region 11'!$G$64/'MMA Rev-Exp Region 11'!$G$9, 0)","v":{"v":0,"d":"$0.00"}},{"$f":"IFERROR('MMA Rev-Exp Region 11'!$H$64/'MMA Rev-Exp Region 11'!$H$9, 0)","v":{"v":0,"d":"$0.00"}},{"$f":"IFERROR('MMA Rev-Exp Region 11'!$I$64/'MMA Rev-Exp Region 11'!$I$9, 0)","v":{"v":0,"d":"$0.00"}},{"$f":"IFERROR('MMA Rev-Exp Region 11'!$J$64/'MMA Rev-Exp Region 11'!$J$9, 0)","v":{"v":0,"d":"$0.00"}},{"$f":"IFERROR('MMA Rev-Exp Region 11'!$K$64/'MMA Rev-Exp Region 11'!$K$9, 0)","v":{"v":0,"d":"$0.00"}},{"$f":"IFERROR('MMA Rev-Exp Region 11'!$L$64/'MMA Rev-Exp Region 11'!$L$9, 0)","v":{"v":0,"d":"$0.00"}},{"$f":"IFERROR('MMA Rev-Exp Region 11'!$M$64/'MMA Rev-Exp Region 11'!$M$9, 0)","v":{"v":0,"d":"$0.00"}},{"$f":"IFERROR('MMA Rev-Exp Region 11'!$N$64/'MMA Rev-Exp Region 11'!$N$9, 0)","v":{"v":0,"d":"$0.00"}}]
["MMA",null,null,2016,"2016-12-31","Q1","2017-03-31","Region 11","Operating Expense","Medical Benefits Expense","Other MMA Services","9.2","Hospice FFS",{"$f":"IFERROR('MMA Rev-Exp Region 11'!$D$65/'MMA Rev-Exp Region 11'!$D$9, 0)","v":{"v":0,"d":"$0.00"}},{"$f":"IFERROR('MMA Rev-Exp Region 11'!$E$65/'MMA Rev-Exp Region 11'!$E$9, 0)","v":{"v":0,"d":"$0.00"}},{"$f":"IFERROR('MMA Rev-Exp Region 11'!$F$65/'MMA Rev-Exp Region 11'!$F$9, 0)","v":{"v":0,"d":"$0.00"}},{"$f":"IFERROR('MMA Rev-Exp Region 11'!$G$65/'MMA Rev-Exp Region 11'!$G$9, 0)","v":{"v":0,"d":"$0.00"}},{"$f":"IFERROR('MMA Rev-Exp Region 11'!$H$65/'MMA Rev-Exp Region 11'!$H$9, 0)","v":{"v":0,"d":"$0.00"}},{"$f":"IFERROR('MMA Rev-Exp Region 11'!$I$65/'MMA Rev-Exp Region 11'!$I$9, 0)","v":{"v":0,"d":"$0.00"}},{"$f":"IFERROR('MMA Rev-Exp Region 11'!$J$65/'MMA Rev-Exp Region 11'!$J$9, 0)","v":{"v":0,"d":"$0.00"}},{"$f":"IFERROR('MMA Rev-Exp Region 11'!$K$65/'MMA Rev-Exp Region 11'!$K$9, 0)","v":{"v":0,"d":"$0.00"}},{"$f":"IFERROR('MMA Rev-Exp Region 11'!$L$65/'MMA Rev-Exp Region 11'!$L$9, 0)","v":{"v":0,"d":"$0.00"}},{"$f":"IFERROR('MMA Rev-Exp Region 11'!$M$65/'MMA Rev-Exp Region 11'!$M$9, 0)","v":{"v":0,"d":"$0.00"}},{"$f":"IFERROR('MMA Rev-Exp Region 11'!$N$65/'MMA Rev-Exp Region 11'!$N$9, 0)","v":{"v":0,"d":"$0.00"}}]
["MMA",null,null,2016,"2016-12-31","Q1","2017-03-31","Region 11","Operating Expense","Medical Benefits Expense","Other MMA Services","9.3","DME FFS",{"$f":"IFERROR('MMA Rev-Exp Region 11'!$D$66/'MMA Rev-Exp Region 11'!$D$9, 0)","v":{"v":0,"d":"$0.00"}},{"$f":"IFERROR('MMA Rev-Exp Region 11'!$E$66/'MMA Rev-Exp Region 11'!$E$9, 0)","v":{"v":0,"d":"$0.00"}},{"$f":"IFERROR('MMA Rev-Exp Region 11'!$F$66/'MMA Rev-Exp Region 11'!$F$9, 0)","v":{"v":0,"d":"$0.00"}},{"$f":"IFERROR('MMA Rev-Exp Region 11'!$G$66/'MMA Rev-Exp Region 11'!$G$9, 0)","v":{"v":0,"d":"$0.00"}},{"$f":"IFERROR('MMA Rev-Exp Region 11'!$H$66/'MMA Rev-Exp Region 11'!$H$9, 0)","v":{"v":0,"d":"$0.00"}},{"$f":"IFERROR('MMA Rev-Exp Region 11'!$I$66/'MMA Rev-Exp Region 11'!$I$9, 0)","v":{"v":0,"d":"$0.00"}},{"$f":"IFERROR('MMA Rev-Exp Region 11'!$J$66/'MMA Rev-Exp Region 11'!$J$9, 0)","v":{"v":0,"d":"$0.00"}},{"$f":"IFERROR('MMA Rev-Exp Region 11'!$K$66/'MMA Rev-Exp Region 11'!$K$9, 0)","v":{"v":0,"d":"$0.00"}},{"$f":"IFERROR('MMA Rev-Exp Region 11'!$L$66/'MMA Rev-Exp Region 11'!$L$9, 0)","v":{"v":0,"d":"$0.00"}},{"$f":"IFERROR('MMA Rev-Exp Region 11'!$M$66/'MMA Rev-Exp Region 11'!$M$9, 0)","v":{"v":0,"d":"$0.00"}},{"$f":"IFERROR('MMA Rev-Exp Region 11'!$N$66/'MMA Rev-Exp Region 11'!$N$9, 0)","v":{"v":0,"d":"$0.00"}}]
["MMA",null,null,2016,"2016-12-31","Q1","2017-03-31","Region 11","Operating Expense","Medical Benefits Expense","Other MMA Services","9.4","Other State Plan Services FFS",{"$f":"IFERROR('MMA Rev-Exp Region 11'!$D$67/'MMA Rev-Exp Region 11'!$D$9, 0)","v":{"v":0,"d":"$0.00"}},{"$f":"IFERROR('MMA Rev-Exp Region 11'!$E$67/'MMA Rev-Exp Region 11'!$E$9, 0)","v":{"v":0,"d":"$0.00"}},{"$f":"IFERROR('MMA Rev-Exp Region 11'!$F$67/'MMA Rev-Exp Region 11'!$F$9, 0)","v":{"v":0,"d":"$0.00"}},{"$f":"IFERROR('MMA Rev-Exp Region 11'!$G$67/'MMA Rev-Exp Region 11'!$G$9, 0)","v":{"v":0,"d":"$0.00"}},{"$f":"IFERROR('MMA Rev-Exp Region 11'!$H$67/'MMA Rev-Exp Region 11'!$H$9, 0)","v":{"v":0,"d":"$0.00"}},{"$f":"IFERROR('MMA Rev-Exp Region 11'!$I$67/'MMA Rev-Exp Region 11'!$I$9, 0)","v":{"v":0,"d":"$0.00"}},{"$f":"IFERROR('MMA Rev-Exp Region 11'!$J$67/'MMA Rev-Exp Region 11'!$J$9, 0)","v":{"v":0,"d":"$0.00"}},{"$f":"IFERROR('MMA Rev-Exp Region 11'!$K$67/'MMA Rev-Exp Region 11'!$K$9, 0)","v":{"v":0,"d":"$0.00"}},{"$f":"IFERROR('MMA Rev-Exp Region 11'!$L$67/'MMA Rev-Exp Region 11'!$L$9, 0)","v":{"v":0,"d":"$0.00"}},{"$f":"IFERROR('MMA Rev-Exp Region 11'!$M$67/'MMA Rev-Exp Region 11'!$M$9, 0)","v":{"v":0,"d":"$0.00"}},{"$f":"IFERROR('MMA Rev-Exp Region 11'!$N$67/'MMA Rev-Exp Region 11'!$N$9, 0)","v":{"v":0,"d":"$0.00"}}]
["MMA",null,null,2016,"2016-12-31","Q1","2017-03-31","Region 11","Operating Expense","Medical Benefits Expense","Other MMA Services","9.5","Other Services Subcapitation",{"$f":"IFERROR('MMA Rev-Exp Region 11'!$D$68/'MMA Rev-Exp Region 11'!$D$9, 0)","v":{"v":0,"d":"$0.00"}},{"$f":"IFERROR('MMA Rev-Exp Region 11'!$E$68/'MMA Rev-Exp Region 11'!$E$9, 0)","v":{"v":0,"d":"$0.00"}},{"$f":"IFERROR('MMA Rev-Exp Region 11'!$F$68/'MMA Rev-Exp Region 11'!$F$9, 0)","v":{"v":0,"d":"$0.00"}},{"$f":"IFERROR('MMA Rev-Exp Region 11'!$G$68/'MMA Rev-Exp Region 11'!$G$9, 0)","v":{"v":0,"d":"$0.00"}},{"$f":"IFERROR('MMA Rev-Exp Region 11'!$H$68/'MMA Rev-Exp Region 11'!$H$9, 0)","v":{"v":0,"d":"$0.00"}},{"$f":"IFERROR('MMA Rev-Exp Region 11'!$I$68/'MMA Rev-Exp Region 11'!$I$9, 0)","v":{"v":0,"d":"$0.00"}},{"$f":"IFERROR('MMA Rev-Exp Region 11'!$J$68/'MMA Rev-Exp Region 11'!$J$9, 0)","v":{"v":0,"d":"$0.00"}},{"$f":"IFERROR('MMA Rev-Exp Region 11'!$K$68/'MMA Rev-Exp Region 11'!$K$9, 0)","v":{"v":0,"d":"$0.00"}},{"$f":"IFERROR('MMA Rev-Exp Region 11'!$L$68/'MMA Rev-Exp Region 11'!$L$9, 0)","v":{"v":0,"d":"$0.00"}},{"$f":"IFERROR('MMA Rev-Exp Region 11'!$M$68/'MMA Rev-Exp Region 11'!$M$9, 0)","v":{"v":0,"d":"$0.00"}},{"$f":"IFERROR('MMA Rev-Exp Region 11'!$N$68/'MMA Rev-Exp Region 11'!$N$9, 0)","v":{"v":0,"d":"$0.00"}}]
["MMA",null,null,2016,"2016-12-31","Q1","2017-03-31","Region 11","Operating Expense","Medical Benefits Expense","Other MMA Services","9.6","Ending IBNP for Other Services",{"$f":"IFERROR('MMA Rev-Exp Region 11'!$D$69/'MMA Rev-Exp Region 11'!$D$9, 0)","v":{"v":0,"d":"$0.00"}},{"$f":"IFERROR('MMA Rev-Exp Region 11'!$E$69/'MMA Rev-Exp Region 11'!$E$9, 0)","v":{"v":0,"d":"$0.00"}},{"$f":"IFERROR('MMA Rev-Exp Region 11'!$F$69/'MMA Rev-Exp Region 11'!$F$9, 0)","v":{"v":0,"d":"$0.00"}},{"$f":"IFERROR('MMA Rev-Exp Region 11'!$G$69/'MMA Rev-Exp Region 11'!$G$9, 0)","v":{"v":0,"d":"$0.00"}},{"$f":"IFERROR('MMA Rev-Exp Region 11'!$H$69/'MMA Rev-Exp Region 11'!$H$9, 0)","v":{"v":0,"d":"$0.00"}},{"$f":"IFERROR('MMA Rev-Exp Region 11'!$I$69/'MMA Rev-Exp Region 11'!$I$9, 0)","v":{"v":0,"d":"$0.00"}},{"$f":"IFERROR('MMA Rev-Exp Region 11'!$J$69/'MMA Rev-Exp Region 11'!$J$9, 0)","v":{"v":0,"d":"$0.00"}},{"$f":"IFERROR('MMA Rev-Exp Region 11'!$K$69/'MMA Rev-Exp Region 11'!$K$9, 0)","v":{"v":0,"d":"$0.00"}},{"$f":"IFERROR('MMA Rev-Exp Region 11'!$L$69/'MMA Rev-Exp Region 11'!$L$9, 0)","v":{"v":0,"d":"$0.00"}},{"$f":"IFERROR('MMA Rev-Exp Region 11'!$M$69/'MMA Rev-Exp Region 11'!$M$9, 0)","v":{"v":0,"d":"$0.00"}},{"$f":"IFERROR('MMA Rev-Exp Region 11'!$N$69/'MMA Rev-Exp Region 11'!$N$9, 0)","v":{"v":0,"d":"$0.00"}}]
["MMA",null,null,2016,"2016-12-31","Q1","2017-03-31","Region 11","Operating Expense","Medical Benefits Expense","Other MMA Services","9.7","Other Services Settlements",{"$f":"IFERROR('MMA Rev-Exp Region 11'!$D$70/'MMA Rev-Exp Region 11'!$D$9, 0)","v":{"v":0,"d":"$0.00"}},{"$f":"IFERROR('MMA Rev-Exp Region 11'!$E$70/'MMA Rev-Exp Region 11'!$E$9, 0)","v":{"v":0,"d":"$0.00"}},{"$f":"IFERROR('MMA Rev-Exp Region 11'!$F$70/'MMA Rev-Exp Region 11'!$F$9, 0)","v":{"v":0,"d":"$0.00"}},{"$f":"IFERROR('MMA Rev-Exp Region 11'!$G$70/'MMA Rev-Exp Region 11'!$G$9, 0)","v":{"v":0,"d":"$0.00"}},{"$f":"IFERROR('MMA Rev-Exp Region 11'!$H$70/'MMA Rev-Exp Region 11'!$H$9, 0)","v":{"v":0,"d":"$0.00"}},{"$f":"IFERROR('MMA Rev-Exp Region 11'!$I$70/'MMA Rev-Exp Region 11'!$I$9, 0)","v":{"v":0,"d":"$0.00"}},{"$f":"IFERROR('MMA Rev-Exp Region 11'!$J$70/'MMA Rev-Exp Region 11'!$J$9, 0)","v":{"v":0,"d":"$0.00"}},{"$f":"IFERROR('MMA Rev-Exp Region 11'!$K$70/'MMA Rev-Exp Region 11'!$K$9, 0)","v":{"v":0,"d":"$0.00"}},{"$f":"IFERROR('MMA Rev-Exp Region 11'!$L$70/'MMA Rev-Exp Region 11'!$L$9, 0)","v":{"v":0,"d":"$0.00"}},{"$f":"IFERROR('MMA Rev-Exp Region 11'!$M$70/'MMA Rev-Exp Region 11'!$M$9, 0)","v":{"v":0,"d":"$0.00"}},{"$f":"IFERROR('MMA Rev-Exp Region 11'!$N$70/'MMA Rev-Exp Region 11'!$N$9, 0)","v":{"v":0,"d":"$0.00"}}]
["MMA",null,null,2016,"2016-12-31","Q1","2017-03-31","Region 11","Operating Expense","Medical Benefits Expense","Expanded Benefits","10.1","Expanded Benefits FFS",{"$f":"IFERROR('MMA Rev-Exp Region 11'!$D$72/'MMA Rev-Exp Region 11'!$D$9, 0)","v":{"v":0,"d":"$0.00"}},{"$f":"IFERROR('MMA Rev-Exp Region 11'!$E$72/'MMA Rev-Exp Region 11'!$E$9, 0)","v":{"v":0,"d":"$0.00"}},{"$f":"IFERROR('MMA Rev-Exp Region 11'!$F$72/'MMA Rev-Exp Region 11'!$F$9, 0)","v":{"v":0,"d":"$0.00"}},{"$f":"IFERROR('MMA Rev-Exp Region 11'!$G$72/'MMA Rev-Exp Region 11'!$G$9, 0)","v":{"v":0,"d":"$0.00"}},{"$f":"IFERROR('MMA Rev-Exp Region 11'!$H$72/'MMA Rev-Exp Region 11'!$H$9, 0)","v":{"v":0,"d":"$0.00"}},{"$f":"IFERROR('MMA Rev-Exp Region 11'!$I$72/'MMA Rev-Exp Region 11'!$I$9, 0)","v":{"v":0,"d":"$0.00"}},{"$f":"IFERROR('MMA Rev-Exp Region 11'!$J$72/'MMA Rev-Exp Region 11'!$J$9, 0)","v":{"v":0,"d":"$0.00"}},{"$f":"IFERROR('MMA Rev-Exp Region 11'!$K$72/'MMA Rev-Exp Region 11'!$K$9, 0)","v":{"v":0,"d":"$0.00"}},{"$f":"IFERROR('MMA Rev-Exp Region 11'!$L$72/'MMA Rev-Exp Region 11'!$L$9, 0)","v":{"v":0,"d":"$0.00"}},{"$f":"IFERROR('MMA Rev-Exp Region 11'!$M$72/'MMA Rev-Exp Region 11'!$M$9, 0)","v":{"v":0,"d":"$0.00"}},{"$f":"IFERROR('MMA Rev-Exp Region 11'!$N$72/'MMA Rev-Exp Region 11'!$N$9, 0)","v":{"v":0,"d":"$0.00"}}]
["MMA",null,null,2016,"2016-12-31","Q1","2017-03-31","Region 11","Operating Expense","Medical Benefits Expense","Expanded Benefits","10.2","Expanded benefits Subcapitation",{"$f":"IFERROR('MMA Rev-Exp Region 11'!$D$73/'MMA Rev-Exp Region 11'!$D$9, 0)","v":{"v":0,"d":"$0.00"}},{"$f":"IFERROR('MMA Rev-Exp Region 11'!$E$73/'MMA Rev-Exp Region 11'!$E$9, 0)","v":{"v":0,"d":"$0.00"}},{"$f":"IFERROR('MMA Rev-Exp Region 11'!$F$73/'MMA Rev-Exp Region 11'!$F$9, 0)","v":{"v":0,"d":"$0.00"}},{"$f":"IFERROR('MMA Rev-Exp Region 11'!$G$73/'MMA Rev-Exp Region 11'!$G$9, 0)","v":{"v":0,"d":"$0.00"}},{"$f":"IFERROR('MMA Rev-Exp Region 11'!$H$73/'MMA Rev-Exp Region 11'!$H$9, 0)","v":{"v":0,"d":"$0.00"}},{"$f":"IFERROR('MMA Rev-Exp Region 11'!$I$73/'MMA Rev-Exp Region 11'!$I$9, 0)","v":{"v":0,"d":"$0.00"}},{"$f":"IFERROR('MMA Rev-Exp Region 11'!$J$73/'MMA Rev-Exp Region 11'!$J$9, 0)","v":{"v":0,"d":"$0.00"}},{"$f":"IFERROR('MMA Rev-Exp Region 11'!$K$73/'MMA Rev-Exp Region 11'!$K$9, 0)","v":{"v":0,"d":"$0.00"}},{"$f":"IFERROR('MMA Rev-Exp Region 11'!$L$73/'MMA Rev-Exp Region 11'!$L$9, 0)","v":{"v":0,"d":"$0.00"}},{"$f":"IFERROR('MMA Rev-Exp Region 11'!$M$73/'MMA Rev-Exp Region 11'!$M$9, 0)","v":{"v":0,"d":"$0.00"}},{"$f":"IFERROR('MMA Rev-Exp Region 11'!$N$73/'MMA Rev-Exp Region 11'!$N$9, 0)","v":{"v":0,"d":"$0.00"}}]
["MMA",null,null,2016,"2016-12-31","Q1","2017-03-31","Region 11","Operating Expense","Medical Benefits Expense","Expanded Benefits","10.3","Ending IBNP for Expanded Benefits",{"$f":"IFERROR('MMA Rev-Exp Region 11'!$D$74/'MMA Rev-Exp Region 11'!$D$9, 0)","v":{"v":0,"d":"$0.00"}},{"$f":"IFERROR('MMA Rev-Exp Region 11'!$E$74/'MMA Rev-Exp Region 11'!$E$9, 0)","v":{"v":0,"d":"$0.00"}},{"$f":"IFERROR('MMA Rev-Exp Region 11'!$F$74/'MMA Rev-Exp Region 11'!$F$9, 0)","v":{"v":0,"d":"$0.00"}},{"$f":"IFERROR('MMA Rev-Exp Region 11'!$G$74/'MMA Rev-Exp Region 11'!$G$9, 0)","v":{"v":0,"d":"$0.00"}},{"$f":"IFERROR('MMA Rev-Exp Region 11'!$H$74/'MMA Rev-Exp Region 11'!$H$9, 0)","v":{"v":0,"d":"$0.00"}},{"$f":"IFERROR('MMA Rev-Exp Region 11'!$I$74/'MMA Rev-Exp Region 11'!$I$9, 0)","v":{"v":0,"d":"$0.00"}},{"$f":"IFERROR('MMA Rev-Exp Region 11'!$J$74/'MMA Rev-Exp Region 11'!$J$9, 0)","v":{"v":0,"d":"$0.00"}},{"$f":"IFERROR('MMA Rev-Exp Region 11'!$K$74/'MMA Rev-Exp Region 11'!$K$9, 0)","v":{"v":0,"d":"$0.00"}},{"$f":"IFERROR('MMA Rev-Exp Region 11'!$L$74/'MMA Rev-Exp Region 11'!$L$9, 0)","v":{"v":0,"d":"$0.00"}},{"$f":"IFERROR('MMA Rev-Exp Region 11'!$M$74/'MMA Rev-Exp Region 11'!$M$9, 0)","v":{"v":0,"d":"$0.00"}},{"$f":"IFERROR('MMA Rev-Exp Region 11'!$N$74/'MMA Rev-Exp Region 11'!$N$9, 0)","v":{"v":0,"d":"$0.00"}}]
["MMA",null,null,2016,"2016-12-31","Q1","2017-03-31","Region 11","Operating Expense","Medical Benefits Expense","Expanded Benefits","10.4","Expanded Benefits Settlements",{"$f":"IFERROR('MMA Rev-Exp Region 11'!$D$75/'MMA Rev-Exp Region 11'!$D$9, 0)","v":{"v":0,"d":"$0.00"}},{"$f":"IFERROR('MMA Rev-Exp Region 11'!$E$75/'MMA Rev-Exp Region 11'!$E$9, 0)","v":{"v":0,"d":"$0.00"}},{"$f":"IFERROR('MMA Rev-Exp Region 11'!$F$75/'MMA Rev-Exp Region 11'!$F$9, 0)","v":{"v":0,"d":"$0.00"}},{"$f":"IFERROR('MMA Rev-Exp Region 11'!$G$75/'MMA Rev-Exp Region 11'!$G$9, 0)","v":{"v":0,"d":"$0.00"}},{"$f":"IFERROR('MMA Rev-Exp Region 11'!$H$75/'MMA Rev-Exp Region 11'!$H$9, 0)","v":{"v":0,"d":"$0.00"}},{"$f":"IFERROR('MMA Rev-Exp Region 11'!$I$75/'MMA Rev-Exp Region 11'!$I$9, 0)","v":{"v":0,"d":"$0.00"}},{"$f":"IFERROR('MMA Rev-Exp Region 11'!$J$75/'MMA Rev-Exp Region 11'!$J$9, 0)","v":{"v":0,"d":"$0.00"}},{"$f":"IFERROR('MMA Rev-Exp Region 11'!$K$75/'MMA Rev-Exp Region 11'!$K$9, 0)","v":{"v":0,"d":"$0.00"}},{"$f":"IFERROR('MMA Rev-Exp Region 11'!$L$75/'MMA Rev-Exp Region 11'!$L$9, 0)","v":{"v":0,"d":"$0.00"}},{"$f":"IFERROR('MMA Rev-Exp Region 11'!$M$75/'MMA Rev-Exp Region 11'!$M$9, 0)","v":{"v":0,"d":"$0.00"}},{"$f":"IFERROR('MMA Rev-Exp Region 11'!$N$75/'MMA Rev-Exp Region 11'!$N$9, 0)","v":{"v":0,"d":"$0.00"}}]
["MMA",null,null,2016,"2016-12-31","Q1","2017-03-31","Region 11","Operating Expense","Medical Benefits Expense","Other Medical","11.5","TPL & Fraud/Abuse Recoveries",{"$f":"IFERROR('MMA Rev-Exp Region 11'!$D$81/'MMA Rev-Exp Region 11'!$D$9, 0)","v":{"v":0,"d":"$0.00"}},{"$f":"IFERROR('MMA Rev-Exp Region 11'!$E$81/'MMA Rev-Exp Region 11'!$E$9, 0)","v":{"v":0,"d":"$0.00"}},{"$f":"IFERROR('MMA Rev-Exp Region 11'!$F$81/'MMA Rev-Exp Region 11'!$F$9, 0)","v":{"v":0,"d":"$0.00"}},{"$f":"IFERROR('MMA Rev-Exp Region 11'!$G$81/'MMA Rev-Exp Region 11'!$G$9, 0)","v":{"v":0,"d":"$0.00"}},{"$f":"IFERROR('MMA Rev-Exp Region 11'!$H$81/'MMA Rev-Exp Region 11'!$H$9, 0)","v":{"v":0,"d":"$0.00"}},{"$f":"IFERROR('MMA Rev-Exp Region 11'!$I$81/'MMA Rev-Exp Region 11'!$I$9, 0)","v":{"v":0,"d":"$0.00"}},{"$f":"IFERROR('MMA Rev-Exp Region 11'!$J$81/'MMA Rev-Exp Region 11'!$J$9, 0)","v":{"v":0,"d":"$0.00"}},{"$f":"IFERROR('MMA Rev-Exp Region 11'!$K$81/'MMA Rev-Exp Region 11'!$K$9, 0)","v":{"v":0,"d":"$0.00"}},{"$f":"IFERROR('MMA Rev-Exp Region 11'!$L$81/'MMA Rev-Exp Region 11'!$L$9, 0)","v":{"v":0,"d":"$0.00"}},{"$f":"IFERROR('MMA Rev-Exp Region 11'!$M$81/'MMA Rev-Exp Region 11'!$M$9, 0)","v":{"v":0,"d":"$0.00"}},{"$f":"IFERROR('MMA Rev-Exp Region 11'!$N$81/'MMA Rev-Exp Region 11'!$N$9, 0)","v":{"v":0,"d":"$0.00"}}]
["MMA",null,null,2016,"2016-12-31","Q1","2017-03-31","Region 11","Operating Expense","Medical Benefits Expense","Other Medical","11.6.1","Premium Deficiency Reserve",{"$f":"IFERROR('MMA Rev-Exp Region 11'!$D$82/'MMA Rev-Exp Region 11'!$D$9, 0)","v":{"v":0,"d":"$0.00"}},{"$f":"IFERROR('MMA Rev-Exp Region 11'!$E$82/'MMA Rev-Exp Region 11'!$E$9, 0)","v":{"v":0,"d":"$0.00"}},{"$f":"IFERROR('MMA Rev-Exp Region 11'!$F$82/'MMA Rev-Exp Region 11'!$F$9, 0)","v":{"v":0,"d":"$0.00"}},{"$f":"IFERROR('MMA Rev-Exp Region 11'!$G$82/'MMA Rev-Exp Region 11'!$G$9, 0)","v":{"v":0,"d":"$0.00"}},{"$f":"IFERROR('MMA Rev-Exp Region 11'!$H$82/'MMA Rev-Exp Region 11'!$H$9, 0)","v":{"v":0,"d":"$0.00"}},{"$f":"IFERROR('MMA Rev-Exp Region 11'!$I$82/'MMA Rev-Exp Region 11'!$I$9, 0)","v":{"v":0,"d":"$0.00"}},{"$f":"IFERROR('MMA Rev-Exp Region 11'!$J$82/'MMA Rev-Exp Region 11'!$J$9, 0)","v":{"v":0,"d":"$0.00"}},{"$f":"IFERROR('MMA Rev-Exp Region 11'!$K$82/'MMA Rev-Exp Region 11'!$K$9, 0)","v":{"v":0,"d":"$0.00"}},{"$f":"IFERROR('MMA Rev-Exp Region 11'!$L$82/'MMA Rev-Exp Region 11'!$L$9, 0)","v":{"v":0,"d":"$0.00"}},{"$f":"IFERROR('MMA Rev-Exp Region 11'!$M$82/'MMA Rev-Exp Region 11'!$M$9, 0)","v":{"v":0,"d":"$0.00"}},{"$f":"IFERROR('MMA Rev-Exp Region 11'!$N$82/'MMA Rev-Exp Region 11'!$N$9, 0)","v":{"v":0,"d":"$0.00"}}]
["MMA",null,null,2016,"2016-12-31","Q1","2017-03-31","Region 11","Operating Expense","Medical Benefits Expense","Other Medical","11.8","Reinsurance Premiums",{"$f":"IFERROR('MMA Rev-Exp Region 11'!$D$84/'MMA Rev-Exp Region 11'!$D$9, 0)","v":{"v":0,"d":"$0.00"}},{"$f":"IFERROR('MMA Rev-Exp Region 11'!$E$84/'MMA Rev-Exp Region 11'!$E$9, 0)","v":{"v":0,"d":"$0.00"}},{"$f":"IFERROR('MMA Rev-Exp Region 11'!$F$84/'MMA Rev-Exp Region 11'!$F$9, 0)","v":{"v":0,"d":"$0.00"}},{"$f":"IFERROR('MMA Rev-Exp Region 11'!$G$84/'MMA Rev-Exp Region 11'!$G$9, 0)","v":{"v":0,"d":"$0.00"}},{"$f":"IFERROR('MMA Rev-Exp Region 11'!$H$84/'MMA Rev-Exp Region 11'!$H$9, 0)","v":{"v":0,"d":"$0.00"}},{"$f":"IFERROR('MMA Rev-Exp Region 11'!$I$84/'MMA Rev-Exp Region 11'!$I$9, 0)","v":{"v":0,"d":"$0.00"}},{"$f":"IFERROR('MMA Rev-Exp Region 11'!$J$84/'MMA Rev-Exp Region 11'!$J$9, 0)","v":{"v":0,"d":"$0.00"}},{"$f":"IFERROR('MMA Rev-Exp Region 11'!$K$84/'MMA Rev-Exp Region 11'!$K$9, 0)","v":{"v":0,"d":"$0.00"}},{"$f":"IFERROR('MMA Rev-Exp Region 11'!$L$84/'MMA Rev-Exp Region 11'!$L$9, 0)","v":{"v":0,"d":"$0.00"}},{"$f":"IFERROR('MMA Rev-Exp Region 11'!$M$84/'MMA Rev-Exp Region 11'!$M$9, 0)","v":{"v":0,"d":"$0.00"}},{"$f":"IFERROR('MMA Rev-Exp Region 11'!$N$84/'MMA Rev-Exp Region 11'!$N$9, 0)","v":{"v":0,"d":"$0.00"}}]
["MMA",null,null,2016,"2016-12-31","Q1","2017-03-31","Region 11","Operating Expense","Medical Benefits Expense","Other Medical","11.9","Reinsurance Recoveries",{"$f":"IFERROR('MMA Rev-Exp Region 11'!$D$85/'MMA Rev-Exp Region 11'!$D$9, 0)","v":{"v":0,"d":"$0.00"}},{"$f":"IFERROR('MMA Rev-Exp Region 11'!$E$85/'MMA Rev-Exp Region 11'!$E$9, 0)","v":{"v":0,"d":"$0.00"}},{"$f":"IFERROR('MMA Rev-Exp Region 11'!$F$85/'MMA Rev-Exp Region 11'!$F$9, 0)","v":{"v":0,"d":"$0.00"}},{"$f":"IFERROR('MMA Rev-Exp Region 11'!$G$85/'MMA Rev-Exp Region 11'!$G$9, 0)","v":{"v":0,"d":"$0.00"}},{"$f":"IFERROR('MMA Rev-Exp Region 11'!$H$85/'MMA Rev-Exp Region 11'!$H$9, 0)","v":{"v":0,"d":"$0.00"}},{"$f":"IFERROR('MMA Rev-Exp Region 11'!$I$85/'MMA Rev-Exp Region 11'!$I$9, 0)","v":{"v":0,"d":"$0.00"}},{"$f":"IFERROR('MMA Rev-Exp Region 11'!$J$85/'MMA Rev-Exp Region 11'!$J$9, 0)","v":{"v":0,"d":"$0.00"}},{"$f":"IFERROR('MMA Rev-Exp Region 11'!$K$85/'MMA Rev-Exp Region 11'!$K$9, 0)","v":{"v":0,"d":"$0.00"}},{"$f":"IFERROR('MMA Rev-Exp Region 11'!$L$85/'MMA Rev-Exp Region 11'!$L$9, 0)","v":{"v":0,"d":"$0.00"}},{"$f":"IFERROR('MMA Rev-Exp Region 11'!$M$85/'MMA Rev-Exp Region 11'!$M$9, 0)","v":{"v":0,"d":"$0.00"}},{"$f":"IFERROR('MMA Rev-Exp Region 11'!$N$85/'MMA Rev-Exp Region 11'!$N$9, 0)","v":{"v":0,"d":"$0.00"}}]
["MMA",null,null,2016,"2016-12-31","Q1","2017-03-31","Region 11","Operating Expense","Administrative Expense","Administrative","12.1","Salaries & Benefits",{"$f":"IFERROR('MMA Rev-Exp Region 11'!$D$90/'MMA Rev-Exp Region 11'!$D$9, 0)","v":{"v":0,"d":"$0.00"}},{"$f":"IFERROR('MMA Rev-Exp Region 11'!$E$90/'MMA Rev-Exp Region 11'!$D$9, 0)","v":{"v":0,"d":"$0.00"}},{"$f":"IFERROR('MMA Rev-Exp Region 11'!$F$90/'MMA Rev-Exp Region 11'!$D$9, 0)","v":{"v":0,"d":"$0.00"}},{"$f":"IFERROR('MMA Rev-Exp Region 11'!$G$90/'MMA Rev-Exp Region 11'!$G$9, 0)","v":{"v":0,"d":"$0.00"}},{"$f":"IFERROR('MMA Rev-Exp Region 11'!$H$90/'MMA Rev-Exp Region 11'!$H$9, 0)","v":{"v":0,"d":"$0.00"}},{"$f":"IFERROR('MMA Rev-Exp Region 11'!$I$90/'MMA Rev-Exp Region 11'!$I$9, 0)","v":{"v":0,"d":"$0.00"}},{"$f":"IFERROR('MMA Rev-Exp Region 11'!$J$90/'MMA Rev-Exp Region 11'!$J$9, 0)","v":{"v":0,"d":"$0.00"}},{"$f":"IFERROR('MMA Rev-Exp Region 11'!$K$90/'MMA Rev-Exp Region 11'!$K$9, 0)","v":{"v":0,"d":"$0.00"}},{"$f":"IFERROR('MMA Rev-Exp Region 11'!$L$90/'MMA Rev-Exp Region 11'!$L$9, 0)","v":{"v":0,"d":"$0.00"}},{"$f":"IFERROR('MMA Rev-Exp Region 11'!$M$90/'MMA Rev-Exp Region 11'!$M$9, 0)","v":{"v":0,"d":"$0.00"}},{"$f":"IFERROR('MMA Rev-Exp Region 11'!$N$90/'MMA Rev-Exp Region 11'!$N$9, 0)","v":{"v":0,"d":"$0.00"}}]
["MMA",null,null,2016,"2016-12-31","Q1","2017-03-31","Region 11","Operating Expense","Administrative Expense","Administrative","12.2","Administrative Services",{"$f":"IFERROR('MMA Rev-Exp Region 11'!$D$91/'MMA Rev-Exp Region 11'!$D$9, 0)","v":{"v":0,"d":"$0.00"}},{"$f":"IFERROR('MMA Rev-Exp Region 11'!$E$91/'MMA Rev-Exp Region 11'!$D$9, 0)","v":{"v":0,"d":"$0.00"}},{"$f":"IFERROR('MMA Rev-Exp Region 11'!$F$91/'MMA Rev-Exp Region 11'!$D$9, 0)","v":{"v":0,"d":"$0.00"}},{"$f":"IFERROR('MMA Rev-Exp Region 11'!$G$91/'MMA Rev-Exp Region 11'!$G$9, 0)","v":{"v":0,"d":"$0.00"}},{"$f":"IFERROR('MMA Rev-Exp Region 11'!$H$91/'MMA Rev-Exp Region 11'!$H$9, 0)","v":{"v":0,"d":"$0.00"}},{"$f":"IFERROR('MMA Rev-Exp Region 11'!$I$91/'MMA Rev-Exp Region 11'!$I$9, 0)","v":{"v":0,"d":"$0.00"}},{"$f":"IFERROR('MMA Rev-Exp Region 11'!$J$91/'MMA Rev-Exp Region 11'!$J$9, 0)","v":{"v":0,"d":"$0.00"}},{"$f":"IFERROR('MMA Rev-Exp Region 11'!$K$91/'MMA Rev-Exp Region 11'!$K$9, 0)","v":{"v":0,"d":"$0.00"}},{"$f":"IFERROR('MMA Rev-Exp Region 11'!$L$91/'MMA Rev-Exp Region 11'!$L$9, 0)","v":{"v":0,"d":"$0.00"}},{"$f":"IFERROR('MMA Rev-Exp Region 11'!$M$91/'MMA Rev-Exp Region 11'!$M$9, 0)","v":{"v":0,"d":"$0.00"}},{"$f":"IFERROR('MMA Rev-Exp Region 11'!$N$91/'MMA Rev-Exp Region 11'!$N$9, 0)","v":{"v":0,"d":"$0.00"}}]
["MMA",null,null,2016,"2016-12-31","Q1","2017-03-31","Region 11","Operating Expense","Administrative Expense","Administrative","12.3","Information Systems",{"$f":"IFERROR('MMA Rev-Exp Region 11'!$D$92/'MMA Rev-Exp Region 11'!$D$9, 0)","v":{"v":0,"d":"$0.00"}},{"$f":"IFERROR('MMA Rev-Exp Region 11'!$E$92/'MMA Rev-Exp Region 11'!$D$9, 0)","v":{"v":0,"d":"$0.00"}},{"$f":"IFERROR('MMA Rev-Exp Region 11'!$F$92/'MMA Rev-Exp Region 11'!$D$9, 0)","v":{"v":0,"d":"$0.00"}},{"$f":"IFERROR('MMA Rev-Exp Region 11'!$G$92/'MMA Rev-Exp Region 11'!$G$9, 0)","v":{"v":0,"d":"$0.00"}},{"$f":"IFERROR('MMA Rev-Exp Region 11'!$H$92/'MMA Rev-Exp Region 11'!$H$9, 0)","v":{"v":0,"d":"$0.00"}},{"$f":"IFERROR('MMA Rev-Exp Region 11'!$I$92/'MMA Rev-Exp Region 11'!$I$9, 0)","v":{"v":0,"d":"$0.00"}},{"$f":"IFERROR('MMA Rev-Exp Region 11'!$J$92/'MMA Rev-Exp Region 11'!$J$9, 0)","v":{"v":0,"d":"$0.00"}},{"$f":"IFERROR('MMA Rev-Exp Region 11'!$K$92/'MMA Rev-Exp Region 11'!$K$9, 0)","v":{"v":0,"d":"$0.00"}},{"$f":"IFERROR('MMA Rev-Exp Region 11'!$L$92/'MMA Rev-Exp Region 11'!$L$9, 0)","v":{"v":0,"d":"$0.00"}},{"$f":"IFERROR('MMA Rev-Exp Region 11'!$M$92/'MMA Rev-Exp Region 11'!$M$9, 0)","v":{"v":0,"d":"$0.00"}},{"$f":"IFERROR('MMA Rev-Exp Region 11'!$N$92/'MMA Rev-Exp Region 11'!$N$9, 0)","v":{"v":0,"d":"$0.00"}}]
["MMA",null,null,2016,"2016-12-31","Q1","2017-03-31","Region 11","Operating Expense","Administrative Expense","Administrative","12.4","Marketing Expenses",{"$f":"IFERROR('MMA Rev-Exp Region 11'!$D$93/'MMA Rev-Exp Region 11'!$D$9, 0)","v":{"v":0,"d":"$0.00"}},{"$f":"IFERROR('MMA Rev-Exp Region 11'!$E$93/'MMA Rev-Exp Region 11'!$D$9, 0)","v":{"v":0,"d":"$0.00"}},{"$f":"IFERROR('MMA Rev-Exp Region 11'!$F$93/'MMA Rev-Exp Region 11'!$D$9, 0)","v":{"v":0,"d":"$0.00"}},{"$f":"IFERROR('MMA Rev-Exp Region 11'!$G$93/'MMA Rev-Exp Region 11'!$G$9, 0)","v":{"v":0,"d":"$0.00"}},{"$f":"IFERROR('MMA Rev-Exp Region 11'!$H$93/'MMA Rev-Exp Region 11'!$H$9, 0)","v":{"v":0,"d":"$0.00"}},{"$f":"IFERROR('MMA Rev-Exp Region 11'!$I$93/'MMA Rev-Exp Region 11'!$I$9, 0)","v":{"v":0,"d":"$0.00"}},{"$f":"IFERROR('MMA Rev-Exp Region 11'!$J$93/'MMA Rev-Exp Region 11'!$J$9, 0)","v":{"v":0,"d":"$0.00"}},{"$f":"IFERROR('MMA Rev-Exp Region 11'!$K$93/'MMA Rev-Exp Region 11'!$K$9, 0)","v":{"v":0,"d":"$0.00"}},{"$f":"IFERROR('MMA Rev-Exp Region 11'!$L$93/'MMA Rev-Exp Region 11'!$L$9, 0)","v":{"v":0,"d":"$0.00"}},{"$f":"IFERROR('MMA Rev-Exp Region 11'!$M$93/'MMA Rev-Exp Region 11'!$M$9, 0)","v":{"v":0,"d":"$0.00"}},{"$f":"IFERROR('MMA Rev-Exp Region 11'!$N$93/'MMA Rev-Exp Region 11'!$N$9, 0)","v":{"v":0,"d":"$0.00"}}]
["MMA",null,null,2016,"2016-12-31","Q1","2017-03-31","Region 11","Operating Expense","Administrative Expense","Administrative","12.5","General  Administration",{"$f":"IFERROR('MMA Rev-Exp Region 11'!$D$94/'MMA Rev-Exp Region 11'!$D$9, 0)","v":{"v":0,"d":"$0.00"}},{"$f":"IFERROR('MMA Rev-Exp Region 11'!$E$94/'MMA Rev-Exp Region 11'!$D$9, 0)","v":{"v":0,"d":"$0.00"}},{"$f":"IFERROR('MMA Rev-Exp Region 11'!$F$94/'MMA Rev-Exp Region 11'!$D$9, 0)","v":{"v":0,"d":"$0.00"}},{"$f":"IFERROR('MMA Rev-Exp Region 11'!$G$94/'MMA Rev-Exp Region 11'!$G$9, 0)","v":{"v":0,"d":"$0.00"}},{"$f":"IFERROR('MMA Rev-Exp Region 11'!$H$94/'MMA Rev-Exp Region 11'!$H$9, 0)","v":{"v":0,"d":"$0.00"}},{"$f":"IFERROR('MMA Rev-Exp Region 11'!$I$94/'MMA Rev-Exp Region 11'!$I$9, 0)","v":{"v":0,"d":"$0.00"}},{"$f":"IFERROR('MMA Rev-Exp Region 11'!$J$94/'MMA Rev-Exp Region 11'!$J$9, 0)","v":{"v":0,"d":"$0.00"}},{"$f":"IFERROR('MMA Rev-Exp Region 11'!$K$94/'MMA Rev-Exp Region 11'!$K$9, 0)","v":{"v":0,"d":"$0.00"}},{"$f":"IFERROR('MMA Rev-Exp Region 11'!$L$94/'MMA Rev-Exp Region 11'!$L$9, 0)","v":{"v":0,"d":"$0.00"}},{"$f":"IFERROR('MMA Rev-Exp Region 11'!$M$94/'MMA Rev-Exp Region 11'!$M$9, 0)","v":{"v":0,"d":"$0.00"}},{"$f":"IFERROR('MMA Rev-Exp Region 11'!$N$94/'MMA Rev-Exp Region 11'!$N$9, 0)","v":{"v":0,"d":"$0.00"}}]
["MMA",null,null,2016,"2016-12-31","Q1","2017-03-31","Region 11","Operating Expense","Administrative Expense","Administrative","12.6","Compliance/Regulatory",{"$f":"IFERROR('MMA Rev-Exp Region 11'!$D$95/'MMA Rev-Exp Region 11'!$D$9, 0)","v":{"v":0,"d":"$0.00"}},{"$f":"IFERROR('MMA Rev-Exp Region 11'!$E$95/'MMA Rev-Exp Region 11'!$D$9, 0)","v":{"v":0,"d":"$0.00"}},{"$f":"IFERROR('MMA Rev-Exp Region 11'!$F$95/'MMA Rev-Exp Region 11'!$D$9, 0)","v":{"v":0,"d":"$0.00"}},{"$f":"IFERROR('MMA Rev-Exp Region 11'!$G$95/'MMA Rev-Exp Region 11'!$G$9, 0)","v":{"v":0,"d":"$0.00"}},{"$f":"IFERROR('MMA Rev-Exp Region 11'!$H$95/'MMA Rev-Exp Region 11'!$H$9, 0)","v":{"v":0,"d":"$0.00"}},{"$f":"IFERROR('MMA Rev-Exp Region 11'!$I$95/'MMA Rev-Exp Region 11'!$I$9, 0)","v":{"v":0,"d":"$0.00"}},{"$f":"IFERROR('MMA Rev-Exp Region 11'!$J$95/'MMA Rev-Exp Region 11'!$J$9, 0)","v":{"v":0,"d":"$0.00"}},{"$f":"IFERROR('MMA Rev-Exp Region 11'!$K$95/'MMA Rev-Exp Region 11'!$K$9, 0)","v":{"v":0,"d":"$0.00"}},{"$f":"IFERROR('MMA Rev-Exp Region 11'!$L$95/'MMA Rev-Exp Region 11'!$L$9, 0)","v":{"v":0,"d":"$0.00"}},{"$f":"IFERROR('MMA Rev-Exp Region 11'!$M$95/'MMA Rev-Exp Region 11'!$M$9, 0)","v":{"v":0,"d":"$0.00"}},{"$f":"IFERROR('MMA Rev-Exp Region 11'!$N$95/'MMA Rev-Exp Region 11'!$N$9, 0)","v":{"v":0,"d":"$0.00"}}]
["MMA",null,null,2016,"2016-12-31","Q1","2017-03-31","Region 11","Operating Expense","Taxes & Fees","Taxes & Fees","13.1","State Premium tax",{"$f":"IFERROR('MMA Rev-Exp Region 11'!$D$97/'MMA Rev-Exp Region 11'!$D$9, 0)","v":{"v":0,"d":"$0.00"}}]
["MMA",null,null,2016,"2016-12-31","Q1","2017-03-31","Region 11","Operating Expense","Taxes & Fees","Taxes & Fees","13.2","Department of Insurance Assessments",{"$f":"IFERROR('MMA Rev-Exp Region 11'!$D$98/'MMA Rev-Exp Region 11'!$D$9, 0)","v":{"v":0,"d":"$0.00"}}]
["MMA",null,null,2016,"2016-12-31","Q1","2017-03-31","Region 11","Operating Expense","Taxes & Fees","Taxes & Fees","13.3","Section 9010 Health Insurance Providers Fee",{"$f":"IFERROR('MMA Rev-Exp Region 11'!$D$99/'MMA Rev-Exp Region 11'!$D$9, 0)","v":{"v":0,"d":"$0.00"}}]
["MMA",null,null,2016,"2016-12-31","Q1","2017-03-31","Region 11","Non-Operating Expense","Income Tax Expense","Income Tax Expense","16.0","Income Tax Expense",{"$f":"IFERROR('MMA Rev-Exp Region 11'!$D$106/'MMA Rev-Exp Region 11'!$D$9, 0)","v":{"v":0,"d":"$0.00"}}]
["MMA",null,null,2016,"2016-12-31","Q2","2017-06-30","Region 11","Operating Revenue","Capitation","Capitation",1.1,"Capitation",{"$f":"IFERROR('MMA Rev-Exp Region 11'!$O$11/'MMA Rev-Exp Region 11'!$O$9, 0)","v":{"v":0,"d":"$0.00"}},{"$f":"IFERROR('MMA Rev-Exp Region 11'!$P$11/'MMA Rev-Exp Region 11'!$P$9, 0)","v":{"v":0,"d":"$0.00"}},{"$f":"IFERROR('MMA Rev-Exp Region 11'!$Q$11/'MMA Rev-Exp Region 11'!$Q$9, 0)","v":{"v":0,"d":"$0.00"}},{"$f":"IFERROR('MMA Rev-Exp Region 11'!$R$11/'MMA Rev-Exp Region 11'!$R$9, 0)","v":{"v":0,"d":"$0.00"}},{"$f":"IFERROR('MMA Rev-Exp Region 11'!$S$11/'MMA Rev-Exp Region 11'!$S$9, 0)","v":{"v":0,"d":"$0.00"}},{"$f":"IFERROR('MMA Rev-Exp Region 11'!$T$11/'MMA Rev-Exp Region 11'!$T$9, 0)","v":{"v":0,"d":"$0.00"}},{"$f":"IFERROR('MMA Rev-Exp Region 11'!$U$11/'MMA Rev-Exp Region 11'!$U$9, 0)","v":{"v":0,"d":"$0.00"}},{"$f":"IFERROR('MMA Rev-Exp Region 11'!$V$11/'MMA Rev-Exp Region 11'!$V$9, 0)","v":{"v":0,"d":"$0.00"}},{"$f":"IFERROR('MMA Rev-Exp Region 11'!$W$11/'MMA Rev-Exp Region 11'!$W$9, 0)","v":{"v":0,"d":"$0.00"}},{"$f":"IFERROR('MMA Rev-Exp Region 11'!$X$11/'MMA Rev-Exp Region 11'!$X$9, 0)","v":{"v":0,"d":"$0.00"}},{"$f":"IFERROR('MMA Rev-Exp Region 11'!$Y$11/'MMA Rev-Exp Region 11'!$Y$9, 0)","v":{"v":0,"d":"$0.00"}}]
["MMA",null,null,2016,"2016-12-31","Q2","2017-06-30","Region 11","Operating Revenue","Kick Payments","Kick Payments - Transplant",1.2,"Transplant Kick Payments",{"$f":"IFERROR('MMA Rev-Exp Region 11'!$O$12/'MMA Rev-Exp Region 11'!$O$9, 0)","v":{"v":0,"d":"$0.00"}},{"$f":"IFERROR('MMA Rev-Exp Region 11'!$P$12/'MMA Rev-Exp Region 11'!$P$9, 0)","v":{"v":0,"d":"$0.00"}},{"$f":"IFERROR('MMA Rev-Exp Region 11'!$Q$12/'MMA Rev-Exp Region 11'!$Q$9, 0)","v":{"v":0,"d":"$0.00"}},{"$f":"IFERROR('MMA Rev-Exp Region 11'!$R$12/'MMA Rev-Exp Region 11'!$R$9, 0)","v":{"v":0,"d":"$0.00"}},{"$f":"IFERROR('MMA Rev-Exp Region 11'!$S$12/'MMA Rev-Exp Region 11'!$S$9, 0)","v":{"v":0,"d":"$0.00"}},{"$f":"IFERROR('MMA Rev-Exp Region 11'!$T$12/'MMA Rev-Exp Region 11'!$T$9, 0)","v":{"v":0,"d":"$0.00"}},{"$f":"IFERROR('MMA Rev-Exp Region 11'!$U$12/'MMA Rev-Exp Region 11'!$U$9, 0)","v":{"v":0,"d":"$0.00"}},{"$f":"IFERROR('MMA Rev-Exp Region 11'!$V$12/'MMA Rev-Exp Region 11'!$V$9, 0)","v":{"v":0,"d":"$0.00"}},{"$f":"IFERROR('MMA Rev-Exp Region 11'!$W$12/'MMA Rev-Exp Region 11'!$W$9, 0)","v":{"v":0,"d":"$0.00"}},{"$f":"IFERROR('MMA Rev-Exp Region 11'!$X$12/'MMA Rev-Exp Region 11'!$X$9, 0)","v":{"v":0,"d":"$0.00"}},{"$f":"IFERROR('MMA Rev-Exp Region 11'!$Y$12/'MMA Rev-Exp Region 11'!$Y$9, 0)","v":{"v":0,"d":"$0.00"}}]
["MMA",null,null,2016,"2016-12-31","Q2","2017-06-30","Region 11","Operating Revenue","Kick Payments","Kick Payments - Hep C","1.3","Hepatitis C Kick Payments",{"$f":"IFERROR('MMA Rev-Exp Region 11'!$O$13/'MMA Rev-Exp Region 11'!$O$9, 0)","v":{"v":0,"d":"$0.00"}},{"$f":"IFERROR('MMA Rev-Exp Region 11'!$P$13/'MMA Rev-Exp Region 11'!$P$9, 0)","v":{"v":0,"d":"$0.00"}},{"$f":"IFERROR('MMA Rev-Exp Region 11'!$Q$13/'MMA Rev-Exp Region 11'!$Q$9, 0)","v":{"v":0,"d":"$0.00"}},{"$f":"IFERROR('MMA Rev-Exp Region 11'!$R$13/'MMA Rev-Exp Region 11'!$R$9, 0)","v":{"v":0,"d":"$0.00"}},{"$f":"IFERROR('MMA Rev-Exp Region 11'!$S$13/'MMA Rev-Exp Region 11'!$S$9, 0)","v":{"v":0,"d":"$0.00"}},{"$f":"IFERROR('MMA Rev-Exp Region 11'!$T$13/'MMA Rev-Exp Region 11'!$T$9, 0)","v":{"v":0,"d":"$0.00"}},{"$f":"IFERROR('MMA Rev-Exp Region 11'!$U$13/'MMA Rev-Exp Region 11'!$U$9, 0)","v":{"v":0,"d":"$0.00"}},{"$f":"IFERROR('MMA Rev-Exp Region 11'!$V$13/'MMA Rev-Exp Region 11'!$V$9, 0)","v":{"v":0,"d":"$0.00"}},{"$f":"IFERROR('MMA Rev-Exp Region 11'!$W$13/'MMA Rev-Exp Region 11'!$W$9, 0)","v":{"v":0,"d":"$0.00"}},{"$f":"IFERROR('MMA Rev-Exp Region 11'!$X$13/'MMA Rev-Exp Region 11'!$X$9, 0)","v":{"v":0,"d":"$0.00"}},{"$f":"IFERROR('MMA Rev-Exp Region 11'!$Y$13/'MMA Rev-Exp Region 11'!$Y$9, 0)","v":{"v":0,"d":"$0.00"}}]
["MMA",null,null,2016,"2016-12-31","Q2","2017-06-30","Region 11","Operating Revenue","Kick Payments","Kick Payments - Maternity","1.4.1","Maternity Kick Payments",{"$f":"IFERROR('MMA Rev-Exp Region 11'!$O$14/'MMA Rev-Exp Region 11'!$O$9, 0)","v":{"v":0,"d":"$0.00"}},{"$f":"IFERROR('MMA Rev-Exp Region 11'!$P$14/'MMA Rev-Exp Region 11'!$P$9, 0)","v":{"v":0,"d":"$0.00"}},{"$f":"IFERROR('MMA Rev-Exp Region 11'!$Q$14/'MMA Rev-Exp Region 11'!$Q$9, 0)","v":{"v":0,"d":"$0.00"}},{"$f":"IFERROR('MMA Rev-Exp Region 11'!$R$14/'MMA Rev-Exp Region 11'!$R$9, 0)","v":{"v":0,"d":"$0.00"}},{"$f":"IFERROR('MMA Rev-Exp Region 11'!$S$14/'MMA Rev-Exp Region 11'!$S$9, 0)","v":{"v":0,"d":"$0.00"}},{"$f":"IFERROR('MMA Rev-Exp Region 11'!$T$14/'MMA Rev-Exp Region 11'!$T$9, 0)","v":{"v":0,"d":"$0.00"}},{"$f":"IFERROR('MMA Rev-Exp Region 11'!$U$14/'MMA Rev-Exp Region 11'!$U$9, 0)","v":{"v":0,"d":"$0.00"}},{"$f":"IFERROR('MMA Rev-Exp Region 11'!$V$14/'MMA Rev-Exp Region 11'!$V$9, 0)","v":{"v":0,"d":"$0.00"}},{"$f":"IFERROR('MMA Rev-Exp Region 11'!$W$14/'MMA Rev-Exp Region 11'!$W$9, 0)","v":{"v":0,"d":"$0.00"}},{"$f":"IFERROR('MMA Rev-Exp Region 11'!$X$14/'MMA Rev-Exp Region 11'!$X$9, 0)","v":{"v":0,"d":"$0.00"}},{"$f":"IFERROR('MMA Rev-Exp Region 11'!$Y$14/'MMA Rev-Exp Region 11'!$Y$9, 0)","v":{"v":0,"d":"$0.00"}}]
["MMA",null,null,2016,"2016-12-31","Q2","2017-06-30","Region 11","Operating Revenue","Other Revenue","Other Revenue - 9010","1.5","ACA § 9010 related payments",{"$f":"IFERROR('MMA Rev-Exp Region 11'!$O$15/'MMA Rev-Exp Region 11'!$O$9, 0)","v":{"v":0,"d":"$0.00"}},{"$f":"IFERROR('MMA Rev-Exp Region 11'!$P$15/'MMA Rev-Exp Region 11'!$P$9, 0)","v":{"v":0,"d":"$0.00"}},{"$f":"IFERROR('MMA Rev-Exp Region 11'!$Q$15/'MMA Rev-Exp Region 11'!$Q$9, 0)","v":{"v":0,"d":"$0.00"}},{"$f":"IFERROR('MMA Rev-Exp Region 11'!$R$15/'MMA Rev-Exp Region 11'!$R$9, 0)","v":{"v":0,"d":"$0.00"}},{"$f":"IFERROR('MMA Rev-Exp Region 11'!$S$15/'MMA Rev-Exp Region 11'!$S$9, 0)","v":{"v":0,"d":"$0.00"}},{"$f":"IFERROR('MMA Rev-Exp Region 11'!$T$15/'MMA Rev-Exp Region 11'!$T$9, 0)","v":{"v":0,"d":"$0.00"}},{"$f":"IFERROR('MMA Rev-Exp Region 11'!$U$15/'MMA Rev-Exp Region 11'!$U$9, 0)","v":{"v":0,"d":"$0.00"}},{"$f":"IFERROR('MMA Rev-Exp Region 11'!$V$15/'MMA Rev-Exp Region 11'!$V$9, 0)","v":{"v":0,"d":"$0.00"}},{"$f":"IFERROR('MMA Rev-Exp Region 11'!$W$15/'MMA Rev-Exp Region 11'!$W$9, 0)","v":{"v":0,"d":"$0.00"}},{"$f":"IFERROR('MMA Rev-Exp Region 11'!$X$15/'MMA Rev-Exp Region 11'!$X$9, 0)","v":{"v":0,"d":"$0.00"}},{"$f":"IFERROR('MMA Rev-Exp Region 11'!$Y$15/'MMA Rev-Exp Region 11'!$Y$9, 0)","v":{"v":0,"d":"$0.00"}}]
["MMA",null,null,2016,"2016-12-31","Q2","2017-06-30","Region 11","Operating Revenue","Other Revenue","Other Revenue","1.6","Other Revenue",{"$f":"IFERROR('MMA Rev-Exp Region 11'!$O$16/'MMA Rev-Exp Region 11'!$O$9, 0)","v":{"v":0,"d":"$0.00"}},{"$f":"IFERROR('MMA Rev-Exp Region 11'!$P$16/'MMA Rev-Exp Region 11'!$P$9, 0)","v":{"v":0,"d":"$0.00"}},{"$f":"IFERROR('MMA Rev-Exp Region 11'!$Q$16/'MMA Rev-Exp Region 11'!$Q$9, 0)","v":{"v":0,"d":"$0.00"}},{"$f":"IFERROR('MMA Rev-Exp Region 11'!$R$16/'MMA Rev-Exp Region 11'!$R$9, 0)","v":{"v":0,"d":"$0.00"}},{"$f":"IFERROR('MMA Rev-Exp Region 11'!$S$16/'MMA Rev-Exp Region 11'!$S$9, 0)","v":{"v":0,"d":"$0.00"}},{"$f":"IFERROR('MMA Rev-Exp Region 11'!$T$16/'MMA Rev-Exp Region 11'!$T$9, 0)","v":{"v":0,"d":"$0.00"}},{"$f":"IFERROR('MMA Rev-Exp Region 11'!$U$16/'MMA Rev-Exp Region 11'!$U$9, 0)","v":{"v":0,"d":"$0.00"}},{"$f":"IFERROR('MMA Rev-Exp Region 11'!$V$16/'MMA Rev-Exp Region 11'!$V$9, 0)","v":{"v":0,"d":"$0.00"}},{"$f":"IFERROR('MMA Rev-Exp Region 11'!$W$16/'MMA Rev-Exp Region 11'!$W$9, 0)","v":{"v":0,"d":"$0.00"}},{"$f":"IFERROR('MMA Rev-Exp Region 11'!$X$16/'MMA Rev-Exp Region 11'!$X$9, 0)","v":{"v":0,"d":"$0.00"}},{"$f":"IFERROR('MMA Rev-Exp Region 11'!$Y$16/'MMA Rev-Exp Region 11'!$Y$9, 0)","v":{"v":0,"d":"$0.00"}}]
["MMA",null,null,2016,"2016-12-31","Q2","2017-06-30","Region 11","Operating Expense","Medical Benefits Expense","Hospital Services",2.1,"Inpatient FFS",{"$f":"IFERROR('MMA Rev-Exp Region 11'!$O$20/'MMA Rev-Exp Region 11'!$O$9, 0)","v":{"v":0,"d":"$0.00"}},{"$f":"IFERROR('MMA Rev-Exp Region 11'!$P$20/'MMA Rev-Exp Region 11'!$P$9, 0)","v":{"v":0,"d":"$0.00"}},{"$f":"IFERROR('MMA Rev-Exp Region 11'!$Q$20/'MMA Rev-Exp Region 11'!$Q$9, 0)","v":{"v":0,"d":"$0.00"}},{"$f":"IFERROR('MMA Rev-Exp Region 11'!$R$20/'MMA Rev-Exp Region 11'!$R$9, 0)","v":{"v":0,"d":"$0.00"}},{"$f":"IFERROR('MMA Rev-Exp Region 11'!$S$20/'MMA Rev-Exp Region 11'!$S$9, 0)","v":{"v":0,"d":"$0.00"}},{"$f":"IFERROR('MMA Rev-Exp Region 11'!$T$20/'MMA Rev-Exp Region 11'!$T$9, 0)","v":{"v":0,"d":"$0.00"}},{"$f":"IFERROR('MMA Rev-Exp Region 11'!$U$20/'MMA Rev-Exp Region 11'!$U$9, 0)","v":{"v":0,"d":"$0.00"}},{"$f":"IFERROR('MMA Rev-Exp Region 11'!$V$20/'MMA Rev-Exp Region 11'!$V$9, 0)","v":{"v":0,"d":"$0.00"}},{"$f":"IFERROR('MMA Rev-Exp Region 11'!$W$20/'MMA Rev-Exp Region 11'!$W$9, 0)","v":{"v":0,"d":"$0.00"}},{"$f":"IFERROR('MMA Rev-Exp Region 11'!$X$20/'MMA Rev-Exp Region 11'!$X$9, 0)","v":{"v":0,"d":"$0.00"}},{"$f":"IFERROR('MMA Rev-Exp Region 11'!$Y$20/'MMA Rev-Exp Region 11'!$Y$9, 0)","v":{"v":0,"d":"$0.00"}}]
["MMA",null,null,2016,"2016-12-31","Q2","2017-06-30","Region 11","Operating Expense","Medical Benefits Expense","Hospital Services",2.2,"Ending IBNP for Inpatient Hospital Services",{"$f":"IFERROR('MMA Rev-Exp Region 11'!$O$21/'MMA Rev-Exp Region 11'!$O$9, 0)","v":{"v":0,"d":"$0.00"}},{"$f":"IFERROR('MMA Rev-Exp Region 11'!$P$21/'MMA Rev-Exp Region 11'!$P$9, 0)","v":{"v":0,"d":"$0.00"}},{"$f":"IFERROR('MMA Rev-Exp Region 11'!$Q$21/'MMA Rev-Exp Region 11'!$Q$9, 0)","v":{"v":0,"d":"$0.00"}},{"$f":"IFERROR('MMA Rev-Exp Region 11'!$R$21/'MMA Rev-Exp Region 11'!$R$9, 0)","v":{"v":0,"d":"$0.00"}},{"$f":"IFERROR('MMA Rev-Exp Region 11'!$S$21/'MMA Rev-Exp Region 11'!$S$9, 0)","v":{"v":0,"d":"$0.00"}},{"$f":"IFERROR('MMA Rev-Exp Region 11'!$T$21/'MMA Rev-Exp Region 11'!$T$9, 0)","v":{"v":0,"d":"$0.00"}},{"$f":"IFERROR('MMA Rev-Exp Region 11'!$U$21/'MMA Rev-Exp Region 11'!$U$9, 0)","v":{"v":0,"d":"$0.00"}},{"$f":"IFERROR('MMA Rev-Exp Region 11'!$V$21/'MMA Rev-Exp Region 11'!$V$9, 0)","v":{"v":0,"d":"$0.00"}},{"$f":"IFERROR('MMA Rev-Exp Region 11'!$W$21/'MMA Rev-Exp Region 11'!$W$9, 0)","v":{"v":0,"d":"$0.00"}},{"$f":"IFERROR('MMA Rev-Exp Region 11'!$X$21/'MMA Rev-Exp Region 11'!$X$9, 0)","v":{"v":0,"d":"$0.00"}},{"$f":"IFERROR('MMA Rev-Exp Region 11'!$Y$21/'MMA Rev-Exp Region 11'!$Y$9, 0)","v":{"v":0,"d":"$0.00"}}]
["MMA",null,null,2016,"2016-12-31","Q2","2017-06-30","Region 11","Operating Expense","Medical Benefits Expense","Hospital Services",2.3,"Outpatient FFS: ER",{"$f":"IFERROR('MMA Rev-Exp Region 11'!$O$22/'MMA Rev-Exp Region 11'!$O$9, 0)","v":{"v":0,"d":"$0.00"}},{"$f":"IFERROR('MMA Rev-Exp Region 11'!$P$22/'MMA Rev-Exp Region 11'!$P$9, 0)","v":{"v":0,"d":"$0.00"}},{"$f":"IFERROR('MMA Rev-Exp Region 11'!$Q$22/'MMA Rev-Exp Region 11'!$Q$9, 0)","v":{"v":0,"d":"$0.00"}},{"$f":"IFERROR('MMA Rev-Exp Region 11'!$R$22/'MMA Rev-Exp Region 11'!$R$9, 0)","v":{"v":0,"d":"$0.00"}},{"$f":"IFERROR('MMA Rev-Exp Region 11'!$S$22/'MMA Rev-Exp Region 11'!$S$9, 0)","v":{"v":0,"d":"$0.00"}},{"$f":"IFERROR('MMA Rev-Exp Region 11'!$T$22/'MMA Rev-Exp Region 11'!$T$9, 0)","v":{"v":0,"d":"$0.00"}},{"$f":"IFERROR('MMA Rev-Exp Region 11'!$U$22/'MMA Rev-Exp Region 11'!$U$9, 0)","v":{"v":0,"d":"$0.00"}},{"$f":"IFERROR('MMA Rev-Exp Region 11'!$V$22/'MMA Rev-Exp Region 11'!$V$9, 0)","v":{"v":0,"d":"$0.00"}},{"$f":"IFERROR('MMA Rev-Exp Region 11'!$W$22/'MMA Rev-Exp Region 11'!$W$9, 0)","v":{"v":0,"d":"$0.00"}},{"$f":"IFERROR('MMA Rev-Exp Region 11'!$X$22/'MMA Rev-Exp Region 11'!$X$9, 0)","v":{"v":0,"d":"$0.00"}},{"$f":"IFERROR('MMA Rev-Exp Region 11'!$Y$22/'MMA Rev-Exp Region 11'!$Y$9, 0)","v":{"v":0,"d":"$0.00"}}]
["MMA",null,null,2016,"2016-12-31","Q2","2017-06-30","Region 11","Operating Expense","Medical Benefits Expense","Hospital Services",2.4,"Outpatient FFS: Other than ER ",{"$f":"IFERROR('MMA Rev-Exp Region 11'!$O$23/'MMA Rev-Exp Region 11'!$O$9, 0)","v":{"v":0,"d":"$0.00"}},{"$f":"IFERROR('MMA Rev-Exp Region 11'!$P$23/'MMA Rev-Exp Region 11'!$P$9, 0)","v":{"v":0,"d":"$0.00"}},{"$f":"IFERROR('MMA Rev-Exp Region 11'!$Q$23/'MMA Rev-Exp Region 11'!$Q$9, 0)","v":{"v":0,"d":"$0.00"}},{"$f":"IFERROR('MMA Rev-Exp Region 11'!$R$23/'MMA Rev-Exp Region 11'!$R$9, 0)","v":{"v":0,"d":"$0.00"}},{"$f":"IFERROR('MMA Rev-Exp Region 11'!$S$23/'MMA Rev-Exp Region 11'!$S$9, 0)","v":{"v":0,"d":"$0.00"}},{"$f":"IFERROR('MMA Rev-Exp Region 11'!$T$23/'MMA Rev-Exp Region 11'!$T$9, 0)","v":{"v":0,"d":"$0.00"}},{"$f":"IFERROR('MMA Rev-Exp Region 11'!$U$23/'MMA Rev-Exp Region 11'!$U$9, 0)","v":{"v":0,"d":"$0.00"}},{"$f":"IFERROR('MMA Rev-Exp Region 11'!$V$23/'MMA Rev-Exp Region 11'!$V$9, 0)","v":{"v":0,"d":"$0.00"}},{"$f":"IFERROR('MMA Rev-Exp Region 11'!$W$23/'MMA Rev-Exp Region 11'!$W$9, 0)","v":{"v":0,"d":"$0.00"}},{"$f":"IFERROR('MMA Rev-Exp Region 11'!$X$23/'MMA Rev-Exp Region 11'!$X$9, 0)","v":{"v":0,"d":"$0.00"}},{"$f":"IFERROR('MMA Rev-Exp Region 11'!$Y$23/'MMA Rev-Exp Region 11'!$Y$9, 0)","v":{"v":0,"d":"$0.00"}}]
["MMA",null,null,2016,"2016-12-31","Q2","2017-06-30","Region 11","Operating Expense","Medical Benefits Expense","Hospital Services",2.5,"Ending IBNP for Outpatient Hospital Services",{"$f":"IFERROR('MMA Rev-Exp Region 11'!$O$24/'MMA Rev-Exp Region 11'!$O$9, 0)","v":{"v":0,"d":"$0.00"}},{"$f":"IFERROR('MMA Rev-Exp Region 11'!$P$24/'MMA Rev-Exp Region 11'!$P$9, 0)","v":{"v":0,"d":"$0.00"}},{"$f":"IFERROR('MMA Rev-Exp Region 11'!$Q$24/'MMA Rev-Exp Region 11'!$Q$9, 0)","v":{"v":0,"d":"$0.00"}},{"$f":"IFERROR('MMA Rev-Exp Region 11'!$R$24/'MMA Rev-Exp Region 11'!$R$9, 0)","v":{"v":0,"d":"$0.00"}},{"$f":"IFERROR('MMA Rev-Exp Region 11'!$S$24/'MMA Rev-Exp Region 11'!$S$9, 0)","v":{"v":0,"d":"$0.00"}},{"$f":"IFERROR('MMA Rev-Exp Region 11'!$T$24/'MMA Rev-Exp Region 11'!$T$9, 0)","v":{"v":0,"d":"$0.00"}},{"$f":"IFERROR('MMA Rev-Exp Region 11'!$U$24/'MMA Rev-Exp Region 11'!$U$9, 0)","v":{"v":0,"d":"$0.00"}},{"$f":"IFERROR('MMA Rev-Exp Region 11'!$V$24/'MMA Rev-Exp Region 11'!$V$9, 0)","v":{"v":0,"d":"$0.00"}},{"$f":"IFERROR('MMA Rev-Exp Region 11'!$W$24/'MMA Rev-Exp Region 11'!$W$9, 0)","v":{"v":0,"d":"$0.00"}},{"$f":"IFERROR('MMA Rev-Exp Region 11'!$X$24/'MMA Rev-Exp Region 11'!$X$9, 0)","v":{"v":0,"d":"$0.00"}},{"$f":"IFERROR('MMA Rev-Exp Region 11'!$Y$24/'MMA Rev-Exp Region 11'!$Y$9, 0)","v":{"v":0,"d":"$0.00"}}]
["MMA",null,null,2016,"2016-12-31","Q2","2017-06-30","Region 11","Operating Expense","Medical Benefits Expense","Hospital Services","2.6","Subcapitated Hospital Services",{"$f":"IFERROR('MMA Rev-Exp Region 11'!$O$25/'MMA Rev-Exp Region 11'!$O$9, 0)","v":{"v":0,"d":"$0.00"}},{"$f":"IFERROR('MMA Rev-Exp Region 11'!$P$25/'MMA Rev-Exp Region 11'!$P$9, 0)","v":{"v":0,"d":"$0.00"}},{"$f":"IFERROR('MMA Rev-Exp Region 11'!$Q$25/'MMA Rev-Exp Region 11'!$Q$9, 0)","v":{"v":0,"d":"$0.00"}},{"$f":"IFERROR('MMA Rev-Exp Region 11'!$R$25/'MMA Rev-Exp Region 11'!$R$9, 0)","v":{"v":0,"d":"$0.00"}},{"$f":"IFERROR('MMA Rev-Exp Region 11'!$S$25/'MMA Rev-Exp Region 11'!$S$9, 0)","v":{"v":0,"d":"$0.00"}},{"$f":"IFERROR('MMA Rev-Exp Region 11'!$T$25/'MMA Rev-Exp Region 11'!$T$9, 0)","v":{"v":0,"d":"$0.00"}},{"$f":"IFERROR('MMA Rev-Exp Region 11'!$U$25/'MMA Rev-Exp Region 11'!$U$9, 0)","v":{"v":0,"d":"$0.00"}},{"$f":"IFERROR('MMA Rev-Exp Region 11'!$V$25/'MMA Rev-Exp Region 11'!$V$9, 0)","v":{"v":0,"d":"$0.00"}},{"$f":"IFERROR('MMA Rev-Exp Region 11'!$W$25/'MMA Rev-Exp Region 11'!$W$9, 0)","v":{"v":0,"d":"$0.00"}},{"$f":"IFERROR('MMA Rev-Exp Region 11'!$X$25/'MMA Rev-Exp Region 11'!$X$9, 0)","v":{"v":0,"d":"$0.00"}},{"$f":"IFERROR('MMA Rev-Exp Region 11'!$Y$25/'MMA Rev-Exp Region 11'!$Y$9, 0)","v":{"v":0,"d":"$0.00"}}]
["MMA",null,null,2016,"2016-12-31","Q2","2017-06-30","Region 11","Operating Expense","Medical Benefits Expense","Hospital Services","2.7","Hospital Settlements",{"$f":"IFERROR('MMA Rev-Exp Region 11'!$O$26/'MMA Rev-Exp Region 11'!$O$9, 0)","v":{"v":0,"d":"$0.00"}},{"$f":"IFERROR('MMA Rev-Exp Region 11'!$P$26/'MMA Rev-Exp Region 11'!$P$9, 0)","v":{"v":0,"d":"$0.00"}},{"$f":"IFERROR('MMA Rev-Exp Region 11'!$Q$26/'MMA Rev-Exp Region 11'!$Q$9, 0)","v":{"v":0,"d":"$0.00"}},{"$f":"IFERROR('MMA Rev-Exp Region 11'!$R$26/'MMA Rev-Exp Region 11'!$R$9, 0)","v":{"v":0,"d":"$0.00"}},{"$f":"IFERROR('MMA Rev-Exp Region 11'!$S$26/'MMA Rev-Exp Region 11'!$S$9, 0)","v":{"v":0,"d":"$0.00"}},{"$f":"IFERROR('MMA Rev-Exp Region 11'!$T$26/'MMA Rev-Exp Region 11'!$T$9, 0)","v":{"v":0,"d":"$0.00"}},{"$f":"IFERROR('MMA Rev-Exp Region 11'!$U$26/'MMA Rev-Exp Region 11'!$U$9, 0)","v":{"v":0,"d":"$0.00"}},{"$f":"IFERROR('MMA Rev-Exp Region 11'!$V$26/'MMA Rev-Exp Region 11'!$V$9, 0)","v":{"v":0,"d":"$0.00"}},{"$f":"IFERROR('MMA Rev-Exp Region 11'!$W$26/'MMA Rev-Exp Region 11'!$W$9, 0)","v":{"v":0,"d":"$0.00"}},{"$f":"IFERROR('MMA Rev-Exp Region 11'!$X$26/'MMA Rev-Exp Region 11'!$X$9, 0)","v":{"v":0,"d":"$0.00"}},{"$f":"IFERROR('MMA Rev-Exp Region 11'!$Y$26/'MMA Rev-Exp Region 11'!$Y$9, 0)","v":{"v":0,"d":"$0.00"}}]
["MMA",null,null,2016,"2016-12-31","Q2","2017-06-30","Region 11","Operating Expense","Medical Benefits Expense","Hospital Services","2.7.1","Transplant Services",{"$f":"IFERROR('MMA Rev-Exp Region 11'!$O$27/'MMA Rev-Exp Region 11'!$O$9, 0)","v":{"v":0,"d":"$0.00"}},{"$f":"IFERROR('MMA Rev-Exp Region 11'!$P$27/'MMA Rev-Exp Region 11'!$P$9, 0)","v":{"v":0,"d":"$0.00"}},{"$f":"IFERROR('MMA Rev-Exp Region 11'!$Q$27/'MMA Rev-Exp Region 11'!$Q$9, 0)","v":{"v":0,"d":"$0.00"}},{"$f":"IFERROR('MMA Rev-Exp Region 11'!$R$27/'MMA Rev-Exp Region 11'!$R$9, 0)","v":{"v":0,"d":"$0.00"}},{"$f":"IFERROR('MMA Rev-Exp Region 11'!$S$27/'MMA Rev-Exp Region 11'!$S$9, 0)","v":{"v":0,"d":"$0.00"}},{"$f":"IFERROR('MMA Rev-Exp Region 11'!$T$27/'MMA Rev-Exp Region 11'!$T$9, 0)","v":{"v":0,"d":"$0.00"}},{"$f":"IFERROR('MMA Rev-Exp Region 11'!$U$27/'MMA Rev-Exp Region 11'!$U$9, 0)","v":{"v":0,"d":"$0.00"}},{"$f":"IFERROR('MMA Rev-Exp Region 11'!$V$27/'MMA Rev-Exp Region 11'!$V$9, 0)","v":{"v":0,"d":"$0.00"}},{"$f":"IFERROR('MMA Rev-Exp Region 11'!$W$27/'MMA Rev-Exp Region 11'!$W$9, 0)","v":{"v":0,"d":"$0.00"}},{"$f":"IFERROR('MMA Rev-Exp Region 11'!$X$27/'MMA Rev-Exp Region 11'!$X$9, 0)","v":{"v":0,"d":"$0.00"}},{"$f":"IFERROR('MMA Rev-Exp Region 11'!$Y$27/'MMA Rev-Exp Region 11'!$Y$9, 0)","v":{"v":0,"d":"$0.00"}}]
["MMA",null,null,2016,"2016-12-31","Q2","2017-06-30","Region 11","Operating Expense","Medical Benefits Expense","Professional Services",3.1,"Primary Care FFS",{"$f":"IFERROR('MMA Rev-Exp Region 11'!$O$29/'MMA Rev-Exp Region 11'!$O$9, 0)","v":{"v":0,"d":"$0.00"}},{"$f":"IFERROR('MMA Rev-Exp Region 11'!$P$29/'MMA Rev-Exp Region 11'!$P$9, 0)","v":{"v":0,"d":"$0.00"}},{"$f":"IFERROR('MMA Rev-Exp Region 11'!$Q$29/'MMA Rev-Exp Region 11'!$Q$9, 0)","v":{"v":0,"d":"$0.00"}},{"$f":"IFERROR('MMA Rev-Exp Region 11'!$R$29/'MMA Rev-Exp Region 11'!$R$9, 0)","v":{"v":0,"d":"$0.00"}},{"$f":"IFERROR('MMA Rev-Exp Region 11'!$S$29/'MMA Rev-Exp Region 11'!$S$9, 0)","v":{"v":0,"d":"$0.00"}},{"$f":"IFERROR('MMA Rev-Exp Region 11'!$T$29/'MMA Rev-Exp Region 11'!$T$9, 0)","v":{"v":0,"d":"$0.00"}},{"$f":"IFERROR('MMA Rev-Exp Region 11'!$U$29/'MMA Rev-Exp Region 11'!$U$9, 0)","v":{"v":0,"d":"$0.00"}},{"$f":"IFERROR('MMA Rev-Exp Region 11'!$V$29/'MMA Rev-Exp Region 11'!$V$9, 0)","v":{"v":0,"d":"$0.00"}},{"$f":"IFERROR('MMA Rev-Exp Region 11'!$W$29/'MMA Rev-Exp Region 11'!$W$9, 0)","v":{"v":0,"d":"$0.00"}},{"$f":"IFERROR('MMA Rev-Exp Region 11'!$X$29/'MMA Rev-Exp Region 11'!$X$9, 0)","v":{"v":0,"d":"$0.00"}},{"$f":"IFERROR('MMA Rev-Exp Region 11'!$Y$29/'MMA Rev-Exp Region 11'!$Y$9, 0)","v":{"v":0,"d":"$0.00"}}]
["MMA",null,null,2016,"2016-12-31","Q2","2017-06-30","Region 11","Operating Expense","Medical Benefits Expense","Professional Services",3.2,"Specialty Care FFS",{"$f":"IFERROR('MMA Rev-Exp Region 11'!$O$30/'MMA Rev-Exp Region 11'!$O$9, 0)","v":{"v":0,"d":"$0.00"}},{"$f":"IFERROR('MMA Rev-Exp Region 11'!$P$30/'MMA Rev-Exp Region 11'!$P$9, 0)","v":{"v":0,"d":"$0.00"}},{"$f":"IFERROR('MMA Rev-Exp Region 11'!$Q$30/'MMA Rev-Exp Region 11'!$Q$9, 0)","v":{"v":0,"d":"$0.00"}},{"$f":"IFERROR('MMA Rev-Exp Region 11'!$R$30/'MMA Rev-Exp Region 11'!$R$9, 0)","v":{"v":0,"d":"$0.00"}},{"$f":"IFERROR('MMA Rev-Exp Region 11'!$S$30/'MMA Rev-Exp Region 11'!$S$9, 0)","v":{"v":0,"d":"$0.00"}},{"$f":"IFERROR('MMA Rev-Exp Region 11'!$T$30/'MMA Rev-Exp Region 11'!$T$9, 0)","v":{"v":0,"d":"$0.00"}},{"$f":"IFERROR('MMA Rev-Exp Region 11'!$U$30/'MMA Rev-Exp Region 11'!$U$9, 0)","v":{"v":0,"d":"$0.00"}},{"$f":"IFERROR('MMA Rev-Exp Region 11'!$V$30/'MMA Rev-Exp Region 11'!$V$9, 0)","v":{"v":0,"d":"$0.00"}},{"$f":"IFERROR('MMA Rev-Exp Region 11'!$W$30/'MMA Rev-Exp Region 11'!$W$9, 0)","v":{"v":0,"d":"$0.00"}},{"$f":"IFERROR('MMA Rev-Exp Region 11'!$X$30/'MMA Rev-Exp Region 11'!$X$9, 0)","v":{"v":0,"d":"$0.00"}},{"$f":"IFERROR('MMA Rev-Exp Region 11'!$Y$30/'MMA Rev-Exp Region 11'!$Y$9, 0)","v":{"v":0,"d":"$0.00"}}]
["MMA",null,null,2016,"2016-12-31","Q2","2017-06-30","Region 11","Operating Expense","Medical Benefits Expense","Professional Services",3.3,"Other Professional FFS",{"$f":"IFERROR('MMA Rev-Exp Region 11'!$O$31/'MMA Rev-Exp Region 11'!$O$9, 0)","v":{"v":0,"d":"$0.00"}},{"$f":"IFERROR('MMA Rev-Exp Region 11'!$P$31/'MMA Rev-Exp Region 11'!$P$9, 0)","v":{"v":0,"d":"$0.00"}},{"$f":"IFERROR('MMA Rev-Exp Region 11'!$Q$31/'MMA Rev-Exp Region 11'!$Q$9, 0)","v":{"v":0,"d":"$0.00"}},{"$f":"IFERROR('MMA Rev-Exp Region 11'!$R$31/'MMA Rev-Exp Region 11'!$R$9, 0)","v":{"v":0,"d":"$0.00"}},{"$f":"IFERROR('MMA Rev-Exp Region 11'!$S$31/'MMA Rev-Exp Region 11'!$S$9, 0)","v":{"v":0,"d":"$0.00"}},{"$f":"IFERROR('MMA Rev-Exp Region 11'!$T$31/'MMA Rev-Exp Region 11'!$T$9, 0)","v":{"v":0,"d":"$0.00"}},{"$f":"IFERROR('MMA Rev-Exp Region 11'!$U$31/'MMA Rev-Exp Region 11'!$U$9, 0)","v":{"v":0,"d":"$0.00"}},{"$f":"IFERROR('MMA Rev-Exp Region 11'!$V$31/'MMA Rev-Exp Region 11'!$V$9, 0)","v":{"v":0,"d":"$0.00"}},{"$f":"IFERROR('MMA Rev-Exp Region 11'!$W$31/'MMA Rev-Exp Region 11'!$W$9, 0)","v":{"v":0,"d":"$0.00"}},{"$f":"IFERROR('MMA Rev-Exp Region 11'!$X$31/'MMA Rev-Exp Region 11'!$X$9, 0)","v":{"v":0,"d":"$0.00"}},{"$f":"IFERROR('MMA Rev-Exp Region 11'!$Y$31/'MMA Rev-Exp Region 11'!$Y$9, 0)","v":{"v":0,"d":"$0.00"}}]
["MMA",null,null,2016,"2016-12-31","Q2","2017-06-30","Region 11","Operating Expense","Medical Benefits Expense","Professional Services","3.4","§ 1202 PCP Payments to providers",{"$f":"IFERROR('MMA Rev-Exp Region 11'!$O$32/'MMA Rev-Exp Region 11'!$O$9, 0)","v":{"v":0,"d":"$0.00"}},{"$f":"IFERROR('MMA Rev-Exp Region 11'!$P$32/'MMA Rev-Exp Region 11'!$P$9, 0)","v":{"v":0,"d":"$0.00"}},{"$f":"IFERROR('MMA Rev-Exp Region 11'!$Q$32/'MMA Rev-Exp Region 11'!$Q$9, 0)","v":{"v":0,"d":"$0.00"}},{"$f":"IFERROR('MMA Rev-Exp Region 11'!$R$32/'MMA Rev-Exp Region 11'!$R$9, 0)","v":{"v":0,"d":"$0.00"}},{"$f":"IFERROR('MMA Rev-Exp Region 11'!$S$32/'MMA Rev-Exp Region 11'!$S$9, 0)","v":{"v":0,"d":"$0.00"}},{"$f":"IFERROR('MMA Rev-Exp Region 11'!$T$32/'MMA Rev-Exp Region 11'!$T$9, 0)","v":{"v":0,"d":"$0.00"}},{"$f":"IFERROR('MMA Rev-Exp Region 11'!$U$32/'MMA Rev-Exp Region 11'!$U$9, 0)","v":{"v":0,"d":"$0.00"}},{"$f":"IFERROR('MMA Rev-Exp Region 11'!$V$32/'MMA Rev-Exp Region 11'!$V$9, 0)","v":{"v":0,"d":"$0.00"}},{"$f":"IFERROR('MMA Rev-Exp Region 11'!$W$32/'MMA Rev-Exp Region 11'!$W$9, 0)","v":{"v":0,"d":"$0.00"}},{"$f":"IFERROR('MMA Rev-Exp Region 11'!$X$32/'MMA Rev-Exp Region 11'!$X$9, 0)","v":{"v":0,"d":"$0.00"}},{"$f":"IFERROR('MMA Rev-Exp Region 11'!$Y$32/'MMA Rev-Exp Region 11'!$Y$9, 0)","v":{"v":0,"d":"$0.00"}}]
["MMA",null,null,2016,"2016-12-31","Q2","2017-06-30","Region 11","Operating Expense","Medical Benefits Expense","Professional Services","3.5","Subcapitated Professional Services",{"$f":"IFERROR('MMA Rev-Exp Region 11'!$O$33/'MMA Rev-Exp Region 11'!$O$9, 0)","v":{"v":0,"d":"$0.00"}},{"$f":"IFERROR('MMA Rev-Exp Region 11'!$P$33/'MMA Rev-Exp Region 11'!$P$9, 0)","v":{"v":0,"d":"$0.00"}},{"$f":"IFERROR('MMA Rev-Exp Region 11'!$Q$33/'MMA Rev-Exp Region 11'!$Q$9, 0)","v":{"v":0,"d":"$0.00"}},{"$f":"IFERROR('MMA Rev-Exp Region 11'!$R$33/'MMA Rev-Exp Region 11'!$R$9, 0)","v":{"v":0,"d":"$0.00"}},{"$f":"IFERROR('MMA Rev-Exp Region 11'!$S$33/'MMA Rev-Exp Region 11'!$S$9, 0)","v":{"v":0,"d":"$0.00"}},{"$f":"IFERROR('MMA Rev-Exp Region 11'!$T$33/'MMA Rev-Exp Region 11'!$T$9, 0)","v":{"v":0,"d":"$0.00"}},{"$f":"IFERROR('MMA Rev-Exp Region 11'!$U$33/'MMA Rev-Exp Region 11'!$U$9, 0)","v":{"v":0,"d":"$0.00"}},{"$f":"IFERROR('MMA Rev-Exp Region 11'!$V$33/'MMA Rev-Exp Region 11'!$V$9, 0)","v":{"v":0,"d":"$0.00"}},{"$f":"IFERROR('MMA Rev-Exp Region 11'!$W$33/'MMA Rev-Exp Region 11'!$W$9, 0)","v":{"v":0,"d":"$0.00"}},{"$f":"IFERROR('MMA Rev-Exp Region 11'!$X$33/'MMA Rev-Exp Region 11'!$X$9, 0)","v":{"v":0,"d":"$0.00"}},{"$f":"IFERROR('MMA Rev-Exp Region 11'!$Y$33/'MMA Rev-Exp Region 11'!$Y$9, 0)","v":{"v":0,"d":"$0.00"}}]
["MMA",null,null,2016,"2016-12-31","Q2","2017-06-30","Region 11","Operating Expense","Medical Benefits Expense","Professional Services","3.6","Ending IBNP for Professional Services",{"$f":"IFERROR('MMA Rev-Exp Region 11'!$O$34/'MMA Rev-Exp Region 11'!$O$9, 0)","v":{"v":0,"d":"$0.00"}},{"$f":"IFERROR('MMA Rev-Exp Region 11'!$P$34/'MMA Rev-Exp Region 11'!$P$9, 0)","v":{"v":0,"d":"$0.00"}},{"$f":"IFERROR('MMA Rev-Exp Region 11'!$Q$34/'MMA Rev-Exp Region 11'!$Q$9, 0)","v":{"v":0,"d":"$0.00"}},{"$f":"IFERROR('MMA Rev-Exp Region 11'!$R$34/'MMA Rev-Exp Region 11'!$R$9, 0)","v":{"v":0,"d":"$0.00"}},{"$f":"IFERROR('MMA Rev-Exp Region 11'!$S$34/'MMA Rev-Exp Region 11'!$S$9, 0)","v":{"v":0,"d":"$0.00"}},{"$f":"IFERROR('MMA Rev-Exp Region 11'!$T$34/'MMA Rev-Exp Region 11'!$T$9, 0)","v":{"v":0,"d":"$0.00"}},{"$f":"IFERROR('MMA Rev-Exp Region 11'!$U$34/'MMA Rev-Exp Region 11'!$U$9, 0)","v":{"v":0,"d":"$0.00"}},{"$f":"IFERROR('MMA Rev-Exp Region 11'!$V$34/'MMA Rev-Exp Region 11'!$V$9, 0)","v":{"v":0,"d":"$0.00"}},{"$f":"IFERROR('MMA Rev-Exp Region 11'!$W$34/'MMA Rev-Exp Region 11'!$W$9, 0)","v":{"v":0,"d":"$0.00"}},{"$f":"IFERROR('MMA Rev-Exp Region 11'!$X$34/'MMA Rev-Exp Region 11'!$X$9, 0)","v":{"v":0,"d":"$0.00"}},{"$f":"IFERROR('MMA Rev-Exp Region 11'!$Y$34/'MMA Rev-Exp Region 11'!$Y$9, 0)","v":{"v":0,"d":"$0.00"}}]
["MMA",null,null,2016,"2016-12-31","Q2","2017-06-30","Region 11","Operating Expense","Medical Benefits Expense","Professional Services","3.7","Professional Services Settlements",{"$f":"IFERROR('MMA Rev-Exp Region 11'!$O$35/'MMA Rev-Exp Region 11'!$O$9, 0)","v":{"v":0,"d":"$0.00"}},{"$f":"IFERROR('MMA Rev-Exp Region 11'!$P$35/'MMA Rev-Exp Region 11'!$P$9, 0)","v":{"v":0,"d":"$0.00"}},{"$f":"IFERROR('MMA Rev-Exp Region 11'!$Q$35/'MMA Rev-Exp Region 11'!$Q$9, 0)","v":{"v":0,"d":"$0.00"}},{"$f":"IFERROR('MMA Rev-Exp Region 11'!$R$35/'MMA Rev-Exp Region 11'!$R$9, 0)","v":{"v":0,"d":"$0.00"}},{"$f":"IFERROR('MMA Rev-Exp Region 11'!$S$35/'MMA Rev-Exp Region 11'!$S$9, 0)","v":{"v":0,"d":"$0.00"}},{"$f":"IFERROR('MMA Rev-Exp Region 11'!$T$35/'MMA Rev-Exp Region 11'!$T$9, 0)","v":{"v":0,"d":"$0.00"}},{"$f":"IFERROR('MMA Rev-Exp Region 11'!$U$35/'MMA Rev-Exp Region 11'!$U$9, 0)","v":{"v":0,"d":"$0.00"}},{"$f":"IFERROR('MMA Rev-Exp Region 11'!$V$35/'MMA Rev-Exp Region 11'!$V$9, 0)","v":{"v":0,"d":"$0.00"}},{"$f":"IFERROR('MMA Rev-Exp Region 11'!$W$35/'MMA Rev-Exp Region 11'!$W$9, 0)","v":{"v":0,"d":"$0.00"}},{"$f":"IFERROR('MMA Rev-Exp Region 11'!$X$35/'MMA Rev-Exp Region 11'!$X$9, 0)","v":{"v":0,"d":"$0.00"}},{"$f":"IFERROR('MMA Rev-Exp Region 11'!$Y$35/'MMA Rev-Exp Region 11'!$Y$9, 0)","v":{"v":0,"d":"$0.00"}}]
["MMA",null,null,2016,"2016-12-31","Q2","2017-06-30","Region 11","Operating Expense","Medical Benefits Expense","Maternity Services","4.1.1","Maternity Services",{"$f":"IFERROR('MMA Rev-Exp Region 11'!$O$37/'MMA Rev-Exp Region 11'!$O$9, 0)","v":{"v":0,"d":"$0.00"}},{"$f":"IFERROR('MMA Rev-Exp Region 11'!$P$37/'MMA Rev-Exp Region 11'!$P$9, 0)","v":{"v":0,"d":"$0.00"}},{"$f":"IFERROR('MMA Rev-Exp Region 11'!$Q$37/'MMA Rev-Exp Region 11'!$Q$9, 0)","v":{"v":0,"d":"$0.00"}},{"$f":"IFERROR('MMA Rev-Exp Region 11'!$R$37/'MMA Rev-Exp Region 11'!$R$9, 0)","v":{"v":0,"d":"$0.00"}},{"$f":"IFERROR('MMA Rev-Exp Region 11'!$S$37/'MMA Rev-Exp Region 11'!$S$9, 0)","v":{"v":0,"d":"$0.00"}},{"$f":"IFERROR('MMA Rev-Exp Region 11'!$T$37/'MMA Rev-Exp Region 11'!$T$9, 0)","v":{"v":0,"d":"$0.00"}},{"$f":"IFERROR('MMA Rev-Exp Region 11'!$U$37/'MMA Rev-Exp Region 11'!$U$9, 0)","v":{"v":0,"d":"$0.00"}},{"$f":"IFERROR('MMA Rev-Exp Region 11'!$V$37/'MMA Rev-Exp Region 11'!$V$9, 0)","v":{"v":0,"d":"$0.00"}},{"$f":"IFERROR('MMA Rev-Exp Region 11'!$W$37/'MMA Rev-Exp Region 11'!$W$9, 0)","v":{"v":0,"d":"$0.00"}},{"$f":"IFERROR('MMA Rev-Exp Region 11'!$X$37/'MMA Rev-Exp Region 11'!$X$9, 0)","v":{"v":0,"d":"$0.00"}},{"$f":"IFERROR('MMA Rev-Exp Region 11'!$Y$37/'MMA Rev-Exp Region 11'!$Y$9, 0)","v":{"v":0,"d":"$0.00"}}]
["MMA",null,null,2016,"2016-12-31","Q2","2017-06-30","Region 11","Operating Expense","Medical Benefits Expense","Maternity Services","4.2.1","Ending IBNP for Maternity Services",{"$f":"IFERROR('MMA Rev-Exp Region 11'!$O$38/'MMA Rev-Exp Region 11'!$O$9, 0)","v":{"v":0,"d":"$0.00"}},{"$f":"IFERROR('MMA Rev-Exp Region 11'!$P$38/'MMA Rev-Exp Region 11'!$P$9, 0)","v":{"v":0,"d":"$0.00"}},{"$f":"IFERROR('MMA Rev-Exp Region 11'!$Q$38/'MMA Rev-Exp Region 11'!$Q$9, 0)","v":{"v":0,"d":"$0.00"}},{"$f":"IFERROR('MMA Rev-Exp Region 11'!$R$38/'MMA Rev-Exp Region 11'!$R$9, 0)","v":{"v":0,"d":"$0.00"}},{"$f":"IFERROR('MMA Rev-Exp Region 11'!$S$38/'MMA Rev-Exp Region 11'!$S$9, 0)","v":{"v":0,"d":"$0.00"}},{"$f":"IFERROR('MMA Rev-Exp Region 11'!$T$38/'MMA Rev-Exp Region 11'!$T$9, 0)","v":{"v":0,"d":"$0.00"}},{"$f":"IFERROR('MMA Rev-Exp Region 11'!$U$38/'MMA Rev-Exp Region 11'!$U$9, 0)","v":{"v":0,"d":"$0.00"}},{"$f":"IFERROR('MMA Rev-Exp Region 11'!$V$38/'MMA Rev-Exp Region 11'!$V$9, 0)","v":{"v":0,"d":"$0.00"}},{"$f":"IFERROR('MMA Rev-Exp Region 11'!$W$38/'MMA Rev-Exp Region 11'!$W$9, 0)","v":{"v":0,"d":"$0.00"}},{"$f":"IFERROR('MMA Rev-Exp Region 11'!$X$38/'MMA Rev-Exp Region 11'!$X$9, 0)","v":{"v":0,"d":"$0.00"}},{"$f":"IFERROR('MMA Rev-Exp Region 11'!$Y$38/'MMA Rev-Exp Region 11'!$Y$9, 0)","v":{"v":0,"d":"$0.00"}}]
["MMA",null,null,2016,"2016-12-31","Q2","2017-06-30","Region 11","Operating Expense","Medical Benefits Expense","Maternity Services","4.3.1","Maternity Settlements",{"$f":"IFERROR('MMA Rev-Exp Region 11'!$O$39/'MMA Rev-Exp Region 11'!$O$9, 0)","v":{"v":0,"d":"$0.00"}},{"$f":"IFERROR('MMA Rev-Exp Region 11'!$P$39/'MMA Rev-Exp Region 11'!$P$9, 0)","v":{"v":0,"d":"$0.00"}},{"$f":"IFERROR('MMA Rev-Exp Region 11'!$Q$39/'MMA Rev-Exp Region 11'!$Q$9, 0)","v":{"v":0,"d":"$0.00"}},{"$f":"IFERROR('MMA Rev-Exp Region 11'!$R$39/'MMA Rev-Exp Region 11'!$R$9, 0)","v":{"v":0,"d":"$0.00"}},{"$f":"IFERROR('MMA Rev-Exp Region 11'!$S$39/'MMA Rev-Exp Region 11'!$S$9, 0)","v":{"v":0,"d":"$0.00"}},{"$f":"IFERROR('MMA Rev-Exp Region 11'!$T$39/'MMA Rev-Exp Region 11'!$T$9, 0)","v":{"v":0,"d":"$0.00"}},{"$f":"IFERROR('MMA Rev-Exp Region 11'!$U$39/'MMA Rev-Exp Region 11'!$U$9, 0)","v":{"v":0,"d":"$0.00"}},{"$f":"IFERROR('MMA Rev-Exp Region 11'!$V$39/'MMA Rev-Exp Region 11'!$V$9, 0)","v":{"v":0,"d":"$0.00"}},{"$f":"IFERROR('MMA Rev-Exp Region 11'!$W$39/'MMA Rev-Exp Region 11'!$W$9, 0)","v":{"v":0,"d":"$0.00"}},{"$f":"IFERROR('MMA Rev-Exp Region 11'!$X$39/'MMA Rev-Exp Region 11'!$X$9, 0)","v":{"v":0,"d":"$0.00"}},{"$f":"IFERROR('MMA Rev-Exp Region 11'!$Y$39/'MMA Rev-Exp Region 11'!$Y$9, 0)","v":{"v":0,"d":"$0.00"}}]
["MMA",null,null,2016,"2016-12-31","Q2","2017-06-30","Region 11","Operating Expense","Medical Benefits Expense","Mental Health Services",5.1,"Mental Health & Substance Abuse FFS",{"$f":"IFERROR('MMA Rev-Exp Region 11'!$O$41/'MMA Rev-Exp Region 11'!$O$9, 0)","v":{"v":0,"d":"$0.00"}},{"$f":"IFERROR('MMA Rev-Exp Region 11'!$P$41/'MMA Rev-Exp Region 11'!$P$9, 0)","v":{"v":0,"d":"$0.00"}},{"$f":"IFERROR('MMA Rev-Exp Region 11'!$Q$41/'MMA Rev-Exp Region 11'!$Q$9, 0)","v":{"v":0,"d":"$0.00"}},{"$f":"IFERROR('MMA Rev-Exp Region 11'!$R$41/'MMA Rev-Exp Region 11'!$R$9, 0)","v":{"v":0,"d":"$0.00"}},{"$f":"IFERROR('MMA Rev-Exp Region 11'!$S$41/'MMA Rev-Exp Region 11'!$S$9, 0)","v":{"v":0,"d":"$0.00"}},{"$f":"IFERROR('MMA Rev-Exp Region 11'!$T$41/'MMA Rev-Exp Region 11'!$T$9, 0)","v":{"v":0,"d":"$0.00"}},{"$f":"IFERROR('MMA Rev-Exp Region 11'!$U$41/'MMA Rev-Exp Region 11'!$U$9, 0)","v":{"v":0,"d":"$0.00"}},{"$f":"IFERROR('MMA Rev-Exp Region 11'!$V$41/'MMA Rev-Exp Region 11'!$V$9, 0)","v":{"v":0,"d":"$0.00"}},{"$f":"IFERROR('MMA Rev-Exp Region 11'!$W$41/'MMA Rev-Exp Region 11'!$W$9, 0)","v":{"v":0,"d":"$0.00"}},{"$f":"IFERROR('MMA Rev-Exp Region 11'!$X$41/'MMA Rev-Exp Region 11'!$X$9, 0)","v":{"v":0,"d":"$0.00"}},{"$f":"IFERROR('MMA Rev-Exp Region 11'!$Y$41/'MMA Rev-Exp Region 11'!$Y$9, 0)","v":{"v":0,"d":"$0.00"}}]
["MMA",null,null,2016,"2016-12-31","Q2","2017-06-30","Region 11","Operating Expense","Medical Benefits Expense","Mental Health Services",5.2,"Mental Health & Substance Abuse Subcapitation",{"$f":"IFERROR('MMA Rev-Exp Region 11'!$O$42/'MMA Rev-Exp Region 11'!$O$9, 0)","v":{"v":0,"d":"$0.00"}},{"$f":"IFERROR('MMA Rev-Exp Region 11'!$P$42/'MMA Rev-Exp Region 11'!$P$9, 0)","v":{"v":0,"d":"$0.00"}},{"$f":"IFERROR('MMA Rev-Exp Region 11'!$Q$42/'MMA Rev-Exp Region 11'!$Q$9, 0)","v":{"v":0,"d":"$0.00"}},{"$f":"IFERROR('MMA Rev-Exp Region 11'!$R$42/'MMA Rev-Exp Region 11'!$R$9, 0)","v":{"v":0,"d":"$0.00"}},{"$f":"IFERROR('MMA Rev-Exp Region 11'!$S$42/'MMA Rev-Exp Region 11'!$S$9, 0)","v":{"v":0,"d":"$0.00"}},{"$f":"IFERROR('MMA Rev-Exp Region 11'!$T$42/'MMA Rev-Exp Region 11'!$T$9, 0)","v":{"v":0,"d":"$0.00"}},{"$f":"IFERROR('MMA Rev-Exp Region 11'!$U$42/'MMA Rev-Exp Region 11'!$U$9, 0)","v":{"v":0,"d":"$0.00"}},{"$f":"IFERROR('MMA Rev-Exp Region 11'!$V$42/'MMA Rev-Exp Region 11'!$V$9, 0)","v":{"v":0,"d":"$0.00"}},{"$f":"IFERROR('MMA Rev-Exp Region 11'!$W$42/'MMA Rev-Exp Region 11'!$W$9, 0)","v":{"v":0,"d":"$0.00"}},{"$f":"IFERROR('MMA Rev-Exp Region 11'!$X$42/'MMA Rev-Exp Region 11'!$X$9, 0)","v":{"v":0,"d":"$0.00"}},{"$f":"IFERROR('MMA Rev-Exp Region 11'!$Y$42/'MMA Rev-Exp Region 11'!$Y$9, 0)","v":{"v":0,"d":"$0.00"}}]
["MMA",null,null,2016,"2016-12-31","Q2","2017-06-30","Region 11","Operating Expense","Medical Benefits Expense","Mental Health Services",5.3,"Ending IBNP for Mental Health & Substance Abuse",{"$f":"IFERROR('MMA Rev-Exp Region 11'!$O$43/'MMA Rev-Exp Region 11'!$O$9, 0)","v":{"v":0,"d":"$0.00"}},{"$f":"IFERROR('MMA Rev-Exp Region 11'!$P$43/'MMA Rev-Exp Region 11'!$P$9, 0)","v":{"v":0,"d":"$0.00"}},{"$f":"IFERROR('MMA Rev-Exp Region 11'!$Q$43/'MMA Rev-Exp Region 11'!$Q$9, 0)","v":{"v":0,"d":"$0.00"}},{"$f":"IFERROR('MMA Rev-Exp Region 11'!$R$43/'MMA Rev-Exp Region 11'!$R$9, 0)","v":{"v":0,"d":"$0.00"}},{"$f":"IFERROR('MMA Rev-Exp Region 11'!$S$43/'MMA Rev-Exp Region 11'!$S$9, 0)","v":{"v":0,"d":"$0.00"}},{"$f":"IFERROR('MMA Rev-Exp Region 11'!$T$43/'MMA Rev-Exp Region 11'!$T$9, 0)","v":{"v":0,"d":"$0.00"}},{"$f":"IFERROR('MMA Rev-Exp Region 11'!$U$43/'MMA Rev-Exp Region 11'!$U$9, 0)","v":{"v":0,"d":"$0.00"}},{"$f":"IFERROR('MMA Rev-Exp Region 11'!$V$43/'MMA Rev-Exp Region 11'!$V$9, 0)","v":{"v":0,"d":"$0.00"}},{"$f":"IFERROR('MMA Rev-Exp Region 11'!$W$43/'MMA Rev-Exp Region 11'!$W$9, 0)","v":{"v":0,"d":"$0.00"}},{"$f":"IFERROR('MMA Rev-Exp Region 11'!$X$43/'MMA Rev-Exp Region 11'!$X$9, 0)","v":{"v":0,"d":"$0.00"}},{"$f":"IFERROR('MMA Rev-Exp Region 11'!$Y$43/'MMA Rev-Exp Region 11'!$Y$9, 0)","v":{"v":0,"d":"$0.00"}}]
["MMA",null,null,2016,"2016-12-31","Q2","2017-06-30","Region 11","Operating Expense","Medical Benefits Expense","Mental Health Services","5.4","Mental Health Settlements",{"$f":"IFERROR('MMA Rev-Exp Region 11'!$O$44/'MMA Rev-Exp Region 11'!$O$9, 0)","v":{"v":0,"d":"$0.00"}},{"$f":"IFERROR('MMA Rev-Exp Region 11'!$P$44/'MMA Rev-Exp Region 11'!$P$9, 0)","v":{"v":0,"d":"$0.00"}},{"$f":"IFERROR('MMA Rev-Exp Region 11'!$Q$44/'MMA Rev-Exp Region 11'!$Q$9, 0)","v":{"v":0,"d":"$0.00"}},{"$f":"IFERROR('MMA Rev-Exp Region 11'!$R$44/'MMA Rev-Exp Region 11'!$R$9, 0)","v":{"v":0,"d":"$0.00"}},{"$f":"IFERROR('MMA Rev-Exp Region 11'!$S$44/'MMA Rev-Exp Region 11'!$S$9, 0)","v":{"v":0,"d":"$0.00"}},{"$f":"IFERROR('MMA Rev-Exp Region 11'!$T$44/'MMA Rev-Exp Region 11'!$T$9, 0)","v":{"v":0,"d":"$0.00"}},{"$f":"IFERROR('MMA Rev-Exp Region 11'!$U$44/'MMA Rev-Exp Region 11'!$U$9, 0)","v":{"v":0,"d":"$0.00"}},{"$f":"IFERROR('MMA Rev-Exp Region 11'!$V$44/'MMA Rev-Exp Region 11'!$V$9, 0)","v":{"v":0,"d":"$0.00"}},{"$f":"IFERROR('MMA Rev-Exp Region 11'!$W$44/'MMA Rev-Exp Region 11'!$W$9, 0)","v":{"v":0,"d":"$0.00"}},{"$f":"IFERROR('MMA Rev-Exp Region 11'!$X$44/'MMA Rev-Exp Region 11'!$X$9, 0)","v":{"v":0,"d":"$0.00"}},{"$f":"IFERROR('MMA Rev-Exp Region 11'!$Y$44/'MMA Rev-Exp Region 11'!$Y$9, 0)","v":{"v":0,"d":"$0.00"}}]
["MMA",null,null,2016,"2016-12-31","Q2","2017-06-30","Region 11","Operating Expense","Medical Benefits Expense","Dental Services",6.1,"Dental FFS",{"$f":"IFERROR('MMA Rev-Exp Region 11'!$O$46/'MMA Rev-Exp Region 11'!$O$9, 0)","v":{"v":0,"d":"$0.00"}},{"$f":"IFERROR('MMA Rev-Exp Region 11'!$P$46/'MMA Rev-Exp Region 11'!$P$9, 0)","v":{"v":0,"d":"$0.00"}},{"$f":"IFERROR('MMA Rev-Exp Region 11'!$Q$46/'MMA Rev-Exp Region 11'!$Q$9, 0)","v":{"v":0,"d":"$0.00"}},{"$f":"IFERROR('MMA Rev-Exp Region 11'!$R$46/'MMA Rev-Exp Region 11'!$R$9, 0)","v":{"v":0,"d":"$0.00"}},{"$f":"IFERROR('MMA Rev-Exp Region 11'!$S$46/'MMA Rev-Exp Region 11'!$S$9, 0)","v":{"v":0,"d":"$0.00"}},{"$f":"IFERROR('MMA Rev-Exp Region 11'!$T$46/'MMA Rev-Exp Region 11'!$T$9, 0)","v":{"v":0,"d":"$0.00"}},{"$f":"IFERROR('MMA Rev-Exp Region 11'!$U$46/'MMA Rev-Exp Region 11'!$U$9, 0)","v":{"v":0,"d":"$0.00"}},{"$f":"IFERROR('MMA Rev-Exp Region 11'!$V$46/'MMA Rev-Exp Region 11'!$V$9, 0)","v":{"v":0,"d":"$0.00"}},{"$f":"IFERROR('MMA Rev-Exp Region 11'!$W$46/'MMA Rev-Exp Region 11'!$W$9, 0)","v":{"v":0,"d":"$0.00"}},{"$f":"IFERROR('MMA Rev-Exp Region 11'!$X$46/'MMA Rev-Exp Region 11'!$X$9, 0)","v":{"v":0,"d":"$0.00"}},{"$f":"IFERROR('MMA Rev-Exp Region 11'!$Y$46/'MMA Rev-Exp Region 11'!$Y$9, 0)","v":{"v":0,"d":"$0.00"}}]
["MMA",null,null,2016,"2016-12-31","Q2","2017-06-30","Region 11","Operating Expense","Medical Benefits Expense","Dental Services",6.2,"Dental Subcapitation",{"$f":"IFERROR('MMA Rev-Exp Region 11'!$O$47/'MMA Rev-Exp Region 11'!$O$9, 0)","v":{"v":0,"d":"$0.00"}},{"$f":"IFERROR('MMA Rev-Exp Region 11'!$P$47/'MMA Rev-Exp Region 11'!$P$9, 0)","v":{"v":0,"d":"$0.00"}},{"$f":"IFERROR('MMA Rev-Exp Region 11'!$Q$47/'MMA Rev-Exp Region 11'!$Q$9, 0)","v":{"v":0,"d":"$0.00"}},{"$f":"IFERROR('MMA Rev-Exp Region 11'!$R$47/'MMA Rev-Exp Region 11'!$R$9, 0)","v":{"v":0,"d":"$0.00"}},{"$f":"IFERROR('MMA Rev-Exp Region 11'!$S$47/'MMA Rev-Exp Region 11'!$S$9, 0)","v":{"v":0,"d":"$0.00"}},{"$f":"IFERROR('MMA Rev-Exp Region 11'!$T$47/'MMA Rev-Exp Region 11'!$T$9, 0)","v":{"v":0,"d":"$0.00"}},{"$f":"IFERROR('MMA Rev-Exp Region 11'!$U$47/'MMA Rev-Exp Region 11'!$U$9, 0)","v":{"v":0,"d":"$0.00"}},{"$f":"IFERROR('MMA Rev-Exp Region 11'!$V$47/'MMA Rev-Exp Region 11'!$V$9, 0)","v":{"v":0,"d":"$0.00"}},{"$f":"IFERROR('MMA Rev-Exp Region 11'!$W$47/'MMA Rev-Exp Region 11'!$W$9, 0)","v":{"v":0,"d":"$0.00"}},{"$f":"IFERROR('MMA Rev-Exp Region 11'!$X$47/'MMA Rev-Exp Region 11'!$X$9, 0)","v":{"v":0,"d":"$0.00"}},{"$f":"IFERROR('MMA Rev-Exp Region 11'!$Y$47/'MMA Rev-Exp Region 11'!$Y$9, 0)","v":{"v":0,"d":"$0.00"}}]
["MMA",null,null,2016,"2016-12-31","Q2","2017-06-30","Region 11","Operating Expense","Medical Benefits Expense","Dental Services",6.3,"Ending IBNP for Dental Services",{"$f":"IFERROR('MMA Rev-Exp Region 11'!$O$48/'MMA Rev-Exp Region 11'!$O$9, 0)","v":{"v":0,"d":"$0.00"}},{"$f":"IFERROR('MMA Rev-Exp Region 11'!$P$48/'MMA Rev-Exp Region 11'!$P$9, 0)","v":{"v":0,"d":"$0.00"}},{"$f":"IFERROR('MMA Rev-Exp Region 11'!$Q$48/'MMA Rev-Exp Region 11'!$Q$9, 0)","v":{"v":0,"d":"$0.00"}},{"$f":"IFERROR('MMA Rev-Exp Region 11'!$R$48/'MMA Rev-Exp Region 11'!$R$9, 0)","v":{"v":0,"d":"$0.00"}},{"$f":"IFERROR('MMA Rev-Exp Region 11'!$S$48/'MMA Rev-Exp Region 11'!$S$9, 0)","v":{"v":0,"d":"$0.00"}},{"$f":"IFERROR('MMA Rev-Exp Region 11'!$T$48/'MMA Rev-Exp Region 11'!$T$9, 0)","v":{"v":0,"d":"$0.00"}},{"$f":"IFERROR('MMA Rev-Exp Region 11'!$U$48/'MMA Rev-Exp Region 11'!$U$9, 0)","v":{"v":0,"d":"$0.00"}},{"$f":"IFERROR('MMA Rev-Exp Region 11'!$V$48/'MMA Rev-Exp Region 11'!$V$9, 0)","v":{"v":0,"d":"$0.00"}},{"$f":"IFERROR('MMA Rev-Exp Region 11'!$W$48/'MMA Rev-Exp Region 11'!$W$9, 0)","v":{"v":0,"d":"$0.00"}},{"$f":"IFERROR('MMA Rev-Exp Region 11'!$X$48/'MMA Rev-Exp Region 11'!$X$9, 0)","v":{"v":0,"d":"$0.00"}},{"$f":"IFERROR('MMA Rev-Exp Region 11'!$Y$48/'MMA Rev-Exp Region 11'!$Y$9, 0)","v":{"v":0,"d":"$0.00"}}]
["MMA",null,null,2016,"2016-12-31","Q2","2017-06-30","Region 11","Operating Expense","Medical Benefits Expense","Dental Services","6.4","Dental Settlements",{"$f":"IFERROR('MMA Rev-Exp Region 11'!$O$49/'MMA Rev-Exp Region 11'!$O$9, 0)","v":{"v":0,"d":"$0.00"}},{"$f":"IFERROR('MMA Rev-Exp Region 11'!$P$49/'MMA Rev-Exp Region 11'!$P$9, 0)","v":{"v":0,"d":"$0.00"}},{"$f":"IFERROR('MMA Rev-Exp Region 11'!$Q$49/'MMA Rev-Exp Region 11'!$Q$9, 0)","v":{"v":0,"d":"$0.00"}},{"$f":"IFERROR('MMA Rev-Exp Region 11'!$R$49/'MMA Rev-Exp Region 11'!$R$9, 0)","v":{"v":0,"d":"$0.00"}},{"$f":"IFERROR('MMA Rev-Exp Region 11'!$S$49/'MMA Rev-Exp Region 11'!$S$9, 0)","v":{"v":0,"d":"$0.00"}},{"$f":"IFERROR('MMA Rev-Exp Region 11'!$T$49/'MMA Rev-Exp Region 11'!$T$9, 0)","v":{"v":0,"d":"$0.00"}},{"$f":"IFERROR('MMA Rev-Exp Region 11'!$U$49/'MMA Rev-Exp Region 11'!$U$9, 0)","v":{"v":0,"d":"$0.00"}},{"$f":"IFERROR('MMA Rev-Exp Region 11'!$V$49/'MMA Rev-Exp Region 11'!$V$9, 0)","v":{"v":0,"d":"$0.00"}},{"$f":"IFERROR('MMA Rev-Exp Region 11'!$W$49/'MMA Rev-Exp Region 11'!$W$9, 0)","v":{"v":0,"d":"$0.00"}},{"$f":"IFERROR('MMA Rev-Exp Region 11'!$X$49/'MMA Rev-Exp Region 11'!$X$9, 0)","v":{"v":0,"d":"$0.00"}},{"$f":"IFERROR('MMA Rev-Exp Region 11'!$Y$49/'MMA Rev-Exp Region 11'!$Y$9, 0)","v":{"v":0,"d":"$0.00"}}]
["MMA",null,null,2016,"2016-12-31","Q2","2017-06-30","Region 11","Operating Expense","Medical Benefits Expense","Transportation Services",7.1,"Transportation FFS",{"$f":"IFERROR('MMA Rev-Exp Region 11'!$O$51/'MMA Rev-Exp Region 11'!$O$9, 0)","v":{"v":0,"d":"$0.00"}},{"$f":"IFERROR('MMA Rev-Exp Region 11'!$P$51/'MMA Rev-Exp Region 11'!$P$9, 0)","v":{"v":0,"d":"$0.00"}},{"$f":"IFERROR('MMA Rev-Exp Region 11'!$Q$51/'MMA Rev-Exp Region 11'!$Q$9, 0)","v":{"v":0,"d":"$0.00"}},{"$f":"IFERROR('MMA Rev-Exp Region 11'!$R$51/'MMA Rev-Exp Region 11'!$R$9, 0)","v":{"v":0,"d":"$0.00"}},{"$f":"IFERROR('MMA Rev-Exp Region 11'!$S$51/'MMA Rev-Exp Region 11'!$S$9, 0)","v":{"v":0,"d":"$0.00"}},{"$f":"IFERROR('MMA Rev-Exp Region 11'!$T$51/'MMA Rev-Exp Region 11'!$T$9, 0)","v":{"v":0,"d":"$0.00"}},{"$f":"IFERROR('MMA Rev-Exp Region 11'!$U$51/'MMA Rev-Exp Region 11'!$U$9, 0)","v":{"v":0,"d":"$0.00"}},{"$f":"IFERROR('MMA Rev-Exp Region 11'!$V$51/'MMA Rev-Exp Region 11'!$V$9, 0)","v":{"v":0,"d":"$0.00"}},{"$f":"IFERROR('MMA Rev-Exp Region 11'!$W$51/'MMA Rev-Exp Region 11'!$W$9, 0)","v":{"v":0,"d":"$0.00"}},{"$f":"IFERROR('MMA Rev-Exp Region 11'!$X$51/'MMA Rev-Exp Region 11'!$X$9, 0)","v":{"v":0,"d":"$0.00"}},{"$f":"IFERROR('MMA Rev-Exp Region 11'!$Y$51/'MMA Rev-Exp Region 11'!$Y$9, 0)","v":{"v":0,"d":"$0.00"}}]
["MMA",null,null,2016,"2016-12-31","Q2","2017-06-30","Region 11","Operating Expense","Medical Benefits Expense","Transportation Services",7.2,"Transportation Subcapitation",{"$f":"IFERROR('MMA Rev-Exp Region 11'!$O$52/'MMA Rev-Exp Region 11'!$O$9, 0)","v":{"v":0,"d":"$0.00"}},{"$f":"IFERROR('MMA Rev-Exp Region 11'!$P$52/'MMA Rev-Exp Region 11'!$P$9, 0)","v":{"v":0,"d":"$0.00"}},{"$f":"IFERROR('MMA Rev-Exp Region 11'!$Q$52/'MMA Rev-Exp Region 11'!$Q$9, 0)","v":{"v":0,"d":"$0.00"}},{"$f":"IFERROR('MMA Rev-Exp Region 11'!$R$52/'MMA Rev-Exp Region 11'!$R$9, 0)","v":{"v":0,"d":"$0.00"}},{"$f":"IFERROR('MMA Rev-Exp Region 11'!$S$52/'MMA Rev-Exp Region 11'!$S$9, 0)","v":{"v":0,"d":"$0.00"}},{"$f":"IFERROR('MMA Rev-Exp Region 11'!$T$52/'MMA Rev-Exp Region 11'!$T$9, 0)","v":{"v":0,"d":"$0.00"}},{"$f":"IFERROR('MMA Rev-Exp Region 11'!$U$52/'MMA Rev-Exp Region 11'!$U$9, 0)","v":{"v":0,"d":"$0.00"}},{"$f":"IFERROR('MMA Rev-Exp Region 11'!$V$52/'MMA Rev-Exp Region 11'!$V$9, 0)","v":{"v":0,"d":"$0.00"}},{"$f":"IFERROR('MMA Rev-Exp Region 11'!$W$52/'MMA Rev-Exp Region 11'!$W$9, 0)","v":{"v":0,"d":"$0.00"}},{"$f":"IFERROR('MMA Rev-Exp Region 11'!$X$52/'MMA Rev-Exp Region 11'!$X$9, 0)","v":{"v":0,"d":"$0.00"}},{"$f":"IFERROR('MMA Rev-Exp Region 11'!$Y$52/'MMA Rev-Exp Region 11'!$Y$9, 0)","v":{"v":0,"d":"$0.00"}}]
["MMA",null,null,2016,"2016-12-31","Q2","2017-06-30","Region 11","Operating Expense","Medical Benefits Expense","Transportation Services",7.3,"Ending IBNP for Transportation",{"$f":"IFERROR('MMA Rev-Exp Region 11'!$O$53/'MMA Rev-Exp Region 11'!$O$9, 0)","v":{"v":0,"d":"$0.00"}},{"$f":"IFERROR('MMA Rev-Exp Region 11'!$P$53/'MMA Rev-Exp Region 11'!$P$9, 0)","v":{"v":0,"d":"$0.00"}},{"$f":"IFERROR('MMA Rev-Exp Region 11'!$Q$53/'MMA Rev-Exp Region 11'!$Q$9, 0)","v":{"v":0,"d":"$0.00"}},{"$f":"IFERROR('MMA Rev-Exp Region 11'!$R$53/'MMA Rev-Exp Region 11'!$R$9, 0)","v":{"v":0,"d":"$0.00"}},{"$f":"IFERROR('MMA Rev-Exp Region 11'!$S$53/'MMA Rev-Exp Region 11'!$S$9, 0)","v":{"v":0,"d":"$0.00"}},{"$f":"IFERROR('MMA Rev-Exp Region 11'!$T$53/'MMA Rev-Exp Region 11'!$T$9, 0)","v":{"v":0,"d":"$0.00"}},{"$f":"IFERROR('MMA Rev-Exp Region 11'!$U$53/'MMA Rev-Exp Region 11'!$U$9, 0)","v":{"v":0,"d":"$0.00"}},{"$f":"IFERROR('MMA Rev-Exp Region 11'!$V$53/'MMA Rev-Exp Region 11'!$V$9, 0)","v":{"v":0,"d":"$0.00"}},{"$f":"IFERROR('MMA Rev-Exp Region 11'!$W$53/'MMA Rev-Exp Region 11'!$W$9, 0)","v":{"v":0,"d":"$0.00"}},{"$f":"IFERROR('MMA Rev-Exp Region 11'!$X$53/'MMA Rev-Exp Region 11'!$X$9, 0)","v":{"v":0,"d":"$0.00"}},{"$f":"IFERROR('MMA Rev-Exp Region 11'!$Y$53/'MMA Rev-Exp Region 11'!$Y$9, 0)","v":{"v":0,"d":"$0.00"}}]
["MMA",null,null,2016,"2016-12-31","Q2","2017-06-30","Region 11","Operating Expense","Medical Benefits Expense","Transportation Services","7.4","Transportation Settlements",{"$f":"IFERROR('MMA Rev-Exp Region 11'!$O$54/'MMA Rev-Exp Region 11'!$O$9, 0)","v":{"v":0,"d":"$0.00"}},{"$f":"IFERROR('MMA Rev-Exp Region 11'!$P$54/'MMA Rev-Exp Region 11'!$P$9, 0)","v":{"v":0,"d":"$0.00"}},{"$f":"IFERROR('MMA Rev-Exp Region 11'!$Q$54/'MMA Rev-Exp Region 11'!$Q$9, 0)","v":{"v":0,"d":"$0.00"}},{"$f":"IFERROR('MMA Rev-Exp Region 11'!$R$54/'MMA Rev-Exp Region 11'!$R$9, 0)","v":{"v":0,"d":"$0.00"}},{"$f":"IFERROR('MMA Rev-Exp Region 11'!$S$54/'MMA Rev-Exp Region 11'!$S$9, 0)","v":{"v":0,"d":"$0.00"}},{"$f":"IFERROR('MMA Rev-Exp Region 11'!$T$54/'MMA Rev-Exp Region 11'!$T$9, 0)","v":{"v":0,"d":"$0.00"}},{"$f":"IFERROR('MMA Rev-Exp Region 11'!$U$54/'MMA Rev-Exp Region 11'!$U$9, 0)","v":{"v":0,"d":"$0.00"}},{"$f":"IFERROR('MMA Rev-Exp Region 11'!$V$54/'MMA Rev-Exp Region 11'!$V$9, 0)","v":{"v":0,"d":"$0.00"}},{"$f":"IFERROR('MMA Rev-Exp Region 11'!$W$54/'MMA Rev-Exp Region 11'!$W$9, 0)","v":{"v":0,"d":"$0.00"}},{"$f":"IFERROR('MMA Rev-Exp Region 11'!$X$54/'MMA Rev-Exp Region 11'!$X$9, 0)","v":{"v":0,"d":"$0.00"}},{"$f":"IFERROR('MMA Rev-Exp Region 11'!$Y$54/'MMA Rev-Exp Region 11'!$Y$9, 0)","v":{"v":0,"d":"$0.00"}}]
["MMA",null,null,2016,"2016-12-31","Q2","2017-06-30","Region 11","Operating Expense","Medical Benefits Expense","Pharmacy Services",8.1,"Prescription Drugs FFS",{"$f":"IFERROR('MMA Rev-Exp Region 11'!$O$56/'MMA Rev-Exp Region 11'!$O$9, 0)","v":{"v":0,"d":"$0.00"}},{"$f":"IFERROR('MMA Rev-Exp Region 11'!$P$56/'MMA Rev-Exp Region 11'!$P$9, 0)","v":{"v":0,"d":"$0.00"}},{"$f":"IFERROR('MMA Rev-Exp Region 11'!$Q$56/'MMA Rev-Exp Region 11'!$Q$9, 0)","v":{"v":0,"d":"$0.00"}},{"$f":"IFERROR('MMA Rev-Exp Region 11'!$R$56/'MMA Rev-Exp Region 11'!$R$9, 0)","v":{"v":0,"d":"$0.00"}},{"$f":"IFERROR('MMA Rev-Exp Region 11'!$S$56/'MMA Rev-Exp Region 11'!$S$9, 0)","v":{"v":0,"d":"$0.00"}},{"$f":"IFERROR('MMA Rev-Exp Region 11'!$T$56/'MMA Rev-Exp Region 11'!$T$9, 0)","v":{"v":0,"d":"$0.00"}},{"$f":"IFERROR('MMA Rev-Exp Region 11'!$U$56/'MMA Rev-Exp Region 11'!$U$9, 0)","v":{"v":0,"d":"$0.00"}},{"$f":"IFERROR('MMA Rev-Exp Region 11'!$V$56/'MMA Rev-Exp Region 11'!$V$9, 0)","v":{"v":0,"d":"$0.00"}},{"$f":"IFERROR('MMA Rev-Exp Region 11'!$W$56/'MMA Rev-Exp Region 11'!$W$9, 0)","v":{"v":0,"d":"$0.00"}},{"$f":"IFERROR('MMA Rev-Exp Region 11'!$X$56/'MMA Rev-Exp Region 11'!$X$9, 0)","v":{"v":0,"d":"$0.00"}},{"$f":"IFERROR('MMA Rev-Exp Region 11'!$Y$56/'MMA Rev-Exp Region 11'!$Y$9, 0)","v":{"v":0,"d":"$0.00"}}]
["MMA",null,null,2016,"2016-12-31","Q2","2017-06-30","Region 11","Operating Expense","Medical Benefits Expense","Pharmacy Services","8.2","Hepatitis C Prescription Drug FFS",{"$f":"IFERROR('MMA Rev-Exp Region 11'!$O$57/'MMA Rev-Exp Region 11'!$O$9, 0)","v":{"v":0,"d":"$0.00"}},{"$f":"IFERROR('MMA Rev-Exp Region 11'!$P$57/'MMA Rev-Exp Region 11'!$P$9, 0)","v":{"v":0,"d":"$0.00"}},{"$f":"IFERROR('MMA Rev-Exp Region 11'!$Q$57/'MMA Rev-Exp Region 11'!$Q$9, 0)","v":{"v":0,"d":"$0.00"}},{"$f":"IFERROR('MMA Rev-Exp Region 11'!$R$57/'MMA Rev-Exp Region 11'!$R$9, 0)","v":{"v":0,"d":"$0.00"}},{"$f":"IFERROR('MMA Rev-Exp Region 11'!$S$57/'MMA Rev-Exp Region 11'!$S$9, 0)","v":{"v":0,"d":"$0.00"}},{"$f":"IFERROR('MMA Rev-Exp Region 11'!$T$57/'MMA Rev-Exp Region 11'!$T$9, 0)","v":{"v":0,"d":"$0.00"}},{"$f":"IFERROR('MMA Rev-Exp Region 11'!$U$57/'MMA Rev-Exp Region 11'!$U$9, 0)","v":{"v":0,"d":"$0.00"}},{"$f":"IFERROR('MMA Rev-Exp Region 11'!$V$57/'MMA Rev-Exp Region 11'!$V$9, 0)","v":{"v":0,"d":"$0.00"}},{"$f":"IFERROR('MMA Rev-Exp Region 11'!$W$57/'MMA Rev-Exp Region 11'!$W$9, 0)","v":{"v":0,"d":"$0.00"}},{"$f":"IFERROR('MMA Rev-Exp Region 11'!$X$57/'MMA Rev-Exp Region 11'!$X$9, 0)","v":{"v":0,"d":"$0.00"}},{"$f":"IFERROR('MMA Rev-Exp Region 11'!$Y$57/'MMA Rev-Exp Region 11'!$Y$9, 0)","v":{"v":0,"d":"$0.00"}}]
["MMA",null,null,2016,"2016-12-31","Q2","2017-06-30","Region 11","Operating Expense","Medical Benefits Expense","Pharmacy Services","8.3","Ending IBNP for Prescription Drugs",{"$f":"IFERROR('MMA Rev-Exp Region 11'!$O$58/'MMA Rev-Exp Region 11'!$O$9, 0)","v":{"v":0,"d":"$0.00"}},{"$f":"IFERROR('MMA Rev-Exp Region 11'!$P$58/'MMA Rev-Exp Region 11'!$P$9, 0)","v":{"v":0,"d":"$0.00"}},{"$f":"IFERROR('MMA Rev-Exp Region 11'!$Q$58/'MMA Rev-Exp Region 11'!$Q$9, 0)","v":{"v":0,"d":"$0.00"}},{"$f":"IFERROR('MMA Rev-Exp Region 11'!$R$58/'MMA Rev-Exp Region 11'!$R$9, 0)","v":{"v":0,"d":"$0.00"}},{"$f":"IFERROR('MMA Rev-Exp Region 11'!$S$58/'MMA Rev-Exp Region 11'!$S$9, 0)","v":{"v":0,"d":"$0.00"}},{"$f":"IFERROR('MMA Rev-Exp Region 11'!$T$58/'MMA Rev-Exp Region 11'!$T$9, 0)","v":{"v":0,"d":"$0.00"}},{"$f":"IFERROR('MMA Rev-Exp Region 11'!$U$58/'MMA Rev-Exp Region 11'!$U$9, 0)","v":{"v":0,"d":"$0.00"}},{"$f":"IFERROR('MMA Rev-Exp Region 11'!$V$58/'MMA Rev-Exp Region 11'!$V$9, 0)","v":{"v":0,"d":"$0.00"}},{"$f":"IFERROR('MMA Rev-Exp Region 11'!$W$58/'MMA Rev-Exp Region 11'!$W$9, 0)","v":{"v":0,"d":"$0.00"}},{"$f":"IFERROR('MMA Rev-Exp Region 11'!$X$58/'MMA Rev-Exp Region 11'!$X$9, 0)","v":{"v":0,"d":"$0.00"}},{"$f":"IFERROR('MMA Rev-Exp Region 11'!$Y$58/'MMA Rev-Exp Region 11'!$Y$9, 0)","v":{"v":0,"d":"$0.00"}}]
["MMA",null,null,2016,"2016-12-31","Q2","2017-06-30","Region 11","Operating Expense","Medical Benefits Expense","Pharmacy Services","8.4","Prescription Drug Rebates ",{"$f":"IFERROR('MMA Rev-Exp Region 11'!$O$59/'MMA Rev-Exp Region 11'!$O$9, 0)","v":{"v":0,"d":"$0.00"}},{"$f":"IFERROR('MMA Rev-Exp Region 11'!$P$59/'MMA Rev-Exp Region 11'!$P$9, 0)","v":{"v":0,"d":"$0.00"}},{"$f":"IFERROR('MMA Rev-Exp Region 11'!$Q$59/'MMA Rev-Exp Region 11'!$Q$9, 0)","v":{"v":0,"d":"$0.00"}},{"$f":"IFERROR('MMA Rev-Exp Region 11'!$R$59/'MMA Rev-Exp Region 11'!$R$9, 0)","v":{"v":0,"d":"$0.00"}},{"$f":"IFERROR('MMA Rev-Exp Region 11'!$S$59/'MMA Rev-Exp Region 11'!$S$9, 0)","v":{"v":0,"d":"$0.00"}},{"$f":"IFERROR('MMA Rev-Exp Region 11'!$T$59/'MMA Rev-Exp Region 11'!$T$9, 0)","v":{"v":0,"d":"$0.00"}},{"$f":"IFERROR('MMA Rev-Exp Region 11'!$U$59/'MMA Rev-Exp Region 11'!$U$9, 0)","v":{"v":0,"d":"$0.00"}},{"$f":"IFERROR('MMA Rev-Exp Region 11'!$V$59/'MMA Rev-Exp Region 11'!$V$9, 0)","v":{"v":0,"d":"$0.00"}},{"$f":"IFERROR('MMA Rev-Exp Region 11'!$W$59/'MMA Rev-Exp Region 11'!$W$9, 0)","v":{"v":0,"d":"$0.00"}},{"$f":"IFERROR('MMA Rev-Exp Region 11'!$X$59/'MMA Rev-Exp Region 11'!$X$9, 0)","v":{"v":0,"d":"$0.00"}},{"$f":"IFERROR('MMA Rev-Exp Region 11'!$Y$59/'MMA Rev-Exp Region 11'!$Y$9, 0)","v":{"v":0,"d":"$0.00"}}]
["MMA",null,null,2016,"2016-12-31","Q2","2017-06-30","Region 11","Operating Expense","Medical Benefits Expense","Pharmacy Services","8.5","Ending accrual for Rebates receivable",{"$f":"IFERROR('MMA Rev-Exp Region 11'!$O$60/'MMA Rev-Exp Region 11'!$O$9, 0)","v":{"v":0,"d":"$0.00"}},{"$f":"IFERROR('MMA Rev-Exp Region 11'!$P$60/'MMA Rev-Exp Region 11'!$P$9, 0)","v":{"v":0,"d":"$0.00"}},{"$f":"IFERROR('MMA Rev-Exp Region 11'!$Q$60/'MMA Rev-Exp Region 11'!$Q$9, 0)","v":{"v":0,"d":"$0.00"}},{"$f":"IFERROR('MMA Rev-Exp Region 11'!$R$60/'MMA Rev-Exp Region 11'!$R$9, 0)","v":{"v":0,"d":"$0.00"}},{"$f":"IFERROR('MMA Rev-Exp Region 11'!$S$60/'MMA Rev-Exp Region 11'!$S$9, 0)","v":{"v":0,"d":"$0.00"}},{"$f":"IFERROR('MMA Rev-Exp Region 11'!$T$60/'MMA Rev-Exp Region 11'!$T$9, 0)","v":{"v":0,"d":"$0.00"}},{"$f":"IFERROR('MMA Rev-Exp Region 11'!$U$60/'MMA Rev-Exp Region 11'!$U$9, 0)","v":{"v":0,"d":"$0.00"}},{"$f":"IFERROR('MMA Rev-Exp Region 11'!$V$60/'MMA Rev-Exp Region 11'!$V$9, 0)","v":{"v":0,"d":"$0.00"}},{"$f":"IFERROR('MMA Rev-Exp Region 11'!$W$60/'MMA Rev-Exp Region 11'!$W$9, 0)","v":{"v":0,"d":"$0.00"}},{"$f":"IFERROR('MMA Rev-Exp Region 11'!$X$60/'MMA Rev-Exp Region 11'!$X$9, 0)","v":{"v":0,"d":"$0.00"}},{"$f":"IFERROR('MMA Rev-Exp Region 11'!$Y$60/'MMA Rev-Exp Region 11'!$Y$9, 0)","v":{"v":0,"d":"$0.00"}}]
["MMA",null,null,2016,"2016-12-31","Q2","2017-06-30","Region 11","Operating Expense","Medical Benefits Expense","Pharmacy Services","8.6","Prescription Drugs Subcapitation",{"$f":"IFERROR('MMA Rev-Exp Region 11'!$O$61/'MMA Rev-Exp Region 11'!$O$9, 0)","v":{"v":0,"d":"$0.00"}},{"$f":"IFERROR('MMA Rev-Exp Region 11'!$P$61/'MMA Rev-Exp Region 11'!$P$9, 0)","v":{"v":0,"d":"$0.00"}},{"$f":"IFERROR('MMA Rev-Exp Region 11'!$Q$61/'MMA Rev-Exp Region 11'!$Q$9, 0)","v":{"v":0,"d":"$0.00"}},{"$f":"IFERROR('MMA Rev-Exp Region 11'!$R$61/'MMA Rev-Exp Region 11'!$R$9, 0)","v":{"v":0,"d":"$0.00"}},{"$f":"IFERROR('MMA Rev-Exp Region 11'!$S$61/'MMA Rev-Exp Region 11'!$S$9, 0)","v":{"v":0,"d":"$0.00"}},{"$f":"IFERROR('MMA Rev-Exp Region 11'!$T$61/'MMA Rev-Exp Region 11'!$T$9, 0)","v":{"v":0,"d":"$0.00"}},{"$f":"IFERROR('MMA Rev-Exp Region 11'!$U$61/'MMA Rev-Exp Region 11'!$U$9, 0)","v":{"v":0,"d":"$0.00"}},{"$f":"IFERROR('MMA Rev-Exp Region 11'!$V$61/'MMA Rev-Exp Region 11'!$V$9, 0)","v":{"v":0,"d":"$0.00"}},{"$f":"IFERROR('MMA Rev-Exp Region 11'!$W$61/'MMA Rev-Exp Region 11'!$W$9, 0)","v":{"v":0,"d":"$0.00"}},{"$f":"IFERROR('MMA Rev-Exp Region 11'!$X$61/'MMA Rev-Exp Region 11'!$X$9, 0)","v":{"v":0,"d":"$0.00"}},{"$f":"IFERROR('MMA Rev-Exp Region 11'!$Y$61/'MMA Rev-Exp Region 11'!$Y$9, 0)","v":{"v":0,"d":"$0.00"}}]
["MMA",null,null,2016,"2016-12-31","Q2","2017-06-30","Region 11","Operating Expense","Medical Benefits Expense","Pharmacy Services","8.7","Prescription Drug Settlements",{"$f":"IFERROR('MMA Rev-Exp Region 11'!$O$62/'MMA Rev-Exp Region 11'!$O$9, 0)","v":{"v":0,"d":"$0.00"}},{"$f":"IFERROR('MMA Rev-Exp Region 11'!$P$62/'MMA Rev-Exp Region 11'!$P$9, 0)","v":{"v":0,"d":"$0.00"}},{"$f":"IFERROR('MMA Rev-Exp Region 11'!$Q$62/'MMA Rev-Exp Region 11'!$Q$9, 0)","v":{"v":0,"d":"$0.00"}},{"$f":"IFERROR('MMA Rev-Exp Region 11'!$R$62/'MMA Rev-Exp Region 11'!$R$9, 0)","v":{"v":0,"d":"$0.00"}},{"$f":"IFERROR('MMA Rev-Exp Region 11'!$S$62/'MMA Rev-Exp Region 11'!$S$9, 0)","v":{"v":0,"d":"$0.00"}},{"$f":"IFERROR('MMA Rev-Exp Region 11'!$T$62/'MMA Rev-Exp Region 11'!$T$9, 0)","v":{"v":0,"d":"$0.00"}},{"$f":"IFERROR('MMA Rev-Exp Region 11'!$U$62/'MMA Rev-Exp Region 11'!$U$9, 0)","v":{"v":0,"d":"$0.00"}},{"$f":"IFERROR('MMA Rev-Exp Region 11'!$V$62/'MMA Rev-Exp Region 11'!$V$9, 0)","v":{"v":0,"d":"$0.00"}},{"$f":"IFERROR('MMA Rev-Exp Region 11'!$W$62/'MMA Rev-Exp Region 11'!$W$9, 0)","v":{"v":0,"d":"$0.00"}},{"$f":"IFERROR('MMA Rev-Exp Region 11'!$X$62/'MMA Rev-Exp Region 11'!$X$9, 0)","v":{"v":0,"d":"$0.00"}},{"$f":"IFERROR('MMA Rev-Exp Region 11'!$Y$62/'MMA Rev-Exp Region 11'!$Y$9, 0)","v":{"v":0,"d":"$0.00"}}]
["MMA",null,null,2016,"2016-12-31","Q2","2017-06-30","Region 11","Operating Expense","Medical Benefits Expense","Other MMA Services",9.1,"Home Health, Private Duty Nursing, Personal Care FFS",{"$f":"IFERROR('MMA Rev-Exp Region 11'!$O$64/'MMA Rev-Exp Region 11'!$O$9, 0)","v":{"v":0,"d":"$0.00"}},{"$f":"IFERROR('MMA Rev-Exp Region 11'!$P$64/'MMA Rev-Exp Region 11'!$P$9, 0)","v":{"v":0,"d":"$0.00"}},{"$f":"IFERROR('MMA Rev-Exp Region 11'!$Q$64/'MMA Rev-Exp Region 11'!$Q$9, 0)","v":{"v":0,"d":"$0.00"}},{"$f":"IFERROR('MMA Rev-Exp Region 11'!$R$64/'MMA Rev-Exp Region 11'!$R$9, 0)","v":{"v":0,"d":"$0.00"}},{"$f":"IFERROR('MMA Rev-Exp Region 11'!$S$64/'MMA Rev-Exp Region 11'!$S$9, 0)","v":{"v":0,"d":"$0.00"}},{"$f":"IFERROR('MMA Rev-Exp Region 11'!$T$64/'MMA Rev-Exp Region 11'!$T$9, 0)","v":{"v":0,"d":"$0.00"}},{"$f":"IFERROR('MMA Rev-Exp Region 11'!$U$64/'MMA Rev-Exp Region 11'!$U$9, 0)","v":{"v":0,"d":"$0.00"}},{"$f":"IFERROR('MMA Rev-Exp Region 11'!$V$64/'MMA Rev-Exp Region 11'!$V$9, 0)","v":{"v":0,"d":"$0.00"}},{"$f":"IFERROR('MMA Rev-Exp Region 11'!$W$64/'MMA Rev-Exp Region 11'!$W$9, 0)","v":{"v":0,"d":"$0.00"}},{"$f":"IFERROR('MMA Rev-Exp Region 11'!$X$64/'MMA Rev-Exp Region 11'!$X$9, 0)","v":{"v":0,"d":"$0.00"}},{"$f":"IFERROR('MMA Rev-Exp Region 11'!$Y$64/'MMA Rev-Exp Region 11'!$Y$9, 0)","v":{"v":0,"d":"$0.00"}}]
["MMA",null,null,2016,"2016-12-31","Q2","2017-06-30","Region 11","Operating Expense","Medical Benefits Expense","Other MMA Services","9.2","Hospice FFS",{"$f":"IFERROR('MMA Rev-Exp Region 11'!$O$65/'MMA Rev-Exp Region 11'!$O$9, 0)","v":{"v":0,"d":"$0.00"}},{"$f":"IFERROR('MMA Rev-Exp Region 11'!$P$65/'MMA Rev-Exp Region 11'!$P$9, 0)","v":{"v":0,"d":"$0.00"}},{"$f":"IFERROR('MMA Rev-Exp Region 11'!$Q$65/'MMA Rev-Exp Region 11'!$Q$9, 0)","v":{"v":0,"d":"$0.00"}},{"$f":"IFERROR('MMA Rev-Exp Region 11'!$R$65/'MMA Rev-Exp Region 11'!$R$9, 0)","v":{"v":0,"d":"$0.00"}},{"$f":"IFERROR('MMA Rev-Exp Region 11'!$S$65/'MMA Rev-Exp Region 11'!$S$9, 0)","v":{"v":0,"d":"$0.00"}},{"$f":"IFERROR('MMA Rev-Exp Region 11'!$T$65/'MMA Rev-Exp Region 11'!$T$9, 0)","v":{"v":0,"d":"$0.00"}},{"$f":"IFERROR('MMA Rev-Exp Region 11'!$U$65/'MMA Rev-Exp Region 11'!$U$9, 0)","v":{"v":0,"d":"$0.00"}},{"$f":"IFERROR('MMA Rev-Exp Region 11'!$V$65/'MMA Rev-Exp Region 11'!$V$9, 0)","v":{"v":0,"d":"$0.00"}},{"$f":"IFERROR('MMA Rev-Exp Region 11'!$W$65/'MMA Rev-Exp Region 11'!$W$9, 0)","v":{"v":0,"d":"$0.00"}},{"$f":"IFERROR('MMA Rev-Exp Region 11'!$X$65/'MMA Rev-Exp Region 11'!$X$9, 0)","v":{"v":0,"d":"$0.00"}},{"$f":"IFERROR('MMA Rev-Exp Region 11'!$Y$65/'MMA Rev-Exp Region 11'!$Y$9, 0)","v":{"v":0,"d":"$0.00"}}]
["MMA",null,null,2016,"2016-12-31","Q2","2017-06-30","Region 11","Operating Expense","Medical Benefits Expense","Other MMA Services","9.3","DME FFS",{"$f":"IFERROR('MMA Rev-Exp Region 11'!$O$66/'MMA Rev-Exp Region 11'!$O$9, 0)","v":{"v":0,"d":"$0.00"}},{"$f":"IFERROR('MMA Rev-Exp Region 11'!$P$66/'MMA Rev-Exp Region 11'!$P$9, 0)","v":{"v":0,"d":"$0.00"}},{"$f":"IFERROR('MMA Rev-Exp Region 11'!$Q$66/'MMA Rev-Exp Region 11'!$Q$9, 0)","v":{"v":0,"d":"$0.00"}},{"$f":"IFERROR('MMA Rev-Exp Region 11'!$R$66/'MMA Rev-Exp Region 11'!$R$9, 0)","v":{"v":0,"d":"$0.00"}},{"$f":"IFERROR('MMA Rev-Exp Region 11'!$S$66/'MMA Rev-Exp Region 11'!$S$9, 0)","v":{"v":0,"d":"$0.00"}},{"$f":"IFERROR('MMA Rev-Exp Region 11'!$T$66/'MMA Rev-Exp Region 11'!$T$9, 0)","v":{"v":0,"d":"$0.00"}},{"$f":"IFERROR('MMA Rev-Exp Region 11'!$U$66/'MMA Rev-Exp Region 11'!$U$9, 0)","v":{"v":0,"d":"$0.00"}},{"$f":"IFERROR('MMA Rev-Exp Region 11'!$V$66/'MMA Rev-Exp Region 11'!$V$9, 0)","v":{"v":0,"d":"$0.00"}},{"$f":"IFERROR('MMA Rev-Exp Region 11'!$W$66/'MMA Rev-Exp Region 11'!$W$9, 0)","v":{"v":0,"d":"$0.00"}},{"$f":"IFERROR('MMA Rev-Exp Region 11'!$X$66/'MMA Rev-Exp Region 11'!$X$9, 0)","v":{"v":0,"d":"$0.00"}},{"$f":"IFERROR('MMA Rev-Exp Region 11'!$Y$66/'MMA Rev-Exp Region 11'!$Y$9, 0)","v":{"v":0,"d":"$0.00"}}]
["MMA",null,null,2016,"2016-12-31","Q2","2017-06-30","Region 11","Operating Expense","Medical Benefits Expense","Other MMA Services","9.4","Other State Plan Services FFS",{"$f":"IFERROR('MMA Rev-Exp Region 11'!$O$67/'MMA Rev-Exp Region 11'!$O$9, 0)","v":{"v":0,"d":"$0.00"}},{"$f":"IFERROR('MMA Rev-Exp Region 11'!$P$67/'MMA Rev-Exp Region 11'!$P$9, 0)","v":{"v":0,"d":"$0.00"}},{"$f":"IFERROR('MMA Rev-Exp Region 11'!$Q$67/'MMA Rev-Exp Region 11'!$Q$9, 0)","v":{"v":0,"d":"$0.00"}},{"$f":"IFERROR('MMA Rev-Exp Region 11'!$R$67/'MMA Rev-Exp Region 11'!$R$9, 0)","v":{"v":0,"d":"$0.00"}},{"$f":"IFERROR('MMA Rev-Exp Region 11'!$S$67/'MMA Rev-Exp Region 11'!$S$9, 0)","v":{"v":0,"d":"$0.00"}},{"$f":"IFERROR('MMA Rev-Exp Region 11'!$T$67/'MMA Rev-Exp Region 11'!$T$9, 0)","v":{"v":0,"d":"$0.00"}},{"$f":"IFERROR('MMA Rev-Exp Region 11'!$U$67/'MMA Rev-Exp Region 11'!$U$9, 0)","v":{"v":0,"d":"$0.00"}},{"$f":"IFERROR('MMA Rev-Exp Region 11'!$V$67/'MMA Rev-Exp Region 11'!$V$9, 0)","v":{"v":0,"d":"$0.00"}},{"$f":"IFERROR('MMA Rev-Exp Region 11'!$W$67/'MMA Rev-Exp Region 11'!$W$9, 0)","v":{"v":0,"d":"$0.00"}},{"$f":"IFERROR('MMA Rev-Exp Region 11'!$X$67/'MMA Rev-Exp Region 11'!$X$9, 0)","v":{"v":0,"d":"$0.00"}},{"$f":"IFERROR('MMA Rev-Exp Region 11'!$Y$67/'MMA Rev-Exp Region 11'!$Y$9, 0)","v":{"v":0,"d":"$0.00"}}]
["MMA",null,null,2016,"2016-12-31","Q2","2017-06-30","Region 11","Operating Expense","Medical Benefits Expense","Other MMA Services","9.5","Other Services Subcapitation",{"$f":"IFERROR('MMA Rev-Exp Region 11'!$O$68/'MMA Rev-Exp Region 11'!$O$9, 0)","v":{"v":0,"d":"$0.00"}},{"$f":"IFERROR('MMA Rev-Exp Region 11'!$P$68/'MMA Rev-Exp Region 11'!$P$9, 0)","v":{"v":0,"d":"$0.00"}},{"$f":"IFERROR('MMA Rev-Exp Region 11'!$Q$68/'MMA Rev-Exp Region 11'!$Q$9, 0)","v":{"v":0,"d":"$0.00"}},{"$f":"IFERROR('MMA Rev-Exp Region 11'!$R$68/'MMA Rev-Exp Region 11'!$R$9, 0)","v":{"v":0,"d":"$0.00"}},{"$f":"IFERROR('MMA Rev-Exp Region 11'!$S$68/'MMA Rev-Exp Region 11'!$S$9, 0)","v":{"v":0,"d":"$0.00"}},{"$f":"IFERROR('MMA Rev-Exp Region 11'!$T$68/'MMA Rev-Exp Region 11'!$T$9, 0)","v":{"v":0,"d":"$0.00"}},{"$f":"IFERROR('MMA Rev-Exp Region 11'!$U$68/'MMA Rev-Exp Region 11'!$U$9, 0)","v":{"v":0,"d":"$0.00"}},{"$f":"IFERROR('MMA Rev-Exp Region 11'!$V$68/'MMA Rev-Exp Region 11'!$V$9, 0)","v":{"v":0,"d":"$0.00"}},{"$f":"IFERROR('MMA Rev-Exp Region 11'!$W$68/'MMA Rev-Exp Region 11'!$W$9, 0)","v":{"v":0,"d":"$0.00"}},{"$f":"IFERROR('MMA Rev-Exp Region 11'!$X$68/'MMA Rev-Exp Region 11'!$X$9, 0)","v":{"v":0,"d":"$0.00"}},{"$f":"IFERROR('MMA Rev-Exp Region 11'!$Y$68/'MMA Rev-Exp Region 11'!$Y$9, 0)","v":{"v":0,"d":"$0.00"}}]
["MMA",null,null,2016,"2016-12-31","Q2","2017-06-30","Region 11","Operating Expense","Medical Benefits Expense","Other MMA Services","9.6","Ending IBNP for Other Services",{"$f":"IFERROR('MMA Rev-Exp Region 11'!$O$69/'MMA Rev-Exp Region 11'!$O$9, 0)","v":{"v":0,"d":"$0.00"}},{"$f":"IFERROR('MMA Rev-Exp Region 11'!$P$69/'MMA Rev-Exp Region 11'!$P$9, 0)","v":{"v":0,"d":"$0.00"}},{"$f":"IFERROR('MMA Rev-Exp Region 11'!$Q$69/'MMA Rev-Exp Region 11'!$Q$9, 0)","v":{"v":0,"d":"$0.00"}},{"$f":"IFERROR('MMA Rev-Exp Region 11'!$R$69/'MMA Rev-Exp Region 11'!$R$9, 0)","v":{"v":0,"d":"$0.00"}},{"$f":"IFERROR('MMA Rev-Exp Region 11'!$S$69/'MMA Rev-Exp Region 11'!$S$9, 0)","v":{"v":0,"d":"$0.00"}},{"$f":"IFERROR('MMA Rev-Exp Region 11'!$T$69/'MMA Rev-Exp Region 11'!$T$9, 0)","v":{"v":0,"d":"$0.00"}},{"$f":"IFERROR('MMA Rev-Exp Region 11'!$U$69/'MMA Rev-Exp Region 11'!$U$9, 0)","v":{"v":0,"d":"$0.00"}},{"$f":"IFERROR('MMA Rev-Exp Region 11'!$V$69/'MMA Rev-Exp Region 11'!$V$9, 0)","v":{"v":0,"d":"$0.00"}},{"$f":"IFERROR('MMA Rev-Exp Region 11'!$W$69/'MMA Rev-Exp Region 11'!$W$9, 0)","v":{"v":0,"d":"$0.00"}},{"$f":"IFERROR('MMA Rev-Exp Region 11'!$X$69/'MMA Rev-Exp Region 11'!$X$9, 0)","v":{"v":0,"d":"$0.00"}},{"$f":"IFERROR('MMA Rev-Exp Region 11'!$Y$69/'MMA Rev-Exp Region 11'!$Y$9, 0)","v":{"v":0,"d":"$0.00"}}]
["MMA",null,null,2016,"2016-12-31","Q2","2017-06-30","Region 11","Operating Expense","Medical Benefits Expense","Other MMA Services","9.7","Other Services Settlements",{"$f":"IFERROR('MMA Rev-Exp Region 11'!$O$70/'MMA Rev-Exp Region 11'!$O$9, 0)","v":{"v":0,"d":"$0.00"}},{"$f":"IFERROR('MMA Rev-Exp Region 11'!$P$70/'MMA Rev-Exp Region 11'!$P$9, 0)","v":{"v":0,"d":"$0.00"}},{"$f":"IFERROR('MMA Rev-Exp Region 11'!$Q$70/'MMA Rev-Exp Region 11'!$Q$9, 0)","v":{"v":0,"d":"$0.00"}},{"$f":"IFERROR('MMA Rev-Exp Region 11'!$R$70/'MMA Rev-Exp Region 11'!$R$9, 0)","v":{"v":0,"d":"$0.00"}},{"$f":"IFERROR('MMA Rev-Exp Region 11'!$S$70/'MMA Rev-Exp Region 11'!$S$9, 0)","v":{"v":0,"d":"$0.00"}},{"$f":"IFERROR('MMA Rev-Exp Region 11'!$T$70/'MMA Rev-Exp Region 11'!$T$9, 0)","v":{"v":0,"d":"$0.00"}},{"$f":"IFERROR('MMA Rev-Exp Region 11'!$U$70/'MMA Rev-Exp Region 11'!$U$9, 0)","v":{"v":0,"d":"$0.00"}},{"$f":"IFERROR('MMA Rev-Exp Region 11'!$V$70/'MMA Rev-Exp Region 11'!$V$9, 0)","v":{"v":0,"d":"$0.00"}},{"$f":"IFERROR('MMA Rev-Exp Region 11'!$W$70/'MMA Rev-Exp Region 11'!$W$9, 0)","v":{"v":0,"d":"$0.00"}},{"$f":"IFERROR('MMA Rev-Exp Region 11'!$X$70/'MMA Rev-Exp Region 11'!$X$9, 0)","v":{"v":0,"d":"$0.00"}},{"$f":"IFERROR('MMA Rev-Exp Region 11'!$Y$70/'MMA Rev-Exp Region 11'!$Y$9, 0)","v":{"v":0,"d":"$0.00"}}]
["MMA",null,null,2016,"2016-12-31","Q2","2017-06-30","Region 11","Operating Expense","Medical Benefits Expense","Expanded Benefits","10.1","Expanded Benefits FFS",{"$f":"IFERROR('MMA Rev-Exp Region 11'!$O$72/'MMA Rev-Exp Region 11'!$O$9, 0)","v":{"v":0,"d":"$0.00"}},{"$f":"IFERROR('MMA Rev-Exp Region 11'!$P$72/'MMA Rev-Exp Region 11'!$P$9, 0)","v":{"v":0,"d":"$0.00"}},{"$f":"IFERROR('MMA Rev-Exp Region 11'!$Q$72/'MMA Rev-Exp Region 11'!$Q$9, 0)","v":{"v":0,"d":"$0.00"}},{"$f":"IFERROR('MMA Rev-Exp Region 11'!$R$72/'MMA Rev-Exp Region 11'!$R$9, 0)","v":{"v":0,"d":"$0.00"}},{"$f":"IFERROR('MMA Rev-Exp Region 11'!$S$72/'MMA Rev-Exp Region 11'!$S$9, 0)","v":{"v":0,"d":"$0.00"}},{"$f":"IFERROR('MMA Rev-Exp Region 11'!$T$72/'MMA Rev-Exp Region 11'!$T$9, 0)","v":{"v":0,"d":"$0.00"}},{"$f":"IFERROR('MMA Rev-Exp Region 11'!$U$72/'MMA Rev-Exp Region 11'!$U$9, 0)","v":{"v":0,"d":"$0.00"}},{"$f":"IFERROR('MMA Rev-Exp Region 11'!$V$72/'MMA Rev-Exp Region 11'!$V$9, 0)","v":{"v":0,"d":"$0.00"}},{"$f":"IFERROR('MMA Rev-Exp Region 11'!$W$72/'MMA Rev-Exp Region 11'!$W$9, 0)","v":{"v":0,"d":"$0.00"}},{"$f":"IFERROR('MMA Rev-Exp Region 11'!$X$72/'MMA Rev-Exp Region 11'!$X$9, 0)","v":{"v":0,"d":"$0.00"}},{"$f":"IFERROR('MMA Rev-Exp Region 11'!$Y$72/'MMA Rev-Exp Region 11'!$Y$9, 0)","v":{"v":0,"d":"$0.00"}}]
["MMA",null,null,2016,"2016-12-31","Q2","2017-06-30","Region 11","Operating Expense","Medical Benefits Expense","Expanded Benefits","10.2","Expanded benefits Subcapitation",{"$f":"IFERROR('MMA Rev-Exp Region 11'!$O$73/'MMA Rev-Exp Region 11'!$O$9, 0)","v":{"v":0,"d":"$0.00"}},{"$f":"IFERROR('MMA Rev-Exp Region 11'!$P$73/'MMA Rev-Exp Region 11'!$P$9, 0)","v":{"v":0,"d":"$0.00"}},{"$f":"IFERROR('MMA Rev-Exp Region 11'!$Q$73/'MMA Rev-Exp Region 11'!$Q$9, 0)","v":{"v":0,"d":"$0.00"}},{"$f":"IFERROR('MMA Rev-Exp Region 11'!$R$73/'MMA Rev-Exp Region 11'!$R$9, 0)","v":{"v":0,"d":"$0.00"}},{"$f":"IFERROR('MMA Rev-Exp Region 11'!$S$73/'MMA Rev-Exp Region 11'!$S$9, 0)","v":{"v":0,"d":"$0.00"}},{"$f":"IFERROR('MMA Rev-Exp Region 11'!$T$73/'MMA Rev-Exp Region 11'!$T$9, 0)","v":{"v":0,"d":"$0.00"}},{"$f":"IFERROR('MMA Rev-Exp Region 11'!$U$73/'MMA Rev-Exp Region 11'!$U$9, 0)","v":{"v":0,"d":"$0.00"}},{"$f":"IFERROR('MMA Rev-Exp Region 11'!$V$73/'MMA Rev-Exp Region 11'!$V$9, 0)","v":{"v":0,"d":"$0.00"}},{"$f":"IFERROR('MMA Rev-Exp Region 11'!$W$73/'MMA Rev-Exp Region 11'!$W$9, 0)","v":{"v":0,"d":"$0.00"}},{"$f":"IFERROR('MMA Rev-Exp Region 11'!$X$73/'MMA Rev-Exp Region 11'!$X$9, 0)","v":{"v":0,"d":"$0.00"}},{"$f":"IFERROR('MMA Rev-Exp Region 11'!$Y$73/'MMA Rev-Exp Region 11'!$Y$9, 0)","v":{"v":0,"d":"$0.00"}}]
["MMA",null,null,2016,"2016-12-31","Q2","2017-06-30","Region 11","Operating Expense","Medical Benefits Expense","Expanded Benefits","10.3","Ending IBNP for Expanded Benefits",{"$f":"IFERROR('MMA Rev-Exp Region 11'!$O$74/'MMA Rev-Exp Region 11'!$O$9, 0)","v":{"v":0,"d":"$0.00"}},{"$f":"IFERROR('MMA Rev-Exp Region 11'!$P$74/'MMA Rev-Exp Region 11'!$P$9, 0)","v":{"v":0,"d":"$0.00"}},{"$f":"IFERROR('MMA Rev-Exp Region 11'!$Q$74/'MMA Rev-Exp Region 11'!$Q$9, 0)","v":{"v":0,"d":"$0.00"}},{"$f":"IFERROR('MMA Rev-Exp Region 11'!$R$74/'MMA Rev-Exp Region 11'!$R$9, 0)","v":{"v":0,"d":"$0.00"}},{"$f":"IFERROR('MMA Rev-Exp Region 11'!$S$74/'MMA Rev-Exp Region 11'!$S$9, 0)","v":{"v":0,"d":"$0.00"}},{"$f":"IFERROR('MMA Rev-Exp Region 11'!$T$74/'MMA Rev-Exp Region 11'!$T$9, 0)","v":{"v":0,"d":"$0.00"}},{"$f":"IFERROR('MMA Rev-Exp Region 11'!$U$74/'MMA Rev-Exp Region 11'!$U$9, 0)","v":{"v":0,"d":"$0.00"}},{"$f":"IFERROR('MMA Rev-Exp Region 11'!$V$74/'MMA Rev-Exp Region 11'!$V$9, 0)","v":{"v":0,"d":"$0.00"}},{"$f":"IFERROR('MMA Rev-Exp Region 11'!$W$74/'MMA Rev-Exp Region 11'!$W$9, 0)","v":{"v":0,"d":"$0.00"}},{"$f":"IFERROR('MMA Rev-Exp Region 11'!$X$74/'MMA Rev-Exp Region 11'!$X$9, 0)","v":{"v":0,"d":"$0.00"}},{"$f":"IFERROR('MMA Rev-Exp Region 11'!$Y$74/'MMA Rev-Exp Region 11'!$Y$9, 0)","v":{"v":0,"d":"$0.00"}}]
["MMA",null,null,2016,"2016-12-31","Q2","2017-06-30","Region 11","Operating Expense","Medical Benefits Expense","Expanded Benefits","10.4","Expanded Benefits Settlements",{"$f":"IFERROR('MMA Rev-Exp Region 11'!$O$75/'MMA Rev-Exp Region 11'!$O$9, 0)","v":{"v":0,"d":"$0.00"}},{"$f":"IFERROR('MMA Rev-Exp Region 11'!$P$75/'MMA Rev-Exp Region 11'!$P$9, 0)","v":{"v":0,"d":"$0.00"}},{"$f":"IFERROR('MMA Rev-Exp Region 11'!$Q$75/'MMA Rev-Exp Region 11'!$Q$9, 0)","v":{"v":0,"d":"$0.00"}},{"$f":"IFERROR('MMA Rev-Exp Region 11'!$R$75/'MMA Rev-Exp Region 11'!$R$9, 0)","v":{"v":0,"d":"$0.00"}},{"$f":"IFERROR('MMA Rev-Exp Region 11'!$S$75/'MMA Rev-Exp Region 11'!$S$9, 0)","v":{"v":0,"d":"$0.00"}},{"$f":"IFERROR('MMA Rev-Exp Region 11'!$T$75/'MMA Rev-Exp Region 11'!$T$9, 0)","v":{"v":0,"d":"$0.00"}},{"$f":"IFERROR('MMA Rev-Exp Region 11'!$U$75/'MMA Rev-Exp Region 11'!$U$9, 0)","v":{"v":0,"d":"$0.00"}},{"$f":"IFERROR('MMA Rev-Exp Region 11'!$V$75/'MMA Rev-Exp Region 11'!$V$9, 0)","v":{"v":0,"d":"$0.00"}},{"$f":"IFERROR('MMA Rev-Exp Region 11'!$W$75/'MMA Rev-Exp Region 11'!$W$9, 0)","v":{"v":0,"d":"$0.00"}},{"$f":"IFERROR('MMA Rev-Exp Region 11'!$X$75/'MMA Rev-Exp Region 11'!$X$9, 0)","v":{"v":0,"d":"$0.00"}},{"$f":"IFERROR('MMA Rev-Exp Region 11'!$Y$75/'MMA Rev-Exp Region 11'!$Y$9, 0)","v":{"v":0,"d":"$0.00"}}]
["MMA",null,null,2016,"2016-12-31","Q2","2017-06-30","Region 11","Operating Expense","Medical Benefits Expense","Other Medical","11.5","TPL & Fraud/Abuse Recoveries",{"$f":"IFERROR('MMA Rev-Exp Region 11'!$O$81/'MMA Rev-Exp Region 11'!$O$9, 0)","v":{"v":0,"d":"$0.00"}},{"$f":"IFERROR('MMA Rev-Exp Region 11'!$P$81/'MMA Rev-Exp Region 11'!$P$9, 0)","v":{"v":0,"d":"$0.00"}},{"$f":"IFERROR('MMA Rev-Exp Region 11'!$Q$81/'MMA Rev-Exp Region 11'!$Q$9, 0)","v":{"v":0,"d":"$0.00"}},{"$f":"IFERROR('MMA Rev-Exp Region 11'!$R$81/'MMA Rev-Exp Region 11'!$R$9, 0)","v":{"v":0,"d":"$0.00"}},{"$f":"IFERROR('MMA Rev-Exp Region 11'!$S$81/'MMA Rev-Exp Region 11'!$S$9, 0)","v":{"v":0,"d":"$0.00"}},{"$f":"IFERROR('MMA Rev-Exp Region 11'!$T$81/'MMA Rev-Exp Region 11'!$T$9, 0)","v":{"v":0,"d":"$0.00"}},{"$f":"IFERROR('MMA Rev-Exp Region 11'!$U$81/'MMA Rev-Exp Region 11'!$U$9, 0)","v":{"v":0,"d":"$0.00"}},{"$f":"IFERROR('MMA Rev-Exp Region 11'!$V$81/'MMA Rev-Exp Region 11'!$V$9, 0)","v":{"v":0,"d":"$0.00"}},{"$f":"IFERROR('MMA Rev-Exp Region 11'!$W$81/'MMA Rev-Exp Region 11'!$W$9, 0)","v":{"v":0,"d":"$0.00"}},{"$f":"IFERROR('MMA Rev-Exp Region 11'!$X$81/'MMA Rev-Exp Region 11'!$X$9, 0)","v":{"v":0,"d":"$0.00"}},{"$f":"IFERROR('MMA Rev-Exp Region 11'!$Y$81/'MMA Rev-Exp Region 11'!$Y$9, 0)","v":{"v":0,"d":"$0.00"}}]
["MMA",null,null,2016,"2016-12-31","Q2","2017-06-30","Region 11","Operating Expense","Medical Benefits Expense","Other Medical","11.6.1","Premium Deficiency Reserve",{"$f":"IFERROR('MMA Rev-Exp Region 11'!$O$82/'MMA Rev-Exp Region 11'!$O$9, 0)","v":{"v":0,"d":"$0.00"}},{"$f":"IFERROR('MMA Rev-Exp Region 11'!$P$82/'MMA Rev-Exp Region 11'!$P$9, 0)","v":{"v":0,"d":"$0.00"}},{"$f":"IFERROR('MMA Rev-Exp Region 11'!$Q$82/'MMA Rev-Exp Region 11'!$Q$9, 0)","v":{"v":0,"d":"$0.00"}},{"$f":"IFERROR('MMA Rev-Exp Region 11'!$R$82/'MMA Rev-Exp Region 11'!$R$9, 0)","v":{"v":0,"d":"$0.00"}},{"$f":"IFERROR('MMA Rev-Exp Region 11'!$S$82/'MMA Rev-Exp Region 11'!$S$9, 0)","v":{"v":0,"d":"$0.00"}},{"$f":"IFERROR('MMA Rev-Exp Region 11'!$T$82/'MMA Rev-Exp Region 11'!$T$9, 0)","v":{"v":0,"d":"$0.00"}},{"$f":"IFERROR('MMA Rev-Exp Region 11'!$U$82/'MMA Rev-Exp Region 11'!$U$9, 0)","v":{"v":0,"d":"$0.00"}},{"$f":"IFERROR('MMA Rev-Exp Region 11'!$V$82/'MMA Rev-Exp Region 11'!$V$9, 0)","v":{"v":0,"d":"$0.00"}},{"$f":"IFERROR('MMA Rev-Exp Region 11'!$W$82/'MMA Rev-Exp Region 11'!$W$9, 0)","v":{"v":0,"d":"$0.00"}},{"$f":"IFERROR('MMA Rev-Exp Region 11'!$X$82/'MMA Rev-Exp Region 11'!$X$9, 0)","v":{"v":0,"d":"$0.00"}},{"$f":"IFERROR('MMA Rev-Exp Region 11'!$Y$82/'MMA Rev-Exp Region 11'!$Y$9, 0)","v":{"v":0,"d":"$0.00"}}]
["MMA",null,null,2016,"2016-12-31","Q2","2017-06-30","Region 11","Operating Expense","Medical Benefits Expense","Other Medical","11.8","Reinsurance Premiums",{"$f":"IFERROR('MMA Rev-Exp Region 11'!$O$84/'MMA Rev-Exp Region 11'!$O$9, 0)","v":{"v":0,"d":"$0.00"}},{"$f":"IFERROR('MMA Rev-Exp Region 11'!$P$84/'MMA Rev-Exp Region 11'!$P$9, 0)","v":{"v":0,"d":"$0.00"}},{"$f":"IFERROR('MMA Rev-Exp Region 11'!$Q$84/'MMA Rev-Exp Region 11'!$Q$9, 0)","v":{"v":0,"d":"$0.00"}},{"$f":"IFERROR('MMA Rev-Exp Region 11'!$R$84/'MMA Rev-Exp Region 11'!$R$9, 0)","v":{"v":0,"d":"$0.00"}},{"$f":"IFERROR('MMA Rev-Exp Region 11'!$S$84/'MMA Rev-Exp Region 11'!$S$9, 0)","v":{"v":0,"d":"$0.00"}},{"$f":"IFERROR('MMA Rev-Exp Region 11'!$T$84/'MMA Rev-Exp Region 11'!$T$9, 0)","v":{"v":0,"d":"$0.00"}},{"$f":"IFERROR('MMA Rev-Exp Region 11'!$U$84/'MMA Rev-Exp Region 11'!$U$9, 0)","v":{"v":0,"d":"$0.00"}},{"$f":"IFERROR('MMA Rev-Exp Region 11'!$V$84/'MMA Rev-Exp Region 11'!$V$9, 0)","v":{"v":0,"d":"$0.00"}},{"$f":"IFERROR('MMA Rev-Exp Region 11'!$W$84/'MMA Rev-Exp Region 11'!$W$9, 0)","v":{"v":0,"d":"$0.00"}},{"$f":"IFERROR('MMA Rev-Exp Region 11'!$X$84/'MMA Rev-Exp Region 11'!$X$9, 0)","v":{"v":0,"d":"$0.00"}},{"$f":"IFERROR('MMA Rev-Exp Region 11'!$Y$84/'MMA Rev-Exp Region 11'!$Y$9, 0)","v":{"v":0,"d":"$0.00"}}]
["MMA",null,null,2016,"2016-12-31","Q2","2017-06-30","Region 11","Operating Expense","Medical Benefits Expense","Other Medical","11.9","Reinsurance Recoveries",{"$f":"IFERROR('MMA Rev-Exp Region 11'!$O$85/'MMA Rev-Exp Region 11'!$O$9, 0)","v":{"v":0,"d":"$0.00"}},{"$f":"IFERROR('MMA Rev-Exp Region 11'!$P$85/'MMA Rev-Exp Region 11'!$P$9, 0)","v":{"v":0,"d":"$0.00"}},{"$f":"IFERROR('MMA Rev-Exp Region 11'!$Q$85/'MMA Rev-Exp Region 11'!$Q$9, 0)","v":{"v":0,"d":"$0.00"}},{"$f":"IFERROR('MMA Rev-Exp Region 11'!$R$85/'MMA Rev-Exp Region 11'!$R$9, 0)","v":{"v":0,"d":"$0.00"}},{"$f":"IFERROR('MMA Rev-Exp Region 11'!$S$85/'MMA Rev-Exp Region 11'!$S$9, 0)","v":{"v":0,"d":"$0.00"}},{"$f":"IFERROR('MMA Rev-Exp Region 11'!$T$85/'MMA Rev-Exp Region 11'!$T$9, 0)","v":{"v":0,"d":"$0.00"}},{"$f":"IFERROR('MMA Rev-Exp Region 11'!$U$85/'MMA Rev-Exp Region 11'!$U$9, 0)","v":{"v":0,"d":"$0.00"}},{"$f":"IFERROR('MMA Rev-Exp Region 11'!$V$85/'MMA Rev-Exp Region 11'!$V$9, 0)","v":{"v":0,"d":"$0.00"}},{"$f":"IFERROR('MMA Rev-Exp Region 11'!$W$85/'MMA Rev-Exp Region 11'!$W$9, 0)","v":{"v":0,"d":"$0.00"}},{"$f":"IFERROR('MMA Rev-Exp Region 11'!$X$85/'MMA Rev-Exp Region 11'!$X$9, 0)","v":{"v":0,"d":"$0.00"}},{"$f":"IFERROR('MMA Rev-Exp Region 11'!$Y$85/'MMA Rev-Exp Region 11'!$Y$9, 0)","v":{"v":0,"d":"$0.00"}}]
["MMA",null,null,2016,"2016-12-31","Q2","2017-06-30","Region 11","Operating Expense","Administrative Expense","Administrative","12.1","Salaries & Benefits",{"$f":"IFERROR('MMA Rev-Exp Region 11'!$O$90/'MMA Rev-Exp Region 11'!$O$9, 0)","v":{"v":0,"d":"$0.00"}},{"$f":"IFERROR('MMA Rev-Exp Region 11'!$P$90/'MMA Rev-Exp Region 11'!$O$9, 0)","v":{"v":0,"d":"$0.00"}},{"$f":"IFERROR('MMA Rev-Exp Region 11'!$Q$90/'MMA Rev-Exp Region 11'!$O$9, 0)","v":{"v":0,"d":"$0.00"}},{"$f":"IFERROR('MMA Rev-Exp Region 11'!$R$90/'MMA Rev-Exp Region 11'!$R$9, 0)","v":{"v":0,"d":"$0.00"}},{"$f":"IFERROR('MMA Rev-Exp Region 11'!$S$90/'MMA Rev-Exp Region 11'!$S$9, 0)","v":{"v":0,"d":"$0.00"}},{"$f":"IFERROR('MMA Rev-Exp Region 11'!$T$90/'MMA Rev-Exp Region 11'!$T$9, 0)","v":{"v":0,"d":"$0.00"}},{"$f":"IFERROR('MMA Rev-Exp Region 11'!$U$90/'MMA Rev-Exp Region 11'!$U$9, 0)","v":{"v":0,"d":"$0.00"}},{"$f":"IFERROR('MMA Rev-Exp Region 11'!$V$90/'MMA Rev-Exp Region 11'!$V$9, 0)","v":{"v":0,"d":"$0.00"}},{"$f":"IFERROR('MMA Rev-Exp Region 11'!$W$90/'MMA Rev-Exp Region 11'!$W$9, 0)","v":{"v":0,"d":"$0.00"}},{"$f":"IFERROR('MMA Rev-Exp Region 11'!$X$90/'MMA Rev-Exp Region 11'!$X$9, 0)","v":{"v":0,"d":"$0.00"}},{"$f":"IFERROR('MMA Rev-Exp Region 11'!$Y$90/'MMA Rev-Exp Region 11'!$Y$9, 0)","v":{"v":0,"d":"$0.00"}}]
["MMA",null,null,2016,"2016-12-31","Q2","2017-06-30","Region 11","Operating Expense","Administrative Expense","Administrative","12.2","Administrative Services",{"$f":"IFERROR('MMA Rev-Exp Region 11'!$O$91/'MMA Rev-Exp Region 11'!$O$9, 0)","v":{"v":0,"d":"$0.00"}},{"$f":"IFERROR('MMA Rev-Exp Region 11'!$P$91/'MMA Rev-Exp Region 11'!$O$9, 0)","v":{"v":0,"d":"$0.00"}},{"$f":"IFERROR('MMA Rev-Exp Region 11'!$Q$91/'MMA Rev-Exp Region 11'!$O$9, 0)","v":{"v":0,"d":"$0.00"}},{"$f":"IFERROR('MMA Rev-Exp Region 11'!$R$91/'MMA Rev-Exp Region 11'!$R$9, 0)","v":{"v":0,"d":"$0.00"}},{"$f":"IFERROR('MMA Rev-Exp Region 11'!$S$91/'MMA Rev-Exp Region 11'!$S$9, 0)","v":{"v":0,"d":"$0.00"}},{"$f":"IFERROR('MMA Rev-Exp Region 11'!$T$91/'MMA Rev-Exp Region 11'!$T$9, 0)","v":{"v":0,"d":"$0.00"}},{"$f":"IFERROR('MMA Rev-Exp Region 11'!$U$91/'MMA Rev-Exp Region 11'!$U$9, 0)","v":{"v":0,"d":"$0.00"}},{"$f":"IFERROR('MMA Rev-Exp Region 11'!$V$91/'MMA Rev-Exp Region 11'!$V$9, 0)","v":{"v":0,"d":"$0.00"}},{"$f":"IFERROR('MMA Rev-Exp Region 11'!$W$91/'MMA Rev-Exp Region 11'!$W$9, 0)","v":{"v":0,"d":"$0.00"}},{"$f":"IFERROR('MMA Rev-Exp Region 11'!$X$91/'MMA Rev-Exp Region 11'!$X$9, 0)","v":{"v":0,"d":"$0.00"}},{"$f":"IFERROR('MMA Rev-Exp Region 11'!$Y$91/'MMA Rev-Exp Region 11'!$Y$9, 0)","v":{"v":0,"d":"$0.00"}}]
["MMA",null,null,2016,"2016-12-31","Q2","2017-06-30","Region 11","Operating Expense","Administrative Expense","Administrative","12.3","Information Systems",{"$f":"IFERROR('MMA Rev-Exp Region 11'!$O$92/'MMA Rev-Exp Region 11'!$O$9, 0)","v":{"v":0,"d":"$0.00"}},{"$f":"IFERROR('MMA Rev-Exp Region 11'!$P$92/'MMA Rev-Exp Region 11'!$O$9, 0)","v":{"v":0,"d":"$0.00"}},{"$f":"IFERROR('MMA Rev-Exp Region 11'!$Q$92/'MMA Rev-Exp Region 11'!$O$9, 0)","v":{"v":0,"d":"$0.00"}},{"$f":"IFERROR('MMA Rev-Exp Region 11'!$R$92/'MMA Rev-Exp Region 11'!$R$9, 0)","v":{"v":0,"d":"$0.00"}},{"$f":"IFERROR('MMA Rev-Exp Region 11'!$S$92/'MMA Rev-Exp Region 11'!$S$9, 0)","v":{"v":0,"d":"$0.00"}},{"$f":"IFERROR('MMA Rev-Exp Region 11'!$T$92/'MMA Rev-Exp Region 11'!$T$9, 0)","v":{"v":0,"d":"$0.00"}},{"$f":"IFERROR('MMA Rev-Exp Region 11'!$U$92/'MMA Rev-Exp Region 11'!$U$9, 0)","v":{"v":0,"d":"$0.00"}},{"$f":"IFERROR('MMA Rev-Exp Region 11'!$V$92/'MMA Rev-Exp Region 11'!$V$9, 0)","v":{"v":0,"d":"$0.00"}},{"$f":"IFERROR('MMA Rev-Exp Region 11'!$W$92/'MMA Rev-Exp Region 11'!$W$9, 0)","v":{"v":0,"d":"$0.00"}},{"$f":"IFERROR('MMA Rev-Exp Region 11'!$X$92/'MMA Rev-Exp Region 11'!$X$9, 0)","v":{"v":0,"d":"$0.00"}},{"$f":"IFERROR('MMA Rev-Exp Region 11'!$Y$92/'MMA Rev-Exp Region 11'!$Y$9, 0)","v":{"v":0,"d":"$0.00"}}]
["MMA",null,null,2016,"2016-12-31","Q2","2017-06-30","Region 11","Operating Expense","Administrative Expense","Administrative","12.4","Marketing Expenses",{"$f":"IFERROR('MMA Rev-Exp Region 11'!$O$93/'MMA Rev-Exp Region 11'!$O$9, 0)","v":{"v":0,"d":"$0.00"}},{"$f":"IFERROR('MMA Rev-Exp Region 11'!$P$93/'MMA Rev-Exp Region 11'!$O$9, 0)","v":{"v":0,"d":"$0.00"}},{"$f":"IFERROR('MMA Rev-Exp Region 11'!$Q$93/'MMA Rev-Exp Region 11'!$O$9, 0)","v":{"v":0,"d":"$0.00"}}]
["MMA",null,null,2016,"2016-12-31","Q2","2017-06-30","Region 11","Operating Expense","Administrative Expense","Administrative","12.5","General  Administration",{"$f":"IFERROR('MMA Rev-Exp Region 11'!$O$94/'MMA Rev-Exp Region 11'!$O$9, 0)","v":{"v":0,"d":"$0.00"}},{"$f":"IFERROR('MMA Rev-Exp Region 11'!$P$94/'MMA Rev-Exp Region 11'!$O$9, 0)","v":{"v":0,"d":"$0.00"}},{"$f":"IFERROR('MMA Rev-Exp Region 11'!$Q$94/'MMA Rev-Exp Region 11'!$O$9, 0)","v":{"v":0,"d":"$0.00"}}]
["MMA",null,null,2016,"2016-12-31","Q2","2017-06-30","Region 11","Operating Expense","Administrative Expense","Administrative","12.6","Compliance/Regulatory",{"$f":"IFERROR('MMA Rev-Exp Region 11'!$O$95/'MMA Rev-Exp Region 11'!$O$9, 0)","v":{"v":0,"d":"$0.00"}},{"$f":"IFERROR('MMA Rev-Exp Region 11'!$P$95/'MMA Rev-Exp Region 11'!$O$9, 0)","v":{"v":0,"d":"$0.00"}},{"$f":"IFERROR('MMA Rev-Exp Region 11'!$Q$95/'MMA Rev-Exp Region 11'!$O$9, 0)","v":{"v":0,"d":"$0.00"}}]
["MMA",null,null,2016,"2016-12-31","Q2","2017-06-30","Region 11","Operating Expense","Taxes & Fees","Taxes & Fees","13.1","State Premium tax",{"$f":"IFERROR('MMA Rev-Exp Region 11'!$O$97/'MMA Rev-Exp Region 11'!$O$9, 0)","v":{"v":0,"d":"$0.00"}}]
["MMA",null,null,2016,"2016-12-31","Q2","2017-06-30","Region 11","Operating Expense","Taxes & Fees","Taxes & Fees","13.2","Department of Insurance Assessments",{"$f":"IFERROR('MMA Rev-Exp Region 11'!$O$98/'MMA Rev-Exp Region 11'!$O$9, 0)","v":{"v":0,"d":"$0.00"}}]
["MMA",null,null,2016,"2016-12-31","Q2","2017-06-30","Region 11","Operating Expense","Taxes & Fees","Taxes & Fees","13.3","Section 9010 Health Insurance Providers Fee",{"$f":"IFERROR('MMA Rev-Exp Region 11'!$O$99/'MMA Rev-Exp Region 11'!$O$9, 0)","v":{"v":0,"d":"$0.00"}}]
["MMA",null,null,2016,"2016-12-31","Q2","2017-06-30","Region 11","Non-Operating Expense","Income Tax Expense","Income Tax Expense","16.0","Income Tax Expense",{"$f":"IFERROR('MMA Rev-Exp Region 11'!$O$106/'MMA Rev-Exp Region 11'!$O$9, 0)","v":{"v":0,"d":"$0.00"}}]
["MMA",null,null,2016,"2016-12-31","Q3","2017-09-30","Region 11","Operating Revenue","Capitation","Capitation",1.1,"Capitation",{"$f":"IFERROR('MMA Rev-Exp Region 11'!$Z$11/'MMA Rev-Exp Region 11'!$Z$9, 0)","v":{"v":0,"d":"$0.00"}},{"$f":"IFERROR('MMA Rev-Exp Region 11'!$AA$11/'MMA Rev-Exp Region 11'!$AA$9, 0)","v":{"v":0,"d":"$0.00"}},{"$f":"IFERROR('MMA Rev-Exp Region 11'!$AB$11/'MMA Rev-Exp Region 11'!$AB$9, 0)","v":{"v":0,"d":"$0.00"}},{"$f":"IFERROR('MMA Rev-Exp Region 11'!$AC$11/'MMA Rev-Exp Region 11'!$AC$9, 0)","v":{"v":0,"d":"$0.00"}},{"$f":"IFERROR('MMA Rev-Exp Region 11'!$AD$11/'MMA Rev-Exp Region 11'!$AD$9, 0)","v":{"v":0,"d":"$0.00"}},{"$f":"IFERROR('MMA Rev-Exp Region 11'!$AE$11/'MMA Rev-Exp Region 11'!$AE$9, 0)","v":{"v":0,"d":"$0.00"}},{"$f":"IFERROR('MMA Rev-Exp Region 11'!$AF$11/'MMA Rev-Exp Region 11'!$AF$9, 0)","v":{"v":0,"d":"$0.00"}},{"$f":"IFERROR('MMA Rev-Exp Region 11'!$AG$11/'MMA Rev-Exp Region 11'!$AG$9, 0)","v":{"v":0,"d":"$0.00"}},{"$f":"IFERROR('MMA Rev-Exp Region 11'!$AH$11/'MMA Rev-Exp Region 11'!$AH$9, 0)","v":{"v":0,"d":"$0.00"}},{"$f":"IFERROR('MMA Rev-Exp Region 11'!$AI$11/'MMA Rev-Exp Region 11'!$AI$9, 0)","v":{"v":0,"d":"$0.00"}},{"$f":"IFERROR('MMA Rev-Exp Region 11'!$AJ$11/'MMA Rev-Exp Region 11'!$AJ$9, 0)","v":{"v":0,"d":"$0.00"}}]
["MMA",null,null,2016,"2016-12-31","Q3","2017-09-30","Region 11","Operating Revenue","Kick Payments","Kick Payments - Transplant",1.2,"Transplant Kick Payments",{"$f":"IFERROR('MMA Rev-Exp Region 11'!$Z$12/'MMA Rev-Exp Region 11'!$Z$9, 0)","v":{"v":0,"d":"$0.00"}},{"$f":"IFERROR('MMA Rev-Exp Region 11'!$AA$12/'MMA Rev-Exp Region 11'!$AA$9, 0)","v":{"v":0,"d":"$0.00"}},{"$f":"IFERROR('MMA Rev-Exp Region 11'!$AB$12/'MMA Rev-Exp Region 11'!$AB$9, 0)","v":{"v":0,"d":"$0.00"}},{"$f":"IFERROR('MMA Rev-Exp Region 11'!$AC$12/'MMA Rev-Exp Region 11'!$AC$9, 0)","v":{"v":0,"d":"$0.00"}},{"$f":"IFERROR('MMA Rev-Exp Region 11'!$AD$12/'MMA Rev-Exp Region 11'!$AD$9, 0)","v":{"v":0,"d":"$0.00"}},{"$f":"IFERROR('MMA Rev-Exp Region 11'!$AE$12/'MMA Rev-Exp Region 11'!$AE$9, 0)","v":{"v":0,"d":"$0.00"}},{"$f":"IFERROR('MMA Rev-Exp Region 11'!$AF$12/'MMA Rev-Exp Region 11'!$AF$9, 0)","v":{"v":0,"d":"$0.00"}},{"$f":"IFERROR('MMA Rev-Exp Region 11'!$AG$12/'MMA Rev-Exp Region 11'!$AG$9, 0)","v":{"v":0,"d":"$0.00"}},{"$f":"IFERROR('MMA Rev-Exp Region 11'!$AH$12/'MMA Rev-Exp Region 11'!$AH$9, 0)","v":{"v":0,"d":"$0.00"}},{"$f":"IFERROR('MMA Rev-Exp Region 11'!$AI$12/'MMA Rev-Exp Region 11'!$AI$9, 0)","v":{"v":0,"d":"$0.00"}},{"$f":"IFERROR('MMA Rev-Exp Region 11'!$AJ$12/'MMA Rev-Exp Region 11'!$AJ$9, 0)","v":{"v":0,"d":"$0.00"}}]
["MMA",null,null,2016,"2016-12-31","Q3","2017-09-30","Region 11","Operating Revenue","Kick Payments","Kick Payments - Hep C","1.3","Hepatitis C Kick Payments",{"$f":"IFERROR('MMA Rev-Exp Region 11'!$Z$13/'MMA Rev-Exp Region 11'!$Z$9, 0)","v":{"v":0,"d":"$0.00"}},{"$f":"IFERROR('MMA Rev-Exp Region 11'!$AA$13/'MMA Rev-Exp Region 11'!$AA$9, 0)","v":{"v":0,"d":"$0.00"}},{"$f":"IFERROR('MMA Rev-Exp Region 11'!$AB$13/'MMA Rev-Exp Region 11'!$AB$9, 0)","v":{"v":0,"d":"$0.00"}},{"$f":"IFERROR('MMA Rev-Exp Region 11'!$AC$13/'MMA Rev-Exp Region 11'!$AC$9, 0)","v":{"v":0,"d":"$0.00"}},{"$f":"IFERROR('MMA Rev-Exp Region 11'!$AD$13/'MMA Rev-Exp Region 11'!$AD$9, 0)","v":{"v":0,"d":"$0.00"}},{"$f":"IFERROR('MMA Rev-Exp Region 11'!$AE$13/'MMA Rev-Exp Region 11'!$AE$9, 0)","v":{"v":0,"d":"$0.00"}},{"$f":"IFERROR('MMA Rev-Exp Region 11'!$AF$13/'MMA Rev-Exp Region 11'!$AF$9, 0)","v":{"v":0,"d":"$0.00"}},{"$f":"IFERROR('MMA Rev-Exp Region 11'!$AG$13/'MMA Rev-Exp Region 11'!$AG$9, 0)","v":{"v":0,"d":"$0.00"}},{"$f":"IFERROR('MMA Rev-Exp Region 11'!$AH$13/'MMA Rev-Exp Region 11'!$AH$9, 0)","v":{"v":0,"d":"$0.00"}},{"$f":"IFERROR('MMA Rev-Exp Region 11'!$AI$13/'MMA Rev-Exp Region 11'!$AI$9, 0)","v":{"v":0,"d":"$0.00"}},{"$f":"IFERROR('MMA Rev-Exp Region 11'!$AJ$13/'MMA Rev-Exp Region 11'!$AJ$9, 0)","v":{"v":0,"d":"$0.00"}}]
["MMA",null,null,2016,"2016-12-31","Q3","2017-09-30","Region 11","Operating Revenue","Kick Payments","Kick Payments - Maternity","1.4.1","Maternity Kick Payments",{"$f":"IFERROR('MMA Rev-Exp Region 11'!$Z$14/'MMA Rev-Exp Region 11'!$Z$9, 0)","v":{"v":0,"d":"$0.00"}},{"$f":"IFERROR('MMA Rev-Exp Region 11'!$AA$14/'MMA Rev-Exp Region 11'!$AA$9, 0)","v":{"v":0,"d":"$0.00"}},{"$f":"IFERROR('MMA Rev-Exp Region 11'!$AB$14/'MMA Rev-Exp Region 11'!$AB$9, 0)","v":{"v":0,"d":"$0.00"}},{"$f":"IFERROR('MMA Rev-Exp Region 11'!$AC$14/'MMA Rev-Exp Region 11'!$AC$9, 0)","v":{"v":0,"d":"$0.00"}},{"$f":"IFERROR('MMA Rev-Exp Region 11'!$AD$14/'MMA Rev-Exp Region 11'!$AD$9, 0)","v":{"v":0,"d":"$0.00"}},{"$f":"IFERROR('MMA Rev-Exp Region 11'!$AE$14/'MMA Rev-Exp Region 11'!$AE$9, 0)","v":{"v":0,"d":"$0.00"}},{"$f":"IFERROR('MMA Rev-Exp Region 11'!$AF$14/'MMA Rev-Exp Region 11'!$AF$9, 0)","v":{"v":0,"d":"$0.00"}},{"$f":"IFERROR('MMA Rev-Exp Region 11'!$AG$14/'MMA Rev-Exp Region 11'!$AG$9, 0)","v":{"v":0,"d":"$0.00"}},{"$f":"IFERROR('MMA Rev-Exp Region 11'!$AH$14/'MMA Rev-Exp Region 11'!$AH$9, 0)","v":{"v":0,"d":"$0.00"}},{"$f":"IFERROR('MMA Rev-Exp Region 11'!$AI$14/'MMA Rev-Exp Region 11'!$AI$9, 0)","v":{"v":0,"d":"$0.00"}},{"$f":"IFERROR('MMA Rev-Exp Region 11'!$AJ$14/'MMA Rev-Exp Region 11'!$AJ$9, 0)","v":{"v":0,"d":"$0.00"}}]
["MMA",null,null,2016,"2016-12-31","Q3","2017-09-30","Region 11","Operating Revenue","Other Revenue","Other Revenue - 9010","1.5","ACA § 9010 related payments",{"$f":"IFERROR('MMA Rev-Exp Region 11'!$Z$15/'MMA Rev-Exp Region 11'!$Z$9, 0)","v":{"v":0,"d":"$0.00"}},{"$f":"IFERROR('MMA Rev-Exp Region 11'!$AA$15/'MMA Rev-Exp Region 11'!$AA$9, 0)","v":{"v":0,"d":"$0.00"}},{"$f":"IFERROR('MMA Rev-Exp Region 11'!$AB$15/'MMA Rev-Exp Region 11'!$AB$9, 0)","v":{"v":0,"d":"$0.00"}},{"$f":"IFERROR('MMA Rev-Exp Region 11'!$AC$15/'MMA Rev-Exp Region 11'!$AC$9, 0)","v":{"v":0,"d":"$0.00"}},{"$f":"IFERROR('MMA Rev-Exp Region 11'!$AD$15/'MMA Rev-Exp Region 11'!$AD$9, 0)","v":{"v":0,"d":"$0.00"}},{"$f":"IFERROR('MMA Rev-Exp Region 11'!$AE$15/'MMA Rev-Exp Region 11'!$AE$9, 0)","v":{"v":0,"d":"$0.00"}},{"$f":"IFERROR('MMA Rev-Exp Region 11'!$AF$15/'MMA Rev-Exp Region 11'!$AF$9, 0)","v":{"v":0,"d":"$0.00"}},{"$f":"IFERROR('MMA Rev-Exp Region 11'!$AG$15/'MMA Rev-Exp Region 11'!$AG$9, 0)","v":{"v":0,"d":"$0.00"}},{"$f":"IFERROR('MMA Rev-Exp Region 11'!$AH$15/'MMA Rev-Exp Region 11'!$AH$9, 0)","v":{"v":0,"d":"$0.00"}},{"$f":"IFERROR('MMA Rev-Exp Region 11'!$AI$15/'MMA Rev-Exp Region 11'!$AI$9, 0)","v":{"v":0,"d":"$0.00"}},{"$f":"IFERROR('MMA Rev-Exp Region 11'!$AJ$15/'MMA Rev-Exp Region 11'!$AJ$9, 0)","v":{"v":0,"d":"$0.00"}}]
["MMA",null,null,2016,"2016-12-31","Q3","2017-09-30","Region 11","Operating Revenue","Other Revenue","Other Revenue","1.6","Other Revenue",{"$f":"IFERROR('MMA Rev-Exp Region 11'!$Z$16/'MMA Rev-Exp Region 11'!$Z$9, 0)","v":{"v":0,"d":"$0.00"}},{"$f":"IFERROR('MMA Rev-Exp Region 11'!$AA$16/'MMA Rev-Exp Region 11'!$AA$9, 0)","v":{"v":0,"d":"$0.00"}},{"$f":"IFERROR('MMA Rev-Exp Region 11'!$AB$16/'MMA Rev-Exp Region 11'!$AB$9, 0)","v":{"v":0,"d":"$0.00"}},{"$f":"IFERROR('MMA Rev-Exp Region 11'!$AC$16/'MMA Rev-Exp Region 11'!$AC$9, 0)","v":{"v":0,"d":"$0.00"}},{"$f":"IFERROR('MMA Rev-Exp Region 11'!$AD$16/'MMA Rev-Exp Region 11'!$AD$9, 0)","v":{"v":0,"d":"$0.00"}},{"$f":"IFERROR('MMA Rev-Exp Region 11'!$AE$16/'MMA Rev-Exp Region 11'!$AE$9, 0)","v":{"v":0,"d":"$0.00"}},{"$f":"IFERROR('MMA Rev-Exp Region 11'!$AF$16/'MMA Rev-Exp Region 11'!$AF$9, 0)","v":{"v":0,"d":"$0.00"}},{"$f":"IFERROR('MMA Rev-Exp Region 11'!$AG$16/'MMA Rev-Exp Region 11'!$AG$9, 0)","v":{"v":0,"d":"$0.00"}},{"$f":"IFERROR('MMA Rev-Exp Region 11'!$AH$16/'MMA Rev-Exp Region 11'!$AH$9, 0)","v":{"v":0,"d":"$0.00"}},{"$f":"IFERROR('MMA Rev-Exp Region 11'!$AI$16/'MMA Rev-Exp Region 11'!$AI$9, 0)","v":{"v":0,"d":"$0.00"}},{"$f":"IFERROR('MMA Rev-Exp Region 11'!$AJ$16/'MMA Rev-Exp Region 11'!$AJ$9, 0)","v":{"v":0,"d":"$0.00"}}]
["MMA",null,null,2016,"2016-12-31","Q3","2017-09-30","Region 11","Operating Expense","Medical Benefits Expense","Hospital Services",2.1,"Inpatient FFS",{"$f":"IFERROR('MMA Rev-Exp Region 11'!$Z$20/'MMA Rev-Exp Region 11'!$Z$9, 0)","v":{"v":0,"d":"$0.00"}},{"$f":"IFERROR('MMA Rev-Exp Region 11'!$AA$20/'MMA Rev-Exp Region 11'!$AA$9, 0)","v":{"v":0,"d":"$0.00"}},{"$f":"IFERROR('MMA Rev-Exp Region 11'!$AB$20/'MMA Rev-Exp Region 11'!$AB$9, 0)","v":{"v":0,"d":"$0.00"}},{"$f":"IFERROR('MMA Rev-Exp Region 11'!$AC$20/'MMA Rev-Exp Region 11'!$AC$9, 0)","v":{"v":0,"d":"$0.00"}},{"$f":"IFERROR('MMA Rev-Exp Region 11'!$AD$20/'MMA Rev-Exp Region 11'!$AD$9, 0)","v":{"v":0,"d":"$0.00"}},{"$f":"IFERROR('MMA Rev-Exp Region 11'!$AE$20/'MMA Rev-Exp Region 11'!$AE$9, 0)","v":{"v":0,"d":"$0.00"}},{"$f":"IFERROR('MMA Rev-Exp Region 11'!$AF$20/'MMA Rev-Exp Region 11'!$AF$9, 0)","v":{"v":0,"d":"$0.00"}},{"$f":"IFERROR('MMA Rev-Exp Region 11'!$AG$20/'MMA Rev-Exp Region 11'!$AG$9, 0)","v":{"v":0,"d":"$0.00"}},{"$f":"IFERROR('MMA Rev-Exp Region 11'!$AH$20/'MMA Rev-Exp Region 11'!$AH$9, 0)","v":{"v":0,"d":"$0.00"}},{"$f":"IFERROR('MMA Rev-Exp Region 11'!$AI$20/'MMA Rev-Exp Region 11'!$AI$9, 0)","v":{"v":0,"d":"$0.00"}},{"$f":"IFERROR('MMA Rev-Exp Region 11'!$AJ$20/'MMA Rev-Exp Region 11'!$AJ$9, 0)","v":{"v":0,"d":"$0.00"}}]
["MMA",null,null,2016,"2016-12-31","Q3","2017-09-30","Region 11","Operating Expense","Medical Benefits Expense","Hospital Services",2.2,"Ending IBNP for Inpatient Hospital Services",{"$f":"IFERROR('MMA Rev-Exp Region 11'!$Z$21/'MMA Rev-Exp Region 11'!$Z$9, 0)","v":{"v":0,"d":"$0.00"}},{"$f":"IFERROR('MMA Rev-Exp Region 11'!$AA$21/'MMA Rev-Exp Region 11'!$AA$9, 0)","v":{"v":0,"d":"$0.00"}},{"$f":"IFERROR('MMA Rev-Exp Region 11'!$AB$21/'MMA Rev-Exp Region 11'!$AB$9, 0)","v":{"v":0,"d":"$0.00"}},{"$f":"IFERROR('MMA Rev-Exp Region 11'!$AC$21/'MMA Rev-Exp Region 11'!$AC$9, 0)","v":{"v":0,"d":"$0.00"}},{"$f":"IFERROR('MMA Rev-Exp Region 11'!$AD$21/'MMA Rev-Exp Region 11'!$AD$9, 0)","v":{"v":0,"d":"$0.00"}},{"$f":"IFERROR('MMA Rev-Exp Region 11'!$AE$21/'MMA Rev-Exp Region 11'!$AE$9, 0)","v":{"v":0,"d":"$0.00"}},{"$f":"IFERROR('MMA Rev-Exp Region 11'!$AF$21/'MMA Rev-Exp Region 11'!$AF$9, 0)","v":{"v":0,"d":"$0.00"}},{"$f":"IFERROR('MMA Rev-Exp Region 11'!$AG$21/'MMA Rev-Exp Region 11'!$AG$9, 0)","v":{"v":0,"d":"$0.00"}},{"$f":"IFERROR('MMA Rev-Exp Region 11'!$AH$21/'MMA Rev-Exp Region 11'!$AH$9, 0)","v":{"v":0,"d":"$0.00"}},{"$f":"IFERROR('MMA Rev-Exp Region 11'!$AI$21/'MMA Rev-Exp Region 11'!$AI$9, 0)","v":{"v":0,"d":"$0.00"}},{"$f":"IFERROR('MMA Rev-Exp Region 11'!$AJ$21/'MMA Rev-Exp Region 11'!$AJ$9, 0)","v":{"v":0,"d":"$0.00"}}]
["MMA",null,null,2016,"2016-12-31","Q3","2017-09-30","Region 11","Operating Expense","Medical Benefits Expense","Hospital Services",2.3,"Outpatient FFS: ER",{"$f":"IFERROR('MMA Rev-Exp Region 11'!$Z$22/'MMA Rev-Exp Region 11'!$Z$9, 0)","v":{"v":0,"d":"$0.00"}},{"$f":"IFERROR('MMA Rev-Exp Region 11'!$AA$22/'MMA Rev-Exp Region 11'!$AA$9, 0)","v":{"v":0,"d":"$0.00"}},{"$f":"IFERROR('MMA Rev-Exp Region 11'!$AB$22/'MMA Rev-Exp Region 11'!$AB$9, 0)","v":{"v":0,"d":"$0.00"}},{"$f":"IFERROR('MMA Rev-Exp Region 11'!$AC$22/'MMA Rev-Exp Region 11'!$AC$9, 0)","v":{"v":0,"d":"$0.00"}},{"$f":"IFERROR('MMA Rev-Exp Region 11'!$AD$22/'MMA Rev-Exp Region 11'!$AD$9, 0)","v":{"v":0,"d":"$0.00"}},{"$f":"IFERROR('MMA Rev-Exp Region 11'!$AE$22/'MMA Rev-Exp Region 11'!$AE$9, 0)","v":{"v":0,"d":"$0.00"}},{"$f":"IFERROR('MMA Rev-Exp Region 11'!$AF$22/'MMA Rev-Exp Region 11'!$AF$9, 0)","v":{"v":0,"d":"$0.00"}},{"$f":"IFERROR('MMA Rev-Exp Region 11'!$AG$22/'MMA Rev-Exp Region 11'!$AG$9, 0)","v":{"v":0,"d":"$0.00"}},{"$f":"IFERROR('MMA Rev-Exp Region 11'!$AH$22/'MMA Rev-Exp Region 11'!$AH$9, 0)","v":{"v":0,"d":"$0.00"}},{"$f":"IFERROR('MMA Rev-Exp Region 11'!$AI$22/'MMA Rev-Exp Region 11'!$AI$9, 0)","v":{"v":0,"d":"$0.00"}},{"$f":"IFERROR('MMA Rev-Exp Region 11'!$AJ$22/'MMA Rev-Exp Region 11'!$AJ$9, 0)","v":{"v":0,"d":"$0.00"}}]
["MMA",null,null,2016,"2016-12-31","Q3","2017-09-30","Region 11","Operating Expense","Medical Benefits Expense","Hospital Services",2.4,"Outpatient FFS: Other than ER ",{"$f":"IFERROR('MMA Rev-Exp Region 11'!$Z$23/'MMA Rev-Exp Region 11'!$Z$9, 0)","v":{"v":0,"d":"$0.00"}},{"$f":"IFERROR('MMA Rev-Exp Region 11'!$AA$23/'MMA Rev-Exp Region 11'!$AA$9, 0)","v":{"v":0,"d":"$0.00"}},{"$f":"IFERROR('MMA Rev-Exp Region 11'!$AB$23/'MMA Rev-Exp Region 11'!$AB$9, 0)","v":{"v":0,"d":"$0.00"}},{"$f":"IFERROR('MMA Rev-Exp Region 11'!$AC$23/'MMA Rev-Exp Region 11'!$AC$9, 0)","v":{"v":0,"d":"$0.00"}},{"$f":"IFERROR('MMA Rev-Exp Region 11'!$AD$23/'MMA Rev-Exp Region 11'!$AD$9, 0)","v":{"v":0,"d":"$0.00"}},{"$f":"IFERROR('MMA Rev-Exp Region 11'!$AE$23/'MMA Rev-Exp Region 11'!$AE$9, 0)","v":{"v":0,"d":"$0.00"}},{"$f":"IFERROR('MMA Rev-Exp Region 11'!$AF$23/'MMA Rev-Exp Region 11'!$AF$9, 0)","v":{"v":0,"d":"$0.00"}},{"$f":"IFERROR('MMA Rev-Exp Region 11'!$AG$23/'MMA Rev-Exp Region 11'!$AG$9, 0)","v":{"v":0,"d":"$0.00"}},{"$f":"IFERROR('MMA Rev-Exp Region 11'!$AH$23/'MMA Rev-Exp Region 11'!$AH$9, 0)","v":{"v":0,"d":"$0.00"}},{"$f":"IFERROR('MMA Rev-Exp Region 11'!$AI$23/'MMA Rev-Exp Region 11'!$AI$9, 0)","v":{"v":0,"d":"$0.00"}},{"$f":"IFERROR('MMA Rev-Exp Region 11'!$AJ$23/'MMA Rev-Exp Region 11'!$AJ$9, 0)","v":{"v":0,"d":"$0.00"}}]
["MMA",null,null,2016,"2016-12-31","Q3","2017-09-30","Region 11","Operating Expense","Medical Benefits Expense","Hospital Services",2.5,"Ending IBNP for Outpatient Hospital Services",{"$f":"IFERROR('MMA Rev-Exp Region 11'!$Z$24/'MMA Rev-Exp Region 11'!$Z$9, 0)","v":{"v":0,"d":"$0.00"}},{"$f":"IFERROR('MMA Rev-Exp Region 11'!$AA$24/'MMA Rev-Exp Region 11'!$AA$9, 0)","v":{"v":0,"d":"$0.00"}},{"$f":"IFERROR('MMA Rev-Exp Region 11'!$AB$24/'MMA Rev-Exp Region 11'!$AB$9, 0)","v":{"v":0,"d":"$0.00"}},{"$f":"IFERROR('MMA Rev-Exp Region 11'!$AC$24/'MMA Rev-Exp Region 11'!$AC$9, 0)","v":{"v":0,"d":"$0.00"}},{"$f":"IFERROR('MMA Rev-Exp Region 11'!$AD$24/'MMA Rev-Exp Region 11'!$AD$9, 0)","v":{"v":0,"d":"$0.00"}},{"$f":"IFERROR('MMA Rev-Exp Region 11'!$AE$24/'MMA Rev-Exp Region 11'!$AE$9, 0)","v":{"v":0,"d":"$0.00"}},{"$f":"IFERROR('MMA Rev-Exp Region 11'!$AF$24/'MMA Rev-Exp Region 11'!$AF$9, 0)","v":{"v":0,"d":"$0.00"}},{"$f":"IFERROR('MMA Rev-Exp Region 11'!$AG$24/'MMA Rev-Exp Region 11'!$AG$9, 0)","v":{"v":0,"d":"$0.00"}},{"$f":"IFERROR('MMA Rev-Exp Region 11'!$AH$24/'MMA Rev-Exp Region 11'!$AH$9, 0)","v":{"v":0,"d":"$0.00"}},{"$f":"IFERROR('MMA Rev-Exp Region 11'!$AI$24/'MMA Rev-Exp Region 11'!$AI$9, 0)","v":{"v":0,"d":"$0.00"}},{"$f":"IFERROR('MMA Rev-Exp Region 11'!$AJ$24/'MMA Rev-Exp Region 11'!$AJ$9, 0)","v":{"v":0,"d":"$0.00"}}]
["MMA",null,null,2016,"2016-12-31","Q3","2017-09-30","Region 11","Operating Expense","Medical Benefits Expense","Hospital Services","2.6","Subcapitated Hospital Services",{"$f":"IFERROR('MMA Rev-Exp Region 11'!$Z$25/'MMA Rev-Exp Region 11'!$Z$9, 0)","v":{"v":0,"d":"$0.00"}},{"$f":"IFERROR('MMA Rev-Exp Region 11'!$AA$25/'MMA Rev-Exp Region 11'!$AA$9, 0)","v":{"v":0,"d":"$0.00"}},{"$f":"IFERROR('MMA Rev-Exp Region 11'!$AB$25/'MMA Rev-Exp Region 11'!$AB$9, 0)","v":{"v":0,"d":"$0.00"}},{"$f":"IFERROR('MMA Rev-Exp Region 11'!$AC$25/'MMA Rev-Exp Region 11'!$AC$9, 0)","v":{"v":0,"d":"$0.00"}},{"$f":"IFERROR('MMA Rev-Exp Region 11'!$AD$25/'MMA Rev-Exp Region 11'!$AD$9, 0)","v":{"v":0,"d":"$0.00"}},{"$f":"IFERROR('MMA Rev-Exp Region 11'!$AE$25/'MMA Rev-Exp Region 11'!$AE$9, 0)","v":{"v":0,"d":"$0.00"}},{"$f":"IFERROR('MMA Rev-Exp Region 11'!$AF$25/'MMA Rev-Exp Region 11'!$AF$9, 0)","v":{"v":0,"d":"$0.00"}},{"$f":"IFERROR('MMA Rev-Exp Region 11'!$AG$25/'MMA Rev-Exp Region 11'!$AG$9, 0)","v":{"v":0,"d":"$0.00"}},{"$f":"IFERROR('MMA Rev-Exp Region 11'!$AH$25/'MMA Rev-Exp Region 11'!$AH$9, 0)","v":{"v":0,"d":"$0.00"}},{"$f":"IFERROR('MMA Rev-Exp Region 11'!$AI$25/'MMA Rev-Exp Region 11'!$AI$9, 0)","v":{"v":0,"d":"$0.00"}},{"$f":"IFERROR('MMA Rev-Exp Region 11'!$AJ$25/'MMA Rev-Exp Region 11'!$AJ$9, 0)","v":{"v":0,"d":"$0.00"}}]
["MMA",null,null,2016,"2016-12-31","Q3","2017-09-30","Region 11","Operating Expense","Medical Benefits Expense","Hospital Services","2.7","Hospital Settlements",{"$f":"IFERROR('MMA Rev-Exp Region 11'!$Z$26/'MMA Rev-Exp Region 11'!$Z$9, 0)","v":{"v":0,"d":"$0.00"}},{"$f":"IFERROR('MMA Rev-Exp Region 11'!$AA$26/'MMA Rev-Exp Region 11'!$AA$9, 0)","v":{"v":0,"d":"$0.00"}},{"$f":"IFERROR('MMA Rev-Exp Region 11'!$AB$26/'MMA Rev-Exp Region 11'!$AB$9, 0)","v":{"v":0,"d":"$0.00"}},{"$f":"IFERROR('MMA Rev-Exp Region 11'!$AC$26/'MMA Rev-Exp Region 11'!$AC$9, 0)","v":{"v":0,"d":"$0.00"}},{"$f":"IFERROR('MMA Rev-Exp Region 11'!$AD$26/'MMA Rev-Exp Region 11'!$AD$9, 0)","v":{"v":0,"d":"$0.00"}},{"$f":"IFERROR('MMA Rev-Exp Region 11'!$AE$26/'MMA Rev-Exp Region 11'!$AE$9, 0)","v":{"v":0,"d":"$0.00"}},{"$f":"IFERROR('MMA Rev-Exp Region 11'!$AF$26/'MMA Rev-Exp Region 11'!$AF$9, 0)","v":{"v":0,"d":"$0.00"}},{"$f":"IFERROR('MMA Rev-Exp Region 11'!$AG$26/'MMA Rev-Exp Region 11'!$AG$9, 0)","v":{"v":0,"d":"$0.00"}},{"$f":"IFERROR('MMA Rev-Exp Region 11'!$AH$26/'MMA Rev-Exp Region 11'!$AH$9, 0)","v":{"v":0,"d":"$0.00"}},{"$f":"IFERROR('MMA Rev-Exp Region 11'!$AI$26/'MMA Rev-Exp Region 11'!$AI$9, 0)","v":{"v":0,"d":"$0.00"}},{"$f":"IFERROR('MMA Rev-Exp Region 11'!$AJ$26/'MMA Rev-Exp Region 11'!$AJ$9, 0)","v":{"v":0,"d":"$0.00"}}]
["MMA",null,null,2016,"2016-12-31","Q3","2017-09-30","Region 11","Operating Expense","Medical Benefits Expense","Hospital Services","2.7.1","Transplant Services",{"$f":"IFERROR('MMA Rev-Exp Region 11'!$Z$27/'MMA Rev-Exp Region 11'!$Z$9, 0)","v":{"v":0,"d":"$0.00"}},{"$f":"IFERROR('MMA Rev-Exp Region 11'!$AA$27/'MMA Rev-Exp Region 11'!$AA$9, 0)","v":{"v":0,"d":"$0.00"}},{"$f":"IFERROR('MMA Rev-Exp Region 11'!$AB$27/'MMA Rev-Exp Region 11'!$AB$9, 0)","v":{"v":0,"d":"$0.00"}},{"$f":"IFERROR('MMA Rev-Exp Region 11'!$AC$27/'MMA Rev-Exp Region 11'!$AC$9, 0)","v":{"v":0,"d":"$0.00"}},{"$f":"IFERROR('MMA Rev-Exp Region 11'!$AD$27/'MMA Rev-Exp Region 11'!$AD$9, 0)","v":{"v":0,"d":"$0.00"}},{"$f":"IFERROR('MMA Rev-Exp Region 11'!$AE$27/'MMA Rev-Exp Region 11'!$AE$9, 0)","v":{"v":0,"d":"$0.00"}},{"$f":"IFERROR('MMA Rev-Exp Region 11'!$AF$27/'MMA Rev-Exp Region 11'!$AF$9, 0)","v":{"v":0,"d":"$0.00"}},{"$f":"IFERROR('MMA Rev-Exp Region 11'!$AG$27/'MMA Rev-Exp Region 11'!$AG$9, 0)","v":{"v":0,"d":"$0.00"}},{"$f":"IFERROR('MMA Rev-Exp Region 11'!$AH$27/'MMA Rev-Exp Region 11'!$AH$9, 0)","v":{"v":0,"d":"$0.00"}},{"$f":"IFERROR('MMA Rev-Exp Region 11'!$AI$27/'MMA Rev-Exp Region 11'!$AI$9, 0)","v":{"v":0,"d":"$0.00"}},{"$f":"IFERROR('MMA Rev-Exp Region 11'!$AJ$27/'MMA Rev-Exp Region 11'!$AJ$9, 0)","v":{"v":0,"d":"$0.00"}}]
["MMA",null,null,2016,"2016-12-31","Q3","2017-09-30","Region 11","Operating Expense","Medical Benefits Expense","Professional Services",3.1,"Primary Care FFS",{"$f":"IFERROR('MMA Rev-Exp Region 11'!$Z$29/'MMA Rev-Exp Region 11'!$Z$9, 0)","v":{"v":0,"d":"$0.00"}},{"$f":"IFERROR('MMA Rev-Exp Region 11'!$AA$29/'MMA Rev-Exp Region 11'!$AA$9, 0)","v":{"v":0,"d":"$0.00"}},{"$f":"IFERROR('MMA Rev-Exp Region 11'!$AB$29/'MMA Rev-Exp Region 11'!$AB$9, 0)","v":{"v":0,"d":"$0.00"}},{"$f":"IFERROR('MMA Rev-Exp Region 11'!$AC$29/'MMA Rev-Exp Region 11'!$AC$9, 0)","v":{"v":0,"d":"$0.00"}},{"$f":"IFERROR('MMA Rev-Exp Region 11'!$AD$29/'MMA Rev-Exp Region 11'!$AD$9, 0)","v":{"v":0,"d":"$0.00"}},{"$f":"IFERROR('MMA Rev-Exp Region 11'!$AE$29/'MMA Rev-Exp Region 11'!$AE$9, 0)","v":{"v":0,"d":"$0.00"}},{"$f":"IFERROR('MMA Rev-Exp Region 11'!$AF$29/'MMA Rev-Exp Region 11'!$AF$9, 0)","v":{"v":0,"d":"$0.00"}},{"$f":"IFERROR('MMA Rev-Exp Region 11'!$AG$29/'MMA Rev-Exp Region 11'!$AG$9, 0)","v":{"v":0,"d":"$0.00"}},{"$f":"IFERROR('MMA Rev-Exp Region 11'!$AH$29/'MMA Rev-Exp Region 11'!$AH$9, 0)","v":{"v":0,"d":"$0.00"}},{"$f":"IFERROR('MMA Rev-Exp Region 11'!$AI$29/'MMA Rev-Exp Region 11'!$AI$9, 0)","v":{"v":0,"d":"$0.00"}},{"$f":"IFERROR('MMA Rev-Exp Region 11'!$AJ$29/'MMA Rev-Exp Region 11'!$AJ$9, 0)","v":{"v":0,"d":"$0.00"}}]
["MMA",null,null,2016,"2016-12-31","Q3","2017-09-30","Region 11","Operating Expense","Medical Benefits Expense","Professional Services",3.2,"Specialty Care FFS",{"$f":"IFERROR('MMA Rev-Exp Region 11'!$Z$30/'MMA Rev-Exp Region 11'!$Z$9, 0)","v":{"v":0,"d":"$0.00"}},{"$f":"IFERROR('MMA Rev-Exp Region 11'!$AA$30/'MMA Rev-Exp Region 11'!$AA$9, 0)","v":{"v":0,"d":"$0.00"}},{"$f":"IFERROR('MMA Rev-Exp Region 11'!$AB$30/'MMA Rev-Exp Region 11'!$AB$9, 0)","v":{"v":0,"d":"$0.00"}},{"$f":"IFERROR('MMA Rev-Exp Region 11'!$AC$30/'MMA Rev-Exp Region 11'!$AC$9, 0)","v":{"v":0,"d":"$0.00"}},{"$f":"IFERROR('MMA Rev-Exp Region 11'!$AD$30/'MMA Rev-Exp Region 11'!$AD$9, 0)","v":{"v":0,"d":"$0.00"}},{"$f":"IFERROR('MMA Rev-Exp Region 11'!$AE$30/'MMA Rev-Exp Region 11'!$AE$9, 0)","v":{"v":0,"d":"$0.00"}},{"$f":"IFERROR('MMA Rev-Exp Region 11'!$AF$30/'MMA Rev-Exp Region 11'!$AF$9, 0)","v":{"v":0,"d":"$0.00"}},{"$f":"IFERROR('MMA Rev-Exp Region 11'!$AG$30/'MMA Rev-Exp Region 11'!$AG$9, 0)","v":{"v":0,"d":"$0.00"}},{"$f":"IFERROR('MMA Rev-Exp Region 11'!$AH$30/'MMA Rev-Exp Region 11'!$AH$9, 0)","v":{"v":0,"d":"$0.00"}},{"$f":"IFERROR('MMA Rev-Exp Region 11'!$AI$30/'MMA Rev-Exp Region 11'!$AI$9, 0)","v":{"v":0,"d":"$0.00"}},{"$f":"IFERROR('MMA Rev-Exp Region 11'!$AJ$30/'MMA Rev-Exp Region 11'!$AJ$9, 0)","v":{"v":0,"d":"$0.00"}}]
["MMA",null,null,2016,"2016-12-31","Q3","2017-09-30","Region 11","Operating Expense","Medical Benefits Expense","Professional Services",3.3,"Other Professional FFS",{"$f":"IFERROR('MMA Rev-Exp Region 11'!$Z$31/'MMA Rev-Exp Region 11'!$Z$9, 0)","v":{"v":0,"d":"$0.00"}},{"$f":"IFERROR('MMA Rev-Exp Region 11'!$AA$31/'MMA Rev-Exp Region 11'!$AA$9, 0)","v":{"v":0,"d":"$0.00"}},{"$f":"IFERROR('MMA Rev-Exp Region 11'!$AB$31/'MMA Rev-Exp Region 11'!$AB$9, 0)","v":{"v":0,"d":"$0.00"}},{"$f":"IFERROR('MMA Rev-Exp Region 11'!$AC$31/'MMA Rev-Exp Region 11'!$AC$9, 0)","v":{"v":0,"d":"$0.00"}},{"$f":"IFERROR('MMA Rev-Exp Region 11'!$AD$31/'MMA Rev-Exp Region 11'!$AD$9, 0)","v":{"v":0,"d":"$0.00"}},{"$f":"IFERROR('MMA Rev-Exp Region 11'!$AE$31/'MMA Rev-Exp Region 11'!$AE$9, 0)","v":{"v":0,"d":"$0.00"}},{"$f":"IFERROR('MMA Rev-Exp Region 11'!$AF$31/'MMA Rev-Exp Region 11'!$AF$9, 0)","v":{"v":0,"d":"$0.00"}},{"$f":"IFERROR('MMA Rev-Exp Region 11'!$AG$31/'MMA Rev-Exp Region 11'!$AG$9, 0)","v":{"v":0,"d":"$0.00"}},{"$f":"IFERROR('MMA Rev-Exp Region 11'!$AH$31/'MMA Rev-Exp Region 11'!$AH$9, 0)","v":{"v":0,"d":"$0.00"}},{"$f":"IFERROR('MMA Rev-Exp Region 11'!$AI$31/'MMA Rev-Exp Region 11'!$AI$9, 0)","v":{"v":0,"d":"$0.00"}},{"$f":"IFERROR('MMA Rev-Exp Region 11'!$AJ$31/'MMA Rev-Exp Region 11'!$AJ$9, 0)","v":{"v":0,"d":"$0.00"}}]
["MMA",null,null,2016,"2016-12-31","Q3","2017-09-30","Region 11","Operating Expense","Medical Benefits Expense","Professional Services","3.4","§ 1202 PCP Payments to providers",{"$f":"IFERROR('MMA Rev-Exp Region 11'!$Z$32/'MMA Rev-Exp Region 11'!$Z$9, 0)","v":{"v":0,"d":"$0.00"}},{"$f":"IFERROR('MMA Rev-Exp Region 11'!$AA$32/'MMA Rev-Exp Region 11'!$AA$9, 0)","v":{"v":0,"d":"$0.00"}},{"$f":"IFERROR('MMA Rev-Exp Region 11'!$AB$32/'MMA Rev-Exp Region 11'!$AB$9, 0)","v":{"v":0,"d":"$0.00"}},{"$f":"IFERROR('MMA Rev-Exp Region 11'!$AC$32/'MMA Rev-Exp Region 11'!$AC$9, 0)","v":{"v":0,"d":"$0.00"}},{"$f":"IFERROR('MMA Rev-Exp Region 11'!$AD$32/'MMA Rev-Exp Region 11'!$AD$9, 0)","v":{"v":0,"d":"$0.00"}},{"$f":"IFERROR('MMA Rev-Exp Region 11'!$AE$32/'MMA Rev-Exp Region 11'!$AE$9, 0)","v":{"v":0,"d":"$0.00"}},{"$f":"IFERROR('MMA Rev-Exp Region 11'!$AF$32/'MMA Rev-Exp Region 11'!$AF$9, 0)","v":{"v":0,"d":"$0.00"}},{"$f":"IFERROR('MMA Rev-Exp Region 11'!$AG$32/'MMA Rev-Exp Region 11'!$AG$9, 0)","v":{"v":0,"d":"$0.00"}},{"$f":"IFERROR('MMA Rev-Exp Region 11'!$AH$32/'MMA Rev-Exp Region 11'!$AH$9, 0)","v":{"v":0,"d":"$0.00"}},{"$f":"IFERROR('MMA Rev-Exp Region 11'!$AI$32/'MMA Rev-Exp Region 11'!$AI$9, 0)","v":{"v":0,"d":"$0.00"}},{"$f":"IFERROR('MMA Rev-Exp Region 11'!$AJ$32/'MMA Rev-Exp Region 11'!$AJ$9, 0)","v":{"v":0,"d":"$0.00"}}]
["MMA",null,null,2016,"2016-12-31","Q3","2017-09-30","Region 11","Operating Expense","Medical Benefits Expense","Professional Services","3.5","Subcapitated Professional Services",{"$f":"IFERROR('MMA Rev-Exp Region 11'!$Z$33/'MMA Rev-Exp Region 11'!$Z$9, 0)","v":{"v":0,"d":"$0.00"}},{"$f":"IFERROR('MMA Rev-Exp Region 11'!$AA$33/'MMA Rev-Exp Region 11'!$AA$9, 0)","v":{"v":0,"d":"$0.00"}},{"$f":"IFERROR('MMA Rev-Exp Region 11'!$AB$33/'MMA Rev-Exp Region 11'!$AB$9, 0)","v":{"v":0,"d":"$0.00"}},{"$f":"IFERROR('MMA Rev-Exp Region 11'!$AC$33/'MMA Rev-Exp Region 11'!$AC$9, 0)","v":{"v":0,"d":"$0.00"}},{"$f":"IFERROR('MMA Rev-Exp Region 11'!$AD$33/'MMA Rev-Exp Region 11'!$AD$9, 0)","v":{"v":0,"d":"$0.00"}},{"$f":"IFERROR('MMA Rev-Exp Region 11'!$AE$33/'MMA Rev-Exp Region 11'!$AE$9, 0)","v":{"v":0,"d":"$0.00"}},{"$f":"IFERROR('MMA Rev-Exp Region 11'!$AF$33/'MMA Rev-Exp Region 11'!$AF$9, 0)","v":{"v":0,"d":"$0.00"}},{"$f":"IFERROR('MMA Rev-Exp Region 11'!$AG$33/'MMA Rev-Exp Region 11'!$AG$9, 0)","v":{"v":0,"d":"$0.00"}},{"$f":"IFERROR('MMA Rev-Exp Region 11'!$AH$33/'MMA Rev-Exp Region 11'!$AH$9, 0)","v":{"v":0,"d":"$0.00"}},{"$f":"IFERROR('MMA Rev-Exp Region 11'!$AI$33/'MMA Rev-Exp Region 11'!$AI$9, 0)","v":{"v":0,"d":"$0.00"}},{"$f":"IFERROR('MMA Rev-Exp Region 11'!$AJ$33/'MMA Rev-Exp Region 11'!$AJ$9, 0)","v":{"v":0,"d":"$0.00"}}]
["MMA",null,null,2016,"2016-12-31","Q3","2017-09-30","Region 11","Operating Expense","Medical Benefits Expense","Professional Services","3.6","Ending IBNP for Professional Services",{"$f":"IFERROR('MMA Rev-Exp Region 11'!$Z$34/'MMA Rev-Exp Region 11'!$Z$9, 0)","v":{"v":0,"d":"$0.00"}},{"$f":"IFERROR('MMA Rev-Exp Region 11'!$AA$34/'MMA Rev-Exp Region 11'!$AA$9, 0)","v":{"v":0,"d":"$0.00"}},{"$f":"IFERROR('MMA Rev-Exp Region 11'!$AB$34/'MMA Rev-Exp Region 11'!$AB$9, 0)","v":{"v":0,"d":"$0.00"}},{"$f":"IFERROR('MMA Rev-Exp Region 11'!$AC$34/'MMA Rev-Exp Region 11'!$AC$9, 0)","v":{"v":0,"d":"$0.00"}},{"$f":"IFERROR('MMA Rev-Exp Region 11'!$AD$34/'MMA Rev-Exp Region 11'!$AD$9, 0)","v":{"v":0,"d":"$0.00"}},{"$f":"IFERROR('MMA Rev-Exp Region 11'!$AE$34/'MMA Rev-Exp Region 11'!$AE$9, 0)","v":{"v":0,"d":"$0.00"}},{"$f":"IFERROR('MMA Rev-Exp Region 11'!$AF$34/'MMA Rev-Exp Region 11'!$AF$9, 0)","v":{"v":0,"d":"$0.00"}},{"$f":"IFERROR('MMA Rev-Exp Region 11'!$AG$34/'MMA Rev-Exp Region 11'!$AG$9, 0)","v":{"v":0,"d":"$0.00"}},{"$f":"IFERROR('MMA Rev-Exp Region 11'!$AH$34/'MMA Rev-Exp Region 11'!$AH$9, 0)","v":{"v":0,"d":"$0.00"}},{"$f":"IFERROR('MMA Rev-Exp Region 11'!$AI$34/'MMA Rev-Exp Region 11'!$AI$9, 0)","v":{"v":0,"d":"$0.00"}},{"$f":"IFERROR('MMA Rev-Exp Region 11'!$AJ$34/'MMA Rev-Exp Region 11'!$AJ$9, 0)","v":{"v":0,"d":"$0.00"}}]
["MMA",null,null,2016,"2016-12-31","Q3","2017-09-30","Region 11","Operating Expense","Medical Benefits Expense","Professional Services","3.7","Professional Services Settlements",{"$f":"IFERROR('MMA Rev-Exp Region 11'!$Z$35/'MMA Rev-Exp Region 11'!$Z$9, 0)","v":{"v":0,"d":"$0.00"}},{"$f":"IFERROR('MMA Rev-Exp Region 11'!$AA$35/'MMA Rev-Exp Region 11'!$AA$9, 0)","v":{"v":0,"d":"$0.00"}},{"$f":"IFERROR('MMA Rev-Exp Region 11'!$AB$35/'MMA Rev-Exp Region 11'!$AB$9, 0)","v":{"v":0,"d":"$0.00"}},{"$f":"IFERROR('MMA Rev-Exp Region 11'!$AC$35/'MMA Rev-Exp Region 11'!$AC$9, 0)","v":{"v":0,"d":"$0.00"}},{"$f":"IFERROR('MMA Rev-Exp Region 11'!$AD$35/'MMA Rev-Exp Region 11'!$AD$9, 0)","v":{"v":0,"d":"$0.00"}},{"$f":"IFERROR('MMA Rev-Exp Region 11'!$AE$35/'MMA Rev-Exp Region 11'!$AE$9, 0)","v":{"v":0,"d":"$0.00"}},{"$f":"IFERROR('MMA Rev-Exp Region 11'!$AF$35/'MMA Rev-Exp Region 11'!$AF$9, 0)","v":{"v":0,"d":"$0.00"}},{"$f":"IFERROR('MMA Rev-Exp Region 11'!$AG$35/'MMA Rev-Exp Region 11'!$AG$9, 0)","v":{"v":0,"d":"$0.00"}},{"$f":"IFERROR('MMA Rev-Exp Region 11'!$AH$35/'MMA Rev-Exp Region 11'!$AH$9, 0)","v":{"v":0,"d":"$0.00"}},{"$f":"IFERROR('MMA Rev-Exp Region 11'!$AI$35/'MMA Rev-Exp Region 11'!$AI$9, 0)","v":{"v":0,"d":"$0.00"}},{"$f":"IFERROR('MMA Rev-Exp Region 11'!$AJ$35/'MMA Rev-Exp Region 11'!$AJ$9, 0)","v":{"v":0,"d":"$0.00"}}]
["MMA",null,null,2016,"2016-12-31","Q3","2017-09-30","Region 11","Operating Expense","Medical Benefits Expense","Maternity Services","4.1.1","Maternity Services",{"$f":"IFERROR('MMA Rev-Exp Region 11'!$Z$37/'MMA Rev-Exp Region 11'!$Z$9, 0)","v":{"v":0,"d":"$0.00"}},{"$f":"IFERROR('MMA Rev-Exp Region 11'!$AA$37/'MMA Rev-Exp Region 11'!$AA$9, 0)","v":{"v":0,"d":"$0.00"}},{"$f":"IFERROR('MMA Rev-Exp Region 11'!$AB$37/'MMA Rev-Exp Region 11'!$AB$9, 0)","v":{"v":0,"d":"$0.00"}},{"$f":"IFERROR('MMA Rev-Exp Region 11'!$AC$37/'MMA Rev-Exp Region 11'!$AC$9, 0)","v":{"v":0,"d":"$0.00"}},{"$f":"IFERROR('MMA Rev-Exp Region 11'!$AD$37/'MMA Rev-Exp Region 11'!$AD$9, 0)","v":{"v":0,"d":"$0.00"}},{"$f":"IFERROR('MMA Rev-Exp Region 11'!$AE$37/'MMA Rev-Exp Region 11'!$AE$9, 0)","v":{"v":0,"d":"$0.00"}},{"$f":"IFERROR('MMA Rev-Exp Region 11'!$AF$37/'MMA Rev-Exp Region 11'!$AF$9, 0)","v":{"v":0,"d":"$0.00"}},{"$f":"IFERROR('MMA Rev-Exp Region 11'!$AG$37/'MMA Rev-Exp Region 11'!$AG$9, 0)","v":{"v":0,"d":"$0.00"}},{"$f":"IFERROR('MMA Rev-Exp Region 11'!$AH$37/'MMA Rev-Exp Region 11'!$AH$9, 0)","v":{"v":0,"d":"$0.00"}},{"$f":"IFERROR('MMA Rev-Exp Region 11'!$AI$37/'MMA Rev-Exp Region 11'!$AI$9, 0)","v":{"v":0,"d":"$0.00"}},{"$f":"IFERROR('MMA Rev-Exp Region 11'!$AJ$37/'MMA Rev-Exp Region 11'!$AJ$9, 0)","v":{"v":0,"d":"$0.00"}}]
["MMA",null,null,2016,"2016-12-31","Q3","2017-09-30","Region 11","Operating Expense","Medical Benefits Expense","Maternity Services","4.2.1","Ending IBNP for Maternity Services",{"$f":"IFERROR('MMA Rev-Exp Region 11'!$Z$38/'MMA Rev-Exp Region 11'!$Z$9, 0)","v":{"v":0,"d":"$0.00"}},{"$f":"IFERROR('MMA Rev-Exp Region 11'!$AA$38/'MMA Rev-Exp Region 11'!$AA$9, 0)","v":{"v":0,"d":"$0.00"}},{"$f":"IFERROR('MMA Rev-Exp Region 11'!$AB$38/'MMA Rev-Exp Region 11'!$AB$9, 0)","v":{"v":0,"d":"$0.00"}},{"$f":"IFERROR('MMA Rev-Exp Region 11'!$AC$38/'MMA Rev-Exp Region 11'!$AC$9, 0)","v":{"v":0,"d":"$0.00"}},{"$f":"IFERROR('MMA Rev-Exp Region 11'!$AD$38/'MMA Rev-Exp Region 11'!$AD$9, 0)","v":{"v":0,"d":"$0.00"}},{"$f":"IFERROR('MMA Rev-Exp Region 11'!$AE$38/'MMA Rev-Exp Region 11'!$AE$9, 0)","v":{"v":0,"d":"$0.00"}},{"$f":"IFERROR('MMA Rev-Exp Region 11'!$AF$38/'MMA Rev-Exp Region 11'!$AF$9, 0)","v":{"v":0,"d":"$0.00"}},{"$f":"IFERROR('MMA Rev-Exp Region 11'!$AG$38/'MMA Rev-Exp Region 11'!$AG$9, 0)","v":{"v":0,"d":"$0.00"}},{"$f":"IFERROR('MMA Rev-Exp Region 11'!$AH$38/'MMA Rev-Exp Region 11'!$AH$9, 0)","v":{"v":0,"d":"$0.00"}},{"$f":"IFERROR('MMA Rev-Exp Region 11'!$AI$38/'MMA Rev-Exp Region 11'!$AI$9, 0)","v":{"v":0,"d":"$0.00"}},{"$f":"IFERROR('MMA Rev-Exp Region 11'!$AJ$38/'MMA Rev-Exp Region 11'!$AJ$9, 0)","v":{"v":0,"d":"$0.00"}}]
["MMA",null,null,2016,"2016-12-31","Q3","2017-09-30","Region 11","Operating Expense","Medical Benefits Expense","Maternity Services","4.3.1","Maternity Settlements",{"$f":"IFERROR('MMA Rev-Exp Region 11'!$Z$39/'MMA Rev-Exp Region 11'!$Z$9, 0)","v":{"v":0,"d":"$0.00"}},{"$f":"IFERROR('MMA Rev-Exp Region 11'!$AA$39/'MMA Rev-Exp Region 11'!$AA$9, 0)","v":{"v":0,"d":"$0.00"}},{"$f":"IFERROR('MMA Rev-Exp Region 11'!$AB$39/'MMA Rev-Exp Region 11'!$AB$9, 0)","v":{"v":0,"d":"$0.00"}},{"$f":"IFERROR('MMA Rev-Exp Region 11'!$AC$39/'MMA Rev-Exp Region 11'!$AC$9, 0)","v":{"v":0,"d":"$0.00"}},{"$f":"IFERROR('MMA Rev-Exp Region 11'!$AD$39/'MMA Rev-Exp Region 11'!$AD$9, 0)","v":{"v":0,"d":"$0.00"}},{"$f":"IFERROR('MMA Rev-Exp Region 11'!$AE$39/'MMA Rev-Exp Region 11'!$AE$9, 0)","v":{"v":0,"d":"$0.00"}},{"$f":"IFERROR('MMA Rev-Exp Region 11'!$AF$39/'MMA Rev-Exp Region 11'!$AF$9, 0)","v":{"v":0,"d":"$0.00"}},{"$f":"IFERROR('MMA Rev-Exp Region 11'!$AG$39/'MMA Rev-Exp Region 11'!$AG$9, 0)","v":{"v":0,"d":"$0.00"}},{"$f":"IFERROR('MMA Rev-Exp Region 11'!$AH$39/'MMA Rev-Exp Region 11'!$AH$9, 0)","v":{"v":0,"d":"$0.00"}},{"$f":"IFERROR('MMA Rev-Exp Region 11'!$AI$39/'MMA Rev-Exp Region 11'!$AI$9, 0)","v":{"v":0,"d":"$0.00"}},{"$f":"IFERROR('MMA Rev-Exp Region 11'!$AJ$39/'MMA Rev-Exp Region 11'!$AJ$9, 0)","v":{"v":0,"d":"$0.00"}}]
["MMA",null,null,2016,"2016-12-31","Q3","2017-09-30","Region 11","Operating Expense","Medical Benefits Expense","Mental Health Services",5.1,"Mental Health & Substance Abuse FFS",{"$f":"IFERROR('MMA Rev-Exp Region 11'!$Z$41/'MMA Rev-Exp Region 11'!$Z$9, 0)","v":{"v":0,"d":"$0.00"}},{"$f":"IFERROR('MMA Rev-Exp Region 11'!$AA$41/'MMA Rev-Exp Region 11'!$AA$9, 0)","v":{"v":0,"d":"$0.00"}},{"$f":"IFERROR('MMA Rev-Exp Region 11'!$AB$41/'MMA Rev-Exp Region 11'!$AB$9, 0)","v":{"v":0,"d":"$0.00"}},{"$f":"IFERROR('MMA Rev-Exp Region 11'!$AC$41/'MMA Rev-Exp Region 11'!$AC$9, 0)","v":{"v":0,"d":"$0.00"}},{"$f":"IFERROR('MMA Rev-Exp Region 11'!$AD$41/'MMA Rev-Exp Region 11'!$AD$9, 0)","v":{"v":0,"d":"$0.00"}},{"$f":"IFERROR('MMA Rev-Exp Region 11'!$AE$41/'MMA Rev-Exp Region 11'!$AE$9, 0)","v":{"v":0,"d":"$0.00"}},{"$f":"IFERROR('MMA Rev-Exp Region 11'!$AF$41/'MMA Rev-Exp Region 11'!$AF$9, 0)","v":{"v":0,"d":"$0.00"}},{"$f":"IFERROR('MMA Rev-Exp Region 11'!$AG$41/'MMA Rev-Exp Region 11'!$AG$9, 0)","v":{"v":0,"d":"$0.00"}},{"$f":"IFERROR('MMA Rev-Exp Region 11'!$AH$41/'MMA Rev-Exp Region 11'!$AH$9, 0)","v":{"v":0,"d":"$0.00"}},{"$f":"IFERROR('MMA Rev-Exp Region 11'!$AI$41/'MMA Rev-Exp Region 11'!$AI$9, 0)","v":{"v":0,"d":"$0.00"}},{"$f":"IFERROR('MMA Rev-Exp Region 11'!$AJ$41/'MMA Rev-Exp Region 11'!$AJ$9, 0)","v":{"v":0,"d":"$0.00"}}]
["MMA",null,null,2016,"2016-12-31","Q3","2017-09-30","Region 11","Operating Expense","Medical Benefits Expense","Mental Health Services",5.2,"Mental Health & Substance Abuse Subcapitation",{"$f":"IFERROR('MMA Rev-Exp Region 11'!$Z$42/'MMA Rev-Exp Region 11'!$Z$9, 0)","v":{"v":0,"d":"$0.00"}},{"$f":"IFERROR('MMA Rev-Exp Region 11'!$AA$42/'MMA Rev-Exp Region 11'!$AA$9, 0)","v":{"v":0,"d":"$0.00"}},{"$f":"IFERROR('MMA Rev-Exp Region 11'!$AB$42/'MMA Rev-Exp Region 11'!$AB$9, 0)","v":{"v":0,"d":"$0.00"}},{"$f":"IFERROR('MMA Rev-Exp Region 11'!$AC$42/'MMA Rev-Exp Region 11'!$AC$9, 0)","v":{"v":0,"d":"$0.00"}},{"$f":"IFERROR('MMA Rev-Exp Region 11'!$AD$42/'MMA Rev-Exp Region 11'!$AD$9, 0)","v":{"v":0,"d":"$0.00"}},{"$f":"IFERROR('MMA Rev-Exp Region 11'!$AE$42/'MMA Rev-Exp Region 11'!$AE$9, 0)","v":{"v":0,"d":"$0.00"}},{"$f":"IFERROR('MMA Rev-Exp Region 11'!$AF$42/'MMA Rev-Exp Region 11'!$AF$9, 0)","v":{"v":0,"d":"$0.00"}},{"$f":"IFERROR('MMA Rev-Exp Region 11'!$AG$42/'MMA Rev-Exp Region 11'!$AG$9, 0)","v":{"v":0,"d":"$0.00"}},{"$f":"IFERROR('MMA Rev-Exp Region 11'!$AH$42/'MMA Rev-Exp Region 11'!$AH$9, 0)","v":{"v":0,"d":"$0.00"}},{"$f":"IFERROR('MMA Rev-Exp Region 11'!$AI$42/'MMA Rev-Exp Region 11'!$AI$9, 0)","v":{"v":0,"d":"$0.00"}},{"$f":"IFERROR('MMA Rev-Exp Region 11'!$AJ$42/'MMA Rev-Exp Region 11'!$AJ$9, 0)","v":{"v":0,"d":"$0.00"}}]
["MMA",null,null,2016,"2016-12-31","Q3","2017-09-30","Region 11","Operating Expense","Medical Benefits Expense","Mental Health Services",5.3,"Ending IBNP for Mental Health & Substance Abuse",{"$f":"IFERROR('MMA Rev-Exp Region 11'!$Z$43/'MMA Rev-Exp Region 11'!$Z$9, 0)","v":{"v":0,"d":"$0.00"}},{"$f":"IFERROR('MMA Rev-Exp Region 11'!$AA$43/'MMA Rev-Exp Region 11'!$AA$9, 0)","v":{"v":0,"d":"$0.00"}},{"$f":"IFERROR('MMA Rev-Exp Region 11'!$AB$43/'MMA Rev-Exp Region 11'!$AB$9, 0)","v":{"v":0,"d":"$0.00"}},{"$f":"IFERROR('MMA Rev-Exp Region 11'!$AC$43/'MMA Rev-Exp Region 11'!$AC$9, 0)","v":{"v":0,"d":"$0.00"}},{"$f":"IFERROR('MMA Rev-Exp Region 11'!$AD$43/'MMA Rev-Exp Region 11'!$AD$9, 0)","v":{"v":0,"d":"$0.00"}},{"$f":"IFERROR('MMA Rev-Exp Region 11'!$AE$43/'MMA Rev-Exp Region 11'!$AE$9, 0)","v":{"v":0,"d":"$0.00"}},{"$f":"IFERROR('MMA Rev-Exp Region 11'!$AF$43/'MMA Rev-Exp Region 11'!$AF$9, 0)","v":{"v":0,"d":"$0.00"}},{"$f":"IFERROR('MMA Rev-Exp Region 11'!$AG$43/'MMA Rev-Exp Region 11'!$AG$9, 0)","v":{"v":0,"d":"$0.00"}},{"$f":"IFERROR('MMA Rev-Exp Region 11'!$AH$43/'MMA Rev-Exp Region 11'!$AH$9, 0)","v":{"v":0,"d":"$0.00"}},{"$f":"IFERROR('MMA Rev-Exp Region 11'!$AI$43/'MMA Rev-Exp Region 11'!$AI$9, 0)","v":{"v":0,"d":"$0.00"}},{"$f":"IFERROR('MMA Rev-Exp Region 11'!$AJ$43/'MMA Rev-Exp Region 11'!$AJ$9, 0)","v":{"v":0,"d":"$0.00"}}]
["MMA",null,null,2016,"2016-12-31","Q3","2017-09-30","Region 11","Operating Expense","Medical Benefits Expense","Mental Health Services","5.4","Mental Health Settlements",{"$f":"IFERROR('MMA Rev-Exp Region 11'!$Z$44/'MMA Rev-Exp Region 11'!$Z$9, 0)","v":{"v":0,"d":"$0.00"}},{"$f":"IFERROR('MMA Rev-Exp Region 11'!$AA$44/'MMA Rev-Exp Region 11'!$AA$9, 0)","v":{"v":0,"d":"$0.00"}},{"$f":"IFERROR('MMA Rev-Exp Region 11'!$AB$44/'MMA Rev-Exp Region 11'!$AB$9, 0)","v":{"v":0,"d":"$0.00"}},{"$f":"IFERROR('MMA Rev-Exp Region 11'!$AC$44/'MMA Rev-Exp Region 11'!$AC$9, 0)","v":{"v":0,"d":"$0.00"}},{"$f":"IFERROR('MMA Rev-Exp Region 11'!$AD$44/'MMA Rev-Exp Region 11'!$AD$9, 0)","v":{"v":0,"d":"$0.00"}},{"$f":"IFERROR('MMA Rev-Exp Region 11'!$AE$44/'MMA Rev-Exp Region 11'!$AE$9, 0)","v":{"v":0,"d":"$0.00"}},{"$f":"IFERROR('MMA Rev-Exp Region 11'!$AF$44/'MMA Rev-Exp Region 11'!$AF$9, 0)","v":{"v":0,"d":"$0.00"}},{"$f":"IFERROR('MMA Rev-Exp Region 11'!$AG$44/'MMA Rev-Exp Region 11'!$AG$9, 0)","v":{"v":0,"d":"$0.00"}},{"$f":"IFERROR('MMA Rev-Exp Region 11'!$AH$44/'MMA Rev-Exp Region 11'!$AH$9, 0)","v":{"v":0,"d":"$0.00"}},{"$f":"IFERROR('MMA Rev-Exp Region 11'!$AI$44/'MMA Rev-Exp Region 11'!$AI$9, 0)","v":{"v":0,"d":"$0.00"}},{"$f":"IFERROR('MMA Rev-Exp Region 11'!$AJ$44/'MMA Rev-Exp Region 11'!$AJ$9, 0)","v":{"v":0,"d":"$0.00"}}]
["MMA",null,null,2016,"2016-12-31","Q3","2017-09-30","Region 11","Operating Expense","Medical Benefits Expense","Dental Services",6.1,"Dental FFS",{"$f":"IFERROR('MMA Rev-Exp Region 11'!$Z$46/'MMA Rev-Exp Region 11'!$Z$9, 0)","v":{"v":0,"d":"$0.00"}},{"$f":"IFERROR('MMA Rev-Exp Region 11'!$AA$46/'MMA Rev-Exp Region 11'!$AA$9, 0)","v":{"v":0,"d":"$0.00"}},{"$f":"IFERROR('MMA Rev-Exp Region 11'!$AB$46/'MMA Rev-Exp Region 11'!$AB$9, 0)","v":{"v":0,"d":"$0.00"}},{"$f":"IFERROR('MMA Rev-Exp Region 11'!$AC$46/'MMA Rev-Exp Region 11'!$AC$9, 0)","v":{"v":0,"d":"$0.00"}},{"$f":"IFERROR('MMA Rev-Exp Region 11'!$AD$46/'MMA Rev-Exp Region 11'!$AD$9, 0)","v":{"v":0,"d":"$0.00"}},{"$f":"IFERROR('MMA Rev-Exp Region 11'!$AE$46/'MMA Rev-Exp Region 11'!$AE$9, 0)","v":{"v":0,"d":"$0.00"}},{"$f":"IFERROR('MMA Rev-Exp Region 11'!$AF$46/'MMA Rev-Exp Region 11'!$AF$9, 0)","v":{"v":0,"d":"$0.00"}},{"$f":"IFERROR('MMA Rev-Exp Region 11'!$AG$46/'MMA Rev-Exp Region 11'!$AG$9, 0)","v":{"v":0,"d":"$0.00"}},{"$f":"IFERROR('MMA Rev-Exp Region 11'!$AH$46/'MMA Rev-Exp Region 11'!$AH$9, 0)","v":{"v":0,"d":"$0.00"}},{"$f":"IFERROR('MMA Rev-Exp Region 11'!$AI$46/'MMA Rev-Exp Region 11'!$AI$9, 0)","v":{"v":0,"d":"$0.00"}},{"$f":"IFERROR('MMA Rev-Exp Region 11'!$AJ$46/'MMA Rev-Exp Region 11'!$AJ$9, 0)","v":{"v":0,"d":"$0.00"}}]
["MMA",null,null,2016,"2016-12-31","Q3","2017-09-30","Region 11","Operating Expense","Medical Benefits Expense","Dental Services",6.2,"Dental Subcapitation",{"$f":"IFERROR('MMA Rev-Exp Region 11'!$Z$47/'MMA Rev-Exp Region 11'!$Z$9, 0)","v":{"v":0,"d":"$0.00"}},{"$f":"IFERROR('MMA Rev-Exp Region 11'!$AA$47/'MMA Rev-Exp Region 11'!$AA$9, 0)","v":{"v":0,"d":"$0.00"}},{"$f":"IFERROR('MMA Rev-Exp Region 11'!$AB$47/'MMA Rev-Exp Region 11'!$AB$9, 0)","v":{"v":0,"d":"$0.00"}},{"$f":"IFERROR('MMA Rev-Exp Region 11'!$AC$47/'MMA Rev-Exp Region 11'!$AC$9, 0)","v":{"v":0,"d":"$0.00"}},{"$f":"IFERROR('MMA Rev-Exp Region 11'!$AD$47/'MMA Rev-Exp Region 11'!$AD$9, 0)","v":{"v":0,"d":"$0.00"}},{"$f":"IFERROR('MMA Rev-Exp Region 11'!$AE$47/'MMA Rev-Exp Region 11'!$AE$9, 0)","v":{"v":0,"d":"$0.00"}},{"$f":"IFERROR('MMA Rev-Exp Region 11'!$AF$47/'MMA Rev-Exp Region 11'!$AF$9, 0)","v":{"v":0,"d":"$0.00"}},{"$f":"IFERROR('MMA Rev-Exp Region 11'!$AG$47/'MMA Rev-Exp Region 11'!$AG$9, 0)","v":{"v":0,"d":"$0.00"}},{"$f":"IFERROR('MMA Rev-Exp Region 11'!$AH$47/'MMA Rev-Exp Region 11'!$AH$9, 0)","v":{"v":0,"d":"$0.00"}},{"$f":"IFERROR('MMA Rev-Exp Region 11'!$AI$47/'MMA Rev-Exp Region 11'!$AI$9, 0)","v":{"v":0,"d":"$0.00"}},{"$f":"IFERROR('MMA Rev-Exp Region 11'!$AJ$47/'MMA Rev-Exp Region 11'!$AJ$9, 0)","v":{"v":0,"d":"$0.00"}}]
["MMA",null,null,2016,"2016-12-31","Q3","2017-09-30","Region 11","Operating Expense","Medical Benefits Expense","Dental Services",6.3,"Ending IBNP for Dental Services",{"$f":"IFERROR('MMA Rev-Exp Region 11'!$Z$48/'MMA Rev-Exp Region 11'!$Z$9, 0)","v":{"v":0,"d":"$0.00"}},{"$f":"IFERROR('MMA Rev-Exp Region 11'!$AA$48/'MMA Rev-Exp Region 11'!$AA$9, 0)","v":{"v":0,"d":"$0.00"}},{"$f":"IFERROR('MMA Rev-Exp Region 11'!$AB$48/'MMA Rev-Exp Region 11'!$AB$9, 0)","v":{"v":0,"d":"$0.00"}},{"$f":"IFERROR('MMA Rev-Exp Region 11'!$AC$48/'MMA Rev-Exp Region 11'!$AC$9, 0)","v":{"v":0,"d":"$0.00"}},{"$f":"IFERROR('MMA Rev-Exp Region 11'!$AD$48/'MMA Rev-Exp Region 11'!$AD$9, 0)","v":{"v":0,"d":"$0.00"}},{"$f":"IFERROR('MMA Rev-Exp Region 11'!$AE$48/'MMA Rev-Exp Region 11'!$AE$9, 0)","v":{"v":0,"d":"$0.00"}},{"$f":"IFERROR('MMA Rev-Exp Region 11'!$AF$48/'MMA Rev-Exp Region 11'!$AF$9, 0)","v":{"v":0,"d":"$0.00"}},{"$f":"IFERROR('MMA Rev-Exp Region 11'!$AG$48/'MMA Rev-Exp Region 11'!$AG$9, 0)","v":{"v":0,"d":"$0.00"}},{"$f":"IFERROR('MMA Rev-Exp Region 11'!$AH$48/'MMA Rev-Exp Region 11'!$AH$9, 0)","v":{"v":0,"d":"$0.00"}},{"$f":"IFERROR('MMA Rev-Exp Region 11'!$AI$48/'MMA Rev-Exp Region 11'!$AI$9, 0)","v":{"v":0,"d":"$0.00"}},{"$f":"IFERROR('MMA Rev-Exp Region 11'!$AJ$48/'MMA Rev-Exp Region 11'!$AJ$9, 0)","v":{"v":0,"d":"$0.00"}}]
["MMA",null,null,2016,"2016-12-31","Q3","2017-09-30","Region 11","Operating Expense","Medical Benefits Expense","Dental Services","6.4","Dental Settlements",{"$f":"IFERROR('MMA Rev-Exp Region 11'!$Z$49/'MMA Rev-Exp Region 11'!$Z$9, 0)","v":{"v":0,"d":"$0.00"}},{"$f":"IFERROR('MMA Rev-Exp Region 11'!$AA$49/'MMA Rev-Exp Region 11'!$AA$9, 0)","v":{"v":0,"d":"$0.00"}},{"$f":"IFERROR('MMA Rev-Exp Region 11'!$AB$49/'MMA Rev-Exp Region 11'!$AB$9, 0)","v":{"v":0,"d":"$0.00"}},{"$f":"IFERROR('MMA Rev-Exp Region 11'!$AC$49/'MMA Rev-Exp Region 11'!$AC$9, 0)","v":{"v":0,"d":"$0.00"}},{"$f":"IFERROR('MMA Rev-Exp Region 11'!$AD$49/'MMA Rev-Exp Region 11'!$AD$9, 0)","v":{"v":0,"d":"$0.00"}},{"$f":"IFERROR('MMA Rev-Exp Region 11'!$AE$49/'MMA Rev-Exp Region 11'!$AE$9, 0)","v":{"v":0,"d":"$0.00"}},{"$f":"IFERROR('MMA Rev-Exp Region 11'!$AF$49/'MMA Rev-Exp Region 11'!$AF$9, 0)","v":{"v":0,"d":"$0.00"}},{"$f":"IFERROR('MMA Rev-Exp Region 11'!$AG$49/'MMA Rev-Exp Region 11'!$AG$9, 0)","v":{"v":0,"d":"$0.00"}},{"$f":"IFERROR('MMA Rev-Exp Region 11'!$AH$49/'MMA Rev-Exp Region 11'!$AH$9, 0)","v":{"v":0,"d":"$0.00"}},{"$f":"IFERROR('MMA Rev-Exp Region 11'!$AI$49/'MMA Rev-Exp Region 11'!$AI$9, 0)","v":{"v":0,"d":"$0.00"}},{"$f":"IFERROR('MMA Rev-Exp Region 11'!$AJ$49/'MMA Rev-Exp Region 11'!$AJ$9, 0)","v":{"v":0,"d":"$0.00"}}]
["MMA",null,null,2016,"2016-12-31","Q3","2017-09-30","Region 11","Operating Expense","Medical Benefits Expense","Transportation Services",7.1,"Transportation FFS",{"$f":"IFERROR('MMA Rev-Exp Region 11'!$Z$51/'MMA Rev-Exp Region 11'!$Z$9, 0)","v":{"v":0,"d":"$0.00"}},{"$f":"IFERROR('MMA Rev-Exp Region 11'!$AA$51/'MMA Rev-Exp Region 11'!$AA$9, 0)","v":{"v":0,"d":"$0.00"}},{"$f":"IFERROR('MMA Rev-Exp Region 11'!$AB$51/'MMA Rev-Exp Region 11'!$AB$9, 0)","v":{"v":0,"d":"$0.00"}},{"$f":"IFERROR('MMA Rev-Exp Region 11'!$AC$51/'MMA Rev-Exp Region 11'!$AC$9, 0)","v":{"v":0,"d":"$0.00"}},{"$f":"IFERROR('MMA Rev-Exp Region 11'!$AD$51/'MMA Rev-Exp Region 11'!$AD$9, 0)","v":{"v":0,"d":"$0.00"}},{"$f":"IFERROR('MMA Rev-Exp Region 11'!$AE$51/'MMA Rev-Exp Region 11'!$AE$9, 0)","v":{"v":0,"d":"$0.00"}},{"$f":"IFERROR('MMA Rev-Exp Region 11'!$AF$51/'MMA Rev-Exp Region 11'!$AF$9, 0)","v":{"v":0,"d":"$0.00"}},{"$f":"IFERROR('MMA Rev-Exp Region 11'!$AG$51/'MMA Rev-Exp Region 11'!$AG$9, 0)","v":{"v":0,"d":"$0.00"}},{"$f":"IFERROR('MMA Rev-Exp Region 11'!$AH$51/'MMA Rev-Exp Region 11'!$AH$9, 0)","v":{"v":0,"d":"$0.00"}},{"$f":"IFERROR('MMA Rev-Exp Region 11'!$AI$51/'MMA Rev-Exp Region 11'!$AI$9, 0)","v":{"v":0,"d":"$0.00"}},{"$f":"IFERROR('MMA Rev-Exp Region 11'!$AJ$51/'MMA Rev-Exp Region 11'!$AJ$9, 0)","v":{"v":0,"d":"$0.00"}}]
["MMA",null,null,2016,"2016-12-31","Q3","2017-09-30","Region 11","Operating Expense","Medical Benefits Expense","Transportation Services",7.2,"Transportation Subcapitation",{"$f":"IFERROR('MMA Rev-Exp Region 11'!$Z$52/'MMA Rev-Exp Region 11'!$Z$9, 0)","v":{"v":0,"d":"$0.00"}},{"$f":"IFERROR('MMA Rev-Exp Region 11'!$AA$52/'MMA Rev-Exp Region 11'!$AA$9, 0)","v":{"v":0,"d":"$0.00"}},{"$f":"IFERROR('MMA Rev-Exp Region 11'!$AB$52/'MMA Rev-Exp Region 11'!$AB$9, 0)","v":{"v":0,"d":"$0.00"}},{"$f":"IFERROR('MMA Rev-Exp Region 11'!$AC$52/'MMA Rev-Exp Region 11'!$AC$9, 0)","v":{"v":0,"d":"$0.00"}},{"$f":"IFERROR('MMA Rev-Exp Region 11'!$AD$52/'MMA Rev-Exp Region 11'!$AD$9, 0)","v":{"v":0,"d":"$0.00"}},{"$f":"IFERROR('MMA Rev-Exp Region 11'!$AE$52/'MMA Rev-Exp Region 11'!$AE$9, 0)","v":{"v":0,"d":"$0.00"}},{"$f":"IFERROR('MMA Rev-Exp Region 11'!$AF$52/'MMA Rev-Exp Region 11'!$AF$9, 0)","v":{"v":0,"d":"$0.00"}},{"$f":"IFERROR('MMA Rev-Exp Region 11'!$AG$52/'MMA Rev-Exp Region 11'!$AG$9, 0)","v":{"v":0,"d":"$0.00"}},{"$f":"IFERROR('MMA Rev-Exp Region 11'!$AH$52/'MMA Rev-Exp Region 11'!$AH$9, 0)","v":{"v":0,"d":"$0.00"}},{"$f":"IFERROR('MMA Rev-Exp Region 11'!$AI$52/'MMA Rev-Exp Region 11'!$AI$9, 0)","v":{"v":0,"d":"$0.00"}},{"$f":"IFERROR('MMA Rev-Exp Region 11'!$AJ$52/'MMA Rev-Exp Region 11'!$AJ$9, 0)","v":{"v":0,"d":"$0.00"}}]
["MMA",null,null,2016,"2016-12-31","Q3","2017-09-30","Region 11","Operating Expense","Medical Benefits Expense","Transportation Services",7.3,"Ending IBNP for Transportation",{"$f":"IFERROR('MMA Rev-Exp Region 11'!$Z$53/'MMA Rev-Exp Region 11'!$Z$9, 0)","v":{"v":0,"d":"$0.00"}},{"$f":"IFERROR('MMA Rev-Exp Region 11'!$AA$53/'MMA Rev-Exp Region 11'!$AA$9, 0)","v":{"v":0,"d":"$0.00"}},{"$f":"IFERROR('MMA Rev-Exp Region 11'!$AB$53/'MMA Rev-Exp Region 11'!$AB$9, 0)","v":{"v":0,"d":"$0.00"}},{"$f":"IFERROR('MMA Rev-Exp Region 11'!$AC$53/'MMA Rev-Exp Region 11'!$AC$9, 0)","v":{"v":0,"d":"$0.00"}},{"$f":"IFERROR('MMA Rev-Exp Region 11'!$AD$53/'MMA Rev-Exp Region 11'!$AD$9, 0)","v":{"v":0,"d":"$0.00"}},{"$f":"IFERROR('MMA Rev-Exp Region 11'!$AE$53/'MMA Rev-Exp Region 11'!$AE$9, 0)","v":{"v":0,"d":"$0.00"}},{"$f":"IFERROR('MMA Rev-Exp Region 11'!$AF$53/'MMA Rev-Exp Region 11'!$AF$9, 0)","v":{"v":0,"d":"$0.00"}},{"$f":"IFERROR('MMA Rev-Exp Region 11'!$AG$53/'MMA Rev-Exp Region 11'!$AG$9, 0)","v":{"v":0,"d":"$0.00"}},{"$f":"IFERROR('MMA Rev-Exp Region 11'!$AH$53/'MMA Rev-Exp Region 11'!$AH$9, 0)","v":{"v":0,"d":"$0.00"}},{"$f":"IFERROR('MMA Rev-Exp Region 11'!$AI$53/'MMA Rev-Exp Region 11'!$AI$9, 0)","v":{"v":0,"d":"$0.00"}},{"$f":"IFERROR('MMA Rev-Exp Region 11'!$AJ$53/'MMA Rev-Exp Region 11'!$AJ$9, 0)","v":{"v":0,"d":"$0.00"}}]
["MMA",null,null,2016,"2016-12-31","Q3","2017-09-30","Region 11","Operating Expense","Medical Benefits Expense","Transportation Services","7.4","Transportation Settlements",{"$f":"IFERROR('MMA Rev-Exp Region 11'!$Z$54/'MMA Rev-Exp Region 11'!$Z$9, 0)","v":{"v":0,"d":"$0.00"}},{"$f":"IFERROR('MMA Rev-Exp Region 11'!$AA$54/'MMA Rev-Exp Region 11'!$AA$9, 0)","v":{"v":0,"d":"$0.00"}},{"$f":"IFERROR('MMA Rev-Exp Region 11'!$AB$54/'MMA Rev-Exp Region 11'!$AB$9, 0)","v":{"v":0,"d":"$0.00"}},{"$f":"IFERROR('MMA Rev-Exp Region 11'!$AC$54/'MMA Rev-Exp Region 11'!$AC$9, 0)","v":{"v":0,"d":"$0.00"}},{"$f":"IFERROR('MMA Rev-Exp Region 11'!$AD$54/'MMA Rev-Exp Region 11'!$AD$9, 0)","v":{"v":0,"d":"$0.00"}},{"$f":"IFERROR('MMA Rev-Exp Region 11'!$AE$54/'MMA Rev-Exp Region 11'!$AE$9, 0)","v":{"v":0,"d":"$0.00"}},{"$f":"IFERROR('MMA Rev-Exp Region 11'!$AF$54/'MMA Rev-Exp Region 11'!$AF$9, 0)","v":{"v":0,"d":"$0.00"}},{"$f":"IFERROR('MMA Rev-Exp Region 11'!$AG$54/'MMA Rev-Exp Region 11'!$AG$9, 0)","v":{"v":0,"d":"$0.00"}},{"$f":"IFERROR('MMA Rev-Exp Region 11'!$AH$54/'MMA Rev-Exp Region 11'!$AH$9, 0)","v":{"v":0,"d":"$0.00"}},{"$f":"IFERROR('MMA Rev-Exp Region 11'!$AI$54/'MMA Rev-Exp Region 11'!$AI$9, 0)","v":{"v":0,"d":"$0.00"}},{"$f":"IFERROR('MMA Rev-Exp Region 11'!$AJ$54/'MMA Rev-Exp Region 11'!$AJ$9, 0)","v":{"v":0,"d":"$0.00"}}]
["MMA",null,null,2016,"2016-12-31","Q3","2017-09-30","Region 11","Operating Expense","Medical Benefits Expense","Pharmacy Services",8.1,"Prescription Drugs FFS",{"$f":"IFERROR('MMA Rev-Exp Region 11'!$Z$56/'MMA Rev-Exp Region 11'!$Z$9, 0)","v":{"v":0,"d":"$0.00"}},{"$f":"IFERROR('MMA Rev-Exp Region 11'!$AA$56/'MMA Rev-Exp Region 11'!$AA$9, 0)","v":{"v":0,"d":"$0.00"}},{"$f":"IFERROR('MMA Rev-Exp Region 11'!$AB$56/'MMA Rev-Exp Region 11'!$AB$9, 0)","v":{"v":0,"d":"$0.00"}},{"$f":"IFERROR('MMA Rev-Exp Region 11'!$AC$56/'MMA Rev-Exp Region 11'!$AC$9, 0)","v":{"v":0,"d":"$0.00"}},{"$f":"IFERROR('MMA Rev-Exp Region 11'!$AD$56/'MMA Rev-Exp Region 11'!$AD$9, 0)","v":{"v":0,"d":"$0.00"}},{"$f":"IFERROR('MMA Rev-Exp Region 11'!$AE$56/'MMA Rev-Exp Region 11'!$AE$9, 0)","v":{"v":0,"d":"$0.00"}},{"$f":"IFERROR('MMA Rev-Exp Region 11'!$AF$56/'MMA Rev-Exp Region 11'!$AF$9, 0)","v":{"v":0,"d":"$0.00"}},{"$f":"IFERROR('MMA Rev-Exp Region 11'!$AG$56/'MMA Rev-Exp Region 11'!$AG$9, 0)","v":{"v":0,"d":"$0.00"}},{"$f":"IFERROR('MMA Rev-Exp Region 11'!$AH$56/'MMA Rev-Exp Region 11'!$AH$9, 0)","v":{"v":0,"d":"$0.00"}},{"$f":"IFERROR('MMA Rev-Exp Region 11'!$AI$56/'MMA Rev-Exp Region 11'!$AI$9, 0)","v":{"v":0,"d":"$0.00"}},{"$f":"IFERROR('MMA Rev-Exp Region 11'!$AJ$56/'MMA Rev-Exp Region 11'!$AJ$9, 0)","v":{"v":0,"d":"$0.00"}}]
["MMA",null,null,2016,"2016-12-31","Q3","2017-09-30","Region 11","Operating Expense","Medical Benefits Expense","Pharmacy Services","8.2","Hepatitis C Prescription Drug FFS",{"$f":"IFERROR('MMA Rev-Exp Region 11'!$Z$57/'MMA Rev-Exp Region 11'!$Z$9, 0)","v":{"v":0,"d":"$0.00"}},{"$f":"IFERROR('MMA Rev-Exp Region 11'!$AA$57/'MMA Rev-Exp Region 11'!$AA$9, 0)","v":{"v":0,"d":"$0.00"}},{"$f":"IFERROR('MMA Rev-Exp Region 11'!$AB$57/'MMA Rev-Exp Region 11'!$AB$9, 0)","v":{"v":0,"d":"$0.00"}},{"$f":"IFERROR('MMA Rev-Exp Region 11'!$AC$57/'MMA Rev-Exp Region 11'!$AC$9, 0)","v":{"v":0,"d":"$0.00"}},{"$f":"IFERROR('MMA Rev-Exp Region 11'!$AD$57/'MMA Rev-Exp Region 11'!$AD$9, 0)","v":{"v":0,"d":"$0.00"}},{"$f":"IFERROR('MMA Rev-Exp Region 11'!$AE$57/'MMA Rev-Exp Region 11'!$AE$9, 0)","v":{"v":0,"d":"$0.00"}},{"$f":"IFERROR('MMA Rev-Exp Region 11'!$AF$57/'MMA Rev-Exp Region 11'!$AF$9, 0)","v":{"v":0,"d":"$0.00"}},{"$f":"IFERROR('MMA Rev-Exp Region 11'!$AG$57/'MMA Rev-Exp Region 11'!$AG$9, 0)","v":{"v":0,"d":"$0.00"}},{"$f":"IFERROR('MMA Rev-Exp Region 11'!$AH$57/'MMA Rev-Exp Region 11'!$AH$9, 0)","v":{"v":0,"d":"$0.00"}},{"$f":"IFERROR('MMA Rev-Exp Region 11'!$AI$57/'MMA Rev-Exp Region 11'!$AI$9, 0)","v":{"v":0,"d":"$0.00"}},{"$f":"IFERROR('MMA Rev-Exp Region 11'!$AJ$57/'MMA Rev-Exp Region 11'!$AJ$9, 0)","v":{"v":0,"d":"$0.00"}}]
["MMA",null,null,2016,"2016-12-31","Q3","2017-09-30","Region 11","Operating Expense","Medical Benefits Expense","Pharmacy Services","8.3","Ending IBNP for Prescription Drugs",{"$f":"IFERROR('MMA Rev-Exp Region 11'!$Z$58/'MMA Rev-Exp Region 11'!$Z$9, 0)","v":{"v":0,"d":"$0.00"}},{"$f":"IFERROR('MMA Rev-Exp Region 11'!$AA$58/'MMA Rev-Exp Region 11'!$AA$9, 0)","v":{"v":0,"d":"$0.00"}},{"$f":"IFERROR('MMA Rev-Exp Region 11'!$AB$58/'MMA Rev-Exp Region 11'!$AB$9, 0)","v":{"v":0,"d":"$0.00"}},{"$f":"IFERROR('MMA Rev-Exp Region 11'!$AC$58/'MMA Rev-Exp Region 11'!$AC$9, 0)","v":{"v":0,"d":"$0.00"}},{"$f":"IFERROR('MMA Rev-Exp Region 11'!$AD$58/'MMA Rev-Exp Region 11'!$AD$9, 0)","v":{"v":0,"d":"$0.00"}},{"$f":"IFERROR('MMA Rev-Exp Region 11'!$AE$58/'MMA Rev-Exp Region 11'!$AE$9, 0)","v":{"v":0,"d":"$0.00"}},{"$f":"IFERROR('MMA Rev-Exp Region 11'!$AF$58/'MMA Rev-Exp Region 11'!$AF$9, 0)","v":{"v":0,"d":"$0.00"}},{"$f":"IFERROR('MMA Rev-Exp Region 11'!$AG$58/'MMA Rev-Exp Region 11'!$AG$9, 0)","v":{"v":0,"d":"$0.00"}},{"$f":"IFERROR('MMA Rev-Exp Region 11'!$AH$58/'MMA Rev-Exp Region 11'!$AH$9, 0)","v":{"v":0,"d":"$0.00"}},{"$f":"IFERROR('MMA Rev-Exp Region 11'!$AI$58/'MMA Rev-Exp Region 11'!$AI$9, 0)","v":{"v":0,"d":"$0.00"}},{"$f":"IFERROR('MMA Rev-Exp Region 11'!$AJ$58/'MMA Rev-Exp Region 11'!$AJ$9, 0)","v":{"v":0,"d":"$0.00"}}]
["MMA",null,null,2016,"2016-12-31","Q3","2017-09-30","Region 11","Operating Expense","Medical Benefits Expense","Pharmacy Services","8.4","Prescription Drug Rebates ",{"$f":"IFERROR('MMA Rev-Exp Region 11'!$Z$59/'MMA Rev-Exp Region 11'!$Z$9, 0)","v":{"v":0,"d":"$0.00"}},{"$f":"IFERROR('MMA Rev-Exp Region 11'!$AA$59/'MMA Rev-Exp Region 11'!$AA$9, 0)","v":{"v":0,"d":"$0.00"}},{"$f":"IFERROR('MMA Rev-Exp Region 11'!$AB$59/'MMA Rev-Exp Region 11'!$AB$9, 0)","v":{"v":0,"d":"$0.00"}},{"$f":"IFERROR('MMA Rev-Exp Region 11'!$AC$59/'MMA Rev-Exp Region 11'!$AC$9, 0)","v":{"v":0,"d":"$0.00"}},{"$f":"IFERROR('MMA Rev-Exp Region 11'!$AD$59/'MMA Rev-Exp Region 11'!$AD$9, 0)","v":{"v":0,"d":"$0.00"}},{"$f":"IFERROR('MMA Rev-Exp Region 11'!$AE$59/'MMA Rev-Exp Region 11'!$AE$9, 0)","v":{"v":0,"d":"$0.00"}},{"$f":"IFERROR('MMA Rev-Exp Region 11'!$AF$59/'MMA Rev-Exp Region 11'!$AF$9, 0)","v":{"v":0,"d":"$0.00"}},{"$f":"IFERROR('MMA Rev-Exp Region 11'!$AG$59/'MMA Rev-Exp Region 11'!$AG$9, 0)","v":{"v":0,"d":"$0.00"}},{"$f":"IFERROR('MMA Rev-Exp Region 11'!$AH$59/'MMA Rev-Exp Region 11'!$AH$9, 0)","v":{"v":0,"d":"$0.00"}},{"$f":"IFERROR('MMA Rev-Exp Region 11'!$AI$59/'MMA Rev-Exp Region 11'!$AI$9, 0)","v":{"v":0,"d":"$0.00"}},{"$f":"IFERROR('MMA Rev-Exp Region 11'!$AJ$59/'MMA Rev-Exp Region 11'!$AJ$9, 0)","v":{"v":0,"d":"$0.00"}}]
["MMA",null,null,2016,"2016-12-31","Q3","2017-09-30","Region 11","Operating Expense","Medical Benefits Expense","Pharmacy Services","8.5","Ending accrual for Rebates receivable",{"$f":"IFERROR('MMA Rev-Exp Region 11'!$Z$60/'MMA Rev-Exp Region 11'!$Z$9, 0)","v":{"v":0,"d":"$0.00"}},{"$f":"IFERROR('MMA Rev-Exp Region 11'!$AA$60/'MMA Rev-Exp Region 11'!$AA$9, 0)","v":{"v":0,"d":"$0.00"}},{"$f":"IFERROR('MMA Rev-Exp Region 11'!$AB$60/'MMA Rev-Exp Region 11'!$AB$9, 0)","v":{"v":0,"d":"$0.00"}},{"$f":"IFERROR('MMA Rev-Exp Region 11'!$AC$60/'MMA Rev-Exp Region 11'!$AC$9, 0)","v":{"v":0,"d":"$0.00"}},{"$f":"IFERROR('MMA Rev-Exp Region 11'!$AD$60/'MMA Rev-Exp Region 11'!$AD$9, 0)","v":{"v":0,"d":"$0.00"}},{"$f":"IFERROR('MMA Rev-Exp Region 11'!$AE$60/'MMA Rev-Exp Region 11'!$AE$9, 0)","v":{"v":0,"d":"$0.00"}},{"$f":"IFERROR('MMA Rev-Exp Region 11'!$AF$60/'MMA Rev-Exp Region 11'!$AF$9, 0)","v":{"v":0,"d":"$0.00"}},{"$f":"IFERROR('MMA Rev-Exp Region 11'!$AG$60/'MMA Rev-Exp Region 11'!$AG$9, 0)","v":{"v":0,"d":"$0.00"}},{"$f":"IFERROR('MMA Rev-Exp Region 11'!$AH$60/'MMA Rev-Exp Region 11'!$AH$9, 0)","v":{"v":0,"d":"$0.00"}},{"$f":"IFERROR('MMA Rev-Exp Region 11'!$AI$60/'MMA Rev-Exp Region 11'!$AI$9, 0)","v":{"v":0,"d":"$0.00"}},{"$f":"IFERROR('MMA Rev-Exp Region 11'!$AJ$60/'MMA Rev-Exp Region 11'!$AJ$9, 0)","v":{"v":0,"d":"$0.00"}}]
["MMA",null,null,2016,"2016-12-31","Q3","2017-09-30","Region 11","Operating Expense","Medical Benefits Expense","Pharmacy Services","8.6","Prescription Drugs Subcapitation",{"$f":"IFERROR('MMA Rev-Exp Region 11'!$Z$61/'MMA Rev-Exp Region 11'!$Z$9, 0)","v":{"v":0,"d":"$0.00"}},{"$f":"IFERROR('MMA Rev-Exp Region 11'!$AA$61/'MMA Rev-Exp Region 11'!$AA$9, 0)","v":{"v":0,"d":"$0.00"}},{"$f":"IFERROR('MMA Rev-Exp Region 11'!$AB$61/'MMA Rev-Exp Region 11'!$AB$9, 0)","v":{"v":0,"d":"$0.00"}},{"$f":"IFERROR('MMA Rev-Exp Region 11'!$AC$61/'MMA Rev-Exp Region 11'!$AC$9, 0)","v":{"v":0,"d":"$0.00"}},{"$f":"IFERROR('MMA Rev-Exp Region 11'!$AD$61/'MMA Rev-Exp Region 11'!$AD$9, 0)","v":{"v":0,"d":"$0.00"}},{"$f":"IFERROR('MMA Rev-Exp Region 11'!$AE$61/'MMA Rev-Exp Region 11'!$AE$9, 0)","v":{"v":0,"d":"$0.00"}},{"$f":"IFERROR('MMA Rev-Exp Region 11'!$AF$61/'MMA Rev-Exp Region 11'!$AF$9, 0)","v":{"v":0,"d":"$0.00"}},{"$f":"IFERROR('MMA Rev-Exp Region 11'!$AG$61/'MMA Rev-Exp Region 11'!$AG$9, 0)","v":{"v":0,"d":"$0.00"}},{"$f":"IFERROR('MMA Rev-Exp Region 11'!$AH$61/'MMA Rev-Exp Region 11'!$AH$9, 0)","v":{"v":0,"d":"$0.00"}},{"$f":"IFERROR('MMA Rev-Exp Region 11'!$AI$61/'MMA Rev-Exp Region 11'!$AI$9, 0)","v":{"v":0,"d":"$0.00"}},{"$f":"IFERROR('MMA Rev-Exp Region 11'!$AJ$61/'MMA Rev-Exp Region 11'!$AJ$9, 0)","v":{"v":0,"d":"$0.00"}}]
["MMA",null,null,2016,"2016-12-31","Q3","2017-09-30","Region 11","Operating Expense","Medical Benefits Expense","Pharmacy Services","8.7","Prescription Drug Settlements",{"$f":"IFERROR('MMA Rev-Exp Region 11'!$Z$62/'MMA Rev-Exp Region 11'!$Z$9, 0)","v":{"v":0,"d":"$0.00"}},{"$f":"IFERROR('MMA Rev-Exp Region 11'!$AA$62/'MMA Rev-Exp Region 11'!$AA$9, 0)","v":{"v":0,"d":"$0.00"}},{"$f":"IFERROR('MMA Rev-Exp Region 11'!$AB$62/'MMA Rev-Exp Region 11'!$AB$9, 0)","v":{"v":0,"d":"$0.00"}},{"$f":"IFERROR('MMA Rev-Exp Region 11'!$AC$62/'MMA Rev-Exp Region 11'!$AC$9, 0)","v":{"v":0,"d":"$0.00"}},{"$f":"IFERROR('MMA Rev-Exp Region 11'!$AD$62/'MMA Rev-Exp Region 11'!$AD$9, 0)","v":{"v":0,"d":"$0.00"}},{"$f":"IFERROR('MMA Rev-Exp Region 11'!$AE$62/'MMA Rev-Exp Region 11'!$AE$9, 0)","v":{"v":0,"d":"$0.00"}},{"$f":"IFERROR('MMA Rev-Exp Region 11'!$AF$62/'MMA Rev-Exp Region 11'!$AF$9, 0)","v":{"v":0,"d":"$0.00"}},{"$f":"IFERROR('MMA Rev-Exp Region 11'!$AG$62/'MMA Rev-Exp Region 11'!$AG$9, 0)","v":{"v":0,"d":"$0.00"}},{"$f":"IFERROR('MMA Rev-Exp Region 11'!$AH$62/'MMA Rev-Exp Region 11'!$AH$9, 0)","v":{"v":0,"d":"$0.00"}},{"$f":"IFERROR('MMA Rev-Exp Region 11'!$AI$62/'MMA Rev-Exp Region 11'!$AI$9, 0)","v":{"v":0,"d":"$0.00"}},{"$f":"IFERROR('MMA Rev-Exp Region 11'!$AJ$62/'MMA Rev-Exp Region 11'!$AJ$9, 0)","v":{"v":0,"d":"$0.00"}}]
["MMA",null,null,2016,"2016-12-31","Q3","2017-09-30","Region 11","Operating Expense","Medical Benefits Expense","Other MMA Services",9.1,"Home Health, Private Duty Nursing, Personal Care FFS",{"$f":"IFERROR('MMA Rev-Exp Region 11'!$Z$64/'MMA Rev-Exp Region 11'!$Z$9, 0)","v":{"v":0,"d":"$0.00"}},{"$f":"IFERROR('MMA Rev-Exp Region 11'!$AA$64/'MMA Rev-Exp Region 11'!$AA$9, 0)","v":{"v":0,"d":"$0.00"}},{"$f":"IFERROR('MMA Rev-Exp Region 11'!$AB$64/'MMA Rev-Exp Region 11'!$AB$9, 0)","v":{"v":0,"d":"$0.00"}},{"$f":"IFERROR('MMA Rev-Exp Region 11'!$AC$64/'MMA Rev-Exp Region 11'!$AC$9, 0)","v":{"v":0,"d":"$0.00"}},{"$f":"IFERROR('MMA Rev-Exp Region 11'!$AD$64/'MMA Rev-Exp Region 11'!$AD$9, 0)","v":{"v":0,"d":"$0.00"}},{"$f":"IFERROR('MMA Rev-Exp Region 11'!$AE$64/'MMA Rev-Exp Region 11'!$AE$9, 0)","v":{"v":0,"d":"$0.00"}},{"$f":"IFERROR('MMA Rev-Exp Region 11'!$AF$64/'MMA Rev-Exp Region 11'!$AF$9, 0)","v":{"v":0,"d":"$0.00"}},{"$f":"IFERROR('MMA Rev-Exp Region 11'!$AG$64/'MMA Rev-Exp Region 11'!$AG$9, 0)","v":{"v":0,"d":"$0.00"}},{"$f":"IFERROR('MMA Rev-Exp Region 11'!$AH$64/'MMA Rev-Exp Region 11'!$AH$9, 0)","v":{"v":0,"d":"$0.00"}},{"$f":"IFERROR('MMA Rev-Exp Region 11'!$AI$64/'MMA Rev-Exp Region 11'!$AI$9, 0)","v":{"v":0,"d":"$0.00"}},{"$f":"IFERROR('MMA Rev-Exp Region 11'!$AJ$64/'MMA Rev-Exp Region 11'!$AJ$9, 0)","v":{"v":0,"d":"$0.00"}}]
["MMA",null,null,2016,"2016-12-31","Q3","2017-09-30","Region 11","Operating Expense","Medical Benefits Expense","Other MMA Services","9.2","Hospice FFS",{"$f":"IFERROR('MMA Rev-Exp Region 11'!$Z$65/'MMA Rev-Exp Region 11'!$Z$9, 0)","v":{"v":0,"d":"$0.00"}},{"$f":"IFERROR('MMA Rev-Exp Region 11'!$AA$65/'MMA Rev-Exp Region 11'!$AA$9, 0)","v":{"v":0,"d":"$0.00"}},{"$f":"IFERROR('MMA Rev-Exp Region 11'!$AB$65/'MMA Rev-Exp Region 11'!$AB$9, 0)","v":{"v":0,"d":"$0.00"}},{"$f":"IFERROR('MMA Rev-Exp Region 11'!$AC$65/'MMA Rev-Exp Region 11'!$AC$9, 0)","v":{"v":0,"d":"$0.00"}},{"$f":"IFERROR('MMA Rev-Exp Region 11'!$AD$65/'MMA Rev-Exp Region 11'!$AD$9, 0)","v":{"v":0,"d":"$0.00"}},{"$f":"IFERROR('MMA Rev-Exp Region 11'!$AE$65/'MMA Rev-Exp Region 11'!$AE$9, 0)","v":{"v":0,"d":"$0.00"}},{"$f":"IFERROR('MMA Rev-Exp Region 11'!$AF$65/'MMA Rev-Exp Region 11'!$AF$9, 0)","v":{"v":0,"d":"$0.00"}},{"$f":"IFERROR('MMA Rev-Exp Region 11'!$AG$65/'MMA Rev-Exp Region 11'!$AG$9, 0)","v":{"v":0,"d":"$0.00"}},{"$f":"IFERROR('MMA Rev-Exp Region 11'!$AH$65/'MMA Rev-Exp Region 11'!$AH$9, 0)","v":{"v":0,"d":"$0.00"}},{"$f":"IFERROR('MMA Rev-Exp Region 11'!$AI$65/'MMA Rev-Exp Region 11'!$AI$9, 0)","v":{"v":0,"d":"$0.00"}},{"$f":"IFERROR('MMA Rev-Exp Region 11'!$AJ$65/'MMA Rev-Exp Region 11'!$AJ$9, 0)","v":{"v":0,"d":"$0.00"}}]
["MMA",null,null,2016,"2016-12-31","Q3","2017-09-30","Region 11","Operating Expense","Medical Benefits Expense","Other MMA Services","9.3","DME FFS",{"$f":"IFERROR('MMA Rev-Exp Region 11'!$Z$66/'MMA Rev-Exp Region 11'!$Z$9, 0)","v":{"v":0,"d":"$0.00"}},{"$f":"IFERROR('MMA Rev-Exp Region 11'!$AA$66/'MMA Rev-Exp Region 11'!$AA$9, 0)","v":{"v":0,"d":"$0.00"}},{"$f":"IFERROR('MMA Rev-Exp Region 11'!$AB$66/'MMA Rev-Exp Region 11'!$AB$9, 0)","v":{"v":0,"d":"$0.00"}},{"$f":"IFERROR('MMA Rev-Exp Region 11'!$AC$66/'MMA Rev-Exp Region 11'!$AC$9, 0)","v":{"v":0,"d":"$0.00"}},{"$f":"IFERROR('MMA Rev-Exp Region 11'!$AD$66/'MMA Rev-Exp Region 11'!$AD$9, 0)","v":{"v":0,"d":"$0.00"}},{"$f":"IFERROR('MMA Rev-Exp Region 11'!$AE$66/'MMA Rev-Exp Region 11'!$AE$9, 0)","v":{"v":0,"d":"$0.00"}},{"$f":"IFERROR('MMA Rev-Exp Region 11'!$AF$66/'MMA Rev-Exp Region 11'!$AF$9, 0)","v":{"v":0,"d":"$0.00"}},{"$f":"IFERROR('MMA Rev-Exp Region 11'!$AG$66/'MMA Rev-Exp Region 11'!$AG$9, 0)","v":{"v":0,"d":"$0.00"}},{"$f":"IFERROR('MMA Rev-Exp Region 11'!$AH$66/'MMA Rev-Exp Region 11'!$AH$9, 0)","v":{"v":0,"d":"$0.00"}},{"$f":"IFERROR('MMA Rev-Exp Region 11'!$AI$66/'MMA Rev-Exp Region 11'!$AI$9, 0)","v":{"v":0,"d":"$0.00"}},{"$f":"IFERROR('MMA Rev-Exp Region 11'!$AJ$66/'MMA Rev-Exp Region 11'!$AJ$9, 0)","v":{"v":0,"d":"$0.00"}}]
["MMA",null,null,2016,"2016-12-31","Q3","2017-09-30","Region 11","Operating Expense","Medical Benefits Expense","Other MMA Services","9.4","Other State Plan Services FFS",{"$f":"IFERROR('MMA Rev-Exp Region 11'!$Z$67/'MMA Rev-Exp Region 11'!$Z$9, 0)","v":{"v":0,"d":"$0.00"}},{"$f":"IFERROR('MMA Rev-Exp Region 11'!$AA$67/'MMA Rev-Exp Region 11'!$AA$9, 0)","v":{"v":0,"d":"$0.00"}},{"$f":"IFERROR('MMA Rev-Exp Region 11'!$AB$67/'MMA Rev-Exp Region 11'!$AB$9, 0)","v":{"v":0,"d":"$0.00"}},{"$f":"IFERROR('MMA Rev-Exp Region 11'!$AC$67/'MMA Rev-Exp Region 11'!$AC$9, 0)","v":{"v":0,"d":"$0.00"}},{"$f":"IFERROR('MMA Rev-Exp Region 11'!$AD$67/'MMA Rev-Exp Region 11'!$AD$9, 0)","v":{"v":0,"d":"$0.00"}},{"$f":"IFERROR('MMA Rev-Exp Region 11'!$AE$67/'MMA Rev-Exp Region 11'!$AE$9, 0)","v":{"v":0,"d":"$0.00"}},{"$f":"IFERROR('MMA Rev-Exp Region 11'!$AF$67/'MMA Rev-Exp Region 11'!$AF$9, 0)","v":{"v":0,"d":"$0.00"}},{"$f":"IFERROR('MMA Rev-Exp Region 11'!$AG$67/'MMA Rev-Exp Region 11'!$AG$9, 0)","v":{"v":0,"d":"$0.00"}},{"$f":"IFERROR('MMA Rev-Exp Region 11'!$AH$67/'MMA Rev-Exp Region 11'!$AH$9, 0)","v":{"v":0,"d":"$0.00"}},{"$f":"IFERROR('MMA Rev-Exp Region 11'!$AI$67/'MMA Rev-Exp Region 11'!$AI$9, 0)","v":{"v":0,"d":"$0.00"}},{"$f":"IFERROR('MMA Rev-Exp Region 11'!$AJ$67/'MMA Rev-Exp Region 11'!$AJ$9, 0)","v":{"v":0,"d":"$0.00"}}]
["MMA",null,null,2016,"2016-12-31","Q3","2017-09-30","Region 11","Operating Expense","Medical Benefits Expense","Other MMA Services","9.5","Other Services Subcapitation",{"$f":"IFERROR('MMA Rev-Exp Region 11'!$Z$68/'MMA Rev-Exp Region 11'!$Z$9, 0)","v":{"v":0,"d":"$0.00"}},{"$f":"IFERROR('MMA Rev-Exp Region 11'!$AA$68/'MMA Rev-Exp Region 11'!$AA$9, 0)","v":{"v":0,"d":"$0.00"}},{"$f":"IFERROR('MMA Rev-Exp Region 11'!$AB$68/'MMA Rev-Exp Region 11'!$AB$9, 0)","v":{"v":0,"d":"$0.00"}},{"$f":"IFERROR('MMA Rev-Exp Region 11'!$AC$68/'MMA Rev-Exp Region 11'!$AC$9, 0)","v":{"v":0,"d":"$0.00"}},{"$f":"IFERROR('MMA Rev-Exp Region 11'!$AD$68/'MMA Rev-Exp Region 11'!$AD$9, 0)","v":{"v":0,"d":"$0.00"}},{"$f":"IFERROR('MMA Rev-Exp Region 11'!$AE$68/'MMA Rev-Exp Region 11'!$AE$9, 0)","v":{"v":0,"d":"$0.00"}},{"$f":"IFERROR('MMA Rev-Exp Region 11'!$AF$68/'MMA Rev-Exp Region 11'!$AF$9, 0)","v":{"v":0,"d":"$0.00"}},{"$f":"IFERROR('MMA Rev-Exp Region 11'!$AG$68/'MMA Rev-Exp Region 11'!$AG$9, 0)","v":{"v":0,"d":"$0.00"}},{"$f":"IFERROR('MMA Rev-Exp Region 11'!$AH$68/'MMA Rev-Exp Region 11'!$AH$9, 0)","v":{"v":0,"d":"$0.00"}},{"$f":"IFERROR('MMA Rev-Exp Region 11'!$AI$68/'MMA Rev-Exp Region 11'!$AI$9, 0)","v":{"v":0,"d":"$0.00"}},{"$f":"IFERROR('MMA Rev-Exp Region 11'!$AJ$68/'MMA Rev-Exp Region 11'!$AJ$9, 0)","v":{"v":0,"d":"$0.00"}}]
["MMA",null,null,2016,"2016-12-31","Q3","2017-09-30","Region 11","Operating Expense","Medical Benefits Expense","Other MMA Services","9.6","Ending IBNP for Other Services",{"$f":"IFERROR('MMA Rev-Exp Region 11'!$Z$69/'MMA Rev-Exp Region 11'!$Z$9, 0)","v":{"v":0,"d":"$0.00"}},{"$f":"IFERROR('MMA Rev-Exp Region 11'!$AA$69/'MMA Rev-Exp Region 11'!$AA$9, 0)","v":{"v":0,"d":"$0.00"}},{"$f":"IFERROR('MMA Rev-Exp Region 11'!$AB$69/'MMA Rev-Exp Region 11'!$AB$9, 0)","v":{"v":0,"d":"$0.00"}},{"$f":"IFERROR('MMA Rev-Exp Region 11'!$AC$69/'MMA Rev-Exp Region 11'!$AC$9, 0)","v":{"v":0,"d":"$0.00"}},{"$f":"IFERROR('MMA Rev-Exp Region 11'!$AD$69/'MMA Rev-Exp Region 11'!$AD$9, 0)","v":{"v":0,"d":"$0.00"}},{"$f":"IFERROR('MMA Rev-Exp Region 11'!$AE$69/'MMA Rev-Exp Region 11'!$AE$9, 0)","v":{"v":0,"d":"$0.00"}},{"$f":"IFERROR('MMA Rev-Exp Region 11'!$AF$69/'MMA Rev-Exp Region 11'!$AF$9, 0)","v":{"v":0,"d":"$0.00"}},{"$f":"IFERROR('MMA Rev-Exp Region 11'!$AG$69/'MMA Rev-Exp Region 11'!$AG$9, 0)","v":{"v":0,"d":"$0.00"}},{"$f":"IFERROR('MMA Rev-Exp Region 11'!$AH$69/'MMA Rev-Exp Region 11'!$AH$9, 0)","v":{"v":0,"d":"$0.00"}},{"$f":"IFERROR('MMA Rev-Exp Region 11'!$AI$69/'MMA Rev-Exp Region 11'!$AI$9, 0)","v":{"v":0,"d":"$0.00"}},{"$f":"IFERROR('MMA Rev-Exp Region 11'!$AJ$69/'MMA Rev-Exp Region 11'!$AJ$9, 0)","v":{"v":0,"d":"$0.00"}}]
["MMA",null,null,2016,"2016-12-31","Q3","2017-09-30","Region 11","Operating Expense","Medical Benefits Expense","Other MMA Services","9.7","Other Services Settlements",{"$f":"IFERROR('MMA Rev-Exp Region 11'!$Z$70/'MMA Rev-Exp Region 11'!$Z$9, 0)","v":{"v":0,"d":"$0.00"}},{"$f":"IFERROR('MMA Rev-Exp Region 11'!$AA$70/'MMA Rev-Exp Region 11'!$AA$9, 0)","v":{"v":0,"d":"$0.00"}},{"$f":"IFERROR('MMA Rev-Exp Region 11'!$AB$70/'MMA Rev-Exp Region 11'!$AB$9, 0)","v":{"v":0,"d":"$0.00"}},{"$f":"IFERROR('MMA Rev-Exp Region 11'!$AC$70/'MMA Rev-Exp Region 11'!$AC$9, 0)","v":{"v":0,"d":"$0.00"}},{"$f":"IFERROR('MMA Rev-Exp Region 11'!$AD$70/'MMA Rev-Exp Region 11'!$AD$9, 0)","v":{"v":0,"d":"$0.00"}},{"$f":"IFERROR('MMA Rev-Exp Region 11'!$AE$70/'MMA Rev-Exp Region 11'!$AE$9, 0)","v":{"v":0,"d":"$0.00"}},{"$f":"IFERROR('MMA Rev-Exp Region 11'!$AF$70/'MMA Rev-Exp Region 11'!$AF$9, 0)","v":{"v":0,"d":"$0.00"}},{"$f":"IFERROR('MMA Rev-Exp Region 11'!$AG$70/'MMA Rev-Exp Region 11'!$AG$9, 0)","v":{"v":0,"d":"$0.00"}},{"$f":"IFERROR('MMA Rev-Exp Region 11'!$AH$70/'MMA Rev-Exp Region 11'!$AH$9, 0)","v":{"v":0,"d":"$0.00"}},{"$f":"IFERROR('MMA Rev-Exp Region 11'!$AI$70/'MMA Rev-Exp Region 11'!$AI$9, 0)","v":{"v":0,"d":"$0.00"}},{"$f":"IFERROR('MMA Rev-Exp Region 11'!$AJ$70/'MMA Rev-Exp Region 11'!$AJ$9, 0)","v":{"v":0,"d":"$0.00"}}]
["MMA",null,null,2016,"2016-12-31","Q3","2017-09-30","Region 11","Operating Expense","Medical Benefits Expense","Expanded Benefits","10.1","Expanded Benefits FFS",{"$f":"IFERROR('MMA Rev-Exp Region 11'!$Z$72/'MMA Rev-Exp Region 11'!$Z$9, 0)","v":{"v":0,"d":"$0.00"}},{"$f":"IFERROR('MMA Rev-Exp Region 11'!$AA$72/'MMA Rev-Exp Region 11'!$AA$9, 0)","v":{"v":0,"d":"$0.00"}},{"$f":"IFERROR('MMA Rev-Exp Region 11'!$AB$72/'MMA Rev-Exp Region 11'!$AB$9, 0)","v":{"v":0,"d":"$0.00"}},{"$f":"IFERROR('MMA Rev-Exp Region 11'!$AC$72/'MMA Rev-Exp Region 11'!$AC$9, 0)","v":{"v":0,"d":"$0.00"}},{"$f":"IFERROR('MMA Rev-Exp Region 11'!$AD$72/'MMA Rev-Exp Region 11'!$AD$9, 0)","v":{"v":0,"d":"$0.00"}},{"$f":"IFERROR('MMA Rev-Exp Region 11'!$AE$72/'MMA Rev-Exp Region 11'!$AE$9, 0)","v":{"v":0,"d":"$0.00"}},{"$f":"IFERROR('MMA Rev-Exp Region 11'!$AF$72/'MMA Rev-Exp Region 11'!$AF$9, 0)","v":{"v":0,"d":"$0.00"}},{"$f":"IFERROR('MMA Rev-Exp Region 11'!$AG$72/'MMA Rev-Exp Region 11'!$AG$9, 0)","v":{"v":0,"d":"$0.00"}},{"$f":"IFERROR('MMA Rev-Exp Region 11'!$AH$72/'MMA Rev-Exp Region 11'!$AH$9, 0)","v":{"v":0,"d":"$0.00"}},{"$f":"IFERROR('MMA Rev-Exp Region 11'!$AI$72/'MMA Rev-Exp Region 11'!$AI$9, 0)","v":{"v":0,"d":"$0.00"}},{"$f":"IFERROR('MMA Rev-Exp Region 11'!$AJ$72/'MMA Rev-Exp Region 11'!$AJ$9, 0)","v":{"v":0,"d":"$0.00"}}]
["MMA",null,null,2016,"2016-12-31","Q3","2017-09-30","Region 11","Operating Expense","Medical Benefits Expense","Expanded Benefits","10.2","Expanded benefits Subcapitation",{"$f":"IFERROR('MMA Rev-Exp Region 11'!$Z$73/'MMA Rev-Exp Region 11'!$Z$9, 0)","v":{"v":0,"d":"$0.00"}},{"$f":"IFERROR('MMA Rev-Exp Region 11'!$AA$73/'MMA Rev-Exp Region 11'!$AA$9, 0)","v":{"v":0,"d":"$0.00"}},{"$f":"IFERROR('MMA Rev-Exp Region 11'!$AB$73/'MMA Rev-Exp Region 11'!$AB$9, 0)","v":{"v":0,"d":"$0.00"}},{"$f":"IFERROR('MMA Rev-Exp Region 11'!$AC$73/'MMA Rev-Exp Region 11'!$AC$9, 0)","v":{"v":0,"d":"$0.00"}},{"$f":"IFERROR('MMA Rev-Exp Region 11'!$AD$73/'MMA Rev-Exp Region 11'!$AD$9, 0)","v":{"v":0,"d":"$0.00"}},{"$f":"IFERROR('MMA Rev-Exp Region 11'!$AE$73/'MMA Rev-Exp Region 11'!$AE$9, 0)","v":{"v":0,"d":"$0.00"}},{"$f":"IFERROR('MMA Rev-Exp Region 11'!$AF$73/'MMA Rev-Exp Region 11'!$AF$9, 0)","v":{"v":0,"d":"$0.00"}},{"$f":"IFERROR('MMA Rev-Exp Region 11'!$AG$73/'MMA Rev-Exp Region 11'!$AG$9, 0)","v":{"v":0,"d":"$0.00"}},{"$f":"IFERROR('MMA Rev-Exp Region 11'!$AH$73/'MMA Rev-Exp Region 11'!$AH$9, 0)","v":{"v":0,"d":"$0.00"}},{"$f":"IFERROR('MMA Rev-Exp Region 11'!$AI$73/'MMA Rev-Exp Region 11'!$AI$9, 0)","v":{"v":0,"d":"$0.00"}},{"$f":"IFERROR('MMA Rev-Exp Region 11'!$AJ$73/'MMA Rev-Exp Region 11'!$AJ$9, 0)","v":{"v":0,"d":"$0.00"}}]
["MMA",null,null,2016,"2016-12-31","Q3","2017-09-30","Region 11","Operating Expense","Medical Benefits Expense","Expanded Benefits","10.3","Ending IBNP for Expanded Benefits",{"$f":"IFERROR('MMA Rev-Exp Region 11'!$Z$74/'MMA Rev-Exp Region 11'!$Z$9, 0)","v":{"v":0,"d":"$0.00"}},{"$f":"IFERROR('MMA Rev-Exp Region 11'!$AA$74/'MMA Rev-Exp Region 11'!$AA$9, 0)","v":{"v":0,"d":"$0.00"}},{"$f":"IFERROR('MMA Rev-Exp Region 11'!$AB$74/'MMA Rev-Exp Region 11'!$AB$9, 0)","v":{"v":0,"d":"$0.00"}},{"$f":"IFERROR('MMA Rev-Exp Region 11'!$AC$74/'MMA Rev-Exp Region 11'!$AC$9, 0)","v":{"v":0,"d":"$0.00"}},{"$f":"IFERROR('MMA Rev-Exp Region 11'!$AD$74/'MMA Rev-Exp Region 11'!$AD$9, 0)","v":{"v":0,"d":"$0.00"}},{"$f":"IFERROR('MMA Rev-Exp Region 11'!$AE$74/'MMA Rev-Exp Region 11'!$AE$9, 0)","v":{"v":0,"d":"$0.00"}},{"$f":"IFERROR('MMA Rev-Exp Region 11'!$AF$74/'MMA Rev-Exp Region 11'!$AF$9, 0)","v":{"v":0,"d":"$0.00"}},{"$f":"IFERROR('MMA Rev-Exp Region 11'!$AG$74/'MMA Rev-Exp Region 11'!$AG$9, 0)","v":{"v":0,"d":"$0.00"}},{"$f":"IFERROR('MMA Rev-Exp Region 11'!$AH$74/'MMA Rev-Exp Region 11'!$AH$9, 0)","v":{"v":0,"d":"$0.00"}},{"$f":"IFERROR('MMA Rev-Exp Region 11'!$AI$74/'MMA Rev-Exp Region 11'!$AI$9, 0)","v":{"v":0,"d":"$0.00"}},{"$f":"IFERROR('MMA Rev-Exp Region 11'!$AJ$74/'MMA Rev-Exp Region 11'!$AJ$9, 0)","v":{"v":0,"d":"$0.00"}}]
["MMA",null,null,2016,"2016-12-31","Q3","2017-09-30","Region 11","Operating Expense","Medical Benefits Expense","Expanded Benefits","10.4","Expanded Benefits Settlements",{"$f":"IFERROR('MMA Rev-Exp Region 11'!$Z$75/'MMA Rev-Exp Region 11'!$Z$9, 0)","v":{"v":0,"d":"$0.00"}},{"$f":"IFERROR('MMA Rev-Exp Region 11'!$AA$75/'MMA Rev-Exp Region 11'!$AA$9, 0)","v":{"v":0,"d":"$0.00"}},{"$f":"IFERROR('MMA Rev-Exp Region 11'!$AB$75/'MMA Rev-Exp Region 11'!$AB$9, 0)","v":{"v":0,"d":"$0.00"}},{"$f":"IFERROR('MMA Rev-Exp Region 11'!$AC$75/'MMA Rev-Exp Region 11'!$AC$9, 0)","v":{"v":0,"d":"$0.00"}},{"$f":"IFERROR('MMA Rev-Exp Region 11'!$AD$75/'MMA Rev-Exp Region 11'!$AD$9, 0)","v":{"v":0,"d":"$0.00"}},{"$f":"IFERROR('MMA Rev-Exp Region 11'!$AE$75/'MMA Rev-Exp Region 11'!$AE$9, 0)","v":{"v":0,"d":"$0.00"}},{"$f":"IFERROR('MMA Rev-Exp Region 11'!$AF$75/'MMA Rev-Exp Region 11'!$AF$9, 0)","v":{"v":0,"d":"$0.00"}},{"$f":"IFERROR('MMA Rev-Exp Region 11'!$AG$75/'MMA Rev-Exp Region 11'!$AG$9, 0)","v":{"v":0,"d":"$0.00"}},{"$f":"IFERROR('MMA Rev-Exp Region 11'!$AH$75/'MMA Rev-Exp Region 11'!$AH$9, 0)","v":{"v":0,"d":"$0.00"}},{"$f":"IFERROR('MMA Rev-Exp Region 11'!$AI$75/'MMA Rev-Exp Region 11'!$AI$9, 0)","v":{"v":0,"d":"$0.00"}},{"$f":"IFERROR('MMA Rev-Exp Region 11'!$AJ$75/'MMA Rev-Exp Region 11'!$AJ$9, 0)","v":{"v":0,"d":"$0.00"}}]
["MMA",null,null,2016,"2016-12-31","Q3","2017-09-30","Region 11","Operating Expense","Medical Benefits Expense","Other Medical","11.5","TPL & Fraud/Abuse Recoveries",{"$f":"IFERROR('MMA Rev-Exp Region 11'!$Z$81/'MMA Rev-Exp Region 11'!$Z$9, 0)","v":{"v":0,"d":"$0.00"}},{"$f":"IFERROR('MMA Rev-Exp Region 11'!$AA$81/'MMA Rev-Exp Region 11'!$AA$9, 0)","v":{"v":0,"d":"$0.00"}},{"$f":"IFERROR('MMA Rev-Exp Region 11'!$AB$81/'MMA Rev-Exp Region 11'!$AB$9, 0)","v":{"v":0,"d":"$0.00"}},{"$f":"IFERROR('MMA Rev-Exp Region 11'!$AC$81/'MMA Rev-Exp Region 11'!$AC$9, 0)","v":{"v":0,"d":"$0.00"}},{"$f":"IFERROR('MMA Rev-Exp Region 11'!$AD$81/'MMA Rev-Exp Region 11'!$AD$9, 0)","v":{"v":0,"d":"$0.00"}},{"$f":"IFERROR('MMA Rev-Exp Region 11'!$AE$81/'MMA Rev-Exp Region 11'!$AE$9, 0)","v":{"v":0,"d":"$0.00"}},{"$f":"IFERROR('MMA Rev-Exp Region 11'!$AF$81/'MMA Rev-Exp Region 11'!$AF$9, 0)","v":{"v":0,"d":"$0.00"}},{"$f":"IFERROR('MMA Rev-Exp Region 11'!$AG$81/'MMA Rev-Exp Region 11'!$AG$9, 0)","v":{"v":0,"d":"$0.00"}},{"$f":"IFERROR('MMA Rev-Exp Region 11'!$AH$81/'MMA Rev-Exp Region 11'!$AH$9, 0)","v":{"v":0,"d":"$0.00"}},{"$f":"IFERROR('MMA Rev-Exp Region 11'!$AI$81/'MMA Rev-Exp Region 11'!$AI$9, 0)","v":{"v":0,"d":"$0.00"}},{"$f":"IFERROR('MMA Rev-Exp Region 11'!$AJ$81/'MMA Rev-Exp Region 11'!$AJ$9, 0)","v":{"v":0,"d":"$0.00"}}]
["MMA",null,null,2016,"2016-12-31","Q3","2017-09-30","Region 11","Operating Expense","Medical Benefits Expense","Other Medical","11.6.1","Premium Deficiency Reserve",{"$f":"IFERROR('MMA Rev-Exp Region 11'!$Z$82/'MMA Rev-Exp Region 11'!$Z$9, 0)","v":{"v":0,"d":"$0.00"}},{"$f":"IFERROR('MMA Rev-Exp Region 11'!$AA$82/'MMA Rev-Exp Region 11'!$AA$9, 0)","v":{"v":0,"d":"$0.00"}},{"$f":"IFERROR('MMA Rev-Exp Region 11'!$AB$82/'MMA Rev-Exp Region 11'!$AB$9, 0)","v":{"v":0,"d":"$0.00"}},{"$f":"IFERROR('MMA Rev-Exp Region 11'!$AC$82/'MMA Rev-Exp Region 11'!$AC$9, 0)","v":{"v":0,"d":"$0.00"}},{"$f":"IFERROR('MMA Rev-Exp Region 11'!$AD$82/'MMA Rev-Exp Region 11'!$AD$9, 0)","v":{"v":0,"d":"$0.00"}},{"$f":"IFERROR('MMA Rev-Exp Region 11'!$AE$82/'MMA Rev-Exp Region 11'!$AE$9, 0)","v":{"v":0,"d":"$0.00"}},{"$f":"IFERROR('MMA Rev-Exp Region 11'!$AF$82/'MMA Rev-Exp Region 11'!$AF$9, 0)","v":{"v":0,"d":"$0.00"}},{"$f":"IFERROR('MMA Rev-Exp Region 11'!$AG$82/'MMA Rev-Exp Region 11'!$AG$9, 0)","v":{"v":0,"d":"$0.00"}},{"$f":"IFERROR('MMA Rev-Exp Region 11'!$AH$82/'MMA Rev-Exp Region 11'!$AH$9, 0)","v":{"v":0,"d":"$0.00"}},{"$f":"IFERROR('MMA Rev-Exp Region 11'!$AI$82/'MMA Rev-Exp Region 11'!$AI$9, 0)","v":{"v":0,"d":"$0.00"}},{"$f":"IFERROR('MMA Rev-Exp Region 11'!$AJ$82/'MMA Rev-Exp Region 11'!$AJ$9, 0)","v":{"v":0,"d":"$0.00"}}]
["MMA",null,null,2016,"2016-12-31","Q3","2017-09-30","Region 11","Operating Expense","Medical Benefits Expense","Other Medical","11.8","Reinsurance Premiums",{"$f":"IFERROR('MMA Rev-Exp Region 11'!$Z$84/'MMA Rev-Exp Region 11'!$Z$9, 0)","v":{"v":0,"d":"$0.00"}},{"$f":"IFERROR('MMA Rev-Exp Region 11'!$AA$84/'MMA Rev-Exp Region 11'!$AA$9, 0)","v":{"v":0,"d":"$0.00"}},{"$f":"IFERROR('MMA Rev-Exp Region 11'!$AB$84/'MMA Rev-Exp Region 11'!$AB$9, 0)","v":{"v":0,"d":"$0.00"}},{"$f":"IFERROR('MMA Rev-Exp Region 11'!$AC$84/'MMA Rev-Exp Region 11'!$AC$9, 0)","v":{"v":0,"d":"$0.00"}},{"$f":"IFERROR('MMA Rev-Exp Region 11'!$AD$84/'MMA Rev-Exp Region 11'!$AD$9, 0)","v":{"v":0,"d":"$0.00"}},{"$f":"IFERROR('MMA Rev-Exp Region 11'!$AE$84/'MMA Rev-Exp Region 11'!$AE$9, 0)","v":{"v":0,"d":"$0.00"}},{"$f":"IFERROR('MMA Rev-Exp Region 11'!$AF$84/'MMA Rev-Exp Region 11'!$AF$9, 0)","v":{"v":0,"d":"$0.00"}},{"$f":"IFERROR('MMA Rev-Exp Region 11'!$AG$84/'MMA Rev-Exp Region 11'!$AG$9, 0)","v":{"v":0,"d":"$0.00"}},{"$f":"IFERROR('MMA Rev-Exp Region 11'!$AH$84/'MMA Rev-Exp Region 11'!$AH$9, 0)","v":{"v":0,"d":"$0.00"}},{"$f":"IFERROR('MMA Rev-Exp Region 11'!$AI$84/'MMA Rev-Exp Region 11'!$AI$9, 0)","v":{"v":0,"d":"$0.00"}},{"$f":"IFERROR('MMA Rev-Exp Region 11'!$AJ$84/'MMA Rev-Exp Region 11'!$AJ$9, 0)","v":{"v":0,"d":"$0.00"}}]
["MMA",null,null,2016,"2016-12-31","Q3","2017-09-30","Region 11","Operating Expense","Medical Benefits Expense","Other Medical","11.9","Reinsurance Recoveries",{"$f":"IFERROR('MMA Rev-Exp Region 11'!$Z$85/'MMA Rev-Exp Region 11'!$Z$9, 0)","v":{"v":0,"d":"$0.00"}},{"$f":"IFERROR('MMA Rev-Exp Region 11'!$AA$85/'MMA Rev-Exp Region 11'!$AA$9, 0)","v":{"v":0,"d":"$0.00"}},{"$f":"IFERROR('MMA Rev-Exp Region 11'!$AB$85/'MMA Rev-Exp Region 11'!$AB$9, 0)","v":{"v":0,"d":"$0.00"}},{"$f":"IFERROR('MMA Rev-Exp Region 11'!$AC$85/'MMA Rev-Exp Region 11'!$AC$9, 0)","v":{"v":0,"d":"$0.00"}},{"$f":"IFERROR('MMA Rev-Exp Region 11'!$AD$85/'MMA Rev-Exp Region 11'!$AD$9, 0)","v":{"v":0,"d":"$0.00"}},{"$f":"IFERROR('MMA Rev-Exp Region 11'!$AE$85/'MMA Rev-Exp Region 11'!$AE$9, 0)","v":{"v":0,"d":"$0.00"}},{"$f":"IFERROR('MMA Rev-Exp Region 11'!$AF$85/'MMA Rev-Exp Region 11'!$AF$9, 0)","v":{"v":0,"d":"$0.00"}},{"$f":"IFERROR('MMA Rev-Exp Region 11'!$AG$85/'MMA Rev-Exp Region 11'!$AG$9, 0)","v":{"v":0,"d":"$0.00"}},{"$f":"IFERROR('MMA Rev-Exp Region 11'!$AH$85/'MMA Rev-Exp Region 11'!$AH$9, 0)","v":{"v":0,"d":"$0.00"}},{"$f":"IFERROR('MMA Rev-Exp Region 11'!$AI$85/'MMA Rev-Exp Region 11'!$AI$9, 0)","v":{"v":0,"d":"$0.00"}},{"$f":"IFERROR('MMA Rev-Exp Region 11'!$AJ$85/'MMA Rev-Exp Region 11'!$AJ$9, 0)","v":{"v":0,"d":"$0.00"}}]
["MMA",null,null,2016,"2016-12-31","Q3","2017-09-30","Region 11","Operating Expense","Administrative Expense","Administrative","12.1","Salaries & Benefits",{"$f":"IFERROR('MMA Rev-Exp Region 11'!$Z$90/'MMA Rev-Exp Region 11'!$Z$9, 0)","v":{"v":0,"d":"$0.00"}},{"$f":"IFERROR('MMA Rev-Exp Region 11'!$AA$90/'MMA Rev-Exp Region 11'!$Z$9, 0)","v":{"v":0,"d":"$0.00"}},{"$f":"IFERROR('MMA Rev-Exp Region 11'!$AB$90/'MMA Rev-Exp Region 11'!$Z$9, 0)","v":{"v":0,"d":"$0.00"}}]
["MMA",null,null,2016,"2016-12-31","Q3","2017-09-30","Region 11","Operating Expense","Administrative Expense","Administrative","12.2","Administrative Services",{"$f":"IFERROR('MMA Rev-Exp Region 11'!$Z$91/'MMA Rev-Exp Region 11'!$Z$9, 0)","v":{"v":0,"d":"$0.00"}},{"$f":"IFERROR('MMA Rev-Exp Region 11'!$AA$91/'MMA Rev-Exp Region 11'!$Z$9, 0)","v":{"v":0,"d":"$0.00"}},{"$f":"IFERROR('MMA Rev-Exp Region 11'!$AB$91/'MMA Rev-Exp Region 11'!$Z$9, 0)","v":{"v":0,"d":"$0.00"}}]
["MMA",null,null,2016,"2016-12-31","Q3","2017-09-30","Region 11","Operating Expense","Administrative Expense","Administrative","12.3","Information Systems",{"$f":"IFERROR('MMA Rev-Exp Region 11'!$Z$92/'MMA Rev-Exp Region 11'!$Z$9, 0)","v":{"v":0,"d":"$0.00"}},{"$f":"IFERROR('MMA Rev-Exp Region 11'!$AA$92/'MMA Rev-Exp Region 11'!$Z$9, 0)","v":{"v":0,"d":"$0.00"}},{"$f":"IFERROR('MMA Rev-Exp Region 11'!$AB$92/'MMA Rev-Exp Region 11'!$Z$9, 0)","v":{"v":0,"d":"$0.00"}}]
["MMA",null,null,2016,"2016-12-31","Q3","2017-09-30","Region 11","Operating Expense","Administrative Expense","Administrative","12.4","Marketing Expenses",{"$f":"IFERROR('MMA Rev-Exp Region 11'!$Z$93/'MMA Rev-Exp Region 11'!$Z$9, 0)","v":{"v":0,"d":"$0.00"}},{"$f":"IFERROR('MMA Rev-Exp Region 11'!$AA$93/'MMA Rev-Exp Region 11'!$Z$9, 0)","v":{"v":0,"d":"$0.00"}},{"$f":"IFERROR('MMA Rev-Exp Region 11'!$AB$93/'MMA Rev-Exp Region 11'!$Z$9, 0)","v":{"v":0,"d":"$0.00"}}]
["MMA",null,null,2016,"2016-12-31","Q3","2017-09-30","Region 11","Operating Expense","Administrative Expense","Administrative","12.5","General  Administration",{"$f":"IFERROR('MMA Rev-Exp Region 11'!$Z$94/'MMA Rev-Exp Region 11'!$Z$9, 0)","v":{"v":0,"d":"$0.00"}},{"$f":"IFERROR('MMA Rev-Exp Region 11'!$AA$94/'MMA Rev-Exp Region 11'!$Z$9, 0)","v":{"v":0,"d":"$0.00"}},{"$f":"IFERROR('MMA Rev-Exp Region 11'!$AB$94/'MMA Rev-Exp Region 11'!$Z$9, 0)","v":{"v":0,"d":"$0.00"}}]
["MMA",null,null,2016,"2016-12-31","Q3","2017-09-30","Region 11","Operating Expense","Administrative Expense","Administrative","12.6","Compliance/Regulatory",{"$f":"IFERROR('MMA Rev-Exp Region 11'!$Z$95/'MMA Rev-Exp Region 11'!$Z$9, 0)","v":{"v":0,"d":"$0.00"}},{"$f":"IFERROR('MMA Rev-Exp Region 11'!$AA$95/'MMA Rev-Exp Region 11'!$Z$9, 0)","v":{"v":0,"d":"$0.00"}},{"$f":"IFERROR('MMA Rev-Exp Region 11'!$AB$95/'MMA Rev-Exp Region 11'!$Z$9, 0)","v":{"v":0,"d":"$0.00"}}]
["MMA",null,null,2016,"2016-12-31","Q3","2017-09-30","Region 11","Operating Expense","Taxes & Fees","Taxes & Fees","13.1","State Premium tax",{"$f":"IFERROR('MMA Rev-Exp Region 11'!$Z$97/'MMA Rev-Exp Region 11'!$Z$9, 0)","v":{"v":0,"d":"$0.00"}}]
["MMA",null,null,2016,"2016-12-31","Q3","2017-09-30","Region 11","Operating Expense","Taxes & Fees","Taxes & Fees","13.2","Department of Insurance Assessments",{"$f":"IFERROR('MMA Rev-Exp Region 11'!$Z$98/'MMA Rev-Exp Region 11'!$Z$9, 0)","v":{"v":0,"d":"$0.00"}}]
["MMA",null,null,2016,"2016-12-31","Q3","2017-09-30","Region 11","Operating Expense","Taxes & Fees","Taxes & Fees","13.3","Section 9010 Health Insurance Providers Fee",{"$f":"IFERROR('MMA Rev-Exp Region 11'!$Z$99/'MMA Rev-Exp Region 11'!$Z$9, 0)","v":{"v":0,"d":"$0.00"}}]
["MMA",null,null,2016,"2016-12-31","Q3","2017-09-30","Region 11","Non-Operating Expense","Income Tax Expense","Income Tax Expense","16.0","Income Tax Expense",{"$f":"IFERROR('MMA Rev-Exp Region 11'!$Z$106/'MMA Rev-Exp Region 11'!$Z$9, 0)","v":{"v":0,"d":"$0.00"}}]
["MMA",null,null,2016,"2016-12-31","Q4","2017-12-31","Region 11","Operating Revenue","Capitation","Capitation",1.1,"Capitation",{"$f":"IFERROR('MMA Rev-Exp Region 11'!$AK$11/'MMA Rev-Exp Region 11'!$AK$9, 0)","v":{"v":0,"d":"$0.00"}},{"$f":"IFERROR('MMA Rev-Exp Region 11'!$AL$11/'MMA Rev-Exp Region 11'!$AL$9, 0)","v":{"v":0,"d":"$0.00"}},{"$f":"IFERROR('MMA Rev-Exp Region 11'!$AM$11/'MMA Rev-Exp Region 11'!$AM$9, 0)","v":{"v":0,"d":"$0.00"}},{"$f":"IFERROR('MMA Rev-Exp Region 11'!$AN$11/'MMA Rev-Exp Region 11'!$AN$9, 0)","v":{"v":0,"d":"$0.00"}},{"$f":"IFERROR('MMA Rev-Exp Region 11'!$AO$11/'MMA Rev-Exp Region 11'!$AO$9, 0)","v":{"v":0,"d":"$0.00"}},{"$f":"IFERROR('MMA Rev-Exp Region 11'!$AP$11/'MMA Rev-Exp Region 11'!$AP$9, 0)","v":{"v":0,"d":"$0.00"}},{"$f":"IFERROR('MMA Rev-Exp Region 11'!$AQ$11/'MMA Rev-Exp Region 11'!$AQ$9, 0)","v":{"v":0,"d":"$0.00"}},{"$f":"IFERROR('MMA Rev-Exp Region 11'!$AR$11/'MMA Rev-Exp Region 11'!$AR$9, 0)","v":{"v":0,"d":"$0.00"}},{"$f":"IFERROR('MMA Rev-Exp Region 11'!$AS$11/'MMA Rev-Exp Region 11'!$AS$9, 0)","v":{"v":0,"d":"$0.00"}},{"$f":"IFERROR('MMA Rev-Exp Region 11'!$AT$11/'MMA Rev-Exp Region 11'!$AT$9, 0)","v":{"v":0,"d":"$0.00"}},{"$f":"IFERROR('MMA Rev-Exp Region 11'!$AU$11/'MMA Rev-Exp Region 11'!$AU$9, 0)","v":{"v":0,"d":"$0.00"}}]
["MMA",null,null,2016,"2016-12-31","Q4","2017-12-31","Region 11","Operating Revenue","Kick Payments","Kick Payments - Transplant",1.2,"Transplant Kick Payments",{"$f":"IFERROR('MMA Rev-Exp Region 11'!$AK$12/'MMA Rev-Exp Region 11'!$AK$9, 0)","v":{"v":0,"d":"$0.00"}},{"$f":"IFERROR('MMA Rev-Exp Region 11'!$AL$12/'MMA Rev-Exp Region 11'!$AL$9, 0)","v":{"v":0,"d":"$0.00"}},{"$f":"IFERROR('MMA Rev-Exp Region 11'!$AM$12/'MMA Rev-Exp Region 11'!$AM$9, 0)","v":{"v":0,"d":"$0.00"}},{"$f":"IFERROR('MMA Rev-Exp Region 11'!$AN$12/'MMA Rev-Exp Region 11'!$AN$9, 0)","v":{"v":0,"d":"$0.00"}},{"$f":"IFERROR('MMA Rev-Exp Region 11'!$AO$12/'MMA Rev-Exp Region 11'!$AO$9, 0)","v":{"v":0,"d":"$0.00"}},{"$f":"IFERROR('MMA Rev-Exp Region 11'!$AP$12/'MMA Rev-Exp Region 11'!$AP$9, 0)","v":{"v":0,"d":"$0.00"}},{"$f":"IFERROR('MMA Rev-Exp Region 11'!$AQ$12/'MMA Rev-Exp Region 11'!$AQ$9, 0)","v":{"v":0,"d":"$0.00"}},{"$f":"IFERROR('MMA Rev-Exp Region 11'!$AR$12/'MMA Rev-Exp Region 11'!$AR$9, 0)","v":{"v":0,"d":"$0.00"}},{"$f":"IFERROR('MMA Rev-Exp Region 11'!$AS$12/'MMA Rev-Exp Region 11'!$AS$9, 0)","v":{"v":0,"d":"$0.00"}},{"$f":"IFERROR('MMA Rev-Exp Region 11'!$AT$12/'MMA Rev-Exp Region 11'!$AT$9, 0)","v":{"v":0,"d":"$0.00"}},{"$f":"IFERROR('MMA Rev-Exp Region 11'!$AU$12/'MMA Rev-Exp Region 11'!$AU$9, 0)","v":{"v":0,"d":"$0.00"}}]
["MMA",null,null,2016,"2016-12-31","Q4","2017-12-31","Region 11","Operating Revenue","Kick Payments","Kick Payments - Hep C","1.3","Hepatitis C Kick Payments",{"$f":"IFERROR('MMA Rev-Exp Region 11'!$AK$13/'MMA Rev-Exp Region 11'!$AK$9, 0)","v":{"v":0,"d":"$0.00"}},{"$f":"IFERROR('MMA Rev-Exp Region 11'!$AL$13/'MMA Rev-Exp Region 11'!$AL$9, 0)","v":{"v":0,"d":"$0.00"}},{"$f":"IFERROR('MMA Rev-Exp Region 11'!$AM$13/'MMA Rev-Exp Region 11'!$AM$9, 0)","v":{"v":0,"d":"$0.00"}},{"$f":"IFERROR('MMA Rev-Exp Region 11'!$AN$13/'MMA Rev-Exp Region 11'!$AN$9, 0)","v":{"v":0,"d":"$0.00"}},{"$f":"IFERROR('MMA Rev-Exp Region 11'!$AO$13/'MMA Rev-Exp Region 11'!$AO$9, 0)","v":{"v":0,"d":"$0.00"}},{"$f":"IFERROR('MMA Rev-Exp Region 11'!$AP$13/'MMA Rev-Exp Region 11'!$AP$9, 0)","v":{"v":0,"d":"$0.00"}},{"$f":"IFERROR('MMA Rev-Exp Region 11'!$AQ$13/'MMA Rev-Exp Region 11'!$AQ$9, 0)","v":{"v":0,"d":"$0.00"}},{"$f":"IFERROR('MMA Rev-Exp Region 11'!$AR$13/'MMA Rev-Exp Region 11'!$AR$9, 0)","v":{"v":0,"d":"$0.00"}},{"$f":"IFERROR('MMA Rev-Exp Region 11'!$AS$13/'MMA Rev-Exp Region 11'!$AS$9, 0)","v":{"v":0,"d":"$0.00"}},{"$f":"IFERROR('MMA Rev-Exp Region 11'!$AT$13/'MMA Rev-Exp Region 11'!$AT$9, 0)","v":{"v":0,"d":"$0.00"}},{"$f":"IFERROR('MMA Rev-Exp Region 11'!$AU$13/'MMA Rev-Exp Region 11'!$AU$9, 0)","v":{"v":0,"d":"$0.00"}}]
["MMA",null,null,2016,"2016-12-31","Q4","2017-12-31","Region 11","Operating Revenue","Kick Payments","Kick Payments - Maternity","1.4.1","Maternity Kick Payments",{"$f":"IFERROR('MMA Rev-Exp Region 11'!$AK$14/'MMA Rev-Exp Region 11'!$AK$9, 0)","v":{"v":0,"d":"$0.00"}},{"$f":"IFERROR('MMA Rev-Exp Region 11'!$AL$14/'MMA Rev-Exp Region 11'!$AL$9, 0)","v":{"v":0,"d":"$0.00"}},{"$f":"IFERROR('MMA Rev-Exp Region 11'!$AM$14/'MMA Rev-Exp Region 11'!$AM$9, 0)","v":{"v":0,"d":"$0.00"}},{"$f":"IFERROR('MMA Rev-Exp Region 11'!$AN$14/'MMA Rev-Exp Region 11'!$AN$9, 0)","v":{"v":0,"d":"$0.00"}},{"$f":"IFERROR('MMA Rev-Exp Region 11'!$AO$14/'MMA Rev-Exp Region 11'!$AO$9, 0)","v":{"v":0,"d":"$0.00"}},{"$f":"IFERROR('MMA Rev-Exp Region 11'!$AP$14/'MMA Rev-Exp Region 11'!$AP$9, 0)","v":{"v":0,"d":"$0.00"}},{"$f":"IFERROR('MMA Rev-Exp Region 11'!$AQ$14/'MMA Rev-Exp Region 11'!$AQ$9, 0)","v":{"v":0,"d":"$0.00"}},{"$f":"IFERROR('MMA Rev-Exp Region 11'!$AR$14/'MMA Rev-Exp Region 11'!$AR$9, 0)","v":{"v":0,"d":"$0.00"}},{"$f":"IFERROR('MMA Rev-Exp Region 11'!$AS$14/'MMA Rev-Exp Region 11'!$AS$9, 0)","v":{"v":0,"d":"$0.00"}},{"$f":"IFERROR('MMA Rev-Exp Region 11'!$AT$14/'MMA Rev-Exp Region 11'!$AT$9, 0)","v":{"v":0,"d":"$0.00"}},{"$f":"IFERROR('MMA Rev-Exp Region 11'!$AU$14/'MMA Rev-Exp Region 11'!$AU$9, 0)","v":{"v":0,"d":"$0.00"}}]
["MMA",null,null,2016,"2016-12-31","Q4","2017-12-31","Region 11","Operating Revenue","Other Revenue","Other Revenue - 9010","1.5","ACA § 9010 related payments",{"$f":"IFERROR('MMA Rev-Exp Region 11'!$AK$15/'MMA Rev-Exp Region 11'!$AK$9, 0)","v":{"v":0,"d":"$0.00"}},{"$f":"IFERROR('MMA Rev-Exp Region 11'!$AL$15/'MMA Rev-Exp Region 11'!$AL$9, 0)","v":{"v":0,"d":"$0.00"}},{"$f":"IFERROR('MMA Rev-Exp Region 11'!$AM$15/'MMA Rev-Exp Region 11'!$AM$9, 0)","v":{"v":0,"d":"$0.00"}},{"$f":"IFERROR('MMA Rev-Exp Region 11'!$AN$15/'MMA Rev-Exp Region 11'!$AN$9, 0)","v":{"v":0,"d":"$0.00"}},{"$f":"IFERROR('MMA Rev-Exp Region 11'!$AO$15/'MMA Rev-Exp Region 11'!$AO$9, 0)","v":{"v":0,"d":"$0.00"}},{"$f":"IFERROR('MMA Rev-Exp Region 11'!$AP$15/'MMA Rev-Exp Region 11'!$AP$9, 0)","v":{"v":0,"d":"$0.00"}},{"$f":"IFERROR('MMA Rev-Exp Region 11'!$AQ$15/'MMA Rev-Exp Region 11'!$AQ$9, 0)","v":{"v":0,"d":"$0.00"}},{"$f":"IFERROR('MMA Rev-Exp Region 11'!$AR$15/'MMA Rev-Exp Region 11'!$AR$9, 0)","v":{"v":0,"d":"$0.00"}},{"$f":"IFERROR('MMA Rev-Exp Region 11'!$AS$15/'MMA Rev-Exp Region 11'!$AS$9, 0)","v":{"v":0,"d":"$0.00"}},{"$f":"IFERROR('MMA Rev-Exp Region 11'!$AT$15/'MMA Rev-Exp Region 11'!$AT$9, 0)","v":{"v":0,"d":"$0.00"}},{"$f":"IFERROR('MMA Rev-Exp Region 11'!$AU$15/'MMA Rev-Exp Region 11'!$AU$9, 0)","v":{"v":0,"d":"$0.00"}}]
["MMA",null,null,2016,"2016-12-31","Q4","2017-12-31","Region 11","Operating Revenue","Other Revenue","Other Revenue","1.6","Other Revenue",{"$f":"IFERROR('MMA Rev-Exp Region 11'!$AK$16/'MMA Rev-Exp Region 11'!$AK$9, 0)","v":{"v":0,"d":"$0.00"}},{"$f":"IFERROR('MMA Rev-Exp Region 11'!$AL$16/'MMA Rev-Exp Region 11'!$AL$9, 0)","v":{"v":0,"d":"$0.00"}},{"$f":"IFERROR('MMA Rev-Exp Region 11'!$AM$16/'MMA Rev-Exp Region 11'!$AM$9, 0)","v":{"v":0,"d":"$0.00"}},{"$f":"IFERROR('MMA Rev-Exp Region 11'!$AN$16/'MMA Rev-Exp Region 11'!$AN$9, 0)","v":{"v":0,"d":"$0.00"}},{"$f":"IFERROR('MMA Rev-Exp Region 11'!$AO$16/'MMA Rev-Exp Region 11'!$AO$9, 0)","v":{"v":0,"d":"$0.00"}},{"$f":"IFERROR('MMA Rev-Exp Region 11'!$AP$16/'MMA Rev-Exp Region 11'!$AP$9, 0)","v":{"v":0,"d":"$0.00"}},{"$f":"IFERROR('MMA Rev-Exp Region 11'!$AQ$16/'MMA Rev-Exp Region 11'!$AQ$9, 0)","v":{"v":0,"d":"$0.00"}},{"$f":"IFERROR('MMA Rev-Exp Region 11'!$AR$16/'MMA Rev-Exp Region 11'!$AR$9, 0)","v":{"v":0,"d":"$0.00"}},{"$f":"IFERROR('MMA Rev-Exp Region 11'!$AS$16/'MMA Rev-Exp Region 11'!$AS$9, 0)","v":{"v":0,"d":"$0.00"}},{"$f":"IFERROR('MMA Rev-Exp Region 11'!$AT$16/'MMA Rev-Exp Region 11'!$AT$9, 0)","v":{"v":0,"d":"$0.00"}},{"$f":"IFERROR('MMA Rev-Exp Region 11'!$AU$16/'MMA Rev-Exp Region 11'!$AU$9, 0)","v":{"v":0,"d":"$0.00"}}]
["MMA",null,null,2016,"2016-12-31","Q4","2017-12-31","Region 11","Operating Expense","Medical Benefits Expense","Hospital Services",2.1,"Inpatient FFS",{"$f":"IFERROR('MMA Rev-Exp Region 11'!$AK$20/'MMA Rev-Exp Region 11'!$AK$9, 0)","v":{"v":0,"d":"$0.00"}},{"$f":"IFERROR('MMA Rev-Exp Region 11'!$AL$20/'MMA Rev-Exp Region 11'!$AL$9, 0)","v":{"v":0,"d":"$0.00"}},{"$f":"IFERROR('MMA Rev-Exp Region 11'!$AM$20/'MMA Rev-Exp Region 11'!$AM$9, 0)","v":{"v":0,"d":"$0.00"}},{"$f":"IFERROR('MMA Rev-Exp Region 11'!$AN$20/'MMA Rev-Exp Region 11'!$AN$9, 0)","v":{"v":0,"d":"$0.00"}},{"$f":"IFERROR('MMA Rev-Exp Region 11'!$AO$20/'MMA Rev-Exp Region 11'!$AO$9, 0)","v":{"v":0,"d":"$0.00"}},{"$f":"IFERROR('MMA Rev-Exp Region 11'!$AP$20/'MMA Rev-Exp Region 11'!$AP$9, 0)","v":{"v":0,"d":"$0.00"}},{"$f":"IFERROR('MMA Rev-Exp Region 11'!$AQ$20/'MMA Rev-Exp Region 11'!$AQ$9, 0)","v":{"v":0,"d":"$0.00"}},{"$f":"IFERROR('MMA Rev-Exp Region 11'!$AR$20/'MMA Rev-Exp Region 11'!$AR$9, 0)","v":{"v":0,"d":"$0.00"}},{"$f":"IFERROR('MMA Rev-Exp Region 11'!$AS$20/'MMA Rev-Exp Region 11'!$AS$9, 0)","v":{"v":0,"d":"$0.00"}},{"$f":"IFERROR('MMA Rev-Exp Region 11'!$AT$20/'MMA Rev-Exp Region 11'!$AT$9, 0)","v":{"v":0,"d":"$0.00"}},{"$f":"IFERROR('MMA Rev-Exp Region 11'!$AU$20/'MMA Rev-Exp Region 11'!$AU$9, 0)","v":{"v":0,"d":"$0.00"}}]
["MMA",null,null,2016,"2016-12-31","Q4","2017-12-31","Region 11","Operating Expense","Medical Benefits Expense","Hospital Services",2.2,"Ending IBNP for Inpatient Hospital Services",{"$f":"IFERROR('MMA Rev-Exp Region 11'!$AK$21/'MMA Rev-Exp Region 11'!$AK$9, 0)","v":{"v":0,"d":"$0.00"}},{"$f":"IFERROR('MMA Rev-Exp Region 11'!$AL$21/'MMA Rev-Exp Region 11'!$AL$9, 0)","v":{"v":0,"d":"$0.00"}},{"$f":"IFERROR('MMA Rev-Exp Region 11'!$AM$21/'MMA Rev-Exp Region 11'!$AM$9, 0)","v":{"v":0,"d":"$0.00"}},{"$f":"IFERROR('MMA Rev-Exp Region 11'!$AN$21/'MMA Rev-Exp Region 11'!$AN$9, 0)","v":{"v":0,"d":"$0.00"}},{"$f":"IFERROR('MMA Rev-Exp Region 11'!$AO$21/'MMA Rev-Exp Region 11'!$AO$9, 0)","v":{"v":0,"d":"$0.00"}},{"$f":"IFERROR('MMA Rev-Exp Region 11'!$AP$21/'MMA Rev-Exp Region 11'!$AP$9, 0)","v":{"v":0,"d":"$0.00"}},{"$f":"IFERROR('MMA Rev-Exp Region 11'!$AQ$21/'MMA Rev-Exp Region 11'!$AQ$9, 0)","v":{"v":0,"d":"$0.00"}},{"$f":"IFERROR('MMA Rev-Exp Region 11'!$AR$21/'MMA Rev-Exp Region 11'!$AR$9, 0)","v":{"v":0,"d":"$0.00"}},{"$f":"IFERROR('MMA Rev-Exp Region 11'!$AS$21/'MMA Rev-Exp Region 11'!$AS$9, 0)","v":{"v":0,"d":"$0.00"}},{"$f":"IFERROR('MMA Rev-Exp Region 11'!$AT$21/'MMA Rev-Exp Region 11'!$AT$9, 0)","v":{"v":0,"d":"$0.00"}},{"$f":"IFERROR('MMA Rev-Exp Region 11'!$AU$21/'MMA Rev-Exp Region 11'!$AU$9, 0)","v":{"v":0,"d":"$0.00"}}]
["MMA",null,null,2016,"2016-12-31","Q4","2017-12-31","Region 11","Operating Expense","Medical Benefits Expense","Hospital Services",2.3,"Outpatient FFS: ER",{"$f":"IFERROR('MMA Rev-Exp Region 11'!$AK$22/'MMA Rev-Exp Region 11'!$AK$9, 0)","v":{"v":0,"d":"$0.00"}},{"$f":"IFERROR('MMA Rev-Exp Region 11'!$AL$22/'MMA Rev-Exp Region 11'!$AL$9, 0)","v":{"v":0,"d":"$0.00"}},{"$f":"IFERROR('MMA Rev-Exp Region 11'!$AM$22/'MMA Rev-Exp Region 11'!$AM$9, 0)","v":{"v":0,"d":"$0.00"}},{"$f":"IFERROR('MMA Rev-Exp Region 11'!$AN$22/'MMA Rev-Exp Region 11'!$AN$9, 0)","v":{"v":0,"d":"$0.00"}},{"$f":"IFERROR('MMA Rev-Exp Region 11'!$AO$22/'MMA Rev-Exp Region 11'!$AO$9, 0)","v":{"v":0,"d":"$0.00"}},{"$f":"IFERROR('MMA Rev-Exp Region 11'!$AP$22/'MMA Rev-Exp Region 11'!$AP$9, 0)","v":{"v":0,"d":"$0.00"}},{"$f":"IFERROR('MMA Rev-Exp Region 11'!$AQ$22/'MMA Rev-Exp Region 11'!$AQ$9, 0)","v":{"v":0,"d":"$0.00"}},{"$f":"IFERROR('MMA Rev-Exp Region 11'!$AR$22/'MMA Rev-Exp Region 11'!$AR$9, 0)","v":{"v":0,"d":"$0.00"}},{"$f":"IFERROR('MMA Rev-Exp Region 11'!$AS$22/'MMA Rev-Exp Region 11'!$AS$9, 0)","v":{"v":0,"d":"$0.00"}},{"$f":"IFERROR('MMA Rev-Exp Region 11'!$AT$22/'MMA Rev-Exp Region 11'!$AT$9, 0)","v":{"v":0,"d":"$0.00"}},{"$f":"IFERROR('MMA Rev-Exp Region 11'!$AU$22/'MMA Rev-Exp Region 11'!$AU$9, 0)","v":{"v":0,"d":"$0.00"}}]
["MMA",null,null,2016,"2016-12-31","Q4","2017-12-31","Region 11","Operating Expense","Medical Benefits Expense","Hospital Services",2.4,"Outpatient FFS: Other than ER ",{"$f":"IFERROR('MMA Rev-Exp Region 11'!$AK$23/'MMA Rev-Exp Region 11'!$AK$9, 0)","v":{"v":0,"d":"$0.00"}},{"$f":"IFERROR('MMA Rev-Exp Region 11'!$AL$23/'MMA Rev-Exp Region 11'!$AL$9, 0)","v":{"v":0,"d":"$0.00"}},{"$f":"IFERROR('MMA Rev-Exp Region 11'!$AM$23/'MMA Rev-Exp Region 11'!$AM$9, 0)","v":{"v":0,"d":"$0.00"}},{"$f":"IFERROR('MMA Rev-Exp Region 11'!$AN$23/'MMA Rev-Exp Region 11'!$AN$9, 0)","v":{"v":0,"d":"$0.00"}},{"$f":"IFERROR('MMA Rev-Exp Region 11'!$AO$23/'MMA Rev-Exp Region 11'!$AO$9, 0)","v":{"v":0,"d":"$0.00"}},{"$f":"IFERROR('MMA Rev-Exp Region 11'!$AP$23/'MMA Rev-Exp Region 11'!$AP$9, 0)","v":{"v":0,"d":"$0.00"}},{"$f":"IFERROR('MMA Rev-Exp Region 11'!$AQ$23/'MMA Rev-Exp Region 11'!$AQ$9, 0)","v":{"v":0,"d":"$0.00"}},{"$f":"IFERROR('MMA Rev-Exp Region 11'!$AR$23/'MMA Rev-Exp Region 11'!$AR$9, 0)","v":{"v":0,"d":"$0.00"}},{"$f":"IFERROR('MMA Rev-Exp Region 11'!$AS$23/'MMA Rev-Exp Region 11'!$AS$9, 0)","v":{"v":0,"d":"$0.00"}},{"$f":"IFERROR('MMA Rev-Exp Region 11'!$AT$23/'MMA Rev-Exp Region 11'!$AT$9, 0)","v":{"v":0,"d":"$0.00"}},{"$f":"IFERROR('MMA Rev-Exp Region 11'!$AU$23/'MMA Rev-Exp Region 11'!$AU$9, 0)","v":{"v":0,"d":"$0.00"}}]
["MMA",null,null,2016,"2016-12-31","Q4","2017-12-31","Region 11","Operating Expense","Medical Benefits Expense","Hospital Services",2.5,"Ending IBNP for Outpatient Hospital Services",{"$f":"IFERROR('MMA Rev-Exp Region 11'!$AK$24/'MMA Rev-Exp Region 11'!$AK$9, 0)","v":{"v":0,"d":"$0.00"}},{"$f":"IFERROR('MMA Rev-Exp Region 11'!$AL$24/'MMA Rev-Exp Region 11'!$AL$9, 0)","v":{"v":0,"d":"$0.00"}},{"$f":"IFERROR('MMA Rev-Exp Region 11'!$AM$24/'MMA Rev-Exp Region 11'!$AM$9, 0)","v":{"v":0,"d":"$0.00"}},{"$f":"IFERROR('MMA Rev-Exp Region 11'!$AN$24/'MMA Rev-Exp Region 11'!$AN$9, 0)","v":{"v":0,"d":"$0.00"}},{"$f":"IFERROR('MMA Rev-Exp Region 11'!$AO$24/'MMA Rev-Exp Region 11'!$AO$9, 0)","v":{"v":0,"d":"$0.00"}},{"$f":"IFERROR('MMA Rev-Exp Region 11'!$AP$24/'MMA Rev-Exp Region 11'!$AP$9, 0)","v":{"v":0,"d":"$0.00"}},{"$f":"IFERROR('MMA Rev-Exp Region 11'!$AQ$24/'MMA Rev-Exp Region 11'!$AQ$9, 0)","v":{"v":0,"d":"$0.00"}},{"$f":"IFERROR('MMA Rev-Exp Region 11'!$AR$24/'MMA Rev-Exp Region 11'!$AR$9, 0)","v":{"v":0,"d":"$0.00"}},{"$f":"IFERROR('MMA Rev-Exp Region 11'!$AS$24/'MMA Rev-Exp Region 11'!$AS$9, 0)","v":{"v":0,"d":"$0.00"}},{"$f":"IFERROR('MMA Rev-Exp Region 11'!$AT$24/'MMA Rev-Exp Region 11'!$AT$9, 0)","v":{"v":0,"d":"$0.00"}},{"$f":"IFERROR('MMA Rev-Exp Region 11'!$AU$24/'MMA Rev-Exp Region 11'!$AU$9, 0)","v":{"v":0,"d":"$0.00"}}]
["MMA",null,null,2016,"2016-12-31","Q4","2017-12-31","Region 11","Operating Expense","Medical Benefits Expense","Hospital Services","2.6","Subcapitated Hospital Services",{"$f":"IFERROR('MMA Rev-Exp Region 11'!$AK$25/'MMA Rev-Exp Region 11'!$AK$9, 0)","v":{"v":0,"d":"$0.00"}},{"$f":"IFERROR('MMA Rev-Exp Region 11'!$AL$25/'MMA Rev-Exp Region 11'!$AL$9, 0)","v":{"v":0,"d":"$0.00"}},{"$f":"IFERROR('MMA Rev-Exp Region 11'!$AM$25/'MMA Rev-Exp Region 11'!$AM$9, 0)","v":{"v":0,"d":"$0.00"}},{"$f":"IFERROR('MMA Rev-Exp Region 11'!$AN$25/'MMA Rev-Exp Region 11'!$AN$9, 0)","v":{"v":0,"d":"$0.00"}},{"$f":"IFERROR('MMA Rev-Exp Region 11'!$AO$25/'MMA Rev-Exp Region 11'!$AO$9, 0)","v":{"v":0,"d":"$0.00"}},{"$f":"IFERROR('MMA Rev-Exp Region 11'!$AP$25/'MMA Rev-Exp Region 11'!$AP$9, 0)","v":{"v":0,"d":"$0.00"}},{"$f":"IFERROR('MMA Rev-Exp Region 11'!$AQ$25/'MMA Rev-Exp Region 11'!$AQ$9, 0)","v":{"v":0,"d":"$0.00"}},{"$f":"IFERROR('MMA Rev-Exp Region 11'!$AR$25/'MMA Rev-Exp Region 11'!$AR$9, 0)","v":{"v":0,"d":"$0.00"}},{"$f":"IFERROR('MMA Rev-Exp Region 11'!$AS$25/'MMA Rev-Exp Region 11'!$AS$9, 0)","v":{"v":0,"d":"$0.00"}},{"$f":"IFERROR('MMA Rev-Exp Region 11'!$AT$25/'MMA Rev-Exp Region 11'!$AT$9, 0)","v":{"v":0,"d":"$0.00"}},{"$f":"IFERROR('MMA Rev-Exp Region 11'!$AU$25/'MMA Rev-Exp Region 11'!$AU$9, 0)","v":{"v":0,"d":"$0.00"}}]
["MMA",null,null,2016,"2016-12-31","Q4","2017-12-31","Region 11","Operating Expense","Medical Benefits Expense","Hospital Services","2.7","Hospital Settlements",{"$f":"IFERROR('MMA Rev-Exp Region 11'!$AK$26/'MMA Rev-Exp Region 11'!$AK$9, 0)","v":{"v":0,"d":"$0.00"}},{"$f":"IFERROR('MMA Rev-Exp Region 11'!$AL$26/'MMA Rev-Exp Region 11'!$AL$9, 0)","v":{"v":0,"d":"$0.00"}},{"$f":"IFERROR('MMA Rev-Exp Region 11'!$AM$26/'MMA Rev-Exp Region 11'!$AM$9, 0)","v":{"v":0,"d":"$0.00"}},{"$f":"IFERROR('MMA Rev-Exp Region 11'!$AN$26/'MMA Rev-Exp Region 11'!$AN$9, 0)","v":{"v":0,"d":"$0.00"}},{"$f":"IFERROR('MMA Rev-Exp Region 11'!$AO$26/'MMA Rev-Exp Region 11'!$AO$9, 0)","v":{"v":0,"d":"$0.00"}},{"$f":"IFERROR('MMA Rev-Exp Region 11'!$AP$26/'MMA Rev-Exp Region 11'!$AP$9, 0)","v":{"v":0,"d":"$0.00"}},{"$f":"IFERROR('MMA Rev-Exp Region 11'!$AQ$26/'MMA Rev-Exp Region 11'!$AQ$9, 0)","v":{"v":0,"d":"$0.00"}},{"$f":"IFERROR('MMA Rev-Exp Region 11'!$AR$26/'MMA Rev-Exp Region 11'!$AR$9, 0)","v":{"v":0,"d":"$0.00"}},{"$f":"IFERROR('MMA Rev-Exp Region 11'!$AS$26/'MMA Rev-Exp Region 11'!$AS$9, 0)","v":{"v":0,"d":"$0.00"}},{"$f":"IFERROR('MMA Rev-Exp Region 11'!$AT$26/'MMA Rev-Exp Region 11'!$AT$9, 0)","v":{"v":0,"d":"$0.00"}},{"$f":"IFERROR('MMA Rev-Exp Region 11'!$AU$26/'MMA Rev-Exp Region 11'!$AU$9, 0)","v":{"v":0,"d":"$0.00"}}]
["MMA",null,null,2016,"2016-12-31","Q4","2017-12-31","Region 11","Operating Expense","Medical Benefits Expense","Hospital Services","2.7.1","Transplant Services",{"$f":"IFERROR('MMA Rev-Exp Region 11'!$AK$27/'MMA Rev-Exp Region 11'!$AK$9, 0)","v":{"v":0,"d":"$0.00"}},{"$f":"IFERROR('MMA Rev-Exp Region 11'!$AL$27/'MMA Rev-Exp Region 11'!$AL$9, 0)","v":{"v":0,"d":"$0.00"}},{"$f":"IFERROR('MMA Rev-Exp Region 11'!$AM$27/'MMA Rev-Exp Region 11'!$AM$9, 0)","v":{"v":0,"d":"$0.00"}},{"$f":"IFERROR('MMA Rev-Exp Region 11'!$AN$27/'MMA Rev-Exp Region 11'!$AN$9, 0)","v":{"v":0,"d":"$0.00"}},{"$f":"IFERROR('MMA Rev-Exp Region 11'!$AO$27/'MMA Rev-Exp Region 11'!$AO$9, 0)","v":{"v":0,"d":"$0.00"}},{"$f":"IFERROR('MMA Rev-Exp Region 11'!$AP$27/'MMA Rev-Exp Region 11'!$AP$9, 0)","v":{"v":0,"d":"$0.00"}},{"$f":"IFERROR('MMA Rev-Exp Region 11'!$AQ$27/'MMA Rev-Exp Region 11'!$AQ$9, 0)","v":{"v":0,"d":"$0.00"}},{"$f":"IFERROR('MMA Rev-Exp Region 11'!$AR$27/'MMA Rev-Exp Region 11'!$AR$9, 0)","v":{"v":0,"d":"$0.00"}},{"$f":"IFERROR('MMA Rev-Exp Region 11'!$AS$27/'MMA Rev-Exp Region 11'!$AS$9, 0)","v":{"v":0,"d":"$0.00"}},{"$f":"IFERROR('MMA Rev-Exp Region 11'!$AT$27/'MMA Rev-Exp Region 11'!$AT$9, 0)","v":{"v":0,"d":"$0.00"}},{"$f":"IFERROR('MMA Rev-Exp Region 11'!$AU$27/'MMA Rev-Exp Region 11'!$AU$9, 0)","v":{"v":0,"d":"$0.00"}}]
["MMA",null,null,2016,"2016-12-31","Q4","2017-12-31","Region 11","Operating Expense","Medical Benefits Expense","Professional Services",3.1,"Primary Care FFS",{"$f":"IFERROR('MMA Rev-Exp Region 11'!$AK$29/'MMA Rev-Exp Region 11'!$AK$9, 0)","v":{"v":0,"d":"$0.00"}},{"$f":"IFERROR('MMA Rev-Exp Region 11'!$AL$29/'MMA Rev-Exp Region 11'!$AL$9, 0)","v":{"v":0,"d":"$0.00"}},{"$f":"IFERROR('MMA Rev-Exp Region 11'!$AM$29/'MMA Rev-Exp Region 11'!$AM$9, 0)","v":{"v":0,"d":"$0.00"}},{"$f":"IFERROR('MMA Rev-Exp Region 11'!$AN$29/'MMA Rev-Exp Region 11'!$AN$9, 0)","v":{"v":0,"d":"$0.00"}},{"$f":"IFERROR('MMA Rev-Exp Region 11'!$AO$29/'MMA Rev-Exp Region 11'!$AO$9, 0)","v":{"v":0,"d":"$0.00"}},{"$f":"IFERROR('MMA Rev-Exp Region 11'!$AP$29/'MMA Rev-Exp Region 11'!$AP$9, 0)","v":{"v":0,"d":"$0.00"}},{"$f":"IFERROR('MMA Rev-Exp Region 11'!$AQ$29/'MMA Rev-Exp Region 11'!$AQ$9, 0)","v":{"v":0,"d":"$0.00"}},{"$f":"IFERROR('MMA Rev-Exp Region 11'!$AR$29/'MMA Rev-Exp Region 11'!$AR$9, 0)","v":{"v":0,"d":"$0.00"}},{"$f":"IFERROR('MMA Rev-Exp Region 11'!$AS$29/'MMA Rev-Exp Region 11'!$AS$9, 0)","v":{"v":0,"d":"$0.00"}},{"$f":"IFERROR('MMA Rev-Exp Region 11'!$AT$29/'MMA Rev-Exp Region 11'!$AT$9, 0)","v":{"v":0,"d":"$0.00"}},{"$f":"IFERROR('MMA Rev-Exp Region 11'!$AU$29/'MMA Rev-Exp Region 11'!$AU$9, 0)","v":{"v":0,"d":"$0.00"}}]
["MMA",null,null,2016,"2016-12-31","Q4","2017-12-31","Region 11","Operating Expense","Medical Benefits Expense","Professional Services",3.2,"Specialty Care FFS",{"$f":"IFERROR('MMA Rev-Exp Region 11'!$AK$30/'MMA Rev-Exp Region 11'!$AK$9, 0)","v":{"v":0,"d":"$0.00"}},{"$f":"IFERROR('MMA Rev-Exp Region 11'!$AL$30/'MMA Rev-Exp Region 11'!$AL$9, 0)","v":{"v":0,"d":"$0.00"}},{"$f":"IFERROR('MMA Rev-Exp Region 11'!$AM$30/'MMA Rev-Exp Region 11'!$AM$9, 0)","v":{"v":0,"d":"$0.00"}},{"$f":"IFERROR('MMA Rev-Exp Region 11'!$AN$30/'MMA Rev-Exp Region 11'!$AN$9, 0)","v":{"v":0,"d":"$0.00"}},{"$f":"IFERROR('MMA Rev-Exp Region 11'!$AO$30/'MMA Rev-Exp Region 11'!$AO$9, 0)","v":{"v":0,"d":"$0.00"}},{"$f":"IFERROR('MMA Rev-Exp Region 11'!$AP$30/'MMA Rev-Exp Region 11'!$AP$9, 0)","v":{"v":0,"d":"$0.00"}},{"$f":"IFERROR('MMA Rev-Exp Region 11'!$AQ$30/'MMA Rev-Exp Region 11'!$AQ$9, 0)","v":{"v":0,"d":"$0.00"}},{"$f":"IFERROR('MMA Rev-Exp Region 11'!$AR$30/'MMA Rev-Exp Region 11'!$AR$9, 0)","v":{"v":0,"d":"$0.00"}},{"$f":"IFERROR('MMA Rev-Exp Region 11'!$AS$30/'MMA Rev-Exp Region 11'!$AS$9, 0)","v":{"v":0,"d":"$0.00"}},{"$f":"IFERROR('MMA Rev-Exp Region 11'!$AT$30/'MMA Rev-Exp Region 11'!$AT$9, 0)","v":{"v":0,"d":"$0.00"}},{"$f":"IFERROR('MMA Rev-Exp Region 11'!$AU$30/'MMA Rev-Exp Region 11'!$AU$9, 0)","v":{"v":0,"d":"$0.00"}}]
["MMA",null,null,2016,"2016-12-31","Q4","2017-12-31","Region 11","Operating Expense","Medical Benefits Expense","Professional Services",3.3,"Other Professional FFS",{"$f":"IFERROR('MMA Rev-Exp Region 11'!$AK$31/'MMA Rev-Exp Region 11'!$AK$9, 0)","v":{"v":0,"d":"$0.00"}},{"$f":"IFERROR('MMA Rev-Exp Region 11'!$AL$31/'MMA Rev-Exp Region 11'!$AL$9, 0)","v":{"v":0,"d":"$0.00"}},{"$f":"IFERROR('MMA Rev-Exp Region 11'!$AM$31/'MMA Rev-Exp Region 11'!$AM$9, 0)","v":{"v":0,"d":"$0.00"}},{"$f":"IFERROR('MMA Rev-Exp Region 11'!$AN$31/'MMA Rev-Exp Region 11'!$AN$9, 0)","v":{"v":0,"d":"$0.00"}},{"$f":"IFERROR('MMA Rev-Exp Region 11'!$AO$31/'MMA Rev-Exp Region 11'!$AO$9, 0)","v":{"v":0,"d":"$0.00"}},{"$f":"IFERROR('MMA Rev-Exp Region 11'!$AP$31/'MMA Rev-Exp Region 11'!$AP$9, 0)","v":{"v":0,"d":"$0.00"}},{"$f":"IFERROR('MMA Rev-Exp Region 11'!$AQ$31/'MMA Rev-Exp Region 11'!$AQ$9, 0)","v":{"v":0,"d":"$0.00"}},{"$f":"IFERROR('MMA Rev-Exp Region 11'!$AR$31/'MMA Rev-Exp Region 11'!$AR$9, 0)","v":{"v":0,"d":"$0.00"}},{"$f":"IFERROR('MMA Rev-Exp Region 11'!$AS$31/'MMA Rev-Exp Region 11'!$AS$9, 0)","v":{"v":0,"d":"$0.00"}},{"$f":"IFERROR('MMA Rev-Exp Region 11'!$AT$31/'MMA Rev-Exp Region 11'!$AT$9, 0)","v":{"v":0,"d":"$0.00"}},{"$f":"IFERROR('MMA Rev-Exp Region 11'!$AU$31/'MMA Rev-Exp Region 11'!$AU$9, 0)","v":{"v":0,"d":"$0.00"}}]
["MMA",null,null,2016,"2016-12-31","Q4","2017-12-31","Region 11","Operating Expense","Medical Benefits Expense","Professional Services","3.4","§ 1202 PCP Payments to providers",{"$f":"IFERROR('MMA Rev-Exp Region 11'!$AK$32/'MMA Rev-Exp Region 11'!$AK$9, 0)","v":{"v":0,"d":"$0.00"}},{"$f":"IFERROR('MMA Rev-Exp Region 11'!$AL$32/'MMA Rev-Exp Region 11'!$AL$9, 0)","v":{"v":0,"d":"$0.00"}},{"$f":"IFERROR('MMA Rev-Exp Region 11'!$AM$32/'MMA Rev-Exp Region 11'!$AM$9, 0)","v":{"v":0,"d":"$0.00"}},{"$f":"IFERROR('MMA Rev-Exp Region 11'!$AN$32/'MMA Rev-Exp Region 11'!$AN$9, 0)","v":{"v":0,"d":"$0.00"}},{"$f":"IFERROR('MMA Rev-Exp Region 11'!$AO$32/'MMA Rev-Exp Region 11'!$AO$9, 0)","v":{"v":0,"d":"$0.00"}},{"$f":"IFERROR('MMA Rev-Exp Region 11'!$AP$32/'MMA Rev-Exp Region 11'!$AP$9, 0)","v":{"v":0,"d":"$0.00"}},{"$f":"IFERROR('MMA Rev-Exp Region 11'!$AQ$32/'MMA Rev-Exp Region 11'!$AQ$9, 0)","v":{"v":0,"d":"$0.00"}},{"$f":"IFERROR('MMA Rev-Exp Region 11'!$AR$32/'MMA Rev-Exp Region 11'!$AR$9, 0)","v":{"v":0,"d":"$0.00"}},{"$f":"IFERROR('MMA Rev-Exp Region 11'!$AS$32/'MMA Rev-Exp Region 11'!$AS$9, 0)","v":{"v":0,"d":"$0.00"}},{"$f":"IFERROR('MMA Rev-Exp Region 11'!$AT$32/'MMA Rev-Exp Region 11'!$AT$9, 0)","v":{"v":0,"d":"$0.00"}},{"$f":"IFERROR('MMA Rev-Exp Region 11'!$AU$32/'MMA Rev-Exp Region 11'!$AU$9, 0)","v":{"v":0,"d":"$0.00"}}]
["MMA",null,null,2016,"2016-12-31","Q4","2017-12-31","Region 11","Operating Expense","Medical Benefits Expense","Professional Services","3.5","Subcapitated Professional Services",{"$f":"IFERROR('MMA Rev-Exp Region 11'!$AK$33/'MMA Rev-Exp Region 11'!$AK$9, 0)","v":{"v":0,"d":"$0.00"}},{"$f":"IFERROR('MMA Rev-Exp Region 11'!$AL$33/'MMA Rev-Exp Region 11'!$AL$9, 0)","v":{"v":0,"d":"$0.00"}},{"$f":"IFERROR('MMA Rev-Exp Region 11'!$AM$33/'MMA Rev-Exp Region 11'!$AM$9, 0)","v":{"v":0,"d":"$0.00"}},{"$f":"IFERROR('MMA Rev-Exp Region 11'!$AN$33/'MMA Rev-Exp Region 11'!$AN$9, 0)","v":{"v":0,"d":"$0.00"}},{"$f":"IFERROR('MMA Rev-Exp Region 11'!$AO$33/'MMA Rev-Exp Region 11'!$AO$9, 0)","v":{"v":0,"d":"$0.00"}},{"$f":"IFERROR('MMA Rev-Exp Region 11'!$AP$33/'MMA Rev-Exp Region 11'!$AP$9, 0)","v":{"v":0,"d":"$0.00"}},{"$f":"IFERROR('MMA Rev-Exp Region 11'!$AQ$33/'MMA Rev-Exp Region 11'!$AQ$9, 0)","v":{"v":0,"d":"$0.00"}},{"$f":"IFERROR('MMA Rev-Exp Region 11'!$AR$33/'MMA Rev-Exp Region 11'!$AR$9, 0)","v":{"v":0,"d":"$0.00"}},{"$f":"IFERROR('MMA Rev-Exp Region 11'!$AS$33/'MMA Rev-Exp Region 11'!$AS$9, 0)","v":{"v":0,"d":"$0.00"}},{"$f":"IFERROR('MMA Rev-Exp Region 11'!$AT$33/'MMA Rev-Exp Region 11'!$AT$9, 0)","v":{"v":0,"d":"$0.00"}},{"$f":"IFERROR('MMA Rev-Exp Region 11'!$AU$33/'MMA Rev-Exp Region 11'!$AU$9, 0)","v":{"v":0,"d":"$0.00"}}]
["MMA",null,null,2016,"2016-12-31","Q4","2017-12-31","Region 11","Operating Expense","Medical Benefits Expense","Professional Services","3.6","Ending IBNP for Professional Services",{"$f":"IFERROR('MMA Rev-Exp Region 11'!$AK$34/'MMA Rev-Exp Region 11'!$AK$9, 0)","v":{"v":0,"d":"$0.00"}},{"$f":"IFERROR('MMA Rev-Exp Region 11'!$AL$34/'MMA Rev-Exp Region 11'!$AL$9, 0)","v":{"v":0,"d":"$0.00"}},{"$f":"IFERROR('MMA Rev-Exp Region 11'!$AM$34/'MMA Rev-Exp Region 11'!$AM$9, 0)","v":{"v":0,"d":"$0.00"}},{"$f":"IFERROR('MMA Rev-Exp Region 11'!$AN$34/'MMA Rev-Exp Region 11'!$AN$9, 0)","v":{"v":0,"d":"$0.00"}},{"$f":"IFERROR('MMA Rev-Exp Region 11'!$AO$34/'MMA Rev-Exp Region 11'!$AO$9, 0)","v":{"v":0,"d":"$0.00"}},{"$f":"IFERROR('MMA Rev-Exp Region 11'!$AP$34/'MMA Rev-Exp Region 11'!$AP$9, 0)","v":{"v":0,"d":"$0.00"}},{"$f":"IFERROR('MMA Rev-Exp Region 11'!$AQ$34/'MMA Rev-Exp Region 11'!$AQ$9, 0)","v":{"v":0,"d":"$0.00"}},{"$f":"IFERROR('MMA Rev-Exp Region 11'!$AR$34/'MMA Rev-Exp Region 11'!$AR$9, 0)","v":{"v":0,"d":"$0.00"}},{"$f":"IFERROR('MMA Rev-Exp Region 11'!$AS$34/'MMA Rev-Exp Region 11'!$AS$9, 0)","v":{"v":0,"d":"$0.00"}},{"$f":"IFERROR('MMA Rev-Exp Region 11'!$AT$34/'MMA Rev-Exp Region 11'!$AT$9, 0)","v":{"v":0,"d":"$0.00"}},{"$f":"IFERROR('MMA Rev-Exp Region 11'!$AU$34/'MMA Rev-Exp Region 11'!$AU$9, 0)","v":{"v":0,"d":"$0.00"}}]
["MMA",null,null,2016,"2016-12-31","Q4","2017-12-31","Region 11","Operating Expense","Medical Benefits Expense","Professional Services","3.7","Professional Services Settlements",{"$f":"IFERROR('MMA Rev-Exp Region 11'!$AK$35/'MMA Rev-Exp Region 11'!$AK$9, 0)","v":{"v":0,"d":"$0.00"}},{"$f":"IFERROR('MMA Rev-Exp Region 11'!$AL$35/'MMA Rev-Exp Region 11'!$AL$9, 0)","v":{"v":0,"d":"$0.00"}},{"$f":"IFERROR('MMA Rev-Exp Region 11'!$AM$35/'MMA Rev-Exp Region 11'!$AM$9, 0)","v":{"v":0,"d":"$0.00"}},{"$f":"IFERROR('MMA Rev-Exp Region 11'!$AN$35/'MMA Rev-Exp Region 11'!$AN$9, 0)","v":{"v":0,"d":"$0.00"}},{"$f":"IFERROR('MMA Rev-Exp Region 11'!$AO$35/'MMA Rev-Exp Region 11'!$AO$9, 0)","v":{"v":0,"d":"$0.00"}},{"$f":"IFERROR('MMA Rev-Exp Region 11'!$AP$35/'MMA Rev-Exp Region 11'!$AP$9, 0)","v":{"v":0,"d":"$0.00"}},{"$f":"IFERROR('MMA Rev-Exp Region 11'!$AQ$35/'MMA Rev-Exp Region 11'!$AQ$9, 0)","v":{"v":0,"d":"$0.00"}},{"$f":"IFERROR('MMA Rev-Exp Region 11'!$AR$35/'MMA Rev-Exp Region 11'!$AR$9, 0)","v":{"v":0,"d":"$0.00"}},{"$f":"IFERROR('MMA Rev-Exp Region 11'!$AS$35/'MMA Rev-Exp Region 11'!$AS$9, 0)","v":{"v":0,"d":"$0.00"}},{"$f":"IFERROR('MMA Rev-Exp Region 11'!$AT$35/'MMA Rev-Exp Region 11'!$AT$9, 0)","v":{"v":0,"d":"$0.00"}},{"$f":"IFERROR('MMA Rev-Exp Region 11'!$AU$35/'MMA Rev-Exp Region 11'!$AU$9, 0)","v":{"v":0,"d":"$0.00"}}]
["MMA",null,null,2016,"2016-12-31","Q4","2017-12-31","Region 11","Operating Expense","Medical Benefits Expense","Maternity Services","4.1.1","Maternity Services",{"$f":"IFERROR('MMA Rev-Exp Region 11'!$AK$37/'MMA Rev-Exp Region 11'!$AK$9, 0)","v":{"v":0,"d":"$0.00"}},{"$f":"IFERROR('MMA Rev-Exp Region 11'!$AL$37/'MMA Rev-Exp Region 11'!$AL$9, 0)","v":{"v":0,"d":"$0.00"}},{"$f":"IFERROR('MMA Rev-Exp Region 11'!$AM$37/'MMA Rev-Exp Region 11'!$AM$9, 0)","v":{"v":0,"d":"$0.00"}},{"$f":"IFERROR('MMA Rev-Exp Region 11'!$AN$37/'MMA Rev-Exp Region 11'!$AN$9, 0)","v":{"v":0,"d":"$0.00"}},{"$f":"IFERROR('MMA Rev-Exp Region 11'!$AO$37/'MMA Rev-Exp Region 11'!$AO$9, 0)","v":{"v":0,"d":"$0.00"}},{"$f":"IFERROR('MMA Rev-Exp Region 11'!$AP$37/'MMA Rev-Exp Region 11'!$AP$9, 0)","v":{"v":0,"d":"$0.00"}},{"$f":"IFERROR('MMA Rev-Exp Region 11'!$AQ$37/'MMA Rev-Exp Region 11'!$AQ$9, 0)","v":{"v":0,"d":"$0.00"}},{"$f":"IFERROR('MMA Rev-Exp Region 11'!$AR$37/'MMA Rev-Exp Region 11'!$AR$9, 0)","v":{"v":0,"d":"$0.00"}},{"$f":"IFERROR('MMA Rev-Exp Region 11'!$AS$37/'MMA Rev-Exp Region 11'!$AS$9, 0)","v":{"v":0,"d":"$0.00"}},{"$f":"IFERROR('MMA Rev-Exp Region 11'!$AT$37/'MMA Rev-Exp Region 11'!$AT$9, 0)","v":{"v":0,"d":"$0.00"}},{"$f":"IFERROR('MMA Rev-Exp Region 11'!$AU$37/'MMA Rev-Exp Region 11'!$AU$9, 0)","v":{"v":0,"d":"$0.00"}}]
["MMA",null,null,2016,"2016-12-31","Q4","2017-12-31","Region 11","Operating Expense","Medical Benefits Expense","Maternity Services","4.2.1","Ending IBNP for Maternity Services",{"$f":"IFERROR('MMA Rev-Exp Region 11'!$AK$38/'MMA Rev-Exp Region 11'!$AK$9, 0)","v":{"v":0,"d":"$0.00"}},{"$f":"IFERROR('MMA Rev-Exp Region 11'!$AL$38/'MMA Rev-Exp Region 11'!$AL$9, 0)","v":{"v":0,"d":"$0.00"}},{"$f":"IFERROR('MMA Rev-Exp Region 11'!$AM$38/'MMA Rev-Exp Region 11'!$AM$9, 0)","v":{"v":0,"d":"$0.00"}},{"$f":"IFERROR('MMA Rev-Exp Region 11'!$AN$38/'MMA Rev-Exp Region 11'!$AN$9, 0)","v":{"v":0,"d":"$0.00"}},{"$f":"IFERROR('MMA Rev-Exp Region 11'!$AO$38/'MMA Rev-Exp Region 11'!$AO$9, 0)","v":{"v":0,"d":"$0.00"}},{"$f":"IFERROR('MMA Rev-Exp Region 11'!$AP$38/'MMA Rev-Exp Region 11'!$AP$9, 0)","v":{"v":0,"d":"$0.00"}},{"$f":"IFERROR('MMA Rev-Exp Region 11'!$AQ$38/'MMA Rev-Exp Region 11'!$AQ$9, 0)","v":{"v":0,"d":"$0.00"}},{"$f":"IFERROR('MMA Rev-Exp Region 11'!$AR$38/'MMA Rev-Exp Region 11'!$AR$9, 0)","v":{"v":0,"d":"$0.00"}},{"$f":"IFERROR('MMA Rev-Exp Region 11'!$AS$38/'MMA Rev-Exp Region 11'!$AS$9, 0)","v":{"v":0,"d":"$0.00"}},{"$f":"IFERROR('MMA Rev-Exp Region 11'!$AT$38/'MMA Rev-Exp Region 11'!$AT$9, 0)","v":{"v":0,"d":"$0.00"}},{"$f":"IFERROR('MMA Rev-Exp Region 11'!$AU$38/'MMA Rev-Exp Region 11'!$AU$9, 0)","v":{"v":0,"d":"$0.00"}}]
["MMA",null,null,2016,"2016-12-31","Q4","2017-12-31","Region 11","Operating Expense","Medical Benefits Expense","Maternity Services","4.3.1","Maternity Settlements",{"$f":"IFERROR('MMA Rev-Exp Region 11'!$AK$39/'MMA Rev-Exp Region 11'!$AK$9, 0)","v":{"v":0,"d":"$0.00"}},{"$f":"IFERROR('MMA Rev-Exp Region 11'!$AL$39/'MMA Rev-Exp Region 11'!$AL$9, 0)","v":{"v":0,"d":"$0.00"}},{"$f":"IFERROR('MMA Rev-Exp Region 11'!$AM$39/'MMA Rev-Exp Region 11'!$AM$9, 0)","v":{"v":0,"d":"$0.00"}},{"$f":"IFERROR('MMA Rev-Exp Region 11'!$AN$39/'MMA Rev-Exp Region 11'!$AN$9, 0)","v":{"v":0,"d":"$0.00"}},{"$f":"IFERROR('MMA Rev-Exp Region 11'!$AO$39/'MMA Rev-Exp Region 11'!$AO$9, 0)","v":{"v":0,"d":"$0.00"}},{"$f":"IFERROR('MMA Rev-Exp Region 11'!$AP$39/'MMA Rev-Exp Region 11'!$AP$9, 0)","v":{"v":0,"d":"$0.00"}},{"$f":"IFERROR('MMA Rev-Exp Region 11'!$AQ$39/'MMA Rev-Exp Region 11'!$AQ$9, 0)","v":{"v":0,"d":"$0.00"}},{"$f":"IFERROR('MMA Rev-Exp Region 11'!$AR$39/'MMA Rev-Exp Region 11'!$AR$9, 0)","v":{"v":0,"d":"$0.00"}},{"$f":"IFERROR('MMA Rev-Exp Region 11'!$AS$39/'MMA Rev-Exp Region 11'!$AS$9, 0)","v":{"v":0,"d":"$0.00"}},{"$f":"IFERROR('MMA Rev-Exp Region 11'!$AT$39/'MMA Rev-Exp Region 11'!$AT$9, 0)","v":{"v":0,"d":"$0.00"}},{"$f":"IFERROR('MMA Rev-Exp Region 11'!$AU$39/'MMA Rev-Exp Region 11'!$AU$9, 0)","v":{"v":0,"d":"$0.00"}}]
["MMA",null,null,2016,"2016-12-31","Q4","2017-12-31","Region 11","Operating Expense","Medical Benefits Expense","Mental Health Services",5.1,"Mental Health & Substance Abuse FFS",{"$f":"IFERROR('MMA Rev-Exp Region 11'!$AK$41/'MMA Rev-Exp Region 11'!$AK$9, 0)","v":{"v":0,"d":"$0.00"}},{"$f":"IFERROR('MMA Rev-Exp Region 11'!$AL$41/'MMA Rev-Exp Region 11'!$AL$9, 0)","v":{"v":0,"d":"$0.00"}},{"$f":"IFERROR('MMA Rev-Exp Region 11'!$AM$41/'MMA Rev-Exp Region 11'!$AM$9, 0)","v":{"v":0,"d":"$0.00"}},{"$f":"IFERROR('MMA Rev-Exp Region 11'!$AN$41/'MMA Rev-Exp Region 11'!$AN$9, 0)","v":{"v":0,"d":"$0.00"}},{"$f":"IFERROR('MMA Rev-Exp Region 11'!$AO$41/'MMA Rev-Exp Region 11'!$AO$9, 0)","v":{"v":0,"d":"$0.00"}},{"$f":"IFERROR('MMA Rev-Exp Region 11'!$AP$41/'MMA Rev-Exp Region 11'!$AP$9, 0)","v":{"v":0,"d":"$0.00"}},{"$f":"IFERROR('MMA Rev-Exp Region 11'!$AQ$41/'MMA Rev-Exp Region 11'!$AQ$9, 0)","v":{"v":0,"d":"$0.00"}},{"$f":"IFERROR('MMA Rev-Exp Region 11'!$AR$41/'MMA Rev-Exp Region 11'!$AR$9, 0)","v":{"v":0,"d":"$0.00"}},{"$f":"IFERROR('MMA Rev-Exp Region 11'!$AS$41/'MMA Rev-Exp Region 11'!$AS$9, 0)","v":{"v":0,"d":"$0.00"}},{"$f":"IFERROR('MMA Rev-Exp Region 11'!$AT$41/'MMA Rev-Exp Region 11'!$AT$9, 0)","v":{"v":0,"d":"$0.00"}},{"$f":"IFERROR('MMA Rev-Exp Region 11'!$AU$41/'MMA Rev-Exp Region 11'!$AU$9, 0)","v":{"v":0,"d":"$0.00"}}]
["MMA",null,null,2016,"2016-12-31","Q4","2017-12-31","Region 11","Operating Expense","Medical Benefits Expense","Mental Health Services",5.2,"Mental Health & Substance Abuse Subcapitation",{"$f":"IFERROR('MMA Rev-Exp Region 11'!$AK$42/'MMA Rev-Exp Region 11'!$AK$9, 0)","v":{"v":0,"d":"$0.00"}},{"$f":"IFERROR('MMA Rev-Exp Region 11'!$AL$42/'MMA Rev-Exp Region 11'!$AL$9, 0)","v":{"v":0,"d":"$0.00"}},{"$f":"IFERROR('MMA Rev-Exp Region 11'!$AM$42/'MMA Rev-Exp Region 11'!$AM$9, 0)","v":{"v":0,"d":"$0.00"}},{"$f":"IFERROR('MMA Rev-Exp Region 11'!$AN$42/'MMA Rev-Exp Region 11'!$AN$9, 0)","v":{"v":0,"d":"$0.00"}},{"$f":"IFERROR('MMA Rev-Exp Region 11'!$AO$42/'MMA Rev-Exp Region 11'!$AO$9, 0)","v":{"v":0,"d":"$0.00"}},{"$f":"IFERROR('MMA Rev-Exp Region 11'!$AP$42/'MMA Rev-Exp Region 11'!$AP$9, 0)","v":{"v":0,"d":"$0.00"}},{"$f":"IFERROR('MMA Rev-Exp Region 11'!$AQ$42/'MMA Rev-Exp Region 11'!$AQ$9, 0)","v":{"v":0,"d":"$0.00"}},{"$f":"IFERROR('MMA Rev-Exp Region 11'!$AR$42/'MMA Rev-Exp Region 11'!$AR$9, 0)","v":{"v":0,"d":"$0.00"}},{"$f":"IFERROR('MMA Rev-Exp Region 11'!$AS$42/'MMA Rev-Exp Region 11'!$AS$9, 0)","v":{"v":0,"d":"$0.00"}},{"$f":"IFERROR('MMA Rev-Exp Region 11'!$AT$42/'MMA Rev-Exp Region 11'!$AT$9, 0)","v":{"v":0,"d":"$0.00"}},{"$f":"IFERROR('MMA Rev-Exp Region 11'!$AU$42/'MMA Rev-Exp Region 11'!$AU$9, 0)","v":{"v":0,"d":"$0.00"}}]
["MMA",null,null,2016,"2016-12-31","Q4","2017-12-31","Region 11","Operating Expense","Medical Benefits Expense","Mental Health Services",5.3,"Ending IBNP for Mental Health & Substance Abuse",{"$f":"IFERROR('MMA Rev-Exp Region 11'!$AK$43/'MMA Rev-Exp Region 11'!$AK$9, 0)","v":{"v":0,"d":"$0.00"}},{"$f":"IFERROR('MMA Rev-Exp Region 11'!$AL$43/'MMA Rev-Exp Region 11'!$AL$9, 0)","v":{"v":0,"d":"$0.00"}},{"$f":"IFERROR('MMA Rev-Exp Region 11'!$AM$43/'MMA Rev-Exp Region 11'!$AM$9, 0)","v":{"v":0,"d":"$0.00"}},{"$f":"IFERROR('MMA Rev-Exp Region 11'!$AN$43/'MMA Rev-Exp Region 11'!$AN$9, 0)","v":{"v":0,"d":"$0.00"}},{"$f":"IFERROR('MMA Rev-Exp Region 11'!$AO$43/'MMA Rev-Exp Region 11'!$AO$9, 0)","v":{"v":0,"d":"$0.00"}},{"$f":"IFERROR('MMA Rev-Exp Region 11'!$AP$43/'MMA Rev-Exp Region 11'!$AP$9, 0)","v":{"v":0,"d":"$0.00"}},{"$f":"IFERROR('MMA Rev-Exp Region 11'!$AQ$43/'MMA Rev-Exp Region 11'!$AQ$9, 0)","v":{"v":0,"d":"$0.00"}},{"$f":"IFERROR('MMA Rev-Exp Region 11'!$AR$43/'MMA Rev-Exp Region 11'!$AR$9, 0)","v":{"v":0,"d":"$0.00"}},{"$f":"IFERROR('MMA Rev-Exp Region 11'!$AS$43/'MMA Rev-Exp Region 11'!$AS$9, 0)","v":{"v":0,"d":"$0.00"}},{"$f":"IFERROR('MMA Rev-Exp Region 11'!$AT$43/'MMA Rev-Exp Region 11'!$AT$9, 0)","v":{"v":0,"d":"$0.00"}},{"$f":"IFERROR('MMA Rev-Exp Region 11'!$AU$43/'MMA Rev-Exp Region 11'!$AU$9, 0)","v":{"v":0,"d":"$0.00"}}]
["MMA",null,null,2016,"2016-12-31","Q4","2017-12-31","Region 11","Operating Expense","Medical Benefits Expense","Mental Health Services","5.4","Mental Health Settlements",{"$f":"IFERROR('MMA Rev-Exp Region 11'!$AK$44/'MMA Rev-Exp Region 11'!$AK$9, 0)","v":{"v":0,"d":"$0.00"}},{"$f":"IFERROR('MMA Rev-Exp Region 11'!$AL$44/'MMA Rev-Exp Region 11'!$AL$9, 0)","v":{"v":0,"d":"$0.00"}},{"$f":"IFERROR('MMA Rev-Exp Region 11'!$AM$44/'MMA Rev-Exp Region 11'!$AM$9, 0)","v":{"v":0,"d":"$0.00"}},{"$f":"IFERROR('MMA Rev-Exp Region 11'!$AN$44/'MMA Rev-Exp Region 11'!$AN$9, 0)","v":{"v":0,"d":"$0.00"}},{"$f":"IFERROR('MMA Rev-Exp Region 11'!$AO$44/'MMA Rev-Exp Region 11'!$AO$9, 0)","v":{"v":0,"d":"$0.00"}},{"$f":"IFERROR('MMA Rev-Exp Region 11'!$AP$44/'MMA Rev-Exp Region 11'!$AP$9, 0)","v":{"v":0,"d":"$0.00"}},{"$f":"IFERROR('MMA Rev-Exp Region 11'!$AQ$44/'MMA Rev-Exp Region 11'!$AQ$9, 0)","v":{"v":0,"d":"$0.00"}},{"$f":"IFERROR('MMA Rev-Exp Region 11'!$AR$44/'MMA Rev-Exp Region 11'!$AR$9, 0)","v":{"v":0,"d":"$0.00"}},{"$f":"IFERROR('MMA Rev-Exp Region 11'!$AS$44/'MMA Rev-Exp Region 11'!$AS$9, 0)","v":{"v":0,"d":"$0.00"}},{"$f":"IFERROR('MMA Rev-Exp Region 11'!$AT$44/'MMA Rev-Exp Region 11'!$AT$9, 0)","v":{"v":0,"d":"$0.00"}},{"$f":"IFERROR('MMA Rev-Exp Region 11'!$AU$44/'MMA Rev-Exp Region 11'!$AU$9, 0)","v":{"v":0,"d":"$0.00"}}]
["MMA",null,null,2016,"2016-12-31","Q4","2017-12-31","Region 11","Operating Expense","Medical Benefits Expense","Dental Services",6.1,"Dental FFS",{"$f":"IFERROR('MMA Rev-Exp Region 11'!$AK$46/'MMA Rev-Exp Region 11'!$AK$9, 0)","v":{"v":0,"d":"$0.00"}},{"$f":"IFERROR('MMA Rev-Exp Region 11'!$AL$46/'MMA Rev-Exp Region 11'!$AL$9, 0)","v":{"v":0,"d":"$0.00"}},{"$f":"IFERROR('MMA Rev-Exp Region 11'!$AM$46/'MMA Rev-Exp Region 11'!$AM$9, 0)","v":{"v":0,"d":"$0.00"}},{"$f":"IFERROR('MMA Rev-Exp Region 11'!$AN$46/'MMA Rev-Exp Region 11'!$AN$9, 0)","v":{"v":0,"d":"$0.00"}},{"$f":"IFERROR('MMA Rev-Exp Region 11'!$AO$46/'MMA Rev-Exp Region 11'!$AO$9, 0)","v":{"v":0,"d":"$0.00"}},{"$f":"IFERROR('MMA Rev-Exp Region 11'!$AP$46/'MMA Rev-Exp Region 11'!$AP$9, 0)","v":{"v":0,"d":"$0.00"}},{"$f":"IFERROR('MMA Rev-Exp Region 11'!$AQ$46/'MMA Rev-Exp Region 11'!$AQ$9, 0)","v":{"v":0,"d":"$0.00"}},{"$f":"IFERROR('MMA Rev-Exp Region 11'!$AR$46/'MMA Rev-Exp Region 11'!$AR$9, 0)","v":{"v":0,"d":"$0.00"}},{"$f":"IFERROR('MMA Rev-Exp Region 11'!$AS$46/'MMA Rev-Exp Region 11'!$AS$9, 0)","v":{"v":0,"d":"$0.00"}},{"$f":"IFERROR('MMA Rev-Exp Region 11'!$AT$46/'MMA Rev-Exp Region 11'!$AT$9, 0)","v":{"v":0,"d":"$0.00"}},{"$f":"IFERROR('MMA Rev-Exp Region 11'!$AU$46/'MMA Rev-Exp Region 11'!$AU$9, 0)","v":{"v":0,"d":"$0.00"}}]
["MMA",null,null,2016,"2016-12-31","Q4","2017-12-31","Region 11","Operating Expense","Medical Benefits Expense","Dental Services",6.2,"Dental Subcapitation",{"$f":"IFERROR('MMA Rev-Exp Region 11'!$AK$47/'MMA Rev-Exp Region 11'!$AK$9, 0)","v":{"v":0,"d":"$0.00"}},{"$f":"IFERROR('MMA Rev-Exp Region 11'!$AL$47/'MMA Rev-Exp Region 11'!$AL$9, 0)","v":{"v":0,"d":"$0.00"}},{"$f":"IFERROR('MMA Rev-Exp Region 11'!$AM$47/'MMA Rev-Exp Region 11'!$AM$9, 0)","v":{"v":0,"d":"$0.00"}},{"$f":"IFERROR('MMA Rev-Exp Region 11'!$AN$47/'MMA Rev-Exp Region 11'!$AN$9, 0)","v":{"v":0,"d":"$0.00"}},{"$f":"IFERROR('MMA Rev-Exp Region 11'!$AO$47/'MMA Rev-Exp Region 11'!$AO$9, 0)","v":{"v":0,"d":"$0.00"}},{"$f":"IFERROR('MMA Rev-Exp Region 11'!$AP$47/'MMA Rev-Exp Region 11'!$AP$9, 0)","v":{"v":0,"d":"$0.00"}},{"$f":"IFERROR('MMA Rev-Exp Region 11'!$AQ$47/'MMA Rev-Exp Region 11'!$AQ$9, 0)","v":{"v":0,"d":"$0.00"}},{"$f":"IFERROR('MMA Rev-Exp Region 11'!$AR$47/'MMA Rev-Exp Region 11'!$AR$9, 0)","v":{"v":0,"d":"$0.00"}},{"$f":"IFERROR('MMA Rev-Exp Region 11'!$AS$47/'MMA Rev-Exp Region 11'!$AS$9, 0)","v":{"v":0,"d":"$0.00"}},{"$f":"IFERROR('MMA Rev-Exp Region 11'!$AT$47/'MMA Rev-Exp Region 11'!$AT$9, 0)","v":{"v":0,"d":"$0.00"}},{"$f":"IFERROR('MMA Rev-Exp Region 11'!$AU$47/'MMA Rev-Exp Region 11'!$AU$9, 0)","v":{"v":0,"d":"$0.00"}}]
["MMA",null,null,2016,"2016-12-31","Q4","2017-12-31","Region 11","Operating Expense","Medical Benefits Expense","Dental Services",6.3,"Ending IBNP for Dental Services",{"$f":"IFERROR('MMA Rev-Exp Region 11'!$AK$48/'MMA Rev-Exp Region 11'!$AK$9, 0)","v":{"v":0,"d":"$0.00"}},{"$f":"IFERROR('MMA Rev-Exp Region 11'!$AL$48/'MMA Rev-Exp Region 11'!$AL$9, 0)","v":{"v":0,"d":"$0.00"}},{"$f":"IFERROR('MMA Rev-Exp Region 11'!$AM$48/'MMA Rev-Exp Region 11'!$AM$9, 0)","v":{"v":0,"d":"$0.00"}},{"$f":"IFERROR('MMA Rev-Exp Region 11'!$AN$48/'MMA Rev-Exp Region 11'!$AN$9, 0)","v":{"v":0,"d":"$0.00"}},{"$f":"IFERROR('MMA Rev-Exp Region 11'!$AO$48/'MMA Rev-Exp Region 11'!$AO$9, 0)","v":{"v":0,"d":"$0.00"}},{"$f":"IFERROR('MMA Rev-Exp Region 11'!$AP$48/'MMA Rev-Exp Region 11'!$AP$9, 0)","v":{"v":0,"d":"$0.00"}},{"$f":"IFERROR('MMA Rev-Exp Region 11'!$AQ$48/'MMA Rev-Exp Region 11'!$AQ$9, 0)","v":{"v":0,"d":"$0.00"}},{"$f":"IFERROR('MMA Rev-Exp Region 11'!$AR$48/'MMA Rev-Exp Region 11'!$AR$9, 0)","v":{"v":0,"d":"$0.00"}},{"$f":"IFERROR('MMA Rev-Exp Region 11'!$AS$48/'MMA Rev-Exp Region 11'!$AS$9, 0)","v":{"v":0,"d":"$0.00"}},{"$f":"IFERROR('MMA Rev-Exp Region 11'!$AT$48/'MMA Rev-Exp Region 11'!$AT$9, 0)","v":{"v":0,"d":"$0.00"}},{"$f":"IFERROR('MMA Rev-Exp Region 11'!$AU$48/'MMA Rev-Exp Region 11'!$AU$9, 0)","v":{"v":0,"d":"$0.00"}}]
["MMA",null,null,2016,"2016-12-31","Q4","2017-12-31","Region 11","Operating Expense","Medical Benefits Expense","Dental Services","6.4","Dental Settlements",{"$f":"IFERROR('MMA Rev-Exp Region 11'!$AK$49/'MMA Rev-Exp Region 11'!$AK$9, 0)","v":{"v":0,"d":"$0.00"}},{"$f":"IFERROR('MMA Rev-Exp Region 11'!$AL$49/'MMA Rev-Exp Region 11'!$AL$9, 0)","v":{"v":0,"d":"$0.00"}},{"$f":"IFERROR('MMA Rev-Exp Region 11'!$AM$49/'MMA Rev-Exp Region 11'!$AM$9, 0)","v":{"v":0,"d":"$0.00"}},{"$f":"IFERROR('MMA Rev-Exp Region 11'!$AN$49/'MMA Rev-Exp Region 11'!$AN$9, 0)","v":{"v":0,"d":"$0.00"}},{"$f":"IFERROR('MMA Rev-Exp Region 11'!$AO$49/'MMA Rev-Exp Region 11'!$AO$9, 0)","v":{"v":0,"d":"$0.00"}},{"$f":"IFERROR('MMA Rev-Exp Region 11'!$AP$49/'MMA Rev-Exp Region 11'!$AP$9, 0)","v":{"v":0,"d":"$0.00"}},{"$f":"IFERROR('MMA Rev-Exp Region 11'!$AQ$49/'MMA Rev-Exp Region 11'!$AQ$9, 0)","v":{"v":0,"d":"$0.00"}},{"$f":"IFERROR('MMA Rev-Exp Region 11'!$AR$49/'MMA Rev-Exp Region 11'!$AR$9, 0)","v":{"v":0,"d":"$0.00"}},{"$f":"IFERROR('MMA Rev-Exp Region 11'!$AS$49/'MMA Rev-Exp Region 11'!$AS$9, 0)","v":{"v":0,"d":"$0.00"}},{"$f":"IFERROR('MMA Rev-Exp Region 11'!$AT$49/'MMA Rev-Exp Region 11'!$AT$9, 0)","v":{"v":0,"d":"$0.00"}},{"$f":"IFERROR('MMA Rev-Exp Region 11'!$AU$49/'MMA Rev-Exp Region 11'!$AU$9, 0)","v":{"v":0,"d":"$0.00"}}]
["MMA",null,null,2016,"2016-12-31","Q4","2017-12-31","Region 11","Operating Expense","Medical Benefits Expense","Transportation Services",7.1,"Transportation FFS",{"$f":"IFERROR('MMA Rev-Exp Region 11'!$AK$51/'MMA Rev-Exp Region 11'!$AK$9, 0)","v":{"v":0,"d":"$0.00"}},{"$f":"IFERROR('MMA Rev-Exp Region 11'!$AL$51/'MMA Rev-Exp Region 11'!$AL$9, 0)","v":{"v":0,"d":"$0.00"}},{"$f":"IFERROR('MMA Rev-Exp Region 11'!$AM$51/'MMA Rev-Exp Region 11'!$AM$9, 0)","v":{"v":0,"d":"$0.00"}},{"$f":"IFERROR('MMA Rev-Exp Region 11'!$AN$51/'MMA Rev-Exp Region 11'!$AN$9, 0)","v":{"v":0,"d":"$0.00"}},{"$f":"IFERROR('MMA Rev-Exp Region 11'!$AO$51/'MMA Rev-Exp Region 11'!$AO$9, 0)","v":{"v":0,"d":"$0.00"}},{"$f":"IFERROR('MMA Rev-Exp Region 11'!$AP$51/'MMA Rev-Exp Region 11'!$AP$9, 0)","v":{"v":0,"d":"$0.00"}},{"$f":"IFERROR('MMA Rev-Exp Region 11'!$AQ$51/'MMA Rev-Exp Region 11'!$AQ$9, 0)","v":{"v":0,"d":"$0.00"}},{"$f":"IFERROR('MMA Rev-Exp Region 11'!$AR$51/'MMA Rev-Exp Region 11'!$AR$9, 0)","v":{"v":0,"d":"$0.00"}},{"$f":"IFERROR('MMA Rev-Exp Region 11'!$AS$51/'MMA Rev-Exp Region 11'!$AS$9, 0)","v":{"v":0,"d":"$0.00"}},{"$f":"IFERROR('MMA Rev-Exp Region 11'!$AT$51/'MMA Rev-Exp Region 11'!$AT$9, 0)","v":{"v":0,"d":"$0.00"}},{"$f":"IFERROR('MMA Rev-Exp Region 11'!$AU$51/'MMA Rev-Exp Region 11'!$AU$9, 0)","v":{"v":0,"d":"$0.00"}}]
["MMA",null,null,2016,"2016-12-31","Q4","2017-12-31","Region 11","Operating Expense","Medical Benefits Expense","Transportation Services",7.2,"Transportation Subcapitation",{"$f":"IFERROR('MMA Rev-Exp Region 11'!$AK$52/'MMA Rev-Exp Region 11'!$AK$9, 0)","v":{"v":0,"d":"$0.00"}},{"$f":"IFERROR('MMA Rev-Exp Region 11'!$AL$52/'MMA Rev-Exp Region 11'!$AL$9, 0)","v":{"v":0,"d":"$0.00"}},{"$f":"IFERROR('MMA Rev-Exp Region 11'!$AM$52/'MMA Rev-Exp Region 11'!$AM$9, 0)","v":{"v":0,"d":"$0.00"}},{"$f":"IFERROR('MMA Rev-Exp Region 11'!$AN$52/'MMA Rev-Exp Region 11'!$AN$9, 0)","v":{"v":0,"d":"$0.00"}},{"$f":"IFERROR('MMA Rev-Exp Region 11'!$AO$52/'MMA Rev-Exp Region 11'!$AO$9, 0)","v":{"v":0,"d":"$0.00"}},{"$f":"IFERROR('MMA Rev-Exp Region 11'!$AP$52/'MMA Rev-Exp Region 11'!$AP$9, 0)","v":{"v":0,"d":"$0.00"}},{"$f":"IFERROR('MMA Rev-Exp Region 11'!$AQ$52/'MMA Rev-Exp Region 11'!$AQ$9, 0)","v":{"v":0,"d":"$0.00"}},{"$f":"IFERROR('MMA Rev-Exp Region 11'!$AR$52/'MMA Rev-Exp Region 11'!$AR$9, 0)","v":{"v":0,"d":"$0.00"}},{"$f":"IFERROR('MMA Rev-Exp Region 11'!$AS$52/'MMA Rev-Exp Region 11'!$AS$9, 0)","v":{"v":0,"d":"$0.00"}},{"$f":"IFERROR('MMA Rev-Exp Region 11'!$AT$52/'MMA Rev-Exp Region 11'!$AT$9, 0)","v":{"v":0,"d":"$0.00"}},{"$f":"IFERROR('MMA Rev-Exp Region 11'!$AU$52/'MMA Rev-Exp Region 11'!$AU$9, 0)","v":{"v":0,"d":"$0.00"}}]
["MMA",null,null,2016,"2016-12-31","Q4","2017-12-31","Region 11","Operating Expense","Medical Benefits Expense","Transportation Services",7.3,"Ending IBNP for Transportation",{"$f":"IFERROR('MMA Rev-Exp Region 11'!$AK$53/'MMA Rev-Exp Region 11'!$AK$9, 0)","v":{"v":0,"d":"$0.00"}},{"$f":"IFERROR('MMA Rev-Exp Region 11'!$AL$53/'MMA Rev-Exp Region 11'!$AL$9, 0)","v":{"v":0,"d":"$0.00"}},{"$f":"IFERROR('MMA Rev-Exp Region 11'!$AM$53/'MMA Rev-Exp Region 11'!$AM$9, 0)","v":{"v":0,"d":"$0.00"}},{"$f":"IFERROR('MMA Rev-Exp Region 11'!$AN$53/'MMA Rev-Exp Region 11'!$AN$9, 0)","v":{"v":0,"d":"$0.00"}},{"$f":"IFERROR('MMA Rev-Exp Region 11'!$AO$53/'MMA Rev-Exp Region 11'!$AO$9, 0)","v":{"v":0,"d":"$0.00"}},{"$f":"IFERROR('MMA Rev-Exp Region 11'!$AP$53/'MMA Rev-Exp Region 11'!$AP$9, 0)","v":{"v":0,"d":"$0.00"}},{"$f":"IFERROR('MMA Rev-Exp Region 11'!$AQ$53/'MMA Rev-Exp Region 11'!$AQ$9, 0)","v":{"v":0,"d":"$0.00"}},{"$f":"IFERROR('MMA Rev-Exp Region 11'!$AR$53/'MMA Rev-Exp Region 11'!$AR$9, 0)","v":{"v":0,"d":"$0.00"}},{"$f":"IFERROR('MMA Rev-Exp Region 11'!$AS$53/'MMA Rev-Exp Region 11'!$AS$9, 0)","v":{"v":0,"d":"$0.00"}},{"$f":"IFERROR('MMA Rev-Exp Region 11'!$AT$53/'MMA Rev-Exp Region 11'!$AT$9, 0)","v":{"v":0,"d":"$0.00"}},{"$f":"IFERROR('MMA Rev-Exp Region 11'!$AU$53/'MMA Rev-Exp Region 11'!$AU$9, 0)","v":{"v":0,"d":"$0.00"}}]
["MMA",null,null,2016,"2016-12-31","Q4","2017-12-31","Region 11","Operating Expense","Medical Benefits Expense","Transportation Services","7.4","Transportation Settlements",{"$f":"IFERROR('MMA Rev-Exp Region 11'!$AK$54/'MMA Rev-Exp Region 11'!$AK$9, 0)","v":{"v":0,"d":"$0.00"}},{"$f":"IFERROR('MMA Rev-Exp Region 11'!$AL$54/'MMA Rev-Exp Region 11'!$AL$9, 0)","v":{"v":0,"d":"$0.00"}},{"$f":"IFERROR('MMA Rev-Exp Region 11'!$AM$54/'MMA Rev-Exp Region 11'!$AM$9, 0)","v":{"v":0,"d":"$0.00"}},{"$f":"IFERROR('MMA Rev-Exp Region 11'!$AN$54/'MMA Rev-Exp Region 11'!$AN$9, 0)","v":{"v":0,"d":"$0.00"}},{"$f":"IFERROR('MMA Rev-Exp Region 11'!$AO$54/'MMA Rev-Exp Region 11'!$AO$9, 0)","v":{"v":0,"d":"$0.00"}},{"$f":"IFERROR('MMA Rev-Exp Region 11'!$AP$54/'MMA Rev-Exp Region 11'!$AP$9, 0)","v":{"v":0,"d":"$0.00"}},{"$f":"IFERROR('MMA Rev-Exp Region 11'!$AQ$54/'MMA Rev-Exp Region 11'!$AQ$9, 0)","v":{"v":0,"d":"$0.00"}},{"$f":"IFERROR('MMA Rev-Exp Region 11'!$AR$54/'MMA Rev-Exp Region 11'!$AR$9, 0)","v":{"v":0,"d":"$0.00"}},{"$f":"IFERROR('MMA Rev-Exp Region 11'!$AS$54/'MMA Rev-Exp Region 11'!$AS$9, 0)","v":{"v":0,"d":"$0.00"}},{"$f":"IFERROR('MMA Rev-Exp Region 11'!$AT$54/'MMA Rev-Exp Region 11'!$AT$9, 0)","v":{"v":0,"d":"$0.00"}},{"$f":"IFERROR('MMA Rev-Exp Region 11'!$AU$54/'MMA Rev-Exp Region 11'!$AU$9, 0)","v":{"v":0,"d":"$0.00"}}]
["MMA",null,null,2016,"2016-12-31","Q4","2017-12-31","Region 11","Operating Expense","Medical Benefits Expense","Pharmacy Services",8.1,"Prescription Drugs FFS",{"$f":"IFERROR('MMA Rev-Exp Region 11'!$AK$56/'MMA Rev-Exp Region 11'!$AK$9, 0)","v":{"v":0,"d":"$0.00"}},{"$f":"IFERROR('MMA Rev-Exp Region 11'!$AL$56/'MMA Rev-Exp Region 11'!$AL$9, 0)","v":{"v":0,"d":"$0.00"}},{"$f":"IFERROR('MMA Rev-Exp Region 11'!$AM$56/'MMA Rev-Exp Region 11'!$AM$9, 0)","v":{"v":0,"d":"$0.00"}},{"$f":"IFERROR('MMA Rev-Exp Region 11'!$AN$56/'MMA Rev-Exp Region 11'!$AN$9, 0)","v":{"v":0,"d":"$0.00"}},{"$f":"IFERROR('MMA Rev-Exp Region 11'!$AO$56/'MMA Rev-Exp Region 11'!$AO$9, 0)","v":{"v":0,"d":"$0.00"}},{"$f":"IFERROR('MMA Rev-Exp Region 11'!$AP$56/'MMA Rev-Exp Region 11'!$AP$9, 0)","v":{"v":0,"d":"$0.00"}},{"$f":"IFERROR('MMA Rev-Exp Region 11'!$AQ$56/'MMA Rev-Exp Region 11'!$AQ$9, 0)","v":{"v":0,"d":"$0.00"}},{"$f":"IFERROR('MMA Rev-Exp Region 11'!$AR$56/'MMA Rev-Exp Region 11'!$AR$9, 0)","v":{"v":0,"d":"$0.00"}},{"$f":"IFERROR('MMA Rev-Exp Region 11'!$AS$56/'MMA Rev-Exp Region 11'!$AS$9, 0)","v":{"v":0,"d":"$0.00"}},{"$f":"IFERROR('MMA Rev-Exp Region 11'!$AT$56/'MMA Rev-Exp Region 11'!$AT$9, 0)","v":{"v":0,"d":"$0.00"}},{"$f":"IFERROR('MMA Rev-Exp Region 11'!$AU$56/'MMA Rev-Exp Region 11'!$AU$9, 0)","v":{"v":0,"d":"$0.00"}}]
["MMA",null,null,2016,"2016-12-31","Q4","2017-12-31","Region 11","Operating Expense","Medical Benefits Expense","Pharmacy Services","8.2","Hepatitis C Prescription Drug FFS",{"$f":"IFERROR('MMA Rev-Exp Region 11'!$AK$57/'MMA Rev-Exp Region 11'!$AK$9, 0)","v":{"v":0,"d":"$0.00"}},{"$f":"IFERROR('MMA Rev-Exp Region 11'!$AL$57/'MMA Rev-Exp Region 11'!$AL$9, 0)","v":{"v":0,"d":"$0.00"}},{"$f":"IFERROR('MMA Rev-Exp Region 11'!$AM$57/'MMA Rev-Exp Region 11'!$AM$9, 0)","v":{"v":0,"d":"$0.00"}},{"$f":"IFERROR('MMA Rev-Exp Region 11'!$AN$57/'MMA Rev-Exp Region 11'!$AN$9, 0)","v":{"v":0,"d":"$0.00"}},{"$f":"IFERROR('MMA Rev-Exp Region 11'!$AO$57/'MMA Rev-Exp Region 11'!$AO$9, 0)","v":{"v":0,"d":"$0.00"}},{"$f":"IFERROR('MMA Rev-Exp Region 11'!$AP$57/'MMA Rev-Exp Region 11'!$AP$9, 0)","v":{"v":0,"d":"$0.00"}},{"$f":"IFERROR('MMA Rev-Exp Region 11'!$AQ$57/'MMA Rev-Exp Region 11'!$AQ$9, 0)","v":{"v":0,"d":"$0.00"}},{"$f":"IFERROR('MMA Rev-Exp Region 11'!$AR$57/'MMA Rev-Exp Region 11'!$AR$9, 0)","v":{"v":0,"d":"$0.00"}},{"$f":"IFERROR('MMA Rev-Exp Region 11'!$AS$57/'MMA Rev-Exp Region 11'!$AS$9, 0)","v":{"v":0,"d":"$0.00"}},{"$f":"IFERROR('MMA Rev-Exp Region 11'!$AT$57/'MMA Rev-Exp Region 11'!$AT$9, 0)","v":{"v":0,"d":"$0.00"}},{"$f":"IFERROR('MMA Rev-Exp Region 11'!$AU$57/'MMA Rev-Exp Region 11'!$AU$9, 0)","v":{"v":0,"d":"$0.00"}}]
["MMA",null,null,2016,"2016-12-31","Q4","2017-12-31","Region 11","Operating Expense","Medical Benefits Expense","Pharmacy Services","8.3","Ending IBNP for Prescription Drugs",{"$f":"IFERROR('MMA Rev-Exp Region 11'!$AK$58/'MMA Rev-Exp Region 11'!$AK$9, 0)","v":{"v":0,"d":"$0.00"}},{"$f":"IFERROR('MMA Rev-Exp Region 11'!$AL$58/'MMA Rev-Exp Region 11'!$AL$9, 0)","v":{"v":0,"d":"$0.00"}},{"$f":"IFERROR('MMA Rev-Exp Region 11'!$AM$58/'MMA Rev-Exp Region 11'!$AM$9, 0)","v":{"v":0,"d":"$0.00"}},{"$f":"IFERROR('MMA Rev-Exp Region 11'!$AN$58/'MMA Rev-Exp Region 11'!$AN$9, 0)","v":{"v":0,"d":"$0.00"}},{"$f":"IFERROR('MMA Rev-Exp Region 11'!$AO$58/'MMA Rev-Exp Region 11'!$AO$9, 0)","v":{"v":0,"d":"$0.00"}},{"$f":"IFERROR('MMA Rev-Exp Region 11'!$AP$58/'MMA Rev-Exp Region 11'!$AP$9, 0)","v":{"v":0,"d":"$0.00"}},{"$f":"IFERROR('MMA Rev-Exp Region 11'!$AQ$58/'MMA Rev-Exp Region 11'!$AQ$9, 0)","v":{"v":0,"d":"$0.00"}},{"$f":"IFERROR('MMA Rev-Exp Region 11'!$AR$58/'MMA Rev-Exp Region 11'!$AR$9, 0)","v":{"v":0,"d":"$0.00"}},{"$f":"IFERROR('MMA Rev-Exp Region 11'!$AS$58/'MMA Rev-Exp Region 11'!$AS$9, 0)","v":{"v":0,"d":"$0.00"}},{"$f":"IFERROR('MMA Rev-Exp Region 11'!$AT$58/'MMA Rev-Exp Region 11'!$AT$9, 0)","v":{"v":0,"d":"$0.00"}},{"$f":"IFERROR('MMA Rev-Exp Region 11'!$AU$58/'MMA Rev-Exp Region 11'!$AU$9, 0)","v":{"v":0,"d":"$0.00"}}]
["MMA",null,null,2016,"2016-12-31","Q4","2017-12-31","Region 11","Operating Expense","Medical Benefits Expense","Pharmacy Services","8.4","Prescription Drug Rebates ",{"$f":"IFERROR('MMA Rev-Exp Region 11'!$AK$59/'MMA Rev-Exp Region 11'!$AK$9, 0)","v":{"v":0,"d":"$0.00"}},{"$f":"IFERROR('MMA Rev-Exp Region 11'!$AL$59/'MMA Rev-Exp Region 11'!$AL$9, 0)","v":{"v":0,"d":"$0.00"}},{"$f":"IFERROR('MMA Rev-Exp Region 11'!$AM$59/'MMA Rev-Exp Region 11'!$AM$9, 0)","v":{"v":0,"d":"$0.00"}},{"$f":"IFERROR('MMA Rev-Exp Region 11'!$AN$59/'MMA Rev-Exp Region 11'!$AN$9, 0)","v":{"v":0,"d":"$0.00"}},{"$f":"IFERROR('MMA Rev-Exp Region 11'!$AO$59/'MMA Rev-Exp Region 11'!$AO$9, 0)","v":{"v":0,"d":"$0.00"}},{"$f":"IFERROR('MMA Rev-Exp Region 11'!$AP$59/'MMA Rev-Exp Region 11'!$AP$9, 0)","v":{"v":0,"d":"$0.00"}},{"$f":"IFERROR('MMA Rev-Exp Region 11'!$AQ$59/'MMA Rev-Exp Region 11'!$AQ$9, 0)","v":{"v":0,"d":"$0.00"}},{"$f":"IFERROR('MMA Rev-Exp Region 11'!$AR$59/'MMA Rev-Exp Region 11'!$AR$9, 0)","v":{"v":0,"d":"$0.00"}},{"$f":"IFERROR('MMA Rev-Exp Region 11'!$AS$59/'MMA Rev-Exp Region 11'!$AS$9, 0)","v":{"v":0,"d":"$0.00"}},{"$f":"IFERROR('MMA Rev-Exp Region 11'!$AT$59/'MMA Rev-Exp Region 11'!$AT$9, 0)","v":{"v":0,"d":"$0.00"}},{"$f":"IFERROR('MMA Rev-Exp Region 11'!$AU$59/'MMA Rev-Exp Region 11'!$AU$9, 0)","v":{"v":0,"d":"$0.00"}}]
["MMA",null,null,2016,"2016-12-31","Q4","2017-12-31","Region 11","Operating Expense","Medical Benefits Expense","Pharmacy Services","8.5","Ending accrual for Rebates receivable",{"$f":"IFERROR('MMA Rev-Exp Region 11'!$AK$60/'MMA Rev-Exp Region 11'!$AK$9, 0)","v":{"v":0,"d":"$0.00"}},{"$f":"IFERROR('MMA Rev-Exp Region 11'!$AL$60/'MMA Rev-Exp Region 11'!$AL$9, 0)","v":{"v":0,"d":"$0.00"}},{"$f":"IFERROR('MMA Rev-Exp Region 11'!$AM$60/'MMA Rev-Exp Region 11'!$AM$9, 0)","v":{"v":0,"d":"$0.00"}},{"$f":"IFERROR('MMA Rev-Exp Region 11'!$AN$60/'MMA Rev-Exp Region 11'!$AN$9, 0)","v":{"v":0,"d":"$0.00"}},{"$f":"IFERROR('MMA Rev-Exp Region 11'!$AO$60/'MMA Rev-Exp Region 11'!$AO$9, 0)","v":{"v":0,"d":"$0.00"}},{"$f":"IFERROR('MMA Rev-Exp Region 11'!$AP$60/'MMA Rev-Exp Region 11'!$AP$9, 0)","v":{"v":0,"d":"$0.00"}},{"$f":"IFERROR('MMA Rev-Exp Region 11'!$AQ$60/'MMA Rev-Exp Region 11'!$AQ$9, 0)","v":{"v":0,"d":"$0.00"}},{"$f":"IFERROR('MMA Rev-Exp Region 11'!$AR$60/'MMA Rev-Exp Region 11'!$AR$9, 0)","v":{"v":0,"d":"$0.00"}},{"$f":"IFERROR('MMA Rev-Exp Region 11'!$AS$60/'MMA Rev-Exp Region 11'!$AS$9, 0)","v":{"v":0,"d":"$0.00"}},{"$f":"IFERROR('MMA Rev-Exp Region 11'!$AT$60/'MMA Rev-Exp Region 11'!$AT$9, 0)","v":{"v":0,"d":"$0.00"}},{"$f":"IFERROR('MMA Rev-Exp Region 11'!$AU$60/'MMA Rev-Exp Region 11'!$AU$9, 0)","v":{"v":0,"d":"$0.00"}}]
["MMA",null,null,2016,"2016-12-31","Q4","2017-12-31","Region 11","Operating Expense","Medical Benefits Expense","Pharmacy Services","8.6","Prescription Drugs Subcapitation",{"$f":"IFERROR('MMA Rev-Exp Region 11'!$AK$61/'MMA Rev-Exp Region 11'!$AK$9, 0)","v":{"v":0,"d":"$0.00"}},{"$f":"IFERROR('MMA Rev-Exp Region 11'!$AL$61/'MMA Rev-Exp Region 11'!$AL$9, 0)","v":{"v":0,"d":"$0.00"}},{"$f":"IFERROR('MMA Rev-Exp Region 11'!$AM$61/'MMA Rev-Exp Region 11'!$AM$9, 0)","v":{"v":0,"d":"$0.00"}},{"$f":"IFERROR('MMA Rev-Exp Region 11'!$AN$61/'MMA Rev-Exp Region 11'!$AN$9, 0)","v":{"v":0,"d":"$0.00"}},{"$f":"IFERROR('MMA Rev-Exp Region 11'!$AO$61/'MMA Rev-Exp Region 11'!$AO$9, 0)","v":{"v":0,"d":"$0.00"}},{"$f":"IFERROR('MMA Rev-Exp Region 11'!$AP$61/'MMA Rev-Exp Region 11'!$AP$9, 0)","v":{"v":0,"d":"$0.00"}},{"$f":"IFERROR('MMA Rev-Exp Region 11'!$AQ$61/'MMA Rev-Exp Region 11'!$AQ$9, 0)","v":{"v":0,"d":"$0.00"}},{"$f":"IFERROR('MMA Rev-Exp Region 11'!$AR$61/'MMA Rev-Exp Region 11'!$AR$9, 0)","v":{"v":0,"d":"$0.00"}},{"$f":"IFERROR('MMA Rev-Exp Region 11'!$AS$61/'MMA Rev-Exp Region 11'!$AS$9, 0)","v":{"v":0,"d":"$0.00"}},{"$f":"IFERROR('MMA Rev-Exp Region 11'!$AT$61/'MMA Rev-Exp Region 11'!$AT$9, 0)","v":{"v":0,"d":"$0.00"}},{"$f":"IFERROR('MMA Rev-Exp Region 11'!$AU$61/'MMA Rev-Exp Region 11'!$AU$9, 0)","v":{"v":0,"d":"$0.00"}}]
["MMA",null,null,2016,"2016-12-31","Q4","2017-12-31","Region 11","Operating Expense","Medical Benefits Expense","Pharmacy Services","8.7","Prescription Drug Settlements",{"$f":"IFERROR('MMA Rev-Exp Region 11'!$AK$62/'MMA Rev-Exp Region 11'!$AK$9, 0)","v":{"v":0,"d":"$0.00"}},{"$f":"IFERROR('MMA Rev-Exp Region 11'!$AL$62/'MMA Rev-Exp Region 11'!$AL$9, 0)","v":{"v":0,"d":"$0.00"}},{"$f":"IFERROR('MMA Rev-Exp Region 11'!$AM$62/'MMA Rev-Exp Region 11'!$AM$9, 0)","v":{"v":0,"d":"$0.00"}},{"$f":"IFERROR('MMA Rev-Exp Region 11'!$AN$62/'MMA Rev-Exp Region 11'!$AN$9, 0)","v":{"v":0,"d":"$0.00"}},{"$f":"IFERROR('MMA Rev-Exp Region 11'!$AO$62/'MMA Rev-Exp Region 11'!$AO$9, 0)","v":{"v":0,"d":"$0.00"}},{"$f":"IFERROR('MMA Rev-Exp Region 11'!$AP$62/'MMA Rev-Exp Region 11'!$AP$9, 0)","v":{"v":0,"d":"$0.00"}},{"$f":"IFERROR('MMA Rev-Exp Region 11'!$AQ$62/'MMA Rev-Exp Region 11'!$AQ$9, 0)","v":{"v":0,"d":"$0.00"}},{"$f":"IFERROR('MMA Rev-Exp Region 11'!$AR$62/'MMA Rev-Exp Region 11'!$AR$9, 0)","v":{"v":0,"d":"$0.00"}},{"$f":"IFERROR('MMA Rev-Exp Region 11'!$AS$62/'MMA Rev-Exp Region 11'!$AS$9, 0)","v":{"v":0,"d":"$0.00"}},{"$f":"IFERROR('MMA Rev-Exp Region 11'!$AT$62/'MMA Rev-Exp Region 11'!$AT$9, 0)","v":{"v":0,"d":"$0.00"}},{"$f":"IFERROR('MMA Rev-Exp Region 11'!$AU$62/'MMA Rev-Exp Region 11'!$AU$9, 0)","v":{"v":0,"d":"$0.00"}}]
["MMA",null,null,2016,"2016-12-31","Q4","2017-12-31","Region 11","Operating Expense","Medical Benefits Expense","Other MMA Services",9.1,"Home Health, Private Duty Nursing, Personal Care FFS",{"$f":"IFERROR('MMA Rev-Exp Region 11'!$AK$64/'MMA Rev-Exp Region 11'!$AK$9, 0)","v":{"v":0,"d":"$0.00"}},{"$f":"IFERROR('MMA Rev-Exp Region 11'!$AL$64/'MMA Rev-Exp Region 11'!$AL$9, 0)","v":{"v":0,"d":"$0.00"}},{"$f":"IFERROR('MMA Rev-Exp Region 11'!$AM$64/'MMA Rev-Exp Region 11'!$AM$9, 0)","v":{"v":0,"d":"$0.00"}},{"$f":"IFERROR('MMA Rev-Exp Region 11'!$AN$64/'MMA Rev-Exp Region 11'!$AN$9, 0)","v":{"v":0,"d":"$0.00"}},{"$f":"IFERROR('MMA Rev-Exp Region 11'!$AO$64/'MMA Rev-Exp Region 11'!$AO$9, 0)","v":{"v":0,"d":"$0.00"}},{"$f":"IFERROR('MMA Rev-Exp Region 11'!$AP$64/'MMA Rev-Exp Region 11'!$AP$9, 0)","v":{"v":0,"d":"$0.00"}},{"$f":"IFERROR('MMA Rev-Exp Region 11'!$AQ$64/'MMA Rev-Exp Region 11'!$AQ$9, 0)","v":{"v":0,"d":"$0.00"}},{"$f":"IFERROR('MMA Rev-Exp Region 11'!$AR$64/'MMA Rev-Exp Region 11'!$AR$9, 0)","v":{"v":0,"d":"$0.00"}},{"$f":"IFERROR('MMA Rev-Exp Region 11'!$AS$64/'MMA Rev-Exp Region 11'!$AS$9, 0)","v":{"v":0,"d":"$0.00"}},{"$f":"IFERROR('MMA Rev-Exp Region 11'!$AT$64/'MMA Rev-Exp Region 11'!$AT$9, 0)","v":{"v":0,"d":"$0.00"}},{"$f":"IFERROR('MMA Rev-Exp Region 11'!$AU$64/'MMA Rev-Exp Region 11'!$AU$9, 0)","v":{"v":0,"d":"$0.00"}}]
["MMA",null,null,2016,"2016-12-31","Q4","2017-12-31","Region 11","Operating Expense","Medical Benefits Expense","Other MMA Services","9.2","Hospice FFS",{"$f":"IFERROR('MMA Rev-Exp Region 11'!$AK$65/'MMA Rev-Exp Region 11'!$AK$9, 0)","v":{"v":0,"d":"$0.00"}},{"$f":"IFERROR('MMA Rev-Exp Region 11'!$AL$65/'MMA Rev-Exp Region 11'!$AL$9, 0)","v":{"v":0,"d":"$0.00"}},{"$f":"IFERROR('MMA Rev-Exp Region 11'!$AM$65/'MMA Rev-Exp Region 11'!$AM$9, 0)","v":{"v":0,"d":"$0.00"}},{"$f":"IFERROR('MMA Rev-Exp Region 11'!$AN$65/'MMA Rev-Exp Region 11'!$AN$9, 0)","v":{"v":0,"d":"$0.00"}},{"$f":"IFERROR('MMA Rev-Exp Region 11'!$AO$65/'MMA Rev-Exp Region 11'!$AO$9, 0)","v":{"v":0,"d":"$0.00"}},{"$f":"IFERROR('MMA Rev-Exp Region 11'!$AP$65/'MMA Rev-Exp Region 11'!$AP$9, 0)","v":{"v":0,"d":"$0.00"}},{"$f":"IFERROR('MMA Rev-Exp Region 11'!$AQ$65/'MMA Rev-Exp Region 11'!$AQ$9, 0)","v":{"v":0,"d":"$0.00"}},{"$f":"IFERROR('MMA Rev-Exp Region 11'!$AR$65/'MMA Rev-Exp Region 11'!$AR$9, 0)","v":{"v":0,"d":"$0.00"}},{"$f":"IFERROR('MMA Rev-Exp Region 11'!$AS$65/'MMA Rev-Exp Region 11'!$AS$9, 0)","v":{"v":0,"d":"$0.00"}},{"$f":"IFERROR('MMA Rev-Exp Region 11'!$AT$65/'MMA Rev-Exp Region 11'!$AT$9, 0)","v":{"v":0,"d":"$0.00"}},{"$f":"IFERROR('MMA Rev-Exp Region 11'!$AU$65/'MMA Rev-Exp Region 11'!$AU$9, 0)","v":{"v":0,"d":"$0.00"}}]
["MMA",null,null,2016,"2016-12-31","Q4","2017-12-31","Region 11","Operating Expense","Medical Benefits Expense","Other MMA Services","9.3","DME FFS",{"$f":"IFERROR('MMA Rev-Exp Region 11'!$AK$66/'MMA Rev-Exp Region 11'!$AK$9, 0)","v":{"v":0,"d":"$0.00"}},{"$f":"IFERROR('MMA Rev-Exp Region 11'!$AL$66/'MMA Rev-Exp Region 11'!$AL$9, 0)","v":{"v":0,"d":"$0.00"}},{"$f":"IFERROR('MMA Rev-Exp Region 11'!$AM$66/'MMA Rev-Exp Region 11'!$AM$9, 0)","v":{"v":0,"d":"$0.00"}},{"$f":"IFERROR('MMA Rev-Exp Region 11'!$AN$66/'MMA Rev-Exp Region 11'!$AN$9, 0)","v":{"v":0,"d":"$0.00"}},{"$f":"IFERROR('MMA Rev-Exp Region 11'!$AO$66/'MMA Rev-Exp Region 11'!$AO$9, 0)","v":{"v":0,"d":"$0.00"}},{"$f":"IFERROR('MMA Rev-Exp Region 11'!$AP$66/'MMA Rev-Exp Region 11'!$AP$9, 0)","v":{"v":0,"d":"$0.00"}},{"$f":"IFERROR('MMA Rev-Exp Region 11'!$AQ$66/'MMA Rev-Exp Region 11'!$AQ$9, 0)","v":{"v":0,"d":"$0.00"}},{"$f":"IFERROR('MMA Rev-Exp Region 11'!$AR$66/'MMA Rev-Exp Region 11'!$AR$9, 0)","v":{"v":0,"d":"$0.00"}},{"$f":"IFERROR('MMA Rev-Exp Region 11'!$AS$66/'MMA Rev-Exp Region 11'!$AS$9, 0)","v":{"v":0,"d":"$0.00"}},{"$f":"IFERROR('MMA Rev-Exp Region 11'!$AT$66/'MMA Rev-Exp Region 11'!$AT$9, 0)","v":{"v":0,"d":"$0.00"}},{"$f":"IFERROR('MMA Rev-Exp Region 11'!$AU$66/'MMA Rev-Exp Region 11'!$AU$9, 0)","v":{"v":0,"d":"$0.00"}}]
["MMA",null,null,2016,"2016-12-31","Q4","2017-12-31","Region 11","Operating Expense","Medical Benefits Expense","Other MMA Services","9.4","Other State Plan Services FFS",{"$f":"IFERROR('MMA Rev-Exp Region 11'!$AK$67/'MMA Rev-Exp Region 11'!$AK$9, 0)","v":{"v":0,"d":"$0.00"}},{"$f":"IFERROR('MMA Rev-Exp Region 11'!$AL$67/'MMA Rev-Exp Region 11'!$AL$9, 0)","v":{"v":0,"d":"$0.00"}},{"$f":"IFERROR('MMA Rev-Exp Region 11'!$AM$67/'MMA Rev-Exp Region 11'!$AM$9, 0)","v":{"v":0,"d":"$0.00"}},{"$f":"IFERROR('MMA Rev-Exp Region 11'!$AN$67/'MMA Rev-Exp Region 11'!$AN$9, 0)","v":{"v":0,"d":"$0.00"}},{"$f":"IFERROR('MMA Rev-Exp Region 11'!$AO$67/'MMA Rev-Exp Region 11'!$AO$9, 0)","v":{"v":0,"d":"$0.00"}},{"$f":"IFERROR('MMA Rev-Exp Region 11'!$AP$67/'MMA Rev-Exp Region 11'!$AP$9, 0)","v":{"v":0,"d":"$0.00"}},{"$f":"IFERROR('MMA Rev-Exp Region 11'!$AQ$67/'MMA Rev-Exp Region 11'!$AQ$9, 0)","v":{"v":0,"d":"$0.00"}},{"$f":"IFERROR('MMA Rev-Exp Region 11'!$AR$67/'MMA Rev-Exp Region 11'!$AR$9, 0)","v":{"v":0,"d":"$0.00"}},{"$f":"IFERROR('MMA Rev-Exp Region 11'!$AS$67/'MMA Rev-Exp Region 11'!$AS$9, 0)","v":{"v":0,"d":"$0.00"}},{"$f":"IFERROR('MMA Rev-Exp Region 11'!$AT$67/'MMA Rev-Exp Region 11'!$AT$9, 0)","v":{"v":0,"d":"$0.00"}},{"$f":"IFERROR('MMA Rev-Exp Region 11'!$AU$67/'MMA Rev-Exp Region 11'!$AU$9, 0)","v":{"v":0,"d":"$0.00"}}]
["MMA",null,null,2016,"2016-12-31","Q4","2017-12-31","Region 11","Operating Expense","Medical Benefits Expense","Other MMA Services","9.5","Other Services Subcapitation",{"$f":"IFERROR('MMA Rev-Exp Region 11'!$AK$68/'MMA Rev-Exp Region 11'!$AK$9, 0)","v":{"v":0,"d":"$0.00"}},{"$f":"IFERROR('MMA Rev-Exp Region 11'!$AL$68/'MMA Rev-Exp Region 11'!$AL$9, 0)","v":{"v":0,"d":"$0.00"}},{"$f":"IFERROR('MMA Rev-Exp Region 11'!$AM$68/'MMA Rev-Exp Region 11'!$AM$9, 0)","v":{"v":0,"d":"$0.00"}},{"$f":"IFERROR('MMA Rev-Exp Region 11'!$AN$68/'MMA Rev-Exp Region 11'!$AN$9, 0)","v":{"v":0,"d":"$0.00"}},{"$f":"IFERROR('MMA Rev-Exp Region 11'!$AO$68/'MMA Rev-Exp Region 11'!$AO$9, 0)","v":{"v":0,"d":"$0.00"}},{"$f":"IFERROR('MMA Rev-Exp Region 11'!$AP$68/'MMA Rev-Exp Region 11'!$AP$9, 0)","v":{"v":0,"d":"$0.00"}},{"$f":"IFERROR('MMA Rev-Exp Region 11'!$AQ$68/'MMA Rev-Exp Region 11'!$AQ$9, 0)","v":{"v":0,"d":"$0.00"}},{"$f":"IFERROR('MMA Rev-Exp Region 11'!$AR$68/'MMA Rev-Exp Region 11'!$AR$9, 0)","v":{"v":0,"d":"$0.00"}},{"$f":"IFERROR('MMA Rev-Exp Region 11'!$AS$68/'MMA Rev-Exp Region 11'!$AS$9, 0)","v":{"v":0,"d":"$0.00"}},{"$f":"IFERROR('MMA Rev-Exp Region 11'!$AT$68/'MMA Rev-Exp Region 11'!$AT$9, 0)","v":{"v":0,"d":"$0.00"}},{"$f":"IFERROR('MMA Rev-Exp Region 11'!$AU$68/'MMA Rev-Exp Region 11'!$AU$9, 0)","v":{"v":0,"d":"$0.00"}}]
["MMA",null,null,2016,"2016-12-31","Q4","2017-12-31","Region 11","Operating Expense","Medical Benefits Expense","Other MMA Services","9.6","Ending IBNP for Other Services",{"$f":"IFERROR('MMA Rev-Exp Region 11'!$AK$69/'MMA Rev-Exp Region 11'!$AK$9, 0)","v":{"v":0,"d":"$0.00"}},{"$f":"IFERROR('MMA Rev-Exp Region 11'!$AL$69/'MMA Rev-Exp Region 11'!$AL$9, 0)","v":{"v":0,"d":"$0.00"}},{"$f":"IFERROR('MMA Rev-Exp Region 11'!$AM$69/'MMA Rev-Exp Region 11'!$AM$9, 0)","v":{"v":0,"d":"$0.00"}},{"$f":"IFERROR('MMA Rev-Exp Region 11'!$AN$69/'MMA Rev-Exp Region 11'!$AN$9, 0)","v":{"v":0,"d":"$0.00"}},{"$f":"IFERROR('MMA Rev-Exp Region 11'!$AO$69/'MMA Rev-Exp Region 11'!$AO$9, 0)","v":{"v":0,"d":"$0.00"}},{"$f":"IFERROR('MMA Rev-Exp Region 11'!$AP$69/'MMA Rev-Exp Region 11'!$AP$9, 0)","v":{"v":0,"d":"$0.00"}},{"$f":"IFERROR('MMA Rev-Exp Region 11'!$AQ$69/'MMA Rev-Exp Region 11'!$AQ$9, 0)","v":{"v":0,"d":"$0.00"}},{"$f":"IFERROR('MMA Rev-Exp Region 11'!$AR$69/'MMA Rev-Exp Region 11'!$AR$9, 0)","v":{"v":0,"d":"$0.00"}},{"$f":"IFERROR('MMA Rev-Exp Region 11'!$AS$69/'MMA Rev-Exp Region 11'!$AS$9, 0)","v":{"v":0,"d":"$0.00"}},{"$f":"IFERROR('MMA Rev-Exp Region 11'!$AT$69/'MMA Rev-Exp Region 11'!$AT$9, 0)","v":{"v":0,"d":"$0.00"}},{"$f":"IFERROR('MMA Rev-Exp Region 11'!$AU$69/'MMA Rev-Exp Region 11'!$AU$9, 0)","v":{"v":0,"d":"$0.00"}}]
["MMA",null,null,2016,"2016-12-31","Q4","2017-12-31","Region 11","Operating Expense","Medical Benefits Expense","Other MMA Services","9.7","Other Services Settlements",{"$f":"IFERROR('MMA Rev-Exp Region 11'!$AK$70/'MMA Rev-Exp Region 11'!$AK$9, 0)","v":{"v":0,"d":"$0.00"}},{"$f":"IFERROR('MMA Rev-Exp Region 11'!$AL$70/'MMA Rev-Exp Region 11'!$AL$9, 0)","v":{"v":0,"d":"$0.00"}},{"$f":"IFERROR('MMA Rev-Exp Region 11'!$AM$70/'MMA Rev-Exp Region 11'!$AM$9, 0)","v":{"v":0,"d":"$0.00"}},{"$f":"IFERROR('MMA Rev-Exp Region 11'!$AN$70/'MMA Rev-Exp Region 11'!$AN$9, 0)","v":{"v":0,"d":"$0.00"}},{"$f":"IFERROR('MMA Rev-Exp Region 11'!$AO$70/'MMA Rev-Exp Region 11'!$AO$9, 0)","v":{"v":0,"d":"$0.00"}},{"$f":"IFERROR('MMA Rev-Exp Region 11'!$AP$70/'MMA Rev-Exp Region 11'!$AP$9, 0)","v":{"v":0,"d":"$0.00"}},{"$f":"IFERROR('MMA Rev-Exp Region 11'!$AQ$70/'MMA Rev-Exp Region 11'!$AQ$9, 0)","v":{"v":0,"d":"$0.00"}},{"$f":"IFERROR('MMA Rev-Exp Region 11'!$AR$70/'MMA Rev-Exp Region 11'!$AR$9, 0)","v":{"v":0,"d":"$0.00"}},{"$f":"IFERROR('MMA Rev-Exp Region 11'!$AS$70/'MMA Rev-Exp Region 11'!$AS$9, 0)","v":{"v":0,"d":"$0.00"}},{"$f":"IFERROR('MMA Rev-Exp Region 11'!$AT$70/'MMA Rev-Exp Region 11'!$AT$9, 0)","v":{"v":0,"d":"$0.00"}},{"$f":"IFERROR('MMA Rev-Exp Region 11'!$AU$70/'MMA Rev-Exp Region 11'!$AU$9, 0)","v":{"v":0,"d":"$0.00"}}]
["MMA",null,null,2016,"2016-12-31","Q4","2017-12-31","Region 11","Operating Expense","Medical Benefits Expense","Expanded Benefits","10.1","Expanded Benefits FFS",{"$f":"IFERROR('MMA Rev-Exp Region 11'!$AK$72/'MMA Rev-Exp Region 11'!$AK$9, 0)","v":{"v":0,"d":"$0.00"}},{"$f":"IFERROR('MMA Rev-Exp Region 11'!$AL$72/'MMA Rev-Exp Region 11'!$AL$9, 0)","v":{"v":0,"d":"$0.00"}},{"$f":"IFERROR('MMA Rev-Exp Region 11'!$AM$72/'MMA Rev-Exp Region 11'!$AM$9, 0)","v":{"v":0,"d":"$0.00"}},{"$f":"IFERROR('MMA Rev-Exp Region 11'!$AN$72/'MMA Rev-Exp Region 11'!$AN$9, 0)","v":{"v":0,"d":"$0.00"}},{"$f":"IFERROR('MMA Rev-Exp Region 11'!$AO$72/'MMA Rev-Exp Region 11'!$AO$9, 0)","v":{"v":0,"d":"$0.00"}},{"$f":"IFERROR('MMA Rev-Exp Region 11'!$AP$72/'MMA Rev-Exp Region 11'!$AP$9, 0)","v":{"v":0,"d":"$0.00"}},{"$f":"IFERROR('MMA Rev-Exp Region 11'!$AQ$72/'MMA Rev-Exp Region 11'!$AQ$9, 0)","v":{"v":0,"d":"$0.00"}},{"$f":"IFERROR('MMA Rev-Exp Region 11'!$AR$72/'MMA Rev-Exp Region 11'!$AR$9, 0)","v":{"v":0,"d":"$0.00"}},{"$f":"IFERROR('MMA Rev-Exp Region 11'!$AS$72/'MMA Rev-Exp Region 11'!$AS$9, 0)","v":{"v":0,"d":"$0.00"}},{"$f":"IFERROR('MMA Rev-Exp Region 11'!$AT$72/'MMA Rev-Exp Region 11'!$AT$9, 0)","v":{"v":0,"d":"$0.00"}},{"$f":"IFERROR('MMA Rev-Exp Region 11'!$AU$72/'MMA Rev-Exp Region 11'!$AU$9, 0)","v":{"v":0,"d":"$0.00"}}]
["MMA",null,null,2016,"2016-12-31","Q4","2017-12-31","Region 11","Operating Expense","Medical Benefits Expense","Expanded Benefits","10.2","Expanded benefits Subcapitation",{"$f":"IFERROR('MMA Rev-Exp Region 11'!$AK$73/'MMA Rev-Exp Region 11'!$AK$9, 0)","v":{"v":0,"d":"$0.00"}},{"$f":"IFERROR('MMA Rev-Exp Region 11'!$AL$73/'MMA Rev-Exp Region 11'!$AL$9, 0)","v":{"v":0,"d":"$0.00"}},{"$f":"IFERROR('MMA Rev-Exp Region 11'!$AM$73/'MMA Rev-Exp Region 11'!$AM$9, 0)","v":{"v":0,"d":"$0.00"}},{"$f":"IFERROR('MMA Rev-Exp Region 11'!$AN$73/'MMA Rev-Exp Region 11'!$AN$9, 0)","v":{"v":0,"d":"$0.00"}},{"$f":"IFERROR('MMA Rev-Exp Region 11'!$AO$73/'MMA Rev-Exp Region 11'!$AO$9, 0)","v":{"v":0,"d":"$0.00"}},{"$f":"IFERROR('MMA Rev-Exp Region 11'!$AP$73/'MMA Rev-Exp Region 11'!$AP$9, 0)","v":{"v":0,"d":"$0.00"}},{"$f":"IFERROR('MMA Rev-Exp Region 11'!$AQ$73/'MMA Rev-Exp Region 11'!$AQ$9, 0)","v":{"v":0,"d":"$0.00"}},{"$f":"IFERROR('MMA Rev-Exp Region 11'!$AR$73/'MMA Rev-Exp Region 11'!$AR$9, 0)","v":{"v":0,"d":"$0.00"}},{"$f":"IFERROR('MMA Rev-Exp Region 11'!$AS$73/'MMA Rev-Exp Region 11'!$AS$9, 0)","v":{"v":0,"d":"$0.00"}},{"$f":"IFERROR('MMA Rev-Exp Region 11'!$AT$73/'MMA Rev-Exp Region 11'!$AT$9, 0)","v":{"v":0,"d":"$0.00"}},{"$f":"IFERROR('MMA Rev-Exp Region 11'!$AU$73/'MMA Rev-Exp Region 11'!$AU$9, 0)","v":{"v":0,"d":"$0.00"}}]
["MMA",null,null,2016,"2016-12-31","Q4","2017-12-31","Region 11","Operating Expense","Medical Benefits Expense","Expanded Benefits","10.3","Ending IBNP for Expanded Benefits",{"$f":"IFERROR('MMA Rev-Exp Region 11'!$AK$74/'MMA Rev-Exp Region 11'!$AK$9, 0)","v":{"v":0,"d":"$0.00"}},{"$f":"IFERROR('MMA Rev-Exp Region 11'!$AL$74/'MMA Rev-Exp Region 11'!$AL$9, 0)","v":{"v":0,"d":"$0.00"}},{"$f":"IFERROR('MMA Rev-Exp Region 11'!$AM$74/'MMA Rev-Exp Region 11'!$AM$9, 0)","v":{"v":0,"d":"$0.00"}},{"$f":"IFERROR('MMA Rev-Exp Region 11'!$AN$74/'MMA Rev-Exp Region 11'!$AN$9, 0)","v":{"v":0,"d":"$0.00"}},{"$f":"IFERROR('MMA Rev-Exp Region 11'!$AO$74/'MMA Rev-Exp Region 11'!$AO$9, 0)","v":{"v":0,"d":"$0.00"}},{"$f":"IFERROR('MMA Rev-Exp Region 11'!$AP$74/'MMA Rev-Exp Region 11'!$AP$9, 0)","v":{"v":0,"d":"$0.00"}},{"$f":"IFERROR('MMA Rev-Exp Region 11'!$AQ$74/'MMA Rev-Exp Region 11'!$AQ$9, 0)","v":{"v":0,"d":"$0.00"}},{"$f":"IFERROR('MMA Rev-Exp Region 11'!$AR$74/'MMA Rev-Exp Region 11'!$AR$9, 0)","v":{"v":0,"d":"$0.00"}},{"$f":"IFERROR('MMA Rev-Exp Region 11'!$AS$74/'MMA Rev-Exp Region 11'!$AS$9, 0)","v":{"v":0,"d":"$0.00"}},{"$f":"IFERROR('MMA Rev-Exp Region 11'!$AT$74/'MMA Rev-Exp Region 11'!$AT$9, 0)","v":{"v":0,"d":"$0.00"}},{"$f":"IFERROR('MMA Rev-Exp Region 11'!$AU$74/'MMA Rev-Exp Region 11'!$AU$9, 0)","v":{"v":0,"d":"$0.00"}}]
["MMA",null,null,2016,"2016-12-31","Q4","2017-12-31","Region 11","Operating Expense","Medical Benefits Expense","Expanded Benefits","10.4","Expanded Benefits Settlements",{"$f":"IFERROR('MMA Rev-Exp Region 11'!$AK$75/'MMA Rev-Exp Region 11'!$AK$9, 0)","v":{"v":0,"d":"$0.00"}},{"$f":"IFERROR('MMA Rev-Exp Region 11'!$AL$75/'MMA Rev-Exp Region 11'!$AL$9, 0)","v":{"v":0,"d":"$0.00"}},{"$f":"IFERROR('MMA Rev-Exp Region 11'!$AM$75/'MMA Rev-Exp Region 11'!$AM$9, 0)","v":{"v":0,"d":"$0.00"}},{"$f":"IFERROR('MMA Rev-Exp Region 11'!$AN$75/'MMA Rev-Exp Region 11'!$AN$9, 0)","v":{"v":0,"d":"$0.00"}},{"$f":"IFERROR('MMA Rev-Exp Region 11'!$AO$75/'MMA Rev-Exp Region 11'!$AO$9, 0)","v":{"v":0,"d":"$0.00"}},{"$f":"IFERROR('MMA Rev-Exp Region 11'!$AP$75/'MMA Rev-Exp Region 11'!$AP$9, 0)","v":{"v":0,"d":"$0.00"}},{"$f":"IFERROR('MMA Rev-Exp Region 11'!$AQ$75/'MMA Rev-Exp Region 11'!$AQ$9, 0)","v":{"v":0,"d":"$0.00"}},{"$f":"IFERROR('MMA Rev-Exp Region 11'!$AR$75/'MMA Rev-Exp Region 11'!$AR$9, 0)","v":{"v":0,"d":"$0.00"}},{"$f":"IFERROR('MMA Rev-Exp Region 11'!$AS$75/'MMA Rev-Exp Region 11'!$AS$9, 0)","v":{"v":0,"d":"$0.00"}},{"$f":"IFERROR('MMA Rev-Exp Region 11'!$AT$75/'MMA Rev-Exp Region 11'!$AT$9, 0)","v":{"v":0,"d":"$0.00"}},{"$f":"IFERROR('MMA Rev-Exp Region 11'!$AU$75/'MMA Rev-Exp Region 11'!$AU$9, 0)","v":{"v":0,"d":"$0.00"}}]
["MMA",null,null,2016,"2016-12-31","Q4","2017-12-31","Region 11","Operating Expense","Medical Benefits Expense","Other Medical","11.5","TPL & Fraud/Abuse Recoveries",{"$f":"IFERROR('MMA Rev-Exp Region 11'!$AK$81/'MMA Rev-Exp Region 11'!$AK$9, 0)","v":{"v":0,"d":"$0.00"}},{"$f":"IFERROR('MMA Rev-Exp Region 11'!$AL$81/'MMA Rev-Exp Region 11'!$AL$9, 0)","v":{"v":0,"d":"$0.00"}},{"$f":"IFERROR('MMA Rev-Exp Region 11'!$AM$81/'MMA Rev-Exp Region 11'!$AM$9, 0)","v":{"v":0,"d":"$0.00"}},{"$f":"IFERROR('MMA Rev-Exp Region 11'!$AN$81/'MMA Rev-Exp Region 11'!$AN$9, 0)","v":{"v":0,"d":"$0.00"}},{"$f":"IFERROR('MMA Rev-Exp Region 11'!$AO$81/'MMA Rev-Exp Region 11'!$AO$9, 0)","v":{"v":0,"d":"$0.00"}},{"$f":"IFERROR('MMA Rev-Exp Region 11'!$AP$81/'MMA Rev-Exp Region 11'!$AP$9, 0)","v":{"v":0,"d":"$0.00"}},{"$f":"IFERROR('MMA Rev-Exp Region 11'!$AQ$81/'MMA Rev-Exp Region 11'!$AQ$9, 0)","v":{"v":0,"d":"$0.00"}},{"$f":"IFERROR('MMA Rev-Exp Region 11'!$AR$81/'MMA Rev-Exp Region 11'!$AR$9, 0)","v":{"v":0,"d":"$0.00"}},{"$f":"IFERROR('MMA Rev-Exp Region 11'!$AS$81/'MMA Rev-Exp Region 11'!$AS$9, 0)","v":{"v":0,"d":"$0.00"}},{"$f":"IFERROR('MMA Rev-Exp Region 11'!$AT$81/'MMA Rev-Exp Region 11'!$AT$9, 0)","v":{"v":0,"d":"$0.00"}},{"$f":"IFERROR('MMA Rev-Exp Region 11'!$AU$81/'MMA Rev-Exp Region 11'!$AU$9, 0)","v":{"v":0,"d":"$0.00"}}]
["MMA",null,null,2016,"2016-12-31","Q4","2017-12-31","Region 11","Operating Expense","Medical Benefits Expense","Other Medical","11.6.1","Premium Deficiency Reserve",{"$f":"IFERROR('MMA Rev-Exp Region 11'!$AK$82/'MMA Rev-Exp Region 11'!$AK$9, 0)","v":{"v":0,"d":"$0.00"}},{"$f":"IFERROR('MMA Rev-Exp Region 11'!$AL$82/'MMA Rev-Exp Region 11'!$AL$9, 0)","v":{"v":0,"d":"$0.00"}},{"$f":"IFERROR('MMA Rev-Exp Region 11'!$AM$82/'MMA Rev-Exp Region 11'!$AM$9, 0)","v":{"v":0,"d":"$0.00"}},{"$f":"IFERROR('MMA Rev-Exp Region 11'!$AN$82/'MMA Rev-Exp Region 11'!$AN$9, 0)","v":{"v":0,"d":"$0.00"}},{"$f":"IFERROR('MMA Rev-Exp Region 11'!$AO$82/'MMA Rev-Exp Region 11'!$AO$9, 0)","v":{"v":0,"d":"$0.00"}},{"$f":"IFERROR('MMA Rev-Exp Region 11'!$AP$82/'MMA Rev-Exp Region 11'!$AP$9, 0)","v":{"v":0,"d":"$0.00"}},{"$f":"IFERROR('MMA Rev-Exp Region 11'!$AQ$82/'MMA Rev-Exp Region 11'!$AQ$9, 0)","v":{"v":0,"d":"$0.00"}},{"$f":"IFERROR('MMA Rev-Exp Region 11'!$AR$82/'MMA Rev-Exp Region 11'!$AR$9, 0)","v":{"v":0,"d":"$0.00"}},{"$f":"IFERROR('MMA Rev-Exp Region 11'!$AS$82/'MMA Rev-Exp Region 11'!$AS$9, 0)","v":{"v":0,"d":"$0.00"}},{"$f":"IFERROR('MMA Rev-Exp Region 11'!$AT$82/'MMA Rev-Exp Region 11'!$AT$9, 0)","v":{"v":0,"d":"$0.00"}},{"$f":"IFERROR('MMA Rev-Exp Region 11'!$AU$82/'MMA Rev-Exp Region 11'!$AU$9, 0)","v":{"v":0,"d":"$0.00"}}]
["MMA",null,null,2016,"2016-12-31","Q4","2017-12-31","Region 11","Operating Expense","Medical Benefits Expense","Other Medical","11.8","Reinsurance Premiums",{"$f":"IFERROR('MMA Rev-Exp Region 11'!$AK$84/'MMA Rev-Exp Region 11'!$AK$9, 0)","v":{"v":0,"d":"$0.00"}},{"$f":"IFERROR('MMA Rev-Exp Region 11'!$AL$84/'MMA Rev-Exp Region 11'!$AL$9, 0)","v":{"v":0,"d":"$0.00"}},{"$f":"IFERROR('MMA Rev-Exp Region 11'!$AM$84/'MMA Rev-Exp Region 11'!$AM$9, 0)","v":{"v":0,"d":"$0.00"}},{"$f":"IFERROR('MMA Rev-Exp Region 11'!$AN$84/'MMA Rev-Exp Region 11'!$AN$9, 0)","v":{"v":0,"d":"$0.00"}},{"$f":"IFERROR('MMA Rev-Exp Region 11'!$AO$84/'MMA Rev-Exp Region 11'!$AO$9, 0)","v":{"v":0,"d":"$0.00"}},{"$f":"IFERROR('MMA Rev-Exp Region 11'!$AP$84/'MMA Rev-Exp Region 11'!$AP$9, 0)","v":{"v":0,"d":"$0.00"}},{"$f":"IFERROR('MMA Rev-Exp Region 11'!$AQ$84/'MMA Rev-Exp Region 11'!$AQ$9, 0)","v":{"v":0,"d":"$0.00"}},{"$f":"IFERROR('MMA Rev-Exp Region 11'!$AR$84/'MMA Rev-Exp Region 11'!$AR$9, 0)","v":{"v":0,"d":"$0.00"}},{"$f":"IFERROR('MMA Rev-Exp Region 11'!$AS$84/'MMA Rev-Exp Region 11'!$AS$9, 0)","v":{"v":0,"d":"$0.00"}},{"$f":"IFERROR('MMA Rev-Exp Region 11'!$AT$84/'MMA Rev-Exp Region 11'!$AT$9, 0)","v":{"v":0,"d":"$0.00"}},{"$f":"IFERROR('MMA Rev-Exp Region 11'!$AU$84/'MMA Rev-Exp Region 11'!$AU$9, 0)","v":{"v":0,"d":"$0.00"}}]
["MMA",null,null,2016,"2016-12-31","Q4","2017-12-31","Region 11","Operating Expense","Medical Benefits Expense","Other Medical","11.9","Reinsurance Recoveries",{"$f":"IFERROR('MMA Rev-Exp Region 11'!$AK$85/'MMA Rev-Exp Region 11'!$AK$9, 0)","v":{"v":0,"d":"$0.00"}},{"$f":"IFERROR('MMA Rev-Exp Region 11'!$AL$85/'MMA Rev-Exp Region 11'!$AL$9, 0)","v":{"v":0,"d":"$0.00"}},{"$f":"IFERROR('MMA Rev-Exp Region 11'!$AM$85/'MMA Rev-Exp Region 11'!$AM$9, 0)","v":{"v":0,"d":"$0.00"}},{"$f":"IFERROR('MMA Rev-Exp Region 11'!$AN$85/'MMA Rev-Exp Region 11'!$AN$9, 0)","v":{"v":0,"d":"$0.00"}},{"$f":"IFERROR('MMA Rev-Exp Region 11'!$AO$85/'MMA Rev-Exp Region 11'!$AO$9, 0)","v":{"v":0,"d":"$0.00"}},{"$f":"IFERROR('MMA Rev-Exp Region 11'!$AP$85/'MMA Rev-Exp Region 11'!$AP$9, 0)","v":{"v":0,"d":"$0.00"}},{"$f":"IFERROR('MMA Rev-Exp Region 11'!$AQ$85/'MMA Rev-Exp Region 11'!$AQ$9, 0)","v":{"v":0,"d":"$0.00"}},{"$f":"IFERROR('MMA Rev-Exp Region 11'!$AR$85/'MMA Rev-Exp Region 11'!$AR$9, 0)","v":{"v":0,"d":"$0.00"}},{"$f":"IFERROR('MMA Rev-Exp Region 11'!$AS$85/'MMA Rev-Exp Region 11'!$AS$9, 0)","v":{"v":0,"d":"$0.00"}},{"$f":"IFERROR('MMA Rev-Exp Region 11'!$AT$85/'MMA Rev-Exp Region 11'!$AT$9, 0)","v":{"v":0,"d":"$0.00"}},{"$f":"IFERROR('MMA Rev-Exp Region 11'!$AU$85/'MMA Rev-Exp Region 11'!$AU$9, 0)","v":{"v":0,"d":"$0.00"}}]
["MMA",null,null,2016,"2016-12-31","Q4","2017-12-31","Region 11","Operating Expense","Administrative Expense","Administrative","12.1","Salaries & Benefits",{"$f":"IFERROR('MMA Rev-Exp Region 11'!$AK$90/'MMA Rev-Exp Region 11'!$AK$9, 0)","v":{"v":0,"d":"$0.00"}},{"$f":"IFERROR('MMA Rev-Exp Region 11'!$AL$90/'MMA Rev-Exp Region 11'!$AK$9, 0)","v":{"v":0,"d":"$0.00"}},{"$f":"IFERROR('MMA Rev-Exp Region 11'!$AM$90/'MMA Rev-Exp Region 11'!$AK$9, 0)","v":{"v":0,"d":"$0.00"}}]
["MMA",null,null,2016,"2016-12-31","Q4","2017-12-31","Region 11","Operating Expense","Administrative Expense","Administrative","12.2","Administrative Services",{"$f":"IFERROR('MMA Rev-Exp Region 11'!$AK$91/'MMA Rev-Exp Region 11'!$AK$9, 0)","v":{"v":0,"d":"$0.00"}},{"$f":"IFERROR('MMA Rev-Exp Region 11'!$AL$91/'MMA Rev-Exp Region 11'!$AK$9, 0)","v":{"v":0,"d":"$0.00"}},{"$f":"IFERROR('MMA Rev-Exp Region 11'!$AM$91/'MMA Rev-Exp Region 11'!$AK$9, 0)","v":{"v":0,"d":"$0.00"}}]
["MMA",null,null,2016,"2016-12-31","Q4","2017-12-31","Region 11","Operating Expense","Administrative Expense","Administrative","12.3","Information Systems",{"$f":"IFERROR('MMA Rev-Exp Region 11'!$AK$92/'MMA Rev-Exp Region 11'!$AK$9, 0)","v":{"v":0,"d":"$0.00"}},{"$f":"IFERROR('MMA Rev-Exp Region 11'!$AL$92/'MMA Rev-Exp Region 11'!$AK$9, 0)","v":{"v":0,"d":"$0.00"}},{"$f":"IFERROR('MMA Rev-Exp Region 11'!$AM$92/'MMA Rev-Exp Region 11'!$AK$9, 0)","v":{"v":0,"d":"$0.00"}}]
["MMA",null,null,2016,"2016-12-31","Q4","2017-12-31","Region 11","Operating Expense","Administrative Expense","Administrative","12.4","Marketing Expenses",{"$f":"IFERROR('MMA Rev-Exp Region 11'!$AK$93/'MMA Rev-Exp Region 11'!$AK$9, 0)","v":{"v":0,"d":"$0.00"}},{"$f":"IFERROR('MMA Rev-Exp Region 11'!$AL$93/'MMA Rev-Exp Region 11'!$AK$9, 0)","v":{"v":0,"d":"$0.00"}},{"$f":"IFERROR('MMA Rev-Exp Region 11'!$AM$93/'MMA Rev-Exp Region 11'!$AK$9, 0)","v":{"v":0,"d":"$0.00"}}]
["MMA",null,null,2016,"2016-12-31","Q4","2017-12-31","Region 11","Operating Expense","Administrative Expense","Administrative","12.5","General  Administration",{"$f":"IFERROR('MMA Rev-Exp Region 11'!$AK$94/'MMA Rev-Exp Region 11'!$AK$9, 0)","v":{"v":0,"d":"$0.00"}},{"$f":"IFERROR('MMA Rev-Exp Region 11'!$AL$94/'MMA Rev-Exp Region 11'!$AK$9, 0)","v":{"v":0,"d":"$0.00"}},{"$f":"IFERROR('MMA Rev-Exp Region 11'!$AM$94/'MMA Rev-Exp Region 11'!$AK$9, 0)","v":{"v":0,"d":"$0.00"}}]
["MMA",null,null,2016,"2016-12-31","Q4","2017-12-31","Region 11","Operating Expense","Administrative Expense","Administrative","12.6","Compliance/Regulatory",{"$f":"IFERROR('MMA Rev-Exp Region 11'!$AK$95/'MMA Rev-Exp Region 11'!$AK$9, 0)","v":{"v":0,"d":"$0.00"}},{"$f":"IFERROR('MMA Rev-Exp Region 11'!$AL$95/'MMA Rev-Exp Region 11'!$AK$9, 0)","v":{"v":0,"d":"$0.00"}},{"$f":"IFERROR('MMA Rev-Exp Region 11'!$AM$95/'MMA Rev-Exp Region 11'!$AK$9, 0)","v":{"v":0,"d":"$0.00"}}]
["MMA",null,null,2016,"2016-12-31","Q4","2017-12-31","Region 11","Operating Expense","Taxes & Fees","Taxes & Fees","13.1","State Premium tax",{"$f":"IFERROR('MMA Rev-Exp Region 11'!$AK$97/'MMA Rev-Exp Region 11'!$AK$9, 0)","v":{"v":0,"d":"$0.00"}}]
["MMA",null,null,2016,"2016-12-31","Q4","2017-12-31","Region 11","Operating Expense","Taxes & Fees","Taxes & Fees","13.2","Department of Insurance Assessments",{"$f":"IFERROR('MMA Rev-Exp Region 11'!$AK$98/'MMA Rev-Exp Region 11'!$AK$9, 0)","v":{"v":0,"d":"$0.00"}}]
["MMA",null,null,2016,"2016-12-31","Q4","2017-12-31","Region 11","Operating Expense","Taxes & Fees","Taxes & Fees","13.3","Section 9010 Health Insurance Providers Fee",{"$f":"IFERROR('MMA Rev-Exp Region 11'!$AK$99/'MMA Rev-Exp Region 11'!$AK$9, 0)","v":{"v":0,"d":"$0.00"}}]
["MMA",null,null,2016,"2016-12-31","Q4","2017-12-31","Region 11","Non-Operating Expense","Income Tax Expense","Income Tax Expense","16.0","Income Tax Expense",{"$f":"IFERROR('MMA Rev-Exp Region 11'!$AK$106/'MMA Rev-Exp Region 11'!$AK$9, 0)","v":{"v":0,"d":"$0.00"}}]

{"sheet":"LTC Data","index":46,"n_rows":2461,"n_cols":21,"rows_kept":2461,"hidden":true}
["Contract","Plan ID","Plan Name","Reporting Year","Reporting Quarter","Calendar Quarter","Quarter Ending","Region","Transaction Class","Transaction Type","Transaction Category","Report Line","Report Description","Total","Non-HCBS","HCBS","MED-P / SIXT","Prior Year","File Name","File Date","Status"]
["LTC",null,null,{"$f":"Jurat!I$1","v":0},{"$f":"Jurat!D$33","v":"00:00:00"},"Q1","2017-03-31","Summary","Member Months","Member Months","Member Months",null,"Member Months",{"$f":"'LTC Rev-Exp Summary'!D$9","v":{"v":0,"d":"$0.00"}},{"$f":"'LTC Rev-Exp Summary'!E$9","v":{"v":0,"d":"$0.00"}},{"$f":"'LTC Rev-Exp Summary'!F$9","v":{"v":0,"d":"$0.00"}},{"$f":"'LTC Rev-Exp Summary'!G$9","v":{"v":0,"d":"$0.00"}},{"v":0,"d":"$0.00"}]
["LTC",null,null,{"$f":"Jurat!I$1","v":0},{"$f":"Jurat!D$33","v":"00:00:00"},"Q1","2017-03-31","Summary","Operating Revenue","Capitation","Capitation",1.1,"Capitation",{"$f":"'LTC Rev-Exp Summary'!D$11","v":{"v":0,"d":"$0.00"}},{"$f":"'LTC Rev-Exp Summary'!E$11","v":{"v":0,"d":"$0.00"}},{"$f":"'LTC Rev-Exp Summary'!F$11","v":{"v":0,"d":"$0.00"}},{"$f":"'LTC Rev-Exp Summary'!G$11","v":{"v":0,"d":"$0.00"}},{"v":0,"d":"$0.00"}]
["LTC",null,null,{"$f":"Jurat!I$1","v":0},{"$f":"Jurat!D$33","v":"00:00:00"},"Q1","2017-03-31","Summary","Operating Revenue","Capitation","NH Rate Reconciliation",1.2,"NH Rate Reconciliation",{"$f":"'LTC Rev-Exp Summary'!D$12","v":{"v":0,"d":"$0.00"}},{"$f":"'LTC Rev-Exp Summary'!E$12","v":{"v":0,"d":"$0.00"}},{"$f":"'LTC Rev-Exp Summary'!F$12","v":{"v":0,"d":"$0.00"}},{"$f":"'LTC Rev-Exp Summary'!G$12","v":{"v":0,"d":"$0.00"}},{"v":0,"d":"$0.00"}]
["LTC",null,null,{"$f":"Jurat!I$1","v":0},{"$f":"Jurat!D$33","v":"00:00:00"},"Q1","2017-03-31","Summary","Operating Revenue","Other Revenue","Other Revenue",1.3,"Other Revenue",{"$f":"'LTC Rev-Exp Summary'!D$13","v":{"v":0,"d":"$0.00"}},{"$f":"'LTC Rev-Exp Summary'!E$13","v":{"v":0,"d":"$0.00"}},{"$f":"'LTC Rev-Exp Summary'!F$13","v":{"v":0,"d":"$0.00"}},{"$f":"'LTC Rev-Exp Summary'!G$13","v":{"v":0,"d":"$0.00"}},{"v":0,"d":"$0.00"}]
["LTC",null,null,{"$f":"Jurat!I$1","v":0},{"$f":"Jurat!D$33","v":"00:00:00"},"Q1","2017-03-31","Summary","Operating Expense","Medical Expense","NF & Hospice","2.1","Nursing Facility Days (Medicaid)",{"$f":"'LTC Rev-Exp Summary'!D$17","v":{"v":0,"d":"$0.00"}},{"$f":"'LTC Rev-Exp Summary'!E$17","v":{"v":0,"d":"$0.00"}},{"$f":"'LTC Rev-Exp Summary'!F$17","v":{"v":0,"d":"$0.00"}},{"$f":"'LTC Rev-Exp Summary'!G$17","v":{"v":0,"d":"$0.00"}},{"v":0,"d":"$0.00"}]
["LTC",null,null,{"$f":"Jurat!I$1","v":0},{"$f":"Jurat!D$33","v":"00:00:00"},"Q1","2017-03-31","Summary","Operating Expense","Medical Expense","NF & Hospice","2.2","Nursing Facility Days (Crossover)",{"$f":"'LTC Rev-Exp Summary'!D$18","v":{"v":0,"d":"$0.00"}},{"$f":"'LTC Rev-Exp Summary'!E$18","v":{"v":0,"d":"$0.00"}},{"$f":"'LTC Rev-Exp Summary'!F$18","v":{"v":0,"d":"$0.00"}},{"$f":"'LTC Rev-Exp Summary'!G$18","v":{"v":0,"d":"$0.00"}},{"v":0,"d":"$0.00"}]
["LTC",null,null,{"$f":"Jurat!I$1","v":0},{"$f":"Jurat!D$33","v":"00:00:00"},"Q1","2017-03-31","Summary","Operating Expense","Medical Expense","NF & Hospice","2.3","Nursing Facility FFS (Medicaid)",{"$f":"'LTC Rev-Exp Summary'!D$19","v":{"v":0,"d":"$0.00"}},{"$f":"'LTC Rev-Exp Summary'!E$19","v":{"v":0,"d":"$0.00"}},{"$f":"'LTC Rev-Exp Summary'!F$19","v":{"v":0,"d":"$0.00"}},{"$f":"'LTC Rev-Exp Summary'!G$19","v":{"v":0,"d":"$0.00"}},{"v":0,"d":"$0.00"}]
["LTC",null,null,{"$f":"Jurat!I$1","v":0},{"$f":"Jurat!D$33","v":"00:00:00"},"Q1","2017-03-31","Summary","Operating Expense","Medical Expense","NF & Hospice","2.4","Nursing Facility FFS (Crossover)",{"$f":"'LTC Rev-Exp Summary'!D$20","v":{"v":0,"d":"$0.00"}},{"$f":"'LTC Rev-Exp Summary'!E$20","v":{"v":0,"d":"$0.00"}},{"$f":"'LTC Rev-Exp Summary'!F$20","v":{"v":0,"d":"$0.00"}},{"$f":"'LTC Rev-Exp Summary'!G$20","v":{"v":0,"d":"$0.00"}},{"v":0,"d":"$0.00"}]
["LTC",null,null,{"$f":"Jurat!I$1","v":0},{"$f":"Jurat!D$33","v":"00:00:00"},"Q1","2017-03-31","Summary","Operating Expense","Medical Expense","NF & Hospice","2.5","Hospice Days",{"$f":"'LTC Rev-Exp Summary'!D$21","v":{"v":0,"d":"$0.00"}},{"$f":"'LTC Rev-Exp Summary'!E$21","v":{"v":0,"d":"$0.00"}},{"$f":"'LTC Rev-Exp Summary'!F$21","v":{"v":0,"d":"$0.00"}},{"$f":"'LTC Rev-Exp Summary'!G$21","v":{"v":0,"d":"$0.00"}},{"v":0,"d":"$0.00"}]
["LTC",null,null,{"$f":"Jurat!I$1","v":0},{"$f":"Jurat!D$33","v":"00:00:00"},"Q1","2017-03-31","Summary","Operating Expense","Medical Expense","NF & Hospice","2.6","Hospice FFS",{"$f":"'LTC Rev-Exp Summary'!D$22","v":{"v":0,"d":"$0.00"}},{"$f":"'LTC Rev-Exp Summary'!E$22","v":{"v":0,"d":"$0.00"}},{"$f":"'LTC Rev-Exp Summary'!F$22","v":{"v":0,"d":"$0.00"}},{"$f":"'LTC Rev-Exp Summary'!G$22","v":{"v":0,"d":"$0.00"}},{"v":0,"d":"$0.00"}]
["LTC",null,null,{"$f":"Jurat!I$1","v":0},{"$f":"Jurat!D$33","v":"00:00:00"},"Q1","2017-03-31","Summary","Operating Expense","Medical Expense","NF & Hospice","2.7","Ending IBNP for NF & Hospice",{"$f":"'LTC Rev-Exp Summary'!D$23","v":{"v":0,"d":"$0.00"}},{"$f":"'LTC Rev-Exp Summary'!E$23","v":{"v":0,"d":"$0.00"}},{"$f":"'LTC Rev-Exp Summary'!F$23","v":{"v":0,"d":"$0.00"}},{"$f":"'LTC Rev-Exp Summary'!G$23","v":{"v":0,"d":"$0.00"}},{"v":0,"d":"$0.00"}]
["LTC",null,null,{"$f":"Jurat!I$1","v":0},{"$f":"Jurat!D$33","v":"00:00:00"},"Q1","2017-03-31","Summary","Operating Expense","Medical Expense","NF & Hospice","2.8","NF & Hospice Subcapitated",{"$f":"'LTC Rev-Exp Summary'!D$24","v":{"v":0,"d":"$0.00"}},{"$f":"'LTC Rev-Exp Summary'!E$24","v":{"v":0,"d":"$0.00"}},{"$f":"'LTC Rev-Exp Summary'!F$24","v":{"v":0,"d":"$0.00"}},{"$f":"'LTC Rev-Exp Summary'!G$24","v":{"v":0,"d":"$0.00"}},{"v":0,"d":"$0.00"}]
["LTC",null,null,{"$f":"Jurat!I$1","v":0},{"$f":"Jurat!D$33","v":"00:00:00"},"Q1","2017-03-31","Summary","Operating Expense","Medical Expense","NF & Hospice","2.9","NF & Hospice Settlements",{"$f":"'LTC Rev-Exp Summary'!D$25","v":{"v":0,"d":"$0.00"}},{"$f":"'LTC Rev-Exp Summary'!E$25","v":{"v":0,"d":"$0.00"}},{"$f":"'LTC Rev-Exp Summary'!F$25","v":{"v":0,"d":"$0.00"}},{"$f":"'LTC Rev-Exp Summary'!G$25","v":{"v":0,"d":"$0.00"}},{"v":0,"d":"$0.00"}]
["LTC",null,null,{"$f":"Jurat!I$1","v":0},{"$f":"Jurat!D$33","v":"00:00:00"},"Q1","2017-03-31","Summary","Operating Expense","Medical Expense","LTC Services","2.11","Assisted Living FFS",{"$f":"'LTC Rev-Exp Summary'!D$27","v":{"v":0,"d":"$0.00"}},{"$f":"'LTC Rev-Exp Summary'!E$27","v":{"v":0,"d":"$0.00"}},{"$f":"'LTC Rev-Exp Summary'!F$27","v":{"v":0,"d":"$0.00"}},{"$f":"'LTC Rev-Exp Summary'!G$27","v":{"v":0,"d":"$0.00"}},{"v":0,"d":"$0.00"}]
["LTC",null,null,{"$f":"Jurat!I$1","v":0},{"$f":"Jurat!D$33","v":"00:00:00"},"Q1","2017-03-31","Summary","Operating Expense","Medical Expense","LTC Services","2.12","Home Health FFS",{"$f":"'LTC Rev-Exp Summary'!D$28","v":{"v":0,"d":"$0.00"}},{"$f":"'LTC Rev-Exp Summary'!E$28","v":{"v":0,"d":"$0.00"}},{"$f":"'LTC Rev-Exp Summary'!F$28","v":{"v":0,"d":"$0.00"}},{"$f":"'LTC Rev-Exp Summary'!G$28","v":{"v":0,"d":"$0.00"}},{"v":0,"d":"$0.00"}]
["LTC",null,null,{"$f":"Jurat!I$1","v":0},{"$f":"Jurat!D$33","v":"00:00:00"},"Q1","2017-03-31","Summary","Operating Expense","Medical Expense","LTC Services","2.13","Medical Equipment/Supplies FFS",{"$f":"'LTC Rev-Exp Summary'!D$29","v":{"v":0,"d":"$0.00"}},{"$f":"'LTC Rev-Exp Summary'!E$29","v":{"v":0,"d":"$0.00"}},{"$f":"'LTC Rev-Exp Summary'!F$29","v":{"v":0,"d":"$0.00"}},{"$f":"'LTC Rev-Exp Summary'!G$29","v":{"v":0,"d":"$0.00"}},{"v":0,"d":"$0.00"}]
["LTC",null,null,{"$f":"Jurat!I$1","v":0},{"$f":"Jurat!D$33","v":"00:00:00"},"Q1","2017-03-31","Summary","Operating Expense","Medical Expense","LTC Services","2.14","Therapy FFS",{"$f":"'LTC Rev-Exp Summary'!D$30","v":{"v":0,"d":"$0.00"}},{"$f":"'LTC Rev-Exp Summary'!E$30","v":{"v":0,"d":"$0.00"}},{"$f":"'LTC Rev-Exp Summary'!F$30","v":{"v":0,"d":"$0.00"}},{"$f":"'LTC Rev-Exp Summary'!G$30","v":{"v":0,"d":"$0.00"}},{"v":0,"d":"$0.00"}]
["LTC",null,null,{"$f":"Jurat!I$1","v":0},{"$f":"Jurat!D$33","v":"00:00:00"},"Q1","2017-03-31","Summary","Operating Expense","Medical Expense","LTC Services","2.15","Transportation FFS",{"$f":"'LTC Rev-Exp Summary'!D$31","v":{"v":0,"d":"$0.00"}},{"$f":"'LTC Rev-Exp Summary'!E$31","v":{"v":0,"d":"$0.00"}},{"$f":"'LTC Rev-Exp Summary'!F$31","v":{"v":0,"d":"$0.00"}},{"$f":"'LTC Rev-Exp Summary'!G$31","v":{"v":0,"d":"$0.00"}},{"v":0,"d":"$0.00"}]
["LTC",null,null,{"$f":"Jurat!I$1","v":0},{"$f":"Jurat!D$33","v":"00:00:00"},"Q1","2017-03-31","Summary","Operating Expense","Medical Expense","LTC Services","2.16","Case Management FFS (Plan Provided)",{"$f":"'LTC Rev-Exp Summary'!D$32","v":{"v":0,"d":"$0.00"}},{"$f":"'LTC Rev-Exp Summary'!E$32","v":{"v":0,"d":"$0.00"}},{"$f":"'LTC Rev-Exp Summary'!F$32","v":{"v":0,"d":"$0.00"}},{"$f":"'LTC Rev-Exp Summary'!G$32","v":{"v":0,"d":"$0.00"}},{"v":0,"d":"$0.00"}]
["LTC",null,null,{"$f":"Jurat!I$1","v":0},{"$f":"Jurat!D$33","v":"00:00:00"},"Q1","2017-03-31","Summary","Operating Expense","Medical Expense","LTC Services","2.17","Case Management FF (Non-Plan Provided)",{"$f":"'LTC Rev-Exp Summary'!D$33","v":{"v":0,"d":"$0.00"}},{"$f":"'LTC Rev-Exp Summary'!E$33","v":{"v":0,"d":"$0.00"}},{"$f":"'LTC Rev-Exp Summary'!F$33","v":{"v":0,"d":"$0.00"}},{"$f":"'LTC Rev-Exp Summary'!G$33","v":{"v":0,"d":"$0.00"}},{"v":0,"d":"$0.00"}]
["LTC",null,null,{"$f":"Jurat!I$1","v":0},{"$f":"Jurat!D$33","v":"00:00:00"},"Q1","2017-03-31","Summary","Operating Expense","Medical Expense","LTC Services","2.18","HCBS FFS",{"$f":"'LTC Rev-Exp Summary'!D$34","v":{"v":0,"d":"$0.00"}},{"$f":"'LTC Rev-Exp Summary'!E$34","v":{"v":0,"d":"$0.00"}},{"$f":"'LTC Rev-Exp Summary'!F$34","v":{"v":0,"d":"$0.00"}},{"$f":"'LTC Rev-Exp Summary'!G$34","v":{"v":0,"d":"$0.00"}},{"v":0,"d":"$0.00"}]
["LTC",null,null,{"$f":"Jurat!I$1","v":0},{"$f":"Jurat!D$33","v":"00:00:00"},"Q1","2017-03-31","Summary","Operating Expense","Medical Expense","LTC Services","2.19","Subcapitated LTC Services",{"$f":"'LTC Rev-Exp Summary'!D$35","v":{"v":0,"d":"$0.00"}},{"$f":"'LTC Rev-Exp Summary'!E$35","v":{"v":0,"d":"$0.00"}},{"$f":"'LTC Rev-Exp Summary'!F$35","v":{"v":0,"d":"$0.00"}},{"$f":"'LTC Rev-Exp Summary'!G$35","v":{"v":0,"d":"$0.00"}},{"v":0,"d":"$0.00"}]
["LTC",null,null,{"$f":"Jurat!I$1","v":0},{"$f":"Jurat!D$33","v":"00:00:00"},"Q1","2017-03-31","Summary","Operating Expense","Medical Expense","LTC Services","2.20","Ending IBNP for Long Term Care Services",{"$f":"'LTC Rev-Exp Summary'!D$36","v":{"v":0,"d":"$0.00"}},{"$f":"'LTC Rev-Exp Summary'!E$36","v":{"v":0,"d":"$0.00"}},{"$f":"'LTC Rev-Exp Summary'!F$36","v":{"v":0,"d":"$0.00"}},{"$f":"'LTC Rev-Exp Summary'!G$36","v":{"v":0,"d":"$0.00"}},{"v":0,"d":"$0.00"}]
["LTC",null,null,{"$f":"Jurat!I$1","v":0},{"$f":"Jurat!D$33","v":"00:00:00"},"Q1","2017-03-31","Summary","Operating Expense","Medical Expense","LTC Services","2.21","LTC Services Settlements",{"$f":"'LTC Rev-Exp Summary'!D$37","v":{"v":0,"d":"$0.00"}},{"$f":"'LTC Rev-Exp Summary'!E$37","v":{"v":0,"d":"$0.00"}},{"$f":"'LTC Rev-Exp Summary'!F$37","v":{"v":0,"d":"$0.00"}},{"$f":"'LTC Rev-Exp Summary'!G$37","v":{"v":0,"d":"$0.00"}},{"v":0,"d":"$0.00"}]
["LTC",null,null,{"$f":"Jurat!I$1","v":0},{"$f":"Jurat!D$33","v":"00:00:00"},"Q1","2017-03-31","Summary","Operating Expense","Medical Expense","Expanded Benefits","3.1","Expanded Benefits FFS",{"$f":"'LTC Rev-Exp Summary'!D$39","v":{"v":0,"d":"$0.00"}},{"$f":"'LTC Rev-Exp Summary'!E$39","v":{"v":0,"d":"$0.00"}},{"$f":"'LTC Rev-Exp Summary'!F$39","v":{"v":0,"d":"$0.00"}},{"$f":"'LTC Rev-Exp Summary'!G$39","v":{"v":0,"d":"$0.00"}},{"v":0,"d":"$0.00"}]
["LTC",null,null,{"$f":"Jurat!I$1","v":0},{"$f":"Jurat!D$33","v":"00:00:00"},"Q1","2017-03-31","Summary","Operating Expense","Medical Expense","Expanded Benefits","3.2","Expanded Benefits Subcapitation",{"$f":"'LTC Rev-Exp Summary'!D$40","v":{"v":0,"d":"$0.00"}},{"$f":"'LTC Rev-Exp Summary'!E$40","v":{"v":0,"d":"$0.00"}},{"$f":"'LTC Rev-Exp Summary'!F$40","v":{"v":0,"d":"$0.00"}},{"$f":"'LTC Rev-Exp Summary'!G$40","v":{"v":0,"d":"$0.00"}},{"v":0,"d":"$0.00"}]
["LTC",null,null,{"$f":"Jurat!I$1","v":0},{"$f":"Jurat!D$33","v":"00:00:00"},"Q1","2017-03-31","Summary","Operating Expense","Medical Expense","Expanded Benefits","3.3","Ending IBNP for Expanded Benefits",{"$f":"'LTC Rev-Exp Summary'!D$41","v":{"v":0,"d":"$0.00"}},{"$f":"'LTC Rev-Exp Summary'!E$41","v":{"v":0,"d":"$0.00"}},{"$f":"'LTC Rev-Exp Summary'!F$41","v":{"v":0,"d":"$0.00"}},{"$f":"'LTC Rev-Exp Summary'!G$41","v":{"v":0,"d":"$0.00"}},{"v":0,"d":"$0.00"}]
["LTC",null,null,{"$f":"Jurat!I$1","v":0},{"$f":"Jurat!D$33","v":"00:00:00"},"Q1","2017-03-31","Summary","Operating Expense","Medical Expense","Expanded Benefits","3.4","Expanded Benefits Settlements",{"$f":"'LTC Rev-Exp Summary'!D$42","v":{"v":0,"d":"$0.00"}},{"$f":"'LTC Rev-Exp Summary'!E$42","v":{"v":0,"d":"$0.00"}},{"$f":"'LTC Rev-Exp Summary'!F$42","v":{"v":0,"d":"$0.00"}},{"$f":"'LTC Rev-Exp Summary'!G$42","v":{"v":0,"d":"$0.00"}},{"v":0,"d":"$0.00"}]
["LTC",null,null,{"$f":"Jurat!I$1","v":0},{"$f":"Jurat!D$33","v":"00:00:00"},"Q1","2017-03-31","Summary","Operating Expense","Medical Expense","Other Medical","4.5","TPL & Fraud/Abuse Recoveries",{"$f":"'LTC Rev-Exp Summary'!D$48","v":{"v":0,"d":"$0.00"}},{"$f":"'LTC Rev-Exp Summary'!E$48","v":{"v":0,"d":"$0.00"}},{"$f":"'LTC Rev-Exp Summary'!F$48","v":{"v":0,"d":"$0.00"}},{"$f":"'LTC Rev-Exp Summary'!G$48","v":{"v":0,"d":"$0.00"}},{"v":0,"d":"$0.00"}]
["LTC",null,null,{"$f":"Jurat!I$1","v":0},{"$f":"Jurat!D$33","v":"00:00:00"},"Q1","2017-03-31","Summary","Operating Expense","Medical Expense","Other Medical","4.6.1","Premium Deficiency Reserve",{"$f":"'LTC Rev-Exp Summary'!D$49","v":{"v":0,"d":"$0.00"}},{"$f":"'LTC Rev-Exp Summary'!E$49","v":{"v":0,"d":"$0.00"}},{"$f":"'LTC Rev-Exp Summary'!F$49","v":{"v":0,"d":"$0.00"}},{"$f":"'LTC Rev-Exp Summary'!G$49","v":{"v":0,"d":"$0.00"}},{"v":0,"d":"$0.00"}]
["LTC",null,null,{"$f":"Jurat!I$1","v":0},{"$f":"Jurat!D$33","v":"00:00:00"},"Q1","2017-03-31","Summary","Operating Expense","Medical Expense","Other Medical","4.8","Reinsurance Premiums",{"$f":"'LTC Rev-Exp Summary'!D$51","v":{"v":0,"d":"$0.00"}},{"$f":"'LTC Rev-Exp Summary'!E$51","v":{"v":0,"d":"$0.00"}},{"$f":"'LTC Rev-Exp Summary'!F$51","v":{"v":0,"d":"$0.00"}},{"$f":"'LTC Rev-Exp Summary'!G$51","v":{"v":0,"d":"$0.00"}},{"v":0,"d":"$0.00"}]
["LTC",null,null,{"$f":"Jurat!I$1","v":0},{"$f":"Jurat!D$33","v":"00:00:00"},"Q1","2017-03-31","Summary","Operating Expense","Medical Expense","Other Medical","4.9","Reinsurance Recoveries",{"$f":"'LTC Rev-Exp Summary'!D$52","v":{"v":0,"d":"$0.00"}},{"$f":"'LTC Rev-Exp Summary'!E$52","v":{"v":0,"d":"$0.00"}},{"$f":"'LTC Rev-Exp Summary'!F$52","v":{"v":0,"d":"$0.00"}},{"$f":"'LTC Rev-Exp Summary'!G$52","v":{"v":0,"d":"$0.00"}},{"v":0,"d":"$0.00"}]
["LTC",null,null,{"$f":"Jurat!I$1","v":0},{"$f":"Jurat!D$33","v":"00:00:00"},"Q1","2017-03-31","Summary","Operating Expense","Administrative Expense","Administrative","5.1","Salaries & Benefits",{"$f":"'LTC Rev-Exp Summary'!D$57","v":{"v":0,"d":"$0.00"}},{"$f":"'LTC Rev-Exp Summary'!E$57","v":{"v":0,"d":"$0.00"}},{"$f":"'LTC Rev-Exp Summary'!F$57","v":{"v":0,"d":"$0.00"}},{"$f":"'LTC Rev-Exp Summary'!G$57","v":{"v":0,"d":"$0.00"}},{"v":0,"d":"$0.00"}]
["LTC",null,null,{"$f":"Jurat!I$1","v":0},{"$f":"Jurat!D$33","v":"00:00:00"},"Q1","2017-03-31","Summary","Operating Expense","Administrative Expense","Administrative","5.2","Administrative Services",{"$f":"'LTC Rev-Exp Summary'!D$58","v":{"v":0,"d":"$0.00"}},{"$f":"'LTC Rev-Exp Summary'!E$58","v":{"v":0,"d":"$0.00"}},{"$f":"'LTC Rev-Exp Summary'!F$58","v":{"v":0,"d":"$0.00"}},{"$f":"'LTC Rev-Exp Summary'!G$58","v":{"v":0,"d":"$0.00"}},{"v":0,"d":"$0.00"}]
["LTC",null,null,{"$f":"Jurat!I$1","v":0},{"$f":"Jurat!D$33","v":"00:00:00"},"Q1","2017-03-31","Summary","Operating Expense","Administrative Expense","Administrative","5.3","Information Systems",{"$f":"'LTC Rev-Exp Summary'!D$59","v":{"v":0,"d":"$0.00"}},{"$f":"'LTC Rev-Exp Summary'!E$59","v":{"v":0,"d":"$0.00"}},{"$f":"'LTC Rev-Exp Summary'!F$59","v":{"v":0,"d":"$0.00"}},{"$f":"'LTC Rev-Exp Summary'!G$59","v":{"v":0,"d":"$0.00"}},{"v":0,"d":"$0.00"}]
["LTC",null,null,{"$f":"Jurat!I$1","v":0},{"$f":"Jurat!D$33","v":"00:00:00"},"Q1","2017-03-31","Summary","Operating Expense","Administrative Expense","Administrative","5.4","Marketing Expenses",{"$f":"'LTC Rev-Exp Summary'!D$60","v":{"v":0,"d":"$0.00"}},{"$f":"'LTC Rev-Exp Summary'!E$60","v":{"v":0,"d":"$0.00"}},{"$f":"'LTC Rev-Exp Summary'!F$60","v":{"v":0,"d":"$0.00"}},{"$f":"'LTC Rev-Exp Summary'!G$60","v":{"v":0,"d":"$0.00"}},{"v":0,"d":"$0.00"}]
["LTC",null,null,{"$f":"Jurat!I$1","v":0},{"$f":"Jurat!D$33","v":"00:00:00"},"Q1","2017-03-31","Summary","Operating Expense","Administrative Expense","Administrative","5.5","General  Administration",{"$f":"'LTC Rev-Exp Summary'!D$61","v":{"v":0,"d":"$0.00"}},{"$f":"'LTC Rev-Exp Summary'!E$61","v":{"v":0,"d":"$0.00"}},{"$f":"'LTC Rev-Exp Summary'!F$61","v":{"v":0,"d":"$0.00"}},{"$f":"'LTC Rev-Exp Summary'!G$61","v":{"v":0,"d":"$0.00"}},{"v":0,"d":"$0.00"}]
["LTC",null,null,{"$f":"Jurat!I$1","v":0},{"$f":"Jurat!D$33","v":"00:00:00"},"Q1","2017-03-31","Summary","Operating Expense","Administrative Expense","Administrative","5.6","Compliance/Regulatory",{"$f":"'LTC Rev-Exp Summary'!D$62","v":{"v":0,"d":"$0.00"}},{"$f":"'LTC Rev-Exp Summary'!E$62","v":{"v":0,"d":"$0.00"}},{"$f":"'LTC Rev-Exp Summary'!F$62","v":{"v":0,"d":"$0.00"}},{"$f":"'LTC Rev-Exp Summary'!G$62","v":{"v":0,"d":"$0.00"}},{"v":0,"d":"$0.00"}]
["LTC",null,null,{"$f":"Jurat!I$1","v":0},{"$f":"Jurat!D$33","v":"00:00:00"},"Q1","2017-03-31","Summary","Operating Expense","Taxes & Fees","Taxes & Fees","6.1","State Premium Tax",{"$f":"'LTC Rev-Exp Summary'!D$64","v":{"v":0,"d":"$0.00"}},{"v":0,"d":"$0.00"},{"v":0,"d":"$0.00"},{"v":0,"d":"$0.00"},{"v":0,"d":"$0.00"}]
["LTC",null,null,{"$f":"Jurat!I$1","v":0},{"$f":"Jurat!D$33","v":"00:00:00"},"Q1","2017-03-31","Summary","Operating Expense","Taxes & Fees","Taxes & Fees","6.2","Department of Insurance Assessments",{"$f":"'LTC Rev-Exp Summary'!D$65","v":{"v":0,"d":"$0.00"}},{"v":0,"d":"$0.00"},{"v":0,"d":"$0.00"},{"v":0,"d":"$0.00"},{"v":0,"d":"$0.00"}]
["LTC",null,null,{"$f":"Jurat!I$1","v":0},{"$f":"Jurat!D$33","v":"00:00:00"},"Q1","2017-03-31","Summary","Non-Operating Expense","Income Tax Expense","Income Tax Expense","9.0","Income Tax Expense",{"$f":"'LTC Rev-Exp Summary'!D$72","v":{"v":0,"d":"$0.00"}},{"v":0,"d":"$0.00"},{"v":0,"d":"$0.00"},{"v":0,"d":"$0.00"},{"v":0,"d":"$0.00"}]
["LTC",null,null,{"$f":"Jurat!I$1","v":0},{"$f":"Jurat!D$33","v":"00:00:00"},"Q2","2017-06-30","Summary","Member Months","Member Months","Member Months",null,"Member Months",{"$f":"'LTC Rev-Exp Summary'!H$9","v":{"v":0,"d":"$0.00"}},{"$f":"'LTC Rev-Exp Summary'!I$9","v":{"v":0,"d":"$0.00"}},{"$f":"'LTC Rev-Exp Summary'!J$9","v":{"v":0,"d":"$0.00"}},{"$f":"'LTC Rev-Exp Summary'!K$9","v":{"v":0,"d":"$0.00"}},{"v":0,"d":"$0.00"}]
["LTC",null,null,{"$f":"Jurat!I$1","v":0},{"$f":"Jurat!D$33","v":"00:00:00"},"Q2","2017-06-30","Summary","Operating Revenue","Capitation","Capitation",1.1,"Capitation",{"$f":"'LTC Rev-Exp Summary'!H$11","v":{"v":0,"d":"$0.00"}},{"$f":"'LTC Rev-Exp Summary'!I$11","v":{"v":0,"d":"$0.00"}},{"$f":"'LTC Rev-Exp Summary'!J$11","v":{"v":0,"d":"$0.00"}},{"$f":"'LTC Rev-Exp Summary'!K$11","v":{"v":0,"d":"$0.00"}},{"v":0,"d":"$0.00"}]
["LTC",null,null,{"$f":"Jurat!I$1","v":0},{"$f":"Jurat!D$33","v":"00:00:00"},"Q2","2017-06-30","Summary","Operating Revenue","Capitation","NH Rate Reconciliation",1.2,"NH Rate Reconciliation",{"$f":"'LTC Rev-Exp Summary'!H$12","v":{"v":0,"d":"$0.00"}},{"$f":"'LTC Rev-Exp Summary'!I$12","v":{"v":0,"d":"$0.00"}},{"$f":"'LTC Rev-Exp Summary'!J$12","v":{"v":0,"d":"$0.00"}},{"$f":"'LTC Rev-Exp Summary'!K$12","v":{"v":0,"d":"$0.00"}},{"v":0,"d":"$0.00"}]
["LTC",null,null,{"$f":"Jurat!I$1","v":0},{"$f":"Jurat!D$33","v":"00:00:00"},"Q2","2017-06-30","Summary","Operating Revenue","Other Revenue","Other Revenue",1.3,"Other Revenue",{"$f":"'LTC Rev-Exp Summary'!H$13","v":{"v":0,"d":"$0.00"}},{"$f":"'LTC Rev-Exp Summary'!I$13","v":{"v":0,"d":"$0.00"}},{"$f":"'LTC Rev-Exp Summary'!J$13","v":{"v":0,"d":"$0.00"}},{"$f":"'LTC Rev-Exp Summary'!K$13","v":{"v":0,"d":"$0.00"}},{"v":0,"d":"$0.00"}]
["LTC",null,null,{"$f":"Jurat!I$1","v":0},{"$f":"Jurat!D$33","v":"00:00:00"},"Q2","2017-06-30","Summary","Operating Expense","Medical Expense","NF & Hospice","2.1","Nursing Facility Days (Medicaid)",{"$f":"'LTC Rev-Exp Summary'!H$17","v":{"v":0,"d":"$0.00"}},{"$f":"'LTC Rev-Exp Summary'!I$17","v":{"v":0,"d":"$0.00"}},{"$f":"'LTC Rev-Exp Summary'!J$17","v":{"v":0,"d":"$0.00"}},{"$f":"'LTC Rev-Exp Summary'!K$17","v":{"v":0,"d":"$0.00"}},{"v":0,"d":"$0.00"}]
["LTC",null,null,{"$f":"Jurat!I$1","v":0},{"$f":"Jurat!D$33","v":"00:00:00"},"Q2","2017-06-30","Summary","Operating Expense","Medical Expense","NF & Hospice","2.2","Nursing Facility Days (Crossover)",{"$f":"'LTC Rev-Exp Summary'!H$18","v":{"v":0,"d":"$0.00"}},{"$f":"'LTC Rev-Exp Summary'!I$18","v":{"v":0,"d":"$0.00"}},{"$f":"'LTC Rev-Exp Summary'!J$18","v":{"v":0,"d":"$0.00"}},{"$f":"'LTC Rev-Exp Summary'!K$18","v":{"v":0,"d":"$0.00"}},{"v":0,"d":"$0.00"}]
["LTC",null,null,{"$f":"Jurat!I$1","v":0},{"$f":"Jurat!D$33","v":"00:00:00"},"Q2","2017-06-30","Summary","Operating Expense","Medical Expense","NF & Hospice","2.3","Nursing Facility FFS (Medicaid)",{"$f":"'LTC Rev-Exp Summary'!H$19","v":{"v":0,"d":"$0.00"}},{"$f":"'LTC Rev-Exp Summary'!I$19","v":{"v":0,"d":"$0.00"}},{"$f":"'LTC Rev-Exp Summary'!J$19","v":{"v":0,"d":"$0.00"}},{"$f":"'LTC Rev-Exp Summary'!K$19","v":{"v":0,"d":"$0.00"}},{"v":0,"d":"$0.00"}]
["LTC",null,null,{"$f":"Jurat!I$1","v":0},{"$f":"Jurat!D$33","v":"00:00:00"},"Q2","2017-06-30","Summary","Operating Expense","Medical Expense","NF & Hospice","2.4","Nursing Facility FFS (Crossover)",{"$f":"'LTC Rev-Exp Summary'!H$20","v":{"v":0,"d":"$0.00"}},{"$f":"'LTC Rev-Exp Summary'!I$20","v":{"v":0,"d":"$0.00"}},{"$f":"'LTC Rev-Exp Summary'!J$20","v":{"v":0,"d":"$0.00"}},{"$f":"'LTC Rev-Exp Summary'!K$20","v":{"v":0,"d":"$0.00"}},{"v":0,"d":"$0.00"}]
["LTC",null,null,{"$f":"Jurat!I$1","v":0},{"$f":"Jurat!D$33","v":"00:00:00"},"Q2","2017-06-30","Summary","Operating Expense","Medical Expense","NF & Hospice","2.5","Hospice Days",{"$f":"'LTC Rev-Exp Summary'!H$21","v":{"v":0,"d":"$0.00"}},{"$f":"'LTC Rev-Exp Summary'!I$21","v":{"v":0,"d":"$0.00"}},{"$f":"'LTC Rev-Exp Summary'!J$21","v":{"v":0,"d":"$0.00"}},{"$f":"'LTC Rev-Exp Summary'!K$21","v":{"v":0,"d":"$0.00"}},{"v":0,"d":"$0.00"}]
["LTC",null,null,{"$f":"Jurat!I$1","v":0},{"$f":"Jurat!D$33","v":"00:00:00"},"Q2","2017-06-30","Summary","Operating Expense","Medical Expense","NF & Hospice","2.6","Hospice FFS",{"$f":"'LTC Rev-Exp Summary'!H$22","v":{"v":0,"d":"$0.00"}},{"$f":"'LTC Rev-Exp Summary'!I$22","v":{"v":0,"d":"$0.00"}},{"$f":"'LTC Rev-Exp Summary'!J$22","v":{"v":0,"d":"$0.00"}},{"$f":"'LTC Rev-Exp Summary'!K$22","v":{"v":0,"d":"$0.00"}},{"v":0,"d":"$0.00"}]
["LTC",null,null,{"$f":"Jurat!I$1","v":0},{"$f":"Jurat!D$33","v":"00:00:00"},"Q2","2017-06-30","Summary","Operating Expense","Medical Expense","NF & Hospice","2.7","Ending IBNP for NF & Hospice",{"$f":"'LTC Rev-Exp Summary'!H$23","v":{"v":0,"d":"$0.00"}},{"$f":"'LTC Rev-Exp Summary'!I$23","v":{"v":0,"d":"$0.00"}},{"$f":"'LTC Rev-Exp Summary'!J$23","v":{"v":0,"d":"$0.00"}},{"$f":"'LTC Rev-Exp Summary'!K$23","v":{"v":0,"d":"$0.00"}},{"v":0,"d":"$0.00"}]
["LTC",null,null,{"$f":"Jurat!I$1","v":0},{"$f":"Jurat!D$33","v":"00:00:00"},"Q2","2017-06-30","Summary","Operating Expense","Medical Expense","NF & Hospice","2.8","NF & Hospice Subcapitated",{"$f":"'LTC Rev-Exp Summary'!H$24","v":{"v":0,"d":"$0.00"}},{"$f":"'LTC Rev-Exp Summary'!I$24","v":{"v":0,"d":"$0.00"}},{"$f":"'LTC Rev-Exp Summary'!J$24","v":{"v":0,"d":"$0.00"}},{"$f":"'LTC Rev-Exp Summary'!K$24","v":{"v":0,"d":"$0.00"}},{"v":0,"d":"$0.00"}]
["LTC",null,null,{"$f":"Jurat!I$1","v":0},{"$f":"Jurat!D$33","v":"00:00:00"},"Q2","2017-06-30","Summary","Operating Expense","Medical Expense","NF & Hospice","2.9","NF & Hospice Settlements",{"$f":"'LTC Rev-Exp Summary'!H$25","v":{"v":0,"d":"$0.00"}},{"$f":"'LTC Rev-Exp Summary'!I$25","v":{"v":0,"d":"$0.00"}},{"$f":"'LTC Rev-Exp Summary'!J$25","v":{"v":0,"d":"$0.00"}},{"$f":"'LTC Rev-Exp Summary'!K$25","v":{"v":0,"d":"$0.00"}},{"v":0,"d":"$0.00"}]
["LTC",null,null,{"$f":"Jurat!I$1","v":0},{"$f":"Jurat!D$33","v":"00:00:00"},"Q2","2017-06-30","Summary","Operating Expense","Medical Expense","LTC Services","2.11","Assisted Living FFS",{"$f":"'LTC Rev-Exp Summary'!H$27","v":{"v":0,"d":"$0.00"}},{"$f":"'LTC Rev-Exp Summary'!I$27","v":{"v":0,"d":"$0.00"}},{"$f":"'LTC Rev-Exp Summary'!J$27","v":{"v":0,"d":"$0.00"}},{"$f":"'LTC Rev-Exp Summary'!K$27","v":{"v":0,"d":"$0.00"}},{"v":0,"d":"$0.00"}]
["LTC",null,null,{"$f":"Jurat!I$1","v":0},{"$f":"Jurat!D$33","v":"00:00:00"},"Q2","2017-06-30","Summary","Operating Expense","Medical Expense","LTC Services","2.12","Home Health FFS",{"$f":"'LTC Rev-Exp Summary'!H$28","v":{"v":0,"d":"$0.00"}},{"$f":"'LTC Rev-Exp Summary'!I$28","v":{"v":0,"d":"$0.00"}},{"$f":"'LTC Rev-Exp Summary'!J$28","v":{"v":0,"d":"$0.00"}},{"$f":"'LTC Rev-Exp Summary'!K$28","v":{"v":0,"d":"$0.00"}},{"v":0,"d":"$0.00"}]
["LTC",null,null,{"$f":"Jurat!I$1","v":0},{"$f":"Jurat!D$33","v":"00:00:00"},"Q2","2017-06-30","Summary","Operating Expense","Medical Expense","LTC Services","2.13","Medical Equipment/Supplies FFS",{"$f":"'LTC Rev-Exp Summary'!H$29","v":{"v":0,"d":"$0.00"}},{"$f":"'LTC Rev-Exp Summary'!I$29","v":{"v":0,"d":"$0.00"}},{"$f":"'LTC Rev-Exp Summary'!J$29","v":{"v":0,"d":"$0.00"}},{"$f":"'LTC Rev-Exp Summary'!K$29","v":{"v":0,"d":"$0.00"}},{"v":0,"d":"$0.00"}]
["LTC",null,null,{"$f":"Jurat!I$1","v":0},{"$f":"Jurat!D$33","v":"00:00:00"},"Q2","2017-06-30","Summary","Operating Expense","Medical Expense","LTC Services","2.14","Therapy FFS",{"$f":"'LTC Rev-Exp Summary'!H$30","v":{"v":0,"d":"$0.00"}},{"$f":"'LTC Rev-Exp Summary'!I$30","v":{"v":0,"d":"$0.00"}},{"$f":"'LTC Rev-Exp Summary'!J$30","v":{"v":0,"d":"$0.00"}},{"$f":"'LTC Rev-Exp Summary'!K$30","v":{"v":0,"d":"$0.00"}},{"v":0,"d":"$0.00"}]
["LTC",null,null,{"$f":"Jurat!I$1","v":0},{"$f":"Jurat!D$33","v":"00:00:00"},"Q2","2017-06-30","Summary","Operating Expense","Medical Expense","LTC Services","2.15","Transportation FFS",{"$f":"'LTC Rev-Exp Summary'!H$31","v":{"v":0,"d":"$0.00"}},{"$f":"'LTC Rev-Exp Summary'!I$31","v":{"v":0,"d":"$0.00"}},{"$f":"'LTC Rev-Exp Summary'!J$31","v":{"v":0,"d":"$0.00"}},{"$f":"'LTC Rev-Exp Summary'!K$31","v":{"v":0,"d":"$0.00"}},{"v":0,"d":"$0.00"}]
["LTC",null,null,{"$f":"Jurat!I$1","v":0},{"$f":"Jurat!D$33","v":"00:00:00"},"Q2","2017-06-30","Summary","Operating Expense","Medical Expense","LTC Services","2.16","Case Management FFS (Plan Provided)",{"$f":"'LTC Rev-Exp Summary'!H$32","v":{"v":0,"d":"$0.00"}},{"$f":"'LTC Rev-Exp Summary'!I$32","v":{"v":0,"d":"$0.00"}},{"$f":"'LTC Rev-Exp Summary'!J$32","v":{"v":0,"d":"$0.00"}},{"$f":"'LTC Rev-Exp Summary'!K$32","v":{"v":0,"d":"$0.00"}},{"v":0,"d":"$0.00"}]
["LTC",null,null,{"$f":"Jurat!I$1","v":0},{"$f":"Jurat!D$33","v":"00:00:00"},"Q2","2017-06-30","Summary","Operating Expense","Medical Expense","LTC Services","2.17","Case Management FF (Non-Plan Provided)",{"$f":"'LTC Rev-Exp Summary'!H$33","v":{"v":0,"d":"$0.00"}},{"$f":"'LTC Rev-Exp Summary'!I$33","v":{"v":0,"d":"$0.00"}},{"$f":"'LTC Rev-Exp Summary'!J$33","v":{"v":0,"d":"$0.00"}},{"$f":"'LTC Rev-Exp Summary'!K$33","v":{"v":0,"d":"$0.00"}},{"v":0,"d":"$0.00"}]
["LTC",null,null,{"$f":"Jurat!I$1","v":0},{"$f":"Jurat!D$33","v":"00:00:00"},"Q2","2017-06-30","Summary","Operating Expense","Medical Expense","LTC Services","2.18","HCBS FFS",{"$f":"'LTC Rev-Exp Summary'!H$34","v":{"v":0,"d":"$0.00"}},{"$f":"'LTC Rev-Exp Summary'!I$34","v":{"v":0,"d":"$0.00"}},{"$f":"'LTC Rev-Exp Summary'!J$34","v":{"v":0,"d":"$0.00"}},{"$f":"'LTC Rev-Exp Summary'!K$34","v":{"v":0,"d":"$0.00"}},{"v":0,"d":"$0.00"}]
["LTC",null,null,{"$f":"Jurat!I$1","v":0},{"$f":"Jurat!D$33","v":"00:00:00"},"Q2","2017-06-30","Summary","Operating Expense","Medical Expense","LTC Services","2.19","Subcapitated LTC Services",{"$f":"'LTC Rev-Exp Summary'!H$35","v":{"v":0,"d":"$0.00"}},{"$f":"'LTC Rev-Exp Summary'!I$35","v":{"v":0,"d":"$0.00"}},{"$f":"'LTC Rev-Exp Summary'!J$35","v":{"v":0,"d":"$0.00"}},{"$f":"'LTC Rev-Exp Summary'!K$35","v":{"v":0,"d":"$0.00"}},{"v":0,"d":"$0.00"}]
["LTC",null,null,{"$f":"Jurat!I$1","v":0},{"$f":"Jurat!D$33","v":"00:00:00"},"Q2","2017-06-30","Summary","Operating Expense","Medical Expense","LTC Services","2.20","Ending IBNP for Long Term Care Services",{"$f":"'LTC Rev-Exp Summary'!H$36","v":{"v":0,"d":"$0.00"}},{"$f":"'LTC Rev-Exp Summary'!I$36","v":{"v":0,"d":"$0.00"}},{"$f":"'LTC Rev-Exp Summary'!J$36","v":{"v":0,"d":"$0.00"}},{"$f":"'LTC Rev-Exp Summary'!K$36","v":{"v":0,"d":"$0.00"}},{"v":0,"d":"$0.00"}]
["LTC",null,null,{"$f":"Jurat!I$1","v":0},{"$f":"Jurat!D$33","v":"00:00:00"},"Q2","2017-06-30","Summary","Operating Expense","Medical Expense","LTC Services","2.21","LTC Services Settlements",{"$f":"'LTC Rev-Exp Summary'!H$37","v":{"v":0,"d":"$0.00"}},{"$f":"'LTC Rev-Exp Summary'!I$37","v":{"v":0,"d":"$0.00"}},{"$f":"'LTC Rev-Exp Summary'!J$37","v":{"v":0,"d":"$0.00"}},{"$f":"'LTC Rev-Exp Summary'!K$37","v":{"v":0,"d":"$0.00"}},{"v":0,"d":"$0.00"}]
["LTC",null,null,{"$f":"Jurat!I$1","v":0},{"$f":"Jurat!D$33","v":"00:00:00"},"Q2","2017-06-30","Summary","Operating Expense","Medical Expense","Expanded Benefits","3.1","Expanded Benefits FFS",{"$f":"'LTC Rev-Exp Summary'!H$39","v":{"v":0,"d":"$0.00"}},{"$f":"'LTC Rev-Exp Summary'!I$39","v":{"v":0,"d":"$0.00"}},{"$f":"'LTC Rev-Exp Summary'!J$39","v":{"v":0,"d":"$0.00"}},{"$f":"'LTC Rev-Exp Summary'!K$39","v":{"v":0,"d":"$0.00"}},{"v":0,"d":"$0.00"}]
["LTC",null,null,{"$f":"Jurat!I$1","v":0},{"$f":"Jurat!D$33","v":"00:00:00"},"Q2","2017-06-30","Summary","Operating Expense","Medical Expense","Expanded Benefits","3.2","Expanded Benefits Subcapitation",{"$f":"'LTC Rev-Exp Summary'!H$40","v":{"v":0,"d":"$0.00"}},{"$f":"'LTC Rev-Exp Summary'!I$40","v":{"v":0,"d":"$0.00"}},{"$f":"'LTC Rev-Exp Summary'!J$40","v":{"v":0,"d":"$0.00"}},{"$f":"'LTC Rev-Exp Summary'!K$40","v":{"v":0,"d":"$0.00"}},{"v":0,"d":"$0.00"}]
["LTC",null,null,{"$f":"Jurat!I$1","v":0},{"$f":"Jurat!D$33","v":"00:00:00"},"Q2","2017-06-30","Summary","Operating Expense","Medical Expense","Expanded Benefits","3.3","Ending IBNP for Expanded Benefits",{"$f":"'LTC Rev-Exp Summary'!H$41","v":{"v":0,"d":"$0.00"}},{"$f":"'LTC Rev-Exp Summary'!I$41","v":{"v":0,"d":"$0.00"}},{"$f":"'LTC Rev-Exp Summary'!J$41","v":{"v":0,"d":"$0.00"}},{"$f":"'LTC Rev-Exp Summary'!K$41","v":{"v":0,"d":"$0.00"}},{"v":0,"d":"$0.00"}]
["LTC",null,null,{"$f":"Jurat!I$1","v":0},{"$f":"Jurat!D$33","v":"00:00:00"},"Q2","2017-06-30","Summary","Operating Expense","Medical Expense","Expanded Benefits","3.4","Expanded Benefits Settlements",{"$f":"'LTC Rev-Exp Summary'!H$42","v":{"v":0,"d":"$0.00"}},{"$f":"'LTC Rev-Exp Summary'!I$42","v":{"v":0,"d":"$0.00"}},{"$f":"'LTC Rev-Exp Summary'!J$42","v":{"v":0,"d":"$0.00"}},{"$f":"'LTC Rev-Exp Summary'!K$42","v":{"v":0,"d":"$0.00"}},{"v":0,"d":"$0.00"}]
["LTC",null,null,{"$f":"Jurat!I$1","v":0},{"$f":"Jurat!D$33","v":"00:00:00"},"Q2","2017-06-30","Summary","Operating Expense","Medical Expense","Other Medical","4.5","TPL & Fraud/Abuse Recoveries",{"$f":"'LTC Rev-Exp Summary'!H$48","v":{"v":0,"d":"$0.00"}},{"$f":"'LTC Rev-Exp Summary'!I$48","v":{"v":0,"d":"$0.00"}},{"$f":"'LTC Rev-Exp Summary'!J$48","v":{"v":0,"d":"$0.00"}},{"$f":"'LTC Rev-Exp Summary'!K$48","v":{"v":0,"d":"$0.00"}},{"v":0,"d":"$0.00"}]
["LTC",null,null,{"$f":"Jurat!I$1","v":0},{"$f":"Jurat!D$33","v":"00:00:00"},"Q2","2017-06-30","Summary","Operating Expense","Medical Expense","Other Medical","4.6.1","Premium Deficiency Reserve",{"$f":"'LTC Rev-Exp Summary'!H$49","v":{"v":0,"d":"$0.00"}},{"$f":"'LTC Rev-Exp Summary'!I$49","v":{"v":0,"d":"$0.00"}},{"$f":"'LTC Rev-Exp Summary'!J$49","v":{"v":0,"d":"$0.00"}},{"$f":"'LTC Rev-Exp Summary'!K$49","v":{"v":0,"d":"$0.00"}},{"v":0,"d":"$0.00"}]
["LTC",null,null,{"$f":"Jurat!I$1","v":0},{"$f":"Jurat!D$33","v":"00:00:00"},"Q2","2017-06-30","Summary","Operating Expense","Medical Expense","Other Medical","4.8","Reinsurance Premiums",{"$f":"'LTC Rev-Exp Summary'!H$51","v":{"v":0,"d":"$0.00"}},{"$f":"'LTC Rev-Exp Summary'!I$51","v":{"v":0,"d":"$0.00"}},{"$f":"'LTC Rev-Exp Summary'!J$51","v":{"v":0,"d":"$0.00"}},{"$f":"'LTC Rev-Exp Summary'!K$51","v":{"v":0,"d":"$0.00"}},{"v":0,"d":"$0.00"}]
["LTC",null,null,{"$f":"Jurat!I$1","v":0},{"$f":"Jurat!D$33","v":"00:00:00"},"Q2","2017-06-30","Summary","Operating Expense","Medical Expense","Other Medical","4.9","Reinsurance Recoveries",{"$f":"'LTC Rev-Exp Summary'!H$52","v":{"v":0,"d":"$0.00"}},{"$f":"'LTC Rev-Exp Summary'!I$52","v":{"v":0,"d":"$0.00"}},{"$f":"'LTC Rev-Exp Summary'!J$52","v":{"v":0,"d":"$0.00"}},{"$f":"'LTC Rev-Exp Summary'!K$52","v":{"v":0,"d":"$0.00"}},{"v":0,"d":"$0.00"}]
["LTC",null,null,{"$f":"Jurat!I$1","v":0},{"$f":"Jurat!D$33","v":"00:00:00"},"Q2","2017-06-30","Summary","Operating Expense","Administrative Expense","Administrative","5.1","Salaries & Benefits",{"$f":"'LTC Rev-Exp Summary'!H$57","v":{"v":0,"d":"$0.00"}},{"$f":"'LTC Rev-Exp Summary'!I$57","v":{"v":0,"d":"$0.00"}},{"$f":"'LTC Rev-Exp Summary'!J$57","v":{"v":0,"d":"$0.00"}},{"$f":"'LTC Rev-Exp Summary'!K$57","v":{"v":0,"d":"$0.00"}},{"v":0,"d":"$0.00"}]
["LTC",null,null,{"$f":"Jurat!I$1","v":0},{"$f":"Jurat!D$33","v":"00:00:00"},"Q2","2017-06-30","Summary","Operating Expense","Administrative Expense","Administrative","5.2","Administrative Services",{"$f":"'LTC Rev-Exp Summary'!H$58","v":{"v":0,"d":"$0.00"}},{"$f":"'LTC Rev-Exp Summary'!I$58","v":{"v":0,"d":"$0.00"}},{"$f":"'LTC Rev-Exp Summary'!J$58","v":{"v":0,"d":"$0.00"}},{"$f":"'LTC Rev-Exp Summary'!K$58","v":{"v":0,"d":"$0.00"}},{"v":0,"d":"$0.00"}]
["LTC",null,null,{"$f":"Jurat!I$1","v":0},{"$f":"Jurat!D$33","v":"00:00:00"},"Q2","2017-06-30","Summary","Operating Expense","Administrative Expense","Administrative","5.3","Information Systems",{"$f":"'LTC Rev-Exp Summary'!H$59","v":{"v":0,"d":"$0.00"}},{"$f":"'LTC Rev-Exp Summary'!I$59","v":{"v":0,"d":"$0.00"}},{"$f":"'LTC Rev-Exp Summary'!J$59","v":{"v":0,"d":"$0.00"}},{"$f":"'LTC Rev-Exp Summary'!K$59","v":{"v":0,"d":"$0.00"}},{"v":0,"d":"$0.00"}]
["LTC",null,null,{"$f":"Jurat!I$1","v":0},{"$f":"Jurat!D$33","v":"00:00:00"},"Q2","2017-06-30","Summary","Operating Expense","Administrative Expense","Administrative","5.4","Marketing Expenses",{"$f":"'LTC Rev-Exp Summary'!H$60","v":{"v":0,"d":"$0.00"}},{"$f":"'LTC Rev-Exp Summary'!I$60","v":{"v":0,"d":"$0.00"}},{"$f":"'LTC Rev-Exp Summary'!J$60","v":{"v":0,"d":"$0.00"}},{"$f":"'LTC Rev-Exp Summary'!K$60","v":{"v":0,"d":"$0.00"}},{"v":0,"d":"$0.00"}]
["LTC",null,null,{"$f":"Jurat!I$1","v":0},{"$f":"Jurat!D$33","v":"00:00:00"},"Q2","2017-06-30","Summary","Operating Expense","Administrative Expense","Administrative","5.5","General  Administration",{"$f":"'LTC Rev-Exp Summary'!H$61","v":{"v":0,"d":"$0.00"}},{"$f":"'LTC Rev-Exp Summary'!I$61","v":{"v":0,"d":"$0.00"}},{"$f":"'LTC Rev-Exp Summary'!J$61","v":{"v":0,"d":"$0.00"}},{"$f":"'LTC Rev-Exp Summary'!K$61","v":{"v":0,"d":"$0.00"}},{"v":0,"d":"$0.00"}]
["LTC",null,null,{"$f":"Jurat!I$1","v":0},{"$f":"Jurat!D$33","v":"00:00:00"},"Q2","2017-06-30","Summary","Operating Expense","Administrative Expense","Administrative","5.6","Compliance/Regulatory",{"$f":"'LTC Rev-Exp Summary'!H$62","v":{"v":0,"d":"$0.00"}},{"$f":"'LTC Rev-Exp Summary'!I$62","v":{"v":0,"d":"$0.00"}},{"$f":"'LTC Rev-Exp Summary'!J$62","v":{"v":0,"d":"$0.00"}},{"$f":"'LTC Rev-Exp Summary'!K$62","v":{"v":0,"d":"$0.00"}},{"v":0,"d":"$0.00"}]
["LTC",null,null,{"$f":"Jurat!I$1","v":0},{"$f":"Jurat!D$33","v":"00:00:00"},"Q2","2017-06-30","Summary","Operating Expense","Taxes & Fees","Taxes & Fees","6.1","State Premium Tax",{"$f":"'LTC Rev-Exp Summary'!H$64","v":{"v":0,"d":"$0.00"}},{"v":0,"d":"$0.00"},{"v":0,"d":"$0.00"},{"v":0,"d":"$0.00"},{"v":0,"d":"$0.00"}]
["LTC",null,null,{"$f":"Jurat!I$1","v":0},{"$f":"Jurat!D$33","v":"00:00:00"},"Q2","2017-06-30","Summary","Operating Expense","Taxes & Fees","Taxes & Fees","6.2","Department of Insurance Assessments",{"$f":"'LTC Rev-Exp Summary'!H$65","v":{"v":0,"d":"$0.00"}},{"v":0,"d":"$0.00"},{"v":0,"d":"$0.00"},{"v":0,"d":"$0.00"},{"v":0,"d":"$0.00"}]
["LTC",null,null,{"$f":"Jurat!I$1","v":0},{"$f":"Jurat!D$33","v":"00:00:00"},"Q2","2017-06-30","Summary","Non-Operating Expense","Income Tax Expense","Income Tax Expense","9.0","Income Tax Expense",{"$f":"'LTC Rev-Exp Summary'!H$72","v":{"v":0,"d":"$0.00"}},{"v":0,"d":"$0.00"},{"v":0,"d":"$0.00"},{"v":0,"d":"$0.00"},{"v":0,"d":"$0.00"}]
["LTC",null,null,{"$f":"Jurat!I$1","v":0},{"$f":"Jurat!D$33","v":"00:00:00"},"Q3","2017-09-30","Summary","Member Months","Member Months","Member Months",null,"Member Months",{"$f":"'LTC Rev-Exp Summary'!L$9","v":{"v":0,"d":"$0.00"}},{"$f":"'LTC Rev-Exp Summary'!M$9","v":{"v":0,"d":"$0.00"}},{"$f":"'LTC Rev-Exp Summary'!N$9","v":{"v":0,"d":"$0.00"}},{"$f":"'LTC Rev-Exp Summary'!O$9","v":{"v":0,"d":"$0.00"}},{"v":0,"d":"$0.00"}]
["LTC",null,null,{"$f":"Jurat!I$1","v":0},{"$f":"Jurat!D$33","v":"00:00:00"},"Q3","2017-09-30","Summary","Operating Revenue","Capitation","Capitation",1.1,"Capitation",{"$f":"'LTC Rev-Exp Summary'!L$11","v":{"v":0,"d":"$0.00"}},{"$f":"'LTC Rev-Exp Summary'!M$11","v":{"v":0,"d":"$0.00"}},{"$f":"'LTC Rev-Exp Summary'!N$11","v":{"v":0,"d":"$0.00"}},{"$f":"'LTC Rev-Exp Summary'!O$11","v":{"v":0,"d":"$0.00"}},{"v":0,"d":"$0.00"}]
["LTC",null,null,{"$f":"Jurat!I$1","v":0},{"$f":"Jurat!D$33","v":"00:00:00"},"Q3","2017-09-30","Summary","Operating Revenue","Capitation","NH Rate Reconciliation",1.2,"NH Rate Reconciliation",{"$f":"'LTC Rev-Exp Summary'!L$12","v":{"v":0,"d":"$0.00"}},{"$f":"'LTC Rev-Exp Summary'!M$12","v":{"v":0,"d":"$0.00"}},{"$f":"'LTC Rev-Exp Summary'!N$12","v":{"v":0,"d":"$0.00"}},{"$f":"'LTC Rev-Exp Summary'!O$12","v":{"v":0,"d":"$0.00"}},{"v":0,"d":"$0.00"}]
["LTC",null,null,{"$f":"Jurat!I$1","v":0},{"$f":"Jurat!D$33","v":"00:00:00"},"Q3","2017-09-30","Summary","Operating Revenue","Other Revenue","Other Revenue",1.3,"Other Revenue",{"$f":"'LTC Rev-Exp Summary'!L$13","v":{"v":0,"d":"$0.00"}},{"$f":"'LTC Rev-Exp Summary'!M$13","v":{"v":0,"d":"$0.00"}},{"$f":"'LTC Rev-Exp Summary'!N$13","v":{"v":0,"d":"$0.00"}},{"$f":"'LTC Rev-Exp Summary'!O$13","v":{"v":0,"d":"$0.00"}},{"v":0,"d":"$0.00"}]
["LTC",null,null,{"$f":"Jurat!I$1","v":0},{"$f":"Jurat!D$33","v":"00:00:00"},"Q3","2017-09-30","Summary","Operating Expense","Medical Expense","NF & Hospice","2.1","Nursing Facility Days (Medicaid)",{"$f":"'LTC Rev-Exp Summary'!L$17","v":{"v":0,"d":"$0.00"}},{"$f":"'LTC Rev-Exp Summary'!M$17","v":{"v":0,"d":"$0.00"}},{"$f":"'LTC Rev-Exp Summary'!N$17","v":{"v":0,"d":"$0.00"}},{"$f":"'LTC Rev-Exp Summary'!O$17","v":{"v":0,"d":"$0.00"}},{"v":0,"d":"$0.00"}]
["LTC",null,null,{"$f":"Jurat!I$1","v":0},{"$f":"Jurat!D$33","v":"00:00:00"},"Q3","2017-09-30","Summary","Operating Expense","Medical Expense","NF & Hospice","2.2","Nursing Facility Days (Crossover)",{"$f":"'LTC Rev-Exp Summary'!L$18","v":{"v":0,"d":"$0.00"}},{"$f":"'LTC Rev-Exp Summary'!M$18","v":{"v":0,"d":"$0.00"}},{"$f":"'LTC Rev-Exp Summary'!N$18","v":{"v":0,"d":"$0.00"}},{"$f":"'LTC Rev-Exp Summary'!O$18","v":{"v":0,"d":"$0.00"}},{"v":0,"d":"$0.00"}]
["LTC",null,null,{"$f":"Jurat!I$1","v":0},{"$f":"Jurat!D$33","v":"00:00:00"},"Q3","2017-09-30","Summary","Operating Expense","Medical Expense","NF & Hospice","2.3","Nursing Facility FFS (Medicaid)",{"$f":"'LTC Rev-Exp Summary'!L$19","v":{"v":0,"d":"$0.00"}},{"$f":"'LTC Rev-Exp Summary'!M$19","v":{"v":0,"d":"$0.00"}},{"$f":"'LTC Rev-Exp Summary'!N$19","v":{"v":0,"d":"$0.00"}},{"$f":"'LTC Rev-Exp Summary'!O$19","v":{"v":0,"d":"$0.00"}},{"v":0,"d":"$0.00"}]
["LTC",null,null,{"$f":"Jurat!I$1","v":0},{"$f":"Jurat!D$33","v":"00:00:00"},"Q3","2017-09-30","Summary","Operating Expense","Medical Expense","NF & Hospice","2.4","Nursing Facility FFS (Crossover)",{"$f":"'LTC Rev-Exp Summary'!L$20","v":{"v":0,"d":"$0.00"}},{"$f":"'LTC Rev-Exp Summary'!M$20","v":{"v":0,"d":"$0.00"}},{"$f":"'LTC Rev-Exp Summary'!N$20","v":{"v":0,"d":"$0.00"}},{"$f":"'LTC Rev-Exp Summary'!O$20","v":{"v":0,"d":"$0.00"}},{"v":0,"d":"$0.00"}]
["LTC",null,null,{"$f":"Jurat!I$1","v":0},{"$f":"Jurat!D$33","v":"00:00:00"},"Q3","2017-09-30","Summary","Operating Expense","Medical Expense","NF & Hospice","2.5","Hospice Days",{"$f":"'LTC Rev-Exp Summary'!L$21","v":{"v":0,"d":"$0.00"}},{"$f":"'LTC Rev-Exp Summary'!M$21","v":{"v":0,"d":"$0.00"}},{"$f":"'LTC Rev-Exp Summary'!N$21","v":{"v":0,"d":"$0.00"}},{"$f":"'LTC Rev-Exp Summary'!O$21","v":{"v":0,"d":"$0.00"}},{"v":0,"d":"$0.00"}]
["LTC",null,null,{"$f":"Jurat!I$1","v":0},{"$f":"Jurat!D$33","v":"00:00:00"},"Q3","2017-09-30","Summary","Operating Expense","Medical Expense","NF & Hospice","2.6","Hospice FFS",{"$f":"'LTC Rev-Exp Summary'!L$22","v":{"v":0,"d":"$0.00"}},{"$f":"'LTC Rev-Exp Summary'!M$22","v":{"v":0,"d":"$0.00"}},{"$f":"'LTC Rev-Exp Summary'!N$22","v":{"v":0,"d":"$0.00"}},{"$f":"'LTC Rev-Exp Summary'!O$22","v":{"v":0,"d":"$0.00"}},{"v":0,"d":"$0.00"}]
["LTC",null,null,{"$f":"Jurat!I$1","v":0},{"$f":"Jurat!D$33","v":"00:00:00"},"Q3","2017-09-30","Summary","Operating Expense","Medical Expense","NF & Hospice","2.7","Ending IBNP for NF & Hospice",{"$f":"'LTC Rev-Exp Summary'!L$23","v":{"v":0,"d":"$0.00"}},{"$f":"'LTC Rev-Exp Summary'!M$23","v":{"v":0,"d":"$0.00"}},{"$f":"'LTC Rev-Exp Summary'!N$23","v":{"v":0,"d":"$0.00"}},{"$f":"'LTC Rev-Exp Summary'!O$23","v":{"v":0,"d":"$0.00"}},{"v":0,"d":"$0.00"}]
["LTC",null,null,{"$f":"Jurat!I$1","v":0},{"$f":"Jurat!D$33","v":"00:00:00"},"Q3","2017-09-30","Summary","Operating Expense","Medical Expense","NF & Hospice","2.8","NF & Hospice Subcapitated",{"$f":"'LTC Rev-Exp Summary'!L$24","v":{"v":0,"d":"$0.00"}},{"$f":"'LTC Rev-Exp Summary'!M$24","v":{"v":0,"d":"$0.00"}},{"$f":"'LTC Rev-Exp Summary'!N$24","v":{"v":0,"d":"$0.00"}},{"$f":"'LTC Rev-Exp Summary'!O$24","v":{"v":0,"d":"$0.00"}},{"v":0,"d":"$0.00"}]
["LTC",null,null,{"$f":"Jurat!I$1","v":0},{"$f":"Jurat!D$33","v":"00:00:00"},"Q3","2017-09-30","Summary","Operating Expense","Medical Expense","NF & Hospice","2.9","NF & Hospice Settlements",{"$f":"'LTC Rev-Exp Summary'!L$25","v":{"v":0,"d":"$0.00"}},{"$f":"'LTC Rev-Exp Summary'!M$25","v":{"v":0,"d":"$0.00"}},{"$f":"'LTC Rev-Exp Summary'!N$25","v":{"v":0,"d":"$0.00"}},{"$f":"'LTC Rev-Exp Summary'!O$25","v":{"v":0,"d":"$0.00"}},{"v":0,"d":"$0.00"}]
["LTC",null,null,{"$f":"Jurat!I$1","v":0},{"$f":"Jurat!D$33","v":"00:00:00"},"Q3","2017-09-30","Summary","Operating Expense","Medical Expense","LTC Services","2.11","Assisted Living FFS",{"$f":"'LTC Rev-Exp Summary'!L$27","v":{"v":0,"d":"$0.00"}},{"$f":"'LTC Rev-Exp Summary'!M$27","v":{"v":0,"d":"$0.00"}},{"$f":"'LTC Rev-Exp Summary'!N$27","v":{"v":0,"d":"$0.00"}},{"$f":"'LTC Rev-Exp Summary'!O$27","v":{"v":0,"d":"$0.00"}},{"v":0,"d":"$0.00"}]
["LTC",null,null,{"$f":"Jurat!I$1","v":0},{"$f":"Jurat!D$33","v":"00:00:00"},"Q3","2017-09-30","Summary","Operating Expense","Medical Expense","LTC Services","2.12","Home Health FFS",{"$f":"'LTC Rev-Exp Summary'!L$28","v":{"v":0,"d":"$0.00"}},{"$f":"'LTC Rev-Exp Summary'!M$28","v":{"v":0,"d":"$0.00"}},{"$f":"'LTC Rev-Exp Summary'!N$28","v":{"v":0,"d":"$0.00"}},{"$f":"'LTC Rev-Exp Summary'!O$28","v":{"v":0,"d":"$0.00"}},{"v":0,"d":"$0.00"}]
["LTC",null,null,{"$f":"Jurat!I$1","v":0},{"$f":"Jurat!D$33","v":"00:00:00"},"Q3","2017-09-30","Summary","Operating Expense","Medical Expense","LTC Services","2.13","Medical Equipment/Supplies FFS",{"$f":"'LTC Rev-Exp Summary'!L$29","v":{"v":0,"d":"$0.00"}},{"$f":"'LTC Rev-Exp Summary'!M$29","v":{"v":0,"d":"$0.00"}},{"$f":"'LTC Rev-Exp Summary'!N$29","v":{"v":0,"d":"$0.00"}},{"$f":"'LTC Rev-Exp Summary'!O$29","v":{"v":0,"d":"$0.00"}},{"v":0,"d":"$0.00"}]
["LTC",null,null,{"$f":"Jurat!I$1","v":0},{"$f":"Jurat!D$33","v":"00:00:00"},"Q3","2017-09-30","Summary","Operating Expense","Medical Expense","LTC Services","2.14","Therapy FFS",{"$f":"'LTC Rev-Exp Summary'!L$30","v":{"v":0,"d":"$0.00"}},{"$f":"'LTC Rev-Exp Summary'!M$30","v":{"v":0,"d":"$0.00"}},{"$f":"'LTC Rev-Exp Summary'!N$30","v":{"v":0,"d":"$0.00"}},{"$f":"'LTC Rev-Exp Summary'!O$30","v":{"v":0,"d":"$0.00"}},{"v":0,"d":"$0.00"}]
["LTC",null,null,{"$f":"Jurat!I$1","v":0},{"$f":"Jurat!D$33","v":"00:00:00"},"Q3","2017-09-30","Summary","Operating Expense","Medical Expense","LTC Services","2.15","Transportation FFS",{"$f":"'LTC Rev-Exp Summary'!L$31","v":{"v":0,"d":"$0.00"}},{"$f":"'LTC Rev-Exp Summary'!M$31","v":{"v":0,"d":"$0.00"}},{"$f":"'LTC Rev-Exp Summary'!N$31","v":{"v":0,"d":"$0.00"}},{"$f":"'LTC Rev-Exp Summary'!O$31","v":{"v":0,"d":"$0.00"}},{"v":0,"d":"$0.00"}]
["LTC",null,null,{"$f":"Jurat!I$1","v":0},{"$f":"Jurat!D$33","v":"00:00:00"},"Q3","2017-09-30","Summary","Operating Expense","Medical Expense","LTC Services","2.16","Case Management FFS (Plan Provided)",{"$f":"'LTC Rev-Exp Summary'!L$32","v":{"v":0,"d":"$0.00"}},{"$f":"'LTC Rev-Exp Summary'!M$32","v":{"v":0,"d":"$0.00"}},{"$f":"'LTC Rev-Exp Summary'!N$32","v":{"v":0,"d":"$0.00"}},{"$f":"'LTC Rev-Exp Summary'!O$32","v":{"v":0,"d":"$0.00"}},{"v":0,"d":"$0.00"}]
["LTC",null,null,{"$f":"Jurat!I$1","v":0},{"$f":"Jurat!D$33","v":"00:00:00"},"Q3","2017-09-30","Summary","Operating Expense","Medical Expense","LTC Services","2.17","Case Management FF (Non-Plan Provided)",{"$f":"'LTC Rev-Exp Summary'!L$33","v":{"v":0,"d":"$0.00"}},{"$f":"'LTC Rev-Exp Summary'!M$33","v":{"v":0,"d":"$0.00"}},{"$f":"'LTC Rev-Exp Summary'!N$33","v":{"v":0,"d":"$0.00"}},{"$f":"'LTC Rev-Exp Summary'!O$33","v":{"v":0,"d":"$0.00"}},{"v":0,"d":"$0.00"}]
["LTC",null,null,{"$f":"Jurat!I$1","v":0},{"$f":"Jurat!D$33","v":"00:00:00"},"Q3","2017-09-30","Summary","Operating Expense","Medical Expense","LTC Services","2.18","HCBS FFS",{"$f":"'LTC Rev-Exp Summary'!L$34","v":{"v":0,"d":"$0.00"}},{"$f":"'LTC Rev-Exp Summary'!M$34","v":{"v":0,"d":"$0.00"}},{"$f":"'LTC Rev-Exp Summary'!N$34","v":{"v":0,"d":"$0.00"}},{"$f":"'LTC Rev-Exp Summary'!O$34","v":{"v":0,"d":"$0.00"}},{"v":0,"d":"$0.00"}]
["LTC",null,null,{"$f":"Jurat!I$1","v":0},{"$f":"Jurat!D$33","v":"00:00:00"},"Q3","2017-09-30","Summary","Operating Expense","Medical Expense","LTC Services","2.19","Subcapitated LTC Services",{"$f":"'LTC Rev-Exp Summary'!L$35","v":{"v":0,"d":"$0.00"}},{"$f":"'LTC Rev-Exp Summary'!M$35","v":{"v":0,"d":"$0.00"}},{"$f":"'LTC Rev-Exp Summary'!N$35","v":{"v":0,"d":"$0.00"}},{"$f":"'LTC Rev-Exp Summary'!O$35","v":{"v":0,"d":"$0.00"}},{"v":0,"d":"$0.00"}]
["LTC",null,null,{"$f":"Jurat!I$1","v":0},{"$f":"Jurat!D$33","v":"00:00:00"},"Q3","2017-09-30","Summary","Operating Expense","Medical Expense","LTC Services","2.20","Ending IBNP for Long Term Care Services",{"$f":"'LTC Rev-Exp Summary'!L$36","v":{"v":0,"d":"$0.00"}},{"$f":"'LTC Rev-Exp Summary'!M$36","v":{"v":0,"d":"$0.00"}},{"$f":"'LTC Rev-Exp Summary'!N$36","v":{"v":0,"d":"$0.00"}},{"$f":"'LTC Rev-Exp Summary'!O$36","v":{"v":0,"d":"$0.00"}},{"v":0,"d":"$0.00"}]
["LTC",null,null,{"$f":"Jurat!I$1","v":0},{"$f":"Jurat!D$33","v":"00:00:00"},"Q3","2017-09-30","Summary","Operating Expense","Medical Expense","LTC Services","2.21","LTC Services Settlements",{"$f":"'LTC Rev-Exp Summary'!L$37","v":{"v":0,"d":"$0.00"}},{"$f":"'LTC Rev-Exp Summary'!M$37","v":{"v":0,"d":"$0.00"}},{"$f":"'LTC Rev-Exp Summary'!N$37","v":{"v":0,"d":"$0.00"}},{"$f":"'LTC Rev-Exp Summary'!O$37","v":{"v":0,"d":"$0.00"}},{"v":0,"d":"$0.00"}]
["LTC",null,null,{"$f":"Jurat!I$1","v":0},{"$f":"Jurat!D$33","v":"00:00:00"},"Q3","2017-09-30","Summary","Operating Expense","Medical Expense","Expanded Benefits","3.1","Expanded Benefits FFS",{"$f":"'LTC Rev-Exp Summary'!L$39","v":{"v":0,"d":"$0.00"}},{"$f":"'LTC Rev-Exp Summary'!M$39","v":{"v":0,"d":"$0.00"}},{"$f":"'LTC Rev-Exp Summary'!N$39","v":{"v":0,"d":"$0.00"}},{"$f":"'LTC Rev-Exp Summary'!O$39","v":{"v":0,"d":"$0.00"}},{"v":0,"d":"$0.00"}]
["LTC",null,null,{"$f":"Jurat!I$1","v":0},{"$f":"Jurat!D$33","v":"00:00:00"},"Q3","2017-09-30","Summary","Operating Expense","Medical Expense","Expanded Benefits","3.2","Expanded Benefits Subcapitation",{"$f":"'LTC Rev-Exp Summary'!L$40","v":{"v":0,"d":"$0.00"}},{"$f":"'LTC Rev-Exp Summary'!M$40","v":{"v":0,"d":"$0.00"}},{"$f":"'LTC Rev-Exp Summary'!N$40","v":{"v":0,"d":"$0.00"}},{"$f":"'LTC Rev-Exp Summary'!O$40","v":{"v":0,"d":"$0.00"}},{"v":0,"d":"$0.00"}]
["LTC",null,null,{"$f":"Jurat!I$1","v":0},{"$f":"Jurat!D$33","v":"00:00:00"},"Q3","2017-09-30","Summary","Operating Expense","Medical Expense","Expanded Benefits","3.3","Ending IBNP for Expanded Benefits",{"$f":"'LTC Rev-Exp Summary'!L$41","v":{"v":0,"d":"$0.00"}},{"$f":"'LTC Rev-Exp Summary'!M$41","v":{"v":0,"d":"$0.00"}},{"$f":"'LTC Rev-Exp Summary'!N$41","v":{"v":0,"d":"$0.00"}},{"$f":"'LTC Rev-Exp Summary'!O$41","v":{"v":0,"d":"$0.00"}},{"v":0,"d":"$0.00"}]
["LTC",null,null,{"$f":"Jurat!I$1","v":0},{"$f":"Jurat!D$33","v":"00:00:00"},"Q3","2017-09-30","Summary","Operating Expense","Medical Expense","Expanded Benefits","3.4","Expanded Benefits Settlements",{"$f":"'LTC Rev-Exp Summary'!L$42","v":{"v":0,"d":"$0.00"}},{"$f":"'LTC Rev-Exp Summary'!M$42","v":{"v":0,"d":"$0.00"}},{"$f":"'LTC Rev-Exp Summary'!N$42","v":{"v":0,"d":"$0.00"}},{"$f":"'LTC Rev-Exp Summary'!O$42","v":{"v":0,"d":"$0.00"}},{"v":0,"d":"$0.00"}]
["LTC",null,null,{"$f":"Jurat!I$1","v":0},{"$f":"Jurat!D$33","v":"00:00:00"},"Q3","2017-09-30","Summary","Operating Expense","Medical Expense","Other Medical","4.5","TPL & Fraud/Abuse Recoveries",{"$f":"'LTC Rev-Exp Summary'!L$48","v":{"v":0,"d":"$0.00"}},{"$f":"'LTC Rev-Exp Summary'!M$48","v":{"v":0,"d":"$0.00"}},{"$f":"'LTC Rev-Exp Summary'!N$48","v":{"v":0,"d":"$0.00"}},{"$f":"'LTC Rev-Exp Summary'!O$48","v":{"v":0,"d":"$0.00"}},{"v":0,"d":"$0.00"}]
["LTC",null,null,{"$f":"Jurat!I$1","v":0},{"$f":"Jurat!D$33","v":"00:00:00"},"Q3","2017-09-30","Summary","Operating Expense","Medical Expense","Other Medical","4.6.1","Premium Deficiency Reserve",{"$f":"'LTC Rev-Exp Summary'!L$49","v":{"v":0,"d":"$0.00"}},{"$f":"'LTC Rev-Exp Summary'!M$49","v":{"v":0,"d":"$0.00"}},{"$f":"'LTC Rev-Exp Summary'!N$49","v":{"v":0,"d":"$0.00"}},{"$f":"'LTC Rev-Exp Summary'!O$49","v":{"v":0,"d":"$0.00"}},{"v":0,"d":"$0.00"}]
["LTC",null,null,{"$f":"Jurat!I$1","v":0},{"$f":"Jurat!D$33","v":"00:00:00"},"Q3","2017-09-30","Summary","Operating Expense","Medical Expense","Other Medical","4.8","Reinsurance Premiums",{"$f":"'LTC Rev-Exp Summary'!L$51","v":{"v":0,"d":"$0.00"}},{"$f":"'LTC Rev-Exp Summary'!M$51","v":{"v":0,"d":"$0.00"}},{"$f":"'LTC Rev-Exp Summary'!N$51","v":{"v":0,"d":"$0.00"}},{"$f":"'LTC Rev-Exp Summary'!O$51","v":{"v":0,"d":"$0.00"}},{"v":0,"d":"$0.00"}]
["LTC",null,null,{"$f":"Jurat!I$1","v":0},{"$f":"Jurat!D$33","v":"00:00:00"},"Q3","2017-09-30","Summary","Operating Expense","Medical Expense","Other Medical","4.9","Reinsurance Recoveries",{"$f":"'LTC Rev-Exp Summary'!L$52","v":{"v":0,"d":"$0.00"}},{"$f":"'LTC Rev-Exp Summary'!M$52","v":{"v":0,"d":"$0.00"}},{"$f":"'LTC Rev-Exp Summary'!N$52","v":{"v":0,"d":"$0.00"}},{"$f":"'LTC Rev-Exp Summary'!O$52","v":{"v":0,"d":"$0.00"}},{"v":0,"d":"$0.00"}]
["LTC",null,null,{"$f":"Jurat!I$1","v":0},{"$f":"Jurat!D$33","v":"00:00:00"},"Q3","2017-09-30","Summary","Operating Expense","Administrative Expense","Administrative","5.1","Salaries & Benefits",{"$f":"'LTC Rev-Exp Summary'!L$57","v":{"v":0,"d":"$0.00"}},{"$f":"'LTC Rev-Exp Summary'!M$57","v":{"v":0,"d":"$0.00"}},{"$f":"'LTC Rev-Exp Summary'!N$57","v":{"v":0,"d":"$0.00"}},{"$f":"'LTC Rev-Exp Summary'!O$57","v":{"v":0,"d":"$0.00"}},{"v":0,"d":"$0.00"}]
["LTC",null,null,{"$f":"Jurat!I$1","v":0},{"$f":"Jurat!D$33","v":"00:00:00"},"Q3","2017-09-30","Summary","Operating Expense","Administrative Expense","Administrative","5.2","Administrative Services",{"$f":"'LTC Rev-Exp Summary'!L$58","v":{"v":0,"d":"$0.00"}},{"$f":"'LTC Rev-Exp Summary'!M$58","v":{"v":0,"d":"$0.00"}},{"$f":"'LTC Rev-Exp Summary'!N$58","v":{"v":0,"d":"$0.00"}},{"$f":"'LTC Rev-Exp Summary'!O$58","v":{"v":0,"d":"$0.00"}},{"v":0,"d":"$0.00"}]
["LTC",null,null,{"$f":"Jurat!I$1","v":0},{"$f":"Jurat!D$33","v":"00:00:00"},"Q3","2017-09-30","Summary","Operating Expense","Administrative Expense","Administrative","5.3","Information Systems",{"$f":"'LTC Rev-Exp Summary'!L$59","v":{"v":0,"d":"$0.00"}},{"$f":"'LTC Rev-Exp Summary'!M$59","v":{"v":0,"d":"$0.00"}},{"$f":"'LTC Rev-Exp Summary'!N$59","v":{"v":0,"d":"$0.00"}},{"$f":"'LTC Rev-Exp Summary'!O$59","v":{"v":0,"d":"$0.00"}},{"v":0,"d":"$0.00"}]
["LTC",null,null,{"$f":"Jurat!I$1","v":0},{"$f":"Jurat!D$33","v":"00:00:00"},"Q3","2017-09-30","Summary","Operating Expense","Administrative Expense","Administrative","5.4","Marketing Expenses",{"$f":"'LTC Rev-Exp Summary'!L$60","v":{"v":0,"d":"$0.00"}},{"$f":"'LTC Rev-Exp Summary'!M$60","v":{"v":0,"d":"$0.00"}},{"$f":"'LTC Rev-Exp Summary'!N$60","v":{"v":0,"d":"$0.00"}},{"$f":"'LTC Rev-Exp Summary'!O$60","v":{"v":0,"d":"$0.00"}},{"v":0,"d":"$0.00"}]
["LTC",null,null,{"$f":"Jurat!I$1","v":0},{"$f":"Jurat!D$33","v":"00:00:00"},"Q3","2017-09-30","Summary","Operating Expense","Administrative Expense","Administrative","5.5","General  Administration",{"$f":"'LTC Rev-Exp Summary'!L$61","v":{"v":0,"d":"$0.00"}},{"$f":"'LTC Rev-Exp Summary'!M$61","v":{"v":0,"d":"$0.00"}},{"$f":"'LTC Rev-Exp Summary'!N$61","v":{"v":0,"d":"$0.00"}},{"$f":"'LTC Rev-Exp Summary'!O$61","v":{"v":0,"d":"$0.00"}},{"v":0,"d":"$0.00"}]
["LTC",null,null,{"$f":"Jurat!I$1","v":0},{"$f":"Jurat!D$33","v":"00:00:00"},"Q3","2017-09-30","Summary","Operating Expense","Administrative Expense","Administrative","5.6","Compliance/Regulatory",{"$f":"'LTC Rev-Exp Summary'!L$62","v":{"v":0,"d":"$0.00"}},{"$f":"'LTC Rev-Exp Summary'!M$62","v":{"v":0,"d":"$0.00"}},{"$f":"'LTC Rev-Exp Summary'!N$62","v":{"v":0,"d":"$0.00"}},{"$f":"'LTC Rev-Exp Summary'!O$62","v":{"v":0,"d":"$0.00"}},{"v":0,"d":"$0.00"}]
["LTC",null,null,{"$f":"Jurat!I$1","v":0},{"$f":"Jurat!D$33","v":"00:00:00"},"Q3","2017-09-30","Summary","Operating Expense","Taxes & Fees","Taxes & Fees","6.1","State Premium Tax",{"$f":"'LTC Rev-Exp Summary'!L$64","v":{"v":0,"d":"$0.00"}},{"v":0,"d":"$0.00"},{"v":0,"d":"$0.00"},{"v":0,"d":"$0.00"},{"v":0,"d":"$0.00"}]
["LTC",null,null,{"$f":"Jurat!I$1","v":0},{"$f":"Jurat!D$33","v":"00:00:00"},"Q3","2017-09-30","Summary","Operating Expense","Taxes & Fees","Taxes & Fees","6.2","Department of Insurance Assessments",{"$f":"'LTC Rev-Exp Summary'!L$65","v":{"v":0,"d":"$0.00"}},{"v":0,"d":"$0.00"},{"v":0,"d":"$0.00"},{"v":0,"d":"$0.00"},{"v":0,"d":"$0.00"}]
["LTC",null,null,{"$f":"Jurat!I$1","v":0},{"$f":"Jurat!D$33","v":"00:00:00"},"Q3","2017-09-30","Summary","Non-Operating Expense","Income Tax Expense","Income Tax Expense","9.0","Income Tax Expense",{"$f":"'LTC Rev-Exp Summary'!L$72","v":{"v":0,"d":"$0.00"}},{"v":0,"d":"$0.00"},{"v":0,"d":"$0.00"},{"v":0,"d":"$0.00"},{"v":0,"d":"$0.00"}]
["LTC",null,null,{"$f":"Jurat!I$1","v":0},{"$f":"Jurat!D$33","v":"00:00:00"},"Q4","2017-12-31","Summary","Member Months","Member Months","Member Months",null,"Member Months",{"$f":"'LTC Rev-Exp Summary'!P$9","v":{"v":0,"d":"$0.00"}},{"$f":"'LTC Rev-Exp Summary'!Q$9","v":{"v":0,"d":"$0.00"}},{"$f":"'LTC Rev-Exp Summary'!R$9","v":{"v":0,"d":"$0.00"}},{"$f":"'LTC Rev-Exp Summary'!S$9","v":{"v":0,"d":"$0.00"}},{"v":0,"d":"$0.00"}]
["LTC",null,null,{"$f":"Jurat!I$1","v":0},{"$f":"Jurat!D$33","v":"00:00:00"},"Q4","2017-12-31","Summary","Operating Revenue","Capitation","Capitation",1.1,"Capitation",{"$f":"'LTC Rev-Exp Summary'!P$11","v":{"v":0,"d":"$0.00"}},{"$f":"'LTC Rev-Exp Summary'!Q$11","v":{"v":0,"d":"$0.00"}},{"$f":"'LTC Rev-Exp Summary'!R$11","v":{"v":0,"d":"$0.00"}},{"$f":"'LTC Rev-Exp Summary'!S$11","v":{"v":0,"d":"$0.00"}},{"v":0,"d":"$0.00"}]
["LTC",null,null,{"$f":"Jurat!I$1","v":0},{"$f":"Jurat!D$33","v":"00:00:00"},"Q4","2017-12-31","Summary","Operating Revenue","Capitation","NH Rate Reconciliation",1.2,"NH Rate Reconciliation",{"$f":"'LTC Rev-Exp Summary'!P$12","v":{"v":0,"d":"$0.00"}},{"$f":"'LTC Rev-Exp Summary'!Q$12","v":{"v":0,"d":"$0.00"}},{"$f":"'LTC Rev-Exp Summary'!R$12","v":{"v":0,"d":"$0.00"}},{"$f":"'LTC Rev-Exp Summary'!S$12","v":{"v":0,"d":"$0.00"}},{"v":0,"d":"$0.00"}]
["LTC",null,null,{"$f":"Jurat!I$1","v":0},{"$f":"Jurat!D$33","v":"00:00:00"},"Q4","2017-12-31","Summary","Operating Revenue","Other Revenue","Other Revenue",1.3,"Other Revenue",{"$f":"'LTC Rev-Exp Summary'!P$13","v":{"v":0,"d":"$0.00"}},{"$f":"'LTC Rev-Exp Summary'!Q$13","v":{"v":0,"d":"$0.00"}},{"$f":"'LTC Rev-Exp Summary'!R$13","v":{"v":0,"d":"$0.00"}},{"$f":"'LTC Rev-Exp Summary'!S$13","v":{"v":0,"d":"$0.00"}},{"v":0,"d":"$0.00"}]
["LTC",null,null,{"$f":"Jurat!I$1","v":0},{"$f":"Jurat!D$33","v":"00:00:00"},"Q4","2017-12-31","Summary","Operating Expense","Medical Expense","NF & Hospice","2.1","Nursing Facility Days (Medicaid)",{"$f":"'LTC Rev-Exp Summary'!P$17","v":{"v":0,"d":"$0.00"}},{"$f":"'LTC Rev-Exp Summary'!Q$17","v":{"v":0,"d":"$0.00"}},{"$f":"'LTC Rev-Exp Summary'!R$17","v":{"v":0,"d":"$0.00"}},{"$f":"'LTC Rev-Exp Summary'!S$17","v":{"v":0,"d":"$0.00"}},{"v":0,"d":"$0.00"}]
["LTC",null,null,{"$f":"Jurat!I$1","v":0},{"$f":"Jurat!D$33","v":"00:00:00"},"Q4","2017-12-31","Summary","Operating Expense","Medical Expense","NF & Hospice","2.2","Nursing Facility Days (Crossover)",{"$f":"'LTC Rev-Exp Summary'!P$18","v":{"v":0,"d":"$0.00"}},{"$f":"'LTC Rev-Exp Summary'!Q$18","v":{"v":0,"d":"$0.00"}},{"$f":"'LTC Rev-Exp Summary'!R$18","v":{"v":0,"d":"$0.00"}},{"$f":"'LTC Rev-Exp Summary'!S$18","v":{"v":0,"d":"$0.00"}},{"v":0,"d":"$0.00"}]
["LTC",null,null,{"$f":"Jurat!I$1","v":0},{"$f":"Jurat!D$33","v":"00:00:00"},"Q4","2017-12-31","Summary","Operating Expense","Medical Expense","NF & Hospice","2.3","Nursing Facility FFS (Medicaid)",{"$f":"'LTC Rev-Exp Summary'!P$19","v":{"v":0,"d":"$0.00"}},{"$f":"'LTC Rev-Exp Summary'!Q$19","v":{"v":0,"d":"$0.00"}},{"$f":"'LTC Rev-Exp Summary'!R$19","v":{"v":0,"d":"$0.00"}},{"$f":"'LTC Rev-Exp Summary'!S$19","v":{"v":0,"d":"$0.00"}},{"v":0,"d":"$0.00"}]
["LTC",null,null,{"$f":"Jurat!I$1","v":0},{"$f":"Jurat!D$33","v":"00:00:00"},"Q4","2017-12-31","Summary","Operating Expense","Medical Expense","NF & Hospice","2.4","Nursing Facility FFS (Crossover)",{"$f":"'LTC Rev-Exp Summary'!P$20","v":{"v":0,"d":"$0.00"}},{"$f":"'LTC Rev-Exp Summary'!Q$20","v":{"v":0,"d":"$0.00"}},{"$f":"'LTC Rev-Exp Summary'!R$20","v":{"v":0,"d":"$0.00"}},{"$f":"'LTC Rev-Exp Summary'!S$20","v":{"v":0,"d":"$0.00"}},{"v":0,"d":"$0.00"}]
["LTC",null,null,{"$f":"Jurat!I$1","v":0},{"$f":"Jurat!D$33","v":"00:00:00"},"Q4","2017-12-31","Summary","Operating Expense","Medical Expense","NF & Hospice","2.5","Hospice Days",{"$f":"'LTC Rev-Exp Summary'!P$21","v":{"v":0,"d":"$0.00"}},{"$f":"'LTC Rev-Exp Summary'!Q$21","v":{"v":0,"d":"$0.00"}},{"$f":"'LTC Rev-Exp Summary'!R$21","v":{"v":0,"d":"$0.00"}},{"$f":"'LTC Rev-Exp Summary'!S$21","v":{"v":0,"d":"$0.00"}},{"v":0,"d":"$0.00"}]
["LTC",null,null,{"$f":"Jurat!I$1","v":0},{"$f":"Jurat!D$33","v":"00:00:00"},"Q4","2017-12-31","Summary","Operating Expense","Medical Expense","NF & Hospice","2.6","Hospice FFS",{"$f":"'LTC Rev-Exp Summary'!P$22","v":{"v":0,"d":"$0.00"}},{"$f":"'LTC Rev-Exp Summary'!Q$22","v":{"v":0,"d":"$0.00"}},{"$f":"'LTC Rev-Exp Summary'!R$22","v":{"v":0,"d":"$0.00"}},{"$f":"'LTC Rev-Exp Summary'!S$22","v":{"v":0,"d":"$0.00"}},{"v":0,"d":"$0.00"}]
["LTC",null,null,{"$f":"Jurat!I$1","v":0},{"$f":"Jurat!D$33","v":"00:00:00"},"Q4","2017-12-31","Summary","Operating Expense","Medical Expense","NF & Hospice","2.7","Ending IBNP for NF & Hospice",{"$f":"'LTC Rev-Exp Summary'!P$23","v":{"v":0,"d":"$0.00"}},{"$f":"'LTC Rev-Exp Summary'!Q$23","v":{"v":0,"d":"$0.00"}},{"$f":"'LTC Rev-Exp Summary'!R$23","v":{"v":0,"d":"$0.00"}},{"$f":"'LTC Rev-Exp Summary'!S$23","v":{"v":0,"d":"$0.00"}},{"v":0,"d":"$0.00"}]
["LTC",null,null,{"$f":"Jurat!I$1","v":0},{"$f":"Jurat!D$33","v":"00:00:00"},"Q4","2017-12-31","Summary","Operating Expense","Medical Expense","NF & Hospice","2.8","NF & Hospice Subcapitated",{"$f":"'LTC Rev-Exp Summary'!P$24","v":{"v":0,"d":"$0.00"}},{"$f":"'LTC Rev-Exp Summary'!Q$24","v":{"v":0,"d":"$0.00"}},{"$f":"'LTC Rev-Exp Summary'!R$24","v":{"v":0,"d":"$0.00"}},{"$f":"'LTC Rev-Exp Summary'!S$24","v":{"v":0,"d":"$0.00"}},{"v":0,"d":"$0.00"}]
["LTC",null,null,{"$f":"Jurat!I$1","v":0},{"$f":"Jurat!D$33","v":"00:00:00"},"Q4","2017-12-31","Summary","Operating Expense","Medical Expense","NF & Hospice","2.9","NF & Hospice Settlements",{"$f":"'LTC Rev-Exp Summary'!P$25","v":{"v":0,"d":"$0.00"}},{"$f":"'LTC Rev-Exp Summary'!Q$25","v":{"v":0,"d":"$0.00"}},{"$f":"'LTC Rev-Exp Summary'!R$25","v":{"v":0,"d":"$0.00"}},{"$f":"'LTC Rev-Exp Summary'!S$25","v":{"v":0,"d":"$0.00"}},{"v":0,"d":"$0.00"}]
["LTC",null,null,{"$f":"Jurat!I$1","v":0},{"$f":"Jurat!D$33","v":"00:00:00"},"Q4","2017-12-31","Summary","Operating Expense","Medical Expense","LTC Services","2.11","Assisted Living FFS",{"$f":"'LTC Rev-Exp Summary'!P$27","v":{"v":0,"d":"$0.00"}},{"$f":"'LTC Rev-Exp Summary'!Q$27","v":{"v":0,"d":"$0.00"}},{"$f":"'LTC Rev-Exp Summary'!R$27","v":{"v":0,"d":"$0.00"}},{"$f":"'LTC Rev-Exp Summary'!S$27","v":{"v":0,"d":"$0.00"}},{"v":0,"d":"$0.00"}]
["LTC",null,null,{"$f":"Jurat!I$1","v":0},{"$f":"Jurat!D$33","v":"00:00:00"},"Q4","2017-12-31","Summary","Operating Expense","Medical Expense","LTC Services","2.12","Home Health FFS",{"$f":"'LTC Rev-Exp Summary'!P$28","v":{"v":0,"d":"$0.00"}},{"$f":"'LTC Rev-Exp Summary'!Q$28","v":{"v":0,"d":"$0.00"}},{"$f":"'LTC Rev-Exp Summary'!R$28","v":{"v":0,"d":"$0.00"}},{"$f":"'LTC Rev-Exp Summary'!S$28","v":{"v":0,"d":"$0.00"}},{"v":0,"d":"$0.00"}]
["LTC",null,null,{"$f":"Jurat!I$1","v":0},{"$f":"Jurat!D$33","v":"00:00:00"},"Q4","2017-12-31","Summary","Operating Expense","Medical Expense","LTC Services","2.13","Medical Equipment/Supplies FFS",{"$f":"'LTC Rev-Exp Summary'!P$29","v":{"v":0,"d":"$0.00"}},{"$f":"'LTC Rev-Exp Summary'!Q$29","v":{"v":0,"d":"$0.00"}},{"$f":"'LTC Rev-Exp Summary'!R$29","v":{"v":0,"d":"$0.00"}},{"$f":"'LTC Rev-Exp Summary'!S$29","v":{"v":0,"d":"$0.00"}},{"v":0,"d":"$0.00"}]
["LTC",null,null,{"$f":"Jurat!I$1","v":0},{"$f":"Jurat!D$33","v":"00:00:00"},"Q4","2017-12-31","Summary","Operating Expense","Medical Expense","LTC Services","2.14","Therapy FFS",{"$f":"'LTC Rev-Exp Summary'!P$30","v":{"v":0,"d":"$0.00"}},{"$f":"'LTC Rev-Exp Summary'!Q$30","v":{"v":0,"d":"$0.00"}},{"$f":"'LTC Rev-Exp Summary'!R$30","v":{"v":0,"d":"$0.00"}},{"$f":"'LTC Rev-Exp Summary'!S$30","v":{"v":0,"d":"$0.00"}},{"v":0,"d":"$0.00"}]
["LTC",null,null,{"$f":"Jurat!I$1","v":0},{"$f":"Jurat!D$33","v":"00:00:00"},"Q4","2017-12-31","Summary","Operating Expense","Medical Expense","LTC Services","2.15","Transportation FFS",{"$f":"'LTC Rev-Exp Summary'!P$31","v":{"v":0,"d":"$0.00"}},{"$f":"'LTC Rev-Exp Summary'!Q$31","v":{"v":0,"d":"$0.00"}},{"$f":"'LTC Rev-Exp Summary'!R$31","v":{"v":0,"d":"$0.00"}},{"$f":"'LTC Rev-Exp Summary'!S$31","v":{"v":0,"d":"$0.00"}},{"v":0,"d":"$0.00"}]
["LTC",null,null,{"$f":"Jurat!I$1","v":0},{"$f":"Jurat!D$33","v":"00:00:00"},"Q4","2017-12-31","Summary","Operating Expense","Medical Expense","LTC Services","2.16","Case Management FFS (Plan Provided)",{"$f":"'LTC Rev-Exp Summary'!P$32","v":{"v":0,"d":"$0.00"}},{"$f":"'LTC Rev-Exp Summary'!Q$32","v":{"v":0,"d":"$0.00"}},{"$f":"'LTC Rev-Exp Summary'!R$32","v":{"v":0,"d":"$0.00"}},{"$f":"'LTC Rev-Exp Summary'!S$32","v":{"v":0,"d":"$0.00"}},{"v":0,"d":"$0.00"}]
["LTC",null,null,{"$f":"Jurat!I$1","v":0},{"$f":"Jurat!D$33","v":"00:00:00"},"Q4","2017-12-31","Summary","Operating Expense","Medical Expense","LTC Services","2.17","Case Management FF (Non-Plan Provided)",{"$f":"'LTC Rev-Exp Summary'!P$33","v":{"v":0,"d":"$0.00"}},{"$f":"'LTC Rev-Exp Summary'!Q$33","v":{"v":0,"d":"$0.00"}},{"$f":"'LTC Rev-Exp Summary'!R$33","v":{"v":0,"d":"$0.00"}},{"$f":"'LTC Rev-Exp Summary'!S$33","v":{"v":0,"d":"$0.00"}},{"v":0,"d":"$0.00"}]
["LTC",null,null,{"$f":"Jurat!I$1","v":0},{"$f":"Jurat!D$33","v":"00:00:00"},"Q4","2017-12-31","Summary","Operating Expense","Medical Expense","LTC Services","2.18","HCBS FFS",{"$f":"'LTC Rev-Exp Summary'!P$34","v":{"v":0,"d":"$0.00"}},{"$f":"'LTC Rev-Exp Summary'!Q$34","v":{"v":0,"d":"$0.00"}},{"$f":"'LTC Rev-Exp Summary'!R$34","v":{"v":0,"d":"$0.00"}},{"$f":"'LTC Rev-Exp Summary'!S$34","v":{"v":0,"d":"$0.00"}},{"v":0,"d":"$0.00"}]
["LTC",null,null,{"$f":"Jurat!I$1","v":0},{"$f":"Jurat!D$33","v":"00:00:00"},"Q4","2017-12-31","Summary","Operating Expense","Medical Expense","LTC Services","2.19","Subcapitated LTC Services",{"$f":"'LTC Rev-Exp Summary'!P$35","v":{"v":0,"d":"$0.00"}},{"$f":"'LTC Rev-Exp Summary'!Q$35","v":{"v":0,"d":"$0.00"}},{"$f":"'LTC Rev-Exp Summary'!R$35","v":{"v":0,"d":"$0.00"}},{"$f":"'LTC Rev-Exp Summary'!S$35","v":{"v":0,"d":"$0.00"}},{"v":0,"d":"$0.00"}]
["LTC",null,null,{"$f":"Jurat!I$1","v":0},{"$f":"Jurat!D$33","v":"00:00:00"},"Q4","2017-12-31","Summary","Operating Expense","Medical Expense","LTC Services","2.20","Ending IBNP for Long Term Care Services",{"$f":"'LTC Rev-Exp Summary'!P$36","v":{"v":0,"d":"$0.00"}},{"$f":"'LTC Rev-Exp Summary'!Q$36","v":{"v":0,"d":"$0.00"}},{"$f":"'LTC Rev-Exp Summary'!R$36","v":{"v":0,"d":"$0.00"}},{"$f":"'LTC Rev-Exp Summary'!S$36","v":{"v":0,"d":"$0.00"}},{"v":0,"d":"$0.00"}]
["LTC",null,null,{"$f":"Jurat!I$1","v":0},{"$f":"Jurat!D$33","v":"00:00:00"},"Q4","2017-12-31","Summary","Operating Expense","Medical Expense","LTC Services","2.21","LTC Services Settlements",{"$f":"'LTC Rev-Exp Summary'!P$37","v":{"v":0,"d":"$0.00"}},{"$f":"'LTC Rev-Exp Summary'!Q$37","v":{"v":0,"d":"$0.00"}},{"$f":"'LTC Rev-Exp Summary'!R$37","v":{"v":0,"d":"$0.00"}},{"$f":"'LTC Rev-Exp Summary'!S$37","v":{"v":0,"d":"$0.00"}},{"v":0,"d":"$0.00"}]
["LTC",null,null,{"$f":"Jurat!I$1","v":0},{"$f":"Jurat!D$33","v":"00:00:00"},"Q4","2017-12-31","Summary","Operating Expense","Medical Expense","Expanded Benefits","3.1","Expanded Benefits FFS",{"$f":"'LTC Rev-Exp Summary'!P$39","v":{"v":0,"d":"$0.00"}},{"$f":"'LTC Rev-Exp Summary'!Q$39","v":{"v":0,"d":"$0.00"}},{"$f":"'LTC Rev-Exp Summary'!R$39","v":{"v":0,"d":"$0.00"}},{"$f":"'LTC Rev-Exp Summary'!S$39","v":{"v":0,"d":"$0.00"}},{"v":0,"d":"$0.00"}]
["LTC",null,null,{"$f":"Jurat!I$1","v":0},{"$f":"Jurat!D$33","v":"00:00:00"},"Q4","2017-12-31","Summary","Operating Expense","Medical Expense","Expanded Benefits","3.2","Expanded Benefits Subcapitation",{"$f":"'LTC Rev-Exp Summary'!P$40","v":{"v":0,"d":"$0.00"}},{"$f":"'LTC Rev-Exp Summary'!Q$40","v":{"v":0,"d":"$0.00"}},{"$f":"'LTC Rev-Exp Summary'!R$40","v":{"v":0,"d":"$0.00"}},{"$f":"'LTC Rev-Exp Summary'!S$40","v":{"v":0,"d":"$0.00"}},{"v":0,"d":"$0.00"}]
["LTC",null,null,{"$f":"Jurat!I$1","v":0},{"$f":"Jurat!D$33","v":"00:00:00"},"Q4","2017-12-31","Summary","Operating Expense","Medical Expense","Expanded Benefits","3.3","Ending IBNP for Expanded Benefits",{"$f":"'LTC Rev-Exp Summary'!P$41","v":{"v":0,"d":"$0.00"}},{"$f":"'LTC Rev-Exp Summary'!Q$41","v":{"v":0,"d":"$0.00"}},{"$f":"'LTC Rev-Exp Summary'!R$41","v":{"v":0,"d":"$0.00"}},{"$f":"'LTC Rev-Exp Summary'!S$41","v":{"v":0,"d":"$0.00"}},{"v":0,"d":"$0.00"}]
["LTC",null,null,{"$f":"Jurat!I$1","v":0},{"$f":"Jurat!D$33","v":"00:00:00"},"Q4","2017-12-31","Summary","Operating Expense","Medical Expense","Expanded Benefits","3.4","Expanded Benefits Settlements",{"$f":"'LTC Rev-Exp Summary'!P$42","v":{"v":0,"d":"$0.00"}},{"$f":"'LTC Rev-Exp Summary'!Q$42","v":{"v":0,"d":"$0.00"}},{"$f":"'LTC Rev-Exp Summary'!R$42","v":{"v":0,"d":"$0.00"}},{"$f":"'LTC Rev-Exp Summary'!S$42","v":{"v":0,"d":"$0.00"}},{"v":0,"d":"$0.00"}]
["LTC",null,null,{"$f":"Jurat!I$1","v":0},{"$f":"Jurat!D$33","v":"00:00:00"},"Q4","2017-12-31","Summary","Operating Expense","Medical Expense","Other Medical","4.5","TPL & Fraud/Abuse Recoveries",{"$f":"'LTC Rev-Exp Summary'!P$48","v":{"v":0,"d":"$0.00"}},{"$f":"'LTC Rev-Exp Summary'!Q$48","v":{"v":0,"d":"$0.00"}},{"$f":"'LTC Rev-Exp Summary'!R$48","v":{"v":0,"d":"$0.00"}},{"$f":"'LTC Rev-Exp Summary'!S$48","v":{"v":0,"d":"$0.00"}},{"v":0,"d":"$0.00"}]
["LTC",null,null,{"$f":"Jurat!I$1","v":0},{"$f":"Jurat!D$33","v":"00:00:00"},"Q4","2017-12-31","Summary","Operating Expense","Medical Expense","Other Medical","4.6.1","Premium Deficiency Reserve",{"$f":"'LTC Rev-Exp Summary'!P$49","v":{"v":0,"d":"$0.00"}},{"$f":"'LTC Rev-Exp Summary'!Q$49","v":{"v":0,"d":"$0.00"}},{"$f":"'LTC Rev-Exp Summary'!R$49","v":{"v":0,"d":"$0.00"}},{"$f":"'LTC Rev-Exp Summary'!S$49","v":{"v":0,"d":"$0.00"}},{"v":0,"d":"$0.00"}]
["LTC",null,null,{"$f":"Jurat!I$1","v":0},{"$f":"Jurat!D$33","v":"00:00:00"},"Q4","2017-12-31","Summary","Operating Expense","Medical Expense","Other Medical","4.8","Reinsurance Premiums",{"$f":"'LTC Rev-Exp Summary'!P$51","v":{"v":0,"d":"$0.00"}},{"$f":"'LTC Rev-Exp Summary'!Q$51","v":{"v":0,"d":"$0.00"}},{"$f":"'LTC Rev-Exp Summary'!R$51","v":{"v":0,"d":"$0.00"}},{"$f":"'LTC Rev-Exp Summary'!S$51","v":{"v":0,"d":"$0.00"}},{"v":0,"d":"$0.00"}]
["LTC",null,null,{"$f":"Jurat!I$1","v":0},{"$f":"Jurat!D$33","v":"00:00:00"},"Q4","2017-12-31","Summary","Operating Expense","Medical Expense","Other Medical","4.9","Reinsurance Recoveries",{"$f":"'LTC Rev-Exp Summary'!P$52","v":{"v":0,"d":"$0.00"}},{"$f":"'LTC Rev-Exp Summary'!Q$52","v":{"v":0,"d":"$0.00"}},{"$f":"'LTC Rev-Exp Summary'!R$52","v":{"v":0,"d":"$0.00"}},{"$f":"'LTC Rev-Exp Summary'!S$52","v":{"v":0,"d":"$0.00"}},{"v":0,"d":"$0.00"}]
["LTC",null,null,{"$f":"Jurat!I$1","v":0},{"$f":"Jurat!D$33","v":"00:00:00"},"Q4","2017-12-31","Summary","Operating Expense","Administrative Expense","Administrative","5.1","Salaries & Benefits",{"$f":"'LTC Rev-Exp Summary'!P$57","v":{"v":0,"d":"$0.00"}},{"$f":"'LTC Rev-Exp Summary'!Q$57","v":{"v":0,"d":"$0.00"}},{"$f":"'LTC Rev-Exp Summary'!R$57","v":{"v":0,"d":"$0.00"}},{"$f":"'LTC Rev-Exp Summary'!S$57","v":{"v":0,"d":"$0.00"}},{"v":0,"d":"$0.00"}]
["LTC",null,null,{"$f":"Jurat!I$1","v":0},{"$f":"Jurat!D$33","v":"00:00:00"},"Q4","2017-12-31","Summary","Operating Expense","Administrative Expense","Administrative","5.2","Administrative Services",{"$f":"'LTC Rev-Exp Summary'!P$58","v":{"v":0,"d":"$0.00"}},{"$f":"'LTC Rev-Exp Summary'!Q$58","v":{"v":0,"d":"$0.00"}},{"$f":"'LTC Rev-Exp Summary'!R$58","v":{"v":0,"d":"$0.00"}},{"$f":"'LTC Rev-Exp Summary'!S$58","v":{"v":0,"d":"$0.00"}},{"v":0,"d":"$0.00"}]
["LTC",null,null,{"$f":"Jurat!I$1","v":0},{"$f":"Jurat!D$33","v":"00:00:00"},"Q4","2017-12-31","Summary","Operating Expense","Administrative Expense","Administrative","5.3","Information Systems",{"$f":"'LTC Rev-Exp Summary'!P$59","v":{"v":0,"d":"$0.00"}},{"$f":"'LTC Rev-Exp Summary'!Q$59","v":{"v":0,"d":"$0.00"}},{"$f":"'LTC Rev-Exp Summary'!R$59","v":{"v":0,"d":"$0.00"}},{"$f":"'LTC Rev-Exp Summary'!S$59","v":{"v":0,"d":"$0.00"}},{"v":0,"d":"$0.00"}]
["LTC",null,null,{"$f":"Jurat!I$1","v":0},{"$f":"Jurat!D$33","v":"00:00:00"},"Q4","2017-12-31","Summary","Operating Expense","Administrative Expense","Administrative","5.4","Marketing Expenses",{"$f":"'LTC Rev-Exp Summary'!P$60","v":{"v":0,"d":"$0.00"}},{"$f":"'LTC Rev-Exp Summary'!Q$60","v":{"v":0,"d":"$0.00"}},{"$f":"'LTC Rev-Exp Summary'!R$60","v":{"v":0,"d":"$0.00"}},{"$f":"'LTC Rev-Exp Summary'!S$60","v":{"v":0,"d":"$0.00"}},{"v":0,"d":"$0.00"}]
["LTC",null,null,{"$f":"Jurat!I$1","v":0},{"$f":"Jurat!D$33","v":"00:00:00"},"Q4","2017-12-31","Summary","Operating Expense","Administrative Expense","Administrative","5.5","General  Administration",{"$f":"'LTC Rev-Exp Summary'!P$61","v":{"v":0,"d":"$0.00"}},{"$f":"'LTC Rev-Exp Summary'!Q$61","v":{"v":0,"d":"$0.00"}},{"$f":"'LTC Rev-Exp Summary'!R$61","v":{"v":0,"d":"$0.00"}},{"$f":"'LTC Rev-Exp Summary'!S$61","v":{"v":0,"d":"$0.00"}},{"v":0,"d":"$0.00"}]
["LTC",null,null,{"$f":"Jurat!I$1","v":0},{"$f":"Jurat!D$33","v":"00:00:00"},"Q4","2017-12-31","Summary","Operating Expense","Administrative Expense","Administrative","5.6","Compliance/Regulatory",{"$f":"'LTC Rev-Exp Summary'!P$62","v":{"v":0,"d":"$0.00"}},{"$f":"'LTC Rev-Exp Summary'!Q$62","v":{"v":0,"d":"$0.00"}},{"$f":"'LTC Rev-Exp Summary'!R$62","v":{"v":0,"d":"$0.00"}},{"$f":"'LTC Rev-Exp Summary'!S$62","v":{"v":0,"d":"$0.00"}},{"v":0,"d":"$0.00"}]
["LTC",null,null,{"$f":"Jurat!I$1","v":0},{"$f":"Jurat!D$33","v":"00:00:00"},"Q4","2017-12-31","Summary","Operating Expense","Taxes & Fees","Taxes & Fees","6.1","State Premium Tax",{"$f":"'LTC Rev-Exp Summary'!P$64","v":{"v":0,"d":"$0.00"}},{"v":0,"d":"$0.00"},{"v":0,"d":"$0.00"},{"v":0,"d":"$0.00"},{"v":0,"d":"$0.00"}]
["LTC",null,null,{"$f":"Jurat!I$1","v":0},{"$f":"Jurat!D$33","v":"00:00:00"},"Q4","2017-12-31","Summary","Operating Expense","Taxes & Fees","Taxes & Fees","6.2","Department of Insurance Assessments",{"$f":"'LTC Rev-Exp Summary'!P$65","v":{"v":0,"d":"$0.00"}},{"v":0,"d":"$0.00"},{"v":0,"d":"$0.00"},{"v":0,"d":"$0.00"},{"v":0,"d":"$0.00"}]
["LTC",null,null,{"$f":"Jurat!I$1","v":0},{"$f":"Jurat!D$33","v":"00:00:00"},"Q4","2017-12-31","Summary","Non-Operating Expense","Income Tax Expense","Income Tax Expense","9.0","Income Tax Expense",{"$f":"'LTC Rev-Exp Summary'!P$72","v":{"v":0,"d":"$0.00"}},{"v":0,"d":"$0.00"},{"v":0,"d":"$0.00"},{"v":0,"d":"$0.00"},{"v":0,"d":"$0.00"}]
["LTC",null,null,{"$f":"Jurat!I$1","v":0},{"$f":"Jurat!D$33","v":"00:00:00"},"Q1","2017-03-31","Region 1","Member Months","Member Months","Member Months",null,"Member Months",{"$f":"'LTC Rev-Exp Region 1'!D$9","v":{"v":0,"d":"$0.00"}},{"$f":"'LTC Rev-Exp Region 1'!E$9","v":{"v":0,"d":"$0.00"}},{"$f":"'LTC Rev-Exp Region 1'!F$9","v":{"v":0,"d":"$0.00"}},{"$f":"'LTC Rev-Exp Region 1'!G$9","v":{"v":0,"d":"$0.00"}},{"v":0,"d":"$0.00"}]
["LTC",null,null,{"$f":"Jurat!I$1","v":0},{"$f":"Jurat!D$33","v":"00:00:00"},"Q1","2017-03-31","Region 1","Operating Revenue","Capitation","Capitation",1.1,"Capitation",{"$f":"'LTC Rev-Exp Region 1'!D$11","v":{"v":0,"d":"$0.00"}},{"$f":"'LTC Rev-Exp Region 1'!E$11","v":{"v":0,"d":"$0.00"}},{"$f":"'LTC Rev-Exp Region 1'!F$11","v":{"v":0,"d":"$0.00"}},{"$f":"'LTC Rev-Exp Region 1'!G$11","v":{"v":0,"d":"$0.00"}},{"v":0,"d":"$0.00"}]
["LTC",null,null,{"$f":"Jurat!I$1","v":0},{"$f":"Jurat!D$33","v":"00:00:00"},"Q1","2017-03-31","Region 1","Operating Revenue","Capitation","NH Rate Reconciliation",1.2,"NH Rate Reconciliation",{"$f":"'LTC Rev-Exp Region 1'!D$12","v":{"v":0,"d":"$0.00"}},{"$f":"'LTC Rev-Exp Region 1'!E$12","v":{"v":0,"d":"$0.00"}},{"$f":"'LTC Rev-Exp Region 1'!F$12","v":{"v":0,"d":"$0.00"}},{"$f":"'LTC Rev-Exp Region 1'!G$12","v":{"v":0,"d":"$0.00"}},{"v":0,"d":"$0.00"}]
["LTC",null,null,{"$f":"Jurat!I$1","v":0},{"$f":"Jurat!D$33","v":"00:00:00"},"Q1","2017-03-31","Region 1","Operating Revenue","Other Revenue","Other Revenue",1.3,"Other Revenue",{"$f":"'LTC Rev-Exp Region 1'!D$13","v":{"v":0,"d":"$0.00"}},{"$f":"'LTC Rev-Exp Region 1'!E$13","v":{"v":0,"d":"$0.00"}},{"$f":"'LTC Rev-Exp Region 1'!F$13","v":{"v":0,"d":"$0.00"}},{"$f":"'LTC Rev-Exp Region 1'!G$13","v":{"v":0,"d":"$0.00"}},{"v":0,"d":"$0.00"}]
["LTC",null,null,{"$f":"Jurat!I$1","v":0},{"$f":"Jurat!D$33","v":"00:00:00"},"Q1","2017-03-31","Region 1","Operating Expense","Medical Expense","NF & Hospice","2.1","Nursing Facility Days (Medicaid)",{"$f":"'LTC Rev-Exp Region 1'!D$17","v":{"v":0,"d":"$0.00"}},{"$f":"'LTC Rev-Exp Region 1'!E$17","v":{"v":0,"d":"$0.00"}},{"$f":"'LTC Rev-Exp Region 1'!F$17","v":{"v":0,"d":"$0.00"}},{"$f":"'LTC Rev-Exp Region 1'!G$17","v":{"v":0,"d":"$0.00"}},{"v":0,"d":"$0.00"}]
["LTC",null,null,{"$f":"Jurat!I$1","v":0},{"$f":"Jurat!D$33","v":"00:00:00"},"Q1","2017-03-31","Region 1","Operating Expense","Medical Expense","NF & Hospice","2.2","Nursing Facility Days (Crossover)",{"$f":"'LTC Rev-Exp Region 1'!D$18","v":{"v":0,"d":"$0.00"}},{"$f":"'LTC Rev-Exp Region 1'!E$18","v":{"v":0,"d":"$0.00"}},{"$f":"'LTC Rev-Exp Region 1'!F$18","v":{"v":0,"d":"$0.00"}},{"$f":"'LTC Rev-Exp Region 1'!G$18","v":{"v":0,"d":"$0.00"}},{"v":0,"d":"$0.00"}]
["LTC",null,null,{"$f":"Jurat!I$1","v":0},{"$f":"Jurat!D$33","v":"00:00:00"},"Q1","2017-03-31","Region 1","Operating Expense","Medical Expense","NF & Hospice","2.3","Nursing Facility FFS (Medicaid)",{"$f":"'LTC Rev-Exp Region 1'!D$19","v":{"v":0,"d":"$0.00"}},{"$f":"'LTC Rev-Exp Region 1'!E$19","v":{"v":0,"d":"$0.00"}},{"$f":"'LTC Rev-Exp Region 1'!F$19","v":{"v":0,"d":"$0.00"}},{"$f":"'LTC Rev-Exp Region 1'!G$19","v":{"v":0,"d":"$0.00"}},{"v":0,"d":"$0.00"}]
["LTC",null,null,{"$f":"Jurat!I$1","v":0},{"$f":"Jurat!D$33","v":"00:00:00"},"Q1","2017-03-31","Region 1","Operating Expense","Medical Expense","NF & Hospice","2.4","Nursing Facility FFS (Crossover)",{"$f":"'LTC Rev-Exp Region 1'!D$20","v":{"v":0,"d":"$0.00"}},{"$f":"'LTC Rev-Exp Region 1'!E$20","v":{"v":0,"d":"$0.00"}},{"$f":"'LTC Rev-Exp Region 1'!F$20","v":{"v":0,"d":"$0.00"}},{"$f":"'LTC Rev-Exp Region 1'!G$20","v":{"v":0,"d":"$0.00"}},{"v":0,"d":"$0.00"}]
["LTC",null,null,{"$f":"Jurat!I$1","v":0},{"$f":"Jurat!D$33","v":"00:00:00"},"Q1","2017-03-31","Region 1","Operating Expense","Medical Expense","NF & Hospice","2.5","Hospice Days",{"$f":"'LTC Rev-Exp Region 1'!D$21","v":{"v":0,"d":"$0.00"}},{"$f":"'LTC Rev-Exp Region 1'!E$21","v":{"v":0,"d":"$0.00"}},{"$f":"'LTC Rev-Exp Region 1'!F$21","v":{"v":0,"d":"$0.00"}},{"$f":"'LTC Rev-Exp Region 1'!G$21","v":{"v":0,"d":"$0.00"}},{"v":0,"d":"$0.00"}]
["LTC",null,null,{"$f":"Jurat!I$1","v":0},{"$f":"Jurat!D$33","v":"00:00:00"},"Q1","2017-03-31","Region 1","Operating Expense","Medical Expense","NF & Hospice","2.6","Hospice FFS",{"$f":"'LTC Rev-Exp Region 1'!D$22","v":{"v":0,"d":"$0.00"}},{"$f":"'LTC Rev-Exp Region 1'!E$22","v":{"v":0,"d":"$0.00"}},{"$f":"'LTC Rev-Exp Region 1'!F$22","v":{"v":0,"d":"$0.00"}},{"$f":"'LTC Rev-Exp Region 1'!G$22","v":{"v":0,"d":"$0.00"}},{"v":0,"d":"$0.00"}]
["LTC",null,null,{"$f":"Jurat!I$1","v":0},{"$f":"Jurat!D$33","v":"00:00:00"},"Q1","2017-03-31","Region 1","Operating Expense","Medical Expense","NF & Hospice","2.7","Ending IBNP for NF & Hospice",{"$f":"'LTC Rev-Exp Region 1'!D$23","v":{"v":0,"d":"$0.00"}},{"$f":"'LTC Rev-Exp Region 1'!E$23","v":{"v":0,"d":"$0.00"}},{"$f":"'LTC Rev-Exp Region 1'!F$23","v":{"v":0,"d":"$0.00"}},{"$f":"'LTC Rev-Exp Region 1'!G$23","v":{"v":0,"d":"$0.00"}},{"v":0,"d":"$0.00"}]
["LTC",null,null,{"$f":"Jurat!I$1","v":0},{"$f":"Jurat!D$33","v":"00:00:00"},"Q1","2017-03-31","Region 1","Operating Expense","Medical Expense","NF & Hospice","2.8","NF & Hospice Subcapitated",{"$f":"'LTC Rev-Exp Region 1'!D$24","v":{"v":0,"d":"$0.00"}},{"$f":"'LTC Rev-Exp Region 1'!E$24","v":{"v":0,"d":"$0.00"}},{"$f":"'LTC Rev-Exp Region 1'!F$24","v":{"v":0,"d":"$0.00"}},{"$f":"'LTC Rev-Exp Region 1'!G$24","v":{"v":0,"d":"$0.00"}},{"v":0,"d":"$0.00"}]
["LTC",null,null,{"$f":"Jurat!I$1","v":0},{"$f":"Jurat!D$33","v":"00:00:00"},"Q1","2017-03-31","Region 1","Operating Expense","Medical Expense","NF & Hospice","2.9","NF & Hospice Settlements",{"$f":"'LTC Rev-Exp Region 1'!D$25","v":{"v":0,"d":"$0.00"}},{"$f":"'LTC Rev-Exp Region 1'!E$25","v":{"v":0,"d":"$0.00"}},{"$f":"'LTC Rev-Exp Region 1'!F$25","v":{"v":0,"d":"$0.00"}},{"$f":"'LTC Rev-Exp Region 1'!G$25","v":{"v":0,"d":"$0.00"}},{"v":0,"d":"$0.00"}]
["LTC",null,null,{"$f":"Jurat!I$1","v":0},{"$f":"Jurat!D$33","v":"00:00:00"},"Q1","2017-03-31","Region 1","Operating Expense","Medical Expense","LTC Services","2.11","Assisted Living FFS",{"$f":"'LTC Rev-Exp Region 1'!D$27","v":{"v":0,"d":"$0.00"}},{"$f":"'LTC Rev-Exp Region 1'!E$27","v":{"v":0,"d":"$0.00"}},{"$f":"'LTC Rev-Exp Region 1'!F$27","v":{"v":0,"d":"$0.00"}},{"$f":"'LTC Rev-Exp Region 1'!G$27","v":{"v":0,"d":"$0.00"}},{"v":0,"d":"$0.00"}]
["LTC",null,null,{"$f":"Jurat!I$1","v":0},{"$f":"Jurat!D$33","v":"00:00:00"},"Q1","2017-03-31","Region 1","Operating Expense","Medical Expense","LTC Services","2.12","Home Health FFS",{"$f":"'LTC Rev-Exp Region 1'!D$28","v":{"v":0,"d":"$0.00"}},{"$f":"'LTC Rev-Exp Region 1'!E$28","v":{"v":0,"d":"$0.00"}},{"$f":"'LTC Rev-Exp Region 1'!F$28","v":{"v":0,"d":"$0.00"}},{"$f":"'LTC Rev-Exp Region 1'!G$28","v":{"v":0,"d":"$0.00"}},{"v":0,"d":"$0.00"}]
["LTC",null,null,{"$f":"Jurat!I$1","v":0},{"$f":"Jurat!D$33","v":"00:00:00"},"Q1","2017-03-31","Region 1","Operating Expense","Medical Expense","LTC Services","2.13","Medical Equipment/Supplies FFS",{"$f":"'LTC Rev-Exp Region 1'!D$29","v":{"v":0,"d":"$0.00"}},{"$f":"'LTC Rev-Exp Region 1'!E$29","v":{"v":0,"d":"$0.00"}},{"$f":"'LTC Rev-Exp Region 1'!F$29","v":{"v":0,"d":"$0.00"}},{"$f":"'LTC Rev-Exp Region 1'!G$29","v":{"v":0,"d":"$0.00"}},{"v":0,"d":"$0.00"}]
["LTC",null,null,{"$f":"Jurat!I$1","v":0},{"$f":"Jurat!D$33","v":"00:00:00"},"Q1","2017-03-31","Region 1","Operating Expense","Medical Expense","LTC Services","2.14","Therapy FFS",{"$f":"'LTC Rev-Exp Region 1'!D$30","v":{"v":0,"d":"$0.00"}},{"$f":"'LTC Rev-Exp Region 1'!E$30","v":{"v":0,"d":"$0.00"}},{"$f":"'LTC Rev-Exp Region 1'!F$30","v":{"v":0,"d":"$0.00"}},{"$f":"'LTC Rev-Exp Region 1'!G$30","v":{"v":0,"d":"$0.00"}},{"v":0,"d":"$0.00"}]
["LTC",null,null,{"$f":"Jurat!I$1","v":0},{"$f":"Jurat!D$33","v":"00:00:00"},"Q1","2017-03-31","Region 1","Operating Expense","Medical Expense","LTC Services","2.15","Transportation FFS",{"$f":"'LTC Rev-Exp Region 1'!D$31","v":{"v":0,"d":"$0.00"}},{"$f":"'LTC Rev-Exp Region 1'!E$31","v":{"v":0,"d":"$0.00"}},{"$f":"'LTC Rev-Exp Region 1'!F$31","v":{"v":0,"d":"$0.00"}},{"$f":"'LTC Rev-Exp Region 1'!G$31","v":{"v":0,"d":"$0.00"}},{"v":0,"d":"$0.00"}]
["LTC",null,null,{"$f":"Jurat!I$1","v":0},{"$f":"Jurat!D$33","v":"00:00:00"},"Q1","2017-03-31","Region 1","Operating Expense","Medical Expense","LTC Services","2.16","Case Management FFS (Plan Provided)",{"$f":"'LTC Rev-Exp Region 1'!D$32","v":{"v":0,"d":"$0.00"}},{"$f":"'LTC Rev-Exp Region 1'!E$32","v":{"v":0,"d":"$0.00"}},{"$f":"'LTC Rev-Exp Region 1'!F$32","v":{"v":0,"d":"$0.00"}},{"$f":"'LTC Rev-Exp Region 1'!G$32","v":{"v":0,"d":"$0.00"}},{"v":0,"d":"$0.00"}]
["LTC",null,null,{"$f":"Jurat!I$1","v":0},{"$f":"Jurat!D$33","v":"00:00:00"},"Q1","2017-03-31","Region 1","Operating Expense","Medical Expense","LTC Services","2.17","Case Management FF (Non-Plan Provided)",{"$f":"'LTC Rev-Exp Region 1'!D$33","v":{"v":0,"d":"$0.00"}},{"$f":"'LTC Rev-Exp Region 1'!E$33","v":{"v":0,"d":"$0.00"}},{"$f":"'LTC Rev-Exp Region 1'!F$33","v":{"v":0,"d":"$0.00"}},{"$f":"'LTC Rev-Exp Region 1'!G$33","v":{"v":0,"d":"$0.00"}},{"v":0,"d":"$0.00"}]
["LTC",null,null,{"$f":"Jurat!I$1","v":0},{"$f":"Jurat!D$33","v":"00:00:00"},"Q1","2017-03-31","Region 1","Operating Expense","Medical Expense","LTC Services","2.18","HCBS FFS",{"$f":"'LTC Rev-Exp Region 1'!D$34","v":{"v":0,"d":"$0.00"}},{"$f":"'LTC Rev-Exp Region 1'!E$34","v":{"v":0,"d":"$0.00"}},{"$f":"'LTC Rev-Exp Region 1'!F$34","v":{"v":0,"d":"$0.00"}},{"$f":"'LTC Rev-Exp Region 1'!G$34","v":{"v":0,"d":"$0.00"}},{"v":0,"d":"$0.00"}]
["LTC",null,null,{"$f":"Jurat!I$1","v":0},{"$f":"Jurat!D$33","v":"00:00:00"},"Q1","2017-03-31","Region 1","Operating Expense","Medical Expense","LTC Services","2.19","Subcapitated LTC Services",{"$f":"'LTC Rev-Exp Region 1'!D$35","v":{"v":0,"d":"$0.00"}},{"$f":"'LTC Rev-Exp Region 1'!E$35","v":{"v":0,"d":"$0.00"}},{"$f":"'LTC Rev-Exp Region 1'!F$35","v":{"v":0,"d":"$0.00"}},{"$f":"'LTC Rev-Exp Region 1'!G$35","v":{"v":0,"d":"$0.00"}},{"v":0,"d":"$0.00"}]
["LTC",null,null,{"$f":"Jurat!I$1","v":0},{"$f":"Jurat!D$33","v":"00:00:00"},"Q1","2017-03-31","Region 1","Operating Expense","Medical Expense","LTC Services","2.20","Ending IBNP for Long Term Care Services",{"$f":"'LTC Rev-Exp Region 1'!D$36","v":{"v":0,"d":"$0.00"}},{"$f":"'LTC Rev-Exp Region 1'!E$36","v":{"v":0,"d":"$0.00"}},{"$f":"'LTC Rev-Exp Region 1'!F$36","v":{"v":0,"d":"$0.00"}},{"$f":"'LTC Rev-Exp Region 1'!G$36","v":{"v":0,"d":"$0.00"}},{"v":0,"d":"$0.00"}]
["LTC",null,null,{"$f":"Jurat!I$1","v":0},{"$f":"Jurat!D$33","v":"00:00:00"},"Q1","2017-03-31","Region 1","Operating Expense","Medical Expense","LTC Services","2.21","LTC Services Settlements",{"$f":"'LTC Rev-Exp Region 1'!D$37","v":{"v":0,"d":"$0.00"}},{"$f":"'LTC Rev-Exp Region 1'!E$37","v":{"v":0,"d":"$0.00"}},{"$f":"'LTC Rev-Exp Region 1'!F$37","v":{"v":0,"d":"$0.00"}},{"$f":"'LTC Rev-Exp Region 1'!G$37","v":{"v":0,"d":"$0.00"}},{"v":0,"d":"$0.00"}]
["LTC",null,null,{"$f":"Jurat!I$1","v":0},{"$f":"Jurat!D$33","v":"00:00:00"},"Q1","2017-03-31","Region 1","Operating Expense","Medical Expense","Expanded Benefits","3.1","Expanded Benefits FFS",{"$f":"'LTC Rev-Exp Region 1'!D$39","v":{"v":0,"d":"$0.00"}},{"$f":"'LTC Rev-Exp Region 1'!E$39","v":{"v":0,"d":"$0.00"}},{"$f":"'LTC Rev-Exp Region 1'!F$39","v":{"v":0,"d":"$0.00"}},{"$f":"'LTC Rev-Exp Region 1'!G$39","v":{"v":0,"d":"$0.00"}},{"v":0,"d":"$0.00"}]
["LTC",null,null,{"$f":"Jurat!I$1","v":0},{"$f":"Jurat!D$33","v":"00:00:00"},"Q1","2017-03-31","Region 1","Operating Expense","Medical Expense","Expanded Benefits","3.2","Expanded Benefits Subcapitation",{"$f":"'LTC Rev-Exp Region 1'!D$40","v":{"v":0,"d":"$0.00"}},{"$f":"'LTC Rev-Exp Region 1'!E$40","v":{"v":0,"d":"$0.00"}},{"$f":"'LTC Rev-Exp Region 1'!F$40","v":{"v":0,"d":"$0.00"}},{"$f":"'LTC Rev-Exp Region 1'!G$40","v":{"v":0,"d":"$0.00"}},{"v":0,"d":"$0.00"}]
["LTC",null,null,{"$f":"Jurat!I$1","v":0},{"$f":"Jurat!D$33","v":"00:00:00"},"Q1","2017-03-31","Region 1","Operating Expense","Medical Expense","Expanded Benefits","3.3","Ending IBNP for Expanded Benefits",{"$f":"'LTC Rev-Exp Region 1'!D$41","v":{"v":0,"d":"$0.00"}},{"$f":"'LTC Rev-Exp Region 1'!E$41","v":{"v":0,"d":"$0.00"}},{"$f":"'LTC Rev-Exp Region 1'!F$41","v":{"v":0,"d":"$0.00"}},{"$f":"'LTC Rev-Exp Region 1'!G$41","v":{"v":0,"d":"$0.00"}},{"v":0,"d":"$0.00"}]
["LTC",null,null,{"$f":"Jurat!I$1","v":0},{"$f":"Jurat!D$33","v":"00:00:00"},"Q1","2017-03-31","Region 1","Operating Expense","Medical Expense","Expanded Benefits","3.4","Expanded Benefits Settlements",{"$f":"'LTC Rev-Exp Region 1'!D$42","v":{"v":0,"d":"$0.00"}},{"$f":"'LTC Rev-Exp Region 1'!E$42","v":{"v":0,"d":"$0.00"}},{"$f":"'LTC Rev-Exp Region 1'!F$42","v":{"v":0,"d":"$0.00"}},{"$f":"'LTC Rev-Exp Region 1'!G$42","v":{"v":0,"d":"$0.00"}},{"v":0,"d":"$0.00"}]
["LTC",null,null,{"$f":"Jurat!I$1","v":0},{"$f":"Jurat!D$33","v":"00:00:00"},"Q1","2017-03-31","Region 1","Operating Expense","Medical Expense","Other Medical","4.5","TPL & Fraud/Abuse Recoveries",{"$f":"'LTC Rev-Exp Region 1'!D$48","v":{"v":0,"d":"$0.00"}},{"$f":"'LTC Rev-Exp Region 1'!E$48","v":{"v":0,"d":"$0.00"}},{"$f":"'LTC Rev-Exp Region 1'!F$48","v":{"v":0,"d":"$0.00"}},{"$f":"'LTC Rev-Exp Region 1'!G$48","v":{"v":0,"d":"$0.00"}},{"v":0,"d":"$0.00"}]
["LTC",null,null,{"$f":"Jurat!I$1","v":0},{"$f":"Jurat!D$33","v":"00:00:00"},"Q1","2017-03-31","Region 1","Operating Expense","Medical Expense","Other Medical","4.6.1","Premium Deficiency Reserve",{"$f":"'LTC Rev-Exp Region 1'!D$49","v":{"v":0,"d":"$0.00"}},{"$f":"'LTC Rev-Exp Region 1'!E$49","v":{"v":0,"d":"$0.00"}},{"$f":"'LTC Rev-Exp Region 1'!F$49","v":{"v":0,"d":"$0.00"}},{"$f":"'LTC Rev-Exp Region 1'!G$49","v":{"v":0,"d":"$0.00"}},{"v":0,"d":"$0.00"}]
["LTC",null,null,{"$f":"Jurat!I$1","v":0},{"$f":"Jurat!D$33","v":"00:00:00"},"Q1","2017-03-31","Region 1","Operating Expense","Medical Expense","Other Medical","4.8","Reinsurance Premiums",{"$f":"'LTC Rev-Exp Region 1'!D$51","v":{"v":0,"d":"$0.00"}},{"$f":"'LTC Rev-Exp Region 1'!E$51","v":{"v":0,"d":"$0.00"}},{"$f":"'LTC Rev-Exp Region 1'!F$51","v":{"v":0,"d":"$0.00"}},{"$f":"'LTC Rev-Exp Region 1'!G$51","v":{"v":0,"d":"$0.00"}},{"v":0,"d":"$0.00"}]
["LTC",null,null,{"$f":"Jurat!I$1","v":0},{"$f":"Jurat!D$33","v":"00:00:00"},"Q1","2017-03-31","Region 1","Operating Expense","Medical Expense","Other Medical","4.9","Reinsurance Recoveries",{"$f":"'LTC Rev-Exp Region 1'!D$52","v":{"v":0,"d":"$0.00"}},{"$f":"'LTC Rev-Exp Region 1'!E$52","v":{"v":0,"d":"$0.00"}},{"$f":"'LTC Rev-Exp Region 1'!F$52","v":{"v":0,"d":"$0.00"}},{"$f":"'LTC Rev-Exp Region 1'!G$52","v":{"v":0,"d":"$0.00"}},{"v":0,"d":"$0.00"}]
["LTC",null,null,{"$f":"Jurat!I$1","v":0},{"$f":"Jurat!D$33","v":"00:00:00"},"Q1","2017-03-31","Region 1","Operating Expense","Administrative Expense","Administrative","5.1","Salaries & Benefits",{"$f":"'LTC Rev-Exp Region 1'!D$57","v":{"v":0,"d":"$0.00"}},{"$f":"'LTC Rev-Exp Region 1'!E$57","v":{"v":0,"d":"$0.00"}},{"$f":"'LTC Rev-Exp Region 1'!F$57","v":{"v":0,"d":"$0.00"}},{"$f":"'LTC Rev-Exp Region 1'!G$57","v":{"v":0,"d":"$0.00"}},{"v":0,"d":"$0.00"}]
["LTC",null,null,{"$f":"Jurat!I$1","v":0},{"$f":"Jurat!D$33","v":"00:00:00"},"Q1","2017-03-31","Region 1","Operating Expense","Administrative Expense","Administrative","5.2","Administrative Services",{"$f":"'LTC Rev-Exp Region 1'!D$58","v":{"v":0,"d":"$0.00"}},{"$f":"'LTC Rev-Exp Region 1'!E$58","v":{"v":0,"d":"$0.00"}},{"$f":"'LTC Rev-Exp Region 1'!F$58","v":{"v":0,"d":"$0.00"}},{"$f":"'LTC Rev-Exp Region 1'!G$58","v":{"v":0,"d":"$0.00"}},{"v":0,"d":"$0.00"}]
["LTC",null,null,{"$f":"Jurat!I$1","v":0},{"$f":"Jurat!D$33","v":"00:00:00"},"Q1","2017-03-31","Region 1","Operating Expense","Administrative Expense","Administrative","5.3","Information Systems",{"$f":"'LTC Rev-Exp Region 1'!D$59","v":{"v":0,"d":"$0.00"}},{"$f":"'LTC Rev-Exp Region 1'!E$59","v":{"v":0,"d":"$0.00"}},{"$f":"'LTC Rev-Exp Region 1'!F$59","v":{"v":0,"d":"$0.00"}},{"$f":"'LTC Rev-Exp Region 1'!G$59","v":{"v":0,"d":"$0.00"}},{"v":0,"d":"$0.00"}]
["LTC",null,null,{"$f":"Jurat!I$1","v":0},{"$f":"Jurat!D$33","v":"00:00:00"},"Q1","2017-03-31","Region 1","Operating Expense","Administrative Expense","Administrative","5.4","Marketing Expenses",{"$f":"'LTC Rev-Exp Region 1'!D$60","v":{"v":0,"d":"$0.00"}},{"$f":"'LTC Rev-Exp Region 1'!E$60","v":{"v":0,"d":"$0.00"}},{"$f":"'LTC Rev-Exp Region 1'!F$60","v":{"v":0,"d":"$0.00"}},{"$f":"'LTC Rev-Exp Region 1'!G$60","v":{"v":0,"d":"$0.00"}},{"v":0,"d":"$0.00"}]
["LTC",null,null,{"$f":"Jurat!I$1","v":0},{"$f":"Jurat!D$33","v":"00:00:00"},"Q1","2017-03-31","Region 1","Operating Expense","Administrative Expense","Administrative","5.5","General  Administration",{"$f":"'LTC Rev-Exp Region 1'!D$61","v":{"v":0,"d":"$0.00"}},{"$f":"'LTC Rev-Exp Region 1'!E$61","v":{"v":0,"d":"$0.00"}},{"$f":"'LTC Rev-Exp Region 1'!F$61","v":{"v":0,"d":"$0.00"}},{"$f":"'LTC Rev-Exp Region 1'!G$61","v":{"v":0,"d":"$0.00"}},{"v":0,"d":"$0.00"}]
["LTC",null,null,{"$f":"Jurat!I$1","v":0},{"$f":"Jurat!D$33","v":"00:00:00"},"Q1","2017-03-31","Region 1","Operating Expense","Administrative Expense","Administrative","5.6","Compliance/Regulatory",{"$f":"'LTC Rev-Exp Region 1'!D$62","v":{"v":0,"d":"$0.00"}},{"$f":"'LTC Rev-Exp Region 1'!E$62","v":{"v":0,"d":"$0.00"}},{"$f":"'LTC Rev-Exp Region 1'!F$62","v":{"v":0,"d":"$0.00"}},{"$f":"'LTC Rev-Exp Region 1'!G$62","v":{"v":0,"d":"$0.00"}},{"v":0,"d":"$0.00"}]
["LTC",null,null,{"$f":"Jurat!I$1","v":0},{"$f":"Jurat!D$33","v":"00:00:00"},"Q1","2017-03-31","Region 1","Operating Expense","Taxes & Fees","Taxes & Fees","6.1","State Premium Tax",{"$f":"'LTC Rev-Exp Region 1'!D$64","v":{"v":0,"d":"$0.00"}},{"v":0,"d":"$0.00"},{"v":0,"d":"$0.00"},{"v":0,"d":"$0.00"},{"v":0,"d":"$0.00"}]
["LTC",null,null,{"$f":"Jurat!I$1","v":0},{"$f":"Jurat!D$33","v":"00:00:00"},"Q1","2017-03-31","Region 1","Operating Expense","Taxes & Fees","Taxes & Fees","6.2","Department of Insurance Assessments",{"$f":"'LTC Rev-Exp Region 1'!D$65","v":{"v":0,"d":"$0.00"}},{"v":0,"d":"$0.00"},{"v":0,"d":"$0.00"},{"v":0,"d":"$0.00"},{"v":0,"d":"$0.00"}]
["LTC",null,null,{"$f":"Jurat!I$1","v":0},{"$f":"Jurat!D$33","v":"00:00:00"},"Q1","2017-03-31","Region 1","Non-Operating Expense","Income Tax Expense","Income Tax Expense","9.0","Income Tax Expense",{"$f":"'LTC Rev-Exp Region 1'!D$72","v":{"v":0,"d":"$0.00"}},{"v":0,"d":"$0.00"},{"v":0,"d":"$0.00"},{"v":0,"d":"$0.00"},{"v":0,"d":"$0.00"}]
["LTC",null,null,{"$f":"Jurat!I$1","v":0},{"$f":"Jurat!D$33","v":"00:00:00"},"Q2","2017-06-30","Region 1","Member Months","Member Months","Member Months",null,"Member Months",{"$f":"'LTC Rev-Exp Region 1'!H$9","v":{"v":0,"d":"$0.00"}},{"$f":"'LTC Rev-Exp Region 1'!I$9","v":{"v":0,"d":"$0.00"}},{"$f":"'LTC Rev-Exp Region 1'!J$9","v":{"v":0,"d":"$0.00"}},{"$f":"'LTC Rev-Exp Region 1'!K$9","v":{"v":0,"d":"$0.00"}},{"v":0,"d":"$0.00"}]
["LTC",null,null,{"$f":"Jurat!I$1","v":0},{"$f":"Jurat!D$33","v":"00:00:00"},"Q2","2017-06-30","Region 1","Operating Revenue","Capitation","Capitation",1.1,"Capitation",{"$f":"'LTC Rev-Exp Region 1'!H$11","v":{"v":0,"d":"$0.00"}},{"$f":"'LTC Rev-Exp Region 1'!I$11","v":{"v":0,"d":"$0.00"}},{"$f":"'LTC Rev-Exp Region 1'!J$11","v":{"v":0,"d":"$0.00"}},{"$f":"'LTC Rev-Exp Region 1'!K$11","v":{"v":0,"d":"$0.00"}},{"v":0,"d":"$0.00"}]
["LTC",null,null,{"$f":"Jurat!I$1","v":0},{"$f":"Jurat!D$33","v":"00:00:00"},"Q2","2017-06-30","Region 1","Operating Revenue","Capitation","NH Rate Reconciliation",1.2,"NH Rate Reconciliation",{"$f":"'LTC Rev-Exp Region 1'!H$12","v":{"v":0,"d":"$0.00"}},{"$f":"'LTC Rev-Exp Region 1'!I$12","v":{"v":0,"d":"$0.00"}},{"$f":"'LTC Rev-Exp Region 1'!J$12","v":{"v":0,"d":"$0.00"}},{"$f":"'LTC Rev-Exp Region 1'!K$12","v":{"v":0,"d":"$0.00"}},{"v":0,"d":"$0.00"}]
["LTC",null,null,{"$f":"Jurat!I$1","v":0},{"$f":"Jurat!D$33","v":"00:00:00"},"Q2","2017-06-30","Region 1","Operating Revenue","Other Revenue","Other Revenue",1.3,"Other Revenue",{"$f":"'LTC Rev-Exp Region 1'!H$13","v":{"v":0,"d":"$0.00"}},{"$f":"'LTC Rev-Exp Region 1'!I$13","v":{"v":0,"d":"$0.00"}},{"$f":"'LTC Rev-Exp Region 1'!J$13","v":{"v":0,"d":"$0.00"}},{"$f":"'LTC Rev-Exp Region 1'!K$13","v":{"v":0,"d":"$0.00"}},{"v":0,"d":"$0.00"}]
["LTC",null,null,{"$f":"Jurat!I$1","v":0},{"$f":"Jurat!D$33","v":"00:00:00"},"Q2","2017-06-30","Region 1","Operating Expense","Medical Expense","NF & Hospice","2.1","Nursing Facility Days (Medicaid)",{"$f":"'LTC Rev-Exp Region 1'!H$17","v":{"v":0,"d":"$0.00"}},{"$f":"'LTC Rev-Exp Region 1'!I$17","v":{"v":0,"d":"$0.00"}},{"$f":"'LTC Rev-Exp Region 1'!J$17","v":{"v":0,"d":"$0.00"}},{"$f":"'LTC Rev-Exp Region 1'!K$17","v":{"v":0,"d":"$0.00"}},{"v":0,"d":"$0.00"}]
["LTC",null,null,{"$f":"Jurat!I$1","v":0},{"$f":"Jurat!D$33","v":"00:00:00"},"Q2","2017-06-30","Region 1","Operating Expense","Medical Expense","NF & Hospice","2.2","Nursing Facility Days (Crossover)",{"$f":"'LTC Rev-Exp Region 1'!H$18","v":{"v":0,"d":"$0.00"}},{"$f":"'LTC Rev-Exp Region 1'!I$18","v":{"v":0,"d":"$0.00"}},{"$f":"'LTC Rev-Exp Region 1'!J$18","v":{"v":0,"d":"$0.00"}},{"$f":"'LTC Rev-Exp Region 1'!K$18","v":{"v":0,"d":"$0.00"}},{"v":0,"d":"$0.00"}]
["LTC",null,null,{"$f":"Jurat!I$1","v":0},{"$f":"Jurat!D$33","v":"00:00:00"},"Q2","2017-06-30","Region 1","Operating Expense","Medical Expense","NF & Hospice","2.3","Nursing Facility FFS (Medicaid)",{"$f":"'LTC Rev-Exp Region 1'!H$19","v":{"v":0,"d":"$0.00"}},{"$f":"'LTC Rev-Exp Region 1'!I$19","v":{"v":0,"d":"$0.00"}},{"$f":"'LTC Rev-Exp Region 1'!J$19","v":{"v":0,"d":"$0.00"}},{"$f":"'LTC Rev-Exp Region 1'!K$19","v":{"v":0,"d":"$0.00"}},{"v":0,"d":"$0.00"}]
["LTC",null,null,{"$f":"Jurat!I$1","v":0},{"$f":"Jurat!D$33","v":"00:00:00"},"Q2","2017-06-30","Region 1","Operating Expense","Medical Expense","NF & Hospice","2.4","Nursing Facility FFS (Crossover)",{"$f":"'LTC Rev-Exp Region 1'!H$20","v":{"v":0,"d":"$0.00"}},{"$f":"'LTC Rev-Exp Region 1'!I$20","v":{"v":0,"d":"$0.00"}},{"$f":"'LTC Rev-Exp Region 1'!J$20","v":{"v":0,"d":"$0.00"}},{"$f":"'LTC Rev-Exp Region 1'!K$20","v":{"v":0,"d":"$0.00"}},{"v":0,"d":"$0.00"}]
["LTC",null,null,{"$f":"Jurat!I$1","v":0},{"$f":"Jurat!D$33","v":"00:00:00"},"Q2","2017-06-30","Region 1","Operating Expense","Medical Expense","NF & Hospice","2.5","Hospice Days",{"$f":"'LTC Rev-Exp Region 1'!H$21","v":{"v":0,"d":"$0.00"}},{"$f":"'LTC Rev-Exp Region 1'!I$21","v":{"v":0,"d":"$0.00"}},{"$f":"'LTC Rev-Exp Region 1'!J$21","v":{"v":0,"d":"$0.00"}},{"$f":"'LTC Rev-Exp Region 1'!K$21","v":{"v":0,"d":"$0.00"}},{"v":0,"d":"$0.00"}]
["LTC",null,null,{"$f":"Jurat!I$1","v":0},{"$f":"Jurat!D$33","v":"00:00:00"},"Q2","2017-06-30","Region 1","Operating Expense","Medical Expense","NF & Hospice","2.6","Hospice FFS",{"$f":"'LTC Rev-Exp Region 1'!H$22","v":{"v":0,"d":"$0.00"}},{"$f":"'LTC Rev-Exp Region 1'!I$22","v":{"v":0,"d":"$0.00"}},{"$f":"'LTC Rev-Exp Region 1'!J$22","v":{"v":0,"d":"$0.00"}},{"$f":"'LTC Rev-Exp Region 1'!K$22","v":{"v":0,"d":"$0.00"}},{"v":0,"d":"$0.00"}]
["LTC",null,null,{"$f":"Jurat!I$1","v":0},{"$f":"Jurat!D$33","v":"00:00:00"},"Q2","2017-06-30","Region 1","Operating Expense","Medical Expense","NF & Hospice","2.7","Ending IBNP for NF & Hospice",{"$f":"'LTC Rev-Exp Region 1'!H$23","v":{"v":0,"d":"$0.00"}},{"$f":"'LTC Rev-Exp Region 1'!I$23","v":{"v":0,"d":"$0.00"}},{"$f":"'LTC Rev-Exp Region 1'!J$23","v":{"v":0,"d":"$0.00"}},{"$f":"'LTC Rev-Exp Region 1'!K$23","v":{"v":0,"d":"$0.00"}},{"v":0,"d":"$0.00"}]
["LTC",null,null,{"$f":"Jurat!I$1","v":0},{"$f":"Jurat!D$33","v":"00:00:00"},"Q2","2017-06-30","Region 1","Operating Expense","Medical Expense","NF & Hospice","2.8","NF & Hospice Subcapitated",{"$f":"'LTC Rev-Exp Region 1'!H$24","v":{"v":0,"d":"$0.00"}},{"$f":"'LTC Rev-Exp Region 1'!I$24","v":{"v":0,"d":"$0.00"}},{"$f":"'LTC Rev-Exp Region 1'!J$24","v":{"v":0,"d":"$0.00"}},{"$f":"'LTC Rev-Exp Region 1'!K$24","v":{"v":0,"d":"$0.00"}},{"v":0,"d":"$0.00"}]
["LTC",null,null,{"$f":"Jurat!I$1","v":0},{"$f":"Jurat!D$33","v":"00:00:00"},"Q2","2017-06-30","Region 1","Operating Expense","Medical Expense","NF & Hospice","2.9","NF & Hospice Settlements",{"$f":"'LTC Rev-Exp Region 1'!H$25","v":{"v":0,"d":"$0.00"}},{"$f":"'LTC Rev-Exp Region 1'!I$25","v":{"v":0,"d":"$0.00"}},{"$f":"'LTC Rev-Exp Region 1'!J$25","v":{"v":0,"d":"$0.00"}},{"$f":"'LTC Rev-Exp Region 1'!K$25","v":{"v":0,"d":"$0.00"}},{"v":0,"d":"$0.00"}]
["LTC",null,null,{"$f":"Jurat!I$1","v":0},{"$f":"Jurat!D$33","v":"00:00:00"},"Q2","2017-06-30","Region 1","Operating Expense","Medical Expense","LTC Services","2.11","Assisted Living FFS",{"$f":"'LTC Rev-Exp Region 1'!H$27","v":{"v":0,"d":"$0.00"}},{"$f":"'LTC Rev-Exp Region 1'!I$27","v":{"v":0,"d":"$0.00"}},{"$f":"'LTC Rev-Exp Region 1'!J$27","v":{"v":0,"d":"$0.00"}},{"$f":"'LTC Rev-Exp Region 1'!K$27","v":{"v":0,"d":"$0.00"}},{"v":0,"d":"$0.00"}]
["LTC",null,null,{"$f":"Jurat!I$1","v":0},{"$f":"Jurat!D$33","v":"00:00:00"},"Q2","2017-06-30","Region 1","Operating Expense","Medical Expense","LTC Services","2.12","Home Health FFS",{"$f":"'LTC Rev-Exp Region 1'!H$28","v":{"v":0,"d":"$0.00"}},{"$f":"'LTC Rev-Exp Region 1'!I$28","v":{"v":0,"d":"$0.00"}},{"$f":"'LTC Rev-Exp Region 1'!J$28","v":{"v":0,"d":"$0.00"}},{"$f":"'LTC Rev-Exp Region 1'!K$28","v":{"v":0,"d":"$0.00"}},{"v":0,"d":"$0.00"}]
["LTC",null,null,{"$f":"Jurat!I$1","v":0},{"$f":"Jurat!D$33","v":"00:00:00"},"Q2","2017-06-30","Region 1","Operating Expense","Medical Expense","LTC Services","2.13","Medical Equipment/Supplies FFS",{"$f":"'LTC Rev-Exp Region 1'!H$29","v":{"v":0,"d":"$0.00"}},{"$f":"'LTC Rev-Exp Region 1'!I$29","v":{"v":0,"d":"$0.00"}},{"$f":"'LTC Rev-Exp Region 1'!J$29","v":{"v":0,"d":"$0.00"}},{"$f":"'LTC Rev-Exp Region 1'!K$29","v":{"v":0,"d":"$0.00"}},{"v":0,"d":"$0.00"}]
["LTC",null,null,{"$f":"Jurat!I$1","v":0},{"$f":"Jurat!D$33","v":"00:00:00"},"Q2","2017-06-30","Region 1","Operating Expense","Medical Expense","LTC Services","2.14","Therapy FFS",{"$f":"'LTC Rev-Exp Region 1'!H$30","v":{"v":0,"d":"$0.00"}},{"$f":"'LTC Rev-Exp Region 1'!I$30","v":{"v":0,"d":"$0.00"}},{"$f":"'LTC Rev-Exp Region 1'!J$30","v":{"v":0,"d":"$0.00"}},{"$f":"'LTC Rev-Exp Region 1'!K$30","v":{"v":0,"d":"$0.00"}},{"v":0,"d":"$0.00"}]
["LTC",null,null,{"$f":"Jurat!I$1","v":0},{"$f":"Jurat!D$33","v":"00:00:00"},"Q2","2017-06-30","Region 1","Operating Expense","Medical Expense","LTC Services","2.15","Transportation FFS",{"$f":"'LTC Rev-Exp Region 1'!H$31","v":{"v":0,"d":"$0.00"}},{"$f":"'LTC Rev-Exp Region 1'!I$31","v":{"v":0,"d":"$0.00"}},{"$f":"'LTC Rev-Exp Region 1'!J$31","v":{"v":0,"d":"$0.00"}},{"$f":"'LTC Rev-Exp Region 1'!K$31","v":{"v":0,"d":"$0.00"}},{"v":0,"d":"$0.00"}]
["LTC",null,null,{"$f":"Jurat!I$1","v":0},{"$f":"Jurat!D$33","v":"00:00:00"},"Q2","2017-06-30","Region 1","Operating Expense","Medical Expense","LTC Services","2.16","Case Management FFS (Plan Provided)",{"$f":"'LTC Rev-Exp Region 1'!H$32","v":{"v":0,"d":"$0.00"}},{"$f":"'LTC Rev-Exp Region 1'!I$32","v":{"v":0,"d":"$0.00"}},{"$f":"'LTC Rev-Exp Region 1'!J$32","v":{"v":0,"d":"$0.00"}},{"$f":"'LTC Rev-Exp Region 1'!K$32","v":{"v":0,"d":"$0.00"}},{"v":0,"d":"$0.00"}]
["LTC",null,null,{"$f":"Jurat!I$1","v":0},{"$f":"Jurat!D$33","v":"00:00:00"},"Q2","2017-06-30","Region 1","Operating Expense","Medical Expense","LTC Services","2.17","Case Management FF (Non-Plan Provided)",{"$f":"'LTC Rev-Exp Region 1'!H$33","v":{"v":0,"d":"$0.00"}},{"$f":"'LTC Rev-Exp Region 1'!I$33","v":{"v":0,"d":"$0.00"}},{"$f":"'LTC Rev-Exp Region 1'!J$33","v":{"v":0,"d":"$0.00"}},{"$f":"'LTC Rev-Exp Region 1'!K$33","v":{"v":0,"d":"$0.00"}},{"v":0,"d":"$0.00"}]
["LTC",null,null,{"$f":"Jurat!I$1","v":0},{"$f":"Jurat!D$33","v":"00:00:00"},"Q2","2017-06-30","Region 1","Operating Expense","Medical Expense","LTC Services","2.18","HCBS FFS",{"$f":"'LTC Rev-Exp Region 1'!H$34","v":{"v":0,"d":"$0.00"}},{"$f":"'LTC Rev-Exp Region 1'!I$34","v":{"v":0,"d":"$0.00"}},{"$f":"'LTC Rev-Exp Region 1'!J$34","v":{"v":0,"d":"$0.00"}},{"$f":"'LTC Rev-Exp Region 1'!K$34","v":{"v":0,"d":"$0.00"}},{"v":0,"d":"$0.00"}]
["LTC",null,null,{"$f":"Jurat!I$1","v":0},{"$f":"Jurat!D$33","v":"00:00:00"},"Q2","2017-06-30","Region 1","Operating Expense","Medical Expense","LTC Services","2.19","Subcapitated LTC Services",{"$f":"'LTC Rev-Exp Region 1'!H$35","v":{"v":0,"d":"$0.00"}},{"$f":"'LTC Rev-Exp Region 1'!I$35","v":{"v":0,"d":"$0.00"}},{"$f":"'LTC Rev-Exp Region 1'!J$35","v":{"v":0,"d":"$0.00"}},{"$f":"'LTC Rev-Exp Region 1'!K$35","v":{"v":0,"d":"$0.00"}},{"v":0,"d":"$0.00"}]
["LTC",null,null,{"$f":"Jurat!I$1","v":0},{"$f":"Jurat!D$33","v":"00:00:00"},"Q2","2017-06-30","Region 1","Operating Expense","Medical Expense","LTC Services","2.20","Ending IBNP for Long Term Care Services",{"$f":"'LTC Rev-Exp Region 1'!H$36","v":{"v":0,"d":"$0.00"}},{"$f":"'LTC Rev-Exp Region 1'!I$36","v":{"v":0,"d":"$0.00"}},{"$f":"'LTC Rev-Exp Region 1'!J$36","v":{"v":0,"d":"$0.00"}},{"$f":"'LTC Rev-Exp Region 1'!K$36","v":{"v":0,"d":"$0.00"}},{"v":0,"d":"$0.00"}]
["LTC",null,null,{"$f":"Jurat!I$1","v":0},{"$f":"Jurat!D$33","v":"00:00:00"},"Q2","2017-06-30","Region 1","Operating Expense","Medical Expense","LTC Services","2.21","LTC Services Settlements",{"$f":"'LTC Rev-Exp Region 1'!H$37","v":{"v":0,"d":"$0.00"}},{"$f":"'LTC Rev-Exp Region 1'!I$37","v":{"v":0,"d":"$0.00"}},{"$f":"'LTC Rev-Exp Region 1'!J$37","v":{"v":0,"d":"$0.00"}},{"$f":"'LTC Rev-Exp Region 1'!K$37","v":{"v":0,"d":"$0.00"}},{"v":0,"d":"$0.00"}]
["LTC",null,null,{"$f":"Jurat!I$1","v":0},{"$f":"Jurat!D$33","v":"00:00:00"},"Q2","2017-06-30","Region 1","Operating Expense","Medical Expense","Expanded Benefits","3.1","Expanded Benefits FFS",{"$f":"'LTC Rev-Exp Region 1'!H$39","v":{"v":0,"d":"$0.00"}},{"$f":"'LTC Rev-Exp Region 1'!I$39","v":{"v":0,"d":"$0.00"}},{"$f":"'LTC Rev-Exp Region 1'!J$39","v":{"v":0,"d":"$0.00"}},{"$f":"'LTC Rev-Exp Region 1'!K$39","v":{"v":0,"d":"$0.00"}},{"v":0,"d":"$0.00"}]
["LTC",null,null,{"$f":"Jurat!I$1","v":0},{"$f":"Jurat!D$33","v":"00:00:00"},"Q2","2017-06-30","Region 1","Operating Expense","Medical Expense","Expanded Benefits","3.2","Expanded Benefits Subcapitation",{"$f":"'LTC Rev-Exp Region 1'!H$40","v":{"v":0,"d":"$0.00"}},{"$f":"'LTC Rev-Exp Region 1'!I$40","v":{"v":0,"d":"$0.00"}},{"$f":"'LTC Rev-Exp Region 1'!J$40","v":{"v":0,"d":"$0.00"}},{"$f":"'LTC Rev-Exp Region 1'!K$40","v":{"v":0,"d":"$0.00"}},{"v":0,"d":"$0.00"}]
["LTC",null,null,{"$f":"Jurat!I$1","v":0},{"$f":"Jurat!D$33","v":"00:00:00"},"Q2","2017-06-30","Region 1","Operating Expense","Medical Expense","Expanded Benefits","3.3","Ending IBNP for Expanded Benefits",{"$f":"'LTC Rev-Exp Region 1'!H$41","v":{"v":0,"d":"$0.00"}},{"$f":"'LTC Rev-Exp Region 1'!I$41","v":{"v":0,"d":"$0.00"}},{"$f":"'LTC Rev-Exp Region 1'!J$41","v":{"v":0,"d":"$0.00"}},{"$f":"'LTC Rev-Exp Region 1'!K$41","v":{"v":0,"d":"$0.00"}},{"v":0,"d":"$0.00"}]
["LTC",null,null,{"$f":"Jurat!I$1","v":0},{"$f":"Jurat!D$33","v":"00:00:00"},"Q2","2017-06-30","Region 1","Operating Expense","Medical Expense","Expanded Benefits","3.4","Expanded Benefits Settlements",{"$f":"'LTC Rev-Exp Region 1'!H$42","v":{"v":0,"d":"$0.00"}},{"$f":"'LTC Rev-Exp Region 1'!I$42","v":{"v":0,"d":"$0.00"}},{"$f":"'LTC Rev-Exp Region 1'!J$42","v":{"v":0,"d":"$0.00"}},{"$f":"'LTC Rev-Exp Region 1'!K$42","v":{"v":0,"d":"$0.00"}},{"v":0,"d":"$0.00"}]
["LTC",null,null,{"$f":"Jurat!I$1","v":0},{"$f":"Jurat!D$33","v":"00:00:00"},"Q2","2017-06-30","Region 1","Operating Expense","Medical Expense","Other Medical","4.5","TPL & Fraud/Abuse Recoveries",{"$f":"'LTC Rev-Exp Region 1'!H$48","v":{"v":0,"d":"$0.00"}},{"$f":"'LTC Rev-Exp Region 1'!I$48","v":{"v":0,"d":"$0.00"}},{"$f":"'LTC Rev-Exp Region 1'!J$48","v":{"v":0,"d":"$0.00"}},{"$f":"'LTC Rev-Exp Region 1'!K$48","v":{"v":0,"d":"$0.00"}},{"v":0,"d":"$0.00"}]
["LTC",null,null,{"$f":"Jurat!I$1","v":0},{"$f":"Jurat!D$33","v":"00:00:00"},"Q2","2017-06-30","Region 1","Operating Expense","Medical Expense","Other Medical","4.6.1","Premium Deficiency Reserve",{"$f":"'LTC Rev-Exp Region 1'!H$49","v":{"v":0,"d":"$0.00"}},{"$f":"'LTC Rev-Exp Region 1'!I$49","v":{"v":0,"d":"$0.00"}},{"$f":"'LTC Rev-Exp Region 1'!J$49","v":{"v":0,"d":"$0.00"}},{"$f":"'LTC Rev-Exp Region 1'!K$49","v":{"v":0,"d":"$0.00"}},{"v":0,"d":"$0.00"}]
["LTC",null,null,{"$f":"Jurat!I$1","v":0},{"$f":"Jurat!D$33","v":"00:00:00"},"Q2","2017-06-30","Region 1","Operating Expense","Medical Expense","Other Medical","4.8","Reinsurance Premiums",{"$f":"'LTC Rev-Exp Region 1'!H$51","v":{"v":0,"d":"$0.00"}},{"$f":"'LTC Rev-Exp Region 1'!I$51","v":{"v":0,"d":"$0.00"}},{"$f":"'LTC Rev-Exp Region 1'!J$51","v":{"v":0,"d":"$0.00"}},{"$f":"'LTC Rev-Exp Region 1'!K$51","v":{"v":0,"d":"$0.00"}},{"v":0,"d":"$0.00"}]
["LTC",null,null,{"$f":"Jurat!I$1","v":0},{"$f":"Jurat!D$33","v":"00:00:00"},"Q2","2017-06-30","Region 1","Operating Expense","Medical Expense","Other Medical","4.9","Reinsurance Recoveries",{"$f":"'LTC Rev-Exp Region 1'!H$52","v":{"v":0,"d":"$0.00"}},{"$f":"'LTC Rev-Exp Region 1'!I$52","v":{"v":0,"d":"$0.00"}},{"$f":"'LTC Rev-Exp Region 1'!J$52","v":{"v":0,"d":"$0.00"}},{"$f":"'LTC Rev-Exp Region 1'!K$52","v":{"v":0,"d":"$0.00"}},{"v":0,"d":"$0.00"}]
["LTC",null,null,{"$f":"Jurat!I$1","v":0},{"$f":"Jurat!D$33","v":"00:00:00"},"Q2","2017-06-30","Region 1","Operating Expense","Administrative Expense","Administrative","5.1","Salaries & Benefits",{"$f":"'LTC Rev-Exp Region 1'!H$57","v":{"v":0,"d":"$0.00"}},{"$f":"'LTC Rev-Exp Region 1'!I$57","v":{"v":0,"d":"$0.00"}},{"$f":"'LTC Rev-Exp Region 1'!J$57","v":{"v":0,"d":"$0.00"}},{"$f":"'LTC Rev-Exp Region 1'!K$57","v":{"v":0,"d":"$0.00"}},{"v":0,"d":"$0.00"}]
["LTC",null,null,{"$f":"Jurat!I$1","v":0},{"$f":"Jurat!D$33","v":"00:00:00"},"Q2","2017-06-30","Region 1","Operating Expense","Administrative Expense","Administrative","5.2","Administrative Services",{"$f":"'LTC Rev-Exp Region 1'!H$58","v":{"v":0,"d":"$0.00"}},{"$f":"'LTC Rev-Exp Region 1'!I$58","v":{"v":0,"d":"$0.00"}},{"$f":"'LTC Rev-Exp Region 1'!J$58","v":{"v":0,"d":"$0.00"}},{"$f":"'LTC Rev-Exp Region 1'!K$58","v":{"v":0,"d":"$0.00"}},{"v":0,"d":"$0.00"}]
["LTC",null,null,{"$f":"Jurat!I$1","v":0},{"$f":"Jurat!D$33","v":"00:00:00"},"Q2","2017-06-30","Region 1","Operating Expense","Administrative Expense","Administrative","5.3","Information Systems",{"$f":"'LTC Rev-Exp Region 1'!H$59","v":{"v":0,"d":"$0.00"}},{"$f":"'LTC Rev-Exp Region 1'!I$59","v":{"v":0,"d":"$0.00"}},{"$f":"'LTC Rev-Exp Region 1'!J$59","v":{"v":0,"d":"$0.00"}},{"$f":"'LTC Rev-Exp Region 1'!K$59","v":{"v":0,"d":"$0.00"}},{"v":0,"d":"$0.00"}]
["LTC",null,null,{"$f":"Jurat!I$1","v":0},{"$f":"Jurat!D$33","v":"00:00:00"},"Q2","2017-06-30","Region 1","Operating Expense","Administrative Expense","Administrative","5.4","Marketing Expenses",{"$f":"'LTC Rev-Exp Region 1'!H$60","v":{"v":0,"d":"$0.00"}},{"$f":"'LTC Rev-Exp Region 1'!I$60","v":{"v":0,"d":"$0.00"}},{"$f":"'LTC Rev-Exp Region 1'!J$60","v":{"v":0,"d":"$0.00"}},{"$f":"'LTC Rev-Exp Region 1'!K$60","v":{"v":0,"d":"$0.00"}},{"v":0,"d":"$0.00"}]
["LTC",null,null,{"$f":"Jurat!I$1","v":0},{"$f":"Jurat!D$33","v":"00:00:00"},"Q2","2017-06-30","Region 1","Operating Expense","Administrative Expense","Administrative","5.5","General  Administration",{"$f":"'LTC Rev-Exp Region 1'!H$61","v":{"v":0,"d":"$0.00"}},{"$f":"'LTC Rev-Exp Region 1'!I$61","v":{"v":0,"d":"$0.00"}},{"$f":"'LTC Rev-Exp Region 1'!J$61","v":{"v":0,"d":"$0.00"}},{"$f":"'LTC Rev-Exp Region 1'!K$61","v":{"v":0,"d":"$0.00"}},{"v":0,"d":"$0.00"}]
["LTC",null,null,{"$f":"Jurat!I$1","v":0},{"$f":"Jurat!D$33","v":"00:00:00"},"Q2","2017-06-30","Region 1","Operating Expense","Administrative Expense","Administrative","5.6","Compliance/Regulatory",{"$f":"'LTC Rev-Exp Region 1'!H$62","v":{"v":0,"d":"$0.00"}},{"$f":"'LTC Rev-Exp Region 1'!I$62","v":{"v":0,"d":"$0.00"}},{"$f":"'LTC Rev-Exp Region 1'!J$62","v":{"v":0,"d":"$0.00"}},{"$f":"'LTC Rev-Exp Region 1'!K$62","v":{"v":0,"d":"$0.00"}},{"v":0,"d":"$0.00"}]
["LTC",null,null,{"$f":"Jurat!I$1","v":0},{"$f":"Jurat!D$33","v":"00:00:00"},"Q2","2017-06-30","Region 1","Operating Expense","Taxes & Fees","Taxes & Fees","6.1","State Premium Tax",{"$f":"'LTC Rev-Exp Region 1'!H$64","v":{"v":0,"d":"$0.00"}},{"v":0,"d":"$0.00"},{"v":0,"d":"$0.00"},{"v":0,"d":"$0.00"},{"v":0,"d":"$0.00"}]
["LTC",null,null,{"$f":"Jurat!I$1","v":0},{"$f":"Jurat!D$33","v":"00:00:00"},"Q2","2017-06-30","Region 1","Operating Expense","Taxes & Fees","Taxes & Fees","6.2","Department of Insurance Assessments",{"$f":"'LTC Rev-Exp Region 1'!H$65","v":{"v":0,"d":"$0.00"}},{"v":0,"d":"$0.00"},{"v":0,"d":"$0.00"},{"v":0,"d":"$0.00"},{"v":0,"d":"$0.00"}]
["LTC",null,null,{"$f":"Jurat!I$1","v":0},{"$f":"Jurat!D$33","v":"00:00:00"},"Q2","2017-06-30","Region 1","Non-Operating Expense","Income Tax Expense","Income Tax Expense","9.0","Income Tax Expense",{"$f":"'LTC Rev-Exp Region 1'!H$72","v":{"v":0,"d":"$0.00"}},{"v":0,"d":"$0.00"},{"v":0,"d":"$0.00"},{"v":0,"d":"$0.00"},{"v":0,"d":"$0.00"}]
["LTC",null,null,{"$f":"Jurat!I$1","v":0},{"$f":"Jurat!D$33","v":"00:00:00"},"Q3","2017-09-30","Region 1","Member Months","Member Months","Member Months",null,"Member Months",{"$f":"'LTC Rev-Exp Region 1'!L$9","v":{"v":0,"d":"$0.00"}},{"$f":"'LTC Rev-Exp Region 1'!M$9","v":{"v":0,"d":"$0.00"}},{"$f":"'LTC Rev-Exp Region 1'!N$9","v":{"v":0,"d":"$0.00"}},{"$f":"'LTC Rev-Exp Region 1'!O$9","v":{"v":0,"d":"$0.00"}},{"v":0,"d":"$0.00"}]
["LTC",null,null,{"$f":"Jurat!I$1","v":0},{"$f":"Jurat!D$33","v":"00:00:00"},"Q3","2017-09-30","Region 1","Operating Revenue","Capitation","Capitation",1.1,"Capitation",{"$f":"'LTC Rev-Exp Region 1'!L$11","v":{"v":0,"d":"$0.00"}},{"$f":"'LTC Rev-Exp Region 1'!M$11","v":{"v":0,"d":"$0.00"}},{"$f":"'LTC Rev-Exp Region 1'!N$11","v":{"v":0,"d":"$0.00"}},{"$f":"'LTC Rev-Exp Region 1'!O$11","v":{"v":0,"d":"$0.00"}},{"v":0,"d":"$0.00"}]
["LTC",null,null,{"$f":"Jurat!I$1","v":0},{"$f":"Jurat!D$33","v":"00:00:00"},"Q3","2017-09-30","Region 1","Operating Revenue","Capitation","NH Rate Reconciliation",1.2,"NH Rate Reconciliation",{"$f":"'LTC Rev-Exp Region 1'!L$12","v":{"v":0,"d":"$0.00"}},{"$f":"'LTC Rev-Exp Region 1'!M$12","v":{"v":0,"d":"$0.00"}},{"$f":"'LTC Rev-Exp Region 1'!N$12","v":{"v":0,"d":"$0.00"}},{"$f":"'LTC Rev-Exp Region 1'!O$12","v":{"v":0,"d":"$0.00"}},{"v":0,"d":"$0.00"}]
["LTC",null,null,{"$f":"Jurat!I$1","v":0},{"$f":"Jurat!D$33","v":"00:00:00"},"Q3","2017-09-30","Region 1","Operating Revenue","Other Revenue","Other Revenue",1.3,"Other Revenue",{"$f":"'LTC Rev-Exp Region 1'!L$13","v":{"v":0,"d":"$0.00"}},{"$f":"'LTC Rev-Exp Region 1'!M$13","v":{"v":0,"d":"$0.00"}},{"$f":"'LTC Rev-Exp Region 1'!N$13","v":{"v":0,"d":"$0.00"}},{"$f":"'LTC Rev-Exp Region 1'!O$13","v":{"v":0,"d":"$0.00"}},{"v":0,"d":"$0.00"}]
["LTC",null,null,{"$f":"Jurat!I$1","v":0},{"$f":"Jurat!D$33","v":"00:00:00"},"Q3","2017-09-30","Region 1","Operating Expense","Medical Expense","NF & Hospice","2.1","Nursing Facility Days (Medicaid)",{"$f":"'LTC Rev-Exp Region 1'!L$17","v":{"v":0,"d":"$0.00"}},{"$f":"'LTC Rev-Exp Region 1'!M$17","v":{"v":0,"d":"$0.00"}},{"$f":"'LTC Rev-Exp Region 1'!N$17","v":{"v":0,"d":"$0.00"}},{"$f":"'LTC Rev-Exp Region 1'!O$17","v":{"v":0,"d":"$0.00"}},{"v":0,"d":"$0.00"}]
["LTC",null,null,{"$f":"Jurat!I$1","v":0},{"$f":"Jurat!D$33","v":"00:00:00"},"Q3","2017-09-30","Region 1","Operating Expense","Medical Expense","NF & Hospice","2.2","Nursing Facility Days (Crossover)",{"$f":"'LTC Rev-Exp Region 1'!L$18","v":{"v":0,"d":"$0.00"}},{"$f":"'LTC Rev-Exp Region 1'!M$18","v":{"v":0,"d":"$0.00"}},{"$f":"'LTC Rev-Exp Region 1'!N$18","v":{"v":0,"d":"$0.00"}},{"$f":"'LTC Rev-Exp Region 1'!O$18","v":{"v":0,"d":"$0.00"}},{"v":0,"d":"$0.00"}]
["LTC",null,null,{"$f":"Jurat!I$1","v":0},{"$f":"Jurat!D$33","v":"00:00:00"},"Q3","2017-09-30","Region 1","Operating Expense","Medical Expense","NF & Hospice","2.3","Nursing Facility FFS (Medicaid)",{"$f":"'LTC Rev-Exp Region 1'!L$19","v":{"v":0,"d":"$0.00"}},{"$f":"'LTC Rev-Exp Region 1'!M$19","v":{"v":0,"d":"$0.00"}},{"$f":"'LTC Rev-Exp Region 1'!N$19","v":{"v":0,"d":"$0.00"}},{"$f":"'LTC Rev-Exp Region 1'!O$19","v":{"v":0,"d":"$0.00"}},{"v":0,"d":"$0.00"}]
["LTC",null,null,{"$f":"Jurat!I$1","v":0},{"$f":"Jurat!D$33","v":"00:00:00"},"Q3","2017-09-30","Region 1","Operating Expense","Medical Expense","NF & Hospice","2.4","Nursing Facility FFS (Crossover)",{"$f":"'LTC Rev-Exp Region 1'!L$20","v":{"v":0,"d":"$0.00"}},{"$f":"'LTC Rev-Exp Region 1'!M$20","v":{"v":0,"d":"$0.00"}},{"$f":"'LTC Rev-Exp Region 1'!N$20","v":{"v":0,"d":"$0.00"}},{"$f":"'LTC Rev-Exp Region 1'!O$20","v":{"v":0,"d":"$0.00"}},{"v":0,"d":"$0.00"}]
["LTC",null,null,{"$f":"Jurat!I$1","v":0},{"$f":"Jurat!D$33","v":"00:00:00"},"Q3","2017-09-30","Region 1","Operating Expense","Medical Expense","NF & Hospice","2.5","Hospice Days",{"$f":"'LTC Rev-Exp Region 1'!L$21","v":{"v":0,"d":"$0.00"}},{"$f":"'LTC Rev-Exp Region 1'!M$21","v":{"v":0,"d":"$0.00"}},{"$f":"'LTC Rev-Exp Region 1'!N$21","v":{"v":0,"d":"$0.00"}},{"$f":"'LTC Rev-Exp Region 1'!O$21","v":{"v":0,"d":"$0.00"}},{"v":0,"d":"$0.00"}]
["LTC",null,null,{"$f":"Jurat!I$1","v":0},{"$f":"Jurat!D$33","v":"00:00:00"},"Q3","2017-09-30","Region 1","Operating Expense","Medical Expense","NF & Hospice","2.6","Hospice FFS",{"$f":"'LTC Rev-Exp Region 1'!L$22","v":{"v":0,"d":"$0.00"}},{"$f":"'LTC Rev-Exp Region 1'!M$22","v":{"v":0,"d":"$0.00"}},{"$f":"'LTC Rev-Exp Region 1'!N$22","v":{"v":0,"d":"$0.00"}},{"$f":"'LTC Rev-Exp Region 1'!O$22","v":{"v":0,"d":"$0.00"}},{"v":0,"d":"$0.00"}]
["LTC",null,null,{"$f":"Jurat!I$1","v":0},{"$f":"Jurat!D$33","v":"00:00:00"},"Q3","2017-09-30","Region 1","Operating Expense","Medical Expense","NF & Hospice","2.7","Ending IBNP for NF & Hospice",{"$f":"'LTC Rev-Exp Region 1'!L$23","v":{"v":0,"d":"$0.00"}},{"$f":"'LTC Rev-Exp Region 1'!M$23","v":{"v":0,"d":"$0.00"}},{"$f":"'LTC Rev-Exp Region 1'!N$23","v":{"v":0,"d":"$0.00"}},{"$f":"'LTC Rev-Exp Region 1'!O$23","v":{"v":0,"d":"$0.00"}},{"v":0,"d":"$0.00"}]
["LTC",null,null,{"$f":"Jurat!I$1","v":0},{"$f":"Jurat!D$33","v":"00:00:00"},"Q3","2017-09-30","Region 1","Operating Expense","Medical Expense","NF & Hospice","2.8","NF & Hospice Subcapitated",{"$f":"'LTC Rev-Exp Region 1'!L$24","v":{"v":0,"d":"$0.00"}},{"$f":"'LTC Rev-Exp Region 1'!M$24","v":{"v":0,"d":"$0.00"}},{"$f":"'LTC Rev-Exp Region 1'!N$24","v":{"v":0,"d":"$0.00"}},{"$f":"'LTC Rev-Exp Region 1'!O$24","v":{"v":0,"d":"$0.00"}},{"v":0,"d":"$0.00"}]
["LTC",null,null,{"$f":"Jurat!I$1","v":0},{"$f":"Jurat!D$33","v":"00:00:00"},"Q3","2017-09-30","Region 1","Operating Expense","Medical Expense","NF & Hospice","2.9","NF & Hospice Settlements",{"$f":"'LTC Rev-Exp Region 1'!L$25","v":{"v":0,"d":"$0.00"}},{"$f":"'LTC Rev-Exp Region 1'!M$25","v":{"v":0,"d":"$0.00"}},{"$f":"'LTC Rev-Exp Region 1'!N$25","v":{"v":0,"d":"$0.00"}},{"$f":"'LTC Rev-Exp Region 1'!O$25","v":{"v":0,"d":"$0.00"}},{"v":0,"d":"$0.00"}]
["LTC",null,null,{"$f":"Jurat!I$1","v":0},{"$f":"Jurat!D$33","v":"00:00:00"},"Q3","2017-09-30","Region 1","Operating Expense","Medical Expense","LTC Services","2.11","Assisted Living FFS",{"$f":"'LTC Rev-Exp Region 1'!L$27","v":{"v":0,"d":"$0.00"}},{"$f":"'LTC Rev-Exp Region 1'!M$27","v":{"v":0,"d":"$0.00"}},{"$f":"'LTC Rev-Exp Region 1'!N$27","v":{"v":0,"d":"$0.00"}},{"$f":"'LTC Rev-Exp Region 1'!O$27","v":{"v":0,"d":"$0.00"}},{"v":0,"d":"$0.00"}]
["LTC",null,null,{"$f":"Jurat!I$1","v":0},{"$f":"Jurat!D$33","v":"00:00:00"},"Q3","2017-09-30","Region 1","Operating Expense","Medical Expense","LTC Services","2.12","Home Health FFS",{"$f":"'LTC Rev-Exp Region 1'!L$28","v":{"v":0,"d":"$0.00"}},{"$f":"'LTC Rev-Exp Region 1'!M$28","v":{"v":0,"d":"$0.00"}},{"$f":"'LTC Rev-Exp Region 1'!N$28","v":{"v":0,"d":"$0.00"}},{"$f":"'LTC Rev-Exp Region 1'!O$28","v":{"v":0,"d":"$0.00"}},{"v":0,"d":"$0.00"}]
["LTC",null,null,{"$f":"Jurat!I$1","v":0},{"$f":"Jurat!D$33","v":"00:00:00"},"Q3","2017-09-30","Region 1","Operating Expense","Medical Expense","LTC Services","2.13","Medical Equipment/Supplies FFS",{"$f":"'LTC Rev-Exp Region 1'!L$29","v":{"v":0,"d":"$0.00"}},{"$f":"'LTC Rev-Exp Region 1'!M$29","v":{"v":0,"d":"$0.00"}},{"$f":"'LTC Rev-Exp Region 1'!N$29","v":{"v":0,"d":"$0.00"}},{"$f":"'LTC Rev-Exp Region 1'!O$29","v":{"v":0,"d":"$0.00"}},{"v":0,"d":"$0.00"}]
["LTC",null,null,{"$f":"Jurat!I$1","v":0},{"$f":"Jurat!D$33","v":"00:00:00"},"Q3","2017-09-30","Region 1","Operating Expense","Medical Expense","LTC Services","2.14","Therapy FFS",{"$f":"'LTC Rev-Exp Region 1'!L$30","v":{"v":0,"d":"$0.00"}},{"$f":"'LTC Rev-Exp Region 1'!M$30","v":{"v":0,"d":"$0.00"}},{"$f":"'LTC Rev-Exp Region 1'!N$30","v":{"v":0,"d":"$0.00"}},{"$f":"'LTC Rev-Exp Region 1'!O$30","v":{"v":0,"d":"$0.00"}},{"v":0,"d":"$0.00"}]
["LTC",null,null,{"$f":"Jurat!I$1","v":0},{"$f":"Jurat!D$33","v":"00:00:00"},"Q3","2017-09-30","Region 1","Operating Expense","Medical Expense","LTC Services","2.15","Transportation FFS",{"$f":"'LTC Rev-Exp Region 1'!L$31","v":{"v":0,"d":"$0.00"}},{"$f":"'LTC Rev-Exp Region 1'!M$31","v":{"v":0,"d":"$0.00"}},{"$f":"'LTC Rev-Exp Region 1'!N$31","v":{"v":0,"d":"$0.00"}},{"$f":"'LTC Rev-Exp Region 1'!O$31","v":{"v":0,"d":"$0.00"}},{"v":0,"d":"$0.00"}]
["LTC",null,null,{"$f":"Jurat!I$1","v":0},{"$f":"Jurat!D$33","v":"00:00:00"},"Q3","2017-09-30","Region 1","Operating Expense","Medical Expense","LTC Services","2.16","Case Management FFS (Plan Provided)",{"$f":"'LTC Rev-Exp Region 1'!L$32","v":{"v":0,"d":"$0.00"}},{"$f":"'LTC Rev-Exp Region 1'!M$32","v":{"v":0,"d":"$0.00"}},{"$f":"'LTC Rev-Exp Region 1'!N$32","v":{"v":0,"d":"$0.00"}},{"$f":"'LTC Rev-Exp Region 1'!O$32","v":{"v":0,"d":"$0.00"}},{"v":0,"d":"$0.00"}]
["LTC",null,null,{"$f":"Jurat!I$1","v":0},{"$f":"Jurat!D$33","v":"00:00:00"},"Q3","2017-09-30","Region 1","Operating Expense","Medical Expense","LTC Services","2.17","Case Management FF (Non-Plan Provided)",{"$f":"'LTC Rev-Exp Region 1'!L$33","v":{"v":0,"d":"$0.00"}},{"$f":"'LTC Rev-Exp Region 1'!M$33","v":{"v":0,"d":"$0.00"}},{"$f":"'LTC Rev-Exp Region 1'!N$33","v":{"v":0,"d":"$0.00"}},{"$f":"'LTC Rev-Exp Region 1'!O$33","v":{"v":0,"d":"$0.00"}},{"v":0,"d":"$0.00"}]
["LTC",null,null,{"$f":"Jurat!I$1","v":0},{"$f":"Jurat!D$33","v":"00:00:00"},"Q3","2017-09-30","Region 1","Operating Expense","Medical Expense","LTC Services","2.18","HCBS FFS",{"$f":"'LTC Rev-Exp Region 1'!L$34","v":{"v":0,"d":"$0.00"}},{"$f":"'LTC Rev-Exp Region 1'!M$34","v":{"v":0,"d":"$0.00"}},{"$f":"'LTC Rev-Exp Region 1'!N$34","v":{"v":0,"d":"$0.00"}},{"$f":"'LTC Rev-Exp Region 1'!O$34","v":{"v":0,"d":"$0.00"}},{"v":0,"d":"$0.00"}]
["LTC",null,null,{"$f":"Jurat!I$1","v":0},{"$f":"Jurat!D$33","v":"00:00:00"},"Q3","2017-09-30","Region 1","Operating Expense","Medical Expense","LTC Services","2.19","Subcapitated LTC Services",{"$f":"'LTC Rev-Exp Region 1'!L$35","v":{"v":0,"d":"$0.00"}},{"$f":"'LTC Rev-Exp Region 1'!M$35","v":{"v":0,"d":"$0.00"}},{"$f":"'LTC Rev-Exp Region 1'!N$35","v":{"v":0,"d":"$0.00"}},{"$f":"'LTC Rev-Exp Region 1'!O$35","v":{"v":0,"d":"$0.00"}},{"v":0,"d":"$0.00"}]
["LTC",null,null,{"$f":"Jurat!I$1","v":0},{"$f":"Jurat!D$33","v":"00:00:00"},"Q3","2017-09-30","Region 1","Operating Expense","Medical Expense","LTC Services","2.20","Ending IBNP for Long Term Care Services",{"$f":"'LTC Rev-Exp Region 1'!L$36","v":{"v":0,"d":"$0.00"}},{"$f":"'LTC Rev-Exp Region 1'!M$36","v":{"v":0,"d":"$0.00"}},{"$f":"'LTC Rev-Exp Region 1'!N$36","v":{"v":0,"d":"$0.00"}},{"$f":"'LTC Rev-Exp Region 1'!O$36","v":{"v":0,"d":"$0.00"}},{"v":0,"d":"$0.00"}]
["LTC",null,null,{"$f":"Jurat!I$1","v":0},{"$f":"Jurat!D$33","v":"00:00:00"},"Q3","2017-09-30","Region 1","Operating Expense","Medical Expense","LTC Services","2.21","LTC Services Settlements",{"$f":"'LTC Rev-Exp Region 1'!L$37","v":{"v":0,"d":"$0.00"}},{"$f":"'LTC Rev-Exp Region 1'!M$37","v":{"v":0,"d":"$0.00"}},{"$f":"'LTC Rev-Exp Region 1'!N$37","v":{"v":0,"d":"$0.00"}},{"$f":"'LTC Rev-Exp Region 1'!O$37","v":{"v":0,"d":"$0.00"}},{"v":0,"d":"$0.00"}]
["LTC",null,null,{"$f":"Jurat!I$1","v":0},{"$f":"Jurat!D$33","v":"00:00:00"},"Q3","2017-09-30","Region 1","Operating Expense","Medical Expense","Expanded Benefits","3.1","Expanded Benefits FFS",{"$f":"'LTC Rev-Exp Region 1'!L$39","v":{"v":0,"d":"$0.00"}},{"$f":"'LTC Rev-Exp Region 1'!M$39","v":{"v":0,"d":"$0.00"}},{"$f":"'LTC Rev-Exp Region 1'!N$39","v":{"v":0,"d":"$0.00"}},{"$f":"'LTC Rev-Exp Region 1'!O$39","v":{"v":0,"d":"$0.00"}},{"v":0,"d":"$0.00"}]
["LTC",null,null,{"$f":"Jurat!I$1","v":0},{"$f":"Jurat!D$33","v":"00:00:00"},"Q3","2017-09-30","Region 1","Operating Expense","Medical Expense","Expanded Benefits","3.2","Expanded Benefits Subcapitation",{"$f":"'LTC Rev-Exp Region 1'!L$40","v":{"v":0,"d":"$0.00"}},{"$f":"'LTC Rev-Exp Region 1'!M$40","v":{"v":0,"d":"$0.00"}},{"$f":"'LTC Rev-Exp Region 1'!N$40","v":{"v":0,"d":"$0.00"}},{"$f":"'LTC Rev-Exp Region 1'!O$40","v":{"v":0,"d":"$0.00"}},{"v":0,"d":"$0.00"}]
["LTC",null,null,{"$f":"Jurat!I$1","v":0},{"$f":"Jurat!D$33","v":"00:00:00"},"Q3","2017-09-30","Region 1","Operating Expense","Medical Expense","Expanded Benefits","3.3","Ending IBNP for Expanded Benefits",{"$f":"'LTC Rev-Exp Region 1'!L$41","v":{"v":0,"d":"$0.00"}},{"$f":"'LTC Rev-Exp Region 1'!M$41","v":{"v":0,"d":"$0.00"}},{"$f":"'LTC Rev-Exp Region 1'!N$41","v":{"v":0,"d":"$0.00"}},{"$f":"'LTC Rev-Exp Region 1'!O$41","v":{"v":0,"d":"$0.00"}},{"v":0,"d":"$0.00"}]
["LTC",null,null,{"$f":"Jurat!I$1","v":0},{"$f":"Jurat!D$33","v":"00:00:00"},"Q3","2017-09-30","Region 1","Operating Expense","Medical Expense","Expanded Benefits","3.4","Expanded Benefits Settlements",{"$f":"'LTC Rev-Exp Region 1'!L$42","v":{"v":0,"d":"$0.00"}},{"$f":"'LTC Rev-Exp Region 1'!M$42","v":{"v":0,"d":"$0.00"}},{"$f":"'LTC Rev-Exp Region 1'!N$42","v":{"v":0,"d":"$0.00"}},{"$f":"'LTC Rev-Exp Region 1'!O$42","v":{"v":0,"d":"$0.00"}},{"v":0,"d":"$0.00"}]
["LTC",null,null,{"$f":"Jurat!I$1","v":0},{"$f":"Jurat!D$33","v":"00:00:00"},"Q3","2017-09-30","Region 1","Operating Expense","Medical Expense","Other Medical","4.5","TPL & Fraud/Abuse Recoveries",{"$f":"'LTC Rev-Exp Region 1'!L$48","v":{"v":0,"d":"$0.00"}},{"$f":"'LTC Rev-Exp Region 1'!M$48","v":{"v":0,"d":"$0.00"}},{"$f":"'LTC Rev-Exp Region 1'!N$48","v":{"v":0,"d":"$0.00"}},{"$f":"'LTC Rev-Exp Region 1'!O$48","v":{"v":0,"d":"$0.00"}},{"v":0,"d":"$0.00"}]
["LTC",null,null,{"$f":"Jurat!I$1","v":0},{"$f":"Jurat!D$33","v":"00:00:00"},"Q3","2017-09-30","Region 1","Operating Expense","Medical Expense","Other Medical","4.6.1","Premium Deficiency Reserve",{"$f":"'LTC Rev-Exp Region 1'!L$49","v":{"v":0,"d":"$0.00"}},{"$f":"'LTC Rev-Exp Region 1'!M$49","v":{"v":0,"d":"$0.00"}},{"$f":"'LTC Rev-Exp Region 1'!N$49","v":{"v":0,"d":"$0.00"}},{"$f":"'LTC Rev-Exp Region 1'!O$49","v":{"v":0,"d":"$0.00"}},{"v":0,"d":"$0.00"}]
["LTC",null,null,{"$f":"Jurat!I$1","v":0},{"$f":"Jurat!D$33","v":"00:00:00"},"Q3","2017-09-30","Region 1","Operating Expense","Medical Expense","Other Medical","4.8","Reinsurance Premiums",{"$f":"'LTC Rev-Exp Region 1'!L$51","v":{"v":0,"d":"$0.00"}},{"$f":"'LTC Rev-Exp Region 1'!M$51","v":{"v":0,"d":"$0.00"}},{"$f":"'LTC Rev-Exp Region 1'!N$51","v":{"v":0,"d":"$0.00"}},{"$f":"'LTC Rev-Exp Region 1'!O$51","v":{"v":0,"d":"$0.00"}},{"v":0,"d":"$0.00"}]
["LTC",null,null,{"$f":"Jurat!I$1","v":0},{"$f":"Jurat!D$33","v":"00:00:00"},"Q3","2017-09-30","Region 1","Operating Expense","Medical Expense","Other Medical","4.9","Reinsurance Recoveries",{"$f":"'LTC Rev-Exp Region 1'!L$52","v":{"v":0,"d":"$0.00"}},{"$f":"'LTC Rev-Exp Region 1'!M$52","v":{"v":0,"d":"$0.00"}},{"$f":"'LTC Rev-Exp Region 1'!N$52","v":{"v":0,"d":"$0.00"}},{"$f":"'LTC Rev-Exp Region 1'!O$52","v":{"v":0,"d":"$0.00"}},{"v":0,"d":"$0.00"}]
["LTC",null,null,{"$f":"Jurat!I$1","v":0},{"$f":"Jurat!D$33","v":"00:00:00"},"Q3","2017-09-30","Region 1","Operating Expense","Administrative Expense","Administrative","5.1","Salaries & Benefits",{"$f":"'LTC Rev-Exp Region 1'!L$57","v":{"v":0,"d":"$0.00"}},{"$f":"'LTC Rev-Exp Region 1'!M$57","v":{"v":0,"d":"$0.00"}},{"$f":"'LTC Rev-Exp Region 1'!N$57","v":{"v":0,"d":"$0.00"}},{"$f":"'LTC Rev-Exp Region 1'!O$57","v":{"v":0,"d":"$0.00"}},{"v":0,"d":"$0.00"}]
["LTC",null,null,{"$f":"Jurat!I$1","v":0},{"$f":"Jurat!D$33","v":"00:00:00"},"Q3","2017-09-30","Region 1","Operating Expense","Administrative Expense","Administrative","5.2","Administrative Services",{"$f":"'LTC Rev-Exp Region 1'!L$58","v":{"v":0,"d":"$0.00"}},{"$f":"'LTC Rev-Exp Region 1'!M$58","v":{"v":0,"d":"$0.00"}},{"$f":"'LTC Rev-Exp Region 1'!N$58","v":{"v":0,"d":"$0.00"}},{"$f":"'LTC Rev-Exp Region 1'!O$58","v":{"v":0,"d":"$0.00"}},{"v":0,"d":"$0.00"}]
["LTC",null,null,{"$f":"Jurat!I$1","v":0},{"$f":"Jurat!D$33","v":"00:00:00"},"Q3","2017-09-30","Region 1","Operating Expense","Administrative Expense","Administrative","5.3","Information Systems",{"$f":"'LTC Rev-Exp Region 1'!L$59","v":{"v":0,"d":"$0.00"}},{"$f":"'LTC Rev-Exp Region 1'!M$59","v":{"v":0,"d":"$0.00"}},{"$f":"'LTC Rev-Exp Region 1'!N$59","v":{"v":0,"d":"$0.00"}},{"$f":"'LTC Rev-Exp Region 1'!O$59","v":{"v":0,"d":"$0.00"}},{"v":0,"d":"$0.00"}]
["LTC",null,null,{"$f":"Jurat!I$1","v":0},{"$f":"Jurat!D$33","v":"00:00:00"},"Q3","2017-09-30","Region 1","Operating Expense","Administrative Expense","Administrative","5.4","Marketing Expenses",{"$f":"'LTC Rev-Exp Region 1'!L$60","v":{"v":0,"d":"$0.00"}},{"$f":"'LTC Rev-Exp Region 1'!M$60","v":{"v":0,"d":"$0.00"}},{"$f":"'LTC Rev-Exp Region 1'!N$60","v":{"v":0,"d":"$0.00"}},{"$f":"'LTC Rev-Exp Region 1'!O$60","v":{"v":0,"d":"$0.00"}},{"v":0,"d":"$0.00"}]
["LTC",null,null,{"$f":"Jurat!I$1","v":0},{"$f":"Jurat!D$33","v":"00:00:00"},"Q3","2017-09-30","Region 1","Operating Expense","Administrative Expense","Administrative","5.5","General  Administration",{"$f":"'LTC Rev-Exp Region 1'!L$61","v":{"v":0,"d":"$0.00"}},{"$f":"'LTC Rev-Exp Region 1'!M$61","v":{"v":0,"d":"$0.00"}},{"$f":"'LTC Rev-Exp Region 1'!N$61","v":{"v":0,"d":"$0.00"}},{"$f":"'LTC Rev-Exp Region 1'!O$61","v":{"v":0,"d":"$0.00"}},{"v":0,"d":"$0.00"}]
["LTC",null,null,{"$f":"Jurat!I$1","v":0},{"$f":"Jurat!D$33","v":"00:00:00"},"Q3","2017-09-30","Region 1","Operating Expense","Administrative Expense","Administrative","5.6","Compliance/Regulatory",{"$f":"'LTC Rev-Exp Region 1'!L$62","v":{"v":0,"d":"$0.00"}},{"$f":"'LTC Rev-Exp Region 1'!M$62","v":{"v":0,"d":"$0.00"}},{"$f":"'LTC Rev-Exp Region 1'!N$62","v":{"v":0,"d":"$0.00"}},{"$f":"'LTC Rev-Exp Region 1'!O$62","v":{"v":0,"d":"$0.00"}},{"v":0,"d":"$0.00"}]
["LTC",null,null,{"$f":"Jurat!I$1","v":0},{"$f":"Jurat!D$33","v":"00:00:00"},"Q3","2017-09-30","Region 1","Operating Expense","Taxes & Fees","Taxes & Fees","6.1","State Premium Tax",{"$f":"'LTC Rev-Exp Region 1'!L$64","v":{"v":0,"d":"$0.00"}},{"v":0,"d":"$0.00"},{"v":0,"d":"$0.00"},{"v":0,"d":"$0.00"},{"v":0,"d":"$0.00"}]
["LTC",null,null,{"$f":"Jurat!I$1","v":0},{"$f":"Jurat!D$33","v":"00:00:00"},"Q3","2017-09-30","Region 1","Operating Expense","Taxes & Fees","Taxes & Fees","6.2","Department of Insurance Assessments",{"$f":"'LTC Rev-Exp Region 1'!L$65","v":{"v":0,"d":"$0.00"}},{"v":0,"d":"$0.00"},{"v":0,"d":"$0.00"},{"v":0,"d":"$0.00"},{"v":0,"d":"$0.00"}]
["LTC",null,null,{"$f":"Jurat!I$1","v":0},{"$f":"Jurat!D$33","v":"00:00:00"},"Q3","2017-09-30","Region 1","Non-Operating Expense","Income Tax Expense","Income Tax Expense","9.0","Income Tax Expense",{"$f":"'LTC Rev-Exp Region 1'!L$72","v":{"v":0,"d":"$0.00"}},{"v":0,"d":"$0.00"},{"v":0,"d":"$0.00"},{"v":0,"d":"$0.00"},{"v":0,"d":"$0.00"}]
["LTC",null,null,{"$f":"Jurat!I$1","v":0},{"$f":"Jurat!D$33","v":"00:00:00"},"Q4","2017-12-31","Region 1","Member Months","Member Months","Member Months",null,"Member Months",{"$f":"'LTC Rev-Exp Region 1'!P$9","v":{"v":0,"d":"$0.00"}},{"$f":"'LTC Rev-Exp Region 1'!Q$9","v":{"v":0,"d":"$0.00"}},{"$f":"'LTC Rev-Exp Region 1'!R$9","v":{"v":0,"d":"$0.00"}},{"$f":"'LTC Rev-Exp Region 1'!S$9","v":{"v":0,"d":"$0.00"}},{"v":0,"d":"$0.00"}]
["LTC",null,null,{"$f":"Jurat!I$1","v":0},{"$f":"Jurat!D$33","v":"00:00:00"},"Q4","2017-12-31","Region 1","Operating Revenue","Capitation","Capitation",1.1,"Capitation",{"$f":"'LTC Rev-Exp Region 1'!P$11","v":{"v":0,"d":"$0.00"}},{"$f":"'LTC Rev-Exp Region 1'!Q$11","v":{"v":0,"d":"$0.00"}},{"$f":"'LTC Rev-Exp Region 1'!R$11","v":{"v":0,"d":"$0.00"}},{"$f":"'LTC Rev-Exp Region 1'!S$11","v":{"v":0,"d":"$0.00"}},{"v":0,"d":"$0.00"}]
["LTC",null,null,{"$f":"Jurat!I$1","v":0},{"$f":"Jurat!D$33","v":"00:00:00"},"Q4","2017-12-31","Region 1","Operating Revenue","Capitation","NH Rate Reconciliation",1.2,"NH Rate Reconciliation",{"$f":"'LTC Rev-Exp Region 1'!P$12","v":{"v":0,"d":"$0.00"}},{"$f":"'LTC Rev-Exp Region 1'!Q$12","v":{"v":0,"d":"$0.00"}},{"$f":"'LTC Rev-Exp Region 1'!R$12","v":{"v":0,"d":"$0.00"}},{"$f":"'LTC Rev-Exp Region 1'!S$12","v":{"v":0,"d":"$0.00"}},{"v":0,"d":"$0.00"}]
["LTC",null,null,{"$f":"Jurat!I$1","v":0},{"$f":"Jurat!D$33","v":"00:00:00"},"Q4","2017-12-31","Region 1","Operating Revenue","Other Revenue","Other Revenue",1.3,"Other Revenue",{"$f":"'LTC Rev-Exp Region 1'!P$13","v":{"v":0,"d":"$0.00"}},{"$f":"'LTC Rev-Exp Region 1'!Q$13","v":{"v":0,"d":"$0.00"}},{"$f":"'LTC Rev-Exp Region 1'!R$13","v":{"v":0,"d":"$0.00"}},{"$f":"'LTC Rev-Exp Region 1'!S$13","v":{"v":0,"d":"$0.00"}},{"v":0,"d":"$0.00"}]
["LTC",null,null,{"$f":"Jurat!I$1","v":0},{"$f":"Jurat!D$33","v":"00:00:00"},"Q4","2017-12-31","Region 1","Operating Expense","Medical Expense","NF & Hospice","2.1","Nursing Facility Days (Medicaid)",{"$f":"'LTC Rev-Exp Region 1'!P$17","v":{"v":0,"d":"$0.00"}},{"$f":"'LTC Rev-Exp Region 1'!Q$17","v":{"v":0,"d":"$0.00"}},{"$f":"'LTC Rev-Exp Region 1'!R$17","v":{"v":0,"d":"$0.00"}},{"$f":"'LTC Rev-Exp Region 1'!S$17","v":{"v":0,"d":"$0.00"}},{"v":0,"d":"$0.00"}]
["LTC",null,null,{"$f":"Jurat!I$1","v":0},{"$f":"Jurat!D$33","v":"00:00:00"},"Q4","2017-12-31","Region 1","Operating Expense","Medical Expense","NF & Hospice","2.2","Nursing Facility Days (Crossover)",{"$f":"'LTC Rev-Exp Region 1'!P$18","v":{"v":0,"d":"$0.00"}},{"$f":"'LTC Rev-Exp Region 1'!Q$18","v":{"v":0,"d":"$0.00"}},{"$f":"'LTC Rev-Exp Region 1'!R$18","v":{"v":0,"d":"$0.00"}},{"$f":"'LTC Rev-Exp Region 1'!S$18","v":{"v":0,"d":"$0.00"}},{"v":0,"d":"$0.00"}]
["LTC",null,null,{"$f":"Jurat!I$1","v":0},{"$f":"Jurat!D$33","v":"00:00:00"},"Q4","2017-12-31","Region 1","Operating Expense","Medical Expense","NF & Hospice","2.3","Nursing Facility FFS (Medicaid)",{"$f":"'LTC Rev-Exp Region 1'!P$19","v":{"v":0,"d":"$0.00"}},{"$f":"'LTC Rev-Exp Region 1'!Q$19","v":{"v":0,"d":"$0.00"}},{"$f":"'LTC Rev-Exp Region 1'!R$19","v":{"v":0,"d":"$0.00"}},{"$f":"'LTC Rev-Exp Region 1'!S$19","v":{"v":0,"d":"$0.00"}},{"v":0,"d":"$0.00"}]
["LTC",null,null,{"$f":"Jurat!I$1","v":0},{"$f":"Jurat!D$33","v":"00:00:00"},"Q4","2017-12-31","Region 1","Operating Expense","Medical Expense","NF & Hospice","2.4","Nursing Facility FFS (Crossover)",{"$f":"'LTC Rev-Exp Region 1'!P$20","v":{"v":0,"d":"$0.00"}},{"$f":"'LTC Rev-Exp Region 1'!Q$20","v":{"v":0,"d":"$0.00"}},{"$f":"'LTC Rev-Exp Region 1'!R$20","v":{"v":0,"d":"$0.00"}},{"$f":"'LTC Rev-Exp Region 1'!S$20","v":{"v":0,"d":"$0.00"}},{"v":0,"d":"$0.00"}]
["LTC",null,null,{"$f":"Jurat!I$1","v":0},{"$f":"Jurat!D$33","v":"00:00:00"},"Q4","2017-12-31","Region 1","Operating Expense","Medical Expense","NF & Hospice","2.5","Hospice Days",{"$f":"'LTC Rev-Exp Region 1'!P$21","v":{"v":0,"d":"$0.00"}},{"$f":"'LTC Rev-Exp Region 1'!Q$21","v":{"v":0,"d":"$0.00"}},{"$f":"'LTC Rev-Exp Region 1'!R$21","v":{"v":0,"d":"$0.00"}},{"$f":"'LTC Rev-Exp Region 1'!S$21","v":{"v":0,"d":"$0.00"}},{"v":0,"d":"$0.00"}]
["LTC",null,null,{"$f":"Jurat!I$1","v":0},{"$f":"Jurat!D$33","v":"00:00:00"},"Q4","2017-12-31","Region 1","Operating Expense","Medical Expense","NF & Hospice","2.6","Hospice FFS",{"$f":"'LTC Rev-Exp Region 1'!P$22","v":{"v":0,"d":"$0.00"}},{"$f":"'LTC Rev-Exp Region 1'!Q$22","v":{"v":0,"d":"$0.00"}},{"$f":"'LTC Rev-Exp Region 1'!R$22","v":{"v":0,"d":"$0.00"}},{"$f":"'LTC Rev-Exp Region 1'!S$22","v":{"v":0,"d":"$0.00"}},{"v":0,"d":"$0.00"}]
["LTC",null,null,{"$f":"Jurat!I$1","v":0},{"$f":"Jurat!D$33","v":"00:00:00"},"Q4","2017-12-31","Region 1","Operating Expense","Medical Expense","NF & Hospice","2.7","Ending IBNP for NF & Hospice",{"$f":"'LTC Rev-Exp Region 1'!P$23","v":{"v":0,"d":"$0.00"}},{"$f":"'LTC Rev-Exp Region 1'!Q$23","v":{"v":0,"d":"$0.00"}},{"$f":"'LTC Rev-Exp Region 1'!R$23","v":{"v":0,"d":"$0.00"}},{"$f":"'LTC Rev-Exp Region 1'!S$23","v":{"v":0,"d":"$0.00"}},{"v":0,"d":"$0.00"}]
["LTC",null,null,{"$f":"Jurat!I$1","v":0},{"$f":"Jurat!D$33","v":"00:00:00"},"Q4","2017-12-31","Region 1","Operating Expense","Medical Expense","NF & Hospice","2.8","NF & Hospice Subcapitated",{"$f":"'LTC Rev-Exp Region 1'!P$24","v":{"v":0,"d":"$0.00"}},{"$f":"'LTC Rev-Exp Region 1'!Q$24","v":{"v":0,"d":"$0.00"}},{"$f":"'LTC Rev-Exp Region 1'!R$24","v":{"v":0,"d":"$0.00"}},{"$f":"'LTC Rev-Exp Region 1'!S$24","v":{"v":0,"d":"$0.00"}},{"v":0,"d":"$0.00"}]
["LTC",null,null,{"$f":"Jurat!I$1","v":0},{"$f":"Jurat!D$33","v":"00:00:00"},"Q4","2017-12-31","Region 1","Operating Expense","Medical Expense","NF & Hospice","2.9","NF & Hospice Settlements",{"$f":"'LTC Rev-Exp Region 1'!P$25","v":{"v":0,"d":"$0.00"}},{"$f":"'LTC Rev-Exp Region 1'!Q$25","v":{"v":0,"d":"$0.00"}},{"$f":"'LTC Rev-Exp Region 1'!R$25","v":{"v":0,"d":"$0.00"}},{"$f":"'LTC Rev-Exp Region 1'!S$25","v":{"v":0,"d":"$0.00"}},{"v":0,"d":"$0.00"}]
["LTC",null,null,{"$f":"Jurat!I$1","v":0},{"$f":"Jurat!D$33","v":"00:00:00"},"Q4","2017-12-31","Region 1","Operating Expense","Medical Expense","LTC Services","2.11","Assisted Living FFS",{"$f":"'LTC Rev-Exp Region 1'!P$27","v":{"v":0,"d":"$0.00"}},{"$f":"'LTC Rev-Exp Region 1'!Q$27","v":{"v":0,"d":"$0.00"}},{"$f":"'LTC Rev-Exp Region 1'!R$27","v":{"v":0,"d":"$0.00"}},{"$f":"'LTC Rev-Exp Region 1'!S$27","v":{"v":0,"d":"$0.00"}},{"v":0,"d":"$0.00"}]
["LTC",null,null,{"$f":"Jurat!I$1","v":0},{"$f":"Jurat!D$33","v":"00:00:00"},"Q4","2017-12-31","Region 1","Operating Expense","Medical Expense","LTC Services","2.12","Home Health FFS",{"$f":"'LTC Rev-Exp Region 1'!P$28","v":{"v":0,"d":"$0.00"}},{"$f":"'LTC Rev-Exp Region 1'!Q$28","v":{"v":0,"d":"$0.00"}},{"$f":"'LTC Rev-Exp Region 1'!R$28","v":{"v":0,"d":"$0.00"}},{"$f":"'LTC Rev-Exp Region 1'!S$28","v":{"v":0,"d":"$0.00"}},{"v":0,"d":"$0.00"}]
["LTC",null,null,{"$f":"Jurat!I$1","v":0},{"$f":"Jurat!D$33","v":"00:00:00"},"Q4","2017-12-31","Region 1","Operating Expense","Medical Expense","LTC Services","2.13","Medical Equipment/Supplies FFS",{"$f":"'LTC Rev-Exp Region 1'!P$29","v":{"v":0,"d":"$0.00"}},{"$f":"'LTC Rev-Exp Region 1'!Q$29","v":{"v":0,"d":"$0.00"}},{"$f":"'LTC Rev-Exp Region 1'!R$29","v":{"v":0,"d":"$0.00"}},{"$f":"'LTC Rev-Exp Region 1'!S$29","v":{"v":0,"d":"$0.00"}},{"v":0,"d":"$0.00"}]
["LTC",null,null,{"$f":"Jurat!I$1","v":0},{"$f":"Jurat!D$33","v":"00:00:00"},"Q4","2017-12-31","Region 1","Operating Expense","Medical Expense","LTC Services","2.14","Therapy FFS",{"$f":"'LTC Rev-Exp Region 1'!P$30","v":{"v":0,"d":"$0.00"}},{"$f":"'LTC Rev-Exp Region 1'!Q$30","v":{"v":0,"d":"$0.00"}},{"$f":"'LTC Rev-Exp Region 1'!R$30","v":{"v":0,"d":"$0.00"}},{"$f":"'LTC Rev-Exp Region 1'!S$30","v":{"v":0,"d":"$0.00"}},{"v":0,"d":"$0.00"}]
["LTC",null,null,{"$f":"Jurat!I$1","v":0},{"$f":"Jurat!D$33","v":"00:00:00"},"Q4","2017-12-31","Region 1","Operating Expense","Medical Expense","LTC Services","2.15","Transportation FFS",{"$f":"'LTC Rev-Exp Region 1'!P$31","v":{"v":0,"d":"$0.00"}},{"$f":"'LTC Rev-Exp Region 1'!Q$31","v":{"v":0,"d":"$0.00"}},{"$f":"'LTC Rev-Exp Region 1'!R$31","v":{"v":0,"d":"$0.00"}},{"$f":"'LTC Rev-Exp Region 1'!S$31","v":{"v":0,"d":"$0.00"}},{"v":0,"d":"$0.00"}]
["LTC",null,null,{"$f":"Jurat!I$1","v":0},{"$f":"Jurat!D$33","v":"00:00:00"},"Q4","2017-12-31","Region 1","Operating Expense","Medical Expense","LTC Services","2.16","Case Management FFS (Plan Provided)",{"$f":"'LTC Rev-Exp Region 1'!P$32","v":{"v":0,"d":"$0.00"}},{"$f":"'LTC Rev-Exp Region 1'!Q$32","v":{"v":0,"d":"$0.00"}},{"$f":"'LTC Rev-Exp Region 1'!R$32","v":{"v":0,"d":"$0.00"}},{"$f":"'LTC Rev-Exp Region 1'!S$32","v":{"v":0,"d":"$0.00"}},{"v":0,"d":"$0.00"}]
["LTC",null,null,{"$f":"Jurat!I$1","v":0},{"$f":"Jurat!D$33","v":"00:00:00"},"Q4","2017-12-31","Region 1","Operating Expense","Medical Expense","LTC Services","2.17","Case Management FF (Non-Plan Provided)",{"$f":"'LTC Rev-Exp Region 1'!P$33","v":{"v":0,"d":"$0.00"}},{"$f":"'LTC Rev-Exp Region 1'!Q$33","v":{"v":0,"d":"$0.00"}},{"$f":"'LTC Rev-Exp Region 1'!R$33","v":{"v":0,"d":"$0.00"}},{"$f":"'LTC Rev-Exp Region 1'!S$33","v":{"v":0,"d":"$0.00"}},{"v":0,"d":"$0.00"}]
["LTC",null,null,{"$f":"Jurat!I$1","v":0},{"$f":"Jurat!D$33","v":"00:00:00"},"Q4","2017-12-31","Region 1","Operating Expense","Medical Expense","LTC Services","2.18","HCBS FFS",{"$f":"'LTC Rev-Exp Region 1'!P$34","v":{"v":0,"d":"$0.00"}},{"$f":"'LTC Rev-Exp Region 1'!Q$34","v":{"v":0,"d":"$0.00"}},{"$f":"'LTC Rev-Exp Region 1'!R$34","v":{"v":0,"d":"$0.00"}},{"$f":"'LTC Rev-Exp Region 1'!S$34","v":{"v":0,"d":"$0.00"}},{"v":0,"d":"$0.00"}]
["LTC",null,null,{"$f":"Jurat!I$1","v":0},{"$f":"Jurat!D$33","v":"00:00:00"},"Q4","2017-12-31","Region 1","Operating Expense","Medical Expense","LTC Services","2.19","Subcapitated LTC Services",{"$f":"'LTC Rev-Exp Region 1'!P$35","v":{"v":0,"d":"$0.00"}},{"$f":"'LTC Rev-Exp Region 1'!Q$35","v":{"v":0,"d":"$0.00"}},{"$f":"'LTC Rev-Exp Region 1'!R$35","v":{"v":0,"d":"$0.00"}},{"$f":"'LTC Rev-Exp Region 1'!S$35","v":{"v":0,"d":"$0.00"}},{"v":0,"d":"$0.00"}]
["LTC",null,null,{"$f":"Jurat!I$1","v":0},{"$f":"Jurat!D$33","v":"00:00:00"},"Q4","2017-12-31","Region 1","Operating Expense","Medical Expense","LTC Services","2.20","Ending IBNP for Long Term Care Services",{"$f":"'LTC Rev-Exp Region 1'!P$36","v":{"v":0,"d":"$0.00"}},{"$f":"'LTC Rev-Exp Region 1'!Q$36","v":{"v":0,"d":"$0.00"}},{"$f":"'LTC Rev-Exp Region 1'!R$36","v":{"v":0,"d":"$0.00"}},{"$f":"'LTC Rev-Exp Region 1'!S$36","v":{"v":0,"d":"$0.00"}},{"v":0,"d":"$0.00"}]
["LTC",null,null,{"$f":"Jurat!I$1","v":0},{"$f":"Jurat!D$33","v":"00:00:00"},"Q4","2017-12-31","Region 1","Operating Expense","Medical Expense","LTC Services","2.21","LTC Services Settlements",{"$f":"'LTC Rev-Exp Region 1'!P$37","v":{"v":0,"d":"$0.00"}},{"$f":"'LTC Rev-Exp Region 1'!Q$37","v":{"v":0,"d":"$0.00"}},{"$f":"'LTC Rev-Exp Region 1'!R$37","v":{"v":0,"d":"$0.00"}},{"$f":"'LTC Rev-Exp Region 1'!S$37","v":{"v":0,"d":"$0.00"}},{"v":0,"d":"$0.00"}]
["LTC",null,null,{"$f":"Jurat!I$1","v":0},{"$f":"Jurat!D$33","v":"00:00:00"},"Q4","2017-12-31","Region 1","Operating Expense","Medical Expense","Expanded Benefits","3.1","Expanded Benefits FFS",{"$f":"'LTC Rev-Exp Region 1'!P$39","v":{"v":0,"d":"$0.00"}},{"$f":"'LTC Rev-Exp Region 1'!Q$39","v":{"v":0,"d":"$0.00"}},{"$f":"'LTC Rev-Exp Region 1'!R$39","v":{"v":0,"d":"$0.00"}},{"$f":"'LTC Rev-Exp Region 1'!S$39","v":{"v":0,"d":"$0.00"}},{"v":0,"d":"$0.00"}]
["LTC",null,null,{"$f":"Jurat!I$1","v":0},{"$f":"Jurat!D$33","v":"00:00:00"},"Q4","2017-12-31","Region 1","Operating Expense","Medical Expense","Expanded Benefits","3.2","Expanded Benefits Subcapitation",{"$f":"'LTC Rev-Exp Region 1'!P$40","v":{"v":0,"d":"$0.00"}},{"$f":"'LTC Rev-Exp Region 1'!Q$40","v":{"v":0,"d":"$0.00"}},{"$f":"'LTC Rev-Exp Region 1'!R$40","v":{"v":0,"d":"$0.00"}},{"$f":"'LTC Rev-Exp Region 1'!S$40","v":{"v":0,"d":"$0.00"}},{"v":0,"d":"$0.00"}]
["LTC",null,null,{"$f":"Jurat!I$1","v":0},{"$f":"Jurat!D$33","v":"00:00:00"},"Q4","2017-12-31","Region 1","Operating Expense","Medical Expense","Expanded Benefits","3.3","Ending IBNP for Expanded Benefits",{"$f":"'LTC Rev-Exp Region 1'!P$41","v":{"v":0,"d":"$0.00"}},{"$f":"'LTC Rev-Exp Region 1'!Q$41","v":{"v":0,"d":"$0.00"}},{"$f":"'LTC Rev-Exp Region 1'!R$41","v":{"v":0,"d":"$0.00"}},{"$f":"'LTC Rev-Exp Region 1'!S$41","v":{"v":0,"d":"$0.00"}},{"v":0,"d":"$0.00"}]
["LTC",null,null,{"$f":"Jurat!I$1","v":0},{"$f":"Jurat!D$33","v":"00:00:00"},"Q4","2017-12-31","Region 1","Operating Expense","Medical Expense","Expanded Benefits","3.4","Expanded Benefits Settlements",{"$f":"'LTC Rev-Exp Region 1'!P$42","v":{"v":0,"d":"$0.00"}},{"$f":"'LTC Rev-Exp Region 1'!Q$42","v":{"v":0,"d":"$0.00"}},{"$f":"'LTC Rev-Exp Region 1'!R$42","v":{"v":0,"d":"$0.00"}},{"$f":"'LTC Rev-Exp Region 1'!S$42","v":{"v":0,"d":"$0.00"}},{"v":0,"d":"$0.00"}]
["LTC",null,null,{"$f":"Jurat!I$1","v":0},{"$f":"Jurat!D$33","v":"00:00:00"},"Q4","2017-12-31","Region 1","Operating Expense","Medical Expense","Other Medical","4.5","TPL & Fraud/Abuse Recoveries",{"$f":"'LTC Rev-Exp Region 1'!P$48","v":{"v":0,"d":"$0.00"}},{"$f":"'LTC Rev-Exp Region 1'!Q$48","v":{"v":0,"d":"$0.00"}},{"$f":"'LTC Rev-Exp Region 1'!R$48","v":{"v":0,"d":"$0.00"}},{"$f":"'LTC Rev-Exp Region 1'!S$48","v":{"v":0,"d":"$0.00"}},{"v":0,"d":"$0.00"}]
["LTC",null,null,{"$f":"Jurat!I$1","v":0},{"$f":"Jurat!D$33","v":"00:00:00"},"Q4","2017-12-31","Region 1","Operating Expense","Medical Expense","Other Medical","4.6.1","Premium Deficiency Reserve",{"$f":"'LTC Rev-Exp Region 1'!P$49","v":{"v":0,"d":"$0.00"}},{"$f":"'LTC Rev-Exp Region 1'!Q$49","v":{"v":0,"d":"$0.00"}},{"$f":"'LTC Rev-Exp Region 1'!R$49","v":{"v":0,"d":"$0.00"}},{"$f":"'LTC Rev-Exp Region 1'!S$49","v":{"v":0,"d":"$0.00"}},{"v":0,"d":"$0.00"}]
["LTC",null,null,{"$f":"Jurat!I$1","v":0},{"$f":"Jurat!D$33","v":"00:00:00"},"Q4","2017-12-31","Region 1","Operating Expense","Medical Expense","Other Medical","4.8","Reinsurance Premiums",{"$f":"'LTC Rev-Exp Region 1'!P$51","v":{"v":0,"d":"$0.00"}},{"$f":"'LTC Rev-Exp Region 1'!Q$51","v":{"v":0,"d":"$0.00"}},{"$f":"'LTC Rev-Exp Region 1'!R$51","v":{"v":0,"d":"$0.00"}},{"$f":"'LTC Rev-Exp Region 1'!S$51","v":{"v":0,"d":"$0.00"}},{"v":0,"d":"$0.00"}]
["LTC",null,null,{"$f":"Jurat!I$1","v":0},{"$f":"Jurat!D$33","v":"00:00:00"},"Q4","2017-12-31","Region 1","Operating Expense","Medical Expense","Other Medical","4.9","Reinsurance Recoveries",{"$f":"'LTC Rev-Exp Region 1'!P$52","v":{"v":0,"d":"$0.00"}},{"$f":"'LTC Rev-Exp Region 1'!Q$52","v":{"v":0,"d":"$0.00"}},{"$f":"'LTC Rev-Exp Region 1'!R$52","v":{"v":0,"d":"$0.00"}},{"$f":"'LTC Rev-Exp Region 1'!S$52","v":{"v":0,"d":"$0.00"}},{"v":0,"d":"$0.00"}]
["LTC",null,null,{"$f":"Jurat!I$1","v":0},{"$f":"Jurat!D$33","v":"00:00:00"},"Q4","2017-12-31","Region 1","Operating Expense","Administrative Expense","Administrative","5.1","Salaries & Benefits",{"$f":"'LTC Rev-Exp Region 1'!P$57","v":{"v":0,"d":"$0.00"}},{"$f":"'LTC Rev-Exp Region 1'!Q$57","v":{"v":0,"d":"$0.00"}},{"$f":"'LTC Rev-Exp Region 1'!R$57","v":{"v":0,"d":"$0.00"}},{"$f":"'LTC Rev-Exp Region 1'!S$57","v":{"v":0,"d":"$0.00"}},{"v":0,"d":"$0.00"}]
["LTC",null,null,{"$f":"Jurat!I$1","v":0},{"$f":"Jurat!D$33","v":"00:00:00"},"Q4","2017-12-31","Region 1","Operating Expense","Administrative Expense","Administrative","5.2","Administrative Services",{"$f":"'LTC Rev-Exp Region 1'!P$58","v":{"v":0,"d":"$0.00"}},{"$f":"'LTC Rev-Exp Region 1'!Q$58","v":{"v":0,"d":"$0.00"}},{"$f":"'LTC Rev-Exp Region 1'!R$58","v":{"v":0,"d":"$0.00"}},{"$f":"'LTC Rev-Exp Region 1'!S$58","v":{"v":0,"d":"$0.00"}},{"v":0,"d":"$0.00"}]
["LTC",null,null,{"$f":"Jurat!I$1","v":0},{"$f":"Jurat!D$33","v":"00:00:00"},"Q4","2017-12-31","Region 1","Operating Expense","Administrative Expense","Administrative","5.3","Information Systems",{"$f":"'LTC Rev-Exp Region 1'!P$59","v":{"v":0,"d":"$0.00"}},{"$f":"'LTC Rev-Exp Region 1'!Q$59","v":{"v":0,"d":"$0.00"}},{"$f":"'LTC Rev-Exp Region 1'!R$59","v":{"v":0,"d":"$0.00"}},{"$f":"'LTC Rev-Exp Region 1'!S$59","v":{"v":0,"d":"$0.00"}},{"v":0,"d":"$0.00"}]
["LTC",null,null,{"$f":"Jurat!I$1","v":0},{"$f":"Jurat!D$33","v":"00:00:00"},"Q4","2017-12-31","Region 1","Operating Expense","Administrative Expense","Administrative","5.4","Marketing Expenses",{"$f":"'LTC Rev-Exp Region 1'!P$60","v":{"v":0,"d":"$0.00"}},{"$f":"'LTC Rev-Exp Region 1'!Q$60","v":{"v":0,"d":"$0.00"}},{"$f":"'LTC Rev-Exp Region 1'!R$60","v":{"v":0,"d":"$0.00"}},{"$f":"'LTC Rev-Exp Region 1'!S$60","v":{"v":0,"d":"$0.00"}},{"v":0,"d":"$0.00"}]
["LTC",null,null,{"$f":"Jurat!I$1","v":0},{"$f":"Jurat!D$33","v":"00:00:00"},"Q4","2017-12-31","Region 1","Operating Expense","Administrative Expense","Administrative","5.5","General  Administration",{"$f":"'LTC Rev-Exp Region 1'!P$61","v":{"v":0,"d":"$0.00"}},{"$f":"'LTC Rev-Exp Region 1'!Q$61","v":{"v":0,"d":"$0.00"}},{"$f":"'LTC Rev-Exp Region 1'!R$61","v":{"v":0,"d":"$0.00"}},{"$f":"'LTC Rev-Exp Region 1'!S$61","v":{"v":0,"d":"$0.00"}},{"v":0,"d":"$0.00"}]
["LTC",null,null,{"$f":"Jurat!I$1","v":0},{"$f":"Jurat!D$33","v":"00:00:00"},"Q4","2017-12-31","Region 1","Operating Expense","Administrative Expense","Administrative","5.6","Compliance/Regulatory",{"$f":"'LTC Rev-Exp Region 1'!P$62","v":{"v":0,"d":"$0.00"}},{"$f":"'LTC Rev-Exp Region 1'!Q$62","v":{"v":0,"d":"$0.00"}},{"$f":"'LTC Rev-Exp Region 1'!R$62","v":{"v":0,"d":"$0.00"}},{"$f":"'LTC Rev-Exp Region 1'!S$62","v":{"v":0,"d":"$0.00"}},{"v":0,"d":"$0.00"}]
["LTC",null,null,{"$f":"Jurat!I$1","v":0},{"$f":"Jurat!D$33","v":"00:00:00"},"Q4","2017-12-31","Region 1","Operating Expense","Taxes & Fees","Taxes & Fees","6.1","State Premium Tax",{"$f":"'LTC Rev-Exp Region 1'!P$64","v":{"v":0,"d":"$0.00"}},{"v":0,"d":"$0.00"},{"v":0,"d":"$0.00"},{"v":0,"d":"$0.00"},{"v":0,"d":"$0.00"}]
["LTC",null,null,{"$f":"Jurat!I$1","v":0},{"$f":"Jurat!D$33","v":"00:00:00"},"Q4","2017-12-31","Region 1","Operating Expense","Taxes & Fees","Taxes & Fees","6.2","Department of Insurance Assessments",{"$f":"'LTC Rev-Exp Region 1'!P$65","v":{"v":0,"d":"$0.00"}},{"v":0,"d":"$0.00"},{"v":0,"d":"$0.00"},{"v":0,"d":"$0.00"},{"v":0,"d":"$0.00"}]
["LTC",null,null,{"$f":"Jurat!I$1","v":0},{"$f":"Jurat!D$33","v":"00:00:00"},"Q4","2017-12-31","Region 1","Non-Operating Expense","Income Tax Expense","Income Tax Expense","9.0","Income Tax Expense",{"$f":"'LTC Rev-Exp Region 1'!P$72","v":{"v":0,"d":"$0.00"}},{"v":0,"d":"$0.00"},{"v":0,"d":"$0.00"},{"v":0,"d":"$0.00"},{"v":0,"d":"$0.00"}]
["LTC",null,null,{"$f":"Jurat!I$1","v":0},{"$f":"Jurat!D$33","v":"00:00:00"},"Q1","2017-03-31","Region 2","Member Months","Member Months","Member Months",null,"Member Months",{"$f":"'LTC Rev-Exp Region 2'!D$9","v":{"v":0,"d":"$0.00"}},{"$f":"'LTC Rev-Exp Region 2'!E$9","v":{"v":0,"d":"$0.00"}},{"$f":"'LTC Rev-Exp Region 2'!F$9","v":{"v":0,"d":"$0.00"}},{"$f":"'LTC Rev-Exp Region 2'!G$9","v":{"v":0,"d":"$0.00"}},{"v":0,"d":"$0.00"}]
["LTC",null,null,{"$f":"Jurat!I$1","v":0},{"$f":"Jurat!D$33","v":"00:00:00"},"Q1","2017-03-31","Region 2","Operating Revenue","Capitation","Capitation",1.1,"Capitation",{"$f":"'LTC Rev-Exp Region 2'!D$11","v":{"v":0,"d":"$0.00"}},{"$f":"'LTC Rev-Exp Region 2'!E$11","v":{"v":0,"d":"$0.00"}},{"$f":"'LTC Rev-Exp Region 2'!F$11","v":{"v":0,"d":"$0.00"}},{"$f":"'LTC Rev-Exp Region 2'!G$11","v":{"v":0,"d":"$0.00"}},{"v":0,"d":"$0.00"}]
["LTC",null,null,{"$f":"Jurat!I$1","v":0},{"$f":"Jurat!D$33","v":"00:00:00"},"Q1","2017-03-31","Region 2","Operating Revenue","Capitation","NH Rate Reconciliation",1.2,"NH Rate Reconciliation",{"$f":"'LTC Rev-Exp Region 2'!D$12","v":{"v":0,"d":"$0.00"}},{"$f":"'LTC Rev-Exp Region 2'!E$12","v":{"v":0,"d":"$0.00"}},{"$f":"'LTC Rev-Exp Region 2'!F$12","v":{"v":0,"d":"$0.00"}},{"$f":"'LTC Rev-Exp Region 2'!G$12","v":{"v":0,"d":"$0.00"}},{"v":0,"d":"$0.00"}]
["LTC",null,null,{"$f":"Jurat!I$1","v":0},{"$f":"Jurat!D$33","v":"00:00:00"},"Q1","2017-03-31","Region 2","Operating Revenue","Other Revenue","Other Revenue",1.3,"Other Revenue",{"$f":"'LTC Rev-Exp Region 2'!D$13","v":{"v":0,"d":"$0.00"}},{"$f":"'LTC Rev-Exp Region 2'!E$13","v":{"v":0,"d":"$0.00"}},{"$f":"'LTC Rev-Exp Region 2'!F$13","v":{"v":0,"d":"$0.00"}},{"$f":"'LTC Rev-Exp Region 2'!G$13","v":{"v":0,"d":"$0.00"}},{"v":0,"d":"$0.00"}]
["LTC",null,null,{"$f":"Jurat!I$1","v":0},{"$f":"Jurat!D$33","v":"00:00:00"},"Q1","2017-03-31","Region 2","Operating Expense","Medical Expense","NF & Hospice","2.1","Nursing Facility Days (Medicaid)",{"$f":"'LTC Rev-Exp Region 2'!D$17","v":{"v":0,"d":"$0.00"}},{"$f":"'LTC Rev-Exp Region 2'!E$17","v":{"v":0,"d":"$0.00"}},{"$f":"'LTC Rev-Exp Region 2'!F$17","v":{"v":0,"d":"$0.00"}},{"$f":"'LTC Rev-Exp Region 2'!G$17","v":{"v":0,"d":"$0.00"}},{"v":0,"d":"$0.00"}]
["LTC",null,null,{"$f":"Jurat!I$1","v":0},{"$f":"Jurat!D$33","v":"00:00:00"},"Q1","2017-03-31","Region 2","Operating Expense","Medical Expense","NF & Hospice","2.2","Nursing Facility Days (Crossover)",{"$f":"'LTC Rev-Exp Region 2'!D$18","v":{"v":0,"d":"$0.00"}},{"$f":"'LTC Rev-Exp Region 2'!E$18","v":{"v":0,"d":"$0.00"}},{"$f":"'LTC Rev-Exp Region 2'!F$18","v":{"v":0,"d":"$0.00"}},{"$f":"'LTC Rev-Exp Region 2'!G$18","v":{"v":0,"d":"$0.00"}},{"v":0,"d":"$0.00"}]
["LTC",null,null,{"$f":"Jurat!I$1","v":0},{"$f":"Jurat!D$33","v":"00:00:00"},"Q1","2017-03-31","Region 2","Operating Expense","Medical Expense","NF & Hospice","2.3","Nursing Facility FFS (Medicaid)",{"$f":"'LTC Rev-Exp Region 2'!D$19","v":{"v":0,"d":"$0.00"}},{"$f":"'LTC Rev-Exp Region 2'!E$19","v":{"v":0,"d":"$0.00"}},{"$f":"'LTC Rev-Exp Region 2'!F$19","v":{"v":0,"d":"$0.00"}},{"$f":"'LTC Rev-Exp Region 2'!G$19","v":{"v":0,"d":"$0.00"}},{"v":0,"d":"$0.00"}]
["LTC",null,null,{"$f":"Jurat!I$1","v":0},{"$f":"Jurat!D$33","v":"00:00:00"},"Q1","2017-03-31","Region 2","Operating Expense","Medical Expense","NF & Hospice","2.4","Nursing Facility FFS (Crossover)",{"$f":"'LTC Rev-Exp Region 2'!D$20","v":{"v":0,"d":"$0.00"}},{"$f":"'LTC Rev-Exp Region 2'!E$20","v":{"v":0,"d":"$0.00"}},{"$f":"'LTC Rev-Exp Region 2'!F$20","v":{"v":0,"d":"$0.00"}},{"$f":"'LTC Rev-Exp Region 2'!G$20","v":{"v":0,"d":"$0.00"}},{"v":0,"d":"$0.00"}]
["LTC",null,null,{"$f":"Jurat!I$1","v":0},{"$f":"Jurat!D$33","v":"00:00:00"},"Q1","2017-03-31","Region 2","Operating Expense","Medical Expense","NF & Hospice","2.5","Hospice Days",{"$f":"'LTC Rev-Exp Region 2'!D$21","v":{"v":0,"d":"$0.00"}},{"$f":"'LTC Rev-Exp Region 2'!E$21","v":{"v":0,"d":"$0.00"}},{"$f":"'LTC Rev-Exp Region 2'!F$21","v":{"v":0,"d":"$0.00"}},{"$f":"'LTC Rev-Exp Region 2'!G$21","v":{"v":0,"d":"$0.00"}},{"v":0,"d":"$0.00"}]
["LTC",null,null,{"$f":"Jurat!I$1","v":0},{"$f":"Jurat!D$33","v":"00:00:00"},"Q1","2017-03-31","Region 2","Operating Expense","Medical Expense","NF & Hospice","2.6","Hospice FFS",{"$f":"'LTC Rev-Exp Region 2'!D$22","v":{"v":0,"d":"$0.00"}},{"$f":"'LTC Rev-Exp Region 2'!E$22","v":{"v":0,"d":"$0.00"}},{"$f":"'LTC Rev-Exp Region 2'!F$22","v":{"v":0,"d":"$0.00"}},{"$f":"'LTC Rev-Exp Region 2'!G$22","v":{"v":0,"d":"$0.00"}},{"v":0,"d":"$0.00"}]
["LTC",null,null,{"$f":"Jurat!I$1","v":0},{"$f":"Jurat!D$33","v":"00:00:00"},"Q1","2017-03-31","Region 2","Operating Expense","Medical Expense","NF & Hospice","2.7","Ending IBNP for NF & Hospice",{"$f":"'LTC Rev-Exp Region 2'!D$23","v":{"v":0,"d":"$0.00"}},{"$f":"'LTC Rev-Exp Region 2'!E$23","v":{"v":0,"d":"$0.00"}},{"$f":"'LTC Rev-Exp Region 2'!F$23","v":{"v":0,"d":"$0.00"}},{"$f":"'LTC Rev-Exp Region 2'!G$23","v":{"v":0,"d":"$0.00"}},{"v":0,"d":"$0.00"}]
["LTC",null,null,{"$f":"Jurat!I$1","v":0},{"$f":"Jurat!D$33","v":"00:00:00"},"Q1","2017-03-31","Region 2","Operating Expense","Medical Expense","NF & Hospice","2.8","NF & Hospice Subcapitated",{"$f":"'LTC Rev-Exp Region 2'!D$24","v":{"v":0,"d":"$0.00"}},{"$f":"'LTC Rev-Exp Region 2'!E$24","v":{"v":0,"d":"$0.00"}},{"$f":"'LTC Rev-Exp Region 2'!F$24","v":{"v":0,"d":"$0.00"}},{"$f":"'LTC Rev-Exp Region 2'!G$24","v":{"v":0,"d":"$0.00"}},{"v":0,"d":"$0.00"}]
["LTC",null,null,{"$f":"Jurat!I$1","v":0},{"$f":"Jurat!D$33","v":"00:00:00"},"Q1","2017-03-31","Region 2","Operating Expense","Medical Expense","NF & Hospice","2.9","NF & Hospice Settlements",{"$f":"'LTC Rev-Exp Region 2'!D$25","v":{"v":0,"d":"$0.00"}},{"$f":"'LTC Rev-Exp Region 2'!E$25","v":{"v":0,"d":"$0.00"}},{"$f":"'LTC Rev-Exp Region 2'!F$25","v":{"v":0,"d":"$0.00"}},{"$f":"'LTC Rev-Exp Region 2'!G$25","v":{"v":0,"d":"$0.00"}},{"v":0,"d":"$0.00"}]
["LTC",null,null,{"$f":"Jurat!I$1","v":0},{"$f":"Jurat!D$33","v":"00:00:00"},"Q1","2017-03-31","Region 2","Operating Expense","Medical Expense","LTC Services","2.11","Assisted Living FFS",{"$f":"'LTC Rev-Exp Region 2'!D$27","v":{"v":0,"d":"$0.00"}},{"$f":"'LTC Rev-Exp Region 2'!E$27","v":{"v":0,"d":"$0.00"}},{"$f":"'LTC Rev-Exp Region 2'!F$27","v":{"v":0,"d":"$0.00"}},{"$f":"'LTC Rev-Exp Region 2'!G$27","v":{"v":0,"d":"$0.00"}},{"v":0,"d":"$0.00"}]
["LTC",null,null,{"$f":"Jurat!I$1","v":0},{"$f":"Jurat!D$33","v":"00:00:00"},"Q1","2017-03-31","Region 2","Operating Expense","Medical Expense","LTC Services","2.12","Home Health FFS",{"$f":"'LTC Rev-Exp Region 2'!D$28","v":{"v":0,"d":"$0.00"}},{"$f":"'LTC Rev-Exp Region 2'!E$28","v":{"v":0,"d":"$0.00"}},{"$f":"'LTC Rev-Exp Region 2'!F$28","v":{"v":0,"d":"$0.00"}},{"$f":"'LTC Rev-Exp Region 2'!G$28","v":{"v":0,"d":"$0.00"}},{"v":0,"d":"$0.00"}]
["LTC",null,null,{"$f":"Jurat!I$1","v":0},{"$f":"Jurat!D$33","v":"00:00:00"},"Q1","2017-03-31","Region 2","Operating Expense","Medical Expense","LTC Services","2.13","Medical Equipment/Supplies FFS",{"$f":"'LTC Rev-Exp Region 2'!D$29","v":{"v":0,"d":"$0.00"}},{"$f":"'LTC Rev-Exp Region 2'!E$29","v":{"v":0,"d":"$0.00"}},{"$f":"'LTC Rev-Exp Region 2'!F$29","v":{"v":0,"d":"$0.00"}},{"$f":"'LTC Rev-Exp Region 2'!G$29","v":{"v":0,"d":"$0.00"}},{"v":0,"d":"$0.00"}]
["LTC",null,null,{"$f":"Jurat!I$1","v":0},{"$f":"Jurat!D$33","v":"00:00:00"},"Q1","2017-03-31","Region 2","Operating Expense","Medical Expense","LTC Services","2.14","Therapy FFS",{"$f":"'LTC Rev-Exp Region 2'!D$30","v":{"v":0,"d":"$0.00"}},{"$f":"'LTC Rev-Exp Region 2'!E$30","v":{"v":0,"d":"$0.00"}},{"$f":"'LTC Rev-Exp Region 2'!F$30","v":{"v":0,"d":"$0.00"}},{"$f":"'LTC Rev-Exp Region 2'!G$30","v":{"v":0,"d":"$0.00"}},{"v":0,"d":"$0.00"}]
["LTC",null,null,{"$f":"Jurat!I$1","v":0},{"$f":"Jurat!D$33","v":"00:00:00"},"Q1","2017-03-31","Region 2","Operating Expense","Medical Expense","LTC Services","2.15","Transportation FFS",{"$f":"'LTC Rev-Exp Region 2'!D$31","v":{"v":0,"d":"$0.00"}},{"$f":"'LTC Rev-Exp Region 2'!E$31","v":{"v":0,"d":"$0.00"}},{"$f":"'LTC Rev-Exp Region 2'!F$31","v":{"v":0,"d":"$0.00"}},{"$f":"'LTC Rev-Exp Region 2'!G$31","v":{"v":0,"d":"$0.00"}},{"v":0,"d":"$0.00"}]
["LTC",null,null,{"$f":"Jurat!I$1","v":0},{"$f":"Jurat!D$33","v":"00:00:00"},"Q1","2017-03-31","Region 2","Operating Expense","Medical Expense","LTC Services","2.16","Case Management FFS (Plan Provided)",{"$f":"'LTC Rev-Exp Region 2'!D$32","v":{"v":0,"d":"$0.00"}},{"$f":"'LTC Rev-Exp Region 2'!E$32","v":{"v":0,"d":"$0.00"}},{"$f":"'LTC Rev-Exp Region 2'!F$32","v":{"v":0,"d":"$0.00"}},{"$f":"'LTC Rev-Exp Region 2'!G$32","v":{"v":0,"d":"$0.00"}},{"v":0,"d":"$0.00"}]
["LTC",null,null,{"$f":"Jurat!I$1","v":0},{"$f":"Jurat!D$33","v":"00:00:00"},"Q1","2017-03-31","Region 2","Operating Expense","Medical Expense","LTC Services","2.17","Case Management FF (Non-Plan Provided)",{"$f":"'LTC Rev-Exp Region 2'!D$33","v":{"v":0,"d":"$0.00"}},{"$f":"'LTC Rev-Exp Region 2'!E$33","v":{"v":0,"d":"$0.00"}},{"$f":"'LTC Rev-Exp Region 2'!F$33","v":{"v":0,"d":"$0.00"}},{"$f":"'LTC Rev-Exp Region 2'!G$33","v":{"v":0,"d":"$0.00"}},{"v":0,"d":"$0.00"}]
["LTC",null,null,{"$f":"Jurat!I$1","v":0},{"$f":"Jurat!D$33","v":"00:00:00"},"Q1","2017-03-31","Region 2","Operating Expense","Medical Expense","LTC Services","2.18","HCBS FFS",{"$f":"'LTC Rev-Exp Region 2'!D$34","v":{"v":0,"d":"$0.00"}},{"$f":"'LTC Rev-Exp Region 2'!E$34","v":{"v":0,"d":"$0.00"}},{"$f":"'LTC Rev-Exp Region 2'!F$34","v":{"v":0,"d":"$0.00"}},{"$f":"'LTC Rev-Exp Region 2'!G$34","v":{"v":0,"d":"$0.00"}},{"v":0,"d":"$0.00"}]
["LTC",null,null,{"$f":"Jurat!I$1","v":0},{"$f":"Jurat!D$33","v":"00:00:00"},"Q1","2017-03-31","Region 2","Operating Expense","Medical Expense","LTC Services","2.19","Subcapitated LTC Services",{"$f":"'LTC Rev-Exp Region 2'!D$35","v":{"v":0,"d":"$0.00"}},{"$f":"'LTC Rev-Exp Region 2'!E$35","v":{"v":0,"d":"$0.00"}},{"$f":"'LTC Rev-Exp Region 2'!F$35","v":{"v":0,"d":"$0.00"}},{"$f":"'LTC Rev-Exp Region 2'!G$35","v":{"v":0,"d":"$0.00"}},{"v":0,"d":"$0.00"}]
["LTC",null,null,{"$f":"Jurat!I$1","v":0},{"$f":"Jurat!D$33","v":"00:00:00"},"Q1","2017-03-31","Region 2","Operating Expense","Medical Expense","LTC Services","2.20","Ending IBNP for Long Term Care Services",{"$f":"'LTC Rev-Exp Region 2'!D$36","v":{"v":0,"d":"$0.00"}},{"$f":"'LTC Rev-Exp Region 2'!E$36","v":{"v":0,"d":"$0.00"}},{"$f":"'LTC Rev-Exp Region 2'!F$36","v":{"v":0,"d":"$0.00"}},{"$f":"'LTC Rev-Exp Region 2'!G$36","v":{"v":0,"d":"$0.00"}},{"v":0,"d":"$0.00"}]
["LTC",null,null,{"$f":"Jurat!I$1","v":0},{"$f":"Jurat!D$33","v":"00:00:00"},"Q1","2017-03-31","Region 2","Operating Expense","Medical Expense","LTC Services","2.21","LTC Services Settlements",{"$f":"'LTC Rev-Exp Region 2'!D$37","v":{"v":0,"d":"$0.00"}},{"$f":"'LTC Rev-Exp Region 2'!E$37","v":{"v":0,"d":"$0.00"}},{"$f":"'LTC Rev-Exp Region 2'!F$37","v":{"v":0,"d":"$0.00"}},{"$f":"'LTC Rev-Exp Region 2'!G$37","v":{"v":0,"d":"$0.00"}},{"v":0,"d":"$0.00"}]
["LTC",null,null,{"$f":"Jurat!I$1","v":0},{"$f":"Jurat!D$33","v":"00:00:00"},"Q1","2017-03-31","Region 2","Operating Expense","Medical Expense","Expanded Benefits","3.1","Expanded Benefits FFS",{"$f":"'LTC Rev-Exp Region 2'!D$39","v":{"v":0,"d":"$0.00"}},{"$f":"'LTC Rev-Exp Region 2'!E$39","v":{"v":0,"d":"$0.00"}},{"$f":"'LTC Rev-Exp Region 2'!F$39","v":{"v":0,"d":"$0.00"}},{"$f":"'LTC Rev-Exp Region 2'!G$39","v":{"v":0,"d":"$0.00"}},{"v":0,"d":"$0.00"}]
["LTC",null,null,{"$f":"Jurat!I$1","v":0},{"$f":"Jurat!D$33","v":"00:00:00"},"Q1","2017-03-31","Region 2","Operating Expense","Medical Expense","Expanded Benefits","3.2","Expanded Benefits Subcapitation",{"$f":"'LTC Rev-Exp Region 2'!D$40","v":{"v":0,"d":"$0.00"}},{"$f":"'LTC Rev-Exp Region 2'!E$40","v":{"v":0,"d":"$0.00"}},{"$f":"'LTC Rev-Exp Region 2'!F$40","v":{"v":0,"d":"$0.00"}},{"$f":"'LTC Rev-Exp Region 2'!G$40","v":{"v":0,"d":"$0.00"}},{"v":0,"d":"$0.00"}]
["LTC",null,null,{"$f":"Jurat!I$1","v":0},{"$f":"Jurat!D$33","v":"00:00:00"},"Q1","2017-03-31","Region 2","Operating Expense","Medical Expense","Expanded Benefits","3.3","Ending IBNP for Expanded Benefits",{"$f":"'LTC Rev-Exp Region 2'!D$41","v":{"v":0,"d":"$0.00"}},{"$f":"'LTC Rev-Exp Region 2'!E$41","v":{"v":0,"d":"$0.00"}},{"$f":"'LTC Rev-Exp Region 2'!F$41","v":{"v":0,"d":"$0.00"}},{"$f":"'LTC Rev-Exp Region 2'!G$41","v":{"v":0,"d":"$0.00"}},{"v":0,"d":"$0.00"}]
["LTC",null,null,{"$f":"Jurat!I$1","v":0},{"$f":"Jurat!D$33","v":"00:00:00"},"Q1","2017-03-31","Region 2","Operating Expense","Medical Expense","Expanded Benefits","3.4","Expanded Benefits Settlements",{"$f":"'LTC Rev-Exp Region 2'!D$42","v":{"v":0,"d":"$0.00"}},{"$f":"'LTC Rev-Exp Region 2'!E$42","v":{"v":0,"d":"$0.00"}},{"$f":"'LTC Rev-Exp Region 2'!F$42","v":{"v":0,"d":"$0.00"}},{"$f":"'LTC Rev-Exp Region 2'!G$42","v":{"v":0,"d":"$0.00"}},{"v":0,"d":"$0.00"}]
["LTC",null,null,{"$f":"Jurat!I$1","v":0},{"$f":"Jurat!D$33","v":"00:00:00"},"Q1","2017-03-31","Region 2","Operating Expense","Medical Expense","Other Medical","4.5","TPL & Fraud/Abuse Recoveries",{"$f":"'LTC Rev-Exp Region 2'!D$48","v":{"v":0,"d":"$0.00"}},{"$f":"'LTC Rev-Exp Region 2'!E$48","v":{"v":0,"d":"$0.00"}},{"$f":"'LTC Rev-Exp Region 2'!F$48","v":{"v":0,"d":"$0.00"}},{"$f":"'LTC Rev-Exp Region 2'!G$48","v":{"v":0,"d":"$0.00"}},{"v":0,"d":"$0.00"}]
["LTC",null,null,{"$f":"Jurat!I$1","v":0},{"$f":"Jurat!D$33","v":"00:00:00"},"Q1","2017-03-31","Region 2","Operating Expense","Medical Expense","Other Medical","4.6.1","Premium Deficiency Reserve",{"$f":"'LTC Rev-Exp Region 2'!D$49","v":{"v":0,"d":"$0.00"}},{"$f":"'LTC Rev-Exp Region 2'!E$49","v":{"v":0,"d":"$0.00"}},{"$f":"'LTC Rev-Exp Region 2'!F$49","v":{"v":0,"d":"$0.00"}},{"$f":"'LTC Rev-Exp Region 2'!G$49","v":{"v":0,"d":"$0.00"}},{"v":0,"d":"$0.00"}]
["LTC",null,null,{"$f":"Jurat!I$1","v":0},{"$f":"Jurat!D$33","v":"00:00:00"},"Q1","2017-03-31","Region 2","Operating Expense","Medical Expense","Other Medical","4.8","Reinsurance Premiums",{"$f":"'LTC Rev-Exp Region 2'!D$51","v":{"v":0,"d":"$0.00"}},{"$f":"'LTC Rev-Exp Region 2'!E$51","v":{"v":0,"d":"$0.00"}},{"$f":"'LTC Rev-Exp Region 2'!F$51","v":{"v":0,"d":"$0.00"}},{"$f":"'LTC Rev-Exp Region 2'!G$51","v":{"v":0,"d":"$0.00"}},{"v":0,"d":"$0.00"}]
["LTC",null,null,{"$f":"Jurat!I$1","v":0},{"$f":"Jurat!D$33","v":"00:00:00"},"Q1","2017-03-31","Region 2","Operating Expense","Medical Expense","Other Medical","4.9","Reinsurance Recoveries",{"$f":"'LTC Rev-Exp Region 2'!D$52","v":{"v":0,"d":"$0.00"}},{"$f":"'LTC Rev-Exp Region 2'!E$52","v":{"v":0,"d":"$0.00"}},{"$f":"'LTC Rev-Exp Region 2'!F$52","v":{"v":0,"d":"$0.00"}},{"$f":"'LTC Rev-Exp Region 2'!G$52","v":{"v":0,"d":"$0.00"}},{"v":0,"d":"$0.00"}]
["LTC",null,null,{"$f":"Jurat!I$1","v":0},{"$f":"Jurat!D$33","v":"00:00:00"},"Q1","2017-03-31","Region 2","Operating Expense","Administrative Expense","Administrative","5.1","Salaries & Benefits",{"$f":"'LTC Rev-Exp Region 2'!D$57","v":{"v":0,"d":"$0.00"}},{"$f":"'LTC Rev-Exp Region 2'!E$57","v":{"v":0,"d":"$0.00"}},{"$f":"'LTC Rev-Exp Region 2'!F$57","v":{"v":0,"d":"$0.00"}},{"$f":"'LTC Rev-Exp Region 2'!G$57","v":{"v":0,"d":"$0.00"}},{"v":0,"d":"$0.00"}]
["LTC",null,null,{"$f":"Jurat!I$1","v":0},{"$f":"Jurat!D$33","v":"00:00:00"},"Q1","2017-03-31","Region 2","Operating Expense","Administrative Expense","Administrative","5.2","Administrative Services",{"$f":"'LTC Rev-Exp Region 2'!D$58","v":{"v":0,"d":"$0.00"}},{"$f":"'LTC Rev-Exp Region 2'!E$58","v":{"v":0,"d":"$0.00"}},{"$f":"'LTC Rev-Exp Region 2'!F$58","v":{"v":0,"d":"$0.00"}},{"$f":"'LTC Rev-Exp Region 2'!G$58","v":{"v":0,"d":"$0.00"}},{"v":0,"d":"$0.00"}]
["LTC",null,null,{"$f":"Jurat!I$1","v":0},{"$f":"Jurat!D$33","v":"00:00:00"},"Q1","2017-03-31","Region 2","Operating Expense","Administrative Expense","Administrative","5.3","Information Systems",{"$f":"'LTC Rev-Exp Region 2'!D$59","v":{"v":0,"d":"$0.00"}},{"$f":"'LTC Rev-Exp Region 2'!E$59","v":{"v":0,"d":"$0.00"}},{"$f":"'LTC Rev-Exp Region 2'!F$59","v":{"v":0,"d":"$0.00"}},{"$f":"'LTC Rev-Exp Region 2'!G$59","v":{"v":0,"d":"$0.00"}},{"v":0,"d":"$0.00"}]
["LTC",null,null,{"$f":"Jurat!I$1","v":0},{"$f":"Jurat!D$33","v":"00:00:00"},"Q1","2017-03-31","Region 2","Operating Expense","Administrative Expense","Administrative","5.4","Marketing Expenses",{"$f":"'LTC Rev-Exp Region 2'!D$60","v":{"v":0,"d":"$0.00"}},{"$f":"'LTC Rev-Exp Region 2'!E$60","v":{"v":0,"d":"$0.00"}},{"$f":"'LTC Rev-Exp Region 2'!F$60","v":{"v":0,"d":"$0.00"}},{"$f":"'LTC Rev-Exp Region 2'!G$60","v":{"v":0,"d":"$0.00"}},{"v":0,"d":"$0.00"}]
["LTC",null,null,{"$f":"Jurat!I$1","v":0},{"$f":"Jurat!D$33","v":"00:00:00"},"Q1","2017-03-31","Region 2","Operating Expense","Administrative Expense","Administrative","5.5","General  Administration",{"$f":"'LTC Rev-Exp Region 2'!D$61","v":{"v":0,"d":"$0.00"}},{"$f":"'LTC Rev-Exp Region 2'!E$61","v":{"v":0,"d":"$0.00"}},{"$f":"'LTC Rev-Exp Region 2'!F$61","v":{"v":0,"d":"$0.00"}},{"$f":"'LTC Rev-Exp Region 2'!G$61","v":{"v":0,"d":"$0.00"}},{"v":0,"d":"$0.00"}]
["LTC",null,null,{"$f":"Jurat!I$1","v":0},{"$f":"Jurat!D$33","v":"00:00:00"},"Q1","2017-03-31","Region 2","Operating Expense","Administrative Expense","Administrative","5.6","Compliance/Regulatory",{"$f":"'LTC Rev-Exp Region 2'!D$62","v":{"v":0,"d":"$0.00"}},{"$f":"'LTC Rev-Exp Region 2'!E$62","v":{"v":0,"d":"$0.00"}},{"$f":"'LTC Rev-Exp Region 2'!F$62","v":{"v":0,"d":"$0.00"}},{"$f":"'LTC Rev-Exp Region 2'!G$62","v":{"v":0,"d":"$0.00"}},{"v":0,"d":"$0.00"}]
["LTC",null,null,{"$f":"Jurat!I$1","v":0},{"$f":"Jurat!D$33","v":"00:00:00"},"Q1","2017-03-31","Region 2","Operating Expense","Taxes & Fees","Taxes & Fees","6.1","State Premium Tax",{"$f":"'LTC Rev-Exp Region 2'!D$64","v":{"v":0,"d":"$0.00"}},{"v":0,"d":"$0.00"},{"v":0,"d":"$0.00"},{"v":0,"d":"$0.00"},{"v":0,"d":"$0.00"}]
["LTC",null,null,{"$f":"Jurat!I$1","v":0},{"$f":"Jurat!D$33","v":"00:00:00"},"Q1","2017-03-31","Region 2","Operating Expense","Taxes & Fees","Taxes & Fees","6.2","Department of Insurance Assessments",{"$f":"'LTC Rev-Exp Region 2'!D$65","v":{"v":0,"d":"$0.00"}},{"v":0,"d":"$0.00"},{"v":0,"d":"$0.00"},{"v":0,"d":"$0.00"},{"v":0,"d":"$0.00"}]
["LTC",null,null,{"$f":"Jurat!I$1","v":0},{"$f":"Jurat!D$33","v":"00:00:00"},"Q1","2017-03-31","Region 2","Non-Operating Expense","Income Tax Expense","Income Tax Expense","9.0","Income Tax Expense",{"$f":"'LTC Rev-Exp Region 2'!D$72","v":{"v":0,"d":"$0.00"}},{"v":0,"d":"$0.00"},{"v":0,"d":"$0.00"},{"v":0,"d":"$0.00"},{"v":0,"d":"$0.00"}]
["LTC",null,null,{"$f":"Jurat!I$1","v":0},{"$f":"Jurat!D$33","v":"00:00:00"},"Q2","2017-06-30","Region 2","Member Months","Member Months","Member Months",null,"Member Months",{"$f":"'LTC Rev-Exp Region 2'!H$9","v":{"v":0,"d":"$0.00"}},{"$f":"'LTC Rev-Exp Region 2'!I$9","v":{"v":0,"d":"$0.00"}},{"$f":"'LTC Rev-Exp Region 2'!J$9","v":{"v":0,"d":"$0.00"}},{"$f":"'LTC Rev-Exp Region 2'!K$9","v":{"v":0,"d":"$0.00"}},{"v":0,"d":"$0.00"}]
["LTC",null,null,{"$f":"Jurat!I$1","v":0},{"$f":"Jurat!D$33","v":"00:00:00"},"Q2","2017-06-30","Region 2","Operating Revenue","Capitation","Capitation",1.1,"Capitation",{"$f":"'LTC Rev-Exp Region 2'!H$11","v":{"v":0,"d":"$0.00"}},{"$f":"'LTC Rev-Exp Region 2'!I$11","v":{"v":0,"d":"$0.00"}},{"$f":"'LTC Rev-Exp Region 2'!J$11","v":{"v":0,"d":"$0.00"}},{"$f":"'LTC Rev-Exp Region 2'!K$11","v":{"v":0,"d":"$0.00"}},{"v":0,"d":"$0.00"}]
["LTC",null,null,{"$f":"Jurat!I$1","v":0},{"$f":"Jurat!D$33","v":"00:00:00"},"Q2","2017-06-30","Region 2","Operating Revenue","Capitation","NH Rate Reconciliation",1.2,"NH Rate Reconciliation",{"$f":"'LTC Rev-Exp Region 2'!H$12","v":{"v":0,"d":"$0.00"}},{"$f":"'LTC Rev-Exp Region 2'!I$12","v":{"v":0,"d":"$0.00"}},{"$f":"'LTC Rev-Exp Region 2'!J$12","v":{"v":0,"d":"$0.00"}},{"$f":"'LTC Rev-Exp Region 2'!K$12","v":{"v":0,"d":"$0.00"}},{"v":0,"d":"$0.00"}]
["LTC",null,null,{"$f":"Jurat!I$1","v":0},{"$f":"Jurat!D$33","v":"00:00:00"},"Q2","2017-06-30","Region 2","Operating Revenue","Other Revenue","Other Revenue",1.3,"Other Revenue",{"$f":"'LTC Rev-Exp Region 2'!H$13","v":{"v":0,"d":"$0.00"}},{"$f":"'LTC Rev-Exp Region 2'!I$13","v":{"v":0,"d":"$0.00"}},{"$f":"'LTC Rev-Exp Region 2'!J$13","v":{"v":0,"d":"$0.00"}},{"$f":"'LTC Rev-Exp Region 2'!K$13","v":{"v":0,"d":"$0.00"}},{"v":0,"d":"$0.00"}]
["LTC",null,null,{"$f":"Jurat!I$1","v":0},{"$f":"Jurat!D$33","v":"00:00:00"},"Q2","2017-06-30","Region 2","Operating Expense","Medical Expense","NF & Hospice","2.1","Nursing Facility Days (Medicaid)",{"$f":"'LTC Rev-Exp Region 2'!H$17","v":{"v":0,"d":"$0.00"}},{"$f":"'LTC Rev-Exp Region 2'!I$17","v":{"v":0,"d":"$0.00"}},{"$f":"'LTC Rev-Exp Region 2'!J$17","v":{"v":0,"d":"$0.00"}},{"$f":"'LTC Rev-Exp Region 2'!K$17","v":{"v":0,"d":"$0.00"}},{"v":0,"d":"$0.00"}]
["LTC",null,null,{"$f":"Jurat!I$1","v":0},{"$f":"Jurat!D$33","v":"00:00:00"},"Q2","2017-06-30","Region 2","Operating Expense","Medical Expense","NF & Hospice","2.2","Nursing Facility Days (Crossover)",{"$f":"'LTC Rev-Exp Region 2'!H$18","v":{"v":0,"d":"$0.00"}},{"$f":"'LTC Rev-Exp Region 2'!I$18","v":{"v":0,"d":"$0.00"}},{"$f":"'LTC Rev-Exp Region 2'!J$18","v":{"v":0,"d":"$0.00"}},{"$f":"'LTC Rev-Exp Region 2'!K$18","v":{"v":0,"d":"$0.00"}},{"v":0,"d":"$0.00"}]
["LTC",null,null,{"$f":"Jurat!I$1","v":0},{"$f":"Jurat!D$33","v":"00:00:00"},"Q2","2017-06-30","Region 2","Operating Expense","Medical Expense","NF & Hospice","2.3","Nursing Facility FFS (Medicaid)",{"$f":"'LTC Rev-Exp Region 2'!H$19","v":{"v":0,"d":"$0.00"}},{"$f":"'LTC Rev-Exp Region 2'!I$19","v":{"v":0,"d":"$0.00"}},{"$f":"'LTC Rev-Exp Region 2'!J$19","v":{"v":0,"d":"$0.00"}},{"$f":"'LTC Rev-Exp Region 2'!K$19","v":{"v":0,"d":"$0.00"}},{"v":0,"d":"$0.00"}]
["LTC",null,null,{"$f":"Jurat!I$1","v":0},{"$f":"Jurat!D$33","v":"00:00:00"},"Q2","2017-06-30","Region 2","Operating Expense","Medical Expense","NF & Hospice","2.4","Nursing Facility FFS (Crossover)",{"$f":"'LTC Rev-Exp Region 2'!H$20","v":{"v":0,"d":"$0.00"}},{"$f":"'LTC Rev-Exp Region 2'!I$20","v":{"v":0,"d":"$0.00"}},{"$f":"'LTC Rev-Exp Region 2'!J$20","v":{"v":0,"d":"$0.00"}},{"$f":"'LTC Rev-Exp Region 2'!K$20","v":{"v":0,"d":"$0.00"}},{"v":0,"d":"$0.00"}]
["LTC",null,null,{"$f":"Jurat!I$1","v":0},{"$f":"Jurat!D$33","v":"00:00:00"},"Q2","2017-06-30","Region 2","Operating Expense","Medical Expense","NF & Hospice","2.5","Hospice Days",{"$f":"'LTC Rev-Exp Region 2'!H$21","v":{"v":0,"d":"$0.00"}},{"$f":"'LTC Rev-Exp Region 2'!I$21","v":{"v":0,"d":"$0.00"}},{"$f":"'LTC Rev-Exp Region 2'!J$21","v":{"v":0,"d":"$0.00"}},{"$f":"'LTC Rev-Exp Region 2'!K$21","v":{"v":0,"d":"$0.00"}},{"v":0,"d":"$0.00"}]
["LTC",null,null,{"$f":"Jurat!I$1","v":0},{"$f":"Jurat!D$33","v":"00:00:00"},"Q2","2017-06-30","Region 2","Operating Expense","Medical Expense","NF & Hospice","2.6","Hospice FFS",{"$f":"'LTC Rev-Exp Region 2'!H$22","v":{"v":0,"d":"$0.00"}},{"$f":"'LTC Rev-Exp Region 2'!I$22","v":{"v":0,"d":"$0.00"}},{"$f":"'LTC Rev-Exp Region 2'!J$22","v":{"v":0,"d":"$0.00"}},{"$f":"'LTC Rev-Exp Region 2'!K$22","v":{"v":0,"d":"$0.00"}},{"v":0,"d":"$0.00"}]
["LTC",null,null,{"$f":"Jurat!I$1","v":0},{"$f":"Jurat!D$33","v":"00:00:00"},"Q2","2017-06-30","Region 2","Operating Expense","Medical Expense","NF & Hospice","2.7","Ending IBNP for NF & Hospice",{"$f":"'LTC Rev-Exp Region 2'!H$23","v":{"v":0,"d":"$0.00"}},{"$f":"'LTC Rev-Exp Region 2'!I$23","v":{"v":0,"d":"$0.00"}},{"$f":"'LTC Rev-Exp Region 2'!J$23","v":{"v":0,"d":"$0.00"}},{"$f":"'LTC Rev-Exp Region 2'!K$23","v":{"v":0,"d":"$0.00"}},{"v":0,"d":"$0.00"}]
["LTC",null,null,{"$f":"Jurat!I$1","v":0},{"$f":"Jurat!D$33","v":"00:00:00"},"Q2","2017-06-30","Region 2","Operating Expense","Medical Expense","NF & Hospice","2.8","NF & Hospice Subcapitated",{"$f":"'LTC Rev-Exp Region 2'!H$24","v":{"v":0,"d":"$0.00"}},{"$f":"'LTC Rev-Exp Region 2'!I$24","v":{"v":0,"d":"$0.00"}},{"$f":"'LTC Rev-Exp Region 2'!J$24","v":{"v":0,"d":"$0.00"}},{"$f":"'LTC Rev-Exp Region 2'!K$24","v":{"v":0,"d":"$0.00"}},{"v":0,"d":"$0.00"}]
["LTC",null,null,{"$f":"Jurat!I$1","v":0},{"$f":"Jurat!D$33","v":"00:00:00"},"Q2","2017-06-30","Region 2","Operating Expense","Medical Expense","NF & Hospice","2.9","NF & Hospice Settlements",{"$f":"'LTC Rev-Exp Region 2'!H$25","v":{"v":0,"d":"$0.00"}},{"$f":"'LTC Rev-Exp Region 2'!I$25","v":{"v":0,"d":"$0.00"}},{"$f":"'LTC Rev-Exp Region 2'!J$25","v":{"v":0,"d":"$0.00"}},{"$f":"'LTC Rev-Exp Region 2'!K$25","v":{"v":0,"d":"$0.00"}},{"v":0,"d":"$0.00"}]
["LTC",null,null,{"$f":"Jurat!I$1","v":0},{"$f":"Jurat!D$33","v":"00:00:00"},"Q2","2017-06-30","Region 2","Operating Expense","Medical Expense","LTC Services","2.11","Assisted Living FFS",{"$f":"'LTC Rev-Exp Region 2'!H$27","v":{"v":0,"d":"$0.00"}},{"$f":"'LTC Rev-Exp Region 2'!I$27","v":{"v":0,"d":"$0.00"}},{"$f":"'LTC Rev-Exp Region 2'!J$27","v":{"v":0,"d":"$0.00"}},{"$f":"'LTC Rev-Exp Region 2'!K$27","v":{"v":0,"d":"$0.00"}},{"v":0,"d":"$0.00"}]
["LTC",null,null,{"$f":"Jurat!I$1","v":0},{"$f":"Jurat!D$33","v":"00:00:00"},"Q2","2017-06-30","Region 2","Operating Expense","Medical Expense","LTC Services","2.12","Home Health FFS",{"$f":"'LTC Rev-Exp Region 2'!H$28","v":{"v":0,"d":"$0.00"}},{"$f":"'LTC Rev-Exp Region 2'!I$28","v":{"v":0,"d":"$0.00"}},{"$f":"'LTC Rev-Exp Region 2'!J$28","v":{"v":0,"d":"$0.00"}},{"$f":"'LTC Rev-Exp Region 2'!K$28","v":{"v":0,"d":"$0.00"}},{"v":0,"d":"$0.00"}]
["LTC",null,null,{"$f":"Jurat!I$1","v":0},{"$f":"Jurat!D$33","v":"00:00:00"},"Q2","2017-06-30","Region 2","Operating Expense","Medical Expense","LTC Services","2.13","Medical Equipment/Supplies FFS",{"$f":"'LTC Rev-Exp Region 2'!H$29","v":{"v":0,"d":"$0.00"}},{"$f":"'LTC Rev-Exp Region 2'!I$29","v":{"v":0,"d":"$0.00"}},{"$f":"'LTC Rev-Exp Region 2'!J$29","v":{"v":0,"d":"$0.00"}},{"$f":"'LTC Rev-Exp Region 2'!K$29","v":{"v":0,"d":"$0.00"}},{"v":0,"d":"$0.00"}]
["LTC",null,null,{"$f":"Jurat!I$1","v":0},{"$f":"Jurat!D$33","v":"00:00:00"},"Q2","2017-06-30","Region 2","Operating Expense","Medical Expense","LTC Services","2.14","Therapy FFS",{"$f":"'LTC Rev-Exp Region 2'!H$30","v":{"v":0,"d":"$0.00"}},{"$f":"'LTC Rev-Exp Region 2'!I$30","v":{"v":0,"d":"$0.00"}},{"$f":"'LTC Rev-Exp Region 2'!J$30","v":{"v":0,"d":"$0.00"}},{"$f":"'LTC Rev-Exp Region 2'!K$30","v":{"v":0,"d":"$0.00"}},{"v":0,"d":"$0.00"}]
["LTC",null,null,{"$f":"Jurat!I$1","v":0},{"$f":"Jurat!D$33","v":"00:00:00"},"Q2","2017-06-30","Region 2","Operating Expense","Medical Expense","LTC Services","2.15","Transportation FFS",{"$f":"'LTC Rev-Exp Region 2'!H$31","v":{"v":0,"d":"$0.00"}},{"$f":"'LTC Rev-Exp Region 2'!I$31","v":{"v":0,"d":"$0.00"}},{"$f":"'LTC Rev-Exp Region 2'!J$31","v":{"v":0,"d":"$0.00"}},{"$f":"'LTC Rev-Exp Region 2'!K$31","v":{"v":0,"d":"$0.00"}},{"v":0,"d":"$0.00"}]
["LTC",null,null,{"$f":"Jurat!I$1","v":0},{"$f":"Jurat!D$33","v":"00:00:00"},"Q2","2017-06-30","Region 2","Operating Expense","Medical Expense","LTC Services","2.16","Case Management FFS (Plan Provided)",{"$f":"'LTC Rev-Exp Region 2'!H$32","v":{"v":0,"d":"$0.00"}},{"$f":"'LTC Rev-Exp Region 2'!I$32","v":{"v":0,"d":"$0.00"}},{"$f":"'LTC Rev-Exp Region 2'!J$32","v":{"v":0,"d":"$0.00"}},{"$f":"'LTC Rev-Exp Region 2'!K$32","v":{"v":0,"d":"$0.00"}},{"v":0,"d":"$0.00"}]
["LTC",null,null,{"$f":"Jurat!I$1","v":0},{"$f":"Jurat!D$33","v":"00:00:00"},"Q2","2017-06-30","Region 2","Operating Expense","Medical Expense","LTC Services","2.17","Case Management FF (Non-Plan Provided)",{"$f":"'LTC Rev-Exp Region 2'!H$33","v":{"v":0,"d":"$0.00"}},{"$f":"'LTC Rev-Exp Region 2'!I$33","v":{"v":0,"d":"$0.00"}},{"$f":"'LTC Rev-Exp Region 2'!J$33","v":{"v":0,"d":"$0.00"}},{"$f":"'LTC Rev-Exp Region 2'!K$33","v":{"v":0,"d":"$0.00"}},{"v":0,"d":"$0.00"}]
["LTC",null,null,{"$f":"Jurat!I$1","v":0},{"$f":"Jurat!D$33","v":"00:00:00"},"Q2","2017-06-30","Region 2","Operating Expense","Medical Expense","LTC Services","2.18","HCBS FFS",{"$f":"'LTC Rev-Exp Region 2'!H$34","v":{"v":0,"d":"$0.00"}},{"$f":"'LTC Rev-Exp Region 2'!I$34","v":{"v":0,"d":"$0.00"}},{"$f":"'LTC Rev-Exp Region 2'!J$34","v":{"v":0,"d":"$0.00"}},{"$f":"'LTC Rev-Exp Region 2'!K$34","v":{"v":0,"d":"$0.00"}},{"v":0,"d":"$0.00"}]
["LTC",null,null,{"$f":"Jurat!I$1","v":0},{"$f":"Jurat!D$33","v":"00:00:00"},"Q2","2017-06-30","Region 2","Operating Expense","Medical Expense","LTC Services","2.19","Subcapitated LTC Services",{"$f":"'LTC Rev-Exp Region 2'!H$35","v":{"v":0,"d":"$0.00"}},{"$f":"'LTC Rev-Exp Region 2'!I$35","v":{"v":0,"d":"$0.00"}},{"$f":"'LTC Rev-Exp Region 2'!J$35","v":{"v":0,"d":"$0.00"}},{"$f":"'LTC Rev-Exp Region 2'!K$35","v":{"v":0,"d":"$0.00"}},{"v":0,"d":"$0.00"}]
["LTC",null,null,{"$f":"Jurat!I$1","v":0},{"$f":"Jurat!D$33","v":"00:00:00"},"Q2","2017-06-30","Region 2","Operating Expense","Medical Expense","LTC Services","2.20","Ending IBNP for Long Term Care Services",{"$f":"'LTC Rev-Exp Region 2'!H$36","v":{"v":0,"d":"$0.00"}},{"$f":"'LTC Rev-Exp Region 2'!I$36","v":{"v":0,"d":"$0.00"}},{"$f":"'LTC Rev-Exp Region 2'!J$36","v":{"v":0,"d":"$0.00"}},{"$f":"'LTC Rev-Exp Region 2'!K$36","v":{"v":0,"d":"$0.00"}},{"v":0,"d":"$0.00"}]
["LTC",null,null,{"$f":"Jurat!I$1","v":0},{"$f":"Jurat!D$33","v":"00:00:00"},"Q2","2017-06-30","Region 2","Operating Expense","Medical Expense","LTC Services","2.21","LTC Services Settlements",{"$f":"'LTC Rev-Exp Region 2'!H$37","v":{"v":0,"d":"$0.00"}},{"$f":"'LTC Rev-Exp Region 2'!I$37","v":{"v":0,"d":"$0.00"}},{"$f":"'LTC Rev-Exp Region 2'!J$37","v":{"v":0,"d":"$0.00"}},{"$f":"'LTC Rev-Exp Region 2'!K$37","v":{"v":0,"d":"$0.00"}},{"v":0,"d":"$0.00"}]
["LTC",null,null,{"$f":"Jurat!I$1","v":0},{"$f":"Jurat!D$33","v":"00:00:00"},"Q2","2017-06-30","Region 2","Operating Expense","Medical Expense","Expanded Benefits","3.1","Expanded Benefits FFS",{"$f":"'LTC Rev-Exp Region 2'!H$39","v":{"v":0,"d":"$0.00"}},{"$f":"'LTC Rev-Exp Region 2'!I$39","v":{"v":0,"d":"$0.00"}},{"$f":"'LTC Rev-Exp Region 2'!J$39","v":{"v":0,"d":"$0.00"}},{"$f":"'LTC Rev-Exp Region 2'!K$39","v":{"v":0,"d":"$0.00"}},{"v":0,"d":"$0.00"}]
["LTC",null,null,{"$f":"Jurat!I$1","v":0},{"$f":"Jurat!D$33","v":"00:00:00"},"Q2","2017-06-30","Region 2","Operating Expense","Medical Expense","Expanded Benefits","3.2","Expanded Benefits Subcapitation",{"$f":"'LTC Rev-Exp Region 2'!H$40","v":{"v":0,"d":"$0.00"}},{"$f":"'LTC Rev-Exp Region 2'!I$40","v":{"v":0,"d":"$0.00"}},{"$f":"'LTC Rev-Exp Region 2'!J$40","v":{"v":0,"d":"$0.00"}},{"$f":"'LTC Rev-Exp Region 2'!K$40","v":{"v":0,"d":"$0.00"}},{"v":0,"d":"$0.00"}]
["LTC",null,null,{"$f":"Jurat!I$1","v":0},{"$f":"Jurat!D$33","v":"00:00:00"},"Q2","2017-06-30","Region 2","Operating Expense","Medical Expense","Expanded Benefits","3.3","Ending IBNP for Expanded Benefits",{"$f":"'LTC Rev-Exp Region 2'!H$41","v":{"v":0,"d":"$0.00"}},{"$f":"'LTC Rev-Exp Region 2'!I$41","v":{"v":0,"d":"$0.00"}},{"$f":"'LTC Rev-Exp Region 2'!J$41","v":{"v":0,"d":"$0.00"}},{"$f":"'LTC Rev-Exp Region 2'!K$41","v":{"v":0,"d":"$0.00"}},{"v":0,"d":"$0.00"}]
["LTC",null,null,{"$f":"Jurat!I$1","v":0},{"$f":"Jurat!D$33","v":"00:00:00"},"Q2","2017-06-30","Region 2","Operating Expense","Medical Expense","Expanded Benefits","3.4","Expanded Benefits Settlements",{"$f":"'LTC Rev-Exp Region 2'!H$42","v":{"v":0,"d":"$0.00"}},{"$f":"'LTC Rev-Exp Region 2'!I$42","v":{"v":0,"d":"$0.00"}},{"$f":"'LTC Rev-Exp Region 2'!J$42","v":{"v":0,"d":"$0.00"}},{"$f":"'LTC Rev-Exp Region 2'!K$42","v":{"v":0,"d":"$0.00"}},{"v":0,"d":"$0.00"}]
["LTC",null,null,{"$f":"Jurat!I$1","v":0},{"$f":"Jurat!D$33","v":"00:00:00"},"Q2","2017-06-30","Region 2","Operating Expense","Medical Expense","Other Medical","4.5","TPL & Fraud/Abuse Recoveries",{"$f":"'LTC Rev-Exp Region 2'!H$48","v":{"v":0,"d":"$0.00"}},{"$f":"'LTC Rev-Exp Region 2'!I$48","v":{"v":0,"d":"$0.00"}},{"$f":"'LTC Rev-Exp Region 2'!J$48","v":{"v":0,"d":"$0.00"}},{"$f":"'LTC Rev-Exp Region 2'!K$48","v":{"v":0,"d":"$0.00"}},{"v":0,"d":"$0.00"}]
["LTC",null,null,{"$f":"Jurat!I$1","v":0},{"$f":"Jurat!D$33","v":"00:00:00"},"Q2","2017-06-30","Region 2","Operating Expense","Medical Expense","Other Medical","4.6.1","Premium Deficiency Reserve",{"$f":"'LTC Rev-Exp Region 2'!H$49","v":{"v":0,"d":"$0.00"}},{"$f":"'LTC Rev-Exp Region 2'!I$49","v":{"v":0,"d":"$0.00"}},{"$f":"'LTC Rev-Exp Region 2'!J$49","v":{"v":0,"d":"$0.00"}},{"$f":"'LTC Rev-Exp Region 2'!K$49","v":{"v":0,"d":"$0.00"}},{"v":0,"d":"$0.00"}]
["LTC",null,null,{"$f":"Jurat!I$1","v":0},{"$f":"Jurat!D$33","v":"00:00:00"},"Q2","2017-06-30","Region 2","Operating Expense","Medical Expense","Other Medical","4.8","Reinsurance Premiums",{"$f":"'LTC Rev-Exp Region 2'!H$51","v":{"v":0,"d":"$0.00"}},{"$f":"'LTC Rev-Exp Region 2'!I$51","v":{"v":0,"d":"$0.00"}},{"$f":"'LTC Rev-Exp Region 2'!J$51","v":{"v":0,"d":"$0.00"}},{"$f":"'LTC Rev-Exp Region 2'!K$51","v":{"v":0,"d":"$0.00"}},{"v":0,"d":"$0.00"}]
["LTC",null,null,{"$f":"Jurat!I$1","v":0},{"$f":"Jurat!D$33","v":"00:00:00"},"Q2","2017-06-30","Region 2","Operating Expense","Medical Expense","Other Medical","4.9","Reinsurance Recoveries",{"$f":"'LTC Rev-Exp Region 2'!H$52","v":{"v":0,"d":"$0.00"}},{"$f":"'LTC Rev-Exp Region 2'!I$52","v":{"v":0,"d":"$0.00"}},{"$f":"'LTC Rev-Exp Region 2'!J$52","v":{"v":0,"d":"$0.00"}},{"$f":"'LTC Rev-Exp Region 2'!K$52","v":{"v":0,"d":"$0.00"}},{"v":0,"d":"$0.00"}]
["LTC",null,null,{"$f":"Jurat!I$1","v":0},{"$f":"Jurat!D$33","v":"00:00:00"},"Q2","2017-06-30","Region 2","Operating Expense","Administrative Expense","Administrative","5.1","Salaries & Benefits",{"$f":"'LTC Rev-Exp Region 2'!H$57","v":{"v":0,"d":"$0.00"}},{"$f":"'LTC Rev-Exp Region 2'!I$57","v":{"v":0,"d":"$0.00"}},{"$f":"'LTC Rev-Exp Region 2'!J$57","v":{"v":0,"d":"$0.00"}},{"$f":"'LTC Rev-Exp Region 2'!K$57","v":{"v":0,"d":"$0.00"}},{"v":0,"d":"$0.00"}]
["LTC",null,null,{"$f":"Jurat!I$1","v":0},{"$f":"Jurat!D$33","v":"00:00:00"},"Q2","2017-06-30","Region 2","Operating Expense","Administrative Expense","Administrative","5.2","Administrative Services",{"$f":"'LTC Rev-Exp Region 2'!H$58","v":{"v":0,"d":"$0.00"}},{"$f":"'LTC Rev-Exp Region 2'!I$58","v":{"v":0,"d":"$0.00"}},{"$f":"'LTC Rev-Exp Region 2'!J$58","v":{"v":0,"d":"$0.00"}},{"$f":"'LTC Rev-Exp Region 2'!K$58","v":{"v":0,"d":"$0.00"}},{"v":0,"d":"$0.00"}]
["LTC",null,null,{"$f":"Jurat!I$1","v":0},{"$f":"Jurat!D$33","v":"00:00:00"},"Q2","2017-06-30","Region 2","Operating Expense","Administrative Expense","Administrative","5.3","Information Systems",{"$f":"'LTC Rev-Exp Region 2'!H$59","v":{"v":0,"d":"$0.00"}},{"$f":"'LTC Rev-Exp Region 2'!I$59","v":{"v":0,"d":"$0.00"}},{"$f":"'LTC Rev-Exp Region 2'!J$59","v":{"v":0,"d":"$0.00"}},{"$f":"'LTC Rev-Exp Region 2'!K$59","v":{"v":0,"d":"$0.00"}},{"v":0,"d":"$0.00"}]
["LTC",null,null,{"$f":"Jurat!I$1","v":0},{"$f":"Jurat!D$33","v":"00:00:00"},"Q2","2017-06-30","Region 2","Operating Expense","Administrative Expense","Administrative","5.4","Marketing Expenses",{"$f":"'LTC Rev-Exp Region 2'!H$60","v":{"v":0,"d":"$0.00"}},{"$f":"'LTC Rev-Exp Region 2'!I$60","v":{"v":0,"d":"$0.00"}},{"$f":"'LTC Rev-Exp Region 2'!J$60","v":{"v":0,"d":"$0.00"}},{"$f":"'LTC Rev-Exp Region 2'!K$60","v":{"v":0,"d":"$0.00"}},{"v":0,"d":"$0.00"}]
["LTC",null,null,{"$f":"Jurat!I$1","v":0},{"$f":"Jurat!D$33","v":"00:00:00"},"Q2","2017-06-30","Region 2","Operating Expense","Administrative Expense","Administrative","5.5","General  Administration",{"$f":"'LTC Rev-Exp Region 2'!H$61","v":{"v":0,"d":"$0.00"}},{"$f":"'LTC Rev-Exp Region 2'!I$61","v":{"v":0,"d":"$0.00"}},{"$f":"'LTC Rev-Exp Region 2'!J$61","v":{"v":0,"d":"$0.00"}},{"$f":"'LTC Rev-Exp Region 2'!K$61","v":{"v":0,"d":"$0.00"}},{"v":0,"d":"$0.00"}]
["LTC",null,null,{"$f":"Jurat!I$1","v":0},{"$f":"Jurat!D$33","v":"00:00:00"},"Q2","2017-06-30","Region 2","Operating Expense","Administrative Expense","Administrative","5.6","Compliance/Regulatory",{"$f":"'LTC Rev-Exp Region 2'!H$62","v":{"v":0,"d":"$0.00"}},{"$f":"'LTC Rev-Exp Region 2'!I$62","v":{"v":0,"d":"$0.00"}},{"$f":"'LTC Rev-Exp Region 2'!J$62","v":{"v":0,"d":"$0.00"}},{"$f":"'LTC Rev-Exp Region 2'!K$62","v":{"v":0,"d":"$0.00"}},{"v":0,"d":"$0.00"}]
["LTC",null,null,{"$f":"Jurat!I$1","v":0},{"$f":"Jurat!D$33","v":"00:00:00"},"Q2","2017-06-30","Region 2","Operating Expense","Taxes & Fees","Taxes & Fees","6.1","State Premium Tax",{"$f":"'LTC Rev-Exp Region 2'!H$64","v":{"v":0,"d":"$0.00"}},{"v":0,"d":"$0.00"},{"v":0,"d":"$0.00"},{"v":0,"d":"$0.00"},{"v":0,"d":"$0.00"}]
["LTC",null,null,{"$f":"Jurat!I$1","v":0},{"$f":"Jurat!D$33","v":"00:00:00"},"Q2","2017-06-30","Region 2","Operating Expense","Taxes & Fees","Taxes & Fees","6.2","Department of Insurance Assessments",{"$f":"'LTC Rev-Exp Region 2'!H$65","v":{"v":0,"d":"$0.00"}},{"v":0,"d":"$0.00"},{"v":0,"d":"$0.00"},{"v":0,"d":"$0.00"},{"v":0,"d":"$0.00"}]
["LTC",null,null,{"$f":"Jurat!I$1","v":0},{"$f":"Jurat!D$33","v":"00:00:00"},"Q2","2017-06-30","Region 2","Non-Operating Expense","Income Tax Expense","Income Tax Expense","9.0","Income Tax Expense",{"$f":"'LTC Rev-Exp Region 2'!H$72","v":{"v":0,"d":"$0.00"}},{"v":0,"d":"$0.00"},{"v":0,"d":"$0.00"},{"v":0,"d":"$0.00"},{"v":0,"d":"$0.00"}]
["LTC",null,null,{"$f":"Jurat!I$1","v":0},{"$f":"Jurat!D$33","v":"00:00:00"},"Q3","2017-09-30","Region 2","Member Months","Member Months","Member Months",null,"Member Months",{"$f":"'LTC Rev-Exp Region 2'!L$9","v":{"v":0,"d":"$0.00"}},{"$f":"'LTC Rev-Exp Region 2'!M$9","v":{"v":0,"d":"$0.00"}},{"$f":"'LTC Rev-Exp Region 2'!N$9","v":{"v":0,"d":"$0.00"}},{"$f":"'LTC Rev-Exp Region 2'!O$9","v":{"v":0,"d":"$0.00"}},{"v":0,"d":"$0.00"}]
["LTC",null,null,{"$f":"Jurat!I$1","v":0},{"$f":"Jurat!D$33","v":"00:00:00"},"Q3","2017-09-30","Region 2","Operating Revenue","Capitation","Capitation",1.1,"Capitation",{"$f":"'LTC Rev-Exp Region 2'!L$11","v":{"v":0,"d":"$0.00"}},{"$f":"'LTC Rev-Exp Region 2'!M$11","v":{"v":0,"d":"$0.00"}},{"$f":"'LTC Rev-Exp Region 2'!N$11","v":{"v":0,"d":"$0.00"}},{"$f":"'LTC Rev-Exp Region 2'!O$11","v":{"v":0,"d":"$0.00"}},{"v":0,"d":"$0.00"}]
["LTC",null,null,{"$f":"Jurat!I$1","v":0},{"$f":"Jurat!D$33","v":"00:00:00"},"Q3","2017-09-30","Region 2","Operating Revenue","Capitation","NH Rate Reconciliation",1.2,"NH Rate Reconciliation",{"$f":"'LTC Rev-Exp Region 2'!L$12","v":{"v":0,"d":"$0.00"}},{"$f":"'LTC Rev-Exp Region 2'!M$12","v":{"v":0,"d":"$0.00"}},{"$f":"'LTC Rev-Exp Region 2'!N$12","v":{"v":0,"d":"$0.00"}},{"$f":"'LTC Rev-Exp Region 2'!O$12","v":{"v":0,"d":"$0.00"}},{"v":0,"d":"$0.00"}]
["LTC",null,null,{"$f":"Jurat!I$1","v":0},{"$f":"Jurat!D$33","v":"00:00:00"},"Q3","2017-09-30","Region 2","Operating Revenue","Other Revenue","Other Revenue",1.3,"Other Revenue",{"$f":"'LTC Rev-Exp Region 2'!L$13","v":{"v":0,"d":"$0.00"}},{"$f":"'LTC Rev-Exp Region 2'!M$13","v":{"v":0,"d":"$0.00"}},{"$f":"'LTC Rev-Exp Region 2'!N$13","v":{"v":0,"d":"$0.00"}},{"$f":"'LTC Rev-Exp Region 2'!O$13","v":{"v":0,"d":"$0.00"}},{"v":0,"d":"$0.00"}]
["LTC",null,null,{"$f":"Jurat!I$1","v":0},{"$f":"Jurat!D$33","v":"00:00:00"},"Q3","2017-09-30","Region 2","Operating Expense","Medical Expense","NF & Hospice","2.1","Nursing Facility Days (Medicaid)",{"$f":"'LTC Rev-Exp Region 2'!L$17","v":{"v":0,"d":"$0.00"}},{"$f":"'LTC Rev-Exp Region 2'!M$17","v":{"v":0,"d":"$0.00"}},{"$f":"'LTC Rev-Exp Region 2'!N$17","v":{"v":0,"d":"$0.00"}},{"$f":"'LTC Rev-Exp Region 2'!O$17","v":{"v":0,"d":"$0.00"}},{"v":0,"d":"$0.00"}]
["LTC",null,null,{"$f":"Jurat!I$1","v":0},{"$f":"Jurat!D$33","v":"00:00:00"},"Q3","2017-09-30","Region 2","Operating Expense","Medical Expense","NF & Hospice","2.2","Nursing Facility Days (Crossover)",{"$f":"'LTC Rev-Exp Region 2'!L$18","v":{"v":0,"d":"$0.00"}},{"$f":"'LTC Rev-Exp Region 2'!M$18","v":{"v":0,"d":"$0.00"}},{"$f":"'LTC Rev-Exp Region 2'!N$18","v":{"v":0,"d":"$0.00"}},{"$f":"'LTC Rev-Exp Region 2'!O$18","v":{"v":0,"d":"$0.00"}},{"v":0,"d":"$0.00"}]
["LTC",null,null,{"$f":"Jurat!I$1","v":0},{"$f":"Jurat!D$33","v":"00:00:00"},"Q3","2017-09-30","Region 2","Operating Expense","Medical Expense","NF & Hospice","2.3","Nursing Facility FFS (Medicaid)",{"$f":"'LTC Rev-Exp Region 2'!L$19","v":{"v":0,"d":"$0.00"}},{"$f":"'LTC Rev-Exp Region 2'!M$19","v":{"v":0,"d":"$0.00"}},{"$f":"'LTC Rev-Exp Region 2'!N$19","v":{"v":0,"d":"$0.00"}},{"$f":"'LTC Rev-Exp Region 2'!O$19","v":{"v":0,"d":"$0.00"}},{"v":0,"d":"$0.00"}]
["LTC",null,null,{"$f":"Jurat!I$1","v":0},{"$f":"Jurat!D$33","v":"00:00:00"},"Q3","2017-09-30","Region 2","Operating Expense","Medical Expense","NF & Hospice","2.4","Nursing Facility FFS (Crossover)",{"$f":"'LTC Rev-Exp Region 2'!L$20","v":{"v":0,"d":"$0.00"}},{"$f":"'LTC Rev-Exp Region 2'!M$20","v":{"v":0,"d":"$0.00"}},{"$f":"'LTC Rev-Exp Region 2'!N$20","v":{"v":0,"d":"$0.00"}},{"$f":"'LTC Rev-Exp Region 2'!O$20","v":{"v":0,"d":"$0.00"}},{"v":0,"d":"$0.00"}]
["LTC",null,null,{"$f":"Jurat!I$1","v":0},{"$f":"Jurat!D$33","v":"00:00:00"},"Q3","2017-09-30","Region 2","Operating Expense","Medical Expense","NF & Hospice","2.5","Hospice Days",{"$f":"'LTC Rev-Exp Region 2'!L$21","v":{"v":0,"d":"$0.00"}},{"$f":"'LTC Rev-Exp Region 2'!M$21","v":{"v":0,"d":"$0.00"}},{"$f":"'LTC Rev-Exp Region 2'!N$21","v":{"v":0,"d":"$0.00"}},{"$f":"'LTC Rev-Exp Region 2'!O$21","v":{"v":0,"d":"$0.00"}},{"v":0,"d":"$0.00"}]
["LTC",null,null,{"$f":"Jurat!I$1","v":0},{"$f":"Jurat!D$33","v":"00:00:00"},"Q3","2017-09-30","Region 2","Operating Expense","Medical Expense","NF & Hospice","2.6","Hospice FFS",{"$f":"'LTC Rev-Exp Region 2'!L$22","v":{"v":0,"d":"$0.00"}},{"$f":"'LTC Rev-Exp Region 2'!M$22","v":{"v":0,"d":"$0.00"}},{"$f":"'LTC Rev-Exp Region 2'!N$22","v":{"v":0,"d":"$0.00"}},{"$f":"'LTC Rev-Exp Region 2'!O$22","v":{"v":0,"d":"$0.00"}},{"v":0,"d":"$0.00"}]
["LTC",null,null,{"$f":"Jurat!I$1","v":0},{"$f":"Jurat!D$33","v":"00:00:00"},"Q3","2017-09-30","Region 2","Operating Expense","Medical Expense","NF & Hospice","2.7","Ending IBNP for NF & Hospice",{"$f":"'LTC Rev-Exp Region 2'!L$23","v":{"v":0,"d":"$0.00"}},{"$f":"'LTC Rev-Exp Region 2'!M$23","v":{"v":0,"d":"$0.00"}},{"$f":"'LTC Rev-Exp Region 2'!N$23","v":{"v":0,"d":"$0.00"}},{"$f":"'LTC Rev-Exp Region 2'!O$23","v":{"v":0,"d":"$0.00"}},{"v":0,"d":"$0.00"}]
["LTC",null,null,{"$f":"Jurat!I$1","v":0},{"$f":"Jurat!D$33","v":"00:00:00"},"Q3","2017-09-30","Region 2","Operating Expense","Medical Expense","NF & Hospice","2.8","NF & Hospice Subcapitated",{"$f":"'LTC Rev-Exp Region 2'!L$24","v":{"v":0,"d":"$0.00"}},{"$f":"'LTC Rev-Exp Region 2'!M$24","v":{"v":0,"d":"$0.00"}},{"$f":"'LTC Rev-Exp Region 2'!N$24","v":{"v":0,"d":"$0.00"}},{"$f":"'LTC Rev-Exp Region 2'!O$24","v":{"v":0,"d":"$0.00"}},{"v":0,"d":"$0.00"}]
["LTC",null,null,{"$f":"Jurat!I$1","v":0},{"$f":"Jurat!D$33","v":"00:00:00"},"Q3","2017-09-30","Region 2","Operating Expense","Medical Expense","NF & Hospice","2.9","NF & Hospice Settlements",{"$f":"'LTC Rev-Exp Region 2'!L$25","v":{"v":0,"d":"$0.00"}},{"$f":"'LTC Rev-Exp Region 2'!M$25","v":{"v":0,"d":"$0.00"}},{"$f":"'LTC Rev-Exp Region 2'!N$25","v":{"v":0,"d":"$0.00"}},{"$f":"'LTC Rev-Exp Region 2'!O$25","v":{"v":0,"d":"$0.00"}},{"v":0,"d":"$0.00"}]
["LTC",null,null,{"$f":"Jurat!I$1","v":0},{"$f":"Jurat!D$33","v":"00:00:00"},"Q3","2017-09-30","Region 2","Operating Expense","Medical Expense","LTC Services","2.11","Assisted Living FFS",{"$f":"'LTC Rev-Exp Region 2'!L$27","v":{"v":0,"d":"$0.00"}},{"$f":"'LTC Rev-Exp Region 2'!M$27","v":{"v":0,"d":"$0.00"}},{"$f":"'LTC Rev-Exp Region 2'!N$27","v":{"v":0,"d":"$0.00"}},{"$f":"'LTC Rev-Exp Region 2'!O$27","v":{"v":0,"d":"$0.00"}},{"v":0,"d":"$0.00"}]
["LTC",null,null,{"$f":"Jurat!I$1","v":0},{"$f":"Jurat!D$33","v":"00:00:00"},"Q3","2017-09-30","Region 2","Operating Expense","Medical Expense","LTC Services","2.12","Home Health FFS",{"$f":"'LTC Rev-Exp Region 2'!L$28","v":{"v":0,"d":"$0.00"}},{"$f":"'LTC Rev-Exp Region 2'!M$28","v":{"v":0,"d":"$0.00"}},{"$f":"'LTC Rev-Exp Region 2'!N$28","v":{"v":0,"d":"$0.00"}},{"$f":"'LTC Rev-Exp Region 2'!O$28","v":{"v":0,"d":"$0.00"}},{"v":0,"d":"$0.00"}]
["LTC",null,null,{"$f":"Jurat!I$1","v":0},{"$f":"Jurat!D$33","v":"00:00:00"},"Q3","2017-09-30","Region 2","Operating Expense","Medical Expense","LTC Services","2.13","Medical Equipment/Supplies FFS",{"$f":"'LTC Rev-Exp Region 2'!L$29","v":{"v":0,"d":"$0.00"}},{"$f":"'LTC Rev-Exp Region 2'!M$29","v":{"v":0,"d":"$0.00"}},{"$f":"'LTC Rev-Exp Region 2'!N$29","v":{"v":0,"d":"$0.00"}},{"$f":"'LTC Rev-Exp Region 2'!O$29","v":{"v":0,"d":"$0.00"}},{"v":0,"d":"$0.00"}]
["LTC",null,null,{"$f":"Jurat!I$1","v":0},{"$f":"Jurat!D$33","v":"00:00:00"},"Q3","2017-09-30","Region 2","Operating Expense","Medical Expense","LTC Services","2.14","Therapy FFS",{"$f":"'LTC Rev-Exp Region 2'!L$30","v":{"v":0,"d":"$0.00"}},{"$f":"'LTC Rev-Exp Region 2'!M$30","v":{"v":0,"d":"$0.00"}},{"$f":"'LTC Rev-Exp Region 2'!N$30","v":{"v":0,"d":"$0.00"}},{"$f":"'LTC Rev-Exp Region 2'!O$30","v":{"v":0,"d":"$0.00"}},{"v":0,"d":"$0.00"}]
["LTC",null,null,{"$f":"Jurat!I$1","v":0},{"$f":"Jurat!D$33","v":"00:00:00"},"Q3","2017-09-30","Region 2","Operating Expense","Medical Expense","LTC Services","2.15","Transportation FFS",{"$f":"'LTC Rev-Exp Region 2'!L$31","v":{"v":0,"d":"$0.00"}},{"$f":"'LTC Rev-Exp Region 2'!M$31","v":{"v":0,"d":"$0.00"}},{"$f":"'LTC Rev-Exp Region 2'!N$31","v":{"v":0,"d":"$0.00"}},{"$f":"'LTC Rev-Exp Region 2'!O$31","v":{"v":0,"d":"$0.00"}},{"v":0,"d":"$0.00"}]
["LTC",null,null,{"$f":"Jurat!I$1","v":0},{"$f":"Jurat!D$33","v":"00:00:00"},"Q3","2017-09-30","Region 2","Operating Expense","Medical Expense","LTC Services","2.16","Case Management FFS (Plan Provided)",{"$f":"'LTC Rev-Exp Region 2'!L$32","v":{"v":0,"d":"$0.00"}},{"$f":"'LTC Rev-Exp Region 2'!M$32","v":{"v":0,"d":"$0.00"}},{"$f":"'LTC Rev-Exp Region 2'!N$32","v":{"v":0,"d":"$0.00"}},{"$f":"'LTC Rev-Exp Region 2'!O$32","v":{"v":0,"d":"$0.00"}},{"v":0,"d":"$0.00"}]
["LTC",null,null,{"$f":"Jurat!I$1","v":0},{"$f":"Jurat!D$33","v":"00:00:00"},"Q3","2017-09-30","Region 2","Operating Expense","Medical Expense","LTC Services","2.17","Case Management FF (Non-Plan Provided)",{"$f":"'LTC Rev-Exp Region 2'!L$33","v":{"v":0,"d":"$0.00"}},{"$f":"'LTC Rev-Exp Region 2'!M$33","v":{"v":0,"d":"$0.00"}},{"$f":"'LTC Rev-Exp Region 2'!N$33","v":{"v":0,"d":"$0.00"}},{"$f":"'LTC Rev-Exp Region 2'!O$33","v":{"v":0,"d":"$0.00"}},{"v":0,"d":"$0.00"}]
["LTC",null,null,{"$f":"Jurat!I$1","v":0},{"$f":"Jurat!D$33","v":"00:00:00"},"Q3","2017-09-30","Region 2","Operating Expense","Medical Expense","LTC Services","2.18","HCBS FFS",{"$f":"'LTC Rev-Exp Region 2'!L$34","v":{"v":0,"d":"$0.00"}},{"$f":"'LTC Rev-Exp Region 2'!M$34","v":{"v":0,"d":"$0.00"}},{"$f":"'LTC Rev-Exp Region 2'!N$34","v":{"v":0,"d":"$0.00"}},{"$f":"'LTC Rev-Exp Region 2'!O$34","v":{"v":0,"d":"$0.00"}},{"v":0,"d":"$0.00"}]
["LTC",null,null,{"$f":"Jurat!I$1","v":0},{"$f":"Jurat!D$33","v":"00:00:00"},"Q3","2017-09-30","Region 2","Operating Expense","Medical Expense","LTC Services","2.19","Subcapitated LTC Services",{"$f":"'LTC Rev-Exp Region 2'!L$35","v":{"v":0,"d":"$0.00"}},{"$f":"'LTC Rev-Exp Region 2'!M$35","v":{"v":0,"d":"$0.00"}},{"$f":"'LTC Rev-Exp Region 2'!N$35","v":{"v":0,"d":"$0.00"}},{"$f":"'LTC Rev-Exp Region 2'!O$35","v":{"v":0,"d":"$0.00"}},{"v":0,"d":"$0.00"}]
["LTC",null,null,{"$f":"Jurat!I$1","v":0},{"$f":"Jurat!D$33","v":"00:00:00"},"Q3","2017-09-30","Region 2","Operating Expense","Medical Expense","LTC Services","2.20","Ending IBNP for Long Term Care Services",{"$f":"'LTC Rev-Exp Region 2'!L$36","v":{"v":0,"d":"$0.00"}},{"$f":"'LTC Rev-Exp Region 2'!M$36","v":{"v":0,"d":"$0.00"}},{"$f":"'LTC Rev-Exp Region 2'!N$36","v":{"v":0,"d":"$0.00"}},{"$f":"'LTC Rev-Exp Region 2'!O$36","v":{"v":0,"d":"$0.00"}},{"v":0,"d":"$0.00"}]
["LTC",null,null,{"$f":"Jurat!I$1","v":0},{"$f":"Jurat!D$33","v":"00:00:00"},"Q3","2017-09-30","Region 2","Operating Expense","Medical Expense","LTC Services","2.21","LTC Services Settlements",{"$f":"'LTC Rev-Exp Region 2'!L$37","v":{"v":0,"d":"$0.00"}},{"$f":"'LTC Rev-Exp Region 2'!M$37","v":{"v":0,"d":"$0.00"}},{"$f":"'LTC Rev-Exp Region 2'!N$37","v":{"v":0,"d":"$0.00"}},{"$f":"'LTC Rev-Exp Region 2'!O$37","v":{"v":0,"d":"$0.00"}},{"v":0,"d":"$0.00"}]
["LTC",null,null,{"$f":"Jurat!I$1","v":0},{"$f":"Jurat!D$33","v":"00:00:00"},"Q3","2017-09-30","Region 2","Operating Expense","Medical Expense","Expanded Benefits","3.1","Expanded Benefits FFS",{"$f":"'LTC Rev-Exp Region 2'!L$39","v":{"v":0,"d":"$0.00"}},{"$f":"'LTC Rev-Exp Region 2'!M$39","v":{"v":0,"d":"$0.00"}},{"$f":"'LTC Rev-Exp Region 2'!N$39","v":{"v":0,"d":"$0.00"}},{"$f":"'LTC Rev-Exp Region 2'!O$39","v":{"v":0,"d":"$0.00"}},{"v":0,"d":"$0.00"}]
["LTC",null,null,{"$f":"Jurat!I$1","v":0},{"$f":"Jurat!D$33","v":"00:00:00"},"Q3","2017-09-30","Region 2","Operating Expense","Medical Expense","Expanded Benefits","3.2","Expanded Benefits Subcapitation",{"$f":"'LTC Rev-Exp Region 2'!L$40","v":{"v":0,"d":"$0.00"}},{"$f":"'LTC Rev-Exp Region 2'!M$40","v":{"v":0,"d":"$0.00"}},{"$f":"'LTC Rev-Exp Region 2'!N$40","v":{"v":0,"d":"$0.00"}},{"$f":"'LTC Rev-Exp Region 2'!O$40","v":{"v":0,"d":"$0.00"}},{"v":0,"d":"$0.00"}]
["LTC",null,null,{"$f":"Jurat!I$1","v":0},{"$f":"Jurat!D$33","v":"00:00:00"},"Q3","2017-09-30","Region 2","Operating Expense","Medical Expense","Expanded Benefits","3.3","Ending IBNP for Expanded Benefits",{"$f":"'LTC Rev-Exp Region 2'!L$41","v":{"v":0,"d":"$0.00"}},{"$f":"'LTC Rev-Exp Region 2'!M$41","v":{"v":0,"d":"$0.00"}},{"$f":"'LTC Rev-Exp Region 2'!N$41","v":{"v":0,"d":"$0.00"}},{"$f":"'LTC Rev-Exp Region 2'!O$41","v":{"v":0,"d":"$0.00"}},{"v":0,"d":"$0.00"}]
["LTC",null,null,{"$f":"Jurat!I$1","v":0},{"$f":"Jurat!D$33","v":"00:00:00"},"Q3","2017-09-30","Region 2","Operating Expense","Medical Expense","Expanded Benefits","3.4","Expanded Benefits Settlements",{"$f":"'LTC Rev-Exp Region 2'!L$42","v":{"v":0,"d":"$0.00"}},{"$f":"'LTC Rev-Exp Region 2'!M$42","v":{"v":0,"d":"$0.00"}},{"$f":"'LTC Rev-Exp Region 2'!N$42","v":{"v":0,"d":"$0.00"}},{"$f":"'LTC Rev-Exp Region 2'!O$42","v":{"v":0,"d":"$0.00"}},{"v":0,"d":"$0.00"}]
["LTC",null,null,{"$f":"Jurat!I$1","v":0},{"$f":"Jurat!D$33","v":"00:00:00"},"Q3","2017-09-30","Region 2","Operating Expense","Medical Expense","Other Medical","4.5","TPL & Fraud/Abuse Recoveries",{"$f":"'LTC Rev-Exp Region 2'!L$48","v":{"v":0,"d":"$0.00"}},{"$f":"'LTC Rev-Exp Region 2'!M$48","v":{"v":0,"d":"$0.00"}},{"$f":"'LTC Rev-Exp Region 2'!N$48","v":{"v":0,"d":"$0.00"}},{"$f":"'LTC Rev-Exp Region 2'!O$48","v":{"v":0,"d":"$0.00"}},{"v":0,"d":"$0.00"}]
["LTC",null,null,{"$f":"Jurat!I$1","v":0},{"$f":"Jurat!D$33","v":"00:00:00"},"Q3","2017-09-30","Region 2","Operating Expense","Medical Expense","Other Medical","4.6.1","Premium Deficiency Reserve",{"$f":"'LTC Rev-Exp Region 2'!L$49","v":{"v":0,"d":"$0.00"}},{"$f":"'LTC Rev-Exp Region 2'!M$49","v":{"v":0,"d":"$0.00"}},{"$f":"'LTC Rev-Exp Region 2'!N$49","v":{"v":0,"d":"$0.00"}},{"$f":"'LTC Rev-Exp Region 2'!O$49","v":{"v":0,"d":"$0.00"}},{"v":0,"d":"$0.00"}]
["LTC",null,null,{"$f":"Jurat!I$1","v":0},{"$f":"Jurat!D$33","v":"00:00:00"},"Q3","2017-09-30","Region 2","Operating Expense","Medical Expense","Other Medical","4.8","Reinsurance Premiums",{"$f":"'LTC Rev-Exp Region 2'!L$51","v":{"v":0,"d":"$0.00"}},{"$f":"'LTC Rev-Exp Region 2'!M$51","v":{"v":0,"d":"$0.00"}},{"$f":"'LTC Rev-Exp Region 2'!N$51","v":{"v":0,"d":"$0.00"}},{"$f":"'LTC Rev-Exp Region 2'!O$51","v":{"v":0,"d":"$0.00"}},{"v":0,"d":"$0.00"}]
["LTC",null,null,{"$f":"Jurat!I$1","v":0},{"$f":"Jurat!D$33","v":"00:00:00"},"Q3","2017-09-30","Region 2","Operating Expense","Medical Expense","Other Medical","4.9","Reinsurance Recoveries",{"$f":"'LTC Rev-Exp Region 2'!L$52","v":{"v":0,"d":"$0.00"}},{"$f":"'LTC Rev-Exp Region 2'!M$52","v":{"v":0,"d":"$0.00"}},{"$f":"'LTC Rev-Exp Region 2'!N$52","v":{"v":0,"d":"$0.00"}},{"$f":"'LTC Rev-Exp Region 2'!O$52","v":{"v":0,"d":"$0.00"}},{"v":0,"d":"$0.00"}]
["LTC",null,null,{"$f":"Jurat!I$1","v":0},{"$f":"Jurat!D$33","v":"00:00:00"},"Q3","2017-09-30","Region 2","Operating Expense","Administrative Expense","Administrative","5.1","Salaries & Benefits",{"$f":"'LTC Rev-Exp Region 2'!L$57","v":{"v":0,"d":"$0.00"}},{"$f":"'LTC Rev-Exp Region 2'!M$57","v":{"v":0,"d":"$0.00"}},{"$f":"'LTC Rev-Exp Region 2'!N$57","v":{"v":0,"d":"$0.00"}},{"$f":"'LTC Rev-Exp Region 2'!O$57","v":{"v":0,"d":"$0.00"}},{"v":0,"d":"$0.00"}]
["LTC",null,null,{"$f":"Jurat!I$1","v":0},{"$f":"Jurat!D$33","v":"00:00:00"},"Q3","2017-09-30","Region 2","Operating Expense","Administrative Expense","Administrative","5.2","Administrative Services",{"$f":"'LTC Rev-Exp Region 2'!L$58","v":{"v":0,"d":"$0.00"}},{"$f":"'LTC Rev-Exp Region 2'!M$58","v":{"v":0,"d":"$0.00"}},{"$f":"'LTC Rev-Exp Region 2'!N$58","v":{"v":0,"d":"$0.00"}},{"$f":"'LTC Rev-Exp Region 2'!O$58","v":{"v":0,"d":"$0.00"}},{"v":0,"d":"$0.00"}]
["LTC",null,null,{"$f":"Jurat!I$1","v":0},{"$f":"Jurat!D$33","v":"00:00:00"},"Q3","2017-09-30","Region 2","Operating Expense","Administrative Expense","Administrative","5.3","Information Systems",{"$f":"'LTC Rev-Exp Region 2'!L$59","v":{"v":0,"d":"$0.00"}},{"$f":"'LTC Rev-Exp Region 2'!M$59","v":{"v":0,"d":"$0.00"}},{"$f":"'LTC Rev-Exp Region 2'!N$59","v":{"v":0,"d":"$0.00"}},{"$f":"'LTC Rev-Exp Region 2'!O$59","v":{"v":0,"d":"$0.00"}},{"v":0,"d":"$0.00"}]
["LTC",null,null,{"$f":"Jurat!I$1","v":0},{"$f":"Jurat!D$33","v":"00:00:00"},"Q3","2017-09-30","Region 2","Operating Expense","Administrative Expense","Administrative","5.4","Marketing Expenses",{"$f":"'LTC Rev-Exp Region 2'!L$60","v":{"v":0,"d":"$0.00"}},{"$f":"'LTC Rev-Exp Region 2'!M$60","v":{"v":0,"d":"$0.00"}},{"$f":"'LTC Rev-Exp Region 2'!N$60","v":{"v":0,"d":"$0.00"}},{"$f":"'LTC Rev-Exp Region 2'!O$60","v":{"v":0,"d":"$0.00"}},{"v":0,"d":"$0.00"}]
["LTC",null,null,{"$f":"Jurat!I$1","v":0},{"$f":"Jurat!D$33","v":"00:00:00"},"Q3","2017-09-30","Region 2","Operating Expense","Administrative Expense","Administrative","5.5","General  Administration",{"$f":"'LTC Rev-Exp Region 2'!L$61","v":{"v":0,"d":"$0.00"}},{"$f":"'LTC Rev-Exp Region 2'!M$61","v":{"v":0,"d":"$0.00"}},{"$f":"'LTC Rev-Exp Region 2'!N$61","v":{"v":0,"d":"$0.00"}},{"$f":"'LTC Rev-Exp Region 2'!O$61","v":{"v":0,"d":"$0.00"}},{"v":0,"d":"$0.00"}]
["LTC",null,null,{"$f":"Jurat!I$1","v":0},{"$f":"Jurat!D$33","v":"00:00:00"},"Q3","2017-09-30","Region 2","Operating Expense","Administrative Expense","Administrative","5.6","Compliance/Regulatory",{"$f":"'LTC Rev-Exp Region 2'!L$62","v":{"v":0,"d":"$0.00"}},{"$f":"'LTC Rev-Exp Region 2'!M$62","v":{"v":0,"d":"$0.00"}},{"$f":"'LTC Rev-Exp Region 2'!N$62","v":{"v":0,"d":"$0.00"}},{"$f":"'LTC Rev-Exp Region 2'!O$62","v":{"v":0,"d":"$0.00"}},{"v":0,"d":"$0.00"}]
["LTC",null,null,{"$f":"Jurat!I$1","v":0},{"$f":"Jurat!D$33","v":"00:00:00"},"Q3","2017-09-30","Region 2","Operating Expense","Taxes & Fees","Taxes & Fees","6.1","State Premium Tax",{"$f":"'LTC Rev-Exp Region 2'!L$64","v":{"v":0,"d":"$0.00"}},{"v":0,"d":"$0.00"},{"v":0,"d":"$0.00"},{"v":0,"d":"$0.00"},{"v":0,"d":"$0.00"}]
["LTC",null,null,{"$f":"Jurat!I$1","v":0},{"$f":"Jurat!D$33","v":"00:00:00"},"Q3","2017-09-30","Region 2","Operating Expense","Taxes & Fees","Taxes & Fees","6.2","Department of Insurance Assessments",{"$f":"'LTC Rev-Exp Region 2'!L$65","v":{"v":0,"d":"$0.00"}},{"v":0,"d":"$0.00"},{"v":0,"d":"$0.00"},{"v":0,"d":"$0.00"},{"v":0,"d":"$0.00"}]
["LTC",null,null,{"$f":"Jurat!I$1","v":0},{"$f":"Jurat!D$33","v":"00:00:00"},"Q3","2017-09-30","Region 2","Non-Operating Expense","Income Tax Expense","Income Tax Expense","9.0","Income Tax Expense",{"$f":"'LTC Rev-Exp Region 2'!L$72","v":{"v":0,"d":"$0.00"}},{"v":0,"d":"$0.00"},{"v":0,"d":"$0.00"},{"v":0,"d":"$0.00"},{"v":0,"d":"$0.00"}]
["LTC",null,null,{"$f":"Jurat!I$1","v":0},{"$f":"Jurat!D$33","v":"00:00:00"},"Q4","2017-12-31","Region 2","Member Months","Member Months","Member Months",null,"Member Months",{"$f":"'LTC Rev-Exp Region 2'!P$9","v":{"v":0,"d":"$0.00"}},{"$f":"'LTC Rev-Exp Region 2'!Q$9","v":{"v":0,"d":"$0.00"}},{"$f":"'LTC Rev-Exp Region 2'!R$9","v":{"v":0,"d":"$0.00"}},{"$f":"'LTC Rev-Exp Region 2'!S$9","v":{"v":0,"d":"$0.00"}},{"v":0,"d":"$0.00"}]
["LTC",null,null,{"$f":"Jurat!I$1","v":0},{"$f":"Jurat!D$33","v":"00:00:00"},"Q4","2017-12-31","Region 2","Operating Revenue","Capitation","Capitation",1.1,"Capitation",{"$f":"'LTC Rev-Exp Region 2'!P$11","v":{"v":0,"d":"$0.00"}},{"$f":"'LTC Rev-Exp Region 2'!Q$11","v":{"v":0,"d":"$0.00"}},{"$f":"'LTC Rev-Exp Region 2'!R$11","v":{"v":0,"d":"$0.00"}},{"$f":"'LTC Rev-Exp Region 2'!S$11","v":{"v":0,"d":"$0.00"}},{"v":0,"d":"$0.00"}]
["LTC",null,null,{"$f":"Jurat!I$1","v":0},{"$f":"Jurat!D$33","v":"00:00:00"},"Q4","2017-12-31","Region 2","Operating Revenue","Capitation","NH Rate Reconciliation",1.2,"NH Rate Reconciliation",{"$f":"'LTC Rev-Exp Region 2'!P$12","v":{"v":0,"d":"$0.00"}},{"$f":"'LTC Rev-Exp Region 2'!Q$12","v":{"v":0,"d":"$0.00"}},{"$f":"'LTC Rev-Exp Region 2'!R$12","v":{"v":0,"d":"$0.00"}},{"$f":"'LTC Rev-Exp Region 2'!S$12","v":{"v":0,"d":"$0.00"}},{"v":0,"d":"$0.00"}]
["LTC",null,null,{"$f":"Jurat!I$1","v":0},{"$f":"Jurat!D$33","v":"00:00:00"},"Q4","2017-12-31","Region 2","Operating Revenue","Other Revenue","Other Revenue",1.3,"Other Revenue",{"$f":"'LTC Rev-Exp Region 2'!P$13","v":{"v":0,"d":"$0.00"}},{"$f":"'LTC Rev-Exp Region 2'!Q$13","v":{"v":0,"d":"$0.00"}},{"$f":"'LTC Rev-Exp Region 2'!R$13","v":{"v":0,"d":"$0.00"}},{"$f":"'LTC Rev-Exp Region 2'!S$13","v":{"v":0,"d":"$0.00"}},{"v":0,"d":"$0.00"}]
["LTC",null,null,{"$f":"Jurat!I$1","v":0},{"$f":"Jurat!D$33","v":"00:00:00"},"Q4","2017-12-31","Region 2","Operating Expense","Medical Expense","NF & Hospice","2.1","Nursing Facility Days (Medicaid)",{"$f":"'LTC Rev-Exp Region 2'!P$17","v":{"v":0,"d":"$0.00"}},{"$f":"'LTC Rev-Exp Region 2'!Q$17","v":{"v":0,"d":"$0.00"}},{"$f":"'LTC Rev-Exp Region 2'!R$17","v":{"v":0,"d":"$0.00"}},{"$f":"'LTC Rev-Exp Region 2'!S$17","v":{"v":0,"d":"$0.00"}},{"v":0,"d":"$0.00"}]
["LTC",null,null,{"$f":"Jurat!I$1","v":0},{"$f":"Jurat!D$33","v":"00:00:00"},"Q4","2017-12-31","Region 2","Operating Expense","Medical Expense","NF & Hospice","2.2","Nursing Facility Days (Crossover)",{"$f":"'LTC Rev-Exp Region 2'!P$18","v":{"v":0,"d":"$0.00"}},{"$f":"'LTC Rev-Exp Region 2'!Q$18","v":{"v":0,"d":"$0.00"}},{"$f":"'LTC Rev-Exp Region 2'!R$18","v":{"v":0,"d":"$0.00"}},{"$f":"'LTC Rev-Exp Region 2'!S$18","v":{"v":0,"d":"$0.00"}},{"v":0,"d":"$0.00"}]
["LTC",null,null,{"$f":"Jurat!I$1","v":0},{"$f":"Jurat!D$33","v":"00:00:00"},"Q4","2017-12-31","Region 2","Operating Expense","Medical Expense","NF & Hospice","2.3","Nursing Facility FFS (Medicaid)",{"$f":"'LTC Rev-Exp Region 2'!P$19","v":{"v":0,"d":"$0.00"}},{"$f":"'LTC Rev-Exp Region 2'!Q$19","v":{"v":0,"d":"$0.00"}},{"$f":"'LTC Rev-Exp Region 2'!R$19","v":{"v":0,"d":"$0.00"}},{"$f":"'LTC Rev-Exp Region 2'!S$19","v":{"v":0,"d":"$0.00"}},{"v":0,"d":"$0.00"}]
["LTC",null,null,{"$f":"Jurat!I$1","v":0},{"$f":"Jurat!D$33","v":"00:00:00"},"Q4","2017-12-31","Region 2","Operating Expense","Medical Expense","NF & Hospice","2.4","Nursing Facility FFS (Crossover)",{"$f":"'LTC Rev-Exp Region 2'!P$20","v":{"v":0,"d":"$0.00"}},{"$f":"'LTC Rev-Exp Region 2'!Q$20","v":{"v":0,"d":"$0.00"}},{"$f":"'LTC Rev-Exp Region 2'!R$20","v":{"v":0,"d":"$0.00"}},{"$f":"'LTC Rev-Exp Region 2'!S$20","v":{"v":0,"d":"$0.00"}},{"v":0,"d":"$0.00"}]
["LTC",null,null,{"$f":"Jurat!I$1","v":0},{"$f":"Jurat!D$33","v":"00:00:00"},"Q4","2017-12-31","Region 2","Operating Expense","Medical Expense","NF & Hospice","2.5","Hospice Days",{"$f":"'LTC Rev-Exp Region 2'!P$21","v":{"v":0,"d":"$0.00"}},{"$f":"'LTC Rev-Exp Region 2'!Q$21","v":{"v":0,"d":"$0.00"}},{"$f":"'LTC Rev-Exp Region 2'!R$21","v":{"v":0,"d":"$0.00"}},{"$f":"'LTC Rev-Exp Region 2'!S$21","v":{"v":0,"d":"$0.00"}},{"v":0,"d":"$0.00"}]
["LTC",null,null,{"$f":"Jurat!I$1","v":0},{"$f":"Jurat!D$33","v":"00:00:00"},"Q4","2017-12-31","Region 2","Operating Expense","Medical Expense","NF & Hospice","2.6","Hospice FFS",{"$f":"'LTC Rev-Exp Region 2'!P$22","v":{"v":0,"d":"$0.00"}},{"$f":"'LTC Rev-Exp Region 2'!Q$22","v":{"v":0,"d":"$0.00"}},{"$f":"'LTC Rev-Exp Region 2'!R$22","v":{"v":0,"d":"$0.00"}},{"$f":"'LTC Rev-Exp Region 2'!S$22","v":{"v":0,"d":"$0.00"}},{"v":0,"d":"$0.00"}]
["LTC",null,null,{"$f":"Jurat!I$1","v":0},{"$f":"Jurat!D$33","v":"00:00:00"},"Q4","2017-12-31","Region 2","Operating Expense","Medical Expense","NF & Hospice","2.7","Ending IBNP for NF & Hospice",{"$f":"'LTC Rev-Exp Region 2'!P$23","v":{"v":0,"d":"$0.00"}},{"$f":"'LTC Rev-Exp Region 2'!Q$23","v":{"v":0,"d":"$0.00"}},{"$f":"'LTC Rev-Exp Region 2'!R$23","v":{"v":0,"d":"$0.00"}},{"$f":"'LTC Rev-Exp Region 2'!S$23","v":{"v":0,"d":"$0.00"}},{"v":0,"d":"$0.00"}]
["LTC",null,null,{"$f":"Jurat!I$1","v":0},{"$f":"Jurat!D$33","v":"00:00:00"},"Q4","2017-12-31","Region 2","Operating Expense","Medical Expense","NF & Hospice","2.8","NF & Hospice Subcapitated",{"$f":"'LTC Rev-Exp Region 2'!P$24","v":{"v":0,"d":"$0.00"}},{"$f":"'LTC Rev-Exp Region 2'!Q$24","v":{"v":0,"d":"$0.00"}},{"$f":"'LTC Rev-Exp Region 2'!R$24","v":{"v":0,"d":"$0.00"}},{"$f":"'LTC Rev-Exp Region 2'!S$24","v":{"v":0,"d":"$0.00"}},{"v":0,"d":"$0.00"}]
["LTC",null,null,{"$f":"Jurat!I$1","v":0},{"$f":"Jurat!D$33","v":"00:00:00"},"Q4","2017-12-31","Region 2","Operating Expense","Medical Expense","NF & Hospice","2.9","NF & Hospice Settlements",{"$f":"'LTC Rev-Exp Region 2'!P$25","v":{"v":0,"d":"$0.00"}},{"$f":"'LTC Rev-Exp Region 2'!Q$25","v":{"v":0,"d":"$0.00"}},{"$f":"'LTC Rev-Exp Region 2'!R$25","v":{"v":0,"d":"$0.00"}},{"$f":"'LTC Rev-Exp Region 2'!S$25","v":{"v":0,"d":"$0.00"}},{"v":0,"d":"$0.00"}]
["LTC",null,null,{"$f":"Jurat!I$1","v":0},{"$f":"Jurat!D$33","v":"00:00:00"},"Q4","2017-12-31","Region 2","Operating Expense","Medical Expense","LTC Services","2.11","Assisted Living FFS",{"$f":"'LTC Rev-Exp Region 2'!P$27","v":{"v":0,"d":"$0.00"}},{"$f":"'LTC Rev-Exp Region 2'!Q$27","v":{"v":0,"d":"$0.00"}},{"$f":"'LTC Rev-Exp Region 2'!R$27","v":{"v":0,"d":"$0.00"}},{"$f":"'LTC Rev-Exp Region 2'!S$27","v":{"v":0,"d":"$0.00"}},{"v":0,"d":"$0.00"}]
["LTC",null,null,{"$f":"Jurat!I$1","v":0},{"$f":"Jurat!D$33","v":"00:00:00"},"Q4","2017-12-31","Region 2","Operating Expense","Medical Expense","LTC Services","2.12","Home Health FFS",{"$f":"'LTC Rev-Exp Region 2'!P$28","v":{"v":0,"d":"$0.00"}},{"$f":"'LTC Rev-Exp Region 2'!Q$28","v":{"v":0,"d":"$0.00"}},{"$f":"'LTC Rev-Exp Region 2'!R$28","v":{"v":0,"d":"$0.00"}},{"$f":"'LTC Rev-Exp Region 2'!S$28","v":{"v":0,"d":"$0.00"}},{"v":0,"d":"$0.00"}]
["LTC",null,null,{"$f":"Jurat!I$1","v":0},{"$f":"Jurat!D$33","v":"00:00:00"},"Q4","2017-12-31","Region 2","Operating Expense","Medical Expense","LTC Services","2.13","Medical Equipment/Supplies FFS",{"$f":"'LTC Rev-Exp Region 2'!P$29","v":{"v":0,"d":"$0.00"}},{"$f":"'LTC Rev-Exp Region 2'!Q$29","v":{"v":0,"d":"$0.00"}},{"$f":"'LTC Rev-Exp Region 2'!R$29","v":{"v":0,"d":"$0.00"}},{"$f":"'LTC Rev-Exp Region 2'!S$29","v":{"v":0,"d":"$0.00"}},{"v":0,"d":"$0.00"}]
["LTC",null,null,{"$f":"Jurat!I$1","v":0},{"$f":"Jurat!D$33","v":"00:00:00"},"Q4","2017-12-31","Region 2","Operating Expense","Medical Expense","LTC Services","2.14","Therapy FFS",{"$f":"'LTC Rev-Exp Region 2'!P$30","v":{"v":0,"d":"$0.00"}},{"$f":"'LTC Rev-Exp Region 2'!Q$30","v":{"v":0,"d":"$0.00"}},{"$f":"'LTC Rev-Exp Region 2'!R$30","v":{"v":0,"d":"$0.00"}},{"$f":"'LTC Rev-Exp Region 2'!S$30","v":{"v":0,"d":"$0.00"}},{"v":0,"d":"$0.00"}]
["LTC",null,null,{"$f":"Jurat!I$1","v":0},{"$f":"Jurat!D$33","v":"00:00:00"},"Q4","2017-12-31","Region 2","Operating Expense","Medical Expense","LTC Services","2.15","Transportation FFS",{"$f":"'LTC Rev-Exp Region 2'!P$31","v":{"v":0,"d":"$0.00"}},{"$f":"'LTC Rev-Exp Region 2'!Q$31","v":{"v":0,"d":"$0.00"}},{"$f":"'LTC Rev-Exp Region 2'!R$31","v":{"v":0,"d":"$0.00"}},{"$f":"'LTC Rev-Exp Region 2'!S$31","v":{"v":0,"d":"$0.00"}},{"v":0,"d":"$0.00"}]
["LTC",null,null,{"$f":"Jurat!I$1","v":0},{"$f":"Jurat!D$33","v":"00:00:00"},"Q4","2017-12-31","Region 2","Operating Expense","Medical Expense","LTC Services","2.16","Case Management FFS (Plan Provided)",{"$f":"'LTC Rev-Exp Region 2'!P$32","v":{"v":0,"d":"$0.00"}},{"$f":"'LTC Rev-Exp Region 2'!Q$32","v":{"v":0,"d":"$0.00"}},{"$f":"'LTC Rev-Exp Region 2'!R$32","v":{"v":0,"d":"$0.00"}},{"$f":"'LTC Rev-Exp Region 2'!S$32","v":{"v":0,"d":"$0.00"}},{"v":0,"d":"$0.00"}]
["LTC",null,null,{"$f":"Jurat!I$1","v":0},{"$f":"Jurat!D$33","v":"00:00:00"},"Q4","2017-12-31","Region 2","Operating Expense","Medical Expense","LTC Services","2.17","Case Management FF (Non-Plan Provided)",{"$f":"'LTC Rev-Exp Region 2'!P$33","v":{"v":0,"d":"$0.00"}},{"$f":"'LTC Rev-Exp Region 2'!Q$33","v":{"v":0,"d":"$0.00"}},{"$f":"'LTC Rev-Exp Region 2'!R$33","v":{"v":0,"d":"$0.00"}},{"$f":"'LTC Rev-Exp Region 2'!S$33","v":{"v":0,"d":"$0.00"}},{"v":0,"d":"$0.00"}]
["LTC",null,null,{"$f":"Jurat!I$1","v":0},{"$f":"Jurat!D$33","v":"00:00:00"},"Q4","2017-12-31","Region 2","Operating Expense","Medical Expense","LTC Services","2.18","HCBS FFS",{"$f":"'LTC Rev-Exp Region 2'!P$34","v":{"v":0,"d":"$0.00"}},{"$f":"'LTC Rev-Exp Region 2'!Q$34","v":{"v":0,"d":"$0.00"}},{"$f":"'LTC Rev-Exp Region 2'!R$34","v":{"v":0,"d":"$0.00"}},{"$f":"'LTC Rev-Exp Region 2'!S$34","v":{"v":0,"d":"$0.00"}},{"v":0,"d":"$0.00"}]
["LTC",null,null,{"$f":"Jurat!I$1","v":0},{"$f":"Jurat!D$33","v":"00:00:00"},"Q4","2017-12-31","Region 2","Operating Expense","Medical Expense","LTC Services","2.19","Subcapitated LTC Services",{"$f":"'LTC Rev-Exp Region 2'!P$35","v":{"v":0,"d":"$0.00"}},{"$f":"'LTC Rev-Exp Region 2'!Q$35","v":{"v":0,"d":"$0.00"}},{"$f":"'LTC Rev-Exp Region 2'!R$35","v":{"v":0,"d":"$0.00"}},{"$f":"'LTC Rev-Exp Region 2'!S$35","v":{"v":0,"d":"$0.00"}},{"v":0,"d":"$0.00"}]
["LTC",null,null,{"$f":"Jurat!I$1","v":0},{"$f":"Jurat!D$33","v":"00:00:00"},"Q4","2017-12-31","Region 2","Operating Expense","Medical Expense","LTC Services","2.20","Ending IBNP for Long Term Care Services",{"$f":"'LTC Rev-Exp Region 2'!P$36","v":{"v":0,"d":"$0.00"}},{"$f":"'LTC Rev-Exp Region 2'!Q$36","v":{"v":0,"d":"$0.00"}},{"$f":"'LTC Rev-Exp Region 2'!R$36","v":{"v":0,"d":"$0.00"}},{"$f":"'LTC Rev-Exp Region 2'!S$36","v":{"v":0,"d":"$0.00"}},{"v":0,"d":"$0.00"}]
["LTC",null,null,{"$f":"Jurat!I$1","v":0},{"$f":"Jurat!D$33","v":"00:00:00"},"Q4","2017-12-31","Region 2","Operating Expense","Medical Expense","LTC Services","2.21","LTC Services Settlements",{"$f":"'LTC Rev-Exp Region 2'!P$37","v":{"v":0,"d":"$0.00"}},{"$f":"'LTC Rev-Exp Region 2'!Q$37","v":{"v":0,"d":"$0.00"}},{"$f":"'LTC Rev-Exp Region 2'!R$37","v":{"v":0,"d":"$0.00"}},{"$f":"'LTC Rev-Exp Region 2'!S$37","v":{"v":0,"d":"$0.00"}},{"v":0,"d":"$0.00"}]
["LTC",null,null,{"$f":"Jurat!I$1","v":0},{"$f":"Jurat!D$33","v":"00:00:00"},"Q4","2017-12-31","Region 2","Operating Expense","Medical Expense","Expanded Benefits","3.1","Expanded Benefits FFS",{"$f":"'LTC Rev-Exp Region 2'!P$39","v":{"v":0,"d":"$0.00"}},{"$f":"'LTC Rev-Exp Region 2'!Q$39","v":{"v":0,"d":"$0.00"}},{"$f":"'LTC Rev-Exp Region 2'!R$39","v":{"v":0,"d":"$0.00"}},{"$f":"'LTC Rev-Exp Region 2'!S$39","v":{"v":0,"d":"$0.00"}},{"v":0,"d":"$0.00"}]
["LTC",null,null,{"$f":"Jurat!I$1","v":0},{"$f":"Jurat!D$33","v":"00:00:00"},"Q4","2017-12-31","Region 2","Operating Expense","Medical Expense","Expanded Benefits","3.2","Expanded Benefits Subcapitation",{"$f":"'LTC Rev-Exp Region 2'!P$40","v":{"v":0,"d":"$0.00"}},{"$f":"'LTC Rev-Exp Region 2'!Q$40","v":{"v":0,"d":"$0.00"}},{"$f":"'LTC Rev-Exp Region 2'!R$40","v":{"v":0,"d":"$0.00"}},{"$f":"'LTC Rev-Exp Region 2'!S$40","v":{"v":0,"d":"$0.00"}},{"v":0,"d":"$0.00"}]
["LTC",null,null,{"$f":"Jurat!I$1","v":0},{"$f":"Jurat!D$33","v":"00:00:00"},"Q4","2017-12-31","Region 2","Operating Expense","Medical Expense","Expanded Benefits","3.3","Ending IBNP for Expanded Benefits",{"$f":"'LTC Rev-Exp Region 2'!P$41","v":{"v":0,"d":"$0.00"}},{"$f":"'LTC Rev-Exp Region 2'!Q$41","v":{"v":0,"d":"$0.00"}},{"$f":"'LTC Rev-Exp Region 2'!R$41","v":{"v":0,"d":"$0.00"}},{"$f":"'LTC Rev-Exp Region 2'!S$41","v":{"v":0,"d":"$0.00"}},{"v":0,"d":"$0.00"}]
["LTC",null,null,{"$f":"Jurat!I$1","v":0},{"$f":"Jurat!D$33","v":"00:00:00"},"Q4","2017-12-31","Region 2","Operating Expense","Medical Expense","Expanded Benefits","3.4","Expanded Benefits Settlements",{"$f":"'LTC Rev-Exp Region 2'!P$42","v":{"v":0,"d":"$0.00"}},{"$f":"'LTC Rev-Exp Region 2'!Q$42","v":{"v":0,"d":"$0.00"}},{"$f":"'LTC Rev-Exp Region 2'!R$42","v":{"v":0,"d":"$0.00"}},{"$f":"'LTC Rev-Exp Region 2'!S$42","v":{"v":0,"d":"$0.00"}},{"v":0,"d":"$0.00"}]
["LTC",null,null,{"$f":"Jurat!I$1","v":0},{"$f":"Jurat!D$33","v":"00:00:00"},"Q4","2017-12-31","Region 2","Operating Expense","Medical Expense","Other Medical","4.5","TPL & Fraud/Abuse Recoveries",{"$f":"'LTC Rev-Exp Region 2'!P$48","v":{"v":0,"d":"$0.00"}},{"$f":"'LTC Rev-Exp Region 2'!Q$48","v":{"v":0,"d":"$0.00"}},{"$f":"'LTC Rev-Exp Region 2'!R$48","v":{"v":0,"d":"$0.00"}},{"$f":"'LTC Rev-Exp Region 2'!S$48","v":{"v":0,"d":"$0.00"}},{"v":0,"d":"$0.00"}]
["LTC",null,null,{"$f":"Jurat!I$1","v":0},{"$f":"Jurat!D$33","v":"00:00:00"},"Q4","2017-12-31","Region 2","Operating Expense","Medical Expense","Other Medical","4.6.1","Premium Deficiency Reserve",{"$f":"'LTC Rev-Exp Region 2'!P$49","v":{"v":0,"d":"$0.00"}},{"$f":"'LTC Rev-Exp Region 2'!Q$49","v":{"v":0,"d":"$0.00"}},{"$f":"'LTC Rev-Exp Region 2'!R$49","v":{"v":0,"d":"$0.00"}},{"$f":"'LTC Rev-Exp Region 2'!S$49","v":{"v":0,"d":"$0.00"}},{"v":0,"d":"$0.00"}]
["LTC",null,null,{"$f":"Jurat!I$1","v":0},{"$f":"Jurat!D$33","v":"00:00:00"},"Q4","2017-12-31","Region 2","Operating Expense","Medical Expense","Other Medical","4.8","Reinsurance Premiums",{"$f":"'LTC Rev-Exp Region 2'!P$51","v":{"v":0,"d":"$0.00"}},{"$f":"'LTC Rev-Exp Region 2'!Q$51","v":{"v":0,"d":"$0.00"}},{"$f":"'LTC Rev-Exp Region 2'!R$51","v":{"v":0,"d":"$0.00"}},{"$f":"'LTC Rev-Exp Region 2'!S$51","v":{"v":0,"d":"$0.00"}},{"v":0,"d":"$0.00"}]
["LTC",null,null,{"$f":"Jurat!I$1","v":0},{"$f":"Jurat!D$33","v":"00:00:00"},"Q4","2017-12-31","Region 2","Operating Expense","Medical Expense","Other Medical","4.9","Reinsurance Recoveries",{"$f":"'LTC Rev-Exp Region 2'!P$52","v":{"v":0,"d":"$0.00"}},{"$f":"'LTC Rev-Exp Region 2'!Q$52","v":{"v":0,"d":"$0.00"}},{"$f":"'LTC Rev-Exp Region 2'!R$52","v":{"v":0,"d":"$0.00"}},{"$f":"'LTC Rev-Exp Region 2'!S$52","v":{"v":0,"d":"$0.00"}},{"v":0,"d":"$0.00"}]
["LTC",null,null,{"$f":"Jurat!I$1","v":0},{"$f":"Jurat!D$33","v":"00:00:00"},"Q4","2017-12-31","Region 2","Operating Expense","Administrative Expense","Administrative","5.1","Salaries & Benefits",{"$f":"'LTC Rev-Exp Region 2'!P$57","v":{"v":0,"d":"$0.00"}},{"$f":"'LTC Rev-Exp Region 2'!Q$57","v":{"v":0,"d":"$0.00"}},{"$f":"'LTC Rev-Exp Region 2'!R$57","v":{"v":0,"d":"$0.00"}},{"$f":"'LTC Rev-Exp Region 2'!S$57","v":{"v":0,"d":"$0.00"}},{"v":0,"d":"$0.00"}]
["LTC",null,null,{"$f":"Jurat!I$1","v":0},{"$f":"Jurat!D$33","v":"00:00:00"},"Q4","2017-12-31","Region 2","Operating Expense","Administrative Expense","Administrative","5.2","Administrative Services",{"$f":"'LTC Rev-Exp Region 2'!P$58","v":{"v":0,"d":"$0.00"}},{"$f":"'LTC Rev-Exp Region 2'!Q$58","v":{"v":0,"d":"$0.00"}},{"$f":"'LTC Rev-Exp Region 2'!R$58","v":{"v":0,"d":"$0.00"}},{"$f":"'LTC Rev-Exp Region 2'!S$58","v":{"v":0,"d":"$0.00"}},{"v":0,"d":"$0.00"}]
["LTC",null,null,{"$f":"Jurat!I$1","v":0},{"$f":"Jurat!D$33","v":"00:00:00"},"Q4","2017-12-31","Region 2","Operating Expense","Administrative Expense","Administrative","5.3","Information Systems",{"$f":"'LTC Rev-Exp Region 2'!P$59","v":{"v":0,"d":"$0.00"}},{"$f":"'LTC Rev-Exp Region 2'!Q$59","v":{"v":0,"d":"$0.00"}},{"$f":"'LTC Rev-Exp Region 2'!R$59","v":{"v":0,"d":"$0.00"}},{"$f":"'LTC Rev-Exp Region 2'!S$59","v":{"v":0,"d":"$0.00"}},{"v":0,"d":"$0.00"}]
["LTC",null,null,{"$f":"Jurat!I$1","v":0},{"$f":"Jurat!D$33","v":"00:00:00"},"Q4","2017-12-31","Region 2","Operating Expense","Administrative Expense","Administrative","5.4","Marketing Expenses",{"$f":"'LTC Rev-Exp Region 2'!P$60","v":{"v":0,"d":"$0.00"}},{"$f":"'LTC Rev-Exp Region 2'!Q$60","v":{"v":0,"d":"$0.00"}},{"$f":"'LTC Rev-Exp Region 2'!R$60","v":{"v":0,"d":"$0.00"}},{"$f":"'LTC Rev-Exp Region 2'!S$60","v":{"v":0,"d":"$0.00"}},{"v":0,"d":"$0.00"}]
["LTC",null,null,{"$f":"Jurat!I$1","v":0},{"$f":"Jurat!D$33","v":"00:00:00"},"Q4","2017-12-31","Region 2","Operating Expense","Administrative Expense","Administrative","5.5","General  Administration",{"$f":"'LTC Rev-Exp Region 2'!P$61","v":{"v":0,"d":"$0.00"}},{"$f":"'LTC Rev-Exp Region 2'!Q$61","v":{"v":0,"d":"$0.00"}},{"$f":"'LTC Rev-Exp Region 2'!R$61","v":{"v":0,"d":"$0.00"}},{"$f":"'LTC Rev-Exp Region 2'!S$61","v":{"v":0,"d":"$0.00"}},{"v":0,"d":"$0.00"}]
["LTC",null,null,{"$f":"Jurat!I$1","v":0},{"$f":"Jurat!D$33","v":"00:00:00"},"Q4","2017-12-31","Region 2","Operating Expense","Administrative Expense","Administrative","5.6","Compliance/Regulatory",{"$f":"'LTC Rev-Exp Region 2'!P$62","v":{"v":0,"d":"$0.00"}},{"$f":"'LTC Rev-Exp Region 2'!Q$62","v":{"v":0,"d":"$0.00"}},{"$f":"'LTC Rev-Exp Region 2'!R$62","v":{"v":0,"d":"$0.00"}},{"$f":"'LTC Rev-Exp Region 2'!S$62","v":{"v":0,"d":"$0.00"}},{"v":0,"d":"$0.00"}]
["LTC",null,null,{"$f":"Jurat!I$1","v":0},{"$f":"Jurat!D$33","v":"00:00:00"},"Q4","2017-12-31","Region 2","Operating Expense","Taxes & Fees","Taxes & Fees","6.1","State Premium Tax",{"$f":"'LTC Rev-Exp Region 2'!P$64","v":{"v":0,"d":"$0.00"}},{"v":0,"d":"$0.00"},{"v":0,"d":"$0.00"},{"v":0,"d":"$0.00"},{"v":0,"d":"$0.00"}]
["LTC",null,null,{"$f":"Jurat!I$1","v":0},{"$f":"Jurat!D$33","v":"00:00:00"},"Q4","2017-12-31","Region 2","Operating Expense","Taxes & Fees","Taxes & Fees","6.2","Department of Insurance Assessments",{"$f":"'LTC Rev-Exp Region 2'!P$65","v":{"v":0,"d":"$0.00"}},{"v":0,"d":"$0.00"},{"v":0,"d":"$0.00"},{"v":0,"d":"$0.00"},{"v":0,"d":"$0.00"}]
["LTC",null,null,{"$f":"Jurat!I$1","v":0},{"$f":"Jurat!D$33","v":"00:00:00"},"Q4","2017-12-31","Region 2","Non-Operating Expense","Income Tax Expense","Income Tax Expense","9.0","Income Tax Expense",{"$f":"'LTC Rev-Exp Region 2'!P$72","v":{"v":0,"d":"$0.00"}},{"v":0,"d":"$0.00"},{"v":0,"d":"$0.00"},{"v":0,"d":"$0.00"},{"v":0,"d":"$0.00"}]
["LTC",null,null,{"$f":"Jurat!I$1","v":0},{"$f":"Jurat!D$33","v":"00:00:00"},"Q1","2017-03-31","Region 3","Member Months","Member Months","Member Months",null,"Member Months",{"$f":"'LTC Rev-Exp Region 3'!D$9","v":{"v":0,"d":"$0.00"}},{"$f":"'LTC Rev-Exp Region 3'!E$9","v":{"v":0,"d":"$0.00"}},{"$f":"'LTC Rev-Exp Region 3'!F$9","v":{"v":0,"d":"$0.00"}},{"$f":"'LTC Rev-Exp Region 3'!G$9","v":{"v":0,"d":"$0.00"}},{"v":0,"d":"$0.00"}]
["LTC",null,null,{"$f":"Jurat!I$1","v":0},{"$f":"Jurat!D$33","v":"00:00:00"},"Q1","2017-03-31","Region 3","Operating Revenue","Capitation","Capitation",1.1,"Capitation",{"$f":"'LTC Rev-Exp Region 3'!D$11","v":{"v":0,"d":"$0.00"}},{"$f":"'LTC Rev-Exp Region 3'!E$11","v":{"v":0,"d":"$0.00"}},{"$f":"'LTC Rev-Exp Region 3'!F$11","v":{"v":0,"d":"$0.00"}},{"$f":"'LTC Rev-Exp Region 3'!G$11","v":{"v":0,"d":"$0.00"}},{"v":0,"d":"$0.00"}]
["LTC",null,null,{"$f":"Jurat!I$1","v":0},{"$f":"Jurat!D$33","v":"00:00:00"},"Q1","2017-03-31","Region 3","Operating Revenue","Capitation","NH Rate Reconciliation",1.2,"NH Rate Reconciliation",{"$f":"'LTC Rev-Exp Region 3'!D$12","v":{"v":0,"d":"$0.00"}},{"$f":"'LTC Rev-Exp Region 3'!E$12","v":{"v":0,"d":"$0.00"}},{"$f":"'LTC Rev-Exp Region 3'!F$12","v":{"v":0,"d":"$0.00"}},{"$f":"'LTC Rev-Exp Region 3'!G$12","v":{"v":0,"d":"$0.00"}},{"v":0,"d":"$0.00"}]
["LTC",null,null,{"$f":"Jurat!I$1","v":0},{"$f":"Jurat!D$33","v":"00:00:00"},"Q1","2017-03-31","Region 3","Operating Revenue","Other Revenue","Other Revenue",1.3,"Other Revenue",{"$f":"'LTC Rev-Exp Region 3'!D$13","v":{"v":0,"d":"$0.00"}},{"$f":"'LTC Rev-Exp Region 3'!E$13","v":{"v":0,"d":"$0.00"}},{"$f":"'LTC Rev-Exp Region 3'!F$13","v":{"v":0,"d":"$0.00"}},{"$f":"'LTC Rev-Exp Region 3'!G$13","v":{"v":0,"d":"$0.00"}},{"v":0,"d":"$0.00"}]
["LTC",null,null,{"$f":"Jurat!I$1","v":0},{"$f":"Jurat!D$33","v":"00:00:00"},"Q1","2017-03-31","Region 3","Operating Expense","Medical Expense","NF & Hospice","2.1","Nursing Facility Days (Medicaid)",{"$f":"'LTC Rev-Exp Region 3'!D$17","v":{"v":0,"d":"$0.00"}},{"$f":"'LTC Rev-Exp Region 3'!E$17","v":{"v":0,"d":"$0.00"}},{"$f":"'LTC Rev-Exp Region 3'!F$17","v":{"v":0,"d":"$0.00"}},{"$f":"'LTC Rev-Exp Region 3'!G$17","v":{"v":0,"d":"$0.00"}},{"v":0,"d":"$0.00"}]
["LTC",null,null,{"$f":"Jurat!I$1","v":0},{"$f":"Jurat!D$33","v":"00:00:00"},"Q1","2017-03-31","Region 3","Operating Expense","Medical Expense","NF & Hospice","2.2","Nursing Facility Days (Crossover)",{"$f":"'LTC Rev-Exp Region 3'!D$18","v":{"v":0,"d":"$0.00"}},{"$f":"'LTC Rev-Exp Region 3'!E$18","v":{"v":0,"d":"$0.00"}},{"$f":"'LTC Rev-Exp Region 3'!F$18","v":{"v":0,"d":"$0.00"}},{"$f":"'LTC Rev-Exp Region 3'!G$18","v":{"v":0,"d":"$0.00"}},{"v":0,"d":"$0.00"}]
["LTC",null,null,{"$f":"Jurat!I$1","v":0},{"$f":"Jurat!D$33","v":"00:00:00"},"Q1","2017-03-31","Region 3","Operating Expense","Medical Expense","NF & Hospice","2.3","Nursing Facility FFS (Medicaid)",{"$f":"'LTC Rev-Exp Region 3'!D$19","v":{"v":0,"d":"$0.00"}},{"$f":"'LTC Rev-Exp Region 3'!E$19","v":{"v":0,"d":"$0.00"}},{"$f":"'LTC Rev-Exp Region 3'!F$19","v":{"v":0,"d":"$0.00"}},{"$f":"'LTC Rev-Exp Region 3'!G$19","v":{"v":0,"d":"$0.00"}},{"v":0,"d":"$0.00"}]
["LTC",null,null,{"$f":"Jurat!I$1","v":0},{"$f":"Jurat!D$33","v":"00:00:00"},"Q1","2017-03-31","Region 3","Operating Expense","Medical Expense","NF & Hospice","2.4","Nursing Facility FFS (Crossover)",{"$f":"'LTC Rev-Exp Region 3'!D$20","v":{"v":0,"d":"$0.00"}},{"$f":"'LTC Rev-Exp Region 3'!E$20","v":{"v":0,"d":"$0.00"}},{"$f":"'LTC Rev-Exp Region 3'!F$20","v":{"v":0,"d":"$0.00"}},{"$f":"'LTC Rev-Exp Region 3'!G$20","v":{"v":0,"d":"$0.00"}},{"v":0,"d":"$0.00"}]
["LTC",null,null,{"$f":"Jurat!I$1","v":0},{"$f":"Jurat!D$33","v":"00:00:00"},"Q1","2017-03-31","Region 3","Operating Expense","Medical Expense","NF & Hospice","2.5","Hospice Days",{"$f":"'LTC Rev-Exp Region 3'!D$21","v":{"v":0,"d":"$0.00"}},{"$f":"'LTC Rev-Exp Region 3'!E$21","v":{"v":0,"d":"$0.00"}},{"$f":"'LTC Rev-Exp Region 3'!F$21","v":{"v":0,"d":"$0.00"}},{"$f":"'LTC Rev-Exp Region 3'!G$21","v":{"v":0,"d":"$0.00"}},{"v":0,"d":"$0.00"}]
["LTC",null,null,{"$f":"Jurat!I$1","v":0},{"$f":"Jurat!D$33","v":"00:00:00"},"Q1","2017-03-31","Region 3","Operating Expense","Medical Expense","NF & Hospice","2.6","Hospice FFS",{"$f":"'LTC Rev-Exp Region 3'!D$22","v":{"v":0,"d":"$0.00"}},{"$f":"'LTC Rev-Exp Region 3'!E$22","v":{"v":0,"d":"$0.00"}},{"$f":"'LTC Rev-Exp Region 3'!F$22","v":{"v":0,"d":"$0.00"}},{"$f":"'LTC Rev-Exp Region 3'!G$22","v":{"v":0,"d":"$0.00"}},{"v":0,"d":"$0.00"}]
["LTC",null,null,{"$f":"Jurat!I$1","v":0},{"$f":"Jurat!D$33","v":"00:00:00"},"Q1","2017-03-31","Region 3","Operating Expense","Medical Expense","NF & Hospice","2.7","Ending IBNP for NF & Hospice",{"$f":"'LTC Rev-Exp Region 3'!D$23","v":{"v":0,"d":"$0.00"}},{"$f":"'LTC Rev-Exp Region 3'!E$23","v":{"v":0,"d":"$0.00"}},{"$f":"'LTC Rev-Exp Region 3'!F$23","v":{"v":0,"d":"$0.00"}},{"$f":"'LTC Rev-Exp Region 3'!G$23","v":{"v":0,"d":"$0.00"}},{"v":0,"d":"$0.00"}]
["LTC",null,null,{"$f":"Jurat!I$1","v":0},{"$f":"Jurat!D$33","v":"00:00:00"},"Q1","2017-03-31","Region 3","Operating Expense","Medical Expense","NF & Hospice","2.8","NF & Hospice Subcapitated",{"$f":"'LTC Rev-Exp Region 3'!D$24","v":{"v":0,"d":"$0.00"}},{"$f":"'LTC Rev-Exp Region 3'!E$24","v":{"v":0,"d":"$0.00"}},{"$f":"'LTC Rev-Exp Region 3'!F$24","v":{"v":0,"d":"$0.00"}},{"$f":"'LTC Rev-Exp Region 3'!G$24","v":{"v":0,"d":"$0.00"}},{"v":0,"d":"$0.00"}]
["LTC",null,null,{"$f":"Jurat!I$1","v":0},{"$f":"Jurat!D$33","v":"00:00:00"},"Q1","2017-03-31","Region 3","Operating Expense","Medical Expense","NF & Hospice","2.9","NF & Hospice Settlements",{"$f":"'LTC Rev-Exp Region 3'!D$25","v":{"v":0,"d":"$0.00"}},{"$f":"'LTC Rev-Exp Region 3'!E$25","v":{"v":0,"d":"$0.00"}},{"$f":"'LTC Rev-Exp Region 3'!F$25","v":{"v":0,"d":"$0.00"}},{"$f":"'LTC Rev-Exp Region 3'!G$25","v":{"v":0,"d":"$0.00"}},{"v":0,"d":"$0.00"}]
["LTC",null,null,{"$f":"Jurat!I$1","v":0},{"$f":"Jurat!D$33","v":"00:00:00"},"Q1","2017-03-31","Region 3","Operating Expense","Medical Expense","LTC Services","2.11","Assisted Living FFS",{"$f":"'LTC Rev-Exp Region 3'!D$27","v":{"v":0,"d":"$0.00"}},{"$f":"'LTC Rev-Exp Region 3'!E$27","v":{"v":0,"d":"$0.00"}},{"$f":"'LTC Rev-Exp Region 3'!F$27","v":{"v":0,"d":"$0.00"}},{"$f":"'LTC Rev-Exp Region 3'!G$27","v":{"v":0,"d":"$0.00"}},{"v":0,"d":"$0.00"}]
["LTC",null,null,{"$f":"Jurat!I$1","v":0},{"$f":"Jurat!D$33","v":"00:00:00"},"Q1","2017-03-31","Region 3","Operating Expense","Medical Expense","LTC Services","2.12","Home Health FFS",{"$f":"'LTC Rev-Exp Region 3'!D$28","v":{"v":0,"d":"$0.00"}},{"$f":"'LTC Rev-Exp Region 3'!E$28","v":{"v":0,"d":"$0.00"}},{"$f":"'LTC Rev-Exp Region 3'!F$28","v":{"v":0,"d":"$0.00"}},{"$f":"'LTC Rev-Exp Region 3'!G$28","v":{"v":0,"d":"$0.00"}},{"v":0,"d":"$0.00"}]
["LTC",null,null,{"$f":"Jurat!I$1","v":0},{"$f":"Jurat!D$33","v":"00:00:00"},"Q1","2017-03-31","Region 3","Operating Expense","Medical Expense","LTC Services","2.13","Medical Equipment/Supplies FFS",{"$f":"'LTC Rev-Exp Region 3'!D$29","v":{"v":0,"d":"$0.00"}},{"$f":"'LTC Rev-Exp Region 3'!E$29","v":{"v":0,"d":"$0.00"}},{"$f":"'LTC Rev-Exp Region 3'!F$29","v":{"v":0,"d":"$0.00"}},{"$f":"'LTC Rev-Exp Region 3'!G$29","v":{"v":0,"d":"$0.00"}},{"v":0,"d":"$0.00"}]
["LTC",null,null,{"$f":"Jurat!I$1","v":0},{"$f":"Jurat!D$33","v":"00:00:00"},"Q1","2017-03-31","Region 3","Operating Expense","Medical Expense","LTC Services","2.14","Therapy FFS",{"$f":"'LTC Rev-Exp Region 3'!D$30","v":{"v":0,"d":"$0.00"}},{"$f":"'LTC Rev-Exp Region 3'!E$30","v":{"v":0,"d":"$0.00"}},{"$f":"'LTC Rev-Exp Region 3'!F$30","v":{"v":0,"d":"$0.00"}},{"$f":"'LTC Rev-Exp Region 3'!G$30","v":{"v":0,"d":"$0.00"}},{"v":0,"d":"$0.00"}]
["LTC",null,null,{"$f":"Jurat!I$1","v":0},{"$f":"Jurat!D$33","v":"00:00:00"},"Q1","2017-03-31","Region 3","Operating Expense","Medical Expense","LTC Services","2.15","Transportation FFS",{"$f":"'LTC Rev-Exp Region 3'!D$31","v":{"v":0,"d":"$0.00"}},{"$f":"'LTC Rev-Exp Region 3'!E$31","v":{"v":0,"d":"$0.00"}},{"$f":"'LTC Rev-Exp Region 3'!F$31","v":{"v":0,"d":"$0.00"}},{"$f":"'LTC Rev-Exp Region 3'!G$31","v":{"v":0,"d":"$0.00"}},{"v":0,"d":"$0.00"}]
["LTC",null,null,{"$f":"Jurat!I$1","v":0},{"$f":"Jurat!D$33","v":"00:00:00"},"Q1","2017-03-31","Region 3","Operating Expense","Medical Expense","LTC Services","2.16","Case Management FFS (Plan Provided)",{"$f":"'LTC Rev-Exp Region 3'!D$32","v":{"v":0,"d":"$0.00"}},{"$f":"'LTC Rev-Exp Region 3'!E$32","v":{"v":0,"d":"$0.00"}},{"$f":"'LTC Rev-Exp Region 3'!F$32","v":{"v":0,"d":"$0.00"}},{"$f":"'LTC Rev-Exp Region 3'!G$32","v":{"v":0,"d":"$0.00"}},{"v":0,"d":"$0.00"}]
["LTC",null,null,{"$f":"Jurat!I$1","v":0},{"$f":"Jurat!D$33","v":"00:00:00"},"Q1","2017-03-31","Region 3","Operating Expense","Medical Expense","LTC Services","2.17","Case Management FF (Non-Plan Provided)",{"$f":"'LTC Rev-Exp Region 3'!D$33","v":{"v":0,"d":"$0.00"}},{"$f":"'LTC Rev-Exp Region 3'!E$33","v":{"v":0,"d":"$0.00"}},{"$f":"'LTC Rev-Exp Region 3'!F$33","v":{"v":0,"d":"$0.00"}},{"$f":"'LTC Rev-Exp Region 3'!G$33","v":{"v":0,"d":"$0.00"}},{"v":0,"d":"$0.00"}]
["LTC",null,null,{"$f":"Jurat!I$1","v":0},{"$f":"Jurat!D$33","v":"00:00:00"},"Q1","2017-03-31","Region 3","Operating Expense","Medical Expense","LTC Services","2.18","HCBS FFS",{"$f":"'LTC Rev-Exp Region 3'!D$34","v":{"v":0,"d":"$0.00"}},{"$f":"'LTC Rev-Exp Region 3'!E$34","v":{"v":0,"d":"$0.00"}},{"$f":"'LTC Rev-Exp Region 3'!F$34","v":{"v":0,"d":"$0.00"}},{"$f":"'LTC Rev-Exp Region 3'!G$34","v":{"v":0,"d":"$0.00"}},{"v":0,"d":"$0.00"}]
["LTC",null,null,{"$f":"Jurat!I$1","v":0},{"$f":"Jurat!D$33","v":"00:00:00"},"Q1","2017-03-31","Region 3","Operating Expense","Medical Expense","LTC Services","2.19","Subcapitated LTC Services",{"$f":"'LTC Rev-Exp Region 3'!D$35","v":{"v":0,"d":"$0.00"}},{"$f":"'LTC Rev-Exp Region 3'!E$35","v":{"v":0,"d":"$0.00"}},{"$f":"'LTC Rev-Exp Region 3'!F$35","v":{"v":0,"d":"$0.00"}},{"$f":"'LTC Rev-Exp Region 3'!G$35","v":{"v":0,"d":"$0.00"}},{"v":0,"d":"$0.00"}]
["LTC",null,null,{"$f":"Jurat!I$1","v":0},{"$f":"Jurat!D$33","v":"00:00:00"},"Q1","2017-03-31","Region 3","Operating Expense","Medical Expense","LTC Services","2.20","Ending IBNP for Long Term Care Services",{"$f":"'LTC Rev-Exp Region 3'!D$36","v":{"v":0,"d":"$0.00"}},{"$f":"'LTC Rev-Exp Region 3'!E$36","v":{"v":0,"d":"$0.00"}},{"$f":"'LTC Rev-Exp Region 3'!F$36","v":{"v":0,"d":"$0.00"}},{"$f":"'LTC Rev-Exp Region 3'!G$36","v":{"v":0,"d":"$0.00"}},{"v":0,"d":"$0.00"}]
["LTC",null,null,{"$f":"Jurat!I$1","v":0},{"$f":"Jurat!D$33","v":"00:00:00"},"Q1","2017-03-31","Region 3","Operating Expense","Medical Expense","LTC Services","2.21","LTC Services Settlements",{"$f":"'LTC Rev-Exp Region 3'!D$37","v":{"v":0,"d":"$0.00"}},{"$f":"'LTC Rev-Exp Region 3'!E$37","v":{"v":0,"d":"$0.00"}},{"$f":"'LTC Rev-Exp Region 3'!F$37","v":{"v":0,"d":"$0.00"}},{"$f":"'LTC Rev-Exp Region 3'!G$37","v":{"v":0,"d":"$0.00"}},{"v":0,"d":"$0.00"}]
["LTC",null,null,{"$f":"Jurat!I$1","v":0},{"$f":"Jurat!D$33","v":"00:00:00"},"Q1","2017-03-31","Region 3","Operating Expense","Medical Expense","Expanded Benefits","3.1","Expanded Benefits FFS",{"$f":"'LTC Rev-Exp Region 3'!D$39","v":{"v":0,"d":"$0.00"}},{"$f":"'LTC Rev-Exp Region 3'!E$39","v":{"v":0,"d":"$0.00"}},{"$f":"'LTC Rev-Exp Region 3'!F$39","v":{"v":0,"d":"$0.00"}},{"$f":"'LTC Rev-Exp Region 3'!G$39","v":{"v":0,"d":"$0.00"}},{"v":0,"d":"$0.00"}]
["LTC",null,null,{"$f":"Jurat!I$1","v":0},{"$f":"Jurat!D$33","v":"00:00:00"},"Q1","2017-03-31","Region 3","Operating Expense","Medical Expense","Expanded Benefits","3.2","Expanded Benefits Subcapitation",{"$f":"'LTC Rev-Exp Region 3'!D$40","v":{"v":0,"d":"$0.00"}},{"$f":"'LTC Rev-Exp Region 3'!E$40","v":{"v":0,"d":"$0.00"}},{"$f":"'LTC Rev-Exp Region 3'!F$40","v":{"v":0,"d":"$0.00"}},{"$f":"'LTC Rev-Exp Region 3'!G$40","v":{"v":0,"d":"$0.00"}},{"v":0,"d":"$0.00"}]
["LTC",null,null,{"$f":"Jurat!I$1","v":0},{"$f":"Jurat!D$33","v":"00:00:00"},"Q1","2017-03-31","Region 3","Operating Expense","Medical Expense","Expanded Benefits","3.3","Ending IBNP for Expanded Benefits",{"$f":"'LTC Rev-Exp Region 3'!D$41","v":{"v":0,"d":"$0.00"}},{"$f":"'LTC Rev-Exp Region 3'!E$41","v":{"v":0,"d":"$0.00"}},{"$f":"'LTC Rev-Exp Region 3'!F$41","v":{"v":0,"d":"$0.00"}},{"$f":"'LTC Rev-Exp Region 3'!G$41","v":{"v":0,"d":"$0.00"}},{"v":0,"d":"$0.00"}]
["LTC",null,null,{"$f":"Jurat!I$1","v":0},{"$f":"Jurat!D$33","v":"00:00:00"},"Q1","2017-03-31","Region 3","Operating Expense","Medical Expense","Expanded Benefits","3.4","Expanded Benefits Settlements",{"$f":"'LTC Rev-Exp Region 3'!D$42","v":{"v":0,"d":"$0.00"}},{"$f":"'LTC Rev-Exp Region 3'!E$42","v":{"v":0,"d":"$0.00"}},{"$f":"'LTC Rev-Exp Region 3'!F$42","v":{"v":0,"d":"$0.00"}},{"$f":"'LTC Rev-Exp Region 3'!G$42","v":{"v":0,"d":"$0.00"}},{"v":0,"d":"$0.00"}]
["LTC",null,null,{"$f":"Jurat!I$1","v":0},{"$f":"Jurat!D$33","v":"00:00:00"},"Q1","2017-03-31","Region 3","Operating Expense","Medical Expense","Other Medical","4.5","TPL & Fraud/Abuse Recoveries",{"$f":"'LTC Rev-Exp Region 3'!D$48","v":{"v":0,"d":"$0.00"}},{"$f":"'LTC Rev-Exp Region 3'!E$48","v":{"v":0,"d":"$0.00"}},{"$f":"'LTC Rev-Exp Region 3'!F$48","v":{"v":0,"d":"$0.00"}},{"$f":"'LTC Rev-Exp Region 3'!G$48","v":{"v":0,"d":"$0.00"}},{"v":0,"d":"$0.00"}]
["LTC",null,null,{"$f":"Jurat!I$1","v":0},{"$f":"Jurat!D$33","v":"00:00:00"},"Q1","2017-03-31","Region 3","Operating Expense","Medical Expense","Other Medical","4.6.1","Premium Deficiency Reserve",{"$f":"'LTC Rev-Exp Region 3'!D$49","v":{"v":0,"d":"$0.00"}},{"$f":"'LTC Rev-Exp Region 3'!E$49","v":{"v":0,"d":"$0.00"}},{"$f":"'LTC Rev-Exp Region 3'!F$49","v":{"v":0,"d":"$0.00"}},{"$f":"'LTC Rev-Exp Region 3'!G$49","v":{"v":0,"d":"$0.00"}},{"v":0,"d":"$0.00"}]
["LTC",null,null,{"$f":"Jurat!I$1","v":0},{"$f":"Jurat!D$33","v":"00:00:00"},"Q1","2017-03-31","Region 3","Operating Expense","Medical Expense","Other Medical","4.8","Reinsurance Premiums",{"$f":"'LTC Rev-Exp Region 3'!D$51","v":{"v":0,"d":"$0.00"}},{"$f":"'LTC Rev-Exp Region 3'!E$51","v":{"v":0,"d":"$0.00"}},{"$f":"'LTC Rev-Exp Region 3'!F$51","v":{"v":0,"d":"$0.00"}},{"$f":"'LTC Rev-Exp Region 3'!G$51","v":{"v":0,"d":"$0.00"}},{"v":0,"d":"$0.00"}]
["LTC",null,null,{"$f":"Jurat!I$1","v":0},{"$f":"Jurat!D$33","v":"00:00:00"},"Q1","2017-03-31","Region 3","Operating Expense","Medical Expense","Other Medical","4.9","Reinsurance Recoveries",{"$f":"'LTC Rev-Exp Region 3'!D$52","v":{"v":0,"d":"$0.00"}},{"$f":"'LTC Rev-Exp Region 3'!E$52","v":{"v":0,"d":"$0.00"}},{"$f":"'LTC Rev-Exp Region 3'!F$52","v":{"v":0,"d":"$0.00"}},{"$f":"'LTC Rev-Exp Region 3'!G$52","v":{"v":0,"d":"$0.00"}},{"v":0,"d":"$0.00"}]
["LTC",null,null,{"$f":"Jurat!I$1","v":0},{"$f":"Jurat!D$33","v":"00:00:00"},"Q1","2017-03-31","Region 3","Operating Expense","Administrative Expense","Administrative","5.1","Salaries & Benefits",{"$f":"'LTC Rev-Exp Region 3'!D$57","v":{"v":0,"d":"$0.00"}},{"$f":"'LTC Rev-Exp Region 3'!E$57","v":{"v":0,"d":"$0.00"}},{"$f":"'LTC Rev-Exp Region 3'!F$57","v":{"v":0,"d":"$0.00"}},{"$f":"'LTC Rev-Exp Region 3'!G$57","v":{"v":0,"d":"$0.00"}},{"v":0,"d":"$0.00"}]
["LTC",null,null,{"$f":"Jurat!I$1","v":0},{"$f":"Jurat!D$33","v":"00:00:00"},"Q1","2017-03-31","Region 3","Operating Expense","Administrative Expense","Administrative","5.2","Administrative Services",{"$f":"'LTC Rev-Exp Region 3'!D$58","v":{"v":0,"d":"$0.00"}},{"$f":"'LTC Rev-Exp Region 3'!E$58","v":{"v":0,"d":"$0.00"}},{"$f":"'LTC Rev-Exp Region 3'!F$58","v":{"v":0,"d":"$0.00"}},{"$f":"'LTC Rev-Exp Region 3'!G$58","v":{"v":0,"d":"$0.00"}},{"v":0,"d":"$0.00"}]
["LTC",null,null,{"$f":"Jurat!I$1","v":0},{"$f":"Jurat!D$33","v":"00:00:00"},"Q1","2017-03-31","Region 3","Operating Expense","Administrative Expense","Administrative","5.3","Information Systems",{"$f":"'LTC Rev-Exp Region 3'!D$59","v":{"v":0,"d":"$0.00"}},{"$f":"'LTC Rev-Exp Region 3'!E$59","v":{"v":0,"d":"$0.00"}},{"$f":"'LTC Rev-Exp Region 3'!F$59","v":{"v":0,"d":"$0.00"}},{"$f":"'LTC Rev-Exp Region 3'!G$59","v":{"v":0,"d":"$0.00"}},{"v":0,"d":"$0.00"}]
["LTC",null,null,{"$f":"Jurat!I$1","v":0},{"$f":"Jurat!D$33","v":"00:00:00"},"Q1","2017-03-31","Region 3","Operating Expense","Administrative Expense","Administrative","5.4","Marketing Expenses",{"$f":"'LTC Rev-Exp Region 3'!D$60","v":{"v":0,"d":"$0.00"}},{"$f":"'LTC Rev-Exp Region 3'!E$60","v":{"v":0,"d":"$0.00"}},{"$f":"'LTC Rev-Exp Region 3'!F$60","v":{"v":0,"d":"$0.00"}},{"$f":"'LTC Rev-Exp Region 3'!G$60","v":{"v":0,"d":"$0.00"}},{"v":0,"d":"$0.00"}]
["LTC",null,null,{"$f":"Jurat!I$1","v":0},{"$f":"Jurat!D$33","v":"00:00:00"},"Q1","2017-03-31","Region 3","Operating Expense","Administrative Expense","Administrative","5.5","General  Administration",{"$f":"'LTC Rev-Exp Region 3'!D$61","v":{"v":0,"d":"$0.00"}},{"$f":"'LTC Rev-Exp Region 3'!E$61","v":{"v":0,"d":"$0.00"}},{"$f":"'LTC Rev-Exp Region 3'!F$61","v":{"v":0,"d":"$0.00"}},{"$f":"'LTC Rev-Exp Region 3'!G$61","v":{"v":0,"d":"$0.00"}},{"v":0,"d":"$0.00"}]
["LTC",null,null,{"$f":"Jurat!I$1","v":0},{"$f":"Jurat!D$33","v":"00:00:00"},"Q1","2017-03-31","Region 3","Operating Expense","Administrative Expense","Administrative","5.6","Compliance/Regulatory",{"$f":"'LTC Rev-Exp Region 3'!D$62","v":{"v":0,"d":"$0.00"}},{"$f":"'LTC Rev-Exp Region 3'!E$62","v":{"v":0,"d":"$0.00"}},{"$f":"'LTC Rev-Exp Region 3'!F$62","v":{"v":0,"d":"$0.00"}},{"$f":"'LTC Rev-Exp Region 3'!G$62","v":{"v":0,"d":"$0.00"}},{"v":0,"d":"$0.00"}]
["LTC",null,null,{"$f":"Jurat!I$1","v":0},{"$f":"Jurat!D$33","v":"00:00:00"},"Q1","2017-03-31","Region 3","Operating Expense","Taxes & Fees","Taxes & Fees","6.1","State Premium Tax",{"$f":"'LTC Rev-Exp Region 3'!D$64","v":{"v":0,"d":"$0.00"}},{"v":0,"d":"$0.00"},{"v":0,"d":"$0.00"},{"v":0,"d":"$0.00"},{"v":0,"d":"$0.00"}]
["LTC",null,null,{"$f":"Jurat!I$1","v":0},{"$f":"Jurat!D$33","v":"00:00:00"},"Q1","2017-03-31","Region 3","Operating Expense","Taxes & Fees","Taxes & Fees","6.2","Department of Insurance Assessments",{"$f":"'LTC Rev-Exp Region 3'!D$65","v":{"v":0,"d":"$0.00"}},{"v":0,"d":"$0.00"},{"v":0,"d":"$0.00"},{"v":0,"d":"$0.00"},{"v":0,"d":"$0.00"}]
["LTC",null,null,{"$f":"Jurat!I$1","v":0},{"$f":"Jurat!D$33","v":"00:00:00"},"Q1","2017-03-31","Region 3","Non-Operating Expense","Income Tax Expense","Income Tax Expense","9.0","Income Tax Expense",{"$f":"'LTC Rev-Exp Region 3'!D$72","v":{"v":0,"d":"$0.00"}},{"v":0,"d":"$0.00"},{"v":0,"d":"$0.00"},{"v":0,"d":"$0.00"},{"v":0,"d":"$0.00"}]
["LTC",null,null,{"$f":"Jurat!I$1","v":0},{"$f":"Jurat!D$33","v":"00:00:00"},"Q2","2017-06-30","Region 3","Member Months","Member Months","Member Months",null,"Member Months",{"$f":"'LTC Rev-Exp Region 3'!H$9","v":{"v":0,"d":"$0.00"}},{"$f":"'LTC Rev-Exp Region 3'!I$9","v":{"v":0,"d":"$0.00"}},{"$f":"'LTC Rev-Exp Region 3'!J$9","v":{"v":0,"d":"$0.00"}},{"$f":"'LTC Rev-Exp Region 3'!K$9","v":{"v":0,"d":"$0.00"}},{"v":0,"d":"$0.00"}]
["LTC",null,null,{"$f":"Jurat!I$1","v":0},{"$f":"Jurat!D$33","v":"00:00:00"},"Q2","2017-06-30","Region 3","Operating Revenue","Capitation","Capitation",1.1,"Capitation",{"$f":"'LTC Rev-Exp Region 3'!H$11","v":{"v":0,"d":"$0.00"}},{"$f":"'LTC Rev-Exp Region 3'!I$11","v":{"v":0,"d":"$0.00"}},{"$f":"'LTC Rev-Exp Region 3'!J$11","v":{"v":0,"d":"$0.00"}},{"$f":"'LTC Rev-Exp Region 3'!K$11","v":{"v":0,"d":"$0.00"}},{"v":0,"d":"$0.00"}]
["LTC",null,null,{"$f":"Jurat!I$1","v":0},{"$f":"Jurat!D$33","v":"00:00:00"},"Q2","2017-06-30","Region 3","Operating Revenue","Capitation","NH Rate Reconciliation",1.2,"NH Rate Reconciliation",{"$f":"'LTC Rev-Exp Region 3'!H$12","v":{"v":0,"d":"$0.00"}},{"$f":"'LTC Rev-Exp Region 3'!I$12","v":{"v":0,"d":"$0.00"}},{"$f":"'LTC Rev-Exp Region 3'!J$12","v":{"v":0,"d":"$0.00"}},{"$f":"'LTC Rev-Exp Region 3'!K$12","v":{"v":0,"d":"$0.00"}},{"v":0,"d":"$0.00"}]
["LTC",null,null,{"$f":"Jurat!I$1","v":0},{"$f":"Jurat!D$33","v":"00:00:00"},"Q2","2017-06-30","Region 3","Operating Revenue","Other Revenue","Other Revenue",1.3,"Other Revenue",{"$f":"'LTC Rev-Exp Region 3'!H$13","v":{"v":0,"d":"$0.00"}},{"$f":"'LTC Rev-Exp Region 3'!I$13","v":{"v":0,"d":"$0.00"}},{"$f":"'LTC Rev-Exp Region 3'!J$13","v":{"v":0,"d":"$0.00"}},{"$f":"'LTC Rev-Exp Region 3'!K$13","v":{"v":0,"d":"$0.00"}},{"v":0,"d":"$0.00"}]
["LTC",null,null,{"$f":"Jurat!I$1","v":0},{"$f":"Jurat!D$33","v":"00:00:00"},"Q2","2017-06-30","Region 3","Operating Expense","Medical Expense","NF & Hospice","2.1","Nursing Facility Days (Medicaid)",{"$f":"'LTC Rev-Exp Region 3'!H$17","v":{"v":0,"d":"$0.00"}},{"$f":"'LTC Rev-Exp Region 3'!I$17","v":{"v":0,"d":"$0.00"}},{"$f":"'LTC Rev-Exp Region 3'!J$17","v":{"v":0,"d":"$0.00"}},{"$f":"'LTC Rev-Exp Region 3'!K$17","v":{"v":0,"d":"$0.00"}},{"v":0,"d":"$0.00"}]
["LTC",null,null,{"$f":"Jurat!I$1","v":0},{"$f":"Jurat!D$33","v":"00:00:00"},"Q2","2017-06-30","Region 3","Operating Expense","Medical Expense","NF & Hospice","2.2","Nursing Facility Days (Crossover)",{"$f":"'LTC Rev-Exp Region 3'!H$18","v":{"v":0,"d":"$0.00"}},{"$f":"'LTC Rev-Exp Region 3'!I$18","v":{"v":0,"d":"$0.00"}},{"$f":"'LTC Rev-Exp Region 3'!J$18","v":{"v":0,"d":"$0.00"}},{"$f":"'LTC Rev-Exp Region 3'!K$18","v":{"v":0,"d":"$0.00"}},{"v":0,"d":"$0.00"}]
["LTC",null,null,{"$f":"Jurat!I$1","v":0},{"$f":"Jurat!D$33","v":"00:00:00"},"Q2","2017-06-30","Region 3","Operating Expense","Medical Expense","NF & Hospice","2.3","Nursing Facility FFS (Medicaid)",{"$f":"'LTC Rev-Exp Region 3'!H$19","v":{"v":0,"d":"$0.00"}},{"$f":"'LTC Rev-Exp Region 3'!I$19","v":{"v":0,"d":"$0.00"}},{"$f":"'LTC Rev-Exp Region 3'!J$19","v":{"v":0,"d":"$0.00"}},{"$f":"'LTC Rev-Exp Region 3'!K$19","v":{"v":0,"d":"$0.00"}},{"v":0,"d":"$0.00"}]
["LTC",null,null,{"$f":"Jurat!I$1","v":0},{"$f":"Jurat!D$33","v":"00:00:00"},"Q2","2017-06-30","Region 3","Operating Expense","Medical Expense","NF & Hospice","2.4","Nursing Facility FFS (Crossover)",{"$f":"'LTC Rev-Exp Region 3'!H$20","v":{"v":0,"d":"$0.00"}},{"$f":"'LTC Rev-Exp Region 3'!I$20","v":{"v":0,"d":"$0.00"}},{"$f":"'LTC Rev-Exp Region 3'!J$20","v":{"v":0,"d":"$0.00"}},{"$f":"'LTC Rev-Exp Region 3'!K$20","v":{"v":0,"d":"$0.00"}},{"v":0,"d":"$0.00"}]
["LTC",null,null,{"$f":"Jurat!I$1","v":0},{"$f":"Jurat!D$33","v":"00:00:00"},"Q2","2017-06-30","Region 3","Operating Expense","Medical Expense","NF & Hospice","2.5","Hospice Days",{"$f":"'LTC Rev-Exp Region 3'!H$21","v":{"v":0,"d":"$0.00"}},{"$f":"'LTC Rev-Exp Region 3'!I$21","v":{"v":0,"d":"$0.00"}},{"$f":"'LTC Rev-Exp Region 3'!J$21","v":{"v":0,"d":"$0.00"}},{"$f":"'LTC Rev-Exp Region 3'!K$21","v":{"v":0,"d":"$0.00"}},{"v":0,"d":"$0.00"}]
["LTC",null,null,{"$f":"Jurat!I$1","v":0},{"$f":"Jurat!D$33","v":"00:00:00"},"Q2","2017-06-30","Region 3","Operating Expense","Medical Expense","NF & Hospice","2.6","Hospice FFS",{"$f":"'LTC Rev-Exp Region 3'!H$22","v":{"v":0,"d":"$0.00"}},{"$f":"'LTC Rev-Exp Region 3'!I$22","v":{"v":0,"d":"$0.00"}},{"$f":"'LTC Rev-Exp Region 3'!J$22","v":{"v":0,"d":"$0.00"}},{"$f":"'LTC Rev-Exp Region 3'!K$22","v":{"v":0,"d":"$0.00"}},{"v":0,"d":"$0.00"}]
["LTC",null,null,{"$f":"Jurat!I$1","v":0},{"$f":"Jurat!D$33","v":"00:00:00"},"Q2","2017-06-30","Region 3","Operating Expense","Medical Expense","NF & Hospice","2.7","Ending IBNP for NF & Hospice",{"$f":"'LTC Rev-Exp Region 3'!H$23","v":{"v":0,"d":"$0.00"}},{"$f":"'LTC Rev-Exp Region 3'!I$23","v":{"v":0,"d":"$0.00"}},{"$f":"'LTC Rev-Exp Region 3'!J$23","v":{"v":0,"d":"$0.00"}},{"$f":"'LTC Rev-Exp Region 3'!K$23","v":{"v":0,"d":"$0.00"}},{"v":0,"d":"$0.00"}]
["LTC",null,null,{"$f":"Jurat!I$1","v":0},{"$f":"Jurat!D$33","v":"00:00:00"},"Q2","2017-06-30","Region 3","Operating Expense","Medical Expense","NF & Hospice","2.8","NF & Hospice Subcapitated",{"$f":"'LTC Rev-Exp Region 3'!H$24","v":{"v":0,"d":"$0.00"}},{"$f":"'LTC Rev-Exp Region 3'!I$24","v":{"v":0,"d":"$0.00"}},{"$f":"'LTC Rev-Exp Region 3'!J$24","v":{"v":0,"d":"$0.00"}},{"$f":"'LTC Rev-Exp Region 3'!K$24","v":{"v":0,"d":"$0.00"}},{"v":0,"d":"$0.00"}]
["LTC",null,null,{"$f":"Jurat!I$1","v":0},{"$f":"Jurat!D$33","v":"00:00:00"},"Q2","2017-06-30","Region 3","Operating Expense","Medical Expense","NF & Hospice","2.9","NF & Hospice Settlements",{"$f":"'LTC Rev-Exp Region 3'!H$25","v":{"v":0,"d":"$0.00"}},{"$f":"'LTC Rev-Exp Region 3'!I$25","v":{"v":0,"d":"$0.00"}},{"$f":"'LTC Rev-Exp Region 3'!J$25","v":{"v":0,"d":"$0.00"}},{"$f":"'LTC Rev-Exp Region 3'!K$25","v":{"v":0,"d":"$0.00"}},{"v":0,"d":"$0.00"}]
["LTC",null,null,{"$f":"Jurat!I$1","v":0},{"$f":"Jurat!D$33","v":"00:00:00"},"Q2","2017-06-30","Region 3","Operating Expense","Medical Expense","LTC Services","2.11","Assisted Living FFS",{"$f":"'LTC Rev-Exp Region 3'!H$27","v":{"v":0,"d":"$0.00"}},{"$f":"'LTC Rev-Exp Region 3'!I$27","v":{"v":0,"d":"$0.00"}},{"$f":"'LTC Rev-Exp Region 3'!J$27","v":{"v":0,"d":"$0.00"}},{"$f":"'LTC Rev-Exp Region 3'!K$27","v":{"v":0,"d":"$0.00"}},{"v":0,"d":"$0.00"}]
["LTC",null,null,{"$f":"Jurat!I$1","v":0},{"$f":"Jurat!D$33","v":"00:00:00"},"Q2","2017-06-30","Region 3","Operating Expense","Medical Expense","LTC Services","2.12","Home Health FFS",{"$f":"'LTC Rev-Exp Region 3'!H$28","v":{"v":0,"d":"$0.00"}},{"$f":"'LTC Rev-Exp Region 3'!I$28","v":{"v":0,"d":"$0.00"}},{"$f":"'LTC Rev-Exp Region 3'!J$28","v":{"v":0,"d":"$0.00"}},{"$f":"'LTC Rev-Exp Region 3'!K$28","v":{"v":0,"d":"$0.00"}},{"v":0,"d":"$0.00"}]
["LTC",null,null,{"$f":"Jurat!I$1","v":0},{"$f":"Jurat!D$33","v":"00:00:00"},"Q2","2017-06-30","Region 3","Operating Expense","Medical Expense","LTC Services","2.13","Medical Equipment/Supplies FFS",{"$f":"'LTC Rev-Exp Region 3'!H$29","v":{"v":0,"d":"$0.00"}},{"$f":"'LTC Rev-Exp Region 3'!I$29","v":{"v":0,"d":"$0.00"}},{"$f":"'LTC Rev-Exp Region 3'!J$29","v":{"v":0,"d":"$0.00"}},{"$f":"'LTC Rev-Exp Region 3'!K$29","v":{"v":0,"d":"$0.00"}},{"v":0,"d":"$0.00"}]
["LTC",null,null,{"$f":"Jurat!I$1","v":0},{"$f":"Jurat!D$33","v":"00:00:00"},"Q2","2017-06-30","Region 3","Operating Expense","Medical Expense","LTC Services","2.14","Therapy FFS",{"$f":"'LTC Rev-Exp Region 3'!H$30","v":{"v":0,"d":"$0.00"}},{"$f":"'LTC Rev-Exp Region 3'!I$30","v":{"v":0,"d":"$0.00"}},{"$f":"'LTC Rev-Exp Region 3'!J$30","v":{"v":0,"d":"$0.00"}},{"$f":"'LTC Rev-Exp Region 3'!K$30","v":{"v":0,"d":"$0.00"}},{"v":0,"d":"$0.00"}]
["LTC",null,null,{"$f":"Jurat!I$1","v":0},{"$f":"Jurat!D$33","v":"00:00:00"},"Q2","2017-06-30","Region 3","Operating Expense","Medical Expense","LTC Services","2.15","Transportation FFS",{"$f":"'LTC Rev-Exp Region 3'!H$31","v":{"v":0,"d":"$0.00"}},{"$f":"'LTC Rev-Exp Region 3'!I$31","v":{"v":0,"d":"$0.00"}},{"$f":"'LTC Rev-Exp Region 3'!J$31","v":{"v":0,"d":"$0.00"}},{"$f":"'LTC Rev-Exp Region 3'!K$31","v":{"v":0,"d":"$0.00"}},{"v":0,"d":"$0.00"}]
["LTC",null,null,{"$f":"Jurat!I$1","v":0},{"$f":"Jurat!D$33","v":"00:00:00"},"Q2","2017-06-30","Region 3","Operating Expense","Medical Expense","LTC Services","2.16","Case Management FFS (Plan Provided)",{"$f":"'LTC Rev-Exp Region 3'!H$32","v":{"v":0,"d":"$0.00"}},{"$f":"'LTC Rev-Exp Region 3'!I$32","v":{"v":0,"d":"$0.00"}},{"$f":"'LTC Rev-Exp Region 3'!J$32","v":{"v":0,"d":"$0.00"}},{"$f":"'LTC Rev-Exp Region 3'!K$32","v":{"v":0,"d":"$0.00"}},{"v":0,"d":"$0.00"}]
["LTC",null,null,{"$f":"Jurat!I$1","v":0},{"$f":"Jurat!D$33","v":"00:00:00"},"Q2","2017-06-30","Region 3","Operating Expense","Medical Expense","LTC Services","2.17","Case Management FF (Non-Plan Provided)",{"$f":"'LTC Rev-Exp Region 3'!H$33","v":{"v":0,"d":"$0.00"}},{"$f":"'LTC Rev-Exp Region 3'!I$33","v":{"v":0,"d":"$0.00"}},{"$f":"'LTC Rev-Exp Region 3'!J$33","v":{"v":0,"d":"$0.00"}},{"$f":"'LTC Rev-Exp Region 3'!K$33","v":{"v":0,"d":"$0.00"}},{"v":0,"d":"$0.00"}]
["LTC",null,null,{"$f":"Jurat!I$1","v":0},{"$f":"Jurat!D$33","v":"00:00:00"},"Q2","2017-06-30","Region 3","Operating Expense","Medical Expense","LTC Services","2.18","HCBS FFS",{"$f":"'LTC Rev-Exp Region 3'!H$34","v":{"v":0,"d":"$0.00"}},{"$f":"'LTC Rev-Exp Region 3'!I$34","v":{"v":0,"d":"$0.00"}},{"$f":"'LTC Rev-Exp Region 3'!J$34","v":{"v":0,"d":"$0.00"}},{"$f":"'LTC Rev-Exp Region 3'!K$34","v":{"v":0,"d":"$0.00"}},{"v":0,"d":"$0.00"}]
["LTC",null,null,{"$f":"Jurat!I$1","v":0},{"$f":"Jurat!D$33","v":"00:00:00"},"Q2","2017-06-30","Region 3","Operating Expense","Medical Expense","LTC Services","2.19","Subcapitated LTC Services",{"$f":"'LTC Rev-Exp Region 3'!H$35","v":{"v":0,"d":"$0.00"}},{"$f":"'LTC Rev-Exp Region 3'!I$35","v":{"v":0,"d":"$0.00"}},{"$f":"'LTC Rev-Exp Region 3'!J$35","v":{"v":0,"d":"$0.00"}},{"$f":"'LTC Rev-Exp Region 3'!K$35","v":{"v":0,"d":"$0.00"}},{"v":0,"d":"$0.00"}]
["LTC",null,null,{"$f":"Jurat!I$1","v":0},{"$f":"Jurat!D$33","v":"00:00:00"},"Q2","2017-06-30","Region 3","Operating Expense","Medical Expense","LTC Services","2.20","Ending IBNP for Long Term Care Services",{"$f":"'LTC Rev-Exp Region 3'!H$36","v":{"v":0,"d":"$0.00"}},{"$f":"'LTC Rev-Exp Region 3'!I$36","v":{"v":0,"d":"$0.00"}},{"$f":"'LTC Rev-Exp Region 3'!J$36","v":{"v":0,"d":"$0.00"}},{"$f":"'LTC Rev-Exp Region 3'!K$36","v":{"v":0,"d":"$0.00"}},{"v":0,"d":"$0.00"}]
["LTC",null,null,{"$f":"Jurat!I$1","v":0},{"$f":"Jurat!D$33","v":"00:00:00"},"Q2","2017-06-30","Region 3","Operating Expense","Medical Expense","LTC Services","2.21","LTC Services Settlements",{"$f":"'LTC Rev-Exp Region 3'!H$37","v":{"v":0,"d":"$0.00"}},{"$f":"'LTC Rev-Exp Region 3'!I$37","v":{"v":0,"d":"$0.00"}},{"$f":"'LTC Rev-Exp Region 3'!J$37","v":{"v":0,"d":"$0.00"}},{"$f":"'LTC Rev-Exp Region 3'!K$37","v":{"v":0,"d":"$0.00"}},{"v":0,"d":"$0.00"}]
["LTC",null,null,{"$f":"Jurat!I$1","v":0},{"$f":"Jurat!D$33","v":"00:00:00"},"Q2","2017-06-30","Region 3","Operating Expense","Medical Expense","Expanded Benefits","3.1","Expanded Benefits FFS",{"$f":"'LTC Rev-Exp Region 3'!H$39","v":{"v":0,"d":"$0.00"}},{"$f":"'LTC Rev-Exp Region 3'!I$39","v":{"v":0,"d":"$0.00"}},{"$f":"'LTC Rev-Exp Region 3'!J$39","v":{"v":0,"d":"$0.00"}},{"$f":"'LTC Rev-Exp Region 3'!K$39","v":{"v":0,"d":"$0.00"}},{"v":0,"d":"$0.00"}]
["LTC",null,null,{"$f":"Jurat!I$1","v":0},{"$f":"Jurat!D$33","v":"00:00:00"},"Q2","2017-06-30","Region 3","Operating Expense","Medical Expense","Expanded Benefits","3.2","Expanded Benefits Subcapitation",{"$f":"'LTC Rev-Exp Region 3'!H$40","v":{"v":0,"d":"$0.00"}},{"$f":"'LTC Rev-Exp Region 3'!I$40","v":{"v":0,"d":"$0.00"}},{"$f":"'LTC Rev-Exp Region 3'!J$40","v":{"v":0,"d":"$0.00"}},{"$f":"'LTC Rev-Exp Region 3'!K$40","v":{"v":0,"d":"$0.00"}},{"v":0,"d":"$0.00"}]
["LTC",null,null,{"$f":"Jurat!I$1","v":0},{"$f":"Jurat!D$33","v":"00:00:00"},"Q2","2017-06-30","Region 3","Operating Expense","Medical Expense","Expanded Benefits","3.3","Ending IBNP for Expanded Benefits",{"$f":"'LTC Rev-Exp Region 3'!H$41","v":{"v":0,"d":"$0.00"}},{"$f":"'LTC Rev-Exp Region 3'!I$41","v":{"v":0,"d":"$0.00"}},{"$f":"'LTC Rev-Exp Region 3'!J$41","v":{"v":0,"d":"$0.00"}},{"$f":"'LTC Rev-Exp Region 3'!K$41","v":{"v":0,"d":"$0.00"}},{"v":0,"d":"$0.00"}]
["LTC",null,null,{"$f":"Jurat!I$1","v":0},{"$f":"Jurat!D$33","v":"00:00:00"},"Q2","2017-06-30","Region 3","Operating Expense","Medical Expense","Expanded Benefits","3.4","Expanded Benefits Settlements",{"$f":"'LTC Rev-Exp Region 3'!H$42","v":{"v":0,"d":"$0.00"}},{"$f":"'LTC Rev-Exp Region 3'!I$42","v":{"v":0,"d":"$0.00"}},{"$f":"'LTC Rev-Exp Region 3'!J$42","v":{"v":0,"d":"$0.00"}},{"$f":"'LTC Rev-Exp Region 3'!K$42","v":{"v":0,"d":"$0.00"}},{"v":0,"d":"$0.00"}]
["LTC",null,null,{"$f":"Jurat!I$1","v":0},{"$f":"Jurat!D$33","v":"00:00:00"},"Q2","2017-06-30","Region 3","Operating Expense","Medical Expense","Other Medical","4.5","TPL & Fraud/Abuse Recoveries",{"$f":"'LTC Rev-Exp Region 3'!H$48","v":{"v":0,"d":"$0.00"}},{"$f":"'LTC Rev-Exp Region 3'!I$48","v":{"v":0,"d":"$0.00"}},{"$f":"'LTC Rev-Exp Region 3'!J$48","v":{"v":0,"d":"$0.00"}},{"$f":"'LTC Rev-Exp Region 3'!K$48","v":{"v":0,"d":"$0.00"}},{"v":0,"d":"$0.00"}]
["LTC",null,null,{"$f":"Jurat!I$1","v":0},{"$f":"Jurat!D$33","v":"00:00:00"},"Q2","2017-06-30","Region 3","Operating Expense","Medical Expense","Other Medical","4.6.1","Premium Deficiency Reserve",{"$f":"'LTC Rev-Exp Region 3'!H$49","v":{"v":0,"d":"$0.00"}},{"$f":"'LTC Rev-Exp Region 3'!I$49","v":{"v":0,"d":"$0.00"}},{"$f":"'LTC Rev-Exp Region 3'!J$49","v":{"v":0,"d":"$0.00"}},{"$f":"'LTC Rev-Exp Region 3'!K$49","v":{"v":0,"d":"$0.00"}},{"v":0,"d":"$0.00"}]
["LTC",null,null,{"$f":"Jurat!I$1","v":0},{"$f":"Jurat!D$33","v":"00:00:00"},"Q2","2017-06-30","Region 3","Operating Expense","Medical Expense","Other Medical","4.8","Reinsurance Premiums",{"$f":"'LTC Rev-Exp Region 3'!H$51","v":{"v":0,"d":"$0.00"}},{"$f":"'LTC Rev-Exp Region 3'!I$51","v":{"v":0,"d":"$0.00"}},{"$f":"'LTC Rev-Exp Region 3'!J$51","v":{"v":0,"d":"$0.00"}},{"$f":"'LTC Rev-Exp Region 3'!K$51","v":{"v":0,"d":"$0.00"}},{"v":0,"d":"$0.00"}]
["LTC",null,null,{"$f":"Jurat!I$1","v":0},{"$f":"Jurat!D$33","v":"00:00:00"},"Q2","2017-06-30","Region 3","Operating Expense","Medical Expense","Other Medical","4.9","Reinsurance Recoveries",{"$f":"'LTC Rev-Exp Region 3'!H$52","v":{"v":0,"d":"$0.00"}},{"$f":"'LTC Rev-Exp Region 3'!I$52","v":{"v":0,"d":"$0.00"}},{"$f":"'LTC Rev-Exp Region 3'!J$52","v":{"v":0,"d":"$0.00"}},{"$f":"'LTC Rev-Exp Region 3'!K$52","v":{"v":0,"d":"$0.00"}},{"v":0,"d":"$0.00"}]
["LTC",null,null,{"$f":"Jurat!I$1","v":0},{"$f":"Jurat!D$33","v":"00:00:00"},"Q2","2017-06-30","Region 3","Operating Expense","Administrative Expense","Administrative","5.1","Salaries & Benefits",{"$f":"'LTC Rev-Exp Region 3'!H$57","v":{"v":0,"d":"$0.00"}},{"$f":"'LTC Rev-Exp Region 3'!I$57","v":{"v":0,"d":"$0.00"}},{"$f":"'LTC Rev-Exp Region 3'!J$57","v":{"v":0,"d":"$0.00"}},{"$f":"'LTC Rev-Exp Region 3'!K$57","v":{"v":0,"d":"$0.00"}},{"v":0,"d":"$0.00"}]
["LTC",null,null,{"$f":"Jurat!I$1","v":0},{"$f":"Jurat!D$33","v":"00:00:00"},"Q2","2017-06-30","Region 3","Operating Expense","Administrative Expense","Administrative","5.2","Administrative Services",{"$f":"'LTC Rev-Exp Region 3'!H$58","v":{"v":0,"d":"$0.00"}},{"$f":"'LTC Rev-Exp Region 3'!I$58","v":{"v":0,"d":"$0.00"}},{"$f":"'LTC Rev-Exp Region 3'!J$58","v":{"v":0,"d":"$0.00"}},{"$f":"'LTC Rev-Exp Region 3'!K$58","v":{"v":0,"d":"$0.00"}},{"v":0,"d":"$0.00"}]
["LTC",null,null,{"$f":"Jurat!I$1","v":0},{"$f":"Jurat!D$33","v":"00:00:00"},"Q2","2017-06-30","Region 3","Operating Expense","Administrative Expense","Administrative","5.3","Information Systems",{"$f":"'LTC Rev-Exp Region 3'!H$59","v":{"v":0,"d":"$0.00"}},{"$f":"'LTC Rev-Exp Region 3'!I$59","v":{"v":0,"d":"$0.00"}},{"$f":"'LTC Rev-Exp Region 3'!J$59","v":{"v":0,"d":"$0.00"}},{"$f":"'LTC Rev-Exp Region 3'!K$59","v":{"v":0,"d":"$0.00"}},{"v":0,"d":"$0.00"}]
["LTC",null,null,{"$f":"Jurat!I$1","v":0},{"$f":"Jurat!D$33","v":"00:00:00"},"Q2","2017-06-30","Region 3","Operating Expense","Administrative Expense","Administrative","5.4","Marketing Expenses",{"$f":"'LTC Rev-Exp Region 3'!H$60","v":{"v":0,"d":"$0.00"}},{"$f":"'LTC Rev-Exp Region 3'!I$60","v":{"v":0,"d":"$0.00"}},{"$f":"'LTC Rev-Exp Region 3'!J$60","v":{"v":0,"d":"$0.00"}},{"$f":"'LTC Rev-Exp Region 3'!K$60","v":{"v":0,"d":"$0.00"}},{"v":0,"d":"$0.00"}]
["LTC",null,null,{"$f":"Jurat!I$1","v":0},{"$f":"Jurat!D$33","v":"00:00:00"},"Q2","2017-06-30","Region 3","Operating Expense","Administrative Expense","Administrative","5.5","General  Administration",{"$f":"'LTC Rev-Exp Region 3'!H$61","v":{"v":0,"d":"$0.00"}},{"$f":"'LTC Rev-Exp Region 3'!I$61","v":{"v":0,"d":"$0.00"}},{"$f":"'LTC Rev-Exp Region 3'!J$61","v":{"v":0,"d":"$0.00"}},{"$f":"'LTC Rev-Exp Region 3'!K$61","v":{"v":0,"d":"$0.00"}},{"v":0,"d":"$0.00"}]
["LTC",null,null,{"$f":"Jurat!I$1","v":0},{"$f":"Jurat!D$33","v":"00:00:00"},"Q2","2017-06-30","Region 3","Operating Expense","Administrative Expense","Administrative","5.6","Compliance/Regulatory",{"$f":"'LTC Rev-Exp Region 3'!H$62","v":{"v":0,"d":"$0.00"}},{"$f":"'LTC Rev-Exp Region 3'!I$62","v":{"v":0,"d":"$0.00"}},{"$f":"'LTC Rev-Exp Region 3'!J$62","v":{"v":0,"d":"$0.00"}},{"$f":"'LTC Rev-Exp Region 3'!K$62","v":{"v":0,"d":"$0.00"}},{"v":0,"d":"$0.00"}]
["LTC",null,null,{"$f":"Jurat!I$1","v":0},{"$f":"Jurat!D$33","v":"00:00:00"},"Q2","2017-06-30","Region 3","Operating Expense","Taxes & Fees","Taxes & Fees","6.1","State Premium Tax",{"$f":"'LTC Rev-Exp Region 3'!H$64","v":{"v":0,"d":"$0.00"}},{"v":0,"d":"$0.00"},{"v":0,"d":"$0.00"},{"v":0,"d":"$0.00"},{"v":0,"d":"$0.00"}]
["LTC",null,null,{"$f":"Jurat!I$1","v":0},{"$f":"Jurat!D$33","v":"00:00:00"},"Q2","2017-06-30","Region 3","Operating Expense","Taxes & Fees","Taxes & Fees","6.2","Department of Insurance Assessments",{"$f":"'LTC Rev-Exp Region 3'!H$65","v":{"v":0,"d":"$0.00"}},{"v":0,"d":"$0.00"},{"v":0,"d":"$0.00"},{"v":0,"d":"$0.00"},{"v":0,"d":"$0.00"}]
["LTC",null,null,{"$f":"Jurat!I$1","v":0},{"$f":"Jurat!D$33","v":"00:00:00"},"Q2","2017-06-30","Region 3","Non-Operating Expense","Income Tax Expense","Income Tax Expense","9.0","Income Tax Expense",{"$f":"'LTC Rev-Exp Region 3'!H$72","v":{"v":0,"d":"$0.00"}},{"v":0,"d":"$0.00"},{"v":0,"d":"$0.00"},{"v":0,"d":"$0.00"},{"v":0,"d":"$0.00"}]
["LTC",null,null,{"$f":"Jurat!I$1","v":0},{"$f":"Jurat!D$33","v":"00:00:00"},"Q3","2017-09-30","Region 3","Member Months","Member Months","Member Months",null,"Member Months",{"$f":"'LTC Rev-Exp Region 3'!L$9","v":{"v":0,"d":"$0.00"}},{"$f":"'LTC Rev-Exp Region 3'!M$9","v":{"v":0,"d":"$0.00"}},{"$f":"'LTC Rev-Exp Region 3'!N$9","v":{"v":0,"d":"$0.00"}},{"$f":"'LTC Rev-Exp Region 3'!O$9","v":{"v":0,"d":"$0.00"}},{"v":0,"d":"$0.00"}]
["LTC",null,null,{"$f":"Jurat!I$1","v":0},{"$f":"Jurat!D$33","v":"00:00:00"},"Q3","2017-09-30","Region 3","Operating Revenue","Capitation","Capitation",1.1,"Capitation",{"$f":"'LTC Rev-Exp Region 3'!L$11","v":{"v":0,"d":"$0.00"}},{"$f":"'LTC Rev-Exp Region 3'!M$11","v":{"v":0,"d":"$0.00"}},{"$f":"'LTC Rev-Exp Region 3'!N$11","v":{"v":0,"d":"$0.00"}},{"$f":"'LTC Rev-Exp Region 3'!O$11","v":{"v":0,"d":"$0.00"}},{"v":0,"d":"$0.00"}]
["LTC",null,null,{"$f":"Jurat!I$1","v":0},{"$f":"Jurat!D$33","v":"00:00:00"},"Q3","2017-09-30","Region 3","Operating Revenue","Capitation","NH Rate Reconciliation",1.2,"NH Rate Reconciliation",{"$f":"'LTC Rev-Exp Region 3'!L$12","v":{"v":0,"d":"$0.00"}},{"$f":"'LTC Rev-Exp Region 3'!M$12","v":{"v":0,"d":"$0.00"}},{"$f":"'LTC Rev-Exp Region 3'!N$12","v":{"v":0,"d":"$0.00"}},{"$f":"'LTC Rev-Exp Region 3'!O$12","v":{"v":0,"d":"$0.00"}},{"v":0,"d":"$0.00"}]
["LTC",null,null,{"$f":"Jurat!I$1","v":0},{"$f":"Jurat!D$33","v":"00:00:00"},"Q3","2017-09-30","Region 3","Operating Revenue","Other Revenue","Other Revenue",1.3,"Other Revenue",{"$f":"'LTC Rev-Exp Region 3'!L$13","v":{"v":0,"d":"$0.00"}},{"$f":"'LTC Rev-Exp Region 3'!M$13","v":{"v":0,"d":"$0.00"}},{"$f":"'LTC Rev-Exp Region 3'!N$13","v":{"v":0,"d":"$0.00"}},{"$f":"'LTC Rev-Exp Region 3'!O$13","v":{"v":0,"d":"$0.00"}},{"v":0,"d":"$0.00"}]
["LTC",null,null,{"$f":"Jurat!I$1","v":0},{"$f":"Jurat!D$33","v":"00:00:00"},"Q3","2017-09-30","Region 3","Operating Expense","Medical Expense","NF & Hospice","2.1","Nursing Facility Days (Medicaid)",{"$f":"'LTC Rev-Exp Region 3'!L$17","v":{"v":0,"d":"$0.00"}},{"$f":"'LTC Rev-Exp Region 3'!M$17","v":{"v":0,"d":"$0.00"}},{"$f":"'LTC Rev-Exp Region 3'!N$17","v":{"v":0,"d":"$0.00"}},{"$f":"'LTC Rev-Exp Region 3'!O$17","v":{"v":0,"d":"$0.00"}},{"v":0,"d":"$0.00"}]
["LTC",null,null,{"$f":"Jurat!I$1","v":0},{"$f":"Jurat!D$33","v":"00:00:00"},"Q3","2017-09-30","Region 3","Operating Expense","Medical Expense","NF & Hospice","2.2","Nursing Facility Days (Crossover)",{"$f":"'LTC Rev-Exp Region 3'!L$18","v":{"v":0,"d":"$0.00"}},{"$f":"'LTC Rev-Exp Region 3'!M$18","v":{"v":0,"d":"$0.00"}},{"$f":"'LTC Rev-Exp Region 3'!N$18","v":{"v":0,"d":"$0.00"}},{"$f":"'LTC Rev-Exp Region 3'!O$18","v":{"v":0,"d":"$0.00"}},{"v":0,"d":"$0.00"}]
["LTC",null,null,{"$f":"Jurat!I$1","v":0},{"$f":"Jurat!D$33","v":"00:00:00"},"Q3","2017-09-30","Region 3","Operating Expense","Medical Expense","NF & Hospice","2.3","Nursing Facility FFS (Medicaid)",{"$f":"'LTC Rev-Exp Region 3'!L$19","v":{"v":0,"d":"$0.00"}},{"$f":"'LTC Rev-Exp Region 3'!M$19","v":{"v":0,"d":"$0.00"}},{"$f":"'LTC Rev-Exp Region 3'!N$19","v":{"v":0,"d":"$0.00"}},{"$f":"'LTC Rev-Exp Region 3'!O$19","v":{"v":0,"d":"$0.00"}},{"v":0,"d":"$0.00"}]
["LTC",null,null,{"$f":"Jurat!I$1","v":0},{"$f":"Jurat!D$33","v":"00:00:00"},"Q3","2017-09-30","Region 3","Operating Expense","Medical Expense","NF & Hospice","2.4","Nursing Facility FFS (Crossover)",{"$f":"'LTC Rev-Exp Region 3'!L$20","v":{"v":0,"d":"$0.00"}},{"$f":"'LTC Rev-Exp Region 3'!M$20","v":{"v":0,"d":"$0.00"}},{"$f":"'LTC Rev-Exp Region 3'!N$20","v":{"v":0,"d":"$0.00"}},{"$f":"'LTC Rev-Exp Region 3'!O$20","v":{"v":0,"d":"$0.00"}},{"v":0,"d":"$0.00"}]
["LTC",null,null,{"$f":"Jurat!I$1","v":0},{"$f":"Jurat!D$33","v":"00:00:00"},"Q3","2017-09-30","Region 3","Operating Expense","Medical Expense","NF & Hospice","2.5","Hospice Days",{"$f":"'LTC Rev-Exp Region 3'!L$21","v":{"v":0,"d":"$0.00"}},{"$f":"'LTC Rev-Exp Region 3'!M$21","v":{"v":0,"d":"$0.00"}},{"$f":"'LTC Rev-Exp Region 3'!N$21","v":{"v":0,"d":"$0.00"}},{"$f":"'LTC Rev-Exp Region 3'!O$21","v":{"v":0,"d":"$0.00"}},{"v":0,"d":"$0.00"}]
["LTC",null,null,{"$f":"Jurat!I$1","v":0},{"$f":"Jurat!D$33","v":"00:00:00"},"Q3","2017-09-30","Region 3","Operating Expense","Medical Expense","NF & Hospice","2.6","Hospice FFS",{"$f":"'LTC Rev-Exp Region 3'!L$22","v":{"v":0,"d":"$0.00"}},{"$f":"'LTC Rev-Exp Region 3'!M$22","v":{"v":0,"d":"$0.00"}},{"$f":"'LTC Rev-Exp Region 3'!N$22","v":{"v":0,"d":"$0.00"}},{"$f":"'LTC Rev-Exp Region 3'!O$22","v":{"v":0,"d":"$0.00"}},{"v":0,"d":"$0.00"}]
["LTC",null,null,{"$f":"Jurat!I$1","v":0},{"$f":"Jurat!D$33","v":"00:00:00"},"Q3","2017-09-30","Region 3","Operating Expense","Medical Expense","NF & Hospice","2.7","Ending IBNP for NF & Hospice",{"$f":"'LTC Rev-Exp Region 3'!L$23","v":{"v":0,"d":"$0.00"}},{"$f":"'LTC Rev-Exp Region 3'!M$23","v":{"v":0,"d":"$0.00"}},{"$f":"'LTC Rev-Exp Region 3'!N$23","v":{"v":0,"d":"$0.00"}},{"$f":"'LTC Rev-Exp Region 3'!O$23","v":{"v":0,"d":"$0.00"}},{"v":0,"d":"$0.00"}]
["LTC",null,null,{"$f":"Jurat!I$1","v":0},{"$f":"Jurat!D$33","v":"00:00:00"},"Q3","2017-09-30","Region 3","Operating Expense","Medical Expense","NF & Hospice","2.8","NF & Hospice Subcapitated",{"$f":"'LTC Rev-Exp Region 3'!L$24","v":{"v":0,"d":"$0.00"}},{"$f":"'LTC Rev-Exp Region 3'!M$24","v":{"v":0,"d":"$0.00"}},{"$f":"'LTC Rev-Exp Region 3'!N$24","v":{"v":0,"d":"$0.00"}},{"$f":"'LTC Rev-Exp Region 3'!O$24","v":{"v":0,"d":"$0.00"}},{"v":0,"d":"$0.00"}]
["LTC",null,null,{"$f":"Jurat!I$1","v":0},{"$f":"Jurat!D$33","v":"00:00:00"},"Q3","2017-09-30","Region 3","Operating Expense","Medical Expense","NF & Hospice","2.9","NF & Hospice Settlements",{"$f":"'LTC Rev-Exp Region 3'!L$25","v":{"v":0,"d":"$0.00"}},{"$f":"'LTC Rev-Exp Region 3'!M$25","v":{"v":0,"d":"$0.00"}},{"$f":"'LTC Rev-Exp Region 3'!N$25","v":{"v":0,"d":"$0.00"}},{"$f":"'LTC Rev-Exp Region 3'!O$25","v":{"v":0,"d":"$0.00"}},{"v":0,"d":"$0.00"}]
["LTC",null,null,{"$f":"Jurat!I$1","v":0},{"$f":"Jurat!D$33","v":"00:00:00"},"Q3","2017-09-30","Region 3","Operating Expense","Medical Expense","LTC Services","2.11","Assisted Living FFS",{"$f":"'LTC Rev-Exp Region 3'!L$27","v":{"v":0,"d":"$0.00"}},{"$f":"'LTC Rev-Exp Region 3'!M$27","v":{"v":0,"d":"$0.00"}},{"$f":"'LTC Rev-Exp Region 3'!N$27","v":{"v":0,"d":"$0.00"}},{"$f":"'LTC Rev-Exp Region 3'!O$27","v":{"v":0,"d":"$0.00"}},{"v":0,"d":"$0.00"}]
["LTC",null,null,{"$f":"Jurat!I$1","v":0},{"$f":"Jurat!D$33","v":"00:00:00"},"Q3","2017-09-30","Region 3","Operating Expense","Medical Expense","LTC Services","2.12","Home Health FFS",{"$f":"'LTC Rev-Exp Region 3'!L$28","v":{"v":0,"d":"$0.00"}},{"$f":"'LTC Rev-Exp Region 3'!M$28","v":{"v":0,"d":"$0.00"}},{"$f":"'LTC Rev-Exp Region 3'!N$28","v":{"v":0,"d":"$0.00"}},{"$f":"'LTC Rev-Exp Region 3'!O$28","v":{"v":0,"d":"$0.00"}},{"v":0,"d":"$0.00"}]
["LTC",null,null,{"$f":"Jurat!I$1","v":0},{"$f":"Jurat!D$33","v":"00:00:00"},"Q3","2017-09-30","Region 3","Operating Expense","Medical Expense","LTC Services","2.13","Medical Equipment/Supplies FFS",{"$f":"'LTC Rev-Exp Region 3'!L$29","v":{"v":0,"d":"$0.00"}},{"$f":"'LTC Rev-Exp Region 3'!M$29","v":{"v":0,"d":"$0.00"}},{"$f":"'LTC Rev-Exp Region 3'!N$29","v":{"v":0,"d":"$0.00"}},{"$f":"'LTC Rev-Exp Region 3'!O$29","v":{"v":0,"d":"$0.00"}},{"v":0,"d":"$0.00"}]
["LTC",null,null,{"$f":"Jurat!I$1","v":0},{"$f":"Jurat!D$33","v":"00:00:00"},"Q3","2017-09-30","Region 3","Operating Expense","Medical Expense","LTC Services","2.14","Therapy FFS",{"$f":"'LTC Rev-Exp Region 3'!L$30","v":{"v":0,"d":"$0.00"}},{"$f":"'LTC Rev-Exp Region 3'!M$30","v":{"v":0,"d":"$0.00"}},{"$f":"'LTC Rev-Exp Region 3'!N$30","v":{"v":0,"d":"$0.00"}},{"$f":"'LTC Rev-Exp Region 3'!O$30","v":{"v":0,"d":"$0.00"}},{"v":0,"d":"$0.00"}]
["LTC",null,null,{"$f":"Jurat!I$1","v":0},{"$f":"Jurat!D$33","v":"00:00:00"},"Q3","2017-09-30","Region 3","Operating Expense","Medical Expense","LTC Services","2.15","Transportation FFS",{"$f":"'LTC Rev-Exp Region 3'!L$31","v":{"v":0,"d":"$0.00"}},{"$f":"'LTC Rev-Exp Region 3'!M$31","v":{"v":0,"d":"$0.00"}},{"$f":"'LTC Rev-Exp Region 3'!N$31","v":{"v":0,"d":"$0.00"}},{"$f":"'LTC Rev-Exp Region 3'!O$31","v":{"v":0,"d":"$0.00"}},{"v":0,"d":"$0.00"}]
["LTC",null,null,{"$f":"Jurat!I$1","v":0},{"$f":"Jurat!D$33","v":"00:00:00"},"Q3","2017-09-30","Region 3","Operating Expense","Medical Expense","LTC Services","2.16","Case Management FFS (Plan Provided)",{"$f":"'LTC Rev-Exp Region 3'!L$32","v":{"v":0,"d":"$0.00"}},{"$f":"'LTC Rev-Exp Region 3'!M$32","v":{"v":0,"d":"$0.00"}},{"$f":"'LTC Rev-Exp Region 3'!N$32","v":{"v":0,"d":"$0.00"}},{"$f":"'LTC Rev-Exp Region 3'!O$32","v":{"v":0,"d":"$0.00"}},{"v":0,"d":"$0.00"}]
["LTC",null,null,{"$f":"Jurat!I$1","v":0},{"$f":"Jurat!D$33","v":"00:00:00"},"Q3","2017-09-30","Region 3","Operating Expense","Medical Expense","LTC Services","2.17","Case Management FF (Non-Plan Provided)",{"$f":"'LTC Rev-Exp Region 3'!L$33","v":{"v":0,"d":"$0.00"}},{"$f":"'LTC Rev-Exp Region 3'!M$33","v":{"v":0,"d":"$0.00"}},{"$f":"'LTC Rev-Exp Region 3'!N$33","v":{"v":0,"d":"$0.00"}},{"$f":"'LTC Rev-Exp Region 3'!O$33","v":{"v":0,"d":"$0.00"}},{"v":0,"d":"$0.00"}]
["LTC",null,null,{"$f":"Jurat!I$1","v":0},{"$f":"Jurat!D$33","v":"00:00:00"},"Q3","2017-09-30","Region 3","Operating Expense","Medical Expense","LTC Services","2.18","HCBS FFS",{"$f":"'LTC Rev-Exp Region 3'!L$34","v":{"v":0,"d":"$0.00"}},{"$f":"'LTC Rev-Exp Region 3'!M$34","v":{"v":0,"d":"$0.00"}},{"$f":"'LTC Rev-Exp Region 3'!N$34","v":{"v":0,"d":"$0.00"}},{"$f":"'LTC Rev-Exp Region 3'!O$34","v":{"v":0,"d":"$0.00"}},{"v":0,"d":"$0.00"}]
["LTC",null,null,{"$f":"Jurat!I$1","v":0},{"$f":"Jurat!D$33","v":"00:00:00"},"Q3","2017-09-30","Region 3","Operating Expense","Medical Expense","LTC Services","2.19","Subcapitated LTC Services",{"$f":"'LTC Rev-Exp Region 3'!L$35","v":{"v":0,"d":"$0.00"}},{"$f":"'LTC Rev-Exp Region 3'!M$35","v":{"v":0,"d":"$0.00"}},{"$f":"'LTC Rev-Exp Region 3'!N$35","v":{"v":0,"d":"$0.00"}},{"$f":"'LTC Rev-Exp Region 3'!O$35","v":{"v":0,"d":"$0.00"}},{"v":0,"d":"$0.00"}]
["LTC",null,null,{"$f":"Jurat!I$1","v":0},{"$f":"Jurat!D$33","v":"00:00:00"},"Q3","2017-09-30","Region 3","Operating Expense","Medical Expense","LTC Services","2.20","Ending IBNP for Long Term Care Services",{"$f":"'LTC Rev-Exp Region 3'!L$36","v":{"v":0,"d":"$0.00"}},{"$f":"'LTC Rev-Exp Region 3'!M$36","v":{"v":0,"d":"$0.00"}},{"$f":"'LTC Rev-Exp Region 3'!N$36","v":{"v":0,"d":"$0.00"}},{"$f":"'LTC Rev-Exp Region 3'!O$36","v":{"v":0,"d":"$0.00"}},{"v":0,"d":"$0.00"}]
["LTC",null,null,{"$f":"Jurat!I$1","v":0},{"$f":"Jurat!D$33","v":"00:00:00"},"Q3","2017-09-30","Region 3","Operating Expense","Medical Expense","LTC Services","2.21","LTC Services Settlements",{"$f":"'LTC Rev-Exp Region 3'!L$37","v":{"v":0,"d":"$0.00"}},{"$f":"'LTC Rev-Exp Region 3'!M$37","v":{"v":0,"d":"$0.00"}},{"$f":"'LTC Rev-Exp Region 3'!N$37","v":{"v":0,"d":"$0.00"}},{"$f":"'LTC Rev-Exp Region 3'!O$37","v":{"v":0,"d":"$0.00"}},{"v":0,"d":"$0.00"}]
["LTC",null,null,{"$f":"Jurat!I$1","v":0},{"$f":"Jurat!D$33","v":"00:00:00"},"Q3","2017-09-30","Region 3","Operating Expense","Medical Expense","Expanded Benefits","3.1","Expanded Benefits FFS",{"$f":"'LTC Rev-Exp Region 3'!L$39","v":{"v":0,"d":"$0.00"}},{"$f":"'LTC Rev-Exp Region 3'!M$39","v":{"v":0,"d":"$0.00"}},{"$f":"'LTC Rev-Exp Region 3'!N$39","v":{"v":0,"d":"$0.00"}},{"$f":"'LTC Rev-Exp Region 3'!O$39","v":{"v":0,"d":"$0.00"}},{"v":0,"d":"$0.00"}]
["LTC",null,null,{"$f":"Jurat!I$1","v":0},{"$f":"Jurat!D$33","v":"00:00:00"},"Q3","2017-09-30","Region 3","Operating Expense","Medical Expense","Expanded Benefits","3.2","Expanded Benefits Subcapitation",{"$f":"'LTC Rev-Exp Region 3'!L$40","v":{"v":0,"d":"$0.00"}},{"$f":"'LTC Rev-Exp Region 3'!M$40","v":{"v":0,"d":"$0.00"}},{"$f":"'LTC Rev-Exp Region 3'!N$40","v":{"v":0,"d":"$0.00"}},{"$f":"'LTC Rev-Exp Region 3'!O$40","v":{"v":0,"d":"$0.00"}},{"v":0,"d":"$0.00"}]
["LTC",null,null,{"$f":"Jurat!I$1","v":0},{"$f":"Jurat!D$33","v":"00:00:00"},"Q3","2017-09-30","Region 3","Operating Expense","Medical Expense","Expanded Benefits","3.3","Ending IBNP for Expanded Benefits",{"$f":"'LTC Rev-Exp Region 3'!L$41","v":{"v":0,"d":"$0.00"}},{"$f":"'LTC Rev-Exp Region 3'!M$41","v":{"v":0,"d":"$0.00"}},{"$f":"'LTC Rev-Exp Region 3'!N$41","v":{"v":0,"d":"$0.00"}},{"$f":"'LTC Rev-Exp Region 3'!O$41","v":{"v":0,"d":"$0.00"}},{"v":0,"d":"$0.00"}]
["LTC",null,null,{"$f":"Jurat!I$1","v":0},{"$f":"Jurat!D$33","v":"00:00:00"},"Q3","2017-09-30","Region 3","Operating Expense","Medical Expense","Expanded Benefits","3.4","Expanded Benefits Settlements",{"$f":"'LTC Rev-Exp Region 3'!L$42","v":{"v":0,"d":"$0.00"}},{"$f":"'LTC Rev-Exp Region 3'!M$42","v":{"v":0,"d":"$0.00"}},{"$f":"'LTC Rev-Exp Region 3'!N$42","v":{"v":0,"d":"$0.00"}},{"$f":"'LTC Rev-Exp Region 3'!O$42","v":{"v":0,"d":"$0.00"}},{"v":0,"d":"$0.00"}]
["LTC",null,null,{"$f":"Jurat!I$1","v":0},{"$f":"Jurat!D$33","v":"00:00:00"},"Q3","2017-09-30","Region 3","Operating Expense","Medical Expense","Other Medical","4.5","TPL & Fraud/Abuse Recoveries",{"$f":"'LTC Rev-Exp Region 3'!L$48","v":{"v":0,"d":"$0.00"}},{"$f":"'LTC Rev-Exp Region 3'!M$48","v":{"v":0,"d":"$0.00"}},{"$f":"'LTC Rev-Exp Region 3'!N$48","v":{"v":0,"d":"$0.00"}},{"$f":"'LTC Rev-Exp Region 3'!O$48","v":{"v":0,"d":"$0.00"}},{"v":0,"d":"$0.00"}]
["LTC",null,null,{"$f":"Jurat!I$1","v":0},{"$f":"Jurat!D$33","v":"00:00:00"},"Q3","2017-09-30","Region 3","Operating Expense","Medical Expense","Other Medical","4.6.1","Premium Deficiency Reserve",{"$f":"'LTC Rev-Exp Region 3'!L$49","v":{"v":0,"d":"$0.00"}},{"$f":"'LTC Rev-Exp Region 3'!M$49","v":{"v":0,"d":"$0.00"}},{"$f":"'LTC Rev-Exp Region 3'!N$49","v":{"v":0,"d":"$0.00"}},{"$f":"'LTC Rev-Exp Region 3'!O$49","v":{"v":0,"d":"$0.00"}},{"v":0,"d":"$0.00"}]
["LTC",null,null,{"$f":"Jurat!I$1","v":0},{"$f":"Jurat!D$33","v":"00:00:00"},"Q3","2017-09-30","Region 3","Operating Expense","Medical Expense","Other Medical","4.8","Reinsurance Premiums",{"$f":"'LTC Rev-Exp Region 3'!L$51","v":{"v":0,"d":"$0.00"}},{"$f":"'LTC Rev-Exp Region 3'!M$51","v":{"v":0,"d":"$0.00"}},{"$f":"'LTC Rev-Exp Region 3'!N$51","v":{"v":0,"d":"$0.00"}},{"$f":"'LTC Rev-Exp Region 3'!O$51","v":{"v":0,"d":"$0.00"}},{"v":0,"d":"$0.00"}]
["LTC",null,null,{"$f":"Jurat!I$1","v":0},{"$f":"Jurat!D$33","v":"00:00:00"},"Q3","2017-09-30","Region 3","Operating Expense","Medical Expense","Other Medical","4.9","Reinsurance Recoveries",{"$f":"'LTC Rev-Exp Region 3'!L$52","v":{"v":0,"d":"$0.00"}},{"$f":"'LTC Rev-Exp Region 3'!M$52","v":{"v":0,"d":"$0.00"}},{"$f":"'LTC Rev-Exp Region 3'!N$52","v":{"v":0,"d":"$0.00"}},{"$f":"'LTC Rev-Exp Region 3'!O$52","v":{"v":0,"d":"$0.00"}},{"v":0,"d":"$0.00"}]
["LTC",null,null,{"$f":"Jurat!I$1","v":0},{"$f":"Jurat!D$33","v":"00:00:00"},"Q3","2017-09-30","Region 3","Operating Expense","Administrative Expense","Administrative","5.1","Salaries & Benefits",{"$f":"'LTC Rev-Exp Region 3'!L$57","v":{"v":0,"d":"$0.00"}},{"$f":"'LTC Rev-Exp Region 3'!M$57","v":{"v":0,"d":"$0.00"}},{"$f":"'LTC Rev-Exp Region 3'!N$57","v":{"v":0,"d":"$0.00"}},{"$f":"'LTC Rev-Exp Region 3'!O$57","v":{"v":0,"d":"$0.00"}},{"v":0,"d":"$0.00"}]
["LTC",null,null,{"$f":"Jurat!I$1","v":0},{"$f":"Jurat!D$33","v":"00:00:00"},"Q3","2017-09-30","Region 3","Operating Expense","Administrative Expense","Administrative","5.2","Administrative Services",{"$f":"'LTC Rev-Exp Region 3'!L$58","v":{"v":0,"d":"$0.00"}},{"$f":"'LTC Rev-Exp Region 3'!M$58","v":{"v":0,"d":"$0.00"}},{"$f":"'LTC Rev-Exp Region 3'!N$58","v":{"v":0,"d":"$0.00"}},{"$f":"'LTC Rev-Exp Region 3'!O$58","v":{"v":0,"d":"$0.00"}},{"v":0,"d":"$0.00"}]
["LTC",null,null,{"$f":"Jurat!I$1","v":0},{"$f":"Jurat!D$33","v":"00:00:00"},"Q3","2017-09-30","Region 3","Operating Expense","Administrative Expense","Administrative","5.3","Information Systems",{"$f":"'LTC Rev-Exp Region 3'!L$59","v":{"v":0,"d":"$0.00"}},{"$f":"'LTC Rev-Exp Region 3'!M$59","v":{"v":0,"d":"$0.00"}},{"$f":"'LTC Rev-Exp Region 3'!N$59","v":{"v":0,"d":"$0.00"}},{"$f":"'LTC Rev-Exp Region 3'!O$59","v":{"v":0,"d":"$0.00"}},{"v":0,"d":"$0.00"}]
["LTC",null,null,{"$f":"Jurat!I$1","v":0},{"$f":"Jurat!D$33","v":"00:00:00"},"Q3","2017-09-30","Region 3","Operating Expense","Administrative Expense","Administrative","5.4","Marketing Expenses",{"$f":"'LTC Rev-Exp Region 3'!L$60","v":{"v":0,"d":"$0.00"}},{"$f":"'LTC Rev-Exp Region 3'!M$60","v":{"v":0,"d":"$0.00"}},{"$f":"'LTC Rev-Exp Region 3'!N$60","v":{"v":0,"d":"$0.00"}},{"$f":"'LTC Rev-Exp Region 3'!O$60","v":{"v":0,"d":"$0.00"}},{"v":0,"d":"$0.00"}]
["LTC",null,null,{"$f":"Jurat!I$1","v":0},{"$f":"Jurat!D$33","v":"00:00:00"},"Q3","2017-09-30","Region 3","Operating Expense","Administrative Expense","Administrative","5.5","General  Administration",{"$f":"'LTC Rev-Exp Region 3'!L$61","v":{"v":0,"d":"$0.00"}},{"$f":"'LTC Rev-Exp Region 3'!M$61","v":{"v":0,"d":"$0.00"}},{"$f":"'LTC Rev-Exp Region 3'!N$61","v":{"v":0,"d":"$0.00"}},{"$f":"'LTC Rev-Exp Region 3'!O$61","v":{"v":0,"d":"$0.00"}},{"v":0,"d":"$0.00"}]
["LTC",null,null,{"$f":"Jurat!I$1","v":0},{"$f":"Jurat!D$33","v":"00:00:00"},"Q3","2017-09-30","Region 3","Operating Expense","Administrative Expense","Administrative","5.6","Compliance/Regulatory",{"$f":"'LTC Rev-Exp Region 3'!L$62","v":{"v":0,"d":"$0.00"}},{"$f":"'LTC Rev-Exp Region 3'!M$62","v":{"v":0,"d":"$0.00"}},{"$f":"'LTC Rev-Exp Region 3'!N$62","v":{"v":0,"d":"$0.00"}},{"$f":"'LTC Rev-Exp Region 3'!O$62","v":{"v":0,"d":"$0.00"}},{"v":0,"d":"$0.00"}]
["LTC",null,null,{"$f":"Jurat!I$1","v":0},{"$f":"Jurat!D$33","v":"00:00:00"},"Q3","2017-09-30","Region 3","Operating Expense","Taxes & Fees","Taxes & Fees","6.1","State Premium Tax",{"$f":"'LTC Rev-Exp Region 3'!L$64","v":{"v":0,"d":"$0.00"}},{"v":0,"d":"$0.00"},{"v":0,"d":"$0.00"},{"v":0,"d":"$0.00"},{"v":0,"d":"$0.00"}]
["LTC",null,null,{"$f":"Jurat!I$1","v":0},{"$f":"Jurat!D$33","v":"00:00:00"},"Q3","2017-09-30","Region 3","Operating Expense","Taxes & Fees","Taxes & Fees","6.2","Department of Insurance Assessments",{"$f":"'LTC Rev-Exp Region 3'!L$65","v":{"v":0,"d":"$0.00"}},{"v":0,"d":"$0.00"},{"v":0,"d":"$0.00"},{"v":0,"d":"$0.00"},{"v":0,"d":"$0.00"}]
["LTC",null,null,{"$f":"Jurat!I$1","v":0},{"$f":"Jurat!D$33","v":"00:00:00"},"Q3","2017-09-30","Region 3","Non-Operating Expense","Income Tax Expense","Income Tax Expense","9.0","Income Tax Expense",{"$f":"'LTC Rev-Exp Region 3'!L$72","v":{"v":0,"d":"$0.00"}},{"v":0,"d":"$0.00"},{"v":0,"d":"$0.00"},{"v":0,"d":"$0.00"},{"v":0,"d":"$0.00"}]
["LTC",null,null,{"$f":"Jurat!I$1","v":0},{"$f":"Jurat!D$33","v":"00:00:00"},"Q4","2017-12-31","Region 3","Member Months","Member Months","Member Months",null,"Member Months",{"$f":"'LTC Rev-Exp Region 3'!P$9","v":{"v":0,"d":"$0.00"}},{"$f":"'LTC Rev-Exp Region 3'!Q$9","v":{"v":0,"d":"$0.00"}},{"$f":"'LTC Rev-Exp Region 3'!R$9","v":{"v":0,"d":"$0.00"}},{"$f":"'LTC Rev-Exp Region 3'!S$9","v":{"v":0,"d":"$0.00"}},{"v":0,"d":"$0.00"}]
["LTC",null,null,{"$f":"Jurat!I$1","v":0},{"$f":"Jurat!D$33","v":"00:00:00"},"Q4","2017-12-31","Region 3","Operating Revenue","Capitation","Capitation",1.1,"Capitation",{"$f":"'LTC Rev-Exp Region 3'!P$11","v":{"v":0,"d":"$0.00"}},{"$f":"'LTC Rev-Exp Region 3'!Q$11","v":{"v":0,"d":"$0.00"}},{"$f":"'LTC Rev-Exp Region 3'!R$11","v":{"v":0,"d":"$0.00"}},{"$f":"'LTC Rev-Exp Region 3'!S$11","v":{"v":0,"d":"$0.00"}},{"v":0,"d":"$0.00"}]
["LTC",null,null,{"$f":"Jurat!I$1","v":0},{"$f":"Jurat!D$33","v":"00:00:00"},"Q4","2017-12-31","Region 3","Operating Revenue","Capitation","NH Rate Reconciliation",1.2,"NH Rate Reconciliation",{"$f":"'LTC Rev-Exp Region 3'!P$12","v":{"v":0,"d":"$0.00"}},{"$f":"'LTC Rev-Exp Region 3'!Q$12","v":{"v":0,"d":"$0.00"}},{"$f":"'LTC Rev-Exp Region 3'!R$12","v":{"v":0,"d":"$0.00"}},{"$f":"'LTC Rev-Exp Region 3'!S$12","v":{"v":0,"d":"$0.00"}},{"v":0,"d":"$0.00"}]
["LTC",null,null,{"$f":"Jurat!I$1","v":0},{"$f":"Jurat!D$33","v":"00:00:00"},"Q4","2017-12-31","Region 3","Operating Revenue","Other Revenue","Other Revenue",1.3,"Other Revenue",{"$f":"'LTC Rev-Exp Region 3'!P$13","v":{"v":0,"d":"$0.00"}},{"$f":"'LTC Rev-Exp Region 3'!Q$13","v":{"v":0,"d":"$0.00"}},{"$f":"'LTC Rev-Exp Region 3'!R$13","v":{"v":0,"d":"$0.00"}},{"$f":"'LTC Rev-Exp Region 3'!S$13","v":{"v":0,"d":"$0.00"}},{"v":0,"d":"$0.00"}]
["LTC",null,null,{"$f":"Jurat!I$1","v":0},{"$f":"Jurat!D$33","v":"00:00:00"},"Q4","2017-12-31","Region 3","Operating Expense","Medical Expense","NF & Hospice","2.1","Nursing Facility Days (Medicaid)",{"$f":"'LTC Rev-Exp Region 3'!P$17","v":{"v":0,"d":"$0.00"}},{"$f":"'LTC Rev-Exp Region 3'!Q$17","v":{"v":0,"d":"$0.00"}},{"$f":"'LTC Rev-Exp Region 3'!R$17","v":{"v":0,"d":"$0.00"}},{"$f":"'LTC Rev-Exp Region 3'!S$17","v":{"v":0,"d":"$0.00"}},{"v":0,"d":"$0.00"}]
["LTC",null,null,{"$f":"Jurat!I$1","v":0},{"$f":"Jurat!D$33","v":"00:00:00"},"Q4","2017-12-31","Region 3","Operating Expense","Medical Expense","NF & Hospice","2.2","Nursing Facility Days (Crossover)",{"$f":"'LTC Rev-Exp Region 3'!P$18","v":{"v":0,"d":"$0.00"}},{"$f":"'LTC Rev-Exp Region 3'!Q$18","v":{"v":0,"d":"$0.00"}},{"$f":"'LTC Rev-Exp Region 3'!R$18","v":{"v":0,"d":"$0.00"}},{"$f":"'LTC Rev-Exp Region 3'!S$18","v":{"v":0,"d":"$0.00"}},{"v":0,"d":"$0.00"}]
["LTC",null,null,{"$f":"Jurat!I$1","v":0},{"$f":"Jurat!D$33","v":"00:00:00"},"Q4","2017-12-31","Region 3","Operating Expense","Medical Expense","NF & Hospice","2.3","Nursing Facility FFS (Medicaid)",{"$f":"'LTC Rev-Exp Region 3'!P$19","v":{"v":0,"d":"$0.00"}},{"$f":"'LTC Rev-Exp Region 3'!Q$19","v":{"v":0,"d":"$0.00"}},{"$f":"'LTC Rev-Exp Region 3'!R$19","v":{"v":0,"d":"$0.00"}},{"$f":"'LTC Rev-Exp Region 3'!S$19","v":{"v":0,"d":"$0.00"}},{"v":0,"d":"$0.00"}]
["LTC",null,null,{"$f":"Jurat!I$1","v":0},{"$f":"Jurat!D$33","v":"00:00:00"},"Q4","2017-12-31","Region 3","Operating Expense","Medical Expense","NF & Hospice","2.4","Nursing Facility FFS (Crossover)",{"$f":"'LTC Rev-Exp Region 3'!P$20","v":{"v":0,"d":"$0.00"}},{"$f":"'LTC Rev-Exp Region 3'!Q$20","v":{"v":0,"d":"$0.00"}},{"$f":"'LTC Rev-Exp Region 3'!R$20","v":{"v":0,"d":"$0.00"}},{"$f":"'LTC Rev-Exp Region 3'!S$20","v":{"v":0,"d":"$0.00"}},{"v":0,"d":"$0.00"}]
["LTC",null,null,{"$f":"Jurat!I$1","v":0},{"$f":"Jurat!D$33","v":"00:00:00"},"Q4","2017-12-31","Region 3","Operating Expense","Medical Expense","NF & Hospice","2.5","Hospice Days",{"$f":"'LTC Rev-Exp Region 3'!P$21","v":{"v":0,"d":"$0.00"}},{"$f":"'LTC Rev-Exp Region 3'!Q$21","v":{"v":0,"d":"$0.00"}},{"$f":"'LTC Rev-Exp Region 3'!R$21","v":{"v":0,"d":"$0.00"}},{"$f":"'LTC Rev-Exp Region 3'!S$21","v":{"v":0,"d":"$0.00"}},{"v":0,"d":"$0.00"}]
["LTC",null,null,{"$f":"Jurat!I$1","v":0},{"$f":"Jurat!D$33","v":"00:00:00"},"Q4","2017-12-31","Region 3","Operating Expense","Medical Expense","NF & Hospice","2.6","Hospice FFS",{"$f":"'LTC Rev-Exp Region 3'!P$22","v":{"v":0,"d":"$0.00"}},{"$f":"'LTC Rev-Exp Region 3'!Q$22","v":{"v":0,"d":"$0.00"}},{"$f":"'LTC Rev-Exp Region 3'!R$22","v":{"v":0,"d":"$0.00"}},{"$f":"'LTC Rev-Exp Region 3'!S$22","v":{"v":0,"d":"$0.00"}},{"v":0,"d":"$0.00"}]
["LTC",null,null,{"$f":"Jurat!I$1","v":0},{"$f":"Jurat!D$33","v":"00:00:00"},"Q4","2017-12-31","Region 3","Operating Expense","Medical Expense","NF & Hospice","2.7","Ending IBNP for NF & Hospice",{"$f":"'LTC Rev-Exp Region 3'!P$23","v":{"v":0,"d":"$0.00"}},{"$f":"'LTC Rev-Exp Region 3'!Q$23","v":{"v":0,"d":"$0.00"}},{"$f":"'LTC Rev-Exp Region 3'!R$23","v":{"v":0,"d":"$0.00"}},{"$f":"'LTC Rev-Exp Region 3'!S$23","v":{"v":0,"d":"$0.00"}},{"v":0,"d":"$0.00"}]
["LTC",null,null,{"$f":"Jurat!I$1","v":0},{"$f":"Jurat!D$33","v":"00:00:00"},"Q4","2017-12-31","Region 3","Operating Expense","Medical Expense","NF & Hospice","2.8","NF & Hospice Subcapitated",{"$f":"'LTC Rev-Exp Region 3'!P$24","v":{"v":0,"d":"$0.00"}},{"$f":"'LTC Rev-Exp Region 3'!Q$24","v":{"v":0,"d":"$0.00"}},{"$f":"'LTC Rev-Exp Region 3'!R$24","v":{"v":0,"d":"$0.00"}},{"$f":"'LTC Rev-Exp Region 3'!S$24","v":{"v":0,"d":"$0.00"}},{"v":0,"d":"$0.00"}]
["LTC",null,null,{"$f":"Jurat!I$1","v":0},{"$f":"Jurat!D$33","v":"00:00:00"},"Q4","2017-12-31","Region 3","Operating Expense","Medical Expense","NF & Hospice","2.9","NF & Hospice Settlements",{"$f":"'LTC Rev-Exp Region 3'!P$25","v":{"v":0,"d":"$0.00"}},{"$f":"'LTC Rev-Exp Region 3'!Q$25","v":{"v":0,"d":"$0.00"}},{"$f":"'LTC Rev-Exp Region 3'!R$25","v":{"v":0,"d":"$0.00"}},{"$f":"'LTC Rev-Exp Region 3'!S$25","v":{"v":0,"d":"$0.00"}},{"v":0,"d":"$0.00"}]
["LTC",null,null,{"$f":"Jurat!I$1","v":0},{"$f":"Jurat!D$33","v":"00:00:00"},"Q4","2017-12-31","Region 3","Operating Expense","Medical Expense","LTC Services","2.11","Assisted Living FFS",{"$f":"'LTC Rev-Exp Region 3'!P$27","v":{"v":0,"d":"$0.00"}},{"$f":"'LTC Rev-Exp Region 3'!Q$27","v":{"v":0,"d":"$0.00"}},{"$f":"'LTC Rev-Exp Region 3'!R$27","v":{"v":0,"d":"$0.00"}},{"$f":"'LTC Rev-Exp Region 3'!S$27","v":{"v":0,"d":"$0.00"}},{"v":0,"d":"$0.00"}]
["LTC",null,null,{"$f":"Jurat!I$1","v":0},{"$f":"Jurat!D$33","v":"00:00:00"},"Q4","2017-12-31","Region 3","Operating Expense","Medical Expense","LTC Services","2.12","Home Health FFS",{"$f":"'LTC Rev-Exp Region 3'!P$28","v":{"v":0,"d":"$0.00"}},{"$f":"'LTC Rev-Exp Region 3'!Q$28","v":{"v":0,"d":"$0.00"}},{"$f":"'LTC Rev-Exp Region 3'!R$28","v":{"v":0,"d":"$0.00"}},{"$f":"'LTC Rev-Exp Region 3'!S$28","v":{"v":0,"d":"$0.00"}},{"v":0,"d":"$0.00"}]
["LTC",null,null,{"$f":"Jurat!I$1","v":0},{"$f":"Jurat!D$33","v":"00:00:00"},"Q4","2017-12-31","Region 3","Operating Expense","Medical Expense","LTC Services","2.13","Medical Equipment/Supplies FFS",{"$f":"'LTC Rev-Exp Region 3'!P$29","v":{"v":0,"d":"$0.00"}},{"$f":"'LTC Rev-Exp Region 3'!Q$29","v":{"v":0,"d":"$0.00"}},{"$f":"'LTC Rev-Exp Region 3'!R$29","v":{"v":0,"d":"$0.00"}},{"$f":"'LTC Rev-Exp Region 3'!S$29","v":{"v":0,"d":"$0.00"}},{"v":0,"d":"$0.00"}]
["LTC",null,null,{"$f":"Jurat!I$1","v":0},{"$f":"Jurat!D$33","v":"00:00:00"},"Q4","2017-12-31","Region 3","Operating Expense","Medical Expense","LTC Services","2.14","Therapy FFS",{"$f":"'LTC Rev-Exp Region 3'!P$30","v":{"v":0,"d":"$0.00"}},{"$f":"'LTC Rev-Exp Region 3'!Q$30","v":{"v":0,"d":"$0.00"}},{"$f":"'LTC Rev-Exp Region 3'!R$30","v":{"v":0,"d":"$0.00"}},{"$f":"'LTC Rev-Exp Region 3'!S$30","v":{"v":0,"d":"$0.00"}},{"v":0,"d":"$0.00"}]
["LTC",null,null,{"$f":"Jurat!I$1","v":0},{"$f":"Jurat!D$33","v":"00:00:00"},"Q4","2017-12-31","Region 3","Operating Expense","Medical Expense","LTC Services","2.15","Transportation FFS",{"$f":"'LTC Rev-Exp Region 3'!P$31","v":{"v":0,"d":"$0.00"}},{"$f":"'LTC Rev-Exp Region 3'!Q$31","v":{"v":0,"d":"$0.00"}},{"$f":"'LTC Rev-Exp Region 3'!R$31","v":{"v":0,"d":"$0.00"}},{"$f":"'LTC Rev-Exp Region 3'!S$31","v":{"v":0,"d":"$0.00"}},{"v":0,"d":"$0.00"}]
["LTC",null,null,{"$f":"Jurat!I$1","v":0},{"$f":"Jurat!D$33","v":"00:00:00"},"Q4","2017-12-31","Region 3","Operating Expense","Medical Expense","LTC Services","2.16","Case Management FFS (Plan Provided)",{"$f":"'LTC Rev-Exp Region 3'!P$32","v":{"v":0,"d":"$0.00"}},{"$f":"'LTC Rev-Exp Region 3'!Q$32","v":{"v":0,"d":"$0.00"}},{"$f":"'LTC Rev-Exp Region 3'!R$32","v":{"v":0,"d":"$0.00"}},{"$f":"'LTC Rev-Exp Region 3'!S$32","v":{"v":0,"d":"$0.00"}},{"v":0,"d":"$0.00"}]
["LTC",null,null,{"$f":"Jurat!I$1","v":0},{"$f":"Jurat!D$33","v":"00:00:00"},"Q4","2017-12-31","Region 3","Operating Expense","Medical Expense","LTC Services","2.17","Case Management FF (Non-Plan Provided)",{"$f":"'LTC Rev-Exp Region 3'!P$33","v":{"v":0,"d":"$0.00"}},{"$f":"'LTC Rev-Exp Region 3'!Q$33","v":{"v":0,"d":"$0.00"}},{"$f":"'LTC Rev-Exp Region 3'!R$33","v":{"v":0,"d":"$0.00"}},{"$f":"'LTC Rev-Exp Region 3'!S$33","v":{"v":0,"d":"$0.00"}},{"v":0,"d":"$0.00"}]
["LTC",null,null,{"$f":"Jurat!I$1","v":0},{"$f":"Jurat!D$33","v":"00:00:00"},"Q4","2017-12-31","Region 3","Operating Expense","Medical Expense","LTC Services","2.18","HCBS FFS",{"$f":"'LTC Rev-Exp Region 3'!P$34","v":{"v":0,"d":"$0.00"}},{"$f":"'LTC Rev-Exp Region 3'!Q$34","v":{"v":0,"d":"$0.00"}},{"$f":"'LTC Rev-Exp Region 3'!R$34","v":{"v":0,"d":"$0.00"}},{"$f":"'LTC Rev-Exp Region 3'!S$34","v":{"v":0,"d":"$0.00"}},{"v":0,"d":"$0.00"}]
["LTC",null,null,{"$f":"Jurat!I$1","v":0},{"$f":"Jurat!D$33","v":"00:00:00"},"Q4","2017-12-31","Region 3","Operating Expense","Medical Expense","LTC Services","2.19","Subcapitated LTC Services",{"$f":"'LTC Rev-Exp Region 3'!P$35","v":{"v":0,"d":"$0.00"}},{"$f":"'LTC Rev-Exp Region 3'!Q$35","v":{"v":0,"d":"$0.00"}},{"$f":"'LTC Rev-Exp Region 3'!R$35","v":{"v":0,"d":"$0.00"}},{"$f":"'LTC Rev-Exp Region 3'!S$35","v":{"v":0,"d":"$0.00"}},{"v":0,"d":"$0.00"}]
["LTC",null,null,{"$f":"Jurat!I$1","v":0},{"$f":"Jurat!D$33","v":"00:00:00"},"Q4","2017-12-31","Region 3","Operating Expense","Medical Expense","LTC Services","2.20","Ending IBNP for Long Term Care Services",{"$f":"'LTC Rev-Exp Region 3'!P$36","v":{"v":0,"d":"$0.00"}},{"$f":"'LTC Rev-Exp Region 3'!Q$36","v":{"v":0,"d":"$0.00"}},{"$f":"'LTC Rev-Exp Region 3'!R$36","v":{"v":0,"d":"$0.00"}},{"$f":"'LTC Rev-Exp Region 3'!S$36","v":{"v":0,"d":"$0.00"}},{"v":0,"d":"$0.00"}]
["LTC",null,null,{"$f":"Jurat!I$1","v":0},{"$f":"Jurat!D$33","v":"00:00:00"},"Q4","2017-12-31","Region 3","Operating Expense","Medical Expense","LTC Services","2.21","LTC Services Settlements",{"$f":"'LTC Rev-Exp Region 3'!P$37","v":{"v":0,"d":"$0.00"}},{"$f":"'LTC Rev-Exp Region 3'!Q$37","v":{"v":0,"d":"$0.00"}},{"$f":"'LTC Rev-Exp Region 3'!R$37","v":{"v":0,"d":"$0.00"}},{"$f":"'LTC Rev-Exp Region 3'!S$37","v":{"v":0,"d":"$0.00"}},{"v":0,"d":"$0.00"}]
["LTC",null,null,{"$f":"Jurat!I$1","v":0},{"$f":"Jurat!D$33","v":"00:00:00"},"Q4","2017-12-31","Region 3","Operating Expense","Medical Expense","Expanded Benefits","3.1","Expanded Benefits FFS",{"$f":"'LTC Rev-Exp Region 3'!P$39","v":{"v":0,"d":"$0.00"}},{"$f":"'LTC Rev-Exp Region 3'!Q$39","v":{"v":0,"d":"$0.00"}},{"$f":"'LTC Rev-Exp Region 3'!R$39","v":{"v":0,"d":"$0.00"}},{"$f":"'LTC Rev-Exp Region 3'!S$39","v":{"v":0,"d":"$0.00"}},{"v":0,"d":"$0.00"}]
["LTC",null,null,{"$f":"Jurat!I$1","v":0},{"$f":"Jurat!D$33","v":"00:00:00"},"Q4","2017-12-31","Region 3","Operating Expense","Medical Expense","Expanded Benefits","3.2","Expanded Benefits Subcapitation",{"$f":"'LTC Rev-Exp Region 3'!P$40","v":{"v":0,"d":"$0.00"}},{"$f":"'LTC Rev-Exp Region 3'!Q$40","v":{"v":0,"d":"$0.00"}},{"$f":"'LTC Rev-Exp Region 3'!R$40","v":{"v":0,"d":"$0.00"}},{"$f":"'LTC Rev-Exp Region 3'!S$40","v":{"v":0,"d":"$0.00"}},{"v":0,"d":"$0.00"}]
["LTC",null,null,{"$f":"Jurat!I$1","v":0},{"$f":"Jurat!D$33","v":"00:00:00"},"Q4","2017-12-31","Region 3","Operating Expense","Medical Expense","Expanded Benefits","3.3","Ending IBNP for Expanded Benefits",{"$f":"'LTC Rev-Exp Region 3'!P$41","v":{"v":0,"d":"$0.00"}},{"$f":"'LTC Rev-Exp Region 3'!Q$41","v":{"v":0,"d":"$0.00"}},{"$f":"'LTC Rev-Exp Region 3'!R$41","v":{"v":0,"d":"$0.00"}},{"$f":"'LTC Rev-Exp Region 3'!S$41","v":{"v":0,"d":"$0.00"}},{"v":0,"d":"$0.00"}]
["LTC",null,null,{"$f":"Jurat!I$1","v":0},{"$f":"Jurat!D$33","v":"00:00:00"},"Q4","2017-12-31","Region 3","Operating Expense","Medical Expense","Expanded Benefits","3.4","Expanded Benefits Settlements",{"$f":"'LTC Rev-Exp Region 3'!P$42","v":{"v":0,"d":"$0.00"}},{"$f":"'LTC Rev-Exp Region 3'!Q$42","v":{"v":0,"d":"$0.00"}},{"$f":"'LTC Rev-Exp Region 3'!R$42","v":{"v":0,"d":"$0.00"}},{"$f":"'LTC Rev-Exp Region 3'!S$42","v":{"v":0,"d":"$0.00"}},{"v":0,"d":"$0.00"}]
["LTC",null,null,{"$f":"Jurat!I$1","v":0},{"$f":"Jurat!D$33","v":"00:00:00"},"Q4","2017-12-31","Region 3","Operating Expense","Medical Expense","Other Medical","4.5","TPL & Fraud/Abuse Recoveries",{"$f":"'LTC Rev-Exp Region 3'!P$48","v":{"v":0,"d":"$0.00"}},{"$f":"'LTC Rev-Exp Region 3'!Q$48","v":{"v":0,"d":"$0.00"}},{"$f":"'LTC Rev-Exp Region 3'!R$48","v":{"v":0,"d":"$0.00"}},{"$f":"'LTC Rev-Exp Region 3'!S$48","v":{"v":0,"d":"$0.00"}},{"v":0,"d":"$0.00"}]
["LTC",null,null,{"$f":"Jurat!I$1","v":0},{"$f":"Jurat!D$33","v":"00:00:00"},"Q4","2017-12-31","Region 3","Operating Expense","Medical Expense","Other Medical","4.6.1","Premium Deficiency Reserve",{"$f":"'LTC Rev-Exp Region 3'!P$49","v":{"v":0,"d":"$0.00"}},{"$f":"'LTC Rev-Exp Region 3'!Q$49","v":{"v":0,"d":"$0.00"}},{"$f":"'LTC Rev-Exp Region 3'!R$49","v":{"v":0,"d":"$0.00"}},{"$f":"'LTC Rev-Exp Region 3'!S$49","v":{"v":0,"d":"$0.00"}},{"v":0,"d":"$0.00"}]
["LTC",null,null,{"$f":"Jurat!I$1","v":0},{"$f":"Jurat!D$33","v":"00:00:00"},"Q4","2017-12-31","Region 3","Operating Expense","Medical Expense","Other Medical","4.8","Reinsurance Premiums",{"$f":"'LTC Rev-Exp Region 3'!P$51","v":{"v":0,"d":"$0.00"}},{"$f":"'LTC Rev-Exp Region 3'!Q$51","v":{"v":0,"d":"$0.00"}},{"$f":"'LTC Rev-Exp Region 3'!R$51","v":{"v":0,"d":"$0.00"}},{"$f":"'LTC Rev-Exp Region 3'!S$51","v":{"v":0,"d":"$0.00"}},{"v":0,"d":"$0.00"}]
["LTC",null,null,{"$f":"Jurat!I$1","v":0},{"$f":"Jurat!D$33","v":"00:00:00"},"Q4","2017-12-31","Region 3","Operating Expense","Medical Expense","Other Medical","4.9","Reinsurance Recoveries",{"$f":"'LTC Rev-Exp Region 3'!P$52","v":{"v":0,"d":"$0.00"}},{"$f":"'LTC Rev-Exp Region 3'!Q$52","v":{"v":0,"d":"$0.00"}},{"$f":"'LTC Rev-Exp Region 3'!R$52","v":{"v":0,"d":"$0.00"}},{"$f":"'LTC Rev-Exp Region 3'!S$52","v":{"v":0,"d":"$0.00"}},{"v":0,"d":"$0.00"}]
["LTC",null,null,{"$f":"Jurat!I$1","v":0},{"$f":"Jurat!D$33","v":"00:00:00"},"Q4","2017-12-31","Region 3","Operating Expense","Administrative Expense","Administrative","5.1","Salaries & Benefits",{"$f":"'LTC Rev-Exp Region 3'!P$57","v":{"v":0,"d":"$0.00"}},{"$f":"'LTC Rev-Exp Region 3'!Q$57","v":{"v":0,"d":"$0.00"}},{"$f":"'LTC Rev-Exp Region 3'!R$57","v":{"v":0,"d":"$0.00"}},{"$f":"'LTC Rev-Exp Region 3'!S$57","v":{"v":0,"d":"$0.00"}},{"v":0,"d":"$0.00"}]
["LTC",null,null,{"$f":"Jurat!I$1","v":0},{"$f":"Jurat!D$33","v":"00:00:00"},"Q4","2017-12-31","Region 3","Operating Expense","Administrative Expense","Administrative","5.2","Administrative Services",{"$f":"'LTC Rev-Exp Region 3'!P$58","v":{"v":0,"d":"$0.00"}},{"$f":"'LTC Rev-Exp Region 3'!Q$58","v":{"v":0,"d":"$0.00"}},{"$f":"'LTC Rev-Exp Region 3'!R$58","v":{"v":0,"d":"$0.00"}},{"$f":"'LTC Rev-Exp Region 3'!S$58","v":{"v":0,"d":"$0.00"}},{"v":0,"d":"$0.00"}]
["LTC",null,null,{"$f":"Jurat!I$1","v":0},{"$f":"Jurat!D$33","v":"00:00:00"},"Q4","2017-12-31","Region 3","Operating Expense","Administrative Expense","Administrative","5.3","Information Systems",{"$f":"'LTC Rev-Exp Region 3'!P$59","v":{"v":0,"d":"$0.00"}},{"$f":"'LTC Rev-Exp Region 3'!Q$59","v":{"v":0,"d":"$0.00"}},{"$f":"'LTC Rev-Exp Region 3'!R$59","v":{"v":0,"d":"$0.00"}},{"$f":"'LTC Rev-Exp Region 3'!S$59","v":{"v":0,"d":"$0.00"}},{"v":0,"d":"$0.00"}]
["LTC",null,null,{"$f":"Jurat!I$1","v":0},{"$f":"Jurat!D$33","v":"00:00:00"},"Q4","2017-12-31","Region 3","Operating Expense","Administrative Expense","Administrative","5.4","Marketing Expenses",{"$f":"'LTC Rev-Exp Region 3'!P$60","v":{"v":0,"d":"$0.00"}},{"$f":"'LTC Rev-Exp Region 3'!Q$60","v":{"v":0,"d":"$0.00"}},{"$f":"'LTC Rev-Exp Region 3'!R$60","v":{"v":0,"d":"$0.00"}},{"$f":"'LTC Rev-Exp Region 3'!S$60","v":{"v":0,"d":"$0.00"}},{"v":0,"d":"$0.00"}]
["LTC",null,null,{"$f":"Jurat!I$1","v":0},{"$f":"Jurat!D$33","v":"00:00:00"},"Q4","2017-12-31","Region 3","Operating Expense","Administrative Expense","Administrative","5.5","General  Administration",{"$f":"'LTC Rev-Exp Region 3'!P$61","v":{"v":0,"d":"$0.00"}},{"$f":"'LTC Rev-Exp Region 3'!Q$61","v":{"v":0,"d":"$0.00"}},{"$f":"'LTC Rev-Exp Region 3'!R$61","v":{"v":0,"d":"$0.00"}},{"$f":"'LTC Rev-Exp Region 3'!S$61","v":{"v":0,"d":"$0.00"}},{"v":0,"d":"$0.00"}]
["LTC",null,null,{"$f":"Jurat!I$1","v":0},{"$f":"Jurat!D$33","v":"00:00:00"},"Q4","2017-12-31","Region 3","Operating Expense","Administrative Expense","Administrative","5.6","Compliance/Regulatory",{"$f":"'LTC Rev-Exp Region 3'!P$62","v":{"v":0,"d":"$0.00"}},{"$f":"'LTC Rev-Exp Region 3'!Q$62","v":{"v":0,"d":"$0.00"}},{"$f":"'LTC Rev-Exp Region 3'!R$62","v":{"v":0,"d":"$0.00"}},{"$f":"'LTC Rev-Exp Region 3'!S$62","v":{"v":0,"d":"$0.00"}},{"v":0,"d":"$0.00"}]
["LTC",null,null,{"$f":"Jurat!I$1","v":0},{"$f":"Jurat!D$33","v":"00:00:00"},"Q4","2017-12-31","Region 3","Operating Expense","Taxes & Fees","Taxes & Fees","6.1","State Premium Tax",{"$f":"'LTC Rev-Exp Region 3'!P$64","v":{"v":0,"d":"$0.00"}},{"v":0,"d":"$0.00"},{"v":0,"d":"$0.00"},{"v":0,"d":"$0.00"},{"v":0,"d":"$0.00"}]
["LTC",null,null,{"$f":"Jurat!I$1","v":0},{"$f":"Jurat!D$33","v":"00:00:00"},"Q4","2017-12-31","Region 3","Operating Expense","Taxes & Fees","Taxes & Fees","6.2","Department of Insurance Assessments",{"$f":"'LTC Rev-Exp Region 3'!P$65","v":{"v":0,"d":"$0.00"}},{"v":0,"d":"$0.00"},{"v":0,"d":"$0.00"},{"v":0,"d":"$0.00"},{"v":0,"d":"$0.00"}]
["LTC",null,null,{"$f":"Jurat!I$1","v":0},{"$f":"Jurat!D$33","v":"00:00:00"},"Q4","2017-12-31","Region 3","Non-Operating Expense","Income Tax Expense","Income Tax Expense","9.0","Income Tax Expense",{"$f":"'LTC Rev-Exp Region 3'!P$72","v":{"v":0,"d":"$0.00"}},{"v":0,"d":"$0.00"},{"v":0,"d":"$0.00"},{"v":0,"d":"$0.00"},{"v":0,"d":"$0.00"}]
["LTC",null,null,{"$f":"Jurat!I$1","v":0},{"$f":"Jurat!D$33","v":"00:00:00"},"Q1","2017-03-31","Region 4","Member Months","Member Months","Member Months",null,"Member Months",{"$f":"'LTC Rev-Exp Region 4'!D$9","v":{"v":0,"d":"$0.00"}},{"$f":"'LTC Rev-Exp Region 4'!E$9","v":{"v":0,"d":"$0.00"}},{"$f":"'LTC Rev-Exp Region 4'!F$9","v":{"v":0,"d":"$0.00"}},{"$f":"'LTC Rev-Exp Region 4'!G$9","v":{"v":0,"d":"$0.00"}},{"v":0,"d":"$0.00"}]
["LTC",null,null,{"$f":"Jurat!I$1","v":0},{"$f":"Jurat!D$33","v":"00:00:00"},"Q1","2017-03-31","Region 4","Operating Revenue","Capitation","Capitation",1.1,"Capitation",{"$f":"'LTC Rev-Exp Region 4'!D$11","v":{"v":0,"d":"$0.00"}},{"$f":"'LTC Rev-Exp Region 4'!E$11","v":{"v":0,"d":"$0.00"}},{"$f":"'LTC Rev-Exp Region 4'!F$11","v":{"v":0,"d":"$0.00"}},{"$f":"'LTC Rev-Exp Region 4'!G$11","v":{"v":0,"d":"$0.00"}},{"v":0,"d":"$0.00"}]
["LTC",null,null,{"$f":"Jurat!I$1","v":0},{"$f":"Jurat!D$33","v":"00:00:00"},"Q1","2017-03-31","Region 4","Operating Revenue","Capitation","NH Rate Reconciliation",1.2,"NH Rate Reconciliation",{"$f":"'LTC Rev-Exp Region 4'!D$12","v":{"v":0,"d":"$0.00"}},{"$f":"'LTC Rev-Exp Region 4'!E$12","v":{"v":0,"d":"$0.00"}},{"$f":"'LTC Rev-Exp Region 4'!F$12","v":{"v":0,"d":"$0.00"}},{"$f":"'LTC Rev-Exp Region 4'!G$12","v":{"v":0,"d":"$0.00"}},{"v":0,"d":"$0.00"}]
["LTC",null,null,{"$f":"Jurat!I$1","v":0},{"$f":"Jurat!D$33","v":"00:00:00"},"Q1","2017-03-31","Region 4","Operating Revenue","Other Revenue","Other Revenue",1.3,"Other Revenue",{"$f":"'LTC Rev-Exp Region 4'!D$13","v":{"v":0,"d":"$0.00"}},{"$f":"'LTC Rev-Exp Region 4'!E$13","v":{"v":0,"d":"$0.00"}},{"$f":"'LTC Rev-Exp Region 4'!F$13","v":{"v":0,"d":"$0.00"}},{"$f":"'LTC Rev-Exp Region 4'!G$13","v":{"v":0,"d":"$0.00"}},{"v":0,"d":"$0.00"}]
["LTC",null,null,{"$f":"Jurat!I$1","v":0},{"$f":"Jurat!D$33","v":"00:00:00"},"Q1","2017-03-31","Region 4","Operating Expense","Medical Expense","NF & Hospice","2.1","Nursing Facility Days (Medicaid)",{"$f":"'LTC Rev-Exp Region 4'!D$17","v":{"v":0,"d":"$0.00"}},{"$f":"'LTC Rev-Exp Region 4'!E$17","v":{"v":0,"d":"$0.00"}},{"$f":"'LTC Rev-Exp Region 4'!F$17","v":{"v":0,"d":"$0.00"}},{"$f":"'LTC Rev-Exp Region 4'!G$17","v":{"v":0,"d":"$0.00"}},{"v":0,"d":"$0.00"}]
["LTC",null,null,{"$f":"Jurat!I$1","v":0},{"$f":"Jurat!D$33","v":"00:00:00"},"Q1","2017-03-31","Region 4","Operating Expense","Medical Expense","NF & Hospice","2.2","Nursing Facility Days (Crossover)",{"$f":"'LTC Rev-Exp Region 4'!D$18","v":{"v":0,"d":"$0.00"}},{"$f":"'LTC Rev-Exp Region 4'!E$18","v":{"v":0,"d":"$0.00"}},{"$f":"'LTC Rev-Exp Region 4'!F$18","v":{"v":0,"d":"$0.00"}},{"$f":"'LTC Rev-Exp Region 4'!G$18","v":{"v":0,"d":"$0.00"}},{"v":0,"d":"$0.00"}]
["LTC",null,null,{"$f":"Jurat!I$1","v":0},{"$f":"Jurat!D$33","v":"00:00:00"},"Q1","2017-03-31","Region 4","Operating Expense","Medical Expense","NF & Hospice","2.3","Nursing Facility FFS (Medicaid)",{"$f":"'LTC Rev-Exp Region 4'!D$19","v":{"v":0,"d":"$0.00"}},{"$f":"'LTC Rev-Exp Region 4'!E$19","v":{"v":0,"d":"$0.00"}},{"$f":"'LTC Rev-Exp Region 4'!F$19","v":{"v":0,"d":"$0.00"}},{"$f":"'LTC Rev-Exp Region 4'!G$19","v":{"v":0,"d":"$0.00"}},{"v":0,"d":"$0.00"}]
["LTC",null,null,{"$f":"Jurat!I$1","v":0},{"$f":"Jurat!D$33","v":"00:00:00"},"Q1","2017-03-31","Region 4","Operating Expense","Medical Expense","NF & Hospice","2.4","Nursing Facility FFS (Crossover)",{"$f":"'LTC Rev-Exp Region 4'!D$20","v":{"v":0,"d":"$0.00"}},{"$f":"'LTC Rev-Exp Region 4'!E$20","v":{"v":0,"d":"$0.00"}},{"$f":"'LTC Rev-Exp Region 4'!F$20","v":{"v":0,"d":"$0.00"}},{"$f":"'LTC Rev-Exp Region 4'!G$20","v":{"v":0,"d":"$0.00"}},{"v":0,"d":"$0.00"}]
["LTC",null,null,{"$f":"Jurat!I$1","v":0},{"$f":"Jurat!D$33","v":"00:00:00"},"Q1","2017-03-31","Region 4","Operating Expense","Medical Expense","NF & Hospice","2.5","Hospice Days",{"$f":"'LTC Rev-Exp Region 4'!D$21","v":{"v":0,"d":"$0.00"}},{"$f":"'LTC Rev-Exp Region 4'!E$21","v":{"v":0,"d":"$0.00"}},{"$f":"'LTC Rev-Exp Region 4'!F$21","v":{"v":0,"d":"$0.00"}},{"$f":"'LTC Rev-Exp Region 4'!G$21","v":{"v":0,"d":"$0.00"}},{"v":0,"d":"$0.00"}]
["LTC",null,null,{"$f":"Jurat!I$1","v":0},{"$f":"Jurat!D$33","v":"00:00:00"},"Q1","2017-03-31","Region 4","Operating Expense","Medical Expense","NF & Hospice","2.6","Hospice FFS",{"$f":"'LTC Rev-Exp Region 4'!D$22","v":{"v":0,"d":"$0.00"}},{"$f":"'LTC Rev-Exp Region 4'!E$22","v":{"v":0,"d":"$0.00"}},{"$f":"'LTC Rev-Exp Region 4'!F$22","v":{"v":0,"d":"$0.00"}},{"$f":"'LTC Rev-Exp Region 4'!G$22","v":{"v":0,"d":"$0.00"}},{"v":0,"d":"$0.00"}]
["LTC",null,null,{"$f":"Jurat!I$1","v":0},{"$f":"Jurat!D$33","v":"00:00:00"},"Q1","2017-03-31","Region 4","Operating Expense","Medical Expense","NF & Hospice","2.7","Ending IBNP for NF & Hospice",{"$f":"'LTC Rev-Exp Region 4'!D$23","v":{"v":0,"d":"$0.00"}},{"$f":"'LTC Rev-Exp Region 4'!E$23","v":{"v":0,"d":"$0.00"}},{"$f":"'LTC Rev-Exp Region 4'!F$23","v":{"v":0,"d":"$0.00"}},{"$f":"'LTC Rev-Exp Region 4'!G$23","v":{"v":0,"d":"$0.00"}},{"v":0,"d":"$0.00"}]
["LTC",null,null,{"$f":"Jurat!I$1","v":0},{"$f":"Jurat!D$33","v":"00:00:00"},"Q1","2017-03-31","Region 4","Operating Expense","Medical Expense","NF & Hospice","2.8","NF & Hospice Subcapitated",{"$f":"'LTC Rev-Exp Region 4'!D$24","v":{"v":0,"d":"$0.00"}},{"$f":"'LTC Rev-Exp Region 4'!E$24","v":{"v":0,"d":"$0.00"}},{"$f":"'LTC Rev-Exp Region 4'!F$24","v":{"v":0,"d":"$0.00"}},{"$f":"'LTC Rev-Exp Region 4'!G$24","v":{"v":0,"d":"$0.00"}},{"v":0,"d":"$0.00"}]
["LTC",null,null,{"$f":"Jurat!I$1","v":0},{"$f":"Jurat!D$33","v":"00:00:00"},"Q1","2017-03-31","Region 4","Operating Expense","Medical Expense","NF & Hospice","2.9","NF & Hospice Settlements",{"$f":"'LTC Rev-Exp Region 4'!D$25","v":{"v":0,"d":"$0.00"}},{"$f":"'LTC Rev-Exp Region 4'!E$25","v":{"v":0,"d":"$0.00"}},{"$f":"'LTC Rev-Exp Region 4'!F$25","v":{"v":0,"d":"$0.00"}},{"$f":"'LTC Rev-Exp Region 4'!G$25","v":{"v":0,"d":"$0.00"}},{"v":0,"d":"$0.00"}]
["LTC",null,null,{"$f":"Jurat!I$1","v":0},{"$f":"Jurat!D$33","v":"00:00:00"},"Q1","2017-03-31","Region 4","Operating Expense","Medical Expense","LTC Services","2.11","Assisted Living FFS",{"$f":"'LTC Rev-Exp Region 4'!D$27","v":{"v":0,"d":"$0.00"}},{"$f":"'LTC Rev-Exp Region 4'!E$27","v":{"v":0,"d":"$0.00"}},{"$f":"'LTC Rev-Exp Region 4'!F$27","v":{"v":0,"d":"$0.00"}},{"$f":"'LTC Rev-Exp Region 4'!G$27","v":{"v":0,"d":"$0.00"}},{"v":0,"d":"$0.00"}]
["LTC",null,null,{"$f":"Jurat!I$1","v":0},{"$f":"Jurat!D$33","v":"00:00:00"},"Q1","2017-03-31","Region 4","Operating Expense","Medical Expense","LTC Services","2.12","Home Health FFS",{"$f":"'LTC Rev-Exp Region 4'!D$28","v":{"v":0,"d":"$0.00"}},{"$f":"'LTC Rev-Exp Region 4'!E$28","v":{"v":0,"d":"$0.00"}},{"$f":"'LTC Rev-Exp Region 4'!F$28","v":{"v":0,"d":"$0.00"}},{"$f":"'LTC Rev-Exp Region 4'!G$28","v":{"v":0,"d":"$0.00"}},{"v":0,"d":"$0.00"}]
["LTC",null,null,{"$f":"Jurat!I$1","v":0},{"$f":"Jurat!D$33","v":"00:00:00"},"Q1","2017-03-31","Region 4","Operating Expense","Medical Expense","LTC Services","2.13","Medical Equipment/Supplies FFS",{"$f":"'LTC Rev-Exp Region 4'!D$29","v":{"v":0,"d":"$0.00"}},{"$f":"'LTC Rev-Exp Region 4'!E$29","v":{"v":0,"d":"$0.00"}},{"$f":"'LTC Rev-Exp Region 4'!F$29","v":{"v":0,"d":"$0.00"}},{"$f":"'LTC Rev-Exp Region 4'!G$29","v":{"v":0,"d":"$0.00"}},{"v":0,"d":"$0.00"}]
["LTC",null,null,{"$f":"Jurat!I$1","v":0},{"$f":"Jurat!D$33","v":"00:00:00"},"Q1","2017-03-31","Region 4","Operating Expense","Medical Expense","LTC Services","2.14","Therapy FFS",{"$f":"'LTC Rev-Exp Region 4'!D$30","v":{"v":0,"d":"$0.00"}},{"$f":"'LTC Rev-Exp Region 4'!E$30","v":{"v":0,"d":"$0.00"}},{"$f":"'LTC Rev-Exp Region 4'!F$30","v":{"v":0,"d":"$0.00"}},{"$f":"'LTC Rev-Exp Region 4'!G$30","v":{"v":0,"d":"$0.00"}},{"v":0,"d":"$0.00"}]
["LTC",null,null,{"$f":"Jurat!I$1","v":0},{"$f":"Jurat!D$33","v":"00:00:00"},"Q1","2017-03-31","Region 4","Operating Expense","Medical Expense","LTC Services","2.15","Transportation FFS",{"$f":"'LTC Rev-Exp Region 4'!D$31","v":{"v":0,"d":"$0.00"}},{"$f":"'LTC Rev-Exp Region 4'!E$31","v":{"v":0,"d":"$0.00"}},{"$f":"'LTC Rev-Exp Region 4'!F$31","v":{"v":0,"d":"$0.00"}},{"$f":"'LTC Rev-Exp Region 4'!G$31","v":{"v":0,"d":"$0.00"}},{"v":0,"d":"$0.00"}]
["LTC",null,null,{"$f":"Jurat!I$1","v":0},{"$f":"Jurat!D$33","v":"00:00:00"},"Q1","2017-03-31","Region 4","Operating Expense","Medical Expense","LTC Services","2.16","Case Management FFS (Plan Provided)",{"$f":"'LTC Rev-Exp Region 4'!D$32","v":{"v":0,"d":"$0.00"}},{"$f":"'LTC Rev-Exp Region 4'!E$32","v":{"v":0,"d":"$0.00"}},{"$f":"'LTC Rev-Exp Region 4'!F$32","v":{"v":0,"d":"$0.00"}},{"$f":"'LTC Rev-Exp Region 4'!G$32","v":{"v":0,"d":"$0.00"}},{"v":0,"d":"$0.00"}]
["LTC",null,null,{"$f":"Jurat!I$1","v":0},{"$f":"Jurat!D$33","v":"00:00:00"},"Q1","2017-03-31","Region 4","Operating Expense","Medical Expense","LTC Services","2.17","Case Management FF (Non-Plan Provided)",{"$f":"'LTC Rev-Exp Region 4'!D$33","v":{"v":0,"d":"$0.00"}},{"$f":"'LTC Rev-Exp Region 4'!E$33","v":{"v":0,"d":"$0.00"}},{"$f":"'LTC Rev-Exp Region 4'!F$33","v":{"v":0,"d":"$0.00"}},{"$f":"'LTC Rev-Exp Region 4'!G$33","v":{"v":0,"d":"$0.00"}},{"v":0,"d":"$0.00"}]
["LTC",null,null,{"$f":"Jurat!I$1","v":0},{"$f":"Jurat!D$33","v":"00:00:00"},"Q1","2017-03-31","Region 4","Operating Expense","Medical Expense","LTC Services","2.18","HCBS FFS",{"$f":"'LTC Rev-Exp Region 4'!D$34","v":{"v":0,"d":"$0.00"}},{"$f":"'LTC Rev-Exp Region 4'!E$34","v":{"v":0,"d":"$0.00"}},{"$f":"'LTC Rev-Exp Region 4'!F$34","v":{"v":0,"d":"$0.00"}},{"$f":"'LTC Rev-Exp Region 4'!G$34","v":{"v":0,"d":"$0.00"}},{"v":0,"d":"$0.00"}]
["LTC",null,null,{"$f":"Jurat!I$1","v":0},{"$f":"Jurat!D$33","v":"00:00:00"},"Q1","2017-03-31","Region 4","Operating Expense","Medical Expense","LTC Services","2.19","Subcapitated LTC Services",{"$f":"'LTC Rev-Exp Region 4'!D$35","v":{"v":0,"d":"$0.00"}},{"$f":"'LTC Rev-Exp Region 4'!E$35","v":{"v":0,"d":"$0.00"}},{"$f":"'LTC Rev-Exp Region 4'!F$35","v":{"v":0,"d":"$0.00"}},{"$f":"'LTC Rev-Exp Region 4'!G$35","v":{"v":0,"d":"$0.00"}},{"v":0,"d":"$0.00"}]
["LTC",null,null,{"$f":"Jurat!I$1","v":0},{"$f":"Jurat!D$33","v":"00:00:00"},"Q1","2017-03-31","Region 4","Operating Expense","Medical Expense","LTC Services","2.20","Ending IBNP for Long Term Care Services",{"$f":"'LTC Rev-Exp Region 4'!D$36","v":{"v":0,"d":"$0.00"}},{"$f":"'LTC Rev-Exp Region 4'!E$36","v":{"v":0,"d":"$0.00"}},{"$f":"'LTC Rev-Exp Region 4'!F$36","v":{"v":0,"d":"$0.00"}},{"$f":"'LTC Rev-Exp Region 4'!G$36","v":{"v":0,"d":"$0.00"}},{"v":0,"d":"$0.00"}]
["LTC",null,null,{"$f":"Jurat!I$1","v":0},{"$f":"Jurat!D$33","v":"00:00:00"},"Q1","2017-03-31","Region 4","Operating Expense","Medical Expense","LTC Services","2.21","LTC Services Settlements",{"$f":"'LTC Rev-Exp Region 4'!D$37","v":{"v":0,"d":"$0.00"}},{"$f":"'LTC Rev-Exp Region 4'!E$37","v":{"v":0,"d":"$0.00"}},{"$f":"'LTC Rev-Exp Region 4'!F$37","v":{"v":0,"d":"$0.00"}},{"$f":"'LTC Rev-Exp Region 4'!G$37","v":{"v":0,"d":"$0.00"}},{"v":0,"d":"$0.00"}]
["LTC",null,null,{"$f":"Jurat!I$1","v":0},{"$f":"Jurat!D$33","v":"00:00:00"},"Q1","2017-03-31","Region 4","Operating Expense","Medical Expense","Expanded Benefits","3.1","Expanded Benefits FFS",{"$f":"'LTC Rev-Exp Region 4'!D$39","v":{"v":0,"d":"$0.00"}},{"$f":"'LTC Rev-Exp Region 4'!E$39","v":{"v":0,"d":"$0.00"}},{"$f":"'LTC Rev-Exp Region 4'!F$39","v":{"v":0,"d":"$0.00"}},{"$f":"'LTC Rev-Exp Region 4'!G$39","v":{"v":0,"d":"$0.00"}},{"v":0,"d":"$0.00"}]
["LTC",null,null,{"$f":"Jurat!I$1","v":0},{"$f":"Jurat!D$33","v":"00:00:00"},"Q1","2017-03-31","Region 4","Operating Expense","Medical Expense","Expanded Benefits","3.2","Expanded Benefits Subcapitation",{"$f":"'LTC Rev-Exp Region 4'!D$40","v":{"v":0,"d":"$0.00"}},{"$f":"'LTC Rev-Exp Region 4'!E$40","v":{"v":0,"d":"$0.00"}},{"$f":"'LTC Rev-Exp Region 4'!F$40","v":{"v":0,"d":"$0.00"}},{"$f":"'LTC Rev-Exp Region 4'!G$40","v":{"v":0,"d":"$0.00"}},{"v":0,"d":"$0.00"}]
["LTC",null,null,{"$f":"Jurat!I$1","v":0},{"$f":"Jurat!D$33","v":"00:00:00"},"Q1","2017-03-31","Region 4","Operating Expense","Medical Expense","Expanded Benefits","3.3","Ending IBNP for Expanded Benefits",{"$f":"'LTC Rev-Exp Region 4'!D$41","v":{"v":0,"d":"$0.00"}},{"$f":"'LTC Rev-Exp Region 4'!E$41","v":{"v":0,"d":"$0.00"}},{"$f":"'LTC Rev-Exp Region 4'!F$41","v":{"v":0,"d":"$0.00"}},{"$f":"'LTC Rev-Exp Region 4'!G$41","v":{"v":0,"d":"$0.00"}},{"v":0,"d":"$0.00"}]
["LTC",null,null,{"$f":"Jurat!I$1","v":0},{"$f":"Jurat!D$33","v":"00:00:00"},"Q1","2017-03-31","Region 4","Operating Expense","Medical Expense","Expanded Benefits","3.4","Expanded Benefits Settlements",{"$f":"'LTC Rev-Exp Region 4'!D$42","v":{"v":0,"d":"$0.00"}},{"$f":"'LTC Rev-Exp Region 4'!E$42","v":{"v":0,"d":"$0.00"}},{"$f":"'LTC Rev-Exp Region 4'!F$42","v":{"v":0,"d":"$0.00"}},{"$f":"'LTC Rev-Exp Region 4'!G$42","v":{"v":0,"d":"$0.00"}},{"v":0,"d":"$0.00"}]
["LTC",null,null,{"$f":"Jurat!I$1","v":0},{"$f":"Jurat!D$33","v":"00:00:00"},"Q1","2017-03-31","Region 4","Operating Expense","Medical Expense","Other Medical","4.5","TPL & Fraud/Abuse Recoveries",{"$f":"'LTC Rev-Exp Region 4'!D$48","v":{"v":0,"d":"$0.00"}},{"$f":"'LTC Rev-Exp Region 4'!E$48","v":{"v":0,"d":"$0.00"}},{"$f":"'LTC Rev-Exp Region 4'!F$48","v":{"v":0,"d":"$0.00"}},{"$f":"'LTC Rev-Exp Region 4'!G$48","v":{"v":0,"d":"$0.00"}},{"v":0,"d":"$0.00"}]
["LTC",null,null,{"$f":"Jurat!I$1","v":0},{"$f":"Jurat!D$33","v":"00:00:00"},"Q1","2017-03-31","Region 4","Operating Expense","Medical Expense","Other Medical","4.6.1","Premium Deficiency Reserve",{"$f":"'LTC Rev-Exp Region 4'!D$49","v":{"v":0,"d":"$0.00"}},{"$f":"'LTC Rev-Exp Region 4'!E$49","v":{"v":0,"d":"$0.00"}},{"$f":"'LTC Rev-Exp Region 4'!F$49","v":{"v":0,"d":"$0.00"}},{"$f":"'LTC Rev-Exp Region 4'!G$49","v":{"v":0,"d":"$0.00"}},{"v":0,"d":"$0.00"}]
["LTC",null,null,{"$f":"Jurat!I$1","v":0},{"$f":"Jurat!D$33","v":"00:00:00"},"Q1","2017-03-31","Region 4","Operating Expense","Medical Expense","Other Medical","4.8","Reinsurance Premiums",{"$f":"'LTC Rev-Exp Region 4'!D$51","v":{"v":0,"d":"$0.00"}},{"$f":"'LTC Rev-Exp Region 4'!E$51","v":{"v":0,"d":"$0.00"}},{"$f":"'LTC Rev-Exp Region 4'!F$51","v":{"v":0,"d":"$0.00"}},{"$f":"'LTC Rev-Exp Region 4'!G$51","v":{"v":0,"d":"$0.00"}},{"v":0,"d":"$0.00"}]
["LTC",null,null,{"$f":"Jurat!I$1","v":0},{"$f":"Jurat!D$33","v":"00:00:00"},"Q1","2017-03-31","Region 4","Operating Expense","Medical Expense","Other Medical","4.9","Reinsurance Recoveries",{"$f":"'LTC Rev-Exp Region 4'!D$52","v":{"v":0,"d":"$0.00"}},{"$f":"'LTC Rev-Exp Region 4'!E$52","v":{"v":0,"d":"$0.00"}},{"$f":"'LTC Rev-Exp Region 4'!F$52","v":{"v":0,"d":"$0.00"}},{"$f":"'LTC Rev-Exp Region 4'!G$52","v":{"v":0,"d":"$0.00"}},{"v":0,"d":"$0.00"}]
["LTC",null,null,{"$f":"Jurat!I$1","v":0},{"$f":"Jurat!D$33","v":"00:00:00"},"Q1","2017-03-31","Region 4","Operating Expense","Administrative Expense","Administrative","5.1","Salaries & Benefits",{"$f":"'LTC Rev-Exp Region 4'!D$57","v":{"v":0,"d":"$0.00"}},{"$f":"'LTC Rev-Exp Region 4'!E$57","v":{"v":0,"d":"$0.00"}},{"$f":"'LTC Rev-Exp Region 4'!F$57","v":{"v":0,"d":"$0.00"}},{"$f":"'LTC Rev-Exp Region 4'!G$57","v":{"v":0,"d":"$0.00"}},{"v":0,"d":"$0.00"}]
["LTC",null,null,{"$f":"Jurat!I$1","v":0},{"$f":"Jurat!D$33","v":"00:00:00"},"Q1","2017-03-31","Region 4","Operating Expense","Administrative Expense","Administrative","5.2","Administrative Services",{"$f":"'LTC Rev-Exp Region 4'!D$58","v":{"v":0,"d":"$0.00"}},{"$f":"'LTC Rev-Exp Region 4'!E$58","v":{"v":0,"d":"$0.00"}},{"$f":"'LTC Rev-Exp Region 4'!F$58","v":{"v":0,"d":"$0.00"}},{"$f":"'LTC Rev-Exp Region 4'!G$58","v":{"v":0,"d":"$0.00"}},{"v":0,"d":"$0.00"}]
["LTC",null,null,{"$f":"Jurat!I$1","v":0},{"$f":"Jurat!D$33","v":"00:00:00"},"Q1","2017-03-31","Region 4","Operating Expense","Administrative Expense","Administrative","5.3","Information Systems",{"$f":"'LTC Rev-Exp Region 4'!D$59","v":{"v":0,"d":"$0.00"}},{"$f":"'LTC Rev-Exp Region 4'!E$59","v":{"v":0,"d":"$0.00"}},{"$f":"'LTC Rev-Exp Region 4'!F$59","v":{"v":0,"d":"$0.00"}},{"$f":"'LTC Rev-Exp Region 4'!G$59","v":{"v":0,"d":"$0.00"}},{"v":0,"d":"$0.00"}]
["LTC",null,null,{"$f":"Jurat!I$1","v":0},{"$f":"Jurat!D$33","v":"00:00:00"},"Q1","2017-03-31","Region 4","Operating Expense","Administrative Expense","Administrative","5.4","Marketing Expenses",{"$f":"'LTC Rev-Exp Region 4'!D$60","v":{"v":0,"d":"$0.00"}},{"$f":"'LTC Rev-Exp Region 4'!E$60","v":{"v":0,"d":"$0.00"}},{"$f":"'LTC Rev-Exp Region 4'!F$60","v":{"v":0,"d":"$0.00"}},{"$f":"'LTC Rev-Exp Region 4'!G$60","v":{"v":0,"d":"$0.00"}},{"v":0,"d":"$0.00"}]
["LTC",null,null,{"$f":"Jurat!I$1","v":0},{"$f":"Jurat!D$33","v":"00:00:00"},"Q1","2017-03-31","Region 4","Operating Expense","Administrative Expense","Administrative","5.5","General  Administration",{"$f":"'LTC Rev-Exp Region 4'!D$61","v":{"v":0,"d":"$0.00"}},{"$f":"'LTC Rev-Exp Region 4'!E$61","v":{"v":0,"d":"$0.00"}},{"$f":"'LTC Rev-Exp Region 4'!F$61","v":{"v":0,"d":"$0.00"}},{"$f":"'LTC Rev-Exp Region 4'!G$61","v":{"v":0,"d":"$0.00"}},{"v":0,"d":"$0.00"}]
["LTC",null,null,{"$f":"Jurat!I$1","v":0},{"$f":"Jurat!D$33","v":"00:00:00"},"Q1","2017-03-31","Region 4","Operating Expense","Administrative Expense","Administrative","5.6","Compliance/Regulatory",{"$f":"'LTC Rev-Exp Region 4'!D$62","v":{"v":0,"d":"$0.00"}},{"$f":"'LTC Rev-Exp Region 4'!E$62","v":{"v":0,"d":"$0.00"}},{"$f":"'LTC Rev-Exp Region 4'!F$62","v":{"v":0,"d":"$0.00"}},{"$f":"'LTC Rev-Exp Region 4'!G$62","v":{"v":0,"d":"$0.00"}},{"v":0,"d":"$0.00"}]
["LTC",null,null,{"$f":"Jurat!I$1","v":0},{"$f":"Jurat!D$33","v":"00:00:00"},"Q1","2017-03-31","Region 4","Operating Expense","Taxes & Fees","Taxes & Fees","6.1","State Premium Tax",{"$f":"'LTC Rev-Exp Region 4'!D$64","v":{"v":0,"d":"$0.00"}},{"v":0,"d":"$0.00"},{"v":0,"d":"$0.00"},{"v":0,"d":"$0.00"},{"v":0,"d":"$0.00"}]
["LTC",null,null,{"$f":"Jurat!I$1","v":0},{"$f":"Jurat!D$33","v":"00:00:00"},"Q1","2017-03-31","Region 4","Operating Expense","Taxes & Fees","Taxes & Fees","6.2","Department of Insurance Assessments",{"$f":"'LTC Rev-Exp Region 4'!D$65","v":{"v":0,"d":"$0.00"}},{"v":0,"d":"$0.00"},{"v":0,"d":"$0.00"},{"v":0,"d":"$0.00"},{"v":0,"d":"$0.00"}]
["LTC",null,null,{"$f":"Jurat!I$1","v":0},{"$f":"Jurat!D$33","v":"00:00:00"},"Q1","2017-03-31","Region 4","Non-Operating Expense","Income Tax Expense","Income Tax Expense","9.0","Income Tax Expense",{"$f":"'LTC Rev-Exp Region 4'!D$72","v":{"v":0,"d":"$0.00"}},{"v":0,"d":"$0.00"},{"v":0,"d":"$0.00"},{"v":0,"d":"$0.00"},{"v":0,"d":"$0.00"}]
["LTC",null,null,{"$f":"Jurat!I$1","v":0},{"$f":"Jurat!D$33","v":"00:00:00"},"Q2","2017-06-30","Region 4","Member Months","Member Months","Member Months",null,"Member Months",{"$f":"'LTC Rev-Exp Region 4'!H$9","v":{"v":0,"d":"$0.00"}},{"$f":"'LTC Rev-Exp Region 4'!I$9","v":{"v":0,"d":"$0.00"}},{"$f":"'LTC Rev-Exp Region 4'!J$9","v":{"v":0,"d":"$0.00"}},{"$f":"'LTC Rev-Exp Region 4'!K$9","v":{"v":0,"d":"$0.00"}},{"v":0,"d":"$0.00"}]
["LTC",null,null,{"$f":"Jurat!I$1","v":0},{"$f":"Jurat!D$33","v":"00:00:00"},"Q2","2017-06-30","Region 4","Operating Revenue","Capitation","Capitation",1.1,"Capitation",{"$f":"'LTC Rev-Exp Region 4'!H$11","v":{"v":0,"d":"$0.00"}},{"$f":"'LTC Rev-Exp Region 4'!I$11","v":{"v":0,"d":"$0.00"}},{"$f":"'LTC Rev-Exp Region 4'!J$11","v":{"v":0,"d":"$0.00"}},{"$f":"'LTC Rev-Exp Region 4'!K$11","v":{"v":0,"d":"$0.00"}},{"v":0,"d":"$0.00"}]
["LTC",null,null,{"$f":"Jurat!I$1","v":0},{"$f":"Jurat!D$33","v":"00:00:00"},"Q2","2017-06-30","Region 4","Operating Revenue","Capitation","NH Rate Reconciliation",1.2,"NH Rate Reconciliation",{"$f":"'LTC Rev-Exp Region 4'!H$12","v":{"v":0,"d":"$0.00"}},{"$f":"'LTC Rev-Exp Region 4'!I$12","v":{"v":0,"d":"$0.00"}},{"$f":"'LTC Rev-Exp Region 4'!J$12","v":{"v":0,"d":"$0.00"}},{"$f":"'LTC Rev-Exp Region 4'!K$12","v":{"v":0,"d":"$0.00"}},{"v":0,"d":"$0.00"}]
["LTC",null,null,{"$f":"Jurat!I$1","v":0},{"$f":"Jurat!D$33","v":"00:00:00"},"Q2","2017-06-30","Region 4","Operating Revenue","Other Revenue","Other Revenue",1.3,"Other Revenue",{"$f":"'LTC Rev-Exp Region 4'!H$13","v":{"v":0,"d":"$0.00"}},{"$f":"'LTC Rev-Exp Region 4'!I$13","v":{"v":0,"d":"$0.00"}},{"$f":"'LTC Rev-Exp Region 4'!J$13","v":{"v":0,"d":"$0.00"}},{"$f":"'LTC Rev-Exp Region 4'!K$13","v":{"v":0,"d":"$0.00"}},{"v":0,"d":"$0.00"}]
["LTC",null,null,{"$f":"Jurat!I$1","v":0},{"$f":"Jurat!D$33","v":"00:00:00"},"Q2","2017-06-30","Region 4","Operating Expense","Medical Expense","NF & Hospice","2.1","Nursing Facility Days (Medicaid)",{"$f":"'LTC Rev-Exp Region 4'!H$17","v":{"v":0,"d":"$0.00"}},{"$f":"'LTC Rev-Exp Region 4'!I$17","v":{"v":0,"d":"$0.00"}},{"$f":"'LTC Rev-Exp Region 4'!J$17","v":{"v":0,"d":"$0.00"}},{"$f":"'LTC Rev-Exp Region 4'!K$17","v":{"v":0,"d":"$0.00"}},{"v":0,"d":"$0.00"}]
["LTC",null,null,{"$f":"Jurat!I$1","v":0},{"$f":"Jurat!D$33","v":"00:00:00"},"Q2","2017-06-30","Region 4","Operating Expense","Medical Expense","NF & Hospice","2.2","Nursing Facility Days (Crossover)",{"$f":"'LTC Rev-Exp Region 4'!H$18","v":{"v":0,"d":"$0.00"}},{"$f":"'LTC Rev-Exp Region 4'!I$18","v":{"v":0,"d":"$0.00"}},{"$f":"'LTC Rev-Exp Region 4'!J$18","v":{"v":0,"d":"$0.00"}},{"$f":"'LTC Rev-Exp Region 4'!K$18","v":{"v":0,"d":"$0.00"}},{"v":0,"d":"$0.00"}]
["LTC",null,null,{"$f":"Jurat!I$1","v":0},{"$f":"Jurat!D$33","v":"00:00:00"},"Q2","2017-06-30","Region 4","Operating Expense","Medical Expense","NF & Hospice","2.3","Nursing Facility FFS (Medicaid)",{"$f":"'LTC Rev-Exp Region 4'!H$19","v":{"v":0,"d":"$0.00"}},{"$f":"'LTC Rev-Exp Region 4'!I$19","v":{"v":0,"d":"$0.00"}},{"$f":"'LTC Rev-Exp Region 4'!J$19","v":{"v":0,"d":"$0.00"}},{"$f":"'LTC Rev-Exp Region 4'!K$19","v":{"v":0,"d":"$0.00"}},{"v":0,"d":"$0.00"}]
["LTC",null,null,{"$f":"Jurat!I$1","v":0},{"$f":"Jurat!D$33","v":"00:00:00"},"Q2","2017-06-30","Region 4","Operating Expense","Medical Expense","NF & Hospice","2.4","Nursing Facility FFS (Crossover)",{"$f":"'LTC Rev-Exp Region 4'!H$20","v":{"v":0,"d":"$0.00"}},{"$f":"'LTC Rev-Exp Region 4'!I$20","v":{"v":0,"d":"$0.00"}},{"$f":"'LTC Rev-Exp Region 4'!J$20","v":{"v":0,"d":"$0.00"}},{"$f":"'LTC Rev-Exp Region 4'!K$20","v":{"v":0,"d":"$0.00"}},{"v":0,"d":"$0.00"}]
["LTC",null,null,{"$f":"Jurat!I$1","v":0},{"$f":"Jurat!D$33","v":"00:00:00"},"Q2","2017-06-30","Region 4","Operating Expense","Medical Expense","NF & Hospice","2.5","Hospice Days",{"$f":"'LTC Rev-Exp Region 4'!H$21","v":{"v":0,"d":"$0.00"}},{"$f":"'LTC Rev-Exp Region 4'!I$21","v":{"v":0,"d":"$0.00"}},{"$f":"'LTC Rev-Exp Region 4'!J$21","v":{"v":0,"d":"$0.00"}},{"$f":"'LTC Rev-Exp Region 4'!K$21","v":{"v":0,"d":"$0.00"}},{"v":0,"d":"$0.00"}]
["LTC",null,null,{"$f":"Jurat!I$1","v":0},{"$f":"Jurat!D$33","v":"00:00:00"},"Q2","2017-06-30","Region 4","Operating Expense","Medical Expense","NF & Hospice","2.6","Hospice FFS",{"$f":"'LTC Rev-Exp Region 4'!H$22","v":{"v":0,"d":"$0.00"}},{"$f":"'LTC Rev-Exp Region 4'!I$22","v":{"v":0,"d":"$0.00"}},{"$f":"'LTC Rev-Exp Region 4'!J$22","v":{"v":0,"d":"$0.00"}},{"$f":"'LTC Rev-Exp Region 4'!K$22","v":{"v":0,"d":"$0.00"}},{"v":0,"d":"$0.00"}]
["LTC",null,null,{"$f":"Jurat!I$1","v":0},{"$f":"Jurat!D$33","v":"00:00:00"},"Q2","2017-06-30","Region 4","Operating Expense","Medical Expense","NF & Hospice","2.7","Ending IBNP for NF & Hospice",{"$f":"'LTC Rev-Exp Region 4'!H$23","v":{"v":0,"d":"$0.00"}},{"$f":"'LTC Rev-Exp Region 4'!I$23","v":{"v":0,"d":"$0.00"}},{"$f":"'LTC Rev-Exp Region 4'!J$23","v":{"v":0,"d":"$0.00"}},{"$f":"'LTC Rev-Exp Region 4'!K$23","v":{"v":0,"d":"$0.00"}},{"v":0,"d":"$0.00"}]
["LTC",null,null,{"$f":"Jurat!I$1","v":0},{"$f":"Jurat!D$33","v":"00:00:00"},"Q2","2017-06-30","Region 4","Operating Expense","Medical Expense","NF & Hospice","2.8","NF & Hospice Subcapitated",{"$f":"'LTC Rev-Exp Region 4'!H$24","v":{"v":0,"d":"$0.00"}},{"$f":"'LTC Rev-Exp Region 4'!I$24","v":{"v":0,"d":"$0.00"}},{"$f":"'LTC Rev-Exp Region 4'!J$24","v":{"v":0,"d":"$0.00"}},{"$f":"'LTC Rev-Exp Region 4'!K$24","v":{"v":0,"d":"$0.00"}},{"v":0,"d":"$0.00"}]
["LTC",null,null,{"$f":"Jurat!I$1","v":0},{"$f":"Jurat!D$33","v":"00:00:00"},"Q2","2017-06-30","Region 4","Operating Expense","Medical Expense","NF & Hospice","2.9","NF & Hospice Settlements",{"$f":"'LTC Rev-Exp Region 4'!H$25","v":{"v":0,"d":"$0.00"}},{"$f":"'LTC Rev-Exp Region 4'!I$25","v":{"v":0,"d":"$0.00"}},{"$f":"'LTC Rev-Exp Region 4'!J$25","v":{"v":0,"d":"$0.00"}},{"$f":"'LTC Rev-Exp Region 4'!K$25","v":{"v":0,"d":"$0.00"}},{"v":0,"d":"$0.00"}]
["LTC",null,null,{"$f":"Jurat!I$1","v":0},{"$f":"Jurat!D$33","v":"00:00:00"},"Q2","2017-06-30","Region 4","Operating Expense","Medical Expense","LTC Services","2.11","Assisted Living FFS",{"$f":"'LTC Rev-Exp Region 4'!H$27","v":{"v":0,"d":"$0.00"}},{"$f":"'LTC Rev-Exp Region 4'!I$27","v":{"v":0,"d":"$0.00"}},{"$f":"'LTC Rev-Exp Region 4'!J$27","v":{"v":0,"d":"$0.00"}},{"$f":"'LTC Rev-Exp Region 4'!K$27","v":{"v":0,"d":"$0.00"}},{"v":0,"d":"$0.00"}]
["LTC",null,null,{"$f":"Jurat!I$1","v":0},{"$f":"Jurat!D$33","v":"00:00:00"},"Q2","2017-06-30","Region 4","Operating Expense","Medical Expense","LTC Services","2.12","Home Health FFS",{"$f":"'LTC Rev-Exp Region 4'!H$28","v":{"v":0,"d":"$0.00"}},{"$f":"'LTC Rev-Exp Region 4'!I$28","v":{"v":0,"d":"$0.00"}},{"$f":"'LTC Rev-Exp Region 4'!J$28","v":{"v":0,"d":"$0.00"}},{"$f":"'LTC Rev-Exp Region 4'!K$28","v":{"v":0,"d":"$0.00"}},{"v":0,"d":"$0.00"}]
["LTC",null,null,{"$f":"Jurat!I$1","v":0},{"$f":"Jurat!D$33","v":"00:00:00"},"Q2","2017-06-30","Region 4","Operating Expense","Medical Expense","LTC Services","2.13","Medical Equipment/Supplies FFS",{"$f":"'LTC Rev-Exp Region 4'!H$29","v":{"v":0,"d":"$0.00"}},{"$f":"'LTC Rev-Exp Region 4'!I$29","v":{"v":0,"d":"$0.00"}},{"$f":"'LTC Rev-Exp Region 4'!J$29","v":{"v":0,"d":"$0.00"}},{"$f":"'LTC Rev-Exp Region 4'!K$29","v":{"v":0,"d":"$0.00"}},{"v":0,"d":"$0.00"}]
["LTC",null,null,{"$f":"Jurat!I$1","v":0},{"$f":"Jurat!D$33","v":"00:00:00"},"Q2","2017-06-30","Region 4","Operating Expense","Medical Expense","LTC Services","2.14","Therapy FFS",{"$f":"'LTC Rev-Exp Region 4'!H$30","v":{"v":0,"d":"$0.00"}},{"$f":"'LTC Rev-Exp Region 4'!I$30","v":{"v":0,"d":"$0.00"}},{"$f":"'LTC Rev-Exp Region 4'!J$30","v":{"v":0,"d":"$0.00"}},{"$f":"'LTC Rev-Exp Region 4'!K$30","v":{"v":0,"d":"$0.00"}},{"v":0,"d":"$0.00"}]
["LTC",null,null,{"$f":"Jurat!I$1","v":0},{"$f":"Jurat!D$33","v":"00:00:00"},"Q2","2017-06-30","Region 4","Operating Expense","Medical Expense","LTC Services","2.15","Transportation FFS",{"$f":"'LTC Rev-Exp Region 4'!H$31","v":{"v":0,"d":"$0.00"}},{"$f":"'LTC Rev-Exp Region 4'!I$31","v":{"v":0,"d":"$0.00"}},{"$f":"'LTC Rev-Exp Region 4'!J$31","v":{"v":0,"d":"$0.00"}},{"$f":"'LTC Rev-Exp Region 4'!K$31","v":{"v":0,"d":"$0.00"}},{"v":0,"d":"$0.00"}]
["LTC",null,null,{"$f":"Jurat!I$1","v":0},{"$f":"Jurat!D$33","v":"00:00:00"},"Q2","2017-06-30","Region 4","Operating Expense","Medical Expense","LTC Services","2.16","Case Management FFS (Plan Provided)",{"$f":"'LTC Rev-Exp Region 4'!H$32","v":{"v":0,"d":"$0.00"}},{"$f":"'LTC Rev-Exp Region 4'!I$32","v":{"v":0,"d":"$0.00"}},{"$f":"'LTC Rev-Exp Region 4'!J$32","v":{"v":0,"d":"$0.00"}},{"$f":"'LTC Rev-Exp Region 4'!K$32","v":{"v":0,"d":"$0.00"}},{"v":0,"d":"$0.00"}]
["LTC",null,null,{"$f":"Jurat!I$1","v":0},{"$f":"Jurat!D$33","v":"00:00:00"},"Q2","2017-06-30","Region 4","Operating Expense","Medical Expense","LTC Services","2.17","Case Management FF (Non-Plan Provided)",{"$f":"'LTC Rev-Exp Region 4'!H$33","v":{"v":0,"d":"$0.00"}},{"$f":"'LTC Rev-Exp Region 4'!I$33","v":{"v":0,"d":"$0.00"}},{"$f":"'LTC Rev-Exp Region 4'!J$33","v":{"v":0,"d":"$0.00"}},{"$f":"'LTC Rev-Exp Region 4'!K$33","v":{"v":0,"d":"$0.00"}},{"v":0,"d":"$0.00"}]
["LTC",null,null,{"$f":"Jurat!I$1","v":0},{"$f":"Jurat!D$33","v":"00:00:00"},"Q2","2017-06-30","Region 4","Operating Expense","Medical Expense","LTC Services","2.18","HCBS FFS",{"$f":"'LTC Rev-Exp Region 4'!H$34","v":{"v":0,"d":"$0.00"}},{"$f":"'LTC Rev-Exp Region 4'!I$34","v":{"v":0,"d":"$0.00"}},{"$f":"'LTC Rev-Exp Region 4'!J$34","v":{"v":0,"d":"$0.00"}},{"$f":"'LTC Rev-Exp Region 4'!K$34","v":{"v":0,"d":"$0.00"}},{"v":0,"d":"$0.00"}]
["LTC",null,null,{"$f":"Jurat!I$1","v":0},{"$f":"Jurat!D$33","v":"00:00:00"},"Q2","2017-06-30","Region 4","Operating Expense","Medical Expense","LTC Services","2.19","Subcapitated LTC Services",{"$f":"'LTC Rev-Exp Region 4'!H$35","v":{"v":0,"d":"$0.00"}},{"$f":"'LTC Rev-Exp Region 4'!I$35","v":{"v":0,"d":"$0.00"}},{"$f":"'LTC Rev-Exp Region 4'!J$35","v":{"v":0,"d":"$0.00"}},{"$f":"'LTC Rev-Exp Region 4'!K$35","v":{"v":0,"d":"$0.00"}},{"v":0,"d":"$0.00"}]
["LTC",null,null,{"$f":"Jurat!I$1","v":0},{"$f":"Jurat!D$33","v":"00:00:00"},"Q2","2017-06-30","Region 4","Operating Expense","Medical Expense","LTC Services","2.20","Ending IBNP for Long Term Care Services",{"$f":"'LTC Rev-Exp Region 4'!H$36","v":{"v":0,"d":"$0.00"}},{"$f":"'LTC Rev-Exp Region 4'!I$36","v":{"v":0,"d":"$0.00"}},{"$f":"'LTC Rev-Exp Region 4'!J$36","v":{"v":0,"d":"$0.00"}},{"$f":"'LTC Rev-Exp Region 4'!K$36","v":{"v":0,"d":"$0.00"}},{"v":0,"d":"$0.00"}]
["LTC",null,null,{"$f":"Jurat!I$1","v":0},{"$f":"Jurat!D$33","v":"00:00:00"},"Q2","2017-06-30","Region 4","Operating Expense","Medical Expense","LTC Services","2.21","LTC Services Settlements",{"$f":"'LTC Rev-Exp Region 4'!H$37","v":{"v":0,"d":"$0.00"}},{"$f":"'LTC Rev-Exp Region 4'!I$37","v":{"v":0,"d":"$0.00"}},{"$f":"'LTC Rev-Exp Region 4'!J$37","v":{"v":0,"d":"$0.00"}},{"$f":"'LTC Rev-Exp Region 4'!K$37","v":{"v":0,"d":"$0.00"}},{"v":0,"d":"$0.00"}]
["LTC",null,null,{"$f":"Jurat!I$1","v":0},{"$f":"Jurat!D$33","v":"00:00:00"},"Q2","2017-06-30","Region 4","Operating Expense","Medical Expense","Expanded Benefits","3.1","Expanded Benefits FFS",{"$f":"'LTC Rev-Exp Region 4'!H$39","v":{"v":0,"d":"$0.00"}},{"$f":"'LTC Rev-Exp Region 4'!I$39","v":{"v":0,"d":"$0.00"}},{"$f":"'LTC Rev-Exp Region 4'!J$39","v":{"v":0,"d":"$0.00"}},{"$f":"'LTC Rev-Exp Region 4'!K$39","v":{"v":0,"d":"$0.00"}},{"v":0,"d":"$0.00"}]
["LTC",null,null,{"$f":"Jurat!I$1","v":0},{"$f":"Jurat!D$33","v":"00:00:00"},"Q2","2017-06-30","Region 4","Operating Expense","Medical Expense","Expanded Benefits","3.2","Expanded Benefits Subcapitation",{"$f":"'LTC Rev-Exp Region 4'!H$40","v":{"v":0,"d":"$0.00"}},{"$f":"'LTC Rev-Exp Region 4'!I$40","v":{"v":0,"d":"$0.00"}},{"$f":"'LTC Rev-Exp Region 4'!J$40","v":{"v":0,"d":"$0.00"}},{"$f":"'LTC Rev-Exp Region 4'!K$40","v":{"v":0,"d":"$0.00"}},{"v":0,"d":"$0.00"}]
["LTC",null,null,{"$f":"Jurat!I$1","v":0},{"$f":"Jurat!D$33","v":"00:00:00"},"Q2","2017-06-30","Region 4","Operating Expense","Medical Expense","Expanded Benefits","3.3","Ending IBNP for Expanded Benefits",{"$f":"'LTC Rev-Exp Region 4'!H$41","v":{"v":0,"d":"$0.00"}},{"$f":"'LTC Rev-Exp Region 4'!I$41","v":{"v":0,"d":"$0.00"}},{"$f":"'LTC Rev-Exp Region 4'!J$41","v":{"v":0,"d":"$0.00"}},{"$f":"'LTC Rev-Exp Region 4'!K$41","v":{"v":0,"d":"$0.00"}},{"v":0,"d":"$0.00"}]
["LTC",null,null,{"$f":"Jurat!I$1","v":0},{"$f":"Jurat!D$33","v":"00:00:00"},"Q2","2017-06-30","Region 4","Operating Expense","Medical Expense","Expanded Benefits","3.4","Expanded Benefits Settlements",{"$f":"'LTC Rev-Exp Region 4'!H$42","v":{"v":0,"d":"$0.00"}},{"$f":"'LTC Rev-Exp Region 4'!I$42","v":{"v":0,"d":"$0.00"}},{"$f":"'LTC Rev-Exp Region 4'!J$42","v":{"v":0,"d":"$0.00"}},{"$f":"'LTC Rev-Exp Region 4'!K$42","v":{"v":0,"d":"$0.00"}},{"v":0,"d":"$0.00"}]
["LTC",null,null,{"$f":"Jurat!I$1","v":0},{"$f":"Jurat!D$33","v":"00:00:00"},"Q2","2017-06-30","Region 4","Operating Expense","Medical Expense","Other Medical","4.5","TPL & Fraud/Abuse Recoveries",{"$f":"'LTC Rev-Exp Region 4'!H$48","v":{"v":0,"d":"$0.00"}},{"$f":"'LTC Rev-Exp Region 4'!I$48","v":{"v":0,"d":"$0.00"}},{"$f":"'LTC Rev-Exp Region 4'!J$48","v":{"v":0,"d":"$0.00"}},{"$f":"'LTC Rev-Exp Region 4'!K$48","v":{"v":0,"d":"$0.00"}},{"v":0,"d":"$0.00"}]
["LTC",null,null,{"$f":"Jurat!I$1","v":0},{"$f":"Jurat!D$33","v":"00:00:00"},"Q2","2017-06-30","Region 4","Operating Expense","Medical Expense","Other Medical","4.6.1","Premium Deficiency Reserve",{"$f":"'LTC Rev-Exp Region 4'!H$49","v":{"v":0,"d":"$0.00"}},{"$f":"'LTC Rev-Exp Region 4'!I$49","v":{"v":0,"d":"$0.00"}},{"$f":"'LTC Rev-Exp Region 4'!J$49","v":{"v":0,"d":"$0.00"}},{"$f":"'LTC Rev-Exp Region 4'!K$49","v":{"v":0,"d":"$0.00"}},{"v":0,"d":"$0.00"}]
["LTC",null,null,{"$f":"Jurat!I$1","v":0},{"$f":"Jurat!D$33","v":"00:00:00"},"Q2","2017-06-30","Region 4","Operating Expense","Medical Expense","Other Medical","4.8","Reinsurance Premiums",{"$f":"'LTC Rev-Exp Region 4'!H$51","v":{"v":0,"d":"$0.00"}},{"$f":"'LTC Rev-Exp Region 4'!I$51","v":{"v":0,"d":"$0.00"}},{"$f":"'LTC Rev-Exp Region 4'!J$51","v":{"v":0,"d":"$0.00"}},{"$f":"'LTC Rev-Exp Region 4'!K$51","v":{"v":0,"d":"$0.00"}},{"v":0,"d":"$0.00"}]
["LTC",null,null,{"$f":"Jurat!I$1","v":0},{"$f":"Jurat!D$33","v":"00:00:00"},"Q2","2017-06-30","Region 4","Operating Expense","Medical Expense","Other Medical","4.9","Reinsurance Recoveries",{"$f":"'LTC Rev-Exp Region 4'!H$52","v":{"v":0,"d":"$0.00"}},{"$f":"'LTC Rev-Exp Region 4'!I$52","v":{"v":0,"d":"$0.00"}},{"$f":"'LTC Rev-Exp Region 4'!J$52","v":{"v":0,"d":"$0.00"}},{"$f":"'LTC Rev-Exp Region 4'!K$52","v":{"v":0,"d":"$0.00"}},{"v":0,"d":"$0.00"}]
["LTC",null,null,{"$f":"Jurat!I$1","v":0},{"$f":"Jurat!D$33","v":"00:00:00"},"Q2","2017-06-30","Region 4","Operating Expense","Administrative Expense","Administrative","5.1","Salaries & Benefits",{"$f":"'LTC Rev-Exp Region 4'!H$57","v":{"v":0,"d":"$0.00"}},{"$f":"'LTC Rev-Exp Region 4'!I$57","v":{"v":0,"d":"$0.00"}},{"$f":"'LTC Rev-Exp Region 4'!J$57","v":{"v":0,"d":"$0.00"}},{"$f":"'LTC Rev-Exp Region 4'!K$57","v":{"v":0,"d":"$0.00"}},{"v":0,"d":"$0.00"}]
["LTC",null,null,{"$f":"Jurat!I$1","v":0},{"$f":"Jurat!D$33","v":"00:00:00"},"Q2","2017-06-30","Region 4","Operating Expense","Administrative Expense","Administrative","5.2","Administrative Services",{"$f":"'LTC Rev-Exp Region 4'!H$58","v":{"v":0,"d":"$0.00"}},{"$f":"'LTC Rev-Exp Region 4'!I$58","v":{"v":0,"d":"$0.00"}},{"$f":"'LTC Rev-Exp Region 4'!J$58","v":{"v":0,"d":"$0.00"}},{"$f":"'LTC Rev-Exp Region 4'!K$58","v":{"v":0,"d":"$0.00"}},{"v":0,"d":"$0.00"}]
["LTC",null,null,{"$f":"Jurat!I$1","v":0},{"$f":"Jurat!D$33","v":"00:00:00"},"Q2","2017-06-30","Region 4","Operating Expense","Administrative Expense","Administrative","5.3","Information Systems",{"$f":"'LTC Rev-Exp Region 4'!H$59","v":{"v":0,"d":"$0.00"}},{"$f":"'LTC Rev-Exp Region 4'!I$59","v":{"v":0,"d":"$0.00"}},{"$f":"'LTC Rev-Exp Region 4'!J$59","v":{"v":0,"d":"$0.00"}},{"$f":"'LTC Rev-Exp Region 4'!K$59","v":{"v":0,"d":"$0.00"}},{"v":0,"d":"$0.00"}]
["LTC",null,null,{"$f":"Jurat!I$1","v":0},{"$f":"Jurat!D$33","v":"00:00:00"},"Q2","2017-06-30","Region 4","Operating Expense","Administrative Expense","Administrative","5.4","Marketing Expenses",{"$f":"'LTC Rev-Exp Region 4'!H$60","v":{"v":0,"d":"$0.00"}},{"$f":"'LTC Rev-Exp Region 4'!I$60","v":{"v":0,"d":"$0.00"}},{"$f":"'LTC Rev-Exp Region 4'!J$60","v":{"v":0,"d":"$0.00"}},{"$f":"'LTC Rev-Exp Region 4'!K$60","v":{"v":0,"d":"$0.00"}},{"v":0,"d":"$0.00"}]
["LTC",null,null,{"$f":"Jurat!I$1","v":0},{"$f":"Jurat!D$33","v":"00:00:00"},"Q2","2017-06-30","Region 4","Operating Expense","Administrative Expense","Administrative","5.5","General  Administration",{"$f":"'LTC Rev-Exp Region 4'!H$61","v":{"v":0,"d":"$0.00"}},{"$f":"'LTC Rev-Exp Region 4'!I$61","v":{"v":0,"d":"$0.00"}},{"$f":"'LTC Rev-Exp Region 4'!J$61","v":{"v":0,"d":"$0.00"}},{"$f":"'LTC Rev-Exp Region 4'!K$61","v":{"v":0,"d":"$0.00"}},{"v":0,"d":"$0.00"}]
["LTC",null,null,{"$f":"Jurat!I$1","v":0},{"$f":"Jurat!D$33","v":"00:00:00"},"Q2","2017-06-30","Region 4","Operating Expense","Administrative Expense","Administrative","5.6","Compliance/Regulatory",{"$f":"'LTC Rev-Exp Region 4'!H$62","v":{"v":0,"d":"$0.00"}},{"$f":"'LTC Rev-Exp Region 4'!I$62","v":{"v":0,"d":"$0.00"}},{"$f":"'LTC Rev-Exp Region 4'!J$62","v":{"v":0,"d":"$0.00"}},{"$f":"'LTC Rev-Exp Region 4'!K$62","v":{"v":0,"d":"$0.00"}},{"v":0,"d":"$0.00"}]
["LTC",null,null,{"$f":"Jurat!I$1","v":0},{"$f":"Jurat!D$33","v":"00:00:00"},"Q2","2017-06-30","Region 4","Operating Expense","Taxes & Fees","Taxes & Fees","6.1","State Premium Tax",{"$f":"'LTC Rev-Exp Region 4'!H$64","v":{"v":0,"d":"$0.00"}},{"v":0,"d":"$0.00"},{"v":0,"d":"$0.00"},{"v":0,"d":"$0.00"},{"v":0,"d":"$0.00"}]
["LTC",null,null,{"$f":"Jurat!I$1","v":0},{"$f":"Jurat!D$33","v":"00:00:00"},"Q2","2017-06-30","Region 4","Operating Expense","Taxes & Fees","Taxes & Fees","6.2","Department of Insurance Assessments",{"$f":"'LTC Rev-Exp Region 4'!H$65","v":{"v":0,"d":"$0.00"}},{"v":0,"d":"$0.00"},{"v":0,"d":"$0.00"},{"v":0,"d":"$0.00"},{"v":0,"d":"$0.00"}]
["LTC",null,null,{"$f":"Jurat!I$1","v":0},{"$f":"Jurat!D$33","v":"00:00:00"},"Q2","2017-06-30","Region 4","Non-Operating Expense","Income Tax Expense","Income Tax Expense","9.0","Income Tax Expense",{"$f":"'LTC Rev-Exp Region 4'!H$72","v":{"v":0,"d":"$0.00"}},{"v":0,"d":"$0.00"},{"v":0,"d":"$0.00"},{"v":0,"d":"$0.00"},{"v":0,"d":"$0.00"}]
["LTC",null,null,{"$f":"Jurat!I$1","v":0},{"$f":"Jurat!D$33","v":"00:00:00"},"Q3","2017-09-30","Region 4","Member Months","Member Months","Member Months",null,"Member Months",{"$f":"'LTC Rev-Exp Region 4'!L$9","v":{"v":0,"d":"$0.00"}},{"$f":"'LTC Rev-Exp Region 4'!M$9","v":{"v":0,"d":"$0.00"}},{"$f":"'LTC Rev-Exp Region 4'!N$9","v":{"v":0,"d":"$0.00"}},{"$f":"'LTC Rev-Exp Region 4'!O$9","v":{"v":0,"d":"$0.00"}},{"v":0,"d":"$0.00"}]
["LTC",null,null,{"$f":"Jurat!I$1","v":0},{"$f":"Jurat!D$33","v":"00:00:00"},"Q3","2017-09-30","Region 4","Operating Revenue","Capitation","Capitation",1.1,"Capitation",{"$f":"'LTC Rev-Exp Region 4'!L$11","v":{"v":0,"d":"$0.00"}},{"$f":"'LTC Rev-Exp Region 4'!M$11","v":{"v":0,"d":"$0.00"}},{"$f":"'LTC Rev-Exp Region 4'!N$11","v":{"v":0,"d":"$0.00"}},{"$f":"'LTC Rev-Exp Region 4'!O$11","v":{"v":0,"d":"$0.00"}},{"v":0,"d":"$0.00"}]
["LTC",null,null,{"$f":"Jurat!I$1","v":0},{"$f":"Jurat!D$33","v":"00:00:00"},"Q3","2017-09-30","Region 4","Operating Revenue","Capitation","NH Rate Reconciliation",1.2,"NH Rate Reconciliation",{"$f":"'LTC Rev-Exp Region 4'!L$12","v":{"v":0,"d":"$0.00"}},{"$f":"'LTC Rev-Exp Region 4'!M$12","v":{"v":0,"d":"$0.00"}},{"$f":"'LTC Rev-Exp Region 4'!N$12","v":{"v":0,"d":"$0.00"}},{"$f":"'LTC Rev-Exp Region 4'!O$12","v":{"v":0,"d":"$0.00"}},{"v":0,"d":"$0.00"}]
["LTC",null,null,{"$f":"Jurat!I$1","v":0},{"$f":"Jurat!D$33","v":"00:00:00"},"Q3","2017-09-30","Region 4","Operating Revenue","Other Revenue","Other Revenue",1.3,"Other Revenue",{"$f":"'LTC Rev-Exp Region 4'!L$13","v":{"v":0,"d":"$0.00"}},{"$f":"'LTC Rev-Exp Region 4'!M$13","v":{"v":0,"d":"$0.00"}},{"$f":"'LTC Rev-Exp Region 4'!N$13","v":{"v":0,"d":"$0.00"}},{"$f":"'LTC Rev-Exp Region 4'!O$13","v":{"v":0,"d":"$0.00"}},{"v":0,"d":"$0.00"}]
["LTC",null,null,{"$f":"Jurat!I$1","v":0},{"$f":"Jurat!D$33","v":"00:00:00"},"Q3","2017-09-30","Region 4","Operating Expense","Medical Expense","NF & Hospice","2.1","Nursing Facility Days (Medicaid)",{"$f":"'LTC Rev-Exp Region 4'!L$17","v":{"v":0,"d":"$0.00"}},{"$f":"'LTC Rev-Exp Region 4'!M$17","v":{"v":0,"d":"$0.00"}},{"$f":"'LTC Rev-Exp Region 4'!N$17","v":{"v":0,"d":"$0.00"}},{"$f":"'LTC Rev-Exp Region 4'!O$17","v":{"v":0,"d":"$0.00"}},{"v":0,"d":"$0.00"}]
["LTC",null,null,{"$f":"Jurat!I$1","v":0},{"$f":"Jurat!D$33","v":"00:00:00"},"Q3","2017-09-30","Region 4","Operating Expense","Medical Expense","NF & Hospice","2.2","Nursing Facility Days (Crossover)",{"$f":"'LTC Rev-Exp Region 4'!L$18","v":{"v":0,"d":"$0.00"}},{"$f":"'LTC Rev-Exp Region 4'!M$18","v":{"v":0,"d":"$0.00"}},{"$f":"'LTC Rev-Exp Region 4'!N$18","v":{"v":0,"d":"$0.00"}},{"$f":"'LTC Rev-Exp Region 4'!O$18","v":{"v":0,"d":"$0.00"}},{"v":0,"d":"$0.00"}]
["LTC",null,null,{"$f":"Jurat!I$1","v":0},{"$f":"Jurat!D$33","v":"00:00:00"},"Q3","2017-09-30","Region 4","Operating Expense","Medical Expense","NF & Hospice","2.3","Nursing Facility FFS (Medicaid)",{"$f":"'LTC Rev-Exp Region 4'!L$19","v":{"v":0,"d":"$0.00"}},{"$f":"'LTC Rev-Exp Region 4'!M$19","v":{"v":0,"d":"$0.00"}},{"$f":"'LTC Rev-Exp Region 4'!N$19","v":{"v":0,"d":"$0.00"}},{"$f":"'LTC Rev-Exp Region 4'!O$19","v":{"v":0,"d":"$0.00"}},{"v":0,"d":"$0.00"}]
["LTC",null,null,{"$f":"Jurat!I$1","v":0},{"$f":"Jurat!D$33","v":"00:00:00"},"Q3","2017-09-30","Region 4","Operating Expense","Medical Expense","NF & Hospice","2.4","Nursing Facility FFS (Crossover)",{"$f":"'LTC Rev-Exp Region 4'!L$20","v":{"v":0,"d":"$0.00"}},{"$f":"'LTC Rev-Exp Region 4'!M$20","v":{"v":0,"d":"$0.00"}},{"$f":"'LTC Rev-Exp Region 4'!N$20","v":{"v":0,"d":"$0.00"}},{"$f":"'LTC Rev-Exp Region 4'!O$20","v":{"v":0,"d":"$0.00"}},{"v":0,"d":"$0.00"}]
["LTC",null,null,{"$f":"Jurat!I$1","v":0},{"$f":"Jurat!D$33","v":"00:00:00"},"Q3","2017-09-30","Region 4","Operating Expense","Medical Expense","NF & Hospice","2.5","Hospice Days",{"$f":"'LTC Rev-Exp Region 4'!L$21","v":{"v":0,"d":"$0.00"}},{"$f":"'LTC Rev-Exp Region 4'!M$21","v":{"v":0,"d":"$0.00"}},{"$f":"'LTC Rev-Exp Region 4'!N$21","v":{"v":0,"d":"$0.00"}},{"$f":"'LTC Rev-Exp Region 4'!O$21","v":{"v":0,"d":"$0.00"}},{"v":0,"d":"$0.00"}]
["LTC",null,null,{"$f":"Jurat!I$1","v":0},{"$f":"Jurat!D$33","v":"00:00:00"},"Q3","2017-09-30","Region 4","Operating Expense","Medical Expense","NF & Hospice","2.6","Hospice FFS",{"$f":"'LTC Rev-Exp Region 4'!L$22","v":{"v":0,"d":"$0.00"}},{"$f":"'LTC Rev-Exp Region 4'!M$22","v":{"v":0,"d":"$0.00"}},{"$f":"'LTC Rev-Exp Region 4'!N$22","v":{"v":0,"d":"$0.00"}},{"$f":"'LTC Rev-Exp Region 4'!O$22","v":{"v":0,"d":"$0.00"}},{"v":0,"d":"$0.00"}]
["LTC",null,null,{"$f":"Jurat!I$1","v":0},{"$f":"Jurat!D$33","v":"00:00:00"},"Q3","2017-09-30","Region 4","Operating Expense","Medical Expense","NF & Hospice","2.7","Ending IBNP for NF & Hospice",{"$f":"'LTC Rev-Exp Region 4'!L$23","v":{"v":0,"d":"$0.00"}},{"$f":"'LTC Rev-Exp Region 4'!M$23","v":{"v":0,"d":"$0.00"}},{"$f":"'LTC Rev-Exp Region 4'!N$23","v":{"v":0,"d":"$0.00"}},{"$f":"'LTC Rev-Exp Region 4'!O$23","v":{"v":0,"d":"$0.00"}},{"v":0,"d":"$0.00"}]
["LTC",null,null,{"$f":"Jurat!I$1","v":0},{"$f":"Jurat!D$33","v":"00:00:00"},"Q3","2017-09-30","Region 4","Operating Expense","Medical Expense","NF & Hospice","2.8","NF & Hospice Subcapitated",{"$f":"'LTC Rev-Exp Region 4'!L$24","v":{"v":0,"d":"$0.00"}},{"$f":"'LTC Rev-Exp Region 4'!M$24","v":{"v":0,"d":"$0.00"}},{"$f":"'LTC Rev-Exp Region 4'!N$24","v":{"v":0,"d":"$0.00"}},{"$f":"'LTC Rev-Exp Region 4'!O$24","v":{"v":0,"d":"$0.00"}},{"v":0,"d":"$0.00"}]
["LTC",null,null,{"$f":"Jurat!I$1","v":0},{"$f":"Jurat!D$33","v":"00:00:00"},"Q3","2017-09-30","Region 4","Operating Expense","Medical Expense","NF & Hospice","2.9","NF & Hospice Settlements",{"$f":"'LTC Rev-Exp Region 4'!L$25","v":{"v":0,"d":"$0.00"}},{"$f":"'LTC Rev-Exp Region 4'!M$25","v":{"v":0,"d":"$0.00"}},{"$f":"'LTC Rev-Exp Region 4'!N$25","v":{"v":0,"d":"$0.00"}},{"$f":"'LTC Rev-Exp Region 4'!O$25","v":{"v":0,"d":"$0.00"}},{"v":0,"d":"$0.00"}]
["LTC",null,null,{"$f":"Jurat!I$1","v":0},{"$f":"Jurat!D$33","v":"00:00:00"},"Q3","2017-09-30","Region 4","Operating Expense","Medical Expense","LTC Services","2.11","Assisted Living FFS",{"$f":"'LTC Rev-Exp Region 4'!L$27","v":{"v":0,"d":"$0.00"}},{"$f":"'LTC Rev-Exp Region 4'!M$27","v":{"v":0,"d":"$0.00"}},{"$f":"'LTC Rev-Exp Region 4'!N$27","v":{"v":0,"d":"$0.00"}},{"$f":"'LTC Rev-Exp Region 4'!O$27","v":{"v":0,"d":"$0.00"}},{"v":0,"d":"$0.00"}]
["LTC",null,null,{"$f":"Jurat!I$1","v":0},{"$f":"Jurat!D$33","v":"00:00:00"},"Q3","2017-09-30","Region 4","Operating Expense","Medical Expense","LTC Services","2.12","Home Health FFS",{"$f":"'LTC Rev-Exp Region 4'!L$28","v":{"v":0,"d":"$0.00"}},{"$f":"'LTC Rev-Exp Region 4'!M$28","v":{"v":0,"d":"$0.00"}},{"$f":"'LTC Rev-Exp Region 4'!N$28","v":{"v":0,"d":"$0.00"}},{"$f":"'LTC Rev-Exp Region 4'!O$28","v":{"v":0,"d":"$0.00"}},{"v":0,"d":"$0.00"}]
["LTC",null,null,{"$f":"Jurat!I$1","v":0},{"$f":"Jurat!D$33","v":"00:00:00"},"Q3","2017-09-30","Region 4","Operating Expense","Medical Expense","LTC Services","2.13","Medical Equipment/Supplies FFS",{"$f":"'LTC Rev-Exp Region 4'!L$29","v":{"v":0,"d":"$0.00"}},{"$f":"'LTC Rev-Exp Region 4'!M$29","v":{"v":0,"d":"$0.00"}},{"$f":"'LTC Rev-Exp Region 4'!N$29","v":{"v":0,"d":"$0.00"}},{"$f":"'LTC Rev-Exp Region 4'!O$29","v":{"v":0,"d":"$0.00"}},{"v":0,"d":"$0.00"}]
["LTC",null,null,{"$f":"Jurat!I$1","v":0},{"$f":"Jurat!D$33","v":"00:00:00"},"Q3","2017-09-30","Region 4","Operating Expense","Medical Expense","LTC Services","2.14","Therapy FFS",{"$f":"'LTC Rev-Exp Region 4'!L$30","v":{"v":0,"d":"$0.00"}},{"$f":"'LTC Rev-Exp Region 4'!M$30","v":{"v":0,"d":"$0.00"}},{"$f":"'LTC Rev-Exp Region 4'!N$30","v":{"v":0,"d":"$0.00"}},{"$f":"'LTC Rev-Exp Region 4'!O$30","v":{"v":0,"d":"$0.00"}},{"v":0,"d":"$0.00"}]
["LTC",null,null,{"$f":"Jurat!I$1","v":0},{"$f":"Jurat!D$33","v":"00:00:00"},"Q3","2017-09-30","Region 4","Operating Expense","Medical Expense","LTC Services","2.15","Transportation FFS",{"$f":"'LTC Rev-Exp Region 4'!L$31","v":{"v":0,"d":"$0.00"}},{"$f":"'LTC Rev-Exp Region 4'!M$31","v":{"v":0,"d":"$0.00"}},{"$f":"'LTC Rev-Exp Region 4'!N$31","v":{"v":0,"d":"$0.00"}},{"$f":"'LTC Rev-Exp Region 4'!O$31","v":{"v":0,"d":"$0.00"}},{"v":0,"d":"$0.00"}]
["LTC",null,null,{"$f":"Jurat!I$1","v":0},{"$f":"Jurat!D$33","v":"00:00:00"},"Q3","2017-09-30","Region 4","Operating Expense","Medical Expense","LTC Services","2.16","Case Management FFS (Plan Provided)",{"$f":"'LTC Rev-Exp Region 4'!L$32","v":{"v":0,"d":"$0.00"}},{"$f":"'LTC Rev-Exp Region 4'!M$32","v":{"v":0,"d":"$0.00"}},{"$f":"'LTC Rev-Exp Region 4'!N$32","v":{"v":0,"d":"$0.00"}},{"$f":"'LTC Rev-Exp Region 4'!O$32","v":{"v":0,"d":"$0.00"}},{"v":0,"d":"$0.00"}]
["LTC",null,null,{"$f":"Jurat!I$1","v":0},{"$f":"Jurat!D$33","v":"00:00:00"},"Q3","2017-09-30","Region 4","Operating Expense","Medical Expense","LTC Services","2.17","Case Management FF (Non-Plan Provided)",{"$f":"'LTC Rev-Exp Region 4'!L$33","v":{"v":0,"d":"$0.00"}},{"$f":"'LTC Rev-Exp Region 4'!M$33","v":{"v":0,"d":"$0.00"}},{"$f":"'LTC Rev-Exp Region 4'!N$33","v":{"v":0,"d":"$0.00"}},{"$f":"'LTC Rev-Exp Region 4'!O$33","v":{"v":0,"d":"$0.00"}},{"v":0,"d":"$0.00"}]
["LTC",null,null,{"$f":"Jurat!I$1","v":0},{"$f":"Jurat!D$33","v":"00:00:00"},"Q3","2017-09-30","Region 4","Operating Expense","Medical Expense","LTC Services","2.18","HCBS FFS",{"$f":"'LTC Rev-Exp Region 4'!L$34","v":{"v":0,"d":"$0.00"}},{"$f":"'LTC Rev-Exp Region 4'!M$34","v":{"v":0,"d":"$0.00"}},{"$f":"'LTC Rev-Exp Region 4'!N$34","v":{"v":0,"d":"$0.00"}},{"$f":"'LTC Rev-Exp Region 4'!O$34","v":{"v":0,"d":"$0.00"}},{"v":0,"d":"$0.00"}]
["LTC",null,null,{"$f":"Jurat!I$1","v":0},{"$f":"Jurat!D$33","v":"00:00:00"},"Q3","2017-09-30","Region 4","Operating Expense","Medical Expense","LTC Services","2.19","Subcapitated LTC Services",{"$f":"'LTC Rev-Exp Region 4'!L$35","v":{"v":0,"d":"$0.00"}},{"$f":"'LTC Rev-Exp Region 4'!M$35","v":{"v":0,"d":"$0.00"}},{"$f":"'LTC Rev-Exp Region 4'!N$35","v":{"v":0,"d":"$0.00"}},{"$f":"'LTC Rev-Exp Region 4'!O$35","v":{"v":0,"d":"$0.00"}},{"v":0,"d":"$0.00"}]
["LTC",null,null,{"$f":"Jurat!I$1","v":0},{"$f":"Jurat!D$33","v":"00:00:00"},"Q3","2017-09-30","Region 4","Operating Expense","Medical Expense","LTC Services","2.20","Ending IBNP for Long Term Care Services",{"$f":"'LTC Rev-Exp Region 4'!L$36","v":{"v":0,"d":"$0.00"}},{"$f":"'LTC Rev-Exp Region 4'!M$36","v":{"v":0,"d":"$0.00"}},{"$f":"'LTC Rev-Exp Region 4'!N$36","v":{"v":0,"d":"$0.00"}},{"$f":"'LTC Rev-Exp Region 4'!O$36","v":{"v":0,"d":"$0.00"}},{"v":0,"d":"$0.00"}]
["LTC",null,null,{"$f":"Jurat!I$1","v":0},{"$f":"Jurat!D$33","v":"00:00:00"},"Q3","2017-09-30","Region 4","Operating Expense","Medical Expense","LTC Services","2.21","LTC Services Settlements",{"$f":"'LTC Rev-Exp Region 4'!L$37","v":{"v":0,"d":"$0.00"}},{"$f":"'LTC Rev-Exp Region 4'!M$37","v":{"v":0,"d":"$0.00"}},{"$f":"'LTC Rev-Exp Region 4'!N$37","v":{"v":0,"d":"$0.00"}},{"$f":"'LTC Rev-Exp Region 4'!O$37","v":{"v":0,"d":"$0.00"}},{"v":0,"d":"$0.00"}]
["LTC",null,null,{"$f":"Jurat!I$1","v":0},{"$f":"Jurat!D$33","v":"00:00:00"},"Q3","2017-09-30","Region 4","Operating Expense","Medical Expense","Expanded Benefits","3.1","Expanded Benefits FFS",{"$f":"'LTC Rev-Exp Region 4'!L$39","v":{"v":0,"d":"$0.00"}},{"$f":"'LTC Rev-Exp Region 4'!M$39","v":{"v":0,"d":"$0.00"}},{"$f":"'LTC Rev-Exp Region 4'!N$39","v":{"v":0,"d":"$0.00"}},{"$f":"'LTC Rev-Exp Region 4'!O$39","v":{"v":0,"d":"$0.00"}},{"v":0,"d":"$0.00"}]
["LTC",null,null,{"$f":"Jurat!I$1","v":0},{"$f":"Jurat!D$33","v":"00:00:00"},"Q3","2017-09-30","Region 4","Operating Expense","Medical Expense","Expanded Benefits","3.2","Expanded Benefits Subcapitation",{"$f":"'LTC Rev-Exp Region 4'!L$40","v":{"v":0,"d":"$0.00"}},{"$f":"'LTC Rev-Exp Region 4'!M$40","v":{"v":0,"d":"$0.00"}},{"$f":"'LTC Rev-Exp Region 4'!N$40","v":{"v":0,"d":"$0.00"}},{"$f":"'LTC Rev-Exp Region 4'!O$40","v":{"v":0,"d":"$0.00"}},{"v":0,"d":"$0.00"}]
["LTC",null,null,{"$f":"Jurat!I$1","v":0},{"$f":"Jurat!D$33","v":"00:00:00"},"Q3","2017-09-30","Region 4","Operating Expense","Medical Expense","Expanded Benefits","3.3","Ending IBNP for Expanded Benefits",{"$f":"'LTC Rev-Exp Region 4'!L$41","v":{"v":0,"d":"$0.00"}},{"$f":"'LTC Rev-Exp Region 4'!M$41","v":{"v":0,"d":"$0.00"}},{"$f":"'LTC Rev-Exp Region 4'!N$41","v":{"v":0,"d":"$0.00"}},{"$f":"'LTC Rev-Exp Region 4'!O$41","v":{"v":0,"d":"$0.00"}},{"v":0,"d":"$0.00"}]
["LTC",null,null,{"$f":"Jurat!I$1","v":0},{"$f":"Jurat!D$33","v":"00:00:00"},"Q3","2017-09-30","Region 4","Operating Expense","Medical Expense","Expanded Benefits","3.4","Expanded Benefits Settlements",{"$f":"'LTC Rev-Exp Region 4'!L$42","v":{"v":0,"d":"$0.00"}},{"$f":"'LTC Rev-Exp Region 4'!M$42","v":{"v":0,"d":"$0.00"}},{"$f":"'LTC Rev-Exp Region 4'!N$42","v":{"v":0,"d":"$0.00"}},{"$f":"'LTC Rev-Exp Region 4'!O$42","v":{"v":0,"d":"$0.00"}},{"v":0,"d":"$0.00"}]
["LTC",null,null,{"$f":"Jurat!I$1","v":0},{"$f":"Jurat!D$33","v":"00:00:00"},"Q3","2017-09-30","Region 4","Operating Expense","Medical Expense","Other Medical","4.5","TPL & Fraud/Abuse Recoveries",{"$f":"'LTC Rev-Exp Region 4'!L$48","v":{"v":0,"d":"$0.00"}},{"$f":"'LTC Rev-Exp Region 4'!M$48","v":{"v":0,"d":"$0.00"}},{"$f":"'LTC Rev-Exp Region 4'!N$48","v":{"v":0,"d":"$0.00"}},{"$f":"'LTC Rev-Exp Region 4'!O$48","v":{"v":0,"d":"$0.00"}},{"v":0,"d":"$0.00"}]
["LTC",null,null,{"$f":"Jurat!I$1","v":0},{"$f":"Jurat!D$33","v":"00:00:00"},"Q3","2017-09-30","Region 4","Operating Expense","Medical Expense","Other Medical","4.6.1","Premium Deficiency Reserve",{"$f":"'LTC Rev-Exp Region 4'!L$49","v":{"v":0,"d":"$0.00"}},{"$f":"'LTC Rev-Exp Region 4'!M$49","v":{"v":0,"d":"$0.00"}},{"$f":"'LTC Rev-Exp Region 4'!N$49","v":{"v":0,"d":"$0.00"}},{"$f":"'LTC Rev-Exp Region 4'!O$49","v":{"v":0,"d":"$0.00"}},{"v":0,"d":"$0.00"}]
["LTC",null,null,{"$f":"Jurat!I$1","v":0},{"$f":"Jurat!D$33","v":"00:00:00"},"Q3","2017-09-30","Region 4","Operating Expense","Medical Expense","Other Medical","4.8","Reinsurance Premiums",{"$f":"'LTC Rev-Exp Region 4'!L$51","v":{"v":0,"d":"$0.00"}},{"$f":"'LTC Rev-Exp Region 4'!M$51","v":{"v":0,"d":"$0.00"}},{"$f":"'LTC Rev-Exp Region 4'!N$51","v":{"v":0,"d":"$0.00"}},{"$f":"'LTC Rev-Exp Region 4'!O$51","v":{"v":0,"d":"$0.00"}},{"v":0,"d":"$0.00"}]
["LTC",null,null,{"$f":"Jurat!I$1","v":0},{"$f":"Jurat!D$33","v":"00:00:00"},"Q3","2017-09-30","Region 4","Operating Expense","Medical Expense","Other Medical","4.9","Reinsurance Recoveries",{"$f":"'LTC Rev-Exp Region 4'!L$52","v":{"v":0,"d":"$0.00"}},{"$f":"'LTC Rev-Exp Region 4'!M$52","v":{"v":0,"d":"$0.00"}},{"$f":"'LTC Rev-Exp Region 4'!N$52","v":{"v":0,"d":"$0.00"}},{"$f":"'LTC Rev-Exp Region 4'!O$52","v":{"v":0,"d":"$0.00"}},{"v":0,"d":"$0.00"}]
["LTC",null,null,{"$f":"Jurat!I$1","v":0},{"$f":"Jurat!D$33","v":"00:00:00"},"Q3","2017-09-30","Region 4","Operating Expense","Administrative Expense","Administrative","5.1","Salaries & Benefits",{"$f":"'LTC Rev-Exp Region 4'!L$57","v":{"v":0,"d":"$0.00"}},{"$f":"'LTC Rev-Exp Region 4'!M$57","v":{"v":0,"d":"$0.00"}},{"$f":"'LTC Rev-Exp Region 4'!N$57","v":{"v":0,"d":"$0.00"}},{"$f":"'LTC Rev-Exp Region 4'!O$57","v":{"v":0,"d":"$0.00"}},{"v":0,"d":"$0.00"}]
["LTC",null,null,{"$f":"Jurat!I$1","v":0},{"$f":"Jurat!D$33","v":"00:00:00"},"Q3","2017-09-30","Region 4","Operating Expense","Administrative Expense","Administrative","5.2","Administrative Services",{"$f":"'LTC Rev-Exp Region 4'!L$58","v":{"v":0,"d":"$0.00"}},{"$f":"'LTC Rev-Exp Region 4'!M$58","v":{"v":0,"d":"$0.00"}},{"$f":"'LTC Rev-Exp Region 4'!N$58","v":{"v":0,"d":"$0.00"}},{"$f":"'LTC Rev-Exp Region 4'!O$58","v":{"v":0,"d":"$0.00"}},{"v":0,"d":"$0.00"}]
["LTC",null,null,{"$f":"Jurat!I$1","v":0},{"$f":"Jurat!D$33","v":"00:00:00"},"Q3","2017-09-30","Region 4","Operating Expense","Administrative Expense","Administrative","5.3","Information Systems",{"$f":"'LTC Rev-Exp Region 4'!L$59","v":{"v":0,"d":"$0.00"}},{"$f":"'LTC Rev-Exp Region 4'!M$59","v":{"v":0,"d":"$0.00"}},{"$f":"'LTC Rev-Exp Region 4'!N$59","v":{"v":0,"d":"$0.00"}},{"$f":"'LTC Rev-Exp Region 4'!O$59","v":{"v":0,"d":"$0.00"}},{"v":0,"d":"$0.00"}]
["LTC",null,null,{"$f":"Jurat!I$1","v":0},{"$f":"Jurat!D$33","v":"00:00:00"},"Q3","2017-09-30","Region 4","Operating Expense","Administrative Expense","Administrative","5.4","Marketing Expenses",{"$f":"'LTC Rev-Exp Region 4'!L$60","v":{"v":0,"d":"$0.00"}},{"$f":"'LTC Rev-Exp Region 4'!M$60","v":{"v":0,"d":"$0.00"}},{"$f":"'LTC Rev-Exp Region 4'!N$60","v":{"v":0,"d":"$0.00"}},{"$f":"'LTC Rev-Exp Region 4'!O$60","v":{"v":0,"d":"$0.00"}},{"v":0,"d":"$0.00"}]
["LTC",null,null,{"$f":"Jurat!I$1","v":0},{"$f":"Jurat!D$33","v":"00:00:00"},"Q3","2017-09-30","Region 4","Operating Expense","Administrative Expense","Administrative","5.5","General  Administration",{"$f":"'LTC Rev-Exp Region 4'!L$61","v":{"v":0,"d":"$0.00"}},{"$f":"'LTC Rev-Exp Region 4'!M$61","v":{"v":0,"d":"$0.00"}},{"$f":"'LTC Rev-Exp Region 4'!N$61","v":{"v":0,"d":"$0.00"}},{"$f":"'LTC Rev-Exp Region 4'!O$61","v":{"v":0,"d":"$0.00"}},{"v":0,"d":"$0.00"}]
["LTC",null,null,{"$f":"Jurat!I$1","v":0},{"$f":"Jurat!D$33","v":"00:00:00"},"Q3","2017-09-30","Region 4","Operating Expense","Administrative Expense","Administrative","5.6","Compliance/Regulatory",{"$f":"'LTC Rev-Exp Region 4'!L$62","v":{"v":0,"d":"$0.00"}},{"$f":"'LTC Rev-Exp Region 4'!M$62","v":{"v":0,"d":"$0.00"}},{"$f":"'LTC Rev-Exp Region 4'!N$62","v":{"v":0,"d":"$0.00"}},{"$f":"'LTC Rev-Exp Region 4'!O$62","v":{"v":0,"d":"$0.00"}},{"v":0,"d":"$0.00"}]
["LTC",null,null,{"$f":"Jurat!I$1","v":0},{"$f":"Jurat!D$33","v":"00:00:00"},"Q3","2017-09-30","Region 4","Operating Expense","Taxes & Fees","Taxes & Fees","6.1","State Premium Tax",{"$f":"'LTC Rev-Exp Region 4'!L$64","v":{"v":0,"d":"$0.00"}},{"v":0,"d":"$0.00"},{"v":0,"d":"$0.00"},{"v":0,"d":"$0.00"},{"v":0,"d":"$0.00"}]
["LTC",null,null,{"$f":"Jurat!I$1","v":0},{"$f":"Jurat!D$33","v":"00:00:00"},"Q3","2017-09-30","Region 4","Operating Expense","Taxes & Fees","Taxes & Fees","6.2","Department of Insurance Assessments",{"$f":"'LTC Rev-Exp Region 4'!L$65","v":{"v":0,"d":"$0.00"}},{"v":0,"d":"$0.00"},{"v":0,"d":"$0.00"},{"v":0,"d":"$0.00"},{"v":0,"d":"$0.00"}]
["LTC",null,null,{"$f":"Jurat!I$1","v":0},{"$f":"Jurat!D$33","v":"00:00:00"},"Q3","2017-09-30","Region 4","Non-Operating Expense","Income Tax Expense","Income Tax Expense","9.0","Income Tax Expense",{"$f":"'LTC Rev-Exp Region 4'!L$72","v":{"v":0,"d":"$0.00"}},{"v":0,"d":"$0.00"},{"v":0,"d":"$0.00"},{"v":0,"d":"$0.00"},{"v":0,"d":"$0.00"}]
["LTC",null,null,{"$f":"Jurat!I$1","v":0},{"$f":"Jurat!D$33","v":"00:00:00"},"Q4","2017-12-31","Region 4","Member Months","Member Months","Member Months",null,"Member Months",{"$f":"'LTC Rev-Exp Region 4'!P$9","v":{"v":0,"d":"$0.00"}},{"$f":"'LTC Rev-Exp Region 4'!Q$9","v":{"v":0,"d":"$0.00"}},{"$f":"'LTC Rev-Exp Region 4'!R$9","v":{"v":0,"d":"$0.00"}},{"$f":"'LTC Rev-Exp Region 4'!S$9","v":{"v":0,"d":"$0.00"}},{"v":0,"d":"$0.00"}]
["LTC",null,null,{"$f":"Jurat!I$1","v":0},{"$f":"Jurat!D$33","v":"00:00:00"},"Q4","2017-12-31","Region 4","Operating Revenue","Capitation","Capitation",1.1,"Capitation",{"$f":"'LTC Rev-Exp Region 4'!P$11","v":{"v":0,"d":"$0.00"}},{"$f":"'LTC Rev-Exp Region 4'!Q$11","v":{"v":0,"d":"$0.00"}},{"$f":"'LTC Rev-Exp Region 4'!R$11","v":{"v":0,"d":"$0.00"}},{"$f":"'LTC Rev-Exp Region 4'!S$11","v":{"v":0,"d":"$0.00"}},{"v":0,"d":"$0.00"}]
["LTC",null,null,{"$f":"Jurat!I$1","v":0},{"$f":"Jurat!D$33","v":"00:00:00"},"Q4","2017-12-31","Region 4","Operating Revenue","Capitation","NH Rate Reconciliation",1.2,"NH Rate Reconciliation",{"$f":"'LTC Rev-Exp Region 4'!P$12","v":{"v":0,"d":"$0.00"}},{"$f":"'LTC Rev-Exp Region 4'!Q$12","v":{"v":0,"d":"$0.00"}},{"$f":"'LTC Rev-Exp Region 4'!R$12","v":{"v":0,"d":"$0.00"}},{"$f":"'LTC Rev-Exp Region 4'!S$12","v":{"v":0,"d":"$0.00"}},{"v":0,"d":"$0.00"}]
["LTC",null,null,{"$f":"Jurat!I$1","v":0},{"$f":"Jurat!D$33","v":"00:00:00"},"Q4","2017-12-31","Region 4","Operating Revenue","Other Revenue","Other Revenue",1.3,"Other Revenue",{"$f":"'LTC Rev-Exp Region 4'!P$13","v":{"v":0,"d":"$0.00"}},{"$f":"'LTC Rev-Exp Region 4'!Q$13","v":{"v":0,"d":"$0.00"}},{"$f":"'LTC Rev-Exp Region 4'!R$13","v":{"v":0,"d":"$0.00"}},{"$f":"'LTC Rev-Exp Region 4'!S$13","v":{"v":0,"d":"$0.00"}},{"v":0,"d":"$0.00"}]
["LTC",null,null,{"$f":"Jurat!I$1","v":0},{"$f":"Jurat!D$33","v":"00:00:00"},"Q4","2017-12-31","Region 4","Operating Expense","Medical Expense","NF & Hospice","2.1","Nursing Facility Days (Medicaid)",{"$f":"'LTC Rev-Exp Region 4'!P$17","v":{"v":0,"d":"$0.00"}},{"$f":"'LTC Rev-Exp Region 4'!Q$17","v":{"v":0,"d":"$0.00"}},{"$f":"'LTC Rev-Exp Region 4'!R$17","v":{"v":0,"d":"$0.00"}},{"$f":"'LTC Rev-Exp Region 4'!S$17","v":{"v":0,"d":"$0.00"}},{"v":0,"d":"$0.00"}]
["LTC",null,null,{"$f":"Jurat!I$1","v":0},{"$f":"Jurat!D$33","v":"00:00:00"},"Q4","2017-12-31","Region 4","Operating Expense","Medical Expense","NF & Hospice","2.2","Nursing Facility Days (Crossover)",{"$f":"'LTC Rev-Exp Region 4'!P$18","v":{"v":0,"d":"$0.00"}},{"$f":"'LTC Rev-Exp Region 4'!Q$18","v":{"v":0,"d":"$0.00"}},{"$f":"'LTC Rev-Exp Region 4'!R$18","v":{"v":0,"d":"$0.00"}},{"$f":"'LTC Rev-Exp Region 4'!S$18","v":{"v":0,"d":"$0.00"}},{"v":0,"d":"$0.00"}]
["LTC",null,null,{"$f":"Jurat!I$1","v":0},{"$f":"Jurat!D$33","v":"00:00:00"},"Q4","2017-12-31","Region 4","Operating Expense","Medical Expense","NF & Hospice","2.3","Nursing Facility FFS (Medicaid)",{"$f":"'LTC Rev-Exp Region 4'!P$19","v":{"v":0,"d":"$0.00"}},{"$f":"'LTC Rev-Exp Region 4'!Q$19","v":{"v":0,"d":"$0.00"}},{"$f":"'LTC Rev-Exp Region 4'!R$19","v":{"v":0,"d":"$0.00"}},{"$f":"'LTC Rev-Exp Region 4'!S$19","v":{"v":0,"d":"$0.00"}},{"v":0,"d":"$0.00"}]
["LTC",null,null,{"$f":"Jurat!I$1","v":0},{"$f":"Jurat!D$33","v":"00:00:00"},"Q4","2017-12-31","Region 4","Operating Expense","Medical Expense","NF & Hospice","2.4","Nursing Facility FFS (Crossover)",{"$f":"'LTC Rev-Exp Region 4'!P$20","v":{"v":0,"d":"$0.00"}},{"$f":"'LTC Rev-Exp Region 4'!Q$20","v":{"v":0,"d":"$0.00"}},{"$f":"'LTC Rev-Exp Region 4'!R$20","v":{"v":0,"d":"$0.00"}},{"$f":"'LTC Rev-Exp Region 4'!S$20","v":{"v":0,"d":"$0.00"}},{"v":0,"d":"$0.00"}]
["LTC",null,null,{"$f":"Jurat!I$1","v":0},{"$f":"Jurat!D$33","v":"00:00:00"},"Q4","2017-12-31","Region 4","Operating Expense","Medical Expense","NF & Hospice","2.5","Hospice Days",{"$f":"'LTC Rev-Exp Region 4'!P$21","v":{"v":0,"d":"$0.00"}},{"$f":"'LTC Rev-Exp Region 4'!Q$21","v":{"v":0,"d":"$0.00"}},{"$f":"'LTC Rev-Exp Region 4'!R$21","v":{"v":0,"d":"$0.00"}},{"$f":"'LTC Rev-Exp Region 4'!S$21","v":{"v":0,"d":"$0.00"}},{"v":0,"d":"$0.00"}]
["LTC",null,null,{"$f":"Jurat!I$1","v":0},{"$f":"Jurat!D$33","v":"00:00:00"},"Q4","2017-12-31","Region 4","Operating Expense","Medical Expense","NF & Hospice","2.6","Hospice FFS",{"$f":"'LTC Rev-Exp Region 4'!P$22","v":{"v":0,"d":"$0.00"}},{"$f":"'LTC Rev-Exp Region 4'!Q$22","v":{"v":0,"d":"$0.00"}},{"$f":"'LTC Rev-Exp Region 4'!R$22","v":{"v":0,"d":"$0.00"}},{"$f":"'LTC Rev-Exp Region 4'!S$22","v":{"v":0,"d":"$0.00"}},{"v":0,"d":"$0.00"}]
["LTC",null,null,{"$f":"Jurat!I$1","v":0},{"$f":"Jurat!D$33","v":"00:00:00"},"Q4","2017-12-31","Region 4","Operating Expense","Medical Expense","NF & Hospice","2.7","Ending IBNP for NF & Hospice",{"$f":"'LTC Rev-Exp Region 4'!P$23","v":{"v":0,"d":"$0.00"}},{"$f":"'LTC Rev-Exp Region 4'!Q$23","v":{"v":0,"d":"$0.00"}},{"$f":"'LTC Rev-Exp Region 4'!R$23","v":{"v":0,"d":"$0.00"}},{"$f":"'LTC Rev-Exp Region 4'!S$23","v":{"v":0,"d":"$0.00"}},{"v":0,"d":"$0.00"}]
["LTC",null,null,{"$f":"Jurat!I$1","v":0},{"$f":"Jurat!D$33","v":"00:00:00"},"Q4","2017-12-31","Region 4","Operating Expense","Medical Expense","NF & Hospice","2.8","NF & Hospice Subcapitated",{"$f":"'LTC Rev-Exp Region 4'!P$24","v":{"v":0,"d":"$0.00"}},{"$f":"'LTC Rev-Exp Region 4'!Q$24","v":{"v":0,"d":"$0.00"}},{"$f":"'LTC Rev-Exp Region 4'!R$24","v":{"v":0,"d":"$0.00"}},{"$f":"'LTC Rev-Exp Region 4'!S$24","v":{"v":0,"d":"$0.00"}},{"v":0,"d":"$0.00"}]
["LTC",null,null,{"$f":"Jurat!I$1","v":0},{"$f":"Jurat!D$33","v":"00:00:00"},"Q4","2017-12-31","Region 4","Operating Expense","Medical Expense","NF & Hospice","2.9","NF & Hospice Settlements",{"$f":"'LTC Rev-Exp Region 4'!P$25","v":{"v":0,"d":"$0.00"}},{"$f":"'LTC Rev-Exp Region 4'!Q$25","v":{"v":0,"d":"$0.00"}},{"$f":"'LTC Rev-Exp Region 4'!R$25","v":{"v":0,"d":"$0.00"}},{"$f":"'LTC Rev-Exp Region 4'!S$25","v":{"v":0,"d":"$0.00"}},{"v":0,"d":"$0.00"}]
["LTC",null,null,{"$f":"Jurat!I$1","v":0},{"$f":"Jurat!D$33","v":"00:00:00"},"Q4","2017-12-31","Region 4","Operating Expense","Medical Expense","LTC Services","2.11","Assisted Living FFS",{"$f":"'LTC Rev-Exp Region 4'!P$27","v":{"v":0,"d":"$0.00"}},{"$f":"'LTC Rev-Exp Region 4'!Q$27","v":{"v":0,"d":"$0.00"}},{"$f":"'LTC Rev-Exp Region 4'!R$27","v":{"v":0,"d":"$0.00"}},{"$f":"'LTC Rev-Exp Region 4'!S$27","v":{"v":0,"d":"$0.00"}},{"v":0,"d":"$0.00"}]
["LTC",null,null,{"$f":"Jurat!I$1","v":0},{"$f":"Jurat!D$33","v":"00:00:00"},"Q4","2017-12-31","Region 4","Operating Expense","Medical Expense","LTC Services","2.12","Home Health FFS",{"$f":"'LTC Rev-Exp Region 4'!P$28","v":{"v":0,"d":"$0.00"}},{"$f":"'LTC Rev-Exp Region 4'!Q$28","v":{"v":0,"d":"$0.00"}},{"$f":"'LTC Rev-Exp Region 4'!R$28","v":{"v":0,"d":"$0.00"}},{"$f":"'LTC Rev-Exp Region 4'!S$28","v":{"v":0,"d":"$0.00"}},{"v":0,"d":"$0.00"}]
["LTC",null,null,{"$f":"Jurat!I$1","v":0},{"$f":"Jurat!D$33","v":"00:00:00"},"Q4","2017-12-31","Region 4","Operating Expense","Medical Expense","LTC Services","2.13","Medical Equipment/Supplies FFS",{"$f":"'LTC Rev-Exp Region 4'!P$29","v":{"v":0,"d":"$0.00"}},{"$f":"'LTC Rev-Exp Region 4'!Q$29","v":{"v":0,"d":"$0.00"}},{"$f":"'LTC Rev-Exp Region 4'!R$29","v":{"v":0,"d":"$0.00"}},{"$f":"'LTC Rev-Exp Region 4'!S$29","v":{"v":0,"d":"$0.00"}},{"v":0,"d":"$0.00"}]
["LTC",null,null,{"$f":"Jurat!I$1","v":0},{"$f":"Jurat!D$33","v":"00:00:00"},"Q4","2017-12-31","Region 4","Operating Expense","Medical Expense","LTC Services","2.14","Therapy FFS",{"$f":"'LTC Rev-Exp Region 4'!P$30","v":{"v":0,"d":"$0.00"}},{"$f":"'LTC Rev-Exp Region 4'!Q$30","v":{"v":0,"d":"$0.00"}},{"$f":"'LTC Rev-Exp Region 4'!R$30","v":{"v":0,"d":"$0.00"}},{"$f":"'LTC Rev-Exp Region 4'!S$30","v":{"v":0,"d":"$0.00"}},{"v":0,"d":"$0.00"}]
["LTC",null,null,{"$f":"Jurat!I$1","v":0},{"$f":"Jurat!D$33","v":"00:00:00"},"Q4","2017-12-31","Region 4","Operating Expense","Medical Expense","LTC Services","2.15","Transportation FFS",{"$f":"'LTC Rev-Exp Region 4'!P$31","v":{"v":0,"d":"$0.00"}},{"$f":"'LTC Rev-Exp Region 4'!Q$31","v":{"v":0,"d":"$0.00"}},{"$f":"'LTC Rev-Exp Region 4'!R$31","v":{"v":0,"d":"$0.00"}},{"$f":"'LTC Rev-Exp Region 4'!S$31","v":{"v":0,"d":"$0.00"}},{"v":0,"d":"$0.00"}]
["LTC",null,null,{"$f":"Jurat!I$1","v":0},{"$f":"Jurat!D$33","v":"00:00:00"},"Q4","2017-12-31","Region 4","Operating Expense","Medical Expense","LTC Services","2.16","Case Management FFS (Plan Provided)",{"$f":"'LTC Rev-Exp Region 4'!P$32","v":{"v":0,"d":"$0.00"}},{"$f":"'LTC Rev-Exp Region 4'!Q$32","v":{"v":0,"d":"$0.00"}},{"$f":"'LTC Rev-Exp Region 4'!R$32","v":{"v":0,"d":"$0.00"}},{"$f":"'LTC Rev-Exp Region 4'!S$32","v":{"v":0,"d":"$0.00"}},{"v":0,"d":"$0.00"}]
["LTC",null,null,{"$f":"Jurat!I$1","v":0},{"$f":"Jurat!D$33","v":"00:00:00"},"Q4","2017-12-31","Region 4","Operating Expense","Medical Expense","LTC Services","2.17","Case Management FF (Non-Plan Provided)",{"$f":"'LTC Rev-Exp Region 4'!P$33","v":{"v":0,"d":"$0.00"}},{"$f":"'LTC Rev-Exp Region 4'!Q$33","v":{"v":0,"d":"$0.00"}},{"$f":"'LTC Rev-Exp Region 4'!R$33","v":{"v":0,"d":"$0.00"}},{"$f":"'LTC Rev-Exp Region 4'!S$33","v":{"v":0,"d":"$0.00"}},{"v":0,"d":"$0.00"}]
["LTC",null,null,{"$f":"Jurat!I$1","v":0},{"$f":"Jurat!D$33","v":"00:00:00"},"Q4","2017-12-31","Region 4","Operating Expense","Medical Expense","LTC Services","2.18","HCBS FFS",{"$f":"'LTC Rev-Exp Region 4'!P$34","v":{"v":0,"d":"$0.00"}},{"$f":"'LTC Rev-Exp Region 4'!Q$34","v":{"v":0,"d":"$0.00"}},{"$f":"'LTC Rev-Exp Region 4'!R$34","v":{"v":0,"d":"$0.00"}},{"$f":"'LTC Rev-Exp Region 4'!S$34","v":{"v":0,"d":"$0.00"}},{"v":0,"d":"$0.00"}]
["LTC",null,null,{"$f":"Jurat!I$1","v":0},{"$f":"Jurat!D$33","v":"00:00:00"},"Q4","2017-12-31","Region 4","Operating Expense","Medical Expense","LTC Services","2.19","Subcapitated LTC Services",{"$f":"'LTC Rev-Exp Region 4'!P$35","v":{"v":0,"d":"$0.00"}},{"$f":"'LTC Rev-Exp Region 4'!Q$35","v":{"v":0,"d":"$0.00"}},{"$f":"'LTC Rev-Exp Region 4'!R$35","v":{"v":0,"d":"$0.00"}},{"$f":"'LTC Rev-Exp Region 4'!S$35","v":{"v":0,"d":"$0.00"}},{"v":0,"d":"$0.00"}]
["LTC",null,null,{"$f":"Jurat!I$1","v":0},{"$f":"Jurat!D$33","v":"00:00:00"},"Q4","2017-12-31","Region 4","Operating Expense","Medical Expense","LTC Services","2.20","Ending IBNP for Long Term Care Services",{"$f":"'LTC Rev-Exp Region 4'!P$36","v":{"v":0,"d":"$0.00"}},{"$f":"'LTC Rev-Exp Region 4'!Q$36","v":{"v":0,"d":"$0.00"}},{"$f":"'LTC Rev-Exp Region 4'!R$36","v":{"v":0,"d":"$0.00"}},{"$f":"'LTC Rev-Exp Region 4'!S$36","v":{"v":0,"d":"$0.00"}},{"v":0,"d":"$0.00"}]
["LTC",null,null,{"$f":"Jurat!I$1","v":0},{"$f":"Jurat!D$33","v":"00:00:00"},"Q4","2017-12-31","Region 4","Operating Expense","Medical Expense","LTC Services","2.21","LTC Services Settlements",{"$f":"'LTC Rev-Exp Region 4'!P$37","v":{"v":0,"d":"$0.00"}},{"$f":"'LTC Rev-Exp Region 4'!Q$37","v":{"v":0,"d":"$0.00"}},{"$f":"'LTC Rev-Exp Region 4'!R$37","v":{"v":0,"d":"$0.00"}},{"$f":"'LTC Rev-Exp Region 4'!S$37","v":{"v":0,"d":"$0.00"}},{"v":0,"d":"$0.00"}]
["LTC",null,null,{"$f":"Jurat!I$1","v":0},{"$f":"Jurat!D$33","v":"00:00:00"},"Q4","2017-12-31","Region 4","Operating Expense","Medical Expense","Expanded Benefits","3.1","Expanded Benefits FFS",{"$f":"'LTC Rev-Exp Region 4'!P$39","v":{"v":0,"d":"$0.00"}},{"$f":"'LTC Rev-Exp Region 4'!Q$39","v":{"v":0,"d":"$0.00"}},{"$f":"'LTC Rev-Exp Region 4'!R$39","v":{"v":0,"d":"$0.00"}},{"$f":"'LTC Rev-Exp Region 4'!S$39","v":{"v":0,"d":"$0.00"}},{"v":0,"d":"$0.00"}]
["LTC",null,null,{"$f":"Jurat!I$1","v":0},{"$f":"Jurat!D$33","v":"00:00:00"},"Q4","2017-12-31","Region 4","Operating Expense","Medical Expense","Expanded Benefits","3.2","Expanded Benefits Subcapitation",{"$f":"'LTC Rev-Exp Region 4'!P$40","v":{"v":0,"d":"$0.00"}},{"$f":"'LTC Rev-Exp Region 4'!Q$40","v":{"v":0,"d":"$0.00"}},{"$f":"'LTC Rev-Exp Region 4'!R$40","v":{"v":0,"d":"$0.00"}},{"$f":"'LTC Rev-Exp Region 4'!S$40","v":{"v":0,"d":"$0.00"}},{"v":0,"d":"$0.00"}]
["LTC",null,null,{"$f":"Jurat!I$1","v":0},{"$f":"Jurat!D$33","v":"00:00:00"},"Q4","2017-12-31","Region 4","Operating Expense","Medical Expense","Expanded Benefits","3.3","Ending IBNP for Expanded Benefits",{"$f":"'LTC Rev-Exp Region 4'!P$41","v":{"v":0,"d":"$0.00"}},{"$f":"'LTC Rev-Exp Region 4'!Q$41","v":{"v":0,"d":"$0.00"}},{"$f":"'LTC Rev-Exp Region 4'!R$41","v":{"v":0,"d":"$0.00"}},{"$f":"'LTC Rev-Exp Region 4'!S$41","v":{"v":0,"d":"$0.00"}},{"v":0,"d":"$0.00"}]
["LTC",null,null,{"$f":"Jurat!I$1","v":0},{"$f":"Jurat!D$33","v":"00:00:00"},"Q4","2017-12-31","Region 4","Operating Expense","Medical Expense","Expanded Benefits","3.4","Expanded Benefits Settlements",{"$f":"'LTC Rev-Exp Region 4'!P$42","v":{"v":0,"d":"$0.00"}},{"$f":"'LTC Rev-Exp Region 4'!Q$42","v":{"v":0,"d":"$0.00"}},{"$f":"'LTC Rev-Exp Region 4'!R$42","v":{"v":0,"d":"$0.00"}},{"$f":"'LTC Rev-Exp Region 4'!S$42","v":{"v":0,"d":"$0.00"}},{"v":0,"d":"$0.00"}]
["LTC",null,null,{"$f":"Jurat!I$1","v":0},{"$f":"Jurat!D$33","v":"00:00:00"},"Q4","2017-12-31","Region 4","Operating Expense","Medical Expense","Other Medical","4.5","TPL & Fraud/Abuse Recoveries",{"$f":"'LTC Rev-Exp Region 4'!P$48","v":{"v":0,"d":"$0.00"}},{"$f":"'LTC Rev-Exp Region 4'!Q$48","v":{"v":0,"d":"$0.00"}},{"$f":"'LTC Rev-Exp Region 4'!R$48","v":{"v":0,"d":"$0.00"}},{"$f":"'LTC Rev-Exp Region 4'!S$48","v":{"v":0,"d":"$0.00"}},{"v":0,"d":"$0.00"}]
["LTC",null,null,{"$f":"Jurat!I$1","v":0},{"$f":"Jurat!D$33","v":"00:00:00"},"Q4","2017-12-31","Region 4","Operating Expense","Medical Expense","Other Medical","4.6.1","Premium Deficiency Reserve",{"$f":"'LTC Rev-Exp Region 4'!P$49","v":{"v":0,"d":"$0.00"}},{"$f":"'LTC Rev-Exp Region 4'!Q$49","v":{"v":0,"d":"$0.00"}},{"$f":"'LTC Rev-Exp Region 4'!R$49","v":{"v":0,"d":"$0.00"}},{"$f":"'LTC Rev-Exp Region 4'!S$49","v":{"v":0,"d":"$0.00"}},{"v":0,"d":"$0.00"}]
["LTC",null,null,{"$f":"Jurat!I$1","v":0},{"$f":"Jurat!D$33","v":"00:00:00"},"Q4","2017-12-31","Region 4","Operating Expense","Medical Expense","Other Medical","4.8","Reinsurance Premiums",{"$f":"'LTC Rev-Exp Region 4'!P$51","v":{"v":0,"d":"$0.00"}},{"$f":"'LTC Rev-Exp Region 4'!Q$51","v":{"v":0,"d":"$0.00"}},{"$f":"'LTC Rev-Exp Region 4'!R$51","v":{"v":0,"d":"$0.00"}},{"$f":"'LTC Rev-Exp Region 4'!S$51","v":{"v":0,"d":"$0.00"}},{"v":0,"d":"$0.00"}]
["LTC",null,null,{"$f":"Jurat!I$1","v":0},{"$f":"Jurat!D$33","v":"00:00:00"},"Q4","2017-12-31","Region 4","Operating Expense","Medical Expense","Other Medical","4.9","Reinsurance Recoveries",{"$f":"'LTC Rev-Exp Region 4'!P$52","v":{"v":0,"d":"$0.00"}},{"$f":"'LTC Rev-Exp Region 4'!Q$52","v":{"v":0,"d":"$0.00"}},{"$f":"'LTC Rev-Exp Region 4'!R$52","v":{"v":0,"d":"$0.00"}},{"$f":"'LTC Rev-Exp Region 4'!S$52","v":{"v":0,"d":"$0.00"}},{"v":0,"d":"$0.00"}]
["LTC",null,null,{"$f":"Jurat!I$1","v":0},{"$f":"Jurat!D$33","v":"00:00:00"},"Q4","2017-12-31","Region 4","Operating Expense","Administrative Expense","Administrative","5.1","Salaries & Benefits",{"$f":"'LTC Rev-Exp Region 4'!P$57","v":{"v":0,"d":"$0.00"}},{"$f":"'LTC Rev-Exp Region 4'!Q$57","v":{"v":0,"d":"$0.00"}},{"$f":"'LTC Rev-Exp Region 4'!R$57","v":{"v":0,"d":"$0.00"}},{"$f":"'LTC Rev-Exp Region 4'!S$57","v":{"v":0,"d":"$0.00"}},{"v":0,"d":"$0.00"}]
["LTC",null,null,{"$f":"Jurat!I$1","v":0},{"$f":"Jurat!D$33","v":"00:00:00"},"Q4","2017-12-31","Region 4","Operating Expense","Administrative Expense","Administrative","5.2","Administrative Services",{"$f":"'LTC Rev-Exp Region 4'!P$58","v":{"v":0,"d":"$0.00"}},{"$f":"'LTC Rev-Exp Region 4'!Q$58","v":{"v":0,"d":"$0.00"}},{"$f":"'LTC Rev-Exp Region 4'!R$58","v":{"v":0,"d":"$0.00"}},{"$f":"'LTC Rev-Exp Region 4'!S$58","v":{"v":0,"d":"$0.00"}},{"v":0,"d":"$0.00"}]
["LTC",null,null,{"$f":"Jurat!I$1","v":0},{"$f":"Jurat!D$33","v":"00:00:00"},"Q4","2017-12-31","Region 4","Operating Expense","Administrative Expense","Administrative","5.3","Information Systems",{"$f":"'LTC Rev-Exp Region 4'!P$59","v":{"v":0,"d":"$0.00"}},{"$f":"'LTC Rev-Exp Region 4'!Q$59","v":{"v":0,"d":"$0.00"}},{"$f":"'LTC Rev-Exp Region 4'!R$59","v":{"v":0,"d":"$0.00"}},{"$f":"'LTC Rev-Exp Region 4'!S$59","v":{"v":0,"d":"$0.00"}},{"v":0,"d":"$0.00"}]
["LTC",null,null,{"$f":"Jurat!I$1","v":0},{"$f":"Jurat!D$33","v":"00:00:00"},"Q4","2017-12-31","Region 4","Operating Expense","Administrative Expense","Administrative","5.4","Marketing Expenses",{"$f":"'LTC Rev-Exp Region 4'!P$60","v":{"v":0,"d":"$0.00"}},{"$f":"'LTC Rev-Exp Region 4'!Q$60","v":{"v":0,"d":"$0.00"}},{"$f":"'LTC Rev-Exp Region 4'!R$60","v":{"v":0,"d":"$0.00"}},{"$f":"'LTC Rev-Exp Region 4'!S$60","v":{"v":0,"d":"$0.00"}},{"v":0,"d":"$0.00"}]
["LTC",null,null,{"$f":"Jurat!I$1","v":0},{"$f":"Jurat!D$33","v":"00:00:00"},"Q4","2017-12-31","Region 4","Operating Expense","Administrative Expense","Administrative","5.5","General  Administration",{"$f":"'LTC Rev-Exp Region 4'!P$61","v":{"v":0,"d":"$0.00"}},{"$f":"'LTC Rev-Exp Region 4'!Q$61","v":{"v":0,"d":"$0.00"}},{"$f":"'LTC Rev-Exp Region 4'!R$61","v":{"v":0,"d":"$0.00"}},{"$f":"'LTC Rev-Exp Region 4'!S$61","v":{"v":0,"d":"$0.00"}},{"v":0,"d":"$0.00"}]
["LTC",null,null,{"$f":"Jurat!I$1","v":0},{"$f":"Jurat!D$33","v":"00:00:00"},"Q4","2017-12-31","Region 4","Operating Expense","Administrative Expense","Administrative","5.6","Compliance/Regulatory",{"$f":"'LTC Rev-Exp Region 4'!P$62","v":{"v":0,"d":"$0.00"}},{"$f":"'LTC Rev-Exp Region 4'!Q$62","v":{"v":0,"d":"$0.00"}},{"$f":"'LTC Rev-Exp Region 4'!R$62","v":{"v":0,"d":"$0.00"}},{"$f":"'LTC Rev-Exp Region 4'!S$62","v":{"v":0,"d":"$0.00"}},{"v":0,"d":"$0.00"}]
["LTC",null,null,{"$f":"Jurat!I$1","v":0},{"$f":"Jurat!D$33","v":"00:00:00"},"Q4","2017-12-31","Region 4","Operating Expense","Taxes & Fees","Taxes & Fees","6.1","State Premium Tax",{"$f":"'LTC Rev-Exp Region 4'!P$64","v":{"v":0,"d":"$0.00"}},{"v":0,"d":"$0.00"},{"v":0,"d":"$0.00"},{"v":0,"d":"$0.00"},{"v":0,"d":"$0.00"}]
["LTC",null,null,{"$f":"Jurat!I$1","v":0},{"$f":"Jurat!D$33","v":"00:00:00"},"Q4","2017-12-31","Region 4","Operating Expense","Taxes & Fees","Taxes & Fees","6.2","Department of Insurance Assessments",{"$f":"'LTC Rev-Exp Region 4'!P$65","v":{"v":0,"d":"$0.00"}},{"v":0,"d":"$0.00"},{"v":0,"d":"$0.00"},{"v":0,"d":"$0.00"},{"v":0,"d":"$0.00"}]
["LTC",null,null,{"$f":"Jurat!I$1","v":0},{"$f":"Jurat!D$33","v":"00:00:00"},"Q4","2017-12-31","Region 4","Non-Operating Expense","Income Tax Expense","Income Tax Expense","9.0","Income Tax Expense",{"$f":"'LTC Rev-Exp Region 4'!P$72","v":{"v":0,"d":"$0.00"}},{"v":0,"d":"$0.00"},{"v":0,"d":"$0.00"},{"v":0,"d":"$0.00"},{"v":0,"d":"$0.00"}]
["LTC",null,null,{"$f":"Jurat!I$1","v":0},{"$f":"Jurat!D$33","v":"00:00:00"},"Q1","2017-03-31","Region 5","Member Months","Member Months","Member Months",null,"Member Months",{"$f":"'LTC Rev-Exp Region 5'!D$9","v":{"v":0,"d":"$0.00"}},{"$f":"'LTC Rev-Exp Region 5'!E$9","v":{"v":0,"d":"$0.00"}},{"$f":"'LTC Rev-Exp Region 5'!F$9","v":{"v":0,"d":"$0.00"}},{"$f":"'LTC Rev-Exp Region 5'!G$9","v":{"v":0,"d":"$0.00"}},{"v":0,"d":"$0.00"}]
["LTC",null,null,{"$f":"Jurat!I$1","v":0},{"$f":"Jurat!D$33","v":"00:00:00"},"Q1","2017-03-31","Region 5","Operating Revenue","Capitation","Capitation",1.1,"Capitation",{"$f":"'LTC Rev-Exp Region 5'!D$11","v":{"v":0,"d":"$0.00"}},{"$f":"'LTC Rev-Exp Region 5'!E$11","v":{"v":0,"d":"$0.00"}},{"$f":"'LTC Rev-Exp Region 5'!F$11","v":{"v":0,"d":"$0.00"}},{"$f":"'LTC Rev-Exp Region 5'!G$11","v":{"v":0,"d":"$0.00"}},{"v":0,"d":"$0.00"}]
["LTC",null,null,{"$f":"Jurat!I$1","v":0},{"$f":"Jurat!D$33","v":"00:00:00"},"Q1","2017-03-31","Region 5","Operating Revenue","Capitation","NH Rate Reconciliation",1.2,"NH Rate Reconciliation",{"$f":"'LTC Rev-Exp Region 5'!D$12","v":{"v":0,"d":"$0.00"}},{"$f":"'LTC Rev-Exp Region 5'!E$12","v":{"v":0,"d":"$0.00"}},{"$f":"'LTC Rev-Exp Region 5'!F$12","v":{"v":0,"d":"$0.00"}},{"$f":"'LTC Rev-Exp Region 5'!G$12","v":{"v":0,"d":"$0.00"}},{"v":0,"d":"$0.00"}]
["LTC",null,null,{"$f":"Jurat!I$1","v":0},{"$f":"Jurat!D$33","v":"00:00:00"},"Q1","2017-03-31","Region 5","Operating Revenue","Other Revenue","Other Revenue",1.3,"Other Revenue",{"$f":"'LTC Rev-Exp Region 5'!D$13","v":{"v":0,"d":"$0.00"}},{"$f":"'LTC Rev-Exp Region 5'!E$13","v":{"v":0,"d":"$0.00"}},{"$f":"'LTC Rev-Exp Region 5'!F$13","v":{"v":0,"d":"$0.00"}},{"$f":"'LTC Rev-Exp Region 5'!G$13","v":{"v":0,"d":"$0.00"}},{"v":0,"d":"$0.00"}]
["LTC",null,null,{"$f":"Jurat!I$1","v":0},{"$f":"Jurat!D$33","v":"00:00:00"},"Q1","2017-03-31","Region 5","Operating Expense","Medical Expense","NF & Hospice","2.1","Nursing Facility Days (Medicaid)",{"$f":"'LTC Rev-Exp Region 5'!D$17","v":{"v":0,"d":"$0.00"}},{"$f":"'LTC Rev-Exp Region 5'!E$17","v":{"v":0,"d":"$0.00"}},{"$f":"'LTC Rev-Exp Region 5'!F$17","v":{"v":0,"d":"$0.00"}},{"$f":"'LTC Rev-Exp Region 5'!G$17","v":{"v":0,"d":"$0.00"}},{"v":0,"d":"$0.00"}]
["LTC",null,null,{"$f":"Jurat!I$1","v":0},{"$f":"Jurat!D$33","v":"00:00:00"},"Q1","2017-03-31","Region 5","Operating Expense","Medical Expense","NF & Hospice","2.2","Nursing Facility Days (Crossover)",{"$f":"'LTC Rev-Exp Region 5'!D$18","v":{"v":0,"d":"$0.00"}},{"$f":"'LTC Rev-Exp Region 5'!E$18","v":{"v":0,"d":"$0.00"}},{"$f":"'LTC Rev-Exp Region 5'!F$18","v":{"v":0,"d":"$0.00"}},{"$f":"'LTC Rev-Exp Region 5'!G$18","v":{"v":0,"d":"$0.00"}},{"v":0,"d":"$0.00"}]
["LTC",null,null,{"$f":"Jurat!I$1","v":0},{"$f":"Jurat!D$33","v":"00:00:00"},"Q1","2017-03-31","Region 5","Operating Expense","Medical Expense","NF & Hospice","2.3","Nursing Facility FFS (Medicaid)",{"$f":"'LTC Rev-Exp Region 5'!D$19","v":{"v":0,"d":"$0.00"}},{"$f":"'LTC Rev-Exp Region 5'!E$19","v":{"v":0,"d":"$0.00"}},{"$f":"'LTC Rev-Exp Region 5'!F$19","v":{"v":0,"d":"$0.00"}},{"$f":"'LTC Rev-Exp Region 5'!G$19","v":{"v":0,"d":"$0.00"}},{"v":0,"d":"$0.00"}]
["LTC",null,null,{"$f":"Jurat!I$1","v":0},{"$f":"Jurat!D$33","v":"00:00:00"},"Q1","2017-03-31","Region 5","Operating Expense","Medical Expense","NF & Hospice","2.4","Nursing Facility FFS (Crossover)",{"$f":"'LTC Rev-Exp Region 5'!D$20","v":{"v":0,"d":"$0.00"}},{"$f":"'LTC Rev-Exp Region 5'!E$20","v":{"v":0,"d":"$0.00"}},{"$f":"'LTC Rev-Exp Region 5'!F$20","v":{"v":0,"d":"$0.00"}},{"$f":"'LTC Rev-Exp Region 5'!G$20","v":{"v":0,"d":"$0.00"}},{"v":0,"d":"$0.00"}]
["LTC",null,null,{"$f":"Jurat!I$1","v":0},{"$f":"Jurat!D$33","v":"00:00:00"},"Q1","2017-03-31","Region 5","Operating Expense","Medical Expense","NF & Hospice","2.5","Hospice Days",{"$f":"'LTC Rev-Exp Region 5'!D$21","v":{"v":0,"d":"$0.00"}},{"$f":"'LTC Rev-Exp Region 5'!E$21","v":{"v":0,"d":"$0.00"}},{"$f":"'LTC Rev-Exp Region 5'!F$21","v":{"v":0,"d":"$0.00"}},{"$f":"'LTC Rev-Exp Region 5'!G$21","v":{"v":0,"d":"$0.00"}},{"v":0,"d":"$0.00"}]
["LTC",null,null,{"$f":"Jurat!I$1","v":0},{"$f":"Jurat!D$33","v":"00:00:00"},"Q1","2017-03-31","Region 5","Operating Expense","Medical Expense","NF & Hospice","2.6","Hospice FFS",{"$f":"'LTC Rev-Exp Region 5'!D$22","v":{"v":0,"d":"$0.00"}},{"$f":"'LTC Rev-Exp Region 5'!E$22","v":{"v":0,"d":"$0.00"}},{"$f":"'LTC Rev-Exp Region 5'!F$22","v":{"v":0,"d":"$0.00"}},{"$f":"'LTC Rev-Exp Region 5'!G$22","v":{"v":0,"d":"$0.00"}},{"v":0,"d":"$0.00"}]
["LTC",null,null,{"$f":"Jurat!I$1","v":0},{"$f":"Jurat!D$33","v":"00:00:00"},"Q1","2017-03-31","Region 5","Operating Expense","Medical Expense","NF & Hospice","2.7","Ending IBNP for NF & Hospice",{"$f":"'LTC Rev-Exp Region 5'!D$23","v":{"v":0,"d":"$0.00"}},{"$f":"'LTC Rev-Exp Region 5'!E$23","v":{"v":0,"d":"$0.00"}},{"$f":"'LTC Rev-Exp Region 5'!F$23","v":{"v":0,"d":"$0.00"}},{"$f":"'LTC Rev-Exp Region 5'!G$23","v":{"v":0,"d":"$0.00"}},{"v":0,"d":"$0.00"}]
["LTC",null,null,{"$f":"Jurat!I$1","v":0},{"$f":"Jurat!D$33","v":"00:00:00"},"Q1","2017-03-31","Region 5","Operating Expense","Medical Expense","NF & Hospice","2.8","NF & Hospice Subcapitated",{"$f":"'LTC Rev-Exp Region 5'!D$24","v":{"v":0,"d":"$0.00"}},{"$f":"'LTC Rev-Exp Region 5'!E$24","v":{"v":0,"d":"$0.00"}},{"$f":"'LTC Rev-Exp Region 5'!F$24","v":{"v":0,"d":"$0.00"}},{"$f":"'LTC Rev-Exp Region 5'!G$24","v":{"v":0,"d":"$0.00"}},{"v":0,"d":"$0.00"}]
["LTC",null,null,{"$f":"Jurat!I$1","v":0},{"$f":"Jurat!D$33","v":"00:00:00"},"Q1","2017-03-31","Region 5","Operating Expense","Medical Expense","NF & Hospice","2.9","NF & Hospice Settlements",{"$f":"'LTC Rev-Exp Region 5'!D$25","v":{"v":0,"d":"$0.00"}},{"$f":"'LTC Rev-Exp Region 5'!E$25","v":{"v":0,"d":"$0.00"}},{"$f":"'LTC Rev-Exp Region 5'!F$25","v":{"v":0,"d":"$0.00"}},{"$f":"'LTC Rev-Exp Region 5'!G$25","v":{"v":0,"d":"$0.00"}},{"v":0,"d":"$0.00"}]
["LTC",null,null,{"$f":"Jurat!I$1","v":0},{"$f":"Jurat!D$33","v":"00:00:00"},"Q1","2017-03-31","Region 5","Operating Expense","Medical Expense","LTC Services","2.11","Assisted Living FFS",{"$f":"'LTC Rev-Exp Region 5'!D$27","v":{"v":0,"d":"$0.00"}},{"$f":"'LTC Rev-Exp Region 5'!E$27","v":{"v":0,"d":"$0.00"}},{"$f":"'LTC Rev-Exp Region 5'!F$27","v":{"v":0,"d":"$0.00"}},{"$f":"'LTC Rev-Exp Region 5'!G$27","v":{"v":0,"d":"$0.00"}},{"v":0,"d":"$0.00"}]
["LTC",null,null,{"$f":"Jurat!I$1","v":0},{"$f":"Jurat!D$33","v":"00:00:00"},"Q1","2017-03-31","Region 5","Operating Expense","Medical Expense","LTC Services","2.12","Home Health FFS",{"$f":"'LTC Rev-Exp Region 5'!D$28","v":{"v":0,"d":"$0.00"}},{"$f":"'LTC Rev-Exp Region 5'!E$28","v":{"v":0,"d":"$0.00"}},{"$f":"'LTC Rev-Exp Region 5'!F$28","v":{"v":0,"d":"$0.00"}},{"$f":"'LTC Rev-Exp Region 5'!G$28","v":{"v":0,"d":"$0.00"}},{"v":0,"d":"$0.00"}]
["LTC",null,null,{"$f":"Jurat!I$1","v":0},{"$f":"Jurat!D$33","v":"00:00:00"},"Q1","2017-03-31","Region 5","Operating Expense","Medical Expense","LTC Services","2.13","Medical Equipment/Supplies FFS",{"$f":"'LTC Rev-Exp Region 5'!D$29","v":{"v":0,"d":"$0.00"}},{"$f":"'LTC Rev-Exp Region 5'!E$29","v":{"v":0,"d":"$0.00"}},{"$f":"'LTC Rev-Exp Region 5'!F$29","v":{"v":0,"d":"$0.00"}},{"$f":"'LTC Rev-Exp Region 5'!G$29","v":{"v":0,"d":"$0.00"}},{"v":0,"d":"$0.00"}]
["LTC",null,null,{"$f":"Jurat!I$1","v":0},{"$f":"Jurat!D$33","v":"00:00:00"},"Q1","2017-03-31","Region 5","Operating Expense","Medical Expense","LTC Services","2.14","Therapy FFS",{"$f":"'LTC Rev-Exp Region 5'!D$30","v":{"v":0,"d":"$0.00"}},{"$f":"'LTC Rev-Exp Region 5'!E$30","v":{"v":0,"d":"$0.00"}},{"$f":"'LTC Rev-Exp Region 5'!F$30","v":{"v":0,"d":"$0.00"}},{"$f":"'LTC Rev-Exp Region 5'!G$30","v":{"v":0,"d":"$0.00"}},{"v":0,"d":"$0.00"}]
["LTC",null,null,{"$f":"Jurat!I$1","v":0},{"$f":"Jurat!D$33","v":"00:00:00"},"Q1","2017-03-31","Region 5","Operating Expense","Medical Expense","LTC Services","2.15","Transportation FFS",{"$f":"'LTC Rev-Exp Region 5'!D$31","v":{"v":0,"d":"$0.00"}},{"$f":"'LTC Rev-Exp Region 5'!E$31","v":{"v":0,"d":"$0.00"}},{"$f":"'LTC Rev-Exp Region 5'!F$31","v":{"v":0,"d":"$0.00"}},{"$f":"'LTC Rev-Exp Region 5'!G$31","v":{"v":0,"d":"$0.00"}},{"v":0,"d":"$0.00"}]
["LTC",null,null,{"$f":"Jurat!I$1","v":0},{"$f":"Jurat!D$33","v":"00:00:00"},"Q1","2017-03-31","Region 5","Operating Expense","Medical Expense","LTC Services","2.16","Case Management FFS (Plan Provided)",{"$f":"'LTC Rev-Exp Region 5'!D$32","v":{"v":0,"d":"$0.00"}},{"$f":"'LTC Rev-Exp Region 5'!E$32","v":{"v":0,"d":"$0.00"}},{"$f":"'LTC Rev-Exp Region 5'!F$32","v":{"v":0,"d":"$0.00"}},{"$f":"'LTC Rev-Exp Region 5'!G$32","v":{"v":0,"d":"$0.00"}},{"v":0,"d":"$0.00"}]
["LTC",null,null,{"$f":"Jurat!I$1","v":0},{"$f":"Jurat!D$33","v":"00:00:00"},"Q1","2017-03-31","Region 5","Operating Expense","Medical Expense","LTC Services","2.17","Case Management FF (Non-Plan Provided)",{"$f":"'LTC Rev-Exp Region 5'!D$33","v":{"v":0,"d":"$0.00"}},{"$f":"'LTC Rev-Exp Region 5'!E$33","v":{"v":0,"d":"$0.00"}},{"$f":"'LTC Rev-Exp Region 5'!F$33","v":{"v":0,"d":"$0.00"}},{"$f":"'LTC Rev-Exp Region 5'!G$33","v":{"v":0,"d":"$0.00"}},{"v":0,"d":"$0.00"}]
["LTC",null,null,{"$f":"Jurat!I$1","v":0},{"$f":"Jurat!D$33","v":"00:00:00"},"Q1","2017-03-31","Region 5","Operating Expense","Medical Expense","LTC Services","2.18","HCBS FFS",{"$f":"'LTC Rev-Exp Region 5'!D$34","v":{"v":0,"d":"$0.00"}},{"$f":"'LTC Rev-Exp Region 5'!E$34","v":{"v":0,"d":"$0.00"}},{"$f":"'LTC Rev-Exp Region 5'!F$34","v":{"v":0,"d":"$0.00"}},{"$f":"'LTC Rev-Exp Region 5'!G$34","v":{"v":0,"d":"$0.00"}},{"v":0,"d":"$0.00"}]
["LTC",null,null,{"$f":"Jurat!I$1","v":0},{"$f":"Jurat!D$33","v":"00:00:00"},"Q1","2017-03-31","Region 5","Operating Expense","Medical Expense","LTC Services","2.19","Subcapitated LTC Services",{"$f":"'LTC Rev-Exp Region 5'!D$35","v":{"v":0,"d":"$0.00"}},{"$f":"'LTC Rev-Exp Region 5'!E$35","v":{"v":0,"d":"$0.00"}},{"$f":"'LTC Rev-Exp Region 5'!F$35","v":{"v":0,"d":"$0.00"}},{"$f":"'LTC Rev-Exp Region 5'!G$35","v":{"v":0,"d":"$0.00"}},{"v":0,"d":"$0.00"}]
["LTC",null,null,{"$f":"Jurat!I$1","v":0},{"$f":"Jurat!D$33","v":"00:00:00"},"Q1","2017-03-31","Region 5","Operating Expense","Medical Expense","LTC Services","2.20","Ending IBNP for Long Term Care Services",{"$f":"'LTC Rev-Exp Region 5'!D$36","v":{"v":0,"d":"$0.00"}},{"$f":"'LTC Rev-Exp Region 5'!E$36","v":{"v":0,"d":"$0.00"}},{"$f":"'LTC Rev-Exp Region 5'!F$36","v":{"v":0,"d":"$0.00"}},{"$f":"'LTC Rev-Exp Region 5'!G$36","v":{"v":0,"d":"$0.00"}},{"v":0,"d":"$0.00"}]
["LTC",null,null,{"$f":"Jurat!I$1","v":0},{"$f":"Jurat!D$33","v":"00:00:00"},"Q1","2017-03-31","Region 5","Operating Expense","Medical Expense","LTC Services","2.21","LTC Services Settlements",{"$f":"'LTC Rev-Exp Region 5'!D$37","v":{"v":0,"d":"$0.00"}},{"$f":"'LTC Rev-Exp Region 5'!E$37","v":{"v":0,"d":"$0.00"}},{"$f":"'LTC Rev-Exp Region 5'!F$37","v":{"v":0,"d":"$0.00"}},{"$f":"'LTC Rev-Exp Region 5'!G$37","v":{"v":0,"d":"$0.00"}},{"v":0,"d":"$0.00"}]
["LTC",null,null,{"$f":"Jurat!I$1","v":0},{"$f":"Jurat!D$33","v":"00:00:00"},"Q1","2017-03-31","Region 5","Operating Expense","Medical Expense","Expanded Benefits","3.1","Expanded Benefits FFS",{"$f":"'LTC Rev-Exp Region 5'!D$39","v":{"v":0,"d":"$0.00"}},{"$f":"'LTC Rev-Exp Region 5'!E$39","v":{"v":0,"d":"$0.00"}},{"$f":"'LTC Rev-Exp Region 5'!F$39","v":{"v":0,"d":"$0.00"}},{"$f":"'LTC Rev-Exp Region 5'!G$39","v":{"v":0,"d":"$0.00"}},{"v":0,"d":"$0.00"}]
["LTC",null,null,{"$f":"Jurat!I$1","v":0},{"$f":"Jurat!D$33","v":"00:00:00"},"Q1","2017-03-31","Region 5","Operating Expense","Medical Expense","Expanded Benefits","3.2","Expanded Benefits Subcapitation",{"$f":"'LTC Rev-Exp Region 5'!D$40","v":{"v":0,"d":"$0.00"}},{"$f":"'LTC Rev-Exp Region 5'!E$40","v":{"v":0,"d":"$0.00"}},{"$f":"'LTC Rev-Exp Region 5'!F$40","v":{"v":0,"d":"$0.00"}},{"$f":"'LTC Rev-Exp Region 5'!G$40","v":{"v":0,"d":"$0.00"}},{"v":0,"d":"$0.00"}]
["LTC",null,null,{"$f":"Jurat!I$1","v":0},{"$f":"Jurat!D$33","v":"00:00:00"},"Q1","2017-03-31","Region 5","Operating Expense","Medical Expense","Expanded Benefits","3.3","Ending IBNP for Expanded Benefits",{"$f":"'LTC Rev-Exp Region 5'!D$41","v":{"v":0,"d":"$0.00"}},{"$f":"'LTC Rev-Exp Region 5'!E$41","v":{"v":0,"d":"$0.00"}},{"$f":"'LTC Rev-Exp Region 5'!F$41","v":{"v":0,"d":"$0.00"}},{"$f":"'LTC Rev-Exp Region 5'!G$41","v":{"v":0,"d":"$0.00"}},{"v":0,"d":"$0.00"}]
["LTC",null,null,{"$f":"Jurat!I$1","v":0},{"$f":"Jurat!D$33","v":"00:00:00"},"Q1","2017-03-31","Region 5","Operating Expense","Medical Expense","Expanded Benefits","3.4","Expanded Benefits Settlements",{"$f":"'LTC Rev-Exp Region 5'!D$42","v":{"v":0,"d":"$0.00"}},{"$f":"'LTC Rev-Exp Region 5'!E$42","v":{"v":0,"d":"$0.00"}},{"$f":"'LTC Rev-Exp Region 5'!F$42","v":{"v":0,"d":"$0.00"}},{"$f":"'LTC Rev-Exp Region 5'!G$42","v":{"v":0,"d":"$0.00"}},{"v":0,"d":"$0.00"}]
["LTC",null,null,{"$f":"Jurat!I$1","v":0},{"$f":"Jurat!D$33","v":"00:00:00"},"Q1","2017-03-31","Region 5","Operating Expense","Medical Expense","Other Medical","4.5","TPL & Fraud/Abuse Recoveries",{"$f":"'LTC Rev-Exp Region 5'!D$48","v":{"v":0,"d":"$0.00"}},{"$f":"'LTC Rev-Exp Region 5'!E$48","v":{"v":0,"d":"$0.00"}},{"$f":"'LTC Rev-Exp Region 5'!F$48","v":{"v":0,"d":"$0.00"}},{"$f":"'LTC Rev-Exp Region 5'!G$48","v":{"v":0,"d":"$0.00"}},{"v":0,"d":"$0.00"}]
["LTC",null,null,{"$f":"Jurat!I$1","v":0},{"$f":"Jurat!D$33","v":"00:00:00"},"Q1","2017-03-31","Region 5","Operating Expense","Medical Expense","Other Medical","4.6.1","Premium Deficiency Reserve",{"$f":"'LTC Rev-Exp Region 5'!D$49","v":{"v":0,"d":"$0.00"}},{"$f":"'LTC Rev-Exp Region 5'!E$49","v":{"v":0,"d":"$0.00"}},{"$f":"'LTC Rev-Exp Region 5'!F$49","v":{"v":0,"d":"$0.00"}},{"$f":"'LTC Rev-Exp Region 5'!G$49","v":{"v":0,"d":"$0.00"}},{"v":0,"d":"$0.00"}]
["LTC",null,null,{"$f":"Jurat!I$1","v":0},{"$f":"Jurat!D$33","v":"00:00:00"},"Q1","2017-03-31","Region 5","Operating Expense","Medical Expense","Other Medical","4.8","Reinsurance Premiums",{"$f":"'LTC Rev-Exp Region 5'!D$51","v":{"v":0,"d":"$0.00"}},{"$f":"'LTC Rev-Exp Region 5'!E$51","v":{"v":0,"d":"$0.00"}},{"$f":"'LTC Rev-Exp Region 5'!F$51","v":{"v":0,"d":"$0.00"}},{"$f":"'LTC Rev-Exp Region 5'!G$51","v":{"v":0,"d":"$0.00"}},{"v":0,"d":"$0.00"}]
["LTC",null,null,{"$f":"Jurat!I$1","v":0},{"$f":"Jurat!D$33","v":"00:00:00"},"Q1","2017-03-31","Region 5","Operating Expense","Medical Expense","Other Medical","4.9","Reinsurance Recoveries",{"$f":"'LTC Rev-Exp Region 5'!D$52","v":{"v":0,"d":"$0.00"}},{"$f":"'LTC Rev-Exp Region 5'!E$52","v":{"v":0,"d":"$0.00"}},{"$f":"'LTC Rev-Exp Region 5'!F$52","v":{"v":0,"d":"$0.00"}},{"$f":"'LTC Rev-Exp Region 5'!G$52","v":{"v":0,"d":"$0.00"}},{"v":0,"d":"$0.00"}]
["LTC",null,null,{"$f":"Jurat!I$1","v":0},{"$f":"Jurat!D$33","v":"00:00:00"},"Q1","2017-03-31","Region 5","Operating Expense","Administrative Expense","Administrative","5.1","Salaries & Benefits",{"$f":"'LTC Rev-Exp Region 5'!D$57","v":{"v":0,"d":"$0.00"}},{"$f":"'LTC Rev-Exp Region 5'!E$57","v":{"v":0,"d":"$0.00"}},{"$f":"'LTC Rev-Exp Region 5'!F$57","v":{"v":0,"d":"$0.00"}},{"$f":"'LTC Rev-Exp Region 5'!G$57","v":{"v":0,"d":"$0.00"}},{"v":0,"d":"$0.00"}]
["LTC",null,null,{"$f":"Jurat!I$1","v":0},{"$f":"Jurat!D$33","v":"00:00:00"},"Q1","2017-03-31","Region 5","Operating Expense","Administrative Expense","Administrative","5.2","Administrative Services",{"$f":"'LTC Rev-Exp Region 5'!D$58","v":{"v":0,"d":"$0.00"}},{"$f":"'LTC Rev-Exp Region 5'!E$58","v":{"v":0,"d":"$0.00"}},{"$f":"'LTC Rev-Exp Region 5'!F$58","v":{"v":0,"d":"$0.00"}},{"$f":"'LTC Rev-Exp Region 5'!G$58","v":{"v":0,"d":"$0.00"}},{"v":0,"d":"$0.00"}]
["LTC",null,null,{"$f":"Jurat!I$1","v":0},{"$f":"Jurat!D$33","v":"00:00:00"},"Q1","2017-03-31","Region 5","Operating Expense","Administrative Expense","Administrative","5.3","Information Systems",{"$f":"'LTC Rev-Exp Region 5'!D$59","v":{"v":0,"d":"$0.00"}},{"$f":"'LTC Rev-Exp Region 5'!E$59","v":{"v":0,"d":"$0.00"}},{"$f":"'LTC Rev-Exp Region 5'!F$59","v":{"v":0,"d":"$0.00"}},{"$f":"'LTC Rev-Exp Region 5'!G$59","v":{"v":0,"d":"$0.00"}},{"v":0,"d":"$0.00"}]
["LTC",null,null,{"$f":"Jurat!I$1","v":0},{"$f":"Jurat!D$33","v":"00:00:00"},"Q1","2017-03-31","Region 5","Operating Expense","Administrative Expense","Administrative","5.4","Marketing Expenses",{"$f":"'LTC Rev-Exp Region 5'!D$60","v":{"v":0,"d":"$0.00"}},{"$f":"'LTC Rev-Exp Region 5'!E$60","v":{"v":0,"d":"$0.00"}},{"$f":"'LTC Rev-Exp Region 5'!F$60","v":{"v":0,"d":"$0.00"}},{"$f":"'LTC Rev-Exp Region 5'!G$60","v":{"v":0,"d":"$0.00"}},{"v":0,"d":"$0.00"}]
["LTC",null,null,{"$f":"Jurat!I$1","v":0},{"$f":"Jurat!D$33","v":"00:00:00"},"Q1","2017-03-31","Region 5","Operating Expense","Administrative Expense","Administrative","5.5","General  Administration",{"$f":"'LTC Rev-Exp Region 5'!D$61","v":{"v":0,"d":"$0.00"}},{"$f":"'LTC Rev-Exp Region 5'!E$61","v":{"v":0,"d":"$0.00"}},{"$f":"'LTC Rev-Exp Region 5'!F$61","v":{"v":0,"d":"$0.00"}},{"$f":"'LTC Rev-Exp Region 5'!G$61","v":{"v":0,"d":"$0.00"}},{"v":0,"d":"$0.00"}]
["LTC",null,null,{"$f":"Jurat!I$1","v":0},{"$f":"Jurat!D$33","v":"00:00:00"},"Q1","2017-03-31","Region 5","Operating Expense","Administrative Expense","Administrative","5.6","Compliance/Regulatory",{"$f":"'LTC Rev-Exp Region 5'!D$62","v":{"v":0,"d":"$0.00"}},{"$f":"'LTC Rev-Exp Region 5'!E$62","v":{"v":0,"d":"$0.00"}},{"$f":"'LTC Rev-Exp Region 5'!F$62","v":{"v":0,"d":"$0.00"}},{"$f":"'LTC Rev-Exp Region 5'!G$62","v":{"v":0,"d":"$0.00"}},{"v":0,"d":"$0.00"}]
["LTC",null,null,{"$f":"Jurat!I$1","v":0},{"$f":"Jurat!D$33","v":"00:00:00"},"Q1","2017-03-31","Region 5","Operating Expense","Taxes & Fees","Taxes & Fees","6.1","State Premium Tax",{"$f":"'LTC Rev-Exp Region 5'!D$64","v":{"v":0,"d":"$0.00"}},{"v":0,"d":"$0.00"},{"v":0,"d":"$0.00"},{"v":0,"d":"$0.00"},{"v":0,"d":"$0.00"}]
["LTC",null,null,{"$f":"Jurat!I$1","v":0},{"$f":"Jurat!D$33","v":"00:00:00"},"Q1","2017-03-31","Region 5","Operating Expense","Taxes & Fees","Taxes & Fees","6.2","Department of Insurance Assessments",{"$f":"'LTC Rev-Exp Region 5'!D$65","v":{"v":0,"d":"$0.00"}},{"v":0,"d":"$0.00"},{"v":0,"d":"$0.00"},{"v":0,"d":"$0.00"},{"v":0,"d":"$0.00"}]
["LTC",null,null,{"$f":"Jurat!I$1","v":0},{"$f":"Jurat!D$33","v":"00:00:00"},"Q1","2017-03-31","Region 5","Non-Operating Expense","Income Tax Expense","Income Tax Expense","9.0","Income Tax Expense",{"$f":"'LTC Rev-Exp Region 5'!D$72","v":{"v":0,"d":"$0.00"}},{"v":0,"d":"$0.00"},{"v":0,"d":"$0.00"},{"v":0,"d":"$0.00"},{"v":0,"d":"$0.00"}]
["LTC",null,null,{"$f":"Jurat!I$1","v":0},{"$f":"Jurat!D$33","v":"00:00:00"},"Q2","2017-06-30","Region 5","Member Months","Member Months","Member Months",null,"Member Months",{"$f":"'LTC Rev-Exp Region 5'!H$9","v":{"v":0,"d":"$0.00"}},{"$f":"'LTC Rev-Exp Region 5'!I$9","v":{"v":0,"d":"$0.00"}},{"$f":"'LTC Rev-Exp Region 5'!J$9","v":{"v":0,"d":"$0.00"}},{"$f":"'LTC Rev-Exp Region 5'!K$9","v":{"v":0,"d":"$0.00"}},{"v":0,"d":"$0.00"}]
["LTC",null,null,{"$f":"Jurat!I$1","v":0},{"$f":"Jurat!D$33","v":"00:00:00"},"Q2","2017-06-30","Region 5","Operating Revenue","Capitation","Capitation",1.1,"Capitation",{"$f":"'LTC Rev-Exp Region 5'!H$11","v":{"v":0,"d":"$0.00"}},{"$f":"'LTC Rev-Exp Region 5'!I$11","v":{"v":0,"d":"$0.00"}},{"$f":"'LTC Rev-Exp Region 5'!J$11","v":{"v":0,"d":"$0.00"}},{"$f":"'LTC Rev-Exp Region 5'!K$11","v":{"v":0,"d":"$0.00"}},{"v":0,"d":"$0.00"}]
["LTC",null,null,{"$f":"Jurat!I$1","v":0},{"$f":"Jurat!D$33","v":"00:00:00"},"Q2","2017-06-30","Region 5","Operating Revenue","Capitation","NH Rate Reconciliation",1.2,"NH Rate Reconciliation",{"$f":"'LTC Rev-Exp Region 5'!H$12","v":{"v":0,"d":"$0.00"}},{"$f":"'LTC Rev-Exp Region 5'!I$12","v":{"v":0,"d":"$0.00"}},{"$f":"'LTC Rev-Exp Region 5'!J$12","v":{"v":0,"d":"$0.00"}},{"$f":"'LTC Rev-Exp Region 5'!K$12","v":{"v":0,"d":"$0.00"}},{"v":0,"d":"$0.00"}]
["LTC",null,null,{"$f":"Jurat!I$1","v":0},{"$f":"Jurat!D$33","v":"00:00:00"},"Q2","2017-06-30","Region 5","Operating Revenue","Other Revenue","Other Revenue",1.3,"Other Revenue",{"$f":"'LTC Rev-Exp Region 5'!H$13","v":{"v":0,"d":"$0.00"}},{"$f":"'LTC Rev-Exp Region 5'!I$13","v":{"v":0,"d":"$0.00"}},{"$f":"'LTC Rev-Exp Region 5'!J$13","v":{"v":0,"d":"$0.00"}},{"$f":"'LTC Rev-Exp Region 5'!K$13","v":{"v":0,"d":"$0.00"}},{"v":0,"d":"$0.00"}]
["LTC",null,null,{"$f":"Jurat!I$1","v":0},{"$f":"Jurat!D$33","v":"00:00:00"},"Q2","2017-06-30","Region 5","Operating Expense","Medical Expense","NF & Hospice","2.1","Nursing Facility Days (Medicaid)",{"$f":"'LTC Rev-Exp Region 5'!H$17","v":{"v":0,"d":"$0.00"}},{"$f":"'LTC Rev-Exp Region 5'!I$17","v":{"v":0,"d":"$0.00"}},{"$f":"'LTC Rev-Exp Region 5'!J$17","v":{"v":0,"d":"$0.00"}},{"$f":"'LTC Rev-Exp Region 5'!K$17","v":{"v":0,"d":"$0.00"}},{"v":0,"d":"$0.00"}]
["LTC",null,null,{"$f":"Jurat!I$1","v":0},{"$f":"Jurat!D$33","v":"00:00:00"},"Q2","2017-06-30","Region 5","Operating Expense","Medical Expense","NF & Hospice","2.2","Nursing Facility Days (Crossover)",{"$f":"'LTC Rev-Exp Region 5'!H$18","v":{"v":0,"d":"$0.00"}},{"$f":"'LTC Rev-Exp Region 5'!I$18","v":{"v":0,"d":"$0.00"}},{"$f":"'LTC Rev-Exp Region 5'!J$18","v":{"v":0,"d":"$0.00"}},{"$f":"'LTC Rev-Exp Region 5'!K$18","v":{"v":0,"d":"$0.00"}},{"v":0,"d":"$0.00"}]
["LTC",null,null,{"$f":"Jurat!I$1","v":0},{"$f":"Jurat!D$33","v":"00:00:00"},"Q2","2017-06-30","Region 5","Operating Expense","Medical Expense","NF & Hospice","2.3","Nursing Facility FFS (Medicaid)",{"$f":"'LTC Rev-Exp Region 5'!H$19","v":{"v":0,"d":"$0.00"}},{"$f":"'LTC Rev-Exp Region 5'!I$19","v":{"v":0,"d":"$0.00"}},{"$f":"'LTC Rev-Exp Region 5'!J$19","v":{"v":0,"d":"$0.00"}},{"$f":"'LTC Rev-Exp Region 5'!K$19","v":{"v":0,"d":"$0.00"}},{"v":0,"d":"$0.00"}]
["LTC",null,null,{"$f":"Jurat!I$1","v":0},{"$f":"Jurat!D$33","v":"00:00:00"},"Q2","2017-06-30","Region 5","Operating Expense","Medical Expense","NF & Hospice","2.4","Nursing Facility FFS (Crossover)",{"$f":"'LTC Rev-Exp Region 5'!H$20","v":{"v":0,"d":"$0.00"}},{"$f":"'LTC Rev-Exp Region 5'!I$20","v":{"v":0,"d":"$0.00"}},{"$f":"'LTC Rev-Exp Region 5'!J$20","v":{"v":0,"d":"$0.00"}},{"$f":"'LTC Rev-Exp Region 5'!K$20","v":{"v":0,"d":"$0.00"}},{"v":0,"d":"$0.00"}]
["LTC",null,null,{"$f":"Jurat!I$1","v":0},{"$f":"Jurat!D$33","v":"00:00:00"},"Q2","2017-06-30","Region 5","Operating Expense","Medical Expense","NF & Hospice","2.5","Hospice Days",{"$f":"'LTC Rev-Exp Region 5'!H$21","v":{"v":0,"d":"$0.00"}},{"$f":"'LTC Rev-Exp Region 5'!I$21","v":{"v":0,"d":"$0.00"}},{"$f":"'LTC Rev-Exp Region 5'!J$21","v":{"v":0,"d":"$0.00"}},{"$f":"'LTC Rev-Exp Region 5'!K$21","v":{"v":0,"d":"$0.00"}},{"v":0,"d":"$0.00"}]
["LTC",null,null,{"$f":"Jurat!I$1","v":0},{"$f":"Jurat!D$33","v":"00:00:00"},"Q2","2017-06-30","Region 5","Operating Expense","Medical Expense","NF & Hospice","2.6","Hospice FFS",{"$f":"'LTC Rev-Exp Region 5'!H$22","v":{"v":0,"d":"$0.00"}},{"$f":"'LTC Rev-Exp Region 5'!I$22","v":{"v":0,"d":"$0.00"}},{"$f":"'LTC Rev-Exp Region 5'!J$22","v":{"v":0,"d":"$0.00"}},{"$f":"'LTC Rev-Exp Region 5'!K$22","v":{"v":0,"d":"$0.00"}},{"v":0,"d":"$0.00"}]
["LTC",null,null,{"$f":"Jurat!I$1","v":0},{"$f":"Jurat!D$33","v":"00:00:00"},"Q2","2017-06-30","Region 5","Operating Expense","Medical Expense","NF & Hospice","2.7","Ending IBNP for NF & Hospice",{"$f":"'LTC Rev-Exp Region 5'!H$23","v":{"v":0,"d":"$0.00"}},{"$f":"'LTC Rev-Exp Region 5'!I$23","v":{"v":0,"d":"$0.00"}},{"$f":"'LTC Rev-Exp Region 5'!J$23","v":{"v":0,"d":"$0.00"}},{"$f":"'LTC Rev-Exp Region 5'!K$23","v":{"v":0,"d":"$0.00"}},{"v":0,"d":"$0.00"}]
["LTC",null,null,{"$f":"Jurat!I$1","v":0},{"$f":"Jurat!D$33","v":"00:00:00"},"Q2","2017-06-30","Region 5","Operating Expense","Medical Expense","NF & Hospice","2.8","NF & Hospice Subcapitated",{"$f":"'LTC Rev-Exp Region 5'!H$24","v":{"v":0,"d":"$0.00"}},{"$f":"'LTC Rev-Exp Region 5'!I$24","v":{"v":0,"d":"$0.00"}},{"$f":"'LTC Rev-Exp Region 5'!J$24","v":{"v":0,"d":"$0.00"}},{"$f":"'LTC Rev-Exp Region 5'!K$24","v":{"v":0,"d":"$0.00"}},{"v":0,"d":"$0.00"}]
["LTC",null,null,{"$f":"Jurat!I$1","v":0},{"$f":"Jurat!D$33","v":"00:00:00"},"Q2","2017-06-30","Region 5","Operating Expense","Medical Expense","NF & Hospice","2.9","NF & Hospice Settlements",{"$f":"'LTC Rev-Exp Region 5'!H$25","v":{"v":0,"d":"$0.00"}},{"$f":"'LTC Rev-Exp Region 5'!I$25","v":{"v":0,"d":"$0.00"}},{"$f":"'LTC Rev-Exp Region 5'!J$25","v":{"v":0,"d":"$0.00"}},{"$f":"'LTC Rev-Exp Region 5'!K$25","v":{"v":0,"d":"$0.00"}},{"v":0,"d":"$0.00"}]
["LTC",null,null,{"$f":"Jurat!I$1","v":0},{"$f":"Jurat!D$33","v":"00:00:00"},"Q2","2017-06-30","Region 5","Operating Expense","Medical Expense","LTC Services","2.11","Assisted Living FFS",{"$f":"'LTC Rev-Exp Region 5'!H$27","v":{"v":0,"d":"$0.00"}},{"$f":"'LTC Rev-Exp Region 5'!I$27","v":{"v":0,"d":"$0.00"}},{"$f":"'LTC Rev-Exp Region 5'!J$27","v":{"v":0,"d":"$0.00"}},{"$f":"'LTC Rev-Exp Region 5'!K$27","v":{"v":0,"d":"$0.00"}},{"v":0,"d":"$0.00"}]
["LTC",null,null,{"$f":"Jurat!I$1","v":0},{"$f":"Jurat!D$33","v":"00:00:00"},"Q2","2017-06-30","Region 5","Operating Expense","Medical Expense","LTC Services","2.12","Home Health FFS",{"$f":"'LTC Rev-Exp Region 5'!H$28","v":{"v":0,"d":"$0.00"}},{"$f":"'LTC Rev-Exp Region 5'!I$28","v":{"v":0,"d":"$0.00"}},{"$f":"'LTC Rev-Exp Region 5'!J$28","v":{"v":0,"d":"$0.00"}},{"$f":"'LTC Rev-Exp Region 5'!K$28","v":{"v":0,"d":"$0.00"}},{"v":0,"d":"$0.00"}]
["LTC",null,null,{"$f":"Jurat!I$1","v":0},{"$f":"Jurat!D$33","v":"00:00:00"},"Q2","2017-06-30","Region 5","Operating Expense","Medical Expense","LTC Services","2.13","Medical Equipment/Supplies FFS",{"$f":"'LTC Rev-Exp Region 5'!H$29","v":{"v":0,"d":"$0.00"}},{"$f":"'LTC Rev-Exp Region 5'!I$29","v":{"v":0,"d":"$0.00"}},{"$f":"'LTC Rev-Exp Region 5'!J$29","v":{"v":0,"d":"$0.00"}},{"$f":"'LTC Rev-Exp Region 5'!K$29","v":{"v":0,"d":"$0.00"}},{"v":0,"d":"$0.00"}]
["LTC",null,null,{"$f":"Jurat!I$1","v":0},{"$f":"Jurat!D$33","v":"00:00:00"},"Q2","2017-06-30","Region 5","Operating Expense","Medical Expense","LTC Services","2.14","Therapy FFS",{"$f":"'LTC Rev-Exp Region 5'!H$30","v":{"v":0,"d":"$0.00"}},{"$f":"'LTC Rev-Exp Region 5'!I$30","v":{"v":0,"d":"$0.00"}},{"$f":"'LTC Rev-Exp Region 5'!J$30","v":{"v":0,"d":"$0.00"}},{"$f":"'LTC Rev-Exp Region 5'!K$30","v":{"v":0,"d":"$0.00"}},{"v":0,"d":"$0.00"}]
["LTC",null,null,{"$f":"Jurat!I$1","v":0},{"$f":"Jurat!D$33","v":"00:00:00"},"Q2","2017-06-30","Region 5","Operating Expense","Medical Expense","LTC Services","2.15","Transportation FFS",{"$f":"'LTC Rev-Exp Region 5'!H$31","v":{"v":0,"d":"$0.00"}},{"$f":"'LTC Rev-Exp Region 5'!I$31","v":{"v":0,"d":"$0.00"}},{"$f":"'LTC Rev-Exp Region 5'!J$31","v":{"v":0,"d":"$0.00"}},{"$f":"'LTC Rev-Exp Region 5'!K$31","v":{"v":0,"d":"$0.00"}},{"v":0,"d":"$0.00"}]
["LTC",null,null,{"$f":"Jurat!I$1","v":0},{"$f":"Jurat!D$33","v":"00:00:00"},"Q2","2017-06-30","Region 5","Operating Expense","Medical Expense","LTC Services","2.16","Case Management FFS (Plan Provided)",{"$f":"'LTC Rev-Exp Region 5'!H$32","v":{"v":0,"d":"$0.00"}},{"$f":"'LTC Rev-Exp Region 5'!I$32","v":{"v":0,"d":"$0.00"}},{"$f":"'LTC Rev-Exp Region 5'!J$32","v":{"v":0,"d":"$0.00"}},{"$f":"'LTC Rev-Exp Region 5'!K$32","v":{"v":0,"d":"$0.00"}},{"v":0,"d":"$0.00"}]
["LTC",null,null,{"$f":"Jurat!I$1","v":0},{"$f":"Jurat!D$33","v":"00:00:00"},"Q2","2017-06-30","Region 5","Operating Expense","Medical Expense","LTC Services","2.17","Case Management FF (Non-Plan Provided)",{"$f":"'LTC Rev-Exp Region 5'!H$33","v":{"v":0,"d":"$0.00"}},{"$f":"'LTC Rev-Exp Region 5'!I$33","v":{"v":0,"d":"$0.00"}},{"$f":"'LTC Rev-Exp Region 5'!J$33","v":{"v":0,"d":"$0.00"}},{"$f":"'LTC Rev-Exp Region 5'!K$33","v":{"v":0,"d":"$0.00"}},{"v":0,"d":"$0.00"}]
["LTC",null,null,{"$f":"Jurat!I$1","v":0},{"$f":"Jurat!D$33","v":"00:00:00"},"Q2","2017-06-30","Region 5","Operating Expense","Medical Expense","LTC Services","2.18","HCBS FFS",{"$f":"'LTC Rev-Exp Region 5'!H$34","v":{"v":0,"d":"$0.00"}},{"$f":"'LTC Rev-Exp Region 5'!I$34","v":{"v":0,"d":"$0.00"}},{"$f":"'LTC Rev-Exp Region 5'!J$34","v":{"v":0,"d":"$0.00"}},{"$f":"'LTC Rev-Exp Region 5'!K$34","v":{"v":0,"d":"$0.00"}},{"v":0,"d":"$0.00"}]
["LTC",null,null,{"$f":"Jurat!I$1","v":0},{"$f":"Jurat!D$33","v":"00:00:00"},"Q2","2017-06-30","Region 5","Operating Expense","Medical Expense","LTC Services","2.19","Subcapitated LTC Services",{"$f":"'LTC Rev-Exp Region 5'!H$35","v":{"v":0,"d":"$0.00"}},{"$f":"'LTC Rev-Exp Region 5'!I$35","v":{"v":0,"d":"$0.00"}},{"$f":"'LTC Rev-Exp Region 5'!J$35","v":{"v":0,"d":"$0.00"}},{"$f":"'LTC Rev-Exp Region 5'!K$35","v":{"v":0,"d":"$0.00"}},{"v":0,"d":"$0.00"}]
["LTC",null,null,{"$f":"Jurat!I$1","v":0},{"$f":"Jurat!D$33","v":"00:00:00"},"Q2","2017-06-30","Region 5","Operating Expense","Medical Expense","LTC Services","2.20","Ending IBNP for Long Term Care Services",{"$f":"'LTC Rev-Exp Region 5'!H$36","v":{"v":0,"d":"$0.00"}},{"$f":"'LTC Rev-Exp Region 5'!I$36","v":{"v":0,"d":"$0.00"}},{"$f":"'LTC Rev-Exp Region 5'!J$36","v":{"v":0,"d":"$0.00"}},{"$f":"'LTC Rev-Exp Region 5'!K$36","v":{"v":0,"d":"$0.00"}},{"v":0,"d":"$0.00"}]
["LTC",null,null,{"$f":"Jurat!I$1","v":0},{"$f":"Jurat!D$33","v":"00:00:00"},"Q2","2017-06-30","Region 5","Operating Expense","Medical Expense","LTC Services","2.21","LTC Services Settlements",{"$f":"'LTC Rev-Exp Region 5'!H$37","v":{"v":0,"d":"$0.00"}},{"$f":"'LTC Rev-Exp Region 5'!I$37","v":{"v":0,"d":"$0.00"}},{"$f":"'LTC Rev-Exp Region 5'!J$37","v":{"v":0,"d":"$0.00"}},{"$f":"'LTC Rev-Exp Region 5'!K$37","v":{"v":0,"d":"$0.00"}},{"v":0,"d":"$0.00"}]
["LTC",null,null,{"$f":"Jurat!I$1","v":0},{"$f":"Jurat!D$33","v":"00:00:00"},"Q2","2017-06-30","Region 5","Operating Expense","Medical Expense","Expanded Benefits","3.1","Expanded Benefits FFS",{"$f":"'LTC Rev-Exp Region 5'!H$39","v":{"v":0,"d":"$0.00"}},{"$f":"'LTC Rev-Exp Region 5'!I$39","v":{"v":0,"d":"$0.00"}},{"$f":"'LTC Rev-Exp Region 5'!J$39","v":{"v":0,"d":"$0.00"}},{"$f":"'LTC Rev-Exp Region 5'!K$39","v":{"v":0,"d":"$0.00"}},{"v":0,"d":"$0.00"}]
["LTC",null,null,{"$f":"Jurat!I$1","v":0},{"$f":"Jurat!D$33","v":"00:00:00"},"Q2","2017-06-30","Region 5","Operating Expense","Medical Expense","Expanded Benefits","3.2","Expanded Benefits Subcapitation",{"$f":"'LTC Rev-Exp Region 5'!H$40","v":{"v":0,"d":"$0.00"}},{"$f":"'LTC Rev-Exp Region 5'!I$40","v":{"v":0,"d":"$0.00"}},{"$f":"'LTC Rev-Exp Region 5'!J$40","v":{"v":0,"d":"$0.00"}},{"$f":"'LTC Rev-Exp Region 5'!K$40","v":{"v":0,"d":"$0.00"}},{"v":0,"d":"$0.00"}]
["LTC",null,null,{"$f":"Jurat!I$1","v":0},{"$f":"Jurat!D$33","v":"00:00:00"},"Q2","2017-06-30","Region 5","Operating Expense","Medical Expense","Expanded Benefits","3.3","Ending IBNP for Expanded Benefits",{"$f":"'LTC Rev-Exp Region 5'!H$41","v":{"v":0,"d":"$0.00"}},{"$f":"'LTC Rev-Exp Region 5'!I$41","v":{"v":0,"d":"$0.00"}},{"$f":"'LTC Rev-Exp Region 5'!J$41","v":{"v":0,"d":"$0.00"}},{"$f":"'LTC Rev-Exp Region 5'!K$41","v":{"v":0,"d":"$0.00"}},{"v":0,"d":"$0.00"}]
["LTC",null,null,{"$f":"Jurat!I$1","v":0},{"$f":"Jurat!D$33","v":"00:00:00"},"Q2","2017-06-30","Region 5","Operating Expense","Medical Expense","Expanded Benefits","3.4","Expanded Benefits Settlements",{"$f":"'LTC Rev-Exp Region 5'!H$42","v":{"v":0,"d":"$0.00"}},{"$f":"'LTC Rev-Exp Region 5'!I$42","v":{"v":0,"d":"$0.00"}},{"$f":"'LTC Rev-Exp Region 5'!J$42","v":{"v":0,"d":"$0.00"}},{"$f":"'LTC Rev-Exp Region 5'!K$42","v":{"v":0,"d":"$0.00"}},{"v":0,"d":"$0.00"}]
["LTC",null,null,{"$f":"Jurat!I$1","v":0},{"$f":"Jurat!D$33","v":"00:00:00"},"Q2","2017-06-30","Region 5","Operating Expense","Medical Expense","Other Medical","4.5","TPL & Fraud/Abuse Recoveries",{"$f":"'LTC Rev-Exp Region 5'!H$48","v":{"v":0,"d":"$0.00"}},{"$f":"'LTC Rev-Exp Region 5'!I$48","v":{"v":0,"d":"$0.00"}},{"$f":"'LTC Rev-Exp Region 5'!J$48","v":{"v":0,"d":"$0.00"}},{"$f":"'LTC Rev-Exp Region 5'!K$48","v":{"v":0,"d":"$0.00"}},{"v":0,"d":"$0.00"}]
["LTC",null,null,{"$f":"Jurat!I$1","v":0},{"$f":"Jurat!D$33","v":"00:00:00"},"Q2","2017-06-30","Region 5","Operating Expense","Medical Expense","Other Medical","4.6.1","Premium Deficiency Reserve",{"$f":"'LTC Rev-Exp Region 5'!H$49","v":{"v":0,"d":"$0.00"}},{"$f":"'LTC Rev-Exp Region 5'!I$49","v":{"v":0,"d":"$0.00"}},{"$f":"'LTC Rev-Exp Region 5'!J$49","v":{"v":0,"d":"$0.00"}},{"$f":"'LTC Rev-Exp Region 5'!K$49","v":{"v":0,"d":"$0.00"}},{"v":0,"d":"$0.00"}]
["LTC",null,null,{"$f":"Jurat!I$1","v":0},{"$f":"Jurat!D$33","v":"00:00:00"},"Q2","2017-06-30","Region 5","Operating Expense","Medical Expense","Other Medical","4.8","Reinsurance Premiums",{"$f":"'LTC Rev-Exp Region 5'!H$51","v":{"v":0,"d":"$0.00"}},{"$f":"'LTC Rev-Exp Region 5'!I$51","v":{"v":0,"d":"$0.00"}},{"$f":"'LTC Rev-Exp Region 5'!J$51","v":{"v":0,"d":"$0.00"}},{"$f":"'LTC Rev-Exp Region 5'!K$51","v":{"v":0,"d":"$0.00"}},{"v":0,"d":"$0.00"}]
["LTC",null,null,{"$f":"Jurat!I$1","v":0},{"$f":"Jurat!D$33","v":"00:00:00"},"Q2","2017-06-30","Region 5","Operating Expense","Medical Expense","Other Medical","4.9","Reinsurance Recoveries",{"$f":"'LTC Rev-Exp Region 5'!H$52","v":{"v":0,"d":"$0.00"}},{"$f":"'LTC Rev-Exp Region 5'!I$52","v":{"v":0,"d":"$0.00"}},{"$f":"'LTC Rev-Exp Region 5'!J$52","v":{"v":0,"d":"$0.00"}},{"$f":"'LTC Rev-Exp Region 5'!K$52","v":{"v":0,"d":"$0.00"}},{"v":0,"d":"$0.00"}]
["LTC",null,null,{"$f":"Jurat!I$1","v":0},{"$f":"Jurat!D$33","v":"00:00:00"},"Q2","2017-06-30","Region 5","Operating Expense","Administrative Expense","Administrative","5.1","Salaries & Benefits",{"$f":"'LTC Rev-Exp Region 5'!H$57","v":{"v":0,"d":"$0.00"}},{"$f":"'LTC Rev-Exp Region 5'!I$57","v":{"v":0,"d":"$0.00"}},{"$f":"'LTC Rev-Exp Region 5'!J$57","v":{"v":0,"d":"$0.00"}},{"$f":"'LTC Rev-Exp Region 5'!K$57","v":{"v":0,"d":"$0.00"}},{"v":0,"d":"$0.00"}]
["LTC",null,null,{"$f":"Jurat!I$1","v":0},{"$f":"Jurat!D$33","v":"00:00:00"},"Q2","2017-06-30","Region 5","Operating Expense","Administrative Expense","Administrative","5.2","Administrative Services",{"$f":"'LTC Rev-Exp Region 5'!H$58","v":{"v":0,"d":"$0.00"}},{"$f":"'LTC Rev-Exp Region 5'!I$58","v":{"v":0,"d":"$0.00"}},{"$f":"'LTC Rev-Exp Region 5'!J$58","v":{"v":0,"d":"$0.00"}},{"$f":"'LTC Rev-Exp Region 5'!K$58","v":{"v":0,"d":"$0.00"}},{"v":0,"d":"$0.00"}]
["LTC",null,null,{"$f":"Jurat!I$1","v":0},{"$f":"Jurat!D$33","v":"00:00:00"},"Q2","2017-06-30","Region 5","Operating Expense","Administrative Expense","Administrative","5.3","Information Systems",{"$f":"'LTC Rev-Exp Region 5'!H$59","v":{"v":0,"d":"$0.00"}},{"$f":"'LTC Rev-Exp Region 5'!I$59","v":{"v":0,"d":"$0.00"}},{"$f":"'LTC Rev-Exp Region 5'!J$59","v":{"v":0,"d":"$0.00"}},{"$f":"'LTC Rev-Exp Region 5'!K$59","v":{"v":0,"d":"$0.00"}},{"v":0,"d":"$0.00"}]
["LTC",null,null,{"$f":"Jurat!I$1","v":0},{"$f":"Jurat!D$33","v":"00:00:00"},"Q2","2017-06-30","Region 5","Operating Expense","Administrative Expense","Administrative","5.4","Marketing Expenses",{"$f":"'LTC Rev-Exp Region 5'!H$60","v":{"v":0,"d":"$0.00"}},{"$f":"'LTC Rev-Exp Region 5'!I$60","v":{"v":0,"d":"$0.00"}},{"$f":"'LTC Rev-Exp Region 5'!J$60","v":{"v":0,"d":"$0.00"}},{"$f":"'LTC Rev-Exp Region 5'!K$60","v":{"v":0,"d":"$0.00"}},{"v":0,"d":"$0.00"}]
["LTC",null,null,{"$f":"Jurat!I$1","v":0},{"$f":"Jurat!D$33","v":"00:00:00"},"Q2","2017-06-30","Region 5","Operating Expense","Administrative Expense","Administrative","5.5","General  Administration",{"$f":"'LTC Rev-Exp Region 5'!H$61","v":{"v":0,"d":"$0.00"}},{"$f":"'LTC Rev-Exp Region 5'!I$61","v":{"v":0,"d":"$0.00"}},{"$f":"'LTC Rev-Exp Region 5'!J$61","v":{"v":0,"d":"$0.00"}},{"$f":"'LTC Rev-Exp Region 5'!K$61","v":{"v":0,"d":"$0.00"}},{"v":0,"d":"$0.00"}]
["LTC",null,null,{"$f":"Jurat!I$1","v":0},{"$f":"Jurat!D$33","v":"00:00:00"},"Q2","2017-06-30","Region 5","Operating Expense","Administrative Expense","Administrative","5.6","Compliance/Regulatory",{"$f":"'LTC Rev-Exp Region 5'!H$62","v":{"v":0,"d":"$0.00"}},{"$f":"'LTC Rev-Exp Region 5'!I$62","v":{"v":0,"d":"$0.00"}},{"$f":"'LTC Rev-Exp Region 5'!J$62","v":{"v":0,"d":"$0.00"}},{"$f":"'LTC Rev-Exp Region 5'!K$62","v":{"v":0,"d":"$0.00"}},{"v":0,"d":"$0.00"}]
["LTC",null,null,{"$f":"Jurat!I$1","v":0},{"$f":"Jurat!D$33","v":"00:00:00"},"Q2","2017-06-30","Region 5","Operating Expense","Taxes & Fees","Taxes & Fees","6.1","State Premium Tax",{"$f":"'LTC Rev-Exp Region 5'!H$64","v":{"v":0,"d":"$0.00"}},{"v":0,"d":"$0.00"},{"v":0,"d":"$0.00"},{"v":0,"d":"$0.00"},{"v":0,"d":"$0.00"}]
["LTC",null,null,{"$f":"Jurat!I$1","v":0},{"$f":"Jurat!D$33","v":"00:00:00"},"Q2","2017-06-30","Region 5","Operating Expense","Taxes & Fees","Taxes & Fees","6.2","Department of Insurance Assessments",{"$f":"'LTC Rev-Exp Region 5'!H$65","v":{"v":0,"d":"$0.00"}},{"v":0,"d":"$0.00"},{"v":0,"d":"$0.00"},{"v":0,"d":"$0.00"},{"v":0,"d":"$0.00"}]
["LTC",null,null,{"$f":"Jurat!I$1","v":0},{"$f":"Jurat!D$33","v":"00:00:00"},"Q2","2017-06-30","Region 5","Non-Operating Expense","Income Tax Expense","Income Tax Expense","9.0","Income Tax Expense",{"$f":"'LTC Rev-Exp Region 5'!H$72","v":{"v":0,"d":"$0.00"}},{"v":0,"d":"$0.00"},{"v":0,"d":"$0.00"},{"v":0,"d":"$0.00"},{"v":0,"d":"$0.00"}]
["LTC",null,null,{"$f":"Jurat!I$1","v":0},{"$f":"Jurat!D$33","v":"00:00:00"},"Q3","2017-09-30","Region 5","Member Months","Member Months","Member Months",null,"Member Months",{"$f":"'LTC Rev-Exp Region 5'!L$9","v":{"v":0,"d":"$0.00"}},{"$f":"'LTC Rev-Exp Region 5'!M$9","v":{"v":0,"d":"$0.00"}},{"$f":"'LTC Rev-Exp Region 5'!N$9","v":{"v":0,"d":"$0.00"}},{"$f":"'LTC Rev-Exp Region 5'!O$9","v":{"v":0,"d":"$0.00"}},{"v":0,"d":"$0.00"}]
["LTC",null,null,{"$f":"Jurat!I$1","v":0},{"$f":"Jurat!D$33","v":"00:00:00"},"Q3","2017-09-30","Region 5","Operating Revenue","Capitation","Capitation",1.1,"Capitation",{"$f":"'LTC Rev-Exp Region 5'!L$11","v":{"v":0,"d":"$0.00"}},{"$f":"'LTC Rev-Exp Region 5'!M$11","v":{"v":0,"d":"$0.00"}},{"$f":"'LTC Rev-Exp Region 5'!N$11","v":{"v":0,"d":"$0.00"}},{"$f":"'LTC Rev-Exp Region 5'!O$11","v":{"v":0,"d":"$0.00"}},{"v":0,"d":"$0.00"}]
["LTC",null,null,{"$f":"Jurat!I$1","v":0},{"$f":"Jurat!D$33","v":"00:00:00"},"Q3","2017-09-30","Region 5","Operating Revenue","Capitation","NH Rate Reconciliation",1.2,"NH Rate Reconciliation",{"$f":"'LTC Rev-Exp Region 5'!L$12","v":{"v":0,"d":"$0.00"}},{"$f":"'LTC Rev-Exp Region 5'!M$12","v":{"v":0,"d":"$0.00"}},{"$f":"'LTC Rev-Exp Region 5'!N$12","v":{"v":0,"d":"$0.00"}},{"$f":"'LTC Rev-Exp Region 5'!O$12","v":{"v":0,"d":"$0.00"}},{"v":0,"d":"$0.00"}]
["LTC",null,null,{"$f":"Jurat!I$1","v":0},{"$f":"Jurat!D$33","v":"00:00:00"},"Q3","2017-09-30","Region 5","Operating Revenue","Other Revenue","Other Revenue",1.3,"Other Revenue",{"$f":"'LTC Rev-Exp Region 5'!L$13","v":{"v":0,"d":"$0.00"}},{"$f":"'LTC Rev-Exp Region 5'!M$13","v":{"v":0,"d":"$0.00"}},{"$f":"'LTC Rev-Exp Region 5'!N$13","v":{"v":0,"d":"$0.00"}},{"$f":"'LTC Rev-Exp Region 5'!O$13","v":{"v":0,"d":"$0.00"}},{"v":0,"d":"$0.00"}]
["LTC",null,null,{"$f":"Jurat!I$1","v":0},{"$f":"Jurat!D$33","v":"00:00:00"},"Q3","2017-09-30","Region 5","Operating Expense","Medical Expense","NF & Hospice","2.1","Nursing Facility Days (Medicaid)",{"$f":"'LTC Rev-Exp Region 5'!L$17","v":{"v":0,"d":"$0.00"}},{"$f":"'LTC Rev-Exp Region 5'!M$17","v":{"v":0,"d":"$0.00"}},{"$f":"'LTC Rev-Exp Region 5'!N$17","v":{"v":0,"d":"$0.00"}},{"$f":"'LTC Rev-Exp Region 5'!O$17","v":{"v":0,"d":"$0.00"}},{"v":0,"d":"$0.00"}]
["LTC",null,null,{"$f":"Jurat!I$1","v":0},{"$f":"Jurat!D$33","v":"00:00:00"},"Q3","2017-09-30","Region 5","Operating Expense","Medical Expense","NF & Hospice","2.2","Nursing Facility Days (Crossover)",{"$f":"'LTC Rev-Exp Region 5'!L$18","v":{"v":0,"d":"$0.00"}},{"$f":"'LTC Rev-Exp Region 5'!M$18","v":{"v":0,"d":"$0.00"}},{"$f":"'LTC Rev-Exp Region 5'!N$18","v":{"v":0,"d":"$0.00"}},{"$f":"'LTC Rev-Exp Region 5'!O$18","v":{"v":0,"d":"$0.00"}},{"v":0,"d":"$0.00"}]
["LTC",null,null,{"$f":"Jurat!I$1","v":0},{"$f":"Jurat!D$33","v":"00:00:00"},"Q3","2017-09-30","Region 5","Operating Expense","Medical Expense","NF & Hospice","2.3","Nursing Facility FFS (Medicaid)",{"$f":"'LTC Rev-Exp Region 5'!L$19","v":{"v":0,"d":"$0.00"}},{"$f":"'LTC Rev-Exp Region 5'!M$19","v":{"v":0,"d":"$0.00"}},{"$f":"'LTC Rev-Exp Region 5'!N$19","v":{"v":0,"d":"$0.00"}},{"$f":"'LTC Rev-Exp Region 5'!O$19","v":{"v":0,"d":"$0.00"}},{"v":0,"d":"$0.00"}]
["LTC",null,null,{"$f":"Jurat!I$1","v":0},{"$f":"Jurat!D$33","v":"00:00:00"},"Q3","2017-09-30","Region 5","Operating Expense","Medical Expense","NF & Hospice","2.4","Nursing Facility FFS (Crossover)",{"$f":"'LTC Rev-Exp Region 5'!L$20","v":{"v":0,"d":"$0.00"}},{"$f":"'LTC Rev-Exp Region 5'!M$20","v":{"v":0,"d":"$0.00"}},{"$f":"'LTC Rev-Exp Region 5'!N$20","v":{"v":0,"d":"$0.00"}},{"$f":"'LTC Rev-Exp Region 5'!O$20","v":{"v":0,"d":"$0.00"}},{"v":0,"d":"$0.00"}]
["LTC",null,null,{"$f":"Jurat!I$1","v":0},{"$f":"Jurat!D$33","v":"00:00:00"},"Q3","2017-09-30","Region 5","Operating Expense","Medical Expense","NF & Hospice","2.5","Hospice Days",{"$f":"'LTC Rev-Exp Region 5'!L$21","v":{"v":0,"d":"$0.00"}},{"$f":"'LTC Rev-Exp Region 5'!M$21","v":{"v":0,"d":"$0.00"}},{"$f":"'LTC Rev-Exp Region 5'!N$21","v":{"v":0,"d":"$0.00"}},{"$f":"'LTC Rev-Exp Region 5'!O$21","v":{"v":0,"d":"$0.00"}},{"v":0,"d":"$0.00"}]
["LTC",null,null,{"$f":"Jurat!I$1","v":0},{"$f":"Jurat!D$33","v":"00:00:00"},"Q3","2017-09-30","Region 5","Operating Expense","Medical Expense","NF & Hospice","2.6","Hospice FFS",{"$f":"'LTC Rev-Exp Region 5'!L$22","v":{"v":0,"d":"$0.00"}},{"$f":"'LTC Rev-Exp Region 5'!M$22","v":{"v":0,"d":"$0.00"}},{"$f":"'LTC Rev-Exp Region 5'!N$22","v":{"v":0,"d":"$0.00"}},{"$f":"'LTC Rev-Exp Region 5'!O$22","v":{"v":0,"d":"$0.00"}},{"v":0,"d":"$0.00"}]
["LTC",null,null,{"$f":"Jurat!I$1","v":0},{"$f":"Jurat!D$33","v":"00:00:00"},"Q3","2017-09-30","Region 5","Operating Expense","Medical Expense","NF & Hospice","2.7","Ending IBNP for NF & Hospice",{"$f":"'LTC Rev-Exp Region 5'!L$23","v":{"v":0,"d":"$0.00"}},{"$f":"'LTC Rev-Exp Region 5'!M$23","v":{"v":0,"d":"$0.00"}},{"$f":"'LTC Rev-Exp Region 5'!N$23","v":{"v":0,"d":"$0.00"}},{"$f":"'LTC Rev-Exp Region 5'!O$23","v":{"v":0,"d":"$0.00"}},{"v":0,"d":"$0.00"}]
["LTC",null,null,{"$f":"Jurat!I$1","v":0},{"$f":"Jurat!D$33","v":"00:00:00"},"Q3","2017-09-30","Region 5","Operating Expense","Medical Expense","NF & Hospice","2.8","NF & Hospice Subcapitated",{"$f":"'LTC Rev-Exp Region 5'!L$24","v":{"v":0,"d":"$0.00"}},{"$f":"'LTC Rev-Exp Region 5'!M$24","v":{"v":0,"d":"$0.00"}},{"$f":"'LTC Rev-Exp Region 5'!N$24","v":{"v":0,"d":"$0.00"}},{"$f":"'LTC Rev-Exp Region 5'!O$24","v":{"v":0,"d":"$0.00"}},{"v":0,"d":"$0.00"}]
["LTC",null,null,{"$f":"Jurat!I$1","v":0},{"$f":"Jurat!D$33","v":"00:00:00"},"Q3","2017-09-30","Region 5","Operating Expense","Medical Expense","NF & Hospice","2.9","NF & Hospice Settlements",{"$f":"'LTC Rev-Exp Region 5'!L$25","v":{"v":0,"d":"$0.00"}},{"$f":"'LTC Rev-Exp Region 5'!M$25","v":{"v":0,"d":"$0.00"}},{"$f":"'LTC Rev-Exp Region 5'!N$25","v":{"v":0,"d":"$0.00"}},{"$f":"'LTC Rev-Exp Region 5'!O$25","v":{"v":0,"d":"$0.00"}},{"v":0,"d":"$0.00"}]
["LTC",null,null,{"$f":"Jurat!I$1","v":0},{"$f":"Jurat!D$33","v":"00:00:00"},"Q3","2017-09-30","Region 5","Operating Expense","Medical Expense","LTC Services","2.11","Assisted Living FFS",{"$f":"'LTC Rev-Exp Region 5'!L$27","v":{"v":0,"d":"$0.00"}},{"$f":"'LTC Rev-Exp Region 5'!M$27","v":{"v":0,"d":"$0.00"}},{"$f":"'LTC Rev-Exp Region 5'!N$27","v":{"v":0,"d":"$0.00"}},{"$f":"'LTC Rev-Exp Region 5'!O$27","v":{"v":0,"d":"$0.00"}},{"v":0,"d":"$0.00"}]
["LTC",null,null,{"$f":"Jurat!I$1","v":0},{"$f":"Jurat!D$33","v":"00:00:00"},"Q3","2017-09-30","Region 5","Operating Expense","Medical Expense","LTC Services","2.12","Home Health FFS",{"$f":"'LTC Rev-Exp Region 5'!L$28","v":{"v":0,"d":"$0.00"}},{"$f":"'LTC Rev-Exp Region 5'!M$28","v":{"v":0,"d":"$0.00"}},{"$f":"'LTC Rev-Exp Region 5'!N$28","v":{"v":0,"d":"$0.00"}},{"$f":"'LTC Rev-Exp Region 5'!O$28","v":{"v":0,"d":"$0.00"}},{"v":0,"d":"$0.00"}]
["LTC",null,null,{"$f":"Jurat!I$1","v":0},{"$f":"Jurat!D$33","v":"00:00:00"},"Q3","2017-09-30","Region 5","Operating Expense","Medical Expense","LTC Services","2.13","Medical Equipment/Supplies FFS",{"$f":"'LTC Rev-Exp Region 5'!L$29","v":{"v":0,"d":"$0.00"}},{"$f":"'LTC Rev-Exp Region 5'!M$29","v":{"v":0,"d":"$0.00"}},{"$f":"'LTC Rev-Exp Region 5'!N$29","v":{"v":0,"d":"$0.00"}},{"$f":"'LTC Rev-Exp Region 5'!O$29","v":{"v":0,"d":"$0.00"}},{"v":0,"d":"$0.00"}]
["LTC",null,null,{"$f":"Jurat!I$1","v":0},{"$f":"Jurat!D$33","v":"00:00:00"},"Q3","2017-09-30","Region 5","Operating Expense","Medical Expense","LTC Services","2.14","Therapy FFS",{"$f":"'LTC Rev-Exp Region 5'!L$30","v":{"v":0,"d":"$0.00"}},{"$f":"'LTC Rev-Exp Region 5'!M$30","v":{"v":0,"d":"$0.00"}},{"$f":"'LTC Rev-Exp Region 5'!N$30","v":{"v":0,"d":"$0.00"}},{"$f":"'LTC Rev-Exp Region 5'!O$30","v":{"v":0,"d":"$0.00"}},{"v":0,"d":"$0.00"}]
["LTC",null,null,{"$f":"Jurat!I$1","v":0},{"$f":"Jurat!D$33","v":"00:00:00"},"Q3","2017-09-30","Region 5","Operating Expense","Medical Expense","LTC Services","2.15","Transportation FFS",{"$f":"'LTC Rev-Exp Region 5'!L$31","v":{"v":0,"d":"$0.00"}},{"$f":"'LTC Rev-Exp Region 5'!M$31","v":{"v":0,"d":"$0.00"}},{"$f":"'LTC Rev-Exp Region 5'!N$31","v":{"v":0,"d":"$0.00"}},{"$f":"'LTC Rev-Exp Region 5'!O$31","v":{"v":0,"d":"$0.00"}},{"v":0,"d":"$0.00"}]
["LTC",null,null,{"$f":"Jurat!I$1","v":0},{"$f":"Jurat!D$33","v":"00:00:00"},"Q3","2017-09-30","Region 5","Operating Expense","Medical Expense","LTC Services","2.16","Case Management FFS (Plan Provided)",{"$f":"'LTC Rev-Exp Region 5'!L$32","v":{"v":0,"d":"$0.00"}},{"$f":"'LTC Rev-Exp Region 5'!M$32","v":{"v":0,"d":"$0.00"}},{"$f":"'LTC Rev-Exp Region 5'!N$32","v":{"v":0,"d":"$0.00"}},{"$f":"'LTC Rev-Exp Region 5'!O$32","v":{"v":0,"d":"$0.00"}},{"v":0,"d":"$0.00"}]
["LTC",null,null,{"$f":"Jurat!I$1","v":0},{"$f":"Jurat!D$33","v":"00:00:00"},"Q3","2017-09-30","Region 5","Operating Expense","Medical Expense","LTC Services","2.17","Case Management FF (Non-Plan Provided)",{"$f":"'LTC Rev-Exp Region 5'!L$33","v":{"v":0,"d":"$0.00"}},{"$f":"'LTC Rev-Exp Region 5'!M$33","v":{"v":0,"d":"$0.00"}},{"$f":"'LTC Rev-Exp Region 5'!N$33","v":{"v":0,"d":"$0.00"}},{"$f":"'LTC Rev-Exp Region 5'!O$33","v":{"v":0,"d":"$0.00"}},{"v":0,"d":"$0.00"}]
["LTC",null,null,{"$f":"Jurat!I$1","v":0},{"$f":"Jurat!D$33","v":"00:00:00"},"Q3","2017-09-30","Region 5","Operating Expense","Medical Expense","LTC Services","2.18","HCBS FFS",{"$f":"'LTC Rev-Exp Region 5'!L$34","v":{"v":0,"d":"$0.00"}},{"$f":"'LTC Rev-Exp Region 5'!M$34","v":{"v":0,"d":"$0.00"}},{"$f":"'LTC Rev-Exp Region 5'!N$34","v":{"v":0,"d":"$0.00"}},{"$f":"'LTC Rev-Exp Region 5'!O$34","v":{"v":0,"d":"$0.00"}},{"v":0,"d":"$0.00"}]
["LTC",null,null,{"$f":"Jurat!I$1","v":0},{"$f":"Jurat!D$33","v":"00:00:00"},"Q3","2017-09-30","Region 5","Operating Expense","Medical Expense","LTC Services","2.19","Subcapitated LTC Services",{"$f":"'LTC Rev-Exp Region 5'!L$35","v":{"v":0,"d":"$0.00"}},{"$f":"'LTC Rev-Exp Region 5'!M$35","v":{"v":0,"d":"$0.00"}},{"$f":"'LTC Rev-Exp Region 5'!N$35","v":{"v":0,"d":"$0.00"}},{"$f":"'LTC Rev-Exp Region 5'!O$35","v":{"v":0,"d":"$0.00"}},{"v":0,"d":"$0.00"}]
["LTC",null,null,{"$f":"Jurat!I$1","v":0},{"$f":"Jurat!D$33","v":"00:00:00"},"Q3","2017-09-30","Region 5","Operating Expense","Medical Expense","LTC Services","2.20","Ending IBNP for Long Term Care Services",{"$f":"'LTC Rev-Exp Region 5'!L$36","v":{"v":0,"d":"$0.00"}},{"$f":"'LTC Rev-Exp Region 5'!M$36","v":{"v":0,"d":"$0.00"}},{"$f":"'LTC Rev-Exp Region 5'!N$36","v":{"v":0,"d":"$0.00"}},{"$f":"'LTC Rev-Exp Region 5'!O$36","v":{"v":0,"d":"$0.00"}},{"v":0,"d":"$0.00"}]
["LTC",null,null,{"$f":"Jurat!I$1","v":0},{"$f":"Jurat!D$33","v":"00:00:00"},"Q3","2017-09-30","Region 5","Operating Expense","Medical Expense","LTC Services","2.21","LTC Services Settlements",{"$f":"'LTC Rev-Exp Region 5'!L$37","v":{"v":0,"d":"$0.00"}},{"$f":"'LTC Rev-Exp Region 5'!M$37","v":{"v":0,"d":"$0.00"}},{"$f":"'LTC Rev-Exp Region 5'!N$37","v":{"v":0,"d":"$0.00"}},{"$f":"'LTC Rev-Exp Region 5'!O$37","v":{"v":0,"d":"$0.00"}},{"v":0,"d":"$0.00"}]
["LTC",null,null,{"$f":"Jurat!I$1","v":0},{"$f":"Jurat!D$33","v":"00:00:00"},"Q3","2017-09-30","Region 5","Operating Expense","Medical Expense","Expanded Benefits","3.1","Expanded Benefits FFS",{"$f":"'LTC Rev-Exp Region 5'!L$39","v":{"v":0,"d":"$0.00"}},{"$f":"'LTC Rev-Exp Region 5'!M$39","v":{"v":0,"d":"$0.00"}},{"$f":"'LTC Rev-Exp Region 5'!N$39","v":{"v":0,"d":"$0.00"}},{"$f":"'LTC Rev-Exp Region 5'!O$39","v":{"v":0,"d":"$0.00"}},{"v":0,"d":"$0.00"}]
["LTC",null,null,{"$f":"Jurat!I$1","v":0},{"$f":"Jurat!D$33","v":"00:00:00"},"Q3","2017-09-30","Region 5","Operating Expense","Medical Expense","Expanded Benefits","3.2","Expanded Benefits Subcapitation",{"$f":"'LTC Rev-Exp Region 5'!L$40","v":{"v":0,"d":"$0.00"}},{"$f":"'LTC Rev-Exp Region 5'!M$40","v":{"v":0,"d":"$0.00"}},{"$f":"'LTC Rev-Exp Region 5'!N$40","v":{"v":0,"d":"$0.00"}},{"$f":"'LTC Rev-Exp Region 5'!O$40","v":{"v":0,"d":"$0.00"}},{"v":0,"d":"$0.00"}]
["LTC",null,null,{"$f":"Jurat!I$1","v":0},{"$f":"Jurat!D$33","v":"00:00:00"},"Q3","2017-09-30","Region 5","Operating Expense","Medical Expense","Expanded Benefits","3.3","Ending IBNP for Expanded Benefits",{"$f":"'LTC Rev-Exp Region 5'!L$41","v":{"v":0,"d":"$0.00"}},{"$f":"'LTC Rev-Exp Region 5'!M$41","v":{"v":0,"d":"$0.00"}},{"$f":"'LTC Rev-Exp Region 5'!N$41","v":{"v":0,"d":"$0.00"}},{"$f":"'LTC Rev-Exp Region 5'!O$41","v":{"v":0,"d":"$0.00"}},{"v":0,"d":"$0.00"}]
["LTC",null,null,{"$f":"Jurat!I$1","v":0},{"$f":"Jurat!D$33","v":"00:00:00"},"Q3","2017-09-30","Region 5","Operating Expense","Medical Expense","Expanded Benefits","3.4","Expanded Benefits Settlements",{"$f":"'LTC Rev-Exp Region 5'!L$42","v":{"v":0,"d":"$0.00"}},{"$f":"'LTC Rev-Exp Region 5'!M$42","v":{"v":0,"d":"$0.00"}},{"$f":"'LTC Rev-Exp Region 5'!N$42","v":{"v":0,"d":"$0.00"}},{"$f":"'LTC Rev-Exp Region 5'!O$42","v":{"v":0,"d":"$0.00"}},{"v":0,"d":"$0.00"}]
["LTC",null,null,{"$f":"Jurat!I$1","v":0},{"$f":"Jurat!D$33","v":"00:00:00"},"Q3","2017-09-30","Region 5","Operating Expense","Medical Expense","Other Medical","4.5","TPL & Fraud/Abuse Recoveries",{"$f":"'LTC Rev-Exp Region 5'!L$48","v":{"v":0,"d":"$0.00"}},{"$f":"'LTC Rev-Exp Region 5'!M$48","v":{"v":0,"d":"$0.00"}},{"$f":"'LTC Rev-Exp Region 5'!N$48","v":{"v":0,"d":"$0.00"}},{"$f":"'LTC Rev-Exp Region 5'!O$48","v":{"v":0,"d":"$0.00"}},{"v":0,"d":"$0.00"}]
["LTC",null,null,{"$f":"Jurat!I$1","v":0},{"$f":"Jurat!D$33","v":"00:00:00"},"Q3","2017-09-30","Region 5","Operating Expense","Medical Expense","Other Medical","4.6.1","Premium Deficiency Reserve",{"$f":"'LTC Rev-Exp Region 5'!L$49","v":{"v":0,"d":"$0.00"}},{"$f":"'LTC Rev-Exp Region 5'!M$49","v":{"v":0,"d":"$0.00"}},{"$f":"'LTC Rev-Exp Region 5'!N$49","v":{"v":0,"d":"$0.00"}},{"$f":"'LTC Rev-Exp Region 5'!O$49","v":{"v":0,"d":"$0.00"}},{"v":0,"d":"$0.00"}]
["LTC",null,null,{"$f":"Jurat!I$1","v":0},{"$f":"Jurat!D$33","v":"00:00:00"},"Q3","2017-09-30","Region 5","Operating Expense","Medical Expense","Other Medical","4.8","Reinsurance Premiums",{"$f":"'LTC Rev-Exp Region 5'!L$51","v":{"v":0,"d":"$0.00"}},{"$f":"'LTC Rev-Exp Region 5'!M$51","v":{"v":0,"d":"$0.00"}},{"$f":"'LTC Rev-Exp Region 5'!N$51","v":{"v":0,"d":"$0.00"}},{"$f":"'LTC Rev-Exp Region 5'!O$51","v":{"v":0,"d":"$0.00"}},{"v":0,"d":"$0.00"}]
["LTC",null,null,{"$f":"Jurat!I$1","v":0},{"$f":"Jurat!D$33","v":"00:00:00"},"Q3","2017-09-30","Region 5","Operating Expense","Medical Expense","Other Medical","4.9","Reinsurance Recoveries",{"$f":"'LTC Rev-Exp Region 5'!L$52","v":{"v":0,"d":"$0.00"}},{"$f":"'LTC Rev-Exp Region 5'!M$52","v":{"v":0,"d":"$0.00"}},{"$f":"'LTC Rev-Exp Region 5'!N$52","v":{"v":0,"d":"$0.00"}},{"$f":"'LTC Rev-Exp Region 5'!O$52","v":{"v":0,"d":"$0.00"}},{"v":0,"d":"$0.00"}]
["LTC",null,null,{"$f":"Jurat!I$1","v":0},{"$f":"Jurat!D$33","v":"00:00:00"},"Q3","2017-09-30","Region 5","Operating Expense","Administrative Expense","Administrative","5.1","Salaries & Benefits",{"$f":"'LTC Rev-Exp Region 5'!L$57","v":{"v":0,"d":"$0.00"}},{"$f":"'LTC Rev-Exp Region 5'!M$57","v":{"v":0,"d":"$0.00"}},{"$f":"'LTC Rev-Exp Region 5'!N$57","v":{"v":0,"d":"$0.00"}},{"$f":"'LTC Rev-Exp Region 5'!O$57","v":{"v":0,"d":"$0.00"}},{"v":0,"d":"$0.00"}]
["LTC",null,null,{"$f":"Jurat!I$1","v":0},{"$f":"Jurat!D$33","v":"00:00:00"},"Q3","2017-09-30","Region 5","Operating Expense","Administrative Expense","Administrative","5.2","Administrative Services",{"$f":"'LTC Rev-Exp Region 5'!L$58","v":{"v":0,"d":"$0.00"}},{"$f":"'LTC Rev-Exp Region 5'!M$58","v":{"v":0,"d":"$0.00"}},{"$f":"'LTC Rev-Exp Region 5'!N$58","v":{"v":0,"d":"$0.00"}},{"$f":"'LTC Rev-Exp Region 5'!O$58","v":{"v":0,"d":"$0.00"}},{"v":0,"d":"$0.00"}]
["LTC",null,null,{"$f":"Jurat!I$1","v":0},{"$f":"Jurat!D$33","v":"00:00:00"},"Q3","2017-09-30","Region 5","Operating Expense","Administrative Expense","Administrative","5.3","Information Systems",{"$f":"'LTC Rev-Exp Region 5'!L$59","v":{"v":0,"d":"$0.00"}},{"$f":"'LTC Rev-Exp Region 5'!M$59","v":{"v":0,"d":"$0.00"}},{"$f":"'LTC Rev-Exp Region 5'!N$59","v":{"v":0,"d":"$0.00"}},{"$f":"'LTC Rev-Exp Region 5'!O$59","v":{"v":0,"d":"$0.00"}},{"v":0,"d":"$0.00"}]
["LTC",null,null,{"$f":"Jurat!I$1","v":0},{"$f":"Jurat!D$33","v":"00:00:00"},"Q3","2017-09-30","Region 5","Operating Expense","Administrative Expense","Administrative","5.4","Marketing Expenses",{"$f":"'LTC Rev-Exp Region 5'!L$60","v":{"v":0,"d":"$0.00"}},{"$f":"'LTC Rev-Exp Region 5'!M$60","v":{"v":0,"d":"$0.00"}},{"$f":"'LTC Rev-Exp Region 5'!N$60","v":{"v":0,"d":"$0.00"}},{"$f":"'LTC Rev-Exp Region 5'!O$60","v":{"v":0,"d":"$0.00"}},{"v":0,"d":"$0.00"}]
["LTC",null,null,{"$f":"Jurat!I$1","v":0},{"$f":"Jurat!D$33","v":"00:00:00"},"Q3","2017-09-30","Region 5","Operating Expense","Administrative Expense","Administrative","5.5","General  Administration",{"$f":"'LTC Rev-Exp Region 5'!L$61","v":{"v":0,"d":"$0.00"}},{"$f":"'LTC Rev-Exp Region 5'!M$61","v":{"v":0,"d":"$0.00"}},{"$f":"'LTC Rev-Exp Region 5'!N$61","v":{"v":0,"d":"$0.00"}},{"$f":"'LTC Rev-Exp Region 5'!O$61","v":{"v":0,"d":"$0.00"}},{"v":0,"d":"$0.00"}]
["LTC",null,null,{"$f":"Jurat!I$1","v":0},{"$f":"Jurat!D$33","v":"00:00:00"},"Q3","2017-09-30","Region 5","Operating Expense","Administrative Expense","Administrative","5.6","Compliance/Regulatory",{"$f":"'LTC Rev-Exp Region 5'!L$62","v":{"v":0,"d":"$0.00"}},{"$f":"'LTC Rev-Exp Region 5'!M$62","v":{"v":0,"d":"$0.00"}},{"$f":"'LTC Rev-Exp Region 5'!N$62","v":{"v":0,"d":"$0.00"}},{"$f":"'LTC Rev-Exp Region 5'!O$62","v":{"v":0,"d":"$0.00"}},{"v":0,"d":"$0.00"}]
["LTC",null,null,{"$f":"Jurat!I$1","v":0},{"$f":"Jurat!D$33","v":"00:00:00"},"Q3","2017-09-30","Region 5","Operating Expense","Taxes & Fees","Taxes & Fees","6.1","State Premium Tax",{"$f":"'LTC Rev-Exp Region 5'!L$64","v":{"v":0,"d":"$0.00"}},{"v":0,"d":"$0.00"},{"v":0,"d":"$0.00"},{"v":0,"d":"$0.00"},{"v":0,"d":"$0.00"}]
["LTC",null,null,{"$f":"Jurat!I$1","v":0},{"$f":"Jurat!D$33","v":"00:00:00"},"Q3","2017-09-30","Region 5","Operating Expense","Taxes & Fees","Taxes & Fees","6.2","Department of Insurance Assessments",{"$f":"'LTC Rev-Exp Region 5'!L$65","v":{"v":0,"d":"$0.00"}},{"v":0,"d":"$0.00"},{"v":0,"d":"$0.00"},{"v":0,"d":"$0.00"},{"v":0,"d":"$0.00"}]
["LTC",null,null,{"$f":"Jurat!I$1","v":0},{"$f":"Jurat!D$33","v":"00:00:00"},"Q3","2017-09-30","Region 5","Non-Operating Expense","Income Tax Expense","Income Tax Expense","9.0","Income Tax Expense",{"$f":"'LTC Rev-Exp Region 5'!L$72","v":{"v":0,"d":"$0.00"}},{"v":0,"d":"$0.00"},{"v":0,"d":"$0.00"},{"v":0,"d":"$0.00"},{"v":0,"d":"$0.00"}]
["LTC",null,null,{"$f":"Jurat!I$1","v":0},{"$f":"Jurat!D$33","v":"00:00:00"},"Q4","2017-12-31","Region 5","Member Months","Member Months","Member Months",null,"Member Months",{"$f":"'LTC Rev-Exp Region 5'!P$9","v":{"v":0,"d":"$0.00"}},{"$f":"'LTC Rev-Exp Region 5'!Q$9","v":{"v":0,"d":"$0.00"}},{"$f":"'LTC Rev-Exp Region 5'!R$9","v":{"v":0,"d":"$0.00"}},{"$f":"'LTC Rev-Exp Region 5'!S$9","v":{"v":0,"d":"$0.00"}},{"v":0,"d":"$0.00"}]
["LTC",null,null,{"$f":"Jurat!I$1","v":0},{"$f":"Jurat!D$33","v":"00:00:00"},"Q4","2017-12-31","Region 5","Operating Revenue","Capitation","Capitation",1.1,"Capitation",{"$f":"'LTC Rev-Exp Region 5'!P$11","v":{"v":0,"d":"$0.00"}},{"$f":"'LTC Rev-Exp Region 5'!Q$11","v":{"v":0,"d":"$0.00"}},{"$f":"'LTC Rev-Exp Region 5'!R$11","v":{"v":0,"d":"$0.00"}},{"$f":"'LTC Rev-Exp Region 5'!S$11","v":{"v":0,"d":"$0.00"}},{"v":0,"d":"$0.00"}]
["LTC",null,null,{"$f":"Jurat!I$1","v":0},{"$f":"Jurat!D$33","v":"00:00:00"},"Q4","2017-12-31","Region 5","Operating Revenue","Capitation","NH Rate Reconciliation",1.2,"NH Rate Reconciliation",{"$f":"'LTC Rev-Exp Region 5'!P$12","v":{"v":0,"d":"$0.00"}},{"$f":"'LTC Rev-Exp Region 5'!Q$12","v":{"v":0,"d":"$0.00"}},{"$f":"'LTC Rev-Exp Region 5'!R$12","v":{"v":0,"d":"$0.00"}},{"$f":"'LTC Rev-Exp Region 5'!S$12","v":{"v":0,"d":"$0.00"}},{"v":0,"d":"$0.00"}]
["LTC",null,null,{"$f":"Jurat!I$1","v":0},{"$f":"Jurat!D$33","v":"00:00:00"},"Q4","2017-12-31","Region 5","Operating Revenue","Other Revenue","Other Revenue",1.3,"Other Revenue",{"$f":"'LTC Rev-Exp Region 5'!P$13","v":{"v":0,"d":"$0.00"}},{"$f":"'LTC Rev-Exp Region 5'!Q$13","v":{"v":0,"d":"$0.00"}},{"$f":"'LTC Rev-Exp Region 5'!R$13","v":{"v":0,"d":"$0.00"}},{"$f":"'LTC Rev-Exp Region 5'!S$13","v":{"v":0,"d":"$0.00"}},{"v":0,"d":"$0.00"}]
["LTC",null,null,{"$f":"Jurat!I$1","v":0},{"$f":"Jurat!D$33","v":"00:00:00"},"Q4","2017-12-31","Region 5","Operating Expense","Medical Expense","NF & Hospice","2.1","Nursing Facility Days (Medicaid)",{"$f":"'LTC Rev-Exp Region 5'!P$17","v":{"v":0,"d":"$0.00"}},{"$f":"'LTC Rev-Exp Region 5'!Q$17","v":{"v":0,"d":"$0.00"}},{"$f":"'LTC Rev-Exp Region 5'!R$17","v":{"v":0,"d":"$0.00"}},{"$f":"'LTC Rev-Exp Region 5'!S$17","v":{"v":0,"d":"$0.00"}},{"v":0,"d":"$0.00"}]
["LTC",null,null,{"$f":"Jurat!I$1","v":0},{"$f":"Jurat!D$33","v":"00:00:00"},"Q4","2017-12-31","Region 5","Operating Expense","Medical Expense","NF & Hospice","2.2","Nursing Facility Days (Crossover)",{"$f":"'LTC Rev-Exp Region 5'!P$18","v":{"v":0,"d":"$0.00"}},{"$f":"'LTC Rev-Exp Region 5'!Q$18","v":{"v":0,"d":"$0.00"}},{"$f":"'LTC Rev-Exp Region 5'!R$18","v":{"v":0,"d":"$0.00"}},{"$f":"'LTC Rev-Exp Region 5'!S$18","v":{"v":0,"d":"$0.00"}},{"v":0,"d":"$0.00"}]
["LTC",null,null,{"$f":"Jurat!I$1","v":0},{"$f":"Jurat!D$33","v":"00:00:00"},"Q4","2017-12-31","Region 5","Operating Expense","Medical Expense","NF & Hospice","2.3","Nursing Facility FFS (Medicaid)",{"$f":"'LTC Rev-Exp Region 5'!P$19","v":{"v":0,"d":"$0.00"}},{"$f":"'LTC Rev-Exp Region 5'!Q$19","v":{"v":0,"d":"$0.00"}},{"$f":"'LTC Rev-Exp Region 5'!R$19","v":{"v":0,"d":"$0.00"}},{"$f":"'LTC Rev-Exp Region 5'!S$19","v":{"v":0,"d":"$0.00"}},{"v":0,"d":"$0.00"}]
["LTC",null,null,{"$f":"Jurat!I$1","v":0},{"$f":"Jurat!D$33","v":"00:00:00"},"Q4","2017-12-31","Region 5","Operating Expense","Medical Expense","NF & Hospice","2.4","Nursing Facility FFS (Crossover)",{"$f":"'LTC Rev-Exp Region 5'!P$20","v":{"v":0,"d":"$0.00"}},{"$f":"'LTC Rev-Exp Region 5'!Q$20","v":{"v":0,"d":"$0.00"}},{"$f":"'LTC Rev-Exp Region 5'!R$20","v":{"v":0,"d":"$0.00"}},{"$f":"'LTC Rev-Exp Region 5'!S$20","v":{"v":0,"d":"$0.00"}},{"v":0,"d":"$0.00"}]
["LTC",null,null,{"$f":"Jurat!I$1","v":0},{"$f":"Jurat!D$33","v":"00:00:00"},"Q4","2017-12-31","Region 5","Operating Expense","Medical Expense","NF & Hospice","2.5","Hospice Days",{"$f":"'LTC Rev-Exp Region 5'!P$21","v":{"v":0,"d":"$0.00"}},{"$f":"'LTC Rev-Exp Region 5'!Q$21","v":{"v":0,"d":"$0.00"}},{"$f":"'LTC Rev-Exp Region 5'!R$21","v":{"v":0,"d":"$0.00"}},{"$f":"'LTC Rev-Exp Region 5'!S$21","v":{"v":0,"d":"$0.00"}},{"v":0,"d":"$0.00"}]
["LTC",null,null,{"$f":"Jurat!I$1","v":0},{"$f":"Jurat!D$33","v":"00:00:00"},"Q4","2017-12-31","Region 5","Operating Expense","Medical Expense","NF & Hospice","2.6","Hospice FFS",{"$f":"'LTC Rev-Exp Region 5'!P$22","v":{"v":0,"d":"$0.00"}},{"$f":"'LTC Rev-Exp Region 5'!Q$22","v":{"v":0,"d":"$0.00"}},{"$f":"'LTC Rev-Exp Region 5'!R$22","v":{"v":0,"d":"$0.00"}},{"$f":"'LTC Rev-Exp Region 5'!S$22","v":{"v":0,"d":"$0.00"}},{"v":0,"d":"$0.00"}]
["LTC",null,null,{"$f":"Jurat!I$1","v":0},{"$f":"Jurat!D$33","v":"00:00:00"},"Q4","2017-12-31","Region 5","Operating Expense","Medical Expense","NF & Hospice","2.7","Ending IBNP for NF & Hospice",{"$f":"'LTC Rev-Exp Region 5'!P$23","v":{"v":0,"d":"$0.00"}},{"$f":"'LTC Rev-Exp Region 5'!Q$23","v":{"v":0,"d":"$0.00"}},{"$f":"'LTC Rev-Exp Region 5'!R$23","v":{"v":0,"d":"$0.00"}},{"$f":"'LTC Rev-Exp Region 5'!S$23","v":{"v":0,"d":"$0.00"}},{"v":0,"d":"$0.00"}]
["LTC",null,null,{"$f":"Jurat!I$1","v":0},{"$f":"Jurat!D$33","v":"00:00:00"},"Q4","2017-12-31","Region 5","Operating Expense","Medical Expense","NF & Hospice","2.8","NF & Hospice Subcapitated",{"$f":"'LTC Rev-Exp Region 5'!P$24","v":{"v":0,"d":"$0.00"}},{"$f":"'LTC Rev-Exp Region 5'!Q$24","v":{"v":0,"d":"$0.00"}},{"$f":"'LTC Rev-Exp Region 5'!R$24","v":{"v":0,"d":"$0.00"}},{"$f":"'LTC Rev-Exp Region 5'!S$24","v":{"v":0,"d":"$0.00"}},{"v":0,"d":"$0.00"}]
["LTC",null,null,{"$f":"Jurat!I$1","v":0},{"$f":"Jurat!D$33","v":"00:00:00"},"Q4","2017-12-31","Region 5","Operating Expense","Medical Expense","NF & Hospice","2.9","NF & Hospice Settlements",{"$f":"'LTC Rev-Exp Region 5'!P$25","v":{"v":0,"d":"$0.00"}},{"$f":"'LTC Rev-Exp Region 5'!Q$25","v":{"v":0,"d":"$0.00"}},{"$f":"'LTC Rev-Exp Region 5'!R$25","v":{"v":0,"d":"$0.00"}},{"$f":"'LTC Rev-Exp Region 5'!S$25","v":{"v":0,"d":"$0.00"}},{"v":0,"d":"$0.00"}]
["LTC",null,null,{"$f":"Jurat!I$1","v":0},{"$f":"Jurat!D$33","v":"00:00:00"},"Q4","2017-12-31","Region 5","Operating Expense","Medical Expense","LTC Services","2.11","Assisted Living FFS",{"$f":"'LTC Rev-Exp Region 5'!P$27","v":{"v":0,"d":"$0.00"}},{"$f":"'LTC Rev-Exp Region 5'!Q$27","v":{"v":0,"d":"$0.00"}},{"$f":"'LTC Rev-Exp Region 5'!R$27","v":{"v":0,"d":"$0.00"}},{"$f":"'LTC Rev-Exp Region 5'!S$27","v":{"v":0,"d":"$0.00"}},{"v":0,"d":"$0.00"}]
["LTC",null,null,{"$f":"Jurat!I$1","v":0},{"$f":"Jurat!D$33","v":"00:00:00"},"Q4","2017-12-31","Region 5","Operating Expense","Medical Expense","LTC Services","2.12","Home Health FFS",{"$f":"'LTC Rev-Exp Region 5'!P$28","v":{"v":0,"d":"$0.00"}},{"$f":"'LTC Rev-Exp Region 5'!Q$28","v":{"v":0,"d":"$0.00"}},{"$f":"'LTC Rev-Exp Region 5'!R$28","v":{"v":0,"d":"$0.00"}},{"$f":"'LTC Rev-Exp Region 5'!S$28","v":{"v":0,"d":"$0.00"}},{"v":0,"d":"$0.00"}]
["LTC",null,null,{"$f":"Jurat!I$1","v":0},{"$f":"Jurat!D$33","v":"00:00:00"},"Q4","2017-12-31","Region 5","Operating Expense","Medical Expense","LTC Services","2.13","Medical Equipment/Supplies FFS",{"$f":"'LTC Rev-Exp Region 5'!P$29","v":{"v":0,"d":"$0.00"}},{"$f":"'LTC Rev-Exp Region 5'!Q$29","v":{"v":0,"d":"$0.00"}},{"$f":"'LTC Rev-Exp Region 5'!R$29","v":{"v":0,"d":"$0.00"}},{"$f":"'LTC Rev-Exp Region 5'!S$29","v":{"v":0,"d":"$0.00"}},{"v":0,"d":"$0.00"}]
["LTC",null,null,{"$f":"Jurat!I$1","v":0},{"$f":"Jurat!D$33","v":"00:00:00"},"Q4","2017-12-31","Region 5","Operating Expense","Medical Expense","LTC Services","2.14","Therapy FFS",{"$f":"'LTC Rev-Exp Region 5'!P$30","v":{"v":0,"d":"$0.00"}},{"$f":"'LTC Rev-Exp Region 5'!Q$30","v":{"v":0,"d":"$0.00"}},{"$f":"'LTC Rev-Exp Region 5'!R$30","v":{"v":0,"d":"$0.00"}},{"$f":"'LTC Rev-Exp Region 5'!S$30","v":{"v":0,"d":"$0.00"}},{"v":0,"d":"$0.00"}]
["LTC",null,null,{"$f":"Jurat!I$1","v":0},{"$f":"Jurat!D$33","v":"00:00:00"},"Q4","2017-12-31","Region 5","Operating Expense","Medical Expense","LTC Services","2.15","Transportation FFS",{"$f":"'LTC Rev-Exp Region 5'!P$31","v":{"v":0,"d":"$0.00"}},{"$f":"'LTC Rev-Exp Region 5'!Q$31","v":{"v":0,"d":"$0.00"}},{"$f":"'LTC Rev-Exp Region 5'!R$31","v":{"v":0,"d":"$0.00"}},{"$f":"'LTC Rev-Exp Region 5'!S$31","v":{"v":0,"d":"$0.00"}},{"v":0,"d":"$0.00"}]
["LTC",null,null,{"$f":"Jurat!I$1","v":0},{"$f":"Jurat!D$33","v":"00:00:00"},"Q4","2017-12-31","Region 5","Operating Expense","Medical Expense","LTC Services","2.16","Case Management FFS (Plan Provided)",{"$f":"'LTC Rev-Exp Region 5'!P$32","v":{"v":0,"d":"$0.00"}},{"$f":"'LTC Rev-Exp Region 5'!Q$32","v":{"v":0,"d":"$0.00"}},{"$f":"'LTC Rev-Exp Region 5'!R$32","v":{"v":0,"d":"$0.00"}},{"$f":"'LTC Rev-Exp Region 5'!S$32","v":{"v":0,"d":"$0.00"}},{"v":0,"d":"$0.00"}]
["LTC",null,null,{"$f":"Jurat!I$1","v":0},{"$f":"Jurat!D$33","v":"00:00:00"},"Q4","2017-12-31","Region 5","Operating Expense","Medical Expense","LTC Services","2.17","Case Management FF (Non-Plan Provided)",{"$f":"'LTC Rev-Exp Region 5'!P$33","v":{"v":0,"d":"$0.00"}},{"$f":"'LTC Rev-Exp Region 5'!Q$33","v":{"v":0,"d":"$0.00"}},{"$f":"'LTC Rev-Exp Region 5'!R$33","v":{"v":0,"d":"$0.00"}},{"$f":"'LTC Rev-Exp Region 5'!S$33","v":{"v":0,"d":"$0.00"}},{"v":0,"d":"$0.00"}]
["LTC",null,null,{"$f":"Jurat!I$1","v":0},{"$f":"Jurat!D$33","v":"00:00:00"},"Q4","2017-12-31","Region 5","Operating Expense","Medical Expense","LTC Services","2.18","HCBS FFS",{"$f":"'LTC Rev-Exp Region 5'!P$34","v":{"v":0,"d":"$0.00"}},{"$f":"'LTC Rev-Exp Region 5'!Q$34","v":{"v":0,"d":"$0.00"}},{"$f":"'LTC Rev-Exp Region 5'!R$34","v":{"v":0,"d":"$0.00"}},{"$f":"'LTC Rev-Exp Region 5'!S$34","v":{"v":0,"d":"$0.00"}},{"v":0,"d":"$0.00"}]
["LTC",null,null,{"$f":"Jurat!I$1","v":0},{"$f":"Jurat!D$33","v":"00:00:00"},"Q4","2017-12-31","Region 5","Operating Expense","Medical Expense","LTC Services","2.19","Subcapitated LTC Services",{"$f":"'LTC Rev-Exp Region 5'!P$35","v":{"v":0,"d":"$0.00"}},{"$f":"'LTC Rev-Exp Region 5'!Q$35","v":{"v":0,"d":"$0.00"}},{"$f":"'LTC Rev-Exp Region 5'!R$35","v":{"v":0,"d":"$0.00"}},{"$f":"'LTC Rev-Exp Region 5'!S$35","v":{"v":0,"d":"$0.00"}},{"v":0,"d":"$0.00"}]
["LTC",null,null,{"$f":"Jurat!I$1","v":0},{"$f":"Jurat!D$33","v":"00:00:00"},"Q4","2017-12-31","Region 5","Operating Expense","Medical Expense","LTC Services","2.20","Ending IBNP for Long Term Care Services",{"$f":"'LTC Rev-Exp Region 5'!P$36","v":{"v":0,"d":"$0.00"}},{"$f":"'LTC Rev-Exp Region 5'!Q$36","v":{"v":0,"d":"$0.00"}},{"$f":"'LTC Rev-Exp Region 5'!R$36","v":{"v":0,"d":"$0.00"}},{"$f":"'LTC Rev-Exp Region 5'!S$36","v":{"v":0,"d":"$0.00"}},{"v":0,"d":"$0.00"}]
["LTC",null,null,{"$f":"Jurat!I$1","v":0},{"$f":"Jurat!D$33","v":"00:00:00"},"Q4","2017-12-31","Region 5","Operating Expense","Medical Expense","LTC Services","2.21","LTC Services Settlements",{"$f":"'LTC Rev-Exp Region 5'!P$37","v":{"v":0,"d":"$0.00"}},{"$f":"'LTC Rev-Exp Region 5'!Q$37","v":{"v":0,"d":"$0.00"}},{"$f":"'LTC Rev-Exp Region 5'!R$37","v":{"v":0,"d":"$0.00"}},{"$f":"'LTC Rev-Exp Region 5'!S$37","v":{"v":0,"d":"$0.00"}},{"v":0,"d":"$0.00"}]
["LTC",null,null,{"$f":"Jurat!I$1","v":0},{"$f":"Jurat!D$33","v":"00:00:00"},"Q4","2017-12-31","Region 5","Operating Expense","Medical Expense","Expanded Benefits","3.1","Expanded Benefits FFS",{"$f":"'LTC Rev-Exp Region 5'!P$39","v":{"v":0,"d":"$0.00"}},{"$f":"'LTC Rev-Exp Region 5'!Q$39","v":{"v":0,"d":"$0.00"}},{"$f":"'LTC Rev-Exp Region 5'!R$39","v":{"v":0,"d":"$0.00"}},{"$f":"'LTC Rev-Exp Region 5'!S$39","v":{"v":0,"d":"$0.00"}},{"v":0,"d":"$0.00"}]
["LTC",null,null,{"$f":"Jurat!I$1","v":0},{"$f":"Jurat!D$33","v":"00:00:00"},"Q4","2017-12-31","Region 5","Operating Expense","Medical Expense","Expanded Benefits","3.2","Expanded Benefits Subcapitation",{"$f":"'LTC Rev-Exp Region 5'!P$40","v":{"v":0,"d":"$0.00"}},{"$f":"'LTC Rev-Exp Region 5'!Q$40","v":{"v":0,"d":"$0.00"}},{"$f":"'LTC Rev-Exp Region 5'!R$40","v":{"v":0,"d":"$0.00"}},{"$f":"'LTC Rev-Exp Region 5'!S$40","v":{"v":0,"d":"$0.00"}},{"v":0,"d":"$0.00"}]
["LTC",null,null,{"$f":"Jurat!I$1","v":0},{"$f":"Jurat!D$33","v":"00:00:00"},"Q4","2017-12-31","Region 5","Operating Expense","Medical Expense","Expanded Benefits","3.3","Ending IBNP for Expanded Benefits",{"$f":"'LTC Rev-Exp Region 5'!P$41","v":{"v":0,"d":"$0.00"}},{"$f":"'LTC Rev-Exp Region 5'!Q$41","v":{"v":0,"d":"$0.00"}},{"$f":"'LTC Rev-Exp Region 5'!R$41","v":{"v":0,"d":"$0.00"}},{"$f":"'LTC Rev-Exp Region 5'!S$41","v":{"v":0,"d":"$0.00"}},{"v":0,"d":"$0.00"}]
["LTC",null,null,{"$f":"Jurat!I$1","v":0},{"$f":"Jurat!D$33","v":"00:00:00"},"Q4","2017-12-31","Region 5","Operating Expense","Medical Expense","Expanded Benefits","3.4","Expanded Benefits Settlements",{"$f":"'LTC Rev-Exp Region 5'!P$42","v":{"v":0,"d":"$0.00"}},{"$f":"'LTC Rev-Exp Region 5'!Q$42","v":{"v":0,"d":"$0.00"}},{"$f":"'LTC Rev-Exp Region 5'!R$42","v":{"v":0,"d":"$0.00"}},{"$f":"'LTC Rev-Exp Region 5'!S$42","v":{"v":0,"d":"$0.00"}},{"v":0,"d":"$0.00"}]
["LTC",null,null,{"$f":"Jurat!I$1","v":0},{"$f":"Jurat!D$33","v":"00:00:00"},"Q4","2017-12-31","Region 5","Operating Expense","Medical Expense","Other Medical","4.5","TPL & Fraud/Abuse Recoveries",{"$f":"'LTC Rev-Exp Region 5'!P$48","v":{"v":0,"d":"$0.00"}},{"$f":"'LTC Rev-Exp Region 5'!Q$48","v":{"v":0,"d":"$0.00"}},{"$f":"'LTC Rev-Exp Region 5'!R$48","v":{"v":0,"d":"$0.00"}},{"$f":"'LTC Rev-Exp Region 5'!S$48","v":{"v":0,"d":"$0.00"}},{"v":0,"d":"$0.00"}]
["LTC",null,null,{"$f":"Jurat!I$1","v":0},{"$f":"Jurat!D$33","v":"00:00:00"},"Q4","2017-12-31","Region 5","Operating Expense","Medical Expense","Other Medical","4.6.1","Premium Deficiency Reserve",{"$f":"'LTC Rev-Exp Region 5'!P$49","v":{"v":0,"d":"$0.00"}},{"$f":"'LTC Rev-Exp Region 5'!Q$49","v":{"v":0,"d":"$0.00"}},{"$f":"'LTC Rev-Exp Region 5'!R$49","v":{"v":0,"d":"$0.00"}},{"$f":"'LTC Rev-Exp Region 5'!S$49","v":{"v":0,"d":"$0.00"}},{"v":0,"d":"$0.00"}]
["LTC",null,null,{"$f":"Jurat!I$1","v":0},{"$f":"Jurat!D$33","v":"00:00:00"},"Q4","2017-12-31","Region 5","Operating Expense","Medical Expense","Other Medical","4.8","Reinsurance Premiums",{"$f":"'LTC Rev-Exp Region 5'!P$51","v":{"v":0,"d":"$0.00"}},{"$f":"'LTC Rev-Exp Region 5'!Q$51","v":{"v":0,"d":"$0.00"}},{"$f":"'LTC Rev-Exp Region 5'!R$51","v":{"v":0,"d":"$0.00"}},{"$f":"'LTC Rev-Exp Region 5'!S$51","v":{"v":0,"d":"$0.00"}},{"v":0,"d":"$0.00"}]
["LTC",null,null,{"$f":"Jurat!I$1","v":0},{"$f":"Jurat!D$33","v":"00:00:00"},"Q4","2017-12-31","Region 5","Operating Expense","Medical Expense","Other Medical","4.9","Reinsurance Recoveries",{"$f":"'LTC Rev-Exp Region 5'!P$52","v":{"v":0,"d":"$0.00"}},{"$f":"'LTC Rev-Exp Region 5'!Q$52","v":{"v":0,"d":"$0.00"}},{"$f":"'LTC Rev-Exp Region 5'!R$52","v":{"v":0,"d":"$0.00"}},{"$f":"'LTC Rev-Exp Region 5'!S$52","v":{"v":0,"d":"$0.00"}},{"v":0,"d":"$0.00"}]
["LTC",null,null,{"$f":"Jurat!I$1","v":0},{"$f":"Jurat!D$33","v":"00:00:00"},"Q4","2017-12-31","Region 5","Operating Expense","Administrative Expense","Administrative","5.1","Salaries & Benefits",{"$f":"'LTC Rev-Exp Region 5'!P$57","v":{"v":0,"d":"$0.00"}},{"$f":"'LTC Rev-Exp Region 5'!Q$57","v":{"v":0,"d":"$0.00"}},{"$f":"'LTC Rev-Exp Region 5'!R$57","v":{"v":0,"d":"$0.00"}},{"$f":"'LTC Rev-Exp Region 5'!S$57","v":{"v":0,"d":"$0.00"}},{"v":0,"d":"$0.00"}]
["LTC",null,null,{"$f":"Jurat!I$1","v":0},{"$f":"Jurat!D$33","v":"00:00:00"},"Q4","2017-12-31","Region 5","Operating Expense","Administrative Expense","Administrative","5.2","Administrative Services",{"$f":"'LTC Rev-Exp Region 5'!P$58","v":{"v":0,"d":"$0.00"}},{"$f":"'LTC Rev-Exp Region 5'!Q$58","v":{"v":0,"d":"$0.00"}},{"$f":"'LTC Rev-Exp Region 5'!R$58","v":{"v":0,"d":"$0.00"}},{"$f":"'LTC Rev-Exp Region 5'!S$58","v":{"v":0,"d":"$0.00"}},{"v":0,"d":"$0.00"}]
["LTC",null,null,{"$f":"Jurat!I$1","v":0},{"$f":"Jurat!D$33","v":"00:00:00"},"Q4","2017-12-31","Region 5","Operating Expense","Administrative Expense","Administrative","5.3","Information Systems",{"$f":"'LTC Rev-Exp Region 5'!P$59","v":{"v":0,"d":"$0.00"}},{"$f":"'LTC Rev-Exp Region 5'!Q$59","v":{"v":0,"d":"$0.00"}},{"$f":"'LTC Rev-Exp Region 5'!R$59","v":{"v":0,"d":"$0.00"}},{"$f":"'LTC Rev-Exp Region 5'!S$59","v":{"v":0,"d":"$0.00"}},{"v":0,"d":"$0.00"}]
["LTC",null,null,{"$f":"Jurat!I$1","v":0},{"$f":"Jurat!D$33","v":"00:00:00"},"Q4","2017-12-31","Region 5","Operating Expense","Administrative Expense","Administrative","5.4","Marketing Expenses",{"$f":"'LTC Rev-Exp Region 5'!P$60","v":{"v":0,"d":"$0.00"}},{"$f":"'LTC Rev-Exp Region 5'!Q$60","v":{"v":0,"d":"$0.00"}},{"$f":"'LTC Rev-Exp Region 5'!R$60","v":{"v":0,"d":"$0.00"}},{"$f":"'LTC Rev-Exp Region 5'!S$60","v":{"v":0,"d":"$0.00"}},{"v":0,"d":"$0.00"}]
["LTC",null,null,{"$f":"Jurat!I$1","v":0},{"$f":"Jurat!D$33","v":"00:00:00"},"Q4","2017-12-31","Region 5","Operating Expense","Administrative Expense","Administrative","5.5","General  Administration",{"$f":"'LTC Rev-Exp Region 5'!P$61","v":{"v":0,"d":"$0.00"}},{"$f":"'LTC Rev-Exp Region 5'!Q$61","v":{"v":0,"d":"$0.00"}},{"$f":"'LTC Rev-Exp Region 5'!R$61","v":{"v":0,"d":"$0.00"}},{"$f":"'LTC Rev-Exp Region 5'!S$61","v":{"v":0,"d":"$0.00"}},{"v":0,"d":"$0.00"}]
["LTC",null,null,{"$f":"Jurat!I$1","v":0},{"$f":"Jurat!D$33","v":"00:00:00"},"Q4","2017-12-31","Region 5","Operating Expense","Administrative Expense","Administrative","5.6","Compliance/Regulatory",{"$f":"'LTC Rev-Exp Region 5'!P$62","v":{"v":0,"d":"$0.00"}},{"$f":"'LTC Rev-Exp Region 5'!Q$62","v":{"v":0,"d":"$0.00"}},{"$f":"'LTC Rev-Exp Region 5'!R$62","v":{"v":0,"d":"$0.00"}},{"$f":"'LTC Rev-Exp Region 5'!S$62","v":{"v":0,"d":"$0.00"}},{"v":0,"d":"$0.00"}]
["LTC",null,null,{"$f":"Jurat!I$1","v":0},{"$f":"Jurat!D$33","v":"00:00:00"},"Q4","2017-12-31","Region 5","Operating Expense","Taxes & Fees","Taxes & Fees","6.1","State Premium Tax",{"$f":"'LTC Rev-Exp Region 5'!P$64","v":{"v":0,"d":"$0.00"}},{"v":0,"d":"$0.00"},{"v":0,"d":"$0.00"},{"v":0,"d":"$0.00"},{"v":0,"d":"$0.00"}]
["LTC",null,null,{"$f":"Jurat!I$1","v":0},{"$f":"Jurat!D$33","v":"00:00:00"},"Q4","2017-12-31","Region 5","Operating Expense","Taxes & Fees","Taxes & Fees","6.2","Department of Insurance Assessments",{"$f":"'LTC Rev-Exp Region 5'!P$65","v":{"v":0,"d":"$0.00"}},{"v":0,"d":"$0.00"},{"v":0,"d":"$0.00"},{"v":0,"d":"$0.00"},{"v":0,"d":"$0.00"}]
["LTC",null,null,{"$f":"Jurat!I$1","v":0},{"$f":"Jurat!D$33","v":"00:00:00"},"Q4","2017-12-31","Region 5","Non-Operating Expense","Income Tax Expense","Income Tax Expense","9.0","Income Tax Expense",{"$f":"'LTC Rev-Exp Region 5'!P$72","v":{"v":0,"d":"$0.00"}},{"v":0,"d":"$0.00"},{"v":0,"d":"$0.00"},{"v":0,"d":"$0.00"},{"v":0,"d":"$0.00"}]
["LTC",null,null,{"$f":"Jurat!I$1","v":0},{"$f":"Jurat!D$33","v":"00:00:00"},"Q1","2017-03-31","Region 6","Member Months","Member Months","Member Months",null,"Member Months",{"$f":"'LTC Rev-Exp Region 6'!D$9","v":{"v":0,"d":"$0.00"}},{"$f":"'LTC Rev-Exp Region 6'!E$9","v":{"v":0,"d":"$0.00"}},{"$f":"'LTC Rev-Exp Region 6'!F$9","v":{"v":0,"d":"$0.00"}},{"$f":"'LTC Rev-Exp Region 6'!G$9","v":{"v":0,"d":"$0.00"}},{"v":0,"d":"$0.00"}]
["LTC",null,null,{"$f":"Jurat!I$1","v":0},{"$f":"Jurat!D$33","v":"00:00:00"},"Q1","2017-03-31","Region 6","Operating Revenue","Capitation","Capitation",1.1,"Capitation",{"$f":"'LTC Rev-Exp Region 6'!D$11","v":{"v":0,"d":"$0.00"}},{"$f":"'LTC Rev-Exp Region 6'!E$11","v":{"v":0,"d":"$0.00"}},{"$f":"'LTC Rev-Exp Region 6'!F$11","v":{"v":0,"d":"$0.00"}},{"$f":"'LTC Rev-Exp Region 6'!G$11","v":{"v":0,"d":"$0.00"}},{"v":0,"d":"$0.00"}]
["LTC",null,null,{"$f":"Jurat!I$1","v":0},{"$f":"Jurat!D$33","v":"00:00:00"},"Q1","2017-03-31","Region 6","Operating Revenue","Capitation","NH Rate Reconciliation",1.2,"NH Rate Reconciliation",{"$f":"'LTC Rev-Exp Region 6'!D$12","v":{"v":0,"d":"$0.00"}},{"$f":"'LTC Rev-Exp Region 6'!E$12","v":{"v":0,"d":"$0.00"}},{"$f":"'LTC Rev-Exp Region 6'!F$12","v":{"v":0,"d":"$0.00"}},{"$f":"'LTC Rev-Exp Region 6'!G$12","v":{"v":0,"d":"$0.00"}},{"v":0,"d":"$0.00"}]
["LTC",null,null,{"$f":"Jurat!I$1","v":0},{"$f":"Jurat!D$33","v":"00:00:00"},"Q1","2017-03-31","Region 6","Operating Revenue","Other Revenue","Other Revenue",1.3,"Other Revenue",{"$f":"'LTC Rev-Exp Region 6'!D$13","v":{"v":0,"d":"$0.00"}},{"$f":"'LTC Rev-Exp Region 6'!E$13","v":{"v":0,"d":"$0.00"}},{"$f":"'LTC Rev-Exp Region 6'!F$13","v":{"v":0,"d":"$0.00"}},{"$f":"'LTC Rev-Exp Region 6'!G$13","v":{"v":0,"d":"$0.00"}},{"v":0,"d":"$0.00"}]
["LTC",null,null,{"$f":"Jurat!I$1","v":0},{"$f":"Jurat!D$33","v":"00:00:00"},"Q1","2017-03-31","Region 6","Operating Expense","Medical Expense","NF & Hospice","2.1","Nursing Facility Days (Medicaid)",{"$f":"'LTC Rev-Exp Region 6'!D$17","v":{"v":0,"d":"$0.00"}},{"$f":"'LTC Rev-Exp Region 6'!E$17","v":{"v":0,"d":"$0.00"}},{"$f":"'LTC Rev-Exp Region 6'!F$17","v":{"v":0,"d":"$0.00"}},{"$f":"'LTC Rev-Exp Region 6'!G$17","v":{"v":0,"d":"$0.00"}},{"v":0,"d":"$0.00"}]
["LTC",null,null,{"$f":"Jurat!I$1","v":0},{"$f":"Jurat!D$33","v":"00:00:00"},"Q1","2017-03-31","Region 6","Operating Expense","Medical Expense","NF & Hospice","2.2","Nursing Facility Days (Crossover)",{"$f":"'LTC Rev-Exp Region 6'!D$18","v":{"v":0,"d":"$0.00"}},{"$f":"'LTC Rev-Exp Region 6'!E$18","v":{"v":0,"d":"$0.00"}},{"$f":"'LTC Rev-Exp Region 6'!F$18","v":{"v":0,"d":"$0.00"}},{"$f":"'LTC Rev-Exp Region 6'!G$18","v":{"v":0,"d":"$0.00"}},{"v":0,"d":"$0.00"}]
["LTC",null,null,{"$f":"Jurat!I$1","v":0},{"$f":"Jurat!D$33","v":"00:00:00"},"Q1","2017-03-31","Region 6","Operating Expense","Medical Expense","NF & Hospice","2.3","Nursing Facility FFS (Medicaid)",{"$f":"'LTC Rev-Exp Region 6'!D$19","v":{"v":0,"d":"$0.00"}},{"$f":"'LTC Rev-Exp Region 6'!E$19","v":{"v":0,"d":"$0.00"}},{"$f":"'LTC Rev-Exp Region 6'!F$19","v":{"v":0,"d":"$0.00"}},{"$f":"'LTC Rev-Exp Region 6'!G$19","v":{"v":0,"d":"$0.00"}},{"v":0,"d":"$0.00"}]
["LTC",null,null,{"$f":"Jurat!I$1","v":0},{"$f":"Jurat!D$33","v":"00:00:00"},"Q1","2017-03-31","Region 6","Operating Expense","Medical Expense","NF & Hospice","2.4","Nursing Facility FFS (Crossover)",{"$f":"'LTC Rev-Exp Region 6'!D$20","v":{"v":0,"d":"$0.00"}},{"$f":"'LTC Rev-Exp Region 6'!E$20","v":{"v":0,"d":"$0.00"}},{"$f":"'LTC Rev-Exp Region 6'!F$20","v":{"v":0,"d":"$0.00"}},{"$f":"'LTC Rev-Exp Region 6'!G$20","v":{"v":0,"d":"$0.00"}},{"v":0,"d":"$0.00"}]
["LTC",null,null,{"$f":"Jurat!I$1","v":0},{"$f":"Jurat!D$33","v":"00:00:00"},"Q1","2017-03-31","Region 6","Operating Expense","Medical Expense","NF & Hospice","2.5","Hospice Days",{"$f":"'LTC Rev-Exp Region 6'!D$21","v":{"v":0,"d":"$0.00"}},{"$f":"'LTC Rev-Exp Region 6'!E$21","v":{"v":0,"d":"$0.00"}},{"$f":"'LTC Rev-Exp Region 6'!F$21","v":{"v":0,"d":"$0.00"}},{"$f":"'LTC Rev-Exp Region 6'!G$21","v":{"v":0,"d":"$0.00"}},{"v":0,"d":"$0.00"}]
["LTC",null,null,{"$f":"Jurat!I$1","v":0},{"$f":"Jurat!D$33","v":"00:00:00"},"Q1","2017-03-31","Region 6","Operating Expense","Medical Expense","NF & Hospice","2.6","Hospice FFS",{"$f":"'LTC Rev-Exp Region 6'!D$22","v":{"v":0,"d":"$0.00"}},{"$f":"'LTC Rev-Exp Region 6'!E$22","v":{"v":0,"d":"$0.00"}},{"$f":"'LTC Rev-Exp Region 6'!F$22","v":{"v":0,"d":"$0.00"}},{"$f":"'LTC Rev-Exp Region 6'!G$22","v":{"v":0,"d":"$0.00"}},{"v":0,"d":"$0.00"}]
["LTC",null,null,{"$f":"Jurat!I$1","v":0},{"$f":"Jurat!D$33","v":"00:00:00"},"Q1","2017-03-31","Region 6","Operating Expense","Medical Expense","NF & Hospice","2.7","Ending IBNP for NF & Hospice",{"$f":"'LTC Rev-Exp Region 6'!D$23","v":{"v":0,"d":"$0.00"}},{"$f":"'LTC Rev-Exp Region 6'!E$23","v":{"v":0,"d":"$0.00"}},{"$f":"'LTC Rev-Exp Region 6'!F$23","v":{"v":0,"d":"$0.00"}},{"$f":"'LTC Rev-Exp Region 6'!G$23","v":{"v":0,"d":"$0.00"}},{"v":0,"d":"$0.00"}]
["LTC",null,null,{"$f":"Jurat!I$1","v":0},{"$f":"Jurat!D$33","v":"00:00:00"},"Q1","2017-03-31","Region 6","Operating Expense","Medical Expense","NF & Hospice","2.8","NF & Hospice Subcapitated",{"$f":"'LTC Rev-Exp Region 6'!D$24","v":{"v":0,"d":"$0.00"}},{"$f":"'LTC Rev-Exp Region 6'!E$24","v":{"v":0,"d":"$0.00"}},{"$f":"'LTC Rev-Exp Region 6'!F$24","v":{"v":0,"d":"$0.00"}},{"$f":"'LTC Rev-Exp Region 6'!G$24","v":{"v":0,"d":"$0.00"}},{"v":0,"d":"$0.00"}]
["LTC",null,null,{"$f":"Jurat!I$1","v":0},{"$f":"Jurat!D$33","v":"00:00:00"},"Q1","2017-03-31","Region 6","Operating Expense","Medical Expense","NF & Hospice","2.9","NF & Hospice Settlements",{"$f":"'LTC Rev-Exp Region 6'!D$25","v":{"v":0,"d":"$0.00"}},{"$f":"'LTC Rev-Exp Region 6'!E$25","v":{"v":0,"d":"$0.00"}},{"$f":"'LTC Rev-Exp Region 6'!F$25","v":{"v":0,"d":"$0.00"}},{"$f":"'LTC Rev-Exp Region 6'!G$25","v":{"v":0,"d":"$0.00"}},{"v":0,"d":"$0.00"}]
["LTC",null,null,{"$f":"Jurat!I$1","v":0},{"$f":"Jurat!D$33","v":"00:00:00"},"Q1","2017-03-31","Region 6","Operating Expense","Medical Expense","LTC Services","2.11","Assisted Living FFS",{"$f":"'LTC Rev-Exp Region 6'!D$27","v":{"v":0,"d":"$0.00"}},{"$f":"'LTC Rev-Exp Region 6'!E$27","v":{"v":0,"d":"$0.00"}},{"$f":"'LTC Rev-Exp Region 6'!F$27","v":{"v":0,"d":"$0.00"}},{"$f":"'LTC Rev-Exp Region 6'!G$27","v":{"v":0,"d":"$0.00"}},{"v":0,"d":"$0.00"}]
["LTC",null,null,{"$f":"Jurat!I$1","v":0},{"$f":"Jurat!D$33","v":"00:00:00"},"Q1","2017-03-31","Region 6","Operating Expense","Medical Expense","LTC Services","2.12","Home Health FFS",{"$f":"'LTC Rev-Exp Region 6'!D$28","v":{"v":0,"d":"$0.00"}},{"$f":"'LTC Rev-Exp Region 6'!E$28","v":{"v":0,"d":"$0.00"}},{"$f":"'LTC Rev-Exp Region 6'!F$28","v":{"v":0,"d":"$0.00"}},{"$f":"'LTC Rev-Exp Region 6'!G$28","v":{"v":0,"d":"$0.00"}},{"v":0,"d":"$0.00"}]
["LTC",null,null,{"$f":"Jurat!I$1","v":0},{"$f":"Jurat!D$33","v":"00:00:00"},"Q1","2017-03-31","Region 6","Operating Expense","Medical Expense","LTC Services","2.13","Medical Equipment/Supplies FFS",{"$f":"'LTC Rev-Exp Region 6'!D$29","v":{"v":0,"d":"$0.00"}},{"$f":"'LTC Rev-Exp Region 6'!E$29","v":{"v":0,"d":"$0.00"}},{"$f":"'LTC Rev-Exp Region 6'!F$29","v":{"v":0,"d":"$0.00"}},{"$f":"'LTC Rev-Exp Region 6'!G$29","v":{"v":0,"d":"$0.00"}},{"v":0,"d":"$0.00"}]
["LTC",null,null,{"$f":"Jurat!I$1","v":0},{"$f":"Jurat!D$33","v":"00:00:00"},"Q1","2017-03-31","Region 6","Operating Expense","Medical Expense","LTC Services","2.14","Therapy FFS",{"$f":"'LTC Rev-Exp Region 6'!D$30","v":{"v":0,"d":"$0.00"}},{"$f":"'LTC Rev-Exp Region 6'!E$30","v":{"v":0,"d":"$0.00"}},{"$f":"'LTC Rev-Exp Region 6'!F$30","v":{"v":0,"d":"$0.00"}},{"$f":"'LTC Rev-Exp Region 6'!G$30","v":{"v":0,"d":"$0.00"}},{"v":0,"d":"$0.00"}]
["LTC",null,null,{"$f":"Jurat!I$1","v":0},{"$f":"Jurat!D$33","v":"00:00:00"},"Q1","2017-03-31","Region 6","Operating Expense","Medical Expense","LTC Services","2.15","Transportation FFS",{"$f":"'LTC Rev-Exp Region 6'!D$31","v":{"v":0,"d":"$0.00"}},{"$f":"'LTC Rev-Exp Region 6'!E$31","v":{"v":0,"d":"$0.00"}},{"$f":"'LTC Rev-Exp Region 6'!F$31","v":{"v":0,"d":"$0.00"}},{"$f":"'LTC Rev-Exp Region 6'!G$31","v":{"v":0,"d":"$0.00"}},{"v":0,"d":"$0.00"}]
["LTC",null,null,{"$f":"Jurat!I$1","v":0},{"$f":"Jurat!D$33","v":"00:00:00"},"Q1","2017-03-31","Region 6","Operating Expense","Medical Expense","LTC Services","2.16","Case Management FFS (Plan Provided)",{"$f":"'LTC Rev-Exp Region 6'!D$32","v":{"v":0,"d":"$0.00"}},{"$f":"'LTC Rev-Exp Region 6'!E$32","v":{"v":0,"d":"$0.00"}},{"$f":"'LTC Rev-Exp Region 6'!F$32","v":{"v":0,"d":"$0.00"}},{"$f":"'LTC Rev-Exp Region 6'!G$32","v":{"v":0,"d":"$0.00"}},{"v":0,"d":"$0.00"}]
["LTC",null,null,{"$f":"Jurat!I$1","v":0},{"$f":"Jurat!D$33","v":"00:00:00"},"Q1","2017-03-31","Region 6","Operating Expense","Medical Expense","LTC Services","2.17","Case Management FF (Non-Plan Provided)",{"$f":"'LTC Rev-Exp Region 6'!D$33","v":{"v":0,"d":"$0.00"}},{"$f":"'LTC Rev-Exp Region 6'!E$33","v":{"v":0,"d":"$0.00"}},{"$f":"'LTC Rev-Exp Region 6'!F$33","v":{"v":0,"d":"$0.00"}},{"$f":"'LTC Rev-Exp Region 6'!G$33","v":{"v":0,"d":"$0.00"}},{"v":0,"d":"$0.00"}]
["LTC",null,null,{"$f":"Jurat!I$1","v":0},{"$f":"Jurat!D$33","v":"00:00:00"},"Q1","2017-03-31","Region 6","Operating Expense","Medical Expense","LTC Services","2.18","HCBS FFS",{"$f":"'LTC Rev-Exp Region 6'!D$34","v":{"v":0,"d":"$0.00"}},{"$f":"'LTC Rev-Exp Region 6'!E$34","v":{"v":0,"d":"$0.00"}},{"$f":"'LTC Rev-Exp Region 6'!F$34","v":{"v":0,"d":"$0.00"}},{"$f":"'LTC Rev-Exp Region 6'!G$34","v":{"v":0,"d":"$0.00"}},{"v":0,"d":"$0.00"}]
["LTC",null,null,{"$f":"Jurat!I$1","v":0},{"$f":"Jurat!D$33","v":"00:00:00"},"Q1","2017-03-31","Region 6","Operating Expense","Medical Expense","LTC Services","2.19","Subcapitated LTC Services",{"$f":"'LTC Rev-Exp Region 6'!D$35","v":{"v":0,"d":"$0.00"}},{"$f":"'LTC Rev-Exp Region 6'!E$35","v":{"v":0,"d":"$0.00"}},{"$f":"'LTC Rev-Exp Region 6'!F$35","v":{"v":0,"d":"$0.00"}},{"$f":"'LTC Rev-Exp Region 6'!G$35","v":{"v":0,"d":"$0.00"}},{"v":0,"d":"$0.00"}]
["LTC",null,null,{"$f":"Jurat!I$1","v":0},{"$f":"Jurat!D$33","v":"00:00:00"},"Q1","2017-03-31","Region 6","Operating Expense","Medical Expense","LTC Services","2.20","Ending IBNP for Long Term Care Services",{"$f":"'LTC Rev-Exp Region 6'!D$36","v":{"v":0,"d":"$0.00"}},{"$f":"'LTC Rev-Exp Region 6'!E$36","v":{"v":0,"d":"$0.00"}},{"$f":"'LTC Rev-Exp Region 6'!F$36","v":{"v":0,"d":"$0.00"}},{"$f":"'LTC Rev-Exp Region 6'!G$36","v":{"v":0,"d":"$0.00"}},{"v":0,"d":"$0.00"}]
["LTC",null,null,{"$f":"Jurat!I$1","v":0},{"$f":"Jurat!D$33","v":"00:00:00"},"Q1","2017-03-31","Region 6","Operating Expense","Medical Expense","LTC Services","2.21","LTC Services Settlements",{"$f":"'LTC Rev-Exp Region 6'!D$37","v":{"v":0,"d":"$0.00"}},{"$f":"'LTC Rev-Exp Region 6'!E$37","v":{"v":0,"d":"$0.00"}},{"$f":"'LTC Rev-Exp Region 6'!F$37","v":{"v":0,"d":"$0.00"}},{"$f":"'LTC Rev-Exp Region 6'!G$37","v":{"v":0,"d":"$0.00"}},{"v":0,"d":"$0.00"}]
["LTC",null,null,{"$f":"Jurat!I$1","v":0},{"$f":"Jurat!D$33","v":"00:00:00"},"Q1","2017-03-31","Region 6","Operating Expense","Medical Expense","Expanded Benefits","3.1","Expanded Benefits FFS",{"$f":"'LTC Rev-Exp Region 6'!D$39","v":{"v":0,"d":"$0.00"}},{"$f":"'LTC Rev-Exp Region 6'!E$39","v":{"v":0,"d":"$0.00"}},{"$f":"'LTC Rev-Exp Region 6'!F$39","v":{"v":0,"d":"$0.00"}},{"$f":"'LTC Rev-Exp Region 6'!G$39","v":{"v":0,"d":"$0.00"}},{"v":0,"d":"$0.00"}]
["LTC",null,null,{"$f":"Jurat!I$1","v":0},{"$f":"Jurat!D$33","v":"00:00:00"},"Q1","2017-03-31","Region 6","Operating Expense","Medical Expense","Expanded Benefits","3.2","Expanded Benefits Subcapitation",{"$f":"'LTC Rev-Exp Region 6'!D$40","v":{"v":0,"d":"$0.00"}},{"$f":"'LTC Rev-Exp Region 6'!E$40","v":{"v":0,"d":"$0.00"}},{"$f":"'LTC Rev-Exp Region 6'!F$40","v":{"v":0,"d":"$0.00"}},{"$f":"'LTC Rev-Exp Region 6'!G$40","v":{"v":0,"d":"$0.00"}},{"v":0,"d":"$0.00"}]
["LTC",null,null,{"$f":"Jurat!I$1","v":0},{"$f":"Jurat!D$33","v":"00:00:00"},"Q1","2017-03-31","Region 6","Operating Expense","Medical Expense","Expanded Benefits","3.3","Ending IBNP for Expanded Benefits",{"$f":"'LTC Rev-Exp Region 6'!D$41","v":{"v":0,"d":"$0.00"}},{"$f":"'LTC Rev-Exp Region 6'!E$41","v":{"v":0,"d":"$0.00"}},{"$f":"'LTC Rev-Exp Region 6'!F$41","v":{"v":0,"d":"$0.00"}},{"$f":"'LTC Rev-Exp Region 6'!G$41","v":{"v":0,"d":"$0.00"}},{"v":0,"d":"$0.00"}]
["LTC",null,null,{"$f":"Jurat!I$1","v":0},{"$f":"Jurat!D$33","v":"00:00:00"},"Q1","2017-03-31","Region 6","Operating Expense","Medical Expense","Expanded Benefits","3.4","Expanded Benefits Settlements",{"$f":"'LTC Rev-Exp Region 6'!D$42","v":{"v":0,"d":"$0.00"}},{"$f":"'LTC Rev-Exp Region 6'!E$42","v":{"v":0,"d":"$0.00"}},{"$f":"'LTC Rev-Exp Region 6'!F$42","v":{"v":0,"d":"$0.00"}},{"$f":"'LTC Rev-Exp Region 6'!G$42","v":{"v":0,"d":"$0.00"}},{"v":0,"d":"$0.00"}]
["LTC",null,null,{"$f":"Jurat!I$1","v":0},{"$f":"Jurat!D$33","v":"00:00:00"},"Q1","2017-03-31","Region 6","Operating Expense","Medical Expense","Other Medical","4.5","TPL & Fraud/Abuse Recoveries",{"$f":"'LTC Rev-Exp Region 6'!D$48","v":{"v":0,"d":"$0.00"}},{"$f":"'LTC Rev-Exp Region 6'!E$48","v":{"v":0,"d":"$0.00"}},{"$f":"'LTC Rev-Exp Region 6'!F$48","v":{"v":0,"d":"$0.00"}},{"$f":"'LTC Rev-Exp Region 6'!G$48","v":{"v":0,"d":"$0.00"}},{"v":0,"d":"$0.00"}]
["LTC",null,null,{"$f":"Jurat!I$1","v":0},{"$f":"Jurat!D$33","v":"00:00:00"},"Q1","2017-03-31","Region 6","Operating Expense","Medical Expense","Other Medical","4.6.1","Premium Deficiency Reserve",{"$f":"'LTC Rev-Exp Region 6'!D$49","v":{"v":0,"d":"$0.00"}},{"$f":"'LTC Rev-Exp Region 6'!E$49","v":{"v":0,"d":"$0.00"}},{"$f":"'LTC Rev-Exp Region 6'!F$49","v":{"v":0,"d":"$0.00"}},{"$f":"'LTC Rev-Exp Region 6'!G$49","v":{"v":0,"d":"$0.00"}},{"v":0,"d":"$0.00"}]
["LTC",null,null,{"$f":"Jurat!I$1","v":0},{"$f":"Jurat!D$33","v":"00:00:00"},"Q1","2017-03-31","Region 6","Operating Expense","Medical Expense","Other Medical","4.8","Reinsurance Premiums",{"$f":"'LTC Rev-Exp Region 6'!D$51","v":{"v":0,"d":"$0.00"}},{"$f":"'LTC Rev-Exp Region 6'!E$51","v":{"v":0,"d":"$0.00"}},{"$f":"'LTC Rev-Exp Region 6'!F$51","v":{"v":0,"d":"$0.00"}},{"$f":"'LTC Rev-Exp Region 6'!G$51","v":{"v":0,"d":"$0.00"}},{"v":0,"d":"$0.00"}]
["LTC",null,null,{"$f":"Jurat!I$1","v":0},{"$f":"Jurat!D$33","v":"00:00:00"},"Q1","2017-03-31","Region 6","Operating Expense","Medical Expense","Other Medical","4.9","Reinsurance Recoveries",{"$f":"'LTC Rev-Exp Region 6'!D$52","v":{"v":0,"d":"$0.00"}},{"$f":"'LTC Rev-Exp Region 6'!E$52","v":{"v":0,"d":"$0.00"}},{"$f":"'LTC Rev-Exp Region 6'!F$52","v":{"v":0,"d":"$0.00"}},{"$f":"'LTC Rev-Exp Region 6'!G$52","v":{"v":0,"d":"$0.00"}},{"v":0,"d":"$0.00"}]
["LTC",null,null,{"$f":"Jurat!I$1","v":0},{"$f":"Jurat!D$33","v":"00:00:00"},"Q1","2017-03-31","Region 6","Operating Expense","Administrative Expense","Administrative","5.1","Salaries & Benefits",{"$f":"'LTC Rev-Exp Region 6'!D$57","v":{"v":0,"d":"$0.00"}},{"$f":"'LTC Rev-Exp Region 6'!E$57","v":{"v":0,"d":"$0.00"}},{"$f":"'LTC Rev-Exp Region 6'!F$57","v":{"v":0,"d":"$0.00"}},{"$f":"'LTC Rev-Exp Region 6'!G$57","v":{"v":0,"d":"$0.00"}},{"v":0,"d":"$0.00"}]
["LTC",null,null,{"$f":"Jurat!I$1","v":0},{"$f":"Jurat!D$33","v":"00:00:00"},"Q1","2017-03-31","Region 6","Operating Expense","Administrative Expense","Administrative","5.2","Administrative Services",{"$f":"'LTC Rev-Exp Region 6'!D$58","v":{"v":0,"d":"$0.00"}},{"$f":"'LTC Rev-Exp Region 6'!E$58","v":{"v":0,"d":"$0.00"}},{"$f":"'LTC Rev-Exp Region 6'!F$58","v":{"v":0,"d":"$0.00"}},{"$f":"'LTC Rev-Exp Region 6'!G$58","v":{"v":0,"d":"$0.00"}},{"v":0,"d":"$0.00"}]
["LTC",null,null,{"$f":"Jurat!I$1","v":0},{"$f":"Jurat!D$33","v":"00:00:00"},"Q1","2017-03-31","Region 6","Operating Expense","Administrative Expense","Administrative","5.3","Information Systems",{"$f":"'LTC Rev-Exp Region 6'!D$59","v":{"v":0,"d":"$0.00"}},{"$f":"'LTC Rev-Exp Region 6'!E$59","v":{"v":0,"d":"$0.00"}},{"$f":"'LTC Rev-Exp Region 6'!F$59","v":{"v":0,"d":"$0.00"}},{"$f":"'LTC Rev-Exp Region 6'!G$59","v":{"v":0,"d":"$0.00"}},{"v":0,"d":"$0.00"}]
["LTC",null,null,{"$f":"Jurat!I$1","v":0},{"$f":"Jurat!D$33","v":"00:00:00"},"Q1","2017-03-31","Region 6","Operating Expense","Administrative Expense","Administrative","5.4","Marketing Expenses",{"$f":"'LTC Rev-Exp Region 6'!D$60","v":{"v":0,"d":"$0.00"}},{"$f":"'LTC Rev-Exp Region 6'!E$60","v":{"v":0,"d":"$0.00"}},{"$f":"'LTC Rev-Exp Region 6'!F$60","v":{"v":0,"d":"$0.00"}},{"$f":"'LTC Rev-Exp Region 6'!G$60","v":{"v":0,"d":"$0.00"}},{"v":0,"d":"$0.00"}]
["LTC",null,null,{"$f":"Jurat!I$1","v":0},{"$f":"Jurat!D$33","v":"00:00:00"},"Q1","2017-03-31","Region 6","Operating Expense","Administrative Expense","Administrative","5.5","General  Administration",{"$f":"'LTC Rev-Exp Region 6'!D$61","v":{"v":0,"d":"$0.00"}},{"$f":"'LTC Rev-Exp Region 6'!E$61","v":{"v":0,"d":"$0.00"}},{"$f":"'LTC Rev-Exp Region 6'!F$61","v":{"v":0,"d":"$0.00"}},{"$f":"'LTC Rev-Exp Region 6'!G$61","v":{"v":0,"d":"$0.00"}},{"v":0,"d":"$0.00"}]
["LTC",null,null,{"$f":"Jurat!I$1","v":0},{"$f":"Jurat!D$33","v":"00:00:00"},"Q1","2017-03-31","Region 6","Operating Expense","Administrative Expense","Administrative","5.6","Compliance/Regulatory",{"$f":"'LTC Rev-Exp Region 6'!D$62","v":{"v":0,"d":"$0.00"}},{"$f":"'LTC Rev-Exp Region 6'!E$62","v":{"v":0,"d":"$0.00"}},{"$f":"'LTC Rev-Exp Region 6'!F$62","v":{"v":0,"d":"$0.00"}},{"$f":"'LTC Rev-Exp Region 6'!G$62","v":{"v":0,"d":"$0.00"}},{"v":0,"d":"$0.00"}]
["LTC",null,null,{"$f":"Jurat!I$1","v":0},{"$f":"Jurat!D$33","v":"00:00:00"},"Q1","2017-03-31","Region 6","Operating Expense","Taxes & Fees","Taxes & Fees","6.1","State Premium Tax",{"$f":"'LTC Rev-Exp Region 6'!D$64","v":{"v":0,"d":"$0.00"}},{"v":0,"d":"$0.00"},{"v":0,"d":"$0.00"},{"v":0,"d":"$0.00"},{"v":0,"d":"$0.00"}]
["LTC",null,null,{"$f":"Jurat!I$1","v":0},{"$f":"Jurat!D$33","v":"00:00:00"},"Q1","2017-03-31","Region 6","Operating Expense","Taxes & Fees","Taxes & Fees","6.2","Department of Insurance Assessments",{"$f":"'LTC Rev-Exp Region 6'!D$65","v":{"v":0,"d":"$0.00"}},{"v":0,"d":"$0.00"},{"v":0,"d":"$0.00"},{"v":0,"d":"$0.00"},{"v":0,"d":"$0.00"}]
["LTC",null,null,{"$f":"Jurat!I$1","v":0},{"$f":"Jurat!D$33","v":"00:00:00"},"Q1","2017-03-31","Region 6","Non-Operating Expense","Income Tax Expense","Income Tax Expense","9.0","Income Tax Expense",{"$f":"'LTC Rev-Exp Region 6'!D$72","v":{"v":0,"d":"$0.00"}},{"v":0,"d":"$0.00"},{"v":0,"d":"$0.00"},{"v":0,"d":"$0.00"},{"v":0,"d":"$0.00"}]
["LTC",null,null,{"$f":"Jurat!I$1","v":0},{"$f":"Jurat!D$33","v":"00:00:00"},"Q2","2017-06-30","Region 6","Member Months","Member Months","Member Months",null,"Member Months",{"$f":"'LTC Rev-Exp Region 6'!H$9","v":{"v":0,"d":"$0.00"}},{"$f":"'LTC Rev-Exp Region 6'!I$9","v":{"v":0,"d":"$0.00"}},{"$f":"'LTC Rev-Exp Region 6'!J$9","v":{"v":0,"d":"$0.00"}},{"$f":"'LTC Rev-Exp Region 6'!K$9","v":{"v":0,"d":"$0.00"}},{"v":0,"d":"$0.00"}]
["LTC",null,null,{"$f":"Jurat!I$1","v":0},{"$f":"Jurat!D$33","v":"00:00:00"},"Q2","2017-06-30","Region 6","Operating Revenue","Capitation","Capitation",1.1,"Capitation",{"$f":"'LTC Rev-Exp Region 6'!H$11","v":{"v":0,"d":"$0.00"}},{"$f":"'LTC Rev-Exp Region 6'!I$11","v":{"v":0,"d":"$0.00"}},{"$f":"'LTC Rev-Exp Region 6'!J$11","v":{"v":0,"d":"$0.00"}},{"$f":"'LTC Rev-Exp Region 6'!K$11","v":{"v":0,"d":"$0.00"}},{"v":0,"d":"$0.00"}]
["LTC",null,null,{"$f":"Jurat!I$1","v":0},{"$f":"Jurat!D$33","v":"00:00:00"},"Q2","2017-06-30","Region 6","Operating Revenue","Capitation","NH Rate Reconciliation",1.2,"NH Rate Reconciliation",{"$f":"'LTC Rev-Exp Region 6'!H$12","v":{"v":0,"d":"$0.00"}},{"$f":"'LTC Rev-Exp Region 6'!I$12","v":{"v":0,"d":"$0.00"}},{"$f":"'LTC Rev-Exp Region 6'!J$12","v":{"v":0,"d":"$0.00"}},{"$f":"'LTC Rev-Exp Region 6'!K$12","v":{"v":0,"d":"$0.00"}},{"v":0,"d":"$0.00"}]
["LTC",null,null,{"$f":"Jurat!I$1","v":0},{"$f":"Jurat!D$33","v":"00:00:00"},"Q2","2017-06-30","Region 6","Operating Revenue","Other Revenue","Other Revenue",1.3,"Other Revenue",{"$f":"'LTC Rev-Exp Region 6'!H$13","v":{"v":0,"d":"$0.00"}},{"$f":"'LTC Rev-Exp Region 6'!I$13","v":{"v":0,"d":"$0.00"}},{"$f":"'LTC Rev-Exp Region 6'!J$13","v":{"v":0,"d":"$0.00"}},{"$f":"'LTC Rev-Exp Region 6'!K$13","v":{"v":0,"d":"$0.00"}},{"v":0,"d":"$0.00"}]
["LTC",null,null,{"$f":"Jurat!I$1","v":0},{"$f":"Jurat!D$33","v":"00:00:00"},"Q2","2017-06-30","Region 6","Operating Expense","Medical Expense","NF & Hospice","2.1","Nursing Facility Days (Medicaid)",{"$f":"'LTC Rev-Exp Region 6'!H$17","v":{"v":0,"d":"$0.00"}},{"$f":"'LTC Rev-Exp Region 6'!I$17","v":{"v":0,"d":"$0.00"}},{"$f":"'LTC Rev-Exp Region 6'!J$17","v":{"v":0,"d":"$0.00"}},{"$f":"'LTC Rev-Exp Region 6'!K$17","v":{"v":0,"d":"$0.00"}},{"v":0,"d":"$0.00"}]
["LTC",null,null,{"$f":"Jurat!I$1","v":0},{"$f":"Jurat!D$33","v":"00:00:00"},"Q2","2017-06-30","Region 6","Operating Expense","Medical Expense","NF & Hospice","2.2","Nursing Facility Days (Crossover)",{"$f":"'LTC Rev-Exp Region 6'!H$18","v":{"v":0,"d":"$0.00"}},{"$f":"'LTC Rev-Exp Region 6'!I$18","v":{"v":0,"d":"$0.00"}},{"$f":"'LTC Rev-Exp Region 6'!J$18","v":{"v":0,"d":"$0.00"}},{"$f":"'LTC Rev-Exp Region 6'!K$18","v":{"v":0,"d":"$0.00"}},{"v":0,"d":"$0.00"}]
["LTC",null,null,{"$f":"Jurat!I$1","v":0},{"$f":"Jurat!D$33","v":"00:00:00"},"Q2","2017-06-30","Region 6","Operating Expense","Medical Expense","NF & Hospice","2.3","Nursing Facility FFS (Medicaid)",{"$f":"'LTC Rev-Exp Region 6'!H$19","v":{"v":0,"d":"$0.00"}},{"$f":"'LTC Rev-Exp Region 6'!I$19","v":{"v":0,"d":"$0.00"}},{"$f":"'LTC Rev-Exp Region 6'!J$19","v":{"v":0,"d":"$0.00"}},{"$f":"'LTC Rev-Exp Region 6'!K$19","v":{"v":0,"d":"$0.00"}},{"v":0,"d":"$0.00"}]
["LTC",null,null,{"$f":"Jurat!I$1","v":0},{"$f":"Jurat!D$33","v":"00:00:00"},"Q2","2017-06-30","Region 6","Operating Expense","Medical Expense","NF & Hospice","2.4","Nursing Facility FFS (Crossover)",{"$f":"'LTC Rev-Exp Region 6'!H$20","v":{"v":0,"d":"$0.00"}},{"$f":"'LTC Rev-Exp Region 6'!I$20","v":{"v":0,"d":"$0.00"}},{"$f":"'LTC Rev-Exp Region 6'!J$20","v":{"v":0,"d":"$0.00"}},{"$f":"'LTC Rev-Exp Region 6'!K$20","v":{"v":0,"d":"$0.00"}},{"v":0,"d":"$0.00"}]
["LTC",null,null,{"$f":"Jurat!I$1","v":0},{"$f":"Jurat!D$33","v":"00:00:00"},"Q2","2017-06-30","Region 6","Operating Expense","Medical Expense","NF & Hospice","2.5","Hospice Days",{"$f":"'LTC Rev-Exp Region 6'!H$21","v":{"v":0,"d":"$0.00"}},{"$f":"'LTC Rev-Exp Region 6'!I$21","v":{"v":0,"d":"$0.00"}},{"$f":"'LTC Rev-Exp Region 6'!J$21","v":{"v":0,"d":"$0.00"}},{"$f":"'LTC Rev-Exp Region 6'!K$21","v":{"v":0,"d":"$0.00"}},{"v":0,"d":"$0.00"}]
["LTC",null,null,{"$f":"Jurat!I$1","v":0},{"$f":"Jurat!D$33","v":"00:00:00"},"Q2","2017-06-30","Region 6","Operating Expense","Medical Expense","NF & Hospice","2.6","Hospice FFS",{"$f":"'LTC Rev-Exp Region 6'!H$22","v":{"v":0,"d":"$0.00"}},{"$f":"'LTC Rev-Exp Region 6'!I$22","v":{"v":0,"d":"$0.00"}},{"$f":"'LTC Rev-Exp Region 6'!J$22","v":{"v":0,"d":"$0.00"}},{"$f":"'LTC Rev-Exp Region 6'!K$22","v":{"v":0,"d":"$0.00"}},{"v":0,"d":"$0.00"}]
["LTC",null,null,{"$f":"Jurat!I$1","v":0},{"$f":"Jurat!D$33","v":"00:00:00"},"Q2","2017-06-30","Region 6","Operating Expense","Medical Expense","NF & Hospice","2.7","Ending IBNP for NF & Hospice",{"$f":"'LTC Rev-Exp Region 6'!H$23","v":{"v":0,"d":"$0.00"}},{"$f":"'LTC Rev-Exp Region 6'!I$23","v":{"v":0,"d":"$0.00"}},{"$f":"'LTC Rev-Exp Region 6'!J$23","v":{"v":0,"d":"$0.00"}},{"$f":"'LTC Rev-Exp Region 6'!K$23","v":{"v":0,"d":"$0.00"}},{"v":0,"d":"$0.00"}]
["LTC",null,null,{"$f":"Jurat!I$1","v":0},{"$f":"Jurat!D$33","v":"00:00:00"},"Q2","2017-06-30","Region 6","Operating Expense","Medical Expense","NF & Hospice","2.8","NF & Hospice Subcapitated",{"$f":"'LTC Rev-Exp Region 6'!H$24","v":{"v":0,"d":"$0.00"}},{"$f":"'LTC Rev-Exp Region 6'!I$24","v":{"v":0,"d":"$0.00"}},{"$f":"'LTC Rev-Exp Region 6'!J$24","v":{"v":0,"d":"$0.00"}},{"$f":"'LTC Rev-Exp Region 6'!K$24","v":{"v":0,"d":"$0.00"}},{"v":0,"d":"$0.00"}]
["LTC",null,null,{"$f":"Jurat!I$1","v":0},{"$f":"Jurat!D$33","v":"00:00:00"},"Q2","2017-06-30","Region 6","Operating Expense","Medical Expense","NF & Hospice","2.9","NF & Hospice Settlements",{"$f":"'LTC Rev-Exp Region 6'!H$25","v":{"v":0,"d":"$0.00"}},{"$f":"'LTC Rev-Exp Region 6'!I$25","v":{"v":0,"d":"$0.00"}},{"$f":"'LTC Rev-Exp Region 6'!J$25","v":{"v":0,"d":"$0.00"}},{"$f":"'LTC Rev-Exp Region 6'!K$25","v":{"v":0,"d":"$0.00"}},{"v":0,"d":"$0.00"}]
["LTC",null,null,{"$f":"Jurat!I$1","v":0},{"$f":"Jurat!D$33","v":"00:00:00"},"Q2","2017-06-30","Region 6","Operating Expense","Medical Expense","LTC Services","2.11","Assisted Living FFS",{"$f":"'LTC Rev-Exp Region 6'!H$27","v":{"v":0,"d":"$0.00"}},{"$f":"'LTC Rev-Exp Region 6'!I$27","v":{"v":0,"d":"$0.00"}},{"$f":"'LTC Rev-Exp Region 6'!J$27","v":{"v":0,"d":"$0.00"}},{"$f":"'LTC Rev-Exp Region 6'!K$27","v":{"v":0,"d":"$0.00"}},{"v":0,"d":"$0.00"}]
["LTC",null,null,{"$f":"Jurat!I$1","v":0},{"$f":"Jurat!D$33","v":"00:00:00"},"Q2","2017-06-30","Region 6","Operating Expense","Medical Expense","LTC Services","2.12","Home Health FFS",{"$f":"'LTC Rev-Exp Region 6'!H$28","v":{"v":0,"d":"$0.00"}},{"$f":"'LTC Rev-Exp Region 6'!I$28","v":{"v":0,"d":"$0.00"}},{"$f":"'LTC Rev-Exp Region 6'!J$28","v":{"v":0,"d":"$0.00"}},{"$f":"'LTC Rev-Exp Region 6'!K$28","v":{"v":0,"d":"$0.00"}},{"v":0,"d":"$0.00"}]
["LTC",null,null,{"$f":"Jurat!I$1","v":0},{"$f":"Jurat!D$33","v":"00:00:00"},"Q2","2017-06-30","Region 6","Operating Expense","Medical Expense","LTC Services","2.13","Medical Equipment/Supplies FFS",{"$f":"'LTC Rev-Exp Region 6'!H$29","v":{"v":0,"d":"$0.00"}},{"$f":"'LTC Rev-Exp Region 6'!I$29","v":{"v":0,"d":"$0.00"}},{"$f":"'LTC Rev-Exp Region 6'!J$29","v":{"v":0,"d":"$0.00"}},{"$f":"'LTC Rev-Exp Region 6'!K$29","v":{"v":0,"d":"$0.00"}},{"v":0,"d":"$0.00"}]
["LTC",null,null,{"$f":"Jurat!I$1","v":0},{"$f":"Jurat!D$33","v":"00:00:00"},"Q2","2017-06-30","Region 6","Operating Expense","Medical Expense","LTC Services","2.14","Therapy FFS",{"$f":"'LTC Rev-Exp Region 6'!H$30","v":{"v":0,"d":"$0.00"}},{"$f":"'LTC Rev-Exp Region 6'!I$30","v":{"v":0,"d":"$0.00"}},{"$f":"'LTC Rev-Exp Region 6'!J$30","v":{"v":0,"d":"$0.00"}},{"$f":"'LTC Rev-Exp Region 6'!K$30","v":{"v":0,"d":"$0.00"}},{"v":0,"d":"$0.00"}]
["LTC",null,null,{"$f":"Jurat!I$1","v":0},{"$f":"Jurat!D$33","v":"00:00:00"},"Q2","2017-06-30","Region 6","Operating Expense","Medical Expense","LTC Services","2.15","Transportation FFS",{"$f":"'LTC Rev-Exp Region 6'!H$31","v":{"v":0,"d":"$0.00"}},{"$f":"'LTC Rev-Exp Region 6'!I$31","v":{"v":0,"d":"$0.00"}},{"$f":"'LTC Rev-Exp Region 6'!J$31","v":{"v":0,"d":"$0.00"}},{"$f":"'LTC Rev-Exp Region 6'!K$31","v":{"v":0,"d":"$0.00"}},{"v":0,"d":"$0.00"}]
["LTC",null,null,{"$f":"Jurat!I$1","v":0},{"$f":"Jurat!D$33","v":"00:00:00"},"Q2","2017-06-30","Region 6","Operating Expense","Medical Expense","LTC Services","2.16","Case Management FFS (Plan Provided)",{"$f":"'LTC Rev-Exp Region 6'!H$32","v":{"v":0,"d":"$0.00"}},{"$f":"'LTC Rev-Exp Region 6'!I$32","v":{"v":0,"d":"$0.00"}},{"$f":"'LTC Rev-Exp Region 6'!J$32","v":{"v":0,"d":"$0.00"}},{"$f":"'LTC Rev-Exp Region 6'!K$32","v":{"v":0,"d":"$0.00"}},{"v":0,"d":"$0.00"}]
["LTC",null,null,{"$f":"Jurat!I$1","v":0},{"$f":"Jurat!D$33","v":"00:00:00"},"Q2","2017-06-30","Region 6","Operating Expense","Medical Expense","LTC Services","2.17","Case Management FF (Non-Plan Provided)",{"$f":"'LTC Rev-Exp Region 6'!H$33","v":{"v":0,"d":"$0.00"}},{"$f":"'LTC Rev-Exp Region 6'!I$33","v":{"v":0,"d":"$0.00"}},{"$f":"'LTC Rev-Exp Region 6'!J$33","v":{"v":0,"d":"$0.00"}},{"$f":"'LTC Rev-Exp Region 6'!K$33","v":{"v":0,"d":"$0.00"}},{"v":0,"d":"$0.00"}]
["LTC",null,null,{"$f":"Jurat!I$1","v":0},{"$f":"Jurat!D$33","v":"00:00:00"},"Q2","2017-06-30","Region 6","Operating Expense","Medical Expense","LTC Services","2.18","HCBS FFS",{"$f":"'LTC Rev-Exp Region 6'!H$34","v":{"v":0,"d":"$0.00"}},{"$f":"'LTC Rev-Exp Region 6'!I$34","v":{"v":0,"d":"$0.00"}},{"$f":"'LTC Rev-Exp Region 6'!J$34","v":{"v":0,"d":"$0.00"}},{"$f":"'LTC Rev-Exp Region 6'!K$34","v":{"v":0,"d":"$0.00"}},{"v":0,"d":"$0.00"}]
["LTC",null,null,{"$f":"Jurat!I$1","v":0},{"$f":"Jurat!D$33","v":"00:00:00"},"Q2","2017-06-30","Region 6","Operating Expense","Medical Expense","LTC Services","2.19","Subcapitated LTC Services",{"$f":"'LTC Rev-Exp Region 6'!H$35","v":{"v":0,"d":"$0.00"}},{"$f":"'LTC Rev-Exp Region 6'!I$35","v":{"v":0,"d":"$0.00"}},{"$f":"'LTC Rev-Exp Region 6'!J$35","v":{"v":0,"d":"$0.00"}},{"$f":"'LTC Rev-Exp Region 6'!K$35","v":{"v":0,"d":"$0.00"}},{"v":0,"d":"$0.00"}]
["LTC",null,null,{"$f":"Jurat!I$1","v":0},{"$f":"Jurat!D$33","v":"00:00:00"},"Q2","2017-06-30","Region 6","Operating Expense","Medical Expense","LTC Services","2.20","Ending IBNP for Long Term Care Services",{"$f":"'LTC Rev-Exp Region 6'!H$36","v":{"v":0,"d":"$0.00"}},{"$f":"'LTC Rev-Exp Region 6'!I$36","v":{"v":0,"d":"$0.00"}},{"$f":"'LTC Rev-Exp Region 6'!J$36","v":{"v":0,"d":"$0.00"}},{"$f":"'LTC Rev-Exp Region 6'!K$36","v":{"v":0,"d":"$0.00"}},{"v":0,"d":"$0.00"}]
["LTC",null,null,{"$f":"Jurat!I$1","v":0},{"$f":"Jurat!D$33","v":"00:00:00"},"Q2","2017-06-30","Region 6","Operating Expense","Medical Expense","LTC Services","2.21","LTC Services Settlements",{"$f":"'LTC Rev-Exp Region 6'!H$37","v":{"v":0,"d":"$0.00"}},{"$f":"'LTC Rev-Exp Region 6'!I$37","v":{"v":0,"d":"$0.00"}},{"$f":"'LTC Rev-Exp Region 6'!J$37","v":{"v":0,"d":"$0.00"}},{"$f":"'LTC Rev-Exp Region 6'!K$37","v":{"v":0,"d":"$0.00"}},{"v":0,"d":"$0.00"}]
["LTC",null,null,{"$f":"Jurat!I$1","v":0},{"$f":"Jurat!D$33","v":"00:00:00"},"Q2","2017-06-30","Region 6","Operating Expense","Medical Expense","Expanded Benefits","3.1","Expanded Benefits FFS",{"$f":"'LTC Rev-Exp Region 6'!H$39","v":{"v":0,"d":"$0.00"}},{"$f":"'LTC Rev-Exp Region 6'!I$39","v":{"v":0,"d":"$0.00"}},{"$f":"'LTC Rev-Exp Region 6'!J$39","v":{"v":0,"d":"$0.00"}},{"$f":"'LTC Rev-Exp Region 6'!K$39","v":{"v":0,"d":"$0.00"}},{"v":0,"d":"$0.00"}]
["LTC",null,null,{"$f":"Jurat!I$1","v":0},{"$f":"Jurat!D$33","v":"00:00:00"},"Q2","2017-06-30","Region 6","Operating Expense","Medical Expense","Expanded Benefits","3.2","Expanded Benefits Subcapitation",{"$f":"'LTC Rev-Exp Region 6'!H$40","v":{"v":0,"d":"$0.00"}},{"$f":"'LTC Rev-Exp Region 6'!I$40","v":{"v":0,"d":"$0.00"}},{"$f":"'LTC Rev-Exp Region 6'!J$40","v":{"v":0,"d":"$0.00"}},{"$f":"'LTC Rev-Exp Region 6'!K$40","v":{"v":0,"d":"$0.00"}},{"v":0,"d":"$0.00"}]
["LTC",null,null,{"$f":"Jurat!I$1","v":0},{"$f":"Jurat!D$33","v":"00:00:00"},"Q2","2017-06-30","Region 6","Operating Expense","Medical Expense","Expanded Benefits","3.3","Ending IBNP for Expanded Benefits",{"$f":"'LTC Rev-Exp Region 6'!H$41","v":{"v":0,"d":"$0.00"}},{"$f":"'LTC Rev-Exp Region 6'!I$41","v":{"v":0,"d":"$0.00"}},{"$f":"'LTC Rev-Exp Region 6'!J$41","v":{"v":0,"d":"$0.00"}},{"$f":"'LTC Rev-Exp Region 6'!K$41","v":{"v":0,"d":"$0.00"}},{"v":0,"d":"$0.00"}]
["LTC",null,null,{"$f":"Jurat!I$1","v":0},{"$f":"Jurat!D$33","v":"00:00:00"},"Q2","2017-06-30","Region 6","Operating Expense","Medical Expense","Expanded Benefits","3.4","Expanded Benefits Settlements",{"$f":"'LTC Rev-Exp Region 6'!H$42","v":{"v":0,"d":"$0.00"}},{"$f":"'LTC Rev-Exp Region 6'!I$42","v":{"v":0,"d":"$0.00"}},{"$f":"'LTC Rev-Exp Region 6'!J$42","v":{"v":0,"d":"$0.00"}},{"$f":"'LTC Rev-Exp Region 6'!K$42","v":{"v":0,"d":"$0.00"}},{"v":0,"d":"$0.00"}]
["LTC",null,null,{"$f":"Jurat!I$1","v":0},{"$f":"Jurat!D$33","v":"00:00:00"},"Q2","2017-06-30","Region 6","Operating Expense","Medical Expense","Other Medical","4.5","TPL & Fraud/Abuse Recoveries",{"$f":"'LTC Rev-Exp Region 6'!H$48","v":{"v":0,"d":"$0.00"}},{"$f":"'LTC Rev-Exp Region 6'!I$48","v":{"v":0,"d":"$0.00"}},{"$f":"'LTC Rev-Exp Region 6'!J$48","v":{"v":0,"d":"$0.00"}},{"$f":"'LTC Rev-Exp Region 6'!K$48","v":{"v":0,"d":"$0.00"}},{"v":0,"d":"$0.00"}]
["LTC",null,null,{"$f":"Jurat!I$1","v":0},{"$f":"Jurat!D$33","v":"00:00:00"},"Q2","2017-06-30","Region 6","Operating Expense","Medical Expense","Other Medical","4.6.1","Premium Deficiency Reserve",{"$f":"'LTC Rev-Exp Region 6'!H$49","v":{"v":0,"d":"$0.00"}},{"$f":"'LTC Rev-Exp Region 6'!I$49","v":{"v":0,"d":"$0.00"}},{"$f":"'LTC Rev-Exp Region 6'!J$49","v":{"v":0,"d":"$0.00"}},{"$f":"'LTC Rev-Exp Region 6'!K$49","v":{"v":0,"d":"$0.00"}},{"v":0,"d":"$0.00"}]
["LTC",null,null,{"$f":"Jurat!I$1","v":0},{"$f":"Jurat!D$33","v":"00:00:00"},"Q2","2017-06-30","Region 6","Operating Expense","Medical Expense","Other Medical","4.8","Reinsurance Premiums",{"$f":"'LTC Rev-Exp Region 6'!H$51","v":{"v":0,"d":"$0.00"}},{"$f":"'LTC Rev-Exp Region 6'!I$51","v":{"v":0,"d":"$0.00"}},{"$f":"'LTC Rev-Exp Region 6'!J$51","v":{"v":0,"d":"$0.00"}},{"$f":"'LTC Rev-Exp Region 6'!K$51","v":{"v":0,"d":"$0.00"}},{"v":0,"d":"$0.00"}]
["LTC",null,null,{"$f":"Jurat!I$1","v":0},{"$f":"Jurat!D$33","v":"00:00:00"},"Q2","2017-06-30","Region 6","Operating Expense","Medical Expense","Other Medical","4.9","Reinsurance Recoveries",{"$f":"'LTC Rev-Exp Region 6'!H$52","v":{"v":0,"d":"$0.00"}},{"$f":"'LTC Rev-Exp Region 6'!I$52","v":{"v":0,"d":"$0.00"}},{"$f":"'LTC Rev-Exp Region 6'!J$52","v":{"v":0,"d":"$0.00"}},{"$f":"'LTC Rev-Exp Region 6'!K$52","v":{"v":0,"d":"$0.00"}},{"v":0,"d":"$0.00"}]
["LTC",null,null,{"$f":"Jurat!I$1","v":0},{"$f":"Jurat!D$33","v":"00:00:00"},"Q2","2017-06-30","Region 6","Operating Expense","Administrative Expense","Administrative","5.1","Salaries & Benefits",{"$f":"'LTC Rev-Exp Region 6'!H$57","v":{"v":0,"d":"$0.00"}},{"$f":"'LTC Rev-Exp Region 6'!I$57","v":{"v":0,"d":"$0.00"}},{"$f":"'LTC Rev-Exp Region 6'!J$57","v":{"v":0,"d":"$0.00"}},{"$f":"'LTC Rev-Exp Region 6'!K$57","v":{"v":0,"d":"$0.00"}},{"v":0,"d":"$0.00"}]
["LTC",null,null,{"$f":"Jurat!I$1","v":0},{"$f":"Jurat!D$33","v":"00:00:00"},"Q2","2017-06-30","Region 6","Operating Expense","Administrative Expense","Administrative","5.2","Administrative Services",{"$f":"'LTC Rev-Exp Region 6'!H$58","v":{"v":0,"d":"$0.00"}},{"$f":"'LTC Rev-Exp Region 6'!I$58","v":{"v":0,"d":"$0.00"}},{"$f":"'LTC Rev-Exp Region 6'!J$58","v":{"v":0,"d":"$0.00"}},{"$f":"'LTC Rev-Exp Region 6'!K$58","v":{"v":0,"d":"$0.00"}},{"v":0,"d":"$0.00"}]
["LTC",null,null,{"$f":"Jurat!I$1","v":0},{"$f":"Jurat!D$33","v":"00:00:00"},"Q2","2017-06-30","Region 6","Operating Expense","Administrative Expense","Administrative","5.3","Information Systems",{"$f":"'LTC Rev-Exp Region 6'!H$59","v":{"v":0,"d":"$0.00"}},{"$f":"'LTC Rev-Exp Region 6'!I$59","v":{"v":0,"d":"$0.00"}},{"$f":"'LTC Rev-Exp Region 6'!J$59","v":{"v":0,"d":"$0.00"}},{"$f":"'LTC Rev-Exp Region 6'!K$59","v":{"v":0,"d":"$0.00"}},{"v":0,"d":"$0.00"}]
["LTC",null,null,{"$f":"Jurat!I$1","v":0},{"$f":"Jurat!D$33","v":"00:00:00"},"Q2","2017-06-30","Region 6","Operating Expense","Administrative Expense","Administrative","5.4","Marketing Expenses",{"$f":"'LTC Rev-Exp Region 6'!H$60","v":{"v":0,"d":"$0.00"}},{"$f":"'LTC Rev-Exp Region 6'!I$60","v":{"v":0,"d":"$0.00"}},{"$f":"'LTC Rev-Exp Region 6'!J$60","v":{"v":0,"d":"$0.00"}},{"$f":"'LTC Rev-Exp Region 6'!K$60","v":{"v":0,"d":"$0.00"}},{"v":0,"d":"$0.00"}]
["LTC",null,null,{"$f":"Jurat!I$1","v":0},{"$f":"Jurat!D$33","v":"00:00:00"},"Q2","2017-06-30","Region 6","Operating Expense","Administrative Expense","Administrative","5.5","General  Administration",{"$f":"'LTC Rev-Exp Region 6'!H$61","v":{"v":0,"d":"$0.00"}},{"$f":"'LTC Rev-Exp Region 6'!I$61","v":{"v":0,"d":"$0.00"}},{"$f":"'LTC Rev-Exp Region 6'!J$61","v":{"v":0,"d":"$0.00"}},{"$f":"'LTC Rev-Exp Region 6'!K$61","v":{"v":0,"d":"$0.00"}},{"v":0,"d":"$0.00"}]
["LTC",null,null,{"$f":"Jurat!I$1","v":0},{"$f":"Jurat!D$33","v":"00:00:00"},"Q2","2017-06-30","Region 6","Operating Expense","Administrative Expense","Administrative","5.6","Compliance/Regulatory",{"$f":"'LTC Rev-Exp Region 6'!H$62","v":{"v":0,"d":"$0.00"}},{"$f":"'LTC Rev-Exp Region 6'!I$62","v":{"v":0,"d":"$0.00"}},{"$f":"'LTC Rev-Exp Region 6'!J$62","v":{"v":0,"d":"$0.00"}},{"$f":"'LTC Rev-Exp Region 6'!K$62","v":{"v":0,"d":"$0.00"}},{"v":0,"d":"$0.00"}]
["LTC",null,null,{"$f":"Jurat!I$1","v":0},{"$f":"Jurat!D$33","v":"00:00:00"},"Q2","2017-06-30","Region 6","Operating Expense","Taxes & Fees","Taxes & Fees","6.1","State Premium Tax",{"$f":"'LTC Rev-Exp Region 6'!H$64","v":{"v":0,"d":"$0.00"}},{"v":0,"d":"$0.00"},{"v":0,"d":"$0.00"},{"v":0,"d":"$0.00"},{"v":0,"d":"$0.00"}]
["LTC",null,null,{"$f":"Jurat!I$1","v":0},{"$f":"Jurat!D$33","v":"00:00:00"},"Q2","2017-06-30","Region 6","Operating Expense","Taxes & Fees","Taxes & Fees","6.2","Department of Insurance Assessments",{"$f":"'LTC Rev-Exp Region 6'!H$65","v":{"v":0,"d":"$0.00"}},{"v":0,"d":"$0.00"},{"v":0,"d":"$0.00"},{"v":0,"d":"$0.00"},{"v":0,"d":"$0.00"}]
["LTC",null,null,{"$f":"Jurat!I$1","v":0},{"$f":"Jurat!D$33","v":"00:00:00"},"Q2","2017-06-30","Region 6","Non-Operating Expense","Income Tax Expense","Income Tax Expense","9.0","Income Tax Expense",{"$f":"'LTC Rev-Exp Region 6'!H$72","v":{"v":0,"d":"$0.00"}},{"v":0,"d":"$0.00"},{"v":0,"d":"$0.00"},{"v":0,"d":"$0.00"},{"v":0,"d":"$0.00"}]
["LTC",null,null,{"$f":"Jurat!I$1","v":0},{"$f":"Jurat!D$33","v":"00:00:00"},"Q3","2017-09-30","Region 6","Member Months","Member Months","Member Months",null,"Member Months",{"$f":"'LTC Rev-Exp Region 6'!L$9","v":{"v":0,"d":"$0.00"}},{"$f":"'LTC Rev-Exp Region 6'!M$9","v":{"v":0,"d":"$0.00"}},{"$f":"'LTC Rev-Exp Region 6'!N$9","v":{"v":0,"d":"$0.00"}},{"$f":"'LTC Rev-Exp Region 6'!O$9","v":{"v":0,"d":"$0.00"}},{"v":0,"d":"$0.00"}]
["LTC",null,null,{"$f":"Jurat!I$1","v":0},{"$f":"Jurat!D$33","v":"00:00:00"},"Q3","2017-09-30","Region 6","Operating Revenue","Capitation","Capitation",1.1,"Capitation",{"$f":"'LTC Rev-Exp Region 6'!L$11","v":{"v":0,"d":"$0.00"}},{"$f":"'LTC Rev-Exp Region 6'!M$11","v":{"v":0,"d":"$0.00"}},{"$f":"'LTC Rev-Exp Region 6'!N$11","v":{"v":0,"d":"$0.00"}},{"$f":"'LTC Rev-Exp Region 6'!O$11","v":{"v":0,"d":"$0.00"}},{"v":0,"d":"$0.00"}]
["LTC",null,null,{"$f":"Jurat!I$1","v":0},{"$f":"Jurat!D$33","v":"00:00:00"},"Q3","2017-09-30","Region 6","Operating Revenue","Capitation","NH Rate Reconciliation",1.2,"NH Rate Reconciliation",{"$f":"'LTC Rev-Exp Region 6'!L$12","v":{"v":0,"d":"$0.00"}},{"$f":"'LTC Rev-Exp Region 6'!M$12","v":{"v":0,"d":"$0.00"}},{"$f":"'LTC Rev-Exp Region 6'!N$12","v":{"v":0,"d":"$0.00"}},{"$f":"'LTC Rev-Exp Region 6'!O$12","v":{"v":0,"d":"$0.00"}},{"v":0,"d":"$0.00"}]
["LTC",null,null,{"$f":"Jurat!I$1","v":0},{"$f":"Jurat!D$33","v":"00:00:00"},"Q3","2017-09-30","Region 6","Operating Revenue","Other Revenue","Other Revenue",1.3,"Other Revenue",{"$f":"'LTC Rev-Exp Region 6'!L$13","v":{"v":0,"d":"$0.00"}},{"$f":"'LTC Rev-Exp Region 6'!M$13","v":{"v":0,"d":"$0.00"}},{"$f":"'LTC Rev-Exp Region 6'!N$13","v":{"v":0,"d":"$0.00"}},{"$f":"'LTC Rev-Exp Region 6'!O$13","v":{"v":0,"d":"$0.00"}},{"v":0,"d":"$0.00"}]
["LTC",null,null,{"$f":"Jurat!I$1","v":0},{"$f":"Jurat!D$33","v":"00:00:00"},"Q3","2017-09-30","Region 6","Operating Expense","Medical Expense","NF & Hospice","2.1","Nursing Facility Days (Medicaid)",{"$f":"'LTC Rev-Exp Region 6'!L$17","v":{"v":0,"d":"$0.00"}},{"$f":"'LTC Rev-Exp Region 6'!M$17","v":{"v":0,"d":"$0.00"}},{"$f":"'LTC Rev-Exp Region 6'!N$17","v":{"v":0,"d":"$0.00"}},{"$f":"'LTC Rev-Exp Region 6'!O$17","v":{"v":0,"d":"$0.00"}},{"v":0,"d":"$0.00"}]
["LTC",null,null,{"$f":"Jurat!I$1","v":0},{"$f":"Jurat!D$33","v":"00:00:00"},"Q3","2017-09-30","Region 6","Operating Expense","Medical Expense","NF & Hospice","2.2","Nursing Facility Days (Crossover)",{"$f":"'LTC Rev-Exp Region 6'!L$18","v":{"v":0,"d":"$0.00"}},{"$f":"'LTC Rev-Exp Region 6'!M$18","v":{"v":0,"d":"$0.00"}},{"$f":"'LTC Rev-Exp Region 6'!N$18","v":{"v":0,"d":"$0.00"}},{"$f":"'LTC Rev-Exp Region 6'!O$18","v":{"v":0,"d":"$0.00"}},{"v":0,"d":"$0.00"}]
["LTC",null,null,{"$f":"Jurat!I$1","v":0},{"$f":"Jurat!D$33","v":"00:00:00"},"Q3","2017-09-30","Region 6","Operating Expense","Medical Expense","NF & Hospice","2.3","Nursing Facility FFS (Medicaid)",{"$f":"'LTC Rev-Exp Region 6'!L$19","v":{"v":0,"d":"$0.00"}},{"$f":"'LTC Rev-Exp Region 6'!M$19","v":{"v":0,"d":"$0.00"}},{"$f":"'LTC Rev-Exp Region 6'!N$19","v":{"v":0,"d":"$0.00"}},{"$f":"'LTC Rev-Exp Region 6'!O$19","v":{"v":0,"d":"$0.00"}},{"v":0,"d":"$0.00"}]
["LTC",null,null,{"$f":"Jurat!I$1","v":0},{"$f":"Jurat!D$33","v":"00:00:00"},"Q3","2017-09-30","Region 6","Operating Expense","Medical Expense","NF & Hospice","2.4","Nursing Facility FFS (Crossover)",{"$f":"'LTC Rev-Exp Region 6'!L$20","v":{"v":0,"d":"$0.00"}},{"$f":"'LTC Rev-Exp Region 6'!M$20","v":{"v":0,"d":"$0.00"}},{"$f":"'LTC Rev-Exp Region 6'!N$20","v":{"v":0,"d":"$0.00"}},{"$f":"'LTC Rev-Exp Region 6'!O$20","v":{"v":0,"d":"$0.00"}},{"v":0,"d":"$0.00"}]
["LTC",null,null,{"$f":"Jurat!I$1","v":0},{"$f":"Jurat!D$33","v":"00:00:00"},"Q3","2017-09-30","Region 6","Operating Expense","Medical Expense","NF & Hospice","2.5","Hospice Days",{"$f":"'LTC Rev-Exp Region 6'!L$21","v":{"v":0,"d":"$0.00"}},{"$f":"'LTC Rev-Exp Region 6'!M$21","v":{"v":0,"d":"$0.00"}},{"$f":"'LTC Rev-Exp Region 6'!N$21","v":{"v":0,"d":"$0.00"}},{"$f":"'LTC Rev-Exp Region 6'!O$21","v":{"v":0,"d":"$0.00"}},{"v":0,"d":"$0.00"}]
["LTC",null,null,{"$f":"Jurat!I$1","v":0},{"$f":"Jurat!D$33","v":"00:00:00"},"Q3","2017-09-30","Region 6","Operating Expense","Medical Expense","NF & Hospice","2.6","Hospice FFS",{"$f":"'LTC Rev-Exp Region 6'!L$22","v":{"v":0,"d":"$0.00"}},{"$f":"'LTC Rev-Exp Region 6'!M$22","v":{"v":0,"d":"$0.00"}},{"$f":"'LTC Rev-Exp Region 6'!N$22","v":{"v":0,"d":"$0.00"}},{"$f":"'LTC Rev-Exp Region 6'!O$22","v":{"v":0,"d":"$0.00"}},{"v":0,"d":"$0.00"}]
["LTC",null,null,{"$f":"Jurat!I$1","v":0},{"$f":"Jurat!D$33","v":"00:00:00"},"Q3","2017-09-30","Region 6","Operating Expense","Medical Expense","NF & Hospice","2.7","Ending IBNP for NF & Hospice",{"$f":"'LTC Rev-Exp Region 6'!L$23","v":{"v":0,"d":"$0.00"}},{"$f":"'LTC Rev-Exp Region 6'!M$23","v":{"v":0,"d":"$0.00"}},{"$f":"'LTC Rev-Exp Region 6'!N$23","v":{"v":0,"d":"$0.00"}},{"$f":"'LTC Rev-Exp Region 6'!O$23","v":{"v":0,"d":"$0.00"}},{"v":0,"d":"$0.00"}]
["LTC",null,null,{"$f":"Jurat!I$1","v":0},{"$f":"Jurat!D$33","v":"00:00:00"},"Q3","2017-09-30","Region 6","Operating Expense","Medical Expense","NF & Hospice","2.8","NF & Hospice Subcapitated",{"$f":"'LTC Rev-Exp Region 6'!L$24","v":{"v":0,"d":"$0.00"}},{"$f":"'LTC Rev-Exp Region 6'!M$24","v":{"v":0,"d":"$0.00"}},{"$f":"'LTC Rev-Exp Region 6'!N$24","v":{"v":0,"d":"$0.00"}},{"$f":"'LTC Rev-Exp Region 6'!O$24","v":{"v":0,"d":"$0.00"}},{"v":0,"d":"$0.00"}]
["LTC",null,null,{"$f":"Jurat!I$1","v":0},{"$f":"Jurat!D$33","v":"00:00:00"},"Q3","2017-09-30","Region 6","Operating Expense","Medical Expense","NF & Hospice","2.9","NF & Hospice Settlements",{"$f":"'LTC Rev-Exp Region 6'!L$25","v":{"v":0,"d":"$0.00"}},{"$f":"'LTC Rev-Exp Region 6'!M$25","v":{"v":0,"d":"$0.00"}},{"$f":"'LTC Rev-Exp Region 6'!N$25","v":{"v":0,"d":"$0.00"}},{"$f":"'LTC Rev-Exp Region 6'!O$25","v":{"v":0,"d":"$0.00"}},{"v":0,"d":"$0.00"}]
["LTC",null,null,{"$f":"Jurat!I$1","v":0},{"$f":"Jurat!D$33","v":"00:00:00"},"Q3","2017-09-30","Region 6","Operating Expense","Medical Expense","LTC Services","2.11","Assisted Living FFS",{"$f":"'LTC Rev-Exp Region 6'!L$27","v":{"v":0,"d":"$0.00"}},{"$f":"'LTC Rev-Exp Region 6'!M$27","v":{"v":0,"d":"$0.00"}},{"$f":"'LTC Rev-Exp Region 6'!N$27","v":{"v":0,"d":"$0.00"}},{"$f":"'LTC Rev-Exp Region 6'!O$27","v":{"v":0,"d":"$0.00"}},{"v":0,"d":"$0.00"}]
["LTC",null,null,{"$f":"Jurat!I$1","v":0},{"$f":"Jurat!D$33","v":"00:00:00"},"Q3","2017-09-30","Region 6","Operating Expense","Medical Expense","LTC Services","2.12","Home Health FFS",{"$f":"'LTC Rev-Exp Region 6'!L$28","v":{"v":0,"d":"$0.00"}},{"$f":"'LTC Rev-Exp Region 6'!M$28","v":{"v":0,"d":"$0.00"}},{"$f":"'LTC Rev-Exp Region 6'!N$28","v":{"v":0,"d":"$0.00"}},{"$f":"'LTC Rev-Exp Region 6'!O$28","v":{"v":0,"d":"$0.00"}},{"v":0,"d":"$0.00"}]
["LTC",null,null,{"$f":"Jurat!I$1","v":0},{"$f":"Jurat!D$33","v":"00:00:00"},"Q3","2017-09-30","Region 6","Operating Expense","Medical Expense","LTC Services","2.13","Medical Equipment/Supplies FFS",{"$f":"'LTC Rev-Exp Region 6'!L$29","v":{"v":0,"d":"$0.00"}},{"$f":"'LTC Rev-Exp Region 6'!M$29","v":{"v":0,"d":"$0.00"}},{"$f":"'LTC Rev-Exp Region 6'!N$29","v":{"v":0,"d":"$0.00"}},{"$f":"'LTC Rev-Exp Region 6'!O$29","v":{"v":0,"d":"$0.00"}},{"v":0,"d":"$0.00"}]
["LTC",null,null,{"$f":"Jurat!I$1","v":0},{"$f":"Jurat!D$33","v":"00:00:00"},"Q3","2017-09-30","Region 6","Operating Expense","Medical Expense","LTC Services","2.14","Therapy FFS",{"$f":"'LTC Rev-Exp Region 6'!L$30","v":{"v":0,"d":"$0.00"}},{"$f":"'LTC Rev-Exp Region 6'!M$30","v":{"v":0,"d":"$0.00"}},{"$f":"'LTC Rev-Exp Region 6'!N$30","v":{"v":0,"d":"$0.00"}},{"$f":"'LTC Rev-Exp Region 6'!O$30","v":{"v":0,"d":"$0.00"}},{"v":0,"d":"$0.00"}]
["LTC",null,null,{"$f":"Jurat!I$1","v":0},{"$f":"Jurat!D$33","v":"00:00:00"},"Q3","2017-09-30","Region 6","Operating Expense","Medical Expense","LTC Services","2.15","Transportation FFS",{"$f":"'LTC Rev-Exp Region 6'!L$31","v":{"v":0,"d":"$0.00"}},{"$f":"'LTC Rev-Exp Region 6'!M$31","v":{"v":0,"d":"$0.00"}},{"$f":"'LTC Rev-Exp Region 6'!N$31","v":{"v":0,"d":"$0.00"}},{"$f":"'LTC Rev-Exp Region 6'!O$31","v":{"v":0,"d":"$0.00"}},{"v":0,"d":"$0.00"}]
["LTC",null,null,{"$f":"Jurat!I$1","v":0},{"$f":"Jurat!D$33","v":"00:00:00"},"Q3","2017-09-30","Region 6","Operating Expense","Medical Expense","LTC Services","2.16","Case Management FFS (Plan Provided)",{"$f":"'LTC Rev-Exp Region 6'!L$32","v":{"v":0,"d":"$0.00"}},{"$f":"'LTC Rev-Exp Region 6'!M$32","v":{"v":0,"d":"$0.00"}},{"$f":"'LTC Rev-Exp Region 6'!N$32","v":{"v":0,"d":"$0.00"}},{"$f":"'LTC Rev-Exp Region 6'!O$32","v":{"v":0,"d":"$0.00"}},{"v":0,"d":"$0.00"}]
["LTC",null,null,{"$f":"Jurat!I$1","v":0},{"$f":"Jurat!D$33","v":"00:00:00"},"Q3","2017-09-30","Region 6","Operating Expense","Medical Expense","LTC Services","2.17","Case Management FF (Non-Plan Provided)",{"$f":"'LTC Rev-Exp Region 6'!L$33","v":{"v":0,"d":"$0.00"}},{"$f":"'LTC Rev-Exp Region 6'!M$33","v":{"v":0,"d":"$0.00"}},{"$f":"'LTC Rev-Exp Region 6'!N$33","v":{"v":0,"d":"$0.00"}},{"$f":"'LTC Rev-Exp Region 6'!O$33","v":{"v":0,"d":"$0.00"}},{"v":0,"d":"$0.00"}]
["LTC",null,null,{"$f":"Jurat!I$1","v":0},{"$f":"Jurat!D$33","v":"00:00:00"},"Q3","2017-09-30","Region 6","Operating Expense","Medical Expense","LTC Services","2.18","HCBS FFS",{"$f":"'LTC Rev-Exp Region 6'!L$34","v":{"v":0,"d":"$0.00"}},{"$f":"'LTC Rev-Exp Region 6'!M$34","v":{"v":0,"d":"$0.00"}},{"$f":"'LTC Rev-Exp Region 6'!N$34","v":{"v":0,"d":"$0.00"}},{"$f":"'LTC Rev-Exp Region 6'!O$34","v":{"v":0,"d":"$0.00"}},{"v":0,"d":"$0.00"}]
["LTC",null,null,{"$f":"Jurat!I$1","v":0},{"$f":"Jurat!D$33","v":"00:00:00"},"Q3","2017-09-30","Region 6","Operating Expense","Medical Expense","LTC Services","2.19","Subcapitated LTC Services",{"$f":"'LTC Rev-Exp Region 6'!L$35","v":{"v":0,"d":"$0.00"}},{"$f":"'LTC Rev-Exp Region 6'!M$35","v":{"v":0,"d":"$0.00"}},{"$f":"'LTC Rev-Exp Region 6'!N$35","v":{"v":0,"d":"$0.00"}},{"$f":"'LTC Rev-Exp Region 6'!O$35","v":{"v":0,"d":"$0.00"}},{"v":0,"d":"$0.00"}]
["LTC",null,null,{"$f":"Jurat!I$1","v":0},{"$f":"Jurat!D$33","v":"00:00:00"},"Q3","2017-09-30","Region 6","Operating Expense","Medical Expense","LTC Services","2.20","Ending IBNP for Long Term Care Services",{"$f":"'LTC Rev-Exp Region 6'!L$36","v":{"v":0,"d":"$0.00"}},{"$f":"'LTC Rev-Exp Region 6'!M$36","v":{"v":0,"d":"$0.00"}},{"$f":"'LTC Rev-Exp Region 6'!N$36","v":{"v":0,"d":"$0.00"}},{"$f":"'LTC Rev-Exp Region 6'!O$36","v":{"v":0,"d":"$0.00"}},{"v":0,"d":"$0.00"}]
["LTC",null,null,{"$f":"Jurat!I$1","v":0},{"$f":"Jurat!D$33","v":"00:00:00"},"Q3","2017-09-30","Region 6","Operating Expense","Medical Expense","LTC Services","2.21","LTC Services Settlements",{"$f":"'LTC Rev-Exp Region 6'!L$37","v":{"v":0,"d":"$0.00"}},{"$f":"'LTC Rev-Exp Region 6'!M$37","v":{"v":0,"d":"$0.00"}},{"$f":"'LTC Rev-Exp Region 6'!N$37","v":{"v":0,"d":"$0.00"}},{"$f":"'LTC Rev-Exp Region 6'!O$37","v":{"v":0,"d":"$0.00"}},{"v":0,"d":"$0.00"}]
["LTC",null,null,{"$f":"Jurat!I$1","v":0},{"$f":"Jurat!D$33","v":"00:00:00"},"Q3","2017-09-30","Region 6","Operating Expense","Medical Expense","Expanded Benefits","3.1","Expanded Benefits FFS",{"$f":"'LTC Rev-Exp Region 6'!L$39","v":{"v":0,"d":"$0.00"}},{"$f":"'LTC Rev-Exp Region 6'!M$39","v":{"v":0,"d":"$0.00"}},{"$f":"'LTC Rev-Exp Region 6'!N$39","v":{"v":0,"d":"$0.00"}},{"$f":"'LTC Rev-Exp Region 6'!O$39","v":{"v":0,"d":"$0.00"}},{"v":0,"d":"$0.00"}]
["LTC",null,null,{"$f":"Jurat!I$1","v":0},{"$f":"Jurat!D$33","v":"00:00:00"},"Q3","2017-09-30","Region 6","Operating Expense","Medical Expense","Expanded Benefits","3.2","Expanded Benefits Subcapitation",{"$f":"'LTC Rev-Exp Region 6'!L$40","v":{"v":0,"d":"$0.00"}},{"$f":"'LTC Rev-Exp Region 6'!M$40","v":{"v":0,"d":"$0.00"}},{"$f":"'LTC Rev-Exp Region 6'!N$40","v":{"v":0,"d":"$0.00"}},{"$f":"'LTC Rev-Exp Region 6'!O$40","v":{"v":0,"d":"$0.00"}},{"v":0,"d":"$0.00"}]
["LTC",null,null,{"$f":"Jurat!I$1","v":0},{"$f":"Jurat!D$33","v":"00:00:00"},"Q3","2017-09-30","Region 6","Operating Expense","Medical Expense","Expanded Benefits","3.3","Ending IBNP for Expanded Benefits",{"$f":"'LTC Rev-Exp Region 6'!L$41","v":{"v":0,"d":"$0.00"}},{"$f":"'LTC Rev-Exp Region 6'!M$41","v":{"v":0,"d":"$0.00"}},{"$f":"'LTC Rev-Exp Region 6'!N$41","v":{"v":0,"d":"$0.00"}},{"$f":"'LTC Rev-Exp Region 6'!O$41","v":{"v":0,"d":"$0.00"}},{"v":0,"d":"$0.00"}]
["LTC",null,null,{"$f":"Jurat!I$1","v":0},{"$f":"Jurat!D$33","v":"00:00:00"},"Q3","2017-09-30","Region 6","Operating Expense","Medical Expense","Expanded Benefits","3.4","Expanded Benefits Settlements",{"$f":"'LTC Rev-Exp Region 6'!L$42","v":{"v":0,"d":"$0.00"}},{"$f":"'LTC Rev-Exp Region 6'!M$42","v":{"v":0,"d":"$0.00"}},{"$f":"'LTC Rev-Exp Region 6'!N$42","v":{"v":0,"d":"$0.00"}},{"$f":"'LTC Rev-Exp Region 6'!O$42","v":{"v":0,"d":"$0.00"}},{"v":0,"d":"$0.00"}]
["LTC",null,null,{"$f":"Jurat!I$1","v":0},{"$f":"Jurat!D$33","v":"00:00:00"},"Q3","2017-09-30","Region 6","Operating Expense","Medical Expense","Other Medical","4.5","TPL & Fraud/Abuse Recoveries",{"$f":"'LTC Rev-Exp Region 6'!L$48","v":{"v":0,"d":"$0.00"}},{"$f":"'LTC Rev-Exp Region 6'!M$48","v":{"v":0,"d":"$0.00"}},{"$f":"'LTC Rev-Exp Region 6'!N$48","v":{"v":0,"d":"$0.00"}},{"$f":"'LTC Rev-Exp Region 6'!O$48","v":{"v":0,"d":"$0.00"}},{"v":0,"d":"$0.00"}]
["LTC",null,null,{"$f":"Jurat!I$1","v":0},{"$f":"Jurat!D$33","v":"00:00:00"},"Q3","2017-09-30","Region 6","Operating Expense","Medical Expense","Other Medical","4.6.1","Premium Deficiency Reserve",{"$f":"'LTC Rev-Exp Region 6'!L$49","v":{"v":0,"d":"$0.00"}},{"$f":"'LTC Rev-Exp Region 6'!M$49","v":{"v":0,"d":"$0.00"}},{"$f":"'LTC Rev-Exp Region 6'!N$49","v":{"v":0,"d":"$0.00"}},{"$f":"'LTC Rev-Exp Region 6'!O$49","v":{"v":0,"d":"$0.00"}},{"v":0,"d":"$0.00"}]
["LTC",null,null,{"$f":"Jurat!I$1","v":0},{"$f":"Jurat!D$33","v":"00:00:00"},"Q3","2017-09-30","Region 6","Operating Expense","Medical Expense","Other Medical","4.8","Reinsurance Premiums",{"$f":"'LTC Rev-Exp Region 6'!L$51","v":{"v":0,"d":"$0.00"}},{"$f":"'LTC Rev-Exp Region 6'!M$51","v":{"v":0,"d":"$0.00"}},{"$f":"'LTC Rev-Exp Region 6'!N$51","v":{"v":0,"d":"$0.00"}},{"$f":"'LTC Rev-Exp Region 6'!O$51","v":{"v":0,"d":"$0.00"}},{"v":0,"d":"$0.00"}]
["LTC",null,null,{"$f":"Jurat!I$1","v":0},{"$f":"Jurat!D$33","v":"00:00:00"},"Q3","2017-09-30","Region 6","Operating Expense","Medical Expense","Other Medical","4.9","Reinsurance Recoveries",{"$f":"'LTC Rev-Exp Region 6'!L$52","v":{"v":0,"d":"$0.00"}},{"$f":"'LTC Rev-Exp Region 6'!M$52","v":{"v":0,"d":"$0.00"}},{"$f":"'LTC Rev-Exp Region 6'!N$52","v":{"v":0,"d":"$0.00"}},{"$f":"'LTC Rev-Exp Region 6'!O$52","v":{"v":0,"d":"$0.00"}},{"v":0,"d":"$0.00"}]
["LTC",null,null,{"$f":"Jurat!I$1","v":0},{"$f":"Jurat!D$33","v":"00:00:00"},"Q3","2017-09-30","Region 6","Operating Expense","Administrative Expense","Administrative","5.1","Salaries & Benefits",{"$f":"'LTC Rev-Exp Region 6'!L$57","v":{"v":0,"d":"$0.00"}},{"$f":"'LTC Rev-Exp Region 6'!M$57","v":{"v":0,"d":"$0.00"}},{"$f":"'LTC Rev-Exp Region 6'!N$57","v":{"v":0,"d":"$0.00"}},{"$f":"'LTC Rev-Exp Region 6'!O$57","v":{"v":0,"d":"$0.00"}},{"v":0,"d":"$0.00"}]
["LTC",null,null,{"$f":"Jurat!I$1","v":0},{"$f":"Jurat!D$33","v":"00:00:00"},"Q3","2017-09-30","Region 6","Operating Expense","Administrative Expense","Administrative","5.2","Administrative Services",{"$f":"'LTC Rev-Exp Region 6'!L$58","v":{"v":0,"d":"$0.00"}},{"$f":"'LTC Rev-Exp Region 6'!M$58","v":{"v":0,"d":"$0.00"}},{"$f":"'LTC Rev-Exp Region 6'!N$58","v":{"v":0,"d":"$0.00"}},{"$f":"'LTC Rev-Exp Region 6'!O$58","v":{"v":0,"d":"$0.00"}},{"v":0,"d":"$0.00"}]
["LTC",null,null,{"$f":"Jurat!I$1","v":0},{"$f":"Jurat!D$33","v":"00:00:00"},"Q3","2017-09-30","Region 6","Operating Expense","Administrative Expense","Administrative","5.3","Information Systems",{"$f":"'LTC Rev-Exp Region 6'!L$59","v":{"v":0,"d":"$0.00"}},{"$f":"'LTC Rev-Exp Region 6'!M$59","v":{"v":0,"d":"$0.00"}},{"$f":"'LTC Rev-Exp Region 6'!N$59","v":{"v":0,"d":"$0.00"}},{"$f":"'LTC Rev-Exp Region 6'!O$59","v":{"v":0,"d":"$0.00"}},{"v":0,"d":"$0.00"}]
["LTC",null,null,{"$f":"Jurat!I$1","v":0},{"$f":"Jurat!D$33","v":"00:00:00"},"Q3","2017-09-30","Region 6","Operating Expense","Administrative Expense","Administrative","5.4","Marketing Expenses",{"$f":"'LTC Rev-Exp Region 6'!L$60","v":{"v":0,"d":"$0.00"}},{"$f":"'LTC Rev-Exp Region 6'!M$60","v":{"v":0,"d":"$0.00"}},{"$f":"'LTC Rev-Exp Region 6'!N$60","v":{"v":0,"d":"$0.00"}},{"$f":"'LTC Rev-Exp Region 6'!O$60","v":{"v":0,"d":"$0.00"}},{"v":0,"d":"$0.00"}]
["LTC",null,null,{"$f":"Jurat!I$1","v":0},{"$f":"Jurat!D$33","v":"00:00:00"},"Q3","2017-09-30","Region 6","Operating Expense","Administrative Expense","Administrative","5.5","General  Administration",{"$f":"'LTC Rev-Exp Region 6'!L$61","v":{"v":0,"d":"$0.00"}},{"$f":"'LTC Rev-Exp Region 6'!M$61","v":{"v":0,"d":"$0.00"}},{"$f":"'LTC Rev-Exp Region 6'!N$61","v":{"v":0,"d":"$0.00"}},{"$f":"'LTC Rev-Exp Region 6'!O$61","v":{"v":0,"d":"$0.00"}},{"v":0,"d":"$0.00"}]
["LTC",null,null,{"$f":"Jurat!I$1","v":0},{"$f":"Jurat!D$33","v":"00:00:00"},"Q3","2017-09-30","Region 6","Operating Expense","Administrative Expense","Administrative","5.6","Compliance/Regulatory",{"$f":"'LTC Rev-Exp Region 6'!L$62","v":{"v":0,"d":"$0.00"}},{"$f":"'LTC Rev-Exp Region 6'!M$62","v":{"v":0,"d":"$0.00"}},{"$f":"'LTC Rev-Exp Region 6'!N$62","v":{"v":0,"d":"$0.00"}},{"$f":"'LTC Rev-Exp Region 6'!O$62","v":{"v":0,"d":"$0.00"}},{"v":0,"d":"$0.00"}]
["LTC",null,null,{"$f":"Jurat!I$1","v":0},{"$f":"Jurat!D$33","v":"00:00:00"},"Q3","2017-09-30","Region 6","Operating Expense","Taxes & Fees","Taxes & Fees","6.1","State Premium Tax",{"$f":"'LTC Rev-Exp Region 6'!L$64","v":{"v":0,"d":"$0.00"}},{"v":0,"d":"$0.00"},{"v":0,"d":"$0.00"},{"v":0,"d":"$0.00"},{"v":0,"d":"$0.00"}]
["LTC",null,null,{"$f":"Jurat!I$1","v":0},{"$f":"Jurat!D$33","v":"00:00:00"},"Q3","2017-09-30","Region 6","Operating Expense","Taxes & Fees","Taxes & Fees","6.2","Department of Insurance Assessments",{"$f":"'LTC Rev-Exp Region 6'!L$65","v":{"v":0,"d":"$0.00"}},{"v":0,"d":"$0.00"},{"v":0,"d":"$0.00"},{"v":0,"d":"$0.00"},{"v":0,"d":"$0.00"}]
["LTC",null,null,{"$f":"Jurat!I$1","v":0},{"$f":"Jurat!D$33","v":"00:00:00"},"Q3","2017-09-30","Region 6","Non-Operating Expense","Income Tax Expense","Income Tax Expense","9.0","Income Tax Expense",{"$f":"'LTC Rev-Exp Region 6'!L$72","v":{"v":0,"d":"$0.00"}},{"v":0,"d":"$0.00"},{"v":0,"d":"$0.00"},{"v":0,"d":"$0.00"},{"v":0,"d":"$0.00"}]
["LTC",null,null,{"$f":"Jurat!I$1","v":0},{"$f":"Jurat!D$33","v":"00:00:00"},"Q4","2017-12-31","Region 6","Member Months","Member Months","Member Months",null,"Member Months",{"$f":"'LTC Rev-Exp Region 6'!P$9","v":{"v":0,"d":"$0.00"}},{"$f":"'LTC Rev-Exp Region 6'!Q$9","v":{"v":0,"d":"$0.00"}},{"$f":"'LTC Rev-Exp Region 6'!R$9","v":{"v":0,"d":"$0.00"}},{"$f":"'LTC Rev-Exp Region 6'!S$9","v":{"v":0,"d":"$0.00"}},{"v":0,"d":"$0.00"}]
["LTC",null,null,{"$f":"Jurat!I$1","v":0},{"$f":"Jurat!D$33","v":"00:00:00"},"Q4","2017-12-31","Region 6","Operating Revenue","Capitation","Capitation",1.1,"Capitation",{"$f":"'LTC Rev-Exp Region 6'!P$11","v":{"v":0,"d":"$0.00"}},{"$f":"'LTC Rev-Exp Region 6'!Q$11","v":{"v":0,"d":"$0.00"}},{"$f":"'LTC Rev-Exp Region 6'!R$11","v":{"v":0,"d":"$0.00"}},{"$f":"'LTC Rev-Exp Region 6'!S$11","v":{"v":0,"d":"$0.00"}},{"v":0,"d":"$0.00"}]
["LTC",null,null,{"$f":"Jurat!I$1","v":0},{"$f":"Jurat!D$33","v":"00:00:00"},"Q4","2017-12-31","Region 6","Operating Revenue","Capitation","NH Rate Reconciliation",1.2,"NH Rate Reconciliation",{"$f":"'LTC Rev-Exp Region 6'!P$12","v":{"v":0,"d":"$0.00"}},{"$f":"'LTC Rev-Exp Region 6'!Q$12","v":{"v":0,"d":"$0.00"}},{"$f":"'LTC Rev-Exp Region 6'!R$12","v":{"v":0,"d":"$0.00"}},{"$f":"'LTC Rev-Exp Region 6'!S$12","v":{"v":0,"d":"$0.00"}},{"v":0,"d":"$0.00"}]
["LTC",null,null,{"$f":"Jurat!I$1","v":0},{"$f":"Jurat!D$33","v":"00:00:00"},"Q4","2017-12-31","Region 6","Operating Revenue","Other Revenue","Other Revenue",1.3,"Other Revenue",{"$f":"'LTC Rev-Exp Region 6'!P$13","v":{"v":0,"d":"$0.00"}},{"$f":"'LTC Rev-Exp Region 6'!Q$13","v":{"v":0,"d":"$0.00"}},{"$f":"'LTC Rev-Exp Region 6'!R$13","v":{"v":0,"d":"$0.00"}},{"$f":"'LTC Rev-Exp Region 6'!S$13","v":{"v":0,"d":"$0.00"}},{"v":0,"d":"$0.00"}]
["LTC",null,null,{"$f":"Jurat!I$1","v":0},{"$f":"Jurat!D$33","v":"00:00:00"},"Q4","2017-12-31","Region 6","Operating Expense","Medical Expense","NF & Hospice","2.1","Nursing Facility Days (Medicaid)",{"$f":"'LTC Rev-Exp Region 6'!P$17","v":{"v":0,"d":"$0.00"}},{"$f":"'LTC Rev-Exp Region 6'!Q$17","v":{"v":0,"d":"$0.00"}},{"$f":"'LTC Rev-Exp Region 6'!R$17","v":{"v":0,"d":"$0.00"}},{"$f":"'LTC Rev-Exp Region 6'!S$17","v":{"v":0,"d":"$0.00"}},{"v":0,"d":"$0.00"}]
["LTC",null,null,{"$f":"Jurat!I$1","v":0},{"$f":"Jurat!D$33","v":"00:00:00"},"Q4","2017-12-31","Region 6","Operating Expense","Medical Expense","NF & Hospice","2.2","Nursing Facility Days (Crossover)",{"$f":"'LTC Rev-Exp Region 6'!P$18","v":{"v":0,"d":"$0.00"}},{"$f":"'LTC Rev-Exp Region 6'!Q$18","v":{"v":0,"d":"$0.00"}},{"$f":"'LTC Rev-Exp Region 6'!R$18","v":{"v":0,"d":"$0.00"}},{"$f":"'LTC Rev-Exp Region 6'!S$18","v":{"v":0,"d":"$0.00"}},{"v":0,"d":"$0.00"}]
["LTC",null,null,{"$f":"Jurat!I$1","v":0},{"$f":"Jurat!D$33","v":"00:00:00"},"Q4","2017-12-31","Region 6","Operating Expense","Medical Expense","NF & Hospice","2.3","Nursing Facility FFS (Medicaid)",{"$f":"'LTC Rev-Exp Region 6'!P$19","v":{"v":0,"d":"$0.00"}},{"$f":"'LTC Rev-Exp Region 6'!Q$19","v":{"v":0,"d":"$0.00"}},{"$f":"'LTC Rev-Exp Region 6'!R$19","v":{"v":0,"d":"$0.00"}},{"$f":"'LTC Rev-Exp Region 6'!S$19","v":{"v":0,"d":"$0.00"}},{"v":0,"d":"$0.00"}]
["LTC",null,null,{"$f":"Jurat!I$1","v":0},{"$f":"Jurat!D$33","v":"00:00:00"},"Q4","2017-12-31","Region 6","Operating Expense","Medical Expense","NF & Hospice","2.4","Nursing Facility FFS (Crossover)",{"$f":"'LTC Rev-Exp Region 6'!P$20","v":{"v":0,"d":"$0.00"}},{"$f":"'LTC Rev-Exp Region 6'!Q$20","v":{"v":0,"d":"$0.00"}},{"$f":"'LTC Rev-Exp Region 6'!R$20","v":{"v":0,"d":"$0.00"}},{"$f":"'LTC Rev-Exp Region 6'!S$20","v":{"v":0,"d":"$0.00"}},{"v":0,"d":"$0.00"}]
["LTC",null,null,{"$f":"Jurat!I$1","v":0},{"$f":"Jurat!D$33","v":"00:00:00"},"Q4","2017-12-31","Region 6","Operating Expense","Medical Expense","NF & Hospice","2.5","Hospice Days",{"$f":"'LTC Rev-Exp Region 6'!P$21","v":{"v":0,"d":"$0.00"}},{"$f":"'LTC Rev-Exp Region 6'!Q$21","v":{"v":0,"d":"$0.00"}},{"$f":"'LTC Rev-Exp Region 6'!R$21","v":{"v":0,"d":"$0.00"}},{"$f":"'LTC Rev-Exp Region 6'!S$21","v":{"v":0,"d":"$0.00"}},{"v":0,"d":"$0.00"}]
["LTC",null,null,{"$f":"Jurat!I$1","v":0},{"$f":"Jurat!D$33","v":"00:00:00"},"Q4","2017-12-31","Region 6","Operating Expense","Medical Expense","NF & Hospice","2.6","Hospice FFS",{"$f":"'LTC Rev-Exp Region 6'!P$22","v":{"v":0,"d":"$0.00"}},{"$f":"'LTC Rev-Exp Region 6'!Q$22","v":{"v":0,"d":"$0.00"}},{"$f":"'LTC Rev-Exp Region 6'!R$22","v":{"v":0,"d":"$0.00"}},{"$f":"'LTC Rev-Exp Region 6'!S$22","v":{"v":0,"d":"$0.00"}},{"v":0,"d":"$0.00"}]
["LTC",null,null,{"$f":"Jurat!I$1","v":0},{"$f":"Jurat!D$33","v":"00:00:00"},"Q4","2017-12-31","Region 6","Operating Expense","Medical Expense","NF & Hospice","2.7","Ending IBNP for NF & Hospice",{"$f":"'LTC Rev-Exp Region 6'!P$23","v":{"v":0,"d":"$0.00"}},{"$f":"'LTC Rev-Exp Region 6'!Q$23","v":{"v":0,"d":"$0.00"}},{"$f":"'LTC Rev-Exp Region 6'!R$23","v":{"v":0,"d":"$0.00"}},{"$f":"'LTC Rev-Exp Region 6'!S$23","v":{"v":0,"d":"$0.00"}},{"v":0,"d":"$0.00"}]
["LTC",null,null,{"$f":"Jurat!I$1","v":0},{"$f":"Jurat!D$33","v":"00:00:00"},"Q4","2017-12-31","Region 6","Operating Expense","Medical Expense","NF & Hospice","2.8","NF & Hospice Subcapitated",{"$f":"'LTC Rev-Exp Region 6'!P$24","v":{"v":0,"d":"$0.00"}},{"$f":"'LTC Rev-Exp Region 6'!Q$24","v":{"v":0,"d":"$0.00"}},{"$f":"'LTC Rev-Exp Region 6'!R$24","v":{"v":0,"d":"$0.00"}},{"$f":"'LTC Rev-Exp Region 6'!S$24","v":{"v":0,"d":"$0.00"}},{"v":0,"d":"$0.00"}]
["LTC",null,null,{"$f":"Jurat!I$1","v":0},{"$f":"Jurat!D$33","v":"00:00:00"},"Q4","2017-12-31","Region 6","Operating Expense","Medical Expense","NF & Hospice","2.9","NF & Hospice Settlements",{"$f":"'LTC Rev-Exp Region 6'!P$25","v":{"v":0,"d":"$0.00"}},{"$f":"'LTC Rev-Exp Region 6'!Q$25","v":{"v":0,"d":"$0.00"}},{"$f":"'LTC Rev-Exp Region 6'!R$25","v":{"v":0,"d":"$0.00"}},{"$f":"'LTC Rev-Exp Region 6'!S$25","v":{"v":0,"d":"$0.00"}},{"v":0,"d":"$0.00"}]
["LTC",null,null,{"$f":"Jurat!I$1","v":0},{"$f":"Jurat!D$33","v":"00:00:00"},"Q4","2017-12-31","Region 6","Operating Expense","Medical Expense","LTC Services","2.11","Assisted Living FFS",{"$f":"'LTC Rev-Exp Region 6'!P$27","v":{"v":0,"d":"$0.00"}},{"$f":"'LTC Rev-Exp Region 6'!Q$27","v":{"v":0,"d":"$0.00"}},{"$f":"'LTC Rev-Exp Region 6'!R$27","v":{"v":0,"d":"$0.00"}},{"$f":"'LTC Rev-Exp Region 6'!S$27","v":{"v":0,"d":"$0.00"}},{"v":0,"d":"$0.00"}]
["LTC",null,null,{"$f":"Jurat!I$1","v":0},{"$f":"Jurat!D$33","v":"00:00:00"},"Q4","2017-12-31","Region 6","Operating Expense","Medical Expense","LTC Services","2.12","Home Health FFS",{"$f":"'LTC Rev-Exp Region 6'!P$28","v":{"v":0,"d":"$0.00"}},{"$f":"'LTC Rev-Exp Region 6'!Q$28","v":{"v":0,"d":"$0.00"}},{"$f":"'LTC Rev-Exp Region 6'!R$28","v":{"v":0,"d":"$0.00"}},{"$f":"'LTC Rev-Exp Region 6'!S$28","v":{"v":0,"d":"$0.00"}},{"v":0,"d":"$0.00"}]
["LTC",null,null,{"$f":"Jurat!I$1","v":0},{"$f":"Jurat!D$33","v":"00:00:00"},"Q4","2017-12-31","Region 6","Operating Expense","Medical Expense","LTC Services","2.13","Medical Equipment/Supplies FFS",{"$f":"'LTC Rev-Exp Region 6'!P$29","v":{"v":0,"d":"$0.00"}},{"$f":"'LTC Rev-Exp Region 6'!Q$29","v":{"v":0,"d":"$0.00"}},{"$f":"'LTC Rev-Exp Region 6'!R$29","v":{"v":0,"d":"$0.00"}},{"$f":"'LTC Rev-Exp Region 6'!S$29","v":{"v":0,"d":"$0.00"}},{"v":0,"d":"$0.00"}]
["LTC",null,null,{"$f":"Jurat!I$1","v":0},{"$f":"Jurat!D$33","v":"00:00:00"},"Q4","2017-12-31","Region 6","Operating Expense","Medical Expense","LTC Services","2.14","Therapy FFS",{"$f":"'LTC Rev-Exp Region 6'!P$30","v":{"v":0,"d":"$0.00"}},{"$f":"'LTC Rev-Exp Region 6'!Q$30","v":{"v":0,"d":"$0.00"}},{"$f":"'LTC Rev-Exp Region 6'!R$30","v":{"v":0,"d":"$0.00"}},{"$f":"'LTC Rev-Exp Region 6'!S$30","v":{"v":0,"d":"$0.00"}},{"v":0,"d":"$0.00"}]
["LTC",null,null,{"$f":"Jurat!I$1","v":0},{"$f":"Jurat!D$33","v":"00:00:00"},"Q4","2017-12-31","Region 6","Operating Expense","Medical Expense","LTC Services","2.15","Transportation FFS",{"$f":"'LTC Rev-Exp Region 6'!P$31","v":{"v":0,"d":"$0.00"}},{"$f":"'LTC Rev-Exp Region 6'!Q$31","v":{"v":0,"d":"$0.00"}},{"$f":"'LTC Rev-Exp Region 6'!R$31","v":{"v":0,"d":"$0.00"}},{"$f":"'LTC Rev-Exp Region 6'!S$31","v":{"v":0,"d":"$0.00"}},{"v":0,"d":"$0.00"}]
["LTC",null,null,{"$f":"Jurat!I$1","v":0},{"$f":"Jurat!D$33","v":"00:00:00"},"Q4","2017-12-31","Region 6","Operating Expense","Medical Expense","LTC Services","2.16","Case Management FFS (Plan Provided)",{"$f":"'LTC Rev-Exp Region 6'!P$32","v":{"v":0,"d":"$0.00"}},{"$f":"'LTC Rev-Exp Region 6'!Q$32","v":{"v":0,"d":"$0.00"}},{"$f":"'LTC Rev-Exp Region 6'!R$32","v":{"v":0,"d":"$0.00"}},{"$f":"'LTC Rev-Exp Region 6'!S$32","v":{"v":0,"d":"$0.00"}},{"v":0,"d":"$0.00"}]
["LTC",null,null,{"$f":"Jurat!I$1","v":0},{"$f":"Jurat!D$33","v":"00:00:00"},"Q4","2017-12-31","Region 6","Operating Expense","Medical Expense","LTC Services","2.17","Case Management FF (Non-Plan Provided)",{"$f":"'LTC Rev-Exp Region 6'!P$33","v":{"v":0,"d":"$0.00"}},{"$f":"'LTC Rev-Exp Region 6'!Q$33","v":{"v":0,"d":"$0.00"}},{"$f":"'LTC Rev-Exp Region 6'!R$33","v":{"v":0,"d":"$0.00"}},{"$f":"'LTC Rev-Exp Region 6'!S$33","v":{"v":0,"d":"$0.00"}},{"v":0,"d":"$0.00"}]
["LTC",null,null,{"$f":"Jurat!I$1","v":0},{"$f":"Jurat!D$33","v":"00:00:00"},"Q4","2017-12-31","Region 6","Operating Expense","Medical Expense","LTC Services","2.18","HCBS FFS",{"$f":"'LTC Rev-Exp Region 6'!P$34","v":{"v":0,"d":"$0.00"}},{"$f":"'LTC Rev-Exp Region 6'!Q$34","v":{"v":0,"d":"$0.00"}},{"$f":"'LTC Rev-Exp Region 6'!R$34","v":{"v":0,"d":"$0.00"}},{"$f":"'LTC Rev-Exp Region 6'!S$34","v":{"v":0,"d":"$0.00"}},{"v":0,"d":"$0.00"}]
["LTC",null,null,{"$f":"Jurat!I$1","v":0},{"$f":"Jurat!D$33","v":"00:00:00"},"Q4","2017-12-31","Region 6","Operating Expense","Medical Expense","LTC Services","2.19","Subcapitated LTC Services",{"$f":"'LTC Rev-Exp Region 6'!P$35","v":{"v":0,"d":"$0.00"}},{"$f":"'LTC Rev-Exp Region 6'!Q$35","v":{"v":0,"d":"$0.00"}},{"$f":"'LTC Rev-Exp Region 6'!R$35","v":{"v":0,"d":"$0.00"}},{"$f":"'LTC Rev-Exp Region 6'!S$35","v":{"v":0,"d":"$0.00"}},{"v":0,"d":"$0.00"}]
["LTC",null,null,{"$f":"Jurat!I$1","v":0},{"$f":"Jurat!D$33","v":"00:00:00"},"Q4","2017-12-31","Region 6","Operating Expense","Medical Expense","LTC Services","2.20","Ending IBNP for Long Term Care Services",{"$f":"'LTC Rev-Exp Region 6'!P$36","v":{"v":0,"d":"$0.00"}},{"$f":"'LTC Rev-Exp Region 6'!Q$36","v":{"v":0,"d":"$0.00"}},{"$f":"'LTC Rev-Exp Region 6'!R$36","v":{"v":0,"d":"$0.00"}},{"$f":"'LTC Rev-Exp Region 6'!S$36","v":{"v":0,"d":"$0.00"}},{"v":0,"d":"$0.00"}]
["LTC",null,null,{"$f":"Jurat!I$1","v":0},{"$f":"Jurat!D$33","v":"00:00:00"},"Q4","2017-12-31","Region 6","Operating Expense","Medical Expense","LTC Services","2.21","LTC Services Settlements",{"$f":"'LTC Rev-Exp Region 6'!P$37","v":{"v":0,"d":"$0.00"}},{"$f":"'LTC Rev-Exp Region 6'!Q$37","v":{"v":0,"d":"$0.00"}},{"$f":"'LTC Rev-Exp Region 6'!R$37","v":{"v":0,"d":"$0.00"}},{"$f":"'LTC Rev-Exp Region 6'!S$37","v":{"v":0,"d":"$0.00"}},{"v":0,"d":"$0.00"}]
["LTC",null,null,{"$f":"Jurat!I$1","v":0},{"$f":"Jurat!D$33","v":"00:00:00"},"Q4","2017-12-31","Region 6","Operating Expense","Medical Expense","Expanded Benefits","3.1","Expanded Benefits FFS",{"$f":"'LTC Rev-Exp Region 6'!P$39","v":{"v":0,"d":"$0.00"}},{"$f":"'LTC Rev-Exp Region 6'!Q$39","v":{"v":0,"d":"$0.00"}},{"$f":"'LTC Rev-Exp Region 6'!R$39","v":{"v":0,"d":"$0.00"}},{"$f":"'LTC Rev-Exp Region 6'!S$39","v":{"v":0,"d":"$0.00"}},{"v":0,"d":"$0.00"}]
["LTC",null,null,{"$f":"Jurat!I$1","v":0},{"$f":"Jurat!D$33","v":"00:00:00"},"Q4","2017-12-31","Region 6","Operating Expense","Medical Expense","Expanded Benefits","3.2","Expanded Benefits Subcapitation",{"$f":"'LTC Rev-Exp Region 6'!P$40","v":{"v":0,"d":"$0.00"}},{"$f":"'LTC Rev-Exp Region 6'!Q$40","v":{"v":0,"d":"$0.00"}},{"$f":"'LTC Rev-Exp Region 6'!R$40","v":{"v":0,"d":"$0.00"}},{"$f":"'LTC Rev-Exp Region 6'!S$40","v":{"v":0,"d":"$0.00"}},{"v":0,"d":"$0.00"}]
["LTC",null,null,{"$f":"Jurat!I$1","v":0},{"$f":"Jurat!D$33","v":"00:00:00"},"Q4","2017-12-31","Region 6","Operating Expense","Medical Expense","Expanded Benefits","3.3","Ending IBNP for Expanded Benefits",{"$f":"'LTC Rev-Exp Region 6'!P$41","v":{"v":0,"d":"$0.00"}},{"$f":"'LTC Rev-Exp Region 6'!Q$41","v":{"v":0,"d":"$0.00"}},{"$f":"'LTC Rev-Exp Region 6'!R$41","v":{"v":0,"d":"$0.00"}},{"$f":"'LTC Rev-Exp Region 6'!S$41","v":{"v":0,"d":"$0.00"}},{"v":0,"d":"$0.00"}]
["LTC",null,null,{"$f":"Jurat!I$1","v":0},{"$f":"Jurat!D$33","v":"00:00:00"},"Q4","2017-12-31","Region 6","Operating Expense","Medical Expense","Expanded Benefits","3.4","Expanded Benefits Settlements",{"$f":"'LTC Rev-Exp Region 6'!P$42","v":{"v":0,"d":"$0.00"}},{"$f":"'LTC Rev-Exp Region 6'!Q$42","v":{"v":0,"d":"$0.00"}},{"$f":"'LTC Rev-Exp Region 6'!R$42","v":{"v":0,"d":"$0.00"}},{"$f":"'LTC Rev-Exp Region 6'!S$42","v":{"v":0,"d":"$0.00"}},{"v":0,"d":"$0.00"}]
["LTC",null,null,{"$f":"Jurat!I$1","v":0},{"$f":"Jurat!D$33","v":"00:00:00"},"Q4","2017-12-31","Region 6","Operating Expense","Medical Expense","Other Medical","4.5","TPL & Fraud/Abuse Recoveries",{"$f":"'LTC Rev-Exp Region 6'!P$48","v":{"v":0,"d":"$0.00"}},{"$f":"'LTC Rev-Exp Region 6'!Q$48","v":{"v":0,"d":"$0.00"}},{"$f":"'LTC Rev-Exp Region 6'!R$48","v":{"v":0,"d":"$0.00"}},{"$f":"'LTC Rev-Exp Region 6'!S$48","v":{"v":0,"d":"$0.00"}},{"v":0,"d":"$0.00"}]
["LTC",null,null,{"$f":"Jurat!I$1","v":0},{"$f":"Jurat!D$33","v":"00:00:00"},"Q4","2017-12-31","Region 6","Operating Expense","Medical Expense","Other Medical","4.6.1","Premium Deficiency Reserve",{"$f":"'LTC Rev-Exp Region 6'!P$49","v":{"v":0,"d":"$0.00"}},{"$f":"'LTC Rev-Exp Region 6'!Q$49","v":{"v":0,"d":"$0.00"}},{"$f":"'LTC Rev-Exp Region 6'!R$49","v":{"v":0,"d":"$0.00"}},{"$f":"'LTC Rev-Exp Region 6'!S$49","v":{"v":0,"d":"$0.00"}},{"v":0,"d":"$0.00"}]
["LTC",null,null,{"$f":"Jurat!I$1","v":0},{"$f":"Jurat!D$33","v":"00:00:00"},"Q4","2017-12-31","Region 6","Operating Expense","Medical Expense","Other Medical","4.8","Reinsurance Premiums",{"$f":"'LTC Rev-Exp Region 6'!P$51","v":{"v":0,"d":"$0.00"}},{"$f":"'LTC Rev-Exp Region 6'!Q$51","v":{"v":0,"d":"$0.00"}},{"$f":"'LTC Rev-Exp Region 6'!R$51","v":{"v":0,"d":"$0.00"}},{"$f":"'LTC Rev-Exp Region 6'!S$51","v":{"v":0,"d":"$0.00"}},{"v":0,"d":"$0.00"}]
["LTC",null,null,{"$f":"Jurat!I$1","v":0},{"$f":"Jurat!D$33","v":"00:00:00"},"Q4","2017-12-31","Region 6","Operating Expense","Medical Expense","Other Medical","4.9","Reinsurance Recoveries",{"$f":"'LTC Rev-Exp Region 6'!P$52","v":{"v":0,"d":"$0.00"}},{"$f":"'LTC Rev-Exp Region 6'!Q$52","v":{"v":0,"d":"$0.00"}},{"$f":"'LTC Rev-Exp Region 6'!R$52","v":{"v":0,"d":"$0.00"}},{"$f":"'LTC Rev-Exp Region 6'!S$52","v":{"v":0,"d":"$0.00"}},{"v":0,"d":"$0.00"}]
["LTC",null,null,{"$f":"Jurat!I$1","v":0},{"$f":"Jurat!D$33","v":"00:00:00"},"Q4","2017-12-31","Region 6","Operating Expense","Administrative Expense","Administrative","5.1","Salaries & Benefits",{"$f":"'LTC Rev-Exp Region 6'!P$57","v":{"v":0,"d":"$0.00"}},{"$f":"'LTC Rev-Exp Region 6'!Q$57","v":{"v":0,"d":"$0.00"}},{"$f":"'LTC Rev-Exp Region 6'!R$57","v":{"v":0,"d":"$0.00"}},{"$f":"'LTC Rev-Exp Region 6'!S$57","v":{"v":0,"d":"$0.00"}},{"v":0,"d":"$0.00"}]
["LTC",null,null,{"$f":"Jurat!I$1","v":0},{"$f":"Jurat!D$33","v":"00:00:00"},"Q4","2017-12-31","Region 6","Operating Expense","Administrative Expense","Administrative","5.2","Administrative Services",{"$f":"'LTC Rev-Exp Region 6'!P$58","v":{"v":0,"d":"$0.00"}},{"$f":"'LTC Rev-Exp Region 6'!Q$58","v":{"v":0,"d":"$0.00"}},{"$f":"'LTC Rev-Exp Region 6'!R$58","v":{"v":0,"d":"$0.00"}},{"$f":"'LTC Rev-Exp Region 6'!S$58","v":{"v":0,"d":"$0.00"}},{"v":0,"d":"$0.00"}]
["LTC",null,null,{"$f":"Jurat!I$1","v":0},{"$f":"Jurat!D$33","v":"00:00:00"},"Q4","2017-12-31","Region 6","Operating Expense","Administrative Expense","Administrative","5.3","Information Systems",{"$f":"'LTC Rev-Exp Region 6'!P$59","v":{"v":0,"d":"$0.00"}},{"$f":"'LTC Rev-Exp Region 6'!Q$59","v":{"v":0,"d":"$0.00"}},{"$f":"'LTC Rev-Exp Region 6'!R$59","v":{"v":0,"d":"$0.00"}},{"$f":"'LTC Rev-Exp Region 6'!S$59","v":{"v":0,"d":"$0.00"}},{"v":0,"d":"$0.00"}]
["LTC",null,null,{"$f":"Jurat!I$1","v":0},{"$f":"Jurat!D$33","v":"00:00:00"},"Q4","2017-12-31","Region 6","Operating Expense","Administrative Expense","Administrative","5.4","Marketing Expenses",{"$f":"'LTC Rev-Exp Region 6'!P$60","v":{"v":0,"d":"$0.00"}},{"$f":"'LTC Rev-Exp Region 6'!Q$60","v":{"v":0,"d":"$0.00"}},{"$f":"'LTC Rev-Exp Region 6'!R$60","v":{"v":0,"d":"$0.00"}},{"$f":"'LTC Rev-Exp Region 6'!S$60","v":{"v":0,"d":"$0.00"}},{"v":0,"d":"$0.00"}]
["LTC",null,null,{"$f":"Jurat!I$1","v":0},{"$f":"Jurat!D$33","v":"00:00:00"},"Q4","2017-12-31","Region 6","Operating Expense","Administrative Expense","Administrative","5.5","General  Administration",{"$f":"'LTC Rev-Exp Region 6'!P$61","v":{"v":0,"d":"$0.00"}},{"$f":"'LTC Rev-Exp Region 6'!Q$61","v":{"v":0,"d":"$0.00"}},{"$f":"'LTC Rev-Exp Region 6'!R$61","v":{"v":0,"d":"$0.00"}},{"$f":"'LTC Rev-Exp Region 6'!S$61","v":{"v":0,"d":"$0.00"}},{"v":0,"d":"$0.00"}]
["LTC",null,null,{"$f":"Jurat!I$1","v":0},{"$f":"Jurat!D$33","v":"00:00:00"},"Q4","2017-12-31","Region 6","Operating Expense","Administrative Expense","Administrative","5.6","Compliance/Regulatory",{"$f":"'LTC Rev-Exp Region 6'!P$62","v":{"v":0,"d":"$0.00"}},{"$f":"'LTC Rev-Exp Region 6'!Q$62","v":{"v":0,"d":"$0.00"}},{"$f":"'LTC Rev-Exp Region 6'!R$62","v":{"v":0,"d":"$0.00"}},{"$f":"'LTC Rev-Exp Region 6'!S$62","v":{"v":0,"d":"$0.00"}},{"v":0,"d":"$0.00"}]
["LTC",null,null,{"$f":"Jurat!I$1","v":0},{"$f":"Jurat!D$33","v":"00:00:00"},"Q4","2017-12-31","Region 6","Operating Expense","Taxes & Fees","Taxes & Fees","6.1","State Premium Tax",{"$f":"'LTC Rev-Exp Region 6'!P$64","v":{"v":0,"d":"$0.00"}},{"v":0,"d":"$0.00"},{"v":0,"d":"$0.00"},{"v":0,"d":"$0.00"},{"v":0,"d":"$0.00"}]
["LTC",null,null,{"$f":"Jurat!I$1","v":0},{"$f":"Jurat!D$33","v":"00:00:00"},"Q4","2017-12-31","Region 6","Operating Expense","Taxes & Fees","Taxes & Fees","6.2","Department of Insurance Assessments",{"$f":"'LTC Rev-Exp Region 6'!P$65","v":{"v":0,"d":"$0.00"}},{"v":0,"d":"$0.00"},{"v":0,"d":"$0.00"},{"v":0,"d":"$0.00"},{"v":0,"d":"$0.00"}]
["LTC",null,null,{"$f":"Jurat!I$1","v":0},{"$f":"Jurat!D$33","v":"00:00:00"},"Q4","2017-12-31","Region 6","Non-Operating Expense","Income Tax Expense","Income Tax Expense","9.0","Income Tax Expense",{"$f":"'LTC Rev-Exp Region 6'!P$72","v":{"v":0,"d":"$0.00"}},{"v":0,"d":"$0.00"},{"v":0,"d":"$0.00"},{"v":0,"d":"$0.00"},{"v":0,"d":"$0.00"}]
["LTC",null,null,{"$f":"Jurat!I$1","v":0},{"$f":"Jurat!D$33","v":"00:00:00"},"Q1","2017-03-31","Region 7","Member Months","Member Months","Member Months",null,"Member Months",{"$f":"'LTC Rev-Exp Region 7'!D$9","v":{"v":0,"d":"$0.00"}},{"$f":"'LTC Rev-Exp Region 7'!E$9","v":{"v":0,"d":"$0.00"}},{"$f":"'LTC Rev-Exp Region 7'!F$9","v":{"v":0,"d":"$0.00"}},{"$f":"'LTC Rev-Exp Region 7'!G$9","v":{"v":0,"d":"$0.00"}},{"v":0,"d":"$0.00"}]
["LTC",null,null,{"$f":"Jurat!I$1","v":0},{"$f":"Jurat!D$33","v":"00:00:00"},"Q1","2017-03-31","Region 7","Operating Revenue","Capitation","Capitation",1.1,"Capitation",{"$f":"'LTC Rev-Exp Region 7'!D$11","v":{"v":0,"d":"$0.00"}},{"$f":"'LTC Rev-Exp Region 7'!E$11","v":{"v":0,"d":"$0.00"}},{"$f":"'LTC Rev-Exp Region 7'!F$11","v":{"v":0,"d":"$0.00"}},{"$f":"'LTC Rev-Exp Region 7'!G$11","v":{"v":0,"d":"$0.00"}},{"v":0,"d":"$0.00"}]
["LTC",null,null,{"$f":"Jurat!I$1","v":0},{"$f":"Jurat!D$33","v":"00:00:00"},"Q1","2017-03-31","Region 7","Operating Revenue","Capitation","NH Rate Reconciliation",1.2,"NH Rate Reconciliation",{"$f":"'LTC Rev-Exp Region 7'!D$12","v":{"v":0,"d":"$0.00"}},{"$f":"'LTC Rev-Exp Region 7'!E$12","v":{"v":0,"d":"$0.00"}},{"$f":"'LTC Rev-Exp Region 7'!F$12","v":{"v":0,"d":"$0.00"}},{"$f":"'LTC Rev-Exp Region 7'!G$12","v":{"v":0,"d":"$0.00"}},{"v":0,"d":"$0.00"}]
["LTC",null,null,{"$f":"Jurat!I$1","v":0},{"$f":"Jurat!D$33","v":"00:00:00"},"Q1","2017-03-31","Region 7","Operating Revenue","Other Revenue","Other Revenue",1.3,"Other Revenue",{"$f":"'LTC Rev-Exp Region 7'!D$13","v":{"v":0,"d":"$0.00"}},{"$f":"'LTC Rev-Exp Region 7'!E$13","v":{"v":0,"d":"$0.00"}},{"$f":"'LTC Rev-Exp Region 7'!F$13","v":{"v":0,"d":"$0.00"}},{"$f":"'LTC Rev-Exp Region 7'!G$13","v":{"v":0,"d":"$0.00"}},{"v":0,"d":"$0.00"}]
["LTC",null,null,{"$f":"Jurat!I$1","v":0},{"$f":"Jurat!D$33","v":"00:00:00"},"Q1","2017-03-31","Region 7","Operating Expense","Medical Expense","NF & Hospice","2.1","Nursing Facility Days (Medicaid)",{"$f":"'LTC Rev-Exp Region 7'!D$17","v":{"v":0,"d":"$0.00"}},{"$f":"'LTC Rev-Exp Region 7'!E$17","v":{"v":0,"d":"$0.00"}},{"$f":"'LTC Rev-Exp Region 7'!F$17","v":{"v":0,"d":"$0.00"}},{"$f":"'LTC Rev-Exp Region 7'!G$17","v":{"v":0,"d":"$0.00"}},{"v":0,"d":"$0.00"}]
["LTC",null,null,{"$f":"Jurat!I$1","v":0},{"$f":"Jurat!D$33","v":"00:00:00"},"Q1","2017-03-31","Region 7","Operating Expense","Medical Expense","NF & Hospice","2.2","Nursing Facility Days (Crossover)",{"$f":"'LTC Rev-Exp Region 7'!D$18","v":{"v":0,"d":"$0.00"}},{"$f":"'LTC Rev-Exp Region 7'!E$18","v":{"v":0,"d":"$0.00"}},{"$f":"'LTC Rev-Exp Region 7'!F$18","v":{"v":0,"d":"$0.00"}},{"$f":"'LTC Rev-Exp Region 7'!G$18","v":{"v":0,"d":"$0.00"}},{"v":0,"d":"$0.00"}]
["LTC",null,null,{"$f":"Jurat!I$1","v":0},{"$f":"Jurat!D$33","v":"00:00:00"},"Q1","2017-03-31","Region 7","Operating Expense","Medical Expense","NF & Hospice","2.3","Nursing Facility FFS (Medicaid)",{"$f":"'LTC Rev-Exp Region 7'!D$19","v":{"v":0,"d":"$0.00"}},{"$f":"'LTC Rev-Exp Region 7'!E$19","v":{"v":0,"d":"$0.00"}},{"$f":"'LTC Rev-Exp Region 7'!F$19","v":{"v":0,"d":"$0.00"}},{"$f":"'LTC Rev-Exp Region 7'!G$19","v":{"v":0,"d":"$0.00"}},{"v":0,"d":"$0.00"}]
["LTC",null,null,{"$f":"Jurat!I$1","v":0},{"$f":"Jurat!D$33","v":"00:00:00"},"Q1","2017-03-31","Region 7","Operating Expense","Medical Expense","NF & Hospice","2.4","Nursing Facility FFS (Crossover)",{"$f":"'LTC Rev-Exp Region 7'!D$20","v":{"v":0,"d":"$0.00"}},{"$f":"'LTC Rev-Exp Region 7'!E$20","v":{"v":0,"d":"$0.00"}},{"$f":"'LTC Rev-Exp Region 7'!F$20","v":{"v":0,"d":"$0.00"}},{"$f":"'LTC Rev-Exp Region 7'!G$20","v":{"v":0,"d":"$0.00"}},{"v":0,"d":"$0.00"}]
["LTC",null,null,{"$f":"Jurat!I$1","v":0},{"$f":"Jurat!D$33","v":"00:00:00"},"Q1","2017-03-31","Region 7","Operating Expense","Medical Expense","NF & Hospice","2.5","Hospice Days",{"$f":"'LTC Rev-Exp Region 7'!D$21","v":{"v":0,"d":"$0.00"}},{"$f":"'LTC Rev-Exp Region 7'!E$21","v":{"v":0,"d":"$0.00"}},{"$f":"'LTC Rev-Exp Region 7'!F$21","v":{"v":0,"d":"$0.00"}},{"$f":"'LTC Rev-Exp Region 7'!G$21","v":{"v":0,"d":"$0.00"}},{"v":0,"d":"$0.00"}]
["LTC",null,null,{"$f":"Jurat!I$1","v":0},{"$f":"Jurat!D$33","v":"00:00:00"},"Q1","2017-03-31","Region 7","Operating Expense","Medical Expense","NF & Hospice","2.6","Hospice FFS",{"$f":"'LTC Rev-Exp Region 7'!D$22","v":{"v":0,"d":"$0.00"}},{"$f":"'LTC Rev-Exp Region 7'!E$22","v":{"v":0,"d":"$0.00"}},{"$f":"'LTC Rev-Exp Region 7'!F$22","v":{"v":0,"d":"$0.00"}},{"$f":"'LTC Rev-Exp Region 7'!G$22","v":{"v":0,"d":"$0.00"}},{"v":0,"d":"$0.00"}]
["LTC",null,null,{"$f":"Jurat!I$1","v":0},{"$f":"Jurat!D$33","v":"00:00:00"},"Q1","2017-03-31","Region 7","Operating Expense","Medical Expense","NF & Hospice","2.7","Ending IBNP for NF & Hospice",{"$f":"'LTC Rev-Exp Region 7'!D$23","v":{"v":0,"d":"$0.00"}},{"$f":"'LTC Rev-Exp Region 7'!E$23","v":{"v":0,"d":"$0.00"}},{"$f":"'LTC Rev-Exp Region 7'!F$23","v":{"v":0,"d":"$0.00"}},{"$f":"'LTC Rev-Exp Region 7'!G$23","v":{"v":0,"d":"$0.00"}},{"v":0,"d":"$0.00"}]
["LTC",null,null,{"$f":"Jurat!I$1","v":0},{"$f":"Jurat!D$33","v":"00:00:00"},"Q1","2017-03-31","Region 7","Operating Expense","Medical Expense","NF & Hospice","2.8","NF & Hospice Subcapitated",{"$f":"'LTC Rev-Exp Region 7'!D$24","v":{"v":0,"d":"$0.00"}},{"$f":"'LTC Rev-Exp Region 7'!E$24","v":{"v":0,"d":"$0.00"}},{"$f":"'LTC Rev-Exp Region 7'!F$24","v":{"v":0,"d":"$0.00"}},{"$f":"'LTC Rev-Exp Region 7'!G$24","v":{"v":0,"d":"$0.00"}},{"v":0,"d":"$0.00"}]
["LTC",null,null,{"$f":"Jurat!I$1","v":0},{"$f":"Jurat!D$33","v":"00:00:00"},"Q1","2017-03-31","Region 7","Operating Expense","Medical Expense","NF & Hospice","2.9","NF & Hospice Settlements",{"$f":"'LTC Rev-Exp Region 7'!D$25","v":{"v":0,"d":"$0.00"}},{"$f":"'LTC Rev-Exp Region 7'!E$25","v":{"v":0,"d":"$0.00"}},{"$f":"'LTC Rev-Exp Region 7'!F$25","v":{"v":0,"d":"$0.00"}},{"$f":"'LTC Rev-Exp Region 7'!G$25","v":{"v":0,"d":"$0.00"}},{"v":0,"d":"$0.00"}]
["LTC",null,null,{"$f":"Jurat!I$1","v":0},{"$f":"Jurat!D$33","v":"00:00:00"},"Q1","2017-03-31","Region 7","Operating Expense","Medical Expense","LTC Services","2.11","Assisted Living FFS",{"$f":"'LTC Rev-Exp Region 7'!D$27","v":{"v":0,"d":"$0.00"}},{"$f":"'LTC Rev-Exp Region 7'!E$27","v":{"v":0,"d":"$0.00"}},{"$f":"'LTC Rev-Exp Region 7'!F$27","v":{"v":0,"d":"$0.00"}},{"$f":"'LTC Rev-Exp Region 7'!G$27","v":{"v":0,"d":"$0.00"}},{"v":0,"d":"$0.00"}]
["LTC",null,null,{"$f":"Jurat!I$1","v":0},{"$f":"Jurat!D$33","v":"00:00:00"},"Q1","2017-03-31","Region 7","Operating Expense","Medical Expense","LTC Services","2.12","Home Health FFS",{"$f":"'LTC Rev-Exp Region 7'!D$28","v":{"v":0,"d":"$0.00"}},{"$f":"'LTC Rev-Exp Region 7'!E$28","v":{"v":0,"d":"$0.00"}},{"$f":"'LTC Rev-Exp Region 7'!F$28","v":{"v":0,"d":"$0.00"}},{"$f":"'LTC Rev-Exp Region 7'!G$28","v":{"v":0,"d":"$0.00"}},{"v":0,"d":"$0.00"}]
["LTC",null,null,{"$f":"Jurat!I$1","v":0},{"$f":"Jurat!D$33","v":"00:00:00"},"Q1","2017-03-31","Region 7","Operating Expense","Medical Expense","LTC Services","2.13","Medical Equipment/Supplies FFS",{"$f":"'LTC Rev-Exp Region 7'!D$29","v":{"v":0,"d":"$0.00"}},{"$f":"'LTC Rev-Exp Region 7'!E$29","v":{"v":0,"d":"$0.00"}},{"$f":"'LTC Rev-Exp Region 7'!F$29","v":{"v":0,"d":"$0.00"}},{"$f":"'LTC Rev-Exp Region 7'!G$29","v":{"v":0,"d":"$0.00"}},{"v":0,"d":"$0.00"}]
["LTC",null,null,{"$f":"Jurat!I$1","v":0},{"$f":"Jurat!D$33","v":"00:00:00"},"Q1","2017-03-31","Region 7","Operating Expense","Medical Expense","LTC Services","2.14","Therapy FFS",{"$f":"'LTC Rev-Exp Region 7'!D$30","v":{"v":0,"d":"$0.00"}},{"$f":"'LTC Rev-Exp Region 7'!E$30","v":{"v":0,"d":"$0.00"}},{"$f":"'LTC Rev-Exp Region 7'!F$30","v":{"v":0,"d":"$0.00"}},{"$f":"'LTC Rev-Exp Region 7'!G$30","v":{"v":0,"d":"$0.00"}},{"v":0,"d":"$0.00"}]
["LTC",null,null,{"$f":"Jurat!I$1","v":0},{"$f":"Jurat!D$33","v":"00:00:00"},"Q1","2017-03-31","Region 7","Operating Expense","Medical Expense","LTC Services","2.15","Transportation FFS",{"$f":"'LTC Rev-Exp Region 7'!D$31","v":{"v":0,"d":"$0.00"}},{"$f":"'LTC Rev-Exp Region 7'!E$31","v":{"v":0,"d":"$0.00"}},{"$f":"'LTC Rev-Exp Region 7'!F$31","v":{"v":0,"d":"$0.00"}},{"$f":"'LTC Rev-Exp Region 7'!G$31","v":{"v":0,"d":"$0.00"}},{"v":0,"d":"$0.00"}]
["LTC",null,null,{"$f":"Jurat!I$1","v":0},{"$f":"Jurat!D$33","v":"00:00:00"},"Q1","2017-03-31","Region 7","Operating Expense","Medical Expense","LTC Services","2.16","Case Management FFS (Plan Provided)",{"$f":"'LTC Rev-Exp Region 7'!D$32","v":{"v":0,"d":"$0.00"}},{"$f":"'LTC Rev-Exp Region 7'!E$32","v":{"v":0,"d":"$0.00"}},{"$f":"'LTC Rev-Exp Region 7'!F$32","v":{"v":0,"d":"$0.00"}},{"$f":"'LTC Rev-Exp Region 7'!G$32","v":{"v":0,"d":"$0.00"}},{"v":0,"d":"$0.00"}]
["LTC",null,null,{"$f":"Jurat!I$1","v":0},{"$f":"Jurat!D$33","v":"00:00:00"},"Q1","2017-03-31","Region 7","Operating Expense","Medical Expense","LTC Services","2.17","Case Management FF (Non-Plan Provided)",{"$f":"'LTC Rev-Exp Region 7'!D$33","v":{"v":0,"d":"$0.00"}},{"$f":"'LTC Rev-Exp Region 7'!E$33","v":{"v":0,"d":"$0.00"}},{"$f":"'LTC Rev-Exp Region 7'!F$33","v":{"v":0,"d":"$0.00"}},{"$f":"'LTC Rev-Exp Region 7'!G$33","v":{"v":0,"d":"$0.00"}},{"v":0,"d":"$0.00"}]
["LTC",null,null,{"$f":"Jurat!I$1","v":0},{"$f":"Jurat!D$33","v":"00:00:00"},"Q1","2017-03-31","Region 7","Operating Expense","Medical Expense","LTC Services","2.18","HCBS FFS",{"$f":"'LTC Rev-Exp Region 7'!D$34","v":{"v":0,"d":"$0.00"}},{"$f":"'LTC Rev-Exp Region 7'!E$34","v":{"v":0,"d":"$0.00"}},{"$f":"'LTC Rev-Exp Region 7'!F$34","v":{"v":0,"d":"$0.00"}},{"$f":"'LTC Rev-Exp Region 7'!G$34","v":{"v":0,"d":"$0.00"}},{"v":0,"d":"$0.00"}]
["LTC",null,null,{"$f":"Jurat!I$1","v":0},{"$f":"Jurat!D$33","v":"00:00:00"},"Q1","2017-03-31","Region 7","Operating Expense","Medical Expense","LTC Services","2.19","Subcapitated LTC Services",{"$f":"'LTC Rev-Exp Region 7'!D$35","v":{"v":0,"d":"$0.00"}},{"$f":"'LTC Rev-Exp Region 7'!E$35","v":{"v":0,"d":"$0.00"}},{"$f":"'LTC Rev-Exp Region 7'!F$35","v":{"v":0,"d":"$0.00"}},{"$f":"'LTC Rev-Exp Region 7'!G$35","v":{"v":0,"d":"$0.00"}},{"v":0,"d":"$0.00"}]
["LTC",null,null,{"$f":"Jurat!I$1","v":0},{"$f":"Jurat!D$33","v":"00:00:00"},"Q1","2017-03-31","Region 7","Operating Expense","Medical Expense","LTC Services","2.20","Ending IBNP for Long Term Care Services",{"$f":"'LTC Rev-Exp Region 7'!D$36","v":{"v":0,"d":"$0.00"}},{"$f":"'LTC Rev-Exp Region 7'!E$36","v":{"v":0,"d":"$0.00"}},{"$f":"'LTC Rev-Exp Region 7'!F$36","v":{"v":0,"d":"$0.00"}},{"$f":"'LTC Rev-Exp Region 7'!G$36","v":{"v":0,"d":"$0.00"}},{"v":0,"d":"$0.00"}]
["LTC",null,null,{"$f":"Jurat!I$1","v":0},{"$f":"Jurat!D$33","v":"00:00:00"},"Q1","2017-03-31","Region 7","Operating Expense","Medical Expense","LTC Services","2.21","LTC Services Settlements",{"$f":"'LTC Rev-Exp Region 7'!D$37","v":{"v":0,"d":"$0.00"}},{"$f":"'LTC Rev-Exp Region 7'!E$37","v":{"v":0,"d":"$0.00"}},{"$f":"'LTC Rev-Exp Region 7'!F$37","v":{"v":0,"d":"$0.00"}},{"$f":"'LTC Rev-Exp Region 7'!G$37","v":{"v":0,"d":"$0.00"}},{"v":0,"d":"$0.00"}]
["LTC",null,null,{"$f":"Jurat!I$1","v":0},{"$f":"Jurat!D$33","v":"00:00:00"},"Q1","2017-03-31","Region 7","Operating Expense","Medical Expense","Expanded Benefits","3.1","Expanded Benefits FFS",{"$f":"'LTC Rev-Exp Region 7'!D$39","v":{"v":0,"d":"$0.00"}},{"$f":"'LTC Rev-Exp Region 7'!E$39","v":{"v":0,"d":"$0.00"}},{"$f":"'LTC Rev-Exp Region 7'!F$39","v":{"v":0,"d":"$0.00"}},{"$f":"'LTC Rev-Exp Region 7'!G$39","v":{"v":0,"d":"$0.00"}},{"v":0,"d":"$0.00"}]
["LTC",null,null,{"$f":"Jurat!I$1","v":0},{"$f":"Jurat!D$33","v":"00:00:00"},"Q1","2017-03-31","Region 7","Operating Expense","Medical Expense","Expanded Benefits","3.2","Expanded Benefits Subcapitation",{"$f":"'LTC Rev-Exp Region 7'!D$40","v":{"v":0,"d":"$0.00"}},{"$f":"'LTC Rev-Exp Region 7'!E$40","v":{"v":0,"d":"$0.00"}},{"$f":"'LTC Rev-Exp Region 7'!F$40","v":{"v":0,"d":"$0.00"}},{"$f":"'LTC Rev-Exp Region 7'!G$40","v":{"v":0,"d":"$0.00"}},{"v":0,"d":"$0.00"}]
["LTC",null,null,{"$f":"Jurat!I$1","v":0},{"$f":"Jurat!D$33","v":"00:00:00"},"Q1","2017-03-31","Region 7","Operating Expense","Medical Expense","Expanded Benefits","3.3","Ending IBNP for Expanded Benefits",{"$f":"'LTC Rev-Exp Region 7'!D$41","v":{"v":0,"d":"$0.00"}},{"$f":"'LTC Rev-Exp Region 7'!E$41","v":{"v":0,"d":"$0.00"}},{"$f":"'LTC Rev-Exp Region 7'!F$41","v":{"v":0,"d":"$0.00"}},{"$f":"'LTC Rev-Exp Region 7'!G$41","v":{"v":0,"d":"$0.00"}},{"v":0,"d":"$0.00"}]
["LTC",null,null,{"$f":"Jurat!I$1","v":0},{"$f":"Jurat!D$33","v":"00:00:00"},"Q1","2017-03-31","Region 7","Operating Expense","Medical Expense","Expanded Benefits","3.4","Expanded Benefits Settlements",{"$f":"'LTC Rev-Exp Region 7'!D$42","v":{"v":0,"d":"$0.00"}},{"$f":"'LTC Rev-Exp Region 7'!E$42","v":{"v":0,"d":"$0.00"}},{"$f":"'LTC Rev-Exp Region 7'!F$42","v":{"v":0,"d":"$0.00"}},{"$f":"'LTC Rev-Exp Region 7'!G$42","v":{"v":0,"d":"$0.00"}},{"v":0,"d":"$0.00"}]
["LTC",null,null,{"$f":"Jurat!I$1","v":0},{"$f":"Jurat!D$33","v":"00:00:00"},"Q1","2017-03-31","Region 7","Operating Expense","Medical Expense","Other Medical","4.5","TPL & Fraud/Abuse Recoveries",{"$f":"'LTC Rev-Exp Region 7'!D$48","v":{"v":0,"d":"$0.00"}},{"$f":"'LTC Rev-Exp Region 7'!E$48","v":{"v":0,"d":"$0.00"}},{"$f":"'LTC Rev-Exp Region 7'!F$48","v":{"v":0,"d":"$0.00"}},{"$f":"'LTC Rev-Exp Region 7'!G$48","v":{"v":0,"d":"$0.00"}},{"v":0,"d":"$0.00"}]
["LTC",null,null,{"$f":"Jurat!I$1","v":0},{"$f":"Jurat!D$33","v":"00:00:00"},"Q1","2017-03-31","Region 7","Operating Expense","Medical Expense","Other Medical","4.6.1","Premium Deficiency Reserve",{"$f":"'LTC Rev-Exp Region 7'!D$49","v":{"v":0,"d":"$0.00"}},{"$f":"'LTC Rev-Exp Region 7'!E$49","v":{"v":0,"d":"$0.00"}},{"$f":"'LTC Rev-Exp Region 7'!F$49","v":{"v":0,"d":"$0.00"}},{"$f":"'LTC Rev-Exp Region 7'!G$49","v":{"v":0,"d":"$0.00"}},{"v":0,"d":"$0.00"}]
["LTC",null,null,{"$f":"Jurat!I$1","v":0},{"$f":"Jurat!D$33","v":"00:00:00"},"Q1","2017-03-31","Region 7","Operating Expense","Medical Expense","Other Medical","4.8","Reinsurance Premiums",{"$f":"'LTC Rev-Exp Region 7'!D$51","v":{"v":0,"d":"$0.00"}},{"$f":"'LTC Rev-Exp Region 7'!E$51","v":{"v":0,"d":"$0.00"}},{"$f":"'LTC Rev-Exp Region 7'!F$51","v":{"v":0,"d":"$0.00"}},{"$f":"'LTC Rev-Exp Region 7'!G$51","v":{"v":0,"d":"$0.00"}},{"v":0,"d":"$0.00"}]
["LTC",null,null,{"$f":"Jurat!I$1","v":0},{"$f":"Jurat!D$33","v":"00:00:00"},"Q1","2017-03-31","Region 7","Operating Expense","Medical Expense","Other Medical","4.9","Reinsurance Recoveries",{"$f":"'LTC Rev-Exp Region 7'!D$52","v":{"v":0,"d":"$0.00"}},{"$f":"'LTC Rev-Exp Region 7'!E$52","v":{"v":0,"d":"$0.00"}},{"$f":"'LTC Rev-Exp Region 7'!F$52","v":{"v":0,"d":"$0.00"}},{"$f":"'LTC Rev-Exp Region 7'!G$52","v":{"v":0,"d":"$0.00"}},{"v":0,"d":"$0.00"}]
["LTC",null,null,{"$f":"Jurat!I$1","v":0},{"$f":"Jurat!D$33","v":"00:00:00"},"Q1","2017-03-31","Region 7","Operating Expense","Administrative Expense","Administrative","5.1","Salaries & Benefits",{"$f":"'LTC Rev-Exp Region 7'!D$57","v":{"v":0,"d":"$0.00"}},{"$f":"'LTC Rev-Exp Region 7'!E$57","v":{"v":0,"d":"$0.00"}},{"$f":"'LTC Rev-Exp Region 7'!F$57","v":{"v":0,"d":"$0.00"}},{"$f":"'LTC Rev-Exp Region 7'!G$57","v":{"v":0,"d":"$0.00"}},{"v":0,"d":"$0.00"}]
["LTC",null,null,{"$f":"Jurat!I$1","v":0},{"$f":"Jurat!D$33","v":"00:00:00"},"Q1","2017-03-31","Region 7","Operating Expense","Administrative Expense","Administrative","5.2","Administrative Services",{"$f":"'LTC Rev-Exp Region 7'!D$58","v":{"v":0,"d":"$0.00"}},{"$f":"'LTC Rev-Exp Region 7'!E$58","v":{"v":0,"d":"$0.00"}},{"$f":"'LTC Rev-Exp Region 7'!F$58","v":{"v":0,"d":"$0.00"}},{"$f":"'LTC Rev-Exp Region 7'!G$58","v":{"v":0,"d":"$0.00"}},{"v":0,"d":"$0.00"}]
["LTC",null,null,{"$f":"Jurat!I$1","v":0},{"$f":"Jurat!D$33","v":"00:00:00"},"Q1","2017-03-31","Region 7","Operating Expense","Administrative Expense","Administrative","5.3","Information Systems",{"$f":"'LTC Rev-Exp Region 7'!D$59","v":{"v":0,"d":"$0.00"}},{"$f":"'LTC Rev-Exp Region 7'!E$59","v":{"v":0,"d":"$0.00"}},{"$f":"'LTC Rev-Exp Region 7'!F$59","v":{"v":0,"d":"$0.00"}},{"$f":"'LTC Rev-Exp Region 7'!G$59","v":{"v":0,"d":"$0.00"}},{"v":0,"d":"$0.00"}]
["LTC",null,null,{"$f":"Jurat!I$1","v":0},{"$f":"Jurat!D$33","v":"00:00:00"},"Q1","2017-03-31","Region 7","Operating Expense","Administrative Expense","Administrative","5.4","Marketing Expenses",{"$f":"'LTC Rev-Exp Region 7'!D$60","v":{"v":0,"d":"$0.00"}},{"$f":"'LTC Rev-Exp Region 7'!E$60","v":{"v":0,"d":"$0.00"}},{"$f":"'LTC Rev-Exp Region 7'!F$60","v":{"v":0,"d":"$0.00"}},{"$f":"'LTC Rev-Exp Region 7'!G$60","v":{"v":0,"d":"$0.00"}},{"v":0,"d":"$0.00"}]
["LTC",null,null,{"$f":"Jurat!I$1","v":0},{"$f":"Jurat!D$33","v":"00:00:00"},"Q1","2017-03-31","Region 7","Operating Expense","Administrative Expense","Administrative","5.5","General  Administration",{"$f":"'LTC Rev-Exp Region 7'!D$61","v":{"v":0,"d":"$0.00"}},{"$f":"'LTC Rev-Exp Region 7'!E$61","v":{"v":0,"d":"$0.00"}},{"$f":"'LTC Rev-Exp Region 7'!F$61","v":{"v":0,"d":"$0.00"}},{"$f":"'LTC Rev-Exp Region 7'!G$61","v":{"v":0,"d":"$0.00"}},{"v":0,"d":"$0.00"}]
["LTC",null,null,{"$f":"Jurat!I$1","v":0},{"$f":"Jurat!D$33","v":"00:00:00"},"Q1","2017-03-31","Region 7","Operating Expense","Administrative Expense","Administrative","5.6","Compliance/Regulatory",{"$f":"'LTC Rev-Exp Region 7'!D$62","v":{"v":0,"d":"$0.00"}},{"$f":"'LTC Rev-Exp Region 7'!E$62","v":{"v":0,"d":"$0.00"}},{"$f":"'LTC Rev-Exp Region 7'!F$62","v":{"v":0,"d":"$0.00"}},{"$f":"'LTC Rev-Exp Region 7'!G$62","v":{"v":0,"d":"$0.00"}},{"v":0,"d":"$0.00"}]
["LTC",null,null,{"$f":"Jurat!I$1","v":0},{"$f":"Jurat!D$33","v":"00:00:00"},"Q1","2017-03-31","Region 7","Operating Expense","Taxes & Fees","Taxes & Fees","6.1","State Premium Tax",{"$f":"'LTC Rev-Exp Region 7'!D$64","v":{"v":0,"d":"$0.00"}},{"v":0,"d":"$0.00"},{"v":0,"d":"$0.00"},{"v":0,"d":"$0.00"},{"v":0,"d":"$0.00"}]
["LTC",null,null,{"$f":"Jurat!I$1","v":0},{"$f":"Jurat!D$33","v":"00:00:00"},"Q1","2017-03-31","Region 7","Operating Expense","Taxes & Fees","Taxes & Fees","6.2","Department of Insurance Assessments",{"$f":"'LTC Rev-Exp Region 7'!D$65","v":{"v":0,"d":"$0.00"}},{"v":0,"d":"$0.00"},{"v":0,"d":"$0.00"},{"v":0,"d":"$0.00"},{"v":0,"d":"$0.00"}]
["LTC",null,null,{"$f":"Jurat!I$1","v":0},{"$f":"Jurat!D$33","v":"00:00:00"},"Q1","2017-03-31","Region 7","Non-Operating Expense","Income Tax Expense","Income Tax Expense","9.0","Income Tax Expense",{"$f":"'LTC Rev-Exp Region 7'!D$72","v":{"v":0,"d":"$0.00"}},{"v":0,"d":"$0.00"},{"v":0,"d":"$0.00"},{"v":0,"d":"$0.00"},{"v":0,"d":"$0.00"}]
["LTC",null,null,{"$f":"Jurat!I$1","v":0},{"$f":"Jurat!D$33","v":"00:00:00"},"Q2","2017-06-30","Region 7","Member Months","Member Months","Member Months",null,"Member Months",{"$f":"'LTC Rev-Exp Region 7'!H$9","v":{"v":0,"d":"$0.00"}},{"$f":"'LTC Rev-Exp Region 7'!I$9","v":{"v":0,"d":"$0.00"}},{"$f":"'LTC Rev-Exp Region 7'!J$9","v":{"v":0,"d":"$0.00"}},{"$f":"'LTC Rev-Exp Region 7'!K$9","v":{"v":0,"d":"$0.00"}},{"v":0,"d":"$0.00"}]
["LTC",null,null,{"$f":"Jurat!I$1","v":0},{"$f":"Jurat!D$33","v":"00:00:00"},"Q2","2017-06-30","Region 7","Operating Revenue","Capitation","Capitation",1.1,"Capitation",{"$f":"'LTC Rev-Exp Region 7'!H$11","v":{"v":0,"d":"$0.00"}},{"$f":"'LTC Rev-Exp Region 7'!I$11","v":{"v":0,"d":"$0.00"}},{"$f":"'LTC Rev-Exp Region 7'!J$11","v":{"v":0,"d":"$0.00"}},{"$f":"'LTC Rev-Exp Region 7'!K$11","v":{"v":0,"d":"$0.00"}},{"v":0,"d":"$0.00"}]
["LTC",null,null,{"$f":"Jurat!I$1","v":0},{"$f":"Jurat!D$33","v":"00:00:00"},"Q2","2017-06-30","Region 7","Operating Revenue","Capitation","NH Rate Reconciliation",1.2,"NH Rate Reconciliation",{"$f":"'LTC Rev-Exp Region 7'!H$12","v":{"v":0,"d":"$0.00"}},{"$f":"'LTC Rev-Exp Region 7'!I$12","v":{"v":0,"d":"$0.00"}},{"$f":"'LTC Rev-Exp Region 7'!J$12","v":{"v":0,"d":"$0.00"}},{"$f":"'LTC Rev-Exp Region 7'!K$12","v":{"v":0,"d":"$0.00"}},{"v":0,"d":"$0.00"}]
["LTC",null,null,{"$f":"Jurat!I$1","v":0},{"$f":"Jurat!D$33","v":"00:00:00"},"Q2","2017-06-30","Region 7","Operating Revenue","Other Revenue","Other Revenue",1.3,"Other Revenue",{"$f":"'LTC Rev-Exp Region 7'!H$13","v":{"v":0,"d":"$0.00"}},{"$f":"'LTC Rev-Exp Region 7'!I$13","v":{"v":0,"d":"$0.00"}},{"$f":"'LTC Rev-Exp Region 7'!J$13","v":{"v":0,"d":"$0.00"}},{"$f":"'LTC Rev-Exp Region 7'!K$13","v":{"v":0,"d":"$0.00"}},{"v":0,"d":"$0.00"}]
["LTC",null,null,{"$f":"Jurat!I$1","v":0},{"$f":"Jurat!D$33","v":"00:00:00"},"Q2","2017-06-30","Region 7","Operating Expense","Medical Expense","NF & Hospice","2.1","Nursing Facility Days (Medicaid)",{"$f":"'LTC Rev-Exp Region 7'!H$17","v":{"v":0,"d":"$0.00"}},{"$f":"'LTC Rev-Exp Region 7'!I$17","v":{"v":0,"d":"$0.00"}},{"$f":"'LTC Rev-Exp Region 7'!J$17","v":{"v":0,"d":"$0.00"}},{"$f":"'LTC Rev-Exp Region 7'!K$17","v":{"v":0,"d":"$0.00"}},{"v":0,"d":"$0.00"}]
["LTC",null,null,{"$f":"Jurat!I$1","v":0},{"$f":"Jurat!D$33","v":"00:00:00"},"Q2","2017-06-30","Region 7","Operating Expense","Medical Expense","NF & Hospice","2.2","Nursing Facility Days (Crossover)",{"$f":"'LTC Rev-Exp Region 7'!H$18","v":{"v":0,"d":"$0.00"}},{"$f":"'LTC Rev-Exp Region 7'!I$18","v":{"v":0,"d":"$0.00"}},{"$f":"'LTC Rev-Exp Region 7'!J$18","v":{"v":0,"d":"$0.00"}},{"$f":"'LTC Rev-Exp Region 7'!K$18","v":{"v":0,"d":"$0.00"}},{"v":0,"d":"$0.00"}]
["LTC",null,null,{"$f":"Jurat!I$1","v":0},{"$f":"Jurat!D$33","v":"00:00:00"},"Q2","2017-06-30","Region 7","Operating Expense","Medical Expense","NF & Hospice","2.3","Nursing Facility FFS (Medicaid)",{"$f":"'LTC Rev-Exp Region 7'!H$19","v":{"v":0,"d":"$0.00"}},{"$f":"'LTC Rev-Exp Region 7'!I$19","v":{"v":0,"d":"$0.00"}},{"$f":"'LTC Rev-Exp Region 7'!J$19","v":{"v":0,"d":"$0.00"}},{"$f":"'LTC Rev-Exp Region 7'!K$19","v":{"v":0,"d":"$0.00"}},{"v":0,"d":"$0.00"}]
["LTC",null,null,{"$f":"Jurat!I$1","v":0},{"$f":"Jurat!D$33","v":"00:00:00"},"Q2","2017-06-30","Region 7","Operating Expense","Medical Expense","NF & Hospice","2.4","Nursing Facility FFS (Crossover)",{"$f":"'LTC Rev-Exp Region 7'!H$20","v":{"v":0,"d":"$0.00"}},{"$f":"'LTC Rev-Exp Region 7'!I$20","v":{"v":0,"d":"$0.00"}},{"$f":"'LTC Rev-Exp Region 7'!J$20","v":{"v":0,"d":"$0.00"}},{"$f":"'LTC Rev-Exp Region 7'!K$20","v":{"v":0,"d":"$0.00"}},{"v":0,"d":"$0.00"}]
["LTC",null,null,{"$f":"Jurat!I$1","v":0},{"$f":"Jurat!D$33","v":"00:00:00"},"Q2","2017-06-30","Region 7","Operating Expense","Medical Expense","NF & Hospice","2.5","Hospice Days",{"$f":"'LTC Rev-Exp Region 7'!H$21","v":{"v":0,"d":"$0.00"}},{"$f":"'LTC Rev-Exp Region 7'!I$21","v":{"v":0,"d":"$0.00"}},{"$f":"'LTC Rev-Exp Region 7'!J$21","v":{"v":0,"d":"$0.00"}},{"$f":"'LTC Rev-Exp Region 7'!K$21","v":{"v":0,"d":"$0.00"}},{"v":0,"d":"$0.00"}]
["LTC",null,null,{"$f":"Jurat!I$1","v":0},{"$f":"Jurat!D$33","v":"00:00:00"},"Q2","2017-06-30","Region 7","Operating Expense","Medical Expense","NF & Hospice","2.6","Hospice FFS",{"$f":"'LTC Rev-Exp Region 7'!H$22","v":{"v":0,"d":"$0.00"}},{"$f":"'LTC Rev-Exp Region 7'!I$22","v":{"v":0,"d":"$0.00"}},{"$f":"'LTC Rev-Exp Region 7'!J$22","v":{"v":0,"d":"$0.00"}},{"$f":"'LTC Rev-Exp Region 7'!K$22","v":{"v":0,"d":"$0.00"}},{"v":0,"d":"$0.00"}]
["LTC",null,null,{"$f":"Jurat!I$1","v":0},{"$f":"Jurat!D$33","v":"00:00:00"},"Q2","2017-06-30","Region 7","Operating Expense","Medical Expense","NF & Hospice","2.7","Ending IBNP for NF & Hospice",{"$f":"'LTC Rev-Exp Region 7'!H$23","v":{"v":0,"d":"$0.00"}},{"$f":"'LTC Rev-Exp Region 7'!I$23","v":{"v":0,"d":"$0.00"}},{"$f":"'LTC Rev-Exp Region 7'!J$23","v":{"v":0,"d":"$0.00"}},{"$f":"'LTC Rev-Exp Region 7'!K$23","v":{"v":0,"d":"$0.00"}},{"v":0,"d":"$0.00"}]
["LTC",null,null,{"$f":"Jurat!I$1","v":0},{"$f":"Jurat!D$33","v":"00:00:00"},"Q2","2017-06-30","Region 7","Operating Expense","Medical Expense","NF & Hospice","2.8","NF & Hospice Subcapitated",{"$f":"'LTC Rev-Exp Region 7'!H$24","v":{"v":0,"d":"$0.00"}},{"$f":"'LTC Rev-Exp Region 7'!I$24","v":{"v":0,"d":"$0.00"}},{"$f":"'LTC Rev-Exp Region 7'!J$24","v":{"v":0,"d":"$0.00"}},{"$f":"'LTC Rev-Exp Region 7'!K$24","v":{"v":0,"d":"$0.00"}},{"v":0,"d":"$0.00"}]
["LTC",null,null,{"$f":"Jurat!I$1","v":0},{"$f":"Jurat!D$33","v":"00:00:00"},"Q2","2017-06-30","Region 7","Operating Expense","Medical Expense","NF & Hospice","2.9","NF & Hospice Settlements",{"$f":"'LTC Rev-Exp Region 7'!H$25","v":{"v":0,"d":"$0.00"}},{"$f":"'LTC Rev-Exp Region 7'!I$25","v":{"v":0,"d":"$0.00"}},{"$f":"'LTC Rev-Exp Region 7'!J$25","v":{"v":0,"d":"$0.00"}},{"$f":"'LTC Rev-Exp Region 7'!K$25","v":{"v":0,"d":"$0.00"}},{"v":0,"d":"$0.00"}]
["LTC",null,null,{"$f":"Jurat!I$1","v":0},{"$f":"Jurat!D$33","v":"00:00:00"},"Q2","2017-06-30","Region 7","Operating Expense","Medical Expense","LTC Services","2.11","Assisted Living FFS",{"$f":"'LTC Rev-Exp Region 7'!H$27","v":{"v":0,"d":"$0.00"}},{"$f":"'LTC Rev-Exp Region 7'!I$27","v":{"v":0,"d":"$0.00"}},{"$f":"'LTC Rev-Exp Region 7'!J$27","v":{"v":0,"d":"$0.00"}},{"$f":"'LTC Rev-Exp Region 7'!K$27","v":{"v":0,"d":"$0.00"}},{"v":0,"d":"$0.00"}]
["LTC",null,null,{"$f":"Jurat!I$1","v":0},{"$f":"Jurat!D$33","v":"00:00:00"},"Q2","2017-06-30","Region 7","Operating Expense","Medical Expense","LTC Services","2.12","Home Health FFS",{"$f":"'LTC Rev-Exp Region 7'!H$28","v":{"v":0,"d":"$0.00"}},{"$f":"'LTC Rev-Exp Region 7'!I$28","v":{"v":0,"d":"$0.00"}},{"$f":"'LTC Rev-Exp Region 7'!J$28","v":{"v":0,"d":"$0.00"}},{"$f":"'LTC Rev-Exp Region 7'!K$28","v":{"v":0,"d":"$0.00"}},{"v":0,"d":"$0.00"}]
["LTC",null,null,{"$f":"Jurat!I$1","v":0},{"$f":"Jurat!D$33","v":"00:00:00"},"Q2","2017-06-30","Region 7","Operating Expense","Medical Expense","LTC Services","2.13","Medical Equipment/Supplies FFS",{"$f":"'LTC Rev-Exp Region 7'!H$29","v":{"v":0,"d":"$0.00"}},{"$f":"'LTC Rev-Exp Region 7'!I$29","v":{"v":0,"d":"$0.00"}},{"$f":"'LTC Rev-Exp Region 7'!J$29","v":{"v":0,"d":"$0.00"}},{"$f":"'LTC Rev-Exp Region 7'!K$29","v":{"v":0,"d":"$0.00"}},{"v":0,"d":"$0.00"}]
["LTC",null,null,{"$f":"Jurat!I$1","v":0},{"$f":"Jurat!D$33","v":"00:00:00"},"Q2","2017-06-30","Region 7","Operating Expense","Medical Expense","LTC Services","2.14","Therapy FFS",{"$f":"'LTC Rev-Exp Region 7'!H$30","v":{"v":0,"d":"$0.00"}},{"$f":"'LTC Rev-Exp Region 7'!I$30","v":{"v":0,"d":"$0.00"}},{"$f":"'LTC Rev-Exp Region 7'!J$30","v":{"v":0,"d":"$0.00"}},{"$f":"'LTC Rev-Exp Region 7'!K$30","v":{"v":0,"d":"$0.00"}},{"v":0,"d":"$0.00"}]
["LTC",null,null,{"$f":"Jurat!I$1","v":0},{"$f":"Jurat!D$33","v":"00:00:00"},"Q2","2017-06-30","Region 7","Operating Expense","Medical Expense","LTC Services","2.15","Transportation FFS",{"$f":"'LTC Rev-Exp Region 7'!H$31","v":{"v":0,"d":"$0.00"}},{"$f":"'LTC Rev-Exp Region 7'!I$31","v":{"v":0,"d":"$0.00"}},{"$f":"'LTC Rev-Exp Region 7'!J$31","v":{"v":0,"d":"$0.00"}},{"$f":"'LTC Rev-Exp Region 7'!K$31","v":{"v":0,"d":"$0.00"}},{"v":0,"d":"$0.00"}]
["LTC",null,null,{"$f":"Jurat!I$1","v":0},{"$f":"Jurat!D$33","v":"00:00:00"},"Q2","2017-06-30","Region 7","Operating Expense","Medical Expense","LTC Services","2.16","Case Management FFS (Plan Provided)",{"$f":"'LTC Rev-Exp Region 7'!H$32","v":{"v":0,"d":"$0.00"}},{"$f":"'LTC Rev-Exp Region 7'!I$32","v":{"v":0,"d":"$0.00"}},{"$f":"'LTC Rev-Exp Region 7'!J$32","v":{"v":0,"d":"$0.00"}},{"$f":"'LTC Rev-Exp Region 7'!K$32","v":{"v":0,"d":"$0.00"}},{"v":0,"d":"$0.00"}]
["LTC",null,null,{"$f":"Jurat!I$1","v":0},{"$f":"Jurat!D$33","v":"00:00:00"},"Q2","2017-06-30","Region 7","Operating Expense","Medical Expense","LTC Services","2.17","Case Management FF (Non-Plan Provided)",{"$f":"'LTC Rev-Exp Region 7'!H$33","v":{"v":0,"d":"$0.00"}},{"$f":"'LTC Rev-Exp Region 7'!I$33","v":{"v":0,"d":"$0.00"}},{"$f":"'LTC Rev-Exp Region 7'!J$33","v":{"v":0,"d":"$0.00"}},{"$f":"'LTC Rev-Exp Region 7'!K$33","v":{"v":0,"d":"$0.00"}},{"v":0,"d":"$0.00"}]
["LTC",null,null,{"$f":"Jurat!I$1","v":0},{"$f":"Jurat!D$33","v":"00:00:00"},"Q2","2017-06-30","Region 7","Operating Expense","Medical Expense","LTC Services","2.18","HCBS FFS",{"$f":"'LTC Rev-Exp Region 7'!H$34","v":{"v":0,"d":"$0.00"}},{"$f":"'LTC Rev-Exp Region 7'!I$34","v":{"v":0,"d":"$0.00"}},{"$f":"'LTC Rev-Exp Region 7'!J$34","v":{"v":0,"d":"$0.00"}},{"$f":"'LTC Rev-Exp Region 7'!K$34","v":{"v":0,"d":"$0.00"}},{"v":0,"d":"$0.00"}]
["LTC",null,null,{"$f":"Jurat!I$1","v":0},{"$f":"Jurat!D$33","v":"00:00:00"},"Q2","2017-06-30","Region 7","Operating Expense","Medical Expense","LTC Services","2.19","Subcapitated LTC Services",{"$f":"'LTC Rev-Exp Region 7'!H$35","v":{"v":0,"d":"$0.00"}},{"$f":"'LTC Rev-Exp Region 7'!I$35","v":{"v":0,"d":"$0.00"}},{"$f":"'LTC Rev-Exp Region 7'!J$35","v":{"v":0,"d":"$0.00"}},{"$f":"'LTC Rev-Exp Region 7'!K$35","v":{"v":0,"d":"$0.00"}},{"v":0,"d":"$0.00"}]
["LTC",null,null,{"$f":"Jurat!I$1","v":0},{"$f":"Jurat!D$33","v":"00:00:00"},"Q2","2017-06-30","Region 7","Operating Expense","Medical Expense","LTC Services","2.20","Ending IBNP for Long Term Care Services",{"$f":"'LTC Rev-Exp Region 7'!H$36","v":{"v":0,"d":"$0.00"}},{"$f":"'LTC Rev-Exp Region 7'!I$36","v":{"v":0,"d":"$0.00"}},{"$f":"'LTC Rev-Exp Region 7'!J$36","v":{"v":0,"d":"$0.00"}},{"$f":"'LTC Rev-Exp Region 7'!K$36","v":{"v":0,"d":"$0.00"}},{"v":0,"d":"$0.00"}]
["LTC",null,null,{"$f":"Jurat!I$1","v":0},{"$f":"Jurat!D$33","v":"00:00:00"},"Q2","2017-06-30","Region 7","Operating Expense","Medical Expense","LTC Services","2.21","LTC Services Settlements",{"$f":"'LTC Rev-Exp Region 7'!H$37","v":{"v":0,"d":"$0.00"}},{"$f":"'LTC Rev-Exp Region 7'!I$37","v":{"v":0,"d":"$0.00"}},{"$f":"'LTC Rev-Exp Region 7'!J$37","v":{"v":0,"d":"$0.00"}},{"$f":"'LTC Rev-Exp Region 7'!K$37","v":{"v":0,"d":"$0.00"}},{"v":0,"d":"$0.00"}]
["LTC",null,null,{"$f":"Jurat!I$1","v":0},{"$f":"Jurat!D$33","v":"00:00:00"},"Q2","2017-06-30","Region 7","Operating Expense","Medical Expense","Expanded Benefits","3.1","Expanded Benefits FFS",{"$f":"'LTC Rev-Exp Region 7'!H$39","v":{"v":0,"d":"$0.00"}},{"$f":"'LTC Rev-Exp Region 7'!I$39","v":{"v":0,"d":"$0.00"}},{"$f":"'LTC Rev-Exp Region 7'!J$39","v":{"v":0,"d":"$0.00"}},{"$f":"'LTC Rev-Exp Region 7'!K$39","v":{"v":0,"d":"$0.00"}},{"v":0,"d":"$0.00"}]
["LTC",null,null,{"$f":"Jurat!I$1","v":0},{"$f":"Jurat!D$33","v":"00:00:00"},"Q2","2017-06-30","Region 7","Operating Expense","Medical Expense","Expanded Benefits","3.2","Expanded Benefits Subcapitation",{"$f":"'LTC Rev-Exp Region 7'!H$40","v":{"v":0,"d":"$0.00"}},{"$f":"'LTC Rev-Exp Region 7'!I$40","v":{"v":0,"d":"$0.00"}},{"$f":"'LTC Rev-Exp Region 7'!J$40","v":{"v":0,"d":"$0.00"}},{"$f":"'LTC Rev-Exp Region 7'!K$40","v":{"v":0,"d":"$0.00"}},{"v":0,"d":"$0.00"}]
["LTC",null,null,{"$f":"Jurat!I$1","v":0},{"$f":"Jurat!D$33","v":"00:00:00"},"Q2","2017-06-30","Region 7","Operating Expense","Medical Expense","Expanded Benefits","3.3","Ending IBNP for Expanded Benefits",{"$f":"'LTC Rev-Exp Region 7'!H$41","v":{"v":0,"d":"$0.00"}},{"$f":"'LTC Rev-Exp Region 7'!I$41","v":{"v":0,"d":"$0.00"}},{"$f":"'LTC Rev-Exp Region 7'!J$41","v":{"v":0,"d":"$0.00"}},{"$f":"'LTC Rev-Exp Region 7'!K$41","v":{"v":0,"d":"$0.00"}},{"v":0,"d":"$0.00"}]
["LTC",null,null,{"$f":"Jurat!I$1","v":0},{"$f":"Jurat!D$33","v":"00:00:00"},"Q2","2017-06-30","Region 7","Operating Expense","Medical Expense","Expanded Benefits","3.4","Expanded Benefits Settlements",{"$f":"'LTC Rev-Exp Region 7'!H$42","v":{"v":0,"d":"$0.00"}},{"$f":"'LTC Rev-Exp Region 7'!I$42","v":{"v":0,"d":"$0.00"}},{"$f":"'LTC Rev-Exp Region 7'!J$42","v":{"v":0,"d":"$0.00"}},{"$f":"'LTC Rev-Exp Region 7'!K$42","v":{"v":0,"d":"$0.00"}},{"v":0,"d":"$0.00"}]
["LTC",null,null,{"$f":"Jurat!I$1","v":0},{"$f":"Jurat!D$33","v":"00:00:00"},"Q2","2017-06-30","Region 7","Operating Expense","Medical Expense","Other Medical","4.5","TPL & Fraud/Abuse Recoveries",{"$f":"'LTC Rev-Exp Region 7'!H$48","v":{"v":0,"d":"$0.00"}},{"$f":"'LTC Rev-Exp Region 7'!I$48","v":{"v":0,"d":"$0.00"}},{"$f":"'LTC Rev-Exp Region 7'!J$48","v":{"v":0,"d":"$0.00"}},{"$f":"'LTC Rev-Exp Region 7'!K$48","v":{"v":0,"d":"$0.00"}},{"v":0,"d":"$0.00"}]
["LTC",null,null,{"$f":"Jurat!I$1","v":0},{"$f":"Jurat!D$33","v":"00:00:00"},"Q2","2017-06-30","Region 7","Operating Expense","Medical Expense","Other Medical","4.6.1","Premium Deficiency Reserve",{"$f":"'LTC Rev-Exp Region 7'!H$49","v":{"v":0,"d":"$0.00"}},{"$f":"'LTC Rev-Exp Region 7'!I$49","v":{"v":0,"d":"$0.00"}},{"$f":"'LTC Rev-Exp Region 7'!J$49","v":{"v":0,"d":"$0.00"}},{"$f":"'LTC Rev-Exp Region 7'!K$49","v":{"v":0,"d":"$0.00"}},{"v":0,"d":"$0.00"}]
["LTC",null,null,{"$f":"Jurat!I$1","v":0},{"$f":"Jurat!D$33","v":"00:00:00"},"Q2","2017-06-30","Region 7","Operating Expense","Medical Expense","Other Medical","4.8","Reinsurance Premiums",{"$f":"'LTC Rev-Exp Region 7'!H$51","v":{"v":0,"d":"$0.00"}},{"$f":"'LTC Rev-Exp Region 7'!I$51","v":{"v":0,"d":"$0.00"}},{"$f":"'LTC Rev-Exp Region 7'!J$51","v":{"v":0,"d":"$0.00"}},{"$f":"'LTC Rev-Exp Region 7'!K$51","v":{"v":0,"d":"$0.00"}},{"v":0,"d":"$0.00"}]
["LTC",null,null,{"$f":"Jurat!I$1","v":0},{"$f":"Jurat!D$33","v":"00:00:00"},"Q2","2017-06-30","Region 7","Operating Expense","Medical Expense","Other Medical","4.9","Reinsurance Recoveries",{"$f":"'LTC Rev-Exp Region 7'!H$52","v":{"v":0,"d":"$0.00"}},{"$f":"'LTC Rev-Exp Region 7'!I$52","v":{"v":0,"d":"$0.00"}},{"$f":"'LTC Rev-Exp Region 7'!J$52","v":{"v":0,"d":"$0.00"}},{"$f":"'LTC Rev-Exp Region 7'!K$52","v":{"v":0,"d":"$0.00"}},{"v":0,"d":"$0.00"}]
["LTC",null,null,{"$f":"Jurat!I$1","v":0},{"$f":"Jurat!D$33","v":"00:00:00"},"Q2","2017-06-30","Region 7","Operating Expense","Administrative Expense","Administrative","5.1","Salaries & Benefits",{"$f":"'LTC Rev-Exp Region 7'!H$57","v":{"v":0,"d":"$0.00"}},{"$f":"'LTC Rev-Exp Region 7'!I$57","v":{"v":0,"d":"$0.00"}},{"$f":"'LTC Rev-Exp Region 7'!J$57","v":{"v":0,"d":"$0.00"}},{"$f":"'LTC Rev-Exp Region 7'!K$57","v":{"v":0,"d":"$0.00"}},{"v":0,"d":"$0.00"}]
["LTC",null,null,{"$f":"Jurat!I$1","v":0},{"$f":"Jurat!D$33","v":"00:00:00"},"Q2","2017-06-30","Region 7","Operating Expense","Administrative Expense","Administrative","5.2","Administrative Services",{"$f":"'LTC Rev-Exp Region 7'!H$58","v":{"v":0,"d":"$0.00"}},{"$f":"'LTC Rev-Exp Region 7'!I$58","v":{"v":0,"d":"$0.00"}},{"$f":"'LTC Rev-Exp Region 7'!J$58","v":{"v":0,"d":"$0.00"}},{"$f":"'LTC Rev-Exp Region 7'!K$58","v":{"v":0,"d":"$0.00"}},{"v":0,"d":"$0.00"}]
["LTC",null,null,{"$f":"Jurat!I$1","v":0},{"$f":"Jurat!D$33","v":"00:00:00"},"Q2","2017-06-30","Region 7","Operating Expense","Administrative Expense","Administrative","5.3","Information Systems",{"$f":"'LTC Rev-Exp Region 7'!H$59","v":{"v":0,"d":"$0.00"}},{"$f":"'LTC Rev-Exp Region 7'!I$59","v":{"v":0,"d":"$0.00"}},{"$f":"'LTC Rev-Exp Region 7'!J$59","v":{"v":0,"d":"$0.00"}},{"$f":"'LTC Rev-Exp Region 7'!K$59","v":{"v":0,"d":"$0.00"}},{"v":0,"d":"$0.00"}]
["LTC",null,null,{"$f":"Jurat!I$1","v":0},{"$f":"Jurat!D$33","v":"00:00:00"},"Q2","2017-06-30","Region 7","Operating Expense","Administrative Expense","Administrative","5.4","Marketing Expenses",{"$f":"'LTC Rev-Exp Region 7'!H$60","v":{"v":0,"d":"$0.00"}},{"$f":"'LTC Rev-Exp Region 7'!I$60","v":{"v":0,"d":"$0.00"}},{"$f":"'LTC Rev-Exp Region 7'!J$60","v":{"v":0,"d":"$0.00"}},{"$f":"'LTC Rev-Exp Region 7'!K$60","v":{"v":0,"d":"$0.00"}},{"v":0,"d":"$0.00"}]
["LTC",null,null,{"$f":"Jurat!I$1","v":0},{"$f":"Jurat!D$33","v":"00:00:00"},"Q2","2017-06-30","Region 7","Operating Expense","Administrative Expense","Administrative","5.5","General  Administration",{"$f":"'LTC Rev-Exp Region 7'!H$61","v":{"v":0,"d":"$0.00"}},{"$f":"'LTC Rev-Exp Region 7'!I$61","v":{"v":0,"d":"$0.00"}},{"$f":"'LTC Rev-Exp Region 7'!J$61","v":{"v":0,"d":"$0.00"}},{"$f":"'LTC Rev-Exp Region 7'!K$61","v":{"v":0,"d":"$0.00"}},{"v":0,"d":"$0.00"}]
["LTC",null,null,{"$f":"Jurat!I$1","v":0},{"$f":"Jurat!D$33","v":"00:00:00"},"Q2","2017-06-30","Region 7","Operating Expense","Administrative Expense","Administrative","5.6","Compliance/Regulatory",{"$f":"'LTC Rev-Exp Region 7'!H$62","v":{"v":0,"d":"$0.00"}},{"$f":"'LTC Rev-Exp Region 7'!I$62","v":{"v":0,"d":"$0.00"}},{"$f":"'LTC Rev-Exp Region 7'!J$62","v":{"v":0,"d":"$0.00"}},{"$f":"'LTC Rev-Exp Region 7'!K$62","v":{"v":0,"d":"$0.00"}},{"v":0,"d":"$0.00"}]
["LTC",null,null,{"$f":"Jurat!I$1","v":0},{"$f":"Jurat!D$33","v":"00:00:00"},"Q2","2017-06-30","Region 7","Operating Expense","Taxes & Fees","Taxes & Fees","6.1","State Premium Tax",{"$f":"'LTC Rev-Exp Region 7'!H$64","v":{"v":0,"d":"$0.00"}},{"v":0,"d":"$0.00"},{"v":0,"d":"$0.00"},{"v":0,"d":"$0.00"},{"v":0,"d":"$0.00"}]
["LTC",null,null,{"$f":"Jurat!I$1","v":0},{"$f":"Jurat!D$33","v":"00:00:00"},"Q2","2017-06-30","Region 7","Operating Expense","Taxes & Fees","Taxes & Fees","6.2","Department of Insurance Assessments",{"$f":"'LTC Rev-Exp Region 7'!H$65","v":{"v":0,"d":"$0.00"}},{"v":0,"d":"$0.00"},{"v":0,"d":"$0.00"},{"v":0,"d":"$0.00"},{"v":0,"d":"$0.00"}]
["LTC",null,null,{"$f":"Jurat!I$1","v":0},{"$f":"Jurat!D$33","v":"00:00:00"},"Q2","2017-06-30","Region 7","Non-Operating Expense","Income Tax Expense","Income Tax Expense","9.0","Income Tax Expense",{"$f":"'LTC Rev-Exp Region 7'!H$72","v":{"v":0,"d":"$0.00"}},{"v":0,"d":"$0.00"},{"v":0,"d":"$0.00"},{"v":0,"d":"$0.00"},{"v":0,"d":"$0.00"}]
["LTC",null,null,{"$f":"Jurat!I$1","v":0},{"$f":"Jurat!D$33","v":"00:00:00"},"Q3","2017-09-30","Region 7","Member Months","Member Months","Member Months",null,"Member Months",{"$f":"'LTC Rev-Exp Region 7'!L$9","v":{"v":0,"d":"$0.00"}},{"$f":"'LTC Rev-Exp Region 7'!M$9","v":{"v":0,"d":"$0.00"}},{"$f":"'LTC Rev-Exp Region 7'!N$9","v":{"v":0,"d":"$0.00"}},{"$f":"'LTC Rev-Exp Region 7'!O$9","v":{"v":0,"d":"$0.00"}},{"v":0,"d":"$0.00"}]
["LTC",null,null,{"$f":"Jurat!I$1","v":0},{"$f":"Jurat!D$33","v":"00:00:00"},"Q3","2017-09-30","Region 7","Operating Revenue","Capitation","Capitation",1.1,"Capitation",{"$f":"'LTC Rev-Exp Region 7'!L$11","v":{"v":0,"d":"$0.00"}},{"$f":"'LTC Rev-Exp Region 7'!M$11","v":{"v":0,"d":"$0.00"}},{"$f":"'LTC Rev-Exp Region 7'!N$11","v":{"v":0,"d":"$0.00"}},{"$f":"'LTC Rev-Exp Region 7'!O$11","v":{"v":0,"d":"$0.00"}},{"v":0,"d":"$0.00"}]
["LTC",null,null,{"$f":"Jurat!I$1","v":0},{"$f":"Jurat!D$33","v":"00:00:00"},"Q3","2017-09-30","Region 7","Operating Revenue","Capitation","NH Rate Reconciliation",1.2,"NH Rate Reconciliation",{"$f":"'LTC Rev-Exp Region 7'!L$12","v":{"v":0,"d":"$0.00"}},{"$f":"'LTC Rev-Exp Region 7'!M$12","v":{"v":0,"d":"$0.00"}},{"$f":"'LTC Rev-Exp Region 7'!N$12","v":{"v":0,"d":"$0.00"}},{"$f":"'LTC Rev-Exp Region 7'!O$12","v":{"v":0,"d":"$0.00"}},{"v":0,"d":"$0.00"}]
["LTC",null,null,{"$f":"Jurat!I$1","v":0},{"$f":"Jurat!D$33","v":"00:00:00"},"Q3","2017-09-30","Region 7","Operating Revenue","Other Revenue","Other Revenue",1.3,"Other Revenue",{"$f":"'LTC Rev-Exp Region 7'!L$13","v":{"v":0,"d":"$0.00"}},{"$f":"'LTC Rev-Exp Region 7'!M$13","v":{"v":0,"d":"$0.00"}},{"$f":"'LTC Rev-Exp Region 7'!N$13","v":{"v":0,"d":"$0.00"}},{"$f":"'LTC Rev-Exp Region 7'!O$13","v":{"v":0,"d":"$0.00"}},{"v":0,"d":"$0.00"}]
["LTC",null,null,{"$f":"Jurat!I$1","v":0},{"$f":"Jurat!D$33","v":"00:00:00"},"Q3","2017-09-30","Region 7","Operating Expense","Medical Expense","NF & Hospice","2.1","Nursing Facility Days (Medicaid)",{"$f":"'LTC Rev-Exp Region 7'!L$17","v":{"v":0,"d":"$0.00"}},{"$f":"'LTC Rev-Exp Region 7'!M$17","v":{"v":0,"d":"$0.00"}},{"$f":"'LTC Rev-Exp Region 7'!N$17","v":{"v":0,"d":"$0.00"}},{"$f":"'LTC Rev-Exp Region 7'!O$17","v":{"v":0,"d":"$0.00"}},{"v":0,"d":"$0.00"}]
["LTC",null,null,{"$f":"Jurat!I$1","v":0},{"$f":"Jurat!D$33","v":"00:00:00"},"Q3","2017-09-30","Region 7","Operating Expense","Medical Expense","NF & Hospice","2.2","Nursing Facility Days (Crossover)",{"$f":"'LTC Rev-Exp Region 7'!L$18","v":{"v":0,"d":"$0.00"}},{"$f":"'LTC Rev-Exp Region 7'!M$18","v":{"v":0,"d":"$0.00"}},{"$f":"'LTC Rev-Exp Region 7'!N$18","v":{"v":0,"d":"$0.00"}},{"$f":"'LTC Rev-Exp Region 7'!O$18","v":{"v":0,"d":"$0.00"}},{"v":0,"d":"$0.00"}]
["LTC",null,null,{"$f":"Jurat!I$1","v":0},{"$f":"Jurat!D$33","v":"00:00:00"},"Q3","2017-09-30","Region 7","Operating Expense","Medical Expense","NF & Hospice","2.3","Nursing Facility FFS (Medicaid)",{"$f":"'LTC Rev-Exp Region 7'!L$19","v":{"v":0,"d":"$0.00"}},{"$f":"'LTC Rev-Exp Region 7'!M$19","v":{"v":0,"d":"$0.00"}},{"$f":"'LTC Rev-Exp Region 7'!N$19","v":{"v":0,"d":"$0.00"}},{"$f":"'LTC Rev-Exp Region 7'!O$19","v":{"v":0,"d":"$0.00"}},{"v":0,"d":"$0.00"}]
["LTC",null,null,{"$f":"Jurat!I$1","v":0},{"$f":"Jurat!D$33","v":"00:00:00"},"Q3","2017-09-30","Region 7","Operating Expense","Medical Expense","NF & Hospice","2.4","Nursing Facility FFS (Crossover)",{"$f":"'LTC Rev-Exp Region 7'!L$20","v":{"v":0,"d":"$0.00"}},{"$f":"'LTC Rev-Exp Region 7'!M$20","v":{"v":0,"d":"$0.00"}},{"$f":"'LTC Rev-Exp Region 7'!N$20","v":{"v":0,"d":"$0.00"}},{"$f":"'LTC Rev-Exp Region 7'!O$20","v":{"v":0,"d":"$0.00"}},{"v":0,"d":"$0.00"}]
["LTC",null,null,{"$f":"Jurat!I$1","v":0},{"$f":"Jurat!D$33","v":"00:00:00"},"Q3","2017-09-30","Region 7","Operating Expense","Medical Expense","NF & Hospice","2.5","Hospice Days",{"$f":"'LTC Rev-Exp Region 7'!L$21","v":{"v":0,"d":"$0.00"}},{"$f":"'LTC Rev-Exp Region 7'!M$21","v":{"v":0,"d":"$0.00"}},{"$f":"'LTC Rev-Exp Region 7'!N$21","v":{"v":0,"d":"$0.00"}},{"$f":"'LTC Rev-Exp Region 7'!O$21","v":{"v":0,"d":"$0.00"}},{"v":0,"d":"$0.00"}]
["LTC",null,null,{"$f":"Jurat!I$1","v":0},{"$f":"Jurat!D$33","v":"00:00:00"},"Q3","2017-09-30","Region 7","Operating Expense","Medical Expense","NF & Hospice","2.6","Hospice FFS",{"$f":"'LTC Rev-Exp Region 7'!L$22","v":{"v":0,"d":"$0.00"}},{"$f":"'LTC Rev-Exp Region 7'!M$22","v":{"v":0,"d":"$0.00"}},{"$f":"'LTC Rev-Exp Region 7'!N$22","v":{"v":0,"d":"$0.00"}},{"$f":"'LTC Rev-Exp Region 7'!O$22","v":{"v":0,"d":"$0.00"}},{"v":0,"d":"$0.00"}]
["LTC",null,null,{"$f":"Jurat!I$1","v":0},{"$f":"Jurat!D$33","v":"00:00:00"},"Q3","2017-09-30","Region 7","Operating Expense","Medical Expense","NF & Hospice","2.7","Ending IBNP for NF & Hospice",{"$f":"'LTC Rev-Exp Region 7'!L$23","v":{"v":0,"d":"$0.00"}},{"$f":"'LTC Rev-Exp Region 7'!M$23","v":{"v":0,"d":"$0.00"}},{"$f":"'LTC Rev-Exp Region 7'!N$23","v":{"v":0,"d":"$0.00"}},{"$f":"'LTC Rev-Exp Region 7'!O$23","v":{"v":0,"d":"$0.00"}},{"v":0,"d":"$0.00"}]
["LTC",null,null,{"$f":"Jurat!I$1","v":0},{"$f":"Jurat!D$33","v":"00:00:00"},"Q3","2017-09-30","Region 7","Operating Expense","Medical Expense","NF & Hospice","2.8","NF & Hospice Subcapitated",{"$f":"'LTC Rev-Exp Region 7'!L$24","v":{"v":0,"d":"$0.00"}},{"$f":"'LTC Rev-Exp Region 7'!M$24","v":{"v":0,"d":"$0.00"}},{"$f":"'LTC Rev-Exp Region 7'!N$24","v":{"v":0,"d":"$0.00"}},{"$f":"'LTC Rev-Exp Region 7'!O$24","v":{"v":0,"d":"$0.00"}},{"v":0,"d":"$0.00"}]
["LTC",null,null,{"$f":"Jurat!I$1","v":0},{"$f":"Jurat!D$33","v":"00:00:00"},"Q3","2017-09-30","Region 7","Operating Expense","Medical Expense","NF & Hospice","2.9","NF & Hospice Settlements",{"$f":"'LTC Rev-Exp Region 7'!L$25","v":{"v":0,"d":"$0.00"}},{"$f":"'LTC Rev-Exp Region 7'!M$25","v":{"v":0,"d":"$0.00"}},{"$f":"'LTC Rev-Exp Region 7'!N$25","v":{"v":0,"d":"$0.00"}},{"$f":"'LTC Rev-Exp Region 7'!O$25","v":{"v":0,"d":"$0.00"}},{"v":0,"d":"$0.00"}]
["LTC",null,null,{"$f":"Jurat!I$1","v":0},{"$f":"Jurat!D$33","v":"00:00:00"},"Q3","2017-09-30","Region 7","Operating Expense","Medical Expense","LTC Services","2.11","Assisted Living FFS",{"$f":"'LTC Rev-Exp Region 7'!L$27","v":{"v":0,"d":"$0.00"}},{"$f":"'LTC Rev-Exp Region 7'!M$27","v":{"v":0,"d":"$0.00"}},{"$f":"'LTC Rev-Exp Region 7'!N$27","v":{"v":0,"d":"$0.00"}},{"$f":"'LTC Rev-Exp Region 7'!O$27","v":{"v":0,"d":"$0.00"}},{"v":0,"d":"$0.00"}]
["LTC",null,null,{"$f":"Jurat!I$1","v":0},{"$f":"Jurat!D$33","v":"00:00:00"},"Q3","2017-09-30","Region 7","Operating Expense","Medical Expense","LTC Services","2.12","Home Health FFS",{"$f":"'LTC Rev-Exp Region 7'!L$28","v":{"v":0,"d":"$0.00"}},{"$f":"'LTC Rev-Exp Region 7'!M$28","v":{"v":0,"d":"$0.00"}},{"$f":"'LTC Rev-Exp Region 7'!N$28","v":{"v":0,"d":"$0.00"}},{"$f":"'LTC Rev-Exp Region 7'!O$28","v":{"v":0,"d":"$0.00"}},{"v":0,"d":"$0.00"}]
["LTC",null,null,{"$f":"Jurat!I$1","v":0},{"$f":"Jurat!D$33","v":"00:00:00"},"Q3","2017-09-30","Region 7","Operating Expense","Medical Expense","LTC Services","2.13","Medical Equipment/Supplies FFS",{"$f":"'LTC Rev-Exp Region 7'!L$29","v":{"v":0,"d":"$0.00"}},{"$f":"'LTC Rev-Exp Region 7'!M$29","v":{"v":0,"d":"$0.00"}},{"$f":"'LTC Rev-Exp Region 7'!N$29","v":{"v":0,"d":"$0.00"}},{"$f":"'LTC Rev-Exp Region 7'!O$29","v":{"v":0,"d":"$0.00"}},{"v":0,"d":"$0.00"}]
["LTC",null,null,{"$f":"Jurat!I$1","v":0},{"$f":"Jurat!D$33","v":"00:00:00"},"Q3","2017-09-30","Region 7","Operating Expense","Medical Expense","LTC Services","2.14","Therapy FFS",{"$f":"'LTC Rev-Exp Region 7'!L$30","v":{"v":0,"d":"$0.00"}},{"$f":"'LTC Rev-Exp Region 7'!M$30","v":{"v":0,"d":"$0.00"}},{"$f":"'LTC Rev-Exp Region 7'!N$30","v":{"v":0,"d":"$0.00"}},{"$f":"'LTC Rev-Exp Region 7'!O$30","v":{"v":0,"d":"$0.00"}},{"v":0,"d":"$0.00"}]
["LTC",null,null,{"$f":"Jurat!I$1","v":0},{"$f":"Jurat!D$33","v":"00:00:00"},"Q3","2017-09-30","Region 7","Operating Expense","Medical Expense","LTC Services","2.15","Transportation FFS",{"$f":"'LTC Rev-Exp Region 7'!L$31","v":{"v":0,"d":"$0.00"}},{"$f":"'LTC Rev-Exp Region 7'!M$31","v":{"v":0,"d":"$0.00"}},{"$f":"'LTC Rev-Exp Region 7'!N$31","v":{"v":0,"d":"$0.00"}},{"$f":"'LTC Rev-Exp Region 7'!O$31","v":{"v":0,"d":"$0.00"}},{"v":0,"d":"$0.00"}]
["LTC",null,null,{"$f":"Jurat!I$1","v":0},{"$f":"Jurat!D$33","v":"00:00:00"},"Q3","2017-09-30","Region 7","Operating Expense","Medical Expense","LTC Services","2.16","Case Management FFS (Plan Provided)",{"$f":"'LTC Rev-Exp Region 7'!L$32","v":{"v":0,"d":"$0.00"}},{"$f":"'LTC Rev-Exp Region 7'!M$32","v":{"v":0,"d":"$0.00"}},{"$f":"'LTC Rev-Exp Region 7'!N$32","v":{"v":0,"d":"$0.00"}},{"$f":"'LTC Rev-Exp Region 7'!O$32","v":{"v":0,"d":"$0.00"}},{"v":0,"d":"$0.00"}]
["LTC",null,null,{"$f":"Jurat!I$1","v":0},{"$f":"Jurat!D$33","v":"00:00:00"},"Q3","2017-09-30","Region 7","Operating Expense","Medical Expense","LTC Services","2.17","Case Management FF (Non-Plan Provided)",{"$f":"'LTC Rev-Exp Region 7'!L$33","v":{"v":0,"d":"$0.00"}},{"$f":"'LTC Rev-Exp Region 7'!M$33","v":{"v":0,"d":"$0.00"}},{"$f":"'LTC Rev-Exp Region 7'!N$33","v":{"v":0,"d":"$0.00"}},{"$f":"'LTC Rev-Exp Region 7'!O$33","v":{"v":0,"d":"$0.00"}},{"v":0,"d":"$0.00"}]
["LTC",null,null,{"$f":"Jurat!I$1","v":0},{"$f":"Jurat!D$33","v":"00:00:00"},"Q3","2017-09-30","Region 7","Operating Expense","Medical Expense","LTC Services","2.18","HCBS FFS",{"$f":"'LTC Rev-Exp Region 7'!L$34","v":{"v":0,"d":"$0.00"}},{"$f":"'LTC Rev-Exp Region 7'!M$34","v":{"v":0,"d":"$0.00"}},{"$f":"'LTC Rev-Exp Region 7'!N$34","v":{"v":0,"d":"$0.00"}},{"$f":"'LTC Rev-Exp Region 7'!O$34","v":{"v":0,"d":"$0.00"}},{"v":0,"d":"$0.00"}]
["LTC",null,null,{"$f":"Jurat!I$1","v":0},{"$f":"Jurat!D$33","v":"00:00:00"},"Q3","2017-09-30","Region 7","Operating Expense","Medical Expense","LTC Services","2.19","Subcapitated LTC Services",{"$f":"'LTC Rev-Exp Region 7'!L$35","v":{"v":0,"d":"$0.00"}},{"$f":"'LTC Rev-Exp Region 7'!M$35","v":{"v":0,"d":"$0.00"}},{"$f":"'LTC Rev-Exp Region 7'!N$35","v":{"v":0,"d":"$0.00"}},{"$f":"'LTC Rev-Exp Region 7'!O$35","v":{"v":0,"d":"$0.00"}},{"v":0,"d":"$0.00"}]
["LTC",null,null,{"$f":"Jurat!I$1","v":0},{"$f":"Jurat!D$33","v":"00:00:00"},"Q3","2017-09-30","Region 7","Operating Expense","Medical Expense","LTC Services","2.20","Ending IBNP for Long Term Care Services",{"$f":"'LTC Rev-Exp Region 7'!L$36","v":{"v":0,"d":"$0.00"}},{"$f":"'LTC Rev-Exp Region 7'!M$36","v":{"v":0,"d":"$0.00"}},{"$f":"'LTC Rev-Exp Region 7'!N$36","v":{"v":0,"d":"$0.00"}},{"$f":"'LTC Rev-Exp Region 7'!O$36","v":{"v":0,"d":"$0.00"}},{"v":0,"d":"$0.00"}]
["LTC",null,null,{"$f":"Jurat!I$1","v":0},{"$f":"Jurat!D$33","v":"00:00:00"},"Q3","2017-09-30","Region 7","Operating Expense","Medical Expense","LTC Services","2.21","LTC Services Settlements",{"$f":"'LTC Rev-Exp Region 7'!L$37","v":{"v":0,"d":"$0.00"}},{"$f":"'LTC Rev-Exp Region 7'!M$37","v":{"v":0,"d":"$0.00"}},{"$f":"'LTC Rev-Exp Region 7'!N$37","v":{"v":0,"d":"$0.00"}},{"$f":"'LTC Rev-Exp Region 7'!O$37","v":{"v":0,"d":"$0.00"}},{"v":0,"d":"$0.00"}]
["LTC",null,null,{"$f":"Jurat!I$1","v":0},{"$f":"Jurat!D$33","v":"00:00:00"},"Q3","2017-09-30","Region 7","Operating Expense","Medical Expense","Expanded Benefits","3.1","Expanded Benefits FFS",{"$f":"'LTC Rev-Exp Region 7'!L$39","v":{"v":0,"d":"$0.00"}},{"$f":"'LTC Rev-Exp Region 7'!M$39","v":{"v":0,"d":"$0.00"}},{"$f":"'LTC Rev-Exp Region 7'!N$39","v":{"v":0,"d":"$0.00"}},{"$f":"'LTC Rev-Exp Region 7'!O$39","v":{"v":0,"d":"$0.00"}},{"v":0,"d":"$0.00"}]
["LTC",null,null,{"$f":"Jurat!I$1","v":0},{"$f":"Jurat!D$33","v":"00:00:00"},"Q3","2017-09-30","Region 7","Operating Expense","Medical Expense","Expanded Benefits","3.2","Expanded Benefits Subcapitation",{"$f":"'LTC Rev-Exp Region 7'!L$40","v":{"v":0,"d":"$0.00"}},{"$f":"'LTC Rev-Exp Region 7'!M$40","v":{"v":0,"d":"$0.00"}},{"$f":"'LTC Rev-Exp Region 7'!N$40","v":{"v":0,"d":"$0.00"}},{"$f":"'LTC Rev-Exp Region 7'!O$40","v":{"v":0,"d":"$0.00"}},{"v":0,"d":"$0.00"}]
["LTC",null,null,{"$f":"Jurat!I$1","v":0},{"$f":"Jurat!D$33","v":"00:00:00"},"Q3","2017-09-30","Region 7","Operating Expense","Medical Expense","Expanded Benefits","3.3","Ending IBNP for Expanded Benefits",{"$f":"'LTC Rev-Exp Region 7'!L$41","v":{"v":0,"d":"$0.00"}},{"$f":"'LTC Rev-Exp Region 7'!M$41","v":{"v":0,"d":"$0.00"}},{"$f":"'LTC Rev-Exp Region 7'!N$41","v":{"v":0,"d":"$0.00"}},{"$f":"'LTC Rev-Exp Region 7'!O$41","v":{"v":0,"d":"$0.00"}},{"v":0,"d":"$0.00"}]
["LTC",null,null,{"$f":"Jurat!I$1","v":0},{"$f":"Jurat!D$33","v":"00:00:00"},"Q3","2017-09-30","Region 7","Operating Expense","Medical Expense","Expanded Benefits","3.4","Expanded Benefits Settlements",{"$f":"'LTC Rev-Exp Region 7'!L$42","v":{"v":0,"d":"$0.00"}},{"$f":"'LTC Rev-Exp Region 7'!M$42","v":{"v":0,"d":"$0.00"}},{"$f":"'LTC Rev-Exp Region 7'!N$42","v":{"v":0,"d":"$0.00"}},{"$f":"'LTC Rev-Exp Region 7'!O$42","v":{"v":0,"d":"$0.00"}},{"v":0,"d":"$0.00"}]
["LTC",null,null,{"$f":"Jurat!I$1","v":0},{"$f":"Jurat!D$33","v":"00:00:00"},"Q3","2017-09-30","Region 7","Operating Expense","Medical Expense","Other Medical","4.5","TPL & Fraud/Abuse Recoveries",{"$f":"'LTC Rev-Exp Region 7'!L$48","v":{"v":0,"d":"$0.00"}},{"$f":"'LTC Rev-Exp Region 7'!M$48","v":{"v":0,"d":"$0.00"}},{"$f":"'LTC Rev-Exp Region 7'!N$48","v":{"v":0,"d":"$0.00"}},{"$f":"'LTC Rev-Exp Region 7'!O$48","v":{"v":0,"d":"$0.00"}},{"v":0,"d":"$0.00"}]
["LTC",null,null,{"$f":"Jurat!I$1","v":0},{"$f":"Jurat!D$33","v":"00:00:00"},"Q3","2017-09-30","Region 7","Operating Expense","Medical Expense","Other Medical","4.6.1","Premium Deficiency Reserve",{"$f":"'LTC Rev-Exp Region 7'!L$49","v":{"v":0,"d":"$0.00"}},{"$f":"'LTC Rev-Exp Region 7'!M$49","v":{"v":0,"d":"$0.00"}},{"$f":"'LTC Rev-Exp Region 7'!N$49","v":{"v":0,"d":"$0.00"}},{"$f":"'LTC Rev-Exp Region 7'!O$49","v":{"v":0,"d":"$0.00"}},{"v":0,"d":"$0.00"}]
["LTC",null,null,{"$f":"Jurat!I$1","v":0},{"$f":"Jurat!D$33","v":"00:00:00"},"Q3","2017-09-30","Region 7","Operating Expense","Medical Expense","Other Medical","4.8","Reinsurance Premiums",{"$f":"'LTC Rev-Exp Region 7'!L$51","v":{"v":0,"d":"$0.00"}},{"$f":"'LTC Rev-Exp Region 7'!M$51","v":{"v":0,"d":"$0.00"}},{"$f":"'LTC Rev-Exp Region 7'!N$51","v":{"v":0,"d":"$0.00"}},{"$f":"'LTC Rev-Exp Region 7'!O$51","v":{"v":0,"d":"$0.00"}},{"v":0,"d":"$0.00"}]
["LTC",null,null,{"$f":"Jurat!I$1","v":0},{"$f":"Jurat!D$33","v":"00:00:00"},"Q3","2017-09-30","Region 7","Operating Expense","Medical Expense","Other Medical","4.9","Reinsurance Recoveries",{"$f":"'LTC Rev-Exp Region 7'!L$52","v":{"v":0,"d":"$0.00"}},{"$f":"'LTC Rev-Exp Region 7'!M$52","v":{"v":0,"d":"$0.00"}},{"$f":"'LTC Rev-Exp Region 7'!N$52","v":{"v":0,"d":"$0.00"}},{"$f":"'LTC Rev-Exp Region 7'!O$52","v":{"v":0,"d":"$0.00"}},{"v":0,"d":"$0.00"}]
["LTC",null,null,{"$f":"Jurat!I$1","v":0},{"$f":"Jurat!D$33","v":"00:00:00"},"Q3","2017-09-30","Region 7","Operating Expense","Administrative Expense","Administrative","5.1","Salaries & Benefits",{"$f":"'LTC Rev-Exp Region 7'!L$57","v":{"v":0,"d":"$0.00"}},{"$f":"'LTC Rev-Exp Region 7'!M$57","v":{"v":0,"d":"$0.00"}},{"$f":"'LTC Rev-Exp Region 7'!N$57","v":{"v":0,"d":"$0.00"}},{"$f":"'LTC Rev-Exp Region 7'!O$57","v":{"v":0,"d":"$0.00"}},{"v":0,"d":"$0.00"}]
["LTC",null,null,{"$f":"Jurat!I$1","v":0},{"$f":"Jurat!D$33","v":"00:00:00"},"Q3","2017-09-30","Region 7","Operating Expense","Administrative Expense","Administrative","5.2","Administrative Services",{"$f":"'LTC Rev-Exp Region 7'!L$58","v":{"v":0,"d":"$0.00"}},{"$f":"'LTC Rev-Exp Region 7'!M$58","v":{"v":0,"d":"$0.00"}},{"$f":"'LTC Rev-Exp Region 7'!N$58","v":{"v":0,"d":"$0.00"}},{"$f":"'LTC Rev-Exp Region 7'!O$58","v":{"v":0,"d":"$0.00"}},{"v":0,"d":"$0.00"}]
["LTC",null,null,{"$f":"Jurat!I$1","v":0},{"$f":"Jurat!D$33","v":"00:00:00"},"Q3","2017-09-30","Region 7","Operating Expense","Administrative Expense","Administrative","5.3","Information Systems",{"$f":"'LTC Rev-Exp Region 7'!L$59","v":{"v":0,"d":"$0.00"}},{"$f":"'LTC Rev-Exp Region 7'!M$59","v":{"v":0,"d":"$0.00"}},{"$f":"'LTC Rev-Exp Region 7'!N$59","v":{"v":0,"d":"$0.00"}},{"$f":"'LTC Rev-Exp Region 7'!O$59","v":{"v":0,"d":"$0.00"}},{"v":0,"d":"$0.00"}]
["LTC",null,null,{"$f":"Jurat!I$1","v":0},{"$f":"Jurat!D$33","v":"00:00:00"},"Q3","2017-09-30","Region 7","Operating Expense","Administrative Expense","Administrative","5.4","Marketing Expenses",{"$f":"'LTC Rev-Exp Region 7'!L$60","v":{"v":0,"d":"$0.00"}},{"$f":"'LTC Rev-Exp Region 7'!M$60","v":{"v":0,"d":"$0.00"}},{"$f":"'LTC Rev-Exp Region 7'!N$60","v":{"v":0,"d":"$0.00"}},{"$f":"'LTC Rev-Exp Region 7'!O$60","v":{"v":0,"d":"$0.00"}},{"v":0,"d":"$0.00"}]
["LTC",null,null,{"$f":"Jurat!I$1","v":0},{"$f":"Jurat!D$33","v":"00:00:00"},"Q3","2017-09-30","Region 7","Operating Expense","Administrative Expense","Administrative","5.5","General  Administration",{"$f":"'LTC Rev-Exp Region 7'!L$61","v":{"v":0,"d":"$0.00"}},{"$f":"'LTC Rev-Exp Region 7'!M$61","v":{"v":0,"d":"$0.00"}},{"$f":"'LTC Rev-Exp Region 7'!N$61","v":{"v":0,"d":"$0.00"}},{"$f":"'LTC Rev-Exp Region 7'!O$61","v":{"v":0,"d":"$0.00"}},{"v":0,"d":"$0.00"}]
["LTC",null,null,{"$f":"Jurat!I$1","v":0},{"$f":"Jurat!D$33","v":"00:00:00"},"Q3","2017-09-30","Region 7","Operating Expense","Administrative Expense","Administrative","5.6","Compliance/Regulatory",{"$f":"'LTC Rev-Exp Region 7'!L$62","v":{"v":0,"d":"$0.00"}},{"$f":"'LTC Rev-Exp Region 7'!M$62","v":{"v":0,"d":"$0.00"}},{"$f":"'LTC Rev-Exp Region 7'!N$62","v":{"v":0,"d":"$0.00"}},{"$f":"'LTC Rev-Exp Region 7'!O$62","v":{"v":0,"d":"$0.00"}},{"v":0,"d":"$0.00"}]
["LTC",null,null,{"$f":"Jurat!I$1","v":0},{"$f":"Jurat!D$33","v":"00:00:00"},"Q3","2017-09-30","Region 7","Operating Expense","Taxes & Fees","Taxes & Fees","6.1","State Premium Tax",{"$f":"'LTC Rev-Exp Region 7'!L$64","v":{"v":0,"d":"$0.00"}},{"v":0,"d":"$0.00"},{"v":0,"d":"$0.00"},{"v":0,"d":"$0.00"},{"v":0,"d":"$0.00"}]
["LTC",null,null,{"$f":"Jurat!I$1","v":0},{"$f":"Jurat!D$33","v":"00:00:00"},"Q3","2017-09-30","Region 7","Operating Expense","Taxes & Fees","Taxes & Fees","6.2","Department of Insurance Assessments",{"$f":"'LTC Rev-Exp Region 7'!L$65","v":{"v":0,"d":"$0.00"}},{"v":0,"d":"$0.00"},{"v":0,"d":"$0.00"},{"v":0,"d":"$0.00"},{"v":0,"d":"$0.00"}]
["LTC",null,null,{"$f":"Jurat!I$1","v":0},{"$f":"Jurat!D$33","v":"00:00:00"},"Q3","2017-09-30","Region 7","Non-Operating Expense","Income Tax Expense","Income Tax Expense","9.0","Income Tax Expense",{"$f":"'LTC Rev-Exp Region 7'!L$72","v":{"v":0,"d":"$0.00"}},{"v":0,"d":"$0.00"},{"v":0,"d":"$0.00"},{"v":0,"d":"$0.00"},{"v":0,"d":"$0.00"}]
["LTC",null,null,{"$f":"Jurat!I$1","v":0},{"$f":"Jurat!D$33","v":"00:00:00"},"Q4","2017-12-31","Region 7","Member Months","Member Months","Member Months",null,"Member Months",{"$f":"'LTC Rev-Exp Region 7'!P$9","v":{"v":0,"d":"$0.00"}},{"$f":"'LTC Rev-Exp Region 7'!Q$9","v":{"v":0,"d":"$0.00"}},{"$f":"'LTC Rev-Exp Region 7'!R$9","v":{"v":0,"d":"$0.00"}},{"$f":"'LTC Rev-Exp Region 7'!S$9","v":{"v":0,"d":"$0.00"}},{"v":0,"d":"$0.00"}]
["LTC",null,null,{"$f":"Jurat!I$1","v":0},{"$f":"Jurat!D$33","v":"00:00:00"},"Q4","2017-12-31","Region 7","Operating Revenue","Capitation","Capitation",1.1,"Capitation",{"$f":"'LTC Rev-Exp Region 7'!P$11","v":{"v":0,"d":"$0.00"}},{"$f":"'LTC Rev-Exp Region 7'!Q$11","v":{"v":0,"d":"$0.00"}},{"$f":"'LTC Rev-Exp Region 7'!R$11","v":{"v":0,"d":"$0.00"}},{"$f":"'LTC Rev-Exp Region 7'!S$11","v":{"v":0,"d":"$0.00"}},{"v":0,"d":"$0.00"}]
["LTC",null,null,{"$f":"Jurat!I$1","v":0},{"$f":"Jurat!D$33","v":"00:00:00"},"Q4","2017-12-31","Region 7","Operating Revenue","Capitation","NH Rate Reconciliation",1.2,"NH Rate Reconciliation",{"$f":"'LTC Rev-Exp Region 7'!P$12","v":{"v":0,"d":"$0.00"}},{"$f":"'LTC Rev-Exp Region 7'!Q$12","v":{"v":0,"d":"$0.00"}},{"$f":"'LTC Rev-Exp Region 7'!R$12","v":{"v":0,"d":"$0.00"}},{"$f":"'LTC Rev-Exp Region 7'!S$12","v":{"v":0,"d":"$0.00"}},{"v":0,"d":"$0.00"}]
["LTC",null,null,{"$f":"Jurat!I$1","v":0},{"$f":"Jurat!D$33","v":"00:00:00"},"Q4","2017-12-31","Region 7","Operating Revenue","Other Revenue","Other Revenue",1.3,"Other Revenue",{"$f":"'LTC Rev-Exp Region 7'!P$13","v":{"v":0,"d":"$0.00"}},{"$f":"'LTC Rev-Exp Region 7'!Q$13","v":{"v":0,"d":"$0.00"}},{"$f":"'LTC Rev-Exp Region 7'!R$13","v":{"v":0,"d":"$0.00"}},{"$f":"'LTC Rev-Exp Region 7'!S$13","v":{"v":0,"d":"$0.00"}},{"v":0,"d":"$0.00"}]
["LTC",null,null,{"$f":"Jurat!I$1","v":0},{"$f":"Jurat!D$33","v":"00:00:00"},"Q4","2017-12-31","Region 7","Operating Expense","Medical Expense","NF & Hospice","2.1","Nursing Facility Days (Medicaid)",{"$f":"'LTC Rev-Exp Region 7'!P$17","v":{"v":0,"d":"$0.00"}},{"$f":"'LTC Rev-Exp Region 7'!Q$17","v":{"v":0,"d":"$0.00"}},{"$f":"'LTC Rev-Exp Region 7'!R$17","v":{"v":0,"d":"$0.00"}},{"$f":"'LTC Rev-Exp Region 7'!S$17","v":{"v":0,"d":"$0.00"}},{"v":0,"d":"$0.00"}]
["LTC",null,null,{"$f":"Jurat!I$1","v":0},{"$f":"Jurat!D$33","v":"00:00:00"},"Q4","2017-12-31","Region 7","Operating Expense","Medical Expense","NF & Hospice","2.2","Nursing Facility Days (Crossover)",{"$f":"'LTC Rev-Exp Region 7'!P$18","v":{"v":0,"d":"$0.00"}},{"$f":"'LTC Rev-Exp Region 7'!Q$18","v":{"v":0,"d":"$0.00"}},{"$f":"'LTC Rev-Exp Region 7'!R$18","v":{"v":0,"d":"$0.00"}},{"$f":"'LTC Rev-Exp Region 7'!S$18","v":{"v":0,"d":"$0.00"}},{"v":0,"d":"$0.00"}]
["LTC",null,null,{"$f":"Jurat!I$1","v":0},{"$f":"Jurat!D$33","v":"00:00:00"},"Q4","2017-12-31","Region 7","Operating Expense","Medical Expense","NF & Hospice","2.3","Nursing Facility FFS (Medicaid)",{"$f":"'LTC Rev-Exp Region 7'!P$19","v":{"v":0,"d":"$0.00"}},{"$f":"'LTC Rev-Exp Region 7'!Q$19","v":{"v":0,"d":"$0.00"}},{"$f":"'LTC Rev-Exp Region 7'!R$19","v":{"v":0,"d":"$0.00"}},{"$f":"'LTC Rev-Exp Region 7'!S$19","v":{"v":0,"d":"$0.00"}},{"v":0,"d":"$0.00"}]
["LTC",null,null,{"$f":"Jurat!I$1","v":0},{"$f":"Jurat!D$33","v":"00:00:00"},"Q4","2017-12-31","Region 7","Operating Expense","Medical Expense","NF & Hospice","2.4","Nursing Facility FFS (Crossover)",{"$f":"'LTC Rev-Exp Region 7'!P$20","v":{"v":0,"d":"$0.00"}},{"$f":"'LTC Rev-Exp Region 7'!Q$20","v":{"v":0,"d":"$0.00"}},{"$f":"'LTC Rev-Exp Region 7'!R$20","v":{"v":0,"d":"$0.00"}},{"$f":"'LTC Rev-Exp Region 7'!S$20","v":{"v":0,"d":"$0.00"}},{"v":0,"d":"$0.00"}]
["LTC",null,null,{"$f":"Jurat!I$1","v":0},{"$f":"Jurat!D$33","v":"00:00:00"},"Q4","2017-12-31","Region 7","Operating Expense","Medical Expense","NF & Hospice","2.5","Hospice Days",{"$f":"'LTC Rev-Exp Region 7'!P$21","v":{"v":0,"d":"$0.00"}},{"$f":"'LTC Rev-Exp Region 7'!Q$21","v":{"v":0,"d":"$0.00"}},{"$f":"'LTC Rev-Exp Region 7'!R$21","v":{"v":0,"d":"$0.00"}},{"$f":"'LTC Rev-Exp Region 7'!S$21","v":{"v":0,"d":"$0.00"}},{"v":0,"d":"$0.00"}]
["LTC",null,null,{"$f":"Jurat!I$1","v":0},{"$f":"Jurat!D$33","v":"00:00:00"},"Q4","2017-12-31","Region 7","Operating Expense","Medical Expense","NF & Hospice","2.6","Hospice FFS",{"$f":"'LTC Rev-Exp Region 7'!P$22","v":{"v":0,"d":"$0.00"}},{"$f":"'LTC Rev-Exp Region 7'!Q$22","v":{"v":0,"d":"$0.00"}},{"$f":"'LTC Rev-Exp Region 7'!R$22","v":{"v":0,"d":"$0.00"}},{"$f":"'LTC Rev-Exp Region 7'!S$22","v":{"v":0,"d":"$0.00"}},{"v":0,"d":"$0.00"}]
["LTC",null,null,{"$f":"Jurat!I$1","v":0},{"$f":"Jurat!D$33","v":"00:00:00"},"Q4","2017-12-31","Region 7","Operating Expense","Medical Expense","NF & Hospice","2.7","Ending IBNP for NF & Hospice",{"$f":"'LTC Rev-Exp Region 7'!P$23","v":{"v":0,"d":"$0.00"}},{"$f":"'LTC Rev-Exp Region 7'!Q$23","v":{"v":0,"d":"$0.00"}},{"$f":"'LTC Rev-Exp Region 7'!R$23","v":{"v":0,"d":"$0.00"}},{"$f":"'LTC Rev-Exp Region 7'!S$23","v":{"v":0,"d":"$0.00"}},{"v":0,"d":"$0.00"}]
["LTC",null,null,{"$f":"Jurat!I$1","v":0},{"$f":"Jurat!D$33","v":"00:00:00"},"Q4","2017-12-31","Region 7","Operating Expense","Medical Expense","NF & Hospice","2.8","NF & Hospice Subcapitated",{"$f":"'LTC Rev-Exp Region 7'!P$24","v":{"v":0,"d":"$0.00"}},{"$f":"'LTC Rev-Exp Region 7'!Q$24","v":{"v":0,"d":"$0.00"}},{"$f":"'LTC Rev-Exp Region 7'!R$24","v":{"v":0,"d":"$0.00"}},{"$f":"'LTC Rev-Exp Region 7'!S$24","v":{"v":0,"d":"$0.00"}},{"v":0,"d":"$0.00"}]
["LTC",null,null,{"$f":"Jurat!I$1","v":0},{"$f":"Jurat!D$33","v":"00:00:00"},"Q4","2017-12-31","Region 7","Operating Expense","Medical Expense","NF & Hospice","2.9","NF & Hospice Settlements",{"$f":"'LTC Rev-Exp Region 7'!P$25","v":{"v":0,"d":"$0.00"}},{"$f":"'LTC Rev-Exp Region 7'!Q$25","v":{"v":0,"d":"$0.00"}},{"$f":"'LTC Rev-Exp Region 7'!R$25","v":{"v":0,"d":"$0.00"}},{"$f":"'LTC Rev-Exp Region 7'!S$25","v":{"v":0,"d":"$0.00"}},{"v":0,"d":"$0.00"}]
["LTC",null,null,{"$f":"Jurat!I$1","v":0},{"$f":"Jurat!D$33","v":"00:00:00"},"Q4","2017-12-31","Region 7","Operating Expense","Medical Expense","LTC Services","2.11","Assisted Living FFS",{"$f":"'LTC Rev-Exp Region 7'!P$27","v":{"v":0,"d":"$0.00"}},{"$f":"'LTC Rev-Exp Region 7'!Q$27","v":{"v":0,"d":"$0.00"}},{"$f":"'LTC Rev-Exp Region 7'!R$27","v":{"v":0,"d":"$0.00"}},{"$f":"'LTC Rev-Exp Region 7'!S$27","v":{"v":0,"d":"$0.00"}},{"v":0,"d":"$0.00"}]
["LTC",null,null,{"$f":"Jurat!I$1","v":0},{"$f":"Jurat!D$33","v":"00:00:00"},"Q4","2017-12-31","Region 7","Operating Expense","Medical Expense","LTC Services","2.12","Home Health FFS",{"$f":"'LTC Rev-Exp Region 7'!P$28","v":{"v":0,"d":"$0.00"}},{"$f":"'LTC Rev-Exp Region 7'!Q$28","v":{"v":0,"d":"$0.00"}},{"$f":"'LTC Rev-Exp Region 7'!R$28","v":{"v":0,"d":"$0.00"}},{"$f":"'LTC Rev-Exp Region 7'!S$28","v":{"v":0,"d":"$0.00"}},{"v":0,"d":"$0.00"}]
["LTC",null,null,{"$f":"Jurat!I$1","v":0},{"$f":"Jurat!D$33","v":"00:00:00"},"Q4","2017-12-31","Region 7","Operating Expense","Medical Expense","LTC Services","2.13","Medical Equipment/Supplies FFS",{"$f":"'LTC Rev-Exp Region 7'!P$29","v":{"v":0,"d":"$0.00"}},{"$f":"'LTC Rev-Exp Region 7'!Q$29","v":{"v":0,"d":"$0.00"}},{"$f":"'LTC Rev-Exp Region 7'!R$29","v":{"v":0,"d":"$0.00"}},{"$f":"'LTC Rev-Exp Region 7'!S$29","v":{"v":0,"d":"$0.00"}},{"v":0,"d":"$0.00"}]
["LTC",null,null,{"$f":"Jurat!I$1","v":0},{"$f":"Jurat!D$33","v":"00:00:00"},"Q4","2017-12-31","Region 7","Operating Expense","Medical Expense","LTC Services","2.14","Therapy FFS",{"$f":"'LTC Rev-Exp Region 7'!P$30","v":{"v":0,"d":"$0.00"}},{"$f":"'LTC Rev-Exp Region 7'!Q$30","v":{"v":0,"d":"$0.00"}},{"$f":"'LTC Rev-Exp Region 7'!R$30","v":{"v":0,"d":"$0.00"}},{"$f":"'LTC Rev-Exp Region 7'!S$30","v":{"v":0,"d":"$0.00"}},{"v":0,"d":"$0.00"}]
["LTC",null,null,{"$f":"Jurat!I$1","v":0},{"$f":"Jurat!D$33","v":"00:00:00"},"Q4","2017-12-31","Region 7","Operating Expense","Medical Expense","LTC Services","2.15","Transportation FFS",{"$f":"'LTC Rev-Exp Region 7'!P$31","v":{"v":0,"d":"$0.00"}},{"$f":"'LTC Rev-Exp Region 7'!Q$31","v":{"v":0,"d":"$0.00"}},{"$f":"'LTC Rev-Exp Region 7'!R$31","v":{"v":0,"d":"$0.00"}},{"$f":"'LTC Rev-Exp Region 7'!S$31","v":{"v":0,"d":"$0.00"}},{"v":0,"d":"$0.00"}]
["LTC",null,null,{"$f":"Jurat!I$1","v":0},{"$f":"Jurat!D$33","v":"00:00:00"},"Q4","2017-12-31","Region 7","Operating Expense","Medical Expense","LTC Services","2.16","Case Management FFS (Plan Provided)",{"$f":"'LTC Rev-Exp Region 7'!P$32","v":{"v":0,"d":"$0.00"}},{"$f":"'LTC Rev-Exp Region 7'!Q$32","v":{"v":0,"d":"$0.00"}},{"$f":"'LTC Rev-Exp Region 7'!R$32","v":{"v":0,"d":"$0.00"}},{"$f":"'LTC Rev-Exp Region 7'!S$32","v":{"v":0,"d":"$0.00"}},{"v":0,"d":"$0.00"}]
["LTC",null,null,{"$f":"Jurat!I$1","v":0},{"$f":"Jurat!D$33","v":"00:00:00"},"Q4","2017-12-31","Region 7","Operating Expense","Medical Expense","LTC Services","2.17","Case Management FF (Non-Plan Provided)",{"$f":"'LTC Rev-Exp Region 7'!P$33","v":{"v":0,"d":"$0.00"}},{"$f":"'LTC Rev-Exp Region 7'!Q$33","v":{"v":0,"d":"$0.00"}},{"$f":"'LTC Rev-Exp Region 7'!R$33","v":{"v":0,"d":"$0.00"}},{"$f":"'LTC Rev-Exp Region 7'!S$33","v":{"v":0,"d":"$0.00"}},{"v":0,"d":"$0.00"}]
["LTC",null,null,{"$f":"Jurat!I$1","v":0},{"$f":"Jurat!D$33","v":"00:00:00"},"Q4","2017-12-31","Region 7","Operating Expense","Medical Expense","LTC Services","2.18","HCBS FFS",{"$f":"'LTC Rev-Exp Region 7'!P$34","v":{"v":0,"d":"$0.00"}},{"$f":"'LTC Rev-Exp Region 7'!Q$34","v":{"v":0,"d":"$0.00"}},{"$f":"'LTC Rev-Exp Region 7'!R$34","v":{"v":0,"d":"$0.00"}},{"$f":"'LTC Rev-Exp Region 7'!S$34","v":{"v":0,"d":"$0.00"}},{"v":0,"d":"$0.00"}]
["LTC",null,null,{"$f":"Jurat!I$1","v":0},{"$f":"Jurat!D$33","v":"00:00:00"},"Q4","2017-12-31","Region 7","Operating Expense","Medical Expense","LTC Services","2.19","Subcapitated LTC Services",{"$f":"'LTC Rev-Exp Region 7'!P$35","v":{"v":0,"d":"$0.00"}},{"$f":"'LTC Rev-Exp Region 7'!Q$35","v":{"v":0,"d":"$0.00"}},{"$f":"'LTC Rev-Exp Region 7'!R$35","v":{"v":0,"d":"$0.00"}},{"$f":"'LTC Rev-Exp Region 7'!S$35","v":{"v":0,"d":"$0.00"}},{"v":0,"d":"$0.00"}]
["LTC",null,null,{"$f":"Jurat!I$1","v":0},{"$f":"Jurat!D$33","v":"00:00:00"},"Q4","2017-12-31","Region 7","Operating Expense","Medical Expense","LTC Services","2.20","Ending IBNP for Long Term Care Services",{"$f":"'LTC Rev-Exp Region 7'!P$36","v":{"v":0,"d":"$0.00"}},{"$f":"'LTC Rev-Exp Region 7'!Q$36","v":{"v":0,"d":"$0.00"}},{"$f":"'LTC Rev-Exp Region 7'!R$36","v":{"v":0,"d":"$0.00"}},{"$f":"'LTC Rev-Exp Region 7'!S$36","v":{"v":0,"d":"$0.00"}},{"v":0,"d":"$0.00"}]
["LTC",null,null,{"$f":"Jurat!I$1","v":0},{"$f":"Jurat!D$33","v":"00:00:00"},"Q4","2017-12-31","Region 7","Operating Expense","Medical Expense","LTC Services","2.21","LTC Services Settlements",{"$f":"'LTC Rev-Exp Region 7'!P$37","v":{"v":0,"d":"$0.00"}},{"$f":"'LTC Rev-Exp Region 7'!Q$37","v":{"v":0,"d":"$0.00"}},{"$f":"'LTC Rev-Exp Region 7'!R$37","v":{"v":0,"d":"$0.00"}},{"$f":"'LTC Rev-Exp Region 7'!S$37","v":{"v":0,"d":"$0.00"}},{"v":0,"d":"$0.00"}]
["LTC",null,null,{"$f":"Jurat!I$1","v":0},{"$f":"Jurat!D$33","v":"00:00:00"},"Q4","2017-12-31","Region 7","Operating Expense","Medical Expense","Expanded Benefits","3.1","Expanded Benefits FFS",{"$f":"'LTC Rev-Exp Region 7'!P$39","v":{"v":0,"d":"$0.00"}},{"$f":"'LTC Rev-Exp Region 7'!Q$39","v":{"v":0,"d":"$0.00"}},{"$f":"'LTC Rev-Exp Region 7'!R$39","v":{"v":0,"d":"$0.00"}},{"$f":"'LTC Rev-Exp Region 7'!S$39","v":{"v":0,"d":"$0.00"}},{"v":0,"d":"$0.00"}]
["LTC",null,null,{"$f":"Jurat!I$1","v":0},{"$f":"Jurat!D$33","v":"00:00:00"},"Q4","2017-12-31","Region 7","Operating Expense","Medical Expense","Expanded Benefits","3.2","Expanded Benefits Subcapitation",{"$f":"'LTC Rev-Exp Region 7'!P$40","v":{"v":0,"d":"$0.00"}},{"$f":"'LTC Rev-Exp Region 7'!Q$40","v":{"v":0,"d":"$0.00"}},{"$f":"'LTC Rev-Exp Region 7'!R$40","v":{"v":0,"d":"$0.00"}},{"$f":"'LTC Rev-Exp Region 7'!S$40","v":{"v":0,"d":"$0.00"}},{"v":0,"d":"$0.00"}]
["LTC",null,null,{"$f":"Jurat!I$1","v":0},{"$f":"Jurat!D$33","v":"00:00:00"},"Q4","2017-12-31","Region 7","Operating Expense","Medical Expense","Expanded Benefits","3.3","Ending IBNP for Expanded Benefits",{"$f":"'LTC Rev-Exp Region 7'!P$41","v":{"v":0,"d":"$0.00"}},{"$f":"'LTC Rev-Exp Region 7'!Q$41","v":{"v":0,"d":"$0.00"}},{"$f":"'LTC Rev-Exp Region 7'!R$41","v":{"v":0,"d":"$0.00"}},{"$f":"'LTC Rev-Exp Region 7'!S$41","v":{"v":0,"d":"$0.00"}},{"v":0,"d":"$0.00"}]
["LTC",null,null,{"$f":"Jurat!I$1","v":0},{"$f":"Jurat!D$33","v":"00:00:00"},"Q4","2017-12-31","Region 7","Operating Expense","Medical Expense","Expanded Benefits","3.4","Expanded Benefits Settlements",{"$f":"'LTC Rev-Exp Region 7'!P$42","v":{"v":0,"d":"$0.00"}},{"$f":"'LTC Rev-Exp Region 7'!Q$42","v":{"v":0,"d":"$0.00"}},{"$f":"'LTC Rev-Exp Region 7'!R$42","v":{"v":0,"d":"$0.00"}},{"$f":"'LTC Rev-Exp Region 7'!S$42","v":{"v":0,"d":"$0.00"}},{"v":0,"d":"$0.00"}]
["LTC",null,null,{"$f":"Jurat!I$1","v":0},{"$f":"Jurat!D$33","v":"00:00:00"},"Q4","2017-12-31","Region 7","Operating Expense","Medical Expense","Other Medical","4.5","TPL & Fraud/Abuse Recoveries",{"$f":"'LTC Rev-Exp Region 7'!P$48","v":{"v":0,"d":"$0.00"}},{"$f":"'LTC Rev-Exp Region 7'!Q$48","v":{"v":0,"d":"$0.00"}},{"$f":"'LTC Rev-Exp Region 7'!R$48","v":{"v":0,"d":"$0.00"}},{"$f":"'LTC Rev-Exp Region 7'!S$48","v":{"v":0,"d":"$0.00"}},{"v":0,"d":"$0.00"}]
["LTC",null,null,{"$f":"Jurat!I$1","v":0},{"$f":"Jurat!D$33","v":"00:00:00"},"Q4","2017-12-31","Region 7","Operating Expense","Medical Expense","Other Medical","4.6.1","Premium Deficiency Reserve",{"$f":"'LTC Rev-Exp Region 7'!P$49","v":{"v":0,"d":"$0.00"}},{"$f":"'LTC Rev-Exp Region 7'!Q$49","v":{"v":0,"d":"$0.00"}},{"$f":"'LTC Rev-Exp Region 7'!R$49","v":{"v":0,"d":"$0.00"}},{"$f":"'LTC Rev-Exp Region 7'!S$49","v":{"v":0,"d":"$0.00"}},{"v":0,"d":"$0.00"}]
["LTC",null,null,{"$f":"Jurat!I$1","v":0},{"$f":"Jurat!D$33","v":"00:00:00"},"Q4","2017-12-31","Region 7","Operating Expense","Medical Expense","Other Medical","4.8","Reinsurance Premiums",{"$f":"'LTC Rev-Exp Region 7'!P$51","v":{"v":0,"d":"$0.00"}},{"$f":"'LTC Rev-Exp Region 7'!Q$51","v":{"v":0,"d":"$0.00"}},{"$f":"'LTC Rev-Exp Region 7'!R$51","v":{"v":0,"d":"$0.00"}},{"$f":"'LTC Rev-Exp Region 7'!S$51","v":{"v":0,"d":"$0.00"}},{"v":0,"d":"$0.00"}]
["LTC",null,null,{"$f":"Jurat!I$1","v":0},{"$f":"Jurat!D$33","v":"00:00:00"},"Q4","2017-12-31","Region 7","Operating Expense","Medical Expense","Other Medical","4.9","Reinsurance Recoveries",{"$f":"'LTC Rev-Exp Region 7'!P$52","v":{"v":0,"d":"$0.00"}},{"$f":"'LTC Rev-Exp Region 7'!Q$52","v":{"v":0,"d":"$0.00"}},{"$f":"'LTC Rev-Exp Region 7'!R$52","v":{"v":0,"d":"$0.00"}},{"$f":"'LTC Rev-Exp Region 7'!S$52","v":{"v":0,"d":"$0.00"}},{"v":0,"d":"$0.00"}]
["LTC",null,null,{"$f":"Jurat!I$1","v":0},{"$f":"Jurat!D$33","v":"00:00:00"},"Q4","2017-12-31","Region 7","Operating Expense","Administrative Expense","Administrative","5.1","Salaries & Benefits",{"$f":"'LTC Rev-Exp Region 7'!P$57","v":{"v":0,"d":"$0.00"}},{"$f":"'LTC Rev-Exp Region 7'!Q$57","v":{"v":0,"d":"$0.00"}},{"$f":"'LTC Rev-Exp Region 7'!R$57","v":{"v":0,"d":"$0.00"}},{"$f":"'LTC Rev-Exp Region 7'!S$57","v":{"v":0,"d":"$0.00"}},{"v":0,"d":"$0.00"}]
["LTC",null,null,{"$f":"Jurat!I$1","v":0},{"$f":"Jurat!D$33","v":"00:00:00"},"Q4","2017-12-31","Region 7","Operating Expense","Administrative Expense","Administrative","5.2","Administrative Services",{"$f":"'LTC Rev-Exp Region 7'!P$58","v":{"v":0,"d":"$0.00"}},{"$f":"'LTC Rev-Exp Region 7'!Q$58","v":{"v":0,"d":"$0.00"}},{"$f":"'LTC Rev-Exp Region 7'!R$58","v":{"v":0,"d":"$0.00"}},{"$f":"'LTC Rev-Exp Region 7'!S$58","v":{"v":0,"d":"$0.00"}},{"v":0,"d":"$0.00"}]
["LTC",null,null,{"$f":"Jurat!I$1","v":0},{"$f":"Jurat!D$33","v":"00:00:00"},"Q4","2017-12-31","Region 7","Operating Expense","Administrative Expense","Administrative","5.3","Information Systems",{"$f":"'LTC Rev-Exp Region 7'!P$59","v":{"v":0,"d":"$0.00"}},{"$f":"'LTC Rev-Exp Region 7'!Q$59","v":{"v":0,"d":"$0.00"}},{"$f":"'LTC Rev-Exp Region 7'!R$59","v":{"v":0,"d":"$0.00"}},{"$f":"'LTC Rev-Exp Region 7'!S$59","v":{"v":0,"d":"$0.00"}},{"v":0,"d":"$0.00"}]
["LTC",null,null,{"$f":"Jurat!I$1","v":0},{"$f":"Jurat!D$33","v":"00:00:00"},"Q4","2017-12-31","Region 7","Operating Expense","Administrative Expense","Administrative","5.4","Marketing Expenses",{"$f":"'LTC Rev-Exp Region 7'!P$60","v":{"v":0,"d":"$0.00"}},{"$f":"'LTC Rev-Exp Region 7'!Q$60","v":{"v":0,"d":"$0.00"}},{"$f":"'LTC Rev-Exp Region 7'!R$60","v":{"v":0,"d":"$0.00"}},{"$f":"'LTC Rev-Exp Region 7'!S$60","v":{"v":0,"d":"$0.00"}},{"v":0,"d":"$0.00"}]
["LTC",null,null,{"$f":"Jurat!I$1","v":0},{"$f":"Jurat!D$33","v":"00:00:00"},"Q4","2017-12-31","Region 7","Operating Expense","Administrative Expense","Administrative","5.5","General  Administration",{"$f":"'LTC Rev-Exp Region 7'!P$61","v":{"v":0,"d":"$0.00"}},{"$f":"'LTC Rev-Exp Region 7'!Q$61","v":{"v":0,"d":"$0.00"}},{"$f":"'LTC Rev-Exp Region 7'!R$61","v":{"v":0,"d":"$0.00"}},{"$f":"'LTC Rev-Exp Region 7'!S$61","v":{"v":0,"d":"$0.00"}},{"v":0,"d":"$0.00"}]
["LTC",null,null,{"$f":"Jurat!I$1","v":0},{"$f":"Jurat!D$33","v":"00:00:00"},"Q4","2017-12-31","Region 7","Operating Expense","Administrative Expense","Administrative","5.6","Compliance/Regulatory",{"$f":"'LTC Rev-Exp Region 7'!P$62","v":{"v":0,"d":"$0.00"}},{"$f":"'LTC Rev-Exp Region 7'!Q$62","v":{"v":0,"d":"$0.00"}},{"$f":"'LTC Rev-Exp Region 7'!R$62","v":{"v":0,"d":"$0.00"}},{"$f":"'LTC Rev-Exp Region 7'!S$62","v":{"v":0,"d":"$0.00"}},{"v":0,"d":"$0.00"}]
["LTC",null,null,{"$f":"Jurat!I$1","v":0},{"$f":"Jurat!D$33","v":"00:00:00"},"Q4","2017-12-31","Region 7","Operating Expense","Taxes & Fees","Taxes & Fees","6.1","State Premium Tax",{"$f":"'LTC Rev-Exp Region 7'!P$64","v":{"v":0,"d":"$0.00"}},{"v":0,"d":"$0.00"},{"v":0,"d":"$0.00"},{"v":0,"d":"$0.00"},{"v":0,"d":"$0.00"}]
["LTC",null,null,{"$f":"Jurat!I$1","v":0},{"$f":"Jurat!D$33","v":"00:00:00"},"Q4","2017-12-31","Region 7","Operating Expense","Taxes & Fees","Taxes & Fees","6.2","Department of Insurance Assessments",{"$f":"'LTC Rev-Exp Region 7'!P$65","v":{"v":0,"d":"$0.00"}},{"v":0,"d":"$0.00"},{"v":0,"d":"$0.00"},{"v":0,"d":"$0.00"},{"v":0,"d":"$0.00"}]
["LTC",null,null,{"$f":"Jurat!I$1","v":0},{"$f":"Jurat!D$33","v":"00:00:00"},"Q4","2017-12-31","Region 7","Non-Operating Expense","Income Tax Expense","Income Tax Expense","9.0","Income Tax Expense",{"$f":"'LTC Rev-Exp Region 7'!P$72","v":{"v":0,"d":"$0.00"}},{"v":0,"d":"$0.00"},{"v":0,"d":"$0.00"},{"v":0,"d":"$0.00"},{"v":0,"d":"$0.00"}]
["LTC",null,null,{"$f":"Jurat!I$1","v":0},{"$f":"Jurat!D$33","v":"00:00:00"},"Q1","2017-03-31","Region 8","Member Months","Member Months","Member Months",null,"Member Months",{"$f":"'LTC Rev-Exp Region 8'!D$9","v":{"v":0,"d":"$0.00"}},{"$f":"'LTC Rev-Exp Region 8'!E$9","v":{"v":0,"d":"$0.00"}},{"$f":"'LTC Rev-Exp Region 8'!F$9","v":{"v":0,"d":"$0.00"}},{"$f":"'LTC Rev-Exp Region 8'!G$9","v":{"v":0,"d":"$0.00"}},{"v":0,"d":"$0.00"}]
["LTC",null,null,{"$f":"Jurat!I$1","v":0},{"$f":"Jurat!D$33","v":"00:00:00"},"Q1","2017-03-31","Region 8","Operating Revenue","Capitation","Capitation",1.1,"Capitation",{"$f":"'LTC Rev-Exp Region 8'!D$11","v":{"v":0,"d":"$0.00"}},{"$f":"'LTC Rev-Exp Region 8'!E$11","v":{"v":0,"d":"$0.00"}},{"$f":"'LTC Rev-Exp Region 8'!F$11","v":{"v":0,"d":"$0.00"}},{"$f":"'LTC Rev-Exp Region 8'!G$11","v":{"v":0,"d":"$0.00"}},{"v":0,"d":"$0.00"}]
["LTC",null,null,{"$f":"Jurat!I$1","v":0},{"$f":"Jurat!D$33","v":"00:00:00"},"Q1","2017-03-31","Region 8","Operating Revenue","Capitation","NH Rate Reconciliation",1.2,"NH Rate Reconciliation",{"$f":"'LTC Rev-Exp Region 8'!D$12","v":{"v":0,"d":"$0.00"}},{"$f":"'LTC Rev-Exp Region 8'!E$12","v":{"v":0,"d":"$0.00"}},{"$f":"'LTC Rev-Exp Region 8'!F$12","v":{"v":0,"d":"$0.00"}},{"$f":"'LTC Rev-Exp Region 8'!G$12","v":{"v":0,"d":"$0.00"}},{"v":0,"d":"$0.00"}]
["LTC",null,null,{"$f":"Jurat!I$1","v":0},{"$f":"Jurat!D$33","v":"00:00:00"},"Q1","2017-03-31","Region 8","Operating Revenue","Other Revenue","Other Revenue",1.3,"Other Revenue",{"$f":"'LTC Rev-Exp Region 8'!D$13","v":{"v":0,"d":"$0.00"}},{"$f":"'LTC Rev-Exp Region 8'!E$13","v":{"v":0,"d":"$0.00"}},{"$f":"'LTC Rev-Exp Region 8'!F$13","v":{"v":0,"d":"$0.00"}},{"$f":"'LTC Rev-Exp Region 8'!G$13","v":{"v":0,"d":"$0.00"}},{"v":0,"d":"$0.00"}]
["LTC",null,null,{"$f":"Jurat!I$1","v":0},{"$f":"Jurat!D$33","v":"00:00:00"},"Q1","2017-03-31","Region 8","Operating Expense","Medical Expense","NF & Hospice","2.1","Nursing Facility Days (Medicaid)",{"$f":"'LTC Rev-Exp Region 8'!D$17","v":{"v":0,"d":"$0.00"}},{"$f":"'LTC Rev-Exp Region 8'!E$17","v":{"v":0,"d":"$0.00"}},{"$f":"'LTC Rev-Exp Region 8'!F$17","v":{"v":0,"d":"$0.00"}},{"$f":"'LTC Rev-Exp Region 8'!G$17","v":{"v":0,"d":"$0.00"}},{"v":0,"d":"$0.00"}]
["LTC",null,null,{"$f":"Jurat!I$1","v":0},{"$f":"Jurat!D$33","v":"00:00:00"},"Q1","2017-03-31","Region 8","Operating Expense","Medical Expense","NF & Hospice","2.2","Nursing Facility Days (Crossover)",{"$f":"'LTC Rev-Exp Region 8'!D$18","v":{"v":0,"d":"$0.00"}},{"$f":"'LTC Rev-Exp Region 8'!E$18","v":{"v":0,"d":"$0.00"}},{"$f":"'LTC Rev-Exp Region 8'!F$18","v":{"v":0,"d":"$0.00"}},{"$f":"'LTC Rev-Exp Region 8'!G$18","v":{"v":0,"d":"$0.00"}},{"v":0,"d":"$0.00"}]
["LTC",null,null,{"$f":"Jurat!I$1","v":0},{"$f":"Jurat!D$33","v":"00:00:00"},"Q1","2017-03-31","Region 8","Operating Expense","Medical Expense","NF & Hospice","2.3","Nursing Facility FFS (Medicaid)",{"$f":"'LTC Rev-Exp Region 8'!D$19","v":{"v":0,"d":"$0.00"}},{"$f":"'LTC Rev-Exp Region 8'!E$19","v":{"v":0,"d":"$0.00"}},{"$f":"'LTC Rev-Exp Region 8'!F$19","v":{"v":0,"d":"$0.00"}},{"$f":"'LTC Rev-Exp Region 8'!G$19","v":{"v":0,"d":"$0.00"}},{"v":0,"d":"$0.00"}]
["LTC",null,null,{"$f":"Jurat!I$1","v":0},{"$f":"Jurat!D$33","v":"00:00:00"},"Q1","2017-03-31","Region 8","Operating Expense","Medical Expense","NF & Hospice","2.4","Nursing Facility FFS (Crossover)",{"$f":"'LTC Rev-Exp Region 8'!D$20","v":{"v":0,"d":"$0.00"}},{"$f":"'LTC Rev-Exp Region 8'!E$20","v":{"v":0,"d":"$0.00"}},{"$f":"'LTC Rev-Exp Region 8'!F$20","v":{"v":0,"d":"$0.00"}},{"$f":"'LTC Rev-Exp Region 8'!G$20","v":{"v":0,"d":"$0.00"}},{"v":0,"d":"$0.00"}]
["LTC",null,null,{"$f":"Jurat!I$1","v":0},{"$f":"Jurat!D$33","v":"00:00:00"},"Q1","2017-03-31","Region 8","Operating Expense","Medical Expense","NF & Hospice","2.5","Hospice Days",{"$f":"'LTC Rev-Exp Region 8'!D$21","v":{"v":0,"d":"$0.00"}},{"$f":"'LTC Rev-Exp Region 8'!E$21","v":{"v":0,"d":"$0.00"}},{"$f":"'LTC Rev-Exp Region 8'!F$21","v":{"v":0,"d":"$0.00"}},{"$f":"'LTC Rev-Exp Region 8'!G$21","v":{"v":0,"d":"$0.00"}},{"v":0,"d":"$0.00"}]
["LTC",null,null,{"$f":"Jurat!I$1","v":0},{"$f":"Jurat!D$33","v":"00:00:00"},"Q1","2017-03-31","Region 8","Operating Expense","Medical Expense","NF & Hospice","2.6","Hospice FFS",{"$f":"'LTC Rev-Exp Region 8'!D$22","v":{"v":0,"d":"$0.00"}},{"$f":"'LTC Rev-Exp Region 8'!E$22","v":{"v":0,"d":"$0.00"}},{"$f":"'LTC Rev-Exp Region 8'!F$22","v":{"v":0,"d":"$0.00"}},{"$f":"'LTC Rev-Exp Region 8'!G$22","v":{"v":0,"d":"$0.00"}},{"v":0,"d":"$0.00"}]
["LTC",null,null,{"$f":"Jurat!I$1","v":0},{"$f":"Jurat!D$33","v":"00:00:00"},"Q1","2017-03-31","Region 8","Operating Expense","Medical Expense","NF & Hospice","2.7","Ending IBNP for NF & Hospice",{"$f":"'LTC Rev-Exp Region 8'!D$23","v":{"v":0,"d":"$0.00"}},{"$f":"'LTC Rev-Exp Region 8'!E$23","v":{"v":0,"d":"$0.00"}},{"$f":"'LTC Rev-Exp Region 8'!F$23","v":{"v":0,"d":"$0.00"}},{"$f":"'LTC Rev-Exp Region 8'!G$23","v":{"v":0,"d":"$0.00"}},{"v":0,"d":"$0.00"}]
["LTC",null,null,{"$f":"Jurat!I$1","v":0},{"$f":"Jurat!D$33","v":"00:00:00"},"Q1","2017-03-31","Region 8","Operating Expense","Medical Expense","NF & Hospice","2.8","NF & Hospice Subcapitated",{"$f":"'LTC Rev-Exp Region 8'!D$24","v":{"v":0,"d":"$0.00"}},{"$f":"'LTC Rev-Exp Region 8'!E$24","v":{"v":0,"d":"$0.00"}},{"$f":"'LTC Rev-Exp Region 8'!F$24","v":{"v":0,"d":"$0.00"}},{"$f":"'LTC Rev-Exp Region 8'!G$24","v":{"v":0,"d":"$0.00"}},{"v":0,"d":"$0.00"}]
["LTC",null,null,{"$f":"Jurat!I$1","v":0},{"$f":"Jurat!D$33","v":"00:00:00"},"Q1","2017-03-31","Region 8","Operating Expense","Medical Expense","NF & Hospice","2.9","NF & Hospice Settlements",{"$f":"'LTC Rev-Exp Region 8'!D$25","v":{"v":0,"d":"$0.00"}},{"$f":"'LTC Rev-Exp Region 8'!E$25","v":{"v":0,"d":"$0.00"}},{"$f":"'LTC Rev-Exp Region 8'!F$25","v":{"v":0,"d":"$0.00"}},{"$f":"'LTC Rev-Exp Region 8'!G$25","v":{"v":0,"d":"$0.00"}},{"v":0,"d":"$0.00"}]
["LTC",null,null,{"$f":"Jurat!I$1","v":0},{"$f":"Jurat!D$33","v":"00:00:00"},"Q1","2017-03-31","Region 8","Operating Expense","Medical Expense","LTC Services","2.11","Assisted Living FFS",{"$f":"'LTC Rev-Exp Region 8'!D$27","v":{"v":0,"d":"$0.00"}},{"$f":"'LTC Rev-Exp Region 8'!E$27","v":{"v":0,"d":"$0.00"}},{"$f":"'LTC Rev-Exp Region 8'!F$27","v":{"v":0,"d":"$0.00"}},{"$f":"'LTC Rev-Exp Region 8'!G$27","v":{"v":0,"d":"$0.00"}},{"v":0,"d":"$0.00"}]
["LTC",null,null,{"$f":"Jurat!I$1","v":0},{"$f":"Jurat!D$33","v":"00:00:00"},"Q1","2017-03-31","Region 8","Operating Expense","Medical Expense","LTC Services","2.12","Home Health FFS",{"$f":"'LTC Rev-Exp Region 8'!D$28","v":{"v":0,"d":"$0.00"}},{"$f":"'LTC Rev-Exp Region 8'!E$28","v":{"v":0,"d":"$0.00"}},{"$f":"'LTC Rev-Exp Region 8'!F$28","v":{"v":0,"d":"$0.00"}},{"$f":"'LTC Rev-Exp Region 8'!G$28","v":{"v":0,"d":"$0.00"}},{"v":0,"d":"$0.00"}]
["LTC",null,null,{"$f":"Jurat!I$1","v":0},{"$f":"Jurat!D$33","v":"00:00:00"},"Q1","2017-03-31","Region 8","Operating Expense","Medical Expense","LTC Services","2.13","Medical Equipment/Supplies FFS",{"$f":"'LTC Rev-Exp Region 8'!D$29","v":{"v":0,"d":"$0.00"}},{"$f":"'LTC Rev-Exp Region 8'!E$29","v":{"v":0,"d":"$0.00"}},{"$f":"'LTC Rev-Exp Region 8'!F$29","v":{"v":0,"d":"$0.00"}},{"$f":"'LTC Rev-Exp Region 8'!G$29","v":{"v":0,"d":"$0.00"}},{"v":0,"d":"$0.00"}]
["LTC",null,null,{"$f":"Jurat!I$1","v":0},{"$f":"Jurat!D$33","v":"00:00:00"},"Q1","2017-03-31","Region 8","Operating Expense","Medical Expense","LTC Services","2.14","Therapy FFS",{"$f":"'LTC Rev-Exp Region 8'!D$30","v":{"v":0,"d":"$0.00"}},{"$f":"'LTC Rev-Exp Region 8'!E$30","v":{"v":0,"d":"$0.00"}},{"$f":"'LTC Rev-Exp Region 8'!F$30","v":{"v":0,"d":"$0.00"}},{"$f":"'LTC Rev-Exp Region 8'!G$30","v":{"v":0,"d":"$0.00"}},{"v":0,"d":"$0.00"}]
["LTC",null,null,{"$f":"Jurat!I$1","v":0},{"$f":"Jurat!D$33","v":"00:00:00"},"Q1","2017-03-31","Region 8","Operating Expense","Medical Expense","LTC Services","2.15","Transportation FFS",{"$f":"'LTC Rev-Exp Region 8'!D$31","v":{"v":0,"d":"$0.00"}},{"$f":"'LTC Rev-Exp Region 8'!E$31","v":{"v":0,"d":"$0.00"}},{"$f":"'LTC Rev-Exp Region 8'!F$31","v":{"v":0,"d":"$0.00"}},{"$f":"'LTC Rev-Exp Region 8'!G$31","v":{"v":0,"d":"$0.00"}},{"v":0,"d":"$0.00"}]
["LTC",null,null,{"$f":"Jurat!I$1","v":0},{"$f":"Jurat!D$33","v":"00:00:00"},"Q1","2017-03-31","Region 8","Operating Expense","Medical Expense","LTC Services","2.16","Case Management FFS (Plan Provided)",{"$f":"'LTC Rev-Exp Region 8'!D$32","v":{"v":0,"d":"$0.00"}},{"$f":"'LTC Rev-Exp Region 8'!E$32","v":{"v":0,"d":"$0.00"}},{"$f":"'LTC Rev-Exp Region 8'!F$32","v":{"v":0,"d":"$0.00"}},{"$f":"'LTC Rev-Exp Region 8'!G$32","v":{"v":0,"d":"$0.00"}},{"v":0,"d":"$0.00"}]
["LTC",null,null,{"$f":"Jurat!I$1","v":0},{"$f":"Jurat!D$33","v":"00:00:00"},"Q1","2017-03-31","Region 8","Operating Expense","Medical Expense","LTC Services","2.17","Case Management FF (Non-Plan Provided)",{"$f":"'LTC Rev-Exp Region 8'!D$33","v":{"v":0,"d":"$0.00"}},{"$f":"'LTC Rev-Exp Region 8'!E$33","v":{"v":0,"d":"$0.00"}},{"$f":"'LTC Rev-Exp Region 8'!F$33","v":{"v":0,"d":"$0.00"}},{"$f":"'LTC Rev-Exp Region 8'!G$33","v":{"v":0,"d":"$0.00"}},{"v":0,"d":"$0.00"}]
["LTC",null,null,{"$f":"Jurat!I$1","v":0},{"$f":"Jurat!D$33","v":"00:00:00"},"Q1","2017-03-31","Region 8","Operating Expense","Medical Expense","LTC Services","2.18","HCBS FFS",{"$f":"'LTC Rev-Exp Region 8'!D$34","v":{"v":0,"d":"$0.00"}},{"$f":"'LTC Rev-Exp Region 8'!E$34","v":{"v":0,"d":"$0.00"}},{"$f":"'LTC Rev-Exp Region 8'!F$34","v":{"v":0,"d":"$0.00"}},{"$f":"'LTC Rev-Exp Region 8'!G$34","v":{"v":0,"d":"$0.00"}},{"v":0,"d":"$0.00"}]
["LTC",null,null,{"$f":"Jurat!I$1","v":0},{"$f":"Jurat!D$33","v":"00:00:00"},"Q1","2017-03-31","Region 8","Operating Expense","Medical Expense","LTC Services","2.19","Subcapitated LTC Services",{"$f":"'LTC Rev-Exp Region 8'!D$35","v":{"v":0,"d":"$0.00"}},{"$f":"'LTC Rev-Exp Region 8'!E$35","v":{"v":0,"d":"$0.00"}},{"$f":"'LTC Rev-Exp Region 8'!F$35","v":{"v":0,"d":"$0.00"}},{"$f":"'LTC Rev-Exp Region 8'!G$35","v":{"v":0,"d":"$0.00"}},{"v":0,"d":"$0.00"}]
["LTC",null,null,{"$f":"Jurat!I$1","v":0},{"$f":"Jurat!D$33","v":"00:00:00"},"Q1","2017-03-31","Region 8","Operating Expense","Medical Expense","LTC Services","2.20","Ending IBNP for Long Term Care Services",{"$f":"'LTC Rev-Exp Region 8'!D$36","v":{"v":0,"d":"$0.00"}},{"$f":"'LTC Rev-Exp Region 8'!E$36","v":{"v":0,"d":"$0.00"}},{"$f":"'LTC Rev-Exp Region 8'!F$36","v":{"v":0,"d":"$0.00"}},{"$f":"'LTC Rev-Exp Region 8'!G$36","v":{"v":0,"d":"$0.00"}},{"v":0,"d":"$0.00"}]
["LTC",null,null,{"$f":"Jurat!I$1","v":0},{"$f":"Jurat!D$33","v":"00:00:00"},"Q1","2017-03-31","Region 8","Operating Expense","Medical Expense","LTC Services","2.21","LTC Services Settlements",{"$f":"'LTC Rev-Exp Region 8'!D$37","v":{"v":0,"d":"$0.00"}},{"$f":"'LTC Rev-Exp Region 8'!E$37","v":{"v":0,"d":"$0.00"}},{"$f":"'LTC Rev-Exp Region 8'!F$37","v":{"v":0,"d":"$0.00"}},{"$f":"'LTC Rev-Exp Region 8'!G$37","v":{"v":0,"d":"$0.00"}},{"v":0,"d":"$0.00"}]
["LTC",null,null,{"$f":"Jurat!I$1","v":0},{"$f":"Jurat!D$33","v":"00:00:00"},"Q1","2017-03-31","Region 8","Operating Expense","Medical Expense","Expanded Benefits","3.1","Expanded Benefits FFS",{"$f":"'LTC Rev-Exp Region 8'!D$39","v":{"v":0,"d":"$0.00"}},{"$f":"'LTC Rev-Exp Region 8'!E$39","v":{"v":0,"d":"$0.00"}},{"$f":"'LTC Rev-Exp Region 8'!F$39","v":{"v":0,"d":"$0.00"}},{"$f":"'LTC Rev-Exp Region 8'!G$39","v":{"v":0,"d":"$0.00"}},{"v":0,"d":"$0.00"}]
["LTC",null,null,{"$f":"Jurat!I$1","v":0},{"$f":"Jurat!D$33","v":"00:00:00"},"Q1","2017-03-31","Region 8","Operating Expense","Medical Expense","Expanded Benefits","3.2","Expanded Benefits Subcapitation",{"$f":"'LTC Rev-Exp Region 8'!D$40","v":{"v":0,"d":"$0.00"}},{"$f":"'LTC Rev-Exp Region 8'!E$40","v":{"v":0,"d":"$0.00"}},{"$f":"'LTC Rev-Exp Region 8'!F$40","v":{"v":0,"d":"$0.00"}},{"$f":"'LTC Rev-Exp Region 8'!G$40","v":{"v":0,"d":"$0.00"}},{"v":0,"d":"$0.00"}]
["LTC",null,null,{"$f":"Jurat!I$1","v":0},{"$f":"Jurat!D$33","v":"00:00:00"},"Q1","2017-03-31","Region 8","Operating Expense","Medical Expense","Expanded Benefits","3.3","Ending IBNP for Expanded Benefits",{"$f":"'LTC Rev-Exp Region 8'!D$41","v":{"v":0,"d":"$0.00"}},{"$f":"'LTC Rev-Exp Region 8'!E$41","v":{"v":0,"d":"$0.00"}},{"$f":"'LTC Rev-Exp Region 8'!F$41","v":{"v":0,"d":"$0.00"}},{"$f":"'LTC Rev-Exp Region 8'!G$41","v":{"v":0,"d":"$0.00"}},{"v":0,"d":"$0.00"}]
["LTC",null,null,{"$f":"Jurat!I$1","v":0},{"$f":"Jurat!D$33","v":"00:00:00"},"Q1","2017-03-31","Region 8","Operating Expense","Medical Expense","Expanded Benefits","3.4","Expanded Benefits Settlements",{"$f":"'LTC Rev-Exp Region 8'!D$42","v":{"v":0,"d":"$0.00"}},{"$f":"'LTC Rev-Exp Region 8'!E$42","v":{"v":0,"d":"$0.00"}},{"$f":"'LTC Rev-Exp Region 8'!F$42","v":{"v":0,"d":"$0.00"}},{"$f":"'LTC Rev-Exp Region 8'!G$42","v":{"v":0,"d":"$0.00"}},{"v":0,"d":"$0.00"}]
["LTC",null,null,{"$f":"Jurat!I$1","v":0},{"$f":"Jurat!D$33","v":"00:00:00"},"Q1","2017-03-31","Region 8","Operating Expense","Medical Expense","Other Medical","4.5","TPL & Fraud/Abuse Recoveries",{"$f":"'LTC Rev-Exp Region 8'!D$48","v":{"v":0,"d":"$0.00"}},{"$f":"'LTC Rev-Exp Region 8'!E$48","v":{"v":0,"d":"$0.00"}},{"$f":"'LTC Rev-Exp Region 8'!F$48","v":{"v":0,"d":"$0.00"}},{"$f":"'LTC Rev-Exp Region 8'!G$48","v":{"v":0,"d":"$0.00"}},{"v":0,"d":"$0.00"}]
["LTC",null,null,{"$f":"Jurat!I$1","v":0},{"$f":"Jurat!D$33","v":"00:00:00"},"Q1","2017-03-31","Region 8","Operating Expense","Medical Expense","Other Medical","4.6.1","Premium Deficiency Reserve",{"$f":"'LTC Rev-Exp Region 8'!D$49","v":{"v":0,"d":"$0.00"}},{"$f":"'LTC Rev-Exp Region 8'!E$49","v":{"v":0,"d":"$0.00"}},{"$f":"'LTC Rev-Exp Region 8'!F$49","v":{"v":0,"d":"$0.00"}},{"$f":"'LTC Rev-Exp Region 8'!G$49","v":{"v":0,"d":"$0.00"}},{"v":0,"d":"$0.00"}]
["LTC",null,null,{"$f":"Jurat!I$1","v":0},{"$f":"Jurat!D$33","v":"00:00:00"},"Q1","2017-03-31","Region 8","Operating Expense","Medical Expense","Other Medical","4.8","Reinsurance Premiums",{"$f":"'LTC Rev-Exp Region 8'!D$51","v":{"v":0,"d":"$0.00"}},{"$f":"'LTC Rev-Exp Region 8'!E$51","v":{"v":0,"d":"$0.00"}},{"$f":"'LTC Rev-Exp Region 8'!F$51","v":{"v":0,"d":"$0.00"}},{"$f":"'LTC Rev-Exp Region 8'!G$51","v":{"v":0,"d":"$0.00"}},{"v":0,"d":"$0.00"}]
["LTC",null,null,{"$f":"Jurat!I$1","v":0},{"$f":"Jurat!D$33","v":"00:00:00"},"Q1","2017-03-31","Region 8","Operating Expense","Medical Expense","Other Medical","4.9","Reinsurance Recoveries",{"$f":"'LTC Rev-Exp Region 8'!D$52","v":{"v":0,"d":"$0.00"}},{"$f":"'LTC Rev-Exp Region 8'!E$52","v":{"v":0,"d":"$0.00"}},{"$f":"'LTC Rev-Exp Region 8'!F$52","v":{"v":0,"d":"$0.00"}},{"$f":"'LTC Rev-Exp Region 8'!G$52","v":{"v":0,"d":"$0.00"}},{"v":0,"d":"$0.00"}]
["LTC",null,null,{"$f":"Jurat!I$1","v":0},{"$f":"Jurat!D$33","v":"00:00:00"},"Q1","2017-03-31","Region 8","Operating Expense","Administrative Expense","Administrative","5.1","Salaries & Benefits",{"$f":"'LTC Rev-Exp Region 8'!D$57","v":{"v":0,"d":"$0.00"}},{"$f":"'LTC Rev-Exp Region 8'!E$57","v":{"v":0,"d":"$0.00"}},{"$f":"'LTC Rev-Exp Region 8'!F$57","v":{"v":0,"d":"$0.00"}},{"$f":"'LTC Rev-Exp Region 8'!G$57","v":{"v":0,"d":"$0.00"}},{"v":0,"d":"$0.00"}]
["LTC",null,null,{"$f":"Jurat!I$1","v":0},{"$f":"Jurat!D$33","v":"00:00:00"},"Q1","2017-03-31","Region 8","Operating Expense","Administrative Expense","Administrative","5.2","Administrative Services",{"$f":"'LTC Rev-Exp Region 8'!D$58","v":{"v":0,"d":"$0.00"}},{"$f":"'LTC Rev-Exp Region 8'!E$58","v":{"v":0,"d":"$0.00"}},{"$f":"'LTC Rev-Exp Region 8'!F$58","v":{"v":0,"d":"$0.00"}},{"$f":"'LTC Rev-Exp Region 8'!G$58","v":{"v":0,"d":"$0.00"}},{"v":0,"d":"$0.00"}]
["LTC",null,null,{"$f":"Jurat!I$1","v":0},{"$f":"Jurat!D$33","v":"00:00:00"},"Q1","2017-03-31","Region 8","Operating Expense","Administrative Expense","Administrative","5.3","Information Systems",{"$f":"'LTC Rev-Exp Region 8'!D$59","v":{"v":0,"d":"$0.00"}},{"$f":"'LTC Rev-Exp Region 8'!E$59","v":{"v":0,"d":"$0.00"}},{"$f":"'LTC Rev-Exp Region 8'!F$59","v":{"v":0,"d":"$0.00"}},{"$f":"'LTC Rev-Exp Region 8'!G$59","v":{"v":0,"d":"$0.00"}},{"v":0,"d":"$0.00"}]
["LTC",null,null,{"$f":"Jurat!I$1","v":0},{"$f":"Jurat!D$33","v":"00:00:00"},"Q1","2017-03-31","Region 8","Operating Expense","Administrative Expense","Administrative","5.4","Marketing Expenses",{"$f":"'LTC Rev-Exp Region 8'!D$60","v":{"v":0,"d":"$0.00"}},{"$f":"'LTC Rev-Exp Region 8'!E$60","v":{"v":0,"d":"$0.00"}},{"$f":"'LTC Rev-Exp Region 8'!F$60","v":{"v":0,"d":"$0.00"}},{"$f":"'LTC Rev-Exp Region 8'!G$60","v":{"v":0,"d":"$0.00"}},{"v":0,"d":"$0.00"}]
["LTC",null,null,{"$f":"Jurat!I$1","v":0},{"$f":"Jurat!D$33","v":"00:00:00"},"Q1","2017-03-31","Region 8","Operating Expense","Administrative Expense","Administrative","5.5","General  Administration",{"$f":"'LTC Rev-Exp Region 8'!D$61","v":{"v":0,"d":"$0.00"}},{"$f":"'LTC Rev-Exp Region 8'!E$61","v":{"v":0,"d":"$0.00"}},{"$f":"'LTC Rev-Exp Region 8'!F$61","v":{"v":0,"d":"$0.00"}},{"$f":"'LTC Rev-Exp Region 8'!G$61","v":{"v":0,"d":"$0.00"}},{"v":0,"d":"$0.00"}]
["LTC",null,null,{"$f":"Jurat!I$1","v":0},{"$f":"Jurat!D$33","v":"00:00:00"},"Q1","2017-03-31","Region 8","Operating Expense","Administrative Expense","Administrative","5.6","Compliance/Regulatory",{"$f":"'LTC Rev-Exp Region 8'!D$62","v":{"v":0,"d":"$0.00"}},{"$f":"'LTC Rev-Exp Region 8'!E$62","v":{"v":0,"d":"$0.00"}},{"$f":"'LTC Rev-Exp Region 8'!F$62","v":{"v":0,"d":"$0.00"}},{"$f":"'LTC Rev-Exp Region 8'!G$62","v":{"v":0,"d":"$0.00"}},{"v":0,"d":"$0.00"}]
["LTC",null,null,{"$f":"Jurat!I$1","v":0},{"$f":"Jurat!D$33","v":"00:00:00"},"Q1","2017-03-31","Region 8","Operating Expense","Taxes & Fees","Taxes & Fees","6.1","State Premium Tax",{"$f":"'LTC Rev-Exp Region 8'!D$64","v":{"v":0,"d":"$0.00"}},{"v":0,"d":"$0.00"},{"v":0,"d":"$0.00"},{"v":0,"d":"$0.00"},{"v":0,"d":"$0.00"}]
["LTC",null,null,{"$f":"Jurat!I$1","v":0},{"$f":"Jurat!D$33","v":"00:00:00"},"Q1","2017-03-31","Region 8","Operating Expense","Taxes & Fees","Taxes & Fees","6.2","Department of Insurance Assessments",{"$f":"'LTC Rev-Exp Region 8'!D$65","v":{"v":0,"d":"$0.00"}},{"v":0,"d":"$0.00"},{"v":0,"d":"$0.00"},{"v":0,"d":"$0.00"},{"v":0,"d":"$0.00"}]
["LTC",null,null,{"$f":"Jurat!I$1","v":0},{"$f":"Jurat!D$33","v":"00:00:00"},"Q1","2017-03-31","Region 8","Non-Operating Expense","Income Tax Expense","Income Tax Expense","9.0","Income Tax Expense",{"$f":"'LTC Rev-Exp Region 8'!D$72","v":{"v":0,"d":"$0.00"}},{"v":0,"d":"$0.00"},{"v":0,"d":"$0.00"},{"v":0,"d":"$0.00"},{"v":0,"d":"$0.00"}]
["LTC",null,null,{"$f":"Jurat!I$1","v":0},{"$f":"Jurat!D$33","v":"00:00:00"},"Q2","2017-06-30","Region 8","Member Months","Member Months","Member Months",null,"Member Months",{"$f":"'LTC Rev-Exp Region 8'!H$9","v":{"v":0,"d":"$0.00"}},{"$f":"'LTC Rev-Exp Region 8'!I$9","v":{"v":0,"d":"$0.00"}},{"$f":"'LTC Rev-Exp Region 8'!J$9","v":{"v":0,"d":"$0.00"}},{"$f":"'LTC Rev-Exp Region 8'!K$9","v":{"v":0,"d":"$0.00"}},{"v":0,"d":"$0.00"}]
["LTC",null,null,{"$f":"Jurat!I$1","v":0},{"$f":"Jurat!D$33","v":"00:00:00"},"Q2","2017-06-30","Region 8","Operating Revenue","Capitation","Capitation",1.1,"Capitation",{"$f":"'LTC Rev-Exp Region 8'!H$11","v":{"v":0,"d":"$0.00"}},{"$f":"'LTC Rev-Exp Region 8'!I$11","v":{"v":0,"d":"$0.00"}},{"$f":"'LTC Rev-Exp Region 8'!J$11","v":{"v":0,"d":"$0.00"}},{"$f":"'LTC Rev-Exp Region 8'!K$11","v":{"v":0,"d":"$0.00"}},{"v":0,"d":"$0.00"}]
["LTC",null,null,{"$f":"Jurat!I$1","v":0},{"$f":"Jurat!D$33","v":"00:00:00"},"Q2","2017-06-30","Region 8","Operating Revenue","Capitation","NH Rate Reconciliation",1.2,"NH Rate Reconciliation",{"$f":"'LTC Rev-Exp Region 8'!H$12","v":{"v":0,"d":"$0.00"}},{"$f":"'LTC Rev-Exp Region 8'!I$12","v":{"v":0,"d":"$0.00"}},{"$f":"'LTC Rev-Exp Region 8'!J$12","v":{"v":0,"d":"$0.00"}},{"$f":"'LTC Rev-Exp Region 8'!K$12","v":{"v":0,"d":"$0.00"}},{"v":0,"d":"$0.00"}]
["LTC",null,null,{"$f":"Jurat!I$1","v":0},{"$f":"Jurat!D$33","v":"00:00:00"},"Q2","2017-06-30","Region 8","Operating Revenue","Other Revenue","Other Revenue",1.3,"Other Revenue",{"$f":"'LTC Rev-Exp Region 8'!H$13","v":{"v":0,"d":"$0.00"}},{"$f":"'LTC Rev-Exp Region 8'!I$13","v":{"v":0,"d":"$0.00"}},{"$f":"'LTC Rev-Exp Region 8'!J$13","v":{"v":0,"d":"$0.00"}},{"$f":"'LTC Rev-Exp Region 8'!K$13","v":{"v":0,"d":"$0.00"}},{"v":0,"d":"$0.00"}]
["LTC",null,null,{"$f":"Jurat!I$1","v":0},{"$f":"Jurat!D$33","v":"00:00:00"},"Q2","2017-06-30","Region 8","Operating Expense","Medical Expense","NF & Hospice","2.1","Nursing Facility Days (Medicaid)",{"$f":"'LTC Rev-Exp Region 8'!H$17","v":{"v":0,"d":"$0.00"}},{"$f":"'LTC Rev-Exp Region 8'!I$17","v":{"v":0,"d":"$0.00"}},{"$f":"'LTC Rev-Exp Region 8'!J$17","v":{"v":0,"d":"$0.00"}},{"$f":"'LTC Rev-Exp Region 8'!K$17","v":{"v":0,"d":"$0.00"}},{"v":0,"d":"$0.00"}]
["LTC",null,null,{"$f":"Jurat!I$1","v":0},{"$f":"Jurat!D$33","v":"00:00:00"},"Q2","2017-06-30","Region 8","Operating Expense","Medical Expense","NF & Hospice","2.2","Nursing Facility Days (Crossover)",{"$f":"'LTC Rev-Exp Region 8'!H$18","v":{"v":0,"d":"$0.00"}},{"$f":"'LTC Rev-Exp Region 8'!I$18","v":{"v":0,"d":"$0.00"}},{"$f":"'LTC Rev-Exp Region 8'!J$18","v":{"v":0,"d":"$0.00"}},{"$f":"'LTC Rev-Exp Region 8'!K$18","v":{"v":0,"d":"$0.00"}},{"v":0,"d":"$0.00"}]
["LTC",null,null,{"$f":"Jurat!I$1","v":0},{"$f":"Jurat!D$33","v":"00:00:00"},"Q2","2017-06-30","Region 8","Operating Expense","Medical Expense","NF & Hospice","2.3","Nursing Facility FFS (Medicaid)",{"$f":"'LTC Rev-Exp Region 8'!H$19","v":{"v":0,"d":"$0.00"}},{"$f":"'LTC Rev-Exp Region 8'!I$19","v":{"v":0,"d":"$0.00"}},{"$f":"'LTC Rev-Exp Region 8'!J$19","v":{"v":0,"d":"$0.00"}},{"$f":"'LTC Rev-Exp Region 8'!K$19","v":{"v":0,"d":"$0.00"}},{"v":0,"d":"$0.00"}]
["LTC",null,null,{"$f":"Jurat!I$1","v":0},{"$f":"Jurat!D$33","v":"00:00:00"},"Q2","2017-06-30","Region 8","Operating Expense","Medical Expense","NF & Hospice","2.4","Nursing Facility FFS (Crossover)",{"$f":"'LTC Rev-Exp Region 8'!H$20","v":{"v":0,"d":"$0.00"}},{"$f":"'LTC Rev-Exp Region 8'!I$20","v":{"v":0,"d":"$0.00"}},{"$f":"'LTC Rev-Exp Region 8'!J$20","v":{"v":0,"d":"$0.00"}},{"$f":"'LTC Rev-Exp Region 8'!K$20","v":{"v":0,"d":"$0.00"}},{"v":0,"d":"$0.00"}]
["LTC",null,null,{"$f":"Jurat!I$1","v":0},{"$f":"Jurat!D$33","v":"00:00:00"},"Q2","2017-06-30","Region 8","Operating Expense","Medical Expense","NF & Hospice","2.5","Hospice Days",{"$f":"'LTC Rev-Exp Region 8'!H$21","v":{"v":0,"d":"$0.00"}},{"$f":"'LTC Rev-Exp Region 8'!I$21","v":{"v":0,"d":"$0.00"}},{"$f":"'LTC Rev-Exp Region 8'!J$21","v":{"v":0,"d":"$0.00"}},{"$f":"'LTC Rev-Exp Region 8'!K$21","v":{"v":0,"d":"$0.00"}},{"v":0,"d":"$0.00"}]
["LTC",null,null,{"$f":"Jurat!I$1","v":0},{"$f":"Jurat!D$33","v":"00:00:00"},"Q2","2017-06-30","Region 8","Operating Expense","Medical Expense","NF & Hospice","2.6","Hospice FFS",{"$f":"'LTC Rev-Exp Region 8'!H$22","v":{"v":0,"d":"$0.00"}},{"$f":"'LTC Rev-Exp Region 8'!I$22","v":{"v":0,"d":"$0.00"}},{"$f":"'LTC Rev-Exp Region 8'!J$22","v":{"v":0,"d":"$0.00"}},{"$f":"'LTC Rev-Exp Region 8'!K$22","v":{"v":0,"d":"$0.00"}},{"v":0,"d":"$0.00"}]
["LTC",null,null,{"$f":"Jurat!I$1","v":0},{"$f":"Jurat!D$33","v":"00:00:00"},"Q2","2017-06-30","Region 8","Operating Expense","Medical Expense","NF & Hospice","2.7","Ending IBNP for NF & Hospice",{"$f":"'LTC Rev-Exp Region 8'!H$23","v":{"v":0,"d":"$0.00"}},{"$f":"'LTC Rev-Exp Region 8'!I$23","v":{"v":0,"d":"$0.00"}},{"$f":"'LTC Rev-Exp Region 8'!J$23","v":{"v":0,"d":"$0.00"}},{"$f":"'LTC Rev-Exp Region 8'!K$23","v":{"v":0,"d":"$0.00"}},{"v":0,"d":"$0.00"}]
["LTC",null,null,{"$f":"Jurat!I$1","v":0},{"$f":"Jurat!D$33","v":"00:00:00"},"Q2","2017-06-30","Region 8","Operating Expense","Medical Expense","NF & Hospice","2.8","NF & Hospice Subcapitated",{"$f":"'LTC Rev-Exp Region 8'!H$24","v":{"v":0,"d":"$0.00"}},{"$f":"'LTC Rev-Exp Region 8'!I$24","v":{"v":0,"d":"$0.00"}},{"$f":"'LTC Rev-Exp Region 8'!J$24","v":{"v":0,"d":"$0.00"}},{"$f":"'LTC Rev-Exp Region 8'!K$24","v":{"v":0,"d":"$0.00"}},{"v":0,"d":"$0.00"}]
["LTC",null,null,{"$f":"Jurat!I$1","v":0},{"$f":"Jurat!D$33","v":"00:00:00"},"Q2","2017-06-30","Region 8","Operating Expense","Medical Expense","NF & Hospice","2.9","NF & Hospice Settlements",{"$f":"'LTC Rev-Exp Region 8'!H$25","v":{"v":0,"d":"$0.00"}},{"$f":"'LTC Rev-Exp Region 8'!I$25","v":{"v":0,"d":"$0.00"}},{"$f":"'LTC Rev-Exp Region 8'!J$25","v":{"v":0,"d":"$0.00"}},{"$f":"'LTC Rev-Exp Region 8'!K$25","v":{"v":0,"d":"$0.00"}},{"v":0,"d":"$0.00"}]
["LTC",null,null,{"$f":"Jurat!I$1","v":0},{"$f":"Jurat!D$33","v":"00:00:00"},"Q2","2017-06-30","Region 8","Operating Expense","Medical Expense","LTC Services","2.11","Assisted Living FFS",{"$f":"'LTC Rev-Exp Region 8'!H$27","v":{"v":0,"d":"$0.00"}},{"$f":"'LTC Rev-Exp Region 8'!I$27","v":{"v":0,"d":"$0.00"}},{"$f":"'LTC Rev-Exp Region 8'!J$27","v":{"v":0,"d":"$0.00"}},{"$f":"'LTC Rev-Exp Region 8'!K$27","v":{"v":0,"d":"$0.00"}},{"v":0,"d":"$0.00"}]
["LTC",null,null,{"$f":"Jurat!I$1","v":0},{"$f":"Jurat!D$33","v":"00:00:00"},"Q2","2017-06-30","Region 8","Operating Expense","Medical Expense","LTC Services","2.12","Home Health FFS",{"$f":"'LTC Rev-Exp Region 8'!H$28","v":{"v":0,"d":"$0.00"}},{"$f":"'LTC Rev-Exp Region 8'!I$28","v":{"v":0,"d":"$0.00"}},{"$f":"'LTC Rev-Exp Region 8'!J$28","v":{"v":0,"d":"$0.00"}},{"$f":"'LTC Rev-Exp Region 8'!K$28","v":{"v":0,"d":"$0.00"}},{"v":0,"d":"$0.00"}]
["LTC",null,null,{"$f":"Jurat!I$1","v":0},{"$f":"Jurat!D$33","v":"00:00:00"},"Q2","2017-06-30","Region 8","Operating Expense","Medical Expense","LTC Services","2.13","Medical Equipment/Supplies FFS",{"$f":"'LTC Rev-Exp Region 8'!H$29","v":{"v":0,"d":"$0.00"}},{"$f":"'LTC Rev-Exp Region 8'!I$29","v":{"v":0,"d":"$0.00"}},{"$f":"'LTC Rev-Exp Region 8'!J$29","v":{"v":0,"d":"$0.00"}},{"$f":"'LTC Rev-Exp Region 8'!K$29","v":{"v":0,"d":"$0.00"}},{"v":0,"d":"$0.00"}]
["LTC",null,null,{"$f":"Jurat!I$1","v":0},{"$f":"Jurat!D$33","v":"00:00:00"},"Q2","2017-06-30","Region 8","Operating Expense","Medical Expense","LTC Services","2.14","Therapy FFS",{"$f":"'LTC Rev-Exp Region 8'!H$30","v":{"v":0,"d":"$0.00"}},{"$f":"'LTC Rev-Exp Region 8'!I$30","v":{"v":0,"d":"$0.00"}},{"$f":"'LTC Rev-Exp Region 8'!J$30","v":{"v":0,"d":"$0.00"}},{"$f":"'LTC Rev-Exp Region 8'!K$30","v":{"v":0,"d":"$0.00"}},{"v":0,"d":"$0.00"}]
["LTC",null,null,{"$f":"Jurat!I$1","v":0},{"$f":"Jurat!D$33","v":"00:00:00"},"Q2","2017-06-30","Region 8","Operating Expense","Medical Expense","LTC Services","2.15","Transportation FFS",{"$f":"'LTC Rev-Exp Region 8'!H$31","v":{"v":0,"d":"$0.00"}},{"$f":"'LTC Rev-Exp Region 8'!I$31","v":{"v":0,"d":"$0.00"}},{"$f":"'LTC Rev-Exp Region 8'!J$31","v":{"v":0,"d":"$0.00"}},{"$f":"'LTC Rev-Exp Region 8'!K$31","v":{"v":0,"d":"$0.00"}},{"v":0,"d":"$0.00"}]
["LTC",null,null,{"$f":"Jurat!I$1","v":0},{"$f":"Jurat!D$33","v":"00:00:00"},"Q2","2017-06-30","Region 8","Operating Expense","Medical Expense","LTC Services","2.16","Case Management FFS (Plan Provided)",{"$f":"'LTC Rev-Exp Region 8'!H$32","v":{"v":0,"d":"$0.00"}},{"$f":"'LTC Rev-Exp Region 8'!I$32","v":{"v":0,"d":"$0.00"}},{"$f":"'LTC Rev-Exp Region 8'!J$32","v":{"v":0,"d":"$0.00"}},{"$f":"'LTC Rev-Exp Region 8'!K$32","v":{"v":0,"d":"$0.00"}},{"v":0,"d":"$0.00"}]
["LTC",null,null,{"$f":"Jurat!I$1","v":0},{"$f":"Jurat!D$33","v":"00:00:00"},"Q2","2017-06-30","Region 8","Operating Expense","Medical Expense","LTC Services","2.17","Case Management FF (Non-Plan Provided)",{"$f":"'LTC Rev-Exp Region 8'!H$33","v":{"v":0,"d":"$0.00"}},{"$f":"'LTC Rev-Exp Region 8'!I$33","v":{"v":0,"d":"$0.00"}},{"$f":"'LTC Rev-Exp Region 8'!J$33","v":{"v":0,"d":"$0.00"}},{"$f":"'LTC Rev-Exp Region 8'!K$33","v":{"v":0,"d":"$0.00"}},{"v":0,"d":"$0.00"}]
["LTC",null,null,{"$f":"Jurat!I$1","v":0},{"$f":"Jurat!D$33","v":"00:00:00"},"Q2","2017-06-30","Region 8","Operating Expense","Medical Expense","LTC Services","2.18","HCBS FFS",{"$f":"'LTC Rev-Exp Region 8'!H$34","v":{"v":0,"d":"$0.00"}},{"$f":"'LTC Rev-Exp Region 8'!I$34","v":{"v":0,"d":"$0.00"}},{"$f":"'LTC Rev-Exp Region 8'!J$34","v":{"v":0,"d":"$0.00"}},{"$f":"'LTC Rev-Exp Region 8'!K$34","v":{"v":0,"d":"$0.00"}},{"v":0,"d":"$0.00"}]
["LTC",null,null,{"$f":"Jurat!I$1","v":0},{"$f":"Jurat!D$33","v":"00:00:00"},"Q2","2017-06-30","Region 8","Operating Expense","Medical Expense","LTC Services","2.19","Subcapitated LTC Services",{"$f":"'LTC Rev-Exp Region 8'!H$35","v":{"v":0,"d":"$0.00"}},{"$f":"'LTC Rev-Exp Region 8'!I$35","v":{"v":0,"d":"$0.00"}},{"$f":"'LTC Rev-Exp Region 8'!J$35","v":{"v":0,"d":"$0.00"}},{"$f":"'LTC Rev-Exp Region 8'!K$35","v":{"v":0,"d":"$0.00"}},{"v":0,"d":"$0.00"}]
["LTC",null,null,{"$f":"Jurat!I$1","v":0},{"$f":"Jurat!D$33","v":"00:00:00"},"Q2","2017-06-30","Region 8","Operating Expense","Medical Expense","LTC Services","2.20","Ending IBNP for Long Term Care Services",{"$f":"'LTC Rev-Exp Region 8'!H$36","v":{"v":0,"d":"$0.00"}},{"$f":"'LTC Rev-Exp Region 8'!I$36","v":{"v":0,"d":"$0.00"}},{"$f":"'LTC Rev-Exp Region 8'!J$36","v":{"v":0,"d":"$0.00"}},{"$f":"'LTC Rev-Exp Region 8'!K$36","v":{"v":0,"d":"$0.00"}},{"v":0,"d":"$0.00"}]
["LTC",null,null,{"$f":"Jurat!I$1","v":0},{"$f":"Jurat!D$33","v":"00:00:00"},"Q2","2017-06-30","Region 8","Operating Expense","Medical Expense","LTC Services","2.21","LTC Services Settlements",{"$f":"'LTC Rev-Exp Region 8'!H$37","v":{"v":0,"d":"$0.00"}},{"$f":"'LTC Rev-Exp Region 8'!I$37","v":{"v":0,"d":"$0.00"}},{"$f":"'LTC Rev-Exp Region 8'!J$37","v":{"v":0,"d":"$0.00"}},{"$f":"'LTC Rev-Exp Region 8'!K$37","v":{"v":0,"d":"$0.00"}},{"v":0,"d":"$0.00"}]
["LTC",null,null,{"$f":"Jurat!I$1","v":0},{"$f":"Jurat!D$33","v":"00:00:00"},"Q2","2017-06-30","Region 8","Operating Expense","Medical Expense","Expanded Benefits","3.1","Expanded Benefits FFS",{"$f":"'LTC Rev-Exp Region 8'!H$39","v":{"v":0,"d":"$0.00"}},{"$f":"'LTC Rev-Exp Region 8'!I$39","v":{"v":0,"d":"$0.00"}},{"$f":"'LTC Rev-Exp Region 8'!J$39","v":{"v":0,"d":"$0.00"}},{"$f":"'LTC Rev-Exp Region 8'!K$39","v":{"v":0,"d":"$0.00"}},{"v":0,"d":"$0.00"}]
["LTC",null,null,{"$f":"Jurat!I$1","v":0},{"$f":"Jurat!D$33","v":"00:00:00"},"Q2","2017-06-30","Region 8","Operating Expense","Medical Expense","Expanded Benefits","3.2","Expanded Benefits Subcapitation",{"$f":"'LTC Rev-Exp Region 8'!H$40","v":{"v":0,"d":"$0.00"}},{"$f":"'LTC Rev-Exp Region 8'!I$40","v":{"v":0,"d":"$0.00"}},{"$f":"'LTC Rev-Exp Region 8'!J$40","v":{"v":0,"d":"$0.00"}},{"$f":"'LTC Rev-Exp Region 8'!K$40","v":{"v":0,"d":"$0.00"}},{"v":0,"d":"$0.00"}]
["LTC",null,null,{"$f":"Jurat!I$1","v":0},{"$f":"Jurat!D$33","v":"00:00:00"},"Q2","2017-06-30","Region 8","Operating Expense","Medical Expense","Expanded Benefits","3.3","Ending IBNP for Expanded Benefits",{"$f":"'LTC Rev-Exp Region 8'!H$41","v":{"v":0,"d":"$0.00"}},{"$f":"'LTC Rev-Exp Region 8'!I$41","v":{"v":0,"d":"$0.00"}},{"$f":"'LTC Rev-Exp Region 8'!J$41","v":{"v":0,"d":"$0.00"}},{"$f":"'LTC Rev-Exp Region 8'!K$41","v":{"v":0,"d":"$0.00"}},{"v":0,"d":"$0.00"}]
["LTC",null,null,{"$f":"Jurat!I$1","v":0},{"$f":"Jurat!D$33","v":"00:00:00"},"Q2","2017-06-30","Region 8","Operating Expense","Medical Expense","Expanded Benefits","3.4","Expanded Benefits Settlements",{"$f":"'LTC Rev-Exp Region 8'!H$42","v":{"v":0,"d":"$0.00"}},{"$f":"'LTC Rev-Exp Region 8'!I$42","v":{"v":0,"d":"$0.00"}},{"$f":"'LTC Rev-Exp Region 8'!J$42","v":{"v":0,"d":"$0.00"}},{"$f":"'LTC Rev-Exp Region 8'!K$42","v":{"v":0,"d":"$0.00"}},{"v":0,"d":"$0.00"}]
["LTC",null,null,{"$f":"Jurat!I$1","v":0},{"$f":"Jurat!D$33","v":"00:00:00"},"Q2","2017-06-30","Region 8","Operating Expense","Medical Expense","Other Medical","4.5","TPL & Fraud/Abuse Recoveries",{"$f":"'LTC Rev-Exp Region 8'!H$48","v":{"v":0,"d":"$0.00"}},{"$f":"'LTC Rev-Exp Region 8'!I$48","v":{"v":0,"d":"$0.00"}},{"$f":"'LTC Rev-Exp Region 8'!J$48","v":{"v":0,"d":"$0.00"}},{"$f":"'LTC Rev-Exp Region 8'!K$48","v":{"v":0,"d":"$0.00"}},{"v":0,"d":"$0.00"}]
["LTC",null,null,{"$f":"Jurat!I$1","v":0},{"$f":"Jurat!D$33","v":"00:00:00"},"Q2","2017-06-30","Region 8","Operating Expense","Medical Expense","Other Medical","4.6.1","Premium Deficiency Reserve",{"$f":"'LTC Rev-Exp Region 8'!H$49","v":{"v":0,"d":"$0.00"}},{"$f":"'LTC Rev-Exp Region 8'!I$49","v":{"v":0,"d":"$0.00"}},{"$f":"'LTC Rev-Exp Region 8'!J$49","v":{"v":0,"d":"$0.00"}},{"$f":"'LTC Rev-Exp Region 8'!K$49","v":{"v":0,"d":"$0.00"}},{"v":0,"d":"$0.00"}]
["LTC",null,null,{"$f":"Jurat!I$1","v":0},{"$f":"Jurat!D$33","v":"00:00:00"},"Q2","2017-06-30","Region 8","Operating Expense","Medical Expense","Other Medical","4.8","Reinsurance Premiums",{"$f":"'LTC Rev-Exp Region 8'!H$51","v":{"v":0,"d":"$0.00"}},{"$f":"'LTC Rev-Exp Region 8'!I$51","v":{"v":0,"d":"$0.00"}},{"$f":"'LTC Rev-Exp Region 8'!J$51","v":{"v":0,"d":"$0.00"}},{"$f":"'LTC Rev-Exp Region 8'!K$51","v":{"v":0,"d":"$0.00"}},{"v":0,"d":"$0.00"}]
["LTC",null,null,{"$f":"Jurat!I$1","v":0},{"$f":"Jurat!D$33","v":"00:00:00"},"Q2","2017-06-30","Region 8","Operating Expense","Medical Expense","Other Medical","4.9","Reinsurance Recoveries",{"$f":"'LTC Rev-Exp Region 8'!H$52","v":{"v":0,"d":"$0.00"}},{"$f":"'LTC Rev-Exp Region 8'!I$52","v":{"v":0,"d":"$0.00"}},{"$f":"'LTC Rev-Exp Region 8'!J$52","v":{"v":0,"d":"$0.00"}},{"$f":"'LTC Rev-Exp Region 8'!K$52","v":{"v":0,"d":"$0.00"}},{"v":0,"d":"$0.00"}]
["LTC",null,null,{"$f":"Jurat!I$1","v":0},{"$f":"Jurat!D$33","v":"00:00:00"},"Q2","2017-06-30","Region 8","Operating Expense","Administrative Expense","Administrative","5.1","Salaries & Benefits",{"$f":"'LTC Rev-Exp Region 8'!H$57","v":{"v":0,"d":"$0.00"}},{"$f":"'LTC Rev-Exp Region 8'!I$57","v":{"v":0,"d":"$0.00"}},{"$f":"'LTC Rev-Exp Region 8'!J$57","v":{"v":0,"d":"$0.00"}},{"$f":"'LTC Rev-Exp Region 8'!K$57","v":{"v":0,"d":"$0.00"}},{"v":0,"d":"$0.00"}]
["LTC",null,null,{"$f":"Jurat!I$1","v":0},{"$f":"Jurat!D$33","v":"00:00:00"},"Q2","2017-06-30","Region 8","Operating Expense","Administrative Expense","Administrative","5.2","Administrative Services",{"$f":"'LTC Rev-Exp Region 8'!H$58","v":{"v":0,"d":"$0.00"}},{"$f":"'LTC Rev-Exp Region 8'!I$58","v":{"v":0,"d":"$0.00"}},{"$f":"'LTC Rev-Exp Region 8'!J$58","v":{"v":0,"d":"$0.00"}},{"$f":"'LTC Rev-Exp Region 8'!K$58","v":{"v":0,"d":"$0.00"}},{"v":0,"d":"$0.00"}]
["LTC",null,null,{"$f":"Jurat!I$1","v":0},{"$f":"Jurat!D$33","v":"00:00:00"},"Q2","2017-06-30","Region 8","Operating Expense","Administrative Expense","Administrative","5.3","Information Systems",{"$f":"'LTC Rev-Exp Region 8'!H$59","v":{"v":0,"d":"$0.00"}},{"$f":"'LTC Rev-Exp Region 8'!I$59","v":{"v":0,"d":"$0.00"}},{"$f":"'LTC Rev-Exp Region 8'!J$59","v":{"v":0,"d":"$0.00"}},{"$f":"'LTC Rev-Exp Region 8'!K$59","v":{"v":0,"d":"$0.00"}},{"v":0,"d":"$0.00"}]
["LTC",null,null,{"$f":"Jurat!I$1","v":0},{"$f":"Jurat!D$33","v":"00:00:00"},"Q2","2017-06-30","Region 8","Operating Expense","Administrative Expense","Administrative","5.4","Marketing Expenses",{"$f":"'LTC Rev-Exp Region 8'!H$60","v":{"v":0,"d":"$0.00"}},{"$f":"'LTC Rev-Exp Region 8'!I$60","v":{"v":0,"d":"$0.00"}},{"$f":"'LTC Rev-Exp Region 8'!J$60","v":{"v":0,"d":"$0.00"}},{"$f":"'LTC Rev-Exp Region 8'!K$60","v":{"v":0,"d":"$0.00"}},{"v":0,"d":"$0.00"}]
["LTC",null,null,{"$f":"Jurat!I$1","v":0},{"$f":"Jurat!D$33","v":"00:00:00"},"Q2","2017-06-30","Region 8","Operating Expense","Administrative Expense","Administrative","5.5","General  Administration",{"$f":"'LTC Rev-Exp Region 8'!H$61","v":{"v":0,"d":"$0.00"}},{"$f":"'LTC Rev-Exp Region 8'!I$61","v":{"v":0,"d":"$0.00"}},{"$f":"'LTC Rev-Exp Region 8'!J$61","v":{"v":0,"d":"$0.00"}},{"$f":"'LTC Rev-Exp Region 8'!K$61","v":{"v":0,"d":"$0.00"}},{"v":0,"d":"$0.00"}]
["LTC",null,null,{"$f":"Jurat!I$1","v":0},{"$f":"Jurat!D$33","v":"00:00:00"},"Q2","2017-06-30","Region 8","Operating Expense","Administrative Expense","Administrative","5.6","Compliance/Regulatory",{"$f":"'LTC Rev-Exp Region 8'!H$62","v":{"v":0,"d":"$0.00"}},{"$f":"'LTC Rev-Exp Region 8'!I$62","v":{"v":0,"d":"$0.00"}},{"$f":"'LTC Rev-Exp Region 8'!J$62","v":{"v":0,"d":"$0.00"}},{"$f":"'LTC Rev-Exp Region 8'!K$62","v":{"v":0,"d":"$0.00"}},{"v":0,"d":"$0.00"}]
["LTC",null,null,{"$f":"Jurat!I$1","v":0},{"$f":"Jurat!D$33","v":"00:00:00"},"Q2","2017-06-30","Region 8","Operating Expense","Taxes & Fees","Taxes & Fees","6.1","State Premium Tax",{"$f":"'LTC Rev-Exp Region 8'!H$64","v":{"v":0,"d":"$0.00"}},{"v":0,"d":"$0.00"},{"v":0,"d":"$0.00"},{"v":0,"d":"$0.00"},{"v":0,"d":"$0.00"}]
["LTC",null,null,{"$f":"Jurat!I$1","v":0},{"$f":"Jurat!D$33","v":"00:00:00"},"Q2","2017-06-30","Region 8","Operating Expense","Taxes & Fees","Taxes & Fees","6.2","Department of Insurance Assessments",{"$f":"'LTC Rev-Exp Region 8'!H$65","v":{"v":0,"d":"$0.00"}},{"v":0,"d":"$0.00"},{"v":0,"d":"$0.00"},{"v":0,"d":"$0.00"},{"v":0,"d":"$0.00"}]
["LTC",null,null,{"$f":"Jurat!I$1","v":0},{"$f":"Jurat!D$33","v":"00:00:00"},"Q2","2017-06-30","Region 8","Non-Operating Expense","Income Tax Expense","Income Tax Expense","9.0","Income Tax Expense",{"$f":"'LTC Rev-Exp Region 8'!H$72","v":{"v":0,"d":"$0.00"}},{"v":0,"d":"$0.00"},{"v":0,"d":"$0.00"},{"v":0,"d":"$0.00"},{"v":0,"d":"$0.00"}]
["LTC",null,null,{"$f":"Jurat!I$1","v":0},{"$f":"Jurat!D$33","v":"00:00:00"},"Q3","2017-09-30","Region 8","Member Months","Member Months","Member Months",null,"Member Months",{"$f":"'LTC Rev-Exp Region 8'!L$9","v":{"v":0,"d":"$0.00"}},{"$f":"'LTC Rev-Exp Region 8'!M$9","v":{"v":0,"d":"$0.00"}},{"$f":"'LTC Rev-Exp Region 8'!N$9","v":{"v":0,"d":"$0.00"}},{"$f":"'LTC Rev-Exp Region 8'!O$9","v":{"v":0,"d":"$0.00"}},{"v":0,"d":"$0.00"}]
["LTC",null,null,{"$f":"Jurat!I$1","v":0},{"$f":"Jurat!D$33","v":"00:00:00"},"Q3","2017-09-30","Region 8","Operating Revenue","Capitation","Capitation",1.1,"Capitation",{"$f":"'LTC Rev-Exp Region 8'!L$11","v":{"v":0,"d":"$0.00"}},{"$f":"'LTC Rev-Exp Region 8'!M$11","v":{"v":0,"d":"$0.00"}},{"$f":"'LTC Rev-Exp Region 8'!N$11","v":{"v":0,"d":"$0.00"}},{"$f":"'LTC Rev-Exp Region 8'!O$11","v":{"v":0,"d":"$0.00"}},{"v":0,"d":"$0.00"}]
["LTC",null,null,{"$f":"Jurat!I$1","v":0},{"$f":"Jurat!D$33","v":"00:00:00"},"Q3","2017-09-30","Region 8","Operating Revenue","Capitation","NH Rate Reconciliation",1.2,"NH Rate Reconciliation",{"$f":"'LTC Rev-Exp Region 8'!L$12","v":{"v":0,"d":"$0.00"}},{"$f":"'LTC Rev-Exp Region 8'!M$12","v":{"v":0,"d":"$0.00"}},{"$f":"'LTC Rev-Exp Region 8'!N$12","v":{"v":0,"d":"$0.00"}},{"$f":"'LTC Rev-Exp Region 8'!O$12","v":{"v":0,"d":"$0.00"}},{"v":0,"d":"$0.00"}]
["LTC",null,null,{"$f":"Jurat!I$1","v":0},{"$f":"Jurat!D$33","v":"00:00:00"},"Q3","2017-09-30","Region 8","Operating Revenue","Other Revenue","Other Revenue",1.3,"Other Revenue",{"$f":"'LTC Rev-Exp Region 8'!L$13","v":{"v":0,"d":"$0.00"}},{"$f":"'LTC Rev-Exp Region 8'!M$13","v":{"v":0,"d":"$0.00"}},{"$f":"'LTC Rev-Exp Region 8'!N$13","v":{"v":0,"d":"$0.00"}},{"$f":"'LTC Rev-Exp Region 8'!O$13","v":{"v":0,"d":"$0.00"}},{"v":0,"d":"$0.00"}]
["LTC",null,null,{"$f":"Jurat!I$1","v":0},{"$f":"Jurat!D$33","v":"00:00:00"},"Q3","2017-09-30","Region 8","Operating Expense","Medical Expense","NF & Hospice","2.1","Nursing Facility Days (Medicaid)",{"$f":"'LTC Rev-Exp Region 8'!L$17","v":{"v":0,"d":"$0.00"}},{"$f":"'LTC Rev-Exp Region 8'!M$17","v":{"v":0,"d":"$0.00"}},{"$f":"'LTC Rev-Exp Region 8'!N$17","v":{"v":0,"d":"$0.00"}},{"$f":"'LTC Rev-Exp Region 8'!O$17","v":{"v":0,"d":"$0.00"}},{"v":0,"d":"$0.00"}]
["LTC",null,null,{"$f":"Jurat!I$1","v":0},{"$f":"Jurat!D$33","v":"00:00:00"},"Q3","2017-09-30","Region 8","Operating Expense","Medical Expense","NF & Hospice","2.2","Nursing Facility Days (Crossover)",{"$f":"'LTC Rev-Exp Region 8'!L$18","v":{"v":0,"d":"$0.00"}},{"$f":"'LTC Rev-Exp Region 8'!M$18","v":{"v":0,"d":"$0.00"}},{"$f":"'LTC Rev-Exp Region 8'!N$18","v":{"v":0,"d":"$0.00"}},{"$f":"'LTC Rev-Exp Region 8'!O$18","v":{"v":0,"d":"$0.00"}},{"v":0,"d":"$0.00"}]
["LTC",null,null,{"$f":"Jurat!I$1","v":0},{"$f":"Jurat!D$33","v":"00:00:00"},"Q3","2017-09-30","Region 8","Operating Expense","Medical Expense","NF & Hospice","2.3","Nursing Facility FFS (Medicaid)",{"$f":"'LTC Rev-Exp Region 8'!L$19","v":{"v":0,"d":"$0.00"}},{"$f":"'LTC Rev-Exp Region 8'!M$19","v":{"v":0,"d":"$0.00"}},{"$f":"'LTC Rev-Exp Region 8'!N$19","v":{"v":0,"d":"$0.00"}},{"$f":"'LTC Rev-Exp Region 8'!O$19","v":{"v":0,"d":"$0.00"}},{"v":0,"d":"$0.00"}]
["LTC",null,null,{"$f":"Jurat!I$1","v":0},{"$f":"Jurat!D$33","v":"00:00:00"},"Q3","2017-09-30","Region 8","Operating Expense","Medical Expense","NF & Hospice","2.4","Nursing Facility FFS (Crossover)",{"$f":"'LTC Rev-Exp Region 8'!L$20","v":{"v":0,"d":"$0.00"}},{"$f":"'LTC Rev-Exp Region 8'!M$20","v":{"v":0,"d":"$0.00"}},{"$f":"'LTC Rev-Exp Region 8'!N$20","v":{"v":0,"d":"$0.00"}},{"$f":"'LTC Rev-Exp Region 8'!O$20","v":{"v":0,"d":"$0.00"}},{"v":0,"d":"$0.00"}]
["LTC",null,null,{"$f":"Jurat!I$1","v":0},{"$f":"Jurat!D$33","v":"00:00:00"},"Q3","2017-09-30","Region 8","Operating Expense","Medical Expense","NF & Hospice","2.5","Hospice Days",{"$f":"'LTC Rev-Exp Region 8'!L$21","v":{"v":0,"d":"$0.00"}},{"$f":"'LTC Rev-Exp Region 8'!M$21","v":{"v":0,"d":"$0.00"}},{"$f":"'LTC Rev-Exp Region 8'!N$21","v":{"v":0,"d":"$0.00"}},{"$f":"'LTC Rev-Exp Region 8'!O$21","v":{"v":0,"d":"$0.00"}},{"v":0,"d":"$0.00"}]
["LTC",null,null,{"$f":"Jurat!I$1","v":0},{"$f":"Jurat!D$33","v":"00:00:00"},"Q3","2017-09-30","Region 8","Operating Expense","Medical Expense","NF & Hospice","2.6","Hospice FFS",{"$f":"'LTC Rev-Exp Region 8'!L$22","v":{"v":0,"d":"$0.00"}},{"$f":"'LTC Rev-Exp Region 8'!M$22","v":{"v":0,"d":"$0.00"}},{"$f":"'LTC Rev-Exp Region 8'!N$22","v":{"v":0,"d":"$0.00"}},{"$f":"'LTC Rev-Exp Region 8'!O$22","v":{"v":0,"d":"$0.00"}},{"v":0,"d":"$0.00"}]
["LTC",null,null,{"$f":"Jurat!I$1","v":0},{"$f":"Jurat!D$33","v":"00:00:00"},"Q3","2017-09-30","Region 8","Operating Expense","Medical Expense","NF & Hospice","2.7","Ending IBNP for NF & Hospice",{"$f":"'LTC Rev-Exp Region 8'!L$23","v":{"v":0,"d":"$0.00"}},{"$f":"'LTC Rev-Exp Region 8'!M$23","v":{"v":0,"d":"$0.00"}},{"$f":"'LTC Rev-Exp Region 8'!N$23","v":{"v":0,"d":"$0.00"}},{"$f":"'LTC Rev-Exp Region 8'!O$23","v":{"v":0,"d":"$0.00"}},{"v":0,"d":"$0.00"}]
["LTC",null,null,{"$f":"Jurat!I$1","v":0},{"$f":"Jurat!D$33","v":"00:00:00"},"Q3","2017-09-30","Region 8","Operating Expense","Medical Expense","NF & Hospice","2.8","NF & Hospice Subcapitated",{"$f":"'LTC Rev-Exp Region 8'!L$24","v":{"v":0,"d":"$0.00"}},{"$f":"'LTC Rev-Exp Region 8'!M$24","v":{"v":0,"d":"$0.00"}},{"$f":"'LTC Rev-Exp Region 8'!N$24","v":{"v":0,"d":"$0.00"}},{"$f":"'LTC Rev-Exp Region 8'!O$24","v":{"v":0,"d":"$0.00"}},{"v":0,"d":"$0.00"}]
["LTC",null,null,{"$f":"Jurat!I$1","v":0},{"$f":"Jurat!D$33","v":"00:00:00"},"Q3","2017-09-30","Region 8","Operating Expense","Medical Expense","NF & Hospice","2.9","NF & Hospice Settlements",{"$f":"'LTC Rev-Exp Region 8'!L$25","v":{"v":0,"d":"$0.00"}},{"$f":"'LTC Rev-Exp Region 8'!M$25","v":{"v":0,"d":"$0.00"}},{"$f":"'LTC Rev-Exp Region 8'!N$25","v":{"v":0,"d":"$0.00"}},{"$f":"'LTC Rev-Exp Region 8'!O$25","v":{"v":0,"d":"$0.00"}},{"v":0,"d":"$0.00"}]
["LTC",null,null,{"$f":"Jurat!I$1","v":0},{"$f":"Jurat!D$33","v":"00:00:00"},"Q3","2017-09-30","Region 8","Operating Expense","Medical Expense","LTC Services","2.11","Assisted Living FFS",{"$f":"'LTC Rev-Exp Region 8'!L$27","v":{"v":0,"d":"$0.00"}},{"$f":"'LTC Rev-Exp Region 8'!M$27","v":{"v":0,"d":"$0.00"}},{"$f":"'LTC Rev-Exp Region 8'!N$27","v":{"v":0,"d":"$0.00"}},{"$f":"'LTC Rev-Exp Region 8'!O$27","v":{"v":0,"d":"$0.00"}},{"v":0,"d":"$0.00"}]
["LTC",null,null,{"$f":"Jurat!I$1","v":0},{"$f":"Jurat!D$33","v":"00:00:00"},"Q3","2017-09-30","Region 8","Operating Expense","Medical Expense","LTC Services","2.12","Home Health FFS",{"$f":"'LTC Rev-Exp Region 8'!L$28","v":{"v":0,"d":"$0.00"}},{"$f":"'LTC Rev-Exp Region 8'!M$28","v":{"v":0,"d":"$0.00"}},{"$f":"'LTC Rev-Exp Region 8'!N$28","v":{"v":0,"d":"$0.00"}},{"$f":"'LTC Rev-Exp Region 8'!O$28","v":{"v":0,"d":"$0.00"}},{"v":0,"d":"$0.00"}]
["LTC",null,null,{"$f":"Jurat!I$1","v":0},{"$f":"Jurat!D$33","v":"00:00:00"},"Q3","2017-09-30","Region 8","Operating Expense","Medical Expense","LTC Services","2.13","Medical Equipment/Supplies FFS",{"$f":"'LTC Rev-Exp Region 8'!L$29","v":{"v":0,"d":"$0.00"}},{"$f":"'LTC Rev-Exp Region 8'!M$29","v":{"v":0,"d":"$0.00"}},{"$f":"'LTC Rev-Exp Region 8'!N$29","v":{"v":0,"d":"$0.00"}},{"$f":"'LTC Rev-Exp Region 8'!O$29","v":{"v":0,"d":"$0.00"}},{"v":0,"d":"$0.00"}]
["LTC",null,null,{"$f":"Jurat!I$1","v":0},{"$f":"Jurat!D$33","v":"00:00:00"},"Q3","2017-09-30","Region 8","Operating Expense","Medical Expense","LTC Services","2.14","Therapy FFS",{"$f":"'LTC Rev-Exp Region 8'!L$30","v":{"v":0,"d":"$0.00"}},{"$f":"'LTC Rev-Exp Region 8'!M$30","v":{"v":0,"d":"$0.00"}},{"$f":"'LTC Rev-Exp Region 8'!N$30","v":{"v":0,"d":"$0.00"}},{"$f":"'LTC Rev-Exp Region 8'!O$30","v":{"v":0,"d":"$0.00"}},{"v":0,"d":"$0.00"}]
["LTC",null,null,{"$f":"Jurat!I$1","v":0},{"$f":"Jurat!D$33","v":"00:00:00"},"Q3","2017-09-30","Region 8","Operating Expense","Medical Expense","LTC Services","2.15","Transportation FFS",{"$f":"'LTC Rev-Exp Region 8'!L$31","v":{"v":0,"d":"$0.00"}},{"$f":"'LTC Rev-Exp Region 8'!M$31","v":{"v":0,"d":"$0.00"}},{"$f":"'LTC Rev-Exp Region 8'!N$31","v":{"v":0,"d":"$0.00"}},{"$f":"'LTC Rev-Exp Region 8'!O$31","v":{"v":0,"d":"$0.00"}},{"v":0,"d":"$0.00"}]
["LTC",null,null,{"$f":"Jurat!I$1","v":0},{"$f":"Jurat!D$33","v":"00:00:00"},"Q3","2017-09-30","Region 8","Operating Expense","Medical Expense","LTC Services","2.16","Case Management FFS (Plan Provided)",{"$f":"'LTC Rev-Exp Region 8'!L$32","v":{"v":0,"d":"$0.00"}},{"$f":"'LTC Rev-Exp Region 8'!M$32","v":{"v":0,"d":"$0.00"}},{"$f":"'LTC Rev-Exp Region 8'!N$32","v":{"v":0,"d":"$0.00"}},{"$f":"'LTC Rev-Exp Region 8'!O$32","v":{"v":0,"d":"$0.00"}},{"v":0,"d":"$0.00"}]
["LTC",null,null,{"$f":"Jurat!I$1","v":0},{"$f":"Jurat!D$33","v":"00:00:00"},"Q3","2017-09-30","Region 8","Operating Expense","Medical Expense","LTC Services","2.17","Case Management FF (Non-Plan Provided)",{"$f":"'LTC Rev-Exp Region 8'!L$33","v":{"v":0,"d":"$0.00"}},{"$f":"'LTC Rev-Exp Region 8'!M$33","v":{"v":0,"d":"$0.00"}},{"$f":"'LTC Rev-Exp Region 8'!N$33","v":{"v":0,"d":"$0.00"}},{"$f":"'LTC Rev-Exp Region 8'!O$33","v":{"v":0,"d":"$0.00"}},{"v":0,"d":"$0.00"}]
["LTC",null,null,{"$f":"Jurat!I$1","v":0},{"$f":"Jurat!D$33","v":"00:00:00"},"Q3","2017-09-30","Region 8","Operating Expense","Medical Expense","LTC Services","2.18","HCBS FFS",{"$f":"'LTC Rev-Exp Region 8'!L$34","v":{"v":0,"d":"$0.00"}},{"$f":"'LTC Rev-Exp Region 8'!M$34","v":{"v":0,"d":"$0.00"}},{"$f":"'LTC Rev-Exp Region 8'!N$34","v":{"v":0,"d":"$0.00"}},{"$f":"'LTC Rev-Exp Region 8'!O$34","v":{"v":0,"d":"$0.00"}},{"v":0,"d":"$0.00"}]
["LTC",null,null,{"$f":"Jurat!I$1","v":0},{"$f":"Jurat!D$33","v":"00:00:00"},"Q3","2017-09-30","Region 8","Operating Expense","Medical Expense","LTC Services","2.19","Subcapitated LTC Services",{"$f":"'LTC Rev-Exp Region 8'!L$35","v":{"v":0,"d":"$0.00"}},{"$f":"'LTC Rev-Exp Region 8'!M$35","v":{"v":0,"d":"$0.00"}},{"$f":"'LTC Rev-Exp Region 8'!N$35","v":{"v":0,"d":"$0.00"}},{"$f":"'LTC Rev-Exp Region 8'!O$35","v":{"v":0,"d":"$0.00"}},{"v":0,"d":"$0.00"}]
["LTC",null,null,{"$f":"Jurat!I$1","v":0},{"$f":"Jurat!D$33","v":"00:00:00"},"Q3","2017-09-30","Region 8","Operating Expense","Medical Expense","LTC Services","2.20","Ending IBNP for Long Term Care Services",{"$f":"'LTC Rev-Exp Region 8'!L$36","v":{"v":0,"d":"$0.00"}},{"$f":"'LTC Rev-Exp Region 8'!M$36","v":{"v":0,"d":"$0.00"}},{"$f":"'LTC Rev-Exp Region 8'!N$36","v":{"v":0,"d":"$0.00"}},{"$f":"'LTC Rev-Exp Region 8'!O$36","v":{"v":0,"d":"$0.00"}},{"v":0,"d":"$0.00"}]
["LTC",null,null,{"$f":"Jurat!I$1","v":0},{"$f":"Jurat!D$33","v":"00:00:00"},"Q3","2017-09-30","Region 8","Operating Expense","Medical Expense","LTC Services","2.21","LTC Services Settlements",{"$f":"'LTC Rev-Exp Region 8'!L$37","v":{"v":0,"d":"$0.00"}},{"$f":"'LTC Rev-Exp Region 8'!M$37","v":{"v":0,"d":"$0.00"}},{"$f":"'LTC Rev-Exp Region 8'!N$37","v":{"v":0,"d":"$0.00"}},{"$f":"'LTC Rev-Exp Region 8'!O$37","v":{"v":0,"d":"$0.00"}},{"v":0,"d":"$0.00"}]
["LTC",null,null,{"$f":"Jurat!I$1","v":0},{"$f":"Jurat!D$33","v":"00:00:00"},"Q3","2017-09-30","Region 8","Operating Expense","Medical Expense","Expanded Benefits","3.1","Expanded Benefits FFS",{"$f":"'LTC Rev-Exp Region 8'!L$39","v":{"v":0,"d":"$0.00"}},{"$f":"'LTC Rev-Exp Region 8'!M$39","v":{"v":0,"d":"$0.00"}},{"$f":"'LTC Rev-Exp Region 8'!N$39","v":{"v":0,"d":"$0.00"}},{"$f":"'LTC Rev-Exp Region 8'!O$39","v":{"v":0,"d":"$0.00"}},{"v":0,"d":"$0.00"}]
["LTC",null,null,{"$f":"Jurat!I$1","v":0},{"$f":"Jurat!D$33","v":"00:00:00"},"Q3","2017-09-30","Region 8","Operating Expense","Medical Expense","Expanded Benefits","3.2","Expanded Benefits Subcapitation",{"$f":"'LTC Rev-Exp Region 8'!L$40","v":{"v":0,"d":"$0.00"}},{"$f":"'LTC Rev-Exp Region 8'!M$40","v":{"v":0,"d":"$0.00"}},{"$f":"'LTC Rev-Exp Region 8'!N$40","v":{"v":0,"d":"$0.00"}},{"$f":"'LTC Rev-Exp Region 8'!O$40","v":{"v":0,"d":"$0.00"}},{"v":0,"d":"$0.00"}]
["LTC",null,null,{"$f":"Jurat!I$1","v":0},{"$f":"Jurat!D$33","v":"00:00:00"},"Q3","2017-09-30","Region 8","Operating Expense","Medical Expense","Expanded Benefits","3.3","Ending IBNP for Expanded Benefits",{"$f":"'LTC Rev-Exp Region 8'!L$41","v":{"v":0,"d":"$0.00"}},{"$f":"'LTC Rev-Exp Region 8'!M$41","v":{"v":0,"d":"$0.00"}},{"$f":"'LTC Rev-Exp Region 8'!N$41","v":{"v":0,"d":"$0.00"}},{"$f":"'LTC Rev-Exp Region 8'!O$41","v":{"v":0,"d":"$0.00"}},{"v":0,"d":"$0.00"}]
["LTC",null,null,{"$f":"Jurat!I$1","v":0},{"$f":"Jurat!D$33","v":"00:00:00"},"Q3","2017-09-30","Region 8","Operating Expense","Medical Expense","Expanded Benefits","3.4","Expanded Benefits Settlements",{"$f":"'LTC Rev-Exp Region 8'!L$42","v":{"v":0,"d":"$0.00"}},{"$f":"'LTC Rev-Exp Region 8'!M$42","v":{"v":0,"d":"$0.00"}},{"$f":"'LTC Rev-Exp Region 8'!N$42","v":{"v":0,"d":"$0.00"}},{"$f":"'LTC Rev-Exp Region 8'!O$42","v":{"v":0,"d":"$0.00"}},{"v":0,"d":"$0.00"}]
["LTC",null,null,{"$f":"Jurat!I$1","v":0},{"$f":"Jurat!D$33","v":"00:00:00"},"Q3","2017-09-30","Region 8","Operating Expense","Medical Expense","Other Medical","4.5","TPL & Fraud/Abuse Recoveries",{"$f":"'LTC Rev-Exp Region 8'!L$48","v":{"v":0,"d":"$0.00"}},{"$f":"'LTC Rev-Exp Region 8'!M$48","v":{"v":0,"d":"$0.00"}},{"$f":"'LTC Rev-Exp Region 8'!N$48","v":{"v":0,"d":"$0.00"}},{"$f":"'LTC Rev-Exp Region 8'!O$48","v":{"v":0,"d":"$0.00"}},{"v":0,"d":"$0.00"}]
["LTC",null,null,{"$f":"Jurat!I$1","v":0},{"$f":"Jurat!D$33","v":"00:00:00"},"Q3","2017-09-30","Region 8","Operating Expense","Medical Expense","Other Medical","4.6.1","Premium Deficiency Reserve",{"$f":"'LTC Rev-Exp Region 8'!L$49","v":{"v":0,"d":"$0.00"}},{"$f":"'LTC Rev-Exp Region 8'!M$49","v":{"v":0,"d":"$0.00"}},{"$f":"'LTC Rev-Exp Region 8'!N$49","v":{"v":0,"d":"$0.00"}},{"$f":"'LTC Rev-Exp Region 8'!O$49","v":{"v":0,"d":"$0.00"}},{"v":0,"d":"$0.00"}]
["LTC",null,null,{"$f":"Jurat!I$1","v":0},{"$f":"Jurat!D$33","v":"00:00:00"},"Q3","2017-09-30","Region 8","Operating Expense","Medical Expense","Other Medical","4.8","Reinsurance Premiums",{"$f":"'LTC Rev-Exp Region 8'!L$51","v":{"v":0,"d":"$0.00"}},{"$f":"'LTC Rev-Exp Region 8'!M$51","v":{"v":0,"d":"$0.00"}},{"$f":"'LTC Rev-Exp Region 8'!N$51","v":{"v":0,"d":"$0.00"}},{"$f":"'LTC Rev-Exp Region 8'!O$51","v":{"v":0,"d":"$0.00"}},{"v":0,"d":"$0.00"}]
["LTC",null,null,{"$f":"Jurat!I$1","v":0},{"$f":"Jurat!D$33","v":"00:00:00"},"Q3","2017-09-30","Region 8","Operating Expense","Medical Expense","Other Medical","4.9","Reinsurance Recoveries",{"$f":"'LTC Rev-Exp Region 8'!L$52","v":{"v":0,"d":"$0.00"}},{"$f":"'LTC Rev-Exp Region 8'!M$52","v":{"v":0,"d":"$0.00"}},{"$f":"'LTC Rev-Exp Region 8'!N$52","v":{"v":0,"d":"$0.00"}},{"$f":"'LTC Rev-Exp Region 8'!O$52","v":{"v":0,"d":"$0.00"}},{"v":0,"d":"$0.00"}]
["LTC",null,null,{"$f":"Jurat!I$1","v":0},{"$f":"Jurat!D$33","v":"00:00:00"},"Q3","2017-09-30","Region 8","Operating Expense","Administrative Expense","Administrative","5.1","Salaries & Benefits",{"$f":"'LTC Rev-Exp Region 8'!L$57","v":{"v":0,"d":"$0.00"}},{"$f":"'LTC Rev-Exp Region 8'!M$57","v":{"v":0,"d":"$0.00"}},{"$f":"'LTC Rev-Exp Region 8'!N$57","v":{"v":0,"d":"$0.00"}},{"$f":"'LTC Rev-Exp Region 8'!O$57","v":{"v":0,"d":"$0.00"}},{"v":0,"d":"$0.00"}]
["LTC",null,null,{"$f":"Jurat!I$1","v":0},{"$f":"Jurat!D$33","v":"00:00:00"},"Q3","2017-09-30","Region 8","Operating Expense","Administrative Expense","Administrative","5.2","Administrative Services",{"$f":"'LTC Rev-Exp Region 8'!L$58","v":{"v":0,"d":"$0.00"}},{"$f":"'LTC Rev-Exp Region 8'!M$58","v":{"v":0,"d":"$0.00"}},{"$f":"'LTC Rev-Exp Region 8'!N$58","v":{"v":0,"d":"$0.00"}},{"$f":"'LTC Rev-Exp Region 8'!O$58","v":{"v":0,"d":"$0.00"}},{"v":0,"d":"$0.00"}]
["LTC",null,null,{"$f":"Jurat!I$1","v":0},{"$f":"Jurat!D$33","v":"00:00:00"},"Q3","2017-09-30","Region 8","Operating Expense","Administrative Expense","Administrative","5.3","Information Systems",{"$f":"'LTC Rev-Exp Region 8'!L$59","v":{"v":0,"d":"$0.00"}},{"$f":"'LTC Rev-Exp Region 8'!M$59","v":{"v":0,"d":"$0.00"}},{"$f":"'LTC Rev-Exp Region 8'!N$59","v":{"v":0,"d":"$0.00"}},{"$f":"'LTC Rev-Exp Region 8'!O$59","v":{"v":0,"d":"$0.00"}},{"v":0,"d":"$0.00"}]
["LTC",null,null,{"$f":"Jurat!I$1","v":0},{"$f":"Jurat!D$33","v":"00:00:00"},"Q3","2017-09-30","Region 8","Operating Expense","Administrative Expense","Administrative","5.4","Marketing Expenses",{"$f":"'LTC Rev-Exp Region 8'!L$60","v":{"v":0,"d":"$0.00"}},{"$f":"'LTC Rev-Exp Region 8'!M$60","v":{"v":0,"d":"$0.00"}},{"$f":"'LTC Rev-Exp Region 8'!N$60","v":{"v":0,"d":"$0.00"}},{"$f":"'LTC Rev-Exp Region 8'!O$60","v":{"v":0,"d":"$0.00"}},{"v":0,"d":"$0.00"}]
["LTC",null,null,{"$f":"Jurat!I$1","v":0},{"$f":"Jurat!D$33","v":"00:00:00"},"Q3","2017-09-30","Region 8","Operating Expense","Administrative Expense","Administrative","5.5","General  Administration",{"$f":"'LTC Rev-Exp Region 8'!L$61","v":{"v":0,"d":"$0.00"}},{"$f":"'LTC Rev-Exp Region 8'!M$61","v":{"v":0,"d":"$0.00"}},{"$f":"'LTC Rev-Exp Region 8'!N$61","v":{"v":0,"d":"$0.00"}},{"$f":"'LTC Rev-Exp Region 8'!O$61","v":{"v":0,"d":"$0.00"}},{"v":0,"d":"$0.00"}]
["LTC",null,null,{"$f":"Jurat!I$1","v":0},{"$f":"Jurat!D$33","v":"00:00:00"},"Q3","2017-09-30","Region 8","Operating Expense","Administrative Expense","Administrative","5.6","Compliance/Regulatory",{"$f":"'LTC Rev-Exp Region 8'!L$62","v":{"v":0,"d":"$0.00"}},{"$f":"'LTC Rev-Exp Region 8'!M$62","v":{"v":0,"d":"$0.00"}},{"$f":"'LTC Rev-Exp Region 8'!N$62","v":{"v":0,"d":"$0.00"}},{"$f":"'LTC Rev-Exp Region 8'!O$62","v":{"v":0,"d":"$0.00"}},{"v":0,"d":"$0.00"}]
["LTC",null,null,{"$f":"Jurat!I$1","v":0},{"$f":"Jurat!D$33","v":"00:00:00"},"Q3","2017-09-30","Region 8","Operating Expense","Taxes & Fees","Taxes & Fees","6.1","State Premium Tax",{"$f":"'LTC Rev-Exp Region 8'!L$64","v":{"v":0,"d":"$0.00"}},{"v":0,"d":"$0.00"},{"v":0,"d":"$0.00"},{"v":0,"d":"$0.00"},{"v":0,"d":"$0.00"}]
["LTC",null,null,{"$f":"Jurat!I$1","v":0},{"$f":"Jurat!D$33","v":"00:00:00"},"Q3","2017-09-30","Region 8","Operating Expense","Taxes & Fees","Taxes & Fees","6.2","Department of Insurance Assessments",{"$f":"'LTC Rev-Exp Region 8'!L$65","v":{"v":0,"d":"$0.00"}},{"v":0,"d":"$0.00"},{"v":0,"d":"$0.00"},{"v":0,"d":"$0.00"},{"v":0,"d":"$0.00"}]
["LTC",null,null,{"$f":"Jurat!I$1","v":0},{"$f":"Jurat!D$33","v":"00:00:00"},"Q3","2017-09-30","Region 8","Non-Operating Expense","Income Tax Expense","Income Tax Expense","9.0","Income Tax Expense",{"$f":"'LTC Rev-Exp Region 8'!L$72","v":{"v":0,"d":"$0.00"}},{"v":0,"d":"$0.00"},{"v":0,"d":"$0.00"},{"v":0,"d":"$0.00"},{"v":0,"d":"$0.00"}]
["LTC",null,null,{"$f":"Jurat!I$1","v":0},{"$f":"Jurat!D$33","v":"00:00:00"},"Q4","2017-12-31","Region 8","Member Months","Member Months","Member Months",null,"Member Months",{"$f":"'LTC Rev-Exp Region 8'!P$9","v":{"v":0,"d":"$0.00"}},{"$f":"'LTC Rev-Exp Region 8'!Q$9","v":{"v":0,"d":"$0.00"}},{"$f":"'LTC Rev-Exp Region 8'!R$9","v":{"v":0,"d":"$0.00"}},{"$f":"'LTC Rev-Exp Region 8'!S$9","v":{"v":0,"d":"$0.00"}},{"v":0,"d":"$0.00"}]
["LTC",null,null,{"$f":"Jurat!I$1","v":0},{"$f":"Jurat!D$33","v":"00:00:00"},"Q4","2017-12-31","Region 8","Operating Revenue","Capitation","Capitation",1.1,"Capitation",{"$f":"'LTC Rev-Exp Region 8'!P$11","v":{"v":0,"d":"$0.00"}},{"$f":"'LTC Rev-Exp Region 8'!Q$11","v":{"v":0,"d":"$0.00"}},{"$f":"'LTC Rev-Exp Region 8'!R$11","v":{"v":0,"d":"$0.00"}},{"$f":"'LTC Rev-Exp Region 8'!S$11","v":{"v":0,"d":"$0.00"}},{"v":0,"d":"$0.00"}]
["LTC",null,null,{"$f":"Jurat!I$1","v":0},{"$f":"Jurat!D$33","v":"00:00:00"},"Q4","2017-12-31","Region 8","Operating Revenue","Capitation","NH Rate Reconciliation",1.2,"NH Rate Reconciliation",{"$f":"'LTC Rev-Exp Region 8'!P$12","v":{"v":0,"d":"$0.00"}},{"$f":"'LTC Rev-Exp Region 8'!Q$12","v":{"v":0,"d":"$0.00"}},{"$f":"'LTC Rev-Exp Region 8'!R$12","v":{"v":0,"d":"$0.00"}},{"$f":"'LTC Rev-Exp Region 8'!S$12","v":{"v":0,"d":"$0.00"}},{"v":0,"d":"$0.00"}]
["LTC",null,null,{"$f":"Jurat!I$1","v":0},{"$f":"Jurat!D$33","v":"00:00:00"},"Q4","2017-12-31","Region 8","Operating Revenue","Other Revenue","Other Revenue",1.3,"Other Revenue",{"$f":"'LTC Rev-Exp Region 8'!P$13","v":{"v":0,"d":"$0.00"}},{"$f":"'LTC Rev-Exp Region 8'!Q$13","v":{"v":0,"d":"$0.00"}},{"$f":"'LTC Rev-Exp Region 8'!R$13","v":{"v":0,"d":"$0.00"}},{"$f":"'LTC Rev-Exp Region 8'!S$13","v":{"v":0,"d":"$0.00"}},{"v":0,"d":"$0.00"}]
["LTC",null,null,{"$f":"Jurat!I$1","v":0},{"$f":"Jurat!D$33","v":"00:00:00"},"Q4","2017-12-31","Region 8","Operating Expense","Medical Expense","NF & Hospice","2.1","Nursing Facility Days (Medicaid)",{"$f":"'LTC Rev-Exp Region 8'!P$17","v":{"v":0,"d":"$0.00"}},{"$f":"'LTC Rev-Exp Region 8'!Q$17","v":{"v":0,"d":"$0.00"}},{"$f":"'LTC Rev-Exp Region 8'!R$17","v":{"v":0,"d":"$0.00"}},{"$f":"'LTC Rev-Exp Region 8'!S$17","v":{"v":0,"d":"$0.00"}},{"v":0,"d":"$0.00"}]
["LTC",null,null,{"$f":"Jurat!I$1","v":0},{"$f":"Jurat!D$33","v":"00:00:00"},"Q4","2017-12-31","Region 8","Operating Expense","Medical Expense","NF & Hospice","2.2","Nursing Facility Days (Crossover)",{"$f":"'LTC Rev-Exp Region 8'!P$18","v":{"v":0,"d":"$0.00"}},{"$f":"'LTC Rev-Exp Region 8'!Q$18","v":{"v":0,"d":"$0.00"}},{"$f":"'LTC Rev-Exp Region 8'!R$18","v":{"v":0,"d":"$0.00"}},{"$f":"'LTC Rev-Exp Region 8'!S$18","v":{"v":0,"d":"$0.00"}},{"v":0,"d":"$0.00"}]
["LTC",null,null,{"$f":"Jurat!I$1","v":0},{"$f":"Jurat!D$33","v":"00:00:00"},"Q4","2017-12-31","Region 8","Operating Expense","Medical Expense","NF & Hospice","2.3","Nursing Facility FFS (Medicaid)",{"$f":"'LTC Rev-Exp Region 8'!P$19","v":{"v":0,"d":"$0.00"}},{"$f":"'LTC Rev-Exp Region 8'!Q$19","v":{"v":0,"d":"$0.00"}},{"$f":"'LTC Rev-Exp Region 8'!R$19","v":{"v":0,"d":"$0.00"}},{"$f":"'LTC Rev-Exp Region 8'!S$19","v":{"v":0,"d":"$0.00"}},{"v":0,"d":"$0.00"}]
["LTC",null,null,{"$f":"Jurat!I$1","v":0},{"$f":"Jurat!D$33","v":"00:00:00"},"Q4","2017-12-31","Region 8","Operating Expense","Medical Expense","NF & Hospice","2.4","Nursing Facility FFS (Crossover)",{"$f":"'LTC Rev-Exp Region 8'!P$20","v":{"v":0,"d":"$0.00"}},{"$f":"'LTC Rev-Exp Region 8'!Q$20","v":{"v":0,"d":"$0.00"}},{"$f":"'LTC Rev-Exp Region 8'!R$20","v":{"v":0,"d":"$0.00"}},{"$f":"'LTC Rev-Exp Region 8'!S$20","v":{"v":0,"d":"$0.00"}},{"v":0,"d":"$0.00"}]
["LTC",null,null,{"$f":"Jurat!I$1","v":0},{"$f":"Jurat!D$33","v":"00:00:00"},"Q4","2017-12-31","Region 8","Operating Expense","Medical Expense","NF & Hospice","2.5","Hospice Days",{"$f":"'LTC Rev-Exp Region 8'!P$21","v":{"v":0,"d":"$0.00"}},{"$f":"'LTC Rev-Exp Region 8'!Q$21","v":{"v":0,"d":"$0.00"}},{"$f":"'LTC Rev-Exp Region 8'!R$21","v":{"v":0,"d":"$0.00"}},{"$f":"'LTC Rev-Exp Region 8'!S$21","v":{"v":0,"d":"$0.00"}},{"v":0,"d":"$0.00"}]
["LTC",null,null,{"$f":"Jurat!I$1","v":0},{"$f":"Jurat!D$33","v":"00:00:00"},"Q4","2017-12-31","Region 8","Operating Expense","Medical Expense","NF & Hospice","2.6","Hospice FFS",{"$f":"'LTC Rev-Exp Region 8'!P$22","v":{"v":0,"d":"$0.00"}},{"$f":"'LTC Rev-Exp Region 8'!Q$22","v":{"v":0,"d":"$0.00"}},{"$f":"'LTC Rev-Exp Region 8'!R$22","v":{"v":0,"d":"$0.00"}},{"$f":"'LTC Rev-Exp Region 8'!S$22","v":{"v":0,"d":"$0.00"}},{"v":0,"d":"$0.00"}]
["LTC",null,null,{"$f":"Jurat!I$1","v":0},{"$f":"Jurat!D$33","v":"00:00:00"},"Q4","2017-12-31","Region 8","Operating Expense","Medical Expense","NF & Hospice","2.7","Ending IBNP for NF & Hospice",{"$f":"'LTC Rev-Exp Region 8'!P$23","v":{"v":0,"d":"$0.00"}},{"$f":"'LTC Rev-Exp Region 8'!Q$23","v":{"v":0,"d":"$0.00"}},{"$f":"'LTC Rev-Exp Region 8'!R$23","v":{"v":0,"d":"$0.00"}},{"$f":"'LTC Rev-Exp Region 8'!S$23","v":{"v":0,"d":"$0.00"}},{"v":0,"d":"$0.00"}]
["LTC",null,null,{"$f":"Jurat!I$1","v":0},{"$f":"Jurat!D$33","v":"00:00:00"},"Q4","2017-12-31","Region 8","Operating Expense","Medical Expense","NF & Hospice","2.8","NF & Hospice Subcapitated",{"$f":"'LTC Rev-Exp Region 8'!P$24","v":{"v":0,"d":"$0.00"}},{"$f":"'LTC Rev-Exp Region 8'!Q$24","v":{"v":0,"d":"$0.00"}},{"$f":"'LTC Rev-Exp Region 8'!R$24","v":{"v":0,"d":"$0.00"}},{"$f":"'LTC Rev-Exp Region 8'!S$24","v":{"v":0,"d":"$0.00"}},{"v":0,"d":"$0.00"}]
["LTC",null,null,{"$f":"Jurat!I$1","v":0},{"$f":"Jurat!D$33","v":"00:00:00"},"Q4","2017-12-31","Region 8","Operating Expense","Medical Expense","NF & Hospice","2.9","NF & Hospice Settlements",{"$f":"'LTC Rev-Exp Region 8'!P$25","v":{"v":0,"d":"$0.00"}},{"$f":"'LTC Rev-Exp Region 8'!Q$25","v":{"v":0,"d":"$0.00"}},{"$f":"'LTC Rev-Exp Region 8'!R$25","v":{"v":0,"d":"$0.00"}},{"$f":"'LTC Rev-Exp Region 8'!S$25","v":{"v":0,"d":"$0.00"}},{"v":0,"d":"$0.00"}]
["LTC",null,null,{"$f":"Jurat!I$1","v":0},{"$f":"Jurat!D$33","v":"00:00:00"},"Q4","2017-12-31","Region 8","Operating Expense","Medical Expense","LTC Services","2.11","Assisted Living FFS",{"$f":"'LTC Rev-Exp Region 8'!P$27","v":{"v":0,"d":"$0.00"}},{"$f":"'LTC Rev-Exp Region 8'!Q$27","v":{"v":0,"d":"$0.00"}},{"$f":"'LTC Rev-Exp Region 8'!R$27","v":{"v":0,"d":"$0.00"}},{"$f":"'LTC Rev-Exp Region 8'!S$27","v":{"v":0,"d":"$0.00"}},{"v":0,"d":"$0.00"}]
["LTC",null,null,{"$f":"Jurat!I$1","v":0},{"$f":"Jurat!D$33","v":"00:00:00"},"Q4","2017-12-31","Region 8","Operating Expense","Medical Expense","LTC Services","2.12","Home Health FFS",{"$f":"'LTC Rev-Exp Region 8'!P$28","v":{"v":0,"d":"$0.00"}},{"$f":"'LTC Rev-Exp Region 8'!Q$28","v":{"v":0,"d":"$0.00"}},{"$f":"'LTC Rev-Exp Region 8'!R$28","v":{"v":0,"d":"$0.00"}},{"$f":"'LTC Rev-Exp Region 8'!S$28","v":{"v":0,"d":"$0.00"}},{"v":0,"d":"$0.00"}]
["LTC",null,null,{"$f":"Jurat!I$1","v":0},{"$f":"Jurat!D$33","v":"00:00:00"},"Q4","2017-12-31","Region 8","Operating Expense","Medical Expense","LTC Services","2.13","Medical Equipment/Supplies FFS",{"$f":"'LTC Rev-Exp Region 8'!P$29","v":{"v":0,"d":"$0.00"}},{"$f":"'LTC Rev-Exp Region 8'!Q$29","v":{"v":0,"d":"$0.00"}},{"$f":"'LTC Rev-Exp Region 8'!R$29","v":{"v":0,"d":"$0.00"}},{"$f":"'LTC Rev-Exp Region 8'!S$29","v":{"v":0,"d":"$0.00"}},{"v":0,"d":"$0.00"}]
["LTC",null,null,{"$f":"Jurat!I$1","v":0},{"$f":"Jurat!D$33","v":"00:00:00"},"Q4","2017-12-31","Region 8","Operating Expense","Medical Expense","LTC Services","2.14","Therapy FFS",{"$f":"'LTC Rev-Exp Region 8'!P$30","v":{"v":0,"d":"$0.00"}},{"$f":"'LTC Rev-Exp Region 8'!Q$30","v":{"v":0,"d":"$0.00"}},{"$f":"'LTC Rev-Exp Region 8'!R$30","v":{"v":0,"d":"$0.00"}},{"$f":"'LTC Rev-Exp Region 8'!S$30","v":{"v":0,"d":"$0.00"}},{"v":0,"d":"$0.00"}]
["LTC",null,null,{"$f":"Jurat!I$1","v":0},{"$f":"Jurat!D$33","v":"00:00:00"},"Q4","2017-12-31","Region 8","Operating Expense","Medical Expense","LTC Services","2.15","Transportation FFS",{"$f":"'LTC Rev-Exp Region 8'!P$31","v":{"v":0,"d":"$0.00"}},{"$f":"'LTC Rev-Exp Region 8'!Q$31","v":{"v":0,"d":"$0.00"}},{"$f":"'LTC Rev-Exp Region 8'!R$31","v":{"v":0,"d":"$0.00"}},{"$f":"'LTC Rev-Exp Region 8'!S$31","v":{"v":0,"d":"$0.00"}},{"v":0,"d":"$0.00"}]
["LTC",null,null,{"$f":"Jurat!I$1","v":0},{"$f":"Jurat!D$33","v":"00:00:00"},"Q4","2017-12-31","Region 8","Operating Expense","Medical Expense","LTC Services","2.16","Case Management FFS (Plan Provided)",{"$f":"'LTC Rev-Exp Region 8'!P$32","v":{"v":0,"d":"$0.00"}},{"$f":"'LTC Rev-Exp Region 8'!Q$32","v":{"v":0,"d":"$0.00"}},{"$f":"'LTC Rev-Exp Region 8'!R$32","v":{"v":0,"d":"$0.00"}},{"$f":"'LTC Rev-Exp Region 8'!S$32","v":{"v":0,"d":"$0.00"}},{"v":0,"d":"$0.00"}]
["LTC",null,null,{"$f":"Jurat!I$1","v":0},{"$f":"Jurat!D$33","v":"00:00:00"},"Q4","2017-12-31","Region 8","Operating Expense","Medical Expense","LTC Services","2.17","Case Management FF (Non-Plan Provided)",{"$f":"'LTC Rev-Exp Region 8'!P$33","v":{"v":0,"d":"$0.00"}},{"$f":"'LTC Rev-Exp Region 8'!Q$33","v":{"v":0,"d":"$0.00"}},{"$f":"'LTC Rev-Exp Region 8'!R$33","v":{"v":0,"d":"$0.00"}},{"$f":"'LTC Rev-Exp Region 8'!S$33","v":{"v":0,"d":"$0.00"}},{"v":0,"d":"$0.00"}]
["LTC",null,null,{"$f":"Jurat!I$1","v":0},{"$f":"Jurat!D$33","v":"00:00:00"},"Q4","2017-12-31","Region 8","Operating Expense","Medical Expense","LTC Services","2.18","HCBS FFS",{"$f":"'LTC Rev-Exp Region 8'!P$34","v":{"v":0,"d":"$0.00"}},{"$f":"'LTC Rev-Exp Region 8'!Q$34","v":{"v":0,"d":"$0.00"}},{"$f":"'LTC Rev-Exp Region 8'!R$34","v":{"v":0,"d":"$0.00"}},{"$f":"'LTC Rev-Exp Region 8'!S$34","v":{"v":0,"d":"$0.00"}},{"v":0,"d":"$0.00"}]
["LTC",null,null,{"$f":"Jurat!I$1","v":0},{"$f":"Jurat!D$33","v":"00:00:00"},"Q4","2017-12-31","Region 8","Operating Expense","Medical Expense","LTC Services","2.19","Subcapitated LTC Services",{"$f":"'LTC Rev-Exp Region 8'!P$35","v":{"v":0,"d":"$0.00"}},{"$f":"'LTC Rev-Exp Region 8'!Q$35","v":{"v":0,"d":"$0.00"}},{"$f":"'LTC Rev-Exp Region 8'!R$35","v":{"v":0,"d":"$0.00"}},{"$f":"'LTC Rev-Exp Region 8'!S$35","v":{"v":0,"d":"$0.00"}},{"v":0,"d":"$0.00"}]
["LTC",null,null,{"$f":"Jurat!I$1","v":0},{"$f":"Jurat!D$33","v":"00:00:00"},"Q4","2017-12-31","Region 8","Operating Expense","Medical Expense","LTC Services","2.20","Ending IBNP for Long Term Care Services",{"$f":"'LTC Rev-Exp Region 8'!P$36","v":{"v":0,"d":"$0.00"}},{"$f":"'LTC Rev-Exp Region 8'!Q$36","v":{"v":0,"d":"$0.00"}},{"$f":"'LTC Rev-Exp Region 8'!R$36","v":{"v":0,"d":"$0.00"}},{"$f":"'LTC Rev-Exp Region 8'!S$36","v":{"v":0,"d":"$0.00"}},{"v":0,"d":"$0.00"}]
["LTC",null,null,{"$f":"Jurat!I$1","v":0},{"$f":"Jurat!D$33","v":"00:00:00"},"Q4","2017-12-31","Region 8","Operating Expense","Medical Expense","LTC Services","2.21","LTC Services Settlements",{"$f":"'LTC Rev-Exp Region 8'!P$37","v":{"v":0,"d":"$0.00"}},{"$f":"'LTC Rev-Exp Region 8'!Q$37","v":{"v":0,"d":"$0.00"}},{"$f":"'LTC Rev-Exp Region 8'!R$37","v":{"v":0,"d":"$0.00"}},{"$f":"'LTC Rev-Exp Region 8'!S$37","v":{"v":0,"d":"$0.00"}},{"v":0,"d":"$0.00"}]
["LTC",null,null,{"$f":"Jurat!I$1","v":0},{"$f":"Jurat!D$33","v":"00:00:00"},"Q4","2017-12-31","Region 8","Operating Expense","Medical Expense","Expanded Benefits","3.1","Expanded Benefits FFS",{"$f":"'LTC Rev-Exp Region 8'!P$39","v":{"v":0,"d":"$0.00"}},{"$f":"'LTC Rev-Exp Region 8'!Q$39","v":{"v":0,"d":"$0.00"}},{"$f":"'LTC Rev-Exp Region 8'!R$39","v":{"v":0,"d":"$0.00"}},{"$f":"'LTC Rev-Exp Region 8'!S$39","v":{"v":0,"d":"$0.00"}},{"v":0,"d":"$0.00"}]
["LTC",null,null,{"$f":"Jurat!I$1","v":0},{"$f":"Jurat!D$33","v":"00:00:00"},"Q4","2017-12-31","Region 8","Operating Expense","Medical Expense","Expanded Benefits","3.2","Expanded Benefits Subcapitation",{"$f":"'LTC Rev-Exp Region 8'!P$40","v":{"v":0,"d":"$0.00"}},{"$f":"'LTC Rev-Exp Region 8'!Q$40","v":{"v":0,"d":"$0.00"}},{"$f":"'LTC Rev-Exp Region 8'!R$40","v":{"v":0,"d":"$0.00"}},{"$f":"'LTC Rev-Exp Region 8'!S$40","v":{"v":0,"d":"$0.00"}},{"v":0,"d":"$0.00"}]
["LTC",null,null,{"$f":"Jurat!I$1","v":0},{"$f":"Jurat!D$33","v":"00:00:00"},"Q4","2017-12-31","Region 8","Operating Expense","Medical Expense","Expanded Benefits","3.3","Ending IBNP for Expanded Benefits",{"$f":"'LTC Rev-Exp Region 8'!P$41","v":{"v":0,"d":"$0.00"}},{"$f":"'LTC Rev-Exp Region 8'!Q$41","v":{"v":0,"d":"$0.00"}},{"$f":"'LTC Rev-Exp Region 8'!R$41","v":{"v":0,"d":"$0.00"}},{"$f":"'LTC Rev-Exp Region 8'!S$41","v":{"v":0,"d":"$0.00"}},{"v":0,"d":"$0.00"}]
["LTC",null,null,{"$f":"Jurat!I$1","v":0},{"$f":"Jurat!D$33","v":"00:00:00"},"Q4","2017-12-31","Region 8","Operating Expense","Medical Expense","Expanded Benefits","3.4","Expanded Benefits Settlements",{"$f":"'LTC Rev-Exp Region 8'!P$42","v":{"v":0,"d":"$0.00"}},{"$f":"'LTC Rev-Exp Region 8'!Q$42","v":{"v":0,"d":"$0.00"}},{"$f":"'LTC Rev-Exp Region 8'!R$42","v":{"v":0,"d":"$0.00"}},{"$f":"'LTC Rev-Exp Region 8'!S$42","v":{"v":0,"d":"$0.00"}},{"v":0,"d":"$0.00"}]
["LTC",null,null,{"$f":"Jurat!I$1","v":0},{"$f":"Jurat!D$33","v":"00:00:00"},"Q4","2017-12-31","Region 8","Operating Expense","Medical Expense","Other Medical","4.5","TPL & Fraud/Abuse Recoveries",{"$f":"'LTC Rev-Exp Region 8'!P$48","v":{"v":0,"d":"$0.00"}},{"$f":"'LTC Rev-Exp Region 8'!Q$48","v":{"v":0,"d":"$0.00"}},{"$f":"'LTC Rev-Exp Region 8'!R$48","v":{"v":0,"d":"$0.00"}},{"$f":"'LTC Rev-Exp Region 8'!S$48","v":{"v":0,"d":"$0.00"}},{"v":0,"d":"$0.00"}]
["LTC",null,null,{"$f":"Jurat!I$1","v":0},{"$f":"Jurat!D$33","v":"00:00:00"},"Q4","2017-12-31","Region 8","Operating Expense","Medical Expense","Other Medical","4.6.1","Premium Deficiency Reserve",{"$f":"'LTC Rev-Exp Region 8'!P$49","v":{"v":0,"d":"$0.00"}},{"$f":"'LTC Rev-Exp Region 8'!Q$49","v":{"v":0,"d":"$0.00"}},{"$f":"'LTC Rev-Exp Region 8'!R$49","v":{"v":0,"d":"$0.00"}},{"$f":"'LTC Rev-Exp Region 8'!S$49","v":{"v":0,"d":"$0.00"}},{"v":0,"d":"$0.00"}]
["LTC",null,null,{"$f":"Jurat!I$1","v":0},{"$f":"Jurat!D$33","v":"00:00:00"},"Q4","2017-12-31","Region 8","Operating Expense","Medical Expense","Other Medical","4.8","Reinsurance Premiums",{"$f":"'LTC Rev-Exp Region 8'!P$51","v":{"v":0,"d":"$0.00"}},{"$f":"'LTC Rev-Exp Region 8'!Q$51","v":{"v":0,"d":"$0.00"}},{"$f":"'LTC Rev-Exp Region 8'!R$51","v":{"v":0,"d":"$0.00"}},{"$f":"'LTC Rev-Exp Region 8'!S$51","v":{"v":0,"d":"$0.00"}},{"v":0,"d":"$0.00"}]
["LTC",null,null,{"$f":"Jurat!I$1","v":0},{"$f":"Jurat!D$33","v":"00:00:00"},"Q4","2017-12-31","Region 8","Operating Expense","Medical Expense","Other Medical","4.9","Reinsurance Recoveries",{"$f":"'LTC Rev-Exp Region 8'!P$52","v":{"v":0,"d":"$0.00"}},{"$f":"'LTC Rev-Exp Region 8'!Q$52","v":{"v":0,"d":"$0.00"}},{"$f":"'LTC Rev-Exp Region 8'!R$52","v":{"v":0,"d":"$0.00"}},{"$f":"'LTC Rev-Exp Region 8'!S$52","v":{"v":0,"d":"$0.00"}},{"v":0,"d":"$0.00"}]
["LTC",null,null,{"$f":"Jurat!I$1","v":0},{"$f":"Jurat!D$33","v":"00:00:00"},"Q4","2017-12-31","Region 8","Operating Expense","Administrative Expense","Administrative","5.1","Salaries & Benefits",{"$f":"'LTC Rev-Exp Region 8'!P$57","v":{"v":0,"d":"$0.00"}},{"$f":"'LTC Rev-Exp Region 8'!Q$57","v":{"v":0,"d":"$0.00"}},{"$f":"'LTC Rev-Exp Region 8'!R$57","v":{"v":0,"d":"$0.00"}},{"$f":"'LTC Rev-Exp Region 8'!S$57","v":{"v":0,"d":"$0.00"}},{"v":0,"d":"$0.00"}]
["LTC",null,null,{"$f":"Jurat!I$1","v":0},{"$f":"Jurat!D$33","v":"00:00:00"},"Q4","2017-12-31","Region 8","Operating Expense","Administrative Expense","Administrative","5.2","Administrative Services",{"$f":"'LTC Rev-Exp Region 8'!P$58","v":{"v":0,"d":"$0.00"}},{"$f":"'LTC Rev-Exp Region 8'!Q$58","v":{"v":0,"d":"$0.00"}},{"$f":"'LTC Rev-Exp Region 8'!R$58","v":{"v":0,"d":"$0.00"}},{"$f":"'LTC Rev-Exp Region 8'!S$58","v":{"v":0,"d":"$0.00"}},{"v":0,"d":"$0.00"}]
["LTC",null,null,{"$f":"Jurat!I$1","v":0},{"$f":"Jurat!D$33","v":"00:00:00"},"Q4","2017-12-31","Region 8","Operating Expense","Administrative Expense","Administrative","5.3","Information Systems",{"$f":"'LTC Rev-Exp Region 8'!P$59","v":{"v":0,"d":"$0.00"}},{"$f":"'LTC Rev-Exp Region 8'!Q$59","v":{"v":0,"d":"$0.00"}},{"$f":"'LTC Rev-Exp Region 8'!R$59","v":{"v":0,"d":"$0.00"}},{"$f":"'LTC Rev-Exp Region 8'!S$59","v":{"v":0,"d":"$0.00"}},{"v":0,"d":"$0.00"}]
["LTC",null,null,{"$f":"Jurat!I$1","v":0},{"$f":"Jurat!D$33","v":"00:00:00"},"Q4","2017-12-31","Region 8","Operating Expense","Administrative Expense","Administrative","5.4","Marketing Expenses",{"$f":"'LTC Rev-Exp Region 8'!P$60","v":{"v":0,"d":"$0.00"}},{"$f":"'LTC Rev-Exp Region 8'!Q$60","v":{"v":0,"d":"$0.00"}},{"$f":"'LTC Rev-Exp Region 8'!R$60","v":{"v":0,"d":"$0.00"}},{"$f":"'LTC Rev-Exp Region 8'!S$60","v":{"v":0,"d":"$0.00"}},{"v":0,"d":"$0.00"}]
["LTC",null,null,{"$f":"Jurat!I$1","v":0},{"$f":"Jurat!D$33","v":"00:00:00"},"Q4","2017-12-31","Region 8","Operating Expense","Administrative Expense","Administrative","5.5","General  Administration",{"$f":"'LTC Rev-Exp Region 8'!P$61","v":{"v":0,"d":"$0.00"}},{"$f":"'LTC Rev-Exp Region 8'!Q$61","v":{"v":0,"d":"$0.00"}},{"$f":"'LTC Rev-Exp Region 8'!R$61","v":{"v":0,"d":"$0.00"}},{"$f":"'LTC Rev-Exp Region 8'!S$61","v":{"v":0,"d":"$0.00"}},{"v":0,"d":"$0.00"}]
["LTC",null,null,{"$f":"Jurat!I$1","v":0},{"$f":"Jurat!D$33","v":"00:00:00"},"Q4","2017-12-31","Region 8","Operating Expense","Administrative Expense","Administrative","5.6","Compliance/Regulatory",{"$f":"'LTC Rev-Exp Region 8'!P$62","v":{"v":0,"d":"$0.00"}},{"$f":"'LTC Rev-Exp Region 8'!Q$62","v":{"v":0,"d":"$0.00"}},{"$f":"'LTC Rev-Exp Region 8'!R$62","v":{"v":0,"d":"$0.00"}},{"$f":"'LTC Rev-Exp Region 8'!S$62","v":{"v":0,"d":"$0.00"}},{"v":0,"d":"$0.00"}]
["LTC",null,null,{"$f":"Jurat!I$1","v":0},{"$f":"Jurat!D$33","v":"00:00:00"},"Q4","2017-12-31","Region 8","Operating Expense","Taxes & Fees","Taxes & Fees","6.1","State Premium Tax",{"$f":"'LTC Rev-Exp Region 8'!P$64","v":{"v":0,"d":"$0.00"}},{"v":0,"d":"$0.00"},{"v":0,"d":"$0.00"},{"v":0,"d":"$0.00"},{"v":0,"d":"$0.00"}]
["LTC",null,null,{"$f":"Jurat!I$1","v":0},{"$f":"Jurat!D$33","v":"00:00:00"},"Q4","2017-12-31","Region 8","Operating Expense","Taxes & Fees","Taxes & Fees","6.2","Department of Insurance Assessments",{"$f":"'LTC Rev-Exp Region 8'!P$65","v":{"v":0,"d":"$0.00"}},{"v":0,"d":"$0.00"},{"v":0,"d":"$0.00"},{"v":0,"d":"$0.00"},{"v":0,"d":"$0.00"}]
["LTC",null,null,{"$f":"Jurat!I$1","v":0},{"$f":"Jurat!D$33","v":"00:00:00"},"Q4","2017-12-31","Region 8","Non-Operating Expense","Income Tax Expense","Income Tax Expense","9.0","Income Tax Expense",{"$f":"'LTC Rev-Exp Region 8'!P$72","v":{"v":0,"d":"$0.00"}},{"v":0,"d":"$0.00"},{"v":0,"d":"$0.00"},{"v":0,"d":"$0.00"},{"v":0,"d":"$0.00"}]
["LTC",null,null,{"$f":"Jurat!I$1","v":0},{"$f":"Jurat!D$33","v":"00:00:00"},"Q1","2017-03-31","Region 9","Member Months","Member Months","Member Months",null,"Member Months",{"$f":"'LTC Rev-Exp Region 9'!D$9","v":{"v":0,"d":"$0.00"}},{"$f":"'LTC Rev-Exp Region 9'!E$9","v":{"v":0,"d":"$0.00"}},{"$f":"'LTC Rev-Exp Region 9'!F$9","v":{"v":0,"d":"$0.00"}},{"$f":"'LTC Rev-Exp Region 9'!G$9","v":{"v":0,"d":"$0.00"}},{"v":0,"d":"$0.00"}]
["LTC",null,null,{"$f":"Jurat!I$1","v":0},{"$f":"Jurat!D$33","v":"00:00:00"},"Q1","2017-03-31","Region 9","Operating Revenue","Capitation","Capitation",1.1,"Capitation",{"$f":"'LTC Rev-Exp Region 9'!D$11","v":{"v":0,"d":"$0.00"}},{"$f":"'LTC Rev-Exp Region 9'!E$11","v":{"v":0,"d":"$0.00"}},{"$f":"'LTC Rev-Exp Region 9'!F$11","v":{"v":0,"d":"$0.00"}},{"$f":"'LTC Rev-Exp Region 9'!G$11","v":{"v":0,"d":"$0.00"}},{"v":0,"d":"$0.00"}]
["LTC",null,null,{"$f":"Jurat!I$1","v":0},{"$f":"Jurat!D$33","v":"00:00:00"},"Q1","2017-03-31","Region 9","Operating Revenue","Capitation","NH Rate Reconciliation",1.2,"NH Rate Reconciliation",{"$f":"'LTC Rev-Exp Region 9'!D$12","v":{"v":0,"d":"$0.00"}},{"$f":"'LTC Rev-Exp Region 9'!E$12","v":{"v":0,"d":"$0.00"}},{"$f":"'LTC Rev-Exp Region 9'!F$12","v":{"v":0,"d":"$0.00"}},{"$f":"'LTC Rev-Exp Region 9'!G$12","v":{"v":0,"d":"$0.00"}},{"v":0,"d":"$0.00"}]
["LTC",null,null,{"$f":"Jurat!I$1","v":0},{"$f":"Jurat!D$33","v":"00:00:00"},"Q1","2017-03-31","Region 9","Operating Revenue","Other Revenue","Other Revenue",1.3,"Other Revenue",{"$f":"'LTC Rev-Exp Region 9'!D$13","v":{"v":0,"d":"$0.00"}},{"$f":"'LTC Rev-Exp Region 9'!E$13","v":{"v":0,"d":"$0.00"}},{"$f":"'LTC Rev-Exp Region 9'!F$13","v":{"v":0,"d":"$0.00"}},{"$f":"'LTC Rev-Exp Region 9'!G$13","v":{"v":0,"d":"$0.00"}},{"v":0,"d":"$0.00"}]
["LTC",null,null,{"$f":"Jurat!I$1","v":0},{"$f":"Jurat!D$33","v":"00:00:00"},"Q1","2017-03-31","Region 9","Operating Expense","Medical Expense","NF & Hospice","2.1","Nursing Facility Days (Medicaid)",{"$f":"'LTC Rev-Exp Region 9'!D$17","v":{"v":0,"d":"$0.00"}},{"$f":"'LTC Rev-Exp Region 9'!E$17","v":{"v":0,"d":"$0.00"}},{"$f":"'LTC Rev-Exp Region 9'!F$17","v":{"v":0,"d":"$0.00"}},{"$f":"'LTC Rev-Exp Region 9'!G$17","v":{"v":0,"d":"$0.00"}},{"v":0,"d":"$0.00"}]
["LTC",null,null,{"$f":"Jurat!I$1","v":0},{"$f":"Jurat!D$33","v":"00:00:00"},"Q1","2017-03-31","Region 9","Operating Expense","Medical Expense","NF & Hospice","2.2","Nursing Facility Days (Crossover)",{"$f":"'LTC Rev-Exp Region 9'!D$18","v":{"v":0,"d":"$0.00"}},{"$f":"'LTC Rev-Exp Region 9'!E$18","v":{"v":0,"d":"$0.00"}},{"$f":"'LTC Rev-Exp Region 9'!F$18","v":{"v":0,"d":"$0.00"}},{"$f":"'LTC Rev-Exp Region 9'!G$18","v":{"v":0,"d":"$0.00"}},{"v":0,"d":"$0.00"}]
["LTC",null,null,{"$f":"Jurat!I$1","v":0},{"$f":"Jurat!D$33","v":"00:00:00"},"Q1","2017-03-31","Region 9","Operating Expense","Medical Expense","NF & Hospice","2.3","Nursing Facility FFS (Medicaid)",{"$f":"'LTC Rev-Exp Region 9'!D$19","v":{"v":0,"d":"$0.00"}},{"$f":"'LTC Rev-Exp Region 9'!E$19","v":{"v":0,"d":"$0.00"}},{"$f":"'LTC Rev-Exp Region 9'!F$19","v":{"v":0,"d":"$0.00"}},{"$f":"'LTC Rev-Exp Region 9'!G$19","v":{"v":0,"d":"$0.00"}},{"v":0,"d":"$0.00"}]
["LTC",null,null,{"$f":"Jurat!I$1","v":0},{"$f":"Jurat!D$33","v":"00:00:00"},"Q1","2017-03-31","Region 9","Operating Expense","Medical Expense","NF & Hospice","2.4","Nursing Facility FFS (Crossover)",{"$f":"'LTC Rev-Exp Region 9'!D$20","v":{"v":0,"d":"$0.00"}},{"$f":"'LTC Rev-Exp Region 9'!E$20","v":{"v":0,"d":"$0.00"}},{"$f":"'LTC Rev-Exp Region 9'!F$20","v":{"v":0,"d":"$0.00"}},{"$f":"'LTC Rev-Exp Region 9'!G$20","v":{"v":0,"d":"$0.00"}},{"v":0,"d":"$0.00"}]
["LTC",null,null,{"$f":"Jurat!I$1","v":0},{"$f":"Jurat!D$33","v":"00:00:00"},"Q1","2017-03-31","Region 9","Operating Expense","Medical Expense","NF & Hospice","2.5","Hospice Days",{"$f":"'LTC Rev-Exp Region 9'!D$21","v":{"v":0,"d":"$0.00"}},{"$f":"'LTC Rev-Exp Region 9'!E$21","v":{"v":0,"d":"$0.00"}},{"$f":"'LTC Rev-Exp Region 9'!F$21","v":{"v":0,"d":"$0.00"}},{"$f":"'LTC Rev-Exp Region 9'!G$21","v":{"v":0,"d":"$0.00"}},{"v":0,"d":"$0.00"}]
["LTC",null,null,{"$f":"Jurat!I$1","v":0},{"$f":"Jurat!D$33","v":"00:00:00"},"Q1","2017-03-31","Region 9","Operating Expense","Medical Expense","NF & Hospice","2.6","Hospice FFS",{"$f":"'LTC Rev-Exp Region 9'!D$22","v":{"v":0,"d":"$0.00"}},{"$f":"'LTC Rev-Exp Region 9'!E$22","v":{"v":0,"d":"$0.00"}},{"$f":"'LTC Rev-Exp Region 9'!F$22","v":{"v":0,"d":"$0.00"}},{"$f":"'LTC Rev-Exp Region 9'!G$22","v":{"v":0,"d":"$0.00"}},{"v":0,"d":"$0.00"}]
["LTC",null,null,{"$f":"Jurat!I$1","v":0},{"$f":"Jurat!D$33","v":"00:00:00"},"Q1","2017-03-31","Region 9","Operating Expense","Medical Expense","NF & Hospice","2.7","Ending IBNP for NF & Hospice",{"$f":"'LTC Rev-Exp Region 9'!D$23","v":{"v":0,"d":"$0.00"}},{"$f":"'LTC Rev-Exp Region 9'!E$23","v":{"v":0,"d":"$0.00"}},{"$f":"'LTC Rev-Exp Region 9'!F$23","v":{"v":0,"d":"$0.00"}},{"$f":"'LTC Rev-Exp Region 9'!G$23","v":{"v":0,"d":"$0.00"}},{"v":0,"d":"$0.00"}]
["LTC",null,null,{"$f":"Jurat!I$1","v":0},{"$f":"Jurat!D$33","v":"00:00:00"},"Q1","2017-03-31","Region 9","Operating Expense","Medical Expense","NF & Hospice","2.8","NF & Hospice Subcapitated",{"$f":"'LTC Rev-Exp Region 9'!D$24","v":{"v":0,"d":"$0.00"}},{"$f":"'LTC Rev-Exp Region 9'!E$24","v":{"v":0,"d":"$0.00"}},{"$f":"'LTC Rev-Exp Region 9'!F$24","v":{"v":0,"d":"$0.00"}},{"$f":"'LTC Rev-Exp Region 9'!G$24","v":{"v":0,"d":"$0.00"}},{"v":0,"d":"$0.00"}]
["LTC",null,null,{"$f":"Jurat!I$1","v":0},{"$f":"Jurat!D$33","v":"00:00:00"},"Q1","2017-03-31","Region 9","Operating Expense","Medical Expense","NF & Hospice","2.9","NF & Hospice Settlements",{"$f":"'LTC Rev-Exp Region 9'!D$25","v":{"v":0,"d":"$0.00"}},{"$f":"'LTC Rev-Exp Region 9'!E$25","v":{"v":0,"d":"$0.00"}},{"$f":"'LTC Rev-Exp Region 9'!F$25","v":{"v":0,"d":"$0.00"}},{"$f":"'LTC Rev-Exp Region 9'!G$25","v":{"v":0,"d":"$0.00"}},{"v":0,"d":"$0.00"}]
["LTC",null,null,{"$f":"Jurat!I$1","v":0},{"$f":"Jurat!D$33","v":"00:00:00"},"Q1","2017-03-31","Region 9","Operating Expense","Medical Expense","LTC Services","2.11","Assisted Living FFS",{"$f":"'LTC Rev-Exp Region 9'!D$27","v":{"v":0,"d":"$0.00"}},{"$f":"'LTC Rev-Exp Region 9'!E$27","v":{"v":0,"d":"$0.00"}},{"$f":"'LTC Rev-Exp Region 9'!F$27","v":{"v":0,"d":"$0.00"}},{"$f":"'LTC Rev-Exp Region 9'!G$27","v":{"v":0,"d":"$0.00"}},{"v":0,"d":"$0.00"}]
["LTC",null,null,{"$f":"Jurat!I$1","v":0},{"$f":"Jurat!D$33","v":"00:00:00"},"Q1","2017-03-31","Region 9","Operating Expense","Medical Expense","LTC Services","2.12","Home Health FFS",{"$f":"'LTC Rev-Exp Region 9'!D$28","v":{"v":0,"d":"$0.00"}},{"$f":"'LTC Rev-Exp Region 9'!E$28","v":{"v":0,"d":"$0.00"}},{"$f":"'LTC Rev-Exp Region 9'!F$28","v":{"v":0,"d":"$0.00"}},{"$f":"'LTC Rev-Exp Region 9'!G$28","v":{"v":0,"d":"$0.00"}},{"v":0,"d":"$0.00"}]
["LTC",null,null,{"$f":"Jurat!I$1","v":0},{"$f":"Jurat!D$33","v":"00:00:00"},"Q1","2017-03-31","Region 9","Operating Expense","Medical Expense","LTC Services","2.13","Medical Equipment/Supplies FFS",{"$f":"'LTC Rev-Exp Region 9'!D$29","v":{"v":0,"d":"$0.00"}},{"$f":"'LTC Rev-Exp Region 9'!E$29","v":{"v":0,"d":"$0.00"}},{"$f":"'LTC Rev-Exp Region 9'!F$29","v":{"v":0,"d":"$0.00"}},{"$f":"'LTC Rev-Exp Region 9'!G$29","v":{"v":0,"d":"$0.00"}},{"v":0,"d":"$0.00"}]
["LTC",null,null,{"$f":"Jurat!I$1","v":0},{"$f":"Jurat!D$33","v":"00:00:00"},"Q1","2017-03-31","Region 9","Operating Expense","Medical Expense","LTC Services","2.14","Therapy FFS",{"$f":"'LTC Rev-Exp Region 9'!D$30","v":{"v":0,"d":"$0.00"}},{"$f":"'LTC Rev-Exp Region 9'!E$30","v":{"v":0,"d":"$0.00"}},{"$f":"'LTC Rev-Exp Region 9'!F$30","v":{"v":0,"d":"$0.00"}},{"$f":"'LTC Rev-Exp Region 9'!G$30","v":{"v":0,"d":"$0.00"}},{"v":0,"d":"$0.00"}]
["LTC",null,null,{"$f":"Jurat!I$1","v":0},{"$f":"Jurat!D$33","v":"00:00:00"},"Q1","2017-03-31","Region 9","Operating Expense","Medical Expense","LTC Services","2.15","Transportation FFS",{"$f":"'LTC Rev-Exp Region 9'!D$31","v":{"v":0,"d":"$0.00"}},{"$f":"'LTC Rev-Exp Region 9'!E$31","v":{"v":0,"d":"$0.00"}},{"$f":"'LTC Rev-Exp Region 9'!F$31","v":{"v":0,"d":"$0.00"}},{"$f":"'LTC Rev-Exp Region 9'!G$31","v":{"v":0,"d":"$0.00"}},{"v":0,"d":"$0.00"}]
["LTC",null,null,{"$f":"Jurat!I$1","v":0},{"$f":"Jurat!D$33","v":"00:00:00"},"Q1","2017-03-31","Region 9","Operating Expense","Medical Expense","LTC Services","2.16","Case Management FFS (Plan Provided)",{"$f":"'LTC Rev-Exp Region 9'!D$32","v":{"v":0,"d":"$0.00"}},{"$f":"'LTC Rev-Exp Region 9'!E$32","v":{"v":0,"d":"$0.00"}},{"$f":"'LTC Rev-Exp Region 9'!F$32","v":{"v":0,"d":"$0.00"}},{"$f":"'LTC Rev-Exp Region 9'!G$32","v":{"v":0,"d":"$0.00"}},{"v":0,"d":"$0.00"}]
["LTC",null,null,{"$f":"Jurat!I$1","v":0},{"$f":"Jurat!D$33","v":"00:00:00"},"Q1","2017-03-31","Region 9","Operating Expense","Medical Expense","LTC Services","2.17","Case Management FF (Non-Plan Provided)",{"$f":"'LTC Rev-Exp Region 9'!D$33","v":{"v":0,"d":"$0.00"}},{"$f":"'LTC Rev-Exp Region 9'!E$33","v":{"v":0,"d":"$0.00"}},{"$f":"'LTC Rev-Exp Region 9'!F$33","v":{"v":0,"d":"$0.00"}},{"$f":"'LTC Rev-Exp Region 9'!G$33","v":{"v":0,"d":"$0.00"}},{"v":0,"d":"$0.00"}]
["LTC",null,null,{"$f":"Jurat!I$1","v":0},{"$f":"Jurat!D$33","v":"00:00:00"},"Q1","2017-03-31","Region 9","Operating Expense","Medical Expense","LTC Services","2.18","HCBS FFS",{"$f":"'LTC Rev-Exp Region 9'!D$34","v":{"v":0,"d":"$0.00"}},{"$f":"'LTC Rev-Exp Region 9'!E$34","v":{"v":0,"d":"$0.00"}},{"$f":"'LTC Rev-Exp Region 9'!F$34","v":{"v":0,"d":"$0.00"}},{"$f":"'LTC Rev-Exp Region 9'!G$34","v":{"v":0,"d":"$0.00"}},{"v":0,"d":"$0.00"}]
["LTC",null,null,{"$f":"Jurat!I$1","v":0},{"$f":"Jurat!D$33","v":"00:00:00"},"Q1","2017-03-31","Region 9","Operating Expense","Medical Expense","LTC Services","2.19","Subcapitated LTC Services",{"$f":"'LTC Rev-Exp Region 9'!D$35","v":{"v":0,"d":"$0.00"}},{"$f":"'LTC Rev-Exp Region 9'!E$35","v":{"v":0,"d":"$0.00"}},{"$f":"'LTC Rev-Exp Region 9'!F$35","v":{"v":0,"d":"$0.00"}},{"$f":"'LTC Rev-Exp Region 9'!G$35","v":{"v":0,"d":"$0.00"}},{"v":0,"d":"$0.00"}]
["LTC",null,null,{"$f":"Jurat!I$1","v":0},{"$f":"Jurat!D$33","v":"00:00:00"},"Q1","2017-03-31","Region 9","Operating Expense","Medical Expense","LTC Services","2.20","Ending IBNP for Long Term Care Services",{"$f":"'LTC Rev-Exp Region 9'!D$36","v":{"v":0,"d":"$0.00"}},{"$f":"'LTC Rev-Exp Region 9'!E$36","v":{"v":0,"d":"$0.00"}},{"$f":"'LTC Rev-Exp Region 9'!F$36","v":{"v":0,"d":"$0.00"}},{"$f":"'LTC Rev-Exp Region 9'!G$36","v":{"v":0,"d":"$0.00"}},{"v":0,"d":"$0.00"}]
["LTC",null,null,{"$f":"Jurat!I$1","v":0},{"$f":"Jurat!D$33","v":"00:00:00"},"Q1","2017-03-31","Region 9","Operating Expense","Medical Expense","LTC Services","2.21","LTC Services Settlements",{"$f":"'LTC Rev-Exp Region 9'!D$37","v":{"v":0,"d":"$0.00"}},{"$f":"'LTC Rev-Exp Region 9'!E$37","v":{"v":0,"d":"$0.00"}},{"$f":"'LTC Rev-Exp Region 9'!F$37","v":{"v":0,"d":"$0.00"}},{"$f":"'LTC Rev-Exp Region 9'!G$37","v":{"v":0,"d":"$0.00"}},{"v":0,"d":"$0.00"}]
["LTC",null,null,{"$f":"Jurat!I$1","v":0},{"$f":"Jurat!D$33","v":"00:00:00"},"Q1","2017-03-31","Region 9","Operating Expense","Medical Expense","Expanded Benefits","3.1","Expanded Benefits FFS",{"$f":"'LTC Rev-Exp Region 9'!D$39","v":{"v":0,"d":"$0.00"}},{"$f":"'LTC Rev-Exp Region 9'!E$39","v":{"v":0,"d":"$0.00"}},{"$f":"'LTC Rev-Exp Region 9'!F$39","v":{"v":0,"d":"$0.00"}},{"$f":"'LTC Rev-Exp Region 9'!G$39","v":{"v":0,"d":"$0.00"}},{"v":0,"d":"$0.00"}]
["LTC",null,null,{"$f":"Jurat!I$1","v":0},{"$f":"Jurat!D$33","v":"00:00:00"},"Q1","2017-03-31","Region 9","Operating Expense","Medical Expense","Expanded Benefits","3.2","Expanded Benefits Subcapitation",{"$f":"'LTC Rev-Exp Region 9'!D$40","v":{"v":0,"d":"$0.00"}},{"$f":"'LTC Rev-Exp Region 9'!E$40","v":{"v":0,"d":"$0.00"}},{"$f":"'LTC Rev-Exp Region 9'!F$40","v":{"v":0,"d":"$0.00"}},{"$f":"'LTC Rev-Exp Region 9'!G$40","v":{"v":0,"d":"$0.00"}},{"v":0,"d":"$0.00"}]
["LTC",null,null,{"$f":"Jurat!I$1","v":0},{"$f":"Jurat!D$33","v":"00:00:00"},"Q1","2017-03-31","Region 9","Operating Expense","Medical Expense","Expanded Benefits","3.3","Ending IBNP for Expanded Benefits",{"$f":"'LTC Rev-Exp Region 9'!D$41","v":{"v":0,"d":"$0.00"}},{"$f":"'LTC Rev-Exp Region 9'!E$41","v":{"v":0,"d":"$0.00"}},{"$f":"'LTC Rev-Exp Region 9'!F$41","v":{"v":0,"d":"$0.00"}},{"$f":"'LTC Rev-Exp Region 9'!G$41","v":{"v":0,"d":"$0.00"}},{"v":0,"d":"$0.00"}]
["LTC",null,null,{"$f":"Jurat!I$1","v":0},{"$f":"Jurat!D$33","v":"00:00:00"},"Q1","2017-03-31","Region 9","Operating Expense","Medical Expense","Expanded Benefits","3.4","Expanded Benefits Settlements",{"$f":"'LTC Rev-Exp Region 9'!D$42","v":{"v":0,"d":"$0.00"}},{"$f":"'LTC Rev-Exp Region 9'!E$42","v":{"v":0,"d":"$0.00"}},{"$f":"'LTC Rev-Exp Region 9'!F$42","v":{"v":0,"d":"$0.00"}},{"$f":"'LTC Rev-Exp Region 9'!G$42","v":{"v":0,"d":"$0.00"}},{"v":0,"d":"$0.00"}]
["LTC",null,null,{"$f":"Jurat!I$1","v":0},{"$f":"Jurat!D$33","v":"00:00:00"},"Q1","2017-03-31","Region 9","Operating Expense","Medical Expense","Other Medical","4.5","TPL & Fraud/Abuse Recoveries",{"$f":"'LTC Rev-Exp Region 9'!D$48","v":{"v":0,"d":"$0.00"}},{"$f":"'LTC Rev-Exp Region 9'!E$48","v":{"v":0,"d":"$0.00"}},{"$f":"'LTC Rev-Exp Region 9'!F$48","v":{"v":0,"d":"$0.00"}},{"$f":"'LTC Rev-Exp Region 9'!G$48","v":{"v":0,"d":"$0.00"}},{"v":0,"d":"$0.00"}]
["LTC",null,null,{"$f":"Jurat!I$1","v":0},{"$f":"Jurat!D$33","v":"00:00:00"},"Q1","2017-03-31","Region 9","Operating Expense","Medical Expense","Other Medical","4.6.1","Premium Deficiency Reserve",{"$f":"'LTC Rev-Exp Region 9'!D$49","v":{"v":0,"d":"$0.00"}},{"$f":"'LTC Rev-Exp Region 9'!E$49","v":{"v":0,"d":"$0.00"}},{"$f":"'LTC Rev-Exp Region 9'!F$49","v":{"v":0,"d":"$0.00"}},{"$f":"'LTC Rev-Exp Region 9'!G$49","v":{"v":0,"d":"$0.00"}},{"v":0,"d":"$0.00"}]
["LTC",null,null,{"$f":"Jurat!I$1","v":0},{"$f":"Jurat!D$33","v":"00:00:00"},"Q1","2017-03-31","Region 9","Operating Expense","Medical Expense","Other Medical","4.8","Reinsurance Premiums",{"$f":"'LTC Rev-Exp Region 9'!D$51","v":{"v":0,"d":"$0.00"}},{"$f":"'LTC Rev-Exp Region 9'!E$51","v":{"v":0,"d":"$0.00"}},{"$f":"'LTC Rev-Exp Region 9'!F$51","v":{"v":0,"d":"$0.00"}},{"$f":"'LTC Rev-Exp Region 9'!G$51","v":{"v":0,"d":"$0.00"}},{"v":0,"d":"$0.00"}]
["LTC",null,null,{"$f":"Jurat!I$1","v":0},{"$f":"Jurat!D$33","v":"00:00:00"},"Q1","2017-03-31","Region 9","Operating Expense","Medical Expense","Other Medical","4.9","Reinsurance Recoveries",{"$f":"'LTC Rev-Exp Region 9'!D$52","v":{"v":0,"d":"$0.00"}},{"$f":"'LTC Rev-Exp Region 9'!E$52","v":{"v":0,"d":"$0.00"}},{"$f":"'LTC Rev-Exp Region 9'!F$52","v":{"v":0,"d":"$0.00"}},{"$f":"'LTC Rev-Exp Region 9'!G$52","v":{"v":0,"d":"$0.00"}},{"v":0,"d":"$0.00"}]
["LTC",null,null,{"$f":"Jurat!I$1","v":0},{"$f":"Jurat!D$33","v":"00:00:00"},"Q1","2017-03-31","Region 9","Operating Expense","Administrative Expense","Administrative","5.1","Salaries & Benefits",{"$f":"'LTC Rev-Exp Region 9'!D$57","v":{"v":0,"d":"$0.00"}},{"$f":"'LTC Rev-Exp Region 9'!E$57","v":{"v":0,"d":"$0.00"}},{"$f":"'LTC Rev-Exp Region 9'!F$57","v":{"v":0,"d":"$0.00"}},{"$f":"'LTC Rev-Exp Region 9'!G$57","v":{"v":0,"d":"$0.00"}},{"v":0,"d":"$0.00"}]
["LTC",null,null,{"$f":"Jurat!I$1","v":0},{"$f":"Jurat!D$33","v":"00:00:00"},"Q1","2017-03-31","Region 9","Operating Expense","Administrative Expense","Administrative","5.2","Administrative Services",{"$f":"'LTC Rev-Exp Region 9'!D$58","v":{"v":0,"d":"$0.00"}},{"$f":"'LTC Rev-Exp Region 9'!E$58","v":{"v":0,"d":"$0.00"}},{"$f":"'LTC Rev-Exp Region 9'!F$58","v":{"v":0,"d":"$0.00"}},{"$f":"'LTC Rev-Exp Region 9'!G$58","v":{"v":0,"d":"$0.00"}},{"v":0,"d":"$0.00"}]
["LTC",null,null,{"$f":"Jurat!I$1","v":0},{"$f":"Jurat!D$33","v":"00:00:00"},"Q1","2017-03-31","Region 9","Operating Expense","Administrative Expense","Administrative","5.3","Information Systems",{"$f":"'LTC Rev-Exp Region 9'!D$59","v":{"v":0,"d":"$0.00"}},{"$f":"'LTC Rev-Exp Region 9'!E$59","v":{"v":0,"d":"$0.00"}},{"$f":"'LTC Rev-Exp Region 9'!F$59","v":{"v":0,"d":"$0.00"}},{"$f":"'LTC Rev-Exp Region 9'!G$59","v":{"v":0,"d":"$0.00"}},{"v":0,"d":"$0.00"}]
["LTC",null,null,{"$f":"Jurat!I$1","v":0},{"$f":"Jurat!D$33","v":"00:00:00"},"Q1","2017-03-31","Region 9","Operating Expense","Administrative Expense","Administrative","5.4","Marketing Expenses",{"$f":"'LTC Rev-Exp Region 9'!D$60","v":{"v":0,"d":"$0.00"}},{"$f":"'LTC Rev-Exp Region 9'!E$60","v":{"v":0,"d":"$0.00"}},{"$f":"'LTC Rev-Exp Region 9'!F$60","v":{"v":0,"d":"$0.00"}},{"$f":"'LTC Rev-Exp Region 9'!G$60","v":{"v":0,"d":"$0.00"}},{"v":0,"d":"$0.00"}]
["LTC",null,null,{"$f":"Jurat!I$1","v":0},{"$f":"Jurat!D$33","v":"00:00:00"},"Q1","2017-03-31","Region 9","Operating Expense","Administrative Expense","Administrative","5.5","General  Administration",{"$f":"'LTC Rev-Exp Region 9'!D$61","v":{"v":0,"d":"$0.00"}},{"$f":"'LTC Rev-Exp Region 9'!E$61","v":{"v":0,"d":"$0.00"}},{"$f":"'LTC Rev-Exp Region 9'!F$61","v":{"v":0,"d":"$0.00"}},{"$f":"'LTC Rev-Exp Region 9'!G$61","v":{"v":0,"d":"$0.00"}},{"v":0,"d":"$0.00"}]
["LTC",null,null,{"$f":"Jurat!I$1","v":0},{"$f":"Jurat!D$33","v":"00:00:00"},"Q1","2017-03-31","Region 9","Operating Expense","Administrative Expense","Administrative","5.6","Compliance/Regulatory",{"$f":"'LTC Rev-Exp Region 9'!D$62","v":{"v":0,"d":"$0.00"}},{"$f":"'LTC Rev-Exp Region 9'!E$62","v":{"v":0,"d":"$0.00"}},{"$f":"'LTC Rev-Exp Region 9'!F$62","v":{"v":0,"d":"$0.00"}},{"$f":"'LTC Rev-Exp Region 9'!G$62","v":{"v":0,"d":"$0.00"}},{"v":0,"d":"$0.00"}]
["LTC",null,null,{"$f":"Jurat!I$1","v":0},{"$f":"Jurat!D$33","v":"00:00:00"},"Q1","2017-03-31","Region 9","Operating Expense","Taxes & Fees","Taxes & Fees","6.1","State Premium Tax",{"$f":"'LTC Rev-Exp Region 9'!D$64","v":{"v":0,"d":"$0.00"}},{"v":0,"d":"$0.00"},{"v":0,"d":"$0.00"},{"v":0,"d":"$0.00"},{"v":0,"d":"$0.00"}]
["LTC",null,null,{"$f":"Jurat!I$1","v":0},{"$f":"Jurat!D$33","v":"00:00:00"},"Q1","2017-03-31","Region 9","Operating Expense","Taxes & Fees","Taxes & Fees","6.2","Department of Insurance Assessments",{"$f":"'LTC Rev-Exp Region 9'!D$65","v":{"v":0,"d":"$0.00"}},{"v":0,"d":"$0.00"},{"v":0,"d":"$0.00"},{"v":0,"d":"$0.00"},{"v":0,"d":"$0.00"}]
["LTC",null,null,{"$f":"Jurat!I$1","v":0},{"$f":"Jurat!D$33","v":"00:00:00"},"Q1","2017-03-31","Region 9","Non-Operating Expense","Income Tax Expense","Income Tax Expense","9.0","Income Tax Expense",{"$f":"'LTC Rev-Exp Region 9'!D$72","v":{"v":0,"d":"$0.00"}},{"v":0,"d":"$0.00"},{"v":0,"d":"$0.00"},{"v":0,"d":"$0.00"},{"v":0,"d":"$0.00"}]
["LTC",null,null,{"$f":"Jurat!I$1","v":0},{"$f":"Jurat!D$33","v":"00:00:00"},"Q2","2017-06-30","Region 9","Member Months","Member Months","Member Months",null,"Member Months",{"$f":"'LTC Rev-Exp Region 9'!H$9","v":{"v":0,"d":"$0.00"}},{"$f":"'LTC Rev-Exp Region 9'!I$9","v":{"v":0,"d":"$0.00"}},{"$f":"'LTC Rev-Exp Region 9'!J$9","v":{"v":0,"d":"$0.00"}},{"$f":"'LTC Rev-Exp Region 9'!K$9","v":{"v":0,"d":"$0.00"}},{"v":0,"d":"$0.00"}]
["LTC",null,null,{"$f":"Jurat!I$1","v":0},{"$f":"Jurat!D$33","v":"00:00:00"},"Q2","2017-06-30","Region 9","Operating Revenue","Capitation","Capitation",1.1,"Capitation",{"$f":"'LTC Rev-Exp Region 9'!H$11","v":{"v":0,"d":"$0.00"}},{"$f":"'LTC Rev-Exp Region 9'!I$11","v":{"v":0,"d":"$0.00"}},{"$f":"'LTC Rev-Exp Region 9'!J$11","v":{"v":0,"d":"$0.00"}},{"$f":"'LTC Rev-Exp Region 9'!K$11","v":{"v":0,"d":"$0.00"}},{"v":0,"d":"$0.00"}]
["LTC",null,null,{"$f":"Jurat!I$1","v":0},{"$f":"Jurat!D$33","v":"00:00:00"},"Q2","2017-06-30","Region 9","Operating Revenue","Capitation","NH Rate Reconciliation",1.2,"NH Rate Reconciliation",{"$f":"'LTC Rev-Exp Region 9'!H$12","v":{"v":0,"d":"$0.00"}},{"$f":"'LTC Rev-Exp Region 9'!I$12","v":{"v":0,"d":"$0.00"}},{"$f":"'LTC Rev-Exp Region 9'!J$12","v":{"v":0,"d":"$0.00"}},{"$f":"'LTC Rev-Exp Region 9'!K$12","v":{"v":0,"d":"$0.00"}},{"v":0,"d":"$0.00"}]
["LTC",null,null,{"$f":"Jurat!I$1","v":0},{"$f":"Jurat!D$33","v":"00:00:00"},"Q2","2017-06-30","Region 9","Operating Revenue","Other Revenue","Other Revenue",1.3,"Other Revenue",{"$f":"'LTC Rev-Exp Region 9'!H$13","v":{"v":0,"d":"$0.00"}},{"$f":"'LTC Rev-Exp Region 9'!I$13","v":{"v":0,"d":"$0.00"}},{"$f":"'LTC Rev-Exp Region 9'!J$13","v":{"v":0,"d":"$0.00"}},{"$f":"'LTC Rev-Exp Region 9'!K$13","v":{"v":0,"d":"$0.00"}},{"v":0,"d":"$0.00"}]
["LTC",null,null,{"$f":"Jurat!I$1","v":0},{"$f":"Jurat!D$33","v":"00:00:00"},"Q2","2017-06-30","Region 9","Operating Expense","Medical Expense","NF & Hospice","2.1","Nursing Facility Days (Medicaid)",{"$f":"'LTC Rev-Exp Region 9'!H$17","v":{"v":0,"d":"$0.00"}},{"$f":"'LTC Rev-Exp Region 9'!I$17","v":{"v":0,"d":"$0.00"}},{"$f":"'LTC Rev-Exp Region 9'!J$17","v":{"v":0,"d":"$0.00"}},{"$f":"'LTC Rev-Exp Region 9'!K$17","v":{"v":0,"d":"$0.00"}},{"v":0,"d":"$0.00"}]
["LTC",null,null,{"$f":"Jurat!I$1","v":0},{"$f":"Jurat!D$33","v":"00:00:00"},"Q2","2017-06-30","Region 9","Operating Expense","Medical Expense","NF & Hospice","2.2","Nursing Facility Days (Crossover)",{"$f":"'LTC Rev-Exp Region 9'!H$18","v":{"v":0,"d":"$0.00"}},{"$f":"'LTC Rev-Exp Region 9'!I$18","v":{"v":0,"d":"$0.00"}},{"$f":"'LTC Rev-Exp Region 9'!J$18","v":{"v":0,"d":"$0.00"}},{"$f":"'LTC Rev-Exp Region 9'!K$18","v":{"v":0,"d":"$0.00"}},{"v":0,"d":"$0.00"}]
["LTC",null,null,{"$f":"Jurat!I$1","v":0},{"$f":"Jurat!D$33","v":"00:00:00"},"Q2","2017-06-30","Region 9","Operating Expense","Medical Expense","NF & Hospice","2.3","Nursing Facility FFS (Medicaid)",{"$f":"'LTC Rev-Exp Region 9'!H$19","v":{"v":0,"d":"$0.00"}},{"$f":"'LTC Rev-Exp Region 9'!I$19","v":{"v":0,"d":"$0.00"}},{"$f":"'LTC Rev-Exp Region 9'!J$19","v":{"v":0,"d":"$0.00"}},{"$f":"'LTC Rev-Exp Region 9'!K$19","v":{"v":0,"d":"$0.00"}},{"v":0,"d":"$0.00"}]
["LTC",null,null,{"$f":"Jurat!I$1","v":0},{"$f":"Jurat!D$33","v":"00:00:00"},"Q2","2017-06-30","Region 9","Operating Expense","Medical Expense","NF & Hospice","2.4","Nursing Facility FFS (Crossover)",{"$f":"'LTC Rev-Exp Region 9'!H$20","v":{"v":0,"d":"$0.00"}},{"$f":"'LTC Rev-Exp Region 9'!I$20","v":{"v":0,"d":"$0.00"}},{"$f":"'LTC Rev-Exp Region 9'!J$20","v":{"v":0,"d":"$0.00"}},{"$f":"'LTC Rev-Exp Region 9'!K$20","v":{"v":0,"d":"$0.00"}},{"v":0,"d":"$0.00"}]
["LTC",null,null,{"$f":"Jurat!I$1","v":0},{"$f":"Jurat!D$33","v":"00:00:00"},"Q2","2017-06-30","Region 9","Operating Expense","Medical Expense","NF & Hospice","2.5","Hospice Days",{"$f":"'LTC Rev-Exp Region 9'!H$21","v":{"v":0,"d":"$0.00"}},{"$f":"'LTC Rev-Exp Region 9'!I$21","v":{"v":0,"d":"$0.00"}},{"$f":"'LTC Rev-Exp Region 9'!J$21","v":{"v":0,"d":"$0.00"}},{"$f":"'LTC Rev-Exp Region 9'!K$21","v":{"v":0,"d":"$0.00"}},{"v":0,"d":"$0.00"}]
["LTC",null,null,{"$f":"Jurat!I$1","v":0},{"$f":"Jurat!D$33","v":"00:00:00"},"Q2","2017-06-30","Region 9","Operating Expense","Medical Expense","NF & Hospice","2.6","Hospice FFS",{"$f":"'LTC Rev-Exp Region 9'!H$22","v":{"v":0,"d":"$0.00"}},{"$f":"'LTC Rev-Exp Region 9'!I$22","v":{"v":0,"d":"$0.00"}},{"$f":"'LTC Rev-Exp Region 9'!J$22","v":{"v":0,"d":"$0.00"}},{"$f":"'LTC Rev-Exp Region 9'!K$22","v":{"v":0,"d":"$0.00"}},{"v":0,"d":"$0.00"}]
["LTC",null,null,{"$f":"Jurat!I$1","v":0},{"$f":"Jurat!D$33","v":"00:00:00"},"Q2","2017-06-30","Region 9","Operating Expense","Medical Expense","NF & Hospice","2.7","Ending IBNP for NF & Hospice",{"$f":"'LTC Rev-Exp Region 9'!H$23","v":{"v":0,"d":"$0.00"}},{"$f":"'LTC Rev-Exp Region 9'!I$23","v":{"v":0,"d":"$0.00"}},{"$f":"'LTC Rev-Exp Region 9'!J$23","v":{"v":0,"d":"$0.00"}},{"$f":"'LTC Rev-Exp Region 9'!K$23","v":{"v":0,"d":"$0.00"}},{"v":0,"d":"$0.00"}]
["LTC",null,null,{"$f":"Jurat!I$1","v":0},{"$f":"Jurat!D$33","v":"00:00:00"},"Q2","2017-06-30","Region 9","Operating Expense","Medical Expense","NF & Hospice","2.8","NF & Hospice Subcapitated",{"$f":"'LTC Rev-Exp Region 9'!H$24","v":{"v":0,"d":"$0.00"}},{"$f":"'LTC Rev-Exp Region 9'!I$24","v":{"v":0,"d":"$0.00"}},{"$f":"'LTC Rev-Exp Region 9'!J$24","v":{"v":0,"d":"$0.00"}},{"$f":"'LTC Rev-Exp Region 9'!K$24","v":{"v":0,"d":"$0.00"}},{"v":0,"d":"$0.00"}]
["LTC",null,null,{"$f":"Jurat!I$1","v":0},{"$f":"Jurat!D$33","v":"00:00:00"},"Q2","2017-06-30","Region 9","Operating Expense","Medical Expense","NF & Hospice","2.9","NF & Hospice Settlements",{"$f":"'LTC Rev-Exp Region 9'!H$25","v":{"v":0,"d":"$0.00"}},{"$f":"'LTC Rev-Exp Region 9'!I$25","v":{"v":0,"d":"$0.00"}},{"$f":"'LTC Rev-Exp Region 9'!J$25","v":{"v":0,"d":"$0.00"}},{"$f":"'LTC Rev-Exp Region 9'!K$25","v":{"v":0,"d":"$0.00"}},{"v":0,"d":"$0.00"}]
["LTC",null,null,{"$f":"Jurat!I$1","v":0},{"$f":"Jurat!D$33","v":"00:00:00"},"Q2","2017-06-30","Region 9","Operating Expense","Medical Expense","LTC Services","2.11","Assisted Living FFS",{"$f":"'LTC Rev-Exp Region 9'!H$27","v":{"v":0,"d":"$0.00"}},{"$f":"'LTC Rev-Exp Region 9'!I$27","v":{"v":0,"d":"$0.00"}},{"$f":"'LTC Rev-Exp Region 9'!J$27","v":{"v":0,"d":"$0.00"}},{"$f":"'LTC Rev-Exp Region 9'!K$27","v":{"v":0,"d":"$0.00"}},{"v":0,"d":"$0.00"}]
["LTC",null,null,{"$f":"Jurat!I$1","v":0},{"$f":"Jurat!D$33","v":"00:00:00"},"Q2","2017-06-30","Region 9","Operating Expense","Medical Expense","LTC Services","2.12","Home Health FFS",{"$f":"'LTC Rev-Exp Region 9'!H$28","v":{"v":0,"d":"$0.00"}},{"$f":"'LTC Rev-Exp Region 9'!I$28","v":{"v":0,"d":"$0.00"}},{"$f":"'LTC Rev-Exp Region 9'!J$28","v":{"v":0,"d":"$0.00"}},{"$f":"'LTC Rev-Exp Region 9'!K$28","v":{"v":0,"d":"$0.00"}},{"v":0,"d":"$0.00"}]
["LTC",null,null,{"$f":"Jurat!I$1","v":0},{"$f":"Jurat!D$33","v":"00:00:00"},"Q2","2017-06-30","Region 9","Operating Expense","Medical Expense","LTC Services","2.13","Medical Equipment/Supplies FFS",{"$f":"'LTC Rev-Exp Region 9'!H$29","v":{"v":0,"d":"$0.00"}},{"$f":"'LTC Rev-Exp Region 9'!I$29","v":{"v":0,"d":"$0.00"}},{"$f":"'LTC Rev-Exp Region 9'!J$29","v":{"v":0,"d":"$0.00"}},{"$f":"'LTC Rev-Exp Region 9'!K$29","v":{"v":0,"d":"$0.00"}},{"v":0,"d":"$0.00"}]
["LTC",null,null,{"$f":"Jurat!I$1","v":0},{"$f":"Jurat!D$33","v":"00:00:00"},"Q2","2017-06-30","Region 9","Operating Expense","Medical Expense","LTC Services","2.14","Therapy FFS",{"$f":"'LTC Rev-Exp Region 9'!H$30","v":{"v":0,"d":"$0.00"}},{"$f":"'LTC Rev-Exp Region 9'!I$30","v":{"v":0,"d":"$0.00"}},{"$f":"'LTC Rev-Exp Region 9'!J$30","v":{"v":0,"d":"$0.00"}},{"$f":"'LTC Rev-Exp Region 9'!K$30","v":{"v":0,"d":"$0.00"}},{"v":0,"d":"$0.00"}]
["LTC",null,null,{"$f":"Jurat!I$1","v":0},{"$f":"Jurat!D$33","v":"00:00:00"},"Q2","2017-06-30","Region 9","Operating Expense","Medical Expense","LTC Services","2.15","Transportation FFS",{"$f":"'LTC Rev-Exp Region 9'!H$31","v":{"v":0,"d":"$0.00"}},{"$f":"'LTC Rev-Exp Region 9'!I$31","v":{"v":0,"d":"$0.00"}},{"$f":"'LTC Rev-Exp Region 9'!J$31","v":{"v":0,"d":"$0.00"}},{"$f":"'LTC Rev-Exp Region 9'!K$31","v":{"v":0,"d":"$0.00"}},{"v":0,"d":"$0.00"}]
["LTC",null,null,{"$f":"Jurat!I$1","v":0},{"$f":"Jurat!D$33","v":"00:00:00"},"Q2","2017-06-30","Region 9","Operating Expense","Medical Expense","LTC Services","2.16","Case Management FFS (Plan Provided)",{"$f":"'LTC Rev-Exp Region 9'!H$32","v":{"v":0,"d":"$0.00"}},{"$f":"'LTC Rev-Exp Region 9'!I$32","v":{"v":0,"d":"$0.00"}},{"$f":"'LTC Rev-Exp Region 9'!J$32","v":{"v":0,"d":"$0.00"}},{"$f":"'LTC Rev-Exp Region 9'!K$32","v":{"v":0,"d":"$0.00"}},{"v":0,"d":"$0.00"}]
["LTC",null,null,{"$f":"Jurat!I$1","v":0},{"$f":"Jurat!D$33","v":"00:00:00"},"Q2","2017-06-30","Region 9","Operating Expense","Medical Expense","LTC Services","2.17","Case Management FF (Non-Plan Provided)",{"$f":"'LTC Rev-Exp Region 9'!H$33","v":{"v":0,"d":"$0.00"}},{"$f":"'LTC Rev-Exp Region 9'!I$33","v":{"v":0,"d":"$0.00"}},{"$f":"'LTC Rev-Exp Region 9'!J$33","v":{"v":0,"d":"$0.00"}},{"$f":"'LTC Rev-Exp Region 9'!K$33","v":{"v":0,"d":"$0.00"}},{"v":0,"d":"$0.00"}]
["LTC",null,null,{"$f":"Jurat!I$1","v":0},{"$f":"Jurat!D$33","v":"00:00:00"},"Q2","2017-06-30","Region 9","Operating Expense","Medical Expense","LTC Services","2.18","HCBS FFS",{"$f":"'LTC Rev-Exp Region 9'!H$34","v":{"v":0,"d":"$0.00"}},{"$f":"'LTC Rev-Exp Region 9'!I$34","v":{"v":0,"d":"$0.00"}},{"$f":"'LTC Rev-Exp Region 9'!J$34","v":{"v":0,"d":"$0.00"}},{"$f":"'LTC Rev-Exp Region 9'!K$34","v":{"v":0,"d":"$0.00"}},{"v":0,"d":"$0.00"}]
["LTC",null,null,{"$f":"Jurat!I$1","v":0},{"$f":"Jurat!D$33","v":"00:00:00"},"Q2","2017-06-30","Region 9","Operating Expense","Medical Expense","LTC Services","2.19","Subcapitated LTC Services",{"$f":"'LTC Rev-Exp Region 9'!H$35","v":{"v":0,"d":"$0.00"}},{"$f":"'LTC Rev-Exp Region 9'!I$35","v":{"v":0,"d":"$0.00"}},{"$f":"'LTC Rev-Exp Region 9'!J$35","v":{"v":0,"d":"$0.00"}},{"$f":"'LTC Rev-Exp Region 9'!K$35","v":{"v":0,"d":"$0.00"}},{"v":0,"d":"$0.00"}]
["LTC",null,null,{"$f":"Jurat!I$1","v":0},{"$f":"Jurat!D$33","v":"00:00:00"},"Q2","2017-06-30","Region 9","Operating Expense","Medical Expense","LTC Services","2.20","Ending IBNP for Long Term Care Services",{"$f":"'LTC Rev-Exp Region 9'!H$36","v":{"v":0,"d":"$0.00"}},{"$f":"'LTC Rev-Exp Region 9'!I$36","v":{"v":0,"d":"$0.00"}},{"$f":"'LTC Rev-Exp Region 9'!J$36","v":{"v":0,"d":"$0.00"}},{"$f":"'LTC Rev-Exp Region 9'!K$36","v":{"v":0,"d":"$0.00"}},{"v":0,"d":"$0.00"}]
["LTC",null,null,{"$f":"Jurat!I$1","v":0},{"$f":"Jurat!D$33","v":"00:00:00"},"Q2","2017-06-30","Region 9","Operating Expense","Medical Expense","LTC Services","2.21","LTC Services Settlements",{"$f":"'LTC Rev-Exp Region 9'!H$37","v":{"v":0,"d":"$0.00"}},{"$f":"'LTC Rev-Exp Region 9'!I$37","v":{"v":0,"d":"$0.00"}},{"$f":"'LTC Rev-Exp Region 9'!J$37","v":{"v":0,"d":"$0.00"}},{"$f":"'LTC Rev-Exp Region 9'!K$37","v":{"v":0,"d":"$0.00"}},{"v":0,"d":"$0.00"}]
["LTC",null,null,{"$f":"Jurat!I$1","v":0},{"$f":"Jurat!D$33","v":"00:00:00"},"Q2","2017-06-30","Region 9","Operating Expense","Medical Expense","Expanded Benefits","3.1","Expanded Benefits FFS",{"$f":"'LTC Rev-Exp Region 9'!H$39","v":{"v":0,"d":"$0.00"}},{"$f":"'LTC Rev-Exp Region 9'!I$39","v":{"v":0,"d":"$0.00"}},{"$f":"'LTC Rev-Exp Region 9'!J$39","v":{"v":0,"d":"$0.00"}},{"$f":"'LTC Rev-Exp Region 9'!K$39","v":{"v":0,"d":"$0.00"}},{"v":0,"d":"$0.00"}]
["LTC",null,null,{"$f":"Jurat!I$1","v":0},{"$f":"Jurat!D$33","v":"00:00:00"},"Q2","2017-06-30","Region 9","Operating Expense","Medical Expense","Expanded Benefits","3.2","Expanded Benefits Subcapitation",{"$f":"'LTC Rev-Exp Region 9'!H$40","v":{"v":0,"d":"$0.00"}},{"$f":"'LTC Rev-Exp Region 9'!I$40","v":{"v":0,"d":"$0.00"}},{"$f":"'LTC Rev-Exp Region 9'!J$40","v":{"v":0,"d":"$0.00"}},{"$f":"'LTC Rev-Exp Region 9'!K$40","v":{"v":0,"d":"$0.00"}},{"v":0,"d":"$0.00"}]
["LTC",null,null,{"$f":"Jurat!I$1","v":0},{"$f":"Jurat!D$33","v":"00:00:00"},"Q2","2017-06-30","Region 9","Operating Expense","Medical Expense","Expanded Benefits","3.3","Ending IBNP for Expanded Benefits",{"$f":"'LTC Rev-Exp Region 9'!H$41","v":{"v":0,"d":"$0.00"}},{"$f":"'LTC Rev-Exp Region 9'!I$41","v":{"v":0,"d":"$0.00"}},{"$f":"'LTC Rev-Exp Region 9'!J$41","v":{"v":0,"d":"$0.00"}},{"$f":"'LTC Rev-Exp Region 9'!K$41","v":{"v":0,"d":"$0.00"}},{"v":0,"d":"$0.00"}]
["LTC",null,null,{"$f":"Jurat!I$1","v":0},{"$f":"Jurat!D$33","v":"00:00:00"},"Q2","2017-06-30","Region 9","Operating Expense","Medical Expense","Expanded Benefits","3.4","Expanded Benefits Settlements",{"$f":"'LTC Rev-Exp Region 9'!H$42","v":{"v":0,"d":"$0.00"}},{"$f":"'LTC Rev-Exp Region 9'!I$42","v":{"v":0,"d":"$0.00"}},{"$f":"'LTC Rev-Exp Region 9'!J$42","v":{"v":0,"d":"$0.00"}},{"$f":"'LTC Rev-Exp Region 9'!K$42","v":{"v":0,"d":"$0.00"}},{"v":0,"d":"$0.00"}]
["LTC",null,null,{"$f":"Jurat!I$1","v":0},{"$f":"Jurat!D$33","v":"00:00:00"},"Q2","2017-06-30","Region 9","Operating Expense","Medical Expense","Other Medical","4.5","TPL & Fraud/Abuse Recoveries",{"$f":"'LTC Rev-Exp Region 9'!H$48","v":{"v":0,"d":"$0.00"}},{"$f":"'LTC Rev-Exp Region 9'!I$48","v":{"v":0,"d":"$0.00"}},{"$f":"'LTC Rev-Exp Region 9'!J$48","v":{"v":0,"d":"$0.00"}},{"$f":"'LTC Rev-Exp Region 9'!K$48","v":{"v":0,"d":"$0.00"}},{"v":0,"d":"$0.00"}]
["LTC",null,null,{"$f":"Jurat!I$1","v":0},{"$f":"Jurat!D$33","v":"00:00:00"},"Q2","2017-06-30","Region 9","Operating Expense","Medical Expense","Other Medical","4.6.1","Premium Deficiency Reserve",{"$f":"'LTC Rev-Exp Region 9'!H$49","v":{"v":0,"d":"$0.00"}},{"$f":"'LTC Rev-Exp Region 9'!I$49","v":{"v":0,"d":"$0.00"}},{"$f":"'LTC Rev-Exp Region 9'!J$49","v":{"v":0,"d":"$0.00"}},{"$f":"'LTC Rev-Exp Region 9'!K$49","v":{"v":0,"d":"$0.00"}},{"v":0,"d":"$0.00"}]
["LTC",null,null,{"$f":"Jurat!I$1","v":0},{"$f":"Jurat!D$33","v":"00:00:00"},"Q2","2017-06-30","Region 9","Operating Expense","Medical Expense","Other Medical","4.8","Reinsurance Premiums",{"$f":"'LTC Rev-Exp Region 9'!H$51","v":{"v":0,"d":"$0.00"}},{"$f":"'LTC Rev-Exp Region 9'!I$51","v":{"v":0,"d":"$0.00"}},{"$f":"'LTC Rev-Exp Region 9'!J$51","v":{"v":0,"d":"$0.00"}},{"$f":"'LTC Rev-Exp Region 9'!K$51","v":{"v":0,"d":"$0.00"}},{"v":0,"d":"$0.00"}]
["LTC",null,null,{"$f":"Jurat!I$1","v":0},{"$f":"Jurat!D$33","v":"00:00:00"},"Q2","2017-06-30","Region 9","Operating Expense","Medical Expense","Other Medical","4.9","Reinsurance Recoveries",{"$f":"'LTC Rev-Exp Region 9'!H$52","v":{"v":0,"d":"$0.00"}},{"$f":"'LTC Rev-Exp Region 9'!I$52","v":{"v":0,"d":"$0.00"}},{"$f":"'LTC Rev-Exp Region 9'!J$52","v":{"v":0,"d":"$0.00"}},{"$f":"'LTC Rev-Exp Region 9'!K$52","v":{"v":0,"d":"$0.00"}},{"v":0,"d":"$0.00"}]
["LTC",null,null,{"$f":"Jurat!I$1","v":0},{"$f":"Jurat!D$33","v":"00:00:00"},"Q2","2017-06-30","Region 9","Operating Expense","Administrative Expense","Administrative","5.1","Salaries & Benefits",{"$f":"'LTC Rev-Exp Region 9'!H$57","v":{"v":0,"d":"$0.00"}},{"$f":"'LTC Rev-Exp Region 9'!I$57","v":{"v":0,"d":"$0.00"}},{"$f":"'LTC Rev-Exp Region 9'!J$57","v":{"v":0,"d":"$0.00"}},{"$f":"'LTC Rev-Exp Region 9'!K$57","v":{"v":0,"d":"$0.00"}},{"v":0,"d":"$0.00"}]
["LTC",null,null,{"$f":"Jurat!I$1","v":0},{"$f":"Jurat!D$33","v":"00:00:00"},"Q2","2017-06-30","Region 9","Operating Expense","Administrative Expense","Administrative","5.2","Administrative Services",{"$f":"'LTC Rev-Exp Region 9'!H$58","v":{"v":0,"d":"$0.00"}},{"$f":"'LTC Rev-Exp Region 9'!I$58","v":{"v":0,"d":"$0.00"}},{"$f":"'LTC Rev-Exp Region 9'!J$58","v":{"v":0,"d":"$0.00"}},{"$f":"'LTC Rev-Exp Region 9'!K$58","v":{"v":0,"d":"$0.00"}},{"v":0,"d":"$0.00"}]
["LTC",null,null,{"$f":"Jurat!I$1","v":0},{"$f":"Jurat!D$33","v":"00:00:00"},"Q2","2017-06-30","Region 9","Operating Expense","Administrative Expense","Administrative","5.3","Information Systems",{"$f":"'LTC Rev-Exp Region 9'!H$59","v":{"v":0,"d":"$0.00"}},{"$f":"'LTC Rev-Exp Region 9'!I$59","v":{"v":0,"d":"$0.00"}},{"$f":"'LTC Rev-Exp Region 9'!J$59","v":{"v":0,"d":"$0.00"}},{"$f":"'LTC Rev-Exp Region 9'!K$59","v":{"v":0,"d":"$0.00"}},{"v":0,"d":"$0.00"}]
["LTC",null,null,{"$f":"Jurat!I$1","v":0},{"$f":"Jurat!D$33","v":"00:00:00"},"Q2","2017-06-30","Region 9","Operating Expense","Administrative Expense","Administrative","5.4","Marketing Expenses",{"$f":"'LTC Rev-Exp Region 9'!H$60","v":{"v":0,"d":"$0.00"}},{"$f":"'LTC Rev-Exp Region 9'!I$60","v":{"v":0,"d":"$0.00"}},{"$f":"'LTC Rev-Exp Region 9'!J$60","v":{"v":0,"d":"$0.00"}},{"$f":"'LTC Rev-Exp Region 9'!K$60","v":{"v":0,"d":"$0.00"}},{"v":0,"d":"$0.00"}]
["LTC",null,null,{"$f":"Jurat!I$1","v":0},{"$f":"Jurat!D$33","v":"00:00:00"},"Q2","2017-06-30","Region 9","Operating Expense","Administrative Expense","Administrative","5.5","General  Administration",{"$f":"'LTC Rev-Exp Region 9'!H$61","v":{"v":0,"d":"$0.00"}},{"$f":"'LTC Rev-Exp Region 9'!I$61","v":{"v":0,"d":"$0.00"}},{"$f":"'LTC Rev-Exp Region 9'!J$61","v":{"v":0,"d":"$0.00"}},{"$f":"'LTC Rev-Exp Region 9'!K$61","v":{"v":0,"d":"$0.00"}},{"v":0,"d":"$0.00"}]
["LTC",null,null,{"$f":"Jurat!I$1","v":0},{"$f":"Jurat!D$33","v":"00:00:00"},"Q2","2017-06-30","Region 9","Operating Expense","Administrative Expense","Administrative","5.6","Compliance/Regulatory",{"$f":"'LTC Rev-Exp Region 9'!H$62","v":{"v":0,"d":"$0.00"}},{"$f":"'LTC Rev-Exp Region 9'!I$62","v":{"v":0,"d":"$0.00"}},{"$f":"'LTC Rev-Exp Region 9'!J$62","v":{"v":0,"d":"$0.00"}},{"$f":"'LTC Rev-Exp Region 9'!K$62","v":{"v":0,"d":"$0.00"}},{"v":0,"d":"$0.00"}]
["LTC",null,null,{"$f":"Jurat!I$1","v":0},{"$f":"Jurat!D$33","v":"00:00:00"},"Q2","2017-06-30","Region 9","Operating Expense","Taxes & Fees","Taxes & Fees","6.1","State Premium Tax",{"$f":"'LTC Rev-Exp Region 9'!H$64","v":{"v":0,"d":"$0.00"}},{"v":0,"d":"$0.00"},{"v":0,"d":"$0.00"},{"v":0,"d":"$0.00"},{"v":0,"d":"$0.00"}]
["LTC",null,null,{"$f":"Jurat!I$1","v":0},{"$f":"Jurat!D$33","v":"00:00:00"},"Q2","2017-06-30","Region 9","Operating Expense","Taxes & Fees","Taxes & Fees","6.2","Department of Insurance Assessments",{"$f":"'LTC Rev-Exp Region 9'!H$65","v":{"v":0,"d":"$0.00"}},{"v":0,"d":"$0.00"},{"v":0,"d":"$0.00"},{"v":0,"d":"$0.00"},{"v":0,"d":"$0.00"}]
["LTC",null,null,{"$f":"Jurat!I$1","v":0},{"$f":"Jurat!D$33","v":"00:00:00"},"Q2","2017-06-30","Region 9","Non-Operating Expense","Income Tax Expense","Income Tax Expense","9.0","Income Tax Expense",{"$f":"'LTC Rev-Exp Region 9'!H$72","v":{"v":0,"d":"$0.00"}},{"v":0,"d":"$0.00"},{"v":0,"d":"$0.00"},{"v":0,"d":"$0.00"},{"v":0,"d":"$0.00"}]
["LTC",null,null,{"$f":"Jurat!I$1","v":0},{"$f":"Jurat!D$33","v":"00:00:00"},"Q3","2017-09-30","Region 9","Member Months","Member Months","Member Months",null,"Member Months",{"$f":"'LTC Rev-Exp Region 9'!L$9","v":{"v":0,"d":"$0.00"}},{"$f":"'LTC Rev-Exp Region 9'!M$9","v":{"v":0,"d":"$0.00"}},{"$f":"'LTC Rev-Exp Region 9'!N$9","v":{"v":0,"d":"$0.00"}},{"$f":"'LTC Rev-Exp Region 9'!O$9","v":{"v":0,"d":"$0.00"}},{"v":0,"d":"$0.00"}]
["LTC",null,null,{"$f":"Jurat!I$1","v":0},{"$f":"Jurat!D$33","v":"00:00:00"},"Q3","2017-09-30","Region 9","Operating Revenue","Capitation","Capitation",1.1,"Capitation",{"$f":"'LTC Rev-Exp Region 9'!L$11","v":{"v":0,"d":"$0.00"}},{"$f":"'LTC Rev-Exp Region 9'!M$11","v":{"v":0,"d":"$0.00"}},{"$f":"'LTC Rev-Exp Region 9'!N$11","v":{"v":0,"d":"$0.00"}},{"$f":"'LTC Rev-Exp Region 9'!O$11","v":{"v":0,"d":"$0.00"}},{"v":0,"d":"$0.00"}]
["LTC",null,null,{"$f":"Jurat!I$1","v":0},{"$f":"Jurat!D$33","v":"00:00:00"},"Q3","2017-09-30","Region 9","Operating Revenue","Capitation","NH Rate Reconciliation",1.2,"NH Rate Reconciliation",{"$f":"'LTC Rev-Exp Region 9'!L$12","v":{"v":0,"d":"$0.00"}},{"$f":"'LTC Rev-Exp Region 9'!M$12","v":{"v":0,"d":"$0.00"}},{"$f":"'LTC Rev-Exp Region 9'!N$12","v":{"v":0,"d":"$0.00"}},{"$f":"'LTC Rev-Exp Region 9'!O$12","v":{"v":0,"d":"$0.00"}},{"v":0,"d":"$0.00"}]
["LTC",null,null,{"$f":"Jurat!I$1","v":0},{"$f":"Jurat!D$33","v":"00:00:00"},"Q3","2017-09-30","Region 9","Operating Revenue","Other Revenue","Other Revenue",1.3,"Other Revenue",{"$f":"'LTC Rev-Exp Region 9'!L$13","v":{"v":0,"d":"$0.00"}},{"$f":"'LTC Rev-Exp Region 9'!M$13","v":{"v":0,"d":"$0.00"}},{"$f":"'LTC Rev-Exp Region 9'!N$13","v":{"v":0,"d":"$0.00"}},{"$f":"'LTC Rev-Exp Region 9'!O$13","v":{"v":0,"d":"$0.00"}},{"v":0,"d":"$0.00"}]
["LTC",null,null,{"$f":"Jurat!I$1","v":0},{"$f":"Jurat!D$33","v":"00:00:00"},"Q3","2017-09-30","Region 9","Operating Expense","Medical Expense","NF & Hospice","2.1","Nursing Facility Days (Medicaid)",{"$f":"'LTC Rev-Exp Region 9'!L$17","v":{"v":0,"d":"$0.00"}},{"$f":"'LTC Rev-Exp Region 9'!M$17","v":{"v":0,"d":"$0.00"}},{"$f":"'LTC Rev-Exp Region 9'!N$17","v":{"v":0,"d":"$0.00"}},{"$f":"'LTC Rev-Exp Region 9'!O$17","v":{"v":0,"d":"$0.00"}},{"v":0,"d":"$0.00"}]
["LTC",null,null,{"$f":"Jurat!I$1","v":0},{"$f":"Jurat!D$33","v":"00:00:00"},"Q3","2017-09-30","Region 9","Operating Expense","Medical Expense","NF & Hospice","2.2","Nursing Facility Days (Crossover)",{"$f":"'LTC Rev-Exp Region 9'!L$18","v":{"v":0,"d":"$0.00"}},{"$f":"'LTC Rev-Exp Region 9'!M$18","v":{"v":0,"d":"$0.00"}},{"$f":"'LTC Rev-Exp Region 9'!N$18","v":{"v":0,"d":"$0.00"}},{"$f":"'LTC Rev-Exp Region 9'!O$18","v":{"v":0,"d":"$0.00"}},{"v":0,"d":"$0.00"}]
["LTC",null,null,{"$f":"Jurat!I$1","v":0},{"$f":"Jurat!D$33","v":"00:00:00"},"Q3","2017-09-30","Region 9","Operating Expense","Medical Expense","NF & Hospice","2.3","Nursing Facility FFS (Medicaid)",{"$f":"'LTC Rev-Exp Region 9'!L$19","v":{"v":0,"d":"$0.00"}},{"$f":"'LTC Rev-Exp Region 9'!M$19","v":{"v":0,"d":"$0.00"}},{"$f":"'LTC Rev-Exp Region 9'!N$19","v":{"v":0,"d":"$0.00"}},{"$f":"'LTC Rev-Exp Region 9'!O$19","v":{"v":0,"d":"$0.00"}},{"v":0,"d":"$0.00"}]
["LTC",null,null,{"$f":"Jurat!I$1","v":0},{"$f":"Jurat!D$33","v":"00:00:00"},"Q3","2017-09-30","Region 9","Operating Expense","Medical Expense","NF & Hospice","2.4","Nursing Facility FFS (Crossover)",{"$f":"'LTC Rev-Exp Region 9'!L$20","v":{"v":0,"d":"$0.00"}},{"$f":"'LTC Rev-Exp Region 9'!M$20","v":{"v":0,"d":"$0.00"}},{"$f":"'LTC Rev-Exp Region 9'!N$20","v":{"v":0,"d":"$0.00"}},{"$f":"'LTC Rev-Exp Region 9'!O$20","v":{"v":0,"d":"$0.00"}},{"v":0,"d":"$0.00"}]
["LTC",null,null,{"$f":"Jurat!I$1","v":0},{"$f":"Jurat!D$33","v":"00:00:00"},"Q3","2017-09-30","Region 9","Operating Expense","Medical Expense","NF & Hospice","2.5","Hospice Days",{"$f":"'LTC Rev-Exp Region 9'!L$21","v":{"v":0,"d":"$0.00"}},{"$f":"'LTC Rev-Exp Region 9'!M$21","v":{"v":0,"d":"$0.00"}},{"$f":"'LTC Rev-Exp Region 9'!N$21","v":{"v":0,"d":"$0.00"}},{"$f":"'LTC Rev-Exp Region 9'!O$21","v":{"v":0,"d":"$0.00"}},{"v":0,"d":"$0.00"}]
["LTC",null,null,{"$f":"Jurat!I$1","v":0},{"$f":"Jurat!D$33","v":"00:00:00"},"Q3","2017-09-30","Region 9","Operating Expense","Medical Expense","NF & Hospice","2.6","Hospice FFS",{"$f":"'LTC Rev-Exp Region 9'!L$22","v":{"v":0,"d":"$0.00"}},{"$f":"'LTC Rev-Exp Region 9'!M$22","v":{"v":0,"d":"$0.00"}},{"$f":"'LTC Rev-Exp Region 9'!N$22","v":{"v":0,"d":"$0.00"}},{"$f":"'LTC Rev-Exp Region 9'!O$22","v":{"v":0,"d":"$0.00"}},{"v":0,"d":"$0.00"}]
["LTC",null,null,{"$f":"Jurat!I$1","v":0},{"$f":"Jurat!D$33","v":"00:00:00"},"Q3","2017-09-30","Region 9","Operating Expense","Medical Expense","NF & Hospice","2.7","Ending IBNP for NF & Hospice",{"$f":"'LTC Rev-Exp Region 9'!L$23","v":{"v":0,"d":"$0.00"}},{"$f":"'LTC Rev-Exp Region 9'!M$23","v":{"v":0,"d":"$0.00"}},{"$f":"'LTC Rev-Exp Region 9'!N$23","v":{"v":0,"d":"$0.00"}},{"$f":"'LTC Rev-Exp Region 9'!O$23","v":{"v":0,"d":"$0.00"}},{"v":0,"d":"$0.00"}]
["LTC",null,null,{"$f":"Jurat!I$1","v":0},{"$f":"Jurat!D$33","v":"00:00:00"},"Q3","2017-09-30","Region 9","Operating Expense","Medical Expense","NF & Hospice","2.8","NF & Hospice Subcapitated",{"$f":"'LTC Rev-Exp Region 9'!L$24","v":{"v":0,"d":"$0.00"}},{"$f":"'LTC Rev-Exp Region 9'!M$24","v":{"v":0,"d":"$0.00"}},{"$f":"'LTC Rev-Exp Region 9'!N$24","v":{"v":0,"d":"$0.00"}},{"$f":"'LTC Rev-Exp Region 9'!O$24","v":{"v":0,"d":"$0.00"}},{"v":0,"d":"$0.00"}]
["LTC",null,null,{"$f":"Jurat!I$1","v":0},{"$f":"Jurat!D$33","v":"00:00:00"},"Q3","2017-09-30","Region 9","Operating Expense","Medical Expense","NF & Hospice","2.9","NF & Hospice Settlements",{"$f":"'LTC Rev-Exp Region 9'!L$25","v":{"v":0,"d":"$0.00"}},{"$f":"'LTC Rev-Exp Region 9'!M$25","v":{"v":0,"d":"$0.00"}},{"$f":"'LTC Rev-Exp Region 9'!N$25","v":{"v":0,"d":"$0.00"}},{"$f":"'LTC Rev-Exp Region 9'!O$25","v":{"v":0,"d":"$0.00"}},{"v":0,"d":"$0.00"}]
["LTC",null,null,{"$f":"Jurat!I$1","v":0},{"$f":"Jurat!D$33","v":"00:00:00"},"Q3","2017-09-30","Region 9","Operating Expense","Medical Expense","LTC Services","2.11","Assisted Living FFS",{"$f":"'LTC Rev-Exp Region 9'!L$27","v":{"v":0,"d":"$0.00"}},{"$f":"'LTC Rev-Exp Region 9'!M$27","v":{"v":0,"d":"$0.00"}},{"$f":"'LTC Rev-Exp Region 9'!N$27","v":{"v":0,"d":"$0.00"}},{"$f":"'LTC Rev-Exp Region 9'!O$27","v":{"v":0,"d":"$0.00"}},{"v":0,"d":"$0.00"}]
["LTC",null,null,{"$f":"Jurat!I$1","v":0},{"$f":"Jurat!D$33","v":"00:00:00"},"Q3","2017-09-30","Region 9","Operating Expense","Medical Expense","LTC Services","2.12","Home Health FFS",{"$f":"'LTC Rev-Exp Region 9'!L$28","v":{"v":0,"d":"$0.00"}},{"$f":"'LTC Rev-Exp Region 9'!M$28","v":{"v":0,"d":"$0.00"}},{"$f":"'LTC Rev-Exp Region 9'!N$28","v":{"v":0,"d":"$0.00"}},{"$f":"'LTC Rev-Exp Region 9'!O$28","v":{"v":0,"d":"$0.00"}},{"v":0,"d":"$0.00"}]
["LTC",null,null,{"$f":"Jurat!I$1","v":0},{"$f":"Jurat!D$33","v":"00:00:00"},"Q3","2017-09-30","Region 9","Operating Expense","Medical Expense","LTC Services","2.13","Medical Equipment/Supplies FFS",{"$f":"'LTC Rev-Exp Region 9'!L$29","v":{"v":0,"d":"$0.00"}},{"$f":"'LTC Rev-Exp Region 9'!M$29","v":{"v":0,"d":"$0.00"}},{"$f":"'LTC Rev-Exp Region 9'!N$29","v":{"v":0,"d":"$0.00"}},{"$f":"'LTC Rev-Exp Region 9'!O$29","v":{"v":0,"d":"$0.00"}},{"v":0,"d":"$0.00"}]
["LTC",null,null,{"$f":"Jurat!I$1","v":0},{"$f":"Jurat!D$33","v":"00:00:00"},"Q3","2017-09-30","Region 9","Operating Expense","Medical Expense","LTC Services","2.14","Therapy FFS",{"$f":"'LTC Rev-Exp Region 9'!L$30","v":{"v":0,"d":"$0.00"}},{"$f":"'LTC Rev-Exp Region 9'!M$30","v":{"v":0,"d":"$0.00"}},{"$f":"'LTC Rev-Exp Region 9'!N$30","v":{"v":0,"d":"$0.00"}},{"$f":"'LTC Rev-Exp Region 9'!O$30","v":{"v":0,"d":"$0.00"}},{"v":0,"d":"$0.00"}]
["LTC",null,null,{"$f":"Jurat!I$1","v":0},{"$f":"Jurat!D$33","v":"00:00:00"},"Q3","2017-09-30","Region 9","Operating Expense","Medical Expense","LTC Services","2.15","Transportation FFS",{"$f":"'LTC Rev-Exp Region 9'!L$31","v":{"v":0,"d":"$0.00"}},{"$f":"'LTC Rev-Exp Region 9'!M$31","v":{"v":0,"d":"$0.00"}},{"$f":"'LTC Rev-Exp Region 9'!N$31","v":{"v":0,"d":"$0.00"}},{"$f":"'LTC Rev-Exp Region 9'!O$31","v":{"v":0,"d":"$0.00"}},{"v":0,"d":"$0.00"}]
["LTC",null,null,{"$f":"Jurat!I$1","v":0},{"$f":"Jurat!D$33","v":"00:00:00"},"Q3","2017-09-30","Region 9","Operating Expense","Medical Expense","LTC Services","2.16","Case Management FFS (Plan Provided)",{"$f":"'LTC Rev-Exp Region 9'!L$32","v":{"v":0,"d":"$0.00"}},{"$f":"'LTC Rev-Exp Region 9'!M$32","v":{"v":0,"d":"$0.00"}},{"$f":"'LTC Rev-Exp Region 9'!N$32","v":{"v":0,"d":"$0.00"}},{"$f":"'LTC Rev-Exp Region 9'!O$32","v":{"v":0,"d":"$0.00"}},{"v":0,"d":"$0.00"}]
["LTC",null,null,{"$f":"Jurat!I$1","v":0},{"$f":"Jurat!D$33","v":"00:00:00"},"Q3","2017-09-30","Region 9","Operating Expense","Medical Expense","LTC Services","2.17","Case Management FF (Non-Plan Provided)",{"$f":"'LTC Rev-Exp Region 9'!L$33","v":{"v":0,"d":"$0.00"}},{"$f":"'LTC Rev-Exp Region 9'!M$33","v":{"v":0,"d":"$0.00"}},{"$f":"'LTC Rev-Exp Region 9'!N$33","v":{"v":0,"d":"$0.00"}},{"$f":"'LTC Rev-Exp Region 9'!O$33","v":{"v":0,"d":"$0.00"}},{"v":0,"d":"$0.00"}]
["LTC",null,null,{"$f":"Jurat!I$1","v":0},{"$f":"Jurat!D$33","v":"00:00:00"},"Q3","2017-09-30","Region 9","Operating Expense","Medical Expense","LTC Services","2.18","HCBS FFS",{"$f":"'LTC Rev-Exp Region 9'!L$34","v":{"v":0,"d":"$0.00"}},{"$f":"'LTC Rev-Exp Region 9'!M$34","v":{"v":0,"d":"$0.00"}},{"$f":"'LTC Rev-Exp Region 9'!N$34","v":{"v":0,"d":"$0.00"}},{"$f":"'LTC Rev-Exp Region 9'!O$34","v":{"v":0,"d":"$0.00"}},{"v":0,"d":"$0.00"}]
["LTC",null,null,{"$f":"Jurat!I$1","v":0},{"$f":"Jurat!D$33","v":"00:00:00"},"Q3","2017-09-30","Region 9","Operating Expense","Medical Expense","LTC Services","2.19","Subcapitated LTC Services",{"$f":"'LTC Rev-Exp Region 9'!L$35","v":{"v":0,"d":"$0.00"}},{"$f":"'LTC Rev-Exp Region 9'!M$35","v":{"v":0,"d":"$0.00"}},{"$f":"'LTC Rev-Exp Region 9'!N$35","v":{"v":0,"d":"$0.00"}},{"$f":"'LTC Rev-Exp Region 9'!O$35","v":{"v":0,"d":"$0.00"}},{"v":0,"d":"$0.00"}]
["LTC",null,null,{"$f":"Jurat!I$1","v":0},{"$f":"Jurat!D$33","v":"00:00:00"},"Q3","2017-09-30","Region 9","Operating Expense","Medical Expense","LTC Services","2.20","Ending IBNP for Long Term Care Services",{"$f":"'LTC Rev-Exp Region 9'!L$36","v":{"v":0,"d":"$0.00"}},{"$f":"'LTC Rev-Exp Region 9'!M$36","v":{"v":0,"d":"$0.00"}},{"$f":"'LTC Rev-Exp Region 9'!N$36","v":{"v":0,"d":"$0.00"}},{"$f":"'LTC Rev-Exp Region 9'!O$36","v":{"v":0,"d":"$0.00"}},{"v":0,"d":"$0.00"}]
["LTC",null,null,{"$f":"Jurat!I$1","v":0},{"$f":"Jurat!D$33","v":"00:00:00"},"Q3","2017-09-30","Region 9","Operating Expense","Medical Expense","LTC Services","2.21","LTC Services Settlements",{"$f":"'LTC Rev-Exp Region 9'!L$37","v":{"v":0,"d":"$0.00"}},{"$f":"'LTC Rev-Exp Region 9'!M$37","v":{"v":0,"d":"$0.00"}},{"$f":"'LTC Rev-Exp Region 9'!N$37","v":{"v":0,"d":"$0.00"}},{"$f":"'LTC Rev-Exp Region 9'!O$37","v":{"v":0,"d":"$0.00"}},{"v":0,"d":"$0.00"}]
["LTC",null,null,{"$f":"Jurat!I$1","v":0},{"$f":"Jurat!D$33","v":"00:00:00"},"Q3","2017-09-30","Region 9","Operating Expense","Medical Expense","Expanded Benefits","3.1","Expanded Benefits FFS",{"$f":"'LTC Rev-Exp Region 9'!L$39","v":{"v":0,"d":"$0.00"}},{"$f":"'LTC Rev-Exp Region 9'!M$39","v":{"v":0,"d":"$0.00"}},{"$f":"'LTC Rev-Exp Region 9'!N$39","v":{"v":0,"d":"$0.00"}},{"$f":"'LTC Rev-Exp Region 9'!O$39","v":{"v":0,"d":"$0.00"}},{"v":0,"d":"$0.00"}]
["LTC",null,null,{"$f":"Jurat!I$1","v":0},{"$f":"Jurat!D$33","v":"00:00:00"},"Q3","2017-09-30","Region 9","Operating Expense","Medical Expense","Expanded Benefits","3.2","Expanded Benefits Subcapitation",{"$f":"'LTC Rev-Exp Region 9'!L$40","v":{"v":0,"d":"$0.00"}},{"$f":"'LTC Rev-Exp Region 9'!M$40","v":{"v":0,"d":"$0.00"}},{"$f":"'LTC Rev-Exp Region 9'!N$40","v":{"v":0,"d":"$0.00"}},{"$f":"'LTC Rev-Exp Region 9'!O$40","v":{"v":0,"d":"$0.00"}},{"v":0,"d":"$0.00"}]
["LTC",null,null,{"$f":"Jurat!I$1","v":0},{"$f":"Jurat!D$33","v":"00:00:00"},"Q3","2017-09-30","Region 9","Operating Expense","Medical Expense","Expanded Benefits","3.3","Ending IBNP for Expanded Benefits",{"$f":"'LTC Rev-Exp Region 9'!L$41","v":{"v":0,"d":"$0.00"}},{"$f":"'LTC Rev-Exp Region 9'!M$41","v":{"v":0,"d":"$0.00"}},{"$f":"'LTC Rev-Exp Region 9'!N$41","v":{"v":0,"d":"$0.00"}},{"$f":"'LTC Rev-Exp Region 9'!O$41","v":{"v":0,"d":"$0.00"}},{"v":0,"d":"$0.00"}]
["LTC",null,null,{"$f":"Jurat!I$1","v":0},{"$f":"Jurat!D$33","v":"00:00:00"},"Q3","2017-09-30","Region 9","Operating Expense","Medical Expense","Expanded Benefits","3.4","Expanded Benefits Settlements",{"$f":"'LTC Rev-Exp Region 9'!L$42","v":{"v":0,"d":"$0.00"}},{"$f":"'LTC Rev-Exp Region 9'!M$42","v":{"v":0,"d":"$0.00"}},{"$f":"'LTC Rev-Exp Region 9'!N$42","v":{"v":0,"d":"$0.00"}},{"$f":"'LTC Rev-Exp Region 9'!O$42","v":{"v":0,"d":"$0.00"}},{"v":0,"d":"$0.00"}]
["LTC",null,null,{"$f":"Jurat!I$1","v":0},{"$f":"Jurat!D$33","v":"00:00:00"},"Q3","2017-09-30","Region 9","Operating Expense","Medical Expense","Other Medical","4.5","TPL & Fraud/Abuse Recoveries",{"$f":"'LTC Rev-Exp Region 9'!L$48","v":{"v":0,"d":"$0.00"}},{"$f":"'LTC Rev-Exp Region 9'!M$48","v":{"v":0,"d":"$0.00"}},{"$f":"'LTC Rev-Exp Region 9'!N$48","v":{"v":0,"d":"$0.00"}},{"$f":"'LTC Rev-Exp Region 9'!O$48","v":{"v":0,"d":"$0.00"}},{"v":0,"d":"$0.00"}]
["LTC",null,null,{"$f":"Jurat!I$1","v":0},{"$f":"Jurat!D$33","v":"00:00:00"},"Q3","2017-09-30","Region 9","Operating Expense","Medical Expense","Other Medical","4.6.1","Premium Deficiency Reserve",{"$f":"'LTC Rev-Exp Region 9'!L$49","v":{"v":0,"d":"$0.00"}},{"$f":"'LTC Rev-Exp Region 9'!M$49","v":{"v":0,"d":"$0.00"}},{"$f":"'LTC Rev-Exp Region 9'!N$49","v":{"v":0,"d":"$0.00"}},{"$f":"'LTC Rev-Exp Region 9'!O$49","v":{"v":0,"d":"$0.00"}},{"v":0,"d":"$0.00"}]
["LTC",null,null,{"$f":"Jurat!I$1","v":0},{"$f":"Jurat!D$33","v":"00:00:00"},"Q3","2017-09-30","Region 9","Operating Expense","Medical Expense","Other Medical","4.8","Reinsurance Premiums",{"$f":"'LTC Rev-Exp Region 9'!L$51","v":{"v":0,"d":"$0.00"}},{"$f":"'LTC Rev-Exp Region 9'!M$51","v":{"v":0,"d":"$0.00"}},{"$f":"'LTC Rev-Exp Region 9'!N$51","v":{"v":0,"d":"$0.00"}},{"$f":"'LTC Rev-Exp Region 9'!O$51","v":{"v":0,"d":"$0.00"}},{"v":0,"d":"$0.00"}]
["LTC",null,null,{"$f":"Jurat!I$1","v":0},{"$f":"Jurat!D$33","v":"00:00:00"},"Q3","2017-09-30","Region 9","Operating Expense","Medical Expense","Other Medical","4.9","Reinsurance Recoveries",{"$f":"'LTC Rev-Exp Region 9'!L$52","v":{"v":0,"d":"$0.00"}},{"$f":"'LTC Rev-Exp Region 9'!M$52","v":{"v":0,"d":"$0.00"}},{"$f":"'LTC Rev-Exp Region 9'!N$52","v":{"v":0,"d":"$0.00"}},{"$f":"'LTC Rev-Exp Region 9'!O$52","v":{"v":0,"d":"$0.00"}},{"v":0,"d":"$0.00"}]
["LTC",null,null,{"$f":"Jurat!I$1","v":0},{"$f":"Jurat!D$33","v":"00:00:00"},"Q3","2017-09-30","Region 9","Operating Expense","Administrative Expense","Administrative","5.1","Salaries & Benefits",{"$f":"'LTC Rev-Exp Region 9'!L$57","v":{"v":0,"d":"$0.00"}},{"$f":"'LTC Rev-Exp Region 9'!M$57","v":{"v":0,"d":"$0.00"}},{"$f":"'LTC Rev-Exp Region 9'!N$57","v":{"v":0,"d":"$0.00"}},{"$f":"'LTC Rev-Exp Region 9'!O$57","v":{"v":0,"d":"$0.00"}},{"v":0,"d":"$0.00"}]
["LTC",null,null,{"$f":"Jurat!I$1","v":0},{"$f":"Jurat!D$33","v":"00:00:00"},"Q3","2017-09-30","Region 9","Operating Expense","Administrative Expense","Administrative","5.2","Administrative Services",{"$f":"'LTC Rev-Exp Region 9'!L$58","v":{"v":0,"d":"$0.00"}},{"$f":"'LTC Rev-Exp Region 9'!M$58","v":{"v":0,"d":"$0.00"}},{"$f":"'LTC Rev-Exp Region 9'!N$58","v":{"v":0,"d":"$0.00"}},{"$f":"'LTC Rev-Exp Region 9'!O$58","v":{"v":0,"d":"$0.00"}},{"v":0,"d":"$0.00"}]
["LTC",null,null,{"$f":"Jurat!I$1","v":0},{"$f":"Jurat!D$33","v":"00:00:00"},"Q3","2017-09-30","Region 9","Operating Expense","Administrative Expense","Administrative","5.3","Information Systems",{"$f":"'LTC Rev-Exp Region 9'!L$59","v":{"v":0,"d":"$0.00"}},{"$f":"'LTC Rev-Exp Region 9'!M$59","v":{"v":0,"d":"$0.00"}},{"$f":"'LTC Rev-Exp Region 9'!N$59","v":{"v":0,"d":"$0.00"}},{"$f":"'LTC Rev-Exp Region 9'!O$59","v":{"v":0,"d":"$0.00"}},{"v":0,"d":"$0.00"}]
["LTC",null,null,{"$f":"Jurat!I$1","v":0},{"$f":"Jurat!D$33","v":"00:00:00"},"Q3","2017-09-30","Region 9","Operating Expense","Administrative Expense","Administrative","5.4","Marketing Expenses",{"$f":"'LTC Rev-Exp Region 9'!L$60","v":{"v":0,"d":"$0.00"}},{"$f":"'LTC Rev-Exp Region 9'!M$60","v":{"v":0,"d":"$0.00"}},{"$f":"'LTC Rev-Exp Region 9'!N$60","v":{"v":0,"d":"$0.00"}},{"$f":"'LTC Rev-Exp Region 9'!O$60","v":{"v":0,"d":"$0.00"}},{"v":0,"d":"$0.00"}]
["LTC",null,null,{"$f":"Jurat!I$1","v":0},{"$f":"Jurat!D$33","v":"00:00:00"},"Q3","2017-09-30","Region 9","Operating Expense","Administrative Expense","Administrative","5.5","General  Administration",{"$f":"'LTC Rev-Exp Region 9'!L$61","v":{"v":0,"d":"$0.00"}},{"$f":"'LTC Rev-Exp Region 9'!M$61","v":{"v":0,"d":"$0.00"}},{"$f":"'LTC Rev-Exp Region 9'!N$61","v":{"v":0,"d":"$0.00"}},{"$f":"'LTC Rev-Exp Region 9'!O$61","v":{"v":0,"d":"$0.00"}},{"v":0,"d":"$0.00"}]
["LTC",null,null,{"$f":"Jurat!I$1","v":0},{"$f":"Jurat!D$33","v":"00:00:00"},"Q3","2017-09-30","Region 9","Operating Expense","Administrative Expense","Administrative","5.6","Compliance/Regulatory",{"$f":"'LTC Rev-Exp Region 9'!L$62","v":{"v":0,"d":"$0.00"}},{"$f":"'LTC Rev-Exp Region 9'!M$62","v":{"v":0,"d":"$0.00"}},{"$f":"'LTC Rev-Exp Region 9'!N$62","v":{"v":0,"d":"$0.00"}},{"$f":"'LTC Rev-Exp Region 9'!O$62","v":{"v":0,"d":"$0.00"}},{"v":0,"d":"$0.00"}]
["LTC",null,null,{"$f":"Jurat!I$1","v":0},{"$f":"Jurat!D$33","v":"00:00:00"},"Q3","2017-09-30","Region 9","Operating Expense","Taxes & Fees","Taxes & Fees","6.1","State Premium Tax",{"$f":"'LTC Rev-Exp Region 9'!L$64","v":{"v":0,"d":"$0.00"}},{"v":0,"d":"$0.00"},{"v":0,"d":"$0.00"},{"v":0,"d":"$0.00"},{"v":0,"d":"$0.00"}]
["LTC",null,null,{"$f":"Jurat!I$1","v":0},{"$f":"Jurat!D$33","v":"00:00:00"},"Q3","2017-09-30","Region 9","Operating Expense","Taxes & Fees","Taxes & Fees","6.2","Department of Insurance Assessments",{"$f":"'LTC Rev-Exp Region 9'!L$65","v":{"v":0,"d":"$0.00"}},{"v":0,"d":"$0.00"},{"v":0,"d":"$0.00"},{"v":0,"d":"$0.00"},{"v":0,"d":"$0.00"}]
["LTC",null,null,{"$f":"Jurat!I$1","v":0},{"$f":"Jurat!D$33","v":"00:00:00"},"Q3","2017-09-30","Region 9","Non-Operating Expense","Income Tax Expense","Income Tax Expense","9.0","Income Tax Expense",{"$f":"'LTC Rev-Exp Region 9'!L$72","v":{"v":0,"d":"$0.00"}},{"v":0,"d":"$0.00"},{"v":0,"d":"$0.00"},{"v":0,"d":"$0.00"},{"v":0,"d":"$0.00"}]
["LTC",null,null,{"$f":"Jurat!I$1","v":0},{"$f":"Jurat!D$33","v":"00:00:00"},"Q4","2017-12-31","Region 9","Member Months","Member Months","Member Months",null,"Member Months",{"$f":"'LTC Rev-Exp Region 9'!P$9","v":{"v":0,"d":"$0.00"}},{"$f":"'LTC Rev-Exp Region 9'!Q$9","v":{"v":0,"d":"$0.00"}},{"$f":"'LTC Rev-Exp Region 9'!R$9","v":{"v":0,"d":"$0.00"}},{"$f":"'LTC Rev-Exp Region 9'!S$9","v":{"v":0,"d":"$0.00"}},{"v":0,"d":"$0.00"}]
["LTC",null,null,{"$f":"Jurat!I$1","v":0},{"$f":"Jurat!D$33","v":"00:00:00"},"Q4","2017-12-31","Region 9","Operating Revenue","Capitation","Capitation",1.1,"Capitation",{"$f":"'LTC Rev-Exp Region 9'!P$11","v":{"v":0,"d":"$0.00"}},{"$f":"'LTC Rev-Exp Region 9'!Q$11","v":{"v":0,"d":"$0.00"}},{"$f":"'LTC Rev-Exp Region 9'!R$11","v":{"v":0,"d":"$0.00"}},{"$f":"'LTC Rev-Exp Region 9'!S$11","v":{"v":0,"d":"$0.00"}},{"v":0,"d":"$0.00"}]
["LTC",null,null,{"$f":"Jurat!I$1","v":0},{"$f":"Jurat!D$33","v":"00:00:00"},"Q4","2017-12-31","Region 9","Operating Revenue","Capitation","NH Rate Reconciliation",1.2,"NH Rate Reconciliation",{"$f":"'LTC Rev-Exp Region 9'!P$12","v":{"v":0,"d":"$0.00"}},{"$f":"'LTC Rev-Exp Region 9'!Q$12","v":{"v":0,"d":"$0.00"}},{"$f":"'LTC Rev-Exp Region 9'!R$12","v":{"v":0,"d":"$0.00"}},{"$f":"'LTC Rev-Exp Region 9'!S$12","v":{"v":0,"d":"$0.00"}},{"v":0,"d":"$0.00"}]
["LTC",null,null,{"$f":"Jurat!I$1","v":0},{"$f":"Jurat!D$33","v":"00:00:00"},"Q4","2017-12-31","Region 9","Operating Revenue","Other Revenue","Other Revenue",1.3,"Other Revenue",{"$f":"'LTC Rev-Exp Region 9'!P$13","v":{"v":0,"d":"$0.00"}},{"$f":"'LTC Rev-Exp Region 9'!Q$13","v":{"v":0,"d":"$0.00"}},{"$f":"'LTC Rev-Exp Region 9'!R$13","v":{"v":0,"d":"$0.00"}},{"$f":"'LTC Rev-Exp Region 9'!S$13","v":{"v":0,"d":"$0.00"}},{"v":0,"d":"$0.00"}]
["LTC",null,null,{"$f":"Jurat!I$1","v":0},{"$f":"Jurat!D$33","v":"00:00:00"},"Q4","2017-12-31","Region 9","Operating Expense","Medical Expense","NF & Hospice","2.1","Nursing Facility Days (Medicaid)",{"$f":"'LTC Rev-Exp Region 9'!P$17","v":{"v":0,"d":"$0.00"}},{"$f":"'LTC Rev-Exp Region 9'!Q$17","v":{"v":0,"d":"$0.00"}},{"$f":"'LTC Rev-Exp Region 9'!R$17","v":{"v":0,"d":"$0.00"}},{"$f":"'LTC Rev-Exp Region 9'!S$17","v":{"v":0,"d":"$0.00"}},{"v":0,"d":"$0.00"}]
["LTC",null,null,{"$f":"Jurat!I$1","v":0},{"$f":"Jurat!D$33","v":"00:00:00"},"Q4","2017-12-31","Region 9","Operating Expense","Medical Expense","NF & Hospice","2.2","Nursing Facility Days (Crossover)",{"$f":"'LTC Rev-Exp Region 9'!P$18","v":{"v":0,"d":"$0.00"}},{"$f":"'LTC Rev-Exp Region 9'!Q$18","v":{"v":0,"d":"$0.00"}},{"$f":"'LTC Rev-Exp Region 9'!R$18","v":{"v":0,"d":"$0.00"}},{"$f":"'LTC Rev-Exp Region 9'!S$18","v":{"v":0,"d":"$0.00"}},{"v":0,"d":"$0.00"}]
["LTC",null,null,{"$f":"Jurat!I$1","v":0},{"$f":"Jurat!D$33","v":"00:00:00"},"Q4","2017-12-31","Region 9","Operating Expense","Medical Expense","NF & Hospice","2.3","Nursing Facility FFS (Medicaid)",{"$f":"'LTC Rev-Exp Region 9'!P$19","v":{"v":0,"d":"$0.00"}},{"$f":"'LTC Rev-Exp Region 9'!Q$19","v":{"v":0,"d":"$0.00"}},{"$f":"'LTC Rev-Exp Region 9'!R$19","v":{"v":0,"d":"$0.00"}},{"$f":"'LTC Rev-Exp Region 9'!S$19","v":{"v":0,"d":"$0.00"}},{"v":0,"d":"$0.00"}]
["LTC",null,null,{"$f":"Jurat!I$1","v":0},{"$f":"Jurat!D$33","v":"00:00:00"},"Q4","2017-12-31","Region 9","Operating Expense","Medical Expense","NF & Hospice","2.4","Nursing Facility FFS (Crossover)",{"$f":"'LTC Rev-Exp Region 9'!P$20","v":{"v":0,"d":"$0.00"}},{"$f":"'LTC Rev-Exp Region 9'!Q$20","v":{"v":0,"d":"$0.00"}},{"$f":"'LTC Rev-Exp Region 9'!R$20","v":{"v":0,"d":"$0.00"}},{"$f":"'LTC Rev-Exp Region 9'!S$20","v":{"v":0,"d":"$0.00"}},{"v":0,"d":"$0.00"}]
["LTC",null,null,{"$f":"Jurat!I$1","v":0},{"$f":"Jurat!D$33","v":"00:00:00"},"Q4","2017-12-31","Region 9","Operating Expense","Medical Expense","NF & Hospice","2.5","Hospice Days",{"$f":"'LTC Rev-Exp Region 9'!P$21","v":{"v":0,"d":"$0.00"}},{"$f":"'LTC Rev-Exp Region 9'!Q$21","v":{"v":0,"d":"$0.00"}},{"$f":"'LTC Rev-Exp Region 9'!R$21","v":{"v":0,"d":"$0.00"}},{"$f":"'LTC Rev-Exp Region 9'!S$21","v":{"v":0,"d":"$0.00"}},{"v":0,"d":"$0.00"}]
["LTC",null,null,{"$f":"Jurat!I$1","v":0},{"$f":"Jurat!D$33","v":"00:00:00"},"Q4","2017-12-31","Region 9","Operating Expense","Medical Expense","NF & Hospice","2.6","Hospice FFS",{"$f":"'LTC Rev-Exp Region 9'!P$22","v":{"v":0,"d":"$0.00"}},{"$f":"'LTC Rev-Exp Region 9'!Q$22","v":{"v":0,"d":"$0.00"}},{"$f":"'LTC Rev-Exp Region 9'!R$22","v":{"v":0,"d":"$0.00"}},{"$f":"'LTC Rev-Exp Region 9'!S$22","v":{"v":0,"d":"$0.00"}},{"v":0,"d":"$0.00"}]
["LTC",null,null,{"$f":"Jurat!I$1","v":0},{"$f":"Jurat!D$33","v":"00:00:00"},"Q4","2017-12-31","Region 9","Operating Expense","Medical Expense","NF & Hospice","2.7","Ending IBNP for NF & Hospice",{"$f":"'LTC Rev-Exp Region 9'!P$23","v":{"v":0,"d":"$0.00"}},{"$f":"'LTC Rev-Exp Region 9'!Q$23","v":{"v":0,"d":"$0.00"}},{"$f":"'LTC Rev-Exp Region 9'!R$23","v":{"v":0,"d":"$0.00"}},{"$f":"'LTC Rev-Exp Region 9'!S$23","v":{"v":0,"d":"$0.00"}},{"v":0,"d":"$0.00"}]
["LTC",null,null,{"$f":"Jurat!I$1","v":0},{"$f":"Jurat!D$33","v":"00:00:00"},"Q4","2017-12-31","Region 9","Operating Expense","Medical Expense","NF & Hospice","2.8","NF & Hospice Subcapitated",{"$f":"'LTC Rev-Exp Region 9'!P$24","v":{"v":0,"d":"$0.00"}},{"$f":"'LTC Rev-Exp Region 9'!Q$24","v":{"v":0,"d":"$0.00"}},{"$f":"'LTC Rev-Exp Region 9'!R$24","v":{"v":0,"d":"$0.00"}},{"$f":"'LTC Rev-Exp Region 9'!S$24","v":{"v":0,"d":"$0.00"}},{"v":0,"d":"$0.00"}]
["LTC",null,null,{"$f":"Jurat!I$1","v":0},{"$f":"Jurat!D$33","v":"00:00:00"},"Q4","2017-12-31","Region 9","Operating Expense","Medical Expense","NF & Hospice","2.9","NF & Hospice Settlements",{"$f":"'LTC Rev-Exp Region 9'!P$25","v":{"v":0,"d":"$0.00"}},{"$f":"'LTC Rev-Exp Region 9'!Q$25","v":{"v":0,"d":"$0.00"}},{"$f":"'LTC Rev-Exp Region 9'!R$25","v":{"v":0,"d":"$0.00"}},{"$f":"'LTC Rev-Exp Region 9'!S$25","v":{"v":0,"d":"$0.00"}},{"v":0,"d":"$0.00"}]
["LTC",null,null,{"$f":"Jurat!I$1","v":0},{"$f":"Jurat!D$33","v":"00:00:00"},"Q4","2017-12-31","Region 9","Operating Expense","Medical Expense","LTC Services","2.11","Assisted Living FFS",{"$f":"'LTC Rev-Exp Region 9'!P$27","v":{"v":0,"d":"$0.00"}},{"$f":"'LTC Rev-Exp Region 9'!Q$27","v":{"v":0,"d":"$0.00"}},{"$f":"'LTC Rev-Exp Region 9'!R$27","v":{"v":0,"d":"$0.00"}},{"$f":"'LTC Rev-Exp Region 9'!S$27","v":{"v":0,"d":"$0.00"}},{"v":0,"d":"$0.00"}]
["LTC",null,null,{"$f":"Jurat!I$1","v":0},{"$f":"Jurat!D$33","v":"00:00:00"},"Q4","2017-12-31","Region 9","Operating Expense","Medical Expense","LTC Services","2.12","Home Health FFS",{"$f":"'LTC Rev-Exp Region 9'!P$28","v":{"v":0,"d":"$0.00"}},{"$f":"'LTC Rev-Exp Region 9'!Q$28","v":{"v":0,"d":"$0.00"}},{"$f":"'LTC Rev-Exp Region 9'!R$28","v":{"v":0,"d":"$0.00"}},{"$f":"'LTC Rev-Exp Region 9'!S$28","v":{"v":0,"d":"$0.00"}},{"v":0,"d":"$0.00"}]
["LTC",null,null,{"$f":"Jurat!I$1","v":0},{"$f":"Jurat!D$33","v":"00:00:00"},"Q4","2017-12-31","Region 9","Operating Expense","Medical Expense","LTC Services","2.13","Medical Equipment/Supplies FFS",{"$f":"'LTC Rev-Exp Region 9'!P$29","v":{"v":0,"d":"$0.00"}},{"$f":"'LTC Rev-Exp Region 9'!Q$29","v":{"v":0,"d":"$0.00"}},{"$f":"'LTC Rev-Exp Region 9'!R$29","v":{"v":0,"d":"$0.00"}},{"$f":"'LTC Rev-Exp Region 9'!S$29","v":{"v":0,"d":"$0.00"}},{"v":0,"d":"$0.00"}]
["LTC",null,null,{"$f":"Jurat!I$1","v":0},{"$f":"Jurat!D$33","v":"00:00:00"},"Q4","2017-12-31","Region 9","Operating Expense","Medical Expense","LTC Services","2.14","Therapy FFS",{"$f":"'LTC Rev-Exp Region 9'!P$30","v":{"v":0,"d":"$0.00"}},{"$f":"'LTC Rev-Exp Region 9'!Q$30","v":{"v":0,"d":"$0.00"}},{"$f":"'LTC Rev-Exp Region 9'!R$30","v":{"v":0,"d":"$0.00"}},{"$f":"'LTC Rev-Exp Region 9'!S$30","v":{"v":0,"d":"$0.00"}},{"v":0,"d":"$0.00"}]
["LTC",null,null,{"$f":"Jurat!I$1","v":0},{"$f":"Jurat!D$33","v":"00:00:00"},"Q4","2017-12-31","Region 9","Operating Expense","Medical Expense","LTC Services","2.15","Transportation FFS",{"$f":"'LTC Rev-Exp Region 9'!P$31","v":{"v":0,"d":"$0.00"}},{"$f":"'LTC Rev-Exp Region 9'!Q$31","v":{"v":0,"d":"$0.00"}},{"$f":"'LTC Rev-Exp Region 9'!R$31","v":{"v":0,"d":"$0.00"}},{"$f":"'LTC Rev-Exp Region 9'!S$31","v":{"v":0,"d":"$0.00"}},{"v":0,"d":"$0.00"}]
["LTC",null,null,{"$f":"Jurat!I$1","v":0},{"$f":"Jurat!D$33","v":"00:00:00"},"Q4","2017-12-31","Region 9","Operating Expense","Medical Expense","LTC Services","2.16","Case Management FFS (Plan Provided)",{"$f":"'LTC Rev-Exp Region 9'!P$32","v":{"v":0,"d":"$0.00"}},{"$f":"'LTC Rev-Exp Region 9'!Q$32","v":{"v":0,"d":"$0.00"}},{"$f":"'LTC Rev-Exp Region 9'!R$32","v":{"v":0,"d":"$0.00"}},{"$f":"'LTC Rev-Exp Region 9'!S$32","v":{"v":0,"d":"$0.00"}},{"v":0,"d":"$0.00"}]
["LTC",null,null,{"$f":"Jurat!I$1","v":0},{"$f":"Jurat!D$33","v":"00:00:00"},"Q4","2017-12-31","Region 9","Operating Expense","Medical Expense","LTC Services","2.17","Case Management FF (Non-Plan Provided)",{"$f":"'LTC Rev-Exp Region 9'!P$33","v":{"v":0,"d":"$0.00"}},{"$f":"'LTC Rev-Exp Region 9'!Q$33","v":{"v":0,"d":"$0.00"}},{"$f":"'LTC Rev-Exp Region 9'!R$33","v":{"v":0,"d":"$0.00"}},{"$f":"'LTC Rev-Exp Region 9'!S$33","v":{"v":0,"d":"$0.00"}},{"v":0,"d":"$0.00"}]
["LTC",null,null,{"$f":"Jurat!I$1","v":0},{"$f":"Jurat!D$33","v":"00:00:00"},"Q4","2017-12-31","Region 9","Operating Expense","Medical Expense","LTC Services","2.18","HCBS FFS",{"$f":"'LTC Rev-Exp Region 9'!P$34","v":{"v":0,"d":"$0.00"}},{"$f":"'LTC Rev-Exp Region 9'!Q$34","v":{"v":0,"d":"$0.00"}},{"$f":"'LTC Rev-Exp Region 9'!R$34","v":{"v":0,"d":"$0.00"}},{"$f":"'LTC Rev-Exp Region 9'!S$34","v":{"v":0,"d":"$0.00"}},{"v":0,"d":"$0.00"}]
["LTC",null,null,{"$f":"Jurat!I$1","v":0},{"$f":"Jurat!D$33","v":"00:00:00"},"Q4","2017-12-31","Region 9","Operating Expense","Medical Expense","LTC Services","2.19","Subcapitated LTC Services",{"$f":"'LTC Rev-Exp Region 9'!P$35","v":{"v":0,"d":"$0.00"}},{"$f":"'LTC Rev-Exp Region 9'!Q$35","v":{"v":0,"d":"$0.00"}},{"$f":"'LTC Rev-Exp Region 9'!R$35","v":{"v":0,"d":"$0.00"}},{"$f":"'LTC Rev-Exp Region 9'!S$35","v":{"v":0,"d":"$0.00"}},{"v":0,"d":"$0.00"}]
["LTC",null,null,{"$f":"Jurat!I$1","v":0},{"$f":"Jurat!D$33","v":"00:00:00"},"Q4","2017-12-31","Region 9","Operating Expense","Medical Expense","LTC Services","2.20","Ending IBNP for Long Term Care Services",{"$f":"'LTC Rev-Exp Region 9'!P$36","v":{"v":0,"d":"$0.00"}},{"$f":"'LTC Rev-Exp Region 9'!Q$36","v":{"v":0,"d":"$0.00"}},{"$f":"'LTC Rev-Exp Region 9'!R$36","v":{"v":0,"d":"$0.00"}},{"$f":"'LTC Rev-Exp Region 9'!S$36","v":{"v":0,"d":"$0.00"}},{"v":0,"d":"$0.00"}]
["LTC",null,null,{"$f":"Jurat!I$1","v":0},{"$f":"Jurat!D$33","v":"00:00:00"},"Q4","2017-12-31","Region 9","Operating Expense","Medical Expense","LTC Services","2.21","LTC Services Settlements",{"$f":"'LTC Rev-Exp Region 9'!P$37","v":{"v":0,"d":"$0.00"}},{"$f":"'LTC Rev-Exp Region 9'!Q$37","v":{"v":0,"d":"$0.00"}},{"$f":"'LTC Rev-Exp Region 9'!R$37","v":{"v":0,"d":"$0.00"}},{"$f":"'LTC Rev-Exp Region 9'!S$37","v":{"v":0,"d":"$0.00"}},{"v":0,"d":"$0.00"}]
["LTC",null,null,{"$f":"Jurat!I$1","v":0},{"$f":"Jurat!D$33","v":"00:00:00"},"Q4","2017-12-31","Region 9","Operating Expense","Medical Expense","Expanded Benefits","3.1","Expanded Benefits FFS",{"$f":"'LTC Rev-Exp Region 9'!P$39","v":{"v":0,"d":"$0.00"}},{"$f":"'LTC Rev-Exp Region 9'!Q$39","v":{"v":0,"d":"$0.00"}},{"$f":"'LTC Rev-Exp Region 9'!R$39","v":{"v":0,"d":"$0.00"}},{"$f":"'LTC Rev-Exp Region 9'!S$39","v":{"v":0,"d":"$0.00"}},{"v":0,"d":"$0.00"}]
["LTC",null,null,{"$f":"Jurat!I$1","v":0},{"$f":"Jurat!D$33","v":"00:00:00"},"Q4","2017-12-31","Region 9","Operating Expense","Medical Expense","Expanded Benefits","3.2","Expanded Benefits Subcapitation",{"$f":"'LTC Rev-Exp Region 9'!P$40","v":{"v":0,"d":"$0.00"}},{"$f":"'LTC Rev-Exp Region 9'!Q$40","v":{"v":0,"d":"$0.00"}},{"$f":"'LTC Rev-Exp Region 9'!R$40","v":{"v":0,"d":"$0.00"}},{"$f":"'LTC Rev-Exp Region 9'!S$40","v":{"v":0,"d":"$0.00"}},{"v":0,"d":"$0.00"}]
["LTC",null,null,{"$f":"Jurat!I$1","v":0},{"$f":"Jurat!D$33","v":"00:00:00"},"Q4","2017-12-31","Region 9","Operating Expense","Medical Expense","Expanded Benefits","3.3","Ending IBNP for Expanded Benefits",{"$f":"'LTC Rev-Exp Region 9'!P$41","v":{"v":0,"d":"$0.00"}},{"$f":"'LTC Rev-Exp Region 9'!Q$41","v":{"v":0,"d":"$0.00"}},{"$f":"'LTC Rev-Exp Region 9'!R$41","v":{"v":0,"d":"$0.00"}},{"$f":"'LTC Rev-Exp Region 9'!S$41","v":{"v":0,"d":"$0.00"}},{"v":0,"d":"$0.00"}]
["LTC",null,null,{"$f":"Jurat!I$1","v":0},{"$f":"Jurat!D$33","v":"00:00:00"},"Q4","2017-12-31","Region 9","Operating Expense","Medical Expense","Expanded Benefits","3.4","Expanded Benefits Settlements",{"$f":"'LTC Rev-Exp Region 9'!P$42","v":{"v":0,"d":"$0.00"}},{"$f":"'LTC Rev-Exp Region 9'!Q$42","v":{"v":0,"d":"$0.00"}},{"$f":"'LTC Rev-Exp Region 9'!R$42","v":{"v":0,"d":"$0.00"}},{"$f":"'LTC Rev-Exp Region 9'!S$42","v":{"v":0,"d":"$0.00"}},{"v":0,"d":"$0.00"}]
["LTC",null,null,{"$f":"Jurat!I$1","v":0},{"$f":"Jurat!D$33","v":"00:00:00"},"Q4","2017-12-31","Region 9","Operating Expense","Medical Expense","Other Medical","4.5","TPL & Fraud/Abuse Recoveries",{"$f":"'LTC Rev-Exp Region 9'!P$48","v":{"v":0,"d":"$0.00"}},{"$f":"'LTC Rev-Exp Region 9'!Q$48","v":{"v":0,"d":"$0.00"}},{"$f":"'LTC Rev-Exp Region 9'!R$48","v":{"v":0,"d":"$0.00"}},{"$f":"'LTC Rev-Exp Region 9'!S$48","v":{"v":0,"d":"$0.00"}},{"v":0,"d":"$0.00"}]
["LTC",null,null,{"$f":"Jurat!I$1","v":0},{"$f":"Jurat!D$33","v":"00:00:00"},"Q4","2017-12-31","Region 9","Operating Expense","Medical Expense","Other Medical","4.6.1","Premium Deficiency Reserve",{"$f":"'LTC Rev-Exp Region 9'!P$49","v":{"v":0,"d":"$0.00"}},{"$f":"'LTC Rev-Exp Region 9'!Q$49","v":{"v":0,"d":"$0.00"}},{"$f":"'LTC Rev-Exp Region 9'!R$49","v":{"v":0,"d":"$0.00"}},{"$f":"'LTC Rev-Exp Region 9'!S$49","v":{"v":0,"d":"$0.00"}},{"v":0,"d":"$0.00"}]
["LTC",null,null,{"$f":"Jurat!I$1","v":0},{"$f":"Jurat!D$33","v":"00:00:00"},"Q4","2017-12-31","Region 9","Operating Expense","Medical Expense","Other Medical","4.8","Reinsurance Premiums",{"$f":"'LTC Rev-Exp Region 9'!P$51","v":{"v":0,"d":"$0.00"}},{"$f":"'LTC Rev-Exp Region 9'!Q$51","v":{"v":0,"d":"$0.00"}},{"$f":"'LTC Rev-Exp Region 9'!R$51","v":{"v":0,"d":"$0.00"}},{"$f":"'LTC Rev-Exp Region 9'!S$51","v":{"v":0,"d":"$0.00"}},{"v":0,"d":"$0.00"}]
["LTC",null,null,{"$f":"Jurat!I$1","v":0},{"$f":"Jurat!D$33","v":"00:00:00"},"Q4","2017-12-31","Region 9","Operating Expense","Medical Expense","Other Medical","4.9","Reinsurance Recoveries",{"$f":"'LTC Rev-Exp Region 9'!P$52","v":{"v":0,"d":"$0.00"}},{"$f":"'LTC Rev-Exp Region 9'!Q$52","v":{"v":0,"d":"$0.00"}},{"$f":"'LTC Rev-Exp Region 9'!R$52","v":{"v":0,"d":"$0.00"}},{"$f":"'LTC Rev-Exp Region 9'!S$52","v":{"v":0,"d":"$0.00"}},{"v":0,"d":"$0.00"}]
["LTC",null,null,{"$f":"Jurat!I$1","v":0},{"$f":"Jurat!D$33","v":"00:00:00"},"Q4","2017-12-31","Region 9","Operating Expense","Administrative Expense","Administrative","5.1","Salaries & Benefits",{"$f":"'LTC Rev-Exp Region 9'!P$57","v":{"v":0,"d":"$0.00"}},{"$f":"'LTC Rev-Exp Region 9'!Q$57","v":{"v":0,"d":"$0.00"}},{"$f":"'LTC Rev-Exp Region 9'!R$57","v":{"v":0,"d":"$0.00"}},{"$f":"'LTC Rev-Exp Region 9'!S$57","v":{"v":0,"d":"$0.00"}},{"v":0,"d":"$0.00"}]
["LTC",null,null,{"$f":"Jurat!I$1","v":0},{"$f":"Jurat!D$33","v":"00:00:00"},"Q4","2017-12-31","Region 9","Operating Expense","Administrative Expense","Administrative","5.2","Administrative Services",{"$f":"'LTC Rev-Exp Region 9'!P$58","v":{"v":0,"d":"$0.00"}},{"$f":"'LTC Rev-Exp Region 9'!Q$58","v":{"v":0,"d":"$0.00"}},{"$f":"'LTC Rev-Exp Region 9'!R$58","v":{"v":0,"d":"$0.00"}},{"$f":"'LTC Rev-Exp Region 9'!S$58","v":{"v":0,"d":"$0.00"}},{"v":0,"d":"$0.00"}]
["LTC",null,null,{"$f":"Jurat!I$1","v":0},{"$f":"Jurat!D$33","v":"00:00:00"},"Q4","2017-12-31","Region 9","Operating Expense","Administrative Expense","Administrative","5.3","Information Systems",{"$f":"'LTC Rev-Exp Region 9'!P$59","v":{"v":0,"d":"$0.00"}},{"$f":"'LTC Rev-Exp Region 9'!Q$59","v":{"v":0,"d":"$0.00"}},{"$f":"'LTC Rev-Exp Region 9'!R$59","v":{"v":0,"d":"$0.00"}},{"$f":"'LTC Rev-Exp Region 9'!S$59","v":{"v":0,"d":"$0.00"}},{"v":0,"d":"$0.00"}]
["LTC",null,null,{"$f":"Jurat!I$1","v":0},{"$f":"Jurat!D$33","v":"00:00:00"},"Q4","2017-12-31","Region 9","Operating Expense","Administrative Expense","Administrative","5.4","Marketing Expenses",{"$f":"'LTC Rev-Exp Region 9'!P$60","v":{"v":0,"d":"$0.00"}},{"$f":"'LTC Rev-Exp Region 9'!Q$60","v":{"v":0,"d":"$0.00"}},{"$f":"'LTC Rev-Exp Region 9'!R$60","v":{"v":0,"d":"$0.00"}},{"$f":"'LTC Rev-Exp Region 9'!S$60","v":{"v":0,"d":"$0.00"}},{"v":0,"d":"$0.00"}]
["LTC",null,null,{"$f":"Jurat!I$1","v":0},{"$f":"Jurat!D$33","v":"00:00:00"},"Q4","2017-12-31","Region 9","Operating Expense","Administrative Expense","Administrative","5.5","General  Administration",{"$f":"'LTC Rev-Exp Region 9'!P$61","v":{"v":0,"d":"$0.00"}},{"$f":"'LTC Rev-Exp Region 9'!Q$61","v":{"v":0,"d":"$0.00"}},{"$f":"'LTC Rev-Exp Region 9'!R$61","v":{"v":0,"d":"$0.00"}},{"$f":"'LTC Rev-Exp Region 9'!S$61","v":{"v":0,"d":"$0.00"}},{"v":0,"d":"$0.00"}]
["LTC",null,null,{"$f":"Jurat!I$1","v":0},{"$f":"Jurat!D$33","v":"00:00:00"},"Q4","2017-12-31","Region 9","Operating Expense","Administrative Expense","Administrative","5.6","Compliance/Regulatory",{"$f":"'LTC Rev-Exp Region 9'!P$62","v":{"v":0,"d":"$0.00"}},{"$f":"'LTC Rev-Exp Region 9'!Q$62","v":{"v":0,"d":"$0.00"}},{"$f":"'LTC Rev-Exp Region 9'!R$62","v":{"v":0,"d":"$0.00"}},{"$f":"'LTC Rev-Exp Region 9'!S$62","v":{"v":0,"d":"$0.00"}},{"v":0,"d":"$0.00"}]
["LTC",null,null,{"$f":"Jurat!I$1","v":0},{"$f":"Jurat!D$33","v":"00:00:00"},"Q4","2017-12-31","Region 9","Operating Expense","Taxes & Fees","Taxes & Fees","6.1","State Premium Tax",{"$f":"'LTC Rev-Exp Region 9'!P$64","v":{"v":0,"d":"$0.00"}},{"v":0,"d":"$0.00"},{"v":0,"d":"$0.00"},{"v":0,"d":"$0.00"},{"v":0,"d":"$0.00"}]
["LTC",null,null,{"$f":"Jurat!I$1","v":0},{"$f":"Jurat!D$33","v":"00:00:00"},"Q4","2017-12-31","Region 9","Operating Expense","Taxes & Fees","Taxes & Fees","6.2","Department of Insurance Assessments",{"$f":"'LTC Rev-Exp Region 9'!P$65","v":{"v":0,"d":"$0.00"}},{"v":0,"d":"$0.00"},{"v":0,"d":"$0.00"},{"v":0,"d":"$0.00"},{"v":0,"d":"$0.00"}]
["LTC",null,null,{"$f":"Jurat!I$1","v":0},{"$f":"Jurat!D$33","v":"00:00:00"},"Q4","2017-12-31","Region 9","Non-Operating Expense","Income Tax Expense","Income Tax Expense","9.0","Income Tax Expense",{"$f":"'LTC Rev-Exp Region 9'!P$72","v":{"v":0,"d":"$0.00"}},{"v":0,"d":"$0.00"},{"v":0,"d":"$0.00"},{"v":0,"d":"$0.00"},{"v":0,"d":"$0.00"}]
["LTC",null,null,{"$f":"Jurat!I$1","v":0},{"$f":"Jurat!D$33","v":"00:00:00"},"Q1","2017-03-31","Region 10","Member Months","Member Months","Member Months",null,"Member Months",{"$f":"'LTC Rev-Exp Region 10'!D$9","v":{"v":0,"d":"$0.00"}},{"$f":"'LTC Rev-Exp Region 10'!E$9","v":{"v":0,"d":"$0.00"}},{"$f":"'LTC Rev-Exp Region 10'!F$9","v":{"v":0,"d":"$0.00"}},{"$f":"'LTC Rev-Exp Region 10'!G$9","v":{"v":0,"d":"$0.00"}},{"v":0,"d":"$0.00"}]
["LTC",null,null,{"$f":"Jurat!I$1","v":0},{"$f":"Jurat!D$33","v":"00:00:00"},"Q1","2017-03-31","Region 10","Operating Revenue","Capitation","Capitation",1.1,"Capitation",{"$f":"'LTC Rev-Exp Region 10'!D$11","v":{"v":0,"d":"$0.00"}},{"$f":"'LTC Rev-Exp Region 10'!E$11","v":{"v":0,"d":"$0.00"}},{"$f":"'LTC Rev-Exp Region 10'!F$11","v":{"v":0,"d":"$0.00"}},{"$f":"'LTC Rev-Exp Region 10'!G$11","v":{"v":0,"d":"$0.00"}},{"v":0,"d":"$0.00"}]
["LTC",null,null,{"$f":"Jurat!I$1","v":0},{"$f":"Jurat!D$33","v":"00:00:00"},"Q1","2017-03-31","Region 10","Operating Revenue","Capitation","NH Rate Reconciliation",1.2,"NH Rate Reconciliation",{"$f":"'LTC Rev-Exp Region 10'!D$12","v":{"v":0,"d":"$0.00"}},{"$f":"'LTC Rev-Exp Region 10'!E$12","v":{"v":0,"d":"$0.00"}},{"$f":"'LTC Rev-Exp Region 10'!F$12","v":{"v":0,"d":"$0.00"}},{"$f":"'LTC Rev-Exp Region 10'!G$12","v":{"v":0,"d":"$0.00"}},{"v":0,"d":"$0.00"}]
["LTC",null,null,{"$f":"Jurat!I$1","v":0},{"$f":"Jurat!D$33","v":"00:00:00"},"Q1","2017-03-31","Region 10","Operating Revenue","Other Revenue","Other Revenue",1.3,"Other Revenue",{"$f":"'LTC Rev-Exp Region 10'!D$13","v":{"v":0,"d":"$0.00"}},{"$f":"'LTC Rev-Exp Region 10'!E$13","v":{"v":0,"d":"$0.00"}},{"$f":"'LTC Rev-Exp Region 10'!F$13","v":{"v":0,"d":"$0.00"}},{"$f":"'LTC Rev-Exp Region 10'!G$13","v":{"v":0,"d":"$0.00"}},{"v":0,"d":"$0.00"}]
["LTC",null,null,{"$f":"Jurat!I$1","v":0},{"$f":"Jurat!D$33","v":"00:00:00"},"Q1","2017-03-31","Region 10","Operating Expense","Medical Expense","NF & Hospice","2.1","Nursing Facility Days (Medicaid)",{"$f":"'LTC Rev-Exp Region 10'!D$17","v":{"v":0,"d":"$0.00"}},{"$f":"'LTC Rev-Exp Region 10'!E$17","v":{"v":0,"d":"$0.00"}},{"$f":"'LTC Rev-Exp Region 10'!F$17","v":{"v":0,"d":"$0.00"}},{"$f":"'LTC Rev-Exp Region 10'!G$17","v":{"v":0,"d":"$0.00"}},{"v":0,"d":"$0.00"}]
["LTC",null,null,{"$f":"Jurat!I$1","v":0},{"$f":"Jurat!D$33","v":"00:00:00"},"Q1","2017-03-31","Region 10","Operating Expense","Medical Expense","NF & Hospice","2.2","Nursing Facility Days (Crossover)",{"$f":"'LTC Rev-Exp Region 10'!D$18","v":{"v":0,"d":"$0.00"}},{"$f":"'LTC Rev-Exp Region 10'!E$18","v":{"v":0,"d":"$0.00"}},{"$f":"'LTC Rev-Exp Region 10'!F$18","v":{"v":0,"d":"$0.00"}},{"$f":"'LTC Rev-Exp Region 10'!G$18","v":{"v":0,"d":"$0.00"}},{"v":0,"d":"$0.00"}]
["LTC",null,null,{"$f":"Jurat!I$1","v":0},{"$f":"Jurat!D$33","v":"00:00:00"},"Q1","2017-03-31","Region 10","Operating Expense","Medical Expense","NF & Hospice","2.3","Nursing Facility FFS (Medicaid)",{"$f":"'LTC Rev-Exp Region 10'!D$19","v":{"v":0,"d":"$0.00"}},{"$f":"'LTC Rev-Exp Region 10'!E$19","v":{"v":0,"d":"$0.00"}},{"$f":"'LTC Rev-Exp Region 10'!F$19","v":{"v":0,"d":"$0.00"}},{"$f":"'LTC Rev-Exp Region 10'!G$19","v":{"v":0,"d":"$0.00"}},{"v":0,"d":"$0.00"}]
["LTC",null,null,{"$f":"Jurat!I$1","v":0},{"$f":"Jurat!D$33","v":"00:00:00"},"Q1","2017-03-31","Region 10","Operating Expense","Medical Expense","NF & Hospice","2.4","Nursing Facility FFS (Crossover)",{"$f":"'LTC Rev-Exp Region 10'!D$20","v":{"v":0,"d":"$0.00"}},{"$f":"'LTC Rev-Exp Region 10'!E$20","v":{"v":0,"d":"$0.00"}},{"$f":"'LTC Rev-Exp Region 10'!F$20","v":{"v":0,"d":"$0.00"}},{"$f":"'LTC Rev-Exp Region 10'!G$20","v":{"v":0,"d":"$0.00"}},{"v":0,"d":"$0.00"}]
["LTC",null,null,{"$f":"Jurat!I$1","v":0},{"$f":"Jurat!D$33","v":"00:00:00"},"Q1","2017-03-31","Region 10","Operating Expense","Medical Expense","NF & Hospice","2.5","Hospice Days",{"$f":"'LTC Rev-Exp Region 10'!D$21","v":{"v":0,"d":"$0.00"}},{"$f":"'LTC Rev-Exp Region 10'!E$21","v":{"v":0,"d":"$0.00"}},{"$f":"'LTC Rev-Exp Region 10'!F$21","v":{"v":0,"d":"$0.00"}},{"$f":"'LTC Rev-Exp Region 10'!G$21","v":{"v":0,"d":"$0.00"}},{"v":0,"d":"$0.00"}]
["LTC",null,null,{"$f":"Jurat!I$1","v":0},{"$f":"Jurat!D$33","v":"00:00:00"},"Q1","2017-03-31","Region 10","Operating Expense","Medical Expense","NF & Hospice","2.6","Hospice FFS",{"$f":"'LTC Rev-Exp Region 10'!D$22","v":{"v":0,"d":"$0.00"}},{"$f":"'LTC Rev-Exp Region 10'!E$22","v":{"v":0,"d":"$0.00"}},{"$f":"'LTC Rev-Exp Region 10'!F$22","v":{"v":0,"d":"$0.00"}},{"$f":"'LTC Rev-Exp Region 10'!G$22","v":{"v":0,"d":"$0.00"}},{"v":0,"d":"$0.00"}]
["LTC",null,null,{"$f":"Jurat!I$1","v":0},{"$f":"Jurat!D$33","v":"00:00:00"},"Q1","2017-03-31","Region 10","Operating Expense","Medical Expense","NF & Hospice","2.7","Ending IBNP for NF & Hospice",{"$f":"'LTC Rev-Exp Region 10'!D$23","v":{"v":0,"d":"$0.00"}},{"$f":"'LTC Rev-Exp Region 10'!E$23","v":{"v":0,"d":"$0.00"}},{"$f":"'LTC Rev-Exp Region 10'!F$23","v":{"v":0,"d":"$0.00"}},{"$f":"'LTC Rev-Exp Region 10'!G$23","v":{"v":0,"d":"$0.00"}},{"v":0,"d":"$0.00"}]
["LTC",null,null,{"$f":"Jurat!I$1","v":0},{"$f":"Jurat!D$33","v":"00:00:00"},"Q1","2017-03-31","Region 10","Operating Expense","Medical Expense","NF & Hospice","2.8","NF & Hospice Subcapitated",{"$f":"'LTC Rev-Exp Region 10'!D$24","v":{"v":0,"d":"$0.00"}},{"$f":"'LTC Rev-Exp Region 10'!E$24","v":{"v":0,"d":"$0.00"}},{"$f":"'LTC Rev-Exp Region 10'!F$24","v":{"v":0,"d":"$0.00"}},{"$f":"'LTC Rev-Exp Region 10'!G$24","v":{"v":0,"d":"$0.00"}},{"v":0,"d":"$0.00"}]
["LTC",null,null,{"$f":"Jurat!I$1","v":0},{"$f":"Jurat!D$33","v":"00:00:00"},"Q1","2017-03-31","Region 10","Operating Expense","Medical Expense","NF & Hospice","2.9","NF & Hospice Settlements",{"$f":"'LTC Rev-Exp Region 10'!D$25","v":{"v":0,"d":"$0.00"}},{"$f":"'LTC Rev-Exp Region 10'!E$25","v":{"v":0,"d":"$0.00"}},{"$f":"'LTC Rev-Exp Region 10'!F$25","v":{"v":0,"d":"$0.00"}},{"$f":"'LTC Rev-Exp Region 10'!G$25","v":{"v":0,"d":"$0.00"}},{"v":0,"d":"$0.00"}]
["LTC",null,null,{"$f":"Jurat!I$1","v":0},{"$f":"Jurat!D$33","v":"00:00:00"},"Q1","2017-03-31","Region 10","Operating Expense","Medical Expense","LTC Services","2.11","Assisted Living FFS",{"$f":"'LTC Rev-Exp Region 10'!D$27","v":{"v":0,"d":"$0.00"}},{"$f":"'LTC Rev-Exp Region 10'!E$27","v":{"v":0,"d":"$0.00"}},{"$f":"'LTC Rev-Exp Region 10'!F$27","v":{"v":0,"d":"$0.00"}},{"$f":"'LTC Rev-Exp Region 10'!G$27","v":{"v":0,"d":"$0.00"}},{"v":0,"d":"$0.00"}]
["LTC",null,null,{"$f":"Jurat!I$1","v":0},{"$f":"Jurat!D$33","v":"00:00:00"},"Q1","2017-03-31","Region 10","Operating Expense","Medical Expense","LTC Services","2.12","Home Health FFS",{"$f":"'LTC Rev-Exp Region 10'!D$28","v":{"v":0,"d":"$0.00"}},{"$f":"'LTC Rev-Exp Region 10'!E$28","v":{"v":0,"d":"$0.00"}},{"$f":"'LTC Rev-Exp Region 10'!F$28","v":{"v":0,"d":"$0.00"}},{"$f":"'LTC Rev-Exp Region 10'!G$28","v":{"v":0,"d":"$0.00"}},{"v":0,"d":"$0.00"}]
["LTC",null,null,{"$f":"Jurat!I$1","v":0},{"$f":"Jurat!D$33","v":"00:00:00"},"Q1","2017-03-31","Region 10","Operating Expense","Medical Expense","LTC Services","2.13","Medical Equipment/Supplies FFS",{"$f":"'LTC Rev-Exp Region 10'!D$29","v":{"v":0,"d":"$0.00"}},{"$f":"'LTC Rev-Exp Region 10'!E$29","v":{"v":0,"d":"$0.00"}},{"$f":"'LTC Rev-Exp Region 10'!F$29","v":{"v":0,"d":"$0.00"}},{"$f":"'LTC Rev-Exp Region 10'!G$29","v":{"v":0,"d":"$0.00"}},{"v":0,"d":"$0.00"}]
["LTC",null,null,{"$f":"Jurat!I$1","v":0},{"$f":"Jurat!D$33","v":"00:00:00"},"Q1","2017-03-31","Region 10","Operating Expense","Medical Expense","LTC Services","2.14","Therapy FFS",{"$f":"'LTC Rev-Exp Region 10'!D$30","v":{"v":0,"d":"$0.00"}},{"$f":"'LTC Rev-Exp Region 10'!E$30","v":{"v":0,"d":"$0.00"}},{"$f":"'LTC Rev-Exp Region 10'!F$30","v":{"v":0,"d":"$0.00"}},{"$f":"'LTC Rev-Exp Region 10'!G$30","v":{"v":0,"d":"$0.00"}},{"v":0,"d":"$0.00"}]
["LTC",null,null,{"$f":"Jurat!I$1","v":0},{"$f":"Jurat!D$33","v":"00:00:00"},"Q1","2017-03-31","Region 10","Operating Expense","Medical Expense","LTC Services","2.15","Transportation FFS",{"$f":"'LTC Rev-Exp Region 10'!D$31","v":{"v":0,"d":"$0.00"}},{"$f":"'LTC Rev-Exp Region 10'!E$31","v":{"v":0,"d":"$0.00"}},{"$f":"'LTC Rev-Exp Region 10'!F$31","v":{"v":0,"d":"$0.00"}},{"$f":"'LTC Rev-Exp Region 10'!G$31","v":{"v":0,"d":"$0.00"}},{"v":0,"d":"$0.00"}]
["LTC",null,null,{"$f":"Jurat!I$1","v":0},{"$f":"Jurat!D$33","v":"00:00:00"},"Q1","2017-03-31","Region 10","Operating Expense","Medical Expense","LTC Services","2.16","Case Management FFS (Plan Provided)",{"$f":"'LTC Rev-Exp Region 10'!D$32","v":{"v":0,"d":"$0.00"}},{"$f":"'LTC Rev-Exp Region 10'!E$32","v":{"v":0,"d":"$0.00"}},{"$f":"'LTC Rev-Exp Region 10'!F$32","v":{"v":0,"d":"$0.00"}},{"$f":"'LTC Rev-Exp Region 10'!G$32","v":{"v":0,"d":"$0.00"}},{"v":0,"d":"$0.00"}]
["LTC",null,null,{"$f":"Jurat!I$1","v":0},{"$f":"Jurat!D$33","v":"00:00:00"},"Q1","2017-03-31","Region 10","Operating Expense","Medical Expense","LTC Services","2.17","Case Management FF (Non-Plan Provided)",{"$f":"'LTC Rev-Exp Region 10'!D$33","v":{"v":0,"d":"$0.00"}},{"$f":"'LTC Rev-Exp Region 10'!E$33","v":{"v":0,"d":"$0.00"}},{"$f":"'LTC Rev-Exp Region 10'!F$33","v":{"v":0,"d":"$0.00"}},{"$f":"'LTC Rev-Exp Region 10'!G$33","v":{"v":0,"d":"$0.00"}},{"v":0,"d":"$0.00"}]
["LTC",null,null,{"$f":"Jurat!I$1","v":0},{"$f":"Jurat!D$33","v":"00:00:00"},"Q1","2017-03-31","Region 10","Operating Expense","Medical Expense","LTC Services","2.18","HCBS FFS",{"$f":"'LTC Rev-Exp Region 10'!D$34","v":{"v":0,"d":"$0.00"}},{"$f":"'LTC Rev-Exp Region 10'!E$34","v":{"v":0,"d":"$0.00"}},{"$f":"'LTC Rev-Exp Region 10'!F$34","v":{"v":0,"d":"$0.00"}},{"$f":"'LTC Rev-Exp Region 10'!G$34","v":{"v":0,"d":"$0.00"}},{"v":0,"d":"$0.00"}]
["LTC",null,null,{"$f":"Jurat!I$1","v":0},{"$f":"Jurat!D$33","v":"00:00:00"},"Q1","2017-03-31","Region 10","Operating Expense","Medical Expense","LTC Services","2.19","Subcapitated LTC Services",{"$f":"'LTC Rev-Exp Region 10'!D$35","v":{"v":0,"d":"$0.00"}},{"$f":"'LTC Rev-Exp Region 10'!E$35","v":{"v":0,"d":"$0.00"}},{"$f":"'LTC Rev-Exp Region 10'!F$35","v":{"v":0,"d":"$0.00"}},{"$f":"'LTC Rev-Exp Region 10'!G$35","v":{"v":0,"d":"$0.00"}},{"v":0,"d":"$0.00"}]
["LTC",null,null,{"$f":"Jurat!I$1","v":0},{"$f":"Jurat!D$33","v":"00:00:00"},"Q1","2017-03-31","Region 10","Operating Expense","Medical Expense","LTC Services","2.20","Ending IBNP for Long Term Care Services",{"$f":"'LTC Rev-Exp Region 10'!D$36","v":{"v":0,"d":"$0.00"}},{"$f":"'LTC Rev-Exp Region 10'!E$36","v":{"v":0,"d":"$0.00"}},{"$f":"'LTC Rev-Exp Region 10'!F$36","v":{"v":0,"d":"$0.00"}},{"$f":"'LTC Rev-Exp Region 10'!G$36","v":{"v":0,"d":"$0.00"}},{"v":0,"d":"$0.00"}]
["LTC",null,null,{"$f":"Jurat!I$1","v":0},{"$f":"Jurat!D$33","v":"00:00:00"},"Q1","2017-03-31","Region 10","Operating Expense","Medical Expense","LTC Services","2.21","LTC Services Settlements",{"$f":"'LTC Rev-Exp Region 10'!D$37","v":{"v":0,"d":"$0.00"}},{"$f":"'LTC Rev-Exp Region 10'!E$37","v":{"v":0,"d":"$0.00"}},{"$f":"'LTC Rev-Exp Region 10'!F$37","v":{"v":0,"d":"$0.00"}},{"$f":"'LTC Rev-Exp Region 10'!G$37","v":{"v":0,"d":"$0.00"}},{"v":0,"d":"$0.00"}]
["LTC",null,null,{"$f":"Jurat!I$1","v":0},{"$f":"Jurat!D$33","v":"00:00:00"},"Q1","2017-03-31","Region 10","Operating Expense","Medical Expense","Expanded Benefits","3.1","Expanded Benefits FFS",{"$f":"'LTC Rev-Exp Region 10'!D$39","v":{"v":0,"d":"$0.00"}},{"$f":"'LTC Rev-Exp Region 10'!E$39","v":{"v":0,"d":"$0.00"}},{"$f":"'LTC Rev-Exp Region 10'!F$39","v":{"v":0,"d":"$0.00"}},{"$f":"'LTC Rev-Exp Region 10'!G$39","v":{"v":0,"d":"$0.00"}},{"v":0,"d":"$0.00"}]
["LTC",null,null,{"$f":"Jurat!I$1","v":0},{"$f":"Jurat!D$33","v":"00:00:00"},"Q1","2017-03-31","Region 10","Operating Expense","Medical Expense","Expanded Benefits","3.2","Expanded Benefits Subcapitation",{"$f":"'LTC Rev-Exp Region 10'!D$40","v":{"v":0,"d":"$0.00"}},{"$f":"'LTC Rev-Exp Region 10'!E$40","v":{"v":0,"d":"$0.00"}},{"$f":"'LTC Rev-Exp Region 10'!F$40","v":{"v":0,"d":"$0.00"}},{"$f":"'LTC Rev-Exp Region 10'!G$40","v":{"v":0,"d":"$0.00"}},{"v":0,"d":"$0.00"}]
["LTC",null,null,{"$f":"Jurat!I$1","v":0},{"$f":"Jurat!D$33","v":"00:00:00"},"Q1","2017-03-31","Region 10","Operating Expense","Medical Expense","Expanded Benefits","3.3","Ending IBNP for Expanded Benefits",{"$f":"'LTC Rev-Exp Region 10'!D$41","v":{"v":0,"d":"$0.00"}},{"$f":"'LTC Rev-Exp Region 10'!E$41","v":{"v":0,"d":"$0.00"}},{"$f":"'LTC Rev-Exp Region 10'!F$41","v":{"v":0,"d":"$0.00"}},{"$f":"'LTC Rev-Exp Region 10'!G$41","v":{"v":0,"d":"$0.00"}},{"v":0,"d":"$0.00"}]
["LTC",null,null,{"$f":"Jurat!I$1","v":0},{"$f":"Jurat!D$33","v":"00:00:00"},"Q1","2017-03-31","Region 10","Operating Expense","Medical Expense","Expanded Benefits","3.4","Expanded Benefits Settlements",{"$f":"'LTC Rev-Exp Region 10'!D$42","v":{"v":0,"d":"$0.00"}},{"$f":"'LTC Rev-Exp Region 10'!E$42","v":{"v":0,"d":"$0.00"}},{"$f":"'LTC Rev-Exp Region 10'!F$42","v":{"v":0,"d":"$0.00"}},{"$f":"'LTC Rev-Exp Region 10'!G$42","v":{"v":0,"d":"$0.00"}},{"v":0,"d":"$0.00"}]
["LTC",null,null,{"$f":"Jurat!I$1","v":0},{"$f":"Jurat!D$33","v":"00:00:00"},"Q1","2017-03-31","Region 10","Operating Expense","Medical Expense","Other Medical","4.5","TPL & Fraud/Abuse Recoveries",{"$f":"'LTC Rev-Exp Region 10'!D$48","v":{"v":0,"d":"$0.00"}},{"$f":"'LTC Rev-Exp Region 10'!E$48","v":{"v":0,"d":"$0.00"}},{"$f":"'LTC Rev-Exp Region 10'!F$48","v":{"v":0,"d":"$0.00"}},{"$f":"'LTC Rev-Exp Region 10'!G$48","v":{"v":0,"d":"$0.00"}},{"v":0,"d":"$0.00"}]
["LTC",null,null,{"$f":"Jurat!I$1","v":0},{"$f":"Jurat!D$33","v":"00:00:00"},"Q1","2017-03-31","Region 10","Operating Expense","Medical Expense","Other Medical","4.6.1","Premium Deficiency Reserve",{"$f":"'LTC Rev-Exp Region 10'!D$49","v":{"v":0,"d":"$0.00"}},{"$f":"'LTC Rev-Exp Region 10'!E$49","v":{"v":0,"d":"$0.00"}},{"$f":"'LTC Rev-Exp Region 10'!F$49","v":{"v":0,"d":"$0.00"}},{"$f":"'LTC Rev-Exp Region 10'!G$49","v":{"v":0,"d":"$0.00"}},{"v":0,"d":"$0.00"}]
["LTC",null,null,{"$f":"Jurat!I$1","v":0},{"$f":"Jurat!D$33","v":"00:00:00"},"Q1","2017-03-31","Region 10","Operating Expense","Medical Expense","Other Medical","4.8","Reinsurance Premiums",{"$f":"'LTC Rev-Exp Region 10'!D$51","v":{"v":0,"d":"$0.00"}},{"$f":"'LTC Rev-Exp Region 10'!E$51","v":{"v":0,"d":"$0.00"}},{"$f":"'LTC Rev-Exp Region 10'!F$51","v":{"v":0,"d":"$0.00"}},{"$f":"'LTC Rev-Exp Region 10'!G$51","v":{"v":0,"d":"$0.00"}},{"v":0,"d":"$0.00"}]
["LTC",null,null,{"$f":"Jurat!I$1","v":0},{"$f":"Jurat!D$33","v":"00:00:00"},"Q1","2017-03-31","Region 10","Operating Expense","Medical Expense","Other Medical","4.9","Reinsurance Recoveries",{"$f":"'LTC Rev-Exp Region 10'!D$52","v":{"v":0,"d":"$0.00"}},{"$f":"'LTC Rev-Exp Region 10'!E$52","v":{"v":0,"d":"$0.00"}},{"$f":"'LTC Rev-Exp Region 10'!F$52","v":{"v":0,"d":"$0.00"}},{"$f":"'LTC Rev-Exp Region 10'!G$52","v":{"v":0,"d":"$0.00"}},{"v":0,"d":"$0.00"}]
["LTC",null,null,{"$f":"Jurat!I$1","v":0},{"$f":"Jurat!D$33","v":"00:00:00"},"Q1","2017-03-31","Region 10","Operating Expense","Administrative Expense","Administrative","5.1","Salaries & Benefits",{"$f":"'LTC Rev-Exp Region 10'!D$57","v":{"v":0,"d":"$0.00"}},{"$f":"'LTC Rev-Exp Region 10'!E$57","v":{"v":0,"d":"$0.00"}},{"$f":"'LTC Rev-Exp Region 10'!F$57","v":{"v":0,"d":"$0.00"}},{"$f":"'LTC Rev-Exp Region 10'!G$57","v":{"v":0,"d":"$0.00"}},{"v":0,"d":"$0.00"}]
["LTC",null,null,{"$f":"Jurat!I$1","v":0},{"$f":"Jurat!D$33","v":"00:00:00"},"Q1","2017-03-31","Region 10","Operating Expense","Administrative Expense","Administrative","5.2","Administrative Services",{"$f":"'LTC Rev-Exp Region 10'!D$58","v":{"v":0,"d":"$0.00"}},{"$f":"'LTC Rev-Exp Region 10'!E$58","v":{"v":0,"d":"$0.00"}},{"$f":"'LTC Rev-Exp Region 10'!F$58","v":{"v":0,"d":"$0.00"}},{"$f":"'LTC Rev-Exp Region 10'!G$58","v":{"v":0,"d":"$0.00"}},{"v":0,"d":"$0.00"}]
["LTC",null,null,{"$f":"Jurat!I$1","v":0},{"$f":"Jurat!D$33","v":"00:00:00"},"Q1","2017-03-31","Region 10","Operating Expense","Administrative Expense","Administrative","5.3","Information Systems",{"$f":"'LTC Rev-Exp Region 10'!D$59","v":{"v":0,"d":"$0.00"}},{"$f":"'LTC Rev-Exp Region 10'!E$59","v":{"v":0,"d":"$0.00"}},{"$f":"'LTC Rev-Exp Region 10'!F$59","v":{"v":0,"d":"$0.00"}},{"$f":"'LTC Rev-Exp Region 10'!G$59","v":{"v":0,"d":"$0.00"}},{"v":0,"d":"$0.00"}]
["LTC",null,null,{"$f":"Jurat!I$1","v":0},{"$f":"Jurat!D$33","v":"00:00:00"},"Q1","2017-03-31","Region 10","Operating Expense","Administrative Expense","Administrative","5.4","Marketing Expenses",{"$f":"'LTC Rev-Exp Region 10'!D$60","v":{"v":0,"d":"$0.00"}},{"$f":"'LTC Rev-Exp Region 10'!E$60","v":{"v":0,"d":"$0.00"}},{"$f":"'LTC Rev-Exp Region 10'!F$60","v":{"v":0,"d":"$0.00"}},{"$f":"'LTC Rev-Exp Region 10'!G$60","v":{"v":0,"d":"$0.00"}},{"v":0,"d":"$0.00"}]
["LTC",null,null,{"$f":"Jurat!I$1","v":0},{"$f":"Jurat!D$33","v":"00:00:00"},"Q1","2017-03-31","Region 10","Operating Expense","Administrative Expense","Administrative","5.5","General  Administration",{"$f":"'LTC Rev-Exp Region 10'!D$61","v":{"v":0,"d":"$0.00"}},{"$f":"'LTC Rev-Exp Region 10'!E$61","v":{"v":0,"d":"$0.00"}},{"$f":"'LTC Rev-Exp Region 10'!F$61","v":{"v":0,"d":"$0.00"}},{"$f":"'LTC Rev-Exp Region 10'!G$61","v":{"v":0,"d":"$0.00"}},{"v":0,"d":"$0.00"}]
["LTC",null,null,{"$f":"Jurat!I$1","v":0},{"$f":"Jurat!D$33","v":"00:00:00"},"Q1","2017-03-31","Region 10","Operating Expense","Administrative Expense","Administrative","5.6","Compliance/Regulatory",{"$f":"'LTC Rev-Exp Region 10'!D$62","v":{"v":0,"d":"$0.00"}},{"$f":"'LTC Rev-Exp Region 10'!E$62","v":{"v":0,"d":"$0.00"}},{"$f":"'LTC Rev-Exp Region 10'!F$62","v":{"v":0,"d":"$0.00"}},{"$f":"'LTC Rev-Exp Region 10'!G$62","v":{"v":0,"d":"$0.00"}},{"v":0,"d":"$0.00"}]
["LTC",null,null,{"$f":"Jurat!I$1","v":0},{"$f":"Jurat!D$33","v":"00:00:00"},"Q1","2017-03-31","Region 10","Operating Expense","Taxes & Fees","Taxes & Fees","6.1","State Premium Tax",{"$f":"'LTC Rev-Exp Region 10'!D$64","v":{"v":0,"d":"$0.00"}},{"v":0,"d":"$0.00"},{"v":0,"d":"$0.00"},{"v":0,"d":"$0.00"},{"v":0,"d":"$0.00"}]
["LTC",null,null,{"$f":"Jurat!I$1","v":0},{"$f":"Jurat!D$33","v":"00:00:00"},"Q1","2017-03-31","Region 10","Operating Expense","Taxes & Fees","Taxes & Fees","6.2","Department of Insurance Assessments",{"$f":"'LTC Rev-Exp Region 10'!D$65","v":{"v":0,"d":"$0.00"}},{"v":0,"d":"$0.00"},{"v":0,"d":"$0.00"},{"v":0,"d":"$0.00"},{"v":0,"d":"$0.00"}]
["LTC",null,null,{"$f":"Jurat!I$1","v":0},{"$f":"Jurat!D$33","v":"00:00:00"},"Q1","2017-03-31","Region 10","Non-Operating Expense","Income Tax Expense","Income Tax Expense","9.0","Income Tax Expense",{"$f":"'LTC Rev-Exp Region 10'!D$72","v":{"v":0,"d":"$0.00"}},{"v":0,"d":"$0.00"},{"v":0,"d":"$0.00"},{"v":0,"d":"$0.00"},{"v":0,"d":"$0.00"}]
["LTC",null,null,{"$f":"Jurat!I$1","v":0},{"$f":"Jurat!D$33","v":"00:00:00"},"Q2","2017-06-30","Region 10","Member Months","Member Months","Member Months",null,"Member Months",{"$f":"'LTC Rev-Exp Region 10'!H$9","v":{"v":0,"d":"$0.00"}},{"$f":"'LTC Rev-Exp Region 10'!I$9","v":{"v":0,"d":"$0.00"}},{"$f":"'LTC Rev-Exp Region 10'!J$9","v":{"v":0,"d":"$0.00"}},{"$f":"'LTC Rev-Exp Region 10'!K$9","v":{"v":0,"d":"$0.00"}},{"v":0,"d":"$0.00"}]
["LTC",null,null,{"$f":"Jurat!I$1","v":0},{"$f":"Jurat!D$33","v":"00:00:00"},"Q2","2017-06-30","Region 10","Operating Revenue","Capitation","Capitation",1.1,"Capitation",{"$f":"'LTC Rev-Exp Region 10'!H$11","v":{"v":0,"d":"$0.00"}},{"$f":"'LTC Rev-Exp Region 10'!I$11","v":{"v":0,"d":"$0.00"}},{"$f":"'LTC Rev-Exp Region 10'!J$11","v":{"v":0,"d":"$0.00"}},{"$f":"'LTC Rev-Exp Region 10'!K$11","v":{"v":0,"d":"$0.00"}},{"v":0,"d":"$0.00"}]
["LTC",null,null,{"$f":"Jurat!I$1","v":0},{"$f":"Jurat!D$33","v":"00:00:00"},"Q2","2017-06-30","Region 10","Operating Revenue","Capitation","NH Rate Reconciliation",1.2,"NH Rate Reconciliation",{"$f":"'LTC Rev-Exp Region 10'!H$12","v":{"v":0,"d":"$0.00"}},{"$f":"'LTC Rev-Exp Region 10'!I$12","v":{"v":0,"d":"$0.00"}},{"$f":"'LTC Rev-Exp Region 10'!J$12","v":{"v":0,"d":"$0.00"}},{"$f":"'LTC Rev-Exp Region 10'!K$12","v":{"v":0,"d":"$0.00"}},{"v":0,"d":"$0.00"}]
["LTC",null,null,{"$f":"Jurat!I$1","v":0},{"$f":"Jurat!D$33","v":"00:00:00"},"Q2","2017-06-30","Region 10","Operating Revenue","Other Revenue","Other Revenue",1.3,"Other Revenue",{"$f":"'LTC Rev-Exp Region 10'!H$13","v":{"v":0,"d":"$0.00"}},{"$f":"'LTC Rev-Exp Region 10'!I$13","v":{"v":0,"d":"$0.00"}},{"$f":"'LTC Rev-Exp Region 10'!J$13","v":{"v":0,"d":"$0.00"}},{"$f":"'LTC Rev-Exp Region 10'!K$13","v":{"v":0,"d":"$0.00"}},{"v":0,"d":"$0.00"}]
["LTC",null,null,{"$f":"Jurat!I$1","v":0},{"$f":"Jurat!D$33","v":"00:00:00"},"Q2","2017-06-30","Region 10","Operating Expense","Medical Expense","NF & Hospice","2.1","Nursing Facility Days (Medicaid)",{"$f":"'LTC Rev-Exp Region 10'!H$17","v":{"v":0,"d":"$0.00"}},{"$f":"'LTC Rev-Exp Region 10'!I$17","v":{"v":0,"d":"$0.00"}},{"$f":"'LTC Rev-Exp Region 10'!J$17","v":{"v":0,"d":"$0.00"}},{"$f":"'LTC Rev-Exp Region 10'!K$17","v":{"v":0,"d":"$0.00"}},{"v":0,"d":"$0.00"}]
["LTC",null,null,{"$f":"Jurat!I$1","v":0},{"$f":"Jurat!D$33","v":"00:00:00"},"Q2","2017-06-30","Region 10","Operating Expense","Medical Expense","NF & Hospice","2.2","Nursing Facility Days (Crossover)",{"$f":"'LTC Rev-Exp Region 10'!H$18","v":{"v":0,"d":"$0.00"}},{"$f":"'LTC Rev-Exp Region 10'!I$18","v":{"v":0,"d":"$0.00"}},{"$f":"'LTC Rev-Exp Region 10'!J$18","v":{"v":0,"d":"$0.00"}},{"$f":"'LTC Rev-Exp Region 10'!K$18","v":{"v":0,"d":"$0.00"}},{"v":0,"d":"$0.00"}]
["LTC",null,null,{"$f":"Jurat!I$1","v":0},{"$f":"Jurat!D$33","v":"00:00:00"},"Q2","2017-06-30","Region 10","Operating Expense","Medical Expense","NF & Hospice","2.3","Nursing Facility FFS (Medicaid)",{"$f":"'LTC Rev-Exp Region 10'!H$19","v":{"v":0,"d":"$0.00"}},{"$f":"'LTC Rev-Exp Region 10'!I$19","v":{"v":0,"d":"$0.00"}},{"$f":"'LTC Rev-Exp Region 10'!J$19","v":{"v":0,"d":"$0.00"}},{"$f":"'LTC Rev-Exp Region 10'!K$19","v":{"v":0,"d":"$0.00"}},{"v":0,"d":"$0.00"}]
["LTC",null,null,{"$f":"Jurat!I$1","v":0},{"$f":"Jurat!D$33","v":"00:00:00"},"Q2","2017-06-30","Region 10","Operating Expense","Medical Expense","NF & Hospice","2.4","Nursing Facility FFS (Crossover)",{"$f":"'LTC Rev-Exp Region 10'!H$20","v":{"v":0,"d":"$0.00"}},{"$f":"'LTC Rev-Exp Region 10'!I$20","v":{"v":0,"d":"$0.00"}},{"$f":"'LTC Rev-Exp Region 10'!J$20","v":{"v":0,"d":"$0.00"}},{"$f":"'LTC Rev-Exp Region 10'!K$20","v":{"v":0,"d":"$0.00"}},{"v":0,"d":"$0.00"}]
["LTC",null,null,{"$f":"Jurat!I$1","v":0},{"$f":"Jurat!D$33","v":"00:00:00"},"Q2","2017-06-30","Region 10","Operating Expense","Medical Expense","NF & Hospice","2.5","Hospice Days",{"$f":"'LTC Rev-Exp Region 10'!H$21","v":{"v":0,"d":"$0.00"}},{"$f":"'LTC Rev-Exp Region 10'!I$21","v":{"v":0,"d":"$0.00"}},{"$f":"'LTC Rev-Exp Region 10'!J$21","v":{"v":0,"d":"$0.00"}},{"$f":"'LTC Rev-Exp Region 10'!K$21","v":{"v":0,"d":"$0.00"}},{"v":0,"d":"$0.00"}]
["LTC",null,null,{"$f":"Jurat!I$1","v":0},{"$f":"Jurat!D$33","v":"00:00:00"},"Q2","2017-06-30","Region 10","Operating Expense","Medical Expense","NF & Hospice","2.6","Hospice FFS",{"$f":"'LTC Rev-Exp Region 10'!H$22","v":{"v":0,"d":"$0.00"}},{"$f":"'LTC Rev-Exp Region 10'!I$22","v":{"v":0,"d":"$0.00"}},{"$f":"'LTC Rev-Exp Region 10'!J$22","v":{"v":0,"d":"$0.00"}},{"$f":"'LTC Rev-Exp Region 10'!K$22","v":{"v":0,"d":"$0.00"}},{"v":0,"d":"$0.00"}]
["LTC",null,null,{"$f":"Jurat!I$1","v":0},{"$f":"Jurat!D$33","v":"00:00:00"},"Q2","2017-06-30","Region 10","Operating Expense","Medical Expense","NF & Hospice","2.7","Ending IBNP for NF & Hospice",{"$f":"'LTC Rev-Exp Region 10'!H$23","v":{"v":0,"d":"$0.00"}},{"$f":"'LTC Rev-Exp Region 10'!I$23","v":{"v":0,"d":"$0.00"}},{"$f":"'LTC Rev-Exp Region 10'!J$23","v":{"v":0,"d":"$0.00"}},{"$f":"'LTC Rev-Exp Region 10'!K$23","v":{"v":0,"d":"$0.00"}},{"v":0,"d":"$0.00"}]
["LTC",null,null,{"$f":"Jurat!I$1","v":0},{"$f":"Jurat!D$33","v":"00:00:00"},"Q2","2017-06-30","Region 10","Operating Expense","Medical Expense","NF & Hospice","2.8","NF & Hospice Subcapitated",{"$f":"'LTC Rev-Exp Region 10'!H$24","v":{"v":0,"d":"$0.00"}},{"$f":"'LTC Rev-Exp Region 10'!I$24","v":{"v":0,"d":"$0.00"}},{"$f":"'LTC Rev-Exp Region 10'!J$24","v":{"v":0,"d":"$0.00"}},{"$f":"'LTC Rev-Exp Region 10'!K$24","v":{"v":0,"d":"$0.00"}},{"v":0,"d":"$0.00"}]
["LTC",null,null,{"$f":"Jurat!I$1","v":0},{"$f":"Jurat!D$33","v":"00:00:00"},"Q2","2017-06-30","Region 10","Operating Expense","Medical Expense","NF & Hospice","2.9","NF & Hospice Settlements",{"$f":"'LTC Rev-Exp Region 10'!H$25","v":{"v":0,"d":"$0.00"}},{"$f":"'LTC Rev-Exp Region 10'!I$25","v":{"v":0,"d":"$0.00"}},{"$f":"'LTC Rev-Exp Region 10'!J$25","v":{"v":0,"d":"$0.00"}},{"$f":"'LTC Rev-Exp Region 10'!K$25","v":{"v":0,"d":"$0.00"}},{"v":0,"d":"$0.00"}]
["LTC",null,null,{"$f":"Jurat!I$1","v":0},{"$f":"Jurat!D$33","v":"00:00:00"},"Q2","2017-06-30","Region 10","Operating Expense","Medical Expense","LTC Services","2.11","Assisted Living FFS",{"$f":"'LTC Rev-Exp Region 10'!H$27","v":{"v":0,"d":"$0.00"}},{"$f":"'LTC Rev-Exp Region 10'!I$27","v":{"v":0,"d":"$0.00"}},{"$f":"'LTC Rev-Exp Region 10'!J$27","v":{"v":0,"d":"$0.00"}},{"$f":"'LTC Rev-Exp Region 10'!K$27","v":{"v":0,"d":"$0.00"}},{"v":0,"d":"$0.00"}]
["LTC",null,null,{"$f":"Jurat!I$1","v":0},{"$f":"Jurat!D$33","v":"00:00:00"},"Q2","2017-06-30","Region 10","Operating Expense","Medical Expense","LTC Services","2.12","Home Health FFS",{"$f":"'LTC Rev-Exp Region 10'!H$28","v":{"v":0,"d":"$0.00"}},{"$f":"'LTC Rev-Exp Region 10'!I$28","v":{"v":0,"d":"$0.00"}},{"$f":"'LTC Rev-Exp Region 10'!J$28","v":{"v":0,"d":"$0.00"}},{"$f":"'LTC Rev-Exp Region 10'!K$28","v":{"v":0,"d":"$0.00"}},{"v":0,"d":"$0.00"}]
["LTC",null,null,{"$f":"Jurat!I$1","v":0},{"$f":"Jurat!D$33","v":"00:00:00"},"Q2","2017-06-30","Region 10","Operating Expense","Medical Expense","LTC Services","2.13","Medical Equipment/Supplies FFS",{"$f":"'LTC Rev-Exp Region 10'!H$29","v":{"v":0,"d":"$0.00"}},{"$f":"'LTC Rev-Exp Region 10'!I$29","v":{"v":0,"d":"$0.00"}},{"$f":"'LTC Rev-Exp Region 10'!J$29","v":{"v":0,"d":"$0.00"}},{"$f":"'LTC Rev-Exp Region 10'!K$29","v":{"v":0,"d":"$0.00"}},{"v":0,"d":"$0.00"}]
["LTC",null,null,{"$f":"Jurat!I$1","v":0},{"$f":"Jurat!D$33","v":"00:00:00"},"Q2","2017-06-30","Region 10","Operating Expense","Medical Expense","LTC Services","2.14","Therapy FFS",{"$f":"'LTC Rev-Exp Region 10'!H$30","v":{"v":0,"d":"$0.00"}},{"$f":"'LTC Rev-Exp Region 10'!I$30","v":{"v":0,"d":"$0.00"}},{"$f":"'LTC Rev-Exp Region 10'!J$30","v":{"v":0,"d":"$0.00"}},{"$f":"'LTC Rev-Exp Region 10'!K$30","v":{"v":0,"d":"$0.00"}},{"v":0,"d":"$0.00"}]
["LTC",null,null,{"$f":"Jurat!I$1","v":0},{"$f":"Jurat!D$33","v":"00:00:00"},"Q2","2017-06-30","Region 10","Operating Expense","Medical Expense","LTC Services","2.15","Transportation FFS",{"$f":"'LTC Rev-Exp Region 10'!H$31","v":{"v":0,"d":"$0.00"}},{"$f":"'LTC Rev-Exp Region 10'!I$31","v":{"v":0,"d":"$0.00"}},{"$f":"'LTC Rev-Exp Region 10'!J$31","v":{"v":0,"d":"$0.00"}},{"$f":"'LTC Rev-Exp Region 10'!K$31","v":{"v":0,"d":"$0.00"}},{"v":0,"d":"$0.00"}]
["LTC",null,null,{"$f":"Jurat!I$1","v":0},{"$f":"Jurat!D$33","v":"00:00:00"},"Q2","2017-06-30","Region 10","Operating Expense","Medical Expense","LTC Services","2.16","Case Management FFS (Plan Provided)",{"$f":"'LTC Rev-Exp Region 10'!H$32","v":{"v":0,"d":"$0.00"}},{"$f":"'LTC Rev-Exp Region 10'!I$32","v":{"v":0,"d":"$0.00"}},{"$f":"'LTC Rev-Exp Region 10'!J$32","v":{"v":0,"d":"$0.00"}},{"$f":"'LTC Rev-Exp Region 10'!K$32","v":{"v":0,"d":"$0.00"}},{"v":0,"d":"$0.00"}]
["LTC",null,null,{"$f":"Jurat!I$1","v":0},{"$f":"Jurat!D$33","v":"00:00:00"},"Q2","2017-06-30","Region 10","Operating Expense","Medical Expense","LTC Services","2.17","Case Management FF (Non-Plan Provided)",{"$f":"'LTC Rev-Exp Region 10'!H$33","v":{"v":0,"d":"$0.00"}},{"$f":"'LTC Rev-Exp Region 10'!I$33","v":{"v":0,"d":"$0.00"}},{"$f":"'LTC Rev-Exp Region 10'!J$33","v":{"v":0,"d":"$0.00"}},{"$f":"'LTC Rev-Exp Region 10'!K$33","v":{"v":0,"d":"$0.00"}},{"v":0,"d":"$0.00"}]
["LTC",null,null,{"$f":"Jurat!I$1","v":0},{"$f":"Jurat!D$33","v":"00:00:00"},"Q2","2017-06-30","Region 10","Operating Expense","Medical Expense","LTC Services","2.18","HCBS FFS",{"$f":"'LTC Rev-Exp Region 10'!H$34","v":{"v":0,"d":"$0.00"}},{"$f":"'LTC Rev-Exp Region 10'!I$34","v":{"v":0,"d":"$0.00"}},{"$f":"'LTC Rev-Exp Region 10'!J$34","v":{"v":0,"d":"$0.00"}},{"$f":"'LTC Rev-Exp Region 10'!K$34","v":{"v":0,"d":"$0.00"}},{"v":0,"d":"$0.00"}]
["LTC",null,null,{"$f":"Jurat!I$1","v":0},{"$f":"Jurat!D$33","v":"00:00:00"},"Q2","2017-06-30","Region 10","Operating Expense","Medical Expense","LTC Services","2.19","Subcapitated LTC Services",{"$f":"'LTC Rev-Exp Region 10'!H$35","v":{"v":0,"d":"$0.00"}},{"$f":"'LTC Rev-Exp Region 10'!I$35","v":{"v":0,"d":"$0.00"}},{"$f":"'LTC Rev-Exp Region 10'!J$35","v":{"v":0,"d":"$0.00"}},{"$f":"'LTC Rev-Exp Region 10'!K$35","v":{"v":0,"d":"$0.00"}},{"v":0,"d":"$0.00"}]
["LTC",null,null,{"$f":"Jurat!I$1","v":0},{"$f":"Jurat!D$33","v":"00:00:00"},"Q2","2017-06-30","Region 10","Operating Expense","Medical Expense","LTC Services","2.20","Ending IBNP for Long Term Care Services",{"$f":"'LTC Rev-Exp Region 10'!H$36","v":{"v":0,"d":"$0.00"}},{"$f":"'LTC Rev-Exp Region 10'!I$36","v":{"v":0,"d":"$0.00"}},{"$f":"'LTC Rev-Exp Region 10'!J$36","v":{"v":0,"d":"$0.00"}},{"$f":"'LTC Rev-Exp Region 10'!K$36","v":{"v":0,"d":"$0.00"}},{"v":0,"d":"$0.00"}]
["LTC",null,null,{"$f":"Jurat!I$1","v":0},{"$f":"Jurat!D$33","v":"00:00:00"},"Q2","2017-06-30","Region 10","Operating Expense","Medical Expense","LTC Services","2.21","LTC Services Settlements",{"$f":"'LTC Rev-Exp Region 10'!H$37","v":{"v":0,"d":"$0.00"}},{"$f":"'LTC Rev-Exp Region 10'!I$37","v":{"v":0,"d":"$0.00"}},{"$f":"'LTC Rev-Exp Region 10'!J$37","v":{"v":0,"d":"$0.00"}},{"$f":"'LTC Rev-Exp Region 10'!K$37","v":{"v":0,"d":"$0.00"}},{"v":0,"d":"$0.00"}]
["LTC",null,null,{"$f":"Jurat!I$1","v":0},{"$f":"Jurat!D$33","v":"00:00:00"},"Q2","2017-06-30","Region 10","Operating Expense","Medical Expense","Expanded Benefits","3.1","Expanded Benefits FFS",{"$f":"'LTC Rev-Exp Region 10'!H$39","v":{"v":0,"d":"$0.00"}},{"$f":"'LTC Rev-Exp Region 10'!I$39","v":{"v":0,"d":"$0.00"}},{"$f":"'LTC Rev-Exp Region 10'!J$39","v":{"v":0,"d":"$0.00"}},{"$f":"'LTC Rev-Exp Region 10'!K$39","v":{"v":0,"d":"$0.00"}},{"v":0,"d":"$0.00"}]
["LTC",null,null,{"$f":"Jurat!I$1","v":0},{"$f":"Jurat!D$33","v":"00:00:00"},"Q2","2017-06-30","Region 10","Operating Expense","Medical Expense","Expanded Benefits","3.2","Expanded Benefits Subcapitation",{"$f":"'LTC Rev-Exp Region 10'!H$40","v":{"v":0,"d":"$0.00"}},{"$f":"'LTC Rev-Exp Region 10'!I$40","v":{"v":0,"d":"$0.00"}},{"$f":"'LTC Rev-Exp Region 10'!J$40","v":{"v":0,"d":"$0.00"}},{"$f":"'LTC Rev-Exp Region 10'!K$40","v":{"v":0,"d":"$0.00"}},{"v":0,"d":"$0.00"}]
["LTC",null,null,{"$f":"Jurat!I$1","v":0},{"$f":"Jurat!D$33","v":"00:00:00"},"Q2","2017-06-30","Region 10","Operating Expense","Medical Expense","Expanded Benefits","3.3","Ending IBNP for Expanded Benefits",{"$f":"'LTC Rev-Exp Region 10'!H$41","v":{"v":0,"d":"$0.00"}},{"$f":"'LTC Rev-Exp Region 10'!I$41","v":{"v":0,"d":"$0.00"}},{"$f":"'LTC Rev-Exp Region 10'!J$41","v":{"v":0,"d":"$0.00"}},{"$f":"'LTC Rev-Exp Region 10'!K$41","v":{"v":0,"d":"$0.00"}},{"v":0,"d":"$0.00"}]
["LTC",null,null,{"$f":"Jurat!I$1","v":0},{"$f":"Jurat!D$33","v":"00:00:00"},"Q2","2017-06-30","Region 10","Operating Expense","Medical Expense","Expanded Benefits","3.4","Expanded Benefits Settlements",{"$f":"'LTC Rev-Exp Region 10'!H$42","v":{"v":0,"d":"$0.00"}},{"$f":"'LTC Rev-Exp Region 10'!I$42","v":{"v":0,"d":"$0.00"}},{"$f":"'LTC Rev-Exp Region 10'!J$42","v":{"v":0,"d":"$0.00"}},{"$f":"'LTC Rev-Exp Region 10'!K$42","v":{"v":0,"d":"$0.00"}},{"v":0,"d":"$0.00"}]
["LTC",null,null,{"$f":"Jurat!I$1","v":0},{"$f":"Jurat!D$33","v":"00:00:00"},"Q2","2017-06-30","Region 10","Operating Expense","Medical Expense","Other Medical","4.5","TPL & Fraud/Abuse Recoveries",{"$f":"'LTC Rev-Exp Region 10'!H$48","v":{"v":0,"d":"$0.00"}},{"$f":"'LTC Rev-Exp Region 10'!I$48","v":{"v":0,"d":"$0.00"}},{"$f":"'LTC Rev-Exp Region 10'!J$48","v":{"v":0,"d":"$0.00"}},{"$f":"'LTC Rev-Exp Region 10'!K$48","v":{"v":0,"d":"$0.00"}},{"v":0,"d":"$0.00"}]
["LTC",null,null,{"$f":"Jurat!I$1","v":0},{"$f":"Jurat!D$33","v":"00:00:00"},"Q2","2017-06-30","Region 10","Operating Expense","Medical Expense","Other Medical","4.6.1","Premium Deficiency Reserve",{"$f":"'LTC Rev-Exp Region 10'!H$49","v":{"v":0,"d":"$0.00"}},{"$f":"'LTC Rev-Exp Region 10'!I$49","v":{"v":0,"d":"$0.00"}},{"$f":"'LTC Rev-Exp Region 10'!J$49","v":{"v":0,"d":"$0.00"}},{"$f":"'LTC Rev-Exp Region 10'!K$49","v":{"v":0,"d":"$0.00"}},{"v":0,"d":"$0.00"}]
["LTC",null,null,{"$f":"Jurat!I$1","v":0},{"$f":"Jurat!D$33","v":"00:00:00"},"Q2","2017-06-30","Region 10","Operating Expense","Medical Expense","Other Medical","4.8","Reinsurance Premiums",{"$f":"'LTC Rev-Exp Region 10'!H$51","v":{"v":0,"d":"$0.00"}},{"$f":"'LTC Rev-Exp Region 10'!I$51","v":{"v":0,"d":"$0.00"}},{"$f":"'LTC Rev-Exp Region 10'!J$51","v":{"v":0,"d":"$0.00"}},{"$f":"'LTC Rev-Exp Region 10'!K$51","v":{"v":0,"d":"$0.00"}},{"v":0,"d":"$0.00"}]
["LTC",null,null,{"$f":"Jurat!I$1","v":0},{"$f":"Jurat!D$33","v":"00:00:00"},"Q2","2017-06-30","Region 10","Operating Expense","Medical Expense","Other Medical","4.9","Reinsurance Recoveries",{"$f":"'LTC Rev-Exp Region 10'!H$52","v":{"v":0,"d":"$0.00"}},{"$f":"'LTC Rev-Exp Region 10'!I$52","v":{"v":0,"d":"$0.00"}},{"$f":"'LTC Rev-Exp Region 10'!J$52","v":{"v":0,"d":"$0.00"}},{"$f":"'LTC Rev-Exp Region 10'!K$52","v":{"v":0,"d":"$0.00"}},{"v":0,"d":"$0.00"}]
["LTC",null,null,{"$f":"Jurat!I$1","v":0},{"$f":"Jurat!D$33","v":"00:00:00"},"Q2","2017-06-30","Region 10","Operating Expense","Administrative Expense","Administrative","5.1","Salaries & Benefits",{"$f":"'LTC Rev-Exp Region 10'!H$57","v":{"v":0,"d":"$0.00"}},{"$f":"'LTC Rev-Exp Region 10'!I$57","v":{"v":0,"d":"$0.00"}},{"$f":"'LTC Rev-Exp Region 10'!J$57","v":{"v":0,"d":"$0.00"}},{"$f":"'LTC Rev-Exp Region 10'!K$57","v":{"v":0,"d":"$0.00"}},{"v":0,"d":"$0.00"}]
["LTC",null,null,{"$f":"Jurat!I$1","v":0},{"$f":"Jurat!D$33","v":"00:00:00"},"Q2","2017-06-30","Region 10","Operating Expense","Administrative Expense","Administrative","5.2","Administrative Services",{"$f":"'LTC Rev-Exp Region 10'!H$58","v":{"v":0,"d":"$0.00"}},{"$f":"'LTC Rev-Exp Region 10'!I$58","v":{"v":0,"d":"$0.00"}},{"$f":"'LTC Rev-Exp Region 10'!J$58","v":{"v":0,"d":"$0.00"}},{"$f":"'LTC Rev-Exp Region 10'!K$58","v":{"v":0,"d":"$0.00"}},{"v":0,"d":"$0.00"}]
["LTC",null,null,{"$f":"Jurat!I$1","v":0},{"$f":"Jurat!D$33","v":"00:00:00"},"Q2","2017-06-30","Region 10","Operating Expense","Administrative Expense","Administrative","5.3","Information Systems",{"$f":"'LTC Rev-Exp Region 10'!H$59","v":{"v":0,"d":"$0.00"}},{"$f":"'LTC Rev-Exp Region 10'!I$59","v":{"v":0,"d":"$0.00"}},{"$f":"'LTC Rev-Exp Region 10'!J$59","v":{"v":0,"d":"$0.00"}},{"$f":"'LTC Rev-Exp Region 10'!K$59","v":{"v":0,"d":"$0.00"}},{"v":0,"d":"$0.00"}]
["LTC",null,null,{"$f":"Jurat!I$1","v":0},{"$f":"Jurat!D$33","v":"00:00:00"},"Q2","2017-06-30","Region 10","Operating Expense","Administrative Expense","Administrative","5.4","Marketing Expenses",{"$f":"'LTC Rev-Exp Region 10'!H$60","v":{"v":0,"d":"$0.00"}},{"$f":"'LTC Rev-Exp Region 10'!I$60","v":{"v":0,"d":"$0.00"}},{"$f":"'LTC Rev-Exp Region 10'!J$60","v":{"v":0,"d":"$0.00"}},{"$f":"'LTC Rev-Exp Region 10'!K$60","v":{"v":0,"d":"$0.00"}},{"v":0,"d":"$0.00"}]
["LTC",null,null,{"$f":"Jurat!I$1","v":0},{"$f":"Jurat!D$33","v":"00:00:00"},"Q2","2017-06-30","Region 10","Operating Expense","Administrative Expense","Administrative","5.5","General  Administration",{"$f":"'LTC Rev-Exp Region 10'!H$61","v":{"v":0,"d":"$0.00"}},{"$f":"'LTC Rev-Exp Region 10'!I$61","v":{"v":0,"d":"$0.00"}},{"$f":"'LTC Rev-Exp Region 10'!J$61","v":{"v":0,"d":"$0.00"}},{"$f":"'LTC Rev-Exp Region 10'!K$61","v":{"v":0,"d":"$0.00"}},{"v":0,"d":"$0.00"}]
["LTC",null,null,{"$f":"Jurat!I$1","v":0},{"$f":"Jurat!D$33","v":"00:00:00"},"Q2","2017-06-30","Region 10","Operating Expense","Administrative Expense","Administrative","5.6","Compliance/Regulatory",{"$f":"'LTC Rev-Exp Region 10'!H$62","v":{"v":0,"d":"$0.00"}},{"$f":"'LTC Rev-Exp Region 10'!I$62","v":{"v":0,"d":"$0.00"}},{"$f":"'LTC Rev-Exp Region 10'!J$62","v":{"v":0,"d":"$0.00"}},{"$f":"'LTC Rev-Exp Region 10'!K$62","v":{"v":0,"d":"$0.00"}},{"v":0,"d":"$0.00"}]
["LTC",null,null,{"$f":"Jurat!I$1","v":0},{"$f":"Jurat!D$33","v":"00:00:00"},"Q2","2017-06-30","Region 10","Operating Expense","Taxes & Fees","Taxes & Fees","6.1","State Premium Tax",{"$f":"'LTC Rev-Exp Region 10'!H$64","v":{"v":0,"d":"$0.00"}},{"v":0,"d":"$0.00"},{"v":0,"d":"$0.00"},{"v":0,"d":"$0.00"},{"v":0,"d":"$0.00"}]
["LTC",null,null,{"$f":"Jurat!I$1","v":0},{"$f":"Jurat!D$33","v":"00:00:00"},"Q2","2017-06-30","Region 10","Operating Expense","Taxes & Fees","Taxes & Fees","6.2","Department of Insurance Assessments",{"$f":"'LTC Rev-Exp Region 10'!H$65","v":{"v":0,"d":"$0.00"}},{"v":0,"d":"$0.00"},{"v":0,"d":"$0.00"},{"v":0,"d":"$0.00"},{"v":0,"d":"$0.00"}]
["LTC",null,null,{"$f":"Jurat!I$1","v":0},{"$f":"Jurat!D$33","v":"00:00:00"},"Q2","2017-06-30","Region 10","Non-Operating Expense","Income Tax Expense","Income Tax Expense","9.0","Income Tax Expense",{"$f":"'LTC Rev-Exp Region 10'!H$72","v":{"v":0,"d":"$0.00"}},{"v":0,"d":"$0.00"},{"v":0,"d":"$0.00"},{"v":0,"d":"$0.00"},{"v":0,"d":"$0.00"}]
["LTC",null,null,{"$f":"Jurat!I$1","v":0},{"$f":"Jurat!D$33","v":"00:00:00"},"Q3","2017-09-30","Region 10","Member Months","Member Months","Member Months",null,"Member Months",{"$f":"'LTC Rev-Exp Region 10'!L$9","v":{"v":0,"d":"$0.00"}},{"$f":"'LTC Rev-Exp Region 10'!M$9","v":{"v":0,"d":"$0.00"}},{"$f":"'LTC Rev-Exp Region 10'!N$9","v":{"v":0,"d":"$0.00"}},{"$f":"'LTC Rev-Exp Region 10'!O$9","v":{"v":0,"d":"$0.00"}},{"v":0,"d":"$0.00"}]
["LTC",null,null,{"$f":"Jurat!I$1","v":0},{"$f":"Jurat!D$33","v":"00:00:00"},"Q3","2017-09-30","Region 10","Operating Revenue","Capitation","Capitation",1.1,"Capitation",{"$f":"'LTC Rev-Exp Region 10'!L$11","v":{"v":0,"d":"$0.00"}},{"$f":"'LTC Rev-Exp Region 10'!M$11","v":{"v":0,"d":"$0.00"}},{"$f":"'LTC Rev-Exp Region 10'!N$11","v":{"v":0,"d":"$0.00"}},{"$f":"'LTC Rev-Exp Region 10'!O$11","v":{"v":0,"d":"$0.00"}},{"v":0,"d":"$0.00"}]
["LTC",null,null,{"$f":"Jurat!I$1","v":0},{"$f":"Jurat!D$33","v":"00:00:00"},"Q3","2017-09-30","Region 10","Operating Revenue","Capitation","NH Rate Reconciliation",1.2,"NH Rate Reconciliation",{"$f":"'LTC Rev-Exp Region 10'!L$12","v":{"v":0,"d":"$0.00"}},{"$f":"'LTC Rev-Exp Region 10'!M$12","v":{"v":0,"d":"$0.00"}},{"$f":"'LTC Rev-Exp Region 10'!N$12","v":{"v":0,"d":"$0.00"}},{"$f":"'LTC Rev-Exp Region 10'!O$12","v":{"v":0,"d":"$0.00"}},{"v":0,"d":"$0.00"}]
["LTC",null,null,{"$f":"Jurat!I$1","v":0},{"$f":"Jurat!D$33","v":"00:00:00"},"Q3","2017-09-30","Region 10","Operating Revenue","Other Revenue","Other Revenue",1.3,"Other Revenue",{"$f":"'LTC Rev-Exp Region 10'!L$13","v":{"v":0,"d":"$0.00"}},{"$f":"'LTC Rev-Exp Region 10'!M$13","v":{"v":0,"d":"$0.00"}},{"$f":"'LTC Rev-Exp Region 10'!N$13","v":{"v":0,"d":"$0.00"}},{"$f":"'LTC Rev-Exp Region 10'!O$13","v":{"v":0,"d":"$0.00"}},{"v":0,"d":"$0.00"}]
["LTC",null,null,{"$f":"Jurat!I$1","v":0},{"$f":"Jurat!D$33","v":"00:00:00"},"Q3","2017-09-30","Region 10","Operating Expense","Medical Expense","NF & Hospice","2.1","Nursing Facility Days (Medicaid)",{"$f":"'LTC Rev-Exp Region 10'!L$17","v":{"v":0,"d":"$0.00"}},{"$f":"'LTC Rev-Exp Region 10'!M$17","v":{"v":0,"d":"$0.00"}},{"$f":"'LTC Rev-Exp Region 10'!N$17","v":{"v":0,"d":"$0.00"}},{"$f":"'LTC Rev-Exp Region 10'!O$17","v":{"v":0,"d":"$0.00"}},{"v":0,"d":"$0.00"}]
["LTC",null,null,{"$f":"Jurat!I$1","v":0},{"$f":"Jurat!D$33","v":"00:00:00"},"Q3","2017-09-30","Region 10","Operating Expense","Medical Expense","NF & Hospice","2.2","Nursing Facility Days (Crossover)",{"$f":"'LTC Rev-Exp Region 10'!L$18","v":{"v":0,"d":"$0.00"}},{"$f":"'LTC Rev-Exp Region 10'!M$18","v":{"v":0,"d":"$0.00"}},{"$f":"'LTC Rev-Exp Region 10'!N$18","v":{"v":0,"d":"$0.00"}},{"$f":"'LTC Rev-Exp Region 10'!O$18","v":{"v":0,"d":"$0.00"}},{"v":0,"d":"$0.00"}]
["LTC",null,null,{"$f":"Jurat!I$1","v":0},{"$f":"Jurat!D$33","v":"00:00:00"},"Q3","2017-09-30","Region 10","Operating Expense","Medical Expense","NF & Hospice","2.3","Nursing Facility FFS (Medicaid)",{"$f":"'LTC Rev-Exp Region 10'!L$19","v":{"v":0,"d":"$0.00"}},{"$f":"'LTC Rev-Exp Region 10'!M$19","v":{"v":0,"d":"$0.00"}},{"$f":"'LTC Rev-Exp Region 10'!N$19","v":{"v":0,"d":"$0.00"}},{"$f":"'LTC Rev-Exp Region 10'!O$19","v":{"v":0,"d":"$0.00"}},{"v":0,"d":"$0.00"}]
["LTC",null,null,{"$f":"Jurat!I$1","v":0},{"$f":"Jurat!D$33","v":"00:00:00"},"Q3","2017-09-30","Region 10","Operating Expense","Medical Expense","NF & Hospice","2.4","Nursing Facility FFS (Crossover)",{"$f":"'LTC Rev-Exp Region 10'!L$20","v":{"v":0,"d":"$0.00"}},{"$f":"'LTC Rev-Exp Region 10'!M$20","v":{"v":0,"d":"$0.00"}},{"$f":"'LTC Rev-Exp Region 10'!N$20","v":{"v":0,"d":"$0.00"}},{"$f":"'LTC Rev-Exp Region 10'!O$20","v":{"v":0,"d":"$0.00"}},{"v":0,"d":"$0.00"}]
["LTC",null,null,{"$f":"Jurat!I$1","v":0},{"$f":"Jurat!D$33","v":"00:00:00"},"Q3","2017-09-30","Region 10","Operating Expense","Medical Expense","NF & Hospice","2.5","Hospice Days",{"$f":"'LTC Rev-Exp Region 10'!L$21","v":{"v":0,"d":"$0.00"}},{"$f":"'LTC Rev-Exp Region 10'!M$21","v":{"v":0,"d":"$0.00"}},{"$f":"'LTC Rev-Exp Region 10'!N$21","v":{"v":0,"d":"$0.00"}},{"$f":"'LTC Rev-Exp Region 10'!O$21","v":{"v":0,"d":"$0.00"}},{"v":0,"d":"$0.00"}]
["LTC",null,null,{"$f":"Jurat!I$1","v":0},{"$f":"Jurat!D$33","v":"00:00:00"},"Q3","2017-09-30","Region 10","Operating Expense","Medical Expense","NF & Hospice","2.6","Hospice FFS",{"$f":"'LTC Rev-Exp Region 10'!L$22","v":{"v":0,"d":"$0.00"}},{"$f":"'LTC Rev-Exp Region 10'!M$22","v":{"v":0,"d":"$0.00"}},{"$f":"'LTC Rev-Exp Region 10'!N$22","v":{"v":0,"d":"$0.00"}},{"$f":"'LTC Rev-Exp Region 10'!O$22","v":{"v":0,"d":"$0.00"}},{"v":0,"d":"$0.00"}]
["LTC",null,null,{"$f":"Jurat!I$1","v":0},{"$f":"Jurat!D$33","v":"00:00:00"},"Q3","2017-09-30","Region 10","Operating Expense","Medical Expense","NF & Hospice","2.7","Ending IBNP for NF & Hospice",{"$f":"'LTC Rev-Exp Region 10'!L$23","v":{"v":0,"d":"$0.00"}},{"$f":"'LTC Rev-Exp Region 10'!M$23","v":{"v":0,"d":"$0.00"}},{"$f":"'LTC Rev-Exp Region 10'!N$23","v":{"v":0,"d":"$0.00"}},{"$f":"'LTC Rev-Exp Region 10'!O$23","v":{"v":0,"d":"$0.00"}},{"v":0,"d":"$0.00"}]
["LTC",null,null,{"$f":"Jurat!I$1","v":0},{"$f":"Jurat!D$33","v":"00:00:00"},"Q3","2017-09-30","Region 10","Operating Expense","Medical Expense","NF & Hospice","2.8","NF & Hospice Subcapitated",{"$f":"'LTC Rev-Exp Region 10'!L$24","v":{"v":0,"d":"$0.00"}},{"$f":"'LTC Rev-Exp Region 10'!M$24","v":{"v":0,"d":"$0.00"}},{"$f":"'LTC Rev-Exp Region 10'!N$24","v":{"v":0,"d":"$0.00"}},{"$f":"'LTC Rev-Exp Region 10'!O$24","v":{"v":0,"d":"$0.00"}},{"v":0,"d":"$0.00"}]
["LTC",null,null,{"$f":"Jurat!I$1","v":0},{"$f":"Jurat!D$33","v":"00:00:00"},"Q3","2017-09-30","Region 10","Operating Expense","Medical Expense","NF & Hospice","2.9","NF & Hospice Settlements",{"$f":"'LTC Rev-Exp Region 10'!L$25","v":{"v":0,"d":"$0.00"}},{"$f":"'LTC Rev-Exp Region 10'!M$25","v":{"v":0,"d":"$0.00"}},{"$f":"'LTC Rev-Exp Region 10'!N$25","v":{"v":0,"d":"$0.00"}},{"$f":"'LTC Rev-Exp Region 10'!O$25","v":{"v":0,"d":"$0.00"}},{"v":0,"d":"$0.00"}]
["LTC",null,null,{"$f":"Jurat!I$1","v":0},{"$f":"Jurat!D$33","v":"00:00:00"},"Q3","2017-09-30","Region 10","Operating Expense","Medical Expense","LTC Services","2.11","Assisted Living FFS",{"$f":"'LTC Rev-Exp Region 10'!L$27","v":{"v":0,"d":"$0.00"}},{"$f":"'LTC Rev-Exp Region 10'!M$27","v":{"v":0,"d":"$0.00"}},{"$f":"'LTC Rev-Exp Region 10'!N$27","v":{"v":0,"d":"$0.00"}},{"$f":"'LTC Rev-Exp Region 10'!O$27","v":{"v":0,"d":"$0.00"}},{"v":0,"d":"$0.00"}]
["LTC",null,null,{"$f":"Jurat!I$1","v":0},{"$f":"Jurat!D$33","v":"00:00:00"},"Q3","2017-09-30","Region 10","Operating Expense","Medical Expense","LTC Services","2.12","Home Health FFS",{"$f":"'LTC Rev-Exp Region 10'!L$28","v":{"v":0,"d":"$0.00"}},{"$f":"'LTC Rev-Exp Region 10'!M$28","v":{"v":0,"d":"$0.00"}},{"$f":"'LTC Rev-Exp Region 10'!N$28","v":{"v":0,"d":"$0.00"}},{"$f":"'LTC Rev-Exp Region 10'!O$28","v":{"v":0,"d":"$0.00"}},{"v":0,"d":"$0.00"}]
["LTC",null,null,{"$f":"Jurat!I$1","v":0},{"$f":"Jurat!D$33","v":"00:00:00"},"Q3","2017-09-30","Region 10","Operating Expense","Medical Expense","LTC Services","2.13","Medical Equipment/Supplies FFS",{"$f":"'LTC Rev-Exp Region 10'!L$29","v":{"v":0,"d":"$0.00"}},{"$f":"'LTC Rev-Exp Region 10'!M$29","v":{"v":0,"d":"$0.00"}},{"$f":"'LTC Rev-Exp Region 10'!N$29","v":{"v":0,"d":"$0.00"}},{"$f":"'LTC Rev-Exp Region 10'!O$29","v":{"v":0,"d":"$0.00"}},{"v":0,"d":"$0.00"}]
["LTC",null,null,{"$f":"Jurat!I$1","v":0},{"$f":"Jurat!D$33","v":"00:00:00"},"Q3","2017-09-30","Region 10","Operating Expense","Medical Expense","LTC Services","2.14","Therapy FFS",{"$f":"'LTC Rev-Exp Region 10'!L$30","v":{"v":0,"d":"$0.00"}},{"$f":"'LTC Rev-Exp Region 10'!M$30","v":{"v":0,"d":"$0.00"}},{"$f":"'LTC Rev-Exp Region 10'!N$30","v":{"v":0,"d":"$0.00"}},{"$f":"'LTC Rev-Exp Region 10'!O$30","v":{"v":0,"d":"$0.00"}},{"v":0,"d":"$0.00"}]
["LTC",null,null,{"$f":"Jurat!I$1","v":0},{"$f":"Jurat!D$33","v":"00:00:00"},"Q3","2017-09-30","Region 10","Operating Expense","Medical Expense","LTC Services","2.15","Transportation FFS",{"$f":"'LTC Rev-Exp Region 10'!L$31","v":{"v":0,"d":"$0.00"}},{"$f":"'LTC Rev-Exp Region 10'!M$31","v":{"v":0,"d":"$0.00"}},{"$f":"'LTC Rev-Exp Region 10'!N$31","v":{"v":0,"d":"$0.00"}},{"$f":"'LTC Rev-Exp Region 10'!O$31","v":{"v":0,"d":"$0.00"}},{"v":0,"d":"$0.00"}]
["LTC",null,null,{"$f":"Jurat!I$1","v":0},{"$f":"Jurat!D$33","v":"00:00:00"},"Q3","2017-09-30","Region 10","Operating Expense","Medical Expense","LTC Services","2.16","Case Management FFS (Plan Provided)",{"$f":"'LTC Rev-Exp Region 10'!L$32","v":{"v":0,"d":"$0.00"}},{"$f":"'LTC Rev-Exp Region 10'!M$32","v":{"v":0,"d":"$0.00"}},{"$f":"'LTC Rev-Exp Region 10'!N$32","v":{"v":0,"d":"$0.00"}},{"$f":"'LTC Rev-Exp Region 10'!O$32","v":{"v":0,"d":"$0.00"}},{"v":0,"d":"$0.00"}]
["LTC",null,null,{"$f":"Jurat!I$1","v":0},{"$f":"Jurat!D$33","v":"00:00:00"},"Q3","2017-09-30","Region 10","Operating Expense","Medical Expense","LTC Services","2.17","Case Management FF (Non-Plan Provided)",{"$f":"'LTC Rev-Exp Region 10'!L$33","v":{"v":0,"d":"$0.00"}},{"$f":"'LTC Rev-Exp Region 10'!M$33","v":{"v":0,"d":"$0.00"}},{"$f":"'LTC Rev-Exp Region 10'!N$33","v":{"v":0,"d":"$0.00"}},{"$f":"'LTC Rev-Exp Region 10'!O$33","v":{"v":0,"d":"$0.00"}},{"v":0,"d":"$0.00"}]
["LTC",null,null,{"$f":"Jurat!I$1","v":0},{"$f":"Jurat!D$33","v":"00:00:00"},"Q3","2017-09-30","Region 10","Operating Expense","Medical Expense","LTC Services","2.18","HCBS FFS",{"$f":"'LTC Rev-Exp Region 10'!L$34","v":{"v":0,"d":"$0.00"}},{"$f":"'LTC Rev-Exp Region 10'!M$34","v":{"v":0,"d":"$0.00"}},{"$f":"'LTC Rev-Exp Region 10'!N$34","v":{"v":0,"d":"$0.00"}},{"$f":"'LTC Rev-Exp Region 10'!O$34","v":{"v":0,"d":"$0.00"}},{"v":0,"d":"$0.00"}]
["LTC",null,null,{"$f":"Jurat!I$1","v":0},{"$f":"Jurat!D$33","v":"00:00:00"},"Q3","2017-09-30","Region 10","Operating Expense","Medical Expense","LTC Services","2.19","Subcapitated LTC Services",{"$f":"'LTC Rev-Exp Region 10'!L$35","v":{"v":0,"d":"$0.00"}},{"$f":"'LTC Rev-Exp Region 10'!M$35","v":{"v":0,"d":"$0.00"}},{"$f":"'LTC Rev-Exp Region 10'!N$35","v":{"v":0,"d":"$0.00"}},{"$f":"'LTC Rev-Exp Region 10'!O$35","v":{"v":0,"d":"$0.00"}},{"v":0,"d":"$0.00"}]
["LTC",null,null,{"$f":"Jurat!I$1","v":0},{"$f":"Jurat!D$33","v":"00:00:00"},"Q3","2017-09-30","Region 10","Operating Expense","Medical Expense","LTC Services","2.20","Ending IBNP for Long Term Care Services",{"$f":"'LTC Rev-Exp Region 10'!L$36","v":{"v":0,"d":"$0.00"}},{"$f":"'LTC Rev-Exp Region 10'!M$36","v":{"v":0,"d":"$0.00"}},{"$f":"'LTC Rev-Exp Region 10'!N$36","v":{"v":0,"d":"$0.00"}},{"$f":"'LTC Rev-Exp Region 10'!O$36","v":{"v":0,"d":"$0.00"}},{"v":0,"d":"$0.00"}]
["LTC",null,null,{"$f":"Jurat!I$1","v":0},{"$f":"Jurat!D$33","v":"00:00:00"},"Q3","2017-09-30","Region 10","Operating Expense","Medical Expense","LTC Services","2.21","LTC Services Settlements",{"$f":"'LTC Rev-Exp Region 10'!L$37","v":{"v":0,"d":"$0.00"}},{"$f":"'LTC Rev-Exp Region 10'!M$37","v":{"v":0,"d":"$0.00"}},{"$f":"'LTC Rev-Exp Region 10'!N$37","v":{"v":0,"d":"$0.00"}},{"$f":"'LTC Rev-Exp Region 10'!O$37","v":{"v":0,"d":"$0.00"}},{"v":0,"d":"$0.00"}]
["LTC",null,null,{"$f":"Jurat!I$1","v":0},{"$f":"Jurat!D$33","v":"00:00:00"},"Q3","2017-09-30","Region 10","Operating Expense","Medical Expense","Expanded Benefits","3.1","Expanded Benefits FFS",{"$f":"'LTC Rev-Exp Region 10'!L$39","v":{"v":0,"d":"$0.00"}},{"$f":"'LTC Rev-Exp Region 10'!M$39","v":{"v":0,"d":"$0.00"}},{"$f":"'LTC Rev-Exp Region 10'!N$39","v":{"v":0,"d":"$0.00"}},{"$f":"'LTC Rev-Exp Region 10'!O$39","v":{"v":0,"d":"$0.00"}},{"v":0,"d":"$0.00"}]
["LTC",null,null,{"$f":"Jurat!I$1","v":0},{"$f":"Jurat!D$33","v":"00:00:00"},"Q3","2017-09-30","Region 10","Operating Expense","Medical Expense","Expanded Benefits","3.2","Expanded Benefits Subcapitation",{"$f":"'LTC Rev-Exp Region 10'!L$40","v":{"v":0,"d":"$0.00"}},{"$f":"'LTC Rev-Exp Region 10'!M$40","v":{"v":0,"d":"$0.00"}},{"$f":"'LTC Rev-Exp Region 10'!N$40","v":{"v":0,"d":"$0.00"}},{"$f":"'LTC Rev-Exp Region 10'!O$40","v":{"v":0,"d":"$0.00"}},{"v":0,"d":"$0.00"}]
["LTC",null,null,{"$f":"Jurat!I$1","v":0},{"$f":"Jurat!D$33","v":"00:00:00"},"Q3","2017-09-30","Region 10","Operating Expense","Medical Expense","Expanded Benefits","3.3","Ending IBNP for Expanded Benefits",{"$f":"'LTC Rev-Exp Region 10'!L$41","v":{"v":0,"d":"$0.00"}},{"$f":"'LTC Rev-Exp Region 10'!M$41","v":{"v":0,"d":"$0.00"}},{"$f":"'LTC Rev-Exp Region 10'!N$41","v":{"v":0,"d":"$0.00"}},{"$f":"'LTC Rev-Exp Region 10'!O$41","v":{"v":0,"d":"$0.00"}},{"v":0,"d":"$0.00"}]
["LTC",null,null,{"$f":"Jurat!I$1","v":0},{"$f":"Jurat!D$33","v":"00:00:00"},"Q3","2017-09-30","Region 10","Operating Expense","Medical Expense","Expanded Benefits","3.4","Expanded Benefits Settlements",{"$f":"'LTC Rev-Exp Region 10'!L$42","v":{"v":0,"d":"$0.00"}},{"$f":"'LTC Rev-Exp Region 10'!M$42","v":{"v":0,"d":"$0.00"}},{"$f":"'LTC Rev-Exp Region 10'!N$42","v":{"v":0,"d":"$0.00"}},{"$f":"'LTC Rev-Exp Region 10'!O$42","v":{"v":0,"d":"$0.00"}},{"v":0,"d":"$0.00"}]
["LTC",null,null,{"$f":"Jurat!I$1","v":0},{"$f":"Jurat!D$33","v":"00:00:00"},"Q3","2017-09-30","Region 10","Operating Expense","Medical Expense","Other Medical","4.5","TPL & Fraud/Abuse Recoveries",{"$f":"'LTC Rev-Exp Region 10'!L$48","v":{"v":0,"d":"$0.00"}},{"$f":"'LTC Rev-Exp Region 10'!M$48","v":{"v":0,"d":"$0.00"}},{"$f":"'LTC Rev-Exp Region 10'!N$48","v":{"v":0,"d":"$0.00"}},{"$f":"'LTC Rev-Exp Region 10'!O$48","v":{"v":0,"d":"$0.00"}},{"v":0,"d":"$0.00"}]
["LTC",null,null,{"$f":"Jurat!I$1","v":0},{"$f":"Jurat!D$33","v":"00:00:00"},"Q3","2017-09-30","Region 10","Operating Expense","Medical Expense","Other Medical","4.6.1","Premium Deficiency Reserve",{"$f":"'LTC Rev-Exp Region 10'!L$49","v":{"v":0,"d":"$0.00"}},{"$f":"'LTC Rev-Exp Region 10'!M$49","v":{"v":0,"d":"$0.00"}},{"$f":"'LTC Rev-Exp Region 10'!N$49","v":{"v":0,"d":"$0.00"}},{"$f":"'LTC Rev-Exp Region 10'!O$49","v":{"v":0,"d":"$0.00"}},{"v":0,"d":"$0.00"}]
["LTC",null,null,{"$f":"Jurat!I$1","v":0},{"$f":"Jurat!D$33","v":"00:00:00"},"Q3","2017-09-30","Region 10","Operating Expense","Medical Expense","Other Medical","4.8","Reinsurance Premiums",{"$f":"'LTC Rev-Exp Region 10'!L$51","v":{"v":0,"d":"$0.00"}},{"$f":"'LTC Rev-Exp Region 10'!M$51","v":{"v":0,"d":"$0.00"}},{"$f":"'LTC Rev-Exp Region 10'!N$51","v":{"v":0,"d":"$0.00"}},{"$f":"'LTC Rev-Exp Region 10'!O$51","v":{"v":0,"d":"$0.00"}},{"v":0,"d":"$0.00"}]
["LTC",null,null,{"$f":"Jurat!I$1","v":0},{"$f":"Jurat!D$33","v":"00:00:00"},"Q3","2017-09-30","Region 10","Operating Expense","Medical Expense","Other Medical","4.9","Reinsurance Recoveries",{"$f":"'LTC Rev-Exp Region 10'!L$52","v":{"v":0,"d":"$0.00"}},{"$f":"'LTC Rev-Exp Region 10'!M$52","v":{"v":0,"d":"$0.00"}},{"$f":"'LTC Rev-Exp Region 10'!N$52","v":{"v":0,"d":"$0.00"}},{"$f":"'LTC Rev-Exp Region 10'!O$52","v":{"v":0,"d":"$0.00"}},{"v":0,"d":"$0.00"}]
["LTC",null,null,{"$f":"Jurat!I$1","v":0},{"$f":"Jurat!D$33","v":"00:00:00"},"Q3","2017-09-30","Region 10","Operating Expense","Administrative Expense","Administrative","5.1","Salaries & Benefits",{"$f":"'LTC Rev-Exp Region 10'!L$57","v":{"v":0,"d":"$0.00"}},{"$f":"'LTC Rev-Exp Region 10'!M$57","v":{"v":0,"d":"$0.00"}},{"$f":"'LTC Rev-Exp Region 10'!N$57","v":{"v":0,"d":"$0.00"}},{"$f":"'LTC Rev-Exp Region 10'!O$57","v":{"v":0,"d":"$0.00"}},{"v":0,"d":"$0.00"}]
["LTC",null,null,{"$f":"Jurat!I$1","v":0},{"$f":"Jurat!D$33","v":"00:00:00"},"Q3","2017-09-30","Region 10","Operating Expense","Administrative Expense","Administrative","5.2","Administrative Services",{"$f":"'LTC Rev-Exp Region 10'!L$58","v":{"v":0,"d":"$0.00"}},{"$f":"'LTC Rev-Exp Region 10'!M$58","v":{"v":0,"d":"$0.00"}},{"$f":"'LTC Rev-Exp Region 10'!N$58","v":{"v":0,"d":"$0.00"}},{"$f":"'LTC Rev-Exp Region 10'!O$58","v":{"v":0,"d":"$0.00"}},{"v":0,"d":"$0.00"}]
["LTC",null,null,{"$f":"Jurat!I$1","v":0},{"$f":"Jurat!D$33","v":"00:00:00"},"Q3","2017-09-30","Region 10","Operating Expense","Administrative Expense","Administrative","5.3","Information Systems",{"$f":"'LTC Rev-Exp Region 10'!L$59","v":{"v":0,"d":"$0.00"}},{"$f":"'LTC Rev-Exp Region 10'!M$59","v":{"v":0,"d":"$0.00"}},{"$f":"'LTC Rev-Exp Region 10'!N$59","v":{"v":0,"d":"$0.00"}},{"$f":"'LTC Rev-Exp Region 10'!O$59","v":{"v":0,"d":"$0.00"}},{"v":0,"d":"$0.00"}]
["LTC",null,null,{"$f":"Jurat!I$1","v":0},{"$f":"Jurat!D$33","v":"00:00:00"},"Q3","2017-09-30","Region 10","Operating Expense","Administrative Expense","Administrative","5.4","Marketing Expenses",{"$f":"'LTC Rev-Exp Region 10'!L$60","v":{"v":0,"d":"$0.00"}},{"$f":"'LTC Rev-Exp Region 10'!M$60","v":{"v":0,"d":"$0.00"}},{"$f":"'LTC Rev-Exp Region 10'!N$60","v":{"v":0,"d":"$0.00"}},{"$f":"'LTC Rev-Exp Region 10'!O$60","v":{"v":0,"d":"$0.00"}},{"v":0,"d":"$0.00"}]
["LTC",null,null,{"$f":"Jurat!I$1","v":0},{"$f":"Jurat!D$33","v":"00:00:00"},"Q3","2017-09-30","Region 10","Operating Expense","Administrative Expense","Administrative","5.5","General  Administration",{"$f":"'LTC Rev-Exp Region 10'!L$61","v":{"v":0,"d":"$0.00"}},{"$f":"'LTC Rev-Exp Region 10'!M$61","v":{"v":0,"d":"$0.00"}},{"$f":"'LTC Rev-Exp Region 10'!N$61","v":{"v":0,"d":"$0.00"}},{"$f":"'LTC Rev-Exp Region 10'!O$61","v":{"v":0,"d":"$0.00"}},{"v":0,"d":"$0.00"}]
["LTC",null,null,{"$f":"Jurat!I$1","v":0},{"$f":"Jurat!D$33","v":"00:00:00"},"Q3","2017-09-30","Region 10","Operating Expense","Administrative Expense","Administrative","5.6","Compliance/Regulatory",{"$f":"'LTC Rev-Exp Region 10'!L$62","v":{"v":0,"d":"$0.00"}},{"$f":"'LTC Rev-Exp Region 10'!M$62","v":{"v":0,"d":"$0.00"}},{"$f":"'LTC Rev-Exp Region 10'!N$62","v":{"v":0,"d":"$0.00"}},{"$f":"'LTC Rev-Exp Region 10'!O$62","v":{"v":0,"d":"$0.00"}},{"v":0,"d":"$0.00"}]
["LTC",null,null,{"$f":"Jurat!I$1","v":0},{"$f":"Jurat!D$33","v":"00:00:00"},"Q3","2017-09-30","Region 10","Operating Expense","Taxes & Fees","Taxes & Fees","6.1","State Premium Tax",{"$f":"'LTC Rev-Exp Region 10'!L$64","v":{"v":0,"d":"$0.00"}},{"v":0,"d":"$0.00"},{"v":0,"d":"$0.00"},{"v":0,"d":"$0.00"},{"v":0,"d":"$0.00"}]
["LTC",null,null,{"$f":"Jurat!I$1","v":0},{"$f":"Jurat!D$33","v":"00:00:00"},"Q3","2017-09-30","Region 10","Operating Expense","Taxes & Fees","Taxes & Fees","6.2","Department of Insurance Assessments",{"$f":"'LTC Rev-Exp Region 10'!L$65","v":{"v":0,"d":"$0.00"}},{"v":0,"d":"$0.00"},{"v":0,"d":"$0.00"},{"v":0,"d":"$0.00"},{"v":0,"d":"$0.00"}]
["LTC",null,null,{"$f":"Jurat!I$1","v":0},{"$f":"Jurat!D$33","v":"00:00:00"},"Q3","2017-09-30","Region 10","Non-Operating Expense","Income Tax Expense","Income Tax Expense","9.0","Income Tax Expense",{"$f":"'LTC Rev-Exp Region 10'!L$72","v":{"v":0,"d":"$0.00"}},{"v":0,"d":"$0.00"},{"v":0,"d":"$0.00"},{"v":0,"d":"$0.00"},{"v":0,"d":"$0.00"}]
["LTC",null,null,{"$f":"Jurat!I$1","v":0},{"$f":"Jurat!D$33","v":"00:00:00"},"Q4","2017-12-31","Region 10","Member Months","Member Months","Member Months",null,"Member Months",{"$f":"'LTC Rev-Exp Region 10'!P$9","v":{"v":0,"d":"$0.00"}},{"$f":"'LTC Rev-Exp Region 10'!Q$9","v":{"v":0,"d":"$0.00"}},{"$f":"'LTC Rev-Exp Region 10'!R$9","v":{"v":0,"d":"$0.00"}},{"$f":"'LTC Rev-Exp Region 10'!S$9","v":{"v":0,"d":"$0.00"}},{"v":0,"d":"$0.00"}]
["LTC",null,null,{"$f":"Jurat!I$1","v":0},{"$f":"Jurat!D$33","v":"00:00:00"},"Q4","2017-12-31","Region 10","Operating Revenue","Capitation","Capitation",1.1,"Capitation",{"$f":"'LTC Rev-Exp Region 10'!P$11","v":{"v":0,"d":"$0.00"}},{"$f":"'LTC Rev-Exp Region 10'!Q$11","v":{"v":0,"d":"$0.00"}},{"$f":"'LTC Rev-Exp Region 10'!R$11","v":{"v":0,"d":"$0.00"}},{"$f":"'LTC Rev-Exp Region 10'!S$11","v":{"v":0,"d":"$0.00"}},{"v":0,"d":"$0.00"}]
["LTC",null,null,{"$f":"Jurat!I$1","v":0},{"$f":"Jurat!D$33","v":"00:00:00"},"Q4","2017-12-31","Region 10","Operating Revenue","Capitation","NH Rate Reconciliation",1.2,"NH Rate Reconciliation",{"$f":"'LTC Rev-Exp Region 10'!P$12","v":{"v":0,"d":"$0.00"}},{"$f":"'LTC Rev-Exp Region 10'!Q$12","v":{"v":0,"d":"$0.00"}},{"$f":"'LTC Rev-Exp Region 10'!R$12","v":{"v":0,"d":"$0.00"}},{"$f":"'LTC Rev-Exp Region 10'!S$12","v":{"v":0,"d":"$0.00"}},{"v":0,"d":"$0.00"}]
["LTC",null,null,{"$f":"Jurat!I$1","v":0},{"$f":"Jurat!D$33","v":"00:00:00"},"Q4","2017-12-31","Region 10","Operating Revenue","Other Revenue","Other Revenue",1.3,"Other Revenue",{"$f":"'LTC Rev-Exp Region 10'!P$13","v":{"v":0,"d":"$0.00"}},{"$f":"'LTC Rev-Exp Region 10'!Q$13","v":{"v":0,"d":"$0.00"}},{"$f":"'LTC Rev-Exp Region 10'!R$13","v":{"v":0,"d":"$0.00"}},{"$f":"'LTC Rev-Exp Region 10'!S$13","v":{"v":0,"d":"$0.00"}},{"v":0,"d":"$0.00"}]
["LTC",null,null,{"$f":"Jurat!I$1","v":0},{"$f":"Jurat!D$33","v":"00:00:00"},"Q4","2017-12-31","Region 10","Operating Expense","Medical Expense","NF & Hospice","2.1","Nursing Facility Days (Medicaid)",{"$f":"'LTC Rev-Exp Region 10'!P$17","v":{"v":0,"d":"$0.00"}},{"$f":"'LTC Rev-Exp Region 10'!Q$17","v":{"v":0,"d":"$0.00"}},{"$f":"'LTC Rev-Exp Region 10'!R$17","v":{"v":0,"d":"$0.00"}},{"$f":"'LTC Rev-Exp Region 10'!S$17","v":{"v":0,"d":"$0.00"}},{"v":0,"d":"$0.00"}]
["LTC",null,null,{"$f":"Jurat!I$1","v":0},{"$f":"Jurat!D$33","v":"00:00:00"},"Q4","2017-12-31","Region 10","Operating Expense","Medical Expense","NF & Hospice","2.2","Nursing Facility Days (Crossover)",{"$f":"'LTC Rev-Exp Region 10'!P$18","v":{"v":0,"d":"$0.00"}},{"$f":"'LTC Rev-Exp Region 10'!Q$18","v":{"v":0,"d":"$0.00"}},{"$f":"'LTC Rev-Exp Region 10'!R$18","v":{"v":0,"d":"$0.00"}},{"$f":"'LTC Rev-Exp Region 10'!S$18","v":{"v":0,"d":"$0.00"}},{"v":0,"d":"$0.00"}]
["LTC",null,null,{"$f":"Jurat!I$1","v":0},{"$f":"Jurat!D$33","v":"00:00:00"},"Q4","2017-12-31","Region 10","Operating Expense","Medical Expense","NF & Hospice","2.3","Nursing Facility FFS (Medicaid)",{"$f":"'LTC Rev-Exp Region 10'!P$19","v":{"v":0,"d":"$0.00"}},{"$f":"'LTC Rev-Exp Region 10'!Q$19","v":{"v":0,"d":"$0.00"}},{"$f":"'LTC Rev-Exp Region 10'!R$19","v":{"v":0,"d":"$0.00"}},{"$f":"'LTC Rev-Exp Region 10'!S$19","v":{"v":0,"d":"$0.00"}},{"v":0,"d":"$0.00"}]
["LTC",null,null,{"$f":"Jurat!I$1","v":0},{"$f":"Jurat!D$33","v":"00:00:00"},"Q4","2017-12-31","Region 10","Operating Expense","Medical Expense","NF & Hospice","2.4","Nursing Facility FFS (Crossover)",{"$f":"'LTC Rev-Exp Region 10'!P$20","v":{"v":0,"d":"$0.00"}},{"$f":"'LTC Rev-Exp Region 10'!Q$20","v":{"v":0,"d":"$0.00"}},{"$f":"'LTC Rev-Exp Region 10'!R$20","v":{"v":0,"d":"$0.00"}},{"$f":"'LTC Rev-Exp Region 10'!S$20","v":{"v":0,"d":"$0.00"}},{"v":0,"d":"$0.00"}]
["LTC",null,null,{"$f":"Jurat!I$1","v":0},{"$f":"Jurat!D$33","v":"00:00:00"},"Q4","2017-12-31","Region 10","Operating Expense","Medical Expense","NF & Hospice","2.5","Hospice Days",{"$f":"'LTC Rev-Exp Region 10'!P$21","v":{"v":0,"d":"$0.00"}},{"$f":"'LTC Rev-Exp Region 10'!Q$21","v":{"v":0,"d":"$0.00"}},{"$f":"'LTC Rev-Exp Region 10'!R$21","v":{"v":0,"d":"$0.00"}},{"$f":"'LTC Rev-Exp Region 10'!S$21","v":{"v":0,"d":"$0.00"}},{"v":0,"d":"$0.00"}]
["LTC",null,null,{"$f":"Jurat!I$1","v":0},{"$f":"Jurat!D$33","v":"00:00:00"},"Q4","2017-12-31","Region 10","Operating Expense","Medical Expense","NF & Hospice","2.6","Hospice FFS",{"$f":"'LTC Rev-Exp Region 10'!P$22","v":{"v":0,"d":"$0.00"}},{"$f":"'LTC Rev-Exp Region 10'!Q$22","v":{"v":0,"d":"$0.00"}},{"$f":"'LTC Rev-Exp Region 10'!R$22","v":{"v":0,"d":"$0.00"}},{"$f":"'LTC Rev-Exp Region 10'!S$22","v":{"v":0,"d":"$0.00"}},{"v":0,"d":"$0.00"}]
["LTC",null,null,{"$f":"Jurat!I$1","v":0},{"$f":"Jurat!D$33","v":"00:00:00"},"Q4","2017-12-31","Region 10","Operating Expense","Medical Expense","NF & Hospice","2.7","Ending IBNP for NF & Hospice",{"$f":"'LTC Rev-Exp Region 10'!P$23","v":{"v":0,"d":"$0.00"}},{"$f":"'LTC Rev-Exp Region 10'!Q$23","v":{"v":0,"d":"$0.00"}},{"$f":"'LTC Rev-Exp Region 10'!R$23","v":{"v":0,"d":"$0.00"}},{"$f":"'LTC Rev-Exp Region 10'!S$23","v":{"v":0,"d":"$0.00"}},{"v":0,"d":"$0.00"}]
["LTC",null,null,{"$f":"Jurat!I$1","v":0},{"$f":"Jurat!D$33","v":"00:00:00"},"Q4","2017-12-31","Region 10","Operating Expense","Medical Expense","NF & Hospice","2.8","NF & Hospice Subcapitated",{"$f":"'LTC Rev-Exp Region 10'!P$24","v":{"v":0,"d":"$0.00"}},{"$f":"'LTC Rev-Exp Region 10'!Q$24","v":{"v":0,"d":"$0.00"}},{"$f":"'LTC Rev-Exp Region 10'!R$24","v":{"v":0,"d":"$0.00"}},{"$f":"'LTC Rev-Exp Region 10'!S$24","v":{"v":0,"d":"$0.00"}},{"v":0,"d":"$0.00"}]
["LTC",null,null,{"$f":"Jurat!I$1","v":0},{"$f":"Jurat!D$33","v":"00:00:00"},"Q4","2017-12-31","Region 10","Operating Expense","Medical Expense","NF & Hospice","2.9","NF & Hospice Settlements",{"$f":"'LTC Rev-Exp Region 10'!P$25","v":{"v":0,"d":"$0.00"}},{"$f":"'LTC Rev-Exp Region 10'!Q$25","v":{"v":0,"d":"$0.00"}},{"$f":"'LTC Rev-Exp Region 10'!R$25","v":{"v":0,"d":"$0.00"}},{"$f":"'LTC Rev-Exp Region 10'!S$25","v":{"v":0,"d":"$0.00"}},{"v":0,"d":"$0.00"}]
["LTC",null,null,{"$f":"Jurat!I$1","v":0},{"$f":"Jurat!D$33","v":"00:00:00"},"Q4","2017-12-31","Region 10","Operating Expense","Medical Expense","LTC Services","2.11","Assisted Living FFS",{"$f":"'LTC Rev-Exp Region 10'!P$27","v":{"v":0,"d":"$0.00"}},{"$f":"'LTC Rev-Exp Region 10'!Q$27","v":{"v":0,"d":"$0.00"}},{"$f":"'LTC Rev-Exp Region 10'!R$27","v":{"v":0,"d":"$0.00"}},{"$f":"'LTC Rev-Exp Region 10'!S$27","v":{"v":0,"d":"$0.00"}},{"v":0,"d":"$0.00"}]
["LTC",null,null,{"$f":"Jurat!I$1","v":0},{"$f":"Jurat!D$33","v":"00:00:00"},"Q4","2017-12-31","Region 10","Operating Expense","Medical Expense","LTC Services","2.12","Home Health FFS",{"$f":"'LTC Rev-Exp Region 10'!P$28","v":{"v":0,"d":"$0.00"}},{"$f":"'LTC Rev-Exp Region 10'!Q$28","v":{"v":0,"d":"$0.00"}},{"$f":"'LTC Rev-Exp Region 10'!R$28","v":{"v":0,"d":"$0.00"}},{"$f":"'LTC Rev-Exp Region 10'!S$28","v":{"v":0,"d":"$0.00"}},{"v":0,"d":"$0.00"}]
["LTC",null,null,{"$f":"Jurat!I$1","v":0},{"$f":"Jurat!D$33","v":"00:00:00"},"Q4","2017-12-31","Region 10","Operating Expense","Medical Expense","LTC Services","2.13","Medical Equipment/Supplies FFS",{"$f":"'LTC Rev-Exp Region 10'!P$29","v":{"v":0,"d":"$0.00"}},{"$f":"'LTC Rev-Exp Region 10'!Q$29","v":{"v":0,"d":"$0.00"}},{"$f":"'LTC Rev-Exp Region 10'!R$29","v":{"v":0,"d":"$0.00"}},{"$f":"'LTC Rev-Exp Region 10'!S$29","v":{"v":0,"d":"$0.00"}},{"v":0,"d":"$0.00"}]
["LTC",null,null,{"$f":"Jurat!I$1","v":0},{"$f":"Jurat!D$33","v":"00:00:00"},"Q4","2017-12-31","Region 10","Operating Expense","Medical Expense","LTC Services","2.14","Therapy FFS",{"$f":"'LTC Rev-Exp Region 10'!P$30","v":{"v":0,"d":"$0.00"}},{"$f":"'LTC Rev-Exp Region 10'!Q$30","v":{"v":0,"d":"$0.00"}},{"$f":"'LTC Rev-Exp Region 10'!R$30","v":{"v":0,"d":"$0.00"}},{"$f":"'LTC Rev-Exp Region 10'!S$30","v":{"v":0,"d":"$0.00"}},{"v":0,"d":"$0.00"}]
["LTC",null,null,{"$f":"Jurat!I$1","v":0},{"$f":"Jurat!D$33","v":"00:00:00"},"Q4","2017-12-31","Region 10","Operating Expense","Medical Expense","LTC Services","2.15","Transportation FFS",{"$f":"'LTC Rev-Exp Region 10'!P$31","v":{"v":0,"d":"$0.00"}},{"$f":"'LTC Rev-Exp Region 10'!Q$31","v":{"v":0,"d":"$0.00"}},{"$f":"'LTC Rev-Exp Region 10'!R$31","v":{"v":0,"d":"$0.00"}},{"$f":"'LTC Rev-Exp Region 10'!S$31","v":{"v":0,"d":"$0.00"}},{"v":0,"d":"$0.00"}]
["LTC",null,null,{"$f":"Jurat!I$1","v":0},{"$f":"Jurat!D$33","v":"00:00:00"},"Q4","2017-12-31","Region 10","Operating Expense","Medical Expense","LTC Services","2.16","Case Management FFS (Plan Provided)",{"$f":"'LTC Rev-Exp Region 10'!P$32","v":{"v":0,"d":"$0.00"}},{"$f":"'LTC Rev-Exp Region 10'!Q$32","v":{"v":0,"d":"$0.00"}},{"$f":"'LTC Rev-Exp Region 10'!R$32","v":{"v":0,"d":"$0.00"}},{"$f":"'LTC Rev-Exp Region 10'!S$32","v":{"v":0,"d":"$0.00"}},{"v":0,"d":"$0.00"}]
["LTC",null,null,{"$f":"Jurat!I$1","v":0},{"$f":"Jurat!D$33","v":"00:00:00"},"Q4","2017-12-31","Region 10","Operating Expense","Medical Expense","LTC Services","2.17","Case Management FF (Non-Plan Provided)",{"$f":"'LTC Rev-Exp Region 10'!P$33","v":{"v":0,"d":"$0.00"}},{"$f":"'LTC Rev-Exp Region 10'!Q$33","v":{"v":0,"d":"$0.00"}},{"$f":"'LTC Rev-Exp Region 10'!R$33","v":{"v":0,"d":"$0.00"}},{"$f":"'LTC Rev-Exp Region 10'!S$33","v":{"v":0,"d":"$0.00"}},{"v":0,"d":"$0.00"}]
["LTC",null,null,{"$f":"Jurat!I$1","v":0},{"$f":"Jurat!D$33","v":"00:00:00"},"Q4","2017-12-31","Region 10","Operating Expense","Medical Expense","LTC Services","2.18","HCBS FFS",{"$f":"'LTC Rev-Exp Region 10'!P$34","v":{"v":0,"d":"$0.00"}},{"$f":"'LTC Rev-Exp Region 10'!Q$34","v":{"v":0,"d":"$0.00"}},{"$f":"'LTC Rev-Exp Region 10'!R$34","v":{"v":0,"d":"$0.00"}},{"$f":"'LTC Rev-Exp Region 10'!S$34","v":{"v":0,"d":"$0.00"}},{"v":0,"d":"$0.00"}]
["LTC",null,null,{"$f":"Jurat!I$1","v":0},{"$f":"Jurat!D$33","v":"00:00:00"},"Q4","2017-12-31","Region 10","Operating Expense","Medical Expense","LTC Services","2.19","Subcapitated LTC Services",{"$f":"'LTC Rev-Exp Region 10'!P$35","v":{"v":0,"d":"$0.00"}},{"$f":"'LTC Rev-Exp Region 10'!Q$35","v":{"v":0,"d":"$0.00"}},{"$f":"'LTC Rev-Exp Region 10'!R$35","v":{"v":0,"d":"$0.00"}},{"$f":"'LTC Rev-Exp Region 10'!S$35","v":{"v":0,"d":"$0.00"}},{"v":0,"d":"$0.00"}]
["LTC",null,null,{"$f":"Jurat!I$1","v":0},{"$f":"Jurat!D$33","v":"00:00:00"},"Q4","2017-12-31","Region 10","Operating Expense","Medical Expense","LTC Services","2.20","Ending IBNP for Long Term Care Services",{"$f":"'LTC Rev-Exp Region 10'!P$36","v":{"v":0,"d":"$0.00"}},{"$f":"'LTC Rev-Exp Region 10'!Q$36","v":{"v":0,"d":"$0.00"}},{"$f":"'LTC Rev-Exp Region 10'!R$36","v":{"v":0,"d":"$0.00"}},{"$f":"'LTC Rev-Exp Region 10'!S$36","v":{"v":0,"d":"$0.00"}},{"v":0,"d":"$0.00"}]
["LTC",null,null,{"$f":"Jurat!I$1","v":0},{"$f":"Jurat!D$33","v":"00:00:00"},"Q4","2017-12-31","Region 10","Operating Expense","Medical Expense","LTC Services","2.21","LTC Services Settlements",{"$f":"'LTC Rev-Exp Region 10'!P$37","v":{"v":0,"d":"$0.00"}},{"$f":"'LTC Rev-Exp Region 10'!Q$37","v":{"v":0,"d":"$0.00"}},{"$f":"'LTC Rev-Exp Region 10'!R$37","v":{"v":0,"d":"$0.00"}},{"$f":"'LTC Rev-Exp Region 10'!S$37","v":{"v":0,"d":"$0.00"}},{"v":0,"d":"$0.00"}]
["LTC",null,null,{"$f":"Jurat!I$1","v":0},{"$f":"Jurat!D$33","v":"00:00:00"},"Q4","2017-12-31","Region 10","Operating Expense","Medical Expense","Expanded Benefits","3.1","Expanded Benefits FFS",{"$f":"'LTC Rev-Exp Region 10'!P$39","v":{"v":0,"d":"$0.00"}},{"$f":"'LTC Rev-Exp Region 10'!Q$39","v":{"v":0,"d":"$0.00"}},{"$f":"'LTC Rev-Exp Region 10'!R$39","v":{"v":0,"d":"$0.00"}},{"$f":"'LTC Rev-Exp Region 10'!S$39","v":{"v":0,"d":"$0.00"}},{"v":0,"d":"$0.00"}]
["LTC",null,null,{"$f":"Jurat!I$1","v":0},{"$f":"Jurat!D$33","v":"00:00:00"},"Q4","2017-12-31","Region 10","Operating Expense","Medical Expense","Expanded Benefits","3.2","Expanded Benefits Subcapitation",{"$f":"'LTC Rev-Exp Region 10'!P$40","v":{"v":0,"d":"$0.00"}},{"$f":"'LTC Rev-Exp Region 10'!Q$40","v":{"v":0,"d":"$0.00"}},{"$f":"'LTC Rev-Exp Region 10'!R$40","v":{"v":0,"d":"$0.00"}},{"$f":"'LTC Rev-Exp Region 10'!S$40","v":{"v":0,"d":"$0.00"}},{"v":0,"d":"$0.00"}]
["LTC",null,null,{"$f":"Jurat!I$1","v":0},{"$f":"Jurat!D$33","v":"00:00:00"},"Q4","2017-12-31","Region 10","Operating Expense","Medical Expense","Expanded Benefits","3.3","Ending IBNP for Expanded Benefits",{"$f":"'LTC Rev-Exp Region 10'!P$41","v":{"v":0,"d":"$0.00"}},{"$f":"'LTC Rev-Exp Region 10'!Q$41","v":{"v":0,"d":"$0.00"}},{"$f":"'LTC Rev-Exp Region 10'!R$41","v":{"v":0,"d":"$0.00"}},{"$f":"'LTC Rev-Exp Region 10'!S$41","v":{"v":0,"d":"$0.00"}},{"v":0,"d":"$0.00"}]
["LTC",null,null,{"$f":"Jurat!I$1","v":0},{"$f":"Jurat!D$33","v":"00:00:00"},"Q4","2017-12-31","Region 10","Operating Expense","Medical Expense","Expanded Benefits","3.4","Expanded Benefits Settlements",{"$f":"'LTC Rev-Exp Region 10'!P$42","v":{"v":0,"d":"$0.00"}},{"$f":"'LTC Rev-Exp Region 10'!Q$42","v":{"v":0,"d":"$0.00"}},{"$f":"'LTC Rev-Exp Region 10'!R$42","v":{"v":0,"d":"$0.00"}},{"$f":"'LTC Rev-Exp Region 10'!S$42","v":{"v":0,"d":"$0.00"}},{"v":0,"d":"$0.00"}]
["LTC",null,null,{"$f":"Jurat!I$1","v":0},{"$f":"Jurat!D$33","v":"00:00:00"},"Q4","2017-12-31","Region 10","Operating Expense","Medical Expense","Other Medical","4.5","TPL & Fraud/Abuse Recoveries",{"$f":"'LTC Rev-Exp Region 10'!P$48","v":{"v":0,"d":"$0.00"}},{"$f":"'LTC Rev-Exp Region 10'!Q$48","v":{"v":0,"d":"$0.00"}},{"$f":"'LTC Rev-Exp Region 10'!R$48","v":{"v":0,"d":"$0.00"}},{"$f":"'LTC Rev-Exp Region 10'!S$48","v":{"v":0,"d":"$0.00"}},{"v":0,"d":"$0.00"}]
["LTC",null,null,{"$f":"Jurat!I$1","v":0},{"$f":"Jurat!D$33","v":"00:00:00"},"Q4","2017-12-31","Region 10","Operating Expense","Medical Expense","Other Medical","4.6.1","Premium Deficiency Reserve",{"$f":"'LTC Rev-Exp Region 10'!P$49","v":{"v":0,"d":"$0.00"}},{"$f":"'LTC Rev-Exp Region 10'!Q$49","v":{"v":0,"d":"$0.00"}},{"$f":"'LTC Rev-Exp Region 10'!R$49","v":{"v":0,"d":"$0.00"}},{"$f":"'LTC Rev-Exp Region 10'!S$49","v":{"v":0,"d":"$0.00"}},{"v":0,"d":"$0.00"}]
["LTC",null,null,{"$f":"Jurat!I$1","v":0},{"$f":"Jurat!D$33","v":"00:00:00"},"Q4","2017-12-31","Region 10","Operating Expense","Medical Expense","Other Medical","4.8","Reinsurance Premiums",{"$f":"'LTC Rev-Exp Region 10'!P$51","v":{"v":0,"d":"$0.00"}},{"$f":"'LTC Rev-Exp Region 10'!Q$51","v":{"v":0,"d":"$0.00"}},{"$f":"'LTC Rev-Exp Region 10'!R$51","v":{"v":0,"d":"$0.00"}},{"$f":"'LTC Rev-Exp Region 10'!S$51","v":{"v":0,"d":"$0.00"}},{"v":0,"d":"$0.00"}]
["LTC",null,null,{"$f":"Jurat!I$1","v":0},{"$f":"Jurat!D$33","v":"00:00:00"},"Q4","2017-12-31","Region 10","Operating Expense","Medical Expense","Other Medical","4.9","Reinsurance Recoveries",{"$f":"'LTC Rev-Exp Region 10'!P$52","v":{"v":0,"d":"$0.00"}},{"$f":"'LTC Rev-Exp Region 10'!Q$52","v":{"v":0,"d":"$0.00"}},{"$f":"'LTC Rev-Exp Region 10'!R$52","v":{"v":0,"d":"$0.00"}},{"$f":"'LTC Rev-Exp Region 10'!S$52","v":{"v":0,"d":"$0.00"}},{"v":0,"d":"$0.00"}]
["LTC",null,null,{"$f":"Jurat!I$1","v":0},{"$f":"Jurat!D$33","v":"00:00:00"},"Q4","2017-12-31","Region 10","Operating Expense","Administrative Expense","Administrative","5.1","Salaries & Benefits",{"$f":"'LTC Rev-Exp Region 10'!P$57","v":{"v":0,"d":"$0.00"}},{"$f":"'LTC Rev-Exp Region 10'!Q$57","v":{"v":0,"d":"$0.00"}},{"$f":"'LTC Rev-Exp Region 10'!R$57","v":{"v":0,"d":"$0.00"}},{"$f":"'LTC Rev-Exp Region 10'!S$57","v":{"v":0,"d":"$0.00"}},{"v":0,"d":"$0.00"}]
["LTC",null,null,{"$f":"Jurat!I$1","v":0},{"$f":"Jurat!D$33","v":"00:00:00"},"Q4","2017-12-31","Region 10","Operating Expense","Administrative Expense","Administrative","5.2","Administrative Services",{"$f":"'LTC Rev-Exp Region 10'!P$58","v":{"v":0,"d":"$0.00"}},{"$f":"'LTC Rev-Exp Region 10'!Q$58","v":{"v":0,"d":"$0.00"}},{"$f":"'LTC Rev-Exp Region 10'!R$58","v":{"v":0,"d":"$0.00"}},{"$f":"'LTC Rev-Exp Region 10'!S$58","v":{"v":0,"d":"$0.00"}},{"v":0,"d":"$0.00"}]
["LTC",null,null,{"$f":"Jurat!I$1","v":0},{"$f":"Jurat!D$33","v":"00:00:00"},"Q4","2017-12-31","Region 10","Operating Expense","Administrative Expense","Administrative","5.3","Information Systems",{"$f":"'LTC Rev-Exp Region 10'!P$59","v":{"v":0,"d":"$0.00"}},{"$f":"'LTC Rev-Exp Region 10'!Q$59","v":{"v":0,"d":"$0.00"}},{"$f":"'LTC Rev-Exp Region 10'!R$59","v":{"v":0,"d":"$0.00"}},{"$f":"'LTC Rev-Exp Region 10'!S$59","v":{"v":0,"d":"$0.00"}},{"v":0,"d":"$0.00"}]
["LTC",null,null,{"$f":"Jurat!I$1","v":0},{"$f":"Jurat!D$33","v":"00:00:00"},"Q4","2017-12-31","Region 10","Operating Expense","Administrative Expense","Administrative","5.4","Marketing Expenses",{"$f":"'LTC Rev-Exp Region 10'!P$60","v":{"v":0,"d":"$0.00"}},{"$f":"'LTC Rev-Exp Region 10'!Q$60","v":{"v":0,"d":"$0.00"}},{"$f":"'LTC Rev-Exp Region 10'!R$60","v":{"v":0,"d":"$0.00"}},{"$f":"'LTC Rev-Exp Region 10'!S$60","v":{"v":0,"d":"$0.00"}},{"v":0,"d":"$0.00"}]
["LTC",null,null,{"$f":"Jurat!I$1","v":0},{"$f":"Jurat!D$33","v":"00:00:00"},"Q4","2017-12-31","Region 10","Operating Expense","Administrative Expense","Administrative","5.5","General  Administration",{"$f":"'LTC Rev-Exp Region 10'!P$61","v":{"v":0,"d":"$0.00"}},{"$f":"'LTC Rev-Exp Region 10'!Q$61","v":{"v":0,"d":"$0.00"}},{"$f":"'LTC Rev-Exp Region 10'!R$61","v":{"v":0,"d":"$0.00"}},{"$f":"'LTC Rev-Exp Region 10'!S$61","v":{"v":0,"d":"$0.00"}},{"v":0,"d":"$0.00"}]
["LTC",null,null,{"$f":"Jurat!I$1","v":0},{"$f":"Jurat!D$33","v":"00:00:00"},"Q4","2017-12-31","Region 10","Operating Expense","Administrative Expense","Administrative","5.6","Compliance/Regulatory",{"$f":"'LTC Rev-Exp Region 10'!P$62","v":{"v":0,"d":"$0.00"}},{"$f":"'LTC Rev-Exp Region 10'!Q$62","v":{"v":0,"d":"$0.00"}},{"$f":"'LTC Rev-Exp Region 10'!R$62","v":{"v":0,"d":"$0.00"}},{"$f":"'LTC Rev-Exp Region 10'!S$62","v":{"v":0,"d":"$0.00"}},{"v":0,"d":"$0.00"}]
["LTC",null,null,{"$f":"Jurat!I$1","v":0},{"$f":"Jurat!D$33","v":"00:00:00"},"Q4","2017-12-31","Region 10","Operating Expense","Taxes & Fees","Taxes & Fees","6.1","State Premium Tax",{"$f":"'LTC Rev-Exp Region 10'!P$64","v":{"v":0,"d":"$0.00"}},{"v":0,"d":"$0.00"},{"v":0,"d":"$0.00"},{"v":0,"d":"$0.00"},{"v":0,"d":"$0.00"}]
["LTC",null,null,{"$f":"Jurat!I$1","v":0},{"$f":"Jurat!D$33","v":"00:00:00"},"Q4","2017-12-31","Region 10","Operating Expense","Taxes & Fees","Taxes & Fees","6.2","Department of Insurance Assessments",{"$f":"'LTC Rev-Exp Region 10'!P$65","v":{"v":0,"d":"$0.00"}},{"v":0,"d":"$0.00"},{"v":0,"d":"$0.00"},{"v":0,"d":"$0.00"},{"v":0,"d":"$0.00"}]
["LTC",null,null,{"$f":"Jurat!I$1","v":0},{"$f":"Jurat!D$33","v":"00:00:00"},"Q4","2017-12-31","Region 10","Non-Operating Expense","Income Tax Expense","Income Tax Expense","9.0","Income Tax Expense",{"$f":"'LTC Rev-Exp Region 10'!P$72","v":{"v":0,"d":"$0.00"}},{"v":0,"d":"$0.00"},{"v":0,"d":"$0.00"},{"v":0,"d":"$0.00"},{"v":0,"d":"$0.00"}]
["LTC",null,null,{"$f":"Jurat!I$1","v":0},{"$f":"Jurat!D$33","v":"00:00:00"},"Q1","2017-03-31","Region 11","Member Months","Member Months","Member Months",null,"Member Months",{"$f":"'LTC Rev-Exp Region 11'!D$9","v":{"v":0,"d":"$0.00"}},{"$f":"'LTC Rev-Exp Region 11'!E$9","v":{"v":0,"d":"$0.00"}},{"$f":"'LTC Rev-Exp Region 11'!F$9","v":{"v":0,"d":"$0.00"}},{"$f":"'LTC Rev-Exp Region 11'!G$9","v":{"v":0,"d":"$0.00"}},{"v":0,"d":"$0.00"}]
["LTC",null,null,{"$f":"Jurat!I$1","v":0},{"$f":"Jurat!D$33","v":"00:00:00"},"Q1","2017-03-31","Region 11","Operating Revenue","Capitation","Capitation",1.1,"Capitation",{"$f":"'LTC Rev-Exp Region 11'!D$11","v":{"v":0,"d":"$0.00"}},{"$f":"'LTC Rev-Exp Region 11'!E$11","v":{"v":0,"d":"$0.00"}},{"$f":"'LTC Rev-Exp Region 11'!F$11","v":{"v":0,"d":"$0.00"}},{"$f":"'LTC Rev-Exp Region 11'!G$11","v":{"v":0,"d":"$0.00"}},{"v":0,"d":"$0.00"}]
["LTC",null,null,{"$f":"Jurat!I$1","v":0},{"$f":"Jurat!D$33","v":"00:00:00"},"Q1","2017-03-31","Region 11","Operating Revenue","Capitation","NH Rate Reconciliation",1.2,"NH Rate Reconciliation",{"$f":"'LTC Rev-Exp Region 11'!D$12","v":{"v":0,"d":"$0.00"}},{"$f":"'LTC Rev-Exp Region 11'!E$12","v":{"v":0,"d":"$0.00"}},{"$f":"'LTC Rev-Exp Region 11'!F$12","v":{"v":0,"d":"$0.00"}},{"$f":"'LTC Rev-Exp Region 11'!G$12","v":{"v":0,"d":"$0.00"}},{"v":0,"d":"$0.00"}]
["LTC",null,null,{"$f":"Jurat!I$1","v":0},{"$f":"Jurat!D$33","v":"00:00:00"},"Q1","2017-03-31","Region 11","Operating Revenue","Other Revenue","Other Revenue",1.3,"Other Revenue",{"$f":"'LTC Rev-Exp Region 11'!D$13","v":{"v":0,"d":"$0.00"}},{"$f":"'LTC Rev-Exp Region 11'!E$13","v":{"v":0,"d":"$0.00"}},{"$f":"'LTC Rev-Exp Region 11'!F$13","v":{"v":0,"d":"$0.00"}},{"$f":"'LTC Rev-Exp Region 11'!G$13","v":{"v":0,"d":"$0.00"}},{"v":0,"d":"$0.00"}]
["LTC",null,null,{"$f":"Jurat!I$1","v":0},{"$f":"Jurat!D$33","v":"00:00:00"},"Q1","2017-03-31","Region 11","Operating Expense","Medical Expense","NF & Hospice","2.1","Nursing Facility Days (Medicaid)",{"$f":"'LTC Rev-Exp Region 11'!D$17","v":{"v":0,"d":"$0.00"}},{"$f":"'LTC Rev-Exp Region 11'!E$17","v":{"v":0,"d":"$0.00"}},{"$f":"'LTC Rev-Exp Region 11'!F$17","v":{"v":0,"d":"$0.00"}},{"$f":"'LTC Rev-Exp Region 11'!G$17","v":{"v":0,"d":"$0.00"}},{"v":0,"d":"$0.00"}]
["LTC",null,null,{"$f":"Jurat!I$1","v":0},{"$f":"Jurat!D$33","v":"00:00:00"},"Q1","2017-03-31","Region 11","Operating Expense","Medical Expense","NF & Hospice","2.2","Nursing Facility Days (Crossover)",{"$f":"'LTC Rev-Exp Region 11'!D$18","v":{"v":0,"d":"$0.00"}},{"$f":"'LTC Rev-Exp Region 11'!E$18","v":{"v":0,"d":"$0.00"}},{"$f":"'LTC Rev-Exp Region 11'!F$18","v":{"v":0,"d":"$0.00"}},{"$f":"'LTC Rev-Exp Region 11'!G$18","v":{"v":0,"d":"$0.00"}},{"v":0,"d":"$0.00"}]
["LTC",null,null,{"$f":"Jurat!I$1","v":0},{"$f":"Jurat!D$33","v":"00:00:00"},"Q1","2017-03-31","Region 11","Operating Expense","Medical Expense","NF & Hospice","2.3","Nursing Facility FFS (Medicaid)",{"$f":"'LTC Rev-Exp Region 11'!D$19","v":{"v":0,"d":"$0.00"}},{"$f":"'LTC Rev-Exp Region 11'!E$19","v":{"v":0,"d":"$0.00"}},{"$f":"'LTC Rev-Exp Region 11'!F$19","v":{"v":0,"d":"$0.00"}},{"$f":"'LTC Rev-Exp Region 11'!G$19","v":{"v":0,"d":"$0.00"}},{"v":0,"d":"$0.00"}]
["LTC",null,null,{"$f":"Jurat!I$1","v":0},{"$f":"Jurat!D$33","v":"00:00:00"},"Q1","2017-03-31","Region 11","Operating Expense","Medical Expense","NF & Hospice","2.4","Nursing Facility FFS (Crossover)",{"$f":"'LTC Rev-Exp Region 11'!D$20","v":{"v":0,"d":"$0.00"}},{"$f":"'LTC Rev-Exp Region 11'!E$20","v":{"v":0,"d":"$0.00"}},{"$f":"'LTC Rev-Exp Region 11'!F$20","v":{"v":0,"d":"$0.00"}},{"$f":"'LTC Rev-Exp Region 11'!G$20","v":{"v":0,"d":"$0.00"}},{"v":0,"d":"$0.00"}]
["LTC",null,null,{"$f":"Jurat!I$1","v":0},{"$f":"Jurat!D$33","v":"00:00:00"},"Q1","2017-03-31","Region 11","Operating Expense","Medical Expense","NF & Hospice","2.5","Hospice Days",{"$f":"'LTC Rev-Exp Region 11'!D$21","v":{"v":0,"d":"$0.00"}},{"$f":"'LTC Rev-Exp Region 11'!E$21","v":{"v":0,"d":"$0.00"}},{"$f":"'LTC Rev-Exp Region 11'!F$21","v":{"v":0,"d":"$0.00"}},{"$f":"'LTC Rev-Exp Region 11'!G$21","v":{"v":0,"d":"$0.00"}},{"v":0,"d":"$0.00"}]
["LTC",null,null,{"$f":"Jurat!I$1","v":0},{"$f":"Jurat!D$33","v":"00:00:00"},"Q1","2017-03-31","Region 11","Operating Expense","Medical Expense","NF & Hospice","2.6","Hospice FFS",{"$f":"'LTC Rev-Exp Region 11'!D$22","v":{"v":0,"d":"$0.00"}},{"$f":"'LTC Rev-Exp Region 11'!E$22","v":{"v":0,"d":"$0.00"}},{"$f":"'LTC Rev-Exp Region 11'!F$22","v":{"v":0,"d":"$0.00"}},{"$f":"'LTC Rev-Exp Region 11'!G$22","v":{"v":0,"d":"$0.00"}},{"v":0,"d":"$0.00"}]
["LTC",null,null,{"$f":"Jurat!I$1","v":0},{"$f":"Jurat!D$33","v":"00:00:00"},"Q1","2017-03-31","Region 11","Operating Expense","Medical Expense","NF & Hospice","2.7","Ending IBNP for NF & Hospice",{"$f":"'LTC Rev-Exp Region 11'!D$23","v":{"v":0,"d":"$0.00"}},{"$f":"'LTC Rev-Exp Region 11'!E$23","v":{"v":0,"d":"$0.00"}},{"$f":"'LTC Rev-Exp Region 11'!F$23","v":{"v":0,"d":"$0.00"}},{"$f":"'LTC Rev-Exp Region 11'!G$23","v":{"v":0,"d":"$0.00"}},{"v":0,"d":"$0.00"}]
["LTC",null,null,{"$f":"Jurat!I$1","v":0},{"$f":"Jurat!D$33","v":"00:00:00"},"Q1","2017-03-31","Region 11","Operating Expense","Medical Expense","NF & Hospice","2.8","NF & Hospice Subcapitated",{"$f":"'LTC Rev-Exp Region 11'!D$24","v":{"v":0,"d":"$0.00"}},{"$f":"'LTC Rev-Exp Region 11'!E$24","v":{"v":0,"d":"$0.00"}},{"$f":"'LTC Rev-Exp Region 11'!F$24","v":{"v":0,"d":"$0.00"}},{"$f":"'LTC Rev-Exp Region 11'!G$24","v":{"v":0,"d":"$0.00"}},{"v":0,"d":"$0.00"}]
["LTC",null,null,{"$f":"Jurat!I$1","v":0},{"$f":"Jurat!D$33","v":"00:00:00"},"Q1","2017-03-31","Region 11","Operating Expense","Medical Expense","NF & Hospice","2.9","NF & Hospice Settlements",{"$f":"'LTC Rev-Exp Region 11'!D$25","v":{"v":0,"d":"$0.00"}},{"$f":"'LTC Rev-Exp Region 11'!E$25","v":{"v":0,"d":"$0.00"}},{"$f":"'LTC Rev-Exp Region 11'!F$25","v":{"v":0,"d":"$0.00"}},{"$f":"'LTC Rev-Exp Region 11'!G$25","v":{"v":0,"d":"$0.00"}},{"v":0,"d":"$0.00"}]
["LTC",null,null,{"$f":"Jurat!I$1","v":0},{"$f":"Jurat!D$33","v":"00:00:00"},"Q1","2017-03-31","Region 11","Operating Expense","Medical Expense","LTC Services","2.11","Assisted Living FFS",{"$f":"'LTC Rev-Exp Region 11'!D$27","v":{"v":0,"d":"$0.00"}},{"$f":"'LTC Rev-Exp Region 11'!E$27","v":{"v":0,"d":"$0.00"}},{"$f":"'LTC Rev-Exp Region 11'!F$27","v":{"v":0,"d":"$0.00"}},{"$f":"'LTC Rev-Exp Region 11'!G$27","v":{"v":0,"d":"$0.00"}},{"v":0,"d":"$0.00"}]
["LTC",null,null,{"$f":"Jurat!I$1","v":0},{"$f":"Jurat!D$33","v":"00:00:00"},"Q1","2017-03-31","Region 11","Operating Expense","Medical Expense","LTC Services","2.12","Home Health FFS",{"$f":"'LTC Rev-Exp Region 11'!D$28","v":{"v":0,"d":"$0.00"}},{"$f":"'LTC Rev-Exp Region 11'!E$28","v":{"v":0,"d":"$0.00"}},{"$f":"'LTC Rev-Exp Region 11'!F$28","v":{"v":0,"d":"$0.00"}},{"$f":"'LTC Rev-Exp Region 11'!G$28","v":{"v":0,"d":"$0.00"}},{"v":0,"d":"$0.00"}]
["LTC",null,null,{"$f":"Jurat!I$1","v":0},{"$f":"Jurat!D$33","v":"00:00:00"},"Q1","2017-03-31","Region 11","Operating Expense","Medical Expense","LTC Services","2.13","Medical Equipment/Supplies FFS",{"$f":"'LTC Rev-Exp Region 11'!D$29","v":{"v":0,"d":"$0.00"}},{"$f":"'LTC Rev-Exp Region 11'!E$29","v":{"v":0,"d":"$0.00"}},{"$f":"'LTC Rev-Exp Region 11'!F$29","v":{"v":0,"d":"$0.00"}},{"$f":"'LTC Rev-Exp Region 11'!G$29","v":{"v":0,"d":"$0.00"}},{"v":0,"d":"$0.00"}]
["LTC",null,null,{"$f":"Jurat!I$1","v":0},{"$f":"Jurat!D$33","v":"00:00:00"},"Q1","2017-03-31","Region 11","Operating Expense","Medical Expense","LTC Services","2.14","Therapy FFS",{"$f":"'LTC Rev-Exp Region 11'!D$30","v":{"v":0,"d":"$0.00"}},{"$f":"'LTC Rev-Exp Region 11'!E$30","v":{"v":0,"d":"$0.00"}},{"$f":"'LTC Rev-Exp Region 11'!F$30","v":{"v":0,"d":"$0.00"}},{"$f":"'LTC Rev-Exp Region 11'!G$30","v":{"v":0,"d":"$0.00"}},{"v":0,"d":"$0.00"}]
["LTC",null,null,{"$f":"Jurat!I$1","v":0},{"$f":"Jurat!D$33","v":"00:00:00"},"Q1","2017-03-31","Region 11","Operating Expense","Medical Expense","LTC Services","2.15","Transportation FFS",{"$f":"'LTC Rev-Exp Region 11'!D$31","v":{"v":0,"d":"$0.00"}},{"$f":"'LTC Rev-Exp Region 11'!E$31","v":{"v":0,"d":"$0.00"}},{"$f":"'LTC Rev-Exp Region 11'!F$31","v":{"v":0,"d":"$0.00"}},{"$f":"'LTC Rev-Exp Region 11'!G$31","v":{"v":0,"d":"$0.00"}},{"v":0,"d":"$0.00"}]
["LTC",null,null,{"$f":"Jurat!I$1","v":0},{"$f":"Jurat!D$33","v":"00:00:00"},"Q1","2017-03-31","Region 11","Operating Expense","Medical Expense","LTC Services","2.16","Case Management FFS (Plan Provided)",{"$f":"'LTC Rev-Exp Region 11'!D$32","v":{"v":0,"d":"$0.00"}},{"$f":"'LTC Rev-Exp Region 11'!E$32","v":{"v":0,"d":"$0.00"}},{"$f":"'LTC Rev-Exp Region 11'!F$32","v":{"v":0,"d":"$0.00"}},{"$f":"'LTC Rev-Exp Region 11'!G$32","v":{"v":0,"d":"$0.00"}},{"v":0,"d":"$0.00"}]
["LTC",null,null,{"$f":"Jurat!I$1","v":0},{"$f":"Jurat!D$33","v":"00:00:00"},"Q1","2017-03-31","Region 11","Operating Expense","Medical Expense","LTC Services","2.17","Case Management FF (Non-Plan Provided)",{"$f":"'LTC Rev-Exp Region 11'!D$33","v":{"v":0,"d":"$0.00"}},{"$f":"'LTC Rev-Exp Region 11'!E$33","v":{"v":0,"d":"$0.00"}},{"$f":"'LTC Rev-Exp Region 11'!F$33","v":{"v":0,"d":"$0.00"}},{"$f":"'LTC Rev-Exp Region 11'!G$33","v":{"v":0,"d":"$0.00"}},{"v":0,"d":"$0.00"}]
["LTC",null,null,{"$f":"Jurat!I$1","v":0},{"$f":"Jurat!D$33","v":"00:00:00"},"Q1","2017-03-31","Region 11","Operating Expense","Medical Expense","LTC Services","2.18","HCBS FFS",{"$f":"'LTC Rev-Exp Region 11'!D$34","v":{"v":0,"d":"$0.00"}},{"$f":"'LTC Rev-Exp Region 11'!E$34","v":{"v":0,"d":"$0.00"}},{"$f":"'LTC Rev-Exp Region 11'!F$34","v":{"v":0,"d":"$0.00"}},{"$f":"'LTC Rev-Exp Region 11'!G$34","v":{"v":0,"d":"$0.00"}},{"v":0,"d":"$0.00"}]
["LTC",null,null,{"$f":"Jurat!I$1","v":0},{"$f":"Jurat!D$33","v":"00:00:00"},"Q1","2017-03-31","Region 11","Operating Expense","Medical Expense","LTC Services","2.19","Subcapitated LTC Services",{"$f":"'LTC Rev-Exp Region 11'!D$35","v":{"v":0,"d":"$0.00"}},{"$f":"'LTC Rev-Exp Region 11'!E$35","v":{"v":0,"d":"$0.00"}},{"$f":"'LTC Rev-Exp Region 11'!F$35","v":{"v":0,"d":"$0.00"}},{"$f":"'LTC Rev-Exp Region 11'!G$35","v":{"v":0,"d":"$0.00"}},{"v":0,"d":"$0.00"}]
["LTC",null,null,{"$f":"Jurat!I$1","v":0},{"$f":"Jurat!D$33","v":"00:00:00"},"Q1","2017-03-31","Region 11","Operating Expense","Medical Expense","LTC Services","2.20","Ending IBNP for Long Term Care Services",{"$f":"'LTC Rev-Exp Region 11'!D$36","v":{"v":0,"d":"$0.00"}},{"$f":"'LTC Rev-Exp Region 11'!E$36","v":{"v":0,"d":"$0.00"}},{"$f":"'LTC Rev-Exp Region 11'!F$36","v":{"v":0,"d":"$0.00"}},{"$f":"'LTC Rev-Exp Region 11'!G$36","v":{"v":0,"d":"$0.00"}},{"v":0,"d":"$0.00"}]
["LTC",null,null,{"$f":"Jurat!I$1","v":0},{"$f":"Jurat!D$33","v":"00:00:00"},"Q1","2017-03-31","Region 11","Operating Expense","Medical Expense","LTC Services","2.21","LTC Services Settlements",{"$f":"'LTC Rev-Exp Region 11'!D$37","v":{"v":0,"d":"$0.00"}},{"$f":"'LTC Rev-Exp Region 11'!E$37","v":{"v":0,"d":"$0.00"}},{"$f":"'LTC Rev-Exp Region 11'!F$37","v":{"v":0,"d":"$0.00"}},{"$f":"'LTC Rev-Exp Region 11'!G$37","v":{"v":0,"d":"$0.00"}},{"v":0,"d":"$0.00"}]
["LTC",null,null,{"$f":"Jurat!I$1","v":0},{"$f":"Jurat!D$33","v":"00:00:00"},"Q1","2017-03-31","Region 11","Operating Expense","Medical Expense","Expanded Benefits","3.1","Expanded Benefits FFS",{"$f":"'LTC Rev-Exp Region 11'!D$39","v":{"v":0,"d":"$0.00"}},{"$f":"'LTC Rev-Exp Region 11'!E$39","v":{"v":0,"d":"$0.00"}},{"$f":"'LTC Rev-Exp Region 11'!F$39","v":{"v":0,"d":"$0.00"}},{"$f":"'LTC Rev-Exp Region 11'!G$39","v":{"v":0,"d":"$0.00"}},{"v":0,"d":"$0.00"}]
["LTC",null,null,{"$f":"Jurat!I$1","v":0},{"$f":"Jurat!D$33","v":"00:00:00"},"Q1","2017-03-31","Region 11","Operating Expense","Medical Expense","Expanded Benefits","3.2","Expanded Benefits Subcapitation",{"$f":"'LTC Rev-Exp Region 11'!D$40","v":{"v":0,"d":"$0.00"}},{"$f":"'LTC Rev-Exp Region 11'!E$40","v":{"v":0,"d":"$0.00"}},{"$f":"'LTC Rev-Exp Region 11'!F$40","v":{"v":0,"d":"$0.00"}},{"$f":"'LTC Rev-Exp Region 11'!G$40","v":{"v":0,"d":"$0.00"}},{"v":0,"d":"$0.00"}]
["LTC",null,null,{"$f":"Jurat!I$1","v":0},{"$f":"Jurat!D$33","v":"00:00:00"},"Q1","2017-03-31","Region 11","Operating Expense","Medical Expense","Expanded Benefits","3.3","Ending IBNP for Expanded Benefits",{"$f":"'LTC Rev-Exp Region 11'!D$41","v":{"v":0,"d":"$0.00"}},{"$f":"'LTC Rev-Exp Region 11'!E$41","v":{"v":0,"d":"$0.00"}},{"$f":"'LTC Rev-Exp Region 11'!F$41","v":{"v":0,"d":"$0.00"}},{"$f":"'LTC Rev-Exp Region 11'!G$41","v":{"v":0,"d":"$0.00"}},{"v":0,"d":"$0.00"}]
["LTC",null,null,{"$f":"Jurat!I$1","v":0},{"$f":"Jurat!D$33","v":"00:00:00"},"Q1","2017-03-31","Region 11","Operating Expense","Medical Expense","Expanded Benefits","3.4","Expanded Benefits Settlements",{"$f":"'LTC Rev-Exp Region 11'!D$42","v":{"v":0,"d":"$0.00"}},{"$f":"'LTC Rev-Exp Region 11'!E$42","v":{"v":0,"d":"$0.00"}},{"$f":"'LTC Rev-Exp Region 11'!F$42","v":{"v":0,"d":"$0.00"}},{"$f":"'LTC Rev-Exp Region 11'!G$42","v":{"v":0,"d":"$0.00"}},{"v":0,"d":"$0.00"}]
["LTC",null,null,{"$f":"Jurat!I$1","v":0},{"$f":"Jurat!D$33","v":"00:00:00"},"Q1","2017-03-31","Region 11","Operating Expense","Medical Expense","Other Medical","4.5","TPL & Fraud/Abuse Recoveries",{"$f":"'LTC Rev-Exp Region 11'!D$48","v":{"v":0,"d":"$0.00"}},{"$f":"'LTC Rev-Exp Region 11'!E$48","v":{"v":0,"d":"$0.00"}},{"$f":"'LTC Rev-Exp Region 11'!F$48","v":{"v":0,"d":"$0.00"}},{"$f":"'LTC Rev-Exp Region 11'!G$48","v":{"v":0,"d":"$0.00"}},{"v":0,"d":"$0.00"}]
["LTC",null,null,{"$f":"Jurat!I$1","v":0},{"$f":"Jurat!D$33","v":"00:00:00"},"Q1","2017-03-31","Region 11","Operating Expense","Medical Expense","Other Medical","4.6.1","Premium Deficiency Reserve",{"$f":"'LTC Rev-Exp Region 11'!D$49","v":{"v":0,"d":"$0.00"}},{"$f":"'LTC Rev-Exp Region 11'!E$49","v":{"v":0,"d":"$0.00"}},{"$f":"'LTC Rev-Exp Region 11'!F$49","v":{"v":0,"d":"$0.00"}},{"$f":"'LTC Rev-Exp Region 11'!G$49","v":{"v":0,"d":"$0.00"}},{"v":0,"d":"$0.00"}]
["LTC",null,null,{"$f":"Jurat!I$1","v":0},{"$f":"Jurat!D$33","v":"00:00:00"},"Q1","2017-03-31","Region 11","Operating Expense","Medical Expense","Other Medical","4.8","Reinsurance Premiums",{"$f":"'LTC Rev-Exp Region 11'!D$51","v":{"v":0,"d":"$0.00"}},{"$f":"'LTC Rev-Exp Region 11'!E$51","v":{"v":0,"d":"$0.00"}},{"$f":"'LTC Rev-Exp Region 11'!F$51","v":{"v":0,"d":"$0.00"}},{"$f":"'LTC Rev-Exp Region 11'!G$51","v":{"v":0,"d":"$0.00"}},{"v":0,"d":"$0.00"}]
["LTC",null,null,{"$f":"Jurat!I$1","v":0},{"$f":"Jurat!D$33","v":"00:00:00"},"Q1","2017-03-31","Region 11","Operating Expense","Medical Expense","Other Medical","4.9","Reinsurance Recoveries",{"$f":"'LTC Rev-Exp Region 11'!D$52","v":{"v":0,"d":"$0.00"}},{"$f":"'LTC Rev-Exp Region 11'!E$52","v":{"v":0,"d":"$0.00"}},{"$f":"'LTC Rev-Exp Region 11'!F$52","v":{"v":0,"d":"$0.00"}},{"$f":"'LTC Rev-Exp Region 11'!G$52","v":{"v":0,"d":"$0.00"}},{"v":0,"d":"$0.00"}]
["LTC",null,null,{"$f":"Jurat!I$1","v":0},{"$f":"Jurat!D$33","v":"00:00:00"},"Q1","2017-03-31","Region 11","Operating Expense","Administrative Expense","Administrative","5.1","Salaries & Benefits",{"$f":"'LTC Rev-Exp Region 11'!D$57","v":{"v":0,"d":"$0.00"}},{"$f":"'LTC Rev-Exp Region 11'!E$57","v":{"v":0,"d":"$0.00"}},{"$f":"'LTC Rev-Exp Region 11'!F$57","v":{"v":0,"d":"$0.00"}},{"$f":"'LTC Rev-Exp Region 11'!G$57","v":{"v":0,"d":"$0.00"}},{"v":0,"d":"$0.00"}]
["LTC",null,null,{"$f":"Jurat!I$1","v":0},{"$f":"Jurat!D$33","v":"00:00:00"},"Q1","2017-03-31","Region 11","Operating Expense","Administrative Expense","Administrative","5.2","Administrative Services",{"$f":"'LTC Rev-Exp Region 11'!D$58","v":{"v":0,"d":"$0.00"}},{"$f":"'LTC Rev-Exp Region 11'!E$58","v":{"v":0,"d":"$0.00"}},{"$f":"'LTC Rev-Exp Region 11'!F$58","v":{"v":0,"d":"$0.00"}},{"$f":"'LTC Rev-Exp Region 11'!G$58","v":{"v":0,"d":"$0.00"}},{"v":0,"d":"$0.00"}]
["LTC",null,null,{"$f":"Jurat!I$1","v":0},{"$f":"Jurat!D$33","v":"00:00:00"},"Q1","2017-03-31","Region 11","Operating Expense","Administrative Expense","Administrative","5.3","Information Systems",{"$f":"'LTC Rev-Exp Region 11'!D$59","v":{"v":0,"d":"$0.00"}},{"$f":"'LTC Rev-Exp Region 11'!E$59","v":{"v":0,"d":"$0.00"}},{"$f":"'LTC Rev-Exp Region 11'!F$59","v":{"v":0,"d":"$0.00"}},{"$f":"'LTC Rev-Exp Region 11'!G$59","v":{"v":0,"d":"$0.00"}},{"v":0,"d":"$0.00"}]
["LTC",null,null,{"$f":"Jurat!I$1","v":0},{"$f":"Jurat!D$33","v":"00:00:00"},"Q1","2017-03-31","Region 11","Operating Expense","Administrative Expense","Administrative","5.4","Marketing Expenses",{"$f":"'LTC Rev-Exp Region 11'!D$60","v":{"v":0,"d":"$0.00"}},{"$f":"'LTC Rev-Exp Region 11'!E$60","v":{"v":0,"d":"$0.00"}},{"$f":"'LTC Rev-Exp Region 11'!F$60","v":{"v":0,"d":"$0.00"}},{"$f":"'LTC Rev-Exp Region 11'!G$60","v":{"v":0,"d":"$0.00"}},{"v":0,"d":"$0.00"}]
["LTC",null,null,{"$f":"Jurat!I$1","v":0},{"$f":"Jurat!D$33","v":"00:00:00"},"Q1","2017-03-31","Region 11","Operating Expense","Administrative Expense","Administrative","5.5","General  Administration",{"$f":"'LTC Rev-Exp Region 11'!D$61","v":{"v":0,"d":"$0.00"}},{"$f":"'LTC Rev-Exp Region 11'!E$61","v":{"v":0,"d":"$0.00"}},{"$f":"'LTC Rev-Exp Region 11'!F$61","v":{"v":0,"d":"$0.00"}},{"$f":"'LTC Rev-Exp Region 11'!G$61","v":{"v":0,"d":"$0.00"}},{"v":0,"d":"$0.00"}]
["LTC",null,null,{"$f":"Jurat!I$1","v":0},{"$f":"Jurat!D$33","v":"00:00:00"},"Q1","2017-03-31","Region 11","Operating Expense","Administrative Expense","Administrative","5.6","Compliance/Regulatory",{"$f":"'LTC Rev-Exp Region 11'!D$62","v":{"v":0,"d":"$0.00"}},{"$f":"'LTC Rev-Exp Region 11'!E$62","v":{"v":0,"d":"$0.00"}},{"$f":"'LTC Rev-Exp Region 11'!F$62","v":{"v":0,"d":"$0.00"}},{"$f":"'LTC Rev-Exp Region 11'!G$62","v":{"v":0,"d":"$0.00"}},{"v":0,"d":"$0.00"}]
["LTC",null,null,{"$f":"Jurat!I$1","v":0},{"$f":"Jurat!D$33","v":"00:00:00"},"Q1","2017-03-31","Region 11","Operating Expense","Taxes & Fees","Taxes & Fees","6.1","State Premium Tax",{"$f":"'LTC Rev-Exp Region 11'!D$64","v":{"v":0,"d":"$0.00"}},{"v":0,"d":"$0.00"},{"v":0,"d":"$0.00"},{"v":0,"d":"$0.00"},{"v":0,"d":"$0.00"}]
["LTC",null,null,{"$f":"Jurat!I$1","v":0},{"$f":"Jurat!D$33","v":"00:00:00"},"Q1","2017-03-31","Region 11","Operating Expense","Taxes & Fees","Taxes & Fees","6.2","Department of Insurance Assessments",{"$f":"'LTC Rev-Exp Region 11'!D$65","v":{"v":0,"d":"$0.00"}},{"v":0,"d":"$0.00"},{"v":0,"d":"$0.00"},{"v":0,"d":"$0.00"},{"v":0,"d":"$0.00"}]
["LTC",null,null,{"$f":"Jurat!I$1","v":0},{"$f":"Jurat!D$33","v":"00:00:00"},"Q1","2017-03-31","Region 11","Non-Operating Expense","Income Tax Expense","Income Tax Expense","9.0","Income Tax Expense",{"$f":"'LTC Rev-Exp Region 11'!D$72","v":{"v":0,"d":"$0.00"}},{"v":0,"d":"$0.00"},{"v":0,"d":"$0.00"},{"v":0,"d":"$0.00"},{"v":0,"d":"$0.00"}]
["LTC",null,null,{"$f":"Jurat!I$1","v":0},{"$f":"Jurat!D$33","v":"00:00:00"},"Q2","2017-06-30","Region 11","Member Months","Member Months","Member Months",null,"Member Months",{"$f":"'LTC Rev-Exp Region 11'!H$9","v":{"v":0,"d":"$0.00"}},{"$f":"'LTC Rev-Exp Region 11'!I$9","v":{"v":0,"d":"$0.00"}},{"$f":"'LTC Rev-Exp Region 11'!J$9","v":{"v":0,"d":"$0.00"}},{"$f":"'LTC Rev-Exp Region 11'!K$9","v":{"v":0,"d":"$0.00"}},{"v":0,"d":"$0.00"}]
["LTC",null,null,{"$f":"Jurat!I$1","v":0},{"$f":"Jurat!D$33","v":"00:00:00"},"Q2","2017-06-30","Region 11","Operating Revenue","Capitation","Capitation",1.1,"Capitation",{"$f":"'LTC Rev-Exp Region 11'!H$11","v":{"v":0,"d":"$0.00"}},{"$f":"'LTC Rev-Exp Region 11'!I$11","v":{"v":0,"d":"$0.00"}},{"$f":"'LTC Rev-Exp Region 11'!J$11","v":{"v":0,"d":"$0.00"}},{"$f":"'LTC Rev-Exp Region 11'!K$11","v":{"v":0,"d":"$0.00"}},{"v":0,"d":"$0.00"}]
["LTC",null,null,{"$f":"Jurat!I$1","v":0},{"$f":"Jurat!D$33","v":"00:00:00"},"Q2","2017-06-30","Region 11","Operating Revenue","Capitation","NH Rate Reconciliation",1.2,"NH Rate Reconciliation",{"$f":"'LTC Rev-Exp Region 11'!H$12","v":{"v":0,"d":"$0.00"}},{"$f":"'LTC Rev-Exp Region 11'!I$12","v":{"v":0,"d":"$0.00"}},{"$f":"'LTC Rev-Exp Region 11'!J$12","v":{"v":0,"d":"$0.00"}},{"$f":"'LTC Rev-Exp Region 11'!K$12","v":{"v":0,"d":"$0.00"}},{"v":0,"d":"$0.00"}]
["LTC",null,null,{"$f":"Jurat!I$1","v":0},{"$f":"Jurat!D$33","v":"00:00:00"},"Q2","2017-06-30","Region 11","Operating Revenue","Other Revenue","Other Revenue",1.3,"Other Revenue",{"$f":"'LTC Rev-Exp Region 11'!H$13","v":{"v":0,"d":"$0.00"}},{"$f":"'LTC Rev-Exp Region 11'!I$13","v":{"v":0,"d":"$0.00"}},{"$f":"'LTC Rev-Exp Region 11'!J$13","v":{"v":0,"d":"$0.00"}},{"$f":"'LTC Rev-Exp Region 11'!K$13","v":{"v":0,"d":"$0.00"}},{"v":0,"d":"$0.00"}]
["LTC",null,null,{"$f":"Jurat!I$1","v":0},{"$f":"Jurat!D$33","v":"00:00:00"},"Q2","2017-06-30","Region 11","Operating Expense","Medical Expense","NF & Hospice","2.1","Nursing Facility Days (Medicaid)",{"$f":"'LTC Rev-Exp Region 11'!H$17","v":{"v":0,"d":"$0.00"}},{"$f":"'LTC Rev-Exp Region 11'!I$17","v":{"v":0,"d":"$0.00"}},{"$f":"'LTC Rev-Exp Region 11'!J$17","v":{"v":0,"d":"$0.00"}},{"$f":"'LTC Rev-Exp Region 11'!K$17","v":{"v":0,"d":"$0.00"}},{"v":0,"d":"$0.00"}]
["LTC",null,null,{"$f":"Jurat!I$1","v":0},{"$f":"Jurat!D$33","v":"00:00:00"},"Q2","2017-06-30","Region 11","Operating Expense","Medical Expense","NF & Hospice","2.2","Nursing Facility Days (Crossover)",{"$f":"'LTC Rev-Exp Region 11'!H$18","v":{"v":0,"d":"$0.00"}},{"$f":"'LTC Rev-Exp Region 11'!I$18","v":{"v":0,"d":"$0.00"}},{"$f":"'LTC Rev-Exp Region 11'!J$18","v":{"v":0,"d":"$0.00"}},{"$f":"'LTC Rev-Exp Region 11'!K$18","v":{"v":0,"d":"$0.00"}},{"v":0,"d":"$0.00"}]
["LTC",null,null,{"$f":"Jurat!I$1","v":0},{"$f":"Jurat!D$33","v":"00:00:00"},"Q2","2017-06-30","Region 11","Operating Expense","Medical Expense","NF & Hospice","2.3","Nursing Facility FFS (Medicaid)",{"$f":"'LTC Rev-Exp Region 11'!H$19","v":{"v":0,"d":"$0.00"}},{"$f":"'LTC Rev-Exp Region 11'!I$19","v":{"v":0,"d":"$0.00"}},{"$f":"'LTC Rev-Exp Region 11'!J$19","v":{"v":0,"d":"$0.00"}},{"$f":"'LTC Rev-Exp Region 11'!K$19","v":{"v":0,"d":"$0.00"}},{"v":0,"d":"$0.00"}]
["LTC",null,null,{"$f":"Jurat!I$1","v":0},{"$f":"Jurat!D$33","v":"00:00:00"},"Q2","2017-06-30","Region 11","Operating Expense","Medical Expense","NF & Hospice","2.4","Nursing Facility FFS (Crossover)",{"$f":"'LTC Rev-Exp Region 11'!H$20","v":{"v":0,"d":"$0.00"}},{"$f":"'LTC Rev-Exp Region 11'!I$20","v":{"v":0,"d":"$0.00"}},{"$f":"'LTC Rev-Exp Region 11'!J$20","v":{"v":0,"d":"$0.00"}},{"$f":"'LTC Rev-Exp Region 11'!K$20","v":{"v":0,"d":"$0.00"}},{"v":0,"d":"$0.00"}]
["LTC",null,null,{"$f":"Jurat!I$1","v":0},{"$f":"Jurat!D$33","v":"00:00:00"},"Q2","2017-06-30","Region 11","Operating Expense","Medical Expense","NF & Hospice","2.5","Hospice Days",{"$f":"'LTC Rev-Exp Region 11'!H$21","v":{"v":0,"d":"$0.00"}},{"$f":"'LTC Rev-Exp Region 11'!I$21","v":{"v":0,"d":"$0.00"}},{"$f":"'LTC Rev-Exp Region 11'!J$21","v":{"v":0,"d":"$0.00"}},{"$f":"'LTC Rev-Exp Region 11'!K$21","v":{"v":0,"d":"$0.00"}},{"v":0,"d":"$0.00"}]
["LTC",null,null,{"$f":"Jurat!I$1","v":0},{"$f":"Jurat!D$33","v":"00:00:00"},"Q2","2017-06-30","Region 11","Operating Expense","Medical Expense","NF & Hospice","2.6","Hospice FFS",{"$f":"'LTC Rev-Exp Region 11'!H$22","v":{"v":0,"d":"$0.00"}},{"$f":"'LTC Rev-Exp Region 11'!I$22","v":{"v":0,"d":"$0.00"}},{"$f":"'LTC Rev-Exp Region 11'!J$22","v":{"v":0,"d":"$0.00"}},{"$f":"'LTC Rev-Exp Region 11'!K$22","v":{"v":0,"d":"$0.00"}},{"v":0,"d":"$0.00"}]
["LTC",null,null,{"$f":"Jurat!I$1","v":0},{"$f":"Jurat!D$33","v":"00:00:00"},"Q2","2017-06-30","Region 11","Operating Expense","Medical Expense","NF & Hospice","2.7","Ending IBNP for NF & Hospice",{"$f":"'LTC Rev-Exp Region 11'!H$23","v":{"v":0,"d":"$0.00"}},{"$f":"'LTC Rev-Exp Region 11'!I$23","v":{"v":0,"d":"$0.00"}},{"$f":"'LTC Rev-Exp Region 11'!J$23","v":{"v":0,"d":"$0.00"}},{"$f":"'LTC Rev-Exp Region 11'!K$23","v":{"v":0,"d":"$0.00"}},{"v":0,"d":"$0.00"}]
["LTC",null,null,{"$f":"Jurat!I$1","v":0},{"$f":"Jurat!D$33","v":"00:00:00"},"Q2","2017-06-30","Region 11","Operating Expense","Medical Expense","NF & Hospice","2.8","NF & Hospice Subcapitated",{"$f":"'LTC Rev-Exp Region 11'!H$24","v":{"v":0,"d":"$0.00"}},{"$f":"'LTC Rev-Exp Region 11'!I$24","v":{"v":0,"d":"$0.00"}},{"$f":"'LTC Rev-Exp Region 11'!J$24","v":{"v":0,"d":"$0.00"}},{"$f":"'LTC Rev-Exp Region 11'!K$24","v":{"v":0,"d":"$0.00"}},{"v":0,"d":"$0.00"}]
["LTC",null,null,{"$f":"Jurat!I$1","v":0},{"$f":"Jurat!D$33","v":"00:00:00"},"Q2","2017-06-30","Region 11","Operating Expense","Medical Expense","NF & Hospice","2.9","NF & Hospice Settlements",{"$f":"'LTC Rev-Exp Region 11'!H$25","v":{"v":0,"d":"$0.00"}},{"$f":"'LTC Rev-Exp Region 11'!I$25","v":{"v":0,"d":"$0.00"}},{"$f":"'LTC Rev-Exp Region 11'!J$25","v":{"v":0,"d":"$0.00"}},{"$f":"'LTC Rev-Exp Region 11'!K$25","v":{"v":0,"d":"$0.00"}},{"v":0,"d":"$0.00"}]
["LTC",null,null,{"$f":"Jurat!I$1","v":0},{"$f":"Jurat!D$33","v":"00:00:00"},"Q2","2017-06-30","Region 11","Operating Expense","Medical Expense","LTC Services","2.11","Assisted Living FFS",{"$f":"'LTC Rev-Exp Region 11'!H$27","v":{"v":0,"d":"$0.00"}},{"$f":"'LTC Rev-Exp Region 11'!I$27","v":{"v":0,"d":"$0.00"}},{"$f":"'LTC Rev-Exp Region 11'!J$27","v":{"v":0,"d":"$0.00"}},{"$f":"'LTC Rev-Exp Region 11'!K$27","v":{"v":0,"d":"$0.00"}},{"v":0,"d":"$0.00"}]
["LTC",null,null,{"$f":"Jurat!I$1","v":0},{"$f":"Jurat!D$33","v":"00:00:00"},"Q2","2017-06-30","Region 11","Operating Expense","Medical Expense","LTC Services","2.12","Home Health FFS",{"$f":"'LTC Rev-Exp Region 11'!H$28","v":{"v":0,"d":"$0.00"}},{"$f":"'LTC Rev-Exp Region 11'!I$28","v":{"v":0,"d":"$0.00"}},{"$f":"'LTC Rev-Exp Region 11'!J$28","v":{"v":0,"d":"$0.00"}},{"$f":"'LTC Rev-Exp Region 11'!K$28","v":{"v":0,"d":"$0.00"}},{"v":0,"d":"$0.00"}]
["LTC",null,null,{"$f":"Jurat!I$1","v":0},{"$f":"Jurat!D$33","v":"00:00:00"},"Q2","2017-06-30","Region 11","Operating Expense","Medical Expense","LTC Services","2.13","Medical Equipment/Supplies FFS",{"$f":"'LTC Rev-Exp Region 11'!H$29","v":{"v":0,"d":"$0.00"}},{"$f":"'LTC Rev-Exp Region 11'!I$29","v":{"v":0,"d":"$0.00"}},{"$f":"'LTC Rev-Exp Region 11'!J$29","v":{"v":0,"d":"$0.00"}},{"$f":"'LTC Rev-Exp Region 11'!K$29","v":{"v":0,"d":"$0.00"}},{"v":0,"d":"$0.00"}]
["LTC",null,null,{"$f":"Jurat!I$1","v":0},{"$f":"Jurat!D$33","v":"00:00:00"},"Q2","2017-06-30","Region 11","Operating Expense","Medical Expense","LTC Services","2.14","Therapy FFS",{"$f":"'LTC Rev-Exp Region 11'!H$30","v":{"v":0,"d":"$0.00"}},{"$f":"'LTC Rev-Exp Region 11'!I$30","v":{"v":0,"d":"$0.00"}},{"$f":"'LTC Rev-Exp Region 11'!J$30","v":{"v":0,"d":"$0.00"}},{"$f":"'LTC Rev-Exp Region 11'!K$30","v":{"v":0,"d":"$0.00"}},{"v":0,"d":"$0.00"}]
["LTC",null,null,{"$f":"Jurat!I$1","v":0},{"$f":"Jurat!D$33","v":"00:00:00"},"Q2","2017-06-30","Region 11","Operating Expense","Medical Expense","LTC Services","2.15","Transportation FFS",{"$f":"'LTC Rev-Exp Region 11'!H$31","v":{"v":0,"d":"$0.00"}},{"$f":"'LTC Rev-Exp Region 11'!I$31","v":{"v":0,"d":"$0.00"}},{"$f":"'LTC Rev-Exp Region 11'!J$31","v":{"v":0,"d":"$0.00"}},{"$f":"'LTC Rev-Exp Region 11'!K$31","v":{"v":0,"d":"$0.00"}},{"v":0,"d":"$0.00"}]
["LTC",null,null,{"$f":"Jurat!I$1","v":0},{"$f":"Jurat!D$33","v":"00:00:00"},"Q2","2017-06-30","Region 11","Operating Expense","Medical Expense","LTC Services","2.16","Case Management FFS (Plan Provided)",{"$f":"'LTC Rev-Exp Region 11'!H$32","v":{"v":0,"d":"$0.00"}},{"$f":"'LTC Rev-Exp Region 11'!I$32","v":{"v":0,"d":"$0.00"}},{"$f":"'LTC Rev-Exp Region 11'!J$32","v":{"v":0,"d":"$0.00"}},{"$f":"'LTC Rev-Exp Region 11'!K$32","v":{"v":0,"d":"$0.00"}},{"v":0,"d":"$0.00"}]
["LTC",null,null,{"$f":"Jurat!I$1","v":0},{"$f":"Jurat!D$33","v":"00:00:00"},"Q2","2017-06-30","Region 11","Operating Expense","Medical Expense","LTC Services","2.17","Case Management FF (Non-Plan Provided)",{"$f":"'LTC Rev-Exp Region 11'!H$33","v":{"v":0,"d":"$0.00"}},{"$f":"'LTC Rev-Exp Region 11'!I$33","v":{"v":0,"d":"$0.00"}},{"$f":"'LTC Rev-Exp Region 11'!J$33","v":{"v":0,"d":"$0.00"}},{"$f":"'LTC Rev-Exp Region 11'!K$33","v":{"v":0,"d":"$0.00"}},{"v":0,"d":"$0.00"}]
["LTC",null,null,{"$f":"Jurat!I$1","v":0},{"$f":"Jurat!D$33","v":"00:00:00"},"Q2","2017-06-30","Region 11","Operating Expense","Medical Expense","LTC Services","2.18","HCBS FFS",{"$f":"'LTC Rev-Exp Region 11'!H$34","v":{"v":0,"d":"$0.00"}},{"$f":"'LTC Rev-Exp Region 11'!I$34","v":{"v":0,"d":"$0.00"}},{"$f":"'LTC Rev-Exp Region 11'!J$34","v":{"v":0,"d":"$0.00"}},{"$f":"'LTC Rev-Exp Region 11'!K$34","v":{"v":0,"d":"$0.00"}},{"v":0,"d":"$0.00"}]
["LTC",null,null,{"$f":"Jurat!I$1","v":0},{"$f":"Jurat!D$33","v":"00:00:00"},"Q2","2017-06-30","Region 11","Operating Expense","Medical Expense","LTC Services","2.19","Subcapitated LTC Services",{"$f":"'LTC Rev-Exp Region 11'!H$35","v":{"v":0,"d":"$0.00"}},{"$f":"'LTC Rev-Exp Region 11'!I$35","v":{"v":0,"d":"$0.00"}},{"$f":"'LTC Rev-Exp Region 11'!J$35","v":{"v":0,"d":"$0.00"}},{"$f":"'LTC Rev-Exp Region 11'!K$35","v":{"v":0,"d":"$0.00"}},{"v":0,"d":"$0.00"}]
["LTC",null,null,{"$f":"Jurat!I$1","v":0},{"$f":"Jurat!D$33","v":"00:00:00"},"Q2","2017-06-30","Region 11","Operating Expense","Medical Expense","LTC Services","2.20","Ending IBNP for Long Term Care Services",{"$f":"'LTC Rev-Exp Region 11'!H$36","v":{"v":0,"d":"$0.00"}},{"$f":"'LTC Rev-Exp Region 11'!I$36","v":{"v":0,"d":"$0.00"}},{"$f":"'LTC Rev-Exp Region 11'!J$36","v":{"v":0,"d":"$0.00"}},{"$f":"'LTC Rev-Exp Region 11'!K$36","v":{"v":0,"d":"$0.00"}},{"v":0,"d":"$0.00"}]
["LTC",null,null,{"$f":"Jurat!I$1","v":0},{"$f":"Jurat!D$33","v":"00:00:00"},"Q2","2017-06-30","Region 11","Operating Expense","Medical Expense","LTC Services","2.21","LTC Services Settlements",{"$f":"'LTC Rev-Exp Region 11'!H$37","v":{"v":0,"d":"$0.00"}},{"$f":"'LTC Rev-Exp Region 11'!I$37","v":{"v":0,"d":"$0.00"}},{"$f":"'LTC Rev-Exp Region 11'!J$37","v":{"v":0,"d":"$0.00"}},{"$f":"'LTC Rev-Exp Region 11'!K$37","v":{"v":0,"d":"$0.00"}},{"v":0,"d":"$0.00"}]
["LTC",null,null,{"$f":"Jurat!I$1","v":0},{"$f":"Jurat!D$33","v":"00:00:00"},"Q2","2017-06-30","Region 11","Operating Expense","Medical Expense","Expanded Benefits","3.1","Expanded Benefits FFS",{"$f":"'LTC Rev-Exp Region 11'!H$39","v":{"v":0,"d":"$0.00"}},{"$f":"'LTC Rev-Exp Region 11'!I$39","v":{"v":0,"d":"$0.00"}},{"$f":"'LTC Rev-Exp Region 11'!J$39","v":{"v":0,"d":"$0.00"}},{"$f":"'LTC Rev-Exp Region 11'!K$39","v":{"v":0,"d":"$0.00"}},{"v":0,"d":"$0.00"}]
["LTC",null,null,{"$f":"Jurat!I$1","v":0},{"$f":"Jurat!D$33","v":"00:00:00"},"Q2","2017-06-30","Region 11","Operating Expense","Medical Expense","Expanded Benefits","3.2","Expanded Benefits Subcapitation",{"$f":"'LTC Rev-Exp Region 11'!H$40","v":{"v":0,"d":"$0.00"}},{"$f":"'LTC Rev-Exp Region 11'!I$40","v":{"v":0,"d":"$0.00"}},{"$f":"'LTC Rev-Exp Region 11'!J$40","v":{"v":0,"d":"$0.00"}},{"$f":"'LTC Rev-Exp Region 11'!K$40","v":{"v":0,"d":"$0.00"}},{"v":0,"d":"$0.00"}]
["LTC",null,null,{"$f":"Jurat!I$1","v":0},{"$f":"Jurat!D$33","v":"00:00:00"},"Q2","2017-06-30","Region 11","Operating Expense","Medical Expense","Expanded Benefits","3.3","Ending IBNP for Expanded Benefits",{"$f":"'LTC Rev-Exp Region 11'!H$41","v":{"v":0,"d":"$0.00"}},{"$f":"'LTC Rev-Exp Region 11'!I$41","v":{"v":0,"d":"$0.00"}},{"$f":"'LTC Rev-Exp Region 11'!J$41","v":{"v":0,"d":"$0.00"}},{"$f":"'LTC Rev-Exp Region 11'!K$41","v":{"v":0,"d":"$0.00"}},{"v":0,"d":"$0.00"}]
["LTC",null,null,{"$f":"Jurat!I$1","v":0},{"$f":"Jurat!D$33","v":"00:00:00"},"Q2","2017-06-30","Region 11","Operating Expense","Medical Expense","Expanded Benefits","3.4","Expanded Benefits Settlements",{"$f":"'LTC Rev-Exp Region 11'!H$42","v":{"v":0,"d":"$0.00"}},{"$f":"'LTC Rev-Exp Region 11'!I$42","v":{"v":0,"d":"$0.00"}},{"$f":"'LTC Rev-Exp Region 11'!J$42","v":{"v":0,"d":"$0.00"}},{"$f":"'LTC Rev-Exp Region 11'!K$42","v":{"v":0,"d":"$0.00"}},{"v":0,"d":"$0.00"}]
["LTC",null,null,{"$f":"Jurat!I$1","v":0},{"$f":"Jurat!D$33","v":"00:00:00"},"Q2","2017-06-30","Region 11","Operating Expense","Medical Expense","Other Medical","4.5","TPL & Fraud/Abuse Recoveries",{"$f":"'LTC Rev-Exp Region 11'!H$48","v":{"v":0,"d":"$0.00"}},{"$f":"'LTC Rev-Exp Region 11'!I$48","v":{"v":0,"d":"$0.00"}},{"$f":"'LTC Rev-Exp Region 11'!J$48","v":{"v":0,"d":"$0.00"}},{"$f":"'LTC Rev-Exp Region 11'!K$48","v":{"v":0,"d":"$0.00"}},{"v":0,"d":"$0.00"}]
["LTC",null,null,{"$f":"Jurat!I$1","v":0},{"$f":"Jurat!D$33","v":"00:00:00"},"Q2","2017-06-30","Region 11","Operating Expense","Medical Expense","Other Medical","4.6.1","Premium Deficiency Reserve",{"$f":"'LTC Rev-Exp Region 11'!H$49","v":{"v":0,"d":"$0.00"}},{"$f":"'LTC Rev-Exp Region 11'!I$49","v":{"v":0,"d":"$0.00"}},{"$f":"'LTC Rev-Exp Region 11'!J$49","v":{"v":0,"d":"$0.00"}},{"$f":"'LTC Rev-Exp Region 11'!K$49","v":{"v":0,"d":"$0.00"}},{"v":0,"d":"$0.00"}]
["LTC",null,null,{"$f":"Jurat!I$1","v":0},{"$f":"Jurat!D$33","v":"00:00:00"},"Q2","2017-06-30","Region 11","Operating Expense","Medical Expense","Other Medical","4.8","Reinsurance Premiums",{"$f":"'LTC Rev-Exp Region 11'!H$51","v":{"v":0,"d":"$0.00"}},{"$f":"'LTC Rev-Exp Region 11'!I$51","v":{"v":0,"d":"$0.00"}},{"$f":"'LTC Rev-Exp Region 11'!J$51","v":{"v":0,"d":"$0.00"}},{"$f":"'LTC Rev-Exp Region 11'!K$51","v":{"v":0,"d":"$0.00"}},{"v":0,"d":"$0.00"}]
["LTC",null,null,{"$f":"Jurat!I$1","v":0},{"$f":"Jurat!D$33","v":"00:00:00"},"Q2","2017-06-30","Region 11","Operating Expense","Medical Expense","Other Medical","4.9","Reinsurance Recoveries",{"$f":"'LTC Rev-Exp Region 11'!H$52","v":{"v":0,"d":"$0.00"}},{"$f":"'LTC Rev-Exp Region 11'!I$52","v":{"v":0,"d":"$0.00"}},{"$f":"'LTC Rev-Exp Region 11'!J$52","v":{"v":0,"d":"$0.00"}},{"$f":"'LTC Rev-Exp Region 11'!K$52","v":{"v":0,"d":"$0.00"}},{"v":0,"d":"$0.00"}]
["LTC",null,null,{"$f":"Jurat!I$1","v":0},{"$f":"Jurat!D$33","v":"00:00:00"},"Q2","2017-06-30","Region 11","Operating Expense","Administrative Expense","Administrative","5.1","Salaries & Benefits",{"$f":"'LTC Rev-Exp Region 11'!H$57","v":{"v":0,"d":"$0.00"}},{"$f":"'LTC Rev-Exp Region 11'!I$57","v":{"v":0,"d":"$0.00"}},{"$f":"'LTC Rev-Exp Region 11'!J$57","v":{"v":0,"d":"$0.00"}},{"$f":"'LTC Rev-Exp Region 11'!K$57","v":{"v":0,"d":"$0.00"}},{"v":0,"d":"$0.00"}]
["LTC",null,null,{"$f":"Jurat!I$1","v":0},{"$f":"Jurat!D$33","v":"00:00:00"},"Q2","2017-06-30","Region 11","Operating Expense","Administrative Expense","Administrative","5.2","Administrative Services",{"$f":"'LTC Rev-Exp Region 11'!H$58","v":{"v":0,"d":"$0.00"}},{"$f":"'LTC Rev-Exp Region 11'!I$58","v":{"v":0,"d":"$0.00"}},{"$f":"'LTC Rev-Exp Region 11'!J$58","v":{"v":0,"d":"$0.00"}},{"$f":"'LTC Rev-Exp Region 11'!K$58","v":{"v":0,"d":"$0.00"}},{"v":0,"d":"$0.00"}]
["LTC",null,null,{"$f":"Jurat!I$1","v":0},{"$f":"Jurat!D$33","v":"00:00:00"},"Q2","2017-06-30","Region 11","Operating Expense","Administrative Expense","Administrative","5.3","Information Systems",{"$f":"'LTC Rev-Exp Region 11'!H$59","v":{"v":0,"d":"$0.00"}},{"$f":"'LTC Rev-Exp Region 11'!I$59","v":{"v":0,"d":"$0.00"}},{"$f":"'LTC Rev-Exp Region 11'!J$59","v":{"v":0,"d":"$0.00"}},{"$f":"'LTC Rev-Exp Region 11'!K$59","v":{"v":0,"d":"$0.00"}},{"v":0,"d":"$0.00"}]
["LTC",null,null,{"$f":"Jurat!I$1","v":0},{"$f":"Jurat!D$33","v":"00:00:00"},"Q2","2017-06-30","Region 11","Operating Expense","Administrative Expense","Administrative","5.4","Marketing Expenses",{"$f":"'LTC Rev-Exp Region 11'!H$60","v":{"v":0,"d":"$0.00"}},{"$f":"'LTC Rev-Exp Region 11'!I$60","v":{"v":0,"d":"$0.00"}},{"$f":"'LTC Rev-Exp Region 11'!J$60","v":{"v":0,"d":"$0.00"}},{"$f":"'LTC Rev-Exp Region 11'!K$60","v":{"v":0,"d":"$0.00"}},{"v":0,"d":"$0.00"}]
["LTC",null,null,{"$f":"Jurat!I$1","v":0},{"$f":"Jurat!D$33","v":"00:00:00"},"Q2","2017-06-30","Region 11","Operating Expense","Administrative Expense","Administrative","5.5","General  Administration",{"$f":"'LTC Rev-Exp Region 11'!H$61","v":{"v":0,"d":"$0.00"}},{"$f":"'LTC Rev-Exp Region 11'!I$61","v":{"v":0,"d":"$0.00"}},{"$f":"'LTC Rev-Exp Region 11'!J$61","v":{"v":0,"d":"$0.00"}},{"$f":"'LTC Rev-Exp Region 11'!K$61","v":{"v":0,"d":"$0.00"}},{"v":0,"d":"$0.00"}]
["LTC",null,null,{"$f":"Jurat!I$1","v":0},{"$f":"Jurat!D$33","v":"00:00:00"},"Q2","2017-06-30","Region 11","Operating Expense","Administrative Expense","Administrative","5.6","Compliance/Regulatory",{"$f":"'LTC Rev-Exp Region 11'!H$62","v":{"v":0,"d":"$0.00"}},{"$f":"'LTC Rev-Exp Region 11'!I$62","v":{"v":0,"d":"$0.00"}},{"$f":"'LTC Rev-Exp Region 11'!J$62","v":{"v":0,"d":"$0.00"}},{"$f":"'LTC Rev-Exp Region 11'!K$62","v":{"v":0,"d":"$0.00"}},{"v":0,"d":"$0.00"}]
["LTC",null,null,{"$f":"Jurat!I$1","v":0},{"$f":"Jurat!D$33","v":"00:00:00"},"Q2","2017-06-30","Region 11","Operating Expense","Taxes & Fees","Taxes & Fees","6.1","State Premium Tax",{"$f":"'LTC Rev-Exp Region 11'!H$64","v":{"v":0,"d":"$0.00"}},{"v":0,"d":"$0.00"},{"v":0,"d":"$0.00"},{"v":0,"d":"$0.00"},{"v":0,"d":"$0.00"}]
["LTC",null,null,{"$f":"Jurat!I$1","v":0},{"$f":"Jurat!D$33","v":"00:00:00"},"Q2","2017-06-30","Region 11","Operating Expense","Taxes & Fees","Taxes & Fees","6.2","Department of Insurance Assessments",{"$f":"'LTC Rev-Exp Region 11'!H$65","v":{"v":0,"d":"$0.00"}},{"v":0,"d":"$0.00"},{"v":0,"d":"$0.00"},{"v":0,"d":"$0.00"},{"v":0,"d":"$0.00"}]
["LTC",null,null,{"$f":"Jurat!I$1","v":0},{"$f":"Jurat!D$33","v":"00:00:00"},"Q2","2017-06-30","Region 11","Non-Operating Expense","Income Tax Expense","Income Tax Expense","9.0","Income Tax Expense",{"$f":"'LTC Rev-Exp Region 11'!H$72","v":{"v":0,"d":"$0.00"}},{"v":0,"d":"$0.00"},{"v":0,"d":"$0.00"},{"v":0,"d":"$0.00"},{"v":0,"d":"$0.00"}]
["LTC",null,null,{"$f":"Jurat!I$1","v":0},{"$f":"Jurat!D$33","v":"00:00:00"},"Q3","2017-09-30","Region 11","Member Months","Member Months","Member Months",null,"Member Months",{"$f":"'LTC Rev-Exp Region 11'!L$9","v":{"v":0,"d":"$0.00"}},{"$f":"'LTC Rev-Exp Region 11'!M$9","v":{"v":0,"d":"$0.00"}},{"$f":"'LTC Rev-Exp Region 11'!N$9","v":{"v":0,"d":"$0.00"}},{"$f":"'LTC Rev-Exp Region 11'!O$9","v":{"v":0,"d":"$0.00"}},{"v":0,"d":"$0.00"}]
["LTC",null,null,{"$f":"Jurat!I$1","v":0},{"$f":"Jurat!D$33","v":"00:00:00"},"Q3","2017-09-30","Region 11","Operating Revenue","Capitation","Capitation",1.1,"Capitation",{"$f":"'LTC Rev-Exp Region 11'!L$11","v":{"v":0,"d":"$0.00"}},{"$f":"'LTC Rev-Exp Region 11'!M$11","v":{"v":0,"d":"$0.00"}},{"$f":"'LTC Rev-Exp Region 11'!N$11","v":{"v":0,"d":"$0.00"}},{"$f":"'LTC Rev-Exp Region 11'!O$11","v":{"v":0,"d":"$0.00"}},{"v":0,"d":"$0.00"}]
["LTC",null,null,{"$f":"Jurat!I$1","v":0},{"$f":"Jurat!D$33","v":"00:00:00"},"Q3","2017-09-30","Region 11","Operating Revenue","Capitation","NH Rate Reconciliation",1.2,"NH Rate Reconciliation",{"$f":"'LTC Rev-Exp Region 11'!L$12","v":{"v":0,"d":"$0.00"}},{"$f":"'LTC Rev-Exp Region 11'!M$12","v":{"v":0,"d":"$0.00"}},{"$f":"'LTC Rev-Exp Region 11'!N$12","v":{"v":0,"d":"$0.00"}},{"$f":"'LTC Rev-Exp Region 11'!O$12","v":{"v":0,"d":"$0.00"}},{"v":0,"d":"$0.00"}]
["LTC",null,null,{"$f":"Jurat!I$1","v":0},{"$f":"Jurat!D$33","v":"00:00:00"},"Q3","2017-09-30","Region 11","Operating Revenue","Other Revenue","Other Revenue",1.3,"Other Revenue",{"$f":"'LTC Rev-Exp Region 11'!L$13","v":{"v":0,"d":"$0.00"}},{"$f":"'LTC Rev-Exp Region 11'!M$13","v":{"v":0,"d":"$0.00"}},{"$f":"'LTC Rev-Exp Region 11'!N$13","v":{"v":0,"d":"$0.00"}},{"$f":"'LTC Rev-Exp Region 11'!O$13","v":{"v":0,"d":"$0.00"}},{"v":0,"d":"$0.00"}]
["LTC",null,null,{"$f":"Jurat!I$1","v":0},{"$f":"Jurat!D$33","v":"00:00:00"},"Q3","2017-09-30","Region 11","Operating Expense","Medical Expense","NF & Hospice","2.1","Nursing Facility Days (Medicaid)",{"$f":"'LTC Rev-Exp Region 11'!L$17","v":{"v":0,"d":"$0.00"}},{"$f":"'LTC Rev-Exp Region 11'!M$17","v":{"v":0,"d":"$0.00"}},{"$f":"'LTC Rev-Exp Region 11'!N$17","v":{"v":0,"d":"$0.00"}},{"$f":"'LTC Rev-Exp Region 11'!O$17","v":{"v":0,"d":"$0.00"}},{"v":0,"d":"$0.00"}]
["LTC",null,null,{"$f":"Jurat!I$1","v":0},{"$f":"Jurat!D$33","v":"00:00:00"},"Q3","2017-09-30","Region 11","Operating Expense","Medical Expense","NF & Hospice","2.2","Nursing Facility Days (Crossover)",{"$f":"'LTC Rev-Exp Region 11'!L$18","v":{"v":0,"d":"$0.00"}},{"$f":"'LTC Rev-Exp Region 11'!M$18","v":{"v":0,"d":"$0.00"}},{"$f":"'LTC Rev-Exp Region 11'!N$18","v":{"v":0,"d":"$0.00"}},{"$f":"'LTC Rev-Exp Region 11'!O$18","v":{"v":0,"d":"$0.00"}},{"v":0,"d":"$0.00"}]
["LTC",null,null,{"$f":"Jurat!I$1","v":0},{"$f":"Jurat!D$33","v":"00:00:00"},"Q3","2017-09-30","Region 11","Operating Expense","Medical Expense","NF & Hospice","2.3","Nursing Facility FFS (Medicaid)",{"$f":"'LTC Rev-Exp Region 11'!L$19","v":{"v":0,"d":"$0.00"}},{"$f":"'LTC Rev-Exp Region 11'!M$19","v":{"v":0,"d":"$0.00"}},{"$f":"'LTC Rev-Exp Region 11'!N$19","v":{"v":0,"d":"$0.00"}},{"$f":"'LTC Rev-Exp Region 11'!O$19","v":{"v":0,"d":"$0.00"}},{"v":0,"d":"$0.00"}]
["LTC",null,null,{"$f":"Jurat!I$1","v":0},{"$f":"Jurat!D$33","v":"00:00:00"},"Q3","2017-09-30","Region 11","Operating Expense","Medical Expense","NF & Hospice","2.4","Nursing Facility FFS (Crossover)",{"$f":"'LTC Rev-Exp Region 11'!L$20","v":{"v":0,"d":"$0.00"}},{"$f":"'LTC Rev-Exp Region 11'!M$20","v":{"v":0,"d":"$0.00"}},{"$f":"'LTC Rev-Exp Region 11'!N$20","v":{"v":0,"d":"$0.00"}},{"$f":"'LTC Rev-Exp Region 11'!O$20","v":{"v":0,"d":"$0.00"}},{"v":0,"d":"$0.00"}]
["LTC",null,null,{"$f":"Jurat!I$1","v":0},{"$f":"Jurat!D$33","v":"00:00:00"},"Q3","2017-09-30","Region 11","Operating Expense","Medical Expense","NF & Hospice","2.5","Hospice Days",{"$f":"'LTC Rev-Exp Region 11'!L$21","v":{"v":0,"d":"$0.00"}},{"$f":"'LTC Rev-Exp Region 11'!M$21","v":{"v":0,"d":"$0.00"}},{"$f":"'LTC Rev-Exp Region 11'!N$21","v":{"v":0,"d":"$0.00"}},{"$f":"'LTC Rev-Exp Region 11'!O$21","v":{"v":0,"d":"$0.00"}},{"v":0,"d":"$0.00"}]
["LTC",null,null,{"$f":"Jurat!I$1","v":0},{"$f":"Jurat!D$33","v":"00:00:00"},"Q3","2017-09-30","Region 11","Operating Expense","Medical Expense","NF & Hospice","2.6","Hospice FFS",{"$f":"'LTC Rev-Exp Region 11'!L$22","v":{"v":0,"d":"$0.00"}},{"$f":"'LTC Rev-Exp Region 11'!M$22","v":{"v":0,"d":"$0.00"}},{"$f":"'LTC Rev-Exp Region 11'!N$22","v":{"v":0,"d":"$0.00"}},{"$f":"'LTC Rev-Exp Region 11'!O$22","v":{"v":0,"d":"$0.00"}},{"v":0,"d":"$0.00"}]
["LTC",null,null,{"$f":"Jurat!I$1","v":0},{"$f":"Jurat!D$33","v":"00:00:00"},"Q3","2017-09-30","Region 11","Operating Expense","Medical Expense","NF & Hospice","2.7","Ending IBNP for NF & Hospice",{"$f":"'LTC Rev-Exp Region 11'!L$23","v":{"v":0,"d":"$0.00"}},{"$f":"'LTC Rev-Exp Region 11'!M$23","v":{"v":0,"d":"$0.00"}},{"$f":"'LTC Rev-Exp Region 11'!N$23","v":{"v":0,"d":"$0.00"}},{"$f":"'LTC Rev-Exp Region 11'!O$23","v":{"v":0,"d":"$0.00"}},{"v":0,"d":"$0.00"}]
["LTC",null,null,{"$f":"Jurat!I$1","v":0},{"$f":"Jurat!D$33","v":"00:00:00"},"Q3","2017-09-30","Region 11","Operating Expense","Medical Expense","NF & Hospice","2.8","NF & Hospice Subcapitated",{"$f":"'LTC Rev-Exp Region 11'!L$24","v":{"v":0,"d":"$0.00"}},{"$f":"'LTC Rev-Exp Region 11'!M$24","v":{"v":0,"d":"$0.00"}},{"$f":"'LTC Rev-Exp Region 11'!N$24","v":{"v":0,"d":"$0.00"}},{"$f":"'LTC Rev-Exp Region 11'!O$24","v":{"v":0,"d":"$0.00"}},{"v":0,"d":"$0.00"}]
["LTC",null,null,{"$f":"Jurat!I$1","v":0},{"$f":"Jurat!D$33","v":"00:00:00"},"Q3","2017-09-30","Region 11","Operating Expense","Medical Expense","NF & Hospice","2.9","NF & Hospice Settlements",{"$f":"'LTC Rev-Exp Region 11'!L$25","v":{"v":0,"d":"$0.00"}},{"$f":"'LTC Rev-Exp Region 11'!M$25","v":{"v":0,"d":"$0.00"}},{"$f":"'LTC Rev-Exp Region 11'!N$25","v":{"v":0,"d":"$0.00"}},{"$f":"'LTC Rev-Exp Region 11'!O$25","v":{"v":0,"d":"$0.00"}},{"v":0,"d":"$0.00"}]
["LTC",null,null,{"$f":"Jurat!I$1","v":0},{"$f":"Jurat!D$33","v":"00:00:00"},"Q3","2017-09-30","Region 11","Operating Expense","Medical Expense","LTC Services","2.11","Assisted Living FFS",{"$f":"'LTC Rev-Exp Region 11'!L$27","v":{"v":0,"d":"$0.00"}},{"$f":"'LTC Rev-Exp Region 11'!M$27","v":{"v":0,"d":"$0.00"}},{"$f":"'LTC Rev-Exp Region 11'!N$27","v":{"v":0,"d":"$0.00"}},{"$f":"'LTC Rev-Exp Region 11'!O$27","v":{"v":0,"d":"$0.00"}},{"v":0,"d":"$0.00"}]
["LTC",null,null,{"$f":"Jurat!I$1","v":0},{"$f":"Jurat!D$33","v":"00:00:00"},"Q3","2017-09-30","Region 11","Operating Expense","Medical Expense","LTC Services","2.12","Home Health FFS",{"$f":"'LTC Rev-Exp Region 11'!L$28","v":{"v":0,"d":"$0.00"}},{"$f":"'LTC Rev-Exp Region 11'!M$28","v":{"v":0,"d":"$0.00"}},{"$f":"'LTC Rev-Exp Region 11'!N$28","v":{"v":0,"d":"$0.00"}},{"$f":"'LTC Rev-Exp Region 11'!O$28","v":{"v":0,"d":"$0.00"}},{"v":0,"d":"$0.00"}]
["LTC",null,null,{"$f":"Jurat!I$1","v":0},{"$f":"Jurat!D$33","v":"00:00:00"},"Q3","2017-09-30","Region 11","Operating Expense","Medical Expense","LTC Services","2.13","Medical Equipment/Supplies FFS",{"$f":"'LTC Rev-Exp Region 11'!L$29","v":{"v":0,"d":"$0.00"}},{"$f":"'LTC Rev-Exp Region 11'!M$29","v":{"v":0,"d":"$0.00"}},{"$f":"'LTC Rev-Exp Region 11'!N$29","v":{"v":0,"d":"$0.00"}},{"$f":"'LTC Rev-Exp Region 11'!O$29","v":{"v":0,"d":"$0.00"}},{"v":0,"d":"$0.00"}]
["LTC",null,null,{"$f":"Jurat!I$1","v":0},{"$f":"Jurat!D$33","v":"00:00:00"},"Q3","2017-09-30","Region 11","Operating Expense","Medical Expense","LTC Services","2.14","Therapy FFS",{"$f":"'LTC Rev-Exp Region 11'!L$30","v":{"v":0,"d":"$0.00"}},{"$f":"'LTC Rev-Exp Region 11'!M$30","v":{"v":0,"d":"$0.00"}},{"$f":"'LTC Rev-Exp Region 11'!N$30","v":{"v":0,"d":"$0.00"}},{"$f":"'LTC Rev-Exp Region 11'!O$30","v":{"v":0,"d":"$0.00"}},{"v":0,"d":"$0.00"}]
["LTC",null,null,{"$f":"Jurat!I$1","v":0},{"$f":"Jurat!D$33","v":"00:00:00"},"Q3","2017-09-30","Region 11","Operating Expense","Medical Expense","LTC Services","2.15","Transportation FFS",{"$f":"'LTC Rev-Exp Region 11'!L$31","v":{"v":0,"d":"$0.00"}},{"$f":"'LTC Rev-Exp Region 11'!M$31","v":{"v":0,"d":"$0.00"}},{"$f":"'LTC Rev-Exp Region 11'!N$31","v":{"v":0,"d":"$0.00"}},{"$f":"'LTC Rev-Exp Region 11'!O$31","v":{"v":0,"d":"$0.00"}},{"v":0,"d":"$0.00"}]
["LTC",null,null,{"$f":"Jurat!I$1","v":0},{"$f":"Jurat!D$33","v":"00:00:00"},"Q3","2017-09-30","Region 11","Operating Expense","Medical Expense","LTC Services","2.16","Case Management FFS (Plan Provided)",{"$f":"'LTC Rev-Exp Region 11'!L$32","v":{"v":0,"d":"$0.00"}},{"$f":"'LTC Rev-Exp Region 11'!M$32","v":{"v":0,"d":"$0.00"}},{"$f":"'LTC Rev-Exp Region 11'!N$32","v":{"v":0,"d":"$0.00"}},{"$f":"'LTC Rev-Exp Region 11'!O$32","v":{"v":0,"d":"$0.00"}},{"v":0,"d":"$0.00"}]
["LTC",null,null,{"$f":"Jurat!I$1","v":0},{"$f":"Jurat!D$33","v":"00:00:00"},"Q3","2017-09-30","Region 11","Operating Expense","Medical Expense","LTC Services","2.17","Case Management FF (Non-Plan Provided)",{"$f":"'LTC Rev-Exp Region 11'!L$33","v":{"v":0,"d":"$0.00"}},{"$f":"'LTC Rev-Exp Region 11'!M$33","v":{"v":0,"d":"$0.00"}},{"$f":"'LTC Rev-Exp Region 11'!N$33","v":{"v":0,"d":"$0.00"}},{"$f":"'LTC Rev-Exp Region 11'!O$33","v":{"v":0,"d":"$0.00"}},{"v":0,"d":"$0.00"}]
["LTC",null,null,{"$f":"Jurat!I$1","v":0},{"$f":"Jurat!D$33","v":"00:00:00"},"Q3","2017-09-30","Region 11","Operating Expense","Medical Expense","LTC Services","2.18","HCBS FFS",{"$f":"'LTC Rev-Exp Region 11'!L$34","v":{"v":0,"d":"$0.00"}},{"$f":"'LTC Rev-Exp Region 11'!M$34","v":{"v":0,"d":"$0.00"}},{"$f":"'LTC Rev-Exp Region 11'!N$34","v":{"v":0,"d":"$0.00"}},{"$f":"'LTC Rev-Exp Region 11'!O$34","v":{"v":0,"d":"$0.00"}},{"v":0,"d":"$0.00"}]
["LTC",null,null,{"$f":"Jurat!I$1","v":0},{"$f":"Jurat!D$33","v":"00:00:00"},"Q3","2017-09-30","Region 11","Operating Expense","Medical Expense","LTC Services","2.19","Subcapitated LTC Services",{"$f":"'LTC Rev-Exp Region 11'!L$35","v":{"v":0,"d":"$0.00"}},{"$f":"'LTC Rev-Exp Region 11'!M$35","v":{"v":0,"d":"$0.00"}},{"$f":"'LTC Rev-Exp Region 11'!N$35","v":{"v":0,"d":"$0.00"}},{"$f":"'LTC Rev-Exp Region 11'!O$35","v":{"v":0,"d":"$0.00"}},{"v":0,"d":"$0.00"}]
["LTC",null,null,{"$f":"Jurat!I$1","v":0},{"$f":"Jurat!D$33","v":"00:00:00"},"Q3","2017-09-30","Region 11","Operating Expense","Medical Expense","LTC Services","2.20","Ending IBNP for Long Term Care Services",{"$f":"'LTC Rev-Exp Region 11'!L$36","v":{"v":0,"d":"$0.00"}},{"$f":"'LTC Rev-Exp Region 11'!M$36","v":{"v":0,"d":"$0.00"}},{"$f":"'LTC Rev-Exp Region 11'!N$36","v":{"v":0,"d":"$0.00"}},{"$f":"'LTC Rev-Exp Region 11'!O$36","v":{"v":0,"d":"$0.00"}},{"v":0,"d":"$0.00"}]
["LTC",null,null,{"$f":"Jurat!I$1","v":0},{"$f":"Jurat!D$33","v":"00:00:00"},"Q3","2017-09-30","Region 11","Operating Expense","Medical Expense","LTC Services","2.21","LTC Services Settlements",{"$f":"'LTC Rev-Exp Region 11'!L$37","v":{"v":0,"d":"$0.00"}},{"$f":"'LTC Rev-Exp Region 11'!M$37","v":{"v":0,"d":"$0.00"}},{"$f":"'LTC Rev-Exp Region 11'!N$37","v":{"v":0,"d":"$0.00"}},{"$f":"'LTC Rev-Exp Region 11'!O$37","v":{"v":0,"d":"$0.00"}},{"v":0,"d":"$0.00"}]
["LTC",null,null,{"$f":"Jurat!I$1","v":0},{"$f":"Jurat!D$33","v":"00:00:00"},"Q3","2017-09-30","Region 11","Operating Expense","Medical Expense","Expanded Benefits","3.1","Expanded Benefits FFS",{"$f":"'LTC Rev-Exp Region 11'!L$39","v":{"v":0,"d":"$0.00"}},{"$f":"'LTC Rev-Exp Region 11'!M$39","v":{"v":0,"d":"$0.00"}},{"$f":"'LTC Rev-Exp Region 11'!N$39","v":{"v":0,"d":"$0.00"}},{"$f":"'LTC Rev-Exp Region 11'!O$39","v":{"v":0,"d":"$0.00"}},{"v":0,"d":"$0.00"}]
["LTC",null,null,{"$f":"Jurat!I$1","v":0},{"$f":"Jurat!D$33","v":"00:00:00"},"Q3","2017-09-30","Region 11","Operating Expense","Medical Expense","Expanded Benefits","3.2","Expanded Benefits Subcapitation",{"$f":"'LTC Rev-Exp Region 11'!L$40","v":{"v":0,"d":"$0.00"}},{"$f":"'LTC Rev-Exp Region 11'!M$40","v":{"v":0,"d":"$0.00"}},{"$f":"'LTC Rev-Exp Region 11'!N$40","v":{"v":0,"d":"$0.00"}},{"$f":"'LTC Rev-Exp Region 11'!O$40","v":{"v":0,"d":"$0.00"}},{"v":0,"d":"$0.00"}]
["LTC",null,null,{"$f":"Jurat!I$1","v":0},{"$f":"Jurat!D$33","v":"00:00:00"},"Q3","2017-09-30","Region 11","Operating Expense","Medical Expense","Expanded Benefits","3.3","Ending IBNP for Expanded Benefits",{"$f":"'LTC Rev-Exp Region 11'!L$41","v":{"v":0,"d":"$0.00"}},{"$f":"'LTC Rev-Exp Region 11'!M$41","v":{"v":0,"d":"$0.00"}},{"$f":"'LTC Rev-Exp Region 11'!N$41","v":{"v":0,"d":"$0.00"}},{"$f":"'LTC Rev-Exp Region 11'!O$41","v":{"v":0,"d":"$0.00"}},{"v":0,"d":"$0.00"}]
["LTC",null,null,{"$f":"Jurat!I$1","v":0},{"$f":"Jurat!D$33","v":"00:00:00"},"Q3","2017-09-30","Region 11","Operating Expense","Medical Expense","Expanded Benefits","3.4","Expanded Benefits Settlements",{"$f":"'LTC Rev-Exp Region 11'!L$42","v":{"v":0,"d":"$0.00"}},{"$f":"'LTC Rev-Exp Region 11'!M$42","v":{"v":0,"d":"$0.00"}},{"$f":"'LTC Rev-Exp Region 11'!N$42","v":{"v":0,"d":"$0.00"}},{"$f":"'LTC Rev-Exp Region 11'!O$42","v":{"v":0,"d":"$0.00"}},{"v":0,"d":"$0.00"}]
["LTC",null,null,{"$f":"Jurat!I$1","v":0},{"$f":"Jurat!D$33","v":"00:00:00"},"Q3","2017-09-30","Region 11","Operating Expense","Medical Expense","Other Medical","4.5","TPL & Fraud/Abuse Recoveries",{"$f":"'LTC Rev-Exp Region 11'!L$48","v":{"v":0,"d":"$0.00"}},{"$f":"'LTC Rev-Exp Region 11'!M$48","v":{"v":0,"d":"$0.00"}},{"$f":"'LTC Rev-Exp Region 11'!N$48","v":{"v":0,"d":"$0.00"}},{"$f":"'LTC Rev-Exp Region 11'!O$48","v":{"v":0,"d":"$0.00"}},{"v":0,"d":"$0.00"}]
["LTC",null,null,{"$f":"Jurat!I$1","v":0},{"$f":"Jurat!D$33","v":"00:00:00"},"Q3","2017-09-30","Region 11","Operating Expense","Medical Expense","Other Medical","4.6.1","Premium Deficiency Reserve",{"$f":"'LTC Rev-Exp Region 11'!L$49","v":{"v":0,"d":"$0.00"}},{"$f":"'LTC Rev-Exp Region 11'!M$49","v":{"v":0,"d":"$0.00"}},{"$f":"'LTC Rev-Exp Region 11'!N$49","v":{"v":0,"d":"$0.00"}},{"$f":"'LTC Rev-Exp Region 11'!O$49","v":{"v":0,"d":"$0.00"}},{"v":0,"d":"$0.00"}]
["LTC",null,null,{"$f":"Jurat!I$1","v":0},{"$f":"Jurat!D$33","v":"00:00:00"},"Q3","2017-09-30","Region 11","Operating Expense","Medical Expense","Other Medical","4.8","Reinsurance Premiums",{"$f":"'LTC Rev-Exp Region 11'!L$51","v":{"v":0,"d":"$0.00"}},{"$f":"'LTC Rev-Exp Region 11'!M$51","v":{"v":0,"d":"$0.00"}},{"$f":"'LTC Rev-Exp Region 11'!N$51","v":{"v":0,"d":"$0.00"}},{"$f":"'LTC Rev-Exp Region 11'!O$51","v":{"v":0,"d":"$0.00"}},{"v":0,"d":"$0.00"}]
["LTC",null,null,{"$f":"Jurat!I$1","v":0},{"$f":"Jurat!D$33","v":"00:00:00"},"Q3","2017-09-30","Region 11","Operating Expense","Medical Expense","Other Medical","4.9","Reinsurance Recoveries",{"$f":"'LTC Rev-Exp Region 11'!L$52","v":{"v":0,"d":"$0.00"}},{"$f":"'LTC Rev-Exp Region 11'!M$52","v":{"v":0,"d":"$0.00"}},{"$f":"'LTC Rev-Exp Region 11'!N$52","v":{"v":0,"d":"$0.00"}},{"$f":"'LTC Rev-Exp Region 11'!O$52","v":{"v":0,"d":"$0.00"}},{"v":0,"d":"$0.00"}]
["LTC",null,null,{"$f":"Jurat!I$1","v":0},{"$f":"Jurat!D$33","v":"00:00:00"},"Q3","2017-09-30","Region 11","Operating Expense","Administrative Expense","Administrative","5.1","Salaries & Benefits",{"$f":"'LTC Rev-Exp Region 11'!L$57","v":{"v":0,"d":"$0.00"}},{"$f":"'LTC Rev-Exp Region 11'!M$57","v":{"v":0,"d":"$0.00"}},{"$f":"'LTC Rev-Exp Region 11'!N$57","v":{"v":0,"d":"$0.00"}},{"$f":"'LTC Rev-Exp Region 11'!O$57","v":{"v":0,"d":"$0.00"}},{"v":0,"d":"$0.00"}]
["LTC",null,null,{"$f":"Jurat!I$1","v":0},{"$f":"Jurat!D$33","v":"00:00:00"},"Q3","2017-09-30","Region 11","Operating Expense","Administrative Expense","Administrative","5.2","Administrative Services",{"$f":"'LTC Rev-Exp Region 11'!L$58","v":{"v":0,"d":"$0.00"}},{"$f":"'LTC Rev-Exp Region 11'!M$58","v":{"v":0,"d":"$0.00"}},{"$f":"'LTC Rev-Exp Region 11'!N$58","v":{"v":0,"d":"$0.00"}},{"$f":"'LTC Rev-Exp Region 11'!O$58","v":{"v":0,"d":"$0.00"}},{"v":0,"d":"$0.00"}]
["LTC",null,null,{"$f":"Jurat!I$1","v":0},{"$f":"Jurat!D$33","v":"00:00:00"},"Q3","2017-09-30","Region 11","Operating Expense","Administrative Expense","Administrative","5.3","Information Systems",{"$f":"'LTC Rev-Exp Region 11'!L$59","v":{"v":0,"d":"$0.00"}},{"$f":"'LTC Rev-Exp Region 11'!M$59","v":{"v":0,"d":"$0.00"}},{"$f":"'LTC Rev-Exp Region 11'!N$59","v":{"v":0,"d":"$0.00"}},{"$f":"'LTC Rev-Exp Region 11'!O$59","v":{"v":0,"d":"$0.00"}},{"v":0,"d":"$0.00"}]
["LTC",null,null,{"$f":"Jurat!I$1","v":0},{"$f":"Jurat!D$33","v":"00:00:00"},"Q3","2017-09-30","Region 11","Operating Expense","Administrative Expense","Administrative","5.4","Marketing Expenses",{"$f":"'LTC Rev-Exp Region 11'!L$60","v":{"v":0,"d":"$0.00"}},{"$f":"'LTC Rev-Exp Region 11'!M$60","v":{"v":0,"d":"$0.00"}},{"$f":"'LTC Rev-Exp Region 11'!N$60","v":{"v":0,"d":"$0.00"}},{"$f":"'LTC Rev-Exp Region 11'!O$60","v":{"v":0,"d":"$0.00"}},{"v":0,"d":"$0.00"}]
["LTC",null,null,{"$f":"Jurat!I$1","v":0},{"$f":"Jurat!D$33","v":"00:00:00"},"Q3","2017-09-30","Region 11","Operating Expense","Administrative Expense","Administrative","5.5","General  Administration",{"$f":"'LTC Rev-Exp Region 11'!L$61","v":{"v":0,"d":"$0.00"}},{"$f":"'LTC Rev-Exp Region 11'!M$61","v":{"v":0,"d":"$0.00"}},{"$f":"'LTC Rev-Exp Region 11'!N$61","v":{"v":0,"d":"$0.00"}},{"$f":"'LTC Rev-Exp Region 11'!O$61","v":{"v":0,"d":"$0.00"}},{"v":0,"d":"$0.00"}]
["LTC",null,null,{"$f":"Jurat!I$1","v":0},{"$f":"Jurat!D$33","v":"00:00:00"},"Q3","2017-09-30","Region 11","Operating Expense","Administrative Expense","Administrative","5.6","Compliance/Regulatory",{"$f":"'LTC Rev-Exp Region 11'!L$62","v":{"v":0,"d":"$0.00"}},{"$f":"'LTC Rev-Exp Region 11'!M$62","v":{"v":0,"d":"$0.00"}},{"$f":"'LTC Rev-Exp Region 11'!N$62","v":{"v":0,"d":"$0.00"}},{"$f":"'LTC Rev-Exp Region 11'!O$62","v":{"v":0,"d":"$0.00"}},{"v":0,"d":"$0.00"}]
["LTC",null,null,{"$f":"Jurat!I$1","v":0},{"$f":"Jurat!D$33","v":"00:00:00"},"Q3","2017-09-30","Region 11","Operating Expense","Taxes & Fees","Taxes & Fees","6.1","State Premium Tax",{"$f":"'LTC Rev-Exp Region 11'!L$64","v":{"v":0,"d":"$0.00"}},{"v":0,"d":"$0.00"},{"v":0,"d":"$0.00"},{"v":0,"d":"$0.00"},{"v":0,"d":"$0.00"}]
["LTC",null,null,{"$f":"Jurat!I$1","v":0},{"$f":"Jurat!D$33","v":"00:00:00"},"Q3","2017-09-30","Region 11","Operating Expense","Taxes & Fees","Taxes & Fees","6.2","Department of Insurance Assessments",{"$f":"'LTC Rev-Exp Region 11'!L$65","v":{"v":0,"d":"$0.00"}},{"v":0,"d":"$0.00"},{"v":0,"d":"$0.00"},{"v":0,"d":"$0.00"},{"v":0,"d":"$0.00"}]
["LTC",null,null,{"$f":"Jurat!I$1","v":0},{"$f":"Jurat!D$33","v":"00:00:00"},"Q3","2017-09-30","Region 11","Non-Operating Expense","Income Tax Expense","Income Tax Expense","9.0","Income Tax Expense",{"$f":"'LTC Rev-Exp Region 11'!L$72","v":{"v":0,"d":"$0.00"}},{"v":0,"d":"$0.00"},{"v":0,"d":"$0.00"},{"v":0,"d":"$0.00"},{"v":0,"d":"$0.00"}]
["LTC",null,null,{"$f":"Jurat!I$1","v":0},{"$f":"Jurat!D$33","v":"00:00:00"},"Q4","2017-12-31","Region 11","Member Months","Member Months","Member Months",null,"Member Months",{"$f":"'LTC Rev-Exp Region 11'!P$9","v":{"v":0,"d":"$0.00"}},{"$f":"'LTC Rev-Exp Region 11'!Q$9","v":{"v":0,"d":"$0.00"}},{"$f":"'LTC Rev-Exp Region 11'!R$9","v":{"v":0,"d":"$0.00"}},{"$f":"'LTC Rev-Exp Region 11'!S$9","v":{"v":0,"d":"$0.00"}},{"v":0,"d":"$0.00"}]
["LTC",null,null,{"$f":"Jurat!I$1","v":0},{"$f":"Jurat!D$33","v":"00:00:00"},"Q4","2017-12-31","Region 11","Operating Revenue","Capitation","Capitation",1.1,"Capitation",{"$f":"'LTC Rev-Exp Region 11'!P$11","v":{"v":0,"d":"$0.00"}},{"$f":"'LTC Rev-Exp Region 11'!Q$11","v":{"v":0,"d":"$0.00"}},{"$f":"'LTC Rev-Exp Region 11'!R$11","v":{"v":0,"d":"$0.00"}},{"$f":"'LTC Rev-Exp Region 11'!S$11","v":{"v":0,"d":"$0.00"}},{"v":0,"d":"$0.00"}]
["LTC",null,null,{"$f":"Jurat!I$1","v":0},{"$f":"Jurat!D$33","v":"00:00:00"},"Q4","2017-12-31","Region 11","Operating Revenue","Capitation","NH Rate Reconciliation",1.2,"NH Rate Reconciliation",{"$f":"'LTC Rev-Exp Region 11'!P$12","v":{"v":0,"d":"$0.00"}},{"$f":"'LTC Rev-Exp Region 11'!Q$12","v":{"v":0,"d":"$0.00"}},{"$f":"'LTC Rev-Exp Region 11'!R$12","v":{"v":0,"d":"$0.00"}},{"$f":"'LTC Rev-Exp Region 11'!S$12","v":{"v":0,"d":"$0.00"}},{"v":0,"d":"$0.00"}]
["LTC",null,null,{"$f":"Jurat!I$1","v":0},{"$f":"Jurat!D$33","v":"00:00:00"},"Q4","2017-12-31","Region 11","Operating Revenue","Other Revenue","Other Revenue",1.3,"Other Revenue",{"$f":"'LTC Rev-Exp Region 11'!P$13","v":{"v":0,"d":"$0.00"}},{"$f":"'LTC Rev-Exp Region 11'!Q$13","v":{"v":0,"d":"$0.00"}},{"$f":"'LTC Rev-Exp Region 11'!R$13","v":{"v":0,"d":"$0.00"}},{"$f":"'LTC Rev-Exp Region 11'!S$13","v":{"v":0,"d":"$0.00"}},{"v":0,"d":"$0.00"}]
["LTC",null,null,{"$f":"Jurat!I$1","v":0},{"$f":"Jurat!D$33","v":"00:00:00"},"Q4","2017-12-31","Region 11","Operating Expense","Medical Expense","NF & Hospice","2.1","Nursing Facility Days (Medicaid)",{"$f":"'LTC Rev-Exp Region 11'!P$17","v":{"v":0,"d":"$0.00"}},{"$f":"'LTC Rev-Exp Region 11'!Q$17","v":{"v":0,"d":"$0.00"}},{"$f":"'LTC Rev-Exp Region 11'!R$17","v":{"v":0,"d":"$0.00"}},{"$f":"'LTC Rev-Exp Region 11'!S$17","v":{"v":0,"d":"$0.00"}},{"v":0,"d":"$0.00"}]
["LTC",null,null,{"$f":"Jurat!I$1","v":0},{"$f":"Jurat!D$33","v":"00:00:00"},"Q4","2017-12-31","Region 11","Operating Expense","Medical Expense","NF & Hospice","2.2","Nursing Facility Days (Crossover)",{"$f":"'LTC Rev-Exp Region 11'!P$18","v":{"v":0,"d":"$0.00"}},{"$f":"'LTC Rev-Exp Region 11'!Q$18","v":{"v":0,"d":"$0.00"}},{"$f":"'LTC Rev-Exp Region 11'!R$18","v":{"v":0,"d":"$0.00"}},{"$f":"'LTC Rev-Exp Region 11'!S$18","v":{"v":0,"d":"$0.00"}},{"v":0,"d":"$0.00"}]
["LTC",null,null,{"$f":"Jurat!I$1","v":0},{"$f":"Jurat!D$33","v":"00:00:00"},"Q4","2017-12-31","Region 11","Operating Expense","Medical Expense","NF & Hospice","2.3","Nursing Facility FFS (Medicaid)",{"$f":"'LTC Rev-Exp Region 11'!P$19","v":{"v":0,"d":"$0.00"}},{"$f":"'LTC Rev-Exp Region 11'!Q$19","v":{"v":0,"d":"$0.00"}},{"$f":"'LTC Rev-Exp Region 11'!R$19","v":{"v":0,"d":"$0.00"}},{"$f":"'LTC Rev-Exp Region 11'!S$19","v":{"v":0,"d":"$0.00"}},{"v":0,"d":"$0.00"}]
["LTC",null,null,{"$f":"Jurat!I$1","v":0},{"$f":"Jurat!D$33","v":"00:00:00"},"Q4","2017-12-31","Region 11","Operating Expense","Medical Expense","NF & Hospice","2.4","Nursing Facility FFS (Crossover)",{"$f":"'LTC Rev-Exp Region 11'!P$20","v":{"v":0,"d":"$0.00"}},{"$f":"'LTC Rev-Exp Region 11'!Q$20","v":{"v":0,"d":"$0.00"}},{"$f":"'LTC Rev-Exp Region 11'!R$20","v":{"v":0,"d":"$0.00"}},{"$f":"'LTC Rev-Exp Region 11'!S$20","v":{"v":0,"d":"$0.00"}},{"v":0,"d":"$0.00"}]
["LTC",null,null,{"$f":"Jurat!I$1","v":0},{"$f":"Jurat!D$33","v":"00:00:00"},"Q4","2017-12-31","Region 11","Operating Expense","Medical Expense","NF & Hospice","2.5","Hospice Days",{"$f":"'LTC Rev-Exp Region 11'!P$21","v":{"v":0,"d":"$0.00"}},{"$f":"'LTC Rev-Exp Region 11'!Q$21","v":{"v":0,"d":"$0.00"}},{"$f":"'LTC Rev-Exp Region 11'!R$21","v":{"v":0,"d":"$0.00"}},{"$f":"'LTC Rev-Exp Region 11'!S$21","v":{"v":0,"d":"$0.00"}},{"v":0,"d":"$0.00"}]
["LTC",null,null,{"$f":"Jurat!I$1","v":0},{"$f":"Jurat!D$33","v":"00:00:00"},"Q4","2017-12-31","Region 11","Operating Expense","Medical Expense","NF & Hospice","2.6","Hospice FFS",{"$f":"'LTC Rev-Exp Region 11'!P$22","v":{"v":0,"d":"$0.00"}},{"$f":"'LTC Rev-Exp Region 11'!Q$22","v":{"v":0,"d":"$0.00"}},{"$f":"'LTC Rev-Exp Region 11'!R$22","v":{"v":0,"d":"$0.00"}},{"$f":"'LTC Rev-Exp Region 11'!S$22","v":{"v":0,"d":"$0.00"}},{"v":0,"d":"$0.00"}]
["LTC",null,null,{"$f":"Jurat!I$1","v":0},{"$f":"Jurat!D$33","v":"00:00:00"},"Q4","2017-12-31","Region 11","Operating Expense","Medical Expense","NF & Hospice","2.7","Ending IBNP for NF & Hospice",{"$f":"'LTC Rev-Exp Region 11'!P$23","v":{"v":0,"d":"$0.00"}},{"$f":"'LTC Rev-Exp Region 11'!Q$23","v":{"v":0,"d":"$0.00"}},{"$f":"'LTC Rev-Exp Region 11'!R$23","v":{"v":0,"d":"$0.00"}},{"$f":"'LTC Rev-Exp Region 11'!S$23","v":{"v":0,"d":"$0.00"}},{"v":0,"d":"$0.00"}]
["LTC",null,null,{"$f":"Jurat!I$1","v":0},{"$f":"Jurat!D$33","v":"00:00:00"},"Q4","2017-12-31","Region 11","Operating Expense","Medical Expense","NF & Hospice","2.8","NF & Hospice Subcapitated",{"$f":"'LTC Rev-Exp Region 11'!P$24","v":{"v":0,"d":"$0.00"}},{"$f":"'LTC Rev-Exp Region 11'!Q$24","v":{"v":0,"d":"$0.00"}},{"$f":"'LTC Rev-Exp Region 11'!R$24","v":{"v":0,"d":"$0.00"}},{"$f":"'LTC Rev-Exp Region 11'!S$24","v":{"v":0,"d":"$0.00"}},{"v":0,"d":"$0.00"}]
["LTC",null,null,{"$f":"Jurat!I$1","v":0},{"$f":"Jurat!D$33","v":"00:00:00"},"Q4","2017-12-31","Region 11","Operating Expense","Medical Expense","NF & Hospice","2.9","NF & Hospice Settlements",{"$f":"'LTC Rev-Exp Region 11'!P$25","v":{"v":0,"d":"$0.00"}},{"$f":"'LTC Rev-Exp Region 11'!Q$25","v":{"v":0,"d":"$0.00"}},{"$f":"'LTC Rev-Exp Region 11'!R$25","v":{"v":0,"d":"$0.00"}},{"$f":"'LTC Rev-Exp Region 11'!S$25","v":{"v":0,"d":"$0.00"}},{"v":0,"d":"$0.00"}]
["LTC",null,null,{"$f":"Jurat!I$1","v":0},{"$f":"Jurat!D$33","v":"00:00:00"},"Q4","2017-12-31","Region 11","Operating Expense","Medical Expense","LTC Services","2.11","Assisted Living FFS",{"$f":"'LTC Rev-Exp Region 11'!P$27","v":{"v":0,"d":"$0.00"}},{"$f":"'LTC Rev-Exp Region 11'!Q$27","v":{"v":0,"d":"$0.00"}},{"$f":"'LTC Rev-Exp Region 11'!R$27","v":{"v":0,"d":"$0.00"}},{"$f":"'LTC Rev-Exp Region 11'!S$27","v":{"v":0,"d":"$0.00"}},{"v":0,"d":"$0.00"}]
["LTC",null,null,{"$f":"Jurat!I$1","v":0},{"$f":"Jurat!D$33","v":"00:00:00"},"Q4","2017-12-31","Region 11","Operating Expense","Medical Expense","LTC Services","2.12","Home Health FFS",{"$f":"'LTC Rev-Exp Region 11'!P$28","v":{"v":0,"d":"$0.00"}},{"$f":"'LTC Rev-Exp Region 11'!Q$28","v":{"v":0,"d":"$0.00"}},{"$f":"'LTC Rev-Exp Region 11'!R$28","v":{"v":0,"d":"$0.00"}},{"$f":"'LTC Rev-Exp Region 11'!S$28","v":{"v":0,"d":"$0.00"}},{"v":0,"d":"$0.00"}]
["LTC",null,null,{"$f":"Jurat!I$1","v":0},{"$f":"Jurat!D$33","v":"00:00:00"},"Q4","2017-12-31","Region 11","Operating Expense","Medical Expense","LTC Services","2.13","Medical Equipment/Supplies FFS",{"$f":"'LTC Rev-Exp Region 11'!P$29","v":{"v":0,"d":"$0.00"}},{"$f":"'LTC Rev-Exp Region 11'!Q$29","v":{"v":0,"d":"$0.00"}},{"$f":"'LTC Rev-Exp Region 11'!R$29","v":{"v":0,"d":"$0.00"}},{"$f":"'LTC Rev-Exp Region 11'!S$29","v":{"v":0,"d":"$0.00"}},{"v":0,"d":"$0.00"}]
["LTC",null,null,{"$f":"Jurat!I$1","v":0},{"$f":"Jurat!D$33","v":"00:00:00"},"Q4","2017-12-31","Region 11","Operating Expense","Medical Expense","LTC Services","2.14","Therapy FFS",{"$f":"'LTC Rev-Exp Region 11'!P$30","v":{"v":0,"d":"$0.00"}},{"$f":"'LTC Rev-Exp Region 11'!Q$30","v":{"v":0,"d":"$0.00"}},{"$f":"'LTC Rev-Exp Region 11'!R$30","v":{"v":0,"d":"$0.00"}},{"$f":"'LTC Rev-Exp Region 11'!S$30","v":{"v":0,"d":"$0.00"}},{"v":0,"d":"$0.00"}]
["LTC",null,null,{"$f":"Jurat!I$1","v":0},{"$f":"Jurat!D$33","v":"00:00:00"},"Q4","2017-12-31","Region 11","Operating Expense","Medical Expense","LTC Services","2.15","Transportation FFS",{"$f":"'LTC Rev-Exp Region 11'!P$31","v":{"v":0,"d":"$0.00"}},{"$f":"'LTC Rev-Exp Region 11'!Q$31","v":{"v":0,"d":"$0.00"}},{"$f":"'LTC Rev-Exp Region 11'!R$31","v":{"v":0,"d":"$0.00"}},{"$f":"'LTC Rev-Exp Region 11'!S$31","v":{"v":0,"d":"$0.00"}},{"v":0,"d":"$0.00"}]
["LTC",null,null,{"$f":"Jurat!I$1","v":0},{"$f":"Jurat!D$33","v":"00:00:00"},"Q4","2017-12-31","Region 11","Operating Expense","Medical Expense","LTC Services","2.16","Case Management FFS (Plan Provided)",{"$f":"'LTC Rev-Exp Region 11'!P$32","v":{"v":0,"d":"$0.00"}},{"$f":"'LTC Rev-Exp Region 11'!Q$32","v":{"v":0,"d":"$0.00"}},{"$f":"'LTC Rev-Exp Region 11'!R$32","v":{"v":0,"d":"$0.00"}},{"$f":"'LTC Rev-Exp Region 11'!S$32","v":{"v":0,"d":"$0.00"}},{"v":0,"d":"$0.00"}]
["LTC",null,null,{"$f":"Jurat!I$1","v":0},{"$f":"Jurat!D$33","v":"00:00:00"},"Q4","2017-12-31","Region 11","Operating Expense","Medical Expense","LTC Services","2.17","Case Management FF (Non-Plan Provided)",{"$f":"'LTC Rev-Exp Region 11'!P$33","v":{"v":0,"d":"$0.00"}},{"$f":"'LTC Rev-Exp Region 11'!Q$33","v":{"v":0,"d":"$0.00"}},{"$f":"'LTC Rev-Exp Region 11'!R$33","v":{"v":0,"d":"$0.00"}},{"$f":"'LTC Rev-Exp Region 11'!S$33","v":{"v":0,"d":"$0.00"}},{"v":0,"d":"$0.00"}]
["LTC",null,null,{"$f":"Jurat!I$1","v":0},{"$f":"Jurat!D$33","v":"00:00:00"},"Q4","2017-12-31","Region 11","Operating Expense","Medical Expense","LTC Services","2.18","HCBS FFS",{"$f":"'LTC Rev-Exp Region 11'!P$34","v":{"v":0,"d":"$0.00"}},{"$f":"'LTC Rev-Exp Region 11'!Q$34","v":{"v":0,"d":"$0.00"}},{"$f":"'LTC Rev-Exp Region 11'!R$34","v":{"v":0,"d":"$0.00"}},{"$f":"'LTC Rev-Exp Region 11'!S$34","v":{"v":0,"d":"$0.00"}},{"v":0,"d":"$0.00"}]
["LTC",null,null,{"$f":"Jurat!I$1","v":0},{"$f":"Jurat!D$33","v":"00:00:00"},"Q4","2017-12-31","Region 11","Operating Expense","Medical Expense","LTC Services","2.19","Subcapitated LTC Services",{"$f":"'LTC Rev-Exp Region 11'!P$35","v":{"v":0,"d":"$0.00"}},{"$f":"'LTC Rev-Exp Region 11'!Q$35","v":{"v":0,"d":"$0.00"}},{"$f":"'LTC Rev-Exp Region 11'!R$35","v":{"v":0,"d":"$0.00"}},{"$f":"'LTC Rev-Exp Region 11'!S$35","v":{"v":0,"d":"$0.00"}},{"v":0,"d":"$0.00"}]
["LTC",null,null,{"$f":"Jurat!I$1","v":0},{"$f":"Jurat!D$33","v":"00:00:00"},"Q4","2017-12-31","Region 11","Operating Expense","Medical Expense","LTC Services","2.20","Ending IBNP for Long Term Care Services",{"$f":"'LTC Rev-Exp Region 11'!P$36","v":{"v":0,"d":"$0.00"}},{"$f":"'LTC Rev-Exp Region 11'!Q$36","v":{"v":0,"d":"$0.00"}},{"$f":"'LTC Rev-Exp Region 11'!R$36","v":{"v":0,"d":"$0.00"}},{"$f":"'LTC Rev-Exp Region 11'!S$36","v":{"v":0,"d":"$0.00"}},{"v":0,"d":"$0.00"}]
["LTC",null,null,{"$f":"Jurat!I$1","v":0},{"$f":"Jurat!D$33","v":"00:00:00"},"Q4","2017-12-31","Region 11","Operating Expense","Medical Expense","LTC Services","2.21","LTC Services Settlements",{"$f":"'LTC Rev-Exp Region 11'!P$37","v":{"v":0,"d":"$0.00"}},{"$f":"'LTC Rev-Exp Region 11'!Q$37","v":{"v":0,"d":"$0.00"}},{"$f":"'LTC Rev-Exp Region 11'!R$37","v":{"v":0,"d":"$0.00"}},{"$f":"'LTC Rev-Exp Region 11'!S$37","v":{"v":0,"d":"$0.00"}},{"v":0,"d":"$0.00"}]
["LTC",null,null,{"$f":"Jurat!I$1","v":0},{"$f":"Jurat!D$33","v":"00:00:00"},"Q4","2017-12-31","Region 11","Operating Expense","Medical Expense","Expanded Benefits","3.1","Expanded Benefits FFS",{"$f":"'LTC Rev-Exp Region 11'!P$39","v":{"v":0,"d":"$0.00"}},{"$f":"'LTC Rev-Exp Region 11'!Q$39","v":{"v":0,"d":"$0.00"}},{"$f":"'LTC Rev-Exp Region 11'!R$39","v":{"v":0,"d":"$0.00"}},{"$f":"'LTC Rev-Exp Region 11'!S$39","v":{"v":0,"d":"$0.00"}},{"v":0,"d":"$0.00"}]
["LTC",null,null,{"$f":"Jurat!I$1","v":0},{"$f":"Jurat!D$33","v":"00:00:00"},"Q4","2017-12-31","Region 11","Operating Expense","Medical Expense","Expanded Benefits","3.2","Expanded Benefits Subcapitation",{"$f":"'LTC Rev-Exp Region 11'!P$40","v":{"v":0,"d":"$0.00"}},{"$f":"'LTC Rev-Exp Region 11'!Q$40","v":{"v":0,"d":"$0.00"}},{"$f":"'LTC Rev-Exp Region 11'!R$40","v":{"v":0,"d":"$0.00"}},{"$f":"'LTC Rev-Exp Region 11'!S$40","v":{"v":0,"d":"$0.00"}},{"v":0,"d":"$0.00"}]
["LTC",null,null,{"$f":"Jurat!I$1","v":0},{"$f":"Jurat!D$33","v":"00:00:00"},"Q4","2017-12-31","Region 11","Operating Expense","Medical Expense","Expanded Benefits","3.3","Ending IBNP for Expanded Benefits",{"$f":"'LTC Rev-Exp Region 11'!P$41","v":{"v":0,"d":"$0.00"}},{"$f":"'LTC Rev-Exp Region 11'!Q$41","v":{"v":0,"d":"$0.00"}},{"$f":"'LTC Rev-Exp Region 11'!R$41","v":{"v":0,"d":"$0.00"}},{"$f":"'LTC Rev-Exp Region 11'!S$41","v":{"v":0,"d":"$0.00"}},{"v":0,"d":"$0.00"}]
["LTC",null,null,{"$f":"Jurat!I$1","v":0},{"$f":"Jurat!D$33","v":"00:00:00"},"Q4","2017-12-31","Region 11","Operating Expense","Medical Expense","Expanded Benefits","3.4","Expanded Benefits Settlements",{"$f":"'LTC Rev-Exp Region 11'!P$42","v":{"v":0,"d":"$0.00"}},{"$f":"'LTC Rev-Exp Region 11'!Q$42","v":{"v":0,"d":"$0.00"}},{"$f":"'LTC Rev-Exp Region 11'!R$42","v":{"v":0,"d":"$0.00"}},{"$f":"'LTC Rev-Exp Region 11'!S$42","v":{"v":0,"d":"$0.00"}},{"v":0,"d":"$0.00"}]
["LTC",null,null,{"$f":"Jurat!I$1","v":0},{"$f":"Jurat!D$33","v":"00:00:00"},"Q4","2017-12-31","Region 11","Operating Expense","Medical Expense","Other Medical","4.5","TPL & Fraud/Abuse Recoveries",{"$f":"'LTC Rev-Exp Region 11'!P$48","v":{"v":0,"d":"$0.00"}},{"$f":"'LTC Rev-Exp Region 11'!Q$48","v":{"v":0,"d":"$0.00"}},{"$f":"'LTC Rev-Exp Region 11'!R$48","v":{"v":0,"d":"$0.00"}},{"$f":"'LTC Rev-Exp Region 11'!S$48","v":{"v":0,"d":"$0.00"}},{"v":0,"d":"$0.00"}]
["LTC",null,null,{"$f":"Jurat!I$1","v":0},{"$f":"Jurat!D$33","v":"00:00:00"},"Q4","2017-12-31","Region 11","Operating Expense","Medical Expense","Other Medical","4.6.1","Premium Deficiency Reserve",{"$f":"'LTC Rev-Exp Region 11'!P$49","v":{"v":0,"d":"$0.00"}},{"$f":"'LTC Rev-Exp Region 11'!Q$49","v":{"v":0,"d":"$0.00"}},{"$f":"'LTC Rev-Exp Region 11'!R$49","v":{"v":0,"d":"$0.00"}},{"$f":"'LTC Rev-Exp Region 11'!S$49","v":{"v":0,"d":"$0.00"}},{"v":0,"d":"$0.00"}]
["LTC",null,null,{"$f":"Jurat!I$1","v":0},{"$f":"Jurat!D$33","v":"00:00:00"},"Q4","2017-12-31","Region 11","Operating Expense","Medical Expense","Other Medical","4.8","Reinsurance Premiums",{"$f":"'LTC Rev-Exp Region 11'!P$51","v":{"v":0,"d":"$0.00"}},{"$f":"'LTC Rev-Exp Region 11'!Q$51","v":{"v":0,"d":"$0.00"}},{"$f":"'LTC Rev-Exp Region 11'!R$51","v":{"v":0,"d":"$0.00"}},{"$f":"'LTC Rev-Exp Region 11'!S$51","v":{"v":0,"d":"$0.00"}},{"v":0,"d":"$0.00"}]
["LTC",null,null,{"$f":"Jurat!I$1","v":0},{"$f":"Jurat!D$33","v":"00:00:00"},"Q4","2017-12-31","Region 11","Operating Expense","Medical Expense","Other Medical","4.9","Reinsurance Recoveries",{"$f":"'LTC Rev-Exp Region 11'!P$52","v":{"v":0,"d":"$0.00"}},{"$f":"'LTC Rev-Exp Region 11'!Q$52","v":{"v":0,"d":"$0.00"}},{"$f":"'LTC Rev-Exp Region 11'!R$52","v":{"v":0,"d":"$0.00"}},{"$f":"'LTC Rev-Exp Region 11'!S$52","v":{"v":0,"d":"$0.00"}},{"v":0,"d":"$0.00"}]
["LTC",null,null,{"$f":"Jurat!I$1","v":0},{"$f":"Jurat!D$33","v":"00:00:00"},"Q4","2017-12-31","Region 11","Operating Expense","Administrative Expense","Administrative","5.1","Salaries & Benefits",{"$f":"'LTC Rev-Exp Region 11'!P$57","v":{"v":0,"d":"$0.00"}},{"$f":"'LTC Rev-Exp Region 11'!Q$57","v":{"v":0,"d":"$0.00"}},{"$f":"'LTC Rev-Exp Region 11'!R$57","v":{"v":0,"d":"$0.00"}},{"$f":"'LTC Rev-Exp Region 11'!S$57","v":{"v":0,"d":"$0.00"}},{"v":0,"d":"$0.00"}]
["LTC",null,null,{"$f":"Jurat!I$1","v":0},{"$f":"Jurat!D$33","v":"00:00:00"},"Q4","2017-12-31","Region 11","Operating Expense","Administrative Expense","Administrative","5.2","Administrative Services",{"$f":"'LTC Rev-Exp Region 11'!P$58","v":{"v":0,"d":"$0.00"}},{"$f":"'LTC Rev-Exp Region 11'!Q$58","v":{"v":0,"d":"$0.00"}},{"$f":"'LTC Rev-Exp Region 11'!R$58","v":{"v":0,"d":"$0.00"}},{"$f":"'LTC Rev-Exp Region 11'!S$58","v":{"v":0,"d":"$0.00"}},{"v":0,"d":"$0.00"}]
["LTC",null,null,{"$f":"Jurat!I$1","v":0},{"$f":"Jurat!D$33","v":"00:00:00"},"Q4","2017-12-31","Region 11","Operating Expense","Administrative Expense","Administrative","5.3","Information Systems",{"$f":"'LTC Rev-Exp Region 11'!P$59","v":{"v":0,"d":"$0.00"}},{"$f":"'LTC Rev-Exp Region 11'!Q$59","v":{"v":0,"d":"$0.00"}},{"$f":"'LTC Rev-Exp Region 11'!R$59","v":{"v":0,"d":"$0.00"}},{"$f":"'LTC Rev-Exp Region 11'!S$59","v":{"v":0,"d":"$0.00"}},{"v":0,"d":"$0.00"}]
["LTC",null,null,{"$f":"Jurat!I$1","v":0},{"$f":"Jurat!D$33","v":"00:00:00"},"Q4","2017-12-31","Region 11","Operating Expense","Administrative Expense","Administrative","5.4","Marketing Expenses",{"$f":"'LTC Rev-Exp Region 11'!P$60","v":{"v":0,"d":"$0.00"}},{"$f":"'LTC Rev-Exp Region 11'!Q$60","v":{"v":0,"d":"$0.00"}},{"$f":"'LTC Rev-Exp Region 11'!R$60","v":{"v":0,"d":"$0.00"}},{"$f":"'LTC Rev-Exp Region 11'!S$60","v":{"v":0,"d":"$0.00"}},{"v":0,"d":"$0.00"}]
["LTC",null,null,{"$f":"Jurat!I$1","v":0},{"$f":"Jurat!D$33","v":"00:00:00"},"Q4","2017-12-31","Region 11","Operating Expense","Administrative Expense","Administrative","5.5","General  Administration",{"$f":"'LTC Rev-Exp Region 11'!P$61","v":{"v":0,"d":"$0.00"}},{"$f":"'LTC Rev-Exp Region 11'!Q$61","v":{"v":0,"d":"$0.00"}},{"$f":"'LTC Rev-Exp Region 11'!R$61","v":{"v":0,"d":"$0.00"}},{"$f":"'LTC Rev-Exp Region 11'!S$61","v":{"v":0,"d":"$0.00"}},{"v":0,"d":"$0.00"}]
["LTC",null,null,{"$f":"Jurat!I$1","v":0},{"$f":"Jurat!D$33","v":"00:00:00"},"Q4","2017-12-31","Region 11","Operating Expense","Administrative Expense","Administrative","5.6","Compliance/Regulatory",{"$f":"'LTC Rev-Exp Region 11'!P$62","v":{"v":0,"d":"$0.00"}},{"$f":"'LTC Rev-Exp Region 11'!Q$62","v":{"v":0,"d":"$0.00"}},{"$f":"'LTC Rev-Exp Region 11'!R$62","v":{"v":0,"d":"$0.00"}},{"$f":"'LTC Rev-Exp Region 11'!S$62","v":{"v":0,"d":"$0.00"}},{"v":0,"d":"$0.00"}]
["LTC",null,null,{"$f":"Jurat!I$1","v":0},{"$f":"Jurat!D$33","v":"00:00:00"},"Q4","2017-12-31","Region 11","Operating Expense","Taxes & Fees","Taxes & Fees","6.1","State Premium Tax",{"$f":"'LTC Rev-Exp Region 11'!P$64","v":{"v":0,"d":"$0.00"}},{"v":0,"d":"$0.00"},{"v":0,"d":"$0.00"},{"v":0,"d":"$0.00"},{"v":0,"d":"$0.00"}]
["LTC",null,null,{"$f":"Jurat!I$1","v":0},{"$f":"Jurat!D$33","v":"00:00:00"},"Q4","2017-12-31","Region 11","Operating Expense","Taxes & Fees","Taxes & Fees","6.2","Department of Insurance Assessments",{"$f":"'LTC Rev-Exp Region 11'!P$65","v":{"v":0,"d":"$0.00"}},{"v":0,"d":"$0.00"},{"v":0,"d":"$0.00"},{"v":0,"d":"$0.00"},{"v":0,"d":"$0.00"}]
["LTC",null,null,{"$f":"Jurat!I$1","v":0},{"$f":"Jurat!D$33","v":"00:00:00"},"Q4","2017-12-31","Region 11","Non-Operating Expense","Income Tax Expense","Income Tax Expense","9.0","Income Tax Expense",{"$f":"'LTC Rev-Exp Region 11'!P$72","v":{"v":0,"d":"$0.00"}},{"v":0,"d":"$0.00"},{"v":0,"d":"$0.00"},{"v":0,"d":"$0.00"},{"v":0,"d":"$0.00"}]
["LTC",null,null,{"$f":"Jurat!I$1","v":0},{"$f":"Jurat!D$33","v":"00:00:00"},"PY","1917-01-01","Region 11","Member Months","Member Months","Member Months",null,"Member Months",{"v":0,"d":"$0.00"},{"v":0,"d":"$0.00"},{"v":0,"d":"$0.00"},{"v":0,"d":"$0.00"},{"$f":"'LTC Rev-Exp Region 11'!T$9","v":{"v":0,"d":"$0.00"}}]
["LTC",null,null,{"$f":"Jurat!I$1","v":0},{"$f":"Jurat!D$33","v":"00:00:00"},"PY","1917-01-01","Region 11","Operating Revenue","Capitation","Capitation",1.1,"Capitation",{"v":0,"d":"$0.00"},{"v":0,"d":"$0.00"},{"v":0,"d":"$0.00"},{"v":0,"d":"$0.00"},{"$f":"'LTC Rev-Exp Region 11'!T$11","v":{"v":0,"d":"$0.00"}}]
["LTC",null,null,{"$f":"Jurat!I$1","v":0},{"$f":"Jurat!D$33","v":"00:00:00"},"PY","1917-01-01","Region 11","Operating Revenue","Capitation","NH Rate Reconciliation",1.2,"NH Rate Reconciliation",{"v":0,"d":"$0.00"},{"v":0,"d":"$0.00"},{"v":0,"d":"$0.00"},{"v":0,"d":"$0.00"},{"$f":"'LTC Rev-Exp Region 11'!T$12","v":{"v":0,"d":"$0.00"}}]
["LTC",null,null,{"$f":"Jurat!I$1","v":0},{"$f":"Jurat!D$33","v":"00:00:00"},"PY","1917-01-01","Region 11","Operating Revenue","Other Revenue","Other Revenue",1.3,"Other Revenue",{"v":0,"d":"$0.00"},{"v":0,"d":"$0.00"},{"v":0,"d":"$0.00"},{"v":0,"d":"$0.00"},{"$f":"'LTC Rev-Exp Region 11'!T$13","v":{"v":0,"d":"$0.00"}}]
["LTC",null,null,{"$f":"Jurat!I$1","v":0},{"$f":"Jurat!D$33","v":"00:00:00"},"PY","1917-01-01","Region 11","Operating Expense","Medical Expense","NF & Hospice","2.1","Nursing Facility Days (Medicaid)",{"v":0,"d":"$0.00"},{"v":0,"d":"$0.00"},{"v":0,"d":"$0.00"},{"v":0,"d":"$0.00"},{"$f":"'LTC Rev-Exp Region 11'!T$17","v":{"v":0,"d":"$0.00"}}]
["LTC",null,null,{"$f":"Jurat!I$1","v":0},{"$f":"Jurat!D$33","v":"00:00:00"},"PY","1917-01-01","Region 11","Operating Expense","Medical Expense","NF & Hospice","2.2","Nursing Facility Days (Crossover)",{"v":0,"d":"$0.00"},{"v":0,"d":"$0.00"},{"v":0,"d":"$0.00"},{"v":0,"d":"$0.00"},{"$f":"'LTC Rev-Exp Region 11'!T$18","v":{"v":0,"d":"$0.00"}}]
["LTC",null,null,{"$f":"Jurat!I$1","v":0},{"$f":"Jurat!D$33","v":"00:00:00"},"PY","1917-01-01","Region 11","Operating Expense","Medical Expense","NF & Hospice","2.3","Nursing Facility FFS (Medicaid)",{"v":0,"d":"$0.00"},{"v":0,"d":"$0.00"},{"v":0,"d":"$0.00"},{"v":0,"d":"$0.00"},{"$f":"'LTC Rev-Exp Region 11'!T$19","v":{"v":0,"d":"$0.00"}}]
["LTC",null,null,{"$f":"Jurat!I$1","v":0},{"$f":"Jurat!D$33","v":"00:00:00"},"PY","1917-01-01","Region 11","Operating Expense","Medical Expense","NF & Hospice","2.4","Nursing Facility FFS (Crossover)",{"v":0,"d":"$0.00"},{"v":0,"d":"$0.00"},{"v":0,"d":"$0.00"},{"v":0,"d":"$0.00"},{"$f":"'LTC Rev-Exp Region 11'!T$20","v":{"v":0,"d":"$0.00"}}]
["LTC",null,null,{"$f":"Jurat!I$1","v":0},{"$f":"Jurat!D$33","v":"00:00:00"},"PY","1917-01-01","Region 11","Operating Expense","Medical Expense","NF & Hospice","2.5","Hospice Days",{"v":0,"d":"$0.00"},{"v":0,"d":"$0.00"},{"v":0,"d":"$0.00"},{"v":0,"d":"$0.00"},{"$f":"'LTC Rev-Exp Region 11'!T$21","v":{"v":0,"d":"$0.00"}}]
["LTC",null,null,{"$f":"Jurat!I$1","v":0},{"$f":"Jurat!D$33","v":"00:00:00"},"PY","1917-01-01","Region 11","Operating Expense","Medical Expense","NF & Hospice","2.6","Hospice FFS",{"v":0,"d":"$0.00"},{"v":0,"d":"$0.00"},{"v":0,"d":"$0.00"},{"v":0,"d":"$0.00"},{"$f":"'LTC Rev-Exp Region 11'!T$22","v":{"v":0,"d":"$0.00"}}]
["LTC",null,null,{"$f":"Jurat!I$1","v":0},{"$f":"Jurat!D$33","v":"00:00:00"},"PY","1917-01-01","Region 11","Operating Expense","Medical Expense","NF & Hospice","2.7","Ending IBNP for NF & Hospice",{"v":0,"d":"$0.00"},{"v":0,"d":"$0.00"},{"v":0,"d":"$0.00"},{"v":0,"d":"$0.00"},{"$f":"'LTC Rev-Exp Region 11'!T$23","v":{"v":0,"d":"$0.00"}}]
["LTC",null,null,{"$f":"Jurat!I$1","v":0},{"$f":"Jurat!D$33","v":"00:00:00"},"PY","1917-01-01","Region 11","Operating Expense","Medical Expense","NF & Hospice","2.8","NF & Hospice Subcapitated",{"v":0,"d":"$0.00"},{"v":0,"d":"$0.00"},{"v":0,"d":"$0.00"},{"v":0,"d":"$0.00"},{"$f":"'LTC Rev-Exp Region 11'!T$24","v":{"v":0,"d":"$0.00"}}]
["LTC",null,null,{"$f":"Jurat!I$1","v":0},{"$f":"Jurat!D$33","v":"00:00:00"},"PY","1917-01-01","Region 11","Operating Expense","Medical Expense","NF & Hospice","2.9","NF & Hospice Settlements",{"v":0,"d":"$0.00"},{"v":0,"d":"$0.00"},{"v":0,"d":"$0.00"},{"v":0,"d":"$0.00"},{"$f":"'LTC Rev-Exp Region 11'!T$25","v":{"v":0,"d":"$0.00"}}]
["LTC",null,null,{"$f":"Jurat!I$1","v":0},{"$f":"Jurat!D$33","v":"00:00:00"},"PY","1917-01-01","Region 11","Operating Expense","Medical Expense","LTC Services","2.11","Assisted Living FFS",{"v":0,"d":"$0.00"},{"v":0,"d":"$0.00"},{"v":0,"d":"$0.00"},{"v":0,"d":"$0.00"},{"$f":"'LTC Rev-Exp Region 11'!T$27","v":{"v":0,"d":"$0.00"}}]
["LTC",null,null,{"$f":"Jurat!I$1","v":0},{"$f":"Jurat!D$33","v":"00:00:00"},"PY","1917-01-01","Region 11","Operating Expense","Medical Expense","LTC Services","2.12","Home Health FFS",{"v":0,"d":"$0.00"},{"v":0,"d":"$0.00"},{"v":0,"d":"$0.00"},{"v":0,"d":"$0.00"},{"$f":"'LTC Rev-Exp Region 11'!T$28","v":{"v":0,"d":"$0.00"}}]
["LTC",null,null,{"$f":"Jurat!I$1","v":0},{"$f":"Jurat!D$33","v":"00:00:00"},"PY","1917-01-01","Region 11","Operating Expense","Medical Expense","LTC Services","2.13","Medical Equipment/Supplies FFS",{"v":0,"d":"$0.00"},{"v":0,"d":"$0.00"},{"v":0,"d":"$0.00"},{"v":0,"d":"$0.00"},{"$f":"'LTC Rev-Exp Region 11'!T$29","v":{"v":0,"d":"$0.00"}}]
["LTC",null,null,{"$f":"Jurat!I$1","v":0},{"$f":"Jurat!D$33","v":"00:00:00"},"PY","1917-01-01","Region 11","Operating Expense","Medical Expense","LTC Services","2.14","Therapy FFS",{"v":0,"d":"$0.00"},{"v":0,"d":"$0.00"},{"v":0,"d":"$0.00"},{"v":0,"d":"$0.00"},{"$f":"'LTC Rev-Exp Region 11'!T$30","v":{"v":0,"d":"$0.00"}}]
["LTC",null,null,{"$f":"Jurat!I$1","v":0},{"$f":"Jurat!D$33","v":"00:00:00"},"PY","1917-01-01","Region 11","Operating Expense","Medical Expense","LTC Services","2.15","Transportation FFS",{"v":0,"d":"$0.00"},{"v":0,"d":"$0.00"},{"v":0,"d":"$0.00"},{"v":0,"d":"$0.00"},{"$f":"'LTC Rev-Exp Region 11'!T$31","v":{"v":0,"d":"$0.00"}}]
["LTC",null,null,{"$f":"Jurat!I$1","v":0},{"$f":"Jurat!D$33","v":"00:00:00"},"PY","1917-01-01","Region 11","Operating Expense","Medical Expense","LTC Services","2.16","Case Management FFS (Plan Provided)",{"v":0,"d":"$0.00"},{"v":0,"d":"$0.00"},{"v":0,"d":"$0.00"},{"v":0,"d":"$0.00"},{"$f":"'LTC Rev-Exp Region 11'!T$32","v":{"v":0,"d":"$0.00"}}]
["LTC",null,null,{"$f":"Jurat!I$1","v":0},{"$f":"Jurat!D$33","v":"00:00:00"},"PY","1917-01-01","Region 11","Operating Expense","Medical Expense","LTC Services","2.17","Case Management FF (Non-Plan Provided)",{"v":0,"d":"$0.00"},{"v":0,"d":"$0.00"},{"v":0,"d":"$0.00"},{"v":0,"d":"$0.00"},{"$f":"'LTC Rev-Exp Region 11'!T$33","v":{"v":0,"d":"$0.00"}}]
["LTC",null,null,{"$f":"Jurat!I$1","v":0},{"$f":"Jurat!D$33","v":"00:00:00"},"PY","1917-01-01","Region 11","Operating Expense","Medical Expense","LTC Services","2.18","HCBS FFS",{"v":0,"d":"$0.00"},{"v":0,"d":"$0.00"},{"v":0,"d":"$0.00"},{"v":0,"d":"$0.00"},{"$f":"'LTC Rev-Exp Region 11'!T$34","v":{"v":0,"d":"$0.00"}}]
["LTC",null,null,{"$f":"Jurat!I$1","v":0},{"$f":"Jurat!D$33","v":"00:00:00"},"PY","1917-01-01","Region 11","Operating Expense","Medical Expense","LTC Services","2.19","Subcapitated LTC Services",{"v":0,"d":"$0.00"},{"v":0,"d":"$0.00"},{"v":0,"d":"$0.00"},{"v":0,"d":"$0.00"},{"$f":"'LTC Rev-Exp Region 11'!T$35","v":{"v":0,"d":"$0.00"}}]
["LTC",null,null,{"$f":"Jurat!I$1","v":0},{"$f":"Jurat!D$33","v":"00:00:00"},"PY","1917-01-01","Region 11","Operating Expense","Medical Expense","LTC Services","2.20","Ending IBNP for Long Term Care Services",{"v":0,"d":"$0.00"},{"v":0,"d":"$0.00"},{"v":0,"d":"$0.00"},{"v":0,"d":"$0.00"},{"$f":"'LTC Rev-Exp Region 11'!T$36","v":{"v":0,"d":"$0.00"}}]
["LTC",null,null,{"$f":"Jurat!I$1","v":0},{"$f":"Jurat!D$33","v":"00:00:00"},"PY","1917-01-01","Region 11","Operating Expense","Medical Expense","LTC Services","2.21","LTC Services Settlements",{"v":0,"d":"$0.00"},{"v":0,"d":"$0.00"},{"v":0,"d":"$0.00"},{"v":0,"d":"$0.00"},{"$f":"'LTC Rev-Exp Region 11'!T$37","v":{"v":0,"d":"$0.00"}}]
["LTC",null,null,{"$f":"Jurat!I$1","v":0},{"$f":"Jurat!D$33","v":"00:00:00"},"PY","1917-01-01","Region 11","Operating Expense","Medical Expense","Expanded Benefits","3.1","Expanded Benefits FFS",{"v":0,"d":"$0.00"},{"v":0,"d":"$0.00"},{"v":0,"d":"$0.00"},{"v":0,"d":"$0.00"},{"$f":"'LTC Rev-Exp Region 11'!T$39","v":{"v":0,"d":"$0.00"}}]
["LTC",null,null,{"$f":"Jurat!I$1","v":0},{"$f":"Jurat!D$33","v":"00:00:00"},"PY","1917-01-01","Region 11","Operating Expense","Medical Expense","Expanded Benefits","3.2","Expanded Benefits Subcapitation",{"v":0,"d":"$0.00"},{"v":0,"d":"$0.00"},{"v":0,"d":"$0.00"},{"v":0,"d":"$0.00"},{"$f":"'LTC Rev-Exp Region 11'!T$40","v":{"v":0,"d":"$0.00"}}]
["LTC",null,null,{"$f":"Jurat!I$1","v":0},{"$f":"Jurat!D$33","v":"00:00:00"},"PY","1917-01-01","Region 11","Operating Expense","Medical Expense","Expanded Benefits","3.3","Ending IBNP for Expanded Benefits",{"v":0,"d":"$0.00"},{"v":0,"d":"$0.00"},{"v":0,"d":"$0.00"},{"v":0,"d":"$0.00"},{"$f":"'LTC Rev-Exp Region 11'!T$41","v":{"v":0,"d":"$0.00"}}]
["LTC",null,null,{"$f":"Jurat!I$1","v":0},{"$f":"Jurat!D$33","v":"00:00:00"},"PY","1917-01-01","Region 11","Operating Expense","Medical Expense","Expanded Benefits","3.4","Expanded Benefits Settlements",{"v":0,"d":"$0.00"},{"v":0,"d":"$0.00"},{"v":0,"d":"$0.00"},{"v":0,"d":"$0.00"},{"$f":"'LTC Rev-Exp Region 11'!T$42","v":{"v":0,"d":"$0.00"}}]
["LTC",null,null,{"$f":"Jurat!I$1","v":0},{"$f":"Jurat!D$33","v":"00:00:00"},"PY","1917-01-01","Region 11","Operating Expense","Medical Expense","Other Medical","4.5","TPL & Fraud/Abuse Recoveries",{"v":0,"d":"$0.00"},{"v":0,"d":"$0.00"},{"v":0,"d":"$0.00"},{"v":0,"d":"$0.00"},{"$f":"'LTC Rev-Exp Region 11'!T$48","v":{"v":0,"d":"$0.00"}}]
["LTC",null,null,{"$f":"Jurat!I$1","v":0},{"$f":"Jurat!D$33","v":"00:00:00"},"PY","1917-01-01","Region 11","Operating Expense","Medical Expense","Other Medical","4.6.1","Premium Deficiency Reserve",{"v":0,"d":"$0.00"},{"v":0,"d":"$0.00"},{"v":0,"d":"$0.00"},{"v":0,"d":"$0.00"},{"$f":"'LTC Rev-Exp Region 11'!T$49","v":{"v":0,"d":"$0.00"}}]
["LTC",null,null,{"$f":"Jurat!I$1","v":0},{"$f":"Jurat!D$33","v":"00:00:00"},"PY","1917-01-01","Region 11","Operating Expense","Medical Expense","Other Medical","4.8","Reinsurance Premiums",{"v":0,"d":"$0.00"},{"v":0,"d":"$0.00"},{"v":0,"d":"$0.00"},{"v":0,"d":"$0.00"},{"$f":"'LTC Rev-Exp Region 11'!T$51","v":{"v":0,"d":"$0.00"}}]
["LTC",null,null,{"$f":"Jurat!I$1","v":0},{"$f":"Jurat!D$33","v":"00:00:00"},"PY","1917-01-01","Region 11","Operating Expense","Medical Expense","Other Medical","4.9","Reinsurance Recoveries",{"v":0,"d":"$0.00"},{"v":0,"d":"$0.00"},{"v":0,"d":"$0.00"},{"v":0,"d":"$0.00"},{"$f":"'LTC Rev-Exp Region 11'!T$52","v":{"v":0,"d":"$0.00"}}]
["LTC",null,null,{"$f":"Jurat!I$1","v":0},{"$f":"Jurat!D$33","v":"00:00:00"},"PY","1917-01-01","Region 11","Operating Expense","Administrative Expense","Administrative","5.1","Salaries & Benefits",{"v":0,"d":"$0.00"},{"v":0,"d":"$0.00"},{"v":0,"d":"$0.00"},{"v":0,"d":"$0.00"},{"$f":"'LTC Rev-Exp Region 11'!T$57","v":{"v":0,"d":"$0.00"}}]
["LTC",null,null,{"$f":"Jurat!I$1","v":0},{"$f":"Jurat!D$33","v":"00:00:00"},"PY","1917-01-01","Region 11","Operating Expense","Administrative Expense","Administrative","5.2","Administrative Services",{"v":0,"d":"$0.00"},{"v":0,"d":"$0.00"},{"v":0,"d":"$0.00"},{"v":0,"d":"$0.00"},{"$f":"'LTC Rev-Exp Region 11'!T$58","v":{"v":0,"d":"$0.00"}}]
["LTC",null,null,{"$f":"Jurat!I$1","v":0},{"$f":"Jurat!D$33","v":"00:00:00"},"PY","1917-01-01","Region 11","Operating Expense","Administrative Expense","Administrative","5.3","Information Systems",{"v":0,"d":"$0.00"},{"v":0,"d":"$0.00"},{"v":0,"d":"$0.00"},{"v":0,"d":"$0.00"},{"$f":"'LTC Rev-Exp Region 11'!T$59","v":{"v":0,"d":"$0.00"}}]
["LTC",null,null,{"$f":"Jurat!I$1","v":0},{"$f":"Jurat!D$33","v":"00:00:00"},"PY","1917-01-01","Region 11","Operating Expense","Administrative Expense","Administrative","5.4","Marketing Expenses",{"v":0,"d":"$0.00"},{"v":0,"d":"$0.00"},{"v":0,"d":"$0.00"},{"v":0,"d":"$0.00"},{"$f":"'LTC Rev-Exp Region 11'!T$60","v":{"v":0,"d":"$0.00"}}]
["LTC",null,null,{"$f":"Jurat!I$1","v":0},{"$f":"Jurat!D$33","v":"00:00:00"},"PY","1917-01-01","Region 11","Operating Expense","Administrative Expense","Administrative","5.5","General  Administration",{"v":0,"d":"$0.00"},{"v":0,"d":"$0.00"},{"v":0,"d":"$0.00"},{"v":0,"d":"$0.00"},{"$f":"'LTC Rev-Exp Region 11'!T$61","v":{"v":0,"d":"$0.00"}}]
["LTC",null,null,{"$f":"Jurat!I$1","v":0},{"$f":"Jurat!D$33","v":"00:00:00"},"PY","1917-01-01","Region 11","Operating Expense","Administrative Expense","Administrative","5.6","Compliance/Regulatory",{"v":0,"d":"$0.00"},{"v":0,"d":"$0.00"},{"v":0,"d":"$0.00"},{"v":0,"d":"$0.00"},{"$f":"'LTC Rev-Exp Region 11'!T$62","v":{"v":0,"d":"$0.00"}}]
["LTC",null,null,{"$f":"Jurat!I$1","v":0},{"$f":"Jurat!D$33","v":"00:00:00"},"PY","1917-01-01","Region 11","Operating Expense","Taxes & Fees","Taxes & Fees","6.1","State Premium Tax",{"v":0,"d":"$0.00"},{"v":0,"d":"$0.00"},{"v":0,"d":"$0.00"},{"v":0,"d":"$0.00"},{"$f":"'LTC Rev-Exp Region 11'!T$64","v":{"v":0,"d":"$0.00"}}]
["LTC",null,null,{"$f":"Jurat!I$1","v":0},{"$f":"Jurat!D$33","v":"00:00:00"},"PY","1917-01-01","Region 11","Operating Expense","Taxes & Fees","Taxes & Fees","6.2","Department of Insurance Assessments",{"v":0,"d":"$0.00"},{"v":0,"d":"$0.00"},{"v":0,"d":"$0.00"},{"v":0,"d":"$0.00"},{"$f":"'LTC Rev-Exp Region 11'!T$65","v":{"v":0,"d":"$0.00"}}]
["LTC",null,null,{"$f":"Jurat!I$1","v":0},{"$f":"Jurat!D$33","v":"00:00:00"},"PY","1917-01-01","Region 11","Non-Operating Expense","Income Tax Expense","Income Tax Expense","9.0","Income Tax Expense",{"v":0,"d":"$0.00"},{"v":0,"d":"$0.00"},{"v":0,"d":"$0.00"},{"v":0,"d":"$0.00"},{"$f":"'LTC Rev-Exp Region 11'!T$72","v":{"v":0,"d":"$0.00"}}]
["LTC",null,null,{"$f":"Jurat!I$1","v":0},{"$f":"Jurat!D$33","v":"00:00:00"},"PY","1917-01-01","Region 10","Member Months","Member Months","Member Months",null,"Member Months",{"v":0,"d":"$0.00"},{"v":0,"d":"$0.00"},{"v":0,"d":"$0.00"},{"v":0,"d":"$0.00"},{"$f":"'LTC Rev-Exp Region 10'!T$9","v":{"v":0,"d":"$0.00"}}]
["LTC",null,null,{"$f":"Jurat!I$1","v":0},{"$f":"Jurat!D$33","v":"00:00:00"},"PY","1917-01-01","Region 10","Operating Revenue","Capitation","Capitation",1.1,"Capitation",{"v":0,"d":"$0.00"},{"v":0,"d":"$0.00"},{"v":0,"d":"$0.00"},{"v":0,"d":"$0.00"},{"$f":"'LTC Rev-Exp Region 10'!T$11","v":{"v":0,"d":"$0.00"}}]
["LTC",null,null,{"$f":"Jurat!I$1","v":0},{"$f":"Jurat!D$33","v":"00:00:00"},"PY","1917-01-01","Region 10","Operating Revenue","Capitation","NH Rate Reconciliation",1.2,"NH Rate Reconciliation",{"v":0,"d":"$0.00"},{"v":0,"d":"$0.00"},{"v":0,"d":"$0.00"},{"v":0,"d":"$0.00"},{"$f":"'LTC Rev-Exp Region 10'!T$12","v":{"v":0,"d":"$0.00"}}]
["LTC",null,null,{"$f":"Jurat!I$1","v":0},{"$f":"Jurat!D$33","v":"00:00:00"},"PY","1917-01-01","Region 10","Operating Revenue","Other Revenue","Other Revenue",1.3,"Other Revenue",{"v":0,"d":"$0.00"},{"v":0,"d":"$0.00"},{"v":0,"d":"$0.00"},{"v":0,"d":"$0.00"},{"$f":"'LTC Rev-Exp Region 10'!T$13","v":{"v":0,"d":"$0.00"}}]
["LTC",null,null,{"$f":"Jurat!I$1","v":0},{"$f":"Jurat!D$33","v":"00:00:00"},"PY","1917-01-01","Region 10","Operating Expense","Medical Expense","NF & Hospice","2.1","Nursing Facility Days (Medicaid)",{"v":0,"d":"$0.00"},{"v":0,"d":"$0.00"},{"v":0,"d":"$0.00"},{"v":0,"d":"$0.00"},{"$f":"'LTC Rev-Exp Region 10'!T$17","v":{"v":0,"d":"$0.00"}}]
["LTC",null,null,{"$f":"Jurat!I$1","v":0},{"$f":"Jurat!D$33","v":"00:00:00"},"PY","1917-01-01","Region 10","Operating Expense","Medical Expense","NF & Hospice","2.2","Nursing Facility Days (Crossover)",{"v":0,"d":"$0.00"},{"v":0,"d":"$0.00"},{"v":0,"d":"$0.00"},{"v":0,"d":"$0.00"},{"$f":"'LTC Rev-Exp Region 10'!T$18","v":{"v":0,"d":"$0.00"}}]
["LTC",null,null,{"$f":"Jurat!I$1","v":0},{"$f":"Jurat!D$33","v":"00:00:00"},"PY","1917-01-01","Region 10","Operating Expense","Medical Expense","NF & Hospice","2.3","Nursing Facility FFS (Medicaid)",{"v":0,"d":"$0.00"},{"v":0,"d":"$0.00"},{"v":0,"d":"$0.00"},{"v":0,"d":"$0.00"},{"$f":"'LTC Rev-Exp Region 10'!T$19","v":{"v":0,"d":"$0.00"}}]
["LTC",null,null,{"$f":"Jurat!I$1","v":0},{"$f":"Jurat!D$33","v":"00:00:00"},"PY","1917-01-01","Region 10","Operating Expense","Medical Expense","NF & Hospice","2.4","Nursing Facility FFS (Crossover)",{"v":0,"d":"$0.00"},{"v":0,"d":"$0.00"},{"v":0,"d":"$0.00"},{"v":0,"d":"$0.00"},{"$f":"'LTC Rev-Exp Region 10'!T$20","v":{"v":0,"d":"$0.00"}}]
["LTC",null,null,{"$f":"Jurat!I$1","v":0},{"$f":"Jurat!D$33","v":"00:00:00"},"PY","1917-01-01","Region 10","Operating Expense","Medical Expense","NF & Hospice","2.5","Hospice Days",{"v":0,"d":"$0.00"},{"v":0,"d":"$0.00"},{"v":0,"d":"$0.00"},{"v":0,"d":"$0.00"},{"$f":"'LTC Rev-Exp Region 10'!T$21","v":{"v":0,"d":"$0.00"}}]
["LTC",null,null,{"$f":"Jurat!I$1","v":0},{"$f":"Jurat!D$33","v":"00:00:00"},"PY","1917-01-01","Region 10","Operating Expense","Medical Expense","NF & Hospice","2.6","Hospice FFS",{"v":0,"d":"$0.00"},{"v":0,"d":"$0.00"},{"v":0,"d":"$0.00"},{"v":0,"d":"$0.00"},{"$f":"'LTC Rev-Exp Region 10'!T$22","v":{"v":0,"d":"$0.00"}}]
["LTC",null,null,{"$f":"Jurat!I$1","v":0},{"$f":"Jurat!D$33","v":"00:00:00"},"PY","1917-01-01","Region 10","Operating Expense","Medical Expense","NF & Hospice","2.7","Ending IBNP for NF & Hospice",{"v":0,"d":"$0.00"},{"v":0,"d":"$0.00"},{"v":0,"d":"$0.00"},{"v":0,"d":"$0.00"},{"$f":"'LTC Rev-Exp Region 10'!T$23","v":{"v":0,"d":"$0.00"}}]
["LTC",null,null,{"$f":"Jurat!I$1","v":0},{"$f":"Jurat!D$33","v":"00:00:00"},"PY","1917-01-01","Region 10","Operating Expense","Medical Expense","NF & Hospice","2.8","NF & Hospice Subcapitated",{"v":0,"d":"$0.00"},{"v":0,"d":"$0.00"},{"v":0,"d":"$0.00"},{"v":0,"d":"$0.00"},{"$f":"'LTC Rev-Exp Region 10'!T$24","v":{"v":0,"d":"$0.00"}}]
["LTC",null,null,{"$f":"Jurat!I$1","v":0},{"$f":"Jurat!D$33","v":"00:00:00"},"PY","1917-01-01","Region 10","Operating Expense","Medical Expense","NF & Hospice","2.9","NF & Hospice Settlements",{"v":0,"d":"$0.00"},{"v":0,"d":"$0.00"},{"v":0,"d":"$0.00"},{"v":0,"d":"$0.00"},{"$f":"'LTC Rev-Exp Region 10'!T$25","v":{"v":0,"d":"$0.00"}}]
["LTC",null,null,{"$f":"Jurat!I$1","v":0},{"$f":"Jurat!D$33","v":"00:00:00"},"PY","1917-01-01","Region 10","Operating Expense","Medical Expense","LTC Services","2.11","Assisted Living FFS",{"v":0,"d":"$0.00"},{"v":0,"d":"$0.00"},{"v":0,"d":"$0.00"},{"v":0,"d":"$0.00"},{"$f":"'LTC Rev-Exp Region 10'!T$27","v":{"v":0,"d":"$0.00"}}]
["LTC",null,null,{"$f":"Jurat!I$1","v":0},{"$f":"Jurat!D$33","v":"00:00:00"},"PY","1917-01-01","Region 10","Operating Expense","Medical Expense","LTC Services","2.12","Home Health FFS",{"v":0,"d":"$0.00"},{"v":0,"d":"$0.00"},{"v":0,"d":"$0.00"},{"v":0,"d":"$0.00"},{"$f":"'LTC Rev-Exp Region 10'!T$28","v":{"v":0,"d":"$0.00"}}]
["LTC",null,null,{"$f":"Jurat!I$1","v":0},{"$f":"Jurat!D$33","v":"00:00:00"},"PY","1917-01-01","Region 10","Operating Expense","Medical Expense","LTC Services","2.13","Medical Equipment/Supplies FFS",{"v":0,"d":"$0.00"},{"v":0,"d":"$0.00"},{"v":0,"d":"$0.00"},{"v":0,"d":"$0.00"},{"$f":"'LTC Rev-Exp Region 10'!T$29","v":{"v":0,"d":"$0.00"}}]
["LTC",null,null,{"$f":"Jurat!I$1","v":0},{"$f":"Jurat!D$33","v":"00:00:00"},"PY","1917-01-01","Region 10","Operating Expense","Medical Expense","LTC Services","2.14","Therapy FFS",{"v":0,"d":"$0.00"},{"v":0,"d":"$0.00"},{"v":0,"d":"$0.00"},{"v":0,"d":"$0.00"},{"$f":"'LTC Rev-Exp Region 10'!T$30","v":{"v":0,"d":"$0.00"}}]
["LTC",null,null,{"$f":"Jurat!I$1","v":0},{"$f":"Jurat!D$33","v":"00:00:00"},"PY","1917-01-01","Region 10","Operating Expense","Medical Expense","LTC Services","2.15","Transportation FFS",{"v":0,"d":"$0.00"},{"v":0,"d":"$0.00"},{"v":0,"d":"$0.00"},{"v":0,"d":"$0.00"},{"$f":"'LTC Rev-Exp Region 10'!T$31","v":{"v":0,"d":"$0.00"}}]
["LTC",null,null,{"$f":"Jurat!I$1","v":0},{"$f":"Jurat!D$33","v":"00:00:00"},"PY","1917-01-01","Region 10","Operating Expense","Medical Expense","LTC Services","2.16","Case Management FFS (Plan Provided)",{"v":0,"d":"$0.00"},{"v":0,"d":"$0.00"},{"v":0,"d":"$0.00"},{"v":0,"d":"$0.00"},{"$f":"'LTC Rev-Exp Region 10'!T$32","v":{"v":0,"d":"$0.00"}}]
["LTC",null,null,{"$f":"Jurat!I$1","v":0},{"$f":"Jurat!D$33","v":"00:00:00"},"PY","1917-01-01","Region 10","Operating Expense","Medical Expense","LTC Services","2.17","Case Management FF (Non-Plan Provided)",{"v":0,"d":"$0.00"},{"v":0,"d":"$0.00"},{"v":0,"d":"$0.00"},{"v":0,"d":"$0.00"},{"$f":"'LTC Rev-Exp Region 10'!T$33","v":{"v":0,"d":"$0.00"}}]
["LTC",null,null,{"$f":"Jurat!I$1","v":0},{"$f":"Jurat!D$33","v":"00:00:00"},"PY","1917-01-01","Region 10","Operating Expense","Medical Expense","LTC Services","2.18","HCBS FFS",{"v":0,"d":"$0.00"},{"v":0,"d":"$0.00"},{"v":0,"d":"$0.00"},{"v":0,"d":"$0.00"},{"$f":"'LTC Rev-Exp Region 10'!T$34","v":{"v":0,"d":"$0.00"}}]
["LTC",null,null,{"$f":"Jurat!I$1","v":0},{"$f":"Jurat!D$33","v":"00:00:00"},"PY","1917-01-01","Region 10","Operating Expense","Medical Expense","LTC Services","2.19","Subcapitated LTC Services",{"v":0,"d":"$0.00"},{"v":0,"d":"$0.00"},{"v":0,"d":"$0.00"},{"v":0,"d":"$0.00"},{"$f":"'LTC Rev-Exp Region 10'!T$35","v":{"v":0,"d":"$0.00"}}]
["LTC",null,null,{"$f":"Jurat!I$1","v":0},{"$f":"Jurat!D$33","v":"00:00:00"},"PY","1917-01-01","Region 10","Operating Expense","Medical Expense","LTC Services","2.20","Ending IBNP for Long Term Care Services",{"v":0,"d":"$0.00"},{"v":0,"d":"$0.00"},{"v":0,"d":"$0.00"},{"v":0,"d":"$0.00"},{"$f":"'LTC Rev-Exp Region 10'!T$36","v":{"v":0,"d":"$0.00"}}]
["LTC",null,null,{"$f":"Jurat!I$1","v":0},{"$f":"Jurat!D$33","v":"00:00:00"},"PY","1917-01-01","Region 10","Operating Expense","Medical Expense","LTC Services","2.21","LTC Services Settlements",{"v":0,"d":"$0.00"},{"v":0,"d":"$0.00"},{"v":0,"d":"$0.00"},{"v":0,"d":"$0.00"},{"$f":"'LTC Rev-Exp Region 10'!T$37","v":{"v":0,"d":"$0.00"}}]
["LTC",null,null,{"$f":"Jurat!I$1","v":0},{"$f":"Jurat!D$33","v":"00:00:00"},"PY","1917-01-01","Region 10","Operating Expense","Medical Expense","Expanded Benefits","3.1","Expanded Benefits FFS",{"v":0,"d":"$0.00"},{"v":0,"d":"$0.00"},{"v":0,"d":"$0.00"},{"v":0,"d":"$0.00"},{"$f":"'LTC Rev-Exp Region 10'!T$39","v":{"v":0,"d":"$0.00"}}]
["LTC",null,null,{"$f":"Jurat!I$1","v":0},{"$f":"Jurat!D$33","v":"00:00:00"},"PY","1917-01-01","Region 10","Operating Expense","Medical Expense","Expanded Benefits","3.2","Expanded Benefits Subcapitation",{"v":0,"d":"$0.00"},{"v":0,"d":"$0.00"},{"v":0,"d":"$0.00"},{"v":0,"d":"$0.00"},{"$f":"'LTC Rev-Exp Region 10'!T$40","v":{"v":0,"d":"$0.00"}}]
["LTC",null,null,{"$f":"Jurat!I$1","v":0},{"$f":"Jurat!D$33","v":"00:00:00"},"PY","1917-01-01","Region 10","Operating Expense","Medical Expense","Expanded Benefits","3.3","Ending IBNP for Expanded Benefits",{"v":0,"d":"$0.00"},{"v":0,"d":"$0.00"},{"v":0,"d":"$0.00"},{"v":0,"d":"$0.00"},{"$f":"'LTC Rev-Exp Region 10'!T$41","v":{"v":0,"d":"$0.00"}}]
["LTC",null,null,{"$f":"Jurat!I$1","v":0},{"$f":"Jurat!D$33","v":"00:00:00"},"PY","1917-01-01","Region 10","Operating Expense","Medical Expense","Expanded Benefits","3.4","Expanded Benefits Settlements",{"v":0,"d":"$0.00"},{"v":0,"d":"$0.00"},{"v":0,"d":"$0.00"},{"v":0,"d":"$0.00"},{"$f":"'LTC Rev-Exp Region 10'!T$42","v":{"v":0,"d":"$0.00"}}]
["LTC",null,null,{"$f":"Jurat!I$1","v":0},{"$f":"Jurat!D$33","v":"00:00:00"},"PY","1917-01-01","Region 10","Operating Expense","Medical Expense","Other Medical","4.5","TPL & Fraud/Abuse Recoveries",{"v":0,"d":"$0.00"},{"v":0,"d":"$0.00"},{"v":0,"d":"$0.00"},{"v":0,"d":"$0.00"},{"$f":"'LTC Rev-Exp Region 10'!T$48","v":{"v":0,"d":"$0.00"}}]
["LTC",null,null,{"$f":"Jurat!I$1","v":0},{"$f":"Jurat!D$33","v":"00:00:00"},"PY","1917-01-01","Region 10","Operating Expense","Medical Expense","Other Medical","4.6.1","Premium Deficiency Reserve",{"v":0,"d":"$0.00"},{"v":0,"d":"$0.00"},{"v":0,"d":"$0.00"},{"v":0,"d":"$0.00"},{"$f":"'LTC Rev-Exp Region 10'!T$49","v":{"v":0,"d":"$0.00"}}]
["LTC",null,null,{"$f":"Jurat!I$1","v":0},{"$f":"Jurat!D$33","v":"00:00:00"},"PY","1917-01-01","Region 10","Operating Expense","Medical Expense","Other Medical","4.8","Reinsurance Premiums",{"v":0,"d":"$0.00"},{"v":0,"d":"$0.00"},{"v":0,"d":"$0.00"},{"v":0,"d":"$0.00"},{"$f":"'LTC Rev-Exp Region 10'!T$51","v":{"v":0,"d":"$0.00"}}]
["LTC",null,null,{"$f":"Jurat!I$1","v":0},{"$f":"Jurat!D$33","v":"00:00:00"},"PY","1917-01-01","Region 10","Operating Expense","Medical Expense","Other Medical","4.9","Reinsurance Recoveries",{"v":0,"d":"$0.00"},{"v":0,"d":"$0.00"},{"v":0,"d":"$0.00"},{"v":0,"d":"$0.00"},{"$f":"'LTC Rev-Exp Region 10'!T$52","v":{"v":0,"d":"$0.00"}}]
["LTC",null,null,{"$f":"Jurat!I$1","v":0},{"$f":"Jurat!D$33","v":"00:00:00"},"PY","1917-01-01","Region 10","Operating Expense","Administrative Expense","Administrative","5.1","Salaries & Benefits",{"v":0,"d":"$0.00"},{"v":0,"d":"$0.00"},{"v":0,"d":"$0.00"},{"v":0,"d":"$0.00"},{"$f":"'LTC Rev-Exp Region 10'!T$57","v":{"v":0,"d":"$0.00"}}]
["LTC",null,null,{"$f":"Jurat!I$1","v":0},{"$f":"Jurat!D$33","v":"00:00:00"},"PY","1917-01-01","Region 10","Operating Expense","Administrative Expense","Administrative","5.2","Administrative Services",{"v":0,"d":"$0.00"},{"v":0,"d":"$0.00"},{"v":0,"d":"$0.00"},{"v":0,"d":"$0.00"},{"$f":"'LTC Rev-Exp Region 10'!T$58","v":{"v":0,"d":"$0.00"}}]
["LTC",null,null,{"$f":"Jurat!I$1","v":0},{"$f":"Jurat!D$33","v":"00:00:00"},"PY","1917-01-01","Region 10","Operating Expense","Administrative Expense","Administrative","5.3","Information Systems",{"v":0,"d":"$0.00"},{"v":0,"d":"$0.00"},{"v":0,"d":"$0.00"},{"v":0,"d":"$0.00"},{"$f":"'LTC Rev-Exp Region 10'!T$59","v":{"v":0,"d":"$0.00"}}]
["LTC",null,null,{"$f":"Jurat!I$1","v":0},{"$f":"Jurat!D$33","v":"00:00:00"},"PY","1917-01-01","Region 10","Operating Expense","Administrative Expense","Administrative","5.4","Marketing Expenses",{"v":0,"d":"$0.00"},{"v":0,"d":"$0.00"},{"v":0,"d":"$0.00"},{"v":0,"d":"$0.00"},{"$f":"'LTC Rev-Exp Region 10'!T$60","v":{"v":0,"d":"$0.00"}}]
["LTC",null,null,{"$f":"Jurat!I$1","v":0},{"$f":"Jurat!D$33","v":"00:00:00"},"PY","1917-01-01","Region 10","Operating Expense","Administrative Expense","Administrative","5.5","General  Administration",{"v":0,"d":"$0.00"},{"v":0,"d":"$0.00"},{"v":0,"d":"$0.00"},{"v":0,"d":"$0.00"},{"$f":"'LTC Rev-Exp Region 10'!T$61","v":{"v":0,"d":"$0.00"}}]
["LTC",null,null,{"$f":"Jurat!I$1","v":0},{"$f":"Jurat!D$33","v":"00:00:00"},"PY","1917-01-01","Region 10","Operating Expense","Administrative Expense","Administrative","5.6","Compliance/Regulatory",{"v":0,"d":"$0.00"},{"v":0,"d":"$0.00"},{"v":0,"d":"$0.00"},{"v":0,"d":"$0.00"},{"$f":"'LTC Rev-Exp Region 10'!T$62","v":{"v":0,"d":"$0.00"}}]
["LTC",null,null,{"$f":"Jurat!I$1","v":0},{"$f":"Jurat!D$33","v":"00:00:00"},"PY","1917-01-01","Region 10","Operating Expense","Taxes & Fees","Taxes & Fees","6.1","State Premium Tax",{"v":0,"d":"$0.00"},{"v":0,"d":"$0.00"},{"v":0,"d":"$0.00"},{"v":0,"d":"$0.00"},{"$f":"'LTC Rev-Exp Region 10'!T$64","v":{"v":0,"d":"$0.00"}}]
["LTC",null,null,{"$f":"Jurat!I$1","v":0},{"$f":"Jurat!D$33","v":"00:00:00"},"PY","1917-01-01","Region 10","Operating Expense","Taxes & Fees","Taxes & Fees","6.2","Department of Insurance Assessments",{"v":0,"d":"$0.00"},{"v":0,"d":"$0.00"},{"v":0,"d":"$0.00"},{"v":0,"d":"$0.00"},{"$f":"'LTC Rev-Exp Region 10'!T$65","v":{"v":0,"d":"$0.00"}}]
["LTC",null,null,{"$f":"Jurat!I$1","v":0},{"$f":"Jurat!D$33","v":"00:00:00"},"PY","1917-01-01","Region 10","Non-Operating Expense","Income Tax Expense","Income Tax Expense","9.0","Income Tax Expense",{"v":0,"d":"$0.00"},{"v":0,"d":"$0.00"},{"v":0,"d":"$0.00"},{"v":0,"d":"$0.00"},{"$f":"'LTC Rev-Exp Region 10'!T$72","v":{"v":0,"d":"$0.00"}}]
["LTC",null,null,{"$f":"Jurat!I$1","v":0},{"$f":"Jurat!D$33","v":"00:00:00"},"PY","1917-01-01","Region 9","Member Months","Member Months","Member Months",null,"Member Months",{"v":0,"d":"$0.00"},{"v":0,"d":"$0.00"},{"v":0,"d":"$0.00"},{"v":0,"d":"$0.00"},{"$f":"'LTC Rev-Exp Region 9'!T$9","v":{"v":0,"d":"$0.00"}}]
["LTC",null,null,{"$f":"Jurat!I$1","v":0},{"$f":"Jurat!D$33","v":"00:00:00"},"PY","1917-01-01","Region 9","Operating Revenue","Capitation","Capitation",1.1,"Capitation",{"v":0,"d":"$0.00"},{"v":0,"d":"$0.00"},{"v":0,"d":"$0.00"},{"v":0,"d":"$0.00"},{"$f":"'LTC Rev-Exp Region 9'!T$11","v":{"v":0,"d":"$0.00"}}]
["LTC",null,null,{"$f":"Jurat!I$1","v":0},{"$f":"Jurat!D$33","v":"00:00:00"},"PY","1917-01-01","Region 9","Operating Revenue","Capitation","NH Rate Reconciliation",1.2,"NH Rate Reconciliation",{"v":0,"d":"$0.00"},{"v":0,"d":"$0.00"},{"v":0,"d":"$0.00"},{"v":0,"d":"$0.00"},{"$f":"'LTC Rev-Exp Region 9'!T$12","v":{"v":0,"d":"$0.00"}}]
["LTC",null,null,{"$f":"Jurat!I$1","v":0},{"$f":"Jurat!D$33","v":"00:00:00"},"PY","1917-01-01","Region 9","Operating Revenue","Other Revenue","Other Revenue",1.3,"Other Revenue",{"v":0,"d":"$0.00"},{"v":0,"d":"$0.00"},{"v":0,"d":"$0.00"},{"v":0,"d":"$0.00"},{"$f":"'LTC Rev-Exp Region 9'!T$13","v":{"v":0,"d":"$0.00"}}]
["LTC",null,null,{"$f":"Jurat!I$1","v":0},{"$f":"Jurat!D$33","v":"00:00:00"},"PY","1917-01-01","Region 9","Operating Expense","Medical Expense","NF & Hospice","2.1","Nursing Facility Days (Medicaid)",{"v":0,"d":"$0.00"},{"v":0,"d":"$0.00"},{"v":0,"d":"$0.00"},{"v":0,"d":"$0.00"},{"$f":"'LTC Rev-Exp Region 9'!T$17","v":{"v":0,"d":"$0.00"}}]
["LTC",null,null,{"$f":"Jurat!I$1","v":0},{"$f":"Jurat!D$33","v":"00:00:00"},"PY","1917-01-01","Region 9","Operating Expense","Medical Expense","NF & Hospice","2.2","Nursing Facility Days (Crossover)",{"v":0,"d":"$0.00"},{"v":0,"d":"$0.00"},{"v":0,"d":"$0.00"},{"v":0,"d":"$0.00"},{"$f":"'LTC Rev-Exp Region 9'!T$18","v":{"v":0,"d":"$0.00"}}]
["LTC",null,null,{"$f":"Jurat!I$1","v":0},{"$f":"Jurat!D$33","v":"00:00:00"},"PY","1917-01-01","Region 9","Operating Expense","Medical Expense","NF & Hospice","2.3","Nursing Facility FFS (Medicaid)",{"v":0,"d":"$0.00"},{"v":0,"d":"$0.00"},{"v":0,"d":"$0.00"},{"v":0,"d":"$0.00"},{"$f":"'LTC Rev-Exp Region 9'!T$19","v":{"v":0,"d":"$0.00"}}]
["LTC",null,null,{"$f":"Jurat!I$1","v":0},{"$f":"Jurat!D$33","v":"00:00:00"},"PY","1917-01-01","Region 9","Operating Expense","Medical Expense","NF & Hospice","2.4","Nursing Facility FFS (Crossover)",{"v":0,"d":"$0.00"},{"v":0,"d":"$0.00"},{"v":0,"d":"$0.00"},{"v":0,"d":"$0.00"},{"$f":"'LTC Rev-Exp Region 9'!T$20","v":{"v":0,"d":"$0.00"}}]
["LTC",null,null,{"$f":"Jurat!I$1","v":0},{"$f":"Jurat!D$33","v":"00:00:00"},"PY","1917-01-01","Region 9","Operating Expense","Medical Expense","NF & Hospice","2.5","Hospice Days",{"v":0,"d":"$0.00"},{"v":0,"d":"$0.00"},{"v":0,"d":"$0.00"},{"v":0,"d":"$0.00"},{"$f":"'LTC Rev-Exp Region 9'!T$21","v":{"v":0,"d":"$0.00"}}]
["LTC",null,null,{"$f":"Jurat!I$1","v":0},{"$f":"Jurat!D$33","v":"00:00:00"},"PY","1917-01-01","Region 9","Operating Expense","Medical Expense","NF & Hospice","2.6","Hospice FFS",{"v":0,"d":"$0.00"},{"v":0,"d":"$0.00"},{"v":0,"d":"$0.00"},{"v":0,"d":"$0.00"},{"$f":"'LTC Rev-Exp Region 9'!T$22","v":{"v":0,"d":"$0.00"}}]
["LTC",null,null,{"$f":"Jurat!I$1","v":0},{"$f":"Jurat!D$33","v":"00:00:00"},"PY","1917-01-01","Region 9","Operating Expense","Medical Expense","NF & Hospice","2.7","Ending IBNP for NF & Hospice",{"v":0,"d":"$0.00"},{"v":0,"d":"$0.00"},{"v":0,"d":"$0.00"},{"v":0,"d":"$0.00"},{"$f":"'LTC Rev-Exp Region 9'!T$23","v":{"v":0,"d":"$0.00"}}]
["LTC",null,null,{"$f":"Jurat!I$1","v":0},{"$f":"Jurat!D$33","v":"00:00:00"},"PY","1917-01-01","Region 9","Operating Expense","Medical Expense","NF & Hospice","2.8","NF & Hospice Subcapitated",{"v":0,"d":"$0.00"},{"v":0,"d":"$0.00"},{"v":0,"d":"$0.00"},{"v":0,"d":"$0.00"},{"$f":"'LTC Rev-Exp Region 9'!T$24","v":{"v":0,"d":"$0.00"}}]
["LTC",null,null,{"$f":"Jurat!I$1","v":0},{"$f":"Jurat!D$33","v":"00:00:00"},"PY","1917-01-01","Region 9","Operating Expense","Medical Expense","NF & Hospice","2.9","NF & Hospice Settlements",{"v":0,"d":"$0.00"},{"v":0,"d":"$0.00"},{"v":0,"d":"$0.00"},{"v":0,"d":"$0.00"},{"$f":"'LTC Rev-Exp Region 9'!T$25","v":{"v":0,"d":"$0.00"}}]
["LTC",null,null,{"$f":"Jurat!I$1","v":0},{"$f":"Jurat!D$33","v":"00:00:00"},"PY","1917-01-01","Region 9","Operating Expense","Medical Expense","LTC Services","2.11","Assisted Living FFS",{"v":0,"d":"$0.00"},{"v":0,"d":"$0.00"},{"v":0,"d":"$0.00"},{"v":0,"d":"$0.00"},{"$f":"'LTC Rev-Exp Region 9'!T$27","v":{"v":0,"d":"$0.00"}}]
["LTC",null,null,{"$f":"Jurat!I$1","v":0},{"$f":"Jurat!D$33","v":"00:00:00"},"PY","1917-01-01","Region 9","Operating Expense","Medical Expense","LTC Services","2.12","Home Health FFS",{"v":0,"d":"$0.00"},{"v":0,"d":"$0.00"},{"v":0,"d":"$0.00"},{"v":0,"d":"$0.00"},{"$f":"'LTC Rev-Exp Region 9'!T$28","v":{"v":0,"d":"$0.00"}}]
["LTC",null,null,{"$f":"Jurat!I$1","v":0},{"$f":"Jurat!D$33","v":"00:00:00"},"PY","1917-01-01","Region 9","Operating Expense","Medical Expense","LTC Services","2.13","Medical Equipment/Supplies FFS",{"v":0,"d":"$0.00"},{"v":0,"d":"$0.00"},{"v":0,"d":"$0.00"},{"v":0,"d":"$0.00"},{"$f":"'LTC Rev-Exp Region 9'!T$29","v":{"v":0,"d":"$0.00"}}]
["LTC",null,null,{"$f":"Jurat!I$1","v":0},{"$f":"Jurat!D$33","v":"00:00:00"},"PY","1917-01-01","Region 9","Operating Expense","Medical Expense","LTC Services","2.14","Therapy FFS",{"v":0,"d":"$0.00"},{"v":0,"d":"$0.00"},{"v":0,"d":"$0.00"},{"v":0,"d":"$0.00"},{"$f":"'LTC Rev-Exp Region 9'!T$30","v":{"v":0,"d":"$0.00"}}]
["LTC",null,null,{"$f":"Jurat!I$1","v":0},{"$f":"Jurat!D$33","v":"00:00:00"},"PY","1917-01-01","Region 9","Operating Expense","Medical Expense","LTC Services","2.15","Transportation FFS",{"v":0,"d":"$0.00"},{"v":0,"d":"$0.00"},{"v":0,"d":"$0.00"},{"v":0,"d":"$0.00"},{"$f":"'LTC Rev-Exp Region 9'!T$31","v":{"v":0,"d":"$0.00"}}]
["LTC",null,null,{"$f":"Jurat!I$1","v":0},{"$f":"Jurat!D$33","v":"00:00:00"},"PY","1917-01-01","Region 9","Operating Expense","Medical Expense","LTC Services","2.16","Case Management FFS (Plan Provided)",{"v":0,"d":"$0.00"},{"v":0,"d":"$0.00"},{"v":0,"d":"$0.00"},{"v":0,"d":"$0.00"},{"$f":"'LTC Rev-Exp Region 9'!T$32","v":{"v":0,"d":"$0.00"}}]
["LTC",null,null,{"$f":"Jurat!I$1","v":0},{"$f":"Jurat!D$33","v":"00:00:00"},"PY","1917-01-01","Region 9","Operating Expense","Medical Expense","LTC Services","2.17","Case Management FF (Non-Plan Provided)",{"v":0,"d":"$0.00"},{"v":0,"d":"$0.00"},{"v":0,"d":"$0.00"},{"v":0,"d":"$0.00"},{"$f":"'LTC Rev-Exp Region 9'!T$33","v":{"v":0,"d":"$0.00"}}]
["LTC",null,null,{"$f":"Jurat!I$1","v":0},{"$f":"Jurat!D$33","v":"00:00:00"},"PY","1917-01-01","Region 9","Operating Expense","Medical Expense","LTC Services","2.18","HCBS FFS",{"v":0,"d":"$0.00"},{"v":0,"d":"$0.00"},{"v":0,"d":"$0.00"},{"v":0,"d":"$0.00"},{"$f":"'LTC Rev-Exp Region 9'!T$34","v":{"v":0,"d":"$0.00"}}]
["LTC",null,null,{"$f":"Jurat!I$1","v":0},{"$f":"Jurat!D$33","v":"00:00:00"},"PY","1917-01-01","Region 9","Operating Expense","Medical Expense","LTC Services","2.19","Subcapitated LTC Services",{"v":0,"d":"$0.00"},{"v":0,"d":"$0.00"},{"v":0,"d":"$0.00"},{"v":0,"d":"$0.00"},{"$f":"'LTC Rev-Exp Region 9'!T$35","v":{"v":0,"d":"$0.00"}}]
["LTC",null,null,{"$f":"Jurat!I$1","v":0},{"$f":"Jurat!D$33","v":"00:00:00"},"PY","1917-01-01","Region 9","Operating Expense","Medical Expense","LTC Services","2.20","Ending IBNP for Long Term Care Services",{"v":0,"d":"$0.00"},{"v":0,"d":"$0.00"},{"v":0,"d":"$0.00"},{"v":0,"d":"$0.00"},{"$f":"'LTC Rev-Exp Region 9'!T$36","v":{"v":0,"d":"$0.00"}}]
["LTC",null,null,{"$f":"Jurat!I$1","v":0},{"$f":"Jurat!D$33","v":"00:00:00"},"PY","1917-01-01","Region 9","Operating Expense","Medical Expense","LTC Services","2.21","LTC Services Settlements",{"v":0,"d":"$0.00"},{"v":0,"d":"$0.00"},{"v":0,"d":"$0.00"},{"v":0,"d":"$0.00"},{"$f":"'LTC Rev-Exp Region 9'!T$37","v":{"v":0,"d":"$0.00"}}]
["LTC",null,null,{"$f":"Jurat!I$1","v":0},{"$f":"Jurat!D$33","v":"00:00:00"},"PY","1917-01-01","Region 9","Operating Expense","Medical Expense","Expanded Benefits","3.1","Expanded Benefits FFS",{"v":0,"d":"$0.00"},{"v":0,"d":"$0.00"},{"v":0,"d":"$0.00"},{"v":0,"d":"$0.00"},{"$f":"'LTC Rev-Exp Region 9'!T$39","v":{"v":0,"d":"$0.00"}}]
["LTC",null,null,{"$f":"Jurat!I$1","v":0},{"$f":"Jurat!D$33","v":"00:00:00"},"PY","1917-01-01","Region 9","Operating Expense","Medical Expense","Expanded Benefits","3.2","Expanded Benefits Subcapitation",{"v":0,"d":"$0.00"},{"v":0,"d":"$0.00"},{"v":0,"d":"$0.00"},{"v":0,"d":"$0.00"},{"$f":"'LTC Rev-Exp Region 9'!T$40","v":{"v":0,"d":"$0.00"}}]
["LTC",null,null,{"$f":"Jurat!I$1","v":0},{"$f":"Jurat!D$33","v":"00:00:00"},"PY","1917-01-01","Region 9","Operating Expense","Medical Expense","Expanded Benefits","3.3","Ending IBNP for Expanded Benefits",{"v":0,"d":"$0.00"},{"v":0,"d":"$0.00"},{"v":0,"d":"$0.00"},{"v":0,"d":"$0.00"},{"$f":"'LTC Rev-Exp Region 9'!T$41","v":{"v":0,"d":"$0.00"}}]
["LTC",null,null,{"$f":"Jurat!I$1","v":0},{"$f":"Jurat!D$33","v":"00:00:00"},"PY","1917-01-01","Region 9","Operating Expense","Medical Expense","Expanded Benefits","3.4","Expanded Benefits Settlements",{"v":0,"d":"$0.00"},{"v":0,"d":"$0.00"},{"v":0,"d":"$0.00"},{"v":0,"d":"$0.00"},{"$f":"'LTC Rev-Exp Region 9'!T$42","v":{"v":0,"d":"$0.00"}}]
["LTC",null,null,{"$f":"Jurat!I$1","v":0},{"$f":"Jurat!D$33","v":"00:00:00"},"PY","1917-01-01","Region 9","Operating Expense","Medical Expense","Other Medical","4.5","TPL & Fraud/Abuse Recoveries",{"v":0,"d":"$0.00"},{"v":0,"d":"$0.00"},{"v":0,"d":"$0.00"},{"v":0,"d":"$0.00"},{"$f":"'LTC Rev-Exp Region 9'!T$48","v":{"v":0,"d":"$0.00"}}]
["LTC",null,null,{"$f":"Jurat!I$1","v":0},{"$f":"Jurat!D$33","v":"00:00:00"},"PY","1917-01-01","Region 9","Operating Expense","Medical Expense","Other Medical","4.6.1","Premium Deficiency Reserve",{"v":0,"d":"$0.00"},{"v":0,"d":"$0.00"},{"v":0,"d":"$0.00"},{"v":0,"d":"$0.00"},{"$f":"'LTC Rev-Exp Region 9'!T$49","v":{"v":0,"d":"$0.00"}}]
["LTC",null,null,{"$f":"Jurat!I$1","v":0},{"$f":"Jurat!D$33","v":"00:00:00"},"PY","1917-01-01","Region 9","Operating Expense","Medical Expense","Other Medical","4.8","Reinsurance Premiums",{"v":0,"d":"$0.00"},{"v":0,"d":"$0.00"},{"v":0,"d":"$0.00"},{"v":0,"d":"$0.00"},{"$f":"'LTC Rev-Exp Region 9'!T$51","v":{"v":0,"d":"$0.00"}}]
["LTC",null,null,{"$f":"Jurat!I$1","v":0},{"$f":"Jurat!D$33","v":"00:00:00"},"PY","1917-01-01","Region 9","Operating Expense","Medical Expense","Other Medical","4.9","Reinsurance Recoveries",{"v":0,"d":"$0.00"},{"v":0,"d":"$0.00"},{"v":0,"d":"$0.00"},{"v":0,"d":"$0.00"},{"$f":"'LTC Rev-Exp Region 9'!T$52","v":{"v":0,"d":"$0.00"}}]
["LTC",null,null,{"$f":"Jurat!I$1","v":0},{"$f":"Jurat!D$33","v":"00:00:00"},"PY","1917-01-01","Region 9","Operating Expense","Administrative Expense","Administrative","5.1","Salaries & Benefits",{"v":0,"d":"$0.00"},{"v":0,"d":"$0.00"},{"v":0,"d":"$0.00"},{"v":0,"d":"$0.00"},{"$f":"'LTC Rev-Exp Region 9'!T$57","v":{"v":0,"d":"$0.00"}}]
["LTC",null,null,{"$f":"Jurat!I$1","v":0},{"$f":"Jurat!D$33","v":"00:00:00"},"PY","1917-01-01","Region 9","Operating Expense","Administrative Expense","Administrative","5.2","Administrative Services",{"v":0,"d":"$0.00"},{"v":0,"d":"$0.00"},{"v":0,"d":"$0.00"},{"v":0,"d":"$0.00"},{"$f":"'LTC Rev-Exp Region 9'!T$58","v":{"v":0,"d":"$0.00"}}]
["LTC",null,null,{"$f":"Jurat!I$1","v":0},{"$f":"Jurat!D$33","v":"00:00:00"},"PY","1917-01-01","Region 9","Operating Expense","Administrative Expense","Administrative","5.3","Information Systems",{"v":0,"d":"$0.00"},{"v":0,"d":"$0.00"},{"v":0,"d":"$0.00"},{"v":0,"d":"$0.00"},{"$f":"'LTC Rev-Exp Region 9'!T$59","v":{"v":0,"d":"$0.00"}}]
["LTC",null,null,{"$f":"Jurat!I$1","v":0},{"$f":"Jurat!D$33","v":"00:00:00"},"PY","1917-01-01","Region 9","Operating Expense","Administrative Expense","Administrative","5.4","Marketing Expenses",{"v":0,"d":"$0.00"},{"v":0,"d":"$0.00"},{"v":0,"d":"$0.00"},{"v":0,"d":"$0.00"},{"$f":"'LTC Rev-Exp Region 9'!T$60","v":{"v":0,"d":"$0.00"}}]
["LTC",null,null,{"$f":"Jurat!I$1","v":0},{"$f":"Jurat!D$33","v":"00:00:00"},"PY","1917-01-01","Region 9","Operating Expense","Administrative Expense","Administrative","5.5","General  Administration",{"v":0,"d":"$0.00"},{"v":0,"d":"$0.00"},{"v":0,"d":"$0.00"},{"v":0,"d":"$0.00"},{"$f":"'LTC Rev-Exp Region 9'!T$61","v":{"v":0,"d":"$0.00"}}]
["LTC",null,null,{"$f":"Jurat!I$1","v":0},{"$f":"Jurat!D$33","v":"00:00:00"},"PY","1917-01-01","Region 9","Operating Expense","Administrative Expense","Administrative","5.6","Compliance/Regulatory",{"v":0,"d":"$0.00"},{"v":0,"d":"$0.00"},{"v":0,"d":"$0.00"},{"v":0,"d":"$0.00"},{"$f":"'LTC Rev-Exp Region 9'!T$62","v":{"v":0,"d":"$0.00"}}]
["LTC",null,null,{"$f":"Jurat!I$1","v":0},{"$f":"Jurat!D$33","v":"00:00:00"},"PY","1917-01-01","Region 9","Operating Expense","Taxes & Fees","Taxes & Fees","6.1","State Premium Tax",{"v":0,"d":"$0.00"},{"v":0,"d":"$0.00"},{"v":0,"d":"$0.00"},{"v":0,"d":"$0.00"},{"$f":"'LTC Rev-Exp Region 9'!T$64","v":{"v":0,"d":"$0.00"}}]
["LTC",null,null,{"$f":"Jurat!I$1","v":0},{"$f":"Jurat!D$33","v":"00:00:00"},"PY","1917-01-01","Region 9","Operating Expense","Taxes & Fees","Taxes & Fees","6.2","Department of Insurance Assessments",{"v":0,"d":"$0.00"},{"v":0,"d":"$0.00"},{"v":0,"d":"$0.00"},{"v":0,"d":"$0.00"},{"$f":"'LTC Rev-Exp Region 9'!T$65","v":{"v":0,"d":"$0.00"}}]
["LTC",null,null,{"$f":"Jurat!I$1","v":0},{"$f":"Jurat!D$33","v":"00:00:00"},"PY","1917-01-01","Region 9","Non-Operating Expense","Income Tax Expense","Income Tax Expense","9.0","Income Tax Expense",{"v":0,"d":"$0.00"},{"v":0,"d":"$0.00"},{"v":0,"d":"$0.00"},{"v":0,"d":"$0.00"},{"$f":"'LTC Rev-Exp Region 9'!T$72","v":{"v":0,"d":"$0.00"}}]
["LTC",null,null,{"$f":"Jurat!I$1","v":0},{"$f":"Jurat!D$33","v":"00:00:00"},"PY","1917-01-01","Region 8","Member Months","Member Months","Member Months",null,"Member Months",{"v":0,"d":"$0.00"},{"v":0,"d":"$0.00"},{"v":0,"d":"$0.00"},{"v":0,"d":"$0.00"},{"$f":"'LTC Rev-Exp Region 8'!T$9","v":{"v":0,"d":"$0.00"}}]
["LTC",null,null,{"$f":"Jurat!I$1","v":0},{"$f":"Jurat!D$33","v":"00:00:00"},"PY","1917-01-01","Region 8","Operating Revenue","Capitation","Capitation",1.1,"Capitation",{"v":0,"d":"$0.00"},{"v":0,"d":"$0.00"},{"v":0,"d":"$0.00"},{"v":0,"d":"$0.00"},{"$f":"'LTC Rev-Exp Region 8'!T$11","v":{"v":0,"d":"$0.00"}}]
["LTC",null,null,{"$f":"Jurat!I$1","v":0},{"$f":"Jurat!D$33","v":"00:00:00"},"PY","1917-01-01","Region 8","Operating Revenue","Capitation","NH Rate Reconciliation",1.2,"NH Rate Reconciliation",{"v":0,"d":"$0.00"},{"v":0,"d":"$0.00"},{"v":0,"d":"$0.00"},{"v":0,"d":"$0.00"},{"$f":"'LTC Rev-Exp Region 8'!T$12","v":{"v":0,"d":"$0.00"}}]
["LTC",null,null,{"$f":"Jurat!I$1","v":0},{"$f":"Jurat!D$33","v":"00:00:00"},"PY","1917-01-01","Region 8","Operating Revenue","Other Revenue","Other Revenue",1.3,"Other Revenue",{"v":0,"d":"$0.00"},{"v":0,"d":"$0.00"},{"v":0,"d":"$0.00"},{"v":0,"d":"$0.00"},{"$f":"'LTC Rev-Exp Region 8'!T$13","v":{"v":0,"d":"$0.00"}}]
["LTC",null,null,{"$f":"Jurat!I$1","v":0},{"$f":"Jurat!D$33","v":"00:00:00"},"PY","1917-01-01","Region 8","Operating Expense","Medical Expense","NF & Hospice","2.1","Nursing Facility Days (Medicaid)",{"v":0,"d":"$0.00"},{"v":0,"d":"$0.00"},{"v":0,"d":"$0.00"},{"v":0,"d":"$0.00"},{"$f":"'LTC Rev-Exp Region 8'!T$17","v":{"v":0,"d":"$0.00"}}]
["LTC",null,null,{"$f":"Jurat!I$1","v":0},{"$f":"Jurat!D$33","v":"00:00:00"},"PY","1917-01-01","Region 8","Operating Expense","Medical Expense","NF & Hospice","2.2","Nursing Facility Days (Crossover)",{"v":0,"d":"$0.00"},{"v":0,"d":"$0.00"},{"v":0,"d":"$0.00"},{"v":0,"d":"$0.00"},{"$f":"'LTC Rev-Exp Region 8'!T$18","v":{"v":0,"d":"$0.00"}}]
["LTC",null,null,{"$f":"Jurat!I$1","v":0},{"$f":"Jurat!D$33","v":"00:00:00"},"PY","1917-01-01","Region 8","Operating Expense","Medical Expense","NF & Hospice","2.3","Nursing Facility FFS (Medicaid)",{"v":0,"d":"$0.00"},{"v":0,"d":"$0.00"},{"v":0,"d":"$0.00"},{"v":0,"d":"$0.00"},{"$f":"'LTC Rev-Exp Region 8'!T$19","v":{"v":0,"d":"$0.00"}}]
["LTC",null,null,{"$f":"Jurat!I$1","v":0},{"$f":"Jurat!D$33","v":"00:00:00"},"PY","1917-01-01","Region 8","Operating Expense","Medical Expense","NF & Hospice","2.4","Nursing Facility FFS (Crossover)",{"v":0,"d":"$0.00"},{"v":0,"d":"$0.00"},{"v":0,"d":"$0.00"},{"v":0,"d":"$0.00"},{"$f":"'LTC Rev-Exp Region 8'!T$20","v":{"v":0,"d":"$0.00"}}]
["LTC",null,null,{"$f":"Jurat!I$1","v":0},{"$f":"Jurat!D$33","v":"00:00:00"},"PY","1917-01-01","Region 8","Operating Expense","Medical Expense","NF & Hospice","2.5","Hospice Days",{"v":0,"d":"$0.00"},{"v":0,"d":"$0.00"},{"v":0,"d":"$0.00"},{"v":0,"d":"$0.00"},{"$f":"'LTC Rev-Exp Region 8'!T$21","v":{"v":0,"d":"$0.00"}}]
["LTC",null,null,{"$f":"Jurat!I$1","v":0},{"$f":"Jurat!D$33","v":"00:00:00"},"PY","1917-01-01","Region 8","Operating Expense","Medical Expense","NF & Hospice","2.6","Hospice FFS",{"v":0,"d":"$0.00"},{"v":0,"d":"$0.00"},{"v":0,"d":"$0.00"},{"v":0,"d":"$0.00"},{"$f":"'LTC Rev-Exp Region 8'!T$22","v":{"v":0,"d":"$0.00"}}]
["LTC",null,null,{"$f":"Jurat!I$1","v":0},{"$f":"Jurat!D$33","v":"00:00:00"},"PY","1917-01-01","Region 8","Operating Expense","Medical Expense","NF & Hospice","2.7","Ending IBNP for NF & Hospice",{"v":0,"d":"$0.00"},{"v":0,"d":"$0.00"},{"v":0,"d":"$0.00"},{"v":0,"d":"$0.00"},{"$f":"'LTC Rev-Exp Region 8'!T$23","v":{"v":0,"d":"$0.00"}}]
["LTC",null,null,{"$f":"Jurat!I$1","v":0},{"$f":"Jurat!D$33","v":"00:00:00"},"PY","1917-01-01","Region 8","Operating Expense","Medical Expense","NF & Hospice","2.8","NF & Hospice Subcapitated",{"v":0,"d":"$0.00"},{"v":0,"d":"$0.00"},{"v":0,"d":"$0.00"},{"v":0,"d":"$0.00"},{"$f":"'LTC Rev-Exp Region 8'!T$24","v":{"v":0,"d":"$0.00"}}]
["LTC",null,null,{"$f":"Jurat!I$1","v":0},{"$f":"Jurat!D$33","v":"00:00:00"},"PY","1917-01-01","Region 8","Operating Expense","Medical Expense","NF & Hospice","2.9","NF & Hospice Settlements",{"v":0,"d":"$0.00"},{"v":0,"d":"$0.00"},{"v":0,"d":"$0.00"},{"v":0,"d":"$0.00"},{"$f":"'LTC Rev-Exp Region 8'!T$25","v":{"v":0,"d":"$0.00"}}]
["LTC",null,null,{"$f":"Jurat!I$1","v":0},{"$f":"Jurat!D$33","v":"00:00:00"},"PY","1917-01-01","Region 8","Operating Expense","Medical Expense","LTC Services","2.11","Assisted Living FFS",{"v":0,"d":"$0.00"},{"v":0,"d":"$0.00"},{"v":0,"d":"$0.00"},{"v":0,"d":"$0.00"},{"$f":"'LTC Rev-Exp Region 8'!T$27","v":{"v":0,"d":"$0.00"}}]
["LTC",null,null,{"$f":"Jurat!I$1","v":0},{"$f":"Jurat!D$33","v":"00:00:00"},"PY","1917-01-01","Region 8","Operating Expense","Medical Expense","LTC Services","2.12","Home Health FFS",{"v":0,"d":"$0.00"},{"v":0,"d":"$0.00"},{"v":0,"d":"$0.00"},{"v":0,"d":"$0.00"},{"$f":"'LTC Rev-Exp Region 8'!T$28","v":{"v":0,"d":"$0.00"}}]
["LTC",null,null,{"$f":"Jurat!I$1","v":0},{"$f":"Jurat!D$33","v":"00:00:00"},"PY","1917-01-01","Region 8","Operating Expense","Medical Expense","LTC Services","2.13","Medical Equipment/Supplies FFS",{"v":0,"d":"$0.00"},{"v":0,"d":"$0.00"},{"v":0,"d":"$0.00"},{"v":0,"d":"$0.00"},{"$f":"'LTC Rev-Exp Region 8'!T$29","v":{"v":0,"d":"$0.00"}}]
["LTC",null,null,{"$f":"Jurat!I$1","v":0},{"$f":"Jurat!D$33","v":"00:00:00"},"PY","1917-01-01","Region 8","Operating Expense","Medical Expense","LTC Services","2.14","Therapy FFS",{"v":0,"d":"$0.00"},{"v":0,"d":"$0.00"},{"v":0,"d":"$0.00"},{"v":0,"d":"$0.00"},{"$f":"'LTC Rev-Exp Region 8'!T$30","v":{"v":0,"d":"$0.00"}}]
["LTC",null,null,{"$f":"Jurat!I$1","v":0},{"$f":"Jurat!D$33","v":"00:00:00"},"PY","1917-01-01","Region 8","Operating Expense","Medical Expense","LTC Services","2.15","Transportation FFS",{"v":0,"d":"$0.00"},{"v":0,"d":"$0.00"},{"v":0,"d":"$0.00"},{"v":0,"d":"$0.00"},{"$f":"'LTC Rev-Exp Region 8'!T$31","v":{"v":0,"d":"$0.00"}}]
["LTC",null,null,{"$f":"Jurat!I$1","v":0},{"$f":"Jurat!D$33","v":"00:00:00"},"PY","1917-01-01","Region 8","Operating Expense","Medical Expense","LTC Services","2.16","Case Management FFS (Plan Provided)",{"v":0,"d":"$0.00"},{"v":0,"d":"$0.00"},{"v":0,"d":"$0.00"},{"v":0,"d":"$0.00"},{"$f":"'LTC Rev-Exp Region 8'!T$32","v":{"v":0,"d":"$0.00"}}]
["LTC",null,null,{"$f":"Jurat!I$1","v":0},{"$f":"Jurat!D$33","v":"00:00:00"},"PY","1917-01-01","Region 8","Operating Expense","Medical Expense","LTC Services","2.17","Case Management FF (Non-Plan Provided)",{"v":0,"d":"$0.00"},{"v":0,"d":"$0.00"},{"v":0,"d":"$0.00"},{"v":0,"d":"$0.00"},{"$f":"'LTC Rev-Exp Region 8'!T$33","v":{"v":0,"d":"$0.00"}}]
["LTC",null,null,{"$f":"Jurat!I$1","v":0},{"$f":"Jurat!D$33","v":"00:00:00"},"PY","1917-01-01","Region 8","Operating Expense","Medical Expense","LTC Services","2.18","HCBS FFS",{"v":0,"d":"$0.00"},{"v":0,"d":"$0.00"},{"v":0,"d":"$0.00"},{"v":0,"d":"$0.00"},{"$f":"'LTC Rev-Exp Region 8'!T$34","v":{"v":0,"d":"$0.00"}}]
["LTC",null,null,{"$f":"Jurat!I$1","v":0},{"$f":"Jurat!D$33","v":"00:00:00"},"PY","1917-01-01","Region 8","Operating Expense","Medical Expense","LTC Services","2.19","Subcapitated LTC Services",{"v":0,"d":"$0.00"},{"v":0,"d":"$0.00"},{"v":0,"d":"$0.00"},{"v":0,"d":"$0.00"},{"$f":"'LTC Rev-Exp Region 8'!T$35","v":{"v":0,"d":"$0.00"}}]
["LTC",null,null,{"$f":"Jurat!I$1","v":0},{"$f":"Jurat!D$33","v":"00:00:00"},"PY","1917-01-01","Region 8","Operating Expense","Medical Expense","LTC Services","2.20","Ending IBNP for Long Term Care Services",{"v":0,"d":"$0.00"},{"v":0,"d":"$0.00"},{"v":0,"d":"$0.00"},{"v":0,"d":"$0.00"},{"$f":"'LTC Rev-Exp Region 8'!T$36","v":{"v":0,"d":"$0.00"}}]
["LTC",null,null,{"$f":"Jurat!I$1","v":0},{"$f":"Jurat!D$33","v":"00:00:00"},"PY","1917-01-01","Region 8","Operating Expense","Medical Expense","LTC Services","2.21","LTC Services Settlements",{"v":0,"d":"$0.00"},{"v":0,"d":"$0.00"},{"v":0,"d":"$0.00"},{"v":0,"d":"$0.00"},{"$f":"'LTC Rev-Exp Region 8'!T$37","v":{"v":0,"d":"$0.00"}}]
["LTC",null,null,{"$f":"Jurat!I$1","v":0},{"$f":"Jurat!D$33","v":"00:00:00"},"PY","1917-01-01","Region 8","Operating Expense","Medical Expense","Expanded Benefits","3.1","Expanded Benefits FFS",{"v":0,"d":"$0.00"},{"v":0,"d":"$0.00"},{"v":0,"d":"$0.00"},{"v":0,"d":"$0.00"},{"$f":"'LTC Rev-Exp Region 8'!T$39","v":{"v":0,"d":"$0.00"}}]
["LTC",null,null,{"$f":"Jurat!I$1","v":0},{"$f":"Jurat!D$33","v":"00:00:00"},"PY","1917-01-01","Region 8","Operating Expense","Medical Expense","Expanded Benefits","3.2","Expanded Benefits Subcapitation",{"v":0,"d":"$0.00"},{"v":0,"d":"$0.00"},{"v":0,"d":"$0.00"},{"v":0,"d":"$0.00"},{"$f":"'LTC Rev-Exp Region 8'!T$40","v":{"v":0,"d":"$0.00"}}]
["LTC",null,null,{"$f":"Jurat!I$1","v":0},{"$f":"Jurat!D$33","v":"00:00:00"},"PY","1917-01-01","Region 8","Operating Expense","Medical Expense","Expanded Benefits","3.3","Ending IBNP for Expanded Benefits",{"v":0,"d":"$0.00"},{"v":0,"d":"$0.00"},{"v":0,"d":"$0.00"},{"v":0,"d":"$0.00"},{"$f":"'LTC Rev-Exp Region 8'!T$41","v":{"v":0,"d":"$0.00"}}]
["LTC",null,null,{"$f":"Jurat!I$1","v":0},{"$f":"Jurat!D$33","v":"00:00:00"},"PY","1917-01-01","Region 8","Operating Expense","Medical Expense","Expanded Benefits","3.4","Expanded Benefits Settlements",{"v":0,"d":"$0.00"},{"v":0,"d":"$0.00"},{"v":0,"d":"$0.00"},{"v":0,"d":"$0.00"},{"$f":"'LTC Rev-Exp Region 8'!T$42","v":{"v":0,"d":"$0.00"}}]
["LTC",null,null,{"$f":"Jurat!I$1","v":0},{"$f":"Jurat!D$33","v":"00:00:00"},"PY","1917-01-01","Region 8","Operating Expense","Medical Expense","Other Medical","4.5","TPL & Fraud/Abuse Recoveries",{"v":0,"d":"$0.00"},{"v":0,"d":"$0.00"},{"v":0,"d":"$0.00"},{"v":0,"d":"$0.00"},{"$f":"'LTC Rev-Exp Region 8'!T$48","v":{"v":0,"d":"$0.00"}}]
["LTC",null,null,{"$f":"Jurat!I$1","v":0},{"$f":"Jurat!D$33","v":"00:00:00"},"PY","1917-01-01","Region 8","Operating Expense","Medical Expense","Other Medical","4.6.1","Premium Deficiency Reserve",{"v":0,"d":"$0.00"},{"v":0,"d":"$0.00"},{"v":0,"d":"$0.00"},{"v":0,"d":"$0.00"},{"$f":"'LTC Rev-Exp Region 8'!T$49","v":{"v":0,"d":"$0.00"}}]
["LTC",null,null,{"$f":"Jurat!I$1","v":0},{"$f":"Jurat!D$33","v":"00:00:00"},"PY","1917-01-01","Region 8","Operating Expense","Medical Expense","Other Medical","4.8","Reinsurance Premiums",{"v":0,"d":"$0.00"},{"v":0,"d":"$0.00"},{"v":0,"d":"$0.00"},{"v":0,"d":"$0.00"},{"$f":"'LTC Rev-Exp Region 8'!T$51","v":{"v":0,"d":"$0.00"}}]
["LTC",null,null,{"$f":"Jurat!I$1","v":0},{"$f":"Jurat!D$33","v":"00:00:00"},"PY","1917-01-01","Region 8","Operating Expense","Medical Expense","Other Medical","4.9","Reinsurance Recoveries",{"v":0,"d":"$0.00"},{"v":0,"d":"$0.00"},{"v":0,"d":"$0.00"},{"v":0,"d":"$0.00"},{"$f":"'LTC Rev-Exp Region 8'!T$52","v":{"v":0,"d":"$0.00"}}]
["LTC",null,null,{"$f":"Jurat!I$1","v":0},{"$f":"Jurat!D$33","v":"00:00:00"},"PY","1917-01-01","Region 8","Operating Expense","Administrative Expense","Administrative","5.1","Salaries & Benefits",{"v":0,"d":"$0.00"},{"v":0,"d":"$0.00"},{"v":0,"d":"$0.00"},{"v":0,"d":"$0.00"},{"$f":"'LTC Rev-Exp Region 8'!T$57","v":{"v":0,"d":"$0.00"}}]
["LTC",null,null,{"$f":"Jurat!I$1","v":0},{"$f":"Jurat!D$33","v":"00:00:00"},"PY","1917-01-01","Region 8","Operating Expense","Administrative Expense","Administrative","5.2","Administrative Services",{"v":0,"d":"$0.00"},{"v":0,"d":"$0.00"},{"v":0,"d":"$0.00"},{"v":0,"d":"$0.00"},{"$f":"'LTC Rev-Exp Region 8'!T$58","v":{"v":0,"d":"$0.00"}}]
["LTC",null,null,{"$f":"Jurat!I$1","v":0},{"$f":"Jurat!D$33","v":"00:00:00"},"PY","1917-01-01","Region 8","Operating Expense","Administrative Expense","Administrative","5.3","Information Systems",{"v":0,"d":"$0.00"},{"v":0,"d":"$0.00"},{"v":0,"d":"$0.00"},{"v":0,"d":"$0.00"},{"$f":"'LTC Rev-Exp Region 8'!T$59","v":{"v":0,"d":"$0.00"}}]
["LTC",null,null,{"$f":"Jurat!I$1","v":0},{"$f":"Jurat!D$33","v":"00:00:00"},"PY","1917-01-01","Region 8","Operating Expense","Administrative Expense","Administrative","5.4","Marketing Expenses",{"v":0,"d":"$0.00"},{"v":0,"d":"$0.00"},{"v":0,"d":"$0.00"},{"v":0,"d":"$0.00"},{"$f":"'LTC Rev-Exp Region 8'!T$60","v":{"v":0,"d":"$0.00"}}]
["LTC",null,null,{"$f":"Jurat!I$1","v":0},{"$f":"Jurat!D$33","v":"00:00:00"},"PY","1917-01-01","Region 8","Operating Expense","Administrative Expense","Administrative","5.5","General  Administration",{"v":0,"d":"$0.00"},{"v":0,"d":"$0.00"},{"v":0,"d":"$0.00"},{"v":0,"d":"$0.00"},{"$f":"'LTC Rev-Exp Region 8'!T$61","v":{"v":0,"d":"$0.00"}}]
["LTC",null,null,{"$f":"Jurat!I$1","v":0},{"$f":"Jurat!D$33","v":"00:00:00"},"PY","1917-01-01","Region 8","Operating Expense","Administrative Expense","Administrative","5.6","Compliance/Regulatory",{"v":0,"d":"$0.00"},{"v":0,"d":"$0.00"},{"v":0,"d":"$0.00"},{"v":0,"d":"$0.00"},{"$f":"'LTC Rev-Exp Region 8'!T$62","v":{"v":0,"d":"$0.00"}}]
["LTC",null,null,{"$f":"Jurat!I$1","v":0},{"$f":"Jurat!D$33","v":"00:00:00"},"PY","1917-01-01","Region 8","Operating Expense","Taxes & Fees","Taxes & Fees","6.1","State Premium Tax",{"v":0,"d":"$0.00"},{"v":0,"d":"$0.00"},{"v":0,"d":"$0.00"},{"v":0,"d":"$0.00"},{"$f":"'LTC Rev-Exp Region 8'!T$64","v":{"v":0,"d":"$0.00"}}]
["LTC",null,null,{"$f":"Jurat!I$1","v":0},{"$f":"Jurat!D$33","v":"00:00:00"},"PY","1917-01-01","Region 8","Operating Expense","Taxes & Fees","Taxes & Fees","6.2","Department of Insurance Assessments",{"v":0,"d":"$0.00"},{"v":0,"d":"$0.00"},{"v":0,"d":"$0.00"},{"v":0,"d":"$0.00"},{"$f":"'LTC Rev-Exp Region 8'!T$65","v":{"v":0,"d":"$0.00"}}]
["LTC",null,null,{"$f":"Jurat!I$1","v":0},{"$f":"Jurat!D$33","v":"00:00:00"},"PY","1917-01-01","Region 8","Non-Operating Expense","Income Tax Expense","Income Tax Expense","9.0","Income Tax Expense",{"v":0,"d":"$0.00"},{"v":0,"d":"$0.00"},{"v":0,"d":"$0.00"},{"v":0,"d":"$0.00"},{"$f":"'LTC Rev-Exp Region 8'!T$72","v":{"v":0,"d":"$0.00"}}]
["LTC",null,null,{"$f":"Jurat!I$1","v":0},{"$f":"Jurat!D$33","v":"00:00:00"},"PY","1917-01-01","Region 7","Member Months","Member Months","Member Months",null,"Member Months",{"v":0,"d":"$0.00"},{"v":0,"d":"$0.00"},{"v":0,"d":"$0.00"},{"v":0,"d":"$0.00"},{"$f":"'LTC Rev-Exp Region 7'!T$9","v":{"v":0,"d":"$0.00"}}]
["LTC",null,null,{"$f":"Jurat!I$1","v":0},{"$f":"Jurat!D$33","v":"00:00:00"},"PY","1917-01-01","Region 7","Operating Revenue","Capitation","Capitation",1.1,"Capitation",{"v":0,"d":"$0.00"},{"v":0,"d":"$0.00"},{"v":0,"d":"$0.00"},{"v":0,"d":"$0.00"},{"$f":"'LTC Rev-Exp Region 7'!T$11","v":{"v":0,"d":"$0.00"}}]
["LTC",null,null,{"$f":"Jurat!I$1","v":0},{"$f":"Jurat!D$33","v":"00:00:00"},"PY","1917-01-01","Region 7","Operating Revenue","Capitation","NH Rate Reconciliation",1.2,"NH Rate Reconciliation",{"v":0,"d":"$0.00"},{"v":0,"d":"$0.00"},{"v":0,"d":"$0.00"},{"v":0,"d":"$0.00"},{"$f":"'LTC Rev-Exp Region 7'!T$12","v":{"v":0,"d":"$0.00"}}]
["LTC",null,null,{"$f":"Jurat!I$1","v":0},{"$f":"Jurat!D$33","v":"00:00:00"},"PY","1917-01-01","Region 7","Operating Revenue","Other Revenue","Other Revenue",1.3,"Other Revenue",{"v":0,"d":"$0.00"},{"v":0,"d":"$0.00"},{"v":0,"d":"$0.00"},{"v":0,"d":"$0.00"},{"$f":"'LTC Rev-Exp Region 7'!T$13","v":{"v":0,"d":"$0.00"}}]
["LTC",null,null,{"$f":"Jurat!I$1","v":0},{"$f":"Jurat!D$33","v":"00:00:00"},"PY","1917-01-01","Region 7","Operating Expense","Medical Expense","NF & Hospice","2.1","Nursing Facility Days (Medicaid)",{"v":0,"d":"$0.00"},{"v":0,"d":"$0.00"},{"v":0,"d":"$0.00"},{"v":0,"d":"$0.00"},{"$f":"'LTC Rev-Exp Region 7'!T$17","v":{"v":0,"d":"$0.00"}}]
["LTC",null,null,{"$f":"Jurat!I$1","v":0},{"$f":"Jurat!D$33","v":"00:00:00"},"PY","1917-01-01","Region 7","Operating Expense","Medical Expense","NF & Hospice","2.2","Nursing Facility Days (Crossover)",{"v":0,"d":"$0.00"},{"v":0,"d":"$0.00"},{"v":0,"d":"$0.00"},{"v":0,"d":"$0.00"},{"$f":"'LTC Rev-Exp Region 7'!T$18","v":{"v":0,"d":"$0.00"}}]
["LTC",null,null,{"$f":"Jurat!I$1","v":0},{"$f":"Jurat!D$33","v":"00:00:00"},"PY","1917-01-01","Region 7","Operating Expense","Medical Expense","NF & Hospice","2.3","Nursing Facility FFS (Medicaid)",{"v":0,"d":"$0.00"},{"v":0,"d":"$0.00"},{"v":0,"d":"$0.00"},{"v":0,"d":"$0.00"},{"$f":"'LTC Rev-Exp Region 7'!T$19","v":{"v":0,"d":"$0.00"}}]
["LTC",null,null,{"$f":"Jurat!I$1","v":0},{"$f":"Jurat!D$33","v":"00:00:00"},"PY","1917-01-01","Region 7","Operating Expense","Medical Expense","NF & Hospice","2.4","Nursing Facility FFS (Crossover)",{"v":0,"d":"$0.00"},{"v":0,"d":"$0.00"},{"v":0,"d":"$0.00"},{"v":0,"d":"$0.00"},{"$f":"'LTC Rev-Exp Region 7'!T$20","v":{"v":0,"d":"$0.00"}}]
["LTC",null,null,{"$f":"Jurat!I$1","v":0},{"$f":"Jurat!D$33","v":"00:00:00"},"PY","1917-01-01","Region 7","Operating Expense","Medical Expense","NF & Hospice","2.5","Hospice Days",{"v":0,"d":"$0.00"},{"v":0,"d":"$0.00"},{"v":0,"d":"$0.00"},{"v":0,"d":"$0.00"},{"$f":"'LTC Rev-Exp Region 7'!T$21","v":{"v":0,"d":"$0.00"}}]
["LTC",null,null,{"$f":"Jurat!I$1","v":0},{"$f":"Jurat!D$33","v":"00:00:00"},"PY","1917-01-01","Region 7","Operating Expense","Medical Expense","NF & Hospice","2.6","Hospice FFS",{"v":0,"d":"$0.00"},{"v":0,"d":"$0.00"},{"v":0,"d":"$0.00"},{"v":0,"d":"$0.00"},{"$f":"'LTC Rev-Exp Region 7'!T$22","v":{"v":0,"d":"$0.00"}}]
["LTC",null,null,{"$f":"Jurat!I$1","v":0},{"$f":"Jurat!D$33","v":"00:00:00"},"PY","1917-01-01","Region 7","Operating Expense","Medical Expense","NF & Hospice","2.7","Ending IBNP for NF & Hospice",{"v":0,"d":"$0.00"},{"v":0,"d":"$0.00"},{"v":0,"d":"$0.00"},{"v":0,"d":"$0.00"},{"$f":"'LTC Rev-Exp Region 7'!T$23","v":{"v":0,"d":"$0.00"}}]
["LTC",null,null,{"$f":"Jurat!I$1","v":0},{"$f":"Jurat!D$33","v":"00:00:00"},"PY","1917-01-01","Region 7","Operating Expense","Medical Expense","NF & Hospice","2.8","NF & Hospice Subcapitated",{"v":0,"d":"$0.00"},{"v":0,"d":"$0.00"},{"v":0,"d":"$0.00"},{"v":0,"d":"$0.00"},{"$f":"'LTC Rev-Exp Region 7'!T$24","v":{"v":0,"d":"$0.00"}}]
["LTC",null,null,{"$f":"Jurat!I$1","v":0},{"$f":"Jurat!D$33","v":"00:00:00"},"PY","1917-01-01","Region 7","Operating Expense","Medical Expense","NF & Hospice","2.9","NF & Hospice Settlements",{"v":0,"d":"$0.00"},{"v":0,"d":"$0.00"},{"v":0,"d":"$0.00"},{"v":0,"d":"$0.00"},{"$f":"'LTC Rev-Exp Region 7'!T$25","v":{"v":0,"d":"$0.00"}}]
["LTC",null,null,{"$f":"Jurat!I$1","v":0},{"$f":"Jurat!D$33","v":"00:00:00"},"PY","1917-01-01","Region 7","Operating Expense","Medical Expense","LTC Services","2.11","Assisted Living FFS",{"v":0,"d":"$0.00"},{"v":0,"d":"$0.00"},{"v":0,"d":"$0.00"},{"v":0,"d":"$0.00"},{"$f":"'LTC Rev-Exp Region 7'!T$27","v":{"v":0,"d":"$0.00"}}]
["LTC",null,null,{"$f":"Jurat!I$1","v":0},{"$f":"Jurat!D$33","v":"00:00:00"},"PY","1917-01-01","Region 7","Operating Expense","Medical Expense","LTC Services","2.12","Home Health FFS",{"v":0,"d":"$0.00"},{"v":0,"d":"$0.00"},{"v":0,"d":"$0.00"},{"v":0,"d":"$0.00"},{"$f":"'LTC Rev-Exp Region 7'!T$28","v":{"v":0,"d":"$0.00"}}]
["LTC",null,null,{"$f":"Jurat!I$1","v":0},{"$f":"Jurat!D$33","v":"00:00:00"},"PY","1917-01-01","Region 7","Operating Expense","Medical Expense","LTC Services","2.13","Medical Equipment/Supplies FFS",{"v":0,"d":"$0.00"},{"v":0,"d":"$0.00"},{"v":0,"d":"$0.00"},{"v":0,"d":"$0.00"},{"$f":"'LTC Rev-Exp Region 7'!T$29","v":{"v":0,"d":"$0.00"}}]
["LTC",null,null,{"$f":"Jurat!I$1","v":0},{"$f":"Jurat!D$33","v":"00:00:00"},"PY","1917-01-01","Region 7","Operating Expense","Medical Expense","LTC Services","2.14","Therapy FFS",{"v":0,"d":"$0.00"},{"v":0,"d":"$0.00"},{"v":0,"d":"$0.00"},{"v":0,"d":"$0.00"},{"$f":"'LTC Rev-Exp Region 7'!T$30","v":{"v":0,"d":"$0.00"}}]
["LTC",null,null,{"$f":"Jurat!I$1","v":0},{"$f":"Jurat!D$33","v":"00:00:00"},"PY","1917-01-01","Region 7","Operating Expense","Medical Expense","LTC Services","2.15","Transportation FFS",{"v":0,"d":"$0.00"},{"v":0,"d":"$0.00"},{"v":0,"d":"$0.00"},{"v":0,"d":"$0.00"},{"$f":"'LTC Rev-Exp Region 7'!T$31","v":{"v":0,"d":"$0.00"}}]
["LTC",null,null,{"$f":"Jurat!I$1","v":0},{"$f":"Jurat!D$33","v":"00:00:00"},"PY","1917-01-01","Region 7","Operating Expense","Medical Expense","LTC Services","2.16","Case Management FFS (Plan Provided)",{"v":0,"d":"$0.00"},{"v":0,"d":"$0.00"},{"v":0,"d":"$0.00"},{"v":0,"d":"$0.00"},{"$f":"'LTC Rev-Exp Region 7'!T$32","v":{"v":0,"d":"$0.00"}}]
["LTC",null,null,{"$f":"Jurat!I$1","v":0},{"$f":"Jurat!D$33","v":"00:00:00"},"PY","1917-01-01","Region 7","Operating Expense","Medical Expense","LTC Services","2.17","Case Management FF (Non-Plan Provided)",{"v":0,"d":"$0.00"},{"v":0,"d":"$0.00"},{"v":0,"d":"$0.00"},{"v":0,"d":"$0.00"},{"$f":"'LTC Rev-Exp Region 7'!T$33","v":{"v":0,"d":"$0.00"}}]
["LTC",null,null,{"$f":"Jurat!I$1","v":0},{"$f":"Jurat!D$33","v":"00:00:00"},"PY","1917-01-01","Region 7","Operating Expense","Medical Expense","LTC Services","2.18","HCBS FFS",{"v":0,"d":"$0.00"},{"v":0,"d":"$0.00"},{"v":0,"d":"$0.00"},{"v":0,"d":"$0.00"},{"$f":"'LTC Rev-Exp Region 7'!T$34","v":{"v":0,"d":"$0.00"}}]
["LTC",null,null,{"$f":"Jurat!I$1","v":0},{"$f":"Jurat!D$33","v":"00:00:00"},"PY","1917-01-01","Region 7","Operating Expense","Medical Expense","LTC Services","2.19","Subcapitated LTC Services",{"v":0,"d":"$0.00"},{"v":0,"d":"$0.00"},{"v":0,"d":"$0.00"},{"v":0,"d":"$0.00"},{"$f":"'LTC Rev-Exp Region 7'!T$35","v":{"v":0,"d":"$0.00"}}]
["LTC",null,null,{"$f":"Jurat!I$1","v":0},{"$f":"Jurat!D$33","v":"00:00:00"},"PY","1917-01-01","Region 7","Operating Expense","Medical Expense","LTC Services","2.20","Ending IBNP for Long Term Care Services",{"v":0,"d":"$0.00"},{"v":0,"d":"$0.00"},{"v":0,"d":"$0.00"},{"v":0,"d":"$0.00"},{"$f":"'LTC Rev-Exp Region 7'!T$36","v":{"v":0,"d":"$0.00"}}]
["LTC",null,null,{"$f":"Jurat!I$1","v":0},{"$f":"Jurat!D$33","v":"00:00:00"},"PY","1917-01-01","Region 7","Operating Expense","Medical Expense","LTC Services","2.21","LTC Services Settlements",{"v":0,"d":"$0.00"},{"v":0,"d":"$0.00"},{"v":0,"d":"$0.00"},{"v":0,"d":"$0.00"},{"$f":"'LTC Rev-Exp Region 7'!T$37","v":{"v":0,"d":"$0.00"}}]
["LTC",null,null,{"$f":"Jurat!I$1","v":0},{"$f":"Jurat!D$33","v":"00:00:00"},"PY","1917-01-01","Region 7","Operating Expense","Medical Expense","Expanded Benefits","3.1","Expanded Benefits FFS",{"v":0,"d":"$0.00"},{"v":0,"d":"$0.00"},{"v":0,"d":"$0.00"},{"v":0,"d":"$0.00"},{"$f":"'LTC Rev-Exp Region 7'!T$39","v":{"v":0,"d":"$0.00"}}]
["LTC",null,null,{"$f":"Jurat!I$1","v":0},{"$f":"Jurat!D$33","v":"00:00:00"},"PY","1917-01-01","Region 7","Operating Expense","Medical Expense","Expanded Benefits","3.2","Expanded Benefits Subcapitation",{"v":0,"d":"$0.00"},{"v":0,"d":"$0.00"},{"v":0,"d":"$0.00"},{"v":0,"d":"$0.00"},{"$f":"'LTC Rev-Exp Region 7'!T$40","v":{"v":0,"d":"$0.00"}}]
["LTC",null,null,{"$f":"Jurat!I$1","v":0},{"$f":"Jurat!D$33","v":"00:00:00"},"PY","1917-01-01","Region 7","Operating Expense","Medical Expense","Expanded Benefits","3.3","Ending IBNP for Expanded Benefits",{"v":0,"d":"$0.00"},{"v":0,"d":"$0.00"},{"v":0,"d":"$0.00"},{"v":0,"d":"$0.00"},{"$f":"'LTC Rev-Exp Region 7'!T$41","v":{"v":0,"d":"$0.00"}}]
["LTC",null,null,{"$f":"Jurat!I$1","v":0},{"$f":"Jurat!D$33","v":"00:00:00"},"PY","1917-01-01","Region 7","Operating Expense","Medical Expense","Expanded Benefits","3.4","Expanded Benefits Settlements",{"v":0,"d":"$0.00"},{"v":0,"d":"$0.00"},{"v":0,"d":"$0.00"},{"v":0,"d":"$0.00"},{"$f":"'LTC Rev-Exp Region 7'!T$42","v":{"v":0,"d":"$0.00"}}]
["LTC",null,null,{"$f":"Jurat!I$1","v":0},{"$f":"Jurat!D$33","v":"00:00:00"},"PY","1917-01-01","Region 7","Operating Expense","Medical Expense","Other Medical","4.5","TPL & Fraud/Abuse Recoveries",{"v":0,"d":"$0.00"},{"v":0,"d":"$0.00"},{"v":0,"d":"$0.00"},{"v":0,"d":"$0.00"},{"$f":"'LTC Rev-Exp Region 7'!T$48","v":{"v":0,"d":"$0.00"}}]
["LTC",null,null,{"$f":"Jurat!I$1","v":0},{"$f":"Jurat!D$33","v":"00:00:00"},"PY","1917-01-01","Region 7","Operating Expense","Medical Expense","Other Medical","4.6.1","Premium Deficiency Reserve",{"v":0,"d":"$0.00"},{"v":0,"d":"$0.00"},{"v":0,"d":"$0.00"},{"v":0,"d":"$0.00"},{"$f":"'LTC Rev-Exp Region 7'!T$49","v":{"v":0,"d":"$0.00"}}]
["LTC",null,null,{"$f":"Jurat!I$1","v":0},{"$f":"Jurat!D$33","v":"00:00:00"},"PY","1917-01-01","Region 7","Operating Expense","Medical Expense","Other Medical","4.8","Reinsurance Premiums",{"v":0,"d":"$0.00"},{"v":0,"d":"$0.00"},{"v":0,"d":"$0.00"},{"v":0,"d":"$0.00"},{"$f":"'LTC Rev-Exp Region 7'!T$51","v":{"v":0,"d":"$0.00"}}]
["LTC",null,null,{"$f":"Jurat!I$1","v":0},{"$f":"Jurat!D$33","v":"00:00:00"},"PY","1917-01-01","Region 7","Operating Expense","Medical Expense","Other Medical","4.9","Reinsurance Recoveries",{"v":0,"d":"$0.00"},{"v":0,"d":"$0.00"},{"v":0,"d":"$0.00"},{"v":0,"d":"$0.00"},{"$f":"'LTC Rev-Exp Region 7'!T$52","v":{"v":0,"d":"$0.00"}}]
["LTC",null,null,{"$f":"Jurat!I$1","v":0},{"$f":"Jurat!D$33","v":"00:00:00"},"PY","1917-01-01","Region 7","Operating Expense","Administrative Expense","Administrative","5.1","Salaries & Benefits",{"v":0,"d":"$0.00"},{"v":0,"d":"$0.00"},{"v":0,"d":"$0.00"},{"v":0,"d":"$0.00"},{"$f":"'LTC Rev-Exp Region 7'!T$57","v":{"v":0,"d":"$0.00"}}]
["LTC",null,null,{"$f":"Jurat!I$1","v":0},{"$f":"Jurat!D$33","v":"00:00:00"},"PY","1917-01-01","Region 7","Operating Expense","Administrative Expense","Administrative","5.2","Administrative Services",{"v":0,"d":"$0.00"},{"v":0,"d":"$0.00"},{"v":0,"d":"$0.00"},{"v":0,"d":"$0.00"},{"$f":"'LTC Rev-Exp Region 7'!T$58","v":{"v":0,"d":"$0.00"}}]
["LTC",null,null,{"$f":"Jurat!I$1","v":0},{"$f":"Jurat!D$33","v":"00:00:00"},"PY","1917-01-01","Region 7","Operating Expense","Administrative Expense","Administrative","5.3","Information Systems",{"v":0,"d":"$0.00"},{"v":0,"d":"$0.00"},{"v":0,"d":"$0.00"},{"v":0,"d":"$0.00"},{"$f":"'LTC Rev-Exp Region 7'!T$59","v":{"v":0,"d":"$0.00"}}]
["LTC",null,null,{"$f":"Jurat!I$1","v":0},{"$f":"Jurat!D$33","v":"00:00:00"},"PY","1917-01-01","Region 7","Operating Expense","Administrative Expense","Administrative","5.4","Marketing Expenses",{"v":0,"d":"$0.00"},{"v":0,"d":"$0.00"},{"v":0,"d":"$0.00"},{"v":0,"d":"$0.00"},{"$f":"'LTC Rev-Exp Region 7'!T$60","v":{"v":0,"d":"$0.00"}}]
["LTC",null,null,{"$f":"Jurat!I$1","v":0},{"$f":"Jurat!D$33","v":"00:00:00"},"PY","1917-01-01","Region 7","Operating Expense","Administrative Expense","Administrative","5.5","General  Administration",{"v":0,"d":"$0.00"},{"v":0,"d":"$0.00"},{"v":0,"d":"$0.00"},{"v":0,"d":"$0.00"},{"$f":"'LTC Rev-Exp Region 7'!T$61","v":{"v":0,"d":"$0.00"}}]
["LTC",null,null,{"$f":"Jurat!I$1","v":0},{"$f":"Jurat!D$33","v":"00:00:00"},"PY","1917-01-01","Region 7","Operating Expense","Administrative Expense","Administrative","5.6","Compliance/Regulatory",{"v":0,"d":"$0.00"},{"v":0,"d":"$0.00"},{"v":0,"d":"$0.00"},{"v":0,"d":"$0.00"},{"$f":"'LTC Rev-Exp Region 7'!T$62","v":{"v":0,"d":"$0.00"}}]
["LTC",null,null,{"$f":"Jurat!I$1","v":0},{"$f":"Jurat!D$33","v":"00:00:00"},"PY","1917-01-01","Region 7","Operating Expense","Taxes & Fees","Taxes & Fees","6.1","State Premium Tax",{"v":0,"d":"$0.00"},{"v":0,"d":"$0.00"},{"v":0,"d":"$0.00"},{"v":0,"d":"$0.00"},{"$f":"'LTC Rev-Exp Region 7'!T$64","v":{"v":0,"d":"$0.00"}}]
["LTC",null,null,{"$f":"Jurat!I$1","v":0},{"$f":"Jurat!D$33","v":"00:00:00"},"PY","1917-01-01","Region 7","Operating Expense","Taxes & Fees","Taxes & Fees","6.2","Department of Insurance Assessments",{"v":0,"d":"$0.00"},{"v":0,"d":"$0.00"},{"v":0,"d":"$0.00"},{"v":0,"d":"$0.00"},{"$f":"'LTC Rev-Exp Region 7'!T$65","v":{"v":0,"d":"$0.00"}}]
["LTC",null,null,{"$f":"Jurat!I$1","v":0},{"$f":"Jurat!D$33","v":"00:00:00"},"PY","1917-01-01","Region 7","Non-Operating Expense","Income Tax Expense","Income Tax Expense","9.0","Income Tax Expense",{"v":0,"d":"$0.00"},{"v":0,"d":"$0.00"},{"v":0,"d":"$0.00"},{"v":0,"d":"$0.00"},{"$f":"'LTC Rev-Exp Region 7'!T$72","v":{"v":0,"d":"$0.00"}}]
["LTC",null,null,{"$f":"Jurat!I$1","v":0},{"$f":"Jurat!D$33","v":"00:00:00"},"PY","1917-01-01","Region 6","Member Months","Member Months","Member Months",null,"Member Months",{"v":0,"d":"$0.00"},{"v":0,"d":"$0.00"},{"v":0,"d":"$0.00"},{"v":0,"d":"$0.00"},{"$f":"'LTC Rev-Exp Region 6'!T$9","v":{"v":0,"d":"$0.00"}}]
["LTC",null,null,{"$f":"Jurat!I$1","v":0},{"$f":"Jurat!D$33","v":"00:00:00"},"PY","1917-01-01","Region 6","Operating Revenue","Capitation","Capitation",1.1,"Capitation",{"v":0,"d":"$0.00"},{"v":0,"d":"$0.00"},{"v":0,"d":"$0.00"},{"v":0,"d":"$0.00"},{"$f":"'LTC Rev-Exp Region 6'!T$11","v":{"v":0,"d":"$0.00"}}]
["LTC",null,null,{"$f":"Jurat!I$1","v":0},{"$f":"Jurat!D$33","v":"00:00:00"},"PY","1917-01-01","Region 6","Operating Revenue","Capitation","NH Rate Reconciliation",1.2,"NH Rate Reconciliation",{"v":0,"d":"$0.00"},{"v":0,"d":"$0.00"},{"v":0,"d":"$0.00"},{"v":0,"d":"$0.00"},{"$f":"'LTC Rev-Exp Region 6'!T$12","v":{"v":0,"d":"$0.00"}}]
["LTC",null,null,{"$f":"Jurat!I$1","v":0},{"$f":"Jurat!D$33","v":"00:00:00"},"PY","1917-01-01","Region 6","Operating Revenue","Other Revenue","Other Revenue",1.3,"Other Revenue",{"v":0,"d":"$0.00"},{"v":0,"d":"$0.00"},{"v":0,"d":"$0.00"},{"v":0,"d":"$0.00"},{"$f":"'LTC Rev-Exp Region 6'!T$13","v":{"v":0,"d":"$0.00"}}]
["LTC",null,null,{"$f":"Jurat!I$1","v":0},{"$f":"Jurat!D$33","v":"00:00:00"},"PY","1917-01-01","Region 6","Operating Expense","Medical Expense","NF & Hospice","2.1","Nursing Facility Days (Medicaid)",{"v":0,"d":"$0.00"},{"v":0,"d":"$0.00"},{"v":0,"d":"$0.00"},{"v":0,"d":"$0.00"},{"$f":"'LTC Rev-Exp Region 6'!T$17","v":{"v":0,"d":"$0.00"}}]
["LTC",null,null,{"$f":"Jurat!I$1","v":0},{"$f":"Jurat!D$33","v":"00:00:00"},"PY","1917-01-01","Region 6","Operating Expense","Medical Expense","NF & Hospice","2.2","Nursing Facility Days (Crossover)",{"v":0,"d":"$0.00"},{"v":0,"d":"$0.00"},{"v":0,"d":"$0.00"},{"v":0,"d":"$0.00"},{"$f":"'LTC Rev-Exp Region 6'!T$18","v":{"v":0,"d":"$0.00"}}]
["LTC",null,null,{"$f":"Jurat!I$1","v":0},{"$f":"Jurat!D$33","v":"00:00:00"},"PY","1917-01-01","Region 6","Operating Expense","Medical Expense","NF & Hospice","2.3","Nursing Facility FFS (Medicaid)",{"v":0,"d":"$0.00"},{"v":0,"d":"$0.00"},{"v":0,"d":"$0.00"},{"v":0,"d":"$0.00"},{"$f":"'LTC Rev-Exp Region 6'!T$19","v":{"v":0,"d":"$0.00"}}]
["LTC",null,null,{"$f":"Jurat!I$1","v":0},{"$f":"Jurat!D$33","v":"00:00:00"},"PY","1917-01-01","Region 6","Operating Expense","Medical Expense","NF & Hospice","2.4","Nursing Facility FFS (Crossover)",{"v":0,"d":"$0.00"},{"v":0,"d":"$0.00"},{"v":0,"d":"$0.00"},{"v":0,"d":"$0.00"},{"$f":"'LTC Rev-Exp Region 6'!T$20","v":{"v":0,"d":"$0.00"}}]
["LTC",null,null,{"$f":"Jurat!I$1","v":0},{"$f":"Jurat!D$33","v":"00:00:00"},"PY","1917-01-01","Region 6","Operating Expense","Medical Expense","NF & Hospice","2.5","Hospice Days",{"v":0,"d":"$0.00"},{"v":0,"d":"$0.00"},{"v":0,"d":"$0.00"},{"v":0,"d":"$0.00"},{"$f":"'LTC Rev-Exp Region 6'!T$21","v":{"v":0,"d":"$0.00"}}]
["LTC",null,null,{"$f":"Jurat!I$1","v":0},{"$f":"Jurat!D$33","v":"00:00:00"},"PY","1917-01-01","Region 6","Operating Expense","Medical Expense","NF & Hospice","2.6","Hospice FFS",{"v":0,"d":"$0.00"},{"v":0,"d":"$0.00"},{"v":0,"d":"$0.00"},{"v":0,"d":"$0.00"},{"$f":"'LTC Rev-Exp Region 6'!T$22","v":{"v":0,"d":"$0.00"}}]
["LTC",null,null,{"$f":"Jurat!I$1","v":0},{"$f":"Jurat!D$33","v":"00:00:00"},"PY","1917-01-01","Region 6","Operating Expense","Medical Expense","NF & Hospice","2.7","Ending IBNP for NF & Hospice",{"v":0,"d":"$0.00"},{"v":0,"d":"$0.00"},{"v":0,"d":"$0.00"},{"v":0,"d":"$0.00"},{"$f":"'LTC Rev-Exp Region 6'!T$23","v":{"v":0,"d":"$0.00"}}]
["LTC",null,null,{"$f":"Jurat!I$1","v":0},{"$f":"Jurat!D$33","v":"00:00:00"},"PY","1917-01-01","Region 6","Operating Expense","Medical Expense","NF & Hospice","2.8","NF & Hospice Subcapitated",{"v":0,"d":"$0.00"},{"v":0,"d":"$0.00"},{"v":0,"d":"$0.00"},{"v":0,"d":"$0.00"},{"$f":"'LTC Rev-Exp Region 6'!T$24","v":{"v":0,"d":"$0.00"}}]
["LTC",null,null,{"$f":"Jurat!I$1","v":0},{"$f":"Jurat!D$33","v":"00:00:00"},"PY","1917-01-01","Region 6","Operating Expense","Medical Expense","NF & Hospice","2.9","NF & Hospice Settlements",{"v":0,"d":"$0.00"},{"v":0,"d":"$0.00"},{"v":0,"d":"$0.00"},{"v":0,"d":"$0.00"},{"$f":"'LTC Rev-Exp Region 6'!T$25","v":{"v":0,"d":"$0.00"}}]
["LTC",null,null,{"$f":"Jurat!I$1","v":0},{"$f":"Jurat!D$33","v":"00:00:00"},"PY","1917-01-01","Region 6","Operating Expense","Medical Expense","LTC Services","2.11","Assisted Living FFS",{"v":0,"d":"$0.00"},{"v":0,"d":"$0.00"},{"v":0,"d":"$0.00"},{"v":0,"d":"$0.00"},{"$f":"'LTC Rev-Exp Region 6'!T$27","v":{"v":0,"d":"$0.00"}}]
["LTC",null,null,{"$f":"Jurat!I$1","v":0},{"$f":"Jurat!D$33","v":"00:00:00"},"PY","1917-01-01","Region 6","Operating Expense","Medical Expense","LTC Services","2.12","Home Health FFS",{"v":0,"d":"$0.00"},{"v":0,"d":"$0.00"},{"v":0,"d":"$0.00"},{"v":0,"d":"$0.00"},{"$f":"'LTC Rev-Exp Region 6'!T$28","v":{"v":0,"d":"$0.00"}}]
["LTC",null,null,{"$f":"Jurat!I$1","v":0},{"$f":"Jurat!D$33","v":"00:00:00"},"PY","1917-01-01","Region 6","Operating Expense","Medical Expense","LTC Services","2.13","Medical Equipment/Supplies FFS",{"v":0,"d":"$0.00"},{"v":0,"d":"$0.00"},{"v":0,"d":"$0.00"},{"v":0,"d":"$0.00"},{"$f":"'LTC Rev-Exp Region 6'!T$29","v":{"v":0,"d":"$0.00"}}]
["LTC",null,null,{"$f":"Jurat!I$1","v":0},{"$f":"Jurat!D$33","v":"00:00:00"},"PY","1917-01-01","Region 6","Operating Expense","Medical Expense","LTC Services","2.14","Therapy FFS",{"v":0,"d":"$0.00"},{"v":0,"d":"$0.00"},{"v":0,"d":"$0.00"},{"v":0,"d":"$0.00"},{"$f":"'LTC Rev-Exp Region 6'!T$30","v":{"v":0,"d":"$0.00"}}]
["LTC",null,null,{"$f":"Jurat!I$1","v":0},{"$f":"Jurat!D$33","v":"00:00:00"},"PY","1917-01-01","Region 6","Operating Expense","Medical Expense","LTC Services","2.15","Transportation FFS",{"v":0,"d":"$0.00"},{"v":0,"d":"$0.00"},{"v":0,"d":"$0.00"},{"v":0,"d":"$0.00"},{"$f":"'LTC Rev-Exp Region 6'!T$31","v":{"v":0,"d":"$0.00"}}]
["LTC",null,null,{"$f":"Jurat!I$1","v":0},{"$f":"Jurat!D$33","v":"00:00:00"},"PY","1917-01-01","Region 6","Operating Expense","Medical Expense","LTC Services","2.16","Case Management FFS (Plan Provided)",{"v":0,"d":"$0.00"},{"v":0,"d":"$0.00"},{"v":0,"d":"$0.00"},{"v":0,"d":"$0.00"},{"$f":"'LTC Rev-Exp Region 6'!T$32","v":{"v":0,"d":"$0.00"}}]
["LTC",null,null,{"$f":"Jurat!I$1","v":0},{"$f":"Jurat!D$33","v":"00:00:00"},"PY","1917-01-01","Region 6","Operating Expense","Medical Expense","LTC Services","2.17","Case Management FF (Non-Plan Provided)",{"v":0,"d":"$0.00"},{"v":0,"d":"$0.00"},{"v":0,"d":"$0.00"},{"v":0,"d":"$0.00"},{"$f":"'LTC Rev-Exp Region 6'!T$33","v":{"v":0,"d":"$0.00"}}]
["LTC",null,null,{"$f":"Jurat!I$1","v":0},{"$f":"Jurat!D$33","v":"00:00:00"},"PY","1917-01-01","Region 6","Operating Expense","Medical Expense","LTC Services","2.18","HCBS FFS",{"v":0,"d":"$0.00"},{"v":0,"d":"$0.00"},{"v":0,"d":"$0.00"},{"v":0,"d":"$0.00"},{"$f":"'LTC Rev-Exp Region 6'!T$34","v":{"v":0,"d":"$0.00"}}]
["LTC",null,null,{"$f":"Jurat!I$1","v":0},{"$f":"Jurat!D$33","v":"00:00:00"},"PY","1917-01-01","Region 6","Operating Expense","Medical Expense","LTC Services","2.19","Subcapitated LTC Services",{"v":0,"d":"$0.00"},{"v":0,"d":"$0.00"},{"v":0,"d":"$0.00"},{"v":0,"d":"$0.00"},{"$f":"'LTC Rev-Exp Region 6'!T$35","v":{"v":0,"d":"$0.00"}}]
["LTC",null,null,{"$f":"Jurat!I$1","v":0},{"$f":"Jurat!D$33","v":"00:00:00"},"PY","1917-01-01","Region 6","Operating Expense","Medical Expense","LTC Services","2.20","Ending IBNP for Long Term Care Services",{"v":0,"d":"$0.00"},{"v":0,"d":"$0.00"},{"v":0,"d":"$0.00"},{"v":0,"d":"$0.00"},{"$f":"'LTC Rev-Exp Region 6'!T$36","v":{"v":0,"d":"$0.00"}}]
["LTC",null,null,{"$f":"Jurat!I$1","v":0},{"$f":"Jurat!D$33","v":"00:00:00"},"PY","1917-01-01","Region 6","Operating Expense","Medical Expense","LTC Services","2.21","LTC Services Settlements",{"v":0,"d":"$0.00"},{"v":0,"d":"$0.00"},{"v":0,"d":"$0.00"},{"v":0,"d":"$0.00"},{"$f":"'LTC Rev-Exp Region 6'!T$37","v":{"v":0,"d":"$0.00"}}]
["LTC",null,null,{"$f":"Jurat!I$1","v":0},{"$f":"Jurat!D$33","v":"00:00:00"},"PY","1917-01-01","Region 6","Operating Expense","Medical Expense","Expanded Benefits","3.1","Expanded Benefits FFS",{"v":0,"d":"$0.00"},{"v":0,"d":"$0.00"},{"v":0,"d":"$0.00"},{"v":0,"d":"$0.00"},{"$f":"'LTC Rev-Exp Region 6'!T$39","v":{"v":0,"d":"$0.00"}}]
["LTC",null,null,{"$f":"Jurat!I$1","v":0},{"$f":"Jurat!D$33","v":"00:00:00"},"PY","1917-01-01","Region 6","Operating Expense","Medical Expense","Expanded Benefits","3.2","Expanded Benefits Subcapitation",{"v":0,"d":"$0.00"},{"v":0,"d":"$0.00"},{"v":0,"d":"$0.00"},{"v":0,"d":"$0.00"},{"$f":"'LTC Rev-Exp Region 6'!T$40","v":{"v":0,"d":"$0.00"}}]
["LTC",null,null,{"$f":"Jurat!I$1","v":0},{"$f":"Jurat!D$33","v":"00:00:00"},"PY","1917-01-01","Region 6","Operating Expense","Medical Expense","Expanded Benefits","3.3","Ending IBNP for Expanded Benefits",{"v":0,"d":"$0.00"},{"v":0,"d":"$0.00"},{"v":0,"d":"$0.00"},{"v":0,"d":"$0.00"},{"$f":"'LTC Rev-Exp Region 6'!T$41","v":{"v":0,"d":"$0.00"}}]
["LTC",null,null,{"$f":"Jurat!I$1","v":0},{"$f":"Jurat!D$33","v":"00:00:00"},"PY","1917-01-01","Region 6","Operating Expense","Medical Expense","Expanded Benefits","3.4","Expanded Benefits Settlements",{"v":0,"d":"$0.00"},{"v":0,"d":"$0.00"},{"v":0,"d":"$0.00"},{"v":0,"d":"$0.00"},{"$f":"'LTC Rev-Exp Region 6'!T$42","v":{"v":0,"d":"$0.00"}}]
["LTC",null,null,{"$f":"Jurat!I$1","v":0},{"$f":"Jurat!D$33","v":"00:00:00"},"PY","1917-01-01","Region 6","Operating Expense","Medical Expense","Other Medical","4.5","TPL & Fraud/Abuse Recoveries",{"v":0,"d":"$0.00"},{"v":0,"d":"$0.00"},{"v":0,"d":"$0.00"},{"v":0,"d":"$0.00"},{"$f":"'LTC Rev-Exp Region 6'!T$48","v":{"v":0,"d":"$0.00"}}]
["LTC",null,null,{"$f":"Jurat!I$1","v":0},{"$f":"Jurat!D$33","v":"00:00:00"},"PY","1917-01-01","Region 6","Operating Expense","Medical Expense","Other Medical","4.6.1","Premium Deficiency Reserve",{"v":0,"d":"$0.00"},{"v":0,"d":"$0.00"},{"v":0,"d":"$0.00"},{"v":0,"d":"$0.00"},{"$f":"'LTC Rev-Exp Region 6'!T$49","v":{"v":0,"d":"$0.00"}}]
["LTC",null,null,{"$f":"Jurat!I$1","v":0},{"$f":"Jurat!D$33","v":"00:00:00"},"PY","1917-01-01","Region 6","Operating Expense","Medical Expense","Other Medical","4.8","Reinsurance Premiums",{"v":0,"d":"$0.00"},{"v":0,"d":"$0.00"},{"v":0,"d":"$0.00"},{"v":0,"d":"$0.00"},{"$f":"'LTC Rev-Exp Region 6'!T$51","v":{"v":0,"d":"$0.00"}}]
["LTC",null,null,{"$f":"Jurat!I$1","v":0},{"$f":"Jurat!D$33","v":"00:00:00"},"PY","1917-01-01","Region 6","Operating Expense","Medical Expense","Other Medical","4.9","Reinsurance Recoveries",{"v":0,"d":"$0.00"},{"v":0,"d":"$0.00"},{"v":0,"d":"$0.00"},{"v":0,"d":"$0.00"},{"$f":"'LTC Rev-Exp Region 6'!T$52","v":{"v":0,"d":"$0.00"}}]
["LTC",null,null,{"$f":"Jurat!I$1","v":0},{"$f":"Jurat!D$33","v":"00:00:00"},"PY","1917-01-01","Region 6","Operating Expense","Administrative Expense","Administrative","5.1","Salaries & Benefits",{"v":0,"d":"$0.00"},{"v":0,"d":"$0.00"},{"v":0,"d":"$0.00"},{"v":0,"d":"$0.00"},{"$f":"'LTC Rev-Exp Region 6'!T$57","v":{"v":0,"d":"$0.00"}}]
["LTC",null,null,{"$f":"Jurat!I$1","v":0},{"$f":"Jurat!D$33","v":"00:00:00"},"PY","1917-01-01","Region 6","Operating Expense","Administrative Expense","Administrative","5.2","Administrative Services",{"v":0,"d":"$0.00"},{"v":0,"d":"$0.00"},{"v":0,"d":"$0.00"},{"v":0,"d":"$0.00"},{"$f":"'LTC Rev-Exp Region 6'!T$58","v":{"v":0,"d":"$0.00"}}]
["LTC",null,null,{"$f":"Jurat!I$1","v":0},{"$f":"Jurat!D$33","v":"00:00:00"},"PY","1917-01-01","Region 6","Operating Expense","Administrative Expense","Administrative","5.3","Information Systems",{"v":0,"d":"$0.00"},{"v":0,"d":"$0.00"},{"v":0,"d":"$0.00"},{"v":0,"d":"$0.00"},{"$f":"'LTC Rev-Exp Region 6'!T$59","v":{"v":0,"d":"$0.00"}}]
["LTC",null,null,{"$f":"Jurat!I$1","v":0},{"$f":"Jurat!D$33","v":"00:00:00"},"PY","1917-01-01","Region 6","Operating Expense","Administrative Expense","Administrative","5.4","Marketing Expenses",{"v":0,"d":"$0.00"},{"v":0,"d":"$0.00"},{"v":0,"d":"$0.00"},{"v":0,"d":"$0.00"},{"$f":"'LTC Rev-Exp Region 6'!T$60","v":{"v":0,"d":"$0.00"}}]
["LTC",null,null,{"$f":"Jurat!I$1","v":0},{"$f":"Jurat!D$33","v":"00:00:00"},"PY","1917-01-01","Region 6","Operating Expense","Administrative Expense","Administrative","5.5","General  Administration",{"v":0,"d":"$0.00"},{"v":0,"d":"$0.00"},{"v":0,"d":"$0.00"},{"v":0,"d":"$0.00"},{"$f":"'LTC Rev-Exp Region 6'!T$61","v":{"v":0,"d":"$0.00"}}]
["LTC",null,null,{"$f":"Jurat!I$1","v":0},{"$f":"Jurat!D$33","v":"00:00:00"},"PY","1917-01-01","Region 6","Operating Expense","Administrative Expense","Administrative","5.6","Compliance/Regulatory",{"v":0,"d":"$0.00"},{"v":0,"d":"$0.00"},{"v":0,"d":"$0.00"},{"v":0,"d":"$0.00"},{"$f":"'LTC Rev-Exp Region 6'!T$62","v":{"v":0,"d":"$0.00"}}]
["LTC",null,null,{"$f":"Jurat!I$1","v":0},{"$f":"Jurat!D$33","v":"00:00:00"},"PY","1917-01-01","Region 6","Operating Expense","Taxes & Fees","Taxes & Fees","6.1","State Premium Tax",{"v":0,"d":"$0.00"},{"v":0,"d":"$0.00"},{"v":0,"d":"$0.00"},{"v":0,"d":"$0.00"},{"$f":"'LTC Rev-Exp Region 6'!T$64","v":{"v":0,"d":"$0.00"}}]
["LTC",null,null,{"$f":"Jurat!I$1","v":0},{"$f":"Jurat!D$33","v":"00:00:00"},"PY","1917-01-01","Region 6","Operating Expense","Taxes & Fees","Taxes & Fees","6.2","Department of Insurance Assessments",{"v":0,"d":"$0.00"},{"v":0,"d":"$0.00"},{"v":0,"d":"$0.00"},{"v":0,"d":"$0.00"},{"$f":"'LTC Rev-Exp Region 6'!T$65","v":{"v":0,"d":"$0.00"}}]
["LTC",null,null,{"$f":"Jurat!I$1","v":0},{"$f":"Jurat!D$33","v":"00:00:00"},"PY","1917-01-01","Region 6","Non-Operating Expense","Income Tax Expense","Income Tax Expense","9.0","Income Tax Expense",{"v":0,"d":"$0.00"},{"v":0,"d":"$0.00"},{"v":0,"d":"$0.00"},{"v":0,"d":"$0.00"},{"$f":"'LTC Rev-Exp Region 6'!T$72","v":{"v":0,"d":"$0.00"}}]
["LTC",null,null,{"$f":"Jurat!I$1","v":0},{"$f":"Jurat!D$33","v":"00:00:00"},"PY","1917-01-01","Region 5","Member Months","Member Months","Member Months",null,"Member Months",{"v":0,"d":"$0.00"},{"v":0,"d":"$0.00"},{"v":0,"d":"$0.00"},{"v":0,"d":"$0.00"},{"$f":"'LTC Rev-Exp Region 5'!T$9","v":{"v":0,"d":"$0.00"}}]
["LTC",null,null,{"$f":"Jurat!I$1","v":0},{"$f":"Jurat!D$33","v":"00:00:00"},"PY","1917-01-01","Region 5","Operating Revenue","Capitation","Capitation",1.1,"Capitation",{"v":0,"d":"$0.00"},{"v":0,"d":"$0.00"},{"v":0,"d":"$0.00"},{"v":0,"d":"$0.00"},{"$f":"'LTC Rev-Exp Region 5'!T$11","v":{"v":0,"d":"$0.00"}}]
["LTC",null,null,{"$f":"Jurat!I$1","v":0},{"$f":"Jurat!D$33","v":"00:00:00"},"PY","1917-01-01","Region 5","Operating Revenue","Capitation","NH Rate Reconciliation",1.2,"NH Rate Reconciliation",{"v":0,"d":"$0.00"},{"v":0,"d":"$0.00"},{"v":0,"d":"$0.00"},{"v":0,"d":"$0.00"},{"$f":"'LTC Rev-Exp Region 5'!T$12","v":{"v":0,"d":"$0.00"}}]
["LTC",null,null,{"$f":"Jurat!I$1","v":0},{"$f":"Jurat!D$33","v":"00:00:00"},"PY","1917-01-01","Region 5","Operating Revenue","Other Revenue","Other Revenue",1.3,"Other Revenue",{"v":0,"d":"$0.00"},{"v":0,"d":"$0.00"},{"v":0,"d":"$0.00"},{"v":0,"d":"$0.00"},{"$f":"'LTC Rev-Exp Region 5'!T$13","v":{"v":0,"d":"$0.00"}}]
["LTC",null,null,{"$f":"Jurat!I$1","v":0},{"$f":"Jurat!D$33","v":"00:00:00"},"PY","1917-01-01","Region 5","Operating Expense","Medical Expense","NF & Hospice","2.1","Nursing Facility Days (Medicaid)",{"v":0,"d":"$0.00"},{"v":0,"d":"$0.00"},{"v":0,"d":"$0.00"},{"v":0,"d":"$0.00"},{"$f":"'LTC Rev-Exp Region 5'!T$17","v":{"v":0,"d":"$0.00"}}]
["LTC",null,null,{"$f":"Jurat!I$1","v":0},{"$f":"Jurat!D$33","v":"00:00:00"},"PY","1917-01-01","Region 5","Operating Expense","Medical Expense","NF & Hospice","2.2","Nursing Facility Days (Crossover)",{"v":0,"d":"$0.00"},{"v":0,"d":"$0.00"},{"v":0,"d":"$0.00"},{"v":0,"d":"$0.00"},{"$f":"'LTC Rev-Exp Region 5'!T$18","v":{"v":0,"d":"$0.00"}}]
["LTC",null,null,{"$f":"Jurat!I$1","v":0},{"$f":"Jurat!D$33","v":"00:00:00"},"PY","1917-01-01","Region 5","Operating Expense","Medical Expense","NF & Hospice","2.3","Nursing Facility FFS (Medicaid)",{"v":0,"d":"$0.00"},{"v":0,"d":"$0.00"},{"v":0,"d":"$0.00"},{"v":0,"d":"$0.00"},{"$f":"'LTC Rev-Exp Region 5'!T$19","v":{"v":0,"d":"$0.00"}}]
["LTC",null,null,{"$f":"Jurat!I$1","v":0},{"$f":"Jurat!D$33","v":"00:00:00"},"PY","1917-01-01","Region 5","Operating Expense","Medical Expense","NF & Hospice","2.4","Nursing Facility FFS (Crossover)",{"v":0,"d":"$0.00"},{"v":0,"d":"$0.00"},{"v":0,"d":"$0.00"},{"v":0,"d":"$0.00"},{"$f":"'LTC Rev-Exp Region 5'!T$20","v":{"v":0,"d":"$0.00"}}]
["LTC",null,null,{"$f":"Jurat!I$1","v":0},{"$f":"Jurat!D$33","v":"00:00:00"},"PY","1917-01-01","Region 5","Operating Expense","Medical Expense","NF & Hospice","2.5","Hospice Days",{"v":0,"d":"$0.00"},{"v":0,"d":"$0.00"},{"v":0,"d":"$0.00"},{"v":0,"d":"$0.00"},{"$f":"'LTC Rev-Exp Region 5'!T$21","v":{"v":0,"d":"$0.00"}}]
["LTC",null,null,{"$f":"Jurat!I$1","v":0},{"$f":"Jurat!D$33","v":"00:00:00"},"PY","1917-01-01","Region 5","Operating Expense","Medical Expense","NF & Hospice","2.6","Hospice FFS",{"v":0,"d":"$0.00"},{"v":0,"d":"$0.00"},{"v":0,"d":"$0.00"},{"v":0,"d":"$0.00"},{"$f":"'LTC Rev-Exp Region 5'!T$22","v":{"v":0,"d":"$0.00"}}]
["LTC",null,null,{"$f":"Jurat!I$1","v":0},{"$f":"Jurat!D$33","v":"00:00:00"},"PY","1917-01-01","Region 5","Operating Expense","Medical Expense","NF & Hospice","2.7","Ending IBNP for NF & Hospice",{"v":0,"d":"$0.00"},{"v":0,"d":"$0.00"},{"v":0,"d":"$0.00"},{"v":0,"d":"$0.00"},{"$f":"'LTC Rev-Exp Region 5'!T$23","v":{"v":0,"d":"$0.00"}}]
["LTC",null,null,{"$f":"Jurat!I$1","v":0},{"$f":"Jurat!D$33","v":"00:00:00"},"PY","1917-01-01","Region 5","Operating Expense","Medical Expense","NF & Hospice","2.8","NF & Hospice Subcapitated",{"v":0,"d":"$0.00"},{"v":0,"d":"$0.00"},{"v":0,"d":"$0.00"},{"v":0,"d":"$0.00"},{"$f":"'LTC Rev-Exp Region 5'!T$24","v":{"v":0,"d":"$0.00"}}]
["LTC",null,null,{"$f":"Jurat!I$1","v":0},{"$f":"Jurat!D$33","v":"00:00:00"},"PY","1917-01-01","Region 5","Operating Expense","Medical Expense","NF & Hospice","2.9","NF & Hospice Settlements",{"v":0,"d":"$0.00"},{"v":0,"d":"$0.00"},{"v":0,"d":"$0.00"},{"v":0,"d":"$0.00"},{"$f":"'LTC Rev-Exp Region 5'!T$25","v":{"v":0,"d":"$0.00"}}]
["LTC",null,null,{"$f":"Jurat!I$1","v":0},{"$f":"Jurat!D$33","v":"00:00:00"},"PY","1917-01-01","Region 5","Operating Expense","Medical Expense","LTC Services","2.11","Assisted Living FFS",{"v":0,"d":"$0.00"},{"v":0,"d":"$0.00"},{"v":0,"d":"$0.00"},{"v":0,"d":"$0.00"},{"$f":"'LTC Rev-Exp Region 5'!T$27","v":{"v":0,"d":"$0.00"}}]
["LTC",null,null,{"$f":"Jurat!I$1","v":0},{"$f":"Jurat!D$33","v":"00:00:00"},"PY","1917-01-01","Region 5","Operating Expense","Medical Expense","LTC Services","2.12","Home Health FFS",{"v":0,"d":"$0.00"},{"v":0,"d":"$0.00"},{"v":0,"d":"$0.00"},{"v":0,"d":"$0.00"},{"$f":"'LTC Rev-Exp Region 5'!T$28","v":{"v":0,"d":"$0.00"}}]
["LTC",null,null,{"$f":"Jurat!I$1","v":0},{"$f":"Jurat!D$33","v":"00:00:00"},"PY","1917-01-01","Region 5","Operating Expense","Medical Expense","LTC Services","2.13","Medical Equipment/Supplies FFS",{"v":0,"d":"$0.00"},{"v":0,"d":"$0.00"},{"v":0,"d":"$0.00"},{"v":0,"d":"$0.00"},{"$f":"'LTC Rev-Exp Region 5'!T$29","v":{"v":0,"d":"$0.00"}}]
["LTC",null,null,{"$f":"Jurat!I$1","v":0},{"$f":"Jurat!D$33","v":"00:00:00"},"PY","1917-01-01","Region 5","Operating Expense","Medical Expense","LTC Services","2.14","Therapy FFS",{"v":0,"d":"$0.00"},{"v":0,"d":"$0.00"},{"v":0,"d":"$0.00"},{"v":0,"d":"$0.00"},{"$f":"'LTC Rev-Exp Region 5'!T$30","v":{"v":0,"d":"$0.00"}}]
["LTC",null,null,{"$f":"Jurat!I$1","v":0},{"$f":"Jurat!D$33","v":"00:00:00"},"PY","1917-01-01","Region 5","Operating Expense","Medical Expense","LTC Services","2.15","Transportation FFS",{"v":0,"d":"$0.00"},{"v":0,"d":"$0.00"},{"v":0,"d":"$0.00"},{"v":0,"d":"$0.00"},{"$f":"'LTC Rev-Exp Region 5'!T$31","v":{"v":0,"d":"$0.00"}}]
["LTC",null,null,{"$f":"Jurat!I$1","v":0},{"$f":"Jurat!D$33","v":"00:00:00"},"PY","1917-01-01","Region 5","Operating Expense","Medical Expense","LTC Services","2.16","Case Management FFS (Plan Provided)",{"v":0,"d":"$0.00"},{"v":0,"d":"$0.00"},{"v":0,"d":"$0.00"},{"v":0,"d":"$0.00"},{"$f":"'LTC Rev-Exp Region 5'!T$32","v":{"v":0,"d":"$0.00"}}]
["LTC",null,null,{"$f":"Jurat!I$1","v":0},{"$f":"Jurat!D$33","v":"00:00:00"},"PY","1917-01-01","Region 5","Operating Expense","Medical Expense","LTC Services","2.17","Case Management FF (Non-Plan Provided)",{"v":0,"d":"$0.00"},{"v":0,"d":"$0.00"},{"v":0,"d":"$0.00"},{"v":0,"d":"$0.00"},{"$f":"'LTC Rev-Exp Region 5'!T$33","v":{"v":0,"d":"$0.00"}}]
["LTC",null,null,{"$f":"Jurat!I$1","v":0},{"$f":"Jurat!D$33","v":"00:00:00"},"PY","1917-01-01","Region 5","Operating Expense","Medical Expense","LTC Services","2.18","HCBS FFS",{"v":0,"d":"$0.00"},{"v":0,"d":"$0.00"},{"v":0,"d":"$0.00"},{"v":0,"d":"$0.00"},{"$f":"'LTC Rev-Exp Region 5'!T$34","v":{"v":0,"d":"$0.00"}}]
["LTC",null,null,{"$f":"Jurat!I$1","v":0},{"$f":"Jurat!D$33","v":"00:00:00"},"PY","1917-01-01","Region 5","Operating Expense","Medical Expense","LTC Services","2.19","Subcapitated LTC Services",{"v":0,"d":"$0.00"},{"v":0,"d":"$0.00"},{"v":0,"d":"$0.00"},{"v":0,"d":"$0.00"},{"$f":"'LTC Rev-Exp Region 5'!T$35","v":{"v":0,"d":"$0.00"}}]
["LTC",null,null,{"$f":"Jurat!I$1","v":0},{"$f":"Jurat!D$33","v":"00:00:00"},"PY","1917-01-01","Region 5","Operating Expense","Medical Expense","LTC Services","2.20","Ending IBNP for Long Term Care Services",{"v":0,"d":"$0.00"},{"v":0,"d":"$0.00"},{"v":0,"d":"$0.00"},{"v":0,"d":"$0.00"},{"$f":"'LTC Rev-Exp Region 5'!T$36","v":{"v":0,"d":"$0.00"}}]
["LTC",null,null,{"$f":"Jurat!I$1","v":0},{"$f":"Jurat!D$33","v":"00:00:00"},"PY","1917-01-01","Region 5","Operating Expense","Medical Expense","LTC Services","2.21","LTC Services Settlements",{"v":0,"d":"$0.00"},{"v":0,"d":"$0.00"},{"v":0,"d":"$0.00"},{"v":0,"d":"$0.00"},{"$f":"'LTC Rev-Exp Region 5'!T$37","v":{"v":0,"d":"$0.00"}}]
["LTC",null,null,{"$f":"Jurat!I$1","v":0},{"$f":"Jurat!D$33","v":"00:00:00"},"PY","1917-01-01","Region 5","Operating Expense","Medical Expense","Expanded Benefits","3.1","Expanded Benefits FFS",{"v":0,"d":"$0.00"},{"v":0,"d":"$0.00"},{"v":0,"d":"$0.00"},{"v":0,"d":"$0.00"},{"$f":"'LTC Rev-Exp Region 5'!T$39","v":{"v":0,"d":"$0.00"}}]
["LTC",null,null,{"$f":"Jurat!I$1","v":0},{"$f":"Jurat!D$33","v":"00:00:00"},"PY","1917-01-01","Region 5","Operating Expense","Medical Expense","Expanded Benefits","3.2","Expanded Benefits Subcapitation",{"v":0,"d":"$0.00"},{"v":0,"d":"$0.00"},{"v":0,"d":"$0.00"},{"v":0,"d":"$0.00"},{"$f":"'LTC Rev-Exp Region 5'!T$40","v":{"v":0,"d":"$0.00"}}]
["LTC",null,null,{"$f":"Jurat!I$1","v":0},{"$f":"Jurat!D$33","v":"00:00:00"},"PY","1917-01-01","Region 5","Operating Expense","Medical Expense","Expanded Benefits","3.3","Ending IBNP for Expanded Benefits",{"v":0,"d":"$0.00"},{"v":0,"d":"$0.00"},{"v":0,"d":"$0.00"},{"v":0,"d":"$0.00"},{"$f":"'LTC Rev-Exp Region 5'!T$41","v":{"v":0,"d":"$0.00"}}]
["LTC",null,null,{"$f":"Jurat!I$1","v":0},{"$f":"Jurat!D$33","v":"00:00:00"},"PY","1917-01-01","Region 5","Operating Expense","Medical Expense","Expanded Benefits","3.4","Expanded Benefits Settlements",{"v":0,"d":"$0.00"},{"v":0,"d":"$0.00"},{"v":0,"d":"$0.00"},{"v":0,"d":"$0.00"},{"$f":"'LTC Rev-Exp Region 5'!T$42","v":{"v":0,"d":"$0.00"}}]
["LTC",null,null,{"$f":"Jurat!I$1","v":0},{"$f":"Jurat!D$33","v":"00:00:00"},"PY","1917-01-01","Region 5","Operating Expense","Medical Expense","Other Medical","4.5","TPL & Fraud/Abuse Recoveries",{"v":0,"d":"$0.00"},{"v":0,"d":"$0.00"},{"v":0,"d":"$0.00"},{"v":0,"d":"$0.00"},{"$f":"'LTC Rev-Exp Region 5'!T$48","v":{"v":0,"d":"$0.00"}}]
["LTC",null,null,{"$f":"Jurat!I$1","v":0},{"$f":"Jurat!D$33","v":"00:00:00"},"PY","1917-01-01","Region 5","Operating Expense","Medical Expense","Other Medical","4.6.1","Premium Deficiency Reserve",{"v":0,"d":"$0.00"},{"v":0,"d":"$0.00"},{"v":0,"d":"$0.00"},{"v":0,"d":"$0.00"},{"$f":"'LTC Rev-Exp Region 5'!T$49","v":{"v":0,"d":"$0.00"}}]
["LTC",null,null,{"$f":"Jurat!I$1","v":0},{"$f":"Jurat!D$33","v":"00:00:00"},"PY","1917-01-01","Region 5","Operating Expense","Medical Expense","Other Medical","4.8","Reinsurance Premiums",{"v":0,"d":"$0.00"},{"v":0,"d":"$0.00"},{"v":0,"d":"$0.00"},{"v":0,"d":"$0.00"},{"$f":"'LTC Rev-Exp Region 5'!T$51","v":{"v":0,"d":"$0.00"}}]
["LTC",null,null,{"$f":"Jurat!I$1","v":0},{"$f":"Jurat!D$33","v":"00:00:00"},"PY","1917-01-01","Region 5","Operating Expense","Medical Expense","Other Medical","4.9","Reinsurance Recoveries",{"v":0,"d":"$0.00"},{"v":0,"d":"$0.00"},{"v":0,"d":"$0.00"},{"v":0,"d":"$0.00"},{"$f":"'LTC Rev-Exp Region 5'!T$52","v":{"v":0,"d":"$0.00"}}]
["LTC",null,null,{"$f":"Jurat!I$1","v":0},{"$f":"Jurat!D$33","v":"00:00:00"},"PY","1917-01-01","Region 5","Operating Expense","Administrative Expense","Administrative","5.1","Salaries & Benefits",{"v":0,"d":"$0.00"},{"v":0,"d":"$0.00"},{"v":0,"d":"$0.00"},{"v":0,"d":"$0.00"},{"$f":"'LTC Rev-Exp Region 5'!T$57","v":{"v":0,"d":"$0.00"}}]
["LTC",null,null,{"$f":"Jurat!I$1","v":0},{"$f":"Jurat!D$33","v":"00:00:00"},"PY","1917-01-01","Region 5","Operating Expense","Administrative Expense","Administrative","5.2","Administrative Services",{"v":0,"d":"$0.00"},{"v":0,"d":"$0.00"},{"v":0,"d":"$0.00"},{"v":0,"d":"$0.00"},{"$f":"'LTC Rev-Exp Region 5'!T$58","v":{"v":0,"d":"$0.00"}}]
["LTC",null,null,{"$f":"Jurat!I$1","v":0},{"$f":"Jurat!D$33","v":"00:00:00"},"PY","1917-01-01","Region 5","Operating Expense","Administrative Expense","Administrative","5.3","Information Systems",{"v":0,"d":"$0.00"},{"v":0,"d":"$0.00"},{"v":0,"d":"$0.00"},{"v":0,"d":"$0.00"},{"$f":"'LTC Rev-Exp Region 5'!T$59","v":{"v":0,"d":"$0.00"}}]
["LTC",null,null,{"$f":"Jurat!I$1","v":0},{"$f":"Jurat!D$33","v":"00:00:00"},"PY","1917-01-01","Region 5","Operating Expense","Administrative Expense","Administrative","5.4","Marketing Expenses",{"v":0,"d":"$0.00"},{"v":0,"d":"$0.00"},{"v":0,"d":"$0.00"},{"v":0,"d":"$0.00"},{"$f":"'LTC Rev-Exp Region 5'!T$60","v":{"v":0,"d":"$0.00"}}]
["LTC",null,null,{"$f":"Jurat!I$1","v":0},{"$f":"Jurat!D$33","v":"00:00:00"},"PY","1917-01-01","Region 5","Operating Expense","Administrative Expense","Administrative","5.5","General  Administration",{"v":0,"d":"$0.00"},{"v":0,"d":"$0.00"},{"v":0,"d":"$0.00"},{"v":0,"d":"$0.00"},{"$f":"'LTC Rev-Exp Region 5'!T$61","v":{"v":0,"d":"$0.00"}}]
["LTC",null,null,{"$f":"Jurat!I$1","v":0},{"$f":"Jurat!D$33","v":"00:00:00"},"PY","1917-01-01","Region 5","Operating Expense","Administrative Expense","Administrative","5.6","Compliance/Regulatory",{"v":0,"d":"$0.00"},{"v":0,"d":"$0.00"},{"v":0,"d":"$0.00"},{"v":0,"d":"$0.00"},{"$f":"'LTC Rev-Exp Region 5'!T$62","v":{"v":0,"d":"$0.00"}}]
["LTC",null,null,{"$f":"Jurat!I$1","v":0},{"$f":"Jurat!D$33","v":"00:00:00"},"PY","1917-01-01","Region 5","Operating Expense","Taxes & Fees","Taxes & Fees","6.1","State Premium Tax",{"v":0,"d":"$0.00"},{"v":0,"d":"$0.00"},{"v":0,"d":"$0.00"},{"v":0,"d":"$0.00"},{"$f":"'LTC Rev-Exp Region 5'!T$64","v":{"v":0,"d":"$0.00"}}]
["LTC",null,null,{"$f":"Jurat!I$1","v":0},{"$f":"Jurat!D$33","v":"00:00:00"},"PY","1917-01-01","Region 5","Operating Expense","Taxes & Fees","Taxes & Fees","6.2","Department of Insurance Assessments",{"v":0,"d":"$0.00"},{"v":0,"d":"$0.00"},{"v":0,"d":"$0.00"},{"v":0,"d":"$0.00"},{"$f":"'LTC Rev-Exp Region 5'!T$65","v":{"v":0,"d":"$0.00"}}]
["LTC",null,null,{"$f":"Jurat!I$1","v":0},{"$f":"Jurat!D$33","v":"00:00:00"},"PY","1917-01-01","Region 5","Non-Operating Expense","Income Tax Expense","Income Tax Expense","9.0","Income Tax Expense",{"v":0,"d":"$0.00"},{"v":0,"d":"$0.00"},{"v":0,"d":"$0.00"},{"v":0,"d":"$0.00"},{"$f":"'LTC Rev-Exp Region 5'!T$72","v":{"v":0,"d":"$0.00"}}]
["LTC",null,null,{"$f":"Jurat!I$1","v":0},{"$f":"Jurat!D$33","v":"00:00:00"},"PY","1917-01-01","Region 4","Member Months","Member Months","Member Months",null,"Member Months",{"v":0,"d":"$0.00"},{"v":0,"d":"$0.00"},{"v":0,"d":"$0.00"},{"v":0,"d":"$0.00"},{"$f":"'LTC Rev-Exp Region 4'!T$9","v":{"v":0,"d":"$0.00"}}]
["LTC",null,null,{"$f":"Jurat!I$1","v":0},{"$f":"Jurat!D$33","v":"00:00:00"},"PY","1917-01-01","Region 4","Operating Revenue","Capitation","Capitation",1.1,"Capitation",{"v":0,"d":"$0.00"},{"v":0,"d":"$0.00"},{"v":0,"d":"$0.00"},{"v":0,"d":"$0.00"},{"$f":"'LTC Rev-Exp Region 4'!T$11","v":{"v":0,"d":"$0.00"}}]
["LTC",null,null,{"$f":"Jurat!I$1","v":0},{"$f":"Jurat!D$33","v":"00:00:00"},"PY","1917-01-01","Region 4","Operating Revenue","Capitation","NH Rate Reconciliation",1.2,"NH Rate Reconciliation",{"v":0,"d":"$0.00"},{"v":0,"d":"$0.00"},{"v":0,"d":"$0.00"},{"v":0,"d":"$0.00"},{"$f":"'LTC Rev-Exp Region 4'!T$12","v":{"v":0,"d":"$0.00"}}]
["LTC",null,null,{"$f":"Jurat!I$1","v":0},{"$f":"Jurat!D$33","v":"00:00:00"},"PY","1917-01-01","Region 4","Operating Revenue","Other Revenue","Other Revenue",1.3,"Other Revenue",{"v":0,"d":"$0.00"},{"v":0,"d":"$0.00"},{"v":0,"d":"$0.00"},{"v":0,"d":"$0.00"},{"$f":"'LTC Rev-Exp Region 4'!T$13","v":{"v":0,"d":"$0.00"}}]
["LTC",null,null,{"$f":"Jurat!I$1","v":0},{"$f":"Jurat!D$33","v":"00:00:00"},"PY","1917-01-01","Region 4","Operating Expense","Medical Expense","NF & Hospice","2.1","Nursing Facility Days (Medicaid)",{"v":0,"d":"$0.00"},{"v":0,"d":"$0.00"},{"v":0,"d":"$0.00"},{"v":0,"d":"$0.00"},{"$f":"'LTC Rev-Exp Region 4'!T$17","v":{"v":0,"d":"$0.00"}}]
["LTC",null,null,{"$f":"Jurat!I$1","v":0},{"$f":"Jurat!D$33","v":"00:00:00"},"PY","1917-01-01","Region 4","Operating Expense","Medical Expense","NF & Hospice","2.2","Nursing Facility Days (Crossover)",{"v":0,"d":"$0.00"},{"v":0,"d":"$0.00"},{"v":0,"d":"$0.00"},{"v":0,"d":"$0.00"},{"$f":"'LTC Rev-Exp Region 4'!T$18","v":{"v":0,"d":"$0.00"}}]
["LTC",null,null,{"$f":"Jurat!I$1","v":0},{"$f":"Jurat!D$33","v":"00:00:00"},"PY","1917-01-01","Region 4","Operating Expense","Medical Expense","NF & Hospice","2.3","Nursing Facility FFS (Medicaid)",{"v":0,"d":"$0.00"},{"v":0,"d":"$0.00"},{"v":0,"d":"$0.00"},{"v":0,"d":"$0.00"},{"$f":"'LTC Rev-Exp Region 4'!T$19","v":{"v":0,"d":"$0.00"}}]
["LTC",null,null,{"$f":"Jurat!I$1","v":0},{"$f":"Jurat!D$33","v":"00:00:00"},"PY","1917-01-01","Region 4","Operating Expense","Medical Expense","NF & Hospice","2.4","Nursing Facility FFS (Crossover)",{"v":0,"d":"$0.00"},{"v":0,"d":"$0.00"},{"v":0,"d":"$0.00"},{"v":0,"d":"$0.00"},{"$f":"'LTC Rev-Exp Region 4'!T$20","v":{"v":0,"d":"$0.00"}}]
["LTC",null,null,{"$f":"Jurat!I$1","v":0},{"$f":"Jurat!D$33","v":"00:00:00"},"PY","1917-01-01","Region 4","Operating Expense","Medical Expense","NF & Hospice","2.5","Hospice Days",{"v":0,"d":"$0.00"},{"v":0,"d":"$0.00"},{"v":0,"d":"$0.00"},{"v":0,"d":"$0.00"},{"$f":"'LTC Rev-Exp Region 4'!T$21","v":{"v":0,"d":"$0.00"}}]
["LTC",null,null,{"$f":"Jurat!I$1","v":0},{"$f":"Jurat!D$33","v":"00:00:00"},"PY","1917-01-01","Region 4","Operating Expense","Medical Expense","NF & Hospice","2.6","Hospice FFS",{"v":0,"d":"$0.00"},{"v":0,"d":"$0.00"},{"v":0,"d":"$0.00"},{"v":0,"d":"$0.00"},{"$f":"'LTC Rev-Exp Region 4'!T$22","v":{"v":0,"d":"$0.00"}}]
["LTC",null,null,{"$f":"Jurat!I$1","v":0},{"$f":"Jurat!D$33","v":"00:00:00"},"PY","1917-01-01","Region 4","Operating Expense","Medical Expense","NF & Hospice","2.7","Ending IBNP for NF & Hospice",{"v":0,"d":"$0.00"},{"v":0,"d":"$0.00"},{"v":0,"d":"$0.00"},{"v":0,"d":"$0.00"},{"$f":"'LTC Rev-Exp Region 4'!T$23","v":{"v":0,"d":"$0.00"}}]
["LTC",null,null,{"$f":"Jurat!I$1","v":0},{"$f":"Jurat!D$33","v":"00:00:00"},"PY","1917-01-01","Region 4","Operating Expense","Medical Expense","NF & Hospice","2.8","NF & Hospice Subcapitated",{"v":0,"d":"$0.00"},{"v":0,"d":"$0.00"},{"v":0,"d":"$0.00"},{"v":0,"d":"$0.00"},{"$f":"'LTC Rev-Exp Region 4'!T$24","v":{"v":0,"d":"$0.00"}}]
["LTC",null,null,{"$f":"Jurat!I$1","v":0},{"$f":"Jurat!D$33","v":"00:00:00"},"PY","1917-01-01","Region 4","Operating Expense","Medical Expense","NF & Hospice","2.9","NF & Hospice Settlements",{"v":0,"d":"$0.00"},{"v":0,"d":"$0.00"},{"v":0,"d":"$0.00"},{"v":0,"d":"$0.00"},{"$f":"'LTC Rev-Exp Region 4'!T$25","v":{"v":0,"d":"$0.00"}}]
["LTC",null,null,{"$f":"Jurat!I$1","v":0},{"$f":"Jurat!D$33","v":"00:00:00"},"PY","1917-01-01","Region 4","Operating Expense","Medical Expense","LTC Services","2.11","Assisted Living FFS",{"v":0,"d":"$0.00"},{"v":0,"d":"$0.00"},{"v":0,"d":"$0.00"},{"v":0,"d":"$0.00"},{"$f":"'LTC Rev-Exp Region 4'!T$27","v":{"v":0,"d":"$0.00"}}]
["LTC",null,null,{"$f":"Jurat!I$1","v":0},{"$f":"Jurat!D$33","v":"00:00:00"},"PY","1917-01-01","Region 4","Operating Expense","Medical Expense","LTC Services","2.12","Home Health FFS",{"v":0,"d":"$0.00"},{"v":0,"d":"$0.00"},{"v":0,"d":"$0.00"},{"v":0,"d":"$0.00"},{"$f":"'LTC Rev-Exp Region 4'!T$28","v":{"v":0,"d":"$0.00"}}]
["LTC",null,null,{"$f":"Jurat!I$1","v":0},{"$f":"Jurat!D$33","v":"00:00:00"},"PY","1917-01-01","Region 4","Operating Expense","Medical Expense","LTC Services","2.13","Medical Equipment/Supplies FFS",{"v":0,"d":"$0.00"},{"v":0,"d":"$0.00"},{"v":0,"d":"$0.00"},{"v":0,"d":"$0.00"},{"$f":"'LTC Rev-Exp Region 4'!T$29","v":{"v":0,"d":"$0.00"}}]
["LTC",null,null,{"$f":"Jurat!I$1","v":0},{"$f":"Jurat!D$33","v":"00:00:00"},"PY","1917-01-01","Region 4","Operating Expense","Medical Expense","LTC Services","2.14","Therapy FFS",{"v":0,"d":"$0.00"},{"v":0,"d":"$0.00"},{"v":0,"d":"$0.00"},{"v":0,"d":"$0.00"},{"$f":"'LTC Rev-Exp Region 4'!T$30","v":{"v":0,"d":"$0.00"}}]
["LTC",null,null,{"$f":"Jurat!I$1","v":0},{"$f":"Jurat!D$33","v":"00:00:00"},"PY","1917-01-01","Region 4","Operating Expense","Medical Expense","LTC Services","2.15","Transportation FFS",{"v":0,"d":"$0.00"},{"v":0,"d":"$0.00"},{"v":0,"d":"$0.00"},{"v":0,"d":"$0.00"},{"$f":"'LTC Rev-Exp Region 4'!T$31","v":{"v":0,"d":"$0.00"}}]
["LTC",null,null,{"$f":"Jurat!I$1","v":0},{"$f":"Jurat!D$33","v":"00:00:00"},"PY","1917-01-01","Region 4","Operating Expense","Medical Expense","LTC Services","2.16","Case Management FFS (Plan Provided)",{"v":0,"d":"$0.00"},{"v":0,"d":"$0.00"},{"v":0,"d":"$0.00"},{"v":0,"d":"$0.00"},{"$f":"'LTC Rev-Exp Region 4'!T$32","v":{"v":0,"d":"$0.00"}}]
["LTC",null,null,{"$f":"Jurat!I$1","v":0},{"$f":"Jurat!D$33","v":"00:00:00"},"PY","1917-01-01","Region 4","Operating Expense","Medical Expense","LTC Services","2.17","Case Management FF (Non-Plan Provided)",{"v":0,"d":"$0.00"},{"v":0,"d":"$0.00"},{"v":0,"d":"$0.00"},{"v":0,"d":"$0.00"},{"$f":"'LTC Rev-Exp Region 4'!T$33","v":{"v":0,"d":"$0.00"}}]
["LTC",null,null,{"$f":"Jurat!I$1","v":0},{"$f":"Jurat!D$33","v":"00:00:00"},"PY","1917-01-01","Region 4","Operating Expense","Medical Expense","LTC Services","2.18","HCBS FFS",{"v":0,"d":"$0.00"},{"v":0,"d":"$0.00"},{"v":0,"d":"$0.00"},{"v":0,"d":"$0.00"},{"$f":"'LTC Rev-Exp Region 4'!T$34","v":{"v":0,"d":"$0.00"}}]
["LTC",null,null,{"$f":"Jurat!I$1","v":0},{"$f":"Jurat!D$33","v":"00:00:00"},"PY","1917-01-01","Region 4","Operating Expense","Medical Expense","LTC Services","2.19","Subcapitated LTC Services",{"v":0,"d":"$0.00"},{"v":0,"d":"$0.00"},{"v":0,"d":"$0.00"},{"v":0,"d":"$0.00"},{"$f":"'LTC Rev-Exp Region 4'!T$35","v":{"v":0,"d":"$0.00"}}]
["LTC",null,null,{"$f":"Jurat!I$1","v":0},{"$f":"Jurat!D$33","v":"00:00:00"},"PY","1917-01-01","Region 4","Operating Expense","Medical Expense","LTC Services","2.20","Ending IBNP for Long Term Care Services",{"v":0,"d":"$0.00"},{"v":0,"d":"$0.00"},{"v":0,"d":"$0.00"},{"v":0,"d":"$0.00"},{"$f":"'LTC Rev-Exp Region 4'!T$36","v":{"v":0,"d":"$0.00"}}]
["LTC",null,null,{"$f":"Jurat!I$1","v":0},{"$f":"Jurat!D$33","v":"00:00:00"},"PY","1917-01-01","Region 4","Operating Expense","Medical Expense","LTC Services","2.21","LTC Services Settlements",{"v":0,"d":"$0.00"},{"v":0,"d":"$0.00"},{"v":0,"d":"$0.00"},{"v":0,"d":"$0.00"},{"$f":"'LTC Rev-Exp Region 4'!T$37","v":{"v":0,"d":"$0.00"}}]
["LTC",null,null,{"$f":"Jurat!I$1","v":0},{"$f":"Jurat!D$33","v":"00:00:00"},"PY","1917-01-01","Region 4","Operating Expense","Medical Expense","Expanded Benefits","3.1","Expanded Benefits FFS",{"v":0,"d":"$0.00"},{"v":0,"d":"$0.00"},{"v":0,"d":"$0.00"},{"v":0,"d":"$0.00"},{"$f":"'LTC Rev-Exp Region 4'!T$39","v":{"v":0,"d":"$0.00"}}]
["LTC",null,null,{"$f":"Jurat!I$1","v":0},{"$f":"Jurat!D$33","v":"00:00:00"},"PY","1917-01-01","Region 4","Operating Expense","Medical Expense","Expanded Benefits","3.2","Expanded Benefits Subcapitation",{"v":0,"d":"$0.00"},{"v":0,"d":"$0.00"},{"v":0,"d":"$0.00"},{"v":0,"d":"$0.00"},{"$f":"'LTC Rev-Exp Region 4'!T$40","v":{"v":0,"d":"$0.00"}}]
["LTC",null,null,{"$f":"Jurat!I$1","v":0},{"$f":"Jurat!D$33","v":"00:00:00"},"PY","1917-01-01","Region 4","Operating Expense","Medical Expense","Expanded Benefits","3.3","Ending IBNP for Expanded Benefits",{"v":0,"d":"$0.00"},{"v":0,"d":"$0.00"},{"v":0,"d":"$0.00"},{"v":0,"d":"$0.00"},{"$f":"'LTC Rev-Exp Region 4'!T$41","v":{"v":0,"d":"$0.00"}}]
["LTC",null,null,{"$f":"Jurat!I$1","v":0},{"$f":"Jurat!D$33","v":"00:00:00"},"PY","1917-01-01","Region 4","Operating Expense","Medical Expense","Expanded Benefits","3.4","Expanded Benefits Settlements",{"v":0,"d":"$0.00"},{"v":0,"d":"$0.00"},{"v":0,"d":"$0.00"},{"v":0,"d":"$0.00"},{"$f":"'LTC Rev-Exp Region 4'!T$42","v":{"v":0,"d":"$0.00"}}]
["LTC",null,null,{"$f":"Jurat!I$1","v":0},{"$f":"Jurat!D$33","v":"00:00:00"},"PY","1917-01-01","Region 4","Operating Expense","Medical Expense","Other Medical","4.5","TPL & Fraud/Abuse Recoveries",{"v":0,"d":"$0.00"},{"v":0,"d":"$0.00"},{"v":0,"d":"$0.00"},{"v":0,"d":"$0.00"},{"$f":"'LTC Rev-Exp Region 4'!T$48","v":{"v":0,"d":"$0.00"}}]
["LTC",null,null,{"$f":"Jurat!I$1","v":0},{"$f":"Jurat!D$33","v":"00:00:00"},"PY","1917-01-01","Region 4","Operating Expense","Medical Expense","Other Medical","4.6.1","Premium Deficiency Reserve",{"v":0,"d":"$0.00"},{"v":0,"d":"$0.00"},{"v":0,"d":"$0.00"},{"v":0,"d":"$0.00"},{"$f":"'LTC Rev-Exp Region 4'!T$49","v":{"v":0,"d":"$0.00"}}]
["LTC",null,null,{"$f":"Jurat!I$1","v":0},{"$f":"Jurat!D$33","v":"00:00:00"},"PY","1917-01-01","Region 4","Operating Expense","Medical Expense","Other Medical","4.8","Reinsurance Premiums",{"v":0,"d":"$0.00"},{"v":0,"d":"$0.00"},{"v":0,"d":"$0.00"},{"v":0,"d":"$0.00"},{"$f":"'LTC Rev-Exp Region 4'!T$51","v":{"v":0,"d":"$0.00"}}]
["LTC",null,null,{"$f":"Jurat!I$1","v":0},{"$f":"Jurat!D$33","v":"00:00:00"},"PY","1917-01-01","Region 4","Operating Expense","Medical Expense","Other Medical","4.9","Reinsurance Recoveries",{"v":0,"d":"$0.00"},{"v":0,"d":"$0.00"},{"v":0,"d":"$0.00"},{"v":0,"d":"$0.00"},{"$f":"'LTC Rev-Exp Region 4'!T$52","v":{"v":0,"d":"$0.00"}}]
["LTC",null,null,{"$f":"Jurat!I$1","v":0},{"$f":"Jurat!D$33","v":"00:00:00"},"PY","1917-01-01","Region 4","Operating Expense","Administrative Expense","Administrative","5.1","Salaries & Benefits",{"v":0,"d":"$0.00"},{"v":0,"d":"$0.00"},{"v":0,"d":"$0.00"},{"v":0,"d":"$0.00"},{"$f":"'LTC Rev-Exp Region 4'!T$57","v":{"v":0,"d":"$0.00"}}]
["LTC",null,null,{"$f":"Jurat!I$1","v":0},{"$f":"Jurat!D$33","v":"00:00:00"},"PY","1917-01-01","Region 4","Operating Expense","Administrative Expense","Administrative","5.2","Administrative Services",{"v":0,"d":"$0.00"},{"v":0,"d":"$0.00"},{"v":0,"d":"$0.00"},{"v":0,"d":"$0.00"},{"$f":"'LTC Rev-Exp Region 4'!T$58","v":{"v":0,"d":"$0.00"}}]
["LTC",null,null,{"$f":"Jurat!I$1","v":0},{"$f":"Jurat!D$33","v":"00:00:00"},"PY","1917-01-01","Region 4","Operating Expense","Administrative Expense","Administrative","5.3","Information Systems",{"v":0,"d":"$0.00"},{"v":0,"d":"$0.00"},{"v":0,"d":"$0.00"},{"v":0,"d":"$0.00"},{"$f":"'LTC Rev-Exp Region 4'!T$59","v":{"v":0,"d":"$0.00"}}]
["LTC",null,null,{"$f":"Jurat!I$1","v":0},{"$f":"Jurat!D$33","v":"00:00:00"},"PY","1917-01-01","Region 4","Operating Expense","Administrative Expense","Administrative","5.4","Marketing Expenses",{"v":0,"d":"$0.00"},{"v":0,"d":"$0.00"},{"v":0,"d":"$0.00"},{"v":0,"d":"$0.00"},{"$f":"'LTC Rev-Exp Region 4'!T$60","v":{"v":0,"d":"$0.00"}}]
["LTC",null,null,{"$f":"Jurat!I$1","v":0},{"$f":"Jurat!D$33","v":"00:00:00"},"PY","1917-01-01","Region 4","Operating Expense","Administrative Expense","Administrative","5.5","General  Administration",{"v":0,"d":"$0.00"},{"v":0,"d":"$0.00"},{"v":0,"d":"$0.00"},{"v":0,"d":"$0.00"},{"$f":"'LTC Rev-Exp Region 4'!T$61","v":{"v":0,"d":"$0.00"}}]
["LTC",null,null,{"$f":"Jurat!I$1","v":0},{"$f":"Jurat!D$33","v":"00:00:00"},"PY","1917-01-01","Region 4","Operating Expense","Administrative Expense","Administrative","5.6","Compliance/Regulatory",{"v":0,"d":"$0.00"},{"v":0,"d":"$0.00"},{"v":0,"d":"$0.00"},{"v":0,"d":"$0.00"},{"$f":"'LTC Rev-Exp Region 4'!T$62","v":{"v":0,"d":"$0.00"}}]
["LTC",null,null,{"$f":"Jurat!I$1","v":0},{"$f":"Jurat!D$33","v":"00:00:00"},"PY","1917-01-01","Region 4","Operating Expense","Taxes & Fees","Taxes & Fees","6.1","State Premium Tax",{"v":0,"d":"$0.00"},{"v":0,"d":"$0.00"},{"v":0,"d":"$0.00"},{"v":0,"d":"$0.00"},{"$f":"'LTC Rev-Exp Region 4'!T$64","v":{"v":0,"d":"$0.00"}}]
["LTC",null,null,{"$f":"Jurat!I$1","v":0},{"$f":"Jurat!D$33","v":"00:00:00"},"PY","1917-01-01","Region 4","Operating Expense","Taxes & Fees","Taxes & Fees","6.2","Department of Insurance Assessments",{"v":0,"d":"$0.00"},{"v":0,"d":"$0.00"},{"v":0,"d":"$0.00"},{"v":0,"d":"$0.00"},{"$f":"'LTC Rev-Exp Region 4'!T$65","v":{"v":0,"d":"$0.00"}}]
["LTC",null,null,{"$f":"Jurat!I$1","v":0},{"$f":"Jurat!D$33","v":"00:00:00"},"PY","1917-01-01","Region 4","Non-Operating Expense","Income Tax Expense","Income Tax Expense","9.0","Income Tax Expense",{"v":0,"d":"$0.00"},{"v":0,"d":"$0.00"},{"v":0,"d":"$0.00"},{"v":0,"d":"$0.00"},{"$f":"'LTC Rev-Exp Region 4'!T$72","v":{"v":0,"d":"$0.00"}}]
["LTC",null,null,{"$f":"Jurat!I$1","v":0},{"$f":"Jurat!D$33","v":"00:00:00"},"PY","1917-01-01","Region 3","Member Months","Member Months","Member Months",null,"Member Months",{"v":0,"d":"$0.00"},{"v":0,"d":"$0.00"},{"v":0,"d":"$0.00"},{"v":0,"d":"$0.00"},{"$f":"'LTC Rev-Exp Region 3'!T$9","v":{"v":0,"d":"$0.00"}}]
["LTC",null,null,{"$f":"Jurat!I$1","v":0},{"$f":"Jurat!D$33","v":"00:00:00"},"PY","1917-01-01","Region 3","Operating Revenue","Capitation","Capitation",1.1,"Capitation",{"v":0,"d":"$0.00"},{"v":0,"d":"$0.00"},{"v":0,"d":"$0.00"},{"v":0,"d":"$0.00"},{"$f":"'LTC Rev-Exp Region 3'!T$11","v":{"v":0,"d":"$0.00"}}]
["LTC",null,null,{"$f":"Jurat!I$1","v":0},{"$f":"Jurat!D$33","v":"00:00:00"},"PY","1917-01-01","Region 3","Operating Revenue","Capitation","NH Rate Reconciliation",1.2,"NH Rate Reconciliation",{"v":0,"d":"$0.00"},{"v":0,"d":"$0.00"},{"v":0,"d":"$0.00"},{"v":0,"d":"$0.00"},{"$f":"'LTC Rev-Exp Region 3'!T$12","v":{"v":0,"d":"$0.00"}}]
["LTC",null,null,{"$f":"Jurat!I$1","v":0},{"$f":"Jurat!D$33","v":"00:00:00"},"PY","1917-01-01","Region 3","Operating Revenue","Other Revenue","Other Revenue",1.3,"Other Revenue",{"v":0,"d":"$0.00"},{"v":0,"d":"$0.00"},{"v":0,"d":"$0.00"},{"v":0,"d":"$0.00"},{"$f":"'LTC Rev-Exp Region 3'!T$13","v":{"v":0,"d":"$0.00"}}]
["LTC",null,null,{"$f":"Jurat!I$1","v":0},{"$f":"Jurat!D$33","v":"00:00:00"},"PY","1917-01-01","Region 3","Operating Expense","Medical Expense","NF & Hospice","2.1","Nursing Facility Days (Medicaid)",{"v":0,"d":"$0.00"},{"v":0,"d":"$0.00"},{"v":0,"d":"$0.00"},{"v":0,"d":"$0.00"},{"$f":"'LTC Rev-Exp Region 3'!T$17","v":{"v":0,"d":"$0.00"}}]
["LTC",null,null,{"$f":"Jurat!I$1","v":0},{"$f":"Jurat!D$33","v":"00:00:00"},"PY","1917-01-01","Region 3","Operating Expense","Medical Expense","NF & Hospice","2.2","Nursing Facility Days (Crossover)",{"v":0,"d":"$0.00"},{"v":0,"d":"$0.00"},{"v":0,"d":"$0.00"},{"v":0,"d":"$0.00"},{"$f":"'LTC Rev-Exp Region 3'!T$18","v":{"v":0,"d":"$0.00"}}]
["LTC",null,null,{"$f":"Jurat!I$1","v":0},{"$f":"Jurat!D$33","v":"00:00:00"},"PY","1917-01-01","Region 3","Operating Expense","Medical Expense","NF & Hospice","2.3","Nursing Facility FFS (Medicaid)",{"v":0,"d":"$0.00"},{"v":0,"d":"$0.00"},{"v":0,"d":"$0.00"},{"v":0,"d":"$0.00"},{"$f":"'LTC Rev-Exp Region 3'!T$19","v":{"v":0,"d":"$0.00"}}]
["LTC",null,null,{"$f":"Jurat!I$1","v":0},{"$f":"Jurat!D$33","v":"00:00:00"},"PY","1917-01-01","Region 3","Operating Expense","Medical Expense","NF & Hospice","2.4","Nursing Facility FFS (Crossover)",{"v":0,"d":"$0.00"},{"v":0,"d":"$0.00"},{"v":0,"d":"$0.00"},{"v":0,"d":"$0.00"},{"$f":"'LTC Rev-Exp Region 3'!T$20","v":{"v":0,"d":"$0.00"}}]
["LTC",null,null,{"$f":"Jurat!I$1","v":0},{"$f":"Jurat!D$33","v":"00:00:00"},"PY","1917-01-01","Region 3","Operating Expense","Medical Expense","NF & Hospice","2.5","Hospice Days",{"v":0,"d":"$0.00"},{"v":0,"d":"$0.00"},{"v":0,"d":"$0.00"},{"v":0,"d":"$0.00"},{"$f":"'LTC Rev-Exp Region 3'!T$21","v":{"v":0,"d":"$0.00"}}]
["LTC",null,null,{"$f":"Jurat!I$1","v":0},{"$f":"Jurat!D$33","v":"00:00:00"},"PY","1917-01-01","Region 3","Operating Expense","Medical Expense","NF & Hospice","2.6","Hospice FFS",{"v":0,"d":"$0.00"},{"v":0,"d":"$0.00"},{"v":0,"d":"$0.00"},{"v":0,"d":"$0.00"},{"$f":"'LTC Rev-Exp Region 3'!T$22","v":{"v":0,"d":"$0.00"}}]
["LTC",null,null,{"$f":"Jurat!I$1","v":0},{"$f":"Jurat!D$33","v":"00:00:00"},"PY","1917-01-01","Region 3","Operating Expense","Medical Expense","NF & Hospice","2.7","Ending IBNP for NF & Hospice",{"v":0,"d":"$0.00"},{"v":0,"d":"$0.00"},{"v":0,"d":"$0.00"},{"v":0,"d":"$0.00"},{"$f":"'LTC Rev-Exp Region 3'!T$23","v":{"v":0,"d":"$0.00"}}]
["LTC",null,null,{"$f":"Jurat!I$1","v":0},{"$f":"Jurat!D$33","v":"00:00:00"},"PY","1917-01-01","Region 3","Operating Expense","Medical Expense","NF & Hospice","2.8","NF & Hospice Subcapitated",{"v":0,"d":"$0.00"},{"v":0,"d":"$0.00"},{"v":0,"d":"$0.00"},{"v":0,"d":"$0.00"},{"$f":"'LTC Rev-Exp Region 3'!T$24","v":{"v":0,"d":"$0.00"}}]
["LTC",null,null,{"$f":"Jurat!I$1","v":0},{"$f":"Jurat!D$33","v":"00:00:00"},"PY","1917-01-01","Region 3","Operating Expense","Medical Expense","NF & Hospice","2.9","NF & Hospice Settlements",{"v":0,"d":"$0.00"},{"v":0,"d":"$0.00"},{"v":0,"d":"$0.00"},{"v":0,"d":"$0.00"},{"$f":"'LTC Rev-Exp Region 3'!T$25","v":{"v":0,"d":"$0.00"}}]
["LTC",null,null,{"$f":"Jurat!I$1","v":0},{"$f":"Jurat!D$33","v":"00:00:00"},"PY","1917-01-01","Region 3","Operating Expense","Medical Expense","LTC Services","2.11","Assisted Living FFS",{"v":0,"d":"$0.00"},{"v":0,"d":"$0.00"},{"v":0,"d":"$0.00"},{"v":0,"d":"$0.00"},{"$f":"'LTC Rev-Exp Region 3'!T$27","v":{"v":0,"d":"$0.00"}}]
["LTC",null,null,{"$f":"Jurat!I$1","v":0},{"$f":"Jurat!D$33","v":"00:00:00"},"PY","1917-01-01","Region 3","Operating Expense","Medical Expense","LTC Services","2.12","Home Health FFS",{"v":0,"d":"$0.00"},{"v":0,"d":"$0.00"},{"v":0,"d":"$0.00"},{"v":0,"d":"$0.00"},{"$f":"'LTC Rev-Exp Region 3'!T$28","v":{"v":0,"d":"$0.00"}}]
["LTC",null,null,{"$f":"Jurat!I$1","v":0},{"$f":"Jurat!D$33","v":"00:00:00"},"PY","1917-01-01","Region 3","Operating Expense","Medical Expense","LTC Services","2.13","Medical Equipment/Supplies FFS",{"v":0,"d":"$0.00"},{"v":0,"d":"$0.00"},{"v":0,"d":"$0.00"},{"v":0,"d":"$0.00"},{"$f":"'LTC Rev-Exp Region 3'!T$29","v":{"v":0,"d":"$0.00"}}]
["LTC",null,null,{"$f":"Jurat!I$1","v":0},{"$f":"Jurat!D$33","v":"00:00:00"},"PY","1917-01-01","Region 3","Operating Expense","Medical Expense","LTC Services","2.14","Therapy FFS",{"v":0,"d":"$0.00"},{"v":0,"d":"$0.00"},{"v":0,"d":"$0.00"},{"v":0,"d":"$0.00"},{"$f":"'LTC Rev-Exp Region 3'!T$30","v":{"v":0,"d":"$0.00"}}]
["LTC",null,null,{"$f":"Jurat!I$1","v":0},{"$f":"Jurat!D$33","v":"00:00:00"},"PY","1917-01-01","Region 3","Operating Expense","Medical Expense","LTC Services","2.15","Transportation FFS",{"v":0,"d":"$0.00"},{"v":0,"d":"$0.00"},{"v":0,"d":"$0.00"},{"v":0,"d":"$0.00"},{"$f":"'LTC Rev-Exp Region 3'!T$31","v":{"v":0,"d":"$0.00"}}]
["LTC",null,null,{"$f":"Jurat!I$1","v":0},{"$f":"Jurat!D$33","v":"00:00:00"},"PY","1917-01-01","Region 3","Operating Expense","Medical Expense","LTC Services","2.16","Case Management FFS (Plan Provided)",{"v":0,"d":"$0.00"},{"v":0,"d":"$0.00"},{"v":0,"d":"$0.00"},{"v":0,"d":"$0.00"},{"$f":"'LTC Rev-Exp Region 3'!T$32","v":{"v":0,"d":"$0.00"}}]
["LTC",null,null,{"$f":"Jurat!I$1","v":0},{"$f":"Jurat!D$33","v":"00:00:00"},"PY","1917-01-01","Region 3","Operating Expense","Medical Expense","LTC Services","2.17","Case Management FF (Non-Plan Provided)",{"v":0,"d":"$0.00"},{"v":0,"d":"$0.00"},{"v":0,"d":"$0.00"},{"v":0,"d":"$0.00"},{"$f":"'LTC Rev-Exp Region 3'!T$33","v":{"v":0,"d":"$0.00"}}]
["LTC",null,null,{"$f":"Jurat!I$1","v":0},{"$f":"Jurat!D$33","v":"00:00:00"},"PY","1917-01-01","Region 3","Operating Expense","Medical Expense","LTC Services","2.18","HCBS FFS",{"v":0,"d":"$0.00"},{"v":0,"d":"$0.00"},{"v":0,"d":"$0.00"},{"v":0,"d":"$0.00"},{"$f":"'LTC Rev-Exp Region 3'!T$34","v":{"v":0,"d":"$0.00"}}]
["LTC",null,null,{"$f":"Jurat!I$1","v":0},{"$f":"Jurat!D$33","v":"00:00:00"},"PY","1917-01-01","Region 3","Operating Expense","Medical Expense","LTC Services","2.19","Subcapitated LTC Services",{"v":0,"d":"$0.00"},{"v":0,"d":"$0.00"},{"v":0,"d":"$0.00"},{"v":0,"d":"$0.00"},{"$f":"'LTC Rev-Exp Region 3'!T$35","v":{"v":0,"d":"$0.00"}}]
["LTC",null,null,{"$f":"Jurat!I$1","v":0},{"$f":"Jurat!D$33","v":"00:00:00"},"PY","1917-01-01","Region 3","Operating Expense","Medical Expense","LTC Services","2.20","Ending IBNP for Long Term Care Services",{"v":0,"d":"$0.00"},{"v":0,"d":"$0.00"},{"v":0,"d":"$0.00"},{"v":0,"d":"$0.00"},{"$f":"'LTC Rev-Exp Region 3'!T$36","v":{"v":0,"d":"$0.00"}}]
["LTC",null,null,{"$f":"Jurat!I$1","v":0},{"$f":"Jurat!D$33","v":"00:00:00"},"PY","1917-01-01","Region 3","Operating Expense","Medical Expense","LTC Services","2.21","LTC Services Settlements",{"v":0,"d":"$0.00"},{"v":0,"d":"$0.00"},{"v":0,"d":"$0.00"},{"v":0,"d":"$0.00"},{"$f":"'LTC Rev-Exp Region 3'!T$37","v":{"v":0,"d":"$0.00"}}]
["LTC",null,null,{"$f":"Jurat!I$1","v":0},{"$f":"Jurat!D$33","v":"00:00:00"},"PY","1917-01-01","Region 3","Operating Expense","Medical Expense","Expanded Benefits","3.1","Expanded Benefits FFS",{"v":0,"d":"$0.00"},{"v":0,"d":"$0.00"},{"v":0,"d":"$0.00"},{"v":0,"d":"$0.00"},{"$f":"'LTC Rev-Exp Region 3'!T$39","v":{"v":0,"d":"$0.00"}}]
["LTC",null,null,{"$f":"Jurat!I$1","v":0},{"$f":"Jurat!D$33","v":"00:00:00"},"PY","1917-01-01","Region 3","Operating Expense","Medical Expense","Expanded Benefits","3.2","Expanded Benefits Subcapitation",{"v":0,"d":"$0.00"},{"v":0,"d":"$0.00"},{"v":0,"d":"$0.00"},{"v":0,"d":"$0.00"},{"$f":"'LTC Rev-Exp Region 3'!T$40","v":{"v":0,"d":"$0.00"}}]
["LTC",null,null,{"$f":"Jurat!I$1","v":0},{"$f":"Jurat!D$33","v":"00:00:00"},"PY","1917-01-01","Region 3","Operating Expense","Medical Expense","Expanded Benefits","3.3","Ending IBNP for Expanded Benefits",{"v":0,"d":"$0.00"},{"v":0,"d":"$0.00"},{"v":0,"d":"$0.00"},{"v":0,"d":"$0.00"},{"$f":"'LTC Rev-Exp Region 3'!T$41","v":{"v":0,"d":"$0.00"}}]
["LTC",null,null,{"$f":"Jurat!I$1","v":0},{"$f":"Jurat!D$33","v":"00:00:00"},"PY","1917-01-01","Region 3","Operating Expense","Medical Expense","Expanded Benefits","3.4","Expanded Benefits Settlements",{"v":0,"d":"$0.00"},{"v":0,"d":"$0.00"},{"v":0,"d":"$0.00"},{"v":0,"d":"$0.00"},{"$f":"'LTC Rev-Exp Region 3'!T$42","v":{"v":0,"d":"$0.00"}}]
["LTC",null,null,{"$f":"Jurat!I$1","v":0},{"$f":"Jurat!D$33","v":"00:00:00"},"PY","1917-01-01","Region 3","Operating Expense","Medical Expense","Other Medical","4.5","TPL & Fraud/Abuse Recoveries",{"v":0,"d":"$0.00"},{"v":0,"d":"$0.00"},{"v":0,"d":"$0.00"},{"v":0,"d":"$0.00"},{"$f":"'LTC Rev-Exp Region 3'!T$48","v":{"v":0,"d":"$0.00"}}]
["LTC",null,null,{"$f":"Jurat!I$1","v":0},{"$f":"Jurat!D$33","v":"00:00:00"},"PY","1917-01-01","Region 3","Operating Expense","Medical Expense","Other Medical","4.6.1","Premium Deficiency Reserve",{"v":0,"d":"$0.00"},{"v":0,"d":"$0.00"},{"v":0,"d":"$0.00"},{"v":0,"d":"$0.00"},{"$f":"'LTC Rev-Exp Region 3'!T$49","v":{"v":0,"d":"$0.00"}}]
["LTC",null,null,{"$f":"Jurat!I$1","v":0},{"$f":"Jurat!D$33","v":"00:00:00"},"PY","1917-01-01","Region 3","Operating Expense","Medical Expense","Other Medical","4.8","Reinsurance Premiums",{"v":0,"d":"$0.00"},{"v":0,"d":"$0.00"},{"v":0,"d":"$0.00"},{"v":0,"d":"$0.00"},{"$f":"'LTC Rev-Exp Region 3'!T$51","v":{"v":0,"d":"$0.00"}}]
["LTC",null,null,{"$f":"Jurat!I$1","v":0},{"$f":"Jurat!D$33","v":"00:00:00"},"PY","1917-01-01","Region 3","Operating Expense","Medical Expense","Other Medical","4.9","Reinsurance Recoveries",{"v":0,"d":"$0.00"},{"v":0,"d":"$0.00"},{"v":0,"d":"$0.00"},{"v":0,"d":"$0.00"},{"$f":"'LTC Rev-Exp Region 3'!T$52","v":{"v":0,"d":"$0.00"}}]
["LTC",null,null,{"$f":"Jurat!I$1","v":0},{"$f":"Jurat!D$33","v":"00:00:00"},"PY","1917-01-01","Region 3","Operating Expense","Administrative Expense","Administrative","5.1","Salaries & Benefits",{"v":0,"d":"$0.00"},{"v":0,"d":"$0.00"},{"v":0,"d":"$0.00"},{"v":0,"d":"$0.00"},{"$f":"'LTC Rev-Exp Region 3'!T$57","v":{"v":0,"d":"$0.00"}}]
["LTC",null,null,{"$f":"Jurat!I$1","v":0},{"$f":"Jurat!D$33","v":"00:00:00"},"PY","1917-01-01","Region 3","Operating Expense","Administrative Expense","Administrative","5.2","Administrative Services",{"v":0,"d":"$0.00"},{"v":0,"d":"$0.00"},{"v":0,"d":"$0.00"},{"v":0,"d":"$0.00"},{"$f":"'LTC Rev-Exp Region 3'!T$58","v":{"v":0,"d":"$0.00"}}]
["LTC",null,null,{"$f":"Jurat!I$1","v":0},{"$f":"Jurat!D$33","v":"00:00:00"},"PY","1917-01-01","Region 3","Operating Expense","Administrative Expense","Administrative","5.3","Information Systems",{"v":0,"d":"$0.00"},{"v":0,"d":"$0.00"},{"v":0,"d":"$0.00"},{"v":0,"d":"$0.00"},{"$f":"'LTC Rev-Exp Region 3'!T$59","v":{"v":0,"d":"$0.00"}}]
["LTC",null,null,{"$f":"Jurat!I$1","v":0},{"$f":"Jurat!D$33","v":"00:00:00"},"PY","1917-01-01","Region 3","Operating Expense","Administrative Expense","Administrative","5.4","Marketing Expenses",{"v":0,"d":"$0.00"},{"v":0,"d":"$0.00"},{"v":0,"d":"$0.00"},{"v":0,"d":"$0.00"},{"$f":"'LTC Rev-Exp Region 3'!T$60","v":{"v":0,"d":"$0.00"}}]
["LTC",null,null,{"$f":"Jurat!I$1","v":0},{"$f":"Jurat!D$33","v":"00:00:00"},"PY","1917-01-01","Region 3","Operating Expense","Administrative Expense","Administrative","5.5","General  Administration",{"v":0,"d":"$0.00"},{"v":0,"d":"$0.00"},{"v":0,"d":"$0.00"},{"v":0,"d":"$0.00"},{"$f":"'LTC Rev-Exp Region 3'!T$61","v":{"v":0,"d":"$0.00"}}]
["LTC",null,null,{"$f":"Jurat!I$1","v":0},{"$f":"Jurat!D$33","v":"00:00:00"},"PY","1917-01-01","Region 3","Operating Expense","Administrative Expense","Administrative","5.6","Compliance/Regulatory",{"v":0,"d":"$0.00"},{"v":0,"d":"$0.00"},{"v":0,"d":"$0.00"},{"v":0,"d":"$0.00"},{"$f":"'LTC Rev-Exp Region 3'!T$62","v":{"v":0,"d":"$0.00"}}]
["LTC",null,null,{"$f":"Jurat!I$1","v":0},{"$f":"Jurat!D$33","v":"00:00:00"},"PY","1917-01-01","Region 3","Operating Expense","Taxes & Fees","Taxes & Fees","6.1","State Premium Tax",{"v":0,"d":"$0.00"},{"v":0,"d":"$0.00"},{"v":0,"d":"$0.00"},{"v":0,"d":"$0.00"},{"$f":"'LTC Rev-Exp Region 3'!T$64","v":{"v":0,"d":"$0.00"}}]
["LTC",null,null,{"$f":"Jurat!I$1","v":0},{"$f":"Jurat!D$33","v":"00:00:00"},"PY","1917-01-01","Region 3","Operating Expense","Taxes & Fees","Taxes & Fees","6.2","Department of Insurance Assessments",{"v":0,"d":"$0.00"},{"v":0,"d":"$0.00"},{"v":0,"d":"$0.00"},{"v":0,"d":"$0.00"},{"$f":"'LTC Rev-Exp Region 3'!T$65","v":{"v":0,"d":"$0.00"}}]
["LTC",null,null,{"$f":"Jurat!I$1","v":0},{"$f":"Jurat!D$33","v":"00:00:00"},"PY","1917-01-01","Region 3","Non-Operating Expense","Income Tax Expense","Income Tax Expense","9.0","Income Tax Expense",{"v":0,"d":"$0.00"},{"v":0,"d":"$0.00"},{"v":0,"d":"$0.00"},{"v":0,"d":"$0.00"},{"$f":"'LTC Rev-Exp Region 3'!T$72","v":{"v":0,"d":"$0.00"}}]
["LTC",null,null,{"$f":"Jurat!I$1","v":0},{"$f":"Jurat!D$33","v":"00:00:00"},"PY","1917-01-01","Region 2","Member Months","Member Months","Member Months",null,"Member Months",{"v":0,"d":"$0.00"},{"v":0,"d":"$0.00"},{"v":0,"d":"$0.00"},{"v":0,"d":"$0.00"},{"$f":"'LTC Rev-Exp Region 2'!T$9","v":{"v":0,"d":"$0.00"}}]
["LTC",null,null,{"$f":"Jurat!I$1","v":0},{"$f":"Jurat!D$33","v":"00:00:00"},"PY","1917-01-01","Region 2","Operating Revenue","Capitation","Capitation",1.1,"Capitation",{"v":0,"d":"$0.00"},{"v":0,"d":"$0.00"},{"v":0,"d":"$0.00"},{"v":0,"d":"$0.00"},{"$f":"'LTC Rev-Exp Region 2'!T$11","v":{"v":0,"d":"$0.00"}}]
["LTC",null,null,{"$f":"Jurat!I$1","v":0},{"$f":"Jurat!D$33","v":"00:00:00"},"PY","1917-01-01","Region 2","Operating Revenue","Capitation","NH Rate Reconciliation",1.2,"NH Rate Reconciliation",{"v":0,"d":"$0.00"},{"v":0,"d":"$0.00"},{"v":0,"d":"$0.00"},{"v":0,"d":"$0.00"},{"$f":"'LTC Rev-Exp Region 2'!T$12","v":{"v":0,"d":"$0.00"}}]
["LTC",null,null,{"$f":"Jurat!I$1","v":0},{"$f":"Jurat!D$33","v":"00:00:00"},"PY","1917-01-01","Region 2","Operating Revenue","Other Revenue","Other Revenue",1.3,"Other Revenue",{"v":0,"d":"$0.00"},{"v":0,"d":"$0.00"},{"v":0,"d":"$0.00"},{"v":0,"d":"$0.00"},{"$f":"'LTC Rev-Exp Region 2'!T$13","v":{"v":0,"d":"$0.00"}}]
["LTC",null,null,{"$f":"Jurat!I$1","v":0},{"$f":"Jurat!D$33","v":"00:00:00"},"PY","1917-01-01","Region 2","Operating Expense","Medical Expense","NF & Hospice","2.1","Nursing Facility Days (Medicaid)",{"v":0,"d":"$0.00"},{"v":0,"d":"$0.00"},{"v":0,"d":"$0.00"},{"v":0,"d":"$0.00"},{"$f":"'LTC Rev-Exp Region 2'!T$17","v":{"v":0,"d":"$0.00"}}]
["LTC",null,null,{"$f":"Jurat!I$1","v":0},{"$f":"Jurat!D$33","v":"00:00:00"},"PY","1917-01-01","Region 2","Operating Expense","Medical Expense","NF & Hospice","2.2","Nursing Facility Days (Crossover)",{"v":0,"d":"$0.00"},{"v":0,"d":"$0.00"},{"v":0,"d":"$0.00"},{"v":0,"d":"$0.00"},{"$f":"'LTC Rev-Exp Region 2'!T$18","v":{"v":0,"d":"$0.00"}}]
["LTC",null,null,{"$f":"Jurat!I$1","v":0},{"$f":"Jurat!D$33","v":"00:00:00"},"PY","1917-01-01","Region 2","Operating Expense","Medical Expense","NF & Hospice","2.3","Nursing Facility FFS (Medicaid)",{"v":0,"d":"$0.00"},{"v":0,"d":"$0.00"},{"v":0,"d":"$0.00"},{"v":0,"d":"$0.00"},{"$f":"'LTC Rev-Exp Region 2'!T$19","v":{"v":0,"d":"$0.00"}}]
["LTC",null,null,{"$f":"Jurat!I$1","v":0},{"$f":"Jurat!D$33","v":"00:00:00"},"PY","1917-01-01","Region 2","Operating Expense","Medical Expense","NF & Hospice","2.4","Nursing Facility FFS (Crossover)",{"v":0,"d":"$0.00"},{"v":0,"d":"$0.00"},{"v":0,"d":"$0.00"},{"v":0,"d":"$0.00"},{"$f":"'LTC Rev-Exp Region 2'!T$20","v":{"v":0,"d":"$0.00"}}]
["LTC",null,null,{"$f":"Jurat!I$1","v":0},{"$f":"Jurat!D$33","v":"00:00:00"},"PY","1917-01-01","Region 2","Operating Expense","Medical Expense","NF & Hospice","2.5","Hospice Days",{"v":0,"d":"$0.00"},{"v":0,"d":"$0.00"},{"v":0,"d":"$0.00"},{"v":0,"d":"$0.00"},{"$f":"'LTC Rev-Exp Region 2'!T$21","v":{"v":0,"d":"$0.00"}}]
["LTC",null,null,{"$f":"Jurat!I$1","v":0},{"$f":"Jurat!D$33","v":"00:00:00"},"PY","1917-01-01","Region 2","Operating Expense","Medical Expense","NF & Hospice","2.6","Hospice FFS",{"v":0,"d":"$0.00"},{"v":0,"d":"$0.00"},{"v":0,"d":"$0.00"},{"v":0,"d":"$0.00"},{"$f":"'LTC Rev-Exp Region 2'!T$22","v":{"v":0,"d":"$0.00"}}]
["LTC",null,null,{"$f":"Jurat!I$1","v":0},{"$f":"Jurat!D$33","v":"00:00:00"},"PY","1917-01-01","Region 2","Operating Expense","Medical Expense","NF & Hospice","2.7","Ending IBNP for NF & Hospice",{"v":0,"d":"$0.00"},{"v":0,"d":"$0.00"},{"v":0,"d":"$0.00"},{"v":0,"d":"$0.00"},{"$f":"'LTC Rev-Exp Region 2'!T$23","v":{"v":0,"d":"$0.00"}}]
["LTC",null,null,{"$f":"Jurat!I$1","v":0},{"$f":"Jurat!D$33","v":"00:00:00"},"PY","1917-01-01","Region 2","Operating Expense","Medical Expense","NF & Hospice","2.8","NF & Hospice Subcapitated",{"v":0,"d":"$0.00"},{"v":0,"d":"$0.00"},{"v":0,"d":"$0.00"},{"v":0,"d":"$0.00"},{"$f":"'LTC Rev-Exp Region 2'!T$24","v":{"v":0,"d":"$0.00"}}]
["LTC",null,null,{"$f":"Jurat!I$1","v":0},{"$f":"Jurat!D$33","v":"00:00:00"},"PY","1917-01-01","Region 2","Operating Expense","Medical Expense","NF & Hospice","2.9","NF & Hospice Settlements",{"v":0,"d":"$0.00"},{"v":0,"d":"$0.00"},{"v":0,"d":"$0.00"},{"v":0,"d":"$0.00"},{"$f":"'LTC Rev-Exp Region 2'!T$25","v":{"v":0,"d":"$0.00"}}]
["LTC",null,null,{"$f":"Jurat!I$1","v":0},{"$f":"Jurat!D$33","v":"00:00:00"},"PY","1917-01-01","Region 2","Operating Expense","Medical Expense","LTC Services","2.11","Assisted Living FFS",{"v":0,"d":"$0.00"},{"v":0,"d":"$0.00"},{"v":0,"d":"$0.00"},{"v":0,"d":"$0.00"},{"$f":"'LTC Rev-Exp Region 2'!T$27","v":{"v":0,"d":"$0.00"}}]
["LTC",null,null,{"$f":"Jurat!I$1","v":0},{"$f":"Jurat!D$33","v":"00:00:00"},"PY","1917-01-01","Region 2","Operating Expense","Medical Expense","LTC Services","2.12","Home Health FFS",{"v":0,"d":"$0.00"},{"v":0,"d":"$0.00"},{"v":0,"d":"$0.00"},{"v":0,"d":"$0.00"},{"$f":"'LTC Rev-Exp Region 2'!T$28","v":{"v":0,"d":"$0.00"}}]
["LTC",null,null,{"$f":"Jurat!I$1","v":0},{"$f":"Jurat!D$33","v":"00:00:00"},"PY","1917-01-01","Region 2","Operating Expense","Medical Expense","LTC Services","2.13","Medical Equipment/Supplies FFS",{"v":0,"d":"$0.00"},{"v":0,"d":"$0.00"},{"v":0,"d":"$0.00"},{"v":0,"d":"$0.00"},{"$f":"'LTC Rev-Exp Region 2'!T$29","v":{"v":0,"d":"$0.00"}}]
["LTC",null,null,{"$f":"Jurat!I$1","v":0},{"$f":"Jurat!D$33","v":"00:00:00"},"PY","1917-01-01","Region 2","Operating Expense","Medical Expense","LTC Services","2.14","Therapy FFS",{"v":0,"d":"$0.00"},{"v":0,"d":"$0.00"},{"v":0,"d":"$0.00"},{"v":0,"d":"$0.00"},{"$f":"'LTC Rev-Exp Region 2'!T$30","v":{"v":0,"d":"$0.00"}}]
["LTC",null,null,{"$f":"Jurat!I$1","v":0},{"$f":"Jurat!D$33","v":"00:00:00"},"PY","1917-01-01","Region 2","Operating Expense","Medical Expense","LTC Services","2.15","Transportation FFS",{"v":0,"d":"$0.00"},{"v":0,"d":"$0.00"},{"v":0,"d":"$0.00"},{"v":0,"d":"$0.00"},{"$f":"'LTC Rev-Exp Region 2'!T$31","v":{"v":0,"d":"$0.00"}}]
["LTC",null,null,{"$f":"Jurat!I$1","v":0},{"$f":"Jurat!D$33","v":"00:00:00"},"PY","1917-01-01","Region 2","Operating Expense","Medical Expense","LTC Services","2.16","Case Management FFS (Plan Provided)",{"v":0,"d":"$0.00"},{"v":0,"d":"$0.00"},{"v":0,"d":"$0.00"},{"v":0,"d":"$0.00"},{"$f":"'LTC Rev-Exp Region 2'!T$32","v":{"v":0,"d":"$0.00"}}]
["LTC",null,null,{"$f":"Jurat!I$1","v":0},{"$f":"Jurat!D$33","v":"00:00:00"},"PY","1917-01-01","Region 2","Operating Expense","Medical Expense","LTC Services","2.17","Case Management FF (Non-Plan Provided)",{"v":0,"d":"$0.00"},{"v":0,"d":"$0.00"},{"v":0,"d":"$0.00"},{"v":0,"d":"$0.00"},{"$f":"'LTC Rev-Exp Region 2'!T$33","v":{"v":0,"d":"$0.00"}}]
["LTC",null,null,{"$f":"Jurat!I$1","v":0},{"$f":"Jurat!D$33","v":"00:00:00"},"PY","1917-01-01","Region 2","Operating Expense","Medical Expense","LTC Services","2.18","HCBS FFS",{"v":0,"d":"$0.00"},{"v":0,"d":"$0.00"},{"v":0,"d":"$0.00"},{"v":0,"d":"$0.00"},{"$f":"'LTC Rev-Exp Region 2'!T$34","v":{"v":0,"d":"$0.00"}}]
["LTC",null,null,{"$f":"Jurat!I$1","v":0},{"$f":"Jurat!D$33","v":"00:00:00"},"PY","1917-01-01","Region 2","Operating Expense","Medical Expense","LTC Services","2.19","Subcapitated LTC Services",{"v":0,"d":"$0.00"},{"v":0,"d":"$0.00"},{"v":0,"d":"$0.00"},{"v":0,"d":"$0.00"},{"$f":"'LTC Rev-Exp Region 2'!T$35","v":{"v":0,"d":"$0.00"}}]
["LTC",null,null,{"$f":"Jurat!I$1","v":0},{"$f":"Jurat!D$33","v":"00:00:00"},"PY","1917-01-01","Region 2","Operating Expense","Medical Expense","LTC Services","2.20","Ending IBNP for Long Term Care Services",{"v":0,"d":"$0.00"},{"v":0,"d":"$0.00"},{"v":0,"d":"$0.00"},{"v":0,"d":"$0.00"},{"$f":"'LTC Rev-Exp Region 2'!T$36","v":{"v":0,"d":"$0.00"}}]
["LTC",null,null,{"$f":"Jurat!I$1","v":0},{"$f":"Jurat!D$33","v":"00:00:00"},"PY","1917-01-01","Region 2","Operating Expense","Medical Expense","LTC Services","2.21","LTC Services Settlements",{"v":0,"d":"$0.00"},{"v":0,"d":"$0.00"},{"v":0,"d":"$0.00"},{"v":0,"d":"$0.00"},{"$f":"'LTC Rev-Exp Region 2'!T$37","v":{"v":0,"d":"$0.00"}}]
["LTC",null,null,{"$f":"Jurat!I$1","v":0},{"$f":"Jurat!D$33","v":"00:00:00"},"PY","1917-01-01","Region 2","Operating Expense","Medical Expense","Expanded Benefits","3.1","Expanded Benefits FFS",{"v":0,"d":"$0.00"},{"v":0,"d":"$0.00"},{"v":0,"d":"$0.00"},{"v":0,"d":"$0.00"},{"$f":"'LTC Rev-Exp Region 2'!T$39","v":{"v":0,"d":"$0.00"}}]
["LTC",null,null,{"$f":"Jurat!I$1","v":0},{"$f":"Jurat!D$33","v":"00:00:00"},"PY","1917-01-01","Region 2","Operating Expense","Medical Expense","Expanded Benefits","3.2","Expanded Benefits Subcapitation",{"v":0,"d":"$0.00"},{"v":0,"d":"$0.00"},{"v":0,"d":"$0.00"},{"v":0,"d":"$0.00"},{"$f":"'LTC Rev-Exp Region 2'!T$40","v":{"v":0,"d":"$0.00"}}]
["LTC",null,null,{"$f":"Jurat!I$1","v":0},{"$f":"Jurat!D$33","v":"00:00:00"},"PY","1917-01-01","Region 2","Operating Expense","Medical Expense","Expanded Benefits","3.3","Ending IBNP for Expanded Benefits",{"v":0,"d":"$0.00"},{"v":0,"d":"$0.00"},{"v":0,"d":"$0.00"},{"v":0,"d":"$0.00"},{"$f":"'LTC Rev-Exp Region 2'!T$41","v":{"v":0,"d":"$0.00"}}]
["LTC",null,null,{"$f":"Jurat!I$1","v":0},{"$f":"Jurat!D$33","v":"00:00:00"},"PY","1917-01-01","Region 2","Operating Expense","Medical Expense","Expanded Benefits","3.4","Expanded Benefits Settlements",{"v":0,"d":"$0.00"},{"v":0,"d":"$0.00"},{"v":0,"d":"$0.00"},{"v":0,"d":"$0.00"},{"$f":"'LTC Rev-Exp Region 2'!T$42","v":{"v":0,"d":"$0.00"}}]
["LTC",null,null,{"$f":"Jurat!I$1","v":0},{"$f":"Jurat!D$33","v":"00:00:00"},"PY","1917-01-01","Region 2","Operating Expense","Medical Expense","Other Medical","4.5","TPL & Fraud/Abuse Recoveries",{"v":0,"d":"$0.00"},{"v":0,"d":"$0.00"},{"v":0,"d":"$0.00"},{"v":0,"d":"$0.00"},{"$f":"'LTC Rev-Exp Region 2'!T$48","v":{"v":0,"d":"$0.00"}}]
["LTC",null,null,{"$f":"Jurat!I$1","v":0},{"$f":"Jurat!D$33","v":"00:00:00"},"PY","1917-01-01","Region 2","Operating Expense","Medical Expense","Other Medical","4.6.1","Premium Deficiency Reserve",{"v":0,"d":"$0.00"},{"v":0,"d":"$0.00"},{"v":0,"d":"$0.00"},{"v":0,"d":"$0.00"},{"$f":"'LTC Rev-Exp Region 2'!T$49","v":{"v":0,"d":"$0.00"}}]
["LTC",null,null,{"$f":"Jurat!I$1","v":0},{"$f":"Jurat!D$33","v":"00:00:00"},"PY","1917-01-01","Region 2","Operating Expense","Medical Expense","Other Medical","4.8","Reinsurance Premiums",{"v":0,"d":"$0.00"},{"v":0,"d":"$0.00"},{"v":0,"d":"$0.00"},{"v":0,"d":"$0.00"},{"$f":"'LTC Rev-Exp Region 2'!T$51","v":{"v":0,"d":"$0.00"}}]
["LTC",null,null,{"$f":"Jurat!I$1","v":0},{"$f":"Jurat!D$33","v":"00:00:00"},"PY","1917-01-01","Region 2","Operating Expense","Medical Expense","Other Medical","4.9","Reinsurance Recoveries",{"v":0,"d":"$0.00"},{"v":0,"d":"$0.00"},{"v":0,"d":"$0.00"},{"v":0,"d":"$0.00"},{"$f":"'LTC Rev-Exp Region 2'!T$52","v":{"v":0,"d":"$0.00"}}]
["LTC",null,null,{"$f":"Jurat!I$1","v":0},{"$f":"Jurat!D$33","v":"00:00:00"},"PY","1917-01-01","Region 2","Operating Expense","Administrative Expense","Administrative","5.1","Salaries & Benefits",{"v":0,"d":"$0.00"},{"v":0,"d":"$0.00"},{"v":0,"d":"$0.00"},{"v":0,"d":"$0.00"},{"$f":"'LTC Rev-Exp Region 2'!T$57","v":{"v":0,"d":"$0.00"}}]
["LTC",null,null,{"$f":"Jurat!I$1","v":0},{"$f":"Jurat!D$33","v":"00:00:00"},"PY","1917-01-01","Region 2","Operating Expense","Administrative Expense","Administrative","5.2","Administrative Services",{"v":0,"d":"$0.00"},{"v":0,"d":"$0.00"},{"v":0,"d":"$0.00"},{"v":0,"d":"$0.00"},{"$f":"'LTC Rev-Exp Region 2'!T$58","v":{"v":0,"d":"$0.00"}}]
["LTC",null,null,{"$f":"Jurat!I$1","v":0},{"$f":"Jurat!D$33","v":"00:00:00"},"PY","1917-01-01","Region 2","Operating Expense","Administrative Expense","Administrative","5.3","Information Systems",{"v":0,"d":"$0.00"},{"v":0,"d":"$0.00"},{"v":0,"d":"$0.00"},{"v":0,"d":"$0.00"},{"$f":"'LTC Rev-Exp Region 2'!T$59","v":{"v":0,"d":"$0.00"}}]
["LTC",null,null,{"$f":"Jurat!I$1","v":0},{"$f":"Jurat!D$33","v":"00:00:00"},"PY","1917-01-01","Region 2","Operating Expense","Administrative Expense","Administrative","5.4","Marketing Expenses",{"v":0,"d":"$0.00"},{"v":0,"d":"$0.00"},{"v":0,"d":"$0.00"},{"v":0,"d":"$0.00"},{"$f":"'LTC Rev-Exp Region 2'!T$60","v":{"v":0,"d":"$0.00"}}]
["LTC",null,null,{"$f":"Jurat!I$1","v":0},{"$f":"Jurat!D$33","v":"00:00:00"},"PY","1917-01-01","Region 2","Operating Expense","Administrative Expense","Administrative","5.5","General  Administration",{"v":0,"d":"$0.00"},{"v":0,"d":"$0.00"},{"v":0,"d":"$0.00"},{"v":0,"d":"$0.00"},{"$f":"'LTC Rev-Exp Region 2'!T$61","v":{"v":0,"d":"$0.00"}}]
["LTC",null,null,{"$f":"Jurat!I$1","v":0},{"$f":"Jurat!D$33","v":"00:00:00"},"PY","1917-01-01","Region 2","Operating Expense","Administrative Expense","Administrative","5.6","Compliance/Regulatory",{"v":0,"d":"$0.00"},{"v":0,"d":"$0.00"},{"v":0,"d":"$0.00"},{"v":0,"d":"$0.00"},{"$f":"'LTC Rev-Exp Region 2'!T$62","v":{"v":0,"d":"$0.00"}}]
["LTC",null,null,{"$f":"Jurat!I$1","v":0},{"$f":"Jurat!D$33","v":"00:00:00"},"PY","1917-01-01","Region 2","Operating Expense","Taxes & Fees","Taxes & Fees","6.1","State Premium Tax",{"v":0,"d":"$0.00"},{"v":0,"d":"$0.00"},{"v":0,"d":"$0.00"},{"v":0,"d":"$0.00"},{"$f":"'LTC Rev-Exp Region 2'!T$64","v":{"v":0,"d":"$0.00"}}]
["LTC",null,null,{"$f":"Jurat!I$1","v":0},{"$f":"Jurat!D$33","v":"00:00:00"},"PY","1917-01-01","Region 2","Operating Expense","Taxes & Fees","Taxes & Fees","6.2","Department of Insurance Assessments",{"v":0,"d":"$0.00"},{"v":0,"d":"$0.00"},{"v":0,"d":"$0.00"},{"v":0,"d":"$0.00"},{"$f":"'LTC Rev-Exp Region 2'!T$65","v":{"v":0,"d":"$0.00"}}]
["LTC",null,null,{"$f":"Jurat!I$1","v":0},{"$f":"Jurat!D$33","v":"00:00:00"},"PY","1917-01-01","Region 2","Non-Operating Expense","Income Tax Expense","Income Tax Expense","9.0","Income Tax Expense",{"v":0,"d":"$0.00"},{"v":0,"d":"$0.00"},{"v":0,"d":"$0.00"},{"v":0,"d":"$0.00"},{"$f":"'LTC Rev-Exp Region 2'!T$72","v":{"v":0,"d":"$0.00"}}]
["LTC",null,null,{"$f":"Jurat!I$1","v":0},{"$f":"Jurat!D$33","v":"00:00:00"},"PY","1917-01-01","Region 1","Member Months","Member Months","Member Months",null,"Member Months",{"v":0,"d":"$0.00"},{"v":0,"d":"$0.00"},{"v":0,"d":"$0.00"},{"v":0,"d":"$0.00"},{"$f":"'LTC Rev-Exp Region 1'!T$9","v":{"v":0,"d":"$0.00"}}]
["LTC",null,null,{"$f":"Jurat!I$1","v":0},{"$f":"Jurat!D$33","v":"00:00:00"},"PY","1917-01-01","Region 1","Operating Revenue","Capitation","Capitation",1.1,"Capitation",{"v":0,"d":"$0.00"},{"v":0,"d":"$0.00"},{"v":0,"d":"$0.00"},{"v":0,"d":"$0.00"},{"$f":"'LTC Rev-Exp Region 1'!T$11","v":{"v":0,"d":"$0.00"}}]
["LTC",null,null,{"$f":"Jurat!I$1","v":0},{"$f":"Jurat!D$33","v":"00:00:00"},"PY","1917-01-01","Region 1","Operating Revenue","Capitation","NH Rate Reconciliation",1.2,"NH Rate Reconciliation",{"v":0,"d":"$0.00"},{"v":0,"d":"$0.00"},{"v":0,"d":"$0.00"},{"v":0,"d":"$0.00"},{"$f":"'LTC Rev-Exp Region 1'!T$12","v":{"v":0,"d":"$0.00"}}]
["LTC",null,null,{"$f":"Jurat!I$1","v":0},{"$f":"Jurat!D$33","v":"00:00:00"},"PY","1917-01-01","Region 1","Operating Revenue","Other Revenue","Other Revenue",1.3,"Other Revenue",{"v":0,"d":"$0.00"},{"v":0,"d":"$0.00"},{"v":0,"d":"$0.00"},{"v":0,"d":"$0.00"},{"$f":"'LTC Rev-Exp Region 1'!T$13","v":{"v":0,"d":"$0.00"}}]
["LTC",null,null,{"$f":"Jurat!I$1","v":0},{"$f":"Jurat!D$33","v":"00:00:00"},"PY","1917-01-01","Region 1","Operating Expense","Medical Expense","NF & Hospice","2.1","Nursing Facility Days (Medicaid)",{"v":0,"d":"$0.00"},{"v":0,"d":"$0.00"},{"v":0,"d":"$0.00"},{"v":0,"d":"$0.00"},{"$f":"'LTC Rev-Exp Region 1'!T$17","v":{"v":0,"d":"$0.00"}}]
["LTC",null,null,{"$f":"Jurat!I$1","v":0},{"$f":"Jurat!D$33","v":"00:00:00"},"PY","1917-01-01","Region 1","Operating Expense","Medical Expense","NF & Hospice","2.2","Nursing Facility Days (Crossover)",{"v":0,"d":"$0.00"},{"v":0,"d":"$0.00"},{"v":0,"d":"$0.00"},{"v":0,"d":"$0.00"},{"$f":"'LTC Rev-Exp Region 1'!T$18","v":{"v":0,"d":"$0.00"}}]
["LTC",null,null,{"$f":"Jurat!I$1","v":0},{"$f":"Jurat!D$33","v":"00:00:00"},"PY","1917-01-01","Region 1","Operating Expense","Medical Expense","NF & Hospice","2.3","Nursing Facility FFS (Medicaid)",{"v":0,"d":"$0.00"},{"v":0,"d":"$0.00"},{"v":0,"d":"$0.00"},{"v":0,"d":"$0.00"},{"$f":"'LTC Rev-Exp Region 1'!T$19","v":{"v":0,"d":"$0.00"}}]
["LTC",null,null,{"$f":"Jurat!I$1","v":0},{"$f":"Jurat!D$33","v":"00:00:00"},"PY","1917-01-01","Region 1","Operating Expense","Medical Expense","NF & Hospice","2.4","Nursing Facility FFS (Crossover)",{"v":0,"d":"$0.00"},{"v":0,"d":"$0.00"},{"v":0,"d":"$0.00"},{"v":0,"d":"$0.00"},{"$f":"'LTC Rev-Exp Region 1'!T$20","v":{"v":0,"d":"$0.00"}}]
["LTC",null,null,{"$f":"Jurat!I$1","v":0},{"$f":"Jurat!D$33","v":"00:00:00"},"PY","1917-01-01","Region 1","Operating Expense","Medical Expense","NF & Hospice","2.5","Hospice Days",{"v":0,"d":"$0.00"},{"v":0,"d":"$0.00"},{"v":0,"d":"$0.00"},{"v":0,"d":"$0.00"},{"$f":"'LTC Rev-Exp Region 1'!T$21","v":{"v":0,"d":"$0.00"}}]
["LTC",null,null,{"$f":"Jurat!I$1","v":0},{"$f":"Jurat!D$33","v":"00:00:00"},"PY","1917-01-01","Region 1","Operating Expense","Medical Expense","NF & Hospice","2.6","Hospice FFS",{"v":0,"d":"$0.00"},{"v":0,"d":"$0.00"},{"v":0,"d":"$0.00"},{"v":0,"d":"$0.00"},{"$f":"'LTC Rev-Exp Region 1'!T$22","v":{"v":0,"d":"$0.00"}}]
["LTC",null,null,{"$f":"Jurat!I$1","v":0},{"$f":"Jurat!D$33","v":"00:00:00"},"PY","1917-01-01","Region 1","Operating Expense","Medical Expense","NF & Hospice","2.7","Ending IBNP for NF & Hospice",{"v":0,"d":"$0.00"},{"v":0,"d":"$0.00"},{"v":0,"d":"$0.00"},{"v":0,"d":"$0.00"},{"$f":"'LTC Rev-Exp Region 1'!T$23","v":{"v":0,"d":"$0.00"}}]
["LTC",null,null,{"$f":"Jurat!I$1","v":0},{"$f":"Jurat!D$33","v":"00:00:00"},"PY","1917-01-01","Region 1","Operating Expense","Medical Expense","NF & Hospice","2.8","NF & Hospice Subcapitated",{"v":0,"d":"$0.00"},{"v":0,"d":"$0.00"},{"v":0,"d":"$0.00"},{"v":0,"d":"$0.00"},{"$f":"'LTC Rev-Exp Region 1'!T$24","v":{"v":0,"d":"$0.00"}}]
["LTC",null,null,{"$f":"Jurat!I$1","v":0},{"$f":"Jurat!D$33","v":"00:00:00"},"PY","1917-01-01","Region 1","Operating Expense","Medical Expense","NF & Hospice","2.9","NF & Hospice Settlements",{"v":0,"d":"$0.00"},{"v":0,"d":"$0.00"},{"v":0,"d":"$0.00"},{"v":0,"d":"$0.00"},{"$f":"'LTC Rev-Exp Region 1'!T$25","v":{"v":0,"d":"$0.00"}}]
["LTC",null,null,{"$f":"Jurat!I$1","v":0},{"$f":"Jurat!D$33","v":"00:00:00"},"PY","1917-01-01","Region 1","Operating Expense","Medical Expense","LTC Services","2.11","Assisted Living FFS",{"v":0,"d":"$0.00"},{"v":0,"d":"$0.00"},{"v":0,"d":"$0.00"},{"v":0,"d":"$0.00"},{"$f":"'LTC Rev-Exp Region 1'!T$27","v":{"v":0,"d":"$0.00"}}]
["LTC",null,null,{"$f":"Jurat!I$1","v":0},{"$f":"Jurat!D$33","v":"00:00:00"},"PY","1917-01-01","Region 1","Operating Expense","Medical Expense","LTC Services","2.12","Home Health FFS",{"v":0,"d":"$0.00"},{"v":0,"d":"$0.00"},{"v":0,"d":"$0.00"},{"v":0,"d":"$0.00"},{"$f":"'LTC Rev-Exp Region 1'!T$28","v":{"v":0,"d":"$0.00"}}]
["LTC",null,null,{"$f":"Jurat!I$1","v":0},{"$f":"Jurat!D$33","v":"00:00:00"},"PY","1917-01-01","Region 1","Operating Expense","Medical Expense","LTC Services","2.13","Medical Equipment/Supplies FFS",{"v":0,"d":"$0.00"},{"v":0,"d":"$0.00"},{"v":0,"d":"$0.00"},{"v":0,"d":"$0.00"},{"$f":"'LTC Rev-Exp Region 1'!T$29","v":{"v":0,"d":"$0.00"}}]
["LTC",null,null,{"$f":"Jurat!I$1","v":0},{"$f":"Jurat!D$33","v":"00:00:00"},"PY","1917-01-01","Region 1","Operating Expense","Medical Expense","LTC Services","2.14","Therapy FFS",{"v":0,"d":"$0.00"},{"v":0,"d":"$0.00"},{"v":0,"d":"$0.00"},{"v":0,"d":"$0.00"},{"$f":"'LTC Rev-Exp Region 1'!T$30","v":{"v":0,"d":"$0.00"}}]
["LTC",null,null,{"$f":"Jurat!I$1","v":0},{"$f":"Jurat!D$33","v":"00:00:00"},"PY","1917-01-01","Region 1","Operating Expense","Medical Expense","LTC Services","2.15","Transportation FFS",{"v":0,"d":"$0.00"},{"v":0,"d":"$0.00"},{"v":0,"d":"$0.00"},{"v":0,"d":"$0.00"},{"$f":"'LTC Rev-Exp Region 1'!T$31","v":{"v":0,"d":"$0.00"}}]
["LTC",null,null,{"$f":"Jurat!I$1","v":0},{"$f":"Jurat!D$33","v":"00:00:00"},"PY","1917-01-01","Region 1","Operating Expense","Medical Expense","LTC Services","2.16","Case Management FFS (Plan Provided)",{"v":0,"d":"$0.00"},{"v":0,"d":"$0.00"},{"v":0,"d":"$0.00"},{"v":0,"d":"$0.00"},{"$f":"'LTC Rev-Exp Region 1'!T$32","v":{"v":0,"d":"$0.00"}}]
["LTC",null,null,{"$f":"Jurat!I$1","v":0},{"$f":"Jurat!D$33","v":"00:00:00"},"PY","1917-01-01","Region 1","Operating Expense","Medical Expense","LTC Services","2.17","Case Management FF (Non-Plan Provided)",{"v":0,"d":"$0.00"},{"v":0,"d":"$0.00"},{"v":0,"d":"$0.00"},{"v":0,"d":"$0.00"},{"$f":"'LTC Rev-Exp Region 1'!T$33","v":{"v":0,"d":"$0.00"}}]
["LTC",null,null,{"$f":"Jurat!I$1","v":0},{"$f":"Jurat!D$33","v":"00:00:00"},"PY","1917-01-01","Region 1","Operating Expense","Medical Expense","LTC Services","2.18","HCBS FFS",{"v":0,"d":"$0.00"},{"v":0,"d":"$0.00"},{"v":0,"d":"$0.00"},{"v":0,"d":"$0.00"},{"$f":"'LTC Rev-Exp Region 1'!T$34","v":{"v":0,"d":"$0.00"}}]
["LTC",null,null,{"$f":"Jurat!I$1","v":0},{"$f":"Jurat!D$33","v":"00:00:00"},"PY","1917-01-01","Region 1","Operating Expense","Medical Expense","LTC Services","2.19","Subcapitated LTC Services",{"v":0,"d":"$0.00"},{"v":0,"d":"$0.00"},{"v":0,"d":"$0.00"},{"v":0,"d":"$0.00"},{"$f":"'LTC Rev-Exp Region 1'!T$35","v":{"v":0,"d":"$0.00"}}]
["LTC",null,null,{"$f":"Jurat!I$1","v":0},{"$f":"Jurat!D$33","v":"00:00:00"},"PY","1917-01-01","Region 1","Operating Expense","Medical Expense","LTC Services","2.20","Ending IBNP for Long Term Care Services",{"v":0,"d":"$0.00"},{"v":0,"d":"$0.00"},{"v":0,"d":"$0.00"},{"v":0,"d":"$0.00"},{"$f":"'LTC Rev-Exp Region 1'!T$36","v":{"v":0,"d":"$0.00"}}]
["LTC",null,null,{"$f":"Jurat!I$1","v":0},{"$f":"Jurat!D$33","v":"00:00:00"},"PY","1917-01-01","Region 1","Operating Expense","Medical Expense","LTC Services","2.21","LTC Services Settlements",{"v":0,"d":"$0.00"},{"v":0,"d":"$0.00"},{"v":0,"d":"$0.00"},{"v":0,"d":"$0.00"},{"$f":"'LTC Rev-Exp Region 1'!T$37","v":{"v":0,"d":"$0.00"}}]
["LTC",null,null,{"$f":"Jurat!I$1","v":0},{"$f":"Jurat!D$33","v":"00:00:00"},"PY","1917-01-01","Region 1","Operating Expense","Medical Expense","Expanded Benefits","3.1","Expanded Benefits FFS",{"v":0,"d":"$0.00"},{"v":0,"d":"$0.00"},{"v":0,"d":"$0.00"},{"v":0,"d":"$0.00"},{"$f":"'LTC Rev-Exp Region 1'!T$39","v":{"v":0,"d":"$0.00"}}]
["LTC",null,null,{"$f":"Jurat!I$1","v":0},{"$f":"Jurat!D$33","v":"00:00:00"},"PY","1917-01-01","Region 1","Operating Expense","Medical Expense","Expanded Benefits","3.2","Expanded Benefits Subcapitation",{"v":0,"d":"$0.00"},{"v":0,"d":"$0.00"},{"v":0,"d":"$0.00"},{"v":0,"d":"$0.00"},{"$f":"'LTC Rev-Exp Region 1'!T$40","v":{"v":0,"d":"$0.00"}}]
["LTC",null,null,{"$f":"Jurat!I$1","v":0},{"$f":"Jurat!D$33","v":"00:00:00"},"PY","1917-01-01","Region 1","Operating Expense","Medical Expense","Expanded Benefits","3.3","Ending IBNP for Expanded Benefits",{"v":0,"d":"$0.00"},{"v":0,"d":"$0.00"},{"v":0,"d":"$0.00"},{"v":0,"d":"$0.00"},{"$f":"'LTC Rev-Exp Region 1'!T$41","v":{"v":0,"d":"$0.00"}}]
["LTC",null,null,{"$f":"Jurat!I$1","v":0},{"$f":"Jurat!D$33","v":"00:00:00"},"PY","1917-01-01","Region 1","Operating Expense","Medical Expense","Expanded Benefits","3.4","Expanded Benefits Settlements",{"v":0,"d":"$0.00"},{"v":0,"d":"$0.00"},{"v":0,"d":"$0.00"},{"v":0,"d":"$0.00"},{"$f":"'LTC Rev-Exp Region 1'!T$42","v":{"v":0,"d":"$0.00"}}]
["LTC",null,null,{"$f":"Jurat!I$1","v":0},{"$f":"Jurat!D$33","v":"00:00:00"},"PY","1917-01-01","Region 1","Operating Expense","Medical Expense","Other Medical","4.5","TPL & Fraud/Abuse Recoveries",{"v":0,"d":"$0.00"},{"v":0,"d":"$0.00"},{"v":0,"d":"$0.00"},{"v":0,"d":"$0.00"},{"$f":"'LTC Rev-Exp Region 1'!T$48","v":{"v":0,"d":"$0.00"}}]
["LTC",null,null,{"$f":"Jurat!I$1","v":0},{"$f":"Jurat!D$33","v":"00:00:00"},"PY","1917-01-01","Region 1","Operating Expense","Medical Expense","Other Medical","4.6.1","Premium Deficiency Reserve",{"v":0,"d":"$0.00"},{"v":0,"d":"$0.00"},{"v":0,"d":"$0.00"},{"v":0,"d":"$0.00"},{"$f":"'LTC Rev-Exp Region 1'!T$49","v":{"v":0,"d":"$0.00"}}]
["LTC",null,null,{"$f":"Jurat!I$1","v":0},{"$f":"Jurat!D$33","v":"00:00:00"},"PY","1917-01-01","Region 1","Operating Expense","Medical Expense","Other Medical","4.8","Reinsurance Premiums",{"v":0,"d":"$0.00"},{"v":0,"d":"$0.00"},{"v":0,"d":"$0.00"},{"v":0,"d":"$0.00"},{"$f":"'LTC Rev-Exp Region 1'!T$51","v":{"v":0,"d":"$0.00"}}]
["LTC",null,null,{"$f":"Jurat!I$1","v":0},{"$f":"Jurat!D$33","v":"00:00:00"},"PY","1917-01-01","Region 1","Operating Expense","Medical Expense","Other Medical","4.9","Reinsurance Recoveries",{"v":0,"d":"$0.00"},{"v":0,"d":"$0.00"},{"v":0,"d":"$0.00"},{"v":0,"d":"$0.00"},{"$f":"'LTC Rev-Exp Region 1'!T$52","v":{"v":0,"d":"$0.00"}}]
["LTC",null,null,{"$f":"Jurat!I$1","v":0},{"$f":"Jurat!D$33","v":"00:00:00"},"PY","1917-01-01","Region 1","Operating Expense","Administrative Expense","Administrative","5.1","Salaries & Benefits",{"v":0,"d":"$0.00"},{"v":0,"d":"$0.00"},{"v":0,"d":"$0.00"},{"v":0,"d":"$0.00"},{"$f":"'LTC Rev-Exp Region 1'!T$57","v":{"v":0,"d":"$0.00"}}]
["LTC",null,null,{"$f":"Jurat!I$1","v":0},{"$f":"Jurat!D$33","v":"00:00:00"},"PY","1917-01-01","Region 1","Operating Expense","Administrative Expense","Administrative","5.2","Administrative Services",{"v":0,"d":"$0.00"},{"v":0,"d":"$0.00"},{"v":0,"d":"$0.00"},{"v":0,"d":"$0.00"},{"$f":"'LTC Rev-Exp Region 1'!T$58","v":{"v":0,"d":"$0.00"}}]
["LTC",null,null,{"$f":"Jurat!I$1","v":0},{"$f":"Jurat!D$33","v":"00:00:00"},"PY","1917-01-01","Region 1","Operating Expense","Administrative Expense","Administrative","5.3","Information Systems",{"v":0,"d":"$0.00"},{"v":0,"d":"$0.00"},{"v":0,"d":"$0.00"},{"v":0,"d":"$0.00"},{"$f":"'LTC Rev-Exp Region 1'!T$59","v":{"v":0,"d":"$0.00"}}]
["LTC",null,null,{"$f":"Jurat!I$1","v":0},{"$f":"Jurat!D$33","v":"00:00:00"},"PY","1917-01-01","Region 1","Operating Expense","Administrative Expense","Administrative","5.4","Marketing Expenses",{"v":0,"d":"$0.00"},{"v":0,"d":"$0.00"},{"v":0,"d":"$0.00"},{"v":0,"d":"$0.00"},{"$f":"'LTC Rev-Exp Region 1'!T$60","v":{"v":0,"d":"$0.00"}}]
["LTC",null,null,{"$f":"Jurat!I$1","v":0},{"$f":"Jurat!D$33","v":"00:00:00"},"PY","1917-01-01","Region 1","Operating Expense","Administrative Expense","Administrative","5.5","General  Administration",{"v":0,"d":"$0.00"},{"v":0,"d":"$0.00"},{"v":0,"d":"$0.00"},{"v":0,"d":"$0.00"},{"$f":"'LTC Rev-Exp Region 1'!T$61","v":{"v":0,"d":"$0.00"}}]
["LTC",null,null,{"$f":"Jurat!I$1","v":0},{"$f":"Jurat!D$33","v":"00:00:00"},"PY","1917-01-01","Region 1","Operating Expense","Administrative Expense","Administrative","5.6","Compliance/Regulatory",{"v":0,"d":"$0.00"},{"v":0,"d":"$0.00"},{"v":0,"d":"$0.00"},{"v":0,"d":"$0.00"},{"$f":"'LTC Rev-Exp Region 1'!T$62","v":{"v":0,"d":"$0.00"}}]
["LTC",null,null,{"$f":"Jurat!I$1","v":0},{"$f":"Jurat!D$33","v":"00:00:00"},"PY","1917-01-01","Region 1","Operating Expense","Taxes & Fees","Taxes & Fees","6.1","State Premium Tax",{"v":0,"d":"$0.00"},{"v":0,"d":"$0.00"},{"v":0,"d":"$0.00"},{"v":0,"d":"$0.00"},{"$f":"'LTC Rev-Exp Region 1'!T$64","v":{"v":0,"d":"$0.00"}}]
["LTC",null,null,{"$f":"Jurat!I$1","v":0},{"$f":"Jurat!D$33","v":"00:00:00"},"PY","1917-01-01","Region 1","Operating Expense","Taxes & Fees","Taxes & Fees","6.2","Department of Insurance Assessments",{"v":0,"d":"$0.00"},{"v":0,"d":"$0.00"},{"v":0,"d":"$0.00"},{"v":0,"d":"$0.00"},{"$f":"'LTC Rev-Exp Region 1'!T$65","v":{"v":0,"d":"$0.00"}}]
["LTC",null,null,{"$f":"Jurat!I$1","v":0},{"$f":"Jurat!D$33","v":"00:00:00"},"PY","1917-01-01","Region 1","Non-Operating Expense","Income Tax Expense","Income Tax Expense","9.0","Income Tax Expense",{"v":0,"d":"$0.00"},{"v":0,"d":"$0.00"},{"v":0,"d":"$0.00"},{"v":0,"d":"$0.00"},{"$f":"'LTC Rev-Exp Region 1'!T$72","v":{"v":0,"d":"$0.00"}}]
["LTC",null,null,{"$f":"Jurat!I$1","v":0},{"$f":"Jurat!D$33","v":"00:00:00"},"PY","1917-01-01","Summary","Member Months","Member Months","Member Months",null,"Member Months",{"v":0,"d":"$0.00"},{"v":0,"d":"$0.00"},{"v":0,"d":"$0.00"},{"v":0,"d":"$0.00"},{"$f":"'LTC Rev-Exp Summary'!T$9","v":{"v":0,"d":"$0.00"}}]
["LTC",null,null,{"$f":"Jurat!I$1","v":0},{"$f":"Jurat!D$33","v":"00:00:00"},"PY","1917-01-01","Summary","Operating Revenue","Capitation","Capitation",1.1,"Capitation",{"v":0,"d":"$0.00"},{"v":0,"d":"$0.00"},{"v":0,"d":"$0.00"},{"v":0,"d":"$0.00"},{"$f":"'LTC Rev-Exp Summary'!T$11","v":{"v":0,"d":"$0.00"}}]
["LTC",null,null,{"$f":"Jurat!I$1","v":0},{"$f":"Jurat!D$33","v":"00:00:00"},"PY","1917-01-01","Summary","Operating Revenue","Capitation","NH Rate Reconciliation",1.2,"NH Rate Reconciliation",{"v":0,"d":"$0.00"},{"v":0,"d":"$0.00"},{"v":0,"d":"$0.00"},{"v":0,"d":"$0.00"},{"$f":"'LTC Rev-Exp Summary'!T$12","v":{"v":0,"d":"$0.00"}}]
["LTC",null,null,{"$f":"Jurat!I$1","v":0},{"$f":"Jurat!D$33","v":"00:00:00"},"PY","1917-01-01","Summary","Operating Revenue","Other Revenue","Other Revenue",1.3,"Other Revenue",{"v":0,"d":"$0.00"},{"v":0,"d":"$0.00"},{"v":0,"d":"$0.00"},{"v":0,"d":"$0.00"},{"$f":"'LTC Rev-Exp Summary'!T$13","v":{"v":0,"d":"$0.00"}}]
["LTC",null,null,{"$f":"Jurat!I$1","v":0},{"$f":"Jurat!D$33","v":"00:00:00"},"PY","1917-01-01","Summary","Operating Expense","Medical Expense","NF & Hospice","2.1","Nursing Facility Days (Medicaid)",{"v":0,"d":"$0.00"},{"v":0,"d":"$0.00"},{"v":0,"d":"$0.00"},{"v":0,"d":"$0.00"},{"$f":"'LTC Rev-Exp Summary'!T$17","v":{"v":0,"d":"$0.00"}}]
["LTC",null,null,{"$f":"Jurat!I$1","v":0},{"$f":"Jurat!D$33","v":"00:00:00"},"PY","1917-01-01","Summary","Operating Expense","Medical Expense","NF & Hospice","2.2","Nursing Facility Days (Crossover)",{"v":0,"d":"$0.00"},{"v":0,"d":"$0.00"},{"v":0,"d":"$0.00"},{"v":0,"d":"$0.00"},{"$f":"'LTC Rev-Exp Summary'!T$18","v":{"v":0,"d":"$0.00"}}]
["LTC",null,null,{"$f":"Jurat!I$1","v":0},{"$f":"Jurat!D$33","v":"00:00:00"},"PY","1917-01-01","Summary","Operating Expense","Medical Expense","NF & Hospice","2.3","Nursing Facility FFS (Medicaid)",{"v":0,"d":"$0.00"},{"v":0,"d":"$0.00"},{"v":0,"d":"$0.00"},{"v":0,"d":"$0.00"},{"$f":"'LTC Rev-Exp Summary'!T$19","v":{"v":0,"d":"$0.00"}}]
["LTC",null,null,{"$f":"Jurat!I$1","v":0},{"$f":"Jurat!D$33","v":"00:00:00"},"PY","1917-01-01","Summary","Operating Expense","Medical Expense","NF & Hospice","2.4","Nursing Facility FFS (Crossover)",{"v":0,"d":"$0.00"},{"v":0,"d":"$0.00"},{"v":0,"d":"$0.00"},{"v":0,"d":"$0.00"},{"$f":"'LTC Rev-Exp Summary'!T$20","v":{"v":0,"d":"$0.00"}}]
["LTC",null,null,{"$f":"Jurat!I$1","v":0},{"$f":"Jurat!D$33","v":"00:00:00"},"PY","1917-01-01","Summary","Operating Expense","Medical Expense","NF & Hospice","2.5","Hospice Days",{"v":0,"d":"$0.00"},{"v":0,"d":"$0.00"},{"v":0,"d":"$0.00"},{"v":0,"d":"$0.00"},{"$f":"'LTC Rev-Exp Summary'!T$21","v":{"v":0,"d":"$0.00"}}]
["LTC",null,null,{"$f":"Jurat!I$1","v":0},{"$f":"Jurat!D$33","v":"00:00:00"},"PY","1917-01-01","Summary","Operating Expense","Medical Expense","NF & Hospice","2.6","Hospice FFS",{"v":0,"d":"$0.00"},{"v":0,"d":"$0.00"},{"v":0,"d":"$0.00"},{"v":0,"d":"$0.00"},{"$f":"'LTC Rev-Exp Summary'!T$22","v":{"v":0,"d":"$0.00"}}]
["LTC",null,null,{"$f":"Jurat!I$1","v":0},{"$f":"Jurat!D$33","v":"00:00:00"},"PY","1917-01-01","Summary","Operating Expense","Medical Expense","NF & Hospice","2.7","Ending IBNP for NF & Hospice",{"v":0,"d":"$0.00"},{"v":0,"d":"$0.00"},{"v":0,"d":"$0.00"},{"v":0,"d":"$0.00"},{"$f":"'LTC Rev-Exp Summary'!T$23","v":{"v":0,"d":"$0.00"}}]
["LTC",null,null,{"$f":"Jurat!I$1","v":0},{"$f":"Jurat!D$33","v":"00:00:00"},"PY","1917-01-01","Summary","Operating Expense","Medical Expense","NF & Hospice","2.8","NF & Hospice Subcapitated",{"v":0,"d":"$0.00"},{"v":0,"d":"$0.00"},{"v":0,"d":"$0.00"},{"v":0,"d":"$0.00"},{"$f":"'LTC Rev-Exp Summary'!T$24","v":{"v":0,"d":"$0.00"}}]
["LTC",null,null,{"$f":"Jurat!I$1","v":0},{"$f":"Jurat!D$33","v":"00:00:00"},"PY","1917-01-01","Summary","Operating Expense","Medical Expense","NF & Hospice","2.9","NF & Hospice Settlements",{"v":0,"d":"$0.00"},{"v":0,"d":"$0.00"},{"v":0,"d":"$0.00"},{"v":0,"d":"$0.00"},{"$f":"'LTC Rev-Exp Summary'!T$25","v":{"v":0,"d":"$0.00"}}]
["LTC",null,null,{"$f":"Jurat!I$1","v":0},{"$f":"Jurat!D$33","v":"00:00:00"},"PY","1917-01-01","Summary","Operating Expense","Medical Expense","LTC Services","2.11","Assisted Living FFS",{"v":0,"d":"$0.00"},{"v":0,"d":"$0.00"},{"v":0,"d":"$0.00"},{"v":0,"d":"$0.00"},{"$f":"'LTC Rev-Exp Summary'!T$27","v":{"v":0,"d":"$0.00"}}]
["LTC",null,null,{"$f":"Jurat!I$1","v":0},{"$f":"Jurat!D$33","v":"00:00:00"},"PY","1917-01-01","Summary","Operating Expense","Medical Expense","LTC Services","2.12","Home Health FFS",{"v":0,"d":"$0.00"},{"v":0,"d":"$0.00"},{"v":0,"d":"$0.00"},{"v":0,"d":"$0.00"},{"$f":"'LTC Rev-Exp Summary'!T$28","v":{"v":0,"d":"$0.00"}}]
["LTC",null,null,{"$f":"Jurat!I$1","v":0},{"$f":"Jurat!D$33","v":"00:00:00"},"PY","1917-01-01","Summary","Operating Expense","Medical Expense","LTC Services","2.13","Medical Equipment/Supplies FFS",{"v":0,"d":"$0.00"},{"v":0,"d":"$0.00"},{"v":0,"d":"$0.00"},{"v":0,"d":"$0.00"},{"$f":"'LTC Rev-Exp Summary'!T$29","v":{"v":0,"d":"$0.00"}}]
["LTC",null,null,{"$f":"Jurat!I$1","v":0},{"$f":"Jurat!D$33","v":"00:00:00"},"PY","1917-01-01","Summary","Operating Expense","Medical Expense","LTC Services","2.14","Therapy FFS",{"v":0,"d":"$0.00"},{"v":0,"d":"$0.00"},{"v":0,"d":"$0.00"},{"v":0,"d":"$0.00"},{"$f":"'LTC Rev-Exp Summary'!T$30","v":{"v":0,"d":"$0.00"}}]
["LTC",null,null,{"$f":"Jurat!I$1","v":0},{"$f":"Jurat!D$33","v":"00:00:00"},"PY","1917-01-01","Summary","Operating Expense","Medical Expense","LTC Services","2.15","Transportation FFS",{"v":0,"d":"$0.00"},{"v":0,"d":"$0.00"},{"v":0,"d":"$0.00"},{"v":0,"d":"$0.00"},{"$f":"'LTC Rev-Exp Summary'!T$31","v":{"v":0,"d":"$0.00"}}]
["LTC",null,null,{"$f":"Jurat!I$1","v":0},{"$f":"Jurat!D$33","v":"00:00:00"},"PY","1917-01-01","Summary","Operating Expense","Medical Expense","LTC Services","2.16","Case Management FFS (Plan Provided)",{"v":0,"d":"$0.00"},{"v":0,"d":"$0.00"},{"v":0,"d":"$0.00"},{"v":0,"d":"$0.00"},{"$f":"'LTC Rev-Exp Summary'!T$32","v":{"v":0,"d":"$0.00"}}]
["LTC",null,null,{"$f":"Jurat!I$1","v":0},{"$f":"Jurat!D$33","v":"00:00:00"},"PY","1917-01-01","Summary","Operating Expense","Medical Expense","LTC Services","2.17","Case Management FF (Non-Plan Provided)",{"v":0,"d":"$0.00"},{"v":0,"d":"$0.00"},{"v":0,"d":"$0.00"},{"v":0,"d":"$0.00"},{"$f":"'LTC Rev-Exp Summary'!T$33","v":{"v":0,"d":"$0.00"}}]
["LTC",null,null,{"$f":"Jurat!I$1","v":0},{"$f":"Jurat!D$33","v":"00:00:00"},"PY","1917-01-01","Summary","Operating Expense","Medical Expense","LTC Services","2.18","HCBS FFS",{"v":0,"d":"$0.00"},{"v":0,"d":"$0.00"},{"v":0,"d":"$0.00"},{"v":0,"d":"$0.00"},{"$f":"'LTC Rev-Exp Summary'!T$34","v":{"v":0,"d":"$0.00"}}]
["LTC",null,null,{"$f":"Jurat!I$1","v":0},{"$f":"Jurat!D$33","v":"00:00:00"},"PY","1917-01-01","Summary","Operating Expense","Medical Expense","LTC Services","2.19","Subcapitated LTC Services",{"v":0,"d":"$0.00"},{"v":0,"d":"$0.00"},{"v":0,"d":"$0.00"},{"v":0,"d":"$0.00"},{"$f":"'LTC Rev-Exp Summary'!T$35","v":{"v":0,"d":"$0.00"}}]
["LTC",null,null,{"$f":"Jurat!I$1","v":0},{"$f":"Jurat!D$33","v":"00:00:00"},"PY","1917-01-01","Summary","Operating Expense","Medical Expense","LTC Services","2.20","Ending IBNP for Long Term Care Services",{"v":0,"d":"$0.00"},{"v":0,"d":"$0.00"},{"v":0,"d":"$0.00"},{"v":0,"d":"$0.00"},{"$f":"'LTC Rev-Exp Summary'!T$36","v":{"v":0,"d":"$0.00"}}]
["LTC",null,null,{"$f":"Jurat!I$1","v":0},{"$f":"Jurat!D$33","v":"00:00:00"},"PY","1917-01-01","Summary","Operating Expense","Medical Expense","LTC Services","2.21","LTC Services Settlements",{"v":0,"d":"$0.00"},{"v":0,"d":"$0.00"},{"v":0,"d":"$0.00"},{"v":0,"d":"$0.00"},{"$f":"'LTC Rev-Exp Summary'!T$37","v":{"v":0,"d":"$0.00"}}]
["LTC",null,null,{"$f":"Jurat!I$1","v":0},{"$f":"Jurat!D$33","v":"00:00:00"},"PY","1917-01-01","Summary","Operating Expense","Medical Expense","Expanded Benefits","3.1","Expanded Benefits FFS",{"v":0,"d":"$0.00"},{"v":0,"d":"$0.00"},{"v":0,"d":"$0.00"},{"v":0,"d":"$0.00"},{"$f":"'LTC Rev-Exp Summary'!T$39","v":{"v":0,"d":"$0.00"}}]
["LTC",null,null,{"$f":"Jurat!I$1","v":0},{"$f":"Jurat!D$33","v":"00:00:00"},"PY","1917-01-01","Summary","Operating Expense","Medical Expense","Expanded Benefits","3.2","Expanded Benefits Subcapitation",{"v":0,"d":"$0.00"},{"v":0,"d":"$0.00"},{"v":0,"d":"$0.00"},{"v":0,"d":"$0.00"},{"$f":"'LTC Rev-Exp Summary'!T$40","v":{"v":0,"d":"$0.00"}}]
["LTC",null,null,{"$f":"Jurat!I$1","v":0},{"$f":"Jurat!D$33","v":"00:00:00"},"PY","1917-01-01","Summary","Operating Expense","Medical Expense","Expanded Benefits","3.3","Ending IBNP for Expanded Benefits",{"v":0,"d":"$0.00"},{"v":0,"d":"$0.00"},{"v":0,"d":"$0.00"},{"v":0,"d":"$0.00"},{"$f":"'LTC Rev-Exp Summary'!T$41","v":{"v":0,"d":"$0.00"}}]
["LTC",null,null,{"$f":"Jurat!I$1","v":0},{"$f":"Jurat!D$33","v":"00:00:00"},"PY","1917-01-01","Summary","Operating Expense","Medical Expense","Expanded Benefits","3.4","Expanded Benefits Settlements",{"v":0,"d":"$0.00"},{"v":0,"d":"$0.00"},{"v":0,"d":"$0.00"},{"v":0,"d":"$0.00"},{"$f":"'LTC Rev-Exp Summary'!T$42","v":{"v":0,"d":"$0.00"}}]
["LTC",null,null,{"$f":"Jurat!I$1","v":0},{"$f":"Jurat!D$33","v":"00:00:00"},"PY","1917-01-01","Summary","Operating Expense","Medical Expense","Other Medical","4.5","TPL & Fraud/Abuse Recoveries",{"v":0,"d":"$0.00"},{"v":0,"d":"$0.00"},{"v":0,"d":"$0.00"},{"v":0,"d":"$0.00"},{"$f":"'LTC Rev-Exp Summary'!T$48","v":{"v":0,"d":"$0.00"}}]
["LTC",null,null,{"$f":"Jurat!I$1","v":0},{"$f":"Jurat!D$33","v":"00:00:00"},"PY","1917-01-01","Summary","Operating Expense","Medical Expense","Other Medical","4.6.1","Premium Deficiency Reserve",{"v":0,"d":"$0.00"},{"v":0,"d":"$0.00"},{"v":0,"d":"$0.00"},{"v":0,"d":"$0.00"},{"$f":"'LTC Rev-Exp Summary'!T$49","v":{"v":0,"d":"$0.00"}}]
["LTC",null,null,{"$f":"Jurat!I$1","v":0},{"$f":"Jurat!D$33","v":"00:00:00"},"PY","1917-01-01","Summary","Operating Expense","Medical Expense","Other Medical","4.8","Reinsurance Premiums",{"v":0,"d":"$0.00"},{"v":0,"d":"$0.00"},{"v":0,"d":"$0.00"},{"v":0,"d":"$0.00"},{"$f":"'LTC Rev-Exp Summary'!T$51","v":{"v":0,"d":"$0.00"}}]
["LTC",null,null,{"$f":"Jurat!I$1","v":0},{"$f":"Jurat!D$33","v":"00:00:00"},"PY","1917-01-01","Summary","Operating Expense","Medical Expense","Other Medical","4.9","Reinsurance Recoveries",{"v":0,"d":"$0.00"},{"v":0,"d":"$0.00"},{"v":0,"d":"$0.00"},{"v":0,"d":"$0.00"},{"$f":"'LTC Rev-Exp Summary'!T$52","v":{"v":0,"d":"$0.00"}}]
["LTC",null,null,{"$f":"Jurat!I$1","v":0},{"$f":"Jurat!D$33","v":"00:00:00"},"PY","1917-01-01","Summary","Operating Expense","Administrative Expense","Administrative","5.1","Salaries & Benefits",{"v":0,"d":"$0.00"},{"v":0,"d":"$0.00"},{"v":0,"d":"$0.00"},{"v":0,"d":"$0.00"},{"$f":"'LTC Rev-Exp Summary'!T$57","v":{"v":0,"d":"$0.00"}}]
["LTC",null,null,{"$f":"Jurat!I$1","v":0},{"$f":"Jurat!D$33","v":"00:00:00"},"PY","1917-01-01","Summary","Operating Expense","Administrative Expense","Administrative","5.2","Administrative Services",{"v":0,"d":"$0.00"},{"v":0,"d":"$0.00"},{"v":0,"d":"$0.00"},{"v":0,"d":"$0.00"},{"$f":"'LTC Rev-Exp Summary'!T$58","v":{"v":0,"d":"$0.00"}}]
["LTC",null,null,{"$f":"Jurat!I$1","v":0},{"$f":"Jurat!D$33","v":"00:00:00"},"PY","1917-01-01","Summary","Operating Expense","Administrative Expense","Administrative","5.3","Information Systems",{"v":0,"d":"$0.00"},{"v":0,"d":"$0.00"},{"v":0,"d":"$0.00"},{"v":0,"d":"$0.00"},{"$f":"'LTC Rev-Exp Summary'!T$59","v":{"v":0,"d":"$0.00"}}]
["LTC",null,null,{"$f":"Jurat!I$1","v":0},{"$f":"Jurat!D$33","v":"00:00:00"},"PY","1917-01-01","Summary","Operating Expense","Administrative Expense","Administrative","5.4","Marketing Expenses",{"v":0,"d":"$0.00"},{"v":0,"d":"$0.00"},{"v":0,"d":"$0.00"},{"v":0,"d":"$0.00"},{"$f":"'LTC Rev-Exp Summary'!T$60","v":{"v":0,"d":"$0.00"}}]
["LTC",null,null,{"$f":"Jurat!I$1","v":0},{"$f":"Jurat!D$33","v":"00:00:00"},"PY","1917-01-01","Summary","Operating Expense","Administrative Expense","Administrative","5.5","General  Administration",{"v":0,"d":"$0.00"},{"v":0,"d":"$0.00"},{"v":0,"d":"$0.00"},{"v":0,"d":"$0.00"},{"$f":"'LTC Rev-Exp Summary'!T$61","v":{"v":0,"d":"$0.00"}}]
["LTC",null,null,{"$f":"Jurat!I$1","v":0},{"$f":"Jurat!D$33","v":"00:00:00"},"PY","1917-01-01","Summary","Operating Expense","Administrative Expense","Administrative","5.6","Compliance/Regulatory",{"v":0,"d":"$0.00"},{"v":0,"d":"$0.00"},{"v":0,"d":"$0.00"},{"v":0,"d":"$0.00"},{"$f":"'LTC Rev-Exp Summary'!T$62","v":{"v":0,"d":"$0.00"}}]
["LTC",null,null,{"$f":"Jurat!I$1","v":0},{"$f":"Jurat!D$33","v":"00:00:00"},"PY","1917-01-01","Summary","Operating Expense","Taxes & Fees","Taxes & Fees","6.1","State Premium Tax",{"v":0,"d":"$0.00"},{"v":0,"d":"$0.00"},{"v":0,"d":"$0.00"},{"v":0,"d":"$0.00"},{"$f":"'LTC Rev-Exp Summary'!T$64","v":{"v":0,"d":"$0.00"}}]
["LTC",null,null,{"$f":"Jurat!I$1","v":0},{"$f":"Jurat!D$33","v":"00:00:00"},"PY","1917-01-01","Summary","Operating Expense","Taxes & Fees","Taxes & Fees","6.2","Department of Insurance Assessments",{"v":0,"d":"$0.00"},{"v":0,"d":"$0.00"},{"v":0,"d":"$0.00"},{"v":0,"d":"$0.00"},{"$f":"'LTC Rev-Exp Summary'!T$65","v":{"v":0,"d":"$0.00"}}]
["LTC",null,null,{"$f":"Jurat!I$1","v":0},{"$f":"Jurat!D$33","v":"00:00:00"},"PY","1917-01-01","Summary","Non-Operating Expense","Income Tax Expense","Income Tax Expense","9.0","Income Tax Expense",{"v":0,"d":"$0.00"},{"v":0,"d":"$0.00"},{"v":0,"d":"$0.00"},{"v":0,"d":"$0.00"},{"$f":"'LTC Rev-Exp Summary'!T$72","v":{"v":0,"d":"$0.00"}}]

{"sheet":"LTC Ratio","index":47,"n_rows":181,"n_cols":16,"rows_kept":181,"hidden":true}
["Contract","Plan ID","Plan Name","Reporting Year","Reporting Quarter","Quarter Ending","Ratio","Period","Region","Total","Non-HCBS","HCBS","MED-P/SIXT","File Name ","File Date","Status"]
["LTC",null,null,{"$f":"Jurat!I$1","v":0},{"$f":"Jurat!D$33","v":"00:00:00"},"2017-03-31","MLR","Quarter","Summary",{"$f":"IFERROR(('LTC Rev-Exp Summary'!$D$54-'LTC Rev-Exp Summary'!$D$43)/'LTC Rev-Exp Summary'!$D$14, 0)","v":{"v":0,"d":"0.0%"}},{"v":0,"d":"0.0%"},{"v":0,"d":"0.0%"},{"v":0,"d":"0.0%"}]
["LTC",null,null,{"$f":"Jurat!I$1","v":0},{"$f":"Jurat!D$33","v":"00:00:00"},"2017-06-30","MLR","Quarter","Summary",{"$f":"IFERROR(('LTC Rev-Exp Summary'!$H$54-'LTC Rev-Exp Summary'!$H$43)/'LTC Rev-Exp Summary'!$H$14, 0)","v":{"v":0,"d":"0.0%"}},{"v":0,"d":"0.0%"},{"v":0,"d":"0.0%"},{"v":0,"d":"0.0%"}]
["LTC",null,null,{"$f":"Jurat!I$1","v":0},{"$f":"Jurat!D$33","v":"00:00:00"},"2017-09-30","MLR","Quarter","Summary",{"$f":"IFERROR(('LTC Rev-Exp Summary'!$L$54-'LTC Rev-Exp Summary'!$L$43)/'LTC Rev-Exp Summary'!$L$14, 0)","v":{"v":0,"d":"0.0%"}},{"v":0,"d":"0.0%"},{"v":0,"d":"0.0%"},{"v":0,"d":"0.0%"}]
["LTC",null,null,{"$f":"Jurat!I$1","v":0},{"$f":"Jurat!D$33","v":"00:00:00"},"2017-12-31","MLR","Quarter","Summary",{"$f":"IFERROR(('LTC Rev-Exp Summary'!$P$54-'LTC Rev-Exp Summary'!$P$43)/'LTC Rev-Exp Summary'!$P$14, 0)","v":{"v":0,"d":"0.0%"}},{"v":0,"d":"0.0%"},{"v":0,"d":"0.0%"},{"v":0,"d":"0.0%"}]
["LTC",null,null,{"$f":"Jurat!I$1","v":0},{"$f":"Jurat!D$33","v":"00:00:00"},{"$f":"E6","v":"00:00:00"},"MLR","YTD","Summary",{"$f":"IFERROR(('LTC Rev-Exp Summary'!$U$54-'LTC Rev-Exp Summary'!$U$43)/'LTC Rev-Exp Summary'!$U$14, 0)","v":{"v":0,"d":"0.0%"}},{"v":0,"d":"0.0%"},{"v":0,"d":"0.0%"},{"v":0,"d":"0.0%"}]
["LTC",null,null,{"$f":"Jurat!I$1","v":0},{"$f":"Jurat!D$33","v":"00:00:00"},"2017-03-31","Admin","Quarter","Summary",{"$f":"IFERROR('LTC Rev-Exp Summary'!$D$63/'LTC Rev-Exp Summary'!$D$14, 0)","v":{"v":0,"d":"0.0%"}},{"v":0,"d":"0.0%"},{"v":0,"d":"0.0%"},{"v":0,"d":"0.0%"}]
["LTC",null,null,{"$f":"Jurat!I$1","v":0},{"$f":"Jurat!D$33","v":"00:00:00"},"2017-06-30","Admin","Quarter","Summary",{"$f":"IFERROR('LTC Rev-Exp Summary'!$H$63/'LTC Rev-Exp Summary'!$H$14, 0)","v":{"v":0,"d":"0.0%"}},{"v":0,"d":"0.0%"},{"v":0,"d":"0.0%"},{"v":0,"d":"0.0%"}]
["LTC",null,null,{"$f":"Jurat!I$1","v":0},{"$f":"Jurat!D$33","v":"00:00:00"},"2017-09-30","Admin","Quarter","Summary",{"$f":"IFERROR('LTC Rev-Exp Summary'!$L$63/'LTC Rev-Exp Summary'!$L$14, 0)","v":{"v":0,"d":"0.0%"}},{"v":0,"d":"0.0%"},{"v":0,"d":"0.0%"},{"v":0,"d":"0.0%"}]
["LTC",null,null,{"$f":"Jurat!I$1","v":0},{"$f":"Jurat!D$33","v":"00:00:00"},"2017-12-31","Admin","Quarter","Summary",{"$f":"IFERROR('LTC Rev-Exp Summary'!$P$63/'LTC Rev-Exp Summary'!$P$14, 0)","v":{"v":0,"d":"0.0%"}},{"v":0,"d":"0.0%"},{"v":0,"d":"0.0%"},{"v":0,"d":"0.0%"}]
["LTC",null,null,{"$f":"Jurat!I$1","v":0},{"$f":"Jurat!D$33","v":"00:00:00"},{"$f":"E11","v":"00:00:00"},"Admin","YTD","Summary",{"$f":"IFERROR('LTC Rev-Exp Summary'!$U$63/'LTC Rev-Exp Summary'!$U$14, 0)","v":{"v":0,"d":"0.0%"}},{"v":0,"d":"0.0%"},{"v":0,"d":"0.0%"},{"v":0,"d":"0.0%"}]
["LTC",null,null,{"$f":"Jurat!I$1","v":0},{"$f":"Jurat!D$33","v":"00:00:00"},"2017-03-31","Margin","Quarter","Summary",{"$f":"IFERROR('LTC Rev-Exp Summary'!$D$71/'LTC Rev-Exp Summary'!$D$14, 0)","v":{"v":0,"d":"0.0%"}},{"v":0,"d":"0.0%"},{"v":0,"d":"0.0%"},{"v":0,"d":"0.0%"}]
["LTC",null,null,{"$f":"Jurat!I$1","v":0},{"$f":"Jurat!D$33","v":"00:00:00"},"2017-06-30","Margin","Quarter","Summary",{"$f":"IFERROR('LTC Rev-Exp Summary'!$H$71/'LTC Rev-Exp Summary'!$H$14, 0)","v":{"v":0,"d":"0.0%"}},{"v":0,"d":"0.0%"},{"v":0,"d":"0.0%"},{"v":0,"d":"0.0%"}]
["LTC",null,null,{"$f":"Jurat!I$1","v":0},{"$f":"Jurat!D$33","v":"00:00:00"},"2017-09-30","Margin","Quarter","Summary",{"$f":"IFERROR('LTC Rev-Exp Summary'!$L$71/'LTC Rev-Exp Summary'!$L$14, 0)","v":{"v":0,"d":"0.0%"}},{"v":0,"d":"0.0%"},{"v":0,"d":"0.0%"},{"v":0,"d":"0.0%"}]
["LTC",null,null,{"$f":"Jurat!I$1","v":0},{"$f":"Jurat!D$33","v":"00:00:00"},"2017-12-31","Margin","Quarter","Summary",{"$f":"IFERROR('LTC Rev-Exp Summary'!$P$71/'LTC Rev-Exp Summary'!$P$14, 0)","v":{"v":0,"d":"0.0%"}},{"v":0,"d":"0.0%"},{"v":0,"d":"0.0%"},{"v":0,"d":"0.0%"}]
["LTC",null,null,{"$f":"Jurat!I$1","v":0},{"$f":"Jurat!D$33","v":"00:00:00"},{"$f":"E16","v":"00:00:00"},"Margin","YTD","Summary",{"$f":"IFERROR('LTC Rev-Exp Summary'!$U$71/'LTC Rev-Exp Summary'!$U$14, 0)","v":{"v":0,"d":"0.0%"}},{"v":0,"d":"0.0%"},{"v":0,"d":"0.0%"},{"v":0,"d":"0.0%"}]
["LTC",null,null,{"$f":"Jurat!I$1","v":0},{"$f":"Jurat!D$33","v":"00:00:00"},"2017-03-31","MLR","Quarter","Region 1",{"$f":"IFERROR(('LTC Rev-Exp Region 1'!$D$54-'LTC Rev-Exp Region 1'!$D$43)/'LTC Rev-Exp Region 1'!$D$14, 0)","v":{"v":0,"d":"0.0%"}},{"v":0,"d":"0.0%"},{"v":0,"d":"0.0%"},{"v":0,"d":"0.0%"}]
["LTC",null,null,{"$f":"Jurat!I$1","v":0},{"$f":"Jurat!D$33","v":"00:00:00"},"2017-06-30","MLR","Quarter","Region 1",{"$f":"IFERROR(('LTC Rev-Exp Region 1'!$H$54-'LTC Rev-Exp Region 1'!$H$43)/'LTC Rev-Exp Region 1'!$H$14, 0)","v":{"v":0,"d":"0.0%"}},{"v":0,"d":"0.0%"},{"v":0,"d":"0.0%"},{"v":0,"d":"0.0%"}]
["LTC",null,null,{"$f":"Jurat!I$1","v":0},{"$f":"Jurat!D$33","v":"00:00:00"},"2017-09-30","MLR","Quarter","Region 1",{"$f":"IFERROR(('LTC Rev-Exp Region 1'!$L$54-'LTC Rev-Exp Region 1'!$L$43)/'LTC Rev-Exp Region 1'!$L$14, 0)","v":{"v":0,"d":"0.0%"}},{"v":0,"d":"0.0%"},{"v":0,"d":"0.0%"},{"v":0,"d":"0.0%"}]
["LTC",null,null,{"$f":"Jurat!I$1","v":0},{"$f":"Jurat!D$33","v":"00:00:00"},"2017-12-31","MLR","Quarter","Region 1",{"$f":"IFERROR(('LTC Rev-Exp Region 1'!$P$54-'LTC Rev-Exp Region 1'!$P$43)/'LTC Rev-Exp Region 1'!$P$14, 0)","v":{"v":0,"d":"0.0%"}},{"v":0,"d":"0.0%"},{"v":0,"d":"0.0%"},{"v":0,"d":"0.0%"}]
["LTC",null,null,{"$f":"Jurat!I$1","v":0},{"$f":"Jurat!D$33","v":"00:00:00"},{"$f":"E21","v":"00:00:00"},"MLR","YTD","Region 1",{"$f":"IFERROR(('LTC Rev-Exp Region 1'!$U$54-'LTC Rev-Exp Region 1'!$U$43)/'LTC Rev-Exp Region 1'!$U$14, 0)","v":{"v":0,"d":"0.0%"}},{"v":0,"d":"0.0%"},{"v":0,"d":"0.0%"},{"v":0,"d":"0.0%"}]
["LTC",null,null,{"$f":"Jurat!I$1","v":0},{"$f":"Jurat!D$33","v":"00:00:00"},"2017-03-31","Admin","Quarter","Region 1",{"$f":"IFERROR('LTC Rev-Exp Region 1'!$D$63/'LTC Rev-Exp Region 1'!$D$14, 0)","v":{"v":0,"d":"0.0%"}},{"v":0,"d":"0.0%"},{"v":0,"d":"0.0%"},{"v":0,"d":"0.0%"}]
["LTC",null,null,{"$f":"Jurat!I$1","v":0},{"$f":"Jurat!D$33","v":"00:00:00"},"2017-06-30","Admin","Quarter","Region 1",{"$f":"IFERROR('LTC Rev-Exp Region 1'!$H$63/'LTC Rev-Exp Region 1'!$H$14, 0)","v":{"v":0,"d":"0.0%"}},{"v":0,"d":"0.0%"},{"v":0,"d":"0.0%"},{"v":0,"d":"0.0%"}]
["LTC",null,null,{"$f":"Jurat!I$1","v":0},{"$f":"Jurat!D$33","v":"00:00:00"},"2017-09-30","Admin","Quarter","Region 1",{"$f":"IFERROR('LTC Rev-Exp Region 1'!$L$63/'LTC Rev-Exp Region 1'!$L$14, 0)","v":{"v":0,"d":"0.0%"}},{"v":0,"d":"0.0%"},{"v":0,"d":"0.0%"},{"v":0,"d":"0.0%"}]
["LTC",null,null,{"$f":"Jurat!I$1","v":0},{"$f":"Jurat!D$33","v":"00:00:00"},"2017-12-31","Admin","Quarter","Region 1",{"$f":"IFERROR('LTC Rev-Exp Region 1'!$P$63/'LTC Rev-Exp Region 1'!$P$14, 0)","v":{"v":0,"d":"0.0%"}},{"v":0,"d":"0.0%"},{"v":0,"d":"0.0%"},{"v":0,"d":"0.0%"}]
["LTC",null,null,{"$f":"Jurat!I$1","v":0},{"$f":"Jurat!D$33","v":"00:00:00"},{"$f":"E26","v":"00:00:00"},"Admin","YTD","Region 1",{"$f":"IFERROR('LTC Rev-Exp Region 1'!$U$63/'LTC Rev-Exp Region 1'!$U$14, 0)","v":{"v":0,"d":"0.0%"}},{"v":0,"d":"0.0%"},{"v":0,"d":"0.0%"},{"v":0,"d":"0.0%"}]
["LTC",null,null,{"$f":"Jurat!I$1","v":0},{"$f":"Jurat!D$33","v":"00:00:00"},"2017-03-31","Margin","Quarter","Region 1",{"$f":"IFERROR('LTC Rev-Exp Region 1'!$D$71/'LTC Rev-Exp Region 1'!$D$14, 0)","v":{"v":0,"d":"0.0%"}},{"v":0,"d":"0.0%"},{"v":0,"d":"0.0%"},{"v":0,"d":"0.0%"}]
["LTC",null,null,{"$f":"Jurat!I$1","v":0},{"$f":"Jurat!D$33","v":"00:00:00"},"2017-06-30","Margin","Quarter","Region 1",{"$f":"IFERROR('LTC Rev-Exp Region 1'!$H$71/'LTC Rev-Exp Region 1'!$H$14, 0)","v":{"v":0,"d":"0.0%"}},{"v":0,"d":"0.0%"},{"v":0,"d":"0.0%"},{"v":0,"d":"0.0%"}]
["LTC",null,null,{"$f":"Jurat!I$1","v":0},{"$f":"Jurat!D$33","v":"00:00:00"},"2017-09-30","Margin","Quarter","Region 1",{"$f":"IFERROR('LTC Rev-Exp Region 1'!$L$71/'LTC Rev-Exp Region 1'!$L$14, 0)","v":{"v":0,"d":"0.0%"}},{"v":0,"d":"0.0%"},{"v":0,"d":"0.0%"},{"v":0,"d":"0.0%"}]
["LTC",null,null,{"$f":"Jurat!I$1","v":0},{"$f":"Jurat!D$33","v":"00:00:00"},"2017-12-31","Margin","Quarter","Region 1",{"$f":"IFERROR('LTC Rev-Exp Region 1'!$P$71/'LTC Rev-Exp Region 1'!$P$14, 0)","v":{"v":0,"d":"0.0%"}},{"v":0,"d":"0.0%"},{"v":0,"d":"0.0%"},{"v":0,"d":"0.0%"}]
["LTC",null,null,{"$f":"Jurat!I$1","v":0},{"$f":"Jurat!D$33","v":"00:00:00"},{"$f":"E31","v":"00:00:00"},"Margin","YTD","Region 1",{"$f":"IFERROR('LTC Rev-Exp Region 1'!$U$71/'LTC Rev-Exp Region 1'!$U$14, 0)","v":{"v":0,"d":"0.0%"}},{"v":0,"d":"0.0%"},{"v":0,"d":"0.0%"},{"v":0,"d":"0.0%"}]
["LTC",null,null,{"$f":"Jurat!I$1","v":0},{"$f":"Jurat!D$33","v":"00:00:00"},"2017-03-31","MLR","Quarter","Region 2",{"$f":"IFERROR(('LTC Rev-Exp Region 2'!$D$54-'LTC Rev-Exp Region 2'!$D$43)/'LTC Rev-Exp Region 2'!$D$14, 0)","v":{"v":0,"d":"0.0%"}},{"v":0,"d":"0.0%"},{"v":0,"d":"0.0%"},{"v":0,"d":"0.0%"}]
["LTC",null,null,{"$f":"Jurat!I$1","v":0},{"$f":"Jurat!D$33","v":"00:00:00"},"2017-06-30","MLR","Quarter","Region 2",{"$f":"IFERROR(('LTC Rev-Exp Region 2'!$H$54-'LTC Rev-Exp Region 2'!$H$43)/'LTC Rev-Exp Region 2'!$H$14, 0)","v":{"v":0,"d":"0.0%"}},{"v":0,"d":"0.0%"},{"v":0,"d":"0.0%"},{"v":0,"d":"0.0%"}]
["LTC",null,null,{"$f":"Jurat!I$1","v":0},{"$f":"Jurat!D$33","v":"00:00:00"},"2017-09-30","MLR","Quarter","Region 2",{"$f":"IFERROR(('LTC Rev-Exp Region 2'!$L$54-'LTC Rev-Exp Region 2'!$L$43)/'LTC Rev-Exp Region 2'!$L$14, 0)","v":{"v":0,"d":"0.0%"}},{"v":0,"d":"0.0%"},{"v":0,"d":"0.0%"},{"v":0,"d":"0.0%"}]
["LTC",null,null,{"$f":"Jurat!I$1","v":0},{"$f":"Jurat!D$33","v":"00:00:00"},"2017-12-31","MLR","Quarter","Region 2",{"$f":"IFERROR(('LTC Rev-Exp Region 2'!$P$54-'LTC Rev-Exp Region 2'!$P$43)/'LTC Rev-Exp Region 2'!$P$14, 0)","v":{"v":0,"d":"0.0%"}},{"v":0,"d":"0.0%"},{"v":0,"d":"0.0%"},{"v":0,"d":"0.0%"}]
["LTC",null,null,{"$f":"Jurat!I$1","v":0},{"$f":"Jurat!D$33","v":"00:00:00"},{"$f":"E36","v":"00:00:00"},"MLR","YTD","Region 2",{"$f":"IFERROR(('LTC Rev-Exp Region 2'!$U$54-'LTC Rev-Exp Region 2'!$U$43)/'LTC Rev-Exp Region 2'!$U$14, 0)","v":{"v":0,"d":"0.0%"}},{"v":0,"d":"0.0%"},{"v":0,"d":"0.0%"},{"v":0,"d":"0.0%"}]
["LTC",null,null,{"$f":"Jurat!I$1","v":0},{"$f":"Jurat!D$33","v":"00:00:00"},"2017-03-31","Admin","Quarter","Region 2",{"$f":"IFERROR('LTC Rev-Exp Region 2'!$D$63/'LTC Rev-Exp Region 2'!$D$14, 0)","v":{"v":0,"d":"0.0%"}},{"v":0,"d":"0.0%"},{"v":0,"d":"0.0%"},{"v":0,"d":"0.0%"}]
["LTC",null,null,{"$f":"Jurat!I$1","v":0},{"$f":"Jurat!D$33","v":"00:00:00"},"2017-06-30","Admin","Quarter","Region 2",{"$f":"IFERROR('LTC Rev-Exp Region 2'!$H$63/'LTC Rev-Exp Region 2'!$H$14, 0)","v":{"v":0,"d":"0.0%"}},{"v":0,"d":"0.0%"},{"v":0,"d":"0.0%"},{"v":0,"d":"0.0%"}]
["LTC",null,null,{"$f":"Jurat!I$1","v":0},{"$f":"Jurat!D$33","v":"00:00:00"},"2017-09-30","Admin","Quarter","Region 2",{"$f":"IFERROR('LTC Rev-Exp Region 2'!$L$63/'LTC Rev-Exp Region 2'!$L$14, 0)","v":{"v":0,"d":"0.0%"}},{"v":0,"d":"0.0%"},{"v":0,"d":"0.0%"},{"v":0,"d":"0.0%"}]
["LTC",null,null,{"$f":"Jurat!I$1","v":0},{"$f":"Jurat!D$33","v":"00:00:00"},"2017-12-31","Admin","Quarter","Region 2",{"$f":"IFERROR('LTC Rev-Exp Region 2'!$P$63/'LTC Rev-Exp Region 2'!$P$14, 0)","v":{"v":0,"d":"0.0%"}},{"v":0,"d":"0.0%"},{"v":0,"d":"0.0%"},{"v":0,"d":"0.0%"}]
["LTC",null,null,{"$f":"Jurat!I$1","v":0},{"$f":"Jurat!D$33","v":"00:00:00"},{"$f":"E41","v":"00:00:00"},"Admin","YTD","Region 2",{"$f":"IFERROR('LTC Rev-Exp Region 2'!$U$63/'LTC Rev-Exp Region 2'!$U$14, 0)","v":{"v":0,"d":"0.0%"}},{"v":0,"d":"0.0%"},{"v":0,"d":"0.0%"},{"v":0,"d":"0.0%"}]
["LTC",null,null,{"$f":"Jurat!I$1","v":0},{"$f":"Jurat!D$33","v":"00:00:00"},"2017-03-31","Margin","Quarter","Region 2",{"$f":"IFERROR('LTC Rev-Exp Region 2'!$D$71/'LTC Rev-Exp Region 2'!$D$14, 0)","v":{"v":0,"d":"0.0%"}},{"v":0,"d":"0.0%"},{"v":0,"d":"0.0%"},{"v":0,"d":"0.0%"}]
["LTC",null,null,{"$f":"Jurat!I$1","v":0},{"$f":"Jurat!D$33","v":"00:00:00"},"2017-06-30","Margin","Quarter","Region 2",{"$f":"IFERROR('LTC Rev-Exp Region 2'!$H$71/'LTC Rev-Exp Region 2'!$H$14, 0)","v":{"v":0,"d":"0.0%"}},{"v":0,"d":"0.0%"},{"v":0,"d":"0.0%"},{"v":0,"d":"0.0%"}]
["LTC",null,null,{"$f":"Jurat!I$1","v":0},{"$f":"Jurat!D$33","v":"00:00:00"},"2017-09-30","Margin","Quarter","Region 2",{"$f":"IFERROR('LTC Rev-Exp Region 2'!$L$71/'LTC Rev-Exp Region 2'!$L$14, 0)","v":{"v":0,"d":"0.0%"}},{"v":0,"d":"0.0%"},{"v":0,"d":"0.0%"},{"v":0,"d":"0.0%"}]
["LTC",null,null,{"$f":"Jurat!I$1","v":0},{"$f":"Jurat!D$33","v":"00:00:00"},"2017-12-31","Margin","Quarter","Region 2",{"$f":"IFERROR('LTC Rev-Exp Region 2'!$P$71/'LTC Rev-Exp Region 2'!$P$14, 0)","v":{"v":0,"d":"0.0%"}},{"v":0,"d":"0.0%"},{"v":0,"d":"0.0%"},{"v":0,"d":"0.0%"}]
["LTC",null,null,{"$f":"Jurat!I$1","v":0},{"$f":"Jurat!D$33","v":"00:00:00"},{"$f":"E46","v":"00:00:00"},"Margin","YTD","Region 2",{"$f":"IFERROR('LTC Rev-Exp Region 2'!$U$71/'LTC Rev-Exp Region 2'!$U$14, 0)","v":{"v":0,"d":"0.0%"}},{"v":0,"d":"0.0%"},{"v":0,"d":"0.0%"},{"v":0,"d":"0.0%"}]
["LTC",null,null,{"$f":"Jurat!I$1","v":0},{"$f":"Jurat!D$33","v":"00:00:00"},"2017-03-31","MLR","Quarter","Region 3",{"$f":"IFERROR(('LTC Rev-Exp Region 3'!$D$54-'LTC Rev-Exp Region 3'!$D$43)/'LTC Rev-Exp Region 3'!$D$14, 0)","v":{"v":0,"d":"0.0%"}},{"v":0,"d":"0.0%"},{"v":0,"d":"0.0%"},{"v":0,"d":"0.0%"}]
["LTC",null,null,{"$f":"Jurat!I$1","v":0},{"$f":"Jurat!D$33","v":"00:00:00"},"2017-06-30","MLR","Quarter","Region 3",{"$f":"IFERROR(('LTC Rev-Exp Region 3'!$H$54-'LTC Rev-Exp Region 3'!$H$43)/'LTC Rev-Exp Region 3'!$H$14, 0)","v":{"v":0,"d":"0.0%"}},{"v":0,"d":"0.0%"},{"v":0,"d":"0.0%"},{"v":0,"d":"0.0%"}]
["LTC",null,null,{"$f":"Jurat!I$1","v":0},{"$f":"Jurat!D$33","v":"00:00:00"},"2017-09-30","MLR","Quarter","Region 3",{"$f":"IFERROR(('LTC Rev-Exp Region 3'!$L$54-'LTC Rev-Exp Region 3'!$L$43)/'LTC Rev-Exp Region 3'!$L$14, 0)","v":{"v":0,"d":"0.0%"}},{"v":0,"d":"0.0%"},{"v":0,"d":"0.0%"},{"v":0,"d":"0.0%"}]
["LTC",null,null,{"$f":"Jurat!I$1","v":0},{"$f":"Jurat!D$33","v":"00:00:00"},"2017-12-31","MLR","Quarter","Region 3",{"$f":"IFERROR(('LTC Rev-Exp Region 3'!$P$54-'LTC Rev-Exp Region 3'!$P$43)/'LTC Rev-Exp Region 3'!$P$14, 0)","v":{"v":0,"d":"0.0%"}},{"v":0,"d":"0.0%"},{"v":0,"d":"0.0%"},{"v":0,"d":"0.0%"}]
["LTC",null,null,{"$f":"Jurat!I$1","v":0},{"$f":"Jurat!D$33","v":"00:00:00"},{"$f":"E51","v":"00:00:00"},"MLR","YTD","Region 3",{"$f":"IFERROR(('LTC Rev-Exp Region 3'!$U$54-'LTC Rev-Exp Region 3'!$U$43)/'LTC Rev-Exp Region 3'!$U$14, 0)","v":{"v":0,"d":"0.0%"}},{"v":0,"d":"0.0%"},{"v":0,"d":"0.0%"},{"v":0,"d":"0.0%"}]
["LTC",null,null,{"$f":"Jurat!I$1","v":0},{"$f":"Jurat!D$33","v":"00:00:00"},"2017-03-31","Admin","Quarter","Region 3",{"$f":"IFERROR('LTC Rev-Exp Region 3'!$D$63/'LTC Rev-Exp Region 3'!$D$14, 0)","v":{"v":0,"d":"0.0%"}},{"v":0,"d":"0.0%"},{"v":0,"d":"0.0%"},{"v":0,"d":"0.0%"}]
["LTC",null,null,{"$f":"Jurat!I$1","v":0},{"$f":"Jurat!D$33","v":"00:00:00"},"2017-06-30","Admin","Quarter","Region 3",{"$f":"IFERROR('LTC Rev-Exp Region 3'!$H$63/'LTC Rev-Exp Region 3'!$H$14, 0)","v":{"v":0,"d":"0.0%"}},{"v":0,"d":"0.0%"},{"v":0,"d":"0.0%"},{"v":0,"d":"0.0%"}]
["LTC",null,null,{"$f":"Jurat!I$1","v":0},{"$f":"Jurat!D$33","v":"00:00:00"},"2017-09-30","Admin","Quarter","Region 3",{"$f":"IFERROR('LTC Rev-Exp Region 3'!$L$63/'LTC Rev-Exp Region 3'!$L$14, 0)","v":{"v":0,"d":"0.0%"}},{"v":0,"d":"0.0%"},{"v":0,"d":"0.0%"},{"v":0,"d":"0.0%"}]
["LTC",null,null,{"$f":"Jurat!I$1","v":0},{"$f":"Jurat!D$33","v":"00:00:00"},"2017-12-31","Admin","Quarter","Region 3",{"$f":"IFERROR('LTC Rev-Exp Region 3'!$P$63/'LTC Rev-Exp Region 3'!$P$14, 0)","v":{"v":0,"d":"0.0%"}},{"v":0,"d":"0.0%"},{"v":0,"d":"0.0%"},{"v":0,"d":"0.0%"}]
["LTC",null,null,{"$f":"Jurat!I$1","v":0},{"$f":"Jurat!D$33","v":"00:00:00"},{"$f":"E56","v":"00:00:00"},"Admin","YTD","Region 3",{"$f":"IFERROR('LTC Rev-Exp Region 3'!$U$63/'LTC Rev-Exp Region 3'!$U$14, 0)","v":{"v":0,"d":"0.0%"}},{"v":0,"d":"0.0%"},{"v":0,"d":"0.0%"},{"v":0,"d":"0.0%"}]
["LTC",null,null,{"$f":"Jurat!I$1","v":0},{"$f":"Jurat!D$33","v":"00:00:00"},"2017-03-31","Margin","Quarter","Region 3",{"$f":"IFERROR('LTC Rev-Exp Region 3'!$D$71/'LTC Rev-Exp Region 3'!$D$14, 0)","v":{"v":0,"d":"0.0%"}},{"v":0,"d":"0.0%"},{"v":0,"d":"0.0%"},{"v":0,"d":"0.0%"}]
["LTC",null,null,{"$f":"Jurat!I$1","v":0},{"$f":"Jurat!D$33","v":"00:00:00"},"2017-06-30","Margin","Quarter","Region 3",{"$f":"IFERROR('LTC Rev-Exp Region 3'!$H$71/'LTC Rev-Exp Region 3'!$H$14, 0)","v":{"v":0,"d":"0.0%"}},{"v":0,"d":"0.0%"},{"v":0,"d":"0.0%"},{"v":0,"d":"0.0%"}]
["LTC",null,null,{"$f":"Jurat!I$1","v":0},{"$f":"Jurat!D$33","v":"00:00:00"},"2017-09-30","Margin","Quarter","Region 3",{"$f":"IFERROR('LTC Rev-Exp Region 3'!$L$71/'LTC Rev-Exp Region 3'!$L$14, 0)","v":{"v":0,"d":"0.0%"}},{"v":0,"d":"0.0%"},{"v":0,"d":"0.0%"},{"v":0,"d":"0.0%"}]
["LTC",null,null,{"$f":"Jurat!I$1","v":0},{"$f":"Jurat!D$33","v":"00:00:00"},"2017-12-31","Margin","Quarter","Region 3",{"$f":"IFERROR('LTC Rev-Exp Region 3'!$P$71/'LTC Rev-Exp Region 3'!$P$14, 0)","v":{"v":0,"d":"0.0%"}},{"v":0,"d":"0.0%"},{"v":0,"d":"0.0%"},{"v":0,"d":"0.0%"}]
["LTC",null,null,{"$f":"Jurat!I$1","v":0},{"$f":"Jurat!D$33","v":"00:00:00"},{"$f":"E61","v":"00:00:00"},"Margin","YTD","Region 3",{"$f":"IFERROR('LTC Rev-Exp Region 3'!$U$71/'LTC Rev-Exp Region 3'!$U$14, 0)","v":{"v":0,"d":"0.0%"}},{"v":0,"d":"0.0%"},{"v":0,"d":"0.0%"},{"v":0,"d":"0.0%"}]
["LTC",null,null,{"$f":"Jurat!I$1","v":0},{"$f":"Jurat!D$33","v":"00:00:00"},"2017-03-31","MLR","Quarter","Region 4",{"$f":"IFERROR(('LTC Rev-Exp Region 4'!$D$54-'LTC Rev-Exp Region 4'!$D$43)/'LTC Rev-Exp Region 4'!$D$14, 0)","v":{"v":0,"d":"0.0%"}},{"v":0,"d":"0.0%"},{"v":0,"d":"0.0%"},{"v":0,"d":"0.0%"}]
["LTC",null,null,{"$f":"Jurat!I$1","v":0},{"$f":"Jurat!D$33","v":"00:00:00"},"2017-06-30","MLR","Quarter","Region 4",{"$f":"IFERROR(('LTC Rev-Exp Region 4'!$H$54-'LTC Rev-Exp Region 4'!$H$43)/'LTC Rev-Exp Region 4'!$H$14, 0)","v":{"v":0,"d":"0.0%"}},{"v":0,"d":"0.0%"},{"v":0,"d":"0.0%"},{"v":0,"d":"0.0%"}]
["LTC",null,null,{"$f":"Jurat!I$1","v":0},{"$f":"Jurat!D$33","v":"00:00:00"},"2017-09-30","MLR","Quarter","Region 4",{"$f":"IFERROR(('LTC Rev-Exp Region 4'!$L$54-'LTC Rev-Exp Region 4'!$L$43)/'LTC Rev-Exp Region 4'!$L$14, 0)","v":{"v":0,"d":"0.0%"}},{"v":0,"d":"0.0%"},{"v":0,"d":"0.0%"},{"v":0,"d":"0.0%"}]
["LTC",null,null,{"$f":"Jurat!I$1","v":0},{"$f":"Jurat!D$33","v":"00:00:00"},"2017-12-31","MLR","Quarter","Region 4",{"$f":"IFERROR(('LTC Rev-Exp Region 4'!$P$54-'LTC Rev-Exp Region 4'!$P$43)/'LTC Rev-Exp Region 4'!$P$14, 0)","v":{"v":0,"d":"0.0%"}},{"v":0,"d":"0.0%"},{"v":0,"d":"0.0%"},{"v":0,"d":"0.0%"}]
["LTC",null,null,{"$f":"Jurat!I$1","v":0},{"$f":"Jurat!D$33","v":"00:00:00"},{"$f":"E66","v":"00:00:00"},"MLR","YTD","Region 4",{"$f":"IFERROR(('LTC Rev-Exp Region 4'!$U$54-'LTC Rev-Exp Region 4'!$U$43)/'LTC Rev-Exp Region 4'!$U$14, 0)","v":{"v":0,"d":"0.0%"}},{"v":0,"d":"0.0%"},{"v":0,"d":"0.0%"},{"v":0,"d":"0.0%"}]
["LTC",null,null,{"$f":"Jurat!I$1","v":0},{"$f":"Jurat!D$33","v":"00:00:00"},"2017-03-31","Admin","Quarter","Region 4",{"$f":"IFERROR('LTC Rev-Exp Region 4'!$D$63/'LTC Rev-Exp Region 4'!$D$14, 0)","v":{"v":0,"d":"0.0%"}},{"v":0,"d":"0.0%"},{"v":0,"d":"0.0%"},{"v":0,"d":"0.0%"}]
["LTC",null,null,{"$f":"Jurat!I$1","v":0},{"$f":"Jurat!D$33","v":"00:00:00"},"2017-06-30","Admin","Quarter","Region 4",{"$f":"IFERROR('LTC Rev-Exp Region 4'!$H$63/'LTC Rev-Exp Region 4'!$H$14, 0)","v":{"v":0,"d":"0.0%"}},{"v":0,"d":"0.0%"},{"v":0,"d":"0.0%"},{"v":0,"d":"0.0%"}]
["LTC",null,null,{"$f":"Jurat!I$1","v":0},{"$f":"Jurat!D$33","v":"00:00:00"},"2017-09-30","Admin","Quarter","Region 4",{"$f":"IFERROR('LTC Rev-Exp Region 4'!$L$63/'LTC Rev-Exp Region 4'!$L$14, 0)","v":{"v":0,"d":"0.0%"}},{"v":0,"d":"0.0%"},{"v":0,"d":"0.0%"},{"v":0,"d":"0.0%"}]
["LTC",null,null,{"$f":"Jurat!I$1","v":0},{"$f":"Jurat!D$33","v":"00:00:00"},"2017-12-31","Admin","Quarter","Region 4",{"$f":"IFERROR('LTC Rev-Exp Region 4'!$P$63/'LTC Rev-Exp Region 4'!$P$14, 0)","v":{"v":0,"d":"0.0%"}},{"v":0,"d":"0.0%"},{"v":0,"d":"0.0%"},{"v":0,"d":"0.0%"}]
["LTC",null,null,{"$f":"Jurat!I$1","v":0},{"$f":"Jurat!D$33","v":"00:00:00"},{"$f":"E71","v":"00:00:00"},"Admin","YTD","Region 4",{"$f":"IFERROR('LTC Rev-Exp Region 4'!$U$63/'LTC Rev-Exp Region 4'!$U$14, 0)","v":{"v":0,"d":"0.0%"}},{"v":0,"d":"0.0%"},{"v":0,"d":"0.0%"},{"v":0,"d":"0.0%"}]
["LTC",null,null,{"$f":"Jurat!I$1","v":0},{"$f":"Jurat!D$33","v":"00:00:00"},"2017-03-31","Margin","Quarter","Region 4",{"$f":"IFERROR('LTC Rev-Exp Region 4'!$D$71/'LTC Rev-Exp Region 4'!$D$14, 0)","v":{"v":0,"d":"0.0%"}},{"v":0,"d":"0.0%"},{"v":0,"d":"0.0%"},{"v":0,"d":"0.0%"}]
["LTC",null,null,{"$f":"Jurat!I$1","v":0},{"$f":"Jurat!D$33","v":"00:00:00"},"2017-06-30","Margin","Quarter","Region 4",{"$f":"IFERROR('LTC Rev-Exp Region 4'!$H$71/'LTC Rev-Exp Region 4'!$H$14, 0)","v":{"v":0,"d":"0.0%"}},{"v":0,"d":"0.0%"},{"v":0,"d":"0.0%"},{"v":0,"d":"0.0%"}]
["LTC",null,null,{"$f":"Jurat!I$1","v":0},{"$f":"Jurat!D$33","v":"00:00:00"},"2017-09-30","Margin","Quarter","Region 4",{"$f":"IFERROR('LTC Rev-Exp Region 4'!$L$71/'LTC Rev-Exp Region 4'!$L$14, 0)","v":{"v":0,"d":"0.0%"}},{"v":0,"d":"0.0%"},{"v":0,"d":"0.0%"},{"v":0,"d":"0.0%"}]
["LTC",null,null,{"$f":"Jurat!I$1","v":0},{"$f":"Jurat!D$33","v":"00:00:00"},"2017-12-31","Margin","Quarter","Region 4",{"$f":"IFERROR('LTC Rev-Exp Region 4'!$P$71/'LTC Rev-Exp Region 4'!$P$14, 0)","v":{"v":0,"d":"0.0%"}},{"v":0,"d":"0.0%"},{"v":0,"d":"0.0%"},{"v":0,"d":"0.0%"}]
["LTC",null,null,{"$f":"Jurat!I$1","v":0},{"$f":"Jurat!D$33","v":"00:00:00"},{"$f":"E76","v":"00:00:00"},"Margin","YTD","Region 4",{"$f":"IFERROR('LTC Rev-Exp Region 4'!$U$71/'LTC Rev-Exp Region 4'!$U$14, 0)","v":{"v":0,"d":"0.0%"}},{"v":0,"d":"0.0%"},{"v":0,"d":"0.0%"},{"v":0,"d":"0.0%"}]
["LTC",null,null,{"$f":"Jurat!I$1","v":0},{"$f":"Jurat!D$33","v":"00:00:00"},"2017-03-31","MLR","Quarter","Region 5",{"$f":"IFERROR(('LTC Rev-Exp Region 5'!$D$54-'LTC Rev-Exp Region 5'!$D$43)/'LTC Rev-Exp Region 5'!$D$14, 0)","v":{"v":0,"d":"0.0%"}},{"v":0,"d":"0.0%"},{"v":0,"d":"0.0%"},{"v":0,"d":"0.0%"}]
["LTC",null,null,{"$f":"Jurat!I$1","v":0},{"$f":"Jurat!D$33","v":"00:00:00"},"2017-06-30","MLR","Quarter","Region 5",{"$f":"IFERROR(('LTC Rev-Exp Region 5'!$H$54-'LTC Rev-Exp Region 5'!$H$43)/'LTC Rev-Exp Region 5'!$H$14, 0)","v":{"v":0,"d":"0.0%"}},{"v":0,"d":"0.0%"},{"v":0,"d":"0.0%"},{"v":0,"d":"0.0%"}]
["LTC",null,null,{"$f":"Jurat!I$1","v":0},{"$f":"Jurat!D$33","v":"00:00:00"},"2017-09-30","MLR","Quarter","Region 5",{"$f":"IFERROR(('LTC Rev-Exp Region 5'!$L$54-'LTC Rev-Exp Region 5'!$L$43)/'LTC Rev-Exp Region 5'!$L$14, 0)","v":{"v":0,"d":"0.0%"}},{"v":0,"d":"0.0%"},{"v":0,"d":"0.0%"},{"v":0,"d":"0.0%"}]
["LTC",null,null,{"$f":"Jurat!I$1","v":0},{"$f":"Jurat!D$33","v":"00:00:00"},"2017-12-31","MLR","Quarter","Region 5",{"$f":"IFERROR(('LTC Rev-Exp Region 5'!$P$54-'LTC Rev-Exp Region 5'!$P$43)/'LTC Rev-Exp Region 5'!$P$14, 0)","v":{"v":0,"d":"0.0%"}},{"v":0,"d":"0.0%"},{"v":0,"d":"0.0%"},{"v":0,"d":"0.0%"}]
["LTC",null,null,{"$f":"Jurat!I$1","v":0},{"$f":"Jurat!D$33","v":"00:00:00"},{"$f":"E81","v":"00:00:00"},"MLR","YTD","Region 5",{"$f":"IFERROR(('LTC Rev-Exp Region 5'!$U$54-'LTC Rev-Exp Region 5'!$U$43)/'LTC Rev-Exp Region 5'!$U$14, 0)","v":{"v":0,"d":"0.0%"}},{"v":0,"d":"0.0%"},{"v":0,"d":"0.0%"},{"v":0,"d":"0.0%"}]
["LTC",null,null,{"$f":"Jurat!I$1","v":0},{"$f":"Jurat!D$33","v":"00:00:00"},"2017-03-31","Admin","Quarter","Region 5",{"$f":"IFERROR('LTC Rev-Exp Region 5'!$D$63/'LTC Rev-Exp Region 5'!$D$14, 0)","v":{"v":0,"d":"0.0%"}},{"v":0,"d":"0.0%"},{"v":0,"d":"0.0%"},{"v":0,"d":"0.0%"}]
["LTC",null,null,{"$f":"Jurat!I$1","v":0},{"$f":"Jurat!D$33","v":"00:00:00"},"2017-06-30","Admin","Quarter","Region 5",{"$f":"IFERROR('LTC Rev-Exp Region 5'!$H$63/'LTC Rev-Exp Region 5'!$H$14, 0)","v":{"v":0,"d":"0.0%"}},{"v":0,"d":"0.0%"},{"v":0,"d":"0.0%"},{"v":0,"d":"0.0%"}]
["LTC",null,null,{"$f":"Jurat!I$1","v":0},{"$f":"Jurat!D$33","v":"00:00:00"},"2017-09-30","Admin","Quarter","Region 5",{"$f":"IFERROR('LTC Rev-Exp Region 5'!$L$63/'LTC Rev-Exp Region 5'!$L$14, 0)","v":{"v":0,"d":"0.0%"}},{"v":0,"d":"0.0%"},{"v":0,"d":"0.0%"},{"v":0,"d":"0.0%"}]
["LTC",null,null,{"$f":"Jurat!I$1","v":0},{"$f":"Jurat!D$33","v":"00:00:00"},"2017-12-31","Admin","Quarter","Region 5",{"$f":"IFERROR('LTC Rev-Exp Region 5'!$P$63/'LTC Rev-Exp Region 5'!$P$14, 0)","v":{"v":0,"d":"0.0%"}},{"v":0,"d":"0.0%"},{"v":0,"d":"0.0%"},{"v":0,"d":"0.0%"}]
["LTC",null,null,{"$f":"Jurat!I$1","v":0},{"$f":"Jurat!D$33","v":"00:00:00"},{"$f":"E86","v":"00:00:00"},"Admin","YTD","Region 5",{"$f":"IFERROR('LTC Rev-Exp Region 5'!$U$63/'LTC Rev-Exp Region 5'!$U$14, 0)","v":{"v":0,"d":"0.0%"}},{"v":0,"d":"0.0%"},{"v":0,"d":"0.0%"},{"v":0,"d":"0.0%"}]
["LTC",null,null,{"$f":"Jurat!I$1","v":0},{"$f":"Jurat!D$33","v":"00:00:00"},"2017-03-31","Margin","Quarter","Region 5",{"$f":"IFERROR('LTC Rev-Exp Region 5'!$D$71/'LTC Rev-Exp Region 5'!$D$14, 0)","v":{"v":0,"d":"0.0%"}},{"v":0,"d":"0.0%"},{"v":0,"d":"0.0%"},{"v":0,"d":"0.0%"}]
["LTC",null,null,{"$f":"Jurat!I$1","v":0},{"$f":"Jurat!D$33","v":"00:00:00"},"2017-06-30","Margin","Quarter","Region 5",{"$f":"IFERROR('LTC Rev-Exp Region 5'!$H$71/'LTC Rev-Exp Region 5'!$H$14, 0)","v":{"v":0,"d":"0.0%"}},{"v":0,"d":"0.0%"},{"v":0,"d":"0.0%"},{"v":0,"d":"0.0%"}]
["LTC",null,null,{"$f":"Jurat!I$1","v":0},{"$f":"Jurat!D$33","v":"00:00:00"},"2017-09-30","Margin","Quarter","Region 5",{"$f":"IFERROR('LTC Rev-Exp Region 5'!$L$71/'LTC Rev-Exp Region 5'!$L$14, 0)","v":{"v":0,"d":"0.0%"}},{"v":0,"d":"0.0%"},{"v":0,"d":"0.0%"},{"v":0,"d":"0.0%"}]
["LTC",null,null,{"$f":"Jurat!I$1","v":0},{"$f":"Jurat!D$33","v":"00:00:00"},"2017-12-31","Margin","Quarter","Region 5",{"$f":"IFERROR('LTC Rev-Exp Region 5'!$P$71/'LTC Rev-Exp Region 5'!$P$14, 0)","v":{"v":0,"d":"0.0%"}},{"v":0,"d":"0.0%"},{"v":0,"d":"0.0%"},{"v":0,"d":"0.0%"}]
["LTC",null,null,{"$f":"Jurat!I$1","v":0},{"$f":"Jurat!D$33","v":"00:00:00"},{"$f":"E91","v":"00:00:00"},"Margin","YTD","Region 5",{"$f":"IFERROR('LTC Rev-Exp Region 5'!$U$71/'LTC Rev-Exp Region 5'!$U$14, 0)","v":{"v":0,"d":"0.0%"}},{"v":0,"d":"0.0%"},{"v":0,"d":"0.0%"},{"v":0,"d":"0.0%"}]
["LTC",null,null,{"$f":"Jurat!I$1","v":0},{"$f":"Jurat!D$33","v":"00:00:00"},"2017-03-31","MLR","Quarter","Region 6",{"$f":"IFERROR(('LTC Rev-Exp Region 6'!$D$54-'LTC Rev-Exp Region 6'!$D$43)/'LTC Rev-Exp Region 6'!$D$14, 0)","v":{"v":0,"d":"0.0%"}},{"v":0,"d":"0.0%"},{"v":0,"d":"0.0%"},{"v":0,"d":"0.0%"}]
["LTC",null,null,{"$f":"Jurat!I$1","v":0},{"$f":"Jurat!D$33","v":"00:00:00"},"2017-06-30","MLR","Quarter","Region 6",{"$f":"IFERROR(('LTC Rev-Exp Region 6'!$H$54-'LTC Rev-Exp Region 6'!$H$43)/'LTC Rev-Exp Region 6'!$H$14, 0)","v":{"v":0,"d":"0.0%"}},{"v":0,"d":"0.0%"},{"v":0,"d":"0.0%"},{"v":0,"d":"0.0%"}]
["LTC",null,null,{"$f":"Jurat!I$1","v":0},{"$f":"Jurat!D$33","v":"00:00:00"},"2017-09-30","MLR","Quarter","Region 6",{"$f":"IFERROR(('LTC Rev-Exp Region 6'!$L$54-'LTC Rev-Exp Region 6'!$L$43)/'LTC Rev-Exp Region 6'!$L$14, 0)","v":{"v":0,"d":"0.0%"}},{"v":0,"d":"0.0%"},{"v":0,"d":"0.0%"},{"v":0,"d":"0.0%"}]
["LTC",null,null,{"$f":"Jurat!I$1","v":0},{"$f":"Jurat!D$33","v":"00:00:00"},"2017-12-31","MLR","Quarter","Region 6",{"$f":"IFERROR(('LTC Rev-Exp Region 6'!$P$54-'LTC Rev-Exp Region 6'!$P$43)/'LTC Rev-Exp Region 6'!$P$14, 0)","v":{"v":0,"d":"0.0%"}},{"v":0,"d":"0.0%"},{"v":0,"d":"0.0%"},{"v":0,"d":"0.0%"}]
["LTC",null,null,{"$f":"Jurat!I$1","v":0},{"$f":"Jurat!D$33","v":"00:00:00"},{"$f":"E96","v":"00:00:00"},"MLR","YTD","Region 6",{"$f":"IFERROR(('LTC Rev-Exp Region 6'!$U$54-'LTC Rev-Exp Region 6'!$U$43)/'LTC Rev-Exp Region 6'!$U$14, 0)","v":{"v":0,"d":"0.0%"}},{"v":0,"d":"0.0%"},{"v":0,"d":"0.0%"},{"v":0,"d":"0.0%"}]
["LTC",null,null,{"$f":"Jurat!I$1","v":0},{"$f":"Jurat!D$33","v":"00:00:00"},"2017-03-31","Admin","Quarter","Region 6",{"$f":"IFERROR('LTC Rev-Exp Region 6'!$D$63/'LTC Rev-Exp Region 6'!$D$14, 0)","v":{"v":0,"d":"0.0%"}},{"v":0,"d":"0.0%"},{"v":0,"d":"0.0%"},{"v":0,"d":"0.0%"}]
["LTC",null,null,{"$f":"Jurat!I$1","v":0},{"$f":"Jurat!D$33","v":"00:00:00"},"2017-06-30","Admin","Quarter","Region 6",{"$f":"IFERROR('LTC Rev-Exp Region 6'!$H$63/'LTC Rev-Exp Region 6'!$H$14, 0)","v":{"v":0,"d":"0.0%"}},{"v":0,"d":"0.0%"},{"v":0,"d":"0.0%"},{"v":0,"d":"0.0%"}]
["LTC",null,null,{"$f":"Jurat!I$1","v":0},{"$f":"Jurat!D$33","v":"00:00:00"},"2017-09-30","Admin","Quarter","Region 6",{"$f":"IFERROR('LTC Rev-Exp Region 6'!$L$63/'LTC Rev-Exp Region 6'!$L$14, 0)","v":{"v":0,"d":"0.0%"}},{"v":0,"d":"0.0%"},{"v":0,"d":"0.0%"},{"v":0,"d":"0.0%"}]
["LTC",null,null,{"$f":"Jurat!I$1","v":0},{"$f":"Jurat!D$33","v":"00:00:00"},"2017-12-31","Admin","Quarter","Region 6",{"$f":"IFERROR('LTC Rev-Exp Region 6'!$P$63/'LTC Rev-Exp Region 6'!$P$14, 0)","v":{"v":0,"d":"0.0%"}},{"v":0,"d":"0.0%"},{"v":0,"d":"0.0%"},{"v":0,"d":"0.0%"}]
["LTC",null,null,{"$f":"Jurat!I$1","v":0},{"$f":"Jurat!D$33","v":"00:00:00"},{"$f":"E101","v":"00:00:00"},"Admin","YTD","Region 6",{"$f":"IFERROR('LTC Rev-Exp Region 6'!$U$63/'LTC Rev-Exp Region 6'!$U$14, 0)","v":{"v":0,"d":"0.0%"}},{"v":0,"d":"0.0%"},{"v":0,"d":"0.0%"},{"v":0,"d":"0.0%"}]
["LTC",null,null,{"$f":"Jurat!I$1","v":0},{"$f":"Jurat!D$33","v":"00:00:00"},"2017-03-31","Margin","Quarter","Region 6",{"$f":"IFERROR('LTC Rev-Exp Region 6'!$D$71/'LTC Rev-Exp Region 6'!$D$14, 0)","v":{"v":0,"d":"0.0%"}},{"v":0,"d":"0.0%"},{"v":0,"d":"0.0%"},{"v":0,"d":"0.0%"}]
["LTC",null,null,{"$f":"Jurat!I$1","v":0},{"$f":"Jurat!D$33","v":"00:00:00"},"2017-06-30","Margin","Quarter","Region 6",{"$f":"IFERROR('LTC Rev-Exp Region 6'!$H$71/'LTC Rev-Exp Region 6'!$H$14, 0)","v":{"v":0,"d":"0.0%"}},{"v":0,"d":"0.0%"},{"v":0,"d":"0.0%"},{"v":0,"d":"0.0%"}]
["LTC",null,null,{"$f":"Jurat!I$1","v":0},{"$f":"Jurat!D$33","v":"00:00:00"},"2017-09-30","Margin","Quarter","Region 6",{"$f":"IFERROR('LTC Rev-Exp Region 6'!$L$71/'LTC Rev-Exp Region 6'!$L$14, 0)","v":{"v":0,"d":"0.0%"}},{"v":0,"d":"0.0%"},{"v":0,"d":"0.0%"},{"v":0,"d":"0.0%"}]
["LTC",null,null,{"$f":"Jurat!I$1","v":0},{"$f":"Jurat!D$33","v":"00:00:00"},"2017-12-31","Margin","Quarter","Region 6",{"$f":"IFERROR('LTC Rev-Exp Region 6'!$P$71/'LTC Rev-Exp Region 6'!$P$14, 0)","v":{"v":0,"d":"0.0%"}},{"v":0,"d":"0.0%"},{"v":0,"d":"0.0%"},{"v":0,"d":"0.0%"}]
["LTC",null,null,{"$f":"Jurat!I$1","v":0},{"$f":"Jurat!D$33","v":"00:00:00"},{"$f":"E106","v":"00:00:00"},"Margin","YTD","Region 6",{"$f":"IFERROR('LTC Rev-Exp Region 6'!$U$71/'LTC Rev-Exp Region 6'!$U$14, 0)","v":{"v":0,"d":"0.0%"}},{"v":0,"d":"0.0%"},{"v":0,"d":"0.0%"},{"v":0,"d":"0.0%"}]
["LTC",null,null,{"$f":"Jurat!I$1","v":0},{"$f":"Jurat!D$33","v":"00:00:00"},"2017-03-31","MLR","Quarter","Region 7",{"$f":"IFERROR(('LTC Rev-Exp Region 7'!$D$54-'LTC Rev-Exp Region 7'!$D$43)/'LTC Rev-Exp Region 7'!$D$14, 0)","v":{"v":0,"d":"0.0%"}},{"v":0,"d":"0.0%"},{"v":0,"d":"0.0%"},{"v":0,"d":"0.0%"}]
["LTC",null,null,{"$f":"Jurat!I$1","v":0},{"$f":"Jurat!D$33","v":"00:00:00"},"2017-06-30","MLR","Quarter","Region 7",{"$f":"IFERROR(('LTC Rev-Exp Region 7'!$H$54-'LTC Rev-Exp Region 7'!$H$43)/'LTC Rev-Exp Region 7'!$H$14, 0)","v":{"v":0,"d":"0.0%"}},{"v":0,"d":"0.0%"},{"v":0,"d":"0.0%"},{"v":0,"d":"0.0%"}]
["LTC",null,null,{"$f":"Jurat!I$1","v":0},{"$f":"Jurat!D$33","v":"00:00:00"},"2017-09-30","MLR","Quarter","Region 7",{"$f":"IFERROR(('LTC Rev-Exp Region 7'!$L$54-'LTC Rev-Exp Region 7'!$L$43)/'LTC Rev-Exp Region 7'!$L$14, 0)","v":{"v":0,"d":"0.0%"}},{"v":0,"d":"0.0%"},{"v":0,"d":"0.0%"},{"v":0,"d":"0.0%"}]
["LTC",null,null,{"$f":"Jurat!I$1","v":0},{"$f":"Jurat!D$33","v":"00:00:00"},"2017-12-31","MLR","Quarter","Region 7",{"$f":"IFERROR(('LTC Rev-Exp Region 7'!$P$54-'LTC Rev-Exp Region 7'!$P$43)/'LTC Rev-Exp Region 7'!$P$14, 0)","v":{"v":0,"d":"0.0%"}},{"v":0,"d":"0.0%"},{"v":0,"d":"0.0%"},{"v":0,"d":"0.0%"}]
["LTC",null,null,{"$f":"Jurat!I$1","v":0},{"$f":"Jurat!D$33","v":"00:00:00"},{"$f":"E111","v":"00:00:00"},"MLR","YTD","Region 7",{"$f":"IFERROR(('LTC Rev-Exp Region 7'!$U$54-'LTC Rev-Exp Region 7'!$U$43)/'LTC Rev-Exp Region 7'!$U$14, 0)","v":{"v":0,"d":"0.0%"}},{"v":0,"d":"0.0%"},{"v":0,"d":"0.0%"},{"v":0,"d":"0.0%"}]
["LTC",null,null,{"$f":"Jurat!I$1","v":0},{"$f":"Jurat!D$33","v":"00:00:00"},"2017-03-31","Admin","Quarter","Region 7",{"$f":"IFERROR('LTC Rev-Exp Region 7'!$D$63/'LTC Rev-Exp Region 7'!$D$14, 0)","v":{"v":0,"d":"0.0%"}},{"v":0,"d":"0.0%"},{"v":0,"d":"0.0%"},{"v":0,"d":"0.0%"}]
["LTC",null,null,{"$f":"Jurat!I$1","v":0},{"$f":"Jurat!D$33","v":"00:00:00"},"2017-06-30","Admin","Quarter","Region 7",{"$f":"IFERROR('LTC Rev-Exp Region 7'!$H$63/'LTC Rev-Exp Region 7'!$H$14, 0)","v":{"v":0,"d":"0.0%"}},{"v":0,"d":"0.0%"},{"v":0,"d":"0.0%"},{"v":0,"d":"0.0%"}]
["LTC",null,null,{"$f":"Jurat!I$1","v":0},{"$f":"Jurat!D$33","v":"00:00:00"},"2017-09-30","Admin","Quarter","Region 7",{"$f":"IFERROR('LTC Rev-Exp Region 7'!$L$63/'LTC Rev-Exp Region 7'!$L$14, 0)","v":{"v":0,"d":"0.0%"}},{"v":0,"d":"0.0%"},{"v":0,"d":"0.0%"},{"v":0,"d":"0.0%"}]
["LTC",null,null,{"$f":"Jurat!I$1","v":0},{"$f":"Jurat!D$33","v":"00:00:00"},"2017-12-31","Admin","Quarter","Region 7",{"$f":"IFERROR('LTC Rev-Exp Region 7'!$P$63/'LTC Rev-Exp Region 7'!$P$14, 0)","v":{"v":0,"d":"0.0%"}},{"v":0,"d":"0.0%"},{"v":0,"d":"0.0%"},{"v":0,"d":"0.0%"}]
["LTC",null,null,{"$f":"Jurat!I$1","v":0},{"$f":"Jurat!D$33","v":"00:00:00"},{"$f":"E116","v":"00:00:00"},"Admin","YTD","Region 7",{"$f":"IFERROR('LTC Rev-Exp Region 7'!$U$63/'LTC Rev-Exp Region 7'!$U$14, 0)","v":{"v":0,"d":"0.0%"}},{"v":0,"d":"0.0%"},{"v":0,"d":"0.0%"},{"v":0,"d":"0.0%"}]
["LTC",null,null,{"$f":"Jurat!I$1","v":0},{"$f":"Jurat!D$33","v":"00:00:00"},"2017-03-31","Margin","Quarter","Region 7",{"$f":"IFERROR('LTC Rev-Exp Region 7'!$D$71/'LTC Rev-Exp Region 7'!$D$14, 0)","v":{"v":0,"d":"0.0%"}},{"v":0,"d":"0.0%"},{"v":0,"d":"0.0%"},{"v":0,"d":"0.0%"}]
["LTC",null,null,{"$f":"Jurat!I$1","v":0},{"$f":"Jurat!D$33","v":"00:00:00"},"2017-06-30","Margin","Quarter","Region 7",{"$f":"IFERROR('LTC Rev-Exp Region 7'!$H$71/'LTC Rev-Exp Region 7'!$H$14, 0)","v":{"v":0,"d":"0.0%"}},{"v":0,"d":"0.0%"},{"v":0,"d":"0.0%"},{"v":0,"d":"0.0%"}]
["LTC",null,null,{"$f":"Jurat!I$1","v":0},{"$f":"Jurat!D$33","v":"00:00:00"},"2017-09-30","Margin","Quarter","Region 7",{"$f":"IFERROR('LTC Rev-Exp Region 7'!$L$71/'LTC Rev-Exp Region 7'!$L$14, 0)","v":{"v":0,"d":"0.0%"}},{"v":0,"d":"0.0%"},{"v":0,"d":"0.0%"},{"v":0,"d":"0.0%"}]
["LTC",null,null,{"$f":"Jurat!I$1","v":0},{"$f":"Jurat!D$33","v":"00:00:00"},"2017-12-31","Margin","Quarter","Region 7",{"$f":"IFERROR('LTC Rev-Exp Region 7'!$P$71/'LTC Rev-Exp Region 7'!$P$14, 0)","v":{"v":0,"d":"0.0%"}},{"v":0,"d":"0.0%"},{"v":0,"d":"0.0%"},{"v":0,"d":"0.0%"}]
["LTC",null,null,{"$f":"Jurat!I$1","v":0},{"$f":"Jurat!D$33","v":"00:00:00"},{"$f":"E121","v":"00:00:00"},"Margin","YTD","Region 7",{"$f":"IFERROR('LTC Rev-Exp Region 7'!$U$71/'LTC Rev-Exp Region 7'!$U$14, 0)","v":{"v":0,"d":"0.0%"}},{"v":0,"d":"0.0%"},{"v":0,"d":"0.0%"},{"v":0,"d":"0.0%"}]
["LTC",null,null,{"$f":"Jurat!I$1","v":0},{"$f":"Jurat!D$33","v":"00:00:00"},"2017-03-31","MLR","Quarter","Region 8",{"$f":"IFERROR(('LTC Rev-Exp Region 8'!$D$54-'LTC Rev-Exp Region 8'!$D$43)/'LTC Rev-Exp Region 8'!$D$14, 0)","v":{"v":0,"d":"0.0%"}},{"v":0,"d":"0.0%"},{"v":0,"d":"0.0%"},{"v":0,"d":"0.0%"}]
["LTC",null,null,{"$f":"Jurat!I$1","v":0},{"$f":"Jurat!D$33","v":"00:00:00"},"2017-06-30","MLR","Quarter","Region 8",{"$f":"IFERROR(('LTC Rev-Exp Region 8'!$H$54-'LTC Rev-Exp Region 8'!$H$43)/'LTC Rev-Exp Region 8'!$H$14, 0)","v":{"v":0,"d":"0.0%"}},{"v":0,"d":"0.0%"},{"v":0,"d":"0.0%"},{"v":0,"d":"0.0%"}]
["LTC",null,null,{"$f":"Jurat!I$1","v":0},{"$f":"Jurat!D$33","v":"00:00:00"},"2017-09-30","MLR","Quarter","Region 8",{"$f":"IFERROR(('LTC Rev-Exp Region 8'!$L$54-'LTC Rev-Exp Region 8'!$L$43)/'LTC Rev-Exp Region 8'!$L$14, 0)","v":{"v":0,"d":"0.0%"}},{"v":0,"d":"0.0%"},{"v":0,"d":"0.0%"},{"v":0,"d":"0.0%"}]
["LTC",null,null,{"$f":"Jurat!I$1","v":0},{"$f":"Jurat!D$33","v":"00:00:00"},"2017-12-31","MLR","Quarter","Region 8",{"$f":"IFERROR(('LTC Rev-Exp Region 8'!$P$54-'LTC Rev-Exp Region 8'!$P$43)/'LTC Rev-Exp Region 8'!$P$14, 0)","v":{"v":0,"d":"0.0%"}},{"v":0,"d":"0.0%"},{"v":0,"d":"0.0%"},{"v":0,"d":"0.0%"}]
["LTC",null,null,{"$f":"Jurat!I$1","v":0},{"$f":"Jurat!D$33","v":"00:00:00"},{"$f":"E126","v":"00:00:00"},"MLR","YTD","Region 8",{"$f":"IFERROR(('LTC Rev-Exp Region 8'!$U$54-'LTC Rev-Exp Region 8'!$U$43)/'LTC Rev-Exp Region 8'!$U$14, 0)","v":{"v":0,"d":"0.0%"}},{"v":0,"d":"0.0%"},{"v":0,"d":"0.0%"},{"v":0,"d":"0.0%"}]
["LTC",null,null,{"$f":"Jurat!I$1","v":0},{"$f":"Jurat!D$33","v":"00:00:00"},"2017-03-31","Admin","Quarter","Region 8",{"$f":"IFERROR('LTC Rev-Exp Region 8'!$D$63/'LTC Rev-Exp Region 8'!$D$14, 0)","v":{"v":0,"d":"0.0%"}},{"v":0,"d":"0.0%"},{"v":0,"d":"0.0%"},{"v":0,"d":"0.0%"}]
["LTC",null,null,{"$f":"Jurat!I$1","v":0},{"$f":"Jurat!D$33","v":"00:00:00"},"2017-06-30","Admin","Quarter","Region 8",{"$f":"IFERROR('LTC Rev-Exp Region 8'!$H$63/'LTC Rev-Exp Region 8'!$H$14, 0)","v":{"v":0,"d":"0.0%"}},{"v":0,"d":"0.0%"},{"v":0,"d":"0.0%"},{"v":0,"d":"0.0%"}]
["LTC",null,null,{"$f":"Jurat!I$1","v":0},{"$f":"Jurat!D$33","v":"00:00:00"},"2017-09-30","Admin","Quarter","Region 8",{"$f":"IFERROR('LTC Rev-Exp Region 8'!$L$63/'LTC Rev-Exp Region 8'!$L$14, 0)","v":{"v":0,"d":"0.0%"}},{"v":0,"d":"0.0%"},{"v":0,"d":"0.0%"},{"v":0,"d":"0.0%"}]
["LTC",null,null,{"$f":"Jurat!I$1","v":0},{"$f":"Jurat!D$33","v":"00:00:00"},"2017-12-31","Admin","Quarter","Region 8",{"$f":"IFERROR('LTC Rev-Exp Region 8'!$P$63/'LTC Rev-Exp Region 8'!$P$14, 0)","v":{"v":0,"d":"0.0%"}},{"v":0,"d":"0.0%"},{"v":0,"d":"0.0%"},{"v":0,"d":"0.0%"}]
["LTC",null,null,{"$f":"Jurat!I$1","v":0},{"$f":"Jurat!D$33","v":"00:00:00"},{"$f":"E131","v":"00:00:00"},"Admin","YTD","Region 8",{"$f":"IFERROR('LTC Rev-Exp Region 8'!$U$63/'LTC Rev-Exp Region 8'!$U$14, 0)","v":{"v":0,"d":"0.0%"}},{"v":0,"d":"0.0%"},{"v":0,"d":"0.0%"},{"v":0,"d":"0.0%"}]
["LTC",null,null,{"$f":"Jurat!I$1","v":0},{"$f":"Jurat!D$33","v":"00:00:00"},"2017-03-31","Margin","Quarter","Region 8",{"$f":"IFERROR('LTC Rev-Exp Region 8'!$D$71/'LTC Rev-Exp Region 8'!$D$14, 0)","v":{"v":0,"d":"0.0%"}},{"v":0,"d":"0.0%"},{"v":0,"d":"0.0%"},{"v":0,"d":"0.0%"}]
["LTC",null,null,{"$f":"Jurat!I$1","v":0},{"$f":"Jurat!D$33","v":"00:00:00"},"2017-06-30","Margin","Quarter","Region 8",{"$f":"IFERROR('LTC Rev-Exp Region 8'!$H$71/'LTC Rev-Exp Region 8'!$H$14, 0)","v":{"v":0,"d":"0.0%"}},{"v":0,"d":"0.0%"},{"v":0,"d":"0.0%"},{"v":0,"d":"0.0%"}]
["LTC",null,null,{"$f":"Jurat!I$1","v":0},{"$f":"Jurat!D$33","v":"00:00:00"},"2017-09-30","Margin","Quarter","Region 8",{"$f":"IFERROR('LTC Rev-Exp Region 8'!$L$71/'LTC Rev-Exp Region 8'!$L$14, 0)","v":{"v":0,"d":"0.0%"}},{"v":0,"d":"0.0%"},{"v":0,"d":"0.0%"},{"v":0,"d":"0.0%"}]
["LTC",null,null,{"$f":"Jurat!I$1","v":0},{"$f":"Jurat!D$33","v":"00:00:00"},"2017-12-31","Margin","Quarter","Region 8",{"$f":"IFERROR('LTC Rev-Exp Region 8'!$P$71/'LTC Rev-Exp Region 8'!$P$14, 0)","v":{"v":0,"d":"0.0%"}},{"v":0,"d":"0.0%"},{"v":0,"d":"0.0%"},{"v":0,"d":"0.0%"}]
["LTC",null,null,{"$f":"Jurat!I$1","v":0},{"$f":"Jurat!D$33","v":"00:00:00"},{"$f":"E136","v":"00:00:00"},"Margin","YTD","Region 8",{"$f":"IFERROR('LTC Rev-Exp Region 8'!$U$71/'LTC Rev-Exp Region 8'!$U$14, 0)","v":{"v":0,"d":"0.0%"}},{"v":0,"d":"0.0%"},{"v":0,"d":"0.0%"},{"v":0,"d":"0.0%"}]
["LTC",null,null,{"$f":"Jurat!I$1","v":0},{"$f":"Jurat!D$33","v":"00:00:00"},"2017-03-31","MLR","Quarter","Region 9",{"$f":"IFERROR(('LTC Rev-Exp Region 9'!$D$54-'LTC Rev-Exp Region 9'!$D$43)/'LTC Rev-Exp Region 9'!$D$14, 0)","v":{"v":0,"d":"0.0%"}},{"v":0,"d":"0.0%"},{"v":0,"d":"0.0%"},{"v":0,"d":"0.0%"}]
["LTC",null,null,{"$f":"Jurat!I$1","v":0},{"$f":"Jurat!D$33","v":"00:00:00"},"2017-06-30","MLR","Quarter","Region 9",{"$f":"IFERROR(('LTC Rev-Exp Region 9'!$H$54-'LTC Rev-Exp Region 9'!$H$43)/'LTC Rev-Exp Region 9'!$H$14, 0)","v":{"v":0,"d":"0.0%"}},{"v":0,"d":"0.0%"},{"v":0,"d":"0.0%"},{"v":0,"d":"0.0%"}]
["LTC",null,null,{"$f":"Jurat!I$1","v":0},{"$f":"Jurat!D$33","v":"00:00:00"},"2017-09-30","MLR","Quarter","Region 9",{"$f":"IFERROR(('LTC Rev-Exp Region 9'!$L$54-'LTC Rev-Exp Region 9'!$L$43)/'LTC Rev-Exp Region 9'!$L$14, 0)","v":{"v":0,"d":"0.0%"}},{"v":0,"d":"0.0%"},{"v":0,"d":"0.0%"},{"v":0,"d":"0.0%"}]
["LTC",null,null,{"$f":"Jurat!I$1","v":0},{"$f":"Jurat!D$33","v":"00:00:00"},"2017-12-31","MLR","Quarter","Region 9",{"$f":"IFERROR(('LTC Rev-Exp Region 9'!$P$54-'LTC Rev-Exp Region 9'!$P$43)/'LTC Rev-Exp Region 9'!$P$14, 0)","v":{"v":0,"d":"0.0%"}},{"v":0,"d":"0.0%"},{"v":0,"d":"0.0%"},{"v":0,"d":"0.0%"}]
["LTC",null,null,{"$f":"Jurat!I$1","v":0},{"$f":"Jurat!D$33","v":"00:00:00"},{"$f":"E141","v":"00:00:00"},"MLR","YTD","Region 9",{"$f":"IFERROR(('LTC Rev-Exp Region 9'!$U$54-'LTC Rev-Exp Region 9'!$U$43)/'LTC Rev-Exp Region 9'!$U$14, 0)","v":{"v":0,"d":"0.0%"}},{"v":0,"d":"0.0%"},{"v":0,"d":"0.0%"},{"v":0,"d":"0.0%"}]
["LTC",null,null,{"$f":"Jurat!I$1","v":0},{"$f":"Jurat!D$33","v":"00:00:00"},"2017-03-31","Admin","Quarter","Region 9",{"$f":"IFERROR('LTC Rev-Exp Region 9'!$D$63/'LTC Rev-Exp Region 9'!$D$14, 0)","v":{"v":0,"d":"0.0%"}},{"v":0,"d":"0.0%"},{"v":0,"d":"0.0%"},{"v":0,"d":"0.0%"}]
["LTC",null,null,{"$f":"Jurat!I$1","v":0},{"$f":"Jurat!D$33","v":"00:00:00"},"2017-06-30","Admin","Quarter","Region 9",{"$f":"IFERROR('LTC Rev-Exp Region 9'!$H$63/'LTC Rev-Exp Region 9'!$H$14, 0)","v":{"v":0,"d":"0.0%"}},{"v":0,"d":"0.0%"},{"v":0,"d":"0.0%"},{"v":0,"d":"0.0%"}]
["LTC",null,null,{"$f":"Jurat!I$1","v":0},{"$f":"Jurat!D$33","v":"00:00:00"},"2017-09-30","Admin","Quarter","Region 9",{"$f":"IFERROR('LTC Rev-Exp Region 9'!$L$63/'LTC Rev-Exp Region 9'!$L$14, 0)","v":{"v":0,"d":"0.0%"}},{"v":0,"d":"0.0%"},{"v":0,"d":"0.0%"},{"v":0,"d":"0.0%"}]
["LTC",null,null,{"$f":"Jurat!I$1","v":0},{"$f":"Jurat!D$33","v":"00:00:00"},"2017-12-31","Admin","Quarter","Region 9",{"$f":"IFERROR('LTC Rev-Exp Region 9'!$P$63/'LTC Rev-Exp Region 9'!$P$14, 0)","v":{"v":0,"d":"0.0%"}},{"v":0,"d":"0.0%"},{"v":0,"d":"0.0%"},{"v":0,"d":"0.0%"}]
["LTC",null,null,{"$f":"Jurat!I$1","v":0},{"$f":"Jurat!D$33","v":"00:00:00"},{"$f":"E146","v":"00:00:00"},"Admin","YTD","Region 9",{"$f":"IFERROR('LTC Rev-Exp Region 9'!$U$63/'LTC Rev-Exp Region 9'!$U$14, 0)","v":{"v":0,"d":"0.0%"}},{"v":0,"d":"0.0%"},{"v":0,"d":"0.0%"},{"v":0,"d":"0.0%"}]
["LTC",null,null,{"$f":"Jurat!I$1","v":0},{"$f":"Jurat!D$33","v":"00:00:00"},"2017-03-31","Margin","Quarter","Region 9",{"$f":"IFERROR('LTC Rev-Exp Region 9'!$D$71/'LTC Rev-Exp Region 9'!$D$14, 0)","v":{"v":0,"d":"0.0%"}},{"v":0,"d":"0.0%"},{"v":0,"d":"0.0%"},{"v":0,"d":"0.0%"}]
["LTC",null,null,{"$f":"Jurat!I$1","v":0},{"$f":"Jurat!D$33","v":"00:00:00"},"2017-06-30","Margin","Quarter","Region 9",{"$f":"IFERROR('LTC Rev-Exp Region 9'!$H$71/'LTC Rev-Exp Region 9'!$H$14, 0)","v":{"v":0,"d":"0.0%"}},{"v":0,"d":"0.0%"},{"v":0,"d":"0.0%"},{"v":0,"d":"0.0%"}]
["LTC",null,null,{"$f":"Jurat!I$1","v":0},{"$f":"Jurat!D$33","v":"00:00:00"},"2017-09-30","Margin","Quarter","Region 9",{"$f":"IFERROR('LTC Rev-Exp Region 9'!$L$71/'LTC Rev-Exp Region 9'!$L$14, 0)","v":{"v":0,"d":"0.0%"}},{"v":0,"d":"0.0%"},{"v":0,"d":"0.0%"},{"v":0,"d":"0.0%"}]
["LTC",null,null,{"$f":"Jurat!I$1","v":0},{"$f":"Jurat!D$33","v":"00:00:00"},"2017-12-31","Margin","Quarter","Region 9",{"$f":"IFERROR('LTC Rev-Exp Region 9'!$P$71/'LTC Rev-Exp Region 9'!$P$14, 0)","v":{"v":0,"d":"0.0%"}},{"v":0,"d":"0.0%"},{"v":0,"d":"0.0%"},{"v":0,"d":"0.0%"}]
["LTC",null,null,{"$f":"Jurat!I$1","v":0},{"$f":"Jurat!D$33","v":"00:00:00"},{"$f":"E151","v":"00:00:00"},"Margin","YTD","Region 9",{"$f":"IFERROR('LTC Rev-Exp Region 9'!$U$71/'LTC Rev-Exp Region 9'!$U$14, 0)","v":{"v":0,"d":"0.0%"}},{"v":0,"d":"0.0%"},{"v":0,"d":"0.0%"},{"v":0,"d":"0.0%"}]
["LTC",null,null,{"$f":"Jurat!I$1","v":0},{"$f":"Jurat!D$33","v":"00:00:00"},"2017-03-31","MLR","Quarter","Region 10",{"$f":"IFERROR(('LTC Rev-Exp Region 10'!$D$54-'LTC Rev-Exp Region 10'!$D$43)/'LTC Rev-Exp Region 10'!$D$14, 0)","v":{"v":0,"d":"0.0%"}},{"v":0,"d":"0.0%"},{"v":0,"d":"0.0%"},{"v":0,"d":"0.0%"}]
["LTC",null,null,{"$f":"Jurat!I$1","v":0},{"$f":"Jurat!D$33","v":"00:00:00"},"2017-06-30","MLR","Quarter","Region 10",{"$f":"IFERROR(('LTC Rev-Exp Region 10'!$H$54-'LTC Rev-Exp Region 10'!$H$43)/'LTC Rev-Exp Region 10'!$H$14, 0)","v":{"v":0,"d":"0.0%"}},{"v":0,"d":"0.0%"},{"v":0,"d":"0.0%"},{"v":0,"d":"0.0%"}]
["LTC",null,null,{"$f":"Jurat!I$1","v":0},{"$f":"Jurat!D$33","v":"00:00:00"},"2017-09-30","MLR","Quarter","Region 10",{"$f":"IFERROR(('LTC Rev-Exp Region 10'!$L$54-'LTC Rev-Exp Region 10'!$L$43)/'LTC Rev-Exp Region 10'!$L$14, 0)","v":{"v":0,"d":"0.0%"}},{"v":0,"d":"0.0%"},{"v":0,"d":"0.0%"},{"v":0,"d":"0.0%"}]
["LTC",null,null,{"$f":"Jurat!I$1","v":0},{"$f":"Jurat!D$33","v":"00:00:00"},"2017-12-31","MLR","Quarter","Region 10",{"$f":"IFERROR(('LTC Rev-Exp Region 10'!$P$54-'LTC Rev-Exp Region 10'!$P$43)/'LTC Rev-Exp Region 10'!$P$14, 0)","v":{"v":0,"d":"0.0%"}},{"v":0,"d":"0.0%"},{"v":0,"d":"0.0%"},{"v":0,"d":"0.0%"}]
["LTC",null,null,{"$f":"Jurat!I$1","v":0},{"$f":"Jurat!D$33","v":"00:00:00"},{"$f":"E156","v":"00:00:00"},"MLR","YTD","Region 10",{"$f":"IFERROR(('LTC Rev-Exp Region 10'!$U$54-'LTC Rev-Exp Region 10'!$U$43)/'LTC Rev-Exp Region 10'!$U$14, 0)","v":{"v":0,"d":"0.0%"}},{"v":0,"d":"0.0%"},{"v":0,"d":"0.0%"},{"v":0,"d":"0.0%"}]
["LTC",null,null,{"$f":"Jurat!I$1","v":0},{"$f":"Jurat!D$33","v":"00:00:00"},"2017-03-31","Admin","Quarter","Region 10",{"$f":"IFERROR('LTC Rev-Exp Region 10'!$D$63/'LTC Rev-Exp Region 10'!$D$14, 0)","v":{"v":0,"d":"0.0%"}},{"v":0,"d":"0.0%"},{"v":0,"d":"0.0%"},{"v":0,"d":"0.0%"}]
["LTC",null,null,{"$f":"Jurat!I$1","v":0},{"$f":"Jurat!D$33","v":"00:00:00"},"2017-06-30","Admin","Quarter","Region 10",{"$f":"IFERROR('LTC Rev-Exp Region 10'!$H$63/'LTC Rev-Exp Region 10'!$H$14, 0)","v":{"v":0,"d":"0.0%"}},{"v":0,"d":"0.0%"},{"v":0,"d":"0.0%"},{"v":0,"d":"0.0%"}]
["LTC",null,null,{"$f":"Jurat!I$1","v":0},{"$f":"Jurat!D$33","v":"00:00:00"},"2017-09-30","Admin","Quarter","Region 10",{"$f":"IFERROR('LTC Rev-Exp Region 10'!$L$63/'LTC Rev-Exp Region 10'!$L$14, 0)","v":{"v":0,"d":"0.0%"}},{"v":0,"d":"0.0%"},{"v":0,"d":"0.0%"},{"v":0,"d":"0.0%"}]
["LTC",null,null,{"$f":"Jurat!I$1","v":0},{"$f":"Jurat!D$33","v":"00:00:00"},"2017-12-31","Admin","Quarter","Region 10",{"$f":"IFERROR('LTC Rev-Exp Region 10'!$P$63/'LTC Rev-Exp Region 10'!$P$14, 0)","v":{"v":0,"d":"0.0%"}},{"v":0,"d":"0.0%"},{"v":0,"d":"0.0%"},{"v":0,"d":"0.0%"}]
["LTC",null,null,{"$f":"Jurat!I$1","v":0},{"$f":"Jurat!D$33","v":"00:00:00"},{"$f":"E161","v":"00:00:00"},"Admin","YTD","Region 10",{"$f":"IFERROR('LTC Rev-Exp Region 10'!$U$63/'LTC Rev-Exp Region 10'!$U$14, 0)","v":{"v":0,"d":"0.0%"}},{"v":0,"d":"0.0%"},{"v":0,"d":"0.0%"},{"v":0,"d":"0.0%"}]
["LTC",null,null,{"$f":"Jurat!I$1","v":0},{"$f":"Jurat!D$33","v":"00:00:00"},"2017-03-31","Margin","Quarter","Region 10",{"$f":"IFERROR('LTC Rev-Exp Region 10'!$D$71/'LTC Rev-Exp Region 10'!$D$14, 0)","v":{"v":0,"d":"0.0%"}},{"v":0,"d":"0.0%"},{"v":0,"d":"0.0%"},{"v":0,"d":"0.0%"}]
["LTC",null,null,{"$f":"Jurat!I$1","v":0},{"$f":"Jurat!D$33","v":"00:00:00"},"2017-06-30","Margin","Quarter","Region 10",{"$f":"IFERROR('LTC Rev-Exp Region 10'!$H$71/'LTC Rev-Exp Region 10'!$H$14, 0)","v":{"v":0,"d":"0.0%"}},{"v":0,"d":"0.0%"},{"v":0,"d":"0.0%"},{"v":0,"d":"0.0%"}]
["LTC",null,null,{"$f":"Jurat!I$1","v":0},{"$f":"Jurat!D$33","v":"00:00:00"},"2017-09-30","Margin","Quarter","Region 10",{"$f":"IFERROR('LTC Rev-Exp Region 10'!$L$71/'LTC Rev-Exp Region 10'!$L$14, 0)","v":{"v":0,"d":"0.0%"}},{"v":0,"d":"0.0%"},{"v":0,"d":"0.0%"},{"v":0,"d":"0.0%"}]
["LTC",null,null,{"$f":"Jurat!I$1","v":0},{"$f":"Jurat!D$33","v":"00:00:00"},"2017-12-31","Margin","Quarter","Region 10",{"$f":"IFERROR('LTC Rev-Exp Region 10'!$P$71/'LTC Rev-Exp Region 10'!$P$14, 0)","v":{"v":0,"d":"0.0%"}},{"v":0,"d":"0.0%"},{"v":0,"d":"0.0%"},{"v":0,"d":"0.0%"}]
["LTC",null,null,{"$f":"Jurat!I$1","v":0},{"$f":"Jurat!D$33","v":"00:00:00"},{"$f":"E166","v":"00:00:00"},"Margin","YTD","Region 10",{"$f":"IFERROR('LTC Rev-Exp Region 10'!$U$71/'LTC Rev-Exp Region 10'!$U$14, 0)","v":{"v":0,"d":"0.0%"}},{"v":0,"d":"0.0%"},{"v":0,"d":"0.0%"},{"v":0,"d":"0.0%"}]
["LTC",null,null,{"$f":"Jurat!I$1","v":0},{"$f":"Jurat!D$33","v":"00:00:00"},"2017-03-31","MLR","Quarter","Region 11",{"$f":"IFERROR(('LTC Rev-Exp Region 11'!$D$54-'LTC Rev-Exp Region 11'!$D$43)/'LTC Rev-Exp Region 11'!$D$14, 0)","v":{"v":0,"d":"0.0%"}},{"v":0,"d":"0.0%"},{"v":0,"d":"0.0%"},{"v":0,"d":"0.0%"}]
["LTC",null,null,{"$f":"Jurat!I$1","v":0},{"$f":"Jurat!D$33","v":"00:00:00"},"2017-06-30","MLR","Quarter","Region 11",{"$f":"IFERROR(('LTC Rev-Exp Region 11'!$H$54-'LTC Rev-Exp Region 11'!$H$43)/'LTC Rev-Exp Region 11'!$H$14, 0)","v":{"v":0,"d":"0.0%"}},{"v":0,"d":"0.0%"},{"v":0,"d":"0.0%"},{"v":0,"d":"0.0%"}]
["LTC",null,null,{"$f":"Jurat!I$1","v":0},{"$f":"Jurat!D$33","v":"00:00:00"},"2017-09-30","MLR","Quarter","Region 11",{"$f":"IFERROR(('LTC Rev-Exp Region 11'!$L$54-'LTC Rev-Exp Region 11'!$L$43)/'LTC Rev-Exp Region 11'!$L$14, 0)","v":{"v":0,"d":"0.0%"}},{"v":0,"d":"0.0%"},{"v":0,"d":"0.0%"},{"v":0,"d":"0.0%"}]
["LTC",null,null,{"$f":"Jurat!I$1","v":0},{"$f":"Jurat!D$33","v":"00:00:00"},"2017-12-31","MLR","Quarter","Region 11",{"$f":"IFERROR(('LTC Rev-Exp Region 11'!$P$54-'LTC Rev-Exp Region 11'!$P$43)/'LTC Rev-Exp Region 11'!$P$14, 0)","v":{"v":0,"d":"0.0%"}},{"v":0,"d":"0.0%"},{"v":0,"d":"0.0%"},{"v":0,"d":"0.0%"}]
["LTC",null,null,{"$f":"Jurat!I$1","v":0},{"$f":"Jurat!D$33","v":"00:00:00"},{"$f":"E171","v":"00:00:00"},"MLR","YTD","Region 11",{"$f":"IFERROR(('LTC Rev-Exp Region 11'!$U$54-'LTC Rev-Exp Region 11'!$U$43)/'LTC Rev-Exp Region 11'!$U$14, 0)","v":{"v":0,"d":"0.0%"}},{"v":0,"d":"0.0%"},{"v":0,"d":"0.0%"},{"v":0,"d":"0.0%"}]
["LTC",null,null,{"$f":"Jurat!I$1","v":0},{"$f":"Jurat!D$33","v":"00:00:00"},"2017-03-31","Admin","Quarter","Region 11",{"$f":"IFERROR('LTC Rev-Exp Region 11'!$D$63/'LTC Rev-Exp Region 11'!$D$14, 0)","v":{"v":0,"d":"0.0%"}},{"v":0,"d":"0.0%"},{"v":0,"d":"0.0%"},{"v":0,"d":"0.0%"}]
["LTC",null,null,{"$f":"Jurat!I$1","v":0},{"$f":"Jurat!D$33","v":"00:00:00"},"2017-06-30","Admin","Quarter","Region 11",{"$f":"IFERROR('LTC Rev-Exp Region 11'!$H$63/'LTC Rev-Exp Region 11'!$H$14, 0)","v":{"v":0,"d":"0.0%"}},{"v":0,"d":"0.0%"},{"v":0,"d":"0.0%"},{"v":0,"d":"0.0%"}]
["LTC",null,null,{"$f":"Jurat!I$1","v":0},{"$f":"Jurat!D$33","v":"00:00:00"},"2017-09-30","Admin","Quarter","Region 11",{"$f":"IFERROR('LTC Rev-Exp Region 11'!$L$63/'LTC Rev-Exp Region 11'!$L$14, 0)","v":{"v":0,"d":"0.0%"}},{"v":0,"d":"0.0%"},{"v":0,"d":"0.0%"},{"v":0,"d":"0.0%"}]
["LTC",null,null,{"$f":"Jurat!I$1","v":0},{"$f":"Jurat!D$33","v":"00:00:00"},"2017-12-31","Admin","Quarter","Region 11",{"$f":"IFERROR('LTC Rev-Exp Region 11'!$P$63/'LTC Rev-Exp Region 11'!$P$14, 0)","v":{"v":0,"d":"0.0%"}},{"v":0,"d":"0.0%"},{"v":0,"d":"0.0%"},{"v":0,"d":"0.0%"}]
["LTC",null,null,{"$f":"Jurat!I$1","v":0},{"$f":"Jurat!D$33","v":"00:00:00"},{"$f":"E176","v":"00:00:00"},"Admin","YTD","Region 11",{"$f":"IFERROR('LTC Rev-Exp Region 11'!$U$63/'LTC Rev-Exp Region 11'!$U$14, 0)","v":{"v":0,"d":"0.0%"}},{"v":0,"d":"0.0%"},{"v":0,"d":"0.0%"},{"v":0,"d":"0.0%"}]
["LTC",null,null,{"$f":"Jurat!I$1","v":0},{"$f":"Jurat!D$33","v":"00:00:00"},"2017-03-31","Margin","Quarter","Region 11",{"$f":"IFERROR('LTC Rev-Exp Region 11'!$D$71/'LTC Rev-Exp Region 11'!$D$14, 0)","v":{"v":0,"d":"0.0%"}},{"v":0,"d":"0.0%"},{"v":0,"d":"0.0%"},{"v":0,"d":"0.0%"}]
["LTC",null,null,{"$f":"Jurat!I$1","v":0},{"$f":"Jurat!D$33","v":"00:00:00"},"2017-06-30","Margin","Quarter","Region 11",{"$f":"IFERROR('LTC Rev-Exp Region 11'!$H$71/'LTC Rev-Exp Region 11'!$H$14, 0)","v":{"v":0,"d":"0.0%"}},{"v":0,"d":"0.0%"},{"v":0,"d":"0.0%"},{"v":0,"d":"0.0%"}]
["LTC",null,null,{"$f":"Jurat!I$1","v":0},{"$f":"Jurat!D$33","v":"00:00:00"},"2017-09-30","Margin","Quarter","Region 11",{"$f":"IFERROR('LTC Rev-Exp Region 11'!$L$71/'LTC Rev-Exp Region 11'!$L$14, 0)","v":{"v":0,"d":"0.0%"}},{"v":0,"d":"0.0%"},{"v":0,"d":"0.0%"},{"v":0,"d":"0.0%"}]
["LTC",null,null,{"$f":"Jurat!I$1","v":0},{"$f":"Jurat!D$33","v":"00:00:00"},"2017-12-31","Margin","Quarter","Region 11",{"$f":"IFERROR('LTC Rev-Exp Region 11'!$P$71/'LTC Rev-Exp Region 11'!$P$14, 0)","v":{"v":0,"d":"0.0%"}},{"v":0,"d":"0.0%"},{"v":0,"d":"0.0%"},{"v":0,"d":"0.0%"}]
["LTC",null,null,{"$f":"Jurat!I$1","v":0},{"$f":"Jurat!D$33","v":"00:00:00"},{"$f":"E181","v":"00:00:00"},"Margin","YTD","Region 11",{"$f":"IFERROR('LTC Rev-Exp Region 11'!$U$71/'LTC Rev-Exp Region 11'!$U$14, 0)","v":{"v":0,"d":"0.0%"}},{"v":0,"d":"0.0%"},{"v":0,"d":"0.0%"},{"v":0,"d":"0.0%"}]

{"sheet":"LTC PMPM","index":48,"n_rows":1777,"n_cols":20,"rows_kept":1777,"hidden":true}
["Contract","Plan ID","Plan Name","Reporting Year","Reporting Quarter","Calendar Quarter","Quarter Ending","Region","Transaction Class","Transaction Type","Transaction Category","Report Line","Report Description","Total","Non-HCBS","HCBS","MED-P / SIXT","File Name","File Date","Status"]
["LTC",null,null,{"$f":"Jurat!I$1","v":0},{"$f":"Jurat!D$33","v":"00:00:00"},"Q1","2017-03-31","Summary","Operating Revenue","Capitation","Capitation",1.1,"Capitation",{"$f":"IFERROR('LTC Rev-Exp Summary'!$D$11/'LTC Rev-Exp Summary'!$D$9, 0)","v":{"v":0,"d":"$0.00"}},{"$f":"IFERROR('LTC Rev-Exp Summary'!$E$11/'LTC Rev-Exp Summary'!$E$9, 0)","v":{"v":0,"d":"$0.00"}},{"$f":"IFERROR('LTC Rev-Exp Summary'!$F$11/'LTC Rev-Exp Summary'!$F$9, 0)","v":{"v":0,"d":"$0.00"}},{"$f":"IFERROR('LTC Rev-Exp Summary'!$G$11/'LTC Rev-Exp Summary'!$G$9, 0)","v":{"v":0,"d":"$0.00"}}]
["LTC",null,null,{"$f":"Jurat!I$1","v":0},{"$f":"Jurat!D$33","v":"00:00:00"},"Q1","2017-03-31","Summary","Operating Revenue","Capitation","NH Rate Reconciliation",1.2,"NH Rate Reconciliation",{"$f":"IFERROR('LTC Rev-Exp Summary'!$D$12/'LTC Rev-Exp Summary'!$D$9, 0)","v":{"v":0,"d":"$0.00"}},{"$f":"IFERROR('LTC Rev-Exp Summary'!$E$12/'LTC Rev-Exp Summary'!$E$9, 0)","v":{"v":0,"d":"$0.00"}},{"$f":"IFERROR('LTC Rev-Exp Summary'!$F$12/'LTC Rev-Exp Summary'!$F$9, 0)","v":{"v":0,"d":"$0.00"}},{"$f":"IFERROR('LTC Rev-Exp Summary'!$G$12/'LTC Rev-Exp Summary'!$G$9, 0)","v":{"v":0,"d":"$0.00"}}]
["LTC",null,null,{"$f":"Jurat!I$1","v":0},{"$f":"Jurat!D$33","v":"00:00:00"},"Q1","2017-03-31","Summary","Operating Revenue","Other Revenue","Other Revenue",1.3,"Other Revenue",{"$f":"IFERROR('LTC Rev-Exp Summary'!$D$13/'LTC Rev-Exp Summary'!$D$9, 0)","v":{"v":0,"d":"$0.00"}},{"$f":"IFERROR('LTC Rev-Exp Summary'!$E$13/'LTC Rev-Exp Summary'!$E$9, 0)","v":{"v":0,"d":"$0.00"}},{"$f":"IFERROR('LTC Rev-Exp Summary'!$F$13/'LTC Rev-Exp Summary'!$F$9, 0)","v":{"v":0,"d":"$0.00"}},{"$f":"IFERROR('LTC Rev-Exp Summary'!$G$13/'LTC Rev-Exp Summary'!$G$9, 0)","v":{"v":0,"d":"$0.00"}}]
["LTC",null,null,{"$f":"Jurat!I$1","v":0},{"$f":"Jurat!D$33","v":"00:00:00"},"Q1","2017-03-31","Summary","Operating Expense","Medical Expense","NF & Hospice","2.3","Nursing Facility FFS (Medicaid)",{"$f":"IFERROR('LTC Rev-Exp Summary'!$D$19/'LTC Rev-Exp Summary'!$D$9, 0)","v":{"v":0,"d":"$0.00"}},{"$f":"IFERROR('LTC Rev-Exp Summary'!$E$19/'LTC Rev-Exp Summary'!$E$9, 0)","v":{"v":0,"d":"$0.00"}},{"$f":"IFERROR('LTC Rev-Exp Summary'!$F$19/'LTC Rev-Exp Summary'!$F$9, 0)","v":{"v":0,"d":"$0.00"}},{"$f":"IFERROR('LTC Rev-Exp Summary'!$G$19/'LTC Rev-Exp Summary'!$G$9, 0)","v":{"v":0,"d":"$0.00"}}]
["LTC",null,null,{"$f":"Jurat!I$1","v":0},{"$f":"Jurat!D$33","v":"00:00:00"},"Q1","2017-03-31","Summary","Operating Expense","Medical Expense","NF & Hospice","2.4","Nursing Facility FFS (Crossover)",{"$f":"IFERROR('LTC Rev-Exp Summary'!$D$20/'LTC Rev-Exp Summary'!$D$9, 0)","v":{"v":0,"d":"$0.00"}},{"$f":"IFERROR('LTC Rev-Exp Summary'!$E$20/'LTC Rev-Exp Summary'!$E$9, 0)","v":{"v":0,"d":"$0.00"}},{"$f":"IFERROR('LTC Rev-Exp Summary'!$F$20/'LTC Rev-Exp Summary'!$F$9, 0)","v":{"v":0,"d":"$0.00"}},{"$f":"IFERROR('LTC Rev-Exp Summary'!$G$20/'LTC Rev-Exp Summary'!$G$9, 0)","v":{"v":0,"d":"$0.00"}}]
["LTC",null,null,{"$f":"Jurat!I$1","v":0},{"$f":"Jurat!D$33","v":"00:00:00"},"Q1","2017-03-31","Summary","Operating Expense","Medical Expense","NF & Hospice","2.6","Hospice FFS",{"$f":"IFERROR('LTC Rev-Exp Summary'!$D$22/'LTC Rev-Exp Summary'!$D$9, 0)","v":{"v":0,"d":"$0.00"}},{"$f":"IFERROR('LTC Rev-Exp Summary'!$E$22/'LTC Rev-Exp Summary'!$E$9, 0)","v":{"v":0,"d":"$0.00"}},{"$f":"IFERROR('LTC Rev-Exp Summary'!$F$22/'LTC Rev-Exp Summary'!$F$9, 0)","v":{"v":0,"d":"$0.00"}},{"$f":"IFERROR('LTC Rev-Exp Summary'!$G$22/'LTC Rev-Exp Summary'!$G$9, 0)","v":{"v":0,"d":"$0.00"}}]
["LTC",null,null,{"$f":"Jurat!I$1","v":0},{"$f":"Jurat!D$33","v":"00:00:00"},"Q1","2017-03-31","Summary","Operating Expense","Medical Expense","NF & Hospice","2.7","Ending IBNP for NF & Hospice",{"$f":"IFERROR('LTC Rev-Exp Summary'!$D$23/'LTC Rev-Exp Summary'!$D$9, 0)","v":{"v":0,"d":"$0.00"}},{"$f":"IFERROR('LTC Rev-Exp Summary'!$E$23/'LTC Rev-Exp Summary'!$E$9, 0)","v":{"v":0,"d":"$0.00"}},{"$f":"IFERROR('LTC Rev-Exp Summary'!$F$23/'LTC Rev-Exp Summary'!$F$9, 0)","v":{"v":0,"d":"$0.00"}},{"$f":"IFERROR('LTC Rev-Exp Summary'!$G$23/'LTC Rev-Exp Summary'!$G$9, 0)","v":{"v":0,"d":"$0.00"}}]
["LTC",null,null,{"$f":"Jurat!I$1","v":0},{"$f":"Jurat!D$33","v":"00:00:00"},"Q1","2017-03-31","Summary","Operating Expense","Medical Expense","NF & Hospice","2.8","NF & Hospice Subcapitated",{"$f":"IFERROR('LTC Rev-Exp Summary'!$D$24/'LTC Rev-Exp Summary'!$D$9, 0)","v":{"v":0,"d":"$0.00"}},{"$f":"IFERROR('LTC Rev-Exp Summary'!$E$24/'LTC Rev-Exp Summary'!$E$9, 0)","v":{"v":0,"d":"$0.00"}},{"$f":"IFERROR('LTC Rev-Exp Summary'!$F$24/'LTC Rev-Exp Summary'!$F$9, 0)","v":{"v":0,"d":"$0.00"}},{"$f":"IFERROR('LTC Rev-Exp Summary'!$G$24/'LTC Rev-Exp Summary'!$G$9, 0)","v":{"v":0,"d":"$0.00"}}]
["LTC",null,null,{"$f":"Jurat!I$1","v":0},{"$f":"Jurat!D$33","v":"00:00:00"},"Q1","2017-03-31","Summary","Operating Expense","Medical Expense","NF & Hospice","2.9","NF & Hospice Settlements",{"$f":"IFERROR('LTC Rev-Exp Summary'!$D$25/'LTC Rev-Exp Summary'!$D$9, 0)","v":{"v":0,"d":"$0.00"}},{"$f":"IFERROR('LTC Rev-Exp Summary'!$E$25/'LTC Rev-Exp Summary'!$E$9, 0)","v":{"v":0,"d":"$0.00"}},{"$f":"IFERROR('LTC Rev-Exp Summary'!$F$25/'LTC Rev-Exp Summary'!$F$9, 0)","v":{"v":0,"d":"$0.00"}},{"$f":"IFERROR('LTC Rev-Exp Summary'!$G$25/'LTC Rev-Exp Summary'!$G$9, 0)","v":{"v":0,"d":"$0.00"}}]
["LTC",null,null,{"$f":"Jurat!I$1","v":0},{"$f":"Jurat!D$33","v":"00:00:00"},"Q1","2017-03-31","Summary","Operating Expense","Medical Expense","LTC Services","2.11","Assisted Living FFS",{"$f":"IFERROR('LTC Rev-Exp Summary'!$D$27/'LTC Rev-Exp Summary'!$D$9, 0)","v":{"v":0,"d":"$0.00"}},{"$f":"IFERROR('LTC Rev-Exp Summary'!$E$27/'LTC Rev-Exp Summary'!$E$9, 0)","v":{"v":0,"d":"$0.00"}},{"$f":"IFERROR('LTC Rev-Exp Summary'!$F$27/'LTC Rev-Exp Summary'!$F$9, 0)","v":{"v":0,"d":"$0.00"}},{"$f":"IFERROR('LTC Rev-Exp Summary'!$G$27/'LTC Rev-Exp Summary'!$G$9, 0)","v":{"v":0,"d":"$0.00"}}]
["LTC",null,null,{"$f":"Jurat!I$1","v":0},{"$f":"Jurat!D$33","v":"00:00:00"},"Q1","2017-03-31","Summary","Operating Expense","Medical Expense","LTC Services","2.12","Home Health FFS",{"$f":"IFERROR('LTC Rev-Exp Summary'!$D$28/'LTC Rev-Exp Summary'!$D$9, 0)","v":{"v":0,"d":"$0.00"}},{"$f":"IFERROR('LTC Rev-Exp Summary'!$E$28/'LTC Rev-Exp Summary'!$E$9, 0)","v":{"v":0,"d":"$0.00"}},{"$f":"IFERROR('LTC Rev-Exp Summary'!$F$28/'LTC Rev-Exp Summary'!$F$9, 0)","v":{"v":0,"d":"$0.00"}},{"$f":"IFERROR('LTC Rev-Exp Summary'!$G$28/'LTC Rev-Exp Summary'!$G$9, 0)","v":{"v":0,"d":"$0.00"}}]
["LTC",null,null,{"$f":"Jurat!I$1","v":0},{"$f":"Jurat!D$33","v":"00:00:00"},"Q1","2017-03-31","Summary","Operating Expense","Medical Expense","LTC Services","2.13","Medical Equipment/Supplies FFS",{"$f":"IFERROR('LTC Rev-Exp Summary'!$D$29/'LTC Rev-Exp Summary'!$D$9, 0)","v":{"v":0,"d":"$0.00"}},{"$f":"IFERROR('LTC Rev-Exp Summary'!$E$29/'LTC Rev-Exp Summary'!$E$9, 0)","v":{"v":0,"d":"$0.00"}},{"$f":"IFERROR('LTC Rev-Exp Summary'!$F$29/'LTC Rev-Exp Summary'!$F$9, 0)","v":{"v":0,"d":"$0.00"}},{"$f":"IFERROR('LTC Rev-Exp Summary'!$G$29/'LTC Rev-Exp Summary'!$G$9, 0)","v":{"v":0,"d":"$0.00"}}]
["LTC",null,null,{"$f":"Jurat!I$1","v":0},{"$f":"Jurat!D$33","v":"00:00:00"},"Q1","2017-03-31","Summary","Operating Expense","Medical Expense","LTC Services","2.14","Therapy FFS",{"$f":"IFERROR('LTC Rev-Exp Summary'!$D$30/'LTC Rev-Exp Summary'!$D$9, 0)","v":{"v":0,"d":"$0.00"}},{"$f":"IFERROR('LTC Rev-Exp Summary'!$E$30/'LTC Rev-Exp Summary'!$E$9, 0)","v":{"v":0,"d":"$0.00"}},{"$f":"IFERROR('LTC Rev-Exp Summary'!$F$30/'LTC Rev-Exp Summary'!$F$9, 0)","v":{"v":0,"d":"$0.00"}},{"$f":"IFERROR('LTC Rev-Exp Summary'!$G$30/'LTC Rev-Exp Summary'!$G$9, 0)","v":{"v":0,"d":"$0.00"}}]
["LTC",null,null,{"$f":"Jurat!I$1","v":0},{"$f":"Jurat!D$33","v":"00:00:00"},"Q1","2017-03-31","Summary","Operating Expense","Medical Expense","LTC Services","2.15","Transportation FFS",{"$f":"IFERROR('LTC Rev-Exp Summary'!$D$31/'LTC Rev-Exp Summary'!$D$9, 0)","v":{"v":0,"d":"$0.00"}},{"$f":"IFERROR('LTC Rev-Exp Summary'!$E$31/'LTC Rev-Exp Summary'!$E$9, 0)","v":{"v":0,"d":"$0.00"}},{"$f":"IFERROR('LTC Rev-Exp Summary'!$F$31/'LTC Rev-Exp Summary'!$F$9, 0)","v":{"v":0,"d":"$0.00"}},{"$f":"IFERROR('LTC Rev-Exp Summary'!$G$31/'LTC Rev-Exp Summary'!$G$9, 0)","v":{"v":0,"d":"$0.00"}}]
["LTC",null,null,{"$f":"Jurat!I$1","v":0},{"$f":"Jurat!D$33","v":"00:00:00"},"Q1","2017-03-31","Summary","Operating Expense","Medical Expense","LTC Services","2.16","Case Management FFS (Plan Provided)",{"$f":"IFERROR('LTC Rev-Exp Summary'!$D$32/'LTC Rev-Exp Summary'!$D$9, 0)","v":{"v":0,"d":"$0.00"}},{"$f":"IFERROR('LTC Rev-Exp Summary'!$E$32/'LTC Rev-Exp Summary'!$E$9, 0)","v":{"v":0,"d":"$0.00"}},{"$f":"IFERROR('LTC Rev-Exp Summary'!$F$32/'LTC Rev-Exp Summary'!$F$9, 0)","v":{"v":0,"d":"$0.00"}},{"$f":"IFERROR('LTC Rev-Exp Summary'!$G$32/'LTC Rev-Exp Summary'!$G$9, 0)","v":{"v":0,"d":"$0.00"}}]
["LTC",null,null,{"$f":"Jurat!I$1","v":0},{"$f":"Jurat!D$33","v":"00:00:00"},"Q1","2017-03-31","Summary","Operating Expense","Medical Expense","LTC Services","2.17","Case Management FF (Non-Plan Provided)",{"$f":"IFERROR('LTC Rev-Exp Summary'!$D$33/'LTC Rev-Exp Summary'!$D$9, 0)","v":{"v":0,"d":"$0.00"}},{"$f":"IFERROR('LTC Rev-Exp Summary'!$E$33/'LTC Rev-Exp Summary'!$E$9, 0)","v":{"v":0,"d":"$0.00"}},{"$f":"IFERROR('LTC Rev-Exp Summary'!$F$33/'LTC Rev-Exp Summary'!$F$9, 0)","v":{"v":0,"d":"$0.00"}},{"$f":"IFERROR('LTC Rev-Exp Summary'!$G$33/'LTC Rev-Exp Summary'!$G$9, 0)","v":{"v":0,"d":"$0.00"}}]
["LTC",null,null,{"$f":"Jurat!I$1","v":0},{"$f":"Jurat!D$33","v":"00:00:00"},"Q1","2017-03-31","Summary","Operating Expense","Medical Expense","LTC Services","2.18","HCBS FFS",{"$f":"IFERROR('LTC Rev-Exp Summary'!$D$34/'LTC Rev-Exp Summary'!$D$9, 0)","v":{"v":0,"d":"$0.00"}},{"$f":"IFERROR('LTC Rev-Exp Summary'!$E$34/'LTC Rev-Exp Summary'!$E$9, 0)","v":{"v":0,"d":"$0.00"}},{"$f":"IFERROR('LTC Rev-Exp Summary'!$F$34/'LTC Rev-Exp Summary'!$F$9, 0)","v":{"v":0,"d":"$0.00"}},{"$f":"IFERROR('LTC Rev-Exp Summary'!$G$34/'LTC Rev-Exp Summary'!$G$9, 0)","v":{"v":0,"d":"$0.00"}}]
["LTC",null,null,{"$f":"Jurat!I$1","v":0},{"$f":"Jurat!D$33","v":"00:00:00"},"Q1","2017-03-31","Summary","Operating Expense","Medical Expense","LTC Services","2.19","Subcapitated LTC Services",{"$f":"IFERROR('LTC Rev-Exp Summary'!$D$35/'LTC Rev-Exp Summary'!$D$9, 0)","v":{"v":0,"d":"$0.00"}},{"$f":"IFERROR('LTC Rev-Exp Summary'!$E$35/'LTC Rev-Exp Summary'!$E$9, 0)","v":{"v":0,"d":"$0.00"}},{"$f":"IFERROR('LTC Rev-Exp Summary'!$F$35/'LTC Rev-Exp Summary'!$F$9, 0)","v":{"v":0,"d":"$0.00"}},{"$f":"IFERROR('LTC Rev-Exp Summary'!$G$35/'LTC Rev-Exp Summary'!$G$9, 0)","v":{"v":0,"d":"$0.00"}}]
["LTC",null,null,{"$f":"Jurat!I$1","v":0},{"$f":"Jurat!D$33","v":"00:00:00"},"Q1","2017-03-31","Summary","Operating Expense","Medical Expense","LTC Services","2.20","Ending IBNP for Long Term Care Services",{"$f":"IFERROR('LTC Rev-Exp Summary'!$D$36/'LTC Rev-Exp Summary'!$D$9, 0)","v":{"v":0,"d":"$0.00"}},{"$f":"IFERROR('LTC Rev-Exp Summary'!$E$36/'LTC Rev-Exp Summary'!$E$9, 0)","v":{"v":0,"d":"$0.00"}},{"$f":"IFERROR('LTC Rev-Exp Summary'!$F$36/'LTC Rev-Exp Summary'!$F$9, 0)","v":{"v":0,"d":"$0.00"}},{"$f":"IFERROR('LTC Rev-Exp Summary'!$G$36/'LTC Rev-Exp Summary'!$G$9, 0)","v":{"v":0,"d":"$0.00"}}]
["LTC",null,null,{"$f":"Jurat!I$1","v":0},{"$f":"Jurat!D$33","v":"00:00:00"},"Q1","2017-03-31","Summary","Operating Expense","Medical Expense","LTC Services","2.21","LTC Services Settlements",{"$f":"IFERROR('LTC Rev-Exp Summary'!$D$37/'LTC Rev-Exp Summary'!$D$9, 0)","v":{"v":0,"d":"$0.00"}},{"$f":"IFERROR('LTC Rev-Exp Summary'!$E$37/'LTC Rev-Exp Summary'!$E$9, 0)","v":{"v":0,"d":"$0.00"}},{"$f":"IFERROR('LTC Rev-Exp Summary'!$F$37/'LTC Rev-Exp Summary'!$F$9, 0)","v":{"v":0,"d":"$0.00"}},{"$f":"IFERROR('LTC Rev-Exp Summary'!$G$37/'LTC Rev-Exp Summary'!$G$9, 0)","v":{"v":0,"d":"$0.00"}}]
["LTC",null,null,{"$f":"Jurat!I$1","v":0},{"$f":"Jurat!D$33","v":"00:00:00"},"Q1","2017-03-31","Summary","Operating Expense","Medical Expense","Expanded Benefits","3.1","Expanded Benefits FFS",{"$f":"IFERROR('LTC Rev-Exp Summary'!$D$39/'LTC Rev-Exp Summary'!$D$9, 0)","v":{"v":0,"d":"$0.00"}},{"$f":"IFERROR('LTC Rev-Exp Summary'!$E$39/'LTC Rev-Exp Summary'!$E$9, 0)","v":{"v":0,"d":"$0.00"}},{"$f":"IFERROR('LTC Rev-Exp Summary'!$F$39/'LTC Rev-Exp Summary'!$F$9, 0)","v":{"v":0,"d":"$0.00"}},{"$f":"IFERROR('LTC Rev-Exp Summary'!$G$39/'LTC Rev-Exp Summary'!$G$9, 0)","v":{"v":0,"d":"$0.00"}}]
["LTC",null,null,{"$f":"Jurat!I$1","v":0},{"$f":"Jurat!D$33","v":"00:00:00"},"Q1","2017-03-31","Summary","Operating Expense","Medical Expense","Expanded Benefits","3.2","Expanded Benefits Subcapitation",{"$f":"IFERROR('LTC Rev-Exp Summary'!$D$40/'LTC Rev-Exp Summary'!$D$9, 0)","v":{"v":0,"d":"$0.00"}},{"$f":"IFERROR('LTC Rev-Exp Summary'!$E$40/'LTC Rev-Exp Summary'!$E$9, 0)","v":{"v":0,"d":"$0.00"}},{"$f":"IFERROR('LTC Rev-Exp Summary'!$F$40/'LTC Rev-Exp Summary'!$F$9, 0)","v":{"v":0,"d":"$0.00"}},{"$f":"IFERROR('LTC Rev-Exp Summary'!$G$40/'LTC Rev-Exp Summary'!$G$9, 0)","v":{"v":0,"d":"$0.00"}}]
["LTC",null,null,{"$f":"Jurat!I$1","v":0},{"$f":"Jurat!D$33","v":"00:00:00"},"Q1","2017-03-31","Summary","Operating Expense","Medical Expense","Expanded Benefits","3.3","Ending IBNP for Expanded Benefits",{"$f":"IFERROR('LTC Rev-Exp Summary'!$D$41/'LTC Rev-Exp Summary'!$D$9, 0)","v":{"v":0,"d":"$0.00"}},{"$f":"IFERROR('LTC Rev-Exp Summary'!$E$41/'LTC Rev-Exp Summary'!$E$9, 0)","v":{"v":0,"d":"$0.00"}},{"$f":"IFERROR('LTC Rev-Exp Summary'!$F$41/'LTC Rev-Exp Summary'!$F$9, 0)","v":{"v":0,"d":"$0.00"}},{"$f":"IFERROR('LTC Rev-Exp Summary'!$G$41/'LTC Rev-Exp Summary'!$G$9, 0)","v":{"v":0,"d":"$0.00"}}]
["LTC",null,null,{"$f":"Jurat!I$1","v":0},{"$f":"Jurat!D$33","v":"00:00:00"},"Q1","2017-03-31","Summary","Operating Expense","Medical Expense","Expanded Benefits","3.4","Expanded Benefits Settlements",{"$f":"IFERROR('LTC Rev-Exp Summary'!$D$42/'LTC Rev-Exp Summary'!$D$9, 0)","v":{"v":0,"d":"$0.00"}},{"$f":"IFERROR('LTC Rev-Exp Summary'!$E$42/'LTC Rev-Exp Summary'!$E$9, 0)","v":{"v":0,"d":"$0.00"}},{"$f":"IFERROR('LTC Rev-Exp Summary'!$F$42/'LTC Rev-Exp Summary'!$F$9, 0)","v":{"v":0,"d":"$0.00"}},{"$f":"IFERROR('LTC Rev-Exp Summary'!$G$42/'LTC Rev-Exp Summary'!$G$9, 0)","v":{"v":0,"d":"$0.00"}}]
["LTC",null,null,{"$f":"Jurat!I$1","v":0},{"$f":"Jurat!D$33","v":"00:00:00"},"Q1","2017-03-31","Summary","Operating Expense","Medical Expense","Other Medical","4.5","TPL & Fraud/Abuse Recoveries",{"$f":"IFERROR('LTC Rev-Exp Summary'!$D$48/'LTC Rev-Exp Summary'!$D$9, 0)","v":{"v":0,"d":"$0.00"}},{"$f":"IFERROR('LTC Rev-Exp Summary'!$E$48/'LTC Rev-Exp Summary'!$E$9, 0)","v":{"v":0,"d":"$0.00"}},{"$f":"IFERROR('LTC Rev-Exp Summary'!$F$48/'LTC Rev-Exp Summary'!$F$9, 0)","v":{"v":0,"d":"$0.00"}},{"$f":"IFERROR('LTC Rev-Exp Summary'!$G$48/'LTC Rev-Exp Summary'!$G$9, 0)","v":{"v":0,"d":"$0.00"}}]
["LTC",null,null,{"$f":"Jurat!I$1","v":0},{"$f":"Jurat!D$33","v":"00:00:00"},"Q1","2017-03-31","Summary","Operating Expense","Medical Expense","Other Medical","4.6.1","Premium Deficiency Reserve",{"$f":"IFERROR('LTC Rev-Exp Summary'!$D$49/'LTC Rev-Exp Summary'!$D$9, 0)","v":{"v":0,"d":"$0.00"}},{"$f":"IFERROR('LTC Rev-Exp Summary'!$E$49/'LTC Rev-Exp Summary'!$E$9, 0)","v":{"v":0,"d":"$0.00"}},{"$f":"IFERROR('LTC Rev-Exp Summary'!$F$49/'LTC Rev-Exp Summary'!$F$9, 0)","v":{"v":0,"d":"$0.00"}},{"$f":"IFERROR('LTC Rev-Exp Summary'!$G$49/'LTC Rev-Exp Summary'!$G$9, 0)","v":{"v":0,"d":"$0.00"}}]
["LTC",null,null,{"$f":"Jurat!I$1","v":0},{"$f":"Jurat!D$33","v":"00:00:00"},"Q1","2017-03-31","Summary","Operating Expense","Medical Expense","Other Medical","4.8","Reinsurance Premiums",{"$f":"IFERROR('LTC Rev-Exp Summary'!$D$51/'LTC Rev-Exp Summary'!$D$9, 0)","v":{"v":0,"d":"$0.00"}},{"$f":"IFERROR('LTC Rev-Exp Summary'!$E$51/'LTC Rev-Exp Summary'!$E$9, 0)","v":{"v":0,"d":"$0.00"}},{"$f":"IFERROR('LTC Rev-Exp Summary'!$F$51/'LTC Rev-Exp Summary'!$F$9, 0)","v":{"v":0,"d":"$0.00"}},{"$f":"IFERROR('LTC Rev-Exp Summary'!$G$51/'LTC Rev-Exp Summary'!$G$9, 0)","v":{"v":0,"d":"$0.00"}}]
["LTC",null,null,{"$f":"Jurat!I$1","v":0},{"$f":"Jurat!D$33","v":"00:00:00"},"Q1","2017-03-31","Summary","Operating Expense","Medical Expense","Other Medical","4.9","Reinsurance Recoveries",{"$f":"IFERROR('LTC Rev-Exp Summary'!$D$52/'LTC Rev-Exp Summary'!$D$9, 0)","v":{"v":0,"d":"$0.00"}},{"$f":"IFERROR('LTC Rev-Exp Summary'!$E$52/'LTC Rev-Exp Summary'!$E$9, 0)","v":{"v":0,"d":"$0.00"}},{"$f":"IFERROR('LTC Rev-Exp Summary'!$F$52/'LTC Rev-Exp Summary'!$F$9, 0)","v":{"v":0,"d":"$0.00"}},{"$f":"IFERROR('LTC Rev-Exp Summary'!$G$52/'LTC Rev-Exp Summary'!$G$9, 0)","v":{"v":0,"d":"$0.00"}}]
["LTC",null,null,{"$f":"Jurat!I$1","v":0},{"$f":"Jurat!D$33","v":"00:00:00"},"Q1","2017-03-31","Summary","Operating Expense","Administrative Expense","Administrative","5.1","Salaries & Benefits",{"$f":"IFERROR('LTC Rev-Exp Summary'!$D$57/'LTC Rev-Exp Summary'!$D$9, 0)","v":{"v":0,"d":"$0.00"}},{"$f":"IFERROR('LTC Rev-Exp Summary'!$E$57/'LTC Rev-Exp Summary'!$D$9, 0)","v":{"v":0,"d":"$0.00"}},{"$f":"IFERROR('LTC Rev-Exp Summary'!$F$57/'LTC Rev-Exp Summary'!$D$9, 0)","v":{"v":0,"d":"$0.00"}},{"$f":"IFERROR('LTC Rev-Exp Summary'!$G$57/'LTC Rev-Exp Summary'!$D$9, 0)","v":{"v":0,"d":"$0.00"}}]
["LTC",null,null,{"$f":"Jurat!I$1","v":0},{"$f":"Jurat!D$33","v":"00:00:00"},"Q1","2017-03-31","Summary","Operating Expense","Administrative Expense","Administrative","5.2","Administrative Services",{"$f":"IFERROR('LTC Rev-Exp Summary'!$D$58/'LTC Rev-Exp Summary'!$D$9, 0)","v":{"v":0,"d":"$0.00"}},{"$f":"IFERROR('LTC Rev-Exp Summary'!$E$58/'LTC Rev-Exp Summary'!$D$9, 0)","v":{"v":0,"d":"$0.00"}},{"$f":"IFERROR('LTC Rev-Exp Summary'!$F$58/'LTC Rev-Exp Summary'!$D$9, 0)","v":{"v":0,"d":"$0.00"}},{"$f":"IFERROR('LTC Rev-Exp Summary'!$G$58/'LTC Rev-Exp Summary'!$D$9, 0)","v":{"v":0,"d":"$0.00"}}]
["LTC",null,null,{"$f":"Jurat!I$1","v":0},{"$f":"Jurat!D$33","v":"00:00:00"},"Q1","2017-03-31","Summary","Operating Expense","Administrative Expense","Administrative","5.3","Information Systems",{"$f":"IFERROR('LTC Rev-Exp Summary'!$D$59/'LTC Rev-Exp Summary'!$D$9, 0)","v":{"v":0,"d":"$0.00"}},{"$f":"IFERROR('LTC Rev-Exp Summary'!$E$59/'LTC Rev-Exp Summary'!$D$9, 0)","v":{"v":0,"d":"$0.00"}},{"$f":"IFERROR('LTC Rev-Exp Summary'!$F$59/'LTC Rev-Exp Summary'!$D$9, 0)","v":{"v":0,"d":"$0.00"}},{"$f":"IFERROR('LTC Rev-Exp Summary'!$G$59/'LTC Rev-Exp Summary'!$D$9, 0)","v":{"v":0,"d":"$0.00"}}]
["LTC",null,null,{"$f":"Jurat!I$1","v":0},{"$f":"Jurat!D$33","v":"00:00:00"},"Q1","2017-03-31","Summary","Operating Expense","Administrative Expense","Administrative","5.4","Marketing Expenses",{"$f":"IFERROR('LTC Rev-Exp Summary'!$D$60/'LTC Rev-Exp Summary'!$D$9, 0)","v":{"v":0,"d":"$0.00"}},{"$f":"IFERROR('LTC Rev-Exp Summary'!$E$60/'LTC Rev-Exp Summary'!$D$9, 0)","v":{"v":0,"d":"$0.00"}},{"$f":"IFERROR('LTC Rev-Exp Summary'!$F$60/'LTC Rev-Exp Summary'!$D$9, 0)","v":{"v":0,"d":"$0.00"}},{"$f":"IFERROR('LTC Rev-Exp Summary'!$G$60/'LTC Rev-Exp Summary'!$D$9, 0)","v":{"v":0,"d":"$0.00"}}]
["LTC",null,null,{"$f":"Jurat!I$1","v":0},{"$f":"Jurat!D$33","v":"00:00:00"},"Q1","2017-03-31","Summary","Operating Expense","Administrative Expense","Administrative","5.5","General  Administration",{"$f":"IFERROR('LTC Rev-Exp Summary'!$D$61/'LTC Rev-Exp Summary'!$D$9, 0)","v":{"v":0,"d":"$0.00"}},{"$f":"IFERROR('LTC Rev-Exp Summary'!$E$61/'LTC Rev-Exp Summary'!$D$9, 0)","v":{"v":0,"d":"$0.00"}},{"$f":"IFERROR('LTC Rev-Exp Summary'!$F$61/'LTC Rev-Exp Summary'!$D$9, 0)","v":{"v":0,"d":"$0.00"}},{"$f":"IFERROR('LTC Rev-Exp Summary'!$G$61/'LTC Rev-Exp Summary'!$D$9, 0)","v":{"v":0,"d":"$0.00"}}]
["LTC",null,null,{"$f":"Jurat!I$1","v":0},{"$f":"Jurat!D$33","v":"00:00:00"},"Q1","2017-03-31","Summary","Operating Expense","Administrative Expense","Administrative","5.6","Compliance/Regulatory",{"$f":"IFERROR('LTC Rev-Exp Summary'!$D$62/'LTC Rev-Exp Summary'!$D$9, 0)","v":{"v":0,"d":"$0.00"}},{"$f":"IFERROR('LTC Rev-Exp Summary'!$E$62/'LTC Rev-Exp Summary'!$D$9, 0)","v":{"v":0,"d":"$0.00"}},{"$f":"IFERROR('LTC Rev-Exp Summary'!$F$62/'LTC Rev-Exp Summary'!$D$9, 0)","v":{"v":0,"d":"$0.00"}},{"$f":"IFERROR('LTC Rev-Exp Summary'!$G$62/'LTC Rev-Exp Summary'!$D$9, 0)","v":{"v":0,"d":"$0.00"}}]
["LTC",null,null,{"$f":"Jurat!I$1","v":0},{"$f":"Jurat!D$33","v":"00:00:00"},"Q1","2017-03-31","Summary","Operating Expense","Taxes & Fees","Taxes & Fees","6.1","State Premium Tax",{"$f":"IFERROR('LTC Rev-Exp Summary'!$D$64/'LTC Rev-Exp Summary'!$D$9, 0)","v":{"v":0,"d":"$0.00"}},{"$f":"IFERROR('LTC Rev-Exp Summary'!$E$64/'LTC Rev-Exp Summary'!$E$9, 0)","v":{"v":0,"d":"$0.00"}},{"$f":"IFERROR('LTC Rev-Exp Summary'!$F$64/'LTC Rev-Exp Summary'!$F$9, 0)","v":{"v":0,"d":"$0.00"}},{"$f":"IFERROR('LTC Rev-Exp Summary'!$G$64/'LTC Rev-Exp Summary'!$G$9, 0)","v":{"v":0,"d":"$0.00"}}]
["LTC",null,null,{"$f":"Jurat!I$1","v":0},{"$f":"Jurat!D$33","v":"00:00:00"},"Q1","2017-03-31","Summary","Operating Expense","Taxes & Fees","Taxes & Fees","6.2","Department of Insurance Assessments",{"$f":"IFERROR('LTC Rev-Exp Summary'!$D$65/'LTC Rev-Exp Summary'!$D$9, 0)","v":{"v":0,"d":"$0.00"}},{"$f":"IFERROR('LTC Rev-Exp Summary'!$E$65/'LTC Rev-Exp Summary'!$E$9, 0)","v":{"v":0,"d":"$0.00"}},{"$f":"IFERROR('LTC Rev-Exp Summary'!$F$65/'LTC Rev-Exp Summary'!$F$9, 0)","v":{"v":0,"d":"$0.00"}},{"$f":"IFERROR('LTC Rev-Exp Summary'!$G$65/'LTC Rev-Exp Summary'!$G$9, 0)","v":{"v":0,"d":"$0.00"}}]
["LTC",null,null,{"$f":"Jurat!I$1","v":0},{"$f":"Jurat!D$33","v":"00:00:00"},"Q1","2017-03-31","Summary","Non-Operating Expense","Income Tax Expense","Income Tax Expense","9.0","Income Tax Expense",{"$f":"IFERROR('LTC Rev-Exp Summary'!$D$72/'LTC Rev-Exp Summary'!$D$9, 0)","v":{"v":0,"d":"$0.00"}},{"$f":"IFERROR('LTC Rev-Exp Summary'!$E$72/'LTC Rev-Exp Summary'!$E$9, 0)","v":{"v":0,"d":"$0.00"}},{"$f":"IFERROR('LTC Rev-Exp Summary'!$F$72/'LTC Rev-Exp Summary'!$F$9, 0)","v":{"v":0,"d":"$0.00"}},{"$f":"IFERROR('LTC Rev-Exp Summary'!$G$72/'LTC Rev-Exp Summary'!$G$9, 0)","v":{"v":0,"d":"$0.00"}}]
["LTC",null,null,{"$f":"Jurat!I$1","v":0},{"$f":"Jurat!D$33","v":"00:00:00"},"Q2","2017-06-30","Summary","Operating Revenue","Capitation","Capitation",1.1,"Capitation",{"$f":"IFERROR('LTC Rev-Exp Summary'!$H$11/'LTC Rev-Exp Summary'!$H$9, 0)","v":{"v":0,"d":"$0.00"}},{"$f":"IFERROR('LTC Rev-Exp Summary'!$I$11/'LTC Rev-Exp Summary'!$I$9, 0)","v":{"v":0,"d":"$0.00"}},{"$f":"IFERROR('LTC Rev-Exp Summary'!$J$11/'LTC Rev-Exp Summary'!$J$9, 0)","v":{"v":0,"d":"$0.00"}},{"$f":"IFERROR('LTC Rev-Exp Summary'!$K$11/'LTC Rev-Exp Summary'!$K$9, 0)","v":{"v":0,"d":"$0.00"}}]
["LTC",null,null,{"$f":"Jurat!I$1","v":0},{"$f":"Jurat!D$33","v":"00:00:00"},"Q2","2017-06-30","Summary","Operating Revenue","Capitation","NH Rate Reconciliation",1.2,"NH Rate Reconciliation",{"$f":"IFERROR('LTC Rev-Exp Summary'!$H$12/'LTC Rev-Exp Summary'!$H$9, 0)","v":{"v":0,"d":"$0.00"}},{"$f":"IFERROR('LTC Rev-Exp Summary'!$I$12/'LTC Rev-Exp Summary'!$I$9, 0)","v":{"v":0,"d":"$0.00"}},{"$f":"IFERROR('LTC Rev-Exp Summary'!$J$12/'LTC Rev-Exp Summary'!$J$9, 0)","v":{"v":0,"d":"$0.00"}},{"$f":"IFERROR('LTC Rev-Exp Summary'!$K$12/'LTC Rev-Exp Summary'!$K$9, 0)","v":{"v":0,"d":"$0.00"}}]
["LTC",null,null,{"$f":"Jurat!I$1","v":0},{"$f":"Jurat!D$33","v":"00:00:00"},"Q2","2017-06-30","Summary","Operating Revenue","Other Revenue","Other Revenue",1.3,"Other Revenue",{"$f":"IFERROR('LTC Rev-Exp Summary'!$H$13/'LTC Rev-Exp Summary'!$H$9, 0)","v":{"v":0,"d":"$0.00"}},{"$f":"IFERROR('LTC Rev-Exp Summary'!$I$13/'LTC Rev-Exp Summary'!$I$9, 0)","v":{"v":0,"d":"$0.00"}},{"$f":"IFERROR('LTC Rev-Exp Summary'!$J$13/'LTC Rev-Exp Summary'!$J$9, 0)","v":{"v":0,"d":"$0.00"}},{"$f":"IFERROR('LTC Rev-Exp Summary'!$K$13/'LTC Rev-Exp Summary'!$K$9, 0)","v":{"v":0,"d":"$0.00"}}]
["LTC",null,null,{"$f":"Jurat!I$1","v":0},{"$f":"Jurat!D$33","v":"00:00:00"},"Q2","2017-06-30","Summary","Operating Expense","Medical Expense","NF & Hospice","2.3","Nursing Facility FFS (Medicaid)",{"$f":"IFERROR('LTC Rev-Exp Summary'!$H$19/'LTC Rev-Exp Summary'!$H$9, 0)","v":{"v":0,"d":"$0.00"}},{"$f":"IFERROR('LTC Rev-Exp Summary'!$I$19/'LTC Rev-Exp Summary'!$I$9, 0)","v":{"v":0,"d":"$0.00"}},{"$f":"IFERROR('LTC Rev-Exp Summary'!$J$19/'LTC Rev-Exp Summary'!$J$9, 0)","v":{"v":0,"d":"$0.00"}},{"$f":"IFERROR('LTC Rev-Exp Summary'!$K$19/'LTC Rev-Exp Summary'!$K$9, 0)","v":{"v":0,"d":"$0.00"}}]
["LTC",null,null,{"$f":"Jurat!I$1","v":0},{"$f":"Jurat!D$33","v":"00:00:00"},"Q2","2017-06-30","Summary","Operating Expense","Medical Expense","NF & Hospice","2.4","Nursing Facility FFS (Crossover)",{"$f":"IFERROR('LTC Rev-Exp Summary'!$H$20/'LTC Rev-Exp Summary'!$H$9, 0)","v":{"v":0,"d":"$0.00"}},{"$f":"IFERROR('LTC Rev-Exp Summary'!$I$20/'LTC Rev-Exp Summary'!$I$9, 0)","v":{"v":0,"d":"$0.00"}},{"$f":"IFERROR('LTC Rev-Exp Summary'!$J$20/'LTC Rev-Exp Summary'!$J$9, 0)","v":{"v":0,"d":"$0.00"}},{"$f":"IFERROR('LTC Rev-Exp Summary'!$K$20/'LTC Rev-Exp Summary'!$K$9, 0)","v":{"v":0,"d":"$0.00"}}]
["LTC",null,null,{"$f":"Jurat!I$1","v":0},{"$f":"Jurat!D$33","v":"00:00:00"},"Q2","2017-06-30","Summary","Operating Expense","Medical Expense","NF & Hospice","2.6","Hospice FFS",{"$f":"IFERROR('LTC Rev-Exp Summary'!$H$22/'LTC Rev-Exp Summary'!$H$9, 0)","v":{"v":0,"d":"$0.00"}},{"$f":"IFERROR('LTC Rev-Exp Summary'!$I$22/'LTC Rev-Exp Summary'!$I$9, 0)","v":{"v":0,"d":"$0.00"}},{"$f":"IFERROR('LTC Rev-Exp Summary'!$J$22/'LTC Rev-Exp Summary'!$J$9, 0)","v":{"v":0,"d":"$0.00"}},{"$f":"IFERROR('LTC Rev-Exp Summary'!$K$22/'LTC Rev-Exp Summary'!$K$9, 0)","v":{"v":0,"d":"$0.00"}}]
["LTC",null,null,{"$f":"Jurat!I$1","v":0},{"$f":"Jurat!D$33","v":"00:00:00"},"Q2","2017-06-30","Summary","Operating Expense","Medical Expense","NF & Hospice","2.7","Ending IBNP for NF & Hospice",{"$f":"IFERROR('LTC Rev-Exp Summary'!$H$23/'LTC Rev-Exp Summary'!$H$9, 0)","v":{"v":0,"d":"$0.00"}},{"$f":"IFERROR('LTC Rev-Exp Summary'!$I$23/'LTC Rev-Exp Summary'!$I$9, 0)","v":{"v":0,"d":"$0.00"}},{"$f":"IFERROR('LTC Rev-Exp Summary'!$J$23/'LTC Rev-Exp Summary'!$J$9, 0)","v":{"v":0,"d":"$0.00"}},{"$f":"IFERROR('LTC Rev-Exp Summary'!$K$23/'LTC Rev-Exp Summary'!$K$9, 0)","v":{"v":0,"d":"$0.00"}}]
["LTC",null,null,{"$f":"Jurat!I$1","v":0},{"$f":"Jurat!D$33","v":"00:00:00"},"Q2","2017-06-30","Summary","Operating Expense","Medical Expense","NF & Hospice","2.8","NF & Hospice Subcapitated",{"$f":"IFERROR('LTC Rev-Exp Summary'!$H$24/'LTC Rev-Exp Summary'!$H$9, 0)","v":{"v":0,"d":"$0.00"}},{"$f":"IFERROR('LTC Rev-Exp Summary'!$I$24/'LTC Rev-Exp Summary'!$I$9, 0)","v":{"v":0,"d":"$0.00"}},{"$f":"IFERROR('LTC Rev-Exp Summary'!$J$24/'LTC Rev-Exp Summary'!$J$9, 0)","v":{"v":0,"d":"$0.00"}},{"$f":"IFERROR('LTC Rev-Exp Summary'!$K$24/'LTC Rev-Exp Summary'!$K$9, 0)","v":{"v":0,"d":"$0.00"}}]
["LTC",null,null,{"$f":"Jurat!I$1","v":0},{"$f":"Jurat!D$33","v":"00:00:00"},"Q2","2017-06-30","Summary","Operating Expense","Medical Expense","NF & Hospice","2.9","NF & Hospice Settlements",{"$f":"IFERROR('LTC Rev-Exp Summary'!$H$25/'LTC Rev-Exp Summary'!$H$9, 0)","v":{"v":0,"d":"$0.00"}},{"$f":"IFERROR('LTC Rev-Exp Summary'!$I$25/'LTC Rev-Exp Summary'!$I$9, 0)","v":{"v":0,"d":"$0.00"}},{"$f":"IFERROR('LTC Rev-Exp Summary'!$J$25/'LTC Rev-Exp Summary'!$J$9, 0)","v":{"v":0,"d":"$0.00"}},{"$f":"IFERROR('LTC Rev-Exp Summary'!$K$25/'LTC Rev-Exp Summary'!$K$9, 0)","v":{"v":0,"d":"$0.00"}}]
["LTC",null,null,{"$f":"Jurat!I$1","v":0},{"$f":"Jurat!D$33","v":"00:00:00"},"Q2","2017-06-30","Summary","Operating Expense","Medical Expense","LTC Services","2.11","Assisted Living FFS",{"$f":"IFERROR('LTC Rev-Exp Summary'!$H$27/'LTC Rev-Exp Summary'!$H$9, 0)","v":{"v":0,"d":"$0.00"}},{"$f":"IFERROR('LTC Rev-Exp Summary'!$I$27/'LTC Rev-Exp Summary'!$I$9, 0)","v":{"v":0,"d":"$0.00"}},{"$f":"IFERROR('LTC Rev-Exp Summary'!$J$27/'LTC Rev-Exp Summary'!$J$9, 0)","v":{"v":0,"d":"$0.00"}},{"$f":"IFERROR('LTC Rev-Exp Summary'!$K$27/'LTC Rev-Exp Summary'!$K$9, 0)","v":{"v":0,"d":"$0.00"}}]
["LTC",null,null,{"$f":"Jurat!I$1","v":0},{"$f":"Jurat!D$33","v":"00:00:00"},"Q2","2017-06-30","Summary","Operating Expense","Medical Expense","LTC Services","2.12","Home Health FFS",{"$f":"IFERROR('LTC Rev-Exp Summary'!$H$28/'LTC Rev-Exp Summary'!$H$9, 0)","v":{"v":0,"d":"$0.00"}},{"$f":"IFERROR('LTC Rev-Exp Summary'!$I$28/'LTC Rev-Exp Summary'!$I$9, 0)","v":{"v":0,"d":"$0.00"}},{"$f":"IFERROR('LTC Rev-Exp Summary'!$J$28/'LTC Rev-Exp Summary'!$J$9, 0)","v":{"v":0,"d":"$0.00"}},{"$f":"IFERROR('LTC Rev-Exp Summary'!$K$28/'LTC Rev-Exp Summary'!$K$9, 0)","v":{"v":0,"d":"$0.00"}}]
["LTC",null,null,{"$f":"Jurat!I$1","v":0},{"$f":"Jurat!D$33","v":"00:00:00"},"Q2","2017-06-30","Summary","Operating Expense","Medical Expense","LTC Services","2.13","Medical Equipment/Supplies FFS",{"$f":"IFERROR('LTC Rev-Exp Summary'!$H$29/'LTC Rev-Exp Summary'!$H$9, 0)","v":{"v":0,"d":"$0.00"}},{"$f":"IFERROR('LTC Rev-Exp Summary'!$I$29/'LTC Rev-Exp Summary'!$I$9, 0)","v":{"v":0,"d":"$0.00"}},{"$f":"IFERROR('LTC Rev-Exp Summary'!$J$29/'LTC Rev-Exp Summary'!$J$9, 0)","v":{"v":0,"d":"$0.00"}},{"$f":"IFERROR('LTC Rev-Exp Summary'!$K$29/'LTC Rev-Exp Summary'!$K$9, 0)","v":{"v":0,"d":"$0.00"}}]
["LTC",null,null,{"$f":"Jurat!I$1","v":0},{"$f":"Jurat!D$33","v":"00:00:00"},"Q2","2017-06-30","Summary","Operating Expense","Medical Expense","LTC Services","2.14","Therapy FFS",{"$f":"IFERROR('LTC Rev-Exp Summary'!$H$30/'LTC Rev-Exp Summary'!$H$9, 0)","v":{"v":0,"d":"$0.00"}},{"$f":"IFERROR('LTC Rev-Exp Summary'!$I$30/'LTC Rev-Exp Summary'!$I$9, 0)","v":{"v":0,"d":"$0.00"}},{"$f":"IFERROR('LTC Rev-Exp Summary'!$J$30/'LTC Rev-Exp Summary'!$J$9, 0)","v":{"v":0,"d":"$0.00"}},{"$f":"IFERROR('LTC Rev-Exp Summary'!$K$30/'LTC Rev-Exp Summary'!$K$9, 0)","v":{"v":0,"d":"$0.00"}}]
["LTC",null,null,{"$f":"Jurat!I$1","v":0},{"$f":"Jurat!D$33","v":"00:00:00"},"Q2","2017-06-30","Summary","Operating Expense","Medical Expense","LTC Services","2.15","Transportation FFS",{"$f":"IFERROR('LTC Rev-Exp Summary'!$H$31/'LTC Rev-Exp Summary'!$H$9, 0)","v":{"v":0,"d":"$0.00"}},{"$f":"IFERROR('LTC Rev-Exp Summary'!$I$31/'LTC Rev-Exp Summary'!$I$9, 0)","v":{"v":0,"d":"$0.00"}},{"$f":"IFERROR('LTC Rev-Exp Summary'!$J$31/'LTC Rev-Exp Summary'!$J$9, 0)","v":{"v":0,"d":"$0.00"}},{"$f":"IFERROR('LTC Rev-Exp Summary'!$K$31/'LTC Rev-Exp Summary'!$K$9, 0)","v":{"v":0,"d":"$0.00"}}]
["LTC",null,null,{"$f":"Jurat!I$1","v":0},{"$f":"Jurat!D$33","v":"00:00:00"},"Q2","2017-06-30","Summary","Operating Expense","Medical Expense","LTC Services","2.16","Case Management FFS (Plan Provided)",{"$f":"IFERROR('LTC Rev-Exp Summary'!$H$32/'LTC Rev-Exp Summary'!$H$9, 0)","v":{"v":0,"d":"$0.00"}},{"$f":"IFERROR('LTC Rev-Exp Summary'!$I$32/'LTC Rev-Exp Summary'!$I$9, 0)","v":{"v":0,"d":"$0.00"}},{"$f":"IFERROR('LTC Rev-Exp Summary'!$J$32/'LTC Rev-Exp Summary'!$J$9, 0)","v":{"v":0,"d":"$0.00"}},{"$f":"IFERROR('LTC Rev-Exp Summary'!$K$32/'LTC Rev-Exp Summary'!$K$9, 0)","v":{"v":0,"d":"$0.00"}}]
["LTC",null,null,{"$f":"Jurat!I$1","v":0},{"$f":"Jurat!D$33","v":"00:00:00"},"Q2","2017-06-30","Summary","Operating Expense","Medical Expense","LTC Services","2.17","Case Management FF (Non-Plan Provided)",{"$f":"IFERROR('LTC Rev-Exp Summary'!$H$33/'LTC Rev-Exp Summary'!$H$9, 0)","v":{"v":0,"d":"$0.00"}},{"$f":"IFERROR('LTC Rev-Exp Summary'!$I$33/'LTC Rev-Exp Summary'!$I$9, 0)","v":{"v":0,"d":"$0.00"}},{"$f":"IFERROR('LTC Rev-Exp Summary'!$J$33/'LTC Rev-Exp Summary'!$J$9, 0)","v":{"v":0,"d":"$0.00"}},{"$f":"IFERROR('LTC Rev-Exp Summary'!$K$33/'LTC Rev-Exp Summary'!$K$9, 0)","v":{"v":0,"d":"$0.00"}}]
["LTC",null,null,{"$f":"Jurat!I$1","v":0},{"$f":"Jurat!D$33","v":"00:00:00"},"Q2","2017-06-30","Summary","Operating Expense","Medical Expense","LTC Services","2.18","HCBS FFS",{"$f":"IFERROR('LTC Rev-Exp Summary'!$H$34/'LTC Rev-Exp Summary'!$H$9, 0)","v":{"v":0,"d":"$0.00"}},{"$f":"IFERROR('LTC Rev-Exp Summary'!$I$34/'LTC Rev-Exp Summary'!$I$9, 0)","v":{"v":0,"d":"$0.00"}},{"$f":"IFERROR('LTC Rev-Exp Summary'!$J$34/'LTC Rev-Exp Summary'!$J$9, 0)","v":{"v":0,"d":"$0.00"}},{"$f":"IFERROR('LTC Rev-Exp Summary'!$K$34/'LTC Rev-Exp Summary'!$K$9, 0)","v":{"v":0,"d":"$0.00"}}]
["LTC",null,null,{"$f":"Jurat!I$1","v":0},{"$f":"Jurat!D$33","v":"00:00:00"},"Q2","2017-06-30","Summary","Operating Expense","Medical Expense","LTC Services","2.19","Subcapitated LTC Services",{"$f":"IFERROR('LTC Rev-Exp Summary'!$H$35/'LTC Rev-Exp Summary'!$H$9, 0)","v":{"v":0,"d":"$0.00"}},{"$f":"IFERROR('LTC Rev-Exp Summary'!$I$35/'LTC Rev-Exp Summary'!$I$9, 0)","v":{"v":0,"d":"$0.00"}},{"$f":"IFERROR('LTC Rev-Exp Summary'!$J$35/'LTC Rev-Exp Summary'!$J$9, 0)","v":{"v":0,"d":"$0.00"}},{"$f":"IFERROR('LTC Rev-Exp Summary'!$K$35/'LTC Rev-Exp Summary'!$K$9, 0)","v":{"v":0,"d":"$0.00"}}]
["LTC",null,null,{"$f":"Jurat!I$1","v":0},{"$f":"Jurat!D$33","v":"00:00:00"},"Q2","2017-06-30","Summary","Operating Expense","Medical Expense","LTC Services","2.20","Ending IBNP for Long Term Care Services",{"$f":"IFERROR('LTC Rev-Exp Summary'!$H$36/'LTC Rev-Exp Summary'!$H$9, 0)","v":{"v":0,"d":"$0.00"}},{"$f":"IFERROR('LTC Rev-Exp Summary'!$I$36/'LTC Rev-Exp Summary'!$I$9, 0)","v":{"v":0,"d":"$0.00"}},{"$f":"IFERROR('LTC Rev-Exp Summary'!$J$36/'LTC Rev-Exp Summary'!$J$9, 0)","v":{"v":0,"d":"$0.00"}},{"$f":"IFERROR('LTC Rev-Exp Summary'!$K$36/'LTC Rev-Exp Summary'!$K$9, 0)","v":{"v":0,"d":"$0.00"}}]
["LTC",null,null,{"$f":"Jurat!I$1","v":0},{"$f":"Jurat!D$33","v":"00:00:00"},"Q2","2017-06-30","Summary","Operating Expense","Medical Expense","LTC Services","2.21","LTC Services Settlements",{"$f":"IFERROR('LTC Rev-Exp Summary'!$H$37/'LTC Rev-Exp Summary'!$H$9, 0)","v":{"v":0,"d":"$0.00"}},{"$f":"IFERROR('LTC Rev-Exp Summary'!$I$37/'LTC Rev-Exp Summary'!$I$9, 0)","v":{"v":0,"d":"$0.00"}},{"$f":"IFERROR('LTC Rev-Exp Summary'!$J$37/'LTC Rev-Exp Summary'!$J$9, 0)","v":{"v":0,"d":"$0.00"}},{"$f":"IFERROR('LTC Rev-Exp Summary'!$K$37/'LTC Rev-Exp Summary'!$K$9, 0)","v":{"v":0,"d":"$0.00"}}]
["LTC",null,null,{"$f":"Jurat!I$1","v":0},{"$f":"Jurat!D$33","v":"00:00:00"},"Q2","2017-06-30","Summary","Operating Expense","Medical Expense","Expanded Benefits","3.1","Expanded Benefits FFS",{"$f":"IFERROR('LTC Rev-Exp Summary'!$H$39/'LTC Rev-Exp Summary'!$H$9, 0)","v":{"v":0,"d":"$0.00"}},{"$f":"IFERROR('LTC Rev-Exp Summary'!$I$39/'LTC Rev-Exp Summary'!$I$9, 0)","v":{"v":0,"d":"$0.00"}},{"$f":"IFERROR('LTC Rev-Exp Summary'!$J$39/'LTC Rev-Exp Summary'!$J$9, 0)","v":{"v":0,"d":"$0.00"}},{"$f":"IFERROR('LTC Rev-Exp Summary'!$K$39/'LTC Rev-Exp Summary'!$K$9, 0)","v":{"v":0,"d":"$0.00"}}]
["LTC",null,null,{"$f":"Jurat!I$1","v":0},{"$f":"Jurat!D$33","v":"00:00:00"},"Q2","2017-06-30","Summary","Operating Expense","Medical Expense","Expanded Benefits","3.2","Expanded Benefits Subcapitation",{"$f":"IFERROR('LTC Rev-Exp Summary'!$H$40/'LTC Rev-Exp Summary'!$H$9, 0)","v":{"v":0,"d":"$0.00"}},{"$f":"IFERROR('LTC Rev-Exp Summary'!$I$40/'LTC Rev-Exp Summary'!$I$9, 0)","v":{"v":0,"d":"$0.00"}},{"$f":"IFERROR('LTC Rev-Exp Summary'!$J$40/'LTC Rev-Exp Summary'!$J$9, 0)","v":{"v":0,"d":"$0.00"}},{"$f":"IFERROR('LTC Rev-Exp Summary'!$K$40/'LTC Rev-Exp Summary'!$K$9, 0)","v":{"v":0,"d":"$0.00"}}]
["LTC",null,null,{"$f":"Jurat!I$1","v":0},{"$f":"Jurat!D$33","v":"00:00:00"},"Q2","2017-06-30","Summary","Operating Expense","Medical Expense","Expanded Benefits","3.3","Ending IBNP for Expanded Benefits",{"$f":"IFERROR('LTC Rev-Exp Summary'!$H$41/'LTC Rev-Exp Summary'!$H$9, 0)","v":{"v":0,"d":"$0.00"}},{"$f":"IFERROR('LTC Rev-Exp Summary'!$I$41/'LTC Rev-Exp Summary'!$I$9, 0)","v":{"v":0,"d":"$0.00"}},{"$f":"IFERROR('LTC Rev-Exp Summary'!$J$41/'LTC Rev-Exp Summary'!$J$9, 0)","v":{"v":0,"d":"$0.00"}},{"$f":"IFERROR('LTC Rev-Exp Summary'!$K$41/'LTC Rev-Exp Summary'!$K$9, 0)","v":{"v":0,"d":"$0.00"}}]
["LTC",null,null,{"$f":"Jurat!I$1","v":0},{"$f":"Jurat!D$33","v":"00:00:00"},"Q2","2017-06-30","Summary","Operating Expense","Medical Expense","Expanded Benefits","3.4","Expanded Benefits Settlements",{"$f":"IFERROR('LTC Rev-Exp Summary'!$H$42/'LTC Rev-Exp Summary'!$H$9, 0)","v":{"v":0,"d":"$0.00"}},{"$f":"IFERROR('LTC Rev-Exp Summary'!$I$42/'LTC Rev-Exp Summary'!$I$9, 0)","v":{"v":0,"d":"$0.00"}},{"$f":"IFERROR('LTC Rev-Exp Summary'!$J$42/'LTC Rev-Exp Summary'!$J$9, 0)","v":{"v":0,"d":"$0.00"}},{"$f":"IFERROR('LTC Rev-Exp Summary'!$K$42/'LTC Rev-Exp Summary'!$K$9, 0)","v":{"v":0,"d":"$0.00"}}]
["LTC",null,null,{"$f":"Jurat!I$1","v":0},{"$f":"Jurat!D$33","v":"00:00:00"},"Q2","2017-06-30","Summary","Operating Expense","Medical Expense","Other Medical","4.5","TPL & Fraud/Abuse Recoveries",{"$f":"IFERROR('LTC Rev-Exp Summary'!$H$48/'LTC Rev-Exp Summary'!$H$9, 0)","v":{"v":0,"d":"$0.00"}},{"$f":"IFERROR('LTC Rev-Exp Summary'!$I$48/'LTC Rev-Exp Summary'!$I$9, 0)","v":{"v":0,"d":"$0.00"}},{"$f":"IFERROR('LTC Rev-Exp Summary'!$J$48/'LTC Rev-Exp Summary'!$J$9, 0)","v":{"v":0,"d":"$0.00"}},{"$f":"IFERROR('LTC Rev-Exp Summary'!$K$48/'LTC Rev-Exp Summary'!$K$9, 0)","v":{"v":0,"d":"$0.00"}}]
["LTC",null,null,{"$f":"Jurat!I$1","v":0},{"$f":"Jurat!D$33","v":"00:00:00"},"Q2","2017-06-30","Summary","Operating Expense","Medical Expense","Other Medical","4.6.1","Premium Deficiency Reserve",{"$f":"IFERROR('LTC Rev-Exp Summary'!$H$49/'LTC Rev-Exp Summary'!$H$9, 0)","v":{"v":0,"d":"$0.00"}},{"$f":"IFERROR('LTC Rev-Exp Summary'!$I$49/'LTC Rev-Exp Summary'!$I$9, 0)","v":{"v":0,"d":"$0.00"}},{"$f":"IFERROR('LTC Rev-Exp Summary'!$J$49/'LTC Rev-Exp Summary'!$J$9, 0)","v":{"v":0,"d":"$0.00"}},{"$f":"IFERROR('LTC Rev-Exp Summary'!$K$49/'LTC Rev-Exp Summary'!$K$9, 0)","v":{"v":0,"d":"$0.00"}}]
["LTC",null,null,{"$f":"Jurat!I$1","v":0},{"$f":"Jurat!D$33","v":"00:00:00"},"Q2","2017-06-30","Summary","Operating Expense","Medical Expense","Other Medical","4.8","Reinsurance Premiums",{"$f":"IFERROR('LTC Rev-Exp Summary'!$H$51/'LTC Rev-Exp Summary'!$H$9, 0)","v":{"v":0,"d":"$0.00"}},{"$f":"IFERROR('LTC Rev-Exp Summary'!$I$51/'LTC Rev-Exp Summary'!$I$9, 0)","v":{"v":0,"d":"$0.00"}},{"$f":"IFERROR('LTC Rev-Exp Summary'!$J$51/'LTC Rev-Exp Summary'!$J$9, 0)","v":{"v":0,"d":"$0.00"}},{"$f":"IFERROR('LTC Rev-Exp Summary'!$K$51/'LTC Rev-Exp Summary'!$K$9, 0)","v":{"v":0,"d":"$0.00"}}]
["LTC",null,null,{"$f":"Jurat!I$1","v":0},{"$f":"Jurat!D$33","v":"00:00:00"},"Q2","2017-06-30","Summary","Operating Expense","Medical Expense","Other Medical","4.9","Reinsurance Recoveries",{"$f":"IFERROR('LTC Rev-Exp Summary'!$H$52/'LTC Rev-Exp Summary'!$H$9, 0)","v":{"v":0,"d":"$0.00"}},{"$f":"IFERROR('LTC Rev-Exp Summary'!$I$52/'LTC Rev-Exp Summary'!$I$9, 0)","v":{"v":0,"d":"$0.00"}},{"$f":"IFERROR('LTC Rev-Exp Summary'!$J$52/'LTC Rev-Exp Summary'!$J$9, 0)","v":{"v":0,"d":"$0.00"}},{"$f":"IFERROR('LTC Rev-Exp Summary'!$K$52/'LTC Rev-Exp Summary'!$K$9, 0)","v":{"v":0,"d":"$0.00"}}]
["LTC",null,null,{"$f":"Jurat!I$1","v":0},{"$f":"Jurat!D$33","v":"00:00:00"},"Q2","2017-06-30","Summary","Operating Expense","Administrative Expense","Administrative","5.1","Salaries & Benefits",{"$f":"IFERROR('LTC Rev-Exp Summary'!$H$57/'LTC Rev-Exp Summary'!$H$9, 0)","v":{"v":0,"d":"$0.00"}},{"$f":"IFERROR('LTC Rev-Exp Summary'!$I$57/'LTC Rev-Exp Summary'!$I$9, 0)","v":{"v":0,"d":"$0.00"}},{"$f":"IFERROR('LTC Rev-Exp Summary'!$J$57/'LTC Rev-Exp Summary'!$J$9, 0)","v":{"v":0,"d":"$0.00"}},{"$f":"IFERROR('LTC Rev-Exp Summary'!$K$57/'LTC Rev-Exp Summary'!$K$9, 0)","v":{"v":0,"d":"$0.00"}}]
["LTC",null,null,{"$f":"Jurat!I$1","v":0},{"$f":"Jurat!D$33","v":"00:00:00"},"Q2","2017-06-30","Summary","Operating Expense","Administrative Expense","Administrative","5.2","Administrative Services",{"$f":"IFERROR('LTC Rev-Exp Summary'!$H$58/'LTC Rev-Exp Summary'!$H$9, 0)","v":{"v":0,"d":"$0.00"}},{"$f":"IFERROR('LTC Rev-Exp Summary'!$I$58/'LTC Rev-Exp Summary'!$I$9, 0)","v":{"v":0,"d":"$0.00"}},{"$f":"IFERROR('LTC Rev-Exp Summary'!$J$58/'LTC Rev-Exp Summary'!$J$9, 0)","v":{"v":0,"d":"$0.00"}},{"$f":"IFERROR('LTC Rev-Exp Summary'!$K$58/'LTC Rev-Exp Summary'!$K$9, 0)","v":{"v":0,"d":"$0.00"}}]
["LTC",null,null,{"$f":"Jurat!I$1","v":0},{"$f":"Jurat!D$33","v":"00:00:00"},"Q2","2017-06-30","Summary","Operating Expense","Administrative Expense","Administrative","5.3","Information Systems",{"$f":"IFERROR('LTC Rev-Exp Summary'!$H$59/'LTC Rev-Exp Summary'!$H$9, 0)","v":{"v":0,"d":"$0.00"}},{"$f":"IFERROR('LTC Rev-Exp Summary'!$I$59/'LTC Rev-Exp Summary'!$I$9, 0)","v":{"v":0,"d":"$0.00"}},{"$f":"IFERROR('LTC Rev-Exp Summary'!$J$59/'LTC Rev-Exp Summary'!$J$9, 0)","v":{"v":0,"d":"$0.00"}},{"$f":"IFERROR('LTC Rev-Exp Summary'!$K$59/'LTC Rev-Exp Summary'!$K$9, 0)","v":{"v":0,"d":"$0.00"}}]
["LTC",null,null,{"$f":"Jurat!I$1","v":0},{"$f":"Jurat!D$33","v":"00:00:00"},"Q2","2017-06-30","Summary","Operating Expense","Administrative Expense","Administrative","5.4","Marketing Expenses",{"$f":"IFERROR('LTC Rev-Exp Summary'!$H$60/'LTC Rev-Exp Summary'!$H$9, 0)","v":{"v":0,"d":"$0.00"}},{"$f":"IFERROR('LTC Rev-Exp Summary'!$I$60/'LTC Rev-Exp Summary'!$I$9, 0)","v":{"v":0,"d":"$0.00"}},{"$f":"IFERROR('LTC Rev-Exp Summary'!$J$60/'LTC Rev-Exp Summary'!$J$9, 0)","v":{"v":0,"d":"$0.00"}},{"$f":"IFERROR('LTC Rev-Exp Summary'!$K$60/'LTC Rev-Exp Summary'!$K$9, 0)","v":{"v":0,"d":"$0.00"}}]
["LTC",null,null,{"$f":"Jurat!I$1","v":0},{"$f":"Jurat!D$33","v":"00:00:00"},"Q2","2017-06-30","Summary","Operating Expense","Administrative Expense","Administrative","5.5","General  Administration",{"$f":"IFERROR('LTC Rev-Exp Summary'!$H$61/'LTC Rev-Exp Summary'!$H$9, 0)","v":{"v":0,"d":"$0.00"}},{"$f":"IFERROR('LTC Rev-Exp Summary'!$I$61/'LTC Rev-Exp Summary'!$I$9, 0)","v":{"v":0,"d":"$0.00"}},{"$f":"IFERROR('LTC Rev-Exp Summary'!$J$61/'LTC Rev-Exp Summary'!$J$9, 0)","v":{"v":0,"d":"$0.00"}},{"$f":"IFERROR('LTC Rev-Exp Summary'!$K$61/'LTC Rev-Exp Summary'!$K$9, 0)","v":{"v":0,"d":"$0.00"}}]
["LTC",null,null,{"$f":"Jurat!I$1","v":0},{"$f":"Jurat!D$33","v":"00:00:00"},"Q2","2017-06-30","Summary","Operating Expense","Administrative Expense","Administrative","5.6","Compliance/Regulatory",{"$f":"IFERROR('LTC Rev-Exp Summary'!$H$62/'LTC Rev-Exp Summary'!$H$9, 0)","v":{"v":0,"d":"$0.00"}},{"$f":"IFERROR('LTC Rev-Exp Summary'!$I$62/'LTC Rev-Exp Summary'!$I$9, 0)","v":{"v":0,"d":"$0.00"}},{"$f":"IFERROR('LTC Rev-Exp Summary'!$J$62/'LTC Rev-Exp Summary'!$J$9, 0)","v":{"v":0,"d":"$0.00"}},{"$f":"IFERROR('LTC Rev-Exp Summary'!$K$62/'LTC Rev-Exp Summary'!$K$9, 0)","v":{"v":0,"d":"$0.00"}}]
["LTC",null,null,{"$f":"Jurat!I$1","v":0},{"$f":"Jurat!D$33","v":"00:00:00"},"Q2","2017-06-30","Summary","Operating Expense","Taxes & Fees","Taxes & Fees","6.1","State Premium Tax",{"$f":"IFERROR('LTC Rev-Exp Summary'!$H$64/'LTC Rev-Exp Summary'!$H$9, 0)","v":{"v":0,"d":"$0.00"}},{"$f":"IFERROR('LTC Rev-Exp Summary'!$I$64/'LTC Rev-Exp Summary'!$I$9, 0)","v":{"v":0,"d":"$0.00"}},{"$f":"IFERROR('LTC Rev-Exp Summary'!$J$64/'LTC Rev-Exp Summary'!$J$9, 0)","v":{"v":0,"d":"$0.00"}},{"$f":"IFERROR('LTC Rev-Exp Summary'!$K$64/'LTC Rev-Exp Summary'!$K$9, 0)","v":{"v":0,"d":"$0.00"}}]
["LTC",null,null,{"$f":"Jurat!I$1","v":0},{"$f":"Jurat!D$33","v":"00:00:00"},"Q2","2017-06-30","Summary","Operating Expense","Taxes & Fees","Taxes & Fees","6.2","Department of Insurance Assessments",{"$f":"IFERROR('LTC Rev-Exp Summary'!$H$65/'LTC Rev-Exp Summary'!$H$9, 0)","v":{"v":0,"d":"$0.00"}},{"$f":"IFERROR('LTC Rev-Exp Summary'!$I$65/'LTC Rev-Exp Summary'!$I$9, 0)","v":{"v":0,"d":"$0.00"}},{"$f":"IFERROR('LTC Rev-Exp Summary'!$J$65/'LTC Rev-Exp Summary'!$J$9, 0)","v":{"v":0,"d":"$0.00"}},{"$f":"IFERROR('LTC Rev-Exp Summary'!$K$65/'LTC Rev-Exp Summary'!$K$9, 0)","v":{"v":0,"d":"$0.00"}}]
["LTC",null,null,{"$f":"Jurat!I$1","v":0},{"$f":"Jurat!D$33","v":"00:00:00"},"Q2","2017-06-30","Summary","Non-Operating Expense","Income Tax Expense","Income Tax Expense","9.0","Income Tax Expense",{"$f":"IFERROR('LTC Rev-Exp Summary'!$H$66/'LTC Rev-Exp Summary'!$H$9, 0)","v":{"v":0,"d":"$0.00"}},{"$f":"IFERROR('LTC Rev-Exp Summary'!$I$66/'LTC Rev-Exp Summary'!$I$9, 0)","v":{"v":0,"d":"$0.00"}},{"$f":"IFERROR('LTC Rev-Exp Summary'!$J$66/'LTC Rev-Exp Summary'!$J$9, 0)","v":{"v":0,"d":"$0.00"}},{"$f":"IFERROR('LTC Rev-Exp Summary'!$K$66/'LTC Rev-Exp Summary'!$K$9, 0)","v":{"v":0,"d":"$0.00"}}]
["LTC",null,null,{"$f":"Jurat!I$1","v":0},{"$f":"Jurat!D$33","v":"00:00:00"},"Q3","2017-09-30","Summary","Operating Revenue","Capitation","Capitation",1.1,"Capitation",{"$f":"IFERROR('LTC Rev-Exp Summary'!$L$11/'LTC Rev-Exp Summary'!$L$9,\"0\")","v":"0"},{"$f":"IFERROR('LTC Rev-Exp Summary'!$M$11/'LTC Rev-Exp Summary'!$M$9,\"0\")","v":"0"},{"$f":"IFERROR('LTC Rev-Exp Summary'!$N$11/'LTC Rev-Exp Summary'!$N$9,\"0\")","v":"0"},{"$f":"IFERROR('LTC Rev-Exp Summary'!$O$11/'LTC Rev-Exp Summary'!$O$9,\"0\")","v":"0"}]
["LTC",null,null,{"$f":"Jurat!I$1","v":0},{"$f":"Jurat!D$33","v":"00:00:00"},"Q3","2017-09-30","Summary","Operating Revenue","Capitation","NH Rate Reconciliation",1.2,"NH Rate Reconciliation",{"$f":"IFERROR('LTC Rev-Exp Summary'!$L$12/'LTC Rev-Exp Summary'!$L$9,\"0\")","v":"0"},{"$f":"IFERROR('LTC Rev-Exp Summary'!$M$12/'LTC Rev-Exp Summary'!$M$9,\"0\")","v":"0"},{"$f":"IFERROR('LTC Rev-Exp Summary'!$N$12/'LTC Rev-Exp Summary'!$N$9,\"0\")","v":"0"},{"$f":"IFERROR('LTC Rev-Exp Summary'!$O$12/'LTC Rev-Exp Summary'!$O$9,\"0\")","v":"0"}]
["LTC",null,null,{"$f":"Jurat!I$1","v":0},{"$f":"Jurat!D$33","v":"00:00:00"},"Q3","2017-09-30","Summary","Operating Revenue","Other Revenue","Other Revenue",1.3,"Other Revenue",{"$f":"IFERROR('LTC Rev-Exp Summary'!$L$13/'LTC Rev-Exp Summary'!$L$9,\"0\")","v":"0"},{"$f":"IFERROR('LTC Rev-Exp Summary'!$M$13/'LTC Rev-Exp Summary'!$M$9,\"0\")","v":"0"},{"$f":"IFERROR('LTC Rev-Exp Summary'!$N$13/'LTC Rev-Exp Summary'!$N$9,\"0\")","v":"0"},{"$f":"IFERROR('LTC Rev-Exp Summary'!$O$13/'LTC Rev-Exp Summary'!$O$9,\"0\")","v":"0"}]
["LTC",null,null,{"$f":"Jurat!I$1","v":0},{"$f":"Jurat!D$33","v":"00:00:00"},"Q3","2017-09-30","Summary","Operating Expense","Medical Expense","NF & Hospice","2.3","Nursing Facility FFS (Medicaid)",{"$f":"IFERROR('LTC Rev-Exp Summary'!$L$19/'LTC Rev-Exp Summary'!$L$9, 0)","v":{"v":0,"d":"$0.00"}},{"$f":"IFERROR('LTC Rev-Exp Summary'!$M$19/'LTC Rev-Exp Summary'!$M$9, 0)","v":{"v":0,"d":"$0.00"}},{"$f":"IFERROR('LTC Rev-Exp Summary'!$N$19/'LTC Rev-Exp Summary'!$N$9, 0)","v":{"v":0,"d":"$0.00"}},{"$f":"IFERROR('LTC Rev-Exp Summary'!$O$19/'LTC Rev-Exp Summary'!$O$9, 0)","v":{"v":0,"d":"$0.00"}}]
["LTC",null,null,{"$f":"Jurat!I$1","v":0},{"$f":"Jurat!D$33","v":"00:00:00"},"Q3","2017-09-30","Summary","Operating Expense","Medical Expense","NF & Hospice","2.4","Nursing Facility FFS (Crossover)",{"$f":"IFERROR('LTC Rev-Exp Summary'!$L$20/'LTC Rev-Exp Summary'!$L$9, 0)","v":{"v":0,"d":"$0.00"}},{"$f":"IFERROR('LTC Rev-Exp Summary'!$M$20/'LTC Rev-Exp Summary'!$M$9, 0)","v":{"v":0,"d":"$0.00"}},{"$f":"IFERROR('LTC Rev-Exp Summary'!$N$20/'LTC Rev-Exp Summary'!$N$9, 0)","v":{"v":0,"d":"$0.00"}},{"$f":"IFERROR('LTC Rev-Exp Summary'!$O$20/'LTC Rev-Exp Summary'!$O$9, 0)","v":{"v":0,"d":"$0.00"}}]
["LTC",null,null,{"$f":"Jurat!I$1","v":0},{"$f":"Jurat!D$33","v":"00:00:00"},"Q3","2017-09-30","Summary","Operating Expense","Medical Expense","NF & Hospice","2.6","Hospice FFS",{"$f":"IFERROR('LTC Rev-Exp Summary'!$L$22/'LTC Rev-Exp Summary'!$L$9, 0)","v":{"v":0,"d":"$0.00"}},{"$f":"IFERROR('LTC Rev-Exp Summary'!$M$22/'LTC Rev-Exp Summary'!$M$9, 0)","v":{"v":0,"d":"$0.00"}},{"$f":"IFERROR('LTC Rev-Exp Summary'!$N$22/'LTC Rev-Exp Summary'!$N$9, 0)","v":{"v":0,"d":"$0.00"}},{"$f":"IFERROR('LTC Rev-Exp Summary'!$O$22/'LTC Rev-Exp Summary'!$O$9, 0)","v":{"v":0,"d":"$0.00"}}]
["LTC",null,null,{"$f":"Jurat!I$1","v":0},{"$f":"Jurat!D$33","v":"00:00:00"},"Q3","2017-09-30","Summary","Operating Expense","Medical Expense","NF & Hospice","2.7","Ending IBNP for NF & Hospice",{"$f":"IFERROR('LTC Rev-Exp Summary'!$L$23/'LTC Rev-Exp Summary'!$L$9, 0)","v":{"v":0,"d":"$0.00"}},{"$f":"IFERROR('LTC Rev-Exp Summary'!$M$23/'LTC Rev-Exp Summary'!$M$9, 0)","v":{"v":0,"d":"$0.00"}},{"$f":"IFERROR('LTC Rev-Exp Summary'!$N$23/'LTC Rev-Exp Summary'!$N$9, 0)","v":{"v":0,"d":"$0.00"}},{"$f":"IFERROR('LTC Rev-Exp Summary'!$O$23/'LTC Rev-Exp Summary'!$O$9, 0)","v":{"v":0,"d":"$0.00"}}]
["LTC",null,null,{"$f":"Jurat!I$1","v":0},{"$f":"Jurat!D$33","v":"00:00:00"},"Q3","2017-09-30","Summary","Operating Expense","Medical Expense","NF & Hospice","2.8","NF & Hospice Subcapitated",{"$f":"IFERROR('LTC Rev-Exp Summary'!$L$24/'LTC Rev-Exp Summary'!$L$9, 0)","v":{"v":0,"d":"$0.00"}},{"$f":"IFERROR('LTC Rev-Exp Summary'!$M$24/'LTC Rev-Exp Summary'!$M$9, 0)","v":{"v":0,"d":"$0.00"}},{"$f":"IFERROR('LTC Rev-Exp Summary'!$N$24/'LTC Rev-Exp Summary'!$N$9, 0)","v":{"v":0,"d":"$0.00"}},{"$f":"IFERROR('LTC Rev-Exp Summary'!$O$24/'LTC Rev-Exp Summary'!$O$9, 0)","v":{"v":0,"d":"$0.00"}}]
["LTC",null,null,{"$f":"Jurat!I$1","v":0},{"$f":"Jurat!D$33","v":"00:00:00"},"Q3","2017-09-30","Summary","Operating Expense","Medical Expense","NF & Hospice","2.9","NF & Hospice Settlements",{"$f":"IFERROR('LTC Rev-Exp Summary'!$L$25/'LTC Rev-Exp Summary'!$L$9, 0)","v":{"v":0,"d":"$0.00"}},{"$f":"IFERROR('LTC Rev-Exp Summary'!$M$25/'LTC Rev-Exp Summary'!$M$9, 0)","v":{"v":0,"d":"$0.00"}},{"$f":"IFERROR('LTC Rev-Exp Summary'!$N$25/'LTC Rev-Exp Summary'!$N$9, 0)","v":{"v":0,"d":"$0.00"}},{"$f":"IFERROR('LTC Rev-Exp Summary'!$O$25/'LTC Rev-Exp Summary'!$O$9, 0)","v":{"v":0,"d":"$0.00"}}]
["LTC",null,null,{"$f":"Jurat!I$1","v":0},{"$f":"Jurat!D$33","v":"00:00:00"},"Q3","2017-09-30","Summary","Operating Expense","Medical Expense","LTC Services","2.11","Assisted Living FFS",{"$f":"IFERROR('LTC Rev-Exp Summary'!$L$27/'LTC Rev-Exp Summary'!$L$9, 0)","v":{"v":0,"d":"$0.00"}},{"$f":"IFERROR('LTC Rev-Exp Summary'!$M$27/'LTC Rev-Exp Summary'!$M$9, 0)","v":{"v":0,"d":"$0.00"}},{"$f":"IFERROR('LTC Rev-Exp Summary'!$N$27/'LTC Rev-Exp Summary'!$N$9, 0)","v":{"v":0,"d":"$0.00"}},{"$f":"IFERROR('LTC Rev-Exp Summary'!$O$27/'LTC Rev-Exp Summary'!$O$9, 0)","v":{"v":0,"d":"$0.00"}}]
["LTC",null,null,{"$f":"Jurat!I$1","v":0},{"$f":"Jurat!D$33","v":"00:00:00"},"Q3","2017-09-30","Summary","Operating Expense","Medical Expense","LTC Services","2.12","Home Health FFS",{"$f":"IFERROR('LTC Rev-Exp Summary'!$L$28/'LTC Rev-Exp Summary'!$L$9, 0)","v":{"v":0,"d":"$0.00"}},{"$f":"IFERROR('LTC Rev-Exp Summary'!$M$28/'LTC Rev-Exp Summary'!$M$9, 0)","v":{"v":0,"d":"$0.00"}},{"$f":"IFERROR('LTC Rev-Exp Summary'!$N$28/'LTC Rev-Exp Summary'!$N$9, 0)","v":{"v":0,"d":"$0.00"}},{"$f":"IFERROR('LTC Rev-Exp Summary'!$O$28/'LTC Rev-Exp Summary'!$O$9, 0)","v":{"v":0,"d":"$0.00"}}]
["LTC",null,null,{"$f":"Jurat!I$1","v":0},{"$f":"Jurat!D$33","v":"00:00:00"},"Q3","2017-09-30","Summary","Operating Expense","Medical Expense","LTC Services","2.13","Medical Equipment/Supplies FFS",{"$f":"IFERROR('LTC Rev-Exp Summary'!$L$29/'LTC Rev-Exp Summary'!$L$9, 0)","v":{"v":0,"d":"$0.00"}},{"$f":"IFERROR('LTC Rev-Exp Summary'!$M$29/'LTC Rev-Exp Summary'!$M$9, 0)","v":{"v":0,"d":"$0.00"}},{"$f":"IFERROR('LTC Rev-Exp Summary'!$N$29/'LTC Rev-Exp Summary'!$N$9, 0)","v":{"v":0,"d":"$0.00"}},{"$f":"IFERROR('LTC Rev-Exp Summary'!$O$29/'LTC Rev-Exp Summary'!$O$9, 0)","v":{"v":0,"d":"$0.00"}}]
["LTC",null,null,{"$f":"Jurat!I$1","v":0},{"$f":"Jurat!D$33","v":"00:00:00"},"Q3","2017-09-30","Summary","Operating Expense","Medical Expense","LTC Services","2.14","Therapy FFS",{"$f":"IFERROR('LTC Rev-Exp Summary'!$L$30/'LTC Rev-Exp Summary'!$L$9, 0)","v":{"v":0,"d":"$0.00"}},{"$f":"IFERROR('LTC Rev-Exp Summary'!$M$30/'LTC Rev-Exp Summary'!$M$9, 0)","v":{"v":0,"d":"$0.00"}},{"$f":"IFERROR('LTC Rev-Exp Summary'!$N$30/'LTC Rev-Exp Summary'!$N$9, 0)","v":{"v":0,"d":"$0.00"}},{"$f":"IFERROR('LTC Rev-Exp Summary'!$O$30/'LTC Rev-Exp Summary'!$O$9, 0)","v":{"v":0,"d":"$0.00"}}]
["LTC",null,null,{"$f":"Jurat!I$1","v":0},{"$f":"Jurat!D$33","v":"00:00:00"},"Q3","2017-09-30","Summary","Operating Expense","Medical Expense","LTC Services","2.15","Transportation FFS",{"$f":"IFERROR('LTC Rev-Exp Summary'!$L$31/'LTC Rev-Exp Summary'!$L$9, 0)","v":{"v":0,"d":"$0.00"}},{"$f":"IFERROR('LTC Rev-Exp Summary'!$M$31/'LTC Rev-Exp Summary'!$M$9, 0)","v":{"v":0,"d":"$0.00"}},{"$f":"IFERROR('LTC Rev-Exp Summary'!$N$31/'LTC Rev-Exp Summary'!$N$9, 0)","v":{"v":0,"d":"$0.00"}},{"$f":"IFERROR('LTC Rev-Exp Summary'!$O$31/'LTC Rev-Exp Summary'!$O$9, 0)","v":{"v":0,"d":"$0.00"}}]
["LTC",null,null,{"$f":"Jurat!I$1","v":0},{"$f":"Jurat!D$33","v":"00:00:00"},"Q3","2017-09-30","Summary","Operating Expense","Medical Expense","LTC Services","2.16","Case Management FFS (Plan Provided)",{"$f":"IFERROR('LTC Rev-Exp Summary'!$L$32/'LTC Rev-Exp Summary'!$L$9, 0)","v":{"v":0,"d":"$0.00"}},{"$f":"IFERROR('LTC Rev-Exp Summary'!$M$32/'LTC Rev-Exp Summary'!$M$9, 0)","v":{"v":0,"d":"$0.00"}},{"$f":"IFERROR('LTC Rev-Exp Summary'!$N$32/'LTC Rev-Exp Summary'!$N$9, 0)","v":{"v":0,"d":"$0.00"}},{"$f":"IFERROR('LTC Rev-Exp Summary'!$O$32/'LTC Rev-Exp Summary'!$O$9, 0)","v":{"v":0,"d":"$0.00"}}]
["LTC",null,null,{"$f":"Jurat!I$1","v":0},{"$f":"Jurat!D$33","v":"00:00:00"},"Q3","2017-09-30","Summary","Operating Expense","Medical Expense","LTC Services","2.17","Case Management FF (Non-Plan Provided)",{"$f":"IFERROR('LTC Rev-Exp Summary'!$L$33/'LTC Rev-Exp Summary'!$L$9, 0)","v":{"v":0,"d":"$0.00"}},{"$f":"IFERROR('LTC Rev-Exp Summary'!$M$33/'LTC Rev-Exp Summary'!$M$9, 0)","v":{"v":0,"d":"$0.00"}},{"$f":"IFERROR('LTC Rev-Exp Summary'!$N$33/'LTC Rev-Exp Summary'!$N$9, 0)","v":{"v":0,"d":"$0.00"}},{"$f":"IFERROR('LTC Rev-Exp Summary'!$O$33/'LTC Rev-Exp Summary'!$O$9, 0)","v":{"v":0,"d":"$0.00"}}]
["LTC",null,null,{"$f":"Jurat!I$1","v":0},{"$f":"Jurat!D$33","v":"00:00:00"},"Q3","2017-09-30","Summary","Operating Expense","Medical Expense","LTC Services","2.18","HCBS FFS",{"$f":"IFERROR('LTC Rev-Exp Summary'!$L$34/'LTC Rev-Exp Summary'!$L$9, 0)","v":{"v":0,"d":"$0.00"}},{"$f":"IFERROR('LTC Rev-Exp Summary'!$M$34/'LTC Rev-Exp Summary'!$M$9, 0)","v":{"v":0,"d":"$0.00"}},{"$f":"IFERROR('LTC Rev-Exp Summary'!$N$34/'LTC Rev-Exp Summary'!$N$9, 0)","v":{"v":0,"d":"$0.00"}},{"$f":"IFERROR('LTC Rev-Exp Summary'!$O$34/'LTC Rev-Exp Summary'!$O$9, 0)","v":{"v":0,"d":"$0.00"}}]
["LTC",null,null,{"$f":"Jurat!I$1","v":0},{"$f":"Jurat!D$33","v":"00:00:00"},"Q3","2017-09-30","Summary","Operating Expense","Medical Expense","LTC Services","2.19","Subcapitated LTC Services",{"$f":"IFERROR('LTC Rev-Exp Summary'!$L$35/'LTC Rev-Exp Summary'!$L$9, 0)","v":{"v":0,"d":"$0.00"}},{"$f":"IFERROR('LTC Rev-Exp Summary'!$M$35/'LTC Rev-Exp Summary'!$M$9, 0)","v":{"v":0,"d":"$0.00"}},{"$f":"IFERROR('LTC Rev-Exp Summary'!$N$35/'LTC Rev-Exp Summary'!$N$9, 0)","v":{"v":0,"d":"$0.00"}},{"$f":"IFERROR('LTC Rev-Exp Summary'!$O$35/'LTC Rev-Exp Summary'!$O$9, 0)","v":{"v":0,"d":"$0.00"}}]
["LTC",null,null,{"$f":"Jurat!I$1","v":0},{"$f":"Jurat!D$33","v":"00:00:00"},"Q3","2017-09-30","Summary","Operating Expense","Medical Expense","LTC Services","2.20","Ending IBNP for Long Term Care Services",{"$f":"IFERROR('LTC Rev-Exp Summary'!$L$36/'LTC Rev-Exp Summary'!$L$9, 0)","v":{"v":0,"d":"$0.00"}},{"$f":"IFERROR('LTC Rev-Exp Summary'!$M$36/'LTC Rev-Exp Summary'!$M$9, 0)","v":{"v":0,"d":"$0.00"}},{"$f":"IFERROR('LTC Rev-Exp Summary'!$N$36/'LTC Rev-Exp Summary'!$N$9, 0)","v":{"v":0,"d":"$0.00"}},{"$f":"IFERROR('LTC Rev-Exp Summary'!$O$36/'LTC Rev-Exp Summary'!$O$9, 0)","v":{"v":0,"d":"$0.00"}}]
["LTC",null,null,{"$f":"Jurat!I$1","v":0},{"$f":"Jurat!D$33","v":"00:00:00"},"Q3","2017-09-30","Summary","Operating Expense","Medical Expense","LTC Services","2.21","LTC Services Settlements",{"$f":"IFERROR('LTC Rev-Exp Summary'!$L$37/'LTC Rev-Exp Summary'!$L$9, 0)","v":{"v":0,"d":"$0.00"}},{"$f":"IFERROR('LTC Rev-Exp Summary'!$M$37/'LTC Rev-Exp Summary'!$M$9, 0)","v":{"v":0,"d":"$0.00"}},{"$f":"IFERROR('LTC Rev-Exp Summary'!$N$37/'LTC Rev-Exp Summary'!$N$9, 0)","v":{"v":0,"d":"$0.00"}},{"$f":"IFERROR('LTC Rev-Exp Summary'!$O$37/'LTC Rev-Exp Summary'!$O$9, 0)","v":{"v":0,"d":"$0.00"}}]
["LTC",null,null,{"$f":"Jurat!I$1","v":0},{"$f":"Jurat!D$33","v":"00:00:00"},"Q3","2017-09-30","Summary","Operating Expense","Medical Expense","Expanded Benefits","3.1","Expanded Benefits FFS",{"$f":"IFERROR('LTC Rev-Exp Summary'!$L$39/'LTC Rev-Exp Summary'!$L$9, 0)","v":{"v":0,"d":"$0.00"}},{"$f":"IFERROR('LTC Rev-Exp Summary'!$M$39/'LTC Rev-Exp Summary'!$M$9, 0)","v":{"v":0,"d":"$0.00"}},{"$f":"IFERROR('LTC Rev-Exp Summary'!$N$39/'LTC Rev-Exp Summary'!$N$9, 0)","v":{"v":0,"d":"$0.00"}},{"$f":"IFERROR('LTC Rev-Exp Summary'!$O$39/'LTC Rev-Exp Summary'!$O$9, 0)","v":{"v":0,"d":"$0.00"}}]
["LTC",null,null,{"$f":"Jurat!I$1","v":0},{"$f":"Jurat!D$33","v":"00:00:00"},"Q3","2017-09-30","Summary","Operating Expense","Medical Expense","Expanded Benefits","3.2","Expanded Benefits Subcapitation",{"$f":"IFERROR('LTC Rev-Exp Summary'!$L$40/'LTC Rev-Exp Summary'!$L$9, 0)","v":{"v":0,"d":"$0.00"}},{"$f":"IFERROR('LTC Rev-Exp Summary'!$M$40/'LTC Rev-Exp Summary'!$M$9, 0)","v":{"v":0,"d":"$0.00"}},{"$f":"IFERROR('LTC Rev-Exp Summary'!$N$40/'LTC Rev-Exp Summary'!$N$9, 0)","v":{"v":0,"d":"$0.00"}},{"$f":"IFERROR('LTC Rev-Exp Summary'!$O$40/'LTC Rev-Exp Summary'!$O$9, 0)","v":{"v":0,"d":"$0.00"}}]
["LTC",null,null,{"$f":"Jurat!I$1","v":0},{"$f":"Jurat!D$33","v":"00:00:00"},"Q3","2017-09-30","Summary","Operating Expense","Medical Expense","Expanded Benefits","3.3","Ending IBNP for Expanded Benefits",{"$f":"IFERROR('LTC Rev-Exp Summary'!$L$41/'LTC Rev-Exp Summary'!$L$9, 0)","v":{"v":0,"d":"$0.00"}},{"$f":"IFERROR('LTC Rev-Exp Summary'!$M$41/'LTC Rev-Exp Summary'!$M$9, 0)","v":{"v":0,"d":"$0.00"}},{"$f":"IFERROR('LTC Rev-Exp Summary'!$N$41/'LTC Rev-Exp Summary'!$N$9, 0)","v":{"v":0,"d":"$0.00"}},{"$f":"IFERROR('LTC Rev-Exp Summary'!$O$41/'LTC Rev-Exp Summary'!$O$9, 0)","v":{"v":0,"d":"$0.00"}}]
["LTC",null,null,{"$f":"Jurat!I$1","v":0},{"$f":"Jurat!D$33","v":"00:00:00"},"Q3","2017-09-30","Summary","Operating Expense","Medical Expense","Expanded Benefits","3.4","Expanded Benefits Settlements",{"$f":"IFERROR('LTC Rev-Exp Summary'!$L$42/'LTC Rev-Exp Summary'!$L$9, 0)","v":{"v":0,"d":"$0.00"}},{"$f":"IFERROR('LTC Rev-Exp Summary'!$M$42/'LTC Rev-Exp Summary'!$M$9, 0)","v":{"v":0,"d":"$0.00"}},{"$f":"IFERROR('LTC Rev-Exp Summary'!$N$42/'LTC Rev-Exp Summary'!$N$9, 0)","v":{"v":0,"d":"$0.00"}},{"$f":"IFERROR('LTC Rev-Exp Summary'!$O$42/'LTC Rev-Exp Summary'!$O$9, 0)","v":{"v":0,"d":"$0.00"}}]
["LTC",null,null,{"$f":"Jurat!I$1","v":0},{"$f":"Jurat!D$33","v":"00:00:00"},"Q3","2017-09-30","Summary","Operating Expense","Medical Expense","Other Medical","4.5","TPL & Fraud/Abuse Recoveries",{"$f":"IFERROR('LTC Rev-Exp Summary'!$L$48/'LTC Rev-Exp Summary'!$L$9, 0)","v":{"v":0,"d":"$0.00"}},{"$f":"IFERROR('LTC Rev-Exp Summary'!$M$48/'LTC Rev-Exp Summary'!$M$9, 0)","v":{"v":0,"d":"$0.00"}},{"$f":"IFERROR('LTC Rev-Exp Summary'!$N$48/'LTC Rev-Exp Summary'!$N$9, 0)","v":{"v":0,"d":"$0.00"}},{"$f":"IFERROR('LTC Rev-Exp Summary'!$O$48/'LTC Rev-Exp Summary'!$O$9, 0)","v":{"v":0,"d":"$0.00"}}]
["LTC",null,null,{"$f":"Jurat!I$1","v":0},{"$f":"Jurat!D$33","v":"00:00:00"},"Q3","2017-09-30","Summary","Operating Expense","Medical Expense","Other Medical","4.6.1","Premium Deficiency Reserve",{"$f":"IFERROR('LTC Rev-Exp Summary'!$L$49/'LTC Rev-Exp Summary'!$L$9, 0)","v":{"v":0,"d":"$0.00"}},{"$f":"IFERROR('LTC Rev-Exp Summary'!$M$49/'LTC Rev-Exp Summary'!$M$9, 0)","v":{"v":0,"d":"$0.00"}},{"$f":"IFERROR('LTC Rev-Exp Summary'!$N$49/'LTC Rev-Exp Summary'!$N$9, 0)","v":{"v":0,"d":"$0.00"}},{"$f":"IFERROR('LTC Rev-Exp Summary'!$O$49/'LTC Rev-Exp Summary'!$O$9, 0)","v":{"v":0,"d":"$0.00"}}]
["LTC",null,null,{"$f":"Jurat!I$1","v":0},{"$f":"Jurat!D$33","v":"00:00:00"},"Q3","2017-09-30","Summary","Operating Expense","Medical Expense","Other Medical","4.8","Reinsurance Premiums",{"$f":"IFERROR('LTC Rev-Exp Summary'!$L$51/'LTC Rev-Exp Summary'!$L$9, 0)","v":{"v":0,"d":"$0.00"}},{"$f":"IFERROR('LTC Rev-Exp Summary'!$M$51/'LTC Rev-Exp Summary'!$M$9, 0)","v":{"v":0,"d":"$0.00"}},{"$f":"IFERROR('LTC Rev-Exp Summary'!$N$51/'LTC Rev-Exp Summary'!$N$9, 0)","v":{"v":0,"d":"$0.00"}},{"$f":"IFERROR('LTC Rev-Exp Summary'!$O$51/'LTC Rev-Exp Summary'!$O$9, 0)","v":{"v":0,"d":"$0.00"}}]
["LTC",null,null,{"$f":"Jurat!I$1","v":0},{"$f":"Jurat!D$33","v":"00:00:00"},"Q3","2017-09-30","Summary","Operating Expense","Medical Expense","Other Medical","4.9","Reinsurance Recoveries",{"$f":"IFERROR('LTC Rev-Exp Summary'!$L$52/'LTC Rev-Exp Summary'!$L$9, 0)","v":{"v":0,"d":"$0.00"}},{"$f":"IFERROR('LTC Rev-Exp Summary'!$M$52/'LTC Rev-Exp Summary'!$M$9, 0)","v":{"v":0,"d":"$0.00"}},{"$f":"IFERROR('LTC Rev-Exp Summary'!$N$52/'LTC Rev-Exp Summary'!$N$9, 0)","v":{"v":0,"d":"$0.00"}},{"$f":"IFERROR('LTC Rev-Exp Summary'!$O$52/'LTC Rev-Exp Summary'!$O$9, 0)","v":{"v":0,"d":"$0.00"}}]
["LTC",null,null,{"$f":"Jurat!I$1","v":0},{"$f":"Jurat!D$33","v":"00:00:00"},"Q3","2017-09-30","Summary","Operating Expense","Administrative Expense","Administrative","5.1","Salaries & Benefits",{"$f":"IFERROR('LTC Rev-Exp Summary'!$L$57/'LTC Rev-Exp Summary'!$L$9, 0)","v":{"v":0,"d":"$0.00"}},{"$f":"IFERROR('LTC Rev-Exp Summary'!$M$57/'LTC Rev-Exp Summary'!$M$9, 0)","v":{"v":0,"d":"$0.00"}},{"$f":"IFERROR('LTC Rev-Exp Summary'!$N$57/'LTC Rev-Exp Summary'!$N$9, 0)","v":{"v":0,"d":"$0.00"}},{"$f":"IFERROR('LTC Rev-Exp Summary'!$O$57/'LTC Rev-Exp Summary'!$O$9, 0)","v":{"v":0,"d":"$0.00"}}]
["LTC",null,null,{"$f":"Jurat!I$1","v":0},{"$f":"Jurat!D$33","v":"00:00:00"},"Q3","2017-09-30","Summary","Operating Expense","Administrative Expense","Administrative","5.2","Administrative Services",{"$f":"IFERROR('LTC Rev-Exp Summary'!$L$58/'LTC Rev-Exp Summary'!$L$9, 0)","v":{"v":0,"d":"$0.00"}},{"$f":"IFERROR('LTC Rev-Exp Summary'!$M$58/'LTC Rev-Exp Summary'!$M$9, 0)","v":{"v":0,"d":"$0.00"}},{"$f":"IFERROR('LTC Rev-Exp Summary'!$N$58/'LTC Rev-Exp Summary'!$N$9, 0)","v":{"v":0,"d":"$0.00"}},{"$f":"IFERROR('LTC Rev-Exp Summary'!$O$58/'LTC Rev-Exp Summary'!$O$9, 0)","v":{"v":0,"d":"$0.00"}}]
["LTC",null,null,{"$f":"Jurat!I$1","v":0},{"$f":"Jurat!D$33","v":"00:00:00"},"Q3","2017-09-30","Summary","Operating Expense","Administrative Expense","Administrative","5.3","Information Systems",{"$f":"IFERROR('LTC Rev-Exp Summary'!$L$59/'LTC Rev-Exp Summary'!$L$9, 0)","v":{"v":0,"d":"$0.00"}},{"$f":"IFERROR('LTC Rev-Exp Summary'!$M$59/'LTC Rev-Exp Summary'!$M$9, 0)","v":{"v":0,"d":"$0.00"}},{"$f":"IFERROR('LTC Rev-Exp Summary'!$N$59/'LTC Rev-Exp Summary'!$N$9, 0)","v":{"v":0,"d":"$0.00"}},{"$f":"IFERROR('LTC Rev-Exp Summary'!$O$59/'LTC Rev-Exp Summary'!$O$9, 0)","v":{"v":0,"d":"$0.00"}}]
["LTC",null,null,{"$f":"Jurat!I$1","v":0},{"$f":"Jurat!D$33","v":"00:00:00"},"Q3","2017-09-30","Summary","Operating Expense","Administrative Expense","Administrative","5.4","Marketing Expenses",{"$f":"IFERROR('LTC Rev-Exp Summary'!$L$60/'LTC Rev-Exp Summary'!$L$9, 0)","v":{"v":0,"d":"$0.00"}},{"$f":"IFERROR('LTC Rev-Exp Summary'!$M$60/'LTC Rev-Exp Summary'!$M$9, 0)","v":{"v":0,"d":"$0.00"}},{"$f":"IFERROR('LTC Rev-Exp Summary'!$N$60/'LTC Rev-Exp Summary'!$N$9, 0)","v":{"v":0,"d":"$0.00"}},{"$f":"IFERROR('LTC Rev-Exp Summary'!$O$60/'LTC Rev-Exp Summary'!$O$9, 0)","v":{"v":0,"d":"$0.00"}}]
["LTC",null,null,{"$f":"Jurat!I$1","v":0},{"$f":"Jurat!D$33","v":"00:00:00"},"Q3","2017-09-30","Summary","Operating Expense","Administrative Expense","Administrative","5.5","General  Administration",{"$f":"IFERROR('LTC Rev-Exp Summary'!$L$61/'LTC Rev-Exp Summary'!$L$9, 0)","v":{"v":0,"d":"$0.00"}},{"$f":"IFERROR('LTC Rev-Exp Summary'!$M$61/'LTC Rev-Exp Summary'!$M$9, 0)","v":{"v":0,"d":"$0.00"}},{"$f":"IFERROR('LTC Rev-Exp Summary'!$N$61/'LTC Rev-Exp Summary'!$N$9, 0)","v":{"v":0,"d":"$0.00"}},{"$f":"IFERROR('LTC Rev-Exp Summary'!$O$61/'LTC Rev-Exp Summary'!$O$9, 0)","v":{"v":0,"d":"$0.00"}}]
["LTC",null,null,{"$f":"Jurat!I$1","v":0},{"$f":"Jurat!D$33","v":"00:00:00"},"Q3","2017-09-30","Summary","Operating Expense","Administrative Expense","Administrative","5.6","Compliance/Regulatory",{"$f":"IFERROR('LTC Rev-Exp Summary'!$L$62/'LTC Rev-Exp Summary'!$L$9, 0)","v":{"v":0,"d":"$0.00"}},{"$f":"IFERROR('LTC Rev-Exp Summary'!$M$62/'LTC Rev-Exp Summary'!$M$9, 0)","v":{"v":0,"d":"$0.00"}},{"$f":"IFERROR('LTC Rev-Exp Summary'!$N$62/'LTC Rev-Exp Summary'!$N$9, 0)","v":{"v":0,"d":"$0.00"}},{"$f":"IFERROR('LTC Rev-Exp Summary'!$O$62/'LTC Rev-Exp Summary'!$O$9, 0)","v":{"v":0,"d":"$0.00"}}]
["LTC",null,null,{"$f":"Jurat!I$1","v":0},{"$f":"Jurat!D$33","v":"00:00:00"},"Q3","2017-09-30","Summary","Operating Expense","Taxes & Fees","Taxes & Fees","6.1","State Premium Tax",{"$f":"IFERROR('LTC Rev-Exp Summary'!$L$64/'LTC Rev-Exp Summary'!$L$9, 0)","v":{"v":0,"d":"$0.00"}},{"$f":"IFERROR('LTC Rev-Exp Summary'!$M$64/'LTC Rev-Exp Summary'!$M$9, 0)","v":{"v":0,"d":"$0.00"}},{"$f":"IFERROR('LTC Rev-Exp Summary'!$N$64/'LTC Rev-Exp Summary'!$N$9, 0)","v":{"v":0,"d":"$0.00"}},{"$f":"IFERROR('LTC Rev-Exp Summary'!$O$64/'LTC Rev-Exp Summary'!$O$9, 0)","v":{"v":0,"d":"$0.00"}}]
["LTC",null,null,{"$f":"Jurat!I$1","v":0},{"$f":"Jurat!D$33","v":"00:00:00"},"Q3","2017-09-30","Summary","Operating Expense","Taxes & Fees","Taxes & Fees","6.2","Department of Insurance Assessments",{"$f":"IFERROR('LTC Rev-Exp Summary'!$L$65/'LTC Rev-Exp Summary'!$L$9, 0)","v":{"v":0,"d":"$0.00"}},{"$f":"IFERROR('LTC Rev-Exp Summary'!$M$65/'LTC Rev-Exp Summary'!$M$9, 0)","v":{"v":0,"d":"$0.00"}},{"$f":"IFERROR('LTC Rev-Exp Summary'!$N$65/'LTC Rev-Exp Summary'!$N$9, 0)","v":{"v":0,"d":"$0.00"}},{"$f":"IFERROR('LTC Rev-Exp Summary'!$O$65/'LTC Rev-Exp Summary'!$O$9, 0)","v":{"v":0,"d":"$0.00"}}]
["LTC",null,null,{"$f":"Jurat!I$1","v":0},{"$f":"Jurat!D$33","v":"00:00:00"},"Q3","2017-09-30","Summary","Non-Operating Expense","Income Tax Expense","Income Tax Expense","9.0","Income Tax Expense",{"$f":"IFERROR('LTC Rev-Exp Summary'!$L$72/'LTC Rev-Exp Summary'!$L$9, 0)","v":{"v":0,"d":"$0.00"}},{"$f":"IFERROR('LTC Rev-Exp Summary'!$M$72/'LTC Rev-Exp Summary'!$M$9, 0)","v":{"v":0,"d":"$0.00"}},{"$f":"IFERROR('LTC Rev-Exp Summary'!$N$72/'LTC Rev-Exp Summary'!$N$9, 0)","v":{"v":0,"d":"$0.00"}},{"$f":"IFERROR('LTC Rev-Exp Summary'!$O$72/'LTC Rev-Exp Summary'!$O$9, 0)","v":{"v":0,"d":"$0.00"}}]
["LTC",null,null,{"$f":"Jurat!I$1","v":0},{"$f":"Jurat!D$33","v":"00:00:00"},"Q4","2017-12-31","Summary","Operating Revenue","Capitation","Capitation",1.1,"Capitation",{"$f":"IFERROR('LTC Rev-Exp Summary'!$P$11/'LTC Rev-Exp Summary'!$P$9, 0)","v":{"v":0,"d":"$0.00"}},{"$f":"IFERROR('LTC Rev-Exp Summary'!$Q$11/'LTC Rev-Exp Summary'!$Q$9, 0)","v":{"v":0,"d":"$0.00"}},{"$f":"IFERROR('LTC Rev-Exp Summary'!$R$11/'LTC Rev-Exp Summary'!$R$9, 0)","v":{"v":0,"d":"$0.00"}},{"$f":"IFERROR('LTC Rev-Exp Summary'!$S$11/'LTC Rev-Exp Summary'!$S$9, 0)","v":{"v":0,"d":"$0.00"}}]
["LTC",null,null,{"$f":"Jurat!I$1","v":0},{"$f":"Jurat!D$33","v":"00:00:00"},"Q4","2017-12-31","Summary","Operating Revenue","Capitation","NH Rate Reconciliation",1.2,"NH Rate Reconciliation",{"$f":"IFERROR('LTC Rev-Exp Summary'!$P$12/'LTC Rev-Exp Summary'!$P$9, 0)","v":{"v":0,"d":"$0.00"}},{"$f":"IFERROR('LTC Rev-Exp Summary'!$Q$12/'LTC Rev-Exp Summary'!$Q$9, 0)","v":{"v":0,"d":"$0.00"}},{"$f":"IFERROR('LTC Rev-Exp Summary'!$R$12/'LTC Rev-Exp Summary'!$R$9, 0)","v":{"v":0,"d":"$0.00"}},{"$f":"IFERROR('LTC Rev-Exp Summary'!$S$12/'LTC Rev-Exp Summary'!$S$9, 0)","v":{"v":0,"d":"$0.00"}}]
["LTC",null,null,{"$f":"Jurat!I$1","v":0},{"$f":"Jurat!D$33","v":"00:00:00"},"Q4","2017-12-31","Summary","Operating Revenue","Other Revenue","Other Revenue",1.3,"Other Revenue",{"$f":"IFERROR('LTC Rev-Exp Summary'!$P$13/'LTC Rev-Exp Summary'!$P$9, 0)","v":{"v":0,"d":"$0.00"}},{"$f":"IFERROR('LTC Rev-Exp Summary'!$Q$13/'LTC Rev-Exp Summary'!$Q$9, 0)","v":{"v":0,"d":"$0.00"}},{"$f":"IFERROR('LTC Rev-Exp Summary'!$R$13/'LTC Rev-Exp Summary'!$R$9, 0)","v":{"v":0,"d":"$0.00"}},{"$f":"IFERROR('LTC Rev-Exp Summary'!$S$13/'LTC Rev-Exp Summary'!$S$9, 0)","v":{"v":0,"d":"$0.00"}}]
["LTC",null,null,{"$f":"Jurat!I$1","v":0},{"$f":"Jurat!D$33","v":"00:00:00"},"Q4","2017-12-31","Summary","Operating Expense","Medical Expense","NF & Hospice","2.3","Nursing Facility FFS (Medicaid)",{"$f":"IFERROR('LTC Rev-Exp Summary'!$P$19/'LTC Rev-Exp Summary'!$P$9, 0)","v":{"v":0,"d":"$0.00"}},{"$f":"IFERROR('LTC Rev-Exp Summary'!$Q$19/'LTC Rev-Exp Summary'!$Q$9, 0)","v":{"v":0,"d":"$0.00"}},{"$f":"IFERROR('LTC Rev-Exp Summary'!$R$19/'LTC Rev-Exp Summary'!$R$9, 0)","v":{"v":0,"d":"$0.00"}},{"$f":"IFERROR('LTC Rev-Exp Summary'!$S$19/'LTC Rev-Exp Summary'!$S$9, 0)","v":{"v":0,"d":"$0.00"}}]
["LTC",null,null,{"$f":"Jurat!I$1","v":0},{"$f":"Jurat!D$33","v":"00:00:00"},"Q4","2017-12-31","Summary","Operating Expense","Medical Expense","NF & Hospice","2.4","Nursing Facility FFS (Crossover)",{"$f":"IFERROR('LTC Rev-Exp Summary'!$P$20/'LTC Rev-Exp Summary'!$P$9, 0)","v":{"v":0,"d":"$0.00"}},{"$f":"IFERROR('LTC Rev-Exp Summary'!$Q$20/'LTC Rev-Exp Summary'!$Q$9, 0)","v":{"v":0,"d":"$0.00"}},{"$f":"IFERROR('LTC Rev-Exp Summary'!$R$20/'LTC Rev-Exp Summary'!$R$9, 0)","v":{"v":0,"d":"$0.00"}},{"$f":"IFERROR('LTC Rev-Exp Summary'!$S$20/'LTC Rev-Exp Summary'!$S$9, 0)","v":{"v":0,"d":"$0.00"}}]
["LTC",null,null,{"$f":"Jurat!I$1","v":0},{"$f":"Jurat!D$33","v":"00:00:00"},"Q4","2017-12-31","Summary","Operating Expense","Medical Expense","NF & Hospice","2.6","Hospice FFS",{"$f":"IFERROR('LTC Rev-Exp Summary'!$P$22/'LTC Rev-Exp Summary'!$P$9, 0)","v":{"v":0,"d":"$0.00"}},{"$f":"IFERROR('LTC Rev-Exp Summary'!$Q$22/'LTC Rev-Exp Summary'!$Q$9, 0)","v":{"v":0,"d":"$0.00"}},{"$f":"IFERROR('LTC Rev-Exp Summary'!$R$22/'LTC Rev-Exp Summary'!$R$9, 0)","v":{"v":0,"d":"$0.00"}},{"$f":"IFERROR('LTC Rev-Exp Summary'!$S$22/'LTC Rev-Exp Summary'!$S$9, 0)","v":{"v":0,"d":"$0.00"}}]
["LTC",null,null,{"$f":"Jurat!I$1","v":0},{"$f":"Jurat!D$33","v":"00:00:00"},"Q4","2017-12-31","Summary","Operating Expense","Medical Expense","NF & Hospice","2.7","Ending IBNP for NF & Hospice",{"$f":"IFERROR('LTC Rev-Exp Summary'!$P$23/'LTC Rev-Exp Summary'!$P$9, 0)","v":{"v":0,"d":"$0.00"}},{"$f":"IFERROR('LTC Rev-Exp Summary'!$Q$23/'LTC Rev-Exp Summary'!$Q$9, 0)","v":{"v":0,"d":"$0.00"}},{"$f":"IFERROR('LTC Rev-Exp Summary'!$R$23/'LTC Rev-Exp Summary'!$R$9, 0)","v":{"v":0,"d":"$0.00"}},{"$f":"IFERROR('LTC Rev-Exp Summary'!$S$23/'LTC Rev-Exp Summary'!$S$9, 0)","v":{"v":0,"d":"$0.00"}}]
["LTC",null,null,{"$f":"Jurat!I$1","v":0},{"$f":"Jurat!D$33","v":"00:00:00"},"Q4","2017-12-31","Summary","Operating Expense","Medical Expense","NF & Hospice","2.8","NF & Hospice Subcapitated",{"$f":"IFERROR('LTC Rev-Exp Summary'!$P$24/'LTC Rev-Exp Summary'!$P$9, 0)","v":{"v":0,"d":"$0.00"}},{"$f":"IFERROR('LTC Rev-Exp Summary'!$Q$24/'LTC Rev-Exp Summary'!$Q$9, 0)","v":{"v":0,"d":"$0.00"}},{"$f":"IFERROR('LTC Rev-Exp Summary'!$R$24/'LTC Rev-Exp Summary'!$R$9, 0)","v":{"v":0,"d":"$0.00"}},{"$f":"IFERROR('LTC Rev-Exp Summary'!$S$24/'LTC Rev-Exp Summary'!$S$9, 0)","v":{"v":0,"d":"$0.00"}}]
["LTC",null,null,{"$f":"Jurat!I$1","v":0},{"$f":"Jurat!D$33","v":"00:00:00"},"Q4","2017-12-31","Summary","Operating Expense","Medical Expense","NF & Hospice","2.9","NF & Hospice Settlements",{"$f":"IFERROR('LTC Rev-Exp Summary'!$P$25/'LTC Rev-Exp Summary'!$P$9, 0)","v":{"v":0,"d":"$0.00"}},{"$f":"IFERROR('LTC Rev-Exp Summary'!$Q$25/'LTC Rev-Exp Summary'!$Q$9, 0)","v":{"v":0,"d":"$0.00"}},{"$f":"IFERROR('LTC Rev-Exp Summary'!$R$25/'LTC Rev-Exp Summary'!$R$9, 0)","v":{"v":0,"d":"$0.00"}},{"$f":"IFERROR('LTC Rev-Exp Summary'!$S$25/'LTC Rev-Exp Summary'!$S$9, 0)","v":{"v":0,"d":"$0.00"}}]
["LTC",null,null,{"$f":"Jurat!I$1","v":0},{"$f":"Jurat!D$33","v":"00:00:00"},"Q4","2017-12-31","Summary","Operating Expense","Medical Expense","LTC Services","2.11","Assisted Living FFS",{"$f":"IFERROR('LTC Rev-Exp Summary'!$P$27/'LTC Rev-Exp Summary'!$P$9, 0)","v":{"v":0,"d":"$0.00"}},{"$f":"IFERROR('LTC Rev-Exp Summary'!$Q$27/'LTC Rev-Exp Summary'!$Q$9, 0)","v":{"v":0,"d":"$0.00"}},{"$f":"IFERROR('LTC Rev-Exp Summary'!$R$27/'LTC Rev-Exp Summary'!$R$9, 0)","v":{"v":0,"d":"$0.00"}},{"$f":"IFERROR('LTC Rev-Exp Summary'!$S$27/'LTC Rev-Exp Summary'!$S$9, 0)","v":{"v":0,"d":"$0.00"}}]
["LTC",null,null,{"$f":"Jurat!I$1","v":0},{"$f":"Jurat!D$33","v":"00:00:00"},"Q4","2017-12-31","Summary","Operating Expense","Medical Expense","LTC Services","2.12","Home Health FFS",{"$f":"IFERROR('LTC Rev-Exp Summary'!$P$28/'LTC Rev-Exp Summary'!$P$9, 0)","v":{"v":0,"d":"$0.00"}},{"$f":"IFERROR('LTC Rev-Exp Summary'!$Q$28/'LTC Rev-Exp Summary'!$Q$9, 0)","v":{"v":0,"d":"$0.00"}},{"$f":"IFERROR('LTC Rev-Exp Summary'!$R$28/'LTC Rev-Exp Summary'!$R$9, 0)","v":{"v":0,"d":"$0.00"}},{"$f":"IFERROR('LTC Rev-Exp Summary'!$S$28/'LTC Rev-Exp Summary'!$S$9, 0)","v":{"v":0,"d":"$0.00"}}]
["LTC",null,null,{"$f":"Jurat!I$1","v":0},{"$f":"Jurat!D$33","v":"00:00:00"},"Q4","2017-12-31","Summary","Operating Expense","Medical Expense","LTC Services","2.13","Medical Equipment/Supplies FFS",{"$f":"IFERROR('LTC Rev-Exp Summary'!$P$29/'LTC Rev-Exp Summary'!$P$9, 0)","v":{"v":0,"d":"$0.00"}},{"$f":"IFERROR('LTC Rev-Exp Summary'!$Q$29/'LTC Rev-Exp Summary'!$Q$9, 0)","v":{"v":0,"d":"$0.00"}},{"$f":"IFERROR('LTC Rev-Exp Summary'!$R$29/'LTC Rev-Exp Summary'!$R$9, 0)","v":{"v":0,"d":"$0.00"}},{"$f":"IFERROR('LTC Rev-Exp Summary'!$S$29/'LTC Rev-Exp Summary'!$S$9, 0)","v":{"v":0,"d":"$0.00"}}]
["LTC",null,null,{"$f":"Jurat!I$1","v":0},{"$f":"Jurat!D$33","v":"00:00:00"},"Q4","2017-12-31","Summary","Operating Expense","Medical Expense","LTC Services","2.14","Therapy FFS",{"$f":"IFERROR('LTC Rev-Exp Summary'!$P$30/'LTC Rev-Exp Summary'!$P$9, 0)","v":{"v":0,"d":"$0.00"}},{"$f":"IFERROR('LTC Rev-Exp Summary'!$Q$30/'LTC Rev-Exp Summary'!$Q$9, 0)","v":{"v":0,"d":"$0.00"}},{"$f":"IFERROR('LTC Rev-Exp Summary'!$R$30/'LTC Rev-Exp Summary'!$R$9, 0)","v":{"v":0,"d":"$0.00"}},{"$f":"IFERROR('LTC Rev-Exp Summary'!$S$30/'LTC Rev-Exp Summary'!$S$9, 0)","v":{"v":0,"d":"$0.00"}}]
["LTC",null,null,{"$f":"Jurat!I$1","v":0},{"$f":"Jurat!D$33","v":"00:00:00"},"Q4","2017-12-31","Summary","Operating Expense","Medical Expense","LTC Services","2.15","Transportation FFS",{"$f":"IFERROR('LTC Rev-Exp Summary'!$P$31/'LTC Rev-Exp Summary'!$P$9, 0)","v":{"v":0,"d":"$0.00"}},{"$f":"IFERROR('LTC Rev-Exp Summary'!$Q$31/'LTC Rev-Exp Summary'!$Q$9, 0)","v":{"v":0,"d":"$0.00"}},{"$f":"IFERROR('LTC Rev-Exp Summary'!$R$31/'LTC Rev-Exp Summary'!$R$9, 0)","v":{"v":0,"d":"$0.00"}},{"$f":"IFERROR('LTC Rev-Exp Summary'!$S$31/'LTC Rev-Exp Summary'!$S$9, 0)","v":{"v":0,"d":"$0.00"}}]
["LTC",null,null,{"$f":"Jurat!I$1","v":0},{"$f":"Jurat!D$33","v":"00:00:00"},"Q4","2017-12-31","Summary","Operating Expense","Medical Expense","LTC Services","2.16","Case Management FFS (Plan Provided)",{"$f":"IFERROR('LTC Rev-Exp Summary'!$P$32/'LTC Rev-Exp Summary'!$P$9, 0)","v":{"v":0,"d":"$0.00"}},{"$f":"IFERROR('LTC Rev-Exp Summary'!$Q$32/'LTC Rev-Exp Summary'!$Q$9, 0)","v":{"v":0,"d":"$0.00"}},{"$f":"IFERROR('LTC Rev-Exp Summary'!$R$32/'LTC Rev-Exp Summary'!$R$9, 0)","v":{"v":0,"d":"$0.00"}},{"$f":"IFERROR('LTC Rev-Exp Summary'!$S$32/'LTC Rev-Exp Summary'!$S$9, 0)","v":{"v":0,"d":"$0.00"}}]
["LTC",null,null,{"$f":"Jurat!I$1","v":0},{"$f":"Jurat!D$33","v":"00:00:00"},"Q4","2017-12-31","Summary","Operating Expense","Medical Expense","LTC Services","2.17","Case Management FF (Non-Plan Provided)",{"$f":"IFERROR('LTC Rev-Exp Summary'!$P$33/'LTC Rev-Exp Summary'!$P$9, 0)","v":{"v":0,"d":"$0.00"}},{"$f":"IFERROR('LTC Rev-Exp Summary'!$Q$33/'LTC Rev-Exp Summary'!$Q$9, 0)","v":{"v":0,"d":"$0.00"}},{"$f":"IFERROR('LTC Rev-Exp Summary'!$R$33/'LTC Rev-Exp Summary'!$R$9, 0)","v":{"v":0,"d":"$0.00"}},{"$f":"IFERROR('LTC Rev-Exp Summary'!$S$33/'LTC Rev-Exp Summary'!$S$9, 0)","v":{"v":0,"d":"$0.00"}}]
["LTC",null,null,{"$f":"Jurat!I$1","v":0},{"$f":"Jurat!D$33","v":"00:00:00"},"Q4","2017-12-31","Summary","Operating Expense","Medical Expense","LTC Services","2.18","HCBS FFS",{"$f":"IFERROR('LTC Rev-Exp Summary'!$P$34/'LTC Rev-Exp Summary'!$P$9, 0)","v":{"v":0,"d":"$0.00"}},{"$f":"IFERROR('LTC Rev-Exp Summary'!$Q$34/'LTC Rev-Exp Summary'!$Q$9, 0)","v":{"v":0,"d":"$0.00"}},{"$f":"IFERROR('LTC Rev-Exp Summary'!$R$34/'LTC Rev-Exp Summary'!$R$9, 0)","v":{"v":0,"d":"$0.00"}},{"$f":"IFERROR('LTC Rev-Exp Summary'!$S$34/'LTC Rev-Exp Summary'!$S$9, 0)","v":{"v":0,"d":"$0.00"}}]
["LTC",null,null,{"$f":"Jurat!I$1","v":0},{"$f":"Jurat!D$33","v":"00:00:00"},"Q4","2017-12-31","Summary","Operating Expense","Medical Expense","LTC Services","2.19","Subcapitated LTC Services",{"$f":"IFERROR('LTC Rev-Exp Summary'!$P$35/'LTC Rev-Exp Summary'!$P$9, 0)","v":{"v":0,"d":"$0.00"}},{"$f":"IFERROR('LTC Rev-Exp Summary'!$Q$35/'LTC Rev-Exp Summary'!$Q$9, 0)","v":{"v":0,"d":"$0.00"}},{"$f":"IFERROR('LTC Rev-Exp Summary'!$R$35/'LTC Rev-Exp Summary'!$R$9, 0)","v":{"v":0,"d":"$0.00"}},{"$f":"IFERROR('LTC Rev-Exp Summary'!$S$35/'LTC Rev-Exp Summary'!$S$9, 0)","v":{"v":0,"d":"$0.00"}}]
["LTC",null,null,{"$f":"Jurat!I$1","v":0},{"$f":"Jurat!D$33","v":"00:00:00"},"Q4","2017-12-31","Summary","Operating Expense","Medical Expense","LTC Services","2.20","Ending IBNP for Long Term Care Services",{"$f":"IFERROR('LTC Rev-Exp Summary'!$P$36/'LTC Rev-Exp Summary'!$P$9, 0)","v":{"v":0,"d":"$0.00"}},{"$f":"IFERROR('LTC Rev-Exp Summary'!$Q$36/'LTC Rev-Exp Summary'!$Q$9, 0)","v":{"v":0,"d":"$0.00"}},{"$f":"IFERROR('LTC Rev-Exp Summary'!$R$36/'LTC Rev-Exp Summary'!$R$9, 0)","v":{"v":0,"d":"$0.00"}},{"$f":"IFERROR('LTC Rev-Exp Summary'!$S$36/'LTC Rev-Exp Summary'!$S$9, 0)","v":{"v":0,"d":"$0.00"}}]
["LTC",null,null,{"$f":"Jurat!I$1","v":0},{"$f":"Jurat!D$33","v":"00:00:00"},"Q4","2017-12-31","Summary","Operating Expense","Medical Expense","LTC Services","2.21","LTC Services Settlements",{"$f":"IFERROR('LTC Rev-Exp Summary'!$P$37/'LTC Rev-Exp Summary'!$P$9, 0)","v":{"v":0,"d":"$0.00"}},{"$f":"IFERROR('LTC Rev-Exp Summary'!$Q$37/'LTC Rev-Exp Summary'!$Q$9, 0)","v":{"v":0,"d":"$0.00"}},{"$f":"IFERROR('LTC Rev-Exp Summary'!$R$37/'LTC Rev-Exp Summary'!$R$9, 0)","v":{"v":0,"d":"$0.00"}},{"$f":"IFERROR('LTC Rev-Exp Summary'!$S$37/'LTC Rev-Exp Summary'!$S$9, 0)","v":{"v":0,"d":"$0.00"}}]
["LTC",null,null,{"$f":"Jurat!I$1","v":0},{"$f":"Jurat!D$33","v":"00:00:00"},"Q4","2017-12-31","Summary","Operating Expense","Medical Expense","Expanded Benefits","3.1","Expanded Benefits FFS",{"$f":"IFERROR('LTC Rev-Exp Summary'!$P$39/'LTC Rev-Exp Summary'!$P$9, 0)","v":{"v":0,"d":"$0.00"}},{"$f":"IFERROR('LTC Rev-Exp Summary'!$Q$39/'LTC Rev-Exp Summary'!$Q$9, 0)","v":{"v":0,"d":"$0.00"}},{"$f":"IFERROR('LTC Rev-Exp Summary'!$R$39/'LTC Rev-Exp Summary'!$R$9, 0)","v":{"v":0,"d":"$0.00"}},{"$f":"IFERROR('LTC Rev-Exp Summary'!$S$39/'LTC Rev-Exp Summary'!$S$9, 0)","v":{"v":0,"d":"$0.00"}}]
["LTC",null,null,{"$f":"Jurat!I$1","v":0},{"$f":"Jurat!D$33","v":"00:00:00"},"Q4","2017-12-31","Summary","Operating Expense","Medical Expense","Expanded Benefits","3.2","Expanded Benefits Subcapitation",{"$f":"IFERROR('LTC Rev-Exp Summary'!$P$40/'LTC Rev-Exp Summary'!$P$9, 0)","v":{"v":0,"d":"$0.00"}},{"$f":"IFERROR('LTC Rev-Exp Summary'!$Q$40/'LTC Rev-Exp Summary'!$Q$9, 0)","v":{"v":0,"d":"$0.00"}},{"$f":"IFERROR('LTC Rev-Exp Summary'!$R$40/'LTC Rev-Exp Summary'!$R$9, 0)","v":{"v":0,"d":"$0.00"}},{"$f":"IFERROR('LTC Rev-Exp Summary'!$S$40/'LTC Rev-Exp Summary'!$S$9, 0)","v":{"v":0,"d":"$0.00"}}]
["LTC",null,null,{"$f":"Jurat!I$1","v":0},{"$f":"Jurat!D$33","v":"00:00:00"},"Q4","2017-12-31","Summary","Operating Expense","Medical Expense","Expanded Benefits","3.3","Ending IBNP for Expanded Benefits",{"$f":"IFERROR('LTC Rev-Exp Summary'!$P$41/'LTC Rev-Exp Summary'!$P$9, 0)","v":{"v":0,"d":"$0.00"}},{"$f":"IFERROR('LTC Rev-Exp Summary'!$Q$41/'LTC Rev-Exp Summary'!$Q$9, 0)","v":{"v":0,"d":"$0.00"}},{"$f":"IFERROR('LTC Rev-Exp Summary'!$R$41/'LTC Rev-Exp Summary'!$R$9, 0)","v":{"v":0,"d":"$0.00"}},{"$f":"IFERROR('LTC Rev-Exp Summary'!$S$41/'LTC Rev-Exp Summary'!$S$9, 0)","v":{"v":0,"d":"$0.00"}}]
["LTC",null,null,{"$f":"Jurat!I$1","v":0},{"$f":"Jurat!D$33","v":"00:00:00"},"Q4","2017-12-31","Summary","Operating Expense","Medical Expense","Expanded Benefits","3.4","Expanded Benefits Settlements",{"$f":"IFERROR('LTC Rev-Exp Summary'!$P$42/'LTC Rev-Exp Summary'!$P$9, 0)","v":{"v":0,"d":"$0.00"}},{"$f":"IFERROR('LTC Rev-Exp Summary'!$Q$42/'LTC Rev-Exp Summary'!$Q$9, 0)","v":{"v":0,"d":"$0.00"}},{"$f":"IFERROR('LTC Rev-Exp Summary'!$R$42/'LTC Rev-Exp Summary'!$R$9, 0)","v":{"v":0,"d":"$0.00"}},{"$f":"IFERROR('LTC Rev-Exp Summary'!$S$42/'LTC Rev-Exp Summary'!$S$9, 0)","v":{"v":0,"d":"$0.00"}}]
["LTC",null,null,{"$f":"Jurat!I$1","v":0},{"$f":"Jurat!D$33","v":"00:00:00"},"Q4","2017-12-31","Summary","Operating Expense","Medical Expense","Other Medical","4.5","TPL & Fraud/Abuse Recoveries",{"$f":"IFERROR('LTC Rev-Exp Summary'!$P$48/'LTC Rev-Exp Summary'!$P$9, 0)","v":{"v":0,"d":"$0.00"}},{"$f":"IFERROR('LTC Rev-Exp Summary'!$Q$48/'LTC Rev-Exp Summary'!$Q$9, 0)","v":{"v":0,"d":"$0.00"}},{"$f":"IFERROR('LTC Rev-Exp Summary'!$R$48/'LTC Rev-Exp Summary'!$R$9, 0)","v":{"v":0,"d":"$0.00"}},{"$f":"IFERROR('LTC Rev-Exp Summary'!$S$48/'LTC Rev-Exp Summary'!$S$9, 0)","v":{"v":0,"d":"$0.00"}}]
["LTC",null,null,{"$f":"Jurat!I$1","v":0},{"$f":"Jurat!D$33","v":"00:00:00"},"Q4","2017-12-31","Summary","Operating Expense","Medical Expense","Other Medical","4.6.1","Premium Deficiency Reserve",{"$f":"IFERROR('LTC Rev-Exp Summary'!$P$49/'LTC Rev-Exp Summary'!$P$9, 0)","v":{"v":0,"d":"$0.00"}},{"$f":"IFERROR('LTC Rev-Exp Summary'!$Q$49/'LTC Rev-Exp Summary'!$Q$9, 0)","v":{"v":0,"d":"$0.00"}},{"$f":"IFERROR('LTC Rev-Exp Summary'!$R$49/'LTC Rev-Exp Summary'!$R$9, 0)","v":{"v":0,"d":"$0.00"}},{"$f":"IFERROR('LTC Rev-Exp Summary'!$S$49/'LTC Rev-Exp Summary'!$S$9, 0)","v":{"v":0,"d":"$0.00"}}]
["LTC",null,null,{"$f":"Jurat!I$1","v":0},{"$f":"Jurat!D$33","v":"00:00:00"},"Q4","2017-12-31","Summary","Operating Expense","Medical Expense","Other Medical","4.8","Reinsurance Premiums",{"$f":"IFERROR('LTC Rev-Exp Summary'!$P$51/'LTC Rev-Exp Summary'!$P$9, 0)","v":{"v":0,"d":"$0.00"}},{"$f":"IFERROR('LTC Rev-Exp Summary'!$Q$51/'LTC Rev-Exp Summary'!$Q$9, 0)","v":{"v":0,"d":"$0.00"}},{"$f":"IFERROR('LTC Rev-Exp Summary'!$R$51/'LTC Rev-Exp Summary'!$R$9, 0)","v":{"v":0,"d":"$0.00"}},{"$f":"IFERROR('LTC Rev-Exp Summary'!$S$51/'LTC Rev-Exp Summary'!$S$9, 0)","v":{"v":0,"d":"$0.00"}}]
["LTC",null,null,{"$f":"Jurat!I$1","v":0},{"$f":"Jurat!D$33","v":"00:00:00"},"Q4","2017-12-31","Summary","Operating Expense","Medical Expense","Other Medical","4.9","Reinsurance Recoveries",{"$f":"IFERROR('LTC Rev-Exp Summary'!$P$52/'LTC Rev-Exp Summary'!$P$9, 0)","v":{"v":0,"d":"$0.00"}},{"$f":"IFERROR('LTC Rev-Exp Summary'!$Q$52/'LTC Rev-Exp Summary'!$Q$9, 0)","v":{"v":0,"d":"$0.00"}},{"$f":"IFERROR('LTC Rev-Exp Summary'!$R$52/'LTC Rev-Exp Summary'!$R$9, 0)","v":{"v":0,"d":"$0.00"}},{"$f":"IFERROR('LTC Rev-Exp Summary'!$S$52/'LTC Rev-Exp Summary'!$S$9, 0)","v":{"v":0,"d":"$0.00"}}]
["LTC",null,null,{"$f":"Jurat!I$1","v":0},{"$f":"Jurat!D$33","v":"00:00:00"},"Q4","2017-12-31","Summary","Operating Expense","Administrative Expense","Administrative","5.1","Salaries & Benefits",{"$f":"IFERROR('LTC Rev-Exp Summary'!$P$57/'LTC Rev-Exp Summary'!$P$9, 0)","v":{"v":0,"d":"$0.00"}},{"$f":"IFERROR('LTC Rev-Exp Summary'!$Q$57/'LTC Rev-Exp Summary'!$Q$9, 0)","v":{"v":0,"d":"$0.00"}},{"$f":"IFERROR('LTC Rev-Exp Summary'!$R$57/'LTC Rev-Exp Summary'!$R$9, 0)","v":{"v":0,"d":"$0.00"}},{"$f":"IFERROR('LTC Rev-Exp Summary'!$S$57/'LTC Rev-Exp Summary'!$S$9, 0)","v":{"v":0,"d":"$0.00"}}]
["LTC",null,null,{"$f":"Jurat!I$1","v":0},{"$f":"Jurat!D$33","v":"00:00:00"},"Q4","2017-12-31","Summary","Operating Expense","Administrative Expense","Administrative","5.2","Administrative Services",{"$f":"IFERROR('LTC Rev-Exp Summary'!$P$58/'LTC Rev-Exp Summary'!$P$9, 0)","v":{"v":0,"d":"$0.00"}},{"$f":"IFERROR('LTC Rev-Exp Summary'!$Q$58/'LTC Rev-Exp Summary'!$Q$9, 0)","v":{"v":0,"d":"$0.00"}},{"$f":"IFERROR('LTC Rev-Exp Summary'!$R$58/'LTC Rev-Exp Summary'!$R$9, 0)","v":{"v":0,"d":"$0.00"}},{"$f":"IFERROR('LTC Rev-Exp Summary'!$S$58/'LTC Rev-Exp Summary'!$S$9, 0)","v":{"v":0,"d":"$0.00"}}]
["LTC",null,null,{"$f":"Jurat!I$1","v":0},{"$f":"Jurat!D$33","v":"00:00:00"},"Q4","2017-12-31","Summary","Operating Expense","Administrative Expense","Administrative","5.3","Information Systems",{"$f":"IFERROR('LTC Rev-Exp Summary'!$P$59/'LTC Rev-Exp Summary'!$P$9, 0)","v":{"v":0,"d":"$0.00"}},{"$f":"IFERROR('LTC Rev-Exp Summary'!$Q$59/'LTC Rev-Exp Summary'!$Q$9, 0)","v":{"v":0,"d":"$0.00"}},{"$f":"IFERROR('LTC Rev-Exp Summary'!$R$59/'LTC Rev-Exp Summary'!$R$9, 0)","v":{"v":0,"d":"$0.00"}},{"$f":"IFERROR('LTC Rev-Exp Summary'!$S$59/'LTC Rev-Exp Summary'!$S$9, 0)","v":{"v":0,"d":"$0.00"}}]
["LTC",null,null,{"$f":"Jurat!I$1","v":0},{"$f":"Jurat!D$33","v":"00:00:00"},"Q4","2017-12-31","Summary","Operating Expense","Administrative Expense","Administrative","5.4","Marketing Expenses",{"$f":"IFERROR('LTC Rev-Exp Summary'!$P$60/'LTC Rev-Exp Summary'!$P$9, 0)","v":{"v":0,"d":"$0.00"}},{"$f":"IFERROR('LTC Rev-Exp Summary'!$Q$60/'LTC Rev-Exp Summary'!$Q$9, 0)","v":{"v":0,"d":"$0.00"}},{"$f":"IFERROR('LTC Rev-Exp Summary'!$R$60/'LTC Rev-Exp Summary'!$R$9, 0)","v":{"v":0,"d":"$0.00"}},{"$f":"IFERROR('LTC Rev-Exp Summary'!$S$60/'LTC Rev-Exp Summary'!$S$9, 0)","v":{"v":0,"d":"$0.00"}}]
["LTC",null,null,{"$f":"Jurat!I$1","v":0},{"$f":"Jurat!D$33","v":"00:00:00"},"Q4","2017-12-31","Summary","Operating Expense","Administrative Expense","Administrative","5.5","General  Administration",{"$f":"IFERROR('LTC Rev-Exp Summary'!$P$61/'LTC Rev-Exp Summary'!$P$9, 0)","v":{"v":0,"d":"$0.00"}},{"$f":"IFERROR('LTC Rev-Exp Summary'!$Q$61/'LTC Rev-Exp Summary'!$Q$9, 0)","v":{"v":0,"d":"$0.00"}},{"$f":"IFERROR('LTC Rev-Exp Summary'!$R$61/'LTC Rev-Exp Summary'!$R$9, 0)","v":{"v":0,"d":"$0.00"}},{"$f":"IFERROR('LTC Rev-Exp Summary'!$S$61/'LTC Rev-Exp Summary'!$S$9, 0)","v":{"v":0,"d":"$0.00"}}]
["LTC",null,null,{"$f":"Jurat!I$1","v":0},{"$f":"Jurat!D$33","v":"00:00:00"},"Q4","2017-12-31","Summary","Operating Expense","Administrative Expense","Administrative","5.6","Compliance/Regulatory",{"$f":"IFERROR('LTC Rev-Exp Summary'!$P$62/'LTC Rev-Exp Summary'!$P$9, 0)","v":{"v":0,"d":"$0.00"}},{"$f":"IFERROR('LTC Rev-Exp Summary'!$Q$62/'LTC Rev-Exp Summary'!$Q$9, 0)","v":{"v":0,"d":"$0.00"}},{"$f":"IFERROR('LTC Rev-Exp Summary'!$R$62/'LTC Rev-Exp Summary'!$R$9, 0)","v":{"v":0,"d":"$0.00"}},{"$f":"IFERROR('LTC Rev-Exp Summary'!$S$62/'LTC Rev-Exp Summary'!$S$9, 0)","v":{"v":0,"d":"$0.00"}}]
["LTC",null,null,{"$f":"Jurat!I$1","v":0},{"$f":"Jurat!D$33","v":"00:00:00"},"Q4","2017-12-31","Summary","Operating Expense","Taxes & Fees","Taxes & Fees","6.1","State Premium Tax",{"$f":"IFERROR('LTC Rev-Exp Summary'!$P$64/'LTC Rev-Exp Summary'!$P$9, 0)","v":{"v":0,"d":"$0.00"}},{"$f":"IFERROR('LTC Rev-Exp Summary'!$Q$64/'LTC Rev-Exp Summary'!$Q$9, 0)","v":{"v":0,"d":"$0.00"}},{"$f":"IFERROR('LTC Rev-Exp Summary'!$R$64/'LTC Rev-Exp Summary'!$R$9, 0)","v":{"v":0,"d":"$0.00"}},{"$f":"IFERROR('LTC Rev-Exp Summary'!$S$64/'LTC Rev-Exp Summary'!$S$9, 0)","v":{"v":0,"d":"$0.00"}}]
["LTC",null,null,{"$f":"Jurat!I$1","v":0},{"$f":"Jurat!D$33","v":"00:00:00"},"Q4","2017-12-31","Summary","Operating Expense","Taxes & Fees","Taxes & Fees","6.2","Department of Insurance Assessments",{"$f":"IFERROR('LTC Rev-Exp Summary'!$P$65/'LTC Rev-Exp Summary'!$P$9, 0)","v":{"v":0,"d":"$0.00"}},{"$f":"IFERROR('LTC Rev-Exp Summary'!$Q$65/'LTC Rev-Exp Summary'!$Q$9, 0)","v":{"v":0,"d":"$0.00"}},{"$f":"IFERROR('LTC Rev-Exp Summary'!$R$65/'LTC Rev-Exp Summary'!$R$9, 0)","v":{"v":0,"d":"$0.00"}},{"$f":"IFERROR('LTC Rev-Exp Summary'!$S$65/'LTC Rev-Exp Summary'!$S$9, 0)","v":{"v":0,"d":"$0.00"}}]
["LTC",null,null,{"$f":"Jurat!I$1","v":0},{"$f":"Jurat!D$33","v":"00:00:00"},"Q4","2017-12-31","Summary","Non-Operating Expense","Income Tax Expense","Income Tax Expense","9.0","Income Tax Expense",{"$f":"IFERROR('LTC Rev-Exp Summary'!$P$72/'LTC Rev-Exp Summary'!$P$9, 0)","v":{"v":0,"d":"$0.00"}},{"$f":"IFERROR('LTC Rev-Exp Summary'!$Q$72/'LTC Rev-Exp Summary'!$Q$9, 0)","v":{"v":0,"d":"$0.00"}},{"$f":"IFERROR('LTC Rev-Exp Summary'!$R$72/'LTC Rev-Exp Summary'!$R$9, 0)","v":{"v":0,"d":"$0.00"}},{"$f":"IFERROR('LTC Rev-Exp Summary'!$S$72/'LTC Rev-Exp Summary'!$S$9, 0)","v":{"v":0,"d":"$0.00"}}]
["LTC",null,null,{"$f":"Jurat!I$1","v":0},{"$f":"Jurat!D$33","v":"00:00:00"},"Q1","2017-03-31","Region 1","Operating Revenue","Capitation","Capitation",1.1,"Capitation",{"$f":"IFERROR('LTC Rev-Exp Region 1'!$D$11/'LTC Rev-Exp Region 1'!$D$9, 0)","v":{"v":0,"d":"$0.00"}},{"$f":"IFERROR('LTC Rev-Exp Region 1'!$E$11/'LTC Rev-Exp Region 1'!$E$9, 0)","v":{"v":0,"d":"$0.00"}},{"$f":"IFERROR('LTC Rev-Exp Region 1'!$F$11/'LTC Rev-Exp Region 1'!$F$9, 0)","v":{"v":0,"d":"$0.00"}},{"$f":"IFERROR('LTC Rev-Exp Region 1'!$G$11/'LTC Rev-Exp Region 1'!$G$9, 0)","v":{"v":0,"d":"$0.00"}}]
["LTC",null,null,{"$f":"Jurat!I$1","v":0},{"$f":"Jurat!D$33","v":"00:00:00"},"Q1","2017-03-31","Region 1","Operating Revenue","Capitation","NH Rate Reconciliation",1.2,"NH Rate Reconciliation",{"$f":"IFERROR('LTC Rev-Exp Region 1'!$D$12/'LTC Rev-Exp Region 1'!$D$9, 0)","v":{"v":0,"d":"$0.00"}},{"$f":"IFERROR('LTC Rev-Exp Region 1'!$E$12/'LTC Rev-Exp Region 1'!$E$9, 0)","v":{"v":0,"d":"$0.00"}},{"$f":"IFERROR('LTC Rev-Exp Region 1'!$F$12/'LTC Rev-Exp Region 1'!$F$9, 0)","v":{"v":0,"d":"$0.00"}},{"$f":"IFERROR('LTC Rev-Exp Region 1'!$G$12/'LTC Rev-Exp Region 1'!$G$9, 0)","v":{"v":0,"d":"$0.00"}}]
["LTC",null,null,{"$f":"Jurat!I$1","v":0},{"$f":"Jurat!D$33","v":"00:00:00"},"Q1","2017-03-31","Region 1","Operating Revenue","Other Revenue","Other Revenue",1.3,"Other Revenue",{"$f":"IFERROR('LTC Rev-Exp Region 1'!$D$13/'LTC Rev-Exp Region 1'!$D$9, 0)","v":{"v":0,"d":"$0.00"}},{"$f":"IFERROR('LTC Rev-Exp Region 1'!$E$13/'LTC Rev-Exp Region 1'!$E$9, 0)","v":{"v":0,"d":"$0.00"}},{"$f":"IFERROR('LTC Rev-Exp Region 1'!$F$13/'LTC Rev-Exp Region 1'!$F$9, 0)","v":{"v":0,"d":"$0.00"}},{"$f":"IFERROR('LTC Rev-Exp Region 1'!$G$13/'LTC Rev-Exp Region 1'!$G$9, 0)","v":{"v":0,"d":"$0.00"}}]
["LTC",null,null,{"$f":"Jurat!I$1","v":0},{"$f":"Jurat!D$33","v":"00:00:00"},"Q1","2017-03-31","Region 1","Operating Expense","Medical Expense","NF & Hospice","2.3","Nursing Facility FFS (Medicaid)",{"$f":"IFERROR('LTC Rev-Exp Region 1'!$D$19/'LTC Rev-Exp Region 1'!$D$9, 0)","v":{"v":0,"d":"$0.00"}},{"$f":"IFERROR('LTC Rev-Exp Region 1'!$E$19/'LTC Rev-Exp Region 1'!$E$9, 0)","v":{"v":0,"d":"$0.00"}},{"$f":"IFERROR('LTC Rev-Exp Region 1'!$F$19/'LTC Rev-Exp Region 1'!$F$9, 0)","v":{"v":0,"d":"$0.00"}},{"$f":"IFERROR('LTC Rev-Exp Region 1'!$G$19/'LTC Rev-Exp Region 1'!$G$9, 0)","v":{"v":0,"d":"$0.00"}}]
["LTC",null,null,{"$f":"Jurat!I$1","v":0},{"$f":"Jurat!D$33","v":"00:00:00"},"Q1","2017-03-31","Region 1","Operating Expense","Medical Expense","NF & Hospice","2.4","Nursing Facility FFS (Crossover)",{"$f":"IFERROR('LTC Rev-Exp Region 1'!$D$20/'LTC Rev-Exp Region 1'!$D$9, 0)","v":{"v":0,"d":"$0.00"}},{"$f":"IFERROR('LTC Rev-Exp Region 1'!$E$20/'LTC Rev-Exp Region 1'!$E$9, 0)","v":{"v":0,"d":"$0.00"}},{"$f":"IFERROR('LTC Rev-Exp Region 1'!$F$20/'LTC Rev-Exp Region 1'!$F$9, 0)","v":{"v":0,"d":"$0.00"}},{"$f":"IFERROR('LTC Rev-Exp Region 1'!$G$20/'LTC Rev-Exp Region 1'!$G$9, 0)","v":{"v":0,"d":"$0.00"}}]
["LTC",null,null,{"$f":"Jurat!I$1","v":0},{"$f":"Jurat!D$33","v":"00:00:00"},"Q1","2017-03-31","Region 1","Operating Expense","Medical Expense","NF & Hospice","2.6","Hospice FFS",{"$f":"IFERROR('LTC Rev-Exp Region 1'!$D$22/'LTC Rev-Exp Region 1'!$D$9, 0)","v":{"v":0,"d":"$0.00"}},{"$f":"IFERROR('LTC Rev-Exp Region 1'!$E$22/'LTC Rev-Exp Region 1'!$E$9, 0)","v":{"v":0,"d":"$0.00"}},{"$f":"IFERROR('LTC Rev-Exp Region 1'!$F$22/'LTC Rev-Exp Region 1'!$F$9, 0)","v":{"v":0,"d":"$0.00"}},{"$f":"IFERROR('LTC Rev-Exp Region 1'!$G$22/'LTC Rev-Exp Region 1'!$G$9, 0)","v":{"v":0,"d":"$0.00"}}]
["LTC",null,null,{"$f":"Jurat!I$1","v":0},{"$f":"Jurat!D$33","v":"00:00:00"},"Q1","2017-03-31","Region 1","Operating Expense","Medical Expense","NF & Hospice","2.7","Ending IBNP for NF & Hospice",{"$f":"IFERROR('LTC Rev-Exp Region 1'!$D$23/'LTC Rev-Exp Region 1'!$D$9, 0)","v":{"v":0,"d":"$0.00"}},{"$f":"IFERROR('LTC Rev-Exp Region 1'!$E$23/'LTC Rev-Exp Region 1'!$E$9, 0)","v":{"v":0,"d":"$0.00"}},{"$f":"IFERROR('LTC Rev-Exp Region 1'!$F$23/'LTC Rev-Exp Region 1'!$F$9, 0)","v":{"v":0,"d":"$0.00"}},{"$f":"IFERROR('LTC Rev-Exp Region 1'!$G$23/'LTC Rev-Exp Region 1'!$G$9, 0)","v":{"v":0,"d":"$0.00"}}]
["LTC",null,null,{"$f":"Jurat!I$1","v":0},{"$f":"Jurat!D$33","v":"00:00:00"},"Q1","2017-03-31","Region 1","Operating Expense","Medical Expense","NF & Hospice","2.8","NF & Hospice Subcapitated",{"$f":"IFERROR('LTC Rev-Exp Region 1'!$D$24/'LTC Rev-Exp Region 1'!$D$9, 0)","v":{"v":0,"d":"$0.00"}},{"$f":"IFERROR('LTC Rev-Exp Region 1'!$E$24/'LTC Rev-Exp Region 1'!$E$9, 0)","v":{"v":0,"d":"$0.00"}},{"$f":"IFERROR('LTC Rev-Exp Region 1'!$F$24/'LTC Rev-Exp Region 1'!$F$9, 0)","v":{"v":0,"d":"$0.00"}},{"$f":"IFERROR('LTC Rev-Exp Region 1'!$G$24/'LTC Rev-Exp Region 1'!$G$9, 0)","v":{"v":0,"d":"$0.00"}}]
["LTC",null,null,{"$f":"Jurat!I$1","v":0},{"$f":"Jurat!D$33","v":"00:00:00"},"Q1","2017-03-31","Region 1","Operating Expense","Medical Expense","NF & Hospice","2.9","NF & Hospice Settlements",{"$f":"IFERROR('LTC Rev-Exp Region 1'!$D$25/'LTC Rev-Exp Region 1'!$D$9, 0)","v":{"v":0,"d":"$0.00"}},{"$f":"IFERROR('LTC Rev-Exp Region 1'!$E$25/'LTC Rev-Exp Region 1'!$E$9, 0)","v":{"v":0,"d":"$0.00"}},{"$f":"IFERROR('LTC Rev-Exp Region 1'!$F$25/'LTC Rev-Exp Region 1'!$F$9, 0)","v":{"v":0,"d":"$0.00"}},{"$f":"IFERROR('LTC Rev-Exp Region 1'!$G$25/'LTC Rev-Exp Region 1'!$G$9, 0)","v":{"v":0,"d":"$0.00"}}]
["LTC",null,null,{"$f":"Jurat!I$1","v":0},{"$f":"Jurat!D$33","v":"00:00:00"},"Q1","2017-03-31","Region 1","Operating Expense","Medical Expense","LTC Services","2.11","Assisted Living FFS",{"$f":"IFERROR('LTC Rev-Exp Region 1'!$D$27/'LTC Rev-Exp Region 1'!$D$9, 0)","v":{"v":0,"d":"$0.00"}},{"$f":"IFERROR('LTC Rev-Exp Region 1'!$E$27/'LTC Rev-Exp Region 1'!$E$9, 0)","v":{"v":0,"d":"$0.00"}},{"$f":"IFERROR('LTC Rev-Exp Region 1'!$F$27/'LTC Rev-Exp Region 1'!$F$9, 0)","v":{"v":0,"d":"$0.00"}},{"$f":"IFERROR('LTC Rev-Exp Region 1'!$G$27/'LTC Rev-Exp Region 1'!$G$9, 0)","v":{"v":0,"d":"$0.00"}}]
["LTC",null,null,{"$f":"Jurat!I$1","v":0},{"$f":"Jurat!D$33","v":"00:00:00"},"Q1","2017-03-31","Region 1","Operating Expense","Medical Expense","LTC Services","2.12","Home Health FFS",{"$f":"IFERROR('LTC Rev-Exp Region 1'!$D$28/'LTC Rev-Exp Region 1'!$D$9, 0)","v":{"v":0,"d":"$0.00"}},{"$f":"IFERROR('LTC Rev-Exp Region 1'!$E$28/'LTC Rev-Exp Region 1'!$E$9, 0)","v":{"v":0,"d":"$0.00"}},{"$f":"IFERROR('LTC Rev-Exp Region 1'!$F$28/'LTC Rev-Exp Region 1'!$F$9, 0)","v":{"v":0,"d":"$0.00"}},{"$f":"IFERROR('LTC Rev-Exp Region 1'!$G$28/'LTC Rev-Exp Region 1'!$G$9, 0)","v":{"v":0,"d":"$0.00"}}]
["LTC",null,null,{"$f":"Jurat!I$1","v":0},{"$f":"Jurat!D$33","v":"00:00:00"},"Q1","2017-03-31","Region 1","Operating Expense","Medical Expense","LTC Services","2.13","Medical Equipment/Supplies FFS",{"$f":"IFERROR('LTC Rev-Exp Region 1'!$D$29/'LTC Rev-Exp Region 1'!$D$9, 0)","v":{"v":0,"d":"$0.00"}},{"$f":"IFERROR('LTC Rev-Exp Region 1'!$E$29/'LTC Rev-Exp Region 1'!$E$9, 0)","v":{"v":0,"d":"$0.00"}},{"$f":"IFERROR('LTC Rev-Exp Region 1'!$F$29/'LTC Rev-Exp Region 1'!$F$9, 0)","v":{"v":0,"d":"$0.00"}},{"$f":"IFERROR('LTC Rev-Exp Region 1'!$G$29/'LTC Rev-Exp Region 1'!$G$9, 0)","v":{"v":0,"d":"$0.00"}}]
["LTC",null,null,{"$f":"Jurat!I$1","v":0},{"$f":"Jurat!D$33","v":"00:00:00"},"Q1","2017-03-31","Region 1","Operating Expense","Medical Expense","LTC Services","2.14","Therapy FFS",{"$f":"IFERROR('LTC Rev-Exp Region 1'!$D$30/'LTC Rev-Exp Region 1'!$D$9, 0)","v":{"v":0,"d":"$0.00"}},{"$f":"IFERROR('LTC Rev-Exp Region 1'!$E$30/'LTC Rev-Exp Region 1'!$E$9, 0)","v":{"v":0,"d":"$0.00"}},{"$f":"IFERROR('LTC Rev-Exp Region 1'!$F$30/'LTC Rev-Exp Region 1'!$F$9, 0)","v":{"v":0,"d":"$0.00"}},{"$f":"IFERROR('LTC Rev-Exp Region 1'!$G$30/'LTC Rev-Exp Region 1'!$G$9, 0)","v":{"v":0,"d":"$0.00"}}]
["LTC",null,null,{"$f":"Jurat!I$1","v":0},{"$f":"Jurat!D$33","v":"00:00:00"},"Q1","2017-03-31","Region 1","Operating Expense","Medical Expense","LTC Services","2.15","Transportation FFS",{"$f":"IFERROR('LTC Rev-Exp Region 1'!$D$31/'LTC Rev-Exp Region 1'!$D$9, 0)","v":{"v":0,"d":"$0.00"}},{"$f":"IFERROR('LTC Rev-Exp Region 1'!$E$31/'LTC Rev-Exp Region 1'!$E$9, 0)","v":{"v":0,"d":"$0.00"}},{"$f":"IFERROR('LTC Rev-Exp Region 1'!$F$31/'LTC Rev-Exp Region 1'!$F$9, 0)","v":{"v":0,"d":"$0.00"}},{"$f":"IFERROR('LTC Rev-Exp Region 1'!$G$31/'LTC Rev-Exp Region 1'!$G$9, 0)","v":{"v":0,"d":"$0.00"}}]
["LTC",null,null,{"$f":"Jurat!I$1","v":0},{"$f":"Jurat!D$33","v":"00:00:00"},"Q1","2017-03-31","Region 1","Operating Expense","Medical Expense","LTC Services","2.16","Case Management FFS (Plan Provided)",{"$f":"IFERROR('LTC Rev-Exp Region 1'!$D$32/'LTC Rev-Exp Region 1'!$D$9, 0)","v":{"v":0,"d":"$0.00"}},{"$f":"IFERROR('LTC Rev-Exp Region 1'!$E$32/'LTC Rev-Exp Region 1'!$E$9, 0)","v":{"v":0,"d":"$0.00"}},{"$f":"IFERROR('LTC Rev-Exp Region 1'!$F$32/'LTC Rev-Exp Region 1'!$F$9, 0)","v":{"v":0,"d":"$0.00"}},{"$f":"IFERROR('LTC Rev-Exp Region 1'!$G$32/'LTC Rev-Exp Region 1'!$G$9, 0)","v":{"v":0,"d":"$0.00"}}]
["LTC",null,null,{"$f":"Jurat!I$1","v":0},{"$f":"Jurat!D$33","v":"00:00:00"},"Q1","2017-03-31","Region 1","Operating Expense","Medical Expense","LTC Services","2.17","Case Management FF (Non-Plan Provided)",{"$f":"IFERROR('LTC Rev-Exp Region 1'!$D$33/'LTC Rev-Exp Region 1'!$D$9, 0)","v":{"v":0,"d":"$0.00"}},{"$f":"IFERROR('LTC Rev-Exp Region 1'!$E$33/'LTC Rev-Exp Region 1'!$E$9, 0)","v":{"v":0,"d":"$0.00"}},{"$f":"IFERROR('LTC Rev-Exp Region 1'!$F$33/'LTC Rev-Exp Region 1'!$F$9, 0)","v":{"v":0,"d":"$0.00"}},{"$f":"IFERROR('LTC Rev-Exp Region 1'!$G$33/'LTC Rev-Exp Region 1'!$G$9, 0)","v":{"v":0,"d":"$0.00"}}]
["LTC",null,null,{"$f":"Jurat!I$1","v":0},{"$f":"Jurat!D$33","v":"00:00:00"},"Q1","2017-03-31","Region 1","Operating Expense","Medical Expense","LTC Services","2.18","HCBS FFS",{"$f":"IFERROR('LTC Rev-Exp Region 1'!$D$34/'LTC Rev-Exp Region 1'!$D$9, 0)","v":{"v":0,"d":"$0.00"}},{"$f":"IFERROR('LTC Rev-Exp Region 1'!$E$34/'LTC Rev-Exp Region 1'!$E$9, 0)","v":{"v":0,"d":"$0.00"}},{"$f":"IFERROR('LTC Rev-Exp Region 1'!$F$34/'LTC Rev-Exp Region 1'!$F$9, 0)","v":{"v":0,"d":"$0.00"}},{"$f":"IFERROR('LTC Rev-Exp Region 1'!$G$34/'LTC Rev-Exp Region 1'!$G$9, 0)","v":{"v":0,"d":"$0.00"}}]
["LTC",null,null,{"$f":"Jurat!I$1","v":0},{"$f":"Jurat!D$33","v":"00:00:00"},"Q1","2017-03-31","Region 1","Operating Expense","Medical Expense","LTC Services","2.19","Subcapitated LTC Services",{"$f":"IFERROR('LTC Rev-Exp Region 1'!$D$35/'LTC Rev-Exp Region 1'!$D$9, 0)","v":{"v":0,"d":"$0.00"}},{"$f":"IFERROR('LTC Rev-Exp Region 1'!$E$35/'LTC Rev-Exp Region 1'!$E$9, 0)","v":{"v":0,"d":"$0.00"}},{"$f":"IFERROR('LTC Rev-Exp Region 1'!$F$35/'LTC Rev-Exp Region 1'!$F$9, 0)","v":{"v":0,"d":"$0.00"}},{"$f":"IFERROR('LTC Rev-Exp Region 1'!$G$35/'LTC Rev-Exp Region 1'!$G$9, 0)","v":{"v":0,"d":"$0.00"}}]
["LTC",null,null,{"$f":"Jurat!I$1","v":0},{"$f":"Jurat!D$33","v":"00:00:00"},"Q1","2017-03-31","Region 1","Operating Expense","Medical Expense","LTC Services","2.20","Ending IBNP for Long Term Care Services",{"$f":"IFERROR('LTC Rev-Exp Region 1'!$D$36/'LTC Rev-Exp Region 1'!$D$9, 0)","v":{"v":0,"d":"$0.00"}},{"$f":"IFERROR('LTC Rev-Exp Region 1'!$E$36/'LTC Rev-Exp Region 1'!$E$9, 0)","v":{"v":0,"d":"$0.00"}},{"$f":"IFERROR('LTC Rev-Exp Region 1'!$F$36/'LTC Rev-Exp Region 1'!$F$9, 0)","v":{"v":0,"d":"$0.00"}},{"$f":"IFERROR('LTC Rev-Exp Region 1'!$G$36/'LTC Rev-Exp Region 1'!$G$9, 0)","v":{"v":0,"d":"$0.00"}}]
["LTC",null,null,{"$f":"Jurat!I$1","v":0},{"$f":"Jurat!D$33","v":"00:00:00"},"Q1","2017-03-31","Region 1","Operating Expense","Medical Expense","LTC Services","2.21","LTC Services Settlements",{"$f":"IFERROR('LTC Rev-Exp Region 1'!$D$37/'LTC Rev-Exp Region 1'!$D$9, 0)","v":{"v":0,"d":"$0.00"}},{"$f":"IFERROR('LTC Rev-Exp Region 1'!$E$37/'LTC Rev-Exp Region 1'!$E$9, 0)","v":{"v":0,"d":"$0.00"}},{"$f":"IFERROR('LTC Rev-Exp Region 1'!$F$37/'LTC Rev-Exp Region 1'!$F$9, 0)","v":{"v":0,"d":"$0.00"}},{"$f":"IFERROR('LTC Rev-Exp Region 1'!$G$37/'LTC Rev-Exp Region 1'!$G$9, 0)","v":{"v":0,"d":"$0.00"}}]
["LTC",null,null,{"$f":"Jurat!I$1","v":0},{"$f":"Jurat!D$33","v":"00:00:00"},"Q1","2017-03-31","Region 1","Operating Expense","Medical Expense","Expanded Benefits","3.1","Expanded Benefits FFS",{"$f":"IFERROR('LTC Rev-Exp Region 1'!$D$39/'LTC Rev-Exp Region 1'!$D$9, 0)","v":{"v":0,"d":"$0.00"}},{"$f":"IFERROR('LTC Rev-Exp Region 1'!$E$39/'LTC Rev-Exp Region 1'!$E$9, 0)","v":{"v":0,"d":"$0.00"}},{"$f":"IFERROR('LTC Rev-Exp Region 1'!$F$39/'LTC Rev-Exp Region 1'!$F$9, 0)","v":{"v":0,"d":"$0.00"}},{"$f":"IFERROR('LTC Rev-Exp Region 1'!$G$39/'LTC Rev-Exp Region 1'!$G$9, 0)","v":{"v":0,"d":"$0.00"}}]
["LTC",null,null,{"$f":"Jurat!I$1","v":0},{"$f":"Jurat!D$33","v":"00:00:00"},"Q1","2017-03-31","Region 1","Operating Expense","Medical Expense","Expanded Benefits","3.2","Expanded Benefits Subcapitation",{"$f":"IFERROR('LTC Rev-Exp Region 1'!$D$40/'LTC Rev-Exp Region 1'!$D$9, 0)","v":{"v":0,"d":"$0.00"}},{"$f":"IFERROR('LTC Rev-Exp Region 1'!$E$40/'LTC Rev-Exp Region 1'!$E$9, 0)","v":{"v":0,"d":"$0.00"}},{"$f":"IFERROR('LTC Rev-Exp Region 1'!$F$40/'LTC Rev-Exp Region 1'!$F$9, 0)","v":{"v":0,"d":"$0.00"}},{"$f":"IFERROR('LTC Rev-Exp Region 1'!$G$40/'LTC Rev-Exp Region 1'!$G$9, 0)","v":{"v":0,"d":"$0.00"}}]
["LTC",null,null,{"$f":"Jurat!I$1","v":0},{"$f":"Jurat!D$33","v":"00:00:00"},"Q1","2017-03-31","Region 1","Operating Expense","Medical Expense","Expanded Benefits","3.3","Ending IBNP for Expanded Benefits",{"$f":"IFERROR('LTC Rev-Exp Region 1'!$D$41/'LTC Rev-Exp Region 1'!$D$9, 0)","v":{"v":0,"d":"$0.00"}},{"$f":"IFERROR('LTC Rev-Exp Region 1'!$E$41/'LTC Rev-Exp Region 1'!$E$9, 0)","v":{"v":0,"d":"$0.00"}},{"$f":"IFERROR('LTC Rev-Exp Region 1'!$F$41/'LTC Rev-Exp Region 1'!$F$9, 0)","v":{"v":0,"d":"$0.00"}},{"$f":"IFERROR('LTC Rev-Exp Region 1'!$G$41/'LTC Rev-Exp Region 1'!$G$9, 0)","v":{"v":0,"d":"$0.00"}}]
["LTC",null,null,{"$f":"Jurat!I$1","v":0},{"$f":"Jurat!D$33","v":"00:00:00"},"Q1","2017-03-31","Region 1","Operating Expense","Medical Expense","Expanded Benefits","3.4","Expanded Benefits Settlements",{"$f":"IFERROR('LTC Rev-Exp Region 1'!$D$42/'LTC Rev-Exp Region 1'!$D$9, 0)","v":{"v":0,"d":"$0.00"}},{"$f":"IFERROR('LTC Rev-Exp Region 1'!$E$42/'LTC Rev-Exp Region 1'!$E$9, 0)","v":{"v":0,"d":"$0.00"}},{"$f":"IFERROR('LTC Rev-Exp Region 1'!$F$42/'LTC Rev-Exp Region 1'!$F$9, 0)","v":{"v":0,"d":"$0.00"}},{"$f":"IFERROR('LTC Rev-Exp Region 1'!$G$42/'LTC Rev-Exp Region 1'!$G$9, 0)","v":{"v":0,"d":"$0.00"}}]
["LTC",null,null,{"$f":"Jurat!I$1","v":0},{"$f":"Jurat!D$33","v":"00:00:00"},"Q1","2017-03-31","Region 1","Operating Expense","Medical Expense","Other Medical","4.5","TPL & Fraud/Abuse Recoveries",{"$f":"IFERROR('LTC Rev-Exp Region 1'!$D$48/'LTC Rev-Exp Region 1'!$D$9, 0)","v":{"v":0,"d":"$0.00"}},{"$f":"IFERROR('LTC Rev-Exp Region 1'!$E$48/'LTC Rev-Exp Region 1'!$E$9, 0)","v":{"v":0,"d":"$0.00"}},{"$f":"IFERROR('LTC Rev-Exp Region 1'!$F$48/'LTC Rev-Exp Region 1'!$F$9, 0)","v":{"v":0,"d":"$0.00"}},{"$f":"IFERROR('LTC Rev-Exp Region 1'!$G$48/'LTC Rev-Exp Region 1'!$G$9, 0)","v":{"v":0,"d":"$0.00"}}]
["LTC",null,null,{"$f":"Jurat!I$1","v":0},{"$f":"Jurat!D$33","v":"00:00:00"},"Q1","2017-03-31","Region 1","Operating Expense","Medical Expense","Other Medical","4.6.1","Premium Deficiency Reserve",{"$f":"IFERROR('LTC Rev-Exp Region 1'!$D$49/'LTC Rev-Exp Region 1'!$D$9, 0)","v":{"v":0,"d":"$0.00"}},{"$f":"IFERROR('LTC Rev-Exp Region 1'!$E$49/'LTC Rev-Exp Region 1'!$E$9, 0)","v":{"v":0,"d":"$0.00"}},{"$f":"IFERROR('LTC Rev-Exp Region 1'!$F$49/'LTC Rev-Exp Region 1'!$F$9, 0)","v":{"v":0,"d":"$0.00"}},{"$f":"IFERROR('LTC Rev-Exp Region 1'!$G$49/'LTC Rev-Exp Region 1'!$G$9, 0)","v":{"v":0,"d":"$0.00"}}]
["LTC",null,null,{"$f":"Jurat!I$1","v":0},{"$f":"Jurat!D$33","v":"00:00:00"},"Q1","2017-03-31","Region 1","Operating Expense","Medical Expense","Other Medical","4.8","Reinsurance Premiums",{"$f":"IFERROR('LTC Rev-Exp Region 1'!$D$51/'LTC Rev-Exp Region 1'!$D$9, 0)","v":{"v":0,"d":"$0.00"}},{"$f":"IFERROR('LTC Rev-Exp Region 1'!$E$51/'LTC Rev-Exp Region 1'!$E$9, 0)","v":{"v":0,"d":"$0.00"}},{"$f":"IFERROR('LTC Rev-Exp Region 1'!$F$51/'LTC Rev-Exp Region 1'!$F$9, 0)","v":{"v":0,"d":"$0.00"}},{"$f":"IFERROR('LTC Rev-Exp Region 1'!$G$51/'LTC Rev-Exp Region 1'!$G$9, 0)","v":{"v":0,"d":"$0.00"}}]
["LTC",null,null,{"$f":"Jurat!I$1","v":0},{"$f":"Jurat!D$33","v":"00:00:00"},"Q1","2017-03-31","Region 1","Operating Expense","Medical Expense","Other Medical","4.9","Reinsurance Recoveries",{"$f":"IFERROR('LTC Rev-Exp Region 1'!$D$52/'LTC Rev-Exp Region 1'!$D$9, 0)","v":{"v":0,"d":"$0.00"}},{"$f":"IFERROR('LTC Rev-Exp Region 1'!$E$52/'LTC Rev-Exp Region 1'!$E$9, 0)","v":{"v":0,"d":"$0.00"}},{"$f":"IFERROR('LTC Rev-Exp Region 1'!$F$52/'LTC Rev-Exp Region 1'!$F$9, 0)","v":{"v":0,"d":"$0.00"}},{"$f":"IFERROR('LTC Rev-Exp Region 1'!$G$52/'LTC Rev-Exp Region 1'!$G$9, 0)","v":{"v":0,"d":"$0.00"}}]
["LTC",null,null,{"$f":"Jurat!I$1","v":0},{"$f":"Jurat!D$33","v":"00:00:00"},"Q1","2017-03-31","Region 1","Operating Expense","Administrative Expense","Administrative","5.1","Salaries & Benefits",{"$f":"IFERROR('LTC Rev-Exp Region 1'!$D$57/'LTC Rev-Exp Region 1'!$D$9, 0)","v":{"v":0,"d":"$0.00"}},{"$f":"IFERROR('LTC Rev-Exp Region 1'!$E$57/'LTC Rev-Exp Region 1'!$D$9, 0)","v":{"v":0,"d":"$0.00"}},{"$f":"IFERROR('LTC Rev-Exp Region 1'!$F$57/'LTC Rev-Exp Region 1'!$D$9, 0)","v":{"v":0,"d":"$0.00"}},{"$f":"IFERROR('LTC Rev-Exp Region 1'!$G$57/'LTC Rev-Exp Region 1'!$D$9, 0)","v":{"v":0,"d":"$0.00"}}]
["LTC",null,null,{"$f":"Jurat!I$1","v":0},{"$f":"Jurat!D$33","v":"00:00:00"},"Q1","2017-03-31","Region 1","Operating Expense","Administrative Expense","Administrative","5.2","Administrative Services",{"$f":"IFERROR('LTC Rev-Exp Region 1'!$D$58/'LTC Rev-Exp Region 1'!$D$9, 0)","v":{"v":0,"d":"$0.00"}},{"$f":"IFERROR('LTC Rev-Exp Region 1'!$E$58/'LTC Rev-Exp Region 1'!$D$9, 0)","v":{"v":0,"d":"$0.00"}},{"$f":"IFERROR('LTC Rev-Exp Region 1'!$F$58/'LTC Rev-Exp Region 1'!$D$9, 0)","v":{"v":0,"d":"$0.00"}},{"$f":"IFERROR('LTC Rev-Exp Region 1'!$G$58/'LTC Rev-Exp Region 1'!$D$9, 0)","v":{"v":0,"d":"$0.00"}}]
["LTC",null,null,{"$f":"Jurat!I$1","v":0},{"$f":"Jurat!D$33","v":"00:00:00"},"Q1","2017-03-31","Region 1","Operating Expense","Administrative Expense","Administrative","5.3","Information Systems",{"$f":"IFERROR('LTC Rev-Exp Region 1'!$D$59/'LTC Rev-Exp Region 1'!$D$9, 0)","v":{"v":0,"d":"$0.00"}},{"$f":"IFERROR('LTC Rev-Exp Region 1'!$E$59/'LTC Rev-Exp Region 1'!$D$9, 0)","v":{"v":0,"d":"$0.00"}},{"$f":"IFERROR('LTC Rev-Exp Region 1'!$F$59/'LTC Rev-Exp Region 1'!$D$9, 0)","v":{"v":0,"d":"$0.00"}},{"$f":"IFERROR('LTC Rev-Exp Region 1'!$G$59/'LTC Rev-Exp Region 1'!$D$9, 0)","v":{"v":0,"d":"$0.00"}}]
["LTC",null,null,{"$f":"Jurat!I$1","v":0},{"$f":"Jurat!D$33","v":"00:00:00"},"Q1","2017-03-31","Region 1","Operating Expense","Administrative Expense","Administrative","5.4","Marketing Expenses",{"$f":"IFERROR('LTC Rev-Exp Region 1'!$D$60/'LTC Rev-Exp Region 1'!$D$9, 0)","v":{"v":0,"d":"$0.00"}},{"$f":"IFERROR('LTC Rev-Exp Region 1'!$E$60/'LTC Rev-Exp Region 1'!$D$9, 0)","v":{"v":0,"d":"$0.00"}},{"$f":"IFERROR('LTC Rev-Exp Region 1'!$F$60/'LTC Rev-Exp Region 1'!$D$9, 0)","v":{"v":0,"d":"$0.00"}},{"$f":"IFERROR('LTC Rev-Exp Region 1'!$G$60/'LTC Rev-Exp Region 1'!$D$9, 0)","v":{"v":0,"d":"$0.00"}}]
["LTC",null,null,{"$f":"Jurat!I$1","v":0},{"$f":"Jurat!D$33","v":"00:00:00"},"Q1","2017-03-31","Region 1","Operating Expense","Administrative Expense","Administrative","5.5","General  Administration",{"$f":"IFERROR('LTC Rev-Exp Region 1'!$D$61/'LTC Rev-Exp Region 1'!$D$9, 0)","v":{"v":0,"d":"$0.00"}},{"$f":"IFERROR('LTC Rev-Exp Region 1'!$E$61/'LTC Rev-Exp Region 1'!$D$9, 0)","v":{"v":0,"d":"$0.00"}},{"$f":"IFERROR('LTC Rev-Exp Region 1'!$F$61/'LTC Rev-Exp Region 1'!$D$9, 0)","v":{"v":0,"d":"$0.00"}},{"$f":"IFERROR('LTC Rev-Exp Region 1'!$G$61/'LTC Rev-Exp Region 1'!$D$9, 0)","v":{"v":0,"d":"$0.00"}}]
["LTC",null,null,{"$f":"Jurat!I$1","v":0},{"$f":"Jurat!D$33","v":"00:00:00"},"Q1","2017-03-31","Region 1","Operating Expense","Administrative Expense","Administrative","5.6","Compliance/Regulatory",{"$f":"IFERROR('LTC Rev-Exp Region 1'!$D$62/'LTC Rev-Exp Region 1'!$D$9, 0)","v":{"v":0,"d":"$0.00"}},{"$f":"IFERROR('LTC Rev-Exp Region 1'!$E$62/'LTC Rev-Exp Region 1'!$D$9, 0)","v":{"v":0,"d":"$0.00"}},{"$f":"IFERROR('LTC Rev-Exp Region 1'!$F$62/'LTC Rev-Exp Region 1'!$D$9, 0)","v":{"v":0,"d":"$0.00"}},{"$f":"IFERROR('LTC Rev-Exp Region 1'!$G$62/'LTC Rev-Exp Region 1'!$D$9, 0)","v":{"v":0,"d":"$0.00"}}]
["LTC",null,null,{"$f":"Jurat!I$1","v":0},{"$f":"Jurat!D$33","v":"00:00:00"},"Q1","2017-03-31","Region 1","Operating Expense","Taxes & Fees","Taxes & Fees","6.1","State Premium Tax",{"$f":"IFERROR('LTC Rev-Exp Region 1'!$D$64/'LTC Rev-Exp Region 1'!$D$9, 0)","v":{"v":0,"d":"$0.00"}},{"$f":"IFERROR('LTC Rev-Exp Region 1'!$E$64/'LTC Rev-Exp Region 1'!$E$9, 0)","v":{"v":0,"d":"$0.00"}},{"$f":"IFERROR('LTC Rev-Exp Region 1'!$F$64/'LTC Rev-Exp Region 1'!$F$9, 0)","v":{"v":0,"d":"$0.00"}},{"$f":"IFERROR('LTC Rev-Exp Region 1'!$G$64/'LTC Rev-Exp Region 1'!$G$9, 0)","v":{"v":0,"d":"$0.00"}}]
["LTC",null,null,{"$f":"Jurat!I$1","v":0},{"$f":"Jurat!D$33","v":"00:00:00"},"Q1","2017-03-31","Region 1","Operating Expense","Taxes & Fees","Taxes & Fees","6.2","Department of Insurance Assessments",{"$f":"IFERROR('LTC Rev-Exp Region 1'!$D$65/'LTC Rev-Exp Region 1'!$D$9, 0)","v":{"v":0,"d":"$0.00"}},{"$f":"IFERROR('LTC Rev-Exp Region 1'!$E$65/'LTC Rev-Exp Region 1'!$E$9, 0)","v":{"v":0,"d":"$0.00"}},{"$f":"IFERROR('LTC Rev-Exp Region 1'!$F$65/'LTC Rev-Exp Region 1'!$F$9, 0)","v":{"v":0,"d":"$0.00"}},{"$f":"IFERROR('LTC Rev-Exp Region 1'!$G$65/'LTC Rev-Exp Region 1'!$G$9, 0)","v":{"v":0,"d":"$0.00"}}]
["LTC",null,null,{"$f":"Jurat!I$1","v":0},{"$f":"Jurat!D$33","v":"00:00:00"},"Q1","2017-03-31","Region 1","Non-Operating Expense","Income Tax Expense","Income Tax Expense","9.0","Income Tax Expense",{"$f":"IFERROR('LTC Rev-Exp Region 1'!$D$72/'LTC Rev-Exp Region 1'!$D$9, 0)","v":{"v":0,"d":"$0.00"}},{"$f":"IFERROR('LTC Rev-Exp Region 1'!$E$72/'LTC Rev-Exp Region 1'!$E$9, 0)","v":{"v":0,"d":"$0.00"}},{"$f":"IFERROR('LTC Rev-Exp Region 1'!$F$72/'LTC Rev-Exp Region 1'!$F$9, 0)","v":{"v":0,"d":"$0.00"}},{"$f":"IFERROR('LTC Rev-Exp Region 1'!$G$72/'LTC Rev-Exp Region 1'!$G$9, 0)","v":{"v":0,"d":"$0.00"}}]
["LTC",null,null,{"$f":"Jurat!I$1","v":0},{"$f":"Jurat!D$33","v":"00:00:00"},"Q2","2017-06-30","Region 1","Operating Revenue","Capitation","Capitation",1.1,"Capitation",{"$f":"IFERROR('LTC Rev-Exp Region 1'!$H$11/'LTC Rev-Exp Region 1'!$H$9, 0)","v":{"v":0,"d":"$0.00"}},{"$f":"IFERROR('LTC Rev-Exp Region 1'!$I$11/'LTC Rev-Exp Region 1'!$I$9, 0)","v":{"v":0,"d":"$0.00"}},{"$f":"IFERROR('LTC Rev-Exp Region 1'!$J$11/'LTC Rev-Exp Region 1'!$J$9, 0)","v":{"v":0,"d":"$0.00"}},{"$f":"IFERROR('LTC Rev-Exp Region 1'!$K$11/'LTC Rev-Exp Region 1'!$K$9, 0)","v":{"v":0,"d":"$0.00"}}]
["LTC",null,null,{"$f":"Jurat!I$1","v":0},{"$f":"Jurat!D$33","v":"00:00:00"},"Q2","2017-06-30","Region 1","Operating Revenue","Capitation","NH Rate Reconciliation",1.2,"NH Rate Reconciliation",{"$f":"IFERROR('LTC Rev-Exp Region 1'!$H$12/'LTC Rev-Exp Region 1'!$H$9, 0)","v":{"v":0,"d":"$0.00"}},{"$f":"IFERROR('LTC Rev-Exp Region 1'!$I$12/'LTC Rev-Exp Region 1'!$I$9, 0)","v":{"v":0,"d":"$0.00"}},{"$f":"IFERROR('LTC Rev-Exp Region 1'!$J$12/'LTC Rev-Exp Region 1'!$J$9, 0)","v":{"v":0,"d":"$0.00"}},{"$f":"IFERROR('LTC Rev-Exp Region 1'!$K$12/'LTC Rev-Exp Region 1'!$K$9, 0)","v":{"v":0,"d":"$0.00"}}]
["LTC",null,null,{"$f":"Jurat!I$1","v":0},{"$f":"Jurat!D$33","v":"00:00:00"},"Q2","2017-06-30","Region 1","Operating Revenue","Other Revenue","Other Revenue",1.3,"Other Revenue",{"$f":"IFERROR('LTC Rev-Exp Region 1'!$H$13/'LTC Rev-Exp Region 1'!$H$9, 0)","v":{"v":0,"d":"$0.00"}},{"$f":"IFERROR('LTC Rev-Exp Region 1'!$I$13/'LTC Rev-Exp Region 1'!$I$9, 0)","v":{"v":0,"d":"$0.00"}},{"$f":"IFERROR('LTC Rev-Exp Region 1'!$J$13/'LTC Rev-Exp Region 1'!$J$9, 0)","v":{"v":0,"d":"$0.00"}},{"$f":"IFERROR('LTC Rev-Exp Region 1'!$K$13/'LTC Rev-Exp Region 1'!$K$9, 0)","v":{"v":0,"d":"$0.00"}}]
["LTC",null,null,{"$f":"Jurat!I$1","v":0},{"$f":"Jurat!D$33","v":"00:00:00"},"Q2","2017-06-30","Region 1","Operating Expense","Medical Expense","NF & Hospice","2.3","Nursing Facility FFS (Medicaid)",{"$f":"IFERROR('LTC Rev-Exp Region 1'!$H$19/'LTC Rev-Exp Region 1'!$H$9, 0)","v":{"v":0,"d":"$0.00"}},{"$f":"IFERROR('LTC Rev-Exp Region 1'!$I$19/'LTC Rev-Exp Region 1'!$I$9, 0)","v":{"v":0,"d":"$0.00"}},{"$f":"IFERROR('LTC Rev-Exp Region 1'!$J$19/'LTC Rev-Exp Region 1'!$J$9, 0)","v":{"v":0,"d":"$0.00"}},{"$f":"IFERROR('LTC Rev-Exp Region 1'!$K$19/'LTC Rev-Exp Region 1'!$K$9, 0)","v":{"v":0,"d":"$0.00"}}]
["LTC",null,null,{"$f":"Jurat!I$1","v":0},{"$f":"Jurat!D$33","v":"00:00:00"},"Q2","2017-06-30","Region 1","Operating Expense","Medical Expense","NF & Hospice","2.4","Nursing Facility FFS (Crossover)",{"$f":"IFERROR('LTC Rev-Exp Region 1'!$H$20/'LTC Rev-Exp Region 1'!$H$9, 0)","v":{"v":0,"d":"$0.00"}},{"$f":"IFERROR('LTC Rev-Exp Region 1'!$I$20/'LTC Rev-Exp Region 1'!$I$9, 0)","v":{"v":0,"d":"$0.00"}},{"$f":"IFERROR('LTC Rev-Exp Region 1'!$J$20/'LTC Rev-Exp Region 1'!$J$9, 0)","v":{"v":0,"d":"$0.00"}},{"$f":"IFERROR('LTC Rev-Exp Region 1'!$K$20/'LTC Rev-Exp Region 1'!$K$9, 0)","v":{"v":0,"d":"$0.00"}}]
["LTC",null,null,{"$f":"Jurat!I$1","v":0},{"$f":"Jurat!D$33","v":"00:00:00"},"Q2","2017-06-30","Region 1","Operating Expense","Medical Expense","NF & Hospice","2.6","Hospice FFS",{"$f":"IFERROR('LTC Rev-Exp Region 1'!$H$22/'LTC Rev-Exp Region 1'!$H$9, 0)","v":{"v":0,"d":"$0.00"}},{"$f":"IFERROR('LTC Rev-Exp Region 1'!$I$22/'LTC Rev-Exp Region 1'!$I$9, 0)","v":{"v":0,"d":"$0.00"}},{"$f":"IFERROR('LTC Rev-Exp Region 1'!$J$22/'LTC Rev-Exp Region 1'!$J$9, 0)","v":{"v":0,"d":"$0.00"}},{"$f":"IFERROR('LTC Rev-Exp Region 1'!$K$22/'LTC Rev-Exp Region 1'!$K$9, 0)","v":{"v":0,"d":"$0.00"}}]
["LTC",null,null,{"$f":"Jurat!I$1","v":0},{"$f":"Jurat!D$33","v":"00:00:00"},"Q2","2017-06-30","Region 1","Operating Expense","Medical Expense","NF & Hospice","2.7","Ending IBNP for NF & Hospice",{"$f":"IFERROR('LTC Rev-Exp Region 1'!$H$23/'LTC Rev-Exp Region 1'!$H$9, 0)","v":{"v":0,"d":"$0.00"}},{"$f":"IFERROR('LTC Rev-Exp Region 1'!$I$23/'LTC Rev-Exp Region 1'!$I$9, 0)","v":{"v":0,"d":"$0.00"}},{"$f":"IFERROR('LTC Rev-Exp Region 1'!$J$23/'LTC Rev-Exp Region 1'!$J$9, 0)","v":{"v":0,"d":"$0.00"}},{"$f":"IFERROR('LTC Rev-Exp Region 1'!$K$23/'LTC Rev-Exp Region 1'!$K$9, 0)","v":{"v":0,"d":"$0.00"}}]
["LTC",null,null,{"$f":"Jurat!I$1","v":0},{"$f":"Jurat!D$33","v":"00:00:00"},"Q2","2017-06-30","Region 1","Operating Expense","Medical Expense","NF & Hospice","2.8","NF & Hospice Subcapitated",{"$f":"IFERROR('LTC Rev-Exp Region 1'!$H$24/'LTC Rev-Exp Region 1'!$H$9, 0)","v":{"v":0,"d":"$0.00"}},{"$f":"IFERROR('LTC Rev-Exp Region 1'!$I$24/'LTC Rev-Exp Region 1'!$I$9, 0)","v":{"v":0,"d":"$0.00"}},{"$f":"IFERROR('LTC Rev-Exp Region 1'!$J$24/'LTC Rev-Exp Region 1'!$J$9, 0)","v":{"v":0,"d":"$0.00"}},{"$f":"IFERROR('LTC Rev-Exp Region 1'!$K$24/'LTC Rev-Exp Region 1'!$K$9, 0)","v":{"v":0,"d":"$0.00"}}]
["LTC",null,null,{"$f":"Jurat!I$1","v":0},{"$f":"Jurat!D$33","v":"00:00:00"},"Q2","2017-06-30","Region 1","Operating Expense","Medical Expense","NF & Hospice","2.9","NF & Hospice Settlements",{"$f":"IFERROR('LTC Rev-Exp Region 1'!$H$25/'LTC Rev-Exp Region 1'!$H$9, 0)","v":{"v":0,"d":"$0.00"}},{"$f":"IFERROR('LTC Rev-Exp Region 1'!$I$25/'LTC Rev-Exp Region 1'!$I$9, 0)","v":{"v":0,"d":"$0.00"}},{"$f":"IFERROR('LTC Rev-Exp Region 1'!$J$25/'LTC Rev-Exp Region 1'!$J$9, 0)","v":{"v":0,"d":"$0.00"}},{"$f":"IFERROR('LTC Rev-Exp Region 1'!$K$25/'LTC Rev-Exp Region 1'!$K$9, 0)","v":{"v":0,"d":"$0.00"}}]
["LTC",null,null,{"$f":"Jurat!I$1","v":0},{"$f":"Jurat!D$33","v":"00:00:00"},"Q2","2017-06-30","Region 1","Operating Expense","Medical Expense","LTC Services","2.11","Assisted Living FFS",{"$f":"IFERROR('LTC Rev-Exp Region 1'!$H$27/'LTC Rev-Exp Region 1'!$H$9, 0)","v":{"v":0,"d":"$0.00"}},{"$f":"IFERROR('LTC Rev-Exp Region 1'!$I$27/'LTC Rev-Exp Region 1'!$I$9, 0)","v":{"v":0,"d":"$0.00"}},{"$f":"IFERROR('LTC Rev-Exp Region 1'!$J$27/'LTC Rev-Exp Region 1'!$J$9, 0)","v":{"v":0,"d":"$0.00"}},{"$f":"IFERROR('LTC Rev-Exp Region 1'!$K$27/'LTC Rev-Exp Region 1'!$K$9, 0)","v":{"v":0,"d":"$0.00"}}]
["LTC",null,null,{"$f":"Jurat!I$1","v":0},{"$f":"Jurat!D$33","v":"00:00:00"},"Q2","2017-06-30","Region 1","Operating Expense","Medical Expense","LTC Services","2.12","Home Health FFS",{"$f":"IFERROR('LTC Rev-Exp Region 1'!$H$28/'LTC Rev-Exp Region 1'!$H$9, 0)","v":{"v":0,"d":"$0.00"}},{"$f":"IFERROR('LTC Rev-Exp Region 1'!$I$28/'LTC Rev-Exp Region 1'!$I$9, 0)","v":{"v":0,"d":"$0.00"}},{"$f":"IFERROR('LTC Rev-Exp Region 1'!$J$28/'LTC Rev-Exp Region 1'!$J$9, 0)","v":{"v":0,"d":"$0.00"}},{"$f":"IFERROR('LTC Rev-Exp Region 1'!$K$28/'LTC Rev-Exp Region 1'!$K$9, 0)","v":{"v":0,"d":"$0.00"}}]
["LTC",null,null,{"$f":"Jurat!I$1","v":0},{"$f":"Jurat!D$33","v":"00:00:00"},"Q2","2017-06-30","Region 1","Operating Expense","Medical Expense","LTC Services","2.13","Medical Equipment/Supplies FFS",{"$f":"IFERROR('LTC Rev-Exp Region 1'!$H$29/'LTC Rev-Exp Region 1'!$H$9, 0)","v":{"v":0,"d":"$0.00"}},{"$f":"IFERROR('LTC Rev-Exp Region 1'!$I$29/'LTC Rev-Exp Region 1'!$I$9, 0)","v":{"v":0,"d":"$0.00"}},{"$f":"IFERROR('LTC Rev-Exp Region 1'!$J$29/'LTC Rev-Exp Region 1'!$J$9, 0)","v":{"v":0,"d":"$0.00"}},{"$f":"IFERROR('LTC Rev-Exp Region 1'!$K$29/'LTC Rev-Exp Region 1'!$K$9, 0)","v":{"v":0,"d":"$0.00"}}]
["LTC",null,null,{"$f":"Jurat!I$1","v":0},{"$f":"Jurat!D$33","v":"00:00:00"},"Q2","2017-06-30","Region 1","Operating Expense","Medical Expense","LTC Services","2.14","Therapy FFS",{"$f":"IFERROR('LTC Rev-Exp Region 1'!$H$30/'LTC Rev-Exp Region 1'!$H$9, 0)","v":{"v":0,"d":"$0.00"}},{"$f":"IFERROR('LTC Rev-Exp Region 1'!$I$30/'LTC Rev-Exp Region 1'!$I$9, 0)","v":{"v":0,"d":"$0.00"}},{"$f":"IFERROR('LTC Rev-Exp Region 1'!$J$30/'LTC Rev-Exp Region 1'!$J$9, 0)","v":{"v":0,"d":"$0.00"}},{"$f":"IFERROR('LTC Rev-Exp Region 1'!$K$30/'LTC Rev-Exp Region 1'!$K$9, 0)","v":{"v":0,"d":"$0.00"}}]
["LTC",null,null,{"$f":"Jurat!I$1","v":0},{"$f":"Jurat!D$33","v":"00:00:00"},"Q2","2017-06-30","Region 1","Operating Expense","Medical Expense","LTC Services","2.15","Transportation FFS",{"$f":"IFERROR('LTC Rev-Exp Region 1'!$H$31/'LTC Rev-Exp Region 1'!$H$9, 0)","v":{"v":0,"d":"$0.00"}},{"$f":"IFERROR('LTC Rev-Exp Region 1'!$I$31/'LTC Rev-Exp Region 1'!$I$9, 0)","v":{"v":0,"d":"$0.00"}},{"$f":"IFERROR('LTC Rev-Exp Region 1'!$J$31/'LTC Rev-Exp Region 1'!$J$9, 0)","v":{"v":0,"d":"$0.00"}},{"$f":"IFERROR('LTC Rev-Exp Region 1'!$K$31/'LTC Rev-Exp Region 1'!$K$9, 0)","v":{"v":0,"d":"$0.00"}}]
["LTC",null,null,{"$f":"Jurat!I$1","v":0},{"$f":"Jurat!D$33","v":"00:00:00"},"Q2","2017-06-30","Region 1","Operating Expense","Medical Expense","LTC Services","2.16","Case Management FFS (Plan Provided)",{"$f":"IFERROR('LTC Rev-Exp Region 1'!$H$32/'LTC Rev-Exp Region 1'!$H$9, 0)","v":{"v":0,"d":"$0.00"}},{"$f":"IFERROR('LTC Rev-Exp Region 1'!$I$32/'LTC Rev-Exp Region 1'!$I$9, 0)","v":{"v":0,"d":"$0.00"}},{"$f":"IFERROR('LTC Rev-Exp Region 1'!$J$32/'LTC Rev-Exp Region 1'!$J$9, 0)","v":{"v":0,"d":"$0.00"}},{"$f":"IFERROR('LTC Rev-Exp Region 1'!$K$32/'LTC Rev-Exp Region 1'!$K$9, 0)","v":{"v":0,"d":"$0.00"}}]
["LTC",null,null,{"$f":"Jurat!I$1","v":0},{"$f":"Jurat!D$33","v":"00:00:00"},"Q2","2017-06-30","Region 1","Operating Expense","Medical Expense","LTC Services","2.17","Case Management FF (Non-Plan Provided)",{"$f":"IFERROR('LTC Rev-Exp Region 1'!$H$33/'LTC Rev-Exp Region 1'!$H$9, 0)","v":{"v":0,"d":"$0.00"}},{"$f":"IFERROR('LTC Rev-Exp Region 1'!$I$33/'LTC Rev-Exp Region 1'!$I$9, 0)","v":{"v":0,"d":"$0.00"}},{"$f":"IFERROR('LTC Rev-Exp Region 1'!$J$33/'LTC Rev-Exp Region 1'!$J$9, 0)","v":{"v":0,"d":"$0.00"}},{"$f":"IFERROR('LTC Rev-Exp Region 1'!$K$33/'LTC Rev-Exp Region 1'!$K$9, 0)","v":{"v":0,"d":"$0.00"}}]
["LTC",null,null,{"$f":"Jurat!I$1","v":0},{"$f":"Jurat!D$33","v":"00:00:00"},"Q2","2017-06-30","Region 1","Operating Expense","Medical Expense","LTC Services","2.18","HCBS FFS",{"$f":"IFERROR('LTC Rev-Exp Region 1'!$H$34/'LTC Rev-Exp Region 1'!$H$9, 0)","v":{"v":0,"d":"$0.00"}},{"$f":"IFERROR('LTC Rev-Exp Region 1'!$I$34/'LTC Rev-Exp Region 1'!$I$9, 0)","v":{"v":0,"d":"$0.00"}},{"$f":"IFERROR('LTC Rev-Exp Region 1'!$J$34/'LTC Rev-Exp Region 1'!$J$9, 0)","v":{"v":0,"d":"$0.00"}},{"$f":"IFERROR('LTC Rev-Exp Region 1'!$K$34/'LTC Rev-Exp Region 1'!$K$9, 0)","v":{"v":0,"d":"$0.00"}}]
["LTC",null,null,{"$f":"Jurat!I$1","v":0},{"$f":"Jurat!D$33","v":"00:00:00"},"Q2","2017-06-30","Region 1","Operating Expense","Medical Expense","LTC Services","2.19","Subcapitated LTC Services",{"$f":"IFERROR('LTC Rev-Exp Region 1'!$H$35/'LTC Rev-Exp Region 1'!$H$9, 0)","v":{"v":0,"d":"$0.00"}},{"$f":"IFERROR('LTC Rev-Exp Region 1'!$I$35/'LTC Rev-Exp Region 1'!$I$9, 0)","v":{"v":0,"d":"$0.00"}},{"$f":"IFERROR('LTC Rev-Exp Region 1'!$J$35/'LTC Rev-Exp Region 1'!$J$9, 0)","v":{"v":0,"d":"$0.00"}},{"$f":"IFERROR('LTC Rev-Exp Region 1'!$K$35/'LTC Rev-Exp Region 1'!$K$9, 0)","v":{"v":0,"d":"$0.00"}}]
["LTC",null,null,{"$f":"Jurat!I$1","v":0},{"$f":"Jurat!D$33","v":"00:00:00"},"Q2","2017-06-30","Region 1","Operating Expense","Medical Expense","LTC Services","2.20","Ending IBNP for Long Term Care Services",{"$f":"IFERROR('LTC Rev-Exp Region 1'!$H$36/'LTC Rev-Exp Region 1'!$H$9, 0)","v":{"v":0,"d":"$0.00"}},{"$f":"IFERROR('LTC Rev-Exp Region 1'!$I$36/'LTC Rev-Exp Region 1'!$I$9, 0)","v":{"v":0,"d":"$0.00"}},{"$f":"IFERROR('LTC Rev-Exp Region 1'!$J$36/'LTC Rev-Exp Region 1'!$J$9, 0)","v":{"v":0,"d":"$0.00"}},{"$f":"IFERROR('LTC Rev-Exp Region 1'!$K$36/'LTC Rev-Exp Region 1'!$K$9, 0)","v":{"v":0,"d":"$0.00"}}]
["LTC",null,null,{"$f":"Jurat!I$1","v":0},{"$f":"Jurat!D$33","v":"00:00:00"},"Q2","2017-06-30","Region 1","Operating Expense","Medical Expense","LTC Services","2.21","LTC Services Settlements",{"$f":"IFERROR('LTC Rev-Exp Region 1'!$H$37/'LTC Rev-Exp Region 1'!$H$9, 0)","v":{"v":0,"d":"$0.00"}},{"$f":"IFERROR('LTC Rev-Exp Region 1'!$I$37/'LTC Rev-Exp Region 1'!$I$9, 0)","v":{"v":0,"d":"$0.00"}},{"$f":"IFERROR('LTC Rev-Exp Region 1'!$J$37/'LTC Rev-Exp Region 1'!$J$9, 0)","v":{"v":0,"d":"$0.00"}},{"$f":"IFERROR('LTC Rev-Exp Region 1'!$K$37/'LTC Rev-Exp Region 1'!$K$9, 0)","v":{"v":0,"d":"$0.00"}}]
["LTC",null,null,{"$f":"Jurat!I$1","v":0},{"$f":"Jurat!D$33","v":"00:00:00"},"Q2","2017-06-30","Region 1","Operating Expense","Medical Expense","Expanded Benefits","3.1","Expanded Benefits FFS",{"$f":"IFERROR('LTC Rev-Exp Region 1'!$H$39/'LTC Rev-Exp Region 1'!$H$9, 0)","v":{"v":0,"d":"$0.00"}},{"$f":"IFERROR('LTC Rev-Exp Region 1'!$I$39/'LTC Rev-Exp Region 1'!$I$9, 0)","v":{"v":0,"d":"$0.00"}},{"$f":"IFERROR('LTC Rev-Exp Region 1'!$J$39/'LTC Rev-Exp Region 1'!$J$9, 0)","v":{"v":0,"d":"$0.00"}},{"$f":"IFERROR('LTC Rev-Exp Region 1'!$K$39/'LTC Rev-Exp Region 1'!$K$9, 0)","v":{"v":0,"d":"$0.00"}}]
["LTC",null,null,{"$f":"Jurat!I$1","v":0},{"$f":"Jurat!D$33","v":"00:00:00"},"Q2","2017-06-30","Region 1","Operating Expense","Medical Expense","Expanded Benefits","3.2","Expanded Benefits Subcapitation",{"$f":"IFERROR('LTC Rev-Exp Region 1'!$H$40/'LTC Rev-Exp Region 1'!$H$9, 0)","v":{"v":0,"d":"$0.00"}},{"$f":"IFERROR('LTC Rev-Exp Region 1'!$I$40/'LTC Rev-Exp Region 1'!$I$9, 0)","v":{"v":0,"d":"$0.00"}},{"$f":"IFERROR('LTC Rev-Exp Region 1'!$J$40/'LTC Rev-Exp Region 1'!$J$9, 0)","v":{"v":0,"d":"$0.00"}},{"$f":"IFERROR('LTC Rev-Exp Region 1'!$K$40/'LTC Rev-Exp Region 1'!$K$9, 0)","v":{"v":0,"d":"$0.00"}}]
["LTC",null,null,{"$f":"Jurat!I$1","v":0},{"$f":"Jurat!D$33","v":"00:00:00"},"Q2","2017-06-30","Region 1","Operating Expense","Medical Expense","Expanded Benefits","3.3","Ending IBNP for Expanded Benefits",{"$f":"IFERROR('LTC Rev-Exp Region 1'!$H$41/'LTC Rev-Exp Region 1'!$H$9, 0)","v":{"v":0,"d":"$0.00"}},{"$f":"IFERROR('LTC Rev-Exp Region 1'!$I$41/'LTC Rev-Exp Region 1'!$I$9, 0)","v":{"v":0,"d":"$0.00"}},{"$f":"IFERROR('LTC Rev-Exp Region 1'!$J$41/'LTC Rev-Exp Region 1'!$J$9, 0)","v":{"v":0,"d":"$0.00"}},{"$f":"IFERROR('LTC Rev-Exp Region 1'!$K$41/'LTC Rev-Exp Region 1'!$K$9, 0)","v":{"v":0,"d":"$0.00"}}]
["LTC",null,null,{"$f":"Jurat!I$1","v":0},{"$f":"Jurat!D$33","v":"00:00:00"},"Q2","2017-06-30","Region 1","Operating Expense","Medical Expense","Expanded Benefits","3.4","Expanded Benefits Settlements",{"$f":"IFERROR('LTC Rev-Exp Region 1'!$H$42/'LTC Rev-Exp Region 1'!$H$9, 0)","v":{"v":0,"d":"$0.00"}},{"$f":"IFERROR('LTC Rev-Exp Region 1'!$I$42/'LTC Rev-Exp Region 1'!$I$9, 0)","v":{"v":0,"d":"$0.00"}},{"$f":"IFERROR('LTC Rev-Exp Region 1'!$J$42/'LTC Rev-Exp Region 1'!$J$9, 0)","v":{"v":0,"d":"$0.00"}},{"$f":"IFERROR('LTC Rev-Exp Region 1'!$K$42/'LTC Rev-Exp Region 1'!$K$9, 0)","v":{"v":0,"d":"$0.00"}}]
["LTC",null,null,{"$f":"Jurat!I$1","v":0},{"$f":"Jurat!D$33","v":"00:00:00"},"Q2","2017-06-30","Region 1","Operating Expense","Medical Expense","Other Medical","4.5","TPL & Fraud/Abuse Recoveries",{"$f":"IFERROR('LTC Rev-Exp Region 1'!$H$48/'LTC Rev-Exp Region 1'!$H$9, 0)","v":{"v":0,"d":"$0.00"}},{"$f":"IFERROR('LTC Rev-Exp Region 1'!$I$48/'LTC Rev-Exp Region 1'!$I$9, 0)","v":{"v":0,"d":"$0.00"}},{"$f":"IFERROR('LTC Rev-Exp Region 1'!$J$48/'LTC Rev-Exp Region 1'!$J$9, 0)","v":{"v":0,"d":"$0.00"}},{"$f":"IFERROR('LTC Rev-Exp Region 1'!$K$48/'LTC Rev-Exp Region 1'!$K$9, 0)","v":{"v":0,"d":"$0.00"}}]
["LTC",null,null,{"$f":"Jurat!I$1","v":0},{"$f":"Jurat!D$33","v":"00:00:00"},"Q2","2017-06-30","Region 1","Operating Expense","Medical Expense","Other Medical","4.6.1","Premium Deficiency Reserve",{"$f":"IFERROR('LTC Rev-Exp Region 1'!$H$49/'LTC Rev-Exp Region 1'!$H$9, 0)","v":{"v":0,"d":"$0.00"}},{"$f":"IFERROR('LTC Rev-Exp Region 1'!$I$49/'LTC Rev-Exp Region 1'!$I$9, 0)","v":{"v":0,"d":"$0.00"}},{"$f":"IFERROR('LTC Rev-Exp Region 1'!$J$49/'LTC Rev-Exp Region 1'!$J$9, 0)","v":{"v":0,"d":"$0.00"}},{"$f":"IFERROR('LTC Rev-Exp Region 1'!$K$49/'LTC Rev-Exp Region 1'!$K$9, 0)","v":{"v":0,"d":"$0.00"}}]
["LTC",null,null,{"$f":"Jurat!I$1","v":0},{"$f":"Jurat!D$33","v":"00:00:00"},"Q2","2017-06-30","Region 1","Operating Expense","Medical Expense","Other Medical","4.8","Reinsurance Premiums",{"$f":"IFERROR('LTC Rev-Exp Region 1'!$H$51/'LTC Rev-Exp Region 1'!$H$9, 0)","v":{"v":0,"d":"$0.00"}},{"$f":"IFERROR('LTC Rev-Exp Region 1'!$I$51/'LTC Rev-Exp Region 1'!$I$9, 0)","v":{"v":0,"d":"$0.00"}},{"$f":"IFERROR('LTC Rev-Exp Region 1'!$J$51/'LTC Rev-Exp Region 1'!$J$9, 0)","v":{"v":0,"d":"$0.00"}},{"$f":"IFERROR('LTC Rev-Exp Region 1'!$K$51/'LTC Rev-Exp Region 1'!$K$9, 0)","v":{"v":0,"d":"$0.00"}}]
["LTC",null,null,{"$f":"Jurat!I$1","v":0},{"$f":"Jurat!D$33","v":"00:00:00"},"Q2","2017-06-30","Region 1","Operating Expense","Medical Expense","Other Medical","4.9","Reinsurance Recoveries",{"$f":"IFERROR('LTC Rev-Exp Region 1'!$H$52/'LTC Rev-Exp Region 1'!$H$9, 0)","v":{"v":0,"d":"$0.00"}},{"$f":"IFERROR('LTC Rev-Exp Region 1'!$I$52/'LTC Rev-Exp Region 1'!$I$9, 0)","v":{"v":0,"d":"$0.00"}},{"$f":"IFERROR('LTC Rev-Exp Region 1'!$J$52/'LTC Rev-Exp Region 1'!$J$9, 0)","v":{"v":0,"d":"$0.00"}},{"$f":"IFERROR('LTC Rev-Exp Region 1'!$K$52/'LTC Rev-Exp Region 1'!$K$9, 0)","v":{"v":0,"d":"$0.00"}}]
["LTC",null,null,{"$f":"Jurat!I$1","v":0},{"$f":"Jurat!D$33","v":"00:00:00"},"Q2","2017-06-30","Region 1","Operating Expense","Administrative Expense","Administrative","5.1","Salaries & Benefits",{"$f":"IFERROR('LTC Rev-Exp Region 1'!$H$57/'LTC Rev-Exp Region 1'!$H$9, 0)","v":{"v":0,"d":"$0.00"}},{"$f":"IFERROR('LTC Rev-Exp Region 1'!$I$57/'LTC Rev-Exp Region 1'!$I$9, 0)","v":{"v":0,"d":"$0.00"}},{"$f":"IFERROR('LTC Rev-Exp Region 1'!$J$57/'LTC Rev-Exp Region 1'!$J$9, 0)","v":{"v":0,"d":"$0.00"}},{"$f":"IFERROR('LTC Rev-Exp Region 1'!$K$57/'LTC Rev-Exp Region 1'!$K$9, 0)","v":{"v":0,"d":"$0.00"}}]
["LTC",null,null,{"$f":"Jurat!I$1","v":0},{"$f":"Jurat!D$33","v":"00:00:00"},"Q2","2017-06-30","Region 1","Operating Expense","Administrative Expense","Administrative","5.2","Administrative Services",{"$f":"IFERROR('LTC Rev-Exp Region 1'!$H$58/'LTC Rev-Exp Region 1'!$H$9, 0)","v":{"v":0,"d":"$0.00"}},{"$f":"IFERROR('LTC Rev-Exp Region 1'!$I$58/'LTC Rev-Exp Region 1'!$I$9, 0)","v":{"v":0,"d":"$0.00"}},{"$f":"IFERROR('LTC Rev-Exp Region 1'!$J$58/'LTC Rev-Exp Region 1'!$J$9, 0)","v":{"v":0,"d":"$0.00"}},{"$f":"IFERROR('LTC Rev-Exp Region 1'!$K$58/'LTC Rev-Exp Region 1'!$K$9, 0)","v":{"v":0,"d":"$0.00"}}]
["LTC",null,null,{"$f":"Jurat!I$1","v":0},{"$f":"Jurat!D$33","v":"00:00:00"},"Q2","2017-06-30","Region 1","Operating Expense","Administrative Expense","Administrative","5.3","Information Systems",{"$f":"IFERROR('LTC Rev-Exp Region 1'!$H$59/'LTC Rev-Exp Region 1'!$H$9, 0)","v":{"v":0,"d":"$0.00"}},{"$f":"IFERROR('LTC Rev-Exp Region 1'!$I$59/'LTC Rev-Exp Region 1'!$I$9, 0)","v":{"v":0,"d":"$0.00"}},{"$f":"IFERROR('LTC Rev-Exp Region 1'!$J$59/'LTC Rev-Exp Region 1'!$J$9, 0)","v":{"v":0,"d":"$0.00"}},{"$f":"IFERROR('LTC Rev-Exp Region 1'!$K$59/'LTC Rev-Exp Region 1'!$K$9, 0)","v":{"v":0,"d":"$0.00"}}]
["LTC",null,null,{"$f":"Jurat!I$1","v":0},{"$f":"Jurat!D$33","v":"00:00:00"},"Q2","2017-06-30","Region 1","Operating Expense","Administrative Expense","Administrative","5.4","Marketing Expenses",{"$f":"IFERROR('LTC Rev-Exp Region 1'!$H$60/'LTC Rev-Exp Region 1'!$H$9, 0)","v":{"v":0,"d":"$0.00"}},{"$f":"IFERROR('LTC Rev-Exp Region 1'!$I$60/'LTC Rev-Exp Region 1'!$I$9, 0)","v":{"v":0,"d":"$0.00"}},{"$f":"IFERROR('LTC Rev-Exp Region 1'!$J$60/'LTC Rev-Exp Region 1'!$J$9, 0)","v":{"v":0,"d":"$0.00"}},{"$f":"IFERROR('LTC Rev-Exp Region 1'!$K$60/'LTC Rev-Exp Region 1'!$K$9, 0)","v":{"v":0,"d":"$0.00"}}]
["LTC",null,null,{"$f":"Jurat!I$1","v":0},{"$f":"Jurat!D$33","v":"00:00:00"},"Q2","2017-06-30","Region 1","Operating Expense","Administrative Expense","Administrative","5.5","General  Administration",{"$f":"IFERROR('LTC Rev-Exp Region 1'!$H$61/'LTC Rev-Exp Region 1'!$H$9, 0)","v":{"v":0,"d":"$0.00"}},{"$f":"IFERROR('LTC Rev-Exp Region 1'!$I$61/'LTC Rev-Exp Region 1'!$I$9, 0)","v":{"v":0,"d":"$0.00"}},{"$f":"IFERROR('LTC Rev-Exp Region 1'!$J$61/'LTC Rev-Exp Region 1'!$J$9, 0)","v":{"v":0,"d":"$0.00"}},{"$f":"IFERROR('LTC Rev-Exp Region 1'!$K$61/'LTC Rev-Exp Region 1'!$K$9, 0)","v":{"v":0,"d":"$0.00"}}]
["LTC",null,null,{"$f":"Jurat!I$1","v":0},{"$f":"Jurat!D$33","v":"00:00:00"},"Q2","2017-06-30","Region 1","Operating Expense","Administrative Expense","Administrative","5.6","Compliance/Regulatory",{"$f":"IFERROR('LTC Rev-Exp Region 1'!$H$62/'LTC Rev-Exp Region 1'!$H$9, 0)","v":{"v":0,"d":"$0.00"}},{"$f":"IFERROR('LTC Rev-Exp Region 1'!$I$62/'LTC Rev-Exp Region 1'!$I$9, 0)","v":{"v":0,"d":"$0.00"}},{"$f":"IFERROR('LTC Rev-Exp Region 1'!$J$62/'LTC Rev-Exp Region 1'!$J$9, 0)","v":{"v":0,"d":"$0.00"}},{"$f":"IFERROR('LTC Rev-Exp Region 1'!$K$62/'LTC Rev-Exp Region 1'!$K$9, 0)","v":{"v":0,"d":"$0.00"}}]
["LTC",null,null,{"$f":"Jurat!I$1","v":0},{"$f":"Jurat!D$33","v":"00:00:00"},"Q2","2017-06-30","Region 1","Operating Expense","Taxes & Fees","Taxes & Fees","6.1","State Premium Tax",{"$f":"IFERROR('LTC Rev-Exp Region 1'!$H$64/'LTC Rev-Exp Region 1'!$H$9, 0)","v":{"v":0,"d":"$0.00"}},{"$f":"IFERROR('LTC Rev-Exp Region 1'!$I$64/'LTC Rev-Exp Region 1'!$I$9, 0)","v":{"v":0,"d":"$0.00"}},{"$f":"IFERROR('LTC Rev-Exp Region 1'!$J$64/'LTC Rev-Exp Region 1'!$J$9, 0)","v":{"v":0,"d":"$0.00"}},{"$f":"IFERROR('LTC Rev-Exp Region 1'!$K$64/'LTC Rev-Exp Region 1'!$K$9, 0)","v":{"v":0,"d":"$0.00"}}]
["LTC",null,null,{"$f":"Jurat!I$1","v":0},{"$f":"Jurat!D$33","v":"00:00:00"},"Q2","2017-06-30","Region 1","Operating Expense","Taxes & Fees","Taxes & Fees","6.2","Department of Insurance Assessments",{"$f":"IFERROR('LTC Rev-Exp Region 1'!$H$65/'LTC Rev-Exp Region 1'!$H$9, 0)","v":{"v":0,"d":"$0.00"}},{"$f":"IFERROR('LTC Rev-Exp Region 1'!$I$65/'LTC Rev-Exp Region 1'!$I$9, 0)","v":{"v":0,"d":"$0.00"}},{"$f":"IFERROR('LTC Rev-Exp Region 1'!$J$65/'LTC Rev-Exp Region 1'!$J$9, 0)","v":{"v":0,"d":"$0.00"}},{"$f":"IFERROR('LTC Rev-Exp Region 1'!$K$65/'LTC Rev-Exp Region 1'!$K$9, 0)","v":{"v":0,"d":"$0.00"}}]
["LTC",null,null,{"$f":"Jurat!I$1","v":0},{"$f":"Jurat!D$33","v":"00:00:00"},"Q2","2017-06-30","Region 1","Non-Operating Expense","Income Tax Expense","Income Tax Expense","9.0","Income Tax Expense",{"$f":"IFERROR('LTC Rev-Exp Region 1'!$H$66/'LTC Rev-Exp Region 1'!$H$9, 0)","v":{"v":0,"d":"$0.00"}},{"$f":"IFERROR('LTC Rev-Exp Region 1'!$I$66/'LTC Rev-Exp Region 1'!$I$9, 0)","v":{"v":0,"d":"$0.00"}},{"$f":"IFERROR('LTC Rev-Exp Region 1'!$J$66/'LTC Rev-Exp Region 1'!$J$9, 0)","v":{"v":0,"d":"$0.00"}},{"$f":"IFERROR('LTC Rev-Exp Region 1'!$K$66/'LTC Rev-Exp Region 1'!$K$9, 0)","v":{"v":0,"d":"$0.00"}}]
["LTC",null,null,{"$f":"Jurat!I$1","v":0},{"$f":"Jurat!D$33","v":"00:00:00"},"Q3","2017-09-30","Region 1","Operating Revenue","Capitation","Capitation",1.1,"Capitation",{"$f":"IFERROR('LTC Rev-Exp Region 1'!$L$11/'LTC Rev-Exp Region 1'!$L$9, 0)","v":{"v":0,"d":"$0.00"}},{"$f":"IFERROR('LTC Rev-Exp Region 1'!$M$11/'LTC Rev-Exp Region 1'!$M$9, 0)","v":{"v":0,"d":"$0.00"}},{"$f":"IFERROR('LTC Rev-Exp Region 1'!$N$11/'LTC Rev-Exp Region 1'!$N$9, 0)","v":{"v":0,"d":"$0.00"}},{"$f":"IFERROR('LTC Rev-Exp Region 1'!$O$11/'LTC Rev-Exp Region 1'!$O$9, 0)","v":{"v":0,"d":"$0.00"}}]
["LTC",null,null,{"$f":"Jurat!I$1","v":0},{"$f":"Jurat!D$33","v":"00:00:00"},"Q3","2017-09-30","Region 1","Operating Revenue","Capitation","NH Rate Reconciliation",1.2,"NH Rate Reconciliation",{"$f":"IFERROR('LTC Rev-Exp Region 1'!L$12/'LTC Rev-Exp Region 1'!L$9, 0)","v":{"v":0,"d":"$0.00"}},{"$f":"IFERROR('LTC Rev-Exp Region 1'!M$12/'LTC Rev-Exp Region 1'!M$9, 0)","v":{"v":0,"d":"$0.00"}},{"$f":"IFERROR('LTC Rev-Exp Region 1'!N$12/'LTC Rev-Exp Region 1'!N$9, 0)","v":{"v":0,"d":"$0.00"}},{"$f":"IFERROR('LTC Rev-Exp Region 1'!O$12/'LTC Rev-Exp Region 1'!O$9, 0)","v":{"v":0,"d":"$0.00"}}]
["LTC",null,null,{"$f":"Jurat!I$1","v":0},{"$f":"Jurat!D$33","v":"00:00:00"},"Q3","2017-09-30","Region 1","Operating Revenue","Other Revenue","Other Revenue",1.3,"Other Revenue",{"$f":"IFERROR('LTC Rev-Exp Region 1'!L13/'LTC Rev-Exp Region 1'!L$9, 0)","v":{"v":0,"d":"$0.00"}},{"$f":"IFERROR('LTC Rev-Exp Region 1'!M13/'LTC Rev-Exp Region 1'!M$9, 0)","v":{"v":0,"d":"$0.00"}},{"$f":"IFERROR('LTC Rev-Exp Region 1'!N13/'LTC Rev-Exp Region 1'!N$9, 0)","v":{"v":0,"d":"$0.00"}},{"$f":"IFERROR('LTC Rev-Exp Region 1'!O13/'LTC Rev-Exp Region 1'!O$9, 0)","v":{"v":0,"d":"$0.00"}}]
["LTC",null,null,{"$f":"Jurat!I$1","v":0},{"$f":"Jurat!D$33","v":"00:00:00"},"Q3","2017-09-30","Region 1","Operating Expense","Medical Expense","NF & Hospice","2.3","Nursing Facility FFS (Medicaid)",{"$f":"IFERROR('LTC Rev-Exp Region 1'!$L$19/'LTC Rev-Exp Region 1'!$L$9, 0)","v":{"v":0,"d":"$0.00"}},{"$f":"IFERROR('LTC Rev-Exp Region 1'!$M$19/'LTC Rev-Exp Region 1'!$M$9, 0)","v":{"v":0,"d":"$0.00"}},{"$f":"IFERROR('LTC Rev-Exp Region 1'!$N$19/'LTC Rev-Exp Region 1'!$N$9, 0)","v":{"v":0,"d":"$0.00"}},{"$f":"IFERROR('LTC Rev-Exp Region 1'!$O$19/'LTC Rev-Exp Region 1'!$O$9, 0)","v":{"v":0,"d":"$0.00"}}]
["LTC",null,null,{"$f":"Jurat!I$1","v":0},{"$f":"Jurat!D$33","v":"00:00:00"},"Q3","2017-09-30","Region 1","Operating Expense","Medical Expense","NF & Hospice","2.4","Nursing Facility FFS (Crossover)",{"$f":"IFERROR('LTC Rev-Exp Region 1'!$L$20/'LTC Rev-Exp Region 1'!$L$9, 0)","v":{"v":0,"d":"$0.00"}},{"$f":"IFERROR('LTC Rev-Exp Region 1'!$M$20/'LTC Rev-Exp Region 1'!$M$9, 0)","v":{"v":0,"d":"$0.00"}},{"$f":"IFERROR('LTC Rev-Exp Region 1'!$N$20/'LTC Rev-Exp Region 1'!$N$9, 0)","v":{"v":0,"d":"$0.00"}},{"$f":"IFERROR('LTC Rev-Exp Region 1'!$O$20/'LTC Rev-Exp Region 1'!$O$9, 0)","v":{"v":0,"d":"$0.00"}}]
["LTC",null,null,{"$f":"Jurat!I$1","v":0},{"$f":"Jurat!D$33","v":"00:00:00"},"Q3","2017-09-30","Region 1","Operating Expense","Medical Expense","NF & Hospice","2.6","Hospice FFS",{"$f":"IFERROR('LTC Rev-Exp Region 1'!$L$22/'LTC Rev-Exp Region 1'!$L$9, 0)","v":{"v":0,"d":"$0.00"}},{"$f":"IFERROR('LTC Rev-Exp Region 1'!$M$22/'LTC Rev-Exp Region 1'!$M$9, 0)","v":{"v":0,"d":"$0.00"}},{"$f":"IFERROR('LTC Rev-Exp Region 1'!$N$22/'LTC Rev-Exp Region 1'!$N$9, 0)","v":{"v":0,"d":"$0.00"}},{"$f":"IFERROR('LTC Rev-Exp Region 1'!$O$22/'LTC Rev-Exp Region 1'!$O$9, 0)","v":{"v":0,"d":"$0.00"}}]
["LTC",null,null,{"$f":"Jurat!I$1","v":0},{"$f":"Jurat!D$33","v":"00:00:00"},"Q3","2017-09-30","Region 1","Operating Expense","Medical Expense","NF & Hospice","2.7","Ending IBNP for NF & Hospice",{"$f":"IFERROR('LTC Rev-Exp Region 1'!$L$23/'LTC Rev-Exp Region 1'!$L$9, 0)","v":{"v":0,"d":"$0.00"}},{"$f":"IFERROR('LTC Rev-Exp Region 1'!$M$23/'LTC Rev-Exp Region 1'!$M$9, 0)","v":{"v":0,"d":"$0.00"}},{"$f":"IFERROR('LTC Rev-Exp Region 1'!$N$23/'LTC Rev-Exp Region 1'!$N$9, 0)","v":{"v":0,"d":"$0.00"}},{"$f":"IFERROR('LTC Rev-Exp Region 1'!$O$23/'LTC Rev-Exp Region 1'!$O$9, 0)","v":{"v":0,"d":"$0.00"}}]
["LTC",null,null,{"$f":"Jurat!I$1","v":0},{"$f":"Jurat!D$33","v":"00:00:00"},"Q3","2017-09-30","Region 1","Operating Expense","Medical Expense","NF & Hospice","2.8","NF & Hospice Subcapitated",{"$f":"IFERROR('LTC Rev-Exp Region 1'!$L$24/'LTC Rev-Exp Region 1'!$L$9, 0)","v":{"v":0,"d":"$0.00"}},{"$f":"IFERROR('LTC Rev-Exp Region 1'!$M$24/'LTC Rev-Exp Region 1'!$M$9, 0)","v":{"v":0,"d":"$0.00"}},{"$f":"IFERROR('LTC Rev-Exp Region 1'!$N$24/'LTC Rev-Exp Region 1'!$N$9, 0)","v":{"v":0,"d":"$0.00"}},{"$f":"IFERROR('LTC Rev-Exp Region 1'!$O$24/'LTC Rev-Exp Region 1'!$O$9, 0)","v":{"v":0,"d":"$0.00"}}]
["LTC",null,null,{"$f":"Jurat!I$1","v":0},{"$f":"Jurat!D$33","v":"00:00:00"},"Q3","2017-09-30","Region 1","Operating Expense","Medical Expense","NF & Hospice","2.9","NF & Hospice Settlements",{"$f":"IFERROR('LTC Rev-Exp Region 1'!$L$25/'LTC Rev-Exp Region 1'!$L$9, 0)","v":{"v":0,"d":"$0.00"}},{"$f":"IFERROR('LTC Rev-Exp Region 1'!$M$25/'LTC Rev-Exp Region 1'!$M$9, 0)","v":{"v":0,"d":"$0.00"}},{"$f":"IFERROR('LTC Rev-Exp Region 1'!$N$25/'LTC Rev-Exp Region 1'!$N$9, 0)","v":{"v":0,"d":"$0.00"}},{"$f":"IFERROR('LTC Rev-Exp Region 1'!$O$25/'LTC Rev-Exp Region 1'!$O$9, 0)","v":{"v":0,"d":"$0.00"}}]
["LTC",null,null,{"$f":"Jurat!I$1","v":0},{"$f":"Jurat!D$33","v":"00:00:00"},"Q3","2017-09-30","Region 1","Operating Expense","Medical Expense","LTC Services","2.11","Assisted Living FFS",{"$f":"IFERROR('LTC Rev-Exp Region 1'!$L$27/'LTC Rev-Exp Region 1'!$L$9, 0)","v":{"v":0,"d":"$0.00"}},{"$f":"IFERROR('LTC Rev-Exp Region 1'!$M$27/'LTC Rev-Exp Region 1'!$M$9, 0)","v":{"v":0,"d":"$0.00"}},{"$f":"IFERROR('LTC Rev-Exp Region 1'!$N$27/'LTC Rev-Exp Region 1'!$N$9, 0)","v":{"v":0,"d":"$0.00"}},{"$f":"IFERROR('LTC Rev-Exp Region 1'!$O$27/'LTC Rev-Exp Region 1'!$O$9, 0)","v":{"v":0,"d":"$0.00"}}]
["LTC",null,null,{"$f":"Jurat!I$1","v":0},{"$f":"Jurat!D$33","v":"00:00:00"},"Q3","2017-09-30","Region 1","Operating Expense","Medical Expense","LTC Services","2.12","Home Health FFS",{"$f":"IFERROR('LTC Rev-Exp Region 1'!$L$28/'LTC Rev-Exp Region 1'!$L$9, 0)","v":{"v":0,"d":"$0.00"}},{"$f":"IFERROR('LTC Rev-Exp Region 1'!$M$28/'LTC Rev-Exp Region 1'!$M$9, 0)","v":{"v":0,"d":"$0.00"}},{"$f":"IFERROR('LTC Rev-Exp Region 1'!$N$28/'LTC Rev-Exp Region 1'!$N$9, 0)","v":{"v":0,"d":"$0.00"}},{"$f":"IFERROR('LTC Rev-Exp Region 1'!$O$28/'LTC Rev-Exp Region 1'!$O$9, 0)","v":{"v":0,"d":"$0.00"}}]
["LTC",null,null,{"$f":"Jurat!I$1","v":0},{"$f":"Jurat!D$33","v":"00:00:00"},"Q3","2017-09-30","Region 1","Operating Expense","Medical Expense","LTC Services","2.13","Medical Equipment/Supplies FFS",{"$f":"IFERROR('LTC Rev-Exp Region 1'!$L$29/'LTC Rev-Exp Region 1'!$L$9, 0)","v":{"v":0,"d":"$0.00"}},{"$f":"IFERROR('LTC Rev-Exp Region 1'!$M$29/'LTC Rev-Exp Region 1'!$M$9, 0)","v":{"v":0,"d":"$0.00"}},{"$f":"IFERROR('LTC Rev-Exp Region 1'!$N$29/'LTC Rev-Exp Region 1'!$N$9, 0)","v":{"v":0,"d":"$0.00"}},{"$f":"IFERROR('LTC Rev-Exp Region 1'!$O$29/'LTC Rev-Exp Region 1'!$O$9, 0)","v":{"v":0,"d":"$0.00"}}]
["LTC",null,null,{"$f":"Jurat!I$1","v":0},{"$f":"Jurat!D$33","v":"00:00:00"},"Q3","2017-09-30","Region 1","Operating Expense","Medical Expense","LTC Services","2.14","Therapy FFS",{"$f":"IFERROR('LTC Rev-Exp Region 1'!$L$30/'LTC Rev-Exp Region 1'!$L$9, 0)","v":{"v":0,"d":"$0.00"}},{"$f":"IFERROR('LTC Rev-Exp Region 1'!$M$30/'LTC Rev-Exp Region 1'!$M$9, 0)","v":{"v":0,"d":"$0.00"}},{"$f":"IFERROR('LTC Rev-Exp Region 1'!$N$30/'LTC Rev-Exp Region 1'!$N$9, 0)","v":{"v":0,"d":"$0.00"}},{"$f":"IFERROR('LTC Rev-Exp Region 1'!$O$30/'LTC Rev-Exp Region 1'!$O$9, 0)","v":{"v":0,"d":"$0.00"}}]
["LTC",null,null,{"$f":"Jurat!I$1","v":0},{"$f":"Jurat!D$33","v":"00:00:00"},"Q3","2017-09-30","Region 1","Operating Expense","Medical Expense","LTC Services","2.15","Transportation FFS",{"$f":"IFERROR('LTC Rev-Exp Region 1'!$L$31/'LTC Rev-Exp Region 1'!$L$9, 0)","v":{"v":0,"d":"$0.00"}},{"$f":"IFERROR('LTC Rev-Exp Region 1'!$M$31/'LTC Rev-Exp Region 1'!$M$9, 0)","v":{"v":0,"d":"$0.00"}},{"$f":"IFERROR('LTC Rev-Exp Region 1'!$N$31/'LTC Rev-Exp Region 1'!$N$9, 0)","v":{"v":0,"d":"$0.00"}},{"$f":"IFERROR('LTC Rev-Exp Region 1'!$O$31/'LTC Rev-Exp Region 1'!$O$9, 0)","v":{"v":0,"d":"$0.00"}}]
["LTC",null,null,{"$f":"Jurat!I$1","v":0},{"$f":"Jurat!D$33","v":"00:00:00"},"Q3","2017-09-30","Region 1","Operating Expense","Medical Expense","LTC Services","2.16","Case Management FFS (Plan Provided)",{"$f":"IFERROR('LTC Rev-Exp Region 1'!$L$32/'LTC Rev-Exp Region 1'!$L$9, 0)","v":{"v":0,"d":"$0.00"}},{"$f":"IFERROR('LTC Rev-Exp Region 1'!$M$32/'LTC Rev-Exp Region 1'!$M$9, 0)","v":{"v":0,"d":"$0.00"}},{"$f":"IFERROR('LTC Rev-Exp Region 1'!$N$32/'LTC Rev-Exp Region 1'!$N$9, 0)","v":{"v":0,"d":"$0.00"}},{"$f":"IFERROR('LTC Rev-Exp Region 1'!$O$32/'LTC Rev-Exp Region 1'!$O$9, 0)","v":{"v":0,"d":"$0.00"}}]
["LTC",null,null,{"$f":"Jurat!I$1","v":0},{"$f":"Jurat!D$33","v":"00:00:00"},"Q3","2017-09-30","Region 1","Operating Expense","Medical Expense","LTC Services","2.17","Case Management FF (Non-Plan Provided)",{"$f":"IFERROR('LTC Rev-Exp Region 1'!$L$33/'LTC Rev-Exp Region 1'!$L$9, 0)","v":{"v":0,"d":"$0.00"}},{"$f":"IFERROR('LTC Rev-Exp Region 1'!$M$33/'LTC Rev-Exp Region 1'!$M$9, 0)","v":{"v":0,"d":"$0.00"}},{"$f":"IFERROR('LTC Rev-Exp Region 1'!$N$33/'LTC Rev-Exp Region 1'!$N$9, 0)","v":{"v":0,"d":"$0.00"}},{"$f":"IFERROR('LTC Rev-Exp Region 1'!$O$33/'LTC Rev-Exp Region 1'!$O$9, 0)","v":{"v":0,"d":"$0.00"}}]
["LTC",null,null,{"$f":"Jurat!I$1","v":0},{"$f":"Jurat!D$33","v":"00:00:00"},"Q3","2017-09-30","Region 1","Operating Expense","Medical Expense","LTC Services","2.18","HCBS FFS",{"$f":"IFERROR('LTC Rev-Exp Region 1'!$L$34/'LTC Rev-Exp Region 1'!$L$9, 0)","v":{"v":0,"d":"$0.00"}},{"$f":"IFERROR('LTC Rev-Exp Region 1'!$M$34/'LTC Rev-Exp Region 1'!$M$9, 0)","v":{"v":0,"d":"$0.00"}},{"$f":"IFERROR('LTC Rev-Exp Region 1'!$N$34/'LTC Rev-Exp Region 1'!$N$9, 0)","v":{"v":0,"d":"$0.00"}},{"$f":"IFERROR('LTC Rev-Exp Region 1'!$O$34/'LTC Rev-Exp Region 1'!$O$9, 0)","v":{"v":0,"d":"$0.00"}}]
["LTC",null,null,{"$f":"Jurat!I$1","v":0},{"$f":"Jurat!D$33","v":"00:00:00"},"Q3","2017-09-30","Region 1","Operating Expense","Medical Expense","LTC Services","2.19","Subcapitated LTC Services",{"$f":"IFERROR('LTC Rev-Exp Region 1'!$L$35/'LTC Rev-Exp Region 1'!$L$9, 0)","v":{"v":0,"d":"$0.00"}},{"$f":"IFERROR('LTC Rev-Exp Region 1'!$M$35/'LTC Rev-Exp Region 1'!$M$9, 0)","v":{"v":0,"d":"$0.00"}},{"$f":"IFERROR('LTC Rev-Exp Region 1'!$N$35/'LTC Rev-Exp Region 1'!$N$9, 0)","v":{"v":0,"d":"$0.00"}},{"$f":"IFERROR('LTC Rev-Exp Region 1'!$O$35/'LTC Rev-Exp Region 1'!$O$9, 0)","v":{"v":0,"d":"$0.00"}}]
["LTC",null,null,{"$f":"Jurat!I$1","v":0},{"$f":"Jurat!D$33","v":"00:00:00"},"Q3","2017-09-30","Region 1","Operating Expense","Medical Expense","LTC Services","2.20","Ending IBNP for Long Term Care Services",{"$f":"IFERROR('LTC Rev-Exp Region 1'!$L$36/'LTC Rev-Exp Region 1'!$L$9, 0)","v":{"v":0,"d":"$0.00"}},{"$f":"IFERROR('LTC Rev-Exp Region 1'!$M$36/'LTC Rev-Exp Region 1'!$M$9, 0)","v":{"v":0,"d":"$0.00"}},{"$f":"IFERROR('LTC Rev-Exp Region 1'!$N$36/'LTC Rev-Exp Region 1'!$N$9, 0)","v":{"v":0,"d":"$0.00"}},{"$f":"IFERROR('LTC Rev-Exp Region 1'!$O$36/'LTC Rev-Exp Region 1'!$O$9, 0)","v":{"v":0,"d":"$0.00"}}]
["LTC",null,null,{"$f":"Jurat!I$1","v":0},{"$f":"Jurat!D$33","v":"00:00:00"},"Q3","2017-09-30","Region 1","Operating Expense","Medical Expense","LTC Services","2.21","LTC Services Settlements",{"$f":"IFERROR('LTC Rev-Exp Region 1'!$L$37/'LTC Rev-Exp Region 1'!$L$9, 0)","v":{"v":0,"d":"$0.00"}},{"$f":"IFERROR('LTC Rev-Exp Region 1'!$M$37/'LTC Rev-Exp Region 1'!$M$9, 0)","v":{"v":0,"d":"$0.00"}},{"$f":"IFERROR('LTC Rev-Exp Region 1'!$N$37/'LTC Rev-Exp Region 1'!$N$9, 0)","v":{"v":0,"d":"$0.00"}},{"$f":"IFERROR('LTC Rev-Exp Region 1'!$O$37/'LTC Rev-Exp Region 1'!$O$9, 0)","v":{"v":0,"d":"$0.00"}}]
["LTC",null,null,{"$f":"Jurat!I$1","v":0},{"$f":"Jurat!D$33","v":"00:00:00"},"Q3","2017-09-30","Region 1","Operating Expense","Medical Expense","Expanded Benefits","3.1","Expanded Benefits FFS",{"$f":"IFERROR('LTC Rev-Exp Region 1'!$L$39/'LTC Rev-Exp Region 1'!$L$9, 0)","v":{"v":0,"d":"$0.00"}},{"$f":"IFERROR('LTC Rev-Exp Region 1'!$M$39/'LTC Rev-Exp Region 1'!$M$9, 0)","v":{"v":0,"d":"$0.00"}},{"$f":"IFERROR('LTC Rev-Exp Region 1'!$N$39/'LTC Rev-Exp Region 1'!$N$9, 0)","v":{"v":0,"d":"$0.00"}},{"$f":"IFERROR('LTC Rev-Exp Region 1'!$O$39/'LTC Rev-Exp Region 1'!$O$9, 0)","v":{"v":0,"d":"$0.00"}}]
["LTC",null,null,{"$f":"Jurat!I$1","v":0},{"$f":"Jurat!D$33","v":"00:00:00"},"Q3","2017-09-30","Region 1","Operating Expense","Medical Expense","Expanded Benefits","3.2","Expanded Benefits Subcapitation",{"$f":"IFERROR('LTC Rev-Exp Region 1'!$L$40/'LTC Rev-Exp Region 1'!$L$9, 0)","v":{"v":0,"d":"$0.00"}},{"$f":"IFERROR('LTC Rev-Exp Region 1'!$M$40/'LTC Rev-Exp Region 1'!$M$9, 0)","v":{"v":0,"d":"$0.00"}},{"$f":"IFERROR('LTC Rev-Exp Region 1'!$N$40/'LTC Rev-Exp Region 1'!$N$9, 0)","v":{"v":0,"d":"$0.00"}},{"$f":"IFERROR('LTC Rev-Exp Region 1'!$O$40/'LTC Rev-Exp Region 1'!$O$9, 0)","v":{"v":0,"d":"$0.00"}}]
["LTC",null,null,{"$f":"Jurat!I$1","v":0},{"$f":"Jurat!D$33","v":"00:00:00"},"Q3","2017-09-30","Region 1","Operating Expense","Medical Expense","Expanded Benefits","3.3","Ending IBNP for Expanded Benefits",{"$f":"IFERROR('LTC Rev-Exp Region 1'!$L$41/'LTC Rev-Exp Region 1'!$L$9, 0)","v":{"v":0,"d":"$0.00"}},{"$f":"IFERROR('LTC Rev-Exp Region 1'!$M$41/'LTC Rev-Exp Region 1'!$M$9, 0)","v":{"v":0,"d":"$0.00"}},{"$f":"IFERROR('LTC Rev-Exp Region 1'!$N$41/'LTC Rev-Exp Region 1'!$N$9, 0)","v":{"v":0,"d":"$0.00"}},{"$f":"IFERROR('LTC Rev-Exp Region 1'!$O$41/'LTC Rev-Exp Region 1'!$O$9, 0)","v":{"v":0,"d":"$0.00"}}]
["LTC",null,null,{"$f":"Jurat!I$1","v":0},{"$f":"Jurat!D$33","v":"00:00:00"},"Q3","2017-09-30","Region 1","Operating Expense","Medical Expense","Expanded Benefits","3.4","Expanded Benefits Settlements",{"$f":"IFERROR('LTC Rev-Exp Region 1'!$L$42/'LTC Rev-Exp Region 1'!$L$9, 0)","v":{"v":0,"d":"$0.00"}},{"$f":"IFERROR('LTC Rev-Exp Region 1'!$M$42/'LTC Rev-Exp Region 1'!$M$9, 0)","v":{"v":0,"d":"$0.00"}},{"$f":"IFERROR('LTC Rev-Exp Region 1'!$N$42/'LTC Rev-Exp Region 1'!$N$9, 0)","v":{"v":0,"d":"$0.00"}},{"$f":"IFERROR('LTC Rev-Exp Region 1'!$O$42/'LTC Rev-Exp Region 1'!$O$9, 0)","v":{"v":0,"d":"$0.00"}}]
["LTC",null,null,{"$f":"Jurat!I$1","v":0},{"$f":"Jurat!D$33","v":"00:00:00"},"Q3","2017-09-30","Region 1","Operating Expense","Medical Expense","Other Medical","4.5","TPL & Fraud/Abuse Recoveries",{"$f":"IFERROR('LTC Rev-Exp Region 1'!$L$48/'LTC Rev-Exp Region 1'!$L$9, 0)","v":{"v":0,"d":"$0.00"}},{"$f":"IFERROR('LTC Rev-Exp Region 1'!$M$48/'LTC Rev-Exp Region 1'!$M$9, 0)","v":{"v":0,"d":"$0.00"}},{"$f":"IFERROR('LTC Rev-Exp Region 1'!$N$48/'LTC Rev-Exp Region 1'!$N$9, 0)","v":{"v":0,"d":"$0.00"}},{"$f":"IFERROR('LTC Rev-Exp Region 1'!$O$48/'LTC Rev-Exp Region 1'!$O$9, 0)","v":{"v":0,"d":"$0.00"}}]
["LTC",null,null,{"$f":"Jurat!I$1","v":0},{"$f":"Jurat!D$33","v":"00:00:00"},"Q3","2017-09-30","Region 1","Operating Expense","Medical Expense","Other Medical","4.6.1","Premium Deficiency Reserve",{"$f":"IFERROR('LTC Rev-Exp Region 1'!$L$49/'LTC Rev-Exp Region 1'!$L$9, 0)","v":{"v":0,"d":"$0.00"}},{"$f":"IFERROR('LTC Rev-Exp Region 1'!$M$49/'LTC Rev-Exp Region 1'!$M$9, 0)","v":{"v":0,"d":"$0.00"}},{"$f":"IFERROR('LTC Rev-Exp Region 1'!$N$49/'LTC Rev-Exp Region 1'!$N$9, 0)","v":{"v":0,"d":"$0.00"}},{"$f":"IFERROR('LTC Rev-Exp Region 1'!$O$49/'LTC Rev-Exp Region 1'!$O$9, 0)","v":{"v":0,"d":"$0.00"}}]
["LTC",null,null,{"$f":"Jurat!I$1","v":0},{"$f":"Jurat!D$33","v":"00:00:00"},"Q3","2017-09-30","Region 1","Operating Expense","Medical Expense","Other Medical","4.8","Reinsurance Premiums",{"$f":"IFERROR('LTC Rev-Exp Region 1'!$L$51/'LTC Rev-Exp Region 1'!$L$9, 0)","v":{"v":0,"d":"$0.00"}},{"$f":"IFERROR('LTC Rev-Exp Region 1'!$M$51/'LTC Rev-Exp Region 1'!$M$9, 0)","v":{"v":0,"d":"$0.00"}},{"$f":"IFERROR('LTC Rev-Exp Region 1'!$N$51/'LTC Rev-Exp Region 1'!$N$9, 0)","v":{"v":0,"d":"$0.00"}},{"$f":"IFERROR('LTC Rev-Exp Region 1'!$O$51/'LTC Rev-Exp Region 1'!$O$9, 0)","v":{"v":0,"d":"$0.00"}}]
["LTC",null,null,{"$f":"Jurat!I$1","v":0},{"$f":"Jurat!D$33","v":"00:00:00"},"Q3","2017-09-30","Region 1","Operating Expense","Medical Expense","Other Medical","4.9","Reinsurance Recoveries",{"$f":"IFERROR('LTC Rev-Exp Region 1'!$L$52/'LTC Rev-Exp Region 1'!$L$9, 0)","v":{"v":0,"d":"$0.00"}},{"$f":"IFERROR('LTC Rev-Exp Region 1'!$M$52/'LTC Rev-Exp Region 1'!$M$9, 0)","v":{"v":0,"d":"$0.00"}},{"$f":"IFERROR('LTC Rev-Exp Region 1'!$N$52/'LTC Rev-Exp Region 1'!$N$9, 0)","v":{"v":0,"d":"$0.00"}},{"$f":"IFERROR('LTC Rev-Exp Region 1'!$O$52/'LTC Rev-Exp Region 1'!$O$9, 0)","v":{"v":0,"d":"$0.00"}}]
["LTC",null,null,{"$f":"Jurat!I$1","v":0},{"$f":"Jurat!D$33","v":"00:00:00"},"Q3","2017-09-30","Region 1","Operating Expense","Administrative Expense","Administrative","5.1","Salaries & Benefits",{"$f":"IFERROR('LTC Rev-Exp Region 1'!$L$57/'LTC Rev-Exp Region 1'!$L$9, 0)","v":{"v":0,"d":"$0.00"}},{"$f":"IFERROR('LTC Rev-Exp Region 1'!$M$57/'LTC Rev-Exp Region 1'!$M$9, 0)","v":{"v":0,"d":"$0.00"}},{"$f":"IFERROR('LTC Rev-Exp Region 1'!$N$57/'LTC Rev-Exp Region 1'!$N$9, 0)","v":{"v":0,"d":"$0.00"}},{"$f":"IFERROR('LTC Rev-Exp Region 1'!$O$57/'LTC Rev-Exp Region 1'!$O$9, 0)","v":{"v":0,"d":"$0.00"}}]
["LTC",null,null,{"$f":"Jurat!I$1","v":0},{"$f":"Jurat!D$33","v":"00:00:00"},"Q3","2017-09-30","Region 1","Operating Expense","Administrative Expense","Administrative","5.2","Administrative Services",{"$f":"IFERROR('LTC Rev-Exp Region 1'!$L$58/'LTC Rev-Exp Region 1'!$L$9, 0)","v":{"v":0,"d":"$0.00"}},{"$f":"IFERROR('LTC Rev-Exp Region 1'!$M$58/'LTC Rev-Exp Region 1'!$M$9, 0)","v":{"v":0,"d":"$0.00"}},{"$f":"IFERROR('LTC Rev-Exp Region 1'!$N$58/'LTC Rev-Exp Region 1'!$N$9, 0)","v":{"v":0,"d":"$0.00"}},{"$f":"IFERROR('LTC Rev-Exp Region 1'!$O$58/'LTC Rev-Exp Region 1'!$O$9, 0)","v":{"v":0,"d":"$0.00"}}]
["LTC",null,null,{"$f":"Jurat!I$1","v":0},{"$f":"Jurat!D$33","v":"00:00:00"},"Q3","2017-09-30","Region 1","Operating Expense","Administrative Expense","Administrative","5.3","Information Systems",{"$f":"IFERROR('LTC Rev-Exp Region 1'!$L$59/'LTC Rev-Exp Region 1'!$L$9, 0)","v":{"v":0,"d":"$0.00"}},{"$f":"IFERROR('LTC Rev-Exp Region 1'!$M$59/'LTC Rev-Exp Region 1'!$M$9, 0)","v":{"v":0,"d":"$0.00"}},{"$f":"IFERROR('LTC Rev-Exp Region 1'!$N$59/'LTC Rev-Exp Region 1'!$N$9, 0)","v":{"v":0,"d":"$0.00"}},{"$f":"IFERROR('LTC Rev-Exp Region 1'!$O$59/'LTC Rev-Exp Region 1'!$O$9, 0)","v":{"v":0,"d":"$0.00"}}]
["LTC",null,null,{"$f":"Jurat!I$1","v":0},{"$f":"Jurat!D$33","v":"00:00:00"},"Q3","2017-09-30","Region 1","Operating Expense","Administrative Expense","Administrative","5.4","Marketing Expenses",{"$f":"IFERROR('LTC Rev-Exp Region 1'!$L$60/'LTC Rev-Exp Region 1'!$L$9, 0)","v":{"v":0,"d":"$0.00"}},{"$f":"IFERROR('LTC Rev-Exp Region 1'!$M$60/'LTC Rev-Exp Region 1'!$M$9, 0)","v":{"v":0,"d":"$0.00"}},{"$f":"IFERROR('LTC Rev-Exp Region 1'!$N$60/'LTC Rev-Exp Region 1'!$N$9, 0)","v":{"v":0,"d":"$0.00"}},{"$f":"IFERROR('LTC Rev-Exp Region 1'!$O$60/'LTC Rev-Exp Region 1'!$O$9, 0)","v":{"v":0,"d":"$0.00"}}]
["LTC",null,null,{"$f":"Jurat!I$1","v":0},{"$f":"Jurat!D$33","v":"00:00:00"},"Q3","2017-09-30","Region 1","Operating Expense","Administrative Expense","Administrative","5.5","General  Administration",{"$f":"IFERROR('LTC Rev-Exp Region 1'!$L$61/'LTC Rev-Exp Region 1'!$L$9, 0)","v":{"v":0,"d":"$0.00"}},{"$f":"IFERROR('LTC Rev-Exp Region 1'!$M$61/'LTC Rev-Exp Region 1'!$M$9, 0)","v":{"v":0,"d":"$0.00"}},{"$f":"IFERROR('LTC Rev-Exp Region 1'!$N$61/'LTC Rev-Exp Region 1'!$N$9, 0)","v":{"v":0,"d":"$0.00"}},{"$f":"IFERROR('LTC Rev-Exp Region 1'!$O$61/'LTC Rev-Exp Region 1'!$O$9, 0)","v":{"v":0,"d":"$0.00"}}]
["LTC",null,null,{"$f":"Jurat!I$1","v":0},{"$f":"Jurat!D$33","v":"00:00:00"},"Q3","2017-09-30","Region 1","Operating Expense","Administrative Expense","Administrative","5.6","Compliance/Regulatory",{"$f":"IFERROR('LTC Rev-Exp Region 1'!$L$62/'LTC Rev-Exp Region 1'!$L$9, 0)","v":{"v":0,"d":"$0.00"}},{"$f":"IFERROR('LTC Rev-Exp Region 1'!$M$62/'LTC Rev-Exp Region 1'!$M$9, 0)","v":{"v":0,"d":"$0.00"}},{"$f":"IFERROR('LTC Rev-Exp Region 1'!$N$62/'LTC Rev-Exp Region 1'!$N$9, 0)","v":{"v":0,"d":"$0.00"}},{"$f":"IFERROR('LTC Rev-Exp Region 1'!$O$62/'LTC Rev-Exp Region 1'!$O$9, 0)","v":{"v":0,"d":"$0.00"}}]
["LTC",null,null,{"$f":"Jurat!I$1","v":0},{"$f":"Jurat!D$33","v":"00:00:00"},"Q3","2017-09-30","Region 1","Operating Expense","Taxes & Fees","Taxes & Fees","6.1","State Premium Tax",{"$f":"IFERROR('LTC Rev-Exp Region 1'!$L$64/'LTC Rev-Exp Region 1'!$L$9, 0)","v":{"v":0,"d":"$0.00"}},{"$f":"IFERROR('LTC Rev-Exp Region 1'!$M$64/'LTC Rev-Exp Region 1'!$M$9, 0)","v":{"v":0,"d":"$0.00"}},{"$f":"IFERROR('LTC Rev-Exp Region 1'!$N$64/'LTC Rev-Exp Region 1'!$N$9, 0)","v":{"v":0,"d":"$0.00"}},{"$f":"IFERROR('LTC Rev-Exp Region 1'!$O$64/'LTC Rev-Exp Region 1'!$O$9, 0)","v":{"v":0,"d":"$0.00"}}]
["LTC",null,null,{"$f":"Jurat!I$1","v":0},{"$f":"Jurat!D$33","v":"00:00:00"},"Q3","2017-09-30","Region 1","Operating Expense","Taxes & Fees","Taxes & Fees","6.2","Department of Insurance Assessments",{"$f":"IFERROR('LTC Rev-Exp Region 1'!$L$65/'LTC Rev-Exp Region 1'!$L$9, 0)","v":{"v":0,"d":"$0.00"}},{"$f":"IFERROR('LTC Rev-Exp Region 1'!$M$65/'LTC Rev-Exp Region 1'!$M$9, 0)","v":{"v":0,"d":"$0.00"}},{"$f":"IFERROR('LTC Rev-Exp Region 1'!$N$65/'LTC Rev-Exp Region 1'!$N$9, 0)","v":{"v":0,"d":"$0.00"}},{"$f":"IFERROR('LTC Rev-Exp Region 1'!$O$65/'LTC Rev-Exp Region 1'!$O$9, 0)","v":{"v":0,"d":"$0.00"}}]
["LTC",null,null,{"$f":"Jurat!I$1","v":0},{"$f":"Jurat!D$33","v":"00:00:00"},"Q3","2017-09-30","Region 1","Non-Operating Expense","Income Tax Expense","Income Tax Expense","9.0","Income Tax Expense",{"$f":"IFERROR('LTC Rev-Exp Region 1'!$L$72/'LTC Rev-Exp Region 1'!$L$9, 0)","v":{"v":0,"d":"$0.00"}},{"$f":"IFERROR('LTC Rev-Exp Region 1'!$M$72/'LTC Rev-Exp Region 1'!$M$9, 0)","v":{"v":0,"d":"$0.00"}},{"$f":"IFERROR('LTC Rev-Exp Region 1'!$N$72/'LTC Rev-Exp Region 1'!$N$9, 0)","v":{"v":0,"d":"$0.00"}},{"$f":"IFERROR('LTC Rev-Exp Region 1'!$O$72/'LTC Rev-Exp Region 1'!$O$9, 0)","v":{"v":0,"d":"$0.00"}}]
["LTC",null,null,{"$f":"Jurat!I$1","v":0},{"$f":"Jurat!D$33","v":"00:00:00"},"Q4","2017-12-31","Region 1","Operating Revenue","Capitation","Capitation",1.1,"Capitation",{"$f":"IFERROR('LTC Rev-Exp Region 1'!$P$11/'LTC Rev-Exp Region 1'!$P$9, 0)","v":{"v":0,"d":"$0.00"}},{"$f":"IFERROR('LTC Rev-Exp Region 1'!$Q$11/'LTC Rev-Exp Region 1'!$Q$9, 0)","v":{"v":0,"d":"$0.00"}},{"$f":"IFERROR('LTC Rev-Exp Region 1'!$R$11/'LTC Rev-Exp Region 1'!$R$9, 0)","v":{"v":0,"d":"$0.00"}},{"$f":"IFERROR('LTC Rev-Exp Region 1'!$S$11/'LTC Rev-Exp Region 1'!$S$9, 0)","v":{"v":0,"d":"$0.00"}}]
["LTC",null,null,{"$f":"Jurat!I$1","v":0},{"$f":"Jurat!D$33","v":"00:00:00"},"Q4","2017-12-31","Region 1","Operating Revenue","Capitation","NH Rate Reconciliation",1.2,"NH Rate Reconciliation",{"$f":"IFERROR('LTC Rev-Exp Region 1'!$P$12/'LTC Rev-Exp Region 1'!$P$9, 0)","v":{"v":0,"d":"$0.00"}},{"$f":"IFERROR('LTC Rev-Exp Region 1'!$Q$12/'LTC Rev-Exp Region 1'!$Q$9, 0)","v":{"v":0,"d":"$0.00"}},{"$f":"IFERROR('LTC Rev-Exp Region 1'!$R$12/'LTC Rev-Exp Region 1'!$R$9, 0)","v":{"v":0,"d":"$0.00"}},{"$f":"IFERROR('LTC Rev-Exp Region 1'!$S$12/'LTC Rev-Exp Region 1'!$S$9, 0)","v":{"v":0,"d":"$0.00"}}]
["LTC",null,null,{"$f":"Jurat!I$1","v":0},{"$f":"Jurat!D$33","v":"00:00:00"},"Q4","2017-12-31","Region 1","Operating Revenue","Other Revenue","Other Revenue",1.3,"Other Revenue",{"$f":"IFERROR('LTC Rev-Exp Region 1'!$P$13/'LTC Rev-Exp Region 1'!$P$9, 0)","v":{"v":0,"d":"$0.00"}},{"$f":"IFERROR('LTC Rev-Exp Region 1'!$Q$13/'LTC Rev-Exp Region 1'!$Q$9, 0)","v":{"v":0,"d":"$0.00"}},{"$f":"IFERROR('LTC Rev-Exp Region 1'!$R$13/'LTC Rev-Exp Region 1'!$R$9, 0)","v":{"v":0,"d":"$0.00"}},{"$f":"IFERROR('LTC Rev-Exp Region 1'!$S$13/'LTC Rev-Exp Region 1'!$S$9, 0)","v":{"v":0,"d":"$0.00"}}]
["LTC",null,null,{"$f":"Jurat!I$1","v":0},{"$f":"Jurat!D$33","v":"00:00:00"},"Q4","2017-12-31","Region 1","Operating Expense","Medical Expense","NF & Hospice","2.3","Nursing Facility FFS (Medicaid)",{"$f":"IFERROR('LTC Rev-Exp Region 1'!$P$19/'LTC Rev-Exp Region 1'!$P$9, 0)","v":{"v":0,"d":"$0.00"}},{"$f":"IFERROR('LTC Rev-Exp Region 1'!$Q$19/'LTC Rev-Exp Region 1'!$Q$9, 0)","v":{"v":0,"d":"$0.00"}},{"$f":"IFERROR('LTC Rev-Exp Region 1'!$R$19/'LTC Rev-Exp Region 1'!$R$9, 0)","v":{"v":0,"d":"$0.00"}},{"$f":"IFERROR('LTC Rev-Exp Region 1'!$S$19/'LTC Rev-Exp Region 1'!$S$9, 0)","v":{"v":0,"d":"$0.00"}}]
["LTC",null,null,{"$f":"Jurat!I$1","v":0},{"$f":"Jurat!D$33","v":"00:00:00"},"Q4","2017-12-31","Region 1","Operating Expense","Medical Expense","NF & Hospice","2.4","Nursing Facility FFS (Crossover)",{"$f":"IFERROR('LTC Rev-Exp Region 1'!$P$20/'LTC Rev-Exp Region 1'!$P$9, 0)","v":{"v":0,"d":"$0.00"}},{"$f":"IFERROR('LTC Rev-Exp Region 1'!$Q$20/'LTC Rev-Exp Region 1'!$Q$9, 0)","v":{"v":0,"d":"$0.00"}},{"$f":"IFERROR('LTC Rev-Exp Region 1'!$R$20/'LTC Rev-Exp Region 1'!$R$9, 0)","v":{"v":0,"d":"$0.00"}},{"$f":"IFERROR('LTC Rev-Exp Region 1'!$S$20/'LTC Rev-Exp Region 1'!$S$9, 0)","v":{"v":0,"d":"$0.00"}}]
["LTC",null,null,{"$f":"Jurat!I$1","v":0},{"$f":"Jurat!D$33","v":"00:00:00"},"Q4","2017-12-31","Region 1","Operating Expense","Medical Expense","NF & Hospice","2.6","Hospice FFS",{"$f":"IFERROR('LTC Rev-Exp Region 1'!$P$22/'LTC Rev-Exp Region 1'!$P$9, 0)","v":{"v":0,"d":"$0.00"}},{"$f":"IFERROR('LTC Rev-Exp Region 1'!$Q$22/'LTC Rev-Exp Region 1'!$Q$9, 0)","v":{"v":0,"d":"$0.00"}},{"$f":"IFERROR('LTC Rev-Exp Region 1'!$R$22/'LTC Rev-Exp Region 1'!$R$9, 0)","v":{"v":0,"d":"$0.00"}},{"$f":"IFERROR('LTC Rev-Exp Region 1'!$S$22/'LTC Rev-Exp Region 1'!$S$9, 0)","v":{"v":0,"d":"$0.00"}}]
["LTC",null,null,{"$f":"Jurat!I$1","v":0},{"$f":"Jurat!D$33","v":"00:00:00"},"Q4","2017-12-31","Region 1","Operating Expense","Medical Expense","NF & Hospice","2.7","Ending IBNP for NF & Hospice",{"$f":"IFERROR('LTC Rev-Exp Region 1'!$P$23/'LTC Rev-Exp Region 1'!$P$9, 0)","v":{"v":0,"d":"$0.00"}},{"$f":"IFERROR('LTC Rev-Exp Region 1'!$Q$23/'LTC Rev-Exp Region 1'!$Q$9, 0)","v":{"v":0,"d":"$0.00"}},{"$f":"IFERROR('LTC Rev-Exp Region 1'!$R$23/'LTC Rev-Exp Region 1'!$R$9, 0)","v":{"v":0,"d":"$0.00"}},{"$f":"IFERROR('LTC Rev-Exp Region 1'!$S$23/'LTC Rev-Exp Region 1'!$S$9, 0)","v":{"v":0,"d":"$0.00"}}]
["LTC",null,null,{"$f":"Jurat!I$1","v":0},{"$f":"Jurat!D$33","v":"00:00:00"},"Q4","2017-12-31","Region 1","Operating Expense","Medical Expense","NF & Hospice","2.8","NF & Hospice Subcapitated",{"$f":"IFERROR('LTC Rev-Exp Region 1'!$P$24/'LTC Rev-Exp Region 1'!$P$9, 0)","v":{"v":0,"d":"$0.00"}},{"$f":"IFERROR('LTC Rev-Exp Region 1'!$Q$24/'LTC Rev-Exp Region 1'!$Q$9, 0)","v":{"v":0,"d":"$0.00"}},{"$f":"IFERROR('LTC Rev-Exp Region 1'!$R$24/'LTC Rev-Exp Region 1'!$R$9, 0)","v":{"v":0,"d":"$0.00"}},{"$f":"IFERROR('LTC Rev-Exp Region 1'!$S$24/'LTC Rev-Exp Region 1'!$S$9, 0)","v":{"v":0,"d":"$0.00"}}]
["LTC",null,null,{"$f":"Jurat!I$1","v":0},{"$f":"Jurat!D$33","v":"00:00:00"},"Q4","2017-12-31","Region 1","Operating Expense","Medical Expense","NF & Hospice","2.9","NF & Hospice Settlements",{"$f":"IFERROR('LTC Rev-Exp Region 1'!$P$25/'LTC Rev-Exp Region 1'!$P$9, 0)","v":{"v":0,"d":"$0.00"}},{"$f":"IFERROR('LTC Rev-Exp Region 1'!$Q$25/'LTC Rev-Exp Region 1'!$Q$9, 0)","v":{"v":0,"d":"$0.00"}},{"$f":"IFERROR('LTC Rev-Exp Region 1'!$R$25/'LTC Rev-Exp Region 1'!$R$9, 0)","v":{"v":0,"d":"$0.00"}},{"$f":"IFERROR('LTC Rev-Exp Region 1'!$S$25/'LTC Rev-Exp Region 1'!$S$9, 0)","v":{"v":0,"d":"$0.00"}}]
["LTC",null,null,{"$f":"Jurat!I$1","v":0},{"$f":"Jurat!D$33","v":"00:00:00"},"Q4","2017-12-31","Region 1","Operating Expense","Medical Expense","LTC Services","2.11","Assisted Living FFS",{"$f":"IFERROR('LTC Rev-Exp Region 1'!$P$27/'LTC Rev-Exp Region 1'!$P$9, 0)","v":{"v":0,"d":"$0.00"}},{"$f":"IFERROR('LTC Rev-Exp Region 1'!$Q$27/'LTC Rev-Exp Region 1'!$Q$9, 0)","v":{"v":0,"d":"$0.00"}},{"$f":"IFERROR('LTC Rev-Exp Region 1'!$R$27/'LTC Rev-Exp Region 1'!$R$9, 0)","v":{"v":0,"d":"$0.00"}},{"$f":"IFERROR('LTC Rev-Exp Region 1'!$S$27/'LTC Rev-Exp Region 1'!$S$9, 0)","v":{"v":0,"d":"$0.00"}}]
["LTC",null,null,{"$f":"Jurat!I$1","v":0},{"$f":"Jurat!D$33","v":"00:00:00"},"Q4","2017-12-31","Region 1","Operating Expense","Medical Expense","LTC Services","2.12","Home Health FFS",{"$f":"IFERROR('LTC Rev-Exp Region 1'!$P$28/'LTC Rev-Exp Region 1'!$P$9, 0)","v":{"v":0,"d":"$0.00"}},{"$f":"IFERROR('LTC Rev-Exp Region 1'!$Q$28/'LTC Rev-Exp Region 1'!$Q$9, 0)","v":{"v":0,"d":"$0.00"}},{"$f":"IFERROR('LTC Rev-Exp Region 1'!$R$28/'LTC Rev-Exp Region 1'!$R$9, 0)","v":{"v":0,"d":"$0.00"}},{"$f":"IFERROR('LTC Rev-Exp Region 1'!$S$28/'LTC Rev-Exp Region 1'!$S$9, 0)","v":{"v":0,"d":"$0.00"}}]
["LTC",null,null,{"$f":"Jurat!I$1","v":0},{"$f":"Jurat!D$33","v":"00:00:00"},"Q4","2017-12-31","Region 1","Operating Expense","Medical Expense","LTC Services","2.13","Medical Equipment/Supplies FFS",{"$f":"IFERROR('LTC Rev-Exp Region 1'!$P$29/'LTC Rev-Exp Region 1'!$P$9, 0)","v":{"v":0,"d":"$0.00"}},{"$f":"IFERROR('LTC Rev-Exp Region 1'!$Q$29/'LTC Rev-Exp Region 1'!$Q$9, 0)","v":{"v":0,"d":"$0.00"}},{"$f":"IFERROR('LTC Rev-Exp Region 1'!$R$29/'LTC Rev-Exp Region 1'!$R$9, 0)","v":{"v":0,"d":"$0.00"}},{"$f":"IFERROR('LTC Rev-Exp Region 1'!$S$29/'LTC Rev-Exp Region 1'!$S$9, 0)","v":{"v":0,"d":"$0.00"}}]
["LTC",null,null,{"$f":"Jurat!I$1","v":0},{"$f":"Jurat!D$33","v":"00:00:00"},"Q4","2017-12-31","Region 1","Operating Expense","Medical Expense","LTC Services","2.14","Therapy FFS",{"$f":"IFERROR('LTC Rev-Exp Region 1'!$P$30/'LTC Rev-Exp Region 1'!$P$9, 0)","v":{"v":0,"d":"$0.00"}},{"$f":"IFERROR('LTC Rev-Exp Region 1'!$Q$30/'LTC Rev-Exp Region 1'!$Q$9, 0)","v":{"v":0,"d":"$0.00"}},{"$f":"IFERROR('LTC Rev-Exp Region 1'!$R$30/'LTC Rev-Exp Region 1'!$R$9, 0)","v":{"v":0,"d":"$0.00"}},{"$f":"IFERROR('LTC Rev-Exp Region 1'!$S$30/'LTC Rev-Exp Region 1'!$S$9, 0)","v":{"v":0,"d":"$0.00"}}]
["LTC",null,null,{"$f":"Jurat!I$1","v":0},{"$f":"Jurat!D$33","v":"00:00:00"},"Q4","2017-12-31","Region 1","Operating Expense","Medical Expense","LTC Services","2.15","Transportation FFS",{"$f":"IFERROR('LTC Rev-Exp Region 1'!$P$31/'LTC Rev-Exp Region 1'!$P$9, 0)","v":{"v":0,"d":"$0.00"}},{"$f":"IFERROR('LTC Rev-Exp Region 1'!$Q$31/'LTC Rev-Exp Region 1'!$Q$9, 0)","v":{"v":0,"d":"$0.00"}},{"$f":"IFERROR('LTC Rev-Exp Region 1'!$R$31/'LTC Rev-Exp Region 1'!$R$9, 0)","v":{"v":0,"d":"$0.00"}},{"$f":"IFERROR('LTC Rev-Exp Region 1'!$S$31/'LTC Rev-Exp Region 1'!$S$9, 0)","v":{"v":0,"d":"$0.00"}}]
["LTC",null,null,{"$f":"Jurat!I$1","v":0},{"$f":"Jurat!D$33","v":"00:00:00"},"Q4","2017-12-31","Region 1","Operating Expense","Medical Expense","LTC Services","2.16","Case Management FFS (Plan Provided)",{"$f":"IFERROR('LTC Rev-Exp Region 1'!$P$32/'LTC Rev-Exp Region 1'!$P$9, 0)","v":{"v":0,"d":"$0.00"}},{"$f":"IFERROR('LTC Rev-Exp Region 1'!$Q$32/'LTC Rev-Exp Region 1'!$Q$9, 0)","v":{"v":0,"d":"$0.00"}},{"$f":"IFERROR('LTC Rev-Exp Region 1'!$R$32/'LTC Rev-Exp Region 1'!$R$9, 0)","v":{"v":0,"d":"$0.00"}},{"$f":"IFERROR('LTC Rev-Exp Region 1'!$S$32/'LTC Rev-Exp Region 1'!$S$9, 0)","v":{"v":0,"d":"$0.00"}}]
["LTC",null,null,{"$f":"Jurat!I$1","v":0},{"$f":"Jurat!D$33","v":"00:00:00"},"Q4","2017-12-31","Region 1","Operating Expense","Medical Expense","LTC Services","2.17","Case Management FF (Non-Plan Provided)",{"$f":"IFERROR('LTC Rev-Exp Region 1'!$P$33/'LTC Rev-Exp Region 1'!$P$9, 0)","v":{"v":0,"d":"$0.00"}},{"$f":"IFERROR('LTC Rev-Exp Region 1'!$Q$33/'LTC Rev-Exp Region 1'!$Q$9, 0)","v":{"v":0,"d":"$0.00"}},{"$f":"IFERROR('LTC Rev-Exp Region 1'!$R$33/'LTC Rev-Exp Region 1'!$R$9, 0)","v":{"v":0,"d":"$0.00"}},{"$f":"IFERROR('LTC Rev-Exp Region 1'!$S$33/'LTC Rev-Exp Region 1'!$S$9, 0)","v":{"v":0,"d":"$0.00"}}]
["LTC",null,null,{"$f":"Jurat!I$1","v":0},{"$f":"Jurat!D$33","v":"00:00:00"},"Q4","2017-12-31","Region 1","Operating Expense","Medical Expense","LTC Services","2.18","HCBS FFS",{"$f":"IFERROR('LTC Rev-Exp Region 1'!$P$34/'LTC Rev-Exp Region 1'!$P$9, 0)","v":{"v":0,"d":"$0.00"}},{"$f":"IFERROR('LTC Rev-Exp Region 1'!$Q$34/'LTC Rev-Exp Region 1'!$Q$9, 0)","v":{"v":0,"d":"$0.00"}},{"$f":"IFERROR('LTC Rev-Exp Region 1'!$R$34/'LTC Rev-Exp Region 1'!$R$9, 0)","v":{"v":0,"d":"$0.00"}},{"$f":"IFERROR('LTC Rev-Exp Region 1'!$S$34/'LTC Rev-Exp Region 1'!$S$9, 0)","v":{"v":0,"d":"$0.00"}}]
["LTC",null,null,{"$f":"Jurat!I$1","v":0},{"$f":"Jurat!D$33","v":"00:00:00"},"Q4","2017-12-31","Region 1","Operating Expense","Medical Expense","LTC Services","2.19","Subcapitated LTC Services",{"$f":"IFERROR('LTC Rev-Exp Region 1'!$P$35/'LTC Rev-Exp Region 1'!$P$9, 0)","v":{"v":0,"d":"$0.00"}},{"$f":"IFERROR('LTC Rev-Exp Region 1'!$Q$35/'LTC Rev-Exp Region 1'!$Q$9, 0)","v":{"v":0,"d":"$0.00"}},{"$f":"IFERROR('LTC Rev-Exp Region 1'!$R$35/'LTC Rev-Exp Region 1'!$R$9, 0)","v":{"v":0,"d":"$0.00"}},{"$f":"IFERROR('LTC Rev-Exp Region 1'!$S$35/'LTC Rev-Exp Region 1'!$S$9, 0)","v":{"v":0,"d":"$0.00"}}]
["LTC",null,null,{"$f":"Jurat!I$1","v":0},{"$f":"Jurat!D$33","v":"00:00:00"},"Q4","2017-12-31","Region 1","Operating Expense","Medical Expense","LTC Services","2.20","Ending IBNP for Long Term Care Services",{"$f":"IFERROR('LTC Rev-Exp Region 1'!$P$36/'LTC Rev-Exp Region 1'!$P$9, 0)","v":{"v":0,"d":"$0.00"}},{"$f":"IFERROR('LTC Rev-Exp Region 1'!$Q$36/'LTC Rev-Exp Region 1'!$Q$9, 0)","v":{"v":0,"d":"$0.00"}},{"$f":"IFERROR('LTC Rev-Exp Region 1'!$R$36/'LTC Rev-Exp Region 1'!$R$9, 0)","v":{"v":0,"d":"$0.00"}},{"$f":"IFERROR('LTC Rev-Exp Region 1'!$S$36/'LTC Rev-Exp Region 1'!$S$9, 0)","v":{"v":0,"d":"$0.00"}}]
["LTC",null,null,{"$f":"Jurat!I$1","v":0},{"$f":"Jurat!D$33","v":"00:00:00"},"Q4","2017-12-31","Region 1","Operating Expense","Medical Expense","LTC Services","2.21","LTC Services Settlements",{"$f":"IFERROR('LTC Rev-Exp Region 1'!$P$37/'LTC Rev-Exp Region 1'!$P$9, 0)","v":{"v":0,"d":"$0.00"}},{"$f":"IFERROR('LTC Rev-Exp Region 1'!$Q$37/'LTC Rev-Exp Region 1'!$Q$9, 0)","v":{"v":0,"d":"$0.00"}},{"$f":"IFERROR('LTC Rev-Exp Region 1'!$R$37/'LTC Rev-Exp Region 1'!$R$9, 0)","v":{"v":0,"d":"$0.00"}},{"$f":"IFERROR('LTC Rev-Exp Region 1'!$S$37/'LTC Rev-Exp Region 1'!$S$9, 0)","v":{"v":0,"d":"$0.00"}}]
["LTC",null,null,{"$f":"Jurat!I$1","v":0},{"$f":"Jurat!D$33","v":"00:00:00"},"Q4","2017-12-31","Region 1","Operating Expense","Medical Expense","Expanded Benefits","3.1","Expanded Benefits FFS",{"$f":"IFERROR('LTC Rev-Exp Region 1'!$P$39/'LTC Rev-Exp Region 1'!$P$9, 0)","v":{"v":0,"d":"$0.00"}},{"$f":"IFERROR('LTC Rev-Exp Region 1'!$Q$39/'LTC Rev-Exp Region 1'!$Q$9, 0)","v":{"v":0,"d":"$0.00"}},{"$f":"IFERROR('LTC Rev-Exp Region 1'!$R$39/'LTC Rev-Exp Region 1'!$R$9, 0)","v":{"v":0,"d":"$0.00"}},{"$f":"IFERROR('LTC Rev-Exp Region 1'!$S$39/'LTC Rev-Exp Region 1'!$S$9, 0)","v":{"v":0,"d":"$0.00"}}]
["LTC",null,null,{"$f":"Jurat!I$1","v":0},{"$f":"Jurat!D$33","v":"00:00:00"},"Q4","2017-12-31","Region 1","Operating Expense","Medical Expense","Expanded Benefits","3.2","Expanded Benefits Subcapitation",{"$f":"IFERROR('LTC Rev-Exp Region 1'!$P$40/'LTC Rev-Exp Region 1'!$P$9, 0)","v":{"v":0,"d":"$0.00"}},{"$f":"IFERROR('LTC Rev-Exp Region 1'!$Q$40/'LTC Rev-Exp Region 1'!$Q$9, 0)","v":{"v":0,"d":"$0.00"}},{"$f":"IFERROR('LTC Rev-Exp Region 1'!$R$40/'LTC Rev-Exp Region 1'!$R$9, 0)","v":{"v":0,"d":"$0.00"}},{"$f":"IFERROR('LTC Rev-Exp Region 1'!$S$40/'LTC Rev-Exp Region 1'!$S$9, 0)","v":{"v":0,"d":"$0.00"}}]
["LTC",null,null,{"$f":"Jurat!I$1","v":0},{"$f":"Jurat!D$33","v":"00:00:00"},"Q4","2017-12-31","Region 1","Operating Expense","Medical Expense","Expanded Benefits","3.3","Ending IBNP for Expanded Benefits",{"$f":"IFERROR('LTC Rev-Exp Region 1'!$P$41/'LTC Rev-Exp Region 1'!$P$9, 0)","v":{"v":0,"d":"$0.00"}},{"$f":"IFERROR('LTC Rev-Exp Region 1'!$Q$41/'LTC Rev-Exp Region 1'!$Q$9, 0)","v":{"v":0,"d":"$0.00"}},{"$f":"IFERROR('LTC Rev-Exp Region 1'!$R$41/'LTC Rev-Exp Region 1'!$R$9, 0)","v":{"v":0,"d":"$0.00"}},{"$f":"IFERROR('LTC Rev-Exp Region 1'!$S$41/'LTC Rev-Exp Region 1'!$S$9, 0)","v":{"v":0,"d":"$0.00"}}]
["LTC",null,null,{"$f":"Jurat!I$1","v":0},{"$f":"Jurat!D$33","v":"00:00:00"},"Q4","2017-12-31","Region 1","Operating Expense","Medical Expense","Expanded Benefits","3.4","Expanded Benefits Settlements",{"$f":"IFERROR('LTC Rev-Exp Region 1'!$P$42/'LTC Rev-Exp Region 1'!$P$9, 0)","v":{"v":0,"d":"$0.00"}},{"$f":"IFERROR('LTC Rev-Exp Region 1'!$Q$42/'LTC Rev-Exp Region 1'!$Q$9, 0)","v":{"v":0,"d":"$0.00"}},{"$f":"IFERROR('LTC Rev-Exp Region 1'!$R$42/'LTC Rev-Exp Region 1'!$R$9, 0)","v":{"v":0,"d":"$0.00"}},{"$f":"IFERROR('LTC Rev-Exp Region 1'!$S$42/'LTC Rev-Exp Region 1'!$S$9, 0)","v":{"v":0,"d":"$0.00"}}]
["LTC",null,null,{"$f":"Jurat!I$1","v":0},{"$f":"Jurat!D$33","v":"00:00:00"},"Q4","2017-12-31","Region 1","Operating Expense","Medical Expense","Other Medical","4.5","TPL & Fraud/Abuse Recoveries",{"$f":"IFERROR('LTC Rev-Exp Region 1'!$P$48/'LTC Rev-Exp Region 1'!$P$9, 0)","v":{"v":0,"d":"$0.00"}},{"$f":"IFERROR('LTC Rev-Exp Region 1'!$Q$48/'LTC Rev-Exp Region 1'!$Q$9, 0)","v":{"v":0,"d":"$0.00"}},{"$f":"IFERROR('LTC Rev-Exp Region 1'!$R$48/'LTC Rev-Exp Region 1'!$R$9, 0)","v":{"v":0,"d":"$0.00"}},{"$f":"IFERROR('LTC Rev-Exp Region 1'!$S$48/'LTC Rev-Exp Region 1'!$S$9, 0)","v":{"v":0,"d":"$0.00"}}]
["LTC",null,null,{"$f":"Jurat!I$1","v":0},{"$f":"Jurat!D$33","v":"00:00:00"},"Q4","2017-12-31","Region 1","Operating Expense","Medical Expense","Other Medical","4.6.1","Premium Deficiency Reserve",{"$f":"IFERROR('LTC Rev-Exp Region 1'!$P$49/'LTC Rev-Exp Region 1'!$P$9, 0)","v":{"v":0,"d":"$0.00"}},{"$f":"IFERROR('LTC Rev-Exp Region 1'!$Q$49/'LTC Rev-Exp Region 1'!$Q$9, 0)","v":{"v":0,"d":"$0.00"}},{"$f":"IFERROR('LTC Rev-Exp Region 1'!$R$49/'LTC Rev-Exp Region 1'!$R$9, 0)","v":{"v":0,"d":"$0.00"}},{"$f":"IFERROR('LTC Rev-Exp Region 1'!$S$49/'LTC Rev-Exp Region 1'!$S$9, 0)","v":{"v":0,"d":"$0.00"}}]
["LTC",null,null,{"$f":"Jurat!I$1","v":0},{"$f":"Jurat!D$33","v":"00:00:00"},"Q4","2017-12-31","Region 1","Operating Expense","Medical Expense","Other Medical","4.8","Reinsurance Premiums",{"$f":"IFERROR('LTC Rev-Exp Region 1'!$P$51/'LTC Rev-Exp Region 1'!$P$9, 0)","v":{"v":0,"d":"$0.00"}},{"$f":"IFERROR('LTC Rev-Exp Region 1'!$Q$51/'LTC Rev-Exp Region 1'!$Q$9, 0)","v":{"v":0,"d":"$0.00"}},{"$f":"IFERROR('LTC Rev-Exp Region 1'!$R$51/'LTC Rev-Exp Region 1'!$R$9, 0)","v":{"v":0,"d":"$0.00"}},{"$f":"IFERROR('LTC Rev-Exp Region 1'!$S$51/'LTC Rev-Exp Region 1'!$S$9, 0)","v":{"v":0,"d":"$0.00"}}]
["LTC",null,null,{"$f":"Jurat!I$1","v":0},{"$f":"Jurat!D$33","v":"00:00:00"},"Q4","2017-12-31","Region 1","Operating Expense","Medical Expense","Other Medical","4.9","Reinsurance Recoveries",{"$f":"IFERROR('LTC Rev-Exp Region 1'!$P$52/'LTC Rev-Exp Region 1'!$P$9, 0)","v":{"v":0,"d":"$0.00"}},{"$f":"IFERROR('LTC Rev-Exp Region 1'!$Q$52/'LTC Rev-Exp Region 1'!$Q$9, 0)","v":{"v":0,"d":"$0.00"}},{"$f":"IFERROR('LTC Rev-Exp Region 1'!$R$52/'LTC Rev-Exp Region 1'!$R$9, 0)","v":{"v":0,"d":"$0.00"}},{"$f":"IFERROR('LTC Rev-Exp Region 1'!$S$52/'LTC Rev-Exp Region 1'!$S$9, 0)","v":{"v":0,"d":"$0.00"}}]
["LTC",null,null,{"$f":"Jurat!I$1","v":0},{"$f":"Jurat!D$33","v":"00:00:00"},"Q4","2017-12-31","Region 1","Operating Expense","Administrative Expense","Administrative","5.1","Salaries & Benefits",{"$f":"IFERROR('LTC Rev-Exp Region 1'!$P$57/'LTC Rev-Exp Region 1'!$P$9, 0)","v":{"v":0,"d":"$0.00"}},{"$f":"IFERROR('LTC Rev-Exp Region 1'!$Q$57/'LTC Rev-Exp Region 1'!$Q$9, 0)","v":{"v":0,"d":"$0.00"}},{"$f":"IFERROR('LTC Rev-Exp Region 1'!$R$57/'LTC Rev-Exp Region 1'!$R$9, 0)","v":{"v":0,"d":"$0.00"}},{"$f":"IFERROR('LTC Rev-Exp Region 1'!$S$57/'LTC Rev-Exp Region 1'!$S$9, 0)","v":{"v":0,"d":"$0.00"}}]
["LTC",null,null,{"$f":"Jurat!I$1","v":0},{"$f":"Jurat!D$33","v":"00:00:00"},"Q4","2017-12-31","Region 1","Operating Expense","Administrative Expense","Administrative","5.2","Administrative Services",{"$f":"IFERROR('LTC Rev-Exp Region 1'!$P$58/'LTC Rev-Exp Region 1'!$P$9, 0)","v":{"v":0,"d":"$0.00"}},{"$f":"IFERROR('LTC Rev-Exp Region 1'!$Q$58/'LTC Rev-Exp Region 1'!$Q$9, 0)","v":{"v":0,"d":"$0.00"}},{"$f":"IFERROR('LTC Rev-Exp Region 1'!$R$58/'LTC Rev-Exp Region 1'!$R$9, 0)","v":{"v":0,"d":"$0.00"}},{"$f":"IFERROR('LTC Rev-Exp Region 1'!$S$58/'LTC Rev-Exp Region 1'!$S$9, 0)","v":{"v":0,"d":"$0.00"}}]
["LTC",null,null,{"$f":"Jurat!I$1","v":0},{"$f":"Jurat!D$33","v":"00:00:00"},"Q4","2017-12-31","Region 1","Operating Expense","Administrative Expense","Administrative","5.3","Information Systems",{"$f":"IFERROR('LTC Rev-Exp Region 1'!$P$59/'LTC Rev-Exp Region 1'!$P$9, 0)","v":{"v":0,"d":"$0.00"}},{"$f":"IFERROR('LTC Rev-Exp Region 1'!$Q$59/'LTC Rev-Exp Region 1'!$Q$9, 0)","v":{"v":0,"d":"$0.00"}},{"$f":"IFERROR('LTC Rev-Exp Region 1'!$R$59/'LTC Rev-Exp Region 1'!$R$9, 0)","v":{"v":0,"d":"$0.00"}},{"$f":"IFERROR('LTC Rev-Exp Region 1'!$S$59/'LTC Rev-Exp Region 1'!$S$9, 0)","v":{"v":0,"d":"$0.00"}}]
["LTC",null,null,{"$f":"Jurat!I$1","v":0},{"$f":"Jurat!D$33","v":"00:00:00"},"Q4","2017-12-31","Region 1","Operating Expense","Administrative Expense","Administrative","5.4","Marketing Expenses",{"$f":"IFERROR('LTC Rev-Exp Region 1'!$P$60/'LTC Rev-Exp Region 1'!$P$9, 0)","v":{"v":0,"d":"$0.00"}},{"$f":"IFERROR('LTC Rev-Exp Region 1'!$Q$60/'LTC Rev-Exp Region 1'!$Q$9, 0)","v":{"v":0,"d":"$0.00"}},{"$f":"IFERROR('LTC Rev-Exp Region 1'!$R$60/'LTC Rev-Exp Region 1'!$R$9, 0)","v":{"v":0,"d":"$0.00"}},{"$f":"IFERROR('LTC Rev-Exp Region 1'!$S$60/'LTC Rev-Exp Region 1'!$S$9, 0)","v":{"v":0,"d":"$0.00"}}]
["LTC",null,null,{"$f":"Jurat!I$1","v":0},{"$f":"Jurat!D$33","v":"00:00:00"},"Q4","2017-12-31","Region 1","Operating Expense","Administrative Expense","Administrative","5.5","General  Administration",{"$f":"IFERROR('LTC Rev-Exp Region 1'!$P$61/'LTC Rev-Exp Region 1'!$P$9, 0)","v":{"v":0,"d":"$0.00"}},{"$f":"IFERROR('LTC Rev-Exp Region 1'!$Q$61/'LTC Rev-Exp Region 1'!$Q$9, 0)","v":{"v":0,"d":"$0.00"}},{"$f":"IFERROR('LTC Rev-Exp Region 1'!$R$61/'LTC Rev-Exp Region 1'!$R$9, 0)","v":{"v":0,"d":"$0.00"}},{"$f":"IFERROR('LTC Rev-Exp Region 1'!$S$61/'LTC Rev-Exp Region 1'!$S$9, 0)","v":{"v":0,"d":"$0.00"}}]
["LTC",null,null,{"$f":"Jurat!I$1","v":0},{"$f":"Jurat!D$33","v":"00:00:00"},"Q4","2017-12-31","Region 1","Operating Expense","Administrative Expense","Administrative","5.6","Compliance/Regulatory",{"$f":"IFERROR('LTC Rev-Exp Region 1'!$P$62/'LTC Rev-Exp Region 1'!$P$9, 0)","v":{"v":0,"d":"$0.00"}},{"$f":"IFERROR('LTC Rev-Exp Region 1'!$Q$62/'LTC Rev-Exp Region 1'!$Q$9, 0)","v":{"v":0,"d":"$0.00"}},{"$f":"IFERROR('LTC Rev-Exp Region 1'!$R$62/'LTC Rev-Exp Region 1'!$R$9, 0)","v":{"v":0,"d":"$0.00"}},{"$f":"IFERROR('LTC Rev-Exp Region 1'!$S$62/'LTC Rev-Exp Region 1'!$S$9, 0)","v":{"v":0,"d":"$0.00"}}]
["LTC",null,null,{"$f":"Jurat!I$1","v":0},{"$f":"Jurat!D$33","v":"00:00:00"},"Q4","2017-12-31","Region 1","Operating Expense","Taxes & Fees","Taxes & Fees","6.1","State Premium Tax",{"$f":"IFERROR('LTC Rev-Exp Region 1'!$P$64/'LTC Rev-Exp Region 1'!$P$9, 0)","v":{"v":0,"d":"$0.00"}},{"$f":"IFERROR('LTC Rev-Exp Region 1'!$Q$64/'LTC Rev-Exp Region 1'!$Q$9, 0)","v":{"v":0,"d":"$0.00"}},{"$f":"IFERROR('LTC Rev-Exp Region 1'!$R$64/'LTC Rev-Exp Region 1'!$R$9, 0)","v":{"v":0,"d":"$0.00"}},{"$f":"IFERROR('LTC Rev-Exp Region 1'!$S$64/'LTC Rev-Exp Region 1'!$S$9, 0)","v":{"v":0,"d":"$0.00"}}]
["LTC",null,null,{"$f":"Jurat!I$1","v":0},{"$f":"Jurat!D$33","v":"00:00:00"},"Q4","2017-12-31","Region 1","Operating Expense","Taxes & Fees","Taxes & Fees","6.2","Department of Insurance Assessments",{"$f":"IFERROR('LTC Rev-Exp Region 1'!$P$65/'LTC Rev-Exp Region 1'!$P$9, 0)","v":{"v":0,"d":"$0.00"}},{"$f":"IFERROR('LTC Rev-Exp Region 1'!$Q$65/'LTC Rev-Exp Region 1'!$Q$9, 0)","v":{"v":0,"d":"$0.00"}},{"$f":"IFERROR('LTC Rev-Exp Region 1'!$R$65/'LTC Rev-Exp Region 1'!$R$9, 0)","v":{"v":0,"d":"$0.00"}},{"$f":"IFERROR('LTC Rev-Exp Region 1'!$S$65/'LTC Rev-Exp Region 1'!$S$9, 0)","v":{"v":0,"d":"$0.00"}}]
["LTC",null,null,{"$f":"Jurat!I$1","v":0},{"$f":"Jurat!D$33","v":"00:00:00"},"Q4","2017-12-31","Region 1","Non-Operating Expense","Income Tax Expense","Income Tax Expense","9.0","Income Tax Expense",{"$f":"IFERROR('LTC Rev-Exp Region 1'!$P$72/'LTC Rev-Exp Region 1'!$P$9, 0)","v":{"v":0,"d":"$0.00"}},{"$f":"IFERROR('LTC Rev-Exp Region 1'!$Q$72/'LTC Rev-Exp Region 1'!$Q$9, 0)","v":{"v":0,"d":"$0.00"}},{"$f":"IFERROR('LTC Rev-Exp Region 1'!$R$72/'LTC Rev-Exp Region 1'!$R$9, 0)","v":{"v":0,"d":"$0.00"}},{"$f":"IFERROR('LTC Rev-Exp Region 1'!$S$72/'LTC Rev-Exp Region 1'!$S$9, 0)","v":{"v":0,"d":"$0.00"}}]
["LTC",null,null,{"$f":"Jurat!I$1","v":0},{"$f":"Jurat!D$33","v":"00:00:00"},"Q1","2017-03-31","Region 2","Operating Revenue","Capitation","Capitation",1.1,"Capitation",{"$f":"IFERROR('LTC Rev-Exp Region 2'!$D$11/'LTC Rev-Exp Region 2'!$D$9, 0)","v":{"v":0,"d":"$0.00"}},{"$f":"IFERROR('LTC Rev-Exp Region 2'!$E$11/'LTC Rev-Exp Region 2'!$E$9, 0)","v":{"v":0,"d":"$0.00"}},{"$f":"IFERROR('LTC Rev-Exp Region 2'!$F$11/'LTC Rev-Exp Region 2'!$F$9, 0)","v":{"v":0,"d":"$0.00"}},{"$f":"IFERROR('LTC Rev-Exp Region 2'!$G$11/'LTC Rev-Exp Region 2'!$G$9, 0)","v":{"v":0,"d":"$0.00"}}]
["LTC",null,null,{"$f":"Jurat!I$1","v":0},{"$f":"Jurat!D$33","v":"00:00:00"},"Q1","2017-03-31","Region 2","Operating Revenue","Capitation","NH Rate Reconciliation",1.2,"NH Rate Reconciliation",{"$f":"IFERROR('LTC Rev-Exp Region 2'!$D$12/'LTC Rev-Exp Region 2'!$D$9, 0)","v":{"v":0,"d":"$0.00"}},{"$f":"IFERROR('LTC Rev-Exp Region 2'!$E$12/'LTC Rev-Exp Region 2'!$E$9, 0)","v":{"v":0,"d":"$0.00"}},{"$f":"IFERROR('LTC Rev-Exp Region 2'!$F$12/'LTC Rev-Exp Region 2'!$F$9, 0)","v":{"v":0,"d":"$0.00"}},{"$f":"IFERROR('LTC Rev-Exp Region 2'!$G$12/'LTC Rev-Exp Region 2'!$G$9, 0)","v":{"v":0,"d":"$0.00"}}]
["LTC",null,null,{"$f":"Jurat!I$1","v":0},{"$f":"Jurat!D$33","v":"00:00:00"},"Q1","2017-03-31","Region 2","Operating Revenue","Other Revenue","Other Revenue",1.3,"Other Revenue",{"$f":"IFERROR('LTC Rev-Exp Region 2'!$D$13/'LTC Rev-Exp Region 2'!$D$9, 0)","v":{"v":0,"d":"$0.00"}},{"$f":"IFERROR('LTC Rev-Exp Region 2'!$E$13/'LTC Rev-Exp Region 2'!$E$9, 0)","v":{"v":0,"d":"$0.00"}},{"$f":"IFERROR('LTC Rev-Exp Region 2'!$F$13/'LTC Rev-Exp Region 2'!$F$9, 0)","v":{"v":0,"d":"$0.00"}},{"$f":"IFERROR('LTC Rev-Exp Region 2'!$G$13/'LTC Rev-Exp Region 2'!$G$9, 0)","v":{"v":0,"d":"$0.00"}}]
["LTC",null,null,{"$f":"Jurat!I$1","v":0},{"$f":"Jurat!D$33","v":"00:00:00"},"Q1","2017-03-31","Region 2","Operating Expense","Medical Expense","NF & Hospice","2.3","Nursing Facility FFS (Medicaid)",{"$f":"IFERROR('LTC Rev-Exp Region 2'!$D$19/'LTC Rev-Exp Region 2'!$D$9, 0)","v":{"v":0,"d":"$0.00"}},{"$f":"IFERROR('LTC Rev-Exp Region 2'!$E$19/'LTC Rev-Exp Region 2'!$E$9, 0)","v":{"v":0,"d":"$0.00"}},{"$f":"IFERROR('LTC Rev-Exp Region 2'!$F$19/'LTC Rev-Exp Region 2'!$F$9, 0)","v":{"v":0,"d":"$0.00"}},{"$f":"IFERROR('LTC Rev-Exp Region 2'!$G$19/'LTC Rev-Exp Region 2'!$G$9, 0)","v":{"v":0,"d":"$0.00"}}]
["LTC",null,null,{"$f":"Jurat!I$1","v":0},{"$f":"Jurat!D$33","v":"00:00:00"},"Q1","2017-03-31","Region 2","Operating Expense","Medical Expense","NF & Hospice","2.4","Nursing Facility FFS (Crossover)",{"$f":"IFERROR('LTC Rev-Exp Region 2'!$D$20/'LTC Rev-Exp Region 2'!$D$9, 0)","v":{"v":0,"d":"$0.00"}},{"$f":"IFERROR('LTC Rev-Exp Region 2'!$E$20/'LTC Rev-Exp Region 2'!$E$9, 0)","v":{"v":0,"d":"$0.00"}},{"$f":"IFERROR('LTC Rev-Exp Region 2'!$F$20/'LTC Rev-Exp Region 2'!$F$9, 0)","v":{"v":0,"d":"$0.00"}},{"$f":"IFERROR('LTC Rev-Exp Region 2'!$G$20/'LTC Rev-Exp Region 2'!$G$9, 0)","v":{"v":0,"d":"$0.00"}}]
["LTC",null,null,{"$f":"Jurat!I$1","v":0},{"$f":"Jurat!D$33","v":"00:00:00"},"Q1","2017-03-31","Region 2","Operating Expense","Medical Expense","NF & Hospice","2.6","Hospice FFS",{"$f":"IFERROR('LTC Rev-Exp Region 2'!$D$22/'LTC Rev-Exp Region 2'!$D$9, 0)","v":{"v":0,"d":"$0.00"}},{"$f":"IFERROR('LTC Rev-Exp Region 2'!$E$22/'LTC Rev-Exp Region 2'!$E$9, 0)","v":{"v":0,"d":"$0.00"}},{"$f":"IFERROR('LTC Rev-Exp Region 2'!$F$22/'LTC Rev-Exp Region 2'!$F$9, 0)","v":{"v":0,"d":"$0.00"}},{"$f":"IFERROR('LTC Rev-Exp Region 2'!$G$22/'LTC Rev-Exp Region 2'!$G$9, 0)","v":{"v":0,"d":"$0.00"}}]
["LTC",null,null,{"$f":"Jurat!I$1","v":0},{"$f":"Jurat!D$33","v":"00:00:00"},"Q1","2017-03-31","Region 2","Operating Expense","Medical Expense","NF & Hospice","2.7","Ending IBNP for NF & Hospice",{"$f":"IFERROR('LTC Rev-Exp Region 2'!$D$23/'LTC Rev-Exp Region 2'!$D$9, 0)","v":{"v":0,"d":"$0.00"}},{"$f":"IFERROR('LTC Rev-Exp Region 2'!$E$23/'LTC Rev-Exp Region 2'!$E$9, 0)","v":{"v":0,"d":"$0.00"}},{"$f":"IFERROR('LTC Rev-Exp Region 2'!$F$23/'LTC Rev-Exp Region 2'!$F$9, 0)","v":{"v":0,"d":"$0.00"}},{"$f":"IFERROR('LTC Rev-Exp Region 2'!$G$23/'LTC Rev-Exp Region 2'!$G$9, 0)","v":{"v":0,"d":"$0.00"}}]
["LTC",null,null,{"$f":"Jurat!I$1","v":0},{"$f":"Jurat!D$33","v":"00:00:00"},"Q1","2017-03-31","Region 2","Operating Expense","Medical Expense","NF & Hospice","2.8","NF & Hospice Subcapitated",{"$f":"IFERROR('LTC Rev-Exp Region 2'!$D$24/'LTC Rev-Exp Region 2'!$D$9, 0)","v":{"v":0,"d":"$0.00"}},{"$f":"IFERROR('LTC Rev-Exp Region 2'!$E$24/'LTC Rev-Exp Region 2'!$E$9, 0)","v":{"v":0,"d":"$0.00"}},{"$f":"IFERROR('LTC Rev-Exp Region 2'!$F$24/'LTC Rev-Exp Region 2'!$F$9, 0)","v":{"v":0,"d":"$0.00"}},{"$f":"IFERROR('LTC Rev-Exp Region 2'!$G$24/'LTC Rev-Exp Region 2'!$G$9, 0)","v":{"v":0,"d":"$0.00"}}]
["LTC",null,null,{"$f":"Jurat!I$1","v":0},{"$f":"Jurat!D$33","v":"00:00:00"},"Q1","2017-03-31","Region 2","Operating Expense","Medical Expense","NF & Hospice","2.9","NF & Hospice Settlements",{"$f":"IFERROR('LTC Rev-Exp Region 2'!$D$25/'LTC Rev-Exp Region 2'!$D$9, 0)","v":{"v":0,"d":"$0.00"}},{"$f":"IFERROR('LTC Rev-Exp Region 2'!$E$25/'LTC Rev-Exp Region 2'!$E$9, 0)","v":{"v":0,"d":"$0.00"}},{"$f":"IFERROR('LTC Rev-Exp Region 2'!$F$25/'LTC Rev-Exp Region 2'!$F$9, 0)","v":{"v":0,"d":"$0.00"}},{"$f":"IFERROR('LTC Rev-Exp Region 2'!$G$25/'LTC Rev-Exp Region 2'!$G$9, 0)","v":{"v":0,"d":"$0.00"}}]
["LTC",null,null,{"$f":"Jurat!I$1","v":0},{"$f":"Jurat!D$33","v":"00:00:00"},"Q1","2017-03-31","Region 2","Operating Expense","Medical Expense","LTC Services","2.11","Assisted Living FFS",{"$f":"IFERROR('LTC Rev-Exp Region 2'!$D$27/'LTC Rev-Exp Region 2'!$D$9, 0)","v":{"v":0,"d":"$0.00"}},{"$f":"IFERROR('LTC Rev-Exp Region 2'!$E$27/'LTC Rev-Exp Region 2'!$E$9, 0)","v":{"v":0,"d":"$0.00"}},{"$f":"IFERROR('LTC Rev-Exp Region 2'!$F$27/'LTC Rev-Exp Region 2'!$F$9, 0)","v":{"v":0,"d":"$0.00"}},{"$f":"IFERROR('LTC Rev-Exp Region 2'!$G$27/'LTC Rev-Exp Region 2'!$G$9, 0)","v":{"v":0,"d":"$0.00"}}]
["LTC",null,null,{"$f":"Jurat!I$1","v":0},{"$f":"Jurat!D$33","v":"00:00:00"},"Q1","2017-03-31","Region 2","Operating Expense","Medical Expense","LTC Services","2.12","Home Health FFS",{"$f":"IFERROR('LTC Rev-Exp Region 2'!$D$28/'LTC Rev-Exp Region 2'!$D$9, 0)","v":{"v":0,"d":"$0.00"}},{"$f":"IFERROR('LTC Rev-Exp Region 2'!$E$28/'LTC Rev-Exp Region 2'!$E$9, 0)","v":{"v":0,"d":"$0.00"}},{"$f":"IFERROR('LTC Rev-Exp Region 2'!$F$28/'LTC Rev-Exp Region 2'!$F$9, 0)","v":{"v":0,"d":"$0.00"}},{"$f":"IFERROR('LTC Rev-Exp Region 2'!$G$28/'LTC Rev-Exp Region 2'!$G$9, 0)","v":{"v":0,"d":"$0.00"}}]
["LTC",null,null,{"$f":"Jurat!I$1","v":0},{"$f":"Jurat!D$33","v":"00:00:00"},"Q1","2017-03-31","Region 2","Operating Expense","Medical Expense","LTC Services","2.13","Medical Equipment/Supplies FFS",{"$f":"IFERROR('LTC Rev-Exp Region 2'!$D$29/'LTC Rev-Exp Region 2'!$D$9, 0)","v":{"v":0,"d":"$0.00"}},{"$f":"IFERROR('LTC Rev-Exp Region 2'!$E$29/'LTC Rev-Exp Region 2'!$E$9, 0)","v":{"v":0,"d":"$0.00"}},{"$f":"IFERROR('LTC Rev-Exp Region 2'!$F$29/'LTC Rev-Exp Region 2'!$F$9, 0)","v":{"v":0,"d":"$0.00"}},{"$f":"IFERROR('LTC Rev-Exp Region 2'!$G$29/'LTC Rev-Exp Region 2'!$G$9, 0)","v":{"v":0,"d":"$0.00"}}]
["LTC",null,null,{"$f":"Jurat!I$1","v":0},{"$f":"Jurat!D$33","v":"00:00:00"},"Q1","2017-03-31","Region 2","Operating Expense","Medical Expense","LTC Services","2.14","Therapy FFS",{"$f":"IFERROR('LTC Rev-Exp Region 2'!$D$30/'LTC Rev-Exp Region 2'!$D$9, 0)","v":{"v":0,"d":"$0.00"}},{"$f":"IFERROR('LTC Rev-Exp Region 2'!$E$30/'LTC Rev-Exp Region 2'!$E$9, 0)","v":{"v":0,"d":"$0.00"}},{"$f":"IFERROR('LTC Rev-Exp Region 2'!$F$30/'LTC Rev-Exp Region 2'!$F$9, 0)","v":{"v":0,"d":"$0.00"}},{"$f":"IFERROR('LTC Rev-Exp Region 2'!$G$30/'LTC Rev-Exp Region 2'!$G$9, 0)","v":{"v":0,"d":"$0.00"}}]
["LTC",null,null,{"$f":"Jurat!I$1","v":0},{"$f":"Jurat!D$33","v":"00:00:00"},"Q1","2017-03-31","Region 2","Operating Expense","Medical Expense","LTC Services","2.15","Transportation FFS",{"$f":"IFERROR('LTC Rev-Exp Region 2'!$D$31/'LTC Rev-Exp Region 2'!$D$9, 0)","v":{"v":0,"d":"$0.00"}},{"$f":"IFERROR('LTC Rev-Exp Region 2'!$E$31/'LTC Rev-Exp Region 2'!$E$9, 0)","v":{"v":0,"d":"$0.00"}},{"$f":"IFERROR('LTC Rev-Exp Region 2'!$F$31/'LTC Rev-Exp Region 2'!$F$9, 0)","v":{"v":0,"d":"$0.00"}},{"$f":"IFERROR('LTC Rev-Exp Region 2'!$G$31/'LTC Rev-Exp Region 2'!$G$9, 0)","v":{"v":0,"d":"$0.00"}}]
["LTC",null,null,{"$f":"Jurat!I$1","v":0},{"$f":"Jurat!D$33","v":"00:00:00"},"Q1","2017-03-31","Region 2","Operating Expense","Medical Expense","LTC Services","2.16","Case Management FFS (Plan Provided)",{"$f":"IFERROR('LTC Rev-Exp Region 2'!$D$32/'LTC Rev-Exp Region 2'!$D$9, 0)","v":{"v":0,"d":"$0.00"}},{"$f":"IFERROR('LTC Rev-Exp Region 2'!$E$32/'LTC Rev-Exp Region 2'!$E$9, 0)","v":{"v":0,"d":"$0.00"}},{"$f":"IFERROR('LTC Rev-Exp Region 2'!$F$32/'LTC Rev-Exp Region 2'!$F$9, 0)","v":{"v":0,"d":"$0.00"}},{"$f":"IFERROR('LTC Rev-Exp Region 2'!$G$32/'LTC Rev-Exp Region 2'!$G$9, 0)","v":{"v":0,"d":"$0.00"}}]
["LTC",null,null,{"$f":"Jurat!I$1","v":0},{"$f":"Jurat!D$33","v":"00:00:00"},"Q1","2017-03-31","Region 2","Operating Expense","Medical Expense","LTC Services","2.17","Case Management FF (Non-Plan Provided)",{"$f":"IFERROR('LTC Rev-Exp Region 2'!$D$33/'LTC Rev-Exp Region 2'!$D$9, 0)","v":{"v":0,"d":"$0.00"}},{"$f":"IFERROR('LTC Rev-Exp Region 2'!$E$33/'LTC Rev-Exp Region 2'!$E$9, 0)","v":{"v":0,"d":"$0.00"}},{"$f":"IFERROR('LTC Rev-Exp Region 2'!$F$33/'LTC Rev-Exp Region 2'!$F$9, 0)","v":{"v":0,"d":"$0.00"}},{"$f":"IFERROR('LTC Rev-Exp Region 2'!$G$33/'LTC Rev-Exp Region 2'!$G$9, 0)","v":{"v":0,"d":"$0.00"}}]
["LTC",null,null,{"$f":"Jurat!I$1","v":0},{"$f":"Jurat!D$33","v":"00:00:00"},"Q1","2017-03-31","Region 2","Operating Expense","Medical Expense","LTC Services","2.18","HCBS FFS",{"$f":"IFERROR('LTC Rev-Exp Region 2'!$D$34/'LTC Rev-Exp Region 2'!$D$9, 0)","v":{"v":0,"d":"$0.00"}},{"$f":"IFERROR('LTC Rev-Exp Region 2'!$E$34/'LTC Rev-Exp Region 2'!$E$9, 0)","v":{"v":0,"d":"$0.00"}},{"$f":"IFERROR('LTC Rev-Exp Region 2'!$F$34/'LTC Rev-Exp Region 2'!$F$9, 0)","v":{"v":0,"d":"$0.00"}},{"$f":"IFERROR('LTC Rev-Exp Region 2'!$G$34/'LTC Rev-Exp Region 2'!$G$9, 0)","v":{"v":0,"d":"$0.00"}}]
["LTC",null,null,{"$f":"Jurat!I$1","v":0},{"$f":"Jurat!D$33","v":"00:00:00"},"Q1","2017-03-31","Region 2","Operating Expense","Medical Expense","LTC Services","2.19","Subcapitated LTC Services",{"$f":"IFERROR('LTC Rev-Exp Region 2'!$D$35/'LTC Rev-Exp Region 2'!$D$9, 0)","v":{"v":0,"d":"$0.00"}},{"$f":"IFERROR('LTC Rev-Exp Region 2'!$E$35/'LTC Rev-Exp Region 2'!$E$9, 0)","v":{"v":0,"d":"$0.00"}},{"$f":"IFERROR('LTC Rev-Exp Region 2'!$F$35/'LTC Rev-Exp Region 2'!$F$9, 0)","v":{"v":0,"d":"$0.00"}},{"$f":"IFERROR('LTC Rev-Exp Region 2'!$G$35/'LTC Rev-Exp Region 2'!$G$9, 0)","v":{"v":0,"d":"$0.00"}}]
["LTC",null,null,{"$f":"Jurat!I$1","v":0},{"$f":"Jurat!D$33","v":"00:00:00"},"Q1","2017-03-31","Region 2","Operating Expense","Medical Expense","LTC Services","2.20","Ending IBNP for Long Term Care Services",{"$f":"IFERROR('LTC Rev-Exp Region 2'!$D$36/'LTC Rev-Exp Region 2'!$D$9, 0)","v":{"v":0,"d":"$0.00"}},{"$f":"IFERROR('LTC Rev-Exp Region 2'!$E$36/'LTC Rev-Exp Region 2'!$E$9, 0)","v":{"v":0,"d":"$0.00"}},{"$f":"IFERROR('LTC Rev-Exp Region 2'!$F$36/'LTC Rev-Exp Region 2'!$F$9, 0)","v":{"v":0,"d":"$0.00"}},{"$f":"IFERROR('LTC Rev-Exp Region 2'!$G$36/'LTC Rev-Exp Region 2'!$G$9, 0)","v":{"v":0,"d":"$0.00"}}]
["LTC",null,null,{"$f":"Jurat!I$1","v":0},{"$f":"Jurat!D$33","v":"00:00:00"},"Q1","2017-03-31","Region 2","Operating Expense","Medical Expense","LTC Services","2.21","LTC Services Settlements",{"$f":"IFERROR('LTC Rev-Exp Region 2'!$D$37/'LTC Rev-Exp Region 2'!$D$9, 0)","v":{"v":0,"d":"$0.00"}},{"$f":"IFERROR('LTC Rev-Exp Region 2'!$E$37/'LTC Rev-Exp Region 2'!$E$9, 0)","v":{"v":0,"d":"$0.00"}},{"$f":"IFERROR('LTC Rev-Exp Region 2'!$F$37/'LTC Rev-Exp Region 2'!$F$9, 0)","v":{"v":0,"d":"$0.00"}},{"$f":"IFERROR('LTC Rev-Exp Region 2'!$G$37/'LTC Rev-Exp Region 2'!$G$9, 0)","v":{"v":0,"d":"$0.00"}}]
["LTC",null,null,{"$f":"Jurat!I$1","v":0},{"$f":"Jurat!D$33","v":"00:00:00"},"Q1","2017-03-31","Region 2","Operating Expense","Medical Expense","Expanded Benefits","3.1","Expanded Benefits FFS",{"$f":"IFERROR('LTC Rev-Exp Region 2'!$D$39/'LTC Rev-Exp Region 2'!$D$9, 0)","v":{"v":0,"d":"$0.00"}},{"$f":"IFERROR('LTC Rev-Exp Region 2'!$E$39/'LTC Rev-Exp Region 2'!$E$9, 0)","v":{"v":0,"d":"$0.00"}},{"$f":"IFERROR('LTC Rev-Exp Region 2'!$F$39/'LTC Rev-Exp Region 2'!$F$9, 0)","v":{"v":0,"d":"$0.00"}},{"$f":"IFERROR('LTC Rev-Exp Region 2'!$G$39/'LTC Rev-Exp Region 2'!$G$9, 0)","v":{"v":0,"d":"$0.00"}}]
["LTC",null,null,{"$f":"Jurat!I$1","v":0},{"$f":"Jurat!D$33","v":"00:00:00"},"Q1","2017-03-31","Region 2","Operating Expense","Medical Expense","Expanded Benefits","3.2","Expanded Benefits Subcapitation",{"$f":"IFERROR('LTC Rev-Exp Region 2'!$D$40/'LTC Rev-Exp Region 2'!$D$9, 0)","v":{"v":0,"d":"$0.00"}},{"$f":"IFERROR('LTC Rev-Exp Region 2'!$E$40/'LTC Rev-Exp Region 2'!$E$9, 0)","v":{"v":0,"d":"$0.00"}},{"$f":"IFERROR('LTC Rev-Exp Region 2'!$F$40/'LTC Rev-Exp Region 2'!$F$9, 0)","v":{"v":0,"d":"$0.00"}},{"$f":"IFERROR('LTC Rev-Exp Region 2'!$G$40/'LTC Rev-Exp Region 2'!$G$9, 0)","v":{"v":0,"d":"$0.00"}}]
["LTC",null,null,{"$f":"Jurat!I$1","v":0},{"$f":"Jurat!D$33","v":"00:00:00"},"Q1","2017-03-31","Region 2","Operating Expense","Medical Expense","Expanded Benefits","3.3","Ending IBNP for Expanded Benefits",{"$f":"IFERROR('LTC Rev-Exp Region 2'!$D$41/'LTC Rev-Exp Region 2'!$D$9, 0)","v":{"v":0,"d":"$0.00"}},{"$f":"IFERROR('LTC Rev-Exp Region 2'!$E$41/'LTC Rev-Exp Region 2'!$E$9, 0)","v":{"v":0,"d":"$0.00"}},{"$f":"IFERROR('LTC Rev-Exp Region 2'!$F$41/'LTC Rev-Exp Region 2'!$F$9, 0)","v":{"v":0,"d":"$0.00"}},{"$f":"IFERROR('LTC Rev-Exp Region 2'!$G$41/'LTC Rev-Exp Region 2'!$G$9, 0)","v":{"v":0,"d":"$0.00"}}]
["LTC",null,null,{"$f":"Jurat!I$1","v":0},{"$f":"Jurat!D$33","v":"00:00:00"},"Q1","2017-03-31","Region 2","Operating Expense","Medical Expense","Expanded Benefits","3.4","Expanded Benefits Settlements",{"$f":"IFERROR('LTC Rev-Exp Region 2'!$D$42/'LTC Rev-Exp Region 2'!$D$9, 0)","v":{"v":0,"d":"$0.00"}},{"$f":"IFERROR('LTC Rev-Exp Region 2'!$E$42/'LTC Rev-Exp Region 2'!$E$9, 0)","v":{"v":0,"d":"$0.00"}},{"$f":"IFERROR('LTC Rev-Exp Region 2'!$F$42/'LTC Rev-Exp Region 2'!$F$9, 0)","v":{"v":0,"d":"$0.00"}},{"$f":"IFERROR('LTC Rev-Exp Region 2'!$G$42/'LTC Rev-Exp Region 2'!$G$9, 0)","v":{"v":0,"d":"$0.00"}}]
["LTC",null,null,{"$f":"Jurat!I$1","v":0},{"$f":"Jurat!D$33","v":"00:00:00"},"Q1","2017-03-31","Region 2","Operating Expense","Medical Expense","Other Medical","4.5","TPL & Fraud/Abuse Recoveries",{"$f":"IFERROR('LTC Rev-Exp Region 2'!$D$48/'LTC Rev-Exp Region 2'!$D$9, 0)","v":{"v":0,"d":"$0.00"}},{"$f":"IFERROR('LTC Rev-Exp Region 2'!$E$48/'LTC Rev-Exp Region 2'!$E$9, 0)","v":{"v":0,"d":"$0.00"}},{"$f":"IFERROR('LTC Rev-Exp Region 2'!$F$48/'LTC Rev-Exp Region 2'!$F$9, 0)","v":{"v":0,"d":"$0.00"}},{"$f":"IFERROR('LTC Rev-Exp Region 2'!$G$48/'LTC Rev-Exp Region 2'!$G$9, 0)","v":{"v":0,"d":"$0.00"}}]
["LTC",null,null,{"$f":"Jurat!I$1","v":0},{"$f":"Jurat!D$33","v":"00:00:00"},"Q1","2017-03-31","Region 2","Operating Expense","Medical Expense","Other Medical","4.6.1","Premium Deficiency Reserve",{"$f":"IFERROR('LTC Rev-Exp Region 2'!$D$49/'LTC Rev-Exp Region 2'!$D$9, 0)","v":{"v":0,"d":"$0.00"}},{"$f":"IFERROR('LTC Rev-Exp Region 2'!$E$49/'LTC Rev-Exp Region 2'!$E$9, 0)","v":{"v":0,"d":"$0.00"}},{"$f":"IFERROR('LTC Rev-Exp Region 2'!$F$49/'LTC Rev-Exp Region 2'!$F$9, 0)","v":{"v":0,"d":"$0.00"}},{"$f":"IFERROR('LTC Rev-Exp Region 2'!$G$49/'LTC Rev-Exp Region 2'!$G$9, 0)","v":{"v":0,"d":"$0.00"}}]
["LTC",null,null,{"$f":"Jurat!I$1","v":0},{"$f":"Jurat!D$33","v":"00:00:00"},"Q1","2017-03-31","Region 2","Operating Expense","Medical Expense","Other Medical","4.8","Reinsurance Premiums",{"$f":"IFERROR('LTC Rev-Exp Region 2'!$D$51/'LTC Rev-Exp Region 2'!$D$9, 0)","v":{"v":0,"d":"$0.00"}},{"$f":"IFERROR('LTC Rev-Exp Region 2'!$E$51/'LTC Rev-Exp Region 2'!$E$9, 0)","v":{"v":0,"d":"$0.00"}},{"$f":"IFERROR('LTC Rev-Exp Region 2'!$F$51/'LTC Rev-Exp Region 2'!$F$9, 0)","v":{"v":0,"d":"$0.00"}},{"$f":"IFERROR('LTC Rev-Exp Region 2'!$G$51/'LTC Rev-Exp Region 2'!$G$9, 0)","v":{"v":0,"d":"$0.00"}}]
["LTC",null,null,{"$f":"Jurat!I$1","v":0},{"$f":"Jurat!D$33","v":"00:00:00"},"Q1","2017-03-31","Region 2","Operating Expense","Medical Expense","Other Medical","4.9","Reinsurance Recoveries",{"$f":"IFERROR('LTC Rev-Exp Region 2'!$D$52/'LTC Rev-Exp Region 2'!$D$9, 0)","v":{"v":0,"d":"$0.00"}},{"$f":"IFERROR('LTC Rev-Exp Region 2'!$E$52/'LTC Rev-Exp Region 2'!$E$9, 0)","v":{"v":0,"d":"$0.00"}},{"$f":"IFERROR('LTC Rev-Exp Region 2'!$F$52/'LTC Rev-Exp Region 2'!$F$9, 0)","v":{"v":0,"d":"$0.00"}},{"$f":"IFERROR('LTC Rev-Exp Region 2'!$G$52/'LTC Rev-Exp Region 2'!$G$9, 0)","v":{"v":0,"d":"$0.00"}}]
["LTC",null,null,{"$f":"Jurat!I$1","v":0},{"$f":"Jurat!D$33","v":"00:00:00"},"Q1","2017-03-31","Region 2","Operating Expense","Administrative Expense","Administrative","5.1","Salaries & Benefits",{"$f":"IFERROR('LTC Rev-Exp Region 2'!$D$57/'LTC Rev-Exp Region 2'!$D$9, 0)","v":{"v":0,"d":"$0.00"}},{"$f":"IFERROR('LTC Rev-Exp Region 2'!$E$57/'LTC Rev-Exp Region 2'!$D$9, 0)","v":{"v":0,"d":"$0.00"}},{"$f":"IFERROR('LTC Rev-Exp Region 2'!$F$57/'LTC Rev-Exp Region 2'!$D$9, 0)","v":{"v":0,"d":"$0.00"}},{"$f":"IFERROR('LTC Rev-Exp Region 2'!$G$57/'LTC Rev-Exp Region 2'!$D$9, 0)","v":{"v":0,"d":"$0.00"}}]
["LTC",null,null,{"$f":"Jurat!I$1","v":0},{"$f":"Jurat!D$33","v":"00:00:00"},"Q1","2017-03-31","Region 2","Operating Expense","Administrative Expense","Administrative","5.2","Administrative Services",{"$f":"IFERROR('LTC Rev-Exp Region 2'!$D$58/'LTC Rev-Exp Region 2'!$D$9, 0)","v":{"v":0,"d":"$0.00"}},{"$f":"IFERROR('LTC Rev-Exp Region 2'!$E$58/'LTC Rev-Exp Region 2'!$D$9, 0)","v":{"v":0,"d":"$0.00"}},{"$f":"IFERROR('LTC Rev-Exp Region 2'!$F$58/'LTC Rev-Exp Region 2'!$D$9, 0)","v":{"v":0,"d":"$0.00"}},{"$f":"IFERROR('LTC Rev-Exp Region 2'!$G$58/'LTC Rev-Exp Region 2'!$D$9, 0)","v":{"v":0,"d":"$0.00"}}]
["LTC",null,null,{"$f":"Jurat!I$1","v":0},{"$f":"Jurat!D$33","v":"00:00:00"},"Q1","2017-03-31","Region 2","Operating Expense","Administrative Expense","Administrative","5.3","Information Systems",{"$f":"IFERROR('LTC Rev-Exp Region 2'!$D$59/'LTC Rev-Exp Region 2'!$D$9, 0)","v":{"v":0,"d":"$0.00"}},{"$f":"IFERROR('LTC Rev-Exp Region 2'!$E$59/'LTC Rev-Exp Region 2'!$D$9, 0)","v":{"v":0,"d":"$0.00"}},{"$f":"IFERROR('LTC Rev-Exp Region 2'!$F$59/'LTC Rev-Exp Region 2'!$D$9, 0)","v":{"v":0,"d":"$0.00"}},{"$f":"IFERROR('LTC Rev-Exp Region 2'!$G$59/'LTC Rev-Exp Region 2'!$D$9, 0)","v":{"v":0,"d":"$0.00"}}]
["LTC",null,null,{"$f":"Jurat!I$1","v":0},{"$f":"Jurat!D$33","v":"00:00:00"},"Q1","2017-03-31","Region 2","Operating Expense","Administrative Expense","Administrative","5.4","Marketing Expenses",{"$f":"IFERROR('LTC Rev-Exp Region 2'!$D$60/'LTC Rev-Exp Region 2'!$D$9, 0)","v":{"v":0,"d":"$0.00"}},{"$f":"IFERROR('LTC Rev-Exp Region 2'!$E$60/'LTC Rev-Exp Region 2'!$D$9, 0)","v":{"v":0,"d":"$0.00"}},{"$f":"IFERROR('LTC Rev-Exp Region 2'!$F$60/'LTC Rev-Exp Region 2'!$D$9, 0)","v":{"v":0,"d":"$0.00"}},{"$f":"IFERROR('LTC Rev-Exp Region 2'!$G$60/'LTC Rev-Exp Region 2'!$D$9, 0)","v":{"v":0,"d":"$0.00"}}]
["LTC",null,null,{"$f":"Jurat!I$1","v":0},{"$f":"Jurat!D$33","v":"00:00:00"},"Q1","2017-03-31","Region 2","Operating Expense","Administrative Expense","Administrative","5.5","General  Administration",{"$f":"IFERROR('LTC Rev-Exp Region 2'!$D$61/'LTC Rev-Exp Region 2'!$D$9, 0)","v":{"v":0,"d":"$0.00"}},{"$f":"IFERROR('LTC Rev-Exp Region 2'!$E$61/'LTC Rev-Exp Region 2'!$D$9, 0)","v":{"v":0,"d":"$0.00"}},{"$f":"IFERROR('LTC Rev-Exp Region 2'!$F$61/'LTC Rev-Exp Region 2'!$D$9, 0)","v":{"v":0,"d":"$0.00"}},{"$f":"IFERROR('LTC Rev-Exp Region 2'!$G$61/'LTC Rev-Exp Region 2'!$D$9, 0)","v":{"v":0,"d":"$0.00"}}]
["LTC",null,null,{"$f":"Jurat!I$1","v":0},{"$f":"Jurat!D$33","v":"00:00:00"},"Q1","2017-03-31","Region 2","Operating Expense","Administrative Expense","Administrative","5.6","Compliance/Regulatory",{"$f":"IFERROR('LTC Rev-Exp Region 2'!$D$62/'LTC Rev-Exp Region 2'!$D$9, 0)","v":{"v":0,"d":"$0.00"}},{"$f":"IFERROR('LTC Rev-Exp Region 2'!$E$62/'LTC Rev-Exp Region 2'!$D$9, 0)","v":{"v":0,"d":"$0.00"}},{"$f":"IFERROR('LTC Rev-Exp Region 2'!$F$62/'LTC Rev-Exp Region 2'!$D$9, 0)","v":{"v":0,"d":"$0.00"}},{"$f":"IFERROR('LTC Rev-Exp Region 2'!$G$62/'LTC Rev-Exp Region 2'!$D$9, 0)","v":{"v":0,"d":"$0.00"}}]
["LTC",null,null,{"$f":"Jurat!I$1","v":0},{"$f":"Jurat!D$33","v":"00:00:00"},"Q1","2017-03-31","Region 2","Operating Expense","Taxes & Fees","Taxes & Fees","6.1","State Premium Tax",{"$f":"IFERROR('LTC Rev-Exp Region 2'!$D$64/'LTC Rev-Exp Region 2'!$D$9, 0)","v":{"v":0,"d":"$0.00"}},{"$f":"IFERROR('LTC Rev-Exp Region 2'!$E$64/'LTC Rev-Exp Region 2'!$E$9, 0)","v":{"v":0,"d":"$0.00"}},{"$f":"IFERROR('LTC Rev-Exp Region 2'!$F$64/'LTC Rev-Exp Region 2'!$F$9, 0)","v":{"v":0,"d":"$0.00"}},{"$f":"IFERROR('LTC Rev-Exp Region 2'!$G$64/'LTC Rev-Exp Region 2'!$G$9, 0)","v":{"v":0,"d":"$0.00"}}]
["LTC",null,null,{"$f":"Jurat!I$1","v":0},{"$f":"Jurat!D$33","v":"00:00:00"},"Q1","2017-03-31","Region 2","Operating Expense","Taxes & Fees","Taxes & Fees","6.2","Department of Insurance Assessments",{"$f":"IFERROR('LTC Rev-Exp Region 2'!$D$65/'LTC Rev-Exp Region 2'!$D$9, 0)","v":{"v":0,"d":"$0.00"}},{"$f":"IFERROR('LTC Rev-Exp Region 2'!$E$65/'LTC Rev-Exp Region 2'!$E$9, 0)","v":{"v":0,"d":"$0.00"}},{"$f":"IFERROR('LTC Rev-Exp Region 2'!$F$65/'LTC Rev-Exp Region 2'!$F$9, 0)","v":{"v":0,"d":"$0.00"}},{"$f":"IFERROR('LTC Rev-Exp Region 2'!$G$65/'LTC Rev-Exp Region 2'!$G$9, 0)","v":{"v":0,"d":"$0.00"}}]
["LTC",null,null,{"$f":"Jurat!I$1","v":0},{"$f":"Jurat!D$33","v":"00:00:00"},"Q1","2017-03-31","Region 2","Non-Operating Expense","Income Tax Expense","Income Tax Expense","9.0","Income Tax Expense",{"$f":"IFERROR('LTC Rev-Exp Region 2'!$D$72/'LTC Rev-Exp Region 2'!$D$9, 0)","v":{"v":0,"d":"$0.00"}},{"$f":"IFERROR('LTC Rev-Exp Region 2'!$E$72/'LTC Rev-Exp Region 2'!$E$9, 0)","v":{"v":0,"d":"$0.00"}},{"$f":"IFERROR('LTC Rev-Exp Region 2'!$F$72/'LTC Rev-Exp Region 2'!$F$9, 0)","v":{"v":0,"d":"$0.00"}},{"$f":"IFERROR('LTC Rev-Exp Region 2'!$G$72/'LTC Rev-Exp Region 2'!$G$9, 0)","v":{"v":0,"d":"$0.00"}}]
["LTC",null,null,{"$f":"Jurat!I$1","v":0},{"$f":"Jurat!D$33","v":"00:00:00"},"Q2","2017-06-30","Region 2","Operating Revenue","Capitation","Capitation",1.1,"Capitation",{"$f":"IFERROR('LTC Rev-Exp Region 2'!$H$11/'LTC Rev-Exp Region 2'!$H$9, 0)","v":{"v":0,"d":"$0.00"}},{"$f":"IFERROR('LTC Rev-Exp Region 2'!$I$11/'LTC Rev-Exp Region 2'!$I$9, 0)","v":{"v":0,"d":"$0.00"}},{"$f":"IFERROR('LTC Rev-Exp Region 2'!$J$11/'LTC Rev-Exp Region 2'!$J$9, 0)","v":{"v":0,"d":"$0.00"}},{"$f":"IFERROR('LTC Rev-Exp Region 2'!$K$11/'LTC Rev-Exp Region 2'!$K$9, 0)","v":{"v":0,"d":"$0.00"}}]
["LTC",null,null,{"$f":"Jurat!I$1","v":0},{"$f":"Jurat!D$33","v":"00:00:00"},"Q2","2017-06-30","Region 2","Operating Revenue","Capitation","NH Rate Reconciliation",1.2,"NH Rate Reconciliation",{"$f":"IFERROR('LTC Rev-Exp Region 2'!$H$12/'LTC Rev-Exp Region 2'!$H$9, 0)","v":{"v":0,"d":"$0.00"}},{"$f":"IFERROR('LTC Rev-Exp Region 2'!$I$12/'LTC Rev-Exp Region 2'!$I$9, 0)","v":{"v":0,"d":"$0.00"}},{"$f":"IFERROR('LTC Rev-Exp Region 2'!$J$12/'LTC Rev-Exp Region 2'!$J$9, 0)","v":{"v":0,"d":"$0.00"}},{"$f":"IFERROR('LTC Rev-Exp Region 2'!$K$12/'LTC Rev-Exp Region 2'!$K$9, 0)","v":{"v":0,"d":"$0.00"}}]
["LTC",null,null,{"$f":"Jurat!I$1","v":0},{"$f":"Jurat!D$33","v":"00:00:00"},"Q2","2017-06-30","Region 2","Operating Revenue","Other Revenue","Other Revenue",1.3,"Other Revenue",{"$f":"IFERROR('LTC Rev-Exp Region 2'!$H$13/'LTC Rev-Exp Region 2'!$H$9, 0)","v":{"v":0,"d":"$0.00"}},{"$f":"IFERROR('LTC Rev-Exp Region 2'!$I$13/'LTC Rev-Exp Region 2'!$I$9, 0)","v":{"v":0,"d":"$0.00"}},{"$f":"IFERROR('LTC Rev-Exp Region 2'!$J$13/'LTC Rev-Exp Region 2'!$J$9, 0)","v":{"v":0,"d":"$0.00"}},{"$f":"IFERROR('LTC Rev-Exp Region 2'!$K$13/'LTC Rev-Exp Region 2'!$K$9, 0)","v":{"v":0,"d":"$0.00"}}]
["LTC",null,null,{"$f":"Jurat!I$1","v":0},{"$f":"Jurat!D$33","v":"00:00:00"},"Q2","2017-06-30","Region 2","Operating Expense","Medical Expense","NF & Hospice","2.3","Nursing Facility FFS (Medicaid)",{"$f":"IFERROR('LTC Rev-Exp Region 2'!$H$19/'LTC Rev-Exp Region 2'!$H$9, 0)","v":{"v":0,"d":"$0.00"}},{"$f":"IFERROR('LTC Rev-Exp Region 2'!$I$19/'LTC Rev-Exp Region 2'!$I$9, 0)","v":{"v":0,"d":"$0.00"}},{"$f":"IFERROR('LTC Rev-Exp Region 2'!$J$19/'LTC Rev-Exp Region 2'!$J$9, 0)","v":{"v":0,"d":"$0.00"}},{"$f":"IFERROR('LTC Rev-Exp Region 2'!$K$19/'LTC Rev-Exp Region 2'!$K$9, 0)","v":{"v":0,"d":"$0.00"}}]
["LTC",null,null,{"$f":"Jurat!I$1","v":0},{"$f":"Jurat!D$33","v":"00:00:00"},"Q2","2017-06-30","Region 2","Operating Expense","Medical Expense","NF & Hospice","2.4","Nursing Facility FFS (Crossover)",{"$f":"IFERROR('LTC Rev-Exp Region 2'!$H$20/'LTC Rev-Exp Region 2'!$H$9, 0)","v":{"v":0,"d":"$0.00"}},{"$f":"IFERROR('LTC Rev-Exp Region 2'!$I$20/'LTC Rev-Exp Region 2'!$I$9, 0)","v":{"v":0,"d":"$0.00"}},{"$f":"IFERROR('LTC Rev-Exp Region 2'!$J$20/'LTC Rev-Exp Region 2'!$J$9, 0)","v":{"v":0,"d":"$0.00"}},{"$f":"IFERROR('LTC Rev-Exp Region 2'!$K$20/'LTC Rev-Exp Region 2'!$K$9, 0)","v":{"v":0,"d":"$0.00"}}]
["LTC",null,null,{"$f":"Jurat!I$1","v":0},{"$f":"Jurat!D$33","v":"00:00:00"},"Q2","2017-06-30","Region 2","Operating Expense","Medical Expense","NF & Hospice","2.6","Hospice FFS",{"$f":"IFERROR('LTC Rev-Exp Region 2'!$H$22/'LTC Rev-Exp Region 2'!$H$9, 0)","v":{"v":0,"d":"$0.00"}},{"$f":"IFERROR('LTC Rev-Exp Region 2'!$I$22/'LTC Rev-Exp Region 2'!$I$9, 0)","v":{"v":0,"d":"$0.00"}},{"$f":"IFERROR('LTC Rev-Exp Region 2'!$J$22/'LTC Rev-Exp Region 2'!$J$9, 0)","v":{"v":0,"d":"$0.00"}},{"$f":"IFERROR('LTC Rev-Exp Region 2'!$K$22/'LTC Rev-Exp Region 2'!$K$9, 0)","v":{"v":0,"d":"$0.00"}}]
["LTC",null,null,{"$f":"Jurat!I$1","v":0},{"$f":"Jurat!D$33","v":"00:00:00"},"Q2","2017-06-30","Region 2","Operating Expense","Medical Expense","NF & Hospice","2.7","Ending IBNP for NF & Hospice",{"$f":"IFERROR('LTC Rev-Exp Region 2'!$H$23/'LTC Rev-Exp Region 2'!$H$9, 0)","v":{"v":0,"d":"$0.00"}},{"$f":"IFERROR('LTC Rev-Exp Region 2'!$I$23/'LTC Rev-Exp Region 2'!$I$9, 0)","v":{"v":0,"d":"$0.00"}},{"$f":"IFERROR('LTC Rev-Exp Region 2'!$J$23/'LTC Rev-Exp Region 2'!$J$9, 0)","v":{"v":0,"d":"$0.00"}},{"$f":"IFERROR('LTC Rev-Exp Region 2'!$K$23/'LTC Rev-Exp Region 2'!$K$9, 0)","v":{"v":0,"d":"$0.00"}}]
["LTC",null,null,{"$f":"Jurat!I$1","v":0},{"$f":"Jurat!D$33","v":"00:00:00"},"Q2","2017-06-30","Region 2","Operating Expense","Medical Expense","NF & Hospice","2.8","NF & Hospice Subcapitated",{"$f":"IFERROR('LTC Rev-Exp Region 2'!$H$24/'LTC Rev-Exp Region 2'!$H$9, 0)","v":{"v":0,"d":"$0.00"}},{"$f":"IFERROR('LTC Rev-Exp Region 2'!$I$24/'LTC Rev-Exp Region 2'!$I$9, 0)","v":{"v":0,"d":"$0.00"}},{"$f":"IFERROR('LTC Rev-Exp Region 2'!$J$24/'LTC Rev-Exp Region 2'!$J$9, 0)","v":{"v":0,"d":"$0.00"}},{"$f":"IFERROR('LTC Rev-Exp Region 2'!$K$24/'LTC Rev-Exp Region 2'!$K$9, 0)","v":{"v":0,"d":"$0.00"}}]
["LTC",null,null,{"$f":"Jurat!I$1","v":0},{"$f":"Jurat!D$33","v":"00:00:00"},"Q2","2017-06-30","Region 2","Operating Expense","Medical Expense","NF & Hospice","2.9","NF & Hospice Settlements",{"$f":"IFERROR('LTC Rev-Exp Region 2'!$H$25/'LTC Rev-Exp Region 2'!$H$9, 0)","v":{"v":0,"d":"$0.00"}},{"$f":"IFERROR('LTC Rev-Exp Region 2'!$I$25/'LTC Rev-Exp Region 2'!$I$9, 0)","v":{"v":0,"d":"$0.00"}},{"$f":"IFERROR('LTC Rev-Exp Region 2'!$J$25/'LTC Rev-Exp Region 2'!$J$9, 0)","v":{"v":0,"d":"$0.00"}},{"$f":"IFERROR('LTC Rev-Exp Region 2'!$K$25/'LTC Rev-Exp Region 2'!$K$9, 0)","v":{"v":0,"d":"$0.00"}}]
["LTC",null,null,{"$f":"Jurat!I$1","v":0},{"$f":"Jurat!D$33","v":"00:00:00"},"Q2","2017-06-30","Region 2","Operating Expense","Medical Expense","LTC Services","2.11","Assisted Living FFS",{"$f":"IFERROR('LTC Rev-Exp Region 2'!$H$27/'LTC Rev-Exp Region 2'!$H$9, 0)","v":{"v":0,"d":"$0.00"}},{"$f":"IFERROR('LTC Rev-Exp Region 2'!$I$27/'LTC Rev-Exp Region 2'!$I$9, 0)","v":{"v":0,"d":"$0.00"}},{"$f":"IFERROR('LTC Rev-Exp Region 2'!$J$27/'LTC Rev-Exp Region 2'!$J$9, 0)","v":{"v":0,"d":"$0.00"}},{"$f":"IFERROR('LTC Rev-Exp Region 2'!$K$27/'LTC Rev-Exp Region 2'!$K$9, 0)","v":{"v":0,"d":"$0.00"}}]
["LTC",null,null,{"$f":"Jurat!I$1","v":0},{"$f":"Jurat!D$33","v":"00:00:00"},"Q2","2017-06-30","Region 2","Operating Expense","Medical Expense","LTC Services","2.12","Home Health FFS",{"$f":"IFERROR('LTC Rev-Exp Region 2'!$H$28/'LTC Rev-Exp Region 2'!$H$9, 0)","v":{"v":0,"d":"$0.00"}},{"$f":"IFERROR('LTC Rev-Exp Region 2'!$I$28/'LTC Rev-Exp Region 2'!$I$9, 0)","v":{"v":0,"d":"$0.00"}},{"$f":"IFERROR('LTC Rev-Exp Region 2'!$J$28/'LTC Rev-Exp Region 2'!$J$9, 0)","v":{"v":0,"d":"$0.00"}},{"$f":"IFERROR('LTC Rev-Exp Region 2'!$K$28/'LTC Rev-Exp Region 2'!$K$9, 0)","v":{"v":0,"d":"$0.00"}}]
["LTC",null,null,{"$f":"Jurat!I$1","v":0},{"$f":"Jurat!D$33","v":"00:00:00"},"Q2","2017-06-30","Region 2","Operating Expense","Medical Expense","LTC Services","2.13","Medical Equipment/Supplies FFS",{"$f":"IFERROR('LTC Rev-Exp Region 2'!$H$29/'LTC Rev-Exp Region 2'!$H$9, 0)","v":{"v":0,"d":"$0.00"}},{"$f":"IFERROR('LTC Rev-Exp Region 2'!$I$29/'LTC Rev-Exp Region 2'!$I$9, 0)","v":{"v":0,"d":"$0.00"}},{"$f":"IFERROR('LTC Rev-Exp Region 2'!$J$29/'LTC Rev-Exp Region 2'!$J$9, 0)","v":{"v":0,"d":"$0.00"}},{"$f":"IFERROR('LTC Rev-Exp Region 2'!$K$29/'LTC Rev-Exp Region 2'!$K$9, 0)","v":{"v":0,"d":"$0.00"}}]
["LTC",null,null,{"$f":"Jurat!I$1","v":0},{"$f":"Jurat!D$33","v":"00:00:00"},"Q2","2017-06-30","Region 2","Operating Expense","Medical Expense","LTC Services","2.14","Therapy FFS",{"$f":"IFERROR('LTC Rev-Exp Region 2'!$H$30/'LTC Rev-Exp Region 2'!$H$9, 0)","v":{"v":0,"d":"$0.00"}},{"$f":"IFERROR('LTC Rev-Exp Region 2'!$I$30/'LTC Rev-Exp Region 2'!$I$9, 0)","v":{"v":0,"d":"$0.00"}},{"$f":"IFERROR('LTC Rev-Exp Region 2'!$J$30/'LTC Rev-Exp Region 2'!$J$9, 0)","v":{"v":0,"d":"$0.00"}},{"$f":"IFERROR('LTC Rev-Exp Region 2'!$K$30/'LTC Rev-Exp Region 2'!$K$9, 0)","v":{"v":0,"d":"$0.00"}}]
["LTC",null,null,{"$f":"Jurat!I$1","v":0},{"$f":"Jurat!D$33","v":"00:00:00"},"Q2","2017-06-30","Region 2","Operating Expense","Medical Expense","LTC Services","2.15","Transportation FFS",{"$f":"IFERROR('LTC Rev-Exp Region 2'!$H$31/'LTC Rev-Exp Region 2'!$H$9, 0)","v":{"v":0,"d":"$0.00"}},{"$f":"IFERROR('LTC Rev-Exp Region 2'!$I$31/'LTC Rev-Exp Region 2'!$I$9, 0)","v":{"v":0,"d":"$0.00"}},{"$f":"IFERROR('LTC Rev-Exp Region 2'!$J$31/'LTC Rev-Exp Region 2'!$J$9, 0)","v":{"v":0,"d":"$0.00"}},{"$f":"IFERROR('LTC Rev-Exp Region 2'!$K$31/'LTC Rev-Exp Region 2'!$K$9, 0)","v":{"v":0,"d":"$0.00"}}]
["LTC",null,null,{"$f":"Jurat!I$1","v":0},{"$f":"Jurat!D$33","v":"00:00:00"},"Q2","2017-06-30","Region 2","Operating Expense","Medical Expense","LTC Services","2.16","Case Management FFS (Plan Provided)",{"$f":"IFERROR('LTC Rev-Exp Region 2'!$H$32/'LTC Rev-Exp Region 2'!$H$9, 0)","v":{"v":0,"d":"$0.00"}},{"$f":"IFERROR('LTC Rev-Exp Region 2'!$I$32/'LTC Rev-Exp Region 2'!$I$9, 0)","v":{"v":0,"d":"$0.00"}},{"$f":"IFERROR('LTC Rev-Exp Region 2'!$J$32/'LTC Rev-Exp Region 2'!$J$9, 0)","v":{"v":0,"d":"$0.00"}},{"$f":"IFERROR('LTC Rev-Exp Region 2'!$K$32/'LTC Rev-Exp Region 2'!$K$9, 0)","v":{"v":0,"d":"$0.00"}}]
["LTC",null,null,{"$f":"Jurat!I$1","v":0},{"$f":"Jurat!D$33","v":"00:00:00"},"Q2","2017-06-30","Region 2","Operating Expense","Medical Expense","LTC Services","2.17","Case Management FF (Non-Plan Provided)",{"$f":"IFERROR('LTC Rev-Exp Region 2'!$H$33/'LTC Rev-Exp Region 2'!$H$9, 0)","v":{"v":0,"d":"$0.00"}},{"$f":"IFERROR('LTC Rev-Exp Region 2'!$I$33/'LTC Rev-Exp Region 2'!$I$9, 0)","v":{"v":0,"d":"$0.00"}},{"$f":"IFERROR('LTC Rev-Exp Region 2'!$J$33/'LTC Rev-Exp Region 2'!$J$9, 0)","v":{"v":0,"d":"$0.00"}},{"$f":"IFERROR('LTC Rev-Exp Region 2'!$K$33/'LTC Rev-Exp Region 2'!$K$9, 0)","v":{"v":0,"d":"$0.00"}}]
["LTC",null,null,{"$f":"Jurat!I$1","v":0},{"$f":"Jurat!D$33","v":"00:00:00"},"Q2","2017-06-30","Region 2","Operating Expense","Medical Expense","LTC Services","2.18","HCBS FFS",{"$f":"IFERROR('LTC Rev-Exp Region 2'!$H$34/'LTC Rev-Exp Region 2'!$H$9, 0)","v":{"v":0,"d":"$0.00"}},{"$f":"IFERROR('LTC Rev-Exp Region 2'!$I$34/'LTC Rev-Exp Region 2'!$I$9, 0)","v":{"v":0,"d":"$0.00"}},{"$f":"IFERROR('LTC Rev-Exp Region 2'!$J$34/'LTC Rev-Exp Region 2'!$J$9, 0)","v":{"v":0,"d":"$0.00"}},{"$f":"IFERROR('LTC Rev-Exp Region 2'!$K$34/'LTC Rev-Exp Region 2'!$K$9, 0)","v":{"v":0,"d":"$0.00"}}]
["LTC",null,null,{"$f":"Jurat!I$1","v":0},{"$f":"Jurat!D$33","v":"00:00:00"},"Q2","2017-06-30","Region 2","Operating Expense","Medical Expense","LTC Services","2.19","Subcapitated LTC Services",{"$f":"IFERROR('LTC Rev-Exp Region 2'!$H$35/'LTC Rev-Exp Region 2'!$H$9, 0)","v":{"v":0,"d":"$0.00"}},{"$f":"IFERROR('LTC Rev-Exp Region 2'!$I$35/'LTC Rev-Exp Region 2'!$I$9, 0)","v":{"v":0,"d":"$0.00"}},{"$f":"IFERROR('LTC Rev-Exp Region 2'!$J$35/'LTC Rev-Exp Region 2'!$J$9, 0)","v":{"v":0,"d":"$0.00"}},{"$f":"IFERROR('LTC Rev-Exp Region 2'!$K$35/'LTC Rev-Exp Region 2'!$K$9, 0)","v":{"v":0,"d":"$0.00"}}]
["LTC",null,null,{"$f":"Jurat!I$1","v":0},{"$f":"Jurat!D$33","v":"00:00:00"},"Q2","2017-06-30","Region 2","Operating Expense","Medical Expense","LTC Services","2.20","Ending IBNP for Long Term Care Services",{"$f":"IFERROR('LTC Rev-Exp Region 2'!$H$36/'LTC Rev-Exp Region 2'!$H$9, 0)","v":{"v":0,"d":"$0.00"}},{"$f":"IFERROR('LTC Rev-Exp Region 2'!$I$36/'LTC Rev-Exp Region 2'!$I$9, 0)","v":{"v":0,"d":"$0.00"}},{"$f":"IFERROR('LTC Rev-Exp Region 2'!$J$36/'LTC Rev-Exp Region 2'!$J$9, 0)","v":{"v":0,"d":"$0.00"}},{"$f":"IFERROR('LTC Rev-Exp Region 2'!$K$36/'LTC Rev-Exp Region 2'!$K$9, 0)","v":{"v":0,"d":"$0.00"}}]
["LTC",null,null,{"$f":"Jurat!I$1","v":0},{"$f":"Jurat!D$33","v":"00:00:00"},"Q2","2017-06-30","Region 2","Operating Expense","Medical Expense","LTC Services","2.21","LTC Services Settlements",{"$f":"IFERROR('LTC Rev-Exp Region 2'!$H$37/'LTC Rev-Exp Region 2'!$H$9, 0)","v":{"v":0,"d":"$0.00"}},{"$f":"IFERROR('LTC Rev-Exp Region 2'!$I$37/'LTC Rev-Exp Region 2'!$I$9, 0)","v":{"v":0,"d":"$0.00"}},{"$f":"IFERROR('LTC Rev-Exp Region 2'!$J$37/'LTC Rev-Exp Region 2'!$J$9, 0)","v":{"v":0,"d":"$0.00"}},{"$f":"IFERROR('LTC Rev-Exp Region 2'!$K$37/'LTC Rev-Exp Region 2'!$K$9, 0)","v":{"v":0,"d":"$0.00"}}]
["LTC",null,null,{"$f":"Jurat!I$1","v":0},{"$f":"Jurat!D$33","v":"00:00:00"},"Q2","2017-06-30","Region 2","Operating Expense","Medical Expense","Expanded Benefits","3.1","Expanded Benefits FFS",{"$f":"IFERROR('LTC Rev-Exp Region 2'!$H$39/'LTC Rev-Exp Region 2'!$H$9, 0)","v":{"v":0,"d":"$0.00"}},{"$f":"IFERROR('LTC Rev-Exp Region 2'!$I$39/'LTC Rev-Exp Region 2'!$I$9, 0)","v":{"v":0,"d":"$0.00"}},{"$f":"IFERROR('LTC Rev-Exp Region 2'!$J$39/'LTC Rev-Exp Region 2'!$J$9, 0)","v":{"v":0,"d":"$0.00"}},{"$f":"IFERROR('LTC Rev-Exp Region 2'!$K$39/'LTC Rev-Exp Region 2'!$K$9, 0)","v":{"v":0,"d":"$0.00"}}]
["LTC",null,null,{"$f":"Jurat!I$1","v":0},{"$f":"Jurat!D$33","v":"00:00:00"},"Q2","2017-06-30","Region 2","Operating Expense","Medical Expense","Expanded Benefits","3.2","Expanded Benefits Subcapitation",{"$f":"IFERROR('LTC Rev-Exp Region 2'!$H$40/'LTC Rev-Exp Region 2'!$H$9, 0)","v":{"v":0,"d":"$0.00"}},{"$f":"IFERROR('LTC Rev-Exp Region 2'!$I$40/'LTC Rev-Exp Region 2'!$I$9, 0)","v":{"v":0,"d":"$0.00"}},{"$f":"IFERROR('LTC Rev-Exp Region 2'!$J$40/'LTC Rev-Exp Region 2'!$J$9, 0)","v":{"v":0,"d":"$0.00"}},{"$f":"IFERROR('LTC Rev-Exp Region 2'!$K$40/'LTC Rev-Exp Region 2'!$K$9, 0)","v":{"v":0,"d":"$0.00"}}]
["LTC",null,null,{"$f":"Jurat!I$1","v":0},{"$f":"Jurat!D$33","v":"00:00:00"},"Q2","2017-06-30","Region 2","Operating Expense","Medical Expense","Expanded Benefits","3.3","Ending IBNP for Expanded Benefits",{"$f":"IFERROR('LTC Rev-Exp Region 2'!$H$41/'LTC Rev-Exp Region 2'!$H$9, 0)","v":{"v":0,"d":"$0.00"}},{"$f":"IFERROR('LTC Rev-Exp Region 2'!$I$41/'LTC Rev-Exp Region 2'!$I$9, 0)","v":{"v":0,"d":"$0.00"}},{"$f":"IFERROR('LTC Rev-Exp Region 2'!$J$41/'LTC Rev-Exp Region 2'!$J$9, 0)","v":{"v":0,"d":"$0.00"}},{"$f":"IFERROR('LTC Rev-Exp Region 2'!$K$41/'LTC Rev-Exp Region 2'!$K$9, 0)","v":{"v":0,"d":"$0.00"}}]
["LTC",null,null,{"$f":"Jurat!I$1","v":0},{"$f":"Jurat!D$33","v":"00:00:00"},"Q2","2017-06-30","Region 2","Operating Expense","Medical Expense","Expanded Benefits","3.4","Expanded Benefits Settlements",{"$f":"IFERROR('LTC Rev-Exp Region 2'!$H$42/'LTC Rev-Exp Region 2'!$H$9, 0)","v":{"v":0,"d":"$0.00"}},{"$f":"IFERROR('LTC Rev-Exp Region 2'!$I$42/'LTC Rev-Exp Region 2'!$I$9, 0)","v":{"v":0,"d":"$0.00"}},{"$f":"IFERROR('LTC Rev-Exp Region 2'!$J$42/'LTC Rev-Exp Region 2'!$J$9, 0)","v":{"v":0,"d":"$0.00"}},{"$f":"IFERROR('LTC Rev-Exp Region 2'!$K$42/'LTC Rev-Exp Region 2'!$K$9, 0)","v":{"v":0,"d":"$0.00"}}]
["LTC",null,null,{"$f":"Jurat!I$1","v":0},{"$f":"Jurat!D$33","v":"00:00:00"},"Q2","2017-06-30","Region 2","Operating Expense","Medical Expense","Other Medical","4.5","TPL & Fraud/Abuse Recoveries",{"$f":"IFERROR('LTC Rev-Exp Region 2'!$H$48/'LTC Rev-Exp Region 2'!$H$9, 0)","v":{"v":0,"d":"$0.00"}},{"$f":"IFERROR('LTC Rev-Exp Region 2'!$I$48/'LTC Rev-Exp Region 2'!$I$9, 0)","v":{"v":0,"d":"$0.00"}},{"$f":"IFERROR('LTC Rev-Exp Region 2'!$J$48/'LTC Rev-Exp Region 2'!$J$9, 0)","v":{"v":0,"d":"$0.00"}},{"$f":"IFERROR('LTC Rev-Exp Region 2'!$K$48/'LTC Rev-Exp Region 2'!$K$9, 0)","v":{"v":0,"d":"$0.00"}}]
["LTC",null,null,{"$f":"Jurat!I$1","v":0},{"$f":"Jurat!D$33","v":"00:00:00"},"Q2","2017-06-30","Region 2","Operating Expense","Medical Expense","Other Medical","4.6.1","Premium Deficiency Reserve",{"$f":"IFERROR('LTC Rev-Exp Region 2'!$H$49/'LTC Rev-Exp Region 2'!$H$9, 0)","v":{"v":0,"d":"$0.00"}},{"$f":"IFERROR('LTC Rev-Exp Region 2'!$I$49/'LTC Rev-Exp Region 2'!$I$9, 0)","v":{"v":0,"d":"$0.00"}},{"$f":"IFERROR('LTC Rev-Exp Region 2'!$J$49/'LTC Rev-Exp Region 2'!$J$9, 0)","v":{"v":0,"d":"$0.00"}},{"$f":"IFERROR('LTC Rev-Exp Region 2'!$K$49/'LTC Rev-Exp Region 2'!$K$9, 0)","v":{"v":0,"d":"$0.00"}}]
["LTC",null,null,{"$f":"Jurat!I$1","v":0},{"$f":"Jurat!D$33","v":"00:00:00"},"Q2","2017-06-30","Region 2","Operating Expense","Medical Expense","Other Medical","4.8","Reinsurance Premiums",{"$f":"IFERROR('LTC Rev-Exp Region 2'!$H$51/'LTC Rev-Exp Region 2'!$H$9, 0)","v":{"v":0,"d":"$0.00"}},{"$f":"IFERROR('LTC Rev-Exp Region 2'!$I$51/'LTC Rev-Exp Region 2'!$I$9, 0)","v":{"v":0,"d":"$0.00"}},{"$f":"IFERROR('LTC Rev-Exp Region 2'!$J$51/'LTC Rev-Exp Region 2'!$J$9, 0)","v":{"v":0,"d":"$0.00"}},{"$f":"IFERROR('LTC Rev-Exp Region 2'!$K$51/'LTC Rev-Exp Region 2'!$K$9, 0)","v":{"v":0,"d":"$0.00"}}]
["LTC",null,null,{"$f":"Jurat!I$1","v":0},{"$f":"Jurat!D$33","v":"00:00:00"},"Q2","2017-06-30","Region 2","Operating Expense","Medical Expense","Other Medical","4.9","Reinsurance Recoveries",{"$f":"IFERROR('LTC Rev-Exp Region 2'!$H$52/'LTC Rev-Exp Region 2'!$H$9, 0)","v":{"v":0,"d":"$0.00"}},{"$f":"IFERROR('LTC Rev-Exp Region 2'!$I$52/'LTC Rev-Exp Region 2'!$I$9, 0)","v":{"v":0,"d":"$0.00"}},{"$f":"IFERROR('LTC Rev-Exp Region 2'!$J$52/'LTC Rev-Exp Region 2'!$J$9, 0)","v":{"v":0,"d":"$0.00"}},{"$f":"IFERROR('LTC Rev-Exp Region 2'!$K$52/'LTC Rev-Exp Region 2'!$K$9, 0)","v":{"v":0,"d":"$0.00"}}]
["LTC",null,null,{"$f":"Jurat!I$1","v":0},{"$f":"Jurat!D$33","v":"00:00:00"},"Q2","2017-06-30","Region 2","Operating Expense","Administrative Expense","Administrative","5.1","Salaries & Benefits",{"$f":"IFERROR('LTC Rev-Exp Region 2'!$H$57/'LTC Rev-Exp Region 2'!$H$9, 0)","v":{"v":0,"d":"$0.00"}},{"$f":"IFERROR('LTC Rev-Exp Region 2'!$I$57/'LTC Rev-Exp Region 2'!$I$9, 0)","v":{"v":0,"d":"$0.00"}},{"$f":"IFERROR('LTC Rev-Exp Region 2'!$J$57/'LTC Rev-Exp Region 2'!$J$9, 0)","v":{"v":0,"d":"$0.00"}},{"$f":"IFERROR('LTC Rev-Exp Region 2'!$K$57/'LTC Rev-Exp Region 2'!$K$9, 0)","v":{"v":0,"d":"$0.00"}}]
["LTC",null,null,{"$f":"Jurat!I$1","v":0},{"$f":"Jurat!D$33","v":"00:00:00"},"Q2","2017-06-30","Region 2","Operating Expense","Administrative Expense","Administrative","5.2","Administrative Services",{"$f":"IFERROR('LTC Rev-Exp Region 2'!$H$58/'LTC Rev-Exp Region 2'!$H$9, 0)","v":{"v":0,"d":"$0.00"}},{"$f":"IFERROR('LTC Rev-Exp Region 2'!$I$58/'LTC Rev-Exp Region 2'!$I$9, 0)","v":{"v":0,"d":"$0.00"}},{"$f":"IFERROR('LTC Rev-Exp Region 2'!$J$58/'LTC Rev-Exp Region 2'!$J$9, 0)","v":{"v":0,"d":"$0.00"}},{"$f":"IFERROR('LTC Rev-Exp Region 2'!$K$58/'LTC Rev-Exp Region 2'!$K$9, 0)","v":{"v":0,"d":"$0.00"}}]
["LTC",null,null,{"$f":"Jurat!I$1","v":0},{"$f":"Jurat!D$33","v":"00:00:00"},"Q2","2017-06-30","Region 2","Operating Expense","Administrative Expense","Administrative","5.3","Information Systems",{"$f":"IFERROR('LTC Rev-Exp Region 2'!$H$59/'LTC Rev-Exp Region 2'!$H$9, 0)","v":{"v":0,"d":"$0.00"}},{"$f":"IFERROR('LTC Rev-Exp Region 2'!$I$59/'LTC Rev-Exp Region 2'!$I$9, 0)","v":{"v":0,"d":"$0.00"}},{"$f":"IFERROR('LTC Rev-Exp Region 2'!$J$59/'LTC Rev-Exp Region 2'!$J$9, 0)","v":{"v":0,"d":"$0.00"}},{"$f":"IFERROR('LTC Rev-Exp Region 2'!$K$59/'LTC Rev-Exp Region 2'!$K$9, 0)","v":{"v":0,"d":"$0.00"}}]
["LTC",null,null,{"$f":"Jurat!I$1","v":0},{"$f":"Jurat!D$33","v":"00:00:00"},"Q2","2017-06-30","Region 2","Operating Expense","Administrative Expense","Administrative","5.4","Marketing Expenses",{"$f":"IFERROR('LTC Rev-Exp Region 2'!$H$60/'LTC Rev-Exp Region 2'!$H$9, 0)","v":{"v":0,"d":"$0.00"}},{"$f":"IFERROR('LTC Rev-Exp Region 2'!$I$60/'LTC Rev-Exp Region 2'!$I$9, 0)","v":{"v":0,"d":"$0.00"}},{"$f":"IFERROR('LTC Rev-Exp Region 2'!$J$60/'LTC Rev-Exp Region 2'!$J$9, 0)","v":{"v":0,"d":"$0.00"}},{"$f":"IFERROR('LTC Rev-Exp Region 2'!$K$60/'LTC Rev-Exp Region 2'!$K$9, 0)","v":{"v":0,"d":"$0.00"}}]
["LTC",null,null,{"$f":"Jurat!I$1","v":0},{"$f":"Jurat!D$33","v":"00:00:00"},"Q2","2017-06-30","Region 2","Operating Expense","Administrative Expense","Administrative","5.5","General  Administration",{"$f":"IFERROR('LTC Rev-Exp Region 2'!$H$61/'LTC Rev-Exp Region 2'!$H$9, 0)","v":{"v":0,"d":"$0.00"}},{"$f":"IFERROR('LTC Rev-Exp Region 2'!$I$61/'LTC Rev-Exp Region 2'!$I$9, 0)","v":{"v":0,"d":"$0.00"}},{"$f":"IFERROR('LTC Rev-Exp Region 2'!$J$61/'LTC Rev-Exp Region 2'!$J$9, 0)","v":{"v":0,"d":"$0.00"}},{"$f":"IFERROR('LTC Rev-Exp Region 2'!$K$61/'LTC Rev-Exp Region 2'!$K$9, 0)","v":{"v":0,"d":"$0.00"}}]
["LTC",null,null,{"$f":"Jurat!I$1","v":0},{"$f":"Jurat!D$33","v":"00:00:00"},"Q2","2017-06-30","Region 2","Operating Expense","Administrative Expense","Administrative","5.6","Compliance/Regulatory",{"$f":"IFERROR('LTC Rev-Exp Region 2'!$H$62/'LTC Rev-Exp Region 2'!$H$9, 0)","v":{"v":0,"d":"$0.00"}},{"$f":"IFERROR('LTC Rev-Exp Region 2'!$I$62/'LTC Rev-Exp Region 2'!$I$9, 0)","v":{"v":0,"d":"$0.00"}},{"$f":"IFERROR('LTC Rev-Exp Region 2'!$J$62/'LTC Rev-Exp Region 2'!$J$9, 0)","v":{"v":0,"d":"$0.00"}},{"$f":"IFERROR('LTC Rev-Exp Region 2'!$K$62/'LTC Rev-Exp Region 2'!$K$9, 0)","v":{"v":0,"d":"$0.00"}}]
["LTC",null,null,{"$f":"Jurat!I$1","v":0},{"$f":"Jurat!D$33","v":"00:00:00"},"Q2","2017-06-30","Region 2","Operating Expense","Taxes & Fees","Taxes & Fees","6.1","State Premium Tax",{"$f":"IFERROR('LTC Rev-Exp Region 2'!$H$64/'LTC Rev-Exp Region 2'!$H$9, 0)","v":{"v":0,"d":"$0.00"}},{"$f":"IFERROR('LTC Rev-Exp Region 2'!$I$64/'LTC Rev-Exp Region 2'!$I$9, 0)","v":{"v":0,"d":"$0.00"}},{"$f":"IFERROR('LTC Rev-Exp Region 2'!$J$64/'LTC Rev-Exp Region 2'!$J$9, 0)","v":{"v":0,"d":"$0.00"}},{"$f":"IFERROR('LTC Rev-Exp Region 2'!$K$64/'LTC Rev-Exp Region 2'!$K$9, 0)","v":{"v":0,"d":"$0.00"}}]
["LTC",null,null,{"$f":"Jurat!I$1","v":0},{"$f":"Jurat!D$33","v":"00:00:00"},"Q2","2017-06-30","Region 2","Operating Expense","Taxes & Fees","Taxes & Fees","6.2","Department of Insurance Assessments",{"$f":"IFERROR('LTC Rev-Exp Region 2'!$H$65/'LTC Rev-Exp Region 2'!$H$9, 0)","v":{"v":0,"d":"$0.00"}},{"$f":"IFERROR('LTC Rev-Exp Region 2'!$I$65/'LTC Rev-Exp Region 2'!$I$9, 0)","v":{"v":0,"d":"$0.00"}},{"$f":"IFERROR('LTC Rev-Exp Region 2'!$J$65/'LTC Rev-Exp Region 2'!$J$9, 0)","v":{"v":0,"d":"$0.00"}},{"$f":"IFERROR('LTC Rev-Exp Region 2'!$K$65/'LTC Rev-Exp Region 2'!$K$9, 0)","v":{"v":0,"d":"$0.00"}}]
["LTC",null,null,{"$f":"Jurat!I$1","v":0},{"$f":"Jurat!D$33","v":"00:00:00"},"Q2","2017-06-30","Region 2","Non-Operating Expense","Income Tax Expense","Income Tax Expense","9.0","Income Tax Expense",{"$f":"IFERROR('LTC Rev-Exp Region 2'!$H$66/'LTC Rev-Exp Region 2'!$H$9, 0)","v":{"v":0,"d":"$0.00"}},{"$f":"IFERROR('LTC Rev-Exp Region 2'!$I$66/'LTC Rev-Exp Region 2'!$I$9, 0)","v":{"v":0,"d":"$0.00"}},{"$f":"IFERROR('LTC Rev-Exp Region 2'!$J$66/'LTC Rev-Exp Region 2'!$J$9, 0)","v":{"v":0,"d":"$0.00"}},{"$f":"IFERROR('LTC Rev-Exp Region 2'!$K$66/'LTC Rev-Exp Region 2'!$K$9, 0)","v":{"v":0,"d":"$0.00"}}]
["LTC",null,null,{"$f":"Jurat!I$1","v":0},{"$f":"Jurat!D$33","v":"00:00:00"},"Q3","2017-09-30","Region 2","Operating Revenue","Capitation","Capitation",1.1,"Capitation",{"$f":"IFERROR('LTC Rev-Exp Region 2'!$L$11/'LTC Rev-Exp Region 2'!$L$9, 0)","v":{"v":0,"d":"$0.00"}},{"$f":"IFERROR('LTC Rev-Exp Region 2'!$M$11/'LTC Rev-Exp Region 2'!$M$9, 0)","v":{"v":0,"d":"$0.00"}},{"$f":"IFERROR('LTC Rev-Exp Region 2'!$N$11/'LTC Rev-Exp Region 2'!$N$9, 0)","v":{"v":0,"d":"$0.00"}},{"$f":"IFERROR('LTC Rev-Exp Region 2'!$O$11/'LTC Rev-Exp Region 2'!$O$9, 0)","v":{"v":0,"d":"$0.00"}}]
["LTC",null,null,{"$f":"Jurat!I$1","v":0},{"$f":"Jurat!D$33","v":"00:00:00"},"Q3","2017-09-30","Region 2","Operating Revenue","Capitation","NH Rate Reconciliation",1.2,"NH Rate Reconciliation",{"$f":"IFERROR('LTC Rev-Exp Region 2'!L$12/'LTC Rev-Exp Region 2'!L$9, 0)","v":{"v":0,"d":"$0.00"}},{"$f":"IFERROR('LTC Rev-Exp Region 2'!M$12/'LTC Rev-Exp Region 2'!M$9, 0)","v":{"v":0,"d":"$0.00"}},{"$f":"IFERROR('LTC Rev-Exp Region 2'!N$12/'LTC Rev-Exp Region 2'!N$9, 0)","v":{"v":0,"d":"$0.00"}},{"$f":"IFERROR('LTC Rev-Exp Region 2'!O$12/'LTC Rev-Exp Region 2'!O$9, 0)","v":{"v":0,"d":"$0.00"}}]
["LTC",null,null,{"$f":"Jurat!I$1","v":0},{"$f":"Jurat!D$33","v":"00:00:00"},"Q3","2017-09-30","Region 2","Operating Revenue","Other Revenue","Other Revenue",1.3,"Other Revenue",{"$f":"IFERROR('LTC Rev-Exp Region 2'!L161/'LTC Rev-Exp Region 2'!L$9, 0)","v":{"v":0,"d":"$0.00"}},{"$f":"IFERROR('LTC Rev-Exp Region 2'!M161/'LTC Rev-Exp Region 2'!M$9, 0)","v":{"v":0,"d":"$0.00"}},{"$f":"IFERROR('LTC Rev-Exp Region 2'!N161/'LTC Rev-Exp Region 2'!N$9, 0)","v":{"v":0,"d":"$0.00"}},{"$f":"IFERROR('LTC Rev-Exp Region 2'!O161/'LTC Rev-Exp Region 2'!O$9, 0)","v":{"v":0,"d":"$0.00"}}]
["LTC",null,null,{"$f":"Jurat!I$1","v":0},{"$f":"Jurat!D$33","v":"00:00:00"},"Q3","2017-09-30","Region 2","Operating Expense","Medical Expense","NF & Hospice","2.3","Nursing Facility FFS (Medicaid)",{"$f":"IFERROR('LTC Rev-Exp Region 2'!$L$19/'LTC Rev-Exp Region 2'!$L$9, 0)","v":{"v":0,"d":"$0.00"}},{"$f":"IFERROR('LTC Rev-Exp Region 2'!$M$19/'LTC Rev-Exp Region 2'!$M$9, 0)","v":{"v":0,"d":"$0.00"}},{"$f":"IFERROR('LTC Rev-Exp Region 2'!$N$19/'LTC Rev-Exp Region 2'!$N$9, 0)","v":{"v":0,"d":"$0.00"}},{"$f":"IFERROR('LTC Rev-Exp Region 2'!$O$19/'LTC Rev-Exp Region 2'!$O$9, 0)","v":{"v":0,"d":"$0.00"}}]
["LTC",null,null,{"$f":"Jurat!I$1","v":0},{"$f":"Jurat!D$33","v":"00:00:00"},"Q3","2017-09-30","Region 2","Operating Expense","Medical Expense","NF & Hospice","2.4","Nursing Facility FFS (Crossover)",{"$f":"IFERROR('LTC Rev-Exp Region 2'!$L$20/'LTC Rev-Exp Region 2'!$L$9, 0)","v":{"v":0,"d":"$0.00"}},{"$f":"IFERROR('LTC Rev-Exp Region 2'!$M$20/'LTC Rev-Exp Region 2'!$M$9, 0)","v":{"v":0,"d":"$0.00"}},{"$f":"IFERROR('LTC Rev-Exp Region 2'!$N$20/'LTC Rev-Exp Region 2'!$N$9, 0)","v":{"v":0,"d":"$0.00"}},{"$f":"IFERROR('LTC Rev-Exp Region 2'!$O$20/'LTC Rev-Exp Region 2'!$O$9, 0)","v":{"v":0,"d":"$0.00"}}]
["LTC",null,null,{"$f":"Jurat!I$1","v":0},{"$f":"Jurat!D$33","v":"00:00:00"},"Q3","2017-09-30","Region 2","Operating Expense","Medical Expense","NF & Hospice","2.6","Hospice FFS",{"$f":"IFERROR('LTC Rev-Exp Region 2'!$L$22/'LTC Rev-Exp Region 2'!$L$9, 0)","v":{"v":0,"d":"$0.00"}},{"$f":"IFERROR('LTC Rev-Exp Region 2'!$M$22/'LTC Rev-Exp Region 2'!$M$9, 0)","v":{"v":0,"d":"$0.00"}},{"$f":"IFERROR('LTC Rev-Exp Region 2'!$N$22/'LTC Rev-Exp Region 2'!$N$9, 0)","v":{"v":0,"d":"$0.00"}},{"$f":"IFERROR('LTC Rev-Exp Region 2'!$O$22/'LTC Rev-Exp Region 2'!$O$9, 0)","v":{"v":0,"d":"$0.00"}}]
["LTC",null,null,{"$f":"Jurat!I$1","v":0},{"$f":"Jurat!D$33","v":"00:00:00"},"Q3","2017-09-30","Region 2","Operating Expense","Medical Expense","NF & Hospice","2.7","Ending IBNP for NF & Hospice",{"$f":"IFERROR('LTC Rev-Exp Region 2'!$L$23/'LTC Rev-Exp Region 2'!$L$9, 0)","v":{"v":0,"d":"$0.00"}},{"$f":"IFERROR('LTC Rev-Exp Region 2'!$M$23/'LTC Rev-Exp Region 2'!$M$9, 0)","v":{"v":0,"d":"$0.00"}},{"$f":"IFERROR('LTC Rev-Exp Region 2'!$N$23/'LTC Rev-Exp Region 2'!$N$9, 0)","v":{"v":0,"d":"$0.00"}},{"$f":"IFERROR('LTC Rev-Exp Region 2'!$O$23/'LTC Rev-Exp Region 2'!$O$9, 0)","v":{"v":0,"d":"$0.00"}}]
["LTC",null,null,{"$f":"Jurat!I$1","v":0},{"$f":"Jurat!D$33","v":"00:00:00"},"Q3","2017-09-30","Region 2","Operating Expense","Medical Expense","NF & Hospice","2.8","NF & Hospice Subcapitated",{"$f":"IFERROR('LTC Rev-Exp Region 2'!$L$24/'LTC Rev-Exp Region 2'!$L$9, 0)","v":{"v":0,"d":"$0.00"}},{"$f":"IFERROR('LTC Rev-Exp Region 2'!$M$24/'LTC Rev-Exp Region 2'!$M$9, 0)","v":{"v":0,"d":"$0.00"}},{"$f":"IFERROR('LTC Rev-Exp Region 2'!$N$24/'LTC Rev-Exp Region 2'!$N$9, 0)","v":{"v":0,"d":"$0.00"}},{"$f":"IFERROR('LTC Rev-Exp Region 2'!$O$24/'LTC Rev-Exp Region 2'!$O$9, 0)","v":{"v":0,"d":"$0.00"}}]
["LTC",null,null,{"$f":"Jurat!I$1","v":0},{"$f":"Jurat!D$33","v":"00:00:00"},"Q3","2017-09-30","Region 2","Operating Expense","Medical Expense","NF & Hospice","2.9","NF & Hospice Settlements",{"$f":"IFERROR('LTC Rev-Exp Region 2'!$L$25/'LTC Rev-Exp Region 2'!$L$9, 0)","v":{"v":0,"d":"$0.00"}},{"$f":"IFERROR('LTC Rev-Exp Region 2'!$M$25/'LTC Rev-Exp Region 2'!$M$9, 0)","v":{"v":0,"d":"$0.00"}},{"$f":"IFERROR('LTC Rev-Exp Region 2'!$N$25/'LTC Rev-Exp Region 2'!$N$9, 0)","v":{"v":0,"d":"$0.00"}},{"$f":"IFERROR('LTC Rev-Exp Region 2'!$O$25/'LTC Rev-Exp Region 2'!$O$9, 0)","v":{"v":0,"d":"$0.00"}}]
["LTC",null,null,{"$f":"Jurat!I$1","v":0},{"$f":"Jurat!D$33","v":"00:00:00"},"Q3","2017-09-30","Region 2","Operating Expense","Medical Expense","LTC Services","2.11","Assisted Living FFS",{"$f":"IFERROR('LTC Rev-Exp Region 2'!$L$27/'LTC Rev-Exp Region 2'!$L$9, 0)","v":{"v":0,"d":"$0.00"}},{"$f":"IFERROR('LTC Rev-Exp Region 2'!$M$27/'LTC Rev-Exp Region 2'!$M$9, 0)","v":{"v":0,"d":"$0.00"}},{"$f":"IFERROR('LTC Rev-Exp Region 2'!$N$27/'LTC Rev-Exp Region 2'!$N$9, 0)","v":{"v":0,"d":"$0.00"}},{"$f":"IFERROR('LTC Rev-Exp Region 2'!$O$27/'LTC Rev-Exp Region 2'!$O$9, 0)","v":{"v":0,"d":"$0.00"}}]
["LTC",null,null,{"$f":"Jurat!I$1","v":0},{"$f":"Jurat!D$33","v":"00:00:00"},"Q3","2017-09-30","Region 2","Operating Expense","Medical Expense","LTC Services","2.12","Home Health FFS",{"$f":"IFERROR('LTC Rev-Exp Region 2'!$L$28/'LTC Rev-Exp Region 2'!$L$9, 0)","v":{"v":0,"d":"$0.00"}},{"$f":"IFERROR('LTC Rev-Exp Region 2'!$M$28/'LTC Rev-Exp Region 2'!$M$9, 0)","v":{"v":0,"d":"$0.00"}},{"$f":"IFERROR('LTC Rev-Exp Region 2'!$N$28/'LTC Rev-Exp Region 2'!$N$9, 0)","v":{"v":0,"d":"$0.00"}},{"$f":"IFERROR('LTC Rev-Exp Region 2'!$O$28/'LTC Rev-Exp Region 2'!$O$9, 0)","v":{"v":0,"d":"$0.00"}}]
["LTC",null,null,{"$f":"Jurat!I$1","v":0},{"$f":"Jurat!D$33","v":"00:00:00"},"Q3","2017-09-30","Region 2","Operating Expense","Medical Expense","LTC Services","2.13","Medical Equipment/Supplies FFS",{"$f":"IFERROR('LTC Rev-Exp Region 2'!$L$29/'LTC Rev-Exp Region 2'!$L$9, 0)","v":{"v":0,"d":"$0.00"}},{"$f":"IFERROR('LTC Rev-Exp Region 2'!$M$29/'LTC Rev-Exp Region 2'!$M$9, 0)","v":{"v":0,"d":"$0.00"}},{"$f":"IFERROR('LTC Rev-Exp Region 2'!$N$29/'LTC Rev-Exp Region 2'!$N$9, 0)","v":{"v":0,"d":"$0.00"}},{"$f":"IFERROR('LTC Rev-Exp Region 2'!$O$29/'LTC Rev-Exp Region 2'!$O$9, 0)","v":{"v":0,"d":"$0.00"}}]
["LTC",null,null,{"$f":"Jurat!I$1","v":0},{"$f":"Jurat!D$33","v":"00:00:00"},"Q3","2017-09-30","Region 2","Operating Expense","Medical Expense","LTC Services","2.14","Therapy FFS",{"$f":"IFERROR('LTC Rev-Exp Region 2'!$L$30/'LTC Rev-Exp Region 2'!$L$9, 0)","v":{"v":0,"d":"$0.00"}},{"$f":"IFERROR('LTC Rev-Exp Region 2'!$M$30/'LTC Rev-Exp Region 2'!$M$9, 0)","v":{"v":0,"d":"$0.00"}},{"$f":"IFERROR('LTC Rev-Exp Region 2'!$N$30/'LTC Rev-Exp Region 2'!$N$9, 0)","v":{"v":0,"d":"$0.00"}},{"$f":"IFERROR('LTC Rev-Exp Region 2'!$O$30/'LTC Rev-Exp Region 2'!$O$9, 0)","v":{"v":0,"d":"$0.00"}}]
["LTC",null,null,{"$f":"Jurat!I$1","v":0},{"$f":"Jurat!D$33","v":"00:00:00"},"Q3","2017-09-30","Region 2","Operating Expense","Medical Expense","LTC Services","2.15","Transportation FFS",{"$f":"IFERROR('LTC Rev-Exp Region 2'!$L$31/'LTC Rev-Exp Region 2'!$L$9, 0)","v":{"v":0,"d":"$0.00"}},{"$f":"IFERROR('LTC Rev-Exp Region 2'!$M$31/'LTC Rev-Exp Region 2'!$M$9, 0)","v":{"v":0,"d":"$0.00"}},{"$f":"IFERROR('LTC Rev-Exp Region 2'!$N$31/'LTC Rev-Exp Region 2'!$N$9, 0)","v":{"v":0,"d":"$0.00"}},{"$f":"IFERROR('LTC Rev-Exp Region 2'!$O$31/'LTC Rev-Exp Region 2'!$O$9, 0)","v":{"v":0,"d":"$0.00"}}]
["LTC",null,null,{"$f":"Jurat!I$1","v":0},{"$f":"Jurat!D$33","v":"00:00:00"},"Q3","2017-09-30","Region 2","Operating Expense","Medical Expense","LTC Services","2.16","Case Management FFS (Plan Provided)",{"$f":"IFERROR('LTC Rev-Exp Region 2'!$L$32/'LTC Rev-Exp Region 2'!$L$9, 0)","v":{"v":0,"d":"$0.00"}},{"$f":"IFERROR('LTC Rev-Exp Region 2'!$M$32/'LTC Rev-Exp Region 2'!$M$9, 0)","v":{"v":0,"d":"$0.00"}},{"$f":"IFERROR('LTC Rev-Exp Region 2'!$N$32/'LTC Rev-Exp Region 2'!$N$9, 0)","v":{"v":0,"d":"$0.00"}},{"$f":"IFERROR('LTC Rev-Exp Region 2'!$O$32/'LTC Rev-Exp Region 2'!$O$9, 0)","v":{"v":0,"d":"$0.00"}}]
["LTC",null,null,{"$f":"Jurat!I$1","v":0},{"$f":"Jurat!D$33","v":"00:00:00"},"Q3","2017-09-30","Region 2","Operating Expense","Medical Expense","LTC Services","2.17","Case Management FF (Non-Plan Provided)",{"$f":"IFERROR('LTC Rev-Exp Region 2'!$L$33/'LTC Rev-Exp Region 2'!$L$9, 0)","v":{"v":0,"d":"$0.00"}},{"$f":"IFERROR('LTC Rev-Exp Region 2'!$M$33/'LTC Rev-Exp Region 2'!$M$9, 0)","v":{"v":0,"d":"$0.00"}},{"$f":"IFERROR('LTC Rev-Exp Region 2'!$N$33/'LTC Rev-Exp Region 2'!$N$9, 0)","v":{"v":0,"d":"$0.00"}},{"$f":"IFERROR('LTC Rev-Exp Region 2'!$O$33/'LTC Rev-Exp Region 2'!$O$9, 0)","v":{"v":0,"d":"$0.00"}}]
["LTC",null,null,{"$f":"Jurat!I$1","v":0},{"$f":"Jurat!D$33","v":"00:00:00"},"Q3","2017-09-30","Region 2","Operating Expense","Medical Expense","LTC Services","2.18","HCBS FFS",{"$f":"IFERROR('LTC Rev-Exp Region 2'!$L$34/'LTC Rev-Exp Region 2'!$L$9, 0)","v":{"v":0,"d":"$0.00"}},{"$f":"IFERROR('LTC Rev-Exp Region 2'!$M$34/'LTC Rev-Exp Region 2'!$M$9, 0)","v":{"v":0,"d":"$0.00"}},{"$f":"IFERROR('LTC Rev-Exp Region 2'!$N$34/'LTC Rev-Exp Region 2'!$N$9, 0)","v":{"v":0,"d":"$0.00"}},{"$f":"IFERROR('LTC Rev-Exp Region 2'!$O$34/'LTC Rev-Exp Region 2'!$O$9, 0)","v":{"v":0,"d":"$0.00"}}]
["LTC",null,null,{"$f":"Jurat!I$1","v":0},{"$f":"Jurat!D$33","v":"00:00:00"},"Q3","2017-09-30","Region 2","Operating Expense","Medical Expense","LTC Services","2.19","Subcapitated LTC Services",{"$f":"IFERROR('LTC Rev-Exp Region 2'!$L$35/'LTC Rev-Exp Region 2'!$L$9, 0)","v":{"v":0,"d":"$0.00"}},{"$f":"IFERROR('LTC Rev-Exp Region 2'!$M$35/'LTC Rev-Exp Region 2'!$M$9, 0)","v":{"v":0,"d":"$0.00"}},{"$f":"IFERROR('LTC Rev-Exp Region 2'!$N$35/'LTC Rev-Exp Region 2'!$N$9, 0)","v":{"v":0,"d":"$0.00"}},{"$f":"IFERROR('LTC Rev-Exp Region 2'!$O$35/'LTC Rev-Exp Region 2'!$O$9, 0)","v":{"v":0,"d":"$0.00"}}]
["LTC",null,null,{"$f":"Jurat!I$1","v":0},{"$f":"Jurat!D$33","v":"00:00:00"},"Q3","2017-09-30","Region 2","Operating Expense","Medical Expense","LTC Services","2.20","Ending IBNP for Long Term Care Services",{"$f":"IFERROR('LTC Rev-Exp Region 2'!$L$36/'LTC Rev-Exp Region 2'!$L$9, 0)","v":{"v":0,"d":"$0.00"}},{"$f":"IFERROR('LTC Rev-Exp Region 2'!$M$36/'LTC Rev-Exp Region 2'!$M$9, 0)","v":{"v":0,"d":"$0.00"}},{"$f":"IFERROR('LTC Rev-Exp Region 2'!$N$36/'LTC Rev-Exp Region 2'!$N$9, 0)","v":{"v":0,"d":"$0.00"}},{"$f":"IFERROR('LTC Rev-Exp Region 2'!$O$36/'LTC Rev-Exp Region 2'!$O$9, 0)","v":{"v":0,"d":"$0.00"}}]
["LTC",null,null,{"$f":"Jurat!I$1","v":0},{"$f":"Jurat!D$33","v":"00:00:00"},"Q3","2017-09-30","Region 2","Operating Expense","Medical Expense","LTC Services","2.21","LTC Services Settlements",{"$f":"IFERROR('LTC Rev-Exp Region 2'!$L$37/'LTC Rev-Exp Region 2'!$L$9, 0)","v":{"v":0,"d":"$0.00"}},{"$f":"IFERROR('LTC Rev-Exp Region 2'!$M$37/'LTC Rev-Exp Region 2'!$M$9, 0)","v":{"v":0,"d":"$0.00"}},{"$f":"IFERROR('LTC Rev-Exp Region 2'!$N$37/'LTC Rev-Exp Region 2'!$N$9, 0)","v":{"v":0,"d":"$0.00"}},{"$f":"IFERROR('LTC Rev-Exp Region 2'!$O$37/'LTC Rev-Exp Region 2'!$O$9, 0)","v":{"v":0,"d":"$0.00"}}]
["LTC",null,null,{"$f":"Jurat!I$1","v":0},{"$f":"Jurat!D$33","v":"00:00:00"},"Q3","2017-09-30","Region 2","Operating Expense","Medical Expense","Expanded Benefits","3.1","Expanded Benefits FFS",{"$f":"IFERROR('LTC Rev-Exp Region 2'!$L$39/'LTC Rev-Exp Region 2'!$L$9, 0)","v":{"v":0,"d":"$0.00"}},{"$f":"IFERROR('LTC Rev-Exp Region 2'!$M$39/'LTC Rev-Exp Region 2'!$M$9, 0)","v":{"v":0,"d":"$0.00"}},{"$f":"IFERROR('LTC Rev-Exp Region 2'!$N$39/'LTC Rev-Exp Region 2'!$N$9, 0)","v":{"v":0,"d":"$0.00"}},{"$f":"IFERROR('LTC Rev-Exp Region 2'!$O$39/'LTC Rev-Exp Region 2'!$O$9, 0)","v":{"v":0,"d":"$0.00"}}]
["LTC",null,null,{"$f":"Jurat!I$1","v":0},{"$f":"Jurat!D$33","v":"00:00:00"},"Q3","2017-09-30","Region 2","Operating Expense","Medical Expense","Expanded Benefits","3.2","Expanded Benefits Subcapitation",{"$f":"IFERROR('LTC Rev-Exp Region 2'!$L$40/'LTC Rev-Exp Region 2'!$L$9, 0)","v":{"v":0,"d":"$0.00"}},{"$f":"IFERROR('LTC Rev-Exp Region 2'!$M$40/'LTC Rev-Exp Region 2'!$M$9, 0)","v":{"v":0,"d":"$0.00"}},{"$f":"IFERROR('LTC Rev-Exp Region 2'!$N$40/'LTC Rev-Exp Region 2'!$N$9, 0)","v":{"v":0,"d":"$0.00"}},{"$f":"IFERROR('LTC Rev-Exp Region 2'!$O$40/'LTC Rev-Exp Region 2'!$O$9, 0)","v":{"v":0,"d":"$0.00"}}]
["LTC",null,null,{"$f":"Jurat!I$1","v":0},{"$f":"Jurat!D$33","v":"00:00:00"},"Q3","2017-09-30","Region 2","Operating Expense","Medical Expense","Expanded Benefits","3.3","Ending IBNP for Expanded Benefits",{"$f":"IFERROR('LTC Rev-Exp Region 2'!$L$41/'LTC Rev-Exp Region 2'!$L$9, 0)","v":{"v":0,"d":"$0.00"}},{"$f":"IFERROR('LTC Rev-Exp Region 2'!$M$41/'LTC Rev-Exp Region 2'!$M$9, 0)","v":{"v":0,"d":"$0.00"}},{"$f":"IFERROR('LTC Rev-Exp Region 2'!$N$41/'LTC Rev-Exp Region 2'!$N$9, 0)","v":{"v":0,"d":"$0.00"}},{"$f":"IFERROR('LTC Rev-Exp Region 2'!$O$41/'LTC Rev-Exp Region 2'!$O$9, 0)","v":{"v":0,"d":"$0.00"}}]
["LTC",null,null,{"$f":"Jurat!I$1","v":0},{"$f":"Jurat!D$33","v":"00:00:00"},"Q3","2017-09-30","Region 2","Operating Expense","Medical Expense","Expanded Benefits","3.4","Expanded Benefits Settlements",{"$f":"IFERROR('LTC Rev-Exp Region 2'!$L$42/'LTC Rev-Exp Region 2'!$L$9, 0)","v":{"v":0,"d":"$0.00"}},{"$f":"IFERROR('LTC Rev-Exp Region 2'!$M$42/'LTC Rev-Exp Region 2'!$M$9, 0)","v":{"v":0,"d":"$0.00"}},{"$f":"IFERROR('LTC Rev-Exp Region 2'!$N$42/'LTC Rev-Exp Region 2'!$N$9, 0)","v":{"v":0,"d":"$0.00"}},{"$f":"IFERROR('LTC Rev-Exp Region 2'!$O$42/'LTC Rev-Exp Region 2'!$O$9, 0)","v":{"v":0,"d":"$0.00"}}]
["LTC",null,null,{"$f":"Jurat!I$1","v":0},{"$f":"Jurat!D$33","v":"00:00:00"},"Q3","2017-09-30","Region 2","Operating Expense","Medical Expense","Other Medical","4.5","TPL & Fraud/Abuse Recoveries",{"$f":"IFERROR('LTC Rev-Exp Region 2'!$L$48/'LTC Rev-Exp Region 2'!$L$9, 0)","v":{"v":0,"d":"$0.00"}},{"$f":"IFERROR('LTC Rev-Exp Region 2'!$M$48/'LTC Rev-Exp Region 2'!$M$9, 0)","v":{"v":0,"d":"$0.00"}},{"$f":"IFERROR('LTC Rev-Exp Region 2'!$N$48/'LTC Rev-Exp Region 2'!$N$9, 0)","v":{"v":0,"d":"$0.00"}},{"$f":"IFERROR('LTC Rev-Exp Region 2'!$O$48/'LTC Rev-Exp Region 2'!$O$9, 0)","v":{"v":0,"d":"$0.00"}}]
["LTC",null,null,{"$f":"Jurat!I$1","v":0},{"$f":"Jurat!D$33","v":"00:00:00"},"Q3","2017-09-30","Region 2","Operating Expense","Medical Expense","Other Medical","4.6.1","Premium Deficiency Reserve",{"$f":"IFERROR('LTC Rev-Exp Region 2'!$L$49/'LTC Rev-Exp Region 2'!$L$9, 0)","v":{"v":0,"d":"$0.00"}},{"$f":"IFERROR('LTC Rev-Exp Region 2'!$M$49/'LTC Rev-Exp Region 2'!$M$9, 0)","v":{"v":0,"d":"$0.00"}},{"$f":"IFERROR('LTC Rev-Exp Region 2'!$N$49/'LTC Rev-Exp Region 2'!$N$9, 0)","v":{"v":0,"d":"$0.00"}},{"$f":"IFERROR('LTC Rev-Exp Region 2'!$O$49/'LTC Rev-Exp Region 2'!$O$9, 0)","v":{"v":0,"d":"$0.00"}}]
["LTC",null,null,{"$f":"Jurat!I$1","v":0},{"$f":"Jurat!D$33","v":"00:00:00"},"Q3","2017-09-30","Region 2","Operating Expense","Medical Expense","Other Medical","4.8","Reinsurance Premiums",{"$f":"IFERROR('LTC Rev-Exp Region 2'!$L$51/'LTC Rev-Exp Region 2'!$L$9, 0)","v":{"v":0,"d":"$0.00"}},{"$f":"IFERROR('LTC Rev-Exp Region 2'!$M$51/'LTC Rev-Exp Region 2'!$M$9, 0)","v":{"v":0,"d":"$0.00"}},{"$f":"IFERROR('LTC Rev-Exp Region 2'!$N$51/'LTC Rev-Exp Region 2'!$N$9, 0)","v":{"v":0,"d":"$0.00"}},{"$f":"IFERROR('LTC Rev-Exp Region 2'!$O$51/'LTC Rev-Exp Region 2'!$O$9, 0)","v":{"v":0,"d":"$0.00"}}]
["LTC",null,null,{"$f":"Jurat!I$1","v":0},{"$f":"Jurat!D$33","v":"00:00:00"},"Q3","2017-09-30","Region 2","Operating Expense","Medical Expense","Other Medical","4.9","Reinsurance Recoveries",{"$f":"IFERROR('LTC Rev-Exp Region 2'!$L$52/'LTC Rev-Exp Region 2'!$L$9, 0)","v":{"v":0,"d":"$0.00"}},{"$f":"IFERROR('LTC Rev-Exp Region 2'!$M$52/'LTC Rev-Exp Region 2'!$M$9, 0)","v":{"v":0,"d":"$0.00"}},{"$f":"IFERROR('LTC Rev-Exp Region 2'!$N$52/'LTC Rev-Exp Region 2'!$N$9, 0)","v":{"v":0,"d":"$0.00"}},{"$f":"IFERROR('LTC Rev-Exp Region 2'!$O$52/'LTC Rev-Exp Region 2'!$O$9, 0)","v":{"v":0,"d":"$0.00"}}]
["LTC",null,null,{"$f":"Jurat!I$1","v":0},{"$f":"Jurat!D$33","v":"00:00:00"},"Q3","2017-09-30","Region 2","Operating Expense","Administrative Expense","Administrative","5.1","Salaries & Benefits",{"$f":"IFERROR('LTC Rev-Exp Region 2'!$L$57/'LTC Rev-Exp Region 2'!$L$9, 0)","v":{"v":0,"d":"$0.00"}},{"$f":"IFERROR('LTC Rev-Exp Region 2'!$M$57/'LTC Rev-Exp Region 2'!$M$9, 0)","v":{"v":0,"d":"$0.00"}},{"$f":"IFERROR('LTC Rev-Exp Region 2'!$N$57/'LTC Rev-Exp Region 2'!$N$9, 0)","v":{"v":0,"d":"$0.00"}},{"$f":"IFERROR('LTC Rev-Exp Region 2'!$O$57/'LTC Rev-Exp Region 2'!$O$9, 0)","v":{"v":0,"d":"$0.00"}}]
["LTC",null,null,{"$f":"Jurat!I$1","v":0},{"$f":"Jurat!D$33","v":"00:00:00"},"Q3","2017-09-30","Region 2","Operating Expense","Administrative Expense","Administrative","5.2","Administrative Services",{"$f":"IFERROR('LTC Rev-Exp Region 2'!$L$58/'LTC Rev-Exp Region 2'!$L$9, 0)","v":{"v":0,"d":"$0.00"}},{"$f":"IFERROR('LTC Rev-Exp Region 2'!$M$58/'LTC Rev-Exp Region 2'!$M$9, 0)","v":{"v":0,"d":"$0.00"}},{"$f":"IFERROR('LTC Rev-Exp Region 2'!$N$58/'LTC Rev-Exp Region 2'!$N$9, 0)","v":{"v":0,"d":"$0.00"}},{"$f":"IFERROR('LTC Rev-Exp Region 2'!$O$58/'LTC Rev-Exp Region 2'!$O$9, 0)","v":{"v":0,"d":"$0.00"}}]
["LTC",null,null,{"$f":"Jurat!I$1","v":0},{"$f":"Jurat!D$33","v":"00:00:00"},"Q3","2017-09-30","Region 2","Operating Expense","Administrative Expense","Administrative","5.3","Information Systems",{"$f":"IFERROR('LTC Rev-Exp Region 2'!$L$59/'LTC Rev-Exp Region 2'!$L$9, 0)","v":{"v":0,"d":"$0.00"}},{"$f":"IFERROR('LTC Rev-Exp Region 2'!$M$59/'LTC Rev-Exp Region 2'!$M$9, 0)","v":{"v":0,"d":"$0.00"}},{"$f":"IFERROR('LTC Rev-Exp Region 2'!$N$59/'LTC Rev-Exp Region 2'!$N$9, 0)","v":{"v":0,"d":"$0.00"}},{"$f":"IFERROR('LTC Rev-Exp Region 2'!$O$59/'LTC Rev-Exp Region 2'!$O$9, 0)","v":{"v":0,"d":"$0.00"}}]
["LTC",null,null,{"$f":"Jurat!I$1","v":0},{"$f":"Jurat!D$33","v":"00:00:00"},"Q3","2017-09-30","Region 2","Operating Expense","Administrative Expense","Administrative","5.4","Marketing Expenses",{"$f":"IFERROR('LTC Rev-Exp Region 2'!$L$60/'LTC Rev-Exp Region 2'!$L$9, 0)","v":{"v":0,"d":"$0.00"}},{"$f":"IFERROR('LTC Rev-Exp Region 2'!$M$60/'LTC Rev-Exp Region 2'!$M$9, 0)","v":{"v":0,"d":"$0.00"}},{"$f":"IFERROR('LTC Rev-Exp Region 2'!$N$60/'LTC Rev-Exp Region 2'!$N$9, 0)","v":{"v":0,"d":"$0.00"}},{"$f":"IFERROR('LTC Rev-Exp Region 2'!$O$60/'LTC Rev-Exp Region 2'!$O$9, 0)","v":{"v":0,"d":"$0.00"}}]
["LTC",null,null,{"$f":"Jurat!I$1","v":0},{"$f":"Jurat!D$33","v":"00:00:00"},"Q3","2017-09-30","Region 2","Operating Expense","Administrative Expense","Administrative","5.5","General  Administration",{"$f":"IFERROR('LTC Rev-Exp Region 2'!$L$61/'LTC Rev-Exp Region 2'!$L$9, 0)","v":{"v":0,"d":"$0.00"}},{"$f":"IFERROR('LTC Rev-Exp Region 2'!$M$61/'LTC Rev-Exp Region 2'!$M$9, 0)","v":{"v":0,"d":"$0.00"}},{"$f":"IFERROR('LTC Rev-Exp Region 2'!$N$61/'LTC Rev-Exp Region 2'!$N$9, 0)","v":{"v":0,"d":"$0.00"}},{"$f":"IFERROR('LTC Rev-Exp Region 2'!$O$61/'LTC Rev-Exp Region 2'!$O$9, 0)","v":{"v":0,"d":"$0.00"}}]
["LTC",null,null,{"$f":"Jurat!I$1","v":0},{"$f":"Jurat!D$33","v":"00:00:00"},"Q3","2017-09-30","Region 2","Operating Expense","Administrative Expense","Administrative","5.6","Compliance/Regulatory",{"$f":"IFERROR('LTC Rev-Exp Region 2'!$L$62/'LTC Rev-Exp Region 2'!$L$9, 0)","v":{"v":0,"d":"$0.00"}},{"$f":"IFERROR('LTC Rev-Exp Region 2'!$M$62/'LTC Rev-Exp Region 2'!$M$9, 0)","v":{"v":0,"d":"$0.00"}},{"$f":"IFERROR('LTC Rev-Exp Region 2'!$N$62/'LTC Rev-Exp Region 2'!$N$9, 0)","v":{"v":0,"d":"$0.00"}},{"$f":"IFERROR('LTC Rev-Exp Region 2'!$O$62/'LTC Rev-Exp Region 2'!$O$9, 0)","v":{"v":0,"d":"$0.00"}}]
["LTC",null,null,{"$f":"Jurat!I$1","v":0},{"$f":"Jurat!D$33","v":"00:00:00"},"Q3","2017-09-30","Region 2","Operating Expense","Taxes & Fees","Taxes & Fees","6.1","State Premium Tax",{"$f":"IFERROR('LTC Rev-Exp Region 2'!$L$64/'LTC Rev-Exp Region 2'!$L$9, 0)","v":{"v":0,"d":"$0.00"}},{"$f":"IFERROR('LTC Rev-Exp Region 2'!$M$64/'LTC Rev-Exp Region 2'!$M$9, 0)","v":{"v":0,"d":"$0.00"}},{"$f":"IFERROR('LTC Rev-Exp Region 2'!$N$64/'LTC Rev-Exp Region 2'!$N$9, 0)","v":{"v":0,"d":"$0.00"}},{"$f":"IFERROR('LTC Rev-Exp Region 2'!$O$64/'LTC Rev-Exp Region 2'!$O$9, 0)","v":{"v":0,"d":"$0.00"}}]
["LTC",null,null,{"$f":"Jurat!I$1","v":0},{"$f":"Jurat!D$33","v":"00:00:00"},"Q3","2017-09-30","Region 2","Operating Expense","Taxes & Fees","Taxes & Fees","6.2","Department of Insurance Assessments",{"$f":"IFERROR('LTC Rev-Exp Region 2'!$L$65/'LTC Rev-Exp Region 2'!$L$9, 0)","v":{"v":0,"d":"$0.00"}},{"$f":"IFERROR('LTC Rev-Exp Region 2'!$M$65/'LTC Rev-Exp Region 2'!$M$9, 0)","v":{"v":0,"d":"$0.00"}},{"$f":"IFERROR('LTC Rev-Exp Region 2'!$N$65/'LTC Rev-Exp Region 2'!$N$9, 0)","v":{"v":0,"d":"$0.00"}},{"$f":"IFERROR('LTC Rev-Exp Region 2'!$O$65/'LTC Rev-Exp Region 2'!$O$9, 0)","v":{"v":0,"d":"$0.00"}}]
["LTC",null,null,{"$f":"Jurat!I$1","v":0},{"$f":"Jurat!D$33","v":"00:00:00"},"Q3","2017-09-30","Region 2","Non-Operating Expense","Income Tax Expense","Income Tax Expense","9.0","Income Tax Expense",{"$f":"IFERROR('LTC Rev-Exp Region 2'!$L$72/'LTC Rev-Exp Region 2'!$L$9, 0)","v":{"v":0,"d":"$0.00"}},{"$f":"IFERROR('LTC Rev-Exp Region 2'!$M$72/'LTC Rev-Exp Region 2'!$M$9, 0)","v":{"v":0,"d":"$0.00"}},{"$f":"IFERROR('LTC Rev-Exp Region 2'!$N$72/'LTC Rev-Exp Region 2'!$N$9, 0)","v":{"v":0,"d":"$0.00"}},{"$f":"IFERROR('LTC Rev-Exp Region 2'!$O$72/'LTC Rev-Exp Region 2'!$O$9, 0)","v":{"v":0,"d":"$0.00"}}]
["LTC",null,null,{"$f":"Jurat!I$1","v":0},{"$f":"Jurat!D$33","v":"00:00:00"},"Q4","2017-12-31","Region 2","Operating Revenue","Capitation","Capitation",1.1,"Capitation",{"$f":"IFERROR('LTC Rev-Exp Region 2'!$P$11/'LTC Rev-Exp Region 2'!$P$9, 0)","v":{"v":0,"d":"$0.00"}},{"$f":"IFERROR('LTC Rev-Exp Region 2'!$Q$11/'LTC Rev-Exp Region 2'!$Q$9, 0)","v":{"v":0,"d":"$0.00"}},{"$f":"IFERROR('LTC Rev-Exp Region 2'!$R$11/'LTC Rev-Exp Region 2'!$R$9, 0)","v":{"v":0,"d":"$0.00"}},{"$f":"IFERROR('LTC Rev-Exp Region 2'!$S$11/'LTC Rev-Exp Region 2'!$S$9, 0)","v":{"v":0,"d":"$0.00"}}]
["LTC",null,null,{"$f":"Jurat!I$1","v":0},{"$f":"Jurat!D$33","v":"00:00:00"},"Q4","2017-12-31","Region 2","Operating Revenue","Capitation","NH Rate Reconciliation",1.2,"NH Rate Reconciliation",{"$f":"IFERROR('LTC Rev-Exp Region 2'!$P$12/'LTC Rev-Exp Region 2'!$P$9, 0)","v":{"v":0,"d":"$0.00"}},{"$f":"IFERROR('LTC Rev-Exp Region 2'!$Q$12/'LTC Rev-Exp Region 2'!$Q$9, 0)","v":{"v":0,"d":"$0.00"}},{"$f":"IFERROR('LTC Rev-Exp Region 2'!$R$12/'LTC Rev-Exp Region 2'!$R$9, 0)","v":{"v":0,"d":"$0.00"}},{"$f":"IFERROR('LTC Rev-Exp Region 2'!$S$12/'LTC Rev-Exp Region 2'!$S$9, 0)","v":{"v":0,"d":"$0.00"}}]
["LTC",null,null,{"$f":"Jurat!I$1","v":0},{"$f":"Jurat!D$33","v":"00:00:00"},"Q4","2017-12-31","Region 2","Operating Revenue","Other Revenue","Other Revenue",1.3,"Other Revenue",{"$f":"IFERROR('LTC Rev-Exp Region 2'!$P$13/'LTC Rev-Exp Region 2'!$P$9, 0)","v":{"v":0,"d":"$0.00"}},{"$f":"IFERROR('LTC Rev-Exp Region 2'!$Q$13/'LTC Rev-Exp Region 2'!$Q$9, 0)","v":{"v":0,"d":"$0.00"}},{"$f":"IFERROR('LTC Rev-Exp Region 2'!$R$13/'LTC Rev-Exp Region 2'!$R$9, 0)","v":{"v":0,"d":"$0.00"}},{"$f":"IFERROR('LTC Rev-Exp Region 2'!$S$13/'LTC Rev-Exp Region 2'!$S$9, 0)","v":{"v":0,"d":"$0.00"}}]
["LTC",null,null,{"$f":"Jurat!I$1","v":0},{"$f":"Jurat!D$33","v":"00:00:00"},"Q4","2017-12-31","Region 2","Operating Expense","Medical Expense","NF & Hospice","2.3","Nursing Facility FFS (Medicaid)",{"$f":"IFERROR('LTC Rev-Exp Region 2'!$P$19/'LTC Rev-Exp Region 2'!$P$9, 0)","v":{"v":0,"d":"$0.00"}},{"$f":"IFERROR('LTC Rev-Exp Region 2'!$Q$19/'LTC Rev-Exp Region 2'!$Q$9, 0)","v":{"v":0,"d":"$0.00"}},{"$f":"IFERROR('LTC Rev-Exp Region 2'!$R$19/'LTC Rev-Exp Region 2'!$R$9, 0)","v":{"v":0,"d":"$0.00"}},{"$f":"IFERROR('LTC Rev-Exp Region 2'!$S$19/'LTC Rev-Exp Region 2'!$S$9, 0)","v":{"v":0,"d":"$0.00"}}]
["LTC",null,null,{"$f":"Jurat!I$1","v":0},{"$f":"Jurat!D$33","v":"00:00:00"},"Q4","2017-12-31","Region 2","Operating Expense","Medical Expense","NF & Hospice","2.4","Nursing Facility FFS (Crossover)",{"$f":"IFERROR('LTC Rev-Exp Region 2'!$P$20/'LTC Rev-Exp Region 2'!$P$9, 0)","v":{"v":0,"d":"$0.00"}},{"$f":"IFERROR('LTC Rev-Exp Region 2'!$Q$20/'LTC Rev-Exp Region 2'!$Q$9, 0)","v":{"v":0,"d":"$0.00"}},{"$f":"IFERROR('LTC Rev-Exp Region 2'!$R$20/'LTC Rev-Exp Region 2'!$R$9, 0)","v":{"v":0,"d":"$0.00"}},{"$f":"IFERROR('LTC Rev-Exp Region 2'!$S$20/'LTC Rev-Exp Region 2'!$S$9, 0)","v":{"v":0,"d":"$0.00"}}]
["LTC",null,null,{"$f":"Jurat!I$1","v":0},{"$f":"Jurat!D$33","v":"00:00:00"},"Q4","2017-12-31","Region 2","Operating Expense","Medical Expense","NF & Hospice","2.6","Hospice FFS",{"$f":"IFERROR('LTC Rev-Exp Region 2'!$P$22/'LTC Rev-Exp Region 2'!$P$9, 0)","v":{"v":0,"d":"$0.00"}},{"$f":"IFERROR('LTC Rev-Exp Region 2'!$Q$22/'LTC Rev-Exp Region 2'!$Q$9, 0)","v":{"v":0,"d":"$0.00"}},{"$f":"IFERROR('LTC Rev-Exp Region 2'!$R$22/'LTC Rev-Exp Region 2'!$R$9, 0)","v":{"v":0,"d":"$0.00"}},{"$f":"IFERROR('LTC Rev-Exp Region 2'!$S$22/'LTC Rev-Exp Region 2'!$S$9, 0)","v":{"v":0,"d":"$0.00"}}]
["LTC",null,null,{"$f":"Jurat!I$1","v":0},{"$f":"Jurat!D$33","v":"00:00:00"},"Q4","2017-12-31","Region 2","Operating Expense","Medical Expense","NF & Hospice","2.7","Ending IBNP for NF & Hospice",{"$f":"IFERROR('LTC Rev-Exp Region 2'!$P$23/'LTC Rev-Exp Region 2'!$P$9, 0)","v":{"v":0,"d":"$0.00"}},{"$f":"IFERROR('LTC Rev-Exp Region 2'!$Q$23/'LTC Rev-Exp Region 2'!$Q$9, 0)","v":{"v":0,"d":"$0.00"}},{"$f":"IFERROR('LTC Rev-Exp Region 2'!$R$23/'LTC Rev-Exp Region 2'!$R$9, 0)","v":{"v":0,"d":"$0.00"}},{"$f":"IFERROR('LTC Rev-Exp Region 2'!$S$23/'LTC Rev-Exp Region 2'!$S$9, 0)","v":{"v":0,"d":"$0.00"}}]
["LTC",null,null,{"$f":"Jurat!I$1","v":0},{"$f":"Jurat!D$33","v":"00:00:00"},"Q4","2017-12-31","Region 2","Operating Expense","Medical Expense","NF & Hospice","2.8","NF & Hospice Subcapitated",{"$f":"IFERROR('LTC Rev-Exp Region 2'!$P$24/'LTC Rev-Exp Region 2'!$P$9, 0)","v":{"v":0,"d":"$0.00"}},{"$f":"IFERROR('LTC Rev-Exp Region 2'!$Q$24/'LTC Rev-Exp Region 2'!$Q$9, 0)","v":{"v":0,"d":"$0.00"}},{"$f":"IFERROR('LTC Rev-Exp Region 2'!$R$24/'LTC Rev-Exp Region 2'!$R$9, 0)","v":{"v":0,"d":"$0.00"}},{"$f":"IFERROR('LTC Rev-Exp Region 2'!$S$24/'LTC Rev-Exp Region 2'!$S$9, 0)","v":{"v":0,"d":"$0.00"}}]
["LTC",null,null,{"$f":"Jurat!I$1","v":0},{"$f":"Jurat!D$33","v":"00:00:00"},"Q4","2017-12-31","Region 2","Operating Expense","Medical Expense","NF & Hospice","2.9","NF & Hospice Settlements",{"$f":"IFERROR('LTC Rev-Exp Region 2'!$P$25/'LTC Rev-Exp Region 2'!$P$9, 0)","v":{"v":0,"d":"$0.00"}},{"$f":"IFERROR('LTC Rev-Exp Region 2'!$Q$25/'LTC Rev-Exp Region 2'!$Q$9, 0)","v":{"v":0,"d":"$0.00"}},{"$f":"IFERROR('LTC Rev-Exp Region 2'!$R$25/'LTC Rev-Exp Region 2'!$R$9, 0)","v":{"v":0,"d":"$0.00"}},{"$f":"IFERROR('LTC Rev-Exp Region 2'!$S$25/'LTC Rev-Exp Region 2'!$S$9, 0)","v":{"v":0,"d":"$0.00"}}]
["LTC",null,null,{"$f":"Jurat!I$1","v":0},{"$f":"Jurat!D$33","v":"00:00:00"},"Q4","2017-12-31","Region 2","Operating Expense","Medical Expense","LTC Services","2.11","Assisted Living FFS",{"$f":"IFERROR('LTC Rev-Exp Region 2'!$P$27/'LTC Rev-Exp Region 2'!$P$9, 0)","v":{"v":0,"d":"$0.00"}},{"$f":"IFERROR('LTC Rev-Exp Region 2'!$Q$27/'LTC Rev-Exp Region 2'!$Q$9, 0)","v":{"v":0,"d":"$0.00"}},{"$f":"IFERROR('LTC Rev-Exp Region 2'!$R$27/'LTC Rev-Exp Region 2'!$R$9, 0)","v":{"v":0,"d":"$0.00"}},{"$f":"IFERROR('LTC Rev-Exp Region 2'!$S$27/'LTC Rev-Exp Region 2'!$S$9, 0)","v":{"v":0,"d":"$0.00"}}]
["LTC",null,null,{"$f":"Jurat!I$1","v":0},{"$f":"Jurat!D$33","v":"00:00:00"},"Q4","2017-12-31","Region 2","Operating Expense","Medical Expense","LTC Services","2.12","Home Health FFS",{"$f":"IFERROR('LTC Rev-Exp Region 2'!$P$28/'LTC Rev-Exp Region 2'!$P$9, 0)","v":{"v":0,"d":"$0.00"}},{"$f":"IFERROR('LTC Rev-Exp Region 2'!$Q$28/'LTC Rev-Exp Region 2'!$Q$9, 0)","v":{"v":0,"d":"$0.00"}},{"$f":"IFERROR('LTC Rev-Exp Region 2'!$R$28/'LTC Rev-Exp Region 2'!$R$9, 0)","v":{"v":0,"d":"$0.00"}},{"$f":"IFERROR('LTC Rev-Exp Region 2'!$S$28/'LTC Rev-Exp Region 2'!$S$9, 0)","v":{"v":0,"d":"$0.00"}}]
["LTC",null,null,{"$f":"Jurat!I$1","v":0},{"$f":"Jurat!D$33","v":"00:00:00"},"Q4","2017-12-31","Region 2","Operating Expense","Medical Expense","LTC Services","2.13","Medical Equipment/Supplies FFS",{"$f":"IFERROR('LTC Rev-Exp Region 2'!$P$29/'LTC Rev-Exp Region 2'!$P$9, 0)","v":{"v":0,"d":"$0.00"}},{"$f":"IFERROR('LTC Rev-Exp Region 2'!$Q$29/'LTC Rev-Exp Region 2'!$Q$9, 0)","v":{"v":0,"d":"$0.00"}},{"$f":"IFERROR('LTC Rev-Exp Region 2'!$R$29/'LTC Rev-Exp Region 2'!$R$9, 0)","v":{"v":0,"d":"$0.00"}},{"$f":"IFERROR('LTC Rev-Exp Region 2'!$S$29/'LTC Rev-Exp Region 2'!$S$9, 0)","v":{"v":0,"d":"$0.00"}}]
["LTC",null,null,{"$f":"Jurat!I$1","v":0},{"$f":"Jurat!D$33","v":"00:00:00"},"Q4","2017-12-31","Region 2","Operating Expense","Medical Expense","LTC Services","2.14","Therapy FFS",{"$f":"IFERROR('LTC Rev-Exp Region 2'!$P$30/'LTC Rev-Exp Region 2'!$P$9, 0)","v":{"v":0,"d":"$0.00"}},{"$f":"IFERROR('LTC Rev-Exp Region 2'!$Q$30/'LTC Rev-Exp Region 2'!$Q$9, 0)","v":{"v":0,"d":"$0.00"}},{"$f":"IFERROR('LTC Rev-Exp Region 2'!$R$30/'LTC Rev-Exp Region 2'!$R$9, 0)","v":{"v":0,"d":"$0.00"}},{"$f":"IFERROR('LTC Rev-Exp Region 2'!$S$30/'LTC Rev-Exp Region 2'!$S$9, 0)","v":{"v":0,"d":"$0.00"}}]
["LTC",null,null,{"$f":"Jurat!I$1","v":0},{"$f":"Jurat!D$33","v":"00:00:00"},"Q4","2017-12-31","Region 2","Operating Expense","Medical Expense","LTC Services","2.15","Transportation FFS",{"$f":"IFERROR('LTC Rev-Exp Region 2'!$P$31/'LTC Rev-Exp Region 2'!$P$9, 0)","v":{"v":0,"d":"$0.00"}},{"$f":"IFERROR('LTC Rev-Exp Region 2'!$Q$31/'LTC Rev-Exp Region 2'!$Q$9, 0)","v":{"v":0,"d":"$0.00"}},{"$f":"IFERROR('LTC Rev-Exp Region 2'!$R$31/'LTC Rev-Exp Region 2'!$R$9, 0)","v":{"v":0,"d":"$0.00"}},{"$f":"IFERROR('LTC Rev-Exp Region 2'!$S$31/'LTC Rev-Exp Region 2'!$S$9, 0)","v":{"v":0,"d":"$0.00"}}]
["LTC",null,null,{"$f":"Jurat!I$1","v":0},{"$f":"Jurat!D$33","v":"00:00:00"},"Q4","2017-12-31","Region 2","Operating Expense","Medical Expense","LTC Services","2.16","Case Management FFS (Plan Provided)",{"$f":"IFERROR('LTC Rev-Exp Region 2'!$P$32/'LTC Rev-Exp Region 2'!$P$9, 0)","v":{"v":0,"d":"$0.00"}},{"$f":"IFERROR('LTC Rev-Exp Region 2'!$Q$32/'LTC Rev-Exp Region 2'!$Q$9, 0)","v":{"v":0,"d":"$0.00"}},{"$f":"IFERROR('LTC Rev-Exp Region 2'!$R$32/'LTC Rev-Exp Region 2'!$R$9, 0)","v":{"v":0,"d":"$0.00"}},{"$f":"IFERROR('LTC Rev-Exp Region 2'!$S$32/'LTC Rev-Exp Region 2'!$S$9, 0)","v":{"v":0,"d":"$0.00"}}]
["LTC",null,null,{"$f":"Jurat!I$1","v":0},{"$f":"Jurat!D$33","v":"00:00:00"},"Q4","2017-12-31","Region 2","Operating Expense","Medical Expense","LTC Services","2.17","Case Management FF (Non-Plan Provided)",{"$f":"IFERROR('LTC Rev-Exp Region 2'!$P$33/'LTC Rev-Exp Region 2'!$P$9, 0)","v":{"v":0,"d":"$0.00"}},{"$f":"IFERROR('LTC Rev-Exp Region 2'!$Q$33/'LTC Rev-Exp Region 2'!$Q$9, 0)","v":{"v":0,"d":"$0.00"}},{"$f":"IFERROR('LTC Rev-Exp Region 2'!$R$33/'LTC Rev-Exp Region 2'!$R$9, 0)","v":{"v":0,"d":"$0.00"}},{"$f":"IFERROR('LTC Rev-Exp Region 2'!$S$33/'LTC Rev-Exp Region 2'!$S$9, 0)","v":{"v":0,"d":"$0.00"}}]
["LTC",null,null,{"$f":"Jurat!I$1","v":0},{"$f":"Jurat!D$33","v":"00:00:00"},"Q4","2017-12-31","Region 2","Operating Expense","Medical Expense","LTC Services","2.18","HCBS FFS",{"$f":"IFERROR('LTC Rev-Exp Region 2'!$P$34/'LTC Rev-Exp Region 2'!$P$9, 0)","v":{"v":0,"d":"$0.00"}},{"$f":"IFERROR('LTC Rev-Exp Region 2'!$Q$34/'LTC Rev-Exp Region 2'!$Q$9, 0)","v":{"v":0,"d":"$0.00"}},{"$f":"IFERROR('LTC Rev-Exp Region 2'!$R$34/'LTC Rev-Exp Region 2'!$R$9, 0)","v":{"v":0,"d":"$0.00"}},{"$f":"IFERROR('LTC Rev-Exp Region 2'!$S$34/'LTC Rev-Exp Region 2'!$S$9, 0)","v":{"v":0,"d":"$0.00"}}]
["LTC",null,null,{"$f":"Jurat!I$1","v":0},{"$f":"Jurat!D$33","v":"00:00:00"},"Q4","2017-12-31","Region 2","Operating Expense","Medical Expense","LTC Services","2.19","Subcapitated LTC Services",{"$f":"IFERROR('LTC Rev-Exp Region 2'!$P$35/'LTC Rev-Exp Region 2'!$P$9, 0)","v":{"v":0,"d":"$0.00"}},{"$f":"IFERROR('LTC Rev-Exp Region 2'!$Q$35/'LTC Rev-Exp Region 2'!$Q$9, 0)","v":{"v":0,"d":"$0.00"}},{"$f":"IFERROR('LTC Rev-Exp Region 2'!$R$35/'LTC Rev-Exp Region 2'!$R$9, 0)","v":{"v":0,"d":"$0.00"}},{"$f":"IFERROR('LTC Rev-Exp Region 2'!$S$35/'LTC Rev-Exp Region 2'!$S$9, 0)","v":{"v":0,"d":"$0.00"}}]
["LTC",null,null,{"$f":"Jurat!I$1","v":0},{"$f":"Jurat!D$33","v":"00:00:00"},"Q4","2017-12-31","Region 2","Operating Expense","Medical Expense","LTC Services","2.20","Ending IBNP for Long Term Care Services",{"$f":"IFERROR('LTC Rev-Exp Region 2'!$P$36/'LTC Rev-Exp Region 2'!$P$9, 0)","v":{"v":0,"d":"$0.00"}},{"$f":"IFERROR('LTC Rev-Exp Region 2'!$Q$36/'LTC Rev-Exp Region 2'!$Q$9, 0)","v":{"v":0,"d":"$0.00"}},{"$f":"IFERROR('LTC Rev-Exp Region 2'!$R$36/'LTC Rev-Exp Region 2'!$R$9, 0)","v":{"v":0,"d":"$0.00"}},{"$f":"IFERROR('LTC Rev-Exp Region 2'!$S$36/'LTC Rev-Exp Region 2'!$S$9, 0)","v":{"v":0,"d":"$0.00"}}]
["LTC",null,null,{"$f":"Jurat!I$1","v":0},{"$f":"Jurat!D$33","v":"00:00:00"},"Q4","2017-12-31","Region 2","Operating Expense","Medical Expense","LTC Services","2.21","LTC Services Settlements",{"$f":"IFERROR('LTC Rev-Exp Region 2'!$P$37/'LTC Rev-Exp Region 2'!$P$9, 0)","v":{"v":0,"d":"$0.00"}},{"$f":"IFERROR('LTC Rev-Exp Region 2'!$Q$37/'LTC Rev-Exp Region 2'!$Q$9, 0)","v":{"v":0,"d":"$0.00"}},{"$f":"IFERROR('LTC Rev-Exp Region 2'!$R$37/'LTC Rev-Exp Region 2'!$R$9, 0)","v":{"v":0,"d":"$0.00"}},{"$f":"IFERROR('LTC Rev-Exp Region 2'!$S$37/'LTC Rev-Exp Region 2'!$S$9, 0)","v":{"v":0,"d":"$0.00"}}]
["LTC",null,null,{"$f":"Jurat!I$1","v":0},{"$f":"Jurat!D$33","v":"00:00:00"},"Q4","2017-12-31","Region 2","Operating Expense","Medical Expense","Expanded Benefits","3.1","Expanded Benefits FFS",{"$f":"IFERROR('LTC Rev-Exp Region 2'!$P$39/'LTC Rev-Exp Region 2'!$P$9, 0)","v":{"v":0,"d":"$0.00"}},{"$f":"IFERROR('LTC Rev-Exp Region 2'!$Q$39/'LTC Rev-Exp Region 2'!$Q$9, 0)","v":{"v":0,"d":"$0.00"}},{"$f":"IFERROR('LTC Rev-Exp Region 2'!$R$39/'LTC Rev-Exp Region 2'!$R$9, 0)","v":{"v":0,"d":"$0.00"}},{"$f":"IFERROR('LTC Rev-Exp Region 2'!$S$39/'LTC Rev-Exp Region 2'!$S$9, 0)","v":{"v":0,"d":"$0.00"}}]
["LTC",null,null,{"$f":"Jurat!I$1","v":0},{"$f":"Jurat!D$33","v":"00:00:00"},"Q4","2017-12-31","Region 2","Operating Expense","Medical Expense","Expanded Benefits","3.2","Expanded Benefits Subcapitation",{"$f":"IFERROR('LTC Rev-Exp Region 2'!$P$40/'LTC Rev-Exp Region 2'!$P$9, 0)","v":{"v":0,"d":"$0.00"}},{"$f":"IFERROR('LTC Rev-Exp Region 2'!$Q$40/'LTC Rev-Exp Region 2'!$Q$9, 0)","v":{"v":0,"d":"$0.00"}},{"$f":"IFERROR('LTC Rev-Exp Region 2'!$R$40/'LTC Rev-Exp Region 2'!$R$9, 0)","v":{"v":0,"d":"$0.00"}},{"$f":"IFERROR('LTC Rev-Exp Region 2'!$S$40/'LTC Rev-Exp Region 2'!$S$9, 0)","v":{"v":0,"d":"$0.00"}}]
["LTC",null,null,{"$f":"Jurat!I$1","v":0},{"$f":"Jurat!D$33","v":"00:00:00"},"Q4","2017-12-31","Region 2","Operating Expense","Medical Expense","Expanded Benefits","3.3","Ending IBNP for Expanded Benefits",{"$f":"IFERROR('LTC Rev-Exp Region 2'!$P$41/'LTC Rev-Exp Region 2'!$P$9, 0)","v":{"v":0,"d":"$0.00"}},{"$f":"IFERROR('LTC Rev-Exp Region 2'!$Q$41/'LTC Rev-Exp Region 2'!$Q$9, 0)","v":{"v":0,"d":"$0.00"}},{"$f":"IFERROR('LTC Rev-Exp Region 2'!$R$41/'LTC Rev-Exp Region 2'!$R$9, 0)","v":{"v":0,"d":"$0.00"}},{"$f":"IFERROR('LTC Rev-Exp Region 2'!$S$41/'LTC Rev-Exp Region 2'!$S$9, 0)","v":{"v":0,"d":"$0.00"}}]
["LTC",null,null,{"$f":"Jurat!I$1","v":0},{"$f":"Jurat!D$33","v":"00:00:00"},"Q4","2017-12-31","Region 2","Operating Expense","Medical Expense","Expanded Benefits","3.4","Expanded Benefits Settlements",{"$f":"IFERROR('LTC Rev-Exp Region 2'!$P$42/'LTC Rev-Exp Region 2'!$P$9, 0)","v":{"v":0,"d":"$0.00"}},{"$f":"IFERROR('LTC Rev-Exp Region 2'!$Q$42/'LTC Rev-Exp Region 2'!$Q$9, 0)","v":{"v":0,"d":"$0.00"}},{"$f":"IFERROR('LTC Rev-Exp Region 2'!$R$42/'LTC Rev-Exp Region 2'!$R$9, 0)","v":{"v":0,"d":"$0.00"}},{"$f":"IFERROR('LTC Rev-Exp Region 2'!$S$42/'LTC Rev-Exp Region 2'!$S$9, 0)","v":{"v":0,"d":"$0.00"}}]
["LTC",null,null,{"$f":"Jurat!I$1","v":0},{"$f":"Jurat!D$33","v":"00:00:00"},"Q4","2017-12-31","Region 2","Operating Expense","Medical Expense","Other Medical","4.5","TPL & Fraud/Abuse Recoveries",{"$f":"IFERROR('LTC Rev-Exp Region 2'!$P$48/'LTC Rev-Exp Region 2'!$P$9, 0)","v":{"v":0,"d":"$0.00"}},{"$f":"IFERROR('LTC Rev-Exp Region 2'!$Q$48/'LTC Rev-Exp Region 2'!$Q$9, 0)","v":{"v":0,"d":"$0.00"}},{"$f":"IFERROR('LTC Rev-Exp Region 2'!$R$48/'LTC Rev-Exp Region 2'!$R$9, 0)","v":{"v":0,"d":"$0.00"}},{"$f":"IFERROR('LTC Rev-Exp Region 2'!$S$48/'LTC Rev-Exp Region 2'!$S$9, 0)","v":{"v":0,"d":"$0.00"}}]
["LTC",null,null,{"$f":"Jurat!I$1","v":0},{"$f":"Jurat!D$33","v":"00:00:00"},"Q4","2017-12-31","Region 2","Operating Expense","Medical Expense","Other Medical","4.6.1","Premium Deficiency Reserve",{"$f":"IFERROR('LTC Rev-Exp Region 2'!$P$49/'LTC Rev-Exp Region 2'!$P$9, 0)","v":{"v":0,"d":"$0.00"}},{"$f":"IFERROR('LTC Rev-Exp Region 2'!$Q$49/'LTC Rev-Exp Region 2'!$Q$9, 0)","v":{"v":0,"d":"$0.00"}},{"$f":"IFERROR('LTC Rev-Exp Region 2'!$R$49/'LTC Rev-Exp Region 2'!$R$9, 0)","v":{"v":0,"d":"$0.00"}},{"$f":"IFERROR('LTC Rev-Exp Region 2'!$S$49/'LTC Rev-Exp Region 2'!$S$9, 0)","v":{"v":0,"d":"$0.00"}}]
["LTC",null,null,{"$f":"Jurat!I$1","v":0},{"$f":"Jurat!D$33","v":"00:00:00"},"Q4","2017-12-31","Region 2","Operating Expense","Medical Expense","Other Medical","4.8","Reinsurance Premiums",{"$f":"IFERROR('LTC Rev-Exp Region 2'!$P$51/'LTC Rev-Exp Region 2'!$P$9, 0)","v":{"v":0,"d":"$0.00"}},{"$f":"IFERROR('LTC Rev-Exp Region 2'!$Q$51/'LTC Rev-Exp Region 2'!$Q$9, 0)","v":{"v":0,"d":"$0.00"}},{"$f":"IFERROR('LTC Rev-Exp Region 2'!$R$51/'LTC Rev-Exp Region 2'!$R$9, 0)","v":{"v":0,"d":"$0.00"}},{"$f":"IFERROR('LTC Rev-Exp Region 2'!$S$51/'LTC Rev-Exp Region 2'!$S$9, 0)","v":{"v":0,"d":"$0.00"}}]
["LTC",null,null,{"$f":"Jurat!I$1","v":0},{"$f":"Jurat!D$33","v":"00:00:00"},"Q4","2017-12-31","Region 2","Operating Expense","Medical Expense","Other Medical","4.9","Reinsurance Recoveries",{"$f":"IFERROR('LTC Rev-Exp Region 2'!$P$52/'LTC Rev-Exp Region 2'!$P$9, 0)","v":{"v":0,"d":"$0.00"}},{"$f":"IFERROR('LTC Rev-Exp Region 2'!$Q$52/'LTC Rev-Exp Region 2'!$Q$9, 0)","v":{"v":0,"d":"$0.00"}},{"$f":"IFERROR('LTC Rev-Exp Region 2'!$R$52/'LTC Rev-Exp Region 2'!$R$9, 0)","v":{"v":0,"d":"$0.00"}},{"$f":"IFERROR('LTC Rev-Exp Region 2'!$S$52/'LTC Rev-Exp Region 2'!$S$9, 0)","v":{"v":0,"d":"$0.00"}}]
["LTC",null,null,{"$f":"Jurat!I$1","v":0},{"$f":"Jurat!D$33","v":"00:00:00"},"Q4","2017-12-31","Region 2","Operating Expense","Administrative Expense","Administrative","5.1","Salaries & Benefits",{"$f":"IFERROR('LTC Rev-Exp Region 2'!$P$57/'LTC Rev-Exp Region 2'!$P$9, 0)","v":{"v":0,"d":"$0.00"}},{"$f":"IFERROR('LTC Rev-Exp Region 2'!$Q$57/'LTC Rev-Exp Region 2'!$Q$9, 0)","v":{"v":0,"d":"$0.00"}},{"$f":"IFERROR('LTC Rev-Exp Region 2'!$R$57/'LTC Rev-Exp Region 2'!$R$9, 0)","v":{"v":0,"d":"$0.00"}},{"$f":"IFERROR('LTC Rev-Exp Region 2'!$S$57/'LTC Rev-Exp Region 2'!$S$9, 0)","v":{"v":0,"d":"$0.00"}}]
["LTC",null,null,{"$f":"Jurat!I$1","v":0},{"$f":"Jurat!D$33","v":"00:00:00"},"Q4","2017-12-31","Region 2","Operating Expense","Administrative Expense","Administrative","5.2","Administrative Services",{"$f":"IFERROR('LTC Rev-Exp Region 2'!$P$58/'LTC Rev-Exp Region 2'!$P$9, 0)","v":{"v":0,"d":"$0.00"}},{"$f":"IFERROR('LTC Rev-Exp Region 2'!$Q$58/'LTC Rev-Exp Region 2'!$Q$9, 0)","v":{"v":0,"d":"$0.00"}},{"$f":"IFERROR('LTC Rev-Exp Region 2'!$R$58/'LTC Rev-Exp Region 2'!$R$9, 0)","v":{"v":0,"d":"$0.00"}},{"$f":"IFERROR('LTC Rev-Exp Region 2'!$S$58/'LTC Rev-Exp Region 2'!$S$9, 0)","v":{"v":0,"d":"$0.00"}}]
["LTC",null,null,{"$f":"Jurat!I$1","v":0},{"$f":"Jurat!D$33","v":"00:00:00"},"Q4","2017-12-31","Region 2","Operating Expense","Administrative Expense","Administrative","5.3","Information Systems",{"$f":"IFERROR('LTC Rev-Exp Region 2'!$P$59/'LTC Rev-Exp Region 2'!$P$9, 0)","v":{"v":0,"d":"$0.00"}},{"$f":"IFERROR('LTC Rev-Exp Region 2'!$Q$59/'LTC Rev-Exp Region 2'!$Q$9, 0)","v":{"v":0,"d":"$0.00"}},{"$f":"IFERROR('LTC Rev-Exp Region 2'!$R$59/'LTC Rev-Exp Region 2'!$R$9, 0)","v":{"v":0,"d":"$0.00"}},{"$f":"IFERROR('LTC Rev-Exp Region 2'!$S$59/'LTC Rev-Exp Region 2'!$S$9, 0)","v":{"v":0,"d":"$0.00"}}]
["LTC",null,null,{"$f":"Jurat!I$1","v":0},{"$f":"Jurat!D$33","v":"00:00:00"},"Q4","2017-12-31","Region 2","Operating Expense","Administrative Expense","Administrative","5.4","Marketing Expenses",{"$f":"IFERROR('LTC Rev-Exp Region 2'!$P$60/'LTC Rev-Exp Region 2'!$P$9, 0)","v":{"v":0,"d":"$0.00"}},{"$f":"IFERROR('LTC Rev-Exp Region 2'!$Q$60/'LTC Rev-Exp Region 2'!$Q$9, 0)","v":{"v":0,"d":"$0.00"}},{"$f":"IFERROR('LTC Rev-Exp Region 2'!$R$60/'LTC Rev-Exp Region 2'!$R$9, 0)","v":{"v":0,"d":"$0.00"}},{"$f":"IFERROR('LTC Rev-Exp Region 2'!$S$60/'LTC Rev-Exp Region 2'!$S$9, 0)","v":{"v":0,"d":"$0.00"}}]
["LTC",null,null,{"$f":"Jurat!I$1","v":0},{"$f":"Jurat!D$33","v":"00:00:00"},"Q4","2017-12-31","Region 2","Operating Expense","Administrative Expense","Administrative","5.5","General  Administration",{"$f":"IFERROR('LTC Rev-Exp Region 2'!$P$61/'LTC Rev-Exp Region 2'!$P$9, 0)","v":{"v":0,"d":"$0.00"}},{"$f":"IFERROR('LTC Rev-Exp Region 2'!$Q$61/'LTC Rev-Exp Region 2'!$Q$9, 0)","v":{"v":0,"d":"$0.00"}},{"$f":"IFERROR('LTC Rev-Exp Region 2'!$R$61/'LTC Rev-Exp Region 2'!$R$9, 0)","v":{"v":0,"d":"$0.00"}},{"$f":"IFERROR('LTC Rev-Exp Region 2'!$S$61/'LTC Rev-Exp Region 2'!$S$9, 0)","v":{"v":0,"d":"$0.00"}}]
["LTC",null,null,{"$f":"Jurat!I$1","v":0},{"$f":"Jurat!D$33","v":"00:00:00"},"Q4","2017-12-31","Region 2","Operating Expense","Administrative Expense","Administrative","5.6","Compliance/Regulatory",{"$f":"IFERROR('LTC Rev-Exp Region 2'!$P$62/'LTC Rev-Exp Region 2'!$P$9, 0)","v":{"v":0,"d":"$0.00"}},{"$f":"IFERROR('LTC Rev-Exp Region 2'!$Q$62/'LTC Rev-Exp Region 2'!$Q$9, 0)","v":{"v":0,"d":"$0.00"}},{"$f":"IFERROR('LTC Rev-Exp Region 2'!$R$62/'LTC Rev-Exp Region 2'!$R$9, 0)","v":{"v":0,"d":"$0.00"}},{"$f":"IFERROR('LTC Rev-Exp Region 2'!$S$62/'LTC Rev-Exp Region 2'!$S$9, 0)","v":{"v":0,"d":"$0.00"}}]
["LTC",null,null,{"$f":"Jurat!I$1","v":0},{"$f":"Jurat!D$33","v":"00:00:00"},"Q4","2017-12-31","Region 2","Operating Expense","Taxes & Fees","Taxes & Fees","6.1","State Premium Tax",{"$f":"IFERROR('LTC Rev-Exp Region 2'!$P$64/'LTC Rev-Exp Region 2'!$P$9, 0)","v":{"v":0,"d":"$0.00"}},{"$f":"IFERROR('LTC Rev-Exp Region 2'!$Q$64/'LTC Rev-Exp Region 2'!$Q$9, 0)","v":{"v":0,"d":"$0.00"}},{"$f":"IFERROR('LTC Rev-Exp Region 2'!$R$64/'LTC Rev-Exp Region 2'!$R$9, 0)","v":{"v":0,"d":"$0.00"}},{"$f":"IFERROR('LTC Rev-Exp Region 2'!$S$64/'LTC Rev-Exp Region 2'!$S$9, 0)","v":{"v":0,"d":"$0.00"}}]
["LTC",null,null,{"$f":"Jurat!I$1","v":0},{"$f":"Jurat!D$33","v":"00:00:00"},"Q4","2017-12-31","Region 2","Operating Expense","Taxes & Fees","Taxes & Fees","6.2","Department of Insurance Assessments",{"$f":"IFERROR('LTC Rev-Exp Region 2'!$P$65/'LTC Rev-Exp Region 2'!$P$9, 0)","v":{"v":0,"d":"$0.00"}},{"$f":"IFERROR('LTC Rev-Exp Region 2'!$Q$65/'LTC Rev-Exp Region 2'!$Q$9, 0)","v":{"v":0,"d":"$0.00"}},{"$f":"IFERROR('LTC Rev-Exp Region 2'!$R$65/'LTC Rev-Exp Region 2'!$R$9, 0)","v":{"v":0,"d":"$0.00"}},{"$f":"IFERROR('LTC Rev-Exp Region 2'!$S$65/'LTC Rev-Exp Region 2'!$S$9, 0)","v":{"v":0,"d":"$0.00"}}]
["LTC",null,null,{"$f":"Jurat!I$1","v":0},{"$f":"Jurat!D$33","v":"00:00:00"},"Q4","2017-12-31","Region 2","Non-Operating Expense","Income Tax Expense","Income Tax Expense","9.0","Income Tax Expense",{"$f":"IFERROR('LTC Rev-Exp Region 2'!$P$72/'LTC Rev-Exp Region 2'!$P$9, 0)","v":{"v":0,"d":"$0.00"}},{"$f":"IFERROR('LTC Rev-Exp Region 2'!$Q$72/'LTC Rev-Exp Region 2'!$Q$9, 0)","v":{"v":0,"d":"$0.00"}},{"$f":"IFERROR('LTC Rev-Exp Region 2'!$R$72/'LTC Rev-Exp Region 2'!$R$9, 0)","v":{"v":0,"d":"$0.00"}},{"$f":"IFERROR('LTC Rev-Exp Region 2'!$S$72/'LTC Rev-Exp Region 2'!$S$9, 0)","v":{"v":0,"d":"$0.00"}}]
["LTC",null,null,{"$f":"Jurat!I$1","v":0},{"$f":"Jurat!D$33","v":"00:00:00"},"Q1","2017-03-31","Region 3","Operating Revenue","Capitation","Capitation",1.1,"Capitation",{"$f":"IFERROR('LTC Rev-Exp Region 3'!$D$11/'LTC Rev-Exp Region 3'!$D$9, 0)","v":{"v":0,"d":"$0.00"}},{"$f":"IFERROR('LTC Rev-Exp Region 3'!$E$11/'LTC Rev-Exp Region 3'!$E$9, 0)","v":{"v":0,"d":"$0.00"}},{"$f":"IFERROR('LTC Rev-Exp Region 3'!$F$11/'LTC Rev-Exp Region 3'!$F$9, 0)","v":{"v":0,"d":"$0.00"}},{"$f":"IFERROR('LTC Rev-Exp Region 3'!$G$11/'LTC Rev-Exp Region 3'!$G$9, 0)","v":{"v":0,"d":"$0.00"}}]
["LTC",null,null,{"$f":"Jurat!I$1","v":0},{"$f":"Jurat!D$33","v":"00:00:00"},"Q1","2017-03-31","Region 3","Operating Revenue","Capitation","NH Rate Reconciliation",1.2,"NH Rate Reconciliation",{"$f":"IFERROR('LTC Rev-Exp Region 3'!$D$12/'LTC Rev-Exp Region 3'!$D$9, 0)","v":{"v":0,"d":"$0.00"}},{"$f":"IFERROR('LTC Rev-Exp Region 3'!$E$12/'LTC Rev-Exp Region 3'!$E$9, 0)","v":{"v":0,"d":"$0.00"}},{"$f":"IFERROR('LTC Rev-Exp Region 3'!$F$12/'LTC Rev-Exp Region 3'!$F$9, 0)","v":{"v":0,"d":"$0.00"}},{"$f":"IFERROR('LTC Rev-Exp Region 3'!$G$12/'LTC Rev-Exp Region 3'!$G$9, 0)","v":{"v":0,"d":"$0.00"}}]
["LTC",null,null,{"$f":"Jurat!I$1","v":0},{"$f":"Jurat!D$33","v":"00:00:00"},"Q1","2017-03-31","Region 3","Operating Revenue","Other Revenue","Other Revenue",1.3,"Other Revenue",{"$f":"IFERROR('LTC Rev-Exp Region 3'!$D$13/'LTC Rev-Exp Region 3'!$D$9, 0)","v":{"v":0,"d":"$0.00"}},{"$f":"IFERROR('LTC Rev-Exp Region 3'!$E$13/'LTC Rev-Exp Region 3'!$E$9, 0)","v":{"v":0,"d":"$0.00"}},{"$f":"IFERROR('LTC Rev-Exp Region 3'!$F$13/'LTC Rev-Exp Region 3'!$F$9, 0)","v":{"v":0,"d":"$0.00"}},{"$f":"IFERROR('LTC Rev-Exp Region 3'!$G$13/'LTC Rev-Exp Region 3'!$G$9, 0)","v":{"v":0,"d":"$0.00"}}]
["LTC",null,null,{"$f":"Jurat!I$1","v":0},{"$f":"Jurat!D$33","v":"00:00:00"},"Q1","2017-03-31","Region 3","Operating Expense","Medical Expense","NF & Hospice","2.3","Nursing Facility FFS (Medicaid)",{"$f":"IFERROR('LTC Rev-Exp Region 3'!$D$19/'LTC Rev-Exp Region 3'!$D$9, 0)","v":{"v":0,"d":"$0.00"}},{"$f":"IFERROR('LTC Rev-Exp Region 3'!$E$19/'LTC Rev-Exp Region 3'!$E$9, 0)","v":{"v":0,"d":"$0.00"}},{"$f":"IFERROR('LTC Rev-Exp Region 3'!$F$19/'LTC Rev-Exp Region 3'!$F$9, 0)","v":{"v":0,"d":"$0.00"}},{"$f":"IFERROR('LTC Rev-Exp Region 3'!$G$19/'LTC Rev-Exp Region 3'!$G$9, 0)","v":{"v":0,"d":"$0.00"}}]
["LTC",null,null,{"$f":"Jurat!I$1","v":0},{"$f":"Jurat!D$33","v":"00:00:00"},"Q1","2017-03-31","Region 3","Operating Expense","Medical Expense","NF & Hospice","2.4","Nursing Facility FFS (Crossover)",{"$f":"IFERROR('LTC Rev-Exp Region 3'!$D$20/'LTC Rev-Exp Region 3'!$D$9, 0)","v":{"v":0,"d":"$0.00"}},{"$f":"IFERROR('LTC Rev-Exp Region 3'!$E$20/'LTC Rev-Exp Region 3'!$E$9, 0)","v":{"v":0,"d":"$0.00"}},{"$f":"IFERROR('LTC Rev-Exp Region 3'!$F$20/'LTC Rev-Exp Region 3'!$F$9, 0)","v":{"v":0,"d":"$0.00"}},{"$f":"IFERROR('LTC Rev-Exp Region 3'!$G$20/'LTC Rev-Exp Region 3'!$G$9, 0)","v":{"v":0,"d":"$0.00"}}]
["LTC",null,null,{"$f":"Jurat!I$1","v":0},{"$f":"Jurat!D$33","v":"00:00:00"},"Q1","2017-03-31","Region 3","Operating Expense","Medical Expense","NF & Hospice","2.6","Hospice FFS",{"$f":"IFERROR('LTC Rev-Exp Region 3'!$D$22/'LTC Rev-Exp Region 3'!$D$9, 0)","v":{"v":0,"d":"$0.00"}},{"$f":"IFERROR('LTC Rev-Exp Region 3'!$E$22/'LTC Rev-Exp Region 3'!$E$9, 0)","v":{"v":0,"d":"$0.00"}},{"$f":"IFERROR('LTC Rev-Exp Region 3'!$F$22/'LTC Rev-Exp Region 3'!$F$9, 0)","v":{"v":0,"d":"$0.00"}},{"$f":"IFERROR('LTC Rev-Exp Region 3'!$G$22/'LTC Rev-Exp Region 3'!$G$9, 0)","v":{"v":0,"d":"$0.00"}}]
["LTC",null,null,{"$f":"Jurat!I$1","v":0},{"$f":"Jurat!D$33","v":"00:00:00"},"Q1","2017-03-31","Region 3","Operating Expense","Medical Expense","NF & Hospice","2.7","Ending IBNP for NF & Hospice",{"$f":"IFERROR('LTC Rev-Exp Region 3'!$D$23/'LTC Rev-Exp Region 3'!$D$9, 0)","v":{"v":0,"d":"$0.00"}},{"$f":"IFERROR('LTC Rev-Exp Region 3'!$E$23/'LTC Rev-Exp Region 3'!$E$9, 0)","v":{"v":0,"d":"$0.00"}},{"$f":"IFERROR('LTC Rev-Exp Region 3'!$F$23/'LTC Rev-Exp Region 3'!$F$9, 0)","v":{"v":0,"d":"$0.00"}},{"$f":"IFERROR('LTC Rev-Exp Region 3'!$G$23/'LTC Rev-Exp Region 3'!$G$9, 0)","v":{"v":0,"d":"$0.00"}}]
["LTC",null,null,{"$f":"Jurat!I$1","v":0},{"$f":"Jurat!D$33","v":"00:00:00"},"Q1","2017-03-31","Region 3","Operating Expense","Medical Expense","NF & Hospice","2.8","NF & Hospice Subcapitated",{"$f":"IFERROR('LTC Rev-Exp Region 3'!$D$24/'LTC Rev-Exp Region 3'!$D$9, 0)","v":{"v":0,"d":"$0.00"}},{"$f":"IFERROR('LTC Rev-Exp Region 3'!$E$24/'LTC Rev-Exp Region 3'!$E$9, 0)","v":{"v":0,"d":"$0.00"}},{"$f":"IFERROR('LTC Rev-Exp Region 3'!$F$24/'LTC Rev-Exp Region 3'!$F$9, 0)","v":{"v":0,"d":"$0.00"}},{"$f":"IFERROR('LTC Rev-Exp Region 3'!$G$24/'LTC Rev-Exp Region 3'!$G$9, 0)","v":{"v":0,"d":"$0.00"}}]
["LTC",null,null,{"$f":"Jurat!I$1","v":0},{"$f":"Jurat!D$33","v":"00:00:00"},"Q1","2017-03-31","Region 3","Operating Expense","Medical Expense","NF & Hospice","2.9","NF & Hospice Settlements",{"$f":"IFERROR('LTC Rev-Exp Region 3'!$D$25/'LTC Rev-Exp Region 3'!$D$9, 0)","v":{"v":0,"d":"$0.00"}},{"$f":"IFERROR('LTC Rev-Exp Region 3'!$E$25/'LTC Rev-Exp Region 3'!$E$9, 0)","v":{"v":0,"d":"$0.00"}},{"$f":"IFERROR('LTC Rev-Exp Region 3'!$F$25/'LTC Rev-Exp Region 3'!$F$9, 0)","v":{"v":0,"d":"$0.00"}},{"$f":"IFERROR('LTC Rev-Exp Region 3'!$G$25/'LTC Rev-Exp Region 3'!$G$9, 0)","v":{"v":0,"d":"$0.00"}}]
["LTC",null,null,{"$f":"Jurat!I$1","v":0},{"$f":"Jurat!D$33","v":"00:00:00"},"Q1","2017-03-31","Region 3","Operating Expense","Medical Expense","LTC Services","2.11","Assisted Living FFS",{"$f":"IFERROR('LTC Rev-Exp Region 3'!$D$27/'LTC Rev-Exp Region 3'!$D$9, 0)","v":{"v":0,"d":"$0.00"}},{"$f":"IFERROR('LTC Rev-Exp Region 3'!$E$27/'LTC Rev-Exp Region 3'!$E$9, 0)","v":{"v":0,"d":"$0.00"}},{"$f":"IFERROR('LTC Rev-Exp Region 3'!$F$27/'LTC Rev-Exp Region 3'!$F$9, 0)","v":{"v":0,"d":"$0.00"}},{"$f":"IFERROR('LTC Rev-Exp Region 3'!$G$27/'LTC Rev-Exp Region 3'!$G$9, 0)","v":{"v":0,"d":"$0.00"}}]
["LTC",null,null,{"$f":"Jurat!I$1","v":0},{"$f":"Jurat!D$33","v":"00:00:00"},"Q1","2017-03-31","Region 3","Operating Expense","Medical Expense","LTC Services","2.12","Home Health FFS",{"$f":"IFERROR('LTC Rev-Exp Region 3'!$D$28/'LTC Rev-Exp Region 3'!$D$9, 0)","v":{"v":0,"d":"$0.00"}},{"$f":"IFERROR('LTC Rev-Exp Region 3'!$E$28/'LTC Rev-Exp Region 3'!$E$9, 0)","v":{"v":0,"d":"$0.00"}},{"$f":"IFERROR('LTC Rev-Exp Region 3'!$F$28/'LTC Rev-Exp Region 3'!$F$9, 0)","v":{"v":0,"d":"$0.00"}},{"$f":"IFERROR('LTC Rev-Exp Region 3'!$G$28/'LTC Rev-Exp Region 3'!$G$9, 0)","v":{"v":0,"d":"$0.00"}}]
["LTC",null,null,{"$f":"Jurat!I$1","v":0},{"$f":"Jurat!D$33","v":"00:00:00"},"Q1","2017-03-31","Region 3","Operating Expense","Medical Expense","LTC Services","2.13","Medical Equipment/Supplies FFS",{"$f":"IFERROR('LTC Rev-Exp Region 3'!$D$29/'LTC Rev-Exp Region 3'!$D$9, 0)","v":{"v":0,"d":"$0.00"}},{"$f":"IFERROR('LTC Rev-Exp Region 3'!$E$29/'LTC Rev-Exp Region 3'!$E$9, 0)","v":{"v":0,"d":"$0.00"}},{"$f":"IFERROR('LTC Rev-Exp Region 3'!$F$29/'LTC Rev-Exp Region 3'!$F$9, 0)","v":{"v":0,"d":"$0.00"}},{"$f":"IFERROR('LTC Rev-Exp Region 3'!$G$29/'LTC Rev-Exp Region 3'!$G$9, 0)","v":{"v":0,"d":"$0.00"}}]
["LTC",null,null,{"$f":"Jurat!I$1","v":0},{"$f":"Jurat!D$33","v":"00:00:00"},"Q1","2017-03-31","Region 3","Operating Expense","Medical Expense","LTC Services","2.14","Therapy FFS",{"$f":"IFERROR('LTC Rev-Exp Region 3'!$D$30/'LTC Rev-Exp Region 3'!$D$9, 0)","v":{"v":0,"d":"$0.00"}},{"$f":"IFERROR('LTC Rev-Exp Region 3'!$E$30/'LTC Rev-Exp Region 3'!$E$9, 0)","v":{"v":0,"d":"$0.00"}},{"$f":"IFERROR('LTC Rev-Exp Region 3'!$F$30/'LTC Rev-Exp Region 3'!$F$9, 0)","v":{"v":0,"d":"$0.00"}},{"$f":"IFERROR('LTC Rev-Exp Region 3'!$G$30/'LTC Rev-Exp Region 3'!$G$9, 0)","v":{"v":0,"d":"$0.00"}}]
["LTC",null,null,{"$f":"Jurat!I$1","v":0},{"$f":"Jurat!D$33","v":"00:00:00"},"Q1","2017-03-31","Region 3","Operating Expense","Medical Expense","LTC Services","2.15","Transportation FFS",{"$f":"IFERROR('LTC Rev-Exp Region 3'!$D$31/'LTC Rev-Exp Region 3'!$D$9, 0)","v":{"v":0,"d":"$0.00"}},{"$f":"IFERROR('LTC Rev-Exp Region 3'!$E$31/'LTC Rev-Exp Region 3'!$E$9, 0)","v":{"v":0,"d":"$0.00"}},{"$f":"IFERROR('LTC Rev-Exp Region 3'!$F$31/'LTC Rev-Exp Region 3'!$F$9, 0)","v":{"v":0,"d":"$0.00"}},{"$f":"IFERROR('LTC Rev-Exp Region 3'!$G$31/'LTC Rev-Exp Region 3'!$G$9, 0)","v":{"v":0,"d":"$0.00"}}]
["LTC",null,null,{"$f":"Jurat!I$1","v":0},{"$f":"Jurat!D$33","v":"00:00:00"},"Q1","2017-03-31","Region 3","Operating Expense","Medical Expense","LTC Services","2.16","Case Management FFS (Plan Provided)",{"$f":"IFERROR('LTC Rev-Exp Region 3'!$D$32/'LTC Rev-Exp Region 3'!$D$9, 0)","v":{"v":0,"d":"$0.00"}},{"$f":"IFERROR('LTC Rev-Exp Region 3'!$E$32/'LTC Rev-Exp Region 3'!$E$9, 0)","v":{"v":0,"d":"$0.00"}},{"$f":"IFERROR('LTC Rev-Exp Region 3'!$F$32/'LTC Rev-Exp Region 3'!$F$9, 0)","v":{"v":0,"d":"$0.00"}},{"$f":"IFERROR('LTC Rev-Exp Region 3'!$G$32/'LTC Rev-Exp Region 3'!$G$9, 0)","v":{"v":0,"d":"$0.00"}}]
["LTC",null,null,{"$f":"Jurat!I$1","v":0},{"$f":"Jurat!D$33","v":"00:00:00"},"Q1","2017-03-31","Region 3","Operating Expense","Medical Expense","LTC Services","2.17","Case Management FF (Non-Plan Provided)",{"$f":"IFERROR('LTC Rev-Exp Region 3'!$D$33/'LTC Rev-Exp Region 3'!$D$9, 0)","v":{"v":0,"d":"$0.00"}},{"$f":"IFERROR('LTC Rev-Exp Region 3'!$E$33/'LTC Rev-Exp Region 3'!$E$9, 0)","v":{"v":0,"d":"$0.00"}},{"$f":"IFERROR('LTC Rev-Exp Region 3'!$F$33/'LTC Rev-Exp Region 3'!$F$9, 0)","v":{"v":0,"d":"$0.00"}},{"$f":"IFERROR('LTC Rev-Exp Region 3'!$G$33/'LTC Rev-Exp Region 3'!$G$9, 0)","v":{"v":0,"d":"$0.00"}}]
["LTC",null,null,{"$f":"Jurat!I$1","v":0},{"$f":"Jurat!D$33","v":"00:00:00"},"Q1","2017-03-31","Region 3","Operating Expense","Medical Expense","LTC Services","2.18","HCBS FFS",{"$f":"IFERROR('LTC Rev-Exp Region 3'!$D$34/'LTC Rev-Exp Region 3'!$D$9, 0)","v":{"v":0,"d":"$0.00"}},{"$f":"IFERROR('LTC Rev-Exp Region 3'!$E$34/'LTC Rev-Exp Region 3'!$E$9, 0)","v":{"v":0,"d":"$0.00"}},{"$f":"IFERROR('LTC Rev-Exp Region 3'!$F$34/'LTC Rev-Exp Region 3'!$F$9, 0)","v":{"v":0,"d":"$0.00"}},{"$f":"IFERROR('LTC Rev-Exp Region 3'!$G$34/'LTC Rev-Exp Region 3'!$G$9, 0)","v":{"v":0,"d":"$0.00"}}]
["LTC",null,null,{"$f":"Jurat!I$1","v":0},{"$f":"Jurat!D$33","v":"00:00:00"},"Q1","2017-03-31","Region 3","Operating Expense","Medical Expense","LTC Services","2.19","Subcapitated LTC Services",{"$f":"IFERROR('LTC Rev-Exp Region 3'!$D$35/'LTC Rev-Exp Region 3'!$D$9, 0)","v":{"v":0,"d":"$0.00"}},{"$f":"IFERROR('LTC Rev-Exp Region 3'!$E$35/'LTC Rev-Exp Region 3'!$E$9, 0)","v":{"v":0,"d":"$0.00"}},{"$f":"IFERROR('LTC Rev-Exp Region 3'!$F$35/'LTC Rev-Exp Region 3'!$F$9, 0)","v":{"v":0,"d":"$0.00"}},{"$f":"IFERROR('LTC Rev-Exp Region 3'!$G$35/'LTC Rev-Exp Region 3'!$G$9, 0)","v":{"v":0,"d":"$0.00"}}]
["LTC",null,null,{"$f":"Jurat!I$1","v":0},{"$f":"Jurat!D$33","v":"00:00:00"},"Q1","2017-03-31","Region 3","Operating Expense","Medical Expense","LTC Services","2.20","Ending IBNP for Long Term Care Services",{"$f":"IFERROR('LTC Rev-Exp Region 3'!$D$36/'LTC Rev-Exp Region 3'!$D$9, 0)","v":{"v":0,"d":"$0.00"}},{"$f":"IFERROR('LTC Rev-Exp Region 3'!$E$36/'LTC Rev-Exp Region 3'!$E$9, 0)","v":{"v":0,"d":"$0.00"}},{"$f":"IFERROR('LTC Rev-Exp Region 3'!$F$36/'LTC Rev-Exp Region 3'!$F$9, 0)","v":{"v":0,"d":"$0.00"}},{"$f":"IFERROR('LTC Rev-Exp Region 3'!$G$36/'LTC Rev-Exp Region 3'!$G$9, 0)","v":{"v":0,"d":"$0.00"}}]
["LTC",null,null,{"$f":"Jurat!I$1","v":0},{"$f":"Jurat!D$33","v":"00:00:00"},"Q1","2017-03-31","Region 3","Operating Expense","Medical Expense","LTC Services","2.21","LTC Services Settlements",{"$f":"IFERROR('LTC Rev-Exp Region 3'!$D$37/'LTC Rev-Exp Region 3'!$D$9, 0)","v":{"v":0,"d":"$0.00"}},{"$f":"IFERROR('LTC Rev-Exp Region 3'!$E$37/'LTC Rev-Exp Region 3'!$E$9, 0)","v":{"v":0,"d":"$0.00"}},{"$f":"IFERROR('LTC Rev-Exp Region 3'!$F$37/'LTC Rev-Exp Region 3'!$F$9, 0)","v":{"v":0,"d":"$0.00"}},{"$f":"IFERROR('LTC Rev-Exp Region 3'!$G$37/'LTC Rev-Exp Region 3'!$G$9, 0)","v":{"v":0,"d":"$0.00"}}]
["LTC",null,null,{"$f":"Jurat!I$1","v":0},{"$f":"Jurat!D$33","v":"00:00:00"},"Q1","2017-03-31","Region 3","Operating Expense","Medical Expense","Expanded Benefits","3.1","Expanded Benefits FFS",{"$f":"IFERROR('LTC Rev-Exp Region 3'!$D$39/'LTC Rev-Exp Region 3'!$D$9, 0)","v":{"v":0,"d":"$0.00"}},{"$f":"IFERROR('LTC Rev-Exp Region 3'!$E$39/'LTC Rev-Exp Region 3'!$E$9, 0)","v":{"v":0,"d":"$0.00"}},{"$f":"IFERROR('LTC Rev-Exp Region 3'!$F$39/'LTC Rev-Exp Region 3'!$F$9, 0)","v":{"v":0,"d":"$0.00"}},{"$f":"IFERROR('LTC Rev-Exp Region 3'!$G$39/'LTC Rev-Exp Region 3'!$G$9, 0)","v":{"v":0,"d":"$0.00"}}]
["LTC",null,null,{"$f":"Jurat!I$1","v":0},{"$f":"Jurat!D$33","v":"00:00:00"},"Q1","2017-03-31","Region 3","Operating Expense","Medical Expense","Expanded Benefits","3.2","Expanded Benefits Subcapitation",{"$f":"IFERROR('LTC Rev-Exp Region 3'!$D$40/'LTC Rev-Exp Region 3'!$D$9, 0)","v":{"v":0,"d":"$0.00"}},{"$f":"IFERROR('LTC Rev-Exp Region 3'!$E$40/'LTC Rev-Exp Region 3'!$E$9, 0)","v":{"v":0,"d":"$0.00"}},{"$f":"IFERROR('LTC Rev-Exp Region 3'!$F$40/'LTC Rev-Exp Region 3'!$F$9, 0)","v":{"v":0,"d":"$0.00"}},{"$f":"IFERROR('LTC Rev-Exp Region 3'!$G$40/'LTC Rev-Exp Region 3'!$G$9, 0)","v":{"v":0,"d":"$0.00"}}]
["LTC",null,null,{"$f":"Jurat!I$1","v":0},{"$f":"Jurat!D$33","v":"00:00:00"},"Q1","2017-03-31","Region 3","Operating Expense","Medical Expense","Expanded Benefits","3.3","Ending IBNP for Expanded Benefits",{"$f":"IFERROR('LTC Rev-Exp Region 3'!$D$41/'LTC Rev-Exp Region 3'!$D$9, 0)","v":{"v":0,"d":"$0.00"}},{"$f":"IFERROR('LTC Rev-Exp Region 3'!$E$41/'LTC Rev-Exp Region 3'!$E$9, 0)","v":{"v":0,"d":"$0.00"}},{"$f":"IFERROR('LTC Rev-Exp Region 3'!$F$41/'LTC Rev-Exp Region 3'!$F$9, 0)","v":{"v":0,"d":"$0.00"}},{"$f":"IFERROR('LTC Rev-Exp Region 3'!$G$41/'LTC Rev-Exp Region 3'!$G$9, 0)","v":{"v":0,"d":"$0.00"}}]
["LTC",null,null,{"$f":"Jurat!I$1","v":0},{"$f":"Jurat!D$33","v":"00:00:00"},"Q1","2017-03-31","Region 3","Operating Expense","Medical Expense","Expanded Benefits","3.4","Expanded Benefits Settlements",{"$f":"IFERROR('LTC Rev-Exp Region 3'!$D$42/'LTC Rev-Exp Region 3'!$D$9, 0)","v":{"v":0,"d":"$0.00"}},{"$f":"IFERROR('LTC Rev-Exp Region 3'!$E$42/'LTC Rev-Exp Region 3'!$E$9, 0)","v":{"v":0,"d":"$0.00"}},{"$f":"IFERROR('LTC Rev-Exp Region 3'!$F$42/'LTC Rev-Exp Region 3'!$F$9, 0)","v":{"v":0,"d":"$0.00"}},{"$f":"IFERROR('LTC Rev-Exp Region 3'!$G$42/'LTC Rev-Exp Region 3'!$G$9, 0)","v":{"v":0,"d":"$0.00"}}]
["LTC",null,null,{"$f":"Jurat!I$1","v":0},{"$f":"Jurat!D$33","v":"00:00:00"},"Q1","2017-03-31","Region 3","Operating Expense","Medical Expense","Other Medical","4.5","TPL & Fraud/Abuse Recoveries",{"$f":"IFERROR('LTC Rev-Exp Region 3'!$D$48/'LTC Rev-Exp Region 3'!$D$9, 0)","v":{"v":0,"d":"$0.00"}},{"$f":"IFERROR('LTC Rev-Exp Region 3'!$E$48/'LTC Rev-Exp Region 3'!$E$9, 0)","v":{"v":0,"d":"$0.00"}},{"$f":"IFERROR('LTC Rev-Exp Region 3'!$F$48/'LTC Rev-Exp Region 3'!$F$9, 0)","v":{"v":0,"d":"$0.00"}},{"$f":"IFERROR('LTC Rev-Exp Region 3'!$G$48/'LTC Rev-Exp Region 3'!$G$9, 0)","v":{"v":0,"d":"$0.00"}}]
["LTC",null,null,{"$f":"Jurat!I$1","v":0},{"$f":"Jurat!D$33","v":"00:00:00"},"Q1","2017-03-31","Region 3","Operating Expense","Medical Expense","Other Medical","4.6.1","Premium Deficiency Reserve",{"$f":"IFERROR('LTC Rev-Exp Region 3'!$D$49/'LTC Rev-Exp Region 3'!$D$9, 0)","v":{"v":0,"d":"$0.00"}},{"$f":"IFERROR('LTC Rev-Exp Region 3'!$E$49/'LTC Rev-Exp Region 3'!$E$9, 0)","v":{"v":0,"d":"$0.00"}},{"$f":"IFERROR('LTC Rev-Exp Region 3'!$F$49/'LTC Rev-Exp Region 3'!$F$9, 0)","v":{"v":0,"d":"$0.00"}},{"$f":"IFERROR('LTC Rev-Exp Region 3'!$G$49/'LTC Rev-Exp Region 3'!$G$9, 0)","v":{"v":0,"d":"$0.00"}}]
["LTC",null,null,{"$f":"Jurat!I$1","v":0},{"$f":"Jurat!D$33","v":"00:00:00"},"Q1","2017-03-31","Region 3","Operating Expense","Medical Expense","Other Medical","4.8","Reinsurance Premiums",{"$f":"IFERROR('LTC Rev-Exp Region 3'!$D$51/'LTC Rev-Exp Region 3'!$D$9, 0)","v":{"v":0,"d":"$0.00"}},{"$f":"IFERROR('LTC Rev-Exp Region 3'!$E$51/'LTC Rev-Exp Region 3'!$E$9, 0)","v":{"v":0,"d":"$0.00"}},{"$f":"IFERROR('LTC Rev-Exp Region 3'!$F$51/'LTC Rev-Exp Region 3'!$F$9, 0)","v":{"v":0,"d":"$0.00"}},{"$f":"IFERROR('LTC Rev-Exp Region 3'!$G$51/'LTC Rev-Exp Region 3'!$G$9, 0)","v":{"v":0,"d":"$0.00"}}]
["LTC",null,null,{"$f":"Jurat!I$1","v":0},{"$f":"Jurat!D$33","v":"00:00:00"},"Q1","2017-03-31","Region 3","Operating Expense","Medical Expense","Other Medical","4.9","Reinsurance Recoveries",{"$f":"IFERROR('LTC Rev-Exp Region 3'!$D$52/'LTC Rev-Exp Region 3'!$D$9, 0)","v":{"v":0,"d":"$0.00"}},{"$f":"IFERROR('LTC Rev-Exp Region 3'!$E$52/'LTC Rev-Exp Region 3'!$E$9, 0)","v":{"v":0,"d":"$0.00"}},{"$f":"IFERROR('LTC Rev-Exp Region 3'!$F$52/'LTC Rev-Exp Region 3'!$F$9, 0)","v":{"v":0,"d":"$0.00"}},{"$f":"IFERROR('LTC Rev-Exp Region 3'!$G$52/'LTC Rev-Exp Region 3'!$G$9, 0)","v":{"v":0,"d":"$0.00"}}]
["LTC",null,null,{"$f":"Jurat!I$1","v":0},{"$f":"Jurat!D$33","v":"00:00:00"},"Q1","2017-03-31","Region 3","Operating Expense","Administrative Expense","Administrative","5.1","Salaries & Benefits",{"$f":"IFERROR('LTC Rev-Exp Region 3'!$D$57/'LTC Rev-Exp Region 3'!$D$9, 0)","v":{"v":0,"d":"$0.00"}},{"$f":"IFERROR('LTC Rev-Exp Region 3'!$E$57/'LTC Rev-Exp Region 3'!$D$9, 0)","v":{"v":0,"d":"$0.00"}},{"$f":"IFERROR('LTC Rev-Exp Region 3'!$F$57/'LTC Rev-Exp Region 3'!$D$9, 0)","v":{"v":0,"d":"$0.00"}},{"$f":"IFERROR('LTC Rev-Exp Region 3'!$G$57/'LTC Rev-Exp Region 3'!$D$9, 0)","v":{"v":0,"d":"$0.00"}}]
["LTC",null,null,{"$f":"Jurat!I$1","v":0},{"$f":"Jurat!D$33","v":"00:00:00"},"Q1","2017-03-31","Region 3","Operating Expense","Administrative Expense","Administrative","5.2","Administrative Services",{"$f":"IFERROR('LTC Rev-Exp Region 3'!$D$58/'LTC Rev-Exp Region 3'!$D$9, 0)","v":{"v":0,"d":"$0.00"}},{"$f":"IFERROR('LTC Rev-Exp Region 3'!$E$58/'LTC Rev-Exp Region 3'!$D$9, 0)","v":{"v":0,"d":"$0.00"}},{"$f":"IFERROR('LTC Rev-Exp Region 3'!$F$58/'LTC Rev-Exp Region 3'!$D$9, 0)","v":{"v":0,"d":"$0.00"}},{"$f":"IFERROR('LTC Rev-Exp Region 3'!$G$58/'LTC Rev-Exp Region 3'!$D$9, 0)","v":{"v":0,"d":"$0.00"}}]
["LTC",null,null,{"$f":"Jurat!I$1","v":0},{"$f":"Jurat!D$33","v":"00:00:00"},"Q1","2017-03-31","Region 3","Operating Expense","Administrative Expense","Administrative","5.3","Information Systems",{"$f":"IFERROR('LTC Rev-Exp Region 3'!$D$59/'LTC Rev-Exp Region 3'!$D$9, 0)","v":{"v":0,"d":"$0.00"}},{"$f":"IFERROR('LTC Rev-Exp Region 3'!$E$59/'LTC Rev-Exp Region 3'!$D$9, 0)","v":{"v":0,"d":"$0.00"}},{"$f":"IFERROR('LTC Rev-Exp Region 3'!$F$59/'LTC Rev-Exp Region 3'!$D$9, 0)","v":{"v":0,"d":"$0.00"}},{"$f":"IFERROR('LTC Rev-Exp Region 3'!$G$59/'LTC Rev-Exp Region 3'!$D$9, 0)","v":{"v":0,"d":"$0.00"}}]
["LTC",null,null,{"$f":"Jurat!I$1","v":0},{"$f":"Jurat!D$33","v":"00:00:00"},"Q1","2017-03-31","Region 3","Operating Expense","Administrative Expense","Administrative","5.4","Marketing Expenses",{"$f":"IFERROR('LTC Rev-Exp Region 3'!$D$60/'LTC Rev-Exp Region 3'!$D$9, 0)","v":{"v":0,"d":"$0.00"}},{"$f":"IFERROR('LTC Rev-Exp Region 3'!$E$60/'LTC Rev-Exp Region 3'!$D$9, 0)","v":{"v":0,"d":"$0.00"}},{"$f":"IFERROR('LTC Rev-Exp Region 3'!$F$60/'LTC Rev-Exp Region 3'!$D$9, 0)","v":{"v":0,"d":"$0.00"}},{"$f":"IFERROR('LTC Rev-Exp Region 3'!$G$60/'LTC Rev-Exp Region 3'!$D$9, 0)","v":{"v":0,"d":"$0.00"}}]
["LTC",null,null,{"$f":"Jurat!I$1","v":0},{"$f":"Jurat!D$33","v":"00:00:00"},"Q1","2017-03-31","Region 3","Operating Expense","Administrative Expense","Administrative","5.5","General  Administration",{"$f":"IFERROR('LTC Rev-Exp Region 3'!$D$61/'LTC Rev-Exp Region 3'!$D$9, 0)","v":{"v":0,"d":"$0.00"}},{"$f":"IFERROR('LTC Rev-Exp Region 3'!$E$61/'LTC Rev-Exp Region 3'!$D$9, 0)","v":{"v":0,"d":"$0.00"}},{"$f":"IFERROR('LTC Rev-Exp Region 3'!$F$61/'LTC Rev-Exp Region 3'!$D$9, 0)","v":{"v":0,"d":"$0.00"}},{"$f":"IFERROR('LTC Rev-Exp Region 3'!$G$61/'LTC Rev-Exp Region 3'!$D$9, 0)","v":{"v":0,"d":"$0.00"}}]
["LTC",null,null,{"$f":"Jurat!I$1","v":0},{"$f":"Jurat!D$33","v":"00:00:00"},"Q1","2017-03-31","Region 3","Operating Expense","Administrative Expense","Administrative","5.6","Compliance/Regulatory",{"$f":"IFERROR('LTC Rev-Exp Region 3'!$D$62/'LTC Rev-Exp Region 3'!$D$9, 0)","v":{"v":0,"d":"$0.00"}},{"$f":"IFERROR('LTC Rev-Exp Region 3'!$E$62/'LTC Rev-Exp Region 3'!$D$9, 0)","v":{"v":0,"d":"$0.00"}},{"$f":"IFERROR('LTC Rev-Exp Region 3'!$F$62/'LTC Rev-Exp Region 3'!$D$9, 0)","v":{"v":0,"d":"$0.00"}},{"$f":"IFERROR('LTC Rev-Exp Region 3'!$G$62/'LTC Rev-Exp Region 3'!$D$9, 0)","v":{"v":0,"d":"$0.00"}}]
["LTC",null,null,{"$f":"Jurat!I$1","v":0},{"$f":"Jurat!D$33","v":"00:00:00"},"Q1","2017-03-31","Region 3","Operating Expense","Taxes & Fees","Taxes & Fees","6.1","State Premium Tax",{"$f":"IFERROR('LTC Rev-Exp Region 3'!$D$64/'LTC Rev-Exp Region 3'!$D$9, 0)","v":{"v":0,"d":"$0.00"}},{"$f":"IFERROR('LTC Rev-Exp Region 3'!$E$64/'LTC Rev-Exp Region 3'!$E$9, 0)","v":{"v":0,"d":"$0.00"}},{"$f":"IFERROR('LTC Rev-Exp Region 3'!$F$64/'LTC Rev-Exp Region 3'!$F$9, 0)","v":{"v":0,"d":"$0.00"}},{"$f":"IFERROR('LTC Rev-Exp Region 3'!$G$64/'LTC Rev-Exp Region 3'!$G$9, 0)","v":{"v":0,"d":"$0.00"}}]
["LTC",null,null,{"$f":"Jurat!I$1","v":0},{"$f":"Jurat!D$33","v":"00:00:00"},"Q1","2017-03-31","Region 3","Operating Expense","Taxes & Fees","Taxes & Fees","6.2","Department of Insurance Assessments",{"$f":"IFERROR('LTC Rev-Exp Region 3'!$D$65/'LTC Rev-Exp Region 3'!$D$9, 0)","v":{"v":0,"d":"$0.00"}},{"$f":"IFERROR('LTC Rev-Exp Region 3'!$E$65/'LTC Rev-Exp Region 3'!$E$9, 0)","v":{"v":0,"d":"$0.00"}},{"$f":"IFERROR('LTC Rev-Exp Region 3'!$F$65/'LTC Rev-Exp Region 3'!$F$9, 0)","v":{"v":0,"d":"$0.00"}},{"$f":"IFERROR('LTC Rev-Exp Region 3'!$G$65/'LTC Rev-Exp Region 3'!$G$9, 0)","v":{"v":0,"d":"$0.00"}}]
["LTC",null,null,{"$f":"Jurat!I$1","v":0},{"$f":"Jurat!D$33","v":"00:00:00"},"Q1","2017-03-31","Region 3","Non-Operating Expense","Income Tax Expense","Income Tax Expense","9.0","Income Tax Expense",{"$f":"IFERROR('LTC Rev-Exp Region 3'!$D$72/'LTC Rev-Exp Region 3'!$D$9, 0)","v":{"v":0,"d":"$0.00"}},{"$f":"IFERROR('LTC Rev-Exp Region 3'!$E$72/'LTC Rev-Exp Region 3'!$E$9, 0)","v":{"v":0,"d":"$0.00"}},{"$f":"IFERROR('LTC Rev-Exp Region 3'!$F$72/'LTC Rev-Exp Region 3'!$F$9, 0)","v":{"v":0,"d":"$0.00"}},{"$f":"IFERROR('LTC Rev-Exp Region 3'!$G$72/'LTC Rev-Exp Region 3'!$G$9, 0)","v":{"v":0,"d":"$0.00"}}]
["LTC",null,null,{"$f":"Jurat!I$1","v":0},{"$f":"Jurat!D$33","v":"00:00:00"},"Q2","2017-06-30","Region 3","Operating Revenue","Capitation","Capitation",1.1,"Capitation",{"$f":"IFERROR('LTC Rev-Exp Region 3'!$H$11/'LTC Rev-Exp Region 3'!$H$9, 0)","v":{"v":0,"d":"$0.00"}},{"$f":"IFERROR('LTC Rev-Exp Region 3'!$I$11/'LTC Rev-Exp Region 3'!$I$9, 0)","v":{"v":0,"d":"$0.00"}},{"$f":"IFERROR('LTC Rev-Exp Region 3'!$J$11/'LTC Rev-Exp Region 3'!$J$9, 0)","v":{"v":0,"d":"$0.00"}},{"$f":"IFERROR('LTC Rev-Exp Region 3'!$K$11/'LTC Rev-Exp Region 3'!$K$9, 0)","v":{"v":0,"d":"$0.00"}}]
["LTC",null,null,{"$f":"Jurat!I$1","v":0},{"$f":"Jurat!D$33","v":"00:00:00"},"Q2","2017-06-30","Region 3","Operating Revenue","Capitation","NH Rate Reconciliation",1.2,"NH Rate Reconciliation",{"$f":"IFERROR('LTC Rev-Exp Region 3'!$H$12/'LTC Rev-Exp Region 3'!$H$9, 0)","v":{"v":0,"d":"$0.00"}},{"$f":"IFERROR('LTC Rev-Exp Region 3'!$I$12/'LTC Rev-Exp Region 3'!$I$9, 0)","v":{"v":0,"d":"$0.00"}},{"$f":"IFERROR('LTC Rev-Exp Region 3'!$J$12/'LTC Rev-Exp Region 3'!$J$9, 0)","v":{"v":0,"d":"$0.00"}},{"$f":"IFERROR('LTC Rev-Exp Region 3'!$K$12/'LTC Rev-Exp Region 3'!$K$9, 0)","v":{"v":0,"d":"$0.00"}}]
["LTC",null,null,{"$f":"Jurat!I$1","v":0},{"$f":"Jurat!D$33","v":"00:00:00"},"Q2","2017-06-30","Region 3","Operating Revenue","Other Revenue","Other Revenue",1.3,"Other Revenue",{"$f":"IFERROR('LTC Rev-Exp Region 3'!$H$13/'LTC Rev-Exp Region 3'!$H$9, 0)","v":{"v":0,"d":"$0.00"}},{"$f":"IFERROR('LTC Rev-Exp Region 3'!$I$13/'LTC Rev-Exp Region 3'!$I$9, 0)","v":{"v":0,"d":"$0.00"}},{"$f":"IFERROR('LTC Rev-Exp Region 3'!$J$13/'LTC Rev-Exp Region 3'!$J$9, 0)","v":{"v":0,"d":"$0.00"}},{"$f":"IFERROR('LTC Rev-Exp Region 3'!$K$13/'LTC Rev-Exp Region 3'!$K$9, 0)","v":{"v":0,"d":"$0.00"}}]
["LTC",null,null,{"$f":"Jurat!I$1","v":0},{"$f":"Jurat!D$33","v":"00:00:00"},"Q2","2017-06-30","Region 3","Operating Expense","Medical Expense","NF & Hospice","2.3","Nursing Facility FFS (Medicaid)",{"$f":"IFERROR('LTC Rev-Exp Region 3'!$H$19/'LTC Rev-Exp Region 3'!$H$9, 0)","v":{"v":0,"d":"$0.00"}},{"$f":"IFERROR('LTC Rev-Exp Region 3'!$I$19/'LTC Rev-Exp Region 3'!$I$9, 0)","v":{"v":0,"d":"$0.00"}},{"$f":"IFERROR('LTC Rev-Exp Region 3'!$J$19/'LTC Rev-Exp Region 3'!$J$9, 0)","v":{"v":0,"d":"$0.00"}},{"$f":"IFERROR('LTC Rev-Exp Region 3'!$K$19/'LTC Rev-Exp Region 3'!$K$9, 0)","v":{"v":0,"d":"$0.00"}}]
["LTC",null,null,{"$f":"Jurat!I$1","v":0},{"$f":"Jurat!D$33","v":"00:00:00"},"Q2","2017-06-30","Region 3","Operating Expense","Medical Expense","NF & Hospice","2.4","Nursing Facility FFS (Crossover)",{"$f":"IFERROR('LTC Rev-Exp Region 3'!$H$20/'LTC Rev-Exp Region 3'!$H$9, 0)","v":{"v":0,"d":"$0.00"}},{"$f":"IFERROR('LTC Rev-Exp Region 3'!$I$20/'LTC Rev-Exp Region 3'!$I$9, 0)","v":{"v":0,"d":"$0.00"}},{"$f":"IFERROR('LTC Rev-Exp Region 3'!$J$20/'LTC Rev-Exp Region 3'!$J$9, 0)","v":{"v":0,"d":"$0.00"}},{"$f":"IFERROR('LTC Rev-Exp Region 3'!$K$20/'LTC Rev-Exp Region 3'!$K$9, 0)","v":{"v":0,"d":"$0.00"}}]
["LTC",null,null,{"$f":"Jurat!I$1","v":0},{"$f":"Jurat!D$33","v":"00:00:00"},"Q2","2017-06-30","Region 3","Operating Expense","Medical Expense","NF & Hospice","2.6","Hospice FFS",{"$f":"IFERROR('LTC Rev-Exp Region 3'!$H$22/'LTC Rev-Exp Region 3'!$H$9, 0)","v":{"v":0,"d":"$0.00"}},{"$f":"IFERROR('LTC Rev-Exp Region 3'!$I$22/'LTC Rev-Exp Region 3'!$I$9, 0)","v":{"v":0,"d":"$0.00"}},{"$f":"IFERROR('LTC Rev-Exp Region 3'!$J$22/'LTC Rev-Exp Region 3'!$J$9, 0)","v":{"v":0,"d":"$0.00"}},{"$f":"IFERROR('LTC Rev-Exp Region 3'!$K$22/'LTC Rev-Exp Region 3'!$K$9, 0)","v":{"v":0,"d":"$0.00"}}]
["LTC",null,null,{"$f":"Jurat!I$1","v":0},{"$f":"Jurat!D$33","v":"00:00:00"},"Q2","2017-06-30","Region 3","Operating Expense","Medical Expense","NF & Hospice","2.7","Ending IBNP for NF & Hospice",{"$f":"IFERROR('LTC Rev-Exp Region 3'!$H$23/'LTC Rev-Exp Region 3'!$H$9, 0)","v":{"v":0,"d":"$0.00"}},{"$f":"IFERROR('LTC Rev-Exp Region 3'!$I$23/'LTC Rev-Exp Region 3'!$I$9, 0)","v":{"v":0,"d":"$0.00"}},{"$f":"IFERROR('LTC Rev-Exp Region 3'!$J$23/'LTC Rev-Exp Region 3'!$J$9, 0)","v":{"v":0,"d":"$0.00"}},{"$f":"IFERROR('LTC Rev-Exp Region 3'!$K$23/'LTC Rev-Exp Region 3'!$K$9, 0)","v":{"v":0,"d":"$0.00"}}]
["LTC",null,null,{"$f":"Jurat!I$1","v":0},{"$f":"Jurat!D$33","v":"00:00:00"},"Q2","2017-06-30","Region 3","Operating Expense","Medical Expense","NF & Hospice","2.8","NF & Hospice Subcapitated",{"$f":"IFERROR('LTC Rev-Exp Region 3'!$H$24/'LTC Rev-Exp Region 3'!$H$9, 0)","v":{"v":0,"d":"$0.00"}},{"$f":"IFERROR('LTC Rev-Exp Region 3'!$I$24/'LTC Rev-Exp Region 3'!$I$9, 0)","v":{"v":0,"d":"$0.00"}},{"$f":"IFERROR('LTC Rev-Exp Region 3'!$J$24/'LTC Rev-Exp Region 3'!$J$9, 0)","v":{"v":0,"d":"$0.00"}},{"$f":"IFERROR('LTC Rev-Exp Region 3'!$K$24/'LTC Rev-Exp Region 3'!$K$9, 0)","v":{"v":0,"d":"$0.00"}}]
["LTC",null,null,{"$f":"Jurat!I$1","v":0},{"$f":"Jurat!D$33","v":"00:00:00"},"Q2","2017-06-30","Region 3","Operating Expense","Medical Expense","NF & Hospice","2.9","NF & Hospice Settlements",{"$f":"IFERROR('LTC Rev-Exp Region 3'!$H$25/'LTC Rev-Exp Region 3'!$H$9, 0)","v":{"v":0,"d":"$0.00"}},{"$f":"IFERROR('LTC Rev-Exp Region 3'!$I$25/'LTC Rev-Exp Region 3'!$I$9, 0)","v":{"v":0,"d":"$0.00"}},{"$f":"IFERROR('LTC Rev-Exp Region 3'!$J$25/'LTC Rev-Exp Region 3'!$J$9, 0)","v":{"v":0,"d":"$0.00"}},{"$f":"IFERROR('LTC Rev-Exp Region 3'!$K$25/'LTC Rev-Exp Region 3'!$K$9, 0)","v":{"v":0,"d":"$0.00"}}]
["LTC",null,null,{"$f":"Jurat!I$1","v":0},{"$f":"Jurat!D$33","v":"00:00:00"},"Q2","2017-06-30","Region 3","Operating Expense","Medical Expense","LTC Services","2.11","Assisted Living FFS",{"$f":"IFERROR('LTC Rev-Exp Region 3'!$H$27/'LTC Rev-Exp Region 3'!$H$9, 0)","v":{"v":0,"d":"$0.00"}},{"$f":"IFERROR('LTC Rev-Exp Region 3'!$I$27/'LTC Rev-Exp Region 3'!$I$9, 0)","v":{"v":0,"d":"$0.00"}},{"$f":"IFERROR('LTC Rev-Exp Region 3'!$J$27/'LTC Rev-Exp Region 3'!$J$9, 0)","v":{"v":0,"d":"$0.00"}},{"$f":"IFERROR('LTC Rev-Exp Region 3'!$K$27/'LTC Rev-Exp Region 3'!$K$9, 0)","v":{"v":0,"d":"$0.00"}}]
["LTC",null,null,{"$f":"Jurat!I$1","v":0},{"$f":"Jurat!D$33","v":"00:00:00"},"Q2","2017-06-30","Region 3","Operating Expense","Medical Expense","LTC Services","2.12","Home Health FFS",{"$f":"IFERROR('LTC Rev-Exp Region 3'!$H$28/'LTC Rev-Exp Region 3'!$H$9, 0)","v":{"v":0,"d":"$0.00"}},{"$f":"IFERROR('LTC Rev-Exp Region 3'!$I$28/'LTC Rev-Exp Region 3'!$I$9, 0)","v":{"v":0,"d":"$0.00"}},{"$f":"IFERROR('LTC Rev-Exp Region 3'!$J$28/'LTC Rev-Exp Region 3'!$J$9, 0)","v":{"v":0,"d":"$0.00"}},{"$f":"IFERROR('LTC Rev-Exp Region 3'!$K$28/'LTC Rev-Exp Region 3'!$K$9, 0)","v":{"v":0,"d":"$0.00"}}]
["LTC",null,null,{"$f":"Jurat!I$1","v":0},{"$f":"Jurat!D$33","v":"00:00:00"},"Q2","2017-06-30","Region 3","Operating Expense","Medical Expense","LTC Services","2.13","Medical Equipment/Supplies FFS",{"$f":"IFERROR('LTC Rev-Exp Region 3'!$H$29/'LTC Rev-Exp Region 3'!$H$9, 0)","v":{"v":0,"d":"$0.00"}},{"$f":"IFERROR('LTC Rev-Exp Region 3'!$I$29/'LTC Rev-Exp Region 3'!$I$9, 0)","v":{"v":0,"d":"$0.00"}},{"$f":"IFERROR('LTC Rev-Exp Region 3'!$J$29/'LTC Rev-Exp Region 3'!$J$9, 0)","v":{"v":0,"d":"$0.00"}},{"$f":"IFERROR('LTC Rev-Exp Region 3'!$K$29/'LTC Rev-Exp Region 3'!$K$9, 0)","v":{"v":0,"d":"$0.00"}}]
["LTC",null,null,{"$f":"Jurat!I$1","v":0},{"$f":"Jurat!D$33","v":"00:00:00"},"Q2","2017-06-30","Region 3","Operating Expense","Medical Expense","LTC Services","2.14","Therapy FFS",{"$f":"IFERROR('LTC Rev-Exp Region 3'!$H$30/'LTC Rev-Exp Region 3'!$H$9, 0)","v":{"v":0,"d":"$0.00"}},{"$f":"IFERROR('LTC Rev-Exp Region 3'!$I$30/'LTC Rev-Exp Region 3'!$I$9, 0)","v":{"v":0,"d":"$0.00"}},{"$f":"IFERROR('LTC Rev-Exp Region 3'!$J$30/'LTC Rev-Exp Region 3'!$J$9, 0)","v":{"v":0,"d":"$0.00"}},{"$f":"IFERROR('LTC Rev-Exp Region 3'!$K$30/'LTC Rev-Exp Region 3'!$K$9, 0)","v":{"v":0,"d":"$0.00"}}]
["LTC",null,null,{"$f":"Jurat!I$1","v":0},{"$f":"Jurat!D$33","v":"00:00:00"},"Q2","2017-06-30","Region 3","Operating Expense","Medical Expense","LTC Services","2.15","Transportation FFS",{"$f":"IFERROR('LTC Rev-Exp Region 3'!$H$31/'LTC Rev-Exp Region 3'!$H$9, 0)","v":{"v":0,"d":"$0.00"}},{"$f":"IFERROR('LTC Rev-Exp Region 3'!$I$31/'LTC Rev-Exp Region 3'!$I$9, 0)","v":{"v":0,"d":"$0.00"}},{"$f":"IFERROR('LTC Rev-Exp Region 3'!$J$31/'LTC Rev-Exp Region 3'!$J$9, 0)","v":{"v":0,"d":"$0.00"}},{"$f":"IFERROR('LTC Rev-Exp Region 3'!$K$31/'LTC Rev-Exp Region 3'!$K$9, 0)","v":{"v":0,"d":"$0.00"}}]
["LTC",null,null,{"$f":"Jurat!I$1","v":0},{"$f":"Jurat!D$33","v":"00:00:00"},"Q2","2017-06-30","Region 3","Operating Expense","Medical Expense","LTC Services","2.16","Case Management FFS (Plan Provided)",{"$f":"IFERROR('LTC Rev-Exp Region 3'!$H$32/'LTC Rev-Exp Region 3'!$H$9, 0)","v":{"v":0,"d":"$0.00"}},{"$f":"IFERROR('LTC Rev-Exp Region 3'!$I$32/'LTC Rev-Exp Region 3'!$I$9, 0)","v":{"v":0,"d":"$0.00"}},{"$f":"IFERROR('LTC Rev-Exp Region 3'!$J$32/'LTC Rev-Exp Region 3'!$J$9, 0)","v":{"v":0,"d":"$0.00"}},{"$f":"IFERROR('LTC Rev-Exp Region 3'!$K$32/'LTC Rev-Exp Region 3'!$K$9, 0)","v":{"v":0,"d":"$0.00"}}]
["LTC",null,null,{"$f":"Jurat!I$1","v":0},{"$f":"Jurat!D$33","v":"00:00:00"},"Q2","2017-06-30","Region 3","Operating Expense","Medical Expense","LTC Services","2.17","Case Management FF (Non-Plan Provided)",{"$f":"IFERROR('LTC Rev-Exp Region 3'!$H$33/'LTC Rev-Exp Region 3'!$H$9, 0)","v":{"v":0,"d":"$0.00"}},{"$f":"IFERROR('LTC Rev-Exp Region 3'!$I$33/'LTC Rev-Exp Region 3'!$I$9, 0)","v":{"v":0,"d":"$0.00"}},{"$f":"IFERROR('LTC Rev-Exp Region 3'!$J$33/'LTC Rev-Exp Region 3'!$J$9, 0)","v":{"v":0,"d":"$0.00"}},{"$f":"IFERROR('LTC Rev-Exp Region 3'!$K$33/'LTC Rev-Exp Region 3'!$K$9, 0)","v":{"v":0,"d":"$0.00"}}]
["LTC",null,null,{"$f":"Jurat!I$1","v":0},{"$f":"Jurat!D$33","v":"00:00:00"},"Q2","2017-06-30","Region 3","Operating Expense","Medical Expense","LTC Services","2.18","HCBS FFS",{"$f":"IFERROR('LTC Rev-Exp Region 3'!$H$34/'LTC Rev-Exp Region 3'!$H$9, 0)","v":{"v":0,"d":"$0.00"}},{"$f":"IFERROR('LTC Rev-Exp Region 3'!$I$34/'LTC Rev-Exp Region 3'!$I$9, 0)","v":{"v":0,"d":"$0.00"}},{"$f":"IFERROR('LTC Rev-Exp Region 3'!$J$34/'LTC Rev-Exp Region 3'!$J$9, 0)","v":{"v":0,"d":"$0.00"}},{"$f":"IFERROR('LTC Rev-Exp Region 3'!$K$34/'LTC Rev-Exp Region 3'!$K$9, 0)","v":{"v":0,"d":"$0.00"}}]
["LTC",null,null,{"$f":"Jurat!I$1","v":0},{"$f":"Jurat!D$33","v":"00:00:00"},"Q2","2017-06-30","Region 3","Operating Expense","Medical Expense","LTC Services","2.19","Subcapitated LTC Services",{"$f":"IFERROR('LTC Rev-Exp Region 3'!$H$35/'LTC Rev-Exp Region 3'!$H$9, 0)","v":{"v":0,"d":"$0.00"}},{"$f":"IFERROR('LTC Rev-Exp Region 3'!$I$35/'LTC Rev-Exp Region 3'!$I$9, 0)","v":{"v":0,"d":"$0.00"}},{"$f":"IFERROR('LTC Rev-Exp Region 3'!$J$35/'LTC Rev-Exp Region 3'!$J$9, 0)","v":{"v":0,"d":"$0.00"}},{"$f":"IFERROR('LTC Rev-Exp Region 3'!$K$35/'LTC Rev-Exp Region 3'!$K$9, 0)","v":{"v":0,"d":"$0.00"}}]
["LTC",null,null,{"$f":"Jurat!I$1","v":0},{"$f":"Jurat!D$33","v":"00:00:00"},"Q2","2017-06-30","Region 3","Operating Expense","Medical Expense","LTC Services","2.20","Ending IBNP for Long Term Care Services",{"$f":"IFERROR('LTC Rev-Exp Region 3'!$H$36/'LTC Rev-Exp Region 3'!$H$9, 0)","v":{"v":0,"d":"$0.00"}},{"$f":"IFERROR('LTC Rev-Exp Region 3'!$I$36/'LTC Rev-Exp Region 3'!$I$9, 0)","v":{"v":0,"d":"$0.00"}},{"$f":"IFERROR('LTC Rev-Exp Region 3'!$J$36/'LTC Rev-Exp Region 3'!$J$9, 0)","v":{"v":0,"d":"$0.00"}},{"$f":"IFERROR('LTC Rev-Exp Region 3'!$K$36/'LTC Rev-Exp Region 3'!$K$9, 0)","v":{"v":0,"d":"$0.00"}}]
["LTC",null,null,{"$f":"Jurat!I$1","v":0},{"$f":"Jurat!D$33","v":"00:00:00"},"Q2","2017-06-30","Region 3","Operating Expense","Medical Expense","LTC Services","2.21","LTC Services Settlements",{"$f":"IFERROR('LTC Rev-Exp Region 3'!$H$37/'LTC Rev-Exp Region 3'!$H$9, 0)","v":{"v":0,"d":"$0.00"}},{"$f":"IFERROR('LTC Rev-Exp Region 3'!$I$37/'LTC Rev-Exp Region 3'!$I$9, 0)","v":{"v":0,"d":"$0.00"}},{"$f":"IFERROR('LTC Rev-Exp Region 3'!$J$37/'LTC Rev-Exp Region 3'!$J$9, 0)","v":{"v":0,"d":"$0.00"}},{"$f":"IFERROR('LTC Rev-Exp Region 3'!$K$37/'LTC Rev-Exp Region 3'!$K$9, 0)","v":{"v":0,"d":"$0.00"}}]
["LTC",null,null,{"$f":"Jurat!I$1","v":0},{"$f":"Jurat!D$33","v":"00:00:00"},"Q2","2017-06-30","Region 3","Operating Expense","Medical Expense","Expanded Benefits","3.1","Expanded Benefits FFS",{"$f":"IFERROR('LTC Rev-Exp Region 3'!$H$39/'LTC Rev-Exp Region 3'!$H$9, 0)","v":{"v":0,"d":"$0.00"}},{"$f":"IFERROR('LTC Rev-Exp Region 3'!$I$39/'LTC Rev-Exp Region 3'!$I$9, 0)","v":{"v":0,"d":"$0.00"}},{"$f":"IFERROR('LTC Rev-Exp Region 3'!$J$39/'LTC Rev-Exp Region 3'!$J$9, 0)","v":{"v":0,"d":"$0.00"}},{"$f":"IFERROR('LTC Rev-Exp Region 3'!$K$39/'LTC Rev-Exp Region 3'!$K$9, 0)","v":{"v":0,"d":"$0.00"}}]
["LTC",null,null,{"$f":"Jurat!I$1","v":0},{"$f":"Jurat!D$33","v":"00:00:00"},"Q2","2017-06-30","Region 3","Operating Expense","Medical Expense","Expanded Benefits","3.2","Expanded Benefits Subcapitation",{"$f":"IFERROR('LTC Rev-Exp Region 3'!$H$40/'LTC Rev-Exp Region 3'!$H$9, 0)","v":{"v":0,"d":"$0.00"}},{"$f":"IFERROR('LTC Rev-Exp Region 3'!$I$40/'LTC Rev-Exp Region 3'!$I$9, 0)","v":{"v":0,"d":"$0.00"}},{"$f":"IFERROR('LTC Rev-Exp Region 3'!$J$40/'LTC Rev-Exp Region 3'!$J$9, 0)","v":{"v":0,"d":"$0.00"}},{"$f":"IFERROR('LTC Rev-Exp Region 3'!$K$40/'LTC Rev-Exp Region 3'!$K$9, 0)","v":{"v":0,"d":"$0.00"}}]
["LTC",null,null,{"$f":"Jurat!I$1","v":0},{"$f":"Jurat!D$33","v":"00:00:00"},"Q2","2017-06-30","Region 3","Operating Expense","Medical Expense","Expanded Benefits","3.3","Ending IBNP for Expanded Benefits",{"$f":"IFERROR('LTC Rev-Exp Region 3'!$H$41/'LTC Rev-Exp Region 3'!$H$9, 0)","v":{"v":0,"d":"$0.00"}},{"$f":"IFERROR('LTC Rev-Exp Region 3'!$I$41/'LTC Rev-Exp Region 3'!$I$9, 0)","v":{"v":0,"d":"$0.00"}},{"$f":"IFERROR('LTC Rev-Exp Region 3'!$J$41/'LTC Rev-Exp Region 3'!$J$9, 0)","v":{"v":0,"d":"$0.00"}},{"$f":"IFERROR('LTC Rev-Exp Region 3'!$K$41/'LTC Rev-Exp Region 3'!$K$9, 0)","v":{"v":0,"d":"$0.00"}}]
["LTC",null,null,{"$f":"Jurat!I$1","v":0},{"$f":"Jurat!D$33","v":"00:00:00"},"Q2","2017-06-30","Region 3","Operating Expense","Medical Expense","Expanded Benefits","3.4","Expanded Benefits Settlements",{"$f":"IFERROR('LTC Rev-Exp Region 3'!$H$42/'LTC Rev-Exp Region 3'!$H$9, 0)","v":{"v":0,"d":"$0.00"}},{"$f":"IFERROR('LTC Rev-Exp Region 3'!$I$42/'LTC Rev-Exp Region 3'!$I$9, 0)","v":{"v":0,"d":"$0.00"}},{"$f":"IFERROR('LTC Rev-Exp Region 3'!$J$42/'LTC Rev-Exp Region 3'!$J$9, 0)","v":{"v":0,"d":"$0.00"}},{"$f":"IFERROR('LTC Rev-Exp Region 3'!$K$42/'LTC Rev-Exp Region 3'!$K$9, 0)","v":{"v":0,"d":"$0.00"}}]
["LTC",null,null,{"$f":"Jurat!I$1","v":0},{"$f":"Jurat!D$33","v":"00:00:00"},"Q2","2017-06-30","Region 3","Operating Expense","Medical Expense","Other Medical","4.5","TPL & Fraud/Abuse Recoveries",{"$f":"IFERROR('LTC Rev-Exp Region 3'!$H$48/'LTC Rev-Exp Region 3'!$H$9, 0)","v":{"v":0,"d":"$0.00"}},{"$f":"IFERROR('LTC Rev-Exp Region 3'!$I$48/'LTC Rev-Exp Region 3'!$I$9, 0)","v":{"v":0,"d":"$0.00"}},{"$f":"IFERROR('LTC Rev-Exp Region 3'!$J$48/'LTC Rev-Exp Region 3'!$J$9, 0)","v":{"v":0,"d":"$0.00"}},{"$f":"IFERROR('LTC Rev-Exp Region 3'!$K$48/'LTC Rev-Exp Region 3'!$K$9, 0)","v":{"v":0,"d":"$0.00"}}]
["LTC",null,null,{"$f":"Jurat!I$1","v":0},{"$f":"Jurat!D$33","v":"00:00:00"},"Q2","2017-06-30","Region 3","Operating Expense","Medical Expense","Other Medical","4.6.1","Premium Deficiency Reserve",{"$f":"IFERROR('LTC Rev-Exp Region 3'!$H$49/'LTC Rev-Exp Region 3'!$H$9, 0)","v":{"v":0,"d":"$0.00"}},{"$f":"IFERROR('LTC Rev-Exp Region 3'!$I$49/'LTC Rev-Exp Region 3'!$I$9, 0)","v":{"v":0,"d":"$0.00"}},{"$f":"IFERROR('LTC Rev-Exp Region 3'!$J$49/'LTC Rev-Exp Region 3'!$J$9, 0)","v":{"v":0,"d":"$0.00"}},{"$f":"IFERROR('LTC Rev-Exp Region 3'!$K$49/'LTC Rev-Exp Region 3'!$K$9, 0)","v":{"v":0,"d":"$0.00"}}]
["LTC",null,null,{"$f":"Jurat!I$1","v":0},{"$f":"Jurat!D$33","v":"00:00:00"},"Q2","2017-06-30","Region 3","Operating Expense","Medical Expense","Other Medical","4.8","Reinsurance Premiums",{"$f":"IFERROR('LTC Rev-Exp Region 3'!$H$51/'LTC Rev-Exp Region 3'!$H$9, 0)","v":{"v":0,"d":"$0.00"}},{"$f":"IFERROR('LTC Rev-Exp Region 3'!$I$51/'LTC Rev-Exp Region 3'!$I$9, 0)","v":{"v":0,"d":"$0.00"}},{"$f":"IFERROR('LTC Rev-Exp Region 3'!$J$51/'LTC Rev-Exp Region 3'!$J$9, 0)","v":{"v":0,"d":"$0.00"}},{"$f":"IFERROR('LTC Rev-Exp Region 3'!$K$51/'LTC Rev-Exp Region 3'!$K$9, 0)","v":{"v":0,"d":"$0.00"}}]
["LTC",null,null,{"$f":"Jurat!I$1","v":0},{"$f":"Jurat!D$33","v":"00:00:00"},"Q2","2017-06-30","Region 3","Operating Expense","Medical Expense","Other Medical","4.9","Reinsurance Recoveries",{"$f":"IFERROR('LTC Rev-Exp Region 3'!$H$52/'LTC Rev-Exp Region 3'!$H$9, 0)","v":{"v":0,"d":"$0.00"}},{"$f":"IFERROR('LTC Rev-Exp Region 3'!$I$52/'LTC Rev-Exp Region 3'!$I$9, 0)","v":{"v":0,"d":"$0.00"}},{"$f":"IFERROR('LTC Rev-Exp Region 3'!$J$52/'LTC Rev-Exp Region 3'!$J$9, 0)","v":{"v":0,"d":"$0.00"}},{"$f":"IFERROR('LTC Rev-Exp Region 3'!$K$52/'LTC Rev-Exp Region 3'!$K$9, 0)","v":{"v":0,"d":"$0.00"}}]
["LTC",null,null,{"$f":"Jurat!I$1","v":0},{"$f":"Jurat!D$33","v":"00:00:00"},"Q2","2017-06-30","Region 3","Operating Expense","Administrative Expense","Administrative","5.1","Salaries & Benefits",{"$f":"IFERROR('LTC Rev-Exp Region 3'!$H$57/'LTC Rev-Exp Region 3'!$H$9, 0)","v":{"v":0,"d":"$0.00"}},{"$f":"IFERROR('LTC Rev-Exp Region 3'!$I$57/'LTC Rev-Exp Region 3'!$I$9, 0)","v":{"v":0,"d":"$0.00"}},{"$f":"IFERROR('LTC Rev-Exp Region 3'!$J$57/'LTC Rev-Exp Region 3'!$J$9, 0)","v":{"v":0,"d":"$0.00"}},{"$f":"IFERROR('LTC Rev-Exp Region 3'!$K$57/'LTC Rev-Exp Region 3'!$K$9, 0)","v":{"v":0,"d":"$0.00"}}]
["LTC",null,null,{"$f":"Jurat!I$1","v":0},{"$f":"Jurat!D$33","v":"00:00:00"},"Q2","2017-06-30","Region 3","Operating Expense","Administrative Expense","Administrative","5.2","Administrative Services",{"$f":"IFERROR('LTC Rev-Exp Region 3'!$H$58/'LTC Rev-Exp Region 3'!$H$9, 0)","v":{"v":0,"d":"$0.00"}},{"$f":"IFERROR('LTC Rev-Exp Region 3'!$I$58/'LTC Rev-Exp Region 3'!$I$9, 0)","v":{"v":0,"d":"$0.00"}},{"$f":"IFERROR('LTC Rev-Exp Region 3'!$J$58/'LTC Rev-Exp Region 3'!$J$9, 0)","v":{"v":0,"d":"$0.00"}},{"$f":"IFERROR('LTC Rev-Exp Region 3'!$K$58/'LTC Rev-Exp Region 3'!$K$9, 0)","v":{"v":0,"d":"$0.00"}}]
["LTC",null,null,{"$f":"Jurat!I$1","v":0},{"$f":"Jurat!D$33","v":"00:00:00"},"Q2","2017-06-30","Region 3","Operating Expense","Administrative Expense","Administrative","5.3","Information Systems",{"$f":"IFERROR('LTC Rev-Exp Region 3'!$H$59/'LTC Rev-Exp Region 3'!$H$9, 0)","v":{"v":0,"d":"$0.00"}},{"$f":"IFERROR('LTC Rev-Exp Region 3'!$I$59/'LTC Rev-Exp Region 3'!$I$9, 0)","v":{"v":0,"d":"$0.00"}},{"$f":"IFERROR('LTC Rev-Exp Region 3'!$J$59/'LTC Rev-Exp Region 3'!$J$9, 0)","v":{"v":0,"d":"$0.00"}},{"$f":"IFERROR('LTC Rev-Exp Region 3'!$K$59/'LTC Rev-Exp Region 3'!$K$9, 0)","v":{"v":0,"d":"$0.00"}}]
["LTC",null,null,{"$f":"Jurat!I$1","v":0},{"$f":"Jurat!D$33","v":"00:00:00"},"Q2","2017-06-30","Region 3","Operating Expense","Administrative Expense","Administrative","5.4","Marketing Expenses",{"$f":"IFERROR('LTC Rev-Exp Region 3'!$H$60/'LTC Rev-Exp Region 3'!$H$9, 0)","v":{"v":0,"d":"$0.00"}},{"$f":"IFERROR('LTC Rev-Exp Region 3'!$I$60/'LTC Rev-Exp Region 3'!$I$9, 0)","v":{"v":0,"d":"$0.00"}},{"$f":"IFERROR('LTC Rev-Exp Region 3'!$J$60/'LTC Rev-Exp Region 3'!$J$9, 0)","v":{"v":0,"d":"$0.00"}},{"$f":"IFERROR('LTC Rev-Exp Region 3'!$K$60/'LTC Rev-Exp Region 3'!$K$9, 0)","v":{"v":0,"d":"$0.00"}}]
["LTC",null,null,{"$f":"Jurat!I$1","v":0},{"$f":"Jurat!D$33","v":"00:00:00"},"Q2","2017-06-30","Region 3","Operating Expense","Administrative Expense","Administrative","5.5","General  Administration",{"$f":"IFERROR('LTC Rev-Exp Region 3'!$H$61/'LTC Rev-Exp Region 3'!$H$9, 0)","v":{"v":0,"d":"$0.00"}},{"$f":"IFERROR('LTC Rev-Exp Region 3'!$I$61/'LTC Rev-Exp Region 3'!$I$9, 0)","v":{"v":0,"d":"$0.00"}},{"$f":"IFERROR('LTC Rev-Exp Region 3'!$J$61/'LTC Rev-Exp Region 3'!$J$9, 0)","v":{"v":0,"d":"$0.00"}},{"$f":"IFERROR('LTC Rev-Exp Region 3'!$K$61/'LTC Rev-Exp Region 3'!$K$9, 0)","v":{"v":0,"d":"$0.00"}}]
["LTC",null,null,{"$f":"Jurat!I$1","v":0},{"$f":"Jurat!D$33","v":"00:00:00"},"Q2","2017-06-30","Region 3","Operating Expense","Administrative Expense","Administrative","5.6","Compliance/Regulatory",{"$f":"IFERROR('LTC Rev-Exp Region 3'!$H$62/'LTC Rev-Exp Region 3'!$H$9, 0)","v":{"v":0,"d":"$0.00"}},{"$f":"IFERROR('LTC Rev-Exp Region 3'!$I$62/'LTC Rev-Exp Region 3'!$I$9, 0)","v":{"v":0,"d":"$0.00"}},{"$f":"IFERROR('LTC Rev-Exp Region 3'!$J$62/'LTC Rev-Exp Region 3'!$J$9, 0)","v":{"v":0,"d":"$0.00"}},{"$f":"IFERROR('LTC Rev-Exp Region 3'!$K$62/'LTC Rev-Exp Region 3'!$K$9, 0)","v":{"v":0,"d":"$0.00"}}]
["LTC",null,null,{"$f":"Jurat!I$1","v":0},{"$f":"Jurat!D$33","v":"00:00:00"},"Q2","2017-06-30","Region 3","Operating Expense","Taxes & Fees","Taxes & Fees","6.1","State Premium Tax",{"$f":"IFERROR('LTC Rev-Exp Region 3'!$H$64/'LTC Rev-Exp Region 3'!$H$9, 0)","v":{"v":0,"d":"$0.00"}},{"$f":"IFERROR('LTC Rev-Exp Region 3'!$I$64/'LTC Rev-Exp Region 3'!$I$9, 0)","v":{"v":0,"d":"$0.00"}},{"$f":"IFERROR('LTC Rev-Exp Region 3'!$J$64/'LTC Rev-Exp Region 3'!$J$9, 0)","v":{"v":0,"d":"$0.00"}},{"$f":"IFERROR('LTC Rev-Exp Region 3'!$K$64/'LTC Rev-Exp Region 3'!$K$9, 0)","v":{"v":0,"d":"$0.00"}}]
["LTC",null,null,{"$f":"Jurat!I$1","v":0},{"$f":"Jurat!D$33","v":"00:00:00"},"Q2","2017-06-30","Region 3","Operating Expense","Taxes & Fees","Taxes & Fees","6.2","Department of Insurance Assessments",{"$f":"IFERROR('LTC Rev-Exp Region 3'!$H$65/'LTC Rev-Exp Region 3'!$H$9, 0)","v":{"v":0,"d":"$0.00"}},{"$f":"IFERROR('LTC Rev-Exp Region 3'!$I$65/'LTC Rev-Exp Region 3'!$I$9, 0)","v":{"v":0,"d":"$0.00"}},{"$f":"IFERROR('LTC Rev-Exp Region 3'!$J$65/'LTC Rev-Exp Region 3'!$J$9, 0)","v":{"v":0,"d":"$0.00"}},{"$f":"IFERROR('LTC Rev-Exp Region 3'!$K$65/'LTC Rev-Exp Region 3'!$K$9, 0)","v":{"v":0,"d":"$0.00"}}]
["LTC",null,null,{"$f":"Jurat!I$1","v":0},{"$f":"Jurat!D$33","v":"00:00:00"},"Q2","2017-06-30","Region 3","Non-Operating Expense","Income Tax Expense","Income Tax Expense","9.0","Income Tax Expense",{"$f":"IFERROR('LTC Rev-Exp Region 3'!$H$66/'LTC Rev-Exp Region 3'!$H$9, 0)","v":{"v":0,"d":"$0.00"}},{"$f":"IFERROR('LTC Rev-Exp Region 3'!$I$66/'LTC Rev-Exp Region 3'!$I$9, 0)","v":{"v":0,"d":"$0.00"}},{"$f":"IFERROR('LTC Rev-Exp Region 3'!$J$66/'LTC Rev-Exp Region 3'!$J$9, 0)","v":{"v":0,"d":"$0.00"}},{"$f":"IFERROR('LTC Rev-Exp Region 3'!$K$66/'LTC Rev-Exp Region 3'!$K$9, 0)","v":{"v":0,"d":"$0.00"}}]
["LTC",null,null,{"$f":"Jurat!I$1","v":0},{"$f":"Jurat!D$33","v":"00:00:00"},"Q3","2017-09-30","Region 3","Operating Revenue","Capitation","Capitation",1.1,"Capitation",{"$f":"IFERROR('LTC Rev-Exp Region 3'!$L$11/'LTC Rev-Exp Region 3'!$L$9, 0)","v":{"v":0,"d":"$0.00"}},{"$f":"IFERROR('LTC Rev-Exp Region 3'!$M$11/'LTC Rev-Exp Region 3'!$M$9, 0)","v":{"v":0,"d":"$0.00"}},{"$f":"IFERROR('LTC Rev-Exp Region 3'!$N$11/'LTC Rev-Exp Region 3'!$N$9, 0)","v":{"v":0,"d":"$0.00"}},{"$f":"IFERROR('LTC Rev-Exp Region 3'!$O$11/'LTC Rev-Exp Region 3'!$O$9, 0)","v":{"v":0,"d":"$0.00"}}]
["LTC",null,null,{"$f":"Jurat!I$1","v":0},{"$f":"Jurat!D$33","v":"00:00:00"},"Q3","2017-09-30","Region 3","Operating Revenue","Capitation","NH Rate Reconciliation",1.2,"NH Rate Reconciliation",{"$f":"IFERROR('LTC Rev-Exp Region 3'!L$12/'LTC Rev-Exp Region 3'!L$9, 0)","v":{"v":0,"d":"$0.00"}},{"$f":"IFERROR('LTC Rev-Exp Region 3'!M$12/'LTC Rev-Exp Region 3'!M$9, 0)","v":{"v":0,"d":"$0.00"}},{"$f":"IFERROR('LTC Rev-Exp Region 3'!N$12/'LTC Rev-Exp Region 3'!N$9, 0)","v":{"v":0,"d":"$0.00"}},{"$f":"IFERROR('LTC Rev-Exp Region 3'!O$12/'LTC Rev-Exp Region 3'!O$9, 0)","v":{"v":0,"d":"$0.00"}}]
["LTC",null,null,{"$f":"Jurat!I$1","v":0},{"$f":"Jurat!D$33","v":"00:00:00"},"Q3","2017-09-30","Region 3","Operating Revenue","Other Revenue","Other Revenue",1.3,"Other Revenue",{"$f":"IFERROR('LTC Rev-Exp Region 3'!L309/'LTC Rev-Exp Region 3'!L$9, 0)","v":{"v":0,"d":"$0.00"}},{"$f":"IFERROR('LTC Rev-Exp Region 3'!M309/'LTC Rev-Exp Region 3'!M$9, 0)","v":{"v":0,"d":"$0.00"}},{"$f":"IFERROR('LTC Rev-Exp Region 3'!N309/'LTC Rev-Exp Region 3'!N$9, 0)","v":{"v":0,"d":"$0.00"}},{"$f":"IFERROR('LTC Rev-Exp Region 3'!O309/'LTC Rev-Exp Region 3'!O$9, 0)","v":{"v":0,"d":"$0.00"}}]
["LTC",null,null,{"$f":"Jurat!I$1","v":0},{"$f":"Jurat!D$33","v":"00:00:00"},"Q3","2017-09-30","Region 3","Operating Expense","Medical Expense","NF & Hospice","2.3","Nursing Facility FFS (Medicaid)",{"$f":"IFERROR('LTC Rev-Exp Region 3'!$L$19/'LTC Rev-Exp Region 3'!$L$9, 0)","v":{"v":0,"d":"$0.00"}},{"$f":"IFERROR('LTC Rev-Exp Region 3'!$M$19/'LTC Rev-Exp Region 3'!$M$9, 0)","v":{"v":0,"d":"$0.00"}},{"$f":"IFERROR('LTC Rev-Exp Region 3'!$N$19/'LTC Rev-Exp Region 3'!$N$9, 0)","v":{"v":0,"d":"$0.00"}},{"$f":"IFERROR('LTC Rev-Exp Region 3'!$O$19/'LTC Rev-Exp Region 3'!$O$9, 0)","v":{"v":0,"d":"$0.00"}}]
["LTC",null,null,{"$f":"Jurat!I$1","v":0},{"$f":"Jurat!D$33","v":"00:00:00"},"Q3","2017-09-30","Region 3","Operating Expense","Medical Expense","NF & Hospice","2.4","Nursing Facility FFS (Crossover)",{"$f":"IFERROR('LTC Rev-Exp Region 3'!$L$20/'LTC Rev-Exp Region 3'!$L$9, 0)","v":{"v":0,"d":"$0.00"}},{"$f":"IFERROR('LTC Rev-Exp Region 3'!$M$20/'LTC Rev-Exp Region 3'!$M$9, 0)","v":{"v":0,"d":"$0.00"}},{"$f":"IFERROR('LTC Rev-Exp Region 3'!$N$20/'LTC Rev-Exp Region 3'!$N$9, 0)","v":{"v":0,"d":"$0.00"}},{"$f":"IFERROR('LTC Rev-Exp Region 3'!$O$20/'LTC Rev-Exp Region 3'!$O$9, 0)","v":{"v":0,"d":"$0.00"}}]
["LTC",null,null,{"$f":"Jurat!I$1","v":0},{"$f":"Jurat!D$33","v":"00:00:00"},"Q3","2017-09-30","Region 3","Operating Expense","Medical Expense","NF & Hospice","2.6","Hospice FFS",{"$f":"IFERROR('LTC Rev-Exp Region 3'!$L$22/'LTC Rev-Exp Region 3'!$L$9, 0)","v":{"v":0,"d":"$0.00"}},{"$f":"IFERROR('LTC Rev-Exp Region 3'!$M$22/'LTC Rev-Exp Region 3'!$M$9, 0)","v":{"v":0,"d":"$0.00"}},{"$f":"IFERROR('LTC Rev-Exp Region 3'!$N$22/'LTC Rev-Exp Region 3'!$N$9, 0)","v":{"v":0,"d":"$0.00"}},{"$f":"IFERROR('LTC Rev-Exp Region 3'!$O$22/'LTC Rev-Exp Region 3'!$O$9, 0)","v":{"v":0,"d":"$0.00"}}]
["LTC",null,null,{"$f":"Jurat!I$1","v":0},{"$f":"Jurat!D$33","v":"00:00:00"},"Q3","2017-09-30","Region 3","Operating Expense","Medical Expense","NF & Hospice","2.7","Ending IBNP for NF & Hospice",{"$f":"IFERROR('LTC Rev-Exp Region 3'!$L$23/'LTC Rev-Exp Region 3'!$L$9, 0)","v":{"v":0,"d":"$0.00"}},{"$f":"IFERROR('LTC Rev-Exp Region 3'!$M$23/'LTC Rev-Exp Region 3'!$M$9, 0)","v":{"v":0,"d":"$0.00"}},{"$f":"IFERROR('LTC Rev-Exp Region 3'!$N$23/'LTC Rev-Exp Region 3'!$N$9, 0)","v":{"v":0,"d":"$0.00"}},{"$f":"IFERROR('LTC Rev-Exp Region 3'!$O$23/'LTC Rev-Exp Region 3'!$O$9, 0)","v":{"v":0,"d":"$0.00"}}]
["LTC",null,null,{"$f":"Jurat!I$1","v":0},{"$f":"Jurat!D$33","v":"00:00:00"},"Q3","2017-09-30","Region 3","Operating Expense","Medical Expense","NF & Hospice","2.8","NF & Hospice Subcapitated",{"$f":"IFERROR('LTC Rev-Exp Region 3'!$L$24/'LTC Rev-Exp Region 3'!$L$9, 0)","v":{"v":0,"d":"$0.00"}},{"$f":"IFERROR('LTC Rev-Exp Region 3'!$M$24/'LTC Rev-Exp Region 3'!$M$9, 0)","v":{"v":0,"d":"$0.00"}},{"$f":"IFERROR('LTC Rev-Exp Region 3'!$N$24/'LTC Rev-Exp Region 3'!$N$9, 0)","v":{"v":0,"d":"$0.00"}},{"$f":"IFERROR('LTC Rev-Exp Region 3'!$O$24/'LTC Rev-Exp Region 3'!$O$9, 0)","v":{"v":0,"d":"$0.00"}}]
["LTC",null,null,{"$f":"Jurat!I$1","v":0},{"$f":"Jurat!D$33","v":"00:00:00"},"Q3","2017-09-30","Region 3","Operating Expense","Medical Expense","NF & Hospice","2.9","NF & Hospice Settlements",{"$f":"IFERROR('LTC Rev-Exp Region 3'!$L$25/'LTC Rev-Exp Region 3'!$L$9, 0)","v":{"v":0,"d":"$0.00"}},{"$f":"IFERROR('LTC Rev-Exp Region 3'!$M$25/'LTC Rev-Exp Region 3'!$M$9, 0)","v":{"v":0,"d":"$0.00"}},{"$f":"IFERROR('LTC Rev-Exp Region 3'!$N$25/'LTC Rev-Exp Region 3'!$N$9, 0)","v":{"v":0,"d":"$0.00"}},{"$f":"IFERROR('LTC Rev-Exp Region 3'!$O$25/'LTC Rev-Exp Region 3'!$O$9, 0)","v":{"v":0,"d":"$0.00"}}]
["LTC",null,null,{"$f":"Jurat!I$1","v":0},{"$f":"Jurat!D$33","v":"00:00:00"},"Q3","2017-09-30","Region 3","Operating Expense","Medical Expense","LTC Services","2.11","Assisted Living FFS",{"$f":"IFERROR('LTC Rev-Exp Region 3'!$L$27/'LTC Rev-Exp Region 3'!$L$9, 0)","v":{"v":0,"d":"$0.00"}},{"$f":"IFERROR('LTC Rev-Exp Region 3'!$M$27/'LTC Rev-Exp Region 3'!$M$9, 0)","v":{"v":0,"d":"$0.00"}},{"$f":"IFERROR('LTC Rev-Exp Region 3'!$N$27/'LTC Rev-Exp Region 3'!$N$9, 0)","v":{"v":0,"d":"$0.00"}},{"$f":"IFERROR('LTC Rev-Exp Region 3'!$O$27/'LTC Rev-Exp Region 3'!$O$9, 0)","v":{"v":0,"d":"$0.00"}}]
["LTC",null,null,{"$f":"Jurat!I$1","v":0},{"$f":"Jurat!D$33","v":"00:00:00"},"Q3","2017-09-30","Region 3","Operating Expense","Medical Expense","LTC Services","2.12","Home Health FFS",{"$f":"IFERROR('LTC Rev-Exp Region 3'!$L$28/'LTC Rev-Exp Region 3'!$L$9, 0)","v":{"v":0,"d":"$0.00"}},{"$f":"IFERROR('LTC Rev-Exp Region 3'!$M$28/'LTC Rev-Exp Region 3'!$M$9, 0)","v":{"v":0,"d":"$0.00"}},{"$f":"IFERROR('LTC Rev-Exp Region 3'!$N$28/'LTC Rev-Exp Region 3'!$N$9, 0)","v":{"v":0,"d":"$0.00"}},{"$f":"IFERROR('LTC Rev-Exp Region 3'!$O$28/'LTC Rev-Exp Region 3'!$O$9, 0)","v":{"v":0,"d":"$0.00"}}]
["LTC",null,null,{"$f":"Jurat!I$1","v":0},{"$f":"Jurat!D$33","v":"00:00:00"},"Q3","2017-09-30","Region 3","Operating Expense","Medical Expense","LTC Services","2.13","Medical Equipment/Supplies FFS",{"$f":"IFERROR('LTC Rev-Exp Region 3'!$L$29/'LTC Rev-Exp Region 3'!$L$9, 0)","v":{"v":0,"d":"$0.00"}},{"$f":"IFERROR('LTC Rev-Exp Region 3'!$M$29/'LTC Rev-Exp Region 3'!$M$9, 0)","v":{"v":0,"d":"$0.00"}},{"$f":"IFERROR('LTC Rev-Exp Region 3'!$N$29/'LTC Rev-Exp Region 3'!$N$9, 0)","v":{"v":0,"d":"$0.00"}},{"$f":"IFERROR('LTC Rev-Exp Region 3'!$O$29/'LTC Rev-Exp Region 3'!$O$9, 0)","v":{"v":0,"d":"$0.00"}}]
["LTC",null,null,{"$f":"Jurat!I$1","v":0},{"$f":"Jurat!D$33","v":"00:00:00"},"Q3","2017-09-30","Region 3","Operating Expense","Medical Expense","LTC Services","2.14","Therapy FFS",{"$f":"IFERROR('LTC Rev-Exp Region 3'!$L$30/'LTC Rev-Exp Region 3'!$L$9, 0)","v":{"v":0,"d":"$0.00"}},{"$f":"IFERROR('LTC Rev-Exp Region 3'!$M$30/'LTC Rev-Exp Region 3'!$M$9, 0)","v":{"v":0,"d":"$0.00"}},{"$f":"IFERROR('LTC Rev-Exp Region 3'!$N$30/'LTC Rev-Exp Region 3'!$N$9, 0)","v":{"v":0,"d":"$0.00"}},{"$f":"IFERROR('LTC Rev-Exp Region 3'!$O$30/'LTC Rev-Exp Region 3'!$O$9, 0)","v":{"v":0,"d":"$0.00"}}]
["LTC",null,null,{"$f":"Jurat!I$1","v":0},{"$f":"Jurat!D$33","v":"00:00:00"},"Q3","2017-09-30","Region 3","Operating Expense","Medical Expense","LTC Services","2.15","Transportation FFS",{"$f":"IFERROR('LTC Rev-Exp Region 3'!$L$31/'LTC Rev-Exp Region 3'!$L$9, 0)","v":{"v":0,"d":"$0.00"}},{"$f":"IFERROR('LTC Rev-Exp Region 3'!$M$31/'LTC Rev-Exp Region 3'!$M$9, 0)","v":{"v":0,"d":"$0.00"}},{"$f":"IFERROR('LTC Rev-Exp Region 3'!$N$31/'LTC Rev-Exp Region 3'!$N$9, 0)","v":{"v":0,"d":"$0.00"}},{"$f":"IFERROR('LTC Rev-Exp Region 3'!$O$31/'LTC Rev-Exp Region 3'!$O$9, 0)","v":{"v":0,"d":"$0.00"}}]
["LTC",null,null,{"$f":"Jurat!I$1","v":0},{"$f":"Jurat!D$33","v":"00:00:00"},"Q3","2017-09-30","Region 3","Operating Expense","Medical Expense","LTC Services","2.16","Case Management FFS (Plan Provided)",{"$f":"IFERROR('LTC Rev-Exp Region 3'!$L$32/'LTC Rev-Exp Region 3'!$L$9, 0)","v":{"v":0,"d":"$0.00"}},{"$f":"IFERROR('LTC Rev-Exp Region 3'!$M$32/'LTC Rev-Exp Region 3'!$M$9, 0)","v":{"v":0,"d":"$0.00"}},{"$f":"IFERROR('LTC Rev-Exp Region 3'!$N$32/'LTC Rev-Exp Region 3'!$N$9, 0)","v":{"v":0,"d":"$0.00"}},{"$f":"IFERROR('LTC Rev-Exp Region 3'!$O$32/'LTC Rev-Exp Region 3'!$O$9, 0)","v":{"v":0,"d":"$0.00"}}]
["LTC",null,null,{"$f":"Jurat!I$1","v":0},{"$f":"Jurat!D$33","v":"00:00:00"},"Q3","2017-09-30","Region 3","Operating Expense","Medical Expense","LTC Services","2.17","Case Management FF (Non-Plan Provided)",{"$f":"IFERROR('LTC Rev-Exp Region 3'!$L$33/'LTC Rev-Exp Region 3'!$L$9, 0)","v":{"v":0,"d":"$0.00"}},{"$f":"IFERROR('LTC Rev-Exp Region 3'!$M$33/'LTC Rev-Exp Region 3'!$M$9, 0)","v":{"v":0,"d":"$0.00"}},{"$f":"IFERROR('LTC Rev-Exp Region 3'!$N$33/'LTC Rev-Exp Region 3'!$N$9, 0)","v":{"v":0,"d":"$0.00"}},{"$f":"IFERROR('LTC Rev-Exp Region 3'!$O$33/'LTC Rev-Exp Region 3'!$O$9, 0)","v":{"v":0,"d":"$0.00"}}]
["LTC",null,null,{"$f":"Jurat!I$1","v":0},{"$f":"Jurat!D$33","v":"00:00:00"},"Q3","2017-09-30","Region 3","Operating Expense","Medical Expense","LTC Services","2.18","HCBS FFS",{"$f":"IFERROR('LTC Rev-Exp Region 3'!$L$34/'LTC Rev-Exp Region 3'!$L$9, 0)","v":{"v":0,"d":"$0.00"}},{"$f":"IFERROR('LTC Rev-Exp Region 3'!$M$34/'LTC Rev-Exp Region 3'!$M$9, 0)","v":{"v":0,"d":"$0.00"}},{"$f":"IFERROR('LTC Rev-Exp Region 3'!$N$34/'LTC Rev-Exp Region 3'!$N$9, 0)","v":{"v":0,"d":"$0.00"}},{"$f":"IFERROR('LTC Rev-Exp Region 3'!$O$34/'LTC Rev-Exp Region 3'!$O$9, 0)","v":{"v":0,"d":"$0.00"}}]
["LTC",null,null,{"$f":"Jurat!I$1","v":0},{"$f":"Jurat!D$33","v":"00:00:00"},"Q3","2017-09-30","Region 3","Operating Expense","Medical Expense","LTC Services","2.19","Subcapitated LTC Services",{"$f":"IFERROR('LTC Rev-Exp Region 3'!$L$35/'LTC Rev-Exp Region 3'!$L$9, 0)","v":{"v":0,"d":"$0.00"}},{"$f":"IFERROR('LTC Rev-Exp Region 3'!$M$35/'LTC Rev-Exp Region 3'!$M$9, 0)","v":{"v":0,"d":"$0.00"}},{"$f":"IFERROR('LTC Rev-Exp Region 3'!$N$35/'LTC Rev-Exp Region 3'!$N$9, 0)","v":{"v":0,"d":"$0.00"}},{"$f":"IFERROR('LTC Rev-Exp Region 3'!$O$35/'LTC Rev-Exp Region 3'!$O$9, 0)","v":{"v":0,"d":"$0.00"}}]
["LTC",null,null,{"$f":"Jurat!I$1","v":0},{"$f":"Jurat!D$33","v":"00:00:00"},"Q3","2017-09-30","Region 3","Operating Expense","Medical Expense","LTC Services","2.20","Ending IBNP for Long Term Care Services",{"$f":"IFERROR('LTC Rev-Exp Region 3'!$L$36/'LTC Rev-Exp Region 3'!$L$9, 0)","v":{"v":0,"d":"$0.00"}},{"$f":"IFERROR('LTC Rev-Exp Region 3'!$M$36/'LTC Rev-Exp Region 3'!$M$9, 0)","v":{"v":0,"d":"$0.00"}},{"$f":"IFERROR('LTC Rev-Exp Region 3'!$N$36/'LTC Rev-Exp Region 3'!$N$9, 0)","v":{"v":0,"d":"$0.00"}},{"$f":"IFERROR('LTC Rev-Exp Region 3'!$O$36/'LTC Rev-Exp Region 3'!$O$9, 0)","v":{"v":0,"d":"$0.00"}}]
["LTC",null,null,{"$f":"Jurat!I$1","v":0},{"$f":"Jurat!D$33","v":"00:00:00"},"Q3","2017-09-30","Region 3","Operating Expense","Medical Expense","LTC Services","2.21","LTC Services Settlements",{"$f":"IFERROR('LTC Rev-Exp Region 3'!$L$37/'LTC Rev-Exp Region 3'!$L$9, 0)","v":{"v":0,"d":"$0.00"}},{"$f":"IFERROR('LTC Rev-Exp Region 3'!$M$37/'LTC Rev-Exp Region 3'!$M$9, 0)","v":{"v":0,"d":"$0.00"}},{"$f":"IFERROR('LTC Rev-Exp Region 3'!$N$37/'LTC Rev-Exp Region 3'!$N$9, 0)","v":{"v":0,"d":"$0.00"}},{"$f":"IFERROR('LTC Rev-Exp Region 3'!$O$37/'LTC Rev-Exp Region 3'!$O$9, 0)","v":{"v":0,"d":"$0.00"}}]
["LTC",null,null,{"$f":"Jurat!I$1","v":0},{"$f":"Jurat!D$33","v":"00:00:00"},"Q3","2017-09-30","Region 3","Operating Expense","Medical Expense","Expanded Benefits","3.1","Expanded Benefits FFS",{"$f":"IFERROR('LTC Rev-Exp Region 3'!$L$39/'LTC Rev-Exp Region 3'!$L$9, 0)","v":{"v":0,"d":"$0.00"}},{"$f":"IFERROR('LTC Rev-Exp Region 3'!$M$39/'LTC Rev-Exp Region 3'!$M$9, 0)","v":{"v":0,"d":"$0.00"}},{"$f":"IFERROR('LTC Rev-Exp Region 3'!$N$39/'LTC Rev-Exp Region 3'!$N$9, 0)","v":{"v":0,"d":"$0.00"}},{"$f":"IFERROR('LTC Rev-Exp Region 3'!$O$39/'LTC Rev-Exp Region 3'!$O$9, 0)","v":{"v":0,"d":"$0.00"}}]
["LTC",null,null,{"$f":"Jurat!I$1","v":0},{"$f":"Jurat!D$33","v":"00:00:00"},"Q3","2017-09-30","Region 3","Operating Expense","Medical Expense","Expanded Benefits","3.2","Expanded Benefits Subcapitation",{"$f":"IFERROR('LTC Rev-Exp Region 3'!$L$40/'LTC Rev-Exp Region 3'!$L$9, 0)","v":{"v":0,"d":"$0.00"}},{"$f":"IFERROR('LTC Rev-Exp Region 3'!$M$40/'LTC Rev-Exp Region 3'!$M$9, 0)","v":{"v":0,"d":"$0.00"}},{"$f":"IFERROR('LTC Rev-Exp Region 3'!$N$40/'LTC Rev-Exp Region 3'!$N$9, 0)","v":{"v":0,"d":"$0.00"}},{"$f":"IFERROR('LTC Rev-Exp Region 3'!$O$40/'LTC Rev-Exp Region 3'!$O$9, 0)","v":{"v":0,"d":"$0.00"}}]
["LTC",null,null,{"$f":"Jurat!I$1","v":0},{"$f":"Jurat!D$33","v":"00:00:00"},"Q3","2017-09-30","Region 3","Operating Expense","Medical Expense","Expanded Benefits","3.3","Ending IBNP for Expanded Benefits",{"$f":"IFERROR('LTC Rev-Exp Region 3'!$L$41/'LTC Rev-Exp Region 3'!$L$9, 0)","v":{"v":0,"d":"$0.00"}},{"$f":"IFERROR('LTC Rev-Exp Region 3'!$M$41/'LTC Rev-Exp Region 3'!$M$9, 0)","v":{"v":0,"d":"$0.00"}},{"$f":"IFERROR('LTC Rev-Exp Region 3'!$N$41/'LTC Rev-Exp Region 3'!$N$9, 0)","v":{"v":0,"d":"$0.00"}},{"$f":"IFERROR('LTC Rev-Exp Region 3'!$O$41/'LTC Rev-Exp Region 3'!$O$9, 0)","v":{"v":0,"d":"$0.00"}}]
["LTC",null,null,{"$f":"Jurat!I$1","v":0},{"$f":"Jurat!D$33","v":"00:00:00"},"Q3","2017-09-30","Region 3","Operating Expense","Medical Expense","Expanded Benefits","3.4","Expanded Benefits Settlements",{"$f":"IFERROR('LTC Rev-Exp Region 3'!$L$42/'LTC Rev-Exp Region 3'!$L$9, 0)","v":{"v":0,"d":"$0.00"}},{"$f":"IFERROR('LTC Rev-Exp Region 3'!$M$42/'LTC Rev-Exp Region 3'!$M$9, 0)","v":{"v":0,"d":"$0.00"}},{"$f":"IFERROR('LTC Rev-Exp Region 3'!$N$42/'LTC Rev-Exp Region 3'!$N$9, 0)","v":{"v":0,"d":"$0.00"}},{"$f":"IFERROR('LTC Rev-Exp Region 3'!$O$42/'LTC Rev-Exp Region 3'!$O$9, 0)","v":{"v":0,"d":"$0.00"}}]
["LTC",null,null,{"$f":"Jurat!I$1","v":0},{"$f":"Jurat!D$33","v":"00:00:00"},"Q3","2017-09-30","Region 3","Operating Expense","Medical Expense","Other Medical","4.5","TPL & Fraud/Abuse Recoveries",{"$f":"IFERROR('LTC Rev-Exp Region 3'!$L$48/'LTC Rev-Exp Region 3'!$L$9, 0)","v":{"v":0,"d":"$0.00"}},{"$f":"IFERROR('LTC Rev-Exp Region 3'!$M$48/'LTC Rev-Exp Region 3'!$M$9, 0)","v":{"v":0,"d":"$0.00"}},{"$f":"IFERROR('LTC Rev-Exp Region 3'!$N$48/'LTC Rev-Exp Region 3'!$N$9, 0)","v":{"v":0,"d":"$0.00"}},{"$f":"IFERROR('LTC Rev-Exp Region 3'!$O$48/'LTC Rev-Exp Region 3'!$O$9, 0)","v":{"v":0,"d":"$0.00"}}]
["LTC",null,null,{"$f":"Jurat!I$1","v":0},{"$f":"Jurat!D$33","v":"00:00:00"},"Q3","2017-09-30","Region 3","Operating Expense","Medical Expense","Other Medical","4.6.1","Premium Deficiency Reserve",{"$f":"IFERROR('LTC Rev-Exp Region 3'!$L$49/'LTC Rev-Exp Region 3'!$L$9, 0)","v":{"v":0,"d":"$0.00"}},{"$f":"IFERROR('LTC Rev-Exp Region 3'!$M$49/'LTC Rev-Exp Region 3'!$M$9, 0)","v":{"v":0,"d":"$0.00"}},{"$f":"IFERROR('LTC Rev-Exp Region 3'!$N$49/'LTC Rev-Exp Region 3'!$N$9, 0)","v":{"v":0,"d":"$0.00"}},{"$f":"IFERROR('LTC Rev-Exp Region 3'!$O$49/'LTC Rev-Exp Region 3'!$O$9, 0)","v":{"v":0,"d":"$0.00"}}]
["LTC",null,null,{"$f":"Jurat!I$1","v":0},{"$f":"Jurat!D$33","v":"00:00:00"},"Q3","2017-09-30","Region 3","Operating Expense","Medical Expense","Other Medical","4.8","Reinsurance Premiums",{"$f":"IFERROR('LTC Rev-Exp Region 3'!$L$51/'LTC Rev-Exp Region 3'!$L$9, 0)","v":{"v":0,"d":"$0.00"}},{"$f":"IFERROR('LTC Rev-Exp Region 3'!$M$51/'LTC Rev-Exp Region 3'!$M$9, 0)","v":{"v":0,"d":"$0.00"}},{"$f":"IFERROR('LTC Rev-Exp Region 3'!$N$51/'LTC Rev-Exp Region 3'!$N$9, 0)","v":{"v":0,"d":"$0.00"}},{"$f":"IFERROR('LTC Rev-Exp Region 3'!$O$51/'LTC Rev-Exp Region 3'!$O$9, 0)","v":{"v":0,"d":"$0.00"}}]
["LTC",null,null,{"$f":"Jurat!I$1","v":0},{"$f":"Jurat!D$33","v":"00:00:00"},"Q3","2017-09-30","Region 3","Operating Expense","Medical Expense","Other Medical","4.9","Reinsurance Recoveries",{"$f":"IFERROR('LTC Rev-Exp Region 3'!$L$52/'LTC Rev-Exp Region 3'!$L$9, 0)","v":{"v":0,"d":"$0.00"}},{"$f":"IFERROR('LTC Rev-Exp Region 3'!$M$52/'LTC Rev-Exp Region 3'!$M$9, 0)","v":{"v":0,"d":"$0.00"}},{"$f":"IFERROR('LTC Rev-Exp Region 3'!$N$52/'LTC Rev-Exp Region 3'!$N$9, 0)","v":{"v":0,"d":"$0.00"}},{"$f":"IFERROR('LTC Rev-Exp Region 3'!$O$52/'LTC Rev-Exp Region 3'!$O$9, 0)","v":{"v":0,"d":"$0.00"}}]
["LTC",null,null,{"$f":"Jurat!I$1","v":0},{"$f":"Jurat!D$33","v":"00:00:00"},"Q3","2017-09-30","Region 3","Operating Expense","Administrative Expense","Administrative","5.1","Salaries & Benefits",{"$f":"IFERROR('LTC Rev-Exp Region 3'!$L$57/'LTC Rev-Exp Region 3'!$L$9, 0)","v":{"v":0,"d":"$0.00"}},{"$f":"IFERROR('LTC Rev-Exp Region 3'!$M$57/'LTC Rev-Exp Region 3'!$M$9, 0)","v":{"v":0,"d":"$0.00"}},{"$f":"IFERROR('LTC Rev-Exp Region 3'!$N$57/'LTC Rev-Exp Region 3'!$N$9, 0)","v":{"v":0,"d":"$0.00"}},{"$f":"IFERROR('LTC Rev-Exp Region 3'!$O$57/'LTC Rev-Exp Region 3'!$O$9, 0)","v":{"v":0,"d":"$0.00"}}]
["LTC",null,null,{"$f":"Jurat!I$1","v":0},{"$f":"Jurat!D$33","v":"00:00:00"},"Q3","2017-09-30","Region 3","Operating Expense","Administrative Expense","Administrative","5.2","Administrative Services",{"$f":"IFERROR('LTC Rev-Exp Region 3'!$L$58/'LTC Rev-Exp Region 3'!$L$9, 0)","v":{"v":0,"d":"$0.00"}},{"$f":"IFERROR('LTC Rev-Exp Region 3'!$M$58/'LTC Rev-Exp Region 3'!$M$9, 0)","v":{"v":0,"d":"$0.00"}},{"$f":"IFERROR('LTC Rev-Exp Region 3'!$N$58/'LTC Rev-Exp Region 3'!$N$9, 0)","v":{"v":0,"d":"$0.00"}},{"$f":"IFERROR('LTC Rev-Exp Region 3'!$O$58/'LTC Rev-Exp Region 3'!$O$9, 0)","v":{"v":0,"d":"$0.00"}}]
["LTC",null,null,{"$f":"Jurat!I$1","v":0},{"$f":"Jurat!D$33","v":"00:00:00"},"Q3","2017-09-30","Region 3","Operating Expense","Administrative Expense","Administrative","5.3","Information Systems",{"$f":"IFERROR('LTC Rev-Exp Region 3'!$L$59/'LTC Rev-Exp Region 3'!$L$9, 0)","v":{"v":0,"d":"$0.00"}},{"$f":"IFERROR('LTC Rev-Exp Region 3'!$M$59/'LTC Rev-Exp Region 3'!$M$9, 0)","v":{"v":0,"d":"$0.00"}},{"$f":"IFERROR('LTC Rev-Exp Region 3'!$N$59/'LTC Rev-Exp Region 3'!$N$9, 0)","v":{"v":0,"d":"$0.00"}},{"$f":"IFERROR('LTC Rev-Exp Region 3'!$O$59/'LTC Rev-Exp Region 3'!$O$9, 0)","v":{"v":0,"d":"$0.00"}}]
["LTC",null,null,{"$f":"Jurat!I$1","v":0},{"$f":"Jurat!D$33","v":"00:00:00"},"Q3","2017-09-30","Region 3","Operating Expense","Administrative Expense","Administrative","5.4","Marketing Expenses",{"$f":"IFERROR('LTC Rev-Exp Region 3'!$L$60/'LTC Rev-Exp Region 3'!$L$9, 0)","v":{"v":0,"d":"$0.00"}},{"$f":"IFERROR('LTC Rev-Exp Region 3'!$M$60/'LTC Rev-Exp Region 3'!$M$9, 0)","v":{"v":0,"d":"$0.00"}},{"$f":"IFERROR('LTC Rev-Exp Region 3'!$N$60/'LTC Rev-Exp Region 3'!$N$9, 0)","v":{"v":0,"d":"$0.00"}},{"$f":"IFERROR('LTC Rev-Exp Region 3'!$O$60/'LTC Rev-Exp Region 3'!$O$9, 0)","v":{"v":0,"d":"$0.00"}}]
["LTC",null,null,{"$f":"Jurat!I$1","v":0},{"$f":"Jurat!D$33","v":"00:00:00"},"Q3","2017-09-30","Region 3","Operating Expense","Administrative Expense","Administrative","5.5","General  Administration",{"$f":"IFERROR('LTC Rev-Exp Region 3'!$L$61/'LTC Rev-Exp Region 3'!$L$9, 0)","v":{"v":0,"d":"$0.00"}},{"$f":"IFERROR('LTC Rev-Exp Region 3'!$M$61/'LTC Rev-Exp Region 3'!$M$9, 0)","v":{"v":0,"d":"$0.00"}},{"$f":"IFERROR('LTC Rev-Exp Region 3'!$N$61/'LTC Rev-Exp Region 3'!$N$9, 0)","v":{"v":0,"d":"$0.00"}},{"$f":"IFERROR('LTC Rev-Exp Region 3'!$O$61/'LTC Rev-Exp Region 3'!$O$9, 0)","v":{"v":0,"d":"$0.00"}}]
["LTC",null,null,{"$f":"Jurat!I$1","v":0},{"$f":"Jurat!D$33","v":"00:00:00"},"Q3","2017-09-30","Region 3","Operating Expense","Administrative Expense","Administrative","5.6","Compliance/Regulatory",{"$f":"IFERROR('LTC Rev-Exp Region 3'!$L$62/'LTC Rev-Exp Region 3'!$L$9, 0)","v":{"v":0,"d":"$0.00"}},{"$f":"IFERROR('LTC Rev-Exp Region 3'!$M$62/'LTC Rev-Exp Region 3'!$M$9, 0)","v":{"v":0,"d":"$0.00"}},{"$f":"IFERROR('LTC Rev-Exp Region 3'!$N$62/'LTC Rev-Exp Region 3'!$N$9, 0)","v":{"v":0,"d":"$0.00"}},{"$f":"IFERROR('LTC Rev-Exp Region 3'!$O$62/'LTC Rev-Exp Region 3'!$O$9, 0)","v":{"v":0,"d":"$0.00"}}]
["LTC",null,null,{"$f":"Jurat!I$1","v":0},{"$f":"Jurat!D$33","v":"00:00:00"},"Q3","2017-09-30","Region 3","Operating Expense","Taxes & Fees","Taxes & Fees","6.1","State Premium Tax",{"$f":"IFERROR('LTC Rev-Exp Region 3'!$L$64/'LTC Rev-Exp Region 3'!$L$9, 0)","v":{"v":0,"d":"$0.00"}},{"$f":"IFERROR('LTC Rev-Exp Region 3'!$M$64/'LTC Rev-Exp Region 3'!$M$9, 0)","v":{"v":0,"d":"$0.00"}},{"$f":"IFERROR('LTC Rev-Exp Region 3'!$N$64/'LTC Rev-Exp Region 3'!$N$9, 0)","v":{"v":0,"d":"$0.00"}},{"$f":"IFERROR('LTC Rev-Exp Region 3'!$O$64/'LTC Rev-Exp Region 3'!$O$9, 0)","v":{"v":0,"d":"$0.00"}}]
["LTC",null,null,{"$f":"Jurat!I$1","v":0},{"$f":"Jurat!D$33","v":"00:00:00"},"Q3","2017-09-30","Region 3","Operating Expense","Taxes & Fees","Taxes & Fees","6.2","Department of Insurance Assessments",{"$f":"IFERROR('LTC Rev-Exp Region 3'!$L$65/'LTC Rev-Exp Region 3'!$L$9, 0)","v":{"v":0,"d":"$0.00"}},{"$f":"IFERROR('LTC Rev-Exp Region 3'!$M$65/'LTC Rev-Exp Region 3'!$M$9, 0)","v":{"v":0,"d":"$0.00"}},{"$f":"IFERROR('LTC Rev-Exp Region 3'!$N$65/'LTC Rev-Exp Region 3'!$N$9, 0)","v":{"v":0,"d":"$0.00"}},{"$f":"IFERROR('LTC Rev-Exp Region 3'!$O$65/'LTC Rev-Exp Region 3'!$O$9, 0)","v":{"v":0,"d":"$0.00"}}]
["LTC",null,null,{"$f":"Jurat!I$1","v":0},{"$f":"Jurat!D$33","v":"00:00:00"},"Q3","2017-09-30","Region 3","Non-Operating Expense","Income Tax Expense","Income Tax Expense","9.0","Income Tax Expense",{"$f":"IFERROR('LTC Rev-Exp Region 3'!$L$72/'LTC Rev-Exp Region 3'!$L$9, 0)","v":{"v":0,"d":"$0.00"}},{"$f":"IFERROR('LTC Rev-Exp Region 3'!$M$72/'LTC Rev-Exp Region 3'!$M$9, 0)","v":{"v":0,"d":"$0.00"}},{"$f":"IFERROR('LTC Rev-Exp Region 3'!$N$72/'LTC Rev-Exp Region 3'!$N$9, 0)","v":{"v":0,"d":"$0.00"}},{"$f":"IFERROR('LTC Rev-Exp Region 3'!$O$72/'LTC Rev-Exp Region 3'!$O$9, 0)","v":{"v":0,"d":"$0.00"}}]
["LTC",null,null,{"$f":"Jurat!I$1","v":0},{"$f":"Jurat!D$33","v":"00:00:00"},"Q4","2017-12-31","Region 3","Operating Revenue","Capitation","Capitation",1.1,"Capitation",{"$f":"IFERROR('LTC Rev-Exp Region 3'!$P$11/'LTC Rev-Exp Region 3'!$P$9, 0)","v":{"v":0,"d":"$0.00"}},{"$f":"IFERROR('LTC Rev-Exp Region 3'!$Q$11/'LTC Rev-Exp Region 3'!$Q$9, 0)","v":{"v":0,"d":"$0.00"}},{"$f":"IFERROR('LTC Rev-Exp Region 3'!$R$11/'LTC Rev-Exp Region 3'!$R$9, 0)","v":{"v":0,"d":"$0.00"}},{"$f":"IFERROR('LTC Rev-Exp Region 3'!$S$11/'LTC Rev-Exp Region 3'!$S$9, 0)","v":{"v":0,"d":"$0.00"}}]
["LTC",null,null,{"$f":"Jurat!I$1","v":0},{"$f":"Jurat!D$33","v":"00:00:00"},"Q4","2017-12-31","Region 3","Operating Revenue","Capitation","NH Rate Reconciliation",1.2,"NH Rate Reconciliation",{"$f":"IFERROR('LTC Rev-Exp Region 3'!$P$12/'LTC Rev-Exp Region 3'!$P$9, 0)","v":{"v":0,"d":"$0.00"}},{"$f":"IFERROR('LTC Rev-Exp Region 3'!$Q$12/'LTC Rev-Exp Region 3'!$Q$9, 0)","v":{"v":0,"d":"$0.00"}},{"$f":"IFERROR('LTC Rev-Exp Region 3'!$R$12/'LTC Rev-Exp Region 3'!$R$9, 0)","v":{"v":0,"d":"$0.00"}},{"$f":"IFERROR('LTC Rev-Exp Region 3'!$S$12/'LTC Rev-Exp Region 3'!$S$9, 0)","v":{"v":0,"d":"$0.00"}}]
["LTC",null,null,{"$f":"Jurat!I$1","v":0},{"$f":"Jurat!D$33","v":"00:00:00"},"Q4","2017-12-31","Region 3","Operating Revenue","Other Revenue","Other Revenue",1.3,"Other Revenue",{"$f":"IFERROR('LTC Rev-Exp Region 3'!$P$13/'LTC Rev-Exp Region 3'!$P$9, 0)","v":{"v":0,"d":"$0.00"}},{"$f":"IFERROR('LTC Rev-Exp Region 3'!$Q$13/'LTC Rev-Exp Region 3'!$Q$9, 0)","v":{"v":0,"d":"$0.00"}},{"$f":"IFERROR('LTC Rev-Exp Region 3'!$R$13/'LTC Rev-Exp Region 3'!$R$9, 0)","v":{"v":0,"d":"$0.00"}},{"$f":"IFERROR('LTC Rev-Exp Region 3'!$S$13/'LTC Rev-Exp Region 3'!$S$9, 0)","v":{"v":0,"d":"$0.00"}}]
["LTC",null,null,{"$f":"Jurat!I$1","v":0},{"$f":"Jurat!D$33","v":"00:00:00"},"Q4","2017-12-31","Region 3","Operating Expense","Medical Expense","NF & Hospice","2.3","Nursing Facility FFS (Medicaid)",{"$f":"IFERROR('LTC Rev-Exp Region 3'!$P$19/'LTC Rev-Exp Region 3'!$P$9, 0)","v":{"v":0,"d":"$0.00"}},{"$f":"IFERROR('LTC Rev-Exp Region 3'!$Q$19/'LTC Rev-Exp Region 3'!$Q$9, 0)","v":{"v":0,"d":"$0.00"}},{"$f":"IFERROR('LTC Rev-Exp Region 3'!$R$19/'LTC Rev-Exp Region 3'!$R$9, 0)","v":{"v":0,"d":"$0.00"}},{"$f":"IFERROR('LTC Rev-Exp Region 3'!$S$19/'LTC Rev-Exp Region 3'!$S$9, 0)","v":{"v":0,"d":"$0.00"}}]
["LTC",null,null,{"$f":"Jurat!I$1","v":0},{"$f":"Jurat!D$33","v":"00:00:00"},"Q4","2017-12-31","Region 3","Operating Expense","Medical Expense","NF & Hospice","2.4","Nursing Facility FFS (Crossover)",{"$f":"IFERROR('LTC Rev-Exp Region 3'!$P$20/'LTC Rev-Exp Region 3'!$P$9, 0)","v":{"v":0,"d":"$0.00"}},{"$f":"IFERROR('LTC Rev-Exp Region 3'!$Q$20/'LTC Rev-Exp Region 3'!$Q$9, 0)","v":{"v":0,"d":"$0.00"}},{"$f":"IFERROR('LTC Rev-Exp Region 3'!$R$20/'LTC Rev-Exp Region 3'!$R$9, 0)","v":{"v":0,"d":"$0.00"}},{"$f":"IFERROR('LTC Rev-Exp Region 3'!$S$20/'LTC Rev-Exp Region 3'!$S$9, 0)","v":{"v":0,"d":"$0.00"}}]
["LTC",null,null,{"$f":"Jurat!I$1","v":0},{"$f":"Jurat!D$33","v":"00:00:00"},"Q4","2017-12-31","Region 3","Operating Expense","Medical Expense","NF & Hospice","2.6","Hospice FFS",{"$f":"IFERROR('LTC Rev-Exp Region 3'!$P$22/'LTC Rev-Exp Region 3'!$P$9, 0)","v":{"v":0,"d":"$0.00"}},{"$f":"IFERROR('LTC Rev-Exp Region 3'!$Q$22/'LTC Rev-Exp Region 3'!$Q$9, 0)","v":{"v":0,"d":"$0.00"}},{"$f":"IFERROR('LTC Rev-Exp Region 3'!$R$22/'LTC Rev-Exp Region 3'!$R$9, 0)","v":{"v":0,"d":"$0.00"}},{"$f":"IFERROR('LTC Rev-Exp Region 3'!$S$22/'LTC Rev-Exp Region 3'!$S$9, 0)","v":{"v":0,"d":"$0.00"}}]
["LTC",null,null,{"$f":"Jurat!I$1","v":0},{"$f":"Jurat!D$33","v":"00:00:00"},"Q4","2017-12-31","Region 3","Operating Expense","Medical Expense","NF & Hospice","2.7","Ending IBNP for NF & Hospice",{"$f":"IFERROR('LTC Rev-Exp Region 3'!$P$23/'LTC Rev-Exp Region 3'!$P$9, 0)","v":{"v":0,"d":"$0.00"}},{"$f":"IFERROR('LTC Rev-Exp Region 3'!$Q$23/'LTC Rev-Exp Region 3'!$Q$9, 0)","v":{"v":0,"d":"$0.00"}},{"$f":"IFERROR('LTC Rev-Exp Region 3'!$R$23/'LTC Rev-Exp Region 3'!$R$9, 0)","v":{"v":0,"d":"$0.00"}},{"$f":"IFERROR('LTC Rev-Exp Region 3'!$S$23/'LTC Rev-Exp Region 3'!$S$9, 0)","v":{"v":0,"d":"$0.00"}}]
["LTC",null,null,{"$f":"Jurat!I$1","v":0},{"$f":"Jurat!D$33","v":"00:00:00"},"Q4","2017-12-31","Region 3","Operating Expense","Medical Expense","NF & Hospice","2.8","NF & Hospice Subcapitated",{"$f":"IFERROR('LTC Rev-Exp Region 3'!$P$24/'LTC Rev-Exp Region 3'!$P$9, 0)","v":{"v":0,"d":"$0.00"}},{"$f":"IFERROR('LTC Rev-Exp Region 3'!$Q$24/'LTC Rev-Exp Region 3'!$Q$9, 0)","v":{"v":0,"d":"$0.00"}},{"$f":"IFERROR('LTC Rev-Exp Region 3'!$R$24/'LTC Rev-Exp Region 3'!$R$9, 0)","v":{"v":0,"d":"$0.00"}},{"$f":"IFERROR('LTC Rev-Exp Region 3'!$S$24/'LTC Rev-Exp Region 3'!$S$9, 0)","v":{"v":0,"d":"$0.00"}}]
["LTC",null,null,{"$f":"Jurat!I$1","v":0},{"$f":"Jurat!D$33","v":"00:00:00"},"Q4","2017-12-31","Region 3","Operating Expense","Medical Expense","NF & Hospice","2.9","NF & Hospice Settlements",{"$f":"IFERROR('LTC Rev-Exp Region 3'!$P$25/'LTC Rev-Exp Region 3'!$P$9, 0)","v":{"v":0,"d":"$0.00"}},{"$f":"IFERROR('LTC Rev-Exp Region 3'!$Q$25/'LTC Rev-Exp Region 3'!$Q$9, 0)","v":{"v":0,"d":"$0.00"}},{"$f":"IFERROR('LTC Rev-Exp Region 3'!$R$25/'LTC Rev-Exp Region 3'!$R$9, 0)","v":{"v":0,"d":"$0.00"}},{"$f":"IFERROR('LTC Rev-Exp Region 3'!$S$25/'LTC Rev-Exp Region 3'!$S$9, 0)","v":{"v":0,"d":"$0.00"}}]
["LTC",null,null,{"$f":"Jurat!I$1","v":0},{"$f":"Jurat!D$33","v":"00:00:00"},"Q4","2017-12-31","Region 3","Operating Expense","Medical Expense","LTC Services","2.11","Assisted Living FFS",{"$f":"IFERROR('LTC Rev-Exp Region 3'!$P$27/'LTC Rev-Exp Region 3'!$P$9, 0)","v":{"v":0,"d":"$0.00"}},{"$f":"IFERROR('LTC Rev-Exp Region 3'!$Q$27/'LTC Rev-Exp Region 3'!$Q$9, 0)","v":{"v":0,"d":"$0.00"}},{"$f":"IFERROR('LTC Rev-Exp Region 3'!$R$27/'LTC Rev-Exp Region 3'!$R$9, 0)","v":{"v":0,"d":"$0.00"}},{"$f":"IFERROR('LTC Rev-Exp Region 3'!$S$27/'LTC Rev-Exp Region 3'!$S$9, 0)","v":{"v":0,"d":"$0.00"}}]
["LTC",null,null,{"$f":"Jurat!I$1","v":0},{"$f":"Jurat!D$33","v":"00:00:00"},"Q4","2017-12-31","Region 3","Operating Expense","Medical Expense","LTC Services","2.12","Home Health FFS",{"$f":"IFERROR('LTC Rev-Exp Region 3'!$P$28/'LTC Rev-Exp Region 3'!$P$9, 0)","v":{"v":0,"d":"$0.00"}},{"$f":"IFERROR('LTC Rev-Exp Region 3'!$Q$28/'LTC Rev-Exp Region 3'!$Q$9, 0)","v":{"v":0,"d":"$0.00"}},{"$f":"IFERROR('LTC Rev-Exp Region 3'!$R$28/'LTC Rev-Exp Region 3'!$R$9, 0)","v":{"v":0,"d":"$0.00"}},{"$f":"IFERROR('LTC Rev-Exp Region 3'!$S$28/'LTC Rev-Exp Region 3'!$S$9, 0)","v":{"v":0,"d":"$0.00"}}]
["LTC",null,null,{"$f":"Jurat!I$1","v":0},{"$f":"Jurat!D$33","v":"00:00:00"},"Q4","2017-12-31","Region 3","Operating Expense","Medical Expense","LTC Services","2.13","Medical Equipment/Supplies FFS",{"$f":"IFERROR('LTC Rev-Exp Region 3'!$P$29/'LTC Rev-Exp Region 3'!$P$9, 0)","v":{"v":0,"d":"$0.00"}},{"$f":"IFERROR('LTC Rev-Exp Region 3'!$Q$29/'LTC Rev-Exp Region 3'!$Q$9, 0)","v":{"v":0,"d":"$0.00"}},{"$f":"IFERROR('LTC Rev-Exp Region 3'!$R$29/'LTC Rev-Exp Region 3'!$R$9, 0)","v":{"v":0,"d":"$0.00"}},{"$f":"IFERROR('LTC Rev-Exp Region 3'!$S$29/'LTC Rev-Exp Region 3'!$S$9, 0)","v":{"v":0,"d":"$0.00"}}]
["LTC",null,null,{"$f":"Jurat!I$1","v":0},{"$f":"Jurat!D$33","v":"00:00:00"},"Q4","2017-12-31","Region 3","Operating Expense","Medical Expense","LTC Services","2.14","Therapy FFS",{"$f":"IFERROR('LTC Rev-Exp Region 3'!$P$30/'LTC Rev-Exp Region 3'!$P$9, 0)","v":{"v":0,"d":"$0.00"}},{"$f":"IFERROR('LTC Rev-Exp Region 3'!$Q$30/'LTC Rev-Exp Region 3'!$Q$9, 0)","v":{"v":0,"d":"$0.00"}},{"$f":"IFERROR('LTC Rev-Exp Region 3'!$R$30/'LTC Rev-Exp Region 3'!$R$9, 0)","v":{"v":0,"d":"$0.00"}},{"$f":"IFERROR('LTC Rev-Exp Region 3'!$S$30/'LTC Rev-Exp Region 3'!$S$9, 0)","v":{"v":0,"d":"$0.00"}}]
["LTC",null,null,{"$f":"Jurat!I$1","v":0},{"$f":"Jurat!D$33","v":"00:00:00"},"Q4","2017-12-31","Region 3","Operating Expense","Medical Expense","LTC Services","2.15","Transportation FFS",{"$f":"IFERROR('LTC Rev-Exp Region 3'!$P$31/'LTC Rev-Exp Region 3'!$P$9, 0)","v":{"v":0,"d":"$0.00"}},{"$f":"IFERROR('LTC Rev-Exp Region 3'!$Q$31/'LTC Rev-Exp Region 3'!$Q$9, 0)","v":{"v":0,"d":"$0.00"}},{"$f":"IFERROR('LTC Rev-Exp Region 3'!$R$31/'LTC Rev-Exp Region 3'!$R$9, 0)","v":{"v":0,"d":"$0.00"}},{"$f":"IFERROR('LTC Rev-Exp Region 3'!$S$31/'LTC Rev-Exp Region 3'!$S$9, 0)","v":{"v":0,"d":"$0.00"}}]
["LTC",null,null,{"$f":"Jurat!I$1","v":0},{"$f":"Jurat!D$33","v":"00:00:00"},"Q4","2017-12-31","Region 3","Operating Expense","Medical Expense","LTC Services","2.16","Case Management FFS (Plan Provided)",{"$f":"IFERROR('LTC Rev-Exp Region 3'!$P$32/'LTC Rev-Exp Region 3'!$P$9, 0)","v":{"v":0,"d":"$0.00"}},{"$f":"IFERROR('LTC Rev-Exp Region 3'!$Q$32/'LTC Rev-Exp Region 3'!$Q$9, 0)","v":{"v":0,"d":"$0.00"}},{"$f":"IFERROR('LTC Rev-Exp Region 3'!$R$32/'LTC Rev-Exp Region 3'!$R$9, 0)","v":{"v":0,"d":"$0.00"}},{"$f":"IFERROR('LTC Rev-Exp Region 3'!$S$32/'LTC Rev-Exp Region 3'!$S$9, 0)","v":{"v":0,"d":"$0.00"}}]
["LTC",null,null,{"$f":"Jurat!I$1","v":0},{"$f":"Jurat!D$33","v":"00:00:00"},"Q4","2017-12-31","Region 3","Operating Expense","Medical Expense","LTC Services","2.17","Case Management FF (Non-Plan Provided)",{"$f":"IFERROR('LTC Rev-Exp Region 3'!$P$33/'LTC Rev-Exp Region 3'!$P$9, 0)","v":{"v":0,"d":"$0.00"}},{"$f":"IFERROR('LTC Rev-Exp Region 3'!$Q$33/'LTC Rev-Exp Region 3'!$Q$9, 0)","v":{"v":0,"d":"$0.00"}},{"$f":"IFERROR('LTC Rev-Exp Region 3'!$R$33/'LTC Rev-Exp Region 3'!$R$9, 0)","v":{"v":0,"d":"$0.00"}},{"$f":"IFERROR('LTC Rev-Exp Region 3'!$S$33/'LTC Rev-Exp Region 3'!$S$9, 0)","v":{"v":0,"d":"$0.00"}}]
["LTC",null,null,{"$f":"Jurat!I$1","v":0},{"$f":"Jurat!D$33","v":"00:00:00"},"Q4","2017-12-31","Region 3","Operating Expense","Medical Expense","LTC Services","2.18","HCBS FFS",{"$f":"IFERROR('LTC Rev-Exp Region 3'!$P$34/'LTC Rev-Exp Region 3'!$P$9, 0)","v":{"v":0,"d":"$0.00"}},{"$f":"IFERROR('LTC Rev-Exp Region 3'!$Q$34/'LTC Rev-Exp Region 3'!$Q$9, 0)","v":{"v":0,"d":"$0.00"}},{"$f":"IFERROR('LTC Rev-Exp Region 3'!$R$34/'LTC Rev-Exp Region 3'!$R$9, 0)","v":{"v":0,"d":"$0.00"}},{"$f":"IFERROR('LTC Rev-Exp Region 3'!$S$34/'LTC Rev-Exp Region 3'!$S$9, 0)","v":{"v":0,"d":"$0.00"}}]
["LTC",null,null,{"$f":"Jurat!I$1","v":0},{"$f":"Jurat!D$33","v":"00:00:00"},"Q4","2017-12-31","Region 3","Operating Expense","Medical Expense","LTC Services","2.19","Subcapitated LTC Services",{"$f":"IFERROR('LTC Rev-Exp Region 3'!$P$35/'LTC Rev-Exp Region 3'!$P$9, 0)","v":{"v":0,"d":"$0.00"}},{"$f":"IFERROR('LTC Rev-Exp Region 3'!$Q$35/'LTC Rev-Exp Region 3'!$Q$9, 0)","v":{"v":0,"d":"$0.00"}},{"$f":"IFERROR('LTC Rev-Exp Region 3'!$R$35/'LTC Rev-Exp Region 3'!$R$9, 0)","v":{"v":0,"d":"$0.00"}},{"$f":"IFERROR('LTC Rev-Exp Region 3'!$S$35/'LTC Rev-Exp Region 3'!$S$9, 0)","v":{"v":0,"d":"$0.00"}}]
["LTC",null,null,{"$f":"Jurat!I$1","v":0},{"$f":"Jurat!D$33","v":"00:00:00"},"Q4","2017-12-31","Region 3","Operating Expense","Medical Expense","LTC Services","2.20","Ending IBNP for Long Term Care Services",{"$f":"IFERROR('LTC Rev-Exp Region 3'!$P$36/'LTC Rev-Exp Region 3'!$P$9, 0)","v":{"v":0,"d":"$0.00"}},{"$f":"IFERROR('LTC Rev-Exp Region 3'!$Q$36/'LTC Rev-Exp Region 3'!$Q$9, 0)","v":{"v":0,"d":"$0.00"}},{"$f":"IFERROR('LTC Rev-Exp Region 3'!$R$36/'LTC Rev-Exp Region 3'!$R$9, 0)","v":{"v":0,"d":"$0.00"}},{"$f":"IFERROR('LTC Rev-Exp Region 3'!$S$36/'LTC Rev-Exp Region 3'!$S$9, 0)","v":{"v":0,"d":"$0.00"}}]
["LTC",null,null,{"$f":"Jurat!I$1","v":0},{"$f":"Jurat!D$33","v":"00:00:00"},"Q4","2017-12-31","Region 3","Operating Expense","Medical Expense","LTC Services","2.21","LTC Services Settlements",{"$f":"IFERROR('LTC Rev-Exp Region 3'!$P$37/'LTC Rev-Exp Region 3'!$P$9, 0)","v":{"v":0,"d":"$0.00"}},{"$f":"IFERROR('LTC Rev-Exp Region 3'!$Q$37/'LTC Rev-Exp Region 3'!$Q$9, 0)","v":{"v":0,"d":"$0.00"}},{"$f":"IFERROR('LTC Rev-Exp Region 3'!$R$37/'LTC Rev-Exp Region 3'!$R$9, 0)","v":{"v":0,"d":"$0.00"}},{"$f":"IFERROR('LTC Rev-Exp Region 3'!$S$37/'LTC Rev-Exp Region 3'!$S$9, 0)","v":{"v":0,"d":"$0.00"}}]
["LTC",null,null,{"$f":"Jurat!I$1","v":0},{"$f":"Jurat!D$33","v":"00:00:00"},"Q4","2017-12-31","Region 3","Operating Expense","Medical Expense","Expanded Benefits","3.1","Expanded Benefits FFS",{"$f":"IFERROR('LTC Rev-Exp Region 3'!$P$39/'LTC Rev-Exp Region 3'!$P$9, 0)","v":{"v":0,"d":"$0.00"}},{"$f":"IFERROR('LTC Rev-Exp Region 3'!$Q$39/'LTC Rev-Exp Region 3'!$Q$9, 0)","v":{"v":0,"d":"$0.00"}},{"$f":"IFERROR('LTC Rev-Exp Region 3'!$R$39/'LTC Rev-Exp Region 3'!$R$9, 0)","v":{"v":0,"d":"$0.00"}},{"$f":"IFERROR('LTC Rev-Exp Region 3'!$S$39/'LTC Rev-Exp Region 3'!$S$9, 0)","v":{"v":0,"d":"$0.00"}}]
["LTC",null,null,{"$f":"Jurat!I$1","v":0},{"$f":"Jurat!D$33","v":"00:00:00"},"Q4","2017-12-31","Region 3","Operating Expense","Medical Expense","Expanded Benefits","3.2","Expanded Benefits Subcapitation",{"$f":"IFERROR('LTC Rev-Exp Region 3'!$P$40/'LTC Rev-Exp Region 3'!$P$9, 0)","v":{"v":0,"d":"$0.00"}},{"$f":"IFERROR('LTC Rev-Exp Region 3'!$Q$40/'LTC Rev-Exp Region 3'!$Q$9, 0)","v":{"v":0,"d":"$0.00"}},{"$f":"IFERROR('LTC Rev-Exp Region 3'!$R$40/'LTC Rev-Exp Region 3'!$R$9, 0)","v":{"v":0,"d":"$0.00"}},{"$f":"IFERROR('LTC Rev-Exp Region 3'!$S$40/'LTC Rev-Exp Region 3'!$S$9, 0)","v":{"v":0,"d":"$0.00"}}]
["LTC",null,null,{"$f":"Jurat!I$1","v":0},{"$f":"Jurat!D$33","v":"00:00:00"},"Q4","2017-12-31","Region 3","Operating Expense","Medical Expense","Expanded Benefits","3.3","Ending IBNP for Expanded Benefits",{"$f":"IFERROR('LTC Rev-Exp Region 3'!$P$41/'LTC Rev-Exp Region 3'!$P$9, 0)","v":{"v":0,"d":"$0.00"}},{"$f":"IFERROR('LTC Rev-Exp Region 3'!$Q$41/'LTC Rev-Exp Region 3'!$Q$9, 0)","v":{"v":0,"d":"$0.00"}},{"$f":"IFERROR('LTC Rev-Exp Region 3'!$R$41/'LTC Rev-Exp Region 3'!$R$9, 0)","v":{"v":0,"d":"$0.00"}},{"$f":"IFERROR('LTC Rev-Exp Region 3'!$S$41/'LTC Rev-Exp Region 3'!$S$9, 0)","v":{"v":0,"d":"$0.00"}}]
["LTC",null,null,{"$f":"Jurat!I$1","v":0},{"$f":"Jurat!D$33","v":"00:00:00"},"Q4","2017-12-31","Region 3","Operating Expense","Medical Expense","Expanded Benefits","3.4","Expanded Benefits Settlements",{"$f":"IFERROR('LTC Rev-Exp Region 3'!$P$42/'LTC Rev-Exp Region 3'!$P$9, 0)","v":{"v":0,"d":"$0.00"}},{"$f":"IFERROR('LTC Rev-Exp Region 3'!$Q$42/'LTC Rev-Exp Region 3'!$Q$9, 0)","v":{"v":0,"d":"$0.00"}},{"$f":"IFERROR('LTC Rev-Exp Region 3'!$R$42/'LTC Rev-Exp Region 3'!$R$9, 0)","v":{"v":0,"d":"$0.00"}},{"$f":"IFERROR('LTC Rev-Exp Region 3'!$S$42/'LTC Rev-Exp Region 3'!$S$9, 0)","v":{"v":0,"d":"$0.00"}}]
["LTC",null,null,{"$f":"Jurat!I$1","v":0},{"$f":"Jurat!D$33","v":"00:00:00"},"Q4","2017-12-31","Region 3","Operating Expense","Medical Expense","Other Medical","4.5","TPL & Fraud/Abuse Recoveries",{"$f":"IFERROR('LTC Rev-Exp Region 3'!$P$48/'LTC Rev-Exp Region 3'!$P$9, 0)","v":{"v":0,"d":"$0.00"}},{"$f":"IFERROR('LTC Rev-Exp Region 3'!$Q$48/'LTC Rev-Exp Region 3'!$Q$9, 0)","v":{"v":0,"d":"$0.00"}},{"$f":"IFERROR('LTC Rev-Exp Region 3'!$R$48/'LTC Rev-Exp Region 3'!$R$9, 0)","v":{"v":0,"d":"$0.00"}},{"$f":"IFERROR('LTC Rev-Exp Region 3'!$S$48/'LTC Rev-Exp Region 3'!$S$9, 0)","v":{"v":0,"d":"$0.00"}}]
["LTC",null,null,{"$f":"Jurat!I$1","v":0},{"$f":"Jurat!D$33","v":"00:00:00"},"Q4","2017-12-31","Region 3","Operating Expense","Medical Expense","Other Medical","4.6.1","Premium Deficiency Reserve",{"$f":"IFERROR('LTC Rev-Exp Region 3'!$P$49/'LTC Rev-Exp Region 3'!$P$9, 0)","v":{"v":0,"d":"$0.00"}},{"$f":"IFERROR('LTC Rev-Exp Region 3'!$Q$49/'LTC Rev-Exp Region 3'!$Q$9, 0)","v":{"v":0,"d":"$0.00"}},{"$f":"IFERROR('LTC Rev-Exp Region 3'!$R$49/'LTC Rev-Exp Region 3'!$R$9, 0)","v":{"v":0,"d":"$0.00"}},{"$f":"IFERROR('LTC Rev-Exp Region 3'!$S$49/'LTC Rev-Exp Region 3'!$S$9, 0)","v":{"v":0,"d":"$0.00"}}]
["LTC",null,null,{"$f":"Jurat!I$1","v":0},{"$f":"Jurat!D$33","v":"00:00:00"},"Q4","2017-12-31","Region 3","Operating Expense","Medical Expense","Other Medical","4.8","Reinsurance Premiums",{"$f":"IFERROR('LTC Rev-Exp Region 3'!$P$51/'LTC Rev-Exp Region 3'!$P$9, 0)","v":{"v":0,"d":"$0.00"}},{"$f":"IFERROR('LTC Rev-Exp Region 3'!$Q$51/'LTC Rev-Exp Region 3'!$Q$9, 0)","v":{"v":0,"d":"$0.00"}},{"$f":"IFERROR('LTC Rev-Exp Region 3'!$R$51/'LTC Rev-Exp Region 3'!$R$9, 0)","v":{"v":0,"d":"$0.00"}},{"$f":"IFERROR('LTC Rev-Exp Region 3'!$S$51/'LTC Rev-Exp Region 3'!$S$9, 0)","v":{"v":0,"d":"$0.00"}}]
["LTC",null,null,{"$f":"Jurat!I$1","v":0},{"$f":"Jurat!D$33","v":"00:00:00"},"Q4","2017-12-31","Region 3","Operating Expense","Medical Expense","Other Medical","4.9","Reinsurance Recoveries",{"$f":"IFERROR('LTC Rev-Exp Region 3'!$P$52/'LTC Rev-Exp Region 3'!$P$9, 0)","v":{"v":0,"d":"$0.00"}},{"$f":"IFERROR('LTC Rev-Exp Region 3'!$Q$52/'LTC Rev-Exp Region 3'!$Q$9, 0)","v":{"v":0,"d":"$0.00"}},{"$f":"IFERROR('LTC Rev-Exp Region 3'!$R$52/'LTC Rev-Exp Region 3'!$R$9, 0)","v":{"v":0,"d":"$0.00"}},{"$f":"IFERROR('LTC Rev-Exp Region 3'!$S$52/'LTC Rev-Exp Region 3'!$S$9, 0)","v":{"v":0,"d":"$0.00"}}]
["LTC",null,null,{"$f":"Jurat!I$1","v":0},{"$f":"Jurat!D$33","v":"00:00:00"},"Q4","2017-12-31","Region 3","Operating Expense","Administrative Expense","Administrative","5.1","Salaries & Benefits",{"$f":"IFERROR('LTC Rev-Exp Region 3'!$P$57/'LTC Rev-Exp Region 3'!$P$9, 0)","v":{"v":0,"d":"$0.00"}},{"$f":"IFERROR('LTC Rev-Exp Region 3'!$Q$57/'LTC Rev-Exp Region 3'!$Q$9, 0)","v":{"v":0,"d":"$0.00"}},{"$f":"IFERROR('LTC Rev-Exp Region 3'!$R$57/'LTC Rev-Exp Region 3'!$R$9, 0)","v":{"v":0,"d":"$0.00"}},{"$f":"IFERROR('LTC Rev-Exp Region 3'!$S$57/'LTC Rev-Exp Region 3'!$S$9, 0)","v":{"v":0,"d":"$0.00"}}]
["LTC",null,null,{"$f":"Jurat!I$1","v":0},{"$f":"Jurat!D$33","v":"00:00:00"},"Q4","2017-12-31","Region 3","Operating Expense","Administrative Expense","Administrative","5.2","Administrative Services",{"$f":"IFERROR('LTC Rev-Exp Region 3'!$P$58/'LTC Rev-Exp Region 3'!$P$9, 0)","v":{"v":0,"d":"$0.00"}},{"$f":"IFERROR('LTC Rev-Exp Region 3'!$Q$58/'LTC Rev-Exp Region 3'!$Q$9, 0)","v":{"v":0,"d":"$0.00"}},{"$f":"IFERROR('LTC Rev-Exp Region 3'!$R$58/'LTC Rev-Exp Region 3'!$R$9, 0)","v":{"v":0,"d":"$0.00"}},{"$f":"IFERROR('LTC Rev-Exp Region 3'!$S$58/'LTC Rev-Exp Region 3'!$S$9, 0)","v":{"v":0,"d":"$0.00"}}]
["LTC",null,null,{"$f":"Jurat!I$1","v":0},{"$f":"Jurat!D$33","v":"00:00:00"},"Q4","2017-12-31","Region 3","Operating Expense","Administrative Expense","Administrative","5.3","Information Systems",{"$f":"IFERROR('LTC Rev-Exp Region 3'!$P$59/'LTC Rev-Exp Region 3'!$P$9, 0)","v":{"v":0,"d":"$0.00"}},{"$f":"IFERROR('LTC Rev-Exp Region 3'!$Q$59/'LTC Rev-Exp Region 3'!$Q$9, 0)","v":{"v":0,"d":"$0.00"}},{"$f":"IFERROR('LTC Rev-Exp Region 3'!$R$59/'LTC Rev-Exp Region 3'!$R$9, 0)","v":{"v":0,"d":"$0.00"}},{"$f":"IFERROR('LTC Rev-Exp Region 3'!$S$59/'LTC Rev-Exp Region 3'!$S$9, 0)","v":{"v":0,"d":"$0.00"}}]
["LTC",null,null,{"$f":"Jurat!I$1","v":0},{"$f":"Jurat!D$33","v":"00:00:00"},"Q4","2017-12-31","Region 3","Operating Expense","Administrative Expense","Administrative","5.4","Marketing Expenses",{"$f":"IFERROR('LTC Rev-Exp Region 3'!$P$60/'LTC Rev-Exp Region 3'!$P$9, 0)","v":{"v":0,"d":"$0.00"}},{"$f":"IFERROR('LTC Rev-Exp Region 3'!$Q$60/'LTC Rev-Exp Region 3'!$Q$9, 0)","v":{"v":0,"d":"$0.00"}},{"$f":"IFERROR('LTC Rev-Exp Region 3'!$R$60/'LTC Rev-Exp Region 3'!$R$9, 0)","v":{"v":0,"d":"$0.00"}},{"$f":"IFERROR('LTC Rev-Exp Region 3'!$S$60/'LTC Rev-Exp Region 3'!$S$9, 0)","v":{"v":0,"d":"$0.00"}}]
["LTC",null,null,{"$f":"Jurat!I$1","v":0},{"$f":"Jurat!D$33","v":"00:00:00"},"Q4","2017-12-31","Region 3","Operating Expense","Administrative Expense","Administrative","5.5","General  Administration",{"$f":"IFERROR('LTC Rev-Exp Region 3'!$P$61/'LTC Rev-Exp Region 3'!$P$9, 0)","v":{"v":0,"d":"$0.00"}},{"$f":"IFERROR('LTC Rev-Exp Region 3'!$Q$61/'LTC Rev-Exp Region 3'!$Q$9, 0)","v":{"v":0,"d":"$0.00"}},{"$f":"IFERROR('LTC Rev-Exp Region 3'!$R$61/'LTC Rev-Exp Region 3'!$R$9, 0)","v":{"v":0,"d":"$0.00"}},{"$f":"IFERROR('LTC Rev-Exp Region 3'!$S$61/'LTC Rev-Exp Region 3'!$S$9, 0)","v":{"v":0,"d":"$0.00"}}]
["LTC",null,null,{"$f":"Jurat!I$1","v":0},{"$f":"Jurat!D$33","v":"00:00:00"},"Q4","2017-12-31","Region 3","Operating Expense","Administrative Expense","Administrative","5.6","Compliance/Regulatory",{"$f":"IFERROR('LTC Rev-Exp Region 3'!$P$62/'LTC Rev-Exp Region 3'!$P$9, 0)","v":{"v":0,"d":"$0.00"}},{"$f":"IFERROR('LTC Rev-Exp Region 3'!$Q$62/'LTC Rev-Exp Region 3'!$Q$9, 0)","v":{"v":0,"d":"$0.00"}},{"$f":"IFERROR('LTC Rev-Exp Region 3'!$R$62/'LTC Rev-Exp Region 3'!$R$9, 0)","v":{"v":0,"d":"$0.00"}},{"$f":"IFERROR('LTC Rev-Exp Region 3'!$S$62/'LTC Rev-Exp Region 3'!$S$9, 0)","v":{"v":0,"d":"$0.00"}}]
["LTC",null,null,{"$f":"Jurat!I$1","v":0},{"$f":"Jurat!D$33","v":"00:00:00"},"Q4","2017-12-31","Region 3","Operating Expense","Taxes & Fees","Taxes & Fees","6.1","State Premium Tax",{"$f":"IFERROR('LTC Rev-Exp Region 3'!$P$64/'LTC Rev-Exp Region 3'!$P$9, 0)","v":{"v":0,"d":"$0.00"}},{"$f":"IFERROR('LTC Rev-Exp Region 3'!$Q$64/'LTC Rev-Exp Region 3'!$Q$9, 0)","v":{"v":0,"d":"$0.00"}},{"$f":"IFERROR('LTC Rev-Exp Region 3'!$R$64/'LTC Rev-Exp Region 3'!$R$9, 0)","v":{"v":0,"d":"$0.00"}},{"$f":"IFERROR('LTC Rev-Exp Region 3'!$S$64/'LTC Rev-Exp Region 3'!$S$9, 0)","v":{"v":0,"d":"$0.00"}}]
["LTC",null,null,{"$f":"Jurat!I$1","v":0},{"$f":"Jurat!D$33","v":"00:00:00"},"Q4","2017-12-31","Region 3","Operating Expense","Taxes & Fees","Taxes & Fees","6.2","Department of Insurance Assessments",{"$f":"IFERROR('LTC Rev-Exp Region 3'!$P$65/'LTC Rev-Exp Region 3'!$P$9, 0)","v":{"v":0,"d":"$0.00"}},{"$f":"IFERROR('LTC Rev-Exp Region 3'!$Q$65/'LTC Rev-Exp Region 3'!$Q$9, 0)","v":{"v":0,"d":"$0.00"}},{"$f":"IFERROR('LTC Rev-Exp Region 3'!$R$65/'LTC Rev-Exp Region 3'!$R$9, 0)","v":{"v":0,"d":"$0.00"}},{"$f":"IFERROR('LTC Rev-Exp Region 3'!$S$65/'LTC Rev-Exp Region 3'!$S$9, 0)","v":{"v":0,"d":"$0.00"}}]
["LTC",null,null,{"$f":"Jurat!I$1","v":0},{"$f":"Jurat!D$33","v":"00:00:00"},"Q4","2017-12-31","Region 3","Non-Operating Expense","Income Tax Expense","Income Tax Expense","9.0","Income Tax Expense",{"$f":"IFERROR('LTC Rev-Exp Region 3'!$P$72/'LTC Rev-Exp Region 3'!$P$9, 0)","v":{"v":0,"d":"$0.00"}},{"$f":"IFERROR('LTC Rev-Exp Region 3'!$Q$72/'LTC Rev-Exp Region 3'!$Q$9, 0)","v":{"v":0,"d":"$0.00"}},{"$f":"IFERROR('LTC Rev-Exp Region 3'!$R$72/'LTC Rev-Exp Region 3'!$R$9, 0)","v":{"v":0,"d":"$0.00"}},{"$f":"IFERROR('LTC Rev-Exp Region 3'!$S$72/'LTC Rev-Exp Region 3'!$S$9, 0)","v":{"v":0,"d":"$0.00"}}]
["LTC",null,null,{"$f":"Jurat!I$1","v":0},{"$f":"Jurat!D$33","v":"00:00:00"},"Q1","2017-03-31","Region 4","Operating Revenue","Capitation","Capitation",1.1,"Capitation",{"$f":"IFERROR('LTC Rev-Exp Region 4'!$D$11/'LTC Rev-Exp Region 4'!$D$9, 0)","v":{"v":0,"d":"$0.00"}},{"$f":"IFERROR('LTC Rev-Exp Region 4'!$E$11/'LTC Rev-Exp Region 4'!$E$9, 0)","v":{"v":0,"d":"$0.00"}},{"$f":"IFERROR('LTC Rev-Exp Region 4'!$F$11/'LTC Rev-Exp Region 4'!$F$9, 0)","v":{"v":0,"d":"$0.00"}},{"$f":"IFERROR('LTC Rev-Exp Region 4'!$G$11/'LTC Rev-Exp Region 4'!$G$9, 0)","v":{"v":0,"d":"$0.00"}}]
["LTC",null,null,{"$f":"Jurat!I$1","v":0},{"$f":"Jurat!D$33","v":"00:00:00"},"Q1","2017-03-31","Region 4","Operating Revenue","Capitation","NH Rate Reconciliation",1.2,"NH Rate Reconciliation",{"$f":"IFERROR('LTC Rev-Exp Region 4'!$D$12/'LTC Rev-Exp Region 4'!$D$9, 0)","v":{"v":0,"d":"$0.00"}},{"$f":"IFERROR('LTC Rev-Exp Region 4'!$E$12/'LTC Rev-Exp Region 4'!$E$9, 0)","v":{"v":0,"d":"$0.00"}},{"$f":"IFERROR('LTC Rev-Exp Region 4'!$F$12/'LTC Rev-Exp Region 4'!$F$9, 0)","v":{"v":0,"d":"$0.00"}},{"$f":"IFERROR('LTC Rev-Exp Region 4'!$G$12/'LTC Rev-Exp Region 4'!$G$9, 0)","v":{"v":0,"d":"$0.00"}}]
["LTC",null,null,{"$f":"Jurat!I$1","v":0},{"$f":"Jurat!D$33","v":"00:00:00"},"Q1","2017-03-31","Region 4","Operating Revenue","Other Revenue","Other Revenue",1.3,"Other Revenue",{"$f":"IFERROR('LTC Rev-Exp Region 4'!$D$13/'LTC Rev-Exp Region 4'!$D$9, 0)","v":{"v":0,"d":"$0.00"}},{"$f":"IFERROR('LTC Rev-Exp Region 4'!$E$13/'LTC Rev-Exp Region 4'!$E$9, 0)","v":{"v":0,"d":"$0.00"}},{"$f":"IFERROR('LTC Rev-Exp Region 4'!$F$13/'LTC Rev-Exp Region 4'!$F$9, 0)","v":{"v":0,"d":"$0.00"}},{"$f":"IFERROR('LTC Rev-Exp Region 4'!$G$13/'LTC Rev-Exp Region 4'!$G$9, 0)","v":{"v":0,"d":"$0.00"}}]
["LTC",null,null,{"$f":"Jurat!I$1","v":0},{"$f":"Jurat!D$33","v":"00:00:00"},"Q1","2017-03-31","Region 4","Operating Expense","Medical Expense","NF & Hospice","2.3","Nursing Facility FFS (Medicaid)",{"$f":"IFERROR('LTC Rev-Exp Region 4'!$D$19/'LTC Rev-Exp Region 4'!$D$9, 0)","v":{"v":0,"d":"$0.00"}},{"$f":"IFERROR('LTC Rev-Exp Region 4'!$E$19/'LTC Rev-Exp Region 4'!$E$9, 0)","v":{"v":0,"d":"$0.00"}},{"$f":"IFERROR('LTC Rev-Exp Region 4'!$F$19/'LTC Rev-Exp Region 4'!$F$9, 0)","v":{"v":0,"d":"$0.00"}},{"$f":"IFERROR('LTC Rev-Exp Region 4'!$G$19/'LTC Rev-Exp Region 4'!$G$9, 0)","v":{"v":0,"d":"$0.00"}}]
["LTC",null,null,{"$f":"Jurat!I$1","v":0},{"$f":"Jurat!D$33","v":"00:00:00"},"Q1","2017-03-31","Region 4","Operating Expense","Medical Expense","NF & Hospice","2.4","Nursing Facility FFS (Crossover)",{"$f":"IFERROR('LTC Rev-Exp Region 4'!$D$20/'LTC Rev-Exp Region 4'!$D$9, 0)","v":{"v":0,"d":"$0.00"}},{"$f":"IFERROR('LTC Rev-Exp Region 4'!$E$20/'LTC Rev-Exp Region 4'!$E$9, 0)","v":{"v":0,"d":"$0.00"}},{"$f":"IFERROR('LTC Rev-Exp Region 4'!$F$20/'LTC Rev-Exp Region 4'!$F$9, 0)","v":{"v":0,"d":"$0.00"}},{"$f":"IFERROR('LTC Rev-Exp Region 4'!$G$20/'LTC Rev-Exp Region 4'!$G$9, 0)","v":{"v":0,"d":"$0.00"}}]
["LTC",null,null,{"$f":"Jurat!I$1","v":0},{"$f":"Jurat!D$33","v":"00:00:00"},"Q1","2017-03-31","Region 4","Operating Expense","Medical Expense","NF & Hospice","2.6","Hospice FFS",{"$f":"IFERROR('LTC Rev-Exp Region 4'!$D$22/'LTC Rev-Exp Region 4'!$D$9, 0)","v":{"v":0,"d":"$0.00"}},{"$f":"IFERROR('LTC Rev-Exp Region 4'!$E$22/'LTC Rev-Exp Region 4'!$E$9, 0)","v":{"v":0,"d":"$0.00"}},{"$f":"IFERROR('LTC Rev-Exp Region 4'!$F$22/'LTC Rev-Exp Region 4'!$F$9, 0)","v":{"v":0,"d":"$0.00"}},{"$f":"IFERROR('LTC Rev-Exp Region 4'!$G$22/'LTC Rev-Exp Region 4'!$G$9, 0)","v":{"v":0,"d":"$0.00"}}]
["LTC",null,null,{"$f":"Jurat!I$1","v":0},{"$f":"Jurat!D$33","v":"00:00:00"},"Q1","2017-03-31","Region 4","Operating Expense","Medical Expense","NF & Hospice","2.7","Ending IBNP for NF & Hospice",{"$f":"IFERROR('LTC Rev-Exp Region 4'!$D$23/'LTC Rev-Exp Region 4'!$D$9, 0)","v":{"v":0,"d":"$0.00"}},{"$f":"IFERROR('LTC Rev-Exp Region 4'!$E$23/'LTC Rev-Exp Region 4'!$E$9, 0)","v":{"v":0,"d":"$0.00"}},{"$f":"IFERROR('LTC Rev-Exp Region 4'!$F$23/'LTC Rev-Exp Region 4'!$F$9, 0)","v":{"v":0,"d":"$0.00"}},{"$f":"IFERROR('LTC Rev-Exp Region 4'!$G$23/'LTC Rev-Exp Region 4'!$G$9, 0)","v":{"v":0,"d":"$0.00"}}]
["LTC",null,null,{"$f":"Jurat!I$1","v":0},{"$f":"Jurat!D$33","v":"00:00:00"},"Q1","2017-03-31","Region 4","Operating Expense","Medical Expense","NF & Hospice","2.8","NF & Hospice Subcapitated",{"$f":"IFERROR('LTC Rev-Exp Region 4'!$D$24/'LTC Rev-Exp Region 4'!$D$9, 0)","v":{"v":0,"d":"$0.00"}},{"$f":"IFERROR('LTC Rev-Exp Region 4'!$E$24/'LTC Rev-Exp Region 4'!$E$9, 0)","v":{"v":0,"d":"$0.00"}},{"$f":"IFERROR('LTC Rev-Exp Region 4'!$F$24/'LTC Rev-Exp Region 4'!$F$9, 0)","v":{"v":0,"d":"$0.00"}},{"$f":"IFERROR('LTC Rev-Exp Region 4'!$G$24/'LTC Rev-Exp Region 4'!$G$9, 0)","v":{"v":0,"d":"$0.00"}}]
["LTC",null,null,{"$f":"Jurat!I$1","v":0},{"$f":"Jurat!D$33","v":"00:00:00"},"Q1","2017-03-31","Region 4","Operating Expense","Medical Expense","NF & Hospice","2.9","NF & Hospice Settlements",{"$f":"IFERROR('LTC Rev-Exp Region 4'!$D$25/'LTC Rev-Exp Region 4'!$D$9, 0)","v":{"v":0,"d":"$0.00"}},{"$f":"IFERROR('LTC Rev-Exp Region 4'!$E$25/'LTC Rev-Exp Region 4'!$E$9, 0)","v":{"v":0,"d":"$0.00"}},{"$f":"IFERROR('LTC Rev-Exp Region 4'!$F$25/'LTC Rev-Exp Region 4'!$F$9, 0)","v":{"v":0,"d":"$0.00"}},{"$f":"IFERROR('LTC Rev-Exp Region 4'!$G$25/'LTC Rev-Exp Region 4'!$G$9, 0)","v":{"v":0,"d":"$0.00"}}]
["LTC",null,null,{"$f":"Jurat!I$1","v":0},{"$f":"Jurat!D$33","v":"00:00:00"},"Q1","2017-03-31","Region 4","Operating Expense","Medical Expense","LTC Services","2.11","Assisted Living FFS",{"$f":"IFERROR('LTC Rev-Exp Region 4'!$D$27/'LTC Rev-Exp Region 4'!$D$9, 0)","v":{"v":0,"d":"$0.00"}},{"$f":"IFERROR('LTC Rev-Exp Region 4'!$E$27/'LTC Rev-Exp Region 4'!$E$9, 0)","v":{"v":0,"d":"$0.00"}},{"$f":"IFERROR('LTC Rev-Exp Region 4'!$F$27/'LTC Rev-Exp Region 4'!$F$9, 0)","v":{"v":0,"d":"$0.00"}},{"$f":"IFERROR('LTC Rev-Exp Region 4'!$G$27/'LTC Rev-Exp Region 4'!$G$9, 0)","v":{"v":0,"d":"$0.00"}}]
["LTC",null,null,{"$f":"Jurat!I$1","v":0},{"$f":"Jurat!D$33","v":"00:00:00"},"Q1","2017-03-31","Region 4","Operating Expense","Medical Expense","LTC Services","2.12","Home Health FFS",{"$f":"IFERROR('LTC Rev-Exp Region 4'!$D$28/'LTC Rev-Exp Region 4'!$D$9, 0)","v":{"v":0,"d":"$0.00"}},{"$f":"IFERROR('LTC Rev-Exp Region 4'!$E$28/'LTC Rev-Exp Region 4'!$E$9, 0)","v":{"v":0,"d":"$0.00"}},{"$f":"IFERROR('LTC Rev-Exp Region 4'!$F$28/'LTC Rev-Exp Region 4'!$F$9, 0)","v":{"v":0,"d":"$0.00"}},{"$f":"IFERROR('LTC Rev-Exp Region 4'!$G$28/'LTC Rev-Exp Region 4'!$G$9, 0)","v":{"v":0,"d":"$0.00"}}]
["LTC",null,null,{"$f":"Jurat!I$1","v":0},{"$f":"Jurat!D$33","v":"00:00:00"},"Q1","2017-03-31","Region 4","Operating Expense","Medical Expense","LTC Services","2.13","Medical Equipment/Supplies FFS",{"$f":"IFERROR('LTC Rev-Exp Region 4'!$D$29/'LTC Rev-Exp Region 4'!$D$9, 0)","v":{"v":0,"d":"$0.00"}},{"$f":"IFERROR('LTC Rev-Exp Region 4'!$E$29/'LTC Rev-Exp Region 4'!$E$9, 0)","v":{"v":0,"d":"$0.00"}},{"$f":"IFERROR('LTC Rev-Exp Region 4'!$F$29/'LTC Rev-Exp Region 4'!$F$9, 0)","v":{"v":0,"d":"$0.00"}},{"$f":"IFERROR('LTC Rev-Exp Region 4'!$G$29/'LTC Rev-Exp Region 4'!$G$9, 0)","v":{"v":0,"d":"$0.00"}}]
["LTC",null,null,{"$f":"Jurat!I$1","v":0},{"$f":"Jurat!D$33","v":"00:00:00"},"Q1","2017-03-31","Region 4","Operating Expense","Medical Expense","LTC Services","2.14","Therapy FFS",{"$f":"IFERROR('LTC Rev-Exp Region 4'!$D$30/'LTC Rev-Exp Region 4'!$D$9, 0)","v":{"v":0,"d":"$0.00"}},{"$f":"IFERROR('LTC Rev-Exp Region 4'!$E$30/'LTC Rev-Exp Region 4'!$E$9, 0)","v":{"v":0,"d":"$0.00"}},{"$f":"IFERROR('LTC Rev-Exp Region 4'!$F$30/'LTC Rev-Exp Region 4'!$F$9, 0)","v":{"v":0,"d":"$0.00"}},{"$f":"IFERROR('LTC Rev-Exp Region 4'!$G$30/'LTC Rev-Exp Region 4'!$G$9, 0)","v":{"v":0,"d":"$0.00"}}]
["LTC",null,null,{"$f":"Jurat!I$1","v":0},{"$f":"Jurat!D$33","v":"00:00:00"},"Q1","2017-03-31","Region 4","Operating Expense","Medical Expense","LTC Services","2.15","Transportation FFS",{"$f":"IFERROR('LTC Rev-Exp Region 4'!$D$31/'LTC Rev-Exp Region 4'!$D$9, 0)","v":{"v":0,"d":"$0.00"}},{"$f":"IFERROR('LTC Rev-Exp Region 4'!$E$31/'LTC Rev-Exp Region 4'!$E$9, 0)","v":{"v":0,"d":"$0.00"}},{"$f":"IFERROR('LTC Rev-Exp Region 4'!$F$31/'LTC Rev-Exp Region 4'!$F$9, 0)","v":{"v":0,"d":"$0.00"}},{"$f":"IFERROR('LTC Rev-Exp Region 4'!$G$31/'LTC Rev-Exp Region 4'!$G$9, 0)","v":{"v":0,"d":"$0.00"}}]
["LTC",null,null,{"$f":"Jurat!I$1","v":0},{"$f":"Jurat!D$33","v":"00:00:00"},"Q1","2017-03-31","Region 4","Operating Expense","Medical Expense","LTC Services","2.16","Case Management FFS (Plan Provided)",{"$f":"IFERROR('LTC Rev-Exp Region 4'!$D$32/'LTC Rev-Exp Region 4'!$D$9, 0)","v":{"v":0,"d":"$0.00"}},{"$f":"IFERROR('LTC Rev-Exp Region 4'!$E$32/'LTC Rev-Exp Region 4'!$E$9, 0)","v":{"v":0,"d":"$0.00"}},{"$f":"IFERROR('LTC Rev-Exp Region 4'!$F$32/'LTC Rev-Exp Region 4'!$F$9, 0)","v":{"v":0,"d":"$0.00"}},{"$f":"IFERROR('LTC Rev-Exp Region 4'!$G$32/'LTC Rev-Exp Region 4'!$G$9, 0)","v":{"v":0,"d":"$0.00"}}]
["LTC",null,null,{"$f":"Jurat!I$1","v":0},{"$f":"Jurat!D$33","v":"00:00:00"},"Q1","2017-03-31","Region 4","Operating Expense","Medical Expense","LTC Services","2.17","Case Management FF (Non-Plan Provided)",{"$f":"IFERROR('LTC Rev-Exp Region 4'!$D$33/'LTC Rev-Exp Region 4'!$D$9, 0)","v":{"v":0,"d":"$0.00"}},{"$f":"IFERROR('LTC Rev-Exp Region 4'!$E$33/'LTC Rev-Exp Region 4'!$E$9, 0)","v":{"v":0,"d":"$0.00"}},{"$f":"IFERROR('LTC Rev-Exp Region 4'!$F$33/'LTC Rev-Exp Region 4'!$F$9, 0)","v":{"v":0,"d":"$0.00"}},{"$f":"IFERROR('LTC Rev-Exp Region 4'!$G$33/'LTC Rev-Exp Region 4'!$G$9, 0)","v":{"v":0,"d":"$0.00"}}]
["LTC",null,null,{"$f":"Jurat!I$1","v":0},{"$f":"Jurat!D$33","v":"00:00:00"},"Q1","2017-03-31","Region 4","Operating Expense","Medical Expense","LTC Services","2.18","HCBS FFS",{"$f":"IFERROR('LTC Rev-Exp Region 4'!$D$34/'LTC Rev-Exp Region 4'!$D$9, 0)","v":{"v":0,"d":"$0.00"}},{"$f":"IFERROR('LTC Rev-Exp Region 4'!$E$34/'LTC Rev-Exp Region 4'!$E$9, 0)","v":{"v":0,"d":"$0.00"}},{"$f":"IFERROR('LTC Rev-Exp Region 4'!$F$34/'LTC Rev-Exp Region 4'!$F$9, 0)","v":{"v":0,"d":"$0.00"}},{"$f":"IFERROR('LTC Rev-Exp Region 4'!$G$34/'LTC Rev-Exp Region 4'!$G$9, 0)","v":{"v":0,"d":"$0.00"}}]
["LTC",null,null,{"$f":"Jurat!I$1","v":0},{"$f":"Jurat!D$33","v":"00:00:00"},"Q1","2017-03-31","Region 4","Operating Expense","Medical Expense","LTC Services","2.19","Subcapitated LTC Services",{"$f":"IFERROR('LTC Rev-Exp Region 4'!$D$35/'LTC Rev-Exp Region 4'!$D$9, 0)","v":{"v":0,"d":"$0.00"}},{"$f":"IFERROR('LTC Rev-Exp Region 4'!$E$35/'LTC Rev-Exp Region 4'!$E$9, 0)","v":{"v":0,"d":"$0.00"}},{"$f":"IFERROR('LTC Rev-Exp Region 4'!$F$35/'LTC Rev-Exp Region 4'!$F$9, 0)","v":{"v":0,"d":"$0.00"}},{"$f":"IFERROR('LTC Rev-Exp Region 4'!$G$35/'LTC Rev-Exp Region 4'!$G$9, 0)","v":{"v":0,"d":"$0.00"}}]
["LTC",null,null,{"$f":"Jurat!I$1","v":0},{"$f":"Jurat!D$33","v":"00:00:00"},"Q1","2017-03-31","Region 4","Operating Expense","Medical Expense","LTC Services","2.20","Ending IBNP for Long Term Care Services",{"$f":"IFERROR('LTC Rev-Exp Region 4'!$D$36/'LTC Rev-Exp Region 4'!$D$9, 0)","v":{"v":0,"d":"$0.00"}},{"$f":"IFERROR('LTC Rev-Exp Region 4'!$E$36/'LTC Rev-Exp Region 4'!$E$9, 0)","v":{"v":0,"d":"$0.00"}},{"$f":"IFERROR('LTC Rev-Exp Region 4'!$F$36/'LTC Rev-Exp Region 4'!$F$9, 0)","v":{"v":0,"d":"$0.00"}},{"$f":"IFERROR('LTC Rev-Exp Region 4'!$G$36/'LTC Rev-Exp Region 4'!$G$9, 0)","v":{"v":0,"d":"$0.00"}}]
["LTC",null,null,{"$f":"Jurat!I$1","v":0},{"$f":"Jurat!D$33","v":"00:00:00"},"Q1","2017-03-31","Region 4","Operating Expense","Medical Expense","LTC Services","2.21","LTC Services Settlements",{"$f":"IFERROR('LTC Rev-Exp Region 4'!$D$37/'LTC Rev-Exp Region 4'!$D$9, 0)","v":{"v":0,"d":"$0.00"}},{"$f":"IFERROR('LTC Rev-Exp Region 4'!$E$37/'LTC Rev-Exp Region 4'!$E$9, 0)","v":{"v":0,"d":"$0.00"}},{"$f":"IFERROR('LTC Rev-Exp Region 4'!$F$37/'LTC Rev-Exp Region 4'!$F$9, 0)","v":{"v":0,"d":"$0.00"}},{"$f":"IFERROR('LTC Rev-Exp Region 4'!$G$37/'LTC Rev-Exp Region 4'!$G$9, 0)","v":{"v":0,"d":"$0.00"}}]
["LTC",null,null,{"$f":"Jurat!I$1","v":0},{"$f":"Jurat!D$33","v":"00:00:00"},"Q1","2017-03-31","Region 4","Operating Expense","Medical Expense","Expanded Benefits","3.1","Expanded Benefits FFS",{"$f":"IFERROR('LTC Rev-Exp Region 4'!$D$39/'LTC Rev-Exp Region 4'!$D$9, 0)","v":{"v":0,"d":"$0.00"}},{"$f":"IFERROR('LTC Rev-Exp Region 4'!$E$39/'LTC Rev-Exp Region 4'!$E$9, 0)","v":{"v":0,"d":"$0.00"}},{"$f":"IFERROR('LTC Rev-Exp Region 4'!$F$39/'LTC Rev-Exp Region 4'!$F$9, 0)","v":{"v":0,"d":"$0.00"}},{"$f":"IFERROR('LTC Rev-Exp Region 4'!$G$39/'LTC Rev-Exp Region 4'!$G$9, 0)","v":{"v":0,"d":"$0.00"}}]
["LTC",null,null,{"$f":"Jurat!I$1","v":0},{"$f":"Jurat!D$33","v":"00:00:00"},"Q1","2017-03-31","Region 4","Operating Expense","Medical Expense","Expanded Benefits","3.2","Expanded Benefits Subcapitation",{"$f":"IFERROR('LTC Rev-Exp Region 4'!$D$40/'LTC Rev-Exp Region 4'!$D$9, 0)","v":{"v":0,"d":"$0.00"}},{"$f":"IFERROR('LTC Rev-Exp Region 4'!$E$40/'LTC Rev-Exp Region 4'!$E$9, 0)","v":{"v":0,"d":"$0.00"}},{"$f":"IFERROR('LTC Rev-Exp Region 4'!$F$40/'LTC Rev-Exp Region 4'!$F$9, 0)","v":{"v":0,"d":"$0.00"}},{"$f":"IFERROR('LTC Rev-Exp Region 4'!$G$40/'LTC Rev-Exp Region 4'!$G$9, 0)","v":{"v":0,"d":"$0.00"}}]
["LTC",null,null,{"$f":"Jurat!I$1","v":0},{"$f":"Jurat!D$33","v":"00:00:00"},"Q1","2017-03-31","Region 4","Operating Expense","Medical Expense","Expanded Benefits","3.3","Ending IBNP for Expanded Benefits",{"$f":"IFERROR('LTC Rev-Exp Region 4'!$D$41/'LTC Rev-Exp Region 4'!$D$9, 0)","v":{"v":0,"d":"$0.00"}},{"$f":"IFERROR('LTC Rev-Exp Region 4'!$E$41/'LTC Rev-Exp Region 4'!$E$9, 0)","v":{"v":0,"d":"$0.00"}},{"$f":"IFERROR('LTC Rev-Exp Region 4'!$F$41/'LTC Rev-Exp Region 4'!$F$9, 0)","v":{"v":0,"d":"$0.00"}},{"$f":"IFERROR('LTC Rev-Exp Region 4'!$G$41/'LTC Rev-Exp Region 4'!$G$9, 0)","v":{"v":0,"d":"$0.00"}}]
["LTC",null,null,{"$f":"Jurat!I$1","v":0},{"$f":"Jurat!D$33","v":"00:00:00"},"Q1","2017-03-31","Region 4","Operating Expense","Medical Expense","Expanded Benefits","3.4","Expanded Benefits Settlements",{"$f":"IFERROR('LTC Rev-Exp Region 4'!$D$42/'LTC Rev-Exp Region 4'!$D$9, 0)","v":{"v":0,"d":"$0.00"}},{"$f":"IFERROR('LTC Rev-Exp Region 4'!$E$42/'LTC Rev-Exp Region 4'!$E$9, 0)","v":{"v":0,"d":"$0.00"}},{"$f":"IFERROR('LTC Rev-Exp Region 4'!$F$42/'LTC Rev-Exp Region 4'!$F$9, 0)","v":{"v":0,"d":"$0.00"}},{"$f":"IFERROR('LTC Rev-Exp Region 4'!$G$42/'LTC Rev-Exp Region 4'!$G$9, 0)","v":{"v":0,"d":"$0.00"}}]
["LTC",null,null,{"$f":"Jurat!I$1","v":0},{"$f":"Jurat!D$33","v":"00:00:00"},"Q1","2017-03-31","Region 4","Operating Expense","Medical Expense","Other Medical","4.5","TPL & Fraud/Abuse Recoveries",{"$f":"IFERROR('LTC Rev-Exp Region 4'!$D$48/'LTC Rev-Exp Region 4'!$D$9, 0)","v":{"v":0,"d":"$0.00"}},{"$f":"IFERROR('LTC Rev-Exp Region 4'!$E$48/'LTC Rev-Exp Region 4'!$E$9, 0)","v":{"v":0,"d":"$0.00"}},{"$f":"IFERROR('LTC Rev-Exp Region 4'!$F$48/'LTC Rev-Exp Region 4'!$F$9, 0)","v":{"v":0,"d":"$0.00"}},{"$f":"IFERROR('LTC Rev-Exp Region 4'!$G$48/'LTC Rev-Exp Region 4'!$G$9, 0)","v":{"v":0,"d":"$0.00"}}]
["LTC",null,null,{"$f":"Jurat!I$1","v":0},{"$f":"Jurat!D$33","v":"00:00:00"},"Q1","2017-03-31","Region 4","Operating Expense","Medical Expense","Other Medical","4.6.1","Premium Deficiency Reserve",{"$f":"IFERROR('LTC Rev-Exp Region 4'!$D$49/'LTC Rev-Exp Region 4'!$D$9, 0)","v":{"v":0,"d":"$0.00"}},{"$f":"IFERROR('LTC Rev-Exp Region 4'!$E$49/'LTC Rev-Exp Region 4'!$E$9, 0)","v":{"v":0,"d":"$0.00"}},{"$f":"IFERROR('LTC Rev-Exp Region 4'!$F$49/'LTC Rev-Exp Region 4'!$F$9, 0)","v":{"v":0,"d":"$0.00"}},{"$f":"IFERROR('LTC Rev-Exp Region 4'!$G$49/'LTC Rev-Exp Region 4'!$G$9, 0)","v":{"v":0,"d":"$0.00"}}]
["LTC",null,null,{"$f":"Jurat!I$1","v":0},{"$f":"Jurat!D$33","v":"00:00:00"},"Q1","2017-03-31","Region 4","Operating Expense","Medical Expense","Other Medical","4.8","Reinsurance Premiums",{"$f":"IFERROR('LTC Rev-Exp Region 4'!$D$51/'LTC Rev-Exp Region 4'!$D$9, 0)","v":{"v":0,"d":"$0.00"}},{"$f":"IFERROR('LTC Rev-Exp Region 4'!$E$51/'LTC Rev-Exp Region 4'!$E$9, 0)","v":{"v":0,"d":"$0.00"}},{"$f":"IFERROR('LTC Rev-Exp Region 4'!$F$51/'LTC Rev-Exp Region 4'!$F$9, 0)","v":{"v":0,"d":"$0.00"}},{"$f":"IFERROR('LTC Rev-Exp Region 4'!$G$51/'LTC Rev-Exp Region 4'!$G$9, 0)","v":{"v":0,"d":"$0.00"}}]
["LTC",null,null,{"$f":"Jurat!I$1","v":0},{"$f":"Jurat!D$33","v":"00:00:00"},"Q1","2017-03-31","Region 4","Operating Expense","Medical Expense","Other Medical","4.9","Reinsurance Recoveries",{"$f":"IFERROR('LTC Rev-Exp Region 4'!$D$52/'LTC Rev-Exp Region 4'!$D$9, 0)","v":{"v":0,"d":"$0.00"}},{"$f":"IFERROR('LTC Rev-Exp Region 4'!$E$52/'LTC Rev-Exp Region 4'!$E$9, 0)","v":{"v":0,"d":"$0.00"}},{"$f":"IFERROR('LTC Rev-Exp Region 4'!$F$52/'LTC Rev-Exp Region 4'!$F$9, 0)","v":{"v":0,"d":"$0.00"}},{"$f":"IFERROR('LTC Rev-Exp Region 4'!$G$52/'LTC Rev-Exp Region 4'!$G$9, 0)","v":{"v":0,"d":"$0.00"}}]
["LTC",null,null,{"$f":"Jurat!I$1","v":0},{"$f":"Jurat!D$33","v":"00:00:00"},"Q1","2017-03-31","Region 4","Operating Expense","Administrative Expense","Administrative","5.1","Salaries & Benefits",{"$f":"IFERROR('LTC Rev-Exp Region 4'!$D$57/'LTC Rev-Exp Region 4'!$D$9, 0)","v":{"v":0,"d":"$0.00"}},{"$f":"IFERROR('LTC Rev-Exp Region 4'!$E$57/'LTC Rev-Exp Region 4'!$D$9, 0)","v":{"v":0,"d":"$0.00"}},{"$f":"IFERROR('LTC Rev-Exp Region 4'!$F$57/'LTC Rev-Exp Region 4'!$D$9, 0)","v":{"v":0,"d":"$0.00"}},{"$f":"IFERROR('LTC Rev-Exp Region 4'!$G$57/'LTC Rev-Exp Region 4'!$D$9, 0)","v":{"v":0,"d":"$0.00"}}]
["LTC",null,null,{"$f":"Jurat!I$1","v":0},{"$f":"Jurat!D$33","v":"00:00:00"},"Q1","2017-03-31","Region 4","Operating Expense","Administrative Expense","Administrative","5.2","Administrative Services",{"$f":"IFERROR('LTC Rev-Exp Region 4'!$D$58/'LTC Rev-Exp Region 4'!$D$9, 0)","v":{"v":0,"d":"$0.00"}},{"$f":"IFERROR('LTC Rev-Exp Region 4'!$E$58/'LTC Rev-Exp Region 4'!$D$9, 0)","v":{"v":0,"d":"$0.00"}},{"$f":"IFERROR('LTC Rev-Exp Region 4'!$F$58/'LTC Rev-Exp Region 4'!$D$9, 0)","v":{"v":0,"d":"$0.00"}},{"$f":"IFERROR('LTC Rev-Exp Region 4'!$G$58/'LTC Rev-Exp Region 4'!$D$9, 0)","v":{"v":0,"d":"$0.00"}}]
["LTC",null,null,{"$f":"Jurat!I$1","v":0},{"$f":"Jurat!D$33","v":"00:00:00"},"Q1","2017-03-31","Region 4","Operating Expense","Administrative Expense","Administrative","5.3","Information Systems",{"$f":"IFERROR('LTC Rev-Exp Region 4'!$D$59/'LTC Rev-Exp Region 4'!$D$9, 0)","v":{"v":0,"d":"$0.00"}},{"$f":"IFERROR('LTC Rev-Exp Region 4'!$E$59/'LTC Rev-Exp Region 4'!$D$9, 0)","v":{"v":0,"d":"$0.00"}},{"$f":"IFERROR('LTC Rev-Exp Region 4'!$F$59/'LTC Rev-Exp Region 4'!$D$9, 0)","v":{"v":0,"d":"$0.00"}},{"$f":"IFERROR('LTC Rev-Exp Region 4'!$G$59/'LTC Rev-Exp Region 4'!$D$9, 0)","v":{"v":0,"d":"$0.00"}}]
["LTC",null,null,{"$f":"Jurat!I$1","v":0},{"$f":"Jurat!D$33","v":"00:00:00"},"Q1","2017-03-31","Region 4","Operating Expense","Administrative Expense","Administrative","5.4","Marketing Expenses",{"$f":"IFERROR('LTC Rev-Exp Region 4'!$D$60/'LTC Rev-Exp Region 4'!$D$9, 0)","v":{"v":0,"d":"$0.00"}},{"$f":"IFERROR('LTC Rev-Exp Region 4'!$E$60/'LTC Rev-Exp Region 4'!$D$9, 0)","v":{"v":0,"d":"$0.00"}},{"$f":"IFERROR('LTC Rev-Exp Region 4'!$F$60/'LTC Rev-Exp Region 4'!$D$9, 0)","v":{"v":0,"d":"$0.00"}},{"$f":"IFERROR('LTC Rev-Exp Region 4'!$G$60/'LTC Rev-Exp Region 4'!$D$9, 0)","v":{"v":0,"d":"$0.00"}}]
["LTC",null,null,{"$f":"Jurat!I$1","v":0},{"$f":"Jurat!D$33","v":"00:00:00"},"Q1","2017-03-31","Region 4","Operating Expense","Administrative Expense","Administrative","5.5","General  Administration",{"$f":"IFERROR('LTC Rev-Exp Region 4'!$D$61/'LTC Rev-Exp Region 4'!$D$9, 0)","v":{"v":0,"d":"$0.00"}},{"$f":"IFERROR('LTC Rev-Exp Region 4'!$E$61/'LTC Rev-Exp Region 4'!$D$9, 0)","v":{"v":0,"d":"$0.00"}},{"$f":"IFERROR('LTC Rev-Exp Region 4'!$F$61/'LTC Rev-Exp Region 4'!$D$9, 0)","v":{"v":0,"d":"$0.00"}},{"$f":"IFERROR('LTC Rev-Exp Region 4'!$G$61/'LTC Rev-Exp Region 4'!$D$9, 0)","v":{"v":0,"d":"$0.00"}}]
["LTC",null,null,{"$f":"Jurat!I$1","v":0},{"$f":"Jurat!D$33","v":"00:00:00"},"Q1","2017-03-31","Region 4","Operating Expense","Administrative Expense","Administrative","5.6","Compliance/Regulatory",{"$f":"IFERROR('LTC Rev-Exp Region 4'!$D$62/'LTC Rev-Exp Region 4'!$D$9, 0)","v":{"v":0,"d":"$0.00"}},{"$f":"IFERROR('LTC Rev-Exp Region 4'!$E$62/'LTC Rev-Exp Region 4'!$D$9, 0)","v":{"v":0,"d":"$0.00"}},{"$f":"IFERROR('LTC Rev-Exp Region 4'!$F$62/'LTC Rev-Exp Region 4'!$D$9, 0)","v":{"v":0,"d":"$0.00"}},{"$f":"IFERROR('LTC Rev-Exp Region 4'!$G$62/'LTC Rev-Exp Region 4'!$D$9, 0)","v":{"v":0,"d":"$0.00"}}]
["LTC",null,null,{"$f":"Jurat!I$1","v":0},{"$f":"Jurat!D$33","v":"00:00:00"},"Q1","2017-03-31","Region 4","Operating Expense","Taxes & Fees","Taxes & Fees","6.1","State Premium Tax",{"$f":"IFERROR('LTC Rev-Exp Region 4'!$D$64/'LTC Rev-Exp Region 4'!$D$9, 0)","v":{"v":0,"d":"$0.00"}},{"$f":"IFERROR('LTC Rev-Exp Region 4'!$E$64/'LTC Rev-Exp Region 4'!$E$9, 0)","v":{"v":0,"d":"$0.00"}},{"$f":"IFERROR('LTC Rev-Exp Region 4'!$F$64/'LTC Rev-Exp Region 4'!$F$9, 0)","v":{"v":0,"d":"$0.00"}},{"$f":"IFERROR('LTC Rev-Exp Region 4'!$G$64/'LTC Rev-Exp Region 4'!$G$9, 0)","v":{"v":0,"d":"$0.00"}}]
["LTC",null,null,{"$f":"Jurat!I$1","v":0},{"$f":"Jurat!D$33","v":"00:00:00"},"Q1","2017-03-31","Region 4","Operating Expense","Taxes & Fees","Taxes & Fees","6.2","Department of Insurance Assessments",{"$f":"IFERROR('LTC Rev-Exp Region 4'!$D$65/'LTC Rev-Exp Region 4'!$D$9, 0)","v":{"v":0,"d":"$0.00"}},{"$f":"IFERROR('LTC Rev-Exp Region 4'!$E$65/'LTC Rev-Exp Region 4'!$E$9, 0)","v":{"v":0,"d":"$0.00"}},{"$f":"IFERROR('LTC Rev-Exp Region 4'!$F$65/'LTC Rev-Exp Region 4'!$F$9, 0)","v":{"v":0,"d":"$0.00"}},{"$f":"IFERROR('LTC Rev-Exp Region 4'!$G$65/'LTC Rev-Exp Region 4'!$G$9, 0)","v":{"v":0,"d":"$0.00"}}]
["LTC",null,null,{"$f":"Jurat!I$1","v":0},{"$f":"Jurat!D$33","v":"00:00:00"},"Q1","2017-03-31","Region 4","Non-Operating Expense","Income Tax Expense","Income Tax Expense","9.0","Income Tax Expense",{"$f":"IFERROR('LTC Rev-Exp Region 4'!$D$72/'LTC Rev-Exp Region 4'!$D$9, 0)","v":{"v":0,"d":"$0.00"}},{"$f":"IFERROR('LTC Rev-Exp Region 4'!$E$72/'LTC Rev-Exp Region 4'!$E$9, 0)","v":{"v":0,"d":"$0.00"}},{"$f":"IFERROR('LTC Rev-Exp Region 4'!$F$72/'LTC Rev-Exp Region 4'!$F$9, 0)","v":{"v":0,"d":"$0.00"}},{"$f":"IFERROR('LTC Rev-Exp Region 4'!$G$72/'LTC Rev-Exp Region 4'!$G$9, 0)","v":{"v":0,"d":"$0.00"}}]
["LTC",null,null,{"$f":"Jurat!I$1","v":0},{"$f":"Jurat!D$33","v":"00:00:00"},"Q2","2017-06-30","Region 4","Operating Revenue","Capitation","Capitation",1.1,"Capitation",{"$f":"IFERROR('LTC Rev-Exp Region 4'!$H$11/'LTC Rev-Exp Region 4'!$H$9, 0)","v":{"v":0,"d":"$0.00"}},{"$f":"IFERROR('LTC Rev-Exp Region 4'!$I$11/'LTC Rev-Exp Region 4'!$I$9, 0)","v":{"v":0,"d":"$0.00"}},{"$f":"IFERROR('LTC Rev-Exp Region 4'!$J$11/'LTC Rev-Exp Region 4'!$J$9, 0)","v":{"v":0,"d":"$0.00"}},{"$f":"IFERROR('LTC Rev-Exp Region 4'!$K$11/'LTC Rev-Exp Region 4'!$K$9, 0)","v":{"v":0,"d":"$0.00"}}]
["LTC",null,null,{"$f":"Jurat!I$1","v":0},{"$f":"Jurat!D$33","v":"00:00:00"},"Q2","2017-06-30","Region 4","Operating Revenue","Capitation","NH Rate Reconciliation",1.2,"NH Rate Reconciliation",{"$f":"IFERROR('LTC Rev-Exp Region 4'!$H$12/'LTC Rev-Exp Region 4'!$H$9, 0)","v":{"v":0,"d":"$0.00"}},{"$f":"IFERROR('LTC Rev-Exp Region 4'!$I$12/'LTC Rev-Exp Region 4'!$I$9, 0)","v":{"v":0,"d":"$0.00"}},{"$f":"IFERROR('LTC Rev-Exp Region 4'!$J$12/'LTC Rev-Exp Region 4'!$J$9, 0)","v":{"v":0,"d":"$0.00"}},{"$f":"IFERROR('LTC Rev-Exp Region 4'!$K$12/'LTC Rev-Exp Region 4'!$K$9, 0)","v":{"v":0,"d":"$0.00"}}]
["LTC",null,null,{"$f":"Jurat!I$1","v":0},{"$f":"Jurat!D$33","v":"00:00:00"},"Q2","2017-06-30","Region 4","Operating Revenue","Other Revenue","Other Revenue",1.3,"Other Revenue",{"$f":"IFERROR('LTC Rev-Exp Region 4'!$H$13/'LTC Rev-Exp Region 4'!$H$9, 0)","v":{"v":0,"d":"$0.00"}},{"$f":"IFERROR('LTC Rev-Exp Region 4'!$I$13/'LTC Rev-Exp Region 4'!$I$9, 0)","v":{"v":0,"d":"$0.00"}},{"$f":"IFERROR('LTC Rev-Exp Region 4'!$J$13/'LTC Rev-Exp Region 4'!$J$9, 0)","v":{"v":0,"d":"$0.00"}},{"$f":"IFERROR('LTC Rev-Exp Region 4'!$K$13/'LTC Rev-Exp Region 4'!$K$9, 0)","v":{"v":0,"d":"$0.00"}}]
["LTC",null,null,{"$f":"Jurat!I$1","v":0},{"$f":"Jurat!D$33","v":"00:00:00"},"Q2","2017-06-30","Region 4","Operating Expense","Medical Expense","NF & Hospice","2.3","Nursing Facility FFS (Medicaid)",{"$f":"IFERROR('LTC Rev-Exp Region 4'!$H$19/'LTC Rev-Exp Region 4'!$H$9, 0)","v":{"v":0,"d":"$0.00"}},{"$f":"IFERROR('LTC Rev-Exp Region 4'!$I$19/'LTC Rev-Exp Region 4'!$I$9, 0)","v":{"v":0,"d":"$0.00"}},{"$f":"IFERROR('LTC Rev-Exp Region 4'!$J$19/'LTC Rev-Exp Region 4'!$J$9, 0)","v":{"v":0,"d":"$0.00"}},{"$f":"IFERROR('LTC Rev-Exp Region 4'!$K$19/'LTC Rev-Exp Region 4'!$K$9, 0)","v":{"v":0,"d":"$0.00"}}]
["LTC",null,null,{"$f":"Jurat!I$1","v":0},{"$f":"Jurat!D$33","v":"00:00:00"},"Q2","2017-06-30","Region 4","Operating Expense","Medical Expense","NF & Hospice","2.4","Nursing Facility FFS (Crossover)",{"$f":"IFERROR('LTC Rev-Exp Region 4'!$H$20/'LTC Rev-Exp Region 4'!$H$9, 0)","v":{"v":0,"d":"$0.00"}},{"$f":"IFERROR('LTC Rev-Exp Region 4'!$I$20/'LTC Rev-Exp Region 4'!$I$9, 0)","v":{"v":0,"d":"$0.00"}},{"$f":"IFERROR('LTC Rev-Exp Region 4'!$J$20/'LTC Rev-Exp Region 4'!$J$9, 0)","v":{"v":0,"d":"$0.00"}},{"$f":"IFERROR('LTC Rev-Exp Region 4'!$K$20/'LTC Rev-Exp Region 4'!$K$9, 0)","v":{"v":0,"d":"$0.00"}}]
["LTC",null,null,{"$f":"Jurat!I$1","v":0},{"$f":"Jurat!D$33","v":"00:00:00"},"Q2","2017-06-30","Region 4","Operating Expense","Medical Expense","NF & Hospice","2.6","Hospice FFS",{"$f":"IFERROR('LTC Rev-Exp Region 4'!$H$22/'LTC Rev-Exp Region 4'!$H$9, 0)","v":{"v":0,"d":"$0.00"}},{"$f":"IFERROR('LTC Rev-Exp Region 4'!$I$22/'LTC Rev-Exp Region 4'!$I$9, 0)","v":{"v":0,"d":"$0.00"}},{"$f":"IFERROR('LTC Rev-Exp Region 4'!$J$22/'LTC Rev-Exp Region 4'!$J$9, 0)","v":{"v":0,"d":"$0.00"}},{"$f":"IFERROR('LTC Rev-Exp Region 4'!$K$22/'LTC Rev-Exp Region 4'!$K$9, 0)","v":{"v":0,"d":"$0.00"}}]
["LTC",null,null,{"$f":"Jurat!I$1","v":0},{"$f":"Jurat!D$33","v":"00:00:00"},"Q2","2017-06-30","Region 4","Operating Expense","Medical Expense","NF & Hospice","2.7","Ending IBNP for NF & Hospice",{"$f":"IFERROR('LTC Rev-Exp Region 4'!$H$23/'LTC Rev-Exp Region 4'!$H$9, 0)","v":{"v":0,"d":"$0.00"}},{"$f":"IFERROR('LTC Rev-Exp Region 4'!$I$23/'LTC Rev-Exp Region 4'!$I$9, 0)","v":{"v":0,"d":"$0.00"}},{"$f":"IFERROR('LTC Rev-Exp Region 4'!$J$23/'LTC Rev-Exp Region 4'!$J$9, 0)","v":{"v":0,"d":"$0.00"}},{"$f":"IFERROR('LTC Rev-Exp Region 4'!$K$23/'LTC Rev-Exp Region 4'!$K$9, 0)","v":{"v":0,"d":"$0.00"}}]
["LTC",null,null,{"$f":"Jurat!I$1","v":0},{"$f":"Jurat!D$33","v":"00:00:00"},"Q2","2017-06-30","Region 4","Operating Expense","Medical Expense","NF & Hospice","2.8","NF & Hospice Subcapitated",{"$f":"IFERROR('LTC Rev-Exp Region 4'!$H$24/'LTC Rev-Exp Region 4'!$H$9, 0)","v":{"v":0,"d":"$0.00"}},{"$f":"IFERROR('LTC Rev-Exp Region 4'!$I$24/'LTC Rev-Exp Region 4'!$I$9, 0)","v":{"v":0,"d":"$0.00"}},{"$f":"IFERROR('LTC Rev-Exp Region 4'!$J$24/'LTC Rev-Exp Region 4'!$J$9, 0)","v":{"v":0,"d":"$0.00"}},{"$f":"IFERROR('LTC Rev-Exp Region 4'!$K$24/'LTC Rev-Exp Region 4'!$K$9, 0)","v":{"v":0,"d":"$0.00"}}]
["LTC",null,null,{"$f":"Jurat!I$1","v":0},{"$f":"Jurat!D$33","v":"00:00:00"},"Q2","2017-06-30","Region 4","Operating Expense","Medical Expense","NF & Hospice","2.9","NF & Hospice Settlements",{"$f":"IFERROR('LTC Rev-Exp Region 4'!$H$25/'LTC Rev-Exp Region 4'!$H$9, 0)","v":{"v":0,"d":"$0.00"}},{"$f":"IFERROR('LTC Rev-Exp Region 4'!$I$25/'LTC Rev-Exp Region 4'!$I$9, 0)","v":{"v":0,"d":"$0.00"}},{"$f":"IFERROR('LTC Rev-Exp Region 4'!$J$25/'LTC Rev-Exp Region 4'!$J$9, 0)","v":{"v":0,"d":"$0.00"}},{"$f":"IFERROR('LTC Rev-Exp Region 4'!$K$25/'LTC Rev-Exp Region 4'!$K$9, 0)","v":{"v":0,"d":"$0.00"}}]
["LTC",null,null,{"$f":"Jurat!I$1","v":0},{"$f":"Jurat!D$33","v":"00:00:00"},"Q2","2017-06-30","Region 4","Operating Expense","Medical Expense","LTC Services","2.11","Assisted Living FFS",{"$f":"IFERROR('LTC Rev-Exp Region 4'!$H$27/'LTC Rev-Exp Region 4'!$H$9, 0)","v":{"v":0,"d":"$0.00"}},{"$f":"IFERROR('LTC Rev-Exp Region 4'!$I$27/'LTC Rev-Exp Region 4'!$I$9, 0)","v":{"v":0,"d":"$0.00"}},{"$f":"IFERROR('LTC Rev-Exp Region 4'!$J$27/'LTC Rev-Exp Region 4'!$J$9, 0)","v":{"v":0,"d":"$0.00"}},{"$f":"IFERROR('LTC Rev-Exp Region 4'!$K$27/'LTC Rev-Exp Region 4'!$K$9, 0)","v":{"v":0,"d":"$0.00"}}]
["LTC",null,null,{"$f":"Jurat!I$1","v":0},{"$f":"Jurat!D$33","v":"00:00:00"},"Q2","2017-06-30","Region 4","Operating Expense","Medical Expense","LTC Services","2.12","Home Health FFS",{"$f":"IFERROR('LTC Rev-Exp Region 4'!$H$28/'LTC Rev-Exp Region 4'!$H$9, 0)","v":{"v":0,"d":"$0.00"}},{"$f":"IFERROR('LTC Rev-Exp Region 4'!$I$28/'LTC Rev-Exp Region 4'!$I$9, 0)","v":{"v":0,"d":"$0.00"}},{"$f":"IFERROR('LTC Rev-Exp Region 4'!$J$28/'LTC Rev-Exp Region 4'!$J$9, 0)","v":{"v":0,"d":"$0.00"}},{"$f":"IFERROR('LTC Rev-Exp Region 4'!$K$28/'LTC Rev-Exp Region 4'!$K$9, 0)","v":{"v":0,"d":"$0.00"}}]
["LTC",null,null,{"$f":"Jurat!I$1","v":0},{"$f":"Jurat!D$33","v":"00:00:00"},"Q2","2017-06-30","Region 4","Operating Expense","Medical Expense","LTC Services","2.13","Medical Equipment/Supplies FFS",{"$f":"IFERROR('LTC Rev-Exp Region 4'!$H$29/'LTC Rev-Exp Region 4'!$H$9, 0)","v":{"v":0,"d":"$0.00"}},{"$f":"IFERROR('LTC Rev-Exp Region 4'!$I$29/'LTC Rev-Exp Region 4'!$I$9, 0)","v":{"v":0,"d":"$0.00"}},{"$f":"IFERROR('LTC Rev-Exp Region 4'!$J$29/'LTC Rev-Exp Region 4'!$J$9, 0)","v":{"v":0,"d":"$0.00"}},{"$f":"IFERROR('LTC Rev-Exp Region 4'!$K$29/'LTC Rev-Exp Region 4'!$K$9, 0)","v":{"v":0,"d":"$0.00"}}]
["LTC",null,null,{"$f":"Jurat!I$1","v":0},{"$f":"Jurat!D$33","v":"00:00:00"},"Q2","2017-06-30","Region 4","Operating Expense","Medical Expense","LTC Services","2.14","Therapy FFS",{"$f":"IFERROR('LTC Rev-Exp Region 4'!$H$30/'LTC Rev-Exp Region 4'!$H$9, 0)","v":{"v":0,"d":"$0.00"}},{"$f":"IFERROR('LTC Rev-Exp Region 4'!$I$30/'LTC Rev-Exp Region 4'!$I$9, 0)","v":{"v":0,"d":"$0.00"}},{"$f":"IFERROR('LTC Rev-Exp Region 4'!$J$30/'LTC Rev-Exp Region 4'!$J$9, 0)","v":{"v":0,"d":"$0.00"}},{"$f":"IFERROR('LTC Rev-Exp Region 4'!$K$30/'LTC Rev-Exp Region 4'!$K$9, 0)","v":{"v":0,"d":"$0.00"}}]
["LTC",null,null,{"$f":"Jurat!I$1","v":0},{"$f":"Jurat!D$33","v":"00:00:00"},"Q2","2017-06-30","Region 4","Operating Expense","Medical Expense","LTC Services","2.15","Transportation FFS",{"$f":"IFERROR('LTC Rev-Exp Region 4'!$H$31/'LTC Rev-Exp Region 4'!$H$9, 0)","v":{"v":0,"d":"$0.00"}},{"$f":"IFERROR('LTC Rev-Exp Region 4'!$I$31/'LTC Rev-Exp Region 4'!$I$9, 0)","v":{"v":0,"d":"$0.00"}},{"$f":"IFERROR('LTC Rev-Exp Region 4'!$J$31/'LTC Rev-Exp Region 4'!$J$9, 0)","v":{"v":0,"d":"$0.00"}},{"$f":"IFERROR('LTC Rev-Exp Region 4'!$K$31/'LTC Rev-Exp Region 4'!$K$9, 0)","v":{"v":0,"d":"$0.00"}}]
["LTC",null,null,{"$f":"Jurat!I$1","v":0},{"$f":"Jurat!D$33","v":"00:00:00"},"Q2","2017-06-30","Region 4","Operating Expense","Medical Expense","LTC Services","2.16","Case Management FFS (Plan Provided)",{"$f":"IFERROR('LTC Rev-Exp Region 4'!$H$32/'LTC Rev-Exp Region 4'!$H$9, 0)","v":{"v":0,"d":"$0.00"}},{"$f":"IFERROR('LTC Rev-Exp Region 4'!$I$32/'LTC Rev-Exp Region 4'!$I$9, 0)","v":{"v":0,"d":"$0.00"}},{"$f":"IFERROR('LTC Rev-Exp Region 4'!$J$32/'LTC Rev-Exp Region 4'!$J$9, 0)","v":{"v":0,"d":"$0.00"}},{"$f":"IFERROR('LTC Rev-Exp Region 4'!$K$32/'LTC Rev-Exp Region 4'!$K$9, 0)","v":{"v":0,"d":"$0.00"}}]
["LTC",null,null,{"$f":"Jurat!I$1","v":0},{"$f":"Jurat!D$33","v":"00:00:00"},"Q2","2017-06-30","Region 4","Operating Expense","Medical Expense","LTC Services","2.17","Case Management FF (Non-Plan Provided)",{"$f":"IFERROR('LTC Rev-Exp Region 4'!$H$33/'LTC Rev-Exp Region 4'!$H$9, 0)","v":{"v":0,"d":"$0.00"}},{"$f":"IFERROR('LTC Rev-Exp Region 4'!$I$33/'LTC Rev-Exp Region 4'!$I$9, 0)","v":{"v":0,"d":"$0.00"}},{"$f":"IFERROR('LTC Rev-Exp Region 4'!$J$33/'LTC Rev-Exp Region 4'!$J$9, 0)","v":{"v":0,"d":"$0.00"}},{"$f":"IFERROR('LTC Rev-Exp Region 4'!$K$33/'LTC Rev-Exp Region 4'!$K$9, 0)","v":{"v":0,"d":"$0.00"}}]
["LTC",null,null,{"$f":"Jurat!I$1","v":0},{"$f":"Jurat!D$33","v":"00:00:00"},"Q2","2017-06-30","Region 4","Operating Expense","Medical Expense","LTC Services","2.18","HCBS FFS",{"$f":"IFERROR('LTC Rev-Exp Region 4'!$H$34/'LTC Rev-Exp Region 4'!$H$9, 0)","v":{"v":0,"d":"$0.00"}},{"$f":"IFERROR('LTC Rev-Exp Region 4'!$I$34/'LTC Rev-Exp Region 4'!$I$9, 0)","v":{"v":0,"d":"$0.00"}},{"$f":"IFERROR('LTC Rev-Exp Region 4'!$J$34/'LTC Rev-Exp Region 4'!$J$9, 0)","v":{"v":0,"d":"$0.00"}},{"$f":"IFERROR('LTC Rev-Exp Region 4'!$K$34/'LTC Rev-Exp Region 4'!$K$9, 0)","v":{"v":0,"d":"$0.00"}}]
["LTC",null,null,{"$f":"Jurat!I$1","v":0},{"$f":"Jurat!D$33","v":"00:00:00"},"Q2","2017-06-30","Region 4","Operating Expense","Medical Expense","LTC Services","2.19","Subcapitated LTC Services",{"$f":"IFERROR('LTC Rev-Exp Region 4'!$H$35/'LTC Rev-Exp Region 4'!$H$9, 0)","v":{"v":0,"d":"$0.00"}},{"$f":"IFERROR('LTC Rev-Exp Region 4'!$I$35/'LTC Rev-Exp Region 4'!$I$9, 0)","v":{"v":0,"d":"$0.00"}},{"$f":"IFERROR('LTC Rev-Exp Region 4'!$J$35/'LTC Rev-Exp Region 4'!$J$9, 0)","v":{"v":0,"d":"$0.00"}},{"$f":"IFERROR('LTC Rev-Exp Region 4'!$K$35/'LTC Rev-Exp Region 4'!$K$9, 0)","v":{"v":0,"d":"$0.00"}}]
["LTC",null,null,{"$f":"Jurat!I$1","v":0},{"$f":"Jurat!D$33","v":"00:00:00"},"Q2","2017-06-30","Region 4","Operating Expense","Medical Expense","LTC Services","2.20","Ending IBNP for Long Term Care Services",{"$f":"IFERROR('LTC Rev-Exp Region 4'!$H$36/'LTC Rev-Exp Region 4'!$H$9, 0)","v":{"v":0,"d":"$0.00"}},{"$f":"IFERROR('LTC Rev-Exp Region 4'!$I$36/'LTC Rev-Exp Region 4'!$I$9, 0)","v":{"v":0,"d":"$0.00"}},{"$f":"IFERROR('LTC Rev-Exp Region 4'!$J$36/'LTC Rev-Exp Region 4'!$J$9, 0)","v":{"v":0,"d":"$0.00"}},{"$f":"IFERROR('LTC Rev-Exp Region 4'!$K$36/'LTC Rev-Exp Region 4'!$K$9, 0)","v":{"v":0,"d":"$0.00"}}]
["LTC",null,null,{"$f":"Jurat!I$1","v":0},{"$f":"Jurat!D$33","v":"00:00:00"},"Q2","2017-06-30","Region 4","Operating Expense","Medical Expense","LTC Services","2.21","LTC Services Settlements",{"$f":"IFERROR('LTC Rev-Exp Region 4'!$H$37/'LTC Rev-Exp Region 4'!$H$9, 0)","v":{"v":0,"d":"$0.00"}},{"$f":"IFERROR('LTC Rev-Exp Region 4'!$I$37/'LTC Rev-Exp Region 4'!$I$9, 0)","v":{"v":0,"d":"$0.00"}},{"$f":"IFERROR('LTC Rev-Exp Region 4'!$J$37/'LTC Rev-Exp Region 4'!$J$9, 0)","v":{"v":0,"d":"$0.00"}},{"$f":"IFERROR('LTC Rev-Exp Region 4'!$K$37/'LTC Rev-Exp Region 4'!$K$9, 0)","v":{"v":0,"d":"$0.00"}}]
["LTC",null,null,{"$f":"Jurat!I$1","v":0},{"$f":"Jurat!D$33","v":"00:00:00"},"Q2","2017-06-30","Region 4","Operating Expense","Medical Expense","Expanded Benefits","3.1","Expanded Benefits FFS",{"$f":"IFERROR('LTC Rev-Exp Region 4'!$H$39/'LTC Rev-Exp Region 4'!$H$9, 0)","v":{"v":0,"d":"$0.00"}},{"$f":"IFERROR('LTC Rev-Exp Region 4'!$I$39/'LTC Rev-Exp Region 4'!$I$9, 0)","v":{"v":0,"d":"$0.00"}},{"$f":"IFERROR('LTC Rev-Exp Region 4'!$J$39/'LTC Rev-Exp Region 4'!$J$9, 0)","v":{"v":0,"d":"$0.00"}},{"$f":"IFERROR('LTC Rev-Exp Region 4'!$K$39/'LTC Rev-Exp Region 4'!$K$9, 0)","v":{"v":0,"d":"$0.00"}}]
["LTC",null,null,{"$f":"Jurat!I$1","v":0},{"$f":"Jurat!D$33","v":"00:00:00"},"Q2","2017-06-30","Region 4","Operating Expense","Medical Expense","Expanded Benefits","3.2","Expanded Benefits Subcapitation",{"$f":"IFERROR('LTC Rev-Exp Region 4'!$H$40/'LTC Rev-Exp Region 4'!$H$9, 0)","v":{"v":0,"d":"$0.00"}},{"$f":"IFERROR('LTC Rev-Exp Region 4'!$I$40/'LTC Rev-Exp Region 4'!$I$9, 0)","v":{"v":0,"d":"$0.00"}},{"$f":"IFERROR('LTC Rev-Exp Region 4'!$J$40/'LTC Rev-Exp Region 4'!$J$9, 0)","v":{"v":0,"d":"$0.00"}},{"$f":"IFERROR('LTC Rev-Exp Region 4'!$K$40/'LTC Rev-Exp Region 4'!$K$9, 0)","v":{"v":0,"d":"$0.00"}}]
["LTC",null,null,{"$f":"Jurat!I$1","v":0},{"$f":"Jurat!D$33","v":"00:00:00"},"Q2","2017-06-30","Region 4","Operating Expense","Medical Expense","Expanded Benefits","3.3","Ending IBNP for Expanded Benefits",{"$f":"IFERROR('LTC Rev-Exp Region 4'!$H$41/'LTC Rev-Exp Region 4'!$H$9, 0)","v":{"v":0,"d":"$0.00"}},{"$f":"IFERROR('LTC Rev-Exp Region 4'!$I$41/'LTC Rev-Exp Region 4'!$I$9, 0)","v":{"v":0,"d":"$0.00"}},{"$f":"IFERROR('LTC Rev-Exp Region 4'!$J$41/'LTC Rev-Exp Region 4'!$J$9, 0)","v":{"v":0,"d":"$0.00"}},{"$f":"IFERROR('LTC Rev-Exp Region 4'!$K$41/'LTC Rev-Exp Region 4'!$K$9, 0)","v":{"v":0,"d":"$0.00"}}]
["LTC",null,null,{"$f":"Jurat!I$1","v":0},{"$f":"Jurat!D$33","v":"00:00:00"},"Q2","2017-06-30","Region 4","Operating Expense","Medical Expense","Expanded Benefits","3.4","Expanded Benefits Settlements",{"$f":"IFERROR('LTC Rev-Exp Region 4'!$H$42/'LTC Rev-Exp Region 4'!$H$9, 0)","v":{"v":0,"d":"$0.00"}},{"$f":"IFERROR('LTC Rev-Exp Region 4'!$I$42/'LTC Rev-Exp Region 4'!$I$9, 0)","v":{"v":0,"d":"$0.00"}},{"$f":"IFERROR('LTC Rev-Exp Region 4'!$J$42/'LTC Rev-Exp Region 4'!$J$9, 0)","v":{"v":0,"d":"$0.00"}},{"$f":"IFERROR('LTC Rev-Exp Region 4'!$K$42/'LTC Rev-Exp Region 4'!$K$9, 0)","v":{"v":0,"d":"$0.00"}}]
["LTC",null,null,{"$f":"Jurat!I$1","v":0},{"$f":"Jurat!D$33","v":"00:00:00"},"Q2","2017-06-30","Region 4","Operating Expense","Medical Expense","Other Medical","4.5","TPL & Fraud/Abuse Recoveries",{"$f":"IFERROR('LTC Rev-Exp Region 4'!$H$48/'LTC Rev-Exp Region 4'!$H$9, 0)","v":{"v":0,"d":"$0.00"}},{"$f":"IFERROR('LTC Rev-Exp Region 4'!$I$48/'LTC Rev-Exp Region 4'!$I$9, 0)","v":{"v":0,"d":"$0.00"}},{"$f":"IFERROR('LTC Rev-Exp Region 4'!$J$48/'LTC Rev-Exp Region 4'!$J$9, 0)","v":{"v":0,"d":"$0.00"}},{"$f":"IFERROR('LTC Rev-Exp Region 4'!$K$48/'LTC Rev-Exp Region 4'!$K$9, 0)","v":{"v":0,"d":"$0.00"}}]
["LTC",null,null,{"$f":"Jurat!I$1","v":0},{"$f":"Jurat!D$33","v":"00:00:00"},"Q2","2017-06-30","Region 4","Operating Expense","Medical Expense","Other Medical","4.6.1","Premium Deficiency Reserve",{"$f":"IFERROR('LTC Rev-Exp Region 4'!$H$49/'LTC Rev-Exp Region 4'!$H$9, 0)","v":{"v":0,"d":"$0.00"}},{"$f":"IFERROR('LTC Rev-Exp Region 4'!$I$49/'LTC Rev-Exp Region 4'!$I$9, 0)","v":{"v":0,"d":"$0.00"}},{"$f":"IFERROR('LTC Rev-Exp Region 4'!$J$49/'LTC Rev-Exp Region 4'!$J$9, 0)","v":{"v":0,"d":"$0.00"}},{"$f":"IFERROR('LTC Rev-Exp Region 4'!$K$49/'LTC Rev-Exp Region 4'!$K$9, 0)","v":{"v":0,"d":"$0.00"}}]
["LTC",null,null,{"$f":"Jurat!I$1","v":0},{"$f":"Jurat!D$33","v":"00:00:00"},"Q2","2017-06-30","Region 4","Operating Expense","Medical Expense","Other Medical","4.8","Reinsurance Premiums",{"$f":"IFERROR('LTC Rev-Exp Region 4'!$H$51/'LTC Rev-Exp Region 4'!$H$9, 0)","v":{"v":0,"d":"$0.00"}},{"$f":"IFERROR('LTC Rev-Exp Region 4'!$I$51/'LTC Rev-Exp Region 4'!$I$9, 0)","v":{"v":0,"d":"$0.00"}},{"$f":"IFERROR('LTC Rev-Exp Region 4'!$J$51/'LTC Rev-Exp Region 4'!$J$9, 0)","v":{"v":0,"d":"$0.00"}},{"$f":"IFERROR('LTC Rev-Exp Region 4'!$K$51/'LTC Rev-Exp Region 4'!$K$9, 0)","v":{"v":0,"d":"$0.00"}}]
["LTC",null,null,{"$f":"Jurat!I$1","v":0},{"$f":"Jurat!D$33","v":"00:00:00"},"Q2","2017-06-30","Region 4","Operating Expense","Medical Expense","Other Medical","4.9","Reinsurance Recoveries",{"$f":"IFERROR('LTC Rev-Exp Region 4'!$H$52/'LTC Rev-Exp Region 4'!$H$9, 0)","v":{"v":0,"d":"$0.00"}},{"$f":"IFERROR('LTC Rev-Exp Region 4'!$I$52/'LTC Rev-Exp Region 4'!$I$9, 0)","v":{"v":0,"d":"$0.00"}},{"$f":"IFERROR('LTC Rev-Exp Region 4'!$J$52/'LTC Rev-Exp Region 4'!$J$9, 0)","v":{"v":0,"d":"$0.00"}},{"$f":"IFERROR('LTC Rev-Exp Region 4'!$K$52/'LTC Rev-Exp Region 4'!$K$9, 0)","v":{"v":0,"d":"$0.00"}}]
["LTC",null,null,{"$f":"Jurat!I$1","v":0},{"$f":"Jurat!D$33","v":"00:00:00"},"Q2","2017-06-30","Region 4","Operating Expense","Administrative Expense","Administrative","5.1","Salaries & Benefits",{"$f":"IFERROR('LTC Rev-Exp Region 4'!$H$57/'LTC Rev-Exp Region 4'!$H$9, 0)","v":{"v":0,"d":"$0.00"}},{"$f":"IFERROR('LTC Rev-Exp Region 4'!$I$57/'LTC Rev-Exp Region 4'!$I$9, 0)","v":{"v":0,"d":"$0.00"}},{"$f":"IFERROR('LTC Rev-Exp Region 4'!$J$57/'LTC Rev-Exp Region 4'!$J$9, 0)","v":{"v":0,"d":"$0.00"}},{"$f":"IFERROR('LTC Rev-Exp Region 4'!$K$57/'LTC Rev-Exp Region 4'!$K$9, 0)","v":{"v":0,"d":"$0.00"}}]
["LTC",null,null,{"$f":"Jurat!I$1","v":0},{"$f":"Jurat!D$33","v":"00:00:00"},"Q2","2017-06-30","Region 4","Operating Expense","Administrative Expense","Administrative","5.2","Administrative Services",{"$f":"IFERROR('LTC Rev-Exp Region 4'!$H$58/'LTC Rev-Exp Region 4'!$H$9, 0)","v":{"v":0,"d":"$0.00"}},{"$f":"IFERROR('LTC Rev-Exp Region 4'!$I$58/'LTC Rev-Exp Region 4'!$I$9, 0)","v":{"v":0,"d":"$0.00"}},{"$f":"IFERROR('LTC Rev-Exp Region 4'!$J$58/'LTC Rev-Exp Region 4'!$J$9, 0)","v":{"v":0,"d":"$0.00"}},{"$f":"IFERROR('LTC Rev-Exp Region 4'!$K$58/'LTC Rev-Exp Region 4'!$K$9, 0)","v":{"v":0,"d":"$0.00"}}]
["LTC",null,null,{"$f":"Jurat!I$1","v":0},{"$f":"Jurat!D$33","v":"00:00:00"},"Q2","2017-06-30","Region 4","Operating Expense","Administrative Expense","Administrative","5.3","Information Systems",{"$f":"IFERROR('LTC Rev-Exp Region 4'!$H$59/'LTC Rev-Exp Region 4'!$H$9, 0)","v":{"v":0,"d":"$0.00"}},{"$f":"IFERROR('LTC Rev-Exp Region 4'!$I$59/'LTC Rev-Exp Region 4'!$I$9, 0)","v":{"v":0,"d":"$0.00"}},{"$f":"IFERROR('LTC Rev-Exp Region 4'!$J$59/'LTC Rev-Exp Region 4'!$J$9, 0)","v":{"v":0,"d":"$0.00"}},{"$f":"IFERROR('LTC Rev-Exp Region 4'!$K$59/'LTC Rev-Exp Region 4'!$K$9, 0)","v":{"v":0,"d":"$0.00"}}]
["LTC",null,null,{"$f":"Jurat!I$1","v":0},{"$f":"Jurat!D$33","v":"00:00:00"},"Q2","2017-06-30","Region 4","Operating Expense","Administrative Expense","Administrative","5.4","Marketing Expenses",{"$f":"IFERROR('LTC Rev-Exp Region 4'!$H$60/'LTC Rev-Exp Region 4'!$H$9, 0)","v":{"v":0,"d":"$0.00"}},{"$f":"IFERROR('LTC Rev-Exp Region 4'!$I$60/'LTC Rev-Exp Region 4'!$I$9, 0)","v":{"v":0,"d":"$0.00"}},{"$f":"IFERROR('LTC Rev-Exp Region 4'!$J$60/'LTC Rev-Exp Region 4'!$J$9, 0)","v":{"v":0,"d":"$0.00"}},{"$f":"IFERROR('LTC Rev-Exp Region 4'!$K$60/'LTC Rev-Exp Region 4'!$K$9, 0)","v":{"v":0,"d":"$0.00"}}]
["LTC",null,null,{"$f":"Jurat!I$1","v":0},{"$f":"Jurat!D$33","v":"00:00:00"},"Q2","2017-06-30","Region 4","Operating Expense","Administrative Expense","Administrative","5.5","General  Administration",{"$f":"IFERROR('LTC Rev-Exp Region 4'!$H$61/'LTC Rev-Exp Region 4'!$H$9, 0)","v":{"v":0,"d":"$0.00"}},{"$f":"IFERROR('LTC Rev-Exp Region 4'!$I$61/'LTC Rev-Exp Region 4'!$I$9, 0)","v":{"v":0,"d":"$0.00"}},{"$f":"IFERROR('LTC Rev-Exp Region 4'!$J$61/'LTC Rev-Exp Region 4'!$J$9, 0)","v":{"v":0,"d":"$0.00"}},{"$f":"IFERROR('LTC Rev-Exp Region 4'!$K$61/'LTC Rev-Exp Region 4'!$K$9, 0)","v":{"v":0,"d":"$0.00"}}]
["LTC",null,null,{"$f":"Jurat!I$1","v":0},{"$f":"Jurat!D$33","v":"00:00:00"},"Q2","2017-06-30","Region 4","Operating Expense","Administrative Expense","Administrative","5.6","Compliance/Regulatory",{"$f":"IFERROR('LTC Rev-Exp Region 4'!$H$62/'LTC Rev-Exp Region 4'!$H$9, 0)","v":{"v":0,"d":"$0.00"}},{"$f":"IFERROR('LTC Rev-Exp Region 4'!$I$62/'LTC Rev-Exp Region 4'!$I$9, 0)","v":{"v":0,"d":"$0.00"}},{"$f":"IFERROR('LTC Rev-Exp Region 4'!$J$62/'LTC Rev-Exp Region 4'!$J$9, 0)","v":{"v":0,"d":"$0.00"}},{"$f":"IFERROR('LTC Rev-Exp Region 4'!$K$62/'LTC Rev-Exp Region 4'!$K$9, 0)","v":{"v":0,"d":"$0.00"}}]
["LTC",null,null,{"$f":"Jurat!I$1","v":0},{"$f":"Jurat!D$33","v":"00:00:00"},"Q2","2017-06-30","Region 4","Operating Expense","Taxes & Fees","Taxes & Fees","6.1","State Premium Tax",{"$f":"IFERROR('LTC Rev-Exp Region 4'!$H$64/'LTC Rev-Exp Region 4'!$H$9, 0)","v":{"v":0,"d":"$0.00"}},{"$f":"IFERROR('LTC Rev-Exp Region 4'!$I$64/'LTC Rev-Exp Region 4'!$I$9, 0)","v":{"v":0,"d":"$0.00"}},{"$f":"IFERROR('LTC Rev-Exp Region 4'!$J$64/'LTC Rev-Exp Region 4'!$J$9, 0)","v":{"v":0,"d":"$0.00"}},{"$f":"IFERROR('LTC Rev-Exp Region 4'!$K$64/'LTC Rev-Exp Region 4'!$K$9, 0)","v":{"v":0,"d":"$0.00"}}]
["LTC",null,null,{"$f":"Jurat!I$1","v":0},{"$f":"Jurat!D$33","v":"00:00:00"},"Q2","2017-06-30","Region 4","Operating Expense","Taxes & Fees","Taxes & Fees","6.2","Department of Insurance Assessments",{"$f":"IFERROR('LTC Rev-Exp Region 4'!$H$65/'LTC Rev-Exp Region 4'!$H$9, 0)","v":{"v":0,"d":"$0.00"}},{"$f":"IFERROR('LTC Rev-Exp Region 4'!$I$65/'LTC Rev-Exp Region 4'!$I$9, 0)","v":{"v":0,"d":"$0.00"}},{"$f":"IFERROR('LTC Rev-Exp Region 4'!$J$65/'LTC Rev-Exp Region 4'!$J$9, 0)","v":{"v":0,"d":"$0.00"}},{"$f":"IFERROR('LTC Rev-Exp Region 4'!$K$65/'LTC Rev-Exp Region 4'!$K$9, 0)","v":{"v":0,"d":"$0.00"}}]
["LTC",null,null,{"$f":"Jurat!I$1","v":0},{"$f":"Jurat!D$33","v":"00:00:00"},"Q2","2017-06-30","Region 4","Non-Operating Expense","Income Tax Expense","Income Tax Expense","9.0","Income Tax Expense",{"$f":"IFERROR('LTC Rev-Exp Region 4'!$H$66/'LTC Rev-Exp Region 4'!$H$9, 0)","v":{"v":0,"d":"$0.00"}},{"$f":"IFERROR('LTC Rev-Exp Region 4'!$I$66/'LTC Rev-Exp Region 4'!$I$9, 0)","v":{"v":0,"d":"$0.00"}},{"$f":"IFERROR('LTC Rev-Exp Region 4'!$J$66/'LTC Rev-Exp Region 4'!$J$9, 0)","v":{"v":0,"d":"$0.00"}},{"$f":"IFERROR('LTC Rev-Exp Region 4'!$K$66/'LTC Rev-Exp Region 4'!$K$9, 0)","v":{"v":0,"d":"$0.00"}}]
["LTC",null,null,{"$f":"Jurat!I$1","v":0},{"$f":"Jurat!D$33","v":"00:00:00"},"Q3","2017-09-30","Region 4","Operating Revenue","Capitation","Capitation",1.1,"Capitation",{"$f":"IFERROR('LTC Rev-Exp Region 4'!$L$11/'LTC Rev-Exp Region 4'!$L$9, 0)","v":{"v":0,"d":"$0.00"}},{"$f":"IFERROR('LTC Rev-Exp Region 4'!$M$11/'LTC Rev-Exp Region 4'!$M$9, 0)","v":{"v":0,"d":"$0.00"}},{"$f":"IFERROR('LTC Rev-Exp Region 4'!$N$11/'LTC Rev-Exp Region 4'!$N$9, 0)","v":{"v":0,"d":"$0.00"}},{"$f":"IFERROR('LTC Rev-Exp Region 4'!$O$11/'LTC Rev-Exp Region 4'!$O$9, 0)","v":{"v":0,"d":"$0.00"}}]
["LTC",null,null,{"$f":"Jurat!I$1","v":0},{"$f":"Jurat!D$33","v":"00:00:00"},"Q3","2017-09-30","Region 4","Operating Revenue","Capitation","NH Rate Reconciliation",1.2,"NH Rate Reconciliation",{"$f":"IFERROR('LTC Rev-Exp Region 4'!L$12/'LTC Rev-Exp Region 4'!L$9, 0)","v":{"v":0,"d":"$0.00"}},{"$f":"IFERROR('LTC Rev-Exp Region 4'!M$12/'LTC Rev-Exp Region 4'!M$9, 0)","v":{"v":0,"d":"$0.00"}},{"$f":"IFERROR('LTC Rev-Exp Region 4'!N$12/'LTC Rev-Exp Region 4'!N$9, 0)","v":{"v":0,"d":"$0.00"}},{"$f":"IFERROR('LTC Rev-Exp Region 4'!O$12/'LTC Rev-Exp Region 4'!O$9, 0)","v":{"v":0,"d":"$0.00"}}]
["LTC",null,null,{"$f":"Jurat!I$1","v":0},{"$f":"Jurat!D$33","v":"00:00:00"},"Q3","2017-09-30","Region 4","Operating Revenue","Other Revenue","Other Revenue",1.3,"Other Revenue",{"$f":"IFERROR('LTC Rev-Exp Region 4'!L457/'LTC Rev-Exp Region 4'!L$9, 0)","v":{"v":0,"d":"$0.00"}},{"$f":"IFERROR('LTC Rev-Exp Region 4'!M457/'LTC Rev-Exp Region 4'!M$9, 0)","v":{"v":0,"d":"$0.00"}},{"$f":"IFERROR('LTC Rev-Exp Region 4'!N457/'LTC Rev-Exp Region 4'!N$9, 0)","v":{"v":0,"d":"$0.00"}},{"$f":"IFERROR('LTC Rev-Exp Region 4'!O457/'LTC Rev-Exp Region 4'!O$9, 0)","v":{"v":0,"d":"$0.00"}}]
["LTC",null,null,{"$f":"Jurat!I$1","v":0},{"$f":"Jurat!D$33","v":"00:00:00"},"Q3","2017-09-30","Region 4","Operating Expense","Medical Expense","NF & Hospice","2.3","Nursing Facility FFS (Medicaid)",{"$f":"IFERROR('LTC Rev-Exp Region 4'!$L$19/'LTC Rev-Exp Region 4'!$L$9, 0)","v":{"v":0,"d":"$0.00"}},{"$f":"IFERROR('LTC Rev-Exp Region 4'!$M$19/'LTC Rev-Exp Region 4'!$M$9, 0)","v":{"v":0,"d":"$0.00"}},{"$f":"IFERROR('LTC Rev-Exp Region 4'!$N$19/'LTC Rev-Exp Region 4'!$N$9, 0)","v":{"v":0,"d":"$0.00"}},{"$f":"IFERROR('LTC Rev-Exp Region 4'!$O$19/'LTC Rev-Exp Region 4'!$O$9, 0)","v":{"v":0,"d":"$0.00"}}]
["LTC",null,null,{"$f":"Jurat!I$1","v":0},{"$f":"Jurat!D$33","v":"00:00:00"},"Q3","2017-09-30","Region 4","Operating Expense","Medical Expense","NF & Hospice","2.4","Nursing Facility FFS (Crossover)",{"$f":"IFERROR('LTC Rev-Exp Region 4'!$L$20/'LTC Rev-Exp Region 4'!$L$9, 0)","v":{"v":0,"d":"$0.00"}},{"$f":"IFERROR('LTC Rev-Exp Region 4'!$M$20/'LTC Rev-Exp Region 4'!$M$9, 0)","v":{"v":0,"d":"$0.00"}},{"$f":"IFERROR('LTC Rev-Exp Region 4'!$N$20/'LTC Rev-Exp Region 4'!$N$9, 0)","v":{"v":0,"d":"$0.00"}},{"$f":"IFERROR('LTC Rev-Exp Region 4'!$O$20/'LTC Rev-Exp Region 4'!$O$9, 0)","v":{"v":0,"d":"$0.00"}}]
["LTC",null,null,{"$f":"Jurat!I$1","v":0},{"$f":"Jurat!D$33","v":"00:00:00"},"Q3","2017-09-30","Region 4","Operating Expense","Medical Expense","NF & Hospice","2.6","Hospice FFS",{"$f":"IFERROR('LTC Rev-Exp Region 4'!$L$22/'LTC Rev-Exp Region 4'!$L$9, 0)","v":{"v":0,"d":"$0.00"}},{"$f":"IFERROR('LTC Rev-Exp Region 4'!$M$22/'LTC Rev-Exp Region 4'!$M$9, 0)","v":{"v":0,"d":"$0.00"}},{"$f":"IFERROR('LTC Rev-Exp Region 4'!$N$22/'LTC Rev-Exp Region 4'!$N$9, 0)","v":{"v":0,"d":"$0.00"}},{"$f":"IFERROR('LTC Rev-Exp Region 4'!$O$22/'LTC Rev-Exp Region 4'!$O$9, 0)","v":{"v":0,"d":"$0.00"}}]
["LTC",null,null,{"$f":"Jurat!I$1","v":0},{"$f":"Jurat!D$33","v":"00:00:00"},"Q3","2017-09-30","Region 4","Operating Expense","Medical Expense","NF & Hospice","2.7","Ending IBNP for NF & Hospice",{"$f":"IFERROR('LTC Rev-Exp Region 4'!$L$23/'LTC Rev-Exp Region 4'!$L$9, 0)","v":{"v":0,"d":"$0.00"}},{"$f":"IFERROR('LTC Rev-Exp Region 4'!$M$23/'LTC Rev-Exp Region 4'!$M$9, 0)","v":{"v":0,"d":"$0.00"}},{"$f":"IFERROR('LTC Rev-Exp Region 4'!$N$23/'LTC Rev-Exp Region 4'!$N$9, 0)","v":{"v":0,"d":"$0.00"}},{"$f":"IFERROR('LTC Rev-Exp Region 4'!$O$23/'LTC Rev-Exp Region 4'!$O$9, 0)","v":{"v":0,"d":"$0.00"}}]
["LTC",null,null,{"$f":"Jurat!I$1","v":0},{"$f":"Jurat!D$33","v":"00:00:00"},"Q3","2017-09-30","Region 4","Operating Expense","Medical Expense","NF & Hospice","2.8","NF & Hospice Subcapitated",{"$f":"IFERROR('LTC Rev-Exp Region 4'!$L$24/'LTC Rev-Exp Region 4'!$L$9, 0)","v":{"v":0,"d":"$0.00"}},{"$f":"IFERROR('LTC Rev-Exp Region 4'!$M$24/'LTC Rev-Exp Region 4'!$M$9, 0)","v":{"v":0,"d":"$0.00"}},{"$f":"IFERROR('LTC Rev-Exp Region 4'!$N$24/'LTC Rev-Exp Region 4'!$N$9, 0)","v":{"v":0,"d":"$0.00"}},{"$f":"IFERROR('LTC Rev-Exp Region 4'!$O$24/'LTC Rev-Exp Region 4'!$O$9, 0)","v":{"v":0,"d":"$0.00"}}]
["LTC",null,null,{"$f":"Jurat!I$1","v":0},{"$f":"Jurat!D$33","v":"00:00:00"},"Q3","2017-09-30","Region 4","Operating Expense","Medical Expense","NF & Hospice","2.9","NF & Hospice Settlements",{"$f":"IFERROR('LTC Rev-Exp Region 4'!$L$25/'LTC Rev-Exp Region 4'!$L$9, 0)","v":{"v":0,"d":"$0.00"}},{"$f":"IFERROR('LTC Rev-Exp Region 4'!$M$25/'LTC Rev-Exp Region 4'!$M$9, 0)","v":{"v":0,"d":"$0.00"}},{"$f":"IFERROR('LTC Rev-Exp Region 4'!$N$25/'LTC Rev-Exp Region 4'!$N$9, 0)","v":{"v":0,"d":"$0.00"}},{"$f":"IFERROR('LTC Rev-Exp Region 4'!$O$25/'LTC Rev-Exp Region 4'!$O$9, 0)","v":{"v":0,"d":"$0.00"}}]
["LTC",null,null,{"$f":"Jurat!I$1","v":0},{"$f":"Jurat!D$33","v":"00:00:00"},"Q3","2017-09-30","Region 4","Operating Expense","Medical Expense","LTC Services","2.11","Assisted Living FFS",{"$f":"IFERROR('LTC Rev-Exp Region 4'!$L$27/'LTC Rev-Exp Region 4'!$L$9, 0)","v":{"v":0,"d":"$0.00"}},{"$f":"IFERROR('LTC Rev-Exp Region 4'!$M$27/'LTC Rev-Exp Region 4'!$M$9, 0)","v":{"v":0,"d":"$0.00"}},{"$f":"IFERROR('LTC Rev-Exp Region 4'!$N$27/'LTC Rev-Exp Region 4'!$N$9, 0)","v":{"v":0,"d":"$0.00"}},{"$f":"IFERROR('LTC Rev-Exp Region 4'!$O$27/'LTC Rev-Exp Region 4'!$O$9, 0)","v":{"v":0,"d":"$0.00"}}]
["LTC",null,null,{"$f":"Jurat!I$1","v":0},{"$f":"Jurat!D$33","v":"00:00:00"},"Q3","2017-09-30","Region 4","Operating Expense","Medical Expense","LTC Services","2.12","Home Health FFS",{"$f":"IFERROR('LTC Rev-Exp Region 4'!$L$28/'LTC Rev-Exp Region 4'!$L$9, 0)","v":{"v":0,"d":"$0.00"}},{"$f":"IFERROR('LTC Rev-Exp Region 4'!$M$28/'LTC Rev-Exp Region 4'!$M$9, 0)","v":{"v":0,"d":"$0.00"}},{"$f":"IFERROR('LTC Rev-Exp Region 4'!$N$28/'LTC Rev-Exp Region 4'!$N$9, 0)","v":{"v":0,"d":"$0.00"}},{"$f":"IFERROR('LTC Rev-Exp Region 4'!$O$28/'LTC Rev-Exp Region 4'!$O$9, 0)","v":{"v":0,"d":"$0.00"}}]
["LTC",null,null,{"$f":"Jurat!I$1","v":0},{"$f":"Jurat!D$33","v":"00:00:00"},"Q3","2017-09-30","Region 4","Operating Expense","Medical Expense","LTC Services","2.13","Medical Equipment/Supplies FFS",{"$f":"IFERROR('LTC Rev-Exp Region 4'!$L$29/'LTC Rev-Exp Region 4'!$L$9, 0)","v":{"v":0,"d":"$0.00"}},{"$f":"IFERROR('LTC Rev-Exp Region 4'!$M$29/'LTC Rev-Exp Region 4'!$M$9, 0)","v":{"v":0,"d":"$0.00"}},{"$f":"IFERROR('LTC Rev-Exp Region 4'!$N$29/'LTC Rev-Exp Region 4'!$N$9, 0)","v":{"v":0,"d":"$0.00"}},{"$f":"IFERROR('LTC Rev-Exp Region 4'!$O$29/'LTC Rev-Exp Region 4'!$O$9, 0)","v":{"v":0,"d":"$0.00"}}]
["LTC",null,null,{"$f":"Jurat!I$1","v":0},{"$f":"Jurat!D$33","v":"00:00:00"},"Q3","2017-09-30","Region 4","Operating Expense","Medical Expense","LTC Services","2.14","Therapy FFS",{"$f":"IFERROR('LTC Rev-Exp Region 4'!$L$30/'LTC Rev-Exp Region 4'!$L$9, 0)","v":{"v":0,"d":"$0.00"}},{"$f":"IFERROR('LTC Rev-Exp Region 4'!$M$30/'LTC Rev-Exp Region 4'!$M$9, 0)","v":{"v":0,"d":"$0.00"}},{"$f":"IFERROR('LTC Rev-Exp Region 4'!$N$30/'LTC Rev-Exp Region 4'!$N$9, 0)","v":{"v":0,"d":"$0.00"}},{"$f":"IFERROR('LTC Rev-Exp Region 4'!$O$30/'LTC Rev-Exp Region 4'!$O$9, 0)","v":{"v":0,"d":"$0.00"}}]
["LTC",null,null,{"$f":"Jurat!I$1","v":0},{"$f":"Jurat!D$33","v":"00:00:00"},"Q3","2017-09-30","Region 4","Operating Expense","Medical Expense","LTC Services","2.15","Transportation FFS",{"$f":"IFERROR('LTC Rev-Exp Region 4'!$L$31/'LTC Rev-Exp Region 4'!$L$9, 0)","v":{"v":0,"d":"$0.00"}},{"$f":"IFERROR('LTC Rev-Exp Region 4'!$M$31/'LTC Rev-Exp Region 4'!$M$9, 0)","v":{"v":0,"d":"$0.00"}},{"$f":"IFERROR('LTC Rev-Exp Region 4'!$N$31/'LTC Rev-Exp Region 4'!$N$9, 0)","v":{"v":0,"d":"$0.00"}},{"$f":"IFERROR('LTC Rev-Exp Region 4'!$O$31/'LTC Rev-Exp Region 4'!$O$9, 0)","v":{"v":0,"d":"$0.00"}}]
["LTC",null,null,{"$f":"Jurat!I$1","v":0},{"$f":"Jurat!D$33","v":"00:00:00"},"Q3","2017-09-30","Region 4","Operating Expense","Medical Expense","LTC Services","2.16","Case Management FFS (Plan Provided)",{"$f":"IFERROR('LTC Rev-Exp Region 4'!$L$32/'LTC Rev-Exp Region 4'!$L$9, 0)","v":{"v":0,"d":"$0.00"}},{"$f":"IFERROR('LTC Rev-Exp Region 4'!$M$32/'LTC Rev-Exp Region 4'!$M$9, 0)","v":{"v":0,"d":"$0.00"}},{"$f":"IFERROR('LTC Rev-Exp Region 4'!$N$32/'LTC Rev-Exp Region 4'!$N$9, 0)","v":{"v":0,"d":"$0.00"}},{"$f":"IFERROR('LTC Rev-Exp Region 4'!$O$32/'LTC Rev-Exp Region 4'!$O$9, 0)","v":{"v":0,"d":"$0.00"}}]
["LTC",null,null,{"$f":"Jurat!I$1","v":0},{"$f":"Jurat!D$33","v":"00:00:00"},"Q3","2017-09-30","Region 4","Operating Expense","Medical Expense","LTC Services","2.17","Case Management FF (Non-Plan Provided)",{"$f":"IFERROR('LTC Rev-Exp Region 4'!$L$33/'LTC Rev-Exp Region 4'!$L$9, 0)","v":{"v":0,"d":"$0.00"}},{"$f":"IFERROR('LTC Rev-Exp Region 4'!$M$33/'LTC Rev-Exp Region 4'!$M$9, 0)","v":{"v":0,"d":"$0.00"}},{"$f":"IFERROR('LTC Rev-Exp Region 4'!$N$33/'LTC Rev-Exp Region 4'!$N$9, 0)","v":{"v":0,"d":"$0.00"}},{"$f":"IFERROR('LTC Rev-Exp Region 4'!$O$33/'LTC Rev-Exp Region 4'!$O$9, 0)","v":{"v":0,"d":"$0.00"}}]
["LTC",null,null,{"$f":"Jurat!I$1","v":0},{"$f":"Jurat!D$33","v":"00:00:00"},"Q3","2017-09-30","Region 4","Operating Expense","Medical Expense","LTC Services","2.18","HCBS FFS",{"$f":"IFERROR('LTC Rev-Exp Region 4'!$L$34/'LTC Rev-Exp Region 4'!$L$9, 0)","v":{"v":0,"d":"$0.00"}},{"$f":"IFERROR('LTC Rev-Exp Region 4'!$M$34/'LTC Rev-Exp Region 4'!$M$9, 0)","v":{"v":0,"d":"$0.00"}},{"$f":"IFERROR('LTC Rev-Exp Region 4'!$N$34/'LTC Rev-Exp Region 4'!$N$9, 0)","v":{"v":0,"d":"$0.00"}},{"$f":"IFERROR('LTC Rev-Exp Region 4'!$O$34/'LTC Rev-Exp Region 4'!$O$9, 0)","v":{"v":0,"d":"$0.00"}}]
["LTC",null,null,{"$f":"Jurat!I$1","v":0},{"$f":"Jurat!D$33","v":"00:00:00"},"Q3","2017-09-30","Region 4","Operating Expense","Medical Expense","LTC Services","2.19","Subcapitated LTC Services",{"$f":"IFERROR('LTC Rev-Exp Region 4'!$L$35/'LTC Rev-Exp Region 4'!$L$9, 0)","v":{"v":0,"d":"$0.00"}},{"$f":"IFERROR('LTC Rev-Exp Region 4'!$M$35/'LTC Rev-Exp Region 4'!$M$9, 0)","v":{"v":0,"d":"$0.00"}},{"$f":"IFERROR('LTC Rev-Exp Region 4'!$N$35/'LTC Rev-Exp Region 4'!$N$9, 0)","v":{"v":0,"d":"$0.00"}},{"$f":"IFERROR('LTC Rev-Exp Region 4'!$O$35/'LTC Rev-Exp Region 4'!$O$9, 0)","v":{"v":0,"d":"$0.00"}}]
["LTC",null,null,{"$f":"Jurat!I$1","v":0},{"$f":"Jurat!D$33","v":"00:00:00"},"Q3","2017-09-30","Region 4","Operating Expense","Medical Expense","LTC Services","2.20","Ending IBNP for Long Term Care Services",{"$f":"IFERROR('LTC Rev-Exp Region 4'!$L$36/'LTC Rev-Exp Region 4'!$L$9, 0)","v":{"v":0,"d":"$0.00"}},{"$f":"IFERROR('LTC Rev-Exp Region 4'!$M$36/'LTC Rev-Exp Region 4'!$M$9, 0)","v":{"v":0,"d":"$0.00"}},{"$f":"IFERROR('LTC Rev-Exp Region 4'!$N$36/'LTC Rev-Exp Region 4'!$N$9, 0)","v":{"v":0,"d":"$0.00"}},{"$f":"IFERROR('LTC Rev-Exp Region 4'!$O$36/'LTC Rev-Exp Region 4'!$O$9, 0)","v":{"v":0,"d":"$0.00"}}]
["LTC",null,null,{"$f":"Jurat!I$1","v":0},{"$f":"Jurat!D$33","v":"00:00:00"},"Q3","2017-09-30","Region 4","Operating Expense","Medical Expense","LTC Services","2.21","LTC Services Settlements",{"$f":"IFERROR('LTC Rev-Exp Region 4'!$L$37/'LTC Rev-Exp Region 4'!$L$9, 0)","v":{"v":0,"d":"$0.00"}},{"$f":"IFERROR('LTC Rev-Exp Region 4'!$M$37/'LTC Rev-Exp Region 4'!$M$9, 0)","v":{"v":0,"d":"$0.00"}},{"$f":"IFERROR('LTC Rev-Exp Region 4'!$N$37/'LTC Rev-Exp Region 4'!$N$9, 0)","v":{"v":0,"d":"$0.00"}},{"$f":"IFERROR('LTC Rev-Exp Region 4'!$O$37/'LTC Rev-Exp Region 4'!$O$9, 0)","v":{"v":0,"d":"$0.00"}}]
["LTC",null,null,{"$f":"Jurat!I$1","v":0},{"$f":"Jurat!D$33","v":"00:00:00"},"Q3","2017-09-30","Region 4","Operating Expense","Medical Expense","Expanded Benefits","3.1","Expanded Benefits FFS",{"$f":"IFERROR('LTC Rev-Exp Region 4'!$L$39/'LTC Rev-Exp Region 4'!$L$9, 0)","v":{"v":0,"d":"$0.00"}},{"$f":"IFERROR('LTC Rev-Exp Region 4'!$M$39/'LTC Rev-Exp Region 4'!$M$9, 0)","v":{"v":0,"d":"$0.00"}},{"$f":"IFERROR('LTC Rev-Exp Region 4'!$N$39/'LTC Rev-Exp Region 4'!$N$9, 0)","v":{"v":0,"d":"$0.00"}},{"$f":"IFERROR('LTC Rev-Exp Region 4'!$O$39/'LTC Rev-Exp Region 4'!$O$9, 0)","v":{"v":0,"d":"$0.00"}}]
["LTC",null,null,{"$f":"Jurat!I$1","v":0},{"$f":"Jurat!D$33","v":"00:00:00"},"Q3","2017-09-30","Region 4","Operating Expense","Medical Expense","Expanded Benefits","3.2","Expanded Benefits Subcapitation",{"$f":"IFERROR('LTC Rev-Exp Region 4'!$L$40/'LTC Rev-Exp Region 4'!$L$9, 0)","v":{"v":0,"d":"$0.00"}},{"$f":"IFERROR('LTC Rev-Exp Region 4'!$M$40/'LTC Rev-Exp Region 4'!$M$9, 0)","v":{"v":0,"d":"$0.00"}},{"$f":"IFERROR('LTC Rev-Exp Region 4'!$N$40/'LTC Rev-Exp Region 4'!$N$9, 0)","v":{"v":0,"d":"$0.00"}},{"$f":"IFERROR('LTC Rev-Exp Region 4'!$O$40/'LTC Rev-Exp Region 4'!$O$9, 0)","v":{"v":0,"d":"$0.00"}}]
["LTC",null,null,{"$f":"Jurat!I$1","v":0},{"$f":"Jurat!D$33","v":"00:00:00"},"Q3","2017-09-30","Region 4","Operating Expense","Medical Expense","Expanded Benefits","3.3","Ending IBNP for Expanded Benefits",{"$f":"IFERROR('LTC Rev-Exp Region 4'!$L$41/'LTC Rev-Exp Region 4'!$L$9, 0)","v":{"v":0,"d":"$0.00"}},{"$f":"IFERROR('LTC Rev-Exp Region 4'!$M$41/'LTC Rev-Exp Region 4'!$M$9, 0)","v":{"v":0,"d":"$0.00"}},{"$f":"IFERROR('LTC Rev-Exp Region 4'!$N$41/'LTC Rev-Exp Region 4'!$N$9, 0)","v":{"v":0,"d":"$0.00"}},{"$f":"IFERROR('LTC Rev-Exp Region 4'!$O$41/'LTC Rev-Exp Region 4'!$O$9, 0)","v":{"v":0,"d":"$0.00"}}]
["LTC",null,null,{"$f":"Jurat!I$1","v":0},{"$f":"Jurat!D$33","v":"00:00:00"},"Q3","2017-09-30","Region 4","Operating Expense","Medical Expense","Expanded Benefits","3.4","Expanded Benefits Settlements",{"$f":"IFERROR('LTC Rev-Exp Region 4'!$L$42/'LTC Rev-Exp Region 4'!$L$9, 0)","v":{"v":0,"d":"$0.00"}},{"$f":"IFERROR('LTC Rev-Exp Region 4'!$M$42/'LTC Rev-Exp Region 4'!$M$9, 0)","v":{"v":0,"d":"$0.00"}},{"$f":"IFERROR('LTC Rev-Exp Region 4'!$N$42/'LTC Rev-Exp Region 4'!$N$9, 0)","v":{"v":0,"d":"$0.00"}},{"$f":"IFERROR('LTC Rev-Exp Region 4'!$O$42/'LTC Rev-Exp Region 4'!$O$9, 0)","v":{"v":0,"d":"$0.00"}}]
["LTC",null,null,{"$f":"Jurat!I$1","v":0},{"$f":"Jurat!D$33","v":"00:00:00"},"Q3","2017-09-30","Region 4","Operating Expense","Medical Expense","Other Medical","4.5","TPL & Fraud/Abuse Recoveries",{"$f":"IFERROR('LTC Rev-Exp Region 4'!$L$48/'LTC Rev-Exp Region 4'!$L$9, 0)","v":{"v":0,"d":"$0.00"}},{"$f":"IFERROR('LTC Rev-Exp Region 4'!$M$48/'LTC Rev-Exp Region 4'!$M$9, 0)","v":{"v":0,"d":"$0.00"}},{"$f":"IFERROR('LTC Rev-Exp Region 4'!$N$48/'LTC Rev-Exp Region 4'!$N$9, 0)","v":{"v":0,"d":"$0.00"}},{"$f":"IFERROR('LTC Rev-Exp Region 4'!$O$48/'LTC Rev-Exp Region 4'!$O$9, 0)","v":{"v":0,"d":"$0.00"}}]
["LTC",null,null,{"$f":"Jurat!I$1","v":0},{"$f":"Jurat!D$33","v":"00:00:00"},"Q3","2017-09-30","Region 4","Operating Expense","Medical Expense","Other Medical","4.6.1","Premium Deficiency Reserve",{"$f":"IFERROR('LTC Rev-Exp Region 4'!$L$49/'LTC Rev-Exp Region 4'!$L$9, 0)","v":{"v":0,"d":"$0.00"}},{"$f":"IFERROR('LTC Rev-Exp Region 4'!$M$49/'LTC Rev-Exp Region 4'!$M$9, 0)","v":{"v":0,"d":"$0.00"}},{"$f":"IFERROR('LTC Rev-Exp Region 4'!$N$49/'LTC Rev-Exp Region 4'!$N$9, 0)","v":{"v":0,"d":"$0.00"}},{"$f":"IFERROR('LTC Rev-Exp Region 4'!$O$49/'LTC Rev-Exp Region 4'!$O$9, 0)","v":{"v":0,"d":"$0.00"}}]
["LTC",null,null,{"$f":"Jurat!I$1","v":0},{"$f":"Jurat!D$33","v":"00:00:00"},"Q3","2017-09-30","Region 4","Operating Expense","Medical Expense","Other Medical","4.8","Reinsurance Premiums",{"$f":"IFERROR('LTC Rev-Exp Region 4'!$L$51/'LTC Rev-Exp Region 4'!$L$9, 0)","v":{"v":0,"d":"$0.00"}},{"$f":"IFERROR('LTC Rev-Exp Region 4'!$M$51/'LTC Rev-Exp Region 4'!$M$9, 0)","v":{"v":0,"d":"$0.00"}},{"$f":"IFERROR('LTC Rev-Exp Region 4'!$N$51/'LTC Rev-Exp Region 4'!$N$9, 0)","v":{"v":0,"d":"$0.00"}},{"$f":"IFERROR('LTC Rev-Exp Region 4'!$O$51/'LTC Rev-Exp Region 4'!$O$9, 0)","v":{"v":0,"d":"$0.00"}}]
["LTC",null,null,{"$f":"Jurat!I$1","v":0},{"$f":"Jurat!D$33","v":"00:00:00"},"Q3","2017-09-30","Region 4","Operating Expense","Medical Expense","Other Medical","4.9","Reinsurance Recoveries",{"$f":"IFERROR('LTC Rev-Exp Region 4'!$L$52/'LTC Rev-Exp Region 4'!$L$9, 0)","v":{"v":0,"d":"$0.00"}},{"$f":"IFERROR('LTC Rev-Exp Region 4'!$M$52/'LTC Rev-Exp Region 4'!$M$9, 0)","v":{"v":0,"d":"$0.00"}},{"$f":"IFERROR('LTC Rev-Exp Region 4'!$N$52/'LTC Rev-Exp Region 4'!$N$9, 0)","v":{"v":0,"d":"$0.00"}},{"$f":"IFERROR('LTC Rev-Exp Region 4'!$O$52/'LTC Rev-Exp Region 4'!$O$9, 0)","v":{"v":0,"d":"$0.00"}}]
["LTC",null,null,{"$f":"Jurat!I$1","v":0},{"$f":"Jurat!D$33","v":"00:00:00"},"Q3","2017-09-30","Region 4","Operating Expense","Administrative Expense","Administrative","5.1","Salaries & Benefits",{"$f":"IFERROR('LTC Rev-Exp Region 4'!$L$57/'LTC Rev-Exp Region 4'!$L$9, 0)","v":{"v":0,"d":"$0.00"}},{"$f":"IFERROR('LTC Rev-Exp Region 4'!$M$57/'LTC Rev-Exp Region 4'!$M$9, 0)","v":{"v":0,"d":"$0.00"}},{"$f":"IFERROR('LTC Rev-Exp Region 4'!$N$57/'LTC Rev-Exp Region 4'!$N$9, 0)","v":{"v":0,"d":"$0.00"}},{"$f":"IFERROR('LTC Rev-Exp Region 4'!$O$57/'LTC Rev-Exp Region 4'!$O$9, 0)","v":{"v":0,"d":"$0.00"}}]
["LTC",null,null,{"$f":"Jurat!I$1","v":0},{"$f":"Jurat!D$33","v":"00:00:00"},"Q3","2017-09-30","Region 4","Operating Expense","Administrative Expense","Administrative","5.2","Administrative Services",{"$f":"IFERROR('LTC Rev-Exp Region 4'!$L$58/'LTC Rev-Exp Region 4'!$L$9, 0)","v":{"v":0,"d":"$0.00"}},{"$f":"IFERROR('LTC Rev-Exp Region 4'!$M$58/'LTC Rev-Exp Region 4'!$M$9, 0)","v":{"v":0,"d":"$0.00"}},{"$f":"IFERROR('LTC Rev-Exp Region 4'!$N$58/'LTC Rev-Exp Region 4'!$N$9, 0)","v":{"v":0,"d":"$0.00"}},{"$f":"IFERROR('LTC Rev-Exp Region 4'!$O$58/'LTC Rev-Exp Region 4'!$O$9, 0)","v":{"v":0,"d":"$0.00"}}]
["LTC",null,null,{"$f":"Jurat!I$1","v":0},{"$f":"Jurat!D$33","v":"00:00:00"},"Q3","2017-09-30","Region 4","Operating Expense","Administrative Expense","Administrative","5.3","Information Systems",{"$f":"IFERROR('LTC Rev-Exp Region 4'!$L$59/'LTC Rev-Exp Region 4'!$L$9, 0)","v":{"v":0,"d":"$0.00"}},{"$f":"IFERROR('LTC Rev-Exp Region 4'!$M$59/'LTC Rev-Exp Region 4'!$M$9, 0)","v":{"v":0,"d":"$0.00"}},{"$f":"IFERROR('LTC Rev-Exp Region 4'!$N$59/'LTC Rev-Exp Region 4'!$N$9, 0)","v":{"v":0,"d":"$0.00"}},{"$f":"IFERROR('LTC Rev-Exp Region 4'!$O$59/'LTC Rev-Exp Region 4'!$O$9, 0)","v":{"v":0,"d":"$0.00"}}]
["LTC",null,null,{"$f":"Jurat!I$1","v":0},{"$f":"Jurat!D$33","v":"00:00:00"},"Q3","2017-09-30","Region 4","Operating Expense","Administrative Expense","Administrative","5.4","Marketing Expenses",{"$f":"IFERROR('LTC Rev-Exp Region 4'!$L$60/'LTC Rev-Exp Region 4'!$L$9, 0)","v":{"v":0,"d":"$0.00"}},{"$f":"IFERROR('LTC Rev-Exp Region 4'!$M$60/'LTC Rev-Exp Region 4'!$M$9, 0)","v":{"v":0,"d":"$0.00"}},{"$f":"IFERROR('LTC Rev-Exp Region 4'!$N$60/'LTC Rev-Exp Region 4'!$N$9, 0)","v":{"v":0,"d":"$0.00"}},{"$f":"IFERROR('LTC Rev-Exp Region 4'!$O$60/'LTC Rev-Exp Region 4'!$O$9, 0)","v":{"v":0,"d":"$0.00"}}]
["LTC",null,null,{"$f":"Jurat!I$1","v":0},{"$f":"Jurat!D$33","v":"00:00:00"},"Q3","2017-09-30","Region 4","Operating Expense","Administrative Expense","Administrative","5.5","General  Administration",{"$f":"IFERROR('LTC Rev-Exp Region 4'!$L$61/'LTC Rev-Exp Region 4'!$L$9, 0)","v":{"v":0,"d":"$0.00"}},{"$f":"IFERROR('LTC Rev-Exp Region 4'!$M$61/'LTC Rev-Exp Region 4'!$M$9, 0)","v":{"v":0,"d":"$0.00"}},{"$f":"IFERROR('LTC Rev-Exp Region 4'!$N$61/'LTC Rev-Exp Region 4'!$N$9, 0)","v":{"v":0,"d":"$0.00"}},{"$f":"IFERROR('LTC Rev-Exp Region 4'!$O$61/'LTC Rev-Exp Region 4'!$O$9, 0)","v":{"v":0,"d":"$0.00"}}]
["LTC",null,null,{"$f":"Jurat!I$1","v":0},{"$f":"Jurat!D$33","v":"00:00:00"},"Q3","2017-09-30","Region 4","Operating Expense","Administrative Expense","Administrative","5.6","Compliance/Regulatory",{"$f":"IFERROR('LTC Rev-Exp Region 4'!$L$62/'LTC Rev-Exp Region 4'!$L$9, 0)","v":{"v":0,"d":"$0.00"}},{"$f":"IFERROR('LTC Rev-Exp Region 4'!$M$62/'LTC Rev-Exp Region 4'!$M$9, 0)","v":{"v":0,"d":"$0.00"}},{"$f":"IFERROR('LTC Rev-Exp Region 4'!$N$62/'LTC Rev-Exp Region 4'!$N$9, 0)","v":{"v":0,"d":"$0.00"}},{"$f":"IFERROR('LTC Rev-Exp Region 4'!$O$62/'LTC Rev-Exp Region 4'!$O$9, 0)","v":{"v":0,"d":"$0.00"}}]
["LTC",null,null,{"$f":"Jurat!I$1","v":0},{"$f":"Jurat!D$33","v":"00:00:00"},"Q3","2017-09-30","Region 4","Operating Expense","Taxes & Fees","Taxes & Fees","6.1","State Premium Tax",{"$f":"IFERROR('LTC Rev-Exp Region 4'!$L$64/'LTC Rev-Exp Region 4'!$L$9, 0)","v":{"v":0,"d":"$0.00"}},{"$f":"IFERROR('LTC Rev-Exp Region 4'!$M$64/'LTC Rev-Exp Region 4'!$M$9, 0)","v":{"v":0,"d":"$0.00"}},{"$f":"IFERROR('LTC Rev-Exp Region 4'!$N$64/'LTC Rev-Exp Region 4'!$N$9, 0)","v":{"v":0,"d":"$0.00"}},{"$f":"IFERROR('LTC Rev-Exp Region 4'!$O$64/'LTC Rev-Exp Region 4'!$O$9, 0)","v":{"v":0,"d":"$0.00"}}]
["LTC",null,null,{"$f":"Jurat!I$1","v":0},{"$f":"Jurat!D$33","v":"00:00:00"},"Q3","2017-09-30","Region 4","Operating Expense","Taxes & Fees","Taxes & Fees","6.2","Department of Insurance Assessments",{"$f":"IFERROR('LTC Rev-Exp Region 4'!$L$65/'LTC Rev-Exp Region 4'!$L$9, 0)","v":{"v":0,"d":"$0.00"}},{"$f":"IFERROR('LTC Rev-Exp Region 4'!$M$65/'LTC Rev-Exp Region 4'!$M$9, 0)","v":{"v":0,"d":"$0.00"}},{"$f":"IFERROR('LTC Rev-Exp Region 4'!$N$65/'LTC Rev-Exp Region 4'!$N$9, 0)","v":{"v":0,"d":"$0.00"}},{"$f":"IFERROR('LTC Rev-Exp Region 4'!$O$65/'LTC Rev-Exp Region 4'!$O$9, 0)","v":{"v":0,"d":"$0.00"}}]
["LTC",null,null,{"$f":"Jurat!I$1","v":0},{"$f":"Jurat!D$33","v":"00:00:00"},"Q3","2017-09-30","Region 4","Non-Operating Expense","Income Tax Expense","Income Tax Expense","9.0","Income Tax Expense",{"$f":"IFERROR('LTC Rev-Exp Region 4'!$L$72/'LTC Rev-Exp Region 4'!$L$9, 0)","v":{"v":0,"d":"$0.00"}},{"$f":"IFERROR('LTC Rev-Exp Region 4'!$M$72/'LTC Rev-Exp Region 4'!$M$9, 0)","v":{"v":0,"d":"$0.00"}},{"$f":"IFERROR('LTC Rev-Exp Region 4'!$N$72/'LTC Rev-Exp Region 4'!$N$9, 0)","v":{"v":0,"d":"$0.00"}},{"$f":"IFERROR('LTC Rev-Exp Region 4'!$O$72/'LTC Rev-Exp Region 4'!$O$9, 0)","v":{"v":0,"d":"$0.00"}}]
["LTC",null,null,{"$f":"Jurat!I$1","v":0},{"$f":"Jurat!D$33","v":"00:00:00"},"Q4","2017-12-31","Region 4","Operating Revenue","Capitation","Capitation",1.1,"Capitation",{"$f":"IFERROR('LTC Rev-Exp Region 4'!$P$11/'LTC Rev-Exp Region 4'!$P$9, 0)","v":{"v":0,"d":"$0.00"}},{"$f":"IFERROR('LTC Rev-Exp Region 4'!$Q$11/'LTC Rev-Exp Region 4'!$Q$9, 0)","v":{"v":0,"d":"$0.00"}},{"$f":"IFERROR('LTC Rev-Exp Region 4'!$R$11/'LTC Rev-Exp Region 4'!$R$9, 0)","v":{"v":0,"d":"$0.00"}},{"$f":"IFERROR('LTC Rev-Exp Region 4'!$S$11/'LTC Rev-Exp Region 4'!$S$9, 0)","v":{"v":0,"d":"$0.00"}}]
["LTC",null,null,{"$f":"Jurat!I$1","v":0},{"$f":"Jurat!D$33","v":"00:00:00"},"Q4","2017-12-31","Region 4","Operating Revenue","Capitation","NH Rate Reconciliation",1.2,"NH Rate Reconciliation",{"$f":"IFERROR('LTC Rev-Exp Region 4'!$P$12/'LTC Rev-Exp Region 4'!$P$9, 0)","v":{"v":0,"d":"$0.00"}},{"$f":"IFERROR('LTC Rev-Exp Region 4'!$Q$12/'LTC Rev-Exp Region 4'!$Q$9, 0)","v":{"v":0,"d":"$0.00"}},{"$f":"IFERROR('LTC Rev-Exp Region 4'!$R$12/'LTC Rev-Exp Region 4'!$R$9, 0)","v":{"v":0,"d":"$0.00"}},{"$f":"IFERROR('LTC Rev-Exp Region 4'!$S$12/'LTC Rev-Exp Region 4'!$S$9, 0)","v":{"v":0,"d":"$0.00"}}]
["LTC",null,null,{"$f":"Jurat!I$1","v":0},{"$f":"Jurat!D$33","v":"00:00:00"},"Q4","2017-12-31","Region 4","Operating Revenue","Other Revenue","Other Revenue",1.3,"Other Revenue",{"$f":"IFERROR('LTC Rev-Exp Region 4'!$P$13/'LTC Rev-Exp Region 4'!$P$9, 0)","v":{"v":0,"d":"$0.00"}},{"$f":"IFERROR('LTC Rev-Exp Region 4'!$Q$13/'LTC Rev-Exp Region 4'!$Q$9, 0)","v":{"v":0,"d":"$0.00"}},{"$f":"IFERROR('LTC Rev-Exp Region 4'!$R$13/'LTC Rev-Exp Region 4'!$R$9, 0)","v":{"v":0,"d":"$0.00"}},{"$f":"IFERROR('LTC Rev-Exp Region 4'!$S$13/'LTC Rev-Exp Region 4'!$S$9, 0)","v":{"v":0,"d":"$0.00"}}]
["LTC",null,null,{"$f":"Jurat!I$1","v":0},{"$f":"Jurat!D$33","v":"00:00:00"},"Q4","2017-12-31","Region 4","Operating Expense","Medical Expense","NF & Hospice","2.3","Nursing Facility FFS (Medicaid)",{"$f":"IFERROR('LTC Rev-Exp Region 4'!$P$19/'LTC Rev-Exp Region 4'!$P$9, 0)","v":{"v":0,"d":"$0.00"}},{"$f":"IFERROR('LTC Rev-Exp Region 4'!$Q$19/'LTC Rev-Exp Region 4'!$Q$9, 0)","v":{"v":0,"d":"$0.00"}},{"$f":"IFERROR('LTC Rev-Exp Region 4'!$R$19/'LTC Rev-Exp Region 4'!$R$9, 0)","v":{"v":0,"d":"$0.00"}},{"$f":"IFERROR('LTC Rev-Exp Region 4'!$S$19/'LTC Rev-Exp Region 4'!$S$9, 0)","v":{"v":0,"d":"$0.00"}}]
["LTC",null,null,{"$f":"Jurat!I$1","v":0},{"$f":"Jurat!D$33","v":"00:00:00"},"Q4","2017-12-31","Region 4","Operating Expense","Medical Expense","NF & Hospice","2.4","Nursing Facility FFS (Crossover)",{"$f":"IFERROR('LTC Rev-Exp Region 4'!$P$20/'LTC Rev-Exp Region 4'!$P$9, 0)","v":{"v":0,"d":"$0.00"}},{"$f":"IFERROR('LTC Rev-Exp Region 4'!$Q$20/'LTC Rev-Exp Region 4'!$Q$9, 0)","v":{"v":0,"d":"$0.00"}},{"$f":"IFERROR('LTC Rev-Exp Region 4'!$R$20/'LTC Rev-Exp Region 4'!$R$9, 0)","v":{"v":0,"d":"$0.00"}},{"$f":"IFERROR('LTC Rev-Exp Region 4'!$S$20/'LTC Rev-Exp Region 4'!$S$9, 0)","v":{"v":0,"d":"$0.00"}}]
["LTC",null,null,{"$f":"Jurat!I$1","v":0},{"$f":"Jurat!D$33","v":"00:00:00"},"Q4","2017-12-31","Region 4","Operating Expense","Medical Expense","NF & Hospice","2.6","Hospice FFS",{"$f":"IFERROR('LTC Rev-Exp Region 4'!$P$22/'LTC Rev-Exp Region 4'!$P$9, 0)","v":{"v":0,"d":"$0.00"}},{"$f":"IFERROR('LTC Rev-Exp Region 4'!$Q$22/'LTC Rev-Exp Region 4'!$Q$9, 0)","v":{"v":0,"d":"$0.00"}},{"$f":"IFERROR('LTC Rev-Exp Region 4'!$R$22/'LTC Rev-Exp Region 4'!$R$9, 0)","v":{"v":0,"d":"$0.00"}},{"$f":"IFERROR('LTC Rev-Exp Region 4'!$S$22/'LTC Rev-Exp Region 4'!$S$9, 0)","v":{"v":0,"d":"$0.00"}}]
["LTC",null,null,{"$f":"Jurat!I$1","v":0},{"$f":"Jurat!D$33","v":"00:00:00"},"Q4","2017-12-31","Region 4","Operating Expense","Medical Expense","NF & Hospice","2.7","Ending IBNP for NF & Hospice",{"$f":"IFERROR('LTC Rev-Exp Region 4'!$P$23/'LTC Rev-Exp Region 4'!$P$9, 0)","v":{"v":0,"d":"$0.00"}},{"$f":"IFERROR('LTC Rev-Exp Region 4'!$Q$23/'LTC Rev-Exp Region 4'!$Q$9, 0)","v":{"v":0,"d":"$0.00"}},{"$f":"IFERROR('LTC Rev-Exp Region 4'!$R$23/'LTC Rev-Exp Region 4'!$R$9, 0)","v":{"v":0,"d":"$0.00"}},{"$f":"IFERROR('LTC Rev-Exp Region 4'!$S$23/'LTC Rev-Exp Region 4'!$S$9, 0)","v":{"v":0,"d":"$0.00"}}]
["LTC",null,null,{"$f":"Jurat!I$1","v":0},{"$f":"Jurat!D$33","v":"00:00:00"},"Q4","2017-12-31","Region 4","Operating Expense","Medical Expense","NF & Hospice","2.8","NF & Hospice Subcapitated",{"$f":"IFERROR('LTC Rev-Exp Region 4'!$P$24/'LTC Rev-Exp Region 4'!$P$9, 0)","v":{"v":0,"d":"$0.00"}},{"$f":"IFERROR('LTC Rev-Exp Region 4'!$Q$24/'LTC Rev-Exp Region 4'!$Q$9, 0)","v":{"v":0,"d":"$0.00"}},{"$f":"IFERROR('LTC Rev-Exp Region 4'!$R$24/'LTC Rev-Exp Region 4'!$R$9, 0)","v":{"v":0,"d":"$0.00"}},{"$f":"IFERROR('LTC Rev-Exp Region 4'!$S$24/'LTC Rev-Exp Region 4'!$S$9, 0)","v":{"v":0,"d":"$0.00"}}]
["LTC",null,null,{"$f":"Jurat!I$1","v":0},{"$f":"Jurat!D$33","v":"00:00:00"},"Q4","2017-12-31","Region 4","Operating Expense","Medical Expense","NF & Hospice","2.9","NF & Hospice Settlements",{"$f":"IFERROR('LTC Rev-Exp Region 4'!$P$25/'LTC Rev-Exp Region 4'!$P$9, 0)","v":{"v":0,"d":"$0.00"}},{"$f":"IFERROR('LTC Rev-Exp Region 4'!$Q$25/'LTC Rev-Exp Region 4'!$Q$9, 0)","v":{"v":0,"d":"$0.00"}},{"$f":"IFERROR('LTC Rev-Exp Region 4'!$R$25/'LTC Rev-Exp Region 4'!$R$9, 0)","v":{"v":0,"d":"$0.00"}},{"$f":"IFERROR('LTC Rev-Exp Region 4'!$S$25/'LTC Rev-Exp Region 4'!$S$9, 0)","v":{"v":0,"d":"$0.00"}}]
["LTC",null,null,{"$f":"Jurat!I$1","v":0},{"$f":"Jurat!D$33","v":"00:00:00"},"Q4","2017-12-31","Region 4","Operating Expense","Medical Expense","LTC Services","2.11","Assisted Living FFS",{"$f":"IFERROR('LTC Rev-Exp Region 4'!$P$27/'LTC Rev-Exp Region 4'!$P$9, 0)","v":{"v":0,"d":"$0.00"}},{"$f":"IFERROR('LTC Rev-Exp Region 4'!$Q$27/'LTC Rev-Exp Region 4'!$Q$9, 0)","v":{"v":0,"d":"$0.00"}},{"$f":"IFERROR('LTC Rev-Exp Region 4'!$R$27/'LTC Rev-Exp Region 4'!$R$9, 0)","v":{"v":0,"d":"$0.00"}},{"$f":"IFERROR('LTC Rev-Exp Region 4'!$S$27/'LTC Rev-Exp Region 4'!$S$9, 0)","v":{"v":0,"d":"$0.00"}}]
["LTC",null,null,{"$f":"Jurat!I$1","v":0},{"$f":"Jurat!D$33","v":"00:00:00"},"Q4","2017-12-31","Region 4","Operating Expense","Medical Expense","LTC Services","2.12","Home Health FFS",{"$f":"IFERROR('LTC Rev-Exp Region 4'!$P$28/'LTC Rev-Exp Region 4'!$P$9, 0)","v":{"v":0,"d":"$0.00"}},{"$f":"IFERROR('LTC Rev-Exp Region 4'!$Q$28/'LTC Rev-Exp Region 4'!$Q$9, 0)","v":{"v":0,"d":"$0.00"}},{"$f":"IFERROR('LTC Rev-Exp Region 4'!$R$28/'LTC Rev-Exp Region 4'!$R$9, 0)","v":{"v":0,"d":"$0.00"}},{"$f":"IFERROR('LTC Rev-Exp Region 4'!$S$28/'LTC Rev-Exp Region 4'!$S$9, 0)","v":{"v":0,"d":"$0.00"}}]
["LTC",null,null,{"$f":"Jurat!I$1","v":0},{"$f":"Jurat!D$33","v":"00:00:00"},"Q4","2017-12-31","Region 4","Operating Expense","Medical Expense","LTC Services","2.13","Medical Equipment/Supplies FFS",{"$f":"IFERROR('LTC Rev-Exp Region 4'!$P$29/'LTC Rev-Exp Region 4'!$P$9, 0)","v":{"v":0,"d":"$0.00"}},{"$f":"IFERROR('LTC Rev-Exp Region 4'!$Q$29/'LTC Rev-Exp Region 4'!$Q$9, 0)","v":{"v":0,"d":"$0.00"}},{"$f":"IFERROR('LTC Rev-Exp Region 4'!$R$29/'LTC Rev-Exp Region 4'!$R$9, 0)","v":{"v":0,"d":"$0.00"}},{"$f":"IFERROR('LTC Rev-Exp Region 4'!$S$29/'LTC Rev-Exp Region 4'!$S$9, 0)","v":{"v":0,"d":"$0.00"}}]
["LTC",null,null,{"$f":"Jurat!I$1","v":0},{"$f":"Jurat!D$33","v":"00:00:00"},"Q4","2017-12-31","Region 4","Operating Expense","Medical Expense","LTC Services","2.14","Therapy FFS",{"$f":"IFERROR('LTC Rev-Exp Region 4'!$P$30/'LTC Rev-Exp Region 4'!$P$9, 0)","v":{"v":0,"d":"$0.00"}},{"$f":"IFERROR('LTC Rev-Exp Region 4'!$Q$30/'LTC Rev-Exp Region 4'!$Q$9, 0)","v":{"v":0,"d":"$0.00"}},{"$f":"IFERROR('LTC Rev-Exp Region 4'!$R$30/'LTC Rev-Exp Region 4'!$R$9, 0)","v":{"v":0,"d":"$0.00"}},{"$f":"IFERROR('LTC Rev-Exp Region 4'!$S$30/'LTC Rev-Exp Region 4'!$S$9, 0)","v":{"v":0,"d":"$0.00"}}]
["LTC",null,null,{"$f":"Jurat!I$1","v":0},{"$f":"Jurat!D$33","v":"00:00:00"},"Q4","2017-12-31","Region 4","Operating Expense","Medical Expense","LTC Services","2.15","Transportation FFS",{"$f":"IFERROR('LTC Rev-Exp Region 4'!$P$31/'LTC Rev-Exp Region 4'!$P$9, 0)","v":{"v":0,"d":"$0.00"}},{"$f":"IFERROR('LTC Rev-Exp Region 4'!$Q$31/'LTC Rev-Exp Region 4'!$Q$9, 0)","v":{"v":0,"d":"$0.00"}},{"$f":"IFERROR('LTC Rev-Exp Region 4'!$R$31/'LTC Rev-Exp Region 4'!$R$9, 0)","v":{"v":0,"d":"$0.00"}},{"$f":"IFERROR('LTC Rev-Exp Region 4'!$S$31/'LTC Rev-Exp Region 4'!$S$9, 0)","v":{"v":0,"d":"$0.00"}}]
["LTC",null,null,{"$f":"Jurat!I$1","v":0},{"$f":"Jurat!D$33","v":"00:00:00"},"Q4","2017-12-31","Region 4","Operating Expense","Medical Expense","LTC Services","2.16","Case Management FFS (Plan Provided)",{"$f":"IFERROR('LTC Rev-Exp Region 4'!$P$32/'LTC Rev-Exp Region 4'!$P$9, 0)","v":{"v":0,"d":"$0.00"}},{"$f":"IFERROR('LTC Rev-Exp Region 4'!$Q$32/'LTC Rev-Exp Region 4'!$Q$9, 0)","v":{"v":0,"d":"$0.00"}},{"$f":"IFERROR('LTC Rev-Exp Region 4'!$R$32/'LTC Rev-Exp Region 4'!$R$9, 0)","v":{"v":0,"d":"$0.00"}},{"$f":"IFERROR('LTC Rev-Exp Region 4'!$S$32/'LTC Rev-Exp Region 4'!$S$9, 0)","v":{"v":0,"d":"$0.00"}}]
["LTC",null,null,{"$f":"Jurat!I$1","v":0},{"$f":"Jurat!D$33","v":"00:00:00"},"Q4","2017-12-31","Region 4","Operating Expense","Medical Expense","LTC Services","2.17","Case Management FF (Non-Plan Provided)",{"$f":"IFERROR('LTC Rev-Exp Region 4'!$P$33/'LTC Rev-Exp Region 4'!$P$9, 0)","v":{"v":0,"d":"$0.00"}},{"$f":"IFERROR('LTC Rev-Exp Region 4'!$Q$33/'LTC Rev-Exp Region 4'!$Q$9, 0)","v":{"v":0,"d":"$0.00"}},{"$f":"IFERROR('LTC Rev-Exp Region 4'!$R$33/'LTC Rev-Exp Region 4'!$R$9, 0)","v":{"v":0,"d":"$0.00"}},{"$f":"IFERROR('LTC Rev-Exp Region 4'!$S$33/'LTC Rev-Exp Region 4'!$S$9, 0)","v":{"v":0,"d":"$0.00"}}]
["LTC",null,null,{"$f":"Jurat!I$1","v":0},{"$f":"Jurat!D$33","v":"00:00:00"},"Q4","2017-12-31","Region 4","Operating Expense","Medical Expense","LTC Services","2.18","HCBS FFS",{"$f":"IFERROR('LTC Rev-Exp Region 4'!$P$34/'LTC Rev-Exp Region 4'!$P$9, 0)","v":{"v":0,"d":"$0.00"}},{"$f":"IFERROR('LTC Rev-Exp Region 4'!$Q$34/'LTC Rev-Exp Region 4'!$Q$9, 0)","v":{"v":0,"d":"$0.00"}},{"$f":"IFERROR('LTC Rev-Exp Region 4'!$R$34/'LTC Rev-Exp Region 4'!$R$9, 0)","v":{"v":0,"d":"$0.00"}},{"$f":"IFERROR('LTC Rev-Exp Region 4'!$S$34/'LTC Rev-Exp Region 4'!$S$9, 0)","v":{"v":0,"d":"$0.00"}}]
["LTC",null,null,{"$f":"Jurat!I$1","v":0},{"$f":"Jurat!D$33","v":"00:00:00"},"Q4","2017-12-31","Region 4","Operating Expense","Medical Expense","LTC Services","2.19","Subcapitated LTC Services",{"$f":"IFERROR('LTC Rev-Exp Region 4'!$P$35/'LTC Rev-Exp Region 4'!$P$9, 0)","v":{"v":0,"d":"$0.00"}},{"$f":"IFERROR('LTC Rev-Exp Region 4'!$Q$35/'LTC Rev-Exp Region 4'!$Q$9, 0)","v":{"v":0,"d":"$0.00"}},{"$f":"IFERROR('LTC Rev-Exp Region 4'!$R$35/'LTC Rev-Exp Region 4'!$R$9, 0)","v":{"v":0,"d":"$0.00"}},{"$f":"IFERROR('LTC Rev-Exp Region 4'!$S$35/'LTC Rev-Exp Region 4'!$S$9, 0)","v":{"v":0,"d":"$0.00"}}]
["LTC",null,null,{"$f":"Jurat!I$1","v":0},{"$f":"Jurat!D$33","v":"00:00:00"},"Q4","2017-12-31","Region 4","Operating Expense","Medical Expense","LTC Services","2.20","Ending IBNP for Long Term Care Services",{"$f":"IFERROR('LTC Rev-Exp Region 4'!$P$36/'LTC Rev-Exp Region 4'!$P$9, 0)","v":{"v":0,"d":"$0.00"}},{"$f":"IFERROR('LTC Rev-Exp Region 4'!$Q$36/'LTC Rev-Exp Region 4'!$Q$9, 0)","v":{"v":0,"d":"$0.00"}},{"$f":"IFERROR('LTC Rev-Exp Region 4'!$R$36/'LTC Rev-Exp Region 4'!$R$9, 0)","v":{"v":0,"d":"$0.00"}},{"$f":"IFERROR('LTC Rev-Exp Region 4'!$S$36/'LTC Rev-Exp Region 4'!$S$9, 0)","v":{"v":0,"d":"$0.00"}}]
["LTC",null,null,{"$f":"Jurat!I$1","v":0},{"$f":"Jurat!D$33","v":"00:00:00"},"Q4","2017-12-31","Region 4","Operating Expense","Medical Expense","LTC Services","2.21","LTC Services Settlements",{"$f":"IFERROR('LTC Rev-Exp Region 4'!$P$37/'LTC Rev-Exp Region 4'!$P$9, 0)","v":{"v":0,"d":"$0.00"}},{"$f":"IFERROR('LTC Rev-Exp Region 4'!$Q$37/'LTC Rev-Exp Region 4'!$Q$9, 0)","v":{"v":0,"d":"$0.00"}},{"$f":"IFERROR('LTC Rev-Exp Region 4'!$R$37/'LTC Rev-Exp Region 4'!$R$9, 0)","v":{"v":0,"d":"$0.00"}},{"$f":"IFERROR('LTC Rev-Exp Region 4'!$S$37/'LTC Rev-Exp Region 4'!$S$9, 0)","v":{"v":0,"d":"$0.00"}}]
["LTC",null,null,{"$f":"Jurat!I$1","v":0},{"$f":"Jurat!D$33","v":"00:00:00"},"Q4","2017-12-31","Region 4","Operating Expense","Medical Expense","Expanded Benefits","3.1","Expanded Benefits FFS",{"$f":"IFERROR('LTC Rev-Exp Region 4'!$P$39/'LTC Rev-Exp Region 4'!$P$9, 0)","v":{"v":0,"d":"$0.00"}},{"$f":"IFERROR('LTC Rev-Exp Region 4'!$Q$39/'LTC Rev-Exp Region 4'!$Q$9, 0)","v":{"v":0,"d":"$0.00"}},{"$f":"IFERROR('LTC Rev-Exp Region 4'!$R$39/'LTC Rev-Exp Region 4'!$R$9, 0)","v":{"v":0,"d":"$0.00"}},{"$f":"IFERROR('LTC Rev-Exp Region 4'!$S$39/'LTC Rev-Exp Region 4'!$S$9, 0)","v":{"v":0,"d":"$0.00"}}]
["LTC",null,null,{"$f":"Jurat!I$1","v":0},{"$f":"Jurat!D$33","v":"00:00:00"},"Q4","2017-12-31","Region 4","Operating Expense","Medical Expense","Expanded Benefits","3.2","Expanded Benefits Subcapitation",{"$f":"IFERROR('LTC Rev-Exp Region 4'!$P$40/'LTC Rev-Exp Region 4'!$P$9, 0)","v":{"v":0,"d":"$0.00"}},{"$f":"IFERROR('LTC Rev-Exp Region 4'!$Q$40/'LTC Rev-Exp Region 4'!$Q$9, 0)","v":{"v":0,"d":"$0.00"}},{"$f":"IFERROR('LTC Rev-Exp Region 4'!$R$40/'LTC Rev-Exp Region 4'!$R$9, 0)","v":{"v":0,"d":"$0.00"}},{"$f":"IFERROR('LTC Rev-Exp Region 4'!$S$40/'LTC Rev-Exp Region 4'!$S$9, 0)","v":{"v":0,"d":"$0.00"}}]
["LTC",null,null,{"$f":"Jurat!I$1","v":0},{"$f":"Jurat!D$33","v":"00:00:00"},"Q4","2017-12-31","Region 4","Operating Expense","Medical Expense","Expanded Benefits","3.3","Ending IBNP for Expanded Benefits",{"$f":"IFERROR('LTC Rev-Exp Region 4'!$P$41/'LTC Rev-Exp Region 4'!$P$9, 0)","v":{"v":0,"d":"$0.00"}},{"$f":"IFERROR('LTC Rev-Exp Region 4'!$Q$41/'LTC Rev-Exp Region 4'!$Q$9, 0)","v":{"v":0,"d":"$0.00"}},{"$f":"IFERROR('LTC Rev-Exp Region 4'!$R$41/'LTC Rev-Exp Region 4'!$R$9, 0)","v":{"v":0,"d":"$0.00"}},{"$f":"IFERROR('LTC Rev-Exp Region 4'!$S$41/'LTC Rev-Exp Region 4'!$S$9, 0)","v":{"v":0,"d":"$0.00"}}]
["LTC",null,null,{"$f":"Jurat!I$1","v":0},{"$f":"Jurat!D$33","v":"00:00:00"},"Q4","2017-12-31","Region 4","Operating Expense","Medical Expense","Expanded Benefits","3.4","Expanded Benefits Settlements",{"$f":"IFERROR('LTC Rev-Exp Region 4'!$P$42/'LTC Rev-Exp Region 4'!$P$9, 0)","v":{"v":0,"d":"$0.00"}},{"$f":"IFERROR('LTC Rev-Exp Region 4'!$Q$42/'LTC Rev-Exp Region 4'!$Q$9, 0)","v":{"v":0,"d":"$0.00"}},{"$f":"IFERROR('LTC Rev-Exp Region 4'!$R$42/'LTC Rev-Exp Region 4'!$R$9, 0)","v":{"v":0,"d":"$0.00"}},{"$f":"IFERROR('LTC Rev-Exp Region 4'!$S$42/'LTC Rev-Exp Region 4'!$S$9, 0)","v":{"v":0,"d":"$0.00"}}]
["LTC",null,null,{"$f":"Jurat!I$1","v":0},{"$f":"Jurat!D$33","v":"00:00:00"},"Q4","2017-12-31","Region 4","Operating Expense","Medical Expense","Other Medical","4.5","TPL & Fraud/Abuse Recoveries",{"$f":"IFERROR('LTC Rev-Exp Region 4'!$P$48/'LTC Rev-Exp Region 4'!$P$9, 0)","v":{"v":0,"d":"$0.00"}},{"$f":"IFERROR('LTC Rev-Exp Region 4'!$Q$48/'LTC Rev-Exp Region 4'!$Q$9, 0)","v":{"v":0,"d":"$0.00"}},{"$f":"IFERROR('LTC Rev-Exp Region 4'!$R$48/'LTC Rev-Exp Region 4'!$R$9, 0)","v":{"v":0,"d":"$0.00"}},{"$f":"IFERROR('LTC Rev-Exp Region 4'!$S$48/'LTC Rev-Exp Region 4'!$S$9, 0)","v":{"v":0,"d":"$0.00"}}]
["LTC",null,null,{"$f":"Jurat!I$1","v":0},{"$f":"Jurat!D$33","v":"00:00:00"},"Q4","2017-12-31","Region 4","Operating Expense","Medical Expense","Other Medical","4.6.1","Premium Deficiency Reserve",{"$f":"IFERROR('LTC Rev-Exp Region 4'!$P$49/'LTC Rev-Exp Region 4'!$P$9, 0)","v":{"v":0,"d":"$0.00"}},{"$f":"IFERROR('LTC Rev-Exp Region 4'!$Q$49/'LTC Rev-Exp Region 4'!$Q$9, 0)","v":{"v":0,"d":"$0.00"}},{"$f":"IFERROR('LTC Rev-Exp Region 4'!$R$49/'LTC Rev-Exp Region 4'!$R$9, 0)","v":{"v":0,"d":"$0.00"}},{"$f":"IFERROR('LTC Rev-Exp Region 4'!$S$49/'LTC Rev-Exp Region 4'!$S$9, 0)","v":{"v":0,"d":"$0.00"}}]
["LTC",null,null,{"$f":"Jurat!I$1","v":0},{"$f":"Jurat!D$33","v":"00:00:00"},"Q4","2017-12-31","Region 4","Operating Expense","Medical Expense","Other Medical","4.8","Reinsurance Premiums",{"$f":"IFERROR('LTC Rev-Exp Region 4'!$P$51/'LTC Rev-Exp Region 4'!$P$9, 0)","v":{"v":0,"d":"$0.00"}},{"$f":"IFERROR('LTC Rev-Exp Region 4'!$Q$51/'LTC Rev-Exp Region 4'!$Q$9, 0)","v":{"v":0,"d":"$0.00"}},{"$f":"IFERROR('LTC Rev-Exp Region 4'!$R$51/'LTC Rev-Exp Region 4'!$R$9, 0)","v":{"v":0,"d":"$0.00"}},{"$f":"IFERROR('LTC Rev-Exp Region 4'!$S$51/'LTC Rev-Exp Region 4'!$S$9, 0)","v":{"v":0,"d":"$0.00"}}]
["LTC",null,null,{"$f":"Jurat!I$1","v":0},{"$f":"Jurat!D$33","v":"00:00:00"},"Q4","2017-12-31","Region 4","Operating Expense","Medical Expense","Other Medical","4.9","Reinsurance Recoveries",{"$f":"IFERROR('LTC Rev-Exp Region 4'!$P$52/'LTC Rev-Exp Region 4'!$P$9, 0)","v":{"v":0,"d":"$0.00"}},{"$f":"IFERROR('LTC Rev-Exp Region 4'!$Q$52/'LTC Rev-Exp Region 4'!$Q$9, 0)","v":{"v":0,"d":"$0.00"}},{"$f":"IFERROR('LTC Rev-Exp Region 4'!$R$52/'LTC Rev-Exp Region 4'!$R$9, 0)","v":{"v":0,"d":"$0.00"}},{"$f":"IFERROR('LTC Rev-Exp Region 4'!$S$52/'LTC Rev-Exp Region 4'!$S$9, 0)","v":{"v":0,"d":"$0.00"}}]
["LTC",null,null,{"$f":"Jurat!I$1","v":0},{"$f":"Jurat!D$33","v":"00:00:00"},"Q4","2017-12-31","Region 4","Operating Expense","Administrative Expense","Administrative","5.1","Salaries & Benefits",{"$f":"IFERROR('LTC Rev-Exp Region 4'!$P$57/'LTC Rev-Exp Region 4'!$P$9, 0)","v":{"v":0,"d":"$0.00"}},{"$f":"IFERROR('LTC Rev-Exp Region 4'!$Q$57/'LTC Rev-Exp Region 4'!$Q$9, 0)","v":{"v":0,"d":"$0.00"}},{"$f":"IFERROR('LTC Rev-Exp Region 4'!$R$57/'LTC Rev-Exp Region 4'!$R$9, 0)","v":{"v":0,"d":"$0.00"}},{"$f":"IFERROR('LTC Rev-Exp Region 4'!$S$57/'LTC Rev-Exp Region 4'!$S$9, 0)","v":{"v":0,"d":"$0.00"}}]
["LTC",null,null,{"$f":"Jurat!I$1","v":0},{"$f":"Jurat!D$33","v":"00:00:00"},"Q4","2017-12-31","Region 4","Operating Expense","Administrative Expense","Administrative","5.2","Administrative Services",{"$f":"IFERROR('LTC Rev-Exp Region 4'!$P$58/'LTC Rev-Exp Region 4'!$P$9, 0)","v":{"v":0,"d":"$0.00"}},{"$f":"IFERROR('LTC Rev-Exp Region 4'!$Q$58/'LTC Rev-Exp Region 4'!$Q$9, 0)","v":{"v":0,"d":"$0.00"}},{"$f":"IFERROR('LTC Rev-Exp Region 4'!$R$58/'LTC Rev-Exp Region 4'!$R$9, 0)","v":{"v":0,"d":"$0.00"}},{"$f":"IFERROR('LTC Rev-Exp Region 4'!$S$58/'LTC Rev-Exp Region 4'!$S$9, 0)","v":{"v":0,"d":"$0.00"}}]
["LTC",null,null,{"$f":"Jurat!I$1","v":0},{"$f":"Jurat!D$33","v":"00:00:00"},"Q4","2017-12-31","Region 4","Operating Expense","Administrative Expense","Administrative","5.3","Information Systems",{"$f":"IFERROR('LTC Rev-Exp Region 4'!$P$59/'LTC Rev-Exp Region 4'!$P$9, 0)","v":{"v":0,"d":"$0.00"}},{"$f":"IFERROR('LTC Rev-Exp Region 4'!$Q$59/'LTC Rev-Exp Region 4'!$Q$9, 0)","v":{"v":0,"d":"$0.00"}},{"$f":"IFERROR('LTC Rev-Exp Region 4'!$R$59/'LTC Rev-Exp Region 4'!$R$9, 0)","v":{"v":0,"d":"$0.00"}},{"$f":"IFERROR('LTC Rev-Exp Region 4'!$S$59/'LTC Rev-Exp Region 4'!$S$9, 0)","v":{"v":0,"d":"$0.00"}}]
["LTC",null,null,{"$f":"Jurat!I$1","v":0},{"$f":"Jurat!D$33","v":"00:00:00"},"Q4","2017-12-31","Region 4","Operating Expense","Administrative Expense","Administrative","5.4","Marketing Expenses",{"$f":"IFERROR('LTC Rev-Exp Region 4'!$P$60/'LTC Rev-Exp Region 4'!$P$9, 0)","v":{"v":0,"d":"$0.00"}},{"$f":"IFERROR('LTC Rev-Exp Region 4'!$Q$60/'LTC Rev-Exp Region 4'!$Q$9, 0)","v":{"v":0,"d":"$0.00"}},{"$f":"IFERROR('LTC Rev-Exp Region 4'!$R$60/'LTC Rev-Exp Region 4'!$R$9, 0)","v":{"v":0,"d":"$0.00"}},{"$f":"IFERROR('LTC Rev-Exp Region 4'!$S$60/'LTC Rev-Exp Region 4'!$S$9, 0)","v":{"v":0,"d":"$0.00"}}]
["LTC",null,null,{"$f":"Jurat!I$1","v":0},{"$f":"Jurat!D$33","v":"00:00:00"},"Q4","2017-12-31","Region 4","Operating Expense","Administrative Expense","Administrative","5.5","General  Administration",{"$f":"IFERROR('LTC Rev-Exp Region 4'!$P$61/'LTC Rev-Exp Region 4'!$P$9, 0)","v":{"v":0,"d":"$0.00"}},{"$f":"IFERROR('LTC Rev-Exp Region 4'!$Q$61/'LTC Rev-Exp Region 4'!$Q$9, 0)","v":{"v":0,"d":"$0.00"}},{"$f":"IFERROR('LTC Rev-Exp Region 4'!$R$61/'LTC Rev-Exp Region 4'!$R$9, 0)","v":{"v":0,"d":"$0.00"}},{"$f":"IFERROR('LTC Rev-Exp Region 4'!$S$61/'LTC Rev-Exp Region 4'!$S$9, 0)","v":{"v":0,"d":"$0.00"}}]
["LTC",null,null,{"$f":"Jurat!I$1","v":0},{"$f":"Jurat!D$33","v":"00:00:00"},"Q4","2017-12-31","Region 4","Operating Expense","Administrative Expense","Administrative","5.6","Compliance/Regulatory",{"$f":"IFERROR('LTC Rev-Exp Region 4'!$P$62/'LTC Rev-Exp Region 4'!$P$9, 0)","v":{"v":0,"d":"$0.00"}},{"$f":"IFERROR('LTC Rev-Exp Region 4'!$Q$62/'LTC Rev-Exp Region 4'!$Q$9, 0)","v":{"v":0,"d":"$0.00"}},{"$f":"IFERROR('LTC Rev-Exp Region 4'!$R$62/'LTC Rev-Exp Region 4'!$R$9, 0)","v":{"v":0,"d":"$0.00"}},{"$f":"IFERROR('LTC Rev-Exp Region 4'!$S$62/'LTC Rev-Exp Region 4'!$S$9, 0)","v":{"v":0,"d":"$0.00"}}]
["LTC",null,null,{"$f":"Jurat!I$1","v":0},{"$f":"Jurat!D$33","v":"00:00:00"},"Q4","2017-12-31","Region 4","Operating Expense","Taxes & Fees","Taxes & Fees","6.1","State Premium Tax",{"$f":"IFERROR('LTC Rev-Exp Region 4'!$P$64/'LTC Rev-Exp Region 4'!$P$9, 0)","v":{"v":0,"d":"$0.00"}},{"$f":"IFERROR('LTC Rev-Exp Region 4'!$Q$64/'LTC Rev-Exp Region 4'!$Q$9, 0)","v":{"v":0,"d":"$0.00"}},{"$f":"IFERROR('LTC Rev-Exp Region 4'!$R$64/'LTC Rev-Exp Region 4'!$R$9, 0)","v":{"v":0,"d":"$0.00"}},{"$f":"IFERROR('LTC Rev-Exp Region 4'!$S$64/'LTC Rev-Exp Region 4'!$S$9, 0)","v":{"v":0,"d":"$0.00"}}]
["LTC",null,null,{"$f":"Jurat!I$1","v":0},{"$f":"Jurat!D$33","v":"00:00:00"},"Q4","2017-12-31","Region 4","Operating Expense","Taxes & Fees","Taxes & Fees","6.2","Department of Insurance Assessments",{"$f":"IFERROR('LTC Rev-Exp Region 4'!$P$65/'LTC Rev-Exp Region 4'!$P$9, 0)","v":{"v":0,"d":"$0.00"}},{"$f":"IFERROR('LTC Rev-Exp Region 4'!$Q$65/'LTC Rev-Exp Region 4'!$Q$9, 0)","v":{"v":0,"d":"$0.00"}},{"$f":"IFERROR('LTC Rev-Exp Region 4'!$R$65/'LTC Rev-Exp Region 4'!$R$9, 0)","v":{"v":0,"d":"$0.00"}},{"$f":"IFERROR('LTC Rev-Exp Region 4'!$S$65/'LTC Rev-Exp Region 4'!$S$9, 0)","v":{"v":0,"d":"$0.00"}}]
["LTC",null,null,{"$f":"Jurat!I$1","v":0},{"$f":"Jurat!D$33","v":"00:00:00"},"Q4","2017-12-31","Region 4","Non-Operating Expense","Income Tax Expense","Income Tax Expense","9.0","Income Tax Expense",{"$f":"IFERROR('LTC Rev-Exp Region 4'!$P$72/'LTC Rev-Exp Region 4'!$P$9, 0)","v":{"v":0,"d":"$0.00"}},{"$f":"IFERROR('LTC Rev-Exp Region 4'!$Q$72/'LTC Rev-Exp Region 4'!$Q$9, 0)","v":{"v":0,"d":"$0.00"}},{"$f":"IFERROR('LTC Rev-Exp Region 4'!$R$72/'LTC Rev-Exp Region 4'!$R$9, 0)","v":{"v":0,"d":"$0.00"}},{"$f":"IFERROR('LTC Rev-Exp Region 4'!$S$72/'LTC Rev-Exp Region 4'!$S$9, 0)","v":{"v":0,"d":"$0.00"}}]
["LTC",null,null,{"$f":"Jurat!I$1","v":0},{"$f":"Jurat!D$33","v":"00:00:00"},"Q1","2017-03-31","Region 5","Operating Revenue","Capitation","Capitation",1.1,"Capitation",{"$f":"IFERROR('LTC Rev-Exp Region 5'!$D$11/'LTC Rev-Exp Region 5'!$D$9, 0)","v":{"v":0,"d":"$0.00"}},{"$f":"IFERROR('LTC Rev-Exp Region 5'!$E$11/'LTC Rev-Exp Region 5'!$E$9, 0)","v":{"v":0,"d":"$0.00"}},{"$f":"IFERROR('LTC Rev-Exp Region 5'!$F$11/'LTC Rev-Exp Region 5'!$F$9, 0)","v":{"v":0,"d":"$0.00"}},{"$f":"IFERROR('LTC Rev-Exp Region 5'!$G$11/'LTC Rev-Exp Region 5'!$G$9, 0)","v":{"v":0,"d":"$0.00"}}]
["LTC",null,null,{"$f":"Jurat!I$1","v":0},{"$f":"Jurat!D$33","v":"00:00:00"},"Q1","2017-03-31","Region 5","Operating Revenue","Capitation","NH Rate Reconciliation",1.2,"NH Rate Reconciliation",{"$f":"IFERROR('LTC Rev-Exp Region 5'!$D$12/'LTC Rev-Exp Region 5'!$D$9, 0)","v":{"v":0,"d":"$0.00"}},{"$f":"IFERROR('LTC Rev-Exp Region 5'!$E$12/'LTC Rev-Exp Region 5'!$E$9, 0)","v":{"v":0,"d":"$0.00"}},{"$f":"IFERROR('LTC Rev-Exp Region 5'!$F$12/'LTC Rev-Exp Region 5'!$F$9, 0)","v":{"v":0,"d":"$0.00"}},{"$f":"IFERROR('LTC Rev-Exp Region 5'!$G$12/'LTC Rev-Exp Region 5'!$G$9, 0)","v":{"v":0,"d":"$0.00"}}]
["LTC",null,null,{"$f":"Jurat!I$1","v":0},{"$f":"Jurat!D$33","v":"00:00:00"},"Q1","2017-03-31","Region 5","Operating Revenue","Other Revenue","Other Revenue",1.3,"Other Revenue",{"$f":"IFERROR('LTC Rev-Exp Region 5'!$D$13/'LTC Rev-Exp Region 5'!$D$9, 0)","v":{"v":0,"d":"$0.00"}},{"$f":"IFERROR('LTC Rev-Exp Region 5'!$E$13/'LTC Rev-Exp Region 5'!$E$9, 0)","v":{"v":0,"d":"$0.00"}},{"$f":"IFERROR('LTC Rev-Exp Region 5'!$F$13/'LTC Rev-Exp Region 5'!$F$9, 0)","v":{"v":0,"d":"$0.00"}},{"$f":"IFERROR('LTC Rev-Exp Region 5'!$G$13/'LTC Rev-Exp Region 5'!$G$9, 0)","v":{"v":0,"d":"$0.00"}}]
["LTC",null,null,{"$f":"Jurat!I$1","v":0},{"$f":"Jurat!D$33","v":"00:00:00"},"Q1","2017-03-31","Region 5","Operating Expense","Medical Expense","NF & Hospice","2.3","Nursing Facility FFS (Medicaid)",{"$f":"IFERROR('LTC Rev-Exp Region 5'!$D$19/'LTC Rev-Exp Region 5'!$D$9, 0)","v":{"v":0,"d":"$0.00"}},{"$f":"IFERROR('LTC Rev-Exp Region 5'!$E$19/'LTC Rev-Exp Region 5'!$E$9, 0)","v":{"v":0,"d":"$0.00"}},{"$f":"IFERROR('LTC Rev-Exp Region 5'!$F$19/'LTC Rev-Exp Region 5'!$F$9, 0)","v":{"v":0,"d":"$0.00"}},{"$f":"IFERROR('LTC Rev-Exp Region 5'!$G$19/'LTC Rev-Exp Region 5'!$G$9, 0)","v":{"v":0,"d":"$0.00"}}]
["LTC",null,null,{"$f":"Jurat!I$1","v":0},{"$f":"Jurat!D$33","v":"00:00:00"},"Q1","2017-03-31","Region 5","Operating Expense","Medical Expense","NF & Hospice","2.4","Nursing Facility FFS (Crossover)",{"$f":"IFERROR('LTC Rev-Exp Region 5'!$D$20/'LTC Rev-Exp Region 5'!$D$9, 0)","v":{"v":0,"d":"$0.00"}},{"$f":"IFERROR('LTC Rev-Exp Region 5'!$E$20/'LTC Rev-Exp Region 5'!$E$9, 0)","v":{"v":0,"d":"$0.00"}},{"$f":"IFERROR('LTC Rev-Exp Region 5'!$F$20/'LTC Rev-Exp Region 5'!$F$9, 0)","v":{"v":0,"d":"$0.00"}},{"$f":"IFERROR('LTC Rev-Exp Region 5'!$G$20/'LTC Rev-Exp Region 5'!$G$9, 0)","v":{"v":0,"d":"$0.00"}}]
["LTC",null,null,{"$f":"Jurat!I$1","v":0},{"$f":"Jurat!D$33","v":"00:00:00"},"Q1","2017-03-31","Region 5","Operating Expense","Medical Expense","NF & Hospice","2.6","Hospice FFS",{"$f":"IFERROR('LTC Rev-Exp Region 5'!$D$22/'LTC Rev-Exp Region 5'!$D$9, 0)","v":{"v":0,"d":"$0.00"}},{"$f":"IFERROR('LTC Rev-Exp Region 5'!$E$22/'LTC Rev-Exp Region 5'!$E$9, 0)","v":{"v":0,"d":"$0.00"}},{"$f":"IFERROR('LTC Rev-Exp Region 5'!$F$22/'LTC Rev-Exp Region 5'!$F$9, 0)","v":{"v":0,"d":"$0.00"}},{"$f":"IFERROR('LTC Rev-Exp Region 5'!$G$22/'LTC Rev-Exp Region 5'!$G$9, 0)","v":{"v":0,"d":"$0.00"}}]
["LTC",null,null,{"$f":"Jurat!I$1","v":0},{"$f":"Jurat!D$33","v":"00:00:00"},"Q1","2017-03-31","Region 5","Operating Expense","Medical Expense","NF & Hospice","2.7","Ending IBNP for NF & Hospice",{"$f":"IFERROR('LTC Rev-Exp Region 5'!$D$23/'LTC Rev-Exp Region 5'!$D$9, 0)","v":{"v":0,"d":"$0.00"}},{"$f":"IFERROR('LTC Rev-Exp Region 5'!$E$23/'LTC Rev-Exp Region 5'!$E$9, 0)","v":{"v":0,"d":"$0.00"}},{"$f":"IFERROR('LTC Rev-Exp Region 5'!$F$23/'LTC Rev-Exp Region 5'!$F$9, 0)","v":{"v":0,"d":"$0.00"}},{"$f":"IFERROR('LTC Rev-Exp Region 5'!$G$23/'LTC Rev-Exp Region 5'!$G$9, 0)","v":{"v":0,"d":"$0.00"}}]
["LTC",null,null,{"$f":"Jurat!I$1","v":0},{"$f":"Jurat!D$33","v":"00:00:00"},"Q1","2017-03-31","Region 5","Operating Expense","Medical Expense","NF & Hospice","2.8","NF & Hospice Subcapitated",{"$f":"IFERROR('LTC Rev-Exp Region 5'!$D$24/'LTC Rev-Exp Region 5'!$D$9, 0)","v":{"v":0,"d":"$0.00"}},{"$f":"IFERROR('LTC Rev-Exp Region 5'!$E$24/'LTC Rev-Exp Region 5'!$E$9, 0)","v":{"v":0,"d":"$0.00"}},{"$f":"IFERROR('LTC Rev-Exp Region 5'!$F$24/'LTC Rev-Exp Region 5'!$F$9, 0)","v":{"v":0,"d":"$0.00"}},{"$f":"IFERROR('LTC Rev-Exp Region 5'!$G$24/'LTC Rev-Exp Region 5'!$G$9, 0)","v":{"v":0,"d":"$0.00"}}]
["LTC",null,null,{"$f":"Jurat!I$1","v":0},{"$f":"Jurat!D$33","v":"00:00:00"},"Q1","2017-03-31","Region 5","Operating Expense","Medical Expense","NF & Hospice","2.9","NF & Hospice Settlements",{"$f":"IFERROR('LTC Rev-Exp Region 5'!$D$25/'LTC Rev-Exp Region 5'!$D$9, 0)","v":{"v":0,"d":"$0.00"}},{"$f":"IFERROR('LTC Rev-Exp Region 5'!$E$25/'LTC Rev-Exp Region 5'!$E$9, 0)","v":{"v":0,"d":"$0.00"}},{"$f":"IFERROR('LTC Rev-Exp Region 5'!$F$25/'LTC Rev-Exp Region 5'!$F$9, 0)","v":{"v":0,"d":"$0.00"}},{"$f":"IFERROR('LTC Rev-Exp Region 5'!$G$25/'LTC Rev-Exp Region 5'!$G$9, 0)","v":{"v":0,"d":"$0.00"}}]
["LTC",null,null,{"$f":"Jurat!I$1","v":0},{"$f":"Jurat!D$33","v":"00:00:00"},"Q1","2017-03-31","Region 5","Operating Expense","Medical Expense","LTC Services","2.11","Assisted Living FFS",{"$f":"IFERROR('LTC Rev-Exp Region 5'!$D$27/'LTC Rev-Exp Region 5'!$D$9, 0)","v":{"v":0,"d":"$0.00"}},{"$f":"IFERROR('LTC Rev-Exp Region 5'!$E$27/'LTC Rev-Exp Region 5'!$E$9, 0)","v":{"v":0,"d":"$0.00"}},{"$f":"IFERROR('LTC Rev-Exp Region 5'!$F$27/'LTC Rev-Exp Region 5'!$F$9, 0)","v":{"v":0,"d":"$0.00"}},{"$f":"IFERROR('LTC Rev-Exp Region 5'!$G$27/'LTC Rev-Exp Region 5'!$G$9, 0)","v":{"v":0,"d":"$0.00"}}]
["LTC",null,null,{"$f":"Jurat!I$1","v":0},{"$f":"Jurat!D$33","v":"00:00:00"},"Q1","2017-03-31","Region 5","Operating Expense","Medical Expense","LTC Services","2.12","Home Health FFS",{"$f":"IFERROR('LTC Rev-Exp Region 5'!$D$28/'LTC Rev-Exp Region 5'!$D$9, 0)","v":{"v":0,"d":"$0.00"}},{"$f":"IFERROR('LTC Rev-Exp Region 5'!$E$28/'LTC Rev-Exp Region 5'!$E$9, 0)","v":{"v":0,"d":"$0.00"}},{"$f":"IFERROR('LTC Rev-Exp Region 5'!$F$28/'LTC Rev-Exp Region 5'!$F$9, 0)","v":{"v":0,"d":"$0.00"}},{"$f":"IFERROR('LTC Rev-Exp Region 5'!$G$28/'LTC Rev-Exp Region 5'!$G$9, 0)","v":{"v":0,"d":"$0.00"}}]
["LTC",null,null,{"$f":"Jurat!I$1","v":0},{"$f":"Jurat!D$33","v":"00:00:00"},"Q1","2017-03-31","Region 5","Operating Expense","Medical Expense","LTC Services","2.13","Medical Equipment/Supplies FFS",{"$f":"IFERROR('LTC Rev-Exp Region 5'!$D$29/'LTC Rev-Exp Region 5'!$D$9, 0)","v":{"v":0,"d":"$0.00"}},{"$f":"IFERROR('LTC Rev-Exp Region 5'!$E$29/'LTC Rev-Exp Region 5'!$E$9, 0)","v":{"v":0,"d":"$0.00"}},{"$f":"IFERROR('LTC Rev-Exp Region 5'!$F$29/'LTC Rev-Exp Region 5'!$F$9, 0)","v":{"v":0,"d":"$0.00"}},{"$f":"IFERROR('LTC Rev-Exp Region 5'!$G$29/'LTC Rev-Exp Region 5'!$G$9, 0)","v":{"v":0,"d":"$0.00"}}]
["LTC",null,null,{"$f":"Jurat!I$1","v":0},{"$f":"Jurat!D$33","v":"00:00:00"},"Q1","2017-03-31","Region 5","Operating Expense","Medical Expense","LTC Services","2.14","Therapy FFS",{"$f":"IFERROR('LTC Rev-Exp Region 5'!$D$30/'LTC Rev-Exp Region 5'!$D$9, 0)","v":{"v":0,"d":"$0.00"}},{"$f":"IFERROR('LTC Rev-Exp Region 5'!$E$30/'LTC Rev-Exp Region 5'!$E$9, 0)","v":{"v":0,"d":"$0.00"}},{"$f":"IFERROR('LTC Rev-Exp Region 5'!$F$30/'LTC Rev-Exp Region 5'!$F$9, 0)","v":{"v":0,"d":"$0.00"}},{"$f":"IFERROR('LTC Rev-Exp Region 5'!$G$30/'LTC Rev-Exp Region 5'!$G$9, 0)","v":{"v":0,"d":"$0.00"}}]
["LTC",null,null,{"$f":"Jurat!I$1","v":0},{"$f":"Jurat!D$33","v":"00:00:00"},"Q1","2017-03-31","Region 5","Operating Expense","Medical Expense","LTC Services","2.15","Transportation FFS",{"$f":"IFERROR('LTC Rev-Exp Region 5'!$D$31/'LTC Rev-Exp Region 5'!$D$9, 0)","v":{"v":0,"d":"$0.00"}},{"$f":"IFERROR('LTC Rev-Exp Region 5'!$E$31/'LTC Rev-Exp Region 5'!$E$9, 0)","v":{"v":0,"d":"$0.00"}},{"$f":"IFERROR('LTC Rev-Exp Region 5'!$F$31/'LTC Rev-Exp Region 5'!$F$9, 0)","v":{"v":0,"d":"$0.00"}},{"$f":"IFERROR('LTC Rev-Exp Region 5'!$G$31/'LTC Rev-Exp Region 5'!$G$9, 0)","v":{"v":0,"d":"$0.00"}}]
["LTC",null,null,{"$f":"Jurat!I$1","v":0},{"$f":"Jurat!D$33","v":"00:00:00"},"Q1","2017-03-31","Region 5","Operating Expense","Medical Expense","LTC Services","2.16","Case Management FFS (Plan Provided)",{"$f":"IFERROR('LTC Rev-Exp Region 5'!$D$32/'LTC Rev-Exp Region 5'!$D$9, 0)","v":{"v":0,"d":"$0.00"}},{"$f":"IFERROR('LTC Rev-Exp Region 5'!$E$32/'LTC Rev-Exp Region 5'!$E$9, 0)","v":{"v":0,"d":"$0.00"}},{"$f":"IFERROR('LTC Rev-Exp Region 5'!$F$32/'LTC Rev-Exp Region 5'!$F$9, 0)","v":{"v":0,"d":"$0.00"}},{"$f":"IFERROR('LTC Rev-Exp Region 5'!$G$32/'LTC Rev-Exp Region 5'!$G$9, 0)","v":{"v":0,"d":"$0.00"}}]
["LTC",null,null,{"$f":"Jurat!I$1","v":0},{"$f":"Jurat!D$33","v":"00:00:00"},"Q1","2017-03-31","Region 5","Operating Expense","Medical Expense","LTC Services","2.17","Case Management FF (Non-Plan Provided)",{"$f":"IFERROR('LTC Rev-Exp Region 5'!$D$33/'LTC Rev-Exp Region 5'!$D$9, 0)","v":{"v":0,"d":"$0.00"}},{"$f":"IFERROR('LTC Rev-Exp Region 5'!$E$33/'LTC Rev-Exp Region 5'!$E$9, 0)","v":{"v":0,"d":"$0.00"}},{"$f":"IFERROR('LTC Rev-Exp Region 5'!$F$33/'LTC Rev-Exp Region 5'!$F$9, 0)","v":{"v":0,"d":"$0.00"}},{"$f":"IFERROR('LTC Rev-Exp Region 5'!$G$33/'LTC Rev-Exp Region 5'!$G$9, 0)","v":{"v":0,"d":"$0.00"}}]
["LTC",null,null,{"$f":"Jurat!I$1","v":0},{"$f":"Jurat!D$33","v":"00:00:00"},"Q1","2017-03-31","Region 5","Operating Expense","Medical Expense","LTC Services","2.18","HCBS FFS",{"$f":"IFERROR('LTC Rev-Exp Region 5'!$D$34/'LTC Rev-Exp Region 5'!$D$9, 0)","v":{"v":0,"d":"$0.00"}},{"$f":"IFERROR('LTC Rev-Exp Region 5'!$E$34/'LTC Rev-Exp Region 5'!$E$9, 0)","v":{"v":0,"d":"$0.00"}},{"$f":"IFERROR('LTC Rev-Exp Region 5'!$F$34/'LTC Rev-Exp Region 5'!$F$9, 0)","v":{"v":0,"d":"$0.00"}},{"$f":"IFERROR('LTC Rev-Exp Region 5'!$G$34/'LTC Rev-Exp Region 5'!$G$9, 0)","v":{"v":0,"d":"$0.00"}}]
["LTC",null,null,{"$f":"Jurat!I$1","v":0},{"$f":"Jurat!D$33","v":"00:00:00"},"Q1","2017-03-31","Region 5","Operating Expense","Medical Expense","LTC Services","2.19","Subcapitated LTC Services",{"$f":"IFERROR('LTC Rev-Exp Region 5'!$D$35/'LTC Rev-Exp Region 5'!$D$9, 0)","v":{"v":0,"d":"$0.00"}},{"$f":"IFERROR('LTC Rev-Exp Region 5'!$E$35/'LTC Rev-Exp Region 5'!$E$9, 0)","v":{"v":0,"d":"$0.00"}},{"$f":"IFERROR('LTC Rev-Exp Region 5'!$F$35/'LTC Rev-Exp Region 5'!$F$9, 0)","v":{"v":0,"d":"$0.00"}},{"$f":"IFERROR('LTC Rev-Exp Region 5'!$G$35/'LTC Rev-Exp Region 5'!$G$9, 0)","v":{"v":0,"d":"$0.00"}}]
["LTC",null,null,{"$f":"Jurat!I$1","v":0},{"$f":"Jurat!D$33","v":"00:00:00"},"Q1","2017-03-31","Region 5","Operating Expense","Medical Expense","LTC Services","2.20","Ending IBNP for Long Term Care Services",{"$f":"IFERROR('LTC Rev-Exp Region 5'!$D$36/'LTC Rev-Exp Region 5'!$D$9, 0)","v":{"v":0,"d":"$0.00"}},{"$f":"IFERROR('LTC Rev-Exp Region 5'!$E$36/'LTC Rev-Exp Region 5'!$E$9, 0)","v":{"v":0,"d":"$0.00"}},{"$f":"IFERROR('LTC Rev-Exp Region 5'!$F$36/'LTC Rev-Exp Region 5'!$F$9, 0)","v":{"v":0,"d":"$0.00"}},{"$f":"IFERROR('LTC Rev-Exp Region 5'!$G$36/'LTC Rev-Exp Region 5'!$G$9, 0)","v":{"v":0,"d":"$0.00"}}]
["LTC",null,null,{"$f":"Jurat!I$1","v":0},{"$f":"Jurat!D$33","v":"00:00:00"},"Q1","2017-03-31","Region 5","Operating Expense","Medical Expense","LTC Services","2.21","LTC Services Settlements",{"$f":"IFERROR('LTC Rev-Exp Region 5'!$D$37/'LTC Rev-Exp Region 5'!$D$9, 0)","v":{"v":0,"d":"$0.00"}},{"$f":"IFERROR('LTC Rev-Exp Region 5'!$E$37/'LTC Rev-Exp Region 5'!$E$9, 0)","v":{"v":0,"d":"$0.00"}},{"$f":"IFERROR('LTC Rev-Exp Region 5'!$F$37/'LTC Rev-Exp Region 5'!$F$9, 0)","v":{"v":0,"d":"$0.00"}},{"$f":"IFERROR('LTC Rev-Exp Region 5'!$G$37/'LTC Rev-Exp Region 5'!$G$9, 0)","v":{"v":0,"d":"$0.00"}}]
["LTC",null,null,{"$f":"Jurat!I$1","v":0},{"$f":"Jurat!D$33","v":"00:00:00"},"Q1","2017-03-31","Region 5","Operating Expense","Medical Expense","Expanded Benefits","3.1","Expanded Benefits FFS",{"$f":"IFERROR('LTC Rev-Exp Region 5'!$D$39/'LTC Rev-Exp Region 5'!$D$9, 0)","v":{"v":0,"d":"$0.00"}},{"$f":"IFERROR('LTC Rev-Exp Region 5'!$E$39/'LTC Rev-Exp Region 5'!$E$9, 0)","v":{"v":0,"d":"$0.00"}},{"$f":"IFERROR('LTC Rev-Exp Region 5'!$F$39/'LTC Rev-Exp Region 5'!$F$9, 0)","v":{"v":0,"d":"$0.00"}},{"$f":"IFERROR('LTC Rev-Exp Region 5'!$G$39/'LTC Rev-Exp Region 5'!$G$9, 0)","v":{"v":0,"d":"$0.00"}}]
["LTC",null,null,{"$f":"Jurat!I$1","v":0},{"$f":"Jurat!D$33","v":"00:00:00"},"Q1","2017-03-31","Region 5","Operating Expense","Medical Expense","Expanded Benefits","3.2","Expanded Benefits Subcapitation",{"$f":"IFERROR('LTC Rev-Exp Region 5'!$D$40/'LTC Rev-Exp Region 5'!$D$9, 0)","v":{"v":0,"d":"$0.00"}},{"$f":"IFERROR('LTC Rev-Exp Region 5'!$E$40/'LTC Rev-Exp Region 5'!$E$9, 0)","v":{"v":0,"d":"$0.00"}},{"$f":"IFERROR('LTC Rev-Exp Region 5'!$F$40/'LTC Rev-Exp Region 5'!$F$9, 0)","v":{"v":0,"d":"$0.00"}},{"$f":"IFERROR('LTC Rev-Exp Region 5'!$G$40/'LTC Rev-Exp Region 5'!$G$9, 0)","v":{"v":0,"d":"$0.00"}}]
["LTC",null,null,{"$f":"Jurat!I$1","v":0},{"$f":"Jurat!D$33","v":"00:00:00"},"Q1","2017-03-31","Region 5","Operating Expense","Medical Expense","Expanded Benefits","3.3","Ending IBNP for Expanded Benefits",{"$f":"IFERROR('LTC Rev-Exp Region 5'!$D$41/'LTC Rev-Exp Region 5'!$D$9, 0)","v":{"v":0,"d":"$0.00"}},{"$f":"IFERROR('LTC Rev-Exp Region 5'!$E$41/'LTC Rev-Exp Region 5'!$E$9, 0)","v":{"v":0,"d":"$0.00"}},{"$f":"IFERROR('LTC Rev-Exp Region 5'!$F$41/'LTC Rev-Exp Region 5'!$F$9, 0)","v":{"v":0,"d":"$0.00"}},{"$f":"IFERROR('LTC Rev-Exp Region 5'!$G$41/'LTC Rev-Exp Region 5'!$G$9, 0)","v":{"v":0,"d":"$0.00"}}]
["LTC",null,null,{"$f":"Jurat!I$1","v":0},{"$f":"Jurat!D$33","v":"00:00:00"},"Q1","2017-03-31","Region 5","Operating Expense","Medical Expense","Expanded Benefits","3.4","Expanded Benefits Settlements",{"$f":"IFERROR('LTC Rev-Exp Region 5'!$D$42/'LTC Rev-Exp Region 5'!$D$9, 0)","v":{"v":0,"d":"$0.00"}},{"$f":"IFERROR('LTC Rev-Exp Region 5'!$E$42/'LTC Rev-Exp Region 5'!$E$9, 0)","v":{"v":0,"d":"$0.00"}},{"$f":"IFERROR('LTC Rev-Exp Region 5'!$F$42/'LTC Rev-Exp Region 5'!$F$9, 0)","v":{"v":0,"d":"$0.00"}},{"$f":"IFERROR('LTC Rev-Exp Region 5'!$G$42/'LTC Rev-Exp Region 5'!$G$9, 0)","v":{"v":0,"d":"$0.00"}}]
["LTC",null,null,{"$f":"Jurat!I$1","v":0},{"$f":"Jurat!D$33","v":"00:00:00"},"Q1","2017-03-31","Region 5","Operating Expense","Medical Expense","Other Medical","4.5","TPL & Fraud/Abuse Recoveries",{"$f":"IFERROR('LTC Rev-Exp Region 5'!$D$48/'LTC Rev-Exp Region 5'!$D$9, 0)","v":{"v":0,"d":"$0.00"}},{"$f":"IFERROR('LTC Rev-Exp Region 5'!$E$48/'LTC Rev-Exp Region 5'!$E$9, 0)","v":{"v":0,"d":"$0.00"}},{"$f":"IFERROR('LTC Rev-Exp Region 5'!$F$48/'LTC Rev-Exp Region 5'!$F$9, 0)","v":{"v":0,"d":"$0.00"}},{"$f":"IFERROR('LTC Rev-Exp Region 5'!$G$48/'LTC Rev-Exp Region 5'!$G$9, 0)","v":{"v":0,"d":"$0.00"}}]
["LTC",null,null,{"$f":"Jurat!I$1","v":0},{"$f":"Jurat!D$33","v":"00:00:00"},"Q1","2017-03-31","Region 5","Operating Expense","Medical Expense","Other Medical","4.6.1","Premium Deficiency Reserve",{"$f":"IFERROR('LTC Rev-Exp Region 5'!$D$49/'LTC Rev-Exp Region 5'!$D$9, 0)","v":{"v":0,"d":"$0.00"}},{"$f":"IFERROR('LTC Rev-Exp Region 5'!$E$49/'LTC Rev-Exp Region 5'!$E$9, 0)","v":{"v":0,"d":"$0.00"}},{"$f":"IFERROR('LTC Rev-Exp Region 5'!$F$49/'LTC Rev-Exp Region 5'!$F$9, 0)","v":{"v":0,"d":"$0.00"}},{"$f":"IFERROR('LTC Rev-Exp Region 5'!$G$49/'LTC Rev-Exp Region 5'!$G$9, 0)","v":{"v":0,"d":"$0.00"}}]
["LTC",null,null,{"$f":"Jurat!I$1","v":0},{"$f":"Jurat!D$33","v":"00:00:00"},"Q1","2017-03-31","Region 5","Operating Expense","Medical Expense","Other Medical","4.8","Reinsurance Premiums",{"$f":"IFERROR('LTC Rev-Exp Region 5'!$D$51/'LTC Rev-Exp Region 5'!$D$9, 0)","v":{"v":0,"d":"$0.00"}},{"$f":"IFERROR('LTC Rev-Exp Region 5'!$E$51/'LTC Rev-Exp Region 5'!$E$9, 0)","v":{"v":0,"d":"$0.00"}},{"$f":"IFERROR('LTC Rev-Exp Region 5'!$F$51/'LTC Rev-Exp Region 5'!$F$9, 0)","v":{"v":0,"d":"$0.00"}},{"$f":"IFERROR('LTC Rev-Exp Region 5'!$G$51/'LTC Rev-Exp Region 5'!$G$9, 0)","v":{"v":0,"d":"$0.00"}}]
["LTC",null,null,{"$f":"Jurat!I$1","v":0},{"$f":"Jurat!D$33","v":"00:00:00"},"Q1","2017-03-31","Region 5","Operating Expense","Medical Expense","Other Medical","4.9","Reinsurance Recoveries",{"$f":"IFERROR('LTC Rev-Exp Region 5'!$D$52/'LTC Rev-Exp Region 5'!$D$9, 0)","v":{"v":0,"d":"$0.00"}},{"$f":"IFERROR('LTC Rev-Exp Region 5'!$E$52/'LTC Rev-Exp Region 5'!$E$9, 0)","v":{"v":0,"d":"$0.00"}},{"$f":"IFERROR('LTC Rev-Exp Region 5'!$F$52/'LTC Rev-Exp Region 5'!$F$9, 0)","v":{"v":0,"d":"$0.00"}},{"$f":"IFERROR('LTC Rev-Exp Region 5'!$G$52/'LTC Rev-Exp Region 5'!$G$9, 0)","v":{"v":0,"d":"$0.00"}}]
["LTC",null,null,{"$f":"Jurat!I$1","v":0},{"$f":"Jurat!D$33","v":"00:00:00"},"Q1","2017-03-31","Region 5","Operating Expense","Administrative Expense","Administrative","5.1","Salaries & Benefits",{"$f":"IFERROR('LTC Rev-Exp Region 5'!$D$57/'LTC Rev-Exp Region 5'!$D$9, 0)","v":{"v":0,"d":"$0.00"}},{"$f":"IFERROR('LTC Rev-Exp Region 5'!$E$57/'LTC Rev-Exp Region 5'!$D$9, 0)","v":{"v":0,"d":"$0.00"}},{"$f":"IFERROR('LTC Rev-Exp Region 5'!$F$57/'LTC Rev-Exp Region 5'!$D$9, 0)","v":{"v":0,"d":"$0.00"}},{"$f":"IFERROR('LTC Rev-Exp Region 5'!$G$57/'LTC Rev-Exp Region 5'!$D$9, 0)","v":{"v":0,"d":"$0.00"}}]
["LTC",null,null,{"$f":"Jurat!I$1","v":0},{"$f":"Jurat!D$33","v":"00:00:00"},"Q1","2017-03-31","Region 5","Operating Expense","Administrative Expense","Administrative","5.2","Administrative Services",{"$f":"IFERROR('LTC Rev-Exp Region 5'!$D$58/'LTC Rev-Exp Region 5'!$D$9, 0)","v":{"v":0,"d":"$0.00"}},{"$f":"IFERROR('LTC Rev-Exp Region 5'!$E$58/'LTC Rev-Exp Region 5'!$D$9, 0)","v":{"v":0,"d":"$0.00"}},{"$f":"IFERROR('LTC Rev-Exp Region 5'!$F$58/'LTC Rev-Exp Region 5'!$D$9, 0)","v":{"v":0,"d":"$0.00"}},{"$f":"IFERROR('LTC Rev-Exp Region 5'!$G$58/'LTC Rev-Exp Region 5'!$D$9, 0)","v":{"v":0,"d":"$0.00"}}]
["LTC",null,null,{"$f":"Jurat!I$1","v":0},{"$f":"Jurat!D$33","v":"00:00:00"},"Q1","2017-03-31","Region 5","Operating Expense","Administrative Expense","Administrative","5.3","Information Systems",{"$f":"IFERROR('LTC Rev-Exp Region 5'!$D$59/'LTC Rev-Exp Region 5'!$D$9, 0)","v":{"v":0,"d":"$0.00"}},{"$f":"IFERROR('LTC Rev-Exp Region 5'!$E$59/'LTC Rev-Exp Region 5'!$D$9, 0)","v":{"v":0,"d":"$0.00"}},{"$f":"IFERROR('LTC Rev-Exp Region 5'!$F$59/'LTC Rev-Exp Region 5'!$D$9, 0)","v":{"v":0,"d":"$0.00"}},{"$f":"IFERROR('LTC Rev-Exp Region 5'!$G$59/'LTC Rev-Exp Region 5'!$D$9, 0)","v":{"v":0,"d":"$0.00"}}]
["LTC",null,null,{"$f":"Jurat!I$1","v":0},{"$f":"Jurat!D$33","v":"00:00:00"},"Q1","2017-03-31","Region 5","Operating Expense","Administrative Expense","Administrative","5.4","Marketing Expenses",{"$f":"IFERROR('LTC Rev-Exp Region 5'!$D$60/'LTC Rev-Exp Region 5'!$D$9, 0)","v":{"v":0,"d":"$0.00"}},{"$f":"IFERROR('LTC Rev-Exp Region 5'!$E$60/'LTC Rev-Exp Region 5'!$D$9, 0)","v":{"v":0,"d":"$0.00"}},{"$f":"IFERROR('LTC Rev-Exp Region 5'!$F$60/'LTC Rev-Exp Region 5'!$D$9, 0)","v":{"v":0,"d":"$0.00"}},{"$f":"IFERROR('LTC Rev-Exp Region 5'!$G$60/'LTC Rev-Exp Region 5'!$D$9, 0)","v":{"v":0,"d":"$0.00"}}]
["LTC",null,null,{"$f":"Jurat!I$1","v":0},{"$f":"Jurat!D$33","v":"00:00:00"},"Q1","2017-03-31","Region 5","Operating Expense","Administrative Expense","Administrative","5.5","General  Administration",{"$f":"IFERROR('LTC Rev-Exp Region 5'!$D$61/'LTC Rev-Exp Region 5'!$D$9, 0)","v":{"v":0,"d":"$0.00"}},{"$f":"IFERROR('LTC Rev-Exp Region 5'!$E$61/'LTC Rev-Exp Region 5'!$D$9, 0)","v":{"v":0,"d":"$0.00"}},{"$f":"IFERROR('LTC Rev-Exp Region 5'!$F$61/'LTC Rev-Exp Region 5'!$D$9, 0)","v":{"v":0,"d":"$0.00"}},{"$f":"IFERROR('LTC Rev-Exp Region 5'!$G$61/'LTC Rev-Exp Region 5'!$D$9, 0)","v":{"v":0,"d":"$0.00"}}]
["LTC",null,null,{"$f":"Jurat!I$1","v":0},{"$f":"Jurat!D$33","v":"00:00:00"},"Q1","2017-03-31","Region 5","Operating Expense","Administrative Expense","Administrative","5.6","Compliance/Regulatory",{"$f":"IFERROR('LTC Rev-Exp Region 5'!$D$62/'LTC Rev-Exp Region 5'!$D$9, 0)","v":{"v":0,"d":"$0.00"}},{"$f":"IFERROR('LTC Rev-Exp Region 5'!$E$62/'LTC Rev-Exp Region 5'!$D$9, 0)","v":{"v":0,"d":"$0.00"}},{"$f":"IFERROR('LTC Rev-Exp Region 5'!$F$62/'LTC Rev-Exp Region 5'!$D$9, 0)","v":{"v":0,"d":"$0.00"}},{"$f":"IFERROR('LTC Rev-Exp Region 5'!$G$62/'LTC Rev-Exp Region 5'!$D$9, 0)","v":{"v":0,"d":"$0.00"}}]
["LTC",null,null,{"$f":"Jurat!I$1","v":0},{"$f":"Jurat!D$33","v":"00:00:00"},"Q1","2017-03-31","Region 5","Operating Expense","Taxes & Fees","Taxes & Fees","6.1","State Premium Tax",{"$f":"IFERROR('LTC Rev-Exp Region 5'!$D$64/'LTC Rev-Exp Region 5'!$D$9, 0)","v":{"v":0,"d":"$0.00"}},{"$f":"IFERROR('LTC Rev-Exp Region 5'!$E$64/'LTC Rev-Exp Region 5'!$E$9, 0)","v":{"v":0,"d":"$0.00"}},{"$f":"IFERROR('LTC Rev-Exp Region 5'!$F$64/'LTC Rev-Exp Region 5'!$F$9, 0)","v":{"v":0,"d":"$0.00"}},{"$f":"IFERROR('LTC Rev-Exp Region 5'!$G$64/'LTC Rev-Exp Region 5'!$G$9, 0)","v":{"v":0,"d":"$0.00"}}]
["LTC",null,null,{"$f":"Jurat!I$1","v":0},{"$f":"Jurat!D$33","v":"00:00:00"},"Q1","2017-03-31","Region 5","Operating Expense","Taxes & Fees","Taxes & Fees","6.2","Department of Insurance Assessments",{"$f":"IFERROR('LTC Rev-Exp Region 5'!$D$65/'LTC Rev-Exp Region 5'!$D$9, 0)","v":{"v":0,"d":"$0.00"}},{"$f":"IFERROR('LTC Rev-Exp Region 5'!$E$65/'LTC Rev-Exp Region 5'!$E$9, 0)","v":{"v":0,"d":"$0.00"}},{"$f":"IFERROR('LTC Rev-Exp Region 5'!$F$65/'LTC Rev-Exp Region 5'!$F$9, 0)","v":{"v":0,"d":"$0.00"}},{"$f":"IFERROR('LTC Rev-Exp Region 5'!$G$65/'LTC Rev-Exp Region 5'!$G$9, 0)","v":{"v":0,"d":"$0.00"}}]
["LTC",null,null,{"$f":"Jurat!I$1","v":0},{"$f":"Jurat!D$33","v":"00:00:00"},"Q1","2017-03-31","Region 5","Non-Operating Expense","Income Tax Expense","Income Tax Expense","9.0","Income Tax Expense",{"$f":"IFERROR('LTC Rev-Exp Region 5'!$D$72/'LTC Rev-Exp Region 5'!$D$9, 0)","v":{"v":0,"d":"$0.00"}},{"$f":"IFERROR('LTC Rev-Exp Region 5'!$E$72/'LTC Rev-Exp Region 5'!$E$9, 0)","v":{"v":0,"d":"$0.00"}},{"$f":"IFERROR('LTC Rev-Exp Region 5'!$F$72/'LTC Rev-Exp Region 5'!$F$9, 0)","v":{"v":0,"d":"$0.00"}},{"$f":"IFERROR('LTC Rev-Exp Region 5'!$G$72/'LTC Rev-Exp Region 5'!$G$9, 0)","v":{"v":0,"d":"$0.00"}}]
["LTC",null,null,{"$f":"Jurat!I$1","v":0},{"$f":"Jurat!D$33","v":"00:00:00"},"Q2","2017-06-30","Region 5","Operating Revenue","Capitation","Capitation",1.1,"Capitation",{"$f":"IFERROR('LTC Rev-Exp Region 5'!$H$11/'LTC Rev-Exp Region 5'!$H$9, 0)","v":{"v":0,"d":"$0.00"}},{"$f":"IFERROR('LTC Rev-Exp Region 5'!$I$11/'LTC Rev-Exp Region 5'!$I$9, 0)","v":{"v":0,"d":"$0.00"}},{"$f":"IFERROR('LTC Rev-Exp Region 5'!$J$11/'LTC Rev-Exp Region 5'!$J$9, 0)","v":{"v":0,"d":"$0.00"}},{"$f":"IFERROR('LTC Rev-Exp Region 5'!$K$11/'LTC Rev-Exp Region 5'!$K$9, 0)","v":{"v":0,"d":"$0.00"}}]
["LTC",null,null,{"$f":"Jurat!I$1","v":0},{"$f":"Jurat!D$33","v":"00:00:00"},"Q2","2017-06-30","Region 5","Operating Revenue","Capitation","NH Rate Reconciliation",1.2,"NH Rate Reconciliation",{"$f":"IFERROR('LTC Rev-Exp Region 5'!$H$12/'LTC Rev-Exp Region 5'!$H$9, 0)","v":{"v":0,"d":"$0.00"}},{"$f":"IFERROR('LTC Rev-Exp Region 5'!$I$12/'LTC Rev-Exp Region 5'!$I$9, 0)","v":{"v":0,"d":"$0.00"}},{"$f":"IFERROR('LTC Rev-Exp Region 5'!$J$12/'LTC Rev-Exp Region 5'!$J$9, 0)","v":{"v":0,"d":"$0.00"}},{"$f":"IFERROR('LTC Rev-Exp Region 5'!$K$12/'LTC Rev-Exp Region 5'!$K$9, 0)","v":{"v":0,"d":"$0.00"}}]
["LTC",null,null,{"$f":"Jurat!I$1","v":0},{"$f":"Jurat!D$33","v":"00:00:00"},"Q2","2017-06-30","Region 5","Operating Revenue","Other Revenue","Other Revenue",1.3,"Other Revenue",{"$f":"IFERROR('LTC Rev-Exp Region 5'!$H$13/'LTC Rev-Exp Region 5'!$H$9, 0)","v":{"v":0,"d":"$0.00"}},{"$f":"IFERROR('LTC Rev-Exp Region 5'!$I$13/'LTC Rev-Exp Region 5'!$I$9, 0)","v":{"v":0,"d":"$0.00"}},{"$f":"IFERROR('LTC Rev-Exp Region 5'!$J$13/'LTC Rev-Exp Region 5'!$J$9, 0)","v":{"v":0,"d":"$0.00"}},{"$f":"IFERROR('LTC Rev-Exp Region 5'!$K$13/'LTC Rev-Exp Region 5'!$K$9, 0)","v":{"v":0,"d":"$0.00"}}]
["LTC",null,null,{"$f":"Jurat!I$1","v":0},{"$f":"Jurat!D$33","v":"00:00:00"},"Q2","2017-06-30","Region 5","Operating Expense","Medical Expense","NF & Hospice","2.3","Nursing Facility FFS (Medicaid)",{"$f":"IFERROR('LTC Rev-Exp Region 5'!$H$19/'LTC Rev-Exp Region 5'!$H$9, 0)","v":{"v":0,"d":"$0.00"}},{"$f":"IFERROR('LTC Rev-Exp Region 5'!$I$19/'LTC Rev-Exp Region 5'!$I$9, 0)","v":{"v":0,"d":"$0.00"}},{"$f":"IFERROR('LTC Rev-Exp Region 5'!$J$19/'LTC Rev-Exp Region 5'!$J$9, 0)","v":{"v":0,"d":"$0.00"}},{"$f":"IFERROR('LTC Rev-Exp Region 5'!$K$19/'LTC Rev-Exp Region 5'!$K$9, 0)","v":{"v":0,"d":"$0.00"}}]
["LTC",null,null,{"$f":"Jurat!I$1","v":0},{"$f":"Jurat!D$33","v":"00:00:00"},"Q2","2017-06-30","Region 5","Operating Expense","Medical Expense","NF & Hospice","2.4","Nursing Facility FFS (Crossover)",{"$f":"IFERROR('LTC Rev-Exp Region 5'!$H$20/'LTC Rev-Exp Region 5'!$H$9, 0)","v":{"v":0,"d":"$0.00"}},{"$f":"IFERROR('LTC Rev-Exp Region 5'!$I$20/'LTC Rev-Exp Region 5'!$I$9, 0)","v":{"v":0,"d":"$0.00"}},{"$f":"IFERROR('LTC Rev-Exp Region 5'!$J$20/'LTC Rev-Exp Region 5'!$J$9, 0)","v":{"v":0,"d":"$0.00"}},{"$f":"IFERROR('LTC Rev-Exp Region 5'!$K$20/'LTC Rev-Exp Region 5'!$K$9, 0)","v":{"v":0,"d":"$0.00"}}]
["LTC",null,null,{"$f":"Jurat!I$1","v":0},{"$f":"Jurat!D$33","v":"00:00:00"},"Q2","2017-06-30","Region 5","Operating Expense","Medical Expense","NF & Hospice","2.6","Hospice FFS",{"$f":"IFERROR('LTC Rev-Exp Region 5'!$H$22/'LTC Rev-Exp Region 5'!$H$9, 0)","v":{"v":0,"d":"$0.00"}},{"$f":"IFERROR('LTC Rev-Exp Region 5'!$I$22/'LTC Rev-Exp Region 5'!$I$9, 0)","v":{"v":0,"d":"$0.00"}},{"$f":"IFERROR('LTC Rev-Exp Region 5'!$J$22/'LTC Rev-Exp Region 5'!$J$9, 0)","v":{"v":0,"d":"$0.00"}},{"$f":"IFERROR('LTC Rev-Exp Region 5'!$K$22/'LTC Rev-Exp Region 5'!$K$9, 0)","v":{"v":0,"d":"$0.00"}}]
["LTC",null,null,{"$f":"Jurat!I$1","v":0},{"$f":"Jurat!D$33","v":"00:00:00"},"Q2","2017-06-30","Region 5","Operating Expense","Medical Expense","NF & Hospice","2.7","Ending IBNP for NF & Hospice",{"$f":"IFERROR('LTC Rev-Exp Region 5'!$H$23/'LTC Rev-Exp Region 5'!$H$9, 0)","v":{"v":0,"d":"$0.00"}},{"$f":"IFERROR('LTC Rev-Exp Region 5'!$I$23/'LTC Rev-Exp Region 5'!$I$9, 0)","v":{"v":0,"d":"$0.00"}},{"$f":"IFERROR('LTC Rev-Exp Region 5'!$J$23/'LTC Rev-Exp Region 5'!$J$9, 0)","v":{"v":0,"d":"$0.00"}},{"$f":"IFERROR('LTC Rev-Exp Region 5'!$K$23/'LTC Rev-Exp Region 5'!$K$9, 0)","v":{"v":0,"d":"$0.00"}}]
["LTC",null,null,{"$f":"Jurat!I$1","v":0},{"$f":"Jurat!D$33","v":"00:00:00"},"Q2","2017-06-30","Region 5","Operating Expense","Medical Expense","NF & Hospice","2.8","NF & Hospice Subcapitated",{"$f":"IFERROR('LTC Rev-Exp Region 5'!$H$24/'LTC Rev-Exp Region 5'!$H$9, 0)","v":{"v":0,"d":"$0.00"}},{"$f":"IFERROR('LTC Rev-Exp Region 5'!$I$24/'LTC Rev-Exp Region 5'!$I$9, 0)","v":{"v":0,"d":"$0.00"}},{"$f":"IFERROR('LTC Rev-Exp Region 5'!$J$24/'LTC Rev-Exp Region 5'!$J$9, 0)","v":{"v":0,"d":"$0.00"}},{"$f":"IFERROR('LTC Rev-Exp Region 5'!$K$24/'LTC Rev-Exp Region 5'!$K$9, 0)","v":{"v":0,"d":"$0.00"}}]
["LTC",null,null,{"$f":"Jurat!I$1","v":0},{"$f":"Jurat!D$33","v":"00:00:00"},"Q2","2017-06-30","Region 5","Operating Expense","Medical Expense","NF & Hospice","2.9","NF & Hospice Settlements",{"$f":"IFERROR('LTC Rev-Exp Region 5'!$H$25/'LTC Rev-Exp Region 5'!$H$9, 0)","v":{"v":0,"d":"$0.00"}},{"$f":"IFERROR('LTC Rev-Exp Region 5'!$I$25/'LTC Rev-Exp Region 5'!$I$9, 0)","v":{"v":0,"d":"$0.00"}},{"$f":"IFERROR('LTC Rev-Exp Region 5'!$J$25/'LTC Rev-Exp Region 5'!$J$9, 0)","v":{"v":0,"d":"$0.00"}},{"$f":"IFERROR('LTC Rev-Exp Region 5'!$K$25/'LTC Rev-Exp Region 5'!$K$9, 0)","v":{"v":0,"d":"$0.00"}}]
["LTC",null,null,{"$f":"Jurat!I$1","v":0},{"$f":"Jurat!D$33","v":"00:00:00"},"Q2","2017-06-30","Region 5","Operating Expense","Medical Expense","LTC Services","2.11","Assisted Living FFS",{"$f":"IFERROR('LTC Rev-Exp Region 5'!$H$27/'LTC Rev-Exp Region 5'!$H$9, 0)","v":{"v":0,"d":"$0.00"}},{"$f":"IFERROR('LTC Rev-Exp Region 5'!$I$27/'LTC Rev-Exp Region 5'!$I$9, 0)","v":{"v":0,"d":"$0.00"}},{"$f":"IFERROR('LTC Rev-Exp Region 5'!$J$27/'LTC Rev-Exp Region 5'!$J$9, 0)","v":{"v":0,"d":"$0.00"}},{"$f":"IFERROR('LTC Rev-Exp Region 5'!$K$27/'LTC Rev-Exp Region 5'!$K$9, 0)","v":{"v":0,"d":"$0.00"}}]
["LTC",null,null,{"$f":"Jurat!I$1","v":0},{"$f":"Jurat!D$33","v":"00:00:00"},"Q2","2017-06-30","Region 5","Operating Expense","Medical Expense","LTC Services","2.12","Home Health FFS",{"$f":"IFERROR('LTC Rev-Exp Region 5'!$H$28/'LTC Rev-Exp Region 5'!$H$9, 0)","v":{"v":0,"d":"$0.00"}},{"$f":"IFERROR('LTC Rev-Exp Region 5'!$I$28/'LTC Rev-Exp Region 5'!$I$9, 0)","v":{"v":0,"d":"$0.00"}},{"$f":"IFERROR('LTC Rev-Exp Region 5'!$J$28/'LTC Rev-Exp Region 5'!$J$9, 0)","v":{"v":0,"d":"$0.00"}},{"$f":"IFERROR('LTC Rev-Exp Region 5'!$K$28/'LTC Rev-Exp Region 5'!$K$9, 0)","v":{"v":0,"d":"$0.00"}}]
["LTC",null,null,{"$f":"Jurat!I$1","v":0},{"$f":"Jurat!D$33","v":"00:00:00"},"Q2","2017-06-30","Region 5","Operating Expense","Medical Expense","LTC Services","2.13","Medical Equipment/Supplies FFS",{"$f":"IFERROR('LTC Rev-Exp Region 5'!$H$29/'LTC Rev-Exp Region 5'!$H$9, 0)","v":{"v":0,"d":"$0.00"}},{"$f":"IFERROR('LTC Rev-Exp Region 5'!$I$29/'LTC Rev-Exp Region 5'!$I$9, 0)","v":{"v":0,"d":"$0.00"}},{"$f":"IFERROR('LTC Rev-Exp Region 5'!$J$29/'LTC Rev-Exp Region 5'!$J$9, 0)","v":{"v":0,"d":"$0.00"}},{"$f":"IFERROR('LTC Rev-Exp Region 5'!$K$29/'LTC Rev-Exp Region 5'!$K$9, 0)","v":{"v":0,"d":"$0.00"}}]
["LTC",null,null,{"$f":"Jurat!I$1","v":0},{"$f":"Jurat!D$33","v":"00:00:00"},"Q2","2017-06-30","Region 5","Operating Expense","Medical Expense","LTC Services","2.14","Therapy FFS",{"$f":"IFERROR('LTC Rev-Exp Region 5'!$H$30/'LTC Rev-Exp Region 5'!$H$9, 0)","v":{"v":0,"d":"$0.00"}},{"$f":"IFERROR('LTC Rev-Exp Region 5'!$I$30/'LTC Rev-Exp Region 5'!$I$9, 0)","v":{"v":0,"d":"$0.00"}},{"$f":"IFERROR('LTC Rev-Exp Region 5'!$J$30/'LTC Rev-Exp Region 5'!$J$9, 0)","v":{"v":0,"d":"$0.00"}},{"$f":"IFERROR('LTC Rev-Exp Region 5'!$K$30/'LTC Rev-Exp Region 5'!$K$9, 0)","v":{"v":0,"d":"$0.00"}}]
["LTC",null,null,{"$f":"Jurat!I$1","v":0},{"$f":"Jurat!D$33","v":"00:00:00"},"Q2","2017-06-30","Region 5","Operating Expense","Medical Expense","LTC Services","2.15","Transportation FFS",{"$f":"IFERROR('LTC Rev-Exp Region 5'!$H$31/'LTC Rev-Exp Region 5'!$H$9, 0)","v":{"v":0,"d":"$0.00"}},{"$f":"IFERROR('LTC Rev-Exp Region 5'!$I$31/'LTC Rev-Exp Region 5'!$I$9, 0)","v":{"v":0,"d":"$0.00"}},{"$f":"IFERROR('LTC Rev-Exp Region 5'!$J$31/'LTC Rev-Exp Region 5'!$J$9, 0)","v":{"v":0,"d":"$0.00"}},{"$f":"IFERROR('LTC Rev-Exp Region 5'!$K$31/'LTC Rev-Exp Region 5'!$K$9, 0)","v":{"v":0,"d":"$0.00"}}]
["LTC",null,null,{"$f":"Jurat!I$1","v":0},{"$f":"Jurat!D$33","v":"00:00:00"},"Q2","2017-06-30","Region 5","Operating Expense","Medical Expense","LTC Services","2.16","Case Management FFS (Plan Provided)",{"$f":"IFERROR('LTC Rev-Exp Region 5'!$H$32/'LTC Rev-Exp Region 5'!$H$9, 0)","v":{"v":0,"d":"$0.00"}},{"$f":"IFERROR('LTC Rev-Exp Region 5'!$I$32/'LTC Rev-Exp Region 5'!$I$9, 0)","v":{"v":0,"d":"$0.00"}},{"$f":"IFERROR('LTC Rev-Exp Region 5'!$J$32/'LTC Rev-Exp Region 5'!$J$9, 0)","v":{"v":0,"d":"$0.00"}},{"$f":"IFERROR('LTC Rev-Exp Region 5'!$K$32/'LTC Rev-Exp Region 5'!$K$9, 0)","v":{"v":0,"d":"$0.00"}}]
["LTC",null,null,{"$f":"Jurat!I$1","v":0},{"$f":"Jurat!D$33","v":"00:00:00"},"Q2","2017-06-30","Region 5","Operating Expense","Medical Expense","LTC Services","2.17","Case Management FF (Non-Plan Provided)",{"$f":"IFERROR('LTC Rev-Exp Region 5'!$H$33/'LTC Rev-Exp Region 5'!$H$9, 0)","v":{"v":0,"d":"$0.00"}},{"$f":"IFERROR('LTC Rev-Exp Region 5'!$I$33/'LTC Rev-Exp Region 5'!$I$9, 0)","v":{"v":0,"d":"$0.00"}},{"$f":"IFERROR('LTC Rev-Exp Region 5'!$J$33/'LTC Rev-Exp Region 5'!$J$9, 0)","v":{"v":0,"d":"$0.00"}},{"$f":"IFERROR('LTC Rev-Exp Region 5'!$K$33/'LTC Rev-Exp Region 5'!$K$9, 0)","v":{"v":0,"d":"$0.00"}}]
["LTC",null,null,{"$f":"Jurat!I$1","v":0},{"$f":"Jurat!D$33","v":"00:00:00"},"Q2","2017-06-30","Region 5","Operating Expense","Medical Expense","LTC Services","2.18","HCBS FFS",{"$f":"IFERROR('LTC Rev-Exp Region 5'!$H$34/'LTC Rev-Exp Region 5'!$H$9, 0)","v":{"v":0,"d":"$0.00"}},{"$f":"IFERROR('LTC Rev-Exp Region 5'!$I$34/'LTC Rev-Exp Region 5'!$I$9, 0)","v":{"v":0,"d":"$0.00"}},{"$f":"IFERROR('LTC Rev-Exp Region 5'!$J$34/'LTC Rev-Exp Region 5'!$J$9, 0)","v":{"v":0,"d":"$0.00"}},{"$f":"IFERROR('LTC Rev-Exp Region 5'!$K$34/'LTC Rev-Exp Region 5'!$K$9, 0)","v":{"v":0,"d":"$0.00"}}]
["LTC",null,null,{"$f":"Jurat!I$1","v":0},{"$f":"Jurat!D$33","v":"00:00:00"},"Q2","2017-06-30","Region 5","Operating Expense","Medical Expense","LTC Services","2.19","Subcapitated LTC Services",{"$f":"IFERROR('LTC Rev-Exp Region 5'!$H$35/'LTC Rev-Exp Region 5'!$H$9, 0)","v":{"v":0,"d":"$0.00"}},{"$f":"IFERROR('LTC Rev-Exp Region 5'!$I$35/'LTC Rev-Exp Region 5'!$I$9, 0)","v":{"v":0,"d":"$0.00"}},{"$f":"IFERROR('LTC Rev-Exp Region 5'!$J$35/'LTC Rev-Exp Region 5'!$J$9, 0)","v":{"v":0,"d":"$0.00"}},{"$f":"IFERROR('LTC Rev-Exp Region 5'!$K$35/'LTC Rev-Exp Region 5'!$K$9, 0)","v":{"v":0,"d":"$0.00"}}]
["LTC",null,null,{"$f":"Jurat!I$1","v":0},{"$f":"Jurat!D$33","v":"00:00:00"},"Q2","2017-06-30","Region 5","Operating Expense","Medical Expense","LTC Services","2.20","Ending IBNP for Long Term Care Services",{"$f":"IFERROR('LTC Rev-Exp Region 5'!$H$36/'LTC Rev-Exp Region 5'!$H$9, 0)","v":{"v":0,"d":"$0.00"}},{"$f":"IFERROR('LTC Rev-Exp Region 5'!$I$36/'LTC Rev-Exp Region 5'!$I$9, 0)","v":{"v":0,"d":"$0.00"}},{"$f":"IFERROR('LTC Rev-Exp Region 5'!$J$36/'LTC Rev-Exp Region 5'!$J$9, 0)","v":{"v":0,"d":"$0.00"}},{"$f":"IFERROR('LTC Rev-Exp Region 5'!$K$36/'LTC Rev-Exp Region 5'!$K$9, 0)","v":{"v":0,"d":"$0.00"}}]
["LTC",null,null,{"$f":"Jurat!I$1","v":0},{"$f":"Jurat!D$33","v":"00:00:00"},"Q2","2017-06-30","Region 5","Operating Expense","Medical Expense","LTC Services","2.21","LTC Services Settlements",{"$f":"IFERROR('LTC Rev-Exp Region 5'!$H$37/'LTC Rev-Exp Region 5'!$H$9, 0)","v":{"v":0,"d":"$0.00"}},{"$f":"IFERROR('LTC Rev-Exp Region 5'!$I$37/'LTC Rev-Exp Region 5'!$I$9, 0)","v":{"v":0,"d":"$0.00"}},{"$f":"IFERROR('LTC Rev-Exp Region 5'!$J$37/'LTC Rev-Exp Region 5'!$J$9, 0)","v":{"v":0,"d":"$0.00"}},{"$f":"IFERROR('LTC Rev-Exp Region 5'!$K$37/'LTC Rev-Exp Region 5'!$K$9, 0)","v":{"v":0,"d":"$0.00"}}]
["LTC",null,null,{"$f":"Jurat!I$1","v":0},{"$f":"Jurat!D$33","v":"00:00:00"},"Q2","2017-06-30","Region 5","Operating Expense","Medical Expense","Expanded Benefits","3.1","Expanded Benefits FFS",{"$f":"IFERROR('LTC Rev-Exp Region 5'!$H$39/'LTC Rev-Exp Region 5'!$H$9, 0)","v":{"v":0,"d":"$0.00"}},{"$f":"IFERROR('LTC Rev-Exp Region 5'!$I$39/'LTC Rev-Exp Region 5'!$I$9, 0)","v":{"v":0,"d":"$0.00"}},{"$f":"IFERROR('LTC Rev-Exp Region 5'!$J$39/'LTC Rev-Exp Region 5'!$J$9, 0)","v":{"v":0,"d":"$0.00"}},{"$f":"IFERROR('LTC Rev-Exp Region 5'!$K$39/'LTC Rev-Exp Region 5'!$K$9, 0)","v":{"v":0,"d":"$0.00"}}]
["LTC",null,null,{"$f":"Jurat!I$1","v":0},{"$f":"Jurat!D$33","v":"00:00:00"},"Q2","2017-06-30","Region 5","Operating Expense","Medical Expense","Expanded Benefits","3.2","Expanded Benefits Subcapitation",{"$f":"IFERROR('LTC Rev-Exp Region 5'!$H$40/'LTC Rev-Exp Region 5'!$H$9, 0)","v":{"v":0,"d":"$0.00"}},{"$f":"IFERROR('LTC Rev-Exp Region 5'!$I$40/'LTC Rev-Exp Region 5'!$I$9, 0)","v":{"v":0,"d":"$0.00"}},{"$f":"IFERROR('LTC Rev-Exp Region 5'!$J$40/'LTC Rev-Exp Region 5'!$J$9, 0)","v":{"v":0,"d":"$0.00"}},{"$f":"IFERROR('LTC Rev-Exp Region 5'!$K$40/'LTC Rev-Exp Region 5'!$K$9, 0)","v":{"v":0,"d":"$0.00"}}]
["LTC",null,null,{"$f":"Jurat!I$1","v":0},{"$f":"Jurat!D$33","v":"00:00:00"},"Q2","2017-06-30","Region 5","Operating Expense","Medical Expense","Expanded Benefits","3.3","Ending IBNP for Expanded Benefits",{"$f":"IFERROR('LTC Rev-Exp Region 5'!$H$41/'LTC Rev-Exp Region 5'!$H$9, 0)","v":{"v":0,"d":"$0.00"}},{"$f":"IFERROR('LTC Rev-Exp Region 5'!$I$41/'LTC Rev-Exp Region 5'!$I$9, 0)","v":{"v":0,"d":"$0.00"}},{"$f":"IFERROR('LTC Rev-Exp Region 5'!$J$41/'LTC Rev-Exp Region 5'!$J$9, 0)","v":{"v":0,"d":"$0.00"}},{"$f":"IFERROR('LTC Rev-Exp Region 5'!$K$41/'LTC Rev-Exp Region 5'!$K$9, 0)","v":{"v":0,"d":"$0.00"}}]
["LTC",null,null,{"$f":"Jurat!I$1","v":0},{"$f":"Jurat!D$33","v":"00:00:00"},"Q2","2017-06-30","Region 5","Operating Expense","Medical Expense","Expanded Benefits","3.4","Expanded Benefits Settlements",{"$f":"IFERROR('LTC Rev-Exp Region 5'!$H$42/'LTC Rev-Exp Region 5'!$H$9, 0)","v":{"v":0,"d":"$0.00"}},{"$f":"IFERROR('LTC Rev-Exp Region 5'!$I$42/'LTC Rev-Exp Region 5'!$I$9, 0)","v":{"v":0,"d":"$0.00"}},{"$f":"IFERROR('LTC Rev-Exp Region 5'!$J$42/'LTC Rev-Exp Region 5'!$J$9, 0)","v":{"v":0,"d":"$0.00"}},{"$f":"IFERROR('LTC Rev-Exp Region 5'!$K$42/'LTC Rev-Exp Region 5'!$K$9, 0)","v":{"v":0,"d":"$0.00"}}]
["LTC",null,null,{"$f":"Jurat!I$1","v":0},{"$f":"Jurat!D$33","v":"00:00:00"},"Q2","2017-06-30","Region 5","Operating Expense","Medical Expense","Other Medical","4.5","TPL & Fraud/Abuse Recoveries",{"$f":"IFERROR('LTC Rev-Exp Region 5'!$H$48/'LTC Rev-Exp Region 5'!$H$9, 0)","v":{"v":0,"d":"$0.00"}},{"$f":"IFERROR('LTC Rev-Exp Region 5'!$I$48/'LTC Rev-Exp Region 5'!$I$9, 0)","v":{"v":0,"d":"$0.00"}},{"$f":"IFERROR('LTC Rev-Exp Region 5'!$J$48/'LTC Rev-Exp Region 5'!$J$9, 0)","v":{"v":0,"d":"$0.00"}},{"$f":"IFERROR('LTC Rev-Exp Region 5'!$K$48/'LTC Rev-Exp Region 5'!$K$9, 0)","v":{"v":0,"d":"$0.00"}}]
["LTC",null,null,{"$f":"Jurat!I$1","v":0},{"$f":"Jurat!D$33","v":"00:00:00"},"Q2","2017-06-30","Region 5","Operating Expense","Medical Expense","Other Medical","4.6.1","Premium Deficiency Reserve",{"$f":"IFERROR('LTC Rev-Exp Region 5'!$H$49/'LTC Rev-Exp Region 5'!$H$9, 0)","v":{"v":0,"d":"$0.00"}},{"$f":"IFERROR('LTC Rev-Exp Region 5'!$I$49/'LTC Rev-Exp Region 5'!$I$9, 0)","v":{"v":0,"d":"$0.00"}},{"$f":"IFERROR('LTC Rev-Exp Region 5'!$J$49/'LTC Rev-Exp Region 5'!$J$9, 0)","v":{"v":0,"d":"$0.00"}},{"$f":"IFERROR('LTC Rev-Exp Region 5'!$K$49/'LTC Rev-Exp Region 5'!$K$9, 0)","v":{"v":0,"d":"$0.00"}}]
["LTC",null,null,{"$f":"Jurat!I$1","v":0},{"$f":"Jurat!D$33","v":"00:00:00"},"Q2","2017-06-30","Region 5","Operating Expense","Medical Expense","Other Medical","4.8","Reinsurance Premiums",{"$f":"IFERROR('LTC Rev-Exp Region 5'!$H$51/'LTC Rev-Exp Region 5'!$H$9, 0)","v":{"v":0,"d":"$0.00"}},{"$f":"IFERROR('LTC Rev-Exp Region 5'!$I$51/'LTC Rev-Exp Region 5'!$I$9, 0)","v":{"v":0,"d":"$0.00"}},{"$f":"IFERROR('LTC Rev-Exp Region 5'!$J$51/'LTC Rev-Exp Region 5'!$J$9, 0)","v":{"v":0,"d":"$0.00"}},{"$f":"IFERROR('LTC Rev-Exp Region 5'!$K$51/'LTC Rev-Exp Region 5'!$K$9, 0)","v":{"v":0,"d":"$0.00"}}]
["LTC",null,null,{"$f":"Jurat!I$1","v":0},{"$f":"Jurat!D$33","v":"00:00:00"},"Q2","2017-06-30","Region 5","Operating Expense","Medical Expense","Other Medical","4.9","Reinsurance Recoveries",{"$f":"IFERROR('LTC Rev-Exp Region 5'!$H$52/'LTC Rev-Exp Region 5'!$H$9, 0)","v":{"v":0,"d":"$0.00"}},{"$f":"IFERROR('LTC Rev-Exp Region 5'!$I$52/'LTC Rev-Exp Region 5'!$I$9, 0)","v":{"v":0,"d":"$0.00"}},{"$f":"IFERROR('LTC Rev-Exp Region 5'!$J$52/'LTC Rev-Exp Region 5'!$J$9, 0)","v":{"v":0,"d":"$0.00"}},{"$f":"IFERROR('LTC Rev-Exp Region 5'!$K$52/'LTC Rev-Exp Region 5'!$K$9, 0)","v":{"v":0,"d":"$0.00"}}]
["LTC",null,null,{"$f":"Jurat!I$1","v":0},{"$f":"Jurat!D$33","v":"00:00:00"},"Q2","2017-06-30","Region 5","Operating Expense","Administrative Expense","Administrative","5.1","Salaries & Benefits",{"$f":"IFERROR('LTC Rev-Exp Region 5'!$H$57/'LTC Rev-Exp Region 5'!$H$9, 0)","v":{"v":0,"d":"$0.00"}},{"$f":"IFERROR('LTC Rev-Exp Region 5'!$I$57/'LTC Rev-Exp Region 5'!$I$9, 0)","v":{"v":0,"d":"$0.00"}},{"$f":"IFERROR('LTC Rev-Exp Region 5'!$J$57/'LTC Rev-Exp Region 5'!$J$9, 0)","v":{"v":0,"d":"$0.00"}},{"$f":"IFERROR('LTC Rev-Exp Region 5'!$K$57/'LTC Rev-Exp Region 5'!$K$9, 0)","v":{"v":0,"d":"$0.00"}}]
["LTC",null,null,{"$f":"Jurat!I$1","v":0},{"$f":"Jurat!D$33","v":"00:00:00"},"Q2","2017-06-30","Region 5","Operating Expense","Administrative Expense","Administrative","5.2","Administrative Services",{"$f":"IFERROR('LTC Rev-Exp Region 5'!$H$58/'LTC Rev-Exp Region 5'!$H$9, 0)","v":{"v":0,"d":"$0.00"}},{"$f":"IFERROR('LTC Rev-Exp Region 5'!$I$58/'LTC Rev-Exp Region 5'!$I$9, 0)","v":{"v":0,"d":"$0.00"}},{"$f":"IFERROR('LTC Rev-Exp Region 5'!$J$58/'LTC Rev-Exp Region 5'!$J$9, 0)","v":{"v":0,"d":"$0.00"}},{"$f":"IFERROR('LTC Rev-Exp Region 5'!$K$58/'LTC Rev-Exp Region 5'!$K$9, 0)","v":{"v":0,"d":"$0.00"}}]
["LTC",null,null,{"$f":"Jurat!I$1","v":0},{"$f":"Jurat!D$33","v":"00:00:00"},"Q2","2017-06-30","Region 5","Operating Expense","Administrative Expense","Administrative","5.3","Information Systems",{"$f":"IFERROR('LTC Rev-Exp Region 5'!$H$59/'LTC Rev-Exp Region 5'!$H$9, 0)","v":{"v":0,"d":"$0.00"}},{"$f":"IFERROR('LTC Rev-Exp Region 5'!$I$59/'LTC Rev-Exp Region 5'!$I$9, 0)","v":{"v":0,"d":"$0.00"}},{"$f":"IFERROR('LTC Rev-Exp Region 5'!$J$59/'LTC Rev-Exp Region 5'!$J$9, 0)","v":{"v":0,"d":"$0.00"}},{"$f":"IFERROR('LTC Rev-Exp Region 5'!$K$59/'LTC Rev-Exp Region 5'!$K$9, 0)","v":{"v":0,"d":"$0.00"}}]
["LTC",null,null,{"$f":"Jurat!I$1","v":0},{"$f":"Jurat!D$33","v":"00:00:00"},"Q2","2017-06-30","Region 5","Operating Expense","Administrative Expense","Administrative","5.4","Marketing Expenses",{"$f":"IFERROR('LTC Rev-Exp Region 5'!$H$60/'LTC Rev-Exp Region 5'!$H$9, 0)","v":{"v":0,"d":"$0.00"}},{"$f":"IFERROR('LTC Rev-Exp Region 5'!$I$60/'LTC Rev-Exp Region 5'!$I$9, 0)","v":{"v":0,"d":"$0.00"}},{"$f":"IFERROR('LTC Rev-Exp Region 5'!$J$60/'LTC Rev-Exp Region 5'!$J$9, 0)","v":{"v":0,"d":"$0.00"}},{"$f":"IFERROR('LTC Rev-Exp Region 5'!$K$60/'LTC Rev-Exp Region 5'!$K$9, 0)","v":{"v":0,"d":"$0.00"}}]
["LTC",null,null,{"$f":"Jurat!I$1","v":0},{"$f":"Jurat!D$33","v":"00:00:00"},"Q2","2017-06-30","Region 5","Operating Expense","Administrative Expense","Administrative","5.5","General  Administration",{"$f":"IFERROR('LTC Rev-Exp Region 5'!$H$61/'LTC Rev-Exp Region 5'!$H$9, 0)","v":{"v":0,"d":"$0.00"}},{"$f":"IFERROR('LTC Rev-Exp Region 5'!$I$61/'LTC Rev-Exp Region 5'!$I$9, 0)","v":{"v":0,"d":"$0.00"}},{"$f":"IFERROR('LTC Rev-Exp Region 5'!$J$61/'LTC Rev-Exp Region 5'!$J$9, 0)","v":{"v":0,"d":"$0.00"}},{"$f":"IFERROR('LTC Rev-Exp Region 5'!$K$61/'LTC Rev-Exp Region 5'!$K$9, 0)","v":{"v":0,"d":"$0.00"}}]
["LTC",null,null,{"$f":"Jurat!I$1","v":0},{"$f":"Jurat!D$33","v":"00:00:00"},"Q2","2017-06-30","Region 5","Operating Expense","Administrative Expense","Administrative","5.6","Compliance/Regulatory",{"$f":"IFERROR('LTC Rev-Exp Region 5'!$H$62/'LTC Rev-Exp Region 5'!$H$9, 0)","v":{"v":0,"d":"$0.00"}},{"$f":"IFERROR('LTC Rev-Exp Region 5'!$I$62/'LTC Rev-Exp Region 5'!$I$9, 0)","v":{"v":0,"d":"$0.00"}},{"$f":"IFERROR('LTC Rev-Exp Region 5'!$J$62/'LTC Rev-Exp Region 5'!$J$9, 0)","v":{"v":0,"d":"$0.00"}},{"$f":"IFERROR('LTC Rev-Exp Region 5'!$K$62/'LTC Rev-Exp Region 5'!$K$9, 0)","v":{"v":0,"d":"$0.00"}}]
["LTC",null,null,{"$f":"Jurat!I$1","v":0},{"$f":"Jurat!D$33","v":"00:00:00"},"Q2","2017-06-30","Region 5","Operating Expense","Taxes & Fees","Taxes & Fees","6.1","State Premium Tax",{"$f":"IFERROR('LTC Rev-Exp Region 5'!$H$64/'LTC Rev-Exp Region 5'!$H$9, 0)","v":{"v":0,"d":"$0.00"}},{"$f":"IFERROR('LTC Rev-Exp Region 5'!$I$64/'LTC Rev-Exp Region 5'!$I$9, 0)","v":{"v":0,"d":"$0.00"}},{"$f":"IFERROR('LTC Rev-Exp Region 5'!$J$64/'LTC Rev-Exp Region 5'!$J$9, 0)","v":{"v":0,"d":"$0.00"}},{"$f":"IFERROR('LTC Rev-Exp Region 5'!$K$64/'LTC Rev-Exp Region 5'!$K$9, 0)","v":{"v":0,"d":"$0.00"}}]
["LTC",null,null,{"$f":"Jurat!I$1","v":0},{"$f":"Jurat!D$33","v":"00:00:00"},"Q2","2017-06-30","Region 5","Operating Expense","Taxes & Fees","Taxes & Fees","6.2","Department of Insurance Assessments",{"$f":"IFERROR('LTC Rev-Exp Region 5'!$H$65/'LTC Rev-Exp Region 5'!$H$9, 0)","v":{"v":0,"d":"$0.00"}},{"$f":"IFERROR('LTC Rev-Exp Region 5'!$I$65/'LTC Rev-Exp Region 5'!$I$9, 0)","v":{"v":0,"d":"$0.00"}},{"$f":"IFERROR('LTC Rev-Exp Region 5'!$J$65/'LTC Rev-Exp Region 5'!$J$9, 0)","v":{"v":0,"d":"$0.00"}},{"$f":"IFERROR('LTC Rev-Exp Region 5'!$K$65/'LTC Rev-Exp Region 5'!$K$9, 0)","v":{"v":0,"d":"$0.00"}}]
["LTC",null,null,{"$f":"Jurat!I$1","v":0},{"$f":"Jurat!D$33","v":"00:00:00"},"Q2","2017-06-30","Region 5","Non-Operating Expense","Income Tax Expense","Income Tax Expense","9.0","Income Tax Expense",{"$f":"IFERROR('LTC Rev-Exp Region 5'!$H$66/'LTC Rev-Exp Region 5'!$H$9, 0)","v":{"v":0,"d":"$0.00"}},{"$f":"IFERROR('LTC Rev-Exp Region 5'!$I$66/'LTC Rev-Exp Region 5'!$I$9, 0)","v":{"v":0,"d":"$0.00"}},{"$f":"IFERROR('LTC Rev-Exp Region 5'!$J$66/'LTC Rev-Exp Region 5'!$J$9, 0)","v":{"v":0,"d":"$0.00"}},{"$f":"IFERROR('LTC Rev-Exp Region 5'!$K$66/'LTC Rev-Exp Region 5'!$K$9, 0)","v":{"v":0,"d":"$0.00"}}]
["LTC",null,null,{"$f":"Jurat!I$1","v":0},{"$f":"Jurat!D$33","v":"00:00:00"},"Q3","2017-09-30","Region 5","Operating Revenue","Capitation","Capitation",1.1,"Capitation",{"$f":"IFERROR('LTC Rev-Exp Region 5'!$L$11/'LTC Rev-Exp Region 5'!$L$9,\"0\")","v":"0"},{"$f":"IFERROR('LTC Rev-Exp Region 5'!$M$11/'LTC Rev-Exp Region 5'!$M$9,\"0\")","v":"0"},{"$f":"IFERROR('LTC Rev-Exp Region 5'!$N$11/'LTC Rev-Exp Region 5'!$N$9,\"0\")","v":"0"},{"$f":"IFERROR('LTC Rev-Exp Region 5'!$O$11/'LTC Rev-Exp Region 5'!$O$9,\"0\")","v":"0"}]
["LTC",null,null,{"$f":"Jurat!I$1","v":0},{"$f":"Jurat!D$33","v":"00:00:00"},"Q3","2017-09-30","Region 5","Operating Revenue","Capitation","NH Rate Reconciliation",1.2,"NH Rate Reconciliation",{"$f":"IFERROR('LTC Rev-Exp Region 5'!$L$12/'LTC Rev-Exp Region 5'!$L$9,\"0\")","v":"0"},{"$f":"IFERROR('LTC Rev-Exp Region 5'!$M$12/'LTC Rev-Exp Region 5'!$M$9,\"0\")","v":"0"},{"$f":"IFERROR('LTC Rev-Exp Region 5'!$N$12/'LTC Rev-Exp Region 5'!$N$9,\"0\")","v":"0"},{"$f":"IFERROR('LTC Rev-Exp Region 5'!$O$12/'LTC Rev-Exp Region 5'!$O$9,\"0\")","v":"0"}]
["LTC",null,null,{"$f":"Jurat!I$1","v":0},{"$f":"Jurat!D$33","v":"00:00:00"},"Q3","2017-09-30","Region 5","Operating Revenue","Other Revenue","Other Revenue",1.3,"Other Revenue",{"$f":"IFERROR('LTC Rev-Exp Region 5'!$L$13/'LTC Rev-Exp Region 5'!$L$9,\"0\")","v":"0"},{"$f":"IFERROR('LTC Rev-Exp Region 5'!$M$13/'LTC Rev-Exp Region 5'!$M$9,\"0\")","v":"0"},{"$f":"IFERROR('LTC Rev-Exp Region 5'!$N$13/'LTC Rev-Exp Region 5'!$N$9,\"0\")","v":"0"},{"$f":"IFERROR('LTC Rev-Exp Region 5'!$O$13/'LTC Rev-Exp Region 5'!$O$9,\"0\")","v":"0"}]
["LTC",null,null,{"$f":"Jurat!I$1","v":0},{"$f":"Jurat!D$33","v":"00:00:00"},"Q3","2017-09-30","Region 5","Operating Expense","Medical Expense","NF & Hospice","2.3","Nursing Facility FFS (Medicaid)",{"$f":"IFERROR('LTC Rev-Exp Region 5'!$L$19/'LTC Rev-Exp Region 5'!$L$9, 0)","v":{"v":0,"d":"$0.00"}},{"$f":"IFERROR('LTC Rev-Exp Region 5'!$M$19/'LTC Rev-Exp Region 5'!$M$9, 0)","v":{"v":0,"d":"$0.00"}},{"$f":"IFERROR('LTC Rev-Exp Region 5'!$N$19/'LTC Rev-Exp Region 5'!$N$9, 0)","v":{"v":0,"d":"$0.00"}},{"$f":"IFERROR('LTC Rev-Exp Region 5'!$O$19/'LTC Rev-Exp Region 5'!$O$9, 0)","v":{"v":0,"d":"$0.00"}}]
["LTC",null,null,{"$f":"Jurat!I$1","v":0},{"$f":"Jurat!D$33","v":"00:00:00"},"Q3","2017-09-30","Region 5","Operating Expense","Medical Expense","NF & Hospice","2.4","Nursing Facility FFS (Crossover)",{"$f":"IFERROR('LTC Rev-Exp Region 5'!$L$20/'LTC Rev-Exp Region 5'!$L$9, 0)","v":{"v":0,"d":"$0.00"}},{"$f":"IFERROR('LTC Rev-Exp Region 5'!$M$20/'LTC Rev-Exp Region 5'!$M$9, 0)","v":{"v":0,"d":"$0.00"}},{"$f":"IFERROR('LTC Rev-Exp Region 5'!$N$20/'LTC Rev-Exp Region 5'!$N$9, 0)","v":{"v":0,"d":"$0.00"}},{"$f":"IFERROR('LTC Rev-Exp Region 5'!$O$20/'LTC Rev-Exp Region 5'!$O$9, 0)","v":{"v":0,"d":"$0.00"}}]
["LTC",null,null,{"$f":"Jurat!I$1","v":0},{"$f":"Jurat!D$33","v":"00:00:00"},"Q3","2017-09-30","Region 5","Operating Expense","Medical Expense","NF & Hospice","2.6","Hospice FFS",{"$f":"IFERROR('LTC Rev-Exp Region 5'!$L$22/'LTC Rev-Exp Region 5'!$L$9, 0)","v":{"v":0,"d":"$0.00"}},{"$f":"IFERROR('LTC Rev-Exp Region 5'!$M$22/'LTC Rev-Exp Region 5'!$M$9, 0)","v":{"v":0,"d":"$0.00"}},{"$f":"IFERROR('LTC Rev-Exp Region 5'!$N$22/'LTC Rev-Exp Region 5'!$N$9, 0)","v":{"v":0,"d":"$0.00"}},{"$f":"IFERROR('LTC Rev-Exp Region 5'!$O$22/'LTC Rev-Exp Region 5'!$O$9, 0)","v":{"v":0,"d":"$0.00"}}]
["LTC",null,null,{"$f":"Jurat!I$1","v":0},{"$f":"Jurat!D$33","v":"00:00:00"},"Q3","2017-09-30","Region 5","Operating Expense","Medical Expense","NF & Hospice","2.7","Ending IBNP for NF & Hospice",{"$f":"IFERROR('LTC Rev-Exp Region 5'!$L$23/'LTC Rev-Exp Region 5'!$L$9, 0)","v":{"v":0,"d":"$0.00"}},{"$f":"IFERROR('LTC Rev-Exp Region 5'!$M$23/'LTC Rev-Exp Region 5'!$M$9, 0)","v":{"v":0,"d":"$0.00"}},{"$f":"IFERROR('LTC Rev-Exp Region 5'!$N$23/'LTC Rev-Exp Region 5'!$N$9, 0)","v":{"v":0,"d":"$0.00"}},{"$f":"IFERROR('LTC Rev-Exp Region 5'!$O$23/'LTC Rev-Exp Region 5'!$O$9, 0)","v":{"v":0,"d":"$0.00"}}]
["LTC",null,null,{"$f":"Jurat!I$1","v":0},{"$f":"Jurat!D$33","v":"00:00:00"},"Q3","2017-09-30","Region 5","Operating Expense","Medical Expense","NF & Hospice","2.8","NF & Hospice Subcapitated",{"$f":"IFERROR('LTC Rev-Exp Region 5'!$L$24/'LTC Rev-Exp Region 5'!$L$9, 0)","v":{"v":0,"d":"$0.00"}},{"$f":"IFERROR('LTC Rev-Exp Region 5'!$M$24/'LTC Rev-Exp Region 5'!$M$9, 0)","v":{"v":0,"d":"$0.00"}},{"$f":"IFERROR('LTC Rev-Exp Region 5'!$N$24/'LTC Rev-Exp Region 5'!$N$9, 0)","v":{"v":0,"d":"$0.00"}},{"$f":"IFERROR('LTC Rev-Exp Region 5'!$O$24/'LTC Rev-Exp Region 5'!$O$9, 0)","v":{"v":0,"d":"$0.00"}}]
["LTC",null,null,{"$f":"Jurat!I$1","v":0},{"$f":"Jurat!D$33","v":"00:00:00"},"Q3","2017-09-30","Region 5","Operating Expense","Medical Expense","NF & Hospice","2.9","NF & Hospice Settlements",{"$f":"IFERROR('LTC Rev-Exp Region 5'!$L$25/'LTC Rev-Exp Region 5'!$L$9, 0)","v":{"v":0,"d":"$0.00"}},{"$f":"IFERROR('LTC Rev-Exp Region 5'!$M$25/'LTC Rev-Exp Region 5'!$M$9, 0)","v":{"v":0,"d":"$0.00"}},{"$f":"IFERROR('LTC Rev-Exp Region 5'!$N$25/'LTC Rev-Exp Region 5'!$N$9, 0)","v":{"v":0,"d":"$0.00"}},{"$f":"IFERROR('LTC Rev-Exp Region 5'!$O$25/'LTC Rev-Exp Region 5'!$O$9, 0)","v":{"v":0,"d":"$0.00"}}]
["LTC",null,null,{"$f":"Jurat!I$1","v":0},{"$f":"Jurat!D$33","v":"00:00:00"},"Q3","2017-09-30","Region 5","Operating Expense","Medical Expense","LTC Services","2.11","Assisted Living FFS",{"$f":"IFERROR('LTC Rev-Exp Region 5'!$L$27/'LTC Rev-Exp Region 5'!$L$9, 0)","v":{"v":0,"d":"$0.00"}},{"$f":"IFERROR('LTC Rev-Exp Region 5'!$M$27/'LTC Rev-Exp Region 5'!$M$9, 0)","v":{"v":0,"d":"$0.00"}},{"$f":"IFERROR('LTC Rev-Exp Region 5'!$N$27/'LTC Rev-Exp Region 5'!$N$9, 0)","v":{"v":0,"d":"$0.00"}},{"$f":"IFERROR('LTC Rev-Exp Region 5'!$O$27/'LTC Rev-Exp Region 5'!$O$9, 0)","v":{"v":0,"d":"$0.00"}}]
["LTC",null,null,{"$f":"Jurat!I$1","v":0},{"$f":"Jurat!D$33","v":"00:00:00"},"Q3","2017-09-30","Region 5","Operating Expense","Medical Expense","LTC Services","2.12","Home Health FFS",{"$f":"IFERROR('LTC Rev-Exp Region 5'!$L$28/'LTC Rev-Exp Region 5'!$L$9, 0)","v":{"v":0,"d":"$0.00"}},{"$f":"IFERROR('LTC Rev-Exp Region 5'!$M$28/'LTC Rev-Exp Region 5'!$M$9, 0)","v":{"v":0,"d":"$0.00"}},{"$f":"IFERROR('LTC Rev-Exp Region 5'!$N$28/'LTC Rev-Exp Region 5'!$N$9, 0)","v":{"v":0,"d":"$0.00"}},{"$f":"IFERROR('LTC Rev-Exp Region 5'!$O$28/'LTC Rev-Exp Region 5'!$O$9, 0)","v":{"v":0,"d":"$0.00"}}]
["LTC",null,null,{"$f":"Jurat!I$1","v":0},{"$f":"Jurat!D$33","v":"00:00:00"},"Q3","2017-09-30","Region 5","Operating Expense","Medical Expense","LTC Services","2.13","Medical Equipment/Supplies FFS",{"$f":"IFERROR('LTC Rev-Exp Region 5'!$L$29/'LTC Rev-Exp Region 5'!$L$9, 0)","v":{"v":0,"d":"$0.00"}},{"$f":"IFERROR('LTC Rev-Exp Region 5'!$M$29/'LTC Rev-Exp Region 5'!$M$9, 0)","v":{"v":0,"d":"$0.00"}},{"$f":"IFERROR('LTC Rev-Exp Region 5'!$N$29/'LTC Rev-Exp Region 5'!$N$9, 0)","v":{"v":0,"d":"$0.00"}},{"$f":"IFERROR('LTC Rev-Exp Region 5'!$O$29/'LTC Rev-Exp Region 5'!$O$9, 0)","v":{"v":0,"d":"$0.00"}}]
["LTC",null,null,{"$f":"Jurat!I$1","v":0},{"$f":"Jurat!D$33","v":"00:00:00"},"Q3","2017-09-30","Region 5","Operating Expense","Medical Expense","LTC Services","2.14","Therapy FFS",{"$f":"IFERROR('LTC Rev-Exp Region 5'!$L$30/'LTC Rev-Exp Region 5'!$L$9, 0)","v":{"v":0,"d":"$0.00"}},{"$f":"IFERROR('LTC Rev-Exp Region 5'!$M$30/'LTC Rev-Exp Region 5'!$M$9, 0)","v":{"v":0,"d":"$0.00"}},{"$f":"IFERROR('LTC Rev-Exp Region 5'!$N$30/'LTC Rev-Exp Region 5'!$N$9, 0)","v":{"v":0,"d":"$0.00"}},{"$f":"IFERROR('LTC Rev-Exp Region 5'!$O$30/'LTC Rev-Exp Region 5'!$O$9, 0)","v":{"v":0,"d":"$0.00"}}]
["LTC",null,null,{"$f":"Jurat!I$1","v":0},{"$f":"Jurat!D$33","v":"00:00:00"},"Q3","2017-09-30","Region 5","Operating Expense","Medical Expense","LTC Services","2.15","Transportation FFS",{"$f":"IFERROR('LTC Rev-Exp Region 5'!$L$31/'LTC Rev-Exp Region 5'!$L$9, 0)","v":{"v":0,"d":"$0.00"}},{"$f":"IFERROR('LTC Rev-Exp Region 5'!$M$31/'LTC Rev-Exp Region 5'!$M$9, 0)","v":{"v":0,"d":"$0.00"}},{"$f":"IFERROR('LTC Rev-Exp Region 5'!$N$31/'LTC Rev-Exp Region 5'!$N$9, 0)","v":{"v":0,"d":"$0.00"}},{"$f":"IFERROR('LTC Rev-Exp Region 5'!$O$31/'LTC Rev-Exp Region 5'!$O$9, 0)","v":{"v":0,"d":"$0.00"}}]
["LTC",null,null,{"$f":"Jurat!I$1","v":0},{"$f":"Jurat!D$33","v":"00:00:00"},"Q3","2017-09-30","Region 5","Operating Expense","Medical Expense","LTC Services","2.16","Case Management FFS (Plan Provided)",{"$f":"IFERROR('LTC Rev-Exp Region 5'!$L$32/'LTC Rev-Exp Region 5'!$L$9, 0)","v":{"v":0,"d":"$0.00"}},{"$f":"IFERROR('LTC Rev-Exp Region 5'!$M$32/'LTC Rev-Exp Region 5'!$M$9, 0)","v":{"v":0,"d":"$0.00"}},{"$f":"IFERROR('LTC Rev-Exp Region 5'!$N$32/'LTC Rev-Exp Region 5'!$N$9, 0)","v":{"v":0,"d":"$0.00"}},{"$f":"IFERROR('LTC Rev-Exp Region 5'!$O$32/'LTC Rev-Exp Region 5'!$O$9, 0)","v":{"v":0,"d":"$0.00"}}]
["LTC",null,null,{"$f":"Jurat!I$1","v":0},{"$f":"Jurat!D$33","v":"00:00:00"},"Q3","2017-09-30","Region 5","Operating Expense","Medical Expense","LTC Services","2.17","Case Management FF (Non-Plan Provided)",{"$f":"IFERROR('LTC Rev-Exp Region 5'!$L$33/'LTC Rev-Exp Region 5'!$L$9, 0)","v":{"v":0,"d":"$0.00"}},{"$f":"IFERROR('LTC Rev-Exp Region 5'!$M$33/'LTC Rev-Exp Region 5'!$M$9, 0)","v":{"v":0,"d":"$0.00"}},{"$f":"IFERROR('LTC Rev-Exp Region 5'!$N$33/'LTC Rev-Exp Region 5'!$N$9, 0)","v":{"v":0,"d":"$0.00"}},{"$f":"IFERROR('LTC Rev-Exp Region 5'!$O$33/'LTC Rev-Exp Region 5'!$O$9, 0)","v":{"v":0,"d":"$0.00"}}]
["LTC",null,null,{"$f":"Jurat!I$1","v":0},{"$f":"Jurat!D$33","v":"00:00:00"},"Q3","2017-09-30","Region 5","Operating Expense","Medical Expense","LTC Services","2.18","HCBS FFS",{"$f":"IFERROR('LTC Rev-Exp Region 5'!$L$34/'LTC Rev-Exp Region 5'!$L$9, 0)","v":{"v":0,"d":"$0.00"}},{"$f":"IFERROR('LTC Rev-Exp Region 5'!$M$34/'LTC Rev-Exp Region 5'!$M$9, 0)","v":{"v":0,"d":"$0.00"}},{"$f":"IFERROR('LTC Rev-Exp Region 5'!$N$34/'LTC Rev-Exp Region 5'!$N$9, 0)","v":{"v":0,"d":"$0.00"}},{"$f":"IFERROR('LTC Rev-Exp Region 5'!$O$34/'LTC Rev-Exp Region 5'!$O$9, 0)","v":{"v":0,"d":"$0.00"}}]
["LTC",null,null,{"$f":"Jurat!I$1","v":0},{"$f":"Jurat!D$33","v":"00:00:00"},"Q3","2017-09-30","Region 5","Operating Expense","Medical Expense","LTC Services","2.19","Subcapitated LTC Services",{"$f":"IFERROR('LTC Rev-Exp Region 5'!$L$35/'LTC Rev-Exp Region 5'!$L$9, 0)","v":{"v":0,"d":"$0.00"}},{"$f":"IFERROR('LTC Rev-Exp Region 5'!$M$35/'LTC Rev-Exp Region 5'!$M$9, 0)","v":{"v":0,"d":"$0.00"}},{"$f":"IFERROR('LTC Rev-Exp Region 5'!$N$35/'LTC Rev-Exp Region 5'!$N$9, 0)","v":{"v":0,"d":"$0.00"}},{"$f":"IFERROR('LTC Rev-Exp Region 5'!$O$35/'LTC Rev-Exp Region 5'!$O$9, 0)","v":{"v":0,"d":"$0.00"}}]
["LTC",null,null,{"$f":"Jurat!I$1","v":0},{"$f":"Jurat!D$33","v":"00:00:00"},"Q3","2017-09-30","Region 5","Operating Expense","Medical Expense","LTC Services","2.20","Ending IBNP for Long Term Care Services",{"$f":"IFERROR('LTC Rev-Exp Region 5'!$L$36/'LTC Rev-Exp Region 5'!$L$9, 0)","v":{"v":0,"d":"$0.00"}},{"$f":"IFERROR('LTC Rev-Exp Region 5'!$M$36/'LTC Rev-Exp Region 5'!$M$9, 0)","v":{"v":0,"d":"$0.00"}},{"$f":"IFERROR('LTC Rev-Exp Region 5'!$N$36/'LTC Rev-Exp Region 5'!$N$9, 0)","v":{"v":0,"d":"$0.00"}},{"$f":"IFERROR('LTC Rev-Exp Region 5'!$O$36/'LTC Rev-Exp Region 5'!$O$9, 0)","v":{"v":0,"d":"$0.00"}}]
["LTC",null,null,{"$f":"Jurat!I$1","v":0},{"$f":"Jurat!D$33","v":"00:00:00"},"Q3","2017-09-30","Region 5","Operating Expense","Medical Expense","LTC Services","2.21","LTC Services Settlements",{"$f":"IFERROR('LTC Rev-Exp Region 5'!$L$37/'LTC Rev-Exp Region 5'!$L$9, 0)","v":{"v":0,"d":"$0.00"}},{"$f":"IFERROR('LTC Rev-Exp Region 5'!$M$37/'LTC Rev-Exp Region 5'!$M$9, 0)","v":{"v":0,"d":"$0.00"}},{"$f":"IFERROR('LTC Rev-Exp Region 5'!$N$37/'LTC Rev-Exp Region 5'!$N$9, 0)","v":{"v":0,"d":"$0.00"}},{"$f":"IFERROR('LTC Rev-Exp Region 5'!$O$37/'LTC Rev-Exp Region 5'!$O$9, 0)","v":{"v":0,"d":"$0.00"}}]
["LTC",null,null,{"$f":"Jurat!I$1","v":0},{"$f":"Jurat!D$33","v":"00:00:00"},"Q3","2017-09-30","Region 5","Operating Expense","Medical Expense","Expanded Benefits","3.1","Expanded Benefits FFS",{"$f":"IFERROR('LTC Rev-Exp Region 5'!$L$39/'LTC Rev-Exp Region 5'!$L$9, 0)","v":{"v":0,"d":"$0.00"}},{"$f":"IFERROR('LTC Rev-Exp Region 5'!$M$39/'LTC Rev-Exp Region 5'!$M$9, 0)","v":{"v":0,"d":"$0.00"}},{"$f":"IFERROR('LTC Rev-Exp Region 5'!$N$39/'LTC Rev-Exp Region 5'!$N$9, 0)","v":{"v":0,"d":"$0.00"}},{"$f":"IFERROR('LTC Rev-Exp Region 5'!$O$39/'LTC Rev-Exp Region 5'!$O$9, 0)","v":{"v":0,"d":"$0.00"}}]
["LTC",null,null,{"$f":"Jurat!I$1","v":0},{"$f":"Jurat!D$33","v":"00:00:00"},"Q3","2017-09-30","Region 5","Operating Expense","Medical Expense","Expanded Benefits","3.2","Expanded Benefits Subcapitation",{"$f":"IFERROR('LTC Rev-Exp Region 5'!$L$40/'LTC Rev-Exp Region 5'!$L$9, 0)","v":{"v":0,"d":"$0.00"}},{"$f":"IFERROR('LTC Rev-Exp Region 5'!$M$40/'LTC Rev-Exp Region 5'!$M$9, 0)","v":{"v":0,"d":"$0.00"}},{"$f":"IFERROR('LTC Rev-Exp Region 5'!$N$40/'LTC Rev-Exp Region 5'!$N$9, 0)","v":{"v":0,"d":"$0.00"}},{"$f":"IFERROR('LTC Rev-Exp Region 5'!$O$40/'LTC Rev-Exp Region 5'!$O$9, 0)","v":{"v":0,"d":"$0.00"}}]
["LTC",null,null,{"$f":"Jurat!I$1","v":0},{"$f":"Jurat!D$33","v":"00:00:00"},"Q3","2017-09-30","Region 5","Operating Expense","Medical Expense","Expanded Benefits","3.3","Ending IBNP for Expanded Benefits",{"$f":"IFERROR('LTC Rev-Exp Region 5'!$L$41/'LTC Rev-Exp Region 5'!$L$9, 0)","v":{"v":0,"d":"$0.00"}},{"$f":"IFERROR('LTC Rev-Exp Region 5'!$M$41/'LTC Rev-Exp Region 5'!$M$9, 0)","v":{"v":0,"d":"$0.00"}},{"$f":"IFERROR('LTC Rev-Exp Region 5'!$N$41/'LTC Rev-Exp Region 5'!$N$9, 0)","v":{"v":0,"d":"$0.00"}},{"$f":"IFERROR('LTC Rev-Exp Region 5'!$O$41/'LTC Rev-Exp Region 5'!$O$9, 0)","v":{"v":0,"d":"$0.00"}}]
["LTC",null,null,{"$f":"Jurat!I$1","v":0},{"$f":"Jurat!D$33","v":"00:00:00"},"Q3","2017-09-30","Region 5","Operating Expense","Medical Expense","Expanded Benefits","3.4","Expanded Benefits Settlements",{"$f":"IFERROR('LTC Rev-Exp Region 5'!$L$42/'LTC Rev-Exp Region 5'!$L$9, 0)","v":{"v":0,"d":"$0.00"}},{"$f":"IFERROR('LTC Rev-Exp Region 5'!$M$42/'LTC Rev-Exp Region 5'!$M$9, 0)","v":{"v":0,"d":"$0.00"}},{"$f":"IFERROR('LTC Rev-Exp Region 5'!$N$42/'LTC Rev-Exp Region 5'!$N$9, 0)","v":{"v":0,"d":"$0.00"}},{"$f":"IFERROR('LTC Rev-Exp Region 5'!$O$42/'LTC Rev-Exp Region 5'!$O$9, 0)","v":{"v":0,"d":"$0.00"}}]
["LTC",null,null,{"$f":"Jurat!I$1","v":0},{"$f":"Jurat!D$33","v":"00:00:00"},"Q3","2017-09-30","Region 5","Operating Expense","Medical Expense","Other Medical","4.5","TPL & Fraud/Abuse Recoveries",{"$f":"IFERROR('LTC Rev-Exp Region 5'!$L$48/'LTC Rev-Exp Region 5'!$L$9, 0)","v":{"v":0,"d":"$0.00"}},{"$f":"IFERROR('LTC Rev-Exp Region 5'!$M$48/'LTC Rev-Exp Region 5'!$M$9, 0)","v":{"v":0,"d":"$0.00"}},{"$f":"IFERROR('LTC Rev-Exp Region 5'!$N$48/'LTC Rev-Exp Region 5'!$N$9, 0)","v":{"v":0,"d":"$0.00"}},{"$f":"IFERROR('LTC Rev-Exp Region 5'!$O$48/'LTC Rev-Exp Region 5'!$O$9, 0)","v":{"v":0,"d":"$0.00"}}]
["LTC",null,null,{"$f":"Jurat!I$1","v":0},{"$f":"Jurat!D$33","v":"00:00:00"},"Q3","2017-09-30","Region 5","Operating Expense","Medical Expense","Other Medical","4.6.1","Premium Deficiency Reserve",{"$f":"IFERROR('LTC Rev-Exp Region 5'!$L$49/'LTC Rev-Exp Region 5'!$L$9, 0)","v":{"v":0,"d":"$0.00"}},{"$f":"IFERROR('LTC Rev-Exp Region 5'!$M$49/'LTC Rev-Exp Region 5'!$M$9, 0)","v":{"v":0,"d":"$0.00"}},{"$f":"IFERROR('LTC Rev-Exp Region 5'!$N$49/'LTC Rev-Exp Region 5'!$N$9, 0)","v":{"v":0,"d":"$0.00"}},{"$f":"IFERROR('LTC Rev-Exp Region 5'!$O$49/'LTC Rev-Exp Region 5'!$O$9, 0)","v":{"v":0,"d":"$0.00"}}]
["LTC",null,null,{"$f":"Jurat!I$1","v":0},{"$f":"Jurat!D$33","v":"00:00:00"},"Q3","2017-09-30","Region 5","Operating Expense","Medical Expense","Other Medical","4.8","Reinsurance Premiums",{"$f":"IFERROR('LTC Rev-Exp Region 5'!$L$51/'LTC Rev-Exp Region 5'!$L$9, 0)","v":{"v":0,"d":"$0.00"}},{"$f":"IFERROR('LTC Rev-Exp Region 5'!$M$51/'LTC Rev-Exp Region 5'!$M$9, 0)","v":{"v":0,"d":"$0.00"}},{"$f":"IFERROR('LTC Rev-Exp Region 5'!$N$51/'LTC Rev-Exp Region 5'!$N$9, 0)","v":{"v":0,"d":"$0.00"}},{"$f":"IFERROR('LTC Rev-Exp Region 5'!$O$51/'LTC Rev-Exp Region 5'!$O$9, 0)","v":{"v":0,"d":"$0.00"}}]
["LTC",null,null,{"$f":"Jurat!I$1","v":0},{"$f":"Jurat!D$33","v":"00:00:00"},"Q3","2017-09-30","Region 5","Operating Expense","Medical Expense","Other Medical","4.9","Reinsurance Recoveries",{"$f":"IFERROR('LTC Rev-Exp Region 5'!$L$52/'LTC Rev-Exp Region 5'!$L$9, 0)","v":{"v":0,"d":"$0.00"}},{"$f":"IFERROR('LTC Rev-Exp Region 5'!$M$52/'LTC Rev-Exp Region 5'!$M$9, 0)","v":{"v":0,"d":"$0.00"}},{"$f":"IFERROR('LTC Rev-Exp Region 5'!$N$52/'LTC Rev-Exp Region 5'!$N$9, 0)","v":{"v":0,"d":"$0.00"}},{"$f":"IFERROR('LTC Rev-Exp Region 5'!$O$52/'LTC Rev-Exp Region 5'!$O$9, 0)","v":{"v":0,"d":"$0.00"}}]
["LTC",null,null,{"$f":"Jurat!I$1","v":0},{"$f":"Jurat!D$33","v":"00:00:00"},"Q3","2017-09-30","Region 5","Operating Expense","Administrative Expense","Administrative","5.1","Salaries & Benefits",{"$f":"IFERROR('LTC Rev-Exp Region 5'!$L$57/'LTC Rev-Exp Region 5'!$L$9, 0)","v":{"v":0,"d":"$0.00"}},{"$f":"IFERROR('LTC Rev-Exp Region 5'!$M$57/'LTC Rev-Exp Region 5'!$M$9, 0)","v":{"v":0,"d":"$0.00"}},{"$f":"IFERROR('LTC Rev-Exp Region 5'!$N$57/'LTC Rev-Exp Region 5'!$N$9, 0)","v":{"v":0,"d":"$0.00"}},{"$f":"IFERROR('LTC Rev-Exp Region 5'!$O$57/'LTC Rev-Exp Region 5'!$O$9, 0)","v":{"v":0,"d":"$0.00"}}]
["LTC",null,null,{"$f":"Jurat!I$1","v":0},{"$f":"Jurat!D$33","v":"00:00:00"},"Q3","2017-09-30","Region 5","Operating Expense","Administrative Expense","Administrative","5.2","Administrative Services",{"$f":"IFERROR('LTC Rev-Exp Region 5'!$L$58/'LTC Rev-Exp Region 5'!$L$9, 0)","v":{"v":0,"d":"$0.00"}},{"$f":"IFERROR('LTC Rev-Exp Region 5'!$M$58/'LTC Rev-Exp Region 5'!$M$9, 0)","v":{"v":0,"d":"$0.00"}},{"$f":"IFERROR('LTC Rev-Exp Region 5'!$N$58/'LTC Rev-Exp Region 5'!$N$9, 0)","v":{"v":0,"d":"$0.00"}},{"$f":"IFERROR('LTC Rev-Exp Region 5'!$O$58/'LTC Rev-Exp Region 5'!$O$9, 0)","v":{"v":0,"d":"$0.00"}}]
["LTC",null,null,{"$f":"Jurat!I$1","v":0},{"$f":"Jurat!D$33","v":"00:00:00"},"Q3","2017-09-30","Region 5","Operating Expense","Administrative Expense","Administrative","5.3","Information Systems",{"$f":"IFERROR('LTC Rev-Exp Region 5'!$L$59/'LTC Rev-Exp Region 5'!$L$9, 0)","v":{"v":0,"d":"$0.00"}},{"$f":"IFERROR('LTC Rev-Exp Region 5'!$M$59/'LTC Rev-Exp Region 5'!$M$9, 0)","v":{"v":0,"d":"$0.00"}},{"$f":"IFERROR('LTC Rev-Exp Region 5'!$N$59/'LTC Rev-Exp Region 5'!$N$9, 0)","v":{"v":0,"d":"$0.00"}},{"$f":"IFERROR('LTC Rev-Exp Region 5'!$O$59/'LTC Rev-Exp Region 5'!$O$9, 0)","v":{"v":0,"d":"$0.00"}}]
["LTC",null,null,{"$f":"Jurat!I$1","v":0},{"$f":"Jurat!D$33","v":"00:00:00"},"Q3","2017-09-30","Region 5","Operating Expense","Administrative Expense","Administrative","5.4","Marketing Expenses",{"$f":"IFERROR('LTC Rev-Exp Region 5'!$L$60/'LTC Rev-Exp Region 5'!$L$9, 0)","v":{"v":0,"d":"$0.00"}},{"$f":"IFERROR('LTC Rev-Exp Region 5'!$M$60/'LTC Rev-Exp Region 5'!$M$9, 0)","v":{"v":0,"d":"$0.00"}},{"$f":"IFERROR('LTC Rev-Exp Region 5'!$N$60/'LTC Rev-Exp Region 5'!$N$9, 0)","v":{"v":0,"d":"$0.00"}},{"$f":"IFERROR('LTC Rev-Exp Region 5'!$O$60/'LTC Rev-Exp Region 5'!$O$9, 0)","v":{"v":0,"d":"$0.00"}}]
["LTC",null,null,{"$f":"Jurat!I$1","v":0},{"$f":"Jurat!D$33","v":"00:00:00"},"Q3","2017-09-30","Region 5","Operating Expense","Administrative Expense","Administrative","5.5","General  Administration",{"$f":"IFERROR('LTC Rev-Exp Region 5'!$L$61/'LTC Rev-Exp Region 5'!$L$9, 0)","v":{"v":0,"d":"$0.00"}},{"$f":"IFERROR('LTC Rev-Exp Region 5'!$M$61/'LTC Rev-Exp Region 5'!$M$9, 0)","v":{"v":0,"d":"$0.00"}},{"$f":"IFERROR('LTC Rev-Exp Region 5'!$N$61/'LTC Rev-Exp Region 5'!$N$9, 0)","v":{"v":0,"d":"$0.00"}},{"$f":"IFERROR('LTC Rev-Exp Region 5'!$O$61/'LTC Rev-Exp Region 5'!$O$9, 0)","v":{"v":0,"d":"$0.00"}}]
["LTC",null,null,{"$f":"Jurat!I$1","v":0},{"$f":"Jurat!D$33","v":"00:00:00"},"Q3","2017-09-30","Region 5","Operating Expense","Administrative Expense","Administrative","5.6","Compliance/Regulatory",{"$f":"IFERROR('LTC Rev-Exp Region 5'!$L$62/'LTC Rev-Exp Region 5'!$L$9, 0)","v":{"v":0,"d":"$0.00"}},{"$f":"IFERROR('LTC Rev-Exp Region 5'!$M$62/'LTC Rev-Exp Region 5'!$M$9, 0)","v":{"v":0,"d":"$0.00"}},{"$f":"IFERROR('LTC Rev-Exp Region 5'!$N$62/'LTC Rev-Exp Region 5'!$N$9, 0)","v":{"v":0,"d":"$0.00"}},{"$f":"IFERROR('LTC Rev-Exp Region 5'!$O$62/'LTC Rev-Exp Region 5'!$O$9, 0)","v":{"v":0,"d":"$0.00"}}]
["LTC",null,null,{"$f":"Jurat!I$1","v":0},{"$f":"Jurat!D$33","v":"00:00:00"},"Q3","2017-09-30","Region 5","Operating Expense","Taxes & Fees","Taxes & Fees","6.1","State Premium Tax",{"$f":"IFERROR('LTC Rev-Exp Region 5'!$L$64/'LTC Rev-Exp Region 5'!$L$9, 0)","v":{"v":0,"d":"$0.00"}},{"$f":"IFERROR('LTC Rev-Exp Region 5'!$M$64/'LTC Rev-Exp Region 5'!$M$9, 0)","v":{"v":0,"d":"$0.00"}},{"$f":"IFERROR('LTC Rev-Exp Region 5'!$N$64/'LTC Rev-Exp Region 5'!$N$9, 0)","v":{"v":0,"d":"$0.00"}},{"$f":"IFERROR('LTC Rev-Exp Region 5'!$O$64/'LTC Rev-Exp Region 5'!$O$9, 0)","v":{"v":0,"d":"$0.00"}}]
["LTC",null,null,{"$f":"Jurat!I$1","v":0},{"$f":"Jurat!D$33","v":"00:00:00"},"Q3","2017-09-30","Region 5","Operating Expense","Taxes & Fees","Taxes & Fees","6.2","Department of Insurance Assessments",{"$f":"IFERROR('LTC Rev-Exp Region 5'!$L$65/'LTC Rev-Exp Region 5'!$L$9, 0)","v":{"v":0,"d":"$0.00"}},{"$f":"IFERROR('LTC Rev-Exp Region 5'!$M$65/'LTC Rev-Exp Region 5'!$M$9, 0)","v":{"v":0,"d":"$0.00"}},{"$f":"IFERROR('LTC Rev-Exp Region 5'!$N$65/'LTC Rev-Exp Region 5'!$N$9, 0)","v":{"v":0,"d":"$0.00"}},{"$f":"IFERROR('LTC Rev-Exp Region 5'!$O$65/'LTC Rev-Exp Region 5'!$O$9, 0)","v":{"v":0,"d":"$0.00"}}]
["LTC",null,null,{"$f":"Jurat!I$1","v":0},{"$f":"Jurat!D$33","v":"00:00:00"},"Q3","2017-09-30","Region 5","Non-Operating Expense","Income Tax Expense","Income Tax Expense","9.0","Income Tax Expense",{"$f":"IFERROR('LTC Rev-Exp Region 5'!$L$72/'LTC Rev-Exp Region 5'!$L$9, 0)","v":{"v":0,"d":"$0.00"}},{"$f":"IFERROR('LTC Rev-Exp Region 5'!$M$72/'LTC Rev-Exp Region 5'!$M$9, 0)","v":{"v":0,"d":"$0.00"}},{"$f":"IFERROR('LTC Rev-Exp Region 5'!$N$72/'LTC Rev-Exp Region 5'!$N$9, 0)","v":{"v":0,"d":"$0.00"}},{"$f":"IFERROR('LTC Rev-Exp Region 5'!$O$72/'LTC Rev-Exp Region 5'!$O$9, 0)","v":{"v":0,"d":"$0.00"}}]
["LTC",null,null,{"$f":"Jurat!I$1","v":0},{"$f":"Jurat!D$33","v":"00:00:00"},"Q4","2017-12-31","Region 5","Operating Revenue","Capitation","Capitation",1.1,"Capitation",{"$f":"IFERROR('LTC Rev-Exp Region 5'!$P$11/'LTC Rev-Exp Region 5'!$P$9, 0)","v":{"v":0,"d":"$0.00"}},{"$f":"IFERROR('LTC Rev-Exp Region 5'!$Q$11/'LTC Rev-Exp Region 5'!$Q$9, 0)","v":{"v":0,"d":"$0.00"}},{"$f":"IFERROR('LTC Rev-Exp Region 5'!$R$11/'LTC Rev-Exp Region 5'!$R$9, 0)","v":{"v":0,"d":"$0.00"}},{"$f":"IFERROR('LTC Rev-Exp Region 5'!$S$11/'LTC Rev-Exp Region 5'!$S$9, 0)","v":{"v":0,"d":"$0.00"}}]
["LTC",null,null,{"$f":"Jurat!I$1","v":0},{"$f":"Jurat!D$33","v":"00:00:00"},"Q4","2017-12-31","Region 5","Operating Revenue","Capitation","NH Rate Reconciliation",1.2,"NH Rate Reconciliation",{"$f":"IFERROR('LTC Rev-Exp Region 5'!$P$12/'LTC Rev-Exp Region 5'!$P$9, 0)","v":{"v":0,"d":"$0.00"}},{"$f":"IFERROR('LTC Rev-Exp Region 5'!$Q$12/'LTC Rev-Exp Region 5'!$Q$9, 0)","v":{"v":0,"d":"$0.00"}},{"$f":"IFERROR('LTC Rev-Exp Region 5'!$R$12/'LTC Rev-Exp Region 5'!$R$9, 0)","v":{"v":0,"d":"$0.00"}},{"$f":"IFERROR('LTC Rev-Exp Region 5'!$S$12/'LTC Rev-Exp Region 5'!$S$9, 0)","v":{"v":0,"d":"$0.00"}}]
["LTC",null,null,{"$f":"Jurat!I$1","v":0},{"$f":"Jurat!D$33","v":"00:00:00"},"Q4","2017-12-31","Region 5","Operating Revenue","Other Revenue","Other Revenue",1.3,"Other Revenue",{"$f":"IFERROR('LTC Rev-Exp Region 5'!$P$13/'LTC Rev-Exp Region 5'!$P$9, 0)","v":{"v":0,"d":"$0.00"}},{"$f":"IFERROR('LTC Rev-Exp Region 5'!$Q$13/'LTC Rev-Exp Region 5'!$Q$9, 0)","v":{"v":0,"d":"$0.00"}},{"$f":"IFERROR('LTC Rev-Exp Region 5'!$R$13/'LTC Rev-Exp Region 5'!$R$9, 0)","v":{"v":0,"d":"$0.00"}},{"$f":"IFERROR('LTC Rev-Exp Region 5'!$S$13/'LTC Rev-Exp Region 5'!$S$9, 0)","v":{"v":0,"d":"$0.00"}}]
["LTC",null,null,{"$f":"Jurat!I$1","v":0},{"$f":"Jurat!D$33","v":"00:00:00"},"Q4","2017-12-31","Region 5","Operating Expense","Medical Expense","NF & Hospice","2.3","Nursing Facility FFS (Medicaid)",{"$f":"IFERROR('LTC Rev-Exp Region 5'!$P$19/'LTC Rev-Exp Region 5'!$P$9, 0)","v":{"v":0,"d":"$0.00"}},{"$f":"IFERROR('LTC Rev-Exp Region 5'!$Q$19/'LTC Rev-Exp Region 5'!$Q$9, 0)","v":{"v":0,"d":"$0.00"}},{"$f":"IFERROR('LTC Rev-Exp Region 5'!$R$19/'LTC Rev-Exp Region 5'!$R$9, 0)","v":{"v":0,"d":"$0.00"}},{"$f":"IFERROR('LTC Rev-Exp Region 5'!$S$19/'LTC Rev-Exp Region 5'!$S$9, 0)","v":{"v":0,"d":"$0.00"}}]
["LTC",null,null,{"$f":"Jurat!I$1","v":0},{"$f":"Jurat!D$33","v":"00:00:00"},"Q4","2017-12-31","Region 5","Operating Expense","Medical Expense","NF & Hospice","2.4","Nursing Facility FFS (Crossover)",{"$f":"IFERROR('LTC Rev-Exp Region 5'!$P$20/'LTC Rev-Exp Region 5'!$P$9, 0)","v":{"v":0,"d":"$0.00"}},{"$f":"IFERROR('LTC Rev-Exp Region 5'!$Q$20/'LTC Rev-Exp Region 5'!$Q$9, 0)","v":{"v":0,"d":"$0.00"}},{"$f":"IFERROR('LTC Rev-Exp Region 5'!$R$20/'LTC Rev-Exp Region 5'!$R$9, 0)","v":{"v":0,"d":"$0.00"}},{"$f":"IFERROR('LTC Rev-Exp Region 5'!$S$20/'LTC Rev-Exp Region 5'!$S$9, 0)","v":{"v":0,"d":"$0.00"}}]
["LTC",null,null,{"$f":"Jurat!I$1","v":0},{"$f":"Jurat!D$33","v":"00:00:00"},"Q4","2017-12-31","Region 5","Operating Expense","Medical Expense","NF & Hospice","2.6","Hospice FFS",{"$f":"IFERROR('LTC Rev-Exp Region 5'!$P$22/'LTC Rev-Exp Region 5'!$P$9, 0)","v":{"v":0,"d":"$0.00"}},{"$f":"IFERROR('LTC Rev-Exp Region 5'!$Q$22/'LTC Rev-Exp Region 5'!$Q$9, 0)","v":{"v":0,"d":"$0.00"}},{"$f":"IFERROR('LTC Rev-Exp Region 5'!$R$22/'LTC Rev-Exp Region 5'!$R$9, 0)","v":{"v":0,"d":"$0.00"}},{"$f":"IFERROR('LTC Rev-Exp Region 5'!$S$22/'LTC Rev-Exp Region 5'!$S$9, 0)","v":{"v":0,"d":"$0.00"}}]
["LTC",null,null,{"$f":"Jurat!I$1","v":0},{"$f":"Jurat!D$33","v":"00:00:00"},"Q4","2017-12-31","Region 5","Operating Expense","Medical Expense","NF & Hospice","2.7","Ending IBNP for NF & Hospice",{"$f":"IFERROR('LTC Rev-Exp Region 5'!$P$23/'LTC Rev-Exp Region 5'!$P$9, 0)","v":{"v":0,"d":"$0.00"}},{"$f":"IFERROR('LTC Rev-Exp Region 5'!$Q$23/'LTC Rev-Exp Region 5'!$Q$9, 0)","v":{"v":0,"d":"$0.00"}},{"$f":"IFERROR('LTC Rev-Exp Region 5'!$R$23/'LTC Rev-Exp Region 5'!$R$9, 0)","v":{"v":0,"d":"$0.00"}},{"$f":"IFERROR('LTC Rev-Exp Region 5'!$S$23/'LTC Rev-Exp Region 5'!$S$9, 0)","v":{"v":0,"d":"$0.00"}}]
["LTC",null,null,{"$f":"Jurat!I$1","v":0},{"$f":"Jurat!D$33","v":"00:00:00"},"Q4","2017-12-31","Region 5","Operating Expense","Medical Expense","NF & Hospice","2.8","NF & Hospice Subcapitated",{"$f":"IFERROR('LTC Rev-Exp Region 5'!$P$24/'LTC Rev-Exp Region 5'!$P$9, 0)","v":{"v":0,"d":"$0.00"}},{"$f":"IFERROR('LTC Rev-Exp Region 5'!$Q$24/'LTC Rev-Exp Region 5'!$Q$9, 0)","v":{"v":0,"d":"$0.00"}},{"$f":"IFERROR('LTC Rev-Exp Region 5'!$R$24/'LTC Rev-Exp Region 5'!$R$9, 0)","v":{"v":0,"d":"$0.00"}},{"$f":"IFERROR('LTC Rev-Exp Region 5'!$S$24/'LTC Rev-Exp Region 5'!$S$9, 0)","v":{"v":0,"d":"$0.00"}}]
["LTC",null,null,{"$f":"Jurat!I$1","v":0},{"$f":"Jurat!D$33","v":"00:00:00"},"Q4","2017-12-31","Region 5","Operating Expense","Medical Expense","NF & Hospice","2.9","NF & Hospice Settlements",{"$f":"IFERROR('LTC Rev-Exp Region 5'!$P$25/'LTC Rev-Exp Region 5'!$P$9, 0)","v":{"v":0,"d":"$0.00"}},{"$f":"IFERROR('LTC Rev-Exp Region 5'!$Q$25/'LTC Rev-Exp Region 5'!$Q$9, 0)","v":{"v":0,"d":"$0.00"}},{"$f":"IFERROR('LTC Rev-Exp Region 5'!$R$25/'LTC Rev-Exp Region 5'!$R$9, 0)","v":{"v":0,"d":"$0.00"}},{"$f":"IFERROR('LTC Rev-Exp Region 5'!$S$25/'LTC Rev-Exp Region 5'!$S$9, 0)","v":{"v":0,"d":"$0.00"}}]
["LTC",null,null,{"$f":"Jurat!I$1","v":0},{"$f":"Jurat!D$33","v":"00:00:00"},"Q4","2017-12-31","Region 5","Operating Expense","Medical Expense","LTC Services","2.11","Assisted Living FFS",{"$f":"IFERROR('LTC Rev-Exp Region 5'!$P$27/'LTC Rev-Exp Region 5'!$P$9, 0)","v":{"v":0,"d":"$0.00"}},{"$f":"IFERROR('LTC Rev-Exp Region 5'!$Q$27/'LTC Rev-Exp Region 5'!$Q$9, 0)","v":{"v":0,"d":"$0.00"}},{"$f":"IFERROR('LTC Rev-Exp Region 5'!$R$27/'LTC Rev-Exp Region 5'!$R$9, 0)","v":{"v":0,"d":"$0.00"}},{"$f":"IFERROR('LTC Rev-Exp Region 5'!$S$27/'LTC Rev-Exp Region 5'!$S$9, 0)","v":{"v":0,"d":"$0.00"}}]
["LTC",null,null,{"$f":"Jurat!I$1","v":0},{"$f":"Jurat!D$33","v":"00:00:00"},"Q4","2017-12-31","Region 5","Operating Expense","Medical Expense","LTC Services","2.12","Home Health FFS",{"$f":"IFERROR('LTC Rev-Exp Region 5'!$P$28/'LTC Rev-Exp Region 5'!$P$9, 0)","v":{"v":0,"d":"$0.00"}},{"$f":"IFERROR('LTC Rev-Exp Region 5'!$Q$28/'LTC Rev-Exp Region 5'!$Q$9, 0)","v":{"v":0,"d":"$0.00"}},{"$f":"IFERROR('LTC Rev-Exp Region 5'!$R$28/'LTC Rev-Exp Region 5'!$R$9, 0)","v":{"v":0,"d":"$0.00"}},{"$f":"IFERROR('LTC Rev-Exp Region 5'!$S$28/'LTC Rev-Exp Region 5'!$S$9, 0)","v":{"v":0,"d":"$0.00"}}]
["LTC",null,null,{"$f":"Jurat!I$1","v":0},{"$f":"Jurat!D$33","v":"00:00:00"},"Q4","2017-12-31","Region 5","Operating Expense","Medical Expense","LTC Services","2.13","Medical Equipment/Supplies FFS",{"$f":"IFERROR('LTC Rev-Exp Region 5'!$P$29/'LTC Rev-Exp Region 5'!$P$9, 0)","v":{"v":0,"d":"$0.00"}},{"$f":"IFERROR('LTC Rev-Exp Region 5'!$Q$29/'LTC Rev-Exp Region 5'!$Q$9, 0)","v":{"v":0,"d":"$0.00"}},{"$f":"IFERROR('LTC Rev-Exp Region 5'!$R$29/'LTC Rev-Exp Region 5'!$R$9, 0)","v":{"v":0,"d":"$0.00"}},{"$f":"IFERROR('LTC Rev-Exp Region 5'!$S$29/'LTC Rev-Exp Region 5'!$S$9, 0)","v":{"v":0,"d":"$0.00"}}]
["LTC",null,null,{"$f":"Jurat!I$1","v":0},{"$f":"Jurat!D$33","v":"00:00:00"},"Q4","2017-12-31","Region 5","Operating Expense","Medical Expense","LTC Services","2.14","Therapy FFS",{"$f":"IFERROR('LTC Rev-Exp Region 5'!$P$30/'LTC Rev-Exp Region 5'!$P$9, 0)","v":{"v":0,"d":"$0.00"}},{"$f":"IFERROR('LTC Rev-Exp Region 5'!$Q$30/'LTC Rev-Exp Region 5'!$Q$9, 0)","v":{"v":0,"d":"$0.00"}},{"$f":"IFERROR('LTC Rev-Exp Region 5'!$R$30/'LTC Rev-Exp Region 5'!$R$9, 0)","v":{"v":0,"d":"$0.00"}},{"$f":"IFERROR('LTC Rev-Exp Region 5'!$S$30/'LTC Rev-Exp Region 5'!$S$9, 0)","v":{"v":0,"d":"$0.00"}}]
["LTC",null,null,{"$f":"Jurat!I$1","v":0},{"$f":"Jurat!D$33","v":"00:00:00"},"Q4","2017-12-31","Region 5","Operating Expense","Medical Expense","LTC Services","2.15","Transportation FFS",{"$f":"IFERROR('LTC Rev-Exp Region 5'!$P$31/'LTC Rev-Exp Region 5'!$P$9, 0)","v":{"v":0,"d":"$0.00"}},{"$f":"IFERROR('LTC Rev-Exp Region 5'!$Q$31/'LTC Rev-Exp Region 5'!$Q$9, 0)","v":{"v":0,"d":"$0.00"}},{"$f":"IFERROR('LTC Rev-Exp Region 5'!$R$31/'LTC Rev-Exp Region 5'!$R$9, 0)","v":{"v":0,"d":"$0.00"}},{"$f":"IFERROR('LTC Rev-Exp Region 5'!$S$31/'LTC Rev-Exp Region 5'!$S$9, 0)","v":{"v":0,"d":"$0.00"}}]
["LTC",null,null,{"$f":"Jurat!I$1","v":0},{"$f":"Jurat!D$33","v":"00:00:00"},"Q4","2017-12-31","Region 5","Operating Expense","Medical Expense","LTC Services","2.16","Case Management FFS (Plan Provided)",{"$f":"IFERROR('LTC Rev-Exp Region 5'!$P$32/'LTC Rev-Exp Region 5'!$P$9, 0)","v":{"v":0,"d":"$0.00"}},{"$f":"IFERROR('LTC Rev-Exp Region 5'!$Q$32/'LTC Rev-Exp Region 5'!$Q$9, 0)","v":{"v":0,"d":"$0.00"}},{"$f":"IFERROR('LTC Rev-Exp Region 5'!$R$32/'LTC Rev-Exp Region 5'!$R$9, 0)","v":{"v":0,"d":"$0.00"}},{"$f":"IFERROR('LTC Rev-Exp Region 5'!$S$32/'LTC Rev-Exp Region 5'!$S$9, 0)","v":{"v":0,"d":"$0.00"}}]
["LTC",null,null,{"$f":"Jurat!I$1","v":0},{"$f":"Jurat!D$33","v":"00:00:00"},"Q4","2017-12-31","Region 5","Operating Expense","Medical Expense","LTC Services","2.17","Case Management FF (Non-Plan Provided)",{"$f":"IFERROR('LTC Rev-Exp Region 5'!$P$33/'LTC Rev-Exp Region 5'!$P$9, 0)","v":{"v":0,"d":"$0.00"}},{"$f":"IFERROR('LTC Rev-Exp Region 5'!$Q$33/'LTC Rev-Exp Region 5'!$Q$9, 0)","v":{"v":0,"d":"$0.00"}},{"$f":"IFERROR('LTC Rev-Exp Region 5'!$R$33/'LTC Rev-Exp Region 5'!$R$9, 0)","v":{"v":0,"d":"$0.00"}},{"$f":"IFERROR('LTC Rev-Exp Region 5'!$S$33/'LTC Rev-Exp Region 5'!$S$9, 0)","v":{"v":0,"d":"$0.00"}}]
["LTC",null,null,{"$f":"Jurat!I$1","v":0},{"$f":"Jurat!D$33","v":"00:00:00"},"Q4","2017-12-31","Region 5","Operating Expense","Medical Expense","LTC Services","2.18","HCBS FFS",{"$f":"IFERROR('LTC Rev-Exp Region 5'!$P$34/'LTC Rev-Exp Region 5'!$P$9, 0)","v":{"v":0,"d":"$0.00"}},{"$f":"IFERROR('LTC Rev-Exp Region 5'!$Q$34/'LTC Rev-Exp Region 5'!$Q$9, 0)","v":{"v":0,"d":"$0.00"}},{"$f":"IFERROR('LTC Rev-Exp Region 5'!$R$34/'LTC Rev-Exp Region 5'!$R$9, 0)","v":{"v":0,"d":"$0.00"}},{"$f":"IFERROR('LTC Rev-Exp Region 5'!$S$34/'LTC Rev-Exp Region 5'!$S$9, 0)","v":{"v":0,"d":"$0.00"}}]
["LTC",null,null,{"$f":"Jurat!I$1","v":0},{"$f":"Jurat!D$33","v":"00:00:00"},"Q4","2017-12-31","Region 5","Operating Expense","Medical Expense","LTC Services","2.19","Subcapitated LTC Services",{"$f":"IFERROR('LTC Rev-Exp Region 5'!$P$35/'LTC Rev-Exp Region 5'!$P$9, 0)","v":{"v":0,"d":"$0.00"}},{"$f":"IFERROR('LTC Rev-Exp Region 5'!$Q$35/'LTC Rev-Exp Region 5'!$Q$9, 0)","v":{"v":0,"d":"$0.00"}},{"$f":"IFERROR('LTC Rev-Exp Region 5'!$R$35/'LTC Rev-Exp Region 5'!$R$9, 0)","v":{"v":0,"d":"$0.00"}},{"$f":"IFERROR('LTC Rev-Exp Region 5'!$S$35/'LTC Rev-Exp Region 5'!$S$9, 0)","v":{"v":0,"d":"$0.00"}}]
["LTC",null,null,{"$f":"Jurat!I$1","v":0},{"$f":"Jurat!D$33","v":"00:00:00"},"Q4","2017-12-31","Region 5","Operating Expense","Medical Expense","LTC Services","2.20","Ending IBNP for Long Term Care Services",{"$f":"IFERROR('LTC Rev-Exp Region 5'!$P$36/'LTC Rev-Exp Region 5'!$P$9, 0)","v":{"v":0,"d":"$0.00"}},{"$f":"IFERROR('LTC Rev-Exp Region 5'!$Q$36/'LTC Rev-Exp Region 5'!$Q$9, 0)","v":{"v":0,"d":"$0.00"}},{"$f":"IFERROR('LTC Rev-Exp Region 5'!$R$36/'LTC Rev-Exp Region 5'!$R$9, 0)","v":{"v":0,"d":"$0.00"}},{"$f":"IFERROR('LTC Rev-Exp Region 5'!$S$36/'LTC Rev-Exp Region 5'!$S$9, 0)","v":{"v":0,"d":"$0.00"}}]
["LTC",null,null,{"$f":"Jurat!I$1","v":0},{"$f":"Jurat!D$33","v":"00:00:00"},"Q4","2017-12-31","Region 5","Operating Expense","Medical Expense","LTC Services","2.21","LTC Services Settlements",{"$f":"IFERROR('LTC Rev-Exp Region 5'!$P$37/'LTC Rev-Exp Region 5'!$P$9, 0)","v":{"v":0,"d":"$0.00"}},{"$f":"IFERROR('LTC Rev-Exp Region 5'!$Q$37/'LTC Rev-Exp Region 5'!$Q$9, 0)","v":{"v":0,"d":"$0.00"}},{"$f":"IFERROR('LTC Rev-Exp Region 5'!$R$37/'LTC Rev-Exp Region 5'!$R$9, 0)","v":{"v":0,"d":"$0.00"}},{"$f":"IFERROR('LTC Rev-Exp Region 5'!$S$37/'LTC Rev-Exp Region 5'!$S$9, 0)","v":{"v":0,"d":"$0.00"}}]
["LTC",null,null,{"$f":"Jurat!I$1","v":0},{"$f":"Jurat!D$33","v":"00:00:00"},"Q4","2017-12-31","Region 5","Operating Expense","Medical Expense","Expanded Benefits","3.1","Expanded Benefits FFS",{"$f":"IFERROR('LTC Rev-Exp Region 5'!$P$39/'LTC Rev-Exp Region 5'!$P$9, 0)","v":{"v":0,"d":"$0.00"}},{"$f":"IFERROR('LTC Rev-Exp Region 5'!$Q$39/'LTC Rev-Exp Region 5'!$Q$9, 0)","v":{"v":0,"d":"$0.00"}},{"$f":"IFERROR('LTC Rev-Exp Region 5'!$R$39/'LTC Rev-Exp Region 5'!$R$9, 0)","v":{"v":0,"d":"$0.00"}},{"$f":"IFERROR('LTC Rev-Exp Region 5'!$S$39/'LTC Rev-Exp Region 5'!$S$9, 0)","v":{"v":0,"d":"$0.00"}}]
["LTC",null,null,{"$f":"Jurat!I$1","v":0},{"$f":"Jurat!D$33","v":"00:00:00"},"Q4","2017-12-31","Region 5","Operating Expense","Medical Expense","Expanded Benefits","3.2","Expanded Benefits Subcapitation",{"$f":"IFERROR('LTC Rev-Exp Region 5'!$P$40/'LTC Rev-Exp Region 5'!$P$9, 0)","v":{"v":0,"d":"$0.00"}},{"$f":"IFERROR('LTC Rev-Exp Region 5'!$Q$40/'LTC Rev-Exp Region 5'!$Q$9, 0)","v":{"v":0,"d":"$0.00"}},{"$f":"IFERROR('LTC Rev-Exp Region 5'!$R$40/'LTC Rev-Exp Region 5'!$R$9, 0)","v":{"v":0,"d":"$0.00"}},{"$f":"IFERROR('LTC Rev-Exp Region 5'!$S$40/'LTC Rev-Exp Region 5'!$S$9, 0)","v":{"v":0,"d":"$0.00"}}]
["LTC",null,null,{"$f":"Jurat!I$1","v":0},{"$f":"Jurat!D$33","v":"00:00:00"},"Q4","2017-12-31","Region 5","Operating Expense","Medical Expense","Expanded Benefits","3.3","Ending IBNP for Expanded Benefits",{"$f":"IFERROR('LTC Rev-Exp Region 5'!$P$41/'LTC Rev-Exp Region 5'!$P$9, 0)","v":{"v":0,"d":"$0.00"}},{"$f":"IFERROR('LTC Rev-Exp Region 5'!$Q$41/'LTC Rev-Exp Region 5'!$Q$9, 0)","v":{"v":0,"d":"$0.00"}},{"$f":"IFERROR('LTC Rev-Exp Region 5'!$R$41/'LTC Rev-Exp Region 5'!$R$9, 0)","v":{"v":0,"d":"$0.00"}},{"$f":"IFERROR('LTC Rev-Exp Region 5'!$S$41/'LTC Rev-Exp Region 5'!$S$9, 0)","v":{"v":0,"d":"$0.00"}}]
["LTC",null,null,{"$f":"Jurat!I$1","v":0},{"$f":"Jurat!D$33","v":"00:00:00"},"Q4","2017-12-31","Region 5","Operating Expense","Medical Expense","Expanded Benefits","3.4","Expanded Benefits Settlements",{"$f":"IFERROR('LTC Rev-Exp Region 5'!$P$42/'LTC Rev-Exp Region 5'!$P$9, 0)","v":{"v":0,"d":"$0.00"}},{"$f":"IFERROR('LTC Rev-Exp Region 5'!$Q$42/'LTC Rev-Exp Region 5'!$Q$9, 0)","v":{"v":0,"d":"$0.00"}},{"$f":"IFERROR('LTC Rev-Exp Region 5'!$R$42/'LTC Rev-Exp Region 5'!$R$9, 0)","v":{"v":0,"d":"$0.00"}},{"$f":"IFERROR('LTC Rev-Exp Region 5'!$S$42/'LTC Rev-Exp Region 5'!$S$9, 0)","v":{"v":0,"d":"$0.00"}}]
["LTC",null,null,{"$f":"Jurat!I$1","v":0},{"$f":"Jurat!D$33","v":"00:00:00"},"Q4","2017-12-31","Region 5","Operating Expense","Medical Expense","Other Medical","4.5","TPL & Fraud/Abuse Recoveries",{"$f":"IFERROR('LTC Rev-Exp Region 5'!$P$48/'LTC Rev-Exp Region 5'!$P$9, 0)","v":{"v":0,"d":"$0.00"}},{"$f":"IFERROR('LTC Rev-Exp Region 5'!$Q$48/'LTC Rev-Exp Region 5'!$Q$9, 0)","v":{"v":0,"d":"$0.00"}},{"$f":"IFERROR('LTC Rev-Exp Region 5'!$R$48/'LTC Rev-Exp Region 5'!$R$9, 0)","v":{"v":0,"d":"$0.00"}},{"$f":"IFERROR('LTC Rev-Exp Region 5'!$S$48/'LTC Rev-Exp Region 5'!$S$9, 0)","v":{"v":0,"d":"$0.00"}}]
["LTC",null,null,{"$f":"Jurat!I$1","v":0},{"$f":"Jurat!D$33","v":"00:00:00"},"Q4","2017-12-31","Region 5","Operating Expense","Medical Expense","Other Medical","4.6.1","Premium Deficiency Reserve",{"$f":"IFERROR('LTC Rev-Exp Region 5'!$P$49/'LTC Rev-Exp Region 5'!$P$9, 0)","v":{"v":0,"d":"$0.00"}},{"$f":"IFERROR('LTC Rev-Exp Region 5'!$Q$49/'LTC Rev-Exp Region 5'!$Q$9, 0)","v":{"v":0,"d":"$0.00"}},{"$f":"IFERROR('LTC Rev-Exp Region 5'!$R$49/'LTC Rev-Exp Region 5'!$R$9, 0)","v":{"v":0,"d":"$0.00"}},{"$f":"IFERROR('LTC Rev-Exp Region 5'!$S$49/'LTC Rev-Exp Region 5'!$S$9, 0)","v":{"v":0,"d":"$0.00"}}]
["LTC",null,null,{"$f":"Jurat!I$1","v":0},{"$f":"Jurat!D$33","v":"00:00:00"},"Q4","2017-12-31","Region 5","Operating Expense","Medical Expense","Other Medical","4.8","Reinsurance Premiums",{"$f":"IFERROR('LTC Rev-Exp Region 5'!$P$51/'LTC Rev-Exp Region 5'!$P$9, 0)","v":{"v":0,"d":"$0.00"}},{"$f":"IFERROR('LTC Rev-Exp Region 5'!$Q$51/'LTC Rev-Exp Region 5'!$Q$9, 0)","v":{"v":0,"d":"$0.00"}},{"$f":"IFERROR('LTC Rev-Exp Region 5'!$R$51/'LTC Rev-Exp Region 5'!$R$9, 0)","v":{"v":0,"d":"$0.00"}},{"$f":"IFERROR('LTC Rev-Exp Region 5'!$S$51/'LTC Rev-Exp Region 5'!$S$9, 0)","v":{"v":0,"d":"$0.00"}}]
["LTC",null,null,{"$f":"Jurat!I$1","v":0},{"$f":"Jurat!D$33","v":"00:00:00"},"Q4","2017-12-31","Region 5","Operating Expense","Medical Expense","Other Medical","4.9","Reinsurance Recoveries",{"$f":"IFERROR('LTC Rev-Exp Region 5'!$P$52/'LTC Rev-Exp Region 5'!$P$9, 0)","v":{"v":0,"d":"$0.00"}},{"$f":"IFERROR('LTC Rev-Exp Region 5'!$Q$52/'LTC Rev-Exp Region 5'!$Q$9, 0)","v":{"v":0,"d":"$0.00"}},{"$f":"IFERROR('LTC Rev-Exp Region 5'!$R$52/'LTC Rev-Exp Region 5'!$R$9, 0)","v":{"v":0,"d":"$0.00"}},{"$f":"IFERROR('LTC Rev-Exp Region 5'!$S$52/'LTC Rev-Exp Region 5'!$S$9, 0)","v":{"v":0,"d":"$0.00"}}]
["LTC",null,null,{"$f":"Jurat!I$1","v":0},{"$f":"Jurat!D$33","v":"00:00:00"},"Q4","2017-12-31","Region 5","Operating Expense","Administrative Expense","Administrative","5.1","Salaries & Benefits",{"$f":"IFERROR('LTC Rev-Exp Region 5'!$P$57/'LTC Rev-Exp Region 5'!$P$9, 0)","v":{"v":0,"d":"$0.00"}},{"$f":"IFERROR('LTC Rev-Exp Region 5'!$Q$57/'LTC Rev-Exp Region 5'!$Q$9, 0)","v":{"v":0,"d":"$0.00"}},{"$f":"IFERROR('LTC Rev-Exp Region 5'!$R$57/'LTC Rev-Exp Region 5'!$R$9, 0)","v":{"v":0,"d":"$0.00"}},{"$f":"IFERROR('LTC Rev-Exp Region 5'!$S$57/'LTC Rev-Exp Region 5'!$S$9, 0)","v":{"v":0,"d":"$0.00"}}]
["LTC",null,null,{"$f":"Jurat!I$1","v":0},{"$f":"Jurat!D$33","v":"00:00:00"},"Q4","2017-12-31","Region 5","Operating Expense","Administrative Expense","Administrative","5.2","Administrative Services",{"$f":"IFERROR('LTC Rev-Exp Region 5'!$P$58/'LTC Rev-Exp Region 5'!$P$9, 0)","v":{"v":0,"d":"$0.00"}},{"$f":"IFERROR('LTC Rev-Exp Region 5'!$Q$58/'LTC Rev-Exp Region 5'!$Q$9, 0)","v":{"v":0,"d":"$0.00"}},{"$f":"IFERROR('LTC Rev-Exp Region 5'!$R$58/'LTC Rev-Exp Region 5'!$R$9, 0)","v":{"v":0,"d":"$0.00"}},{"$f":"IFERROR('LTC Rev-Exp Region 5'!$S$58/'LTC Rev-Exp Region 5'!$S$9, 0)","v":{"v":0,"d":"$0.00"}}]
["LTC",null,null,{"$f":"Jurat!I$1","v":0},{"$f":"Jurat!D$33","v":"00:00:00"},"Q4","2017-12-31","Region 5","Operating Expense","Administrative Expense","Administrative","5.3","Information Systems",{"$f":"IFERROR('LTC Rev-Exp Region 5'!$P$59/'LTC Rev-Exp Region 5'!$P$9, 0)","v":{"v":0,"d":"$0.00"}},{"$f":"IFERROR('LTC Rev-Exp Region 5'!$Q$59/'LTC Rev-Exp Region 5'!$Q$9, 0)","v":{"v":0,"d":"$0.00"}},{"$f":"IFERROR('LTC Rev-Exp Region 5'!$R$59/'LTC Rev-Exp Region 5'!$R$9, 0)","v":{"v":0,"d":"$0.00"}},{"$f":"IFERROR('LTC Rev-Exp Region 5'!$S$59/'LTC Rev-Exp Region 5'!$S$9, 0)","v":{"v":0,"d":"$0.00"}}]
["LTC",null,null,{"$f":"Jurat!I$1","v":0},{"$f":"Jurat!D$33","v":"00:00:00"},"Q4","2017-12-31","Region 5","Operating Expense","Administrative Expense","Administrative","5.4","Marketing Expenses",{"$f":"IFERROR('LTC Rev-Exp Region 5'!$P$60/'LTC Rev-Exp Region 5'!$P$9, 0)","v":{"v":0,"d":"$0.00"}},{"$f":"IFERROR('LTC Rev-Exp Region 5'!$Q$60/'LTC Rev-Exp Region 5'!$Q$9, 0)","v":{"v":0,"d":"$0.00"}},{"$f":"IFERROR('LTC Rev-Exp Region 5'!$R$60/'LTC Rev-Exp Region 5'!$R$9, 0)","v":{"v":0,"d":"$0.00"}},{"$f":"IFERROR('LTC Rev-Exp Region 5'!$S$60/'LTC Rev-Exp Region 5'!$S$9, 0)","v":{"v":0,"d":"$0.00"}}]
["LTC",null,null,{"$f":"Jurat!I$1","v":0},{"$f":"Jurat!D$33","v":"00:00:00"},"Q4","2017-12-31","Region 5","Operating Expense","Administrative Expense","Administrative","5.5","General  Administration",{"$f":"IFERROR('LTC Rev-Exp Region 5'!$P$61/'LTC Rev-Exp Region 5'!$P$9, 0)","v":{"v":0,"d":"$0.00"}},{"$f":"IFERROR('LTC Rev-Exp Region 5'!$Q$61/'LTC Rev-Exp Region 5'!$Q$9, 0)","v":{"v":0,"d":"$0.00"}},{"$f":"IFERROR('LTC Rev-Exp Region 5'!$R$61/'LTC Rev-Exp Region 5'!$R$9, 0)","v":{"v":0,"d":"$0.00"}},{"$f":"IFERROR('LTC Rev-Exp Region 5'!$S$61/'LTC Rev-Exp Region 5'!$S$9, 0)","v":{"v":0,"d":"$0.00"}}]
["LTC",null,null,{"$f":"Jurat!I$1","v":0},{"$f":"Jurat!D$33","v":"00:00:00"},"Q4","2017-12-31","Region 5","Operating Expense","Administrative Expense","Administrative","5.6","Compliance/Regulatory",{"$f":"IFERROR('LTC Rev-Exp Region 5'!$P$62/'LTC Rev-Exp Region 5'!$P$9, 0)","v":{"v":0,"d":"$0.00"}},{"$f":"IFERROR('LTC Rev-Exp Region 5'!$Q$62/'LTC Rev-Exp Region 5'!$Q$9, 0)","v":{"v":0,"d":"$0.00"}},{"$f":"IFERROR('LTC Rev-Exp Region 5'!$R$62/'LTC Rev-Exp Region 5'!$R$9, 0)","v":{"v":0,"d":"$0.00"}},{"$f":"IFERROR('LTC Rev-Exp Region 5'!$S$62/'LTC Rev-Exp Region 5'!$S$9, 0)","v":{"v":0,"d":"$0.00"}}]
["LTC",null,null,{"$f":"Jurat!I$1","v":0},{"$f":"Jurat!D$33","v":"00:00:00"},"Q4","2017-12-31","Region 5","Operating Expense","Taxes & Fees","Taxes & Fees","6.1","State Premium Tax",{"$f":"IFERROR('LTC Rev-Exp Region 5'!$P$64/'LTC Rev-Exp Region 5'!$P$9, 0)","v":{"v":0,"d":"$0.00"}},{"$f":"IFERROR('LTC Rev-Exp Region 5'!$Q$64/'LTC Rev-Exp Region 5'!$Q$9, 0)","v":{"v":0,"d":"$0.00"}},{"$f":"IFERROR('LTC Rev-Exp Region 5'!$R$64/'LTC Rev-Exp Region 5'!$R$9, 0)","v":{"v":0,"d":"$0.00"}},{"$f":"IFERROR('LTC Rev-Exp Region 5'!$S$64/'LTC Rev-Exp Region 5'!$S$9, 0)","v":{"v":0,"d":"$0.00"}}]
["LTC",null,null,{"$f":"Jurat!I$1","v":0},{"$f":"Jurat!D$33","v":"00:00:00"},"Q4","2017-12-31","Region 5","Operating Expense","Taxes & Fees","Taxes & Fees","6.2","Department of Insurance Assessments",{"$f":"IFERROR('LTC Rev-Exp Region 5'!$P$65/'LTC Rev-Exp Region 5'!$P$9, 0)","v":{"v":0,"d":"$0.00"}},{"$f":"IFERROR('LTC Rev-Exp Region 5'!$Q$65/'LTC Rev-Exp Region 5'!$Q$9, 0)","v":{"v":0,"d":"$0.00"}},{"$f":"IFERROR('LTC Rev-Exp Region 5'!$R$65/'LTC Rev-Exp Region 5'!$R$9, 0)","v":{"v":0,"d":"$0.00"}},{"$f":"IFERROR('LTC Rev-Exp Region 5'!$S$65/'LTC Rev-Exp Region 5'!$S$9, 0)","v":{"v":0,"d":"$0.00"}}]
["LTC",null,null,{"$f":"Jurat!I$1","v":0},{"$f":"Jurat!D$33","v":"00:00:00"},"Q4","2017-12-31","Region 5","Non-Operating Expense","Income Tax Expense","Income Tax Expense","9.0","Income Tax Expense",{"$f":"IFERROR('LTC Rev-Exp Region 5'!$P$72/'LTC Rev-Exp Region 5'!$P$9, 0)","v":{"v":0,"d":"$0.00"}},{"$f":"IFERROR('LTC Rev-Exp Region 5'!$Q$72/'LTC Rev-Exp Region 5'!$Q$9, 0)","v":{"v":0,"d":"$0.00"}},{"$f":"IFERROR('LTC Rev-Exp Region 5'!$R$72/'LTC Rev-Exp Region 5'!$R$9, 0)","v":{"v":0,"d":"$0.00"}},{"$f":"IFERROR('LTC Rev-Exp Region 5'!$S$72/'LTC Rev-Exp Region 5'!$S$9, 0)","v":{"v":0,"d":"$0.00"}}]
["LTC",null,null,{"$f":"Jurat!I$1","v":0},{"$f":"Jurat!D$33","v":"00:00:00"},"Q1","2017-03-31","Region 6","Operating Revenue","Capitation","Capitation",1.1,"Capitation",{"$f":"IFERROR('LTC Rev-Exp Region 6'!$D$11/'LTC Rev-Exp Region 6'!$D$9, 0)","v":{"v":0,"d":"$0.00"}},{"$f":"IFERROR('LTC Rev-Exp Region 6'!$E$11/'LTC Rev-Exp Region 6'!$E$9, 0)","v":{"v":0,"d":"$0.00"}},{"$f":"IFERROR('LTC Rev-Exp Region 6'!$F$11/'LTC Rev-Exp Region 6'!$F$9, 0)","v":{"v":0,"d":"$0.00"}},{"$f":"IFERROR('LTC Rev-Exp Region 6'!$G$11/'LTC Rev-Exp Region 6'!$G$9, 0)","v":{"v":0,"d":"$0.00"}}]
["LTC",null,null,{"$f":"Jurat!I$1","v":0},{"$f":"Jurat!D$33","v":"00:00:00"},"Q1","2017-03-31","Region 6","Operating Revenue","Capitation","NH Rate Reconciliation",1.2,"NH Rate Reconciliation",{"$f":"IFERROR('LTC Rev-Exp Region 6'!$D$12/'LTC Rev-Exp Region 6'!$D$9, 0)","v":{"v":0,"d":"$0.00"}},{"$f":"IFERROR('LTC Rev-Exp Region 6'!$E$12/'LTC Rev-Exp Region 6'!$E$9, 0)","v":{"v":0,"d":"$0.00"}},{"$f":"IFERROR('LTC Rev-Exp Region 6'!$F$12/'LTC Rev-Exp Region 6'!$F$9, 0)","v":{"v":0,"d":"$0.00"}},{"$f":"IFERROR('LTC Rev-Exp Region 6'!$G$12/'LTC Rev-Exp Region 6'!$G$9, 0)","v":{"v":0,"d":"$0.00"}}]
["LTC",null,null,{"$f":"Jurat!I$1","v":0},{"$f":"Jurat!D$33","v":"00:00:00"},"Q1","2017-03-31","Region 6","Operating Revenue","Other Revenue","Other Revenue",1.3,"Other Revenue",{"$f":"IFERROR('LTC Rev-Exp Region 6'!$D$13/'LTC Rev-Exp Region 6'!$D$9, 0)","v":{"v":0,"d":"$0.00"}},{"$f":"IFERROR('LTC Rev-Exp Region 6'!$E$13/'LTC Rev-Exp Region 6'!$E$9, 0)","v":{"v":0,"d":"$0.00"}},{"$f":"IFERROR('LTC Rev-Exp Region 6'!$F$13/'LTC Rev-Exp Region 6'!$F$9, 0)","v":{"v":0,"d":"$0.00"}},{"$f":"IFERROR('LTC Rev-Exp Region 6'!$G$13/'LTC Rev-Exp Region 6'!$G$9, 0)","v":{"v":0,"d":"$0.00"}}]
["LTC",null,null,{"$f":"Jurat!I$1","v":0},{"$f":"Jurat!D$33","v":"00:00:00"},"Q1","2017-03-31","Region 6","Operating Expense","Medical Expense","NF & Hospice","2.3","Nursing Facility FFS (Medicaid)",{"$f":"IFERROR('LTC Rev-Exp Region 6'!$D$19/'LTC Rev-Exp Region 6'!$D$9, 0)","v":{"v":0,"d":"$0.00"}},{"$f":"IFERROR('LTC Rev-Exp Region 6'!$E$19/'LTC Rev-Exp Region 6'!$E$9, 0)","v":{"v":0,"d":"$0.00"}},{"$f":"IFERROR('LTC Rev-Exp Region 6'!$F$19/'LTC Rev-Exp Region 6'!$F$9, 0)","v":{"v":0,"d":"$0.00"}},{"$f":"IFERROR('LTC Rev-Exp Region 6'!$G$19/'LTC Rev-Exp Region 6'!$G$9, 0)","v":{"v":0,"d":"$0.00"}}]
["LTC",null,null,{"$f":"Jurat!I$1","v":0},{"$f":"Jurat!D$33","v":"00:00:00"},"Q1","2017-03-31","Region 6","Operating Expense","Medical Expense","NF & Hospice","2.4","Nursing Facility FFS (Crossover)",{"$f":"IFERROR('LTC Rev-Exp Region 6'!$D$20/'LTC Rev-Exp Region 6'!$D$9, 0)","v":{"v":0,"d":"$0.00"}},{"$f":"IFERROR('LTC Rev-Exp Region 6'!$E$20/'LTC Rev-Exp Region 6'!$E$9, 0)","v":{"v":0,"d":"$0.00"}},{"$f":"IFERROR('LTC Rev-Exp Region 6'!$F$20/'LTC Rev-Exp Region 6'!$F$9, 0)","v":{"v":0,"d":"$0.00"}},{"$f":"IFERROR('LTC Rev-Exp Region 6'!$G$20/'LTC Rev-Exp Region 6'!$G$9, 0)","v":{"v":0,"d":"$0.00"}}]
["LTC",null,null,{"$f":"Jurat!I$1","v":0},{"$f":"Jurat!D$33","v":"00:00:00"},"Q1","2017-03-31","Region 6","Operating Expense","Medical Expense","NF & Hospice","2.6","Hospice FFS",{"$f":"IFERROR('LTC Rev-Exp Region 6'!$D$22/'LTC Rev-Exp Region 6'!$D$9, 0)","v":{"v":0,"d":"$0.00"}},{"$f":"IFERROR('LTC Rev-Exp Region 6'!$E$22/'LTC Rev-Exp Region 6'!$E$9, 0)","v":{"v":0,"d":"$0.00"}},{"$f":"IFERROR('LTC Rev-Exp Region 6'!$F$22/'LTC Rev-Exp Region 6'!$F$9, 0)","v":{"v":0,"d":"$0.00"}},{"$f":"IFERROR('LTC Rev-Exp Region 6'!$G$22/'LTC Rev-Exp Region 6'!$G$9, 0)","v":{"v":0,"d":"$0.00"}}]
["LTC",null,null,{"$f":"Jurat!I$1","v":0},{"$f":"Jurat!D$33","v":"00:00:00"},"Q1","2017-03-31","Region 6","Operating Expense","Medical Expense","NF & Hospice","2.7","Ending IBNP for NF & Hospice",{"$f":"IFERROR('LTC Rev-Exp Region 6'!$D$23/'LTC Rev-Exp Region 6'!$D$9, 0)","v":{"v":0,"d":"$0.00"}},{"$f":"IFERROR('LTC Rev-Exp Region 6'!$E$23/'LTC Rev-Exp Region 6'!$E$9, 0)","v":{"v":0,"d":"$0.00"}},{"$f":"IFERROR('LTC Rev-Exp Region 6'!$F$23/'LTC Rev-Exp Region 6'!$F$9, 0)","v":{"v":0,"d":"$0.00"}},{"$f":"IFERROR('LTC Rev-Exp Region 6'!$G$23/'LTC Rev-Exp Region 6'!$G$9, 0)","v":{"v":0,"d":"$0.00"}}]
["LTC",null,null,{"$f":"Jurat!I$1","v":0},{"$f":"Jurat!D$33","v":"00:00:00"},"Q1","2017-03-31","Region 6","Operating Expense","Medical Expense","NF & Hospice","2.8","NF & Hospice Subcapitated",{"$f":"IFERROR('LTC Rev-Exp Region 6'!$D$24/'LTC Rev-Exp Region 6'!$D$9, 0)","v":{"v":0,"d":"$0.00"}},{"$f":"IFERROR('LTC Rev-Exp Region 6'!$E$24/'LTC Rev-Exp Region 6'!$E$9, 0)","v":{"v":0,"d":"$0.00"}},{"$f":"IFERROR('LTC Rev-Exp Region 6'!$F$24/'LTC Rev-Exp Region 6'!$F$9, 0)","v":{"v":0,"d":"$0.00"}},{"$f":"IFERROR('LTC Rev-Exp Region 6'!$G$24/'LTC Rev-Exp Region 6'!$G$9, 0)","v":{"v":0,"d":"$0.00"}}]
["LTC",null,null,{"$f":"Jurat!I$1","v":0},{"$f":"Jurat!D$33","v":"00:00:00"},"Q1","2017-03-31","Region 6","Operating Expense","Medical Expense","NF & Hospice","2.9","NF & Hospice Settlements",{"$f":"IFERROR('LTC Rev-Exp Region 6'!$D$25/'LTC Rev-Exp Region 6'!$D$9, 0)","v":{"v":0,"d":"$0.00"}},{"$f":"IFERROR('LTC Rev-Exp Region 6'!$E$25/'LTC Rev-Exp Region 6'!$E$9, 0)","v":{"v":0,"d":"$0.00"}},{"$f":"IFERROR('LTC Rev-Exp Region 6'!$F$25/'LTC Rev-Exp Region 6'!$F$9, 0)","v":{"v":0,"d":"$0.00"}},{"$f":"IFERROR('LTC Rev-Exp Region 6'!$G$25/'LTC Rev-Exp Region 6'!$G$9, 0)","v":{"v":0,"d":"$0.00"}}]
["LTC",null,null,{"$f":"Jurat!I$1","v":0},{"$f":"Jurat!D$33","v":"00:00:00"},"Q1","2017-03-31","Region 6","Operating Expense","Medical Expense","LTC Services","2.11","Assisted Living FFS",{"$f":"IFERROR('LTC Rev-Exp Region 6'!$D$27/'LTC Rev-Exp Region 6'!$D$9, 0)","v":{"v":0,"d":"$0.00"}},{"$f":"IFERROR('LTC Rev-Exp Region 6'!$E$27/'LTC Rev-Exp Region 6'!$E$9, 0)","v":{"v":0,"d":"$0.00"}},{"$f":"IFERROR('LTC Rev-Exp Region 6'!$F$27/'LTC Rev-Exp Region 6'!$F$9, 0)","v":{"v":0,"d":"$0.00"}},{"$f":"IFERROR('LTC Rev-Exp Region 6'!$G$27/'LTC Rev-Exp Region 6'!$G$9, 0)","v":{"v":0,"d":"$0.00"}}]
["LTC",null,null,{"$f":"Jurat!I$1","v":0},{"$f":"Jurat!D$33","v":"00:00:00"},"Q1","2017-03-31","Region 6","Operating Expense","Medical Expense","LTC Services","2.12","Home Health FFS",{"$f":"IFERROR('LTC Rev-Exp Region 6'!$D$28/'LTC Rev-Exp Region 6'!$D$9, 0)","v":{"v":0,"d":"$0.00"}},{"$f":"IFERROR('LTC Rev-Exp Region 6'!$E$28/'LTC Rev-Exp Region 6'!$E$9, 0)","v":{"v":0,"d":"$0.00"}},{"$f":"IFERROR('LTC Rev-Exp Region 6'!$F$28/'LTC Rev-Exp Region 6'!$F$9, 0)","v":{"v":0,"d":"$0.00"}},{"$f":"IFERROR('LTC Rev-Exp Region 6'!$G$28/'LTC Rev-Exp Region 6'!$G$9, 0)","v":{"v":0,"d":"$0.00"}}]
["LTC",null,null,{"$f":"Jurat!I$1","v":0},{"$f":"Jurat!D$33","v":"00:00:00"},"Q1","2017-03-31","Region 6","Operating Expense","Medical Expense","LTC Services","2.13","Medical Equipment/Supplies FFS",{"$f":"IFERROR('LTC Rev-Exp Region 6'!$D$29/'LTC Rev-Exp Region 6'!$D$9, 0)","v":{"v":0,"d":"$0.00"}},{"$f":"IFERROR('LTC Rev-Exp Region 6'!$E$29/'LTC Rev-Exp Region 6'!$E$9, 0)","v":{"v":0,"d":"$0.00"}},{"$f":"IFERROR('LTC Rev-Exp Region 6'!$F$29/'LTC Rev-Exp Region 6'!$F$9, 0)","v":{"v":0,"d":"$0.00"}},{"$f":"IFERROR('LTC Rev-Exp Region 6'!$G$29/'LTC Rev-Exp Region 6'!$G$9, 0)","v":{"v":0,"d":"$0.00"}}]
["LTC",null,null,{"$f":"Jurat!I$1","v":0},{"$f":"Jurat!D$33","v":"00:00:00"},"Q1","2017-03-31","Region 6","Operating Expense","Medical Expense","LTC Services","2.14","Therapy FFS",{"$f":"IFERROR('LTC Rev-Exp Region 6'!$D$30/'LTC Rev-Exp Region 6'!$D$9, 0)","v":{"v":0,"d":"$0.00"}},{"$f":"IFERROR('LTC Rev-Exp Region 6'!$E$30/'LTC Rev-Exp Region 6'!$E$9, 0)","v":{"v":0,"d":"$0.00"}},{"$f":"IFERROR('LTC Rev-Exp Region 6'!$F$30/'LTC Rev-Exp Region 6'!$F$9, 0)","v":{"v":0,"d":"$0.00"}},{"$f":"IFERROR('LTC Rev-Exp Region 6'!$G$30/'LTC Rev-Exp Region 6'!$G$9, 0)","v":{"v":0,"d":"$0.00"}}]
["LTC",null,null,{"$f":"Jurat!I$1","v":0},{"$f":"Jurat!D$33","v":"00:00:00"},"Q1","2017-03-31","Region 6","Operating Expense","Medical Expense","LTC Services","2.15","Transportation FFS",{"$f":"IFERROR('LTC Rev-Exp Region 6'!$D$31/'LTC Rev-Exp Region 6'!$D$9, 0)","v":{"v":0,"d":"$0.00"}},{"$f":"IFERROR('LTC Rev-Exp Region 6'!$E$31/'LTC Rev-Exp Region 6'!$E$9, 0)","v":{"v":0,"d":"$0.00"}},{"$f":"IFERROR('LTC Rev-Exp Region 6'!$F$31/'LTC Rev-Exp Region 6'!$F$9, 0)","v":{"v":0,"d":"$0.00"}},{"$f":"IFERROR('LTC Rev-Exp Region 6'!$G$31/'LTC Rev-Exp Region 6'!$G$9, 0)","v":{"v":0,"d":"$0.00"}}]
["LTC",null,null,{"$f":"Jurat!I$1","v":0},{"$f":"Jurat!D$33","v":"00:00:00"},"Q1","2017-03-31","Region 6","Operating Expense","Medical Expense","LTC Services","2.16","Case Management FFS (Plan Provided)",{"$f":"IFERROR('LTC Rev-Exp Region 6'!$D$32/'LTC Rev-Exp Region 6'!$D$9, 0)","v":{"v":0,"d":"$0.00"}},{"$f":"IFERROR('LTC Rev-Exp Region 6'!$E$32/'LTC Rev-Exp Region 6'!$E$9, 0)","v":{"v":0,"d":"$0.00"}},{"$f":"IFERROR('LTC Rev-Exp Region 6'!$F$32/'LTC Rev-Exp Region 6'!$F$9, 0)","v":{"v":0,"d":"$0.00"}},{"$f":"IFERROR('LTC Rev-Exp Region 6'!$G$32/'LTC Rev-Exp Region 6'!$G$9, 0)","v":{"v":0,"d":"$0.00"}}]
["LTC",null,null,{"$f":"Jurat!I$1","v":0},{"$f":"Jurat!D$33","v":"00:00:00"},"Q1","2017-03-31","Region 6","Operating Expense","Medical Expense","LTC Services","2.17","Case Management FF (Non-Plan Provided)",{"$f":"IFERROR('LTC Rev-Exp Region 6'!$D$33/'LTC Rev-Exp Region 6'!$D$9, 0)","v":{"v":0,"d":"$0.00"}},{"$f":"IFERROR('LTC Rev-Exp Region 6'!$E$33/'LTC Rev-Exp Region 6'!$E$9, 0)","v":{"v":0,"d":"$0.00"}},{"$f":"IFERROR('LTC Rev-Exp Region 6'!$F$33/'LTC Rev-Exp Region 6'!$F$9, 0)","v":{"v":0,"d":"$0.00"}},{"$f":"IFERROR('LTC Rev-Exp Region 6'!$G$33/'LTC Rev-Exp Region 6'!$G$9, 0)","v":{"v":0,"d":"$0.00"}}]
["LTC",null,null,{"$f":"Jurat!I$1","v":0},{"$f":"Jurat!D$33","v":"00:00:00"},"Q1","2017-03-31","Region 6","Operating Expense","Medical Expense","LTC Services","2.18","HCBS FFS",{"$f":"IFERROR('LTC Rev-Exp Region 6'!$D$34/'LTC Rev-Exp Region 6'!$D$9, 0)","v":{"v":0,"d":"$0.00"}},{"$f":"IFERROR('LTC Rev-Exp Region 6'!$E$34/'LTC Rev-Exp Region 6'!$E$9, 0)","v":{"v":0,"d":"$0.00"}},{"$f":"IFERROR('LTC Rev-Exp Region 6'!$F$34/'LTC Rev-Exp Region 6'!$F$9, 0)","v":{"v":0,"d":"$0.00"}},{"$f":"IFERROR('LTC Rev-Exp Region 6'!$G$34/'LTC Rev-Exp Region 6'!$G$9, 0)","v":{"v":0,"d":"$0.00"}}]
["LTC",null,null,{"$f":"Jurat!I$1","v":0},{"$f":"Jurat!D$33","v":"00:00:00"},"Q1","2017-03-31","Region 6","Operating Expense","Medical Expense","LTC Services","2.19","Subcapitated LTC Services",{"$f":"IFERROR('LTC Rev-Exp Region 6'!$D$35/'LTC Rev-Exp Region 6'!$D$9, 0)","v":{"v":0,"d":"$0.00"}},{"$f":"IFERROR('LTC Rev-Exp Region 6'!$E$35/'LTC Rev-Exp Region 6'!$E$9, 0)","v":{"v":0,"d":"$0.00"}},{"$f":"IFERROR('LTC Rev-Exp Region 6'!$F$35/'LTC Rev-Exp Region 6'!$F$9, 0)","v":{"v":0,"d":"$0.00"}},{"$f":"IFERROR('LTC Rev-Exp Region 6'!$G$35/'LTC Rev-Exp Region 6'!$G$9, 0)","v":{"v":0,"d":"$0.00"}}]
["LTC",null,null,{"$f":"Jurat!I$1","v":0},{"$f":"Jurat!D$33","v":"00:00:00"},"Q1","2017-03-31","Region 6","Operating Expense","Medical Expense","LTC Services","2.20","Ending IBNP for Long Term Care Services",{"$f":"IFERROR('LTC Rev-Exp Region 6'!$D$36/'LTC Rev-Exp Region 6'!$D$9, 0)","v":{"v":0,"d":"$0.00"}},{"$f":"IFERROR('LTC Rev-Exp Region 6'!$E$36/'LTC Rev-Exp Region 6'!$E$9, 0)","v":{"v":0,"d":"$0.00"}},{"$f":"IFERROR('LTC Rev-Exp Region 6'!$F$36/'LTC Rev-Exp Region 6'!$F$9, 0)","v":{"v":0,"d":"$0.00"}},{"$f":"IFERROR('LTC Rev-Exp Region 6'!$G$36/'LTC Rev-Exp Region 6'!$G$9, 0)","v":{"v":0,"d":"$0.00"}}]
["LTC",null,null,{"$f":"Jurat!I$1","v":0},{"$f":"Jurat!D$33","v":"00:00:00"},"Q1","2017-03-31","Region 6","Operating Expense","Medical Expense","LTC Services","2.21","LTC Services Settlements",{"$f":"IFERROR('LTC Rev-Exp Region 6'!$D$37/'LTC Rev-Exp Region 6'!$D$9, 0)","v":{"v":0,"d":"$0.00"}},{"$f":"IFERROR('LTC Rev-Exp Region 6'!$E$37/'LTC Rev-Exp Region 6'!$E$9, 0)","v":{"v":0,"d":"$0.00"}},{"$f":"IFERROR('LTC Rev-Exp Region 6'!$F$37/'LTC Rev-Exp Region 6'!$F$9, 0)","v":{"v":0,"d":"$0.00"}},{"$f":"IFERROR('LTC Rev-Exp Region 6'!$G$37/'LTC Rev-Exp Region 6'!$G$9, 0)","v":{"v":0,"d":"$0.00"}}]
["LTC",null,null,{"$f":"Jurat!I$1","v":0},{"$f":"Jurat!D$33","v":"00:00:00"},"Q1","2017-03-31","Region 6","Operating Expense","Medical Expense","Expanded Benefits","3.1","Expanded Benefits FFS",{"$f":"IFERROR('LTC Rev-Exp Region 6'!$D$39/'LTC Rev-Exp Region 6'!$D$9, 0)","v":{"v":0,"d":"$0.00"}},{"$f":"IFERROR('LTC Rev-Exp Region 6'!$E$39/'LTC Rev-Exp Region 6'!$E$9, 0)","v":{"v":0,"d":"$0.00"}},{"$f":"IFERROR('LTC Rev-Exp Region 6'!$F$39/'LTC Rev-Exp Region 6'!$F$9, 0)","v":{"v":0,"d":"$0.00"}},{"$f":"IFERROR('LTC Rev-Exp Region 6'!$G$39/'LTC Rev-Exp Region 6'!$G$9, 0)","v":{"v":0,"d":"$0.00"}}]
["LTC",null,null,{"$f":"Jurat!I$1","v":0},{"$f":"Jurat!D$33","v":"00:00:00"},"Q1","2017-03-31","Region 6","Operating Expense","Medical Expense","Expanded Benefits","3.2","Expanded Benefits Subcapitation",{"$f":"IFERROR('LTC Rev-Exp Region 6'!$D$40/'LTC Rev-Exp Region 6'!$D$9, 0)","v":{"v":0,"d":"$0.00"}},{"$f":"IFERROR('LTC Rev-Exp Region 6'!$E$40/'LTC Rev-Exp Region 6'!$E$9, 0)","v":{"v":0,"d":"$0.00"}},{"$f":"IFERROR('LTC Rev-Exp Region 6'!$F$40/'LTC Rev-Exp Region 6'!$F$9, 0)","v":{"v":0,"d":"$0.00"}},{"$f":"IFERROR('LTC Rev-Exp Region 6'!$G$40/'LTC Rev-Exp Region 6'!$G$9, 0)","v":{"v":0,"d":"$0.00"}}]
["LTC",null,null,{"$f":"Jurat!I$1","v":0},{"$f":"Jurat!D$33","v":"00:00:00"},"Q1","2017-03-31","Region 6","Operating Expense","Medical Expense","Expanded Benefits","3.3","Ending IBNP for Expanded Benefits",{"$f":"IFERROR('LTC Rev-Exp Region 6'!$D$41/'LTC Rev-Exp Region 6'!$D$9, 0)","v":{"v":0,"d":"$0.00"}},{"$f":"IFERROR('LTC Rev-Exp Region 6'!$E$41/'LTC Rev-Exp Region 6'!$E$9, 0)","v":{"v":0,"d":"$0.00"}},{"$f":"IFERROR('LTC Rev-Exp Region 6'!$F$41/'LTC Rev-Exp Region 6'!$F$9, 0)","v":{"v":0,"d":"$0.00"}},{"$f":"IFERROR('LTC Rev-Exp Region 6'!$G$41/'LTC Rev-Exp Region 6'!$G$9, 0)","v":{"v":0,"d":"$0.00"}}]
["LTC",null,null,{"$f":"Jurat!I$1","v":0},{"$f":"Jurat!D$33","v":"00:00:00"},"Q1","2017-03-31","Region 6","Operating Expense","Medical Expense","Expanded Benefits","3.4","Expanded Benefits Settlements",{"$f":"IFERROR('LTC Rev-Exp Region 6'!$D$42/'LTC Rev-Exp Region 6'!$D$9, 0)","v":{"v":0,"d":"$0.00"}},{"$f":"IFERROR('LTC Rev-Exp Region 6'!$E$42/'LTC Rev-Exp Region 6'!$E$9, 0)","v":{"v":0,"d":"$0.00"}},{"$f":"IFERROR('LTC Rev-Exp Region 6'!$F$42/'LTC Rev-Exp Region 6'!$F$9, 0)","v":{"v":0,"d":"$0.00"}},{"$f":"IFERROR('LTC Rev-Exp Region 6'!$G$42/'LTC Rev-Exp Region 6'!$G$9, 0)","v":{"v":0,"d":"$0.00"}}]
["LTC",null,null,{"$f":"Jurat!I$1","v":0},{"$f":"Jurat!D$33","v":"00:00:00"},"Q1","2017-03-31","Region 6","Operating Expense","Medical Expense","Other Medical","4.5","TPL & Fraud/Abuse Recoveries",{"$f":"IFERROR('LTC Rev-Exp Region 6'!$D$48/'LTC Rev-Exp Region 6'!$D$9, 0)","v":{"v":0,"d":"$0.00"}},{"$f":"IFERROR('LTC Rev-Exp Region 6'!$E$48/'LTC Rev-Exp Region 6'!$E$9, 0)","v":{"v":0,"d":"$0.00"}},{"$f":"IFERROR('LTC Rev-Exp Region 6'!$F$48/'LTC Rev-Exp Region 6'!$F$9, 0)","v":{"v":0,"d":"$0.00"}},{"$f":"IFERROR('LTC Rev-Exp Region 6'!$G$48/'LTC Rev-Exp Region 6'!$G$9, 0)","v":{"v":0,"d":"$0.00"}}]
["LTC",null,null,{"$f":"Jurat!I$1","v":0},{"$f":"Jurat!D$33","v":"00:00:00"},"Q1","2017-03-31","Region 6","Operating Expense","Medical Expense","Other Medical","4.6.1","Premium Deficiency Reserve",{"$f":"IFERROR('LTC Rev-Exp Region 6'!$D$49/'LTC Rev-Exp Region 6'!$D$9, 0)","v":{"v":0,"d":"$0.00"}},{"$f":"IFERROR('LTC Rev-Exp Region 6'!$E$49/'LTC Rev-Exp Region 6'!$E$9, 0)","v":{"v":0,"d":"$0.00"}},{"$f":"IFERROR('LTC Rev-Exp Region 6'!$F$49/'LTC Rev-Exp Region 6'!$F$9, 0)","v":{"v":0,"d":"$0.00"}},{"$f":"IFERROR('LTC Rev-Exp Region 6'!$G$49/'LTC Rev-Exp Region 6'!$G$9, 0)","v":{"v":0,"d":"$0.00"}}]
["LTC",null,null,{"$f":"Jurat!I$1","v":0},{"$f":"Jurat!D$33","v":"00:00:00"},"Q1","2017-03-31","Region 6","Operating Expense","Medical Expense","Other Medical","4.8","Reinsurance Premiums",{"$f":"IFERROR('LTC Rev-Exp Region 6'!$D$51/'LTC Rev-Exp Region 6'!$D$9, 0)","v":{"v":0,"d":"$0.00"}},{"$f":"IFERROR('LTC Rev-Exp Region 6'!$E$51/'LTC Rev-Exp Region 6'!$E$9, 0)","v":{"v":0,"d":"$0.00"}},{"$f":"IFERROR('LTC Rev-Exp Region 6'!$F$51/'LTC Rev-Exp Region 6'!$F$9, 0)","v":{"v":0,"d":"$0.00"}},{"$f":"IFERROR('LTC Rev-Exp Region 6'!$G$51/'LTC Rev-Exp Region 6'!$G$9, 0)","v":{"v":0,"d":"$0.00"}}]
["LTC",null,null,{"$f":"Jurat!I$1","v":0},{"$f":"Jurat!D$33","v":"00:00:00"},"Q1","2017-03-31","Region 6","Operating Expense","Medical Expense","Other Medical","4.9","Reinsurance Recoveries",{"$f":"IFERROR('LTC Rev-Exp Region 6'!$D$52/'LTC Rev-Exp Region 6'!$D$9, 0)","v":{"v":0,"d":"$0.00"}},{"$f":"IFERROR('LTC Rev-Exp Region 6'!$E$52/'LTC Rev-Exp Region 6'!$E$9, 0)","v":{"v":0,"d":"$0.00"}},{"$f":"IFERROR('LTC Rev-Exp Region 6'!$F$52/'LTC Rev-Exp Region 6'!$F$9, 0)","v":{"v":0,"d":"$0.00"}},{"$f":"IFERROR('LTC Rev-Exp Region 6'!$G$52/'LTC Rev-Exp Region 6'!$G$9, 0)","v":{"v":0,"d":"$0.00"}}]
["LTC",null,null,{"$f":"Jurat!I$1","v":0},{"$f":"Jurat!D$33","v":"00:00:00"},"Q1","2017-03-31","Region 6","Operating Expense","Administrative Expense","Administrative","5.1","Salaries & Benefits",{"$f":"IFERROR('LTC Rev-Exp Region 6'!$D$57/'LTC Rev-Exp Region 6'!$D$9, 0)","v":{"v":0,"d":"$0.00"}},{"$f":"IFERROR('LTC Rev-Exp Region 6'!$E$57/'LTC Rev-Exp Region 6'!$D$9, 0)","v":{"v":0,"d":"$0.00"}},{"$f":"IFERROR('LTC Rev-Exp Region 6'!$F$57/'LTC Rev-Exp Region 6'!$D$9, 0)","v":{"v":0,"d":"$0.00"}},{"$f":"IFERROR('LTC Rev-Exp Region 6'!$G$57/'LTC Rev-Exp Region 6'!$D$9, 0)","v":{"v":0,"d":"$0.00"}}]
["LTC",null,null,{"$f":"Jurat!I$1","v":0},{"$f":"Jurat!D$33","v":"00:00:00"},"Q1","2017-03-31","Region 6","Operating Expense","Administrative Expense","Administrative","5.2","Administrative Services",{"$f":"IFERROR('LTC Rev-Exp Region 6'!$D$58/'LTC Rev-Exp Region 6'!$D$9, 0)","v":{"v":0,"d":"$0.00"}},{"$f":"IFERROR('LTC Rev-Exp Region 6'!$E$58/'LTC Rev-Exp Region 6'!$D$9, 0)","v":{"v":0,"d":"$0.00"}},{"$f":"IFERROR('LTC Rev-Exp Region 6'!$F$58/'LTC Rev-Exp Region 6'!$D$9, 0)","v":{"v":0,"d":"$0.00"}},{"$f":"IFERROR('LTC Rev-Exp Region 6'!$G$58/'LTC Rev-Exp Region 6'!$D$9, 0)","v":{"v":0,"d":"$0.00"}}]
["LTC",null,null,{"$f":"Jurat!I$1","v":0},{"$f":"Jurat!D$33","v":"00:00:00"},"Q1","2017-03-31","Region 6","Operating Expense","Administrative Expense","Administrative","5.3","Information Systems",{"$f":"IFERROR('LTC Rev-Exp Region 6'!$D$59/'LTC Rev-Exp Region 6'!$D$9, 0)","v":{"v":0,"d":"$0.00"}},{"$f":"IFERROR('LTC Rev-Exp Region 6'!$E$59/'LTC Rev-Exp Region 6'!$D$9, 0)","v":{"v":0,"d":"$0.00"}},{"$f":"IFERROR('LTC Rev-Exp Region 6'!$F$59/'LTC Rev-Exp Region 6'!$D$9, 0)","v":{"v":0,"d":"$0.00"}},{"$f":"IFERROR('LTC Rev-Exp Region 6'!$G$59/'LTC Rev-Exp Region 6'!$D$9, 0)","v":{"v":0,"d":"$0.00"}}]
["LTC",null,null,{"$f":"Jurat!I$1","v":0},{"$f":"Jurat!D$33","v":"00:00:00"},"Q1","2017-03-31","Region 6","Operating Expense","Administrative Expense","Administrative","5.4","Marketing Expenses",{"$f":"IFERROR('LTC Rev-Exp Region 6'!$D$60/'LTC Rev-Exp Region 6'!$D$9, 0)","v":{"v":0,"d":"$0.00"}},{"$f":"IFERROR('LTC Rev-Exp Region 6'!$E$60/'LTC Rev-Exp Region 6'!$D$9, 0)","v":{"v":0,"d":"$0.00"}},{"$f":"IFERROR('LTC Rev-Exp Region 6'!$F$60/'LTC Rev-Exp Region 6'!$D$9, 0)","v":{"v":0,"d":"$0.00"}},{"$f":"IFERROR('LTC Rev-Exp Region 6'!$G$60/'LTC Rev-Exp Region 6'!$D$9, 0)","v":{"v":0,"d":"$0.00"}}]
["LTC",null,null,{"$f":"Jurat!I$1","v":0},{"$f":"Jurat!D$33","v":"00:00:00"},"Q1","2017-03-31","Region 6","Operating Expense","Administrative Expense","Administrative","5.5","General  Administration",{"$f":"IFERROR('LTC Rev-Exp Region 6'!$D$61/'LTC Rev-Exp Region 6'!$D$9, 0)","v":{"v":0,"d":"$0.00"}},{"$f":"IFERROR('LTC Rev-Exp Region 6'!$E$61/'LTC Rev-Exp Region 6'!$D$9, 0)","v":{"v":0,"d":"$0.00"}},{"$f":"IFERROR('LTC Rev-Exp Region 6'!$F$61/'LTC Rev-Exp Region 6'!$D$9, 0)","v":{"v":0,"d":"$0.00"}},{"$f":"IFERROR('LTC Rev-Exp Region 6'!$G$61/'LTC Rev-Exp Region 6'!$D$9, 0)","v":{"v":0,"d":"$0.00"}}]
["LTC",null,null,{"$f":"Jurat!I$1","v":0},{"$f":"Jurat!D$33","v":"00:00:00"},"Q1","2017-03-31","Region 6","Operating Expense","Administrative Expense","Administrative","5.6","Compliance/Regulatory",{"$f":"IFERROR('LTC Rev-Exp Region 6'!$D$62/'LTC Rev-Exp Region 6'!$D$9, 0)","v":{"v":0,"d":"$0.00"}},{"$f":"IFERROR('LTC Rev-Exp Region 6'!$E$62/'LTC Rev-Exp Region 6'!$D$9, 0)","v":{"v":0,"d":"$0.00"}},{"$f":"IFERROR('LTC Rev-Exp Region 6'!$F$62/'LTC Rev-Exp Region 6'!$D$9, 0)","v":{"v":0,"d":"$0.00"}},{"$f":"IFERROR('LTC Rev-Exp Region 6'!$G$62/'LTC Rev-Exp Region 6'!$D$9, 0)","v":{"v":0,"d":"$0.00"}}]
["LTC",null,null,{"$f":"Jurat!I$1","v":0},{"$f":"Jurat!D$33","v":"00:00:00"},"Q1","2017-03-31","Region 6","Operating Expense","Taxes & Fees","Taxes & Fees","6.1","State Premium Tax",{"$f":"IFERROR('LTC Rev-Exp Region 6'!$D$64/'LTC Rev-Exp Region 6'!$D$9, 0)","v":{"v":0,"d":"$0.00"}},{"$f":"IFERROR('LTC Rev-Exp Region 6'!$E$64/'LTC Rev-Exp Region 6'!$E$9, 0)","v":{"v":0,"d":"$0.00"}},{"$f":"IFERROR('LTC Rev-Exp Region 6'!$F$64/'LTC Rev-Exp Region 6'!$F$9, 0)","v":{"v":0,"d":"$0.00"}},{"$f":"IFERROR('LTC Rev-Exp Region 6'!$G$64/'LTC Rev-Exp Region 6'!$G$9, 0)","v":{"v":0,"d":"$0.00"}}]
["LTC",null,null,{"$f":"Jurat!I$1","v":0},{"$f":"Jurat!D$33","v":"00:00:00"},"Q1","2017-03-31","Region 6","Operating Expense","Taxes & Fees","Taxes & Fees","6.2","Department of Insurance Assessments",{"$f":"IFERROR('LTC Rev-Exp Region 6'!$D$65/'LTC Rev-Exp Region 6'!$D$9, 0)","v":{"v":0,"d":"$0.00"}},{"$f":"IFERROR('LTC Rev-Exp Region 6'!$E$65/'LTC Rev-Exp Region 6'!$E$9, 0)","v":{"v":0,"d":"$0.00"}},{"$f":"IFERROR('LTC Rev-Exp Region 6'!$F$65/'LTC Rev-Exp Region 6'!$F$9, 0)","v":{"v":0,"d":"$0.00"}},{"$f":"IFERROR('LTC Rev-Exp Region 6'!$G$65/'LTC Rev-Exp Region 6'!$G$9, 0)","v":{"v":0,"d":"$0.00"}}]
["LTC",null,null,{"$f":"Jurat!I$1","v":0},{"$f":"Jurat!D$33","v":"00:00:00"},"Q1","2017-03-31","Region 6","Non-Operating Expense","Income Tax Expense","Income Tax Expense","9.0","Income Tax Expense",{"$f":"IFERROR('LTC Rev-Exp Region 6'!$D$72/'LTC Rev-Exp Region 6'!$D$9, 0)","v":{"v":0,"d":"$0.00"}},{"$f":"IFERROR('LTC Rev-Exp Region 6'!$E$72/'LTC Rev-Exp Region 6'!$E$9, 0)","v":{"v":0,"d":"$0.00"}},{"$f":"IFERROR('LTC Rev-Exp Region 6'!$F$72/'LTC Rev-Exp Region 6'!$F$9, 0)","v":{"v":0,"d":"$0.00"}},{"$f":"IFERROR('LTC Rev-Exp Region 6'!$G$72/'LTC Rev-Exp Region 6'!$G$9, 0)","v":{"v":0,"d":"$0.00"}}]
["LTC",null,null,{"$f":"Jurat!I$1","v":0},{"$f":"Jurat!D$33","v":"00:00:00"},"Q2","2017-06-30","Region 6","Operating Revenue","Capitation","Capitation",1.1,"Capitation",{"$f":"IFERROR('LTC Rev-Exp Region 6'!$H$11/'LTC Rev-Exp Region 6'!$H$9, 0)","v":{"v":0,"d":"$0.00"}},{"$f":"IFERROR('LTC Rev-Exp Region 6'!$I$11/'LTC Rev-Exp Region 6'!$I$9, 0)","v":{"v":0,"d":"$0.00"}},{"$f":"IFERROR('LTC Rev-Exp Region 6'!$J$11/'LTC Rev-Exp Region 6'!$J$9, 0)","v":{"v":0,"d":"$0.00"}},{"$f":"IFERROR('LTC Rev-Exp Region 6'!$K$11/'LTC Rev-Exp Region 6'!$K$9, 0)","v":{"v":0,"d":"$0.00"}}]
["LTC",null,null,{"$f":"Jurat!I$1","v":0},{"$f":"Jurat!D$33","v":"00:00:00"},"Q2","2017-06-30","Region 6","Operating Revenue","Capitation","NH Rate Reconciliation",1.2,"NH Rate Reconciliation",{"$f":"IFERROR('LTC Rev-Exp Region 6'!$H$12/'LTC Rev-Exp Region 6'!$H$9, 0)","v":{"v":0,"d":"$0.00"}},{"$f":"IFERROR('LTC Rev-Exp Region 6'!$I$12/'LTC Rev-Exp Region 6'!$I$9, 0)","v":{"v":0,"d":"$0.00"}},{"$f":"IFERROR('LTC Rev-Exp Region 6'!$J$12/'LTC Rev-Exp Region 6'!$J$9, 0)","v":{"v":0,"d":"$0.00"}},{"$f":"IFERROR('LTC Rev-Exp Region 6'!$K$12/'LTC Rev-Exp Region 6'!$K$9, 0)","v":{"v":0,"d":"$0.00"}}]
["LTC",null,null,{"$f":"Jurat!I$1","v":0},{"$f":"Jurat!D$33","v":"00:00:00"},"Q2","2017-06-30","Region 6","Operating Revenue","Other Revenue","Other Revenue",1.3,"Other Revenue",{"$f":"IFERROR('LTC Rev-Exp Region 6'!$H$13/'LTC Rev-Exp Region 6'!$H$9, 0)","v":{"v":0,"d":"$0.00"}},{"$f":"IFERROR('LTC Rev-Exp Region 6'!$I$13/'LTC Rev-Exp Region 6'!$I$9, 0)","v":{"v":0,"d":"$0.00"}},{"$f":"IFERROR('LTC Rev-Exp Region 6'!$J$13/'LTC Rev-Exp Region 6'!$J$9, 0)","v":{"v":0,"d":"$0.00"}},{"$f":"IFERROR('LTC Rev-Exp Region 6'!$K$13/'LTC Rev-Exp Region 6'!$K$9, 0)","v":{"v":0,"d":"$0.00"}}]
["LTC",null,null,{"$f":"Jurat!I$1","v":0},{"$f":"Jurat!D$33","v":"00:00:00"},"Q2","2017-06-30","Region 6","Operating Expense","Medical Expense","NF & Hospice","2.3","Nursing Facility FFS (Medicaid)",{"$f":"IFERROR('LTC Rev-Exp Region 6'!$H$19/'LTC Rev-Exp Region 6'!$H$9, 0)","v":{"v":0,"d":"$0.00"}},{"$f":"IFERROR('LTC Rev-Exp Region 6'!$I$19/'LTC Rev-Exp Region 6'!$I$9, 0)","v":{"v":0,"d":"$0.00"}},{"$f":"IFERROR('LTC Rev-Exp Region 6'!$J$19/'LTC Rev-Exp Region 6'!$J$9, 0)","v":{"v":0,"d":"$0.00"}},{"$f":"IFERROR('LTC Rev-Exp Region 6'!$K$19/'LTC Rev-Exp Region 6'!$K$9, 0)","v":{"v":0,"d":"$0.00"}}]
["LTC",null,null,{"$f":"Jurat!I$1","v":0},{"$f":"Jurat!D$33","v":"00:00:00"},"Q2","2017-06-30","Region 6","Operating Expense","Medical Expense","NF & Hospice","2.4","Nursing Facility FFS (Crossover)",{"$f":"IFERROR('LTC Rev-Exp Region 6'!$H$20/'LTC Rev-Exp Region 6'!$H$9, 0)","v":{"v":0,"d":"$0.00"}},{"$f":"IFERROR('LTC Rev-Exp Region 6'!$I$20/'LTC Rev-Exp Region 6'!$I$9, 0)","v":{"v":0,"d":"$0.00"}},{"$f":"IFERROR('LTC Rev-Exp Region 6'!$J$20/'LTC Rev-Exp Region 6'!$J$9, 0)","v":{"v":0,"d":"$0.00"}},{"$f":"IFERROR('LTC Rev-Exp Region 6'!$K$20/'LTC Rev-Exp Region 6'!$K$9, 0)","v":{"v":0,"d":"$0.00"}}]
["LTC",null,null,{"$f":"Jurat!I$1","v":0},{"$f":"Jurat!D$33","v":"00:00:00"},"Q2","2017-06-30","Region 6","Operating Expense","Medical Expense","NF & Hospice","2.6","Hospice FFS",{"$f":"IFERROR('LTC Rev-Exp Region 6'!$H$22/'LTC Rev-Exp Region 6'!$H$9, 0)","v":{"v":0,"d":"$0.00"}},{"$f":"IFERROR('LTC Rev-Exp Region 6'!$I$22/'LTC Rev-Exp Region 6'!$I$9, 0)","v":{"v":0,"d":"$0.00"}},{"$f":"IFERROR('LTC Rev-Exp Region 6'!$J$22/'LTC Rev-Exp Region 6'!$J$9, 0)","v":{"v":0,"d":"$0.00"}},{"$f":"IFERROR('LTC Rev-Exp Region 6'!$K$22/'LTC Rev-Exp Region 6'!$K$9, 0)","v":{"v":0,"d":"$0.00"}}]
["LTC",null,null,{"$f":"Jurat!I$1","v":0},{"$f":"Jurat!D$33","v":"00:00:00"},"Q2","2017-06-30","Region 6","Operating Expense","Medical Expense","NF & Hospice","2.7","Ending IBNP for NF & Hospice",{"$f":"IFERROR('LTC Rev-Exp Region 6'!$H$23/'LTC Rev-Exp Region 6'!$H$9, 0)","v":{"v":0,"d":"$0.00"}},{"$f":"IFERROR('LTC Rev-Exp Region 6'!$I$23/'LTC Rev-Exp Region 6'!$I$9, 0)","v":{"v":0,"d":"$0.00"}},{"$f":"IFERROR('LTC Rev-Exp Region 6'!$J$23/'LTC Rev-Exp Region 6'!$J$9, 0)","v":{"v":0,"d":"$0.00"}},{"$f":"IFERROR('LTC Rev-Exp Region 6'!$K$23/'LTC Rev-Exp Region 6'!$K$9, 0)","v":{"v":0,"d":"$0.00"}}]
["LTC",null,null,{"$f":"Jurat!I$1","v":0},{"$f":"Jurat!D$33","v":"00:00:00"},"Q2","2017-06-30","Region 6","Operating Expense","Medical Expense","NF & Hospice","2.8","NF & Hospice Subcapitated",{"$f":"IFERROR('LTC Rev-Exp Region 6'!$H$24/'LTC Rev-Exp Region 6'!$H$9, 0)","v":{"v":0,"d":"$0.00"}},{"$f":"IFERROR('LTC Rev-Exp Region 6'!$I$24/'LTC Rev-Exp Region 6'!$I$9, 0)","v":{"v":0,"d":"$0.00"}},{"$f":"IFERROR('LTC Rev-Exp Region 6'!$J$24/'LTC Rev-Exp Region 6'!$J$9, 0)","v":{"v":0,"d":"$0.00"}},{"$f":"IFERROR('LTC Rev-Exp Region 6'!$K$24/'LTC Rev-Exp Region 6'!$K$9, 0)","v":{"v":0,"d":"$0.00"}}]
["LTC",null,null,{"$f":"Jurat!I$1","v":0},{"$f":"Jurat!D$33","v":"00:00:00"},"Q2","2017-06-30","Region 6","Operating Expense","Medical Expense","NF & Hospice","2.9","NF & Hospice Settlements",{"$f":"IFERROR('LTC Rev-Exp Region 6'!$H$25/'LTC Rev-Exp Region 6'!$H$9, 0)","v":{"v":0,"d":"$0.00"}},{"$f":"IFERROR('LTC Rev-Exp Region 6'!$I$25/'LTC Rev-Exp Region 6'!$I$9, 0)","v":{"v":0,"d":"$0.00"}},{"$f":"IFERROR('LTC Rev-Exp Region 6'!$J$25/'LTC Rev-Exp Region 6'!$J$9, 0)","v":{"v":0,"d":"$0.00"}},{"$f":"IFERROR('LTC Rev-Exp Region 6'!$K$25/'LTC Rev-Exp Region 6'!$K$9, 0)","v":{"v":0,"d":"$0.00"}}]
["LTC",null,null,{"$f":"Jurat!I$1","v":0},{"$f":"Jurat!D$33","v":"00:00:00"},"Q2","2017-06-30","Region 6","Operating Expense","Medical Expense","LTC Services","2.11","Assisted Living FFS",{"$f":"IFERROR('LTC Rev-Exp Region 6'!$H$27/'LTC Rev-Exp Region 6'!$H$9, 0)","v":{"v":0,"d":"$0.00"}},{"$f":"IFERROR('LTC Rev-Exp Region 6'!$I$27/'LTC Rev-Exp Region 6'!$I$9, 0)","v":{"v":0,"d":"$0.00"}},{"$f":"IFERROR('LTC Rev-Exp Region 6'!$J$27/'LTC Rev-Exp Region 6'!$J$9, 0)","v":{"v":0,"d":"$0.00"}},{"$f":"IFERROR('LTC Rev-Exp Region 6'!$K$27/'LTC Rev-Exp Region 6'!$K$9, 0)","v":{"v":0,"d":"$0.00"}}]
["LTC",null,null,{"$f":"Jurat!I$1","v":0},{"$f":"Jurat!D$33","v":"00:00:00"},"Q2","2017-06-30","Region 6","Operating Expense","Medical Expense","LTC Services","2.12","Home Health FFS",{"$f":"IFERROR('LTC Rev-Exp Region 6'!$H$28/'LTC Rev-Exp Region 6'!$H$9, 0)","v":{"v":0,"d":"$0.00"}},{"$f":"IFERROR('LTC Rev-Exp Region 6'!$I$28/'LTC Rev-Exp Region 6'!$I$9, 0)","v":{"v":0,"d":"$0.00"}},{"$f":"IFERROR('LTC Rev-Exp Region 6'!$J$28/'LTC Rev-Exp Region 6'!$J$9, 0)","v":{"v":0,"d":"$0.00"}},{"$f":"IFERROR('LTC Rev-Exp Region 6'!$K$28/'LTC Rev-Exp Region 6'!$K$9, 0)","v":{"v":0,"d":"$0.00"}}]
["LTC",null,null,{"$f":"Jurat!I$1","v":0},{"$f":"Jurat!D$33","v":"00:00:00"},"Q2","2017-06-30","Region 6","Operating Expense","Medical Expense","LTC Services","2.13","Medical Equipment/Supplies FFS",{"$f":"IFERROR('LTC Rev-Exp Region 6'!$H$29/'LTC Rev-Exp Region 6'!$H$9, 0)","v":{"v":0,"d":"$0.00"}},{"$f":"IFERROR('LTC Rev-Exp Region 6'!$I$29/'LTC Rev-Exp Region 6'!$I$9, 0)","v":{"v":0,"d":"$0.00"}},{"$f":"IFERROR('LTC Rev-Exp Region 6'!$J$29/'LTC Rev-Exp Region 6'!$J$9, 0)","v":{"v":0,"d":"$0.00"}},{"$f":"IFERROR('LTC Rev-Exp Region 6'!$K$29/'LTC Rev-Exp Region 6'!$K$9, 0)","v":{"v":0,"d":"$0.00"}}]
["LTC",null,null,{"$f":"Jurat!I$1","v":0},{"$f":"Jurat!D$33","v":"00:00:00"},"Q2","2017-06-30","Region 6","Operating Expense","Medical Expense","LTC Services","2.14","Therapy FFS",{"$f":"IFERROR('LTC Rev-Exp Region 6'!$H$30/'LTC Rev-Exp Region 6'!$H$9, 0)","v":{"v":0,"d":"$0.00"}},{"$f":"IFERROR('LTC Rev-Exp Region 6'!$I$30/'LTC Rev-Exp Region 6'!$I$9, 0)","v":{"v":0,"d":"$0.00"}},{"$f":"IFERROR('LTC Rev-Exp Region 6'!$J$30/'LTC Rev-Exp Region 6'!$J$9, 0)","v":{"v":0,"d":"$0.00"}},{"$f":"IFERROR('LTC Rev-Exp Region 6'!$K$30/'LTC Rev-Exp Region 6'!$K$9, 0)","v":{"v":0,"d":"$0.00"}}]
["LTC",null,null,{"$f":"Jurat!I$1","v":0},{"$f":"Jurat!D$33","v":"00:00:00"},"Q2","2017-06-30","Region 6","Operating Expense","Medical Expense","LTC Services","2.15","Transportation FFS",{"$f":"IFERROR('LTC Rev-Exp Region 6'!$H$31/'LTC Rev-Exp Region 6'!$H$9, 0)","v":{"v":0,"d":"$0.00"}},{"$f":"IFERROR('LTC Rev-Exp Region 6'!$I$31/'LTC Rev-Exp Region 6'!$I$9, 0)","v":{"v":0,"d":"$0.00"}},{"$f":"IFERROR('LTC Rev-Exp Region 6'!$J$31/'LTC Rev-Exp Region 6'!$J$9, 0)","v":{"v":0,"d":"$0.00"}},{"$f":"IFERROR('LTC Rev-Exp Region 6'!$K$31/'LTC Rev-Exp Region 6'!$K$9, 0)","v":{"v":0,"d":"$0.00"}}]
["LTC",null,null,{"$f":"Jurat!I$1","v":0},{"$f":"Jurat!D$33","v":"00:00:00"},"Q2","2017-06-30","Region 6","Operating Expense","Medical Expense","LTC Services","2.16","Case Management FFS (Plan Provided)",{"$f":"IFERROR('LTC Rev-Exp Region 6'!$H$32/'LTC Rev-Exp Region 6'!$H$9, 0)","v":{"v":0,"d":"$0.00"}},{"$f":"IFERROR('LTC Rev-Exp Region 6'!$I$32/'LTC Rev-Exp Region 6'!$I$9, 0)","v":{"v":0,"d":"$0.00"}},{"$f":"IFERROR('LTC Rev-Exp Region 6'!$J$32/'LTC Rev-Exp Region 6'!$J$9, 0)","v":{"v":0,"d":"$0.00"}},{"$f":"IFERROR('LTC Rev-Exp Region 6'!$K$32/'LTC Rev-Exp Region 6'!$K$9, 0)","v":{"v":0,"d":"$0.00"}}]
["LTC",null,null,{"$f":"Jurat!I$1","v":0},{"$f":"Jurat!D$33","v":"00:00:00"},"Q2","2017-06-30","Region 6","Operating Expense","Medical Expense","LTC Services","2.17","Case Management FF (Non-Plan Provided)",{"$f":"IFERROR('LTC Rev-Exp Region 6'!$H$33/'LTC Rev-Exp Region 6'!$H$9, 0)","v":{"v":0,"d":"$0.00"}},{"$f":"IFERROR('LTC Rev-Exp Region 6'!$I$33/'LTC Rev-Exp Region 6'!$I$9, 0)","v":{"v":0,"d":"$0.00"}},{"$f":"IFERROR('LTC Rev-Exp Region 6'!$J$33/'LTC Rev-Exp Region 6'!$J$9, 0)","v":{"v":0,"d":"$0.00"}},{"$f":"IFERROR('LTC Rev-Exp Region 6'!$K$33/'LTC Rev-Exp Region 6'!$K$9, 0)","v":{"v":0,"d":"$0.00"}}]
["LTC",null,null,{"$f":"Jurat!I$1","v":0},{"$f":"Jurat!D$33","v":"00:00:00"},"Q2","2017-06-30","Region 6","Operating Expense","Medical Expense","LTC Services","2.18","HCBS FFS",{"$f":"IFERROR('LTC Rev-Exp Region 6'!$H$34/'LTC Rev-Exp Region 6'!$H$9, 0)","v":{"v":0,"d":"$0.00"}},{"$f":"IFERROR('LTC Rev-Exp Region 6'!$I$34/'LTC Rev-Exp Region 6'!$I$9, 0)","v":{"v":0,"d":"$0.00"}},{"$f":"IFERROR('LTC Rev-Exp Region 6'!$J$34/'LTC Rev-Exp Region 6'!$J$9, 0)","v":{"v":0,"d":"$0.00"}},{"$f":"IFERROR('LTC Rev-Exp Region 6'!$K$34/'LTC Rev-Exp Region 6'!$K$9, 0)","v":{"v":0,"d":"$0.00"}}]
["LTC",null,null,{"$f":"Jurat!I$1","v":0},{"$f":"Jurat!D$33","v":"00:00:00"},"Q2","2017-06-30","Region 6","Operating Expense","Medical Expense","LTC Services","2.19","Subcapitated LTC Services",{"$f":"IFERROR('LTC Rev-Exp Region 6'!$H$35/'LTC Rev-Exp Region 6'!$H$9, 0)","v":{"v":0,"d":"$0.00"}},{"$f":"IFERROR('LTC Rev-Exp Region 6'!$I$35/'LTC Rev-Exp Region 6'!$I$9, 0)","v":{"v":0,"d":"$0.00"}},{"$f":"IFERROR('LTC Rev-Exp Region 6'!$J$35/'LTC Rev-Exp Region 6'!$J$9, 0)","v":{"v":0,"d":"$0.00"}},{"$f":"IFERROR('LTC Rev-Exp Region 6'!$K$35/'LTC Rev-Exp Region 6'!$K$9, 0)","v":{"v":0,"d":"$0.00"}}]
["LTC",null,null,{"$f":"Jurat!I$1","v":0},{"$f":"Jurat!D$33","v":"00:00:00"},"Q2","2017-06-30","Region 6","Operating Expense","Medical Expense","LTC Services","2.20","Ending IBNP for Long Term Care Services",{"$f":"IFERROR('LTC Rev-Exp Region 6'!$H$36/'LTC Rev-Exp Region 6'!$H$9, 0)","v":{"v":0,"d":"$0.00"}},{"$f":"IFERROR('LTC Rev-Exp Region 6'!$I$36/'LTC Rev-Exp Region 6'!$I$9, 0)","v":{"v":0,"d":"$0.00"}},{"$f":"IFERROR('LTC Rev-Exp Region 6'!$J$36/'LTC Rev-Exp Region 6'!$J$9, 0)","v":{"v":0,"d":"$0.00"}},{"$f":"IFERROR('LTC Rev-Exp Region 6'!$K$36/'LTC Rev-Exp Region 6'!$K$9, 0)","v":{"v":0,"d":"$0.00"}}]
["LTC",null,null,{"$f":"Jurat!I$1","v":0},{"$f":"Jurat!D$33","v":"00:00:00"},"Q2","2017-06-30","Region 6","Operating Expense","Medical Expense","LTC Services","2.21","LTC Services Settlements",{"$f":"IFERROR('LTC Rev-Exp Region 6'!$H$37/'LTC Rev-Exp Region 6'!$H$9, 0)","v":{"v":0,"d":"$0.00"}},{"$f":"IFERROR('LTC Rev-Exp Region 6'!$I$37/'LTC Rev-Exp Region 6'!$I$9, 0)","v":{"v":0,"d":"$0.00"}},{"$f":"IFERROR('LTC Rev-Exp Region 6'!$J$37/'LTC Rev-Exp Region 6'!$J$9, 0)","v":{"v":0,"d":"$0.00"}},{"$f":"IFERROR('LTC Rev-Exp Region 6'!$K$37/'LTC Rev-Exp Region 6'!$K$9, 0)","v":{"v":0,"d":"$0.00"}}]
["LTC",null,null,{"$f":"Jurat!I$1","v":0},{"$f":"Jurat!D$33","v":"00:00:00"},"Q2","2017-06-30","Region 6","Operating Expense","Medical Expense","Expanded Benefits","3.1","Expanded Benefits FFS",{"$f":"IFERROR('LTC Rev-Exp Region 6'!$H$39/'LTC Rev-Exp Region 6'!$H$9, 0)","v":{"v":0,"d":"$0.00"}},{"$f":"IFERROR('LTC Rev-Exp Region 6'!$I$39/'LTC Rev-Exp Region 6'!$I$9, 0)","v":{"v":0,"d":"$0.00"}},{"$f":"IFERROR('LTC Rev-Exp Region 6'!$J$39/'LTC Rev-Exp Region 6'!$J$9, 0)","v":{"v":0,"d":"$0.00"}},{"$f":"IFERROR('LTC Rev-Exp Region 6'!$K$39/'LTC Rev-Exp Region 6'!$K$9, 0)","v":{"v":0,"d":"$0.00"}}]
["LTC",null,null,{"$f":"Jurat!I$1","v":0},{"$f":"Jurat!D$33","v":"00:00:00"},"Q2","2017-06-30","Region 6","Operating Expense","Medical Expense","Expanded Benefits","3.2","Expanded Benefits Subcapitation",{"$f":"IFERROR('LTC Rev-Exp Region 6'!$H$40/'LTC Rev-Exp Region 6'!$H$9, 0)","v":{"v":0,"d":"$0.00"}},{"$f":"IFERROR('LTC Rev-Exp Region 6'!$I$40/'LTC Rev-Exp Region 6'!$I$9, 0)","v":{"v":0,"d":"$0.00"}},{"$f":"IFERROR('LTC Rev-Exp Region 6'!$J$40/'LTC Rev-Exp Region 6'!$J$9, 0)","v":{"v":0,"d":"$0.00"}},{"$f":"IFERROR('LTC Rev-Exp Region 6'!$K$40/'LTC Rev-Exp Region 6'!$K$9, 0)","v":{"v":0,"d":"$0.00"}}]
["LTC",null,null,{"$f":"Jurat!I$1","v":0},{"$f":"Jurat!D$33","v":"00:00:00"},"Q2","2017-06-30","Region 6","Operating Expense","Medical Expense","Expanded Benefits","3.3","Ending IBNP for Expanded Benefits",{"$f":"IFERROR('LTC Rev-Exp Region 6'!$H$41/'LTC Rev-Exp Region 6'!$H$9, 0)","v":{"v":0,"d":"$0.00"}},{"$f":"IFERROR('LTC Rev-Exp Region 6'!$I$41/'LTC Rev-Exp Region 6'!$I$9, 0)","v":{"v":0,"d":"$0.00"}},{"$f":"IFERROR('LTC Rev-Exp Region 6'!$J$41/'LTC Rev-Exp Region 6'!$J$9, 0)","v":{"v":0,"d":"$0.00"}},{"$f":"IFERROR('LTC Rev-Exp Region 6'!$K$41/'LTC Rev-Exp Region 6'!$K$9, 0)","v":{"v":0,"d":"$0.00"}}]
["LTC",null,null,{"$f":"Jurat!I$1","v":0},{"$f":"Jurat!D$33","v":"00:00:00"},"Q2","2017-06-30","Region 6","Operating Expense","Medical Expense","Expanded Benefits","3.4","Expanded Benefits Settlements",{"$f":"IFERROR('LTC Rev-Exp Region 6'!$H$42/'LTC Rev-Exp Region 6'!$H$9, 0)","v":{"v":0,"d":"$0.00"}},{"$f":"IFERROR('LTC Rev-Exp Region 6'!$I$42/'LTC Rev-Exp Region 6'!$I$9, 0)","v":{"v":0,"d":"$0.00"}},{"$f":"IFERROR('LTC Rev-Exp Region 6'!$J$42/'LTC Rev-Exp Region 6'!$J$9, 0)","v":{"v":0,"d":"$0.00"}},{"$f":"IFERROR('LTC Rev-Exp Region 6'!$K$42/'LTC Rev-Exp Region 6'!$K$9, 0)","v":{"v":0,"d":"$0.00"}}]
["LTC",null,null,{"$f":"Jurat!I$1","v":0},{"$f":"Jurat!D$33","v":"00:00:00"},"Q2","2017-06-30","Region 6","Operating Expense","Medical Expense","Other Medical","4.5","TPL & Fraud/Abuse Recoveries",{"$f":"IFERROR('LTC Rev-Exp Region 6'!$H$48/'LTC Rev-Exp Region 6'!$H$9, 0)","v":{"v":0,"d":"$0.00"}},{"$f":"IFERROR('LTC Rev-Exp Region 6'!$I$48/'LTC Rev-Exp Region 6'!$I$9, 0)","v":{"v":0,"d":"$0.00"}},{"$f":"IFERROR('LTC Rev-Exp Region 6'!$J$48/'LTC Rev-Exp Region 6'!$J$9, 0)","v":{"v":0,"d":"$0.00"}},{"$f":"IFERROR('LTC Rev-Exp Region 6'!$K$48/'LTC Rev-Exp Region 6'!$K$9, 0)","v":{"v":0,"d":"$0.00"}}]
["LTC",null,null,{"$f":"Jurat!I$1","v":0},{"$f":"Jurat!D$33","v":"00:00:00"},"Q2","2017-06-30","Region 6","Operating Expense","Medical Expense","Other Medical","4.6.1","Premium Deficiency Reserve",{"$f":"IFERROR('LTC Rev-Exp Region 6'!$H$49/'LTC Rev-Exp Region 6'!$H$9, 0)","v":{"v":0,"d":"$0.00"}},{"$f":"IFERROR('LTC Rev-Exp Region 6'!$I$49/'LTC Rev-Exp Region 6'!$I$9, 0)","v":{"v":0,"d":"$0.00"}},{"$f":"IFERROR('LTC Rev-Exp Region 6'!$J$49/'LTC Rev-Exp Region 6'!$J$9, 0)","v":{"v":0,"d":"$0.00"}},{"$f":"IFERROR('LTC Rev-Exp Region 6'!$K$49/'LTC Rev-Exp Region 6'!$K$9, 0)","v":{"v":0,"d":"$0.00"}}]
["LTC",null,null,{"$f":"Jurat!I$1","v":0},{"$f":"Jurat!D$33","v":"00:00:00"},"Q2","2017-06-30","Region 6","Operating Expense","Medical Expense","Other Medical","4.8","Reinsurance Premiums",{"$f":"IFERROR('LTC Rev-Exp Region 6'!$H$51/'LTC Rev-Exp Region 6'!$H$9, 0)","v":{"v":0,"d":"$0.00"}},{"$f":"IFERROR('LTC Rev-Exp Region 6'!$I$51/'LTC Rev-Exp Region 6'!$I$9, 0)","v":{"v":0,"d":"$0.00"}},{"$f":"IFERROR('LTC Rev-Exp Region 6'!$J$51/'LTC Rev-Exp Region 6'!$J$9, 0)","v":{"v":0,"d":"$0.00"}},{"$f":"IFERROR('LTC Rev-Exp Region 6'!$K$51/'LTC Rev-Exp Region 6'!$K$9, 0)","v":{"v":0,"d":"$0.00"}}]
["LTC",null,null,{"$f":"Jurat!I$1","v":0},{"$f":"Jurat!D$33","v":"00:00:00"},"Q2","2017-06-30","Region 6","Operating Expense","Medical Expense","Other Medical","4.9","Reinsurance Recoveries",{"$f":"IFERROR('LTC Rev-Exp Region 6'!$H$52/'LTC Rev-Exp Region 6'!$H$9, 0)","v":{"v":0,"d":"$0.00"}},{"$f":"IFERROR('LTC Rev-Exp Region 6'!$I$52/'LTC Rev-Exp Region 6'!$I$9, 0)","v":{"v":0,"d":"$0.00"}},{"$f":"IFERROR('LTC Rev-Exp Region 6'!$J$52/'LTC Rev-Exp Region 6'!$J$9, 0)","v":{"v":0,"d":"$0.00"}},{"$f":"IFERROR('LTC Rev-Exp Region 6'!$K$52/'LTC Rev-Exp Region 6'!$K$9, 0)","v":{"v":0,"d":"$0.00"}}]
["LTC",null,null,{"$f":"Jurat!I$1","v":0},{"$f":"Jurat!D$33","v":"00:00:00"},"Q2","2017-06-30","Region 6","Operating Expense","Administrative Expense","Administrative","5.1","Salaries & Benefits",{"$f":"IFERROR('LTC Rev-Exp Region 6'!$H$57/'LTC Rev-Exp Region 6'!$H$9, 0)","v":{"v":0,"d":"$0.00"}},{"$f":"IFERROR('LTC Rev-Exp Region 6'!$I$57/'LTC Rev-Exp Region 6'!$I$9, 0)","v":{"v":0,"d":"$0.00"}},{"$f":"IFERROR('LTC Rev-Exp Region 6'!$J$57/'LTC Rev-Exp Region 6'!$J$9, 0)","v":{"v":0,"d":"$0.00"}},{"$f":"IFERROR('LTC Rev-Exp Region 6'!$K$57/'LTC Rev-Exp Region 6'!$K$9, 0)","v":{"v":0,"d":"$0.00"}}]
["LTC",null,null,{"$f":"Jurat!I$1","v":0},{"$f":"Jurat!D$33","v":"00:00:00"},"Q2","2017-06-30","Region 6","Operating Expense","Administrative Expense","Administrative","5.2","Administrative Services",{"$f":"IFERROR('LTC Rev-Exp Region 6'!$H$58/'LTC Rev-Exp Region 6'!$H$9, 0)","v":{"v":0,"d":"$0.00"}},{"$f":"IFERROR('LTC Rev-Exp Region 6'!$I$58/'LTC Rev-Exp Region 6'!$I$9, 0)","v":{"v":0,"d":"$0.00"}},{"$f":"IFERROR('LTC Rev-Exp Region 6'!$J$58/'LTC Rev-Exp Region 6'!$J$9, 0)","v":{"v":0,"d":"$0.00"}},{"$f":"IFERROR('LTC Rev-Exp Region 6'!$K$58/'LTC Rev-Exp Region 6'!$K$9, 0)","v":{"v":0,"d":"$0.00"}}]
["LTC",null,null,{"$f":"Jurat!I$1","v":0},{"$f":"Jurat!D$33","v":"00:00:00"},"Q2","2017-06-30","Region 6","Operating Expense","Administrative Expense","Administrative","5.3","Information Systems",{"$f":"IFERROR('LTC Rev-Exp Region 6'!$H$59/'LTC Rev-Exp Region 6'!$H$9, 0)","v":{"v":0,"d":"$0.00"}},{"$f":"IFERROR('LTC Rev-Exp Region 6'!$I$59/'LTC Rev-Exp Region 6'!$I$9, 0)","v":{"v":0,"d":"$0.00"}},{"$f":"IFERROR('LTC Rev-Exp Region 6'!$J$59/'LTC Rev-Exp Region 6'!$J$9, 0)","v":{"v":0,"d":"$0.00"}},{"$f":"IFERROR('LTC Rev-Exp Region 6'!$K$59/'LTC Rev-Exp Region 6'!$K$9, 0)","v":{"v":0,"d":"$0.00"}}]
["LTC",null,null,{"$f":"Jurat!I$1","v":0},{"$f":"Jurat!D$33","v":"00:00:00"},"Q2","2017-06-30","Region 6","Operating Expense","Administrative Expense","Administrative","5.4","Marketing Expenses",{"$f":"IFERROR('LTC Rev-Exp Region 6'!$H$60/'LTC Rev-Exp Region 6'!$H$9, 0)","v":{"v":0,"d":"$0.00"}},{"$f":"IFERROR('LTC Rev-Exp Region 6'!$I$60/'LTC Rev-Exp Region 6'!$I$9, 0)","v":{"v":0,"d":"$0.00"}},{"$f":"IFERROR('LTC Rev-Exp Region 6'!$J$60/'LTC Rev-Exp Region 6'!$J$9, 0)","v":{"v":0,"d":"$0.00"}},{"$f":"IFERROR('LTC Rev-Exp Region 6'!$K$60/'LTC Rev-Exp Region 6'!$K$9, 0)","v":{"v":0,"d":"$0.00"}}]
["LTC",null,null,{"$f":"Jurat!I$1","v":0},{"$f":"Jurat!D$33","v":"00:00:00"},"Q2","2017-06-30","Region 6","Operating Expense","Administrative Expense","Administrative","5.5","General  Administration",{"$f":"IFERROR('LTC Rev-Exp Region 6'!$H$61/'LTC Rev-Exp Region 6'!$H$9, 0)","v":{"v":0,"d":"$0.00"}},{"$f":"IFERROR('LTC Rev-Exp Region 6'!$I$61/'LTC Rev-Exp Region 6'!$I$9, 0)","v":{"v":0,"d":"$0.00"}},{"$f":"IFERROR('LTC Rev-Exp Region 6'!$J$61/'LTC Rev-Exp Region 6'!$J$9, 0)","v":{"v":0,"d":"$0.00"}},{"$f":"IFERROR('LTC Rev-Exp Region 6'!$K$61/'LTC Rev-Exp Region 6'!$K$9, 0)","v":{"v":0,"d":"$0.00"}}]
["LTC",null,null,{"$f":"Jurat!I$1","v":0},{"$f":"Jurat!D$33","v":"00:00:00"},"Q2","2017-06-30","Region 6","Operating Expense","Administrative Expense","Administrative","5.6","Compliance/Regulatory",{"$f":"IFERROR('LTC Rev-Exp Region 6'!$H$62/'LTC Rev-Exp Region 6'!$H$9, 0)","v":{"v":0,"d":"$0.00"}},{"$f":"IFERROR('LTC Rev-Exp Region 6'!$I$62/'LTC Rev-Exp Region 6'!$I$9, 0)","v":{"v":0,"d":"$0.00"}},{"$f":"IFERROR('LTC Rev-Exp Region 6'!$J$62/'LTC Rev-Exp Region 6'!$J$9, 0)","v":{"v":0,"d":"$0.00"}},{"$f":"IFERROR('LTC Rev-Exp Region 6'!$K$62/'LTC Rev-Exp Region 6'!$K$9, 0)","v":{"v":0,"d":"$0.00"}}]
["LTC",null,null,{"$f":"Jurat!I$1","v":0},{"$f":"Jurat!D$33","v":"00:00:00"},"Q2","2017-06-30","Region 6","Operating Expense","Taxes & Fees","Taxes & Fees","6.1","State Premium Tax",{"$f":"IFERROR('LTC Rev-Exp Region 6'!$H$64/'LTC Rev-Exp Region 6'!$H$9, 0)","v":{"v":0,"d":"$0.00"}},{"$f":"IFERROR('LTC Rev-Exp Region 6'!$I$64/'LTC Rev-Exp Region 6'!$I$9, 0)","v":{"v":0,"d":"$0.00"}},{"$f":"IFERROR('LTC Rev-Exp Region 6'!$J$64/'LTC Rev-Exp Region 6'!$J$9, 0)","v":{"v":0,"d":"$0.00"}},{"$f":"IFERROR('LTC Rev-Exp Region 6'!$K$64/'LTC Rev-Exp Region 6'!$K$9, 0)","v":{"v":0,"d":"$0.00"}}]
["LTC",null,null,{"$f":"Jurat!I$1","v":0},{"$f":"Jurat!D$33","v":"00:00:00"},"Q2","2017-06-30","Region 6","Operating Expense","Taxes & Fees","Taxes & Fees","6.2","Department of Insurance Assessments",{"$f":"IFERROR('LTC Rev-Exp Region 6'!$H$65/'LTC Rev-Exp Region 6'!$H$9, 0)","v":{"v":0,"d":"$0.00"}},{"$f":"IFERROR('LTC Rev-Exp Region 6'!$I$65/'LTC Rev-Exp Region 6'!$I$9, 0)","v":{"v":0,"d":"$0.00"}},{"$f":"IFERROR('LTC Rev-Exp Region 6'!$J$65/'LTC Rev-Exp Region 6'!$J$9, 0)","v":{"v":0,"d":"$0.00"}},{"$f":"IFERROR('LTC Rev-Exp Region 6'!$K$65/'LTC Rev-Exp Region 6'!$K$9, 0)","v":{"v":0,"d":"$0.00"}}]
["LTC",null,null,{"$f":"Jurat!I$1","v":0},{"$f":"Jurat!D$33","v":"00:00:00"},"Q2","2017-06-30","Region 6","Non-Operating Expense","Income Tax Expense","Income Tax Expense","9.0","Income Tax Expense",{"$f":"IFERROR('LTC Rev-Exp Region 6'!$H$66/'LTC Rev-Exp Region 6'!$H$9, 0)","v":{"v":0,"d":"$0.00"}},{"$f":"IFERROR('LTC Rev-Exp Region 6'!$I$66/'LTC Rev-Exp Region 6'!$I$9, 0)","v":{"v":0,"d":"$0.00"}},{"$f":"IFERROR('LTC Rev-Exp Region 6'!$J$66/'LTC Rev-Exp Region 6'!$J$9, 0)","v":{"v":0,"d":"$0.00"}},{"$f":"IFERROR('LTC Rev-Exp Region 6'!$K$66/'LTC Rev-Exp Region 6'!$K$9, 0)","v":{"v":0,"d":"$0.00"}}]
["LTC",null,null,{"$f":"Jurat!I$1","v":0},{"$f":"Jurat!D$33","v":"00:00:00"},"Q3","2017-09-30","Region 6","Operating Revenue","Capitation","Capitation",1.1,"Capitation",{"$f":"IFERROR('LTC Rev-Exp Region 6'!$L$11/'LTC Rev-Exp Region 6'!$L$9,\"0\")","v":"0"},{"$f":"IFERROR('LTC Rev-Exp Region 6'!$M$11/'LTC Rev-Exp Region 6'!$M$9,\"0\")","v":"0"},{"$f":"IFERROR('LTC Rev-Exp Region 6'!$N$11/'LTC Rev-Exp Region 6'!$N$9,\"0\")","v":"0"},{"$f":"IFERROR('LTC Rev-Exp Region 6'!$O$11/'LTC Rev-Exp Region 6'!$O$9,\"0\")","v":"0"}]
["LTC",null,null,{"$f":"Jurat!I$1","v":0},{"$f":"Jurat!D$33","v":"00:00:00"},"Q3","2017-09-30","Region 6","Operating Revenue","Capitation","NH Rate Reconciliation",1.2,"NH Rate Reconciliation",{"$f":"IFERROR('LTC Rev-Exp Region 6'!$L$12/'LTC Rev-Exp Region 6'!$L$9,\"0\")","v":"0"},{"$f":"IFERROR('LTC Rev-Exp Region 6'!$M$12/'LTC Rev-Exp Region 6'!$M$9,\"0\")","v":"0"},{"$f":"IFERROR('LTC Rev-Exp Region 6'!$N$12/'LTC Rev-Exp Region 6'!$N$9,\"0\")","v":"0"},{"$f":"IFERROR('LTC Rev-Exp Region 6'!$O$12/'LTC Rev-Exp Region 6'!$O$9,\"0\")","v":"0"}]
["LTC",null,null,{"$f":"Jurat!I$1","v":0},{"$f":"Jurat!D$33","v":"00:00:00"},"Q3","2017-09-30","Region 6","Operating Revenue","Other Revenue","Other Revenue",1.3,"Other Revenue",{"$f":"IFERROR('LTC Rev-Exp Region 6'!$L$13/'LTC Rev-Exp Region 6'!$L$9,\"0\")","v":"0"},{"$f":"IFERROR('LTC Rev-Exp Region 6'!$M$13/'LTC Rev-Exp Region 6'!$M$9,\"0\")","v":"0"},{"$f":"IFERROR('LTC Rev-Exp Region 6'!$N$13/'LTC Rev-Exp Region 6'!$N$9,\"0\")","v":"0"},{"$f":"IFERROR('LTC Rev-Exp Region 6'!$O$13/'LTC Rev-Exp Region 6'!$O$9,\"0\")","v":"0"}]
["LTC",null,null,{"$f":"Jurat!I$1","v":0},{"$f":"Jurat!D$33","v":"00:00:00"},"Q3","2017-09-30","Region 6","Operating Expense","Medical Expense","NF & Hospice","2.3","Nursing Facility FFS (Medicaid)",{"$f":"IFERROR('LTC Rev-Exp Region 6'!$L$19/'LTC Rev-Exp Region 6'!$L$9, 0)","v":{"v":0,"d":"$0.00"}},{"$f":"IFERROR('LTC Rev-Exp Region 6'!$M$19/'LTC Rev-Exp Region 6'!$M$9, 0)","v":{"v":0,"d":"$0.00"}},{"$f":"IFERROR('LTC Rev-Exp Region 6'!$N$19/'LTC Rev-Exp Region 6'!$N$9, 0)","v":{"v":0,"d":"$0.00"}},{"$f":"IFERROR('LTC Rev-Exp Region 6'!$O$19/'LTC Rev-Exp Region 6'!$O$9, 0)","v":{"v":0,"d":"$0.00"}}]
["LTC",null,null,{"$f":"Jurat!I$1","v":0},{"$f":"Jurat!D$33","v":"00:00:00"},"Q3","2017-09-30","Region 6","Operating Expense","Medical Expense","NF & Hospice","2.4","Nursing Facility FFS (Crossover)",{"$f":"IFERROR('LTC Rev-Exp Region 6'!$L$20/'LTC Rev-Exp Region 6'!$L$9, 0)","v":{"v":0,"d":"$0.00"}},{"$f":"IFERROR('LTC Rev-Exp Region 6'!$M$20/'LTC Rev-Exp Region 6'!$M$9, 0)","v":{"v":0,"d":"$0.00"}},{"$f":"IFERROR('LTC Rev-Exp Region 6'!$N$20/'LTC Rev-Exp Region 6'!$N$9, 0)","v":{"v":0,"d":"$0.00"}},{"$f":"IFERROR('LTC Rev-Exp Region 6'!$O$20/'LTC Rev-Exp Region 6'!$O$9, 0)","v":{"v":0,"d":"$0.00"}}]
["LTC",null,null,{"$f":"Jurat!I$1","v":0},{"$f":"Jurat!D$33","v":"00:00:00"},"Q3","2017-09-30","Region 6","Operating Expense","Medical Expense","NF & Hospice","2.6","Hospice FFS",{"$f":"IFERROR('LTC Rev-Exp Region 6'!$L$22/'LTC Rev-Exp Region 6'!$L$9, 0)","v":{"v":0,"d":"$0.00"}},{"$f":"IFERROR('LTC Rev-Exp Region 6'!$M$22/'LTC Rev-Exp Region 6'!$M$9, 0)","v":{"v":0,"d":"$0.00"}},{"$f":"IFERROR('LTC Rev-Exp Region 6'!$N$22/'LTC Rev-Exp Region 6'!$N$9, 0)","v":{"v":0,"d":"$0.00"}},{"$f":"IFERROR('LTC Rev-Exp Region 6'!$O$22/'LTC Rev-Exp Region 6'!$O$9, 0)","v":{"v":0,"d":"$0.00"}}]
["LTC",null,null,{"$f":"Jurat!I$1","v":0},{"$f":"Jurat!D$33","v":"00:00:00"},"Q3","2017-09-30","Region 6","Operating Expense","Medical Expense","NF & Hospice","2.7","Ending IBNP for NF & Hospice",{"$f":"IFERROR('LTC Rev-Exp Region 6'!$L$23/'LTC Rev-Exp Region 6'!$L$9, 0)","v":{"v":0,"d":"$0.00"}},{"$f":"IFERROR('LTC Rev-Exp Region 6'!$M$23/'LTC Rev-Exp Region 6'!$M$9, 0)","v":{"v":0,"d":"$0.00"}},{"$f":"IFERROR('LTC Rev-Exp Region 6'!$N$23/'LTC Rev-Exp Region 6'!$N$9, 0)","v":{"v":0,"d":"$0.00"}},{"$f":"IFERROR('LTC Rev-Exp Region 6'!$O$23/'LTC Rev-Exp Region 6'!$O$9, 0)","v":{"v":0,"d":"$0.00"}}]
["LTC",null,null,{"$f":"Jurat!I$1","v":0},{"$f":"Jurat!D$33","v":"00:00:00"},"Q3","2017-09-30","Region 6","Operating Expense","Medical Expense","NF & Hospice","2.8","NF & Hospice Subcapitated",{"$f":"IFERROR('LTC Rev-Exp Region 6'!$L$24/'LTC Rev-Exp Region 6'!$L$9, 0)","v":{"v":0,"d":"$0.00"}},{"$f":"IFERROR('LTC Rev-Exp Region 6'!$M$24/'LTC Rev-Exp Region 6'!$M$9, 0)","v":{"v":0,"d":"$0.00"}},{"$f":"IFERROR('LTC Rev-Exp Region 6'!$N$24/'LTC Rev-Exp Region 6'!$N$9, 0)","v":{"v":0,"d":"$0.00"}},{"$f":"IFERROR('LTC Rev-Exp Region 6'!$O$24/'LTC Rev-Exp Region 6'!$O$9, 0)","v":{"v":0,"d":"$0.00"}}]
["LTC",null,null,{"$f":"Jurat!I$1","v":0},{"$f":"Jurat!D$33","v":"00:00:00"},"Q3","2017-09-30","Region 6","Operating Expense","Medical Expense","NF & Hospice","2.9","NF & Hospice Settlements",{"$f":"IFERROR('LTC Rev-Exp Region 6'!$L$25/'LTC Rev-Exp Region 6'!$L$9, 0)","v":{"v":0,"d":"$0.00"}},{"$f":"IFERROR('LTC Rev-Exp Region 6'!$M$25/'LTC Rev-Exp Region 6'!$M$9, 0)","v":{"v":0,"d":"$0.00"}},{"$f":"IFERROR('LTC Rev-Exp Region 6'!$N$25/'LTC Rev-Exp Region 6'!$N$9, 0)","v":{"v":0,"d":"$0.00"}},{"$f":"IFERROR('LTC Rev-Exp Region 6'!$O$25/'LTC Rev-Exp Region 6'!$O$9, 0)","v":{"v":0,"d":"$0.00"}}]
["LTC",null,null,{"$f":"Jurat!I$1","v":0},{"$f":"Jurat!D$33","v":"00:00:00"},"Q3","2017-09-30","Region 6","Operating Expense","Medical Expense","LTC Services","2.11","Assisted Living FFS",{"$f":"IFERROR('LTC Rev-Exp Region 6'!$L$27/'LTC Rev-Exp Region 6'!$L$9, 0)","v":{"v":0,"d":"$0.00"}},{"$f":"IFERROR('LTC Rev-Exp Region 6'!$M$27/'LTC Rev-Exp Region 6'!$M$9, 0)","v":{"v":0,"d":"$0.00"}},{"$f":"IFERROR('LTC Rev-Exp Region 6'!$N$27/'LTC Rev-Exp Region 6'!$N$9, 0)","v":{"v":0,"d":"$0.00"}},{"$f":"IFERROR('LTC Rev-Exp Region 6'!$O$27/'LTC Rev-Exp Region 6'!$O$9, 0)","v":{"v":0,"d":"$0.00"}}]
["LTC",null,null,{"$f":"Jurat!I$1","v":0},{"$f":"Jurat!D$33","v":"00:00:00"},"Q3","2017-09-30","Region 6","Operating Expense","Medical Expense","LTC Services","2.12","Home Health FFS",{"$f":"IFERROR('LTC Rev-Exp Region 6'!$L$28/'LTC Rev-Exp Region 6'!$L$9, 0)","v":{"v":0,"d":"$0.00"}},{"$f":"IFERROR('LTC Rev-Exp Region 6'!$M$28/'LTC Rev-Exp Region 6'!$M$9, 0)","v":{"v":0,"d":"$0.00"}},{"$f":"IFERROR('LTC Rev-Exp Region 6'!$N$28/'LTC Rev-Exp Region 6'!$N$9, 0)","v":{"v":0,"d":"$0.00"}},{"$f":"IFERROR('LTC Rev-Exp Region 6'!$O$28/'LTC Rev-Exp Region 6'!$O$9, 0)","v":{"v":0,"d":"$0.00"}}]
["LTC",null,null,{"$f":"Jurat!I$1","v":0},{"$f":"Jurat!D$33","v":"00:00:00"},"Q3","2017-09-30","Region 6","Operating Expense","Medical Expense","LTC Services","2.13","Medical Equipment/Supplies FFS",{"$f":"IFERROR('LTC Rev-Exp Region 6'!$L$29/'LTC Rev-Exp Region 6'!$L$9, 0)","v":{"v":0,"d":"$0.00"}},{"$f":"IFERROR('LTC Rev-Exp Region 6'!$M$29/'LTC Rev-Exp Region 6'!$M$9, 0)","v":{"v":0,"d":"$0.00"}},{"$f":"IFERROR('LTC Rev-Exp Region 6'!$N$29/'LTC Rev-Exp Region 6'!$N$9, 0)","v":{"v":0,"d":"$0.00"}},{"$f":"IFERROR('LTC Rev-Exp Region 6'!$O$29/'LTC Rev-Exp Region 6'!$O$9, 0)","v":{"v":0,"d":"$0.00"}}]
["LTC",null,null,{"$f":"Jurat!I$1","v":0},{"$f":"Jurat!D$33","v":"00:00:00"},"Q3","2017-09-30","Region 6","Operating Expense","Medical Expense","LTC Services","2.14","Therapy FFS",{"$f":"IFERROR('LTC Rev-Exp Region 6'!$L$30/'LTC Rev-Exp Region 6'!$L$9, 0)","v":{"v":0,"d":"$0.00"}},{"$f":"IFERROR('LTC Rev-Exp Region 6'!$M$30/'LTC Rev-Exp Region 6'!$M$9, 0)","v":{"v":0,"d":"$0.00"}},{"$f":"IFERROR('LTC Rev-Exp Region 6'!$N$30/'LTC Rev-Exp Region 6'!$N$9, 0)","v":{"v":0,"d":"$0.00"}},{"$f":"IFERROR('LTC Rev-Exp Region 6'!$O$30/'LTC Rev-Exp Region 6'!$O$9, 0)","v":{"v":0,"d":"$0.00"}}]
["LTC",null,null,{"$f":"Jurat!I$1","v":0},{"$f":"Jurat!D$33","v":"00:00:00"},"Q3","2017-09-30","Region 6","Operating Expense","Medical Expense","LTC Services","2.15","Transportation FFS",{"$f":"IFERROR('LTC Rev-Exp Region 6'!$L$31/'LTC Rev-Exp Region 6'!$L$9, 0)","v":{"v":0,"d":"$0.00"}},{"$f":"IFERROR('LTC Rev-Exp Region 6'!$M$31/'LTC Rev-Exp Region 6'!$M$9, 0)","v":{"v":0,"d":"$0.00"}},{"$f":"IFERROR('LTC Rev-Exp Region 6'!$N$31/'LTC Rev-Exp Region 6'!$N$9, 0)","v":{"v":0,"d":"$0.00"}},{"$f":"IFERROR('LTC Rev-Exp Region 6'!$O$31/'LTC Rev-Exp Region 6'!$O$9, 0)","v":{"v":0,"d":"$0.00"}}]
["LTC",null,null,{"$f":"Jurat!I$1","v":0},{"$f":"Jurat!D$33","v":"00:00:00"},"Q3","2017-09-30","Region 6","Operating Expense","Medical Expense","LTC Services","2.16","Case Management FFS (Plan Provided)",{"$f":"IFERROR('LTC Rev-Exp Region 6'!$L$32/'LTC Rev-Exp Region 6'!$L$9, 0)","v":{"v":0,"d":"$0.00"}},{"$f":"IFERROR('LTC Rev-Exp Region 6'!$M$32/'LTC Rev-Exp Region 6'!$M$9, 0)","v":{"v":0,"d":"$0.00"}},{"$f":"IFERROR('LTC Rev-Exp Region 6'!$N$32/'LTC Rev-Exp Region 6'!$N$9, 0)","v":{"v":0,"d":"$0.00"}},{"$f":"IFERROR('LTC Rev-Exp Region 6'!$O$32/'LTC Rev-Exp Region 6'!$O$9, 0)","v":{"v":0,"d":"$0.00"}}]
["LTC",null,null,{"$f":"Jurat!I$1","v":0},{"$f":"Jurat!D$33","v":"00:00:00"},"Q3","2017-09-30","Region 6","Operating Expense","Medical Expense","LTC Services","2.17","Case Management FF (Non-Plan Provided)",{"$f":"IFERROR('LTC Rev-Exp Region 6'!$L$33/'LTC Rev-Exp Region 6'!$L$9, 0)","v":{"v":0,"d":"$0.00"}},{"$f":"IFERROR('LTC Rev-Exp Region 6'!$M$33/'LTC Rev-Exp Region 6'!$M$9, 0)","v":{"v":0,"d":"$0.00"}},{"$f":"IFERROR('LTC Rev-Exp Region 6'!$N$33/'LTC Rev-Exp Region 6'!$N$9, 0)","v":{"v":0,"d":"$0.00"}},{"$f":"IFERROR('LTC Rev-Exp Region 6'!$O$33/'LTC Rev-Exp Region 6'!$O$9, 0)","v":{"v":0,"d":"$0.00"}}]
["LTC",null,null,{"$f":"Jurat!I$1","v":0},{"$f":"Jurat!D$33","v":"00:00:00"},"Q3","2017-09-30","Region 6","Operating Expense","Medical Expense","LTC Services","2.18","HCBS FFS",{"$f":"IFERROR('LTC Rev-Exp Region 6'!$L$34/'LTC Rev-Exp Region 6'!$L$9, 0)","v":{"v":0,"d":"$0.00"}},{"$f":"IFERROR('LTC Rev-Exp Region 6'!$M$34/'LTC Rev-Exp Region 6'!$M$9, 0)","v":{"v":0,"d":"$0.00"}},{"$f":"IFERROR('LTC Rev-Exp Region 6'!$N$34/'LTC Rev-Exp Region 6'!$N$9, 0)","v":{"v":0,"d":"$0.00"}},{"$f":"IFERROR('LTC Rev-Exp Region 6'!$O$34/'LTC Rev-Exp Region 6'!$O$9, 0)","v":{"v":0,"d":"$0.00"}}]
["LTC",null,null,{"$f":"Jurat!I$1","v":0},{"$f":"Jurat!D$33","v":"00:00:00"},"Q3","2017-09-30","Region 6","Operating Expense","Medical Expense","LTC Services","2.19","Subcapitated LTC Services",{"$f":"IFERROR('LTC Rev-Exp Region 6'!$L$35/'LTC Rev-Exp Region 6'!$L$9, 0)","v":{"v":0,"d":"$0.00"}},{"$f":"IFERROR('LTC Rev-Exp Region 6'!$M$35/'LTC Rev-Exp Region 6'!$M$9, 0)","v":{"v":0,"d":"$0.00"}},{"$f":"IFERROR('LTC Rev-Exp Region 6'!$N$35/'LTC Rev-Exp Region 6'!$N$9, 0)","v":{"v":0,"d":"$0.00"}},{"$f":"IFERROR('LTC Rev-Exp Region 6'!$O$35/'LTC Rev-Exp Region 6'!$O$9, 0)","v":{"v":0,"d":"$0.00"}}]
["LTC",null,null,{"$f":"Jurat!I$1","v":0},{"$f":"Jurat!D$33","v":"00:00:00"},"Q3","2017-09-30","Region 6","Operating Expense","Medical Expense","LTC Services","2.20","Ending IBNP for Long Term Care Services",{"$f":"IFERROR('LTC Rev-Exp Region 6'!$L$36/'LTC Rev-Exp Region 6'!$L$9, 0)","v":{"v":0,"d":"$0.00"}},{"$f":"IFERROR('LTC Rev-Exp Region 6'!$M$36/'LTC Rev-Exp Region 6'!$M$9, 0)","v":{"v":0,"d":"$0.00"}},{"$f":"IFERROR('LTC Rev-Exp Region 6'!$N$36/'LTC Rev-Exp Region 6'!$N$9, 0)","v":{"v":0,"d":"$0.00"}},{"$f":"IFERROR('LTC Rev-Exp Region 6'!$O$36/'LTC Rev-Exp Region 6'!$O$9, 0)","v":{"v":0,"d":"$0.00"}}]
["LTC",null,null,{"$f":"Jurat!I$1","v":0},{"$f":"Jurat!D$33","v":"00:00:00"},"Q3","2017-09-30","Region 6","Operating Expense","Medical Expense","LTC Services","2.21","LTC Services Settlements",{"$f":"IFERROR('LTC Rev-Exp Region 6'!$L$37/'LTC Rev-Exp Region 6'!$L$9, 0)","v":{"v":0,"d":"$0.00"}},{"$f":"IFERROR('LTC Rev-Exp Region 6'!$M$37/'LTC Rev-Exp Region 6'!$M$9, 0)","v":{"v":0,"d":"$0.00"}},{"$f":"IFERROR('LTC Rev-Exp Region 6'!$N$37/'LTC Rev-Exp Region 6'!$N$9, 0)","v":{"v":0,"d":"$0.00"}},{"$f":"IFERROR('LTC Rev-Exp Region 6'!$O$37/'LTC Rev-Exp Region 6'!$O$9, 0)","v":{"v":0,"d":"$0.00"}}]
["LTC",null,null,{"$f":"Jurat!I$1","v":0},{"$f":"Jurat!D$33","v":"00:00:00"},"Q3","2017-09-30","Region 6","Operating Expense","Medical Expense","Expanded Benefits","3.1","Expanded Benefits FFS",{"$f":"IFERROR('LTC Rev-Exp Region 6'!$L$39/'LTC Rev-Exp Region 6'!$L$9, 0)","v":{"v":0,"d":"$0.00"}},{"$f":"IFERROR('LTC Rev-Exp Region 6'!$M$39/'LTC Rev-Exp Region 6'!$M$9, 0)","v":{"v":0,"d":"$0.00"}},{"$f":"IFERROR('LTC Rev-Exp Region 6'!$N$39/'LTC Rev-Exp Region 6'!$N$9, 0)","v":{"v":0,"d":"$0.00"}},{"$f":"IFERROR('LTC Rev-Exp Region 6'!$O$39/'LTC Rev-Exp Region 6'!$O$9, 0)","v":{"v":0,"d":"$0.00"}}]
["LTC",null,null,{"$f":"Jurat!I$1","v":0},{"$f":"Jurat!D$33","v":"00:00:00"},"Q3","2017-09-30","Region 6","Operating Expense","Medical Expense","Expanded Benefits","3.2","Expanded Benefits Subcapitation",{"$f":"IFERROR('LTC Rev-Exp Region 6'!$L$40/'LTC Rev-Exp Region 6'!$L$9, 0)","v":{"v":0,"d":"$0.00"}},{"$f":"IFERROR('LTC Rev-Exp Region 6'!$M$40/'LTC Rev-Exp Region 6'!$M$9, 0)","v":{"v":0,"d":"$0.00"}},{"$f":"IFERROR('LTC Rev-Exp Region 6'!$N$40/'LTC Rev-Exp Region 6'!$N$9, 0)","v":{"v":0,"d":"$0.00"}},{"$f":"IFERROR('LTC Rev-Exp Region 6'!$O$40/'LTC Rev-Exp Region 6'!$O$9, 0)","v":{"v":0,"d":"$0.00"}}]
["LTC",null,null,{"$f":"Jurat!I$1","v":0},{"$f":"Jurat!D$33","v":"00:00:00"},"Q3","2017-09-30","Region 6","Operating Expense","Medical Expense","Expanded Benefits","3.3","Ending IBNP for Expanded Benefits",{"$f":"IFERROR('LTC Rev-Exp Region 6'!$L$41/'LTC Rev-Exp Region 6'!$L$9, 0)","v":{"v":0,"d":"$0.00"}},{"$f":"IFERROR('LTC Rev-Exp Region 6'!$M$41/'LTC Rev-Exp Region 6'!$M$9, 0)","v":{"v":0,"d":"$0.00"}},{"$f":"IFERROR('LTC Rev-Exp Region 6'!$N$41/'LTC Rev-Exp Region 6'!$N$9, 0)","v":{"v":0,"d":"$0.00"}},{"$f":"IFERROR('LTC Rev-Exp Region 6'!$O$41/'LTC Rev-Exp Region 6'!$O$9, 0)","v":{"v":0,"d":"$0.00"}}]
["LTC",null,null,{"$f":"Jurat!I$1","v":0},{"$f":"Jurat!D$33","v":"00:00:00"},"Q3","2017-09-30","Region 6","Operating Expense","Medical Expense","Expanded Benefits","3.4","Expanded Benefits Settlements",{"$f":"IFERROR('LTC Rev-Exp Region 6'!$L$42/'LTC Rev-Exp Region 6'!$L$9, 0)","v":{"v":0,"d":"$0.00"}},{"$f":"IFERROR('LTC Rev-Exp Region 6'!$M$42/'LTC Rev-Exp Region 6'!$M$9, 0)","v":{"v":0,"d":"$0.00"}},{"$f":"IFERROR('LTC Rev-Exp Region 6'!$N$42/'LTC Rev-Exp Region 6'!$N$9, 0)","v":{"v":0,"d":"$0.00"}},{"$f":"IFERROR('LTC Rev-Exp Region 6'!$O$42/'LTC Rev-Exp Region 6'!$O$9, 0)","v":{"v":0,"d":"$0.00"}}]
["LTC",null,null,{"$f":"Jurat!I$1","v":0},{"$f":"Jurat!D$33","v":"00:00:00"},"Q3","2017-09-30","Region 6","Operating Expense","Medical Expense","Other Medical","4.5","TPL & Fraud/Abuse Recoveries",{"$f":"IFERROR('LTC Rev-Exp Region 6'!$L$48/'LTC Rev-Exp Region 6'!$L$9, 0)","v":{"v":0,"d":"$0.00"}},{"$f":"IFERROR('LTC Rev-Exp Region 6'!$M$48/'LTC Rev-Exp Region 6'!$M$9, 0)","v":{"v":0,"d":"$0.00"}},{"$f":"IFERROR('LTC Rev-Exp Region 6'!$N$48/'LTC Rev-Exp Region 6'!$N$9, 0)","v":{"v":0,"d":"$0.00"}},{"$f":"IFERROR('LTC Rev-Exp Region 6'!$O$48/'LTC Rev-Exp Region 6'!$O$9, 0)","v":{"v":0,"d":"$0.00"}}]
["LTC",null,null,{"$f":"Jurat!I$1","v":0},{"$f":"Jurat!D$33","v":"00:00:00"},"Q3","2017-09-30","Region 6","Operating Expense","Medical Expense","Other Medical","4.6.1","Premium Deficiency Reserve",{"$f":"IFERROR('LTC Rev-Exp Region 6'!$L$49/'LTC Rev-Exp Region 6'!$L$9, 0)","v":{"v":0,"d":"$0.00"}},{"$f":"IFERROR('LTC Rev-Exp Region 6'!$M$49/'LTC Rev-Exp Region 6'!$M$9, 0)","v":{"v":0,"d":"$0.00"}},{"$f":"IFERROR('LTC Rev-Exp Region 6'!$N$49/'LTC Rev-Exp Region 6'!$N$9, 0)","v":{"v":0,"d":"$0.00"}},{"$f":"IFERROR('LTC Rev-Exp Region 6'!$O$49/'LTC Rev-Exp Region 6'!$O$9, 0)","v":{"v":0,"d":"$0.00"}}]
["LTC",null,null,{"$f":"Jurat!I$1","v":0},{"$f":"Jurat!D$33","v":"00:00:00"},"Q3","2017-09-30","Region 6","Operating Expense","Medical Expense","Other Medical","4.8","Reinsurance Premiums",{"$f":"IFERROR('LTC Rev-Exp Region 6'!$L$51/'LTC Rev-Exp Region 6'!$L$9, 0)","v":{"v":0,"d":"$0.00"}},{"$f":"IFERROR('LTC Rev-Exp Region 6'!$M$51/'LTC Rev-Exp Region 6'!$M$9, 0)","v":{"v":0,"d":"$0.00"}},{"$f":"IFERROR('LTC Rev-Exp Region 6'!$N$51/'LTC Rev-Exp Region 6'!$N$9, 0)","v":{"v":0,"d":"$0.00"}},{"$f":"IFERROR('LTC Rev-Exp Region 6'!$O$51/'LTC Rev-Exp Region 6'!$O$9, 0)","v":{"v":0,"d":"$0.00"}}]
["LTC",null,null,{"$f":"Jurat!I$1","v":0},{"$f":"Jurat!D$33","v":"00:00:00"},"Q3","2017-09-30","Region 6","Operating Expense","Medical Expense","Other Medical","4.9","Reinsurance Recoveries",{"$f":"IFERROR('LTC Rev-Exp Region 6'!$L$52/'LTC Rev-Exp Region 6'!$L$9, 0)","v":{"v":0,"d":"$0.00"}},{"$f":"IFERROR('LTC Rev-Exp Region 6'!$M$52/'LTC Rev-Exp Region 6'!$M$9, 0)","v":{"v":0,"d":"$0.00"}},{"$f":"IFERROR('LTC Rev-Exp Region 6'!$N$52/'LTC Rev-Exp Region 6'!$N$9, 0)","v":{"v":0,"d":"$0.00"}},{"$f":"IFERROR('LTC Rev-Exp Region 6'!$O$52/'LTC Rev-Exp Region 6'!$O$9, 0)","v":{"v":0,"d":"$0.00"}}]
["LTC",null,null,{"$f":"Jurat!I$1","v":0},{"$f":"Jurat!D$33","v":"00:00:00"},"Q3","2017-09-30","Region 6","Operating Expense","Administrative Expense","Administrative","5.1","Salaries & Benefits",{"$f":"IFERROR('LTC Rev-Exp Region 6'!$L$57/'LTC Rev-Exp Region 6'!$L$9, 0)","v":{"v":0,"d":"$0.00"}},{"$f":"IFERROR('LTC Rev-Exp Region 6'!$M$57/'LTC Rev-Exp Region 6'!$M$9, 0)","v":{"v":0,"d":"$0.00"}},{"$f":"IFERROR('LTC Rev-Exp Region 6'!$N$57/'LTC Rev-Exp Region 6'!$N$9, 0)","v":{"v":0,"d":"$0.00"}},{"$f":"IFERROR('LTC Rev-Exp Region 6'!$O$57/'LTC Rev-Exp Region 6'!$O$9, 0)","v":{"v":0,"d":"$0.00"}}]
["LTC",null,null,{"$f":"Jurat!I$1","v":0},{"$f":"Jurat!D$33","v":"00:00:00"},"Q3","2017-09-30","Region 6","Operating Expense","Administrative Expense","Administrative","5.2","Administrative Services",{"$f":"IFERROR('LTC Rev-Exp Region 6'!$L$58/'LTC Rev-Exp Region 6'!$L$9, 0)","v":{"v":0,"d":"$0.00"}},{"$f":"IFERROR('LTC Rev-Exp Region 6'!$M$58/'LTC Rev-Exp Region 6'!$M$9, 0)","v":{"v":0,"d":"$0.00"}},{"$f":"IFERROR('LTC Rev-Exp Region 6'!$N$58/'LTC Rev-Exp Region 6'!$N$9, 0)","v":{"v":0,"d":"$0.00"}},{"$f":"IFERROR('LTC Rev-Exp Region 6'!$O$58/'LTC Rev-Exp Region 6'!$O$9, 0)","v":{"v":0,"d":"$0.00"}}]
["LTC",null,null,{"$f":"Jurat!I$1","v":0},{"$f":"Jurat!D$33","v":"00:00:00"},"Q3","2017-09-30","Region 6","Operating Expense","Administrative Expense","Administrative","5.3","Information Systems",{"$f":"IFERROR('LTC Rev-Exp Region 6'!$L$59/'LTC Rev-Exp Region 6'!$L$9, 0)","v":{"v":0,"d":"$0.00"}},{"$f":"IFERROR('LTC Rev-Exp Region 6'!$M$59/'LTC Rev-Exp Region 6'!$M$9, 0)","v":{"v":0,"d":"$0.00"}},{"$f":"IFERROR('LTC Rev-Exp Region 6'!$N$59/'LTC Rev-Exp Region 6'!$N$9, 0)","v":{"v":0,"d":"$0.00"}},{"$f":"IFERROR('LTC Rev-Exp Region 6'!$O$59/'LTC Rev-Exp Region 6'!$O$9, 0)","v":{"v":0,"d":"$0.00"}}]
["LTC",null,null,{"$f":"Jurat!I$1","v":0},{"$f":"Jurat!D$33","v":"00:00:00"},"Q3","2017-09-30","Region 6","Operating Expense","Administrative Expense","Administrative","5.4","Marketing Expenses",{"$f":"IFERROR('LTC Rev-Exp Region 6'!$L$60/'LTC Rev-Exp Region 6'!$L$9, 0)","v":{"v":0,"d":"$0.00"}},{"$f":"IFERROR('LTC Rev-Exp Region 6'!$M$60/'LTC Rev-Exp Region 6'!$M$9, 0)","v":{"v":0,"d":"$0.00"}},{"$f":"IFERROR('LTC Rev-Exp Region 6'!$N$60/'LTC Rev-Exp Region 6'!$N$9, 0)","v":{"v":0,"d":"$0.00"}},{"$f":"IFERROR('LTC Rev-Exp Region 6'!$O$60/'LTC Rev-Exp Region 6'!$O$9, 0)","v":{"v":0,"d":"$0.00"}}]
["LTC",null,null,{"$f":"Jurat!I$1","v":0},{"$f":"Jurat!D$33","v":"00:00:00"},"Q3","2017-09-30","Region 6","Operating Expense","Administrative Expense","Administrative","5.5","General  Administration",{"$f":"IFERROR('LTC Rev-Exp Region 6'!$L$61/'LTC Rev-Exp Region 6'!$L$9, 0)","v":{"v":0,"d":"$0.00"}},{"$f":"IFERROR('LTC Rev-Exp Region 6'!$M$61/'LTC Rev-Exp Region 6'!$M$9, 0)","v":{"v":0,"d":"$0.00"}},{"$f":"IFERROR('LTC Rev-Exp Region 6'!$N$61/'LTC Rev-Exp Region 6'!$N$9, 0)","v":{"v":0,"d":"$0.00"}},{"$f":"IFERROR('LTC Rev-Exp Region 6'!$O$61/'LTC Rev-Exp Region 6'!$O$9, 0)","v":{"v":0,"d":"$0.00"}}]
["LTC",null,null,{"$f":"Jurat!I$1","v":0},{"$f":"Jurat!D$33","v":"00:00:00"},"Q3","2017-09-30","Region 6","Operating Expense","Administrative Expense","Administrative","5.6","Compliance/Regulatory",{"$f":"IFERROR('LTC Rev-Exp Region 6'!$L$62/'LTC Rev-Exp Region 6'!$L$9, 0)","v":{"v":0,"d":"$0.00"}},{"$f":"IFERROR('LTC Rev-Exp Region 6'!$M$62/'LTC Rev-Exp Region 6'!$M$9, 0)","v":{"v":0,"d":"$0.00"}},{"$f":"IFERROR('LTC Rev-Exp Region 6'!$N$62/'LTC Rev-Exp Region 6'!$N$9, 0)","v":{"v":0,"d":"$0.00"}},{"$f":"IFERROR('LTC Rev-Exp Region 6'!$O$62/'LTC Rev-Exp Region 6'!$O$9, 0)","v":{"v":0,"d":"$0.00"}}]
["LTC",null,null,{"$f":"Jurat!I$1","v":0},{"$f":"Jurat!D$33","v":"00:00:00"},"Q3","2017-09-30","Region 6","Operating Expense","Taxes & Fees","Taxes & Fees","6.1","State Premium Tax",{"$f":"IFERROR('LTC Rev-Exp Region 6'!$L$64/'LTC Rev-Exp Region 6'!$L$9, 0)","v":{"v":0,"d":"$0.00"}},{"$f":"IFERROR('LTC Rev-Exp Region 6'!$M$64/'LTC Rev-Exp Region 6'!$M$9, 0)","v":{"v":0,"d":"$0.00"}},{"$f":"IFERROR('LTC Rev-Exp Region 6'!$N$64/'LTC Rev-Exp Region 6'!$N$9, 0)","v":{"v":0,"d":"$0.00"}},{"$f":"IFERROR('LTC Rev-Exp Region 6'!$O$64/'LTC Rev-Exp Region 6'!$O$9, 0)","v":{"v":0,"d":"$0.00"}}]
["LTC",null,null,{"$f":"Jurat!I$1","v":0},{"$f":"Jurat!D$33","v":"00:00:00"},"Q3","2017-09-30","Region 6","Operating Expense","Taxes & Fees","Taxes & Fees","6.2","Department of Insurance Assessments",{"$f":"IFERROR('LTC Rev-Exp Region 6'!$L$65/'LTC Rev-Exp Region 6'!$L$9, 0)","v":{"v":0,"d":"$0.00"}},{"$f":"IFERROR('LTC Rev-Exp Region 6'!$M$65/'LTC Rev-Exp Region 6'!$M$9, 0)","v":{"v":0,"d":"$0.00"}},{"$f":"IFERROR('LTC Rev-Exp Region 6'!$N$65/'LTC Rev-Exp Region 6'!$N$9, 0)","v":{"v":0,"d":"$0.00"}},{"$f":"IFERROR('LTC Rev-Exp Region 6'!$O$65/'LTC Rev-Exp Region 6'!$O$9, 0)","v":{"v":0,"d":"$0.00"}}]
["LTC",null,null,{"$f":"Jurat!I$1","v":0},{"$f":"Jurat!D$33","v":"00:00:00"},"Q3","2017-09-30","Region 6","Non-Operating Expense","Income Tax Expense","Income Tax Expense","9.0","Income Tax Expense",{"$f":"IFERROR('LTC Rev-Exp Region 6'!$L$72/'LTC Rev-Exp Region 6'!$L$9, 0)","v":{"v":0,"d":"$0.00"}},{"$f":"IFERROR('LTC Rev-Exp Region 6'!$M$72/'LTC Rev-Exp Region 6'!$M$9, 0)","v":{"v":0,"d":"$0.00"}},{"$f":"IFERROR('LTC Rev-Exp Region 6'!$N$72/'LTC Rev-Exp Region 6'!$N$9, 0)","v":{"v":0,"d":"$0.00"}},{"$f":"IFERROR('LTC Rev-Exp Region 6'!$O$72/'LTC Rev-Exp Region 6'!$O$9, 0)","v":{"v":0,"d":"$0.00"}}]
["LTC",null,null,{"$f":"Jurat!I$1","v":0},{"$f":"Jurat!D$33","v":"00:00:00"},"Q4","2017-12-31","Region 6","Operating Revenue","Capitation","Capitation",1.1,"Capitation",{"$f":"IFERROR('LTC Rev-Exp Region 6'!$P$11/'LTC Rev-Exp Region 6'!$P$9, 0)","v":{"v":0,"d":"$0.00"}},{"$f":"IFERROR('LTC Rev-Exp Region 6'!$Q$11/'LTC Rev-Exp Region 6'!$Q$9, 0)","v":{"v":0,"d":"$0.00"}},{"$f":"IFERROR('LTC Rev-Exp Region 6'!$R$11/'LTC Rev-Exp Region 6'!$R$9, 0)","v":{"v":0,"d":"$0.00"}},{"$f":"IFERROR('LTC Rev-Exp Region 6'!$S$11/'LTC Rev-Exp Region 6'!$S$9, 0)","v":{"v":0,"d":"$0.00"}}]
["LTC",null,null,{"$f":"Jurat!I$1","v":0},{"$f":"Jurat!D$33","v":"00:00:00"},"Q4","2017-12-31","Region 6","Operating Revenue","Capitation","NH Rate Reconciliation",1.2,"NH Rate Reconciliation",{"$f":"IFERROR('LTC Rev-Exp Region 6'!$P$12/'LTC Rev-Exp Region 6'!$P$9, 0)","v":{"v":0,"d":"$0.00"}},{"$f":"IFERROR('LTC Rev-Exp Region 6'!$Q$12/'LTC Rev-Exp Region 6'!$Q$9, 0)","v":{"v":0,"d":"$0.00"}},{"$f":"IFERROR('LTC Rev-Exp Region 6'!$R$12/'LTC Rev-Exp Region 6'!$R$9, 0)","v":{"v":0,"d":"$0.00"}},{"$f":"IFERROR('LTC Rev-Exp Region 6'!$S$12/'LTC Rev-Exp Region 6'!$S$9, 0)","v":{"v":0,"d":"$0.00"}}]
["LTC",null,null,{"$f":"Jurat!I$1","v":0},{"$f":"Jurat!D$33","v":"00:00:00"},"Q4","2017-12-31","Region 6","Operating Revenue","Other Revenue","Other Revenue",1.3,"Other Revenue",{"$f":"IFERROR('LTC Rev-Exp Region 6'!$P$13/'LTC Rev-Exp Region 6'!$P$9, 0)","v":{"v":0,"d":"$0.00"}},{"$f":"IFERROR('LTC Rev-Exp Region 6'!$Q$13/'LTC Rev-Exp Region 6'!$Q$9, 0)","v":{"v":0,"d":"$0.00"}},{"$f":"IFERROR('LTC Rev-Exp Region 6'!$R$13/'LTC Rev-Exp Region 6'!$R$9, 0)","v":{"v":0,"d":"$0.00"}},{"$f":"IFERROR('LTC Rev-Exp Region 6'!$S$13/'LTC Rev-Exp Region 6'!$S$9, 0)","v":{"v":0,"d":"$0.00"}}]
["LTC",null,null,{"$f":"Jurat!I$1","v":0},{"$f":"Jurat!D$33","v":"00:00:00"},"Q4","2017-12-31","Region 6","Operating Expense","Medical Expense","NF & Hospice","2.3","Nursing Facility FFS (Medicaid)",{"$f":"IFERROR('LTC Rev-Exp Region 6'!$P$19/'LTC Rev-Exp Region 6'!$P$9, 0)","v":{"v":0,"d":"$0.00"}},{"$f":"IFERROR('LTC Rev-Exp Region 6'!$Q$19/'LTC Rev-Exp Region 6'!$Q$9, 0)","v":{"v":0,"d":"$0.00"}},{"$f":"IFERROR('LTC Rev-Exp Region 6'!$R$19/'LTC Rev-Exp Region 6'!$R$9, 0)","v":{"v":0,"d":"$0.00"}},{"$f":"IFERROR('LTC Rev-Exp Region 6'!$S$19/'LTC Rev-Exp Region 6'!$S$9, 0)","v":{"v":0,"d":"$0.00"}}]
["LTC",null,null,{"$f":"Jurat!I$1","v":0},{"$f":"Jurat!D$33","v":"00:00:00"},"Q4","2017-12-31","Region 6","Operating Expense","Medical Expense","NF & Hospice","2.4","Nursing Facility FFS (Crossover)",{"$f":"IFERROR('LTC Rev-Exp Region 6'!$P$20/'LTC Rev-Exp Region 6'!$P$9, 0)","v":{"v":0,"d":"$0.00"}},{"$f":"IFERROR('LTC Rev-Exp Region 6'!$Q$20/'LTC Rev-Exp Region 6'!$Q$9, 0)","v":{"v":0,"d":"$0.00"}},{"$f":"IFERROR('LTC Rev-Exp Region 6'!$R$20/'LTC Rev-Exp Region 6'!$R$9, 0)","v":{"v":0,"d":"$0.00"}},{"$f":"IFERROR('LTC Rev-Exp Region 6'!$S$20/'LTC Rev-Exp Region 6'!$S$9, 0)","v":{"v":0,"d":"$0.00"}}]
["LTC",null,null,{"$f":"Jurat!I$1","v":0},{"$f":"Jurat!D$33","v":"00:00:00"},"Q4","2017-12-31","Region 6","Operating Expense","Medical Expense","NF & Hospice","2.6","Hospice FFS",{"$f":"IFERROR('LTC Rev-Exp Region 6'!$P$22/'LTC Rev-Exp Region 6'!$P$9, 0)","v":{"v":0,"d":"$0.00"}},{"$f":"IFERROR('LTC Rev-Exp Region 6'!$Q$22/'LTC Rev-Exp Region 6'!$Q$9, 0)","v":{"v":0,"d":"$0.00"}},{"$f":"IFERROR('LTC Rev-Exp Region 6'!$R$22/'LTC Rev-Exp Region 6'!$R$9, 0)","v":{"v":0,"d":"$0.00"}},{"$f":"IFERROR('LTC Rev-Exp Region 6'!$S$22/'LTC Rev-Exp Region 6'!$S$9, 0)","v":{"v":0,"d":"$0.00"}}]
["LTC",null,null,{"$f":"Jurat!I$1","v":0},{"$f":"Jurat!D$33","v":"00:00:00"},"Q4","2017-12-31","Region 6","Operating Expense","Medical Expense","NF & Hospice","2.7","Ending IBNP for NF & Hospice",{"$f":"IFERROR('LTC Rev-Exp Region 6'!$P$23/'LTC Rev-Exp Region 6'!$P$9, 0)","v":{"v":0,"d":"$0.00"}},{"$f":"IFERROR('LTC Rev-Exp Region 6'!$Q$23/'LTC Rev-Exp Region 6'!$Q$9, 0)","v":{"v":0,"d":"$0.00"}},{"$f":"IFERROR('LTC Rev-Exp Region 6'!$R$23/'LTC Rev-Exp Region 6'!$R$9, 0)","v":{"v":0,"d":"$0.00"}},{"$f":"IFERROR('LTC Rev-Exp Region 6'!$S$23/'LTC Rev-Exp Region 6'!$S$9, 0)","v":{"v":0,"d":"$0.00"}}]
["LTC",null,null,{"$f":"Jurat!I$1","v":0},{"$f":"Jurat!D$33","v":"00:00:00"},"Q4","2017-12-31","Region 6","Operating Expense","Medical Expense","NF & Hospice","2.8","NF & Hospice Subcapitated",{"$f":"IFERROR('LTC Rev-Exp Region 6'!$P$24/'LTC Rev-Exp Region 6'!$P$9, 0)","v":{"v":0,"d":"$0.00"}},{"$f":"IFERROR('LTC Rev-Exp Region 6'!$Q$24/'LTC Rev-Exp Region 6'!$Q$9, 0)","v":{"v":0,"d":"$0.00"}},{"$f":"IFERROR('LTC Rev-Exp Region 6'!$R$24/'LTC Rev-Exp Region 6'!$R$9, 0)","v":{"v":0,"d":"$0.00"}},{"$f":"IFERROR('LTC Rev-Exp Region 6'!$S$24/'LTC Rev-Exp Region 6'!$S$9, 0)","v":{"v":0,"d":"$0.00"}}]
["LTC",null,null,{"$f":"Jurat!I$1","v":0},{"$f":"Jurat!D$33","v":"00:00:00"},"Q4","2017-12-31","Region 6","Operating Expense","Medical Expense","NF & Hospice","2.9","NF & Hospice Settlements",{"$f":"IFERROR('LTC Rev-Exp Region 6'!$P$25/'LTC Rev-Exp Region 6'!$P$9, 0)","v":{"v":0,"d":"$0.00"}},{"$f":"IFERROR('LTC Rev-Exp Region 6'!$Q$25/'LTC Rev-Exp Region 6'!$Q$9, 0)","v":{"v":0,"d":"$0.00"}},{"$f":"IFERROR('LTC Rev-Exp Region 6'!$R$25/'LTC Rev-Exp Region 6'!$R$9, 0)","v":{"v":0,"d":"$0.00"}},{"$f":"IFERROR('LTC Rev-Exp Region 6'!$S$25/'LTC Rev-Exp Region 6'!$S$9, 0)","v":{"v":0,"d":"$0.00"}}]
["LTC",null,null,{"$f":"Jurat!I$1","v":0},{"$f":"Jurat!D$33","v":"00:00:00"},"Q4","2017-12-31","Region 6","Operating Expense","Medical Expense","LTC Services","2.11","Assisted Living FFS",{"$f":"IFERROR('LTC Rev-Exp Region 6'!$P$27/'LTC Rev-Exp Region 6'!$P$9, 0)","v":{"v":0,"d":"$0.00"}},{"$f":"IFERROR('LTC Rev-Exp Region 6'!$Q$27/'LTC Rev-Exp Region 6'!$Q$9, 0)","v":{"v":0,"d":"$0.00"}},{"$f":"IFERROR('LTC Rev-Exp Region 6'!$R$27/'LTC Rev-Exp Region 6'!$R$9, 0)","v":{"v":0,"d":"$0.00"}},{"$f":"IFERROR('LTC Rev-Exp Region 6'!$S$27/'LTC Rev-Exp Region 6'!$S$9, 0)","v":{"v":0,"d":"$0.00"}}]
["LTC",null,null,{"$f":"Jurat!I$1","v":0},{"$f":"Jurat!D$33","v":"00:00:00"},"Q4","2017-12-31","Region 6","Operating Expense","Medical Expense","LTC Services","2.12","Home Health FFS",{"$f":"IFERROR('LTC Rev-Exp Region 6'!$P$28/'LTC Rev-Exp Region 6'!$P$9, 0)","v":{"v":0,"d":"$0.00"}},{"$f":"IFERROR('LTC Rev-Exp Region 6'!$Q$28/'LTC Rev-Exp Region 6'!$Q$9, 0)","v":{"v":0,"d":"$0.00"}},{"$f":"IFERROR('LTC Rev-Exp Region 6'!$R$28/'LTC Rev-Exp Region 6'!$R$9, 0)","v":{"v":0,"d":"$0.00"}},{"$f":"IFERROR('LTC Rev-Exp Region 6'!$S$28/'LTC Rev-Exp Region 6'!$S$9, 0)","v":{"v":0,"d":"$0.00"}}]
["LTC",null,null,{"$f":"Jurat!I$1","v":0},{"$f":"Jurat!D$33","v":"00:00:00"},"Q4","2017-12-31","Region 6","Operating Expense","Medical Expense","LTC Services","2.13","Medical Equipment/Supplies FFS",{"$f":"IFERROR('LTC Rev-Exp Region 6'!$P$29/'LTC Rev-Exp Region 6'!$P$9, 0)","v":{"v":0,"d":"$0.00"}},{"$f":"IFERROR('LTC Rev-Exp Region 6'!$Q$29/'LTC Rev-Exp Region 6'!$Q$9, 0)","v":{"v":0,"d":"$0.00"}},{"$f":"IFERROR('LTC Rev-Exp Region 6'!$R$29/'LTC Rev-Exp Region 6'!$R$9, 0)","v":{"v":0,"d":"$0.00"}},{"$f":"IFERROR('LTC Rev-Exp Region 6'!$S$29/'LTC Rev-Exp Region 6'!$S$9, 0)","v":{"v":0,"d":"$0.00"}}]
["LTC",null,null,{"$f":"Jurat!I$1","v":0},{"$f":"Jurat!D$33","v":"00:00:00"},"Q4","2017-12-31","Region 6","Operating Expense","Medical Expense","LTC Services","2.14","Therapy FFS",{"$f":"IFERROR('LTC Rev-Exp Region 6'!$P$30/'LTC Rev-Exp Region 6'!$P$9, 0)","v":{"v":0,"d":"$0.00"}},{"$f":"IFERROR('LTC Rev-Exp Region 6'!$Q$30/'LTC Rev-Exp Region 6'!$Q$9, 0)","v":{"v":0,"d":"$0.00"}},{"$f":"IFERROR('LTC Rev-Exp Region 6'!$R$30/'LTC Rev-Exp Region 6'!$R$9, 0)","v":{"v":0,"d":"$0.00"}},{"$f":"IFERROR('LTC Rev-Exp Region 6'!$S$30/'LTC Rev-Exp Region 6'!$S$9, 0)","v":{"v":0,"d":"$0.00"}}]
["LTC",null,null,{"$f":"Jurat!I$1","v":0},{"$f":"Jurat!D$33","v":"00:00:00"},"Q4","2017-12-31","Region 6","Operating Expense","Medical Expense","LTC Services","2.15","Transportation FFS",{"$f":"IFERROR('LTC Rev-Exp Region 6'!$P$31/'LTC Rev-Exp Region 6'!$P$9, 0)","v":{"v":0,"d":"$0.00"}},{"$f":"IFERROR('LTC Rev-Exp Region 6'!$Q$31/'LTC Rev-Exp Region 6'!$Q$9, 0)","v":{"v":0,"d":"$0.00"}},{"$f":"IFERROR('LTC Rev-Exp Region 6'!$R$31/'LTC Rev-Exp Region 6'!$R$9, 0)","v":{"v":0,"d":"$0.00"}},{"$f":"IFERROR('LTC Rev-Exp Region 6'!$S$31/'LTC Rev-Exp Region 6'!$S$9, 0)","v":{"v":0,"d":"$0.00"}}]
["LTC",null,null,{"$f":"Jurat!I$1","v":0},{"$f":"Jurat!D$33","v":"00:00:00"},"Q4","2017-12-31","Region 6","Operating Expense","Medical Expense","LTC Services","2.16","Case Management FFS (Plan Provided)",{"$f":"IFERROR('LTC Rev-Exp Region 6'!$P$32/'LTC Rev-Exp Region 6'!$P$9, 0)","v":{"v":0,"d":"$0.00"}},{"$f":"IFERROR('LTC Rev-Exp Region 6'!$Q$32/'LTC Rev-Exp Region 6'!$Q$9, 0)","v":{"v":0,"d":"$0.00"}},{"$f":"IFERROR('LTC Rev-Exp Region 6'!$R$32/'LTC Rev-Exp Region 6'!$R$9, 0)","v":{"v":0,"d":"$0.00"}},{"$f":"IFERROR('LTC Rev-Exp Region 6'!$S$32/'LTC Rev-Exp Region 6'!$S$9, 0)","v":{"v":0,"d":"$0.00"}}]
["LTC",null,null,{"$f":"Jurat!I$1","v":0},{"$f":"Jurat!D$33","v":"00:00:00"},"Q4","2017-12-31","Region 6","Operating Expense","Medical Expense","LTC Services","2.17","Case Management FF (Non-Plan Provided)",{"$f":"IFERROR('LTC Rev-Exp Region 6'!$P$33/'LTC Rev-Exp Region 6'!$P$9, 0)","v":{"v":0,"d":"$0.00"}},{"$f":"IFERROR('LTC Rev-Exp Region 6'!$Q$33/'LTC Rev-Exp Region 6'!$Q$9, 0)","v":{"v":0,"d":"$0.00"}},{"$f":"IFERROR('LTC Rev-Exp Region 6'!$R$33/'LTC Rev-Exp Region 6'!$R$9, 0)","v":{"v":0,"d":"$0.00"}},{"$f":"IFERROR('LTC Rev-Exp Region 6'!$S$33/'LTC Rev-Exp Region 6'!$S$9, 0)","v":{"v":0,"d":"$0.00"}}]
["LTC",null,null,{"$f":"Jurat!I$1","v":0},{"$f":"Jurat!D$33","v":"00:00:00"},"Q4","2017-12-31","Region 6","Operating Expense","Medical Expense","LTC Services","2.18","HCBS FFS",{"$f":"IFERROR('LTC Rev-Exp Region 6'!$P$34/'LTC Rev-Exp Region 6'!$P$9, 0)","v":{"v":0,"d":"$0.00"}},{"$f":"IFERROR('LTC Rev-Exp Region 6'!$Q$34/'LTC Rev-Exp Region 6'!$Q$9, 0)","v":{"v":0,"d":"$0.00"}},{"$f":"IFERROR('LTC Rev-Exp Region 6'!$R$34/'LTC Rev-Exp Region 6'!$R$9, 0)","v":{"v":0,"d":"$0.00"}},{"$f":"IFERROR('LTC Rev-Exp Region 6'!$S$34/'LTC Rev-Exp Region 6'!$S$9, 0)","v":{"v":0,"d":"$0.00"}}]
["LTC",null,null,{"$f":"Jurat!I$1","v":0},{"$f":"Jurat!D$33","v":"00:00:00"},"Q4","2017-12-31","Region 6","Operating Expense","Medical Expense","LTC Services","2.19","Subcapitated LTC Services",{"$f":"IFERROR('LTC Rev-Exp Region 6'!$P$35/'LTC Rev-Exp Region 6'!$P$9, 0)","v":{"v":0,"d":"$0.00"}},{"$f":"IFERROR('LTC Rev-Exp Region 6'!$Q$35/'LTC Rev-Exp Region 6'!$Q$9, 0)","v":{"v":0,"d":"$0.00"}},{"$f":"IFERROR('LTC Rev-Exp Region 6'!$R$35/'LTC Rev-Exp Region 6'!$R$9, 0)","v":{"v":0,"d":"$0.00"}},{"$f":"IFERROR('LTC Rev-Exp Region 6'!$S$35/'LTC Rev-Exp Region 6'!$S$9, 0)","v":{"v":0,"d":"$0.00"}}]
["LTC",null,null,{"$f":"Jurat!I$1","v":0},{"$f":"Jurat!D$33","v":"00:00:00"},"Q4","2017-12-31","Region 6","Operating Expense","Medical Expense","LTC Services","2.20","Ending IBNP for Long Term Care Services",{"$f":"IFERROR('LTC Rev-Exp Region 6'!$P$36/'LTC Rev-Exp Region 6'!$P$9, 0)","v":{"v":0,"d":"$0.00"}},{"$f":"IFERROR('LTC Rev-Exp Region 6'!$Q$36/'LTC Rev-Exp Region 6'!$Q$9, 0)","v":{"v":0,"d":"$0.00"}},{"$f":"IFERROR('LTC Rev-Exp Region 6'!$R$36/'LTC Rev-Exp Region 6'!$R$9, 0)","v":{"v":0,"d":"$0.00"}},{"$f":"IFERROR('LTC Rev-Exp Region 6'!$S$36/'LTC Rev-Exp Region 6'!$S$9, 0)","v":{"v":0,"d":"$0.00"}}]
["LTC",null,null,{"$f":"Jurat!I$1","v":0},{"$f":"Jurat!D$33","v":"00:00:00"},"Q4","2017-12-31","Region 6","Operating Expense","Medical Expense","LTC Services","2.21","LTC Services Settlements",{"$f":"IFERROR('LTC Rev-Exp Region 6'!$P$37/'LTC Rev-Exp Region 6'!$P$9, 0)","v":{"v":0,"d":"$0.00"}},{"$f":"IFERROR('LTC Rev-Exp Region 6'!$Q$37/'LTC Rev-Exp Region 6'!$Q$9, 0)","v":{"v":0,"d":"$0.00"}},{"$f":"IFERROR('LTC Rev-Exp Region 6'!$R$37/'LTC Rev-Exp Region 6'!$R$9, 0)","v":{"v":0,"d":"$0.00"}},{"$f":"IFERROR('LTC Rev-Exp Region 6'!$S$37/'LTC Rev-Exp Region 6'!$S$9, 0)","v":{"v":0,"d":"$0.00"}}]
["LTC",null,null,{"$f":"Jurat!I$1","v":0},{"$f":"Jurat!D$33","v":"00:00:00"},"Q4","2017-12-31","Region 6","Operating Expense","Medical Expense","Expanded Benefits","3.1","Expanded Benefits FFS",{"$f":"IFERROR('LTC Rev-Exp Region 6'!$P$39/'LTC Rev-Exp Region 6'!$P$9, 0)","v":{"v":0,"d":"$0.00"}},{"$f":"IFERROR('LTC Rev-Exp Region 6'!$Q$39/'LTC Rev-Exp Region 6'!$Q$9, 0)","v":{"v":0,"d":"$0.00"}},{"$f":"IFERROR('LTC Rev-Exp Region 6'!$R$39/'LTC Rev-Exp Region 6'!$R$9, 0)","v":{"v":0,"d":"$0.00"}},{"$f":"IFERROR('LTC Rev-Exp Region 6'!$S$39/'LTC Rev-Exp Region 6'!$S$9, 0)","v":{"v":0,"d":"$0.00"}}]
["LTC",null,null,{"$f":"Jurat!I$1","v":0},{"$f":"Jurat!D$33","v":"00:00:00"},"Q4","2017-12-31","Region 6","Operating Expense","Medical Expense","Expanded Benefits","3.2","Expanded Benefits Subcapitation",{"$f":"IFERROR('LTC Rev-Exp Region 6'!$P$40/'LTC Rev-Exp Region 6'!$P$9, 0)","v":{"v":0,"d":"$0.00"}},{"$f":"IFERROR('LTC Rev-Exp Region 6'!$Q$40/'LTC Rev-Exp Region 6'!$Q$9, 0)","v":{"v":0,"d":"$0.00"}},{"$f":"IFERROR('LTC Rev-Exp Region 6'!$R$40/'LTC Rev-Exp Region 6'!$R$9, 0)","v":{"v":0,"d":"$0.00"}},{"$f":"IFERROR('LTC Rev-Exp Region 6'!$S$40/'LTC Rev-Exp Region 6'!$S$9, 0)","v":{"v":0,"d":"$0.00"}}]
["LTC",null,null,{"$f":"Jurat!I$1","v":0},{"$f":"Jurat!D$33","v":"00:00:00"},"Q4","2017-12-31","Region 6","Operating Expense","Medical Expense","Expanded Benefits","3.3","Ending IBNP for Expanded Benefits",{"$f":"IFERROR('LTC Rev-Exp Region 6'!$P$41/'LTC Rev-Exp Region 6'!$P$9, 0)","v":{"v":0,"d":"$0.00"}},{"$f":"IFERROR('LTC Rev-Exp Region 6'!$Q$41/'LTC Rev-Exp Region 6'!$Q$9, 0)","v":{"v":0,"d":"$0.00"}},{"$f":"IFERROR('LTC Rev-Exp Region 6'!$R$41/'LTC Rev-Exp Region 6'!$R$9, 0)","v":{"v":0,"d":"$0.00"}},{"$f":"IFERROR('LTC Rev-Exp Region 6'!$S$41/'LTC Rev-Exp Region 6'!$S$9, 0)","v":{"v":0,"d":"$0.00"}}]
["LTC",null,null,{"$f":"Jurat!I$1","v":0},{"$f":"Jurat!D$33","v":"00:00:00"},"Q4","2017-12-31","Region 6","Operating Expense","Medical Expense","Expanded Benefits","3.4","Expanded Benefits Settlements",{"$f":"IFERROR('LTC Rev-Exp Region 6'!$P$42/'LTC Rev-Exp Region 6'!$P$9, 0)","v":{"v":0,"d":"$0.00"}},{"$f":"IFERROR('LTC Rev-Exp Region 6'!$Q$42/'LTC Rev-Exp Region 6'!$Q$9, 0)","v":{"v":0,"d":"$0.00"}},{"$f":"IFERROR('LTC Rev-Exp Region 6'!$R$42/'LTC Rev-Exp Region 6'!$R$9, 0)","v":{"v":0,"d":"$0.00"}},{"$f":"IFERROR('LTC Rev-Exp Region 6'!$S$42/'LTC Rev-Exp Region 6'!$S$9, 0)","v":{"v":0,"d":"$0.00"}}]
["LTC",null,null,{"$f":"Jurat!I$1","v":0},{"$f":"Jurat!D$33","v":"00:00:00"},"Q4","2017-12-31","Region 6","Operating Expense","Medical Expense","Other Medical","4.5","TPL & Fraud/Abuse Recoveries",{"$f":"IFERROR('LTC Rev-Exp Region 6'!$P$48/'LTC Rev-Exp Region 6'!$P$9, 0)","v":{"v":0,"d":"$0.00"}},{"$f":"IFERROR('LTC Rev-Exp Region 6'!$Q$48/'LTC Rev-Exp Region 6'!$Q$9, 0)","v":{"v":0,"d":"$0.00"}},{"$f":"IFERROR('LTC Rev-Exp Region 6'!$R$48/'LTC Rev-Exp Region 6'!$R$9, 0)","v":{"v":0,"d":"$0.00"}},{"$f":"IFERROR('LTC Rev-Exp Region 6'!$S$48/'LTC Rev-Exp Region 6'!$S$9, 0)","v":{"v":0,"d":"$0.00"}}]
["LTC",null,null,{"$f":"Jurat!I$1","v":0},{"$f":"Jurat!D$33","v":"00:00:00"},"Q4","2017-12-31","Region 6","Operating Expense","Medical Expense","Other Medical","4.6.1","Premium Deficiency Reserve",{"$f":"IFERROR('LTC Rev-Exp Region 6'!$P$49/'LTC Rev-Exp Region 6'!$P$9, 0)","v":{"v":0,"d":"$0.00"}},{"$f":"IFERROR('LTC Rev-Exp Region 6'!$Q$49/'LTC Rev-Exp Region 6'!$Q$9, 0)","v":{"v":0,"d":"$0.00"}},{"$f":"IFERROR('LTC Rev-Exp Region 6'!$R$49/'LTC Rev-Exp Region 6'!$R$9, 0)","v":{"v":0,"d":"$0.00"}},{"$f":"IFERROR('LTC Rev-Exp Region 6'!$S$49/'LTC Rev-Exp Region 6'!$S$9, 0)","v":{"v":0,"d":"$0.00"}}]
["LTC",null,null,{"$f":"Jurat!I$1","v":0},{"$f":"Jurat!D$33","v":"00:00:00"},"Q4","2017-12-31","Region 6","Operating Expense","Medical Expense","Other Medical","4.8","Reinsurance Premiums",{"$f":"IFERROR('LTC Rev-Exp Region 6'!$P$51/'LTC Rev-Exp Region 6'!$P$9, 0)","v":{"v":0,"d":"$0.00"}},{"$f":"IFERROR('LTC Rev-Exp Region 6'!$Q$51/'LTC Rev-Exp Region 6'!$Q$9, 0)","v":{"v":0,"d":"$0.00"}},{"$f":"IFERROR('LTC Rev-Exp Region 6'!$R$51/'LTC Rev-Exp Region 6'!$R$9, 0)","v":{"v":0,"d":"$0.00"}},{"$f":"IFERROR('LTC Rev-Exp Region 6'!$S$51/'LTC Rev-Exp Region 6'!$S$9, 0)","v":{"v":0,"d":"$0.00"}}]
["LTC",null,null,{"$f":"Jurat!I$1","v":0},{"$f":"Jurat!D$33","v":"00:00:00"},"Q4","2017-12-31","Region 6","Operating Expense","Medical Expense","Other Medical","4.9","Reinsurance Recoveries",{"$f":"IFERROR('LTC Rev-Exp Region 6'!$P$52/'LTC Rev-Exp Region 6'!$P$9, 0)","v":{"v":0,"d":"$0.00"}},{"$f":"IFERROR('LTC Rev-Exp Region 6'!$Q$52/'LTC Rev-Exp Region 6'!$Q$9, 0)","v":{"v":0,"d":"$0.00"}},{"$f":"IFERROR('LTC Rev-Exp Region 6'!$R$52/'LTC Rev-Exp Region 6'!$R$9, 0)","v":{"v":0,"d":"$0.00"}},{"$f":"IFERROR('LTC Rev-Exp Region 6'!$S$52/'LTC Rev-Exp Region 6'!$S$9, 0)","v":{"v":0,"d":"$0.00"}}]
["LTC",null,null,{"$f":"Jurat!I$1","v":0},{"$f":"Jurat!D$33","v":"00:00:00"},"Q4","2017-12-31","Region 6","Operating Expense","Administrative Expense","Administrative","5.1","Salaries & Benefits",{"$f":"IFERROR('LTC Rev-Exp Region 6'!$P$57/'LTC Rev-Exp Region 6'!$P$9, 0)","v":{"v":0,"d":"$0.00"}},{"$f":"IFERROR('LTC Rev-Exp Region 6'!$Q$57/'LTC Rev-Exp Region 6'!$Q$9, 0)","v":{"v":0,"d":"$0.00"}},{"$f":"IFERROR('LTC Rev-Exp Region 6'!$R$57/'LTC Rev-Exp Region 6'!$R$9, 0)","v":{"v":0,"d":"$0.00"}},{"$f":"IFERROR('LTC Rev-Exp Region 6'!$S$57/'LTC Rev-Exp Region 6'!$S$9, 0)","v":{"v":0,"d":"$0.00"}}]
["LTC",null,null,{"$f":"Jurat!I$1","v":0},{"$f":"Jurat!D$33","v":"00:00:00"},"Q4","2017-12-31","Region 6","Operating Expense","Administrative Expense","Administrative","5.2","Administrative Services",{"$f":"IFERROR('LTC Rev-Exp Region 6'!$P$58/'LTC Rev-Exp Region 6'!$P$9, 0)","v":{"v":0,"d":"$0.00"}},{"$f":"IFERROR('LTC Rev-Exp Region 6'!$Q$58/'LTC Rev-Exp Region 6'!$Q$9, 0)","v":{"v":0,"d":"$0.00"}},{"$f":"IFERROR('LTC Rev-Exp Region 6'!$R$58/'LTC Rev-Exp Region 6'!$R$9, 0)","v":{"v":0,"d":"$0.00"}},{"$f":"IFERROR('LTC Rev-Exp Region 6'!$S$58/'LTC Rev-Exp Region 6'!$S$9, 0)","v":{"v":0,"d":"$0.00"}}]
["LTC",null,null,{"$f":"Jurat!I$1","v":0},{"$f":"Jurat!D$33","v":"00:00:00"},"Q4","2017-12-31","Region 6","Operating Expense","Administrative Expense","Administrative","5.3","Information Systems",{"$f":"IFERROR('LTC Rev-Exp Region 6'!$P$59/'LTC Rev-Exp Region 6'!$P$9, 0)","v":{"v":0,"d":"$0.00"}},{"$f":"IFERROR('LTC Rev-Exp Region 6'!$Q$59/'LTC Rev-Exp Region 6'!$Q$9, 0)","v":{"v":0,"d":"$0.00"}},{"$f":"IFERROR('LTC Rev-Exp Region 6'!$R$59/'LTC Rev-Exp Region 6'!$R$9, 0)","v":{"v":0,"d":"$0.00"}},{"$f":"IFERROR('LTC Rev-Exp Region 6'!$S$59/'LTC Rev-Exp Region 6'!$S$9, 0)","v":{"v":0,"d":"$0.00"}}]
["LTC",null,null,{"$f":"Jurat!I$1","v":0},{"$f":"Jurat!D$33","v":"00:00:00"},"Q4","2017-12-31","Region 6","Operating Expense","Administrative Expense","Administrative","5.4","Marketing Expenses",{"$f":"IFERROR('LTC Rev-Exp Region 6'!$P$60/'LTC Rev-Exp Region 6'!$P$9, 0)","v":{"v":0,"d":"$0.00"}},{"$f":"IFERROR('LTC Rev-Exp Region 6'!$Q$60/'LTC Rev-Exp Region 6'!$Q$9, 0)","v":{"v":0,"d":"$0.00"}},{"$f":"IFERROR('LTC Rev-Exp Region 6'!$R$60/'LTC Rev-Exp Region 6'!$R$9, 0)","v":{"v":0,"d":"$0.00"}},{"$f":"IFERROR('LTC Rev-Exp Region 6'!$S$60/'LTC Rev-Exp Region 6'!$S$9, 0)","v":{"v":0,"d":"$0.00"}}]
["LTC",null,null,{"$f":"Jurat!I$1","v":0},{"$f":"Jurat!D$33","v":"00:00:00"},"Q4","2017-12-31","Region 6","Operating Expense","Administrative Expense","Administrative","5.5","General  Administration",{"$f":"IFERROR('LTC Rev-Exp Region 6'!$P$61/'LTC Rev-Exp Region 6'!$P$9, 0)","v":{"v":0,"d":"$0.00"}},{"$f":"IFERROR('LTC Rev-Exp Region 6'!$Q$61/'LTC Rev-Exp Region 6'!$Q$9, 0)","v":{"v":0,"d":"$0.00"}},{"$f":"IFERROR('LTC Rev-Exp Region 6'!$R$61/'LTC Rev-Exp Region 6'!$R$9, 0)","v":{"v":0,"d":"$0.00"}},{"$f":"IFERROR('LTC Rev-Exp Region 6'!$S$61/'LTC Rev-Exp Region 6'!$S$9, 0)","v":{"v":0,"d":"$0.00"}}]
["LTC",null,null,{"$f":"Jurat!I$1","v":0},{"$f":"Jurat!D$33","v":"00:00:00"},"Q4","2017-12-31","Region 6","Operating Expense","Administrative Expense","Administrative","5.6","Compliance/Regulatory",{"$f":"IFERROR('LTC Rev-Exp Region 6'!$P$62/'LTC Rev-Exp Region 6'!$P$9, 0)","v":{"v":0,"d":"$0.00"}},{"$f":"IFERROR('LTC Rev-Exp Region 6'!$Q$62/'LTC Rev-Exp Region 6'!$Q$9, 0)","v":{"v":0,"d":"$0.00"}},{"$f":"IFERROR('LTC Rev-Exp Region 6'!$R$62/'LTC Rev-Exp Region 6'!$R$9, 0)","v":{"v":0,"d":"$0.00"}},{"$f":"IFERROR('LTC Rev-Exp Region 6'!$S$62/'LTC Rev-Exp Region 6'!$S$9, 0)","v":{"v":0,"d":"$0.00"}}]
["LTC",null,null,{"$f":"Jurat!I$1","v":0},{"$f":"Jurat!D$33","v":"00:00:00"},"Q4","2017-12-31","Region 6","Operating Expense","Taxes & Fees","Taxes & Fees","6.1","State Premium Tax",{"$f":"IFERROR('LTC Rev-Exp Region 6'!$P$64/'LTC Rev-Exp Region 6'!$P$9, 0)","v":{"v":0,"d":"$0.00"}},{"$f":"IFERROR('LTC Rev-Exp Region 6'!$Q$64/'LTC Rev-Exp Region 6'!$Q$9, 0)","v":{"v":0,"d":"$0.00"}},{"$f":"IFERROR('LTC Rev-Exp Region 6'!$R$64/'LTC Rev-Exp Region 6'!$R$9, 0)","v":{"v":0,"d":"$0.00"}},{"$f":"IFERROR('LTC Rev-Exp Region 6'!$S$64/'LTC Rev-Exp Region 6'!$S$9, 0)","v":{"v":0,"d":"$0.00"}}]
["LTC",null,null,{"$f":"Jurat!I$1","v":0},{"$f":"Jurat!D$33","v":"00:00:00"},"Q4","2017-12-31","Region 6","Operating Expense","Taxes & Fees","Taxes & Fees","6.2","Department of Insurance Assessments",{"$f":"IFERROR('LTC Rev-Exp Region 6'!$P$65/'LTC Rev-Exp Region 6'!$P$9, 0)","v":{"v":0,"d":"$0.00"}},{"$f":"IFERROR('LTC Rev-Exp Region 6'!$Q$65/'LTC Rev-Exp Region 6'!$Q$9, 0)","v":{"v":0,"d":"$0.00"}},{"$f":"IFERROR('LTC Rev-Exp Region 6'!$R$65/'LTC Rev-Exp Region 6'!$R$9, 0)","v":{"v":0,"d":"$0.00"}},{"$f":"IFERROR('LTC Rev-Exp Region 6'!$S$65/'LTC Rev-Exp Region 6'!$S$9, 0)","v":{"v":0,"d":"$0.00"}}]
["LTC",null,null,{"$f":"Jurat!I$1","v":0},{"$f":"Jurat!D$33","v":"00:00:00"},"Q4","2017-12-31","Region 6","Non-Operating Expense","Income Tax Expense","Income Tax Expense","9.0","Income Tax Expense",{"$f":"IFERROR('LTC Rev-Exp Region 6'!$P$72/'LTC Rev-Exp Region 6'!$P$9, 0)","v":{"v":0,"d":"$0.00"}},{"$f":"IFERROR('LTC Rev-Exp Region 6'!$Q$72/'LTC Rev-Exp Region 6'!$Q$9, 0)","v":{"v":0,"d":"$0.00"}},{"$f":"IFERROR('LTC Rev-Exp Region 6'!$R$72/'LTC Rev-Exp Region 6'!$R$9, 0)","v":{"v":0,"d":"$0.00"}},{"$f":"IFERROR('LTC Rev-Exp Region 6'!$S$72/'LTC Rev-Exp Region 6'!$S$9, 0)","v":{"v":0,"d":"$0.00"}}]
["LTC",null,null,{"$f":"Jurat!I$1","v":0},{"$f":"Jurat!D$33","v":"00:00:00"},"Q1","2017-03-31","Region 7","Operating Revenue","Capitation","Capitation",1.1,"Capitation",{"$f":"IFERROR('LTC Rev-Exp Region 7'!$D$11/'LTC Rev-Exp Region 7'!$D$9, 0)","v":{"v":0,"d":"$0.00"}},{"$f":"IFERROR('LTC Rev-Exp Region 7'!$E$11/'LTC Rev-Exp Region 7'!$E$9, 0)","v":{"v":0,"d":"$0.00"}},{"$f":"IFERROR('LTC Rev-Exp Region 7'!$F$11/'LTC Rev-Exp Region 7'!$F$9, 0)","v":{"v":0,"d":"$0.00"}},{"$f":"IFERROR('LTC Rev-Exp Region 7'!$G$11/'LTC Rev-Exp Region 7'!$G$9, 0)","v":{"v":0,"d":"$0.00"}}]
["LTC",null,null,{"$f":"Jurat!I$1","v":0},{"$f":"Jurat!D$33","v":"00:00:00"},"Q1","2017-03-31","Region 7","Operating Revenue","Capitation","NH Rate Reconciliation",1.2,"NH Rate Reconciliation",{"$f":"IFERROR('LTC Rev-Exp Region 7'!$D$12/'LTC Rev-Exp Region 7'!$D$9, 0)","v":{"v":0,"d":"$0.00"}},{"$f":"IFERROR('LTC Rev-Exp Region 7'!$E$12/'LTC Rev-Exp Region 7'!$E$9, 0)","v":{"v":0,"d":"$0.00"}},{"$f":"IFERROR('LTC Rev-Exp Region 7'!$F$12/'LTC Rev-Exp Region 7'!$F$9, 0)","v":{"v":0,"d":"$0.00"}},{"$f":"IFERROR('LTC Rev-Exp Region 7'!$G$12/'LTC Rev-Exp Region 7'!$G$9, 0)","v":{"v":0,"d":"$0.00"}}]
["LTC",null,null,{"$f":"Jurat!I$1","v":0},{"$f":"Jurat!D$33","v":"00:00:00"},"Q1","2017-03-31","Region 7","Operating Revenue","Other Revenue","Other Revenue",1.3,"Other Revenue",{"$f":"IFERROR('LTC Rev-Exp Region 7'!$D$13/'LTC Rev-Exp Region 7'!$D$9, 0)","v":{"v":0,"d":"$0.00"}},{"$f":"IFERROR('LTC Rev-Exp Region 7'!$E$13/'LTC Rev-Exp Region 7'!$E$9, 0)","v":{"v":0,"d":"$0.00"}},{"$f":"IFERROR('LTC Rev-Exp Region 7'!$F$13/'LTC Rev-Exp Region 7'!$F$9, 0)","v":{"v":0,"d":"$0.00"}},{"$f":"IFERROR('LTC Rev-Exp Region 7'!$G$13/'LTC Rev-Exp Region 7'!$G$9, 0)","v":{"v":0,"d":"$0.00"}}]
["LTC",null,null,{"$f":"Jurat!I$1","v":0},{"$f":"Jurat!D$33","v":"00:00:00"},"Q1","2017-03-31","Region 7","Operating Expense","Medical Expense","NF & Hospice","2.3","Nursing Facility FFS (Medicaid)",{"$f":"IFERROR('LTC Rev-Exp Region 7'!$D$19/'LTC Rev-Exp Region 7'!$D$9, 0)","v":{"v":0,"d":"$0.00"}},{"$f":"IFERROR('LTC Rev-Exp Region 7'!$E$19/'LTC Rev-Exp Region 7'!$E$9, 0)","v":{"v":0,"d":"$0.00"}},{"$f":"IFERROR('LTC Rev-Exp Region 7'!$F$19/'LTC Rev-Exp Region 7'!$F$9, 0)","v":{"v":0,"d":"$0.00"}},{"$f":"IFERROR('LTC Rev-Exp Region 7'!$G$19/'LTC Rev-Exp Region 7'!$G$9, 0)","v":{"v":0,"d":"$0.00"}}]
["LTC",null,null,{"$f":"Jurat!I$1","v":0},{"$f":"Jurat!D$33","v":"00:00:00"},"Q1","2017-03-31","Region 7","Operating Expense","Medical Expense","NF & Hospice","2.4","Nursing Facility FFS (Crossover)",{"$f":"IFERROR('LTC Rev-Exp Region 7'!$D$20/'LTC Rev-Exp Region 7'!$D$9, 0)","v":{"v":0,"d":"$0.00"}},{"$f":"IFERROR('LTC Rev-Exp Region 7'!$E$20/'LTC Rev-Exp Region 7'!$E$9, 0)","v":{"v":0,"d":"$0.00"}},{"$f":"IFERROR('LTC Rev-Exp Region 7'!$F$20/'LTC Rev-Exp Region 7'!$F$9, 0)","v":{"v":0,"d":"$0.00"}},{"$f":"IFERROR('LTC Rev-Exp Region 7'!$G$20/'LTC Rev-Exp Region 7'!$G$9, 0)","v":{"v":0,"d":"$0.00"}}]
["LTC",null,null,{"$f":"Jurat!I$1","v":0},{"$f":"Jurat!D$33","v":"00:00:00"},"Q1","2017-03-31","Region 7","Operating Expense","Medical Expense","NF & Hospice","2.6","Hospice FFS",{"$f":"IFERROR('LTC Rev-Exp Region 7'!$D$22/'LTC Rev-Exp Region 7'!$D$9, 0)","v":{"v":0,"d":"$0.00"}},{"$f":"IFERROR('LTC Rev-Exp Region 7'!$E$22/'LTC Rev-Exp Region 7'!$E$9, 0)","v":{"v":0,"d":"$0.00"}},{"$f":"IFERROR('LTC Rev-Exp Region 7'!$F$22/'LTC Rev-Exp Region 7'!$F$9, 0)","v":{"v":0,"d":"$0.00"}},{"$f":"IFERROR('LTC Rev-Exp Region 7'!$G$22/'LTC Rev-Exp Region 7'!$G$9, 0)","v":{"v":0,"d":"$0.00"}}]
["LTC",null,null,{"$f":"Jurat!I$1","v":0},{"$f":"Jurat!D$33","v":"00:00:00"},"Q1","2017-03-31","Region 7","Operating Expense","Medical Expense","NF & Hospice","2.7","Ending IBNP for NF & Hospice",{"$f":"IFERROR('LTC Rev-Exp Region 7'!$D$23/'LTC Rev-Exp Region 7'!$D$9, 0)","v":{"v":0,"d":"$0.00"}},{"$f":"IFERROR('LTC Rev-Exp Region 7'!$E$23/'LTC Rev-Exp Region 7'!$E$9, 0)","v":{"v":0,"d":"$0.00"}},{"$f":"IFERROR('LTC Rev-Exp Region 7'!$F$23/'LTC Rev-Exp Region 7'!$F$9, 0)","v":{"v":0,"d":"$0.00"}},{"$f":"IFERROR('LTC Rev-Exp Region 7'!$G$23/'LTC Rev-Exp Region 7'!$G$9, 0)","v":{"v":0,"d":"$0.00"}}]
["LTC",null,null,{"$f":"Jurat!I$1","v":0},{"$f":"Jurat!D$33","v":"00:00:00"},"Q1","2017-03-31","Region 7","Operating Expense","Medical Expense","NF & Hospice","2.8","NF & Hospice Subcapitated",{"$f":"IFERROR('LTC Rev-Exp Region 7'!$D$24/'LTC Rev-Exp Region 7'!$D$9, 0)","v":{"v":0,"d":"$0.00"}},{"$f":"IFERROR('LTC Rev-Exp Region 7'!$E$24/'LTC Rev-Exp Region 7'!$E$9, 0)","v":{"v":0,"d":"$0.00"}},{"$f":"IFERROR('LTC Rev-Exp Region 7'!$F$24/'LTC Rev-Exp Region 7'!$F$9, 0)","v":{"v":0,"d":"$0.00"}},{"$f":"IFERROR('LTC Rev-Exp Region 7'!$G$24/'LTC Rev-Exp Region 7'!$G$9, 0)","v":{"v":0,"d":"$0.00"}}]
["LTC",null,null,{"$f":"Jurat!I$1","v":0},{"$f":"Jurat!D$33","v":"00:00:00"},"Q1","2017-03-31","Region 7","Operating Expense","Medical Expense","NF & Hospice","2.9","NF & Hospice Settlements",{"$f":"IFERROR('LTC Rev-Exp Region 7'!$D$25/'LTC Rev-Exp Region 7'!$D$9, 0)","v":{"v":0,"d":"$0.00"}},{"$f":"IFERROR('LTC Rev-Exp Region 7'!$E$25/'LTC Rev-Exp Region 7'!$E$9, 0)","v":{"v":0,"d":"$0.00"}},{"$f":"IFERROR('LTC Rev-Exp Region 7'!$F$25/'LTC Rev-Exp Region 7'!$F$9, 0)","v":{"v":0,"d":"$0.00"}},{"$f":"IFERROR('LTC Rev-Exp Region 7'!$G$25/'LTC Rev-Exp Region 7'!$G$9, 0)","v":{"v":0,"d":"$0.00"}}]
["LTC",null,null,{"$f":"Jurat!I$1","v":0},{"$f":"Jurat!D$33","v":"00:00:00"},"Q1","2017-03-31","Region 7","Operating Expense","Medical Expense","LTC Services","2.11","Assisted Living FFS",{"$f":"IFERROR('LTC Rev-Exp Region 7'!$D$27/'LTC Rev-Exp Region 7'!$D$9, 0)","v":{"v":0,"d":"$0.00"}},{"$f":"IFERROR('LTC Rev-Exp Region 7'!$E$27/'LTC Rev-Exp Region 7'!$E$9, 0)","v":{"v":0,"d":"$0.00"}},{"$f":"IFERROR('LTC Rev-Exp Region 7'!$F$27/'LTC Rev-Exp Region 7'!$F$9, 0)","v":{"v":0,"d":"$0.00"}},{"$f":"IFERROR('LTC Rev-Exp Region 7'!$G$27/'LTC Rev-Exp Region 7'!$G$9, 0)","v":{"v":0,"d":"$0.00"}}]
["LTC",null,null,{"$f":"Jurat!I$1","v":0},{"$f":"Jurat!D$33","v":"00:00:00"},"Q1","2017-03-31","Region 7","Operating Expense","Medical Expense","LTC Services","2.12","Home Health FFS",{"$f":"IFERROR('LTC Rev-Exp Region 7'!$D$28/'LTC Rev-Exp Region 7'!$D$9, 0)","v":{"v":0,"d":"$0.00"}},{"$f":"IFERROR('LTC Rev-Exp Region 7'!$E$28/'LTC Rev-Exp Region 7'!$E$9, 0)","v":{"v":0,"d":"$0.00"}},{"$f":"IFERROR('LTC Rev-Exp Region 7'!$F$28/'LTC Rev-Exp Region 7'!$F$9, 0)","v":{"v":0,"d":"$0.00"}},{"$f":"IFERROR('LTC Rev-Exp Region 7'!$G$28/'LTC Rev-Exp Region 7'!$G$9, 0)","v":{"v":0,"d":"$0.00"}}]
["LTC",null,null,{"$f":"Jurat!I$1","v":0},{"$f":"Jurat!D$33","v":"00:00:00"},"Q1","2017-03-31","Region 7","Operating Expense","Medical Expense","LTC Services","2.13","Medical Equipment/Supplies FFS",{"$f":"IFERROR('LTC Rev-Exp Region 7'!$D$29/'LTC Rev-Exp Region 7'!$D$9, 0)","v":{"v":0,"d":"$0.00"}},{"$f":"IFERROR('LTC Rev-Exp Region 7'!$E$29/'LTC Rev-Exp Region 7'!$E$9, 0)","v":{"v":0,"d":"$0.00"}},{"$f":"IFERROR('LTC Rev-Exp Region 7'!$F$29/'LTC Rev-Exp Region 7'!$F$9, 0)","v":{"v":0,"d":"$0.00"}},{"$f":"IFERROR('LTC Rev-Exp Region 7'!$G$29/'LTC Rev-Exp Region 7'!$G$9, 0)","v":{"v":0,"d":"$0.00"}}]
["LTC",null,null,{"$f":"Jurat!I$1","v":0},{"$f":"Jurat!D$33","v":"00:00:00"},"Q1","2017-03-31","Region 7","Operating Expense","Medical Expense","LTC Services","2.14","Therapy FFS",{"$f":"IFERROR('LTC Rev-Exp Region 7'!$D$30/'LTC Rev-Exp Region 7'!$D$9, 0)","v":{"v":0,"d":"$0.00"}},{"$f":"IFERROR('LTC Rev-Exp Region 7'!$E$30/'LTC Rev-Exp Region 7'!$E$9, 0)","v":{"v":0,"d":"$0.00"}},{"$f":"IFERROR('LTC Rev-Exp Region 7'!$F$30/'LTC Rev-Exp Region 7'!$F$9, 0)","v":{"v":0,"d":"$0.00"}},{"$f":"IFERROR('LTC Rev-Exp Region 7'!$G$30/'LTC Rev-Exp Region 7'!$G$9, 0)","v":{"v":0,"d":"$0.00"}}]
["LTC",null,null,{"$f":"Jurat!I$1","v":0},{"$f":"Jurat!D$33","v":"00:00:00"},"Q1","2017-03-31","Region 7","Operating Expense","Medical Expense","LTC Services","2.15","Transportation FFS",{"$f":"IFERROR('LTC Rev-Exp Region 7'!$D$31/'LTC Rev-Exp Region 7'!$D$9, 0)","v":{"v":0,"d":"$0.00"}},{"$f":"IFERROR('LTC Rev-Exp Region 7'!$E$31/'LTC Rev-Exp Region 7'!$E$9, 0)","v":{"v":0,"d":"$0.00"}},{"$f":"IFERROR('LTC Rev-Exp Region 7'!$F$31/'LTC Rev-Exp Region 7'!$F$9, 0)","v":{"v":0,"d":"$0.00"}},{"$f":"IFERROR('LTC Rev-Exp Region 7'!$G$31/'LTC Rev-Exp Region 7'!$G$9, 0)","v":{"v":0,"d":"$0.00"}}]
["LTC",null,null,{"$f":"Jurat!I$1","v":0},{"$f":"Jurat!D$33","v":"00:00:00"},"Q1","2017-03-31","Region 7","Operating Expense","Medical Expense","LTC Services","2.16","Case Management FFS (Plan Provided)",{"$f":"IFERROR('LTC Rev-Exp Region 7'!$D$32/'LTC Rev-Exp Region 7'!$D$9, 0)","v":{"v":0,"d":"$0.00"}},{"$f":"IFERROR('LTC Rev-Exp Region 7'!$E$32/'LTC Rev-Exp Region 7'!$E$9, 0)","v":{"v":0,"d":"$0.00"}},{"$f":"IFERROR('LTC Rev-Exp Region 7'!$F$32/'LTC Rev-Exp Region 7'!$F$9, 0)","v":{"v":0,"d":"$0.00"}},{"$f":"IFERROR('LTC Rev-Exp Region 7'!$G$32/'LTC Rev-Exp Region 7'!$G$9, 0)","v":{"v":0,"d":"$0.00"}}]
["LTC",null,null,{"$f":"Jurat!I$1","v":0},{"$f":"Jurat!D$33","v":"00:00:00"},"Q1","2017-03-31","Region 7","Operating Expense","Medical Expense","LTC Services","2.17","Case Management FF (Non-Plan Provided)",{"$f":"IFERROR('LTC Rev-Exp Region 7'!$D$33/'LTC Rev-Exp Region 7'!$D$9, 0)","v":{"v":0,"d":"$0.00"}},{"$f":"IFERROR('LTC Rev-Exp Region 7'!$E$33/'LTC Rev-Exp Region 7'!$E$9, 0)","v":{"v":0,"d":"$0.00"}},{"$f":"IFERROR('LTC Rev-Exp Region 7'!$F$33/'LTC Rev-Exp Region 7'!$F$9, 0)","v":{"v":0,"d":"$0.00"}},{"$f":"IFERROR('LTC Rev-Exp Region 7'!$G$33/'LTC Rev-Exp Region 7'!$G$9, 0)","v":{"v":0,"d":"$0.00"}}]
["LTC",null,null,{"$f":"Jurat!I$1","v":0},{"$f":"Jurat!D$33","v":"00:00:00"},"Q1","2017-03-31","Region 7","Operating Expense","Medical Expense","LTC Services","2.18","HCBS FFS",{"$f":"IFERROR('LTC Rev-Exp Region 7'!$D$34/'LTC Rev-Exp Region 7'!$D$9, 0)","v":{"v":0,"d":"$0.00"}},{"$f":"IFERROR('LTC Rev-Exp Region 7'!$E$34/'LTC Rev-Exp Region 7'!$E$9, 0)","v":{"v":0,"d":"$0.00"}},{"$f":"IFERROR('LTC Rev-Exp Region 7'!$F$34/'LTC Rev-Exp Region 7'!$F$9, 0)","v":{"v":0,"d":"$0.00"}},{"$f":"IFERROR('LTC Rev-Exp Region 7'!$G$34/'LTC Rev-Exp Region 7'!$G$9, 0)","v":{"v":0,"d":"$0.00"}}]
["LTC",null,null,{"$f":"Jurat!I$1","v":0},{"$f":"Jurat!D$33","v":"00:00:00"},"Q1","2017-03-31","Region 7","Operating Expense","Medical Expense","LTC Services","2.19","Subcapitated LTC Services",{"$f":"IFERROR('LTC Rev-Exp Region 7'!$D$35/'LTC Rev-Exp Region 7'!$D$9, 0)","v":{"v":0,"d":"$0.00"}},{"$f":"IFERROR('LTC Rev-Exp Region 7'!$E$35/'LTC Rev-Exp Region 7'!$E$9, 0)","v":{"v":0,"d":"$0.00"}},{"$f":"IFERROR('LTC Rev-Exp Region 7'!$F$35/'LTC Rev-Exp Region 7'!$F$9, 0)","v":{"v":0,"d":"$0.00"}},{"$f":"IFERROR('LTC Rev-Exp Region 7'!$G$35/'LTC Rev-Exp Region 7'!$G$9, 0)","v":{"v":0,"d":"$0.00"}}]
["LTC",null,null,{"$f":"Jurat!I$1","v":0},{"$f":"Jurat!D$33","v":"00:00:00"},"Q1","2017-03-31","Region 7","Operating Expense","Medical Expense","LTC Services","2.20","Ending IBNP for Long Term Care Services",{"$f":"IFERROR('LTC Rev-Exp Region 7'!$D$36/'LTC Rev-Exp Region 7'!$D$9, 0)","v":{"v":0,"d":"$0.00"}},{"$f":"IFERROR('LTC Rev-Exp Region 7'!$E$36/'LTC Rev-Exp Region 7'!$E$9, 0)","v":{"v":0,"d":"$0.00"}},{"$f":"IFERROR('LTC Rev-Exp Region 7'!$F$36/'LTC Rev-Exp Region 7'!$F$9, 0)","v":{"v":0,"d":"$0.00"}},{"$f":"IFERROR('LTC Rev-Exp Region 7'!$G$36/'LTC Rev-Exp Region 7'!$G$9, 0)","v":{"v":0,"d":"$0.00"}}]
["LTC",null,null,{"$f":"Jurat!I$1","v":0},{"$f":"Jurat!D$33","v":"00:00:00"},"Q1","2017-03-31","Region 7","Operating Expense","Medical Expense","LTC Services","2.21","LTC Services Settlements",{"$f":"IFERROR('LTC Rev-Exp Region 7'!$D$37/'LTC Rev-Exp Region 7'!$D$9, 0)","v":{"v":0,"d":"$0.00"}},{"$f":"IFERROR('LTC Rev-Exp Region 7'!$E$37/'LTC Rev-Exp Region 7'!$E$9, 0)","v":{"v":0,"d":"$0.00"}},{"$f":"IFERROR('LTC Rev-Exp Region 7'!$F$37/'LTC Rev-Exp Region 7'!$F$9, 0)","v":{"v":0,"d":"$0.00"}},{"$f":"IFERROR('LTC Rev-Exp Region 7'!$G$37/'LTC Rev-Exp Region 7'!$G$9, 0)","v":{"v":0,"d":"$0.00"}}]
["LTC",null,null,{"$f":"Jurat!I$1","v":0},{"$f":"Jurat!D$33","v":"00:00:00"},"Q1","2017-03-31","Region 7","Operating Expense","Medical Expense","Expanded Benefits","3.1","Expanded Benefits FFS",{"$f":"IFERROR('LTC Rev-Exp Region 7'!$D$39/'LTC Rev-Exp Region 7'!$D$9, 0)","v":{"v":0,"d":"$0.00"}},{"$f":"IFERROR('LTC Rev-Exp Region 7'!$E$39/'LTC Rev-Exp Region 7'!$E$9, 0)","v":{"v":0,"d":"$0.00"}},{"$f":"IFERROR('LTC Rev-Exp Region 7'!$F$39/'LTC Rev-Exp Region 7'!$F$9, 0)","v":{"v":0,"d":"$0.00"}},{"$f":"IFERROR('LTC Rev-Exp Region 7'!$G$39/'LTC Rev-Exp Region 7'!$G$9, 0)","v":{"v":0,"d":"$0.00"}}]
["LTC",null,null,{"$f":"Jurat!I$1","v":0},{"$f":"Jurat!D$33","v":"00:00:00"},"Q1","2017-03-31","Region 7","Operating Expense","Medical Expense","Expanded Benefits","3.2","Expanded Benefits Subcapitation",{"$f":"IFERROR('LTC Rev-Exp Region 7'!$D$40/'LTC Rev-Exp Region 7'!$D$9, 0)","v":{"v":0,"d":"$0.00"}},{"$f":"IFERROR('LTC Rev-Exp Region 7'!$E$40/'LTC Rev-Exp Region 7'!$E$9, 0)","v":{"v":0,"d":"$0.00"}},{"$f":"IFERROR('LTC Rev-Exp Region 7'!$F$40/'LTC Rev-Exp Region 7'!$F$9, 0)","v":{"v":0,"d":"$0.00"}},{"$f":"IFERROR('LTC Rev-Exp Region 7'!$G$40/'LTC Rev-Exp Region 7'!$G$9, 0)","v":{"v":0,"d":"$0.00"}}]
["LTC",null,null,{"$f":"Jurat!I$1","v":0},{"$f":"Jurat!D$33","v":"00:00:00"},"Q1","2017-03-31","Region 7","Operating Expense","Medical Expense","Expanded Benefits","3.3","Ending IBNP for Expanded Benefits",{"$f":"IFERROR('LTC Rev-Exp Region 7'!$D$41/'LTC Rev-Exp Region 7'!$D$9, 0)","v":{"v":0,"d":"$0.00"}},{"$f":"IFERROR('LTC Rev-Exp Region 7'!$E$41/'LTC Rev-Exp Region 7'!$E$9, 0)","v":{"v":0,"d":"$0.00"}},{"$f":"IFERROR('LTC Rev-Exp Region 7'!$F$41/'LTC Rev-Exp Region 7'!$F$9, 0)","v":{"v":0,"d":"$0.00"}},{"$f":"IFERROR('LTC Rev-Exp Region 7'!$G$41/'LTC Rev-Exp Region 7'!$G$9, 0)","v":{"v":0,"d":"$0.00"}}]
["LTC",null,null,{"$f":"Jurat!I$1","v":0},{"$f":"Jurat!D$33","v":"00:00:00"},"Q1","2017-03-31","Region 7","Operating Expense","Medical Expense","Expanded Benefits","3.4","Expanded Benefits Settlements",{"$f":"IFERROR('LTC Rev-Exp Region 7'!$D$42/'LTC Rev-Exp Region 7'!$D$9, 0)","v":{"v":0,"d":"$0.00"}},{"$f":"IFERROR('LTC Rev-Exp Region 7'!$E$42/'LTC Rev-Exp Region 7'!$E$9, 0)","v":{"v":0,"d":"$0.00"}},{"$f":"IFERROR('LTC Rev-Exp Region 7'!$F$42/'LTC Rev-Exp Region 7'!$F$9, 0)","v":{"v":0,"d":"$0.00"}},{"$f":"IFERROR('LTC Rev-Exp Region 7'!$G$42/'LTC Rev-Exp Region 7'!$G$9, 0)","v":{"v":0,"d":"$0.00"}}]
["LTC",null,null,{"$f":"Jurat!I$1","v":0},{"$f":"Jurat!D$33","v":"00:00:00"},"Q1","2017-03-31","Region 7","Operating Expense","Medical Expense","Other Medical","4.5","TPL & Fraud/Abuse Recoveries",{"$f":"IFERROR('LTC Rev-Exp Region 7'!$D$48/'LTC Rev-Exp Region 7'!$D$9, 0)","v":{"v":0,"d":"$0.00"}},{"$f":"IFERROR('LTC Rev-Exp Region 7'!$E$48/'LTC Rev-Exp Region 7'!$E$9, 0)","v":{"v":0,"d":"$0.00"}},{"$f":"IFERROR('LTC Rev-Exp Region 7'!$F$48/'LTC Rev-Exp Region 7'!$F$9, 0)","v":{"v":0,"d":"$0.00"}},{"$f":"IFERROR('LTC Rev-Exp Region 7'!$G$48/'LTC Rev-Exp Region 7'!$G$9, 0)","v":{"v":0,"d":"$0.00"}}]
["LTC",null,null,{"$f":"Jurat!I$1","v":0},{"$f":"Jurat!D$33","v":"00:00:00"},"Q1","2017-03-31","Region 7","Operating Expense","Medical Expense","Other Medical","4.6.1","Premium Deficiency Reserve",{"$f":"IFERROR('LTC Rev-Exp Region 7'!$D$49/'LTC Rev-Exp Region 7'!$D$9, 0)","v":{"v":0,"d":"$0.00"}},{"$f":"IFERROR('LTC Rev-Exp Region 7'!$E$49/'LTC Rev-Exp Region 7'!$E$9, 0)","v":{"v":0,"d":"$0.00"}},{"$f":"IFERROR('LTC Rev-Exp Region 7'!$F$49/'LTC Rev-Exp Region 7'!$F$9, 0)","v":{"v":0,"d":"$0.00"}},{"$f":"IFERROR('LTC Rev-Exp Region 7'!$G$49/'LTC Rev-Exp Region 7'!$G$9, 0)","v":{"v":0,"d":"$0.00"}}]
["LTC",null,null,{"$f":"Jurat!I$1","v":0},{"$f":"Jurat!D$33","v":"00:00:00"},"Q1","2017-03-31","Region 7","Operating Expense","Medical Expense","Other Medical","4.8","Reinsurance Premiums",{"$f":"IFERROR('LTC Rev-Exp Region 7'!$D$51/'LTC Rev-Exp Region 7'!$D$9, 0)","v":{"v":0,"d":"$0.00"}},{"$f":"IFERROR('LTC Rev-Exp Region 7'!$E$51/'LTC Rev-Exp Region 7'!$E$9, 0)","v":{"v":0,"d":"$0.00"}},{"$f":"IFERROR('LTC Rev-Exp Region 7'!$F$51/'LTC Rev-Exp Region 7'!$F$9, 0)","v":{"v":0,"d":"$0.00"}},{"$f":"IFERROR('LTC Rev-Exp Region 7'!$G$51/'LTC Rev-Exp Region 7'!$G$9, 0)","v":{"v":0,"d":"$0.00"}}]
["LTC",null,null,{"$f":"Jurat!I$1","v":0},{"$f":"Jurat!D$33","v":"00:00:00"},"Q1","2017-03-31","Region 7","Operating Expense","Medical Expense","Other Medical","4.9","Reinsurance Recoveries",{"$f":"IFERROR('LTC Rev-Exp Region 7'!$D$52/'LTC Rev-Exp Region 7'!$D$9, 0)","v":{"v":0,"d":"$0.00"}},{"$f":"IFERROR('LTC Rev-Exp Region 7'!$E$52/'LTC Rev-Exp Region 7'!$E$9, 0)","v":{"v":0,"d":"$0.00"}},{"$f":"IFERROR('LTC Rev-Exp Region 7'!$F$52/'LTC Rev-Exp Region 7'!$F$9, 0)","v":{"v":0,"d":"$0.00"}},{"$f":"IFERROR('LTC Rev-Exp Region 7'!$G$52/'LTC Rev-Exp Region 7'!$G$9, 0)","v":{"v":0,"d":"$0.00"}}]
["LTC",null,null,{"$f":"Jurat!I$1","v":0},{"$f":"Jurat!D$33","v":"00:00:00"},"Q1","2017-03-31","Region 7","Operating Expense","Administrative Expense","Administrative","5.1","Salaries & Benefits",{"$f":"IFERROR('LTC Rev-Exp Region 7'!$D$57/'LTC Rev-Exp Region 7'!$D$9, 0)","v":{"v":0,"d":"$0.00"}},{"$f":"IFERROR('LTC Rev-Exp Region 7'!$E$57/'LTC Rev-Exp Region 7'!$D$9, 0)","v":{"v":0,"d":"$0.00"}},{"$f":"IFERROR('LTC Rev-Exp Region 7'!$F$57/'LTC Rev-Exp Region 7'!$D$9, 0)","v":{"v":0,"d":"$0.00"}},{"$f":"IFERROR('LTC Rev-Exp Region 7'!$G$57/'LTC Rev-Exp Region 7'!$D$9, 0)","v":{"v":0,"d":"$0.00"}}]
["LTC",null,null,{"$f":"Jurat!I$1","v":0},{"$f":"Jurat!D$33","v":"00:00:00"},"Q1","2017-03-31","Region 7","Operating Expense","Administrative Expense","Administrative","5.2","Administrative Services",{"$f":"IFERROR('LTC Rev-Exp Region 7'!$D$58/'LTC Rev-Exp Region 7'!$D$9, 0)","v":{"v":0,"d":"$0.00"}},{"$f":"IFERROR('LTC Rev-Exp Region 7'!$E$58/'LTC Rev-Exp Region 7'!$D$9, 0)","v":{"v":0,"d":"$0.00"}},{"$f":"IFERROR('LTC Rev-Exp Region 7'!$F$58/'LTC Rev-Exp Region 7'!$D$9, 0)","v":{"v":0,"d":"$0.00"}},{"$f":"IFERROR('LTC Rev-Exp Region 7'!$G$58/'LTC Rev-Exp Region 7'!$D$9, 0)","v":{"v":0,"d":"$0.00"}}]
["LTC",null,null,{"$f":"Jurat!I$1","v":0},{"$f":"Jurat!D$33","v":"00:00:00"},"Q1","2017-03-31","Region 7","Operating Expense","Administrative Expense","Administrative","5.3","Information Systems",{"$f":"IFERROR('LTC Rev-Exp Region 7'!$D$59/'LTC Rev-Exp Region 7'!$D$9, 0)","v":{"v":0,"d":"$0.00"}},{"$f":"IFERROR('LTC Rev-Exp Region 7'!$E$59/'LTC Rev-Exp Region 7'!$D$9, 0)","v":{"v":0,"d":"$0.00"}},{"$f":"IFERROR('LTC Rev-Exp Region 7'!$F$59/'LTC Rev-Exp Region 7'!$D$9, 0)","v":{"v":0,"d":"$0.00"}},{"$f":"IFERROR('LTC Rev-Exp Region 7'!$G$59/'LTC Rev-Exp Region 7'!$D$9, 0)","v":{"v":0,"d":"$0.00"}}]
["LTC",null,null,{"$f":"Jurat!I$1","v":0},{"$f":"Jurat!D$33","v":"00:00:00"},"Q1","2017-03-31","Region 7","Operating Expense","Administrative Expense","Administrative","5.4","Marketing Expenses",{"$f":"IFERROR('LTC Rev-Exp Region 7'!$D$60/'LTC Rev-Exp Region 7'!$D$9, 0)","v":{"v":0,"d":"$0.00"}},{"$f":"IFERROR('LTC Rev-Exp Region 7'!$E$60/'LTC Rev-Exp Region 7'!$D$9, 0)","v":{"v":0,"d":"$0.00"}},{"$f":"IFERROR('LTC Rev-Exp Region 7'!$F$60/'LTC Rev-Exp Region 7'!$D$9, 0)","v":{"v":0,"d":"$0.00"}},{"$f":"IFERROR('LTC Rev-Exp Region 7'!$G$60/'LTC Rev-Exp Region 7'!$D$9, 0)","v":{"v":0,"d":"$0.00"}}]
["LTC",null,null,{"$f":"Jurat!I$1","v":0},{"$f":"Jurat!D$33","v":"00:00:00"},"Q1","2017-03-31","Region 7","Operating Expense","Administrative Expense","Administrative","5.5","General  Administration",{"$f":"IFERROR('LTC Rev-Exp Region 7'!$D$61/'LTC Rev-Exp Region 7'!$D$9, 0)","v":{"v":0,"d":"$0.00"}},{"$f":"IFERROR('LTC Rev-Exp Region 7'!$E$61/'LTC Rev-Exp Region 7'!$D$9, 0)","v":{"v":0,"d":"$0.00"}},{"$f":"IFERROR('LTC Rev-Exp Region 7'!$F$61/'LTC Rev-Exp Region 7'!$D$9, 0)","v":{"v":0,"d":"$0.00"}},{"$f":"IFERROR('LTC Rev-Exp Region 7'!$G$61/'LTC Rev-Exp Region 7'!$D$9, 0)","v":{"v":0,"d":"$0.00"}}]
["LTC",null,null,{"$f":"Jurat!I$1","v":0},{"$f":"Jurat!D$33","v":"00:00:00"},"Q1","2017-03-31","Region 7","Operating Expense","Administrative Expense","Administrative","5.6","Compliance/Regulatory",{"$f":"IFERROR('LTC Rev-Exp Region 7'!$D$62/'LTC Rev-Exp Region 7'!$D$9, 0)","v":{"v":0,"d":"$0.00"}},{"$f":"IFERROR('LTC Rev-Exp Region 7'!$E$62/'LTC Rev-Exp Region 7'!$D$9, 0)","v":{"v":0,"d":"$0.00"}},{"$f":"IFERROR('LTC Rev-Exp Region 7'!$F$62/'LTC Rev-Exp Region 7'!$D$9, 0)","v":{"v":0,"d":"$0.00"}},{"$f":"IFERROR('LTC Rev-Exp Region 7'!$G$62/'LTC Rev-Exp Region 7'!$D$9, 0)","v":{"v":0,"d":"$0.00"}}]
["LTC",null,null,{"$f":"Jurat!I$1","v":0},{"$f":"Jurat!D$33","v":"00:00:00"},"Q1","2017-03-31","Region 7","Operating Expense","Taxes & Fees","Taxes & Fees","6.1","State Premium Tax",{"$f":"IFERROR('LTC Rev-Exp Region 7'!$D$64/'LTC Rev-Exp Region 7'!$D$9, 0)","v":{"v":0,"d":"$0.00"}},{"$f":"IFERROR('LTC Rev-Exp Region 7'!$E$64/'LTC Rev-Exp Region 7'!$E$9, 0)","v":{"v":0,"d":"$0.00"}},{"$f":"IFERROR('LTC Rev-Exp Region 7'!$F$64/'LTC Rev-Exp Region 7'!$F$9, 0)","v":{"v":0,"d":"$0.00"}},{"$f":"IFERROR('LTC Rev-Exp Region 7'!$G$64/'LTC Rev-Exp Region 7'!$G$9, 0)","v":{"v":0,"d":"$0.00"}}]
["LTC",null,null,{"$f":"Jurat!I$1","v":0},{"$f":"Jurat!D$33","v":"00:00:00"},"Q1","2017-03-31","Region 7","Operating Expense","Taxes & Fees","Taxes & Fees","6.2","Department of Insurance Assessments",{"$f":"IFERROR('LTC Rev-Exp Region 7'!$D$65/'LTC Rev-Exp Region 7'!$D$9, 0)","v":{"v":0,"d":"$0.00"}},{"$f":"IFERROR('LTC Rev-Exp Region 7'!$E$65/'LTC Rev-Exp Region 7'!$E$9, 0)","v":{"v":0,"d":"$0.00"}},{"$f":"IFERROR('LTC Rev-Exp Region 7'!$F$65/'LTC Rev-Exp Region 7'!$F$9, 0)","v":{"v":0,"d":"$0.00"}},{"$f":"IFERROR('LTC Rev-Exp Region 7'!$G$65/'LTC Rev-Exp Region 7'!$G$9, 0)","v":{"v":0,"d":"$0.00"}}]
["LTC",null,null,{"$f":"Jurat!I$1","v":0},{"$f":"Jurat!D$33","v":"00:00:00"},"Q1","2017-03-31","Region 7","Non-Operating Expense","Income Tax Expense","Income Tax Expense","9.0","Income Tax Expense",{"$f":"IFERROR('LTC Rev-Exp Region 7'!$D$72/'LTC Rev-Exp Region 7'!$D$9, 0)","v":{"v":0,"d":"$0.00"}},{"$f":"IFERROR('LTC Rev-Exp Region 7'!$E$72/'LTC Rev-Exp Region 7'!$E$9, 0)","v":{"v":0,"d":"$0.00"}},{"$f":"IFERROR('LTC Rev-Exp Region 7'!$F$72/'LTC Rev-Exp Region 7'!$F$9, 0)","v":{"v":0,"d":"$0.00"}},{"$f":"IFERROR('LTC Rev-Exp Region 7'!$G$72/'LTC Rev-Exp Region 7'!$G$9, 0)","v":{"v":0,"d":"$0.00"}}]
["LTC",null,null,{"$f":"Jurat!I$1","v":0},{"$f":"Jurat!D$33","v":"00:00:00"},"Q2","2017-06-30","Region 7","Operating Revenue","Capitation","Capitation",1.1,"Capitation",{"$f":"IFERROR('LTC Rev-Exp Region 7'!$H$11/'LTC Rev-Exp Region 7'!$H$9, 0)","v":{"v":0,"d":"$0.00"}},{"$f":"IFERROR('LTC Rev-Exp Region 7'!$I$11/'LTC Rev-Exp Region 7'!$I$9, 0)","v":{"v":0,"d":"$0.00"}},{"$f":"IFERROR('LTC Rev-Exp Region 7'!$J$11/'LTC Rev-Exp Region 7'!$J$9, 0)","v":{"v":0,"d":"$0.00"}},{"$f":"IFERROR('LTC Rev-Exp Region 7'!$K$11/'LTC Rev-Exp Region 7'!$K$9, 0)","v":{"v":0,"d":"$0.00"}}]
["LTC",null,null,{"$f":"Jurat!I$1","v":0},{"$f":"Jurat!D$33","v":"00:00:00"},"Q2","2017-06-30","Region 7","Operating Revenue","Capitation","NH Rate Reconciliation",1.2,"NH Rate Reconciliation",{"$f":"IFERROR('LTC Rev-Exp Region 7'!$H$12/'LTC Rev-Exp Region 7'!$H$9, 0)","v":{"v":0,"d":"$0.00"}},{"$f":"IFERROR('LTC Rev-Exp Region 7'!$I$12/'LTC Rev-Exp Region 7'!$I$9, 0)","v":{"v":0,"d":"$0.00"}},{"$f":"IFERROR('LTC Rev-Exp Region 7'!$J$12/'LTC Rev-Exp Region 7'!$J$9, 0)","v":{"v":0,"d":"$0.00"}},{"$f":"IFERROR('LTC Rev-Exp Region 7'!$K$12/'LTC Rev-Exp Region 7'!$K$9, 0)","v":{"v":0,"d":"$0.00"}}]
["LTC",null,null,{"$f":"Jurat!I$1","v":0},{"$f":"Jurat!D$33","v":"00:00:00"},"Q2","2017-06-30","Region 7","Operating Revenue","Other Revenue","Other Revenue",1.3,"Other Revenue",{"$f":"IFERROR('LTC Rev-Exp Region 7'!$H$13/'LTC Rev-Exp Region 7'!$H$9, 0)","v":{"v":0,"d":"$0.00"}},{"$f":"IFERROR('LTC Rev-Exp Region 7'!$I$13/'LTC Rev-Exp Region 7'!$I$9, 0)","v":{"v":0,"d":"$0.00"}},{"$f":"IFERROR('LTC Rev-Exp Region 7'!$J$13/'LTC Rev-Exp Region 7'!$J$9, 0)","v":{"v":0,"d":"$0.00"}},{"$f":"IFERROR('LTC Rev-Exp Region 7'!$K$13/'LTC Rev-Exp Region 7'!$K$9, 0)","v":{"v":0,"d":"$0.00"}}]
["LTC",null,null,{"$f":"Jurat!I$1","v":0},{"$f":"Jurat!D$33","v":"00:00:00"},"Q2","2017-06-30","Region 7","Operating Expense","Medical Expense","NF & Hospice","2.3","Nursing Facility FFS (Medicaid)",{"$f":"IFERROR('LTC Rev-Exp Region 7'!$H$19/'LTC Rev-Exp Region 7'!$H$9, 0)","v":{"v":0,"d":"$0.00"}},{"$f":"IFERROR('LTC Rev-Exp Region 7'!$I$19/'LTC Rev-Exp Region 7'!$I$9, 0)","v":{"v":0,"d":"$0.00"}},{"$f":"IFERROR('LTC Rev-Exp Region 7'!$J$19/'LTC Rev-Exp Region 7'!$J$9, 0)","v":{"v":0,"d":"$0.00"}},{"$f":"IFERROR('LTC Rev-Exp Region 7'!$K$19/'LTC Rev-Exp Region 7'!$K$9, 0)","v":{"v":0,"d":"$0.00"}}]
["LTC",null,null,{"$f":"Jurat!I$1","v":0},{"$f":"Jurat!D$33","v":"00:00:00"},"Q2","2017-06-30","Region 7","Operating Expense","Medical Expense","NF & Hospice","2.4","Nursing Facility FFS (Crossover)",{"$f":"IFERROR('LTC Rev-Exp Region 7'!$H$20/'LTC Rev-Exp Region 7'!$H$9, 0)","v":{"v":0,"d":"$0.00"}},{"$f":"IFERROR('LTC Rev-Exp Region 7'!$I$20/'LTC Rev-Exp Region 7'!$I$9, 0)","v":{"v":0,"d":"$0.00"}},{"$f":"IFERROR('LTC Rev-Exp Region 7'!$J$20/'LTC Rev-Exp Region 7'!$J$9, 0)","v":{"v":0,"d":"$0.00"}},{"$f":"IFERROR('LTC Rev-Exp Region 7'!$K$20/'LTC Rev-Exp Region 7'!$K$9, 0)","v":{"v":0,"d":"$0.00"}}]
["LTC",null,null,{"$f":"Jurat!I$1","v":0},{"$f":"Jurat!D$33","v":"00:00:00"},"Q2","2017-06-30","Region 7","Operating Expense","Medical Expense","NF & Hospice","2.6","Hospice FFS",{"$f":"IFERROR('LTC Rev-Exp Region 7'!$H$22/'LTC Rev-Exp Region 7'!$H$9, 0)","v":{"v":0,"d":"$0.00"}},{"$f":"IFERROR('LTC Rev-Exp Region 7'!$I$22/'LTC Rev-Exp Region 7'!$I$9, 0)","v":{"v":0,"d":"$0.00"}},{"$f":"IFERROR('LTC Rev-Exp Region 7'!$J$22/'LTC Rev-Exp Region 7'!$J$9, 0)","v":{"v":0,"d":"$0.00"}},{"$f":"IFERROR('LTC Rev-Exp Region 7'!$K$22/'LTC Rev-Exp Region 7'!$K$9, 0)","v":{"v":0,"d":"$0.00"}}]
["LTC",null,null,{"$f":"Jurat!I$1","v":0},{"$f":"Jurat!D$33","v":"00:00:00"},"Q2","2017-06-30","Region 7","Operating Expense","Medical Expense","NF & Hospice","2.7","Ending IBNP for NF & Hospice",{"$f":"IFERROR('LTC Rev-Exp Region 7'!$H$23/'LTC Rev-Exp Region 7'!$H$9, 0)","v":{"v":0,"d":"$0.00"}},{"$f":"IFERROR('LTC Rev-Exp Region 7'!$I$23/'LTC Rev-Exp Region 7'!$I$9, 0)","v":{"v":0,"d":"$0.00"}},{"$f":"IFERROR('LTC Rev-Exp Region 7'!$J$23/'LTC Rev-Exp Region 7'!$J$9, 0)","v":{"v":0,"d":"$0.00"}},{"$f":"IFERROR('LTC Rev-Exp Region 7'!$K$23/'LTC Rev-Exp Region 7'!$K$9, 0)","v":{"v":0,"d":"$0.00"}}]
["LTC",null,null,{"$f":"Jurat!I$1","v":0},{"$f":"Jurat!D$33","v":"00:00:00"},"Q2","2017-06-30","Region 7","Operating Expense","Medical Expense","NF & Hospice","2.8","NF & Hospice Subcapitated",{"$f":"IFERROR('LTC Rev-Exp Region 7'!$H$24/'LTC Rev-Exp Region 7'!$H$9, 0)","v":{"v":0,"d":"$0.00"}},{"$f":"IFERROR('LTC Rev-Exp Region 7'!$I$24/'LTC Rev-Exp Region 7'!$I$9, 0)","v":{"v":0,"d":"$0.00"}},{"$f":"IFERROR('LTC Rev-Exp Region 7'!$J$24/'LTC Rev-Exp Region 7'!$J$9, 0)","v":{"v":0,"d":"$0.00"}},{"$f":"IFERROR('LTC Rev-Exp Region 7'!$K$24/'LTC Rev-Exp Region 7'!$K$9, 0)","v":{"v":0,"d":"$0.00"}}]
["LTC",null,null,{"$f":"Jurat!I$1","v":0},{"$f":"Jurat!D$33","v":"00:00:00"},"Q2","2017-06-30","Region 7","Operating Expense","Medical Expense","NF & Hospice","2.9","NF & Hospice Settlements",{"$f":"IFERROR('LTC Rev-Exp Region 7'!$H$25/'LTC Rev-Exp Region 7'!$H$9, 0)","v":{"v":0,"d":"$0.00"}},{"$f":"IFERROR('LTC Rev-Exp Region 7'!$I$25/'LTC Rev-Exp Region 7'!$I$9, 0)","v":{"v":0,"d":"$0.00"}},{"$f":"IFERROR('LTC Rev-Exp Region 7'!$J$25/'LTC Rev-Exp Region 7'!$J$9, 0)","v":{"v":0,"d":"$0.00"}},{"$f":"IFERROR('LTC Rev-Exp Region 7'!$K$25/'LTC Rev-Exp Region 7'!$K$9, 0)","v":{"v":0,"d":"$0.00"}}]
["LTC",null,null,{"$f":"Jurat!I$1","v":0},{"$f":"Jurat!D$33","v":"00:00:00"},"Q2","2017-06-30","Region 7","Operating Expense","Medical Expense","LTC Services","2.11","Assisted Living FFS",{"$f":"IFERROR('LTC Rev-Exp Region 7'!$H$27/'LTC Rev-Exp Region 7'!$H$9, 0)","v":{"v":0,"d":"$0.00"}},{"$f":"IFERROR('LTC Rev-Exp Region 7'!$I$27/'LTC Rev-Exp Region 7'!$I$9, 0)","v":{"v":0,"d":"$0.00"}},{"$f":"IFERROR('LTC Rev-Exp Region 7'!$J$27/'LTC Rev-Exp Region 7'!$J$9, 0)","v":{"v":0,"d":"$0.00"}},{"$f":"IFERROR('LTC Rev-Exp Region 7'!$K$27/'LTC Rev-Exp Region 7'!$K$9, 0)","v":{"v":0,"d":"$0.00"}}]
["LTC",null,null,{"$f":"Jurat!I$1","v":0},{"$f":"Jurat!D$33","v":"00:00:00"},"Q2","2017-06-30","Region 7","Operating Expense","Medical Expense","LTC Services","2.12","Home Health FFS",{"$f":"IFERROR('LTC Rev-Exp Region 7'!$H$28/'LTC Rev-Exp Region 7'!$H$9, 0)","v":{"v":0,"d":"$0.00"}},{"$f":"IFERROR('LTC Rev-Exp Region 7'!$I$28/'LTC Rev-Exp Region 7'!$I$9, 0)","v":{"v":0,"d":"$0.00"}},{"$f":"IFERROR('LTC Rev-Exp Region 7'!$J$28/'LTC Rev-Exp Region 7'!$J$9, 0)","v":{"v":0,"d":"$0.00"}},{"$f":"IFERROR('LTC Rev-Exp Region 7'!$K$28/'LTC Rev-Exp Region 7'!$K$9, 0)","v":{"v":0,"d":"$0.00"}}]
["LTC",null,null,{"$f":"Jurat!I$1","v":0},{"$f":"Jurat!D$33","v":"00:00:00"},"Q2","2017-06-30","Region 7","Operating Expense","Medical Expense","LTC Services","2.13","Medical Equipment/Supplies FFS",{"$f":"IFERROR('LTC Rev-Exp Region 7'!$H$29/'LTC Rev-Exp Region 7'!$H$9, 0)","v":{"v":0,"d":"$0.00"}},{"$f":"IFERROR('LTC Rev-Exp Region 7'!$I$29/'LTC Rev-Exp Region 7'!$I$9, 0)","v":{"v":0,"d":"$0.00"}},{"$f":"IFERROR('LTC Rev-Exp Region 7'!$J$29/'LTC Rev-Exp Region 7'!$J$9, 0)","v":{"v":0,"d":"$0.00"}},{"$f":"IFERROR('LTC Rev-Exp Region 7'!$K$29/'LTC Rev-Exp Region 7'!$K$9, 0)","v":{"v":0,"d":"$0.00"}}]
["LTC",null,null,{"$f":"Jurat!I$1","v":0},{"$f":"Jurat!D$33","v":"00:00:00"},"Q2","2017-06-30","Region 7","Operating Expense","Medical Expense","LTC Services","2.14","Therapy FFS",{"$f":"IFERROR('LTC Rev-Exp Region 7'!$H$30/'LTC Rev-Exp Region 7'!$H$9, 0)","v":{"v":0,"d":"$0.00"}},{"$f":"IFERROR('LTC Rev-Exp Region 7'!$I$30/'LTC Rev-Exp Region 7'!$I$9, 0)","v":{"v":0,"d":"$0.00"}},{"$f":"IFERROR('LTC Rev-Exp Region 7'!$J$30/'LTC Rev-Exp Region 7'!$J$9, 0)","v":{"v":0,"d":"$0.00"}},{"$f":"IFERROR('LTC Rev-Exp Region 7'!$K$30/'LTC Rev-Exp Region 7'!$K$9, 0)","v":{"v":0,"d":"$0.00"}}]
["LTC",null,null,{"$f":"Jurat!I$1","v":0},{"$f":"Jurat!D$33","v":"00:00:00"},"Q2","2017-06-30","Region 7","Operating Expense","Medical Expense","LTC Services","2.15","Transportation FFS",{"$f":"IFERROR('LTC Rev-Exp Region 7'!$H$31/'LTC Rev-Exp Region 7'!$H$9, 0)","v":{"v":0,"d":"$0.00"}},{"$f":"IFERROR('LTC Rev-Exp Region 7'!$I$31/'LTC Rev-Exp Region 7'!$I$9, 0)","v":{"v":0,"d":"$0.00"}},{"$f":"IFERROR('LTC Rev-Exp Region 7'!$J$31/'LTC Rev-Exp Region 7'!$J$9, 0)","v":{"v":0,"d":"$0.00"}},{"$f":"IFERROR('LTC Rev-Exp Region 7'!$K$31/'LTC Rev-Exp Region 7'!$K$9, 0)","v":{"v":0,"d":"$0.00"}}]
["LTC",null,null,{"$f":"Jurat!I$1","v":0},{"$f":"Jurat!D$33","v":"00:00:00"},"Q2","2017-06-30","Region 7","Operating Expense","Medical Expense","LTC Services","2.16","Case Management FFS (Plan Provided)",{"$f":"IFERROR('LTC Rev-Exp Region 7'!$H$32/'LTC Rev-Exp Region 7'!$H$9, 0)","v":{"v":0,"d":"$0.00"}},{"$f":"IFERROR('LTC Rev-Exp Region 7'!$I$32/'LTC Rev-Exp Region 7'!$I$9, 0)","v":{"v":0,"d":"$0.00"}},{"$f":"IFERROR('LTC Rev-Exp Region 7'!$J$32/'LTC Rev-Exp Region 7'!$J$9, 0)","v":{"v":0,"d":"$0.00"}},{"$f":"IFERROR('LTC Rev-Exp Region 7'!$K$32/'LTC Rev-Exp Region 7'!$K$9, 0)","v":{"v":0,"d":"$0.00"}}]
["LTC",null,null,{"$f":"Jurat!I$1","v":0},{"$f":"Jurat!D$33","v":"00:00:00"},"Q2","2017-06-30","Region 7","Operating Expense","Medical Expense","LTC Services","2.17","Case Management FF (Non-Plan Provided)",{"$f":"IFERROR('LTC Rev-Exp Region 7'!$H$33/'LTC Rev-Exp Region 7'!$H$9, 0)","v":{"v":0,"d":"$0.00"}},{"$f":"IFERROR('LTC Rev-Exp Region 7'!$I$33/'LTC Rev-Exp Region 7'!$I$9, 0)","v":{"v":0,"d":"$0.00"}},{"$f":"IFERROR('LTC Rev-Exp Region 7'!$J$33/'LTC Rev-Exp Region 7'!$J$9, 0)","v":{"v":0,"d":"$0.00"}},{"$f":"IFERROR('LTC Rev-Exp Region 7'!$K$33/'LTC Rev-Exp Region 7'!$K$9, 0)","v":{"v":0,"d":"$0.00"}}]
["LTC",null,null,{"$f":"Jurat!I$1","v":0},{"$f":"Jurat!D$33","v":"00:00:00"},"Q2","2017-06-30","Region 7","Operating Expense","Medical Expense","LTC Services","2.18","HCBS FFS",{"$f":"IFERROR('LTC Rev-Exp Region 7'!$H$34/'LTC Rev-Exp Region 7'!$H$9, 0)","v":{"v":0,"d":"$0.00"}},{"$f":"IFERROR('LTC Rev-Exp Region 7'!$I$34/'LTC Rev-Exp Region 7'!$I$9, 0)","v":{"v":0,"d":"$0.00"}},{"$f":"IFERROR('LTC Rev-Exp Region 7'!$J$34/'LTC Rev-Exp Region 7'!$J$9, 0)","v":{"v":0,"d":"$0.00"}},{"$f":"IFERROR('LTC Rev-Exp Region 7'!$K$34/'LTC Rev-Exp Region 7'!$K$9, 0)","v":{"v":0,"d":"$0.00"}}]
["LTC",null,null,{"$f":"Jurat!I$1","v":0},{"$f":"Jurat!D$33","v":"00:00:00"},"Q2","2017-06-30","Region 7","Operating Expense","Medical Expense","LTC Services","2.19","Subcapitated LTC Services",{"$f":"IFERROR('LTC Rev-Exp Region 7'!$H$35/'LTC Rev-Exp Region 7'!$H$9, 0)","v":{"v":0,"d":"$0.00"}},{"$f":"IFERROR('LTC Rev-Exp Region 7'!$I$35/'LTC Rev-Exp Region 7'!$I$9, 0)","v":{"v":0,"d":"$0.00"}},{"$f":"IFERROR('LTC Rev-Exp Region 7'!$J$35/'LTC Rev-Exp Region 7'!$J$9, 0)","v":{"v":0,"d":"$0.00"}},{"$f":"IFERROR('LTC Rev-Exp Region 7'!$K$35/'LTC Rev-Exp Region 7'!$K$9, 0)","v":{"v":0,"d":"$0.00"}}]
["LTC",null,null,{"$f":"Jurat!I$1","v":0},{"$f":"Jurat!D$33","v":"00:00:00"},"Q2","2017-06-30","Region 7","Operating Expense","Medical Expense","LTC Services","2.20","Ending IBNP for Long Term Care Services",{"$f":"IFERROR('LTC Rev-Exp Region 7'!$H$36/'LTC Rev-Exp Region 7'!$H$9, 0)","v":{"v":0,"d":"$0.00"}},{"$f":"IFERROR('LTC Rev-Exp Region 7'!$I$36/'LTC Rev-Exp Region 7'!$I$9, 0)","v":{"v":0,"d":"$0.00"}},{"$f":"IFERROR('LTC Rev-Exp Region 7'!$J$36/'LTC Rev-Exp Region 7'!$J$9, 0)","v":{"v":0,"d":"$0.00"}},{"$f":"IFERROR('LTC Rev-Exp Region 7'!$K$36/'LTC Rev-Exp Region 7'!$K$9, 0)","v":{"v":0,"d":"$0.00"}}]
["LTC",null,null,{"$f":"Jurat!I$1","v":0},{"$f":"Jurat!D$33","v":"00:00:00"},"Q2","2017-06-30","Region 7","Operating Expense","Medical Expense","LTC Services","2.21","LTC Services Settlements",{"$f":"IFERROR('LTC Rev-Exp Region 7'!$H$37/'LTC Rev-Exp Region 7'!$H$9, 0)","v":{"v":0,"d":"$0.00"}},{"$f":"IFERROR('LTC Rev-Exp Region 7'!$I$37/'LTC Rev-Exp Region 7'!$I$9, 0)","v":{"v":0,"d":"$0.00"}},{"$f":"IFERROR('LTC Rev-Exp Region 7'!$J$37/'LTC Rev-Exp Region 7'!$J$9, 0)","v":{"v":0,"d":"$0.00"}},{"$f":"IFERROR('LTC Rev-Exp Region 7'!$K$37/'LTC Rev-Exp Region 7'!$K$9, 0)","v":{"v":0,"d":"$0.00"}}]
["LTC",null,null,{"$f":"Jurat!I$1","v":0},{"$f":"Jurat!D$33","v":"00:00:00"},"Q2","2017-06-30","Region 7","Operating Expense","Medical Expense","Expanded Benefits","3.1","Expanded Benefits FFS",{"$f":"IFERROR('LTC Rev-Exp Region 7'!$H$39/'LTC Rev-Exp Region 7'!$H$9, 0)","v":{"v":0,"d":"$0.00"}},{"$f":"IFERROR('LTC Rev-Exp Region 7'!$I$39/'LTC Rev-Exp Region 7'!$I$9, 0)","v":{"v":0,"d":"$0.00"}},{"$f":"IFERROR('LTC Rev-Exp Region 7'!$J$39/'LTC Rev-Exp Region 7'!$J$9, 0)","v":{"v":0,"d":"$0.00"}},{"$f":"IFERROR('LTC Rev-Exp Region 7'!$K$39/'LTC Rev-Exp Region 7'!$K$9, 0)","v":{"v":0,"d":"$0.00"}}]
["LTC",null,null,{"$f":"Jurat!I$1","v":0},{"$f":"Jurat!D$33","v":"00:00:00"},"Q2","2017-06-30","Region 7","Operating Expense","Medical Expense","Expanded Benefits","3.2","Expanded Benefits Subcapitation",{"$f":"IFERROR('LTC Rev-Exp Region 7'!$H$40/'LTC Rev-Exp Region 7'!$H$9, 0)","v":{"v":0,"d":"$0.00"}},{"$f":"IFERROR('LTC Rev-Exp Region 7'!$I$40/'LTC Rev-Exp Region 7'!$I$9, 0)","v":{"v":0,"d":"$0.00"}},{"$f":"IFERROR('LTC Rev-Exp Region 7'!$J$40/'LTC Rev-Exp Region 7'!$J$9, 0)","v":{"v":0,"d":"$0.00"}},{"$f":"IFERROR('LTC Rev-Exp Region 7'!$K$40/'LTC Rev-Exp Region 7'!$K$9, 0)","v":{"v":0,"d":"$0.00"}}]
["LTC",null,null,{"$f":"Jurat!I$1","v":0},{"$f":"Jurat!D$33","v":"00:00:00"},"Q2","2017-06-30","Region 7","Operating Expense","Medical Expense","Expanded Benefits","3.3","Ending IBNP for Expanded Benefits",{"$f":"IFERROR('LTC Rev-Exp Region 7'!$H$41/'LTC Rev-Exp Region 7'!$H$9, 0)","v":{"v":0,"d":"$0.00"}},{"$f":"IFERROR('LTC Rev-Exp Region 7'!$I$41/'LTC Rev-Exp Region 7'!$I$9, 0)","v":{"v":0,"d":"$0.00"}},{"$f":"IFERROR('LTC Rev-Exp Region 7'!$J$41/'LTC Rev-Exp Region 7'!$J$9, 0)","v":{"v":0,"d":"$0.00"}},{"$f":"IFERROR('LTC Rev-Exp Region 7'!$K$41/'LTC Rev-Exp Region 7'!$K$9, 0)","v":{"v":0,"d":"$0.00"}}]
["LTC",null,null,{"$f":"Jurat!I$1","v":0},{"$f":"Jurat!D$33","v":"00:00:00"},"Q2","2017-06-30","Region 7","Operating Expense","Medical Expense","Expanded Benefits","3.4","Expanded Benefits Settlements",{"$f":"IFERROR('LTC Rev-Exp Region 7'!$H$42/'LTC Rev-Exp Region 7'!$H$9, 0)","v":{"v":0,"d":"$0.00"}},{"$f":"IFERROR('LTC Rev-Exp Region 7'!$I$42/'LTC Rev-Exp Region 7'!$I$9, 0)","v":{"v":0,"d":"$0.00"}},{"$f":"IFERROR('LTC Rev-Exp Region 7'!$J$42/'LTC Rev-Exp Region 7'!$J$9, 0)","v":{"v":0,"d":"$0.00"}},{"$f":"IFERROR('LTC Rev-Exp Region 7'!$K$42/'LTC Rev-Exp Region 7'!$K$9, 0)","v":{"v":0,"d":"$0.00"}}]
["LTC",null,null,{"$f":"Jurat!I$1","v":0},{"$f":"Jurat!D$33","v":"00:00:00"},"Q2","2017-06-30","Region 7","Operating Expense","Medical Expense","Other Medical","4.5","TPL & Fraud/Abuse Recoveries",{"$f":"IFERROR('LTC Rev-Exp Region 7'!$H$48/'LTC Rev-Exp Region 7'!$H$9, 0)","v":{"v":0,"d":"$0.00"}},{"$f":"IFERROR('LTC Rev-Exp Region 7'!$I$48/'LTC Rev-Exp Region 7'!$I$9, 0)","v":{"v":0,"d":"$0.00"}},{"$f":"IFERROR('LTC Rev-Exp Region 7'!$J$48/'LTC Rev-Exp Region 7'!$J$9, 0)","v":{"v":0,"d":"$0.00"}},{"$f":"IFERROR('LTC Rev-Exp Region 7'!$K$48/'LTC Rev-Exp Region 7'!$K$9, 0)","v":{"v":0,"d":"$0.00"}}]
["LTC",null,null,{"$f":"Jurat!I$1","v":0},{"$f":"Jurat!D$33","v":"00:00:00"},"Q2","2017-06-30","Region 7","Operating Expense","Medical Expense","Other Medical","4.6.1","Premium Deficiency Reserve",{"$f":"IFERROR('LTC Rev-Exp Region 7'!$H$49/'LTC Rev-Exp Region 7'!$H$9, 0)","v":{"v":0,"d":"$0.00"}},{"$f":"IFERROR('LTC Rev-Exp Region 7'!$I$49/'LTC Rev-Exp Region 7'!$I$9, 0)","v":{"v":0,"d":"$0.00"}},{"$f":"IFERROR('LTC Rev-Exp Region 7'!$J$49/'LTC Rev-Exp Region 7'!$J$9, 0)","v":{"v":0,"d":"$0.00"}},{"$f":"IFERROR('LTC Rev-Exp Region 7'!$K$49/'LTC Rev-Exp Region 7'!$K$9, 0)","v":{"v":0,"d":"$0.00"}}]
["LTC",null,null,{"$f":"Jurat!I$1","v":0},{"$f":"Jurat!D$33","v":"00:00:00"},"Q2","2017-06-30","Region 7","Operating Expense","Medical Expense","Other Medical","4.8","Reinsurance Premiums",{"$f":"IFERROR('LTC Rev-Exp Region 7'!$H$51/'LTC Rev-Exp Region 7'!$H$9, 0)","v":{"v":0,"d":"$0.00"}},{"$f":"IFERROR('LTC Rev-Exp Region 7'!$I$51/'LTC Rev-Exp Region 7'!$I$9, 0)","v":{"v":0,"d":"$0.00"}},{"$f":"IFERROR('LTC Rev-Exp Region 7'!$J$51/'LTC Rev-Exp Region 7'!$J$9, 0)","v":{"v":0,"d":"$0.00"}},{"$f":"IFERROR('LTC Rev-Exp Region 7'!$K$51/'LTC Rev-Exp Region 7'!$K$9, 0)","v":{"v":0,"d":"$0.00"}}]
["LTC",null,null,{"$f":"Jurat!I$1","v":0},{"$f":"Jurat!D$33","v":"00:00:00"},"Q2","2017-06-30","Region 7","Operating Expense","Medical Expense","Other Medical","4.9","Reinsurance Recoveries",{"$f":"IFERROR('LTC Rev-Exp Region 7'!$H$52/'LTC Rev-Exp Region 7'!$H$9, 0)","v":{"v":0,"d":"$0.00"}},{"$f":"IFERROR('LTC Rev-Exp Region 7'!$I$52/'LTC Rev-Exp Region 7'!$I$9, 0)","v":{"v":0,"d":"$0.00"}},{"$f":"IFERROR('LTC Rev-Exp Region 7'!$J$52/'LTC Rev-Exp Region 7'!$J$9, 0)","v":{"v":0,"d":"$0.00"}},{"$f":"IFERROR('LTC Rev-Exp Region 7'!$K$52/'LTC Rev-Exp Region 7'!$K$9, 0)","v":{"v":0,"d":"$0.00"}}]
["LTC",null,null,{"$f":"Jurat!I$1","v":0},{"$f":"Jurat!D$33","v":"00:00:00"},"Q2","2017-06-30","Region 7","Operating Expense","Administrative Expense","Administrative","5.1","Salaries & Benefits",{"$f":"IFERROR('LTC Rev-Exp Region 7'!$H$57/'LTC Rev-Exp Region 7'!$H$9, 0)","v":{"v":0,"d":"$0.00"}},{"$f":"IFERROR('LTC Rev-Exp Region 7'!$I$57/'LTC Rev-Exp Region 7'!$I$9, 0)","v":{"v":0,"d":"$0.00"}},{"$f":"IFERROR('LTC Rev-Exp Region 7'!$J$57/'LTC Rev-Exp Region 7'!$J$9, 0)","v":{"v":0,"d":"$0.00"}},{"$f":"IFERROR('LTC Rev-Exp Region 7'!$K$57/'LTC Rev-Exp Region 7'!$K$9, 0)","v":{"v":0,"d":"$0.00"}}]
["LTC",null,null,{"$f":"Jurat!I$1","v":0},{"$f":"Jurat!D$33","v":"00:00:00"},"Q2","2017-06-30","Region 7","Operating Expense","Administrative Expense","Administrative","5.2","Administrative Services",{"$f":"IFERROR('LTC Rev-Exp Region 7'!$H$58/'LTC Rev-Exp Region 7'!$H$9, 0)","v":{"v":0,"d":"$0.00"}},{"$f":"IFERROR('LTC Rev-Exp Region 7'!$I$58/'LTC Rev-Exp Region 7'!$I$9, 0)","v":{"v":0,"d":"$0.00"}},{"$f":"IFERROR('LTC Rev-Exp Region 7'!$J$58/'LTC Rev-Exp Region 7'!$J$9, 0)","v":{"v":0,"d":"$0.00"}},{"$f":"IFERROR('LTC Rev-Exp Region 7'!$K$58/'LTC Rev-Exp Region 7'!$K$9, 0)","v":{"v":0,"d":"$0.00"}}]
["LTC",null,null,{"$f":"Jurat!I$1","v":0},{"$f":"Jurat!D$33","v":"00:00:00"},"Q2","2017-06-30","Region 7","Operating Expense","Administrative Expense","Administrative","5.3","Information Systems",{"$f":"IFERROR('LTC Rev-Exp Region 7'!$H$59/'LTC Rev-Exp Region 7'!$H$9, 0)","v":{"v":0,"d":"$0.00"}},{"$f":"IFERROR('LTC Rev-Exp Region 7'!$I$59/'LTC Rev-Exp Region 7'!$I$9, 0)","v":{"v":0,"d":"$0.00"}},{"$f":"IFERROR('LTC Rev-Exp Region 7'!$J$59/'LTC Rev-Exp Region 7'!$J$9, 0)","v":{"v":0,"d":"$0.00"}},{"$f":"IFERROR('LTC Rev-Exp Region 7'!$K$59/'LTC Rev-Exp Region 7'!$K$9, 0)","v":{"v":0,"d":"$0.00"}}]
["LTC",null,null,{"$f":"Jurat!I$1","v":0},{"$f":"Jurat!D$33","v":"00:00:00"},"Q2","2017-06-30","Region 7","Operating Expense","Administrative Expense","Administrative","5.4","Marketing Expenses",{"$f":"IFERROR('LTC Rev-Exp Region 7'!$H$60/'LTC Rev-Exp Region 7'!$H$9, 0)","v":{"v":0,"d":"$0.00"}},{"$f":"IFERROR('LTC Rev-Exp Region 7'!$I$60/'LTC Rev-Exp Region 7'!$I$9, 0)","v":{"v":0,"d":"$0.00"}},{"$f":"IFERROR('LTC Rev-Exp Region 7'!$J$60/'LTC Rev-Exp Region 7'!$J$9, 0)","v":{"v":0,"d":"$0.00"}},{"$f":"IFERROR('LTC Rev-Exp Region 7'!$K$60/'LTC Rev-Exp Region 7'!$K$9, 0)","v":{"v":0,"d":"$0.00"}}]
["LTC",null,null,{"$f":"Jurat!I$1","v":0},{"$f":"Jurat!D$33","v":"00:00:00"},"Q2","2017-06-30","Region 7","Operating Expense","Administrative Expense","Administrative","5.5","General  Administration",{"$f":"IFERROR('LTC Rev-Exp Region 7'!$H$61/'LTC Rev-Exp Region 7'!$H$9, 0)","v":{"v":0,"d":"$0.00"}},{"$f":"IFERROR('LTC Rev-Exp Region 7'!$I$61/'LTC Rev-Exp Region 7'!$I$9, 0)","v":{"v":0,"d":"$0.00"}},{"$f":"IFERROR('LTC Rev-Exp Region 7'!$J$61/'LTC Rev-Exp Region 7'!$J$9, 0)","v":{"v":0,"d":"$0.00"}},{"$f":"IFERROR('LTC Rev-Exp Region 7'!$K$61/'LTC Rev-Exp Region 7'!$K$9, 0)","v":{"v":0,"d":"$0.00"}}]
["LTC",null,null,{"$f":"Jurat!I$1","v":0},{"$f":"Jurat!D$33","v":"00:00:00"},"Q2","2017-06-30","Region 7","Operating Expense","Administrative Expense","Administrative","5.6","Compliance/Regulatory",{"$f":"IFERROR('LTC Rev-Exp Region 7'!$H$62/'LTC Rev-Exp Region 7'!$H$9, 0)","v":{"v":0,"d":"$0.00"}},{"$f":"IFERROR('LTC Rev-Exp Region 7'!$I$62/'LTC Rev-Exp Region 7'!$I$9, 0)","v":{"v":0,"d":"$0.00"}},{"$f":"IFERROR('LTC Rev-Exp Region 7'!$J$62/'LTC Rev-Exp Region 7'!$J$9, 0)","v":{"v":0,"d":"$0.00"}},{"$f":"IFERROR('LTC Rev-Exp Region 7'!$K$62/'LTC Rev-Exp Region 7'!$K$9, 0)","v":{"v":0,"d":"$0.00"}}]
["LTC",null,null,{"$f":"Jurat!I$1","v":0},{"$f":"Jurat!D$33","v":"00:00:00"},"Q2","2017-06-30","Region 7","Operating Expense","Taxes & Fees","Taxes & Fees","6.1","State Premium Tax",{"$f":"IFERROR('LTC Rev-Exp Region 7'!$H$64/'LTC Rev-Exp Region 7'!$H$9, 0)","v":{"v":0,"d":"$0.00"}},{"$f":"IFERROR('LTC Rev-Exp Region 7'!$I$64/'LTC Rev-Exp Region 7'!$I$9, 0)","v":{"v":0,"d":"$0.00"}},{"$f":"IFERROR('LTC Rev-Exp Region 7'!$J$64/'LTC Rev-Exp Region 7'!$J$9, 0)","v":{"v":0,"d":"$0.00"}},{"$f":"IFERROR('LTC Rev-Exp Region 7'!$K$64/'LTC Rev-Exp Region 7'!$K$9, 0)","v":{"v":0,"d":"$0.00"}}]
["LTC",null,null,{"$f":"Jurat!I$1","v":0},{"$f":"Jurat!D$33","v":"00:00:00"},"Q2","2017-06-30","Region 7","Operating Expense","Taxes & Fees","Taxes & Fees","6.2","Department of Insurance Assessments",{"$f":"IFERROR('LTC Rev-Exp Region 7'!$H$65/'LTC Rev-Exp Region 7'!$H$9, 0)","v":{"v":0,"d":"$0.00"}},{"$f":"IFERROR('LTC Rev-Exp Region 7'!$I$65/'LTC Rev-Exp Region 7'!$I$9, 0)","v":{"v":0,"d":"$0.00"}},{"$f":"IFERROR('LTC Rev-Exp Region 7'!$J$65/'LTC Rev-Exp Region 7'!$J$9, 0)","v":{"v":0,"d":"$0.00"}},{"$f":"IFERROR('LTC Rev-Exp Region 7'!$K$65/'LTC Rev-Exp Region 7'!$K$9, 0)","v":{"v":0,"d":"$0.00"}}]
["LTC",null,null,{"$f":"Jurat!I$1","v":0},{"$f":"Jurat!D$33","v":"00:00:00"},"Q2","2017-06-30","Region 7","Non-Operating Expense","Income Tax Expense","Income Tax Expense","9.0","Income Tax Expense",{"$f":"IFERROR('LTC Rev-Exp Region 7'!$H$66/'LTC Rev-Exp Region 7'!$H$9, 0)","v":{"v":0,"d":"$0.00"}},{"$f":"IFERROR('LTC Rev-Exp Region 7'!$I$66/'LTC Rev-Exp Region 7'!$I$9, 0)","v":{"v":0,"d":"$0.00"}},{"$f":"IFERROR('LTC Rev-Exp Region 7'!$J$66/'LTC Rev-Exp Region 7'!$J$9, 0)","v":{"v":0,"d":"$0.00"}},{"$f":"IFERROR('LTC Rev-Exp Region 7'!$K$66/'LTC Rev-Exp Region 7'!$K$9, 0)","v":{"v":0,"d":"$0.00"}}]
["LTC",null,null,{"$f":"Jurat!I$1","v":0},{"$f":"Jurat!D$33","v":"00:00:00"},"Q3","2017-09-30","Region 7","Operating Revenue","Capitation","Capitation",1.1,"Capitation",{"$f":"IFERROR('LTC Rev-Exp Region 7'!$L$11/'LTC Rev-Exp Region 7'!$L$9, 0)","v":{"v":0,"d":"$0.00"}},{"$f":"IFERROR('LTC Rev-Exp Region 7'!$M$11/'LTC Rev-Exp Region 7'!$M$9, 0)","v":{"v":0,"d":"$0.00"}},{"$f":"IFERROR('LTC Rev-Exp Region 7'!$N$11/'LTC Rev-Exp Region 7'!$N$9, 0)","v":{"v":0,"d":"$0.00"}},{"$f":"IFERROR('LTC Rev-Exp Region 7'!$O$11/'LTC Rev-Exp Region 7'!$O$9, 0)","v":{"v":0,"d":"$0.00"}}]
["LTC",null,null,{"$f":"Jurat!I$1","v":0},{"$f":"Jurat!D$33","v":"00:00:00"},"Q3","2017-09-30","Region 7","Operating Revenue","Capitation","NH Rate Reconciliation",1.2,"NH Rate Reconciliation",{"$f":"IFERROR('LTC Rev-Exp Region 7'!L$12/'LTC Rev-Exp Region 7'!L$9, 0)","v":{"v":0,"d":"$0.00"}},{"$f":"IFERROR('LTC Rev-Exp Region 7'!M$12/'LTC Rev-Exp Region 7'!M$9, 0)","v":{"v":0,"d":"$0.00"}},{"$f":"IFERROR('LTC Rev-Exp Region 7'!N$12/'LTC Rev-Exp Region 7'!N$9, 0)","v":{"v":0,"d":"$0.00"}},{"$f":"IFERROR('LTC Rev-Exp Region 7'!O$12/'LTC Rev-Exp Region 7'!O$9, 0)","v":{"v":0,"d":"$0.00"}}]
["LTC",null,null,{"$f":"Jurat!I$1","v":0},{"$f":"Jurat!D$33","v":"00:00:00"},"Q3","2017-09-30","Region 7","Operating Revenue","Other Revenue","Other Revenue",1.3,"Other Revenue",{"$f":"IFERROR('LTC Rev-Exp Region 7'!L901/'LTC Rev-Exp Region 7'!L$9, 0)","v":{"v":0,"d":"$0.00"}},{"$f":"IFERROR('LTC Rev-Exp Region 7'!M901/'LTC Rev-Exp Region 7'!M$9, 0)","v":{"v":0,"d":"$0.00"}},{"$f":"IFERROR('LTC Rev-Exp Region 7'!N901/'LTC Rev-Exp Region 7'!N$9, 0)","v":{"v":0,"d":"$0.00"}},{"$f":"IFERROR('LTC Rev-Exp Region 7'!O901/'LTC Rev-Exp Region 7'!O$9, 0)","v":{"v":0,"d":"$0.00"}}]
["LTC",null,null,{"$f":"Jurat!I$1","v":0},{"$f":"Jurat!D$33","v":"00:00:00"},"Q3","2017-09-30","Region 7","Operating Expense","Medical Expense","NF & Hospice","2.3","Nursing Facility FFS (Medicaid)",{"$f":"IFERROR('LTC Rev-Exp Region 7'!$L$19/'LTC Rev-Exp Region 7'!$L$9, 0)","v":{"v":0,"d":"$0.00"}},{"$f":"IFERROR('LTC Rev-Exp Region 7'!$M$19/'LTC Rev-Exp Region 7'!$M$9, 0)","v":{"v":0,"d":"$0.00"}},{"$f":"IFERROR('LTC Rev-Exp Region 7'!$N$19/'LTC Rev-Exp Region 7'!$N$9, 0)","v":{"v":0,"d":"$0.00"}},{"$f":"IFERROR('LTC Rev-Exp Region 7'!$O$19/'LTC Rev-Exp Region 7'!$O$9, 0)","v":{"v":0,"d":"$0.00"}}]
["LTC",null,null,{"$f":"Jurat!I$1","v":0},{"$f":"Jurat!D$33","v":"00:00:00"},"Q3","2017-09-30","Region 7","Operating Expense","Medical Expense","NF & Hospice","2.4","Nursing Facility FFS (Crossover)",{"$f":"IFERROR('LTC Rev-Exp Region 7'!$L$20/'LTC Rev-Exp Region 7'!$L$9, 0)","v":{"v":0,"d":"$0.00"}},{"$f":"IFERROR('LTC Rev-Exp Region 7'!$M$20/'LTC Rev-Exp Region 7'!$M$9, 0)","v":{"v":0,"d":"$0.00"}},{"$f":"IFERROR('LTC Rev-Exp Region 7'!$N$20/'LTC Rev-Exp Region 7'!$N$9, 0)","v":{"v":0,"d":"$0.00"}},{"$f":"IFERROR('LTC Rev-Exp Region 7'!$O$20/'LTC Rev-Exp Region 7'!$O$9, 0)","v":{"v":0,"d":"$0.00"}}]
["LTC",null,null,{"$f":"Jurat!I$1","v":0},{"$f":"Jurat!D$33","v":"00:00:00"},"Q3","2017-09-30","Region 7","Operating Expense","Medical Expense","NF & Hospice","2.6","Hospice FFS",{"$f":"IFERROR('LTC Rev-Exp Region 7'!$L$22/'LTC Rev-Exp Region 7'!$L$9, 0)","v":{"v":0,"d":"$0.00"}},{"$f":"IFERROR('LTC Rev-Exp Region 7'!$M$22/'LTC Rev-Exp Region 7'!$M$9, 0)","v":{"v":0,"d":"$0.00"}},{"$f":"IFERROR('LTC Rev-Exp Region 7'!$N$22/'LTC Rev-Exp Region 7'!$N$9, 0)","v":{"v":0,"d":"$0.00"}},{"$f":"IFERROR('LTC Rev-Exp Region 7'!$O$22/'LTC Rev-Exp Region 7'!$O$9, 0)","v":{"v":0,"d":"$0.00"}}]
["LTC",null,null,{"$f":"Jurat!I$1","v":0},{"$f":"Jurat!D$33","v":"00:00:00"},"Q3","2017-09-30","Region 7","Operating Expense","Medical Expense","NF & Hospice","2.7","Ending IBNP for NF & Hospice",{"$f":"IFERROR('LTC Rev-Exp Region 7'!$L$23/'LTC Rev-Exp Region 7'!$L$9, 0)","v":{"v":0,"d":"$0.00"}},{"$f":"IFERROR('LTC Rev-Exp Region 7'!$M$23/'LTC Rev-Exp Region 7'!$M$9, 0)","v":{"v":0,"d":"$0.00"}},{"$f":"IFERROR('LTC Rev-Exp Region 7'!$N$23/'LTC Rev-Exp Region 7'!$N$9, 0)","v":{"v":0,"d":"$0.00"}},{"$f":"IFERROR('LTC Rev-Exp Region 7'!$O$23/'LTC Rev-Exp Region 7'!$O$9, 0)","v":{"v":0,"d":"$0.00"}}]
["LTC",null,null,{"$f":"Jurat!I$1","v":0},{"$f":"Jurat!D$33","v":"00:00:00"},"Q3","2017-09-30","Region 7","Operating Expense","Medical Expense","NF & Hospice","2.8","NF & Hospice Subcapitated",{"$f":"IFERROR('LTC Rev-Exp Region 7'!$L$24/'LTC Rev-Exp Region 7'!$L$9, 0)","v":{"v":0,"d":"$0.00"}},{"$f":"IFERROR('LTC Rev-Exp Region 7'!$M$24/'LTC Rev-Exp Region 7'!$M$9, 0)","v":{"v":0,"d":"$0.00"}},{"$f":"IFERROR('LTC Rev-Exp Region 7'!$N$24/'LTC Rev-Exp Region 7'!$N$9, 0)","v":{"v":0,"d":"$0.00"}},{"$f":"IFERROR('LTC Rev-Exp Region 7'!$O$24/'LTC Rev-Exp Region 7'!$O$9, 0)","v":{"v":0,"d":"$0.00"}}]
["LTC",null,null,{"$f":"Jurat!I$1","v":0},{"$f":"Jurat!D$33","v":"00:00:00"},"Q3","2017-09-30","Region 7","Operating Expense","Medical Expense","NF & Hospice","2.9","NF & Hospice Settlements",{"$f":"IFERROR('LTC Rev-Exp Region 7'!$L$25/'LTC Rev-Exp Region 7'!$L$9, 0)","v":{"v":0,"d":"$0.00"}},{"$f":"IFERROR('LTC Rev-Exp Region 7'!$M$25/'LTC Rev-Exp Region 7'!$M$9, 0)","v":{"v":0,"d":"$0.00"}},{"$f":"IFERROR('LTC Rev-Exp Region 7'!$N$25/'LTC Rev-Exp Region 7'!$N$9, 0)","v":{"v":0,"d":"$0.00"}},{"$f":"IFERROR('LTC Rev-Exp Region 7'!$O$25/'LTC Rev-Exp Region 7'!$O$9, 0)","v":{"v":0,"d":"$0.00"}}]
["LTC",null,null,{"$f":"Jurat!I$1","v":0},{"$f":"Jurat!D$33","v":"00:00:00"},"Q3","2017-09-30","Region 7","Operating Expense","Medical Expense","LTC Services","2.11","Assisted Living FFS",{"$f":"IFERROR('LTC Rev-Exp Region 7'!$L$27/'LTC Rev-Exp Region 7'!$L$9, 0)","v":{"v":0,"d":"$0.00"}},{"$f":"IFERROR('LTC Rev-Exp Region 7'!$M$27/'LTC Rev-Exp Region 7'!$M$9, 0)","v":{"v":0,"d":"$0.00"}},{"$f":"IFERROR('LTC Rev-Exp Region 7'!$N$27/'LTC Rev-Exp Region 7'!$N$9, 0)","v":{"v":0,"d":"$0.00"}},{"$f":"IFERROR('LTC Rev-Exp Region 7'!$O$27/'LTC Rev-Exp Region 7'!$O$9, 0)","v":{"v":0,"d":"$0.00"}}]
["LTC",null,null,{"$f":"Jurat!I$1","v":0},{"$f":"Jurat!D$33","v":"00:00:00"},"Q3","2017-09-30","Region 7","Operating Expense","Medical Expense","LTC Services","2.12","Home Health FFS",{"$f":"IFERROR('LTC Rev-Exp Region 7'!$L$28/'LTC Rev-Exp Region 7'!$L$9, 0)","v":{"v":0,"d":"$0.00"}},{"$f":"IFERROR('LTC Rev-Exp Region 7'!$M$28/'LTC Rev-Exp Region 7'!$M$9, 0)","v":{"v":0,"d":"$0.00"}},{"$f":"IFERROR('LTC Rev-Exp Region 7'!$N$28/'LTC Rev-Exp Region 7'!$N$9, 0)","v":{"v":0,"d":"$0.00"}},{"$f":"IFERROR('LTC Rev-Exp Region 7'!$O$28/'LTC Rev-Exp Region 7'!$O$9, 0)","v":{"v":0,"d":"$0.00"}}]
["LTC",null,null,{"$f":"Jurat!I$1","v":0},{"$f":"Jurat!D$33","v":"00:00:00"},"Q3","2017-09-30","Region 7","Operating Expense","Medical Expense","LTC Services","2.13","Medical Equipment/Supplies FFS",{"$f":"IFERROR('LTC Rev-Exp Region 7'!$L$29/'LTC Rev-Exp Region 7'!$L$9, 0)","v":{"v":0,"d":"$0.00"}},{"$f":"IFERROR('LTC Rev-Exp Region 7'!$M$29/'LTC Rev-Exp Region 7'!$M$9, 0)","v":{"v":0,"d":"$0.00"}},{"$f":"IFERROR('LTC Rev-Exp Region 7'!$N$29/'LTC Rev-Exp Region 7'!$N$9, 0)","v":{"v":0,"d":"$0.00"}},{"$f":"IFERROR('LTC Rev-Exp Region 7'!$O$29/'LTC Rev-Exp Region 7'!$O$9, 0)","v":{"v":0,"d":"$0.00"}}]
["LTC",null,null,{"$f":"Jurat!I$1","v":0},{"$f":"Jurat!D$33","v":"00:00:00"},"Q3","2017-09-30","Region 7","Operating Expense","Medical Expense","LTC Services","2.14","Therapy FFS",{"$f":"IFERROR('LTC Rev-Exp Region 7'!$L$30/'LTC Rev-Exp Region 7'!$L$9, 0)","v":{"v":0,"d":"$0.00"}},{"$f":"IFERROR('LTC Rev-Exp Region 7'!$M$30/'LTC Rev-Exp Region 7'!$M$9, 0)","v":{"v":0,"d":"$0.00"}},{"$f":"IFERROR('LTC Rev-Exp Region 7'!$N$30/'LTC Rev-Exp Region 7'!$N$9, 0)","v":{"v":0,"d":"$0.00"}},{"$f":"IFERROR('LTC Rev-Exp Region 7'!$O$30/'LTC Rev-Exp Region 7'!$O$9, 0)","v":{"v":0,"d":"$0.00"}}]
["LTC",null,null,{"$f":"Jurat!I$1","v":0},{"$f":"Jurat!D$33","v":"00:00:00"},"Q3","2017-09-30","Region 7","Operating Expense","Medical Expense","LTC Services","2.15","Transportation FFS",{"$f":"IFERROR('LTC Rev-Exp Region 7'!$L$31/'LTC Rev-Exp Region 7'!$L$9, 0)","v":{"v":0,"d":"$0.00"}},{"$f":"IFERROR('LTC Rev-Exp Region 7'!$M$31/'LTC Rev-Exp Region 7'!$M$9, 0)","v":{"v":0,"d":"$0.00"}},{"$f":"IFERROR('LTC Rev-Exp Region 7'!$N$31/'LTC Rev-Exp Region 7'!$N$9, 0)","v":{"v":0,"d":"$0.00"}},{"$f":"IFERROR('LTC Rev-Exp Region 7'!$O$31/'LTC Rev-Exp Region 7'!$O$9, 0)","v":{"v":0,"d":"$0.00"}}]
["LTC",null,null,{"$f":"Jurat!I$1","v":0},{"$f":"Jurat!D$33","v":"00:00:00"},"Q3","2017-09-30","Region 7","Operating Expense","Medical Expense","LTC Services","2.16","Case Management FFS (Plan Provided)",{"$f":"IFERROR('LTC Rev-Exp Region 7'!$L$32/'LTC Rev-Exp Region 7'!$L$9, 0)","v":{"v":0,"d":"$0.00"}},{"$f":"IFERROR('LTC Rev-Exp Region 7'!$M$32/'LTC Rev-Exp Region 7'!$M$9, 0)","v":{"v":0,"d":"$0.00"}},{"$f":"IFERROR('LTC Rev-Exp Region 7'!$N$32/'LTC Rev-Exp Region 7'!$N$9, 0)","v":{"v":0,"d":"$0.00"}},{"$f":"IFERROR('LTC Rev-Exp Region 7'!$O$32/'LTC Rev-Exp Region 7'!$O$9, 0)","v":{"v":0,"d":"$0.00"}}]
["LTC",null,null,{"$f":"Jurat!I$1","v":0},{"$f":"Jurat!D$33","v":"00:00:00"},"Q3","2017-09-30","Region 7","Operating Expense","Medical Expense","LTC Services","2.17","Case Management FF (Non-Plan Provided)",{"$f":"IFERROR('LTC Rev-Exp Region 7'!$L$33/'LTC Rev-Exp Region 7'!$L$9, 0)","v":{"v":0,"d":"$0.00"}},{"$f":"IFERROR('LTC Rev-Exp Region 7'!$M$33/'LTC Rev-Exp Region 7'!$M$9, 0)","v":{"v":0,"d":"$0.00"}},{"$f":"IFERROR('LTC Rev-Exp Region 7'!$N$33/'LTC Rev-Exp Region 7'!$N$9, 0)","v":{"v":0,"d":"$0.00"}},{"$f":"IFERROR('LTC Rev-Exp Region 7'!$O$33/'LTC Rev-Exp Region 7'!$O$9, 0)","v":{"v":0,"d":"$0.00"}}]
["LTC",null,null,{"$f":"Jurat!I$1","v":0},{"$f":"Jurat!D$33","v":"00:00:00"},"Q3","2017-09-30","Region 7","Operating Expense","Medical Expense","LTC Services","2.18","HCBS FFS",{"$f":"IFERROR('LTC Rev-Exp Region 7'!$L$34/'LTC Rev-Exp Region 7'!$L$9, 0)","v":{"v":0,"d":"$0.00"}},{"$f":"IFERROR('LTC Rev-Exp Region 7'!$M$34/'LTC Rev-Exp Region 7'!$M$9, 0)","v":{"v":0,"d":"$0.00"}},{"$f":"IFERROR('LTC Rev-Exp Region 7'!$N$34/'LTC Rev-Exp Region 7'!$N$9, 0)","v":{"v":0,"d":"$0.00"}},{"$f":"IFERROR('LTC Rev-Exp Region 7'!$O$34/'LTC Rev-Exp Region 7'!$O$9, 0)","v":{"v":0,"d":"$0.00"}}]
["LTC",null,null,{"$f":"Jurat!I$1","v":0},{"$f":"Jurat!D$33","v":"00:00:00"},"Q3","2017-09-30","Region 7","Operating Expense","Medical Expense","LTC Services","2.19","Subcapitated LTC Services",{"$f":"IFERROR('LTC Rev-Exp Region 7'!$L$35/'LTC Rev-Exp Region 7'!$L$9, 0)","v":{"v":0,"d":"$0.00"}},{"$f":"IFERROR('LTC Rev-Exp Region 7'!$M$35/'LTC Rev-Exp Region 7'!$M$9, 0)","v":{"v":0,"d":"$0.00"}},{"$f":"IFERROR('LTC Rev-Exp Region 7'!$N$35/'LTC Rev-Exp Region 7'!$N$9, 0)","v":{"v":0,"d":"$0.00"}},{"$f":"IFERROR('LTC Rev-Exp Region 7'!$O$35/'LTC Rev-Exp Region 7'!$O$9, 0)","v":{"v":0,"d":"$0.00"}}]
["LTC",null,null,{"$f":"Jurat!I$1","v":0},{"$f":"Jurat!D$33","v":"00:00:00"},"Q3","2017-09-30","Region 7","Operating Expense","Medical Expense","LTC Services","2.20","Ending IBNP for Long Term Care Services",{"$f":"IFERROR('LTC Rev-Exp Region 7'!$L$36/'LTC Rev-Exp Region 7'!$L$9, 0)","v":{"v":0,"d":"$0.00"}},{"$f":"IFERROR('LTC Rev-Exp Region 7'!$M$36/'LTC Rev-Exp Region 7'!$M$9, 0)","v":{"v":0,"d":"$0.00"}},{"$f":"IFERROR('LTC Rev-Exp Region 7'!$N$36/'LTC Rev-Exp Region 7'!$N$9, 0)","v":{"v":0,"d":"$0.00"}},{"$f":"IFERROR('LTC Rev-Exp Region 7'!$O$36/'LTC Rev-Exp Region 7'!$O$9, 0)","v":{"v":0,"d":"$0.00"}}]
["LTC",null,null,{"$f":"Jurat!I$1","v":0},{"$f":"Jurat!D$33","v":"00:00:00"},"Q3","2017-09-30","Region 7","Operating Expense","Medical Expense","LTC Services","2.21","LTC Services Settlements",{"$f":"IFERROR('LTC Rev-Exp Region 7'!$L$37/'LTC Rev-Exp Region 7'!$L$9, 0)","v":{"v":0,"d":"$0.00"}},{"$f":"IFERROR('LTC Rev-Exp Region 7'!$M$37/'LTC Rev-Exp Region 7'!$M$9, 0)","v":{"v":0,"d":"$0.00"}},{"$f":"IFERROR('LTC Rev-Exp Region 7'!$N$37/'LTC Rev-Exp Region 7'!$N$9, 0)","v":{"v":0,"d":"$0.00"}},{"$f":"IFERROR('LTC Rev-Exp Region 7'!$O$37/'LTC Rev-Exp Region 7'!$O$9, 0)","v":{"v":0,"d":"$0.00"}}]
["LTC",null,null,{"$f":"Jurat!I$1","v":0},{"$f":"Jurat!D$33","v":"00:00:00"},"Q3","2017-09-30","Region 7","Operating Expense","Medical Expense","Expanded Benefits","3.1","Expanded Benefits FFS",{"$f":"IFERROR('LTC Rev-Exp Region 7'!$L$39/'LTC Rev-Exp Region 7'!$L$9, 0)","v":{"v":0,"d":"$0.00"}},{"$f":"IFERROR('LTC Rev-Exp Region 7'!$M$39/'LTC Rev-Exp Region 7'!$M$9, 0)","v":{"v":0,"d":"$0.00"}},{"$f":"IFERROR('LTC Rev-Exp Region 7'!$N$39/'LTC Rev-Exp Region 7'!$N$9, 0)","v":{"v":0,"d":"$0.00"}},{"$f":"IFERROR('LTC Rev-Exp Region 7'!$O$39/'LTC Rev-Exp Region 7'!$O$9, 0)","v":{"v":0,"d":"$0.00"}}]
["LTC",null,null,{"$f":"Jurat!I$1","v":0},{"$f":"Jurat!D$33","v":"00:00:00"},"Q3","2017-09-30","Region 7","Operating Expense","Medical Expense","Expanded Benefits","3.2","Expanded Benefits Subcapitation",{"$f":"IFERROR('LTC Rev-Exp Region 7'!$L$40/'LTC Rev-Exp Region 7'!$L$9, 0)","v":{"v":0,"d":"$0.00"}},{"$f":"IFERROR('LTC Rev-Exp Region 7'!$M$40/'LTC Rev-Exp Region 7'!$M$9, 0)","v":{"v":0,"d":"$0.00"}},{"$f":"IFERROR('LTC Rev-Exp Region 7'!$N$40/'LTC Rev-Exp Region 7'!$N$9, 0)","v":{"v":0,"d":"$0.00"}},{"$f":"IFERROR('LTC Rev-Exp Region 7'!$O$40/'LTC Rev-Exp Region 7'!$O$9, 0)","v":{"v":0,"d":"$0.00"}}]
["LTC",null,null,{"$f":"Jurat!I$1","v":0},{"$f":"Jurat!D$33","v":"00:00:00"},"Q3","2017-09-30","Region 7","Operating Expense","Medical Expense","Expanded Benefits","3.3","Ending IBNP for Expanded Benefits",{"$f":"IFERROR('LTC Rev-Exp Region 7'!$L$41/'LTC Rev-Exp Region 7'!$L$9, 0)","v":{"v":0,"d":"$0.00"}},{"$f":"IFERROR('LTC Rev-Exp Region 7'!$M$41/'LTC Rev-Exp Region 7'!$M$9, 0)","v":{"v":0,"d":"$0.00"}},{"$f":"IFERROR('LTC Rev-Exp Region 7'!$N$41/'LTC Rev-Exp Region 7'!$N$9, 0)","v":{"v":0,"d":"$0.00"}},{"$f":"IFERROR('LTC Rev-Exp Region 7'!$O$41/'LTC Rev-Exp Region 7'!$O$9, 0)","v":{"v":0,"d":"$0.00"}}]
["LTC",null,null,{"$f":"Jurat!I$1","v":0},{"$f":"Jurat!D$33","v":"00:00:00"},"Q3","2017-09-30","Region 7","Operating Expense","Medical Expense","Expanded Benefits","3.4","Expanded Benefits Settlements",{"$f":"IFERROR('LTC Rev-Exp Region 7'!$L$42/'LTC Rev-Exp Region 7'!$L$9, 0)","v":{"v":0,"d":"$0.00"}},{"$f":"IFERROR('LTC Rev-Exp Region 7'!$M$42/'LTC Rev-Exp Region 7'!$M$9, 0)","v":{"v":0,"d":"$0.00"}},{"$f":"IFERROR('LTC Rev-Exp Region 7'!$N$42/'LTC Rev-Exp Region 7'!$N$9, 0)","v":{"v":0,"d":"$0.00"}},{"$f":"IFERROR('LTC Rev-Exp Region 7'!$O$42/'LTC Rev-Exp Region 7'!$O$9, 0)","v":{"v":0,"d":"$0.00"}}]
["LTC",null,null,{"$f":"Jurat!I$1","v":0},{"$f":"Jurat!D$33","v":"00:00:00"},"Q3","2017-09-30","Region 7","Operating Expense","Medical Expense","Other Medical","4.5","TPL & Fraud/Abuse Recoveries",{"$f":"IFERROR('LTC Rev-Exp Region 7'!$L$48/'LTC Rev-Exp Region 7'!$L$9, 0)","v":{"v":0,"d":"$0.00"}},{"$f":"IFERROR('LTC Rev-Exp Region 7'!$M$48/'LTC Rev-Exp Region 7'!$M$9, 0)","v":{"v":0,"d":"$0.00"}},{"$f":"IFERROR('LTC Rev-Exp Region 7'!$N$48/'LTC Rev-Exp Region 7'!$N$9, 0)","v":{"v":0,"d":"$0.00"}},{"$f":"IFERROR('LTC Rev-Exp Region 7'!$O$48/'LTC Rev-Exp Region 7'!$O$9, 0)","v":{"v":0,"d":"$0.00"}}]
["LTC",null,null,{"$f":"Jurat!I$1","v":0},{"$f":"Jurat!D$33","v":"00:00:00"},"Q3","2017-09-30","Region 7","Operating Expense","Medical Expense","Other Medical","4.6.1","Premium Deficiency Reserve",{"$f":"IFERROR('LTC Rev-Exp Region 7'!$L$49/'LTC Rev-Exp Region 7'!$L$9, 0)","v":{"v":0,"d":"$0.00"}},{"$f":"IFERROR('LTC Rev-Exp Region 7'!$M$49/'LTC Rev-Exp Region 7'!$M$9, 0)","v":{"v":0,"d":"$0.00"}},{"$f":"IFERROR('LTC Rev-Exp Region 7'!$N$49/'LTC Rev-Exp Region 7'!$N$9, 0)","v":{"v":0,"d":"$0.00"}},{"$f":"IFERROR('LTC Rev-Exp Region 7'!$O$49/'LTC Rev-Exp Region 7'!$O$9, 0)","v":{"v":0,"d":"$0.00"}}]
["LTC",null,null,{"$f":"Jurat!I$1","v":0},{"$f":"Jurat!D$33","v":"00:00:00"},"Q3","2017-09-30","Region 7","Operating Expense","Medical Expense","Other Medical","4.8","Reinsurance Premiums",{"$f":"IFERROR('LTC Rev-Exp Region 7'!$L$51/'LTC Rev-Exp Region 7'!$L$9, 0)","v":{"v":0,"d":"$0.00"}},{"$f":"IFERROR('LTC Rev-Exp Region 7'!$M$51/'LTC Rev-Exp Region 7'!$M$9, 0)","v":{"v":0,"d":"$0.00"}},{"$f":"IFERROR('LTC Rev-Exp Region 7'!$N$51/'LTC Rev-Exp Region 7'!$N$9, 0)","v":{"v":0,"d":"$0.00"}},{"$f":"IFERROR('LTC Rev-Exp Region 7'!$O$51/'LTC Rev-Exp Region 7'!$O$9, 0)","v":{"v":0,"d":"$0.00"}}]
["LTC",null,null,{"$f":"Jurat!I$1","v":0},{"$f":"Jurat!D$33","v":"00:00:00"},"Q3","2017-09-30","Region 7","Operating Expense","Medical Expense","Other Medical","4.9","Reinsurance Recoveries",{"$f":"IFERROR('LTC Rev-Exp Region 7'!$L$52/'LTC Rev-Exp Region 7'!$L$9, 0)","v":{"v":0,"d":"$0.00"}},{"$f":"IFERROR('LTC Rev-Exp Region 7'!$M$52/'LTC Rev-Exp Region 7'!$M$9, 0)","v":{"v":0,"d":"$0.00"}},{"$f":"IFERROR('LTC Rev-Exp Region 7'!$N$52/'LTC Rev-Exp Region 7'!$N$9, 0)","v":{"v":0,"d":"$0.00"}},{"$f":"IFERROR('LTC Rev-Exp Region 7'!$O$52/'LTC Rev-Exp Region 7'!$O$9, 0)","v":{"v":0,"d":"$0.00"}}]
["LTC",null,null,{"$f":"Jurat!I$1","v":0},{"$f":"Jurat!D$33","v":"00:00:00"},"Q3","2017-09-30","Region 7","Operating Expense","Administrative Expense","Administrative","5.1","Salaries & Benefits",{"$f":"IFERROR('LTC Rev-Exp Region 7'!$L$57/'LTC Rev-Exp Region 7'!$L$9, 0)","v":{"v":0,"d":"$0.00"}},{"$f":"IFERROR('LTC Rev-Exp Region 7'!$M$57/'LTC Rev-Exp Region 7'!$M$9, 0)","v":{"v":0,"d":"$0.00"}},{"$f":"IFERROR('LTC Rev-Exp Region 7'!$N$57/'LTC Rev-Exp Region 7'!$N$9, 0)","v":{"v":0,"d":"$0.00"}},{"$f":"IFERROR('LTC Rev-Exp Region 7'!$O$57/'LTC Rev-Exp Region 7'!$O$9, 0)","v":{"v":0,"d":"$0.00"}}]
["LTC",null,null,{"$f":"Jurat!I$1","v":0},{"$f":"Jurat!D$33","v":"00:00:00"},"Q3","2017-09-30","Region 7","Operating Expense","Administrative Expense","Administrative","5.2","Administrative Services",{"$f":"IFERROR('LTC Rev-Exp Region 7'!$L$58/'LTC Rev-Exp Region 7'!$L$9, 0)","v":{"v":0,"d":"$0.00"}},{"$f":"IFERROR('LTC Rev-Exp Region 7'!$M$58/'LTC Rev-Exp Region 7'!$M$9, 0)","v":{"v":0,"d":"$0.00"}},{"$f":"IFERROR('LTC Rev-Exp Region 7'!$N$58/'LTC Rev-Exp Region 7'!$N$9, 0)","v":{"v":0,"d":"$0.00"}},{"$f":"IFERROR('LTC Rev-Exp Region 7'!$O$58/'LTC Rev-Exp Region 7'!$O$9, 0)","v":{"v":0,"d":"$0.00"}}]
["LTC",null,null,{"$f":"Jurat!I$1","v":0},{"$f":"Jurat!D$33","v":"00:00:00"},"Q3","2017-09-30","Region 7","Operating Expense","Administrative Expense","Administrative","5.3","Information Systems",{"$f":"IFERROR('LTC Rev-Exp Region 7'!$L$59/'LTC Rev-Exp Region 7'!$L$9, 0)","v":{"v":0,"d":"$0.00"}},{"$f":"IFERROR('LTC Rev-Exp Region 7'!$M$59/'LTC Rev-Exp Region 7'!$M$9, 0)","v":{"v":0,"d":"$0.00"}},{"$f":"IFERROR('LTC Rev-Exp Region 7'!$N$59/'LTC Rev-Exp Region 7'!$N$9, 0)","v":{"v":0,"d":"$0.00"}},{"$f":"IFERROR('LTC Rev-Exp Region 7'!$O$59/'LTC Rev-Exp Region 7'!$O$9, 0)","v":{"v":0,"d":"$0.00"}}]
["LTC",null,null,{"$f":"Jurat!I$1","v":0},{"$f":"Jurat!D$33","v":"00:00:00"},"Q3","2017-09-30","Region 7","Operating Expense","Administrative Expense","Administrative","5.4","Marketing Expenses",{"$f":"IFERROR('LTC Rev-Exp Region 7'!$L$60/'LTC Rev-Exp Region 7'!$L$9, 0)","v":{"v":0,"d":"$0.00"}},{"$f":"IFERROR('LTC Rev-Exp Region 7'!$M$60/'LTC Rev-Exp Region 7'!$M$9, 0)","v":{"v":0,"d":"$0.00"}},{"$f":"IFERROR('LTC Rev-Exp Region 7'!$N$60/'LTC Rev-Exp Region 7'!$N$9, 0)","v":{"v":0,"d":"$0.00"}},{"$f":"IFERROR('LTC Rev-Exp Region 7'!$O$60/'LTC Rev-Exp Region 7'!$O$9, 0)","v":{"v":0,"d":"$0.00"}}]
["LTC",null,null,{"$f":"Jurat!I$1","v":0},{"$f":"Jurat!D$33","v":"00:00:00"},"Q3","2017-09-30","Region 7","Operating Expense","Administrative Expense","Administrative","5.5","General  Administration",{"$f":"IFERROR('LTC Rev-Exp Region 7'!$L$61/'LTC Rev-Exp Region 7'!$L$9, 0)","v":{"v":0,"d":"$0.00"}},{"$f":"IFERROR('LTC Rev-Exp Region 7'!$M$61/'LTC Rev-Exp Region 7'!$M$9, 0)","v":{"v":0,"d":"$0.00"}},{"$f":"IFERROR('LTC Rev-Exp Region 7'!$N$61/'LTC Rev-Exp Region 7'!$N$9, 0)","v":{"v":0,"d":"$0.00"}},{"$f":"IFERROR('LTC Rev-Exp Region 7'!$O$61/'LTC Rev-Exp Region 7'!$O$9, 0)","v":{"v":0,"d":"$0.00"}}]
["LTC",null,null,{"$f":"Jurat!I$1","v":0},{"$f":"Jurat!D$33","v":"00:00:00"},"Q3","2017-09-30","Region 7","Operating Expense","Administrative Expense","Administrative","5.6","Compliance/Regulatory",{"$f":"IFERROR('LTC Rev-Exp Region 7'!$L$62/'LTC Rev-Exp Region 7'!$L$9, 0)","v":{"v":0,"d":"$0.00"}},{"$f":"IFERROR('LTC Rev-Exp Region 7'!$M$62/'LTC Rev-Exp Region 7'!$M$9, 0)","v":{"v":0,"d":"$0.00"}},{"$f":"IFERROR('LTC Rev-Exp Region 7'!$N$62/'LTC Rev-Exp Region 7'!$N$9, 0)","v":{"v":0,"d":"$0.00"}},{"$f":"IFERROR('LTC Rev-Exp Region 7'!$O$62/'LTC Rev-Exp Region 7'!$O$9, 0)","v":{"v":0,"d":"$0.00"}}]
["LTC",null,null,{"$f":"Jurat!I$1","v":0},{"$f":"Jurat!D$33","v":"00:00:00"},"Q3","2017-09-30","Region 7","Operating Expense","Taxes & Fees","Taxes & Fees","6.1","State Premium Tax",{"$f":"IFERROR('LTC Rev-Exp Region 7'!$L$64/'LTC Rev-Exp Region 7'!$L$9, 0)","v":{"v":0,"d":"$0.00"}},{"$f":"IFERROR('LTC Rev-Exp Region 7'!$M$64/'LTC Rev-Exp Region 7'!$M$9, 0)","v":{"v":0,"d":"$0.00"}},{"$f":"IFERROR('LTC Rev-Exp Region 7'!$N$64/'LTC Rev-Exp Region 7'!$N$9, 0)","v":{"v":0,"d":"$0.00"}},{"$f":"IFERROR('LTC Rev-Exp Region 7'!$O$64/'LTC Rev-Exp Region 7'!$O$9, 0)","v":{"v":0,"d":"$0.00"}}]
["LTC",null,null,{"$f":"Jurat!I$1","v":0},{"$f":"Jurat!D$33","v":"00:00:00"},"Q3","2017-09-30","Region 7","Operating Expense","Taxes & Fees","Taxes & Fees","6.2","Department of Insurance Assessments",{"$f":"IFERROR('LTC Rev-Exp Region 7'!$L$65/'LTC Rev-Exp Region 7'!$L$9, 0)","v":{"v":0,"d":"$0.00"}},{"$f":"IFERROR('LTC Rev-Exp Region 7'!$M$65/'LTC Rev-Exp Region 7'!$M$9, 0)","v":{"v":0,"d":"$0.00"}},{"$f":"IFERROR('LTC Rev-Exp Region 7'!$N$65/'LTC Rev-Exp Region 7'!$N$9, 0)","v":{"v":0,"d":"$0.00"}},{"$f":"IFERROR('LTC Rev-Exp Region 7'!$O$65/'LTC Rev-Exp Region 7'!$O$9, 0)","v":{"v":0,"d":"$0.00"}}]
["LTC",null,null,{"$f":"Jurat!I$1","v":0},{"$f":"Jurat!D$33","v":"00:00:00"},"Q3","2017-09-30","Region 7","Non-Operating Expense","Income Tax Expense","Income Tax Expense","9.0","Income Tax Expense",{"$f":"IFERROR('LTC Rev-Exp Region 7'!$L$72/'LTC Rev-Exp Region 7'!$L$9, 0)","v":{"v":0,"d":"$0.00"}},{"$f":"IFERROR('LTC Rev-Exp Region 7'!$M$72/'LTC Rev-Exp Region 7'!$M$9, 0)","v":{"v":0,"d":"$0.00"}},{"$f":"IFERROR('LTC Rev-Exp Region 7'!$N$72/'LTC Rev-Exp Region 7'!$N$9, 0)","v":{"v":0,"d":"$0.00"}},{"$f":"IFERROR('LTC Rev-Exp Region 7'!$O$72/'LTC Rev-Exp Region 7'!$O$9, 0)","v":{"v":0,"d":"$0.00"}}]
["LTC",null,null,{"$f":"Jurat!I$1","v":0},{"$f":"Jurat!D$33","v":"00:00:00"},"Q4","2017-12-31","Region 7","Operating Revenue","Capitation","Capitation",1.1,"Capitation",{"$f":"IFERROR('LTC Rev-Exp Region 7'!$P$11/'LTC Rev-Exp Region 7'!$P$9, 0)","v":{"v":0,"d":"$0.00"}},{"$f":"IFERROR('LTC Rev-Exp Region 7'!$Q$11/'LTC Rev-Exp Region 7'!$Q$9, 0)","v":{"v":0,"d":"$0.00"}},{"$f":"IFERROR('LTC Rev-Exp Region 7'!$R$11/'LTC Rev-Exp Region 7'!$R$9, 0)","v":{"v":0,"d":"$0.00"}},{"$f":"IFERROR('LTC Rev-Exp Region 7'!$S$11/'LTC Rev-Exp Region 7'!$S$9, 0)","v":{"v":0,"d":"$0.00"}}]
["LTC",null,null,{"$f":"Jurat!I$1","v":0},{"$f":"Jurat!D$33","v":"00:00:00"},"Q4","2017-12-31","Region 7","Operating Revenue","Capitation","NH Rate Reconciliation",1.2,"NH Rate Reconciliation",{"$f":"IFERROR('LTC Rev-Exp Region 7'!$P$12/'LTC Rev-Exp Region 7'!$P$9, 0)","v":{"v":0,"d":"$0.00"}},{"$f":"IFERROR('LTC Rev-Exp Region 7'!$Q$12/'LTC Rev-Exp Region 7'!$Q$9, 0)","v":{"v":0,"d":"$0.00"}},{"$f":"IFERROR('LTC Rev-Exp Region 7'!$R$12/'LTC Rev-Exp Region 7'!$R$9, 0)","v":{"v":0,"d":"$0.00"}},{"$f":"IFERROR('LTC Rev-Exp Region 7'!$S$12/'LTC Rev-Exp Region 7'!$S$9, 0)","v":{"v":0,"d":"$0.00"}}]
["LTC",null,null,{"$f":"Jurat!I$1","v":0},{"$f":"Jurat!D$33","v":"00:00:00"},"Q4","2017-12-31","Region 7","Operating Revenue","Other Revenue","Other Revenue",1.3,"Other Revenue",{"$f":"IFERROR('LTC Rev-Exp Region 7'!$P$13/'LTC Rev-Exp Region 7'!$P$9, 0)","v":{"v":0,"d":"$0.00"}},{"$f":"IFERROR('LTC Rev-Exp Region 7'!$Q$13/'LTC Rev-Exp Region 7'!$Q$9, 0)","v":{"v":0,"d":"$0.00"}},{"$f":"IFERROR('LTC Rev-Exp Region 7'!$R$13/'LTC Rev-Exp Region 7'!$R$9, 0)","v":{"v":0,"d":"$0.00"}},{"$f":"IFERROR('LTC Rev-Exp Region 7'!$S$13/'LTC Rev-Exp Region 7'!$S$9, 0)","v":{"v":0,"d":"$0.00"}}]
["LTC",null,null,{"$f":"Jurat!I$1","v":0},{"$f":"Jurat!D$33","v":"00:00:00"},"Q4","2017-12-31","Region 7","Operating Expense","Medical Expense","NF & Hospice","2.3","Nursing Facility FFS (Medicaid)",{"$f":"IFERROR('LTC Rev-Exp Region 7'!$P$19/'LTC Rev-Exp Region 7'!$P$9, 0)","v":{"v":0,"d":"$0.00"}},{"$f":"IFERROR('LTC Rev-Exp Region 7'!$Q$19/'LTC Rev-Exp Region 7'!$Q$9, 0)","v":{"v":0,"d":"$0.00"}},{"$f":"IFERROR('LTC Rev-Exp Region 7'!$R$19/'LTC Rev-Exp Region 7'!$R$9, 0)","v":{"v":0,"d":"$0.00"}},{"$f":"IFERROR('LTC Rev-Exp Region 7'!$S$19/'LTC Rev-Exp Region 7'!$S$9, 0)","v":{"v":0,"d":"$0.00"}}]
["LTC",null,null,{"$f":"Jurat!I$1","v":0},{"$f":"Jurat!D$33","v":"00:00:00"},"Q4","2017-12-31","Region 7","Operating Expense","Medical Expense","NF & Hospice","2.4","Nursing Facility FFS (Crossover)",{"$f":"IFERROR('LTC Rev-Exp Region 7'!$P$20/'LTC Rev-Exp Region 7'!$P$9, 0)","v":{"v":0,"d":"$0.00"}},{"$f":"IFERROR('LTC Rev-Exp Region 7'!$Q$20/'LTC Rev-Exp Region 7'!$Q$9, 0)","v":{"v":0,"d":"$0.00"}},{"$f":"IFERROR('LTC Rev-Exp Region 7'!$R$20/'LTC Rev-Exp Region 7'!$R$9, 0)","v":{"v":0,"d":"$0.00"}},{"$f":"IFERROR('LTC Rev-Exp Region 7'!$S$20/'LTC Rev-Exp Region 7'!$S$9, 0)","v":{"v":0,"d":"$0.00"}}]
["LTC",null,null,{"$f":"Jurat!I$1","v":0},{"$f":"Jurat!D$33","v":"00:00:00"},"Q4","2017-12-31","Region 7","Operating Expense","Medical Expense","NF & Hospice","2.6","Hospice FFS",{"$f":"IFERROR('LTC Rev-Exp Region 7'!$P$22/'LTC Rev-Exp Region 7'!$P$9, 0)","v":{"v":0,"d":"$0.00"}},{"$f":"IFERROR('LTC Rev-Exp Region 7'!$Q$22/'LTC Rev-Exp Region 7'!$Q$9, 0)","v":{"v":0,"d":"$0.00"}},{"$f":"IFERROR('LTC Rev-Exp Region 7'!$R$22/'LTC Rev-Exp Region 7'!$R$9, 0)","v":{"v":0,"d":"$0.00"}},{"$f":"IFERROR('LTC Rev-Exp Region 7'!$S$22/'LTC Rev-Exp Region 7'!$S$9, 0)","v":{"v":0,"d":"$0.00"}}]
["LTC",null,null,{"$f":"Jurat!I$1","v":0},{"$f":"Jurat!D$33","v":"00:00:00"},"Q4","2017-12-31","Region 7","Operating Expense","Medical Expense","NF & Hospice","2.7","Ending IBNP for NF & Hospice",{"$f":"IFERROR('LTC Rev-Exp Region 7'!$P$23/'LTC Rev-Exp Region 7'!$P$9, 0)","v":{"v":0,"d":"$0.00"}},{"$f":"IFERROR('LTC Rev-Exp Region 7'!$Q$23/'LTC Rev-Exp Region 7'!$Q$9, 0)","v":{"v":0,"d":"$0.00"}},{"$f":"IFERROR('LTC Rev-Exp Region 7'!$R$23/'LTC Rev-Exp Region 7'!$R$9, 0)","v":{"v":0,"d":"$0.00"}},{"$f":"IFERROR('LTC Rev-Exp Region 7'!$S$23/'LTC Rev-Exp Region 7'!$S$9, 0)","v":{"v":0,"d":"$0.00"}}]
["LTC",null,null,{"$f":"Jurat!I$1","v":0},{"$f":"Jurat!D$33","v":"00:00:00"},"Q4","2017-12-31","Region 7","Operating Expense","Medical Expense","NF & Hospice","2.8","NF & Hospice Subcapitated",{"$f":"IFERROR('LTC Rev-Exp Region 7'!$P$24/'LTC Rev-Exp Region 7'!$P$9, 0)","v":{"v":0,"d":"$0.00"}},{"$f":"IFERROR('LTC Rev-Exp Region 7'!$Q$24/'LTC Rev-Exp Region 7'!$Q$9, 0)","v":{"v":0,"d":"$0.00"}},{"$f":"IFERROR('LTC Rev-Exp Region 7'!$R$24/'LTC Rev-Exp Region 7'!$R$9, 0)","v":{"v":0,"d":"$0.00"}},{"$f":"IFERROR('LTC Rev-Exp Region 7'!$S$24/'LTC Rev-Exp Region 7'!$S$9, 0)","v":{"v":0,"d":"$0.00"}}]
["LTC",null,null,{"$f":"Jurat!I$1","v":0},{"$f":"Jurat!D$33","v":"00:00:00"},"Q4","2017-12-31","Region 7","Operating Expense","Medical Expense","NF & Hospice","2.9","NF & Hospice Settlements",{"$f":"IFERROR('LTC Rev-Exp Region 7'!$P$25/'LTC Rev-Exp Region 7'!$P$9, 0)","v":{"v":0,"d":"$0.00"}},{"$f":"IFERROR('LTC Rev-Exp Region 7'!$Q$25/'LTC Rev-Exp Region 7'!$Q$9, 0)","v":{"v":0,"d":"$0.00"}},{"$f":"IFERROR('LTC Rev-Exp Region 7'!$R$25/'LTC Rev-Exp Region 7'!$R$9, 0)","v":{"v":0,"d":"$0.00"}},{"$f":"IFERROR('LTC Rev-Exp Region 7'!$S$25/'LTC Rev-Exp Region 7'!$S$9, 0)","v":{"v":0,"d":"$0.00"}}]
["LTC",null,null,{"$f":"Jurat!I$1","v":0},{"$f":"Jurat!D$33","v":"00:00:00"},"Q4","2017-12-31","Region 7","Operating Expense","Medical Expense","LTC Services","2.11","Assisted Living FFS",{"$f":"IFERROR('LTC Rev-Exp Region 7'!$P$27/'LTC Rev-Exp Region 7'!$P$9, 0)","v":{"v":0,"d":"$0.00"}},{"$f":"IFERROR('LTC Rev-Exp Region 7'!$Q$27/'LTC Rev-Exp Region 7'!$Q$9, 0)","v":{"v":0,"d":"$0.00"}},{"$f":"IFERROR('LTC Rev-Exp Region 7'!$R$27/'LTC Rev-Exp Region 7'!$R$9, 0)","v":{"v":0,"d":"$0.00"}},{"$f":"IFERROR('LTC Rev-Exp Region 7'!$S$27/'LTC Rev-Exp Region 7'!$S$9, 0)","v":{"v":0,"d":"$0.00"}}]
["LTC",null,null,{"$f":"Jurat!I$1","v":0},{"$f":"Jurat!D$33","v":"00:00:00"},"Q4","2017-12-31","Region 7","Operating Expense","Medical Expense","LTC Services","2.12","Home Health FFS",{"$f":"IFERROR('LTC Rev-Exp Region 7'!$P$28/'LTC Rev-Exp Region 7'!$P$9, 0)","v":{"v":0,"d":"$0.00"}},{"$f":"IFERROR('LTC Rev-Exp Region 7'!$Q$28/'LTC Rev-Exp Region 7'!$Q$9, 0)","v":{"v":0,"d":"$0.00"}},{"$f":"IFERROR('LTC Rev-Exp Region 7'!$R$28/'LTC Rev-Exp Region 7'!$R$9, 0)","v":{"v":0,"d":"$0.00"}},{"$f":"IFERROR('LTC Rev-Exp Region 7'!$S$28/'LTC Rev-Exp Region 7'!$S$9, 0)","v":{"v":0,"d":"$0.00"}}]
["LTC",null,null,{"$f":"Jurat!I$1","v":0},{"$f":"Jurat!D$33","v":"00:00:00"},"Q4","2017-12-31","Region 7","Operating Expense","Medical Expense","LTC Services","2.13","Medical Equipment/Supplies FFS",{"$f":"IFERROR('LTC Rev-Exp Region 7'!$P$29/'LTC Rev-Exp Region 7'!$P$9, 0)","v":{"v":0,"d":"$0.00"}},{"$f":"IFERROR('LTC Rev-Exp Region 7'!$Q$29/'LTC Rev-Exp Region 7'!$Q$9, 0)","v":{"v":0,"d":"$0.00"}},{"$f":"IFERROR('LTC Rev-Exp Region 7'!$R$29/'LTC Rev-Exp Region 7'!$R$9, 0)","v":{"v":0,"d":"$0.00"}},{"$f":"IFERROR('LTC Rev-Exp Region 7'!$S$29/'LTC Rev-Exp Region 7'!$S$9, 0)","v":{"v":0,"d":"$0.00"}}]
["LTC",null,null,{"$f":"Jurat!I$1","v":0},{"$f":"Jurat!D$33","v":"00:00:00"},"Q4","2017-12-31","Region 7","Operating Expense","Medical Expense","LTC Services","2.14","Therapy FFS",{"$f":"IFERROR('LTC Rev-Exp Region 7'!$P$30/'LTC Rev-Exp Region 7'!$P$9, 0)","v":{"v":0,"d":"$0.00"}},{"$f":"IFERROR('LTC Rev-Exp Region 7'!$Q$30/'LTC Rev-Exp Region 7'!$Q$9, 0)","v":{"v":0,"d":"$0.00"}},{"$f":"IFERROR('LTC Rev-Exp Region 7'!$R$30/'LTC Rev-Exp Region 7'!$R$9, 0)","v":{"v":0,"d":"$0.00"}},{"$f":"IFERROR('LTC Rev-Exp Region 7'!$S$30/'LTC Rev-Exp Region 7'!$S$9, 0)","v":{"v":0,"d":"$0.00"}}]
["LTC",null,null,{"$f":"Jurat!I$1","v":0},{"$f":"Jurat!D$33","v":"00:00:00"},"Q4","2017-12-31","Region 7","Operating Expense","Medical Expense","LTC Services","2.15","Transportation FFS",{"$f":"IFERROR('LTC Rev-Exp Region 7'!$P$31/'LTC Rev-Exp Region 7'!$P$9, 0)","v":{"v":0,"d":"$0.00"}},{"$f":"IFERROR('LTC Rev-Exp Region 7'!$Q$31/'LTC Rev-Exp Region 7'!$Q$9, 0)","v":{"v":0,"d":"$0.00"}},{"$f":"IFERROR('LTC Rev-Exp Region 7'!$R$31/'LTC Rev-Exp Region 7'!$R$9, 0)","v":{"v":0,"d":"$0.00"}},{"$f":"IFERROR('LTC Rev-Exp Region 7'!$S$31/'LTC Rev-Exp Region 7'!$S$9, 0)","v":{"v":0,"d":"$0.00"}}]
["LTC",null,null,{"$f":"Jurat!I$1","v":0},{"$f":"Jurat!D$33","v":"00:00:00"},"Q4","2017-12-31","Region 7","Operating Expense","Medical Expense","LTC Services","2.16","Case Management FFS (Plan Provided)",{"$f":"IFERROR('LTC Rev-Exp Region 7'!$P$32/'LTC Rev-Exp Region 7'!$P$9, 0)","v":{"v":0,"d":"$0.00"}},{"$f":"IFERROR('LTC Rev-Exp Region 7'!$Q$32/'LTC Rev-Exp Region 7'!$Q$9, 0)","v":{"v":0,"d":"$0.00"}},{"$f":"IFERROR('LTC Rev-Exp Region 7'!$R$32/'LTC Rev-Exp Region 7'!$R$9, 0)","v":{"v":0,"d":"$0.00"}},{"$f":"IFERROR('LTC Rev-Exp Region 7'!$S$32/'LTC Rev-Exp Region 7'!$S$9, 0)","v":{"v":0,"d":"$0.00"}}]
["LTC",null,null,{"$f":"Jurat!I$1","v":0},{"$f":"Jurat!D$33","v":"00:00:00"},"Q4","2017-12-31","Region 7","Operating Expense","Medical Expense","LTC Services","2.17","Case Management FF (Non-Plan Provided)",{"$f":"IFERROR('LTC Rev-Exp Region 7'!$P$33/'LTC Rev-Exp Region 7'!$P$9, 0)","v":{"v":0,"d":"$0.00"}},{"$f":"IFERROR('LTC Rev-Exp Region 7'!$Q$33/'LTC Rev-Exp Region 7'!$Q$9, 0)","v":{"v":0,"d":"$0.00"}},{"$f":"IFERROR('LTC Rev-Exp Region 7'!$R$33/'LTC Rev-Exp Region 7'!$R$9, 0)","v":{"v":0,"d":"$0.00"}},{"$f":"IFERROR('LTC Rev-Exp Region 7'!$S$33/'LTC Rev-Exp Region 7'!$S$9, 0)","v":{"v":0,"d":"$0.00"}}]
["LTC",null,null,{"$f":"Jurat!I$1","v":0},{"$f":"Jurat!D$33","v":"00:00:00"},"Q4","2017-12-31","Region 7","Operating Expense","Medical Expense","LTC Services","2.18","HCBS FFS",{"$f":"IFERROR('LTC Rev-Exp Region 7'!$P$34/'LTC Rev-Exp Region 7'!$P$9, 0)","v":{"v":0,"d":"$0.00"}},{"$f":"IFERROR('LTC Rev-Exp Region 7'!$Q$34/'LTC Rev-Exp Region 7'!$Q$9, 0)","v":{"v":0,"d":"$0.00"}},{"$f":"IFERROR('LTC Rev-Exp Region 7'!$R$34/'LTC Rev-Exp Region 7'!$R$9, 0)","v":{"v":0,"d":"$0.00"}},{"$f":"IFERROR('LTC Rev-Exp Region 7'!$S$34/'LTC Rev-Exp Region 7'!$S$9, 0)","v":{"v":0,"d":"$0.00"}}]
["LTC",null,null,{"$f":"Jurat!I$1","v":0},{"$f":"Jurat!D$33","v":"00:00:00"},"Q4","2017-12-31","Region 7","Operating Expense","Medical Expense","LTC Services","2.19","Subcapitated LTC Services",{"$f":"IFERROR('LTC Rev-Exp Region 7'!$P$35/'LTC Rev-Exp Region 7'!$P$9, 0)","v":{"v":0,"d":"$0.00"}},{"$f":"IFERROR('LTC Rev-Exp Region 7'!$Q$35/'LTC Rev-Exp Region 7'!$Q$9, 0)","v":{"v":0,"d":"$0.00"}},{"$f":"IFERROR('LTC Rev-Exp Region 7'!$R$35/'LTC Rev-Exp Region 7'!$R$9, 0)","v":{"v":0,"d":"$0.00"}},{"$f":"IFERROR('LTC Rev-Exp Region 7'!$S$35/'LTC Rev-Exp Region 7'!$S$9, 0)","v":{"v":0,"d":"$0.00"}}]
["LTC",null,null,{"$f":"Jurat!I$1","v":0},{"$f":"Jurat!D$33","v":"00:00:00"},"Q4","2017-12-31","Region 7","Operating Expense","Medical Expense","LTC Services","2.20","Ending IBNP for Long Term Care Services",{"$f":"IFERROR('LTC Rev-Exp Region 7'!$P$36/'LTC Rev-Exp Region 7'!$P$9, 0)","v":{"v":0,"d":"$0.00"}},{"$f":"IFERROR('LTC Rev-Exp Region 7'!$Q$36/'LTC Rev-Exp Region 7'!$Q$9, 0)","v":{"v":0,"d":"$0.00"}},{"$f":"IFERROR('LTC Rev-Exp Region 7'!$R$36/'LTC Rev-Exp Region 7'!$R$9, 0)","v":{"v":0,"d":"$0.00"}},{"$f":"IFERROR('LTC Rev-Exp Region 7'!$S$36/'LTC Rev-Exp Region 7'!$S$9, 0)","v":{"v":0,"d":"$0.00"}}]
["LTC",null,null,{"$f":"Jurat!I$1","v":0},{"$f":"Jurat!D$33","v":"00:00:00"},"Q4","2017-12-31","Region 7","Operating Expense","Medical Expense","LTC Services","2.21","LTC Services Settlements",{"$f":"IFERROR('LTC Rev-Exp Region 7'!$P$37/'LTC Rev-Exp Region 7'!$P$9, 0)","v":{"v":0,"d":"$0.00"}},{"$f":"IFERROR('LTC Rev-Exp Region 7'!$Q$37/'LTC Rev-Exp Region 7'!$Q$9, 0)","v":{"v":0,"d":"$0.00"}},{"$f":"IFERROR('LTC Rev-Exp Region 7'!$R$37/'LTC Rev-Exp Region 7'!$R$9, 0)","v":{"v":0,"d":"$0.00"}},{"$f":"IFERROR('LTC Rev-Exp Region 7'!$S$37/'LTC Rev-Exp Region 7'!$S$9, 0)","v":{"v":0,"d":"$0.00"}}]
["LTC",null,null,{"$f":"Jurat!I$1","v":0},{"$f":"Jurat!D$33","v":"00:00:00"},"Q4","2017-12-31","Region 7","Operating Expense","Medical Expense","Expanded Benefits","3.1","Expanded Benefits FFS",{"$f":"IFERROR('LTC Rev-Exp Region 7'!$P$39/'LTC Rev-Exp Region 7'!$P$9, 0)","v":{"v":0,"d":"$0.00"}},{"$f":"IFERROR('LTC Rev-Exp Region 7'!$Q$39/'LTC Rev-Exp Region 7'!$Q$9, 0)","v":{"v":0,"d":"$0.00"}},{"$f":"IFERROR('LTC Rev-Exp Region 7'!$R$39/'LTC Rev-Exp Region 7'!$R$9, 0)","v":{"v":0,"d":"$0.00"}},{"$f":"IFERROR('LTC Rev-Exp Region 7'!$S$39/'LTC Rev-Exp Region 7'!$S$9, 0)","v":{"v":0,"d":"$0.00"}}]
["LTC",null,null,{"$f":"Jurat!I$1","v":0},{"$f":"Jurat!D$33","v":"00:00:00"},"Q4","2017-12-31","Region 7","Operating Expense","Medical Expense","Expanded Benefits","3.2","Expanded Benefits Subcapitation",{"$f":"IFERROR('LTC Rev-Exp Region 7'!$P$40/'LTC Rev-Exp Region 7'!$P$9, 0)","v":{"v":0,"d":"$0.00"}},{"$f":"IFERROR('LTC Rev-Exp Region 7'!$Q$40/'LTC Rev-Exp Region 7'!$Q$9, 0)","v":{"v":0,"d":"$0.00"}},{"$f":"IFERROR('LTC Rev-Exp Region 7'!$R$40/'LTC Rev-Exp Region 7'!$R$9, 0)","v":{"v":0,"d":"$0.00"}},{"$f":"IFERROR('LTC Rev-Exp Region 7'!$S$40/'LTC Rev-Exp Region 7'!$S$9, 0)","v":{"v":0,"d":"$0.00"}}]
["LTC",null,null,{"$f":"Jurat!I$1","v":0},{"$f":"Jurat!D$33","v":"00:00:00"},"Q4","2017-12-31","Region 7","Operating Expense","Medical Expense","Expanded Benefits","3.3","Ending IBNP for Expanded Benefits",{"$f":"IFERROR('LTC Rev-Exp Region 7'!$P$41/'LTC Rev-Exp Region 7'!$P$9, 0)","v":{"v":0,"d":"$0.00"}},{"$f":"IFERROR('LTC Rev-Exp Region 7'!$Q$41/'LTC Rev-Exp Region 7'!$Q$9, 0)","v":{"v":0,"d":"$0.00"}},{"$f":"IFERROR('LTC Rev-Exp Region 7'!$R$41/'LTC Rev-Exp Region 7'!$R$9, 0)","v":{"v":0,"d":"$0.00"}},{"$f":"IFERROR('LTC Rev-Exp Region 7'!$S$41/'LTC Rev-Exp Region 7'!$S$9, 0)","v":{"v":0,"d":"$0.00"}}]
["LTC",null,null,{"$f":"Jurat!I$1","v":0},{"$f":"Jurat!D$33","v":"00:00:00"},"Q4","2017-12-31","Region 7","Operating Expense","Medical Expense","Expanded Benefits","3.4","Expanded Benefits Settlements",{"$f":"IFERROR('LTC Rev-Exp Region 7'!$P$42/'LTC Rev-Exp Region 7'!$P$9, 0)","v":{"v":0,"d":"$0.00"}},{"$f":"IFERROR('LTC Rev-Exp Region 7'!$Q$42/'LTC Rev-Exp Region 7'!$Q$9, 0)","v":{"v":0,"d":"$0.00"}},{"$f":"IFERROR('LTC Rev-Exp Region 7'!$R$42/'LTC Rev-Exp Region 7'!$R$9, 0)","v":{"v":0,"d":"$0.00"}},{"$f":"IFERROR('LTC Rev-Exp Region 7'!$S$42/'LTC Rev-Exp Region 7'!$S$9, 0)","v":{"v":0,"d":"$0.00"}}]
["LTC",null,null,{"$f":"Jurat!I$1","v":0},{"$f":"Jurat!D$33","v":"00:00:00"},"Q4","2017-12-31","Region 7","Operating Expense","Medical Expense","Other Medical","4.5","TPL & Fraud/Abuse Recoveries",{"$f":"IFERROR('LTC Rev-Exp Region 7'!$P$48/'LTC Rev-Exp Region 7'!$P$9, 0)","v":{"v":0,"d":"$0.00"}},{"$f":"IFERROR('LTC Rev-Exp Region 7'!$Q$48/'LTC Rev-Exp Region 7'!$Q$9, 0)","v":{"v":0,"d":"$0.00"}},{"$f":"IFERROR('LTC Rev-Exp Region 7'!$R$48/'LTC Rev-Exp Region 7'!$R$9, 0)","v":{"v":0,"d":"$0.00"}},{"$f":"IFERROR('LTC Rev-Exp Region 7'!$S$48/'LTC Rev-Exp Region 7'!$S$9, 0)","v":{"v":0,"d":"$0.00"}}]
["LTC",null,null,{"$f":"Jurat!I$1","v":0},{"$f":"Jurat!D$33","v":"00:00:00"},"Q4","2017-12-31","Region 7","Operating Expense","Medical Expense","Other Medical","4.6.1","Premium Deficiency Reserve",{"$f":"IFERROR('LTC Rev-Exp Region 7'!$P$49/'LTC Rev-Exp Region 7'!$P$9, 0)","v":{"v":0,"d":"$0.00"}},{"$f":"IFERROR('LTC Rev-Exp Region 7'!$Q$49/'LTC Rev-Exp Region 7'!$Q$9, 0)","v":{"v":0,"d":"$0.00"}},{"$f":"IFERROR('LTC Rev-Exp Region 7'!$R$49/'LTC Rev-Exp Region 7'!$R$9, 0)","v":{"v":0,"d":"$0.00"}},{"$f":"IFERROR('LTC Rev-Exp Region 7'!$S$49/'LTC Rev-Exp Region 7'!$S$9, 0)","v":{"v":0,"d":"$0.00"}}]
["LTC",null,null,{"$f":"Jurat!I$1","v":0},{"$f":"Jurat!D$33","v":"00:00:00"},"Q4","2017-12-31","Region 7","Operating Expense","Medical Expense","Other Medical","4.8","Reinsurance Premiums",{"$f":"IFERROR('LTC Rev-Exp Region 7'!$P$51/'LTC Rev-Exp Region 7'!$P$9, 0)","v":{"v":0,"d":"$0.00"}},{"$f":"IFERROR('LTC Rev-Exp Region 7'!$Q$51/'LTC Rev-Exp Region 7'!$Q$9, 0)","v":{"v":0,"d":"$0.00"}},{"$f":"IFERROR('LTC Rev-Exp Region 7'!$R$51/'LTC Rev-Exp Region 7'!$R$9, 0)","v":{"v":0,"d":"$0.00"}},{"$f":"IFERROR('LTC Rev-Exp Region 7'!$S$51/'LTC Rev-Exp Region 7'!$S$9, 0)","v":{"v":0,"d":"$0.00"}}]
["LTC",null,null,{"$f":"Jurat!I$1","v":0},{"$f":"Jurat!D$33","v":"00:00:00"},"Q4","2017-12-31","Region 7","Operating Expense","Medical Expense","Other Medical","4.9","Reinsurance Recoveries",{"$f":"IFERROR('LTC Rev-Exp Region 7'!$P$52/'LTC Rev-Exp Region 7'!$P$9, 0)","v":{"v":0,"d":"$0.00"}},{"$f":"IFERROR('LTC Rev-Exp Region 7'!$Q$52/'LTC Rev-Exp Region 7'!$Q$9, 0)","v":{"v":0,"d":"$0.00"}},{"$f":"IFERROR('LTC Rev-Exp Region 7'!$R$52/'LTC Rev-Exp Region 7'!$R$9, 0)","v":{"v":0,"d":"$0.00"}},{"$f":"IFERROR('LTC Rev-Exp Region 7'!$S$52/'LTC Rev-Exp Region 7'!$S$9, 0)","v":{"v":0,"d":"$0.00"}}]
["LTC",null,null,{"$f":"Jurat!I$1","v":0},{"$f":"Jurat!D$33","v":"00:00:00"},"Q4","2017-12-31","Region 7","Operating Expense","Administrative Expense","Administrative","5.1","Salaries & Benefits",{"$f":"IFERROR('LTC Rev-Exp Region 7'!$P$57/'LTC Rev-Exp Region 7'!$P$9, 0)","v":{"v":0,"d":"$0.00"}},{"$f":"IFERROR('LTC Rev-Exp Region 7'!$Q$57/'LTC Rev-Exp Region 7'!$Q$9, 0)","v":{"v":0,"d":"$0.00"}},{"$f":"IFERROR('LTC Rev-Exp Region 7'!$R$57/'LTC Rev-Exp Region 7'!$R$9, 0)","v":{"v":0,"d":"$0.00"}},{"$f":"IFERROR('LTC Rev-Exp Region 7'!$S$57/'LTC Rev-Exp Region 7'!$S$9, 0)","v":{"v":0,"d":"$0.00"}}]
["LTC",null,null,{"$f":"Jurat!I$1","v":0},{"$f":"Jurat!D$33","v":"00:00:00"},"Q4","2017-12-31","Region 7","Operating Expense","Administrative Expense","Administrative","5.2","Administrative Services",{"$f":"IFERROR('LTC Rev-Exp Region 7'!$P$58/'LTC Rev-Exp Region 7'!$P$9, 0)","v":{"v":0,"d":"$0.00"}},{"$f":"IFERROR('LTC Rev-Exp Region 7'!$Q$58/'LTC Rev-Exp Region 7'!$Q$9, 0)","v":{"v":0,"d":"$0.00"}},{"$f":"IFERROR('LTC Rev-Exp Region 7'!$R$58/'LTC Rev-Exp Region 7'!$R$9, 0)","v":{"v":0,"d":"$0.00"}},{"$f":"IFERROR('LTC Rev-Exp Region 7'!$S$58/'LTC Rev-Exp Region 7'!$S$9, 0)","v":{"v":0,"d":"$0.00"}}]
["LTC",null,null,{"$f":"Jurat!I$1","v":0},{"$f":"Jurat!D$33","v":"00:00:00"},"Q4","2017-12-31","Region 7","Operating Expense","Administrative Expense","Administrative","5.3","Information Systems",{"$f":"IFERROR('LTC Rev-Exp Region 7'!$P$59/'LTC Rev-Exp Region 7'!$P$9, 0)","v":{"v":0,"d":"$0.00"}},{"$f":"IFERROR('LTC Rev-Exp Region 7'!$Q$59/'LTC Rev-Exp Region 7'!$Q$9, 0)","v":{"v":0,"d":"$0.00"}},{"$f":"IFERROR('LTC Rev-Exp Region 7'!$R$59/'LTC Rev-Exp Region 7'!$R$9, 0)","v":{"v":0,"d":"$0.00"}},{"$f":"IFERROR('LTC Rev-Exp Region 7'!$S$59/'LTC Rev-Exp Region 7'!$S$9, 0)","v":{"v":0,"d":"$0.00"}}]
["LTC",null,null,{"$f":"Jurat!I$1","v":0},{"$f":"Jurat!D$33","v":"00:00:00"},"Q4","2017-12-31","Region 7","Operating Expense","Administrative Expense","Administrative","5.4","Marketing Expenses",{"$f":"IFERROR('LTC Rev-Exp Region 7'!$P$60/'LTC Rev-Exp Region 7'!$P$9, 0)","v":{"v":0,"d":"$0.00"}},{"$f":"IFERROR('LTC Rev-Exp Region 7'!$Q$60/'LTC Rev-Exp Region 7'!$Q$9, 0)","v":{"v":0,"d":"$0.00"}},{"$f":"IFERROR('LTC Rev-Exp Region 7'!$R$60/'LTC Rev-Exp Region 7'!$R$9, 0)","v":{"v":0,"d":"$0.00"}},{"$f":"IFERROR('LTC Rev-Exp Region 7'!$S$60/'LTC Rev-Exp Region 7'!$S$9, 0)","v":{"v":0,"d":"$0.00"}}]
["LTC",null,null,{"$f":"Jurat!I$1","v":0},{"$f":"Jurat!D$33","v":"00:00:00"},"Q4","2017-12-31","Region 7","Operating Expense","Administrative Expense","Administrative","5.5","General  Administration",{"$f":"IFERROR('LTC Rev-Exp Region 7'!$P$61/'LTC Rev-Exp Region 7'!$P$9, 0)","v":{"v":0,"d":"$0.00"}},{"$f":"IFERROR('LTC Rev-Exp Region 7'!$Q$61/'LTC Rev-Exp Region 7'!$Q$9, 0)","v":{"v":0,"d":"$0.00"}},{"$f":"IFERROR('LTC Rev-Exp Region 7'!$R$61/'LTC Rev-Exp Region 7'!$R$9, 0)","v":{"v":0,"d":"$0.00"}},{"$f":"IFERROR('LTC Rev-Exp Region 7'!$S$61/'LTC Rev-Exp Region 7'!$S$9, 0)","v":{"v":0,"d":"$0.00"}}]
["LTC",null,null,{"$f":"Jurat!I$1","v":0},{"$f":"Jurat!D$33","v":"00:00:00"},"Q4","2017-12-31","Region 7","Operating Expense","Administrative Expense","Administrative","5.6","Compliance/Regulatory",{"$f":"IFERROR('LTC Rev-Exp Region 7'!$P$62/'LTC Rev-Exp Region 7'!$P$9, 0)","v":{"v":0,"d":"$0.00"}},{"$f":"IFERROR('LTC Rev-Exp Region 7'!$Q$62/'LTC Rev-Exp Region 7'!$Q$9, 0)","v":{"v":0,"d":"$0.00"}},{"$f":"IFERROR('LTC Rev-Exp Region 7'!$R$62/'LTC Rev-Exp Region 7'!$R$9, 0)","v":{"v":0,"d":"$0.00"}},{"$f":"IFERROR('LTC Rev-Exp Region 7'!$S$62/'LTC Rev-Exp Region 7'!$S$9, 0)","v":{"v":0,"d":"$0.00"}}]
["LTC",null,null,{"$f":"Jurat!I$1","v":0},{"$f":"Jurat!D$33","v":"00:00:00"},"Q4","2017-12-31","Region 7","Operating Expense","Taxes & Fees","Taxes & Fees","6.1","State Premium Tax",{"$f":"IFERROR('LTC Rev-Exp Region 7'!$P$64/'LTC Rev-Exp Region 7'!$P$9, 0)","v":{"v":0,"d":"$0.00"}},{"$f":"IFERROR('LTC Rev-Exp Region 7'!$Q$64/'LTC Rev-Exp Region 7'!$Q$9, 0)","v":{"v":0,"d":"$0.00"}},{"$f":"IFERROR('LTC Rev-Exp Region 7'!$R$64/'LTC Rev-Exp Region 7'!$R$9, 0)","v":{"v":0,"d":"$0.00"}},{"$f":"IFERROR('LTC Rev-Exp Region 7'!$S$64/'LTC Rev-Exp Region 7'!$S$9, 0)","v":{"v":0,"d":"$0.00"}}]
["LTC",null,null,{"$f":"Jurat!I$1","v":0},{"$f":"Jurat!D$33","v":"00:00:00"},"Q4","2017-12-31","Region 7","Operating Expense","Taxes & Fees","Taxes & Fees","6.2","Department of Insurance Assessments",{"$f":"IFERROR('LTC Rev-Exp Region 7'!$P$65/'LTC Rev-Exp Region 7'!$P$9, 0)","v":{"v":0,"d":"$0.00"}},{"$f":"IFERROR('LTC Rev-Exp Region 7'!$Q$65/'LTC Rev-Exp Region 7'!$Q$9, 0)","v":{"v":0,"d":"$0.00"}},{"$f":"IFERROR('LTC Rev-Exp Region 7'!$R$65/'LTC Rev-Exp Region 7'!$R$9, 0)","v":{"v":0,"d":"$0.00"}},{"$f":"IFERROR('LTC Rev-Exp Region 7'!$S$65/'LTC Rev-Exp Region 7'!$S$9, 0)","v":{"v":0,"d":"$0.00"}}]
["LTC",null,null,{"$f":"Jurat!I$1","v":0},{"$f":"Jurat!D$33","v":"00:00:00"},"Q4","2017-12-31","Region 7","Non-Operating Expense","Income Tax Expense","Income Tax Expense","9.0","Income Tax Expense",{"$f":"IFERROR('LTC Rev-Exp Region 7'!$P$72/'LTC Rev-Exp Region 7'!$P$9, 0)","v":{"v":0,"d":"$0.00"}},{"$f":"IFERROR('LTC Rev-Exp Region 7'!$Q$72/'LTC Rev-Exp Region 7'!$Q$9, 0)","v":{"v":0,"d":"$0.00"}},{"$f":"IFERROR('LTC Rev-Exp Region 7'!$R$72/'LTC Rev-Exp Region 7'!$R$9, 0)","v":{"v":0,"d":"$0.00"}},{"$f":"IFERROR('LTC Rev-Exp Region 7'!$S$72/'LTC Rev-Exp Region 7'!$S$9, 0)","v":{"v":0,"d":"$0.00"}}]
["LTC",null,null,{"$f":"Jurat!I$1","v":0},{"$f":"Jurat!D$33","v":"00:00:00"},"Q1","2017-03-31","Region 8","Operating Revenue","Capitation","Capitation",1.1,"Capitation",{"$f":"IFERROR('LTC Rev-Exp Region 8'!$D$11/'LTC Rev-Exp Region 8'!$D$9, 0)","v":{"v":0,"d":"$0.00"}},{"$f":"IFERROR('LTC Rev-Exp Region 8'!$E$11/'LTC Rev-Exp Region 8'!$E$9, 0)","v":{"v":0,"d":"$0.00"}},{"$f":"IFERROR('LTC Rev-Exp Region 8'!$F$11/'LTC Rev-Exp Region 8'!$F$9, 0)","v":{"v":0,"d":"$0.00"}},{"$f":"IFERROR('LTC Rev-Exp Region 8'!$G$11/'LTC Rev-Exp Region 8'!$G$9, 0)","v":{"v":0,"d":"$0.00"}}]
["LTC",null,null,{"$f":"Jurat!I$1","v":0},{"$f":"Jurat!D$33","v":"00:00:00"},"Q1","2017-03-31","Region 8","Operating Revenue","Capitation","NH Rate Reconciliation",1.2,"NH Rate Reconciliation",{"$f":"IFERROR('LTC Rev-Exp Region 8'!$D$12/'LTC Rev-Exp Region 8'!$D$9, 0)","v":{"v":0,"d":"$0.00"}},{"$f":"IFERROR('LTC Rev-Exp Region 8'!$E$12/'LTC Rev-Exp Region 8'!$E$9, 0)","v":{"v":0,"d":"$0.00"}},{"$f":"IFERROR('LTC Rev-Exp Region 8'!$F$12/'LTC Rev-Exp Region 8'!$F$9, 0)","v":{"v":0,"d":"$0.00"}},{"$f":"IFERROR('LTC Rev-Exp Region 8'!$G$12/'LTC Rev-Exp Region 8'!$G$9, 0)","v":{"v":0,"d":"$0.00"}}]
["LTC",null,null,{"$f":"Jurat!I$1","v":0},{"$f":"Jurat!D$33","v":"00:00:00"},"Q1","2017-03-31","Region 8","Operating Revenue","Other Revenue","Other Revenue",1.3,"Other Revenue",{"$f":"IFERROR('LTC Rev-Exp Region 8'!$D$13/'LTC Rev-Exp Region 8'!$D$9, 0)","v":{"v":0,"d":"$0.00"}},{"$f":"IFERROR('LTC Rev-Exp Region 8'!$E$13/'LTC Rev-Exp Region 8'!$E$9, 0)","v":{"v":0,"d":"$0.00"}},{"$f":"IFERROR('LTC Rev-Exp Region 8'!$F$13/'LTC Rev-Exp Region 8'!$F$9, 0)","v":{"v":0,"d":"$0.00"}},{"$f":"IFERROR('LTC Rev-Exp Region 8'!$G$13/'LTC Rev-Exp Region 8'!$G$9, 0)","v":{"v":0,"d":"$0.00"}}]
["LTC",null,null,{"$f":"Jurat!I$1","v":0},{"$f":"Jurat!D$33","v":"00:00:00"},"Q1","2017-03-31","Region 8","Operating Expense","Medical Expense","NF & Hospice","2.3","Nursing Facility FFS (Medicaid)",{"$f":"IFERROR('LTC Rev-Exp Region 8'!$D$19/'LTC Rev-Exp Region 8'!$D$9, 0)","v":{"v":0,"d":"$0.00"}},{"$f":"IFERROR('LTC Rev-Exp Region 8'!$E$19/'LTC Rev-Exp Region 8'!$E$9, 0)","v":{"v":0,"d":"$0.00"}},{"$f":"IFERROR('LTC Rev-Exp Region 8'!$F$19/'LTC Rev-Exp Region 8'!$F$9, 0)","v":{"v":0,"d":"$0.00"}},{"$f":"IFERROR('LTC Rev-Exp Region 8'!$G$19/'LTC Rev-Exp Region 8'!$G$9, 0)","v":{"v":0,"d":"$0.00"}}]
["LTC",null,null,{"$f":"Jurat!I$1","v":0},{"$f":"Jurat!D$33","v":"00:00:00"},"Q1","2017-03-31","Region 8","Operating Expense","Medical Expense","NF & Hospice","2.4","Nursing Facility FFS (Crossover)",{"$f":"IFERROR('LTC Rev-Exp Region 8'!$D$20/'LTC Rev-Exp Region 8'!$D$9, 0)","v":{"v":0,"d":"$0.00"}},{"$f":"IFERROR('LTC Rev-Exp Region 8'!$E$20/'LTC Rev-Exp Region 8'!$E$9, 0)","v":{"v":0,"d":"$0.00"}},{"$f":"IFERROR('LTC Rev-Exp Region 8'!$F$20/'LTC Rev-Exp Region 8'!$F$9, 0)","v":{"v":0,"d":"$0.00"}},{"$f":"IFERROR('LTC Rev-Exp Region 8'!$G$20/'LTC Rev-Exp Region 8'!$G$9, 0)","v":{"v":0,"d":"$0.00"}}]
["LTC",null,null,{"$f":"Jurat!I$1","v":0},{"$f":"Jurat!D$33","v":"00:00:00"},"Q1","2017-03-31","Region 8","Operating Expense","Medical Expense","NF & Hospice","2.6","Hospice FFS",{"$f":"IFERROR('LTC Rev-Exp Region 8'!$D$22/'LTC Rev-Exp Region 8'!$D$9, 0)","v":{"v":0,"d":"$0.00"}},{"$f":"IFERROR('LTC Rev-Exp Region 8'!$E$22/'LTC Rev-Exp Region 8'!$E$9, 0)","v":{"v":0,"d":"$0.00"}},{"$f":"IFERROR('LTC Rev-Exp Region 8'!$F$22/'LTC Rev-Exp Region 8'!$F$9, 0)","v":{"v":0,"d":"$0.00"}},{"$f":"IFERROR('LTC Rev-Exp Region 8'!$G$22/'LTC Rev-Exp Region 8'!$G$9, 0)","v":{"v":0,"d":"$0.00"}}]
["LTC",null,null,{"$f":"Jurat!I$1","v":0},{"$f":"Jurat!D$33","v":"00:00:00"},"Q1","2017-03-31","Region 8","Operating Expense","Medical Expense","NF & Hospice","2.7","Ending IBNP for NF & Hospice",{"$f":"IFERROR('LTC Rev-Exp Region 8'!$D$23/'LTC Rev-Exp Region 8'!$D$9, 0)","v":{"v":0,"d":"$0.00"}},{"$f":"IFERROR('LTC Rev-Exp Region 8'!$E$23/'LTC Rev-Exp Region 8'!$E$9, 0)","v":{"v":0,"d":"$0.00"}},{"$f":"IFERROR('LTC Rev-Exp Region 8'!$F$23/'LTC Rev-Exp Region 8'!$F$9, 0)","v":{"v":0,"d":"$0.00"}},{"$f":"IFERROR('LTC Rev-Exp Region 8'!$G$23/'LTC Rev-Exp Region 8'!$G$9, 0)","v":{"v":0,"d":"$0.00"}}]
["LTC",null,null,{"$f":"Jurat!I$1","v":0},{"$f":"Jurat!D$33","v":"00:00:00"},"Q1","2017-03-31","Region 8","Operating Expense","Medical Expense","NF & Hospice","2.8","NF & Hospice Subcapitated",{"$f":"IFERROR('LTC Rev-Exp Region 8'!$D$24/'LTC Rev-Exp Region 8'!$D$9, 0)","v":{"v":0,"d":"$0.00"}},{"$f":"IFERROR('LTC Rev-Exp Region 8'!$E$24/'LTC Rev-Exp Region 8'!$E$9, 0)","v":{"v":0,"d":"$0.00"}},{"$f":"IFERROR('LTC Rev-Exp Region 8'!$F$24/'LTC Rev-Exp Region 8'!$F$9, 0)","v":{"v":0,"d":"$0.00"}},{"$f":"IFERROR('LTC Rev-Exp Region 8'!$G$24/'LTC Rev-Exp Region 8'!$G$9, 0)","v":{"v":0,"d":"$0.00"}}]
["LTC",null,null,{"$f":"Jurat!I$1","v":0},{"$f":"Jurat!D$33","v":"00:00:00"},"Q1","2017-03-31","Region 8","Operating Expense","Medical Expense","NF & Hospice","2.9","NF & Hospice Settlements",{"$f":"IFERROR('LTC Rev-Exp Region 8'!$D$25/'LTC Rev-Exp Region 8'!$D$9, 0)","v":{"v":0,"d":"$0.00"}},{"$f":"IFERROR('LTC Rev-Exp Region 8'!$E$25/'LTC Rev-Exp Region 8'!$E$9, 0)","v":{"v":0,"d":"$0.00"}},{"$f":"IFERROR('LTC Rev-Exp Region 8'!$F$25/'LTC Rev-Exp Region 8'!$F$9, 0)","v":{"v":0,"d":"$0.00"}},{"$f":"IFERROR('LTC Rev-Exp Region 8'!$G$25/'LTC Rev-Exp Region 8'!$G$9, 0)","v":{"v":0,"d":"$0.00"}}]
["LTC",null,null,{"$f":"Jurat!I$1","v":0},{"$f":"Jurat!D$33","v":"00:00:00"},"Q1","2017-03-31","Region 8","Operating Expense","Medical Expense","LTC Services","2.11","Assisted Living FFS",{"$f":"IFERROR('LTC Rev-Exp Region 8'!$D$27/'LTC Rev-Exp Region 8'!$D$9, 0)","v":{"v":0,"d":"$0.00"}},{"$f":"IFERROR('LTC Rev-Exp Region 8'!$E$27/'LTC Rev-Exp Region 8'!$E$9, 0)","v":{"v":0,"d":"$0.00"}},{"$f":"IFERROR('LTC Rev-Exp Region 8'!$F$27/'LTC Rev-Exp Region 8'!$F$9, 0)","v":{"v":0,"d":"$0.00"}},{"$f":"IFERROR('LTC Rev-Exp Region 8'!$G$27/'LTC Rev-Exp Region 8'!$G$9, 0)","v":{"v":0,"d":"$0.00"}}]
["LTC",null,null,{"$f":"Jurat!I$1","v":0},{"$f":"Jurat!D$33","v":"00:00:00"},"Q1","2017-03-31","Region 8","Operating Expense","Medical Expense","LTC Services","2.12","Home Health FFS",{"$f":"IFERROR('LTC Rev-Exp Region 8'!$D$28/'LTC Rev-Exp Region 8'!$D$9, 0)","v":{"v":0,"d":"$0.00"}},{"$f":"IFERROR('LTC Rev-Exp Region 8'!$E$28/'LTC Rev-Exp Region 8'!$E$9, 0)","v":{"v":0,"d":"$0.00"}},{"$f":"IFERROR('LTC Rev-Exp Region 8'!$F$28/'LTC Rev-Exp Region 8'!$F$9, 0)","v":{"v":0,"d":"$0.00"}},{"$f":"IFERROR('LTC Rev-Exp Region 8'!$G$28/'LTC Rev-Exp Region 8'!$G$9, 0)","v":{"v":0,"d":"$0.00"}}]
["LTC",null,null,{"$f":"Jurat!I$1","v":0},{"$f":"Jurat!D$33","v":"00:00:00"},"Q1","2017-03-31","Region 8","Operating Expense","Medical Expense","LTC Services","2.13","Medical Equipment/Supplies FFS",{"$f":"IFERROR('LTC Rev-Exp Region 8'!$D$29/'LTC Rev-Exp Region 8'!$D$9, 0)","v":{"v":0,"d":"$0.00"}},{"$f":"IFERROR('LTC Rev-Exp Region 8'!$E$29/'LTC Rev-Exp Region 8'!$E$9, 0)","v":{"v":0,"d":"$0.00"}},{"$f":"IFERROR('LTC Rev-Exp Region 8'!$F$29/'LTC Rev-Exp Region 8'!$F$9, 0)","v":{"v":0,"d":"$0.00"}},{"$f":"IFERROR('LTC Rev-Exp Region 8'!$G$29/'LTC Rev-Exp Region 8'!$G$9, 0)","v":{"v":0,"d":"$0.00"}}]
["LTC",null,null,{"$f":"Jurat!I$1","v":0},{"$f":"Jurat!D$33","v":"00:00:00"},"Q1","2017-03-31","Region 8","Operating Expense","Medical Expense","LTC Services","2.14","Therapy FFS",{"$f":"IFERROR('LTC Rev-Exp Region 8'!$D$30/'LTC Rev-Exp Region 8'!$D$9, 0)","v":{"v":0,"d":"$0.00"}},{"$f":"IFERROR('LTC Rev-Exp Region 8'!$E$30/'LTC Rev-Exp Region 8'!$E$9, 0)","v":{"v":0,"d":"$0.00"}},{"$f":"IFERROR('LTC Rev-Exp Region 8'!$F$30/'LTC Rev-Exp Region 8'!$F$9, 0)","v":{"v":0,"d":"$0.00"}},{"$f":"IFERROR('LTC Rev-Exp Region 8'!$G$30/'LTC Rev-Exp Region 8'!$G$9, 0)","v":{"v":0,"d":"$0.00"}}]
["LTC",null,null,{"$f":"Jurat!I$1","v":0},{"$f":"Jurat!D$33","v":"00:00:00"},"Q1","2017-03-31","Region 8","Operating Expense","Medical Expense","LTC Services","2.15","Transportation FFS",{"$f":"IFERROR('LTC Rev-Exp Region 8'!$D$31/'LTC Rev-Exp Region 8'!$D$9, 0)","v":{"v":0,"d":"$0.00"}},{"$f":"IFERROR('LTC Rev-Exp Region 8'!$E$31/'LTC Rev-Exp Region 8'!$E$9, 0)","v":{"v":0,"d":"$0.00"}},{"$f":"IFERROR('LTC Rev-Exp Region 8'!$F$31/'LTC Rev-Exp Region 8'!$F$9, 0)","v":{"v":0,"d":"$0.00"}},{"$f":"IFERROR('LTC Rev-Exp Region 8'!$G$31/'LTC Rev-Exp Region 8'!$G$9, 0)","v":{"v":0,"d":"$0.00"}}]
["LTC",null,null,{"$f":"Jurat!I$1","v":0},{"$f":"Jurat!D$33","v":"00:00:00"},"Q1","2017-03-31","Region 8","Operating Expense","Medical Expense","LTC Services","2.16","Case Management FFS (Plan Provided)",{"$f":"IFERROR('LTC Rev-Exp Region 8'!$D$32/'LTC Rev-Exp Region 8'!$D$9, 0)","v":{"v":0,"d":"$0.00"}},{"$f":"IFERROR('LTC Rev-Exp Region 8'!$E$32/'LTC Rev-Exp Region 8'!$E$9, 0)","v":{"v":0,"d":"$0.00"}},{"$f":"IFERROR('LTC Rev-Exp Region 8'!$F$32/'LTC Rev-Exp Region 8'!$F$9, 0)","v":{"v":0,"d":"$0.00"}},{"$f":"IFERROR('LTC Rev-Exp Region 8'!$G$32/'LTC Rev-Exp Region 8'!$G$9, 0)","v":{"v":0,"d":"$0.00"}}]
["LTC",null,null,{"$f":"Jurat!I$1","v":0},{"$f":"Jurat!D$33","v":"00:00:00"},"Q1","2017-03-31","Region 8","Operating Expense","Medical Expense","LTC Services","2.17","Case Management FF (Non-Plan Provided)",{"$f":"IFERROR('LTC Rev-Exp Region 8'!$D$33/'LTC Rev-Exp Region 8'!$D$9, 0)","v":{"v":0,"d":"$0.00"}},{"$f":"IFERROR('LTC Rev-Exp Region 8'!$E$33/'LTC Rev-Exp Region 8'!$E$9, 0)","v":{"v":0,"d":"$0.00"}},{"$f":"IFERROR('LTC Rev-Exp Region 8'!$F$33/'LTC Rev-Exp Region 8'!$F$9, 0)","v":{"v":0,"d":"$0.00"}},{"$f":"IFERROR('LTC Rev-Exp Region 8'!$G$33/'LTC Rev-Exp Region 8'!$G$9, 0)","v":{"v":0,"d":"$0.00"}}]
["LTC",null,null,{"$f":"Jurat!I$1","v":0},{"$f":"Jurat!D$33","v":"00:00:00"},"Q1","2017-03-31","Region 8","Operating Expense","Medical Expense","LTC Services","2.18","HCBS FFS",{"$f":"IFERROR('LTC Rev-Exp Region 8'!$D$34/'LTC Rev-Exp Region 8'!$D$9, 0)","v":{"v":0,"d":"$0.00"}},{"$f":"IFERROR('LTC Rev-Exp Region 8'!$E$34/'LTC Rev-Exp Region 8'!$E$9, 0)","v":{"v":0,"d":"$0.00"}},{"$f":"IFERROR('LTC Rev-Exp Region 8'!$F$34/'LTC Rev-Exp Region 8'!$F$9, 0)","v":{"v":0,"d":"$0.00"}},{"$f":"IFERROR('LTC Rev-Exp Region 8'!$G$34/'LTC Rev-Exp Region 8'!$G$9, 0)","v":{"v":0,"d":"$0.00"}}]
["LTC",null,null,{"$f":"Jurat!I$1","v":0},{"$f":"Jurat!D$33","v":"00:00:00"},"Q1","2017-03-31","Region 8","Operating Expense","Medical Expense","LTC Services","2.19","Subcapitated LTC Services",{"$f":"IFERROR('LTC Rev-Exp Region 8'!$D$35/'LTC Rev-Exp Region 8'!$D$9, 0)","v":{"v":0,"d":"$0.00"}},{"$f":"IFERROR('LTC Rev-Exp Region 8'!$E$35/'LTC Rev-Exp Region 8'!$E$9, 0)","v":{"v":0,"d":"$0.00"}},{"$f":"IFERROR('LTC Rev-Exp Region 8'!$F$35/'LTC Rev-Exp Region 8'!$F$9, 0)","v":{"v":0,"d":"$0.00"}},{"$f":"IFERROR('LTC Rev-Exp Region 8'!$G$35/'LTC Rev-Exp Region 8'!$G$9, 0)","v":{"v":0,"d":"$0.00"}}]
["LTC",null,null,{"$f":"Jurat!I$1","v":0},{"$f":"Jurat!D$33","v":"00:00:00"},"Q1","2017-03-31","Region 8","Operating Expense","Medical Expense","LTC Services","2.20","Ending IBNP for Long Term Care Services",{"$f":"IFERROR('LTC Rev-Exp Region 8'!$D$36/'LTC Rev-Exp Region 8'!$D$9, 0)","v":{"v":0,"d":"$0.00"}},{"$f":"IFERROR('LTC Rev-Exp Region 8'!$E$36/'LTC Rev-Exp Region 8'!$E$9, 0)","v":{"v":0,"d":"$0.00"}},{"$f":"IFERROR('LTC Rev-Exp Region 8'!$F$36/'LTC Rev-Exp Region 8'!$F$9, 0)","v":{"v":0,"d":"$0.00"}},{"$f":"IFERROR('LTC Rev-Exp Region 8'!$G$36/'LTC Rev-Exp Region 8'!$G$9, 0)","v":{"v":0,"d":"$0.00"}}]
["LTC",null,null,{"$f":"Jurat!I$1","v":0},{"$f":"Jurat!D$33","v":"00:00:00"},"Q1","2017-03-31","Region 8","Operating Expense","Medical Expense","LTC Services","2.21","LTC Services Settlements",{"$f":"IFERROR('LTC Rev-Exp Region 8'!$D$37/'LTC Rev-Exp Region 8'!$D$9, 0)","v":{"v":0,"d":"$0.00"}},{"$f":"IFERROR('LTC Rev-Exp Region 8'!$E$37/'LTC Rev-Exp Region 8'!$E$9, 0)","v":{"v":0,"d":"$0.00"}},{"$f":"IFERROR('LTC Rev-Exp Region 8'!$F$37/'LTC Rev-Exp Region 8'!$F$9, 0)","v":{"v":0,"d":"$0.00"}},{"$f":"IFERROR('LTC Rev-Exp Region 8'!$G$37/'LTC Rev-Exp Region 8'!$G$9, 0)","v":{"v":0,"d":"$0.00"}}]
["LTC",null,null,{"$f":"Jurat!I$1","v":0},{"$f":"Jurat!D$33","v":"00:00:00"},"Q1","2017-03-31","Region 8","Operating Expense","Medical Expense","Expanded Benefits","3.1","Expanded Benefits FFS",{"$f":"IFERROR('LTC Rev-Exp Region 8'!$D$39/'LTC Rev-Exp Region 8'!$D$9, 0)","v":{"v":0,"d":"$0.00"}},{"$f":"IFERROR('LTC Rev-Exp Region 8'!$E$39/'LTC Rev-Exp Region 8'!$E$9, 0)","v":{"v":0,"d":"$0.00"}},{"$f":"IFERROR('LTC Rev-Exp Region 8'!$F$39/'LTC Rev-Exp Region 8'!$F$9, 0)","v":{"v":0,"d":"$0.00"}},{"$f":"IFERROR('LTC Rev-Exp Region 8'!$G$39/'LTC Rev-Exp Region 8'!$G$9, 0)","v":{"v":0,"d":"$0.00"}}]
["LTC",null,null,{"$f":"Jurat!I$1","v":0},{"$f":"Jurat!D$33","v":"00:00:00"},"Q1","2017-03-31","Region 8","Operating Expense","Medical Expense","Expanded Benefits","3.2","Expanded Benefits Subcapitation",{"$f":"IFERROR('LTC Rev-Exp Region 8'!$D$40/'LTC Rev-Exp Region 8'!$D$9, 0)","v":{"v":0,"d":"$0.00"}},{"$f":"IFERROR('LTC Rev-Exp Region 8'!$E$40/'LTC Rev-Exp Region 8'!$E$9, 0)","v":{"v":0,"d":"$0.00"}},{"$f":"IFERROR('LTC Rev-Exp Region 8'!$F$40/'LTC Rev-Exp Region 8'!$F$9, 0)","v":{"v":0,"d":"$0.00"}},{"$f":"IFERROR('LTC Rev-Exp Region 8'!$G$40/'LTC Rev-Exp Region 8'!$G$9, 0)","v":{"v":0,"d":"$0.00"}}]
["LTC",null,null,{"$f":"Jurat!I$1","v":0},{"$f":"Jurat!D$33","v":"00:00:00"},"Q1","2017-03-31","Region 8","Operating Expense","Medical Expense","Expanded Benefits","3.3","Ending IBNP for Expanded Benefits",{"$f":"IFERROR('LTC Rev-Exp Region 8'!$D$41/'LTC Rev-Exp Region 8'!$D$9, 0)","v":{"v":0,"d":"$0.00"}},{"$f":"IFERROR('LTC Rev-Exp Region 8'!$E$41/'LTC Rev-Exp Region 8'!$E$9, 0)","v":{"v":0,"d":"$0.00"}},{"$f":"IFERROR('LTC Rev-Exp Region 8'!$F$41/'LTC Rev-Exp Region 8'!$F$9, 0)","v":{"v":0,"d":"$0.00"}},{"$f":"IFERROR('LTC Rev-Exp Region 8'!$G$41/'LTC Rev-Exp Region 8'!$G$9, 0)","v":{"v":0,"d":"$0.00"}}]
["LTC",null,null,{"$f":"Jurat!I$1","v":0},{"$f":"Jurat!D$33","v":"00:00:00"},"Q1","2017-03-31","Region 8","Operating Expense","Medical Expense","Expanded Benefits","3.4","Expanded Benefits Settlements",{"$f":"IFERROR('LTC Rev-Exp Region 8'!$D$42/'LTC Rev-Exp Region 8'!$D$9, 0)","v":{"v":0,"d":"$0.00"}},{"$f":"IFERROR('LTC Rev-Exp Region 8'!$E$42/'LTC Rev-Exp Region 8'!$E$9, 0)","v":{"v":0,"d":"$0.00"}},{"$f":"IFERROR('LTC Rev-Exp Region 8'!$F$42/'LTC Rev-Exp Region 8'!$F$9, 0)","v":{"v":0,"d":"$0.00"}},{"$f":"IFERROR('LTC Rev-Exp Region 8'!$G$42/'LTC Rev-Exp Region 8'!$G$9, 0)","v":{"v":0,"d":"$0.00"}}]
["LTC",null,null,{"$f":"Jurat!I$1","v":0},{"$f":"Jurat!D$33","v":"00:00:00"},"Q1","2017-03-31","Region 8","Operating Expense","Medical Expense","Other Medical","4.5","TPL & Fraud/Abuse Recoveries",{"$f":"IFERROR('LTC Rev-Exp Region 8'!$D$48/'LTC Rev-Exp Region 8'!$D$9, 0)","v":{"v":0,"d":"$0.00"}},{"$f":"IFERROR('LTC Rev-Exp Region 8'!$E$48/'LTC Rev-Exp Region 8'!$E$9, 0)","v":{"v":0,"d":"$0.00"}},{"$f":"IFERROR('LTC Rev-Exp Region 8'!$F$48/'LTC Rev-Exp Region 8'!$F$9, 0)","v":{"v":0,"d":"$0.00"}},{"$f":"IFERROR('LTC Rev-Exp Region 8'!$G$48/'LTC Rev-Exp Region 8'!$G$9, 0)","v":{"v":0,"d":"$0.00"}}]
["LTC",null,null,{"$f":"Jurat!I$1","v":0},{"$f":"Jurat!D$33","v":"00:00:00"},"Q1","2017-03-31","Region 8","Operating Expense","Medical Expense","Other Medical","4.6.1","Premium Deficiency Reserve",{"$f":"IFERROR('LTC Rev-Exp Region 8'!$D$49/'LTC Rev-Exp Region 8'!$D$9, 0)","v":{"v":0,"d":"$0.00"}},{"$f":"IFERROR('LTC Rev-Exp Region 8'!$E$49/'LTC Rev-Exp Region 8'!$E$9, 0)","v":{"v":0,"d":"$0.00"}},{"$f":"IFERROR('LTC Rev-Exp Region 8'!$F$49/'LTC Rev-Exp Region 8'!$F$9, 0)","v":{"v":0,"d":"$0.00"}},{"$f":"IFERROR('LTC Rev-Exp Region 8'!$G$49/'LTC Rev-Exp Region 8'!$G$9, 0)","v":{"v":0,"d":"$0.00"}}]
["LTC",null,null,{"$f":"Jurat!I$1","v":0},{"$f":"Jurat!D$33","v":"00:00:00"},"Q1","2017-03-31","Region 8","Operating Expense","Medical Expense","Other Medical","4.8","Reinsurance Premiums",{"$f":"IFERROR('LTC Rev-Exp Region 8'!$D$51/'LTC Rev-Exp Region 8'!$D$9, 0)","v":{"v":0,"d":"$0.00"}},{"$f":"IFERROR('LTC Rev-Exp Region 8'!$E$51/'LTC Rev-Exp Region 8'!$E$9, 0)","v":{"v":0,"d":"$0.00"}},{"$f":"IFERROR('LTC Rev-Exp Region 8'!$F$51/'LTC Rev-Exp Region 8'!$F$9, 0)","v":{"v":0,"d":"$0.00"}},{"$f":"IFERROR('LTC Rev-Exp Region 8'!$G$51/'LTC Rev-Exp Region 8'!$G$9, 0)","v":{"v":0,"d":"$0.00"}}]
["LTC",null,null,{"$f":"Jurat!I$1","v":0},{"$f":"Jurat!D$33","v":"00:00:00"},"Q1","2017-03-31","Region 8","Operating Expense","Medical Expense","Other Medical","4.9","Reinsurance Recoveries",{"$f":"IFERROR('LTC Rev-Exp Region 8'!$D$52/'LTC Rev-Exp Region 8'!$D$9, 0)","v":{"v":0,"d":"$0.00"}},{"$f":"IFERROR('LTC Rev-Exp Region 8'!$E$52/'LTC Rev-Exp Region 8'!$E$9, 0)","v":{"v":0,"d":"$0.00"}},{"$f":"IFERROR('LTC Rev-Exp Region 8'!$F$52/'LTC Rev-Exp Region 8'!$F$9, 0)","v":{"v":0,"d":"$0.00"}},{"$f":"IFERROR('LTC Rev-Exp Region 8'!$G$52/'LTC Rev-Exp Region 8'!$G$9, 0)","v":{"v":0,"d":"$0.00"}}]
["LTC",null,null,{"$f":"Jurat!I$1","v":0},{"$f":"Jurat!D$33","v":"00:00:00"},"Q1","2017-03-31","Region 8","Operating Expense","Administrative Expense","Administrative","5.1","Salaries & Benefits",{"$f":"IFERROR('LTC Rev-Exp Region 8'!$D$57/'LTC Rev-Exp Region 8'!$D$9, 0)","v":{"v":0,"d":"$0.00"}},{"$f":"IFERROR('LTC Rev-Exp Region 8'!$E$57/'LTC Rev-Exp Region 8'!$D$9, 0)","v":{"v":0,"d":"$0.00"}},{"$f":"IFERROR('LTC Rev-Exp Region 8'!$F$57/'LTC Rev-Exp Region 8'!$D$9, 0)","v":{"v":0,"d":"$0.00"}},{"$f":"IFERROR('LTC Rev-Exp Region 8'!$G$57/'LTC Rev-Exp Region 8'!$D$9, 0)","v":{"v":0,"d":"$0.00"}}]
["LTC",null,null,{"$f":"Jurat!I$1","v":0},{"$f":"Jurat!D$33","v":"00:00:00"},"Q1","2017-03-31","Region 8","Operating Expense","Administrative Expense","Administrative","5.2","Administrative Services",{"$f":"IFERROR('LTC Rev-Exp Region 8'!$D$58/'LTC Rev-Exp Region 8'!$D$9, 0)","v":{"v":0,"d":"$0.00"}},{"$f":"IFERROR('LTC Rev-Exp Region 8'!$E$58/'LTC Rev-Exp Region 8'!$D$9, 0)","v":{"v":0,"d":"$0.00"}},{"$f":"IFERROR('LTC Rev-Exp Region 8'!$F$58/'LTC Rev-Exp Region 8'!$D$9, 0)","v":{"v":0,"d":"$0.00"}},{"$f":"IFERROR('LTC Rev-Exp Region 8'!$G$58/'LTC Rev-Exp Region 8'!$D$9, 0)","v":{"v":0,"d":"$0.00"}}]
["LTC",null,null,{"$f":"Jurat!I$1","v":0},{"$f":"Jurat!D$33","v":"00:00:00"},"Q1","2017-03-31","Region 8","Operating Expense","Administrative Expense","Administrative","5.3","Information Systems",{"$f":"IFERROR('LTC Rev-Exp Region 8'!$D$59/'LTC Rev-Exp Region 8'!$D$9, 0)","v":{"v":0,"d":"$0.00"}},{"$f":"IFERROR('LTC Rev-Exp Region 8'!$E$59/'LTC Rev-Exp Region 8'!$D$9, 0)","v":{"v":0,"d":"$0.00"}},{"$f":"IFERROR('LTC Rev-Exp Region 8'!$F$59/'LTC Rev-Exp Region 8'!$D$9, 0)","v":{"v":0,"d":"$0.00"}},{"$f":"IFERROR('LTC Rev-Exp Region 8'!$G$59/'LTC Rev-Exp Region 8'!$D$9, 0)","v":{"v":0,"d":"$0.00"}}]
["LTC",null,null,{"$f":"Jurat!I$1","v":0},{"$f":"Jurat!D$33","v":"00:00:00"},"Q1","2017-03-31","Region 8","Operating Expense","Administrative Expense","Administrative","5.4","Marketing Expenses",{"$f":"IFERROR('LTC Rev-Exp Region 8'!$D$60/'LTC Rev-Exp Region 8'!$D$9, 0)","v":{"v":0,"d":"$0.00"}},{"$f":"IFERROR('LTC Rev-Exp Region 8'!$E$60/'LTC Rev-Exp Region 8'!$D$9, 0)","v":{"v":0,"d":"$0.00"}},{"$f":"IFERROR('LTC Rev-Exp Region 8'!$F$60/'LTC Rev-Exp Region 8'!$D$9, 0)","v":{"v":0,"d":"$0.00"}},{"$f":"IFERROR('LTC Rev-Exp Region 8'!$G$60/'LTC Rev-Exp Region 8'!$D$9, 0)","v":{"v":0,"d":"$0.00"}}]
["LTC",null,null,{"$f":"Jurat!I$1","v":0},{"$f":"Jurat!D$33","v":"00:00:00"},"Q1","2017-03-31","Region 8","Operating Expense","Administrative Expense","Administrative","5.5","General  Administration",{"$f":"IFERROR('LTC Rev-Exp Region 8'!$D$61/'LTC Rev-Exp Region 8'!$D$9, 0)","v":{"v":0,"d":"$0.00"}},{"$f":"IFERROR('LTC Rev-Exp Region 8'!$E$61/'LTC Rev-Exp Region 8'!$D$9, 0)","v":{"v":0,"d":"$0.00"}},{"$f":"IFERROR('LTC Rev-Exp Region 8'!$F$61/'LTC Rev-Exp Region 8'!$D$9, 0)","v":{"v":0,"d":"$0.00"}},{"$f":"IFERROR('LTC Rev-Exp Region 8'!$G$61/'LTC Rev-Exp Region 8'!$D$9, 0)","v":{"v":0,"d":"$0.00"}}]
["LTC",null,null,{"$f":"Jurat!I$1","v":0},{"$f":"Jurat!D$33","v":"00:00:00"},"Q1","2017-03-31","Region 8","Operating Expense","Administrative Expense","Administrative","5.6","Compliance/Regulatory",{"$f":"IFERROR('LTC Rev-Exp Region 8'!$D$62/'LTC Rev-Exp Region 8'!$D$9, 0)","v":{"v":0,"d":"$0.00"}},{"$f":"IFERROR('LTC Rev-Exp Region 8'!$E$62/'LTC Rev-Exp Region 8'!$D$9, 0)","v":{"v":0,"d":"$0.00"}},{"$f":"IFERROR('LTC Rev-Exp Region 8'!$F$62/'LTC Rev-Exp Region 8'!$D$9, 0)","v":{"v":0,"d":"$0.00"}},{"$f":"IFERROR('LTC Rev-Exp Region 8'!$G$62/'LTC Rev-Exp Region 8'!$D$9, 0)","v":{"v":0,"d":"$0.00"}}]
["LTC",null,null,{"$f":"Jurat!I$1","v":0},{"$f":"Jurat!D$33","v":"00:00:00"},"Q1","2017-03-31","Region 8","Operating Expense","Taxes & Fees","Taxes & Fees","6.1","State Premium Tax",{"$f":"IFERROR('LTC Rev-Exp Region 8'!$D$64/'LTC Rev-Exp Region 8'!$D$9, 0)","v":{"v":0,"d":"$0.00"}},{"$f":"IFERROR('LTC Rev-Exp Region 8'!$E$64/'LTC Rev-Exp Region 8'!$E$9, 0)","v":{"v":0,"d":"$0.00"}},{"$f":"IFERROR('LTC Rev-Exp Region 8'!$F$64/'LTC Rev-Exp Region 8'!$F$9, 0)","v":{"v":0,"d":"$0.00"}},{"$f":"IFERROR('LTC Rev-Exp Region 8'!$G$64/'LTC Rev-Exp Region 8'!$G$9, 0)","v":{"v":0,"d":"$0.00"}}]
["LTC",null,null,{"$f":"Jurat!I$1","v":0},{"$f":"Jurat!D$33","v":"00:00:00"},"Q1","2017-03-31","Region 8","Operating Expense","Taxes & Fees","Taxes & Fees","6.2","Department of Insurance Assessments",{"$f":"IFERROR('LTC Rev-Exp Region 8'!$D$65/'LTC Rev-Exp Region 8'!$D$9, 0)","v":{"v":0,"d":"$0.00"}},{"$f":"IFERROR('LTC Rev-Exp Region 8'!$E$65/'LTC Rev-Exp Region 8'!$E$9, 0)","v":{"v":0,"d":"$0.00"}},{"$f":"IFERROR('LTC Rev-Exp Region 8'!$F$65/'LTC Rev-Exp Region 8'!$F$9, 0)","v":{"v":0,"d":"$0.00"}},{"$f":"IFERROR('LTC Rev-Exp Region 8'!$G$65/'LTC Rev-Exp Region 8'!$G$9, 0)","v":{"v":0,"d":"$0.00"}}]
["LTC",null,null,{"$f":"Jurat!I$1","v":0},{"$f":"Jurat!D$33","v":"00:00:00"},"Q1","2017-03-31","Region 8","Non-Operating Expense","Income Tax Expense","Income Tax Expense","9.0","Income Tax Expense",{"$f":"IFERROR('LTC Rev-Exp Region 8'!$D$72/'LTC Rev-Exp Region 8'!$D$9, 0)","v":{"v":0,"d":"$0.00"}},{"$f":"IFERROR('LTC Rev-Exp Region 8'!$E$72/'LTC Rev-Exp Region 8'!$E$9, 0)","v":{"v":0,"d":"$0.00"}},{"$f":"IFERROR('LTC Rev-Exp Region 8'!$F$72/'LTC Rev-Exp Region 8'!$F$9, 0)","v":{"v":0,"d":"$0.00"}},{"$f":"IFERROR('LTC Rev-Exp Region 8'!$G$72/'LTC Rev-Exp Region 8'!$G$9, 0)","v":{"v":0,"d":"$0.00"}}]
["LTC",null,null,{"$f":"Jurat!I$1","v":0},{"$f":"Jurat!D$33","v":"00:00:00"},"Q2","2017-06-30","Region 8","Operating Revenue","Capitation","Capitation",1.1,"Capitation",{"$f":"IFERROR('LTC Rev-Exp Region 8'!$H$11/'LTC Rev-Exp Region 8'!$H$9, 0)","v":{"v":0,"d":"$0.00"}},{"$f":"IFERROR('LTC Rev-Exp Region 8'!$I$11/'LTC Rev-Exp Region 8'!$I$9, 0)","v":{"v":0,"d":"$0.00"}},{"$f":"IFERROR('LTC Rev-Exp Region 8'!$J$11/'LTC Rev-Exp Region 8'!$J$9, 0)","v":{"v":0,"d":"$0.00"}},{"$f":"IFERROR('LTC Rev-Exp Region 8'!$K$11/'LTC Rev-Exp Region 8'!$K$9, 0)","v":{"v":0,"d":"$0.00"}}]
["LTC",null,null,{"$f":"Jurat!I$1","v":0},{"$f":"Jurat!D$33","v":"00:00:00"},"Q2","2017-06-30","Region 8","Operating Revenue","Capitation","NH Rate Reconciliation",1.2,"NH Rate Reconciliation",{"$f":"IFERROR('LTC Rev-Exp Region 8'!$H$12/'LTC Rev-Exp Region 8'!$H$9, 0)","v":{"v":0,"d":"$0.00"}},{"$f":"IFERROR('LTC Rev-Exp Region 8'!$I$12/'LTC Rev-Exp Region 8'!$I$9, 0)","v":{"v":0,"d":"$0.00"}},{"$f":"IFERROR('LTC Rev-Exp Region 8'!$J$12/'LTC Rev-Exp Region 8'!$J$9, 0)","v":{"v":0,"d":"$0.00"}},{"$f":"IFERROR('LTC Rev-Exp Region 8'!$K$12/'LTC Rev-Exp Region 8'!$K$9, 0)","v":{"v":0,"d":"$0.00"}}]
["LTC",null,null,{"$f":"Jurat!I$1","v":0},{"$f":"Jurat!D$33","v":"00:00:00"},"Q2","2017-06-30","Region 8","Operating Revenue","Other Revenue","Other Revenue",1.3,"Other Revenue",{"$f":"IFERROR('LTC Rev-Exp Region 8'!$H$13/'LTC Rev-Exp Region 8'!$H$9, 0)","v":{"v":0,"d":"$0.00"}},{"$f":"IFERROR('LTC Rev-Exp Region 8'!$I$13/'LTC Rev-Exp Region 8'!$I$9, 0)","v":{"v":0,"d":"$0.00"}},{"$f":"IFERROR('LTC Rev-Exp Region 8'!$J$13/'LTC Rev-Exp Region 8'!$J$9, 0)","v":{"v":0,"d":"$0.00"}},{"$f":"IFERROR('LTC Rev-Exp Region 8'!$K$13/'LTC Rev-Exp Region 8'!$K$9, 0)","v":{"v":0,"d":"$0.00"}}]
["LTC",null,null,{"$f":"Jurat!I$1","v":0},{"$f":"Jurat!D$33","v":"00:00:00"},"Q2","2017-06-30","Region 8","Operating Expense","Medical Expense","NF & Hospice","2.3","Nursing Facility FFS (Medicaid)",{"$f":"IFERROR('LTC Rev-Exp Region 8'!$H$19/'LTC Rev-Exp Region 8'!$H$9, 0)","v":{"v":0,"d":"$0.00"}},{"$f":"IFERROR('LTC Rev-Exp Region 8'!$I$19/'LTC Rev-Exp Region 8'!$I$9, 0)","v":{"v":0,"d":"$0.00"}},{"$f":"IFERROR('LTC Rev-Exp Region 8'!$J$19/'LTC Rev-Exp Region 8'!$J$9, 0)","v":{"v":0,"d":"$0.00"}},{"$f":"IFERROR('LTC Rev-Exp Region 8'!$K$19/'LTC Rev-Exp Region 8'!$K$9, 0)","v":{"v":0,"d":"$0.00"}}]
["LTC",null,null,{"$f":"Jurat!I$1","v":0},{"$f":"Jurat!D$33","v":"00:00:00"},"Q2","2017-06-30","Region 8","Operating Expense","Medical Expense","NF & Hospice","2.4","Nursing Facility FFS (Crossover)",{"$f":"IFERROR('LTC Rev-Exp Region 8'!$H$20/'LTC Rev-Exp Region 8'!$H$9, 0)","v":{"v":0,"d":"$0.00"}},{"$f":"IFERROR('LTC Rev-Exp Region 8'!$I$20/'LTC Rev-Exp Region 8'!$I$9, 0)","v":{"v":0,"d":"$0.00"}},{"$f":"IFERROR('LTC Rev-Exp Region 8'!$J$20/'LTC Rev-Exp Region 8'!$J$9, 0)","v":{"v":0,"d":"$0.00"}},{"$f":"IFERROR('LTC Rev-Exp Region 8'!$K$20/'LTC Rev-Exp Region 8'!$K$9, 0)","v":{"v":0,"d":"$0.00"}}]
["LTC",null,null,{"$f":"Jurat!I$1","v":0},{"$f":"Jurat!D$33","v":"00:00:00"},"Q2","2017-06-30","Region 8","Operating Expense","Medical Expense","NF & Hospice","2.6","Hospice FFS",{"$f":"IFERROR('LTC Rev-Exp Region 8'!$H$22/'LTC Rev-Exp Region 8'!$H$9, 0)","v":{"v":0,"d":"$0.00"}},{"$f":"IFERROR('LTC Rev-Exp Region 8'!$I$22/'LTC Rev-Exp Region 8'!$I$9, 0)","v":{"v":0,"d":"$0.00"}},{"$f":"IFERROR('LTC Rev-Exp Region 8'!$J$22/'LTC Rev-Exp Region 8'!$J$9, 0)","v":{"v":0,"d":"$0.00"}},{"$f":"IFERROR('LTC Rev-Exp Region 8'!$K$22/'LTC Rev-Exp Region 8'!$K$9, 0)","v":{"v":0,"d":"$0.00"}}]
["LTC",null,null,{"$f":"Jurat!I$1","v":0},{"$f":"Jurat!D$33","v":"00:00:00"},"Q2","2017-06-30","Region 8","Operating Expense","Medical Expense","NF & Hospice","2.7","Ending IBNP for NF & Hospice",{"$f":"IFERROR('LTC Rev-Exp Region 8'!$H$23/'LTC Rev-Exp Region 8'!$H$9, 0)","v":{"v":0,"d":"$0.00"}},{"$f":"IFERROR('LTC Rev-Exp Region 8'!$I$23/'LTC Rev-Exp Region 8'!$I$9, 0)","v":{"v":0,"d":"$0.00"}},{"$f":"IFERROR('LTC Rev-Exp Region 8'!$J$23/'LTC Rev-Exp Region 8'!$J$9, 0)","v":{"v":0,"d":"$0.00"}},{"$f":"IFERROR('LTC Rev-Exp Region 8'!$K$23/'LTC Rev-Exp Region 8'!$K$9, 0)","v":{"v":0,"d":"$0.00"}}]
["LTC",null,null,{"$f":"Jurat!I$1","v":0},{"$f":"Jurat!D$33","v":"00:00:00"},"Q2","2017-06-30","Region 8","Operating Expense","Medical Expense","NF & Hospice","2.8","NF & Hospice Subcapitated",{"$f":"IFERROR('LTC Rev-Exp Region 8'!$H$24/'LTC Rev-Exp Region 8'!$H$9, 0)","v":{"v":0,"d":"$0.00"}},{"$f":"IFERROR('LTC Rev-Exp Region 8'!$I$24/'LTC Rev-Exp Region 8'!$I$9, 0)","v":{"v":0,"d":"$0.00"}},{"$f":"IFERROR('LTC Rev-Exp Region 8'!$J$24/'LTC Rev-Exp Region 8'!$J$9, 0)","v":{"v":0,"d":"$0.00"}},{"$f":"IFERROR('LTC Rev-Exp Region 8'!$K$24/'LTC Rev-Exp Region 8'!$K$9, 0)","v":{"v":0,"d":"$0.00"}}]
["LTC",null,null,{"$f":"Jurat!I$1","v":0},{"$f":"Jurat!D$33","v":"00:00:00"},"Q2","2017-06-30","Region 8","Operating Expense","Medical Expense","NF & Hospice","2.9","NF & Hospice Settlements",{"$f":"IFERROR('LTC Rev-Exp Region 8'!$H$25/'LTC Rev-Exp Region 8'!$H$9, 0)","v":{"v":0,"d":"$0.00"}},{"$f":"IFERROR('LTC Rev-Exp Region 8'!$I$25/'LTC Rev-Exp Region 8'!$I$9, 0)","v":{"v":0,"d":"$0.00"}},{"$f":"IFERROR('LTC Rev-Exp Region 8'!$J$25/'LTC Rev-Exp Region 8'!$J$9, 0)","v":{"v":0,"d":"$0.00"}},{"$f":"IFERROR('LTC Rev-Exp Region 8'!$K$25/'LTC Rev-Exp Region 8'!$K$9, 0)","v":{"v":0,"d":"$0.00"}}]
["LTC",null,null,{"$f":"Jurat!I$1","v":0},{"$f":"Jurat!D$33","v":"00:00:00"},"Q2","2017-06-30","Region 8","Operating Expense","Medical Expense","LTC Services","2.11","Assisted Living FFS",{"$f":"IFERROR('LTC Rev-Exp Region 8'!$H$27/'LTC Rev-Exp Region 8'!$H$9, 0)","v":{"v":0,"d":"$0.00"}},{"$f":"IFERROR('LTC Rev-Exp Region 8'!$I$27/'LTC Rev-Exp Region 8'!$I$9, 0)","v":{"v":0,"d":"$0.00"}},{"$f":"IFERROR('LTC Rev-Exp Region 8'!$J$27/'LTC Rev-Exp Region 8'!$J$9, 0)","v":{"v":0,"d":"$0.00"}},{"$f":"IFERROR('LTC Rev-Exp Region 8'!$K$27/'LTC Rev-Exp Region 8'!$K$9, 0)","v":{"v":0,"d":"$0.00"}}]
["LTC",null,null,{"$f":"Jurat!I$1","v":0},{"$f":"Jurat!D$33","v":"00:00:00"},"Q2","2017-06-30","Region 8","Operating Expense","Medical Expense","LTC Services","2.12","Home Health FFS",{"$f":"IFERROR('LTC Rev-Exp Region 8'!$H$28/'LTC Rev-Exp Region 8'!$H$9, 0)","v":{"v":0,"d":"$0.00"}},{"$f":"IFERROR('LTC Rev-Exp Region 8'!$I$28/'LTC Rev-Exp Region 8'!$I$9, 0)","v":{"v":0,"d":"$0.00"}},{"$f":"IFERROR('LTC Rev-Exp Region 8'!$J$28/'LTC Rev-Exp Region 8'!$J$9, 0)","v":{"v":0,"d":"$0.00"}},{"$f":"IFERROR('LTC Rev-Exp Region 8'!$K$28/'LTC Rev-Exp Region 8'!$K$9, 0)","v":{"v":0,"d":"$0.00"}}]
["LTC",null,null,{"$f":"Jurat!I$1","v":0},{"$f":"Jurat!D$33","v":"00:00:00"},"Q2","2017-06-30","Region 8","Operating Expense","Medical Expense","LTC Services","2.13","Medical Equipment/Supplies FFS",{"$f":"IFERROR('LTC Rev-Exp Region 8'!$H$29/'LTC Rev-Exp Region 8'!$H$9, 0)","v":{"v":0,"d":"$0.00"}},{"$f":"IFERROR('LTC Rev-Exp Region 8'!$I$29/'LTC Rev-Exp Region 8'!$I$9, 0)","v":{"v":0,"d":"$0.00"}},{"$f":"IFERROR('LTC Rev-Exp Region 8'!$J$29/'LTC Rev-Exp Region 8'!$J$9, 0)","v":{"v":0,"d":"$0.00"}},{"$f":"IFERROR('LTC Rev-Exp Region 8'!$K$29/'LTC Rev-Exp Region 8'!$K$9, 0)","v":{"v":0,"d":"$0.00"}}]
["LTC",null,null,{"$f":"Jurat!I$1","v":0},{"$f":"Jurat!D$33","v":"00:00:00"},"Q2","2017-06-30","Region 8","Operating Expense","Medical Expense","LTC Services","2.14","Therapy FFS",{"$f":"IFERROR('LTC Rev-Exp Region 8'!$H$30/'LTC Rev-Exp Region 8'!$H$9, 0)","v":{"v":0,"d":"$0.00"}},{"$f":"IFERROR('LTC Rev-Exp Region 8'!$I$30/'LTC Rev-Exp Region 8'!$I$9, 0)","v":{"v":0,"d":"$0.00"}},{"$f":"IFERROR('LTC Rev-Exp Region 8'!$J$30/'LTC Rev-Exp Region 8'!$J$9, 0)","v":{"v":0,"d":"$0.00"}},{"$f":"IFERROR('LTC Rev-Exp Region 8'!$K$30/'LTC Rev-Exp Region 8'!$K$9, 0)","v":{"v":0,"d":"$0.00"}}]
["LTC",null,null,{"$f":"Jurat!I$1","v":0},{"$f":"Jurat!D$33","v":"00:00:00"},"Q2","2017-06-30","Region 8","Operating Expense","Medical Expense","LTC Services","2.15","Transportation FFS",{"$f":"IFERROR('LTC Rev-Exp Region 8'!$H$31/'LTC Rev-Exp Region 8'!$H$9, 0)","v":{"v":0,"d":"$0.00"}},{"$f":"IFERROR('LTC Rev-Exp Region 8'!$I$31/'LTC Rev-Exp Region 8'!$I$9, 0)","v":{"v":0,"d":"$0.00"}},{"$f":"IFERROR('LTC Rev-Exp Region 8'!$J$31/'LTC Rev-Exp Region 8'!$J$9, 0)","v":{"v":0,"d":"$0.00"}},{"$f":"IFERROR('LTC Rev-Exp Region 8'!$K$31/'LTC Rev-Exp Region 8'!$K$9, 0)","v":{"v":0,"d":"$0.00"}}]
["LTC",null,null,{"$f":"Jurat!I$1","v":0},{"$f":"Jurat!D$33","v":"00:00:00"},"Q2","2017-06-30","Region 8","Operating Expense","Medical Expense","LTC Services","2.16","Case Management FFS (Plan Provided)",{"$f":"IFERROR('LTC Rev-Exp Region 8'!$H$32/'LTC Rev-Exp Region 8'!$H$9, 0)","v":{"v":0,"d":"$0.00"}},{"$f":"IFERROR('LTC Rev-Exp Region 8'!$I$32/'LTC Rev-Exp Region 8'!$I$9, 0)","v":{"v":0,"d":"$0.00"}},{"$f":"IFERROR('LTC Rev-Exp Region 8'!$J$32/'LTC Rev-Exp Region 8'!$J$9, 0)","v":{"v":0,"d":"$0.00"}},{"$f":"IFERROR('LTC Rev-Exp Region 8'!$K$32/'LTC Rev-Exp Region 8'!$K$9, 0)","v":{"v":0,"d":"$0.00"}}]
["LTC",null,null,{"$f":"Jurat!I$1","v":0},{"$f":"Jurat!D$33","v":"00:00:00"},"Q2","2017-06-30","Region 8","Operating Expense","Medical Expense","LTC Services","2.17","Case Management FF (Non-Plan Provided)",{"$f":"IFERROR('LTC Rev-Exp Region 8'!$H$33/'LTC Rev-Exp Region 8'!$H$9, 0)","v":{"v":0,"d":"$0.00"}},{"$f":"IFERROR('LTC Rev-Exp Region 8'!$I$33/'LTC Rev-Exp Region 8'!$I$9, 0)","v":{"v":0,"d":"$0.00"}},{"$f":"IFERROR('LTC Rev-Exp Region 8'!$J$33/'LTC Rev-Exp Region 8'!$J$9, 0)","v":{"v":0,"d":"$0.00"}},{"$f":"IFERROR('LTC Rev-Exp Region 8'!$K$33/'LTC Rev-Exp Region 8'!$K$9, 0)","v":{"v":0,"d":"$0.00"}}]
["LTC",null,null,{"$f":"Jurat!I$1","v":0},{"$f":"Jurat!D$33","v":"00:00:00"},"Q2","2017-06-30","Region 8","Operating Expense","Medical Expense","LTC Services","2.18","HCBS FFS",{"$f":"IFERROR('LTC Rev-Exp Region 8'!$H$34/'LTC Rev-Exp Region 8'!$H$9, 0)","v":{"v":0,"d":"$0.00"}},{"$f":"IFERROR('LTC Rev-Exp Region 8'!$I$34/'LTC Rev-Exp Region 8'!$I$9, 0)","v":{"v":0,"d":"$0.00"}},{"$f":"IFERROR('LTC Rev-Exp Region 8'!$J$34/'LTC Rev-Exp Region 8'!$J$9, 0)","v":{"v":0,"d":"$0.00"}},{"$f":"IFERROR('LTC Rev-Exp Region 8'!$K$34/'LTC Rev-Exp Region 8'!$K$9, 0)","v":{"v":0,"d":"$0.00"}}]
["LTC",null,null,{"$f":"Jurat!I$1","v":0},{"$f":"Jurat!D$33","v":"00:00:00"},"Q2","2017-06-30","Region 8","Operating Expense","Medical Expense","LTC Services","2.19","Subcapitated LTC Services",{"$f":"IFERROR('LTC Rev-Exp Region 8'!$H$35/'LTC Rev-Exp Region 8'!$H$9, 0)","v":{"v":0,"d":"$0.00"}},{"$f":"IFERROR('LTC Rev-Exp Region 8'!$I$35/'LTC Rev-Exp Region 8'!$I$9, 0)","v":{"v":0,"d":"$0.00"}},{"$f":"IFERROR('LTC Rev-Exp Region 8'!$J$35/'LTC Rev-Exp Region 8'!$J$9, 0)","v":{"v":0,"d":"$0.00"}},{"$f":"IFERROR('LTC Rev-Exp Region 8'!$K$35/'LTC Rev-Exp Region 8'!$K$9, 0)","v":{"v":0,"d":"$0.00"}}]
["LTC",null,null,{"$f":"Jurat!I$1","v":0},{"$f":"Jurat!D$33","v":"00:00:00"},"Q2","2017-06-30","Region 8","Operating Expense","Medical Expense","LTC Services","2.20","Ending IBNP for Long Term Care Services",{"$f":"IFERROR('LTC Rev-Exp Region 8'!$H$36/'LTC Rev-Exp Region 8'!$H$9, 0)","v":{"v":0,"d":"$0.00"}},{"$f":"IFERROR('LTC Rev-Exp Region 8'!$I$36/'LTC Rev-Exp Region 8'!$I$9, 0)","v":{"v":0,"d":"$0.00"}},{"$f":"IFERROR('LTC Rev-Exp Region 8'!$J$36/'LTC Rev-Exp Region 8'!$J$9, 0)","v":{"v":0,"d":"$0.00"}},{"$f":"IFERROR('LTC Rev-Exp Region 8'!$K$36/'LTC Rev-Exp Region 8'!$K$9, 0)","v":{"v":0,"d":"$0.00"}}]
["LTC",null,null,{"$f":"Jurat!I$1","v":0},{"$f":"Jurat!D$33","v":"00:00:00"},"Q2","2017-06-30","Region 8","Operating Expense","Medical Expense","LTC Services","2.21","LTC Services Settlements",{"$f":"IFERROR('LTC Rev-Exp Region 8'!$H$37/'LTC Rev-Exp Region 8'!$H$9, 0)","v":{"v":0,"d":"$0.00"}},{"$f":"IFERROR('LTC Rev-Exp Region 8'!$I$37/'LTC Rev-Exp Region 8'!$I$9, 0)","v":{"v":0,"d":"$0.00"}},{"$f":"IFERROR('LTC Rev-Exp Region 8'!$J$37/'LTC Rev-Exp Region 8'!$J$9, 0)","v":{"v":0,"d":"$0.00"}},{"$f":"IFERROR('LTC Rev-Exp Region 8'!$K$37/'LTC Rev-Exp Region 8'!$K$9, 0)","v":{"v":0,"d":"$0.00"}}]
["LTC",null,null,{"$f":"Jurat!I$1","v":0},{"$f":"Jurat!D$33","v":"00:00:00"},"Q2","2017-06-30","Region 8","Operating Expense","Medical Expense","Expanded Benefits","3.1","Expanded Benefits FFS",{"$f":"IFERROR('LTC Rev-Exp Region 8'!$H$39/'LTC Rev-Exp Region 8'!$H$9, 0)","v":{"v":0,"d":"$0.00"}},{"$f":"IFERROR('LTC Rev-Exp Region 8'!$I$39/'LTC Rev-Exp Region 8'!$I$9, 0)","v":{"v":0,"d":"$0.00"}},{"$f":"IFERROR('LTC Rev-Exp Region 8'!$J$39/'LTC Rev-Exp Region 8'!$J$9, 0)","v":{"v":0,"d":"$0.00"}},{"$f":"IFERROR('LTC Rev-Exp Region 8'!$K$39/'LTC Rev-Exp Region 8'!$K$9, 0)","v":{"v":0,"d":"$0.00"}}]
["LTC",null,null,{"$f":"Jurat!I$1","v":0},{"$f":"Jurat!D$33","v":"00:00:00"},"Q2","2017-06-30","Region 8","Operating Expense","Medical Expense","Expanded Benefits","3.2","Expanded Benefits Subcapitation",{"$f":"IFERROR('LTC Rev-Exp Region 8'!$H$40/'LTC Rev-Exp Region 8'!$H$9, 0)","v":{"v":0,"d":"$0.00"}},{"$f":"IFERROR('LTC Rev-Exp Region 8'!$I$40/'LTC Rev-Exp Region 8'!$I$9, 0)","v":{"v":0,"d":"$0.00"}},{"$f":"IFERROR('LTC Rev-Exp Region 8'!$J$40/'LTC Rev-Exp Region 8'!$J$9, 0)","v":{"v":0,"d":"$0.00"}},{"$f":"IFERROR('LTC Rev-Exp Region 8'!$K$40/'LTC Rev-Exp Region 8'!$K$9, 0)","v":{"v":0,"d":"$0.00"}}]
["LTC",null,null,{"$f":"Jurat!I$1","v":0},{"$f":"Jurat!D$33","v":"00:00:00"},"Q2","2017-06-30","Region 8","Operating Expense","Medical Expense","Expanded Benefits","3.3","Ending IBNP for Expanded Benefits",{"$f":"IFERROR('LTC Rev-Exp Region 8'!$H$41/'LTC Rev-Exp Region 8'!$H$9, 0)","v":{"v":0,"d":"$0.00"}},{"$f":"IFERROR('LTC Rev-Exp Region 8'!$I$41/'LTC Rev-Exp Region 8'!$I$9, 0)","v":{"v":0,"d":"$0.00"}},{"$f":"IFERROR('LTC Rev-Exp Region 8'!$J$41/'LTC Rev-Exp Region 8'!$J$9, 0)","v":{"v":0,"d":"$0.00"}},{"$f":"IFERROR('LTC Rev-Exp Region 8'!$K$41/'LTC Rev-Exp Region 8'!$K$9, 0)","v":{"v":0,"d":"$0.00"}}]
["LTC",null,null,{"$f":"Jurat!I$1","v":0},{"$f":"Jurat!D$33","v":"00:00:00"},"Q2","2017-06-30","Region 8","Operating Expense","Medical Expense","Expanded Benefits","3.4","Expanded Benefits Settlements",{"$f":"IFERROR('LTC Rev-Exp Region 8'!$H$42/'LTC Rev-Exp Region 8'!$H$9, 0)","v":{"v":0,"d":"$0.00"}},{"$f":"IFERROR('LTC Rev-Exp Region 8'!$I$42/'LTC Rev-Exp Region 8'!$I$9, 0)","v":{"v":0,"d":"$0.00"}},{"$f":"IFERROR('LTC Rev-Exp Region 8'!$J$42/'LTC Rev-Exp Region 8'!$J$9, 0)","v":{"v":0,"d":"$0.00"}},{"$f":"IFERROR('LTC Rev-Exp Region 8'!$K$42/'LTC Rev-Exp Region 8'!$K$9, 0)","v":{"v":0,"d":"$0.00"}}]
["LTC",null,null,{"$f":"Jurat!I$1","v":0},{"$f":"Jurat!D$33","v":"00:00:00"},"Q2","2017-06-30","Region 8","Operating Expense","Medical Expense","Other Medical","4.5","TPL & Fraud/Abuse Recoveries",{"$f":"IFERROR('LTC Rev-Exp Region 8'!$H$48/'LTC Rev-Exp Region 8'!$H$9, 0)","v":{"v":0,"d":"$0.00"}},{"$f":"IFERROR('LTC Rev-Exp Region 8'!$I$48/'LTC Rev-Exp Region 8'!$I$9, 0)","v":{"v":0,"d":"$0.00"}},{"$f":"IFERROR('LTC Rev-Exp Region 8'!$J$48/'LTC Rev-Exp Region 8'!$J$9, 0)","v":{"v":0,"d":"$0.00"}},{"$f":"IFERROR('LTC Rev-Exp Region 8'!$K$48/'LTC Rev-Exp Region 8'!$K$9, 0)","v":{"v":0,"d":"$0.00"}}]
["LTC",null,null,{"$f":"Jurat!I$1","v":0},{"$f":"Jurat!D$33","v":"00:00:00"},"Q2","2017-06-30","Region 8","Operating Expense","Medical Expense","Other Medical","4.6.1","Premium Deficiency Reserve",{"$f":"IFERROR('LTC Rev-Exp Region 8'!$H$49/'LTC Rev-Exp Region 8'!$H$9, 0)","v":{"v":0,"d":"$0.00"}},{"$f":"IFERROR('LTC Rev-Exp Region 8'!$I$49/'LTC Rev-Exp Region 8'!$I$9, 0)","v":{"v":0,"d":"$0.00"}},{"$f":"IFERROR('LTC Rev-Exp Region 8'!$J$49/'LTC Rev-Exp Region 8'!$J$9, 0)","v":{"v":0,"d":"$0.00"}},{"$f":"IFERROR('LTC Rev-Exp Region 8'!$K$49/'LTC Rev-Exp Region 8'!$K$9, 0)","v":{"v":0,"d":"$0.00"}}]
["LTC",null,null,{"$f":"Jurat!I$1","v":0},{"$f":"Jurat!D$33","v":"00:00:00"},"Q2","2017-06-30","Region 8","Operating Expense","Medical Expense","Other Medical","4.8","Reinsurance Premiums",{"$f":"IFERROR('LTC Rev-Exp Region 8'!$H$51/'LTC Rev-Exp Region 8'!$H$9, 0)","v":{"v":0,"d":"$0.00"}},{"$f":"IFERROR('LTC Rev-Exp Region 8'!$I$51/'LTC Rev-Exp Region 8'!$I$9, 0)","v":{"v":0,"d":"$0.00"}},{"$f":"IFERROR('LTC Rev-Exp Region 8'!$J$51/'LTC Rev-Exp Region 8'!$J$9, 0)","v":{"v":0,"d":"$0.00"}},{"$f":"IFERROR('LTC Rev-Exp Region 8'!$K$51/'LTC Rev-Exp Region 8'!$K$9, 0)","v":{"v":0,"d":"$0.00"}}]
["LTC",null,null,{"$f":"Jurat!I$1","v":0},{"$f":"Jurat!D$33","v":"00:00:00"},"Q2","2017-06-30","Region 8","Operating Expense","Medical Expense","Other Medical","4.9","Reinsurance Recoveries",{"$f":"IFERROR('LTC Rev-Exp Region 8'!$H$52/'LTC Rev-Exp Region 8'!$H$9, 0)","v":{"v":0,"d":"$0.00"}},{"$f":"IFERROR('LTC Rev-Exp Region 8'!$I$52/'LTC Rev-Exp Region 8'!$I$9, 0)","v":{"v":0,"d":"$0.00"}},{"$f":"IFERROR('LTC Rev-Exp Region 8'!$J$52/'LTC Rev-Exp Region 8'!$J$9, 0)","v":{"v":0,"d":"$0.00"}},{"$f":"IFERROR('LTC Rev-Exp Region 8'!$K$52/'LTC Rev-Exp Region 8'!$K$9, 0)","v":{"v":0,"d":"$0.00"}}]
["LTC",null,null,{"$f":"Jurat!I$1","v":0},{"$f":"Jurat!D$33","v":"00:00:00"},"Q2","2017-06-30","Region 8","Operating Expense","Administrative Expense","Administrative","5.1","Salaries & Benefits",{"$f":"IFERROR('LTC Rev-Exp Region 8'!$H$57/'LTC Rev-Exp Region 8'!$H$9, 0)","v":{"v":0,"d":"$0.00"}},{"$f":"IFERROR('LTC Rev-Exp Region 8'!$I$57/'LTC Rev-Exp Region 8'!$I$9, 0)","v":{"v":0,"d":"$0.00"}},{"$f":"IFERROR('LTC Rev-Exp Region 8'!$J$57/'LTC Rev-Exp Region 8'!$J$9, 0)","v":{"v":0,"d":"$0.00"}},{"$f":"IFERROR('LTC Rev-Exp Region 8'!$K$57/'LTC Rev-Exp Region 8'!$K$9, 0)","v":{"v":0,"d":"$0.00"}}]
["LTC",null,null,{"$f":"Jurat!I$1","v":0},{"$f":"Jurat!D$33","v":"00:00:00"},"Q2","2017-06-30","Region 8","Operating Expense","Administrative Expense","Administrative","5.2","Administrative Services",{"$f":"IFERROR('LTC Rev-Exp Region 8'!$H$58/'LTC Rev-Exp Region 8'!$H$9, 0)","v":{"v":0,"d":"$0.00"}},{"$f":"IFERROR('LTC Rev-Exp Region 8'!$I$58/'LTC Rev-Exp Region 8'!$I$9, 0)","v":{"v":0,"d":"$0.00"}},{"$f":"IFERROR('LTC Rev-Exp Region 8'!$J$58/'LTC Rev-Exp Region 8'!$J$9, 0)","v":{"v":0,"d":"$0.00"}},{"$f":"IFERROR('LTC Rev-Exp Region 8'!$K$58/'LTC Rev-Exp Region 8'!$K$9, 0)","v":{"v":0,"d":"$0.00"}}]
["LTC",null,null,{"$f":"Jurat!I$1","v":0},{"$f":"Jurat!D$33","v":"00:00:00"},"Q2","2017-06-30","Region 8","Operating Expense","Administrative Expense","Administrative","5.3","Information Systems",{"$f":"IFERROR('LTC Rev-Exp Region 8'!$H$59/'LTC Rev-Exp Region 8'!$H$9, 0)","v":{"v":0,"d":"$0.00"}},{"$f":"IFERROR('LTC Rev-Exp Region 8'!$I$59/'LTC Rev-Exp Region 8'!$I$9, 0)","v":{"v":0,"d":"$0.00"}},{"$f":"IFERROR('LTC Rev-Exp Region 8'!$J$59/'LTC Rev-Exp Region 8'!$J$9, 0)","v":{"v":0,"d":"$0.00"}},{"$f":"IFERROR('LTC Rev-Exp Region 8'!$K$59/'LTC Rev-Exp Region 8'!$K$9, 0)","v":{"v":0,"d":"$0.00"}}]
["LTC",null,null,{"$f":"Jurat!I$1","v":0},{"$f":"Jurat!D$33","v":"00:00:00"},"Q2","2017-06-30","Region 8","Operating Expense","Administrative Expense","Administrative","5.4","Marketing Expenses",{"$f":"IFERROR('LTC Rev-Exp Region 8'!$H$60/'LTC Rev-Exp Region 8'!$H$9, 0)","v":{"v":0,"d":"$0.00"}},{"$f":"IFERROR('LTC Rev-Exp Region 8'!$I$60/'LTC Rev-Exp Region 8'!$I$9, 0)","v":{"v":0,"d":"$0.00"}},{"$f":"IFERROR('LTC Rev-Exp Region 8'!$J$60/'LTC Rev-Exp Region 8'!$J$9, 0)","v":{"v":0,"d":"$0.00"}},{"$f":"IFERROR('LTC Rev-Exp Region 8'!$K$60/'LTC Rev-Exp Region 8'!$K$9, 0)","v":{"v":0,"d":"$0.00"}}]
["LTC",null,null,{"$f":"Jurat!I$1","v":0},{"$f":"Jurat!D$33","v":"00:00:00"},"Q2","2017-06-30","Region 8","Operating Expense","Administrative Expense","Administrative","5.5","General  Administration",{"$f":"IFERROR('LTC Rev-Exp Region 8'!$H$61/'LTC Rev-Exp Region 8'!$H$9, 0)","v":{"v":0,"d":"$0.00"}},{"$f":"IFERROR('LTC Rev-Exp Region 8'!$I$61/'LTC Rev-Exp Region 8'!$I$9, 0)","v":{"v":0,"d":"$0.00"}},{"$f":"IFERROR('LTC Rev-Exp Region 8'!$J$61/'LTC Rev-Exp Region 8'!$J$9, 0)","v":{"v":0,"d":"$0.00"}},{"$f":"IFERROR('LTC Rev-Exp Region 8'!$K$61/'LTC Rev-Exp Region 8'!$K$9, 0)","v":{"v":0,"d":"$0.00"}}]
["LTC",null,null,{"$f":"Jurat!I$1","v":0},{"$f":"Jurat!D$33","v":"00:00:00"},"Q2","2017-06-30","Region 8","Operating Expense","Administrative Expense","Administrative","5.6","Compliance/Regulatory",{"$f":"IFERROR('LTC Rev-Exp Region 8'!$H$62/'LTC Rev-Exp Region 8'!$H$9, 0)","v":{"v":0,"d":"$0.00"}},{"$f":"IFERROR('LTC Rev-Exp Region 8'!$I$62/'LTC Rev-Exp Region 8'!$I$9, 0)","v":{"v":0,"d":"$0.00"}},{"$f":"IFERROR('LTC Rev-Exp Region 8'!$J$62/'LTC Rev-Exp Region 8'!$J$9, 0)","v":{"v":0,"d":"$0.00"}},{"$f":"IFERROR('LTC Rev-Exp Region 8'!$K$62/'LTC Rev-Exp Region 8'!$K$9, 0)","v":{"v":0,"d":"$0.00"}}]
["LTC",null,null,{"$f":"Jurat!I$1","v":0},{"$f":"Jurat!D$33","v":"00:00:00"},"Q2","2017-06-30","Region 8","Operating Expense","Taxes & Fees","Taxes & Fees","6.1","State Premium Tax",{"$f":"IFERROR('LTC Rev-Exp Region 8'!$H$64/'LTC Rev-Exp Region 8'!$H$9, 0)","v":{"v":0,"d":"$0.00"}},{"$f":"IFERROR('LTC Rev-Exp Region 8'!$I$64/'LTC Rev-Exp Region 8'!$I$9, 0)","v":{"v":0,"d":"$0.00"}},{"$f":"IFERROR('LTC Rev-Exp Region 8'!$J$64/'LTC Rev-Exp Region 8'!$J$9, 0)","v":{"v":0,"d":"$0.00"}},{"$f":"IFERROR('LTC Rev-Exp Region 8'!$K$64/'LTC Rev-Exp Region 8'!$K$9, 0)","v":{"v":0,"d":"$0.00"}}]
["LTC",null,null,{"$f":"Jurat!I$1","v":0},{"$f":"Jurat!D$33","v":"00:00:00"},"Q2","2017-06-30","Region 8","Operating Expense","Taxes & Fees","Taxes & Fees","6.2","Department of Insurance Assessments",{"$f":"IFERROR('LTC Rev-Exp Region 8'!$H$65/'LTC Rev-Exp Region 8'!$H$9, 0)","v":{"v":0,"d":"$0.00"}},{"$f":"IFERROR('LTC Rev-Exp Region 8'!$I$65/'LTC Rev-Exp Region 8'!$I$9, 0)","v":{"v":0,"d":"$0.00"}},{"$f":"IFERROR('LTC Rev-Exp Region 8'!$J$65/'LTC Rev-Exp Region 8'!$J$9, 0)","v":{"v":0,"d":"$0.00"}},{"$f":"IFERROR('LTC Rev-Exp Region 8'!$K$65/'LTC Rev-Exp Region 8'!$K$9, 0)","v":{"v":0,"d":"$0.00"}}]
["LTC",null,null,{"$f":"Jurat!I$1","v":0},{"$f":"Jurat!D$33","v":"00:00:00"},"Q2","2017-06-30","Region 8","Non-Operating Expense","Income Tax Expense","Income Tax Expense","9.0","Income Tax Expense",{"$f":"IFERROR('LTC Rev-Exp Region 8'!$H$66/'LTC Rev-Exp Region 8'!$H$9, 0)","v":{"v":0,"d":"$0.00"}},{"$f":"IFERROR('LTC Rev-Exp Region 8'!$I$66/'LTC Rev-Exp Region 8'!$I$9, 0)","v":{"v":0,"d":"$0.00"}},{"$f":"IFERROR('LTC Rev-Exp Region 8'!$J$66/'LTC Rev-Exp Region 8'!$J$9, 0)","v":{"v":0,"d":"$0.00"}},{"$f":"IFERROR('LTC Rev-Exp Region 8'!$K$66/'LTC Rev-Exp Region 8'!$K$9, 0)","v":{"v":0,"d":"$0.00"}}]
["LTC",null,null,{"$f":"Jurat!I$1","v":0},{"$f":"Jurat!D$33","v":"00:00:00"},"Q3","2017-09-30","Region 8","Operating Revenue","Capitation","Capitation",1.1,"Capitation",{"$f":"IFERROR('LTC Rev-Exp Region 8'!$L$11/'LTC Rev-Exp Region 8'!$L$9, 0)","v":{"v":0,"d":"$0.00"}},{"$f":"IFERROR('LTC Rev-Exp Region 8'!$M$11/'LTC Rev-Exp Region 8'!$M$9, 0)","v":{"v":0,"d":"$0.00"}},{"$f":"IFERROR('LTC Rev-Exp Region 8'!$N$11/'LTC Rev-Exp Region 8'!$N$9, 0)","v":{"v":0,"d":"$0.00"}},{"$f":"IFERROR('LTC Rev-Exp Region 8'!$O$11/'LTC Rev-Exp Region 8'!$O$9, 0)","v":{"v":0,"d":"$0.00"}}]
["LTC",null,null,{"$f":"Jurat!I$1","v":0},{"$f":"Jurat!D$33","v":"00:00:00"},"Q3","2017-09-30","Region 8","Operating Revenue","Capitation","NH Rate Reconciliation",1.2,"NH Rate Reconciliation",{"$f":"IFERROR('LTC Rev-Exp Region 8'!L$12/'LTC Rev-Exp Region 8'!L$9, 0)","v":{"v":0,"d":"$0.00"}},{"$f":"IFERROR('LTC Rev-Exp Region 8'!M$12/'LTC Rev-Exp Region 8'!M$9, 0)","v":{"v":0,"d":"$0.00"}},{"$f":"IFERROR('LTC Rev-Exp Region 8'!N$12/'LTC Rev-Exp Region 8'!N$9, 0)","v":{"v":0,"d":"$0.00"}},{"$f":"IFERROR('LTC Rev-Exp Region 8'!O$12/'LTC Rev-Exp Region 8'!O$9, 0)","v":{"v":0,"d":"$0.00"}}]
["LTC",null,null,{"$f":"Jurat!I$1","v":0},{"$f":"Jurat!D$33","v":"00:00:00"},"Q3","2017-09-30","Region 8","Operating Revenue","Other Revenue","Other Revenue",1.3,"Other Revenue",{"$f":"IFERROR('LTC Rev-Exp Region 8'!L1049/'LTC Rev-Exp Region 8'!L$9, 0)","v":{"v":0,"d":"$0.00"}},{"$f":"IFERROR('LTC Rev-Exp Region 8'!M1049/'LTC Rev-Exp Region 8'!M$9, 0)","v":{"v":0,"d":"$0.00"}},{"$f":"IFERROR('LTC Rev-Exp Region 8'!N1049/'LTC Rev-Exp Region 8'!N$9, 0)","v":{"v":0,"d":"$0.00"}},{"$f":"IFERROR('LTC Rev-Exp Region 8'!O1049/'LTC Rev-Exp Region 8'!O$9, 0)","v":{"v":0,"d":"$0.00"}}]
["LTC",null,null,{"$f":"Jurat!I$1","v":0},{"$f":"Jurat!D$33","v":"00:00:00"},"Q3","2017-09-30","Region 8","Operating Expense","Medical Expense","NF & Hospice","2.3","Nursing Facility FFS (Medicaid)",{"$f":"IFERROR('LTC Rev-Exp Region 8'!$L$19/'LTC Rev-Exp Region 8'!$L$9, 0)","v":{"v":0,"d":"$0.00"}},{"$f":"IFERROR('LTC Rev-Exp Region 8'!$M$19/'LTC Rev-Exp Region 8'!$M$9, 0)","v":{"v":0,"d":"$0.00"}},{"$f":"IFERROR('LTC Rev-Exp Region 8'!$N$19/'LTC Rev-Exp Region 8'!$N$9, 0)","v":{"v":0,"d":"$0.00"}},{"$f":"IFERROR('LTC Rev-Exp Region 8'!$O$19/'LTC Rev-Exp Region 8'!$O$9, 0)","v":{"v":0,"d":"$0.00"}}]
["LTC",null,null,{"$f":"Jurat!I$1","v":0},{"$f":"Jurat!D$33","v":"00:00:00"},"Q3","2017-09-30","Region 8","Operating Expense","Medical Expense","NF & Hospice","2.4","Nursing Facility FFS (Crossover)",{"$f":"IFERROR('LTC Rev-Exp Region 8'!$L$20/'LTC Rev-Exp Region 8'!$L$9, 0)","v":{"v":0,"d":"$0.00"}},{"$f":"IFERROR('LTC Rev-Exp Region 8'!$M$20/'LTC Rev-Exp Region 8'!$M$9, 0)","v":{"v":0,"d":"$0.00"}},{"$f":"IFERROR('LTC Rev-Exp Region 8'!$N$20/'LTC Rev-Exp Region 8'!$N$9, 0)","v":{"v":0,"d":"$0.00"}},{"$f":"IFERROR('LTC Rev-Exp Region 8'!$O$20/'LTC Rev-Exp Region 8'!$O$9, 0)","v":{"v":0,"d":"$0.00"}}]
["LTC",null,null,{"$f":"Jurat!I$1","v":0},{"$f":"Jurat!D$33","v":"00:00:00"},"Q3","2017-09-30","Region 8","Operating Expense","Medical Expense","NF & Hospice","2.6","Hospice FFS",{"$f":"IFERROR('LTC Rev-Exp Region 8'!$L$22/'LTC Rev-Exp Region 8'!$L$9, 0)","v":{"v":0,"d":"$0.00"}},{"$f":"IFERROR('LTC Rev-Exp Region 8'!$M$22/'LTC Rev-Exp Region 8'!$M$9, 0)","v":{"v":0,"d":"$0.00"}},{"$f":"IFERROR('LTC Rev-Exp Region 8'!$N$22/'LTC Rev-Exp Region 8'!$N$9, 0)","v":{"v":0,"d":"$0.00"}},{"$f":"IFERROR('LTC Rev-Exp Region 8'!$O$22/'LTC Rev-Exp Region 8'!$O$9, 0)","v":{"v":0,"d":"$0.00"}}]
["LTC",null,null,{"$f":"Jurat!I$1","v":0},{"$f":"Jurat!D$33","v":"00:00:00"},"Q3","2017-09-30","Region 8","Operating Expense","Medical Expense","NF & Hospice","2.7","Ending IBNP for NF & Hospice",{"$f":"IFERROR('LTC Rev-Exp Region 8'!$L$23/'LTC Rev-Exp Region 8'!$L$9, 0)","v":{"v":0,"d":"$0.00"}},{"$f":"IFERROR('LTC Rev-Exp Region 8'!$M$23/'LTC Rev-Exp Region 8'!$M$9, 0)","v":{"v":0,"d":"$0.00"}},{"$f":"IFERROR('LTC Rev-Exp Region 8'!$N$23/'LTC Rev-Exp Region 8'!$N$9, 0)","v":{"v":0,"d":"$0.00"}},{"$f":"IFERROR('LTC Rev-Exp Region 8'!$O$23/'LTC Rev-Exp Region 8'!$O$9, 0)","v":{"v":0,"d":"$0.00"}}]
["LTC",null,null,{"$f":"Jurat!I$1","v":0},{"$f":"Jurat!D$33","v":"00:00:00"},"Q3","2017-09-30","Region 8","Operating Expense","Medical Expense","NF & Hospice","2.8","NF & Hospice Subcapitated",{"$f":"IFERROR('LTC Rev-Exp Region 8'!$L$24/'LTC Rev-Exp Region 8'!$L$9, 0)","v":{"v":0,"d":"$0.00"}},{"$f":"IFERROR('LTC Rev-Exp Region 8'!$M$24/'LTC Rev-Exp Region 8'!$M$9, 0)","v":{"v":0,"d":"$0.00"}},{"$f":"IFERROR('LTC Rev-Exp Region 8'!$N$24/'LTC Rev-Exp Region 8'!$N$9, 0)","v":{"v":0,"d":"$0.00"}},{"$f":"IFERROR('LTC Rev-Exp Region 8'!$O$24/'LTC Rev-Exp Region 8'!$O$9, 0)","v":{"v":0,"d":"$0.00"}}]
["LTC",null,null,{"$f":"Jurat!I$1","v":0},{"$f":"Jurat!D$33","v":"00:00:00"},"Q3","2017-09-30","Region 8","Operating Expense","Medical Expense","NF & Hospice","2.9","NF & Hospice Settlements",{"$f":"IFERROR('LTC Rev-Exp Region 8'!$L$25/'LTC Rev-Exp Region 8'!$L$9, 0)","v":{"v":0,"d":"$0.00"}},{"$f":"IFERROR('LTC Rev-Exp Region 8'!$M$25/'LTC Rev-Exp Region 8'!$M$9, 0)","v":{"v":0,"d":"$0.00"}},{"$f":"IFERROR('LTC Rev-Exp Region 8'!$N$25/'LTC Rev-Exp Region 8'!$N$9, 0)","v":{"v":0,"d":"$0.00"}},{"$f":"IFERROR('LTC Rev-Exp Region 8'!$O$25/'LTC Rev-Exp Region 8'!$O$9, 0)","v":{"v":0,"d":"$0.00"}}]
["LTC",null,null,{"$f":"Jurat!I$1","v":0},{"$f":"Jurat!D$33","v":"00:00:00"},"Q3","2017-09-30","Region 8","Operating Expense","Medical Expense","LTC Services","2.11","Assisted Living FFS",{"$f":"IFERROR('LTC Rev-Exp Region 8'!$L$27/'LTC Rev-Exp Region 8'!$L$9, 0)","v":{"v":0,"d":"$0.00"}},{"$f":"IFERROR('LTC Rev-Exp Region 8'!$M$27/'LTC Rev-Exp Region 8'!$M$9, 0)","v":{"v":0,"d":"$0.00"}},{"$f":"IFERROR('LTC Rev-Exp Region 8'!$N$27/'LTC Rev-Exp Region 8'!$N$9, 0)","v":{"v":0,"d":"$0.00"}},{"$f":"IFERROR('LTC Rev-Exp Region 8'!$O$27/'LTC Rev-Exp Region 8'!$O$9, 0)","v":{"v":0,"d":"$0.00"}}]
["LTC",null,null,{"$f":"Jurat!I$1","v":0},{"$f":"Jurat!D$33","v":"00:00:00"},"Q3","2017-09-30","Region 8","Operating Expense","Medical Expense","LTC Services","2.12","Home Health FFS",{"$f":"IFERROR('LTC Rev-Exp Region 8'!$L$28/'LTC Rev-Exp Region 8'!$L$9, 0)","v":{"v":0,"d":"$0.00"}},{"$f":"IFERROR('LTC Rev-Exp Region 8'!$M$28/'LTC Rev-Exp Region 8'!$M$9, 0)","v":{"v":0,"d":"$0.00"}},{"$f":"IFERROR('LTC Rev-Exp Region 8'!$N$28/'LTC Rev-Exp Region 8'!$N$9, 0)","v":{"v":0,"d":"$0.00"}},{"$f":"IFERROR('LTC Rev-Exp Region 8'!$O$28/'LTC Rev-Exp Region 8'!$O$9, 0)","v":{"v":0,"d":"$0.00"}}]
["LTC",null,null,{"$f":"Jurat!I$1","v":0},{"$f":"Jurat!D$33","v":"00:00:00"},"Q3","2017-09-30","Region 8","Operating Expense","Medical Expense","LTC Services","2.13","Medical Equipment/Supplies FFS",{"$f":"IFERROR('LTC Rev-Exp Region 8'!$L$29/'LTC Rev-Exp Region 8'!$L$9, 0)","v":{"v":0,"d":"$0.00"}},{"$f":"IFERROR('LTC Rev-Exp Region 8'!$M$29/'LTC Rev-Exp Region 8'!$M$9, 0)","v":{"v":0,"d":"$0.00"}},{"$f":"IFERROR('LTC Rev-Exp Region 8'!$N$29/'LTC Rev-Exp Region 8'!$N$9, 0)","v":{"v":0,"d":"$0.00"}},{"$f":"IFERROR('LTC Rev-Exp Region 8'!$O$29/'LTC Rev-Exp Region 8'!$O$9, 0)","v":{"v":0,"d":"$0.00"}}]
["LTC",null,null,{"$f":"Jurat!I$1","v":0},{"$f":"Jurat!D$33","v":"00:00:00"},"Q3","2017-09-30","Region 8","Operating Expense","Medical Expense","LTC Services","2.14","Therapy FFS",{"$f":"IFERROR('LTC Rev-Exp Region 8'!$L$30/'LTC Rev-Exp Region 8'!$L$9, 0)","v":{"v":0,"d":"$0.00"}},{"$f":"IFERROR('LTC Rev-Exp Region 8'!$M$30/'LTC Rev-Exp Region 8'!$M$9, 0)","v":{"v":0,"d":"$0.00"}},{"$f":"IFERROR('LTC Rev-Exp Region 8'!$N$30/'LTC Rev-Exp Region 8'!$N$9, 0)","v":{"v":0,"d":"$0.00"}},{"$f":"IFERROR('LTC Rev-Exp Region 8'!$O$30/'LTC Rev-Exp Region 8'!$O$9, 0)","v":{"v":0,"d":"$0.00"}}]
["LTC",null,null,{"$f":"Jurat!I$1","v":0},{"$f":"Jurat!D$33","v":"00:00:00"},"Q3","2017-09-30","Region 8","Operating Expense","Medical Expense","LTC Services","2.15","Transportation FFS",{"$f":"IFERROR('LTC Rev-Exp Region 8'!$L$31/'LTC Rev-Exp Region 8'!$L$9, 0)","v":{"v":0,"d":"$0.00"}},{"$f":"IFERROR('LTC Rev-Exp Region 8'!$M$31/'LTC Rev-Exp Region 8'!$M$9, 0)","v":{"v":0,"d":"$0.00"}},{"$f":"IFERROR('LTC Rev-Exp Region 8'!$N$31/'LTC Rev-Exp Region 8'!$N$9, 0)","v":{"v":0,"d":"$0.00"}},{"$f":"IFERROR('LTC Rev-Exp Region 8'!$O$31/'LTC Rev-Exp Region 8'!$O$9, 0)","v":{"v":0,"d":"$0.00"}}]
["LTC",null,null,{"$f":"Jurat!I$1","v":0},{"$f":"Jurat!D$33","v":"00:00:00"},"Q3","2017-09-30","Region 8","Operating Expense","Medical Expense","LTC Services","2.16","Case Management FFS (Plan Provided)",{"$f":"IFERROR('LTC Rev-Exp Region 8'!$L$32/'LTC Rev-Exp Region 8'!$L$9, 0)","v":{"v":0,"d":"$0.00"}},{"$f":"IFERROR('LTC Rev-Exp Region 8'!$M$32/'LTC Rev-Exp Region 8'!$M$9, 0)","v":{"v":0,"d":"$0.00"}},{"$f":"IFERROR('LTC Rev-Exp Region 8'!$N$32/'LTC Rev-Exp Region 8'!$N$9, 0)","v":{"v":0,"d":"$0.00"}},{"$f":"IFERROR('LTC Rev-Exp Region 8'!$O$32/'LTC Rev-Exp Region 8'!$O$9, 0)","v":{"v":0,"d":"$0.00"}}]
["LTC",null,null,{"$f":"Jurat!I$1","v":0},{"$f":"Jurat!D$33","v":"00:00:00"},"Q3","2017-09-30","Region 8","Operating Expense","Medical Expense","LTC Services","2.17","Case Management FF (Non-Plan Provided)",{"$f":"IFERROR('LTC Rev-Exp Region 8'!$L$33/'LTC Rev-Exp Region 8'!$L$9, 0)","v":{"v":0,"d":"$0.00"}},{"$f":"IFERROR('LTC Rev-Exp Region 8'!$M$33/'LTC Rev-Exp Region 8'!$M$9, 0)","v":{"v":0,"d":"$0.00"}},{"$f":"IFERROR('LTC Rev-Exp Region 8'!$N$33/'LTC Rev-Exp Region 8'!$N$9, 0)","v":{"v":0,"d":"$0.00"}},{"$f":"IFERROR('LTC Rev-Exp Region 8'!$O$33/'LTC Rev-Exp Region 8'!$O$9, 0)","v":{"v":0,"d":"$0.00"}}]
["LTC",null,null,{"$f":"Jurat!I$1","v":0},{"$f":"Jurat!D$33","v":"00:00:00"},"Q3","2017-09-30","Region 8","Operating Expense","Medical Expense","LTC Services","2.18","HCBS FFS",{"$f":"IFERROR('LTC Rev-Exp Region 8'!$L$34/'LTC Rev-Exp Region 8'!$L$9, 0)","v":{"v":0,"d":"$0.00"}},{"$f":"IFERROR('LTC Rev-Exp Region 8'!$M$34/'LTC Rev-Exp Region 8'!$M$9, 0)","v":{"v":0,"d":"$0.00"}},{"$f":"IFERROR('LTC Rev-Exp Region 8'!$N$34/'LTC Rev-Exp Region 8'!$N$9, 0)","v":{"v":0,"d":"$0.00"}},{"$f":"IFERROR('LTC Rev-Exp Region 8'!$O$34/'LTC Rev-Exp Region 8'!$O$9, 0)","v":{"v":0,"d":"$0.00"}}]
["LTC",null,null,{"$f":"Jurat!I$1","v":0},{"$f":"Jurat!D$33","v":"00:00:00"},"Q3","2017-09-30","Region 8","Operating Expense","Medical Expense","LTC Services","2.19","Subcapitated LTC Services",{"$f":"IFERROR('LTC Rev-Exp Region 8'!$L$35/'LTC Rev-Exp Region 8'!$L$9, 0)","v":{"v":0,"d":"$0.00"}},{"$f":"IFERROR('LTC Rev-Exp Region 8'!$M$35/'LTC Rev-Exp Region 8'!$M$9, 0)","v":{"v":0,"d":"$0.00"}},{"$f":"IFERROR('LTC Rev-Exp Region 8'!$N$35/'LTC Rev-Exp Region 8'!$N$9, 0)","v":{"v":0,"d":"$0.00"}},{"$f":"IFERROR('LTC Rev-Exp Region 8'!$O$35/'LTC Rev-Exp Region 8'!$O$9, 0)","v":{"v":0,"d":"$0.00"}}]
["LTC",null,null,{"$f":"Jurat!I$1","v":0},{"$f":"Jurat!D$33","v":"00:00:00"},"Q3","2017-09-30","Region 8","Operating Expense","Medical Expense","LTC Services","2.20","Ending IBNP for Long Term Care Services",{"$f":"IFERROR('LTC Rev-Exp Region 8'!$L$36/'LTC Rev-Exp Region 8'!$L$9, 0)","v":{"v":0,"d":"$0.00"}},{"$f":"IFERROR('LTC Rev-Exp Region 8'!$M$36/'LTC Rev-Exp Region 8'!$M$9, 0)","v":{"v":0,"d":"$0.00"}},{"$f":"IFERROR('LTC Rev-Exp Region 8'!$N$36/'LTC Rev-Exp Region 8'!$N$9, 0)","v":{"v":0,"d":"$0.00"}},{"$f":"IFERROR('LTC Rev-Exp Region 8'!$O$36/'LTC Rev-Exp Region 8'!$O$9, 0)","v":{"v":0,"d":"$0.00"}}]
["LTC",null,null,{"$f":"Jurat!I$1","v":0},{"$f":"Jurat!D$33","v":"00:00:00"},"Q3","2017-09-30","Region 8","Operating Expense","Medical Expense","LTC Services","2.21","LTC Services Settlements",{"$f":"IFERROR('LTC Rev-Exp Region 8'!$L$37/'LTC Rev-Exp Region 8'!$L$9, 0)","v":{"v":0,"d":"$0.00"}},{"$f":"IFERROR('LTC Rev-Exp Region 8'!$M$37/'LTC Rev-Exp Region 8'!$M$9, 0)","v":{"v":0,"d":"$0.00"}},{"$f":"IFERROR('LTC Rev-Exp Region 8'!$N$37/'LTC Rev-Exp Region 8'!$N$9, 0)","v":{"v":0,"d":"$0.00"}},{"$f":"IFERROR('LTC Rev-Exp Region 8'!$O$37/'LTC Rev-Exp Region 8'!$O$9, 0)","v":{"v":0,"d":"$0.00"}}]
["LTC",null,null,{"$f":"Jurat!I$1","v":0},{"$f":"Jurat!D$33","v":"00:00:00"},"Q3","2017-09-30","Region 8","Operating Expense","Medical Expense","Expanded Benefits","3.1","Expanded Benefits FFS",{"$f":"IFERROR('LTC Rev-Exp Region 8'!$L$39/'LTC Rev-Exp Region 8'!$L$9, 0)","v":{"v":0,"d":"$0.00"}},{"$f":"IFERROR('LTC Rev-Exp Region 8'!$M$39/'LTC Rev-Exp Region 8'!$M$9, 0)","v":{"v":0,"d":"$0.00"}},{"$f":"IFERROR('LTC Rev-Exp Region 8'!$N$39/'LTC Rev-Exp Region 8'!$N$9, 0)","v":{"v":0,"d":"$0.00"}},{"$f":"IFERROR('LTC Rev-Exp Region 8'!$O$39/'LTC Rev-Exp Region 8'!$O$9, 0)","v":{"v":0,"d":"$0.00"}}]
["LTC",null,null,{"$f":"Jurat!I$1","v":0},{"$f":"Jurat!D$33","v":"00:00:00"},"Q3","2017-09-30","Region 8","Operating Expense","Medical Expense","Expanded Benefits","3.2","Expanded Benefits Subcapitation",{"$f":"IFERROR('LTC Rev-Exp Region 8'!$L$40/'LTC Rev-Exp Region 8'!$L$9, 0)","v":{"v":0,"d":"$0.00"}},{"$f":"IFERROR('LTC Rev-Exp Region 8'!$M$40/'LTC Rev-Exp Region 8'!$M$9, 0)","v":{"v":0,"d":"$0.00"}},{"$f":"IFERROR('LTC Rev-Exp Region 8'!$N$40/'LTC Rev-Exp Region 8'!$N$9, 0)","v":{"v":0,"d":"$0.00"}},{"$f":"IFERROR('LTC Rev-Exp Region 8'!$O$40/'LTC Rev-Exp Region 8'!$O$9, 0)","v":{"v":0,"d":"$0.00"}}]
["LTC",null,null,{"$f":"Jurat!I$1","v":0},{"$f":"Jurat!D$33","v":"00:00:00"},"Q3","2017-09-30","Region 8","Operating Expense","Medical Expense","Expanded Benefits","3.3","Ending IBNP for Expanded Benefits",{"$f":"IFERROR('LTC Rev-Exp Region 8'!$L$41/'LTC Rev-Exp Region 8'!$L$9, 0)","v":{"v":0,"d":"$0.00"}},{"$f":"IFERROR('LTC Rev-Exp Region 8'!$M$41/'LTC Rev-Exp Region 8'!$M$9, 0)","v":{"v":0,"d":"$0.00"}},{"$f":"IFERROR('LTC Rev-Exp Region 8'!$N$41/'LTC Rev-Exp Region 8'!$N$9, 0)","v":{"v":0,"d":"$0.00"}},{"$f":"IFERROR('LTC Rev-Exp Region 8'!$O$41/'LTC Rev-Exp Region 8'!$O$9, 0)","v":{"v":0,"d":"$0.00"}}]
["LTC",null,null,{"$f":"Jurat!I$1","v":0},{"$f":"Jurat!D$33","v":"00:00:00"},"Q3","2017-09-30","Region 8","Operating Expense","Medical Expense","Expanded Benefits","3.4","Expanded Benefits Settlements",{"$f":"IFERROR('LTC Rev-Exp Region 8'!$L$42/'LTC Rev-Exp Region 8'!$L$9, 0)","v":{"v":0,"d":"$0.00"}},{"$f":"IFERROR('LTC Rev-Exp Region 8'!$M$42/'LTC Rev-Exp Region 8'!$M$9, 0)","v":{"v":0,"d":"$0.00"}},{"$f":"IFERROR('LTC Rev-Exp Region 8'!$N$42/'LTC Rev-Exp Region 8'!$N$9, 0)","v":{"v":0,"d":"$0.00"}},{"$f":"IFERROR('LTC Rev-Exp Region 8'!$O$42/'LTC Rev-Exp Region 8'!$O$9, 0)","v":{"v":0,"d":"$0.00"}}]
["LTC",null,null,{"$f":"Jurat!I$1","v":0},{"$f":"Jurat!D$33","v":"00:00:00"},"Q3","2017-09-30","Region 8","Operating Expense","Medical Expense","Other Medical","4.5","TPL & Fraud/Abuse Recoveries",{"$f":"IFERROR('LTC Rev-Exp Region 8'!$L$48/'LTC Rev-Exp Region 8'!$L$9, 0)","v":{"v":0,"d":"$0.00"}},{"$f":"IFERROR('LTC Rev-Exp Region 8'!$M$48/'LTC Rev-Exp Region 8'!$M$9, 0)","v":{"v":0,"d":"$0.00"}},{"$f":"IFERROR('LTC Rev-Exp Region 8'!$N$48/'LTC Rev-Exp Region 8'!$N$9, 0)","v":{"v":0,"d":"$0.00"}},{"$f":"IFERROR('LTC Rev-Exp Region 8'!$O$48/'LTC Rev-Exp Region 8'!$O$9, 0)","v":{"v":0,"d":"$0.00"}}]
["LTC",null,null,{"$f":"Jurat!I$1","v":0},{"$f":"Jurat!D$33","v":"00:00:00"},"Q3","2017-09-30","Region 8","Operating Expense","Medical Expense","Other Medical","4.6.1","Premium Deficiency Reserve",{"$f":"IFERROR('LTC Rev-Exp Region 8'!$L$49/'LTC Rev-Exp Region 8'!$L$9, 0)","v":{"v":0,"d":"$0.00"}},{"$f":"IFERROR('LTC Rev-Exp Region 8'!$M$49/'LTC Rev-Exp Region 8'!$M$9, 0)","v":{"v":0,"d":"$0.00"}},{"$f":"IFERROR('LTC Rev-Exp Region 8'!$N$49/'LTC Rev-Exp Region 8'!$N$9, 0)","v":{"v":0,"d":"$0.00"}},{"$f":"IFERROR('LTC Rev-Exp Region 8'!$O$49/'LTC Rev-Exp Region 8'!$O$9, 0)","v":{"v":0,"d":"$0.00"}}]
["LTC",null,null,{"$f":"Jurat!I$1","v":0},{"$f":"Jurat!D$33","v":"00:00:00"},"Q3","2017-09-30","Region 8","Operating Expense","Medical Expense","Other Medical","4.8","Reinsurance Premiums",{"$f":"IFERROR('LTC Rev-Exp Region 8'!$L$51/'LTC Rev-Exp Region 8'!$L$9, 0)","v":{"v":0,"d":"$0.00"}},{"$f":"IFERROR('LTC Rev-Exp Region 8'!$M$51/'LTC Rev-Exp Region 8'!$M$9, 0)","v":{"v":0,"d":"$0.00"}},{"$f":"IFERROR('LTC Rev-Exp Region 8'!$N$51/'LTC Rev-Exp Region 8'!$N$9, 0)","v":{"v":0,"d":"$0.00"}},{"$f":"IFERROR('LTC Rev-Exp Region 8'!$O$51/'LTC Rev-Exp Region 8'!$O$9, 0)","v":{"v":0,"d":"$0.00"}}]
["LTC",null,null,{"$f":"Jurat!I$1","v":0},{"$f":"Jurat!D$33","v":"00:00:00"},"Q3","2017-09-30","Region 8","Operating Expense","Medical Expense","Other Medical","4.9","Reinsurance Recoveries",{"$f":"IFERROR('LTC Rev-Exp Region 8'!$L$52/'LTC Rev-Exp Region 8'!$L$9, 0)","v":{"v":0,"d":"$0.00"}},{"$f":"IFERROR('LTC Rev-Exp Region 8'!$M$52/'LTC Rev-Exp Region 8'!$M$9, 0)","v":{"v":0,"d":"$0.00"}},{"$f":"IFERROR('LTC Rev-Exp Region 8'!$N$52/'LTC Rev-Exp Region 8'!$N$9, 0)","v":{"v":0,"d":"$0.00"}},{"$f":"IFERROR('LTC Rev-Exp Region 8'!$O$52/'LTC Rev-Exp Region 8'!$O$9, 0)","v":{"v":0,"d":"$0.00"}}]
["LTC",null,null,{"$f":"Jurat!I$1","v":0},{"$f":"Jurat!D$33","v":"00:00:00"},"Q3","2017-09-30","Region 8","Operating Expense","Administrative Expense","Administrative","5.1","Salaries & Benefits",{"$f":"IFERROR('LTC Rev-Exp Region 8'!$L$57/'LTC Rev-Exp Region 8'!$L$9, 0)","v":{"v":0,"d":"$0.00"}},{"$f":"IFERROR('LTC Rev-Exp Region 8'!$M$57/'LTC Rev-Exp Region 8'!$M$9, 0)","v":{"v":0,"d":"$0.00"}},{"$f":"IFERROR('LTC Rev-Exp Region 8'!$N$57/'LTC Rev-Exp Region 8'!$N$9, 0)","v":{"v":0,"d":"$0.00"}},{"$f":"IFERROR('LTC Rev-Exp Region 8'!$O$57/'LTC Rev-Exp Region 8'!$O$9, 0)","v":{"v":0,"d":"$0.00"}}]
["LTC",null,null,{"$f":"Jurat!I$1","v":0},{"$f":"Jurat!D$33","v":"00:00:00"},"Q3","2017-09-30","Region 8","Operating Expense","Administrative Expense","Administrative","5.2","Administrative Services",{"$f":"IFERROR('LTC Rev-Exp Region 8'!$L$58/'LTC Rev-Exp Region 8'!$L$9, 0)","v":{"v":0,"d":"$0.00"}},{"$f":"IFERROR('LTC Rev-Exp Region 8'!$M$58/'LTC Rev-Exp Region 8'!$M$9, 0)","v":{"v":0,"d":"$0.00"}},{"$f":"IFERROR('LTC Rev-Exp Region 8'!$N$58/'LTC Rev-Exp Region 8'!$N$9, 0)","v":{"v":0,"d":"$0.00"}},{"$f":"IFERROR('LTC Rev-Exp Region 8'!$O$58/'LTC Rev-Exp Region 8'!$O$9, 0)","v":{"v":0,"d":"$0.00"}}]
["LTC",null,null,{"$f":"Jurat!I$1","v":0},{"$f":"Jurat!D$33","v":"00:00:00"},"Q3","2017-09-30","Region 8","Operating Expense","Administrative Expense","Administrative","5.3","Information Systems",{"$f":"IFERROR('LTC Rev-Exp Region 8'!$L$59/'LTC Rev-Exp Region 8'!$L$9, 0)","v":{"v":0,"d":"$0.00"}},{"$f":"IFERROR('LTC Rev-Exp Region 8'!$M$59/'LTC Rev-Exp Region 8'!$M$9, 0)","v":{"v":0,"d":"$0.00"}},{"$f":"IFERROR('LTC Rev-Exp Region 8'!$N$59/'LTC Rev-Exp Region 8'!$N$9, 0)","v":{"v":0,"d":"$0.00"}},{"$f":"IFERROR('LTC Rev-Exp Region 8'!$O$59/'LTC Rev-Exp Region 8'!$O$9, 0)","v":{"v":0,"d":"$0.00"}}]
["LTC",null,null,{"$f":"Jurat!I$1","v":0},{"$f":"Jurat!D$33","v":"00:00:00"},"Q3","2017-09-30","Region 8","Operating Expense","Administrative Expense","Administrative","5.4","Marketing Expenses",{"$f":"IFERROR('LTC Rev-Exp Region 8'!$L$60/'LTC Rev-Exp Region 8'!$L$9, 0)","v":{"v":0,"d":"$0.00"}},{"$f":"IFERROR('LTC Rev-Exp Region 8'!$M$60/'LTC Rev-Exp Region 8'!$M$9, 0)","v":{"v":0,"d":"$0.00"}},{"$f":"IFERROR('LTC Rev-Exp Region 8'!$N$60/'LTC Rev-Exp Region 8'!$N$9, 0)","v":{"v":0,"d":"$0.00"}},{"$f":"IFERROR('LTC Rev-Exp Region 8'!$O$60/'LTC Rev-Exp Region 8'!$O$9, 0)","v":{"v":0,"d":"$0.00"}}]
["LTC",null,null,{"$f":"Jurat!I$1","v":0},{"$f":"Jurat!D$33","v":"00:00:00"},"Q3","2017-09-30","Region 8","Operating Expense","Administrative Expense","Administrative","5.5","General  Administration",{"$f":"IFERROR('LTC Rev-Exp Region 8'!$L$61/'LTC Rev-Exp Region 8'!$L$9, 0)","v":{"v":0,"d":"$0.00"}},{"$f":"IFERROR('LTC Rev-Exp Region 8'!$M$61/'LTC Rev-Exp Region 8'!$M$9, 0)","v":{"v":0,"d":"$0.00"}},{"$f":"IFERROR('LTC Rev-Exp Region 8'!$N$61/'LTC Rev-Exp Region 8'!$N$9, 0)","v":{"v":0,"d":"$0.00"}},{"$f":"IFERROR('LTC Rev-Exp Region 8'!$O$61/'LTC Rev-Exp Region 8'!$O$9, 0)","v":{"v":0,"d":"$0.00"}}]
["LTC",null,null,{"$f":"Jurat!I$1","v":0},{"$f":"Jurat!D$33","v":"00:00:00"},"Q3","2017-09-30","Region 8","Operating Expense","Administrative Expense","Administrative","5.6","Compliance/Regulatory",{"$f":"IFERROR('LTC Rev-Exp Region 8'!$L$62/'LTC Rev-Exp Region 8'!$L$9, 0)","v":{"v":0,"d":"$0.00"}},{"$f":"IFERROR('LTC Rev-Exp Region 8'!$M$62/'LTC Rev-Exp Region 8'!$M$9, 0)","v":{"v":0,"d":"$0.00"}},{"$f":"IFERROR('LTC Rev-Exp Region 8'!$N$62/'LTC Rev-Exp Region 8'!$N$9, 0)","v":{"v":0,"d":"$0.00"}},{"$f":"IFERROR('LTC Rev-Exp Region 8'!$O$62/'LTC Rev-Exp Region 8'!$O$9, 0)","v":{"v":0,"d":"$0.00"}}]
["LTC",null,null,{"$f":"Jurat!I$1","v":0},{"$f":"Jurat!D$33","v":"00:00:00"},"Q3","2017-09-30","Region 8","Operating Expense","Taxes & Fees","Taxes & Fees","6.1","State Premium Tax",{"$f":"IFERROR('LTC Rev-Exp Region 8'!$L$64/'LTC Rev-Exp Region 8'!$L$9, 0)","v":{"v":0,"d":"$0.00"}},{"$f":"IFERROR('LTC Rev-Exp Region 8'!$M$64/'LTC Rev-Exp Region 8'!$M$9, 0)","v":{"v":0,"d":"$0.00"}},{"$f":"IFERROR('LTC Rev-Exp Region 8'!$N$64/'LTC Rev-Exp Region 8'!$N$9, 0)","v":{"v":0,"d":"$0.00"}},{"$f":"IFERROR('LTC Rev-Exp Region 8'!$O$64/'LTC Rev-Exp Region 8'!$O$9, 0)","v":{"v":0,"d":"$0.00"}}]
["LTC",null,null,{"$f":"Jurat!I$1","v":0},{"$f":"Jurat!D$33","v":"00:00:00"},"Q3","2017-09-30","Region 8","Operating Expense","Taxes & Fees","Taxes & Fees","6.2","Department of Insurance Assessments",{"$f":"IFERROR('LTC Rev-Exp Region 8'!$L$65/'LTC Rev-Exp Region 8'!$L$9, 0)","v":{"v":0,"d":"$0.00"}},{"$f":"IFERROR('LTC Rev-Exp Region 8'!$M$65/'LTC Rev-Exp Region 8'!$M$9, 0)","v":{"v":0,"d":"$0.00"}},{"$f":"IFERROR('LTC Rev-Exp Region 8'!$N$65/'LTC Rev-Exp Region 8'!$N$9, 0)","v":{"v":0,"d":"$0.00"}},{"$f":"IFERROR('LTC Rev-Exp Region 8'!$O$65/'LTC Rev-Exp Region 8'!$O$9, 0)","v":{"v":0,"d":"$0.00"}}]
["LTC",null,null,{"$f":"Jurat!I$1","v":0},{"$f":"Jurat!D$33","v":"00:00:00"},"Q3","2017-09-30","Region 8","Non-Operating Expense","Income Tax Expense","Income Tax Expense","9.0","Income Tax Expense",{"$f":"IFERROR('LTC Rev-Exp Region 8'!$L$72/'LTC Rev-Exp Region 8'!$L$9, 0)","v":{"v":0,"d":"$0.00"}},{"$f":"IFERROR('LTC Rev-Exp Region 8'!$M$72/'LTC Rev-Exp Region 8'!$M$9, 0)","v":{"v":0,"d":"$0.00"}},{"$f":"IFERROR('LTC Rev-Exp Region 8'!$N$72/'LTC Rev-Exp Region 8'!$N$9, 0)","v":{"v":0,"d":"$0.00"}},{"$f":"IFERROR('LTC Rev-Exp Region 8'!$O$72/'LTC Rev-Exp Region 8'!$O$9, 0)","v":{"v":0,"d":"$0.00"}}]
["LTC",null,null,{"$f":"Jurat!I$1","v":0},{"$f":"Jurat!D$33","v":"00:00:00"},"Q4","2017-12-31","Region 8","Operating Revenue","Capitation","Capitation",1.1,"Capitation",{"$f":"IFERROR('LTC Rev-Exp Region 8'!$P$11/'LTC Rev-Exp Region 8'!$P$9, 0)","v":{"v":0,"d":"$0.00"}},{"$f":"IFERROR('LTC Rev-Exp Region 8'!$Q$11/'LTC Rev-Exp Region 8'!$Q$9, 0)","v":{"v":0,"d":"$0.00"}},{"$f":"IFERROR('LTC Rev-Exp Region 8'!$R$11/'LTC Rev-Exp Region 8'!$R$9, 0)","v":{"v":0,"d":"$0.00"}},{"$f":"IFERROR('LTC Rev-Exp Region 8'!$S$11/'LTC Rev-Exp Region 8'!$S$9, 0)","v":{"v":0,"d":"$0.00"}}]
["LTC",null,null,{"$f":"Jurat!I$1","v":0},{"$f":"Jurat!D$33","v":"00:00:00"},"Q4","2017-12-31","Region 8","Operating Revenue","Capitation","NH Rate Reconciliation",1.2,"NH Rate Reconciliation",{"$f":"IFERROR('LTC Rev-Exp Region 8'!$P$12/'LTC Rev-Exp Region 8'!$P$9, 0)","v":{"v":0,"d":"$0.00"}},{"$f":"IFERROR('LTC Rev-Exp Region 8'!$Q$12/'LTC Rev-Exp Region 8'!$Q$9, 0)","v":{"v":0,"d":"$0.00"}},{"$f":"IFERROR('LTC Rev-Exp Region 8'!$R$12/'LTC Rev-Exp Region 8'!$R$9, 0)","v":{"v":0,"d":"$0.00"}},{"$f":"IFERROR('LTC Rev-Exp Region 8'!$S$12/'LTC Rev-Exp Region 8'!$S$9, 0)","v":{"v":0,"d":"$0.00"}}]
["LTC",null,null,{"$f":"Jurat!I$1","v":0},{"$f":"Jurat!D$33","v":"00:00:00"},"Q4","2017-12-31","Region 8","Operating Revenue","Other Revenue","Other Revenue",1.3,"Other Revenue",{"$f":"IFERROR('LTC Rev-Exp Region 8'!$P$13/'LTC Rev-Exp Region 8'!$P$9, 0)","v":{"v":0,"d":"$0.00"}},{"$f":"IFERROR('LTC Rev-Exp Region 8'!$Q$13/'LTC Rev-Exp Region 8'!$Q$9, 0)","v":{"v":0,"d":"$0.00"}},{"$f":"IFERROR('LTC Rev-Exp Region 8'!$R$13/'LTC Rev-Exp Region 8'!$R$9, 0)","v":{"v":0,"d":"$0.00"}},{"$f":"IFERROR('LTC Rev-Exp Region 8'!$S$13/'LTC Rev-Exp Region 8'!$S$9, 0)","v":{"v":0,"d":"$0.00"}}]
["LTC",null,null,{"$f":"Jurat!I$1","v":0},{"$f":"Jurat!D$33","v":"00:00:00"},"Q4","2017-12-31","Region 8","Operating Expense","Medical Expense","NF & Hospice","2.3","Nursing Facility FFS (Medicaid)",{"$f":"IFERROR('LTC Rev-Exp Region 8'!$P$19/'LTC Rev-Exp Region 8'!$P$9, 0)","v":{"v":0,"d":"$0.00"}},{"$f":"IFERROR('LTC Rev-Exp Region 8'!$Q$19/'LTC Rev-Exp Region 8'!$Q$9, 0)","v":{"v":0,"d":"$0.00"}},{"$f":"IFERROR('LTC Rev-Exp Region 8'!$R$19/'LTC Rev-Exp Region 8'!$R$9, 0)","v":{"v":0,"d":"$0.00"}},{"$f":"IFERROR('LTC Rev-Exp Region 8'!$S$19/'LTC Rev-Exp Region 8'!$S$9, 0)","v":{"v":0,"d":"$0.00"}}]
["LTC",null,null,{"$f":"Jurat!I$1","v":0},{"$f":"Jurat!D$33","v":"00:00:00"},"Q4","2017-12-31","Region 8","Operating Expense","Medical Expense","NF & Hospice","2.4","Nursing Facility FFS (Crossover)",{"$f":"IFERROR('LTC Rev-Exp Region 8'!$P$20/'LTC Rev-Exp Region 8'!$P$9, 0)","v":{"v":0,"d":"$0.00"}},{"$f":"IFERROR('LTC Rev-Exp Region 8'!$Q$20/'LTC Rev-Exp Region 8'!$Q$9, 0)","v":{"v":0,"d":"$0.00"}},{"$f":"IFERROR('LTC Rev-Exp Region 8'!$R$20/'LTC Rev-Exp Region 8'!$R$9, 0)","v":{"v":0,"d":"$0.00"}},{"$f":"IFERROR('LTC Rev-Exp Region 8'!$S$20/'LTC Rev-Exp Region 8'!$S$9, 0)","v":{"v":0,"d":"$0.00"}}]
["LTC",null,null,{"$f":"Jurat!I$1","v":0},{"$f":"Jurat!D$33","v":"00:00:00"},"Q4","2017-12-31","Region 8","Operating Expense","Medical Expense","NF & Hospice","2.6","Hospice FFS",{"$f":"IFERROR('LTC Rev-Exp Region 8'!$P$22/'LTC Rev-Exp Region 8'!$P$9, 0)","v":{"v":0,"d":"$0.00"}},{"$f":"IFERROR('LTC Rev-Exp Region 8'!$Q$22/'LTC Rev-Exp Region 8'!$Q$9, 0)","v":{"v":0,"d":"$0.00"}},{"$f":"IFERROR('LTC Rev-Exp Region 8'!$R$22/'LTC Rev-Exp Region 8'!$R$9, 0)","v":{"v":0,"d":"$0.00"}},{"$f":"IFERROR('LTC Rev-Exp Region 8'!$S$22/'LTC Rev-Exp Region 8'!$S$9, 0)","v":{"v":0,"d":"$0.00"}}]
["LTC",null,null,{"$f":"Jurat!I$1","v":0},{"$f":"Jurat!D$33","v":"00:00:00"},"Q4","2017-12-31","Region 8","Operating Expense","Medical Expense","NF & Hospice","2.7","Ending IBNP for NF & Hospice",{"$f":"IFERROR('LTC Rev-Exp Region 8'!$P$23/'LTC Rev-Exp Region 8'!$P$9, 0)","v":{"v":0,"d":"$0.00"}},{"$f":"IFERROR('LTC Rev-Exp Region 8'!$Q$23/'LTC Rev-Exp Region 8'!$Q$9, 0)","v":{"v":0,"d":"$0.00"}},{"$f":"IFERROR('LTC Rev-Exp Region 8'!$R$23/'LTC Rev-Exp Region 8'!$R$9, 0)","v":{"v":0,"d":"$0.00"}},{"$f":"IFERROR('LTC Rev-Exp Region 8'!$S$23/'LTC Rev-Exp Region 8'!$S$9, 0)","v":{"v":0,"d":"$0.00"}}]
["LTC",null,null,{"$f":"Jurat!I$1","v":0},{"$f":"Jurat!D$33","v":"00:00:00"},"Q4","2017-12-31","Region 8","Operating Expense","Medical Expense","NF & Hospice","2.8","NF & Hospice Subcapitated",{"$f":"IFERROR('LTC Rev-Exp Region 8'!$P$24/'LTC Rev-Exp Region 8'!$P$9, 0)","v":{"v":0,"d":"$0.00"}},{"$f":"IFERROR('LTC Rev-Exp Region 8'!$Q$24/'LTC Rev-Exp Region 8'!$Q$9, 0)","v":{"v":0,"d":"$0.00"}},{"$f":"IFERROR('LTC Rev-Exp Region 8'!$R$24/'LTC Rev-Exp Region 8'!$R$9, 0)","v":{"v":0,"d":"$0.00"}},{"$f":"IFERROR('LTC Rev-Exp Region 8'!$S$24/'LTC Rev-Exp Region 8'!$S$9, 0)","v":{"v":0,"d":"$0.00"}}]
["LTC",null,null,{"$f":"Jurat!I$1","v":0},{"$f":"Jurat!D$33","v":"00:00:00"},"Q4","2017-12-31","Region 8","Operating Expense","Medical Expense","NF & Hospice","2.9","NF & Hospice Settlements",{"$f":"IFERROR('LTC Rev-Exp Region 8'!$P$25/'LTC Rev-Exp Region 8'!$P$9, 0)","v":{"v":0,"d":"$0.00"}},{"$f":"IFERROR('LTC Rev-Exp Region 8'!$Q$25/'LTC Rev-Exp Region 8'!$Q$9, 0)","v":{"v":0,"d":"$0.00"}},{"$f":"IFERROR('LTC Rev-Exp Region 8'!$R$25/'LTC Rev-Exp Region 8'!$R$9, 0)","v":{"v":0,"d":"$0.00"}},{"$f":"IFERROR('LTC Rev-Exp Region 8'!$S$25/'LTC Rev-Exp Region 8'!$S$9, 0)","v":{"v":0,"d":"$0.00"}}]
["LTC",null,null,{"$f":"Jurat!I$1","v":0},{"$f":"Jurat!D$33","v":"00:00:00"},"Q4","2017-12-31","Region 8","Operating Expense","Medical Expense","LTC Services","2.11","Assisted Living FFS",{"$f":"IFERROR('LTC Rev-Exp Region 8'!$P$27/'LTC Rev-Exp Region 8'!$P$9, 0)","v":{"v":0,"d":"$0.00"}},{"$f":"IFERROR('LTC Rev-Exp Region 8'!$Q$27/'LTC Rev-Exp Region 8'!$Q$9, 0)","v":{"v":0,"d":"$0.00"}},{"$f":"IFERROR('LTC Rev-Exp Region 8'!$R$27/'LTC Rev-Exp Region 8'!$R$9, 0)","v":{"v":0,"d":"$0.00"}},{"$f":"IFERROR('LTC Rev-Exp Region 8'!$S$27/'LTC Rev-Exp Region 8'!$S$9, 0)","v":{"v":0,"d":"$0.00"}}]
["LTC",null,null,{"$f":"Jurat!I$1","v":0},{"$f":"Jurat!D$33","v":"00:00:00"},"Q4","2017-12-31","Region 8","Operating Expense","Medical Expense","LTC Services","2.12","Home Health FFS",{"$f":"IFERROR('LTC Rev-Exp Region 8'!$P$28/'LTC Rev-Exp Region 8'!$P$9, 0)","v":{"v":0,"d":"$0.00"}},{"$f":"IFERROR('LTC Rev-Exp Region 8'!$Q$28/'LTC Rev-Exp Region 8'!$Q$9, 0)","v":{"v":0,"d":"$0.00"}},{"$f":"IFERROR('LTC Rev-Exp Region 8'!$R$28/'LTC Rev-Exp Region 8'!$R$9, 0)","v":{"v":0,"d":"$0.00"}},{"$f":"IFERROR('LTC Rev-Exp Region 8'!$S$28/'LTC Rev-Exp Region 8'!$S$9, 0)","v":{"v":0,"d":"$0.00"}}]
["LTC",null,null,{"$f":"Jurat!I$1","v":0},{"$f":"Jurat!D$33","v":"00:00:00"},"Q4","2017-12-31","Region 8","Operating Expense","Medical Expense","LTC Services","2.13","Medical Equipment/Supplies FFS",{"$f":"IFERROR('LTC Rev-Exp Region 8'!$P$29/'LTC Rev-Exp Region 8'!$P$9, 0)","v":{"v":0,"d":"$0.00"}},{"$f":"IFERROR('LTC Rev-Exp Region 8'!$Q$29/'LTC Rev-Exp Region 8'!$Q$9, 0)","v":{"v":0,"d":"$0.00"}},{"$f":"IFERROR('LTC Rev-Exp Region 8'!$R$29/'LTC Rev-Exp Region 8'!$R$9, 0)","v":{"v":0,"d":"$0.00"}},{"$f":"IFERROR('LTC Rev-Exp Region 8'!$S$29/'LTC Rev-Exp Region 8'!$S$9, 0)","v":{"v":0,"d":"$0.00"}}]
["LTC",null,null,{"$f":"Jurat!I$1","v":0},{"$f":"Jurat!D$33","v":"00:00:00"},"Q4","2017-12-31","Region 8","Operating Expense","Medical Expense","LTC Services","2.14","Therapy FFS",{"$f":"IFERROR('LTC Rev-Exp Region 8'!$P$30/'LTC Rev-Exp Region 8'!$P$9, 0)","v":{"v":0,"d":"$0.00"}},{"$f":"IFERROR('LTC Rev-Exp Region 8'!$Q$30/'LTC Rev-Exp Region 8'!$Q$9, 0)","v":{"v":0,"d":"$0.00"}},{"$f":"IFERROR('LTC Rev-Exp Region 8'!$R$30/'LTC Rev-Exp Region 8'!$R$9, 0)","v":{"v":0,"d":"$0.00"}},{"$f":"IFERROR('LTC Rev-Exp Region 8'!$S$30/'LTC Rev-Exp Region 8'!$S$9, 0)","v":{"v":0,"d":"$0.00"}}]
["LTC",null,null,{"$f":"Jurat!I$1","v":0},{"$f":"Jurat!D$33","v":"00:00:00"},"Q4","2017-12-31","Region 8","Operating Expense","Medical Expense","LTC Services","2.15","Transportation FFS",{"$f":"IFERROR('LTC Rev-Exp Region 8'!$P$31/'LTC Rev-Exp Region 8'!$P$9, 0)","v":{"v":0,"d":"$0.00"}},{"$f":"IFERROR('LTC Rev-Exp Region 8'!$Q$31/'LTC Rev-Exp Region 8'!$Q$9, 0)","v":{"v":0,"d":"$0.00"}},{"$f":"IFERROR('LTC Rev-Exp Region 8'!$R$31/'LTC Rev-Exp Region 8'!$R$9, 0)","v":{"v":0,"d":"$0.00"}},{"$f":"IFERROR('LTC Rev-Exp Region 8'!$S$31/'LTC Rev-Exp Region 8'!$S$9, 0)","v":{"v":0,"d":"$0.00"}}]
["LTC",null,null,{"$f":"Jurat!I$1","v":0},{"$f":"Jurat!D$33","v":"00:00:00"},"Q4","2017-12-31","Region 8","Operating Expense","Medical Expense","LTC Services","2.16","Case Management FFS (Plan Provided)",{"$f":"IFERROR('LTC Rev-Exp Region 8'!$P$32/'LTC Rev-Exp Region 8'!$P$9, 0)","v":{"v":0,"d":"$0.00"}},{"$f":"IFERROR('LTC Rev-Exp Region 8'!$Q$32/'LTC Rev-Exp Region 8'!$Q$9, 0)","v":{"v":0,"d":"$0.00"}},{"$f":"IFERROR('LTC Rev-Exp Region 8'!$R$32/'LTC Rev-Exp Region 8'!$R$9, 0)","v":{"v":0,"d":"$0.00"}},{"$f":"IFERROR('LTC Rev-Exp Region 8'!$S$32/'LTC Rev-Exp Region 8'!$S$9, 0)","v":{"v":0,"d":"$0.00"}}]
["LTC",null,null,{"$f":"Jurat!I$1","v":0},{"$f":"Jurat!D$33","v":"00:00:00"},"Q4","2017-12-31","Region 8","Operating Expense","Medical Expense","LTC Services","2.17","Case Management FF (Non-Plan Provided)",{"$f":"IFERROR('LTC Rev-Exp Region 8'!$P$33/'LTC Rev-Exp Region 8'!$P$9, 0)","v":{"v":0,"d":"$0.00"}},{"$f":"IFERROR('LTC Rev-Exp Region 8'!$Q$33/'LTC Rev-Exp Region 8'!$Q$9, 0)","v":{"v":0,"d":"$0.00"}},{"$f":"IFERROR('LTC Rev-Exp Region 8'!$R$33/'LTC Rev-Exp Region 8'!$R$9, 0)","v":{"v":0,"d":"$0.00"}},{"$f":"IFERROR('LTC Rev-Exp Region 8'!$S$33/'LTC Rev-Exp Region 8'!$S$9, 0)","v":{"v":0,"d":"$0.00"}}]
["LTC",null,null,{"$f":"Jurat!I$1","v":0},{"$f":"Jurat!D$33","v":"00:00:00"},"Q4","2017-12-31","Region 8","Operating Expense","Medical Expense","LTC Services","2.18","HCBS FFS",{"$f":"IFERROR('LTC Rev-Exp Region 8'!$P$34/'LTC Rev-Exp Region 8'!$P$9, 0)","v":{"v":0,"d":"$0.00"}},{"$f":"IFERROR('LTC Rev-Exp Region 8'!$Q$34/'LTC Rev-Exp Region 8'!$Q$9, 0)","v":{"v":0,"d":"$0.00"}},{"$f":"IFERROR('LTC Rev-Exp Region 8'!$R$34/'LTC Rev-Exp Region 8'!$R$9, 0)","v":{"v":0,"d":"$0.00"}},{"$f":"IFERROR('LTC Rev-Exp Region 8'!$S$34/'LTC Rev-Exp Region 8'!$S$9, 0)","v":{"v":0,"d":"$0.00"}}]
["LTC",null,null,{"$f":"Jurat!I$1","v":0},{"$f":"Jurat!D$33","v":"00:00:00"},"Q4","2017-12-31","Region 8","Operating Expense","Medical Expense","LTC Services","2.19","Subcapitated LTC Services",{"$f":"IFERROR('LTC Rev-Exp Region 8'!$P$35/'LTC Rev-Exp Region 8'!$P$9, 0)","v":{"v":0,"d":"$0.00"}},{"$f":"IFERROR('LTC Rev-Exp Region 8'!$Q$35/'LTC Rev-Exp Region 8'!$Q$9, 0)","v":{"v":0,"d":"$0.00"}},{"$f":"IFERROR('LTC Rev-Exp Region 8'!$R$35/'LTC Rev-Exp Region 8'!$R$9, 0)","v":{"v":0,"d":"$0.00"}},{"$f":"IFERROR('LTC Rev-Exp Region 8'!$S$35/'LTC Rev-Exp Region 8'!$S$9, 0)","v":{"v":0,"d":"$0.00"}}]
["LTC",null,null,{"$f":"Jurat!I$1","v":0},{"$f":"Jurat!D$33","v":"00:00:00"},"Q4","2017-12-31","Region 8","Operating Expense","Medical Expense","LTC Services","2.20","Ending IBNP for Long Term Care Services",{"$f":"IFERROR('LTC Rev-Exp Region 8'!$P$36/'LTC Rev-Exp Region 8'!$P$9, 0)","v":{"v":0,"d":"$0.00"}},{"$f":"IFERROR('LTC Rev-Exp Region 8'!$Q$36/'LTC Rev-Exp Region 8'!$Q$9, 0)","v":{"v":0,"d":"$0.00"}},{"$f":"IFERROR('LTC Rev-Exp Region 8'!$R$36/'LTC Rev-Exp Region 8'!$R$9, 0)","v":{"v":0,"d":"$0.00"}},{"$f":"IFERROR('LTC Rev-Exp Region 8'!$S$36/'LTC Rev-Exp Region 8'!$S$9, 0)","v":{"v":0,"d":"$0.00"}}]
["LTC",null,null,{"$f":"Jurat!I$1","v":0},{"$f":"Jurat!D$33","v":"00:00:00"},"Q4","2017-12-31","Region 8","Operating Expense","Medical Expense","LTC Services","2.21","LTC Services Settlements",{"$f":"IFERROR('LTC Rev-Exp Region 8'!$P$37/'LTC Rev-Exp Region 8'!$P$9, 0)","v":{"v":0,"d":"$0.00"}},{"$f":"IFERROR('LTC Rev-Exp Region 8'!$Q$37/'LTC Rev-Exp Region 8'!$Q$9, 0)","v":{"v":0,"d":"$0.00"}},{"$f":"IFERROR('LTC Rev-Exp Region 8'!$R$37/'LTC Rev-Exp Region 8'!$R$9, 0)","v":{"v":0,"d":"$0.00"}},{"$f":"IFERROR('LTC Rev-Exp Region 8'!$S$37/'LTC Rev-Exp Region 8'!$S$9, 0)","v":{"v":0,"d":"$0.00"}}]
["LTC",null,null,{"$f":"Jurat!I$1","v":0},{"$f":"Jurat!D$33","v":"00:00:00"},"Q4","2017-12-31","Region 8","Operating Expense","Medical Expense","Expanded Benefits","3.1","Expanded Benefits FFS",{"$f":"IFERROR('LTC Rev-Exp Region 8'!$P$39/'LTC Rev-Exp Region 8'!$P$9, 0)","v":{"v":0,"d":"$0.00"}},{"$f":"IFERROR('LTC Rev-Exp Region 8'!$Q$39/'LTC Rev-Exp Region 8'!$Q$9, 0)","v":{"v":0,"d":"$0.00"}},{"$f":"IFERROR('LTC Rev-Exp Region 8'!$R$39/'LTC Rev-Exp Region 8'!$R$9, 0)","v":{"v":0,"d":"$0.00"}},{"$f":"IFERROR('LTC Rev-Exp Region 8'!$S$39/'LTC Rev-Exp Region 8'!$S$9, 0)","v":{"v":0,"d":"$0.00"}}]
["LTC",null,null,{"$f":"Jurat!I$1","v":0},{"$f":"Jurat!D$33","v":"00:00:00"},"Q4","2017-12-31","Region 8","Operating Expense","Medical Expense","Expanded Benefits","3.2","Expanded Benefits Subcapitation",{"$f":"IFERROR('LTC Rev-Exp Region 8'!$P$40/'LTC Rev-Exp Region 8'!$P$9, 0)","v":{"v":0,"d":"$0.00"}},{"$f":"IFERROR('LTC Rev-Exp Region 8'!$Q$40/'LTC Rev-Exp Region 8'!$Q$9, 0)","v":{"v":0,"d":"$0.00"}},{"$f":"IFERROR('LTC Rev-Exp Region 8'!$R$40/'LTC Rev-Exp Region 8'!$R$9, 0)","v":{"v":0,"d":"$0.00"}},{"$f":"IFERROR('LTC Rev-Exp Region 8'!$S$40/'LTC Rev-Exp Region 8'!$S$9, 0)","v":{"v":0,"d":"$0.00"}}]
["LTC",null,null,{"$f":"Jurat!I$1","v":0},{"$f":"Jurat!D$33","v":"00:00:00"},"Q4","2017-12-31","Region 8","Operating Expense","Medical Expense","Expanded Benefits","3.3","Ending IBNP for Expanded Benefits",{"$f":"IFERROR('LTC Rev-Exp Region 8'!$P$41/'LTC Rev-Exp Region 8'!$P$9, 0)","v":{"v":0,"d":"$0.00"}},{"$f":"IFERROR('LTC Rev-Exp Region 8'!$Q$41/'LTC Rev-Exp Region 8'!$Q$9, 0)","v":{"v":0,"d":"$0.00"}},{"$f":"IFERROR('LTC Rev-Exp Region 8'!$R$41/'LTC Rev-Exp Region 8'!$R$9, 0)","v":{"v":0,"d":"$0.00"}},{"$f":"IFERROR('LTC Rev-Exp Region 8'!$S$41/'LTC Rev-Exp Region 8'!$S$9, 0)","v":{"v":0,"d":"$0.00"}}]
["LTC",null,null,{"$f":"Jurat!I$1","v":0},{"$f":"Jurat!D$33","v":"00:00:00"},"Q4","2017-12-31","Region 8","Operating Expense","Medical Expense","Expanded Benefits","3.4","Expanded Benefits Settlements",{"$f":"IFERROR('LTC Rev-Exp Region 8'!$P$42/'LTC Rev-Exp Region 8'!$P$9, 0)","v":{"v":0,"d":"$0.00"}},{"$f":"IFERROR('LTC Rev-Exp Region 8'!$Q$42/'LTC Rev-Exp Region 8'!$Q$9, 0)","v":{"v":0,"d":"$0.00"}},{"$f":"IFERROR('LTC Rev-Exp Region 8'!$R$42/'LTC Rev-Exp Region 8'!$R$9, 0)","v":{"v":0,"d":"$0.00"}},{"$f":"IFERROR('LTC Rev-Exp Region 8'!$S$42/'LTC Rev-Exp Region 8'!$S$9, 0)","v":{"v":0,"d":"$0.00"}}]
["LTC",null,null,{"$f":"Jurat!I$1","v":0},{"$f":"Jurat!D$33","v":"00:00:00"},"Q4","2017-12-31","Region 8","Operating Expense","Medical Expense","Other Medical","4.5","TPL & Fraud/Abuse Recoveries",{"$f":"IFERROR('LTC Rev-Exp Region 8'!$P$48/'LTC Rev-Exp Region 8'!$P$9, 0)","v":{"v":0,"d":"$0.00"}},{"$f":"IFERROR('LTC Rev-Exp Region 8'!$Q$48/'LTC Rev-Exp Region 8'!$Q$9, 0)","v":{"v":0,"d":"$0.00"}},{"$f":"IFERROR('LTC Rev-Exp Region 8'!$R$48/'LTC Rev-Exp Region 8'!$R$9, 0)","v":{"v":0,"d":"$0.00"}},{"$f":"IFERROR('LTC Rev-Exp Region 8'!$S$48/'LTC Rev-Exp Region 8'!$S$9, 0)","v":{"v":0,"d":"$0.00"}}]
["LTC",null,null,{"$f":"Jurat!I$1","v":0},{"$f":"Jurat!D$33","v":"00:00:00"},"Q4","2017-12-31","Region 8","Operating Expense","Medical Expense","Other Medical","4.6.1","Premium Deficiency Reserve",{"$f":"IFERROR('LTC Rev-Exp Region 8'!$P$49/'LTC Rev-Exp Region 8'!$P$9, 0)","v":{"v":0,"d":"$0.00"}},{"$f":"IFERROR('LTC Rev-Exp Region 8'!$Q$49/'LTC Rev-Exp Region 8'!$Q$9, 0)","v":{"v":0,"d":"$0.00"}},{"$f":"IFERROR('LTC Rev-Exp Region 8'!$R$49/'LTC Rev-Exp Region 8'!$R$9, 0)","v":{"v":0,"d":"$0.00"}},{"$f":"IFERROR('LTC Rev-Exp Region 8'!$S$49/'LTC Rev-Exp Region 8'!$S$9, 0)","v":{"v":0,"d":"$0.00"}}]
["LTC",null,null,{"$f":"Jurat!I$1","v":0},{"$f":"Jurat!D$33","v":"00:00:00"},"Q4","2017-12-31","Region 8","Operating Expense","Medical Expense","Other Medical","4.8","Reinsurance Premiums",{"$f":"IFERROR('LTC Rev-Exp Region 8'!$P$51/'LTC Rev-Exp Region 8'!$P$9, 0)","v":{"v":0,"d":"$0.00"}},{"$f":"IFERROR('LTC Rev-Exp Region 8'!$Q$51/'LTC Rev-Exp Region 8'!$Q$9, 0)","v":{"v":0,"d":"$0.00"}},{"$f":"IFERROR('LTC Rev-Exp Region 8'!$R$51/'LTC Rev-Exp Region 8'!$R$9, 0)","v":{"v":0,"d":"$0.00"}},{"$f":"IFERROR('LTC Rev-Exp Region 8'!$S$51/'LTC Rev-Exp Region 8'!$S$9, 0)","v":{"v":0,"d":"$0.00"}}]
["LTC",null,null,{"$f":"Jurat!I$1","v":0},{"$f":"Jurat!D$33","v":"00:00:00"},"Q4","2017-12-31","Region 8","Operating Expense","Medical Expense","Other Medical","4.9","Reinsurance Recoveries",{"$f":"IFERROR('LTC Rev-Exp Region 8'!$P$52/'LTC Rev-Exp Region 8'!$P$9, 0)","v":{"v":0,"d":"$0.00"}},{"$f":"IFERROR('LTC Rev-Exp Region 8'!$Q$52/'LTC Rev-Exp Region 8'!$Q$9, 0)","v":{"v":0,"d":"$0.00"}},{"$f":"IFERROR('LTC Rev-Exp Region 8'!$R$52/'LTC Rev-Exp Region 8'!$R$9, 0)","v":{"v":0,"d":"$0.00"}},{"$f":"IFERROR('LTC Rev-Exp Region 8'!$S$52/'LTC Rev-Exp Region 8'!$S$9, 0)","v":{"v":0,"d":"$0.00"}}]
["LTC",null,null,{"$f":"Jurat!I$1","v":0},{"$f":"Jurat!D$33","v":"00:00:00"},"Q4","2017-12-31","Region 8","Operating Expense","Administrative Expense","Administrative","5.1","Salaries & Benefits",{"$f":"IFERROR('LTC Rev-Exp Region 8'!$P$57/'LTC Rev-Exp Region 8'!$P$9, 0)","v":{"v":0,"d":"$0.00"}},{"$f":"IFERROR('LTC Rev-Exp Region 8'!$Q$57/'LTC Rev-Exp Region 8'!$Q$9, 0)","v":{"v":0,"d":"$0.00"}},{"$f":"IFERROR('LTC Rev-Exp Region 8'!$R$57/'LTC Rev-Exp Region 8'!$R$9, 0)","v":{"v":0,"d":"$0.00"}},{"$f":"IFERROR('LTC Rev-Exp Region 8'!$S$57/'LTC Rev-Exp Region 8'!$S$9, 0)","v":{"v":0,"d":"$0.00"}}]
["LTC",null,null,{"$f":"Jurat!I$1","v":0},{"$f":"Jurat!D$33","v":"00:00:00"},"Q4","2017-12-31","Region 8","Operating Expense","Administrative Expense","Administrative","5.2","Administrative Services",{"$f":"IFERROR('LTC Rev-Exp Region 8'!$P$58/'LTC Rev-Exp Region 8'!$P$9, 0)","v":{"v":0,"d":"$0.00"}},{"$f":"IFERROR('LTC Rev-Exp Region 8'!$Q$58/'LTC Rev-Exp Region 8'!$Q$9, 0)","v":{"v":0,"d":"$0.00"}},{"$f":"IFERROR('LTC Rev-Exp Region 8'!$R$58/'LTC Rev-Exp Region 8'!$R$9, 0)","v":{"v":0,"d":"$0.00"}},{"$f":"IFERROR('LTC Rev-Exp Region 8'!$S$58/'LTC Rev-Exp Region 8'!$S$9, 0)","v":{"v":0,"d":"$0.00"}}]
["LTC",null,null,{"$f":"Jurat!I$1","v":0},{"$f":"Jurat!D$33","v":"00:00:00"},"Q4","2017-12-31","Region 8","Operating Expense","Administrative Expense","Administrative","5.3","Information Systems",{"$f":"IFERROR('LTC Rev-Exp Region 8'!$P$59/'LTC Rev-Exp Region 8'!$P$9, 0)","v":{"v":0,"d":"$0.00"}},{"$f":"IFERROR('LTC Rev-Exp Region 8'!$Q$59/'LTC Rev-Exp Region 8'!$Q$9, 0)","v":{"v":0,"d":"$0.00"}},{"$f":"IFERROR('LTC Rev-Exp Region 8'!$R$59/'LTC Rev-Exp Region 8'!$R$9, 0)","v":{"v":0,"d":"$0.00"}},{"$f":"IFERROR('LTC Rev-Exp Region 8'!$S$59/'LTC Rev-Exp Region 8'!$S$9, 0)","v":{"v":0,"d":"$0.00"}}]
["LTC",null,null,{"$f":"Jurat!I$1","v":0},{"$f":"Jurat!D$33","v":"00:00:00"},"Q4","2017-12-31","Region 8","Operating Expense","Administrative Expense","Administrative","5.4","Marketing Expenses",{"$f":"IFERROR('LTC Rev-Exp Region 8'!$P$60/'LTC Rev-Exp Region 8'!$P$9, 0)","v":{"v":0,"d":"$0.00"}},{"$f":"IFERROR('LTC Rev-Exp Region 8'!$Q$60/'LTC Rev-Exp Region 8'!$Q$9, 0)","v":{"v":0,"d":"$0.00"}},{"$f":"IFERROR('LTC Rev-Exp Region 8'!$R$60/'LTC Rev-Exp Region 8'!$R$9, 0)","v":{"v":0,"d":"$0.00"}},{"$f":"IFERROR('LTC Rev-Exp Region 8'!$S$60/'LTC Rev-Exp Region 8'!$S$9, 0)","v":{"v":0,"d":"$0.00"}}]
["LTC",null,null,{"$f":"Jurat!I$1","v":0},{"$f":"Jurat!D$33","v":"00:00:00"},"Q4","2017-12-31","Region 8","Operating Expense","Administrative Expense","Administrative","5.5","General  Administration",{"$f":"IFERROR('LTC Rev-Exp Region 8'!$P$61/'LTC Rev-Exp Region 8'!$P$9, 0)","v":{"v":0,"d":"$0.00"}},{"$f":"IFERROR('LTC Rev-Exp Region 8'!$Q$61/'LTC Rev-Exp Region 8'!$Q$9, 0)","v":{"v":0,"d":"$0.00"}},{"$f":"IFERROR('LTC Rev-Exp Region 8'!$R$61/'LTC Rev-Exp Region 8'!$R$9, 0)","v":{"v":0,"d":"$0.00"}},{"$f":"IFERROR('LTC Rev-Exp Region 8'!$S$61/'LTC Rev-Exp Region 8'!$S$9, 0)","v":{"v":0,"d":"$0.00"}}]
["LTC",null,null,{"$f":"Jurat!I$1","v":0},{"$f":"Jurat!D$33","v":"00:00:00"},"Q4","2017-12-31","Region 8","Operating Expense","Administrative Expense","Administrative","5.6","Compliance/Regulatory",{"$f":"IFERROR('LTC Rev-Exp Region 8'!$P$62/'LTC Rev-Exp Region 8'!$P$9, 0)","v":{"v":0,"d":"$0.00"}},{"$f":"IFERROR('LTC Rev-Exp Region 8'!$Q$62/'LTC Rev-Exp Region 8'!$Q$9, 0)","v":{"v":0,"d":"$0.00"}},{"$f":"IFERROR('LTC Rev-Exp Region 8'!$R$62/'LTC Rev-Exp Region 8'!$R$9, 0)","v":{"v":0,"d":"$0.00"}},{"$f":"IFERROR('LTC Rev-Exp Region 8'!$S$62/'LTC Rev-Exp Region 8'!$S$9, 0)","v":{"v":0,"d":"$0.00"}}]
["LTC",null,null,{"$f":"Jurat!I$1","v":0},{"$f":"Jurat!D$33","v":"00:00:00"},"Q4","2017-12-31","Region 8","Operating Expense","Taxes & Fees","Taxes & Fees","6.1","State Premium Tax",{"$f":"IFERROR('LTC Rev-Exp Region 8'!$P$64/'LTC Rev-Exp Region 8'!$P$9, 0)","v":{"v":0,"d":"$0.00"}},{"$f":"IFERROR('LTC Rev-Exp Region 8'!$Q$64/'LTC Rev-Exp Region 8'!$Q$9, 0)","v":{"v":0,"d":"$0.00"}},{"$f":"IFERROR('LTC Rev-Exp Region 8'!$R$64/'LTC Rev-Exp Region 8'!$R$9, 0)","v":{"v":0,"d":"$0.00"}},{"$f":"IFERROR('LTC Rev-Exp Region 8'!$S$64/'LTC Rev-Exp Region 8'!$S$9, 0)","v":{"v":0,"d":"$0.00"}}]
["LTC",null,null,{"$f":"Jurat!I$1","v":0},{"$f":"Jurat!D$33","v":"00:00:00"},"Q4","2017-12-31","Region 8","Operating Expense","Taxes & Fees","Taxes & Fees","6.2","Department of Insurance Assessments",{"$f":"IFERROR('LTC Rev-Exp Region 8'!$P$65/'LTC Rev-Exp Region 8'!$P$9, 0)","v":{"v":0,"d":"$0.00"}},{"$f":"IFERROR('LTC Rev-Exp Region 8'!$Q$65/'LTC Rev-Exp Region 8'!$Q$9, 0)","v":{"v":0,"d":"$0.00"}},{"$f":"IFERROR('LTC Rev-Exp Region 8'!$R$65/'LTC Rev-Exp Region 8'!$R$9, 0)","v":{"v":0,"d":"$0.00"}},{"$f":"IFERROR('LTC Rev-Exp Region 8'!$S$65/'LTC Rev-Exp Region 8'!$S$9, 0)","v":{"v":0,"d":"$0.00"}}]
["LTC",null,null,{"$f":"Jurat!I$1","v":0},{"$f":"Jurat!D$33","v":"00:00:00"},"Q4","2017-12-31","Region 8","Non-Operating Expense","Income Tax Expense","Income Tax Expense","9.0","Income Tax Expense",{"$f":"IFERROR('LTC Rev-Exp Region 8'!$P$72/'LTC Rev-Exp Region 8'!$P$9, 0)","v":{"v":0,"d":"$0.00"}},{"$f":"IFERROR('LTC Rev-Exp Region 8'!$Q$72/'LTC Rev-Exp Region 8'!$Q$9, 0)","v":{"v":0,"d":"$0.00"}},{"$f":"IFERROR('LTC Rev-Exp Region 8'!$R$72/'LTC Rev-Exp Region 8'!$R$9, 0)","v":{"v":0,"d":"$0.00"}},{"$f":"IFERROR('LTC Rev-Exp Region 8'!$S$72/'LTC Rev-Exp Region 8'!$S$9, 0)","v":{"v":0,"d":"$0.00"}}]
["LTC",null,null,{"$f":"Jurat!I$1","v":0},{"$f":"Jurat!D$33","v":"00:00:00"},"Q1","2017-03-31","Region 9","Operating Revenue","Capitation","Capitation",1.1,"Capitation",{"$f":"IFERROR('LTC Rev-Exp Region 9'!$D$11/'LTC Rev-Exp Region 9'!$D$9, 0)","v":{"v":0,"d":"$0.00"}},{"$f":"IFERROR('LTC Rev-Exp Region 9'!$E$11/'LTC Rev-Exp Region 9'!$E$9, 0)","v":{"v":0,"d":"$0.00"}},{"$f":"IFERROR('LTC Rev-Exp Region 9'!$F$11/'LTC Rev-Exp Region 9'!$F$9, 0)","v":{"v":0,"d":"$0.00"}},{"$f":"IFERROR('LTC Rev-Exp Region 9'!$G$11/'LTC Rev-Exp Region 9'!$G$9, 0)","v":{"v":0,"d":"$0.00"}}]
["LTC",null,null,{"$f":"Jurat!I$1","v":0},{"$f":"Jurat!D$33","v":"00:00:00"},"Q1","2017-03-31","Region 9","Operating Revenue","Capitation","NH Rate Reconciliation",1.2,"NH Rate Reconciliation",{"$f":"IFERROR('LTC Rev-Exp Region 9'!$D$12/'LTC Rev-Exp Region 9'!$D$9, 0)","v":{"v":0,"d":"$0.00"}},{"$f":"IFERROR('LTC Rev-Exp Region 9'!$E$12/'LTC Rev-Exp Region 9'!$E$9, 0)","v":{"v":0,"d":"$0.00"}},{"$f":"IFERROR('LTC Rev-Exp Region 9'!$F$12/'LTC Rev-Exp Region 9'!$F$9, 0)","v":{"v":0,"d":"$0.00"}},{"$f":"IFERROR('LTC Rev-Exp Region 9'!$G$12/'LTC Rev-Exp Region 9'!$G$9, 0)","v":{"v":0,"d":"$0.00"}}]
["LTC",null,null,{"$f":"Jurat!I$1","v":0},{"$f":"Jurat!D$33","v":"00:00:00"},"Q1","2017-03-31","Region 9","Operating Revenue","Other Revenue","Other Revenue",1.3,"Other Revenue",{"$f":"IFERROR('LTC Rev-Exp Region 9'!$D$13/'LTC Rev-Exp Region 9'!$D$9, 0)","v":{"v":0,"d":"$0.00"}},{"$f":"IFERROR('LTC Rev-Exp Region 9'!$E$13/'LTC Rev-Exp Region 9'!$E$9, 0)","v":{"v":0,"d":"$0.00"}},{"$f":"IFERROR('LTC Rev-Exp Region 9'!$F$13/'LTC Rev-Exp Region 9'!$F$9, 0)","v":{"v":0,"d":"$0.00"}},{"$f":"IFERROR('LTC Rev-Exp Region 9'!$G$13/'LTC Rev-Exp Region 9'!$G$9, 0)","v":{"v":0,"d":"$0.00"}}]
["LTC",null,null,{"$f":"Jurat!I$1","v":0},{"$f":"Jurat!D$33","v":"00:00:00"},"Q1","2017-03-31","Region 9","Operating Expense","Medical Expense","NF & Hospice","2.3","Nursing Facility FFS (Medicaid)",{"$f":"IFERROR('LTC Rev-Exp Region 9'!$D$19/'LTC Rev-Exp Region 9'!$D$9, 0)","v":{"v":0,"d":"$0.00"}},{"$f":"IFERROR('LTC Rev-Exp Region 9'!$E$19/'LTC Rev-Exp Region 9'!$E$9, 0)","v":{"v":0,"d":"$0.00"}},{"$f":"IFERROR('LTC Rev-Exp Region 9'!$F$19/'LTC Rev-Exp Region 9'!$F$9, 0)","v":{"v":0,"d":"$0.00"}},{"$f":"IFERROR('LTC Rev-Exp Region 9'!$G$19/'LTC Rev-Exp Region 9'!$G$9, 0)","v":{"v":0,"d":"$0.00"}}]
["LTC",null,null,{"$f":"Jurat!I$1","v":0},{"$f":"Jurat!D$33","v":"00:00:00"},"Q1","2017-03-31","Region 9","Operating Expense","Medical Expense","NF & Hospice","2.4","Nursing Facility FFS (Crossover)",{"$f":"IFERROR('LTC Rev-Exp Region 9'!$D$20/'LTC Rev-Exp Region 9'!$D$9, 0)","v":{"v":0,"d":"$0.00"}},{"$f":"IFERROR('LTC Rev-Exp Region 9'!$E$20/'LTC Rev-Exp Region 9'!$E$9, 0)","v":{"v":0,"d":"$0.00"}},{"$f":"IFERROR('LTC Rev-Exp Region 9'!$F$20/'LTC Rev-Exp Region 9'!$F$9, 0)","v":{"v":0,"d":"$0.00"}},{"$f":"IFERROR('LTC Rev-Exp Region 9'!$G$20/'LTC Rev-Exp Region 9'!$G$9, 0)","v":{"v":0,"d":"$0.00"}}]
["LTC",null,null,{"$f":"Jurat!I$1","v":0},{"$f":"Jurat!D$33","v":"00:00:00"},"Q1","2017-03-31","Region 9","Operating Expense","Medical Expense","NF & Hospice","2.6","Hospice FFS",{"$f":"IFERROR('LTC Rev-Exp Region 9'!$D$22/'LTC Rev-Exp Region 9'!$D$9, 0)","v":{"v":0,"d":"$0.00"}},{"$f":"IFERROR('LTC Rev-Exp Region 9'!$E$22/'LTC Rev-Exp Region 9'!$E$9, 0)","v":{"v":0,"d":"$0.00"}},{"$f":"IFERROR('LTC Rev-Exp Region 9'!$F$22/'LTC Rev-Exp Region 9'!$F$9, 0)","v":{"v":0,"d":"$0.00"}},{"$f":"IFERROR('LTC Rev-Exp Region 9'!$G$22/'LTC Rev-Exp Region 9'!$G$9, 0)","v":{"v":0,"d":"$0.00"}}]
["LTC",null,null,{"$f":"Jurat!I$1","v":0},{"$f":"Jurat!D$33","v":"00:00:00"},"Q1","2017-03-31","Region 9","Operating Expense","Medical Expense","NF & Hospice","2.7","Ending IBNP for NF & Hospice",{"$f":"IFERROR('LTC Rev-Exp Region 9'!$D$23/'LTC Rev-Exp Region 9'!$D$9, 0)","v":{"v":0,"d":"$0.00"}},{"$f":"IFERROR('LTC Rev-Exp Region 9'!$E$23/'LTC Rev-Exp Region 9'!$E$9, 0)","v":{"v":0,"d":"$0.00"}},{"$f":"IFERROR('LTC Rev-Exp Region 9'!$F$23/'LTC Rev-Exp Region 9'!$F$9, 0)","v":{"v":0,"d":"$0.00"}},{"$f":"IFERROR('LTC Rev-Exp Region 9'!$G$23/'LTC Rev-Exp Region 9'!$G$9, 0)","v":{"v":0,"d":"$0.00"}}]
["LTC",null,null,{"$f":"Jurat!I$1","v":0},{"$f":"Jurat!D$33","v":"00:00:00"},"Q1","2017-03-31","Region 9","Operating Expense","Medical Expense","NF & Hospice","2.8","NF & Hospice Subcapitated",{"$f":"IFERROR('LTC Rev-Exp Region 9'!$D$24/'LTC Rev-Exp Region 9'!$D$9, 0)","v":{"v":0,"d":"$0.00"}},{"$f":"IFERROR('LTC Rev-Exp Region 9'!$E$24/'LTC Rev-Exp Region 9'!$E$9, 0)","v":{"v":0,"d":"$0.00"}},{"$f":"IFERROR('LTC Rev-Exp Region 9'!$F$24/'LTC Rev-Exp Region 9'!$F$9, 0)","v":{"v":0,"d":"$0.00"}},{"$f":"IFERROR('LTC Rev-Exp Region 9'!$G$24/'LTC Rev-Exp Region 9'!$G$9, 0)","v":{"v":0,"d":"$0.00"}}]
["LTC",null,null,{"$f":"Jurat!I$1","v":0},{"$f":"Jurat!D$33","v":"00:00:00"},"Q1","2017-03-31","Region 9","Operating Expense","Medical Expense","NF & Hospice","2.9","NF & Hospice Settlements",{"$f":"IFERROR('LTC Rev-Exp Region 9'!$D$25/'LTC Rev-Exp Region 9'!$D$9, 0)","v":{"v":0,"d":"$0.00"}},{"$f":"IFERROR('LTC Rev-Exp Region 9'!$E$25/'LTC Rev-Exp Region 9'!$E$9, 0)","v":{"v":0,"d":"$0.00"}},{"$f":"IFERROR('LTC Rev-Exp Region 9'!$F$25/'LTC Rev-Exp Region 9'!$F$9, 0)","v":{"v":0,"d":"$0.00"}},{"$f":"IFERROR('LTC Rev-Exp Region 9'!$G$25/'LTC Rev-Exp Region 9'!$G$9, 0)","v":{"v":0,"d":"$0.00"}}]
["LTC",null,null,{"$f":"Jurat!I$1","v":0},{"$f":"Jurat!D$33","v":"00:00:00"},"Q1","2017-03-31","Region 9","Operating Expense","Medical Expense","LTC Services","2.11","Assisted Living FFS",{"$f":"IFERROR('LTC Rev-Exp Region 9'!$D$27/'LTC Rev-Exp Region 9'!$D$9, 0)","v":{"v":0,"d":"$0.00"}},{"$f":"IFERROR('LTC Rev-Exp Region 9'!$E$27/'LTC Rev-Exp Region 9'!$E$9, 0)","v":{"v":0,"d":"$0.00"}},{"$f":"IFERROR('LTC Rev-Exp Region 9'!$F$27/'LTC Rev-Exp Region 9'!$F$9, 0)","v":{"v":0,"d":"$0.00"}},{"$f":"IFERROR('LTC Rev-Exp Region 9'!$G$27/'LTC Rev-Exp Region 9'!$G$9, 0)","v":{"v":0,"d":"$0.00"}}]
["LTC",null,null,{"$f":"Jurat!I$1","v":0},{"$f":"Jurat!D$33","v":"00:00:00"},"Q1","2017-03-31","Region 9","Operating Expense","Medical Expense","LTC Services","2.12","Home Health FFS",{"$f":"IFERROR('LTC Rev-Exp Region 9'!$D$28/'LTC Rev-Exp Region 9'!$D$9, 0)","v":{"v":0,"d":"$0.00"}},{"$f":"IFERROR('LTC Rev-Exp Region 9'!$E$28/'LTC Rev-Exp Region 9'!$E$9, 0)","v":{"v":0,"d":"$0.00"}},{"$f":"IFERROR('LTC Rev-Exp Region 9'!$F$28/'LTC Rev-Exp Region 9'!$F$9, 0)","v":{"v":0,"d":"$0.00"}},{"$f":"IFERROR('LTC Rev-Exp Region 9'!$G$28/'LTC Rev-Exp Region 9'!$G$9, 0)","v":{"v":0,"d":"$0.00"}}]
["LTC",null,null,{"$f":"Jurat!I$1","v":0},{"$f":"Jurat!D$33","v":"00:00:00"},"Q1","2017-03-31","Region 9","Operating Expense","Medical Expense","LTC Services","2.13","Medical Equipment/Supplies FFS",{"$f":"IFERROR('LTC Rev-Exp Region 9'!$D$29/'LTC Rev-Exp Region 9'!$D$9, 0)","v":{"v":0,"d":"$0.00"}},{"$f":"IFERROR('LTC Rev-Exp Region 9'!$E$29/'LTC Rev-Exp Region 9'!$E$9, 0)","v":{"v":0,"d":"$0.00"}},{"$f":"IFERROR('LTC Rev-Exp Region 9'!$F$29/'LTC Rev-Exp Region 9'!$F$9, 0)","v":{"v":0,"d":"$0.00"}},{"$f":"IFERROR('LTC Rev-Exp Region 9'!$G$29/'LTC Rev-Exp Region 9'!$G$9, 0)","v":{"v":0,"d":"$0.00"}}]
["LTC",null,null,{"$f":"Jurat!I$1","v":0},{"$f":"Jurat!D$33","v":"00:00:00"},"Q1","2017-03-31","Region 9","Operating Expense","Medical Expense","LTC Services","2.14","Therapy FFS",{"$f":"IFERROR('LTC Rev-Exp Region 9'!$D$30/'LTC Rev-Exp Region 9'!$D$9, 0)","v":{"v":0,"d":"$0.00"}},{"$f":"IFERROR('LTC Rev-Exp Region 9'!$E$30/'LTC Rev-Exp Region 9'!$E$9, 0)","v":{"v":0,"d":"$0.00"}},{"$f":"IFERROR('LTC Rev-Exp Region 9'!$F$30/'LTC Rev-Exp Region 9'!$F$9, 0)","v":{"v":0,"d":"$0.00"}},{"$f":"IFERROR('LTC Rev-Exp Region 9'!$G$30/'LTC Rev-Exp Region 9'!$G$9, 0)","v":{"v":0,"d":"$0.00"}}]
["LTC",null,null,{"$f":"Jurat!I$1","v":0},{"$f":"Jurat!D$33","v":"00:00:00"},"Q1","2017-03-31","Region 9","Operating Expense","Medical Expense","LTC Services","2.15","Transportation FFS",{"$f":"IFERROR('LTC Rev-Exp Region 9'!$D$31/'LTC Rev-Exp Region 9'!$D$9, 0)","v":{"v":0,"d":"$0.00"}},{"$f":"IFERROR('LTC Rev-Exp Region 9'!$E$31/'LTC Rev-Exp Region 9'!$E$9, 0)","v":{"v":0,"d":"$0.00"}},{"$f":"IFERROR('LTC Rev-Exp Region 9'!$F$31/'LTC Rev-Exp Region 9'!$F$9, 0)","v":{"v":0,"d":"$0.00"}},{"$f":"IFERROR('LTC Rev-Exp Region 9'!$G$31/'LTC Rev-Exp Region 9'!$G$9, 0)","v":{"v":0,"d":"$0.00"}}]
["LTC",null,null,{"$f":"Jurat!I$1","v":0},{"$f":"Jurat!D$33","v":"00:00:00"},"Q1","2017-03-31","Region 9","Operating Expense","Medical Expense","LTC Services","2.16","Case Management FFS (Plan Provided)",{"$f":"IFERROR('LTC Rev-Exp Region 9'!$D$32/'LTC Rev-Exp Region 9'!$D$9, 0)","v":{"v":0,"d":"$0.00"}},{"$f":"IFERROR('LTC Rev-Exp Region 9'!$E$32/'LTC Rev-Exp Region 9'!$E$9, 0)","v":{"v":0,"d":"$0.00"}},{"$f":"IFERROR('LTC Rev-Exp Region 9'!$F$32/'LTC Rev-Exp Region 9'!$F$9, 0)","v":{"v":0,"d":"$0.00"}},{"$f":"IFERROR('LTC Rev-Exp Region 9'!$G$32/'LTC Rev-Exp Region 9'!$G$9, 0)","v":{"v":0,"d":"$0.00"}}]
["LTC",null,null,{"$f":"Jurat!I$1","v":0},{"$f":"Jurat!D$33","v":"00:00:00"},"Q1","2017-03-31","Region 9","Operating Expense","Medical Expense","LTC Services","2.17","Case Management FF (Non-Plan Provided)",{"$f":"IFERROR('LTC Rev-Exp Region 9'!$D$33/'LTC Rev-Exp Region 9'!$D$9, 0)","v":{"v":0,"d":"$0.00"}},{"$f":"IFERROR('LTC Rev-Exp Region 9'!$E$33/'LTC Rev-Exp Region 9'!$E$9, 0)","v":{"v":0,"d":"$0.00"}},{"$f":"IFERROR('LTC Rev-Exp Region 9'!$F$33/'LTC Rev-Exp Region 9'!$F$9, 0)","v":{"v":0,"d":"$0.00"}},{"$f":"IFERROR('LTC Rev-Exp Region 9'!$G$33/'LTC Rev-Exp Region 9'!$G$9, 0)","v":{"v":0,"d":"$0.00"}}]
["LTC",null,null,{"$f":"Jurat!I$1","v":0},{"$f":"Jurat!D$33","v":"00:00:00"},"Q1","2017-03-31","Region 9","Operating Expense","Medical Expense","LTC Services","2.18","HCBS FFS",{"$f":"IFERROR('LTC Rev-Exp Region 9'!$D$34/'LTC Rev-Exp Region 9'!$D$9, 0)","v":{"v":0,"d":"$0.00"}},{"$f":"IFERROR('LTC Rev-Exp Region 9'!$E$34/'LTC Rev-Exp Region 9'!$E$9, 0)","v":{"v":0,"d":"$0.00"}},{"$f":"IFERROR('LTC Rev-Exp Region 9'!$F$34/'LTC Rev-Exp Region 9'!$F$9, 0)","v":{"v":0,"d":"$0.00"}},{"$f":"IFERROR('LTC Rev-Exp Region 9'!$G$34/'LTC Rev-Exp Region 9'!$G$9, 0)","v":{"v":0,"d":"$0.00"}}]
["LTC",null,null,{"$f":"Jurat!I$1","v":0},{"$f":"Jurat!D$33","v":"00:00:00"},"Q1","2017-03-31","Region 9","Operating Expense","Medical Expense","LTC Services","2.19","Subcapitated LTC Services",{"$f":"IFERROR('LTC Rev-Exp Region 9'!$D$35/'LTC Rev-Exp Region 9'!$D$9, 0)","v":{"v":0,"d":"$0.00"}},{"$f":"IFERROR('LTC Rev-Exp Region 9'!$E$35/'LTC Rev-Exp Region 9'!$E$9, 0)","v":{"v":0,"d":"$0.00"}},{"$f":"IFERROR('LTC Rev-Exp Region 9'!$F$35/'LTC Rev-Exp Region 9'!$F$9, 0)","v":{"v":0,"d":"$0.00"}},{"$f":"IFERROR('LTC Rev-Exp Region 9'!$G$35/'LTC Rev-Exp Region 9'!$G$9, 0)","v":{"v":0,"d":"$0.00"}}]
["LTC",null,null,{"$f":"Jurat!I$1","v":0},{"$f":"Jurat!D$33","v":"00:00:00"},"Q1","2017-03-31","Region 9","Operating Expense","Medical Expense","LTC Services","2.20","Ending IBNP for Long Term Care Services",{"$f":"IFERROR('LTC Rev-Exp Region 9'!$D$36/'LTC Rev-Exp Region 9'!$D$9, 0)","v":{"v":0,"d":"$0.00"}},{"$f":"IFERROR('LTC Rev-Exp Region 9'!$E$36/'LTC Rev-Exp Region 9'!$E$9, 0)","v":{"v":0,"d":"$0.00"}},{"$f":"IFERROR('LTC Rev-Exp Region 9'!$F$36/'LTC Rev-Exp Region 9'!$F$9, 0)","v":{"v":0,"d":"$0.00"}},{"$f":"IFERROR('LTC Rev-Exp Region 9'!$G$36/'LTC Rev-Exp Region 9'!$G$9, 0)","v":{"v":0,"d":"$0.00"}}]
["LTC",null,null,{"$f":"Jurat!I$1","v":0},{"$f":"Jurat!D$33","v":"00:00:00"},"Q1","2017-03-31","Region 9","Operating Expense","Medical Expense","LTC Services","2.21","LTC Services Settlements",{"$f":"IFERROR('LTC Rev-Exp Region 9'!$D$37/'LTC Rev-Exp Region 9'!$D$9, 0)","v":{"v":0,"d":"$0.00"}},{"$f":"IFERROR('LTC Rev-Exp Region 9'!$E$37/'LTC Rev-Exp Region 9'!$E$9, 0)","v":{"v":0,"d":"$0.00"}},{"$f":"IFERROR('LTC Rev-Exp Region 9'!$F$37/'LTC Rev-Exp Region 9'!$F$9, 0)","v":{"v":0,"d":"$0.00"}},{"$f":"IFERROR('LTC Rev-Exp Region 9'!$G$37/'LTC Rev-Exp Region 9'!$G$9, 0)","v":{"v":0,"d":"$0.00"}}]
["LTC",null,null,{"$f":"Jurat!I$1","v":0},{"$f":"Jurat!D$33","v":"00:00:00"},"Q1","2017-03-31","Region 9","Operating Expense","Medical Expense","Expanded Benefits","3.1","Expanded Benefits FFS",{"$f":"IFERROR('LTC Rev-Exp Region 9'!$D$39/'LTC Rev-Exp Region 9'!$D$9, 0)","v":{"v":0,"d":"$0.00"}},{"$f":"IFERROR('LTC Rev-Exp Region 9'!$E$39/'LTC Rev-Exp Region 9'!$E$9, 0)","v":{"v":0,"d":"$0.00"}},{"$f":"IFERROR('LTC Rev-Exp Region 9'!$F$39/'LTC Rev-Exp Region 9'!$F$9, 0)","v":{"v":0,"d":"$0.00"}},{"$f":"IFERROR('LTC Rev-Exp Region 9'!$G$39/'LTC Rev-Exp Region 9'!$G$9, 0)","v":{"v":0,"d":"$0.00"}}]
["LTC",null,null,{"$f":"Jurat!I$1","v":0},{"$f":"Jurat!D$33","v":"00:00:00"},"Q1","2017-03-31","Region 9","Operating Expense","Medical Expense","Expanded Benefits","3.2","Expanded Benefits Subcapitation",{"$f":"IFERROR('LTC Rev-Exp Region 9'!$D$40/'LTC Rev-Exp Region 9'!$D$9, 0)","v":{"v":0,"d":"$0.00"}},{"$f":"IFERROR('LTC Rev-Exp Region 9'!$E$40/'LTC Rev-Exp Region 9'!$E$9, 0)","v":{"v":0,"d":"$0.00"}},{"$f":"IFERROR('LTC Rev-Exp Region 9'!$F$40/'LTC Rev-Exp Region 9'!$F$9, 0)","v":{"v":0,"d":"$0.00"}},{"$f":"IFERROR('LTC Rev-Exp Region 9'!$G$40/'LTC Rev-Exp Region 9'!$G$9, 0)","v":{"v":0,"d":"$0.00"}}]
["LTC",null,null,{"$f":"Jurat!I$1","v":0},{"$f":"Jurat!D$33","v":"00:00:00"},"Q1","2017-03-31","Region 9","Operating Expense","Medical Expense","Expanded Benefits","3.3","Ending IBNP for Expanded Benefits",{"$f":"IFERROR('LTC Rev-Exp Region 9'!$D$41/'LTC Rev-Exp Region 9'!$D$9, 0)","v":{"v":0,"d":"$0.00"}},{"$f":"IFERROR('LTC Rev-Exp Region 9'!$E$41/'LTC Rev-Exp Region 9'!$E$9, 0)","v":{"v":0,"d":"$0.00"}},{"$f":"IFERROR('LTC Rev-Exp Region 9'!$F$41/'LTC Rev-Exp Region 9'!$F$9, 0)","v":{"v":0,"d":"$0.00"}},{"$f":"IFERROR('LTC Rev-Exp Region 9'!$G$41/'LTC Rev-Exp Region 9'!$G$9, 0)","v":{"v":0,"d":"$0.00"}}]
["LTC",null,null,{"$f":"Jurat!I$1","v":0},{"$f":"Jurat!D$33","v":"00:00:00"},"Q1","2017-03-31","Region 9","Operating Expense","Medical Expense","Expanded Benefits","3.4","Expanded Benefits Settlements",{"$f":"IFERROR('LTC Rev-Exp Region 9'!$D$42/'LTC Rev-Exp Region 9'!$D$9, 0)","v":{"v":0,"d":"$0.00"}},{"$f":"IFERROR('LTC Rev-Exp Region 9'!$E$42/'LTC Rev-Exp Region 9'!$E$9, 0)","v":{"v":0,"d":"$0.00"}},{"$f":"IFERROR('LTC Rev-Exp Region 9'!$F$42/'LTC Rev-Exp Region 9'!$F$9, 0)","v":{"v":0,"d":"$0.00"}},{"$f":"IFERROR('LTC Rev-Exp Region 9'!$G$42/'LTC Rev-Exp Region 9'!$G$9, 0)","v":{"v":0,"d":"$0.00"}}]
["LTC",null,null,{"$f":"Jurat!I$1","v":0},{"$f":"Jurat!D$33","v":"00:00:00"},"Q1","2017-03-31","Region 9","Operating Expense","Medical Expense","Other Medical","4.5","TPL & Fraud/Abuse Recoveries",{"$f":"IFERROR('LTC Rev-Exp Region 9'!$D$48/'LTC Rev-Exp Region 9'!$D$9, 0)","v":{"v":0,"d":"$0.00"}},{"$f":"IFERROR('LTC Rev-Exp Region 9'!$E$48/'LTC Rev-Exp Region 9'!$E$9, 0)","v":{"v":0,"d":"$0.00"}},{"$f":"IFERROR('LTC Rev-Exp Region 9'!$F$48/'LTC Rev-Exp Region 9'!$F$9, 0)","v":{"v":0,"d":"$0.00"}},{"$f":"IFERROR('LTC Rev-Exp Region 9'!$G$48/'LTC Rev-Exp Region 9'!$G$9, 0)","v":{"v":0,"d":"$0.00"}}]
["LTC",null,null,{"$f":"Jurat!I$1","v":0},{"$f":"Jurat!D$33","v":"00:00:00"},"Q1","2017-03-31","Region 9","Operating Expense","Medical Expense","Other Medical","4.6.1","Premium Deficiency Reserve",{"$f":"IFERROR('LTC Rev-Exp Region 9'!$D$49/'LTC Rev-Exp Region 9'!$D$9, 0)","v":{"v":0,"d":"$0.00"}},{"$f":"IFERROR('LTC Rev-Exp Region 9'!$E$49/'LTC Rev-Exp Region 9'!$E$9, 0)","v":{"v":0,"d":"$0.00"}},{"$f":"IFERROR('LTC Rev-Exp Region 9'!$F$49/'LTC Rev-Exp Region 9'!$F$9, 0)","v":{"v":0,"d":"$0.00"}},{"$f":"IFERROR('LTC Rev-Exp Region 9'!$G$49/'LTC Rev-Exp Region 9'!$G$9, 0)","v":{"v":0,"d":"$0.00"}}]
["LTC",null,null,{"$f":"Jurat!I$1","v":0},{"$f":"Jurat!D$33","v":"00:00:00"},"Q1","2017-03-31","Region 9","Operating Expense","Medical Expense","Other Medical","4.8","Reinsurance Premiums",{"$f":"IFERROR('LTC Rev-Exp Region 9'!$D$51/'LTC Rev-Exp Region 9'!$D$9, 0)","v":{"v":0,"d":"$0.00"}},{"$f":"IFERROR('LTC Rev-Exp Region 9'!$E$51/'LTC Rev-Exp Region 9'!$E$9, 0)","v":{"v":0,"d":"$0.00"}},{"$f":"IFERROR('LTC Rev-Exp Region 9'!$F$51/'LTC Rev-Exp Region 9'!$F$9, 0)","v":{"v":0,"d":"$0.00"}},{"$f":"IFERROR('LTC Rev-Exp Region 9'!$G$51/'LTC Rev-Exp Region 9'!$G$9, 0)","v":{"v":0,"d":"$0.00"}}]
["LTC",null,null,{"$f":"Jurat!I$1","v":0},{"$f":"Jurat!D$33","v":"00:00:00"},"Q1","2017-03-31","Region 9","Operating Expense","Medical Expense","Other Medical","4.9","Reinsurance Recoveries",{"$f":"IFERROR('LTC Rev-Exp Region 9'!$D$52/'LTC Rev-Exp Region 9'!$D$9, 0)","v":{"v":0,"d":"$0.00"}},{"$f":"IFERROR('LTC Rev-Exp Region 9'!$E$52/'LTC Rev-Exp Region 9'!$E$9, 0)","v":{"v":0,"d":"$0.00"}},{"$f":"IFERROR('LTC Rev-Exp Region 9'!$F$52/'LTC Rev-Exp Region 9'!$F$9, 0)","v":{"v":0,"d":"$0.00"}},{"$f":"IFERROR('LTC Rev-Exp Region 9'!$G$52/'LTC Rev-Exp Region 9'!$G$9, 0)","v":{"v":0,"d":"$0.00"}}]
["LTC",null,null,{"$f":"Jurat!I$1","v":0},{"$f":"Jurat!D$33","v":"00:00:00"},"Q1","2017-03-31","Region 9","Operating Expense","Administrative Expense","Administrative","5.1","Salaries & Benefits",{"$f":"IFERROR('LTC Rev-Exp Region 9'!$D$57/'LTC Rev-Exp Region 9'!$D$9, 0)","v":{"v":0,"d":"$0.00"}},{"$f":"IFERROR('LTC Rev-Exp Region 9'!$E$57/'LTC Rev-Exp Region 9'!$D$9, 0)","v":{"v":0,"d":"$0.00"}},{"$f":"IFERROR('LTC Rev-Exp Region 9'!$F$57/'LTC Rev-Exp Region 9'!$D$9, 0)","v":{"v":0,"d":"$0.00"}},{"$f":"IFERROR('LTC Rev-Exp Region 9'!$G$57/'LTC Rev-Exp Region 9'!$D$9, 0)","v":{"v":0,"d":"$0.00"}}]
["LTC",null,null,{"$f":"Jurat!I$1","v":0},{"$f":"Jurat!D$33","v":"00:00:00"},"Q1","2017-03-31","Region 9","Operating Expense","Administrative Expense","Administrative","5.2","Administrative Services",{"$f":"IFERROR('LTC Rev-Exp Region 9'!$D$58/'LTC Rev-Exp Region 9'!$D$9, 0)","v":{"v":0,"d":"$0.00"}},{"$f":"IFERROR('LTC Rev-Exp Region 9'!$E$58/'LTC Rev-Exp Region 9'!$D$9, 0)","v":{"v":0,"d":"$0.00"}},{"$f":"IFERROR('LTC Rev-Exp Region 9'!$F$58/'LTC Rev-Exp Region 9'!$D$9, 0)","v":{"v":0,"d":"$0.00"}},{"$f":"IFERROR('LTC Rev-Exp Region 9'!$G$58/'LTC Rev-Exp Region 9'!$D$9, 0)","v":{"v":0,"d":"$0.00"}}]
["LTC",null,null,{"$f":"Jurat!I$1","v":0},{"$f":"Jurat!D$33","v":"00:00:00"},"Q1","2017-03-31","Region 9","Operating Expense","Administrative Expense","Administrative","5.3","Information Systems",{"$f":"IFERROR('LTC Rev-Exp Region 9'!$D$59/'LTC Rev-Exp Region 9'!$D$9, 0)","v":{"v":0,"d":"$0.00"}},{"$f":"IFERROR('LTC Rev-Exp Region 9'!$E$59/'LTC Rev-Exp Region 9'!$D$9, 0)","v":{"v":0,"d":"$0.00"}},{"$f":"IFERROR('LTC Rev-Exp Region 9'!$F$59/'LTC Rev-Exp Region 9'!$D$9, 0)","v":{"v":0,"d":"$0.00"}},{"$f":"IFERROR('LTC Rev-Exp Region 9'!$G$59/'LTC Rev-Exp Region 9'!$D$9, 0)","v":{"v":0,"d":"$0.00"}}]
["LTC",null,null,{"$f":"Jurat!I$1","v":0},{"$f":"Jurat!D$33","v":"00:00:00"},"Q1","2017-03-31","Region 9","Operating Expense","Administrative Expense","Administrative","5.4","Marketing Expenses",{"$f":"IFERROR('LTC Rev-Exp Region 9'!$D$60/'LTC Rev-Exp Region 9'!$D$9, 0)","v":{"v":0,"d":"$0.00"}},{"$f":"IFERROR('LTC Rev-Exp Region 9'!$E$60/'LTC Rev-Exp Region 9'!$D$9, 0)","v":{"v":0,"d":"$0.00"}},{"$f":"IFERROR('LTC Rev-Exp Region 9'!$F$60/'LTC Rev-Exp Region 9'!$D$9, 0)","v":{"v":0,"d":"$0.00"}},{"$f":"IFERROR('LTC Rev-Exp Region 9'!$G$60/'LTC Rev-Exp Region 9'!$D$9, 0)","v":{"v":0,"d":"$0.00"}}]
["LTC",null,null,{"$f":"Jurat!I$1","v":0},{"$f":"Jurat!D$33","v":"00:00:00"},"Q1","2017-03-31","Region 9","Operating Expense","Administrative Expense","Administrative","5.5","General  Administration",{"$f":"IFERROR('LTC Rev-Exp Region 9'!$D$61/'LTC Rev-Exp Region 9'!$D$9, 0)","v":{"v":0,"d":"$0.00"}},{"$f":"IFERROR('LTC Rev-Exp Region 9'!$E$61/'LTC Rev-Exp Region 9'!$D$9, 0)","v":{"v":0,"d":"$0.00"}},{"$f":"IFERROR('LTC Rev-Exp Region 9'!$F$61/'LTC Rev-Exp Region 9'!$D$9, 0)","v":{"v":0,"d":"$0.00"}},{"$f":"IFERROR('LTC Rev-Exp Region 9'!$G$61/'LTC Rev-Exp Region 9'!$D$9, 0)","v":{"v":0,"d":"$0.00"}}]
["LTC",null,null,{"$f":"Jurat!I$1","v":0},{"$f":"Jurat!D$33","v":"00:00:00"},"Q1","2017-03-31","Region 9","Operating Expense","Administrative Expense","Administrative","5.6","Compliance/Regulatory",{"$f":"IFERROR('LTC Rev-Exp Region 9'!$D$62/'LTC Rev-Exp Region 9'!$D$9, 0)","v":{"v":0,"d":"$0.00"}},{"$f":"IFERROR('LTC Rev-Exp Region 9'!$E$62/'LTC Rev-Exp Region 9'!$D$9, 0)","v":{"v":0,"d":"$0.00"}},{"$f":"IFERROR('LTC Rev-Exp Region 9'!$F$62/'LTC Rev-Exp Region 9'!$D$9, 0)","v":{"v":0,"d":"$0.00"}},{"$f":"IFERROR('LTC Rev-Exp Region 9'!$G$62/'LTC Rev-Exp Region 9'!$D$9, 0)","v":{"v":0,"d":"$0.00"}}]
["LTC",null,null,{"$f":"Jurat!I$1","v":0},{"$f":"Jurat!D$33","v":"00:00:00"},"Q1","2017-03-31","Region 9","Operating Expense","Taxes & Fees","Taxes & Fees","6.1","State Premium Tax",{"$f":"IFERROR('LTC Rev-Exp Region 9'!$D$64/'LTC Rev-Exp Region 9'!$D$9, 0)","v":{"v":0,"d":"$0.00"}},{"$f":"IFERROR('LTC Rev-Exp Region 9'!$E$64/'LTC Rev-Exp Region 9'!$E$9, 0)","v":{"v":0,"d":"$0.00"}},{"$f":"IFERROR('LTC Rev-Exp Region 9'!$F$64/'LTC Rev-Exp Region 9'!$F$9, 0)","v":{"v":0,"d":"$0.00"}},{"$f":"IFERROR('LTC Rev-Exp Region 9'!$G$64/'LTC Rev-Exp Region 9'!$G$9, 0)","v":{"v":0,"d":"$0.00"}}]
["LTC",null,null,{"$f":"Jurat!I$1","v":0},{"$f":"Jurat!D$33","v":"00:00:00"},"Q1","2017-03-31","Region 9","Operating Expense","Taxes & Fees","Taxes & Fees","6.2","Department of Insurance Assessments",{"$f":"IFERROR('LTC Rev-Exp Region 9'!$D$65/'LTC Rev-Exp Region 9'!$D$9, 0)","v":{"v":0,"d":"$0.00"}},{"$f":"IFERROR('LTC Rev-Exp Region 9'!$E$65/'LTC Rev-Exp Region 9'!$E$9, 0)","v":{"v":0,"d":"$0.00"}},{"$f":"IFERROR('LTC Rev-Exp Region 9'!$F$65/'LTC Rev-Exp Region 9'!$F$9, 0)","v":{"v":0,"d":"$0.00"}},{"$f":"IFERROR('LTC Rev-Exp Region 9'!$G$65/'LTC Rev-Exp Region 9'!$G$9, 0)","v":{"v":0,"d":"$0.00"}}]
["LTC",null,null,{"$f":"Jurat!I$1","v":0},{"$f":"Jurat!D$33","v":"00:00:00"},"Q1","2017-03-31","Region 9","Non-Operating Expense","Income Tax Expense","Income Tax Expense","9.0","Income Tax Expense",{"$f":"IFERROR('LTC Rev-Exp Region 9'!$D$72/'LTC Rev-Exp Region 9'!$D$9, 0)","v":{"v":0,"d":"$0.00"}},{"$f":"IFERROR('LTC Rev-Exp Region 9'!$E$72/'LTC Rev-Exp Region 9'!$E$9, 0)","v":{"v":0,"d":"$0.00"}},{"$f":"IFERROR('LTC Rev-Exp Region 9'!$F$72/'LTC Rev-Exp Region 9'!$F$9, 0)","v":{"v":0,"d":"$0.00"}},{"$f":"IFERROR('LTC Rev-Exp Region 9'!$G$72/'LTC Rev-Exp Region 9'!$G$9, 0)","v":{"v":0,"d":"$0.00"}}]
["LTC",null,null,{"$f":"Jurat!I$1","v":0},{"$f":"Jurat!D$33","v":"00:00:00"},"Q2","2017-06-30","Region 9","Operating Revenue","Capitation","Capitation",1.1,"Capitation",{"$f":"IFERROR('LTC Rev-Exp Region 9'!$H$11/'LTC Rev-Exp Region 9'!$H$9, 0)","v":{"v":0,"d":"$0.00"}},{"$f":"IFERROR('LTC Rev-Exp Region 9'!$I$11/'LTC Rev-Exp Region 9'!$I$9, 0)","v":{"v":0,"d":"$0.00"}},{"$f":"IFERROR('LTC Rev-Exp Region 9'!$J$11/'LTC Rev-Exp Region 9'!$J$9, 0)","v":{"v":0,"d":"$0.00"}},{"$f":"IFERROR('LTC Rev-Exp Region 9'!$K$11/'LTC Rev-Exp Region 9'!$K$9, 0)","v":{"v":0,"d":"$0.00"}}]
["LTC",null,null,{"$f":"Jurat!I$1","v":0},{"$f":"Jurat!D$33","v":"00:00:00"},"Q2","2017-06-30","Region 9","Operating Revenue","Capitation","NH Rate Reconciliation",1.2,"NH Rate Reconciliation",{"$f":"IFERROR('LTC Rev-Exp Region 9'!$H$12/'LTC Rev-Exp Region 9'!$H$9, 0)","v":{"v":0,"d":"$0.00"}},{"$f":"IFERROR('LTC Rev-Exp Region 9'!$I$12/'LTC Rev-Exp Region 9'!$I$9, 0)","v":{"v":0,"d":"$0.00"}},{"$f":"IFERROR('LTC Rev-Exp Region 9'!$J$12/'LTC Rev-Exp Region 9'!$J$9, 0)","v":{"v":0,"d":"$0.00"}},{"$f":"IFERROR('LTC Rev-Exp Region 9'!$K$12/'LTC Rev-Exp Region 9'!$K$9, 0)","v":{"v":0,"d":"$0.00"}}]
["LTC",null,null,{"$f":"Jurat!I$1","v":0},{"$f":"Jurat!D$33","v":"00:00:00"},"Q2","2017-06-30","Region 9","Operating Revenue","Other Revenue","Other Revenue",1.3,"Other Revenue",{"$f":"IFERROR('LTC Rev-Exp Region 9'!$H$13/'LTC Rev-Exp Region 9'!$H$9, 0)","v":{"v":0,"d":"$0.00"}},{"$f":"IFERROR('LTC Rev-Exp Region 9'!$I$13/'LTC Rev-Exp Region 9'!$I$9, 0)","v":{"v":0,"d":"$0.00"}},{"$f":"IFERROR('LTC Rev-Exp Region 9'!$J$13/'LTC Rev-Exp Region 9'!$J$9, 0)","v":{"v":0,"d":"$0.00"}},{"$f":"IFERROR('LTC Rev-Exp Region 9'!$K$13/'LTC Rev-Exp Region 9'!$K$9, 0)","v":{"v":0,"d":"$0.00"}}]
["LTC",null,null,{"$f":"Jurat!I$1","v":0},{"$f":"Jurat!D$33","v":"00:00:00"},"Q2","2017-06-30","Region 9","Operating Expense","Medical Expense","NF & Hospice","2.3","Nursing Facility FFS (Medicaid)",{"$f":"IFERROR('LTC Rev-Exp Region 9'!$H$19/'LTC Rev-Exp Region 9'!$H$9, 0)","v":{"v":0,"d":"$0.00"}},{"$f":"IFERROR('LTC Rev-Exp Region 9'!$I$19/'LTC Rev-Exp Region 9'!$I$9, 0)","v":{"v":0,"d":"$0.00"}},{"$f":"IFERROR('LTC Rev-Exp Region 9'!$J$19/'LTC Rev-Exp Region 9'!$J$9, 0)","v":{"v":0,"d":"$0.00"}},{"$f":"IFERROR('LTC Rev-Exp Region 9'!$K$19/'LTC Rev-Exp Region 9'!$K$9, 0)","v":{"v":0,"d":"$0.00"}}]
["LTC",null,null,{"$f":"Jurat!I$1","v":0},{"$f":"Jurat!D$33","v":"00:00:00"},"Q2","2017-06-30","Region 9","Operating Expense","Medical Expense","NF & Hospice","2.4","Nursing Facility FFS (Crossover)",{"$f":"IFERROR('LTC Rev-Exp Region 9'!$H$20/'LTC Rev-Exp Region 9'!$H$9, 0)","v":{"v":0,"d":"$0.00"}},{"$f":"IFERROR('LTC Rev-Exp Region 9'!$I$20/'LTC Rev-Exp Region 9'!$I$9, 0)","v":{"v":0,"d":"$0.00"}},{"$f":"IFERROR('LTC Rev-Exp Region 9'!$J$20/'LTC Rev-Exp Region 9'!$J$9, 0)","v":{"v":0,"d":"$0.00"}},{"$f":"IFERROR('LTC Rev-Exp Region 9'!$K$20/'LTC Rev-Exp Region 9'!$K$9, 0)","v":{"v":0,"d":"$0.00"}}]
["LTC",null,null,{"$f":"Jurat!I$1","v":0},{"$f":"Jurat!D$33","v":"00:00:00"},"Q2","2017-06-30","Region 9","Operating Expense","Medical Expense","NF & Hospice","2.6","Hospice FFS",{"$f":"IFERROR('LTC Rev-Exp Region 9'!$H$22/'LTC Rev-Exp Region 9'!$H$9, 0)","v":{"v":0,"d":"$0.00"}},{"$f":"IFERROR('LTC Rev-Exp Region 9'!$I$22/'LTC Rev-Exp Region 9'!$I$9, 0)","v":{"v":0,"d":"$0.00"}},{"$f":"IFERROR('LTC Rev-Exp Region 9'!$J$22/'LTC Rev-Exp Region 9'!$J$9, 0)","v":{"v":0,"d":"$0.00"}},{"$f":"IFERROR('LTC Rev-Exp Region 9'!$K$22/'LTC Rev-Exp Region 9'!$K$9, 0)","v":{"v":0,"d":"$0.00"}}]
["LTC",null,null,{"$f":"Jurat!I$1","v":0},{"$f":"Jurat!D$33","v":"00:00:00"},"Q2","2017-06-30","Region 9","Operating Expense","Medical Expense","NF & Hospice","2.7","Ending IBNP for NF & Hospice",{"$f":"IFERROR('LTC Rev-Exp Region 9'!$H$23/'LTC Rev-Exp Region 9'!$H$9, 0)","v":{"v":0,"d":"$0.00"}},{"$f":"IFERROR('LTC Rev-Exp Region 9'!$I$23/'LTC Rev-Exp Region 9'!$I$9, 0)","v":{"v":0,"d":"$0.00"}},{"$f":"IFERROR('LTC Rev-Exp Region 9'!$J$23/'LTC Rev-Exp Region 9'!$J$9, 0)","v":{"v":0,"d":"$0.00"}},{"$f":"IFERROR('LTC Rev-Exp Region 9'!$K$23/'LTC Rev-Exp Region 9'!$K$9, 0)","v":{"v":0,"d":"$0.00"}}]
["LTC",null,null,{"$f":"Jurat!I$1","v":0},{"$f":"Jurat!D$33","v":"00:00:00"},"Q2","2017-06-30","Region 9","Operating Expense","Medical Expense","NF & Hospice","2.8","NF & Hospice Subcapitated",{"$f":"IFERROR('LTC Rev-Exp Region 9'!$H$24/'LTC Rev-Exp Region 9'!$H$9, 0)","v":{"v":0,"d":"$0.00"}},{"$f":"IFERROR('LTC Rev-Exp Region 9'!$I$24/'LTC Rev-Exp Region 9'!$I$9, 0)","v":{"v":0,"d":"$0.00"}},{"$f":"IFERROR('LTC Rev-Exp Region 9'!$J$24/'LTC Rev-Exp Region 9'!$J$9, 0)","v":{"v":0,"d":"$0.00"}},{"$f":"IFERROR('LTC Rev-Exp Region 9'!$K$24/'LTC Rev-Exp Region 9'!$K$9, 0)","v":{"v":0,"d":"$0.00"}}]
["LTC",null,null,{"$f":"Jurat!I$1","v":0},{"$f":"Jurat!D$33","v":"00:00:00"},"Q2","2017-06-30","Region 9","Operating Expense","Medical Expense","NF & Hospice","2.9","NF & Hospice Settlements",{"$f":"IFERROR('LTC Rev-Exp Region 9'!$H$25/'LTC Rev-Exp Region 9'!$H$9, 0)","v":{"v":0,"d":"$0.00"}},{"$f":"IFERROR('LTC Rev-Exp Region 9'!$I$25/'LTC Rev-Exp Region 9'!$I$9, 0)","v":{"v":0,"d":"$0.00"}},{"$f":"IFERROR('LTC Rev-Exp Region 9'!$J$25/'LTC Rev-Exp Region 9'!$J$9, 0)","v":{"v":0,"d":"$0.00"}},{"$f":"IFERROR('LTC Rev-Exp Region 9'!$K$25/'LTC Rev-Exp Region 9'!$K$9, 0)","v":{"v":0,"d":"$0.00"}}]
["LTC",null,null,{"$f":"Jurat!I$1","v":0},{"$f":"Jurat!D$33","v":"00:00:00"},"Q2","2017-06-30","Region 9","Operating Expense","Medical Expense","LTC Services","2.11","Assisted Living FFS",{"$f":"IFERROR('LTC Rev-Exp Region 9'!$H$27/'LTC Rev-Exp Region 9'!$H$9, 0)","v":{"v":0,"d":"$0.00"}},{"$f":"IFERROR('LTC Rev-Exp Region 9'!$I$27/'LTC Rev-Exp Region 9'!$I$9, 0)","v":{"v":0,"d":"$0.00"}},{"$f":"IFERROR('LTC Rev-Exp Region 9'!$J$27/'LTC Rev-Exp Region 9'!$J$9, 0)","v":{"v":0,"d":"$0.00"}},{"$f":"IFERROR('LTC Rev-Exp Region 9'!$K$27/'LTC Rev-Exp Region 9'!$K$9, 0)","v":{"v":0,"d":"$0.00"}}]
["LTC",null,null,{"$f":"Jurat!I$1","v":0},{"$f":"Jurat!D$33","v":"00:00:00"},"Q2","2017-06-30","Region 9","Operating Expense","Medical Expense","LTC Services","2.12","Home Health FFS",{"$f":"IFERROR('LTC Rev-Exp Region 9'!$H$28/'LTC Rev-Exp Region 9'!$H$9, 0)","v":{"v":0,"d":"$0.00"}},{"$f":"IFERROR('LTC Rev-Exp Region 9'!$I$28/'LTC Rev-Exp Region 9'!$I$9, 0)","v":{"v":0,"d":"$0.00"}},{"$f":"IFERROR('LTC Rev-Exp Region 9'!$J$28/'LTC Rev-Exp Region 9'!$J$9, 0)","v":{"v":0,"d":"$0.00"}},{"$f":"IFERROR('LTC Rev-Exp Region 9'!$K$28/'LTC Rev-Exp Region 9'!$K$9, 0)","v":{"v":0,"d":"$0.00"}}]
["LTC",null,null,{"$f":"Jurat!I$1","v":0},{"$f":"Jurat!D$33","v":"00:00:00"},"Q2","2017-06-30","Region 9","Operating Expense","Medical Expense","LTC Services","2.13","Medical Equipment/Supplies FFS",{"$f":"IFERROR('LTC Rev-Exp Region 9'!$H$29/'LTC Rev-Exp Region 9'!$H$9, 0)","v":{"v":0,"d":"$0.00"}},{"$f":"IFERROR('LTC Rev-Exp Region 9'!$I$29/'LTC Rev-Exp Region 9'!$I$9, 0)","v":{"v":0,"d":"$0.00"}},{"$f":"IFERROR('LTC Rev-Exp Region 9'!$J$29/'LTC Rev-Exp Region 9'!$J$9, 0)","v":{"v":0,"d":"$0.00"}},{"$f":"IFERROR('LTC Rev-Exp Region 9'!$K$29/'LTC Rev-Exp Region 9'!$K$9, 0)","v":{"v":0,"d":"$0.00"}}]
["LTC",null,null,{"$f":"Jurat!I$1","v":0},{"$f":"Jurat!D$33","v":"00:00:00"},"Q2","2017-06-30","Region 9","Operating Expense","Medical Expense","LTC Services","2.14","Therapy FFS",{"$f":"IFERROR('LTC Rev-Exp Region 9'!$H$30/'LTC Rev-Exp Region 9'!$H$9, 0)","v":{"v":0,"d":"$0.00"}},{"$f":"IFERROR('LTC Rev-Exp Region 9'!$I$30/'LTC Rev-Exp Region 9'!$I$9, 0)","v":{"v":0,"d":"$0.00"}},{"$f":"IFERROR('LTC Rev-Exp Region 9'!$J$30/'LTC Rev-Exp Region 9'!$J$9, 0)","v":{"v":0,"d":"$0.00"}},{"$f":"IFERROR('LTC Rev-Exp Region 9'!$K$30/'LTC Rev-Exp Region 9'!$K$9, 0)","v":{"v":0,"d":"$0.00"}}]
["LTC",null,null,{"$f":"Jurat!I$1","v":0},{"$f":"Jurat!D$33","v":"00:00:00"},"Q2","2017-06-30","Region 9","Operating Expense","Medical Expense","LTC Services","2.15","Transportation FFS",{"$f":"IFERROR('LTC Rev-Exp Region 9'!$H$31/'LTC Rev-Exp Region 9'!$H$9, 0)","v":{"v":0,"d":"$0.00"}},{"$f":"IFERROR('LTC Rev-Exp Region 9'!$I$31/'LTC Rev-Exp Region 9'!$I$9, 0)","v":{"v":0,"d":"$0.00"}},{"$f":"IFERROR('LTC Rev-Exp Region 9'!$J$31/'LTC Rev-Exp Region 9'!$J$9, 0)","v":{"v":0,"d":"$0.00"}},{"$f":"IFERROR('LTC Rev-Exp Region 9'!$K$31/'LTC Rev-Exp Region 9'!$K$9, 0)","v":{"v":0,"d":"$0.00"}}]
["LTC",null,null,{"$f":"Jurat!I$1","v":0},{"$f":"Jurat!D$33","v":"00:00:00"},"Q2","2017-06-30","Region 9","Operating Expense","Medical Expense","LTC Services","2.16","Case Management FFS (Plan Provided)",{"$f":"IFERROR('LTC Rev-Exp Region 9'!$H$32/'LTC Rev-Exp Region 9'!$H$9, 0)","v":{"v":0,"d":"$0.00"}},{"$f":"IFERROR('LTC Rev-Exp Region 9'!$I$32/'LTC Rev-Exp Region 9'!$I$9, 0)","v":{"v":0,"d":"$0.00"}},{"$f":"IFERROR('LTC Rev-Exp Region 9'!$J$32/'LTC Rev-Exp Region 9'!$J$9, 0)","v":{"v":0,"d":"$0.00"}},{"$f":"IFERROR('LTC Rev-Exp Region 9'!$K$32/'LTC Rev-Exp Region 9'!$K$9, 0)","v":{"v":0,"d":"$0.00"}}]
["LTC",null,null,{"$f":"Jurat!I$1","v":0},{"$f":"Jurat!D$33","v":"00:00:00"},"Q2","2017-06-30","Region 9","Operating Expense","Medical Expense","LTC Services","2.17","Case Management FF (Non-Plan Provided)",{"$f":"IFERROR('LTC Rev-Exp Region 9'!$H$33/'LTC Rev-Exp Region 9'!$H$9, 0)","v":{"v":0,"d":"$0.00"}},{"$f":"IFERROR('LTC Rev-Exp Region 9'!$I$33/'LTC Rev-Exp Region 9'!$I$9, 0)","v":{"v":0,"d":"$0.00"}},{"$f":"IFERROR('LTC Rev-Exp Region 9'!$J$33/'LTC Rev-Exp Region 9'!$J$9, 0)","v":{"v":0,"d":"$0.00"}},{"$f":"IFERROR('LTC Rev-Exp Region 9'!$K$33/'LTC Rev-Exp Region 9'!$K$9, 0)","v":{"v":0,"d":"$0.00"}}]
["LTC",null,null,{"$f":"Jurat!I$1","v":0},{"$f":"Jurat!D$33","v":"00:00:00"},"Q2","2017-06-30","Region 9","Operating Expense","Medical Expense","LTC Services","2.18","HCBS FFS",{"$f":"IFERROR('LTC Rev-Exp Region 9'!$H$34/'LTC Rev-Exp Region 9'!$H$9, 0)","v":{"v":0,"d":"$0.00"}},{"$f":"IFERROR('LTC Rev-Exp Region 9'!$I$34/'LTC Rev-Exp Region 9'!$I$9, 0)","v":{"v":0,"d":"$0.00"}},{"$f":"IFERROR('LTC Rev-Exp Region 9'!$J$34/'LTC Rev-Exp Region 9'!$J$9, 0)","v":{"v":0,"d":"$0.00"}},{"$f":"IFERROR('LTC Rev-Exp Region 9'!$K$34/'LTC Rev-Exp Region 9'!$K$9, 0)","v":{"v":0,"d":"$0.00"}}]
["LTC",null,null,{"$f":"Jurat!I$1","v":0},{"$f":"Jurat!D$33","v":"00:00:00"},"Q2","2017-06-30","Region 9","Operating Expense","Medical Expense","LTC Services","2.19","Subcapitated LTC Services",{"$f":"IFERROR('LTC Rev-Exp Region 9'!$H$35/'LTC Rev-Exp Region 9'!$H$9, 0)","v":{"v":0,"d":"$0.00"}},{"$f":"IFERROR('LTC Rev-Exp Region 9'!$I$35/'LTC Rev-Exp Region 9'!$I$9, 0)","v":{"v":0,"d":"$0.00"}},{"$f":"IFERROR('LTC Rev-Exp Region 9'!$J$35/'LTC Rev-Exp Region 9'!$J$9, 0)","v":{"v":0,"d":"$0.00"}},{"$f":"IFERROR('LTC Rev-Exp Region 9'!$K$35/'LTC Rev-Exp Region 9'!$K$9, 0)","v":{"v":0,"d":"$0.00"}}]
["LTC",null,null,{"$f":"Jurat!I$1","v":0},{"$f":"Jurat!D$33","v":"00:00:00"},"Q2","2017-06-30","Region 9","Operating Expense","Medical Expense","LTC Services","2.20","Ending IBNP for Long Term Care Services",{"$f":"IFERROR('LTC Rev-Exp Region 9'!$H$36/'LTC Rev-Exp Region 9'!$H$9, 0)","v":{"v":0,"d":"$0.00"}},{"$f":"IFERROR('LTC Rev-Exp Region 9'!$I$36/'LTC Rev-Exp Region 9'!$I$9, 0)","v":{"v":0,"d":"$0.00"}},{"$f":"IFERROR('LTC Rev-Exp Region 9'!$J$36/'LTC Rev-Exp Region 9'!$J$9, 0)","v":{"v":0,"d":"$0.00"}},{"$f":"IFERROR('LTC Rev-Exp Region 9'!$K$36/'LTC Rev-Exp Region 9'!$K$9, 0)","v":{"v":0,"d":"$0.00"}}]
["LTC",null,null,{"$f":"Jurat!I$1","v":0},{"$f":"Jurat!D$33","v":"00:00:00"},"Q2","2017-06-30","Region 9","Operating Expense","Medical Expense","LTC Services","2.21","LTC Services Settlements",{"$f":"IFERROR('LTC Rev-Exp Region 9'!$H$37/'LTC Rev-Exp Region 9'!$H$9, 0)","v":{"v":0,"d":"$0.00"}},{"$f":"IFERROR('LTC Rev-Exp Region 9'!$I$37/'LTC Rev-Exp Region 9'!$I$9, 0)","v":{"v":0,"d":"$0.00"}},{"$f":"IFERROR('LTC Rev-Exp Region 9'!$J$37/'LTC Rev-Exp Region 9'!$J$9, 0)","v":{"v":0,"d":"$0.00"}},{"$f":"IFERROR('LTC Rev-Exp Region 9'!$K$37/'LTC Rev-Exp Region 9'!$K$9, 0)","v":{"v":0,"d":"$0.00"}}]
["LTC",null,null,{"$f":"Jurat!I$1","v":0},{"$f":"Jurat!D$33","v":"00:00:00"},"Q2","2017-06-30","Region 9","Operating Expense","Medical Expense","Expanded Benefits","3.1","Expanded Benefits FFS",{"$f":"IFERROR('LTC Rev-Exp Region 9'!$H$39/'LTC Rev-Exp Region 9'!$H$9, 0)","v":{"v":0,"d":"$0.00"}},{"$f":"IFERROR('LTC Rev-Exp Region 9'!$I$39/'LTC Rev-Exp Region 9'!$I$9, 0)","v":{"v":0,"d":"$0.00"}},{"$f":"IFERROR('LTC Rev-Exp Region 9'!$J$39/'LTC Rev-Exp Region 9'!$J$9, 0)","v":{"v":0,"d":"$0.00"}},{"$f":"IFERROR('LTC Rev-Exp Region 9'!$K$39/'LTC Rev-Exp Region 9'!$K$9, 0)","v":{"v":0,"d":"$0.00"}}]
["LTC",null,null,{"$f":"Jurat!I$1","v":0},{"$f":"Jurat!D$33","v":"00:00:00"},"Q2","2017-06-30","Region 9","Operating Expense","Medical Expense","Expanded Benefits","3.2","Expanded Benefits Subcapitation",{"$f":"IFERROR('LTC Rev-Exp Region 9'!$H$40/'LTC Rev-Exp Region 9'!$H$9, 0)","v":{"v":0,"d":"$0.00"}},{"$f":"IFERROR('LTC Rev-Exp Region 9'!$I$40/'LTC Rev-Exp Region 9'!$I$9, 0)","v":{"v":0,"d":"$0.00"}},{"$f":"IFERROR('LTC Rev-Exp Region 9'!$J$40/'LTC Rev-Exp Region 9'!$J$9, 0)","v":{"v":0,"d":"$0.00"}},{"$f":"IFERROR('LTC Rev-Exp Region 9'!$K$40/'LTC Rev-Exp Region 9'!$K$9, 0)","v":{"v":0,"d":"$0.00"}}]
["LTC",null,null,{"$f":"Jurat!I$1","v":0},{"$f":"Jurat!D$33","v":"00:00:00"},"Q2","2017-06-30","Region 9","Operating Expense","Medical Expense","Expanded Benefits","3.3","Ending IBNP for Expanded Benefits",{"$f":"IFERROR('LTC Rev-Exp Region 9'!$H$41/'LTC Rev-Exp Region 9'!$H$9, 0)","v":{"v":0,"d":"$0.00"}},{"$f":"IFERROR('LTC Rev-Exp Region 9'!$I$41/'LTC Rev-Exp Region 9'!$I$9, 0)","v":{"v":0,"d":"$0.00"}},{"$f":"IFERROR('LTC Rev-Exp Region 9'!$J$41/'LTC Rev-Exp Region 9'!$J$9, 0)","v":{"v":0,"d":"$0.00"}},{"$f":"IFERROR('LTC Rev-Exp Region 9'!$K$41/'LTC Rev-Exp Region 9'!$K$9, 0)","v":{"v":0,"d":"$0.00"}}]
["LTC",null,null,{"$f":"Jurat!I$1","v":0},{"$f":"Jurat!D$33","v":"00:00:00"},"Q2","2017-06-30","Region 9","Operating Expense","Medical Expense","Expanded Benefits","3.4","Expanded Benefits Settlements",{"$f":"IFERROR('LTC Rev-Exp Region 9'!$H$42/'LTC Rev-Exp Region 9'!$H$9, 0)","v":{"v":0,"d":"$0.00"}},{"$f":"IFERROR('LTC Rev-Exp Region 9'!$I$42/'LTC Rev-Exp Region 9'!$I$9, 0)","v":{"v":0,"d":"$0.00"}},{"$f":"IFERROR('LTC Rev-Exp Region 9'!$J$42/'LTC Rev-Exp Region 9'!$J$9, 0)","v":{"v":0,"d":"$0.00"}},{"$f":"IFERROR('LTC Rev-Exp Region 9'!$K$42/'LTC Rev-Exp Region 9'!$K$9, 0)","v":{"v":0,"d":"$0.00"}}]
["LTC",null,null,{"$f":"Jurat!I$1","v":0},{"$f":"Jurat!D$33","v":"00:00:00"},"Q2","2017-06-30","Region 9","Operating Expense","Medical Expense","Other Medical","4.5","TPL & Fraud/Abuse Recoveries",{"$f":"IFERROR('LTC Rev-Exp Region 9'!$H$48/'LTC Rev-Exp Region 9'!$H$9, 0)","v":{"v":0,"d":"$0.00"}},{"$f":"IFERROR('LTC Rev-Exp Region 9'!$I$48/'LTC Rev-Exp Region 9'!$I$9, 0)","v":{"v":0,"d":"$0.00"}},{"$f":"IFERROR('LTC Rev-Exp Region 9'!$J$48/'LTC Rev-Exp Region 9'!$J$9, 0)","v":{"v":0,"d":"$0.00"}},{"$f":"IFERROR('LTC Rev-Exp Region 9'!$K$48/'LTC Rev-Exp Region 9'!$K$9, 0)","v":{"v":0,"d":"$0.00"}}]
["LTC",null,null,{"$f":"Jurat!I$1","v":0},{"$f":"Jurat!D$33","v":"00:00:00"},"Q2","2017-06-30","Region 9","Operating Expense","Medical Expense","Other Medical","4.6.1","Premium Deficiency Reserve",{"$f":"IFERROR('LTC Rev-Exp Region 9'!$H$49/'LTC Rev-Exp Region 9'!$H$9, 0)","v":{"v":0,"d":"$0.00"}},{"$f":"IFERROR('LTC Rev-Exp Region 9'!$I$49/'LTC Rev-Exp Region 9'!$I$9, 0)","v":{"v":0,"d":"$0.00"}},{"$f":"IFERROR('LTC Rev-Exp Region 9'!$J$49/'LTC Rev-Exp Region 9'!$J$9, 0)","v":{"v":0,"d":"$0.00"}},{"$f":"IFERROR('LTC Rev-Exp Region 9'!$K$49/'LTC Rev-Exp Region 9'!$K$9, 0)","v":{"v":0,"d":"$0.00"}}]
["LTC",null,null,{"$f":"Jurat!I$1","v":0},{"$f":"Jurat!D$33","v":"00:00:00"},"Q2","2017-06-30","Region 9","Operating Expense","Medical Expense","Other Medical","4.8","Reinsurance Premiums",{"$f":"IFERROR('LTC Rev-Exp Region 9'!$H$51/'LTC Rev-Exp Region 9'!$H$9, 0)","v":{"v":0,"d":"$0.00"}},{"$f":"IFERROR('LTC Rev-Exp Region 9'!$I$51/'LTC Rev-Exp Region 9'!$I$9, 0)","v":{"v":0,"d":"$0.00"}},{"$f":"IFERROR('LTC Rev-Exp Region 9'!$J$51/'LTC Rev-Exp Region 9'!$J$9, 0)","v":{"v":0,"d":"$0.00"}},{"$f":"IFERROR('LTC Rev-Exp Region 9'!$K$51/'LTC Rev-Exp Region 9'!$K$9, 0)","v":{"v":0,"d":"$0.00"}}]
["LTC",null,null,{"$f":"Jurat!I$1","v":0},{"$f":"Jurat!D$33","v":"00:00:00"},"Q2","2017-06-30","Region 9","Operating Expense","Medical Expense","Other Medical","4.9","Reinsurance Recoveries",{"$f":"IFERROR('LTC Rev-Exp Region 9'!$H$52/'LTC Rev-Exp Region 9'!$H$9, 0)","v":{"v":0,"d":"$0.00"}},{"$f":"IFERROR('LTC Rev-Exp Region 9'!$I$52/'LTC Rev-Exp Region 9'!$I$9, 0)","v":{"v":0,"d":"$0.00"}},{"$f":"IFERROR('LTC Rev-Exp Region 9'!$J$52/'LTC Rev-Exp Region 9'!$J$9, 0)","v":{"v":0,"d":"$0.00"}},{"$f":"IFERROR('LTC Rev-Exp Region 9'!$K$52/'LTC Rev-Exp Region 9'!$K$9, 0)","v":{"v":0,"d":"$0.00"}}]
["LTC",null,null,{"$f":"Jurat!I$1","v":0},{"$f":"Jurat!D$33","v":"00:00:00"},"Q2","2017-06-30","Region 9","Operating Expense","Administrative Expense","Administrative","5.1","Salaries & Benefits",{"$f":"IFERROR('LTC Rev-Exp Region 9'!$H$57/'LTC Rev-Exp Region 9'!$H$9, 0)","v":{"v":0,"d":"$0.00"}},{"$f":"IFERROR('LTC Rev-Exp Region 9'!$I$57/'LTC Rev-Exp Region 9'!$I$9, 0)","v":{"v":0,"d":"$0.00"}},{"$f":"IFERROR('LTC Rev-Exp Region 9'!$J$57/'LTC Rev-Exp Region 9'!$J$9, 0)","v":{"v":0,"d":"$0.00"}},{"$f":"IFERROR('LTC Rev-Exp Region 9'!$K$57/'LTC Rev-Exp Region 9'!$K$9, 0)","v":{"v":0,"d":"$0.00"}}]
["LTC",null,null,{"$f":"Jurat!I$1","v":0},{"$f":"Jurat!D$33","v":"00:00:00"},"Q2","2017-06-30","Region 9","Operating Expense","Administrative Expense","Administrative","5.2","Administrative Services",{"$f":"IFERROR('LTC Rev-Exp Region 9'!$H$58/'LTC Rev-Exp Region 9'!$H$9, 0)","v":{"v":0,"d":"$0.00"}},{"$f":"IFERROR('LTC Rev-Exp Region 9'!$I$58/'LTC Rev-Exp Region 9'!$I$9, 0)","v":{"v":0,"d":"$0.00"}},{"$f":"IFERROR('LTC Rev-Exp Region 9'!$J$58/'LTC Rev-Exp Region 9'!$J$9, 0)","v":{"v":0,"d":"$0.00"}},{"$f":"IFERROR('LTC Rev-Exp Region 9'!$K$58/'LTC Rev-Exp Region 9'!$K$9, 0)","v":{"v":0,"d":"$0.00"}}]
["LTC",null,null,{"$f":"Jurat!I$1","v":0},{"$f":"Jurat!D$33","v":"00:00:00"},"Q2","2017-06-30","Region 9","Operating Expense","Administrative Expense","Administrative","5.3","Information Systems",{"$f":"IFERROR('LTC Rev-Exp Region 9'!$H$59/'LTC Rev-Exp Region 9'!$H$9, 0)","v":{"v":0,"d":"$0.00"}},{"$f":"IFERROR('LTC Rev-Exp Region 9'!$I$59/'LTC Rev-Exp Region 9'!$I$9, 0)","v":{"v":0,"d":"$0.00"}},{"$f":"IFERROR('LTC Rev-Exp Region 9'!$J$59/'LTC Rev-Exp Region 9'!$J$9, 0)","v":{"v":0,"d":"$0.00"}},{"$f":"IFERROR('LTC Rev-Exp Region 9'!$K$59/'LTC Rev-Exp Region 9'!$K$9, 0)","v":{"v":0,"d":"$0.00"}}]
["LTC",null,null,{"$f":"Jurat!I$1","v":0},{"$f":"Jurat!D$33","v":"00:00:00"},"Q2","2017-06-30","Region 9","Operating Expense","Administrative Expense","Administrative","5.4","Marketing Expenses",{"$f":"IFERROR('LTC Rev-Exp Region 9'!$H$60/'LTC Rev-Exp Region 9'!$H$9, 0)","v":{"v":0,"d":"$0.00"}},{"$f":"IFERROR('LTC Rev-Exp Region 9'!$I$60/'LTC Rev-Exp Region 9'!$I$9, 0)","v":{"v":0,"d":"$0.00"}},{"$f":"IFERROR('LTC Rev-Exp Region 9'!$J$60/'LTC Rev-Exp Region 9'!$J$9, 0)","v":{"v":0,"d":"$0.00"}},{"$f":"IFERROR('LTC Rev-Exp Region 9'!$K$60/'LTC Rev-Exp Region 9'!$K$9, 0)","v":{"v":0,"d":"$0.00"}}]
["LTC",null,null,{"$f":"Jurat!I$1","v":0},{"$f":"Jurat!D$33","v":"00:00:00"},"Q2","2017-06-30","Region 9","Operating Expense","Administrative Expense","Administrative","5.5","General  Administration",{"$f":"IFERROR('LTC Rev-Exp Region 9'!$H$61/'LTC Rev-Exp Region 9'!$H$9, 0)","v":{"v":0,"d":"$0.00"}},{"$f":"IFERROR('LTC Rev-Exp Region 9'!$I$61/'LTC Rev-Exp Region 9'!$I$9, 0)","v":{"v":0,"d":"$0.00"}},{"$f":"IFERROR('LTC Rev-Exp Region 9'!$J$61/'LTC Rev-Exp Region 9'!$J$9, 0)","v":{"v":0,"d":"$0.00"}},{"$f":"IFERROR('LTC Rev-Exp Region 9'!$K$61/'LTC Rev-Exp Region 9'!$K$9, 0)","v":{"v":0,"d":"$0.00"}}]
["LTC",null,null,{"$f":"Jurat!I$1","v":0},{"$f":"Jurat!D$33","v":"00:00:00"},"Q2","2017-06-30","Region 9","Operating Expense","Administrative Expense","Administrative","5.6","Compliance/Regulatory",{"$f":"IFERROR('LTC Rev-Exp Region 9'!$H$62/'LTC Rev-Exp Region 9'!$H$9, 0)","v":{"v":0,"d":"$0.00"}},{"$f":"IFERROR('LTC Rev-Exp Region 9'!$I$62/'LTC Rev-Exp Region 9'!$I$9, 0)","v":{"v":0,"d":"$0.00"}},{"$f":"IFERROR('LTC Rev-Exp Region 9'!$J$62/'LTC Rev-Exp Region 9'!$J$9, 0)","v":{"v":0,"d":"$0.00"}},{"$f":"IFERROR('LTC Rev-Exp Region 9'!$K$62/'LTC Rev-Exp Region 9'!$K$9, 0)","v":{"v":0,"d":"$0.00"}}]
["LTC",null,null,{"$f":"Jurat!I$1","v":0},{"$f":"Jurat!D$33","v":"00:00:00"},"Q2","2017-06-30","Region 9","Operating Expense","Taxes & Fees","Taxes & Fees","6.1","State Premium Tax",{"$f":"IFERROR('LTC Rev-Exp Region 9'!$H$64/'LTC Rev-Exp Region 9'!$H$9, 0)","v":{"v":0,"d":"$0.00"}},{"$f":"IFERROR('LTC Rev-Exp Region 9'!$I$64/'LTC Rev-Exp Region 9'!$I$9, 0)","v":{"v":0,"d":"$0.00"}},{"$f":"IFERROR('LTC Rev-Exp Region 9'!$J$64/'LTC Rev-Exp Region 9'!$J$9, 0)","v":{"v":0,"d":"$0.00"}},{"$f":"IFERROR('LTC Rev-Exp Region 9'!$K$64/'LTC Rev-Exp Region 9'!$K$9, 0)","v":{"v":0,"d":"$0.00"}}]
["LTC",null,null,{"$f":"Jurat!I$1","v":0},{"$f":"Jurat!D$33","v":"00:00:00"},"Q2","2017-06-30","Region 9","Operating Expense","Taxes & Fees","Taxes & Fees","6.2","Department of Insurance Assessments",{"$f":"IFERROR('LTC Rev-Exp Region 9'!$H$65/'LTC Rev-Exp Region 9'!$H$9, 0)","v":{"v":0,"d":"$0.00"}},{"$f":"IFERROR('LTC Rev-Exp Region 9'!$I$65/'LTC Rev-Exp Region 9'!$I$9, 0)","v":{"v":0,"d":"$0.00"}},{"$f":"IFERROR('LTC Rev-Exp Region 9'!$J$65/'LTC Rev-Exp Region 9'!$J$9, 0)","v":{"v":0,"d":"$0.00"}},{"$f":"IFERROR('LTC Rev-Exp Region 9'!$K$65/'LTC Rev-Exp Region 9'!$K$9, 0)","v":{"v":0,"d":"$0.00"}}]
["LTC",null,null,{"$f":"Jurat!I$1","v":0},{"$f":"Jurat!D$33","v":"00:00:00"},"Q2","2017-06-30","Region 9","Non-Operating Expense","Income Tax Expense","Income Tax Expense","9.0","Income Tax Expense",{"$f":"IFERROR('LTC Rev-Exp Region 9'!$H$66/'LTC Rev-Exp Region 9'!$H$9, 0)","v":{"v":0,"d":"$0.00"}},{"$f":"IFERROR('LTC Rev-Exp Region 9'!$I$66/'LTC Rev-Exp Region 9'!$I$9, 0)","v":{"v":0,"d":"$0.00"}},{"$f":"IFERROR('LTC Rev-Exp Region 9'!$J$66/'LTC Rev-Exp Region 9'!$J$9, 0)","v":{"v":0,"d":"$0.00"}},{"$f":"IFERROR('LTC Rev-Exp Region 9'!$K$66/'LTC Rev-Exp Region 9'!$K$9, 0)","v":{"v":0,"d":"$0.00"}}]
["LTC",null,null,{"$f":"Jurat!I$1","v":0},{"$f":"Jurat!D$33","v":"00:00:00"},"Q3","2017-09-30","Region 9","Operating Revenue","Capitation","Capitation",1.1,"Capitation",{"$f":"IFERROR('LTC Rev-Exp Region 9'!$L$11/'LTC Rev-Exp Region 9'!$L$9, 0)","v":{"v":0,"d":"$0.00"}},{"$f":"IFERROR('LTC Rev-Exp Region 9'!$M$11/'LTC Rev-Exp Region 9'!$M$9, 0)","v":{"v":0,"d":"$0.00"}},{"$f":"IFERROR('LTC Rev-Exp Region 9'!$N$11/'LTC Rev-Exp Region 9'!$N$9, 0)","v":{"v":0,"d":"$0.00"}},{"$f":"IFERROR('LTC Rev-Exp Region 9'!$O$11/'LTC Rev-Exp Region 9'!$O$9, 0)","v":{"v":0,"d":"$0.00"}}]
["LTC",null,null,{"$f":"Jurat!I$1","v":0},{"$f":"Jurat!D$33","v":"00:00:00"},"Q3","2017-09-30","Region 9","Operating Revenue","Capitation","NH Rate Reconciliation",1.2,"NH Rate Reconciliation",{"$f":"IFERROR('LTC Rev-Exp Region 9'!L$12/'LTC Rev-Exp Region 9'!L$9, 0)","v":{"v":0,"d":"$0.00"}},{"$f":"IFERROR('LTC Rev-Exp Region 9'!M$12/'LTC Rev-Exp Region 9'!M$9, 0)","v":{"v":0,"d":"$0.00"}},{"$f":"IFERROR('LTC Rev-Exp Region 9'!N$12/'LTC Rev-Exp Region 9'!N$9, 0)","v":{"v":0,"d":"$0.00"}},{"$f":"IFERROR('LTC Rev-Exp Region 9'!O$12/'LTC Rev-Exp Region 9'!O$9, 0)","v":{"v":0,"d":"$0.00"}}]
["LTC",null,null,{"$f":"Jurat!I$1","v":0},{"$f":"Jurat!D$33","v":"00:00:00"},"Q3","2017-09-30","Region 9","Operating Revenue","Other Revenue","Other Revenue",1.3,"Other Revenue",{"$f":"IFERROR('LTC Rev-Exp Region 9'!L1197/'LTC Rev-Exp Region 9'!L$9, 0)","v":{"v":0,"d":"$0.00"}},{"$f":"IFERROR('LTC Rev-Exp Region 9'!M1197/'LTC Rev-Exp Region 9'!M$9, 0)","v":{"v":0,"d":"$0.00"}},{"$f":"IFERROR('LTC Rev-Exp Region 9'!N1197/'LTC Rev-Exp Region 9'!N$9, 0)","v":{"v":0,"d":"$0.00"}},{"$f":"IFERROR('LTC Rev-Exp Region 9'!O1197/'LTC Rev-Exp Region 9'!O$9, 0)","v":{"v":0,"d":"$0.00"}}]
["LTC",null,null,{"$f":"Jurat!I$1","v":0},{"$f":"Jurat!D$33","v":"00:00:00"},"Q3","2017-09-30","Region 9","Operating Expense","Medical Expense","NF & Hospice","2.3","Nursing Facility FFS (Medicaid)",{"$f":"IFERROR('LTC Rev-Exp Region 9'!$L$19/'LTC Rev-Exp Region 9'!$L$9, 0)","v":{"v":0,"d":"$0.00"}},{"$f":"IFERROR('LTC Rev-Exp Region 9'!$M$19/'LTC Rev-Exp Region 9'!$M$9, 0)","v":{"v":0,"d":"$0.00"}},{"$f":"IFERROR('LTC Rev-Exp Region 9'!$N$19/'LTC Rev-Exp Region 9'!$N$9, 0)","v":{"v":0,"d":"$0.00"}},{"$f":"IFERROR('LTC Rev-Exp Region 9'!$O$19/'LTC Rev-Exp Region 9'!$O$9, 0)","v":{"v":0,"d":"$0.00"}}]
["LTC",null,null,{"$f":"Jurat!I$1","v":0},{"$f":"Jurat!D$33","v":"00:00:00"},"Q3","2017-09-30","Region 9","Operating Expense","Medical Expense","NF & Hospice","2.4","Nursing Facility FFS (Crossover)",{"$f":"IFERROR('LTC Rev-Exp Region 9'!$L$20/'LTC Rev-Exp Region 9'!$L$9, 0)","v":{"v":0,"d":"$0.00"}},{"$f":"IFERROR('LTC Rev-Exp Region 9'!$M$20/'LTC Rev-Exp Region 9'!$M$9, 0)","v":{"v":0,"d":"$0.00"}},{"$f":"IFERROR('LTC Rev-Exp Region 9'!$N$20/'LTC Rev-Exp Region 9'!$N$9, 0)","v":{"v":0,"d":"$0.00"}},{"$f":"IFERROR('LTC Rev-Exp Region 9'!$O$20/'LTC Rev-Exp Region 9'!$O$9, 0)","v":{"v":0,"d":"$0.00"}}]
["LTC",null,null,{"$f":"Jurat!I$1","v":0},{"$f":"Jurat!D$33","v":"00:00:00"},"Q3","2017-09-30","Region 9","Operating Expense","Medical Expense","NF & Hospice","2.6","Hospice FFS",{"$f":"IFERROR('LTC Rev-Exp Region 9'!$L$22/'LTC Rev-Exp Region 9'!$L$9, 0)","v":{"v":0,"d":"$0.00"}},{"$f":"IFERROR('LTC Rev-Exp Region 9'!$M$22/'LTC Rev-Exp Region 9'!$M$9, 0)","v":{"v":0,"d":"$0.00"}},{"$f":"IFERROR('LTC Rev-Exp Region 9'!$N$22/'LTC Rev-Exp Region 9'!$N$9, 0)","v":{"v":0,"d":"$0.00"}},{"$f":"IFERROR('LTC Rev-Exp Region 9'!$O$22/'LTC Rev-Exp Region 9'!$O$9, 0)","v":{"v":0,"d":"$0.00"}}]
["LTC",null,null,{"$f":"Jurat!I$1","v":0},{"$f":"Jurat!D$33","v":"00:00:00"},"Q3","2017-09-30","Region 9","Operating Expense","Medical Expense","NF & Hospice","2.7","Ending IBNP for NF & Hospice",{"$f":"IFERROR('LTC Rev-Exp Region 9'!$L$23/'LTC Rev-Exp Region 9'!$L$9, 0)","v":{"v":0,"d":"$0.00"}},{"$f":"IFERROR('LTC Rev-Exp Region 9'!$M$23/'LTC Rev-Exp Region 9'!$M$9, 0)","v":{"v":0,"d":"$0.00"}},{"$f":"IFERROR('LTC Rev-Exp Region 9'!$N$23/'LTC Rev-Exp Region 9'!$N$9, 0)","v":{"v":0,"d":"$0.00"}},{"$f":"IFERROR('LTC Rev-Exp Region 9'!$O$23/'LTC Rev-Exp Region 9'!$O$9, 0)","v":{"v":0,"d":"$0.00"}}]
["LTC",null,null,{"$f":"Jurat!I$1","v":0},{"$f":"Jurat!D$33","v":"00:00:00"},"Q3","2017-09-30","Region 9","Operating Expense","Medical Expense","NF & Hospice","2.8","NF & Hospice Subcapitated",{"$f":"IFERROR('LTC Rev-Exp Region 9'!$L$24/'LTC Rev-Exp Region 9'!$L$9, 0)","v":{"v":0,"d":"$0.00"}},{"$f":"IFERROR('LTC Rev-Exp Region 9'!$M$24/'LTC Rev-Exp Region 9'!$M$9, 0)","v":{"v":0,"d":"$0.00"}},{"$f":"IFERROR('LTC Rev-Exp Region 9'!$N$24/'LTC Rev-Exp Region 9'!$N$9, 0)","v":{"v":0,"d":"$0.00"}},{"$f":"IFERROR('LTC Rev-Exp Region 9'!$O$24/'LTC Rev-Exp Region 9'!$O$9, 0)","v":{"v":0,"d":"$0.00"}}]
["LTC",null,null,{"$f":"Jurat!I$1","v":0},{"$f":"Jurat!D$33","v":"00:00:00"},"Q3","2017-09-30","Region 9","Operating Expense","Medical Expense","NF & Hospice","2.9","NF & Hospice Settlements",{"$f":"IFERROR('LTC Rev-Exp Region 9'!$L$25/'LTC Rev-Exp Region 9'!$L$9, 0)","v":{"v":0,"d":"$0.00"}},{"$f":"IFERROR('LTC Rev-Exp Region 9'!$M$25/'LTC Rev-Exp Region 9'!$M$9, 0)","v":{"v":0,"d":"$0.00"}},{"$f":"IFERROR('LTC Rev-Exp Region 9'!$N$25/'LTC Rev-Exp Region 9'!$N$9, 0)","v":{"v":0,"d":"$0.00"}},{"$f":"IFERROR('LTC Rev-Exp Region 9'!$O$25/'LTC Rev-Exp Region 9'!$O$9, 0)","v":{"v":0,"d":"$0.00"}}]
["LTC",null,null,{"$f":"Jurat!I$1","v":0},{"$f":"Jurat!D$33","v":"00:00:00"},"Q3","2017-09-30","Region 9","Operating Expense","Medical Expense","LTC Services","2.11","Assisted Living FFS",{"$f":"IFERROR('LTC Rev-Exp Region 9'!$L$27/'LTC Rev-Exp Region 9'!$L$9, 0)","v":{"v":0,"d":"$0.00"}},{"$f":"IFERROR('LTC Rev-Exp Region 9'!$M$27/'LTC Rev-Exp Region 9'!$M$9, 0)","v":{"v":0,"d":"$0.00"}},{"$f":"IFERROR('LTC Rev-Exp Region 9'!$N$27/'LTC Rev-Exp Region 9'!$N$9, 0)","v":{"v":0,"d":"$0.00"}},{"$f":"IFERROR('LTC Rev-Exp Region 9'!$O$27/'LTC Rev-Exp Region 9'!$O$9, 0)","v":{"v":0,"d":"$0.00"}}]
["LTC",null,null,{"$f":"Jurat!I$1","v":0},{"$f":"Jurat!D$33","v":"00:00:00"},"Q3","2017-09-30","Region 9","Operating Expense","Medical Expense","LTC Services","2.12","Home Health FFS",{"$f":"IFERROR('LTC Rev-Exp Region 9'!$L$28/'LTC Rev-Exp Region 9'!$L$9, 0)","v":{"v":0,"d":"$0.00"}},{"$f":"IFERROR('LTC Rev-Exp Region 9'!$M$28/'LTC Rev-Exp Region 9'!$M$9, 0)","v":{"v":0,"d":"$0.00"}},{"$f":"IFERROR('LTC Rev-Exp Region 9'!$N$28/'LTC Rev-Exp Region 9'!$N$9, 0)","v":{"v":0,"d":"$0.00"}},{"$f":"IFERROR('LTC Rev-Exp Region 9'!$O$28/'LTC Rev-Exp Region 9'!$O$9, 0)","v":{"v":0,"d":"$0.00"}}]
["LTC",null,null,{"$f":"Jurat!I$1","v":0},{"$f":"Jurat!D$33","v":"00:00:00"},"Q3","2017-09-30","Region 9","Operating Expense","Medical Expense","LTC Services","2.13","Medical Equipment/Supplies FFS",{"$f":"IFERROR('LTC Rev-Exp Region 9'!$L$29/'LTC Rev-Exp Region 9'!$L$9, 0)","v":{"v":0,"d":"$0.00"}},{"$f":"IFERROR('LTC Rev-Exp Region 9'!$M$29/'LTC Rev-Exp Region 9'!$M$9, 0)","v":{"v":0,"d":"$0.00"}},{"$f":"IFERROR('LTC Rev-Exp Region 9'!$N$29/'LTC Rev-Exp Region 9'!$N$9, 0)","v":{"v":0,"d":"$0.00"}},{"$f":"IFERROR('LTC Rev-Exp Region 9'!$O$29/'LTC Rev-Exp Region 9'!$O$9, 0)","v":{"v":0,"d":"$0.00"}}]
["LTC",null,null,{"$f":"Jurat!I$1","v":0},{"$f":"Jurat!D$33","v":"00:00:00"},"Q3","2017-09-30","Region 9","Operating Expense","Medical Expense","LTC Services","2.14","Therapy FFS",{"$f":"IFERROR('LTC Rev-Exp Region 9'!$L$30/'LTC Rev-Exp Region 9'!$L$9, 0)","v":{"v":0,"d":"$0.00"}},{"$f":"IFERROR('LTC Rev-Exp Region 9'!$M$30/'LTC Rev-Exp Region 9'!$M$9, 0)","v":{"v":0,"d":"$0.00"}},{"$f":"IFERROR('LTC Rev-Exp Region 9'!$N$30/'LTC Rev-Exp Region 9'!$N$9, 0)","v":{"v":0,"d":"$0.00"}},{"$f":"IFERROR('LTC Rev-Exp Region 9'!$O$30/'LTC Rev-Exp Region 9'!$O$9, 0)","v":{"v":0,"d":"$0.00"}}]
["LTC",null,null,{"$f":"Jurat!I$1","v":0},{"$f":"Jurat!D$33","v":"00:00:00"},"Q3","2017-09-30","Region 9","Operating Expense","Medical Expense","LTC Services","2.15","Transportation FFS",{"$f":"IFERROR('LTC Rev-Exp Region 9'!$L$31/'LTC Rev-Exp Region 9'!$L$9, 0)","v":{"v":0,"d":"$0.00"}},{"$f":"IFERROR('LTC Rev-Exp Region 9'!$M$31/'LTC Rev-Exp Region 9'!$M$9, 0)","v":{"v":0,"d":"$0.00"}},{"$f":"IFERROR('LTC Rev-Exp Region 9'!$N$31/'LTC Rev-Exp Region 9'!$N$9, 0)","v":{"v":0,"d":"$0.00"}},{"$f":"IFERROR('LTC Rev-Exp Region 9'!$O$31/'LTC Rev-Exp Region 9'!$O$9, 0)","v":{"v":0,"d":"$0.00"}}]
["LTC",null,null,{"$f":"Jurat!I$1","v":0},{"$f":"Jurat!D$33","v":"00:00:00"},"Q3","2017-09-30","Region 9","Operating Expense","Medical Expense","LTC Services","2.16","Case Management FFS (Plan Provided)",{"$f":"IFERROR('LTC Rev-Exp Region 9'!$L$32/'LTC Rev-Exp Region 9'!$L$9, 0)","v":{"v":0,"d":"$0.00"}},{"$f":"IFERROR('LTC Rev-Exp Region 9'!$M$32/'LTC Rev-Exp Region 9'!$M$9, 0)","v":{"v":0,"d":"$0.00"}},{"$f":"IFERROR('LTC Rev-Exp Region 9'!$N$32/'LTC Rev-Exp Region 9'!$N$9, 0)","v":{"v":0,"d":"$0.00"}},{"$f":"IFERROR('LTC Rev-Exp Region 9'!$O$32/'LTC Rev-Exp Region 9'!$O$9, 0)","v":{"v":0,"d":"$0.00"}}]
["LTC",null,null,{"$f":"Jurat!I$1","v":0},{"$f":"Jurat!D$33","v":"00:00:00"},"Q3","2017-09-30","Region 9","Operating Expense","Medical Expense","LTC Services","2.17","Case Management FF (Non-Plan Provided)",{"$f":"IFERROR('LTC Rev-Exp Region 9'!$L$33/'LTC Rev-Exp Region 9'!$L$9, 0)","v":{"v":0,"d":"$0.00"}},{"$f":"IFERROR('LTC Rev-Exp Region 9'!$M$33/'LTC Rev-Exp Region 9'!$M$9, 0)","v":{"v":0,"d":"$0.00"}},{"$f":"IFERROR('LTC Rev-Exp Region 9'!$N$33/'LTC Rev-Exp Region 9'!$N$9, 0)","v":{"v":0,"d":"$0.00"}},{"$f":"IFERROR('LTC Rev-Exp Region 9'!$O$33/'LTC Rev-Exp Region 9'!$O$9, 0)","v":{"v":0,"d":"$0.00"}}]
["LTC",null,null,{"$f":"Jurat!I$1","v":0},{"$f":"Jurat!D$33","v":"00:00:00"},"Q3","2017-09-30","Region 9","Operating Expense","Medical Expense","LTC Services","2.18","HCBS FFS",{"$f":"IFERROR('LTC Rev-Exp Region 9'!$L$34/'LTC Rev-Exp Region 9'!$L$9, 0)","v":{"v":0,"d":"$0.00"}},{"$f":"IFERROR('LTC Rev-Exp Region 9'!$M$34/'LTC Rev-Exp Region 9'!$M$9, 0)","v":{"v":0,"d":"$0.00"}},{"$f":"IFERROR('LTC Rev-Exp Region 9'!$N$34/'LTC Rev-Exp Region 9'!$N$9, 0)","v":{"v":0,"d":"$0.00"}},{"$f":"IFERROR('LTC Rev-Exp Region 9'!$O$34/'LTC Rev-Exp Region 9'!$O$9, 0)","v":{"v":0,"d":"$0.00"}}]
["LTC",null,null,{"$f":"Jurat!I$1","v":0},{"$f":"Jurat!D$33","v":"00:00:00"},"Q3","2017-09-30","Region 9","Operating Expense","Medical Expense","LTC Services","2.19","Subcapitated LTC Services",{"$f":"IFERROR('LTC Rev-Exp Region 9'!$L$35/'LTC Rev-Exp Region 9'!$L$9, 0)","v":{"v":0,"d":"$0.00"}},{"$f":"IFERROR('LTC Rev-Exp Region 9'!$M$35/'LTC Rev-Exp Region 9'!$M$9, 0)","v":{"v":0,"d":"$0.00"}},{"$f":"IFERROR('LTC Rev-Exp Region 9'!$N$35/'LTC Rev-Exp Region 9'!$N$9, 0)","v":{"v":0,"d":"$0.00"}},{"$f":"IFERROR('LTC Rev-Exp Region 9'!$O$35/'LTC Rev-Exp Region 9'!$O$9, 0)","v":{"v":0,"d":"$0.00"}}]
["LTC",null,null,{"$f":"Jurat!I$1","v":0},{"$f":"Jurat!D$33","v":"00:00:00"},"Q3","2017-09-30","Region 9","Operating Expense","Medical Expense","LTC Services","2.20","Ending IBNP for Long Term Care Services",{"$f":"IFERROR('LTC Rev-Exp Region 9'!$L$36/'LTC Rev-Exp Region 9'!$L$9, 0)","v":{"v":0,"d":"$0.00"}},{"$f":"IFERROR('LTC Rev-Exp Region 9'!$M$36/'LTC Rev-Exp Region 9'!$M$9, 0)","v":{"v":0,"d":"$0.00"}},{"$f":"IFERROR('LTC Rev-Exp Region 9'!$N$36/'LTC Rev-Exp Region 9'!$N$9, 0)","v":{"v":0,"d":"$0.00"}},{"$f":"IFERROR('LTC Rev-Exp Region 9'!$O$36/'LTC Rev-Exp Region 9'!$O$9, 0)","v":{"v":0,"d":"$0.00"}}]
["LTC",null,null,{"$f":"Jurat!I$1","v":0},{"$f":"Jurat!D$33","v":"00:00:00"},"Q3","2017-09-30","Region 9","Operating Expense","Medical Expense","LTC Services","2.21","LTC Services Settlements",{"$f":"IFERROR('LTC Rev-Exp Region 9'!$L$37/'LTC Rev-Exp Region 9'!$L$9, 0)","v":{"v":0,"d":"$0.00"}},{"$f":"IFERROR('LTC Rev-Exp Region 9'!$M$37/'LTC Rev-Exp Region 9'!$M$9, 0)","v":{"v":0,"d":"$0.00"}},{"$f":"IFERROR('LTC Rev-Exp Region 9'!$N$37/'LTC Rev-Exp Region 9'!$N$9, 0)","v":{"v":0,"d":"$0.00"}},{"$f":"IFERROR('LTC Rev-Exp Region 9'!$O$37/'LTC Rev-Exp Region 9'!$O$9, 0)","v":{"v":0,"d":"$0.00"}}]
["LTC",null,null,{"$f":"Jurat!I$1","v":0},{"$f":"Jurat!D$33","v":"00:00:00"},"Q3","2017-09-30","Region 9","Operating Expense","Medical Expense","Expanded Benefits","3.1","Expanded Benefits FFS",{"$f":"IFERROR('LTC Rev-Exp Region 9'!$L$39/'LTC Rev-Exp Region 9'!$L$9, 0)","v":{"v":0,"d":"$0.00"}},{"$f":"IFERROR('LTC Rev-Exp Region 9'!$M$39/'LTC Rev-Exp Region 9'!$M$9, 0)","v":{"v":0,"d":"$0.00"}},{"$f":"IFERROR('LTC Rev-Exp Region 9'!$N$39/'LTC Rev-Exp Region 9'!$N$9, 0)","v":{"v":0,"d":"$0.00"}},{"$f":"IFERROR('LTC Rev-Exp Region 9'!$O$39/'LTC Rev-Exp Region 9'!$O$9, 0)","v":{"v":0,"d":"$0.00"}}]
["LTC",null,null,{"$f":"Jurat!I$1","v":0},{"$f":"Jurat!D$33","v":"00:00:00"},"Q3","2017-09-30","Region 9","Operating Expense","Medical Expense","Expanded Benefits","3.2","Expanded Benefits Subcapitation",{"$f":"IFERROR('LTC Rev-Exp Region 9'!$L$40/'LTC Rev-Exp Region 9'!$L$9, 0)","v":{"v":0,"d":"$0.00"}},{"$f":"IFERROR('LTC Rev-Exp Region 9'!$M$40/'LTC Rev-Exp Region 9'!$M$9, 0)","v":{"v":0,"d":"$0.00"}},{"$f":"IFERROR('LTC Rev-Exp Region 9'!$N$40/'LTC Rev-Exp Region 9'!$N$9, 0)","v":{"v":0,"d":"$0.00"}},{"$f":"IFERROR('LTC Rev-Exp Region 9'!$O$40/'LTC Rev-Exp Region 9'!$O$9, 0)","v":{"v":0,"d":"$0.00"}}]
["LTC",null,null,{"$f":"Jurat!I$1","v":0},{"$f":"Jurat!D$33","v":"00:00:00"},"Q3","2017-09-30","Region 9","Operating Expense","Medical Expense","Expanded Benefits","3.3","Ending IBNP for Expanded Benefits",{"$f":"IFERROR('LTC Rev-Exp Region 9'!$L$41/'LTC Rev-Exp Region 9'!$L$9, 0)","v":{"v":0,"d":"$0.00"}},{"$f":"IFERROR('LTC Rev-Exp Region 9'!$M$41/'LTC Rev-Exp Region 9'!$M$9, 0)","v":{"v":0,"d":"$0.00"}},{"$f":"IFERROR('LTC Rev-Exp Region 9'!$N$41/'LTC Rev-Exp Region 9'!$N$9, 0)","v":{"v":0,"d":"$0.00"}},{"$f":"IFERROR('LTC Rev-Exp Region 9'!$O$41/'LTC Rev-Exp Region 9'!$O$9, 0)","v":{"v":0,"d":"$0.00"}}]
["LTC",null,null,{"$f":"Jurat!I$1","v":0},{"$f":"Jurat!D$33","v":"00:00:00"},"Q3","2017-09-30","Region 9","Operating Expense","Medical Expense","Expanded Benefits","3.4","Expanded Benefits Settlements",{"$f":"IFERROR('LTC Rev-Exp Region 9'!$L$42/'LTC Rev-Exp Region 9'!$L$9, 0)","v":{"v":0,"d":"$0.00"}},{"$f":"IFERROR('LTC Rev-Exp Region 9'!$M$42/'LTC Rev-Exp Region 9'!$M$9, 0)","v":{"v":0,"d":"$0.00"}},{"$f":"IFERROR('LTC Rev-Exp Region 9'!$N$42/'LTC Rev-Exp Region 9'!$N$9, 0)","v":{"v":0,"d":"$0.00"}},{"$f":"IFERROR('LTC Rev-Exp Region 9'!$O$42/'LTC Rev-Exp Region 9'!$O$9, 0)","v":{"v":0,"d":"$0.00"}}]
["LTC",null,null,{"$f":"Jurat!I$1","v":0},{"$f":"Jurat!D$33","v":"00:00:00"},"Q3","2017-09-30","Region 9","Operating Expense","Medical Expense","Other Medical","4.5","TPL & Fraud/Abuse Recoveries",{"$f":"IFERROR('LTC Rev-Exp Region 9'!$L$48/'LTC Rev-Exp Region 9'!$L$9, 0)","v":{"v":0,"d":"$0.00"}},{"$f":"IFERROR('LTC Rev-Exp Region 9'!$M$48/'LTC Rev-Exp Region 9'!$M$9, 0)","v":{"v":0,"d":"$0.00"}},{"$f":"IFERROR('LTC Rev-Exp Region 9'!$N$48/'LTC Rev-Exp Region 9'!$N$9, 0)","v":{"v":0,"d":"$0.00"}},{"$f":"IFERROR('LTC Rev-Exp Region 9'!$O$48/'LTC Rev-Exp Region 9'!$O$9, 0)","v":{"v":0,"d":"$0.00"}}]
["LTC",null,null,{"$f":"Jurat!I$1","v":0},{"$f":"Jurat!D$33","v":"00:00:00"},"Q3","2017-09-30","Region 9","Operating Expense","Medical Expense","Other Medical","4.6.1","Premium Deficiency Reserve",{"$f":"IFERROR('LTC Rev-Exp Region 9'!$L$49/'LTC Rev-Exp Region 9'!$L$9, 0)","v":{"v":0,"d":"$0.00"}},{"$f":"IFERROR('LTC Rev-Exp Region 9'!$M$49/'LTC Rev-Exp Region 9'!$M$9, 0)","v":{"v":0,"d":"$0.00"}},{"$f":"IFERROR('LTC Rev-Exp Region 9'!$N$49/'LTC Rev-Exp Region 9'!$N$9, 0)","v":{"v":0,"d":"$0.00"}},{"$f":"IFERROR('LTC Rev-Exp Region 9'!$O$49/'LTC Rev-Exp Region 9'!$O$9, 0)","v":{"v":0,"d":"$0.00"}}]
["LTC",null,null,{"$f":"Jurat!I$1","v":0},{"$f":"Jurat!D$33","v":"00:00:00"},"Q3","2017-09-30","Region 9","Operating Expense","Medical Expense","Other Medical","4.8","Reinsurance Premiums",{"$f":"IFERROR('LTC Rev-Exp Region 9'!$L$51/'LTC Rev-Exp Region 9'!$L$9, 0)","v":{"v":0,"d":"$0.00"}},{"$f":"IFERROR('LTC Rev-Exp Region 9'!$M$51/'LTC Rev-Exp Region 9'!$M$9, 0)","v":{"v":0,"d":"$0.00"}},{"$f":"IFERROR('LTC Rev-Exp Region 9'!$N$51/'LTC Rev-Exp Region 9'!$N$9, 0)","v":{"v":0,"d":"$0.00"}},{"$f":"IFERROR('LTC Rev-Exp Region 9'!$O$51/'LTC Rev-Exp Region 9'!$O$9, 0)","v":{"v":0,"d":"$0.00"}}]
["LTC",null,null,{"$f":"Jurat!I$1","v":0},{"$f":"Jurat!D$33","v":"00:00:00"},"Q3","2017-09-30","Region 9","Operating Expense","Medical Expense","Other Medical","4.9","Reinsurance Recoveries",{"$f":"IFERROR('LTC Rev-Exp Region 9'!$L$52/'LTC Rev-Exp Region 9'!$L$9, 0)","v":{"v":0,"d":"$0.00"}},{"$f":"IFERROR('LTC Rev-Exp Region 9'!$M$52/'LTC Rev-Exp Region 9'!$M$9, 0)","v":{"v":0,"d":"$0.00"}},{"$f":"IFERROR('LTC Rev-Exp Region 9'!$N$52/'LTC Rev-Exp Region 9'!$N$9, 0)","v":{"v":0,"d":"$0.00"}},{"$f":"IFERROR('LTC Rev-Exp Region 9'!$O$52/'LTC Rev-Exp Region 9'!$O$9, 0)","v":{"v":0,"d":"$0.00"}}]
["LTC",null,null,{"$f":"Jurat!I$1","v":0},{"$f":"Jurat!D$33","v":"00:00:00"},"Q3","2017-09-30","Region 9","Operating Expense","Administrative Expense","Administrative","5.1","Salaries & Benefits",{"$f":"IFERROR('LTC Rev-Exp Region 9'!$L$57/'LTC Rev-Exp Region 9'!$L$9, 0)","v":{"v":0,"d":"$0.00"}},{"$f":"IFERROR('LTC Rev-Exp Region 9'!$M$57/'LTC Rev-Exp Region 9'!$M$9, 0)","v":{"v":0,"d":"$0.00"}},{"$f":"IFERROR('LTC Rev-Exp Region 9'!$N$57/'LTC Rev-Exp Region 9'!$N$9, 0)","v":{"v":0,"d":"$0.00"}},{"$f":"IFERROR('LTC Rev-Exp Region 9'!$O$57/'LTC Rev-Exp Region 9'!$O$9, 0)","v":{"v":0,"d":"$0.00"}}]
["LTC",null,null,{"$f":"Jurat!I$1","v":0},{"$f":"Jurat!D$33","v":"00:00:00"},"Q3","2017-09-30","Region 9","Operating Expense","Administrative Expense","Administrative","5.2","Administrative Services",{"$f":"IFERROR('LTC Rev-Exp Region 9'!$L$58/'LTC Rev-Exp Region 9'!$L$9, 0)","v":{"v":0,"d":"$0.00"}},{"$f":"IFERROR('LTC Rev-Exp Region 9'!$M$58/'LTC Rev-Exp Region 9'!$M$9, 0)","v":{"v":0,"d":"$0.00"}},{"$f":"IFERROR('LTC Rev-Exp Region 9'!$N$58/'LTC Rev-Exp Region 9'!$N$9, 0)","v":{"v":0,"d":"$0.00"}},{"$f":"IFERROR('LTC Rev-Exp Region 9'!$O$58/'LTC Rev-Exp Region 9'!$O$9, 0)","v":{"v":0,"d":"$0.00"}}]
["LTC",null,null,{"$f":"Jurat!I$1","v":0},{"$f":"Jurat!D$33","v":"00:00:00"},"Q3","2017-09-30","Region 9","Operating Expense","Administrative Expense","Administrative","5.3","Information Systems",{"$f":"IFERROR('LTC Rev-Exp Region 9'!$L$59/'LTC Rev-Exp Region 9'!$L$9, 0)","v":{"v":0,"d":"$0.00"}},{"$f":"IFERROR('LTC Rev-Exp Region 9'!$M$59/'LTC Rev-Exp Region 9'!$M$9, 0)","v":{"v":0,"d":"$0.00"}},{"$f":"IFERROR('LTC Rev-Exp Region 9'!$N$59/'LTC Rev-Exp Region 9'!$N$9, 0)","v":{"v":0,"d":"$0.00"}},{"$f":"IFERROR('LTC Rev-Exp Region 9'!$O$59/'LTC Rev-Exp Region 9'!$O$9, 0)","v":{"v":0,"d":"$0.00"}}]
["LTC",null,null,{"$f":"Jurat!I$1","v":0},{"$f":"Jurat!D$33","v":"00:00:00"},"Q3","2017-09-30","Region 9","Operating Expense","Administrative Expense","Administrative","5.4","Marketing Expenses",{"$f":"IFERROR('LTC Rev-Exp Region 9'!$L$60/'LTC Rev-Exp Region 9'!$L$9, 0)","v":{"v":0,"d":"$0.00"}},{"$f":"IFERROR('LTC Rev-Exp Region 9'!$M$60/'LTC Rev-Exp Region 9'!$M$9, 0)","v":{"v":0,"d":"$0.00"}},{"$f":"IFERROR('LTC Rev-Exp Region 9'!$N$60/'LTC Rev-Exp Region 9'!$N$9, 0)","v":{"v":0,"d":"$0.00"}},{"$f":"IFERROR('LTC Rev-Exp Region 9'!$O$60/'LTC Rev-Exp Region 9'!$O$9, 0)","v":{"v":0,"d":"$0.00"}}]
["LTC",null,null,{"$f":"Jurat!I$1","v":0},{"$f":"Jurat!D$33","v":"00:00:00"},"Q3","2017-09-30","Region 9","Operating Expense","Administrative Expense","Administrative","5.5","General  Administration",{"$f":"IFERROR('LTC Rev-Exp Region 9'!$L$61/'LTC Rev-Exp Region 9'!$L$9, 0)","v":{"v":0,"d":"$0.00"}},{"$f":"IFERROR('LTC Rev-Exp Region 9'!$M$61/'LTC Rev-Exp Region 9'!$M$9, 0)","v":{"v":0,"d":"$0.00"}},{"$f":"IFERROR('LTC Rev-Exp Region 9'!$N$61/'LTC Rev-Exp Region 9'!$N$9, 0)","v":{"v":0,"d":"$0.00"}},{"$f":"IFERROR('LTC Rev-Exp Region 9'!$O$61/'LTC Rev-Exp Region 9'!$O$9, 0)","v":{"v":0,"d":"$0.00"}}]
["LTC",null,null,{"$f":"Jurat!I$1","v":0},{"$f":"Jurat!D$33","v":"00:00:00"},"Q3","2017-09-30","Region 9","Operating Expense","Administrative Expense","Administrative","5.6","Compliance/Regulatory",{"$f":"IFERROR('LTC Rev-Exp Region 9'!$L$62/'LTC Rev-Exp Region 9'!$L$9, 0)","v":{"v":0,"d":"$0.00"}},{"$f":"IFERROR('LTC Rev-Exp Region 9'!$M$62/'LTC Rev-Exp Region 9'!$M$9, 0)","v":{"v":0,"d":"$0.00"}},{"$f":"IFERROR('LTC Rev-Exp Region 9'!$N$62/'LTC Rev-Exp Region 9'!$N$9, 0)","v":{"v":0,"d":"$0.00"}},{"$f":"IFERROR('LTC Rev-Exp Region 9'!$O$62/'LTC Rev-Exp Region 9'!$O$9, 0)","v":{"v":0,"d":"$0.00"}}]
["LTC",null,null,{"$f":"Jurat!I$1","v":0},{"$f":"Jurat!D$33","v":"00:00:00"},"Q3","2017-09-30","Region 9","Operating Expense","Taxes & Fees","Taxes & Fees","6.1","State Premium Tax",{"$f":"IFERROR('LTC Rev-Exp Region 9'!$L$64/'LTC Rev-Exp Region 9'!$L$9, 0)","v":{"v":0,"d":"$0.00"}},{"$f":"IFERROR('LTC Rev-Exp Region 9'!$M$64/'LTC Rev-Exp Region 9'!$M$9, 0)","v":{"v":0,"d":"$0.00"}},{"$f":"IFERROR('LTC Rev-Exp Region 9'!$N$64/'LTC Rev-Exp Region 9'!$N$9, 0)","v":{"v":0,"d":"$0.00"}},{"$f":"IFERROR('LTC Rev-Exp Region 9'!$O$64/'LTC Rev-Exp Region 9'!$O$9, 0)","v":{"v":0,"d":"$0.00"}}]
["LTC",null,null,{"$f":"Jurat!I$1","v":0},{"$f":"Jurat!D$33","v":"00:00:00"},"Q3","2017-09-30","Region 9","Operating Expense","Taxes & Fees","Taxes & Fees","6.2","Department of Insurance Assessments",{"$f":"IFERROR('LTC Rev-Exp Region 9'!$L$65/'LTC Rev-Exp Region 9'!$L$9, 0)","v":{"v":0,"d":"$0.00"}},{"$f":"IFERROR('LTC Rev-Exp Region 9'!$M$65/'LTC Rev-Exp Region 9'!$M$9, 0)","v":{"v":0,"d":"$0.00"}},{"$f":"IFERROR('LTC Rev-Exp Region 9'!$N$65/'LTC Rev-Exp Region 9'!$N$9, 0)","v":{"v":0,"d":"$0.00"}},{"$f":"IFERROR('LTC Rev-Exp Region 9'!$O$65/'LTC Rev-Exp Region 9'!$O$9, 0)","v":{"v":0,"d":"$0.00"}}]
["LTC",null,null,{"$f":"Jurat!I$1","v":0},{"$f":"Jurat!D$33","v":"00:00:00"},"Q3","2017-09-30","Region 9","Non-Operating Expense","Income Tax Expense","Income Tax Expense","9.0","Income Tax Expense",{"$f":"IFERROR('LTC Rev-Exp Region 9'!$L$72/'LTC Rev-Exp Region 9'!$L$9, 0)","v":{"v":0,"d":"$0.00"}},{"$f":"IFERROR('LTC Rev-Exp Region 9'!$M$72/'LTC Rev-Exp Region 9'!$M$9, 0)","v":{"v":0,"d":"$0.00"}},{"$f":"IFERROR('LTC Rev-Exp Region 9'!$N$72/'LTC Rev-Exp Region 9'!$N$9, 0)","v":{"v":0,"d":"$0.00"}},{"$f":"IFERROR('LTC Rev-Exp Region 9'!$O$72/'LTC Rev-Exp Region 9'!$O$9, 0)","v":{"v":0,"d":"$0.00"}}]
["LTC",null,null,{"$f":"Jurat!I$1","v":0},{"$f":"Jurat!D$33","v":"00:00:00"},"Q4","2017-12-31","Region 9","Operating Revenue","Capitation","Capitation",1.1,"Capitation",{"$f":"IFERROR('LTC Rev-Exp Region 9'!$P$11/'LTC Rev-Exp Region 9'!$P$9, 0)","v":{"v":0,"d":"$0.00"}},{"$f":"IFERROR('LTC Rev-Exp Region 9'!$Q$11/'LTC Rev-Exp Region 9'!$Q$9, 0)","v":{"v":0,"d":"$0.00"}},{"$f":"IFERROR('LTC Rev-Exp Region 9'!$R$11/'LTC Rev-Exp Region 9'!$R$9, 0)","v":{"v":0,"d":"$0.00"}},{"$f":"IFERROR('LTC Rev-Exp Region 9'!$S$11/'LTC Rev-Exp Region 9'!$S$9, 0)","v":{"v":0,"d":"$0.00"}}]
["LTC",null,null,{"$f":"Jurat!I$1","v":0},{"$f":"Jurat!D$33","v":"00:00:00"},"Q4","2017-12-31","Region 9","Operating Revenue","Capitation","NH Rate Reconciliation",1.2,"NH Rate Reconciliation",{"$f":"IFERROR('LTC Rev-Exp Region 9'!$P$12/'LTC Rev-Exp Region 9'!$P$9, 0)","v":{"v":0,"d":"$0.00"}},{"$f":"IFERROR('LTC Rev-Exp Region 9'!$Q$12/'LTC Rev-Exp Region 9'!$Q$9, 0)","v":{"v":0,"d":"$0.00"}},{"$f":"IFERROR('LTC Rev-Exp Region 9'!$R$12/'LTC Rev-Exp Region 9'!$R$9, 0)","v":{"v":0,"d":"$0.00"}},{"$f":"IFERROR('LTC Rev-Exp Region 9'!$S$12/'LTC Rev-Exp Region 9'!$S$9, 0)","v":{"v":0,"d":"$0.00"}}]
["LTC",null,null,{"$f":"Jurat!I$1","v":0},{"$f":"Jurat!D$33","v":"00:00:00"},"Q4","2017-12-31","Region 9","Operating Revenue","Other Revenue","Other Revenue",1.3,"Other Revenue",{"$f":"IFERROR('LTC Rev-Exp Region 9'!$P$13/'LTC Rev-Exp Region 9'!$P$9, 0)","v":{"v":0,"d":"$0.00"}},{"$f":"IFERROR('LTC Rev-Exp Region 9'!$Q$13/'LTC Rev-Exp Region 9'!$Q$9, 0)","v":{"v":0,"d":"$0.00"}},{"$f":"IFERROR('LTC Rev-Exp Region 9'!$R$13/'LTC Rev-Exp Region 9'!$R$9, 0)","v":{"v":0,"d":"$0.00"}},{"$f":"IFERROR('LTC Rev-Exp Region 9'!$S$13/'LTC Rev-Exp Region 9'!$S$9, 0)","v":{"v":0,"d":"$0.00"}}]
["LTC",null,null,{"$f":"Jurat!I$1","v":0},{"$f":"Jurat!D$33","v":"00:00:00"},"Q4","2017-12-31","Region 9","Operating Expense","Medical Expense","NF & Hospice","2.3","Nursing Facility FFS (Medicaid)",{"$f":"IFERROR('LTC Rev-Exp Region 9'!$P$19/'LTC Rev-Exp Region 9'!$P$9, 0)","v":{"v":0,"d":"$0.00"}},{"$f":"IFERROR('LTC Rev-Exp Region 9'!$Q$19/'LTC Rev-Exp Region 9'!$Q$9, 0)","v":{"v":0,"d":"$0.00"}},{"$f":"IFERROR('LTC Rev-Exp Region 9'!$R$19/'LTC Rev-Exp Region 9'!$R$9, 0)","v":{"v":0,"d":"$0.00"}},{"$f":"IFERROR('LTC Rev-Exp Region 9'!$S$19/'LTC Rev-Exp Region 9'!$S$9, 0)","v":{"v":0,"d":"$0.00"}}]
["LTC",null,null,{"$f":"Jurat!I$1","v":0},{"$f":"Jurat!D$33","v":"00:00:00"},"Q4","2017-12-31","Region 9","Operating Expense","Medical Expense","NF & Hospice","2.4","Nursing Facility FFS (Crossover)",{"$f":"IFERROR('LTC Rev-Exp Region 9'!$P$20/'LTC Rev-Exp Region 9'!$P$9, 0)","v":{"v":0,"d":"$0.00"}},{"$f":"IFERROR('LTC Rev-Exp Region 9'!$Q$20/'LTC Rev-Exp Region 9'!$Q$9, 0)","v":{"v":0,"d":"$0.00"}},{"$f":"IFERROR('LTC Rev-Exp Region 9'!$R$20/'LTC Rev-Exp Region 9'!$R$9, 0)","v":{"v":0,"d":"$0.00"}},{"$f":"IFERROR('LTC Rev-Exp Region 9'!$S$20/'LTC Rev-Exp Region 9'!$S$9, 0)","v":{"v":0,"d":"$0.00"}}]
["LTC",null,null,{"$f":"Jurat!I$1","v":0},{"$f":"Jurat!D$33","v":"00:00:00"},"Q4","2017-12-31","Region 9","Operating Expense","Medical Expense","NF & Hospice","2.6","Hospice FFS",{"$f":"IFERROR('LTC Rev-Exp Region 9'!$P$22/'LTC Rev-Exp Region 9'!$P$9, 0)","v":{"v":0,"d":"$0.00"}},{"$f":"IFERROR('LTC Rev-Exp Region 9'!$Q$22/'LTC Rev-Exp Region 9'!$Q$9, 0)","v":{"v":0,"d":"$0.00"}},{"$f":"IFERROR('LTC Rev-Exp Region 9'!$R$22/'LTC Rev-Exp Region 9'!$R$9, 0)","v":{"v":0,"d":"$0.00"}},{"$f":"IFERROR('LTC Rev-Exp Region 9'!$S$22/'LTC Rev-Exp Region 9'!$S$9, 0)","v":{"v":0,"d":"$0.00"}}]
["LTC",null,null,{"$f":"Jurat!I$1","v":0},{"$f":"Jurat!D$33","v":"00:00:00"},"Q4","2017-12-31","Region 9","Operating Expense","Medical Expense","NF & Hospice","2.7","Ending IBNP for NF & Hospice",{"$f":"IFERROR('LTC Rev-Exp Region 9'!$P$23/'LTC Rev-Exp Region 9'!$P$9, 0)","v":{"v":0,"d":"$0.00"}},{"$f":"IFERROR('LTC Rev-Exp Region 9'!$Q$23/'LTC Rev-Exp Region 9'!$Q$9, 0)","v":{"v":0,"d":"$0.00"}},{"$f":"IFERROR('LTC Rev-Exp Region 9'!$R$23/'LTC Rev-Exp Region 9'!$R$9, 0)","v":{"v":0,"d":"$0.00"}},{"$f":"IFERROR('LTC Rev-Exp Region 9'!$S$23/'LTC Rev-Exp Region 9'!$S$9, 0)","v":{"v":0,"d":"$0.00"}}]
["LTC",null,null,{"$f":"Jurat!I$1","v":0},{"$f":"Jurat!D$33","v":"00:00:00"},"Q4","2017-12-31","Region 9","Operating Expense","Medical Expense","NF & Hospice","2.8","NF & Hospice Subcapitated",{"$f":"IFERROR('LTC Rev-Exp Region 9'!$P$24/'LTC Rev-Exp Region 9'!$P$9, 0)","v":{"v":0,"d":"$0.00"}},{"$f":"IFERROR('LTC Rev-Exp Region 9'!$Q$24/'LTC Rev-Exp Region 9'!$Q$9, 0)","v":{"v":0,"d":"$0.00"}},{"$f":"IFERROR('LTC Rev-Exp Region 9'!$R$24/'LTC Rev-Exp Region 9'!$R$9, 0)","v":{"v":0,"d":"$0.00"}},{"$f":"IFERROR('LTC Rev-Exp Region 9'!$S$24/'LTC Rev-Exp Region 9'!$S$9, 0)","v":{"v":0,"d":"$0.00"}}]
["LTC",null,null,{"$f":"Jurat!I$1","v":0},{"$f":"Jurat!D$33","v":"00:00:00"},"Q4","2017-12-31","Region 9","Operating Expense","Medical Expense","NF & Hospice","2.9","NF & Hospice Settlements",{"$f":"IFERROR('LTC Rev-Exp Region 9'!$P$25/'LTC Rev-Exp Region 9'!$P$9, 0)","v":{"v":0,"d":"$0.00"}},{"$f":"IFERROR('LTC Rev-Exp Region 9'!$Q$25/'LTC Rev-Exp Region 9'!$Q$9, 0)","v":{"v":0,"d":"$0.00"}},{"$f":"IFERROR('LTC Rev-Exp Region 9'!$R$25/'LTC Rev-Exp Region 9'!$R$9, 0)","v":{"v":0,"d":"$0.00"}},{"$f":"IFERROR('LTC Rev-Exp Region 9'!$S$25/'LTC Rev-Exp Region 9'!$S$9, 0)","v":{"v":0,"d":"$0.00"}}]
["LTC",null,null,{"$f":"Jurat!I$1","v":0},{"$f":"Jurat!D$33","v":"00:00:00"},"Q4","2017-12-31","Region 9","Operating Expense","Medical Expense","LTC Services","2.11","Assisted Living FFS",{"$f":"IFERROR('LTC Rev-Exp Region 9'!$P$27/'LTC Rev-Exp Region 9'!$P$9, 0)","v":{"v":0,"d":"$0.00"}},{"$f":"IFERROR('LTC Rev-Exp Region 9'!$Q$27/'LTC Rev-Exp Region 9'!$Q$9, 0)","v":{"v":0,"d":"$0.00"}},{"$f":"IFERROR('LTC Rev-Exp Region 9'!$R$27/'LTC Rev-Exp Region 9'!$R$9, 0)","v":{"v":0,"d":"$0.00"}},{"$f":"IFERROR('LTC Rev-Exp Region 9'!$S$27/'LTC Rev-Exp Region 9'!$S$9, 0)","v":{"v":0,"d":"$0.00"}}]
["LTC",null,null,{"$f":"Jurat!I$1","v":0},{"$f":"Jurat!D$33","v":"00:00:00"},"Q4","2017-12-31","Region 9","Operating Expense","Medical Expense","LTC Services","2.12","Home Health FFS",{"$f":"IFERROR('LTC Rev-Exp Region 9'!$P$28/'LTC Rev-Exp Region 9'!$P$9, 0)","v":{"v":0,"d":"$0.00"}},{"$f":"IFERROR('LTC Rev-Exp Region 9'!$Q$28/'LTC Rev-Exp Region 9'!$Q$9, 0)","v":{"v":0,"d":"$0.00"}},{"$f":"IFERROR('LTC Rev-Exp Region 9'!$R$28/'LTC Rev-Exp Region 9'!$R$9, 0)","v":{"v":0,"d":"$0.00"}},{"$f":"IFERROR('LTC Rev-Exp Region 9'!$S$28/'LTC Rev-Exp Region 9'!$S$9, 0)","v":{"v":0,"d":"$0.00"}}]
["LTC",null,null,{"$f":"Jurat!I$1","v":0},{"$f":"Jurat!D$33","v":"00:00:00"},"Q4","2017-12-31","Region 9","Operating Expense","Medical Expense","LTC Services","2.13","Medical Equipment/Supplies FFS",{"$f":"IFERROR('LTC Rev-Exp Region 9'!$P$29/'LTC Rev-Exp Region 9'!$P$9, 0)","v":{"v":0,"d":"$0.00"}},{"$f":"IFERROR('LTC Rev-Exp Region 9'!$Q$29/'LTC Rev-Exp Region 9'!$Q$9, 0)","v":{"v":0,"d":"$0.00"}},{"$f":"IFERROR('LTC Rev-Exp Region 9'!$R$29/'LTC Rev-Exp Region 9'!$R$9, 0)","v":{"v":0,"d":"$0.00"}},{"$f":"IFERROR('LTC Rev-Exp Region 9'!$S$29/'LTC Rev-Exp Region 9'!$S$9, 0)","v":{"v":0,"d":"$0.00"}}]
["LTC",null,null,{"$f":"Jurat!I$1","v":0},{"$f":"Jurat!D$33","v":"00:00:00"},"Q4","2017-12-31","Region 9","Operating Expense","Medical Expense","LTC Services","2.14","Therapy FFS",{"$f":"IFERROR('LTC Rev-Exp Region 9'!$P$30/'LTC Rev-Exp Region 9'!$P$9, 0)","v":{"v":0,"d":"$0.00"}},{"$f":"IFERROR('LTC Rev-Exp Region 9'!$Q$30/'LTC Rev-Exp Region 9'!$Q$9, 0)","v":{"v":0,"d":"$0.00"}},{"$f":"IFERROR('LTC Rev-Exp Region 9'!$R$30/'LTC Rev-Exp Region 9'!$R$9, 0)","v":{"v":0,"d":"$0.00"}},{"$f":"IFERROR('LTC Rev-Exp Region 9'!$S$30/'LTC Rev-Exp Region 9'!$S$9, 0)","v":{"v":0,"d":"$0.00"}}]
["LTC",null,null,{"$f":"Jurat!I$1","v":0},{"$f":"Jurat!D$33","v":"00:00:00"},"Q4","2017-12-31","Region 9","Operating Expense","Medical Expense","LTC Services","2.15","Transportation FFS",{"$f":"IFERROR('LTC Rev-Exp Region 9'!$P$31/'LTC Rev-Exp Region 9'!$P$9, 0)","v":{"v":0,"d":"$0.00"}},{"$f":"IFERROR('LTC Rev-Exp Region 9'!$Q$31/'LTC Rev-Exp Region 9'!$Q$9, 0)","v":{"v":0,"d":"$0.00"}},{"$f":"IFERROR('LTC Rev-Exp Region 9'!$R$31/'LTC Rev-Exp Region 9'!$R$9, 0)","v":{"v":0,"d":"$0.00"}},{"$f":"IFERROR('LTC Rev-Exp Region 9'!$S$31/'LTC Rev-Exp Region 9'!$S$9, 0)","v":{"v":0,"d":"$0.00"}}]
["LTC",null,null,{"$f":"Jurat!I$1","v":0},{"$f":"Jurat!D$33","v":"00:00:00"},"Q4","2017-12-31","Region 9","Operating Expense","Medical Expense","LTC Services","2.16","Case Management FFS (Plan Provided)",{"$f":"IFERROR('LTC Rev-Exp Region 9'!$P$32/'LTC Rev-Exp Region 9'!$P$9, 0)","v":{"v":0,"d":"$0.00"}},{"$f":"IFERROR('LTC Rev-Exp Region 9'!$Q$32/'LTC Rev-Exp Region 9'!$Q$9, 0)","v":{"v":0,"d":"$0.00"}},{"$f":"IFERROR('LTC Rev-Exp Region 9'!$R$32/'LTC Rev-Exp Region 9'!$R$9, 0)","v":{"v":0,"d":"$0.00"}},{"$f":"IFERROR('LTC Rev-Exp Region 9'!$S$32/'LTC Rev-Exp Region 9'!$S$9, 0)","v":{"v":0,"d":"$0.00"}}]
["LTC",null,null,{"$f":"Jurat!I$1","v":0},{"$f":"Jurat!D$33","v":"00:00:00"},"Q4","2017-12-31","Region 9","Operating Expense","Medical Expense","LTC Services","2.17","Case Management FF (Non-Plan Provided)",{"$f":"IFERROR('LTC Rev-Exp Region 9'!$P$33/'LTC Rev-Exp Region 9'!$P$9, 0)","v":{"v":0,"d":"$0.00"}},{"$f":"IFERROR('LTC Rev-Exp Region 9'!$Q$33/'LTC Rev-Exp Region 9'!$Q$9, 0)","v":{"v":0,"d":"$0.00"}},{"$f":"IFERROR('LTC Rev-Exp Region 9'!$R$33/'LTC Rev-Exp Region 9'!$R$9, 0)","v":{"v":0,"d":"$0.00"}},{"$f":"IFERROR('LTC Rev-Exp Region 9'!$S$33/'LTC Rev-Exp Region 9'!$S$9, 0)","v":{"v":0,"d":"$0.00"}}]
["LTC",null,null,{"$f":"Jurat!I$1","v":0},{"$f":"Jurat!D$33","v":"00:00:00"},"Q4","2017-12-31","Region 9","Operating Expense","Medical Expense","LTC Services","2.18","HCBS FFS",{"$f":"IFERROR('LTC Rev-Exp Region 9'!$P$34/'LTC Rev-Exp Region 9'!$P$9, 0)","v":{"v":0,"d":"$0.00"}},{"$f":"IFERROR('LTC Rev-Exp Region 9'!$Q$34/'LTC Rev-Exp Region 9'!$Q$9, 0)","v":{"v":0,"d":"$0.00"}},{"$f":"IFERROR('LTC Rev-Exp Region 9'!$R$34/'LTC Rev-Exp Region 9'!$R$9, 0)","v":{"v":0,"d":"$0.00"}},{"$f":"IFERROR('LTC Rev-Exp Region 9'!$S$34/'LTC Rev-Exp Region 9'!$S$9, 0)","v":{"v":0,"d":"$0.00"}}]
["LTC",null,null,{"$f":"Jurat!I$1","v":0},{"$f":"Jurat!D$33","v":"00:00:00"},"Q4","2017-12-31","Region 9","Operating Expense","Medical Expense","LTC Services","2.19","Subcapitated LTC Services",{"$f":"IFERROR('LTC Rev-Exp Region 9'!$P$35/'LTC Rev-Exp Region 9'!$P$9, 0)","v":{"v":0,"d":"$0.00"}},{"$f":"IFERROR('LTC Rev-Exp Region 9'!$Q$35/'LTC Rev-Exp Region 9'!$Q$9, 0)","v":{"v":0,"d":"$0.00"}},{"$f":"IFERROR('LTC Rev-Exp Region 9'!$R$35/'LTC Rev-Exp Region 9'!$R$9, 0)","v":{"v":0,"d":"$0.00"}},{"$f":"IFERROR('LTC Rev-Exp Region 9'!$S$35/'LTC Rev-Exp Region 9'!$S$9, 0)","v":{"v":0,"d":"$0.00"}}]
["LTC",null,null,{"$f":"Jurat!I$1","v":0},{"$f":"Jurat!D$33","v":"00:00:00"},"Q4","2017-12-31","Region 9","Operating Expense","Medical Expense","LTC Services","2.20","Ending IBNP for Long Term Care Services",{"$f":"IFERROR('LTC Rev-Exp Region 9'!$P$36/'LTC Rev-Exp Region 9'!$P$9, 0)","v":{"v":0,"d":"$0.00"}},{"$f":"IFERROR('LTC Rev-Exp Region 9'!$Q$36/'LTC Rev-Exp Region 9'!$Q$9, 0)","v":{"v":0,"d":"$0.00"}},{"$f":"IFERROR('LTC Rev-Exp Region 9'!$R$36/'LTC Rev-Exp Region 9'!$R$9, 0)","v":{"v":0,"d":"$0.00"}},{"$f":"IFERROR('LTC Rev-Exp Region 9'!$S$36/'LTC Rev-Exp Region 9'!$S$9, 0)","v":{"v":0,"d":"$0.00"}}]
["LTC",null,null,{"$f":"Jurat!I$1","v":0},{"$f":"Jurat!D$33","v":"00:00:00"},"Q4","2017-12-31","Region 9","Operating Expense","Medical Expense","LTC Services","2.21","LTC Services Settlements",{"$f":"IFERROR('LTC Rev-Exp Region 9'!$P$37/'LTC Rev-Exp Region 9'!$P$9, 0)","v":{"v":0,"d":"$0.00"}},{"$f":"IFERROR('LTC Rev-Exp Region 9'!$Q$37/'LTC Rev-Exp Region 9'!$Q$9, 0)","v":{"v":0,"d":"$0.00"}},{"$f":"IFERROR('LTC Rev-Exp Region 9'!$R$37/'LTC Rev-Exp Region 9'!$R$9, 0)","v":{"v":0,"d":"$0.00"}},{"$f":"IFERROR('LTC Rev-Exp Region 9'!$S$37/'LTC Rev-Exp Region 9'!$S$9, 0)","v":{"v":0,"d":"$0.00"}}]
["LTC",null,null,{"$f":"Jurat!I$1","v":0},{"$f":"Jurat!D$33","v":"00:00:00"},"Q4","2017-12-31","Region 9","Operating Expense","Medical Expense","Expanded Benefits","3.1","Expanded Benefits FFS",{"$f":"IFERROR('LTC Rev-Exp Region 9'!$P$39/'LTC Rev-Exp Region 9'!$P$9, 0)","v":{"v":0,"d":"$0.00"}},{"$f":"IFERROR('LTC Rev-Exp Region 9'!$Q$39/'LTC Rev-Exp Region 9'!$Q$9, 0)","v":{"v":0,"d":"$0.00"}},{"$f":"IFERROR('LTC Rev-Exp Region 9'!$R$39/'LTC Rev-Exp Region 9'!$R$9, 0)","v":{"v":0,"d":"$0.00"}},{"$f":"IFERROR('LTC Rev-Exp Region 9'!$S$39/'LTC Rev-Exp Region 9'!$S$9, 0)","v":{"v":0,"d":"$0.00"}}]
["LTC",null,null,{"$f":"Jurat!I$1","v":0},{"$f":"Jurat!D$33","v":"00:00:00"},"Q4","2017-12-31","Region 9","Operating Expense","Medical Expense","Expanded Benefits","3.2","Expanded Benefits Subcapitation",{"$f":"IFERROR('LTC Rev-Exp Region 9'!$P$40/'LTC Rev-Exp Region 9'!$P$9, 0)","v":{"v":0,"d":"$0.00"}},{"$f":"IFERROR('LTC Rev-Exp Region 9'!$Q$40/'LTC Rev-Exp Region 9'!$Q$9, 0)","v":{"v":0,"d":"$0.00"}},{"$f":"IFERROR('LTC Rev-Exp Region 9'!$R$40/'LTC Rev-Exp Region 9'!$R$9, 0)","v":{"v":0,"d":"$0.00"}},{"$f":"IFERROR('LTC Rev-Exp Region 9'!$S$40/'LTC Rev-Exp Region 9'!$S$9, 0)","v":{"v":0,"d":"$0.00"}}]
["LTC",null,null,{"$f":"Jurat!I$1","v":0},{"$f":"Jurat!D$33","v":"00:00:00"},"Q4","2017-12-31","Region 9","Operating Expense","Medical Expense","Expanded Benefits","3.3","Ending IBNP for Expanded Benefits",{"$f":"IFERROR('LTC Rev-Exp Region 9'!$P$41/'LTC Rev-Exp Region 9'!$P$9, 0)","v":{"v":0,"d":"$0.00"}},{"$f":"IFERROR('LTC Rev-Exp Region 9'!$Q$41/'LTC Rev-Exp Region 9'!$Q$9, 0)","v":{"v":0,"d":"$0.00"}},{"$f":"IFERROR('LTC Rev-Exp Region 9'!$R$41/'LTC Rev-Exp Region 9'!$R$9, 0)","v":{"v":0,"d":"$0.00"}},{"$f":"IFERROR('LTC Rev-Exp Region 9'!$S$41/'LTC Rev-Exp Region 9'!$S$9, 0)","v":{"v":0,"d":"$0.00"}}]
["LTC",null,null,{"$f":"Jurat!I$1","v":0},{"$f":"Jurat!D$33","v":"00:00:00"},"Q4","2017-12-31","Region 9","Operating Expense","Medical Expense","Expanded Benefits","3.4","Expanded Benefits Settlements",{"$f":"IFERROR('LTC Rev-Exp Region 9'!$P$42/'LTC Rev-Exp Region 9'!$P$9, 0)","v":{"v":0,"d":"$0.00"}},{"$f":"IFERROR('LTC Rev-Exp Region 9'!$Q$42/'LTC Rev-Exp Region 9'!$Q$9, 0)","v":{"v":0,"d":"$0.00"}},{"$f":"IFERROR('LTC Rev-Exp Region 9'!$R$42/'LTC Rev-Exp Region 9'!$R$9, 0)","v":{"v":0,"d":"$0.00"}},{"$f":"IFERROR('LTC Rev-Exp Region 9'!$S$42/'LTC Rev-Exp Region 9'!$S$9, 0)","v":{"v":0,"d":"$0.00"}}]
["LTC",null,null,{"$f":"Jurat!I$1","v":0},{"$f":"Jurat!D$33","v":"00:00:00"},"Q4","2017-12-31","Region 9","Operating Expense","Medical Expense","Other Medical","4.5","TPL & Fraud/Abuse Recoveries",{"$f":"IFERROR('LTC Rev-Exp Region 9'!$P$48/'LTC Rev-Exp Region 9'!$P$9, 0)","v":{"v":0,"d":"$0.00"}},{"$f":"IFERROR('LTC Rev-Exp Region 9'!$Q$48/'LTC Rev-Exp Region 9'!$Q$9, 0)","v":{"v":0,"d":"$0.00"}},{"$f":"IFERROR('LTC Rev-Exp Region 9'!$R$48/'LTC Rev-Exp Region 9'!$R$9, 0)","v":{"v":0,"d":"$0.00"}},{"$f":"IFERROR('LTC Rev-Exp Region 9'!$S$48/'LTC Rev-Exp Region 9'!$S$9, 0)","v":{"v":0,"d":"$0.00"}}]
["LTC",null,null,{"$f":"Jurat!I$1","v":0},{"$f":"Jurat!D$33","v":"00:00:00"},"Q4","2017-12-31","Region 9","Operating Expense","Medical Expense","Other Medical","4.6.1","Premium Deficiency Reserve",{"$f":"IFERROR('LTC Rev-Exp Region 9'!$P$49/'LTC Rev-Exp Region 9'!$P$9, 0)","v":{"v":0,"d":"$0.00"}},{"$f":"IFERROR('LTC Rev-Exp Region 9'!$Q$49/'LTC Rev-Exp Region 9'!$Q$9, 0)","v":{"v":0,"d":"$0.00"}},{"$f":"IFERROR('LTC Rev-Exp Region 9'!$R$49/'LTC Rev-Exp Region 9'!$R$9, 0)","v":{"v":0,"d":"$0.00"}},{"$f":"IFERROR('LTC Rev-Exp Region 9'!$S$49/'LTC Rev-Exp Region 9'!$S$9, 0)","v":{"v":0,"d":"$0.00"}}]
["LTC",null,null,{"$f":"Jurat!I$1","v":0},{"$f":"Jurat!D$33","v":"00:00:00"},"Q4","2017-12-31","Region 9","Operating Expense","Medical Expense","Other Medical","4.8","Reinsurance Premiums",{"$f":"IFERROR('LTC Rev-Exp Region 9'!$P$51/'LTC Rev-Exp Region 9'!$P$9, 0)","v":{"v":0,"d":"$0.00"}},{"$f":"IFERROR('LTC Rev-Exp Region 9'!$Q$51/'LTC Rev-Exp Region 9'!$Q$9, 0)","v":{"v":0,"d":"$0.00"}},{"$f":"IFERROR('LTC Rev-Exp Region 9'!$R$51/'LTC Rev-Exp Region 9'!$R$9, 0)","v":{"v":0,"d":"$0.00"}},{"$f":"IFERROR('LTC Rev-Exp Region 9'!$S$51/'LTC Rev-Exp Region 9'!$S$9, 0)","v":{"v":0,"d":"$0.00"}}]
["LTC",null,null,{"$f":"Jurat!I$1","v":0},{"$f":"Jurat!D$33","v":"00:00:00"},"Q4","2017-12-31","Region 9","Operating Expense","Medical Expense","Other Medical","4.9","Reinsurance Recoveries",{"$f":"IFERROR('LTC Rev-Exp Region 9'!$P$52/'LTC Rev-Exp Region 9'!$P$9, 0)","v":{"v":0,"d":"$0.00"}},{"$f":"IFERROR('LTC Rev-Exp Region 9'!$Q$52/'LTC Rev-Exp Region 9'!$Q$9, 0)","v":{"v":0,"d":"$0.00"}},{"$f":"IFERROR('LTC Rev-Exp Region 9'!$R$52/'LTC Rev-Exp Region 9'!$R$9, 0)","v":{"v":0,"d":"$0.00"}},{"$f":"IFERROR('LTC Rev-Exp Region 9'!$S$52/'LTC Rev-Exp Region 9'!$S$9, 0)","v":{"v":0,"d":"$0.00"}}]
["LTC",null,null,{"$f":"Jurat!I$1","v":0},{"$f":"Jurat!D$33","v":"00:00:00"},"Q4","2017-12-31","Region 9","Operating Expense","Administrative Expense","Administrative","5.1","Salaries & Benefits",{"$f":"IFERROR('LTC Rev-Exp Region 9'!$P$57/'LTC Rev-Exp Region 9'!$P$9, 0)","v":{"v":0,"d":"$0.00"}},{"$f":"IFERROR('LTC Rev-Exp Region 9'!$Q$57/'LTC Rev-Exp Region 9'!$Q$9, 0)","v":{"v":0,"d":"$0.00"}},{"$f":"IFERROR('LTC Rev-Exp Region 9'!$R$57/'LTC Rev-Exp Region 9'!$R$9, 0)","v":{"v":0,"d":"$0.00"}},{"$f":"IFERROR('LTC Rev-Exp Region 9'!$S$57/'LTC Rev-Exp Region 9'!$S$9, 0)","v":{"v":0,"d":"$0.00"}}]
["LTC",null,null,{"$f":"Jurat!I$1","v":0},{"$f":"Jurat!D$33","v":"00:00:00"},"Q4","2017-12-31","Region 9","Operating Expense","Administrative Expense","Administrative","5.2","Administrative Services",{"$f":"IFERROR('LTC Rev-Exp Region 9'!$P$58/'LTC Rev-Exp Region 9'!$P$9, 0)","v":{"v":0,"d":"$0.00"}},{"$f":"IFERROR('LTC Rev-Exp Region 9'!$Q$58/'LTC Rev-Exp Region 9'!$Q$9, 0)","v":{"v":0,"d":"$0.00"}},{"$f":"IFERROR('LTC Rev-Exp Region 9'!$R$58/'LTC Rev-Exp Region 9'!$R$9, 0)","v":{"v":0,"d":"$0.00"}},{"$f":"IFERROR('LTC Rev-Exp Region 9'!$S$58/'LTC Rev-Exp Region 9'!$S$9, 0)","v":{"v":0,"d":"$0.00"}}]
["LTC",null,null,{"$f":"Jurat!I$1","v":0},{"$f":"Jurat!D$33","v":"00:00:00"},"Q4","2017-12-31","Region 9","Operating Expense","Administrative Expense","Administrative","5.3","Information Systems",{"$f":"IFERROR('LTC Rev-Exp Region 9'!$P$59/'LTC Rev-Exp Region 9'!$P$9, 0)","v":{"v":0,"d":"$0.00"}},{"$f":"IFERROR('LTC Rev-Exp Region 9'!$Q$59/'LTC Rev-Exp Region 9'!$Q$9, 0)","v":{"v":0,"d":"$0.00"}},{"$f":"IFERROR('LTC Rev-Exp Region 9'!$R$59/'LTC Rev-Exp Region 9'!$R$9, 0)","v":{"v":0,"d":"$0.00"}},{"$f":"IFERROR('LTC Rev-Exp Region 9'!$S$59/'LTC Rev-Exp Region 9'!$S$9, 0)","v":{"v":0,"d":"$0.00"}}]
["LTC",null,null,{"$f":"Jurat!I$1","v":0},{"$f":"Jurat!D$33","v":"00:00:00"},"Q4","2017-12-31","Region 9","Operating Expense","Administrative Expense","Administrative","5.4","Marketing Expenses",{"$f":"IFERROR('LTC Rev-Exp Region 9'!$P$60/'LTC Rev-Exp Region 9'!$P$9, 0)","v":{"v":0,"d":"$0.00"}},{"$f":"IFERROR('LTC Rev-Exp Region 9'!$Q$60/'LTC Rev-Exp Region 9'!$Q$9, 0)","v":{"v":0,"d":"$0.00"}},{"$f":"IFERROR('LTC Rev-Exp Region 9'!$R$60/'LTC Rev-Exp Region 9'!$R$9, 0)","v":{"v":0,"d":"$0.00"}},{"$f":"IFERROR('LTC Rev-Exp Region 9'!$S$60/'LTC Rev-Exp Region 9'!$S$9, 0)","v":{"v":0,"d":"$0.00"}}]
["LTC",null,null,{"$f":"Jurat!I$1","v":0},{"$f":"Jurat!D$33","v":"00:00:00"},"Q4","2017-12-31","Region 9","Operating Expense","Administrative Expense","Administrative","5.5","General  Administration",{"$f":"IFERROR('LTC Rev-Exp Region 9'!$P$61/'LTC Rev-Exp Region 9'!$P$9, 0)","v":{"v":0,"d":"$0.00"}},{"$f":"IFERROR('LTC Rev-Exp Region 9'!$Q$61/'LTC Rev-Exp Region 9'!$Q$9, 0)","v":{"v":0,"d":"$0.00"}},{"$f":"IFERROR('LTC Rev-Exp Region 9'!$R$61/'LTC Rev-Exp Region 9'!$R$9, 0)","v":{"v":0,"d":"$0.00"}},{"$f":"IFERROR('LTC Rev-Exp Region 9'!$S$61/'LTC Rev-Exp Region 9'!$S$9, 0)","v":{"v":0,"d":"$0.00"}}]
["LTC",null,null,{"$f":"Jurat!I$1","v":0},{"$f":"Jurat!D$33","v":"00:00:00"},"Q4","2017-12-31","Region 9","Operating Expense","Administrative Expense","Administrative","5.6","Compliance/Regulatory",{"$f":"IFERROR('LTC Rev-Exp Region 9'!$P$62/'LTC Rev-Exp Region 9'!$P$9, 0)","v":{"v":0,"d":"$0.00"}},{"$f":"IFERROR('LTC Rev-Exp Region 9'!$Q$62/'LTC Rev-Exp Region 9'!$Q$9, 0)","v":{"v":0,"d":"$0.00"}},{"$f":"IFERROR('LTC Rev-Exp Region 9'!$R$62/'LTC Rev-Exp Region 9'!$R$9, 0)","v":{"v":0,"d":"$0.00"}},{"$f":"IFERROR('LTC Rev-Exp Region 9'!$S$62/'LTC Rev-Exp Region 9'!$S$9, 0)","v":{"v":0,"d":"$0.00"}}]
["LTC",null,null,{"$f":"Jurat!I$1","v":0},{"$f":"Jurat!D$33","v":"00:00:00"},"Q4","2017-12-31","Region 9","Operating Expense","Taxes & Fees","Taxes & Fees","6.1","State Premium Tax",{"$f":"IFERROR('LTC Rev-Exp Region 9'!$P$64/'LTC Rev-Exp Region 9'!$P$9, 0)","v":{"v":0,"d":"$0.00"}},{"$f":"IFERROR('LTC Rev-Exp Region 9'!$Q$64/'LTC Rev-Exp Region 9'!$Q$9, 0)","v":{"v":0,"d":"$0.00"}},{"$f":"IFERROR('LTC Rev-Exp Region 9'!$R$64/'LTC Rev-Exp Region 9'!$R$9, 0)","v":{"v":0,"d":"$0.00"}},{"$f":"IFERROR('LTC Rev-Exp Region 9'!$S$64/'LTC Rev-Exp Region 9'!$S$9, 0)","v":{"v":0,"d":"$0.00"}}]
["LTC",null,null,{"$f":"Jurat!I$1","v":0},{"$f":"Jurat!D$33","v":"00:00:00"},"Q4","2017-12-31","Region 9","Operating Expense","Taxes & Fees","Taxes & Fees","6.2","Department of Insurance Assessments",{"$f":"IFERROR('LTC Rev-Exp Region 9'!$P$65/'LTC Rev-Exp Region 9'!$P$9, 0)","v":{"v":0,"d":"$0.00"}},{"$f":"IFERROR('LTC Rev-Exp Region 9'!$Q$65/'LTC Rev-Exp Region 9'!$Q$9, 0)","v":{"v":0,"d":"$0.00"}},{"$f":"IFERROR('LTC Rev-Exp Region 9'!$R$65/'LTC Rev-Exp Region 9'!$R$9, 0)","v":{"v":0,"d":"$0.00"}},{"$f":"IFERROR('LTC Rev-Exp Region 9'!$S$65/'LTC Rev-Exp Region 9'!$S$9, 0)","v":{"v":0,"d":"$0.00"}}]
["LTC",null,null,{"$f":"Jurat!I$1","v":0},{"$f":"Jurat!D$33","v":"00:00:00"},"Q4","2017-12-31","Region 9","Non-Operating Expense","Income Tax Expense","Income Tax Expense","9.0","Income Tax Expense",{"$f":"IFERROR('LTC Rev-Exp Region 9'!$P$72/'LTC Rev-Exp Region 9'!$P$9, 0)","v":{"v":0,"d":"$0.00"}},{"$f":"IFERROR('LTC Rev-Exp Region 9'!$Q$72/'LTC Rev-Exp Region 9'!$Q$9, 0)","v":{"v":0,"d":"$0.00"}},{"$f":"IFERROR('LTC Rev-Exp Region 9'!$R$72/'LTC Rev-Exp Region 9'!$R$9, 0)","v":{"v":0,"d":"$0.00"}},{"$f":"IFERROR('LTC Rev-Exp Region 9'!$S$72/'LTC Rev-Exp Region 9'!$S$9, 0)","v":{"v":0,"d":"$0.00"}}]
["LTC",null,null,{"$f":"Jurat!I$1","v":0},{"$f":"Jurat!D$33","v":"00:00:00"},"Q1","2017-03-31","Region 10","Operating Revenue","Capitation","Capitation",1.1,"Capitation",{"$f":"IFERROR('LTC Rev-Exp Region 10'!$D$11/'LTC Rev-Exp Region 10'!$D$9, 0)","v":{"v":0,"d":"$0.00"}},{"$f":"IFERROR('LTC Rev-Exp Region 10'!$E$11/'LTC Rev-Exp Region 10'!$E$9, 0)","v":{"v":0,"d":"$0.00"}},{"$f":"IFERROR('LTC Rev-Exp Region 10'!$F$11/'LTC Rev-Exp Region 10'!$F$9, 0)","v":{"v":0,"d":"$0.00"}},{"$f":"IFERROR('LTC Rev-Exp Region 10'!$G$11/'LTC Rev-Exp Region 10'!$G$9, 0)","v":{"v":0,"d":"$0.00"}}]
["LTC",null,null,{"$f":"Jurat!I$1","v":0},{"$f":"Jurat!D$33","v":"00:00:00"},"Q1","2017-03-31","Region 10","Operating Revenue","Capitation","NH Rate Reconciliation",1.2,"NH Rate Reconciliation",{"$f":"IFERROR('LTC Rev-Exp Region 10'!$D$12/'LTC Rev-Exp Region 10'!$D$9, 0)","v":{"v":0,"d":"$0.00"}},{"$f":"IFERROR('LTC Rev-Exp Region 10'!$E$12/'LTC Rev-Exp Region 10'!$E$9, 0)","v":{"v":0,"d":"$0.00"}},{"$f":"IFERROR('LTC Rev-Exp Region 10'!$F$12/'LTC Rev-Exp Region 10'!$F$9, 0)","v":{"v":0,"d":"$0.00"}},{"$f":"IFERROR('LTC Rev-Exp Region 10'!$G$12/'LTC Rev-Exp Region 10'!$G$9, 0)","v":{"v":0,"d":"$0.00"}}]
["LTC",null,null,{"$f":"Jurat!I$1","v":0},{"$f":"Jurat!D$33","v":"00:00:00"},"Q1","2017-03-31","Region 10","Operating Revenue","Other Revenue","Other Revenue",1.3,"Other Revenue",{"$f":"IFERROR('LTC Rev-Exp Region 10'!$D$13/'LTC Rev-Exp Region 10'!$D$9, 0)","v":{"v":0,"d":"$0.00"}},{"$f":"IFERROR('LTC Rev-Exp Region 10'!$E$13/'LTC Rev-Exp Region 10'!$E$9, 0)","v":{"v":0,"d":"$0.00"}},{"$f":"IFERROR('LTC Rev-Exp Region 10'!$F$13/'LTC Rev-Exp Region 10'!$F$9, 0)","v":{"v":0,"d":"$0.00"}},{"$f":"IFERROR('LTC Rev-Exp Region 10'!$G$13/'LTC Rev-Exp Region 10'!$G$9, 0)","v":{"v":0,"d":"$0.00"}}]
["LTC",null,null,{"$f":"Jurat!I$1","v":0},{"$f":"Jurat!D$33","v":"00:00:00"},"Q1","2017-03-31","Region 10","Operating Expense","Medical Expense","NF & Hospice","2.3","Nursing Facility FFS (Medicaid)",{"$f":"IFERROR('LTC Rev-Exp Region 10'!$D$19/'LTC Rev-Exp Region 10'!$D$9, 0)","v":{"v":0,"d":"$0.00"}},{"$f":"IFERROR('LTC Rev-Exp Region 10'!$E$19/'LTC Rev-Exp Region 10'!$E$9, 0)","v":{"v":0,"d":"$0.00"}},{"$f":"IFERROR('LTC Rev-Exp Region 10'!$F$19/'LTC Rev-Exp Region 10'!$F$9, 0)","v":{"v":0,"d":"$0.00"}},{"$f":"IFERROR('LTC Rev-Exp Region 10'!$G$19/'LTC Rev-Exp Region 10'!$G$9, 0)","v":{"v":0,"d":"$0.00"}}]
["LTC",null,null,{"$f":"Jurat!I$1","v":0},{"$f":"Jurat!D$33","v":"00:00:00"},"Q1","2017-03-31","Region 10","Operating Expense","Medical Expense","NF & Hospice","2.4","Nursing Facility FFS (Crossover)",{"$f":"IFERROR('LTC Rev-Exp Region 10'!$D$20/'LTC Rev-Exp Region 10'!$D$9, 0)","v":{"v":0,"d":"$0.00"}},{"$f":"IFERROR('LTC Rev-Exp Region 10'!$E$20/'LTC Rev-Exp Region 10'!$E$9, 0)","v":{"v":0,"d":"$0.00"}},{"$f":"IFERROR('LTC Rev-Exp Region 10'!$F$20/'LTC Rev-Exp Region 10'!$F$9, 0)","v":{"v":0,"d":"$0.00"}},{"$f":"IFERROR('LTC Rev-Exp Region 10'!$G$20/'LTC Rev-Exp Region 10'!$G$9, 0)","v":{"v":0,"d":"$0.00"}}]
["LTC",null,null,{"$f":"Jurat!I$1","v":0},{"$f":"Jurat!D$33","v":"00:00:00"},"Q1","2017-03-31","Region 10","Operating Expense","Medical Expense","NF & Hospice","2.6","Hospice FFS",{"$f":"IFERROR('LTC Rev-Exp Region 10'!$D$22/'LTC Rev-Exp Region 10'!$D$9, 0)","v":{"v":0,"d":"$0.00"}},{"$f":"IFERROR('LTC Rev-Exp Region 10'!$E$22/'LTC Rev-Exp Region 10'!$E$9, 0)","v":{"v":0,"d":"$0.00"}},{"$f":"IFERROR('LTC Rev-Exp Region 10'!$F$22/'LTC Rev-Exp Region 10'!$F$9, 0)","v":{"v":0,"d":"$0.00"}},{"$f":"IFERROR('LTC Rev-Exp Region 10'!$G$22/'LTC Rev-Exp Region 10'!$G$9, 0)","v":{"v":0,"d":"$0.00"}}]
["LTC",null,null,{"$f":"Jurat!I$1","v":0},{"$f":"Jurat!D$33","v":"00:00:00"},"Q1","2017-03-31","Region 10","Operating Expense","Medical Expense","NF & Hospice","2.7","Ending IBNP for NF & Hospice",{"$f":"IFERROR('LTC Rev-Exp Region 10'!$D$23/'LTC Rev-Exp Region 10'!$D$9, 0)","v":{"v":0,"d":"$0.00"}},{"$f":"IFERROR('LTC Rev-Exp Region 10'!$E$23/'LTC Rev-Exp Region 10'!$E$9, 0)","v":{"v":0,"d":"$0.00"}},{"$f":"IFERROR('LTC Rev-Exp Region 10'!$F$23/'LTC Rev-Exp Region 10'!$F$9, 0)","v":{"v":0,"d":"$0.00"}},{"$f":"IFERROR('LTC Rev-Exp Region 10'!$G$23/'LTC Rev-Exp Region 10'!$G$9, 0)","v":{"v":0,"d":"$0.00"}}]
["LTC",null,null,{"$f":"Jurat!I$1","v":0},{"$f":"Jurat!D$33","v":"00:00:00"},"Q1","2017-03-31","Region 10","Operating Expense","Medical Expense","NF & Hospice","2.8","NF & Hospice Subcapitated",{"$f":"IFERROR('LTC Rev-Exp Region 10'!$D$24/'LTC Rev-Exp Region 10'!$D$9, 0)","v":{"v":0,"d":"$0.00"}},{"$f":"IFERROR('LTC Rev-Exp Region 10'!$E$24/'LTC Rev-Exp Region 10'!$E$9, 0)","v":{"v":0,"d":"$0.00"}},{"$f":"IFERROR('LTC Rev-Exp Region 10'!$F$24/'LTC Rev-Exp Region 10'!$F$9, 0)","v":{"v":0,"d":"$0.00"}},{"$f":"IFERROR('LTC Rev-Exp Region 10'!$G$24/'LTC Rev-Exp Region 10'!$G$9, 0)","v":{"v":0,"d":"$0.00"}}]
["LTC",null,null,{"$f":"Jurat!I$1","v":0},{"$f":"Jurat!D$33","v":"00:00:00"},"Q1","2017-03-31","Region 10","Operating Expense","Medical Expense","NF & Hospice","2.9","NF & Hospice Settlements",{"$f":"IFERROR('LTC Rev-Exp Region 10'!$D$25/'LTC Rev-Exp Region 10'!$D$9, 0)","v":{"v":0,"d":"$0.00"}},{"$f":"IFERROR('LTC Rev-Exp Region 10'!$E$25/'LTC Rev-Exp Region 10'!$E$9, 0)","v":{"v":0,"d":"$0.00"}},{"$f":"IFERROR('LTC Rev-Exp Region 10'!$F$25/'LTC Rev-Exp Region 10'!$F$9, 0)","v":{"v":0,"d":"$0.00"}},{"$f":"IFERROR('LTC Rev-Exp Region 10'!$G$25/'LTC Rev-Exp Region 10'!$G$9, 0)","v":{"v":0,"d":"$0.00"}}]
["LTC",null,null,{"$f":"Jurat!I$1","v":0},{"$f":"Jurat!D$33","v":"00:00:00"},"Q1","2017-03-31","Region 10","Operating Expense","Medical Expense","LTC Services","2.11","Assisted Living FFS",{"$f":"IFERROR('LTC Rev-Exp Region 10'!$D$27/'LTC Rev-Exp Region 10'!$D$9, 0)","v":{"v":0,"d":"$0.00"}},{"$f":"IFERROR('LTC Rev-Exp Region 10'!$E$27/'LTC Rev-Exp Region 10'!$E$9, 0)","v":{"v":0,"d":"$0.00"}},{"$f":"IFERROR('LTC Rev-Exp Region 10'!$F$27/'LTC Rev-Exp Region 10'!$F$9, 0)","v":{"v":0,"d":"$0.00"}},{"$f":"IFERROR('LTC Rev-Exp Region 10'!$G$27/'LTC Rev-Exp Region 10'!$G$9, 0)","v":{"v":0,"d":"$0.00"}}]
["LTC",null,null,{"$f":"Jurat!I$1","v":0},{"$f":"Jurat!D$33","v":"00:00:00"},"Q1","2017-03-31","Region 10","Operating Expense","Medical Expense","LTC Services","2.12","Home Health FFS",{"$f":"IFERROR('LTC Rev-Exp Region 10'!$D$28/'LTC Rev-Exp Region 10'!$D$9, 0)","v":{"v":0,"d":"$0.00"}},{"$f":"IFERROR('LTC Rev-Exp Region 10'!$E$28/'LTC Rev-Exp Region 10'!$E$9, 0)","v":{"v":0,"d":"$0.00"}},{"$f":"IFERROR('LTC Rev-Exp Region 10'!$F$28/'LTC Rev-Exp Region 10'!$F$9, 0)","v":{"v":0,"d":"$0.00"}},{"$f":"IFERROR('LTC Rev-Exp Region 10'!$G$28/'LTC Rev-Exp Region 10'!$G$9, 0)","v":{"v":0,"d":"$0.00"}}]
["LTC",null,null,{"$f":"Jurat!I$1","v":0},{"$f":"Jurat!D$33","v":"00:00:00"},"Q1","2017-03-31","Region 10","Operating Expense","Medical Expense","LTC Services","2.13","Medical Equipment/Supplies FFS",{"$f":"IFERROR('LTC Rev-Exp Region 10'!$D$29/'LTC Rev-Exp Region 10'!$D$9, 0)","v":{"v":0,"d":"$0.00"}},{"$f":"IFERROR('LTC Rev-Exp Region 10'!$E$29/'LTC Rev-Exp Region 10'!$E$9, 0)","v":{"v":0,"d":"$0.00"}},{"$f":"IFERROR('LTC Rev-Exp Region 10'!$F$29/'LTC Rev-Exp Region 10'!$F$9, 0)","v":{"v":0,"d":"$0.00"}},{"$f":"IFERROR('LTC Rev-Exp Region 10'!$G$29/'LTC Rev-Exp Region 10'!$G$9, 0)","v":{"v":0,"d":"$0.00"}}]
["LTC",null,null,{"$f":"Jurat!I$1","v":0},{"$f":"Jurat!D$33","v":"00:00:00"},"Q1","2017-03-31","Region 10","Operating Expense","Medical Expense","LTC Services","2.14","Therapy FFS",{"$f":"IFERROR('LTC Rev-Exp Region 10'!$D$30/'LTC Rev-Exp Region 10'!$D$9, 0)","v":{"v":0,"d":"$0.00"}},{"$f":"IFERROR('LTC Rev-Exp Region 10'!$E$30/'LTC Rev-Exp Region 10'!$E$9, 0)","v":{"v":0,"d":"$0.00"}},{"$f":"IFERROR('LTC Rev-Exp Region 10'!$F$30/'LTC Rev-Exp Region 10'!$F$9, 0)","v":{"v":0,"d":"$0.00"}},{"$f":"IFERROR('LTC Rev-Exp Region 10'!$G$30/'LTC Rev-Exp Region 10'!$G$9, 0)","v":{"v":0,"d":"$0.00"}}]
["LTC",null,null,{"$f":"Jurat!I$1","v":0},{"$f":"Jurat!D$33","v":"00:00:00"},"Q1","2017-03-31","Region 10","Operating Expense","Medical Expense","LTC Services","2.15","Transportation FFS",{"$f":"IFERROR('LTC Rev-Exp Region 10'!$D$31/'LTC Rev-Exp Region 10'!$D$9, 0)","v":{"v":0,"d":"$0.00"}},{"$f":"IFERROR('LTC Rev-Exp Region 10'!$E$31/'LTC Rev-Exp Region 10'!$E$9, 0)","v":{"v":0,"d":"$0.00"}},{"$f":"IFERROR('LTC Rev-Exp Region 10'!$F$31/'LTC Rev-Exp Region 10'!$F$9, 0)","v":{"v":0,"d":"$0.00"}},{"$f":"IFERROR('LTC Rev-Exp Region 10'!$G$31/'LTC Rev-Exp Region 10'!$G$9, 0)","v":{"v":0,"d":"$0.00"}}]
["LTC",null,null,{"$f":"Jurat!I$1","v":0},{"$f":"Jurat!D$33","v":"00:00:00"},"Q1","2017-03-31","Region 10","Operating Expense","Medical Expense","LTC Services","2.16","Case Management FFS (Plan Provided)",{"$f":"IFERROR('LTC Rev-Exp Region 10'!$D$32/'LTC Rev-Exp Region 10'!$D$9, 0)","v":{"v":0,"d":"$0.00"}},{"$f":"IFERROR('LTC Rev-Exp Region 10'!$E$32/'LTC Rev-Exp Region 10'!$E$9, 0)","v":{"v":0,"d":"$0.00"}},{"$f":"IFERROR('LTC Rev-Exp Region 10'!$F$32/'LTC Rev-Exp Region 10'!$F$9, 0)","v":{"v":0,"d":"$0.00"}},{"$f":"IFERROR('LTC Rev-Exp Region 10'!$G$32/'LTC Rev-Exp Region 10'!$G$9, 0)","v":{"v":0,"d":"$0.00"}}]
["LTC",null,null,{"$f":"Jurat!I$1","v":0},{"$f":"Jurat!D$33","v":"00:00:00"},"Q1","2017-03-31","Region 10","Operating Expense","Medical Expense","LTC Services","2.17","Case Management FF (Non-Plan Provided)",{"$f":"IFERROR('LTC Rev-Exp Region 10'!$D$33/'LTC Rev-Exp Region 10'!$D$9, 0)","v":{"v":0,"d":"$0.00"}},{"$f":"IFERROR('LTC Rev-Exp Region 10'!$E$33/'LTC Rev-Exp Region 10'!$E$9, 0)","v":{"v":0,"d":"$0.00"}},{"$f":"IFERROR('LTC Rev-Exp Region 10'!$F$33/'LTC Rev-Exp Region 10'!$F$9, 0)","v":{"v":0,"d":"$0.00"}},{"$f":"IFERROR('LTC Rev-Exp Region 10'!$G$33/'LTC Rev-Exp Region 10'!$G$9, 0)","v":{"v":0,"d":"$0.00"}}]
["LTC",null,null,{"$f":"Jurat!I$1","v":0},{"$f":"Jurat!D$33","v":"00:00:00"},"Q1","2017-03-31","Region 10","Operating Expense","Medical Expense","LTC Services","2.18","HCBS FFS",{"$f":"IFERROR('LTC Rev-Exp Region 10'!$D$34/'LTC Rev-Exp Region 10'!$D$9, 0)","v":{"v":0,"d":"$0.00"}},{"$f":"IFERROR('LTC Rev-Exp Region 10'!$E$34/'LTC Rev-Exp Region 10'!$E$9, 0)","v":{"v":0,"d":"$0.00"}},{"$f":"IFERROR('LTC Rev-Exp Region 10'!$F$34/'LTC Rev-Exp Region 10'!$F$9, 0)","v":{"v":0,"d":"$0.00"}},{"$f":"IFERROR('LTC Rev-Exp Region 10'!$G$34/'LTC Rev-Exp Region 10'!$G$9, 0)","v":{"v":0,"d":"$0.00"}}]
["LTC",null,null,{"$f":"Jurat!I$1","v":0},{"$f":"Jurat!D$33","v":"00:00:00"},"Q1","2017-03-31","Region 10","Operating Expense","Medical Expense","LTC Services","2.19","Subcapitated LTC Services",{"$f":"IFERROR('LTC Rev-Exp Region 10'!$D$35/'LTC Rev-Exp Region 10'!$D$9, 0)","v":{"v":0,"d":"$0.00"}},{"$f":"IFERROR('LTC Rev-Exp Region 10'!$E$35/'LTC Rev-Exp Region 10'!$E$9, 0)","v":{"v":0,"d":"$0.00"}},{"$f":"IFERROR('LTC Rev-Exp Region 10'!$F$35/'LTC Rev-Exp Region 10'!$F$9, 0)","v":{"v":0,"d":"$0.00"}},{"$f":"IFERROR('LTC Rev-Exp Region 10'!$G$35/'LTC Rev-Exp Region 10'!$G$9, 0)","v":{"v":0,"d":"$0.00"}}]
["LTC",null,null,{"$f":"Jurat!I$1","v":0},{"$f":"Jurat!D$33","v":"00:00:00"},"Q1","2017-03-31","Region 10","Operating Expense","Medical Expense","LTC Services","2.20","Ending IBNP for Long Term Care Services",{"$f":"IFERROR('LTC Rev-Exp Region 10'!$D$36/'LTC Rev-Exp Region 10'!$D$9, 0)","v":{"v":0,"d":"$0.00"}},{"$f":"IFERROR('LTC Rev-Exp Region 10'!$E$36/'LTC Rev-Exp Region 10'!$E$9, 0)","v":{"v":0,"d":"$0.00"}},{"$f":"IFERROR('LTC Rev-Exp Region 10'!$F$36/'LTC Rev-Exp Region 10'!$F$9, 0)","v":{"v":0,"d":"$0.00"}},{"$f":"IFERROR('LTC Rev-Exp Region 10'!$G$36/'LTC Rev-Exp Region 10'!$G$9, 0)","v":{"v":0,"d":"$0.00"}}]
["LTC",null,null,{"$f":"Jurat!I$1","v":0},{"$f":"Jurat!D$33","v":"00:00:00"},"Q1","2017-03-31","Region 10","Operating Expense","Medical Expense","LTC Services","2.21","LTC Services Settlements",{"$f":"IFERROR('LTC Rev-Exp Region 10'!$D$37/'LTC Rev-Exp Region 10'!$D$9, 0)","v":{"v":0,"d":"$0.00"}},{"$f":"IFERROR('LTC Rev-Exp Region 10'!$E$37/'LTC Rev-Exp Region 10'!$E$9, 0)","v":{"v":0,"d":"$0.00"}},{"$f":"IFERROR('LTC Rev-Exp Region 10'!$F$37/'LTC Rev-Exp Region 10'!$F$9, 0)","v":{"v":0,"d":"$0.00"}},{"$f":"IFERROR('LTC Rev-Exp Region 10'!$G$37/'LTC Rev-Exp Region 10'!$G$9, 0)","v":{"v":0,"d":"$0.00"}}]
["LTC",null,null,{"$f":"Jurat!I$1","v":0},{"$f":"Jurat!D$33","v":"00:00:00"},"Q1","2017-03-31","Region 10","Operating Expense","Medical Expense","Expanded Benefits","3.1","Expanded Benefits FFS",{"$f":"IFERROR('LTC Rev-Exp Region 10'!$D$39/'LTC Rev-Exp Region 10'!$D$9, 0)","v":{"v":0,"d":"$0.00"}},{"$f":"IFERROR('LTC Rev-Exp Region 10'!$E$39/'LTC Rev-Exp Region 10'!$E$9, 0)","v":{"v":0,"d":"$0.00"}},{"$f":"IFERROR('LTC Rev-Exp Region 10'!$F$39/'LTC Rev-Exp Region 10'!$F$9, 0)","v":{"v":0,"d":"$0.00"}},{"$f":"IFERROR('LTC Rev-Exp Region 10'!$G$39/'LTC Rev-Exp Region 10'!$G$9, 0)","v":{"v":0,"d":"$0.00"}}]
["LTC",null,null,{"$f":"Jurat!I$1","v":0},{"$f":"Jurat!D$33","v":"00:00:00"},"Q1","2017-03-31","Region 10","Operating Expense","Medical Expense","Expanded Benefits","3.2","Expanded Benefits Subcapitation",{"$f":"IFERROR('LTC Rev-Exp Region 10'!$D$40/'LTC Rev-Exp Region 10'!$D$9, 0)","v":{"v":0,"d":"$0.00"}},{"$f":"IFERROR('LTC Rev-Exp Region 10'!$E$40/'LTC Rev-Exp Region 10'!$E$9, 0)","v":{"v":0,"d":"$0.00"}},{"$f":"IFERROR('LTC Rev-Exp Region 10'!$F$40/'LTC Rev-Exp Region 10'!$F$9, 0)","v":{"v":0,"d":"$0.00"}},{"$f":"IFERROR('LTC Rev-Exp Region 10'!$G$40/'LTC Rev-Exp Region 10'!$G$9, 0)","v":{"v":0,"d":"$0.00"}}]
["LTC",null,null,{"$f":"Jurat!I$1","v":0},{"$f":"Jurat!D$33","v":"00:00:00"},"Q1","2017-03-31","Region 10","Operating Expense","Medical Expense","Expanded Benefits","3.3","Ending IBNP for Expanded Benefits",{"$f":"IFERROR('LTC Rev-Exp Region 10'!$D$41/'LTC Rev-Exp Region 10'!$D$9, 0)","v":{"v":0,"d":"$0.00"}},{"$f":"IFERROR('LTC Rev-Exp Region 10'!$E$41/'LTC Rev-Exp Region 10'!$E$9, 0)","v":{"v":0,"d":"$0.00"}},{"$f":"IFERROR('LTC Rev-Exp Region 10'!$F$41/'LTC Rev-Exp Region 10'!$F$9, 0)","v":{"v":0,"d":"$0.00"}},{"$f":"IFERROR('LTC Rev-Exp Region 10'!$G$41/'LTC Rev-Exp Region 10'!$G$9, 0)","v":{"v":0,"d":"$0.00"}}]
["LTC",null,null,{"$f":"Jurat!I$1","v":0},{"$f":"Jurat!D$33","v":"00:00:00"},"Q1","2017-03-31","Region 10","Operating Expense","Medical Expense","Expanded Benefits","3.4","Expanded Benefits Settlements",{"$f":"IFERROR('LTC Rev-Exp Region 10'!$D$42/'LTC Rev-Exp Region 10'!$D$9, 0)","v":{"v":0,"d":"$0.00"}},{"$f":"IFERROR('LTC Rev-Exp Region 10'!$E$42/'LTC Rev-Exp Region 10'!$E$9, 0)","v":{"v":0,"d":"$0.00"}},{"$f":"IFERROR('LTC Rev-Exp Region 10'!$F$42/'LTC Rev-Exp Region 10'!$F$9, 0)","v":{"v":0,"d":"$0.00"}},{"$f":"IFERROR('LTC Rev-Exp Region 10'!$G$42/'LTC Rev-Exp Region 10'!$G$9, 0)","v":{"v":0,"d":"$0.00"}}]
["LTC",null,null,{"$f":"Jurat!I$1","v":0},{"$f":"Jurat!D$33","v":"00:00:00"},"Q1","2017-03-31","Region 10","Operating Expense","Medical Expense","Other Medical","4.5","TPL & Fraud/Abuse Recoveries",{"$f":"IFERROR('LTC Rev-Exp Region 10'!$D$48/'LTC Rev-Exp Region 10'!$D$9, 0)","v":{"v":0,"d":"$0.00"}},{"$f":"IFERROR('LTC Rev-Exp Region 10'!$E$48/'LTC Rev-Exp Region 10'!$E$9, 0)","v":{"v":0,"d":"$0.00"}},{"$f":"IFERROR('LTC Rev-Exp Region 10'!$F$48/'LTC Rev-Exp Region 10'!$F$9, 0)","v":{"v":0,"d":"$0.00"}},{"$f":"IFERROR('LTC Rev-Exp Region 10'!$G$48/'LTC Rev-Exp Region 10'!$G$9, 0)","v":{"v":0,"d":"$0.00"}}]
["LTC",null,null,{"$f":"Jurat!I$1","v":0},{"$f":"Jurat!D$33","v":"00:00:00"},"Q1","2017-03-31","Region 10","Operating Expense","Medical Expense","Other Medical","4.6.1","Premium Deficiency Reserve",{"$f":"IFERROR('LTC Rev-Exp Region 10'!$D$49/'LTC Rev-Exp Region 10'!$D$9, 0)","v":{"v":0,"d":"$0.00"}},{"$f":"IFERROR('LTC Rev-Exp Region 10'!$E$49/'LTC Rev-Exp Region 10'!$E$9, 0)","v":{"v":0,"d":"$0.00"}},{"$f":"IFERROR('LTC Rev-Exp Region 10'!$F$49/'LTC Rev-Exp Region 10'!$F$9, 0)","v":{"v":0,"d":"$0.00"}},{"$f":"IFERROR('LTC Rev-Exp Region 10'!$G$49/'LTC Rev-Exp Region 10'!$G$9, 0)","v":{"v":0,"d":"$0.00"}}]
["LTC",null,null,{"$f":"Jurat!I$1","v":0},{"$f":"Jurat!D$33","v":"00:00:00"},"Q1","2017-03-31","Region 10","Operating Expense","Medical Expense","Other Medical","4.8","Reinsurance Premiums",{"$f":"IFERROR('LTC Rev-Exp Region 10'!$D$51/'LTC Rev-Exp Region 10'!$D$9, 0)","v":{"v":0,"d":"$0.00"}},{"$f":"IFERROR('LTC Rev-Exp Region 10'!$E$51/'LTC Rev-Exp Region 10'!$E$9, 0)","v":{"v":0,"d":"$0.00"}},{"$f":"IFERROR('LTC Rev-Exp Region 10'!$F$51/'LTC Rev-Exp Region 10'!$F$9, 0)","v":{"v":0,"d":"$0.00"}},{"$f":"IFERROR('LTC Rev-Exp Region 10'!$G$51/'LTC Rev-Exp Region 10'!$G$9, 0)","v":{"v":0,"d":"$0.00"}}]
["LTC",null,null,{"$f":"Jurat!I$1","v":0},{"$f":"Jurat!D$33","v":"00:00:00"},"Q1","2017-03-31","Region 10","Operating Expense","Medical Expense","Other Medical","4.9","Reinsurance Recoveries",{"$f":"IFERROR('LTC Rev-Exp Region 10'!$D$52/'LTC Rev-Exp Region 10'!$D$9, 0)","v":{"v":0,"d":"$0.00"}},{"$f":"IFERROR('LTC Rev-Exp Region 10'!$E$52/'LTC Rev-Exp Region 10'!$E$9, 0)","v":{"v":0,"d":"$0.00"}},{"$f":"IFERROR('LTC Rev-Exp Region 10'!$F$52/'LTC Rev-Exp Region 10'!$F$9, 0)","v":{"v":0,"d":"$0.00"}},{"$f":"IFERROR('LTC Rev-Exp Region 10'!$G$52/'LTC Rev-Exp Region 10'!$G$9, 0)","v":{"v":0,"d":"$0.00"}}]
["LTC",null,null,{"$f":"Jurat!I$1","v":0},{"$f":"Jurat!D$33","v":"00:00:00"},"Q1","2017-03-31","Region 10","Operating Expense","Administrative Expense","Administrative","5.1","Salaries & Benefits",{"$f":"IFERROR('LTC Rev-Exp Region 10'!$D$57/'LTC Rev-Exp Region 10'!$D$9, 0)","v":{"v":0,"d":"$0.00"}},{"$f":"IFERROR('LTC Rev-Exp Region 10'!$E$57/'LTC Rev-Exp Region 10'!$D$9, 0)","v":{"v":0,"d":"$0.00"}},{"$f":"IFERROR('LTC Rev-Exp Region 10'!$F$57/'LTC Rev-Exp Region 10'!$D$9, 0)","v":{"v":0,"d":"$0.00"}},{"$f":"IFERROR('LTC Rev-Exp Region 10'!$G$57/'LTC Rev-Exp Region 10'!$D$9, 0)","v":{"v":0,"d":"$0.00"}}]
["LTC",null,null,{"$f":"Jurat!I$1","v":0},{"$f":"Jurat!D$33","v":"00:00:00"},"Q1","2017-03-31","Region 10","Operating Expense","Administrative Expense","Administrative","5.2","Administrative Services",{"$f":"IFERROR('LTC Rev-Exp Region 10'!$D$58/'LTC Rev-Exp Region 10'!$D$9, 0)","v":{"v":0,"d":"$0.00"}},{"$f":"IFERROR('LTC Rev-Exp Region 10'!$E$58/'LTC Rev-Exp Region 10'!$D$9, 0)","v":{"v":0,"d":"$0.00"}},{"$f":"IFERROR('LTC Rev-Exp Region 10'!$F$58/'LTC Rev-Exp Region 10'!$D$9, 0)","v":{"v":0,"d":"$0.00"}},{"$f":"IFERROR('LTC Rev-Exp Region 10'!$G$58/'LTC Rev-Exp Region 10'!$D$9, 0)","v":{"v":0,"d":"$0.00"}}]
["LTC",null,null,{"$f":"Jurat!I$1","v":0},{"$f":"Jurat!D$33","v":"00:00:00"},"Q1","2017-03-31","Region 10","Operating Expense","Administrative Expense","Administrative","5.3","Information Systems",{"$f":"IFERROR('LTC Rev-Exp Region 10'!$D$59/'LTC Rev-Exp Region 10'!$D$9, 0)","v":{"v":0,"d":"$0.00"}},{"$f":"IFERROR('LTC Rev-Exp Region 10'!$E$59/'LTC Rev-Exp Region 10'!$D$9, 0)","v":{"v":0,"d":"$0.00"}},{"$f":"IFERROR('LTC Rev-Exp Region 10'!$F$59/'LTC Rev-Exp Region 10'!$D$9, 0)","v":{"v":0,"d":"$0.00"}},{"$f":"IFERROR('LTC Rev-Exp Region 10'!$G$59/'LTC Rev-Exp Region 10'!$D$9, 0)","v":{"v":0,"d":"$0.00"}}]
["LTC",null,null,{"$f":"Jurat!I$1","v":0},{"$f":"Jurat!D$33","v":"00:00:00"},"Q1","2017-03-31","Region 10","Operating Expense","Administrative Expense","Administrative","5.4","Marketing Expenses",{"$f":"IFERROR('LTC Rev-Exp Region 10'!$D$60/'LTC Rev-Exp Region 10'!$D$9, 0)","v":{"v":0,"d":"$0.00"}},{"$f":"IFERROR('LTC Rev-Exp Region 10'!$E$60/'LTC Rev-Exp Region 10'!$D$9, 0)","v":{"v":0,"d":"$0.00"}},{"$f":"IFERROR('LTC Rev-Exp Region 10'!$F$60/'LTC Rev-Exp Region 10'!$D$9, 0)","v":{"v":0,"d":"$0.00"}},{"$f":"IFERROR('LTC Rev-Exp Region 10'!$G$60/'LTC Rev-Exp Region 10'!$D$9, 0)","v":{"v":0,"d":"$0.00"}}]
["LTC",null,null,{"$f":"Jurat!I$1","v":0},{"$f":"Jurat!D$33","v":"00:00:00"},"Q1","2017-03-31","Region 10","Operating Expense","Administrative Expense","Administrative","5.5","General  Administration",{"$f":"IFERROR('LTC Rev-Exp Region 10'!$D$61/'LTC Rev-Exp Region 10'!$D$9, 0)","v":{"v":0,"d":"$0.00"}},{"$f":"IFERROR('LTC Rev-Exp Region 10'!$E$61/'LTC Rev-Exp Region 10'!$D$9, 0)","v":{"v":0,"d":"$0.00"}},{"$f":"IFERROR('LTC Rev-Exp Region 10'!$F$61/'LTC Rev-Exp Region 10'!$D$9, 0)","v":{"v":0,"d":"$0.00"}},{"$f":"IFERROR('LTC Rev-Exp Region 10'!$G$61/'LTC Rev-Exp Region 10'!$D$9, 0)","v":{"v":0,"d":"$0.00"}}]
["LTC",null,null,{"$f":"Jurat!I$1","v":0},{"$f":"Jurat!D$33","v":"00:00:00"},"Q1","2017-03-31","Region 10","Operating Expense","Administrative Expense","Administrative","5.6","Compliance/Regulatory",{"$f":"IFERROR('LTC Rev-Exp Region 10'!$D$62/'LTC Rev-Exp Region 10'!$D$9, 0)","v":{"v":0,"d":"$0.00"}},{"$f":"IFERROR('LTC Rev-Exp Region 10'!$E$62/'LTC Rev-Exp Region 10'!$D$9, 0)","v":{"v":0,"d":"$0.00"}},{"$f":"IFERROR('LTC Rev-Exp Region 10'!$F$62/'LTC Rev-Exp Region 10'!$D$9, 0)","v":{"v":0,"d":"$0.00"}},{"$f":"IFERROR('LTC Rev-Exp Region 10'!$G$62/'LTC Rev-Exp Region 10'!$D$9, 0)","v":{"v":0,"d":"$0.00"}}]
["LTC",null,null,{"$f":"Jurat!I$1","v":0},{"$f":"Jurat!D$33","v":"00:00:00"},"Q1","2017-03-31","Region 10","Operating Expense","Taxes & Fees","Taxes & Fees","6.1","State Premium Tax",{"$f":"IFERROR('LTC Rev-Exp Region 10'!$D$64/'LTC Rev-Exp Region 10'!$D$9, 0)","v":{"v":0,"d":"$0.00"}},{"$f":"IFERROR('LTC Rev-Exp Region 10'!$E$64/'LTC Rev-Exp Region 10'!$E$9, 0)","v":{"v":0,"d":"$0.00"}},{"$f":"IFERROR('LTC Rev-Exp Region 10'!$F$64/'LTC Rev-Exp Region 10'!$F$9, 0)","v":{"v":0,"d":"$0.00"}},{"$f":"IFERROR('LTC Rev-Exp Region 10'!$G$64/'LTC Rev-Exp Region 10'!$G$9, 0)","v":{"v":0,"d":"$0.00"}}]
["LTC",null,null,{"$f":"Jurat!I$1","v":0},{"$f":"Jurat!D$33","v":"00:00:00"},"Q1","2017-03-31","Region 10","Operating Expense","Taxes & Fees","Taxes & Fees","6.2","Department of Insurance Assessments",{"$f":"IFERROR('LTC Rev-Exp Region 10'!$D$65/'LTC Rev-Exp Region 10'!$D$9, 0)","v":{"v":0,"d":"$0.00"}},{"$f":"IFERROR('LTC Rev-Exp Region 10'!$E$65/'LTC Rev-Exp Region 10'!$E$9, 0)","v":{"v":0,"d":"$0.00"}},{"$f":"IFERROR('LTC Rev-Exp Region 10'!$F$65/'LTC Rev-Exp Region 10'!$F$9, 0)","v":{"v":0,"d":"$0.00"}},{"$f":"IFERROR('LTC Rev-Exp Region 10'!$G$65/'LTC Rev-Exp Region 10'!$G$9, 0)","v":{"v":0,"d":"$0.00"}}]
["LTC",null,null,{"$f":"Jurat!I$1","v":0},{"$f":"Jurat!D$33","v":"00:00:00"},"Q1","2017-03-31","Region 10","Non-Operating Expense","Income Tax Expense","Income Tax Expense","9.0","Income Tax Expense",{"$f":"IFERROR('LTC Rev-Exp Region 10'!$D$72/'LTC Rev-Exp Region 10'!$D$9, 0)","v":{"v":0,"d":"$0.00"}},{"$f":"IFERROR('LTC Rev-Exp Region 10'!$E$72/'LTC Rev-Exp Region 10'!$E$9, 0)","v":{"v":0,"d":"$0.00"}},{"$f":"IFERROR('LTC Rev-Exp Region 10'!$F$72/'LTC Rev-Exp Region 10'!$F$9, 0)","v":{"v":0,"d":"$0.00"}},{"$f":"IFERROR('LTC Rev-Exp Region 10'!$G$72/'LTC Rev-Exp Region 10'!$G$9, 0)","v":{"v":0,"d":"$0.00"}}]
["LTC",null,null,{"$f":"Jurat!I$1","v":0},{"$f":"Jurat!D$33","v":"00:00:00"},"Q2","2017-06-30","Region 10","Operating Revenue","Capitation","Capitation",1.1,"Capitation",{"$f":"IFERROR('LTC Rev-Exp Region 10'!$H$11/'LTC Rev-Exp Region 10'!$H$9, 0)","v":{"v":0,"d":"$0.00"}},{"$f":"IFERROR('LTC Rev-Exp Region 10'!$I$11/'LTC Rev-Exp Region 10'!$I$9, 0)","v":{"v":0,"d":"$0.00"}},{"$f":"IFERROR('LTC Rev-Exp Region 10'!$J$11/'LTC Rev-Exp Region 10'!$J$9, 0)","v":{"v":0,"d":"$0.00"}},{"$f":"IFERROR('LTC Rev-Exp Region 10'!$K$11/'LTC Rev-Exp Region 10'!$K$9, 0)","v":{"v":0,"d":"$0.00"}}]
["LTC",null,null,{"$f":"Jurat!I$1","v":0},{"$f":"Jurat!D$33","v":"00:00:00"},"Q2","2017-06-30","Region 10","Operating Revenue","Capitation","NH Rate Reconciliation",1.2,"NH Rate Reconciliation",{"$f":"IFERROR('LTC Rev-Exp Region 10'!$H$12/'LTC Rev-Exp Region 10'!$H$9, 0)","v":{"v":0,"d":"$0.00"}},{"$f":"IFERROR('LTC Rev-Exp Region 10'!$I$12/'LTC Rev-Exp Region 10'!$I$9, 0)","v":{"v":0,"d":"$0.00"}},{"$f":"IFERROR('LTC Rev-Exp Region 10'!$J$12/'LTC Rev-Exp Region 10'!$J$9, 0)","v":{"v":0,"d":"$0.00"}},{"$f":"IFERROR('LTC Rev-Exp Region 10'!$K$12/'LTC Rev-Exp Region 10'!$K$9, 0)","v":{"v":0,"d":"$0.00"}}]
["LTC",null,null,{"$f":"Jurat!I$1","v":0},{"$f":"Jurat!D$33","v":"00:00:00"},"Q2","2017-06-30","Region 10","Operating Revenue","Other Revenue","Other Revenue",1.3,"Other Revenue",{"$f":"IFERROR('LTC Rev-Exp Region 10'!$H$13/'LTC Rev-Exp Region 10'!$H$9, 0)","v":{"v":0,"d":"$0.00"}},{"$f":"IFERROR('LTC Rev-Exp Region 10'!$I$13/'LTC Rev-Exp Region 10'!$I$9, 0)","v":{"v":0,"d":"$0.00"}},{"$f":"IFERROR('LTC Rev-Exp Region 10'!$J$13/'LTC Rev-Exp Region 10'!$J$9, 0)","v":{"v":0,"d":"$0.00"}},{"$f":"IFERROR('LTC Rev-Exp Region 10'!$K$13/'LTC Rev-Exp Region 10'!$K$9, 0)","v":{"v":0,"d":"$0.00"}}]
["LTC",null,null,{"$f":"Jurat!I$1","v":0},{"$f":"Jurat!D$33","v":"00:00:00"},"Q2","2017-06-30","Region 10","Operating Expense","Medical Expense","NF & Hospice","2.3","Nursing Facility FFS (Medicaid)",{"$f":"IFERROR('LTC Rev-Exp Region 10'!$H$19/'LTC Rev-Exp Region 10'!$H$9, 0)","v":{"v":0,"d":"$0.00"}},{"$f":"IFERROR('LTC Rev-Exp Region 10'!$I$19/'LTC Rev-Exp Region 10'!$I$9, 0)","v":{"v":0,"d":"$0.00"}},{"$f":"IFERROR('LTC Rev-Exp Region 10'!$J$19/'LTC Rev-Exp Region 10'!$J$9, 0)","v":{"v":0,"d":"$0.00"}},{"$f":"IFERROR('LTC Rev-Exp Region 10'!$K$19/'LTC Rev-Exp Region 10'!$K$9, 0)","v":{"v":0,"d":"$0.00"}}]
["LTC",null,null,{"$f":"Jurat!I$1","v":0},{"$f":"Jurat!D$33","v":"00:00:00"},"Q2","2017-06-30","Region 10","Operating Expense","Medical Expense","NF & Hospice","2.4","Nursing Facility FFS (Crossover)",{"$f":"IFERROR('LTC Rev-Exp Region 10'!$H$20/'LTC Rev-Exp Region 10'!$H$9, 0)","v":{"v":0,"d":"$0.00"}},{"$f":"IFERROR('LTC Rev-Exp Region 10'!$I$20/'LTC Rev-Exp Region 10'!$I$9, 0)","v":{"v":0,"d":"$0.00"}},{"$f":"IFERROR('LTC Rev-Exp Region 10'!$J$20/'LTC Rev-Exp Region 10'!$J$9, 0)","v":{"v":0,"d":"$0.00"}},{"$f":"IFERROR('LTC Rev-Exp Region 10'!$K$20/'LTC Rev-Exp Region 10'!$K$9, 0)","v":{"v":0,"d":"$0.00"}}]
["LTC",null,null,{"$f":"Jurat!I$1","v":0},{"$f":"Jurat!D$33","v":"00:00:00"},"Q2","2017-06-30","Region 10","Operating Expense","Medical Expense","NF & Hospice","2.6","Hospice FFS",{"$f":"IFERROR('LTC Rev-Exp Region 10'!$H$22/'LTC Rev-Exp Region 10'!$H$9, 0)","v":{"v":0,"d":"$0.00"}},{"$f":"IFERROR('LTC Rev-Exp Region 10'!$I$22/'LTC Rev-Exp Region 10'!$I$9, 0)","v":{"v":0,"d":"$0.00"}},{"$f":"IFERROR('LTC Rev-Exp Region 10'!$J$22/'LTC Rev-Exp Region 10'!$J$9, 0)","v":{"v":0,"d":"$0.00"}},{"$f":"IFERROR('LTC Rev-Exp Region 10'!$K$22/'LTC Rev-Exp Region 10'!$K$9, 0)","v":{"v":0,"d":"$0.00"}}]
["LTC",null,null,{"$f":"Jurat!I$1","v":0},{"$f":"Jurat!D$33","v":"00:00:00"},"Q2","2017-06-30","Region 10","Operating Expense","Medical Expense","NF & Hospice","2.7","Ending IBNP for NF & Hospice",{"$f":"IFERROR('LTC Rev-Exp Region 10'!$H$23/'LTC Rev-Exp Region 10'!$H$9, 0)","v":{"v":0,"d":"$0.00"}},{"$f":"IFERROR('LTC Rev-Exp Region 10'!$I$23/'LTC Rev-Exp Region 10'!$I$9, 0)","v":{"v":0,"d":"$0.00"}},{"$f":"IFERROR('LTC Rev-Exp Region 10'!$J$23/'LTC Rev-Exp Region 10'!$J$9, 0)","v":{"v":0,"d":"$0.00"}},{"$f":"IFERROR('LTC Rev-Exp Region 10'!$K$23/'LTC Rev-Exp Region 10'!$K$9, 0)","v":{"v":0,"d":"$0.00"}}]
["LTC",null,null,{"$f":"Jurat!I$1","v":0},{"$f":"Jurat!D$33","v":"00:00:00"},"Q2","2017-06-30","Region 10","Operating Expense","Medical Expense","NF & Hospice","2.8","NF & Hospice Subcapitated",{"$f":"IFERROR('LTC Rev-Exp Region 10'!$H$24/'LTC Rev-Exp Region 10'!$H$9, 0)","v":{"v":0,"d":"$0.00"}},{"$f":"IFERROR('LTC Rev-Exp Region 10'!$I$24/'LTC Rev-Exp Region 10'!$I$9, 0)","v":{"v":0,"d":"$0.00"}},{"$f":"IFERROR('LTC Rev-Exp Region 10'!$J$24/'LTC Rev-Exp Region 10'!$J$9, 0)","v":{"v":0,"d":"$0.00"}},{"$f":"IFERROR('LTC Rev-Exp Region 10'!$K$24/'LTC Rev-Exp Region 10'!$K$9, 0)","v":{"v":0,"d":"$0.00"}}]
["LTC",null,null,{"$f":"Jurat!I$1","v":0},{"$f":"Jurat!D$33","v":"00:00:00"},"Q2","2017-06-30","Region 10","Operating Expense","Medical Expense","NF & Hospice","2.9","NF & Hospice Settlements",{"$f":"IFERROR('LTC Rev-Exp Region 10'!$H$25/'LTC Rev-Exp Region 10'!$H$9, 0)","v":{"v":0,"d":"$0.00"}},{"$f":"IFERROR('LTC Rev-Exp Region 10'!$I$25/'LTC Rev-Exp Region 10'!$I$9, 0)","v":{"v":0,"d":"$0.00"}},{"$f":"IFERROR('LTC Rev-Exp Region 10'!$J$25/'LTC Rev-Exp Region 10'!$J$9, 0)","v":{"v":0,"d":"$0.00"}},{"$f":"IFERROR('LTC Rev-Exp Region 10'!$K$25/'LTC Rev-Exp Region 10'!$K$9, 0)","v":{"v":0,"d":"$0.00"}}]
["LTC",null,null,{"$f":"Jurat!I$1","v":0},{"$f":"Jurat!D$33","v":"00:00:00"},"Q2","2017-06-30","Region 10","Operating Expense","Medical Expense","LTC Services","2.11","Assisted Living FFS",{"$f":"IFERROR('LTC Rev-Exp Region 10'!$H$27/'LTC Rev-Exp Region 10'!$H$9, 0)","v":{"v":0,"d":"$0.00"}},{"$f":"IFERROR('LTC Rev-Exp Region 10'!$I$27/'LTC Rev-Exp Region 10'!$I$9, 0)","v":{"v":0,"d":"$0.00"}},{"$f":"IFERROR('LTC Rev-Exp Region 10'!$J$27/'LTC Rev-Exp Region 10'!$J$9, 0)","v":{"v":0,"d":"$0.00"}},{"$f":"IFERROR('LTC Rev-Exp Region 10'!$K$27/'LTC Rev-Exp Region 10'!$K$9, 0)","v":{"v":0,"d":"$0.00"}}]
["LTC",null,null,{"$f":"Jurat!I$1","v":0},{"$f":"Jurat!D$33","v":"00:00:00"},"Q2","2017-06-30","Region 10","Operating Expense","Medical Expense","LTC Services","2.12","Home Health FFS",{"$f":"IFERROR('LTC Rev-Exp Region 10'!$H$28/'LTC Rev-Exp Region 10'!$H$9, 0)","v":{"v":0,"d":"$0.00"}},{"$f":"IFERROR('LTC Rev-Exp Region 10'!$I$28/'LTC Rev-Exp Region 10'!$I$9, 0)","v":{"v":0,"d":"$0.00"}},{"$f":"IFERROR('LTC Rev-Exp Region 10'!$J$28/'LTC Rev-Exp Region 10'!$J$9, 0)","v":{"v":0,"d":"$0.00"}},{"$f":"IFERROR('LTC Rev-Exp Region 10'!$K$28/'LTC Rev-Exp Region 10'!$K$9, 0)","v":{"v":0,"d":"$0.00"}}]
["LTC",null,null,{"$f":"Jurat!I$1","v":0},{"$f":"Jurat!D$33","v":"00:00:00"},"Q2","2017-06-30","Region 10","Operating Expense","Medical Expense","LTC Services","2.13","Medical Equipment/Supplies FFS",{"$f":"IFERROR('LTC Rev-Exp Region 10'!$H$29/'LTC Rev-Exp Region 10'!$H$9, 0)","v":{"v":0,"d":"$0.00"}},{"$f":"IFERROR('LTC Rev-Exp Region 10'!$I$29/'LTC Rev-Exp Region 10'!$I$9, 0)","v":{"v":0,"d":"$0.00"}},{"$f":"IFERROR('LTC Rev-Exp Region 10'!$J$29/'LTC Rev-Exp Region 10'!$J$9, 0)","v":{"v":0,"d":"$0.00"}},{"$f":"IFERROR('LTC Rev-Exp Region 10'!$K$29/'LTC Rev-Exp Region 10'!$K$9, 0)","v":{"v":0,"d":"$0.00"}}]
["LTC",null,null,{"$f":"Jurat!I$1","v":0},{"$f":"Jurat!D$33","v":"00:00:00"},"Q2","2017-06-30","Region 10","Operating Expense","Medical Expense","LTC Services","2.14","Therapy FFS",{"$f":"IFERROR('LTC Rev-Exp Region 10'!$H$30/'LTC Rev-Exp Region 10'!$H$9, 0)","v":{"v":0,"d":"$0.00"}},{"$f":"IFERROR('LTC Rev-Exp Region 10'!$I$30/'LTC Rev-Exp Region 10'!$I$9, 0)","v":{"v":0,"d":"$0.00"}},{"$f":"IFERROR('LTC Rev-Exp Region 10'!$J$30/'LTC Rev-Exp Region 10'!$J$9, 0)","v":{"v":0,"d":"$0.00"}},{"$f":"IFERROR('LTC Rev-Exp Region 10'!$K$30/'LTC Rev-Exp Region 10'!$K$9, 0)","v":{"v":0,"d":"$0.00"}}]
["LTC",null,null,{"$f":"Jurat!I$1","v":0},{"$f":"Jurat!D$33","v":"00:00:00"},"Q2","2017-06-30","Region 10","Operating Expense","Medical Expense","LTC Services","2.15","Transportation FFS",{"$f":"IFERROR('LTC Rev-Exp Region 10'!$H$31/'LTC Rev-Exp Region 10'!$H$9, 0)","v":{"v":0,"d":"$0.00"}},{"$f":"IFERROR('LTC Rev-Exp Region 10'!$I$31/'LTC Rev-Exp Region 10'!$I$9, 0)","v":{"v":0,"d":"$0.00"}},{"$f":"IFERROR('LTC Rev-Exp Region 10'!$J$31/'LTC Rev-Exp Region 10'!$J$9, 0)","v":{"v":0,"d":"$0.00"}},{"$f":"IFERROR('LTC Rev-Exp Region 10'!$K$31/'LTC Rev-Exp Region 10'!$K$9, 0)","v":{"v":0,"d":"$0.00"}}]
["LTC",null,null,{"$f":"Jurat!I$1","v":0},{"$f":"Jurat!D$33","v":"00:00:00"},"Q2","2017-06-30","Region 10","Operating Expense","Medical Expense","LTC Services","2.16","Case Management FFS (Plan Provided)",{"$f":"IFERROR('LTC Rev-Exp Region 10'!$H$32/'LTC Rev-Exp Region 10'!$H$9, 0)","v":{"v":0,"d":"$0.00"}},{"$f":"IFERROR('LTC Rev-Exp Region 10'!$I$32/'LTC Rev-Exp Region 10'!$I$9, 0)","v":{"v":0,"d":"$0.00"}},{"$f":"IFERROR('LTC Rev-Exp Region 10'!$J$32/'LTC Rev-Exp Region 10'!$J$9, 0)","v":{"v":0,"d":"$0.00"}},{"$f":"IFERROR('LTC Rev-Exp Region 10'!$K$32/'LTC Rev-Exp Region 10'!$K$9, 0)","v":{"v":0,"d":"$0.00"}}]
["LTC",null,null,{"$f":"Jurat!I$1","v":0},{"$f":"Jurat!D$33","v":"00:00:00"},"Q2","2017-06-30","Region 10","Operating Expense","Medical Expense","LTC Services","2.17","Case Management FF (Non-Plan Provided)",{"$f":"IFERROR('LTC Rev-Exp Region 10'!$H$33/'LTC Rev-Exp Region 10'!$H$9, 0)","v":{"v":0,"d":"$0.00"}},{"$f":"IFERROR('LTC Rev-Exp Region 10'!$I$33/'LTC Rev-Exp Region 10'!$I$9, 0)","v":{"v":0,"d":"$0.00"}},{"$f":"IFERROR('LTC Rev-Exp Region 10'!$J$33/'LTC Rev-Exp Region 10'!$J$9, 0)","v":{"v":0,"d":"$0.00"}},{"$f":"IFERROR('LTC Rev-Exp Region 10'!$K$33/'LTC Rev-Exp Region 10'!$K$9, 0)","v":{"v":0,"d":"$0.00"}}]
["LTC",null,null,{"$f":"Jurat!I$1","v":0},{"$f":"Jurat!D$33","v":"00:00:00"},"Q2","2017-06-30","Region 10","Operating Expense","Medical Expense","LTC Services","2.18","HCBS FFS",{"$f":"IFERROR('LTC Rev-Exp Region 10'!$H$34/'LTC Rev-Exp Region 10'!$H$9, 0)","v":{"v":0,"d":"$0.00"}},{"$f":"IFERROR('LTC Rev-Exp Region 10'!$I$34/'LTC Rev-Exp Region 10'!$I$9, 0)","v":{"v":0,"d":"$0.00"}},{"$f":"IFERROR('LTC Rev-Exp Region 10'!$J$34/'LTC Rev-Exp Region 10'!$J$9, 0)","v":{"v":0,"d":"$0.00"}},{"$f":"IFERROR('LTC Rev-Exp Region 10'!$K$34/'LTC Rev-Exp Region 10'!$K$9, 0)","v":{"v":0,"d":"$0.00"}}]
["LTC",null,null,{"$f":"Jurat!I$1","v":0},{"$f":"Jurat!D$33","v":"00:00:00"},"Q2","2017-06-30","Region 10","Operating Expense","Medical Expense","LTC Services","2.19","Subcapitated LTC Services",{"$f":"IFERROR('LTC Rev-Exp Region 10'!$H$35/'LTC Rev-Exp Region 10'!$H$9, 0)","v":{"v":0,"d":"$0.00"}},{"$f":"IFERROR('LTC Rev-Exp Region 10'!$I$35/'LTC Rev-Exp Region 10'!$I$9, 0)","v":{"v":0,"d":"$0.00"}},{"$f":"IFERROR('LTC Rev-Exp Region 10'!$J$35/'LTC Rev-Exp Region 10'!$J$9, 0)","v":{"v":0,"d":"$0.00"}},{"$f":"IFERROR('LTC Rev-Exp Region 10'!$K$35/'LTC Rev-Exp Region 10'!$K$9, 0)","v":{"v":0,"d":"$0.00"}}]
["LTC",null,null,{"$f":"Jurat!I$1","v":0},{"$f":"Jurat!D$33","v":"00:00:00"},"Q2","2017-06-30","Region 10","Operating Expense","Medical Expense","LTC Services","2.20","Ending IBNP for Long Term Care Services",{"$f":"IFERROR('LTC Rev-Exp Region 10'!$H$36/'LTC Rev-Exp Region 10'!$H$9, 0)","v":{"v":0,"d":"$0.00"}},{"$f":"IFERROR('LTC Rev-Exp Region 10'!$I$36/'LTC Rev-Exp Region 10'!$I$9, 0)","v":{"v":0,"d":"$0.00"}},{"$f":"IFERROR('LTC Rev-Exp Region 10'!$J$36/'LTC Rev-Exp Region 10'!$J$9, 0)","v":{"v":0,"d":"$0.00"}},{"$f":"IFERROR('LTC Rev-Exp Region 10'!$K$36/'LTC Rev-Exp Region 10'!$K$9, 0)","v":{"v":0,"d":"$0.00"}}]
["LTC",null,null,{"$f":"Jurat!I$1","v":0},{"$f":"Jurat!D$33","v":"00:00:00"},"Q2","2017-06-30","Region 10","Operating Expense","Medical Expense","LTC Services","2.21","LTC Services Settlements",{"$f":"IFERROR('LTC Rev-Exp Region 10'!$H$37/'LTC Rev-Exp Region 10'!$H$9, 0)","v":{"v":0,"d":"$0.00"}},{"$f":"IFERROR('LTC Rev-Exp Region 10'!$I$37/'LTC Rev-Exp Region 10'!$I$9, 0)","v":{"v":0,"d":"$0.00"}},{"$f":"IFERROR('LTC Rev-Exp Region 10'!$J$37/'LTC Rev-Exp Region 10'!$J$9, 0)","v":{"v":0,"d":"$0.00"}},{"$f":"IFERROR('LTC Rev-Exp Region 10'!$K$37/'LTC Rev-Exp Region 10'!$K$9, 0)","v":{"v":0,"d":"$0.00"}}]
["LTC",null,null,{"$f":"Jurat!I$1","v":0},{"$f":"Jurat!D$33","v":"00:00:00"},"Q2","2017-06-30","Region 10","Operating Expense","Medical Expense","Expanded Benefits","3.1","Expanded Benefits FFS",{"$f":"IFERROR('LTC Rev-Exp Region 10'!$H$39/'LTC Rev-Exp Region 10'!$H$9, 0)","v":{"v":0,"d":"$0.00"}},{"$f":"IFERROR('LTC Rev-Exp Region 10'!$I$39/'LTC Rev-Exp Region 10'!$I$9, 0)","v":{"v":0,"d":"$0.00"}},{"$f":"IFERROR('LTC Rev-Exp Region 10'!$J$39/'LTC Rev-Exp Region 10'!$J$9, 0)","v":{"v":0,"d":"$0.00"}},{"$f":"IFERROR('LTC Rev-Exp Region 10'!$K$39/'LTC Rev-Exp Region 10'!$K$9, 0)","v":{"v":0,"d":"$0.00"}}]
["LTC",null,null,{"$f":"Jurat!I$1","v":0},{"$f":"Jurat!D$33","v":"00:00:00"},"Q2","2017-06-30","Region 10","Operating Expense","Medical Expense","Expanded Benefits","3.2","Expanded Benefits Subcapitation",{"$f":"IFERROR('LTC Rev-Exp Region 10'!$H$40/'LTC Rev-Exp Region 10'!$H$9, 0)","v":{"v":0,"d":"$0.00"}},{"$f":"IFERROR('LTC Rev-Exp Region 10'!$I$40/'LTC Rev-Exp Region 10'!$I$9, 0)","v":{"v":0,"d":"$0.00"}},{"$f":"IFERROR('LTC Rev-Exp Region 10'!$J$40/'LTC Rev-Exp Region 10'!$J$9, 0)","v":{"v":0,"d":"$0.00"}},{"$f":"IFERROR('LTC Rev-Exp Region 10'!$K$40/'LTC Rev-Exp Region 10'!$K$9, 0)","v":{"v":0,"d":"$0.00"}}]
["LTC",null,null,{"$f":"Jurat!I$1","v":0},{"$f":"Jurat!D$33","v":"00:00:00"},"Q2","2017-06-30","Region 10","Operating Expense","Medical Expense","Expanded Benefits","3.3","Ending IBNP for Expanded Benefits",{"$f":"IFERROR('LTC Rev-Exp Region 10'!$H$41/'LTC Rev-Exp Region 10'!$H$9, 0)","v":{"v":0,"d":"$0.00"}},{"$f":"IFERROR('LTC Rev-Exp Region 10'!$I$41/'LTC Rev-Exp Region 10'!$I$9, 0)","v":{"v":0,"d":"$0.00"}},{"$f":"IFERROR('LTC Rev-Exp Region 10'!$J$41/'LTC Rev-Exp Region 10'!$J$9, 0)","v":{"v":0,"d":"$0.00"}},{"$f":"IFERROR('LTC Rev-Exp Region 10'!$K$41/'LTC Rev-Exp Region 10'!$K$9, 0)","v":{"v":0,"d":"$0.00"}}]
["LTC",null,null,{"$f":"Jurat!I$1","v":0},{"$f":"Jurat!D$33","v":"00:00:00"},"Q2","2017-06-30","Region 10","Operating Expense","Medical Expense","Expanded Benefits","3.4","Expanded Benefits Settlements",{"$f":"IFERROR('LTC Rev-Exp Region 10'!$H$42/'LTC Rev-Exp Region 10'!$H$9, 0)","v":{"v":0,"d":"$0.00"}},{"$f":"IFERROR('LTC Rev-Exp Region 10'!$I$42/'LTC Rev-Exp Region 10'!$I$9, 0)","v":{"v":0,"d":"$0.00"}},{"$f":"IFERROR('LTC Rev-Exp Region 10'!$J$42/'LTC Rev-Exp Region 10'!$J$9, 0)","v":{"v":0,"d":"$0.00"}},{"$f":"IFERROR('LTC Rev-Exp Region 10'!$K$42/'LTC Rev-Exp Region 10'!$K$9, 0)","v":{"v":0,"d":"$0.00"}}]
["LTC",null,null,{"$f":"Jurat!I$1","v":0},{"$f":"Jurat!D$33","v":"00:00:00"},"Q2","2017-06-30","Region 10","Operating Expense","Medical Expense","Other Medical","4.5","TPL & Fraud/Abuse Recoveries",{"$f":"IFERROR('LTC Rev-Exp Region 10'!$H$48/'LTC Rev-Exp Region 10'!$H$9, 0)","v":{"v":0,"d":"$0.00"}},{"$f":"IFERROR('LTC Rev-Exp Region 10'!$I$48/'LTC Rev-Exp Region 10'!$I$9, 0)","v":{"v":0,"d":"$0.00"}},{"$f":"IFERROR('LTC Rev-Exp Region 10'!$J$48/'LTC Rev-Exp Region 10'!$J$9, 0)","v":{"v":0,"d":"$0.00"}},{"$f":"IFERROR('LTC Rev-Exp Region 10'!$K$48/'LTC Rev-Exp Region 10'!$K$9, 0)","v":{"v":0,"d":"$0.00"}}]
["LTC",null,null,{"$f":"Jurat!I$1","v":0},{"$f":"Jurat!D$33","v":"00:00:00"},"Q2","2017-06-30","Region 10","Operating Expense","Medical Expense","Other Medical","4.6.1","Premium Deficiency Reserve",{"$f":"IFERROR('LTC Rev-Exp Region 10'!$H$49/'LTC Rev-Exp Region 10'!$H$9, 0)","v":{"v":0,"d":"$0.00"}},{"$f":"IFERROR('LTC Rev-Exp Region 10'!$I$49/'LTC Rev-Exp Region 10'!$I$9, 0)","v":{"v":0,"d":"$0.00"}},{"$f":"IFERROR('LTC Rev-Exp Region 10'!$J$49/'LTC Rev-Exp Region 10'!$J$9, 0)","v":{"v":0,"d":"$0.00"}},{"$f":"IFERROR('LTC Rev-Exp Region 10'!$K$49/'LTC Rev-Exp Region 10'!$K$9, 0)","v":{"v":0,"d":"$0.00"}}]
["LTC",null,null,{"$f":"Jurat!I$1","v":0},{"$f":"Jurat!D$33","v":"00:00:00"},"Q2","2017-06-30","Region 10","Operating Expense","Medical Expense","Other Medical","4.8","Reinsurance Premiums",{"$f":"IFERROR('LTC Rev-Exp Region 10'!$H$51/'LTC Rev-Exp Region 10'!$H$9, 0)","v":{"v":0,"d":"$0.00"}},{"$f":"IFERROR('LTC Rev-Exp Region 10'!$I$51/'LTC Rev-Exp Region 10'!$I$9, 0)","v":{"v":0,"d":"$0.00"}},{"$f":"IFERROR('LTC Rev-Exp Region 10'!$J$51/'LTC Rev-Exp Region 10'!$J$9, 0)","v":{"v":0,"d":"$0.00"}},{"$f":"IFERROR('LTC Rev-Exp Region 10'!$K$51/'LTC Rev-Exp Region 10'!$K$9, 0)","v":{"v":0,"d":"$0.00"}}]
["LTC",null,null,{"$f":"Jurat!I$1","v":0},{"$f":"Jurat!D$33","v":"00:00:00"},"Q2","2017-06-30","Region 10","Operating Expense","Medical Expense","Other Medical","4.9","Reinsurance Recoveries",{"$f":"IFERROR('LTC Rev-Exp Region 10'!$H$52/'LTC Rev-Exp Region 10'!$H$9, 0)","v":{"v":0,"d":"$0.00"}},{"$f":"IFERROR('LTC Rev-Exp Region 10'!$I$52/'LTC Rev-Exp Region 10'!$I$9, 0)","v":{"v":0,"d":"$0.00"}},{"$f":"IFERROR('LTC Rev-Exp Region 10'!$J$52/'LTC Rev-Exp Region 10'!$J$9, 0)","v":{"v":0,"d":"$0.00"}},{"$f":"IFERROR('LTC Rev-Exp Region 10'!$K$52/'LTC Rev-Exp Region 10'!$K$9, 0)","v":{"v":0,"d":"$0.00"}}]
["LTC",null,null,{"$f":"Jurat!I$1","v":0},{"$f":"Jurat!D$33","v":"00:00:00"},"Q2","2017-06-30","Region 10","Operating Expense","Administrative Expense","Administrative","5.1","Salaries & Benefits",{"$f":"IFERROR('LTC Rev-Exp Region 10'!$H$57/'LTC Rev-Exp Region 10'!$H$9, 0)","v":{"v":0,"d":"$0.00"}},{"$f":"IFERROR('LTC Rev-Exp Region 10'!$I$57/'LTC Rev-Exp Region 10'!$I$9, 0)","v":{"v":0,"d":"$0.00"}},{"$f":"IFERROR('LTC Rev-Exp Region 10'!$J$57/'LTC Rev-Exp Region 10'!$J$9, 0)","v":{"v":0,"d":"$0.00"}},{"$f":"IFERROR('LTC Rev-Exp Region 10'!$K$57/'LTC Rev-Exp Region 10'!$K$9, 0)","v":{"v":0,"d":"$0.00"}}]
["LTC",null,null,{"$f":"Jurat!I$1","v":0},{"$f":"Jurat!D$33","v":"00:00:00"},"Q2","2017-06-30","Region 10","Operating Expense","Administrative Expense","Administrative","5.2","Administrative Services",{"$f":"IFERROR('LTC Rev-Exp Region 10'!$H$58/'LTC Rev-Exp Region 10'!$H$9, 0)","v":{"v":0,"d":"$0.00"}},{"$f":"IFERROR('LTC Rev-Exp Region 10'!$I$58/'LTC Rev-Exp Region 10'!$I$9, 0)","v":{"v":0,"d":"$0.00"}},{"$f":"IFERROR('LTC Rev-Exp Region 10'!$J$58/'LTC Rev-Exp Region 10'!$J$9, 0)","v":{"v":0,"d":"$0.00"}},{"$f":"IFERROR('LTC Rev-Exp Region 10'!$K$58/'LTC Rev-Exp Region 10'!$K$9, 0)","v":{"v":0,"d":"$0.00"}}]
["LTC",null,null,{"$f":"Jurat!I$1","v":0},{"$f":"Jurat!D$33","v":"00:00:00"},"Q2","2017-06-30","Region 10","Operating Expense","Administrative Expense","Administrative","5.3","Information Systems",{"$f":"IFERROR('LTC Rev-Exp Region 10'!$H$59/'LTC Rev-Exp Region 10'!$H$9, 0)","v":{"v":0,"d":"$0.00"}},{"$f":"IFERROR('LTC Rev-Exp Region 10'!$I$59/'LTC Rev-Exp Region 10'!$I$9, 0)","v":{"v":0,"d":"$0.00"}},{"$f":"IFERROR('LTC Rev-Exp Region 10'!$J$59/'LTC Rev-Exp Region 10'!$J$9, 0)","v":{"v":0,"d":"$0.00"}},{"$f":"IFERROR('LTC Rev-Exp Region 10'!$K$59/'LTC Rev-Exp Region 10'!$K$9, 0)","v":{"v":0,"d":"$0.00"}}]
["LTC",null,null,{"$f":"Jurat!I$1","v":0},{"$f":"Jurat!D$33","v":"00:00:00"},"Q2","2017-06-30","Region 10","Operating Expense","Administrative Expense","Administrative","5.4","Marketing Expenses",{"$f":"IFERROR('LTC Rev-Exp Region 10'!$H$60/'LTC Rev-Exp Region 10'!$H$9, 0)","v":{"v":0,"d":"$0.00"}},{"$f":"IFERROR('LTC Rev-Exp Region 10'!$I$60/'LTC Rev-Exp Region 10'!$I$9, 0)","v":{"v":0,"d":"$0.00"}},{"$f":"IFERROR('LTC Rev-Exp Region 10'!$J$60/'LTC Rev-Exp Region 10'!$J$9, 0)","v":{"v":0,"d":"$0.00"}},{"$f":"IFERROR('LTC Rev-Exp Region 10'!$K$60/'LTC Rev-Exp Region 10'!$K$9, 0)","v":{"v":0,"d":"$0.00"}}]
["LTC",null,null,{"$f":"Jurat!I$1","v":0},{"$f":"Jurat!D$33","v":"00:00:00"},"Q2","2017-06-30","Region 10","Operating Expense","Administrative Expense","Administrative","5.5","General  Administration",{"$f":"IFERROR('LTC Rev-Exp Region 10'!$H$61/'LTC Rev-Exp Region 10'!$H$9, 0)","v":{"v":0,"d":"$0.00"}},{"$f":"IFERROR('LTC Rev-Exp Region 10'!$I$61/'LTC Rev-Exp Region 10'!$I$9, 0)","v":{"v":0,"d":"$0.00"}},{"$f":"IFERROR('LTC Rev-Exp Region 10'!$J$61/'LTC Rev-Exp Region 10'!$J$9, 0)","v":{"v":0,"d":"$0.00"}},{"$f":"IFERROR('LTC Rev-Exp Region 10'!$K$61/'LTC Rev-Exp Region 10'!$K$9, 0)","v":{"v":0,"d":"$0.00"}}]
["LTC",null,null,{"$f":"Jurat!I$1","v":0},{"$f":"Jurat!D$33","v":"00:00:00"},"Q2","2017-06-30","Region 10","Operating Expense","Administrative Expense","Administrative","5.6","Compliance/Regulatory",{"$f":"IFERROR('LTC Rev-Exp Region 10'!$H$62/'LTC Rev-Exp Region 10'!$H$9, 0)","v":{"v":0,"d":"$0.00"}},{"$f":"IFERROR('LTC Rev-Exp Region 10'!$I$62/'LTC Rev-Exp Region 10'!$I$9, 0)","v":{"v":0,"d":"$0.00"}},{"$f":"IFERROR('LTC Rev-Exp Region 10'!$J$62/'LTC Rev-Exp Region 10'!$J$9, 0)","v":{"v":0,"d":"$0.00"}},{"$f":"IFERROR('LTC Rev-Exp Region 10'!$K$62/'LTC Rev-Exp Region 10'!$K$9, 0)","v":{"v":0,"d":"$0.00"}}]
["LTC",null,null,{"$f":"Jurat!I$1","v":0},{"$f":"Jurat!D$33","v":"00:00:00"},"Q2","2017-06-30","Region 10","Operating Expense","Taxes & Fees","Taxes & Fees","6.1","State Premium Tax",{"$f":"IFERROR('LTC Rev-Exp Region 10'!$H$64/'LTC Rev-Exp Region 10'!$H$9, 0)","v":{"v":0,"d":"$0.00"}},{"$f":"IFERROR('LTC Rev-Exp Region 10'!$I$64/'LTC Rev-Exp Region 10'!$I$9, 0)","v":{"v":0,"d":"$0.00"}},{"$f":"IFERROR('LTC Rev-Exp Region 10'!$J$64/'LTC Rev-Exp Region 10'!$J$9, 0)","v":{"v":0,"d":"$0.00"}},{"$f":"IFERROR('LTC Rev-Exp Region 10'!$K$64/'LTC Rev-Exp Region 10'!$K$9, 0)","v":{"v":0,"d":"$0.00"}}]
["LTC",null,null,{"$f":"Jurat!I$1","v":0},{"$f":"Jurat!D$33","v":"00:00:00"},"Q2","2017-06-30","Region 10","Operating Expense","Taxes & Fees","Taxes & Fees","6.2","Department of Insurance Assessments",{"$f":"IFERROR('LTC Rev-Exp Region 10'!$H$65/'LTC Rev-Exp Region 10'!$H$9, 0)","v":{"v":0,"d":"$0.00"}},{"$f":"IFERROR('LTC Rev-Exp Region 10'!$I$65/'LTC Rev-Exp Region 10'!$I$9, 0)","v":{"v":0,"d":"$0.00"}},{"$f":"IFERROR('LTC Rev-Exp Region 10'!$J$65/'LTC Rev-Exp Region 10'!$J$9, 0)","v":{"v":0,"d":"$0.00"}},{"$f":"IFERROR('LTC Rev-Exp Region 10'!$K$65/'LTC Rev-Exp Region 10'!$K$9, 0)","v":{"v":0,"d":"$0.00"}}]
["LTC",null,null,{"$f":"Jurat!I$1","v":0},{"$f":"Jurat!D$33","v":"00:00:00"},"Q2","2017-06-30","Region 10","Non-Operating Expense","Income Tax Expense","Income Tax Expense","9.0","Income Tax Expense",{"$f":"IFERROR('LTC Rev-Exp Region 10'!$H$66/'LTC Rev-Exp Region 10'!$H$9, 0)","v":{"v":0,"d":"$0.00"}},{"$f":"IFERROR('LTC Rev-Exp Region 10'!$I$66/'LTC Rev-Exp Region 10'!$I$9, 0)","v":{"v":0,"d":"$0.00"}},{"$f":"IFERROR('LTC Rev-Exp Region 10'!$J$66/'LTC Rev-Exp Region 10'!$J$9, 0)","v":{"v":0,"d":"$0.00"}},{"$f":"IFERROR('LTC Rev-Exp Region 10'!$K$66/'LTC Rev-Exp Region 10'!$K$9, 0)","v":{"v":0,"d":"$0.00"}}]
["LTC",null,null,{"$f":"Jurat!I$1","v":0},{"$f":"Jurat!D$33","v":"00:00:00"},"Q3","2017-09-30","Region 10","Operating Revenue","Capitation","Capitation",1.1,"Capitation",{"$f":"IFERROR('LTC Rev-Exp Region 10'!$L$11/'LTC Rev-Exp Region 10'!$L$9, 0)","v":{"v":0,"d":"$0.00"}},{"$f":"IFERROR('LTC Rev-Exp Region 10'!$M$11/'LTC Rev-Exp Region 10'!$M$9, 0)","v":{"v":0,"d":"$0.00"}},{"$f":"IFERROR('LTC Rev-Exp Region 10'!$N$11/'LTC Rev-Exp Region 10'!$N$9, 0)","v":{"v":0,"d":"$0.00"}},{"$f":"IFERROR('LTC Rev-Exp Region 10'!$O$11/'LTC Rev-Exp Region 10'!$O$9, 0)","v":{"v":0,"d":"$0.00"}}]
["LTC",null,null,{"$f":"Jurat!I$1","v":0},{"$f":"Jurat!D$33","v":"00:00:00"},"Q3","2017-09-30","Region 10","Operating Revenue","Capitation","NH Rate Reconciliation",1.2,"NH Rate Reconciliation",{"$f":"IFERROR('LTC Rev-Exp Region 10'!L$12/'LTC Rev-Exp Region 10'!L$9, 0)","v":{"v":0,"d":"$0.00"}},{"$f":"IFERROR('LTC Rev-Exp Region 10'!M$12/'LTC Rev-Exp Region 10'!M$9, 0)","v":{"v":0,"d":"$0.00"}},{"$f":"IFERROR('LTC Rev-Exp Region 10'!N$12/'LTC Rev-Exp Region 10'!N$9, 0)","v":{"v":0,"d":"$0.00"}},{"$f":"IFERROR('LTC Rev-Exp Region 10'!O$12/'LTC Rev-Exp Region 10'!O$9, 0)","v":{"v":0,"d":"$0.00"}}]
["LTC",null,null,{"$f":"Jurat!I$1","v":0},{"$f":"Jurat!D$33","v":"00:00:00"},"Q3","2017-09-30","Region 10","Operating Revenue","Other Revenue","Other Revenue",1.3,"Other Revenue",{"$f":"IFERROR('LTC Rev-Exp Region 10'!L1345/'LTC Rev-Exp Region 10'!L$9, 0)","v":{"v":0,"d":"$0.00"}},{"$f":"IFERROR('LTC Rev-Exp Region 10'!M1345/'LTC Rev-Exp Region 10'!M$9, 0)","v":{"v":0,"d":"$0.00"}},{"$f":"IFERROR('LTC Rev-Exp Region 10'!N1345/'LTC Rev-Exp Region 10'!N$9, 0)","v":{"v":0,"d":"$0.00"}},{"$f":"IFERROR('LTC Rev-Exp Region 10'!O1345/'LTC Rev-Exp Region 10'!O$9, 0)","v":{"v":0,"d":"$0.00"}}]
["LTC",null,null,{"$f":"Jurat!I$1","v":0},{"$f":"Jurat!D$33","v":"00:00:00"},"Q3","2017-09-30","Region 10","Operating Expense","Medical Expense","NF & Hospice","2.3","Nursing Facility FFS (Medicaid)",{"$f":"IFERROR('LTC Rev-Exp Region 10'!$L$19/'LTC Rev-Exp Region 10'!$L$9, 0)","v":{"v":0,"d":"$0.00"}},{"$f":"IFERROR('LTC Rev-Exp Region 10'!$M$19/'LTC Rev-Exp Region 10'!$M$9, 0)","v":{"v":0,"d":"$0.00"}},{"$f":"IFERROR('LTC Rev-Exp Region 10'!$N$19/'LTC Rev-Exp Region 10'!$N$9, 0)","v":{"v":0,"d":"$0.00"}},{"$f":"IFERROR('LTC Rev-Exp Region 10'!$O$19/'LTC Rev-Exp Region 10'!$O$9, 0)","v":{"v":0,"d":"$0.00"}}]
["LTC",null,null,{"$f":"Jurat!I$1","v":0},{"$f":"Jurat!D$33","v":"00:00:00"},"Q3","2017-09-30","Region 10","Operating Expense","Medical Expense","NF & Hospice","2.4","Nursing Facility FFS (Crossover)",{"$f":"IFERROR('LTC Rev-Exp Region 10'!$L$20/'LTC Rev-Exp Region 10'!$L$9, 0)","v":{"v":0,"d":"$0.00"}},{"$f":"IFERROR('LTC Rev-Exp Region 10'!$M$20/'LTC Rev-Exp Region 10'!$M$9, 0)","v":{"v":0,"d":"$0.00"}},{"$f":"IFERROR('LTC Rev-Exp Region 10'!$N$20/'LTC Rev-Exp Region 10'!$N$9, 0)","v":{"v":0,"d":"$0.00"}},{"$f":"IFERROR('LTC Rev-Exp Region 10'!$O$20/'LTC Rev-Exp Region 10'!$O$9, 0)","v":{"v":0,"d":"$0.00"}}]
["LTC",null,null,{"$f":"Jurat!I$1","v":0},{"$f":"Jurat!D$33","v":"00:00:00"},"Q3","2017-09-30","Region 10","Operating Expense","Medical Expense","NF & Hospice","2.6","Hospice FFS",{"$f":"IFERROR('LTC Rev-Exp Region 10'!$L$22/'LTC Rev-Exp Region 10'!$L$9, 0)","v":{"v":0,"d":"$0.00"}},{"$f":"IFERROR('LTC Rev-Exp Region 10'!$M$22/'LTC Rev-Exp Region 10'!$M$9, 0)","v":{"v":0,"d":"$0.00"}},{"$f":"IFERROR('LTC Rev-Exp Region 10'!$N$22/'LTC Rev-Exp Region 10'!$N$9, 0)","v":{"v":0,"d":"$0.00"}},{"$f":"IFERROR('LTC Rev-Exp Region 10'!$O$22/'LTC Rev-Exp Region 10'!$O$9, 0)","v":{"v":0,"d":"$0.00"}}]
["LTC",null,null,{"$f":"Jurat!I$1","v":0},{"$f":"Jurat!D$33","v":"00:00:00"},"Q3","2017-09-30","Region 10","Operating Expense","Medical Expense","NF & Hospice","2.7","Ending IBNP for NF & Hospice",{"$f":"IFERROR('LTC Rev-Exp Region 10'!$L$23/'LTC Rev-Exp Region 10'!$L$9, 0)","v":{"v":0,"d":"$0.00"}},{"$f":"IFERROR('LTC Rev-Exp Region 10'!$M$23/'LTC Rev-Exp Region 10'!$M$9, 0)","v":{"v":0,"d":"$0.00"}},{"$f":"IFERROR('LTC Rev-Exp Region 10'!$N$23/'LTC Rev-Exp Region 10'!$N$9, 0)","v":{"v":0,"d":"$0.00"}},{"$f":"IFERROR('LTC Rev-Exp Region 10'!$O$23/'LTC Rev-Exp Region 10'!$O$9, 0)","v":{"v":0,"d":"$0.00"}}]
["LTC",null,null,{"$f":"Jurat!I$1","v":0},{"$f":"Jurat!D$33","v":"00:00:00"},"Q3","2017-09-30","Region 10","Operating Expense","Medical Expense","NF & Hospice","2.8","NF & Hospice Subcapitated",{"$f":"IFERROR('LTC Rev-Exp Region 10'!$L$24/'LTC Rev-Exp Region 10'!$L$9, 0)","v":{"v":0,"d":"$0.00"}},{"$f":"IFERROR('LTC Rev-Exp Region 10'!$M$24/'LTC Rev-Exp Region 10'!$M$9, 0)","v":{"v":0,"d":"$0.00"}},{"$f":"IFERROR('LTC Rev-Exp Region 10'!$N$24/'LTC Rev-Exp Region 10'!$N$9, 0)","v":{"v":0,"d":"$0.00"}},{"$f":"IFERROR('LTC Rev-Exp Region 10'!$O$24/'LTC Rev-Exp Region 10'!$O$9, 0)","v":{"v":0,"d":"$0.00"}}]
["LTC",null,null,{"$f":"Jurat!I$1","v":0},{"$f":"Jurat!D$33","v":"00:00:00"},"Q3","2017-09-30","Region 10","Operating Expense","Medical Expense","NF & Hospice","2.9","NF & Hospice Settlements",{"$f":"IFERROR('LTC Rev-Exp Region 10'!$L$25/'LTC Rev-Exp Region 10'!$L$9, 0)","v":{"v":0,"d":"$0.00"}},{"$f":"IFERROR('LTC Rev-Exp Region 10'!$M$25/'LTC Rev-Exp Region 10'!$M$9, 0)","v":{"v":0,"d":"$0.00"}},{"$f":"IFERROR('LTC Rev-Exp Region 10'!$N$25/'LTC Rev-Exp Region 10'!$N$9, 0)","v":{"v":0,"d":"$0.00"}},{"$f":"IFERROR('LTC Rev-Exp Region 10'!$O$25/'LTC Rev-Exp Region 10'!$O$9, 0)","v":{"v":0,"d":"$0.00"}}]
["LTC",null,null,{"$f":"Jurat!I$1","v":0},{"$f":"Jurat!D$33","v":"00:00:00"},"Q3","2017-09-30","Region 10","Operating Expense","Medical Expense","LTC Services","2.11","Assisted Living FFS",{"$f":"IFERROR('LTC Rev-Exp Region 10'!$L$27/'LTC Rev-Exp Region 10'!$L$9, 0)","v":{"v":0,"d":"$0.00"}},{"$f":"IFERROR('LTC Rev-Exp Region 10'!$M$27/'LTC Rev-Exp Region 10'!$M$9, 0)","v":{"v":0,"d":"$0.00"}},{"$f":"IFERROR('LTC Rev-Exp Region 10'!$N$27/'LTC Rev-Exp Region 10'!$N$9, 0)","v":{"v":0,"d":"$0.00"}},{"$f":"IFERROR('LTC Rev-Exp Region 10'!$O$27/'LTC Rev-Exp Region 10'!$O$9, 0)","v":{"v":0,"d":"$0.00"}}]
["LTC",null,null,{"$f":"Jurat!I$1","v":0},{"$f":"Jurat!D$33","v":"00:00:00"},"Q3","2017-09-30","Region 10","Operating Expense","Medical Expense","LTC Services","2.12","Home Health FFS",{"$f":"IFERROR('LTC Rev-Exp Region 10'!$L$28/'LTC Rev-Exp Region 10'!$L$9, 0)","v":{"v":0,"d":"$0.00"}},{"$f":"IFERROR('LTC Rev-Exp Region 10'!$M$28/'LTC Rev-Exp Region 10'!$M$9, 0)","v":{"v":0,"d":"$0.00"}},{"$f":"IFERROR('LTC Rev-Exp Region 10'!$N$28/'LTC Rev-Exp Region 10'!$N$9, 0)","v":{"v":0,"d":"$0.00"}},{"$f":"IFERROR('LTC Rev-Exp Region 10'!$O$28/'LTC Rev-Exp Region 10'!$O$9, 0)","v":{"v":0,"d":"$0.00"}}]
["LTC",null,null,{"$f":"Jurat!I$1","v":0},{"$f":"Jurat!D$33","v":"00:00:00"},"Q3","2017-09-30","Region 10","Operating Expense","Medical Expense","LTC Services","2.13","Medical Equipment/Supplies FFS",{"$f":"IFERROR('LTC Rev-Exp Region 10'!$L$29/'LTC Rev-Exp Region 10'!$L$9, 0)","v":{"v":0,"d":"$0.00"}},{"$f":"IFERROR('LTC Rev-Exp Region 10'!$M$29/'LTC Rev-Exp Region 10'!$M$9, 0)","v":{"v":0,"d":"$0.00"}},{"$f":"IFERROR('LTC Rev-Exp Region 10'!$N$29/'LTC Rev-Exp Region 10'!$N$9, 0)","v":{"v":0,"d":"$0.00"}},{"$f":"IFERROR('LTC Rev-Exp Region 10'!$O$29/'LTC Rev-Exp Region 10'!$O$9, 0)","v":{"v":0,"d":"$0.00"}}]
["LTC",null,null,{"$f":"Jurat!I$1","v":0},{"$f":"Jurat!D$33","v":"00:00:00"},"Q3","2017-09-30","Region 10","Operating Expense","Medical Expense","LTC Services","2.14","Therapy FFS",{"$f":"IFERROR('LTC Rev-Exp Region 10'!$L$30/'LTC Rev-Exp Region 10'!$L$9, 0)","v":{"v":0,"d":"$0.00"}},{"$f":"IFERROR('LTC Rev-Exp Region 10'!$M$30/'LTC Rev-Exp Region 10'!$M$9, 0)","v":{"v":0,"d":"$0.00"}},{"$f":"IFERROR('LTC Rev-Exp Region 10'!$N$30/'LTC Rev-Exp Region 10'!$N$9, 0)","v":{"v":0,"d":"$0.00"}},{"$f":"IFERROR('LTC Rev-Exp Region 10'!$O$30/'LTC Rev-Exp Region 10'!$O$9, 0)","v":{"v":0,"d":"$0.00"}}]
["LTC",null,null,{"$f":"Jurat!I$1","v":0},{"$f":"Jurat!D$33","v":"00:00:00"},"Q3","2017-09-30","Region 10","Operating Expense","Medical Expense","LTC Services","2.15","Transportation FFS",{"$f":"IFERROR('LTC Rev-Exp Region 10'!$L$31/'LTC Rev-Exp Region 10'!$L$9, 0)","v":{"v":0,"d":"$0.00"}},{"$f":"IFERROR('LTC Rev-Exp Region 10'!$M$31/'LTC Rev-Exp Region 10'!$M$9, 0)","v":{"v":0,"d":"$0.00"}},{"$f":"IFERROR('LTC Rev-Exp Region 10'!$N$31/'LTC Rev-Exp Region 10'!$N$9, 0)","v":{"v":0,"d":"$0.00"}},{"$f":"IFERROR('LTC Rev-Exp Region 10'!$O$31/'LTC Rev-Exp Region 10'!$O$9, 0)","v":{"v":0,"d":"$0.00"}}]
["LTC",null,null,{"$f":"Jurat!I$1","v":0},{"$f":"Jurat!D$33","v":"00:00:00"},"Q3","2017-09-30","Region 10","Operating Expense","Medical Expense","LTC Services","2.16","Case Management FFS (Plan Provided)",{"$f":"IFERROR('LTC Rev-Exp Region 10'!$L$32/'LTC Rev-Exp Region 10'!$L$9, 0)","v":{"v":0,"d":"$0.00"}},{"$f":"IFERROR('LTC Rev-Exp Region 10'!$M$32/'LTC Rev-Exp Region 10'!$M$9, 0)","v":{"v":0,"d":"$0.00"}},{"$f":"IFERROR('LTC Rev-Exp Region 10'!$N$32/'LTC Rev-Exp Region 10'!$N$9, 0)","v":{"v":0,"d":"$0.00"}},{"$f":"IFERROR('LTC Rev-Exp Region 10'!$O$32/'LTC Rev-Exp Region 10'!$O$9, 0)","v":{"v":0,"d":"$0.00"}}]
["LTC",null,null,{"$f":"Jurat!I$1","v":0},{"$f":"Jurat!D$33","v":"00:00:00"},"Q3","2017-09-30","Region 10","Operating Expense","Medical Expense","LTC Services","2.17","Case Management FF (Non-Plan Provided)",{"$f":"IFERROR('LTC Rev-Exp Region 10'!$L$33/'LTC Rev-Exp Region 10'!$L$9, 0)","v":{"v":0,"d":"$0.00"}},{"$f":"IFERROR('LTC Rev-Exp Region 10'!$M$33/'LTC Rev-Exp Region 10'!$M$9, 0)","v":{"v":0,"d":"$0.00"}},{"$f":"IFERROR('LTC Rev-Exp Region 10'!$N$33/'LTC Rev-Exp Region 10'!$N$9, 0)","v":{"v":0,"d":"$0.00"}},{"$f":"IFERROR('LTC Rev-Exp Region 10'!$O$33/'LTC Rev-Exp Region 10'!$O$9, 0)","v":{"v":0,"d":"$0.00"}}]
["LTC",null,null,{"$f":"Jurat!I$1","v":0},{"$f":"Jurat!D$33","v":"00:00:00"},"Q3","2017-09-30","Region 10","Operating Expense","Medical Expense","LTC Services","2.18","HCBS FFS",{"$f":"IFERROR('LTC Rev-Exp Region 10'!$L$34/'LTC Rev-Exp Region 10'!$L$9, 0)","v":{"v":0,"d":"$0.00"}},{"$f":"IFERROR('LTC Rev-Exp Region 10'!$M$34/'LTC Rev-Exp Region 10'!$M$9, 0)","v":{"v":0,"d":"$0.00"}},{"$f":"IFERROR('LTC Rev-Exp Region 10'!$N$34/'LTC Rev-Exp Region 10'!$N$9, 0)","v":{"v":0,"d":"$0.00"}},{"$f":"IFERROR('LTC Rev-Exp Region 10'!$O$34/'LTC Rev-Exp Region 10'!$O$9, 0)","v":{"v":0,"d":"$0.00"}}]
["LTC",null,null,{"$f":"Jurat!I$1","v":0},{"$f":"Jurat!D$33","v":"00:00:00"},"Q3","2017-09-30","Region 10","Operating Expense","Medical Expense","LTC Services","2.19","Subcapitated LTC Services",{"$f":"IFERROR('LTC Rev-Exp Region 10'!$L$35/'LTC Rev-Exp Region 10'!$L$9, 0)","v":{"v":0,"d":"$0.00"}},{"$f":"IFERROR('LTC Rev-Exp Region 10'!$M$35/'LTC Rev-Exp Region 10'!$M$9, 0)","v":{"v":0,"d":"$0.00"}},{"$f":"IFERROR('LTC Rev-Exp Region 10'!$N$35/'LTC Rev-Exp Region 10'!$N$9, 0)","v":{"v":0,"d":"$0.00"}},{"$f":"IFERROR('LTC Rev-Exp Region 10'!$O$35/'LTC Rev-Exp Region 10'!$O$9, 0)","v":{"v":0,"d":"$0.00"}}]
["LTC",null,null,{"$f":"Jurat!I$1","v":0},{"$f":"Jurat!D$33","v":"00:00:00"},"Q3","2017-09-30","Region 10","Operating Expense","Medical Expense","LTC Services","2.20","Ending IBNP for Long Term Care Services",{"$f":"IFERROR('LTC Rev-Exp Region 10'!$L$36/'LTC Rev-Exp Region 10'!$L$9, 0)","v":{"v":0,"d":"$0.00"}},{"$f":"IFERROR('LTC Rev-Exp Region 10'!$M$36/'LTC Rev-Exp Region 10'!$M$9, 0)","v":{"v":0,"d":"$0.00"}},{"$f":"IFERROR('LTC Rev-Exp Region 10'!$N$36/'LTC Rev-Exp Region 10'!$N$9, 0)","v":{"v":0,"d":"$0.00"}},{"$f":"IFERROR('LTC Rev-Exp Region 10'!$O$36/'LTC Rev-Exp Region 10'!$O$9, 0)","v":{"v":0,"d":"$0.00"}}]
["LTC",null,null,{"$f":"Jurat!I$1","v":0},{"$f":"Jurat!D$33","v":"00:00:00"},"Q3","2017-09-30","Region 10","Operating Expense","Medical Expense","LTC Services","2.21","LTC Services Settlements",{"$f":"IFERROR('LTC Rev-Exp Region 10'!$L$37/'LTC Rev-Exp Region 10'!$L$9, 0)","v":{"v":0,"d":"$0.00"}},{"$f":"IFERROR('LTC Rev-Exp Region 10'!$M$37/'LTC Rev-Exp Region 10'!$M$9, 0)","v":{"v":0,"d":"$0.00"}},{"$f":"IFERROR('LTC Rev-Exp Region 10'!$N$37/'LTC Rev-Exp Region 10'!$N$9, 0)","v":{"v":0,"d":"$0.00"}},{"$f":"IFERROR('LTC Rev-Exp Region 10'!$O$37/'LTC Rev-Exp Region 10'!$O$9, 0)","v":{"v":0,"d":"$0.00"}}]
["LTC",null,null,{"$f":"Jurat!I$1","v":0},{"$f":"Jurat!D$33","v":"00:00:00"},"Q3","2017-09-30","Region 10","Operating Expense","Medical Expense","Expanded Benefits","3.1","Expanded Benefits FFS",{"$f":"IFERROR('LTC Rev-Exp Region 10'!$L$39/'LTC Rev-Exp Region 10'!$L$9, 0)","v":{"v":0,"d":"$0.00"}},{"$f":"IFERROR('LTC Rev-Exp Region 10'!$M$39/'LTC Rev-Exp Region 10'!$M$9, 0)","v":{"v":0,"d":"$0.00"}},{"$f":"IFERROR('LTC Rev-Exp Region 10'!$N$39/'LTC Rev-Exp Region 10'!$N$9, 0)","v":{"v":0,"d":"$0.00"}},{"$f":"IFERROR('LTC Rev-Exp Region 10'!$O$39/'LTC Rev-Exp Region 10'!$O$9, 0)","v":{"v":0,"d":"$0.00"}}]
["LTC",null,null,{"$f":"Jurat!I$1","v":0},{"$f":"Jurat!D$33","v":"00:00:00"},"Q3","2017-09-30","Region 10","Operating Expense","Medical Expense","Expanded Benefits","3.2","Expanded Benefits Subcapitation",{"$f":"IFERROR('LTC Rev-Exp Region 10'!$L$40/'LTC Rev-Exp Region 10'!$L$9, 0)","v":{"v":0,"d":"$0.00"}},{"$f":"IFERROR('LTC Rev-Exp Region 10'!$M$40/'LTC Rev-Exp Region 10'!$M$9, 0)","v":{"v":0,"d":"$0.00"}},{"$f":"IFERROR('LTC Rev-Exp Region 10'!$N$40/'LTC Rev-Exp Region 10'!$N$9, 0)","v":{"v":0,"d":"$0.00"}},{"$f":"IFERROR('LTC Rev-Exp Region 10'!$O$40/'LTC Rev-Exp Region 10'!$O$9, 0)","v":{"v":0,"d":"$0.00"}}]
["LTC",null,null,{"$f":"Jurat!I$1","v":0},{"$f":"Jurat!D$33","v":"00:00:00"},"Q3","2017-09-30","Region 10","Operating Expense","Medical Expense","Expanded Benefits","3.3","Ending IBNP for Expanded Benefits",{"$f":"IFERROR('LTC Rev-Exp Region 10'!$L$41/'LTC Rev-Exp Region 10'!$L$9, 0)","v":{"v":0,"d":"$0.00"}},{"$f":"IFERROR('LTC Rev-Exp Region 10'!$M$41/'LTC Rev-Exp Region 10'!$M$9, 0)","v":{"v":0,"d":"$0.00"}},{"$f":"IFERROR('LTC Rev-Exp Region 10'!$N$41/'LTC Rev-Exp Region 10'!$N$9, 0)","v":{"v":0,"d":"$0.00"}},{"$f":"IFERROR('LTC Rev-Exp Region 10'!$O$41/'LTC Rev-Exp Region 10'!$O$9, 0)","v":{"v":0,"d":"$0.00"}}]
["LTC",null,null,{"$f":"Jurat!I$1","v":0},{"$f":"Jurat!D$33","v":"00:00:00"},"Q3","2017-09-30","Region 10","Operating Expense","Medical Expense","Expanded Benefits","3.4","Expanded Benefits Settlements",{"$f":"IFERROR('LTC Rev-Exp Region 10'!$L$42/'LTC Rev-Exp Region 10'!$L$9, 0)","v":{"v":0,"d":"$0.00"}},{"$f":"IFERROR('LTC Rev-Exp Region 10'!$M$42/'LTC Rev-Exp Region 10'!$M$9, 0)","v":{"v":0,"d":"$0.00"}},{"$f":"IFERROR('LTC Rev-Exp Region 10'!$N$42/'LTC Rev-Exp Region 10'!$N$9, 0)","v":{"v":0,"d":"$0.00"}},{"$f":"IFERROR('LTC Rev-Exp Region 10'!$O$42/'LTC Rev-Exp Region 10'!$O$9, 0)","v":{"v":0,"d":"$0.00"}}]
["LTC",null,null,{"$f":"Jurat!I$1","v":0},{"$f":"Jurat!D$33","v":"00:00:00"},"Q3","2017-09-30","Region 10","Operating Expense","Medical Expense","Other Medical","4.5","TPL & Fraud/Abuse Recoveries",{"$f":"IFERROR('LTC Rev-Exp Region 10'!$L$48/'LTC Rev-Exp Region 10'!$L$9, 0)","v":{"v":0,"d":"$0.00"}},{"$f":"IFERROR('LTC Rev-Exp Region 10'!$M$48/'LTC Rev-Exp Region 10'!$M$9, 0)","v":{"v":0,"d":"$0.00"}},{"$f":"IFERROR('LTC Rev-Exp Region 10'!$N$48/'LTC Rev-Exp Region 10'!$N$9, 0)","v":{"v":0,"d":"$0.00"}},{"$f":"IFERROR('LTC Rev-Exp Region 10'!$O$48/'LTC Rev-Exp Region 10'!$O$9, 0)","v":{"v":0,"d":"$0.00"}}]
["LTC",null,null,{"$f":"Jurat!I$1","v":0},{"$f":"Jurat!D$33","v":"00:00:00"},"Q3","2017-09-30","Region 10","Operating Expense","Medical Expense","Other Medical","4.6.1","Premium Deficiency Reserve",{"$f":"IFERROR('LTC Rev-Exp Region 10'!$L$49/'LTC Rev-Exp Region 10'!$L$9, 0)","v":{"v":0,"d":"$0.00"}},{"$f":"IFERROR('LTC Rev-Exp Region 10'!$M$49/'LTC Rev-Exp Region 10'!$M$9, 0)","v":{"v":0,"d":"$0.00"}},{"$f":"IFERROR('LTC Rev-Exp Region 10'!$N$49/'LTC Rev-Exp Region 10'!$N$9, 0)","v":{"v":0,"d":"$0.00"}},{"$f":"IFERROR('LTC Rev-Exp Region 10'!$O$49/'LTC Rev-Exp Region 10'!$O$9, 0)","v":{"v":0,"d":"$0.00"}}]
["LTC",null,null,{"$f":"Jurat!I$1","v":0},{"$f":"Jurat!D$33","v":"00:00:00"},"Q3","2017-09-30","Region 10","Operating Expense","Medical Expense","Other Medical","4.8","Reinsurance Premiums",{"$f":"IFERROR('LTC Rev-Exp Region 10'!$L$51/'LTC Rev-Exp Region 10'!$L$9, 0)","v":{"v":0,"d":"$0.00"}},{"$f":"IFERROR('LTC Rev-Exp Region 10'!$M$51/'LTC Rev-Exp Region 10'!$M$9, 0)","v":{"v":0,"d":"$0.00"}},{"$f":"IFERROR('LTC Rev-Exp Region 10'!$N$51/'LTC Rev-Exp Region 10'!$N$9, 0)","v":{"v":0,"d":"$0.00"}},{"$f":"IFERROR('LTC Rev-Exp Region 10'!$O$51/'LTC Rev-Exp Region 10'!$O$9, 0)","v":{"v":0,"d":"$0.00"}}]
["LTC",null,null,{"$f":"Jurat!I$1","v":0},{"$f":"Jurat!D$33","v":"00:00:00"},"Q3","2017-09-30","Region 10","Operating Expense","Medical Expense","Other Medical","4.9","Reinsurance Recoveries",{"$f":"IFERROR('LTC Rev-Exp Region 10'!$L$52/'LTC Rev-Exp Region 10'!$L$9, 0)","v":{"v":0,"d":"$0.00"}},{"$f":"IFERROR('LTC Rev-Exp Region 10'!$M$52/'LTC Rev-Exp Region 10'!$M$9, 0)","v":{"v":0,"d":"$0.00"}},{"$f":"IFERROR('LTC Rev-Exp Region 10'!$N$52/'LTC Rev-Exp Region 10'!$N$9, 0)","v":{"v":0,"d":"$0.00"}},{"$f":"IFERROR('LTC Rev-Exp Region 10'!$O$52/'LTC Rev-Exp Region 10'!$O$9, 0)","v":{"v":0,"d":"$0.00"}}]
["LTC",null,null,{"$f":"Jurat!I$1","v":0},{"$f":"Jurat!D$33","v":"00:00:00"},"Q3","2017-09-30","Region 10","Operating Expense","Administrative Expense","Administrative","5.1","Salaries & Benefits",{"$f":"IFERROR('LTC Rev-Exp Region 10'!$L$57/'LTC Rev-Exp Region 10'!$L$9, 0)","v":{"v":0,"d":"$0.00"}},{"$f":"IFERROR('LTC Rev-Exp Region 10'!$M$57/'LTC Rev-Exp Region 10'!$M$9, 0)","v":{"v":0,"d":"$0.00"}},{"$f":"IFERROR('LTC Rev-Exp Region 10'!$N$57/'LTC Rev-Exp Region 10'!$N$9, 0)","v":{"v":0,"d":"$0.00"}},{"$f":"IFERROR('LTC Rev-Exp Region 10'!$O$57/'LTC Rev-Exp Region 10'!$O$9, 0)","v":{"v":0,"d":"$0.00"}}]
["LTC",null,null,{"$f":"Jurat!I$1","v":0},{"$f":"Jurat!D$33","v":"00:00:00"},"Q3","2017-09-30","Region 10","Operating Expense","Administrative Expense","Administrative","5.2","Administrative Services",{"$f":"IFERROR('LTC Rev-Exp Region 10'!$L$58/'LTC Rev-Exp Region 10'!$L$9, 0)","v":{"v":0,"d":"$0.00"}},{"$f":"IFERROR('LTC Rev-Exp Region 10'!$M$58/'LTC Rev-Exp Region 10'!$M$9, 0)","v":{"v":0,"d":"$0.00"}},{"$f":"IFERROR('LTC Rev-Exp Region 10'!$N$58/'LTC Rev-Exp Region 10'!$N$9, 0)","v":{"v":0,"d":"$0.00"}},{"$f":"IFERROR('LTC Rev-Exp Region 10'!$O$58/'LTC Rev-Exp Region 10'!$O$9, 0)","v":{"v":0,"d":"$0.00"}}]
["LTC",null,null,{"$f":"Jurat!I$1","v":0},{"$f":"Jurat!D$33","v":"00:00:00"},"Q3","2017-09-30","Region 10","Operating Expense","Administrative Expense","Administrative","5.3","Information Systems",{"$f":"IFERROR('LTC Rev-Exp Region 10'!$L$59/'LTC Rev-Exp Region 10'!$L$9, 0)","v":{"v":0,"d":"$0.00"}},{"$f":"IFERROR('LTC Rev-Exp Region 10'!$M$59/'LTC Rev-Exp Region 10'!$M$9, 0)","v":{"v":0,"d":"$0.00"}},{"$f":"IFERROR('LTC Rev-Exp Region 10'!$N$59/'LTC Rev-Exp Region 10'!$N$9, 0)","v":{"v":0,"d":"$0.00"}},{"$f":"IFERROR('LTC Rev-Exp Region 10'!$O$59/'LTC Rev-Exp Region 10'!$O$9, 0)","v":{"v":0,"d":"$0.00"}}]
["LTC",null,null,{"$f":"Jurat!I$1","v":0},{"$f":"Jurat!D$33","v":"00:00:00"},"Q3","2017-09-30","Region 10","Operating Expense","Administrative Expense","Administrative","5.4","Marketing Expenses",{"$f":"IFERROR('LTC Rev-Exp Region 10'!$L$60/'LTC Rev-Exp Region 10'!$L$9, 0)","v":{"v":0,"d":"$0.00"}},{"$f":"IFERROR('LTC Rev-Exp Region 10'!$M$60/'LTC Rev-Exp Region 10'!$M$9, 0)","v":{"v":0,"d":"$0.00"}},{"$f":"IFERROR('LTC Rev-Exp Region 10'!$N$60/'LTC Rev-Exp Region 10'!$N$9, 0)","v":{"v":0,"d":"$0.00"}},{"$f":"IFERROR('LTC Rev-Exp Region 10'!$O$60/'LTC Rev-Exp Region 10'!$O$9, 0)","v":{"v":0,"d":"$0.00"}}]
["LTC",null,null,{"$f":"Jurat!I$1","v":0},{"$f":"Jurat!D$33","v":"00:00:00"},"Q3","2017-09-30","Region 10","Operating Expense","Administrative Expense","Administrative","5.5","General  Administration",{"$f":"IFERROR('LTC Rev-Exp Region 10'!$L$61/'LTC Rev-Exp Region 10'!$L$9, 0)","v":{"v":0,"d":"$0.00"}},{"$f":"IFERROR('LTC Rev-Exp Region 10'!$M$61/'LTC Rev-Exp Region 10'!$M$9, 0)","v":{"v":0,"d":"$0.00"}},{"$f":"IFERROR('LTC Rev-Exp Region 10'!$N$61/'LTC Rev-Exp Region 10'!$N$9, 0)","v":{"v":0,"d":"$0.00"}},{"$f":"IFERROR('LTC Rev-Exp Region 10'!$O$61/'LTC Rev-Exp Region 10'!$O$9, 0)","v":{"v":0,"d":"$0.00"}}]
["LTC",null,null,{"$f":"Jurat!I$1","v":0},{"$f":"Jurat!D$33","v":"00:00:00"},"Q3","2017-09-30","Region 10","Operating Expense","Administrative Expense","Administrative","5.6","Compliance/Regulatory",{"$f":"IFERROR('LTC Rev-Exp Region 10'!$L$62/'LTC Rev-Exp Region 10'!$L$9, 0)","v":{"v":0,"d":"$0.00"}},{"$f":"IFERROR('LTC Rev-Exp Region 10'!$M$62/'LTC Rev-Exp Region 10'!$M$9, 0)","v":{"v":0,"d":"$0.00"}},{"$f":"IFERROR('LTC Rev-Exp Region 10'!$N$62/'LTC Rev-Exp Region 10'!$N$9, 0)","v":{"v":0,"d":"$0.00"}},{"$f":"IFERROR('LTC Rev-Exp Region 10'!$O$62/'LTC Rev-Exp Region 10'!$O$9, 0)","v":{"v":0,"d":"$0.00"}}]
["LTC",null,null,{"$f":"Jurat!I$1","v":0},{"$f":"Jurat!D$33","v":"00:00:00"},"Q3","2017-09-30","Region 10","Operating Expense","Taxes & Fees","Taxes & Fees","6.1","State Premium Tax",{"$f":"IFERROR('LTC Rev-Exp Region 10'!$L$64/'LTC Rev-Exp Region 10'!$L$9, 0)","v":{"v":0,"d":"$0.00"}},{"$f":"IFERROR('LTC Rev-Exp Region 10'!$M$64/'LTC Rev-Exp Region 10'!$M$9, 0)","v":{"v":0,"d":"$0.00"}},{"$f":"IFERROR('LTC Rev-Exp Region 10'!$N$64/'LTC Rev-Exp Region 10'!$N$9, 0)","v":{"v":0,"d":"$0.00"}},{"$f":"IFERROR('LTC Rev-Exp Region 10'!$O$64/'LTC Rev-Exp Region 10'!$O$9, 0)","v":{"v":0,"d":"$0.00"}}]
["LTC",null,null,{"$f":"Jurat!I$1","v":0},{"$f":"Jurat!D$33","v":"00:00:00"},"Q3","2017-09-30","Region 10","Operating Expense","Taxes & Fees","Taxes & Fees","6.2","Department of Insurance Assessments",{"$f":"IFERROR('LTC Rev-Exp Region 10'!$L$65/'LTC Rev-Exp Region 10'!$L$9, 0)","v":{"v":0,"d":"$0.00"}},{"$f":"IFERROR('LTC Rev-Exp Region 10'!$M$65/'LTC Rev-Exp Region 10'!$M$9, 0)","v":{"v":0,"d":"$0.00"}},{"$f":"IFERROR('LTC Rev-Exp Region 10'!$N$65/'LTC Rev-Exp Region 10'!$N$9, 0)","v":{"v":0,"d":"$0.00"}},{"$f":"IFERROR('LTC Rev-Exp Region 10'!$O$65/'LTC Rev-Exp Region 10'!$O$9, 0)","v":{"v":0,"d":"$0.00"}}]
["LTC",null,null,{"$f":"Jurat!I$1","v":0},{"$f":"Jurat!D$33","v":"00:00:00"},"Q3","2017-09-30","Region 10","Non-Operating Expense","Income Tax Expense","Income Tax Expense","9.0","Income Tax Expense",{"$f":"IFERROR('LTC Rev-Exp Region 10'!$L$72/'LTC Rev-Exp Region 10'!$L$9, 0)","v":{"v":0,"d":"$0.00"}},{"$f":"IFERROR('LTC Rev-Exp Region 10'!$M$72/'LTC Rev-Exp Region 10'!$M$9, 0)","v":{"v":0,"d":"$0.00"}},{"$f":"IFERROR('LTC Rev-Exp Region 10'!$N$72/'LTC Rev-Exp Region 10'!$N$9, 0)","v":{"v":0,"d":"$0.00"}},{"$f":"IFERROR('LTC Rev-Exp Region 10'!$O$72/'LTC Rev-Exp Region 10'!$O$9, 0)","v":{"v":0,"d":"$0.00"}}]
["LTC",null,null,{"$f":"Jurat!I$1","v":0},{"$f":"Jurat!D$33","v":"00:00:00"},"Q4","2017-12-31","Region 10","Operating Revenue","Capitation","Capitation",1.1,"Capitation",{"$f":"IFERROR('LTC Rev-Exp Region 10'!$P$11/'LTC Rev-Exp Region 10'!$P$9, 0)","v":{"v":0,"d":"$0.00"}},{"$f":"IFERROR('LTC Rev-Exp Region 10'!$Q$11/'LTC Rev-Exp Region 10'!$Q$9, 0)","v":{"v":0,"d":"$0.00"}},{"$f":"IFERROR('LTC Rev-Exp Region 10'!$R$11/'LTC Rev-Exp Region 10'!$R$9, 0)","v":{"v":0,"d":"$0.00"}},{"$f":"IFERROR('LTC Rev-Exp Region 10'!$S$11/'LTC Rev-Exp Region 10'!$S$9, 0)","v":{"v":0,"d":"$0.00"}}]
["LTC",null,null,{"$f":"Jurat!I$1","v":0},{"$f":"Jurat!D$33","v":"00:00:00"},"Q4","2017-12-31","Region 10","Operating Revenue","Capitation","NH Rate Reconciliation",1.2,"NH Rate Reconciliation",{"$f":"IFERROR('LTC Rev-Exp Region 10'!$P$12/'LTC Rev-Exp Region 10'!$P$9, 0)","v":{"v":0,"d":"$0.00"}},{"$f":"IFERROR('LTC Rev-Exp Region 10'!$Q$12/'LTC Rev-Exp Region 10'!$Q$9, 0)","v":{"v":0,"d":"$0.00"}},{"$f":"IFERROR('LTC Rev-Exp Region 10'!$R$12/'LTC Rev-Exp Region 10'!$R$9, 0)","v":{"v":0,"d":"$0.00"}},{"$f":"IFERROR('LTC Rev-Exp Region 10'!$S$12/'LTC Rev-Exp Region 10'!$S$9, 0)","v":{"v":0,"d":"$0.00"}}]
["LTC",null,null,{"$f":"Jurat!I$1","v":0},{"$f":"Jurat!D$33","v":"00:00:00"},"Q4","2017-12-31","Region 10","Operating Revenue","Other Revenue","Other Revenue",1.3,"Other Revenue",{"$f":"IFERROR('LTC Rev-Exp Region 10'!$P$13/'LTC Rev-Exp Region 10'!$P$9, 0)","v":{"v":0,"d":"$0.00"}},{"$f":"IFERROR('LTC Rev-Exp Region 10'!$Q$13/'LTC Rev-Exp Region 10'!$Q$9, 0)","v":{"v":0,"d":"$0.00"}},{"$f":"IFERROR('LTC Rev-Exp Region 10'!$R$13/'LTC Rev-Exp Region 10'!$R$9, 0)","v":{"v":0,"d":"$0.00"}},{"$f":"IFERROR('LTC Rev-Exp Region 10'!$S$13/'LTC Rev-Exp Region 10'!$S$9, 0)","v":{"v":0,"d":"$0.00"}}]
["LTC",null,null,{"$f":"Jurat!I$1","v":0},{"$f":"Jurat!D$33","v":"00:00:00"},"Q4","2017-12-31","Region 10","Operating Expense","Medical Expense","NF & Hospice","2.3","Nursing Facility FFS (Medicaid)",{"$f":"IFERROR('LTC Rev-Exp Region 10'!$P$19/'LTC Rev-Exp Region 10'!$P$9, 0)","v":{"v":0,"d":"$0.00"}},{"$f":"IFERROR('LTC Rev-Exp Region 10'!$Q$19/'LTC Rev-Exp Region 10'!$Q$9, 0)","v":{"v":0,"d":"$0.00"}},{"$f":"IFERROR('LTC Rev-Exp Region 10'!$R$19/'LTC Rev-Exp Region 10'!$R$9, 0)","v":{"v":0,"d":"$0.00"}},{"$f":"IFERROR('LTC Rev-Exp Region 10'!$S$19/'LTC Rev-Exp Region 10'!$S$9, 0)","v":{"v":0,"d":"$0.00"}}]
["LTC",null,null,{"$f":"Jurat!I$1","v":0},{"$f":"Jurat!D$33","v":"00:00:00"},"Q4","2017-12-31","Region 10","Operating Expense","Medical Expense","NF & Hospice","2.4","Nursing Facility FFS (Crossover)",{"$f":"IFERROR('LTC Rev-Exp Region 10'!$P$20/'LTC Rev-Exp Region 10'!$P$9, 0)","v":{"v":0,"d":"$0.00"}},{"$f":"IFERROR('LTC Rev-Exp Region 10'!$Q$20/'LTC Rev-Exp Region 10'!$Q$9, 0)","v":{"v":0,"d":"$0.00"}},{"$f":"IFERROR('LTC Rev-Exp Region 10'!$R$20/'LTC Rev-Exp Region 10'!$R$9, 0)","v":{"v":0,"d":"$0.00"}},{"$f":"IFERROR('LTC Rev-Exp Region 10'!$S$20/'LTC Rev-Exp Region 10'!$S$9, 0)","v":{"v":0,"d":"$0.00"}}]
["LTC",null,null,{"$f":"Jurat!I$1","v":0},{"$f":"Jurat!D$33","v":"00:00:00"},"Q4","2017-12-31","Region 10","Operating Expense","Medical Expense","NF & Hospice","2.6","Hospice FFS",{"$f":"IFERROR('LTC Rev-Exp Region 10'!$P$22/'LTC Rev-Exp Region 10'!$P$9, 0)","v":{"v":0,"d":"$0.00"}},{"$f":"IFERROR('LTC Rev-Exp Region 10'!$Q$22/'LTC Rev-Exp Region 10'!$Q$9, 0)","v":{"v":0,"d":"$0.00"}},{"$f":"IFERROR('LTC Rev-Exp Region 10'!$R$22/'LTC Rev-Exp Region 10'!$R$9, 0)","v":{"v":0,"d":"$0.00"}},{"$f":"IFERROR('LTC Rev-Exp Region 10'!$S$22/'LTC Rev-Exp Region 10'!$S$9, 0)","v":{"v":0,"d":"$0.00"}}]
["LTC",null,null,{"$f":"Jurat!I$1","v":0},{"$f":"Jurat!D$33","v":"00:00:00"},"Q4","2017-12-31","Region 10","Operating Expense","Medical Expense","NF & Hospice","2.7","Ending IBNP for NF & Hospice",{"$f":"IFERROR('LTC Rev-Exp Region 10'!$P$23/'LTC Rev-Exp Region 10'!$P$9, 0)","v":{"v":0,"d":"$0.00"}},{"$f":"IFERROR('LTC Rev-Exp Region 10'!$Q$23/'LTC Rev-Exp Region 10'!$Q$9, 0)","v":{"v":0,"d":"$0.00"}},{"$f":"IFERROR('LTC Rev-Exp Region 10'!$R$23/'LTC Rev-Exp Region 10'!$R$9, 0)","v":{"v":0,"d":"$0.00"}},{"$f":"IFERROR('LTC Rev-Exp Region 10'!$S$23/'LTC Rev-Exp Region 10'!$S$9, 0)","v":{"v":0,"d":"$0.00"}}]
["LTC",null,null,{"$f":"Jurat!I$1","v":0},{"$f":"Jurat!D$33","v":"00:00:00"},"Q4","2017-12-31","Region 10","Operating Expense","Medical Expense","NF & Hospice","2.8","NF & Hospice Subcapitated",{"$f":"IFERROR('LTC Rev-Exp Region 10'!$P$24/'LTC Rev-Exp Region 10'!$P$9, 0)","v":{"v":0,"d":"$0.00"}},{"$f":"IFERROR('LTC Rev-Exp Region 10'!$Q$24/'LTC Rev-Exp Region 10'!$Q$9, 0)","v":{"v":0,"d":"$0.00"}},{"$f":"IFERROR('LTC Rev-Exp Region 10'!$R$24/'LTC Rev-Exp Region 10'!$R$9, 0)","v":{"v":0,"d":"$0.00"}},{"$f":"IFERROR('LTC Rev-Exp Region 10'!$S$24/'LTC Rev-Exp Region 10'!$S$9, 0)","v":{"v":0,"d":"$0.00"}}]
["LTC",null,null,{"$f":"Jurat!I$1","v":0},{"$f":"Jurat!D$33","v":"00:00:00"},"Q4","2017-12-31","Region 10","Operating Expense","Medical Expense","NF & Hospice","2.9","NF & Hospice Settlements",{"$f":"IFERROR('LTC Rev-Exp Region 10'!$P$25/'LTC Rev-Exp Region 10'!$P$9, 0)","v":{"v":0,"d":"$0.00"}},{"$f":"IFERROR('LTC Rev-Exp Region 10'!$Q$25/'LTC Rev-Exp Region 10'!$Q$9, 0)","v":{"v":0,"d":"$0.00"}},{"$f":"IFERROR('LTC Rev-Exp Region 10'!$R$25/'LTC Rev-Exp Region 10'!$R$9, 0)","v":{"v":0,"d":"$0.00"}},{"$f":"IFERROR('LTC Rev-Exp Region 10'!$S$25/'LTC Rev-Exp Region 10'!$S$9, 0)","v":{"v":0,"d":"$0.00"}}]
["LTC",null,null,{"$f":"Jurat!I$1","v":0},{"$f":"Jurat!D$33","v":"00:00:00"},"Q4","2017-12-31","Region 10","Operating Expense","Medical Expense","LTC Services","2.11","Assisted Living FFS",{"$f":"IFERROR('LTC Rev-Exp Region 10'!$P$27/'LTC Rev-Exp Region 10'!$P$9, 0)","v":{"v":0,"d":"$0.00"}},{"$f":"IFERROR('LTC Rev-Exp Region 10'!$Q$27/'LTC Rev-Exp Region 10'!$Q$9, 0)","v":{"v":0,"d":"$0.00"}},{"$f":"IFERROR('LTC Rev-Exp Region 10'!$R$27/'LTC Rev-Exp Region 10'!$R$9, 0)","v":{"v":0,"d":"$0.00"}},{"$f":"IFERROR('LTC Rev-Exp Region 10'!$S$27/'LTC Rev-Exp Region 10'!$S$9, 0)","v":{"v":0,"d":"$0.00"}}]
["LTC",null,null,{"$f":"Jurat!I$1","v":0},{"$f":"Jurat!D$33","v":"00:00:00"},"Q4","2017-12-31","Region 10","Operating Expense","Medical Expense","LTC Services","2.12","Home Health FFS",{"$f":"IFERROR('LTC Rev-Exp Region 10'!$P$28/'LTC Rev-Exp Region 10'!$P$9, 0)","v":{"v":0,"d":"$0.00"}},{"$f":"IFERROR('LTC Rev-Exp Region 10'!$Q$28/'LTC Rev-Exp Region 10'!$Q$9, 0)","v":{"v":0,"d":"$0.00"}},{"$f":"IFERROR('LTC Rev-Exp Region 10'!$R$28/'LTC Rev-Exp Region 10'!$R$9, 0)","v":{"v":0,"d":"$0.00"}},{"$f":"IFERROR('LTC Rev-Exp Region 10'!$S$28/'LTC Rev-Exp Region 10'!$S$9, 0)","v":{"v":0,"d":"$0.00"}}]
["LTC",null,null,{"$f":"Jurat!I$1","v":0},{"$f":"Jurat!D$33","v":"00:00:00"},"Q4","2017-12-31","Region 10","Operating Expense","Medical Expense","LTC Services","2.13","Medical Equipment/Supplies FFS",{"$f":"IFERROR('LTC Rev-Exp Region 10'!$P$29/'LTC Rev-Exp Region 10'!$P$9, 0)","v":{"v":0,"d":"$0.00"}},{"$f":"IFERROR('LTC Rev-Exp Region 10'!$Q$29/'LTC Rev-Exp Region 10'!$Q$9, 0)","v":{"v":0,"d":"$0.00"}},{"$f":"IFERROR('LTC Rev-Exp Region 10'!$R$29/'LTC Rev-Exp Region 10'!$R$9, 0)","v":{"v":0,"d":"$0.00"}},{"$f":"IFERROR('LTC Rev-Exp Region 10'!$S$29/'LTC Rev-Exp Region 10'!$S$9, 0)","v":{"v":0,"d":"$0.00"}}]
["LTC",null,null,{"$f":"Jurat!I$1","v":0},{"$f":"Jurat!D$33","v":"00:00:00"},"Q4","2017-12-31","Region 10","Operating Expense","Medical Expense","LTC Services","2.14","Therapy FFS",{"$f":"IFERROR('LTC Rev-Exp Region 10'!$P$30/'LTC Rev-Exp Region 10'!$P$9, 0)","v":{"v":0,"d":"$0.00"}},{"$f":"IFERROR('LTC Rev-Exp Region 10'!$Q$30/'LTC Rev-Exp Region 10'!$Q$9, 0)","v":{"v":0,"d":"$0.00"}},{"$f":"IFERROR('LTC Rev-Exp Region 10'!$R$30/'LTC Rev-Exp Region 10'!$R$9, 0)","v":{"v":0,"d":"$0.00"}},{"$f":"IFERROR('LTC Rev-Exp Region 10'!$S$30/'LTC Rev-Exp Region 10'!$S$9, 0)","v":{"v":0,"d":"$0.00"}}]
["LTC",null,null,{"$f":"Jurat!I$1","v":0},{"$f":"Jurat!D$33","v":"00:00:00"},"Q4","2017-12-31","Region 10","Operating Expense","Medical Expense","LTC Services","2.15","Transportation FFS",{"$f":"IFERROR('LTC Rev-Exp Region 10'!$P$31/'LTC Rev-Exp Region 10'!$P$9, 0)","v":{"v":0,"d":"$0.00"}},{"$f":"IFERROR('LTC Rev-Exp Region 10'!$Q$31/'LTC Rev-Exp Region 10'!$Q$9, 0)","v":{"v":0,"d":"$0.00"}},{"$f":"IFERROR('LTC Rev-Exp Region 10'!$R$31/'LTC Rev-Exp Region 10'!$R$9, 0)","v":{"v":0,"d":"$0.00"}},{"$f":"IFERROR('LTC Rev-Exp Region 10'!$S$31/'LTC Rev-Exp Region 10'!$S$9, 0)","v":{"v":0,"d":"$0.00"}}]
["LTC",null,null,{"$f":"Jurat!I$1","v":0},{"$f":"Jurat!D$33","v":"00:00:00"},"Q4","2017-12-31","Region 10","Operating Expense","Medical Expense","LTC Services","2.16","Case Management FFS (Plan Provided)",{"$f":"IFERROR('LTC Rev-Exp Region 10'!$P$32/'LTC Rev-Exp Region 10'!$P$9, 0)","v":{"v":0,"d":"$0.00"}},{"$f":"IFERROR('LTC Rev-Exp Region 10'!$Q$32/'LTC Rev-Exp Region 10'!$Q$9, 0)","v":{"v":0,"d":"$0.00"}},{"$f":"IFERROR('LTC Rev-Exp Region 10'!$R$32/'LTC Rev-Exp Region 10'!$R$9, 0)","v":{"v":0,"d":"$0.00"}},{"$f":"IFERROR('LTC Rev-Exp Region 10'!$S$32/'LTC Rev-Exp Region 10'!$S$9, 0)","v":{"v":0,"d":"$0.00"}}]
["LTC",null,null,{"$f":"Jurat!I$1","v":0},{"$f":"Jurat!D$33","v":"00:00:00"},"Q4","2017-12-31","Region 10","Operating Expense","Medical Expense","LTC Services","2.17","Case Management FF (Non-Plan Provided)",{"$f":"IFERROR('LTC Rev-Exp Region 10'!$P$33/'LTC Rev-Exp Region 10'!$P$9, 0)","v":{"v":0,"d":"$0.00"}},{"$f":"IFERROR('LTC Rev-Exp Region 10'!$Q$33/'LTC Rev-Exp Region 10'!$Q$9, 0)","v":{"v":0,"d":"$0.00"}},{"$f":"IFERROR('LTC Rev-Exp Region 10'!$R$33/'LTC Rev-Exp Region 10'!$R$9, 0)","v":{"v":0,"d":"$0.00"}},{"$f":"IFERROR('LTC Rev-Exp Region 10'!$S$33/'LTC Rev-Exp Region 10'!$S$9, 0)","v":{"v":0,"d":"$0.00"}}]
["LTC",null,null,{"$f":"Jurat!I$1","v":0},{"$f":"Jurat!D$33","v":"00:00:00"},"Q4","2017-12-31","Region 10","Operating Expense","Medical Expense","LTC Services","2.18","HCBS FFS",{"$f":"IFERROR('LTC Rev-Exp Region 10'!$P$34/'LTC Rev-Exp Region 10'!$P$9, 0)","v":{"v":0,"d":"$0.00"}},{"$f":"IFERROR('LTC Rev-Exp Region 10'!$Q$34/'LTC Rev-Exp Region 10'!$Q$9, 0)","v":{"v":0,"d":"$0.00"}},{"$f":"IFERROR('LTC Rev-Exp Region 10'!$R$34/'LTC Rev-Exp Region 10'!$R$9, 0)","v":{"v":0,"d":"$0.00"}},{"$f":"IFERROR('LTC Rev-Exp Region 10'!$S$34/'LTC Rev-Exp Region 10'!$S$9, 0)","v":{"v":0,"d":"$0.00"}}]
["LTC",null,null,{"$f":"Jurat!I$1","v":0},{"$f":"Jurat!D$33","v":"00:00:00"},"Q4","2017-12-31","Region 10","Operating Expense","Medical Expense","LTC Services","2.19","Subcapitated LTC Services",{"$f":"IFERROR('LTC Rev-Exp Region 10'!$P$35/'LTC Rev-Exp Region 10'!$P$9, 0)","v":{"v":0,"d":"$0.00"}},{"$f":"IFERROR('LTC Rev-Exp Region 10'!$Q$35/'LTC Rev-Exp Region 10'!$Q$9, 0)","v":{"v":0,"d":"$0.00"}},{"$f":"IFERROR('LTC Rev-Exp Region 10'!$R$35/'LTC Rev-Exp Region 10'!$R$9, 0)","v":{"v":0,"d":"$0.00"}},{"$f":"IFERROR('LTC Rev-Exp Region 10'!$S$35/'LTC Rev-Exp Region 10'!$S$9, 0)","v":{"v":0,"d":"$0.00"}}]
["LTC",null,null,{"$f":"Jurat!I$1","v":0},{"$f":"Jurat!D$33","v":"00:00:00"},"Q4","2017-12-31","Region 10","Operating Expense","Medical Expense","LTC Services","2.20","Ending IBNP for Long Term Care Services",{"$f":"IFERROR('LTC Rev-Exp Region 10'!$P$36/'LTC Rev-Exp Region 10'!$P$9, 0)","v":{"v":0,"d":"$0.00"}},{"$f":"IFERROR('LTC Rev-Exp Region 10'!$Q$36/'LTC Rev-Exp Region 10'!$Q$9, 0)","v":{"v":0,"d":"$0.00"}},{"$f":"IFERROR('LTC Rev-Exp Region 10'!$R$36/'LTC Rev-Exp Region 10'!$R$9, 0)","v":{"v":0,"d":"$0.00"}},{"$f":"IFERROR('LTC Rev-Exp Region 10'!$S$36/'LTC Rev-Exp Region 10'!$S$9, 0)","v":{"v":0,"d":"$0.00"}}]
["LTC",null,null,{"$f":"Jurat!I$1","v":0},{"$f":"Jurat!D$33","v":"00:00:00"},"Q4","2017-12-31","Region 10","Operating Expense","Medical Expense","LTC Services","2.21","LTC Services Settlements",{"$f":"IFERROR('LTC Rev-Exp Region 10'!$P$37/'LTC Rev-Exp Region 10'!$P$9, 0)","v":{"v":0,"d":"$0.00"}},{"$f":"IFERROR('LTC Rev-Exp Region 10'!$Q$37/'LTC Rev-Exp Region 10'!$Q$9, 0)","v":{"v":0,"d":"$0.00"}},{"$f":"IFERROR('LTC Rev-Exp Region 10'!$R$37/'LTC Rev-Exp Region 10'!$R$9, 0)","v":{"v":0,"d":"$0.00"}},{"$f":"IFERROR('LTC Rev-Exp Region 10'!$S$37/'LTC Rev-Exp Region 10'!$S$9, 0)","v":{"v":0,"d":"$0.00"}}]
["LTC",null,null,{"$f":"Jurat!I$1","v":0},{"$f":"Jurat!D$33","v":"00:00:00"},"Q4","2017-12-31","Region 10","Operating Expense","Medical Expense","Expanded Benefits","3.1","Expanded Benefits FFS",{"$f":"IFERROR('LTC Rev-Exp Region 10'!$P$39/'LTC Rev-Exp Region 10'!$P$9, 0)","v":{"v":0,"d":"$0.00"}},{"$f":"IFERROR('LTC Rev-Exp Region 10'!$Q$39/'LTC Rev-Exp Region 10'!$Q$9, 0)","v":{"v":0,"d":"$0.00"}},{"$f":"IFERROR('LTC Rev-Exp Region 10'!$R$39/'LTC Rev-Exp Region 10'!$R$9, 0)","v":{"v":0,"d":"$0.00"}},{"$f":"IFERROR('LTC Rev-Exp Region 10'!$S$39/'LTC Rev-Exp Region 10'!$S$9, 0)","v":{"v":0,"d":"$0.00"}}]
["LTC",null,null,{"$f":"Jurat!I$1","v":0},{"$f":"Jurat!D$33","v":"00:00:00"},"Q4","2017-12-31","Region 10","Operating Expense","Medical Expense","Expanded Benefits","3.2","Expanded Benefits Subcapitation",{"$f":"IFERROR('LTC Rev-Exp Region 10'!$P$40/'LTC Rev-Exp Region 10'!$P$9, 0)","v":{"v":0,"d":"$0.00"}},{"$f":"IFERROR('LTC Rev-Exp Region 10'!$Q$40/'LTC Rev-Exp Region 10'!$Q$9, 0)","v":{"v":0,"d":"$0.00"}},{"$f":"IFERROR('LTC Rev-Exp Region 10'!$R$40/'LTC Rev-Exp Region 10'!$R$9, 0)","v":{"v":0,"d":"$0.00"}},{"$f":"IFERROR('LTC Rev-Exp Region 10'!$S$40/'LTC Rev-Exp Region 10'!$S$9, 0)","v":{"v":0,"d":"$0.00"}}]
["LTC",null,null,{"$f":"Jurat!I$1","v":0},{"$f":"Jurat!D$33","v":"00:00:00"},"Q4","2017-12-31","Region 10","Operating Expense","Medical Expense","Expanded Benefits","3.3","Ending IBNP for Expanded Benefits",{"$f":"IFERROR('LTC Rev-Exp Region 10'!$P$41/'LTC Rev-Exp Region 10'!$P$9, 0)","v":{"v":0,"d":"$0.00"}},{"$f":"IFERROR('LTC Rev-Exp Region 10'!$Q$41/'LTC Rev-Exp Region 10'!$Q$9, 0)","v":{"v":0,"d":"$0.00"}},{"$f":"IFERROR('LTC Rev-Exp Region 10'!$R$41/'LTC Rev-Exp Region 10'!$R$9, 0)","v":{"v":0,"d":"$0.00"}},{"$f":"IFERROR('LTC Rev-Exp Region 10'!$S$41/'LTC Rev-Exp Region 10'!$S$9, 0)","v":{"v":0,"d":"$0.00"}}]
["LTC",null,null,{"$f":"Jurat!I$1","v":0},{"$f":"Jurat!D$33","v":"00:00:00"},"Q4","2017-12-31","Region 10","Operating Expense","Medical Expense","Expanded Benefits","3.4","Expanded Benefits Settlements",{"$f":"IFERROR('LTC Rev-Exp Region 10'!$P$42/'LTC Rev-Exp Region 10'!$P$9, 0)","v":{"v":0,"d":"$0.00"}},{"$f":"IFERROR('LTC Rev-Exp Region 10'!$Q$42/'LTC Rev-Exp Region 10'!$Q$9, 0)","v":{"v":0,"d":"$0.00"}},{"$f":"IFERROR('LTC Rev-Exp Region 10'!$R$42/'LTC Rev-Exp Region 10'!$R$9, 0)","v":{"v":0,"d":"$0.00"}},{"$f":"IFERROR('LTC Rev-Exp Region 10'!$S$42/'LTC Rev-Exp Region 10'!$S$9, 0)","v":{"v":0,"d":"$0.00"}}]
["LTC",null,null,{"$f":"Jurat!I$1","v":0},{"$f":"Jurat!D$33","v":"00:00:00"},"Q4","2017-12-31","Region 10","Operating Expense","Medical Expense","Other Medical","4.5","TPL & Fraud/Abuse Recoveries",{"$f":"IFERROR('LTC Rev-Exp Region 10'!$P$48/'LTC Rev-Exp Region 10'!$P$9, 0)","v":{"v":0,"d":"$0.00"}},{"$f":"IFERROR('LTC Rev-Exp Region 10'!$Q$48/'LTC Rev-Exp Region 10'!$Q$9, 0)","v":{"v":0,"d":"$0.00"}},{"$f":"IFERROR('LTC Rev-Exp Region 10'!$R$48/'LTC Rev-Exp Region 10'!$R$9, 0)","v":{"v":0,"d":"$0.00"}},{"$f":"IFERROR('LTC Rev-Exp Region 10'!$S$48/'LTC Rev-Exp Region 10'!$S$9, 0)","v":{"v":0,"d":"$0.00"}}]
["LTC",null,null,{"$f":"Jurat!I$1","v":0},{"$f":"Jurat!D$33","v":"00:00:00"},"Q4","2017-12-31","Region 10","Operating Expense","Medical Expense","Other Medical","4.6.1","Premium Deficiency Reserve",{"$f":"IFERROR('LTC Rev-Exp Region 10'!$P$49/'LTC Rev-Exp Region 10'!$P$9, 0)","v":{"v":0,"d":"$0.00"}},{"$f":"IFERROR('LTC Rev-Exp Region 10'!$Q$49/'LTC Rev-Exp Region 10'!$Q$9, 0)","v":{"v":0,"d":"$0.00"}},{"$f":"IFERROR('LTC Rev-Exp Region 10'!$R$49/'LTC Rev-Exp Region 10'!$R$9, 0)","v":{"v":0,"d":"$0.00"}},{"$f":"IFERROR('LTC Rev-Exp Region 10'!$S$49/'LTC Rev-Exp Region 10'!$S$9, 0)","v":{"v":0,"d":"$0.00"}}]
["LTC",null,null,{"$f":"Jurat!I$1","v":0},{"$f":"Jurat!D$33","v":"00:00:00"},"Q4","2017-12-31","Region 10","Operating Expense","Medical Expense","Other Medical","4.8","Reinsurance Premiums",{"$f":"IFERROR('LTC Rev-Exp Region 10'!$P$51/'LTC Rev-Exp Region 10'!$P$9, 0)","v":{"v":0,"d":"$0.00"}},{"$f":"IFERROR('LTC Rev-Exp Region 10'!$Q$51/'LTC Rev-Exp Region 10'!$Q$9, 0)","v":{"v":0,"d":"$0.00"}},{"$f":"IFERROR('LTC Rev-Exp Region 10'!$R$51/'LTC Rev-Exp Region 10'!$R$9, 0)","v":{"v":0,"d":"$0.00"}},{"$f":"IFERROR('LTC Rev-Exp Region 10'!$S$51/'LTC Rev-Exp Region 10'!$S$9, 0)","v":{"v":0,"d":"$0.00"}}]
["LTC",null,null,{"$f":"Jurat!I$1","v":0},{"$f":"Jurat!D$33","v":"00:00:00"},"Q4","2017-12-31","Region 10","Operating Expense","Medical Expense","Other Medical","4.9","Reinsurance Recoveries",{"$f":"IFERROR('LTC Rev-Exp Region 10'!$P$52/'LTC Rev-Exp Region 10'!$P$9, 0)","v":{"v":0,"d":"$0.00"}},{"$f":"IFERROR('LTC Rev-Exp Region 10'!$Q$52/'LTC Rev-Exp Region 10'!$Q$9, 0)","v":{"v":0,"d":"$0.00"}},{"$f":"IFERROR('LTC Rev-Exp Region 10'!$R$52/'LTC Rev-Exp Region 10'!$R$9, 0)","v":{"v":0,"d":"$0.00"}},{"$f":"IFERROR('LTC Rev-Exp Region 10'!$S$52/'LTC Rev-Exp Region 10'!$S$9, 0)","v":{"v":0,"d":"$0.00"}}]
["LTC",null,null,{"$f":"Jurat!I$1","v":0},{"$f":"Jurat!D$33","v":"00:00:00"},"Q4","2017-12-31","Region 10","Operating Expense","Administrative Expense","Administrative","5.1","Salaries & Benefits",{"$f":"IFERROR('LTC Rev-Exp Region 10'!$P$57/'LTC Rev-Exp Region 10'!$P$9, 0)","v":{"v":0,"d":"$0.00"}},{"$f":"IFERROR('LTC Rev-Exp Region 10'!$Q$57/'LTC Rev-Exp Region 10'!$Q$9, 0)","v":{"v":0,"d":"$0.00"}},{"$f":"IFERROR('LTC Rev-Exp Region 10'!$R$57/'LTC Rev-Exp Region 10'!$R$9, 0)","v":{"v":0,"d":"$0.00"}},{"$f":"IFERROR('LTC Rev-Exp Region 10'!$S$57/'LTC Rev-Exp Region 10'!$S$9, 0)","v":{"v":0,"d":"$0.00"}}]
["LTC",null,null,{"$f":"Jurat!I$1","v":0},{"$f":"Jurat!D$33","v":"00:00:00"},"Q4","2017-12-31","Region 10","Operating Expense","Administrative Expense","Administrative","5.2","Administrative Services",{"$f":"IFERROR('LTC Rev-Exp Region 10'!$P$58/'LTC Rev-Exp Region 10'!$P$9, 0)","v":{"v":0,"d":"$0.00"}},{"$f":"IFERROR('LTC Rev-Exp Region 10'!$Q$58/'LTC Rev-Exp Region 10'!$Q$9, 0)","v":{"v":0,"d":"$0.00"}},{"$f":"IFERROR('LTC Rev-Exp Region 10'!$R$58/'LTC Rev-Exp Region 10'!$R$9, 0)","v":{"v":0,"d":"$0.00"}},{"$f":"IFERROR('LTC Rev-Exp Region 10'!$S$58/'LTC Rev-Exp Region 10'!$S$9, 0)","v":{"v":0,"d":"$0.00"}}]
["LTC",null,null,{"$f":"Jurat!I$1","v":0},{"$f":"Jurat!D$33","v":"00:00:00"},"Q4","2017-12-31","Region 10","Operating Expense","Administrative Expense","Administrative","5.3","Information Systems",{"$f":"IFERROR('LTC Rev-Exp Region 10'!$P$59/'LTC Rev-Exp Region 10'!$P$9, 0)","v":{"v":0,"d":"$0.00"}},{"$f":"IFERROR('LTC Rev-Exp Region 10'!$Q$59/'LTC Rev-Exp Region 10'!$Q$9, 0)","v":{"v":0,"d":"$0.00"}},{"$f":"IFERROR('LTC Rev-Exp Region 10'!$R$59/'LTC Rev-Exp Region 10'!$R$9, 0)","v":{"v":0,"d":"$0.00"}},{"$f":"IFERROR('LTC Rev-Exp Region 10'!$S$59/'LTC Rev-Exp Region 10'!$S$9, 0)","v":{"v":0,"d":"$0.00"}}]
["LTC",null,null,{"$f":"Jurat!I$1","v":0},{"$f":"Jurat!D$33","v":"00:00:00"},"Q4","2017-12-31","Region 10","Operating Expense","Administrative Expense","Administrative","5.4","Marketing Expenses",{"$f":"IFERROR('LTC Rev-Exp Region 10'!$P$60/'LTC Rev-Exp Region 10'!$P$9, 0)","v":{"v":0,"d":"$0.00"}},{"$f":"IFERROR('LTC Rev-Exp Region 10'!$Q$60/'LTC Rev-Exp Region 10'!$Q$9, 0)","v":{"v":0,"d":"$0.00"}},{"$f":"IFERROR('LTC Rev-Exp Region 10'!$R$60/'LTC Rev-Exp Region 10'!$R$9, 0)","v":{"v":0,"d":"$0.00"}},{"$f":"IFERROR('LTC Rev-Exp Region 10'!$S$60/'LTC Rev-Exp Region 10'!$S$9, 0)","v":{"v":0,"d":"$0.00"}}]
["LTC",null,null,{"$f":"Jurat!I$1","v":0},{"$f":"Jurat!D$33","v":"00:00:00"},"Q4","2017-12-31","Region 10","Operating Expense","Administrative Expense","Administrative","5.5","General  Administration",{"$f":"IFERROR('LTC Rev-Exp Region 10'!$P$61/'LTC Rev-Exp Region 10'!$P$9, 0)","v":{"v":0,"d":"$0.00"}},{"$f":"IFERROR('LTC Rev-Exp Region 10'!$Q$61/'LTC Rev-Exp Region 10'!$Q$9, 0)","v":{"v":0,"d":"$0.00"}},{"$f":"IFERROR('LTC Rev-Exp Region 10'!$R$61/'LTC Rev-Exp Region 10'!$R$9, 0)","v":{"v":0,"d":"$0.00"}},{"$f":"IFERROR('LTC Rev-Exp Region 10'!$S$61/'LTC Rev-Exp Region 10'!$S$9, 0)","v":{"v":0,"d":"$0.00"}}]
["LTC",null,null,{"$f":"Jurat!I$1","v":0},{"$f":"Jurat!D$33","v":"00:00:00"},"Q4","2017-12-31","Region 10","Operating Expense","Administrative Expense","Administrative","5.6","Compliance/Regulatory",{"$f":"IFERROR('LTC Rev-Exp Region 10'!$P$62/'LTC Rev-Exp Region 10'!$P$9, 0)","v":{"v":0,"d":"$0.00"}},{"$f":"IFERROR('LTC Rev-Exp Region 10'!$Q$62/'LTC Rev-Exp Region 10'!$Q$9, 0)","v":{"v":0,"d":"$0.00"}},{"$f":"IFERROR('LTC Rev-Exp Region 10'!$R$62/'LTC Rev-Exp Region 10'!$R$9, 0)","v":{"v":0,"d":"$0.00"}},{"$f":"IFERROR('LTC Rev-Exp Region 10'!$S$62/'LTC Rev-Exp Region 10'!$S$9, 0)","v":{"v":0,"d":"$0.00"}}]
["LTC",null,null,{"$f":"Jurat!I$1","v":0},{"$f":"Jurat!D$33","v":"00:00:00"},"Q4","2017-12-31","Region 10","Operating Expense","Taxes & Fees","Taxes & Fees","6.1","State Premium Tax",{"$f":"IFERROR('LTC Rev-Exp Region 10'!$P$64/'LTC Rev-Exp Region 10'!$P$9, 0)","v":{"v":0,"d":"$0.00"}},{"$f":"IFERROR('LTC Rev-Exp Region 10'!$Q$64/'LTC Rev-Exp Region 10'!$Q$9, 0)","v":{"v":0,"d":"$0.00"}},{"$f":"IFERROR('LTC Rev-Exp Region 10'!$R$64/'LTC Rev-Exp Region 10'!$R$9, 0)","v":{"v":0,"d":"$0.00"}},{"$f":"IFERROR('LTC Rev-Exp Region 10'!$S$64/'LTC Rev-Exp Region 10'!$S$9, 0)","v":{"v":0,"d":"$0.00"}}]
["LTC",null,null,{"$f":"Jurat!I$1","v":0},{"$f":"Jurat!D$33","v":"00:00:00"},"Q4","2017-12-31","Region 10","Operating Expense","Taxes & Fees","Taxes & Fees","6.2","Department of Insurance Assessments",{"$f":"IFERROR('LTC Rev-Exp Region 10'!$P$65/'LTC Rev-Exp Region 10'!$P$9, 0)","v":{"v":0,"d":"$0.00"}},{"$f":"IFERROR('LTC Rev-Exp Region 10'!$Q$65/'LTC Rev-Exp Region 10'!$Q$9, 0)","v":{"v":0,"d":"$0.00"}},{"$f":"IFERROR('LTC Rev-Exp Region 10'!$R$65/'LTC Rev-Exp Region 10'!$R$9, 0)","v":{"v":0,"d":"$0.00"}},{"$f":"IFERROR('LTC Rev-Exp Region 10'!$S$65/'LTC Rev-Exp Region 10'!$S$9, 0)","v":{"v":0,"d":"$0.00"}}]
["LTC",null,null,{"$f":"Jurat!I$1","v":0},{"$f":"Jurat!D$33","v":"00:00:00"},"Q4","2017-12-31","Region 10","Non-Operating Expense","Income Tax Expense","Income Tax Expense","9.0","Income Tax Expense",{"$f":"IFERROR('LTC Rev-Exp Region 10'!$P$72/'LTC Rev-Exp Region 10'!$P$9, 0)","v":{"v":0,"d":"$0.00"}},{"$f":"IFERROR('LTC Rev-Exp Region 10'!$Q$72/'LTC Rev-Exp Region 10'!$Q$9, 0)","v":{"v":0,"d":"$0.00"}},{"$f":"IFERROR('LTC Rev-Exp Region 10'!$R$72/'LTC Rev-Exp Region 10'!$R$9, 0)","v":{"v":0,"d":"$0.00"}},{"$f":"IFERROR('LTC Rev-Exp Region 10'!$S$72/'LTC Rev-Exp Region 10'!$S$9, 0)","v":{"v":0,"d":"$0.00"}}]
["LTC",null,null,{"$f":"Jurat!I$1","v":0},{"$f":"Jurat!D$33","v":"00:00:00"},"Q1","2017-03-31","Region 11","Operating Revenue","Capitation","Capitation",1.1,"Capitation",{"$f":"IFERROR('LTC Rev-Exp Region 11'!$D$11/'LTC Rev-Exp Region 11'!$D$9, 0)","v":{"v":0,"d":"$0.00"}},{"$f":"IFERROR('LTC Rev-Exp Region 11'!$E$11/'LTC Rev-Exp Region 11'!$E$9, 0)","v":{"v":0,"d":"$0.00"}},{"$f":"IFERROR('LTC Rev-Exp Region 11'!$F$11/'LTC Rev-Exp Region 11'!$F$9, 0)","v":{"v":0,"d":"$0.00"}},{"$f":"IFERROR('LTC Rev-Exp Region 11'!$G$11/'LTC Rev-Exp Region 11'!$G$9, 0)","v":{"v":0,"d":"$0.00"}}]
["LTC",null,null,{"$f":"Jurat!I$1","v":0},{"$f":"Jurat!D$33","v":"00:00:00"},"Q1","2017-03-31","Region 11","Operating Revenue","Capitation","NH Rate Reconciliation",1.2,"NH Rate Reconciliation",{"$f":"IFERROR('LTC Rev-Exp Region 11'!$D$12/'LTC Rev-Exp Region 11'!$D$9, 0)","v":{"v":0,"d":"$0.00"}},{"$f":"IFERROR('LTC Rev-Exp Region 11'!$E$12/'LTC Rev-Exp Region 11'!$E$9, 0)","v":{"v":0,"d":"$0.00"}},{"$f":"IFERROR('LTC Rev-Exp Region 11'!$F$12/'LTC Rev-Exp Region 11'!$F$9, 0)","v":{"v":0,"d":"$0.00"}},{"$f":"IFERROR('LTC Rev-Exp Region 11'!$G$12/'LTC Rev-Exp Region 11'!$G$9, 0)","v":{"v":0,"d":"$0.00"}}]
["LTC",null,null,{"$f":"Jurat!I$1","v":0},{"$f":"Jurat!D$33","v":"00:00:00"},"Q1","2017-03-31","Region 11","Operating Revenue","Other Revenue","Other Revenue",1.3,"Other Revenue",{"$f":"IFERROR('LTC Rev-Exp Region 11'!$D$13/'LTC Rev-Exp Region 11'!$D$9, 0)","v":{"v":0,"d":"$0.00"}},{"$f":"IFERROR('LTC Rev-Exp Region 11'!$E$13/'LTC Rev-Exp Region 11'!$E$9, 0)","v":{"v":0,"d":"$0.00"}},{"$f":"IFERROR('LTC Rev-Exp Region 11'!$F$13/'LTC Rev-Exp Region 11'!$F$9, 0)","v":{"v":0,"d":"$0.00"}},{"$f":"IFERROR('LTC Rev-Exp Region 11'!$G$13/'LTC Rev-Exp Region 11'!$G$9, 0)","v":{"v":0,"d":"$0.00"}}]
["LTC",null,null,{"$f":"Jurat!I$1","v":0},{"$f":"Jurat!D$33","v":"00:00:00"},"Q1","2017-03-31","Region 11","Operating Expense","Medical Expense","NF & Hospice","2.3","Nursing Facility FFS (Medicaid)",{"$f":"IFERROR('LTC Rev-Exp Region 11'!$D$19/'LTC Rev-Exp Region 11'!$D$9, 0)","v":{"v":0,"d":"$0.00"}},{"$f":"IFERROR('LTC Rev-Exp Region 11'!$E$19/'LTC Rev-Exp Region 11'!$E$9, 0)","v":{"v":0,"d":"$0.00"}},{"$f":"IFERROR('LTC Rev-Exp Region 11'!$F$19/'LTC Rev-Exp Region 11'!$F$9, 0)","v":{"v":0,"d":"$0.00"}},{"$f":"IFERROR('LTC Rev-Exp Region 11'!$G$19/'LTC Rev-Exp Region 11'!$G$9, 0)","v":{"v":0,"d":"$0.00"}}]
["LTC",null,null,{"$f":"Jurat!I$1","v":0},{"$f":"Jurat!D$33","v":"00:00:00"},"Q1","2017-03-31","Region 11","Operating Expense","Medical Expense","NF & Hospice","2.4","Nursing Facility FFS (Crossover)",{"$f":"IFERROR('LTC Rev-Exp Region 11'!$D$20/'LTC Rev-Exp Region 11'!$D$9, 0)","v":{"v":0,"d":"$0.00"}},{"$f":"IFERROR('LTC Rev-Exp Region 11'!$E$20/'LTC Rev-Exp Region 11'!$E$9, 0)","v":{"v":0,"d":"$0.00"}},{"$f":"IFERROR('LTC Rev-Exp Region 11'!$F$20/'LTC Rev-Exp Region 11'!$F$9, 0)","v":{"v":0,"d":"$0.00"}},{"$f":"IFERROR('LTC Rev-Exp Region 11'!$G$20/'LTC Rev-Exp Region 11'!$G$9, 0)","v":{"v":0,"d":"$0.00"}}]
["LTC",null,null,{"$f":"Jurat!I$1","v":0},{"$f":"Jurat!D$33","v":"00:00:00"},"Q1","2017-03-31","Region 11","Operating Expense","Medical Expense","NF & Hospice","2.6","Hospice FFS",{"$f":"IFERROR('LTC Rev-Exp Region 11'!$D$22/'LTC Rev-Exp Region 11'!$D$9, 0)","v":{"v":0,"d":"$0.00"}},{"$f":"IFERROR('LTC Rev-Exp Region 11'!$E$22/'LTC Rev-Exp Region 11'!$E$9, 0)","v":{"v":0,"d":"$0.00"}},{"$f":"IFERROR('LTC Rev-Exp Region 11'!$F$22/'LTC Rev-Exp Region 11'!$F$9, 0)","v":{"v":0,"d":"$0.00"}},{"$f":"IFERROR('LTC Rev-Exp Region 11'!$G$22/'LTC Rev-Exp Region 11'!$G$9, 0)","v":{"v":0,"d":"$0.00"}}]
["LTC",null,null,{"$f":"Jurat!I$1","v":0},{"$f":"Jurat!D$33","v":"00:00:00"},"Q1","2017-03-31","Region 11","Operating Expense","Medical Expense","NF & Hospice","2.7","Ending IBNP for NF & Hospice",{"$f":"IFERROR('LTC Rev-Exp Region 11'!$D$23/'LTC Rev-Exp Region 11'!$D$9, 0)","v":{"v":0,"d":"$0.00"}},{"$f":"IFERROR('LTC Rev-Exp Region 11'!$E$23/'LTC Rev-Exp Region 11'!$E$9, 0)","v":{"v":0,"d":"$0.00"}},{"$f":"IFERROR('LTC Rev-Exp Region 11'!$F$23/'LTC Rev-Exp Region 11'!$F$9, 0)","v":{"v":0,"d":"$0.00"}},{"$f":"IFERROR('LTC Rev-Exp Region 11'!$G$23/'LTC Rev-Exp Region 11'!$G$9, 0)","v":{"v":0,"d":"$0.00"}}]
["LTC",null,null,{"$f":"Jurat!I$1","v":0},{"$f":"Jurat!D$33","v":"00:00:00"},"Q1","2017-03-31","Region 11","Operating Expense","Medical Expense","NF & Hospice","2.8","NF & Hospice Subcapitated",{"$f":"IFERROR('LTC Rev-Exp Region 11'!$D$24/'LTC Rev-Exp Region 11'!$D$9, 0)","v":{"v":0,"d":"$0.00"}},{"$f":"IFERROR('LTC Rev-Exp Region 11'!$E$24/'LTC Rev-Exp Region 11'!$E$9, 0)","v":{"v":0,"d":"$0.00"}},{"$f":"IFERROR('LTC Rev-Exp Region 11'!$F$24/'LTC Rev-Exp Region 11'!$F$9, 0)","v":{"v":0,"d":"$0.00"}},{"$f":"IFERROR('LTC Rev-Exp Region 11'!$G$24/'LTC Rev-Exp Region 11'!$G$9, 0)","v":{"v":0,"d":"$0.00"}}]
["LTC",null,null,{"$f":"Jurat!I$1","v":0},{"$f":"Jurat!D$33","v":"00:00:00"},"Q1","2017-03-31","Region 11","Operating Expense","Medical Expense","NF & Hospice","2.9","NF & Hospice Settlements",{"$f":"IFERROR('LTC Rev-Exp Region 11'!$D$25/'LTC Rev-Exp Region 11'!$D$9, 0)","v":{"v":0,"d":"$0.00"}},{"$f":"IFERROR('LTC Rev-Exp Region 11'!$E$25/'LTC Rev-Exp Region 11'!$E$9, 0)","v":{"v":0,"d":"$0.00"}},{"$f":"IFERROR('LTC Rev-Exp Region 11'!$F$25/'LTC Rev-Exp Region 11'!$F$9, 0)","v":{"v":0,"d":"$0.00"}},{"$f":"IFERROR('LTC Rev-Exp Region 11'!$G$25/'LTC Rev-Exp Region 11'!$G$9, 0)","v":{"v":0,"d":"$0.00"}}]
["LTC",null,null,{"$f":"Jurat!I$1","v":0},{"$f":"Jurat!D$33","v":"00:00:00"},"Q1","2017-03-31","Region 11","Operating Expense","Medical Expense","LTC Services","2.11","Assisted Living FFS",{"$f":"IFERROR('LTC Rev-Exp Region 11'!$D$27/'LTC Rev-Exp Region 11'!$D$9, 0)","v":{"v":0,"d":"$0.00"}},{"$f":"IFERROR('LTC Rev-Exp Region 11'!$E$27/'LTC Rev-Exp Region 11'!$E$9, 0)","v":{"v":0,"d":"$0.00"}},{"$f":"IFERROR('LTC Rev-Exp Region 11'!$F$27/'LTC Rev-Exp Region 11'!$F$9, 0)","v":{"v":0,"d":"$0.00"}},{"$f":"IFERROR('LTC Rev-Exp Region 11'!$G$27/'LTC Rev-Exp Region 11'!$G$9, 0)","v":{"v":0,"d":"$0.00"}}]
["LTC",null,null,{"$f":"Jurat!I$1","v":0},{"$f":"Jurat!D$33","v":"00:00:00"},"Q1","2017-03-31","Region 11","Operating Expense","Medical Expense","LTC Services","2.12","Home Health FFS",{"$f":"IFERROR('LTC Rev-Exp Region 11'!$D$28/'LTC Rev-Exp Region 11'!$D$9, 0)","v":{"v":0,"d":"$0.00"}},{"$f":"IFERROR('LTC Rev-Exp Region 11'!$E$28/'LTC Rev-Exp Region 11'!$E$9, 0)","v":{"v":0,"d":"$0.00"}},{"$f":"IFERROR('LTC Rev-Exp Region 11'!$F$28/'LTC Rev-Exp Region 11'!$F$9, 0)","v":{"v":0,"d":"$0.00"}},{"$f":"IFERROR('LTC Rev-Exp Region 11'!$G$28/'LTC Rev-Exp Region 11'!$G$9, 0)","v":{"v":0,"d":"$0.00"}}]
["LTC",null,null,{"$f":"Jurat!I$1","v":0},{"$f":"Jurat!D$33","v":"00:00:00"},"Q1","2017-03-31","Region 11","Operating Expense","Medical Expense","LTC Services","2.13","Medical Equipment/Supplies FFS",{"$f":"IFERROR('LTC Rev-Exp Region 11'!$D$29/'LTC Rev-Exp Region 11'!$D$9, 0)","v":{"v":0,"d":"$0.00"}},{"$f":"IFERROR('LTC Rev-Exp Region 11'!$E$29/'LTC Rev-Exp Region 11'!$E$9, 0)","v":{"v":0,"d":"$0.00"}},{"$f":"IFERROR('LTC Rev-Exp Region 11'!$F$29/'LTC Rev-Exp Region 11'!$F$9, 0)","v":{"v":0,"d":"$0.00"}},{"$f":"IFERROR('LTC Rev-Exp Region 11'!$G$29/'LTC Rev-Exp Region 11'!$G$9, 0)","v":{"v":0,"d":"$0.00"}}]
["LTC",null,null,{"$f":"Jurat!I$1","v":0},{"$f":"Jurat!D$33","v":"00:00:00"},"Q1","2017-03-31","Region 11","Operating Expense","Medical Expense","LTC Services","2.14","Therapy FFS",{"$f":"IFERROR('LTC Rev-Exp Region 11'!$D$30/'LTC Rev-Exp Region 11'!$D$9, 0)","v":{"v":0,"d":"$0.00"}},{"$f":"IFERROR('LTC Rev-Exp Region 11'!$E$30/'LTC Rev-Exp Region 11'!$E$9, 0)","v":{"v":0,"d":"$0.00"}},{"$f":"IFERROR('LTC Rev-Exp Region 11'!$F$30/'LTC Rev-Exp Region 11'!$F$9, 0)","v":{"v":0,"d":"$0.00"}},{"$f":"IFERROR('LTC Rev-Exp Region 11'!$G$30/'LTC Rev-Exp Region 11'!$G$9, 0)","v":{"v":0,"d":"$0.00"}}]
["LTC",null,null,{"$f":"Jurat!I$1","v":0},{"$f":"Jurat!D$33","v":"00:00:00"},"Q1","2017-03-31","Region 11","Operating Expense","Medical Expense","LTC Services","2.15","Transportation FFS",{"$f":"IFERROR('LTC Rev-Exp Region 11'!$D$31/'LTC Rev-Exp Region 11'!$D$9, 0)","v":{"v":0,"d":"$0.00"}},{"$f":"IFERROR('LTC Rev-Exp Region 11'!$E$31/'LTC Rev-Exp Region 11'!$E$9, 0)","v":{"v":0,"d":"$0.00"}},{"$f":"IFERROR('LTC Rev-Exp Region 11'!$F$31/'LTC Rev-Exp Region 11'!$F$9, 0)","v":{"v":0,"d":"$0.00"}},{"$f":"IFERROR('LTC Rev-Exp Region 11'!$G$31/'LTC Rev-Exp Region 11'!$G$9, 0)","v":{"v":0,"d":"$0.00"}}]
["LTC",null,null,{"$f":"Jurat!I$1","v":0},{"$f":"Jurat!D$33","v":"00:00:00"},"Q1","2017-03-31","Region 11","Operating Expense","Medical Expense","LTC Services","2.16","Case Management FFS (Plan Provided)",{"$f":"IFERROR('LTC Rev-Exp Region 11'!$D$32/'LTC Rev-Exp Region 11'!$D$9, 0)","v":{"v":0,"d":"$0.00"}},{"$f":"IFERROR('LTC Rev-Exp Region 11'!$E$32/'LTC Rev-Exp Region 11'!$E$9, 0)","v":{"v":0,"d":"$0.00"}},{"$f":"IFERROR('LTC Rev-Exp Region 11'!$F$32/'LTC Rev-Exp Region 11'!$F$9, 0)","v":{"v":0,"d":"$0.00"}},{"$f":"IFERROR('LTC Rev-Exp Region 11'!$G$32/'LTC Rev-Exp Region 11'!$G$9, 0)","v":{"v":0,"d":"$0.00"}}]
["LTC",null,null,{"$f":"Jurat!I$1","v":0},{"$f":"Jurat!D$33","v":"00:00:00"},"Q1","2017-03-31","Region 11","Operating Expense","Medical Expense","LTC Services","2.17","Case Management FF (Non-Plan Provided)",{"$f":"IFERROR('LTC Rev-Exp Region 11'!$D$33/'LTC Rev-Exp Region 11'!$D$9, 0)","v":{"v":0,"d":"$0.00"}},{"$f":"IFERROR('LTC Rev-Exp Region 11'!$E$33/'LTC Rev-Exp Region 11'!$E$9, 0)","v":{"v":0,"d":"$0.00"}},{"$f":"IFERROR('LTC Rev-Exp Region 11'!$F$33/'LTC Rev-Exp Region 11'!$F$9, 0)","v":{"v":0,"d":"$0.00"}},{"$f":"IFERROR('LTC Rev-Exp Region 11'!$G$33/'LTC Rev-Exp Region 11'!$G$9, 0)","v":{"v":0,"d":"$0.00"}}]
["LTC",null,null,{"$f":"Jurat!I$1","v":0},{"$f":"Jurat!D$33","v":"00:00:00"},"Q1","2017-03-31","Region 11","Operating Expense","Medical Expense","LTC Services","2.18","HCBS FFS",{"$f":"IFERROR('LTC Rev-Exp Region 11'!$D$34/'LTC Rev-Exp Region 11'!$D$9, 0)","v":{"v":0,"d":"$0.00"}},{"$f":"IFERROR('LTC Rev-Exp Region 11'!$E$34/'LTC Rev-Exp Region 11'!$E$9, 0)","v":{"v":0,"d":"$0.00"}},{"$f":"IFERROR('LTC Rev-Exp Region 11'!$F$34/'LTC Rev-Exp Region 11'!$F$9, 0)","v":{"v":0,"d":"$0.00"}},{"$f":"IFERROR('LTC Rev-Exp Region 11'!$G$34/'LTC Rev-Exp Region 11'!$G$9, 0)","v":{"v":0,"d":"$0.00"}}]
["LTC",null,null,{"$f":"Jurat!I$1","v":0},{"$f":"Jurat!D$33","v":"00:00:00"},"Q1","2017-03-31","Region 11","Operating Expense","Medical Expense","LTC Services","2.19","Subcapitated LTC Services",{"$f":"IFERROR('LTC Rev-Exp Region 11'!$D$35/'LTC Rev-Exp Region 11'!$D$9, 0)","v":{"v":0,"d":"$0.00"}},{"$f":"IFERROR('LTC Rev-Exp Region 11'!$E$35/'LTC Rev-Exp Region 11'!$E$9, 0)","v":{"v":0,"d":"$0.00"}},{"$f":"IFERROR('LTC Rev-Exp Region 11'!$F$35/'LTC Rev-Exp Region 11'!$F$9, 0)","v":{"v":0,"d":"$0.00"}},{"$f":"IFERROR('LTC Rev-Exp Region 11'!$G$35/'LTC Rev-Exp Region 11'!$G$9, 0)","v":{"v":0,"d":"$0.00"}}]
["LTC",null,null,{"$f":"Jurat!I$1","v":0},{"$f":"Jurat!D$33","v":"00:00:00"},"Q1","2017-03-31","Region 11","Operating Expense","Medical Expense","LTC Services","2.20","Ending IBNP for Long Term Care Services",{"$f":"IFERROR('LTC Rev-Exp Region 11'!$D$36/'LTC Rev-Exp Region 11'!$D$9, 0)","v":{"v":0,"d":"$0.00"}},{"$f":"IFERROR('LTC Rev-Exp Region 11'!$E$36/'LTC Rev-Exp Region 11'!$E$9, 0)","v":{"v":0,"d":"$0.00"}},{"$f":"IFERROR('LTC Rev-Exp Region 11'!$F$36/'LTC Rev-Exp Region 11'!$F$9, 0)","v":{"v":0,"d":"$0.00"}},{"$f":"IFERROR('LTC Rev-Exp Region 11'!$G$36/'LTC Rev-Exp Region 11'!$G$9, 0)","v":{"v":0,"d":"$0.00"}}]
["LTC",null,null,{"$f":"Jurat!I$1","v":0},{"$f":"Jurat!D$33","v":"00:00:00"},"Q1","2017-03-31","Region 11","Operating Expense","Medical Expense","LTC Services","2.21","LTC Services Settlements",{"$f":"IFERROR('LTC Rev-Exp Region 11'!$D$37/'LTC Rev-Exp Region 11'!$D$9, 0)","v":{"v":0,"d":"$0.00"}},{"$f":"IFERROR('LTC Rev-Exp Region 11'!$E$37/'LTC Rev-Exp Region 11'!$E$9, 0)","v":{"v":0,"d":"$0.00"}},{"$f":"IFERROR('LTC Rev-Exp Region 11'!$F$37/'LTC Rev-Exp Region 11'!$F$9, 0)","v":{"v":0,"d":"$0.00"}},{"$f":"IFERROR('LTC Rev-Exp Region 11'!$G$37/'LTC Rev-Exp Region 11'!$G$9, 0)","v":{"v":0,"d":"$0.00"}}]
["LTC",null,null,{"$f":"Jurat!I$1","v":0},{"$f":"Jurat!D$33","v":"00:00:00"},"Q1","2017-03-31","Region 11","Operating Expense","Medical Expense","Expanded Benefits","3.1","Expanded Benefits FFS",{"$f":"IFERROR('LTC Rev-Exp Region 11'!$D$39/'LTC Rev-Exp Region 11'!$D$9, 0)","v":{"v":0,"d":"$0.00"}},{"$f":"IFERROR('LTC Rev-Exp Region 11'!$E$39/'LTC Rev-Exp Region 11'!$E$9, 0)","v":{"v":0,"d":"$0.00"}},{"$f":"IFERROR('LTC Rev-Exp Region 11'!$F$39/'LTC Rev-Exp Region 11'!$F$9, 0)","v":{"v":0,"d":"$0.00"}},{"$f":"IFERROR('LTC Rev-Exp Region 11'!$G$39/'LTC Rev-Exp Region 11'!$G$9, 0)","v":{"v":0,"d":"$0.00"}}]
["LTC",null,null,{"$f":"Jurat!I$1","v":0},{"$f":"Jurat!D$33","v":"00:00:00"},"Q1","2017-03-31","Region 11","Operating Expense","Medical Expense","Expanded Benefits","3.2","Expanded Benefits Subcapitation",{"$f":"IFERROR('LTC Rev-Exp Region 11'!$D$40/'LTC Rev-Exp Region 11'!$D$9, 0)","v":{"v":0,"d":"$0.00"}},{"$f":"IFERROR('LTC Rev-Exp Region 11'!$E$40/'LTC Rev-Exp Region 11'!$E$9, 0)","v":{"v":0,"d":"$0.00"}},{"$f":"IFERROR('LTC Rev-Exp Region 11'!$F$40/'LTC Rev-Exp Region 11'!$F$9, 0)","v":{"v":0,"d":"$0.00"}},{"$f":"IFERROR('LTC Rev-Exp Region 11'!$G$40/'LTC Rev-Exp Region 11'!$G$9, 0)","v":{"v":0,"d":"$0.00"}}]
["LTC",null,null,{"$f":"Jurat!I$1","v":0},{"$f":"Jurat!D$33","v":"00:00:00"},"Q1","2017-03-31","Region 11","Operating Expense","Medical Expense","Expanded Benefits","3.3","Ending IBNP for Expanded Benefits",{"$f":"IFERROR('LTC Rev-Exp Region 11'!$D$41/'LTC Rev-Exp Region 11'!$D$9, 0)","v":{"v":0,"d":"$0.00"}},{"$f":"IFERROR('LTC Rev-Exp Region 11'!$E$41/'LTC Rev-Exp Region 11'!$E$9, 0)","v":{"v":0,"d":"$0.00"}},{"$f":"IFERROR('LTC Rev-Exp Region 11'!$F$41/'LTC Rev-Exp Region 11'!$F$9, 0)","v":{"v":0,"d":"$0.00"}},{"$f":"IFERROR('LTC Rev-Exp Region 11'!$G$41/'LTC Rev-Exp Region 11'!$G$9, 0)","v":{"v":0,"d":"$0.00"}}]
["LTC",null,null,{"$f":"Jurat!I$1","v":0},{"$f":"Jurat!D$33","v":"00:00:00"},"Q1","2017-03-31","Region 11","Operating Expense","Medical Expense","Expanded Benefits","3.4","Expanded Benefits Settlements",{"$f":"IFERROR('LTC Rev-Exp Region 11'!$D$42/'LTC Rev-Exp Region 11'!$D$9, 0)","v":{"v":0,"d":"$0.00"}},{"$f":"IFERROR('LTC Rev-Exp Region 11'!$E$42/'LTC Rev-Exp Region 11'!$E$9, 0)","v":{"v":0,"d":"$0.00"}},{"$f":"IFERROR('LTC Rev-Exp Region 11'!$F$42/'LTC Rev-Exp Region 11'!$F$9, 0)","v":{"v":0,"d":"$0.00"}},{"$f":"IFERROR('LTC Rev-Exp Region 11'!$G$42/'LTC Rev-Exp Region 11'!$G$9, 0)","v":{"v":0,"d":"$0.00"}}]
["LTC",null,null,{"$f":"Jurat!I$1","v":0},{"$f":"Jurat!D$33","v":"00:00:00"},"Q1","2017-03-31","Region 11","Operating Expense","Medical Expense","Other Medical","4.5","TPL & Fraud/Abuse Recoveries",{"$f":"IFERROR('LTC Rev-Exp Region 11'!$D$48/'LTC Rev-Exp Region 11'!$D$9, 0)","v":{"v":0,"d":"$0.00"}},{"$f":"IFERROR('LTC Rev-Exp Region 11'!$E$48/'LTC Rev-Exp Region 11'!$E$9, 0)","v":{"v":0,"d":"$0.00"}},{"$f":"IFERROR('LTC Rev-Exp Region 11'!$F$48/'LTC Rev-Exp Region 11'!$F$9, 0)","v":{"v":0,"d":"$0.00"}},{"$f":"IFERROR('LTC Rev-Exp Region 11'!$G$48/'LTC Rev-Exp Region 11'!$G$9, 0)","v":{"v":0,"d":"$0.00"}}]
["LTC",null,null,{"$f":"Jurat!I$1","v":0},{"$f":"Jurat!D$33","v":"00:00:00"},"Q1","2017-03-31","Region 11","Operating Expense","Medical Expense","Other Medical","4.6.1","Premium Deficiency Reserve",{"$f":"IFERROR('LTC Rev-Exp Region 11'!$D$49/'LTC Rev-Exp Region 11'!$D$9, 0)","v":{"v":0,"d":"$0.00"}},{"$f":"IFERROR('LTC Rev-Exp Region 11'!$E$49/'LTC Rev-Exp Region 11'!$E$9, 0)","v":{"v":0,"d":"$0.00"}},{"$f":"IFERROR('LTC Rev-Exp Region 11'!$F$49/'LTC Rev-Exp Region 11'!$F$9, 0)","v":{"v":0,"d":"$0.00"}},{"$f":"IFERROR('LTC Rev-Exp Region 11'!$G$49/'LTC Rev-Exp Region 11'!$G$9, 0)","v":{"v":0,"d":"$0.00"}}]
["LTC",null,null,{"$f":"Jurat!I$1","v":0},{"$f":"Jurat!D$33","v":"00:00:00"},"Q1","2017-03-31","Region 11","Operating Expense","Medical Expense","Other Medical","4.8","Reinsurance Premiums",{"$f":"IFERROR('LTC Rev-Exp Region 11'!$D$51/'LTC Rev-Exp Region 11'!$D$9, 0)","v":{"v":0,"d":"$0.00"}},{"$f":"IFERROR('LTC Rev-Exp Region 11'!$E$51/'LTC Rev-Exp Region 11'!$E$9, 0)","v":{"v":0,"d":"$0.00"}},{"$f":"IFERROR('LTC Rev-Exp Region 11'!$F$51/'LTC Rev-Exp Region 11'!$F$9, 0)","v":{"v":0,"d":"$0.00"}},{"$f":"IFERROR('LTC Rev-Exp Region 11'!$G$51/'LTC Rev-Exp Region 11'!$G$9, 0)","v":{"v":0,"d":"$0.00"}}]
["LTC",null,null,{"$f":"Jurat!I$1","v":0},{"$f":"Jurat!D$33","v":"00:00:00"},"Q1","2017-03-31","Region 11","Operating Expense","Medical Expense","Other Medical","4.9","Reinsurance Recoveries",{"$f":"IFERROR('LTC Rev-Exp Region 11'!$D$52/'LTC Rev-Exp Region 11'!$D$9, 0)","v":{"v":0,"d":"$0.00"}},{"$f":"IFERROR('LTC Rev-Exp Region 11'!$E$52/'LTC Rev-Exp Region 11'!$E$9, 0)","v":{"v":0,"d":"$0.00"}},{"$f":"IFERROR('LTC Rev-Exp Region 11'!$F$52/'LTC Rev-Exp Region 11'!$F$9, 0)","v":{"v":0,"d":"$0.00"}},{"$f":"IFERROR('LTC Rev-Exp Region 11'!$G$52/'LTC Rev-Exp Region 11'!$G$9, 0)","v":{"v":0,"d":"$0.00"}}]
["LTC",null,null,{"$f":"Jurat!I$1","v":0},{"$f":"Jurat!D$33","v":"00:00:00"},"Q1","2017-03-31","Region 11","Operating Expense","Administrative Expense","Administrative","5.1","Salaries & Benefits",{"$f":"IFERROR('LTC Rev-Exp Region 11'!$D$57/'LTC Rev-Exp Region 11'!$D$9, 0)","v":{"v":0,"d":"$0.00"}},{"$f":"IFERROR('LTC Rev-Exp Region 11'!$E$57/'LTC Rev-Exp Region 11'!$D$9, 0)","v":{"v":0,"d":"$0.00"}},{"$f":"IFERROR('LTC Rev-Exp Region 11'!$F$57/'LTC Rev-Exp Region 11'!$D$9, 0)","v":{"v":0,"d":"$0.00"}},{"$f":"IFERROR('LTC Rev-Exp Region 11'!$G$57/'LTC Rev-Exp Region 11'!$D$9, 0)","v":{"v":0,"d":"$0.00"}}]
["LTC",null,null,{"$f":"Jurat!I$1","v":0},{"$f":"Jurat!D$33","v":"00:00:00"},"Q1","2017-03-31","Region 11","Operating Expense","Administrative Expense","Administrative","5.2","Administrative Services",{"$f":"IFERROR('LTC Rev-Exp Region 11'!$D$58/'LTC Rev-Exp Region 11'!$D$9, 0)","v":{"v":0,"d":"$0.00"}},{"$f":"IFERROR('LTC Rev-Exp Region 11'!$E$58/'LTC Rev-Exp Region 11'!$D$9, 0)","v":{"v":0,"d":"$0.00"}},{"$f":"IFERROR('LTC Rev-Exp Region 11'!$F$58/'LTC Rev-Exp Region 11'!$D$9, 0)","v":{"v":0,"d":"$0.00"}},{"$f":"IFERROR('LTC Rev-Exp Region 11'!$G$58/'LTC Rev-Exp Region 11'!$D$9, 0)","v":{"v":0,"d":"$0.00"}}]
["LTC",null,null,{"$f":"Jurat!I$1","v":0},{"$f":"Jurat!D$33","v":"00:00:00"},"Q1","2017-03-31","Region 11","Operating Expense","Administrative Expense","Administrative","5.3","Information Systems",{"$f":"IFERROR('LTC Rev-Exp Region 11'!$D$59/'LTC Rev-Exp Region 11'!$D$9, 0)","v":{"v":0,"d":"$0.00"}},{"$f":"IFERROR('LTC Rev-Exp Region 11'!$E$59/'LTC Rev-Exp Region 11'!$D$9, 0)","v":{"v":0,"d":"$0.00"}},{"$f":"IFERROR('LTC Rev-Exp Region 11'!$F$59/'LTC Rev-Exp Region 11'!$D$9, 0)","v":{"v":0,"d":"$0.00"}},{"$f":"IFERROR('LTC Rev-Exp Region 11'!$G$59/'LTC Rev-Exp Region 11'!$D$9, 0)","v":{"v":0,"d":"$0.00"}}]
["LTC",null,null,{"$f":"Jurat!I$1","v":0},{"$f":"Jurat!D$33","v":"00:00:00"},"Q1","2017-03-31","Region 11","Operating Expense","Administrative Expense","Administrative","5.4","Marketing Expenses",{"$f":"IFERROR('LTC Rev-Exp Region 11'!$D$60/'LTC Rev-Exp Region 11'!$D$9, 0)","v":{"v":0,"d":"$0.00"}},{"$f":"IFERROR('LTC Rev-Exp Region 11'!$E$60/'LTC Rev-Exp Region 11'!$D$9, 0)","v":{"v":0,"d":"$0.00"}},{"$f":"IFERROR('LTC Rev-Exp Region 11'!$F$60/'LTC Rev-Exp Region 11'!$D$9, 0)","v":{"v":0,"d":"$0.00"}},{"$f":"IFERROR('LTC Rev-Exp Region 11'!$G$60/'LTC Rev-Exp Region 11'!$D$9, 0)","v":{"v":0,"d":"$0.00"}}]
["LTC",null,null,{"$f":"Jurat!I$1","v":0},{"$f":"Jurat!D$33","v":"00:00:00"},"Q1","2017-03-31","Region 11","Operating Expense","Administrative Expense","Administrative","5.5","General  Administration",{"$f":"IFERROR('LTC Rev-Exp Region 11'!$D$61/'LTC Rev-Exp Region 11'!$D$9, 0)","v":{"v":0,"d":"$0.00"}},{"$f":"IFERROR('LTC Rev-Exp Region 11'!$E$61/'LTC Rev-Exp Region 11'!$D$9, 0)","v":{"v":0,"d":"$0.00"}},{"$f":"IFERROR('LTC Rev-Exp Region 11'!$F$61/'LTC Rev-Exp Region 11'!$D$9, 0)","v":{"v":0,"d":"$0.00"}},{"$f":"IFERROR('LTC Rev-Exp Region 11'!$G$61/'LTC Rev-Exp Region 11'!$D$9, 0)","v":{"v":0,"d":"$0.00"}}]
["LTC",null,null,{"$f":"Jurat!I$1","v":0},{"$f":"Jurat!D$33","v":"00:00:00"},"Q1","2017-03-31","Region 11","Operating Expense","Administrative Expense","Administrative","5.6","Compliance/Regulatory",{"$f":"IFERROR('LTC Rev-Exp Region 11'!$D$62/'LTC Rev-Exp Region 11'!$D$9, 0)","v":{"v":0,"d":"$0.00"}},{"$f":"IFERROR('LTC Rev-Exp Region 11'!$E$62/'LTC Rev-Exp Region 11'!$D$9, 0)","v":{"v":0,"d":"$0.00"}},{"$f":"IFERROR('LTC Rev-Exp Region 11'!$F$62/'LTC Rev-Exp Region 11'!$D$9, 0)","v":{"v":0,"d":"$0.00"}},{"$f":"IFERROR('LTC Rev-Exp Region 11'!$G$62/'LTC Rev-Exp Region 11'!$D$9, 0)","v":{"v":0,"d":"$0.00"}}]
["LTC",null,null,{"$f":"Jurat!I$1","v":0},{"$f":"Jurat!D$33","v":"00:00:00"},"Q1","2017-03-31","Region 11","Operating Expense","Taxes & Fees","Taxes & Fees","6.1","State Premium Tax",{"$f":"IFERROR('LTC Rev-Exp Region 11'!$D$64/'LTC Rev-Exp Region 11'!$D$9, 0)","v":{"v":0,"d":"$0.00"}},{"$f":"IFERROR('LTC Rev-Exp Region 11'!$E$64/'LTC Rev-Exp Region 11'!$E$9, 0)","v":{"v":0,"d":"$0.00"}},{"$f":"IFERROR('LTC Rev-Exp Region 11'!$F$64/'LTC Rev-Exp Region 11'!$F$9, 0)","v":{"v":0,"d":"$0.00"}},{"$f":"IFERROR('LTC Rev-Exp Region 11'!$G$64/'LTC Rev-Exp Region 11'!$G$9, 0)","v":{"v":0,"d":"$0.00"}}]
["LTC",null,null,{"$f":"Jurat!I$1","v":0},{"$f":"Jurat!D$33","v":"00:00:00"},"Q1","2017-03-31","Region 11","Operating Expense","Taxes & Fees","Taxes & Fees","6.2","Department of Insurance Assessments",{"$f":"IFERROR('LTC Rev-Exp Region 11'!$D$65/'LTC Rev-Exp Region 11'!$D$9, 0)","v":{"v":0,"d":"$0.00"}},{"$f":"IFERROR('LTC Rev-Exp Region 11'!$E$65/'LTC Rev-Exp Region 11'!$E$9, 0)","v":{"v":0,"d":"$0.00"}},{"$f":"IFERROR('LTC Rev-Exp Region 11'!$F$65/'LTC Rev-Exp Region 11'!$F$9, 0)","v":{"v":0,"d":"$0.00"}},{"$f":"IFERROR('LTC Rev-Exp Region 11'!$G$65/'LTC Rev-Exp Region 11'!$G$9, 0)","v":{"v":0,"d":"$0.00"}}]
["LTC",null,null,{"$f":"Jurat!I$1","v":0},{"$f":"Jurat!D$33","v":"00:00:00"},"Q1","2017-03-31","Region 11","Non-Operating Expense","Income Tax Expense","Income Tax Expense","9.0","Income Tax Expense",{"$f":"IFERROR('LTC Rev-Exp Region 11'!$D$72/'LTC Rev-Exp Region 11'!$D$9, 0)","v":{"v":0,"d":"$0.00"}},{"$f":"IFERROR('LTC Rev-Exp Region 11'!$E$72/'LTC Rev-Exp Region 11'!$E$9, 0)","v":{"v":0,"d":"$0.00"}},{"$f":"IFERROR('LTC Rev-Exp Region 11'!$F$72/'LTC Rev-Exp Region 11'!$F$9, 0)","v":{"v":0,"d":"$0.00"}},{"$f":"IFERROR('LTC Rev-Exp Region 11'!$G$72/'LTC Rev-Exp Region 11'!$G$9, 0)","v":{"v":0,"d":"$0.00"}}]
["LTC",null,null,{"$f":"Jurat!I$1","v":0},{"$f":"Jurat!D$33","v":"00:00:00"},"Q2","2017-06-30","Region 11","Operating Revenue","Capitation","Capitation",1.1,"Capitation",{"$f":"IFERROR('LTC Rev-Exp Region 11'!$H$11/'LTC Rev-Exp Region 11'!$H$9, 0)","v":{"v":0,"d":"$0.00"}},{"$f":"IFERROR('LTC Rev-Exp Region 11'!$I$11/'LTC Rev-Exp Region 11'!$I$9, 0)","v":{"v":0,"d":"$0.00"}},{"$f":"IFERROR('LTC Rev-Exp Region 11'!$J$11/'LTC Rev-Exp Region 11'!$J$9, 0)","v":{"v":0,"d":"$0.00"}},{"$f":"IFERROR('LTC Rev-Exp Region 11'!$K$11/'LTC Rev-Exp Region 11'!$K$9, 0)","v":{"v":0,"d":"$0.00"}}]
["LTC",null,null,{"$f":"Jurat!I$1","v":0},{"$f":"Jurat!D$33","v":"00:00:00"},"Q2","2017-06-30","Region 11","Operating Revenue","Capitation","NH Rate Reconciliation",1.2,"NH Rate Reconciliation",{"$f":"IFERROR('LTC Rev-Exp Region 11'!$H$12/'LTC Rev-Exp Region 11'!$H$9, 0)","v":{"v":0,"d":"$0.00"}},{"$f":"IFERROR('LTC Rev-Exp Region 11'!$I$12/'LTC Rev-Exp Region 11'!$I$9, 0)","v":{"v":0,"d":"$0.00"}},{"$f":"IFERROR('LTC Rev-Exp Region 11'!$J$12/'LTC Rev-Exp Region 11'!$J$9, 0)","v":{"v":0,"d":"$0.00"}},{"$f":"IFERROR('LTC Rev-Exp Region 11'!$K$12/'LTC Rev-Exp Region 11'!$K$9, 0)","v":{"v":0,"d":"$0.00"}}]
["LTC",null,null,{"$f":"Jurat!I$1","v":0},{"$f":"Jurat!D$33","v":"00:00:00"},"Q2","2017-06-30","Region 11","Operating Revenue","Other Revenue","Other Revenue",1.3,"Other Revenue",{"$f":"IFERROR('LTC Rev-Exp Region 11'!$H$13/'LTC Rev-Exp Region 11'!$H$9, 0)","v":{"v":0,"d":"$0.00"}},{"$f":"IFERROR('LTC Rev-Exp Region 11'!$I$13/'LTC Rev-Exp Region 11'!$I$9, 0)","v":{"v":0,"d":"$0.00"}},{"$f":"IFERROR('LTC Rev-Exp Region 11'!$J$13/'LTC Rev-Exp Region 11'!$J$9, 0)","v":{"v":0,"d":"$0.00"}},{"$f":"IFERROR('LTC Rev-Exp Region 11'!$K$13/'LTC Rev-Exp Region 11'!$K$9, 0)","v":{"v":0,"d":"$0.00"}}]
["LTC",null,null,{"$f":"Jurat!I$1","v":0},{"$f":"Jurat!D$33","v":"00:00:00"},"Q2","2017-06-30","Region 11","Operating Expense","Medical Expense","NF & Hospice","2.3","Nursing Facility FFS (Medicaid)",{"$f":"IFERROR('LTC Rev-Exp Region 11'!$H$19/'LTC Rev-Exp Region 11'!$H$9, 0)","v":{"v":0,"d":"$0.00"}},{"$f":"IFERROR('LTC Rev-Exp Region 11'!$I$19/'LTC Rev-Exp Region 11'!$I$9, 0)","v":{"v":0,"d":"$0.00"}},{"$f":"IFERROR('LTC Rev-Exp Region 11'!$J$19/'LTC Rev-Exp Region 11'!$J$9, 0)","v":{"v":0,"d":"$0.00"}},{"$f":"IFERROR('LTC Rev-Exp Region 11'!$K$19/'LTC Rev-Exp Region 11'!$K$9, 0)","v":{"v":0,"d":"$0.00"}}]
["LTC",null,null,{"$f":"Jurat!I$1","v":0},{"$f":"Jurat!D$33","v":"00:00:00"},"Q2","2017-06-30","Region 11","Operating Expense","Medical Expense","NF & Hospice","2.4","Nursing Facility FFS (Crossover)",{"$f":"IFERROR('LTC Rev-Exp Region 11'!$H$20/'LTC Rev-Exp Region 11'!$H$9, 0)","v":{"v":0,"d":"$0.00"}},{"$f":"IFERROR('LTC Rev-Exp Region 11'!$I$20/'LTC Rev-Exp Region 11'!$I$9, 0)","v":{"v":0,"d":"$0.00"}},{"$f":"IFERROR('LTC Rev-Exp Region 11'!$J$20/'LTC Rev-Exp Region 11'!$J$9, 0)","v":{"v":0,"d":"$0.00"}},{"$f":"IFERROR('LTC Rev-Exp Region 11'!$K$20/'LTC Rev-Exp Region 11'!$K$9, 0)","v":{"v":0,"d":"$0.00"}}]
["LTC",null,null,{"$f":"Jurat!I$1","v":0},{"$f":"Jurat!D$33","v":"00:00:00"},"Q2","2017-06-30","Region 11","Operating Expense","Medical Expense","NF & Hospice","2.6","Hospice FFS",{"$f":"IFERROR('LTC Rev-Exp Region 11'!$H$22/'LTC Rev-Exp Region 11'!$H$9, 0)","v":{"v":0,"d":"$0.00"}},{"$f":"IFERROR('LTC Rev-Exp Region 11'!$I$22/'LTC Rev-Exp Region 11'!$I$9, 0)","v":{"v":0,"d":"$0.00"}},{"$f":"IFERROR('LTC Rev-Exp Region 11'!$J$22/'LTC Rev-Exp Region 11'!$J$9, 0)","v":{"v":0,"d":"$0.00"}},{"$f":"IFERROR('LTC Rev-Exp Region 11'!$K$22/'LTC Rev-Exp Region 11'!$K$9, 0)","v":{"v":0,"d":"$0.00"}}]
["LTC",null,null,{"$f":"Jurat!I$1","v":0},{"$f":"Jurat!D$33","v":"00:00:00"},"Q2","2017-06-30","Region 11","Operating Expense","Medical Expense","NF & Hospice","2.7","Ending IBNP for NF & Hospice",{"$f":"IFERROR('LTC Rev-Exp Region 11'!$H$23/'LTC Rev-Exp Region 11'!$H$9, 0)","v":{"v":0,"d":"$0.00"}},{"$f":"IFERROR('LTC Rev-Exp Region 11'!$I$23/'LTC Rev-Exp Region 11'!$I$9, 0)","v":{"v":0,"d":"$0.00"}},{"$f":"IFERROR('LTC Rev-Exp Region 11'!$J$23/'LTC Rev-Exp Region 11'!$J$9, 0)","v":{"v":0,"d":"$0.00"}},{"$f":"IFERROR('LTC Rev-Exp Region 11'!$K$23/'LTC Rev-Exp Region 11'!$K$9, 0)","v":{"v":0,"d":"$0.00"}}]
["LTC",null,null,{"$f":"Jurat!I$1","v":0},{"$f":"Jurat!D$33","v":"00:00:00"},"Q2","2017-06-30","Region 11","Operating Expense","Medical Expense","NF & Hospice","2.8","NF & Hospice Subcapitated",{"$f":"IFERROR('LTC Rev-Exp Region 11'!$H$24/'LTC Rev-Exp Region 11'!$H$9, 0)","v":{"v":0,"d":"$0.00"}},{"$f":"IFERROR('LTC Rev-Exp Region 11'!$I$24/'LTC Rev-Exp Region 11'!$I$9, 0)","v":{"v":0,"d":"$0.00"}},{"$f":"IFERROR('LTC Rev-Exp Region 11'!$J$24/'LTC Rev-Exp Region 11'!$J$9, 0)","v":{"v":0,"d":"$0.00"}},{"$f":"IFERROR('LTC Rev-Exp Region 11'!$K$24/'LTC Rev-Exp Region 11'!$K$9, 0)","v":{"v":0,"d":"$0.00"}}]
["LTC",null,null,{"$f":"Jurat!I$1","v":0},{"$f":"Jurat!D$33","v":"00:00:00"},"Q2","2017-06-30","Region 11","Operating Expense","Medical Expense","NF & Hospice","2.9","NF & Hospice Settlements",{"$f":"IFERROR('LTC Rev-Exp Region 11'!$H$25/'LTC Rev-Exp Region 11'!$H$9, 0)","v":{"v":0,"d":"$0.00"}},{"$f":"IFERROR('LTC Rev-Exp Region 11'!$I$25/'LTC Rev-Exp Region 11'!$I$9, 0)","v":{"v":0,"d":"$0.00"}},{"$f":"IFERROR('LTC Rev-Exp Region 11'!$J$25/'LTC Rev-Exp Region 11'!$J$9, 0)","v":{"v":0,"d":"$0.00"}},{"$f":"IFERROR('LTC Rev-Exp Region 11'!$K$25/'LTC Rev-Exp Region 11'!$K$9, 0)","v":{"v":0,"d":"$0.00"}}]
["LTC",null,null,{"$f":"Jurat!I$1","v":0},{"$f":"Jurat!D$33","v":"00:00:00"},"Q2","2017-06-30","Region 11","Operating Expense","Medical Expense","LTC Services","2.11","Assisted Living FFS",{"$f":"IFERROR('LTC Rev-Exp Region 11'!$H$27/'LTC Rev-Exp Region 11'!$H$9, 0)","v":{"v":0,"d":"$0.00"}},{"$f":"IFERROR('LTC Rev-Exp Region 11'!$I$27/'LTC Rev-Exp Region 11'!$I$9, 0)","v":{"v":0,"d":"$0.00"}},{"$f":"IFERROR('LTC Rev-Exp Region 11'!$J$27/'LTC Rev-Exp Region 11'!$J$9, 0)","v":{"v":0,"d":"$0.00"}},{"$f":"IFERROR('LTC Rev-Exp Region 11'!$K$27/'LTC Rev-Exp Region 11'!$K$9, 0)","v":{"v":0,"d":"$0.00"}}]
["LTC",null,null,{"$f":"Jurat!I$1","v":0},{"$f":"Jurat!D$33","v":"00:00:00"},"Q2","2017-06-30","Region 11","Operating Expense","Medical Expense","LTC Services","2.12","Home Health FFS",{"$f":"IFERROR('LTC Rev-Exp Region 11'!$H$28/'LTC Rev-Exp Region 11'!$H$9, 0)","v":{"v":0,"d":"$0.00"}},{"$f":"IFERROR('LTC Rev-Exp Region 11'!$I$28/'LTC Rev-Exp Region 11'!$I$9, 0)","v":{"v":0,"d":"$0.00"}},{"$f":"IFERROR('LTC Rev-Exp Region 11'!$J$28/'LTC Rev-Exp Region 11'!$J$9, 0)","v":{"v":0,"d":"$0.00"}},{"$f":"IFERROR('LTC Rev-Exp Region 11'!$K$28/'LTC Rev-Exp Region 11'!$K$9, 0)","v":{"v":0,"d":"$0.00"}}]
["LTC",null,null,{"$f":"Jurat!I$1","v":0},{"$f":"Jurat!D$33","v":"00:00:00"},"Q2","2017-06-30","Region 11","Operating Expense","Medical Expense","LTC Services","2.13","Medical Equipment/Supplies FFS",{"$f":"IFERROR('LTC Rev-Exp Region 11'!$H$29/'LTC Rev-Exp Region 11'!$H$9, 0)","v":{"v":0,"d":"$0.00"}},{"$f":"IFERROR('LTC Rev-Exp Region 11'!$I$29/'LTC Rev-Exp Region 11'!$I$9, 0)","v":{"v":0,"d":"$0.00"}},{"$f":"IFERROR('LTC Rev-Exp Region 11'!$J$29/'LTC Rev-Exp Region 11'!$J$9, 0)","v":{"v":0,"d":"$0.00"}},{"$f":"IFERROR('LTC Rev-Exp Region 11'!$K$29/'LTC Rev-Exp Region 11'!$K$9, 0)","v":{"v":0,"d":"$0.00"}}]
["LTC",null,null,{"$f":"Jurat!I$1","v":0},{"$f":"Jurat!D$33","v":"00:00:00"},"Q2","2017-06-30","Region 11","Operating Expense","Medical Expense","LTC Services","2.14","Therapy FFS",{"$f":"IFERROR('LTC Rev-Exp Region 11'!$H$30/'LTC Rev-Exp Region 11'!$H$9, 0)","v":{"v":0,"d":"$0.00"}},{"$f":"IFERROR('LTC Rev-Exp Region 11'!$I$30/'LTC Rev-Exp Region 11'!$I$9, 0)","v":{"v":0,"d":"$0.00"}},{"$f":"IFERROR('LTC Rev-Exp Region 11'!$J$30/'LTC Rev-Exp Region 11'!$J$9, 0)","v":{"v":0,"d":"$0.00"}},{"$f":"IFERROR('LTC Rev-Exp Region 11'!$K$30/'LTC Rev-Exp Region 11'!$K$9, 0)","v":{"v":0,"d":"$0.00"}}]
["LTC",null,null,{"$f":"Jurat!I$1","v":0},{"$f":"Jurat!D$33","v":"00:00:00"},"Q2","2017-06-30","Region 11","Operating Expense","Medical Expense","LTC Services","2.15","Transportation FFS",{"$f":"IFERROR('LTC Rev-Exp Region 11'!$H$31/'LTC Rev-Exp Region 11'!$H$9, 0)","v":{"v":0,"d":"$0.00"}},{"$f":"IFERROR('LTC Rev-Exp Region 11'!$I$31/'LTC Rev-Exp Region 11'!$I$9, 0)","v":{"v":0,"d":"$0.00"}},{"$f":"IFERROR('LTC Rev-Exp Region 11'!$J$31/'LTC Rev-Exp Region 11'!$J$9, 0)","v":{"v":0,"d":"$0.00"}},{"$f":"IFERROR('LTC Rev-Exp Region 11'!$K$31/'LTC Rev-Exp Region 11'!$K$9, 0)","v":{"v":0,"d":"$0.00"}}]
["LTC",null,null,{"$f":"Jurat!I$1","v":0},{"$f":"Jurat!D$33","v":"00:00:00"},"Q2","2017-06-30","Region 11","Operating Expense","Medical Expense","LTC Services","2.16","Case Management FFS (Plan Provided)",{"$f":"IFERROR('LTC Rev-Exp Region 11'!$H$32/'LTC Rev-Exp Region 11'!$H$9, 0)","v":{"v":0,"d":"$0.00"}},{"$f":"IFERROR('LTC Rev-Exp Region 11'!$I$32/'LTC Rev-Exp Region 11'!$I$9, 0)","v":{"v":0,"d":"$0.00"}},{"$f":"IFERROR('LTC Rev-Exp Region 11'!$J$32/'LTC Rev-Exp Region 11'!$J$9, 0)","v":{"v":0,"d":"$0.00"}},{"$f":"IFERROR('LTC Rev-Exp Region 11'!$K$32/'LTC Rev-Exp Region 11'!$K$9, 0)","v":{"v":0,"d":"$0.00"}}]
["LTC",null,null,{"$f":"Jurat!I$1","v":0},{"$f":"Jurat!D$33","v":"00:00:00"},"Q2","2017-06-30","Region 11","Operating Expense","Medical Expense","LTC Services","2.17","Case Management FF (Non-Plan Provided)",{"$f":"IFERROR('LTC Rev-Exp Region 11'!$H$33/'LTC Rev-Exp Region 11'!$H$9, 0)","v":{"v":0,"d":"$0.00"}},{"$f":"IFERROR('LTC Rev-Exp Region 11'!$I$33/'LTC Rev-Exp Region 11'!$I$9, 0)","v":{"v":0,"d":"$0.00"}},{"$f":"IFERROR('LTC Rev-Exp Region 11'!$J$33/'LTC Rev-Exp Region 11'!$J$9, 0)","v":{"v":0,"d":"$0.00"}},{"$f":"IFERROR('LTC Rev-Exp Region 11'!$K$33/'LTC Rev-Exp Region 11'!$K$9, 0)","v":{"v":0,"d":"$0.00"}}]
["LTC",null,null,{"$f":"Jurat!I$1","v":0},{"$f":"Jurat!D$33","v":"00:00:00"},"Q2","2017-06-30","Region 11","Operating Expense","Medical Expense","LTC Services","2.18","HCBS FFS",{"$f":"IFERROR('LTC Rev-Exp Region 11'!$H$34/'LTC Rev-Exp Region 11'!$H$9, 0)","v":{"v":0,"d":"$0.00"}},{"$f":"IFERROR('LTC Rev-Exp Region 11'!$I$34/'LTC Rev-Exp Region 11'!$I$9, 0)","v":{"v":0,"d":"$0.00"}},{"$f":"IFERROR('LTC Rev-Exp Region 11'!$J$34/'LTC Rev-Exp Region 11'!$J$9, 0)","v":{"v":0,"d":"$0.00"}},{"$f":"IFERROR('LTC Rev-Exp Region 11'!$K$34/'LTC Rev-Exp Region 11'!$K$9, 0)","v":{"v":0,"d":"$0.00"}}]
["LTC",null,null,{"$f":"Jurat!I$1","v":0},{"$f":"Jurat!D$33","v":"00:00:00"},"Q2","2017-06-30","Region 11","Operating Expense","Medical Expense","LTC Services","2.19","Subcapitated LTC Services",{"$f":"IFERROR('LTC Rev-Exp Region 11'!$H$35/'LTC Rev-Exp Region 11'!$H$9, 0)","v":{"v":0,"d":"$0.00"}},{"$f":"IFERROR('LTC Rev-Exp Region 11'!$I$35/'LTC Rev-Exp Region 11'!$I$9, 0)","v":{"v":0,"d":"$0.00"}},{"$f":"IFERROR('LTC Rev-Exp Region 11'!$J$35/'LTC Rev-Exp Region 11'!$J$9, 0)","v":{"v":0,"d":"$0.00"}},{"$f":"IFERROR('LTC Rev-Exp Region 11'!$K$35/'LTC Rev-Exp Region 11'!$K$9, 0)","v":{"v":0,"d":"$0.00"}}]
["LTC",null,null,{"$f":"Jurat!I$1","v":0},{"$f":"Jurat!D$33","v":"00:00:00"},"Q2","2017-06-30","Region 11","Operating Expense","Medical Expense","LTC Services","2.20","Ending IBNP for Long Term Care Services",{"$f":"IFERROR('LTC Rev-Exp Region 11'!$H$36/'LTC Rev-Exp Region 11'!$H$9, 0)","v":{"v":0,"d":"$0.00"}},{"$f":"IFERROR('LTC Rev-Exp Region 11'!$I$36/'LTC Rev-Exp Region 11'!$I$9, 0)","v":{"v":0,"d":"$0.00"}},{"$f":"IFERROR('LTC Rev-Exp Region 11'!$J$36/'LTC Rev-Exp Region 11'!$J$9, 0)","v":{"v":0,"d":"$0.00"}},{"$f":"IFERROR('LTC Rev-Exp Region 11'!$K$36/'LTC Rev-Exp Region 11'!$K$9, 0)","v":{"v":0,"d":"$0.00"}}]
["LTC",null,null,{"$f":"Jurat!I$1","v":0},{"$f":"Jurat!D$33","v":"00:00:00"},"Q2","2017-06-30","Region 11","Operating Expense","Medical Expense","LTC Services","2.21","LTC Services Settlements",{"$f":"IFERROR('LTC Rev-Exp Region 11'!$H$37/'LTC Rev-Exp Region 11'!$H$9, 0)","v":{"v":0,"d":"$0.00"}},{"$f":"IFERROR('LTC Rev-Exp Region 11'!$I$37/'LTC Rev-Exp Region 11'!$I$9, 0)","v":{"v":0,"d":"$0.00"}},{"$f":"IFERROR('LTC Rev-Exp Region 11'!$J$37/'LTC Rev-Exp Region 11'!$J$9, 0)","v":{"v":0,"d":"$0.00"}},{"$f":"IFERROR('LTC Rev-Exp Region 11'!$K$37/'LTC Rev-Exp Region 11'!$K$9, 0)","v":{"v":0,"d":"$0.00"}}]
["LTC",null,null,{"$f":"Jurat!I$1","v":0},{"$f":"Jurat!D$33","v":"00:00:00"},"Q2","2017-06-30","Region 11","Operating Expense","Medical Expense","Expanded Benefits","3.1","Expanded Benefits FFS",{"$f":"IFERROR('LTC Rev-Exp Region 11'!$H$39/'LTC Rev-Exp Region 11'!$H$9, 0)","v":{"v":0,"d":"$0.00"}},{"$f":"IFERROR('LTC Rev-Exp Region 11'!$I$39/'LTC Rev-Exp Region 11'!$I$9, 0)","v":{"v":0,"d":"$0.00"}},{"$f":"IFERROR('LTC Rev-Exp Region 11'!$J$39/'LTC Rev-Exp Region 11'!$J$9, 0)","v":{"v":0,"d":"$0.00"}},{"$f":"IFERROR('LTC Rev-Exp Region 11'!$K$39/'LTC Rev-Exp Region 11'!$K$9, 0)","v":{"v":0,"d":"$0.00"}}]
["LTC",null,null,{"$f":"Jurat!I$1","v":0},{"$f":"Jurat!D$33","v":"00:00:00"},"Q2","2017-06-30","Region 11","Operating Expense","Medical Expense","Expanded Benefits","3.2","Expanded Benefits Subcapitation",{"$f":"IFERROR('LTC Rev-Exp Region 11'!$H$40/'LTC Rev-Exp Region 11'!$H$9, 0)","v":{"v":0,"d":"$0.00"}},{"$f":"IFERROR('LTC Rev-Exp Region 11'!$I$40/'LTC Rev-Exp Region 11'!$I$9, 0)","v":{"v":0,"d":"$0.00"}},{"$f":"IFERROR('LTC Rev-Exp Region 11'!$J$40/'LTC Rev-Exp Region 11'!$J$9, 0)","v":{"v":0,"d":"$0.00"}},{"$f":"IFERROR('LTC Rev-Exp Region 11'!$K$40/'LTC Rev-Exp Region 11'!$K$9, 0)","v":{"v":0,"d":"$0.00"}}]
["LTC",null,null,{"$f":"Jurat!I$1","v":0},{"$f":"Jurat!D$33","v":"00:00:00"},"Q2","2017-06-30","Region 11","Operating Expense","Medical Expense","Expanded Benefits","3.3","Ending IBNP for Expanded Benefits",{"$f":"IFERROR('LTC Rev-Exp Region 11'!$H$41/'LTC Rev-Exp Region 11'!$H$9, 0)","v":{"v":0,"d":"$0.00"}},{"$f":"IFERROR('LTC Rev-Exp Region 11'!$I$41/'LTC Rev-Exp Region 11'!$I$9, 0)","v":{"v":0,"d":"$0.00"}},{"$f":"IFERROR('LTC Rev-Exp Region 11'!$J$41/'LTC Rev-Exp Region 11'!$J$9, 0)","v":{"v":0,"d":"$0.00"}},{"$f":"IFERROR('LTC Rev-Exp Region 11'!$K$41/'LTC Rev-Exp Region 11'!$K$9, 0)","v":{"v":0,"d":"$0.00"}}]
["LTC",null,null,{"$f":"Jurat!I$1","v":0},{"$f":"Jurat!D$33","v":"00:00:00"},"Q2","2017-06-30","Region 11","Operating Expense","Medical Expense","Expanded Benefits","3.4","Expanded Benefits Settlements",{"$f":"IFERROR('LTC Rev-Exp Region 11'!$H$42/'LTC Rev-Exp Region 11'!$H$9, 0)","v":{"v":0,"d":"$0.00"}},{"$f":"IFERROR('LTC Rev-Exp Region 11'!$I$42/'LTC Rev-Exp Region 11'!$I$9, 0)","v":{"v":0,"d":"$0.00"}},{"$f":"IFERROR('LTC Rev-Exp Region 11'!$J$42/'LTC Rev-Exp Region 11'!$J$9, 0)","v":{"v":0,"d":"$0.00"}},{"$f":"IFERROR('LTC Rev-Exp Region 11'!$K$42/'LTC Rev-Exp Region 11'!$K$9, 0)","v":{"v":0,"d":"$0.00"}}]
["LTC",null,null,{"$f":"Jurat!I$1","v":0},{"$f":"Jurat!D$33","v":"00:00:00"},"Q2","2017-06-30","Region 11","Operating Expense","Medical Expense","Other Medical","4.5","TPL & Fraud/Abuse Recoveries",{"$f":"IFERROR('LTC Rev-Exp Region 11'!$H$48/'LTC Rev-Exp Region 11'!$H$9, 0)","v":{"v":0,"d":"$0.00"}},{"$f":"IFERROR('LTC Rev-Exp Region 11'!$I$48/'LTC Rev-Exp Region 11'!$I$9, 0)","v":{"v":0,"d":"$0.00"}},{"$f":"IFERROR('LTC Rev-Exp Region 11'!$J$48/'LTC Rev-Exp Region 11'!$J$9, 0)","v":{"v":0,"d":"$0.00"}},{"$f":"IFERROR('LTC Rev-Exp Region 11'!$K$48/'LTC Rev-Exp Region 11'!$K$9, 0)","v":{"v":0,"d":"$0.00"}}]
["LTC",null,null,{"$f":"Jurat!I$1","v":0},{"$f":"Jurat!D$33","v":"00:00:00"},"Q2","2017-06-30","Region 11","Operating Expense","Medical Expense","Other Medical","4.6.1","Premium Deficiency Reserve",{"$f":"IFERROR('LTC Rev-Exp Region 11'!$H$49/'LTC Rev-Exp Region 11'!$H$9, 0)","v":{"v":0,"d":"$0.00"}},{"$f":"IFERROR('LTC Rev-Exp Region 11'!$I$49/'LTC Rev-Exp Region 11'!$I$9, 0)","v":{"v":0,"d":"$0.00"}},{"$f":"IFERROR('LTC Rev-Exp Region 11'!$J$49/'LTC Rev-Exp Region 11'!$J$9, 0)","v":{"v":0,"d":"$0.00"}},{"$f":"IFERROR('LTC Rev-Exp Region 11'!$K$49/'LTC Rev-Exp Region 11'!$K$9, 0)","v":{"v":0,"d":"$0.00"}}]
["LTC",null,null,{"$f":"Jurat!I$1","v":0},{"$f":"Jurat!D$33","v":"00:00:00"},"Q2","2017-06-30","Region 11","Operating Expense","Medical Expense","Other Medical","4.8","Reinsurance Premiums",{"$f":"IFERROR('LTC Rev-Exp Region 11'!$H$51/'LTC Rev-Exp Region 11'!$H$9, 0)","v":{"v":0,"d":"$0.00"}},{"$f":"IFERROR('LTC Rev-Exp Region 11'!$I$51/'LTC Rev-Exp Region 11'!$I$9, 0)","v":{"v":0,"d":"$0.00"}},{"$f":"IFERROR('LTC Rev-Exp Region 11'!$J$51/'LTC Rev-Exp Region 11'!$J$9, 0)","v":{"v":0,"d":"$0.00"}},{"$f":"IFERROR('LTC Rev-Exp Region 11'!$K$51/'LTC Rev-Exp Region 11'!$K$9, 0)","v":{"v":0,"d":"$0.00"}}]
["LTC",null,null,{"$f":"Jurat!I$1","v":0},{"$f":"Jurat!D$33","v":"00:00:00"},"Q2","2017-06-30","Region 11","Operating Expense","Medical Expense","Other Medical","4.9","Reinsurance Recoveries",{"$f":"IFERROR('LTC Rev-Exp Region 11'!$H$52/'LTC Rev-Exp Region 11'!$H$9, 0)","v":{"v":0,"d":"$0.00"}},{"$f":"IFERROR('LTC Rev-Exp Region 11'!$I$52/'LTC Rev-Exp Region 11'!$I$9, 0)","v":{"v":0,"d":"$0.00"}},{"$f":"IFERROR('LTC Rev-Exp Region 11'!$J$52/'LTC Rev-Exp Region 11'!$J$9, 0)","v":{"v":0,"d":"$0.00"}},{"$f":"IFERROR('LTC Rev-Exp Region 11'!$K$52/'LTC Rev-Exp Region 11'!$K$9, 0)","v":{"v":0,"d":"$0.00"}}]
["LTC",null,null,{"$f":"Jurat!I$1","v":0},{"$f":"Jurat!D$33","v":"00:00:00"},"Q2","2017-06-30","Region 11","Operating Expense","Administrative Expense","Administrative","5.1","Salaries & Benefits",{"$f":"IFERROR('LTC Rev-Exp Region 11'!$H$57/'LTC Rev-Exp Region 11'!$H$9, 0)","v":{"v":0,"d":"$0.00"}},{"$f":"IFERROR('LTC Rev-Exp Region 11'!$I$57/'LTC Rev-Exp Region 11'!$I$9, 0)","v":{"v":0,"d":"$0.00"}},{"$f":"IFERROR('LTC Rev-Exp Region 11'!$J$57/'LTC Rev-Exp Region 11'!$J$9, 0)","v":{"v":0,"d":"$0.00"}},{"$f":"IFERROR('LTC Rev-Exp Region 11'!$K$57/'LTC Rev-Exp Region 11'!$K$9, 0)","v":{"v":0,"d":"$0.00"}}]
["LTC",null,null,{"$f":"Jurat!I$1","v":0},{"$f":"Jurat!D$33","v":"00:00:00"},"Q2","2017-06-30","Region 11","Operating Expense","Administrative Expense","Administrative","5.2","Administrative Services",{"$f":"IFERROR('LTC Rev-Exp Region 11'!$H$58/'LTC Rev-Exp Region 11'!$H$9, 0)","v":{"v":0,"d":"$0.00"}},{"$f":"IFERROR('LTC Rev-Exp Region 11'!$I$58/'LTC Rev-Exp Region 11'!$I$9, 0)","v":{"v":0,"d":"$0.00"}},{"$f":"IFERROR('LTC Rev-Exp Region 11'!$J$58/'LTC Rev-Exp Region 11'!$J$9, 0)","v":{"v":0,"d":"$0.00"}},{"$f":"IFERROR('LTC Rev-Exp Region 11'!$K$58/'LTC Rev-Exp Region 11'!$K$9, 0)","v":{"v":0,"d":"$0.00"}}]
["LTC",null,null,{"$f":"Jurat!I$1","v":0},{"$f":"Jurat!D$33","v":"00:00:00"},"Q2","2017-06-30","Region 11","Operating Expense","Administrative Expense","Administrative","5.3","Information Systems",{"$f":"IFERROR('LTC Rev-Exp Region 11'!$H$59/'LTC Rev-Exp Region 11'!$H$9, 0)","v":{"v":0,"d":"$0.00"}},{"$f":"IFERROR('LTC Rev-Exp Region 11'!$I$59/'LTC Rev-Exp Region 11'!$I$9, 0)","v":{"v":0,"d":"$0.00"}},{"$f":"IFERROR('LTC Rev-Exp Region 11'!$J$59/'LTC Rev-Exp Region 11'!$J$9, 0)","v":{"v":0,"d":"$0.00"}},{"$f":"IFERROR('LTC Rev-Exp Region 11'!$K$59/'LTC Rev-Exp Region 11'!$K$9, 0)","v":{"v":0,"d":"$0.00"}}]
["LTC",null,null,{"$f":"Jurat!I$1","v":0},{"$f":"Jurat!D$33","v":"00:00:00"},"Q2","2017-06-30","Region 11","Operating Expense","Administrative Expense","Administrative","5.4","Marketing Expenses",{"$f":"IFERROR('LTC Rev-Exp Region 11'!$H$60/'LTC Rev-Exp Region 11'!$H$9, 0)","v":{"v":0,"d":"$0.00"}},{"$f":"IFERROR('LTC Rev-Exp Region 11'!$I$60/'LTC Rev-Exp Region 11'!$I$9, 0)","v":{"v":0,"d":"$0.00"}},{"$f":"IFERROR('LTC Rev-Exp Region 11'!$J$60/'LTC Rev-Exp Region 11'!$J$9, 0)","v":{"v":0,"d":"$0.00"}},{"$f":"IFERROR('LTC Rev-Exp Region 11'!$K$60/'LTC Rev-Exp Region 11'!$K$9, 0)","v":{"v":0,"d":"$0.00"}}]
["LTC",null,null,{"$f":"Jurat!I$1","v":0},{"$f":"Jurat!D$33","v":"00:00:00"},"Q2","2017-06-30","Region 11","Operating Expense","Administrative Expense","Administrative","5.5","General  Administration",{"$f":"IFERROR('LTC Rev-Exp Region 11'!$H$61/'LTC Rev-Exp Region 11'!$H$9, 0)","v":{"v":0,"d":"$0.00"}},{"$f":"IFERROR('LTC Rev-Exp Region 11'!$I$61/'LTC Rev-Exp Region 11'!$I$9, 0)","v":{"v":0,"d":"$0.00"}},{"$f":"IFERROR('LTC Rev-Exp Region 11'!$J$61/'LTC Rev-Exp Region 11'!$J$9, 0)","v":{"v":0,"d":"$0.00"}},{"$f":"IFERROR('LTC Rev-Exp Region 11'!$K$61/'LTC Rev-Exp Region 11'!$K$9, 0)","v":{"v":0,"d":"$0.00"}}]
["LTC",null,null,{"$f":"Jurat!I$1","v":0},{"$f":"Jurat!D$33","v":"00:00:00"},"Q2","2017-06-30","Region 11","Operating Expense","Administrative Expense","Administrative","5.6","Compliance/Regulatory",{"$f":"IFERROR('LTC Rev-Exp Region 11'!$H$62/'LTC Rev-Exp Region 11'!$H$9, 0)","v":{"v":0,"d":"$0.00"}},{"$f":"IFERROR('LTC Rev-Exp Region 11'!$I$62/'LTC Rev-Exp Region 11'!$I$9, 0)","v":{"v":0,"d":"$0.00"}},{"$f":"IFERROR('LTC Rev-Exp Region 11'!$J$62/'LTC Rev-Exp Region 11'!$J$9, 0)","v":{"v":0,"d":"$0.00"}},{"$f":"IFERROR('LTC Rev-Exp Region 11'!$K$62/'LTC Rev-Exp Region 11'!$K$9, 0)","v":{"v":0,"d":"$0.00"}}]
["LTC",null,null,{"$f":"Jurat!I$1","v":0},{"$f":"Jurat!D$33","v":"00:00:00"},"Q2","2017-06-30","Region 11","Operating Expense","Taxes & Fees","Taxes & Fees","6.1","State Premium Tax",{"$f":"IFERROR('LTC Rev-Exp Region 11'!$H$64/'LTC Rev-Exp Region 11'!$H$9, 0)","v":{"v":0,"d":"$0.00"}},{"$f":"IFERROR('LTC Rev-Exp Region 11'!$I$64/'LTC Rev-Exp Region 11'!$I$9, 0)","v":{"v":0,"d":"$0.00"}},{"$f":"IFERROR('LTC Rev-Exp Region 11'!$J$64/'LTC Rev-Exp Region 11'!$J$9, 0)","v":{"v":0,"d":"$0.00"}},{"$f":"IFERROR('LTC Rev-Exp Region 11'!$K$64/'LTC Rev-Exp Region 11'!$K$9, 0)","v":{"v":0,"d":"$0.00"}}]
["LTC",null,null,{"$f":"Jurat!I$1","v":0},{"$f":"Jurat!D$33","v":"00:00:00"},"Q2","2017-06-30","Region 11","Operating Expense","Taxes & Fees","Taxes & Fees","6.2","Department of Insurance Assessments",{"$f":"IFERROR('LTC Rev-Exp Region 11'!$H$65/'LTC Rev-Exp Region 11'!$H$9, 0)","v":{"v":0,"d":"$0.00"}},{"$f":"IFERROR('LTC Rev-Exp Region 11'!$I$65/'LTC Rev-Exp Region 11'!$I$9, 0)","v":{"v":0,"d":"$0.00"}},{"$f":"IFERROR('LTC Rev-Exp Region 11'!$J$65/'LTC Rev-Exp Region 11'!$J$9, 0)","v":{"v":0,"d":"$0.00"}},{"$f":"IFERROR('LTC Rev-Exp Region 11'!$K$65/'LTC Rev-Exp Region 11'!$K$9, 0)","v":{"v":0,"d":"$0.00"}}]
["LTC",null,null,{"$f":"Jurat!I$1","v":0},{"$f":"Jurat!D$33","v":"00:00:00"},"Q2","2017-06-30","Region 11","Non-Operating Expense","Income Tax Expense","Income Tax Expense","9.0","Income Tax Expense",{"$f":"IFERROR('LTC Rev-Exp Region 11'!$H$66/'LTC Rev-Exp Region 11'!$H$9, 0)","v":{"v":0,"d":"$0.00"}},{"$f":"IFERROR('LTC Rev-Exp Region 11'!$I$66/'LTC Rev-Exp Region 11'!$I$9, 0)","v":{"v":0,"d":"$0.00"}},{"$f":"IFERROR('LTC Rev-Exp Region 11'!$J$66/'LTC Rev-Exp Region 11'!$J$9, 0)","v":{"v":0,"d":"$0.00"}},{"$f":"IFERROR('LTC Rev-Exp Region 11'!$K$66/'LTC Rev-Exp Region 11'!$K$9, 0)","v":{"v":0,"d":"$0.00"}}]
["LTC",null,null,{"$f":"Jurat!I$1","v":0},{"$f":"Jurat!D$33","v":"00:00:00"},"Q3","2017-09-30","Region 11","Operating Revenue","Capitation","Capitation",1.1,"Capitation",{"$f":"IFERROR('LTC Rev-Exp Region 11'!$L$11/'LTC Rev-Exp Region 11'!$L$9,\"0\")","v":"0"},{"$f":"IFERROR('LTC Rev-Exp Region 11'!$M$11/'LTC Rev-Exp Region 11'!$M$9,\"0\")","v":"0"},{"$f":"IFERROR('LTC Rev-Exp Region 11'!$N$11/'LTC Rev-Exp Region 11'!$N$9,\"0\")","v":"0"},{"$f":"IFERROR('LTC Rev-Exp Region 11'!$O$11/'LTC Rev-Exp Region 11'!$O$9,\"0\")","v":"0"}]
["LTC",null,null,{"$f":"Jurat!I$1","v":0},{"$f":"Jurat!D$33","v":"00:00:00"},"Q3","2017-09-30","Region 11","Operating Revenue","Capitation","NH Rate Reconciliation",1.2,"NH Rate Reconciliation",{"$f":"IFERROR('LTC Rev-Exp Region 11'!$L$12/'LTC Rev-Exp Region 11'!$L$9,\"0\")","v":"0"},{"$f":"IFERROR('LTC Rev-Exp Region 11'!$M$12/'LTC Rev-Exp Region 11'!$M$9,\"0\")","v":"0"},{"$f":"IFERROR('LTC Rev-Exp Region 11'!$N$12/'LTC Rev-Exp Region 11'!$N$9,\"0\")","v":"0"},{"$f":"IFERROR('LTC Rev-Exp Region 11'!$O$12/'LTC Rev-Exp Region 11'!$O$9,\"0\")","v":"0"}]
["LTC",null,null,{"$f":"Jurat!I$1","v":0},{"$f":"Jurat!D$33","v":"00:00:00"},"Q3","2017-09-30","Region 11","Operating Revenue","Other Revenue","Other Revenue",1.3,"Other Revenue",{"$f":"IFERROR('LTC Rev-Exp Region 11'!$L$13/'LTC Rev-Exp Region 11'!$L$9,\"0\")","v":"0"},{"$f":"IFERROR('LTC Rev-Exp Region 11'!$M$13/'LTC Rev-Exp Region 11'!$M$9,\"0\")","v":"0"},{"$f":"IFERROR('LTC Rev-Exp Region 11'!$N$13/'LTC Rev-Exp Region 11'!$N$9,\"0\")","v":"0"},{"$f":"IFERROR('LTC Rev-Exp Region 11'!$O$13/'LTC Rev-Exp Region 11'!$O$9,\"0\")","v":"0"}]
["LTC",null,null,{"$f":"Jurat!I$1","v":0},{"$f":"Jurat!D$33","v":"00:00:00"},"Q3","2017-09-30","Region 11","Operating Expense","Medical Expense","NF & Hospice","2.3","Nursing Facility FFS (Medicaid)",{"$f":"IFERROR('LTC Rev-Exp Region 11'!$L$19/'LTC Rev-Exp Region 11'!$L$9, 0)","v":{"v":0,"d":"$0.00"}},{"$f":"IFERROR('LTC Rev-Exp Region 11'!$M$19/'LTC Rev-Exp Region 11'!$M$9, 0)","v":{"v":0,"d":"$0.00"}},{"$f":"IFERROR('LTC Rev-Exp Region 11'!$N$19/'LTC Rev-Exp Region 11'!$N$9, 0)","v":{"v":0,"d":"$0.00"}},{"$f":"IFERROR('LTC Rev-Exp Region 11'!$O$19/'LTC Rev-Exp Region 11'!$O$9, 0)","v":{"v":0,"d":"$0.00"}}]
["LTC",null,null,{"$f":"Jurat!I$1","v":0},{"$f":"Jurat!D$33","v":"00:00:00"},"Q3","2017-09-30","Region 11","Operating Expense","Medical Expense","NF & Hospice","2.4","Nursing Facility FFS (Crossover)",{"$f":"IFERROR('LTC Rev-Exp Region 11'!$L$20/'LTC Rev-Exp Region 11'!$L$9, 0)","v":{"v":0,"d":"$0.00"}},{"$f":"IFERROR('LTC Rev-Exp Region 11'!$M$20/'LTC Rev-Exp Region 11'!$M$9, 0)","v":{"v":0,"d":"$0.00"}},{"$f":"IFERROR('LTC Rev-Exp Region 11'!$N$20/'LTC Rev-Exp Region 11'!$N$9, 0)","v":{"v":0,"d":"$0.00"}},{"$f":"IFERROR('LTC Rev-Exp Region 11'!$O$20/'LTC Rev-Exp Region 11'!$O$9, 0)","v":{"v":0,"d":"$0.00"}}]
["LTC",null,null,{"$f":"Jurat!I$1","v":0},{"$f":"Jurat!D$33","v":"00:00:00"},"Q3","2017-09-30","Region 11","Operating Expense","Medical Expense","NF & Hospice","2.6","Hospice FFS",{"$f":"IFERROR('LTC Rev-Exp Region 11'!$L$22/'LTC Rev-Exp Region 11'!$L$9, 0)","v":{"v":0,"d":"$0.00"}},{"$f":"IFERROR('LTC Rev-Exp Region 11'!$M$22/'LTC Rev-Exp Region 11'!$M$9, 0)","v":{"v":0,"d":"$0.00"}},{"$f":"IFERROR('LTC Rev-Exp Region 11'!$N$22/'LTC Rev-Exp Region 11'!$N$9, 0)","v":{"v":0,"d":"$0.00"}},{"$f":"IFERROR('LTC Rev-Exp Region 11'!$O$22/'LTC Rev-Exp Region 11'!$O$9, 0)","v":{"v":0,"d":"$0.00"}}]
["LTC",null,null,{"$f":"Jurat!I$1","v":0},{"$f":"Jurat!D$33","v":"00:00:00"},"Q3","2017-09-30","Region 11","Operating Expense","Medical Expense","NF & Hospice","2.7","Ending IBNP for NF & Hospice",{"$f":"IFERROR('LTC Rev-Exp Region 11'!$L$23/'LTC Rev-Exp Region 11'!$L$9, 0)","v":{"v":0,"d":"$0.00"}},{"$f":"IFERROR('LTC Rev-Exp Region 11'!$M$23/'LTC Rev-Exp Region 11'!$M$9, 0)","v":{"v":0,"d":"$0.00"}},{"$f":"IFERROR('LTC Rev-Exp Region 11'!$N$23/'LTC Rev-Exp Region 11'!$N$9, 0)","v":{"v":0,"d":"$0.00"}},{"$f":"IFERROR('LTC Rev-Exp Region 11'!$O$23/'LTC Rev-Exp Region 11'!$O$9, 0)","v":{"v":0,"d":"$0.00"}}]
["LTC",null,null,{"$f":"Jurat!I$1","v":0},{"$f":"Jurat!D$33","v":"00:00:00"},"Q3","2017-09-30","Region 11","Operating Expense","Medical Expense","NF & Hospice","2.8","NF & Hospice Subcapitated",{"$f":"IFERROR('LTC Rev-Exp Region 11'!$L$24/'LTC Rev-Exp Region 11'!$L$9, 0)","v":{"v":0,"d":"$0.00"}},{"$f":"IFERROR('LTC Rev-Exp Region 11'!$M$24/'LTC Rev-Exp Region 11'!$M$9, 0)","v":{"v":0,"d":"$0.00"}},{"$f":"IFERROR('LTC Rev-Exp Region 11'!$N$24/'LTC Rev-Exp Region 11'!$N$9, 0)","v":{"v":0,"d":"$0.00"}},{"$f":"IFERROR('LTC Rev-Exp Region 11'!$O$24/'LTC Rev-Exp Region 11'!$O$9, 0)","v":{"v":0,"d":"$0.00"}}]
["LTC",null,null,{"$f":"Jurat!I$1","v":0},{"$f":"Jurat!D$33","v":"00:00:00"},"Q3","2017-09-30","Region 11","Operating Expense","Medical Expense","NF & Hospice","2.9","NF & Hospice Settlements",{"$f":"IFERROR('LTC Rev-Exp Region 11'!$L$25/'LTC Rev-Exp Region 11'!$L$9, 0)","v":{"v":0,"d":"$0.00"}},{"$f":"IFERROR('LTC Rev-Exp Region 11'!$M$25/'LTC Rev-Exp Region 11'!$M$9, 0)","v":{"v":0,"d":"$0.00"}},{"$f":"IFERROR('LTC Rev-Exp Region 11'!$N$25/'LTC Rev-Exp Region 11'!$N$9, 0)","v":{"v":0,"d":"$0.00"}},{"$f":"IFERROR('LTC Rev-Exp Region 11'!$O$25/'LTC Rev-Exp Region 11'!$O$9, 0)","v":{"v":0,"d":"$0.00"}}]
["LTC",null,null,{"$f":"Jurat!I$1","v":0},{"$f":"Jurat!D$33","v":"00:00:00"},"Q3","2017-09-30","Region 11","Operating Expense","Medical Expense","LTC Services","2.11","Assisted Living FFS",{"$f":"IFERROR('LTC Rev-Exp Region 11'!$L$27/'LTC Rev-Exp Region 11'!$L$9, 0)","v":{"v":0,"d":"$0.00"}},{"$f":"IFERROR('LTC Rev-Exp Region 11'!$M$27/'LTC Rev-Exp Region 11'!$M$9, 0)","v":{"v":0,"d":"$0.00"}},{"$f":"IFERROR('LTC Rev-Exp Region 11'!$N$27/'LTC Rev-Exp Region 11'!$N$9, 0)","v":{"v":0,"d":"$0.00"}},{"$f":"IFERROR('LTC Rev-Exp Region 11'!$O$27/'LTC Rev-Exp Region 11'!$O$9, 0)","v":{"v":0,"d":"$0.00"}}]
["LTC",null,null,{"$f":"Jurat!I$1","v":0},{"$f":"Jurat!D$33","v":"00:00:00"},"Q3","2017-09-30","Region 11","Operating Expense","Medical Expense","LTC Services","2.12","Home Health FFS",{"$f":"IFERROR('LTC Rev-Exp Region 11'!$L$28/'LTC Rev-Exp Region 11'!$L$9, 0)","v":{"v":0,"d":"$0.00"}},{"$f":"IFERROR('LTC Rev-Exp Region 11'!$M$28/'LTC Rev-Exp Region 11'!$M$9, 0)","v":{"v":0,"d":"$0.00"}},{"$f":"IFERROR('LTC Rev-Exp Region 11'!$N$28/'LTC Rev-Exp Region 11'!$N$9, 0)","v":{"v":0,"d":"$0.00"}},{"$f":"IFERROR('LTC Rev-Exp Region 11'!$O$28/'LTC Rev-Exp Region 11'!$O$9, 0)","v":{"v":0,"d":"$0.00"}}]
["LTC",null,null,{"$f":"Jurat!I$1","v":0},{"$f":"Jurat!D$33","v":"00:00:00"},"Q3","2017-09-30","Region 11","Operating Expense","Medical Expense","LTC Services","2.13","Medical Equipment/Supplies FFS",{"$f":"IFERROR('LTC Rev-Exp Region 11'!$L$29/'LTC Rev-Exp Region 11'!$L$9, 0)","v":{"v":0,"d":"$0.00"}},{"$f":"IFERROR('LTC Rev-Exp Region 11'!$M$29/'LTC Rev-Exp Region 11'!$M$9, 0)","v":{"v":0,"d":"$0.00"}},{"$f":"IFERROR('LTC Rev-Exp Region 11'!$N$29/'LTC Rev-Exp Region 11'!$N$9, 0)","v":{"v":0,"d":"$0.00"}},{"$f":"IFERROR('LTC Rev-Exp Region 11'!$O$29/'LTC Rev-Exp Region 11'!$O$9, 0)","v":{"v":0,"d":"$0.00"}}]
["LTC",null,null,{"$f":"Jurat!I$1","v":0},{"$f":"Jurat!D$33","v":"00:00:00"},"Q3","2017-09-30","Region 11","Operating Expense","Medical Expense","LTC Services","2.14","Therapy FFS",{"$f":"IFERROR('LTC Rev-Exp Region 11'!$L$30/'LTC Rev-Exp Region 11'!$L$9, 0)","v":{"v":0,"d":"$0.00"}},{"$f":"IFERROR('LTC Rev-Exp Region 11'!$M$30/'LTC Rev-Exp Region 11'!$M$9, 0)","v":{"v":0,"d":"$0.00"}},{"$f":"IFERROR('LTC Rev-Exp Region 11'!$N$30/'LTC Rev-Exp Region 11'!$N$9, 0)","v":{"v":0,"d":"$0.00"}},{"$f":"IFERROR('LTC Rev-Exp Region 11'!$O$30/'LTC Rev-Exp Region 11'!$O$9, 0)","v":{"v":0,"d":"$0.00"}}]
["LTC",null,null,{"$f":"Jurat!I$1","v":0},{"$f":"Jurat!D$33","v":"00:00:00"},"Q3","2017-09-30","Region 11","Operating Expense","Medical Expense","LTC Services","2.15","Transportation FFS",{"$f":"IFERROR('LTC Rev-Exp Region 11'!$L$31/'LTC Rev-Exp Region 11'!$L$9, 0)","v":{"v":0,"d":"$0.00"}},{"$f":"IFERROR('LTC Rev-Exp Region 11'!$M$31/'LTC Rev-Exp Region 11'!$M$9, 0)","v":{"v":0,"d":"$0.00"}},{"$f":"IFERROR('LTC Rev-Exp Region 11'!$N$31/'LTC Rev-Exp Region 11'!$N$9, 0)","v":{"v":0,"d":"$0.00"}},{"$f":"IFERROR('LTC Rev-Exp Region 11'!$O$31/'LTC Rev-Exp Region 11'!$O$9, 0)","v":{"v":0,"d":"$0.00"}}]
["LTC",null,null,{"$f":"Jurat!I$1","v":0},{"$f":"Jurat!D$33","v":"00:00:00"},"Q3","2017-09-30","Region 11","Operating Expense","Medical Expense","LTC Services","2.16","Case Management FFS (Plan Provided)",{"$f":"IFERROR('LTC Rev-Exp Region 11'!$L$32/'LTC Rev-Exp Region 11'!$L$9, 0)","v":{"v":0,"d":"$0.00"}},{"$f":"IFERROR('LTC Rev-Exp Region 11'!$M$32/'LTC Rev-Exp Region 11'!$M$9, 0)","v":{"v":0,"d":"$0.00"}},{"$f":"IFERROR('LTC Rev-Exp Region 11'!$N$32/'LTC Rev-Exp Region 11'!$N$9, 0)","v":{"v":0,"d":"$0.00"}},{"$f":"IFERROR('LTC Rev-Exp Region 11'!$O$32/'LTC Rev-Exp Region 11'!$O$9, 0)","v":{"v":0,"d":"$0.00"}}]
["LTC",null,null,{"$f":"Jurat!I$1","v":0},{"$f":"Jurat!D$33","v":"00:00:00"},"Q3","2017-09-30","Region 11","Operating Expense","Medical Expense","LTC Services","2.17","Case Management FF (Non-Plan Provided)",{"$f":"IFERROR('LTC Rev-Exp Region 11'!$L$33/'LTC Rev-Exp Region 11'!$L$9, 0)","v":{"v":0,"d":"$0.00"}},{"$f":"IFERROR('LTC Rev-Exp Region 11'!$M$33/'LTC Rev-Exp Region 11'!$M$9, 0)","v":{"v":0,"d":"$0.00"}},{"$f":"IFERROR('LTC Rev-Exp Region 11'!$N$33/'LTC Rev-Exp Region 11'!$N$9, 0)","v":{"v":0,"d":"$0.00"}},{"$f":"IFERROR('LTC Rev-Exp Region 11'!$O$33/'LTC Rev-Exp Region 11'!$O$9, 0)","v":{"v":0,"d":"$0.00"}}]
["LTC",null,null,{"$f":"Jurat!I$1","v":0},{"$f":"Jurat!D$33","v":"00:00:00"},"Q3","2017-09-30","Region 11","Operating Expense","Medical Expense","LTC Services","2.18","HCBS FFS",{"$f":"IFERROR('LTC Rev-Exp Region 11'!$L$34/'LTC Rev-Exp Region 11'!$L$9, 0)","v":{"v":0,"d":"$0.00"}},{"$f":"IFERROR('LTC Rev-Exp Region 11'!$M$34/'LTC Rev-Exp Region 11'!$M$9, 0)","v":{"v":0,"d":"$0.00"}},{"$f":"IFERROR('LTC Rev-Exp Region 11'!$N$34/'LTC Rev-Exp Region 11'!$N$9, 0)","v":{"v":0,"d":"$0.00"}},{"$f":"IFERROR('LTC Rev-Exp Region 11'!$O$34/'LTC Rev-Exp Region 11'!$O$9, 0)","v":{"v":0,"d":"$0.00"}}]
["LTC",null,null,{"$f":"Jurat!I$1","v":0},{"$f":"Jurat!D$33","v":"00:00:00"},"Q3","2017-09-30","Region 11","Operating Expense","Medical Expense","LTC Services","2.19","Subcapitated LTC Services",{"$f":"IFERROR('LTC Rev-Exp Region 11'!$L$35/'LTC Rev-Exp Region 11'!$L$9, 0)","v":{"v":0,"d":"$0.00"}},{"$f":"IFERROR('LTC Rev-Exp Region 11'!$M$35/'LTC Rev-Exp Region 11'!$M$9, 0)","v":{"v":0,"d":"$0.00"}},{"$f":"IFERROR('LTC Rev-Exp Region 11'!$N$35/'LTC Rev-Exp Region 11'!$N$9, 0)","v":{"v":0,"d":"$0.00"}},{"$f":"IFERROR('LTC Rev-Exp Region 11'!$O$35/'LTC Rev-Exp Region 11'!$O$9, 0)","v":{"v":0,"d":"$0.00"}}]
["LTC",null,null,{"$f":"Jurat!I$1","v":0},{"$f":"Jurat!D$33","v":"00:00:00"},"Q3","2017-09-30","Region 11","Operating Expense","Medical Expense","LTC Services","2.20","Ending IBNP for Long Term Care Services",{"$f":"IFERROR('LTC Rev-Exp Region 11'!$L$36/'LTC Rev-Exp Region 11'!$L$9, 0)","v":{"v":0,"d":"$0.00"}},{"$f":"IFERROR('LTC Rev-Exp Region 11'!$M$36/'LTC Rev-Exp Region 11'!$M$9, 0)","v":{"v":0,"d":"$0.00"}},{"$f":"IFERROR('LTC Rev-Exp Region 11'!$N$36/'LTC Rev-Exp Region 11'!$N$9, 0)","v":{"v":0,"d":"$0.00"}},{"$f":"IFERROR('LTC Rev-Exp Region 11'!$O$36/'LTC Rev-Exp Region 11'!$O$9, 0)","v":{"v":0,"d":"$0.00"}}]
["LTC",null,null,{"$f":"Jurat!I$1","v":0},{"$f":"Jurat!D$33","v":"00:00:00"},"Q3","2017-09-30","Region 11","Operating Expense","Medical Expense","LTC Services","2.21","LTC Services Settlements",{"$f":"IFERROR('LTC Rev-Exp Region 11'!$L$37/'LTC Rev-Exp Region 11'!$L$9, 0)","v":{"v":0,"d":"$0.00"}},{"$f":"IFERROR('LTC Rev-Exp Region 11'!$M$37/'LTC Rev-Exp Region 11'!$M$9, 0)","v":{"v":0,"d":"$0.00"}},{"$f":"IFERROR('LTC Rev-Exp Region 11'!$N$37/'LTC Rev-Exp Region 11'!$N$9, 0)","v":{"v":0,"d":"$0.00"}},{"$f":"IFERROR('LTC Rev-Exp Region 11'!$O$37/'LTC Rev-Exp Region 11'!$O$9, 0)","v":{"v":0,"d":"$0.00"}}]
["LTC",null,null,{"$f":"Jurat!I$1","v":0},{"$f":"Jurat!D$33","v":"00:00:00"},"Q3","2017-09-30","Region 11","Operating Expense","Medical Expense","Expanded Benefits","3.1","Expanded Benefits FFS",{"$f":"IFERROR('LTC Rev-Exp Region 11'!$L$39/'LTC Rev-Exp Region 11'!$L$9, 0)","v":{"v":0,"d":"$0.00"}},{"$f":"IFERROR('LTC Rev-Exp Region 11'!$M$39/'LTC Rev-Exp Region 11'!$M$9, 0)","v":{"v":0,"d":"$0.00"}},{"$f":"IFERROR('LTC Rev-Exp Region 11'!$N$39/'LTC Rev-Exp Region 11'!$N$9, 0)","v":{"v":0,"d":"$0.00"}},{"$f":"IFERROR('LTC Rev-Exp Region 11'!$O$39/'LTC Rev-Exp Region 11'!$O$9, 0)","v":{"v":0,"d":"$0.00"}}]
["LTC",null,null,{"$f":"Jurat!I$1","v":0},{"$f":"Jurat!D$33","v":"00:00:00"},"Q3","2017-09-30","Region 11","Operating Expense","Medical Expense","Expanded Benefits","3.2","Expanded Benefits Subcapitation",{"$f":"IFERROR('LTC Rev-Exp Region 11'!$L$40/'LTC Rev-Exp Region 11'!$L$9, 0)","v":{"v":0,"d":"$0.00"}},{"$f":"IFERROR('LTC Rev-Exp Region 11'!$M$40/'LTC Rev-Exp Region 11'!$M$9, 0)","v":{"v":0,"d":"$0.00"}},{"$f":"IFERROR('LTC Rev-Exp Region 11'!$N$40/'LTC Rev-Exp Region 11'!$N$9, 0)","v":{"v":0,"d":"$0.00"}},{"$f":"IFERROR('LTC Rev-Exp Region 11'!$O$40/'LTC Rev-Exp Region 11'!$O$9, 0)","v":{"v":0,"d":"$0.00"}}]
["LTC",null,null,{"$f":"Jurat!I$1","v":0},{"$f":"Jurat!D$33","v":"00:00:00"},"Q3","2017-09-30","Region 11","Operating Expense","Medical Expense","Expanded Benefits","3.3","Ending IBNP for Expanded Benefits",{"$f":"IFERROR('LTC Rev-Exp Region 11'!$L$41/'LTC Rev-Exp Region 11'!$L$9, 0)","v":{"v":0,"d":"$0.00"}},{"$f":"IFERROR('LTC Rev-Exp Region 11'!$M$41/'LTC Rev-Exp Region 11'!$M$9, 0)","v":{"v":0,"d":"$0.00"}},{"$f":"IFERROR('LTC Rev-Exp Region 11'!$N$41/'LTC Rev-Exp Region 11'!$N$9, 0)","v":{"v":0,"d":"$0.00"}},{"$f":"IFERROR('LTC Rev-Exp Region 11'!$O$41/'LTC Rev-Exp Region 11'!$O$9, 0)","v":{"v":0,"d":"$0.00"}}]
["LTC",null,null,{"$f":"Jurat!I$1","v":0},{"$f":"Jurat!D$33","v":"00:00:00"},"Q3","2017-09-30","Region 11","Operating Expense","Medical Expense","Expanded Benefits","3.4","Expanded Benefits Settlements",{"$f":"IFERROR('LTC Rev-Exp Region 11'!$L$42/'LTC Rev-Exp Region 11'!$L$9, 0)","v":{"v":0,"d":"$0.00"}},{"$f":"IFERROR('LTC Rev-Exp Region 11'!$M$42/'LTC Rev-Exp Region 11'!$M$9, 0)","v":{"v":0,"d":"$0.00"}},{"$f":"IFERROR('LTC Rev-Exp Region 11'!$N$42/'LTC Rev-Exp Region 11'!$N$9, 0)","v":{"v":0,"d":"$0.00"}},{"$f":"IFERROR('LTC Rev-Exp Region 11'!$O$42/'LTC Rev-Exp Region 11'!$O$9, 0)","v":{"v":0,"d":"$0.00"}}]
["LTC",null,null,{"$f":"Jurat!I$1","v":0},{"$f":"Jurat!D$33","v":"00:00:00"},"Q3","2017-09-30","Region 11","Operating Expense","Medical Expense","Other Medical","4.5","TPL & Fraud/Abuse Recoveries",{"$f":"IFERROR('LTC Rev-Exp Region 11'!$L$48/'LTC Rev-Exp Region 11'!$L$9, 0)","v":{"v":0,"d":"$0.00"}},{"$f":"IFERROR('LTC Rev-Exp Region 11'!$M$48/'LTC Rev-Exp Region 11'!$M$9, 0)","v":{"v":0,"d":"$0.00"}},{"$f":"IFERROR('LTC Rev-Exp Region 11'!$N$48/'LTC Rev-Exp Region 11'!$N$9, 0)","v":{"v":0,"d":"$0.00"}},{"$f":"IFERROR('LTC Rev-Exp Region 11'!$O$48/'LTC Rev-Exp Region 11'!$O$9, 0)","v":{"v":0,"d":"$0.00"}}]
["LTC",null,null,{"$f":"Jurat!I$1","v":0},{"$f":"Jurat!D$33","v":"00:00:00"},"Q3","2017-09-30","Region 11","Operating Expense","Medical Expense","Other Medical","4.6.1","Premium Deficiency Reserve",{"$f":"IFERROR('LTC Rev-Exp Region 11'!$L$49/'LTC Rev-Exp Region 11'!$L$9, 0)","v":{"v":0,"d":"$0.00"}},{"$f":"IFERROR('LTC Rev-Exp Region 11'!$M$49/'LTC Rev-Exp Region 11'!$M$9, 0)","v":{"v":0,"d":"$0.00"}},{"$f":"IFERROR('LTC Rev-Exp Region 11'!$N$49/'LTC Rev-Exp Region 11'!$N$9, 0)","v":{"v":0,"d":"$0.00"}},{"$f":"IFERROR('LTC Rev-Exp Region 11'!$O$49/'LTC Rev-Exp Region 11'!$O$9, 0)","v":{"v":0,"d":"$0.00"}}]
["LTC",null,null,{"$f":"Jurat!I$1","v":0},{"$f":"Jurat!D$33","v":"00:00:00"},"Q3","2017-09-30","Region 11","Operating Expense","Medical Expense","Other Medical","4.8","Reinsurance Premiums",{"$f":"IFERROR('LTC Rev-Exp Region 11'!$L$51/'LTC Rev-Exp Region 11'!$L$9, 0)","v":{"v":0,"d":"$0.00"}},{"$f":"IFERROR('LTC Rev-Exp Region 11'!$M$51/'LTC Rev-Exp Region 11'!$M$9, 0)","v":{"v":0,"d":"$0.00"}},{"$f":"IFERROR('LTC Rev-Exp Region 11'!$N$51/'LTC Rev-Exp Region 11'!$N$9, 0)","v":{"v":0,"d":"$0.00"}},{"$f":"IFERROR('LTC Rev-Exp Region 11'!$O$51/'LTC Rev-Exp Region 11'!$O$9, 0)","v":{"v":0,"d":"$0.00"}}]
["LTC",null,null,{"$f":"Jurat!I$1","v":0},{"$f":"Jurat!D$33","v":"00:00:00"},"Q3","2017-09-30","Region 11","Operating Expense","Medical Expense","Other Medical","4.9","Reinsurance Recoveries",{"$f":"IFERROR('LTC Rev-Exp Region 11'!$L$52/'LTC Rev-Exp Region 11'!$L$9, 0)","v":{"v":0,"d":"$0.00"}},{"$f":"IFERROR('LTC Rev-Exp Region 11'!$M$52/'LTC Rev-Exp Region 11'!$M$9, 0)","v":{"v":0,"d":"$0.00"}},{"$f":"IFERROR('LTC Rev-Exp Region 11'!$N$52/'LTC Rev-Exp Region 11'!$N$9, 0)","v":{"v":0,"d":"$0.00"}},{"$f":"IFERROR('LTC Rev-Exp Region 11'!$O$52/'LTC Rev-Exp Region 11'!$O$9, 0)","v":{"v":0,"d":"$0.00"}}]
["LTC",null,null,{"$f":"Jurat!I$1","v":0},{"$f":"Jurat!D$33","v":"00:00:00"},"Q3","2017-09-30","Region 11","Operating Expense","Administrative Expense","Administrative","5.1","Salaries & Benefits",{"$f":"IFERROR('LTC Rev-Exp Region 11'!$L$57/'LTC Rev-Exp Region 11'!$L$9, 0)","v":{"v":0,"d":"$0.00"}},{"$f":"IFERROR('LTC Rev-Exp Region 11'!$M$57/'LTC Rev-Exp Region 11'!$M$9, 0)","v":{"v":0,"d":"$0.00"}},{"$f":"IFERROR('LTC Rev-Exp Region 11'!$N$57/'LTC Rev-Exp Region 11'!$N$9, 0)","v":{"v":0,"d":"$0.00"}},{"$f":"IFERROR('LTC Rev-Exp Region 11'!$O$57/'LTC Rev-Exp Region 11'!$O$9, 0)","v":{"v":0,"d":"$0.00"}}]
["LTC",null,null,{"$f":"Jurat!I$1","v":0},{"$f":"Jurat!D$33","v":"00:00:00"},"Q3","2017-09-30","Region 11","Operating Expense","Administrative Expense","Administrative","5.2","Administrative Services",{"$f":"IFERROR('LTC Rev-Exp Region 11'!$L$58/'LTC Rev-Exp Region 11'!$L$9, 0)","v":{"v":0,"d":"$0.00"}},{"$f":"IFERROR('LTC Rev-Exp Region 11'!$M$58/'LTC Rev-Exp Region 11'!$M$9, 0)","v":{"v":0,"d":"$0.00"}},{"$f":"IFERROR('LTC Rev-Exp Region 11'!$N$58/'LTC Rev-Exp Region 11'!$N$9, 0)","v":{"v":0,"d":"$0.00"}},{"$f":"IFERROR('LTC Rev-Exp Region 11'!$O$58/'LTC Rev-Exp Region 11'!$O$9, 0)","v":{"v":0,"d":"$0.00"}}]
["LTC",null,null,{"$f":"Jurat!I$1","v":0},{"$f":"Jurat!D$33","v":"00:00:00"},"Q3","2017-09-30","Region 11","Operating Expense","Administrative Expense","Administrative","5.3","Information Systems",{"$f":"IFERROR('LTC Rev-Exp Region 11'!$L$59/'LTC Rev-Exp Region 11'!$L$9, 0)","v":{"v":0,"d":"$0.00"}},{"$f":"IFERROR('LTC Rev-Exp Region 11'!$M$59/'LTC Rev-Exp Region 11'!$M$9, 0)","v":{"v":0,"d":"$0.00"}},{"$f":"IFERROR('LTC Rev-Exp Region 11'!$N$59/'LTC Rev-Exp Region 11'!$N$9, 0)","v":{"v":0,"d":"$0.00"}},{"$f":"IFERROR('LTC Rev-Exp Region 11'!$O$59/'LTC Rev-Exp Region 11'!$O$9, 0)","v":{"v":0,"d":"$0.00"}}]
["LTC",null,null,{"$f":"Jurat!I$1","v":0},{"$f":"Jurat!D$33","v":"00:00:00"},"Q3","2017-09-30","Region 11","Operating Expense","Administrative Expense","Administrative","5.4","Marketing Expenses",{"$f":"IFERROR('LTC Rev-Exp Region 11'!$L$60/'LTC Rev-Exp Region 11'!$L$9, 0)","v":{"v":0,"d":"$0.00"}},{"$f":"IFERROR('LTC Rev-Exp Region 11'!$M$60/'LTC Rev-Exp Region 11'!$M$9, 0)","v":{"v":0,"d":"$0.00"}},{"$f":"IFERROR('LTC Rev-Exp Region 11'!$N$60/'LTC Rev-Exp Region 11'!$N$9, 0)","v":{"v":0,"d":"$0.00"}},{"$f":"IFERROR('LTC Rev-Exp Region 11'!$O$60/'LTC Rev-Exp Region 11'!$O$9, 0)","v":{"v":0,"d":"$0.00"}}]
["LTC",null,null,{"$f":"Jurat!I$1","v":0},{"$f":"Jurat!D$33","v":"00:00:00"},"Q3","2017-09-30","Region 11","Operating Expense","Administrative Expense","Administrative","5.5","General  Administration",{"$f":"IFERROR('LTC Rev-Exp Region 11'!$L$61/'LTC Rev-Exp Region 11'!$L$9, 0)","v":{"v":0,"d":"$0.00"}},{"$f":"IFERROR('LTC Rev-Exp Region 11'!$M$61/'LTC Rev-Exp Region 11'!$M$9, 0)","v":{"v":0,"d":"$0.00"}},{"$f":"IFERROR('LTC Rev-Exp Region 11'!$N$61/'LTC Rev-Exp Region 11'!$N$9, 0)","v":{"v":0,"d":"$0.00"}},{"$f":"IFERROR('LTC Rev-Exp Region 11'!$O$61/'LTC Rev-Exp Region 11'!$O$9, 0)","v":{"v":0,"d":"$0.00"}}]
["LTC",null,null,{"$f":"Jurat!I$1","v":0},{"$f":"Jurat!D$33","v":"00:00:00"},"Q3","2017-09-30","Region 11","Operating Expense","Administrative Expense","Administrative","5.6","Compliance/Regulatory",{"$f":"IFERROR('LTC Rev-Exp Region 11'!$L$62/'LTC Rev-Exp Region 11'!$L$9, 0)","v":{"v":0,"d":"$0.00"}},{"$f":"IFERROR('LTC Rev-Exp Region 11'!$M$62/'LTC Rev-Exp Region 11'!$M$9, 0)","v":{"v":0,"d":"$0.00"}},{"$f":"IFERROR('LTC Rev-Exp Region 11'!$N$62/'LTC Rev-Exp Region 11'!$N$9, 0)","v":{"v":0,"d":"$0.00"}},{"$f":"IFERROR('LTC Rev-Exp Region 11'!$O$62/'LTC Rev-Exp Region 11'!$O$9, 0)","v":{"v":0,"d":"$0.00"}}]
["LTC",null,null,{"$f":"Jurat!I$1","v":0},{"$f":"Jurat!D$33","v":"00:00:00"},"Q3","2017-09-30","Region 11","Operating Expense","Taxes & Fees","Taxes & Fees","6.1","State Premium Tax",{"$f":"IFERROR('LTC Rev-Exp Region 11'!$L$64/'LTC Rev-Exp Region 11'!$L$9, 0)","v":{"v":0,"d":"$0.00"}},{"$f":"IFERROR('LTC Rev-Exp Region 11'!$M$64/'LTC Rev-Exp Region 11'!$M$9, 0)","v":{"v":0,"d":"$0.00"}},{"$f":"IFERROR('LTC Rev-Exp Region 11'!$N$64/'LTC Rev-Exp Region 11'!$N$9, 0)","v":{"v":0,"d":"$0.00"}},{"$f":"IFERROR('LTC Rev-Exp Region 11'!$O$64/'LTC Rev-Exp Region 11'!$O$9, 0)","v":{"v":0,"d":"$0.00"}}]
["LTC",null,null,{"$f":"Jurat!I$1","v":0},{"$f":"Jurat!D$33","v":"00:00:00"},"Q3","2017-09-30","Region 11","Operating Expense","Taxes & Fees","Taxes & Fees","6.2","Department of Insurance Assessments",{"$f":"IFERROR('LTC Rev-Exp Region 11'!$L$65/'LTC Rev-Exp Region 11'!$L$9, 0)","v":{"v":0,"d":"$0.00"}},{"$f":"IFERROR('LTC Rev-Exp Region 11'!$M$65/'LTC Rev-Exp Region 11'!$M$9, 0)","v":{"v":0,"d":"$0.00"}},{"$f":"IFERROR('LTC Rev-Exp Region 11'!$N$65/'LTC Rev-Exp Region 11'!$N$9, 0)","v":{"v":0,"d":"$0.00"}},{"$f":"IFERROR('LTC Rev-Exp Region 11'!$O$65/'LTC Rev-Exp Region 11'!$O$9, 0)","v":{"v":0,"d":"$0.00"}}]
["LTC",null,null,{"$f":"Jurat!I$1","v":0},{"$f":"Jurat!D$33","v":"00:00:00"},"Q3","2017-09-30","Region 11","Non-Operating Expense","Income Tax Expense","Income Tax Expense","9.0","Income Tax Expense",{"$f":"IFERROR('LTC Rev-Exp Region 11'!$L$72/'LTC Rev-Exp Region 11'!$L$9, 0)","v":{"v":0,"d":"$0.00"}},{"$f":"IFERROR('LTC Rev-Exp Region 11'!$M$72/'LTC Rev-Exp Region 11'!$M$9, 0)","v":{"v":0,"d":"$0.00"}},{"$f":"IFERROR('LTC Rev-Exp Region 11'!$N$72/'LTC Rev-Exp Region 11'!$N$9, 0)","v":{"v":0,"d":"$0.00"}},{"$f":"IFERROR('LTC Rev-Exp Region 11'!$O$72/'LTC Rev-Exp Region 11'!$O$9, 0)","v":{"v":0,"d":"$0.00"}}]
["LTC",null,null,{"$f":"Jurat!I$1","v":0},{"$f":"Jurat!D$33","v":"00:00:00"},"Q4","2017-12-31","Region 11","Operating Revenue","Capitation","Capitation",1.1,"Capitation",{"$f":"IFERROR('LTC Rev-Exp Region 11'!$P$11/'LTC Rev-Exp Region 11'!$P$9, 0)","v":{"v":0,"d":"$0.00"}},{"$f":"IFERROR('LTC Rev-Exp Region 11'!$Q$11/'LTC Rev-Exp Region 11'!$Q$9, 0)","v":{"v":0,"d":"$0.00"}},{"$f":"IFERROR('LTC Rev-Exp Region 11'!$R$11/'LTC Rev-Exp Region 11'!$R$9, 0)","v":{"v":0,"d":"$0.00"}},{"$f":"IFERROR('LTC Rev-Exp Region 11'!$S$11/'LTC Rev-Exp Region 11'!$S$9, 0)","v":{"v":0,"d":"$0.00"}}]
["LTC",null,null,{"$f":"Jurat!I$1","v":0},{"$f":"Jurat!D$33","v":"00:00:00"},"Q4","2017-12-31","Region 11","Operating Revenue","Capitation","NH Rate Reconciliation",1.2,"NH Rate Reconciliation",{"$f":"IFERROR('LTC Rev-Exp Region 11'!$P$12/'LTC Rev-Exp Region 11'!$P$9, 0)","v":{"v":0,"d":"$0.00"}},{"$f":"IFERROR('LTC Rev-Exp Region 11'!$Q$12/'LTC Rev-Exp Region 11'!$Q$9, 0)","v":{"v":0,"d":"$0.00"}},{"$f":"IFERROR('LTC Rev-Exp Region 11'!$R$12/'LTC Rev-Exp Region 11'!$R$9, 0)","v":{"v":0,"d":"$0.00"}},{"$f":"IFERROR('LTC Rev-Exp Region 11'!$S$12/'LTC Rev-Exp Region 11'!$S$9, 0)","v":{"v":0,"d":"$0.00"}}]
["LTC",null,null,{"$f":"Jurat!I$1","v":0},{"$f":"Jurat!D$33","v":"00:00:00"},"Q4","2017-12-31","Region 11","Operating Revenue","Other Revenue","Other Revenue",1.3,"Other Revenue",{"$f":"IFERROR('LTC Rev-Exp Region 11'!$P$13/'LTC Rev-Exp Region 11'!$P$9, 0)","v":{"v":0,"d":"$0.00"}},{"$f":"IFERROR('LTC Rev-Exp Region 11'!$Q$13/'LTC Rev-Exp Region 11'!$Q$9, 0)","v":{"v":0,"d":"$0.00"}},{"$f":"IFERROR('LTC Rev-Exp Region 11'!$R$13/'LTC Rev-Exp Region 11'!$R$9, 0)","v":{"v":0,"d":"$0.00"}},{"$f":"IFERROR('LTC Rev-Exp Region 11'!$S$13/'LTC Rev-Exp Region 11'!$S$9, 0)","v":{"v":0,"d":"$0.00"}}]
["LTC",null,null,{"$f":"Jurat!I$1","v":0},{"$f":"Jurat!D$33","v":"00:00:00"},"Q4","2017-12-31","Region 11","Operating Expense","Medical Expense","NF & Hospice","2.3","Nursing Facility FFS (Medicaid)",{"$f":"IFERROR('LTC Rev-Exp Region 11'!$P$19/'LTC Rev-Exp Region 11'!$P$9, 0)","v":{"v":0,"d":"$0.00"}},{"$f":"IFERROR('LTC Rev-Exp Region 11'!$Q$19/'LTC Rev-Exp Region 11'!$Q$9, 0)","v":{"v":0,"d":"$0.00"}},{"$f":"IFERROR('LTC Rev-Exp Region 11'!$R$19/'LTC Rev-Exp Region 11'!$R$9, 0)","v":{"v":0,"d":"$0.00"}},{"$f":"IFERROR('LTC Rev-Exp Region 11'!$S$19/'LTC Rev-Exp Region 11'!$S$9, 0)","v":{"v":0,"d":"$0.00"}}]
["LTC",null,null,{"$f":"Jurat!I$1","v":0},{"$f":"Jurat!D$33","v":"00:00:00"},"Q4","2017-12-31","Region 11","Operating Expense","Medical Expense","NF & Hospice","2.4","Nursing Facility FFS (Crossover)",{"$f":"IFERROR('LTC Rev-Exp Region 11'!$P$20/'LTC Rev-Exp Region 11'!$P$9, 0)","v":{"v":0,"d":"$0.00"}},{"$f":"IFERROR('LTC Rev-Exp Region 11'!$Q$20/'LTC Rev-Exp Region 11'!$Q$9, 0)","v":{"v":0,"d":"$0.00"}},{"$f":"IFERROR('LTC Rev-Exp Region 11'!$R$20/'LTC Rev-Exp Region 11'!$R$9, 0)","v":{"v":0,"d":"$0.00"}},{"$f":"IFERROR('LTC Rev-Exp Region 11'!$S$20/'LTC Rev-Exp Region 11'!$S$9, 0)","v":{"v":0,"d":"$0.00"}}]
["LTC",null,null,{"$f":"Jurat!I$1","v":0},{"$f":"Jurat!D$33","v":"00:00:00"},"Q4","2017-12-31","Region 11","Operating Expense","Medical Expense","NF & Hospice","2.6","Hospice FFS",{"$f":"IFERROR('LTC Rev-Exp Region 11'!$P$22/'LTC Rev-Exp Region 11'!$P$9, 0)","v":{"v":0,"d":"$0.00"}},{"$f":"IFERROR('LTC Rev-Exp Region 11'!$Q$22/'LTC Rev-Exp Region 11'!$Q$9, 0)","v":{"v":0,"d":"$0.00"}},{"$f":"IFERROR('LTC Rev-Exp Region 11'!$R$22/'LTC Rev-Exp Region 11'!$R$9, 0)","v":{"v":0,"d":"$0.00"}},{"$f":"IFERROR('LTC Rev-Exp Region 11'!$S$22/'LTC Rev-Exp Region 11'!$S$9, 0)","v":{"v":0,"d":"$0.00"}}]
["LTC",null,null,{"$f":"Jurat!I$1","v":0},{"$f":"Jurat!D$33","v":"00:00:00"},"Q4","2017-12-31","Region 11","Operating Expense","Medical Expense","NF & Hospice","2.7","Ending IBNP for NF & Hospice",{"$f":"IFERROR('LTC Rev-Exp Region 11'!$P$23/'LTC Rev-Exp Region 11'!$P$9, 0)","v":{"v":0,"d":"$0.00"}},{"$f":"IFERROR('LTC Rev-Exp Region 11'!$Q$23/'LTC Rev-Exp Region 11'!$Q$9, 0)","v":{"v":0,"d":"$0.00"}},{"$f":"IFERROR('LTC Rev-Exp Region 11'!$R$23/'LTC Rev-Exp Region 11'!$R$9, 0)","v":{"v":0,"d":"$0.00"}},{"$f":"IFERROR('LTC Rev-Exp Region 11'!$S$23/'LTC Rev-Exp Region 11'!$S$9, 0)","v":{"v":0,"d":"$0.00"}}]
["LTC",null,null,{"$f":"Jurat!I$1","v":0},{"$f":"Jurat!D$33","v":"00:00:00"},"Q4","2017-12-31","Region 11","Operating Expense","Medical Expense","NF & Hospice","2.8","NF & Hospice Subcapitated",{"$f":"IFERROR('LTC Rev-Exp Region 11'!$P$24/'LTC Rev-Exp Region 11'!$P$9, 0)","v":{"v":0,"d":"$0.00"}},{"$f":"IFERROR('LTC Rev-Exp Region 11'!$Q$24/'LTC Rev-Exp Region 11'!$Q$9, 0)","v":{"v":0,"d":"$0.00"}},{"$f":"IFERROR('LTC Rev-Exp Region 11'!$R$24/'LTC Rev-Exp Region 11'!$R$9, 0)","v":{"v":0,"d":"$0.00"}},{"$f":"IFERROR('LTC Rev-Exp Region 11'!$S$24/'LTC Rev-Exp Region 11'!$S$9, 0)","v":{"v":0,"d":"$0.00"}}]
["LTC",null,null,{"$f":"Jurat!I$1","v":0},{"$f":"Jurat!D$33","v":"00:00:00"},"Q4","2017-12-31","Region 11","Operating Expense","Medical Expense","NF & Hospice","2.9","NF & Hospice Settlements",{"$f":"IFERROR('LTC Rev-Exp Region 11'!$P$25/'LTC Rev-Exp Region 11'!$P$9, 0)","v":{"v":0,"d":"$0.00"}},{"$f":"IFERROR('LTC Rev-Exp Region 11'!$Q$25/'LTC Rev-Exp Region 11'!$Q$9, 0)","v":{"v":0,"d":"$0.00"}},{"$f":"IFERROR('LTC Rev-Exp Region 11'!$R$25/'LTC Rev-Exp Region 11'!$R$9, 0)","v":{"v":0,"d":"$0.00"}},{"$f":"IFERROR('LTC Rev-Exp Region 11'!$S$25/'LTC Rev-Exp Region 11'!$S$9, 0)","v":{"v":0,"d":"$0.00"}}]
["LTC",null,null,{"$f":"Jurat!I$1","v":0},{"$f":"Jurat!D$33","v":"00:00:00"},"Q4","2017-12-31","Region 11","Operating Expense","Medical Expense","LTC Services","2.11","Assisted Living FFS",{"$f":"IFERROR('LTC Rev-Exp Region 11'!$P$27/'LTC Rev-Exp Region 11'!$P$9, 0)","v":{"v":0,"d":"$0.00"}},{"$f":"IFERROR('LTC Rev-Exp Region 11'!$Q$27/'LTC Rev-Exp Region 11'!$Q$9, 0)","v":{"v":0,"d":"$0.00"}},{"$f":"IFERROR('LTC Rev-Exp Region 11'!$R$27/'LTC Rev-Exp Region 11'!$R$9, 0)","v":{"v":0,"d":"$0.00"}},{"$f":"IFERROR('LTC Rev-Exp Region 11'!$S$27/'LTC Rev-Exp Region 11'!$S$9, 0)","v":{"v":0,"d":"$0.00"}}]
["LTC",null,null,{"$f":"Jurat!I$1","v":0},{"$f":"Jurat!D$33","v":"00:00:00"},"Q4","2017-12-31","Region 11","Operating Expense","Medical Expense","LTC Services","2.12","Home Health FFS",{"$f":"IFERROR('LTC Rev-Exp Region 11'!$P$28/'LTC Rev-Exp Region 11'!$P$9, 0)","v":{"v":0,"d":"$0.00"}},{"$f":"IFERROR('LTC Rev-Exp Region 11'!$Q$28/'LTC Rev-Exp Region 11'!$Q$9, 0)","v":{"v":0,"d":"$0.00"}},{"$f":"IFERROR('LTC Rev-Exp Region 11'!$R$28/'LTC Rev-Exp Region 11'!$R$9, 0)","v":{"v":0,"d":"$0.00"}},{"$f":"IFERROR('LTC Rev-Exp Region 11'!$S$28/'LTC Rev-Exp Region 11'!$S$9, 0)","v":{"v":0,"d":"$0.00"}}]
["LTC",null,null,{"$f":"Jurat!I$1","v":0},{"$f":"Jurat!D$33","v":"00:00:00"},"Q4","2017-12-31","Region 11","Operating Expense","Medical Expense","LTC Services","2.13","Medical Equipment/Supplies FFS",{"$f":"IFERROR('LTC Rev-Exp Region 11'!$P$29/'LTC Rev-Exp Region 11'!$P$9, 0)","v":{"v":0,"d":"$0.00"}},{"$f":"IFERROR('LTC Rev-Exp Region 11'!$Q$29/'LTC Rev-Exp Region 11'!$Q$9, 0)","v":{"v":0,"d":"$0.00"}},{"$f":"IFERROR('LTC Rev-Exp Region 11'!$R$29/'LTC Rev-Exp Region 11'!$R$9, 0)","v":{"v":0,"d":"$0.00"}},{"$f":"IFERROR('LTC Rev-Exp Region 11'!$S$29/'LTC Rev-Exp Region 11'!$S$9, 0)","v":{"v":0,"d":"$0.00"}}]
["LTC",null,null,{"$f":"Jurat!I$1","v":0},{"$f":"Jurat!D$33","v":"00:00:00"},"Q4","2017-12-31","Region 11","Operating Expense","Medical Expense","LTC Services","2.14","Therapy FFS",{"$f":"IFERROR('LTC Rev-Exp Region 11'!$P$30/'LTC Rev-Exp Region 11'!$P$9, 0)","v":{"v":0,"d":"$0.00"}},{"$f":"IFERROR('LTC Rev-Exp Region 11'!$Q$30/'LTC Rev-Exp Region 11'!$Q$9, 0)","v":{"v":0,"d":"$0.00"}},{"$f":"IFERROR('LTC Rev-Exp Region 11'!$R$30/'LTC Rev-Exp Region 11'!$R$9, 0)","v":{"v":0,"d":"$0.00"}},{"$f":"IFERROR('LTC Rev-Exp Region 11'!$S$30/'LTC Rev-Exp Region 11'!$S$9, 0)","v":{"v":0,"d":"$0.00"}}]
["LTC",null,null,{"$f":"Jurat!I$1","v":0},{"$f":"Jurat!D$33","v":"00:00:00"},"Q4","2017-12-31","Region 11","Operating Expense","Medical Expense","LTC Services","2.15","Transportation FFS",{"$f":"IFERROR('LTC Rev-Exp Region 11'!$P$31/'LTC Rev-Exp Region 11'!$P$9, 0)","v":{"v":0,"d":"$0.00"}},{"$f":"IFERROR('LTC Rev-Exp Region 11'!$Q$31/'LTC Rev-Exp Region 11'!$Q$9, 0)","v":{"v":0,"d":"$0.00"}},{"$f":"IFERROR('LTC Rev-Exp Region 11'!$R$31/'LTC Rev-Exp Region 11'!$R$9, 0)","v":{"v":0,"d":"$0.00"}},{"$f":"IFERROR('LTC Rev-Exp Region 11'!$S$31/'LTC Rev-Exp Region 11'!$S$9, 0)","v":{"v":0,"d":"$0.00"}}]
["LTC",null,null,{"$f":"Jurat!I$1","v":0},{"$f":"Jurat!D$33","v":"00:00:00"},"Q4","2017-12-31","Region 11","Operating Expense","Medical Expense","LTC Services","2.16","Case Management FFS (Plan Provided)",{"$f":"IFERROR('LTC Rev-Exp Region 11'!$P$32/'LTC Rev-Exp Region 11'!$P$9, 0)","v":{"v":0,"d":"$0.00"}},{"$f":"IFERROR('LTC Rev-Exp Region 11'!$Q$32/'LTC Rev-Exp Region 11'!$Q$9, 0)","v":{"v":0,"d":"$0.00"}},{"$f":"IFERROR('LTC Rev-Exp Region 11'!$R$32/'LTC Rev-Exp Region 11'!$R$9, 0)","v":{"v":0,"d":"$0.00"}},{"$f":"IFERROR('LTC Rev-Exp Region 11'!$S$32/'LTC Rev-Exp Region 11'!$S$9, 0)","v":{"v":0,"d":"$0.00"}}]
["LTC",null,null,{"$f":"Jurat!I$1","v":0},{"$f":"Jurat!D$33","v":"00:00:00"},"Q4","2017-12-31","Region 11","Operating Expense","Medical Expense","LTC Services","2.17","Case Management FF (Non-Plan Provided)",{"$f":"IFERROR('LTC Rev-Exp Region 11'!$P$33/'LTC Rev-Exp Region 11'!$P$9, 0)","v":{"v":0,"d":"$0.00"}},{"$f":"IFERROR('LTC Rev-Exp Region 11'!$Q$33/'LTC Rev-Exp Region 11'!$Q$9, 0)","v":{"v":0,"d":"$0.00"}},{"$f":"IFERROR('LTC Rev-Exp Region 11'!$R$33/'LTC Rev-Exp Region 11'!$R$9, 0)","v":{"v":0,"d":"$0.00"}},{"$f":"IFERROR('LTC Rev-Exp Region 11'!$S$33/'LTC Rev-Exp Region 11'!$S$9, 0)","v":{"v":0,"d":"$0.00"}}]
["LTC",null,null,{"$f":"Jurat!I$1","v":0},{"$f":"Jurat!D$33","v":"00:00:00"},"Q4","2017-12-31","Region 11","Operating Expense","Medical Expense","LTC Services","2.18","HCBS FFS",{"$f":"IFERROR('LTC Rev-Exp Region 11'!$P$34/'LTC Rev-Exp Region 11'!$P$9, 0)","v":{"v":0,"d":"$0.00"}},{"$f":"IFERROR('LTC Rev-Exp Region 11'!$Q$34/'LTC Rev-Exp Region 11'!$Q$9, 0)","v":{"v":0,"d":"$0.00"}},{"$f":"IFERROR('LTC Rev-Exp Region 11'!$R$34/'LTC Rev-Exp Region 11'!$R$9, 0)","v":{"v":0,"d":"$0.00"}},{"$f":"IFERROR('LTC Rev-Exp Region 11'!$S$34/'LTC Rev-Exp Region 11'!$S$9, 0)","v":{"v":0,"d":"$0.00"}}]
["LTC",null,null,{"$f":"Jurat!I$1","v":0},{"$f":"Jurat!D$33","v":"00:00:00"},"Q4","2017-12-31","Region 11","Operating Expense","Medical Expense","LTC Services","2.19","Subcapitated LTC Services",{"$f":"IFERROR('LTC Rev-Exp Region 11'!$P$35/'LTC Rev-Exp Region 11'!$P$9, 0)","v":{"v":0,"d":"$0.00"}},{"$f":"IFERROR('LTC Rev-Exp Region 11'!$Q$35/'LTC Rev-Exp Region 11'!$Q$9, 0)","v":{"v":0,"d":"$0.00"}},{"$f":"IFERROR('LTC Rev-Exp Region 11'!$R$35/'LTC Rev-Exp Region 11'!$R$9, 0)","v":{"v":0,"d":"$0.00"}},{"$f":"IFERROR('LTC Rev-Exp Region 11'!$S$35/'LTC Rev-Exp Region 11'!$S$9, 0)","v":{"v":0,"d":"$0.00"}}]
["LTC",null,null,{"$f":"Jurat!I$1","v":0},{"$f":"Jurat!D$33","v":"00:00:00"},"Q4","2017-12-31","Region 11","Operating Expense","Medical Expense","LTC Services","2.20","Ending IBNP for Long Term Care Services",{"$f":"IFERROR('LTC Rev-Exp Region 11'!$P$36/'LTC Rev-Exp Region 11'!$P$9, 0)","v":{"v":0,"d":"$0.00"}},{"$f":"IFERROR('LTC Rev-Exp Region 11'!$Q$36/'LTC Rev-Exp Region 11'!$Q$9, 0)","v":{"v":0,"d":"$0.00"}},{"$f":"IFERROR('LTC Rev-Exp Region 11'!$R$36/'LTC Rev-Exp Region 11'!$R$9, 0)","v":{"v":0,"d":"$0.00"}},{"$f":"IFERROR('LTC Rev-Exp Region 11'!$S$36/'LTC Rev-Exp Region 11'!$S$9, 0)","v":{"v":0,"d":"$0.00"}}]
["LTC",null,null,{"$f":"Jurat!I$1","v":0},{"$f":"Jurat!D$33","v":"00:00:00"},"Q4","2017-12-31","Region 11","Operating Expense","Medical Expense","LTC Services","2.21","LTC Services Settlements",{"$f":"IFERROR('LTC Rev-Exp Region 11'!$P$37/'LTC Rev-Exp Region 11'!$P$9, 0)","v":{"v":0,"d":"$0.00"}},{"$f":"IFERROR('LTC Rev-Exp Region 11'!$Q$37/'LTC Rev-Exp Region 11'!$Q$9, 0)","v":{"v":0,"d":"$0.00"}},{"$f":"IFERROR('LTC Rev-Exp Region 11'!$R$37/'LTC Rev-Exp Region 11'!$R$9, 0)","v":{"v":0,"d":"$0.00"}},{"$f":"IFERROR('LTC Rev-Exp Region 11'!$S$37/'LTC Rev-Exp Region 11'!$S$9, 0)","v":{"v":0,"d":"$0.00"}}]
["LTC",null,null,{"$f":"Jurat!I$1","v":0},{"$f":"Jurat!D$33","v":"00:00:00"},"Q4","2017-12-31","Region 11","Operating Expense","Medical Expense","Expanded Benefits","3.1","Expanded Benefits FFS",{"$f":"IFERROR('LTC Rev-Exp Region 11'!$P$39/'LTC Rev-Exp Region 11'!$P$9, 0)","v":{"v":0,"d":"$0.00"}},{"$f":"IFERROR('LTC Rev-Exp Region 11'!$Q$39/'LTC Rev-Exp Region 11'!$Q$9, 0)","v":{"v":0,"d":"$0.00"}},{"$f":"IFERROR('LTC Rev-Exp Region 11'!$R$39/'LTC Rev-Exp Region 11'!$R$9, 0)","v":{"v":0,"d":"$0.00"}},{"$f":"IFERROR('LTC Rev-Exp Region 11'!$S$39/'LTC Rev-Exp Region 11'!$S$9, 0)","v":{"v":0,"d":"$0.00"}}]
["LTC",null,null,{"$f":"Jurat!I$1","v":0},{"$f":"Jurat!D$33","v":"00:00:00"},"Q4","2017-12-31","Region 11","Operating Expense","Medical Expense","Expanded Benefits","3.2","Expanded Benefits Subcapitation",{"$f":"IFERROR('LTC Rev-Exp Region 11'!$P$40/'LTC Rev-Exp Region 11'!$P$9, 0)","v":{"v":0,"d":"$0.00"}},{"$f":"IFERROR('LTC Rev-Exp Region 11'!$Q$40/'LTC Rev-Exp Region 11'!$Q$9, 0)","v":{"v":0,"d":"$0.00"}},{"$f":"IFERROR('LTC Rev-Exp Region 11'!$R$40/'LTC Rev-Exp Region 11'!$R$9, 0)","v":{"v":0,"d":"$0.00"}},{"$f":"IFERROR('LTC Rev-Exp Region 11'!$S$40/'LTC Rev-Exp Region 11'!$S$9, 0)","v":{"v":0,"d":"$0.00"}}]
["LTC",null,null,{"$f":"Jurat!I$1","v":0},{"$f":"Jurat!D$33","v":"00:00:00"},"Q4","2017-12-31","Region 11","Operating Expense","Medical Expense","Expanded Benefits","3.3","Ending IBNP for Expanded Benefits",{"$f":"IFERROR('LTC Rev-Exp Region 11'!$P$41/'LTC Rev-Exp Region 11'!$P$9, 0)","v":{"v":0,"d":"$0.00"}},{"$f":"IFERROR('LTC Rev-Exp Region 11'!$Q$41/'LTC Rev-Exp Region 11'!$Q$9, 0)","v":{"v":0,"d":"$0.00"}},{"$f":"IFERROR('LTC Rev-Exp Region 11'!$R$41/'LTC Rev-Exp Region 11'!$R$9, 0)","v":{"v":0,"d":"$0.00"}},{"$f":"IFERROR('LTC Rev-Exp Region 11'!$S$41/'LTC Rev-Exp Region 11'!$S$9, 0)","v":{"v":0,"d":"$0.00"}}]
["LTC",null,null,{"$f":"Jurat!I$1","v":0},{"$f":"Jurat!D$33","v":"00:00:00"},"Q4","2017-12-31","Region 11","Operating Expense","Medical Expense","Expanded Benefits","3.4","Expanded Benefits Settlements",{"$f":"IFERROR('LTC Rev-Exp Region 11'!$P$42/'LTC Rev-Exp Region 11'!$P$9, 0)","v":{"v":0,"d":"$0.00"}},{"$f":"IFERROR('LTC Rev-Exp Region 11'!$Q$42/'LTC Rev-Exp Region 11'!$Q$9, 0)","v":{"v":0,"d":"$0.00"}},{"$f":"IFERROR('LTC Rev-Exp Region 11'!$R$42/'LTC Rev-Exp Region 11'!$R$9, 0)","v":{"v":0,"d":"$0.00"}},{"$f":"IFERROR('LTC Rev-Exp Region 11'!$S$42/'LTC Rev-Exp Region 11'!$S$9, 0)","v":{"v":0,"d":"$0.00"}}]
["LTC",null,null,{"$f":"Jurat!I$1","v":0},{"$f":"Jurat!D$33","v":"00:00:00"},"Q4","2017-12-31","Region 11","Operating Expense","Medical Expense","Other Medical","4.5","TPL & Fraud/Abuse Recoveries",{"$f":"IFERROR('LTC Rev-Exp Region 11'!$P$48/'LTC Rev-Exp Region 11'!$P$9, 0)","v":{"v":0,"d":"$0.00"}},{"$f":"IFERROR('LTC Rev-Exp Region 11'!$Q$48/'LTC Rev-Exp Region 11'!$Q$9, 0)","v":{"v":0,"d":"$0.00"}},{"$f":"IFERROR('LTC Rev-Exp Region 11'!$R$48/'LTC Rev-Exp Region 11'!$R$9, 0)","v":{"v":0,"d":"$0.00"}},{"$f":"IFERROR('LTC Rev-Exp Region 11'!$S$48/'LTC Rev-Exp Region 11'!$S$9, 0)","v":{"v":0,"d":"$0.00"}}]
["LTC",null,null,{"$f":"Jurat!I$1","v":0},{"$f":"Jurat!D$33","v":"00:00:00"},"Q4","2017-12-31","Region 11","Operating Expense","Medical Expense","Other Medical","4.6.1","Premium Deficiency Reserve",{"$f":"IFERROR('LTC Rev-Exp Region 11'!$P$49/'LTC Rev-Exp Region 11'!$P$9, 0)","v":{"v":0,"d":"$0.00"}},{"$f":"IFERROR('LTC Rev-Exp Region 11'!$Q$49/'LTC Rev-Exp Region 11'!$Q$9, 0)","v":{"v":0,"d":"$0.00"}},{"$f":"IFERROR('LTC Rev-Exp Region 11'!$R$49/'LTC Rev-Exp Region 11'!$R$9, 0)","v":{"v":0,"d":"$0.00"}},{"$f":"IFERROR('LTC Rev-Exp Region 11'!$S$49/'LTC Rev-Exp Region 11'!$S$9, 0)","v":{"v":0,"d":"$0.00"}}]
["LTC",null,null,{"$f":"Jurat!I$1","v":0},{"$f":"Jurat!D$33","v":"00:00:00"},"Q4","2017-12-31","Region 11","Operating Expense","Medical Expense","Other Medical","4.8","Reinsurance Premiums",{"$f":"IFERROR('LTC Rev-Exp Region 11'!$P$51/'LTC Rev-Exp Region 11'!$P$9, 0)","v":{"v":0,"d":"$0.00"}},{"$f":"IFERROR('LTC Rev-Exp Region 11'!$Q$51/'LTC Rev-Exp Region 11'!$Q$9, 0)","v":{"v":0,"d":"$0.00"}},{"$f":"IFERROR('LTC Rev-Exp Region 11'!$R$51/'LTC Rev-Exp Region 11'!$R$9, 0)","v":{"v":0,"d":"$0.00"}},{"$f":"IFERROR('LTC Rev-Exp Region 11'!$S$51/'LTC Rev-Exp Region 11'!$S$9, 0)","v":{"v":0,"d":"$0.00"}}]
["LTC",null,null,{"$f":"Jurat!I$1","v":0},{"$f":"Jurat!D$33","v":"00:00:00"},"Q4","2017-12-31","Region 11","Operating Expense","Medical Expense","Other Medical","4.9","Reinsurance Recoveries",{"$f":"IFERROR('LTC Rev-Exp Region 11'!$P$52/'LTC Rev-Exp Region 11'!$P$9, 0)","v":{"v":0,"d":"$0.00"}},{"$f":"IFERROR('LTC Rev-Exp Region 11'!$Q$52/'LTC Rev-Exp Region 11'!$Q$9, 0)","v":{"v":0,"d":"$0.00"}},{"$f":"IFERROR('LTC Rev-Exp Region 11'!$R$52/'LTC Rev-Exp Region 11'!$R$9, 0)","v":{"v":0,"d":"$0.00"}},{"$f":"IFERROR('LTC Rev-Exp Region 11'!$S$52/'LTC Rev-Exp Region 11'!$S$9, 0)","v":{"v":0,"d":"$0.00"}}]
["LTC",null,null,{"$f":"Jurat!I$1","v":0},{"$f":"Jurat!D$33","v":"00:00:00"},"Q4","2017-12-31","Region 11","Operating Expense","Administrative Expense","Administrative","5.1","Salaries & Benefits",{"$f":"IFERROR('LTC Rev-Exp Region 11'!$P$57/'LTC Rev-Exp Region 11'!$P$9, 0)","v":{"v":0,"d":"$0.00"}},{"$f":"IFERROR('LTC Rev-Exp Region 11'!$Q$57/'LTC Rev-Exp Region 11'!$Q$9, 0)","v":{"v":0,"d":"$0.00"}},{"$f":"IFERROR('LTC Rev-Exp Region 11'!$R$57/'LTC Rev-Exp Region 11'!$R$9, 0)","v":{"v":0,"d":"$0.00"}},{"$f":"IFERROR('LTC Rev-Exp Region 11'!$S$57/'LTC Rev-Exp Region 11'!$S$9, 0)","v":{"v":0,"d":"$0.00"}}]
["LTC",null,null,{"$f":"Jurat!I$1","v":0},{"$f":"Jurat!D$33","v":"00:00:00"},"Q4","2017-12-31","Region 11","Operating Expense","Administrative Expense","Administrative","5.2","Administrative Services",{"$f":"IFERROR('LTC Rev-Exp Region 11'!$P$58/'LTC Rev-Exp Region 11'!$P$9, 0)","v":{"v":0,"d":"$0.00"}},{"$f":"IFERROR('LTC Rev-Exp Region 11'!$Q$58/'LTC Rev-Exp Region 11'!$Q$9, 0)","v":{"v":0,"d":"$0.00"}},{"$f":"IFERROR('LTC Rev-Exp Region 11'!$R$58/'LTC Rev-Exp Region 11'!$R$9, 0)","v":{"v":0,"d":"$0.00"}},{"$f":"IFERROR('LTC Rev-Exp Region 11'!$S$58/'LTC Rev-Exp Region 11'!$S$9, 0)","v":{"v":0,"d":"$0.00"}}]
["LTC",null,null,{"$f":"Jurat!I$1","v":0},{"$f":"Jurat!D$33","v":"00:00:00"},"Q4","2017-12-31","Region 11","Operating Expense","Administrative Expense","Administrative","5.3","Information Systems",{"$f":"IFERROR('LTC Rev-Exp Region 11'!$P$59/'LTC Rev-Exp Region 11'!$P$9, 0)","v":{"v":0,"d":"$0.00"}},{"$f":"IFERROR('LTC Rev-Exp Region 11'!$Q$59/'LTC Rev-Exp Region 11'!$Q$9, 0)","v":{"v":0,"d":"$0.00"}},{"$f":"IFERROR('LTC Rev-Exp Region 11'!$R$59/'LTC Rev-Exp Region 11'!$R$9, 0)","v":{"v":0,"d":"$0.00"}},{"$f":"IFERROR('LTC Rev-Exp Region 11'!$S$59/'LTC Rev-Exp Region 11'!$S$9, 0)","v":{"v":0,"d":"$0.00"}}]
["LTC",null,null,{"$f":"Jurat!I$1","v":0},{"$f":"Jurat!D$33","v":"00:00:00"},"Q4","2017-12-31","Region 11","Operating Expense","Administrative Expense","Administrative","5.4","Marketing Expenses",{"$f":"IFERROR('LTC Rev-Exp Region 11'!$P$60/'LTC Rev-Exp Region 11'!$P$9, 0)","v":{"v":0,"d":"$0.00"}},{"$f":"IFERROR('LTC Rev-Exp Region 11'!$Q$60/'LTC Rev-Exp Region 11'!$Q$9, 0)","v":{"v":0,"d":"$0.00"}},{"$f":"IFERROR('LTC Rev-Exp Region 11'!$R$60/'LTC Rev-Exp Region 11'!$R$9, 0)","v":{"v":0,"d":"$0.00"}},{"$f":"IFERROR('LTC Rev-Exp Region 11'!$S$60/'LTC Rev-Exp Region 11'!$S$9, 0)","v":{"v":0,"d":"$0.00"}}]
["LTC",null,null,{"$f":"Jurat!I$1","v":0},{"$f":"Jurat!D$33","v":"00:00:00"},"Q4","2017-12-31","Region 11","Operating Expense","Administrative Expense","Administrative","5.5","General  Administration",{"$f":"IFERROR('LTC Rev-Exp Region 11'!$P$61/'LTC Rev-Exp Region 11'!$P$9, 0)","v":{"v":0,"d":"$0.00"}},{"$f":"IFERROR('LTC Rev-Exp Region 11'!$Q$61/'LTC Rev-Exp Region 11'!$Q$9, 0)","v":{"v":0,"d":"$0.00"}},{"$f":"IFERROR('LTC Rev-Exp Region 11'!$R$61/'LTC Rev-Exp Region 11'!$R$9, 0)","v":{"v":0,"d":"$0.00"}},{"$f":"IFERROR('LTC Rev-Exp Region 11'!$S$61/'LTC Rev-Exp Region 11'!$S$9, 0)","v":{"v":0,"d":"$0.00"}}]
["LTC",null,null,{"$f":"Jurat!I$1","v":0},{"$f":"Jurat!D$33","v":"00:00:00"},"Q4","2017-12-31","Region 11","Operating Expense","Administrative Expense","Administrative","5.6","Compliance/Regulatory",{"$f":"IFERROR('LTC Rev-Exp Region 11'!$P$62/'LTC Rev-Exp Region 11'!$P$9, 0)","v":{"v":0,"d":"$0.00"}},{"$f":"IFERROR('LTC Rev-Exp Region 11'!$Q$62/'LTC Rev-Exp Region 11'!$Q$9, 0)","v":{"v":0,"d":"$0.00"}},{"$f":"IFERROR('LTC Rev-Exp Region 11'!$R$62/'LTC Rev-Exp Region 11'!$R$9, 0)","v":{"v":0,"d":"$0.00"}},{"$f":"IFERROR('LTC Rev-Exp Region 11'!$S$62/'LTC Rev-Exp Region 11'!$S$9, 0)","v":{"v":0,"d":"$0.00"}}]
["LTC",null,null,{"$f":"Jurat!I$1","v":0},{"$f":"Jurat!D$33","v":"00:00:00"},"Q4","2017-12-31","Region 11","Operating Expense","Taxes & Fees","Taxes & Fees","6.1","State Premium Tax",{"$f":"IFERROR('LTC Rev-Exp Region 11'!$P$64/'LTC Rev-Exp Region 11'!$P$9, 0)","v":{"v":0,"d":"$0.00"}},{"$f":"IFERROR('LTC Rev-Exp Region 11'!$Q$64/'LTC Rev-Exp Region 11'!$Q$9, 0)","v":{"v":0,"d":"$0.00"}},{"$f":"IFERROR('LTC Rev-Exp Region 11'!$R$64/'LTC Rev-Exp Region 11'!$R$9, 0)","v":{"v":0,"d":"$0.00"}},{"$f":"IFERROR('LTC Rev-Exp Region 11'!$S$64/'LTC Rev-Exp Region 11'!$S$9, 0)","v":{"v":0,"d":"$0.00"}}]
["LTC",null,null,{"$f":"Jurat!I$1","v":0},{"$f":"Jurat!D$33","v":"00:00:00"},"Q4","2017-12-31","Region 11","Operating Expense","Taxes & Fees","Taxes & Fees","6.2","Department of Insurance Assessments",{"$f":"IFERROR('LTC Rev-Exp Region 11'!$P$65/'LTC Rev-Exp Region 11'!$P$9, 0)","v":{"v":0,"d":"$0.00"}},{"$f":"IFERROR('LTC Rev-Exp Region 11'!$Q$65/'LTC Rev-Exp Region 11'!$Q$9, 0)","v":{"v":0,"d":"$0.00"}},{"$f":"IFERROR('LTC Rev-Exp Region 11'!$R$65/'LTC Rev-Exp Region 11'!$R$9, 0)","v":{"v":0,"d":"$0.00"}},{"$f":"IFERROR('LTC Rev-Exp Region 11'!$S$65/'LTC Rev-Exp Region 11'!$S$9, 0)","v":{"v":0,"d":"$0.00"}}]
["LTC",null,null,{"$f":"Jurat!I$1","v":0},{"$f":"Jurat!D$33","v":"00:00:00"},"Q4","2017-12-31","Region 11","Non-Operating Expense","Income Tax Expense","Income Tax Expense","9.0","Income Tax Expense",{"$f":"IFERROR('LTC Rev-Exp Region 11'!$P$72/'LTC Rev-Exp Region 11'!$P$9, 0)","v":{"v":0,"d":"$0.00"}},{"$f":"IFERROR('LTC Rev-Exp Region 11'!$Q$72/'LTC Rev-Exp Region 11'!$Q$9, 0)","v":{"v":0,"d":"$0.00"}},{"$f":"IFERROR('LTC Rev-Exp Region 11'!$R$72/'LTC Rev-Exp Region 11'!$R$9, 0)","v":{"v":0,"d":"$0.00"}},{"$f":"IFERROR('LTC Rev-Exp Region 11'!$S$72/'LTC Rev-Exp Region 11'!$S$9, 0)","v":{"v":0,"d":"$0.00"}}]